{"text_format":"1","workbook":"xlsx","n_sheets":22,"sheets":["Instructions","1. Checklist & Certification","Dropdowns","MHP Family Income & Rent Limits","2. Assisted & Restricted Units","MTSP Limits","HOME & NHTF LIMITS","State Limits","2a. PRP Perm Close","State Limits raw data","3. Non-Restricted Units","4a. Unit Desig1","HLCP-E Rent Change","4b. Unit Desig2","4c. Unit Desig3","4d. Unit Desig4","Unit Des Table","IncomeRentLimits","Cell Comments","5a. Map Unit Desig1","5b. Map Unit Desig2","5c. Map Unit Desig3"],"not_rendered":{"charts":0,"images":4,"macros":1,"external_links":0,"defined_names":90,"comments":9,"pivot_tables":4},"unopened":[],"bounds":{"document_bytes":16777216,"sheet_cells":100000,"rows_first":2000,"rows_last":500,"rows_between":2000,"halvings":0,"cell_chars":16384,"cell_head_chars":4096},"cells_cut":0,"cells_raw":0,"read":"whole","date_system":"1900"}

{"sheet":"Instructions","index":0,"n_rows":114,"n_cols":1,"rows_kept":114,"cut":false,"hidden":false,"merged":[]}
["Schedule of Rental Income (SRI) Instructions"]
["Getting Started: There are many embedded formulas that refer to hidden data tables;  therefore, it is important to fill out all applicable yellow shaded cells to ensure the formulas work properly (for example, the County is necessary to pull the income limits).  When you open the workbook, you may see a yellow banner at the top with a button that says \"Enable Content\" or \"Enable Editing\".  Please click this box so that the macros are enabled and the formulas work properly. To Unblock Macros go to the bottom of this worksheet. If you copy and paste data from another Excel workbook, use \"Paste Values\" (right click, paste options, paste special values) to keep the embedded formulas and formats intact. Follow instructions that appear in cells with red triangles when you pass your cursor over cells. Complete all applicable yellow shaded cells. The SRI changes, depending upon which program(s) you choose in Worksheet 1, Section B.  Although it is complex, our hope is that this consolidated SRI improves compliance, reduces errors, and results in less of your time spent on HCD compliance overall.  Your feedback is very helpful.  Please send comments to your assigned HCD Occupancy Representative. "]
["SRI Submittal: 1. The SRI must be certified and submitted electronically by email as a Macro Enabled Excel file (.xlsm) to AMCBranch@hcd.ca.gov. \n2. The email subject line must indicate the HCD Project Name, HCD Contract Number and the SRI year. Include “SRI” in the Excel file name.\n3. The email must include forms for only one project.\n4. Reporting forms and due dates are specified within each Rental Housing Program on HCD's website\nNo signature is required beyond selecting the checkbox and completing the name, title and date fields in the certification area in Section G of Worksheet 1."]
["Department Approval:  Once approved, your Asset Management and Compliance (AMC) Representative will email the SRI back to you with Section H Department Approval completed.  Please print and retain the complete approved SRI."]
["General: This SRI applies to the following HCD funding programs:\nAffordable Housing Sustainable Communities (AHSC)\nCalifornia Housing Rehabilitation Program - Rental (CHRP-R)\nCalifornia Natural Disaster Assistance Program (CALDAP) - Rental\nDeferred Payment Rehabilitation Loan Program (DPRLP) - Rental\nDepartment of Developmental Services Program (DDS)\nFamilies Moving to Work Program (FMTW)\nFamily Housing Demonstration Program (FHDP)\nHOME Investment Partnership Program (HOME)\nHousing for Healthy California (HHC)\nJoe Serna, Jr. Farmworker Housing Grant Program (JSJFWHG) - aka Farmworker Housing Grant Program\nLoan Portfolio Restructuring (LPR)\nMultifamily Housing Program (MHP); Homeless Youth (HYMHP); Supportive Housing (SHMHP), Governor's Homeless Initiative (GHI)\nNational Housing Trust Fund\nNo Place Like Home (NPLH)\nNeighborhood Stabilization Program (NSP)\nPortfolio Reinvestment Program (PRP)\nRental Housing Construction Program - Bond (RHCP-B)\nSpecial User Housing Rehabilitation Program (SUHRP) - Rental\nState Earthquake Rehabilitation Assistance Program (SERA) - Rental\nTransit Oriented Development Housing Program (TOD)\nVeterans Homeless Prevention Program (VHHP)"]
["H. HCD Approval:  Your AMC Rep will complete this part of the form and email the entire form back to you once approved."]
["Worksheet - 1.  Checklist & Certification "]
["Always begin with a freshly downloaded form from HCD's website at: https://www.hcd.ca.gov/grants-and-funding/reporting-and-compliance-loan-programs\nIf you copy data from another source document you must paste using Paste Values. Section C, D and E are hidden until needed (when the applicable funding source box is clicked in Section B). Mouse over cells with red triangles for cell/column instructions. "]
["A. General Info: Complete all applicable yellow shaded cells in sequence beginning with cell G5. Unshaded cells are locked and may contain formulas. For \"HCD RA Numbers\", enter the HCD Contract number such as 99‐CHRP‐0117 (use four digit instead of 99-CHRP-117)."]
["B. HCD Funding Sources in Project: Check each applicable box for which this project has received HCD funding.\nIf the boxes do not check when clicked, the macros need to be enabled (click through these instructions):\n1. File, Options, Trust Center, Trust Center Settings, Macro Settings, Disable all macros with notification (if prompted, click \"Enable Content\")\n2. If Disable all macros with notification does not work, then go back to 1. above and click Enable all macros."]
["C. Utility Allowance Chart: (Also see D, below) Complete this utility allowance chart (not applicable for CHRP, DDS without Section 8, SERA, SUHRP, CALDAP and DPRLP).  Leave blank any Bedroom Size/Unit Descriptions that do not exist in the Project.  This information will autofill onto the remaining worksheets.  If your Project can use one set of utility allowances for all units then this is the only Utility Allowance Chart you must complete.  If, however your Project must use different utility allowance charts for different units, complete this chart (Section C) plus additional charts in Section D."]
["D. Additional Utility Allowance Charts: These additional Monthly Utility Allowance Charts are for use only by projects that have more than one set of utility allowances to account for different utility allowances for different buildings or sets of units.  Utility allowances will be used to automatically net out utility allowances from gross rent to calculate net rent on Worksheet 2.   Please see asterisk (*) at the bottom of Section D."]
["E1. Rent Adjustment Factor Calculation for RHCP-B AND FHDP,\nE2. Rent Adjustment Factor Calculation for  CHRP-R, SURHP, & SERA\nComplete all yellow shaded cells. Read through carefully and mouse over cells with red triangles for cell instructions."]
["Checklist of Required Items: Once you have completed Worksheets 1, 2 and 3 and refreshed and reviewed Worksheet(s) 4, return to Worksheet 1 and check the boxes indicating that you have completed the required items. If 4a-d does not match the Regulatory Agreement(s) Exhibit B, briefly explain what policies and procedures will be implemented to bring the Unit Mix into compliance.  "]
["Certification: Complete the certification area.   Follow Report Submittal Instructions, Above."]
["HCD Approval: Your AMC Rep will complete this part of the form and email the entire form back to you once approved."]
["Worksheet - 2. Assisted & Restricted Units"]
["Different columns appear based on what is entered in Worksheet 1 Cell G5 and the boxes checked in Section B.  Market rate units must be entered on Worksheet 3.  Enter only assisted units on Worksheet 2; non-assisted must be entered on Worksheet 3.\n"]
["Managers' Units: For AHSC, FMTW, GHI, HHC, HOME, HYMHP, LPR, MHP, NHTF, NPLH, NSP, PRP, SHMHP, TOD, and VHHP manager units must be entered here; for other programs, check the Regulatory Agreement Exhibit B to determine if the manager unit is Assisted or Non-Assisted.  Report Manger units in columns B. If the free rent of any onsite management employee is included in Project operating expenses, then report the value of the free rent. "]
["Possible compliance issues: Correct any potential errors or compliance issues indicated by bright yellow shaded cells.  For each bright yellow shaded cell something needs to be corrected or an explanation must be provided in column AR (see cell comments at column header for assistance)."]
["Worksheet - MHP Family Income & Rent Limits"]
["For Projects that received funding similar to MHP. Subject to the UMRs and the MTSP/TCAC Income and Rent limits. Complete all yellow shaded cells including Place In Service (PIS) and Gross Rent Floor Dates."]
["Worksheet - 3. Non-Restricted Units"]
["Enter the average monthly rent for each bedroom size along with the number of units for each bedroom size."]
["Managers' Units: If the free rent of any onsite management employee is included in Project operating expenses, then include the rent revenue for those units in the Managers Unit row"]
["Worksheet - 4 a-d. Unit Designations"]
["Refresh these pivot tables by right clicking on the yellow shaded cells. If data changes on Worksheet 2, these tables must be refreshed. Compare the tables to Exhibit B of the Project Regulatory Agreement(s)."]
["Unblock Macros"]
["This Schedule of Rental Income (SRI) requires the use of Macros and depending on your version of Microsoft Office, you may need to unblock macros in the file properties before you can use this SRI. If, after you open the SRI and enable content, you see the following “SECURITY RISK” warning, you must follow the instructions below before starting your SRI."]
[]
[]
[]
[]
[]
[]
[]
["Step 1.\tSave and close application."]
["Step 2.\tRight-click the file and choose Properties from the context menu."]
["Step 3.\tAt the bottom of the General tab, select the Unblock checkbox and select OK"]
[]
[]
[]
[]
[]
[]
[]
[]
[]
[]
[]
[]
[]
[]
[]
[]
[]
[]
[]
[]
[]
[]
[]
[]
[]
[]
[]
["How To Enable Trust Access to the VBA Project Object Model (Required for Some Users)"]
["Step 1.\tFrom the Excel Ribbon select File (the first option on the left side)."]
["Step 2.  From the File Menu, select the button labeled Options (in the bottom left corner)."]
["Step 3.\tFrom Options Menu, select Trust Center, then Trust Center Settings. (example shown below)"]
["Step 4.  In the Trust Center Settings Menu, select Macro Settings. In the Developer Macro Settings section, enable Trust Access to the VBA project object model."]
[]
[]
[]
[]
[]
[]
[]
[]
[]
[]
[]
[]
[]
[]
[]
[]
[]
[]
[]
[]
[]
[]
[]
[]
[]
[]
[]
[]
[]
[]
[]
[]
[]
[]
[]
[]
[]
[]
[]
[]
["Step 5.\tClose every open Excel workbook, then re-open the Application."]
["Step 6.  After completing your SRI, follow these same procedures to turn off trusted access."]
["Never enable Excel Macros if you have any doubt about the source of the workbook."]

{"sheet":"1. Checklist & Certification","index":1,"n_rows":70,"n_cols":16,"rows_kept":70,"cut":false,"hidden":false,"merged":[[68,3,68,4],[68,7,68,8],[8,1,8,3],[69,0,69,10],[63,0,64,3],[63,10,64,10],[67,0,67,3],[49,4,49,5],[49,8,49,9],[66,1,66,3],[51,8,51,9],[59,0,59,3],[65,8,65,9],[66,8,66,9],[62,6,62,9],[63,4,64,5],[65,4,65,5],[66,4,66,5],[62,2,62,5],[54,1,54,10],[67,6,67,7],[8,7,8,10],[9,7,9,10],[53,8,53,9],[52,4,52,5],[63,7,64,7],[63,8,64,9],[46,1,46,9],[52,8,52,9],[52,1,52,3],[48,1,48,9],[47,1,47,9],[53,4,53,5],[49,0,49,3],[51,4,51,5],[50,4,50,5],[50,8,50,9],[45,1,45,9],[61,6,61,9],[55,0,55,10],[44,7,44,8],[44,1,44,6],[67,4,67,5],[63,6,64,6],[67,8,67,9],[43,0,43,10],[51,1,51,3],[50,1,50,3],[61,2,61,5],[56,0,56,1],[57,0,57,1],[59,5,59,10],[57,6,57,9],[57,2,57,5],[56,2,56,5],[56,6,56,9],[58,7,58,10],[53,6,53,7],[53,1,53,3],[65,1,65,3],[58,3,58,5],[2,0,2,10],[5,2,5,6],[5,0,5,1],[0,0,0,9],[3,3,3,5],[4,0,4,5],[3,0,3,1],[4,7,4,10],[1,5,1,10],[1,0,1,4],[3,7,3,10],[5,7,5,10],[6,7,6,10],[7,7,7,10],[10,7,10,10],[42,1,42,9],[39,1,39,9],[41,1,41,9],[37,0,37,10],[40,1,40,9],[33,1,33,5],[33,7,33,9],[32,0,32,10],[38,1,38,9],[35,1,35,9],[36,1,36,9],[34,1,34,9],[21,1,21,10],[12,5,12,6],[12,1,12,3],[6,2,6,3],[7,2,7,3],[9,2,9,6],[13,2,13,3],[23,3,23,4],[22,3,22,10],[22,0,22,2],[23,5,23,6],[23,7,23,8],[23,9,23,10],[6,0,6,1],[14,0,14,10],[7,0,7,1],[11,0,11,1],[9,0,9,1],[11,2,11,6],[8,5,8,6],[6,5,6,6],[7,5,7,6],[10,0,10,1],[10,2,10,6],[11,7,11,10],[12,7,12,10],[13,7,13,10],[15,1,15,10],[16,1,16,10],[17,1,17,10],[18,1,18,10],[19,1,19,10],[20,1,20,10]]}
["Schedule of Rental Income (SRI)  -  1. Checklist & Certification",null,null,null,null,null,null,null,null,null,"2024-09-04"]
["Begin with a freshly downloaded SRI from HCD's website at:",null,null,null,null,"https://www.hcd.ca.gov/grants-and-funding/reporting-and-compliance-loan-programs",null,null,null,null,null,null,null,null,null,1]
["Use 'Paste Values' rather than 'Paste' if copying data from another workbook. Pasted data must meet data validation criteria or formulas will not work. This is a Macro-Enabled workbook (*.xlsm); macros must be enabled so worksheets, columns and rows become visible. See 'Instructions' worksheet to unblock macros. Macros may not work with Apple Mac Excel versions. Complete all yellow shaded cells. Click on or mouse over cells for instructions. Contact your HCD Rep for assistance.",null,null,null,null,null,null,null,null,null,null,null,null,null,null,2]
["A. Project Information",null,null,{"$f":"IF(A22<>\"Yes\",\"\",\"CALDAP/DPRLP enter applicable CPI:\")","v":""},null,null,{"$f":"IF(A22<>\"Yes\",\"\",IF(AND(B14=2025,OR(E14=\"Jan 1-Dec 31\",E14=\"\")),0.046,IF(AND(B14=2025,E14<>\"Jan 1-Dec 31\"),0.08,IF(AND(B14=2024,OR(E14=\"Jan 1-Dec 31\",E14=\"\")),0.08,IF(AND(B14=2024,E14<>\"Jan 1-Dec 31\"),0.05,IF(AND(B14=2023,OR(E14=\"Jan 1-Dec 31\",E14=\"\")),0.05,IF(AND(B14=2023,E14<>\"Jan 1-Dec 31\"),0.015,\"\")))))))","v":""},null,null,null,null,null,null,null,null,3]
["Select the # of HCD Regulatory Agreements (RA) on the Project (include ACC):",null,null,null,null,null,1,null,null,null,null,null,null,null,null,4]
["Project Name:"]
["RA #1:",null,null,null,{"$f":"IF($G$5=\"\",\"RA #3:\",IF($G$5<3,\"\",\"RA #3:\"))","v":""},null,null,null,null,null,null,{"$f":"CONCATENATE('1. Checklist & Certification'!C7,\",\",'1. Checklist & Certification'!C8,\",\",'1. Checklist & Certification'!F7,\",\",'1. Checklist & Certification'!F8)","v":",,,"}]
[{"$f":"IF($G$5=\"\",\"RA #2:\",IF($G$5<2,\"\",\"RA #2:\"))","v":""},null,null,null,{"$f":"IF($G$5=\"\",\"RA #4:\",IF($G$5<4,\"\",\"RA #4:\"))","v":""}]
["City:",null,null,null,"County:"]
["Sponsor Name:",null,null,null,null,null,null," "]
["Sponsor #2 Name:"]
["Property Management Agent:"]
["Prepared By:",null,null,null,"Phone #:"]
["Fiscal Year:",2025,"Report Period Mo/Day:",null,null,"Total Units:"]
["B. HCD Funding in the Project (select Yes or No for each category indicating all HCD Program funding the Project received)",null,null,null,null,null,null,null,null,null,null,null,{"$f":"SUM(M16:M20)","v":0},{"$f":"IFERROR(_xlfn.IFS(N16=1,\"One\",N16=2,\"Two\",N16=3,\"Three\",N16=4,\"Four\",N16=5,\"Five\",N16=6,\"Six\",N16=7,\"Seven\",N16=8,\"Eight\"),\"One\")","v":"One"}]
[null,"ACC, AHSC, FMTW, FWHG, GHI, HHC, HLCP, HOME, HYMHP, IIG, LPR, MHP, NHTF, NPLH, NSP, PRP, SHMHP, TOD, VHHP",null,null,null,null,null,null,null,null,null,null,{"$f":"IF(AND(A16<>\"Yes\",A17<>\"Yes\"),0,1)","v":0},{"$f":"SUM(M16:M22)","v":0}]
[null,"Loan Portfolio Restructuring AB 1699 (LPR)"]
[null,"Portfolio Reinvestment Program (PRP)"]
[null,"Joe Serna, Jr. Farmworker Housing Grant Program (FWHG); Housing Loan Conversion Program (HLCP)",null,null,null,null,null,null,null,null,null,null,{"$f":"IF(A19<>\"Yes\",0,2)","v":0}]
[null,"Family Housing Demonstration Program (FHDP); Rental Housing Construction Program - Bond (RHCP)",null,null,null,null,null,null,null,null,null,null,{"$f":"IF(A20<>\"Yes\",0,4)","v":0}]
[null,"California Housing Rehab Program - Rental (CHRP); State Earthquake Rehab Assistance (SERA); Special User Housing Rehab (SUHRP)",null,null,null,null,null,null,null,null,null,null,{"$f":"IF(A21<>\"Yes\",0,6)","v":0}]
[null,"California Natural Disaster Assistance Program - Rental (CALDAP); Deferred Payment Rehabilitation Loan Program - Rental (DPRLP)",null,null,null,null,null,null,null,null,null,null,{"$f":"IF(A22<>\"Yes\",0,8)","v":0}]
["C. Utility Allowance Chart - if any same sized units in your Project use different monthly utility allowances, also complete Section D. Submit with SRI: the local housing authority current utility allowance chart, with relevant components circled.",null,null,"D. Additional Utility Allowance Charts - for projects with more than one group of utility allowances: If different buildings or groups of units have different monthly utility allowances, complete additional charts B, C, D, and E as necessary. On  \"2. Assisted Units\", place the corresponding HCD Reference Letter, followed by an asterisk, in front of the unit number to distinguish the associated building. (example: if unit 201 is located in building B, the unit number must show as \"B*201\". Don't place a blank between the letter, asterisk, or number). Submit with SRI: local housing authority current utility allowance chart, with relevant components circled."]
["Unit Size","Mo. Allowance",null,"HCD Reference Letter: B*",null,"HCD Reference Letter: C*",null,"HCD Reference Letter: D*",null,"HCD Reference Letter: E*"]
[null,null,null,"Your Bldg ID",null,"Your Bldg ID",null,"Your Bldg ID",null,"Your Bldg ID"]
["Ghocc",null,null,"Ghocc",null,"Ghocc",null,"Ghocc",null,"Ghocc"]
[0,null,null,0,null,0,null,0,null,0]
[1,null,null,1,null,1,null,1,null,1]
[2,null,null,2,null,2,null,2,null,2]
[3,null,null,3,null,3,null,3,null,3]
[4,null,null,4,null,4,null,4,null,4]
[5,null,null,5,null,5,null,5,null,5]
["E1. Rent Adjustment Factor Calculation (refer to RHCP-B or FHDP Regulatory Agreement Exhibit B and the HCD Approved Operating Budget)"]
[null,"Total number of Assisted units per Regulatory Agreement Exhibit B",null,null,null,null,null,"Total units per Regulatory Agreement",null,null,{"$f":"G14","v":0}]
[null,"Approved Replacement Reserve deposit - Budget worksheet '7. AMC 175 HCD Apprvd Cash Flow' Line 34, Column H"]
[{"$f":"IF(B14-1<1,\"\",B14-1)","v":2024},"Approved Total Cost of Operations (all units) - Budget worksheet '7. AMC 175 HCD Apprvd Cash Flow' Line 25, Column H"]
[null,"Proration Percentage-Assisted to Total units (if different proration is used, enter the % and explain proration method below)",null,null,null,null,null,null,null,null,{"$f":"IF(G34=\"\",\"\",G34/K34)","v":""}]
[]
[{"$f":"IF(A20<>\"Yes\",\"\",IF(AND(B14=2025,OR(E14=\"Jan 1-Dec 31\",E14=\"\")),2025,IF(AND(B14=2025,E14<>\"Jan 1-Dec 31\"),2024,IF(AND(B14=2024,OR(E14=\"Jan 1-Dec 31\",E14=\"\")),2024,IF(AND(B14=2024,E14<>\"Jan 1-Dec 31\"),2023,IF(AND(B14=2023,OR(E14=\"Jan 1-Dec 31\",E14=\"\")),2023,IF(AND(B14=2023,E14<>\"Jan 1-Dec 31\"),2022,\"\")))))))","v":""},"CPI Factor (effective year is shown in cell to the left; the beginning year of the reporting period; 2025 for 7/1/25 to 6/30/26)",null,null,null,null,null,null,null,null,{"$f":"IFERROR(_xlfn.IFS(A39=2025,0.046,A39=2024,0.08,A39=2023,0.05,A39=2022,0.015),\"\")","v":""}]
[{"$f":"A36","v":2024},"Approved Total Cost of Operations (Assisted units only)",null,null,null,null,null,null,null,null,{"$f":"IF(K37=\"\",\"\",K36*K37)","v":""}]
[null,"Approved Required Reserve deposit (Assisted units only)",null,null,null,null,null,null,null,null,{"$f":"IF(K37=\"\",\"\",K35*K37)","v":""}]
[{"$f":"A36","v":2024},"Approved Total Revenue (Assisted units) - Budget worksheet '7. AMC 175 HCD Apprvd Cash Flow' Line 24, Column B"]
[{"$f":"B14","v":2025},"Rent Adjustment Factor",null,null,null,null,null,null,null,null,{"$f":"IF(G34=\"\",\"\",(((K40+K41)/K42)*K39))","v":""}]
["E2. Rent Adjustment Factor Calculation (refer to the HCD approved CHRP, SERA, SUHRP Approved Operating Budget)"]
[{"$f":"IF(A21<>\"Yes\",\"\",IF(AND(B14=2025,OR(E14=\"Jan 1-Dec 31\",E14=\"\")),2025,IF(AND(B14=2025,E14<>\"Jan 1-Dec 31\"),2024,IF(AND(B14=2024,OR(E14=\"Jan 1-Dec 31\",E14=\"\")),2024,IF(AND(B14=2024,E14<>\"Jan 1-Dec 31\"),2023,IF(AND(B14=2023,OR(E14=\"Jan 1-Dec 31\",E14=\"\")),2023,IF(AND(B14=2023,E14<>\"Jan 1-Dec 31\"),2022,\"\")))))))","v":""},"CPI Factor (effective year is shown in the cell to the left; the beginning year of the reporting period; 2025 for the 7/1/25 to 6/30/26 reporting period)",null,null,null,null,null,"% of CPI used (SERA projects check RA)?",null,1,{"$f":"IFERROR(IF(J45<>\"\",(_xlfn.IFS(A45=2025,0.046*J45,A45=2024,0.08*J45,A45=2023,0.05*J45,A45=2022,0.015*J45)),(_xlfn.IFS(A45=2024,0.08,A45=2023,0.05,A45=2022,0.015))),\"\")","v":""}]
[{"$f":"IF(B14-1<1,\"\",B14-1)","v":2024},"Approved Total Cost of Operations before Depreciation (residential only) - Budget worksheet '7. AMC 175 HCD Apprvd Cash Flow' Line 25, Columns B + D"]
[null,"Approved Required Replacement and Operating Reserve Deposits (residential only) - Budget worksheet '7. AMC 175 HCD Apprvd Cash Flow' Lines 34 and 35, Columns B + D"]
[{"$f":"A46","v":2024},"Approved Total Revenue (residential only) Budget worksheet '7. AMC 175 HCD Apprvd Cash Flow' Line 24, Columns B+D"]
[{"$f":"B14","v":2025},"Rent Adjustment Factor",null,null,null,null,null,null,null,null,{"$f":"IF(K46=\"\",\"\",((K46+K47)/K48)*K45)","v":""}]
["Checklist of Required Items",null,null,null,"Proposed\nRent Revenue\n(Account #5120)",null,"Project Based Subsidy","Tenant Based Subsidy","Proposed Tenant Assistance Payments\n(Account #5121)"]
[null,"1. Checklist & Certification"]
[null,"2. Assisted & Restricted Units",null,null,{"$f":"'2. Assisted & Restricted Units'!AY401","v":0},null,{"$f":"'2. Assisted & Restricted Units'!AZ400","v":0},{"$f":"'2. Assisted & Restricted Units'!AZ401-G52","v":0},{"$f":"G52+H52","v":0}]
[null,"3. Non-Restricted Units",null,null,{"$f":"'3. Non-Restricted Units'!F17","v":0},null,null,null,{"$f":"'3. Non-Restricted Units'!G17","v":0}]
[null,"4a-d. Unit Desig - do table(s) match the HCD RA(s) Exhibit B (unit mix)?",null,null,{"$f":"E52+E53","v":0},null,"Total Rent Revenue & Assistance Payments",null,{"$f":"I52+I53","v":0}]
["Explain any \"No\" answers in 1-4 above:"]
["Certification - after entering Certification Date below, review worksheet '2. Assisted & Restrcted Units' Column G for bright yellow cells. All household income recertifications and initial certifications must be completed/dated no more than one year prior to the Certification Date entered below. By completing this certification block, I certify that: Current tenant rents and other information submitted on this SRI are a true and accurate representation; tenants will be given the appropriate notification required by law of the rent adjustments approved by HCD; and I am authorized to provide this information."]
[]
["Certifier Type",null,"Certifier's Name",null,null,null,"Certifier's Title",null,null,null,"Certification Date"]
[null,null,"Phone No:",null,null,null,"Email:"]
["HCD Approval (HCD use only)",null,null,null,null,"By selecting \"Yes\", I, as HCD Representative hereby approve this SRI"]
[]
[]
[null,null,"HCD Representative's Name",null,null,null,"Title",null,null,null,"Approval Date"]
[null,null,null,null,"Approved\nRent Revenue\n(Account #5120)",null,"Project Based Subsidy","Tenant Based Subsidy","Approved Tenant Assistance Payments\n(Account #5121)"]
[]
[null,"2. Assisted & Restricted Units",null,null,{"$f":"'2. Assisted & Restricted Units'!AX401","v":0},null,{"$f":"'2. Assisted & Restricted Units'!AZ400","v":0},{"$f":"'2. Assisted & Restricted Units'!AZ401-$G$52","v":0},{"$f":"G66+H66","v":0}]
[null,"3. Non-Restricted Units",null,null,{"$f":"'3. Non-Restricted Units'!F17","v":0},null,null,null,{"$f":"'3. Non-Restricted Units'!G17","v":0}]
["Blue shaded amounts must match Project budget",null,null,null,{"$f":"E66+E67","v":0},null,"Totals",null,{"$f":"I66+I67","v":0}]
["Failed to restrict # of Assisted units?",null,"If cured, enter cure date here","Failed to restrict occupancy to SNP, SH, or other?",null,null,"If cured, enter cure date here","Implemented rent increase without approval or charged excess rents?",null,null,"If cured, enter cure date here"]
["HCD comments including row above - negative points assessment and cure information"]

{"sheet":"Dropdowns","index":2,"n_rows":59,"n_cols":8,"rows_kept":59,"cut":false,"hidden":true,"merged":[]}
["COUNTIES",null,null,"Program Accronym Corrections"]
["Alameda",null,null,"Input","Correction",null,"mph",{"$f":"_xlfn.XLOOKUP(G2,SpellCheck[Input],SpellCheck[Correction],G2)","v":"MHP"}]
["Alpine",null,null,"AHCS","AHSC",null,"MHP",{"$f":"_xlfn.XLOOKUP(G3,SpellCheck[Input],SpellCheck[Correction],G3)","v":"MHP"}]
["Amador",null,null,"ASCH","AHSC",null,"llrp",{"$f":"_xlfn.XLOOKUP(G4,SpellCheck[Input],SpellCheck[Correction],G4)","v":"llrp"}]
["Butte",null,null,"CHIRP","CHRP",null,"lrp",{"$f":"_xlfn.XLOOKUP(G5,SpellCheck[Input],SpellCheck[Correction],G5)","v":"LPR"}]
["Calaveras",null,null,"CHPR","CHRP"]
["Colusa",null,null,"FWGG","FWHG"]
["Contra Costa",null,null,"FWGH","FWHG"]
["Del Norte",null,null,"HYMP","HYMHP"]
["El Dorado",null,null,"HYMPH","HYMHP"]
["Fresno",null,null,"LPRC","LPR"]
["Glenn",null,null,"LRP","LPR"]
["Humboldt",null,null,"MH","MHP"]
["Imperial",null,null,"MHO","MHP"]
["Inyo",null,null,"MHPSH","SHMHP"]
["Kern",null,null,"MPH","MHP"]
["Kings",null,null,"NLPH","NPLH"]
["Lake",null,null,"RHCO","RHCPO"]
["Lassen",null,null,"RHCPB","RHCP"]
["Los Angeles",null,null,"SHMP","SHMHP"]
["Madera",null,null,"SHMPH","SHMHP"]
["Marin",null,null,"SHMSP","SHMHP"]
["Mariposa",null,null,"SHURP","SUHRP"]
["Mendocino"]
["Merced"]
["Modoc"]
["Mono"]
["Monterey"]
["Napa"]
["Nevada"]
["Orange"]
["Placer"]
["Plumas"]
["Riverside"]
["Sacramento"]
["San Benito"]
["San Bernardino"]
["San Diego"]
["San Francisco"]
["San Joaquin"]
["San Luis Obispo"]
["San Mateo"]
["Santa Barbara"]
["Santa Clara"]
["Santa Cruz"]
["Shasta"]
["Sierra"]
["Siskiyou"]
["Solano"]
["Sonoma"]
["Stanislaus"]
["Sutter"]
["Tehama"]
["Trinity"]
["Tulare"]
["Tuolumne"]
["Ventura"]
["Yolo"]
["Yuba"]

{"sheet":"MHP Family Income & Rent Limits","index":3,"n_rows":259,"n_cols":55,"rows_kept":259,"cut":false,"hidden":true,"merged":[[7,0,7,4],[7,5,7,7],[7,8,7,9],[8,0,8,4],[8,5,8,9],[6,0,6,1],[6,4,6,5],[0,0,0,10],[1,1,1,6],[1,7,1,9],[1,10,1,11],[3,4,3,6],[3,7,3,8],[4,0,4,4],[4,5,4,11],[5,0,5,6],[2,2,2,8],[2,10,2,11],[6,6,6,7],[47,0,47,12],[49,4,49,11],[49,12,49,19],[10,14,10,21],[10,4,10,11],[10,13,11,13],[43,0,43,11],[44,0,44,12],[27,4,27,11],[34,13,35,13]]}
["2024 Income and Rent Limit Calculator (for calculating Multifamily Tax Subsidy Projects (MTSP) AMI Income and Rent Limits)1\nUsed for Affordable Housing Sustainable Communities (AHSC), California Housing Accelerator (CHAP), Families Moving to Work (FMTW), Governor's Homeless Initiative (GHI), Housing for a Healthy California (HHC), HOME Investment Partnership Program (HOME - CHDO), Homeless Youth (HYMHP), Loan Portfolio Restructuring (LPR), Multifamily Housing Program (MHP), National Housing Trust Fund (NHTF), Neighborhood Stabilization Program (NSP), No Place Like Home (NPLH), Portfolio Reinvestment Program (PRP), Supportive Housing MHP (SHMHP), TOD Housing (TOD), and Veterans Housing and Homelessness Prevention Program (VHHP).\n*Projects may rely on the prior year income limits when its PIS or gross rent floor is within the first 45 days of the HUD Fiscal Year Income Limits effective date. Selecting the prior year may increase or decrease project income and/or rent limits - if (4) or (6) is shaded in red, date is within 45 day grace period; see cell comments.",null,null,null,null,null,null,null,null,null,null,{"$f":"'1. Checklist & Certification'!K1","v":"2024-09-04"},null,null,null,null,null,null,null,null,null,null,null,null,null,null,null,null,null,null,null,null,"Range","PIS Dates","Start","End","Range","Rent Floor Dates","Start","End","45 day start","45 day end","PIS","45 day start","45 day end","Rent Floor","Date Range","Yes Tax Credits - PIS Docs","Yes_1 Tax Credits - Rent Floor Docs"]
["(1)  Project Name:",{"$f":"'1. Checklist & Certification'!C6","v":0},null,null,null,null,null,"(2)  What county is the Project located:",null,null,{"$f":"'1. Checklist & Certification'!F9","v":0},null,null,null,null,null,null,null,null,null,null,null,null,null,null,null,null,null,null,null,null,"4% Housing Tax Credits",{"$f":"IF('MHP Family Income & Rent Limits'!$J$3>=AI2,1,0)","v":0},"On or After 4/1/24","2024-04-01",null,{"$f":"IF('MHP Family Income & Rent Limits'!$C$7>=AM2,1,0)","v":0},"On or After 4/1/24","2024-04-01",null,"2024-04-01","2024-05-15",{"$f":"IF(AND('MHP Family Income & Rent Limits'!$J$3>=AO2,'MHP Family Income & Rent Limits'!$J$3<=AP2),1,0)","v":0},"2024-04-01","2024-05-15",{"$f":"IF(AND('MHP Family Income & Rent Limits'!$C$7>=AR2,'MHP Family Income & Rent Limits'!$C$7<=AS2),1,0)","v":0},"On or After 4/1/24","IRS Form 8609","IRS Form 8609"]
["(3) Tax Credit Project?",null,"(4)* Enter date the first building in project was placed in service:",null,null,null,null,null,null,null,{"$f":"IF(J3=\"\",\"\",AG22)","v":""},null,null,null,null,null,null,null,null,null,null,null,null,null,null,null,null,null,null,null,null,"9% Housing Tax Credits",{"$f":"IF(AND('MHP Family Income & Rent Limits'!$J$3>=AI3,'MHP Family Income & Rent Limits'!$J$3<=AJ3),1,0)","v":0},"5/15/23 - 3/31/24","2023-05-15","2024-03-31",{"$f":"IF(AND('MHP Family Income & Rent Limits'!$C$7>=AM3,'MHP Family Income & Rent Limits'!$C$7<=AN3),1,0)","v":0},"5/15/23 - 3/31/24","2023-05-15","2024-03-31","2023-05-15","2023-06-28",{"$f":"IF(AND('MHP Family Income & Rent Limits'!$J$3>=AO3,'MHP Family Income & Rent Limits'!$J$3<=AP3),1,0)","v":0},"2023-05-15","2023-06-28",{"$f":"IF(AND('MHP Family Income & Rent Limits'!$C$7>=AR3,'MHP Family Income & Rent Limits'!$C$7<=AS3),1,0)","v":0},"5/15/23 - 3/31/24","Temporary Certificate of Occupancy","TCAC Project Staff Report (4%)"]
["(5) Documentation supporting PIS date (see below, HCD to obtain):",null,null,null,null,null,null,{"$f":"IF(K3=\"Before 1/1/09\",\"Not Required\",\"\")","v":""},null,null,null,null,null,null,null,null,null,null,null,null,null,null,null,null,null,null,null,null,null,null,null,"Tax-Exempt Bonds",{"$f":"IF(AND('MHP Family Income & Rent Limits'!$J$3>=AI4,'MHP Family Income & Rent Limits'!$J$3<=AJ4),1,0)","v":0},"4/18/22 - 5/14/23","2022-04-18","2023-05-14",{"$f":"IF(AND('MHP Family Income & Rent Limits'!$C$7>=AM4,'MHP Family Income & Rent Limits'!$C$7<=AN4),1,0)","v":0},"4/18/22 - 5/14/23","2022-04-18","2023-05-14","2022-04-18","2022-06-01",{"$f":"IF(AND('MHP Family Income & Rent Limits'!$J$3>=AO4,'MHP Family Income & Rent Limits'!$J$3<=AP4),1,0)","v":0},"2022-04-18","2022-06-01",{"$f":"IF(AND('MHP Family Income & Rent Limits'!$C$7>=AR4,'MHP Family Income & Rent Limits'!$C$7<=AS4),1,0)","v":0},"4/18/22 - 5/14/23","Certificate of Occupancy","TCAC Carryover Allocation Agrmnt (9%)"]
["Tax Credit Projects - PIS Documentation\nAll projects- IRS Form 8609 line 5 (if unavailable, use other documentation below)\nNew Construction- first building Temporary Certificate of Occupancy (TCO); if none, Permanent Certificate of Occupancy (CO).  If unavailable, Sponsor to obtain letter from tax professional stating the PIS date and how it was determined.\nAcq/Rehab or Rehab - Sponsor to obtain letter from tax professional stating the PIS date and how it was determined.\n",null,null,null,null,"Non-Tax Credit Projects - PIS Documentation\nNew Construction - first building Temporary Certificate of Occupancy (TCO); if none, Permanent Certificate of Occupancy (CO).\nAcq/Rehab - if building was occupied or ready for occupancy on date of transfer to current owner - title policy, title report or other official record, such as grant deed showing property transfer date (use transfer date). If building was unoccupied at transfer, TCO; if none, Permanent CO.\nRehab - if building was occupied during rehab - HCD Award Letter date. If building was unoccupied, TCO; if none, Permanent CO.",null,null,null,null,null,null,null,null,null,null,null,null,null,null,null,null,null,null,null,null,null,null,null,null,null,"HOME",{"$f":"IF(AND('MHP Family Income & Rent Limits'!$J$3>=AI5,'MHP Family Income & Rent Limits'!$J$3<=AJ5),1,0)","v":0},"4/1/21 - 4/17/22","2021-04-01","2022-04-17",{"$f":"IF(AND('MHP Family Income & Rent Limits'!$C$7>=AM5,'MHP Family Income & Rent Limits'!$C$7<=AN5),1,0)","v":0},"4/1/21 - 4/17/22","2021-04-01","2022-04-17","2021-04-01","2021-05-15",{"$f":"IF(AND('MHP Family Income & Rent Limits'!$J$3>=AO5,'MHP Family Income & Rent Limits'!$J$3<=AP5),1,0)","v":0},"2021-04-01","2021-05-15",{"$f":"IF(AND('MHP Family Income & Rent Limits'!$C$7>=AR5,'MHP Family Income & Rent Limits'!$C$7<=AS5),1,0)","v":0},"4/1/21 - 4/17/22","Letter from tax professional","Proxy - HCD use only"]
["If HERA Special Eligilbe is Yes, project is subject to the current HERA Special income and rent limits:",null,null,null,null,null,null,{"$f":"IF(AND(OR($K$2=\"Marin\",$K$2=\"Nevada\",$K$2=\"San Francisco\",$K$2=\"San Mateo\",$K$2=\"Santa Clara\"),(K3=\"Before 1/1/09\")),\"Yes\",\"No\")","v":"No"},null,null,null,null,null,null,null,null,null,null,null,null,null,null,null,null,null,null,null,null,null,null,null,"NSP",{"$f":"IF(AND('MHP Family Income & Rent Limits'!$J$3>=AI6,'MHP Family Income & Rent Limits'!$J$3<=AJ6),1,0)","v":0},"4/1/20 - 3/31/21","2020-04-01","2021-03-31",{"$f":"IF(AND('MHP Family Income & Rent Limits'!$C$7>=AM6,'MHP Family Income & Rent Limits'!$C$7<=AN6),1,0)","v":0},"4/1/20 - 3/31/21","2020-04-01","2021-03-31","2020-04-01","2020-05-15",{"$f":"IF(AND('MHP Family Income & Rent Limits'!$J$3>=AO6,'MHP Family Income & Rent Limits'!$J$3<=AP6),1,0)","v":0},"2020-04-01","2020-05-15",{"$f":"IF(AND('MHP Family Income & Rent Limits'!$C$7>=AR6,'MHP Family Income & Rent Limits'!$C$7<=AS6),1,0)","v":0},"4/1/20 - 3/31/21","Building Permit, Other","No_1 Tax Credits - Rent Floor Docs"]
["(6)* Gross Rent Floor date:",null,null,{"$f":"IF(K3=\"Before 1/1/09\",\"N/A\",\"\")","v":""},{"$f":"IF(C7=\"\",\"\",AK22)","v":""},null,{"$f":"IF(K3=\"Before 1/1/09\",\"Not Required\",\"\")","v":""},null,null,null,null,null,null,null,null,null,null,null,null,null,null,null,null,null,null,null,null,null,null,null,null,"Housing Trust Fund",{"$f":"IF(AND('MHP Family Income & Rent Limits'!$J$3>=AI7,'MHP Family Income & Rent Limits'!$J$3<=AJ7),1,0)","v":0},"4/24/19 - 3/31/20","2019-04-24","2020-03-31",{"$f":"IF(AND('MHP Family Income & Rent Limits'!$C$7>=AM7,'MHP Family Income & Rent Limits'!$C$7<=AN7),1,0)","v":0},"4/24/19 - 3/31/20","2019-04-24","2020-03-31","2019-04-24","2019-06-07",{"$f":"IF(AND('MHP Family Income & Rent Limits'!$J$3>=AO7,'MHP Family Income & Rent Limits'!$J$3<=AP7),1,0)","v":0},"2019-04-24","2019-06-07",{"$f":"IF(AND('MHP Family Income & Rent Limits'!$C$7>=AR7,'MHP Family Income & Rent Limits'!$C$7<=AS7),1,0)","v":0},"4/24/19 - 3/31/20","Proxy - HCD use only","HCD Award Letter"]
["(7) Documentation supporting the Gross Rent Floor date (see below, HCD to obtain):",null,null,null,null,null,null,null,{"$f":"IF(K3=\"Before 1/1/09\",\"Not Required\",\"\")","v":""},null,null,null,null,null,null,null,null,null,null,null,null,null,null,null,null,null,null,null,null,null,null,null,{"$f":"IF(AND('MHP Family Income & Rent Limits'!$J$3>=AI8,'MHP Family Income & Rent Limits'!$J$3<=AJ8),1,0)","v":0},"4/1/18 - 4/23/19","2018-04-01","2019-04-23",{"$f":"IF(AND('MHP Family Income & Rent Limits'!$C$7>=AM8,'MHP Family Income & Rent Limits'!$C$7<=AN8),1,0)","v":0},"4/1/18 - 4/23/19","2018-04-01","2019-04-23","2018-04-01","2018-05-15",{"$f":"IF(AND('MHP Family Income & Rent Limits'!$J$3>=AO8,'MHP Family Income & Rent Limits'!$J$3<=AP8),1,0)","v":0},"2018-04-01","2018-05-15",{"$f":"IF(AND('MHP Family Income & Rent Limits'!$C$7>=AR8,'MHP Family Income & Rent Limits'!$C$7<=AS8),1,0)","v":0},"4/1/18 - 4/23/19","No Tax Credits - PIS Docs","Proxy - HCD use only"]
["TAX CREDIT PROJECTS\nIRS Form 8609 line 1a (if not available, obtain other documentation below)\n9% tax credit projects - TCAC Carryover Allocation Agreement - execution date.\n4% tax credit projects - TCAC preliminary reservation (Staff Report) - report date.",null,null,null,null,"Non-Tax Credit Projects - Gross Rent Floor date documentation\nHCD Award Letter - letter date.",null,null,null,null,{"$f":"IF(B3=\"Yes\",\"Yes_1\",\"No_1\")","v":"No_1"},null,null,null,null,null,null,null,null,null,null,null,null,null,null,null,null,null,null,null,null,null,{"$f":"IF(AND('MHP Family Income & Rent Limits'!$J$3>=AI9,'MHP Family Income & Rent Limits'!$J$3<=AJ9),1,0)","v":0},"4/14/17 - 3/31/18","2017-04-14","2018-03-31",{"$f":"IF(AND('MHP Family Income & Rent Limits'!$C$7>=AM9,'MHP Family Income & Rent Limits'!$C$7<=AN9),1,0)","v":0},"4/14/17 - 3/31/18","2017-04-14","2018-03-31","2017-04-14","2017-05-28",{"$f":"IF(AND('MHP Family Income & Rent Limits'!$J$3>=AO9,'MHP Family Income & Rent Limits'!$J$3<=AP9),1,0)","v":0},"2017-04-14","2017-05-28",{"$f":"IF(AND('MHP Family Income & Rent Limits'!$C$7>=AR9,'MHP Family Income & Rent Limits'!$C$7<=AS9),1,0)","v":0},"4/14/17 - 3/31/18","Temporary Certificate of Occupancy"]
[null,null,null,"INCOME LIMITS",null,{"$f":"CONCATENATE(\"based on \",IF(H6=\"Yes\",\"Current MTSP HERA Special Income Limits\",IFERROR(VLOOKUP($M20,W52:X70,2,FALSE),\"\")))","v":"based on "},null,null,null,null,null,null,null,"INCOME LIMITS USED FOR RENTS",null,null,null,null,null,null,null,null,null,null,null,null,null,null,null,null,null,null,{"$f":"IF(AND('MHP Family Income & Rent Limits'!$J$3>=AI10,'MHP Family Income & Rent Limits'!$J$3<=AJ10),1,0)","v":0},"3/28/16 - 4/13/17","2016-03-28","2017-04-13",{"$f":"IF(AND('MHP Family Income & Rent Limits'!$C$7>=AM10,'MHP Family Income & Rent Limits'!$C$7<=AN10),1,0)","v":0},"3/28/16 - 4/13/17","2016-03-28","2017-04-13","2016-03-28","2016-05-11",{"$f":"IF(AND('MHP Family Income & Rent Limits'!$J$3>=AO10,'MHP Family Income & Rent Limits'!$J$3<=AP10),1,0)","v":0},"2016-03-28","2016-05-11",{"$f":"IF(AND('MHP Family Income & Rent Limits'!$C$7>=AR10,'MHP Family Income & Rent Limits'!$C$7<=AS10),1,0)","v":0},"3/28/16 - 4/13/17","Certificate of Occupancy"]
[null,null,null,null,"Number of Household Members",null,null,null,null,null,null,null,null,"AMI %","Number of Household Members",null,null,null,null,null,null,null,null,null,null,null,null,null,null,null,null,null,{"$f":"IF(AND('MHP Family Income & Rent Limits'!$J$3>=AI11,'MHP Family Income & Rent Limits'!$J$3<=AJ11),1,0)","v":0},"3/6/15 - 3/27/16","2015-03-06","2016-03-27",{"$f":"IF(AND('MHP Family Income & Rent Limits'!$C$7>=AM11,'MHP Family Income & Rent Limits'!$C$7<=AN11),1,0)","v":0},"3/6/15 - 3/27/16","2015-03-06","2016-03-27","2015-03-06","2015-04-19",{"$f":"IF(AND('MHP Family Income & Rent Limits'!$J$3>=AO11,'MHP Family Income & Rent Limits'!$J$3<=AP11),1,0)","v":0},"2015-03-06","2015-04-19",{"$f":"IF(AND('MHP Family Income & Rent Limits'!$C$7>=AR11,'MHP Family Income & Rent Limits'!$C$7<=AS11),1,0)","v":0},"3/6/15 - 3/27/16","HCD Award Letter"]
[null,null,null,"AMI %","1","2","3","4","5","6","7","8",null,null,1,2,3,4,5,6,7,8,null,null,null,null,null,null,null,null,null,null,{"$f":"IF(AND('MHP Family Income & Rent Limits'!$J$3>=AI12,'MHP Family Income & Rent Limits'!$J$3<=AJ12),1,0)","v":0},"12/18/13 - 3/5/15","2013-12-18","2015-03-05",{"$f":"IF(AND('MHP Family Income & Rent Limits'!$C$7>=AM12,'MHP Family Income & Rent Limits'!$C$7<=AN12),1,0)","v":0},"12/18/13 - 3/5/15","2013-12-18","2015-03-05","2013-12-18","2014-01-31",{"$f":"IF(AND('MHP Family Income & Rent Limits'!$J$3>=AO12,'MHP Family Income & Rent Limits'!$J$3<=AP12),1,0)","v":0},"2013-12-18","2014-01-31",{"$f":"IF(AND('MHP Family Income & Rent Limits'!$C$7>=AR12,'MHP Family Income & Rent Limits'!$C$7<=AS12),1,0)","v":0},"12/18/13 - 3/5/15","Grant Deed, Title Report, other official doc",null,null,null,"Worksheet Tab","Range","Existing Phrase","New Phrase"]
[null,null,null,15,{"$f":"+IF(OR($K$2=0,$K$3=0),\"\",E20*2*0.15)","v":""},"","","","","","","",null,15,{"$f":"O20*2*0.15","v":0},0,0,0,0,0,0,0,null,null,null,null,null,null,null,null,null,null,{"$f":"IF(AND('MHP Family Income & Rent Limits'!$J$3>=AI13,'MHP Family Income & Rent Limits'!$J$3<=AJ13),1,0)","v":0},"12/4/12 - 12/17/13","2012-12-04","2013-12-17",{"$f":"IF(AND('MHP Family Income & Rent Limits'!$C$7>=AM13,'MHP Family Income & Rent Limits'!$C$7<=AN13),1,0)","v":0},"12/4/12 - 12/17/13","2012-12-04","2013-12-17","2012-12-04","2013-01-17",{"$f":"IF(AND('MHP Family Income & Rent Limits'!$J$3>=AO13,'MHP Family Income & Rent Limits'!$J$3<=AP13),1,0)","v":0},"2012-12-04","2013-01-17",{"$f":"IF(AND('MHP Family Income & Rent Limits'!$C$7>=AR13,'MHP Family Income & Rent Limits'!$C$7<=AS13),1,0)","v":0},"12/4/12 - 12/17/13","Proxy - HCD use only",null,null,null,"MHP Income-Rent Calculator","e13:J43","AMFI","AMI"]
[null,null,null,20,{"$f":"+IF(OR($K$2=0,$K$3=0),\"\",E20*2*0.2)","v":""},"","","","","","","",null,20,{"$f":"O20*2*0.2","v":0},0,0,0,0,0,0,0,null,null,null,null,null,null,null,null,null,null,{"$f":"IF(AND('MHP Family Income & Rent Limits'!$J$3>=AI14,'MHP Family Income & Rent Limits'!$J$3<=AJ14),1,0)","v":0},"12/1/11 - 12/3/12","2011-12-01","2012-12-03",{"$f":"IF(AND('MHP Family Income & Rent Limits'!$C$7>=AM14,'MHP Family Income & Rent Limits'!$C$7<=AN14),1,0)","v":0},"12/1/11 - 12/3/12","2011-12-01","2012-12-03","2011-12-01","2012-01-14",{"$f":"IF(AND('MHP Family Income & Rent Limits'!$J$3>=AO14,'MHP Family Income & Rent Limits'!$J$3<=AP14),1,0)","v":0},"2011-12-01","2012-01-14",{"$f":"IF(AND('MHP Family Income & Rent Limits'!$C$7>=AR14,'MHP Family Income & Rent Limits'!$C$7<=AS14),1,0)","v":0},"12/1/11 - 12/3/12"]
[null,null,null,25,{"$f":"+IF(OR($K$2=0,$K$3=0),\"\",E20*2*0.25)","v":""},"","","","","","","",null,25,{"$f":"O20*2*0.25","v":0},0,0,0,0,0,0,0,null,null,null,null,null,null,null,null,null,null,{"$f":"IF(AND('MHP Family Income & Rent Limits'!$J$3>=AI15,'MHP Family Income & Rent Limits'!$J$3<=AJ15),1,0)","v":0},"5/31/11 - 11/30/11","2011-05-31","2011-11-30",{"$f":"IF(AND('MHP Family Income & Rent Limits'!$C$7>=AM15,'MHP Family Income & Rent Limits'!$C$7<=AN15),1,0)","v":0},"5/31/11 - 11/30/11","2011-05-31","2011-11-30","2011-05-31","2011-07-14",{"$f":"IF(AND('MHP Family Income & Rent Limits'!$J$3>=AO15,'MHP Family Income & Rent Limits'!$J$3<=AP15),1,0)","v":0},"2011-05-31","2011-07-14",{"$f":"IF(AND('MHP Family Income & Rent Limits'!$C$7>=AR15,'MHP Family Income & Rent Limits'!$C$7<=AS15),1,0)","v":0},"5/31/11 - 11/30/11"]
[null,null,null,30,{"$f":"+IF(OR($K$2=0,$K$3=0),\"\",E20*2*0.3)","v":""},"","","","","","","",null,30,{"$f":"O20*2*0.3","v":0},0,0,0,0,0,0,0,null,null,null,null,null,null,null,null,null,null,{"$f":"IF(AND('MHP Family Income & Rent Limits'!$J$3>=AI16,'MHP Family Income & Rent Limits'!$J$3<=AJ16),1,0)","v":0},"5/14/10 - 5/30/11","2010-05-14","2011-05-30",{"$f":"IF(AND('MHP Family Income & Rent Limits'!$C$7>=AM16,'MHP Family Income & Rent Limits'!$C$7<=AN16),1,0)","v":0},"5/14/10 - 5/30/11","2010-05-14","2011-05-30","2010-05-14","2010-06-27",{"$f":"IF(AND('MHP Family Income & Rent Limits'!$J$3>=AO16,'MHP Family Income & Rent Limits'!$J$3<=AP16),1,0)","v":0},"2010-05-14","2010-06-27",{"$f":"IF(AND('MHP Family Income & Rent Limits'!$C$7>=AR16,'MHP Family Income & Rent Limits'!$C$7<=AS16),1,0)","v":0},"5/14/10 - 5/30/11"]
[null,null,null,35,{"$f":"+IF(OR($K$2=0,$K$3=0),\"\",E20*2*0.35)","v":""},"","","","","","","",null,35,{"$f":"O20*2*0.35","v":0},0,0,0,0,0,0,0,null,null,null,null,null,null,null,null,null,null,{"$f":"IF(AND('MHP Family Income & Rent Limits'!$J$3>=AI17,'MHP Family Income & Rent Limits'!$J$3<=AJ17),1,0)","v":0},"1/1/09 - 5/13/10","2009-01-01","2010-05-13",{"$f":"IF(AND('MHP Family Income & Rent Limits'!$C$7>=AM17,'MHP Family Income & Rent Limits'!$C$7<=AN17),1,0)","v":0},"3/19/09 - 5/13/10","2009-03-19","2010-05-13",null,null,null,"2009-03-19","2009-05-02",{"$f":"IF(AND('MHP Family Income & Rent Limits'!$C$7>=AR17,'MHP Family Income & Rent Limits'!$C$7<=AS17),1,0)","v":0},"3/19/09 - 5/13/10"]
[null,null,null,40,{"$f":"+IF(OR($K$2=0,$K$3=0),\"\",E20*2*0.4)","v":""},"","","","","","","",null,40,{"$f":"O20*2*0.4","v":0},0,0,0,0,0,0,0,null,null,null,null,null,null,null,null,null,null,{"$f":"IF('MHP Family Income & Rent Limits'!$J$3=\"\",0,IF('MHP Family Income & Rent Limits'!$J$3<=AI18,1,0))","v":0},"Before 1/1/09","2009-01-01",null,{"$f":"IF(AND('MHP Family Income & Rent Limits'!$C$7>=AM18,'MHP Family Income & Rent Limits'!$C$7<=AN18),1,0)","v":0},"2/13/08 - 3/18/09","2008-02-13","2009-03-18",null,null,null,"2008-02-13","2008-03-28",{"$f":"IF(AND('MHP Family Income & Rent Limits'!$C$7>=AR18,'MHP Family Income & Rent Limits'!$C$7<=AS18),1,0)","v":0},"2/13/08 - 3/18/09"]
[null,null,null,45,{"$f":"+IF(OR($K$2=0,$K$3=0),\"\",E20*2*0.45)","v":""},"","","","","","","",null,45,{"$f":"O20*2*0.45","v":0},0,0,0,0,0,0,0,null,null,null,null,null,null,null,null,null,null,null,null,null,null,{"$f":"IF(AND('MHP Family Income & Rent Limits'!$C$7>=AM19,'MHP Family Income & Rent Limits'!$C$7<=AN19),1,0)","v":0},"3/20/07 - 2/12/08","2007-03-20","2008-02-12",null,null,null,"2007-03-20","2007-05-03",{"$f":"IF(AND('MHP Family Income & Rent Limits'!$C$7>=AR19,'MHP Family Income & Rent Limits'!$C$7<=AS19),1,0)","v":0},"3/20/07 - 2/12/08"]
[null,null,null,50,{"$f":"IF(OR($K$2=0,$K$3=0),\"\",IF($H$6=\"Yes\",M52,MAX(IF($B$52:$B$70=1,E52:E70))))","v":""},{"$f":"IF(OR($K$2=0,$K$3=0),\"\",IF($H$6=\"Yes\",N52,MAX(IF($B$52:$B$70=1,F52:F70))))","v":""},{"$f":"IF(OR($K$2=0,$K$3=0),\"\",IF($H$6=\"Yes\",O52,MAX(IF($B$52:$B$70=1,G52:G70))))","v":""},{"$f":"IF(OR($K$2=0,$K$3=0),\"\",IF($H$6=\"Yes\",P52,MAX(IF($B$52:$B$70=1,H52:H70))))","v":""},{"$f":"IF(OR($K$2=0,$K$3=0),\"\",IF($H$6=\"Yes\",Q52,MAX(IF($B$52:$B$70=1,I52:I70))))","v":""},{"$f":"IF(OR($K$2=0,$K$3=0),\"\",IF($H$6=\"Yes\",R52,MAX(IF($B$52:$B$70=1,J52:J70))))","v":""},{"$f":"IF(OR($K$2=0,$K$3=0),\"\",IF($H$6=\"Yes\",S52,MAX(IF($B$52:$B$70=1,K52:K70))))","v":""},{"$f":"IF(OR($K$2=0,$K$3=0),\"\",IF($H$6=\"Yes\",T52,MAX(IF($B$52:$B$70=1,L52:L70))))","v":""},{"$f":"MAX(IF($V$52:$V$70=1,W52:W70))","v":{"$error":"#N/A"}},50,{"$f":"IF($H$6=\"Yes\",M52,MAX(IF($C$52:$C$70=1,E52:E70)))","v":0},{"$f":"IF($H$6=\"Yes\",N52,MAX(IF($C$52:$C$70=1,F52:F70)))","v":0},{"$f":"IF($H$6=\"Yes\",O52,MAX(IF($C$52:$C$70=1,G52:G70)))","v":0},{"$f":"IF($H$6=\"Yes\",P52,MAX(IF($C$52:$C$70=1,H52:H70)))","v":0},{"$f":"IF($H$6=\"Yes\",Q52,MAX(IF($C$52:$C$70=1,I52:I70)))","v":0},{"$f":"IF($H$6=\"Yes\",R52,MAX(IF($C$52:$C$70=1,J52:J70)))","v":0},{"$f":"IF($H$6=\"Yes\",S52,MAX(IF($C$52:$C$70=1,K52:K70)))","v":0},{"$f":"IF($H$6=\"Yes\",T52,MAX(IF($C$52:$C$70=1,L52:L70)))","v":0},{"$f":"MAX(IF($Z$52:$Z$70=1,AA52:AA70))","v":{"$error":"#N/A"}},null,null,null,null,null,null,null,null,null,null,null,null,null,{"$f":"IF(AND('MHP Family Income & Rent Limits'!$C$7>=AM20,'MHP Family Income & Rent Limits'!$C$7<=AN20),1,0)","v":0},"3/8/06 - 3/19/07","2006-03-08","2007-03-19",null,null,{"$f":"SUM(AQ2:AQ19)","v":0},null,null,{"$f":"SUM(AT2:AT19)","v":0}]
[null,null,null,55,{"$f":"+IF(OR($K$2=0,$K$3=0),\"\",E20*2*0.55)","v":""},"","","","","","","",null,55,{"$f":"O20*2*0.55","v":0},0,0,0,0,0,0,0,null,null,null,null,null,null,null,null,null,null,{"$f":"SUM(AG2:AG20)","v":0},null,null,null,{"$f":"SUM(AK2:AK20)","v":0}]
[null,null,null,60,{"$f":"+IF(OR($K$2=0,$K$3=0),\"\",E20*2*0.6)","v":""},"","","","","","","",null,60,{"$f":"O20*2*0.6","v":0},0,0,0,0,0,0,0,null,null,null,null,null,null,null,null,null,null,{"$f":"VLOOKUP(1,AG2:AH18,2,FALSE)","v":{"$error":"#N/A"}},null,null,null,{"$f":"VLOOKUP(1,AK2:AL20,2,FALSE)","v":{"$error":"#N/A"}}]
[null,null,null,65,{"$f":"+IF(OR($K$2=0,$K$3=0),\"\",E20*2*0.65)","v":""},"","","","","","",{"$f":"+IF(OR($K$2=0,$K$3=0),\"\",L20*2*0.655)","v":""},null,65,{"$f":"O20*2*0.65","v":0},0,0,0,0,0,0,{"$f":"V20*2*0.655","v":0}]
[null,null,null,70,{"$f":"+IF(OR($K$2=0,$K$3=0),\"\",E20*2*0.7)","v":""},"","","","","","","",null,70,{"$f":"O20*2*0.7","v":0},0,0,0,0,0,0,0]
[null,null,null,75,{"$f":"+IF(OR($K$2=0,$K$3=0),\"\",E20*2*0.75)","v":""},"","","","","","","",null,75,{"$f":"O20*2*0.75","v":0},0,0,0,0,0,0,0]
[null,null,null,80,{"$f":"+IF(OR($K$2=0,$K$3=0),\"\",E20*2*0.8)","v":""},"","","","","","","",null,80,{"$f":"O20*2*0.8","v":0},0,0,0,0,0,0,0]
[null,null,null,"RENT LIMITS",null,{"$f":"CONCATENATE(\"based on \",IF(H6=\"Yes\",\"Current MTSP HERA Special Income Limits\",IFERROR(VLOOKUP($W20,AA52:AB70,2,FALSE),\"\")))","v":"based on "}]
[null,null,null,null,"Number of Bedrooms"]
[null,null,null,"AMI %","0","1","2","3","4","5"]
[null,null,null,15,{"$f":"+IF(OR($K$2=0,$K$3=0),\"\",ROUNDDOWN(0.3*O13/12,0))","v":""},{"$f":"+IF(OR($K$2=0,$K$3=0),\"\",ROUNDDOWN(AVERAGE(O13,P13)/12*0.3,0))","v":""},{"$f":"+IF(OR($K$2=0,$K$3=0),\"\",ROUNDDOWN(0.3*Q13/12,0))","v":""},{"$f":"+IF(OR($K$2=0,$K$3=0),\"\",ROUNDDOWN(AVERAGE(R13,S13)/12*0.3,0))","v":""},{"$f":"+IF(OR($K$2=0,$K$3=0),\"\",ROUNDDOWN(0.3*T13/12,0))","v":""},{"$f":"+IF(OR($K$2=0,$K$3=0),\"\",ROUNDDOWN(AVERAGE(U13,V13)/12*0.3,0))","v":""}]
[null,null,null,20,"","","","","",""]
[null,null,null,25,"","","","","",""]
[null,null,null,30,"","","","","",""]
[null,null,null,35,"","","","","",""]
[null,null,null,40,"","","","","",""]
[null,null,null,45,"","","","","",""]
[null,null,null,50,"","","","","",""]
[null,null,null,55,"","","","","",""]
[null,null,null,60,"","","","","",""]
[null,null,null,65,"","","","","",""]
[null,null,null,70,"","","","","",""]
[null,null,null,75,"","","","","",""]
[null,null,null,80,"","","","","",""]
["1The calculator is provided to assist the determination of the rents and income limits applicable to specific projects given a set of project related information such as placed in service date. IRS Guidelines and actual HUD published data should be used for final decisions. Independent verification by accounting and tax professionals is encouraged.  Please contact your HCD Representative if you have questions, concerns, or if your determination of the income and rent limits differs from those using this tool."]
[]
[]
[]
[]
[]
[null,null,null,null,"MTSP Regular",null,null,null,null,null,null,null,"HERA Special"]
["Rent Floor","PIS","Rent",null,"1p 50%","2p 50%","3p 50%","4p 50%","5p 50%","6p 50%","7p 50%","8p 50%","1p 50%","2p 50%","3p 50%","4p 50%","5p 50%","6p 50%","7p 50%","8p 50%","Income",null,null,"MTSP Limits","Rents",null,null,"Rent Limits"]
[{"$f":"IF($E$7=AL20,1,0)","v":0},{"$f":"IF($K$3=AH18,1,0)","v":0},{"$f":"+IF((A52+B52)=2,1,A52+B52)","v":0},null,{"$f":"IF($H$6=\"Yes\",0,VLOOKUP($U52,'MTSP Limits'!$A$1:$K$1219,4,FALSE))","v":{"$error":"#N/A"}},{"$f":"IF($H$6=\"Yes\",0,VLOOKUP($U52,'MTSP Limits'!$A$1:$K$1219,5,FALSE))","v":{"$error":"#N/A"}},{"$f":"IF($H$6=\"Yes\",0,VLOOKUP($U52,'MTSP Limits'!$A$1:$K$1219,6,FALSE))","v":{"$error":"#N/A"}},{"$f":"IF($H$6=\"Yes\",0,VLOOKUP($U52,'MTSP Limits'!$A$1:$K$1219,7,FALSE))","v":{"$error":"#N/A"}},{"$f":"IF($H$6=\"Yes\",0,VLOOKUP($U52,'MTSP Limits'!$A$1:$K$1219,8,FALSE))","v":{"$error":"#N/A"}},{"$f":"IF($H$6=\"Yes\",0,VLOOKUP($U52,'MTSP Limits'!$A$1:$K$1219,9,FALSE))","v":{"$error":"#N/A"}},{"$f":"IF($H$6=\"Yes\",0,VLOOKUP($U52,'MTSP Limits'!$A$1:$K$1219,10,FALSE))","v":{"$error":"#N/A"}},{"$f":"IF($H$6=\"Yes\",0,VLOOKUP($U52,'MTSP Limits'!$A$1:$K$1219,11,FALSE))","v":{"$error":"#N/A"}},{"$f":"IF($H$6=\"No\",0,VLOOKUP($U52,'MTSP Limits'!$A$176:$S$233,12,FALSE))","v":0},{"$f":"IF($H$6=\"No\",0,VLOOKUP($U52,'MTSP Limits'!$A$176:$S$233,13,FALSE))","v":0},{"$f":"IF($H$6=\"No\",0,VLOOKUP($U52,'MTSP Limits'!$A$176:$S$233,14,FALSE))","v":0},{"$f":"IF($H$6=\"No\",0,VLOOKUP($U52,'MTSP Limits'!$A$176:$S$233,15,FALSE))","v":0},{"$f":"IF($H$6=\"No\",0,VLOOKUP($U52,'MTSP Limits'!$A$176:$S$233,16,FALSE))","v":0},{"$f":"IF($H$6=\"No\",0,VLOOKUP($U52,'MTSP Limits'!$A$176:$S$233,17,FALSE))","v":0},{"$f":"IF($H$6=\"No\",0,VLOOKUP($U52,'MTSP Limits'!$A$176:$S$233,18,FALSE))","v":0},{"$f":"IF($H$6=\"No\",0,VLOOKUP($U52,'MTSP Limits'!$A$176:$S$233,19,FALSE))","v":0},{"$f":"CONCATENATE($K$2,'MHP Family Income & Rent Limits'!AH18)","v":"0Before 1/1/09"},{"$f":"IF($E$20=E52,1,0)","v":{"$error":"#N/A"}},1,null,{"$f":"CONCATENATE($K$2,AL2)","v":"0On or After 4/1/24"},{"$f":"IF($O$20=E52,1,0)","v":{"$error":"#N/A"}},1,"2006 MTSP Regular Income Limits"]
[{"$f":"IF($E$7=AL19,1,0)","v":0},{"$f":"IF(OR(B52=1,$K$3=AH17),1,0)","v":0},0,null,{"$f":"IF($H$6=\"Yes\",0,VLOOKUP($U53,'MTSP Limits'!$A$1:$K$1219,4,FALSE))","v":{"$error":"#N/A"}},{"$f":"IF($H$6=\"Yes\",0,VLOOKUP($U53,'MTSP Limits'!$A$1:$K$1219,5,FALSE))","v":{"$error":"#N/A"}},{"$f":"IF($H$6=\"Yes\",0,VLOOKUP($U53,'MTSP Limits'!$A$1:$K$1219,6,FALSE))","v":{"$error":"#N/A"}},{"$f":"IF($H$6=\"Yes\",0,VLOOKUP($U53,'MTSP Limits'!$A$1:$K$1219,7,FALSE))","v":{"$error":"#N/A"}},{"$f":"IF($H$6=\"Yes\",0,VLOOKUP($U53,'MTSP Limits'!$A$1:$K$1219,8,FALSE))","v":{"$error":"#N/A"}},{"$f":"IF($H$6=\"Yes\",0,VLOOKUP($U53,'MTSP Limits'!$A$1:$K$1219,9,FALSE))","v":{"$error":"#N/A"}},{"$f":"IF($H$6=\"Yes\",0,VLOOKUP($U53,'MTSP Limits'!$A$1:$K$1219,10,FALSE))","v":{"$error":"#N/A"}},{"$f":"IF($H$6=\"Yes\",0,VLOOKUP($U53,'MTSP Limits'!$A$1:$K$1219,11,FALSE))","v":{"$error":"#N/A"}},null,null,null,null,null,null,null,null,{"$f":"CONCATENATE($K$2,'MHP Family Income & Rent Limits'!AH17)","v":"01/1/09 - 5/13/10"},{"$error":"#N/A"},2,null,{"$f":"CONCATENATE($K$2,AL3)","v":"05/15/23 - 3/31/24"},{"$error":"#N/A"},2,"2007 MTSP Regular Income Limits"]
[{"$f":"IF($E$7=AL18,1,0)","v":0},{"$f":"IF(OR(B52=1,$K$3=AH17),1,0)","v":0},0,null,{"$f":"IF($H$6=\"Yes\",0,VLOOKUP($U54,'MTSP Limits'!$A$1:$K$1219,4,FALSE))","v":{"$error":"#N/A"}},{"$f":"IF($H$6=\"Yes\",0,VLOOKUP($U54,'MTSP Limits'!$A$1:$K$1219,5,FALSE))","v":{"$error":"#N/A"}},{"$f":"IF($H$6=\"Yes\",0,VLOOKUP($U54,'MTSP Limits'!$A$1:$K$1219,6,FALSE))","v":{"$error":"#N/A"}},{"$f":"IF($H$6=\"Yes\",0,VLOOKUP($U54,'MTSP Limits'!$A$1:$K$1219,7,FALSE))","v":{"$error":"#N/A"}},{"$f":"IF($H$6=\"Yes\",0,VLOOKUP($U54,'MTSP Limits'!$A$1:$K$1219,8,FALSE))","v":{"$error":"#N/A"}},{"$f":"IF($H$6=\"Yes\",0,VLOOKUP($U54,'MTSP Limits'!$A$1:$K$1219,9,FALSE))","v":{"$error":"#N/A"}},{"$f":"IF($H$6=\"Yes\",0,VLOOKUP($U54,'MTSP Limits'!$A$1:$K$1219,10,FALSE))","v":{"$error":"#N/A"}},{"$f":"IF($H$6=\"Yes\",0,VLOOKUP($U54,'MTSP Limits'!$A$1:$K$1219,11,FALSE))","v":{"$error":"#N/A"}},null,null,null,null,null,null,null,null,{"$f":"CONCATENATE($K$2,'MHP Family Income & Rent Limits'!AH17)","v":"01/1/09 - 5/13/10"},{"$error":"#N/A"},3,null,"04/18/22 - 5/14/23",{"$error":"#N/A"},3,"2008 MTSP Regular Income Limits"]
[{"$f":"IF($E$7=AL17,1,0)","v":0},{"$f":"IF(OR(B52=1,$K$3=AH17),1,0)","v":0},0,null,{"$f":"IF($H$6=\"Yes\",0,VLOOKUP($U55,'MTSP Limits'!$A$1:$K$1219,4,FALSE))","v":{"$error":"#N/A"}},{"$f":"IF($H$6=\"Yes\",0,VLOOKUP($U55,'MTSP Limits'!$A$1:$K$1219,5,FALSE))","v":{"$error":"#N/A"}},{"$f":"IF($H$6=\"Yes\",0,VLOOKUP($U55,'MTSP Limits'!$A$1:$K$1219,6,FALSE))","v":{"$error":"#N/A"}},{"$f":"IF($H$6=\"Yes\",0,VLOOKUP($U55,'MTSP Limits'!$A$1:$K$1219,7,FALSE))","v":{"$error":"#N/A"}},{"$f":"IF($H$6=\"Yes\",0,VLOOKUP($U55,'MTSP Limits'!$A$1:$K$1219,8,FALSE))","v":{"$error":"#N/A"}},{"$f":"IF($H$6=\"Yes\",0,VLOOKUP($U55,'MTSP Limits'!$A$1:$K$1219,9,FALSE))","v":{"$error":"#N/A"}},{"$f":"IF($H$6=\"Yes\",0,VLOOKUP($U55,'MTSP Limits'!$A$1:$K$1219,10,FALSE))","v":{"$error":"#N/A"}},{"$f":"IF($H$6=\"Yes\",0,VLOOKUP($U55,'MTSP Limits'!$A$1:$K$1219,11,FALSE))","v":{"$error":"#N/A"}},null,null,null,null,null,null,null,null,{"$f":"CONCATENATE($K$2,'MHP Family Income & Rent Limits'!AH17)","v":"01/1/09 - 5/13/10"},{"$error":"#N/A"},4,"2009 MTSP Regular Income Limits","04/1/21 - 4/17/22",{"$error":"#N/A"},4,"2009 MTSP Regular Income Limits"]
[{"$f":"IF($E$7=AL16,1,0)","v":0},{"$f":"IF(OR(B55=1,$K$3=AH16),1,0)","v":0},0,null,{"$f":"IF($H$6=\"Yes\",0,VLOOKUP($U56,'MTSP Limits'!$A$1:$K$1219,4,FALSE))","v":{"$error":"#N/A"}},{"$f":"IF($H$6=\"Yes\",0,VLOOKUP($U56,'MTSP Limits'!$A$1:$K$1219,5,FALSE))","v":{"$error":"#N/A"}},{"$f":"IF($H$6=\"Yes\",0,VLOOKUP($U56,'MTSP Limits'!$A$1:$K$1219,6,FALSE))","v":{"$error":"#N/A"}},{"$f":"IF($H$6=\"Yes\",0,VLOOKUP($U56,'MTSP Limits'!$A$1:$K$1219,7,FALSE))","v":{"$error":"#N/A"}},{"$f":"IF($H$6=\"Yes\",0,VLOOKUP($U56,'MTSP Limits'!$A$1:$K$1219,8,FALSE))","v":{"$error":"#N/A"}},{"$f":"IF($H$6=\"Yes\",0,VLOOKUP($U56,'MTSP Limits'!$A$1:$K$1219,9,FALSE))","v":{"$error":"#N/A"}},{"$f":"IF($H$6=\"Yes\",0,VLOOKUP($U56,'MTSP Limits'!$A$1:$K$1219,10,FALSE))","v":{"$error":"#N/A"}},{"$f":"IF($H$6=\"Yes\",0,VLOOKUP($U56,'MTSP Limits'!$A$1:$K$1219,11,FALSE))","v":{"$error":"#N/A"}},null,null,null,null,null,null,null,null,{"$f":"CONCATENATE($K$2,'MHP Family Income & Rent Limits'!AH16)","v":"05/14/10 - 5/30/11"},{"$error":"#N/A"},5,"2010 MTSP Regular Income Limits","04/1/20 - 3/31/21",{"$error":"#N/A"},5,"2010 MTSP Regular Income Limits"]
[{"$f":"IF($E$7=AL15,1,0)","v":0},{"$f":"IF(OR(B56=1,$K$3=AH15),1,0)","v":0},0,null,{"$f":"IF($H$6=\"Yes\",0,VLOOKUP($U57,'MTSP Limits'!$A$1:$K$1219,4,FALSE))","v":{"$error":"#N/A"}},{"$f":"IF($H$6=\"Yes\",0,VLOOKUP($U57,'MTSP Limits'!$A$1:$K$1219,5,FALSE))","v":{"$error":"#N/A"}},{"$f":"IF($H$6=\"Yes\",0,VLOOKUP($U57,'MTSP Limits'!$A$1:$K$1219,6,FALSE))","v":{"$error":"#N/A"}},{"$f":"IF($H$6=\"Yes\",0,VLOOKUP($U57,'MTSP Limits'!$A$1:$K$1219,7,FALSE))","v":{"$error":"#N/A"}},{"$f":"IF($H$6=\"Yes\",0,VLOOKUP($U57,'MTSP Limits'!$A$1:$K$1219,8,FALSE))","v":{"$error":"#N/A"}},{"$f":"IF($H$6=\"Yes\",0,VLOOKUP($U57,'MTSP Limits'!$A$1:$K$1219,9,FALSE))","v":{"$error":"#N/A"}},{"$f":"IF($H$6=\"Yes\",0,VLOOKUP($U57,'MTSP Limits'!$A$1:$K$1219,10,FALSE))","v":{"$error":"#N/A"}},{"$f":"IF($H$6=\"Yes\",0,VLOOKUP($U57,'MTSP Limits'!$A$1:$K$1219,11,FALSE))","v":{"$error":"#N/A"}},null,null,null,null,null,null,null,null,{"$f":"CONCATENATE($K$2,'MHP Family Income & Rent Limits'!AH15)","v":"05/31/11 - 11/30/11"},{"$error":"#N/A"},6,"2011 MTSP Regular Income Limits","04/24/19 - 3/31/20",{"$error":"#N/A"},6,"2011 MTSP Regular Income Limits"]
[{"$f":"IF($E$7=AL14,1,0)","v":0},{"$f":"IF(OR(B57=1,$K$3=AH14),1,0)","v":0},0,null,{"$f":"IF($H$6=\"Yes\",0,VLOOKUP($U58,'MTSP Limits'!$A$1:$K$1219,4,FALSE))","v":{"$error":"#N/A"}},{"$f":"IF($H$6=\"Yes\",0,VLOOKUP($U58,'MTSP Limits'!$A$1:$K$1219,5,FALSE))","v":{"$error":"#N/A"}},{"$f":"IF($H$6=\"Yes\",0,VLOOKUP($U58,'MTSP Limits'!$A$1:$K$1219,6,FALSE))","v":{"$error":"#N/A"}},{"$f":"IF($H$6=\"Yes\",0,VLOOKUP($U58,'MTSP Limits'!$A$1:$K$1219,7,FALSE))","v":{"$error":"#N/A"}},{"$f":"IF($H$6=\"Yes\",0,VLOOKUP($U58,'MTSP Limits'!$A$1:$K$1219,8,FALSE))","v":{"$error":"#N/A"}},{"$f":"IF($H$6=\"Yes\",0,VLOOKUP($U58,'MTSP Limits'!$A$1:$K$1219,9,FALSE))","v":{"$error":"#N/A"}},{"$f":"IF($H$6=\"Yes\",0,VLOOKUP($U58,'MTSP Limits'!$A$1:$K$1219,10,FALSE))","v":{"$error":"#N/A"}},{"$f":"IF($H$6=\"Yes\",0,VLOOKUP($U58,'MTSP Limits'!$A$1:$K$1219,11,FALSE))","v":{"$error":"#N/A"}},null,null,null,null,null,null,null,null,{"$f":"CONCATENATE($K$2,'MHP Family Income & Rent Limits'!AH14)","v":"012/1/11 - 12/3/12"},{"$error":"#N/A"},7,"2012 MTSP Regular Income Limits","04/1/18 - 4/23/19",{"$error":"#N/A"},7,"2012 MTSP Regular Income Limits"]
[{"$f":"IF($E$7=AL13,1,0)","v":0},{"$f":"IF(OR(B58=1,$K$3=AH13),1,0)","v":0},0,null,{"$f":"IF($H$6=\"Yes\",0,VLOOKUP($U59,'MTSP Limits'!$A$1:$K$1219,4,FALSE))","v":{"$error":"#N/A"}},{"$f":"IF($H$6=\"Yes\",0,VLOOKUP($U59,'MTSP Limits'!$A$1:$K$1219,5,FALSE))","v":{"$error":"#N/A"}},{"$f":"IF($H$6=\"Yes\",0,VLOOKUP($U59,'MTSP Limits'!$A$1:$K$1219,6,FALSE))","v":{"$error":"#N/A"}},{"$f":"IF($H$6=\"Yes\",0,VLOOKUP($U59,'MTSP Limits'!$A$1:$K$1219,7,FALSE))","v":{"$error":"#N/A"}},{"$f":"IF($H$6=\"Yes\",0,VLOOKUP($U59,'MTSP Limits'!$A$1:$K$1219,8,FALSE))","v":{"$error":"#N/A"}},{"$f":"IF($H$6=\"Yes\",0,VLOOKUP($U59,'MTSP Limits'!$A$1:$K$1219,9,FALSE))","v":{"$error":"#N/A"}},{"$f":"IF($H$6=\"Yes\",0,VLOOKUP($U59,'MTSP Limits'!$A$1:$K$1219,10,FALSE))","v":{"$error":"#N/A"}},{"$f":"IF($H$6=\"Yes\",0,VLOOKUP($U59,'MTSP Limits'!$A$1:$K$1219,11,FALSE))","v":{"$error":"#N/A"}},null,null,null,null,null,null,null,null,{"$f":"CONCATENATE($K$2,'MHP Family Income & Rent Limits'!AH13)","v":"012/4/12 - 12/17/13"},{"$error":"#N/A"},8,"2013 MTSP Regular Income Limits","04/14/17 - 3/31/18",{"$error":"#N/A"},8,"2013 MTSP Regular Income Limits"]
[{"$f":"IF($E$7=AL12,1,0)","v":0},{"$f":"IF(OR(B59=1,$K$3=AH12),1,0)","v":0},0,null,{"$f":"IF($H$6=\"Yes\",0,VLOOKUP($U60,'MTSP Limits'!$A$1:$K$1219,4,FALSE))","v":{"$error":"#N/A"}},{"$f":"IF($H$6=\"Yes\",0,VLOOKUP($U60,'MTSP Limits'!$A$1:$K$1219,5,FALSE))","v":{"$error":"#N/A"}},{"$f":"IF($H$6=\"Yes\",0,VLOOKUP($U60,'MTSP Limits'!$A$1:$K$1219,6,FALSE))","v":{"$error":"#N/A"}},{"$f":"IF($H$6=\"Yes\",0,VLOOKUP($U60,'MTSP Limits'!$A$1:$K$1219,7,FALSE))","v":{"$error":"#N/A"}},{"$f":"IF($H$6=\"Yes\",0,VLOOKUP($U60,'MTSP Limits'!$A$1:$K$1219,8,FALSE))","v":{"$error":"#N/A"}},{"$f":"IF($H$6=\"Yes\",0,VLOOKUP($U60,'MTSP Limits'!$A$1:$K$1219,9,FALSE))","v":{"$error":"#N/A"}},{"$f":"IF($H$6=\"Yes\",0,VLOOKUP($U60,'MTSP Limits'!$A$1:$K$1219,10,FALSE))","v":{"$error":"#N/A"}},{"$f":"IF($H$6=\"Yes\",0,VLOOKUP($U60,'MTSP Limits'!$A$1:$K$1219,11,FALSE))","v":{"$error":"#N/A"}},null,null,null,null,null,null,null,null,{"$f":"CONCATENATE($K$2,'MHP Family Income & Rent Limits'!AH12)","v":"012/18/13 - 3/5/15"},{"$error":"#N/A"},9,"2014 MTSP Regular Income Limits","03/28/16 - 4/13/17",{"$error":"#N/A"},9,"2014 MTSP Regular Income Limits"]
[{"$f":"IF($E$7=AL11,1,0)","v":0},{"$f":"IF(OR(B60=1,$K$3=AH11),1,0)","v":0},0,null,{"$f":"IF($H$6=\"Yes\",0,VLOOKUP($U61,'MTSP Limits'!$A$1:$K$1219,4,FALSE))","v":{"$error":"#N/A"}},{"$f":"IF($H$6=\"Yes\",0,VLOOKUP($U61,'MTSP Limits'!$A$1:$K$1219,5,FALSE))","v":{"$error":"#N/A"}},{"$f":"IF($H$6=\"Yes\",0,VLOOKUP($U61,'MTSP Limits'!$A$1:$K$1219,6,FALSE))","v":{"$error":"#N/A"}},{"$f":"IF($H$6=\"Yes\",0,VLOOKUP($U61,'MTSP Limits'!$A$1:$K$1219,7,FALSE))","v":{"$error":"#N/A"}},{"$f":"IF($H$6=\"Yes\",0,VLOOKUP($U61,'MTSP Limits'!$A$1:$K$1219,8,FALSE))","v":{"$error":"#N/A"}},{"$f":"IF($H$6=\"Yes\",0,VLOOKUP($U61,'MTSP Limits'!$A$1:$K$1219,9,FALSE))","v":{"$error":"#N/A"}},{"$f":"IF($H$6=\"Yes\",0,VLOOKUP($U61,'MTSP Limits'!$A$1:$K$1219,10,FALSE))","v":{"$error":"#N/A"}},{"$f":"IF($H$6=\"Yes\",0,VLOOKUP($U61,'MTSP Limits'!$A$1:$K$1219,11,FALSE))","v":{"$error":"#N/A"}},null,null,null,null,null,null,null,null,{"$f":"CONCATENATE($K$2,'MHP Family Income & Rent Limits'!AH11)","v":"03/6/15 - 3/27/16"},{"$error":"#N/A"},10,"2015 MTSP Regular Income Limits","03/6/15 - 3/27/16",{"$error":"#N/A"},10,"2015 MTSP Regular Income Limits"]
[{"$f":"IF($E$7=AL10,1,0)","v":0},{"$f":"IF(OR(B61=1,$K$3=AH10),1,0)","v":0},0,null,{"$f":"IF($H$6=\"Yes\",0,VLOOKUP($U62,'MTSP Limits'!$A$1:$K$1219,4,FALSE))","v":{"$error":"#N/A"}},{"$f":"IF($H$6=\"Yes\",0,VLOOKUP($U62,'MTSP Limits'!$A$1:$K$1219,5,FALSE))","v":{"$error":"#N/A"}},{"$f":"IF($H$6=\"Yes\",0,VLOOKUP($U62,'MTSP Limits'!$A$1:$K$1219,6,FALSE))","v":{"$error":"#N/A"}},{"$f":"IF($H$6=\"Yes\",0,VLOOKUP($U62,'MTSP Limits'!$A$1:$K$1219,7,FALSE))","v":{"$error":"#N/A"}},{"$f":"IF($H$6=\"Yes\",0,VLOOKUP($U62,'MTSP Limits'!$A$1:$K$1219,8,FALSE))","v":{"$error":"#N/A"}},{"$f":"IF($H$6=\"Yes\",0,VLOOKUP($U62,'MTSP Limits'!$A$1:$K$1219,9,FALSE))","v":{"$error":"#N/A"}},{"$f":"IF($H$6=\"Yes\",0,VLOOKUP($U62,'MTSP Limits'!$A$1:$K$1219,10,FALSE))","v":{"$error":"#N/A"}},{"$f":"IF($H$6=\"Yes\",0,VLOOKUP($U62,'MTSP Limits'!$A$1:$K$1219,11,FALSE))","v":{"$error":"#N/A"}},null,null,null,null,null,null,null,null,{"$f":"CONCATENATE($K$2,'MHP Family Income & Rent Limits'!AH10)","v":"03/28/16 - 4/13/17"},{"$error":"#N/A"},11,"2016 MTSP Regular Income Limits","012/18/13 - 3/5/15",{"$error":"#N/A"},11,"2016 MTSP Regular Income Limits"]
[{"$f":"IF($E$7=AL9,1,0)","v":0},{"$f":"IF(OR(B62=1,$K$3=AH9),1,0)","v":0},0,null,{"$f":"IF($H$6=\"Yes\",0,VLOOKUP($U63,'MTSP Limits'!$A$1:$K$1219,4,FALSE))","v":{"$error":"#N/A"}},{"$f":"IF($H$6=\"Yes\",0,VLOOKUP($U63,'MTSP Limits'!$A$1:$K$1219,5,FALSE))","v":{"$error":"#N/A"}},{"$f":"IF($H$6=\"Yes\",0,VLOOKUP($U63,'MTSP Limits'!$A$1:$K$1219,6,FALSE))","v":{"$error":"#N/A"}},{"$f":"IF($H$6=\"Yes\",0,VLOOKUP($U63,'MTSP Limits'!$A$1:$K$1219,7,FALSE))","v":{"$error":"#N/A"}},{"$f":"IF($H$6=\"Yes\",0,VLOOKUP($U63,'MTSP Limits'!$A$1:$K$1219,8,FALSE))","v":{"$error":"#N/A"}},{"$f":"IF($H$6=\"Yes\",0,VLOOKUP($U63,'MTSP Limits'!$A$1:$K$1219,9,FALSE))","v":{"$error":"#N/A"}},{"$f":"IF($H$6=\"Yes\",0,VLOOKUP($U63,'MTSP Limits'!$A$1:$K$1219,10,FALSE))","v":{"$error":"#N/A"}},{"$f":"IF($H$6=\"Yes\",0,VLOOKUP($U63,'MTSP Limits'!$A$1:$K$1219,11,FALSE))","v":{"$error":"#N/A"}},null,null,null,null,null,null,null,null,{"$f":"CONCATENATE($K$2,'MHP Family Income & Rent Limits'!AH9)","v":"04/14/17 - 3/31/18"},{"$error":"#N/A"},12,"2017 MTSP Regular Income Limits","012/4/12 - 12/17/13",{"$error":"#N/A"},12,"2017 MTSP Regular Income Limits"]
[{"$f":"IF($E$7=AL8,1,0)","v":0},{"$f":"IF(OR(B63=1,$K$3=AH8),1,0)","v":0},0,null,{"$f":"IF($H$6=\"Yes\",0,VLOOKUP($U64,'MTSP Limits'!$A$1:$K$1219,4,FALSE))","v":{"$error":"#N/A"}},{"$f":"IF($H$6=\"Yes\",0,VLOOKUP($U64,'MTSP Limits'!$A$1:$K$1219,5,FALSE))","v":{"$error":"#N/A"}},{"$f":"IF($H$6=\"Yes\",0,VLOOKUP($U64,'MTSP Limits'!$A$1:$K$1219,6,FALSE))","v":{"$error":"#N/A"}},{"$f":"IF($H$6=\"Yes\",0,VLOOKUP($U64,'MTSP Limits'!$A$1:$K$1219,7,FALSE))","v":{"$error":"#N/A"}},{"$f":"IF($H$6=\"Yes\",0,VLOOKUP($U64,'MTSP Limits'!$A$1:$K$1219,8,FALSE))","v":{"$error":"#N/A"}},{"$f":"IF($H$6=\"Yes\",0,VLOOKUP($U64,'MTSP Limits'!$A$1:$K$1219,9,FALSE))","v":{"$error":"#N/A"}},{"$f":"IF($H$6=\"Yes\",0,VLOOKUP($U64,'MTSP Limits'!$A$1:$K$1219,10,FALSE))","v":{"$error":"#N/A"}},{"$f":"IF($H$6=\"Yes\",0,VLOOKUP($U64,'MTSP Limits'!$A$1:$K$1219,11,FALSE))","v":{"$error":"#N/A"}},null,null,null,null,null,null,null,null,{"$f":"CONCATENATE($K$2,'MHP Family Income & Rent Limits'!AH8)","v":"04/1/18 - 4/23/19"},{"$error":"#N/A"},13,"2018 MTSP Regular Income Limits","012/1/11 - 12/3/12",{"$error":"#N/A"},13,"2018 MTSP Regular Income Limits"]
[{"$f":"IF($E$7=AL7,1,0)","v":0},{"$f":"IF(OR(B64=1,$K$3=AH7),1,0)","v":0},0,null,{"$f":"IF($H$6=\"Yes\",0,VLOOKUP($U65,'MTSP Limits'!$A$1:$K$1219,4,FALSE))","v":{"$error":"#N/A"}},{"$f":"IF($H$6=\"Yes\",0,VLOOKUP($U65,'MTSP Limits'!$A$1:$K$1219,5,FALSE))","v":{"$error":"#N/A"}},{"$f":"IF($H$6=\"Yes\",0,VLOOKUP($U65,'MTSP Limits'!$A$1:$K$1219,6,FALSE))","v":{"$error":"#N/A"}},{"$f":"IF($H$6=\"Yes\",0,VLOOKUP($U65,'MTSP Limits'!$A$1:$K$1219,7,FALSE))","v":{"$error":"#N/A"}},{"$f":"IF($H$6=\"Yes\",0,VLOOKUP($U65,'MTSP Limits'!$A$1:$K$1219,8,FALSE))","v":{"$error":"#N/A"}},{"$f":"IF($H$6=\"Yes\",0,VLOOKUP($U65,'MTSP Limits'!$A$1:$K$1219,9,FALSE))","v":{"$error":"#N/A"}},{"$f":"IF($H$6=\"Yes\",0,VLOOKUP($U65,'MTSP Limits'!$A$1:$K$1219,10,FALSE))","v":{"$error":"#N/A"}},{"$f":"IF($H$6=\"Yes\",0,VLOOKUP($U65,'MTSP Limits'!$A$1:$K$1219,11,FALSE))","v":{"$error":"#N/A"}},null,null,null,null,null,null,null,null,{"$f":"CONCATENATE($K$2,'MHP Family Income & Rent Limits'!AH7)","v":"04/24/19 - 3/31/20"},{"$error":"#N/A"},14,"2019 MTSP Regular Income Limits","05/31/11 - 11/30/11",{"$error":"#N/A"},14,"2019 MTSP Regular Income Limits"]
[{"$f":"IF($E$7=AL6,1,0)","v":0},{"$f":"IF(OR(B65=1,$K$3=AH6),1,0)","v":0},{"$f":"+IF((A66+B66)=2,1,A66+B66)","v":0},null,{"$f":"IF($H$6=\"Yes\",0,VLOOKUP($U66,'MTSP Limits'!$A$1:$K$1219,4,FALSE))","v":{"$error":"#N/A"}},{"$f":"IF($H$6=\"Yes\",0,VLOOKUP($U66,'MTSP Limits'!$A$1:$K$1219,5,FALSE))","v":{"$error":"#N/A"}},{"$f":"IF($H$6=\"Yes\",0,VLOOKUP($U66,'MTSP Limits'!$A$1:$K$1219,6,FALSE))","v":{"$error":"#N/A"}},{"$f":"IF($H$6=\"Yes\",0,VLOOKUP($U66,'MTSP Limits'!$A$1:$K$1219,7,FALSE))","v":{"$error":"#N/A"}},{"$f":"IF($H$6=\"Yes\",0,VLOOKUP($U66,'MTSP Limits'!$A$1:$K$1219,8,FALSE))","v":{"$error":"#N/A"}},{"$f":"IF($H$6=\"Yes\",0,VLOOKUP($U66,'MTSP Limits'!$A$1:$K$1219,9,FALSE))","v":{"$error":"#N/A"}},{"$f":"IF($H$6=\"Yes\",0,VLOOKUP($U66,'MTSP Limits'!$A$1:$K$1219,10,FALSE))","v":{"$error":"#N/A"}},{"$f":"IF($H$6=\"Yes\",0,VLOOKUP($U66,'MTSP Limits'!$A$1:$K$1219,11,FALSE))","v":{"$error":"#N/A"}},null,null,null,null,null,null,null,null,{"$f":"CONCATENATE($K$2,'MHP Family Income & Rent Limits'!AH6)","v":"04/1/20 - 3/31/21"},{"$f":"IF($E$20=E66,1,0)","v":{"$error":"#N/A"}},15,"2020 MTSP Regular Income Limits","05/14/10 - 5/30/11",{"$f":"IF($O$20=E66,1,0)","v":{"$error":"#N/A"}},15,"2020 MTSP Regular Income Limits"]
[{"$f":"IF($E$7=AL5,1,0)","v":0},{"$f":"IF(OR(B66=1,$K$3=AH5),1,0)","v":0},0,null,{"$f":"IF($H$6=\"Yes\",0,VLOOKUP($U67,'MTSP Limits'!$A$1:$K$1219,4,FALSE))","v":{"$error":"#N/A"}},{"$f":"IF($H$6=\"Yes\",0,VLOOKUP($U67,'MTSP Limits'!$A$1:$K$1219,5,FALSE))","v":{"$error":"#N/A"}},{"$f":"IF($H$6=\"Yes\",0,VLOOKUP($U67,'MTSP Limits'!$A$1:$K$1219,6,FALSE))","v":{"$error":"#N/A"}},{"$f":"IF($H$6=\"Yes\",0,VLOOKUP($U67,'MTSP Limits'!$A$1:$K$1219,7,FALSE))","v":{"$error":"#N/A"}},{"$f":"IF($H$6=\"Yes\",0,VLOOKUP($U67,'MTSP Limits'!$A$1:$K$1219,8,FALSE))","v":{"$error":"#N/A"}},{"$f":"IF($H$6=\"Yes\",0,VLOOKUP($U67,'MTSP Limits'!$A$1:$K$1219,9,FALSE))","v":{"$error":"#N/A"}},{"$f":"IF($H$6=\"Yes\",0,VLOOKUP($U67,'MTSP Limits'!$A$1:$K$1219,10,FALSE))","v":{"$error":"#N/A"}},{"$f":"IF($H$6=\"Yes\",0,VLOOKUP($U67,'MTSP Limits'!$A$1:$K$1219,11,FALSE))","v":{"$error":"#N/A"}},null,null,null,null,null,null,null,null,{"$f":"CONCATENATE($K$2,'MHP Family Income & Rent Limits'!AH5)","v":"04/1/21 - 4/17/22"},{"$error":"#N/A"},16,"2021 MTSP Regular Income Limits","03/19/09 - 5/13/10",{"$error":"#N/A"},16,"2021 MTSP Regular Income Limits"]
[{"$f":"IF($E$7=AL4,1,0)","v":0},{"$f":"IF(OR(B67=1,$K$3=AH4),1,0)","v":0},{"$f":"+IF((A68+B68)=2,1,A68+B68)","v":0},null,{"$f":"IF($H$6=\"Yes\",0,VLOOKUP($U68,'MTSP Limits'!$A$1:$K$1219,4,FALSE))","v":{"$error":"#N/A"}},{"$f":"IF($H$6=\"Yes\",0,VLOOKUP($U68,'MTSP Limits'!$A$1:$K$1219,5,FALSE))","v":{"$error":"#N/A"}},{"$f":"IF($H$6=\"Yes\",0,VLOOKUP($U68,'MTSP Limits'!$A$1:$K$1219,6,FALSE))","v":{"$error":"#N/A"}},{"$f":"IF($H$6=\"Yes\",0,VLOOKUP($U68,'MTSP Limits'!$A$1:$K$1219,7,FALSE))","v":{"$error":"#N/A"}},{"$f":"IF($H$6=\"Yes\",0,VLOOKUP($U68,'MTSP Limits'!$A$1:$K$1219,8,FALSE))","v":{"$error":"#N/A"}},{"$f":"IF($H$6=\"Yes\",0,VLOOKUP($U68,'MTSP Limits'!$A$1:$K$1219,9,FALSE))","v":{"$error":"#N/A"}},{"$f":"IF($H$6=\"Yes\",0,VLOOKUP($U68,'MTSP Limits'!$A$1:$K$1219,10,FALSE))","v":{"$error":"#N/A"}},{"$f":"IF($H$6=\"Yes\",0,VLOOKUP($U68,'MTSP Limits'!$A$1:$K$1219,11,FALSE))","v":{"$error":"#N/A"}},null,null,null,null,null,null,null,null,{"$f":"CONCATENATE($K$2,'MHP Family Income & Rent Limits'!AH4)","v":"04/18/22 - 5/14/23"},{"$f":"IF($E$20=E68,1,0)","v":{"$error":"#N/A"}},17,"2022 MTSP Regular Income Limits","02/13/08 - 3/18/09",{"$f":"IF($O$20=E68,1,0)","v":{"$error":"#N/A"}},17,"2022 MTSP Regular Income Limits"]
[{"$f":"IF($E$7=AL3,1,0)","v":0},{"$f":"IF(OR(B68=1,$K$3=AH3),1,0)","v":0},{"$f":"+IF((A69+B69)=2,1,A69+B69)","v":0},null,{"$f":"IF($H$6=\"Yes\",0,VLOOKUP($U69,'MTSP Limits'!$A$1:$K$1219,4,FALSE))","v":{"$error":"#N/A"}},{"$f":"IF($H$6=\"Yes\",0,VLOOKUP($U69,'MTSP Limits'!$A$1:$K$1219,5,FALSE))","v":{"$error":"#N/A"}},{"$f":"IF($H$6=\"Yes\",0,VLOOKUP($U69,'MTSP Limits'!$A$1:$K$1219,6,FALSE))","v":{"$error":"#N/A"}},{"$f":"IF($H$6=\"Yes\",0,VLOOKUP($U69,'MTSP Limits'!$A$1:$K$1219,7,FALSE))","v":{"$error":"#N/A"}},{"$f":"IF($H$6=\"Yes\",0,VLOOKUP($U69,'MTSP Limits'!$A$1:$K$1219,8,FALSE))","v":{"$error":"#N/A"}},{"$f":"IF($H$6=\"Yes\",0,VLOOKUP($U69,'MTSP Limits'!$A$1:$K$1219,9,FALSE))","v":{"$error":"#N/A"}},{"$f":"IF($H$6=\"Yes\",0,VLOOKUP($U69,'MTSP Limits'!$A$1:$K$1219,10,FALSE))","v":{"$error":"#N/A"}},{"$f":"IF($H$6=\"Yes\",0,VLOOKUP($U69,'MTSP Limits'!$A$1:$K$1219,11,FALSE))","v":{"$error":"#N/A"}},null,null,null,null,null,null,null,null,{"$f":"CONCATENATE($K$2,'MHP Family Income & Rent Limits'!AH3)","v":"05/15/23 - 3/31/24"},{"$f":"IF($E$20=E69,1,0)","v":{"$error":"#N/A"}},18,"2023 MTSP Regular Income Limits","03/20/07 - 2/12/08",{"$f":"IF($O$20=E69,1,0)","v":{"$error":"#N/A"}},18,"2023 MTSP Regular Income Limits"]
[{"$f":"IF($E$7=AL2,1,0)","v":0},{"$f":"IF(OR(B69=1,$K$3=AH2),1,0)","v":0},{"$f":"+IF((A70+B70)=2,1,A70+B70)","v":0},null,{"$f":"IF($H$6=\"Yes\",0,VLOOKUP($U70,'MTSP Limits'!$A$1:$K$1219,4,FALSE))","v":{"$error":"#N/A"}},{"$f":"IF($H$6=\"Yes\",0,VLOOKUP($U70,'MTSP Limits'!$A$1:$K$1219,5,FALSE))","v":{"$error":"#N/A"}},{"$f":"IF($H$6=\"Yes\",0,VLOOKUP($U70,'MTSP Limits'!$A$1:$K$1219,6,FALSE))","v":{"$error":"#N/A"}},{"$f":"IF($H$6=\"Yes\",0,VLOOKUP($U70,'MTSP Limits'!$A$1:$K$1219,7,FALSE))","v":{"$error":"#N/A"}},{"$f":"IF($H$6=\"Yes\",0,VLOOKUP($U70,'MTSP Limits'!$A$1:$K$1219,8,FALSE))","v":{"$error":"#N/A"}},{"$f":"IF($H$6=\"Yes\",0,VLOOKUP($U70,'MTSP Limits'!$A$1:$K$1219,9,FALSE))","v":{"$error":"#N/A"}},{"$f":"IF($H$6=\"Yes\",0,VLOOKUP($U70,'MTSP Limits'!$A$1:$K$1219,10,FALSE))","v":{"$error":"#N/A"}},{"$f":"IF($H$6=\"Yes\",0,VLOOKUP($U70,'MTSP Limits'!$A$1:$K$1219,11,FALSE))","v":{"$error":"#N/A"}},null,null,null,null,null,null,null,null,{"$f":"CONCATENATE($K$2,'MHP Family Income & Rent Limits'!AH2)","v":"0On or After 4/1/24"},{"$f":"IF($E$20=E70,1,0)","v":{"$error":"#N/A"}},19,"2024 MTSP Regular Income Limits","03/8/06 - 3/19/07",{"$f":"IF($O$20=E70,1,0)","v":{"$error":"#N/A"}},19,"2024 MTSP Regular Income Limits"]
[]
[]
[]
[]
[]
[]
[]
[]
[]
[]
[]
[]
[]
[]
[]
[]
[]
[]
[]
[]
[]
[]
[]
[]
[]
[]
[]
[]
[]
[]
[]
[]
[]
[]
[]
[]
[]
[]
[]
[]
[]
[]
[]
[]
[]
[]
[]
[]
[]
[]
[]
[]
[]
[]
[]
[]
[]
[]
[]
[]
[]
[]
[]
[]
[]
[]
[]
[]
[]
[]
[]
[]
[]
[]
[]
[]
[]
[]
[]
[]
[]
[]
[]
[]
[]
[]
[]
[]
[]
[]
[]
[]
[]
[]
[]
[]
[]
[]
[]
[]
[]
[]
[]
[]
[]
[]
[]
[]
[]
[]
[]
[]
[]
[]
[]
[]
[]
[]
[]
[]
[]
[]
[]
[]
[]
[]
[]
[]
[]
[]
[]
[null,null,null,null,null,null,null,null,null,null,null,null,null,null,null,null,null,null,"Alameda"]
[null,null,null,null,null,null,null,null,null,null,null,null,null,null,null,null,null,null,"Alpine"]
[null,null,null,null,null,null,null,null,null,null,null,null,null,null,null,null,null,null,"Amador"]
[null,null,null,null,null,null,null,null,null,null,null,null,null,null,null,null,null,null,"Butte"]
[null,null,null,null,null,null,null,null,null,null,null,null,null,null,null,null,null,null,"Calaveras"]
[null,null,null,null,null,null,null,null,null,null,null,null,null,null,null,null,null,null,"Colusa"]
[null,null,null,null,null,null,null,null,null,null,null,null,null,null,null,null,null,null,"Contra Costa"]
[null,null,null,null,null,null,null,null,null,null,null,null,null,null,null,null,null,null,"Del Norte"]
[null,null,null,null,null,null,null,null,null,null,null,null,null,null,null,null,null,null,"El Dorado"]
[null,null,null,null,null,null,null,null,null,null,null,null,null,null,null,null,null,null,"Fresno"]
[null,null,null,null,null,null,null,null,null,null,null,null,null,null,null,null,null,null,"Glenn"]
[null,null,null,null,null,null,null,null,null,null,null,null,null,null,null,null,null,null,"Humboldt"]
[null,null,null,null,null,null,null,null,null,null,null,null,null,null,null,null,null,null,"Imperial"]
[null,null,null,null,null,null,null,null,null,null,null,null,null,null,null,null,null,null,"Inyo"]
[null,null,null,null,null,null,null,null,null,null,null,null,null,null,null,null,null,null,"Kern"]
[null,null,null,null,null,null,null,null,null,null,null,null,null,null,null,null,null,null,"Kings"]
[null,null,null,null,null,null,null,null,null,null,null,null,null,null,null,null,null,null,"Lake"]
[null,null,null,null,null,null,null,null,null,null,null,null,null,null,null,null,null,null,"Lassen"]
[null,null,null,null,null,null,null,null,null,null,null,null,null,null,null,null,null,null,"Los Angeles"]
[null,null,null,null,null,null,null,null,null,null,null,null,null,null,null,null,null,null,"Madera"]
[null,null,null,null,null,null,null,null,null,null,null,null,null,null,null,null,null,null,"Marin"]
[null,null,null,null,null,null,null,null,null,null,null,null,null,null,null,null,null,null,"Mariposa"]
[null,null,null,null,null,null,null,null,null,null,null,null,null,null,null,null,null,null,"Mendocino"]
[null,null,null,null,null,null,null,null,null,null,null,null,null,null,null,null,null,null,"Merced"]
[null,null,null,null,null,null,null,null,null,null,null,null,null,null,null,null,null,null,"Modoc"]
[null,null,null,null,null,null,null,null,null,null,null,null,null,null,null,null,null,null,"Mono"]
[null,null,null,null,null,null,null,null,null,null,null,null,null,null,null,null,null,null,"Monterey"]
[null,null,null,null,null,null,null,null,null,null,null,null,null,null,null,null,null,null,"Napa"]
[null,null,null,null,null,null,null,null,null,null,null,null,null,null,null,null,null,null,"Nevada"]
[null,null,null,null,null,null,null,null,null,null,null,null,null,null,null,null,null,null,"Orange"]
[null,null,null,null,null,null,null,null,null,null,null,null,null,null,null,null,null,null,"Placer"]
[null,null,null,null,null,null,null,null,null,null,null,null,null,null,null,null,null,null,"Plumas"]
[null,null,null,null,null,null,null,null,null,null,null,null,null,null,null,null,null,null,"Riverside"]
[null,null,null,null,null,null,null,null,null,null,null,null,null,null,null,null,null,null,"Sacramento"]
[null,null,null,null,null,null,null,null,null,null,null,null,null,null,null,null,null,null,"San Benito"]
[null,null,null,null,null,null,null,null,null,null,null,null,null,null,null,null,null,null,"San Bernardino"]
[null,null,null,null,null,null,null,null,null,null,null,null,null,null,null,null,null,null,"San Diego"]
[null,null,null,null,null,null,null,null,null,null,null,null,null,null,null,null,null,null,"San Francisco"]
[null,null,null,null,null,null,null,null,null,null,null,null,null,null,null,null,null,null,"San Joaquin"]
[null,null,null,null,null,null,null,null,null,null,null,null,null,null,null,null,null,null,"San Luis Obispo"]
[null,null,null,null,null,null,null,null,null,null,null,null,null,null,null,null,null,null,"San Mateo"]
[null,null,null,null,null,null,null,null,null,null,null,null,null,null,null,null,null,null,"Santa Barbara"]
[null,null,null,null,null,null,null,null,null,null,null,null,null,null,null,null,null,null,"Santa Clara"]
[null,null,null,null,null,null,null,null,null,null,null,null,null,null,null,null,null,null,"Santa Cruz"]
[null,null,null,null,null,null,null,null,null,null,null,null,null,null,null,null,null,null,"Shasta"]
[null,null,null,null,null,null,null,null,null,null,null,null,null,null,null,null,null,null,"Sierra"]
[null,null,null,null,null,null,null,null,null,null,null,null,null,null,null,null,null,null,"Siskiyou"]
[null,null,null,null,null,null,null,null,null,null,null,null,null,null,null,null,null,null,"Solano"]
[null,null,null,null,null,null,null,null,null,null,null,null,null,null,null,null,null,null,"Sonoma"]
[null,null,null,null,null,null,null,null,null,null,null,null,null,null,null,null,null,null,"Stanislaus"]
[null,null,null,null,null,null,null,null,null,null,null,null,null,null,null,null,null,null,"Sutter"]
[null,null,null,null,null,null,null,null,null,null,null,null,null,null,null,null,null,null,"Tehama"]
[null,null,null,null,null,null,null,null,null,null,null,null,null,null,null,null,null,null,"Trinity"]
[null,null,null,null,null,null,null,null,null,null,null,null,null,null,null,null,null,null,"Tulare"]
[null,null,null,null,null,null,null,null,null,null,null,null,null,null,null,null,null,null,"Tuolumne"]
[null,null,null,null,null,null,null,null,null,null,null,null,null,null,null,null,null,null,"Ventura"]
[null,null,null,null,null,null,null,null,null,null,null,null,null,null,null,null,null,null,"Yolo"]
[null,null,null,null,null,null,null,null,null,null,null,null,null,null,null,null,null,null,"Yuba"]

{"sheet":"2. Assisted & Restricted Units","index":4,"n_rows":401,"n_cols":110,"rows_kept":401,"cut":false,"hidden":false,"merged":[[399,52,399,53],[400,52,400,53],[4,0,4,4],[0,31,3,31],[0,32,3,32],[0,26,3,26],[0,27,3,27],[0,28,3,28],[0,30,3,30],[2,0,2,19],[3,0,3,9],[0,29,3,29],[0,33,3,33],[3,18,3,19]]}
[null,null,null,null,null,null,null,null,null,null,null,null,null,null,null,null,null,null,null,null,null,null,null,null,null,null,{"$f":"'MHP Family Income & Rent Limits'!$F$10","v":"based on "},{"$f":"'MHP Family Income & Rent Limits'!$F$10","v":"based on "},{"$f":"'MHP Family Income & Rent Limits'!$F$10","v":"based on "},{"$f":"'MHP Family Income & Rent Limits'!$F$10","v":"based on "},{"$f":"'MHP Family Income & Rent Limits'!$F$27","v":"based on "},{"$f":"'MHP Family Income & Rent Limits'!$F$27","v":"based on "},{"$f":"'MHP Family Income & Rent Limits'!$F$27","v":"based on "},{"$f":"'MHP Family Income & Rent Limits'!$F$27","v":"based on "}]
[{"$f":"IF('1. Checklist & Certification'!F9=\"\",\"2. Assisted & Restricted Units\",\"2. Assisted & Restricted Units - \"&'1. Checklist & Certification'!F9&\" County\")","v":"2. Assisted & Restricted Units"}]
["Restricted units and manager units must be entered here for AHSC, FMTW, FWHG, GHI, HHC, HLCP, HOME, HYMHP, LPR, MHP, NPLH, PRP, SHMHP, TOD, and VHHP"]
["Hide unused yellow shaded rows below by clicking down arrow in cell A6 and unchecking (Blanks) box.",null,null,null,null,null,null,null,null,null,{"$f":"'1. Checklist & Certification'!K1","v":"2024-09-04"}]
[{"$f":"CONCATENATE('1. Checklist & Certification'!C6&\" (\"&'1. Checklist & Certification'!B14&\")\")","v":" (2025)"},null,null,null,null,null,null,null,null,null,null,null,null,null,null,null,null,null,{"$f":"IF('1. Checklist & Certification'!C7=\"\",\"\",'1. Checklist & Certification'!C7)","v":""},{"$f":"IF('1. Checklist & Certification'!C7=\"\",\"\",'1. Checklist & Certification'!C7)","v":""},{"$f":"IF('1. Checklist & Certification'!C8=\"\",\"\",'1. Checklist & Certification'!C8)","v":""},{"$f":"IF('1. Checklist & Certification'!C8=\"\",\"\",'1. Checklist & Certification'!C8)","v":""},{"$f":"IF('1. Checklist & Certification'!F7=\"\",\"\",'1. Checklist & Certification'!F7)","v":""},{"$f":"IF('1. Checklist & Certification'!F7=\"\",\"\",'1. Checklist & Certification'!F7)","v":""},{"$f":"IF('1. Checklist & Certification'!F8=\"\",\"\",'1. Checklist & Certification'!F8)","v":""},{"$f":"IF('1. Checklist & Certification'!F8=\"\",\"\",'1. Checklist & Certification'!F8)","v":""},{"$f":"IF('1. Checklist & Certification'!C7=\"\",\"\",'1. Checklist & Certification'!C7)","v":""},{"$f":"IF('1. Checklist & Certification'!C8=\"\",\"\",'1. Checklist & Certification'!C8)","v":""},{"$f":"IF('1. Checklist & Certification'!F7=\"\",\"\",'1. Checklist & Certification'!F7)","v":""},{"$f":"IF('1. Checklist & Certification'!F8=\"\",\"\",'1. Checklist & Certification'!F8)","v":""},{"$f":"IF('1. Checklist & Certification'!C7=\"\",\"\",'1. Checklist & Certification'!C7)","v":""},{"$f":"IF('1. Checklist & Certification'!C8=\"\",\"\",'1. Checklist & Certification'!C8)","v":""},{"$f":"IF('1. Checklist & Certification'!F7=\"\",\"\",'1. Checklist & Certification'!F7)","v":""},{"$f":"IF('1. Checklist & Certification'!F8=\"\",\"\",'1. Checklist & Certification'!F8)","v":""},{"$f":"IF('1. Checklist & Certification'!$B$14=\"\",\"\",'1. Checklist & Certification'!$B$14)","v":2025},{"$f":"IF('1. Checklist & Certification'!$B$14=\"\",\"\",'1. Checklist & Certification'!$B$14)","v":2025},{"$f":"IF('1. Checklist & Certification'!$B$14=\"\",\"\",'1. Checklist & Certification'!$B$14)","v":2025},{"$f":"IF('1. Checklist & Certification'!$B$14=\"\",\"\",'1. Checklist & Certification'!$B$14)","v":2025},{"$f":"IF('1. Checklist & Certification'!$B$14=\"\",\"\",'1. Checklist & Certification'!$B$14)","v":2025},{"$f":"IF('1. Checklist & Certification'!$B$14=\"\",\"\",'1. Checklist & Certification'!$B$14)","v":2025},{"$f":"IF('1. Checklist & Certification'!$B$14=\"\",\"\",'1. Checklist & Certification'!$B$14)","v":2025},{"$f":"IF('1. Checklist & Certification'!$B$14=\"\",\"\",'1. Checklist & Certification'!$B$14)","v":2025},{"$f":"IF('1. Checklist & Certification'!$B$14=\"\",\"\",'1. Checklist & Certification'!$B$14)","v":2025},{"$f":"IF('1. Checklist & Certification'!$B$14=\"\",\"\",'1. Checklist & Certification'!$B$14)","v":2025},{"$f":"IF('1. Checklist & Certification'!$B$14=\"\",\"\",'1. Checklist & Certification'!$B$14)","v":2025},null,{"$f":"IF('1. Checklist & Certification'!$B$14=\"\",\"\",'1. Checklist & Certification'!$B$14)","v":2025},null,{"$f":"IF('1. Checklist & Certification'!$B$14=\"\",\"\",'1. Checklist & Certification'!$B$14)","v":2025},{"$f":"IF('1. Checklist & Certification'!$B$14=\"\",\"\",'1. Checklist & Certification'!$B$14)","v":2025},null,null,null,null,null,null,null,null,null,null,null,null,null,null,null,null,null,null,null,null,null,null,null,null,null,null,null,null,null,null,null,null,null,null,null,null,null,null,null,null,null,null,null,null,null,null,null,null,null,false,"<refers to cell AW6"]
["Unit Number (include Manager units)","Manager Unit","Household ID","Number of Persons in Household\n(if unit is Vacant, select Vacant)","Unit Size/ Number of Bedrooms\n(SRO/Studio, select 0)","Move In Date","Household\nIncome\nRecert.\nDate","Annual Household Income (Certified)","Current Monthly Tenant Rent","Number of Months at Current Rent for Report Period","HCD Approved Current Monthly Tenant Rent (only used for Legacy programs) or LPR Target Rent\n(blue cell shading indicates LPR target rent achieved)","Elderly/Senior","Veteran","Family (FHDP use only)","Agricultural Worker","Accessible Unit Type\n(all units must indicate)","Occupant Accessibility Utilization (OAU) - does the household in the unit include someone with a disability that needs the accessibility features?","If OAU is \"No\", is there a Transfer Agreement to move household into a non-accessible unit","HCD RA #1 Unit Designatn\nNote: Unrestricted & Non-Assisted Manager Unit, select \"Mgr\"","HCD RA #1 Targeted Income Level AMI, SMI, HOME, State","HCD RA #2 Unit Designatn\nNote: Unrestricted & Non-Assisted Manager Unit, select \"Mgr\"","HCD RA #2 Targeted Income Level AMI, SMI, HOME, State","HCD RA #3 Unit Designatn\nNote: Unrestricted & Non-Assisted Manager Unit, select \"Mgr\"","HCD RA #3 Targeted Income Level AMI, SMI, HOME, State","HCD RA #4 Unit Designatn\nNote: Unrestricted & Non-Assisted Manager Unit, select \"Mgr\"","HCD RA #4 Targeted Income Level AMI, SMI, HOME, State",{"$f":"CONCATENATE(\"HCD RA #1 \"&'1. Checklist & Certification'!B14&\" AMI, SMI, HOME, State Income Limit (purple cell shading indicates income limit for this unit)\")","v":"HCD RA #1 2025 AMI, SMI, HOME, State Income Limit (purple cell shading indicates income limit for this unit)"},{"$f":"CONCATENATE(\"HCD RA #2 \"&'1. Checklist & Certification'!B14&\" AMI, SMI, HOME, State Income Limit (purple cell shading indicates income limit for this unit)\")","v":"HCD RA #2 2025 AMI, SMI, HOME, State Income Limit (purple cell shading indicates income limit for this unit)"},{"$f":"CONCATENATE(\"HCD RA #3 \"&'1. Checklist & Certification'!B14&\" AMI, SMI, HOME, State Income Limit (purple cell shading indicates income limit for this unit)\")","v":"HCD RA #3 2025 AMI, SMI, HOME, State Income Limit (purple cell shading indicates income limit for this unit)"},{"$f":"CONCATENATE(\"HCD RA #4 \"&'1. Checklist & Certification'!B14&\" AMI, SMI, HOME, State Income Limit (purple cell shading indicates income limit for this unit)\")","v":"HCD RA #4 2025 AMI, SMI, HOME, State Income Limit (purple cell shading indicates income limit for this unit)"},{"$f":"CONCATENATE(\"HCD RA #1 \"&'1. Checklist & Certification'!B14&\" AMI, SMI, HOME Gross Monthly Rent Limit\")","v":"HCD RA #1 2025 AMI, SMI, HOME Gross Monthly Rent Limit"},{"$f":"CONCATENATE(\"HCD RA #2 \"&'1. Checklist & Certification'!B14&\" AMI, SMI, HOME Gross Monthly Rent Limit\")","v":"HCD RA #2 2025 AMI, SMI, HOME Gross Monthly Rent Limit"},{"$f":"CONCATENATE(\"HCD RA #3 \"&'1. Checklist & Certification'!B14&\" AMI, SMI, HOME Gross Monthly Rent Limit\")","v":"HCD RA #3 2025 AMI, SMI, HOME Gross Monthly Rent Limit"},{"$f":"CONCATENATE(\"HCD RA #4 \"&'1. Checklist & Certification'!B14&\" AMI, SMI, HOME Gross Monthly Rent Limit\")","v":"HCD RA #4 2025 AMI, SMI, HOME Gross Monthly Rent Limit"},"FHDP,\nRHCP-B\nFormula Gross Monthly Rent Limit","CHRP-R, SERA, SUHRP\nFormula Gross Monthly Rent Limit","CALDAP, DPRLP\nFormula Gross Monthly Rent Limit","FWHG\nGross Monthly Rent Limit\n(30% of HI)\n\nHLCP-E\nGross Monthly Rent Limit\n(see RA)","LPR, PRP\n5% or 10%\nFormula Gross Monthly Rent Limit","LPR, PRP 50% of Household Income\nFormula Gross Monthly Rent Limit","Maximum Allowable Monthly Gross Rent","Current Monthly Utility Allowance","Maximum Allowable Monthly Net Rent","Proposed Monthly Tenant Rent Increase / (Decrease)","Proposed New Monthly Tenant Rent","Current Monthly Rent Subsidy","Proposed New Monthly Rent Subsidy","Project or Rental Based Rent Subsidy Source","HCD Approved New Monthly Tenant Rent (HCD use only)\n","HCD Approved Annual Tenant Rent (HCD use only)\n","Proposed Annual Tenant Rent","Proposed Annual Rent Subsidy","Approved Annual Gross Rent as % of Annual Household Income","Explanations of Compliance Issues\nFix or explain any bright yellow shaded cells within this worksheet (see cell comments)","SRI Rev Date","Rep Name","Project Name","# of RAs","HCD RA #1","HCD RA #2","HCD RA #3","HCD RA #4","City","County","Sponsor","Sponsor #2","Property Management Agent","Fiscal Year","Rpt Period","Total Units","Tax Credit","PIS Date","PIS Doc","RF Date","RF Doc","CALDAP, DPRLP CPI","RHCP-B, FHDP CPI","RHCP-B, FHDP Rent Factor","CHRP, SUHRP, DDS, SERA CPI","CHRP, SUHRP, DDS, SERA Rent Factor","HCD Approval Date","Apprvd Asst Rent","Apprvd UnAsst Rent","Apprvd Total Rent","Proj Sub Asst","Ten Sub Asst","Ten Pymt Asst","Ten Pymt UnAsst","Total Ten Pymt ","Failed to restrict # of Assisted units?","Cure Date","Failed to restrict occupancy to SNP, SH, or other?","Cure Date","Implemented rent increase without approval or charged excess rents?","Cure Date",null,null,"Current Rent exceeds Max",null,null,null,"Min Persons","Max Persons","Is unit subject to Over or Under occupancy requirements","Unit has an Under Occupied compliance issue","Unit has an Over Occupied compliance issue","35% AMI Income Limit for Existing Tenants §E(3)(a) and (b)","% Rent Increase for Existing Tenants §E(3)(a) and (b)","AMI/SMI/HOME Income Limit (most restrictive)","HLCP-E Gross Rent Calculation (used for column AL)"]
[null,null,null,null,null,null,null,null,null,null,null,null,null,null,null,null,null,null,null,null,null,null,null,null,null,null,{"$f":"IF(D7=\"Vacant\",\"Vacant\",IF(T7<>0,INDEX(IncomeLimits,MATCH(T7,IncomeLevels,0),MATCH(D7,IncomePersons,0)),0))","v":0},{"$f":"IF(D7=\"Vacant\",\"Vacant\",IF(V7<>0,INDEX(IncomeLimits,MATCH(V7,IncomeLevels,0),MATCH(D7,IncomePersons,0)),0))","v":0},{"$f":"IF(D7=\"Vacant\",\"Vacant\",IF(X7<>0,INDEX(IncomeLimits,MATCH(X7,IncomeLevels,0),MATCH(D7,IncomePersons,0)),0))","v":0},{"$f":"IF(D7=\"Vacant\",\"Vacant\",IF(Z7<>0,INDEX(IncomeLimits,MATCH(Z7,IncomeLevels,0),MATCH(D7,IncomePersons,0)),0))","v":0},{"$f":"IF(OR(T7=\"LI State\",T7=\"VLI State\"),0,IF(T7>1,INDEX(RentLimits,MATCH(T7,RentLevels,0),MATCH(E7,RentPersons,0)),0))","v":0},{"$f":"IF(OR(V7=\"LI State\",V7=\"VLI State\"),0,IF(V7>1,INDEX(RentLimits,MATCH(V7,RentLevels,0),MATCH(E7,RentPersons,0)),0))","v":0},{"$f":"IF(OR(X7=\"LI State\",X7=\"VLI State\"),0,IF(X7>1,INDEX(RentLimits,MATCH(X7,RentLevels,0),MATCH(E7,RentPersons,0)),0))","v":0},{"$f":"IF(OR(Z7=\"LI State\",Z7=\"VLI State\"),0,IF(Z7>1,INDEX(RentLimits,MATCH(Z7,RentLevels,0),MATCH(E7,RentPersons,0)),0))","v":0},{"$f":"IF(OR(A7=0,B7=\"X\"),0,IF(OR(S7=\"FHDP\",S7=\"RHCP-B\",U7=\"FHDP\",U7=\"RHCP-B\",W7=\"FHDP\",W7=\"RHCP-B\",Y7=\"FHDP\",Y7=\"RHCP-B\"),TRUNC((MIN(I7,K7)*(1+'1. Checklist & Certification'!$K$43)+AP7)),0))","v":0},{"$f":"IF(OR(A7=0,B7=\"X\"),0,IF(OR(S7=\"CHRP-R\",S7=\"SERA\",S7=\"SUHRP\",U7=\"CHRP-R\",U7=\"SERA\",U7=\"SUHRP\",W7=\"CHRP-R\",W7=\"SERA\",W7=\"SUHRP\",Y7=\"CHRP-R\",Y7=\"SERA\",Y7=\"SUHRP\"),TRUNC((MIN(I7,K7)*(1+'1. Checklist & Certification'!$K$49))),0))","v":0},{"$f":"IF(OR(A7=0,B7=\"X\"),0,IF(OR(S7=\"CALDAP\",S7=\"DPRLP\",U7=\"CALDAP\",U7=\"DPRLP\",W7=\"CALDAP\",W7=\"DPRLP\",Y7=\"CALDAP\",Y7=\"DPRLP\"),TRUNC(((MIN(I7,K7))*(1+'1. Checklist & Certification'!$G$4))),0))","v":0},{"$f":"IF(D7=\"Vacant\",0,IF(H7=0,0,IF(OR(AND(S7=\"FWHG\",T7=0),AND(U7=\"FWHG\",V7=0),AND(W7=\"FWHG\",X7=0),AND(Y7=\"FWHG\",Z7=0)),TRUNC(H7*0.3/12),IF(OR(S7=\"HLCP-E\",U7=\"HLCP-E\",W7=\"HLCP-E\",Y7=\"HLCP-E\"),DF7,0))))","v":0},{"$f":"IF(OR(A7=0,B7=\"X\"),0,IF(OR(S7=\"PRP\",S7=\"LPR\",U7=\"PRP\",U7=\"LPR\",W7=\"PRP\",W7=\"LPR\",Y7=\"PRP\",Y7=\"LPR\"),TRUNC(I7*(1+DD7)+AP7),0))","v":0},{"$f":"IF(OR(A7=0,B7=\"X\"),0,IF(OR(S7=\"PRP\",S7=\"LPR\",U7=\"PRP\",U7=\"LPR\",W7=\"PRP\",W7=\"LPR\",Y7=\"PRP\",Y7=\"LPR\"),TRUNC(H7*0.5/12),0))","v":0},{"$f":"IF(OR(A7=0,B7=\"X\"),0,IF(OR(S7=\"PRP\",S7=\"LPR\",U7=\"PRP\",U7=\"LPR\",W7=\"PRP\",W7=\"LPR\",Y7=\"PRP\",Y7=\"LPR\"),MAX(I7+AP7,MIN(IF(AE7:AN7<>0,AE7:AN7))),MIN(IF(AE7:AN7<>0,AE7:AN7))))","v":0},{"$f":"IF(A7=0,0,IF(AND(OR(S7=\"Mgr\",S7=0),OR(U7=\"Mgr\",U7=0),OR(W7=\"Mgr\",W7=0)),0,IF(LEFT($A7,2)=\"B*\",VLOOKUP($E7,'1. Checklist & Certification'!$D$26:$E$32,2),IF(LEFT($A7,2)=\"C*\",VLOOKUP($E7,'1. Checklist & Certification'!$F$26:$G$32,2),IF(LEFT($A7,2)=\"D*\",VLOOKUP($E7,'1. Checklist & Certification'!$H$26:$I$32,2),IF(LEFT($A7,2)=\"E*\",VLOOKUP($E7,'1. Checklist & Certification'!$J$26:$K$32,2),VLOOKUP($E7,'1. Checklist & Certification'!$A$26:$B$32,2)))))))","v":0},{"$f":"IF(AO7=0,0,ROUND(AO7-AP7,0))","v":0},{"$f":"AS7-I7","v":0},null,null,null,null,{"$f":"IF($CV$5=TRUE,IF(AS7<>0,IF(AV7<>\"Sec 8-Project\",MIN(AQ7,AS7),AS7),\"\"),\"\")","v":""},{"$f":"IF(AW7=\"\",\"\",(I7*J7)+((12-J7)*AW7))","v":""},{"$f":"(I7*J7)+((12-J7)*AS7)","v":0},{"$f":"(AT7*J7)+((12-J7)*AU7)","v":0},{"$f":"IFERROR((AX7+(AP7*12))/H7,0)","v":0},null,{"$f":"IF(A7=\"\",\"\",'1. Checklist & Certification'!$K$1)","v":""},{"$f":"IF(A7=\"\",\"\",'1. Checklist & Certification'!$C$62)","v":""},{"$f":"IF(A7=\"\",\"\",'1. Checklist & Certification'!$C$6)","v":""},{"$f":"IF(A7=\"\",\"\",'1. Checklist & Certification'!$G$5)","v":""},{"$f":"IFERROR(IF(A7=\"\",\"\",\n_xlfn.LET(_xlpm.Contract,'1. Checklist & Certification'!$C$7,\n_xlpm.Yr,TEXT(MOD(_xlfn.TEXTBEFORE(_xlpm.Contract,\"-\"),100),\"00\"),\n_xlpm.Program,_xlfn.TEXTAFTER(_xlfn.TEXTBEFORE(_xlpm.Contract,\"-\",2),\"-\"),\n_xlpm.CleanProgram,_xlfn.XLOOKUP(_xlpm.Program,SpellCheck[Input],SpellCheck[Correction],_xlpm.Program),\n_xlpm.Number,TEXT(_xlfn.TEXTAFTER(_xlpm.Contract,\"-\",2),\"0000\"),\n_xlfn.CONCAT(_xlpm.Yr,\"-\",_xlpm.CleanProgram,\"-\",_xlpm.Number))\n),\"\")","v":""},{"$f":"IFERROR(IF(A7=\"\",\"\",\n_xlfn.LET(_xlpm.Contract,'1. Checklist & Certification'!$C$8,\n_xlpm.Yr,TEXT(MOD(_xlfn.TEXTBEFORE(_xlpm.Contract,\"-\"),100),\"00\"),\n_xlpm.Program,_xlfn.TEXTAFTER(_xlfn.TEXTBEFORE(_xlpm.Contract,\"-\",2),\"-\"),\n_xlpm.CleanProgram,_xlfn.XLOOKUP(_xlpm.Program,SpellCheck[Input],SpellCheck[Correction],_xlpm.Program),\n_xlpm.Number,TEXT(_xlfn.TEXTAFTER(_xlpm.Contract,\"-\",2),\"0000\"),\n_xlfn.CONCAT(_xlpm.Yr,\"-\",_xlpm.CleanProgram,\"-\",_xlpm.Number))\n),\"\")","v":""},{"$f":"IFERROR(IF(A7=\"\",\"\",\n_xlfn.LET(_xlpm.Contract,'1. Checklist & Certification'!$F$7,\n_xlpm.Yr,TEXT(MOD(_xlfn.TEXTBEFORE(_xlpm.Contract,\"-\"),100),\"00\"),\n_xlpm.Program,_xlfn.TEXTAFTER(_xlfn.TEXTBEFORE(_xlpm.Contract,\"-\",2),\"-\"),\n_xlpm.CleanProgram,_xlfn.XLOOKUP(_xlpm.Program,SpellCheck[Input],SpellCheck[Correction],_xlpm.Program),\n_xlpm.Number,TEXT(_xlfn.TEXTAFTER(_xlpm.Contract,\"-\",2),\"0000\"),\n_xlfn.CONCAT(_xlpm.Yr,\"-\",_xlpm.CleanProgram,\"-\",_xlpm.Number))\n),\"\")","v":""},{"$f":"IFERROR(IF(A7=\"\",\"\",\n_xlfn.LET(_xlpm.Contract,'1. Checklist & Certification'!$F$8,\n_xlpm.Yr,TEXT(MOD(_xlfn.TEXTBEFORE(_xlpm.Contract,\"-\"),100),\"00\"),\n_xlpm.Program,_xlfn.TEXTAFTER(_xlfn.TEXTBEFORE(_xlpm.Contract,\"-\",2),\"-\"),\n_xlpm.CleanProgram,_xlfn.XLOOKUP(_xlpm.Program,SpellCheck[Input],SpellCheck[Correction],_xlpm.Program),\n_xlpm.Number,TEXT(_xlfn.TEXTAFTER(_xlpm.Contract,\"-\",2),\"0000\"),\n_xlfn.CONCAT(_xlpm.Yr,\"-\",_xlpm.CleanProgram,\"-\",_xlpm.Number))\n),\"\")","v":""},{"$f":"IF(A7=\"\",\"\",'1. Checklist & Certification'!$B$9)","v":""},{"$f":"IF(A7=\"\",\"\",'1. Checklist & Certification'!$F$9)","v":""},{"$f":"IF(A7=\"\",\"\",'1. Checklist & Certification'!$C$10)","v":""},{"$f":"IF(A7=\"\",\"\",'1. Checklist & Certification'!$C$11)","v":""},{"$f":"IF(A7=\"\",\"\",'1. Checklist & Certification'!$C$12)","v":""},{"$f":"IF(A7=\"\",\"\",'1. Checklist & Certification'!$B$14)","v":""},{"$f":"IF(A7=\"\",\"\",'1. Checklist & Certification'!$E$14)","v":""},{"$f":"IF(B7=\"\",\"\",'1. Checklist & Certification'!$G$14)","v":""},{"$f":"IF(A7=\"\",\"\",'MHP Family Income & Rent Limits'!$B$3)","v":""},{"$f":"IF(A7=\"\",\"\",'MHP Family Income & Rent Limits'!$J$3)","v":""},{"$f":"IF(A7=\"\",\"\",'MHP Family Income & Rent Limits'!$E$4)","v":""},{"$f":"IF(A7=\"\",\"\",'MHP Family Income & Rent Limits'!$C$7)","v":""},{"$f":"IF(A7=\"\",\"\",'MHP Family Income & Rent Limits'!$F$8)","v":""},{"$f":"IF(A7=\"\",\"\",'1. Checklist & Certification'!$G$4)","v":""},{"$f":"IF(A7=\"\",\"\",'1. Checklist & Certification'!$K$39)","v":""},{"$f":"IF(A7=\"\",\"\",'1. Checklist & Certification'!$K$43)","v":""},{"$f":"IF(A7=\"\",\"\",'1. Checklist & Certification'!$K$45)","v":""},{"$f":"IF(A7=\"\",\"\",'1. Checklist & Certification'!$K$49)","v":""},{"$f":"IF(A7=\"\",\"\",'1. Checklist & Certification'!$K$62)","v":""},{"$f":"IF(A7=\"\",\"\",'1. Checklist & Certification'!$E$66)","v":""},{"$f":"IF(A7=\"\",\"\",'1. Checklist & Certification'!$E$67)","v":""},{"$f":"IF(A7=\"\",\"\",'1. Checklist & Certification'!$E$68)","v":""},{"$f":"IF(A7=\"\",\"\",'1. Checklist & Certification'!$G$66)","v":""},{"$f":"IF(A7=\"\",\"\",'1. Checklist & Certification'!$H$66)","v":""},{"$f":"IF(A7=\"\",\"\",'1. Checklist & Certification'!$I$66)","v":""},{"$f":"IF(A7=\"\",\"\",'1. Checklist & Certification'!$I$67)","v":""},{"$f":"IF(A7=\"\",\"\",'1. Checklist & Certification'!$I$68)","v":""},{"$f":"IF(A7=\"\",\"\",'1. Checklist & Certification'!$B$69)","v":""},{"$f":"IF(A7=\"\",\"\",'1. Checklist & Certification'!$C$69)","v":""},{"$f":"IF(A7=\"\",\"\",'1. Checklist & Certification'!$F$69)","v":""},{"$f":"IF(A7=\"\",\"\",'1. Checklist & Certification'!$G$69)","v":""},{"$f":"IF(A7=\"\",\"\",'1. Checklist & Certification'!$J$69)","v":""},{"$f":"IF(A7=\"\",\"\",'1. Checklist & Certification'!$K$69)","v":""},null,null,{"$f":"IF(AND(OR('1. Checklist & Certification'!$M$16=1,'1. Checklist & Certification'!$M$19=2),AO7>0,B7=\"\",I7>0,AQ7<I7,AV7<>\"Sec 8-Project\"),\"X\",IF(AND(OR('1. Checklist & Certification'!$M$20=4,'1. Checklist & Certification'!$M$21=5,'1. Checklist & Certification'!$M$22=7),AO7>0,B7=\"\",I7>0,K7<I7),\"X\",\"\"))","v":""},{"$f":"IF(A7=\"\",\"\",IF(SUMPRODUCT(-- (ISNUMBER(SEARCH({\"*AHSC*\",\"*FMTW*\",\"*FWHG*\",\"*GHI*\",\"*HHC*\",\"*HLCP*\",\"*HOME*\",\"*LPR*\",\"*MHP*\",\"*NHTF*\",\"*NSP*\",\"*PRP*\",\"*TOD*\",\"*VHHP*\"},'1. Checklist & Certification'!$L$7)))),\"MHP\",\"Legacy\"))","v":""},{"$f":"CONCATENATE(S7,\",\",U7,\",\",W7)","v":",,"},"Ghocc",1,2,{"$f":"IF('1. Checklist & Certification'!$M$20=4,\"Both\",IF(OR('1. Checklist & Certification'!$M$15>0,S7=\"CHRP-R\",U7=\"CHRP-R\",W7=\"CHRP-R\",Y7=\"CHRP-R\"),\"Under\",\"No\"))","v":"No"},{"$f":"IF(OR(B7=\"X\",D7=\"Vacant\",D7<1),\"No\",IF(AND(CZ7<>\"No\",D7<VLOOKUP(E7,$CW$7:$CY$13,2)),\"Yes\",\"No\"))","v":"No"},{"$f":"IF(OR(B7=\"X\",D7=\"Vacant\",D7<1),\"No\",IF(AND(CZ7=\"Both\",D7>VLOOKUP(E7,$CW$7:$CY$13,3)),\"Yes\",\"No\"))","v":"No"},{"$f":"_xlfn.IFS(D7=\"\",\"\",D7=1,'MHP Family Income & Rent Limits'!$E$17,D7=2,'MHP Family Income & Rent Limits'!$F$17,D7=3,'MHP Family Income & Rent Limits'!$G$17,D7=4,'MHP Family Income & Rent Limits'!$H$17,D7=5,'MHP Family Income & Rent Limits'!$I$17,D7=6,'MHP Family Income & Rent Limits'!$J$17,D7=7,'MHP Family Income & Rent Limits'!$K$17,D7=8,'MHP Family Income & Rent Limits'!$L$17)","v":""},{"$f":"IF(H7=\"\",\"\",IF(H7<=DC7,0.05,0.1))","v":""},{"$f":"IF(OR(A7=0,B7=\"X\"),0,MIN(IF(AA7:AD7<>0,AA7:AD7)))","v":0},{"$f":"IF(OR(H7=\"\",I7=\"\"),0,IF(H7*0.3/12>I7,MIN(H7*0.3/12,I7*1.1)+AP7,I7*(1+(VLOOKUP('1. Checklist & Certification'!$F$9,'HLCP-E Rent Change'!$A$1:$D$59,4,FALSE)))+AP7))","v":0}]
[null,null,null,null,null,null,null,null,null,null,null,null,null,null,null,null,null,null,null,null,null,null,null,null,null,null,0,0,0,0,0,0,0,0,{"$f":"IF(OR(A8=0,B8=\"X\"),0,IF(OR(S8=\"FHDP\",S8=\"RHCP-B\",U8=\"FHDP\",U8=\"RHCP-B\",W8=\"FHDP\",W8=\"RHCP-B\",Y8=\"FHDP\",Y8=\"RHCP-B\"),TRUNC((MIN(I8,K8)*(1+'1. Checklist & Certification'!$K$43)+AP8)),0))","v":0},{"$f":"IF(OR(A8=0,B8=\"X\"),0,IF(OR(S8=\"CHRP-R\",S8=\"SERA\",S8=\"SUHRP\",U8=\"CHRP-R\",U8=\"SERA\",U8=\"SUHRP\",W8=\"CHRP-R\",W8=\"SERA\",W8=\"SUHRP\",Y8=\"CHRP-R\",Y8=\"SERA\",Y8=\"SUHRP\"),TRUNC((MIN(I8,K8)*(1+'1. Checklist & Certification'!$K$49))),0))","v":0},{"$f":"IF(OR(A8=0,B8=\"X\"),0,IF(OR(S8=\"CALDAP\",S8=\"DPRLP\",U8=\"CALDAP\",U8=\"DPRLP\",W8=\"CALDAP\",W8=\"DPRLP\",Y8=\"CALDAP\",Y8=\"DPRLP\"),TRUNC(((MIN(I8,K8))*(1+'1. Checklist & Certification'!$G$4))),0))","v":0},0,{"$f":"IF(OR(A8=0,B8=\"X\"),0,IF(OR(S8=\"PRP\",S8=\"LPR\",U8=\"PRP\",U8=\"LPR\",W8=\"PRP\",W8=\"LPR\",Y8=\"PRP\",Y8=\"LPR\"),TRUNC(I8*(1+DD8)+AP8),0))","v":0},{"$f":"IF(OR(A8=0,B8=\"X\"),0,IF(OR(S8=\"PRP\",S8=\"LPR\",U8=\"PRP\",U8=\"LPR\",W8=\"PRP\",W8=\"LPR\",Y8=\"PRP\",Y8=\"LPR\"),TRUNC(H8*0.5/12),0))","v":0},{"$f":"IF(OR(A8=0,B8=\"X\"),0,IF(OR(S8=\"PRP\",S8=\"LPR\",U8=\"PRP\",U8=\"LPR\",W8=\"PRP\",W8=\"LPR\",Y8=\"PRP\",Y8=\"LPR\"),MAX(I8+AP8,MIN(IF(AE8:AN8<>0,AE8:AN8))),MIN(IF(AE8:AN8<>0,AE8:AN8))))","v":0},{"$f":"IF(A8=0,0,IF(AND(OR(S8=\"Mgr\",S8=0),OR(U8=\"Mgr\",U8=0),OR(W8=\"Mgr\",W8=0)),0,IF(LEFT($A8,2)=\"B*\",VLOOKUP($E8,'1. Checklist & Certification'!$D$26:$E$32,2),IF(LEFT($A8,2)=\"C*\",VLOOKUP($E8,'1. Checklist & Certification'!$F$26:$G$32,2),IF(LEFT($A8,2)=\"D*\",VLOOKUP($E8,'1. Checklist & Certification'!$H$26:$I$32,2),IF(LEFT($A8,2)=\"E*\",VLOOKUP($E8,'1. Checklist & Certification'!$J$26:$K$32,2),VLOOKUP($E8,'1. Checklist & Certification'!$A$26:$B$32,2)))))))","v":0},{"$f":"IF(AO8=0,0,ROUND(AO8-AP8,0))","v":0},0,null,null,null,null,"","",0,0,{"$f":"IFERROR((AX8+(AP8*12))/H8,0)","v":0},null,{"$f":"IF(A8=\"\",\"\",'1. Checklist & Certification'!$K$1)","v":""},{"$f":"IF(A8=\"\",\"\",'1. Checklist & Certification'!$C$62)","v":""},{"$f":"IF(A8=\"\",\"\",'1. Checklist & Certification'!$C$6)","v":""},{"$f":"IF(A8=\"\",\"\",'1. Checklist & Certification'!$G$5)","v":""},{"$f":"IFERROR(IF(A8=\"\",\"\",\n_xlfn.LET(_xlpm.Contract,'1. Checklist & Certification'!$C$7,\n_xlpm.Yr,TEXT(MOD(_xlfn.TEXTBEFORE(_xlpm.Contract,\"-\"),100),\"00\"),\n_xlpm.Program,_xlfn.TEXTAFTER(_xlfn.TEXTBEFORE(_xlpm.Contract,\"-\",2),\"-\"),\n_xlpm.CleanProgram,_xlfn.XLOOKUP(_xlpm.Program,SpellCheck[Input],SpellCheck[Correction],_xlpm.Program),\n_xlpm.Number,TEXT(_xlfn.TEXTAFTER(_xlpm.Contract,\"-\",2),\"0000\"),\n_xlfn.CONCAT(_xlpm.Yr,\"-\",_xlpm.CleanProgram,\"-\",_xlpm.Number))\n),\"\")","v":""},{"$f":"IFERROR(IF(A8=\"\",\"\",\n_xlfn.LET(_xlpm.Contract,'1. Checklist & Certification'!$C$8,\n_xlpm.Yr,TEXT(MOD(_xlfn.TEXTBEFORE(_xlpm.Contract,\"-\"),100),\"00\"),\n_xlpm.Program,_xlfn.TEXTAFTER(_xlfn.TEXTBEFORE(_xlpm.Contract,\"-\",2),\"-\"),\n_xlpm.CleanProgram,_xlfn.XLOOKUP(_xlpm.Program,SpellCheck[Input],SpellCheck[Correction],_xlpm.Program),\n_xlpm.Number,TEXT(_xlfn.TEXTAFTER(_xlpm.Contract,\"-\",2),\"0000\"),\n_xlfn.CONCAT(_xlpm.Yr,\"-\",_xlpm.CleanProgram,\"-\",_xlpm.Number))\n),\"\")","v":""},{"$f":"IFERROR(IF(A8=\"\",\"\",\n_xlfn.LET(_xlpm.Contract,'1. Checklist & Certification'!$F$7,\n_xlpm.Yr,TEXT(MOD(_xlfn.TEXTBEFORE(_xlpm.Contract,\"-\"),100),\"00\"),\n_xlpm.Program,_xlfn.TEXTAFTER(_xlfn.TEXTBEFORE(_xlpm.Contract,\"-\",2),\"-\"),\n_xlpm.CleanProgram,_xlfn.XLOOKUP(_xlpm.Program,SpellCheck[Input],SpellCheck[Correction],_xlpm.Program),\n_xlpm.Number,TEXT(_xlfn.TEXTAFTER(_xlpm.Contract,\"-\",2),\"0000\"),\n_xlfn.CONCAT(_xlpm.Yr,\"-\",_xlpm.CleanProgram,\"-\",_xlpm.Number))\n),\"\")","v":""},{"$f":"IFERROR(IF(A8=\"\",\"\",\n_xlfn.LET(_xlpm.Contract,'1. Checklist & Certification'!$F$8,\n_xlpm.Yr,TEXT(MOD(_xlfn.TEXTBEFORE(_xlpm.Contract,\"-\"),100),\"00\"),\n_xlpm.Program,_xlfn.TEXTAFTER(_xlfn.TEXTBEFORE(_xlpm.Contract,\"-\",2),\"-\"),\n_xlpm.CleanProgram,_xlfn.XLOOKUP(_xlpm.Program,SpellCheck[Input],SpellCheck[Correction],_xlpm.Program),\n_xlpm.Number,TEXT(_xlfn.TEXTAFTER(_xlpm.Contract,\"-\",2),\"0000\"),\n_xlfn.CONCAT(_xlpm.Yr,\"-\",_xlpm.CleanProgram,\"-\",_xlpm.Number))\n),\"\")","v":""},{"$f":"IF(A8=\"\",\"\",'1. Checklist & Certification'!$B$9)","v":""},{"$f":"IF(A8=\"\",\"\",'1. Checklist & Certification'!$F$9)","v":""},{"$f":"IF(A8=\"\",\"\",'1. Checklist & Certification'!$C$10)","v":""},{"$f":"IF(A8=\"\",\"\",'1. Checklist & Certification'!$C$11)","v":""},{"$f":"IF(A8=\"\",\"\",'1. Checklist & Certification'!$C$12)","v":""},{"$f":"IF(A8=\"\",\"\",'1. Checklist & Certification'!$B$14)","v":""},{"$f":"IF(A8=\"\",\"\",'1. Checklist & Certification'!$E$14)","v":""},{"$f":"IF(B8=\"\",\"\",'1. Checklist & Certification'!$G$14)","v":""},{"$f":"IF(A8=\"\",\"\",'MHP Family Income & Rent Limits'!$B$3)","v":""},{"$f":"IF(A8=\"\",\"\",'MHP Family Income & Rent Limits'!$J$3)","v":""},{"$f":"IF(A8=\"\",\"\",'MHP Family Income & Rent Limits'!$E$4)","v":""},{"$f":"IF(A8=\"\",\"\",'MHP Family Income & Rent Limits'!$C$7)","v":""},{"$f":"IF(A8=\"\",\"\",'MHP Family Income & Rent Limits'!$F$8)","v":""},{"$f":"IF(A8=\"\",\"\",'1. Checklist & Certification'!$G$4)","v":""},{"$f":"IF(A8=\"\",\"\",'1. Checklist & Certification'!$K$39)","v":""},{"$f":"IF(A8=\"\",\"\",'1. Checklist & Certification'!$K$43)","v":""},{"$f":"IF(A8=\"\",\"\",'1. Checklist & Certification'!$K$45)","v":""},{"$f":"IF(A8=\"\",\"\",'1. Checklist & Certification'!$K$49)","v":""},{"$f":"IF(A8=\"\",\"\",'1. Checklist & Certification'!$K$62)","v":""},{"$f":"IF(A8=\"\",\"\",'1. Checklist & Certification'!$E$66)","v":""},{"$f":"IF(A8=\"\",\"\",'1. Checklist & Certification'!$E$67)","v":""},{"$f":"IF(A8=\"\",\"\",'1. Checklist & Certification'!$E$68)","v":""},{"$f":"IF(A8=\"\",\"\",'1. Checklist & Certification'!$G$66)","v":""},{"$f":"IF(A8=\"\",\"\",'1. Checklist & Certification'!$H$66)","v":""},{"$f":"IF(A8=\"\",\"\",'1. Checklist & Certification'!$I$66)","v":""},{"$f":"IF(A8=\"\",\"\",'1. Checklist & Certification'!$I$67)","v":""},{"$f":"IF(A8=\"\",\"\",'1. Checklist & Certification'!$I$68)","v":""},{"$f":"IF(A8=\"\",\"\",'1. Checklist & Certification'!$B$69)","v":""},{"$f":"IF(A8=\"\",\"\",'1. Checklist & Certification'!$C$69)","v":""},{"$f":"IF(A8=\"\",\"\",'1. Checklist & Certification'!$F$69)","v":""},{"$f":"IF(A8=\"\",\"\",'1. Checklist & Certification'!$G$69)","v":""},{"$f":"IF(A8=\"\",\"\",'1. Checklist & Certification'!$J$69)","v":""},{"$f":"IF(A8=\"\",\"\",'1. Checklist & Certification'!$K$69)","v":""},null,null,{"$f":"IF(AND(OR('1. Checklist & Certification'!$M$16=1,'1. Checklist & Certification'!$M$19=2),AO8>0,B8=\"\",I8>0,AQ8<I8,AV8<>\"Sec 8-Project\"),\"X\",IF(AND(OR('1. Checklist & Certification'!$M$20=4,'1. Checklist & Certification'!$M$21=5,'1. Checklist & Certification'!$M$22=7),AO8>0,B8=\"\",I8>0,K8<I8),\"X\",\"\"))","v":""},{"$f":"IF(A8=\"\",\"\",IF(SUMPRODUCT(-- (ISNUMBER(SEARCH({\"*AHSC*\",\"*FMTW*\",\"*FWHG*\",\"*GHI*\",\"*HHC*\",\"*HLCP*\",\"*HOME*\",\"*LPR*\",\"*MHP*\",\"*NHTF*\",\"*NSP*\",\"*PRP*\",\"*TOD*\",\"*VHHP*\"},'1. Checklist & Certification'!$L$7)))),\"MHP\",\"Legacy\"))","v":""},",,",0,1,2,{"$f":"IF('1. Checklist & Certification'!$M$20=4,\"Both\",IF(OR('1. Checklist & Certification'!$M$15>0,S8=\"CHRP-R\",U8=\"CHRP-R\",W8=\"CHRP-R\",Y8=\"CHRP-R\"),\"Under\",\"No\"))","v":"No"},{"$f":"IF(OR(B8=\"X\",D8=\"Vacant\",D8<1),\"No\",IF(AND(CZ8<>\"No\",D8<VLOOKUP(E8,$CW$7:$CY$13,2)),\"Yes\",\"No\"))","v":"No"},{"$f":"IF(OR(B8=\"X\",D8=\"Vacant\",D8<1),\"No\",IF(AND(CZ8=\"Both\",D8>VLOOKUP(E8,$CW$7:$CY$13,3)),\"Yes\",\"No\"))","v":"No"},{"$f":"_xlfn.IFS(D8=\"\",\"\",D8=1,'MHP Family Income & Rent Limits'!$E$17,D8=2,'MHP Family Income & Rent Limits'!$F$17,D8=3,'MHP Family Income & Rent Limits'!$G$17,D8=4,'MHP Family Income & Rent Limits'!$H$17,D8=5,'MHP Family Income & Rent Limits'!$I$17,D8=6,'MHP Family Income & Rent Limits'!$J$17,D8=7,'MHP Family Income & Rent Limits'!$K$17,D8=8,'MHP Family Income & Rent Limits'!$L$17)","v":""},"",{"$f":"IF(OR(A8=0,B8=\"X\"),0,MIN(IF(AA8:AD8<>0,AA8:AD8)))","v":0},{"$f":"IF(OR(H8=\"\",I8=\"\"),0,IF(H8*0.3/12>I8,MIN(H8*0.3/12,I8*1.1)+AP8,I8*(1+(VLOOKUP('1. Checklist & Certification'!$F$9,'HLCP-E Rent Change'!$A$1:$D$59,4,FALSE)))+AP8))","v":0}]
[null,null,null,null,null,null,null,null,null,null,null,null,null,null,null,null,null,null,null,null,null,null,null,null,null,null,0,0,0,0,0,0,0,0,{"$f":"IF(OR(A9=0,B9=\"X\"),0,IF(OR(S9=\"FHDP\",S9=\"RHCP-B\",U9=\"FHDP\",U9=\"RHCP-B\",W9=\"FHDP\",W9=\"RHCP-B\",Y9=\"FHDP\",Y9=\"RHCP-B\"),TRUNC((MIN(I9,K9)*(1+'1. Checklist & Certification'!$K$43)+AP9)),0))","v":0},{"$f":"IF(OR(A9=0,B9=\"X\"),0,IF(OR(S9=\"CHRP-R\",S9=\"SERA\",S9=\"SUHRP\",U9=\"CHRP-R\",U9=\"SERA\",U9=\"SUHRP\",W9=\"CHRP-R\",W9=\"SERA\",W9=\"SUHRP\",Y9=\"CHRP-R\",Y9=\"SERA\",Y9=\"SUHRP\"),TRUNC((MIN(I9,K9)*(1+'1. Checklist & Certification'!$K$49))),0))","v":0},{"$f":"IF(OR(A9=0,B9=\"X\"),0,IF(OR(S9=\"CALDAP\",S9=\"DPRLP\",U9=\"CALDAP\",U9=\"DPRLP\",W9=\"CALDAP\",W9=\"DPRLP\",Y9=\"CALDAP\",Y9=\"DPRLP\"),TRUNC(((MIN(I9,K9))*(1+'1. Checklist & Certification'!$G$4))),0))","v":0},0,0,0,{"$f":"IF(OR(A9=0,B9=\"X\"),0,IF(OR(S9=\"PRP\",S9=\"LPR\",U9=\"PRP\",U9=\"LPR\",W9=\"PRP\",W9=\"LPR\",Y9=\"PRP\",Y9=\"LPR\"),MAX(I9+AP9,MIN(IF(AE9:AN9<>0,AE9:AN9))),MIN(IF(AE9:AN9<>0,AE9:AN9))))","v":0},{"$f":"IF(A9=0,0,IF(AND(OR(S9=\"Mgr\",S9=0),OR(U9=\"Mgr\",U9=0),OR(W9=\"Mgr\",W9=0)),0,IF(LEFT($A9,2)=\"B*\",VLOOKUP($E9,'1. Checklist & Certification'!$D$26:$E$32,2),IF(LEFT($A9,2)=\"C*\",VLOOKUP($E9,'1. Checklist & Certification'!$F$26:$G$32,2),IF(LEFT($A9,2)=\"D*\",VLOOKUP($E9,'1. Checklist & Certification'!$H$26:$I$32,2),IF(LEFT($A9,2)=\"E*\",VLOOKUP($E9,'1. Checklist & Certification'!$J$26:$K$32,2),VLOOKUP($E9,'1. Checklist & Certification'!$A$26:$B$32,2)))))))","v":0},0,0,null,null,null,null,"","",0,0,0,null,{"$f":"IF(A9=\"\",\"\",'1. Checklist & Certification'!$K$1)","v":""},{"$f":"IF(A9=\"\",\"\",'1. Checklist & Certification'!$C$62)","v":""},{"$f":"IF(A9=\"\",\"\",'1. Checklist & Certification'!$C$6)","v":""},{"$f":"IF(A9=\"\",\"\",'1. Checklist & Certification'!$G$5)","v":""},{"$f":"IFERROR(IF(A9=\"\",\"\",\n_xlfn.LET(_xlpm.Contract,'1. Checklist & Certification'!$C$7,\n_xlpm.Yr,TEXT(MOD(_xlfn.TEXTBEFORE(_xlpm.Contract,\"-\"),100),\"00\"),\n_xlpm.Program,_xlfn.TEXTAFTER(_xlfn.TEXTBEFORE(_xlpm.Contract,\"-\",2),\"-\"),\n_xlpm.CleanProgram,_xlfn.XLOOKUP(_xlpm.Program,SpellCheck[Input],SpellCheck[Correction],_xlpm.Program),\n_xlpm.Number,TEXT(_xlfn.TEXTAFTER(_xlpm.Contract,\"-\",2),\"0000\"),\n_xlfn.CONCAT(_xlpm.Yr,\"-\",_xlpm.CleanProgram,\"-\",_xlpm.Number))\n),\"\")","v":""},{"$f":"IFERROR(IF(A9=\"\",\"\",\n_xlfn.LET(_xlpm.Contract,'1. Checklist & Certification'!$C$8,\n_xlpm.Yr,TEXT(MOD(_xlfn.TEXTBEFORE(_xlpm.Contract,\"-\"),100),\"00\"),\n_xlpm.Program,_xlfn.TEXTAFTER(_xlfn.TEXTBEFORE(_xlpm.Contract,\"-\",2),\"-\"),\n_xlpm.CleanProgram,_xlfn.XLOOKUP(_xlpm.Program,SpellCheck[Input],SpellCheck[Correction],_xlpm.Program),\n_xlpm.Number,TEXT(_xlfn.TEXTAFTER(_xlpm.Contract,\"-\",2),\"0000\"),\n_xlfn.CONCAT(_xlpm.Yr,\"-\",_xlpm.CleanProgram,\"-\",_xlpm.Number))\n),\"\")","v":""},{"$f":"IFERROR(IF(A9=\"\",\"\",\n_xlfn.LET(_xlpm.Contract,'1. Checklist & Certification'!$F$7,\n_xlpm.Yr,TEXT(MOD(_xlfn.TEXTBEFORE(_xlpm.Contract,\"-\"),100),\"00\"),\n_xlpm.Program,_xlfn.TEXTAFTER(_xlfn.TEXTBEFORE(_xlpm.Contract,\"-\",2),\"-\"),\n_xlpm.CleanProgram,_xlfn.XLOOKUP(_xlpm.Program,SpellCheck[Input],SpellCheck[Correction],_xlpm.Program),\n_xlpm.Number,TEXT(_xlfn.TEXTAFTER(_xlpm.Contract,\"-\",2),\"0000\"),\n_xlfn.CONCAT(_xlpm.Yr,\"-\",_xlpm.CleanProgram,\"-\",_xlpm.Number))\n),\"\")","v":""},{"$f":"IFERROR(IF(A9=\"\",\"\",\n_xlfn.LET(_xlpm.Contract,'1. Checklist & Certification'!$F$8,\n_xlpm.Yr,TEXT(MOD(_xlfn.TEXTBEFORE(_xlpm.Contract,\"-\"),100),\"00\"),\n_xlpm.Program,_xlfn.TEXTAFTER(_xlfn.TEXTBEFORE(_xlpm.Contract,\"-\",2),\"-\"),\n_xlpm.CleanProgram,_xlfn.XLOOKUP(_xlpm.Program,SpellCheck[Input],SpellCheck[Correction],_xlpm.Program),\n_xlpm.Number,TEXT(_xlfn.TEXTAFTER(_xlpm.Contract,\"-\",2),\"0000\"),\n_xlfn.CONCAT(_xlpm.Yr,\"-\",_xlpm.CleanProgram,\"-\",_xlpm.Number))\n),\"\")","v":""},{"$f":"IF(A9=\"\",\"\",'1. Checklist & Certification'!$B$9)","v":""},{"$f":"IF(A9=\"\",\"\",'1. Checklist & Certification'!$F$9)","v":""},{"$f":"IF(A9=\"\",\"\",'1. Checklist & Certification'!$C$10)","v":""},{"$f":"IF(A9=\"\",\"\",'1. Checklist & Certification'!$C$11)","v":""},{"$f":"IF(A9=\"\",\"\",'1. Checklist & Certification'!$C$12)","v":""},{"$f":"IF(A9=\"\",\"\",'1. Checklist & Certification'!$B$14)","v":""},{"$f":"IF(A9=\"\",\"\",'1. Checklist & Certification'!$E$14)","v":""},{"$f":"IF(B9=\"\",\"\",'1. Checklist & Certification'!$G$14)","v":""},{"$f":"IF(A9=\"\",\"\",'MHP Family Income & Rent Limits'!$B$3)","v":""},{"$f":"IF(A9=\"\",\"\",'MHP Family Income & Rent Limits'!$J$3)","v":""},{"$f":"IF(A9=\"\",\"\",'MHP Family Income & Rent Limits'!$E$4)","v":""},{"$f":"IF(A9=\"\",\"\",'MHP Family Income & Rent Limits'!$C$7)","v":""},{"$f":"IF(A9=\"\",\"\",'MHP Family Income & Rent Limits'!$F$8)","v":""},{"$f":"IF(A9=\"\",\"\",'1. Checklist & Certification'!$G$4)","v":""},{"$f":"IF(A9=\"\",\"\",'1. Checklist & Certification'!$K$39)","v":""},{"$f":"IF(A9=\"\",\"\",'1. Checklist & Certification'!$K$43)","v":""},{"$f":"IF(A9=\"\",\"\",'1. Checklist & Certification'!$K$45)","v":""},{"$f":"IF(A9=\"\",\"\",'1. Checklist & Certification'!$K$49)","v":""},{"$f":"IF(A9=\"\",\"\",'1. Checklist & Certification'!$K$62)","v":""},{"$f":"IF(A9=\"\",\"\",'1. Checklist & Certification'!$E$66)","v":""},{"$f":"IF(A9=\"\",\"\",'1. Checklist & Certification'!$E$67)","v":""},{"$f":"IF(A9=\"\",\"\",'1. Checklist & Certification'!$E$68)","v":""},{"$f":"IF(A9=\"\",\"\",'1. Checklist & Certification'!$G$66)","v":""},{"$f":"IF(A9=\"\",\"\",'1. Checklist & Certification'!$H$66)","v":""},{"$f":"IF(A9=\"\",\"\",'1. Checklist & Certification'!$I$66)","v":""},{"$f":"IF(A9=\"\",\"\",'1. Checklist & Certification'!$I$67)","v":""},{"$f":"IF(A9=\"\",\"\",'1. Checklist & Certification'!$I$68)","v":""},{"$f":"IF(A9=\"\",\"\",'1. Checklist & Certification'!$B$69)","v":""},{"$f":"IF(A9=\"\",\"\",'1. Checklist & Certification'!$C$69)","v":""},{"$f":"IF(A9=\"\",\"\",'1. Checklist & Certification'!$F$69)","v":""},{"$f":"IF(A9=\"\",\"\",'1. Checklist & Certification'!$G$69)","v":""},{"$f":"IF(A9=\"\",\"\",'1. Checklist & Certification'!$J$69)","v":""},{"$f":"IF(A9=\"\",\"\",'1. Checklist & Certification'!$K$69)","v":""},null,null,{"$f":"IF(AND(OR('1. Checklist & Certification'!$M$16=1,'1. Checklist & Certification'!$M$19=2),AO9>0,B9=\"\",I9>0,AQ9<I9,AV9<>\"Sec 8-Project\"),\"X\",IF(AND(OR('1. Checklist & Certification'!$M$20=4,'1. Checklist & Certification'!$M$21=5,'1. Checklist & Certification'!$M$22=7),AO9>0,B9=\"\",I9>0,K9<I9),\"X\",\"\"))","v":""},{"$f":"IF(A9=\"\",\"\",IF(SUMPRODUCT(-- (ISNUMBER(SEARCH({\"*AHSC*\",\"*FMTW*\",\"*FWHG*\",\"*GHI*\",\"*HHC*\",\"*HLCP*\",\"*HOME*\",\"*LPR*\",\"*MHP*\",\"*NHTF*\",\"*NSP*\",\"*PRP*\",\"*TOD*\",\"*VHHP*\"},'1. Checklist & Certification'!$L$7)))),\"MHP\",\"Legacy\"))","v":""},",,",1,1,3,{"$f":"IF('1. Checklist & Certification'!$M$20=4,\"Both\",IF(OR('1. Checklist & Certification'!$M$15>0,S9=\"CHRP-R\",U9=\"CHRP-R\",W9=\"CHRP-R\",Y9=\"CHRP-R\"),\"Under\",\"No\"))","v":"No"},"No","No",{"$f":"_xlfn.IFS(D9=\"\",\"\",D9=1,'MHP Family Income & Rent Limits'!$E$17,D9=2,'MHP Family Income & Rent Limits'!$F$17,D9=3,'MHP Family Income & Rent Limits'!$G$17,D9=4,'MHP Family Income & Rent Limits'!$H$17,D9=5,'MHP Family Income & Rent Limits'!$I$17,D9=6,'MHP Family Income & Rent Limits'!$J$17,D9=7,'MHP Family Income & Rent Limits'!$K$17,D9=8,'MHP Family Income & Rent Limits'!$L$17)","v":""},"",{"$f":"IF(OR(A9=0,B9=\"X\"),0,MIN(IF(AA9:AD9<>0,AA9:AD9)))","v":0},{"$f":"IF(OR(H9=\"\",I9=\"\"),0,IF(H9*0.3/12>I9,MIN(H9*0.3/12,I9*1.1)+AP9,I9*(1+(VLOOKUP('1. Checklist & Certification'!$F$9,'HLCP-E Rent Change'!$A$1:$D$59,4,FALSE)))+AP9))","v":0}]
[null,null,null,null,null,null,null,null,null,null,null,null,null,null,null,null,null,null,null,null,null,null,null,null,null,null,0,0,0,0,0,0,0,0,{"$f":"IF(OR(A10=0,B10=\"X\"),0,IF(OR(S10=\"FHDP\",S10=\"RHCP-B\",U10=\"FHDP\",U10=\"RHCP-B\",W10=\"FHDP\",W10=\"RHCP-B\",Y10=\"FHDP\",Y10=\"RHCP-B\"),TRUNC((MIN(I10,K10)*(1+'1. Checklist & Certification'!$K$43)+AP10)),0))","v":0},{"$f":"IF(OR(A10=0,B10=\"X\"),0,IF(OR(S10=\"CHRP-R\",S10=\"SERA\",S10=\"SUHRP\",U10=\"CHRP-R\",U10=\"SERA\",U10=\"SUHRP\",W10=\"CHRP-R\",W10=\"SERA\",W10=\"SUHRP\",Y10=\"CHRP-R\",Y10=\"SERA\",Y10=\"SUHRP\"),TRUNC((MIN(I10,K10)*(1+'1. Checklist & Certification'!$K$49))),0))","v":0},{"$f":"IF(OR(A10=0,B10=\"X\"),0,IF(OR(S10=\"CALDAP\",S10=\"DPRLP\",U10=\"CALDAP\",U10=\"DPRLP\",W10=\"CALDAP\",W10=\"DPRLP\",Y10=\"CALDAP\",Y10=\"DPRLP\"),TRUNC(((MIN(I10,K10))*(1+'1. Checklist & Certification'!$G$4))),0))","v":0},0,0,0,{"$f":"IF(OR(A10=0,B10=\"X\"),0,IF(OR(S10=\"PRP\",S10=\"LPR\",U10=\"PRP\",U10=\"LPR\",W10=\"PRP\",W10=\"LPR\",Y10=\"PRP\",Y10=\"LPR\"),MAX(I10+AP10,MIN(IF(AE10:AN10<>0,AE10:AN10))),MIN(IF(AE10:AN10<>0,AE10:AN10))))","v":0},{"$f":"IF(A10=0,0,IF(AND(OR(S10=\"Mgr\",S10=0),OR(U10=\"Mgr\",U10=0),OR(W10=\"Mgr\",W10=0)),0,IF(LEFT($A10,2)=\"B*\",VLOOKUP($E10,'1. Checklist & Certification'!$D$26:$E$32,2),IF(LEFT($A10,2)=\"C*\",VLOOKUP($E10,'1. Checklist & Certification'!$F$26:$G$32,2),IF(LEFT($A10,2)=\"D*\",VLOOKUP($E10,'1. Checklist & Certification'!$H$26:$I$32,2),IF(LEFT($A10,2)=\"E*\",VLOOKUP($E10,'1. Checklist & Certification'!$J$26:$K$32,2),VLOOKUP($E10,'1. Checklist & Certification'!$A$26:$B$32,2)))))))","v":0},0,0,null,null,null,null,"","",0,0,0,null,{"$f":"IF(A10=\"\",\"\",'1. Checklist & Certification'!$K$1)","v":""},{"$f":"IF(A10=\"\",\"\",'1. Checklist & Certification'!$C$62)","v":""},{"$f":"IF(A10=\"\",\"\",'1. Checklist & Certification'!$C$6)","v":""},{"$f":"IF(A10=\"\",\"\",'1. Checklist & Certification'!$G$5)","v":""},{"$f":"IFERROR(IF(A10=\"\",\"\",\n_xlfn.LET(_xlpm.Contract,'1. Checklist & Certification'!$C$7,\n_xlpm.Yr,TEXT(MOD(_xlfn.TEXTBEFORE(_xlpm.Contract,\"-\"),100),\"00\"),\n_xlpm.Program,_xlfn.TEXTAFTER(_xlfn.TEXTBEFORE(_xlpm.Contract,\"-\",2),\"-\"),\n_xlpm.CleanProgram,_xlfn.XLOOKUP(_xlpm.Program,SpellCheck[Input],SpellCheck[Correction],_xlpm.Program),\n_xlpm.Number,TEXT(_xlfn.TEXTAFTER(_xlpm.Contract,\"-\",2),\"0000\"),\n_xlfn.CONCAT(_xlpm.Yr,\"-\",_xlpm.CleanProgram,\"-\",_xlpm.Number))\n),\"\")","v":""},{"$f":"IFERROR(IF(A10=\"\",\"\",\n_xlfn.LET(_xlpm.Contract,'1. Checklist & Certification'!$C$8,\n_xlpm.Yr,TEXT(MOD(_xlfn.TEXTBEFORE(_xlpm.Contract,\"-\"),100),\"00\"),\n_xlpm.Program,_xlfn.TEXTAFTER(_xlfn.TEXTBEFORE(_xlpm.Contract,\"-\",2),\"-\"),\n_xlpm.CleanProgram,_xlfn.XLOOKUP(_xlpm.Program,SpellCheck[Input],SpellCheck[Correction],_xlpm.Program),\n_xlpm.Number,TEXT(_xlfn.TEXTAFTER(_xlpm.Contract,\"-\",2),\"0000\"),\n_xlfn.CONCAT(_xlpm.Yr,\"-\",_xlpm.CleanProgram,\"-\",_xlpm.Number))\n),\"\")","v":""},{"$f":"IFERROR(IF(A10=\"\",\"\",\n_xlfn.LET(_xlpm.Contract,'1. Checklist & Certification'!$F$7,\n_xlpm.Yr,TEXT(MOD(_xlfn.TEXTBEFORE(_xlpm.Contract,\"-\"),100),\"00\"),\n_xlpm.Program,_xlfn.TEXTAFTER(_xlfn.TEXTBEFORE(_xlpm.Contract,\"-\",2),\"-\"),\n_xlpm.CleanProgram,_xlfn.XLOOKUP(_xlpm.Program,SpellCheck[Input],SpellCheck[Correction],_xlpm.Program),\n_xlpm.Number,TEXT(_xlfn.TEXTAFTER(_xlpm.Contract,\"-\",2),\"0000\"),\n_xlfn.CONCAT(_xlpm.Yr,\"-\",_xlpm.CleanProgram,\"-\",_xlpm.Number))\n),\"\")","v":""},{"$f":"IFERROR(IF(A10=\"\",\"\",\n_xlfn.LET(_xlpm.Contract,'1. Checklist & Certification'!$F$8,\n_xlpm.Yr,TEXT(MOD(_xlfn.TEXTBEFORE(_xlpm.Contract,\"-\"),100),\"00\"),\n_xlpm.Program,_xlfn.TEXTAFTER(_xlfn.TEXTBEFORE(_xlpm.Contract,\"-\",2),\"-\"),\n_xlpm.CleanProgram,_xlfn.XLOOKUP(_xlpm.Program,SpellCheck[Input],SpellCheck[Correction],_xlpm.Program),\n_xlpm.Number,TEXT(_xlfn.TEXTAFTER(_xlpm.Contract,\"-\",2),\"0000\"),\n_xlfn.CONCAT(_xlpm.Yr,\"-\",_xlpm.CleanProgram,\"-\",_xlpm.Number))\n),\"\")","v":""},{"$f":"IF(A10=\"\",\"\",'1. Checklist & Certification'!$B$9)","v":""},{"$f":"IF(A10=\"\",\"\",'1. Checklist & Certification'!$F$9)","v":""},{"$f":"IF(A10=\"\",\"\",'1. Checklist & Certification'!$C$10)","v":""},{"$f":"IF(A10=\"\",\"\",'1. Checklist & Certification'!$C$11)","v":""},{"$f":"IF(A10=\"\",\"\",'1. Checklist & Certification'!$C$12)","v":""},{"$f":"IF(A10=\"\",\"\",'1. Checklist & Certification'!$B$14)","v":""},{"$f":"IF(A10=\"\",\"\",'1. Checklist & Certification'!$E$14)","v":""},{"$f":"IF(B10=\"\",\"\",'1. Checklist & Certification'!$G$14)","v":""},{"$f":"IF(A10=\"\",\"\",'MHP Family Income & Rent Limits'!$B$3)","v":""},{"$f":"IF(A10=\"\",\"\",'MHP Family Income & Rent Limits'!$J$3)","v":""},{"$f":"IF(A10=\"\",\"\",'MHP Family Income & Rent Limits'!$E$4)","v":""},{"$f":"IF(A10=\"\",\"\",'MHP Family Income & Rent Limits'!$C$7)","v":""},{"$f":"IF(A10=\"\",\"\",'MHP Family Income & Rent Limits'!$F$8)","v":""},{"$f":"IF(A10=\"\",\"\",'1. Checklist & Certification'!$G$4)","v":""},{"$f":"IF(A10=\"\",\"\",'1. Checklist & Certification'!$K$39)","v":""},{"$f":"IF(A10=\"\",\"\",'1. Checklist & Certification'!$K$43)","v":""},{"$f":"IF(A10=\"\",\"\",'1. Checklist & Certification'!$K$45)","v":""},{"$f":"IF(A10=\"\",\"\",'1. Checklist & Certification'!$K$49)","v":""},{"$f":"IF(A10=\"\",\"\",'1. Checklist & Certification'!$K$62)","v":""},{"$f":"IF(A10=\"\",\"\",'1. Checklist & Certification'!$E$66)","v":""},{"$f":"IF(A10=\"\",\"\",'1. Checklist & Certification'!$E$67)","v":""},{"$f":"IF(A10=\"\",\"\",'1. Checklist & Certification'!$E$68)","v":""},{"$f":"IF(A10=\"\",\"\",'1. Checklist & Certification'!$G$66)","v":""},{"$f":"IF(A10=\"\",\"\",'1. Checklist & Certification'!$H$66)","v":""},{"$f":"IF(A10=\"\",\"\",'1. Checklist & Certification'!$I$66)","v":""},{"$f":"IF(A10=\"\",\"\",'1. Checklist & Certification'!$I$67)","v":""},{"$f":"IF(A10=\"\",\"\",'1. Checklist & Certification'!$I$68)","v":""},{"$f":"IF(A10=\"\",\"\",'1. Checklist & Certification'!$B$69)","v":""},{"$f":"IF(A10=\"\",\"\",'1. Checklist & Certification'!$C$69)","v":""},{"$f":"IF(A10=\"\",\"\",'1. Checklist & Certification'!$F$69)","v":""},{"$f":"IF(A10=\"\",\"\",'1. Checklist & Certification'!$G$69)","v":""},{"$f":"IF(A10=\"\",\"\",'1. Checklist & Certification'!$J$69)","v":""},{"$f":"IF(A10=\"\",\"\",'1. Checklist & Certification'!$K$69)","v":""},null,null,{"$f":"IF(AND(OR('1. Checklist & Certification'!$M$16=1,'1. Checklist & Certification'!$M$19=2),AO10>0,B10=\"\",I10>0,AQ10<I10,AV10<>\"Sec 8-Project\"),\"X\",IF(AND(OR('1. Checklist & Certification'!$M$20=4,'1. Checklist & Certification'!$M$21=5,'1. Checklist & Certification'!$M$22=7),AO10>0,B10=\"\",I10>0,K10<I10),\"X\",\"\"))","v":""},{"$f":"IF(A10=\"\",\"\",IF(SUMPRODUCT(-- (ISNUMBER(SEARCH({\"*AHSC*\",\"*FMTW*\",\"*FWHG*\",\"*GHI*\",\"*HHC*\",\"*HLCP*\",\"*HOME*\",\"*LPR*\",\"*MHP*\",\"*NHTF*\",\"*NSP*\",\"*PRP*\",\"*TOD*\",\"*VHHP*\"},'1. Checklist & Certification'!$L$7)))),\"MHP\",\"Legacy\"))","v":""},",,",2,2,5,{"$f":"IF('1. Checklist & Certification'!$M$20=4,\"Both\",IF(OR('1. Checklist & Certification'!$M$15>0,S10=\"CHRP-R\",U10=\"CHRP-R\",W10=\"CHRP-R\",Y10=\"CHRP-R\"),\"Under\",\"No\"))","v":"No"},"No","No",{"$f":"_xlfn.IFS(D10=\"\",\"\",D10=1,'MHP Family Income & Rent Limits'!$E$17,D10=2,'MHP Family Income & Rent Limits'!$F$17,D10=3,'MHP Family Income & Rent Limits'!$G$17,D10=4,'MHP Family Income & Rent Limits'!$H$17,D10=5,'MHP Family Income & Rent Limits'!$I$17,D10=6,'MHP Family Income & Rent Limits'!$J$17,D10=7,'MHP Family Income & Rent Limits'!$K$17,D10=8,'MHP Family Income & Rent Limits'!$L$17)","v":""},"",{"$f":"IF(OR(A10=0,B10=\"X\"),0,MIN(IF(AA10:AD10<>0,AA10:AD10)))","v":0},{"$f":"IF(OR(H10=\"\",I10=\"\"),0,IF(H10*0.3/12>I10,MIN(H10*0.3/12,I10*1.1)+AP10,I10*(1+(VLOOKUP('1. Checklist & Certification'!$F$9,'HLCP-E Rent Change'!$A$1:$D$59,4,FALSE)))+AP10))","v":0}]
[null,null,null,null,null,null,null,null,null,null,null,null,null,null,null,null,null,null,null,null,null,null,null,null,null,null,0,0,0,0,0,0,0,0,{"$f":"IF(OR(A11=0,B11=\"X\"),0,IF(OR(S11=\"FHDP\",S11=\"RHCP-B\",U11=\"FHDP\",U11=\"RHCP-B\",W11=\"FHDP\",W11=\"RHCP-B\",Y11=\"FHDP\",Y11=\"RHCP-B\"),TRUNC((MIN(I11,K11)*(1+'1. Checklist & Certification'!$K$43)+AP11)),0))","v":0},{"$f":"IF(OR(A11=0,B11=\"X\"),0,IF(OR(S11=\"CHRP-R\",S11=\"SERA\",S11=\"SUHRP\",U11=\"CHRP-R\",U11=\"SERA\",U11=\"SUHRP\",W11=\"CHRP-R\",W11=\"SERA\",W11=\"SUHRP\",Y11=\"CHRP-R\",Y11=\"SERA\",Y11=\"SUHRP\"),TRUNC((MIN(I11,K11)*(1+'1. Checklist & Certification'!$K$49))),0))","v":0},{"$f":"IF(OR(A11=0,B11=\"X\"),0,IF(OR(S11=\"CALDAP\",S11=\"DPRLP\",U11=\"CALDAP\",U11=\"DPRLP\",W11=\"CALDAP\",W11=\"DPRLP\",Y11=\"CALDAP\",Y11=\"DPRLP\"),TRUNC(((MIN(I11,K11))*(1+'1. Checklist & Certification'!$G$4))),0))","v":0},0,0,0,{"$f":"IF(OR(A11=0,B11=\"X\"),0,IF(OR(S11=\"PRP\",S11=\"LPR\",U11=\"PRP\",U11=\"LPR\",W11=\"PRP\",W11=\"LPR\",Y11=\"PRP\",Y11=\"LPR\"),MAX(I11+AP11,MIN(IF(AE11:AN11<>0,AE11:AN11))),MIN(IF(AE11:AN11<>0,AE11:AN11))))","v":0},{"$f":"IF(A11=0,0,IF(AND(OR(S11=\"Mgr\",S11=0),OR(U11=\"Mgr\",U11=0),OR(W11=\"Mgr\",W11=0)),0,IF(LEFT($A11,2)=\"B*\",VLOOKUP($E11,'1. Checklist & Certification'!$D$26:$E$32,2),IF(LEFT($A11,2)=\"C*\",VLOOKUP($E11,'1. Checklist & Certification'!$F$26:$G$32,2),IF(LEFT($A11,2)=\"D*\",VLOOKUP($E11,'1. Checklist & Certification'!$H$26:$I$32,2),IF(LEFT($A11,2)=\"E*\",VLOOKUP($E11,'1. Checklist & Certification'!$J$26:$K$32,2),VLOOKUP($E11,'1. Checklist & Certification'!$A$26:$B$32,2)))))))","v":0},0,0,null,null,null,null,"","",0,0,0,null,{"$f":"IF(A11=\"\",\"\",'1. Checklist & Certification'!$K$1)","v":""},{"$f":"IF(A11=\"\",\"\",'1. Checklist & Certification'!$C$62)","v":""},{"$f":"IF(A11=\"\",\"\",'1. Checklist & Certification'!$C$6)","v":""},{"$f":"IF(A11=\"\",\"\",'1. Checklist & Certification'!$G$5)","v":""},{"$f":"IFERROR(IF(A11=\"\",\"\",\n_xlfn.LET(_xlpm.Contract,'1. Checklist & Certification'!$C$7,\n_xlpm.Yr,TEXT(MOD(_xlfn.TEXTBEFORE(_xlpm.Contract,\"-\"),100),\"00\"),\n_xlpm.Program,_xlfn.TEXTAFTER(_xlfn.TEXTBEFORE(_xlpm.Contract,\"-\",2),\"-\"),\n_xlpm.CleanProgram,_xlfn.XLOOKUP(_xlpm.Program,SpellCheck[Input],SpellCheck[Correction],_xlpm.Program),\n_xlpm.Number,TEXT(_xlfn.TEXTAFTER(_xlpm.Contract,\"-\",2),\"0000\"),\n_xlfn.CONCAT(_xlpm.Yr,\"-\",_xlpm.CleanProgram,\"-\",_xlpm.Number))\n),\"\")","v":""},{"$f":"IFERROR(IF(A11=\"\",\"\",\n_xlfn.LET(_xlpm.Contract,'1. Checklist & Certification'!$C$8,\n_xlpm.Yr,TEXT(MOD(_xlfn.TEXTBEFORE(_xlpm.Contract,\"-\"),100),\"00\"),\n_xlpm.Program,_xlfn.TEXTAFTER(_xlfn.TEXTBEFORE(_xlpm.Contract,\"-\",2),\"-\"),\n_xlpm.CleanProgram,_xlfn.XLOOKUP(_xlpm.Program,SpellCheck[Input],SpellCheck[Correction],_xlpm.Program),\n_xlpm.Number,TEXT(_xlfn.TEXTAFTER(_xlpm.Contract,\"-\",2),\"0000\"),\n_xlfn.CONCAT(_xlpm.Yr,\"-\",_xlpm.CleanProgram,\"-\",_xlpm.Number))\n),\"\")","v":""},{"$f":"IFERROR(IF(A11=\"\",\"\",\n_xlfn.LET(_xlpm.Contract,'1. Checklist & Certification'!$F$7,\n_xlpm.Yr,TEXT(MOD(_xlfn.TEXTBEFORE(_xlpm.Contract,\"-\"),100),\"00\"),\n_xlpm.Program,_xlfn.TEXTAFTER(_xlfn.TEXTBEFORE(_xlpm.Contract,\"-\",2),\"-\"),\n_xlpm.CleanProgram,_xlfn.XLOOKUP(_xlpm.Program,SpellCheck[Input],SpellCheck[Correction],_xlpm.Program),\n_xlpm.Number,TEXT(_xlfn.TEXTAFTER(_xlpm.Contract,\"-\",2),\"0000\"),\n_xlfn.CONCAT(_xlpm.Yr,\"-\",_xlpm.CleanProgram,\"-\",_xlpm.Number))\n),\"\")","v":""},{"$f":"IFERROR(IF(A11=\"\",\"\",\n_xlfn.LET(_xlpm.Contract,'1. Checklist & Certification'!$F$8,\n_xlpm.Yr,TEXT(MOD(_xlfn.TEXTBEFORE(_xlpm.Contract,\"-\"),100),\"00\"),\n_xlpm.Program,_xlfn.TEXTAFTER(_xlfn.TEXTBEFORE(_xlpm.Contract,\"-\",2),\"-\"),\n_xlpm.CleanProgram,_xlfn.XLOOKUP(_xlpm.Program,SpellCheck[Input],SpellCheck[Correction],_xlpm.Program),\n_xlpm.Number,TEXT(_xlfn.TEXTAFTER(_xlpm.Contract,\"-\",2),\"0000\"),\n_xlfn.CONCAT(_xlpm.Yr,\"-\",_xlpm.CleanProgram,\"-\",_xlpm.Number))\n),\"\")","v":""},{"$f":"IF(A11=\"\",\"\",'1. Checklist & Certification'!$B$9)","v":""},{"$f":"IF(A11=\"\",\"\",'1. Checklist & Certification'!$F$9)","v":""},{"$f":"IF(A11=\"\",\"\",'1. Checklist & Certification'!$C$10)","v":""},{"$f":"IF(A11=\"\",\"\",'1. Checklist & Certification'!$C$11)","v":""},{"$f":"IF(A11=\"\",\"\",'1. Checklist & Certification'!$C$12)","v":""},{"$f":"IF(A11=\"\",\"\",'1. Checklist & Certification'!$B$14)","v":""},{"$f":"IF(A11=\"\",\"\",'1. Checklist & Certification'!$E$14)","v":""},{"$f":"IF(B11=\"\",\"\",'1. Checklist & Certification'!$G$14)","v":""},{"$f":"IF(A11=\"\",\"\",'MHP Family Income & Rent Limits'!$B$3)","v":""},{"$f":"IF(A11=\"\",\"\",'MHP Family Income & Rent Limits'!$J$3)","v":""},{"$f":"IF(A11=\"\",\"\",'MHP Family Income & Rent Limits'!$E$4)","v":""},{"$f":"IF(A11=\"\",\"\",'MHP Family Income & Rent Limits'!$C$7)","v":""},{"$f":"IF(A11=\"\",\"\",'MHP Family Income & Rent Limits'!$F$8)","v":""},{"$f":"IF(A11=\"\",\"\",'1. Checklist & Certification'!$G$4)","v":""},{"$f":"IF(A11=\"\",\"\",'1. Checklist & Certification'!$K$39)","v":""},{"$f":"IF(A11=\"\",\"\",'1. Checklist & Certification'!$K$43)","v":""},{"$f":"IF(A11=\"\",\"\",'1. Checklist & Certification'!$K$45)","v":""},{"$f":"IF(A11=\"\",\"\",'1. Checklist & Certification'!$K$49)","v":""},{"$f":"IF(A11=\"\",\"\",'1. Checklist & Certification'!$K$62)","v":""},{"$f":"IF(A11=\"\",\"\",'1. Checklist & Certification'!$E$66)","v":""},{"$f":"IF(A11=\"\",\"\",'1. Checklist & Certification'!$E$67)","v":""},{"$f":"IF(A11=\"\",\"\",'1. Checklist & Certification'!$E$68)","v":""},{"$f":"IF(A11=\"\",\"\",'1. Checklist & Certification'!$G$66)","v":""},{"$f":"IF(A11=\"\",\"\",'1. Checklist & Certification'!$H$66)","v":""},{"$f":"IF(A11=\"\",\"\",'1. Checklist & Certification'!$I$66)","v":""},{"$f":"IF(A11=\"\",\"\",'1. Checklist & Certification'!$I$67)","v":""},{"$f":"IF(A11=\"\",\"\",'1. Checklist & Certification'!$I$68)","v":""},{"$f":"IF(A11=\"\",\"\",'1. Checklist & Certification'!$B$69)","v":""},{"$f":"IF(A11=\"\",\"\",'1. Checklist & Certification'!$C$69)","v":""},{"$f":"IF(A11=\"\",\"\",'1. Checklist & Certification'!$F$69)","v":""},{"$f":"IF(A11=\"\",\"\",'1. Checklist & Certification'!$G$69)","v":""},{"$f":"IF(A11=\"\",\"\",'1. Checklist & Certification'!$J$69)","v":""},{"$f":"IF(A11=\"\",\"\",'1. Checklist & Certification'!$K$69)","v":""},null,null,{"$f":"IF(AND(OR('1. Checklist & Certification'!$M$16=1,'1. Checklist & Certification'!$M$19=2),AO11>0,B11=\"\",I11>0,AQ11<I11,AV11<>\"Sec 8-Project\"),\"X\",IF(AND(OR('1. Checklist & Certification'!$M$20=4,'1. Checklist & Certification'!$M$21=5,'1. Checklist & Certification'!$M$22=7),AO11>0,B11=\"\",I11>0,K11<I11),\"X\",\"\"))","v":""},{"$f":"IF(A11=\"\",\"\",IF(SUMPRODUCT(-- (ISNUMBER(SEARCH({\"*AHSC*\",\"*FMTW*\",\"*FWHG*\",\"*GHI*\",\"*HHC*\",\"*HLCP*\",\"*HOME*\",\"*LPR*\",\"*MHP*\",\"*NHTF*\",\"*NSP*\",\"*PRP*\",\"*TOD*\",\"*VHHP*\"},'1. Checklist & Certification'!$L$7)))),\"MHP\",\"Legacy\"))","v":""},",,",3,4,7,{"$f":"IF('1. Checklist & Certification'!$M$20=4,\"Both\",IF(OR('1. Checklist & Certification'!$M$15>0,S11=\"CHRP-R\",U11=\"CHRP-R\",W11=\"CHRP-R\",Y11=\"CHRP-R\"),\"Under\",\"No\"))","v":"No"},"No","No",{"$f":"_xlfn.IFS(D11=\"\",\"\",D11=1,'MHP Family Income & Rent Limits'!$E$17,D11=2,'MHP Family Income & Rent Limits'!$F$17,D11=3,'MHP Family Income & Rent Limits'!$G$17,D11=4,'MHP Family Income & Rent Limits'!$H$17,D11=5,'MHP Family Income & Rent Limits'!$I$17,D11=6,'MHP Family Income & Rent Limits'!$J$17,D11=7,'MHP Family Income & Rent Limits'!$K$17,D11=8,'MHP Family Income & Rent Limits'!$L$17)","v":""},"",{"$f":"IF(OR(A11=0,B11=\"X\"),0,MIN(IF(AA11:AD11<>0,AA11:AD11)))","v":0},{"$f":"IF(OR(H11=\"\",I11=\"\"),0,IF(H11*0.3/12>I11,MIN(H11*0.3/12,I11*1.1)+AP11,I11*(1+(VLOOKUP('1. Checklist & Certification'!$F$9,'HLCP-E Rent Change'!$A$1:$D$59,4,FALSE)))+AP11))","v":0}]
[null,null,null,null,null,null,null,null,null,null,null,null,null,null,null,null,null,null,null,null,null,null,null,null,null,null,0,0,0,0,0,0,0,0,{"$f":"IF(OR(A12=0,B12=\"X\"),0,IF(OR(S12=\"FHDP\",S12=\"RHCP-B\",U12=\"FHDP\",U12=\"RHCP-B\",W12=\"FHDP\",W12=\"RHCP-B\",Y12=\"FHDP\",Y12=\"RHCP-B\"),TRUNC((MIN(I12,K12)*(1+'1. Checklist & Certification'!$K$43)+AP12)),0))","v":0},{"$f":"IF(OR(A12=0,B12=\"X\"),0,IF(OR(S12=\"CHRP-R\",S12=\"SERA\",S12=\"SUHRP\",U12=\"CHRP-R\",U12=\"SERA\",U12=\"SUHRP\",W12=\"CHRP-R\",W12=\"SERA\",W12=\"SUHRP\",Y12=\"CHRP-R\",Y12=\"SERA\",Y12=\"SUHRP\"),TRUNC((MIN(I12,K12)*(1+'1. Checklist & Certification'!$K$49))),0))","v":0},{"$f":"IF(OR(A12=0,B12=\"X\"),0,IF(OR(S12=\"CALDAP\",S12=\"DPRLP\",U12=\"CALDAP\",U12=\"DPRLP\",W12=\"CALDAP\",W12=\"DPRLP\",Y12=\"CALDAP\",Y12=\"DPRLP\"),TRUNC(((MIN(I12,K12))*(1+'1. Checklist & Certification'!$G$4))),0))","v":0},0,0,0,{"$f":"IF(OR(A12=0,B12=\"X\"),0,IF(OR(S12=\"PRP\",S12=\"LPR\",U12=\"PRP\",U12=\"LPR\",W12=\"PRP\",W12=\"LPR\",Y12=\"PRP\",Y12=\"LPR\"),MAX(I12+AP12,MIN(IF(AE12:AN12<>0,AE12:AN12))),MIN(IF(AE12:AN12<>0,AE12:AN12))))","v":0},{"$f":"IF(A12=0,0,IF(AND(OR(S12=\"Mgr\",S12=0),OR(U12=\"Mgr\",U12=0),OR(W12=\"Mgr\",W12=0)),0,IF(LEFT($A12,2)=\"B*\",VLOOKUP($E12,'1. Checklist & Certification'!$D$26:$E$32,2),IF(LEFT($A12,2)=\"C*\",VLOOKUP($E12,'1. Checklist & Certification'!$F$26:$G$32,2),IF(LEFT($A12,2)=\"D*\",VLOOKUP($E12,'1. Checklist & Certification'!$H$26:$I$32,2),IF(LEFT($A12,2)=\"E*\",VLOOKUP($E12,'1. Checklist & Certification'!$J$26:$K$32,2),VLOOKUP($E12,'1. Checklist & Certification'!$A$26:$B$32,2)))))))","v":0},0,0,null,null,null,null,"","",0,0,0,null,{"$f":"IF(A12=\"\",\"\",'1. Checklist & Certification'!$K$1)","v":""},{"$f":"IF(A12=\"\",\"\",'1. Checklist & Certification'!$C$62)","v":""},{"$f":"IF(A12=\"\",\"\",'1. Checklist & Certification'!$C$6)","v":""},{"$f":"IF(A12=\"\",\"\",'1. Checklist & Certification'!$G$5)","v":""},{"$f":"IFERROR(IF(A12=\"\",\"\",\n_xlfn.LET(_xlpm.Contract,'1. Checklist & Certification'!$C$7,\n_xlpm.Yr,TEXT(MOD(_xlfn.TEXTBEFORE(_xlpm.Contract,\"-\"),100),\"00\"),\n_xlpm.Program,_xlfn.TEXTAFTER(_xlfn.TEXTBEFORE(_xlpm.Contract,\"-\",2),\"-\"),\n_xlpm.CleanProgram,_xlfn.XLOOKUP(_xlpm.Program,SpellCheck[Input],SpellCheck[Correction],_xlpm.Program),\n_xlpm.Number,TEXT(_xlfn.TEXTAFTER(_xlpm.Contract,\"-\",2),\"0000\"),\n_xlfn.CONCAT(_xlpm.Yr,\"-\",_xlpm.CleanProgram,\"-\",_xlpm.Number))\n),\"\")","v":""},{"$f":"IFERROR(IF(A12=\"\",\"\",\n_xlfn.LET(_xlpm.Contract,'1. Checklist & Certification'!$C$8,\n_xlpm.Yr,TEXT(MOD(_xlfn.TEXTBEFORE(_xlpm.Contract,\"-\"),100),\"00\"),\n_xlpm.Program,_xlfn.TEXTAFTER(_xlfn.TEXTBEFORE(_xlpm.Contract,\"-\",2),\"-\"),\n_xlpm.CleanProgram,_xlfn.XLOOKUP(_xlpm.Program,SpellCheck[Input],SpellCheck[Correction],_xlpm.Program),\n_xlpm.Number,TEXT(_xlfn.TEXTAFTER(_xlpm.Contract,\"-\",2),\"0000\"),\n_xlfn.CONCAT(_xlpm.Yr,\"-\",_xlpm.CleanProgram,\"-\",_xlpm.Number))\n),\"\")","v":""},{"$f":"IFERROR(IF(A12=\"\",\"\",\n_xlfn.LET(_xlpm.Contract,'1. Checklist & Certification'!$F$7,\n_xlpm.Yr,TEXT(MOD(_xlfn.TEXTBEFORE(_xlpm.Contract,\"-\"),100),\"00\"),\n_xlpm.Program,_xlfn.TEXTAFTER(_xlfn.TEXTBEFORE(_xlpm.Contract,\"-\",2),\"-\"),\n_xlpm.CleanProgram,_xlfn.XLOOKUP(_xlpm.Program,SpellCheck[Input],SpellCheck[Correction],_xlpm.Program),\n_xlpm.Number,TEXT(_xlfn.TEXTAFTER(_xlpm.Contract,\"-\",2),\"0000\"),\n_xlfn.CONCAT(_xlpm.Yr,\"-\",_xlpm.CleanProgram,\"-\",_xlpm.Number))\n),\"\")","v":""},{"$f":"IFERROR(IF(A12=\"\",\"\",\n_xlfn.LET(_xlpm.Contract,'1. Checklist & Certification'!$F$8,\n_xlpm.Yr,TEXT(MOD(_xlfn.TEXTBEFORE(_xlpm.Contract,\"-\"),100),\"00\"),\n_xlpm.Program,_xlfn.TEXTAFTER(_xlfn.TEXTBEFORE(_xlpm.Contract,\"-\",2),\"-\"),\n_xlpm.CleanProgram,_xlfn.XLOOKUP(_xlpm.Program,SpellCheck[Input],SpellCheck[Correction],_xlpm.Program),\n_xlpm.Number,TEXT(_xlfn.TEXTAFTER(_xlpm.Contract,\"-\",2),\"0000\"),\n_xlfn.CONCAT(_xlpm.Yr,\"-\",_xlpm.CleanProgram,\"-\",_xlpm.Number))\n),\"\")","v":""},{"$f":"IF(A12=\"\",\"\",'1. Checklist & Certification'!$B$9)","v":""},{"$f":"IF(A12=\"\",\"\",'1. Checklist & Certification'!$F$9)","v":""},{"$f":"IF(A12=\"\",\"\",'1. Checklist & Certification'!$C$10)","v":""},{"$f":"IF(A12=\"\",\"\",'1. Checklist & Certification'!$C$11)","v":""},{"$f":"IF(A12=\"\",\"\",'1. Checklist & Certification'!$C$12)","v":""},{"$f":"IF(A12=\"\",\"\",'1. Checklist & Certification'!$B$14)","v":""},{"$f":"IF(A12=\"\",\"\",'1. Checklist & Certification'!$E$14)","v":""},{"$f":"IF(B12=\"\",\"\",'1. Checklist & Certification'!$G$14)","v":""},{"$f":"IF(A12=\"\",\"\",'MHP Family Income & Rent Limits'!$B$3)","v":""},{"$f":"IF(A12=\"\",\"\",'MHP Family Income & Rent Limits'!$J$3)","v":""},{"$f":"IF(A12=\"\",\"\",'MHP Family Income & Rent Limits'!$E$4)","v":""},{"$f":"IF(A12=\"\",\"\",'MHP Family Income & Rent Limits'!$C$7)","v":""},{"$f":"IF(A12=\"\",\"\",'MHP Family Income & Rent Limits'!$F$8)","v":""},{"$f":"IF(A12=\"\",\"\",'1. Checklist & Certification'!$G$4)","v":""},{"$f":"IF(A12=\"\",\"\",'1. Checklist & Certification'!$K$39)","v":""},{"$f":"IF(A12=\"\",\"\",'1. Checklist & Certification'!$K$43)","v":""},{"$f":"IF(A12=\"\",\"\",'1. Checklist & Certification'!$K$45)","v":""},{"$f":"IF(A12=\"\",\"\",'1. Checklist & Certification'!$K$49)","v":""},{"$f":"IF(A12=\"\",\"\",'1. Checklist & Certification'!$K$62)","v":""},{"$f":"IF(A12=\"\",\"\",'1. Checklist & Certification'!$E$66)","v":""},{"$f":"IF(A12=\"\",\"\",'1. Checklist & Certification'!$E$67)","v":""},{"$f":"IF(A12=\"\",\"\",'1. Checklist & Certification'!$E$68)","v":""},{"$f":"IF(A12=\"\",\"\",'1. Checklist & Certification'!$G$66)","v":""},{"$f":"IF(A12=\"\",\"\",'1. Checklist & Certification'!$H$66)","v":""},{"$f":"IF(A12=\"\",\"\",'1. Checklist & Certification'!$I$66)","v":""},{"$f":"IF(A12=\"\",\"\",'1. Checklist & Certification'!$I$67)","v":""},{"$f":"IF(A12=\"\",\"\",'1. Checklist & Certification'!$I$68)","v":""},{"$f":"IF(A12=\"\",\"\",'1. Checklist & Certification'!$B$69)","v":""},{"$f":"IF(A12=\"\",\"\",'1. Checklist & Certification'!$C$69)","v":""},{"$f":"IF(A12=\"\",\"\",'1. Checklist & Certification'!$F$69)","v":""},{"$f":"IF(A12=\"\",\"\",'1. Checklist & Certification'!$G$69)","v":""},{"$f":"IF(A12=\"\",\"\",'1. Checklist & Certification'!$J$69)","v":""},{"$f":"IF(A12=\"\",\"\",'1. Checklist & Certification'!$K$69)","v":""},null,null,{"$f":"IF(AND(OR('1. Checklist & Certification'!$M$16=1,'1. Checklist & Certification'!$M$19=2),AO12>0,B12=\"\",I12>0,AQ12<I12,AV12<>\"Sec 8-Project\"),\"X\",IF(AND(OR('1. Checklist & Certification'!$M$20=4,'1. Checklist & Certification'!$M$21=5,'1. Checklist & Certification'!$M$22=7),AO12>0,B12=\"\",I12>0,K12<I12),\"X\",\"\"))","v":""},{"$f":"IF(A12=\"\",\"\",IF(SUMPRODUCT(-- (ISNUMBER(SEARCH({\"*AHSC*\",\"*FMTW*\",\"*FWHG*\",\"*GHI*\",\"*HHC*\",\"*HLCP*\",\"*HOME*\",\"*LPR*\",\"*MHP*\",\"*NHTF*\",\"*NSP*\",\"*PRP*\",\"*TOD*\",\"*VHHP*\"},'1. Checklist & Certification'!$L$7)))),\"MHP\",\"Legacy\"))","v":""},",,",4,6,9,{"$f":"IF('1. Checklist & Certification'!$M$20=4,\"Both\",IF(OR('1. Checklist & Certification'!$M$15>0,S12=\"CHRP-R\",U12=\"CHRP-R\",W12=\"CHRP-R\",Y12=\"CHRP-R\"),\"Under\",\"No\"))","v":"No"},"No","No",{"$f":"_xlfn.IFS(D12=\"\",\"\",D12=1,'MHP Family Income & Rent Limits'!$E$17,D12=2,'MHP Family Income & Rent Limits'!$F$17,D12=3,'MHP Family Income & Rent Limits'!$G$17,D12=4,'MHP Family Income & Rent Limits'!$H$17,D12=5,'MHP Family Income & Rent Limits'!$I$17,D12=6,'MHP Family Income & Rent Limits'!$J$17,D12=7,'MHP Family Income & Rent Limits'!$K$17,D12=8,'MHP Family Income & Rent Limits'!$L$17)","v":""},"",{"$f":"IF(OR(A12=0,B12=\"X\"),0,MIN(IF(AA12:AD12<>0,AA12:AD12)))","v":0},{"$f":"IF(OR(H12=\"\",I12=\"\"),0,IF(H12*0.3/12>I12,MIN(H12*0.3/12,I12*1.1)+AP12,I12*(1+(VLOOKUP('1. Checklist & Certification'!$F$9,'HLCP-E Rent Change'!$A$1:$D$59,4,FALSE)))+AP12))","v":0}]
[null,null,null,null,null,null,null,null,null,null,null,null,null,null,null,null,null,null,null,null,null,null,null,null,null,null,0,0,0,0,0,0,0,0,{"$f":"IF(OR(A13=0,B13=\"X\"),0,IF(OR(S13=\"FHDP\",S13=\"RHCP-B\",U13=\"FHDP\",U13=\"RHCP-B\",W13=\"FHDP\",W13=\"RHCP-B\",Y13=\"FHDP\",Y13=\"RHCP-B\"),TRUNC((MIN(I13,K13)*(1+'1. Checklist & Certification'!$K$43)+AP13)),0))","v":0},{"$f":"IF(OR(A13=0,B13=\"X\"),0,IF(OR(S13=\"CHRP-R\",S13=\"SERA\",S13=\"SUHRP\",U13=\"CHRP-R\",U13=\"SERA\",U13=\"SUHRP\",W13=\"CHRP-R\",W13=\"SERA\",W13=\"SUHRP\",Y13=\"CHRP-R\",Y13=\"SERA\",Y13=\"SUHRP\"),TRUNC((MIN(I13,K13)*(1+'1. Checklist & Certification'!$K$49))),0))","v":0},{"$f":"IF(OR(A13=0,B13=\"X\"),0,IF(OR(S13=\"CALDAP\",S13=\"DPRLP\",U13=\"CALDAP\",U13=\"DPRLP\",W13=\"CALDAP\",W13=\"DPRLP\",Y13=\"CALDAP\",Y13=\"DPRLP\"),TRUNC(((MIN(I13,K13))*(1+'1. Checklist & Certification'!$G$4))),0))","v":0},0,0,0,{"$f":"IF(OR(A13=0,B13=\"X\"),0,IF(OR(S13=\"PRP\",S13=\"LPR\",U13=\"PRP\",U13=\"LPR\",W13=\"PRP\",W13=\"LPR\",Y13=\"PRP\",Y13=\"LPR\"),MAX(I13+AP13,MIN(IF(AE13:AN13<>0,AE13:AN13))),MIN(IF(AE13:AN13<>0,AE13:AN13))))","v":0},{"$f":"IF(A13=0,0,IF(AND(OR(S13=\"Mgr\",S13=0),OR(U13=\"Mgr\",U13=0),OR(W13=\"Mgr\",W13=0)),0,IF(LEFT($A13,2)=\"B*\",VLOOKUP($E13,'1. Checklist & Certification'!$D$26:$E$32,2),IF(LEFT($A13,2)=\"C*\",VLOOKUP($E13,'1. Checklist & Certification'!$F$26:$G$32,2),IF(LEFT($A13,2)=\"D*\",VLOOKUP($E13,'1. Checklist & Certification'!$H$26:$I$32,2),IF(LEFT($A13,2)=\"E*\",VLOOKUP($E13,'1. Checklist & Certification'!$J$26:$K$32,2),VLOOKUP($E13,'1. Checklist & Certification'!$A$26:$B$32,2)))))))","v":0},0,0,null,null,null,null,"","",0,0,0,null,{"$f":"IF(A13=\"\",\"\",'1. Checklist & Certification'!$K$1)","v":""},{"$f":"IF(A13=\"\",\"\",'1. Checklist & Certification'!$C$62)","v":""},{"$f":"IF(A13=\"\",\"\",'1. Checklist & Certification'!$C$6)","v":""},{"$f":"IF(A13=\"\",\"\",'1. Checklist & Certification'!$G$5)","v":""},{"$f":"IFERROR(IF(A13=\"\",\"\",\n_xlfn.LET(_xlpm.Contract,'1. Checklist & Certification'!$C$7,\n_xlpm.Yr,TEXT(MOD(_xlfn.TEXTBEFORE(_xlpm.Contract,\"-\"),100),\"00\"),\n_xlpm.Program,_xlfn.TEXTAFTER(_xlfn.TEXTBEFORE(_xlpm.Contract,\"-\",2),\"-\"),\n_xlpm.CleanProgram,_xlfn.XLOOKUP(_xlpm.Program,SpellCheck[Input],SpellCheck[Correction],_xlpm.Program),\n_xlpm.Number,TEXT(_xlfn.TEXTAFTER(_xlpm.Contract,\"-\",2),\"0000\"),\n_xlfn.CONCAT(_xlpm.Yr,\"-\",_xlpm.CleanProgram,\"-\",_xlpm.Number))\n),\"\")","v":""},{"$f":"IFERROR(IF(A13=\"\",\"\",\n_xlfn.LET(_xlpm.Contract,'1. Checklist & Certification'!$C$8,\n_xlpm.Yr,TEXT(MOD(_xlfn.TEXTBEFORE(_xlpm.Contract,\"-\"),100),\"00\"),\n_xlpm.Program,_xlfn.TEXTAFTER(_xlfn.TEXTBEFORE(_xlpm.Contract,\"-\",2),\"-\"),\n_xlpm.CleanProgram,_xlfn.XLOOKUP(_xlpm.Program,SpellCheck[Input],SpellCheck[Correction],_xlpm.Program),\n_xlpm.Number,TEXT(_xlfn.TEXTAFTER(_xlpm.Contract,\"-\",2),\"0000\"),\n_xlfn.CONCAT(_xlpm.Yr,\"-\",_xlpm.CleanProgram,\"-\",_xlpm.Number))\n),\"\")","v":""},{"$f":"IFERROR(IF(A13=\"\",\"\",\n_xlfn.LET(_xlpm.Contract,'1. Checklist & Certification'!$F$7,\n_xlpm.Yr,TEXT(MOD(_xlfn.TEXTBEFORE(_xlpm.Contract,\"-\"),100),\"00\"),\n_xlpm.Program,_xlfn.TEXTAFTER(_xlfn.TEXTBEFORE(_xlpm.Contract,\"-\",2),\"-\"),\n_xlpm.CleanProgram,_xlfn.XLOOKUP(_xlpm.Program,SpellCheck[Input],SpellCheck[Correction],_xlpm.Program),\n_xlpm.Number,TEXT(_xlfn.TEXTAFTER(_xlpm.Contract,\"-\",2),\"0000\"),\n_xlfn.CONCAT(_xlpm.Yr,\"-\",_xlpm.CleanProgram,\"-\",_xlpm.Number))\n),\"\")","v":""},{"$f":"IFERROR(IF(A13=\"\",\"\",\n_xlfn.LET(_xlpm.Contract,'1. Checklist & Certification'!$F$8,\n_xlpm.Yr,TEXT(MOD(_xlfn.TEXTBEFORE(_xlpm.Contract,\"-\"),100),\"00\"),\n_xlpm.Program,_xlfn.TEXTAFTER(_xlfn.TEXTBEFORE(_xlpm.Contract,\"-\",2),\"-\"),\n_xlpm.CleanProgram,_xlfn.XLOOKUP(_xlpm.Program,SpellCheck[Input],SpellCheck[Correction],_xlpm.Program),\n_xlpm.Number,TEXT(_xlfn.TEXTAFTER(_xlpm.Contract,\"-\",2),\"0000\"),\n_xlfn.CONCAT(_xlpm.Yr,\"-\",_xlpm.CleanProgram,\"-\",_xlpm.Number))\n),\"\")","v":""},{"$f":"IF(A13=\"\",\"\",'1. Checklist & Certification'!$B$9)","v":""},{"$f":"IF(A13=\"\",\"\",'1. Checklist & Certification'!$F$9)","v":""},{"$f":"IF(A13=\"\",\"\",'1. Checklist & Certification'!$C$10)","v":""},{"$f":"IF(A13=\"\",\"\",'1. Checklist & Certification'!$C$11)","v":""},{"$f":"IF(A13=\"\",\"\",'1. Checklist & Certification'!$C$12)","v":""},{"$f":"IF(A13=\"\",\"\",'1. Checklist & Certification'!$B$14)","v":""},{"$f":"IF(A13=\"\",\"\",'1. Checklist & Certification'!$E$14)","v":""},{"$f":"IF(B13=\"\",\"\",'1. Checklist & Certification'!$G$14)","v":""},{"$f":"IF(A13=\"\",\"\",'MHP Family Income & Rent Limits'!$B$3)","v":""},{"$f":"IF(A13=\"\",\"\",'MHP Family Income & Rent Limits'!$J$3)","v":""},{"$f":"IF(A13=\"\",\"\",'MHP Family Income & Rent Limits'!$E$4)","v":""},{"$f":"IF(A13=\"\",\"\",'MHP Family Income & Rent Limits'!$C$7)","v":""},{"$f":"IF(A13=\"\",\"\",'MHP Family Income & Rent Limits'!$F$8)","v":""},{"$f":"IF(A13=\"\",\"\",'1. Checklist & Certification'!$G$4)","v":""},{"$f":"IF(A13=\"\",\"\",'1. Checklist & Certification'!$K$39)","v":""},{"$f":"IF(A13=\"\",\"\",'1. Checklist & Certification'!$K$43)","v":""},{"$f":"IF(A13=\"\",\"\",'1. Checklist & Certification'!$K$45)","v":""},{"$f":"IF(A13=\"\",\"\",'1. Checklist & Certification'!$K$49)","v":""},{"$f":"IF(A13=\"\",\"\",'1. Checklist & Certification'!$K$62)","v":""},{"$f":"IF(A13=\"\",\"\",'1. Checklist & Certification'!$E$66)","v":""},{"$f":"IF(A13=\"\",\"\",'1. Checklist & Certification'!$E$67)","v":""},{"$f":"IF(A13=\"\",\"\",'1. Checklist & Certification'!$E$68)","v":""},{"$f":"IF(A13=\"\",\"\",'1. Checklist & Certification'!$G$66)","v":""},{"$f":"IF(A13=\"\",\"\",'1. Checklist & Certification'!$H$66)","v":""},{"$f":"IF(A13=\"\",\"\",'1. Checklist & Certification'!$I$66)","v":""},{"$f":"IF(A13=\"\",\"\",'1. Checklist & Certification'!$I$67)","v":""},{"$f":"IF(A13=\"\",\"\",'1. Checklist & Certification'!$I$68)","v":""},{"$f":"IF(A13=\"\",\"\",'1. Checklist & Certification'!$B$69)","v":""},{"$f":"IF(A13=\"\",\"\",'1. Checklist & Certification'!$C$69)","v":""},{"$f":"IF(A13=\"\",\"\",'1. Checklist & Certification'!$F$69)","v":""},{"$f":"IF(A13=\"\",\"\",'1. Checklist & Certification'!$G$69)","v":""},{"$f":"IF(A13=\"\",\"\",'1. Checklist & Certification'!$J$69)","v":""},{"$f":"IF(A13=\"\",\"\",'1. Checklist & Certification'!$K$69)","v":""},null,null,{"$f":"IF(AND(OR('1. Checklist & Certification'!$M$16=1,'1. Checklist & Certification'!$M$19=2),AO13>0,B13=\"\",I13>0,AQ13<I13,AV13<>\"Sec 8-Project\"),\"X\",IF(AND(OR('1. Checklist & Certification'!$M$20=4,'1. Checklist & Certification'!$M$21=5,'1. Checklist & Certification'!$M$22=7),AO13>0,B13=\"\",I13>0,K13<I13),\"X\",\"\"))","v":""},{"$f":"IF(A13=\"\",\"\",IF(SUMPRODUCT(-- (ISNUMBER(SEARCH({\"*AHSC*\",\"*FMTW*\",\"*FWHG*\",\"*GHI*\",\"*HHC*\",\"*HLCP*\",\"*HOME*\",\"*LPR*\",\"*MHP*\",\"*NHTF*\",\"*NSP*\",\"*PRP*\",\"*TOD*\",\"*VHHP*\"},'1. Checklist & Certification'!$L$7)))),\"MHP\",\"Legacy\"))","v":""},",,",5,8,11,{"$f":"IF('1. Checklist & Certification'!$M$20=4,\"Both\",IF(OR('1. Checklist & Certification'!$M$15>0,S13=\"CHRP-R\",U13=\"CHRP-R\",W13=\"CHRP-R\",Y13=\"CHRP-R\"),\"Under\",\"No\"))","v":"No"},"No","No",{"$f":"_xlfn.IFS(D13=\"\",\"\",D13=1,'MHP Family Income & Rent Limits'!$E$17,D13=2,'MHP Family Income & Rent Limits'!$F$17,D13=3,'MHP Family Income & Rent Limits'!$G$17,D13=4,'MHP Family Income & Rent Limits'!$H$17,D13=5,'MHP Family Income & Rent Limits'!$I$17,D13=6,'MHP Family Income & Rent Limits'!$J$17,D13=7,'MHP Family Income & Rent Limits'!$K$17,D13=8,'MHP Family Income & Rent Limits'!$L$17)","v":""},"",{"$f":"IF(OR(A13=0,B13=\"X\"),0,MIN(IF(AA13:AD13<>0,AA13:AD13)))","v":0},{"$f":"IF(OR(H13=\"\",I13=\"\"),0,IF(H13*0.3/12>I13,MIN(H13*0.3/12,I13*1.1)+AP13,I13*(1+(VLOOKUP('1. Checklist & Certification'!$F$9,'HLCP-E Rent Change'!$A$1:$D$59,4,FALSE)))+AP13))","v":0}]
[null,null,null,null,null,null,null,null,null,null,null,null,null,null,null,null,null,null,null,null,null,null,null,null,null,null,0,0,0,0,0,0,0,0,{"$f":"IF(OR(A14=0,B14=\"X\"),0,IF(OR(S14=\"FHDP\",S14=\"RHCP-B\",U14=\"FHDP\",U14=\"RHCP-B\",W14=\"FHDP\",W14=\"RHCP-B\",Y14=\"FHDP\",Y14=\"RHCP-B\"),TRUNC((MIN(I14,K14)*(1+'1. Checklist & Certification'!$K$43)+AP14)),0))","v":0},{"$f":"IF(OR(A14=0,B14=\"X\"),0,IF(OR(S14=\"CHRP-R\",S14=\"SERA\",S14=\"SUHRP\",U14=\"CHRP-R\",U14=\"SERA\",U14=\"SUHRP\",W14=\"CHRP-R\",W14=\"SERA\",W14=\"SUHRP\",Y14=\"CHRP-R\",Y14=\"SERA\",Y14=\"SUHRP\"),TRUNC((MIN(I14,K14)*(1+'1. Checklist & Certification'!$K$49))),0))","v":0},{"$f":"IF(OR(A14=0,B14=\"X\"),0,IF(OR(S14=\"CALDAP\",S14=\"DPRLP\",U14=\"CALDAP\",U14=\"DPRLP\",W14=\"CALDAP\",W14=\"DPRLP\",Y14=\"CALDAP\",Y14=\"DPRLP\"),TRUNC(((MIN(I14,K14))*(1+'1. Checklist & Certification'!$G$4))),0))","v":0},0,0,0,{"$f":"IF(OR(A14=0,B14=\"X\"),0,IF(OR(S14=\"PRP\",S14=\"LPR\",U14=\"PRP\",U14=\"LPR\",W14=\"PRP\",W14=\"LPR\",Y14=\"PRP\",Y14=\"LPR\"),MAX(I14+AP14,MIN(IF(AE14:AN14<>0,AE14:AN14))),MIN(IF(AE14:AN14<>0,AE14:AN14))))","v":0},{"$f":"IF(A14=0,0,IF(AND(OR(S14=\"Mgr\",S14=0),OR(U14=\"Mgr\",U14=0),OR(W14=\"Mgr\",W14=0)),0,IF(LEFT($A14,2)=\"B*\",VLOOKUP($E14,'1. Checklist & Certification'!$D$26:$E$32,2),IF(LEFT($A14,2)=\"C*\",VLOOKUP($E14,'1. Checklist & Certification'!$F$26:$G$32,2),IF(LEFT($A14,2)=\"D*\",VLOOKUP($E14,'1. Checklist & Certification'!$H$26:$I$32,2),IF(LEFT($A14,2)=\"E*\",VLOOKUP($E14,'1. Checklist & Certification'!$J$26:$K$32,2),VLOOKUP($E14,'1. Checklist & Certification'!$A$26:$B$32,2)))))))","v":0},0,0,null,null,null,null,"","",0,0,0,null,{"$f":"IF(A14=\"\",\"\",'1. Checklist & Certification'!$K$1)","v":""},{"$f":"IF(A14=\"\",\"\",'1. Checklist & Certification'!$C$62)","v":""},{"$f":"IF(A14=\"\",\"\",'1. Checklist & Certification'!$C$6)","v":""},{"$f":"IF(A14=\"\",\"\",'1. Checklist & Certification'!$G$5)","v":""},{"$f":"IFERROR(IF(A14=\"\",\"\",\n_xlfn.LET(_xlpm.Contract,'1. Checklist & Certification'!$C$7,\n_xlpm.Yr,TEXT(MOD(_xlfn.TEXTBEFORE(_xlpm.Contract,\"-\"),100),\"00\"),\n_xlpm.Program,_xlfn.TEXTAFTER(_xlfn.TEXTBEFORE(_xlpm.Contract,\"-\",2),\"-\"),\n_xlpm.CleanProgram,_xlfn.XLOOKUP(_xlpm.Program,SpellCheck[Input],SpellCheck[Correction],_xlpm.Program),\n_xlpm.Number,TEXT(_xlfn.TEXTAFTER(_xlpm.Contract,\"-\",2),\"0000\"),\n_xlfn.CONCAT(_xlpm.Yr,\"-\",_xlpm.CleanProgram,\"-\",_xlpm.Number))\n),\"\")","v":""},{"$f":"IFERROR(IF(A14=\"\",\"\",\n_xlfn.LET(_xlpm.Contract,'1. Checklist & Certification'!$C$8,\n_xlpm.Yr,TEXT(MOD(_xlfn.TEXTBEFORE(_xlpm.Contract,\"-\"),100),\"00\"),\n_xlpm.Program,_xlfn.TEXTAFTER(_xlfn.TEXTBEFORE(_xlpm.Contract,\"-\",2),\"-\"),\n_xlpm.CleanProgram,_xlfn.XLOOKUP(_xlpm.Program,SpellCheck[Input],SpellCheck[Correction],_xlpm.Program),\n_xlpm.Number,TEXT(_xlfn.TEXTAFTER(_xlpm.Contract,\"-\",2),\"0000\"),\n_xlfn.CONCAT(_xlpm.Yr,\"-\",_xlpm.CleanProgram,\"-\",_xlpm.Number))\n),\"\")","v":""},{"$f":"IFERROR(IF(A14=\"\",\"\",\n_xlfn.LET(_xlpm.Contract,'1. Checklist & Certification'!$F$7,\n_xlpm.Yr,TEXT(MOD(_xlfn.TEXTBEFORE(_xlpm.Contract,\"-\"),100),\"00\"),\n_xlpm.Program,_xlfn.TEXTAFTER(_xlfn.TEXTBEFORE(_xlpm.Contract,\"-\",2),\"-\"),\n_xlpm.CleanProgram,_xlfn.XLOOKUP(_xlpm.Program,SpellCheck[Input],SpellCheck[Correction],_xlpm.Program),\n_xlpm.Number,TEXT(_xlfn.TEXTAFTER(_xlpm.Contract,\"-\",2),\"0000\"),\n_xlfn.CONCAT(_xlpm.Yr,\"-\",_xlpm.CleanProgram,\"-\",_xlpm.Number))\n),\"\")","v":""},{"$f":"IFERROR(IF(A14=\"\",\"\",\n_xlfn.LET(_xlpm.Contract,'1. Checklist & Certification'!$F$8,\n_xlpm.Yr,TEXT(MOD(_xlfn.TEXTBEFORE(_xlpm.Contract,\"-\"),100),\"00\"),\n_xlpm.Program,_xlfn.TEXTAFTER(_xlfn.TEXTBEFORE(_xlpm.Contract,\"-\",2),\"-\"),\n_xlpm.CleanProgram,_xlfn.XLOOKUP(_xlpm.Program,SpellCheck[Input],SpellCheck[Correction],_xlpm.Program),\n_xlpm.Number,TEXT(_xlfn.TEXTAFTER(_xlpm.Contract,\"-\",2),\"0000\"),\n_xlfn.CONCAT(_xlpm.Yr,\"-\",_xlpm.CleanProgram,\"-\",_xlpm.Number))\n),\"\")","v":""},{"$f":"IF(A14=\"\",\"\",'1. Checklist & Certification'!$B$9)","v":""},{"$f":"IF(A14=\"\",\"\",'1. Checklist & Certification'!$F$9)","v":""},{"$f":"IF(A14=\"\",\"\",'1. Checklist & Certification'!$C$10)","v":""},{"$f":"IF(A14=\"\",\"\",'1. Checklist & Certification'!$C$11)","v":""},{"$f":"IF(A14=\"\",\"\",'1. Checklist & Certification'!$C$12)","v":""},{"$f":"IF(A14=\"\",\"\",'1. Checklist & Certification'!$B$14)","v":""},{"$f":"IF(A14=\"\",\"\",'1. Checklist & Certification'!$E$14)","v":""},{"$f":"IF(B14=\"\",\"\",'1. Checklist & Certification'!$G$14)","v":""},{"$f":"IF(A14=\"\",\"\",'MHP Family Income & Rent Limits'!$B$3)","v":""},{"$f":"IF(A14=\"\",\"\",'MHP Family Income & Rent Limits'!$J$3)","v":""},{"$f":"IF(A14=\"\",\"\",'MHP Family Income & Rent Limits'!$E$4)","v":""},{"$f":"IF(A14=\"\",\"\",'MHP Family Income & Rent Limits'!$C$7)","v":""},{"$f":"IF(A14=\"\",\"\",'MHP Family Income & Rent Limits'!$F$8)","v":""},{"$f":"IF(A14=\"\",\"\",'1. Checklist & Certification'!$G$4)","v":""},{"$f":"IF(A14=\"\",\"\",'1. Checklist & Certification'!$K$39)","v":""},{"$f":"IF(A14=\"\",\"\",'1. Checklist & Certification'!$K$43)","v":""},{"$f":"IF(A14=\"\",\"\",'1. Checklist & Certification'!$K$45)","v":""},{"$f":"IF(A14=\"\",\"\",'1. Checklist & Certification'!$K$49)","v":""},{"$f":"IF(A14=\"\",\"\",'1. Checklist & Certification'!$K$62)","v":""},{"$f":"IF(A14=\"\",\"\",'1. Checklist & Certification'!$E$66)","v":""},{"$f":"IF(A14=\"\",\"\",'1. Checklist & Certification'!$E$67)","v":""},{"$f":"IF(A14=\"\",\"\",'1. Checklist & Certification'!$E$68)","v":""},{"$f":"IF(A14=\"\",\"\",'1. Checklist & Certification'!$G$66)","v":""},{"$f":"IF(A14=\"\",\"\",'1. Checklist & Certification'!$H$66)","v":""},{"$f":"IF(A14=\"\",\"\",'1. Checklist & Certification'!$I$66)","v":""},{"$f":"IF(A14=\"\",\"\",'1. Checklist & Certification'!$I$67)","v":""},{"$f":"IF(A14=\"\",\"\",'1. Checklist & Certification'!$I$68)","v":""},{"$f":"IF(A14=\"\",\"\",'1. Checklist & Certification'!$B$69)","v":""},{"$f":"IF(A14=\"\",\"\",'1. Checklist & Certification'!$C$69)","v":""},{"$f":"IF(A14=\"\",\"\",'1. Checklist & Certification'!$F$69)","v":""},{"$f":"IF(A14=\"\",\"\",'1. Checklist & Certification'!$G$69)","v":""},{"$f":"IF(A14=\"\",\"\",'1. Checklist & Certification'!$J$69)","v":""},{"$f":"IF(A14=\"\",\"\",'1. Checklist & Certification'!$K$69)","v":""},null,null,{"$f":"IF(AND(OR('1. Checklist & Certification'!$M$16=1,'1. Checklist & Certification'!$M$19=2),AO14>0,B14=\"\",I14>0,AQ14<I14,AV14<>\"Sec 8-Project\"),\"X\",IF(AND(OR('1. Checklist & Certification'!$M$20=4,'1. Checklist & Certification'!$M$21=5,'1. Checklist & Certification'!$M$22=7),AO14>0,B14=\"\",I14>0,K14<I14),\"X\",\"\"))","v":""},{"$f":"IF(A14=\"\",\"\",IF(SUMPRODUCT(-- (ISNUMBER(SEARCH({\"*AHSC*\",\"*FMTW*\",\"*FWHG*\",\"*GHI*\",\"*HHC*\",\"*HLCP*\",\"*HOME*\",\"*LPR*\",\"*MHP*\",\"*NHTF*\",\"*NSP*\",\"*PRP*\",\"*TOD*\",\"*VHHP*\"},'1. Checklist & Certification'!$L$7)))),\"MHP\",\"Legacy\"))","v":""},",,",null,null,null,{"$f":"IF('1. Checklist & Certification'!$M$20=4,\"Both\",IF(OR('1. Checklist & Certification'!$M$15>0,S14=\"CHRP-R\",U14=\"CHRP-R\",W14=\"CHRP-R\",Y14=\"CHRP-R\"),\"Under\",\"No\"))","v":"No"},"No","No",{"$f":"_xlfn.IFS(D14=\"\",\"\",D14=1,'MHP Family Income & Rent Limits'!$E$17,D14=2,'MHP Family Income & Rent Limits'!$F$17,D14=3,'MHP Family Income & Rent Limits'!$G$17,D14=4,'MHP Family Income & Rent Limits'!$H$17,D14=5,'MHP Family Income & Rent Limits'!$I$17,D14=6,'MHP Family Income & Rent Limits'!$J$17,D14=7,'MHP Family Income & Rent Limits'!$K$17,D14=8,'MHP Family Income & Rent Limits'!$L$17)","v":""},"",{"$f":"IF(OR(A14=0,B14=\"X\"),0,MIN(IF(AA14:AD14<>0,AA14:AD14)))","v":0},{"$f":"IF(OR(H14=\"\",I14=\"\"),0,IF(H14*0.3/12>I14,MIN(H14*0.3/12,I14*1.1)+AP14,I14*(1+(VLOOKUP('1. Checklist & Certification'!$F$9,'HLCP-E Rent Change'!$A$1:$D$59,4,FALSE)))+AP14))","v":0}]
[null,null,null,null,null,null,null,null,null,null,null,null,null,null,null,null,null,null,null,null,null,null,null,null,null,null,0,0,0,0,0,0,0,0,{"$f":"IF(OR(A15=0,B15=\"X\"),0,IF(OR(S15=\"FHDP\",S15=\"RHCP-B\",U15=\"FHDP\",U15=\"RHCP-B\",W15=\"FHDP\",W15=\"RHCP-B\",Y15=\"FHDP\",Y15=\"RHCP-B\"),TRUNC((MIN(I15,K15)*(1+'1. Checklist & Certification'!$K$43)+AP15)),0))","v":0},{"$f":"IF(OR(A15=0,B15=\"X\"),0,IF(OR(S15=\"CHRP-R\",S15=\"SERA\",S15=\"SUHRP\",U15=\"CHRP-R\",U15=\"SERA\",U15=\"SUHRP\",W15=\"CHRP-R\",W15=\"SERA\",W15=\"SUHRP\",Y15=\"CHRP-R\",Y15=\"SERA\",Y15=\"SUHRP\"),TRUNC((MIN(I15,K15)*(1+'1. Checklist & Certification'!$K$49))),0))","v":0},{"$f":"IF(OR(A15=0,B15=\"X\"),0,IF(OR(S15=\"CALDAP\",S15=\"DPRLP\",U15=\"CALDAP\",U15=\"DPRLP\",W15=\"CALDAP\",W15=\"DPRLP\",Y15=\"CALDAP\",Y15=\"DPRLP\"),TRUNC(((MIN(I15,K15))*(1+'1. Checklist & Certification'!$G$4))),0))","v":0},0,0,0,{"$f":"IF(OR(A15=0,B15=\"X\"),0,IF(OR(S15=\"PRP\",S15=\"LPR\",U15=\"PRP\",U15=\"LPR\",W15=\"PRP\",W15=\"LPR\",Y15=\"PRP\",Y15=\"LPR\"),MAX(I15+AP15,MIN(IF(AE15:AN15<>0,AE15:AN15))),MIN(IF(AE15:AN15<>0,AE15:AN15))))","v":0},{"$f":"IF(A15=0,0,IF(AND(OR(S15=\"Mgr\",S15=0),OR(U15=\"Mgr\",U15=0),OR(W15=\"Mgr\",W15=0)),0,IF(LEFT($A15,2)=\"B*\",VLOOKUP($E15,'1. Checklist & Certification'!$D$26:$E$32,2),IF(LEFT($A15,2)=\"C*\",VLOOKUP($E15,'1. Checklist & Certification'!$F$26:$G$32,2),IF(LEFT($A15,2)=\"D*\",VLOOKUP($E15,'1. Checklist & Certification'!$H$26:$I$32,2),IF(LEFT($A15,2)=\"E*\",VLOOKUP($E15,'1. Checklist & Certification'!$J$26:$K$32,2),VLOOKUP($E15,'1. Checklist & Certification'!$A$26:$B$32,2)))))))","v":0},0,0,null,null,null,null,"","",0,0,0,null,{"$f":"IF(A15=\"\",\"\",'1. Checklist & Certification'!$K$1)","v":""},{"$f":"IF(A15=\"\",\"\",'1. Checklist & Certification'!$C$62)","v":""},{"$f":"IF(A15=\"\",\"\",'1. Checklist & Certification'!$C$6)","v":""},{"$f":"IF(A15=\"\",\"\",'1. Checklist & Certification'!$G$5)","v":""},{"$f":"IFERROR(IF(A15=\"\",\"\",\n_xlfn.LET(_xlpm.Contract,'1. Checklist & Certification'!$C$7,\n_xlpm.Yr,TEXT(MOD(_xlfn.TEXTBEFORE(_xlpm.Contract,\"-\"),100),\"00\"),\n_xlpm.Program,_xlfn.TEXTAFTER(_xlfn.TEXTBEFORE(_xlpm.Contract,\"-\",2),\"-\"),\n_xlpm.CleanProgram,_xlfn.XLOOKUP(_xlpm.Program,SpellCheck[Input],SpellCheck[Correction],_xlpm.Program),\n_xlpm.Number,TEXT(_xlfn.TEXTAFTER(_xlpm.Contract,\"-\",2),\"0000\"),\n_xlfn.CONCAT(_xlpm.Yr,\"-\",_xlpm.CleanProgram,\"-\",_xlpm.Number))\n),\"\")","v":""},{"$f":"IFERROR(IF(A15=\"\",\"\",\n_xlfn.LET(_xlpm.Contract,'1. Checklist & Certification'!$C$8,\n_xlpm.Yr,TEXT(MOD(_xlfn.TEXTBEFORE(_xlpm.Contract,\"-\"),100),\"00\"),\n_xlpm.Program,_xlfn.TEXTAFTER(_xlfn.TEXTBEFORE(_xlpm.Contract,\"-\",2),\"-\"),\n_xlpm.CleanProgram,_xlfn.XLOOKUP(_xlpm.Program,SpellCheck[Input],SpellCheck[Correction],_xlpm.Program),\n_xlpm.Number,TEXT(_xlfn.TEXTAFTER(_xlpm.Contract,\"-\",2),\"0000\"),\n_xlfn.CONCAT(_xlpm.Yr,\"-\",_xlpm.CleanProgram,\"-\",_xlpm.Number))\n),\"\")","v":""},{"$f":"IFERROR(IF(A15=\"\",\"\",\n_xlfn.LET(_xlpm.Contract,'1. Checklist & Certification'!$F$7,\n_xlpm.Yr,TEXT(MOD(_xlfn.TEXTBEFORE(_xlpm.Contract,\"-\"),100),\"00\"),\n_xlpm.Program,_xlfn.TEXTAFTER(_xlfn.TEXTBEFORE(_xlpm.Contract,\"-\",2),\"-\"),\n_xlpm.CleanProgram,_xlfn.XLOOKUP(_xlpm.Program,SpellCheck[Input],SpellCheck[Correction],_xlpm.Program),\n_xlpm.Number,TEXT(_xlfn.TEXTAFTER(_xlpm.Contract,\"-\",2),\"0000\"),\n_xlfn.CONCAT(_xlpm.Yr,\"-\",_xlpm.CleanProgram,\"-\",_xlpm.Number))\n),\"\")","v":""},{"$f":"IFERROR(IF(A15=\"\",\"\",\n_xlfn.LET(_xlpm.Contract,'1. Checklist & Certification'!$F$8,\n_xlpm.Yr,TEXT(MOD(_xlfn.TEXTBEFORE(_xlpm.Contract,\"-\"),100),\"00\"),\n_xlpm.Program,_xlfn.TEXTAFTER(_xlfn.TEXTBEFORE(_xlpm.Contract,\"-\",2),\"-\"),\n_xlpm.CleanProgram,_xlfn.XLOOKUP(_xlpm.Program,SpellCheck[Input],SpellCheck[Correction],_xlpm.Program),\n_xlpm.Number,TEXT(_xlfn.TEXTAFTER(_xlpm.Contract,\"-\",2),\"0000\"),\n_xlfn.CONCAT(_xlpm.Yr,\"-\",_xlpm.CleanProgram,\"-\",_xlpm.Number))\n),\"\")","v":""},{"$f":"IF(A15=\"\",\"\",'1. Checklist & Certification'!$B$9)","v":""},{"$f":"IF(A15=\"\",\"\",'1. Checklist & Certification'!$F$9)","v":""},{"$f":"IF(A15=\"\",\"\",'1. Checklist & Certification'!$C$10)","v":""},{"$f":"IF(A15=\"\",\"\",'1. Checklist & Certification'!$C$11)","v":""},{"$f":"IF(A15=\"\",\"\",'1. Checklist & Certification'!$C$12)","v":""},{"$f":"IF(A15=\"\",\"\",'1. Checklist & Certification'!$B$14)","v":""},{"$f":"IF(A15=\"\",\"\",'1. Checklist & Certification'!$E$14)","v":""},{"$f":"IF(B15=\"\",\"\",'1. Checklist & Certification'!$G$14)","v":""},{"$f":"IF(A15=\"\",\"\",'MHP Family Income & Rent Limits'!$B$3)","v":""},{"$f":"IF(A15=\"\",\"\",'MHP Family Income & Rent Limits'!$J$3)","v":""},{"$f":"IF(A15=\"\",\"\",'MHP Family Income & Rent Limits'!$E$4)","v":""},{"$f":"IF(A15=\"\",\"\",'MHP Family Income & Rent Limits'!$C$7)","v":""},{"$f":"IF(A15=\"\",\"\",'MHP Family Income & Rent Limits'!$F$8)","v":""},{"$f":"IF(A15=\"\",\"\",'1. Checklist & Certification'!$G$4)","v":""},{"$f":"IF(A15=\"\",\"\",'1. Checklist & Certification'!$K$39)","v":""},{"$f":"IF(A15=\"\",\"\",'1. Checklist & Certification'!$K$43)","v":""},{"$f":"IF(A15=\"\",\"\",'1. Checklist & Certification'!$K$45)","v":""},{"$f":"IF(A15=\"\",\"\",'1. Checklist & Certification'!$K$49)","v":""},{"$f":"IF(A15=\"\",\"\",'1. Checklist & Certification'!$K$62)","v":""},{"$f":"IF(A15=\"\",\"\",'1. Checklist & Certification'!$E$66)","v":""},{"$f":"IF(A15=\"\",\"\",'1. Checklist & Certification'!$E$67)","v":""},{"$f":"IF(A15=\"\",\"\",'1. Checklist & Certification'!$E$68)","v":""},{"$f":"IF(A15=\"\",\"\",'1. Checklist & Certification'!$G$66)","v":""},{"$f":"IF(A15=\"\",\"\",'1. Checklist & Certification'!$H$66)","v":""},{"$f":"IF(A15=\"\",\"\",'1. Checklist & Certification'!$I$66)","v":""},{"$f":"IF(A15=\"\",\"\",'1. Checklist & Certification'!$I$67)","v":""},{"$f":"IF(A15=\"\",\"\",'1. Checklist & Certification'!$I$68)","v":""},{"$f":"IF(A15=\"\",\"\",'1. Checklist & Certification'!$B$69)","v":""},{"$f":"IF(A15=\"\",\"\",'1. Checklist & Certification'!$C$69)","v":""},{"$f":"IF(A15=\"\",\"\",'1. Checklist & Certification'!$F$69)","v":""},{"$f":"IF(A15=\"\",\"\",'1. Checklist & Certification'!$G$69)","v":""},{"$f":"IF(A15=\"\",\"\",'1. Checklist & Certification'!$J$69)","v":""},{"$f":"IF(A15=\"\",\"\",'1. Checklist & Certification'!$K$69)","v":""},null,null,{"$f":"IF(AND(OR('1. Checklist & Certification'!$M$16=1,'1. Checklist & Certification'!$M$19=2),AO15>0,B15=\"\",I15>0,AQ15<I15,AV15<>\"Sec 8-Project\"),\"X\",IF(AND(OR('1. Checklist & Certification'!$M$20=4,'1. Checklist & Certification'!$M$21=5,'1. Checklist & Certification'!$M$22=7),AO15>0,B15=\"\",I15>0,K15<I15),\"X\",\"\"))","v":""},{"$f":"IF(A15=\"\",\"\",IF(SUMPRODUCT(-- (ISNUMBER(SEARCH({\"*AHSC*\",\"*FMTW*\",\"*FWHG*\",\"*GHI*\",\"*HHC*\",\"*HLCP*\",\"*HOME*\",\"*LPR*\",\"*MHP*\",\"*NHTF*\",\"*NSP*\",\"*PRP*\",\"*TOD*\",\"*VHHP*\"},'1. Checklist & Certification'!$L$7)))),\"MHP\",\"Legacy\"))","v":""},",,",null,null,null,{"$f":"IF('1. Checklist & Certification'!$M$20=4,\"Both\",IF(OR('1. Checklist & Certification'!$M$15>0,S15=\"CHRP-R\",U15=\"CHRP-R\",W15=\"CHRP-R\",Y15=\"CHRP-R\"),\"Under\",\"No\"))","v":"No"},"No","No",{"$f":"_xlfn.IFS(D15=\"\",\"\",D15=1,'MHP Family Income & Rent Limits'!$E$17,D15=2,'MHP Family Income & Rent Limits'!$F$17,D15=3,'MHP Family Income & Rent Limits'!$G$17,D15=4,'MHP Family Income & Rent Limits'!$H$17,D15=5,'MHP Family Income & Rent Limits'!$I$17,D15=6,'MHP Family Income & Rent Limits'!$J$17,D15=7,'MHP Family Income & Rent Limits'!$K$17,D15=8,'MHP Family Income & Rent Limits'!$L$17)","v":""},"",{"$f":"IF(OR(A15=0,B15=\"X\"),0,MIN(IF(AA15:AD15<>0,AA15:AD15)))","v":0},{"$f":"IF(OR(H15=\"\",I15=\"\"),0,IF(H15*0.3/12>I15,MIN(H15*0.3/12,I15*1.1)+AP15,I15*(1+(VLOOKUP('1. Checklist & Certification'!$F$9,'HLCP-E Rent Change'!$A$1:$D$59,4,FALSE)))+AP15))","v":0}]
[null,null,null,null,null,null,null,null,null,null,null,null,null,null,null,null,null,null,null,null,null,null,null,null,null,null,0,0,0,0,0,0,0,0,{"$f":"IF(OR(A16=0,B16=\"X\"),0,IF(OR(S16=\"FHDP\",S16=\"RHCP-B\",U16=\"FHDP\",U16=\"RHCP-B\",W16=\"FHDP\",W16=\"RHCP-B\",Y16=\"FHDP\",Y16=\"RHCP-B\"),TRUNC((MIN(I16,K16)*(1+'1. Checklist & Certification'!$K$43)+AP16)),0))","v":0},{"$f":"IF(OR(A16=0,B16=\"X\"),0,IF(OR(S16=\"CHRP-R\",S16=\"SERA\",S16=\"SUHRP\",U16=\"CHRP-R\",U16=\"SERA\",U16=\"SUHRP\",W16=\"CHRP-R\",W16=\"SERA\",W16=\"SUHRP\",Y16=\"CHRP-R\",Y16=\"SERA\",Y16=\"SUHRP\"),TRUNC((MIN(I16,K16)*(1+'1. Checklist & Certification'!$K$49))),0))","v":0},{"$f":"IF(OR(A16=0,B16=\"X\"),0,IF(OR(S16=\"CALDAP\",S16=\"DPRLP\",U16=\"CALDAP\",U16=\"DPRLP\",W16=\"CALDAP\",W16=\"DPRLP\",Y16=\"CALDAP\",Y16=\"DPRLP\"),TRUNC(((MIN(I16,K16))*(1+'1. Checklist & Certification'!$G$4))),0))","v":0},0,0,0,{"$f":"IF(OR(A16=0,B16=\"X\"),0,IF(OR(S16=\"PRP\",S16=\"LPR\",U16=\"PRP\",U16=\"LPR\",W16=\"PRP\",W16=\"LPR\",Y16=\"PRP\",Y16=\"LPR\"),MAX(I16+AP16,MIN(IF(AE16:AN16<>0,AE16:AN16))),MIN(IF(AE16:AN16<>0,AE16:AN16))))","v":0},{"$f":"IF(A16=0,0,IF(AND(OR(S16=\"Mgr\",S16=0),OR(U16=\"Mgr\",U16=0),OR(W16=\"Mgr\",W16=0)),0,IF(LEFT($A16,2)=\"B*\",VLOOKUP($E16,'1. Checklist & Certification'!$D$26:$E$32,2),IF(LEFT($A16,2)=\"C*\",VLOOKUP($E16,'1. Checklist & Certification'!$F$26:$G$32,2),IF(LEFT($A16,2)=\"D*\",VLOOKUP($E16,'1. Checklist & Certification'!$H$26:$I$32,2),IF(LEFT($A16,2)=\"E*\",VLOOKUP($E16,'1. Checklist & Certification'!$J$26:$K$32,2),VLOOKUP($E16,'1. Checklist & Certification'!$A$26:$B$32,2)))))))","v":0},0,0,null,null,null,null,"","",0,0,0,null,{"$f":"IF(A16=\"\",\"\",'1. Checklist & Certification'!$K$1)","v":""},{"$f":"IF(A16=\"\",\"\",'1. Checklist & Certification'!$C$62)","v":""},{"$f":"IF(A16=\"\",\"\",'1. Checklist & Certification'!$C$6)","v":""},{"$f":"IF(A16=\"\",\"\",'1. Checklist & Certification'!$G$5)","v":""},{"$f":"IFERROR(IF(A16=\"\",\"\",\n_xlfn.LET(_xlpm.Contract,'1. Checklist & Certification'!$C$7,\n_xlpm.Yr,TEXT(MOD(_xlfn.TEXTBEFORE(_xlpm.Contract,\"-\"),100),\"00\"),\n_xlpm.Program,_xlfn.TEXTAFTER(_xlfn.TEXTBEFORE(_xlpm.Contract,\"-\",2),\"-\"),\n_xlpm.CleanProgram,_xlfn.XLOOKUP(_xlpm.Program,SpellCheck[Input],SpellCheck[Correction],_xlpm.Program),\n_xlpm.Number,TEXT(_xlfn.TEXTAFTER(_xlpm.Contract,\"-\",2),\"0000\"),\n_xlfn.CONCAT(_xlpm.Yr,\"-\",_xlpm.CleanProgram,\"-\",_xlpm.Number))\n),\"\")","v":""},{"$f":"IFERROR(IF(A16=\"\",\"\",\n_xlfn.LET(_xlpm.Contract,'1. Checklist & Certification'!$C$8,\n_xlpm.Yr,TEXT(MOD(_xlfn.TEXTBEFORE(_xlpm.Contract,\"-\"),100),\"00\"),\n_xlpm.Program,_xlfn.TEXTAFTER(_xlfn.TEXTBEFORE(_xlpm.Contract,\"-\",2),\"-\"),\n_xlpm.CleanProgram,_xlfn.XLOOKUP(_xlpm.Program,SpellCheck[Input],SpellCheck[Correction],_xlpm.Program),\n_xlpm.Number,TEXT(_xlfn.TEXTAFTER(_xlpm.Contract,\"-\",2),\"0000\"),\n_xlfn.CONCAT(_xlpm.Yr,\"-\",_xlpm.CleanProgram,\"-\",_xlpm.Number))\n),\"\")","v":""},{"$f":"IFERROR(IF(A16=\"\",\"\",\n_xlfn.LET(_xlpm.Contract,'1. Checklist & Certification'!$F$7,\n_xlpm.Yr,TEXT(MOD(_xlfn.TEXTBEFORE(_xlpm.Contract,\"-\"),100),\"00\"),\n_xlpm.Program,_xlfn.TEXTAFTER(_xlfn.TEXTBEFORE(_xlpm.Contract,\"-\",2),\"-\"),\n_xlpm.CleanProgram,_xlfn.XLOOKUP(_xlpm.Program,SpellCheck[Input],SpellCheck[Correction],_xlpm.Program),\n_xlpm.Number,TEXT(_xlfn.TEXTAFTER(_xlpm.Contract,\"-\",2),\"0000\"),\n_xlfn.CONCAT(_xlpm.Yr,\"-\",_xlpm.CleanProgram,\"-\",_xlpm.Number))\n),\"\")","v":""},{"$f":"IFERROR(IF(A16=\"\",\"\",\n_xlfn.LET(_xlpm.Contract,'1. Checklist & Certification'!$F$8,\n_xlpm.Yr,TEXT(MOD(_xlfn.TEXTBEFORE(_xlpm.Contract,\"-\"),100),\"00\"),\n_xlpm.Program,_xlfn.TEXTAFTER(_xlfn.TEXTBEFORE(_xlpm.Contract,\"-\",2),\"-\"),\n_xlpm.CleanProgram,_xlfn.XLOOKUP(_xlpm.Program,SpellCheck[Input],SpellCheck[Correction],_xlpm.Program),\n_xlpm.Number,TEXT(_xlfn.TEXTAFTER(_xlpm.Contract,\"-\",2),\"0000\"),\n_xlfn.CONCAT(_xlpm.Yr,\"-\",_xlpm.CleanProgram,\"-\",_xlpm.Number))\n),\"\")","v":""},{"$f":"IF(A16=\"\",\"\",'1. Checklist & Certification'!$B$9)","v":""},{"$f":"IF(A16=\"\",\"\",'1. Checklist & Certification'!$F$9)","v":""},{"$f":"IF(A16=\"\",\"\",'1. Checklist & Certification'!$C$10)","v":""},{"$f":"IF(A16=\"\",\"\",'1. Checklist & Certification'!$C$11)","v":""},{"$f":"IF(A16=\"\",\"\",'1. Checklist & Certification'!$C$12)","v":""},{"$f":"IF(A16=\"\",\"\",'1. Checklist & Certification'!$B$14)","v":""},{"$f":"IF(A16=\"\",\"\",'1. Checklist & Certification'!$E$14)","v":""},{"$f":"IF(B16=\"\",\"\",'1. Checklist & Certification'!$G$14)","v":""},{"$f":"IF(A16=\"\",\"\",'MHP Family Income & Rent Limits'!$B$3)","v":""},{"$f":"IF(A16=\"\",\"\",'MHP Family Income & Rent Limits'!$J$3)","v":""},{"$f":"IF(A16=\"\",\"\",'MHP Family Income & Rent Limits'!$E$4)","v":""},{"$f":"IF(A16=\"\",\"\",'MHP Family Income & Rent Limits'!$C$7)","v":""},{"$f":"IF(A16=\"\",\"\",'MHP Family Income & Rent Limits'!$F$8)","v":""},{"$f":"IF(A16=\"\",\"\",'1. Checklist & Certification'!$G$4)","v":""},{"$f":"IF(A16=\"\",\"\",'1. Checklist & Certification'!$K$39)","v":""},{"$f":"IF(A16=\"\",\"\",'1. Checklist & Certification'!$K$43)","v":""},{"$f":"IF(A16=\"\",\"\",'1. Checklist & Certification'!$K$45)","v":""},{"$f":"IF(A16=\"\",\"\",'1. Checklist & Certification'!$K$49)","v":""},{"$f":"IF(A16=\"\",\"\",'1. Checklist & Certification'!$K$62)","v":""},{"$f":"IF(A16=\"\",\"\",'1. Checklist & Certification'!$E$66)","v":""},{"$f":"IF(A16=\"\",\"\",'1. Checklist & Certification'!$E$67)","v":""},{"$f":"IF(A16=\"\",\"\",'1. Checklist & Certification'!$E$68)","v":""},{"$f":"IF(A16=\"\",\"\",'1. Checklist & Certification'!$G$66)","v":""},{"$f":"IF(A16=\"\",\"\",'1. Checklist & Certification'!$H$66)","v":""},{"$f":"IF(A16=\"\",\"\",'1. Checklist & Certification'!$I$66)","v":""},{"$f":"IF(A16=\"\",\"\",'1. Checklist & Certification'!$I$67)","v":""},{"$f":"IF(A16=\"\",\"\",'1. Checklist & Certification'!$I$68)","v":""},{"$f":"IF(A16=\"\",\"\",'1. Checklist & Certification'!$B$69)","v":""},{"$f":"IF(A16=\"\",\"\",'1. Checklist & Certification'!$C$69)","v":""},{"$f":"IF(A16=\"\",\"\",'1. Checklist & Certification'!$F$69)","v":""},{"$f":"IF(A16=\"\",\"\",'1. Checklist & Certification'!$G$69)","v":""},{"$f":"IF(A16=\"\",\"\",'1. Checklist & Certification'!$J$69)","v":""},{"$f":"IF(A16=\"\",\"\",'1. Checklist & Certification'!$K$69)","v":""},null,null,{"$f":"IF(AND(OR('1. Checklist & Certification'!$M$16=1,'1. Checklist & Certification'!$M$19=2),AO16>0,B16=\"\",I16>0,AQ16<I16,AV16<>\"Sec 8-Project\"),\"X\",IF(AND(OR('1. Checklist & Certification'!$M$20=4,'1. Checklist & Certification'!$M$21=5,'1. Checklist & Certification'!$M$22=7),AO16>0,B16=\"\",I16>0,K16<I16),\"X\",\"\"))","v":""},{"$f":"IF(A16=\"\",\"\",IF(SUMPRODUCT(-- (ISNUMBER(SEARCH({\"*AHSC*\",\"*FMTW*\",\"*FWHG*\",\"*GHI*\",\"*HHC*\",\"*HLCP*\",\"*HOME*\",\"*LPR*\",\"*MHP*\",\"*NHTF*\",\"*NSP*\",\"*PRP*\",\"*TOD*\",\"*VHHP*\"},'1. Checklist & Certification'!$L$7)))),\"MHP\",\"Legacy\"))","v":""},",,",null,null,null,{"$f":"IF('1. Checklist & Certification'!$M$20=4,\"Both\",IF(OR('1. Checklist & Certification'!$M$15>0,S16=\"CHRP-R\",U16=\"CHRP-R\",W16=\"CHRP-R\",Y16=\"CHRP-R\"),\"Under\",\"No\"))","v":"No"},"No","No",{"$f":"_xlfn.IFS(D16=\"\",\"\",D16=1,'MHP Family Income & Rent Limits'!$E$17,D16=2,'MHP Family Income & Rent Limits'!$F$17,D16=3,'MHP Family Income & Rent Limits'!$G$17,D16=4,'MHP Family Income & Rent Limits'!$H$17,D16=5,'MHP Family Income & Rent Limits'!$I$17,D16=6,'MHP Family Income & Rent Limits'!$J$17,D16=7,'MHP Family Income & Rent Limits'!$K$17,D16=8,'MHP Family Income & Rent Limits'!$L$17)","v":""},"",{"$f":"IF(OR(A16=0,B16=\"X\"),0,MIN(IF(AA16:AD16<>0,AA16:AD16)))","v":0},{"$f":"IF(OR(H16=\"\",I16=\"\"),0,IF(H16*0.3/12>I16,MIN(H16*0.3/12,I16*1.1)+AP16,I16*(1+(VLOOKUP('1. Checklist & Certification'!$F$9,'HLCP-E Rent Change'!$A$1:$D$59,4,FALSE)))+AP16))","v":0}]
[null,null,null,null,null,null,null,null,null,null,null,null,null,null,null,null,null,null,null,null,null,null,null,null,null,null,0,0,0,0,0,0,0,0,{"$f":"IF(OR(A17=0,B17=\"X\"),0,IF(OR(S17=\"FHDP\",S17=\"RHCP-B\",U17=\"FHDP\",U17=\"RHCP-B\",W17=\"FHDP\",W17=\"RHCP-B\",Y17=\"FHDP\",Y17=\"RHCP-B\"),TRUNC((MIN(I17,K17)*(1+'1. Checklist & Certification'!$K$43)+AP17)),0))","v":0},{"$f":"IF(OR(A17=0,B17=\"X\"),0,IF(OR(S17=\"CHRP-R\",S17=\"SERA\",S17=\"SUHRP\",U17=\"CHRP-R\",U17=\"SERA\",U17=\"SUHRP\",W17=\"CHRP-R\",W17=\"SERA\",W17=\"SUHRP\",Y17=\"CHRP-R\",Y17=\"SERA\",Y17=\"SUHRP\"),TRUNC((MIN(I17,K17)*(1+'1. Checklist & Certification'!$K$49))),0))","v":0},{"$f":"IF(OR(A17=0,B17=\"X\"),0,IF(OR(S17=\"CALDAP\",S17=\"DPRLP\",U17=\"CALDAP\",U17=\"DPRLP\",W17=\"CALDAP\",W17=\"DPRLP\",Y17=\"CALDAP\",Y17=\"DPRLP\"),TRUNC(((MIN(I17,K17))*(1+'1. Checklist & Certification'!$G$4))),0))","v":0},0,0,0,{"$f":"IF(OR(A17=0,B17=\"X\"),0,IF(OR(S17=\"PRP\",S17=\"LPR\",U17=\"PRP\",U17=\"LPR\",W17=\"PRP\",W17=\"LPR\",Y17=\"PRP\",Y17=\"LPR\"),MAX(I17+AP17,MIN(IF(AE17:AN17<>0,AE17:AN17))),MIN(IF(AE17:AN17<>0,AE17:AN17))))","v":0},{"$f":"IF(A17=0,0,IF(AND(OR(S17=\"Mgr\",S17=0),OR(U17=\"Mgr\",U17=0),OR(W17=\"Mgr\",W17=0)),0,IF(LEFT($A17,2)=\"B*\",VLOOKUP($E17,'1. Checklist & Certification'!$D$26:$E$32,2),IF(LEFT($A17,2)=\"C*\",VLOOKUP($E17,'1. Checklist & Certification'!$F$26:$G$32,2),IF(LEFT($A17,2)=\"D*\",VLOOKUP($E17,'1. Checklist & Certification'!$H$26:$I$32,2),IF(LEFT($A17,2)=\"E*\",VLOOKUP($E17,'1. Checklist & Certification'!$J$26:$K$32,2),VLOOKUP($E17,'1. Checklist & Certification'!$A$26:$B$32,2)))))))","v":0},0,0,null,null,null,null,"","",0,0,0,null,{"$f":"IF(A17=\"\",\"\",'1. Checklist & Certification'!$K$1)","v":""},{"$f":"IF(A17=\"\",\"\",'1. Checklist & Certification'!$C$62)","v":""},{"$f":"IF(A17=\"\",\"\",'1. Checklist & Certification'!$C$6)","v":""},{"$f":"IF(A17=\"\",\"\",'1. Checklist & Certification'!$G$5)","v":""},{"$f":"IFERROR(IF(A17=\"\",\"\",\n_xlfn.LET(_xlpm.Contract,'1. Checklist & Certification'!$C$7,\n_xlpm.Yr,TEXT(MOD(_xlfn.TEXTBEFORE(_xlpm.Contract,\"-\"),100),\"00\"),\n_xlpm.Program,_xlfn.TEXTAFTER(_xlfn.TEXTBEFORE(_xlpm.Contract,\"-\",2),\"-\"),\n_xlpm.CleanProgram,_xlfn.XLOOKUP(_xlpm.Program,SpellCheck[Input],SpellCheck[Correction],_xlpm.Program),\n_xlpm.Number,TEXT(_xlfn.TEXTAFTER(_xlpm.Contract,\"-\",2),\"0000\"),\n_xlfn.CONCAT(_xlpm.Yr,\"-\",_xlpm.CleanProgram,\"-\",_xlpm.Number))\n),\"\")","v":""},{"$f":"IFERROR(IF(A17=\"\",\"\",\n_xlfn.LET(_xlpm.Contract,'1. Checklist & Certification'!$C$8,\n_xlpm.Yr,TEXT(MOD(_xlfn.TEXTBEFORE(_xlpm.Contract,\"-\"),100),\"00\"),\n_xlpm.Program,_xlfn.TEXTAFTER(_xlfn.TEXTBEFORE(_xlpm.Contract,\"-\",2),\"-\"),\n_xlpm.CleanProgram,_xlfn.XLOOKUP(_xlpm.Program,SpellCheck[Input],SpellCheck[Correction],_xlpm.Program),\n_xlpm.Number,TEXT(_xlfn.TEXTAFTER(_xlpm.Contract,\"-\",2),\"0000\"),\n_xlfn.CONCAT(_xlpm.Yr,\"-\",_xlpm.CleanProgram,\"-\",_xlpm.Number))\n),\"\")","v":""},{"$f":"IFERROR(IF(A17=\"\",\"\",\n_xlfn.LET(_xlpm.Contract,'1. Checklist & Certification'!$F$7,\n_xlpm.Yr,TEXT(MOD(_xlfn.TEXTBEFORE(_xlpm.Contract,\"-\"),100),\"00\"),\n_xlpm.Program,_xlfn.TEXTAFTER(_xlfn.TEXTBEFORE(_xlpm.Contract,\"-\",2),\"-\"),\n_xlpm.CleanProgram,_xlfn.XLOOKUP(_xlpm.Program,SpellCheck[Input],SpellCheck[Correction],_xlpm.Program),\n_xlpm.Number,TEXT(_xlfn.TEXTAFTER(_xlpm.Contract,\"-\",2),\"0000\"),\n_xlfn.CONCAT(_xlpm.Yr,\"-\",_xlpm.CleanProgram,\"-\",_xlpm.Number))\n),\"\")","v":""},{"$f":"IFERROR(IF(A17=\"\",\"\",\n_xlfn.LET(_xlpm.Contract,'1. Checklist & Certification'!$F$8,\n_xlpm.Yr,TEXT(MOD(_xlfn.TEXTBEFORE(_xlpm.Contract,\"-\"),100),\"00\"),\n_xlpm.Program,_xlfn.TEXTAFTER(_xlfn.TEXTBEFORE(_xlpm.Contract,\"-\",2),\"-\"),\n_xlpm.CleanProgram,_xlfn.XLOOKUP(_xlpm.Program,SpellCheck[Input],SpellCheck[Correction],_xlpm.Program),\n_xlpm.Number,TEXT(_xlfn.TEXTAFTER(_xlpm.Contract,\"-\",2),\"0000\"),\n_xlfn.CONCAT(_xlpm.Yr,\"-\",_xlpm.CleanProgram,\"-\",_xlpm.Number))\n),\"\")","v":""},{"$f":"IF(A17=\"\",\"\",'1. Checklist & Certification'!$B$9)","v":""},{"$f":"IF(A17=\"\",\"\",'1. Checklist & Certification'!$F$9)","v":""},{"$f":"IF(A17=\"\",\"\",'1. Checklist & Certification'!$C$10)","v":""},{"$f":"IF(A17=\"\",\"\",'1. Checklist & Certification'!$C$11)","v":""},{"$f":"IF(A17=\"\",\"\",'1. Checklist & Certification'!$C$12)","v":""},{"$f":"IF(A17=\"\",\"\",'1. Checklist & Certification'!$B$14)","v":""},{"$f":"IF(A17=\"\",\"\",'1. Checklist & Certification'!$E$14)","v":""},{"$f":"IF(B17=\"\",\"\",'1. Checklist & Certification'!$G$14)","v":""},{"$f":"IF(A17=\"\",\"\",'MHP Family Income & Rent Limits'!$B$3)","v":""},{"$f":"IF(A17=\"\",\"\",'MHP Family Income & Rent Limits'!$J$3)","v":""},{"$f":"IF(A17=\"\",\"\",'MHP Family Income & Rent Limits'!$E$4)","v":""},{"$f":"IF(A17=\"\",\"\",'MHP Family Income & Rent Limits'!$C$7)","v":""},{"$f":"IF(A17=\"\",\"\",'MHP Family Income & Rent Limits'!$F$8)","v":""},{"$f":"IF(A17=\"\",\"\",'1. Checklist & Certification'!$G$4)","v":""},{"$f":"IF(A17=\"\",\"\",'1. Checklist & Certification'!$K$39)","v":""},{"$f":"IF(A17=\"\",\"\",'1. Checklist & Certification'!$K$43)","v":""},{"$f":"IF(A17=\"\",\"\",'1. Checklist & Certification'!$K$45)","v":""},{"$f":"IF(A17=\"\",\"\",'1. Checklist & Certification'!$K$49)","v":""},{"$f":"IF(A17=\"\",\"\",'1. Checklist & Certification'!$K$62)","v":""},{"$f":"IF(A17=\"\",\"\",'1. Checklist & Certification'!$E$66)","v":""},{"$f":"IF(A17=\"\",\"\",'1. Checklist & Certification'!$E$67)","v":""},{"$f":"IF(A17=\"\",\"\",'1. Checklist & Certification'!$E$68)","v":""},{"$f":"IF(A17=\"\",\"\",'1. Checklist & Certification'!$G$66)","v":""},{"$f":"IF(A17=\"\",\"\",'1. Checklist & Certification'!$H$66)","v":""},{"$f":"IF(A17=\"\",\"\",'1. Checklist & Certification'!$I$66)","v":""},{"$f":"IF(A17=\"\",\"\",'1. Checklist & Certification'!$I$67)","v":""},{"$f":"IF(A17=\"\",\"\",'1. Checklist & Certification'!$I$68)","v":""},{"$f":"IF(A17=\"\",\"\",'1. Checklist & Certification'!$B$69)","v":""},{"$f":"IF(A17=\"\",\"\",'1. Checklist & Certification'!$C$69)","v":""},{"$f":"IF(A17=\"\",\"\",'1. Checklist & Certification'!$F$69)","v":""},{"$f":"IF(A17=\"\",\"\",'1. Checklist & Certification'!$G$69)","v":""},{"$f":"IF(A17=\"\",\"\",'1. Checklist & Certification'!$J$69)","v":""},{"$f":"IF(A17=\"\",\"\",'1. Checklist & Certification'!$K$69)","v":""},null,null,{"$f":"IF(AND(OR('1. Checklist & Certification'!$M$16=1,'1. Checklist & Certification'!$M$19=2),AO17>0,B17=\"\",I17>0,AQ17<I17,AV17<>\"Sec 8-Project\"),\"X\",IF(AND(OR('1. Checklist & Certification'!$M$20=4,'1. Checklist & Certification'!$M$21=5,'1. Checklist & Certification'!$M$22=7),AO17>0,B17=\"\",I17>0,K17<I17),\"X\",\"\"))","v":""},{"$f":"IF(A17=\"\",\"\",IF(SUMPRODUCT(-- (ISNUMBER(SEARCH({\"*AHSC*\",\"*FMTW*\",\"*FWHG*\",\"*GHI*\",\"*HHC*\",\"*HLCP*\",\"*HOME*\",\"*LPR*\",\"*MHP*\",\"*NHTF*\",\"*NSP*\",\"*PRP*\",\"*TOD*\",\"*VHHP*\"},'1. Checklist & Certification'!$L$7)))),\"MHP\",\"Legacy\"))","v":""},",,",null,null,null,{"$f":"IF('1. Checklist & Certification'!$M$20=4,\"Both\",IF(OR('1. Checklist & Certification'!$M$15>0,S17=\"CHRP-R\",U17=\"CHRP-R\",W17=\"CHRP-R\",Y17=\"CHRP-R\"),\"Under\",\"No\"))","v":"No"},"No","No",{"$f":"_xlfn.IFS(D17=\"\",\"\",D17=1,'MHP Family Income & Rent Limits'!$E$17,D17=2,'MHP Family Income & Rent Limits'!$F$17,D17=3,'MHP Family Income & Rent Limits'!$G$17,D17=4,'MHP Family Income & Rent Limits'!$H$17,D17=5,'MHP Family Income & Rent Limits'!$I$17,D17=6,'MHP Family Income & Rent Limits'!$J$17,D17=7,'MHP Family Income & Rent Limits'!$K$17,D17=8,'MHP Family Income & Rent Limits'!$L$17)","v":""},"",{"$f":"IF(OR(A17=0,B17=\"X\"),0,MIN(IF(AA17:AD17<>0,AA17:AD17)))","v":0},{"$f":"IF(OR(H17=\"\",I17=\"\"),0,IF(H17*0.3/12>I17,MIN(H17*0.3/12,I17*1.1)+AP17,I17*(1+(VLOOKUP('1. Checklist & Certification'!$F$9,'HLCP-E Rent Change'!$A$1:$D$59,4,FALSE)))+AP17))","v":0}]
[null,null,null,null,null,null,null,null,null,null,null,null,null,null,null,null,null,null,null,null,null,null,null,null,null,null,0,0,0,0,0,0,0,0,{"$f":"IF(OR(A18=0,B18=\"X\"),0,IF(OR(S18=\"FHDP\",S18=\"RHCP-B\",U18=\"FHDP\",U18=\"RHCP-B\",W18=\"FHDP\",W18=\"RHCP-B\",Y18=\"FHDP\",Y18=\"RHCP-B\"),TRUNC((MIN(I18,K18)*(1+'1. Checklist & Certification'!$K$43)+AP18)),0))","v":0},{"$f":"IF(OR(A18=0,B18=\"X\"),0,IF(OR(S18=\"CHRP-R\",S18=\"SERA\",S18=\"SUHRP\",U18=\"CHRP-R\",U18=\"SERA\",U18=\"SUHRP\",W18=\"CHRP-R\",W18=\"SERA\",W18=\"SUHRP\",Y18=\"CHRP-R\",Y18=\"SERA\",Y18=\"SUHRP\"),TRUNC((MIN(I18,K18)*(1+'1. Checklist & Certification'!$K$49))),0))","v":0},{"$f":"IF(OR(A18=0,B18=\"X\"),0,IF(OR(S18=\"CALDAP\",S18=\"DPRLP\",U18=\"CALDAP\",U18=\"DPRLP\",W18=\"CALDAP\",W18=\"DPRLP\",Y18=\"CALDAP\",Y18=\"DPRLP\"),TRUNC(((MIN(I18,K18))*(1+'1. Checklist & Certification'!$G$4))),0))","v":0},0,0,0,{"$f":"IF(OR(A18=0,B18=\"X\"),0,IF(OR(S18=\"PRP\",S18=\"LPR\",U18=\"PRP\",U18=\"LPR\",W18=\"PRP\",W18=\"LPR\",Y18=\"PRP\",Y18=\"LPR\"),MAX(I18+AP18,MIN(IF(AE18:AN18<>0,AE18:AN18))),MIN(IF(AE18:AN18<>0,AE18:AN18))))","v":0},{"$f":"IF(A18=0,0,IF(AND(OR(S18=\"Mgr\",S18=0),OR(U18=\"Mgr\",U18=0),OR(W18=\"Mgr\",W18=0)),0,IF(LEFT($A18,2)=\"B*\",VLOOKUP($E18,'1. Checklist & Certification'!$D$26:$E$32,2),IF(LEFT($A18,2)=\"C*\",VLOOKUP($E18,'1. Checklist & Certification'!$F$26:$G$32,2),IF(LEFT($A18,2)=\"D*\",VLOOKUP($E18,'1. Checklist & Certification'!$H$26:$I$32,2),IF(LEFT($A18,2)=\"E*\",VLOOKUP($E18,'1. Checklist & Certification'!$J$26:$K$32,2),VLOOKUP($E18,'1. Checklist & Certification'!$A$26:$B$32,2)))))))","v":0},0,0,null,null,null,null,"","",0,0,0,null,{"$f":"IF(A18=\"\",\"\",'1. Checklist & Certification'!$K$1)","v":""},{"$f":"IF(A18=\"\",\"\",'1. Checklist & Certification'!$C$62)","v":""},{"$f":"IF(A18=\"\",\"\",'1. Checklist & Certification'!$C$6)","v":""},{"$f":"IF(A18=\"\",\"\",'1. Checklist & Certification'!$G$5)","v":""},{"$f":"IFERROR(IF(A18=\"\",\"\",\n_xlfn.LET(_xlpm.Contract,'1. Checklist & Certification'!$C$7,\n_xlpm.Yr,TEXT(MOD(_xlfn.TEXTBEFORE(_xlpm.Contract,\"-\"),100),\"00\"),\n_xlpm.Program,_xlfn.TEXTAFTER(_xlfn.TEXTBEFORE(_xlpm.Contract,\"-\",2),\"-\"),\n_xlpm.CleanProgram,_xlfn.XLOOKUP(_xlpm.Program,SpellCheck[Input],SpellCheck[Correction],_xlpm.Program),\n_xlpm.Number,TEXT(_xlfn.TEXTAFTER(_xlpm.Contract,\"-\",2),\"0000\"),\n_xlfn.CONCAT(_xlpm.Yr,\"-\",_xlpm.CleanProgram,\"-\",_xlpm.Number))\n),\"\")","v":""},{"$f":"IFERROR(IF(A18=\"\",\"\",\n_xlfn.LET(_xlpm.Contract,'1. Checklist & Certification'!$C$8,\n_xlpm.Yr,TEXT(MOD(_xlfn.TEXTBEFORE(_xlpm.Contract,\"-\"),100),\"00\"),\n_xlpm.Program,_xlfn.TEXTAFTER(_xlfn.TEXTBEFORE(_xlpm.Contract,\"-\",2),\"-\"),\n_xlpm.CleanProgram,_xlfn.XLOOKUP(_xlpm.Program,SpellCheck[Input],SpellCheck[Correction],_xlpm.Program),\n_xlpm.Number,TEXT(_xlfn.TEXTAFTER(_xlpm.Contract,\"-\",2),\"0000\"),\n_xlfn.CONCAT(_xlpm.Yr,\"-\",_xlpm.CleanProgram,\"-\",_xlpm.Number))\n),\"\")","v":""},{"$f":"IFERROR(IF(A18=\"\",\"\",\n_xlfn.LET(_xlpm.Contract,'1. Checklist & Certification'!$F$7,\n_xlpm.Yr,TEXT(MOD(_xlfn.TEXTBEFORE(_xlpm.Contract,\"-\"),100),\"00\"),\n_xlpm.Program,_xlfn.TEXTAFTER(_xlfn.TEXTBEFORE(_xlpm.Contract,\"-\",2),\"-\"),\n_xlpm.CleanProgram,_xlfn.XLOOKUP(_xlpm.Program,SpellCheck[Input],SpellCheck[Correction],_xlpm.Program),\n_xlpm.Number,TEXT(_xlfn.TEXTAFTER(_xlpm.Contract,\"-\",2),\"0000\"),\n_xlfn.CONCAT(_xlpm.Yr,\"-\",_xlpm.CleanProgram,\"-\",_xlpm.Number))\n),\"\")","v":""},{"$f":"IFERROR(IF(A18=\"\",\"\",\n_xlfn.LET(_xlpm.Contract,'1. Checklist & Certification'!$F$8,\n_xlpm.Yr,TEXT(MOD(_xlfn.TEXTBEFORE(_xlpm.Contract,\"-\"),100),\"00\"),\n_xlpm.Program,_xlfn.TEXTAFTER(_xlfn.TEXTBEFORE(_xlpm.Contract,\"-\",2),\"-\"),\n_xlpm.CleanProgram,_xlfn.XLOOKUP(_xlpm.Program,SpellCheck[Input],SpellCheck[Correction],_xlpm.Program),\n_xlpm.Number,TEXT(_xlfn.TEXTAFTER(_xlpm.Contract,\"-\",2),\"0000\"),\n_xlfn.CONCAT(_xlpm.Yr,\"-\",_xlpm.CleanProgram,\"-\",_xlpm.Number))\n),\"\")","v":""},{"$f":"IF(A18=\"\",\"\",'1. Checklist & Certification'!$B$9)","v":""},{"$f":"IF(A18=\"\",\"\",'1. Checklist & Certification'!$F$9)","v":""},{"$f":"IF(A18=\"\",\"\",'1. Checklist & Certification'!$C$10)","v":""},{"$f":"IF(A18=\"\",\"\",'1. Checklist & Certification'!$C$11)","v":""},{"$f":"IF(A18=\"\",\"\",'1. Checklist & Certification'!$C$12)","v":""},{"$f":"IF(A18=\"\",\"\",'1. Checklist & Certification'!$B$14)","v":""},{"$f":"IF(A18=\"\",\"\",'1. Checklist & Certification'!$E$14)","v":""},{"$f":"IF(B18=\"\",\"\",'1. Checklist & Certification'!$G$14)","v":""},{"$f":"IF(A18=\"\",\"\",'MHP Family Income & Rent Limits'!$B$3)","v":""},{"$f":"IF(A18=\"\",\"\",'MHP Family Income & Rent Limits'!$J$3)","v":""},{"$f":"IF(A18=\"\",\"\",'MHP Family Income & Rent Limits'!$E$4)","v":""},{"$f":"IF(A18=\"\",\"\",'MHP Family Income & Rent Limits'!$C$7)","v":""},{"$f":"IF(A18=\"\",\"\",'MHP Family Income & Rent Limits'!$F$8)","v":""},{"$f":"IF(A18=\"\",\"\",'1. Checklist & Certification'!$G$4)","v":""},{"$f":"IF(A18=\"\",\"\",'1. Checklist & Certification'!$K$39)","v":""},{"$f":"IF(A18=\"\",\"\",'1. Checklist & Certification'!$K$43)","v":""},{"$f":"IF(A18=\"\",\"\",'1. Checklist & Certification'!$K$45)","v":""},{"$f":"IF(A18=\"\",\"\",'1. Checklist & Certification'!$K$49)","v":""},{"$f":"IF(A18=\"\",\"\",'1. Checklist & Certification'!$K$62)","v":""},{"$f":"IF(A18=\"\",\"\",'1. Checklist & Certification'!$E$66)","v":""},{"$f":"IF(A18=\"\",\"\",'1. Checklist & Certification'!$E$67)","v":""},{"$f":"IF(A18=\"\",\"\",'1. Checklist & Certification'!$E$68)","v":""},{"$f":"IF(A18=\"\",\"\",'1. Checklist & Certification'!$G$66)","v":""},{"$f":"IF(A18=\"\",\"\",'1. Checklist & Certification'!$H$66)","v":""},{"$f":"IF(A18=\"\",\"\",'1. Checklist & Certification'!$I$66)","v":""},{"$f":"IF(A18=\"\",\"\",'1. Checklist & Certification'!$I$67)","v":""},{"$f":"IF(A18=\"\",\"\",'1. Checklist & Certification'!$I$68)","v":""},{"$f":"IF(A18=\"\",\"\",'1. Checklist & Certification'!$B$69)","v":""},{"$f":"IF(A18=\"\",\"\",'1. Checklist & Certification'!$C$69)","v":""},{"$f":"IF(A18=\"\",\"\",'1. Checklist & Certification'!$F$69)","v":""},{"$f":"IF(A18=\"\",\"\",'1. Checklist & Certification'!$G$69)","v":""},{"$f":"IF(A18=\"\",\"\",'1. Checklist & Certification'!$J$69)","v":""},{"$f":"IF(A18=\"\",\"\",'1. Checklist & Certification'!$K$69)","v":""},null,null,{"$f":"IF(AND(OR('1. Checklist & Certification'!$M$16=1,'1. Checklist & Certification'!$M$19=2),AO18>0,B18=\"\",I18>0,AQ18<I18,AV18<>\"Sec 8-Project\"),\"X\",IF(AND(OR('1. Checklist & Certification'!$M$20=4,'1. Checklist & Certification'!$M$21=5,'1. Checklist & Certification'!$M$22=7),AO18>0,B18=\"\",I18>0,K18<I18),\"X\",\"\"))","v":""},{"$f":"IF(A18=\"\",\"\",IF(SUMPRODUCT(-- (ISNUMBER(SEARCH({\"*AHSC*\",\"*FMTW*\",\"*FWHG*\",\"*GHI*\",\"*HHC*\",\"*HLCP*\",\"*HOME*\",\"*LPR*\",\"*MHP*\",\"*NHTF*\",\"*NSP*\",\"*PRP*\",\"*TOD*\",\"*VHHP*\"},'1. Checklist & Certification'!$L$7)))),\"MHP\",\"Legacy\"))","v":""},",,",null,null,null,{"$f":"IF('1. Checklist & Certification'!$M$20=4,\"Both\",IF(OR('1. Checklist & Certification'!$M$15>0,S18=\"CHRP-R\",U18=\"CHRP-R\",W18=\"CHRP-R\",Y18=\"CHRP-R\"),\"Under\",\"No\"))","v":"No"},"No","No",{"$f":"_xlfn.IFS(D18=\"\",\"\",D18=1,'MHP Family Income & Rent Limits'!$E$17,D18=2,'MHP Family Income & Rent Limits'!$F$17,D18=3,'MHP Family Income & Rent Limits'!$G$17,D18=4,'MHP Family Income & Rent Limits'!$H$17,D18=5,'MHP Family Income & Rent Limits'!$I$17,D18=6,'MHP Family Income & Rent Limits'!$J$17,D18=7,'MHP Family Income & Rent Limits'!$K$17,D18=8,'MHP Family Income & Rent Limits'!$L$17)","v":""},"",{"$f":"IF(OR(A18=0,B18=\"X\"),0,MIN(IF(AA18:AD18<>0,AA18:AD18)))","v":0},{"$f":"IF(OR(H18=\"\",I18=\"\"),0,IF(H18*0.3/12>I18,MIN(H18*0.3/12,I18*1.1)+AP18,I18*(1+(VLOOKUP('1. Checklist & Certification'!$F$9,'HLCP-E Rent Change'!$A$1:$D$59,4,FALSE)))+AP18))","v":0}]
[null,null,null,null,null,null,null,null,null,null,null,null,null,null,null,null,null,null,null,null,null,null,null,null,null,null,0,0,0,0,0,0,0,0,{"$f":"IF(OR(A19=0,B19=\"X\"),0,IF(OR(S19=\"FHDP\",S19=\"RHCP-B\",U19=\"FHDP\",U19=\"RHCP-B\",W19=\"FHDP\",W19=\"RHCP-B\",Y19=\"FHDP\",Y19=\"RHCP-B\"),TRUNC((MIN(I19,K19)*(1+'1. Checklist & Certification'!$K$43)+AP19)),0))","v":0},{"$f":"IF(OR(A19=0,B19=\"X\"),0,IF(OR(S19=\"CHRP-R\",S19=\"SERA\",S19=\"SUHRP\",U19=\"CHRP-R\",U19=\"SERA\",U19=\"SUHRP\",W19=\"CHRP-R\",W19=\"SERA\",W19=\"SUHRP\",Y19=\"CHRP-R\",Y19=\"SERA\",Y19=\"SUHRP\"),TRUNC((MIN(I19,K19)*(1+'1. Checklist & Certification'!$K$49))),0))","v":0},{"$f":"IF(OR(A19=0,B19=\"X\"),0,IF(OR(S19=\"CALDAP\",S19=\"DPRLP\",U19=\"CALDAP\",U19=\"DPRLP\",W19=\"CALDAP\",W19=\"DPRLP\",Y19=\"CALDAP\",Y19=\"DPRLP\"),TRUNC(((MIN(I19,K19))*(1+'1. Checklist & Certification'!$G$4))),0))","v":0},0,0,0,{"$f":"IF(OR(A19=0,B19=\"X\"),0,IF(OR(S19=\"PRP\",S19=\"LPR\",U19=\"PRP\",U19=\"LPR\",W19=\"PRP\",W19=\"LPR\",Y19=\"PRP\",Y19=\"LPR\"),MAX(I19+AP19,MIN(IF(AE19:AN19<>0,AE19:AN19))),MIN(IF(AE19:AN19<>0,AE19:AN19))))","v":0},{"$f":"IF(A19=0,0,IF(AND(OR(S19=\"Mgr\",S19=0),OR(U19=\"Mgr\",U19=0),OR(W19=\"Mgr\",W19=0)),0,IF(LEFT($A19,2)=\"B*\",VLOOKUP($E19,'1. Checklist & Certification'!$D$26:$E$32,2),IF(LEFT($A19,2)=\"C*\",VLOOKUP($E19,'1. Checklist & Certification'!$F$26:$G$32,2),IF(LEFT($A19,2)=\"D*\",VLOOKUP($E19,'1. Checklist & Certification'!$H$26:$I$32,2),IF(LEFT($A19,2)=\"E*\",VLOOKUP($E19,'1. Checklist & Certification'!$J$26:$K$32,2),VLOOKUP($E19,'1. Checklist & Certification'!$A$26:$B$32,2)))))))","v":0},0,0,null,null,null,null,"","",0,0,0,null,{"$f":"IF(A19=\"\",\"\",'1. Checklist & Certification'!$K$1)","v":""},{"$f":"IF(A19=\"\",\"\",'1. Checklist & Certification'!$C$62)","v":""},{"$f":"IF(A19=\"\",\"\",'1. Checklist & Certification'!$C$6)","v":""},{"$f":"IF(A19=\"\",\"\",'1. Checklist & Certification'!$G$5)","v":""},{"$f":"IFERROR(IF(A19=\"\",\"\",\n_xlfn.LET(_xlpm.Contract,'1. Checklist & Certification'!$C$7,\n_xlpm.Yr,TEXT(MOD(_xlfn.TEXTBEFORE(_xlpm.Contract,\"-\"),100),\"00\"),\n_xlpm.Program,_xlfn.TEXTAFTER(_xlfn.TEXTBEFORE(_xlpm.Contract,\"-\",2),\"-\"),\n_xlpm.CleanProgram,_xlfn.XLOOKUP(_xlpm.Program,SpellCheck[Input],SpellCheck[Correction],_xlpm.Program),\n_xlpm.Number,TEXT(_xlfn.TEXTAFTER(_xlpm.Contract,\"-\",2),\"0000\"),\n_xlfn.CONCAT(_xlpm.Yr,\"-\",_xlpm.CleanProgram,\"-\",_xlpm.Number))\n),\"\")","v":""},{"$f":"IFERROR(IF(A19=\"\",\"\",\n_xlfn.LET(_xlpm.Contract,'1. Checklist & Certification'!$C$8,\n_xlpm.Yr,TEXT(MOD(_xlfn.TEXTBEFORE(_xlpm.Contract,\"-\"),100),\"00\"),\n_xlpm.Program,_xlfn.TEXTAFTER(_xlfn.TEXTBEFORE(_xlpm.Contract,\"-\",2),\"-\"),\n_xlpm.CleanProgram,_xlfn.XLOOKUP(_xlpm.Program,SpellCheck[Input],SpellCheck[Correction],_xlpm.Program),\n_xlpm.Number,TEXT(_xlfn.TEXTAFTER(_xlpm.Contract,\"-\",2),\"0000\"),\n_xlfn.CONCAT(_xlpm.Yr,\"-\",_xlpm.CleanProgram,\"-\",_xlpm.Number))\n),\"\")","v":""},{"$f":"IFERROR(IF(A19=\"\",\"\",\n_xlfn.LET(_xlpm.Contract,'1. Checklist & Certification'!$F$7,\n_xlpm.Yr,TEXT(MOD(_xlfn.TEXTBEFORE(_xlpm.Contract,\"-\"),100),\"00\"),\n_xlpm.Program,_xlfn.TEXTAFTER(_xlfn.TEXTBEFORE(_xlpm.Contract,\"-\",2),\"-\"),\n_xlpm.CleanProgram,_xlfn.XLOOKUP(_xlpm.Program,SpellCheck[Input],SpellCheck[Correction],_xlpm.Program),\n_xlpm.Number,TEXT(_xlfn.TEXTAFTER(_xlpm.Contract,\"-\",2),\"0000\"),\n_xlfn.CONCAT(_xlpm.Yr,\"-\",_xlpm.CleanProgram,\"-\",_xlpm.Number))\n),\"\")","v":""},{"$f":"IFERROR(IF(A19=\"\",\"\",\n_xlfn.LET(_xlpm.Contract,'1. Checklist & Certification'!$F$8,\n_xlpm.Yr,TEXT(MOD(_xlfn.TEXTBEFORE(_xlpm.Contract,\"-\"),100),\"00\"),\n_xlpm.Program,_xlfn.TEXTAFTER(_xlfn.TEXTBEFORE(_xlpm.Contract,\"-\",2),\"-\"),\n_xlpm.CleanProgram,_xlfn.XLOOKUP(_xlpm.Program,SpellCheck[Input],SpellCheck[Correction],_xlpm.Program),\n_xlpm.Number,TEXT(_xlfn.TEXTAFTER(_xlpm.Contract,\"-\",2),\"0000\"),\n_xlfn.CONCAT(_xlpm.Yr,\"-\",_xlpm.CleanProgram,\"-\",_xlpm.Number))\n),\"\")","v":""},{"$f":"IF(A19=\"\",\"\",'1. Checklist & Certification'!$B$9)","v":""},{"$f":"IF(A19=\"\",\"\",'1. Checklist & Certification'!$F$9)","v":""},{"$f":"IF(A19=\"\",\"\",'1. Checklist & Certification'!$C$10)","v":""},{"$f":"IF(A19=\"\",\"\",'1. Checklist & Certification'!$C$11)","v":""},{"$f":"IF(A19=\"\",\"\",'1. Checklist & Certification'!$C$12)","v":""},{"$f":"IF(A19=\"\",\"\",'1. Checklist & Certification'!$B$14)","v":""},{"$f":"IF(A19=\"\",\"\",'1. Checklist & Certification'!$E$14)","v":""},{"$f":"IF(B19=\"\",\"\",'1. Checklist & Certification'!$G$14)","v":""},{"$f":"IF(A19=\"\",\"\",'MHP Family Income & Rent Limits'!$B$3)","v":""},{"$f":"IF(A19=\"\",\"\",'MHP Family Income & Rent Limits'!$J$3)","v":""},{"$f":"IF(A19=\"\",\"\",'MHP Family Income & Rent Limits'!$E$4)","v":""},{"$f":"IF(A19=\"\",\"\",'MHP Family Income & Rent Limits'!$C$7)","v":""},{"$f":"IF(A19=\"\",\"\",'MHP Family Income & Rent Limits'!$F$8)","v":""},{"$f":"IF(A19=\"\",\"\",'1. Checklist & Certification'!$G$4)","v":""},{"$f":"IF(A19=\"\",\"\",'1. Checklist & Certification'!$K$39)","v":""},{"$f":"IF(A19=\"\",\"\",'1. Checklist & Certification'!$K$43)","v":""},{"$f":"IF(A19=\"\",\"\",'1. Checklist & Certification'!$K$45)","v":""},{"$f":"IF(A19=\"\",\"\",'1. Checklist & Certification'!$K$49)","v":""},{"$f":"IF(A19=\"\",\"\",'1. Checklist & Certification'!$K$62)","v":""},{"$f":"IF(A19=\"\",\"\",'1. Checklist & Certification'!$E$66)","v":""},{"$f":"IF(A19=\"\",\"\",'1. Checklist & Certification'!$E$67)","v":""},{"$f":"IF(A19=\"\",\"\",'1. Checklist & Certification'!$E$68)","v":""},{"$f":"IF(A19=\"\",\"\",'1. Checklist & Certification'!$G$66)","v":""},{"$f":"IF(A19=\"\",\"\",'1. Checklist & Certification'!$H$66)","v":""},{"$f":"IF(A19=\"\",\"\",'1. Checklist & Certification'!$I$66)","v":""},{"$f":"IF(A19=\"\",\"\",'1. Checklist & Certification'!$I$67)","v":""},{"$f":"IF(A19=\"\",\"\",'1. Checklist & Certification'!$I$68)","v":""},{"$f":"IF(A19=\"\",\"\",'1. Checklist & Certification'!$B$69)","v":""},{"$f":"IF(A19=\"\",\"\",'1. Checklist & Certification'!$C$69)","v":""},{"$f":"IF(A19=\"\",\"\",'1. Checklist & Certification'!$F$69)","v":""},{"$f":"IF(A19=\"\",\"\",'1. Checklist & Certification'!$G$69)","v":""},{"$f":"IF(A19=\"\",\"\",'1. Checklist & Certification'!$J$69)","v":""},{"$f":"IF(A19=\"\",\"\",'1. Checklist & Certification'!$K$69)","v":""},null,null,{"$f":"IF(AND(OR('1. Checklist & Certification'!$M$16=1,'1. Checklist & Certification'!$M$19=2),AO19>0,B19=\"\",I19>0,AQ19<I19,AV19<>\"Sec 8-Project\"),\"X\",IF(AND(OR('1. Checklist & Certification'!$M$20=4,'1. Checklist & Certification'!$M$21=5,'1. Checklist & Certification'!$M$22=7),AO19>0,B19=\"\",I19>0,K19<I19),\"X\",\"\"))","v":""},{"$f":"IF(A19=\"\",\"\",IF(SUMPRODUCT(-- (ISNUMBER(SEARCH({\"*AHSC*\",\"*FMTW*\",\"*FWHG*\",\"*GHI*\",\"*HHC*\",\"*HLCP*\",\"*HOME*\",\"*LPR*\",\"*MHP*\",\"*NHTF*\",\"*NSP*\",\"*PRP*\",\"*TOD*\",\"*VHHP*\"},'1. Checklist & Certification'!$L$7)))),\"MHP\",\"Legacy\"))","v":""},",,",null,null,null,{"$f":"IF('1. Checklist & Certification'!$M$20=4,\"Both\",IF(OR('1. Checklist & Certification'!$M$15>0,S19=\"CHRP-R\",U19=\"CHRP-R\",W19=\"CHRP-R\",Y19=\"CHRP-R\"),\"Under\",\"No\"))","v":"No"},"No","No",{"$f":"_xlfn.IFS(D19=\"\",\"\",D19=1,'MHP Family Income & Rent Limits'!$E$17,D19=2,'MHP Family Income & Rent Limits'!$F$17,D19=3,'MHP Family Income & Rent Limits'!$G$17,D19=4,'MHP Family Income & Rent Limits'!$H$17,D19=5,'MHP Family Income & Rent Limits'!$I$17,D19=6,'MHP Family Income & Rent Limits'!$J$17,D19=7,'MHP Family Income & Rent Limits'!$K$17,D19=8,'MHP Family Income & Rent Limits'!$L$17)","v":""},"",{"$f":"IF(OR(A19=0,B19=\"X\"),0,MIN(IF(AA19:AD19<>0,AA19:AD19)))","v":0},{"$f":"IF(OR(H19=\"\",I19=\"\"),0,IF(H19*0.3/12>I19,MIN(H19*0.3/12,I19*1.1)+AP19,I19*(1+(VLOOKUP('1. Checklist & Certification'!$F$9,'HLCP-E Rent Change'!$A$1:$D$59,4,FALSE)))+AP19))","v":0}]
[null,null,null,null,null,null,null,null,null,null,null,null,null,null,null,null,null,null,null,null,null,null,null,null,null,null,0,0,0,0,0,0,0,0,{"$f":"IF(OR(A20=0,B20=\"X\"),0,IF(OR(S20=\"FHDP\",S20=\"RHCP-B\",U20=\"FHDP\",U20=\"RHCP-B\",W20=\"FHDP\",W20=\"RHCP-B\",Y20=\"FHDP\",Y20=\"RHCP-B\"),TRUNC((MIN(I20,K20)*(1+'1. Checklist & Certification'!$K$43)+AP20)),0))","v":0},{"$f":"IF(OR(A20=0,B20=\"X\"),0,IF(OR(S20=\"CHRP-R\",S20=\"SERA\",S20=\"SUHRP\",U20=\"CHRP-R\",U20=\"SERA\",U20=\"SUHRP\",W20=\"CHRP-R\",W20=\"SERA\",W20=\"SUHRP\",Y20=\"CHRP-R\",Y20=\"SERA\",Y20=\"SUHRP\"),TRUNC((MIN(I20,K20)*(1+'1. Checklist & Certification'!$K$49))),0))","v":0},{"$f":"IF(OR(A20=0,B20=\"X\"),0,IF(OR(S20=\"CALDAP\",S20=\"DPRLP\",U20=\"CALDAP\",U20=\"DPRLP\",W20=\"CALDAP\",W20=\"DPRLP\",Y20=\"CALDAP\",Y20=\"DPRLP\"),TRUNC(((MIN(I20,K20))*(1+'1. Checklist & Certification'!$G$4))),0))","v":0},0,0,0,{"$f":"IF(OR(A20=0,B20=\"X\"),0,IF(OR(S20=\"PRP\",S20=\"LPR\",U20=\"PRP\",U20=\"LPR\",W20=\"PRP\",W20=\"LPR\",Y20=\"PRP\",Y20=\"LPR\"),MAX(I20+AP20,MIN(IF(AE20:AN20<>0,AE20:AN20))),MIN(IF(AE20:AN20<>0,AE20:AN20))))","v":0},{"$f":"IF(A20=0,0,IF(AND(OR(S20=\"Mgr\",S20=0),OR(U20=\"Mgr\",U20=0),OR(W20=\"Mgr\",W20=0)),0,IF(LEFT($A20,2)=\"B*\",VLOOKUP($E20,'1. Checklist & Certification'!$D$26:$E$32,2),IF(LEFT($A20,2)=\"C*\",VLOOKUP($E20,'1. Checklist & Certification'!$F$26:$G$32,2),IF(LEFT($A20,2)=\"D*\",VLOOKUP($E20,'1. Checklist & Certification'!$H$26:$I$32,2),IF(LEFT($A20,2)=\"E*\",VLOOKUP($E20,'1. Checklist & Certification'!$J$26:$K$32,2),VLOOKUP($E20,'1. Checklist & Certification'!$A$26:$B$32,2)))))))","v":0},0,0,null,null,null,null,"","",0,0,0,null,{"$f":"IF(A20=\"\",\"\",'1. Checklist & Certification'!$K$1)","v":""},{"$f":"IF(A20=\"\",\"\",'1. Checklist & Certification'!$C$62)","v":""},{"$f":"IF(A20=\"\",\"\",'1. Checklist & Certification'!$C$6)","v":""},{"$f":"IF(A20=\"\",\"\",'1. Checklist & Certification'!$G$5)","v":""},{"$f":"IFERROR(IF(A20=\"\",\"\",\n_xlfn.LET(_xlpm.Contract,'1. Checklist & Certification'!$C$7,\n_xlpm.Yr,TEXT(MOD(_xlfn.TEXTBEFORE(_xlpm.Contract,\"-\"),100),\"00\"),\n_xlpm.Program,_xlfn.TEXTAFTER(_xlfn.TEXTBEFORE(_xlpm.Contract,\"-\",2),\"-\"),\n_xlpm.CleanProgram,_xlfn.XLOOKUP(_xlpm.Program,SpellCheck[Input],SpellCheck[Correction],_xlpm.Program),\n_xlpm.Number,TEXT(_xlfn.TEXTAFTER(_xlpm.Contract,\"-\",2),\"0000\"),\n_xlfn.CONCAT(_xlpm.Yr,\"-\",_xlpm.CleanProgram,\"-\",_xlpm.Number))\n),\"\")","v":""},{"$f":"IFERROR(IF(A20=\"\",\"\",\n_xlfn.LET(_xlpm.Contract,'1. Checklist & Certification'!$C$8,\n_xlpm.Yr,TEXT(MOD(_xlfn.TEXTBEFORE(_xlpm.Contract,\"-\"),100),\"00\"),\n_xlpm.Program,_xlfn.TEXTAFTER(_xlfn.TEXTBEFORE(_xlpm.Contract,\"-\",2),\"-\"),\n_xlpm.CleanProgram,_xlfn.XLOOKUP(_xlpm.Program,SpellCheck[Input],SpellCheck[Correction],_xlpm.Program),\n_xlpm.Number,TEXT(_xlfn.TEXTAFTER(_xlpm.Contract,\"-\",2),\"0000\"),\n_xlfn.CONCAT(_xlpm.Yr,\"-\",_xlpm.CleanProgram,\"-\",_xlpm.Number))\n),\"\")","v":""},{"$f":"IFERROR(IF(A20=\"\",\"\",\n_xlfn.LET(_xlpm.Contract,'1. Checklist & Certification'!$F$7,\n_xlpm.Yr,TEXT(MOD(_xlfn.TEXTBEFORE(_xlpm.Contract,\"-\"),100),\"00\"),\n_xlpm.Program,_xlfn.TEXTAFTER(_xlfn.TEXTBEFORE(_xlpm.Contract,\"-\",2),\"-\"),\n_xlpm.CleanProgram,_xlfn.XLOOKUP(_xlpm.Program,SpellCheck[Input],SpellCheck[Correction],_xlpm.Program),\n_xlpm.Number,TEXT(_xlfn.TEXTAFTER(_xlpm.Contract,\"-\",2),\"0000\"),\n_xlfn.CONCAT(_xlpm.Yr,\"-\",_xlpm.CleanProgram,\"-\",_xlpm.Number))\n),\"\")","v":""},{"$f":"IFERROR(IF(A20=\"\",\"\",\n_xlfn.LET(_xlpm.Contract,'1. Checklist & Certification'!$F$8,\n_xlpm.Yr,TEXT(MOD(_xlfn.TEXTBEFORE(_xlpm.Contract,\"-\"),100),\"00\"),\n_xlpm.Program,_xlfn.TEXTAFTER(_xlfn.TEXTBEFORE(_xlpm.Contract,\"-\",2),\"-\"),\n_xlpm.CleanProgram,_xlfn.XLOOKUP(_xlpm.Program,SpellCheck[Input],SpellCheck[Correction],_xlpm.Program),\n_xlpm.Number,TEXT(_xlfn.TEXTAFTER(_xlpm.Contract,\"-\",2),\"0000\"),\n_xlfn.CONCAT(_xlpm.Yr,\"-\",_xlpm.CleanProgram,\"-\",_xlpm.Number))\n),\"\")","v":""},{"$f":"IF(A20=\"\",\"\",'1. Checklist & Certification'!$B$9)","v":""},{"$f":"IF(A20=\"\",\"\",'1. Checklist & Certification'!$F$9)","v":""},{"$f":"IF(A20=\"\",\"\",'1. Checklist & Certification'!$C$10)","v":""},{"$f":"IF(A20=\"\",\"\",'1. Checklist & Certification'!$C$11)","v":""},{"$f":"IF(A20=\"\",\"\",'1. Checklist & Certification'!$C$12)","v":""},{"$f":"IF(A20=\"\",\"\",'1. Checklist & Certification'!$B$14)","v":""},{"$f":"IF(A20=\"\",\"\",'1. Checklist & Certification'!$E$14)","v":""},{"$f":"IF(B20=\"\",\"\",'1. Checklist & Certification'!$G$14)","v":""},{"$f":"IF(A20=\"\",\"\",'MHP Family Income & Rent Limits'!$B$3)","v":""},{"$f":"IF(A20=\"\",\"\",'MHP Family Income & Rent Limits'!$J$3)","v":""},{"$f":"IF(A20=\"\",\"\",'MHP Family Income & Rent Limits'!$E$4)","v":""},{"$f":"IF(A20=\"\",\"\",'MHP Family Income & Rent Limits'!$C$7)","v":""},{"$f":"IF(A20=\"\",\"\",'MHP Family Income & Rent Limits'!$F$8)","v":""},{"$f":"IF(A20=\"\",\"\",'1. Checklist & Certification'!$G$4)","v":""},{"$f":"IF(A20=\"\",\"\",'1. Checklist & Certification'!$K$39)","v":""},{"$f":"IF(A20=\"\",\"\",'1. Checklist & Certification'!$K$43)","v":""},{"$f":"IF(A20=\"\",\"\",'1. Checklist & Certification'!$K$45)","v":""},{"$f":"IF(A20=\"\",\"\",'1. Checklist & Certification'!$K$49)","v":""},{"$f":"IF(A20=\"\",\"\",'1. Checklist & Certification'!$K$62)","v":""},{"$f":"IF(A20=\"\",\"\",'1. Checklist & Certification'!$E$66)","v":""},{"$f":"IF(A20=\"\",\"\",'1. Checklist & Certification'!$E$67)","v":""},{"$f":"IF(A20=\"\",\"\",'1. Checklist & Certification'!$E$68)","v":""},{"$f":"IF(A20=\"\",\"\",'1. Checklist & Certification'!$G$66)","v":""},{"$f":"IF(A20=\"\",\"\",'1. Checklist & Certification'!$H$66)","v":""},{"$f":"IF(A20=\"\",\"\",'1. Checklist & Certification'!$I$66)","v":""},{"$f":"IF(A20=\"\",\"\",'1. Checklist & Certification'!$I$67)","v":""},{"$f":"IF(A20=\"\",\"\",'1. Checklist & Certification'!$I$68)","v":""},{"$f":"IF(A20=\"\",\"\",'1. Checklist & Certification'!$B$69)","v":""},{"$f":"IF(A20=\"\",\"\",'1. Checklist & Certification'!$C$69)","v":""},{"$f":"IF(A20=\"\",\"\",'1. Checklist & Certification'!$F$69)","v":""},{"$f":"IF(A20=\"\",\"\",'1. Checklist & Certification'!$G$69)","v":""},{"$f":"IF(A20=\"\",\"\",'1. Checklist & Certification'!$J$69)","v":""},{"$f":"IF(A20=\"\",\"\",'1. Checklist & Certification'!$K$69)","v":""},null,null,{"$f":"IF(AND(OR('1. Checklist & Certification'!$M$16=1,'1. Checklist & Certification'!$M$19=2),AO20>0,B20=\"\",I20>0,AQ20<I20,AV20<>\"Sec 8-Project\"),\"X\",IF(AND(OR('1. Checklist & Certification'!$M$20=4,'1. Checklist & Certification'!$M$21=5,'1. Checklist & Certification'!$M$22=7),AO20>0,B20=\"\",I20>0,K20<I20),\"X\",\"\"))","v":""},{"$f":"IF(A20=\"\",\"\",IF(SUMPRODUCT(-- (ISNUMBER(SEARCH({\"*AHSC*\",\"*FMTW*\",\"*FWHG*\",\"*GHI*\",\"*HHC*\",\"*HLCP*\",\"*HOME*\",\"*LPR*\",\"*MHP*\",\"*NHTF*\",\"*NSP*\",\"*PRP*\",\"*TOD*\",\"*VHHP*\"},'1. Checklist & Certification'!$L$7)))),\"MHP\",\"Legacy\"))","v":""},",,",null,null,null,{"$f":"IF('1. Checklist & Certification'!$M$20=4,\"Both\",IF(OR('1. Checklist & Certification'!$M$15>0,S20=\"CHRP-R\",U20=\"CHRP-R\",W20=\"CHRP-R\",Y20=\"CHRP-R\"),\"Under\",\"No\"))","v":"No"},"No","No",{"$f":"_xlfn.IFS(D20=\"\",\"\",D20=1,'MHP Family Income & Rent Limits'!$E$17,D20=2,'MHP Family Income & Rent Limits'!$F$17,D20=3,'MHP Family Income & Rent Limits'!$G$17,D20=4,'MHP Family Income & Rent Limits'!$H$17,D20=5,'MHP Family Income & Rent Limits'!$I$17,D20=6,'MHP Family Income & Rent Limits'!$J$17,D20=7,'MHP Family Income & Rent Limits'!$K$17,D20=8,'MHP Family Income & Rent Limits'!$L$17)","v":""},"",{"$f":"IF(OR(A20=0,B20=\"X\"),0,MIN(IF(AA20:AD20<>0,AA20:AD20)))","v":0},{"$f":"IF(OR(H20=\"\",I20=\"\"),0,IF(H20*0.3/12>I20,MIN(H20*0.3/12,I20*1.1)+AP20,I20*(1+(VLOOKUP('1. Checklist & Certification'!$F$9,'HLCP-E Rent Change'!$A$1:$D$59,4,FALSE)))+AP20))","v":0}]
[null,null,null,null,null,null,null,null,null,null,null,null,null,null,null,null,null,null,null,null,null,null,null,null,null,null,0,0,0,0,0,0,0,0,{"$f":"IF(OR(A21=0,B21=\"X\"),0,IF(OR(S21=\"FHDP\",S21=\"RHCP-B\",U21=\"FHDP\",U21=\"RHCP-B\",W21=\"FHDP\",W21=\"RHCP-B\",Y21=\"FHDP\",Y21=\"RHCP-B\"),TRUNC((MIN(I21,K21)*(1+'1. Checklist & Certification'!$K$43)+AP21)),0))","v":0},{"$f":"IF(OR(A21=0,B21=\"X\"),0,IF(OR(S21=\"CHRP-R\",S21=\"SERA\",S21=\"SUHRP\",U21=\"CHRP-R\",U21=\"SERA\",U21=\"SUHRP\",W21=\"CHRP-R\",W21=\"SERA\",W21=\"SUHRP\",Y21=\"CHRP-R\",Y21=\"SERA\",Y21=\"SUHRP\"),TRUNC((MIN(I21,K21)*(1+'1. Checklist & Certification'!$K$49))),0))","v":0},{"$f":"IF(OR(A21=0,B21=\"X\"),0,IF(OR(S21=\"CALDAP\",S21=\"DPRLP\",U21=\"CALDAP\",U21=\"DPRLP\",W21=\"CALDAP\",W21=\"DPRLP\",Y21=\"CALDAP\",Y21=\"DPRLP\"),TRUNC(((MIN(I21,K21))*(1+'1. Checklist & Certification'!$G$4))),0))","v":0},0,0,0,{"$f":"IF(OR(A21=0,B21=\"X\"),0,IF(OR(S21=\"PRP\",S21=\"LPR\",U21=\"PRP\",U21=\"LPR\",W21=\"PRP\",W21=\"LPR\",Y21=\"PRP\",Y21=\"LPR\"),MAX(I21+AP21,MIN(IF(AE21:AN21<>0,AE21:AN21))),MIN(IF(AE21:AN21<>0,AE21:AN21))))","v":0},{"$f":"IF(A21=0,0,IF(AND(OR(S21=\"Mgr\",S21=0),OR(U21=\"Mgr\",U21=0),OR(W21=\"Mgr\",W21=0)),0,IF(LEFT($A21,2)=\"B*\",VLOOKUP($E21,'1. Checklist & Certification'!$D$26:$E$32,2),IF(LEFT($A21,2)=\"C*\",VLOOKUP($E21,'1. Checklist & Certification'!$F$26:$G$32,2),IF(LEFT($A21,2)=\"D*\",VLOOKUP($E21,'1. Checklist & Certification'!$H$26:$I$32,2),IF(LEFT($A21,2)=\"E*\",VLOOKUP($E21,'1. Checklist & Certification'!$J$26:$K$32,2),VLOOKUP($E21,'1. Checklist & Certification'!$A$26:$B$32,2)))))))","v":0},0,0,null,null,null,null,"","",0,0,0,null,{"$f":"IF(A21=\"\",\"\",'1. Checklist & Certification'!$K$1)","v":""},{"$f":"IF(A21=\"\",\"\",'1. Checklist & Certification'!$C$62)","v":""},{"$f":"IF(A21=\"\",\"\",'1. Checklist & Certification'!$C$6)","v":""},{"$f":"IF(A21=\"\",\"\",'1. Checklist & Certification'!$G$5)","v":""},{"$f":"IFERROR(IF(A21=\"\",\"\",\n_xlfn.LET(_xlpm.Contract,'1. Checklist & Certification'!$C$7,\n_xlpm.Yr,TEXT(MOD(_xlfn.TEXTBEFORE(_xlpm.Contract,\"-\"),100),\"00\"),\n_xlpm.Program,_xlfn.TEXTAFTER(_xlfn.TEXTBEFORE(_xlpm.Contract,\"-\",2),\"-\"),\n_xlpm.CleanProgram,_xlfn.XLOOKUP(_xlpm.Program,SpellCheck[Input],SpellCheck[Correction],_xlpm.Program),\n_xlpm.Number,TEXT(_xlfn.TEXTAFTER(_xlpm.Contract,\"-\",2),\"0000\"),\n_xlfn.CONCAT(_xlpm.Yr,\"-\",_xlpm.CleanProgram,\"-\",_xlpm.Number))\n),\"\")","v":""},{"$f":"IFERROR(IF(A21=\"\",\"\",\n_xlfn.LET(_xlpm.Contract,'1. Checklist & Certification'!$C$8,\n_xlpm.Yr,TEXT(MOD(_xlfn.TEXTBEFORE(_xlpm.Contract,\"-\"),100),\"00\"),\n_xlpm.Program,_xlfn.TEXTAFTER(_xlfn.TEXTBEFORE(_xlpm.Contract,\"-\",2),\"-\"),\n_xlpm.CleanProgram,_xlfn.XLOOKUP(_xlpm.Program,SpellCheck[Input],SpellCheck[Correction],_xlpm.Program),\n_xlpm.Number,TEXT(_xlfn.TEXTAFTER(_xlpm.Contract,\"-\",2),\"0000\"),\n_xlfn.CONCAT(_xlpm.Yr,\"-\",_xlpm.CleanProgram,\"-\",_xlpm.Number))\n),\"\")","v":""},{"$f":"IFERROR(IF(A21=\"\",\"\",\n_xlfn.LET(_xlpm.Contract,'1. Checklist & Certification'!$F$7,\n_xlpm.Yr,TEXT(MOD(_xlfn.TEXTBEFORE(_xlpm.Contract,\"-\"),100),\"00\"),\n_xlpm.Program,_xlfn.TEXTAFTER(_xlfn.TEXTBEFORE(_xlpm.Contract,\"-\",2),\"-\"),\n_xlpm.CleanProgram,_xlfn.XLOOKUP(_xlpm.Program,SpellCheck[Input],SpellCheck[Correction],_xlpm.Program),\n_xlpm.Number,TEXT(_xlfn.TEXTAFTER(_xlpm.Contract,\"-\",2),\"0000\"),\n_xlfn.CONCAT(_xlpm.Yr,\"-\",_xlpm.CleanProgram,\"-\",_xlpm.Number))\n),\"\")","v":""},{"$f":"IFERROR(IF(A21=\"\",\"\",\n_xlfn.LET(_xlpm.Contract,'1. Checklist & Certification'!$F$8,\n_xlpm.Yr,TEXT(MOD(_xlfn.TEXTBEFORE(_xlpm.Contract,\"-\"),100),\"00\"),\n_xlpm.Program,_xlfn.TEXTAFTER(_xlfn.TEXTBEFORE(_xlpm.Contract,\"-\",2),\"-\"),\n_xlpm.CleanProgram,_xlfn.XLOOKUP(_xlpm.Program,SpellCheck[Input],SpellCheck[Correction],_xlpm.Program),\n_xlpm.Number,TEXT(_xlfn.TEXTAFTER(_xlpm.Contract,\"-\",2),\"0000\"),\n_xlfn.CONCAT(_xlpm.Yr,\"-\",_xlpm.CleanProgram,\"-\",_xlpm.Number))\n),\"\")","v":""},{"$f":"IF(A21=\"\",\"\",'1. Checklist & Certification'!$B$9)","v":""},{"$f":"IF(A21=\"\",\"\",'1. Checklist & Certification'!$F$9)","v":""},{"$f":"IF(A21=\"\",\"\",'1. Checklist & Certification'!$C$10)","v":""},{"$f":"IF(A21=\"\",\"\",'1. Checklist & Certification'!$C$11)","v":""},{"$f":"IF(A21=\"\",\"\",'1. Checklist & Certification'!$C$12)","v":""},{"$f":"IF(A21=\"\",\"\",'1. Checklist & Certification'!$B$14)","v":""},{"$f":"IF(A21=\"\",\"\",'1. Checklist & Certification'!$E$14)","v":""},{"$f":"IF(B21=\"\",\"\",'1. Checklist & Certification'!$G$14)","v":""},{"$f":"IF(A21=\"\",\"\",'MHP Family Income & Rent Limits'!$B$3)","v":""},{"$f":"IF(A21=\"\",\"\",'MHP Family Income & Rent Limits'!$J$3)","v":""},{"$f":"IF(A21=\"\",\"\",'MHP Family Income & Rent Limits'!$E$4)","v":""},{"$f":"IF(A21=\"\",\"\",'MHP Family Income & Rent Limits'!$C$7)","v":""},{"$f":"IF(A21=\"\",\"\",'MHP Family Income & Rent Limits'!$F$8)","v":""},{"$f":"IF(A21=\"\",\"\",'1. Checklist & Certification'!$G$4)","v":""},{"$f":"IF(A21=\"\",\"\",'1. Checklist & Certification'!$K$39)","v":""},{"$f":"IF(A21=\"\",\"\",'1. Checklist & Certification'!$K$43)","v":""},{"$f":"IF(A21=\"\",\"\",'1. Checklist & Certification'!$K$45)","v":""},{"$f":"IF(A21=\"\",\"\",'1. Checklist & Certification'!$K$49)","v":""},{"$f":"IF(A21=\"\",\"\",'1. Checklist & Certification'!$K$62)","v":""},{"$f":"IF(A21=\"\",\"\",'1. Checklist & Certification'!$E$66)","v":""},{"$f":"IF(A21=\"\",\"\",'1. Checklist & Certification'!$E$67)","v":""},{"$f":"IF(A21=\"\",\"\",'1. Checklist & Certification'!$E$68)","v":""},{"$f":"IF(A21=\"\",\"\",'1. Checklist & Certification'!$G$66)","v":""},{"$f":"IF(A21=\"\",\"\",'1. Checklist & Certification'!$H$66)","v":""},{"$f":"IF(A21=\"\",\"\",'1. Checklist & Certification'!$I$66)","v":""},{"$f":"IF(A21=\"\",\"\",'1. Checklist & Certification'!$I$67)","v":""},{"$f":"IF(A21=\"\",\"\",'1. Checklist & Certification'!$I$68)","v":""},{"$f":"IF(A21=\"\",\"\",'1. Checklist & Certification'!$B$69)","v":""},{"$f":"IF(A21=\"\",\"\",'1. Checklist & Certification'!$C$69)","v":""},{"$f":"IF(A21=\"\",\"\",'1. Checklist & Certification'!$F$69)","v":""},{"$f":"IF(A21=\"\",\"\",'1. Checklist & Certification'!$G$69)","v":""},{"$f":"IF(A21=\"\",\"\",'1. Checklist & Certification'!$J$69)","v":""},{"$f":"IF(A21=\"\",\"\",'1. Checklist & Certification'!$K$69)","v":""},null,null,{"$f":"IF(AND(OR('1. Checklist & Certification'!$M$16=1,'1. Checklist & Certification'!$M$19=2),AO21>0,B21=\"\",I21>0,AQ21<I21,AV21<>\"Sec 8-Project\"),\"X\",IF(AND(OR('1. Checklist & Certification'!$M$20=4,'1. Checklist & Certification'!$M$21=5,'1. Checklist & Certification'!$M$22=7),AO21>0,B21=\"\",I21>0,K21<I21),\"X\",\"\"))","v":""},{"$f":"IF(A21=\"\",\"\",IF(SUMPRODUCT(-- (ISNUMBER(SEARCH({\"*AHSC*\",\"*FMTW*\",\"*FWHG*\",\"*GHI*\",\"*HHC*\",\"*HLCP*\",\"*HOME*\",\"*LPR*\",\"*MHP*\",\"*NHTF*\",\"*NSP*\",\"*PRP*\",\"*TOD*\",\"*VHHP*\"},'1. Checklist & Certification'!$L$7)))),\"MHP\",\"Legacy\"))","v":""},",,",null,null,null,{"$f":"IF('1. Checklist & Certification'!$M$20=4,\"Both\",IF(OR('1. Checklist & Certification'!$M$15>0,S21=\"CHRP-R\",U21=\"CHRP-R\",W21=\"CHRP-R\",Y21=\"CHRP-R\"),\"Under\",\"No\"))","v":"No"},"No","No",{"$f":"_xlfn.IFS(D21=\"\",\"\",D21=1,'MHP Family Income & Rent Limits'!$E$17,D21=2,'MHP Family Income & Rent Limits'!$F$17,D21=3,'MHP Family Income & Rent Limits'!$G$17,D21=4,'MHP Family Income & Rent Limits'!$H$17,D21=5,'MHP Family Income & Rent Limits'!$I$17,D21=6,'MHP Family Income & Rent Limits'!$J$17,D21=7,'MHP Family Income & Rent Limits'!$K$17,D21=8,'MHP Family Income & Rent Limits'!$L$17)","v":""},"",{"$f":"IF(OR(A21=0,B21=\"X\"),0,MIN(IF(AA21:AD21<>0,AA21:AD21)))","v":0},{"$f":"IF(OR(H21=\"\",I21=\"\"),0,IF(H21*0.3/12>I21,MIN(H21*0.3/12,I21*1.1)+AP21,I21*(1+(VLOOKUP('1. Checklist & Certification'!$F$9,'HLCP-E Rent Change'!$A$1:$D$59,4,FALSE)))+AP21))","v":0}]
[null,null,null,null,null,null,null,null,null,null,null,null,null,null,null,null,null,null,null,null,null,null,null,null,null,null,0,0,0,0,0,0,0,0,{"$f":"IF(OR(A22=0,B22=\"X\"),0,IF(OR(S22=\"FHDP\",S22=\"RHCP-B\",U22=\"FHDP\",U22=\"RHCP-B\",W22=\"FHDP\",W22=\"RHCP-B\",Y22=\"FHDP\",Y22=\"RHCP-B\"),TRUNC((MIN(I22,K22)*(1+'1. Checklist & Certification'!$K$43)+AP22)),0))","v":0},{"$f":"IF(OR(A22=0,B22=\"X\"),0,IF(OR(S22=\"CHRP-R\",S22=\"SERA\",S22=\"SUHRP\",U22=\"CHRP-R\",U22=\"SERA\",U22=\"SUHRP\",W22=\"CHRP-R\",W22=\"SERA\",W22=\"SUHRP\",Y22=\"CHRP-R\",Y22=\"SERA\",Y22=\"SUHRP\"),TRUNC((MIN(I22,K22)*(1+'1. Checklist & Certification'!$K$49))),0))","v":0},{"$f":"IF(OR(A22=0,B22=\"X\"),0,IF(OR(S22=\"CALDAP\",S22=\"DPRLP\",U22=\"CALDAP\",U22=\"DPRLP\",W22=\"CALDAP\",W22=\"DPRLP\",Y22=\"CALDAP\",Y22=\"DPRLP\"),TRUNC(((MIN(I22,K22))*(1+'1. Checklist & Certification'!$G$4))),0))","v":0},0,0,0,{"$f":"IF(OR(A22=0,B22=\"X\"),0,IF(OR(S22=\"PRP\",S22=\"LPR\",U22=\"PRP\",U22=\"LPR\",W22=\"PRP\",W22=\"LPR\",Y22=\"PRP\",Y22=\"LPR\"),MAX(I22+AP22,MIN(IF(AE22:AN22<>0,AE22:AN22))),MIN(IF(AE22:AN22<>0,AE22:AN22))))","v":0},{"$f":"IF(A22=0,0,IF(AND(OR(S22=\"Mgr\",S22=0),OR(U22=\"Mgr\",U22=0),OR(W22=\"Mgr\",W22=0)),0,IF(LEFT($A22,2)=\"B*\",VLOOKUP($E22,'1. Checklist & Certification'!$D$26:$E$32,2),IF(LEFT($A22,2)=\"C*\",VLOOKUP($E22,'1. Checklist & Certification'!$F$26:$G$32,2),IF(LEFT($A22,2)=\"D*\",VLOOKUP($E22,'1. Checklist & Certification'!$H$26:$I$32,2),IF(LEFT($A22,2)=\"E*\",VLOOKUP($E22,'1. Checklist & Certification'!$J$26:$K$32,2),VLOOKUP($E22,'1. Checklist & Certification'!$A$26:$B$32,2)))))))","v":0},0,0,null,null,null,null,"","",0,0,0,null,{"$f":"IF(A22=\"\",\"\",'1. Checklist & Certification'!$K$1)","v":""},{"$f":"IF(A22=\"\",\"\",'1. Checklist & Certification'!$C$62)","v":""},{"$f":"IF(A22=\"\",\"\",'1. Checklist & Certification'!$C$6)","v":""},{"$f":"IF(A22=\"\",\"\",'1. Checklist & Certification'!$G$5)","v":""},{"$f":"IFERROR(IF(A22=\"\",\"\",\n_xlfn.LET(_xlpm.Contract,'1. Checklist & Certification'!$C$7,\n_xlpm.Yr,TEXT(MOD(_xlfn.TEXTBEFORE(_xlpm.Contract,\"-\"),100),\"00\"),\n_xlpm.Program,_xlfn.TEXTAFTER(_xlfn.TEXTBEFORE(_xlpm.Contract,\"-\",2),\"-\"),\n_xlpm.CleanProgram,_xlfn.XLOOKUP(_xlpm.Program,SpellCheck[Input],SpellCheck[Correction],_xlpm.Program),\n_xlpm.Number,TEXT(_xlfn.TEXTAFTER(_xlpm.Contract,\"-\",2),\"0000\"),\n_xlfn.CONCAT(_xlpm.Yr,\"-\",_xlpm.CleanProgram,\"-\",_xlpm.Number))\n),\"\")","v":""},{"$f":"IFERROR(IF(A22=\"\",\"\",\n_xlfn.LET(_xlpm.Contract,'1. Checklist & Certification'!$C$8,\n_xlpm.Yr,TEXT(MOD(_xlfn.TEXTBEFORE(_xlpm.Contract,\"-\"),100),\"00\"),\n_xlpm.Program,_xlfn.TEXTAFTER(_xlfn.TEXTBEFORE(_xlpm.Contract,\"-\",2),\"-\"),\n_xlpm.CleanProgram,_xlfn.XLOOKUP(_xlpm.Program,SpellCheck[Input],SpellCheck[Correction],_xlpm.Program),\n_xlpm.Number,TEXT(_xlfn.TEXTAFTER(_xlpm.Contract,\"-\",2),\"0000\"),\n_xlfn.CONCAT(_xlpm.Yr,\"-\",_xlpm.CleanProgram,\"-\",_xlpm.Number))\n),\"\")","v":""},{"$f":"IFERROR(IF(A22=\"\",\"\",\n_xlfn.LET(_xlpm.Contract,'1. Checklist & Certification'!$F$7,\n_xlpm.Yr,TEXT(MOD(_xlfn.TEXTBEFORE(_xlpm.Contract,\"-\"),100),\"00\"),\n_xlpm.Program,_xlfn.TEXTAFTER(_xlfn.TEXTBEFORE(_xlpm.Contract,\"-\",2),\"-\"),\n_xlpm.CleanProgram,_xlfn.XLOOKUP(_xlpm.Program,SpellCheck[Input],SpellCheck[Correction],_xlpm.Program),\n_xlpm.Number,TEXT(_xlfn.TEXTAFTER(_xlpm.Contract,\"-\",2),\"0000\"),\n_xlfn.CONCAT(_xlpm.Yr,\"-\",_xlpm.CleanProgram,\"-\",_xlpm.Number))\n),\"\")","v":""},{"$f":"IFERROR(IF(A22=\"\",\"\",\n_xlfn.LET(_xlpm.Contract,'1. Checklist & Certification'!$F$8,\n_xlpm.Yr,TEXT(MOD(_xlfn.TEXTBEFORE(_xlpm.Contract,\"-\"),100),\"00\"),\n_xlpm.Program,_xlfn.TEXTAFTER(_xlfn.TEXTBEFORE(_xlpm.Contract,\"-\",2),\"-\"),\n_xlpm.CleanProgram,_xlfn.XLOOKUP(_xlpm.Program,SpellCheck[Input],SpellCheck[Correction],_xlpm.Program),\n_xlpm.Number,TEXT(_xlfn.TEXTAFTER(_xlpm.Contract,\"-\",2),\"0000\"),\n_xlfn.CONCAT(_xlpm.Yr,\"-\",_xlpm.CleanProgram,\"-\",_xlpm.Number))\n),\"\")","v":""},{"$f":"IF(A22=\"\",\"\",'1. Checklist & Certification'!$B$9)","v":""},{"$f":"IF(A22=\"\",\"\",'1. Checklist & Certification'!$F$9)","v":""},{"$f":"IF(A22=\"\",\"\",'1. Checklist & Certification'!$C$10)","v":""},{"$f":"IF(A22=\"\",\"\",'1. Checklist & Certification'!$C$11)","v":""},{"$f":"IF(A22=\"\",\"\",'1. Checklist & Certification'!$C$12)","v":""},{"$f":"IF(A22=\"\",\"\",'1. Checklist & Certification'!$B$14)","v":""},{"$f":"IF(A22=\"\",\"\",'1. Checklist & Certification'!$E$14)","v":""},{"$f":"IF(B22=\"\",\"\",'1. Checklist & Certification'!$G$14)","v":""},{"$f":"IF(A22=\"\",\"\",'MHP Family Income & Rent Limits'!$B$3)","v":""},{"$f":"IF(A22=\"\",\"\",'MHP Family Income & Rent Limits'!$J$3)","v":""},{"$f":"IF(A22=\"\",\"\",'MHP Family Income & Rent Limits'!$E$4)","v":""},{"$f":"IF(A22=\"\",\"\",'MHP Family Income & Rent Limits'!$C$7)","v":""},{"$f":"IF(A22=\"\",\"\",'MHP Family Income & Rent Limits'!$F$8)","v":""},{"$f":"IF(A22=\"\",\"\",'1. Checklist & Certification'!$G$4)","v":""},{"$f":"IF(A22=\"\",\"\",'1. Checklist & Certification'!$K$39)","v":""},{"$f":"IF(A22=\"\",\"\",'1. Checklist & Certification'!$K$43)","v":""},{"$f":"IF(A22=\"\",\"\",'1. Checklist & Certification'!$K$45)","v":""},{"$f":"IF(A22=\"\",\"\",'1. Checklist & Certification'!$K$49)","v":""},{"$f":"IF(A22=\"\",\"\",'1. Checklist & Certification'!$K$62)","v":""},{"$f":"IF(A22=\"\",\"\",'1. Checklist & Certification'!$E$66)","v":""},{"$f":"IF(A22=\"\",\"\",'1. Checklist & Certification'!$E$67)","v":""},{"$f":"IF(A22=\"\",\"\",'1. Checklist & Certification'!$E$68)","v":""},{"$f":"IF(A22=\"\",\"\",'1. Checklist & Certification'!$G$66)","v":""},{"$f":"IF(A22=\"\",\"\",'1. Checklist & Certification'!$H$66)","v":""},{"$f":"IF(A22=\"\",\"\",'1. Checklist & Certification'!$I$66)","v":""},{"$f":"IF(A22=\"\",\"\",'1. Checklist & Certification'!$I$67)","v":""},{"$f":"IF(A22=\"\",\"\",'1. Checklist & Certification'!$I$68)","v":""},{"$f":"IF(A22=\"\",\"\",'1. Checklist & Certification'!$B$69)","v":""},{"$f":"IF(A22=\"\",\"\",'1. Checklist & Certification'!$C$69)","v":""},{"$f":"IF(A22=\"\",\"\",'1. Checklist & Certification'!$F$69)","v":""},{"$f":"IF(A22=\"\",\"\",'1. Checklist & Certification'!$G$69)","v":""},{"$f":"IF(A22=\"\",\"\",'1. Checklist & Certification'!$J$69)","v":""},{"$f":"IF(A22=\"\",\"\",'1. Checklist & Certification'!$K$69)","v":""},null,null,{"$f":"IF(AND(OR('1. Checklist & Certification'!$M$16=1,'1. Checklist & Certification'!$M$19=2),AO22>0,B22=\"\",I22>0,AQ22<I22,AV22<>\"Sec 8-Project\"),\"X\",IF(AND(OR('1. Checklist & Certification'!$M$20=4,'1. Checklist & Certification'!$M$21=5,'1. Checklist & Certification'!$M$22=7),AO22>0,B22=\"\",I22>0,K22<I22),\"X\",\"\"))","v":""},{"$f":"IF(A22=\"\",\"\",IF(SUMPRODUCT(-- (ISNUMBER(SEARCH({\"*AHSC*\",\"*FMTW*\",\"*FWHG*\",\"*GHI*\",\"*HHC*\",\"*HLCP*\",\"*HOME*\",\"*LPR*\",\"*MHP*\",\"*NHTF*\",\"*NSP*\",\"*PRP*\",\"*TOD*\",\"*VHHP*\"},'1. Checklist & Certification'!$L$7)))),\"MHP\",\"Legacy\"))","v":""},",,",null,null,null,{"$f":"IF('1. Checklist & Certification'!$M$20=4,\"Both\",IF(OR('1. Checklist & Certification'!$M$15>0,S22=\"CHRP-R\",U22=\"CHRP-R\",W22=\"CHRP-R\",Y22=\"CHRP-R\"),\"Under\",\"No\"))","v":"No"},"No","No",{"$f":"_xlfn.IFS(D22=\"\",\"\",D22=1,'MHP Family Income & Rent Limits'!$E$17,D22=2,'MHP Family Income & Rent Limits'!$F$17,D22=3,'MHP Family Income & Rent Limits'!$G$17,D22=4,'MHP Family Income & Rent Limits'!$H$17,D22=5,'MHP Family Income & Rent Limits'!$I$17,D22=6,'MHP Family Income & Rent Limits'!$J$17,D22=7,'MHP Family Income & Rent Limits'!$K$17,D22=8,'MHP Family Income & Rent Limits'!$L$17)","v":""},"",{"$f":"IF(OR(A22=0,B22=\"X\"),0,MIN(IF(AA22:AD22<>0,AA22:AD22)))","v":0},{"$f":"IF(OR(H22=\"\",I22=\"\"),0,IF(H22*0.3/12>I22,MIN(H22*0.3/12,I22*1.1)+AP22,I22*(1+(VLOOKUP('1. Checklist & Certification'!$F$9,'HLCP-E Rent Change'!$A$1:$D$59,4,FALSE)))+AP22))","v":0}]
[null,null,null,null,null,null,null,null,null,null,null,null,null,null,null,null,null,null,null,null,null,null,null,null,null,null,0,0,0,0,0,0,0,0,{"$f":"IF(OR(A23=0,B23=\"X\"),0,IF(OR(S23=\"FHDP\",S23=\"RHCP-B\",U23=\"FHDP\",U23=\"RHCP-B\",W23=\"FHDP\",W23=\"RHCP-B\",Y23=\"FHDP\",Y23=\"RHCP-B\"),TRUNC((MIN(I23,K23)*(1+'1. Checklist & Certification'!$K$43)+AP23)),0))","v":0},{"$f":"IF(OR(A23=0,B23=\"X\"),0,IF(OR(S23=\"CHRP-R\",S23=\"SERA\",S23=\"SUHRP\",U23=\"CHRP-R\",U23=\"SERA\",U23=\"SUHRP\",W23=\"CHRP-R\",W23=\"SERA\",W23=\"SUHRP\",Y23=\"CHRP-R\",Y23=\"SERA\",Y23=\"SUHRP\"),TRUNC((MIN(I23,K23)*(1+'1. Checklist & Certification'!$K$49))),0))","v":0},{"$f":"IF(OR(A23=0,B23=\"X\"),0,IF(OR(S23=\"CALDAP\",S23=\"DPRLP\",U23=\"CALDAP\",U23=\"DPRLP\",W23=\"CALDAP\",W23=\"DPRLP\",Y23=\"CALDAP\",Y23=\"DPRLP\"),TRUNC(((MIN(I23,K23))*(1+'1. Checklist & Certification'!$G$4))),0))","v":0},0,0,0,{"$f":"IF(OR(A23=0,B23=\"X\"),0,IF(OR(S23=\"PRP\",S23=\"LPR\",U23=\"PRP\",U23=\"LPR\",W23=\"PRP\",W23=\"LPR\",Y23=\"PRP\",Y23=\"LPR\"),MAX(I23+AP23,MIN(IF(AE23:AN23<>0,AE23:AN23))),MIN(IF(AE23:AN23<>0,AE23:AN23))))","v":0},{"$f":"IF(A23=0,0,IF(AND(OR(S23=\"Mgr\",S23=0),OR(U23=\"Mgr\",U23=0),OR(W23=\"Mgr\",W23=0)),0,IF(LEFT($A23,2)=\"B*\",VLOOKUP($E23,'1. Checklist & Certification'!$D$26:$E$32,2),IF(LEFT($A23,2)=\"C*\",VLOOKUP($E23,'1. Checklist & Certification'!$F$26:$G$32,2),IF(LEFT($A23,2)=\"D*\",VLOOKUP($E23,'1. Checklist & Certification'!$H$26:$I$32,2),IF(LEFT($A23,2)=\"E*\",VLOOKUP($E23,'1. Checklist & Certification'!$J$26:$K$32,2),VLOOKUP($E23,'1. Checklist & Certification'!$A$26:$B$32,2)))))))","v":0},0,0,null,null,null,null,"","",0,0,0,null,{"$f":"IF(A23=\"\",\"\",'1. Checklist & Certification'!$K$1)","v":""},{"$f":"IF(A23=\"\",\"\",'1. Checklist & Certification'!$C$62)","v":""},{"$f":"IF(A23=\"\",\"\",'1. Checklist & Certification'!$C$6)","v":""},{"$f":"IF(A23=\"\",\"\",'1. Checklist & Certification'!$G$5)","v":""},{"$f":"IFERROR(IF(A23=\"\",\"\",\n_xlfn.LET(_xlpm.Contract,'1. Checklist & Certification'!$C$7,\n_xlpm.Yr,TEXT(MOD(_xlfn.TEXTBEFORE(_xlpm.Contract,\"-\"),100),\"00\"),\n_xlpm.Program,_xlfn.TEXTAFTER(_xlfn.TEXTBEFORE(_xlpm.Contract,\"-\",2),\"-\"),\n_xlpm.CleanProgram,_xlfn.XLOOKUP(_xlpm.Program,SpellCheck[Input],SpellCheck[Correction],_xlpm.Program),\n_xlpm.Number,TEXT(_xlfn.TEXTAFTER(_xlpm.Contract,\"-\",2),\"0000\"),\n_xlfn.CONCAT(_xlpm.Yr,\"-\",_xlpm.CleanProgram,\"-\",_xlpm.Number))\n),\"\")","v":""},{"$f":"IFERROR(IF(A23=\"\",\"\",\n_xlfn.LET(_xlpm.Contract,'1. Checklist & Certification'!$C$8,\n_xlpm.Yr,TEXT(MOD(_xlfn.TEXTBEFORE(_xlpm.Contract,\"-\"),100),\"00\"),\n_xlpm.Program,_xlfn.TEXTAFTER(_xlfn.TEXTBEFORE(_xlpm.Contract,\"-\",2),\"-\"),\n_xlpm.CleanProgram,_xlfn.XLOOKUP(_xlpm.Program,SpellCheck[Input],SpellCheck[Correction],_xlpm.Program),\n_xlpm.Number,TEXT(_xlfn.TEXTAFTER(_xlpm.Contract,\"-\",2),\"0000\"),\n_xlfn.CONCAT(_xlpm.Yr,\"-\",_xlpm.CleanProgram,\"-\",_xlpm.Number))\n),\"\")","v":""},{"$f":"IFERROR(IF(A23=\"\",\"\",\n_xlfn.LET(_xlpm.Contract,'1. Checklist & Certification'!$F$7,\n_xlpm.Yr,TEXT(MOD(_xlfn.TEXTBEFORE(_xlpm.Contract,\"-\"),100),\"00\"),\n_xlpm.Program,_xlfn.TEXTAFTER(_xlfn.TEXTBEFORE(_xlpm.Contract,\"-\",2),\"-\"),\n_xlpm.CleanProgram,_xlfn.XLOOKUP(_xlpm.Program,SpellCheck[Input],SpellCheck[Correction],_xlpm.Program),\n_xlpm.Number,TEXT(_xlfn.TEXTAFTER(_xlpm.Contract,\"-\",2),\"0000\"),\n_xlfn.CONCAT(_xlpm.Yr,\"-\",_xlpm.CleanProgram,\"-\",_xlpm.Number))\n),\"\")","v":""},{"$f":"IFERROR(IF(A23=\"\",\"\",\n_xlfn.LET(_xlpm.Contract,'1. Checklist & Certification'!$F$8,\n_xlpm.Yr,TEXT(MOD(_xlfn.TEXTBEFORE(_xlpm.Contract,\"-\"),100),\"00\"),\n_xlpm.Program,_xlfn.TEXTAFTER(_xlfn.TEXTBEFORE(_xlpm.Contract,\"-\",2),\"-\"),\n_xlpm.CleanProgram,_xlfn.XLOOKUP(_xlpm.Program,SpellCheck[Input],SpellCheck[Correction],_xlpm.Program),\n_xlpm.Number,TEXT(_xlfn.TEXTAFTER(_xlpm.Contract,\"-\",2),\"0000\"),\n_xlfn.CONCAT(_xlpm.Yr,\"-\",_xlpm.CleanProgram,\"-\",_xlpm.Number))\n),\"\")","v":""},{"$f":"IF(A23=\"\",\"\",'1. Checklist & Certification'!$B$9)","v":""},{"$f":"IF(A23=\"\",\"\",'1. Checklist & Certification'!$F$9)","v":""},{"$f":"IF(A23=\"\",\"\",'1. Checklist & Certification'!$C$10)","v":""},{"$f":"IF(A23=\"\",\"\",'1. Checklist & Certification'!$C$11)","v":""},{"$f":"IF(A23=\"\",\"\",'1. Checklist & Certification'!$C$12)","v":""},{"$f":"IF(A23=\"\",\"\",'1. Checklist & Certification'!$B$14)","v":""},{"$f":"IF(A23=\"\",\"\",'1. Checklist & Certification'!$E$14)","v":""},{"$f":"IF(B23=\"\",\"\",'1. Checklist & Certification'!$G$14)","v":""},{"$f":"IF(A23=\"\",\"\",'MHP Family Income & Rent Limits'!$B$3)","v":""},{"$f":"IF(A23=\"\",\"\",'MHP Family Income & Rent Limits'!$J$3)","v":""},{"$f":"IF(A23=\"\",\"\",'MHP Family Income & Rent Limits'!$E$4)","v":""},{"$f":"IF(A23=\"\",\"\",'MHP Family Income & Rent Limits'!$C$7)","v":""},{"$f":"IF(A23=\"\",\"\",'MHP Family Income & Rent Limits'!$F$8)","v":""},{"$f":"IF(A23=\"\",\"\",'1. Checklist & Certification'!$G$4)","v":""},{"$f":"IF(A23=\"\",\"\",'1. Checklist & Certification'!$K$39)","v":""},{"$f":"IF(A23=\"\",\"\",'1. Checklist & Certification'!$K$43)","v":""},{"$f":"IF(A23=\"\",\"\",'1. Checklist & Certification'!$K$45)","v":""},{"$f":"IF(A23=\"\",\"\",'1. Checklist & Certification'!$K$49)","v":""},{"$f":"IF(A23=\"\",\"\",'1. Checklist & Certification'!$K$62)","v":""},{"$f":"IF(A23=\"\",\"\",'1. Checklist & Certification'!$E$66)","v":""},{"$f":"IF(A23=\"\",\"\",'1. Checklist & Certification'!$E$67)","v":""},{"$f":"IF(A23=\"\",\"\",'1. Checklist & Certification'!$E$68)","v":""},{"$f":"IF(A23=\"\",\"\",'1. Checklist & Certification'!$G$66)","v":""},{"$f":"IF(A23=\"\",\"\",'1. Checklist & Certification'!$H$66)","v":""},{"$f":"IF(A23=\"\",\"\",'1. Checklist & Certification'!$I$66)","v":""},{"$f":"IF(A23=\"\",\"\",'1. Checklist & Certification'!$I$67)","v":""},{"$f":"IF(A23=\"\",\"\",'1. Checklist & Certification'!$I$68)","v":""},{"$f":"IF(A23=\"\",\"\",'1. Checklist & Certification'!$B$69)","v":""},{"$f":"IF(A23=\"\",\"\",'1. Checklist & Certification'!$C$69)","v":""},{"$f":"IF(A23=\"\",\"\",'1. Checklist & Certification'!$F$69)","v":""},{"$f":"IF(A23=\"\",\"\",'1. Checklist & Certification'!$G$69)","v":""},{"$f":"IF(A23=\"\",\"\",'1. Checklist & Certification'!$J$69)","v":""},{"$f":"IF(A23=\"\",\"\",'1. Checklist & Certification'!$K$69)","v":""},null,null,{"$f":"IF(AND(OR('1. Checklist & Certification'!$M$16=1,'1. Checklist & Certification'!$M$19=2),AO23>0,B23=\"\",I23>0,AQ23<I23,AV23<>\"Sec 8-Project\"),\"X\",IF(AND(OR('1. Checklist & Certification'!$M$20=4,'1. Checklist & Certification'!$M$21=5,'1. Checklist & Certification'!$M$22=7),AO23>0,B23=\"\",I23>0,K23<I23),\"X\",\"\"))","v":""},{"$f":"IF(A23=\"\",\"\",IF(SUMPRODUCT(-- (ISNUMBER(SEARCH({\"*AHSC*\",\"*FMTW*\",\"*FWHG*\",\"*GHI*\",\"*HHC*\",\"*HLCP*\",\"*HOME*\",\"*LPR*\",\"*MHP*\",\"*NHTF*\",\"*NSP*\",\"*PRP*\",\"*TOD*\",\"*VHHP*\"},'1. Checklist & Certification'!$L$7)))),\"MHP\",\"Legacy\"))","v":""},",,",null,null,null,{"$f":"IF('1. Checklist & Certification'!$M$20=4,\"Both\",IF(OR('1. Checklist & Certification'!$M$15>0,S23=\"CHRP-R\",U23=\"CHRP-R\",W23=\"CHRP-R\",Y23=\"CHRP-R\"),\"Under\",\"No\"))","v":"No"},"No","No",{"$f":"_xlfn.IFS(D23=\"\",\"\",D23=1,'MHP Family Income & Rent Limits'!$E$17,D23=2,'MHP Family Income & Rent Limits'!$F$17,D23=3,'MHP Family Income & Rent Limits'!$G$17,D23=4,'MHP Family Income & Rent Limits'!$H$17,D23=5,'MHP Family Income & Rent Limits'!$I$17,D23=6,'MHP Family Income & Rent Limits'!$J$17,D23=7,'MHP Family Income & Rent Limits'!$K$17,D23=8,'MHP Family Income & Rent Limits'!$L$17)","v":""},"",{"$f":"IF(OR(A23=0,B23=\"X\"),0,MIN(IF(AA23:AD23<>0,AA23:AD23)))","v":0},{"$f":"IF(OR(H23=\"\",I23=\"\"),0,IF(H23*0.3/12>I23,MIN(H23*0.3/12,I23*1.1)+AP23,I23*(1+(VLOOKUP('1. Checklist & Certification'!$F$9,'HLCP-E Rent Change'!$A$1:$D$59,4,FALSE)))+AP23))","v":0}]
[null,null,null,null,null,null,null,null,null,null,null,null,null,null,null,null,null,null,null,null,null,null,null,null,null,null,0,0,0,0,0,0,0,0,{"$f":"IF(OR(A24=0,B24=\"X\"),0,IF(OR(S24=\"FHDP\",S24=\"RHCP-B\",U24=\"FHDP\",U24=\"RHCP-B\",W24=\"FHDP\",W24=\"RHCP-B\",Y24=\"FHDP\",Y24=\"RHCP-B\"),TRUNC((MIN(I24,K24)*(1+'1. Checklist & Certification'!$K$43)+AP24)),0))","v":0},{"$f":"IF(OR(A24=0,B24=\"X\"),0,IF(OR(S24=\"CHRP-R\",S24=\"SERA\",S24=\"SUHRP\",U24=\"CHRP-R\",U24=\"SERA\",U24=\"SUHRP\",W24=\"CHRP-R\",W24=\"SERA\",W24=\"SUHRP\",Y24=\"CHRP-R\",Y24=\"SERA\",Y24=\"SUHRP\"),TRUNC((MIN(I24,K24)*(1+'1. Checklist & Certification'!$K$49))),0))","v":0},{"$f":"IF(OR(A24=0,B24=\"X\"),0,IF(OR(S24=\"CALDAP\",S24=\"DPRLP\",U24=\"CALDAP\",U24=\"DPRLP\",W24=\"CALDAP\",W24=\"DPRLP\",Y24=\"CALDAP\",Y24=\"DPRLP\"),TRUNC(((MIN(I24,K24))*(1+'1. Checklist & Certification'!$G$4))),0))","v":0},0,0,0,{"$f":"IF(OR(A24=0,B24=\"X\"),0,IF(OR(S24=\"PRP\",S24=\"LPR\",U24=\"PRP\",U24=\"LPR\",W24=\"PRP\",W24=\"LPR\",Y24=\"PRP\",Y24=\"LPR\"),MAX(I24+AP24,MIN(IF(AE24:AN24<>0,AE24:AN24))),MIN(IF(AE24:AN24<>0,AE24:AN24))))","v":0},{"$f":"IF(A24=0,0,IF(AND(OR(S24=\"Mgr\",S24=0),OR(U24=\"Mgr\",U24=0),OR(W24=\"Mgr\",W24=0)),0,IF(LEFT($A24,2)=\"B*\",VLOOKUP($E24,'1. Checklist & Certification'!$D$26:$E$32,2),IF(LEFT($A24,2)=\"C*\",VLOOKUP($E24,'1. Checklist & Certification'!$F$26:$G$32,2),IF(LEFT($A24,2)=\"D*\",VLOOKUP($E24,'1. Checklist & Certification'!$H$26:$I$32,2),IF(LEFT($A24,2)=\"E*\",VLOOKUP($E24,'1. Checklist & Certification'!$J$26:$K$32,2),VLOOKUP($E24,'1. Checklist & Certification'!$A$26:$B$32,2)))))))","v":0},0,0,null,null,null,null,"","",0,0,0,null,{"$f":"IF(A24=\"\",\"\",'1. Checklist & Certification'!$K$1)","v":""},{"$f":"IF(A24=\"\",\"\",'1. Checklist & Certification'!$C$62)","v":""},{"$f":"IF(A24=\"\",\"\",'1. Checklist & Certification'!$C$6)","v":""},{"$f":"IF(A24=\"\",\"\",'1. Checklist & Certification'!$G$5)","v":""},{"$f":"IFERROR(IF(A24=\"\",\"\",\n_xlfn.LET(_xlpm.Contract,'1. Checklist & Certification'!$C$7,\n_xlpm.Yr,TEXT(MOD(_xlfn.TEXTBEFORE(_xlpm.Contract,\"-\"),100),\"00\"),\n_xlpm.Program,_xlfn.TEXTAFTER(_xlfn.TEXTBEFORE(_xlpm.Contract,\"-\",2),\"-\"),\n_xlpm.CleanProgram,_xlfn.XLOOKUP(_xlpm.Program,SpellCheck[Input],SpellCheck[Correction],_xlpm.Program),\n_xlpm.Number,TEXT(_xlfn.TEXTAFTER(_xlpm.Contract,\"-\",2),\"0000\"),\n_xlfn.CONCAT(_xlpm.Yr,\"-\",_xlpm.CleanProgram,\"-\",_xlpm.Number))\n),\"\")","v":""},{"$f":"IFERROR(IF(A24=\"\",\"\",\n_xlfn.LET(_xlpm.Contract,'1. Checklist & Certification'!$C$8,\n_xlpm.Yr,TEXT(MOD(_xlfn.TEXTBEFORE(_xlpm.Contract,\"-\"),100),\"00\"),\n_xlpm.Program,_xlfn.TEXTAFTER(_xlfn.TEXTBEFORE(_xlpm.Contract,\"-\",2),\"-\"),\n_xlpm.CleanProgram,_xlfn.XLOOKUP(_xlpm.Program,SpellCheck[Input],SpellCheck[Correction],_xlpm.Program),\n_xlpm.Number,TEXT(_xlfn.TEXTAFTER(_xlpm.Contract,\"-\",2),\"0000\"),\n_xlfn.CONCAT(_xlpm.Yr,\"-\",_xlpm.CleanProgram,\"-\",_xlpm.Number))\n),\"\")","v":""},{"$f":"IFERROR(IF(A24=\"\",\"\",\n_xlfn.LET(_xlpm.Contract,'1. Checklist & Certification'!$F$7,\n_xlpm.Yr,TEXT(MOD(_xlfn.TEXTBEFORE(_xlpm.Contract,\"-\"),100),\"00\"),\n_xlpm.Program,_xlfn.TEXTAFTER(_xlfn.TEXTBEFORE(_xlpm.Contract,\"-\",2),\"-\"),\n_xlpm.CleanProgram,_xlfn.XLOOKUP(_xlpm.Program,SpellCheck[Input],SpellCheck[Correction],_xlpm.Program),\n_xlpm.Number,TEXT(_xlfn.TEXTAFTER(_xlpm.Contract,\"-\",2),\"0000\"),\n_xlfn.CONCAT(_xlpm.Yr,\"-\",_xlpm.CleanProgram,\"-\",_xlpm.Number))\n),\"\")","v":""},{"$f":"IFERROR(IF(A24=\"\",\"\",\n_xlfn.LET(_xlpm.Contract,'1. Checklist & Certification'!$F$8,\n_xlpm.Yr,TEXT(MOD(_xlfn.TEXTBEFORE(_xlpm.Contract,\"-\"),100),\"00\"),\n_xlpm.Program,_xlfn.TEXTAFTER(_xlfn.TEXTBEFORE(_xlpm.Contract,\"-\",2),\"-\"),\n_xlpm.CleanProgram,_xlfn.XLOOKUP(_xlpm.Program,SpellCheck[Input],SpellCheck[Correction],_xlpm.Program),\n_xlpm.Number,TEXT(_xlfn.TEXTAFTER(_xlpm.Contract,\"-\",2),\"0000\"),\n_xlfn.CONCAT(_xlpm.Yr,\"-\",_xlpm.CleanProgram,\"-\",_xlpm.Number))\n),\"\")","v":""},{"$f":"IF(A24=\"\",\"\",'1. Checklist & Certification'!$B$9)","v":""},{"$f":"IF(A24=\"\",\"\",'1. Checklist & Certification'!$F$9)","v":""},{"$f":"IF(A24=\"\",\"\",'1. Checklist & Certification'!$C$10)","v":""},{"$f":"IF(A24=\"\",\"\",'1. Checklist & Certification'!$C$11)","v":""},{"$f":"IF(A24=\"\",\"\",'1. Checklist & Certification'!$C$12)","v":""},{"$f":"IF(A24=\"\",\"\",'1. Checklist & Certification'!$B$14)","v":""},{"$f":"IF(A24=\"\",\"\",'1. Checklist & Certification'!$E$14)","v":""},{"$f":"IF(B24=\"\",\"\",'1. Checklist & Certification'!$G$14)","v":""},{"$f":"IF(A24=\"\",\"\",'MHP Family Income & Rent Limits'!$B$3)","v":""},{"$f":"IF(A24=\"\",\"\",'MHP Family Income & Rent Limits'!$J$3)","v":""},{"$f":"IF(A24=\"\",\"\",'MHP Family Income & Rent Limits'!$E$4)","v":""},{"$f":"IF(A24=\"\",\"\",'MHP Family Income & Rent Limits'!$C$7)","v":""},{"$f":"IF(A24=\"\",\"\",'MHP Family Income & Rent Limits'!$F$8)","v":""},{"$f":"IF(A24=\"\",\"\",'1. Checklist & Certification'!$G$4)","v":""},{"$f":"IF(A24=\"\",\"\",'1. Checklist & Certification'!$K$39)","v":""},{"$f":"IF(A24=\"\",\"\",'1. Checklist & Certification'!$K$43)","v":""},{"$f":"IF(A24=\"\",\"\",'1. Checklist & Certification'!$K$45)","v":""},{"$f":"IF(A24=\"\",\"\",'1. Checklist & Certification'!$K$49)","v":""},{"$f":"IF(A24=\"\",\"\",'1. Checklist & Certification'!$K$62)","v":""},{"$f":"IF(A24=\"\",\"\",'1. Checklist & Certification'!$E$66)","v":""},{"$f":"IF(A24=\"\",\"\",'1. Checklist & Certification'!$E$67)","v":""},{"$f":"IF(A24=\"\",\"\",'1. Checklist & Certification'!$E$68)","v":""},{"$f":"IF(A24=\"\",\"\",'1. Checklist & Certification'!$G$66)","v":""},{"$f":"IF(A24=\"\",\"\",'1. Checklist & Certification'!$H$66)","v":""},{"$f":"IF(A24=\"\",\"\",'1. Checklist & Certification'!$I$66)","v":""},{"$f":"IF(A24=\"\",\"\",'1. Checklist & Certification'!$I$67)","v":""},{"$f":"IF(A24=\"\",\"\",'1. Checklist & Certification'!$I$68)","v":""},{"$f":"IF(A24=\"\",\"\",'1. Checklist & Certification'!$B$69)","v":""},{"$f":"IF(A24=\"\",\"\",'1. Checklist & Certification'!$C$69)","v":""},{"$f":"IF(A24=\"\",\"\",'1. Checklist & Certification'!$F$69)","v":""},{"$f":"IF(A24=\"\",\"\",'1. Checklist & Certification'!$G$69)","v":""},{"$f":"IF(A24=\"\",\"\",'1. Checklist & Certification'!$J$69)","v":""},{"$f":"IF(A24=\"\",\"\",'1. Checklist & Certification'!$K$69)","v":""},null,null,{"$f":"IF(AND(OR('1. Checklist & Certification'!$M$16=1,'1. Checklist & Certification'!$M$19=2),AO24>0,B24=\"\",I24>0,AQ24<I24,AV24<>\"Sec 8-Project\"),\"X\",IF(AND(OR('1. Checklist & Certification'!$M$20=4,'1. Checklist & Certification'!$M$21=5,'1. Checklist & Certification'!$M$22=7),AO24>0,B24=\"\",I24>0,K24<I24),\"X\",\"\"))","v":""},{"$f":"IF(A24=\"\",\"\",IF(SUMPRODUCT(-- (ISNUMBER(SEARCH({\"*AHSC*\",\"*FMTW*\",\"*FWHG*\",\"*GHI*\",\"*HHC*\",\"*HLCP*\",\"*HOME*\",\"*LPR*\",\"*MHP*\",\"*NHTF*\",\"*NSP*\",\"*PRP*\",\"*TOD*\",\"*VHHP*\"},'1. Checklist & Certification'!$L$7)))),\"MHP\",\"Legacy\"))","v":""},",,",null,null,null,{"$f":"IF('1. Checklist & Certification'!$M$20=4,\"Both\",IF(OR('1. Checklist & Certification'!$M$15>0,S24=\"CHRP-R\",U24=\"CHRP-R\",W24=\"CHRP-R\",Y24=\"CHRP-R\"),\"Under\",\"No\"))","v":"No"},"No","No",{"$f":"_xlfn.IFS(D24=\"\",\"\",D24=1,'MHP Family Income & Rent Limits'!$E$17,D24=2,'MHP Family Income & Rent Limits'!$F$17,D24=3,'MHP Family Income & Rent Limits'!$G$17,D24=4,'MHP Family Income & Rent Limits'!$H$17,D24=5,'MHP Family Income & Rent Limits'!$I$17,D24=6,'MHP Family Income & Rent Limits'!$J$17,D24=7,'MHP Family Income & Rent Limits'!$K$17,D24=8,'MHP Family Income & Rent Limits'!$L$17)","v":""},"",{"$f":"IF(OR(A24=0,B24=\"X\"),0,MIN(IF(AA24:AD24<>0,AA24:AD24)))","v":0},{"$f":"IF(OR(H24=\"\",I24=\"\"),0,IF(H24*0.3/12>I24,MIN(H24*0.3/12,I24*1.1)+AP24,I24*(1+(VLOOKUP('1. Checklist & Certification'!$F$9,'HLCP-E Rent Change'!$A$1:$D$59,4,FALSE)))+AP24))","v":0}]
[null,null,null,null,null,null,null,null,null,null,null,null,null,null,null,null,null,null,null,null,null,null,null,null,null,null,0,0,0,0,0,0,0,0,{"$f":"IF(OR(A25=0,B25=\"X\"),0,IF(OR(S25=\"FHDP\",S25=\"RHCP-B\",U25=\"FHDP\",U25=\"RHCP-B\",W25=\"FHDP\",W25=\"RHCP-B\",Y25=\"FHDP\",Y25=\"RHCP-B\"),TRUNC((MIN(I25,K25)*(1+'1. Checklist & Certification'!$K$43)+AP25)),0))","v":0},{"$f":"IF(OR(A25=0,B25=\"X\"),0,IF(OR(S25=\"CHRP-R\",S25=\"SERA\",S25=\"SUHRP\",U25=\"CHRP-R\",U25=\"SERA\",U25=\"SUHRP\",W25=\"CHRP-R\",W25=\"SERA\",W25=\"SUHRP\",Y25=\"CHRP-R\",Y25=\"SERA\",Y25=\"SUHRP\"),TRUNC((MIN(I25,K25)*(1+'1. Checklist & Certification'!$K$49))),0))","v":0},{"$f":"IF(OR(A25=0,B25=\"X\"),0,IF(OR(S25=\"CALDAP\",S25=\"DPRLP\",U25=\"CALDAP\",U25=\"DPRLP\",W25=\"CALDAP\",W25=\"DPRLP\",Y25=\"CALDAP\",Y25=\"DPRLP\"),TRUNC(((MIN(I25,K25))*(1+'1. Checklist & Certification'!$G$4))),0))","v":0},0,0,0,{"$f":"IF(OR(A25=0,B25=\"X\"),0,IF(OR(S25=\"PRP\",S25=\"LPR\",U25=\"PRP\",U25=\"LPR\",W25=\"PRP\",W25=\"LPR\",Y25=\"PRP\",Y25=\"LPR\"),MAX(I25+AP25,MIN(IF(AE25:AN25<>0,AE25:AN25))),MIN(IF(AE25:AN25<>0,AE25:AN25))))","v":0},{"$f":"IF(A25=0,0,IF(AND(OR(S25=\"Mgr\",S25=0),OR(U25=\"Mgr\",U25=0),OR(W25=\"Mgr\",W25=0)),0,IF(LEFT($A25,2)=\"B*\",VLOOKUP($E25,'1. Checklist & Certification'!$D$26:$E$32,2),IF(LEFT($A25,2)=\"C*\",VLOOKUP($E25,'1. Checklist & Certification'!$F$26:$G$32,2),IF(LEFT($A25,2)=\"D*\",VLOOKUP($E25,'1. Checklist & Certification'!$H$26:$I$32,2),IF(LEFT($A25,2)=\"E*\",VLOOKUP($E25,'1. Checklist & Certification'!$J$26:$K$32,2),VLOOKUP($E25,'1. Checklist & Certification'!$A$26:$B$32,2)))))))","v":0},0,0,null,null,null,null,"","",0,0,0,null,{"$f":"IF(A25=\"\",\"\",'1. Checklist & Certification'!$K$1)","v":""},{"$f":"IF(A25=\"\",\"\",'1. Checklist & Certification'!$C$62)","v":""},{"$f":"IF(A25=\"\",\"\",'1. Checklist & Certification'!$C$6)","v":""},{"$f":"IF(A25=\"\",\"\",'1. Checklist & Certification'!$G$5)","v":""},{"$f":"IFERROR(IF(A25=\"\",\"\",\n_xlfn.LET(_xlpm.Contract,'1. Checklist & Certification'!$C$7,\n_xlpm.Yr,TEXT(MOD(_xlfn.TEXTBEFORE(_xlpm.Contract,\"-\"),100),\"00\"),\n_xlpm.Program,_xlfn.TEXTAFTER(_xlfn.TEXTBEFORE(_xlpm.Contract,\"-\",2),\"-\"),\n_xlpm.CleanProgram,_xlfn.XLOOKUP(_xlpm.Program,SpellCheck[Input],SpellCheck[Correction],_xlpm.Program),\n_xlpm.Number,TEXT(_xlfn.TEXTAFTER(_xlpm.Contract,\"-\",2),\"0000\"),\n_xlfn.CONCAT(_xlpm.Yr,\"-\",_xlpm.CleanProgram,\"-\",_xlpm.Number))\n),\"\")","v":""},{"$f":"IFERROR(IF(A25=\"\",\"\",\n_xlfn.LET(_xlpm.Contract,'1. Checklist & Certification'!$C$8,\n_xlpm.Yr,TEXT(MOD(_xlfn.TEXTBEFORE(_xlpm.Contract,\"-\"),100),\"00\"),\n_xlpm.Program,_xlfn.TEXTAFTER(_xlfn.TEXTBEFORE(_xlpm.Contract,\"-\",2),\"-\"),\n_xlpm.CleanProgram,_xlfn.XLOOKUP(_xlpm.Program,SpellCheck[Input],SpellCheck[Correction],_xlpm.Program),\n_xlpm.Number,TEXT(_xlfn.TEXTAFTER(_xlpm.Contract,\"-\",2),\"0000\"),\n_xlfn.CONCAT(_xlpm.Yr,\"-\",_xlpm.CleanProgram,\"-\",_xlpm.Number))\n),\"\")","v":""},{"$f":"IFERROR(IF(A25=\"\",\"\",\n_xlfn.LET(_xlpm.Contract,'1. Checklist & Certification'!$F$7,\n_xlpm.Yr,TEXT(MOD(_xlfn.TEXTBEFORE(_xlpm.Contract,\"-\"),100),\"00\"),\n_xlpm.Program,_xlfn.TEXTAFTER(_xlfn.TEXTBEFORE(_xlpm.Contract,\"-\",2),\"-\"),\n_xlpm.CleanProgram,_xlfn.XLOOKUP(_xlpm.Program,SpellCheck[Input],SpellCheck[Correction],_xlpm.Program),\n_xlpm.Number,TEXT(_xlfn.TEXTAFTER(_xlpm.Contract,\"-\",2),\"0000\"),\n_xlfn.CONCAT(_xlpm.Yr,\"-\",_xlpm.CleanProgram,\"-\",_xlpm.Number))\n),\"\")","v":""},{"$f":"IFERROR(IF(A25=\"\",\"\",\n_xlfn.LET(_xlpm.Contract,'1. Checklist & Certification'!$F$8,\n_xlpm.Yr,TEXT(MOD(_xlfn.TEXTBEFORE(_xlpm.Contract,\"-\"),100),\"00\"),\n_xlpm.Program,_xlfn.TEXTAFTER(_xlfn.TEXTBEFORE(_xlpm.Contract,\"-\",2),\"-\"),\n_xlpm.CleanProgram,_xlfn.XLOOKUP(_xlpm.Program,SpellCheck[Input],SpellCheck[Correction],_xlpm.Program),\n_xlpm.Number,TEXT(_xlfn.TEXTAFTER(_xlpm.Contract,\"-\",2),\"0000\"),\n_xlfn.CONCAT(_xlpm.Yr,\"-\",_xlpm.CleanProgram,\"-\",_xlpm.Number))\n),\"\")","v":""},{"$f":"IF(A25=\"\",\"\",'1. Checklist & Certification'!$B$9)","v":""},{"$f":"IF(A25=\"\",\"\",'1. Checklist & Certification'!$F$9)","v":""},{"$f":"IF(A25=\"\",\"\",'1. Checklist & Certification'!$C$10)","v":""},{"$f":"IF(A25=\"\",\"\",'1. Checklist & Certification'!$C$11)","v":""},{"$f":"IF(A25=\"\",\"\",'1. Checklist & Certification'!$C$12)","v":""},{"$f":"IF(A25=\"\",\"\",'1. Checklist & Certification'!$B$14)","v":""},{"$f":"IF(A25=\"\",\"\",'1. Checklist & Certification'!$E$14)","v":""},{"$f":"IF(B25=\"\",\"\",'1. Checklist & Certification'!$G$14)","v":""},{"$f":"IF(A25=\"\",\"\",'MHP Family Income & Rent Limits'!$B$3)","v":""},{"$f":"IF(A25=\"\",\"\",'MHP Family Income & Rent Limits'!$J$3)","v":""},{"$f":"IF(A25=\"\",\"\",'MHP Family Income & Rent Limits'!$E$4)","v":""},{"$f":"IF(A25=\"\",\"\",'MHP Family Income & Rent Limits'!$C$7)","v":""},{"$f":"IF(A25=\"\",\"\",'MHP Family Income & Rent Limits'!$F$8)","v":""},{"$f":"IF(A25=\"\",\"\",'1. Checklist & Certification'!$G$4)","v":""},{"$f":"IF(A25=\"\",\"\",'1. Checklist & Certification'!$K$39)","v":""},{"$f":"IF(A25=\"\",\"\",'1. Checklist & Certification'!$K$43)","v":""},{"$f":"IF(A25=\"\",\"\",'1. Checklist & Certification'!$K$45)","v":""},{"$f":"IF(A25=\"\",\"\",'1. Checklist & Certification'!$K$49)","v":""},{"$f":"IF(A25=\"\",\"\",'1. Checklist & Certification'!$K$62)","v":""},{"$f":"IF(A25=\"\",\"\",'1. Checklist & Certification'!$E$66)","v":""},{"$f":"IF(A25=\"\",\"\",'1. Checklist & Certification'!$E$67)","v":""},{"$f":"IF(A25=\"\",\"\",'1. Checklist & Certification'!$E$68)","v":""},{"$f":"IF(A25=\"\",\"\",'1. Checklist & Certification'!$G$66)","v":""},{"$f":"IF(A25=\"\",\"\",'1. Checklist & Certification'!$H$66)","v":""},{"$f":"IF(A25=\"\",\"\",'1. Checklist & Certification'!$I$66)","v":""},{"$f":"IF(A25=\"\",\"\",'1. Checklist & Certification'!$I$67)","v":""},{"$f":"IF(A25=\"\",\"\",'1. Checklist & Certification'!$I$68)","v":""},{"$f":"IF(A25=\"\",\"\",'1. Checklist & Certification'!$B$69)","v":""},{"$f":"IF(A25=\"\",\"\",'1. Checklist & Certification'!$C$69)","v":""},{"$f":"IF(A25=\"\",\"\",'1. Checklist & Certification'!$F$69)","v":""},{"$f":"IF(A25=\"\",\"\",'1. Checklist & Certification'!$G$69)","v":""},{"$f":"IF(A25=\"\",\"\",'1. Checklist & Certification'!$J$69)","v":""},{"$f":"IF(A25=\"\",\"\",'1. Checklist & Certification'!$K$69)","v":""},null,null,{"$f":"IF(AND(OR('1. Checklist & Certification'!$M$16=1,'1. Checklist & Certification'!$M$19=2),AO25>0,B25=\"\",I25>0,AQ25<I25,AV25<>\"Sec 8-Project\"),\"X\",IF(AND(OR('1. Checklist & Certification'!$M$20=4,'1. Checklist & Certification'!$M$21=5,'1. Checklist & Certification'!$M$22=7),AO25>0,B25=\"\",I25>0,K25<I25),\"X\",\"\"))","v":""},{"$f":"IF(A25=\"\",\"\",IF(SUMPRODUCT(-- (ISNUMBER(SEARCH({\"*AHSC*\",\"*FMTW*\",\"*FWHG*\",\"*GHI*\",\"*HHC*\",\"*HLCP*\",\"*HOME*\",\"*LPR*\",\"*MHP*\",\"*NHTF*\",\"*NSP*\",\"*PRP*\",\"*TOD*\",\"*VHHP*\"},'1. Checklist & Certification'!$L$7)))),\"MHP\",\"Legacy\"))","v":""},",,",null,null,null,{"$f":"IF('1. Checklist & Certification'!$M$20=4,\"Both\",IF(OR('1. Checklist & Certification'!$M$15>0,S25=\"CHRP-R\",U25=\"CHRP-R\",W25=\"CHRP-R\",Y25=\"CHRP-R\"),\"Under\",\"No\"))","v":"No"},"No","No",{"$f":"_xlfn.IFS(D25=\"\",\"\",D25=1,'MHP Family Income & Rent Limits'!$E$17,D25=2,'MHP Family Income & Rent Limits'!$F$17,D25=3,'MHP Family Income & Rent Limits'!$G$17,D25=4,'MHP Family Income & Rent Limits'!$H$17,D25=5,'MHP Family Income & Rent Limits'!$I$17,D25=6,'MHP Family Income & Rent Limits'!$J$17,D25=7,'MHP Family Income & Rent Limits'!$K$17,D25=8,'MHP Family Income & Rent Limits'!$L$17)","v":""},"",{"$f":"IF(OR(A25=0,B25=\"X\"),0,MIN(IF(AA25:AD25<>0,AA25:AD25)))","v":0},{"$f":"IF(OR(H25=\"\",I25=\"\"),0,IF(H25*0.3/12>I25,MIN(H25*0.3/12,I25*1.1)+AP25,I25*(1+(VLOOKUP('1. Checklist & Certification'!$F$9,'HLCP-E Rent Change'!$A$1:$D$59,4,FALSE)))+AP25))","v":0}]
[null,null,null,null,null,null,null,null,null,null,null,null,null,null,null,null,null,null,null,null,null,null,null,null,null,null,0,0,0,0,0,0,0,0,{"$f":"IF(OR(A26=0,B26=\"X\"),0,IF(OR(S26=\"FHDP\",S26=\"RHCP-B\",U26=\"FHDP\",U26=\"RHCP-B\",W26=\"FHDP\",W26=\"RHCP-B\",Y26=\"FHDP\",Y26=\"RHCP-B\"),TRUNC((MIN(I26,K26)*(1+'1. Checklist & Certification'!$K$43)+AP26)),0))","v":0},{"$f":"IF(OR(A26=0,B26=\"X\"),0,IF(OR(S26=\"CHRP-R\",S26=\"SERA\",S26=\"SUHRP\",U26=\"CHRP-R\",U26=\"SERA\",U26=\"SUHRP\",W26=\"CHRP-R\",W26=\"SERA\",W26=\"SUHRP\",Y26=\"CHRP-R\",Y26=\"SERA\",Y26=\"SUHRP\"),TRUNC((MIN(I26,K26)*(1+'1. Checklist & Certification'!$K$49))),0))","v":0},{"$f":"IF(OR(A26=0,B26=\"X\"),0,IF(OR(S26=\"CALDAP\",S26=\"DPRLP\",U26=\"CALDAP\",U26=\"DPRLP\",W26=\"CALDAP\",W26=\"DPRLP\",Y26=\"CALDAP\",Y26=\"DPRLP\"),TRUNC(((MIN(I26,K26))*(1+'1. Checklist & Certification'!$G$4))),0))","v":0},0,0,0,{"$f":"IF(OR(A26=0,B26=\"X\"),0,IF(OR(S26=\"PRP\",S26=\"LPR\",U26=\"PRP\",U26=\"LPR\",W26=\"PRP\",W26=\"LPR\",Y26=\"PRP\",Y26=\"LPR\"),MAX(I26+AP26,MIN(IF(AE26:AN26<>0,AE26:AN26))),MIN(IF(AE26:AN26<>0,AE26:AN26))))","v":0},{"$f":"IF(A26=0,0,IF(AND(OR(S26=\"Mgr\",S26=0),OR(U26=\"Mgr\",U26=0),OR(W26=\"Mgr\",W26=0)),0,IF(LEFT($A26,2)=\"B*\",VLOOKUP($E26,'1. Checklist & Certification'!$D$26:$E$32,2),IF(LEFT($A26,2)=\"C*\",VLOOKUP($E26,'1. Checklist & Certification'!$F$26:$G$32,2),IF(LEFT($A26,2)=\"D*\",VLOOKUP($E26,'1. Checklist & Certification'!$H$26:$I$32,2),IF(LEFT($A26,2)=\"E*\",VLOOKUP($E26,'1. Checklist & Certification'!$J$26:$K$32,2),VLOOKUP($E26,'1. Checklist & Certification'!$A$26:$B$32,2)))))))","v":0},0,0,null,null,null,null,"","",0,0,0,null,{"$f":"IF(A26=\"\",\"\",'1. Checklist & Certification'!$K$1)","v":""},{"$f":"IF(A26=\"\",\"\",'1. Checklist & Certification'!$C$62)","v":""},{"$f":"IF(A26=\"\",\"\",'1. Checklist & Certification'!$C$6)","v":""},{"$f":"IF(A26=\"\",\"\",'1. Checklist & Certification'!$G$5)","v":""},{"$f":"IFERROR(IF(A26=\"\",\"\",\n_xlfn.LET(_xlpm.Contract,'1. Checklist & Certification'!$C$7,\n_xlpm.Yr,TEXT(MOD(_xlfn.TEXTBEFORE(_xlpm.Contract,\"-\"),100),\"00\"),\n_xlpm.Program,_xlfn.TEXTAFTER(_xlfn.TEXTBEFORE(_xlpm.Contract,\"-\",2),\"-\"),\n_xlpm.CleanProgram,_xlfn.XLOOKUP(_xlpm.Program,SpellCheck[Input],SpellCheck[Correction],_xlpm.Program),\n_xlpm.Number,TEXT(_xlfn.TEXTAFTER(_xlpm.Contract,\"-\",2),\"0000\"),\n_xlfn.CONCAT(_xlpm.Yr,\"-\",_xlpm.CleanProgram,\"-\",_xlpm.Number))\n),\"\")","v":""},{"$f":"IFERROR(IF(A26=\"\",\"\",\n_xlfn.LET(_xlpm.Contract,'1. Checklist & Certification'!$C$8,\n_xlpm.Yr,TEXT(MOD(_xlfn.TEXTBEFORE(_xlpm.Contract,\"-\"),100),\"00\"),\n_xlpm.Program,_xlfn.TEXTAFTER(_xlfn.TEXTBEFORE(_xlpm.Contract,\"-\",2),\"-\"),\n_xlpm.CleanProgram,_xlfn.XLOOKUP(_xlpm.Program,SpellCheck[Input],SpellCheck[Correction],_xlpm.Program),\n_xlpm.Number,TEXT(_xlfn.TEXTAFTER(_xlpm.Contract,\"-\",2),\"0000\"),\n_xlfn.CONCAT(_xlpm.Yr,\"-\",_xlpm.CleanProgram,\"-\",_xlpm.Number))\n),\"\")","v":""},{"$f":"IFERROR(IF(A26=\"\",\"\",\n_xlfn.LET(_xlpm.Contract,'1. Checklist & Certification'!$F$7,\n_xlpm.Yr,TEXT(MOD(_xlfn.TEXTBEFORE(_xlpm.Contract,\"-\"),100),\"00\"),\n_xlpm.Program,_xlfn.TEXTAFTER(_xlfn.TEXTBEFORE(_xlpm.Contract,\"-\",2),\"-\"),\n_xlpm.CleanProgram,_xlfn.XLOOKUP(_xlpm.Program,SpellCheck[Input],SpellCheck[Correction],_xlpm.Program),\n_xlpm.Number,TEXT(_xlfn.TEXTAFTER(_xlpm.Contract,\"-\",2),\"0000\"),\n_xlfn.CONCAT(_xlpm.Yr,\"-\",_xlpm.CleanProgram,\"-\",_xlpm.Number))\n),\"\")","v":""},{"$f":"IFERROR(IF(A26=\"\",\"\",\n_xlfn.LET(_xlpm.Contract,'1. Checklist & Certification'!$F$8,\n_xlpm.Yr,TEXT(MOD(_xlfn.TEXTBEFORE(_xlpm.Contract,\"-\"),100),\"00\"),\n_xlpm.Program,_xlfn.TEXTAFTER(_xlfn.TEXTBEFORE(_xlpm.Contract,\"-\",2),\"-\"),\n_xlpm.CleanProgram,_xlfn.XLOOKUP(_xlpm.Program,SpellCheck[Input],SpellCheck[Correction],_xlpm.Program),\n_xlpm.Number,TEXT(_xlfn.TEXTAFTER(_xlpm.Contract,\"-\",2),\"0000\"),\n_xlfn.CONCAT(_xlpm.Yr,\"-\",_xlpm.CleanProgram,\"-\",_xlpm.Number))\n),\"\")","v":""},{"$f":"IF(A26=\"\",\"\",'1. Checklist & Certification'!$B$9)","v":""},{"$f":"IF(A26=\"\",\"\",'1. Checklist & Certification'!$F$9)","v":""},{"$f":"IF(A26=\"\",\"\",'1. Checklist & Certification'!$C$10)","v":""},{"$f":"IF(A26=\"\",\"\",'1. Checklist & Certification'!$C$11)","v":""},{"$f":"IF(A26=\"\",\"\",'1. Checklist & Certification'!$C$12)","v":""},{"$f":"IF(A26=\"\",\"\",'1. Checklist & Certification'!$B$14)","v":""},{"$f":"IF(A26=\"\",\"\",'1. Checklist & Certification'!$E$14)","v":""},{"$f":"IF(B26=\"\",\"\",'1. Checklist & Certification'!$G$14)","v":""},{"$f":"IF(A26=\"\",\"\",'MHP Family Income & Rent Limits'!$B$3)","v":""},{"$f":"IF(A26=\"\",\"\",'MHP Family Income & Rent Limits'!$J$3)","v":""},{"$f":"IF(A26=\"\",\"\",'MHP Family Income & Rent Limits'!$E$4)","v":""},{"$f":"IF(A26=\"\",\"\",'MHP Family Income & Rent Limits'!$C$7)","v":""},{"$f":"IF(A26=\"\",\"\",'MHP Family Income & Rent Limits'!$F$8)","v":""},{"$f":"IF(A26=\"\",\"\",'1. Checklist & Certification'!$G$4)","v":""},{"$f":"IF(A26=\"\",\"\",'1. Checklist & Certification'!$K$39)","v":""},{"$f":"IF(A26=\"\",\"\",'1. Checklist & Certification'!$K$43)","v":""},{"$f":"IF(A26=\"\",\"\",'1. Checklist & Certification'!$K$45)","v":""},{"$f":"IF(A26=\"\",\"\",'1. Checklist & Certification'!$K$49)","v":""},{"$f":"IF(A26=\"\",\"\",'1. Checklist & Certification'!$K$62)","v":""},{"$f":"IF(A26=\"\",\"\",'1. Checklist & Certification'!$E$66)","v":""},{"$f":"IF(A26=\"\",\"\",'1. Checklist & Certification'!$E$67)","v":""},{"$f":"IF(A26=\"\",\"\",'1. Checklist & Certification'!$E$68)","v":""},{"$f":"IF(A26=\"\",\"\",'1. Checklist & Certification'!$G$66)","v":""},{"$f":"IF(A26=\"\",\"\",'1. Checklist & Certification'!$H$66)","v":""},{"$f":"IF(A26=\"\",\"\",'1. Checklist & Certification'!$I$66)","v":""},{"$f":"IF(A26=\"\",\"\",'1. Checklist & Certification'!$I$67)","v":""},{"$f":"IF(A26=\"\",\"\",'1. Checklist & Certification'!$I$68)","v":""},{"$f":"IF(A26=\"\",\"\",'1. Checklist & Certification'!$B$69)","v":""},{"$f":"IF(A26=\"\",\"\",'1. Checklist & Certification'!$C$69)","v":""},{"$f":"IF(A26=\"\",\"\",'1. Checklist & Certification'!$F$69)","v":""},{"$f":"IF(A26=\"\",\"\",'1. Checklist & Certification'!$G$69)","v":""},{"$f":"IF(A26=\"\",\"\",'1. Checklist & Certification'!$J$69)","v":""},{"$f":"IF(A26=\"\",\"\",'1. Checklist & Certification'!$K$69)","v":""},null,null,{"$f":"IF(AND(OR('1. Checklist & Certification'!$M$16=1,'1. Checklist & Certification'!$M$19=2),AO26>0,B26=\"\",I26>0,AQ26<I26,AV26<>\"Sec 8-Project\"),\"X\",IF(AND(OR('1. Checklist & Certification'!$M$20=4,'1. Checklist & Certification'!$M$21=5,'1. Checklist & Certification'!$M$22=7),AO26>0,B26=\"\",I26>0,K26<I26),\"X\",\"\"))","v":""},{"$f":"IF(A26=\"\",\"\",IF(SUMPRODUCT(-- (ISNUMBER(SEARCH({\"*AHSC*\",\"*FMTW*\",\"*FWHG*\",\"*GHI*\",\"*HHC*\",\"*HLCP*\",\"*HOME*\",\"*LPR*\",\"*MHP*\",\"*NHTF*\",\"*NSP*\",\"*PRP*\",\"*TOD*\",\"*VHHP*\"},'1. Checklist & Certification'!$L$7)))),\"MHP\",\"Legacy\"))","v":""},",,",null,null,null,{"$f":"IF('1. Checklist & Certification'!$M$20=4,\"Both\",IF(OR('1. Checklist & Certification'!$M$15>0,S26=\"CHRP-R\",U26=\"CHRP-R\",W26=\"CHRP-R\",Y26=\"CHRP-R\"),\"Under\",\"No\"))","v":"No"},"No","No",{"$f":"_xlfn.IFS(D26=\"\",\"\",D26=1,'MHP Family Income & Rent Limits'!$E$17,D26=2,'MHP Family Income & Rent Limits'!$F$17,D26=3,'MHP Family Income & Rent Limits'!$G$17,D26=4,'MHP Family Income & Rent Limits'!$H$17,D26=5,'MHP Family Income & Rent Limits'!$I$17,D26=6,'MHP Family Income & Rent Limits'!$J$17,D26=7,'MHP Family Income & Rent Limits'!$K$17,D26=8,'MHP Family Income & Rent Limits'!$L$17)","v":""},"",{"$f":"IF(OR(A26=0,B26=\"X\"),0,MIN(IF(AA26:AD26<>0,AA26:AD26)))","v":0},{"$f":"IF(OR(H26=\"\",I26=\"\"),0,IF(H26*0.3/12>I26,MIN(H26*0.3/12,I26*1.1)+AP26,I26*(1+(VLOOKUP('1. Checklist & Certification'!$F$9,'HLCP-E Rent Change'!$A$1:$D$59,4,FALSE)))+AP26))","v":0}]
[null,null,null,null,null,null,null,null,null,null,null,null,null,null,null,null,null,null,null,null,null,null,null,null,null,null,0,0,0,0,0,0,0,0,{"$f":"IF(OR(A27=0,B27=\"X\"),0,IF(OR(S27=\"FHDP\",S27=\"RHCP-B\",U27=\"FHDP\",U27=\"RHCP-B\",W27=\"FHDP\",W27=\"RHCP-B\",Y27=\"FHDP\",Y27=\"RHCP-B\"),TRUNC((MIN(I27,K27)*(1+'1. Checklist & Certification'!$K$43)+AP27)),0))","v":0},{"$f":"IF(OR(A27=0,B27=\"X\"),0,IF(OR(S27=\"CHRP-R\",S27=\"SERA\",S27=\"SUHRP\",U27=\"CHRP-R\",U27=\"SERA\",U27=\"SUHRP\",W27=\"CHRP-R\",W27=\"SERA\",W27=\"SUHRP\",Y27=\"CHRP-R\",Y27=\"SERA\",Y27=\"SUHRP\"),TRUNC((MIN(I27,K27)*(1+'1. Checklist & Certification'!$K$49))),0))","v":0},{"$f":"IF(OR(A27=0,B27=\"X\"),0,IF(OR(S27=\"CALDAP\",S27=\"DPRLP\",U27=\"CALDAP\",U27=\"DPRLP\",W27=\"CALDAP\",W27=\"DPRLP\",Y27=\"CALDAP\",Y27=\"DPRLP\"),TRUNC(((MIN(I27,K27))*(1+'1. Checklist & Certification'!$G$4))),0))","v":0},0,0,0,{"$f":"IF(OR(A27=0,B27=\"X\"),0,IF(OR(S27=\"PRP\",S27=\"LPR\",U27=\"PRP\",U27=\"LPR\",W27=\"PRP\",W27=\"LPR\",Y27=\"PRP\",Y27=\"LPR\"),MAX(I27+AP27,MIN(IF(AE27:AN27<>0,AE27:AN27))),MIN(IF(AE27:AN27<>0,AE27:AN27))))","v":0},{"$f":"IF(A27=0,0,IF(AND(OR(S27=\"Mgr\",S27=0),OR(U27=\"Mgr\",U27=0),OR(W27=\"Mgr\",W27=0)),0,IF(LEFT($A27,2)=\"B*\",VLOOKUP($E27,'1. Checklist & Certification'!$D$26:$E$32,2),IF(LEFT($A27,2)=\"C*\",VLOOKUP($E27,'1. Checklist & Certification'!$F$26:$G$32,2),IF(LEFT($A27,2)=\"D*\",VLOOKUP($E27,'1. Checklist & Certification'!$H$26:$I$32,2),IF(LEFT($A27,2)=\"E*\",VLOOKUP($E27,'1. Checklist & Certification'!$J$26:$K$32,2),VLOOKUP($E27,'1. Checklist & Certification'!$A$26:$B$32,2)))))))","v":0},0,0,null,null,null,null,"","",0,0,0,null,{"$f":"IF(A27=\"\",\"\",'1. Checklist & Certification'!$K$1)","v":""},{"$f":"IF(A27=\"\",\"\",'1. Checklist & Certification'!$C$62)","v":""},{"$f":"IF(A27=\"\",\"\",'1. Checklist & Certification'!$C$6)","v":""},{"$f":"IF(A27=\"\",\"\",'1. Checklist & Certification'!$G$5)","v":""},{"$f":"IFERROR(IF(A27=\"\",\"\",\n_xlfn.LET(_xlpm.Contract,'1. Checklist & Certification'!$C$7,\n_xlpm.Yr,TEXT(MOD(_xlfn.TEXTBEFORE(_xlpm.Contract,\"-\"),100),\"00\"),\n_xlpm.Program,_xlfn.TEXTAFTER(_xlfn.TEXTBEFORE(_xlpm.Contract,\"-\",2),\"-\"),\n_xlpm.CleanProgram,_xlfn.XLOOKUP(_xlpm.Program,SpellCheck[Input],SpellCheck[Correction],_xlpm.Program),\n_xlpm.Number,TEXT(_xlfn.TEXTAFTER(_xlpm.Contract,\"-\",2),\"0000\"),\n_xlfn.CONCAT(_xlpm.Yr,\"-\",_xlpm.CleanProgram,\"-\",_xlpm.Number))\n),\"\")","v":""},{"$f":"IFERROR(IF(A27=\"\",\"\",\n_xlfn.LET(_xlpm.Contract,'1. Checklist & Certification'!$C$8,\n_xlpm.Yr,TEXT(MOD(_xlfn.TEXTBEFORE(_xlpm.Contract,\"-\"),100),\"00\"),\n_xlpm.Program,_xlfn.TEXTAFTER(_xlfn.TEXTBEFORE(_xlpm.Contract,\"-\",2),\"-\"),\n_xlpm.CleanProgram,_xlfn.XLOOKUP(_xlpm.Program,SpellCheck[Input],SpellCheck[Correction],_xlpm.Program),\n_xlpm.Number,TEXT(_xlfn.TEXTAFTER(_xlpm.Contract,\"-\",2),\"0000\"),\n_xlfn.CONCAT(_xlpm.Yr,\"-\",_xlpm.CleanProgram,\"-\",_xlpm.Number))\n),\"\")","v":""},{"$f":"IFERROR(IF(A27=\"\",\"\",\n_xlfn.LET(_xlpm.Contract,'1. Checklist & Certification'!$F$7,\n_xlpm.Yr,TEXT(MOD(_xlfn.TEXTBEFORE(_xlpm.Contract,\"-\"),100),\"00\"),\n_xlpm.Program,_xlfn.TEXTAFTER(_xlfn.TEXTBEFORE(_xlpm.Contract,\"-\",2),\"-\"),\n_xlpm.CleanProgram,_xlfn.XLOOKUP(_xlpm.Program,SpellCheck[Input],SpellCheck[Correction],_xlpm.Program),\n_xlpm.Number,TEXT(_xlfn.TEXTAFTER(_xlpm.Contract,\"-\",2),\"0000\"),\n_xlfn.CONCAT(_xlpm.Yr,\"-\",_xlpm.CleanProgram,\"-\",_xlpm.Number))\n),\"\")","v":""},{"$f":"IFERROR(IF(A27=\"\",\"\",\n_xlfn.LET(_xlpm.Contract,'1. Checklist & Certification'!$F$8,\n_xlpm.Yr,TEXT(MOD(_xlfn.TEXTBEFORE(_xlpm.Contract,\"-\"),100),\"00\"),\n_xlpm.Program,_xlfn.TEXTAFTER(_xlfn.TEXTBEFORE(_xlpm.Contract,\"-\",2),\"-\"),\n_xlpm.CleanProgram,_xlfn.XLOOKUP(_xlpm.Program,SpellCheck[Input],SpellCheck[Correction],_xlpm.Program),\n_xlpm.Number,TEXT(_xlfn.TEXTAFTER(_xlpm.Contract,\"-\",2),\"0000\"),\n_xlfn.CONCAT(_xlpm.Yr,\"-\",_xlpm.CleanProgram,\"-\",_xlpm.Number))\n),\"\")","v":""},{"$f":"IF(A27=\"\",\"\",'1. Checklist & Certification'!$B$9)","v":""},{"$f":"IF(A27=\"\",\"\",'1. Checklist & Certification'!$F$9)","v":""},{"$f":"IF(A27=\"\",\"\",'1. Checklist & Certification'!$C$10)","v":""},{"$f":"IF(A27=\"\",\"\",'1. Checklist & Certification'!$C$11)","v":""},{"$f":"IF(A27=\"\",\"\",'1. Checklist & Certification'!$C$12)","v":""},{"$f":"IF(A27=\"\",\"\",'1. Checklist & Certification'!$B$14)","v":""},{"$f":"IF(A27=\"\",\"\",'1. Checklist & Certification'!$E$14)","v":""},{"$f":"IF(B27=\"\",\"\",'1. Checklist & Certification'!$G$14)","v":""},{"$f":"IF(A27=\"\",\"\",'MHP Family Income & Rent Limits'!$B$3)","v":""},{"$f":"IF(A27=\"\",\"\",'MHP Family Income & Rent Limits'!$J$3)","v":""},{"$f":"IF(A27=\"\",\"\",'MHP Family Income & Rent Limits'!$E$4)","v":""},{"$f":"IF(A27=\"\",\"\",'MHP Family Income & Rent Limits'!$C$7)","v":""},{"$f":"IF(A27=\"\",\"\",'MHP Family Income & Rent Limits'!$F$8)","v":""},{"$f":"IF(A27=\"\",\"\",'1. Checklist & Certification'!$G$4)","v":""},{"$f":"IF(A27=\"\",\"\",'1. Checklist & Certification'!$K$39)","v":""},{"$f":"IF(A27=\"\",\"\",'1. Checklist & Certification'!$K$43)","v":""},{"$f":"IF(A27=\"\",\"\",'1. Checklist & Certification'!$K$45)","v":""},{"$f":"IF(A27=\"\",\"\",'1. Checklist & Certification'!$K$49)","v":""},{"$f":"IF(A27=\"\",\"\",'1. Checklist & Certification'!$K$62)","v":""},{"$f":"IF(A27=\"\",\"\",'1. Checklist & Certification'!$E$66)","v":""},{"$f":"IF(A27=\"\",\"\",'1. Checklist & Certification'!$E$67)","v":""},{"$f":"IF(A27=\"\",\"\",'1. Checklist & Certification'!$E$68)","v":""},{"$f":"IF(A27=\"\",\"\",'1. Checklist & Certification'!$G$66)","v":""},{"$f":"IF(A27=\"\",\"\",'1. Checklist & Certification'!$H$66)","v":""},{"$f":"IF(A27=\"\",\"\",'1. Checklist & Certification'!$I$66)","v":""},{"$f":"IF(A27=\"\",\"\",'1. Checklist & Certification'!$I$67)","v":""},{"$f":"IF(A27=\"\",\"\",'1. Checklist & Certification'!$I$68)","v":""},{"$f":"IF(A27=\"\",\"\",'1. Checklist & Certification'!$B$69)","v":""},{"$f":"IF(A27=\"\",\"\",'1. Checklist & Certification'!$C$69)","v":""},{"$f":"IF(A27=\"\",\"\",'1. Checklist & Certification'!$F$69)","v":""},{"$f":"IF(A27=\"\",\"\",'1. Checklist & Certification'!$G$69)","v":""},{"$f":"IF(A27=\"\",\"\",'1. Checklist & Certification'!$J$69)","v":""},{"$f":"IF(A27=\"\",\"\",'1. Checklist & Certification'!$K$69)","v":""},null,null,{"$f":"IF(AND(OR('1. Checklist & Certification'!$M$16=1,'1. Checklist & Certification'!$M$19=2),AO27>0,B27=\"\",I27>0,AQ27<I27,AV27<>\"Sec 8-Project\"),\"X\",IF(AND(OR('1. Checklist & Certification'!$M$20=4,'1. Checklist & Certification'!$M$21=5,'1. Checklist & Certification'!$M$22=7),AO27>0,B27=\"\",I27>0,K27<I27),\"X\",\"\"))","v":""},{"$f":"IF(A27=\"\",\"\",IF(SUMPRODUCT(-- (ISNUMBER(SEARCH({\"*AHSC*\",\"*FMTW*\",\"*FWHG*\",\"*GHI*\",\"*HHC*\",\"*HLCP*\",\"*HOME*\",\"*LPR*\",\"*MHP*\",\"*NHTF*\",\"*NSP*\",\"*PRP*\",\"*TOD*\",\"*VHHP*\"},'1. Checklist & Certification'!$L$7)))),\"MHP\",\"Legacy\"))","v":""},",,",null,null,null,{"$f":"IF('1. Checklist & Certification'!$M$20=4,\"Both\",IF(OR('1. Checklist & Certification'!$M$15>0,S27=\"CHRP-R\",U27=\"CHRP-R\",W27=\"CHRP-R\",Y27=\"CHRP-R\"),\"Under\",\"No\"))","v":"No"},"No","No",{"$f":"_xlfn.IFS(D27=\"\",\"\",D27=1,'MHP Family Income & Rent Limits'!$E$17,D27=2,'MHP Family Income & Rent Limits'!$F$17,D27=3,'MHP Family Income & Rent Limits'!$G$17,D27=4,'MHP Family Income & Rent Limits'!$H$17,D27=5,'MHP Family Income & Rent Limits'!$I$17,D27=6,'MHP Family Income & Rent Limits'!$J$17,D27=7,'MHP Family Income & Rent Limits'!$K$17,D27=8,'MHP Family Income & Rent Limits'!$L$17)","v":""},"",{"$f":"IF(OR(A27=0,B27=\"X\"),0,MIN(IF(AA27:AD27<>0,AA27:AD27)))","v":0},{"$f":"IF(OR(H27=\"\",I27=\"\"),0,IF(H27*0.3/12>I27,MIN(H27*0.3/12,I27*1.1)+AP27,I27*(1+(VLOOKUP('1. Checklist & Certification'!$F$9,'HLCP-E Rent Change'!$A$1:$D$59,4,FALSE)))+AP27))","v":0}]
[null,null,null,null,null,null,null,null,null,null,null,null,null,null,null,null,null,null,null,null,null,null,null,null,null,null,0,0,0,0,0,0,0,0,{"$f":"IF(OR(A28=0,B28=\"X\"),0,IF(OR(S28=\"FHDP\",S28=\"RHCP-B\",U28=\"FHDP\",U28=\"RHCP-B\",W28=\"FHDP\",W28=\"RHCP-B\",Y28=\"FHDP\",Y28=\"RHCP-B\"),TRUNC((MIN(I28,K28)*(1+'1. Checklist & Certification'!$K$43)+AP28)),0))","v":0},{"$f":"IF(OR(A28=0,B28=\"X\"),0,IF(OR(S28=\"CHRP-R\",S28=\"SERA\",S28=\"SUHRP\",U28=\"CHRP-R\",U28=\"SERA\",U28=\"SUHRP\",W28=\"CHRP-R\",W28=\"SERA\",W28=\"SUHRP\",Y28=\"CHRP-R\",Y28=\"SERA\",Y28=\"SUHRP\"),TRUNC((MIN(I28,K28)*(1+'1. Checklist & Certification'!$K$49))),0))","v":0},{"$f":"IF(OR(A28=0,B28=\"X\"),0,IF(OR(S28=\"CALDAP\",S28=\"DPRLP\",U28=\"CALDAP\",U28=\"DPRLP\",W28=\"CALDAP\",W28=\"DPRLP\",Y28=\"CALDAP\",Y28=\"DPRLP\"),TRUNC(((MIN(I28,K28))*(1+'1. Checklist & Certification'!$G$4))),0))","v":0},0,0,0,{"$f":"IF(OR(A28=0,B28=\"X\"),0,IF(OR(S28=\"PRP\",S28=\"LPR\",U28=\"PRP\",U28=\"LPR\",W28=\"PRP\",W28=\"LPR\",Y28=\"PRP\",Y28=\"LPR\"),MAX(I28+AP28,MIN(IF(AE28:AN28<>0,AE28:AN28))),MIN(IF(AE28:AN28<>0,AE28:AN28))))","v":0},{"$f":"IF(A28=0,0,IF(AND(OR(S28=\"Mgr\",S28=0),OR(U28=\"Mgr\",U28=0),OR(W28=\"Mgr\",W28=0)),0,IF(LEFT($A28,2)=\"B*\",VLOOKUP($E28,'1. Checklist & Certification'!$D$26:$E$32,2),IF(LEFT($A28,2)=\"C*\",VLOOKUP($E28,'1. Checklist & Certification'!$F$26:$G$32,2),IF(LEFT($A28,2)=\"D*\",VLOOKUP($E28,'1. Checklist & Certification'!$H$26:$I$32,2),IF(LEFT($A28,2)=\"E*\",VLOOKUP($E28,'1. Checklist & Certification'!$J$26:$K$32,2),VLOOKUP($E28,'1. Checklist & Certification'!$A$26:$B$32,2)))))))","v":0},0,0,null,null,null,null,"","",0,0,0,null,{"$f":"IF(A28=\"\",\"\",'1. Checklist & Certification'!$K$1)","v":""},{"$f":"IF(A28=\"\",\"\",'1. Checklist & Certification'!$C$62)","v":""},{"$f":"IF(A28=\"\",\"\",'1. Checklist & Certification'!$C$6)","v":""},{"$f":"IF(A28=\"\",\"\",'1. Checklist & Certification'!$G$5)","v":""},{"$f":"IFERROR(IF(A28=\"\",\"\",\n_xlfn.LET(_xlpm.Contract,'1. Checklist & Certification'!$C$7,\n_xlpm.Yr,TEXT(MOD(_xlfn.TEXTBEFORE(_xlpm.Contract,\"-\"),100),\"00\"),\n_xlpm.Program,_xlfn.TEXTAFTER(_xlfn.TEXTBEFORE(_xlpm.Contract,\"-\",2),\"-\"),\n_xlpm.CleanProgram,_xlfn.XLOOKUP(_xlpm.Program,SpellCheck[Input],SpellCheck[Correction],_xlpm.Program),\n_xlpm.Number,TEXT(_xlfn.TEXTAFTER(_xlpm.Contract,\"-\",2),\"0000\"),\n_xlfn.CONCAT(_xlpm.Yr,\"-\",_xlpm.CleanProgram,\"-\",_xlpm.Number))\n),\"\")","v":""},{"$f":"IFERROR(IF(A28=\"\",\"\",\n_xlfn.LET(_xlpm.Contract,'1. Checklist & Certification'!$C$8,\n_xlpm.Yr,TEXT(MOD(_xlfn.TEXTBEFORE(_xlpm.Contract,\"-\"),100),\"00\"),\n_xlpm.Program,_xlfn.TEXTAFTER(_xlfn.TEXTBEFORE(_xlpm.Contract,\"-\",2),\"-\"),\n_xlpm.CleanProgram,_xlfn.XLOOKUP(_xlpm.Program,SpellCheck[Input],SpellCheck[Correction],_xlpm.Program),\n_xlpm.Number,TEXT(_xlfn.TEXTAFTER(_xlpm.Contract,\"-\",2),\"0000\"),\n_xlfn.CONCAT(_xlpm.Yr,\"-\",_xlpm.CleanProgram,\"-\",_xlpm.Number))\n),\"\")","v":""},{"$f":"IFERROR(IF(A28=\"\",\"\",\n_xlfn.LET(_xlpm.Contract,'1. Checklist & Certification'!$F$7,\n_xlpm.Yr,TEXT(MOD(_xlfn.TEXTBEFORE(_xlpm.Contract,\"-\"),100),\"00\"),\n_xlpm.Program,_xlfn.TEXTAFTER(_xlfn.TEXTBEFORE(_xlpm.Contract,\"-\",2),\"-\"),\n_xlpm.CleanProgram,_xlfn.XLOOKUP(_xlpm.Program,SpellCheck[Input],SpellCheck[Correction],_xlpm.Program),\n_xlpm.Number,TEXT(_xlfn.TEXTAFTER(_xlpm.Contract,\"-\",2),\"0000\"),\n_xlfn.CONCAT(_xlpm.Yr,\"-\",_xlpm.CleanProgram,\"-\",_xlpm.Number))\n),\"\")","v":""},{"$f":"IFERROR(IF(A28=\"\",\"\",\n_xlfn.LET(_xlpm.Contract,'1. Checklist & Certification'!$F$8,\n_xlpm.Yr,TEXT(MOD(_xlfn.TEXTBEFORE(_xlpm.Contract,\"-\"),100),\"00\"),\n_xlpm.Program,_xlfn.TEXTAFTER(_xlfn.TEXTBEFORE(_xlpm.Contract,\"-\",2),\"-\"),\n_xlpm.CleanProgram,_xlfn.XLOOKUP(_xlpm.Program,SpellCheck[Input],SpellCheck[Correction],_xlpm.Program),\n_xlpm.Number,TEXT(_xlfn.TEXTAFTER(_xlpm.Contract,\"-\",2),\"0000\"),\n_xlfn.CONCAT(_xlpm.Yr,\"-\",_xlpm.CleanProgram,\"-\",_xlpm.Number))\n),\"\")","v":""},{"$f":"IF(A28=\"\",\"\",'1. Checklist & Certification'!$B$9)","v":""},{"$f":"IF(A28=\"\",\"\",'1. Checklist & Certification'!$F$9)","v":""},{"$f":"IF(A28=\"\",\"\",'1. Checklist & Certification'!$C$10)","v":""},{"$f":"IF(A28=\"\",\"\",'1. Checklist & Certification'!$C$11)","v":""},{"$f":"IF(A28=\"\",\"\",'1. Checklist & Certification'!$C$12)","v":""},{"$f":"IF(A28=\"\",\"\",'1. Checklist & Certification'!$B$14)","v":""},{"$f":"IF(A28=\"\",\"\",'1. Checklist & Certification'!$E$14)","v":""},{"$f":"IF(B28=\"\",\"\",'1. Checklist & Certification'!$G$14)","v":""},{"$f":"IF(A28=\"\",\"\",'MHP Family Income & Rent Limits'!$B$3)","v":""},{"$f":"IF(A28=\"\",\"\",'MHP Family Income & Rent Limits'!$J$3)","v":""},{"$f":"IF(A28=\"\",\"\",'MHP Family Income & Rent Limits'!$E$4)","v":""},{"$f":"IF(A28=\"\",\"\",'MHP Family Income & Rent Limits'!$C$7)","v":""},{"$f":"IF(A28=\"\",\"\",'MHP Family Income & Rent Limits'!$F$8)","v":""},{"$f":"IF(A28=\"\",\"\",'1. Checklist & Certification'!$G$4)","v":""},{"$f":"IF(A28=\"\",\"\",'1. Checklist & Certification'!$K$39)","v":""},{"$f":"IF(A28=\"\",\"\",'1. Checklist & Certification'!$K$43)","v":""},{"$f":"IF(A28=\"\",\"\",'1. Checklist & Certification'!$K$45)","v":""},{"$f":"IF(A28=\"\",\"\",'1. Checklist & Certification'!$K$49)","v":""},{"$f":"IF(A28=\"\",\"\",'1. Checklist & Certification'!$K$62)","v":""},{"$f":"IF(A28=\"\",\"\",'1. Checklist & Certification'!$E$66)","v":""},{"$f":"IF(A28=\"\",\"\",'1. Checklist & Certification'!$E$67)","v":""},{"$f":"IF(A28=\"\",\"\",'1. Checklist & Certification'!$E$68)","v":""},{"$f":"IF(A28=\"\",\"\",'1. Checklist & Certification'!$G$66)","v":""},{"$f":"IF(A28=\"\",\"\",'1. Checklist & Certification'!$H$66)","v":""},{"$f":"IF(A28=\"\",\"\",'1. Checklist & Certification'!$I$66)","v":""},{"$f":"IF(A28=\"\",\"\",'1. Checklist & Certification'!$I$67)","v":""},{"$f":"IF(A28=\"\",\"\",'1. Checklist & Certification'!$I$68)","v":""},{"$f":"IF(A28=\"\",\"\",'1. Checklist & Certification'!$B$69)","v":""},{"$f":"IF(A28=\"\",\"\",'1. Checklist & Certification'!$C$69)","v":""},{"$f":"IF(A28=\"\",\"\",'1. Checklist & Certification'!$F$69)","v":""},{"$f":"IF(A28=\"\",\"\",'1. Checklist & Certification'!$G$69)","v":""},{"$f":"IF(A28=\"\",\"\",'1. Checklist & Certification'!$J$69)","v":""},{"$f":"IF(A28=\"\",\"\",'1. Checklist & Certification'!$K$69)","v":""},null,null,{"$f":"IF(AND(OR('1. Checklist & Certification'!$M$16=1,'1. Checklist & Certification'!$M$19=2),AO28>0,B28=\"\",I28>0,AQ28<I28,AV28<>\"Sec 8-Project\"),\"X\",IF(AND(OR('1. Checklist & Certification'!$M$20=4,'1. Checklist & Certification'!$M$21=5,'1. Checklist & Certification'!$M$22=7),AO28>0,B28=\"\",I28>0,K28<I28),\"X\",\"\"))","v":""},{"$f":"IF(A28=\"\",\"\",IF(SUMPRODUCT(-- (ISNUMBER(SEARCH({\"*AHSC*\",\"*FMTW*\",\"*FWHG*\",\"*GHI*\",\"*HHC*\",\"*HLCP*\",\"*HOME*\",\"*LPR*\",\"*MHP*\",\"*NHTF*\",\"*NSP*\",\"*PRP*\",\"*TOD*\",\"*VHHP*\"},'1. Checklist & Certification'!$L$7)))),\"MHP\",\"Legacy\"))","v":""},",,",null,null,null,{"$f":"IF('1. Checklist & Certification'!$M$20=4,\"Both\",IF(OR('1. Checklist & Certification'!$M$15>0,S28=\"CHRP-R\",U28=\"CHRP-R\",W28=\"CHRP-R\",Y28=\"CHRP-R\"),\"Under\",\"No\"))","v":"No"},"No","No",{"$f":"_xlfn.IFS(D28=\"\",\"\",D28=1,'MHP Family Income & Rent Limits'!$E$17,D28=2,'MHP Family Income & Rent Limits'!$F$17,D28=3,'MHP Family Income & Rent Limits'!$G$17,D28=4,'MHP Family Income & Rent Limits'!$H$17,D28=5,'MHP Family Income & Rent Limits'!$I$17,D28=6,'MHP Family Income & Rent Limits'!$J$17,D28=7,'MHP Family Income & Rent Limits'!$K$17,D28=8,'MHP Family Income & Rent Limits'!$L$17)","v":""},"",{"$f":"IF(OR(A28=0,B28=\"X\"),0,MIN(IF(AA28:AD28<>0,AA28:AD28)))","v":0},{"$f":"IF(OR(H28=\"\",I28=\"\"),0,IF(H28*0.3/12>I28,MIN(H28*0.3/12,I28*1.1)+AP28,I28*(1+(VLOOKUP('1. Checklist & Certification'!$F$9,'HLCP-E Rent Change'!$A$1:$D$59,4,FALSE)))+AP28))","v":0}]
[null,null,null,null,null,null,null,null,null,null,null,null,null,null,null,null,null,null,null,null,null,null,null,null,null,null,0,0,0,0,0,0,0,0,{"$f":"IF(OR(A29=0,B29=\"X\"),0,IF(OR(S29=\"FHDP\",S29=\"RHCP-B\",U29=\"FHDP\",U29=\"RHCP-B\",W29=\"FHDP\",W29=\"RHCP-B\",Y29=\"FHDP\",Y29=\"RHCP-B\"),TRUNC((MIN(I29,K29)*(1+'1. Checklist & Certification'!$K$43)+AP29)),0))","v":0},{"$f":"IF(OR(A29=0,B29=\"X\"),0,IF(OR(S29=\"CHRP-R\",S29=\"SERA\",S29=\"SUHRP\",U29=\"CHRP-R\",U29=\"SERA\",U29=\"SUHRP\",W29=\"CHRP-R\",W29=\"SERA\",W29=\"SUHRP\",Y29=\"CHRP-R\",Y29=\"SERA\",Y29=\"SUHRP\"),TRUNC((MIN(I29,K29)*(1+'1. Checklist & Certification'!$K$49))),0))","v":0},{"$f":"IF(OR(A29=0,B29=\"X\"),0,IF(OR(S29=\"CALDAP\",S29=\"DPRLP\",U29=\"CALDAP\",U29=\"DPRLP\",W29=\"CALDAP\",W29=\"DPRLP\",Y29=\"CALDAP\",Y29=\"DPRLP\"),TRUNC(((MIN(I29,K29))*(1+'1. Checklist & Certification'!$G$4))),0))","v":0},0,0,0,{"$f":"IF(OR(A29=0,B29=\"X\"),0,IF(OR(S29=\"PRP\",S29=\"LPR\",U29=\"PRP\",U29=\"LPR\",W29=\"PRP\",W29=\"LPR\",Y29=\"PRP\",Y29=\"LPR\"),MAX(I29+AP29,MIN(IF(AE29:AN29<>0,AE29:AN29))),MIN(IF(AE29:AN29<>0,AE29:AN29))))","v":0},{"$f":"IF(A29=0,0,IF(AND(OR(S29=\"Mgr\",S29=0),OR(U29=\"Mgr\",U29=0),OR(W29=\"Mgr\",W29=0)),0,IF(LEFT($A29,2)=\"B*\",VLOOKUP($E29,'1. Checklist & Certification'!$D$26:$E$32,2),IF(LEFT($A29,2)=\"C*\",VLOOKUP($E29,'1. Checklist & Certification'!$F$26:$G$32,2),IF(LEFT($A29,2)=\"D*\",VLOOKUP($E29,'1. Checklist & Certification'!$H$26:$I$32,2),IF(LEFT($A29,2)=\"E*\",VLOOKUP($E29,'1. Checklist & Certification'!$J$26:$K$32,2),VLOOKUP($E29,'1. Checklist & Certification'!$A$26:$B$32,2)))))))","v":0},0,0,null,null,null,null,"","",0,0,0,null,{"$f":"IF(A29=\"\",\"\",'1. Checklist & Certification'!$K$1)","v":""},{"$f":"IF(A29=\"\",\"\",'1. Checklist & Certification'!$C$62)","v":""},{"$f":"IF(A29=\"\",\"\",'1. Checklist & Certification'!$C$6)","v":""},{"$f":"IF(A29=\"\",\"\",'1. Checklist & Certification'!$G$5)","v":""},{"$f":"IFERROR(IF(A29=\"\",\"\",\n_xlfn.LET(_xlpm.Contract,'1. Checklist & Certification'!$C$7,\n_xlpm.Yr,TEXT(MOD(_xlfn.TEXTBEFORE(_xlpm.Contract,\"-\"),100),\"00\"),\n_xlpm.Program,_xlfn.TEXTAFTER(_xlfn.TEXTBEFORE(_xlpm.Contract,\"-\",2),\"-\"),\n_xlpm.CleanProgram,_xlfn.XLOOKUP(_xlpm.Program,SpellCheck[Input],SpellCheck[Correction],_xlpm.Program),\n_xlpm.Number,TEXT(_xlfn.TEXTAFTER(_xlpm.Contract,\"-\",2),\"0000\"),\n_xlfn.CONCAT(_xlpm.Yr,\"-\",_xlpm.CleanProgram,\"-\",_xlpm.Number))\n),\"\")","v":""},{"$f":"IFERROR(IF(A29=\"\",\"\",\n_xlfn.LET(_xlpm.Contract,'1. Checklist & Certification'!$C$8,\n_xlpm.Yr,TEXT(MOD(_xlfn.TEXTBEFORE(_xlpm.Contract,\"-\"),100),\"00\"),\n_xlpm.Program,_xlfn.TEXTAFTER(_xlfn.TEXTBEFORE(_xlpm.Contract,\"-\",2),\"-\"),\n_xlpm.CleanProgram,_xlfn.XLOOKUP(_xlpm.Program,SpellCheck[Input],SpellCheck[Correction],_xlpm.Program),\n_xlpm.Number,TEXT(_xlfn.TEXTAFTER(_xlpm.Contract,\"-\",2),\"0000\"),\n_xlfn.CONCAT(_xlpm.Yr,\"-\",_xlpm.CleanProgram,\"-\",_xlpm.Number))\n),\"\")","v":""},{"$f":"IFERROR(IF(A29=\"\",\"\",\n_xlfn.LET(_xlpm.Contract,'1. Checklist & Certification'!$F$7,\n_xlpm.Yr,TEXT(MOD(_xlfn.TEXTBEFORE(_xlpm.Contract,\"-\"),100),\"00\"),\n_xlpm.Program,_xlfn.TEXTAFTER(_xlfn.TEXTBEFORE(_xlpm.Contract,\"-\",2),\"-\"),\n_xlpm.CleanProgram,_xlfn.XLOOKUP(_xlpm.Program,SpellCheck[Input],SpellCheck[Correction],_xlpm.Program),\n_xlpm.Number,TEXT(_xlfn.TEXTAFTER(_xlpm.Contract,\"-\",2),\"0000\"),\n_xlfn.CONCAT(_xlpm.Yr,\"-\",_xlpm.CleanProgram,\"-\",_xlpm.Number))\n),\"\")","v":""},{"$f":"IFERROR(IF(A29=\"\",\"\",\n_xlfn.LET(_xlpm.Contract,'1. Checklist & Certification'!$F$8,\n_xlpm.Yr,TEXT(MOD(_xlfn.TEXTBEFORE(_xlpm.Contract,\"-\"),100),\"00\"),\n_xlpm.Program,_xlfn.TEXTAFTER(_xlfn.TEXTBEFORE(_xlpm.Contract,\"-\",2),\"-\"),\n_xlpm.CleanProgram,_xlfn.XLOOKUP(_xlpm.Program,SpellCheck[Input],SpellCheck[Correction],_xlpm.Program),\n_xlpm.Number,TEXT(_xlfn.TEXTAFTER(_xlpm.Contract,\"-\",2),\"0000\"),\n_xlfn.CONCAT(_xlpm.Yr,\"-\",_xlpm.CleanProgram,\"-\",_xlpm.Number))\n),\"\")","v":""},{"$f":"IF(A29=\"\",\"\",'1. Checklist & Certification'!$B$9)","v":""},{"$f":"IF(A29=\"\",\"\",'1. Checklist & Certification'!$F$9)","v":""},{"$f":"IF(A29=\"\",\"\",'1. Checklist & Certification'!$C$10)","v":""},{"$f":"IF(A29=\"\",\"\",'1. Checklist & Certification'!$C$11)","v":""},{"$f":"IF(A29=\"\",\"\",'1. Checklist & Certification'!$C$12)","v":""},{"$f":"IF(A29=\"\",\"\",'1. Checklist & Certification'!$B$14)","v":""},{"$f":"IF(A29=\"\",\"\",'1. Checklist & Certification'!$E$14)","v":""},{"$f":"IF(B29=\"\",\"\",'1. Checklist & Certification'!$G$14)","v":""},{"$f":"IF(A29=\"\",\"\",'MHP Family Income & Rent Limits'!$B$3)","v":""},{"$f":"IF(A29=\"\",\"\",'MHP Family Income & Rent Limits'!$J$3)","v":""},{"$f":"IF(A29=\"\",\"\",'MHP Family Income & Rent Limits'!$E$4)","v":""},{"$f":"IF(A29=\"\",\"\",'MHP Family Income & Rent Limits'!$C$7)","v":""},{"$f":"IF(A29=\"\",\"\",'MHP Family Income & Rent Limits'!$F$8)","v":""},{"$f":"IF(A29=\"\",\"\",'1. Checklist & Certification'!$G$4)","v":""},{"$f":"IF(A29=\"\",\"\",'1. Checklist & Certification'!$K$39)","v":""},{"$f":"IF(A29=\"\",\"\",'1. Checklist & Certification'!$K$43)","v":""},{"$f":"IF(A29=\"\",\"\",'1. Checklist & Certification'!$K$45)","v":""},{"$f":"IF(A29=\"\",\"\",'1. Checklist & Certification'!$K$49)","v":""},{"$f":"IF(A29=\"\",\"\",'1. Checklist & Certification'!$K$62)","v":""},{"$f":"IF(A29=\"\",\"\",'1. Checklist & Certification'!$E$66)","v":""},{"$f":"IF(A29=\"\",\"\",'1. Checklist & Certification'!$E$67)","v":""},{"$f":"IF(A29=\"\",\"\",'1. Checklist & Certification'!$E$68)","v":""},{"$f":"IF(A29=\"\",\"\",'1. Checklist & Certification'!$G$66)","v":""},{"$f":"IF(A29=\"\",\"\",'1. Checklist & Certification'!$H$66)","v":""},{"$f":"IF(A29=\"\",\"\",'1. Checklist & Certification'!$I$66)","v":""},{"$f":"IF(A29=\"\",\"\",'1. Checklist & Certification'!$I$67)","v":""},{"$f":"IF(A29=\"\",\"\",'1. Checklist & Certification'!$I$68)","v":""},{"$f":"IF(A29=\"\",\"\",'1. Checklist & Certification'!$B$69)","v":""},{"$f":"IF(A29=\"\",\"\",'1. Checklist & Certification'!$C$69)","v":""},{"$f":"IF(A29=\"\",\"\",'1. Checklist & Certification'!$F$69)","v":""},{"$f":"IF(A29=\"\",\"\",'1. Checklist & Certification'!$G$69)","v":""},{"$f":"IF(A29=\"\",\"\",'1. Checklist & Certification'!$J$69)","v":""},{"$f":"IF(A29=\"\",\"\",'1. Checklist & Certification'!$K$69)","v":""},null,null,{"$f":"IF(AND(OR('1. Checklist & Certification'!$M$16=1,'1. Checklist & Certification'!$M$19=2),AO29>0,B29=\"\",I29>0,AQ29<I29,AV29<>\"Sec 8-Project\"),\"X\",IF(AND(OR('1. Checklist & Certification'!$M$20=4,'1. Checklist & Certification'!$M$21=5,'1. Checklist & Certification'!$M$22=7),AO29>0,B29=\"\",I29>0,K29<I29),\"X\",\"\"))","v":""},{"$f":"IF(A29=\"\",\"\",IF(SUMPRODUCT(-- (ISNUMBER(SEARCH({\"*AHSC*\",\"*FMTW*\",\"*FWHG*\",\"*GHI*\",\"*HHC*\",\"*HLCP*\",\"*HOME*\",\"*LPR*\",\"*MHP*\",\"*NHTF*\",\"*NSP*\",\"*PRP*\",\"*TOD*\",\"*VHHP*\"},'1. Checklist & Certification'!$L$7)))),\"MHP\",\"Legacy\"))","v":""},",,",null,null,null,{"$f":"IF('1. Checklist & Certification'!$M$20=4,\"Both\",IF(OR('1. Checklist & Certification'!$M$15>0,S29=\"CHRP-R\",U29=\"CHRP-R\",W29=\"CHRP-R\",Y29=\"CHRP-R\"),\"Under\",\"No\"))","v":"No"},"No","No",{"$f":"_xlfn.IFS(D29=\"\",\"\",D29=1,'MHP Family Income & Rent Limits'!$E$17,D29=2,'MHP Family Income & Rent Limits'!$F$17,D29=3,'MHP Family Income & Rent Limits'!$G$17,D29=4,'MHP Family Income & Rent Limits'!$H$17,D29=5,'MHP Family Income & Rent Limits'!$I$17,D29=6,'MHP Family Income & Rent Limits'!$J$17,D29=7,'MHP Family Income & Rent Limits'!$K$17,D29=8,'MHP Family Income & Rent Limits'!$L$17)","v":""},"",{"$f":"IF(OR(A29=0,B29=\"X\"),0,MIN(IF(AA29:AD29<>0,AA29:AD29)))","v":0},{"$f":"IF(OR(H29=\"\",I29=\"\"),0,IF(H29*0.3/12>I29,MIN(H29*0.3/12,I29*1.1)+AP29,I29*(1+(VLOOKUP('1. Checklist & Certification'!$F$9,'HLCP-E Rent Change'!$A$1:$D$59,4,FALSE)))+AP29))","v":0}]
[null,null,null,null,null,null,null,null,null,null,null,null,null,null,null,null,null,null,null,null,null,null,null,null,null,null,0,0,0,0,0,0,0,0,{"$f":"IF(OR(A30=0,B30=\"X\"),0,IF(OR(S30=\"FHDP\",S30=\"RHCP-B\",U30=\"FHDP\",U30=\"RHCP-B\",W30=\"FHDP\",W30=\"RHCP-B\",Y30=\"FHDP\",Y30=\"RHCP-B\"),TRUNC((MIN(I30,K30)*(1+'1. Checklist & Certification'!$K$43)+AP30)),0))","v":0},{"$f":"IF(OR(A30=0,B30=\"X\"),0,IF(OR(S30=\"CHRP-R\",S30=\"SERA\",S30=\"SUHRP\",U30=\"CHRP-R\",U30=\"SERA\",U30=\"SUHRP\",W30=\"CHRP-R\",W30=\"SERA\",W30=\"SUHRP\",Y30=\"CHRP-R\",Y30=\"SERA\",Y30=\"SUHRP\"),TRUNC((MIN(I30,K30)*(1+'1. Checklist & Certification'!$K$49))),0))","v":0},{"$f":"IF(OR(A30=0,B30=\"X\"),0,IF(OR(S30=\"CALDAP\",S30=\"DPRLP\",U30=\"CALDAP\",U30=\"DPRLP\",W30=\"CALDAP\",W30=\"DPRLP\",Y30=\"CALDAP\",Y30=\"DPRLP\"),TRUNC(((MIN(I30,K30))*(1+'1. Checklist & Certification'!$G$4))),0))","v":0},0,0,0,{"$f":"IF(OR(A30=0,B30=\"X\"),0,IF(OR(S30=\"PRP\",S30=\"LPR\",U30=\"PRP\",U30=\"LPR\",W30=\"PRP\",W30=\"LPR\",Y30=\"PRP\",Y30=\"LPR\"),MAX(I30+AP30,MIN(IF(AE30:AN30<>0,AE30:AN30))),MIN(IF(AE30:AN30<>0,AE30:AN30))))","v":0},{"$f":"IF(A30=0,0,IF(AND(OR(S30=\"Mgr\",S30=0),OR(U30=\"Mgr\",U30=0),OR(W30=\"Mgr\",W30=0)),0,IF(LEFT($A30,2)=\"B*\",VLOOKUP($E30,'1. Checklist & Certification'!$D$26:$E$32,2),IF(LEFT($A30,2)=\"C*\",VLOOKUP($E30,'1. Checklist & Certification'!$F$26:$G$32,2),IF(LEFT($A30,2)=\"D*\",VLOOKUP($E30,'1. Checklist & Certification'!$H$26:$I$32,2),IF(LEFT($A30,2)=\"E*\",VLOOKUP($E30,'1. Checklist & Certification'!$J$26:$K$32,2),VLOOKUP($E30,'1. Checklist & Certification'!$A$26:$B$32,2)))))))","v":0},0,0,null,null,null,null,"","",0,0,0,null,{"$f":"IF(A30=\"\",\"\",'1. Checklist & Certification'!$K$1)","v":""},{"$f":"IF(A30=\"\",\"\",'1. Checklist & Certification'!$C$62)","v":""},{"$f":"IF(A30=\"\",\"\",'1. Checklist & Certification'!$C$6)","v":""},{"$f":"IF(A30=\"\",\"\",'1. Checklist & Certification'!$G$5)","v":""},{"$f":"IFERROR(IF(A30=\"\",\"\",\n_xlfn.LET(_xlpm.Contract,'1. Checklist & Certification'!$C$7,\n_xlpm.Yr,TEXT(MOD(_xlfn.TEXTBEFORE(_xlpm.Contract,\"-\"),100),\"00\"),\n_xlpm.Program,_xlfn.TEXTAFTER(_xlfn.TEXTBEFORE(_xlpm.Contract,\"-\",2),\"-\"),\n_xlpm.CleanProgram,_xlfn.XLOOKUP(_xlpm.Program,SpellCheck[Input],SpellCheck[Correction],_xlpm.Program),\n_xlpm.Number,TEXT(_xlfn.TEXTAFTER(_xlpm.Contract,\"-\",2),\"0000\"),\n_xlfn.CONCAT(_xlpm.Yr,\"-\",_xlpm.CleanProgram,\"-\",_xlpm.Number))\n),\"\")","v":""},{"$f":"IFERROR(IF(A30=\"\",\"\",\n_xlfn.LET(_xlpm.Contract,'1. Checklist & Certification'!$C$8,\n_xlpm.Yr,TEXT(MOD(_xlfn.TEXTBEFORE(_xlpm.Contract,\"-\"),100),\"00\"),\n_xlpm.Program,_xlfn.TEXTAFTER(_xlfn.TEXTBEFORE(_xlpm.Contract,\"-\",2),\"-\"),\n_xlpm.CleanProgram,_xlfn.XLOOKUP(_xlpm.Program,SpellCheck[Input],SpellCheck[Correction],_xlpm.Program),\n_xlpm.Number,TEXT(_xlfn.TEXTAFTER(_xlpm.Contract,\"-\",2),\"0000\"),\n_xlfn.CONCAT(_xlpm.Yr,\"-\",_xlpm.CleanProgram,\"-\",_xlpm.Number))\n),\"\")","v":""},{"$f":"IFERROR(IF(A30=\"\",\"\",\n_xlfn.LET(_xlpm.Contract,'1. Checklist & Certification'!$F$7,\n_xlpm.Yr,TEXT(MOD(_xlfn.TEXTBEFORE(_xlpm.Contract,\"-\"),100),\"00\"),\n_xlpm.Program,_xlfn.TEXTAFTER(_xlfn.TEXTBEFORE(_xlpm.Contract,\"-\",2),\"-\"),\n_xlpm.CleanProgram,_xlfn.XLOOKUP(_xlpm.Program,SpellCheck[Input],SpellCheck[Correction],_xlpm.Program),\n_xlpm.Number,TEXT(_xlfn.TEXTAFTER(_xlpm.Contract,\"-\",2),\"0000\"),\n_xlfn.CONCAT(_xlpm.Yr,\"-\",_xlpm.CleanProgram,\"-\",_xlpm.Number))\n),\"\")","v":""},{"$f":"IFERROR(IF(A30=\"\",\"\",\n_xlfn.LET(_xlpm.Contract,'1. Checklist & Certification'!$F$8,\n_xlpm.Yr,TEXT(MOD(_xlfn.TEXTBEFORE(_xlpm.Contract,\"-\"),100),\"00\"),\n_xlpm.Program,_xlfn.TEXTAFTER(_xlfn.TEXTBEFORE(_xlpm.Contract,\"-\",2),\"-\"),\n_xlpm.CleanProgram,_xlfn.XLOOKUP(_xlpm.Program,SpellCheck[Input],SpellCheck[Correction],_xlpm.Program),\n_xlpm.Number,TEXT(_xlfn.TEXTAFTER(_xlpm.Contract,\"-\",2),\"0000\"),\n_xlfn.CONCAT(_xlpm.Yr,\"-\",_xlpm.CleanProgram,\"-\",_xlpm.Number))\n),\"\")","v":""},{"$f":"IF(A30=\"\",\"\",'1. Checklist & Certification'!$B$9)","v":""},{"$f":"IF(A30=\"\",\"\",'1. Checklist & Certification'!$F$9)","v":""},{"$f":"IF(A30=\"\",\"\",'1. Checklist & Certification'!$C$10)","v":""},{"$f":"IF(A30=\"\",\"\",'1. Checklist & Certification'!$C$11)","v":""},{"$f":"IF(A30=\"\",\"\",'1. Checklist & Certification'!$C$12)","v":""},{"$f":"IF(A30=\"\",\"\",'1. Checklist & Certification'!$B$14)","v":""},{"$f":"IF(A30=\"\",\"\",'1. Checklist & Certification'!$E$14)","v":""},{"$f":"IF(B30=\"\",\"\",'1. Checklist & Certification'!$G$14)","v":""},{"$f":"IF(A30=\"\",\"\",'MHP Family Income & Rent Limits'!$B$3)","v":""},{"$f":"IF(A30=\"\",\"\",'MHP Family Income & Rent Limits'!$J$3)","v":""},{"$f":"IF(A30=\"\",\"\",'MHP Family Income & Rent Limits'!$E$4)","v":""},{"$f":"IF(A30=\"\",\"\",'MHP Family Income & Rent Limits'!$C$7)","v":""},{"$f":"IF(A30=\"\",\"\",'MHP Family Income & Rent Limits'!$F$8)","v":""},{"$f":"IF(A30=\"\",\"\",'1. Checklist & Certification'!$G$4)","v":""},{"$f":"IF(A30=\"\",\"\",'1. Checklist & Certification'!$K$39)","v":""},{"$f":"IF(A30=\"\",\"\",'1. Checklist & Certification'!$K$43)","v":""},{"$f":"IF(A30=\"\",\"\",'1. Checklist & Certification'!$K$45)","v":""},{"$f":"IF(A30=\"\",\"\",'1. Checklist & Certification'!$K$49)","v":""},{"$f":"IF(A30=\"\",\"\",'1. Checklist & Certification'!$K$62)","v":""},{"$f":"IF(A30=\"\",\"\",'1. Checklist & Certification'!$E$66)","v":""},{"$f":"IF(A30=\"\",\"\",'1. Checklist & Certification'!$E$67)","v":""},{"$f":"IF(A30=\"\",\"\",'1. Checklist & Certification'!$E$68)","v":""},{"$f":"IF(A30=\"\",\"\",'1. Checklist & Certification'!$G$66)","v":""},{"$f":"IF(A30=\"\",\"\",'1. Checklist & Certification'!$H$66)","v":""},{"$f":"IF(A30=\"\",\"\",'1. Checklist & Certification'!$I$66)","v":""},{"$f":"IF(A30=\"\",\"\",'1. Checklist & Certification'!$I$67)","v":""},{"$f":"IF(A30=\"\",\"\",'1. Checklist & Certification'!$I$68)","v":""},{"$f":"IF(A30=\"\",\"\",'1. Checklist & Certification'!$B$69)","v":""},{"$f":"IF(A30=\"\",\"\",'1. Checklist & Certification'!$C$69)","v":""},{"$f":"IF(A30=\"\",\"\",'1. Checklist & Certification'!$F$69)","v":""},{"$f":"IF(A30=\"\",\"\",'1. Checklist & Certification'!$G$69)","v":""},{"$f":"IF(A30=\"\",\"\",'1. Checklist & Certification'!$J$69)","v":""},{"$f":"IF(A30=\"\",\"\",'1. Checklist & Certification'!$K$69)","v":""},null,null,{"$f":"IF(AND(OR('1. Checklist & Certification'!$M$16=1,'1. Checklist & Certification'!$M$19=2),AO30>0,B30=\"\",I30>0,AQ30<I30,AV30<>\"Sec 8-Project\"),\"X\",IF(AND(OR('1. Checklist & Certification'!$M$20=4,'1. Checklist & Certification'!$M$21=5,'1. Checklist & Certification'!$M$22=7),AO30>0,B30=\"\",I30>0,K30<I30),\"X\",\"\"))","v":""},{"$f":"IF(A30=\"\",\"\",IF(SUMPRODUCT(-- (ISNUMBER(SEARCH({\"*AHSC*\",\"*FMTW*\",\"*FWHG*\",\"*GHI*\",\"*HHC*\",\"*HLCP*\",\"*HOME*\",\"*LPR*\",\"*MHP*\",\"*NHTF*\",\"*NSP*\",\"*PRP*\",\"*TOD*\",\"*VHHP*\"},'1. Checklist & Certification'!$L$7)))),\"MHP\",\"Legacy\"))","v":""},",,",null,null,null,{"$f":"IF('1. Checklist & Certification'!$M$20=4,\"Both\",IF(OR('1. Checklist & Certification'!$M$15>0,S30=\"CHRP-R\",U30=\"CHRP-R\",W30=\"CHRP-R\",Y30=\"CHRP-R\"),\"Under\",\"No\"))","v":"No"},"No","No",{"$f":"_xlfn.IFS(D30=\"\",\"\",D30=1,'MHP Family Income & Rent Limits'!$E$17,D30=2,'MHP Family Income & Rent Limits'!$F$17,D30=3,'MHP Family Income & Rent Limits'!$G$17,D30=4,'MHP Family Income & Rent Limits'!$H$17,D30=5,'MHP Family Income & Rent Limits'!$I$17,D30=6,'MHP Family Income & Rent Limits'!$J$17,D30=7,'MHP Family Income & Rent Limits'!$K$17,D30=8,'MHP Family Income & Rent Limits'!$L$17)","v":""},"",{"$f":"IF(OR(A30=0,B30=\"X\"),0,MIN(IF(AA30:AD30<>0,AA30:AD30)))","v":0},{"$f":"IF(OR(H30=\"\",I30=\"\"),0,IF(H30*0.3/12>I30,MIN(H30*0.3/12,I30*1.1)+AP30,I30*(1+(VLOOKUP('1. Checklist & Certification'!$F$9,'HLCP-E Rent Change'!$A$1:$D$59,4,FALSE)))+AP30))","v":0}]
[null,null,null,null,null,null,null,null,null,null,null,null,null,null,null,null,null,null,null,null,null,null,null,null,null,null,0,0,0,0,0,0,0,0,{"$f":"IF(OR(A31=0,B31=\"X\"),0,IF(OR(S31=\"FHDP\",S31=\"RHCP-B\",U31=\"FHDP\",U31=\"RHCP-B\",W31=\"FHDP\",W31=\"RHCP-B\",Y31=\"FHDP\",Y31=\"RHCP-B\"),TRUNC((MIN(I31,K31)*(1+'1. Checklist & Certification'!$K$43)+AP31)),0))","v":0},{"$f":"IF(OR(A31=0,B31=\"X\"),0,IF(OR(S31=\"CHRP-R\",S31=\"SERA\",S31=\"SUHRP\",U31=\"CHRP-R\",U31=\"SERA\",U31=\"SUHRP\",W31=\"CHRP-R\",W31=\"SERA\",W31=\"SUHRP\",Y31=\"CHRP-R\",Y31=\"SERA\",Y31=\"SUHRP\"),TRUNC((MIN(I31,K31)*(1+'1. Checklist & Certification'!$K$49))),0))","v":0},{"$f":"IF(OR(A31=0,B31=\"X\"),0,IF(OR(S31=\"CALDAP\",S31=\"DPRLP\",U31=\"CALDAP\",U31=\"DPRLP\",W31=\"CALDAP\",W31=\"DPRLP\",Y31=\"CALDAP\",Y31=\"DPRLP\"),TRUNC(((MIN(I31,K31))*(1+'1. Checklist & Certification'!$G$4))),0))","v":0},0,0,0,{"$f":"IF(OR(A31=0,B31=\"X\"),0,IF(OR(S31=\"PRP\",S31=\"LPR\",U31=\"PRP\",U31=\"LPR\",W31=\"PRP\",W31=\"LPR\",Y31=\"PRP\",Y31=\"LPR\"),MAX(I31+AP31,MIN(IF(AE31:AN31<>0,AE31:AN31))),MIN(IF(AE31:AN31<>0,AE31:AN31))))","v":0},{"$f":"IF(A31=0,0,IF(AND(OR(S31=\"Mgr\",S31=0),OR(U31=\"Mgr\",U31=0),OR(W31=\"Mgr\",W31=0)),0,IF(LEFT($A31,2)=\"B*\",VLOOKUP($E31,'1. Checklist & Certification'!$D$26:$E$32,2),IF(LEFT($A31,2)=\"C*\",VLOOKUP($E31,'1. Checklist & Certification'!$F$26:$G$32,2),IF(LEFT($A31,2)=\"D*\",VLOOKUP($E31,'1. Checklist & Certification'!$H$26:$I$32,2),IF(LEFT($A31,2)=\"E*\",VLOOKUP($E31,'1. Checklist & Certification'!$J$26:$K$32,2),VLOOKUP($E31,'1. Checklist & Certification'!$A$26:$B$32,2)))))))","v":0},0,0,null,null,null,null,"","",0,0,0,null,{"$f":"IF(A31=\"\",\"\",'1. Checklist & Certification'!$K$1)","v":""},{"$f":"IF(A31=\"\",\"\",'1. Checklist & Certification'!$C$62)","v":""},{"$f":"IF(A31=\"\",\"\",'1. Checklist & Certification'!$C$6)","v":""},{"$f":"IF(A31=\"\",\"\",'1. Checklist & Certification'!$G$5)","v":""},{"$f":"IFERROR(IF(A31=\"\",\"\",\n_xlfn.LET(_xlpm.Contract,'1. Checklist & Certification'!$C$7,\n_xlpm.Yr,TEXT(MOD(_xlfn.TEXTBEFORE(_xlpm.Contract,\"-\"),100),\"00\"),\n_xlpm.Program,_xlfn.TEXTAFTER(_xlfn.TEXTBEFORE(_xlpm.Contract,\"-\",2),\"-\"),\n_xlpm.CleanProgram,_xlfn.XLOOKUP(_xlpm.Program,SpellCheck[Input],SpellCheck[Correction],_xlpm.Program),\n_xlpm.Number,TEXT(_xlfn.TEXTAFTER(_xlpm.Contract,\"-\",2),\"0000\"),\n_xlfn.CONCAT(_xlpm.Yr,\"-\",_xlpm.CleanProgram,\"-\",_xlpm.Number))\n),\"\")","v":""},{"$f":"IFERROR(IF(A31=\"\",\"\",\n_xlfn.LET(_xlpm.Contract,'1. Checklist & Certification'!$C$8,\n_xlpm.Yr,TEXT(MOD(_xlfn.TEXTBEFORE(_xlpm.Contract,\"-\"),100),\"00\"),\n_xlpm.Program,_xlfn.TEXTAFTER(_xlfn.TEXTBEFORE(_xlpm.Contract,\"-\",2),\"-\"),\n_xlpm.CleanProgram,_xlfn.XLOOKUP(_xlpm.Program,SpellCheck[Input],SpellCheck[Correction],_xlpm.Program),\n_xlpm.Number,TEXT(_xlfn.TEXTAFTER(_xlpm.Contract,\"-\",2),\"0000\"),\n_xlfn.CONCAT(_xlpm.Yr,\"-\",_xlpm.CleanProgram,\"-\",_xlpm.Number))\n),\"\")","v":""},{"$f":"IFERROR(IF(A31=\"\",\"\",\n_xlfn.LET(_xlpm.Contract,'1. Checklist & Certification'!$F$7,\n_xlpm.Yr,TEXT(MOD(_xlfn.TEXTBEFORE(_xlpm.Contract,\"-\"),100),\"00\"),\n_xlpm.Program,_xlfn.TEXTAFTER(_xlfn.TEXTBEFORE(_xlpm.Contract,\"-\",2),\"-\"),\n_xlpm.CleanProgram,_xlfn.XLOOKUP(_xlpm.Program,SpellCheck[Input],SpellCheck[Correction],_xlpm.Program),\n_xlpm.Number,TEXT(_xlfn.TEXTAFTER(_xlpm.Contract,\"-\",2),\"0000\"),\n_xlfn.CONCAT(_xlpm.Yr,\"-\",_xlpm.CleanProgram,\"-\",_xlpm.Number))\n),\"\")","v":""},{"$f":"IFERROR(IF(A31=\"\",\"\",\n_xlfn.LET(_xlpm.Contract,'1. Checklist & Certification'!$F$8,\n_xlpm.Yr,TEXT(MOD(_xlfn.TEXTBEFORE(_xlpm.Contract,\"-\"),100),\"00\"),\n_xlpm.Program,_xlfn.TEXTAFTER(_xlfn.TEXTBEFORE(_xlpm.Contract,\"-\",2),\"-\"),\n_xlpm.CleanProgram,_xlfn.XLOOKUP(_xlpm.Program,SpellCheck[Input],SpellCheck[Correction],_xlpm.Program),\n_xlpm.Number,TEXT(_xlfn.TEXTAFTER(_xlpm.Contract,\"-\",2),\"0000\"),\n_xlfn.CONCAT(_xlpm.Yr,\"-\",_xlpm.CleanProgram,\"-\",_xlpm.Number))\n),\"\")","v":""},{"$f":"IF(A31=\"\",\"\",'1. Checklist & Certification'!$B$9)","v":""},{"$f":"IF(A31=\"\",\"\",'1. Checklist & Certification'!$F$9)","v":""},{"$f":"IF(A31=\"\",\"\",'1. Checklist & Certification'!$C$10)","v":""},{"$f":"IF(A31=\"\",\"\",'1. Checklist & Certification'!$C$11)","v":""},{"$f":"IF(A31=\"\",\"\",'1. Checklist & Certification'!$C$12)","v":""},{"$f":"IF(A31=\"\",\"\",'1. Checklist & Certification'!$B$14)","v":""},{"$f":"IF(A31=\"\",\"\",'1. Checklist & Certification'!$E$14)","v":""},{"$f":"IF(B31=\"\",\"\",'1. Checklist & Certification'!$G$14)","v":""},{"$f":"IF(A31=\"\",\"\",'MHP Family Income & Rent Limits'!$B$3)","v":""},{"$f":"IF(A31=\"\",\"\",'MHP Family Income & Rent Limits'!$J$3)","v":""},{"$f":"IF(A31=\"\",\"\",'MHP Family Income & Rent Limits'!$E$4)","v":""},{"$f":"IF(A31=\"\",\"\",'MHP Family Income & Rent Limits'!$C$7)","v":""},{"$f":"IF(A31=\"\",\"\",'MHP Family Income & Rent Limits'!$F$8)","v":""},{"$f":"IF(A31=\"\",\"\",'1. Checklist & Certification'!$G$4)","v":""},{"$f":"IF(A31=\"\",\"\",'1. Checklist & Certification'!$K$39)","v":""},{"$f":"IF(A31=\"\",\"\",'1. Checklist & Certification'!$K$43)","v":""},{"$f":"IF(A31=\"\",\"\",'1. Checklist & Certification'!$K$45)","v":""},{"$f":"IF(A31=\"\",\"\",'1. Checklist & Certification'!$K$49)","v":""},{"$f":"IF(A31=\"\",\"\",'1. Checklist & Certification'!$K$62)","v":""},{"$f":"IF(A31=\"\",\"\",'1. Checklist & Certification'!$E$66)","v":""},{"$f":"IF(A31=\"\",\"\",'1. Checklist & Certification'!$E$67)","v":""},{"$f":"IF(A31=\"\",\"\",'1. Checklist & Certification'!$E$68)","v":""},{"$f":"IF(A31=\"\",\"\",'1. Checklist & Certification'!$G$66)","v":""},{"$f":"IF(A31=\"\",\"\",'1. Checklist & Certification'!$H$66)","v":""},{"$f":"IF(A31=\"\",\"\",'1. Checklist & Certification'!$I$66)","v":""},{"$f":"IF(A31=\"\",\"\",'1. Checklist & Certification'!$I$67)","v":""},{"$f":"IF(A31=\"\",\"\",'1. Checklist & Certification'!$I$68)","v":""},{"$f":"IF(A31=\"\",\"\",'1. Checklist & Certification'!$B$69)","v":""},{"$f":"IF(A31=\"\",\"\",'1. Checklist & Certification'!$C$69)","v":""},{"$f":"IF(A31=\"\",\"\",'1. Checklist & Certification'!$F$69)","v":""},{"$f":"IF(A31=\"\",\"\",'1. Checklist & Certification'!$G$69)","v":""},{"$f":"IF(A31=\"\",\"\",'1. Checklist & Certification'!$J$69)","v":""},{"$f":"IF(A31=\"\",\"\",'1. Checklist & Certification'!$K$69)","v":""},null,null,{"$f":"IF(AND(OR('1. Checklist & Certification'!$M$16=1,'1. Checklist & Certification'!$M$19=2),AO31>0,B31=\"\",I31>0,AQ31<I31,AV31<>\"Sec 8-Project\"),\"X\",IF(AND(OR('1. Checklist & Certification'!$M$20=4,'1. Checklist & Certification'!$M$21=5,'1. Checklist & Certification'!$M$22=7),AO31>0,B31=\"\",I31>0,K31<I31),\"X\",\"\"))","v":""},{"$f":"IF(A31=\"\",\"\",IF(SUMPRODUCT(-- (ISNUMBER(SEARCH({\"*AHSC*\",\"*FMTW*\",\"*FWHG*\",\"*GHI*\",\"*HHC*\",\"*HLCP*\",\"*HOME*\",\"*LPR*\",\"*MHP*\",\"*NHTF*\",\"*NSP*\",\"*PRP*\",\"*TOD*\",\"*VHHP*\"},'1. Checklist & Certification'!$L$7)))),\"MHP\",\"Legacy\"))","v":""},",,",null,null,null,{"$f":"IF('1. Checklist & Certification'!$M$20=4,\"Both\",IF(OR('1. Checklist & Certification'!$M$15>0,S31=\"CHRP-R\",U31=\"CHRP-R\",W31=\"CHRP-R\",Y31=\"CHRP-R\"),\"Under\",\"No\"))","v":"No"},"No","No",{"$f":"_xlfn.IFS(D31=\"\",\"\",D31=1,'MHP Family Income & Rent Limits'!$E$17,D31=2,'MHP Family Income & Rent Limits'!$F$17,D31=3,'MHP Family Income & Rent Limits'!$G$17,D31=4,'MHP Family Income & Rent Limits'!$H$17,D31=5,'MHP Family Income & Rent Limits'!$I$17,D31=6,'MHP Family Income & Rent Limits'!$J$17,D31=7,'MHP Family Income & Rent Limits'!$K$17,D31=8,'MHP Family Income & Rent Limits'!$L$17)","v":""},"",{"$f":"IF(OR(A31=0,B31=\"X\"),0,MIN(IF(AA31:AD31<>0,AA31:AD31)))","v":0},{"$f":"IF(OR(H31=\"\",I31=\"\"),0,IF(H31*0.3/12>I31,MIN(H31*0.3/12,I31*1.1)+AP31,I31*(1+(VLOOKUP('1. Checklist & Certification'!$F$9,'HLCP-E Rent Change'!$A$1:$D$59,4,FALSE)))+AP31))","v":0}]
[null,null,null,null,null,null,null,null,null,null,null,null,null,null,null,null,null,null,null,null,null,null,null,null,null,null,0,0,0,0,0,0,0,0,{"$f":"IF(OR(A32=0,B32=\"X\"),0,IF(OR(S32=\"FHDP\",S32=\"RHCP-B\",U32=\"FHDP\",U32=\"RHCP-B\",W32=\"FHDP\",W32=\"RHCP-B\",Y32=\"FHDP\",Y32=\"RHCP-B\"),TRUNC((MIN(I32,K32)*(1+'1. Checklist & Certification'!$K$43)+AP32)),0))","v":0},{"$f":"IF(OR(A32=0,B32=\"X\"),0,IF(OR(S32=\"CHRP-R\",S32=\"SERA\",S32=\"SUHRP\",U32=\"CHRP-R\",U32=\"SERA\",U32=\"SUHRP\",W32=\"CHRP-R\",W32=\"SERA\",W32=\"SUHRP\",Y32=\"CHRP-R\",Y32=\"SERA\",Y32=\"SUHRP\"),TRUNC((MIN(I32,K32)*(1+'1. Checklist & Certification'!$K$49))),0))","v":0},{"$f":"IF(OR(A32=0,B32=\"X\"),0,IF(OR(S32=\"CALDAP\",S32=\"DPRLP\",U32=\"CALDAP\",U32=\"DPRLP\",W32=\"CALDAP\",W32=\"DPRLP\",Y32=\"CALDAP\",Y32=\"DPRLP\"),TRUNC(((MIN(I32,K32))*(1+'1. Checklist & Certification'!$G$4))),0))","v":0},0,0,0,{"$f":"IF(OR(A32=0,B32=\"X\"),0,IF(OR(S32=\"PRP\",S32=\"LPR\",U32=\"PRP\",U32=\"LPR\",W32=\"PRP\",W32=\"LPR\",Y32=\"PRP\",Y32=\"LPR\"),MAX(I32+AP32,MIN(IF(AE32:AN32<>0,AE32:AN32))),MIN(IF(AE32:AN32<>0,AE32:AN32))))","v":0},{"$f":"IF(A32=0,0,IF(AND(OR(S32=\"Mgr\",S32=0),OR(U32=\"Mgr\",U32=0),OR(W32=\"Mgr\",W32=0)),0,IF(LEFT($A32,2)=\"B*\",VLOOKUP($E32,'1. Checklist & Certification'!$D$26:$E$32,2),IF(LEFT($A32,2)=\"C*\",VLOOKUP($E32,'1. Checklist & Certification'!$F$26:$G$32,2),IF(LEFT($A32,2)=\"D*\",VLOOKUP($E32,'1. Checklist & Certification'!$H$26:$I$32,2),IF(LEFT($A32,2)=\"E*\",VLOOKUP($E32,'1. Checklist & Certification'!$J$26:$K$32,2),VLOOKUP($E32,'1. Checklist & Certification'!$A$26:$B$32,2)))))))","v":0},0,0,null,null,null,null,"","",0,0,0,null,{"$f":"IF(A32=\"\",\"\",'1. Checklist & Certification'!$K$1)","v":""},{"$f":"IF(A32=\"\",\"\",'1. Checklist & Certification'!$C$62)","v":""},{"$f":"IF(A32=\"\",\"\",'1. Checklist & Certification'!$C$6)","v":""},{"$f":"IF(A32=\"\",\"\",'1. Checklist & Certification'!$G$5)","v":""},{"$f":"IFERROR(IF(A32=\"\",\"\",\n_xlfn.LET(_xlpm.Contract,'1. Checklist & Certification'!$C$7,\n_xlpm.Yr,TEXT(MOD(_xlfn.TEXTBEFORE(_xlpm.Contract,\"-\"),100),\"00\"),\n_xlpm.Program,_xlfn.TEXTAFTER(_xlfn.TEXTBEFORE(_xlpm.Contract,\"-\",2),\"-\"),\n_xlpm.CleanProgram,_xlfn.XLOOKUP(_xlpm.Program,SpellCheck[Input],SpellCheck[Correction],_xlpm.Program),\n_xlpm.Number,TEXT(_xlfn.TEXTAFTER(_xlpm.Contract,\"-\",2),\"0000\"),\n_xlfn.CONCAT(_xlpm.Yr,\"-\",_xlpm.CleanProgram,\"-\",_xlpm.Number))\n),\"\")","v":""},{"$f":"IFERROR(IF(A32=\"\",\"\",\n_xlfn.LET(_xlpm.Contract,'1. Checklist & Certification'!$C$8,\n_xlpm.Yr,TEXT(MOD(_xlfn.TEXTBEFORE(_xlpm.Contract,\"-\"),100),\"00\"),\n_xlpm.Program,_xlfn.TEXTAFTER(_xlfn.TEXTBEFORE(_xlpm.Contract,\"-\",2),\"-\"),\n_xlpm.CleanProgram,_xlfn.XLOOKUP(_xlpm.Program,SpellCheck[Input],SpellCheck[Correction],_xlpm.Program),\n_xlpm.Number,TEXT(_xlfn.TEXTAFTER(_xlpm.Contract,\"-\",2),\"0000\"),\n_xlfn.CONCAT(_xlpm.Yr,\"-\",_xlpm.CleanProgram,\"-\",_xlpm.Number))\n),\"\")","v":""},{"$f":"IFERROR(IF(A32=\"\",\"\",\n_xlfn.LET(_xlpm.Contract,'1. Checklist & Certification'!$F$7,\n_xlpm.Yr,TEXT(MOD(_xlfn.TEXTBEFORE(_xlpm.Contract,\"-\"),100),\"00\"),\n_xlpm.Program,_xlfn.TEXTAFTER(_xlfn.TEXTBEFORE(_xlpm.Contract,\"-\",2),\"-\"),\n_xlpm.CleanProgram,_xlfn.XLOOKUP(_xlpm.Program,SpellCheck[Input],SpellCheck[Correction],_xlpm.Program),\n_xlpm.Number,TEXT(_xlfn.TEXTAFTER(_xlpm.Contract,\"-\",2),\"0000\"),\n_xlfn.CONCAT(_xlpm.Yr,\"-\",_xlpm.CleanProgram,\"-\",_xlpm.Number))\n),\"\")","v":""},{"$f":"IFERROR(IF(A32=\"\",\"\",\n_xlfn.LET(_xlpm.Contract,'1. Checklist & Certification'!$F$8,\n_xlpm.Yr,TEXT(MOD(_xlfn.TEXTBEFORE(_xlpm.Contract,\"-\"),100),\"00\"),\n_xlpm.Program,_xlfn.TEXTAFTER(_xlfn.TEXTBEFORE(_xlpm.Contract,\"-\",2),\"-\"),\n_xlpm.CleanProgram,_xlfn.XLOOKUP(_xlpm.Program,SpellCheck[Input],SpellCheck[Correction],_xlpm.Program),\n_xlpm.Number,TEXT(_xlfn.TEXTAFTER(_xlpm.Contract,\"-\",2),\"0000\"),\n_xlfn.CONCAT(_xlpm.Yr,\"-\",_xlpm.CleanProgram,\"-\",_xlpm.Number))\n),\"\")","v":""},{"$f":"IF(A32=\"\",\"\",'1. Checklist & Certification'!$B$9)","v":""},{"$f":"IF(A32=\"\",\"\",'1. Checklist & Certification'!$F$9)","v":""},{"$f":"IF(A32=\"\",\"\",'1. Checklist & Certification'!$C$10)","v":""},{"$f":"IF(A32=\"\",\"\",'1. Checklist & Certification'!$C$11)","v":""},{"$f":"IF(A32=\"\",\"\",'1. Checklist & Certification'!$C$12)","v":""},{"$f":"IF(A32=\"\",\"\",'1. Checklist & Certification'!$B$14)","v":""},{"$f":"IF(A32=\"\",\"\",'1. Checklist & Certification'!$E$14)","v":""},{"$f":"IF(B32=\"\",\"\",'1. Checklist & Certification'!$G$14)","v":""},{"$f":"IF(A32=\"\",\"\",'MHP Family Income & Rent Limits'!$B$3)","v":""},{"$f":"IF(A32=\"\",\"\",'MHP Family Income & Rent Limits'!$J$3)","v":""},{"$f":"IF(A32=\"\",\"\",'MHP Family Income & Rent Limits'!$E$4)","v":""},{"$f":"IF(A32=\"\",\"\",'MHP Family Income & Rent Limits'!$C$7)","v":""},{"$f":"IF(A32=\"\",\"\",'MHP Family Income & Rent Limits'!$F$8)","v":""},{"$f":"IF(A32=\"\",\"\",'1. Checklist & Certification'!$G$4)","v":""},{"$f":"IF(A32=\"\",\"\",'1. Checklist & Certification'!$K$39)","v":""},{"$f":"IF(A32=\"\",\"\",'1. Checklist & Certification'!$K$43)","v":""},{"$f":"IF(A32=\"\",\"\",'1. Checklist & Certification'!$K$45)","v":""},{"$f":"IF(A32=\"\",\"\",'1. Checklist & Certification'!$K$49)","v":""},{"$f":"IF(A32=\"\",\"\",'1. Checklist & Certification'!$K$62)","v":""},{"$f":"IF(A32=\"\",\"\",'1. Checklist & Certification'!$E$66)","v":""},{"$f":"IF(A32=\"\",\"\",'1. Checklist & Certification'!$E$67)","v":""},{"$f":"IF(A32=\"\",\"\",'1. Checklist & Certification'!$E$68)","v":""},{"$f":"IF(A32=\"\",\"\",'1. Checklist & Certification'!$G$66)","v":""},{"$f":"IF(A32=\"\",\"\",'1. Checklist & Certification'!$H$66)","v":""},{"$f":"IF(A32=\"\",\"\",'1. Checklist & Certification'!$I$66)","v":""},{"$f":"IF(A32=\"\",\"\",'1. Checklist & Certification'!$I$67)","v":""},{"$f":"IF(A32=\"\",\"\",'1. Checklist & Certification'!$I$68)","v":""},{"$f":"IF(A32=\"\",\"\",'1. Checklist & Certification'!$B$69)","v":""},{"$f":"IF(A32=\"\",\"\",'1. Checklist & Certification'!$C$69)","v":""},{"$f":"IF(A32=\"\",\"\",'1. Checklist & Certification'!$F$69)","v":""},{"$f":"IF(A32=\"\",\"\",'1. Checklist & Certification'!$G$69)","v":""},{"$f":"IF(A32=\"\",\"\",'1. Checklist & Certification'!$J$69)","v":""},{"$f":"IF(A32=\"\",\"\",'1. Checklist & Certification'!$K$69)","v":""},null,null,{"$f":"IF(AND(OR('1. Checklist & Certification'!$M$16=1,'1. Checklist & Certification'!$M$19=2),AO32>0,B32=\"\",I32>0,AQ32<I32,AV32<>\"Sec 8-Project\"),\"X\",IF(AND(OR('1. Checklist & Certification'!$M$20=4,'1. Checklist & Certification'!$M$21=5,'1. Checklist & Certification'!$M$22=7),AO32>0,B32=\"\",I32>0,K32<I32),\"X\",\"\"))","v":""},{"$f":"IF(A32=\"\",\"\",IF(SUMPRODUCT(-- (ISNUMBER(SEARCH({\"*AHSC*\",\"*FMTW*\",\"*FWHG*\",\"*GHI*\",\"*HHC*\",\"*HLCP*\",\"*HOME*\",\"*LPR*\",\"*MHP*\",\"*NHTF*\",\"*NSP*\",\"*PRP*\",\"*TOD*\",\"*VHHP*\"},'1. Checklist & Certification'!$L$7)))),\"MHP\",\"Legacy\"))","v":""},",,",null,null,null,{"$f":"IF('1. Checklist & Certification'!$M$20=4,\"Both\",IF(OR('1. Checklist & Certification'!$M$15>0,S32=\"CHRP-R\",U32=\"CHRP-R\",W32=\"CHRP-R\",Y32=\"CHRP-R\"),\"Under\",\"No\"))","v":"No"},"No","No",{"$f":"_xlfn.IFS(D32=\"\",\"\",D32=1,'MHP Family Income & Rent Limits'!$E$17,D32=2,'MHP Family Income & Rent Limits'!$F$17,D32=3,'MHP Family Income & Rent Limits'!$G$17,D32=4,'MHP Family Income & Rent Limits'!$H$17,D32=5,'MHP Family Income & Rent Limits'!$I$17,D32=6,'MHP Family Income & Rent Limits'!$J$17,D32=7,'MHP Family Income & Rent Limits'!$K$17,D32=8,'MHP Family Income & Rent Limits'!$L$17)","v":""},"",{"$f":"IF(OR(A32=0,B32=\"X\"),0,MIN(IF(AA32:AD32<>0,AA32:AD32)))","v":0},{"$f":"IF(OR(H32=\"\",I32=\"\"),0,IF(H32*0.3/12>I32,MIN(H32*0.3/12,I32*1.1)+AP32,I32*(1+(VLOOKUP('1. Checklist & Certification'!$F$9,'HLCP-E Rent Change'!$A$1:$D$59,4,FALSE)))+AP32))","v":0}]
[null,null,null,null,null,null,null,null,null,null,null,null,null,null,null,null,null,null,null,null,null,null,null,null,null,null,0,0,0,0,0,0,0,0,{"$f":"IF(OR(A33=0,B33=\"X\"),0,IF(OR(S33=\"FHDP\",S33=\"RHCP-B\",U33=\"FHDP\",U33=\"RHCP-B\",W33=\"FHDP\",W33=\"RHCP-B\",Y33=\"FHDP\",Y33=\"RHCP-B\"),TRUNC((MIN(I33,K33)*(1+'1. Checklist & Certification'!$K$43)+AP33)),0))","v":0},{"$f":"IF(OR(A33=0,B33=\"X\"),0,IF(OR(S33=\"CHRP-R\",S33=\"SERA\",S33=\"SUHRP\",U33=\"CHRP-R\",U33=\"SERA\",U33=\"SUHRP\",W33=\"CHRP-R\",W33=\"SERA\",W33=\"SUHRP\",Y33=\"CHRP-R\",Y33=\"SERA\",Y33=\"SUHRP\"),TRUNC((MIN(I33,K33)*(1+'1. Checklist & Certification'!$K$49))),0))","v":0},{"$f":"IF(OR(A33=0,B33=\"X\"),0,IF(OR(S33=\"CALDAP\",S33=\"DPRLP\",U33=\"CALDAP\",U33=\"DPRLP\",W33=\"CALDAP\",W33=\"DPRLP\",Y33=\"CALDAP\",Y33=\"DPRLP\"),TRUNC(((MIN(I33,K33))*(1+'1. Checklist & Certification'!$G$4))),0))","v":0},0,0,0,{"$f":"IF(OR(A33=0,B33=\"X\"),0,IF(OR(S33=\"PRP\",S33=\"LPR\",U33=\"PRP\",U33=\"LPR\",W33=\"PRP\",W33=\"LPR\",Y33=\"PRP\",Y33=\"LPR\"),MAX(I33+AP33,MIN(IF(AE33:AN33<>0,AE33:AN33))),MIN(IF(AE33:AN33<>0,AE33:AN33))))","v":0},{"$f":"IF(A33=0,0,IF(AND(OR(S33=\"Mgr\",S33=0),OR(U33=\"Mgr\",U33=0),OR(W33=\"Mgr\",W33=0)),0,IF(LEFT($A33,2)=\"B*\",VLOOKUP($E33,'1. Checklist & Certification'!$D$26:$E$32,2),IF(LEFT($A33,2)=\"C*\",VLOOKUP($E33,'1. Checklist & Certification'!$F$26:$G$32,2),IF(LEFT($A33,2)=\"D*\",VLOOKUP($E33,'1. Checklist & Certification'!$H$26:$I$32,2),IF(LEFT($A33,2)=\"E*\",VLOOKUP($E33,'1. Checklist & Certification'!$J$26:$K$32,2),VLOOKUP($E33,'1. Checklist & Certification'!$A$26:$B$32,2)))))))","v":0},0,0,null,null,null,null,"","",0,0,0,null,{"$f":"IF(A33=\"\",\"\",'1. Checklist & Certification'!$K$1)","v":""},{"$f":"IF(A33=\"\",\"\",'1. Checklist & Certification'!$C$62)","v":""},{"$f":"IF(A33=\"\",\"\",'1. Checklist & Certification'!$C$6)","v":""},{"$f":"IF(A33=\"\",\"\",'1. Checklist & Certification'!$G$5)","v":""},{"$f":"IFERROR(IF(A33=\"\",\"\",\n_xlfn.LET(_xlpm.Contract,'1. Checklist & Certification'!$C$7,\n_xlpm.Yr,TEXT(MOD(_xlfn.TEXTBEFORE(_xlpm.Contract,\"-\"),100),\"00\"),\n_xlpm.Program,_xlfn.TEXTAFTER(_xlfn.TEXTBEFORE(_xlpm.Contract,\"-\",2),\"-\"),\n_xlpm.CleanProgram,_xlfn.XLOOKUP(_xlpm.Program,SpellCheck[Input],SpellCheck[Correction],_xlpm.Program),\n_xlpm.Number,TEXT(_xlfn.TEXTAFTER(_xlpm.Contract,\"-\",2),\"0000\"),\n_xlfn.CONCAT(_xlpm.Yr,\"-\",_xlpm.CleanProgram,\"-\",_xlpm.Number))\n),\"\")","v":""},{"$f":"IFERROR(IF(A33=\"\",\"\",\n_xlfn.LET(_xlpm.Contract,'1. Checklist & Certification'!$C$8,\n_xlpm.Yr,TEXT(MOD(_xlfn.TEXTBEFORE(_xlpm.Contract,\"-\"),100),\"00\"),\n_xlpm.Program,_xlfn.TEXTAFTER(_xlfn.TEXTBEFORE(_xlpm.Contract,\"-\",2),\"-\"),\n_xlpm.CleanProgram,_xlfn.XLOOKUP(_xlpm.Program,SpellCheck[Input],SpellCheck[Correction],_xlpm.Program),\n_xlpm.Number,TEXT(_xlfn.TEXTAFTER(_xlpm.Contract,\"-\",2),\"0000\"),\n_xlfn.CONCAT(_xlpm.Yr,\"-\",_xlpm.CleanProgram,\"-\",_xlpm.Number))\n),\"\")","v":""},{"$f":"IFERROR(IF(A33=\"\",\"\",\n_xlfn.LET(_xlpm.Contract,'1. Checklist & Certification'!$F$7,\n_xlpm.Yr,TEXT(MOD(_xlfn.TEXTBEFORE(_xlpm.Contract,\"-\"),100),\"00\"),\n_xlpm.Program,_xlfn.TEXTAFTER(_xlfn.TEXTBEFORE(_xlpm.Contract,\"-\",2),\"-\"),\n_xlpm.CleanProgram,_xlfn.XLOOKUP(_xlpm.Program,SpellCheck[Input],SpellCheck[Correction],_xlpm.Program),\n_xlpm.Number,TEXT(_xlfn.TEXTAFTER(_xlpm.Contract,\"-\",2),\"0000\"),\n_xlfn.CONCAT(_xlpm.Yr,\"-\",_xlpm.CleanProgram,\"-\",_xlpm.Number))\n),\"\")","v":""},{"$f":"IFERROR(IF(A33=\"\",\"\",\n_xlfn.LET(_xlpm.Contract,'1. Checklist & Certification'!$F$8,\n_xlpm.Yr,TEXT(MOD(_xlfn.TEXTBEFORE(_xlpm.Contract,\"-\"),100),\"00\"),\n_xlpm.Program,_xlfn.TEXTAFTER(_xlfn.TEXTBEFORE(_xlpm.Contract,\"-\",2),\"-\"),\n_xlpm.CleanProgram,_xlfn.XLOOKUP(_xlpm.Program,SpellCheck[Input],SpellCheck[Correction],_xlpm.Program),\n_xlpm.Number,TEXT(_xlfn.TEXTAFTER(_xlpm.Contract,\"-\",2),\"0000\"),\n_xlfn.CONCAT(_xlpm.Yr,\"-\",_xlpm.CleanProgram,\"-\",_xlpm.Number))\n),\"\")","v":""},{"$f":"IF(A33=\"\",\"\",'1. Checklist & Certification'!$B$9)","v":""},{"$f":"IF(A33=\"\",\"\",'1. Checklist & Certification'!$F$9)","v":""},{"$f":"IF(A33=\"\",\"\",'1. Checklist & Certification'!$C$10)","v":""},{"$f":"IF(A33=\"\",\"\",'1. Checklist & Certification'!$C$11)","v":""},{"$f":"IF(A33=\"\",\"\",'1. Checklist & Certification'!$C$12)","v":""},{"$f":"IF(A33=\"\",\"\",'1. Checklist & Certification'!$B$14)","v":""},{"$f":"IF(A33=\"\",\"\",'1. Checklist & Certification'!$E$14)","v":""},{"$f":"IF(B33=\"\",\"\",'1. Checklist & Certification'!$G$14)","v":""},{"$f":"IF(A33=\"\",\"\",'MHP Family Income & Rent Limits'!$B$3)","v":""},{"$f":"IF(A33=\"\",\"\",'MHP Family Income & Rent Limits'!$J$3)","v":""},{"$f":"IF(A33=\"\",\"\",'MHP Family Income & Rent Limits'!$E$4)","v":""},{"$f":"IF(A33=\"\",\"\",'MHP Family Income & Rent Limits'!$C$7)","v":""},{"$f":"IF(A33=\"\",\"\",'MHP Family Income & Rent Limits'!$F$8)","v":""},{"$f":"IF(A33=\"\",\"\",'1. Checklist & Certification'!$G$4)","v":""},{"$f":"IF(A33=\"\",\"\",'1. Checklist & Certification'!$K$39)","v":""},{"$f":"IF(A33=\"\",\"\",'1. Checklist & Certification'!$K$43)","v":""},{"$f":"IF(A33=\"\",\"\",'1. Checklist & Certification'!$K$45)","v":""},{"$f":"IF(A33=\"\",\"\",'1. Checklist & Certification'!$K$49)","v":""},{"$f":"IF(A33=\"\",\"\",'1. Checklist & Certification'!$K$62)","v":""},{"$f":"IF(A33=\"\",\"\",'1. Checklist & Certification'!$E$66)","v":""},{"$f":"IF(A33=\"\",\"\",'1. Checklist & Certification'!$E$67)","v":""},{"$f":"IF(A33=\"\",\"\",'1. Checklist & Certification'!$E$68)","v":""},{"$f":"IF(A33=\"\",\"\",'1. Checklist & Certification'!$G$66)","v":""},{"$f":"IF(A33=\"\",\"\",'1. Checklist & Certification'!$H$66)","v":""},{"$f":"IF(A33=\"\",\"\",'1. Checklist & Certification'!$I$66)","v":""},{"$f":"IF(A33=\"\",\"\",'1. Checklist & Certification'!$I$67)","v":""},{"$f":"IF(A33=\"\",\"\",'1. Checklist & Certification'!$I$68)","v":""},{"$f":"IF(A33=\"\",\"\",'1. Checklist & Certification'!$B$69)","v":""},{"$f":"IF(A33=\"\",\"\",'1. Checklist & Certification'!$C$69)","v":""},{"$f":"IF(A33=\"\",\"\",'1. Checklist & Certification'!$F$69)","v":""},{"$f":"IF(A33=\"\",\"\",'1. Checklist & Certification'!$G$69)","v":""},{"$f":"IF(A33=\"\",\"\",'1. Checklist & Certification'!$J$69)","v":""},{"$f":"IF(A33=\"\",\"\",'1. Checklist & Certification'!$K$69)","v":""},null,null,{"$f":"IF(AND(OR('1. Checklist & Certification'!$M$16=1,'1. Checklist & Certification'!$M$19=2),AO33>0,B33=\"\",I33>0,AQ33<I33,AV33<>\"Sec 8-Project\"),\"X\",IF(AND(OR('1. Checklist & Certification'!$M$20=4,'1. Checklist & Certification'!$M$21=5,'1. Checklist & Certification'!$M$22=7),AO33>0,B33=\"\",I33>0,K33<I33),\"X\",\"\"))","v":""},{"$f":"IF(A33=\"\",\"\",IF(SUMPRODUCT(-- (ISNUMBER(SEARCH({\"*AHSC*\",\"*FMTW*\",\"*FWHG*\",\"*GHI*\",\"*HHC*\",\"*HLCP*\",\"*HOME*\",\"*LPR*\",\"*MHP*\",\"*NHTF*\",\"*NSP*\",\"*PRP*\",\"*TOD*\",\"*VHHP*\"},'1. Checklist & Certification'!$L$7)))),\"MHP\",\"Legacy\"))","v":""},",,",null,null,null,{"$f":"IF('1. Checklist & Certification'!$M$20=4,\"Both\",IF(OR('1. Checklist & Certification'!$M$15>0,S33=\"CHRP-R\",U33=\"CHRP-R\",W33=\"CHRP-R\",Y33=\"CHRP-R\"),\"Under\",\"No\"))","v":"No"},"No","No",{"$f":"_xlfn.IFS(D33=\"\",\"\",D33=1,'MHP Family Income & Rent Limits'!$E$17,D33=2,'MHP Family Income & Rent Limits'!$F$17,D33=3,'MHP Family Income & Rent Limits'!$G$17,D33=4,'MHP Family Income & Rent Limits'!$H$17,D33=5,'MHP Family Income & Rent Limits'!$I$17,D33=6,'MHP Family Income & Rent Limits'!$J$17,D33=7,'MHP Family Income & Rent Limits'!$K$17,D33=8,'MHP Family Income & Rent Limits'!$L$17)","v":""},"",{"$f":"IF(OR(A33=0,B33=\"X\"),0,MIN(IF(AA33:AD33<>0,AA33:AD33)))","v":0},{"$f":"IF(OR(H33=\"\",I33=\"\"),0,IF(H33*0.3/12>I33,MIN(H33*0.3/12,I33*1.1)+AP33,I33*(1+(VLOOKUP('1. Checklist & Certification'!$F$9,'HLCP-E Rent Change'!$A$1:$D$59,4,FALSE)))+AP33))","v":0}]
[null,null,null,null,null,null,null,null,null,null,null,null,null,null,null,null,null,null,null,null,null,null,null,null,null,null,0,0,0,0,0,0,0,0,{"$f":"IF(OR(A34=0,B34=\"X\"),0,IF(OR(S34=\"FHDP\",S34=\"RHCP-B\",U34=\"FHDP\",U34=\"RHCP-B\",W34=\"FHDP\",W34=\"RHCP-B\",Y34=\"FHDP\",Y34=\"RHCP-B\"),TRUNC((MIN(I34,K34)*(1+'1. Checklist & Certification'!$K$43)+AP34)),0))","v":0},{"$f":"IF(OR(A34=0,B34=\"X\"),0,IF(OR(S34=\"CHRP-R\",S34=\"SERA\",S34=\"SUHRP\",U34=\"CHRP-R\",U34=\"SERA\",U34=\"SUHRP\",W34=\"CHRP-R\",W34=\"SERA\",W34=\"SUHRP\",Y34=\"CHRP-R\",Y34=\"SERA\",Y34=\"SUHRP\"),TRUNC((MIN(I34,K34)*(1+'1. Checklist & Certification'!$K$49))),0))","v":0},{"$f":"IF(OR(A34=0,B34=\"X\"),0,IF(OR(S34=\"CALDAP\",S34=\"DPRLP\",U34=\"CALDAP\",U34=\"DPRLP\",W34=\"CALDAP\",W34=\"DPRLP\",Y34=\"CALDAP\",Y34=\"DPRLP\"),TRUNC(((MIN(I34,K34))*(1+'1. Checklist & Certification'!$G$4))),0))","v":0},0,0,0,{"$f":"IF(OR(A34=0,B34=\"X\"),0,IF(OR(S34=\"PRP\",S34=\"LPR\",U34=\"PRP\",U34=\"LPR\",W34=\"PRP\",W34=\"LPR\",Y34=\"PRP\",Y34=\"LPR\"),MAX(I34+AP34,MIN(IF(AE34:AN34<>0,AE34:AN34))),MIN(IF(AE34:AN34<>0,AE34:AN34))))","v":0},{"$f":"IF(A34=0,0,IF(AND(OR(S34=\"Mgr\",S34=0),OR(U34=\"Mgr\",U34=0),OR(W34=\"Mgr\",W34=0)),0,IF(LEFT($A34,2)=\"B*\",VLOOKUP($E34,'1. Checklist & Certification'!$D$26:$E$32,2),IF(LEFT($A34,2)=\"C*\",VLOOKUP($E34,'1. Checklist & Certification'!$F$26:$G$32,2),IF(LEFT($A34,2)=\"D*\",VLOOKUP($E34,'1. Checklist & Certification'!$H$26:$I$32,2),IF(LEFT($A34,2)=\"E*\",VLOOKUP($E34,'1. Checklist & Certification'!$J$26:$K$32,2),VLOOKUP($E34,'1. Checklist & Certification'!$A$26:$B$32,2)))))))","v":0},0,0,null,null,null,null,"","",0,0,0,null,{"$f":"IF(A34=\"\",\"\",'1. Checklist & Certification'!$K$1)","v":""},{"$f":"IF(A34=\"\",\"\",'1. Checklist & Certification'!$C$62)","v":""},{"$f":"IF(A34=\"\",\"\",'1. Checklist & Certification'!$C$6)","v":""},{"$f":"IF(A34=\"\",\"\",'1. Checklist & Certification'!$G$5)","v":""},{"$f":"IFERROR(IF(A34=\"\",\"\",\n_xlfn.LET(_xlpm.Contract,'1. Checklist & Certification'!$C$7,\n_xlpm.Yr,TEXT(MOD(_xlfn.TEXTBEFORE(_xlpm.Contract,\"-\"),100),\"00\"),\n_xlpm.Program,_xlfn.TEXTAFTER(_xlfn.TEXTBEFORE(_xlpm.Contract,\"-\",2),\"-\"),\n_xlpm.CleanProgram,_xlfn.XLOOKUP(_xlpm.Program,SpellCheck[Input],SpellCheck[Correction],_xlpm.Program),\n_xlpm.Number,TEXT(_xlfn.TEXTAFTER(_xlpm.Contract,\"-\",2),\"0000\"),\n_xlfn.CONCAT(_xlpm.Yr,\"-\",_xlpm.CleanProgram,\"-\",_xlpm.Number))\n),\"\")","v":""},{"$f":"IFERROR(IF(A34=\"\",\"\",\n_xlfn.LET(_xlpm.Contract,'1. Checklist & Certification'!$C$8,\n_xlpm.Yr,TEXT(MOD(_xlfn.TEXTBEFORE(_xlpm.Contract,\"-\"),100),\"00\"),\n_xlpm.Program,_xlfn.TEXTAFTER(_xlfn.TEXTBEFORE(_xlpm.Contract,\"-\",2),\"-\"),\n_xlpm.CleanProgram,_xlfn.XLOOKUP(_xlpm.Program,SpellCheck[Input],SpellCheck[Correction],_xlpm.Program),\n_xlpm.Number,TEXT(_xlfn.TEXTAFTER(_xlpm.Contract,\"-\",2),\"0000\"),\n_xlfn.CONCAT(_xlpm.Yr,\"-\",_xlpm.CleanProgram,\"-\",_xlpm.Number))\n),\"\")","v":""},{"$f":"IFERROR(IF(A34=\"\",\"\",\n_xlfn.LET(_xlpm.Contract,'1. Checklist & Certification'!$F$7,\n_xlpm.Yr,TEXT(MOD(_xlfn.TEXTBEFORE(_xlpm.Contract,\"-\"),100),\"00\"),\n_xlpm.Program,_xlfn.TEXTAFTER(_xlfn.TEXTBEFORE(_xlpm.Contract,\"-\",2),\"-\"),\n_xlpm.CleanProgram,_xlfn.XLOOKUP(_xlpm.Program,SpellCheck[Input],SpellCheck[Correction],_xlpm.Program),\n_xlpm.Number,TEXT(_xlfn.TEXTAFTER(_xlpm.Contract,\"-\",2),\"0000\"),\n_xlfn.CONCAT(_xlpm.Yr,\"-\",_xlpm.CleanProgram,\"-\",_xlpm.Number))\n),\"\")","v":""},{"$f":"IFERROR(IF(A34=\"\",\"\",\n_xlfn.LET(_xlpm.Contract,'1. Checklist & Certification'!$F$8,\n_xlpm.Yr,TEXT(MOD(_xlfn.TEXTBEFORE(_xlpm.Contract,\"-\"),100),\"00\"),\n_xlpm.Program,_xlfn.TEXTAFTER(_xlfn.TEXTBEFORE(_xlpm.Contract,\"-\",2),\"-\"),\n_xlpm.CleanProgram,_xlfn.XLOOKUP(_xlpm.Program,SpellCheck[Input],SpellCheck[Correction],_xlpm.Program),\n_xlpm.Number,TEXT(_xlfn.TEXTAFTER(_xlpm.Contract,\"-\",2),\"0000\"),\n_xlfn.CONCAT(_xlpm.Yr,\"-\",_xlpm.CleanProgram,\"-\",_xlpm.Number))\n),\"\")","v":""},{"$f":"IF(A34=\"\",\"\",'1. Checklist & Certification'!$B$9)","v":""},{"$f":"IF(A34=\"\",\"\",'1. Checklist & Certification'!$F$9)","v":""},{"$f":"IF(A34=\"\",\"\",'1. Checklist & Certification'!$C$10)","v":""},{"$f":"IF(A34=\"\",\"\",'1. Checklist & Certification'!$C$11)","v":""},{"$f":"IF(A34=\"\",\"\",'1. Checklist & Certification'!$C$12)","v":""},{"$f":"IF(A34=\"\",\"\",'1. Checklist & Certification'!$B$14)","v":""},{"$f":"IF(A34=\"\",\"\",'1. Checklist & Certification'!$E$14)","v":""},{"$f":"IF(B34=\"\",\"\",'1. Checklist & Certification'!$G$14)","v":""},{"$f":"IF(A34=\"\",\"\",'MHP Family Income & Rent Limits'!$B$3)","v":""},{"$f":"IF(A34=\"\",\"\",'MHP Family Income & Rent Limits'!$J$3)","v":""},{"$f":"IF(A34=\"\",\"\",'MHP Family Income & Rent Limits'!$E$4)","v":""},{"$f":"IF(A34=\"\",\"\",'MHP Family Income & Rent Limits'!$C$7)","v":""},{"$f":"IF(A34=\"\",\"\",'MHP Family Income & Rent Limits'!$F$8)","v":""},{"$f":"IF(A34=\"\",\"\",'1. Checklist & Certification'!$G$4)","v":""},{"$f":"IF(A34=\"\",\"\",'1. Checklist & Certification'!$K$39)","v":""},{"$f":"IF(A34=\"\",\"\",'1. Checklist & Certification'!$K$43)","v":""},{"$f":"IF(A34=\"\",\"\",'1. Checklist & Certification'!$K$45)","v":""},{"$f":"IF(A34=\"\",\"\",'1. Checklist & Certification'!$K$49)","v":""},{"$f":"IF(A34=\"\",\"\",'1. Checklist & Certification'!$K$62)","v":""},{"$f":"IF(A34=\"\",\"\",'1. Checklist & Certification'!$E$66)","v":""},{"$f":"IF(A34=\"\",\"\",'1. Checklist & Certification'!$E$67)","v":""},{"$f":"IF(A34=\"\",\"\",'1. Checklist & Certification'!$E$68)","v":""},{"$f":"IF(A34=\"\",\"\",'1. Checklist & Certification'!$G$66)","v":""},{"$f":"IF(A34=\"\",\"\",'1. Checklist & Certification'!$H$66)","v":""},{"$f":"IF(A34=\"\",\"\",'1. Checklist & Certification'!$I$66)","v":""},{"$f":"IF(A34=\"\",\"\",'1. Checklist & Certification'!$I$67)","v":""},{"$f":"IF(A34=\"\",\"\",'1. Checklist & Certification'!$I$68)","v":""},{"$f":"IF(A34=\"\",\"\",'1. Checklist & Certification'!$B$69)","v":""},{"$f":"IF(A34=\"\",\"\",'1. Checklist & Certification'!$C$69)","v":""},{"$f":"IF(A34=\"\",\"\",'1. Checklist & Certification'!$F$69)","v":""},{"$f":"IF(A34=\"\",\"\",'1. Checklist & Certification'!$G$69)","v":""},{"$f":"IF(A34=\"\",\"\",'1. Checklist & Certification'!$J$69)","v":""},{"$f":"IF(A34=\"\",\"\",'1. Checklist & Certification'!$K$69)","v":""},null,null,{"$f":"IF(AND(OR('1. Checklist & Certification'!$M$16=1,'1. Checklist & Certification'!$M$19=2),AO34>0,B34=\"\",I34>0,AQ34<I34,AV34<>\"Sec 8-Project\"),\"X\",IF(AND(OR('1. Checklist & Certification'!$M$20=4,'1. Checklist & Certification'!$M$21=5,'1. Checklist & Certification'!$M$22=7),AO34>0,B34=\"\",I34>0,K34<I34),\"X\",\"\"))","v":""},{"$f":"IF(A34=\"\",\"\",IF(SUMPRODUCT(-- (ISNUMBER(SEARCH({\"*AHSC*\",\"*FMTW*\",\"*FWHG*\",\"*GHI*\",\"*HHC*\",\"*HLCP*\",\"*HOME*\",\"*LPR*\",\"*MHP*\",\"*NHTF*\",\"*NSP*\",\"*PRP*\",\"*TOD*\",\"*VHHP*\"},'1. Checklist & Certification'!$L$7)))),\"MHP\",\"Legacy\"))","v":""},",,",null,null,null,{"$f":"IF('1. Checklist & Certification'!$M$20=4,\"Both\",IF(OR('1. Checklist & Certification'!$M$15>0,S34=\"CHRP-R\",U34=\"CHRP-R\",W34=\"CHRP-R\",Y34=\"CHRP-R\"),\"Under\",\"No\"))","v":"No"},"No","No",{"$f":"_xlfn.IFS(D34=\"\",\"\",D34=1,'MHP Family Income & Rent Limits'!$E$17,D34=2,'MHP Family Income & Rent Limits'!$F$17,D34=3,'MHP Family Income & Rent Limits'!$G$17,D34=4,'MHP Family Income & Rent Limits'!$H$17,D34=5,'MHP Family Income & Rent Limits'!$I$17,D34=6,'MHP Family Income & Rent Limits'!$J$17,D34=7,'MHP Family Income & Rent Limits'!$K$17,D34=8,'MHP Family Income & Rent Limits'!$L$17)","v":""},"",{"$f":"IF(OR(A34=0,B34=\"X\"),0,MIN(IF(AA34:AD34<>0,AA34:AD34)))","v":0},{"$f":"IF(OR(H34=\"\",I34=\"\"),0,IF(H34*0.3/12>I34,MIN(H34*0.3/12,I34*1.1)+AP34,I34*(1+(VLOOKUP('1. Checklist & Certification'!$F$9,'HLCP-E Rent Change'!$A$1:$D$59,4,FALSE)))+AP34))","v":0}]
[null,null,null,null,null,null,null,null,null,null,null,null,null,null,null,null,null,null,null,null,null,null,null,null,null,null,0,0,0,0,0,0,0,0,{"$f":"IF(OR(A35=0,B35=\"X\"),0,IF(OR(S35=\"FHDP\",S35=\"RHCP-B\",U35=\"FHDP\",U35=\"RHCP-B\",W35=\"FHDP\",W35=\"RHCP-B\",Y35=\"FHDP\",Y35=\"RHCP-B\"),TRUNC((MIN(I35,K35)*(1+'1. Checklist & Certification'!$K$43)+AP35)),0))","v":0},{"$f":"IF(OR(A35=0,B35=\"X\"),0,IF(OR(S35=\"CHRP-R\",S35=\"SERA\",S35=\"SUHRP\",U35=\"CHRP-R\",U35=\"SERA\",U35=\"SUHRP\",W35=\"CHRP-R\",W35=\"SERA\",W35=\"SUHRP\",Y35=\"CHRP-R\",Y35=\"SERA\",Y35=\"SUHRP\"),TRUNC((MIN(I35,K35)*(1+'1. Checklist & Certification'!$K$49))),0))","v":0},{"$f":"IF(OR(A35=0,B35=\"X\"),0,IF(OR(S35=\"CALDAP\",S35=\"DPRLP\",U35=\"CALDAP\",U35=\"DPRLP\",W35=\"CALDAP\",W35=\"DPRLP\",Y35=\"CALDAP\",Y35=\"DPRLP\"),TRUNC(((MIN(I35,K35))*(1+'1. Checklist & Certification'!$G$4))),0))","v":0},0,0,0,{"$f":"IF(OR(A35=0,B35=\"X\"),0,IF(OR(S35=\"PRP\",S35=\"LPR\",U35=\"PRP\",U35=\"LPR\",W35=\"PRP\",W35=\"LPR\",Y35=\"PRP\",Y35=\"LPR\"),MAX(I35+AP35,MIN(IF(AE35:AN35<>0,AE35:AN35))),MIN(IF(AE35:AN35<>0,AE35:AN35))))","v":0},{"$f":"IF(A35=0,0,IF(AND(OR(S35=\"Mgr\",S35=0),OR(U35=\"Mgr\",U35=0),OR(W35=\"Mgr\",W35=0)),0,IF(LEFT($A35,2)=\"B*\",VLOOKUP($E35,'1. Checklist & Certification'!$D$26:$E$32,2),IF(LEFT($A35,2)=\"C*\",VLOOKUP($E35,'1. Checklist & Certification'!$F$26:$G$32,2),IF(LEFT($A35,2)=\"D*\",VLOOKUP($E35,'1. Checklist & Certification'!$H$26:$I$32,2),IF(LEFT($A35,2)=\"E*\",VLOOKUP($E35,'1. Checklist & Certification'!$J$26:$K$32,2),VLOOKUP($E35,'1. Checklist & Certification'!$A$26:$B$32,2)))))))","v":0},0,0,null,null,null,null,"","",0,0,0,null,{"$f":"IF(A35=\"\",\"\",'1. Checklist & Certification'!$K$1)","v":""},{"$f":"IF(A35=\"\",\"\",'1. Checklist & Certification'!$C$62)","v":""},{"$f":"IF(A35=\"\",\"\",'1. Checklist & Certification'!$C$6)","v":""},{"$f":"IF(A35=\"\",\"\",'1. Checklist & Certification'!$G$5)","v":""},{"$f":"IFERROR(IF(A35=\"\",\"\",\n_xlfn.LET(_xlpm.Contract,'1. Checklist & Certification'!$C$7,\n_xlpm.Yr,TEXT(MOD(_xlfn.TEXTBEFORE(_xlpm.Contract,\"-\"),100),\"00\"),\n_xlpm.Program,_xlfn.TEXTAFTER(_xlfn.TEXTBEFORE(_xlpm.Contract,\"-\",2),\"-\"),\n_xlpm.CleanProgram,_xlfn.XLOOKUP(_xlpm.Program,SpellCheck[Input],SpellCheck[Correction],_xlpm.Program),\n_xlpm.Number,TEXT(_xlfn.TEXTAFTER(_xlpm.Contract,\"-\",2),\"0000\"),\n_xlfn.CONCAT(_xlpm.Yr,\"-\",_xlpm.CleanProgram,\"-\",_xlpm.Number))\n),\"\")","v":""},{"$f":"IFERROR(IF(A35=\"\",\"\",\n_xlfn.LET(_xlpm.Contract,'1. Checklist & Certification'!$C$8,\n_xlpm.Yr,TEXT(MOD(_xlfn.TEXTBEFORE(_xlpm.Contract,\"-\"),100),\"00\"),\n_xlpm.Program,_xlfn.TEXTAFTER(_xlfn.TEXTBEFORE(_xlpm.Contract,\"-\",2),\"-\"),\n_xlpm.CleanProgram,_xlfn.XLOOKUP(_xlpm.Program,SpellCheck[Input],SpellCheck[Correction],_xlpm.Program),\n_xlpm.Number,TEXT(_xlfn.TEXTAFTER(_xlpm.Contract,\"-\",2),\"0000\"),\n_xlfn.CONCAT(_xlpm.Yr,\"-\",_xlpm.CleanProgram,\"-\",_xlpm.Number))\n),\"\")","v":""},{"$f":"IFERROR(IF(A35=\"\",\"\",\n_xlfn.LET(_xlpm.Contract,'1. Checklist & Certification'!$F$7,\n_xlpm.Yr,TEXT(MOD(_xlfn.TEXTBEFORE(_xlpm.Contract,\"-\"),100),\"00\"),\n_xlpm.Program,_xlfn.TEXTAFTER(_xlfn.TEXTBEFORE(_xlpm.Contract,\"-\",2),\"-\"),\n_xlpm.CleanProgram,_xlfn.XLOOKUP(_xlpm.Program,SpellCheck[Input],SpellCheck[Correction],_xlpm.Program),\n_xlpm.Number,TEXT(_xlfn.TEXTAFTER(_xlpm.Contract,\"-\",2),\"0000\"),\n_xlfn.CONCAT(_xlpm.Yr,\"-\",_xlpm.CleanProgram,\"-\",_xlpm.Number))\n),\"\")","v":""},{"$f":"IFERROR(IF(A35=\"\",\"\",\n_xlfn.LET(_xlpm.Contract,'1. Checklist & Certification'!$F$8,\n_xlpm.Yr,TEXT(MOD(_xlfn.TEXTBEFORE(_xlpm.Contract,\"-\"),100),\"00\"),\n_xlpm.Program,_xlfn.TEXTAFTER(_xlfn.TEXTBEFORE(_xlpm.Contract,\"-\",2),\"-\"),\n_xlpm.CleanProgram,_xlfn.XLOOKUP(_xlpm.Program,SpellCheck[Input],SpellCheck[Correction],_xlpm.Program),\n_xlpm.Number,TEXT(_xlfn.TEXTAFTER(_xlpm.Contract,\"-\",2),\"0000\"),\n_xlfn.CONCAT(_xlpm.Yr,\"-\",_xlpm.CleanProgram,\"-\",_xlpm.Number))\n),\"\")","v":""},{"$f":"IF(A35=\"\",\"\",'1. Checklist & Certification'!$B$9)","v":""},{"$f":"IF(A35=\"\",\"\",'1. Checklist & Certification'!$F$9)","v":""},{"$f":"IF(A35=\"\",\"\",'1. Checklist & Certification'!$C$10)","v":""},{"$f":"IF(A35=\"\",\"\",'1. Checklist & Certification'!$C$11)","v":""},{"$f":"IF(A35=\"\",\"\",'1. Checklist & Certification'!$C$12)","v":""},{"$f":"IF(A35=\"\",\"\",'1. Checklist & Certification'!$B$14)","v":""},{"$f":"IF(A35=\"\",\"\",'1. Checklist & Certification'!$E$14)","v":""},{"$f":"IF(B35=\"\",\"\",'1. Checklist & Certification'!$G$14)","v":""},{"$f":"IF(A35=\"\",\"\",'MHP Family Income & Rent Limits'!$B$3)","v":""},{"$f":"IF(A35=\"\",\"\",'MHP Family Income & Rent Limits'!$J$3)","v":""},{"$f":"IF(A35=\"\",\"\",'MHP Family Income & Rent Limits'!$E$4)","v":""},{"$f":"IF(A35=\"\",\"\",'MHP Family Income & Rent Limits'!$C$7)","v":""},{"$f":"IF(A35=\"\",\"\",'MHP Family Income & Rent Limits'!$F$8)","v":""},{"$f":"IF(A35=\"\",\"\",'1. Checklist & Certification'!$G$4)","v":""},{"$f":"IF(A35=\"\",\"\",'1. Checklist & Certification'!$K$39)","v":""},{"$f":"IF(A35=\"\",\"\",'1. Checklist & Certification'!$K$43)","v":""},{"$f":"IF(A35=\"\",\"\",'1. Checklist & Certification'!$K$45)","v":""},{"$f":"IF(A35=\"\",\"\",'1. Checklist & Certification'!$K$49)","v":""},{"$f":"IF(A35=\"\",\"\",'1. Checklist & Certification'!$K$62)","v":""},{"$f":"IF(A35=\"\",\"\",'1. Checklist & Certification'!$E$66)","v":""},{"$f":"IF(A35=\"\",\"\",'1. Checklist & Certification'!$E$67)","v":""},{"$f":"IF(A35=\"\",\"\",'1. Checklist & Certification'!$E$68)","v":""},{"$f":"IF(A35=\"\",\"\",'1. Checklist & Certification'!$G$66)","v":""},{"$f":"IF(A35=\"\",\"\",'1. Checklist & Certification'!$H$66)","v":""},{"$f":"IF(A35=\"\",\"\",'1. Checklist & Certification'!$I$66)","v":""},{"$f":"IF(A35=\"\",\"\",'1. Checklist & Certification'!$I$67)","v":""},{"$f":"IF(A35=\"\",\"\",'1. Checklist & Certification'!$I$68)","v":""},{"$f":"IF(A35=\"\",\"\",'1. Checklist & Certification'!$B$69)","v":""},{"$f":"IF(A35=\"\",\"\",'1. Checklist & Certification'!$C$69)","v":""},{"$f":"IF(A35=\"\",\"\",'1. Checklist & Certification'!$F$69)","v":""},{"$f":"IF(A35=\"\",\"\",'1. Checklist & Certification'!$G$69)","v":""},{"$f":"IF(A35=\"\",\"\",'1. Checklist & Certification'!$J$69)","v":""},{"$f":"IF(A35=\"\",\"\",'1. Checklist & Certification'!$K$69)","v":""},null,null,{"$f":"IF(AND(OR('1. Checklist & Certification'!$M$16=1,'1. Checklist & Certification'!$M$19=2),AO35>0,B35=\"\",I35>0,AQ35<I35,AV35<>\"Sec 8-Project\"),\"X\",IF(AND(OR('1. Checklist & Certification'!$M$20=4,'1. Checklist & Certification'!$M$21=5,'1. Checklist & Certification'!$M$22=7),AO35>0,B35=\"\",I35>0,K35<I35),\"X\",\"\"))","v":""},{"$f":"IF(A35=\"\",\"\",IF(SUMPRODUCT(-- (ISNUMBER(SEARCH({\"*AHSC*\",\"*FMTW*\",\"*FWHG*\",\"*GHI*\",\"*HHC*\",\"*HLCP*\",\"*HOME*\",\"*LPR*\",\"*MHP*\",\"*NHTF*\",\"*NSP*\",\"*PRP*\",\"*TOD*\",\"*VHHP*\"},'1. Checklist & Certification'!$L$7)))),\"MHP\",\"Legacy\"))","v":""},",,",null,null,null,{"$f":"IF('1. Checklist & Certification'!$M$20=4,\"Both\",IF(OR('1. Checklist & Certification'!$M$15>0,S35=\"CHRP-R\",U35=\"CHRP-R\",W35=\"CHRP-R\",Y35=\"CHRP-R\"),\"Under\",\"No\"))","v":"No"},"No","No",{"$f":"_xlfn.IFS(D35=\"\",\"\",D35=1,'MHP Family Income & Rent Limits'!$E$17,D35=2,'MHP Family Income & Rent Limits'!$F$17,D35=3,'MHP Family Income & Rent Limits'!$G$17,D35=4,'MHP Family Income & Rent Limits'!$H$17,D35=5,'MHP Family Income & Rent Limits'!$I$17,D35=6,'MHP Family Income & Rent Limits'!$J$17,D35=7,'MHP Family Income & Rent Limits'!$K$17,D35=8,'MHP Family Income & Rent Limits'!$L$17)","v":""},"",{"$f":"IF(OR(A35=0,B35=\"X\"),0,MIN(IF(AA35:AD35<>0,AA35:AD35)))","v":0},{"$f":"IF(OR(H35=\"\",I35=\"\"),0,IF(H35*0.3/12>I35,MIN(H35*0.3/12,I35*1.1)+AP35,I35*(1+(VLOOKUP('1. Checklist & Certification'!$F$9,'HLCP-E Rent Change'!$A$1:$D$59,4,FALSE)))+AP35))","v":0}]
[null,null,null,null,null,null,null,null,null,null,null,null,null,null,null,null,null,null,null,null,null,null,null,null,null,null,0,0,0,0,0,0,0,0,{"$f":"IF(OR(A36=0,B36=\"X\"),0,IF(OR(S36=\"FHDP\",S36=\"RHCP-B\",U36=\"FHDP\",U36=\"RHCP-B\",W36=\"FHDP\",W36=\"RHCP-B\",Y36=\"FHDP\",Y36=\"RHCP-B\"),TRUNC((MIN(I36,K36)*(1+'1. Checklist & Certification'!$K$43)+AP36)),0))","v":0},{"$f":"IF(OR(A36=0,B36=\"X\"),0,IF(OR(S36=\"CHRP-R\",S36=\"SERA\",S36=\"SUHRP\",U36=\"CHRP-R\",U36=\"SERA\",U36=\"SUHRP\",W36=\"CHRP-R\",W36=\"SERA\",W36=\"SUHRP\",Y36=\"CHRP-R\",Y36=\"SERA\",Y36=\"SUHRP\"),TRUNC((MIN(I36,K36)*(1+'1. Checklist & Certification'!$K$49))),0))","v":0},{"$f":"IF(OR(A36=0,B36=\"X\"),0,IF(OR(S36=\"CALDAP\",S36=\"DPRLP\",U36=\"CALDAP\",U36=\"DPRLP\",W36=\"CALDAP\",W36=\"DPRLP\",Y36=\"CALDAP\",Y36=\"DPRLP\"),TRUNC(((MIN(I36,K36))*(1+'1. Checklist & Certification'!$G$4))),0))","v":0},0,0,0,{"$f":"IF(OR(A36=0,B36=\"X\"),0,IF(OR(S36=\"PRP\",S36=\"LPR\",U36=\"PRP\",U36=\"LPR\",W36=\"PRP\",W36=\"LPR\",Y36=\"PRP\",Y36=\"LPR\"),MAX(I36+AP36,MIN(IF(AE36:AN36<>0,AE36:AN36))),MIN(IF(AE36:AN36<>0,AE36:AN36))))","v":0},{"$f":"IF(A36=0,0,IF(AND(OR(S36=\"Mgr\",S36=0),OR(U36=\"Mgr\",U36=0),OR(W36=\"Mgr\",W36=0)),0,IF(LEFT($A36,2)=\"B*\",VLOOKUP($E36,'1. Checklist & Certification'!$D$26:$E$32,2),IF(LEFT($A36,2)=\"C*\",VLOOKUP($E36,'1. Checklist & Certification'!$F$26:$G$32,2),IF(LEFT($A36,2)=\"D*\",VLOOKUP($E36,'1. Checklist & Certification'!$H$26:$I$32,2),IF(LEFT($A36,2)=\"E*\",VLOOKUP($E36,'1. Checklist & Certification'!$J$26:$K$32,2),VLOOKUP($E36,'1. Checklist & Certification'!$A$26:$B$32,2)))))))","v":0},0,0,null,null,null,null,"","",0,0,0,null,{"$f":"IF(A36=\"\",\"\",'1. Checklist & Certification'!$K$1)","v":""},{"$f":"IF(A36=\"\",\"\",'1. Checklist & Certification'!$C$62)","v":""},{"$f":"IF(A36=\"\",\"\",'1. Checklist & Certification'!$C$6)","v":""},{"$f":"IF(A36=\"\",\"\",'1. Checklist & Certification'!$G$5)","v":""},{"$f":"IFERROR(IF(A36=\"\",\"\",\n_xlfn.LET(_xlpm.Contract,'1. Checklist & Certification'!$C$7,\n_xlpm.Yr,TEXT(MOD(_xlfn.TEXTBEFORE(_xlpm.Contract,\"-\"),100),\"00\"),\n_xlpm.Program,_xlfn.TEXTAFTER(_xlfn.TEXTBEFORE(_xlpm.Contract,\"-\",2),\"-\"),\n_xlpm.CleanProgram,_xlfn.XLOOKUP(_xlpm.Program,SpellCheck[Input],SpellCheck[Correction],_xlpm.Program),\n_xlpm.Number,TEXT(_xlfn.TEXTAFTER(_xlpm.Contract,\"-\",2),\"0000\"),\n_xlfn.CONCAT(_xlpm.Yr,\"-\",_xlpm.CleanProgram,\"-\",_xlpm.Number))\n),\"\")","v":""},{"$f":"IFERROR(IF(A36=\"\",\"\",\n_xlfn.LET(_xlpm.Contract,'1. Checklist & Certification'!$C$8,\n_xlpm.Yr,TEXT(MOD(_xlfn.TEXTBEFORE(_xlpm.Contract,\"-\"),100),\"00\"),\n_xlpm.Program,_xlfn.TEXTAFTER(_xlfn.TEXTBEFORE(_xlpm.Contract,\"-\",2),\"-\"),\n_xlpm.CleanProgram,_xlfn.XLOOKUP(_xlpm.Program,SpellCheck[Input],SpellCheck[Correction],_xlpm.Program),\n_xlpm.Number,TEXT(_xlfn.TEXTAFTER(_xlpm.Contract,\"-\",2),\"0000\"),\n_xlfn.CONCAT(_xlpm.Yr,\"-\",_xlpm.CleanProgram,\"-\",_xlpm.Number))\n),\"\")","v":""},{"$f":"IFERROR(IF(A36=\"\",\"\",\n_xlfn.LET(_xlpm.Contract,'1. Checklist & Certification'!$F$7,\n_xlpm.Yr,TEXT(MOD(_xlfn.TEXTBEFORE(_xlpm.Contract,\"-\"),100),\"00\"),\n_xlpm.Program,_xlfn.TEXTAFTER(_xlfn.TEXTBEFORE(_xlpm.Contract,\"-\",2),\"-\"),\n_xlpm.CleanProgram,_xlfn.XLOOKUP(_xlpm.Program,SpellCheck[Input],SpellCheck[Correction],_xlpm.Program),\n_xlpm.Number,TEXT(_xlfn.TEXTAFTER(_xlpm.Contract,\"-\",2),\"0000\"),\n_xlfn.CONCAT(_xlpm.Yr,\"-\",_xlpm.CleanProgram,\"-\",_xlpm.Number))\n),\"\")","v":""},{"$f":"IFERROR(IF(A36=\"\",\"\",\n_xlfn.LET(_xlpm.Contract,'1. Checklist & Certification'!$F$8,\n_xlpm.Yr,TEXT(MOD(_xlfn.TEXTBEFORE(_xlpm.Contract,\"-\"),100),\"00\"),\n_xlpm.Program,_xlfn.TEXTAFTER(_xlfn.TEXTBEFORE(_xlpm.Contract,\"-\",2),\"-\"),\n_xlpm.CleanProgram,_xlfn.XLOOKUP(_xlpm.Program,SpellCheck[Input],SpellCheck[Correction],_xlpm.Program),\n_xlpm.Number,TEXT(_xlfn.TEXTAFTER(_xlpm.Contract,\"-\",2),\"0000\"),\n_xlfn.CONCAT(_xlpm.Yr,\"-\",_xlpm.CleanProgram,\"-\",_xlpm.Number))\n),\"\")","v":""},{"$f":"IF(A36=\"\",\"\",'1. Checklist & Certification'!$B$9)","v":""},{"$f":"IF(A36=\"\",\"\",'1. Checklist & Certification'!$F$9)","v":""},{"$f":"IF(A36=\"\",\"\",'1. Checklist & Certification'!$C$10)","v":""},{"$f":"IF(A36=\"\",\"\",'1. Checklist & Certification'!$C$11)","v":""},{"$f":"IF(A36=\"\",\"\",'1. Checklist & Certification'!$C$12)","v":""},{"$f":"IF(A36=\"\",\"\",'1. Checklist & Certification'!$B$14)","v":""},{"$f":"IF(A36=\"\",\"\",'1. Checklist & Certification'!$E$14)","v":""},{"$f":"IF(B36=\"\",\"\",'1. Checklist & Certification'!$G$14)","v":""},{"$f":"IF(A36=\"\",\"\",'MHP Family Income & Rent Limits'!$B$3)","v":""},{"$f":"IF(A36=\"\",\"\",'MHP Family Income & Rent Limits'!$J$3)","v":""},{"$f":"IF(A36=\"\",\"\",'MHP Family Income & Rent Limits'!$E$4)","v":""},{"$f":"IF(A36=\"\",\"\",'MHP Family Income & Rent Limits'!$C$7)","v":""},{"$f":"IF(A36=\"\",\"\",'MHP Family Income & Rent Limits'!$F$8)","v":""},{"$f":"IF(A36=\"\",\"\",'1. Checklist & Certification'!$G$4)","v":""},{"$f":"IF(A36=\"\",\"\",'1. Checklist & Certification'!$K$39)","v":""},{"$f":"IF(A36=\"\",\"\",'1. Checklist & Certification'!$K$43)","v":""},{"$f":"IF(A36=\"\",\"\",'1. Checklist & Certification'!$K$45)","v":""},{"$f":"IF(A36=\"\",\"\",'1. Checklist & Certification'!$K$49)","v":""},{"$f":"IF(A36=\"\",\"\",'1. Checklist & Certification'!$K$62)","v":""},{"$f":"IF(A36=\"\",\"\",'1. Checklist & Certification'!$E$66)","v":""},{"$f":"IF(A36=\"\",\"\",'1. Checklist & Certification'!$E$67)","v":""},{"$f":"IF(A36=\"\",\"\",'1. Checklist & Certification'!$E$68)","v":""},{"$f":"IF(A36=\"\",\"\",'1. Checklist & Certification'!$G$66)","v":""},{"$f":"IF(A36=\"\",\"\",'1. Checklist & Certification'!$H$66)","v":""},{"$f":"IF(A36=\"\",\"\",'1. Checklist & Certification'!$I$66)","v":""},{"$f":"IF(A36=\"\",\"\",'1. Checklist & Certification'!$I$67)","v":""},{"$f":"IF(A36=\"\",\"\",'1. Checklist & Certification'!$I$68)","v":""},{"$f":"IF(A36=\"\",\"\",'1. Checklist & Certification'!$B$69)","v":""},{"$f":"IF(A36=\"\",\"\",'1. Checklist & Certification'!$C$69)","v":""},{"$f":"IF(A36=\"\",\"\",'1. Checklist & Certification'!$F$69)","v":""},{"$f":"IF(A36=\"\",\"\",'1. Checklist & Certification'!$G$69)","v":""},{"$f":"IF(A36=\"\",\"\",'1. Checklist & Certification'!$J$69)","v":""},{"$f":"IF(A36=\"\",\"\",'1. Checklist & Certification'!$K$69)","v":""},null,null,{"$f":"IF(AND(OR('1. Checklist & Certification'!$M$16=1,'1. Checklist & Certification'!$M$19=2),AO36>0,B36=\"\",I36>0,AQ36<I36,AV36<>\"Sec 8-Project\"),\"X\",IF(AND(OR('1. Checklist & Certification'!$M$20=4,'1. Checklist & Certification'!$M$21=5,'1. Checklist & Certification'!$M$22=7),AO36>0,B36=\"\",I36>0,K36<I36),\"X\",\"\"))","v":""},{"$f":"IF(A36=\"\",\"\",IF(SUMPRODUCT(-- (ISNUMBER(SEARCH({\"*AHSC*\",\"*FMTW*\",\"*FWHG*\",\"*GHI*\",\"*HHC*\",\"*HLCP*\",\"*HOME*\",\"*LPR*\",\"*MHP*\",\"*NHTF*\",\"*NSP*\",\"*PRP*\",\"*TOD*\",\"*VHHP*\"},'1. Checklist & Certification'!$L$7)))),\"MHP\",\"Legacy\"))","v":""},",,",null,null,null,{"$f":"IF('1. Checklist & Certification'!$M$20=4,\"Both\",IF(OR('1. Checklist & Certification'!$M$15>0,S36=\"CHRP-R\",U36=\"CHRP-R\",W36=\"CHRP-R\",Y36=\"CHRP-R\"),\"Under\",\"No\"))","v":"No"},"No","No",{"$f":"_xlfn.IFS(D36=\"\",\"\",D36=1,'MHP Family Income & Rent Limits'!$E$17,D36=2,'MHP Family Income & Rent Limits'!$F$17,D36=3,'MHP Family Income & Rent Limits'!$G$17,D36=4,'MHP Family Income & Rent Limits'!$H$17,D36=5,'MHP Family Income & Rent Limits'!$I$17,D36=6,'MHP Family Income & Rent Limits'!$J$17,D36=7,'MHP Family Income & Rent Limits'!$K$17,D36=8,'MHP Family Income & Rent Limits'!$L$17)","v":""},"",{"$f":"IF(OR(A36=0,B36=\"X\"),0,MIN(IF(AA36:AD36<>0,AA36:AD36)))","v":0},{"$f":"IF(OR(H36=\"\",I36=\"\"),0,IF(H36*0.3/12>I36,MIN(H36*0.3/12,I36*1.1)+AP36,I36*(1+(VLOOKUP('1. Checklist & Certification'!$F$9,'HLCP-E Rent Change'!$A$1:$D$59,4,FALSE)))+AP36))","v":0}]
[null,null,null,null,null,null,null,null,null,null,null,null,null,null,null,null,null,null,null,null,null,null,null,null,null,null,0,0,0,0,0,0,0,0,{"$f":"IF(OR(A37=0,B37=\"X\"),0,IF(OR(S37=\"FHDP\",S37=\"RHCP-B\",U37=\"FHDP\",U37=\"RHCP-B\",W37=\"FHDP\",W37=\"RHCP-B\",Y37=\"FHDP\",Y37=\"RHCP-B\"),TRUNC((MIN(I37,K37)*(1+'1. Checklist & Certification'!$K$43)+AP37)),0))","v":0},{"$f":"IF(OR(A37=0,B37=\"X\"),0,IF(OR(S37=\"CHRP-R\",S37=\"SERA\",S37=\"SUHRP\",U37=\"CHRP-R\",U37=\"SERA\",U37=\"SUHRP\",W37=\"CHRP-R\",W37=\"SERA\",W37=\"SUHRP\",Y37=\"CHRP-R\",Y37=\"SERA\",Y37=\"SUHRP\"),TRUNC((MIN(I37,K37)*(1+'1. Checklist & Certification'!$K$49))),0))","v":0},{"$f":"IF(OR(A37=0,B37=\"X\"),0,IF(OR(S37=\"CALDAP\",S37=\"DPRLP\",U37=\"CALDAP\",U37=\"DPRLP\",W37=\"CALDAP\",W37=\"DPRLP\",Y37=\"CALDAP\",Y37=\"DPRLP\"),TRUNC(((MIN(I37,K37))*(1+'1. Checklist & Certification'!$G$4))),0))","v":0},0,0,0,{"$f":"IF(OR(A37=0,B37=\"X\"),0,IF(OR(S37=\"PRP\",S37=\"LPR\",U37=\"PRP\",U37=\"LPR\",W37=\"PRP\",W37=\"LPR\",Y37=\"PRP\",Y37=\"LPR\"),MAX(I37+AP37,MIN(IF(AE37:AN37<>0,AE37:AN37))),MIN(IF(AE37:AN37<>0,AE37:AN37))))","v":0},{"$f":"IF(A37=0,0,IF(AND(OR(S37=\"Mgr\",S37=0),OR(U37=\"Mgr\",U37=0),OR(W37=\"Mgr\",W37=0)),0,IF(LEFT($A37,2)=\"B*\",VLOOKUP($E37,'1. Checklist & Certification'!$D$26:$E$32,2),IF(LEFT($A37,2)=\"C*\",VLOOKUP($E37,'1. Checklist & Certification'!$F$26:$G$32,2),IF(LEFT($A37,2)=\"D*\",VLOOKUP($E37,'1. Checklist & Certification'!$H$26:$I$32,2),IF(LEFT($A37,2)=\"E*\",VLOOKUP($E37,'1. Checklist & Certification'!$J$26:$K$32,2),VLOOKUP($E37,'1. Checklist & Certification'!$A$26:$B$32,2)))))))","v":0},0,0,null,null,null,null,"","",0,0,0,null,{"$f":"IF(A37=\"\",\"\",'1. Checklist & Certification'!$K$1)","v":""},{"$f":"IF(A37=\"\",\"\",'1. Checklist & Certification'!$C$62)","v":""},{"$f":"IF(A37=\"\",\"\",'1. Checklist & Certification'!$C$6)","v":""},{"$f":"IF(A37=\"\",\"\",'1. Checklist & Certification'!$G$5)","v":""},{"$f":"IFERROR(IF(A37=\"\",\"\",\n_xlfn.LET(_xlpm.Contract,'1. Checklist & Certification'!$C$7,\n_xlpm.Yr,TEXT(MOD(_xlfn.TEXTBEFORE(_xlpm.Contract,\"-\"),100),\"00\"),\n_xlpm.Program,_xlfn.TEXTAFTER(_xlfn.TEXTBEFORE(_xlpm.Contract,\"-\",2),\"-\"),\n_xlpm.CleanProgram,_xlfn.XLOOKUP(_xlpm.Program,SpellCheck[Input],SpellCheck[Correction],_xlpm.Program),\n_xlpm.Number,TEXT(_xlfn.TEXTAFTER(_xlpm.Contract,\"-\",2),\"0000\"),\n_xlfn.CONCAT(_xlpm.Yr,\"-\",_xlpm.CleanProgram,\"-\",_xlpm.Number))\n),\"\")","v":""},{"$f":"IFERROR(IF(A37=\"\",\"\",\n_xlfn.LET(_xlpm.Contract,'1. Checklist & Certification'!$C$8,\n_xlpm.Yr,TEXT(MOD(_xlfn.TEXTBEFORE(_xlpm.Contract,\"-\"),100),\"00\"),\n_xlpm.Program,_xlfn.TEXTAFTER(_xlfn.TEXTBEFORE(_xlpm.Contract,\"-\",2),\"-\"),\n_xlpm.CleanProgram,_xlfn.XLOOKUP(_xlpm.Program,SpellCheck[Input],SpellCheck[Correction],_xlpm.Program),\n_xlpm.Number,TEXT(_xlfn.TEXTAFTER(_xlpm.Contract,\"-\",2),\"0000\"),\n_xlfn.CONCAT(_xlpm.Yr,\"-\",_xlpm.CleanProgram,\"-\",_xlpm.Number))\n),\"\")","v":""},{"$f":"IFERROR(IF(A37=\"\",\"\",\n_xlfn.LET(_xlpm.Contract,'1. Checklist & Certification'!$F$7,\n_xlpm.Yr,TEXT(MOD(_xlfn.TEXTBEFORE(_xlpm.Contract,\"-\"),100),\"00\"),\n_xlpm.Program,_xlfn.TEXTAFTER(_xlfn.TEXTBEFORE(_xlpm.Contract,\"-\",2),\"-\"),\n_xlpm.CleanProgram,_xlfn.XLOOKUP(_xlpm.Program,SpellCheck[Input],SpellCheck[Correction],_xlpm.Program),\n_xlpm.Number,TEXT(_xlfn.TEXTAFTER(_xlpm.Contract,\"-\",2),\"0000\"),\n_xlfn.CONCAT(_xlpm.Yr,\"-\",_xlpm.CleanProgram,\"-\",_xlpm.Number))\n),\"\")","v":""},{"$f":"IFERROR(IF(A37=\"\",\"\",\n_xlfn.LET(_xlpm.Contract,'1. Checklist & Certification'!$F$8,\n_xlpm.Yr,TEXT(MOD(_xlfn.TEXTBEFORE(_xlpm.Contract,\"-\"),100),\"00\"),\n_xlpm.Program,_xlfn.TEXTAFTER(_xlfn.TEXTBEFORE(_xlpm.Contract,\"-\",2),\"-\"),\n_xlpm.CleanProgram,_xlfn.XLOOKUP(_xlpm.Program,SpellCheck[Input],SpellCheck[Correction],_xlpm.Program),\n_xlpm.Number,TEXT(_xlfn.TEXTAFTER(_xlpm.Contract,\"-\",2),\"0000\"),\n_xlfn.CONCAT(_xlpm.Yr,\"-\",_xlpm.CleanProgram,\"-\",_xlpm.Number))\n),\"\")","v":""},{"$f":"IF(A37=\"\",\"\",'1. Checklist & Certification'!$B$9)","v":""},{"$f":"IF(A37=\"\",\"\",'1. Checklist & Certification'!$F$9)","v":""},{"$f":"IF(A37=\"\",\"\",'1. Checklist & Certification'!$C$10)","v":""},{"$f":"IF(A37=\"\",\"\",'1. Checklist & Certification'!$C$11)","v":""},{"$f":"IF(A37=\"\",\"\",'1. Checklist & Certification'!$C$12)","v":""},{"$f":"IF(A37=\"\",\"\",'1. Checklist & Certification'!$B$14)","v":""},{"$f":"IF(A37=\"\",\"\",'1. Checklist & Certification'!$E$14)","v":""},{"$f":"IF(B37=\"\",\"\",'1. Checklist & Certification'!$G$14)","v":""},{"$f":"IF(A37=\"\",\"\",'MHP Family Income & Rent Limits'!$B$3)","v":""},{"$f":"IF(A37=\"\",\"\",'MHP Family Income & Rent Limits'!$J$3)","v":""},{"$f":"IF(A37=\"\",\"\",'MHP Family Income & Rent Limits'!$E$4)","v":""},{"$f":"IF(A37=\"\",\"\",'MHP Family Income & Rent Limits'!$C$7)","v":""},{"$f":"IF(A37=\"\",\"\",'MHP Family Income & Rent Limits'!$F$8)","v":""},{"$f":"IF(A37=\"\",\"\",'1. Checklist & Certification'!$G$4)","v":""},{"$f":"IF(A37=\"\",\"\",'1. Checklist & Certification'!$K$39)","v":""},{"$f":"IF(A37=\"\",\"\",'1. Checklist & Certification'!$K$43)","v":""},{"$f":"IF(A37=\"\",\"\",'1. Checklist & Certification'!$K$45)","v":""},{"$f":"IF(A37=\"\",\"\",'1. Checklist & Certification'!$K$49)","v":""},{"$f":"IF(A37=\"\",\"\",'1. Checklist & Certification'!$K$62)","v":""},{"$f":"IF(A37=\"\",\"\",'1. Checklist & Certification'!$E$66)","v":""},{"$f":"IF(A37=\"\",\"\",'1. Checklist & Certification'!$E$67)","v":""},{"$f":"IF(A37=\"\",\"\",'1. Checklist & Certification'!$E$68)","v":""},{"$f":"IF(A37=\"\",\"\",'1. Checklist & Certification'!$G$66)","v":""},{"$f":"IF(A37=\"\",\"\",'1. Checklist & Certification'!$H$66)","v":""},{"$f":"IF(A37=\"\",\"\",'1. Checklist & Certification'!$I$66)","v":""},{"$f":"IF(A37=\"\",\"\",'1. Checklist & Certification'!$I$67)","v":""},{"$f":"IF(A37=\"\",\"\",'1. Checklist & Certification'!$I$68)","v":""},{"$f":"IF(A37=\"\",\"\",'1. Checklist & Certification'!$B$69)","v":""},{"$f":"IF(A37=\"\",\"\",'1. Checklist & Certification'!$C$69)","v":""},{"$f":"IF(A37=\"\",\"\",'1. Checklist & Certification'!$F$69)","v":""},{"$f":"IF(A37=\"\",\"\",'1. Checklist & Certification'!$G$69)","v":""},{"$f":"IF(A37=\"\",\"\",'1. Checklist & Certification'!$J$69)","v":""},{"$f":"IF(A37=\"\",\"\",'1. Checklist & Certification'!$K$69)","v":""},null,null,{"$f":"IF(AND(OR('1. Checklist & Certification'!$M$16=1,'1. Checklist & Certification'!$M$19=2),AO37>0,B37=\"\",I37>0,AQ37<I37,AV37<>\"Sec 8-Project\"),\"X\",IF(AND(OR('1. Checklist & Certification'!$M$20=4,'1. Checklist & Certification'!$M$21=5,'1. Checklist & Certification'!$M$22=7),AO37>0,B37=\"\",I37>0,K37<I37),\"X\",\"\"))","v":""},{"$f":"IF(A37=\"\",\"\",IF(SUMPRODUCT(-- (ISNUMBER(SEARCH({\"*AHSC*\",\"*FMTW*\",\"*FWHG*\",\"*GHI*\",\"*HHC*\",\"*HLCP*\",\"*HOME*\",\"*LPR*\",\"*MHP*\",\"*NHTF*\",\"*NSP*\",\"*PRP*\",\"*TOD*\",\"*VHHP*\"},'1. Checklist & Certification'!$L$7)))),\"MHP\",\"Legacy\"))","v":""},",,",null,null,null,{"$f":"IF('1. Checklist & Certification'!$M$20=4,\"Both\",IF(OR('1. Checklist & Certification'!$M$15>0,S37=\"CHRP-R\",U37=\"CHRP-R\",W37=\"CHRP-R\",Y37=\"CHRP-R\"),\"Under\",\"No\"))","v":"No"},"No","No",{"$f":"_xlfn.IFS(D37=\"\",\"\",D37=1,'MHP Family Income & Rent Limits'!$E$17,D37=2,'MHP Family Income & Rent Limits'!$F$17,D37=3,'MHP Family Income & Rent Limits'!$G$17,D37=4,'MHP Family Income & Rent Limits'!$H$17,D37=5,'MHP Family Income & Rent Limits'!$I$17,D37=6,'MHP Family Income & Rent Limits'!$J$17,D37=7,'MHP Family Income & Rent Limits'!$K$17,D37=8,'MHP Family Income & Rent Limits'!$L$17)","v":""},"",{"$f":"IF(OR(A37=0,B37=\"X\"),0,MIN(IF(AA37:AD37<>0,AA37:AD37)))","v":0},{"$f":"IF(OR(H37=\"\",I37=\"\"),0,IF(H37*0.3/12>I37,MIN(H37*0.3/12,I37*1.1)+AP37,I37*(1+(VLOOKUP('1. Checklist & Certification'!$F$9,'HLCP-E Rent Change'!$A$1:$D$59,4,FALSE)))+AP37))","v":0}]
[null,null,null,null,null,null,null,null,null,null,null,null,null,null,null,null,null,null,null,null,null,null,null,null,null,null,0,0,0,0,0,0,0,0,{"$f":"IF(OR(A38=0,B38=\"X\"),0,IF(OR(S38=\"FHDP\",S38=\"RHCP-B\",U38=\"FHDP\",U38=\"RHCP-B\",W38=\"FHDP\",W38=\"RHCP-B\",Y38=\"FHDP\",Y38=\"RHCP-B\"),TRUNC((MIN(I38,K38)*(1+'1. Checklist & Certification'!$K$43)+AP38)),0))","v":0},{"$f":"IF(OR(A38=0,B38=\"X\"),0,IF(OR(S38=\"CHRP-R\",S38=\"SERA\",S38=\"SUHRP\",U38=\"CHRP-R\",U38=\"SERA\",U38=\"SUHRP\",W38=\"CHRP-R\",W38=\"SERA\",W38=\"SUHRP\",Y38=\"CHRP-R\",Y38=\"SERA\",Y38=\"SUHRP\"),TRUNC((MIN(I38,K38)*(1+'1. Checklist & Certification'!$K$49))),0))","v":0},{"$f":"IF(OR(A38=0,B38=\"X\"),0,IF(OR(S38=\"CALDAP\",S38=\"DPRLP\",U38=\"CALDAP\",U38=\"DPRLP\",W38=\"CALDAP\",W38=\"DPRLP\",Y38=\"CALDAP\",Y38=\"DPRLP\"),TRUNC(((MIN(I38,K38))*(1+'1. Checklist & Certification'!$G$4))),0))","v":0},0,0,0,{"$f":"IF(OR(A38=0,B38=\"X\"),0,IF(OR(S38=\"PRP\",S38=\"LPR\",U38=\"PRP\",U38=\"LPR\",W38=\"PRP\",W38=\"LPR\",Y38=\"PRP\",Y38=\"LPR\"),MAX(I38+AP38,MIN(IF(AE38:AN38<>0,AE38:AN38))),MIN(IF(AE38:AN38<>0,AE38:AN38))))","v":0},{"$f":"IF(A38=0,0,IF(AND(OR(S38=\"Mgr\",S38=0),OR(U38=\"Mgr\",U38=0),OR(W38=\"Mgr\",W38=0)),0,IF(LEFT($A38,2)=\"B*\",VLOOKUP($E38,'1. Checklist & Certification'!$D$26:$E$32,2),IF(LEFT($A38,2)=\"C*\",VLOOKUP($E38,'1. Checklist & Certification'!$F$26:$G$32,2),IF(LEFT($A38,2)=\"D*\",VLOOKUP($E38,'1. Checklist & Certification'!$H$26:$I$32,2),IF(LEFT($A38,2)=\"E*\",VLOOKUP($E38,'1. Checklist & Certification'!$J$26:$K$32,2),VLOOKUP($E38,'1. Checklist & Certification'!$A$26:$B$32,2)))))))","v":0},0,0,null,null,null,null,"","",0,0,0,null,{"$f":"IF(A38=\"\",\"\",'1. Checklist & Certification'!$K$1)","v":""},{"$f":"IF(A38=\"\",\"\",'1. Checklist & Certification'!$C$62)","v":""},{"$f":"IF(A38=\"\",\"\",'1. Checklist & Certification'!$C$6)","v":""},{"$f":"IF(A38=\"\",\"\",'1. Checklist & Certification'!$G$5)","v":""},{"$f":"IFERROR(IF(A38=\"\",\"\",\n_xlfn.LET(_xlpm.Contract,'1. Checklist & Certification'!$C$7,\n_xlpm.Yr,TEXT(MOD(_xlfn.TEXTBEFORE(_xlpm.Contract,\"-\"),100),\"00\"),\n_xlpm.Program,_xlfn.TEXTAFTER(_xlfn.TEXTBEFORE(_xlpm.Contract,\"-\",2),\"-\"),\n_xlpm.CleanProgram,_xlfn.XLOOKUP(_xlpm.Program,SpellCheck[Input],SpellCheck[Correction],_xlpm.Program),\n_xlpm.Number,TEXT(_xlfn.TEXTAFTER(_xlpm.Contract,\"-\",2),\"0000\"),\n_xlfn.CONCAT(_xlpm.Yr,\"-\",_xlpm.CleanProgram,\"-\",_xlpm.Number))\n),\"\")","v":""},{"$f":"IFERROR(IF(A38=\"\",\"\",\n_xlfn.LET(_xlpm.Contract,'1. Checklist & Certification'!$C$8,\n_xlpm.Yr,TEXT(MOD(_xlfn.TEXTBEFORE(_xlpm.Contract,\"-\"),100),\"00\"),\n_xlpm.Program,_xlfn.TEXTAFTER(_xlfn.TEXTBEFORE(_xlpm.Contract,\"-\",2),\"-\"),\n_xlpm.CleanProgram,_xlfn.XLOOKUP(_xlpm.Program,SpellCheck[Input],SpellCheck[Correction],_xlpm.Program),\n_xlpm.Number,TEXT(_xlfn.TEXTAFTER(_xlpm.Contract,\"-\",2),\"0000\"),\n_xlfn.CONCAT(_xlpm.Yr,\"-\",_xlpm.CleanProgram,\"-\",_xlpm.Number))\n),\"\")","v":""},{"$f":"IFERROR(IF(A38=\"\",\"\",\n_xlfn.LET(_xlpm.Contract,'1. Checklist & Certification'!$F$7,\n_xlpm.Yr,TEXT(MOD(_xlfn.TEXTBEFORE(_xlpm.Contract,\"-\"),100),\"00\"),\n_xlpm.Program,_xlfn.TEXTAFTER(_xlfn.TEXTBEFORE(_xlpm.Contract,\"-\",2),\"-\"),\n_xlpm.CleanProgram,_xlfn.XLOOKUP(_xlpm.Program,SpellCheck[Input],SpellCheck[Correction],_xlpm.Program),\n_xlpm.Number,TEXT(_xlfn.TEXTAFTER(_xlpm.Contract,\"-\",2),\"0000\"),\n_xlfn.CONCAT(_xlpm.Yr,\"-\",_xlpm.CleanProgram,\"-\",_xlpm.Number))\n),\"\")","v":""},{"$f":"IFERROR(IF(A38=\"\",\"\",\n_xlfn.LET(_xlpm.Contract,'1. Checklist & Certification'!$F$8,\n_xlpm.Yr,TEXT(MOD(_xlfn.TEXTBEFORE(_xlpm.Contract,\"-\"),100),\"00\"),\n_xlpm.Program,_xlfn.TEXTAFTER(_xlfn.TEXTBEFORE(_xlpm.Contract,\"-\",2),\"-\"),\n_xlpm.CleanProgram,_xlfn.XLOOKUP(_xlpm.Program,SpellCheck[Input],SpellCheck[Correction],_xlpm.Program),\n_xlpm.Number,TEXT(_xlfn.TEXTAFTER(_xlpm.Contract,\"-\",2),\"0000\"),\n_xlfn.CONCAT(_xlpm.Yr,\"-\",_xlpm.CleanProgram,\"-\",_xlpm.Number))\n),\"\")","v":""},{"$f":"IF(A38=\"\",\"\",'1. Checklist & Certification'!$B$9)","v":""},{"$f":"IF(A38=\"\",\"\",'1. Checklist & Certification'!$F$9)","v":""},{"$f":"IF(A38=\"\",\"\",'1. Checklist & Certification'!$C$10)","v":""},{"$f":"IF(A38=\"\",\"\",'1. Checklist & Certification'!$C$11)","v":""},{"$f":"IF(A38=\"\",\"\",'1. Checklist & Certification'!$C$12)","v":""},{"$f":"IF(A38=\"\",\"\",'1. Checklist & Certification'!$B$14)","v":""},{"$f":"IF(A38=\"\",\"\",'1. Checklist & Certification'!$E$14)","v":""},{"$f":"IF(B38=\"\",\"\",'1. Checklist & Certification'!$G$14)","v":""},{"$f":"IF(A38=\"\",\"\",'MHP Family Income & Rent Limits'!$B$3)","v":""},{"$f":"IF(A38=\"\",\"\",'MHP Family Income & Rent Limits'!$J$3)","v":""},{"$f":"IF(A38=\"\",\"\",'MHP Family Income & Rent Limits'!$E$4)","v":""},{"$f":"IF(A38=\"\",\"\",'MHP Family Income & Rent Limits'!$C$7)","v":""},{"$f":"IF(A38=\"\",\"\",'MHP Family Income & Rent Limits'!$F$8)","v":""},{"$f":"IF(A38=\"\",\"\",'1. Checklist & Certification'!$G$4)","v":""},{"$f":"IF(A38=\"\",\"\",'1. Checklist & Certification'!$K$39)","v":""},{"$f":"IF(A38=\"\",\"\",'1. Checklist & Certification'!$K$43)","v":""},{"$f":"IF(A38=\"\",\"\",'1. Checklist & Certification'!$K$45)","v":""},{"$f":"IF(A38=\"\",\"\",'1. Checklist & Certification'!$K$49)","v":""},{"$f":"IF(A38=\"\",\"\",'1. Checklist & Certification'!$K$62)","v":""},{"$f":"IF(A38=\"\",\"\",'1. Checklist & Certification'!$E$66)","v":""},{"$f":"IF(A38=\"\",\"\",'1. Checklist & Certification'!$E$67)","v":""},{"$f":"IF(A38=\"\",\"\",'1. Checklist & Certification'!$E$68)","v":""},{"$f":"IF(A38=\"\",\"\",'1. Checklist & Certification'!$G$66)","v":""},{"$f":"IF(A38=\"\",\"\",'1. Checklist & Certification'!$H$66)","v":""},{"$f":"IF(A38=\"\",\"\",'1. Checklist & Certification'!$I$66)","v":""},{"$f":"IF(A38=\"\",\"\",'1. Checklist & Certification'!$I$67)","v":""},{"$f":"IF(A38=\"\",\"\",'1. Checklist & Certification'!$I$68)","v":""},{"$f":"IF(A38=\"\",\"\",'1. Checklist & Certification'!$B$69)","v":""},{"$f":"IF(A38=\"\",\"\",'1. Checklist & Certification'!$C$69)","v":""},{"$f":"IF(A38=\"\",\"\",'1. Checklist & Certification'!$F$69)","v":""},{"$f":"IF(A38=\"\",\"\",'1. Checklist & Certification'!$G$69)","v":""},{"$f":"IF(A38=\"\",\"\",'1. Checklist & Certification'!$J$69)","v":""},{"$f":"IF(A38=\"\",\"\",'1. Checklist & Certification'!$K$69)","v":""},null,null,{"$f":"IF(AND(OR('1. Checklist & Certification'!$M$16=1,'1. Checklist & Certification'!$M$19=2),AO38>0,B38=\"\",I38>0,AQ38<I38,AV38<>\"Sec 8-Project\"),\"X\",IF(AND(OR('1. Checklist & Certification'!$M$20=4,'1. Checklist & Certification'!$M$21=5,'1. Checklist & Certification'!$M$22=7),AO38>0,B38=\"\",I38>0,K38<I38),\"X\",\"\"))","v":""},{"$f":"IF(A38=\"\",\"\",IF(SUMPRODUCT(-- (ISNUMBER(SEARCH({\"*AHSC*\",\"*FMTW*\",\"*FWHG*\",\"*GHI*\",\"*HHC*\",\"*HLCP*\",\"*HOME*\",\"*LPR*\",\"*MHP*\",\"*NHTF*\",\"*NSP*\",\"*PRP*\",\"*TOD*\",\"*VHHP*\"},'1. Checklist & Certification'!$L$7)))),\"MHP\",\"Legacy\"))","v":""},",,",null,null,null,{"$f":"IF('1. Checklist & Certification'!$M$20=4,\"Both\",IF(OR('1. Checklist & Certification'!$M$15>0,S38=\"CHRP-R\",U38=\"CHRP-R\",W38=\"CHRP-R\",Y38=\"CHRP-R\"),\"Under\",\"No\"))","v":"No"},"No","No",{"$f":"_xlfn.IFS(D38=\"\",\"\",D38=1,'MHP Family Income & Rent Limits'!$E$17,D38=2,'MHP Family Income & Rent Limits'!$F$17,D38=3,'MHP Family Income & Rent Limits'!$G$17,D38=4,'MHP Family Income & Rent Limits'!$H$17,D38=5,'MHP Family Income & Rent Limits'!$I$17,D38=6,'MHP Family Income & Rent Limits'!$J$17,D38=7,'MHP Family Income & Rent Limits'!$K$17,D38=8,'MHP Family Income & Rent Limits'!$L$17)","v":""},"",{"$f":"IF(OR(A38=0,B38=\"X\"),0,MIN(IF(AA38:AD38<>0,AA38:AD38)))","v":0},{"$f":"IF(OR(H38=\"\",I38=\"\"),0,IF(H38*0.3/12>I38,MIN(H38*0.3/12,I38*1.1)+AP38,I38*(1+(VLOOKUP('1. Checklist & Certification'!$F$9,'HLCP-E Rent Change'!$A$1:$D$59,4,FALSE)))+AP38))","v":0}]
[null,null,null,null,null,null,null,null,null,null,null,null,null,null,null,null,null,null,null,null,null,null,null,null,null,null,0,0,0,0,0,0,0,0,{"$f":"IF(OR(A39=0,B39=\"X\"),0,IF(OR(S39=\"FHDP\",S39=\"RHCP-B\",U39=\"FHDP\",U39=\"RHCP-B\",W39=\"FHDP\",W39=\"RHCP-B\",Y39=\"FHDP\",Y39=\"RHCP-B\"),TRUNC((MIN(I39,K39)*(1+'1. Checklist & Certification'!$K$43)+AP39)),0))","v":0},{"$f":"IF(OR(A39=0,B39=\"X\"),0,IF(OR(S39=\"CHRP-R\",S39=\"SERA\",S39=\"SUHRP\",U39=\"CHRP-R\",U39=\"SERA\",U39=\"SUHRP\",W39=\"CHRP-R\",W39=\"SERA\",W39=\"SUHRP\",Y39=\"CHRP-R\",Y39=\"SERA\",Y39=\"SUHRP\"),TRUNC((MIN(I39,K39)*(1+'1. Checklist & Certification'!$K$49))),0))","v":0},{"$f":"IF(OR(A39=0,B39=\"X\"),0,IF(OR(S39=\"CALDAP\",S39=\"DPRLP\",U39=\"CALDAP\",U39=\"DPRLP\",W39=\"CALDAP\",W39=\"DPRLP\",Y39=\"CALDAP\",Y39=\"DPRLP\"),TRUNC(((MIN(I39,K39))*(1+'1. Checklist & Certification'!$G$4))),0))","v":0},0,0,0,{"$f":"IF(OR(A39=0,B39=\"X\"),0,IF(OR(S39=\"PRP\",S39=\"LPR\",U39=\"PRP\",U39=\"LPR\",W39=\"PRP\",W39=\"LPR\",Y39=\"PRP\",Y39=\"LPR\"),MAX(I39+AP39,MIN(IF(AE39:AN39<>0,AE39:AN39))),MIN(IF(AE39:AN39<>0,AE39:AN39))))","v":0},{"$f":"IF(A39=0,0,IF(AND(OR(S39=\"Mgr\",S39=0),OR(U39=\"Mgr\",U39=0),OR(W39=\"Mgr\",W39=0)),0,IF(LEFT($A39,2)=\"B*\",VLOOKUP($E39,'1. Checklist & Certification'!$D$26:$E$32,2),IF(LEFT($A39,2)=\"C*\",VLOOKUP($E39,'1. Checklist & Certification'!$F$26:$G$32,2),IF(LEFT($A39,2)=\"D*\",VLOOKUP($E39,'1. Checklist & Certification'!$H$26:$I$32,2),IF(LEFT($A39,2)=\"E*\",VLOOKUP($E39,'1. Checklist & Certification'!$J$26:$K$32,2),VLOOKUP($E39,'1. Checklist & Certification'!$A$26:$B$32,2)))))))","v":0},0,0,null,null,null,null,"","",0,0,0,null,{"$f":"IF(A39=\"\",\"\",'1. Checklist & Certification'!$K$1)","v":""},{"$f":"IF(A39=\"\",\"\",'1. Checklist & Certification'!$C$62)","v":""},{"$f":"IF(A39=\"\",\"\",'1. Checklist & Certification'!$C$6)","v":""},{"$f":"IF(A39=\"\",\"\",'1. Checklist & Certification'!$G$5)","v":""},{"$f":"IFERROR(IF(A39=\"\",\"\",\n_xlfn.LET(_xlpm.Contract,'1. Checklist & Certification'!$C$7,\n_xlpm.Yr,TEXT(MOD(_xlfn.TEXTBEFORE(_xlpm.Contract,\"-\"),100),\"00\"),\n_xlpm.Program,_xlfn.TEXTAFTER(_xlfn.TEXTBEFORE(_xlpm.Contract,\"-\",2),\"-\"),\n_xlpm.CleanProgram,_xlfn.XLOOKUP(_xlpm.Program,SpellCheck[Input],SpellCheck[Correction],_xlpm.Program),\n_xlpm.Number,TEXT(_xlfn.TEXTAFTER(_xlpm.Contract,\"-\",2),\"0000\"),\n_xlfn.CONCAT(_xlpm.Yr,\"-\",_xlpm.CleanProgram,\"-\",_xlpm.Number))\n),\"\")","v":""},{"$f":"IFERROR(IF(A39=\"\",\"\",\n_xlfn.LET(_xlpm.Contract,'1. Checklist & Certification'!$C$8,\n_xlpm.Yr,TEXT(MOD(_xlfn.TEXTBEFORE(_xlpm.Contract,\"-\"),100),\"00\"),\n_xlpm.Program,_xlfn.TEXTAFTER(_xlfn.TEXTBEFORE(_xlpm.Contract,\"-\",2),\"-\"),\n_xlpm.CleanProgram,_xlfn.XLOOKUP(_xlpm.Program,SpellCheck[Input],SpellCheck[Correction],_xlpm.Program),\n_xlpm.Number,TEXT(_xlfn.TEXTAFTER(_xlpm.Contract,\"-\",2),\"0000\"),\n_xlfn.CONCAT(_xlpm.Yr,\"-\",_xlpm.CleanProgram,\"-\",_xlpm.Number))\n),\"\")","v":""},{"$f":"IFERROR(IF(A39=\"\",\"\",\n_xlfn.LET(_xlpm.Contract,'1. Checklist & Certification'!$F$7,\n_xlpm.Yr,TEXT(MOD(_xlfn.TEXTBEFORE(_xlpm.Contract,\"-\"),100),\"00\"),\n_xlpm.Program,_xlfn.TEXTAFTER(_xlfn.TEXTBEFORE(_xlpm.Contract,\"-\",2),\"-\"),\n_xlpm.CleanProgram,_xlfn.XLOOKUP(_xlpm.Program,SpellCheck[Input],SpellCheck[Correction],_xlpm.Program),\n_xlpm.Number,TEXT(_xlfn.TEXTAFTER(_xlpm.Contract,\"-\",2),\"0000\"),\n_xlfn.CONCAT(_xlpm.Yr,\"-\",_xlpm.CleanProgram,\"-\",_xlpm.Number))\n),\"\")","v":""},{"$f":"IFERROR(IF(A39=\"\",\"\",\n_xlfn.LET(_xlpm.Contract,'1. Checklist & Certification'!$F$8,\n_xlpm.Yr,TEXT(MOD(_xlfn.TEXTBEFORE(_xlpm.Contract,\"-\"),100),\"00\"),\n_xlpm.Program,_xlfn.TEXTAFTER(_xlfn.TEXTBEFORE(_xlpm.Contract,\"-\",2),\"-\"),\n_xlpm.CleanProgram,_xlfn.XLOOKUP(_xlpm.Program,SpellCheck[Input],SpellCheck[Correction],_xlpm.Program),\n_xlpm.Number,TEXT(_xlfn.TEXTAFTER(_xlpm.Contract,\"-\",2),\"0000\"),\n_xlfn.CONCAT(_xlpm.Yr,\"-\",_xlpm.CleanProgram,\"-\",_xlpm.Number))\n),\"\")","v":""},{"$f":"IF(A39=\"\",\"\",'1. Checklist & Certification'!$B$9)","v":""},{"$f":"IF(A39=\"\",\"\",'1. Checklist & Certification'!$F$9)","v":""},{"$f":"IF(A39=\"\",\"\",'1. Checklist & Certification'!$C$10)","v":""},{"$f":"IF(A39=\"\",\"\",'1. Checklist & Certification'!$C$11)","v":""},{"$f":"IF(A39=\"\",\"\",'1. Checklist & Certification'!$C$12)","v":""},{"$f":"IF(A39=\"\",\"\",'1. Checklist & Certification'!$B$14)","v":""},{"$f":"IF(A39=\"\",\"\",'1. Checklist & Certification'!$E$14)","v":""},{"$f":"IF(B39=\"\",\"\",'1. Checklist & Certification'!$G$14)","v":""},{"$f":"IF(A39=\"\",\"\",'MHP Family Income & Rent Limits'!$B$3)","v":""},{"$f":"IF(A39=\"\",\"\",'MHP Family Income & Rent Limits'!$J$3)","v":""},{"$f":"IF(A39=\"\",\"\",'MHP Family Income & Rent Limits'!$E$4)","v":""},{"$f":"IF(A39=\"\",\"\",'MHP Family Income & Rent Limits'!$C$7)","v":""},{"$f":"IF(A39=\"\",\"\",'MHP Family Income & Rent Limits'!$F$8)","v":""},{"$f":"IF(A39=\"\",\"\",'1. Checklist & Certification'!$G$4)","v":""},{"$f":"IF(A39=\"\",\"\",'1. Checklist & Certification'!$K$39)","v":""},{"$f":"IF(A39=\"\",\"\",'1. Checklist & Certification'!$K$43)","v":""},{"$f":"IF(A39=\"\",\"\",'1. Checklist & Certification'!$K$45)","v":""},{"$f":"IF(A39=\"\",\"\",'1. Checklist & Certification'!$K$49)","v":""},{"$f":"IF(A39=\"\",\"\",'1. Checklist & Certification'!$K$62)","v":""},{"$f":"IF(A39=\"\",\"\",'1. Checklist & Certification'!$E$66)","v":""},{"$f":"IF(A39=\"\",\"\",'1. Checklist & Certification'!$E$67)","v":""},{"$f":"IF(A39=\"\",\"\",'1. Checklist & Certification'!$E$68)","v":""},{"$f":"IF(A39=\"\",\"\",'1. Checklist & Certification'!$G$66)","v":""},{"$f":"IF(A39=\"\",\"\",'1. Checklist & Certification'!$H$66)","v":""},{"$f":"IF(A39=\"\",\"\",'1. Checklist & Certification'!$I$66)","v":""},{"$f":"IF(A39=\"\",\"\",'1. Checklist & Certification'!$I$67)","v":""},{"$f":"IF(A39=\"\",\"\",'1. Checklist & Certification'!$I$68)","v":""},{"$f":"IF(A39=\"\",\"\",'1. Checklist & Certification'!$B$69)","v":""},{"$f":"IF(A39=\"\",\"\",'1. Checklist & Certification'!$C$69)","v":""},{"$f":"IF(A39=\"\",\"\",'1. Checklist & Certification'!$F$69)","v":""},{"$f":"IF(A39=\"\",\"\",'1. Checklist & Certification'!$G$69)","v":""},{"$f":"IF(A39=\"\",\"\",'1. Checklist & Certification'!$J$69)","v":""},{"$f":"IF(A39=\"\",\"\",'1. Checklist & Certification'!$K$69)","v":""},null,null,{"$f":"IF(AND(OR('1. Checklist & Certification'!$M$16=1,'1. Checklist & Certification'!$M$19=2),AO39>0,B39=\"\",I39>0,AQ39<I39,AV39<>\"Sec 8-Project\"),\"X\",IF(AND(OR('1. Checklist & Certification'!$M$20=4,'1. Checklist & Certification'!$M$21=5,'1. Checklist & Certification'!$M$22=7),AO39>0,B39=\"\",I39>0,K39<I39),\"X\",\"\"))","v":""},{"$f":"IF(A39=\"\",\"\",IF(SUMPRODUCT(-- (ISNUMBER(SEARCH({\"*AHSC*\",\"*FMTW*\",\"*FWHG*\",\"*GHI*\",\"*HHC*\",\"*HLCP*\",\"*HOME*\",\"*LPR*\",\"*MHP*\",\"*NHTF*\",\"*NSP*\",\"*PRP*\",\"*TOD*\",\"*VHHP*\"},'1. Checklist & Certification'!$L$7)))),\"MHP\",\"Legacy\"))","v":""},",,",null,null,null,{"$f":"IF('1. Checklist & Certification'!$M$20=4,\"Both\",IF(OR('1. Checklist & Certification'!$M$15>0,S39=\"CHRP-R\",U39=\"CHRP-R\",W39=\"CHRP-R\",Y39=\"CHRP-R\"),\"Under\",\"No\"))","v":"No"},"No","No",{"$f":"_xlfn.IFS(D39=\"\",\"\",D39=1,'MHP Family Income & Rent Limits'!$E$17,D39=2,'MHP Family Income & Rent Limits'!$F$17,D39=3,'MHP Family Income & Rent Limits'!$G$17,D39=4,'MHP Family Income & Rent Limits'!$H$17,D39=5,'MHP Family Income & Rent Limits'!$I$17,D39=6,'MHP Family Income & Rent Limits'!$J$17,D39=7,'MHP Family Income & Rent Limits'!$K$17,D39=8,'MHP Family Income & Rent Limits'!$L$17)","v":""},"",{"$f":"IF(OR(A39=0,B39=\"X\"),0,MIN(IF(AA39:AD39<>0,AA39:AD39)))","v":0},{"$f":"IF(OR(H39=\"\",I39=\"\"),0,IF(H39*0.3/12>I39,MIN(H39*0.3/12,I39*1.1)+AP39,I39*(1+(VLOOKUP('1. Checklist & Certification'!$F$9,'HLCP-E Rent Change'!$A$1:$D$59,4,FALSE)))+AP39))","v":0}]
[null,null,null,null,null,null,null,null,null,null,null,null,null,null,null,null,null,null,null,null,null,null,null,null,null,null,0,0,0,0,0,0,0,0,{"$f":"IF(OR(A40=0,B40=\"X\"),0,IF(OR(S40=\"FHDP\",S40=\"RHCP-B\",U40=\"FHDP\",U40=\"RHCP-B\",W40=\"FHDP\",W40=\"RHCP-B\",Y40=\"FHDP\",Y40=\"RHCP-B\"),TRUNC((MIN(I40,K40)*(1+'1. Checklist & Certification'!$K$43)+AP40)),0))","v":0},{"$f":"IF(OR(A40=0,B40=\"X\"),0,IF(OR(S40=\"CHRP-R\",S40=\"SERA\",S40=\"SUHRP\",U40=\"CHRP-R\",U40=\"SERA\",U40=\"SUHRP\",W40=\"CHRP-R\",W40=\"SERA\",W40=\"SUHRP\",Y40=\"CHRP-R\",Y40=\"SERA\",Y40=\"SUHRP\"),TRUNC((MIN(I40,K40)*(1+'1. Checklist & Certification'!$K$49))),0))","v":0},{"$f":"IF(OR(A40=0,B40=\"X\"),0,IF(OR(S40=\"CALDAP\",S40=\"DPRLP\",U40=\"CALDAP\",U40=\"DPRLP\",W40=\"CALDAP\",W40=\"DPRLP\",Y40=\"CALDAP\",Y40=\"DPRLP\"),TRUNC(((MIN(I40,K40))*(1+'1. Checklist & Certification'!$G$4))),0))","v":0},0,0,0,{"$f":"IF(OR(A40=0,B40=\"X\"),0,IF(OR(S40=\"PRP\",S40=\"LPR\",U40=\"PRP\",U40=\"LPR\",W40=\"PRP\",W40=\"LPR\",Y40=\"PRP\",Y40=\"LPR\"),MAX(I40+AP40,MIN(IF(AE40:AN40<>0,AE40:AN40))),MIN(IF(AE40:AN40<>0,AE40:AN40))))","v":0},{"$f":"IF(A40=0,0,IF(AND(OR(S40=\"Mgr\",S40=0),OR(U40=\"Mgr\",U40=0),OR(W40=\"Mgr\",W40=0)),0,IF(LEFT($A40,2)=\"B*\",VLOOKUP($E40,'1. Checklist & Certification'!$D$26:$E$32,2),IF(LEFT($A40,2)=\"C*\",VLOOKUP($E40,'1. Checklist & Certification'!$F$26:$G$32,2),IF(LEFT($A40,2)=\"D*\",VLOOKUP($E40,'1. Checklist & Certification'!$H$26:$I$32,2),IF(LEFT($A40,2)=\"E*\",VLOOKUP($E40,'1. Checklist & Certification'!$J$26:$K$32,2),VLOOKUP($E40,'1. Checklist & Certification'!$A$26:$B$32,2)))))))","v":0},0,0,null,null,null,null,"","",0,0,0,null,{"$f":"IF(A40=\"\",\"\",'1. Checklist & Certification'!$K$1)","v":""},{"$f":"IF(A40=\"\",\"\",'1. Checklist & Certification'!$C$62)","v":""},{"$f":"IF(A40=\"\",\"\",'1. Checklist & Certification'!$C$6)","v":""},{"$f":"IF(A40=\"\",\"\",'1. Checklist & Certification'!$G$5)","v":""},{"$f":"IFERROR(IF(A40=\"\",\"\",\n_xlfn.LET(_xlpm.Contract,'1. Checklist & Certification'!$C$7,\n_xlpm.Yr,TEXT(MOD(_xlfn.TEXTBEFORE(_xlpm.Contract,\"-\"),100),\"00\"),\n_xlpm.Program,_xlfn.TEXTAFTER(_xlfn.TEXTBEFORE(_xlpm.Contract,\"-\",2),\"-\"),\n_xlpm.CleanProgram,_xlfn.XLOOKUP(_xlpm.Program,SpellCheck[Input],SpellCheck[Correction],_xlpm.Program),\n_xlpm.Number,TEXT(_xlfn.TEXTAFTER(_xlpm.Contract,\"-\",2),\"0000\"),\n_xlfn.CONCAT(_xlpm.Yr,\"-\",_xlpm.CleanProgram,\"-\",_xlpm.Number))\n),\"\")","v":""},{"$f":"IFERROR(IF(A40=\"\",\"\",\n_xlfn.LET(_xlpm.Contract,'1. Checklist & Certification'!$C$8,\n_xlpm.Yr,TEXT(MOD(_xlfn.TEXTBEFORE(_xlpm.Contract,\"-\"),100),\"00\"),\n_xlpm.Program,_xlfn.TEXTAFTER(_xlfn.TEXTBEFORE(_xlpm.Contract,\"-\",2),\"-\"),\n_xlpm.CleanProgram,_xlfn.XLOOKUP(_xlpm.Program,SpellCheck[Input],SpellCheck[Correction],_xlpm.Program),\n_xlpm.Number,TEXT(_xlfn.TEXTAFTER(_xlpm.Contract,\"-\",2),\"0000\"),\n_xlfn.CONCAT(_xlpm.Yr,\"-\",_xlpm.CleanProgram,\"-\",_xlpm.Number))\n),\"\")","v":""},{"$f":"IFERROR(IF(A40=\"\",\"\",\n_xlfn.LET(_xlpm.Contract,'1. Checklist & Certification'!$F$7,\n_xlpm.Yr,TEXT(MOD(_xlfn.TEXTBEFORE(_xlpm.Contract,\"-\"),100),\"00\"),\n_xlpm.Program,_xlfn.TEXTAFTER(_xlfn.TEXTBEFORE(_xlpm.Contract,\"-\",2),\"-\"),\n_xlpm.CleanProgram,_xlfn.XLOOKUP(_xlpm.Program,SpellCheck[Input],SpellCheck[Correction],_xlpm.Program),\n_xlpm.Number,TEXT(_xlfn.TEXTAFTER(_xlpm.Contract,\"-\",2),\"0000\"),\n_xlfn.CONCAT(_xlpm.Yr,\"-\",_xlpm.CleanProgram,\"-\",_xlpm.Number))\n),\"\")","v":""},{"$f":"IFERROR(IF(A40=\"\",\"\",\n_xlfn.LET(_xlpm.Contract,'1. Checklist & Certification'!$F$8,\n_xlpm.Yr,TEXT(MOD(_xlfn.TEXTBEFORE(_xlpm.Contract,\"-\"),100),\"00\"),\n_xlpm.Program,_xlfn.TEXTAFTER(_xlfn.TEXTBEFORE(_xlpm.Contract,\"-\",2),\"-\"),\n_xlpm.CleanProgram,_xlfn.XLOOKUP(_xlpm.Program,SpellCheck[Input],SpellCheck[Correction],_xlpm.Program),\n_xlpm.Number,TEXT(_xlfn.TEXTAFTER(_xlpm.Contract,\"-\",2),\"0000\"),\n_xlfn.CONCAT(_xlpm.Yr,\"-\",_xlpm.CleanProgram,\"-\",_xlpm.Number))\n),\"\")","v":""},{"$f":"IF(A40=\"\",\"\",'1. Checklist & Certification'!$B$9)","v":""},{"$f":"IF(A40=\"\",\"\",'1. Checklist & Certification'!$F$9)","v":""},{"$f":"IF(A40=\"\",\"\",'1. Checklist & Certification'!$C$10)","v":""},{"$f":"IF(A40=\"\",\"\",'1. Checklist & Certification'!$C$11)","v":""},{"$f":"IF(A40=\"\",\"\",'1. Checklist & Certification'!$C$12)","v":""},{"$f":"IF(A40=\"\",\"\",'1. Checklist & Certification'!$B$14)","v":""},{"$f":"IF(A40=\"\",\"\",'1. Checklist & Certification'!$E$14)","v":""},{"$f":"IF(B40=\"\",\"\",'1. Checklist & Certification'!$G$14)","v":""},{"$f":"IF(A40=\"\",\"\",'MHP Family Income & Rent Limits'!$B$3)","v":""},{"$f":"IF(A40=\"\",\"\",'MHP Family Income & Rent Limits'!$J$3)","v":""},{"$f":"IF(A40=\"\",\"\",'MHP Family Income & Rent Limits'!$E$4)","v":""},{"$f":"IF(A40=\"\",\"\",'MHP Family Income & Rent Limits'!$C$7)","v":""},{"$f":"IF(A40=\"\",\"\",'MHP Family Income & Rent Limits'!$F$8)","v":""},{"$f":"IF(A40=\"\",\"\",'1. Checklist & Certification'!$G$4)","v":""},{"$f":"IF(A40=\"\",\"\",'1. Checklist & Certification'!$K$39)","v":""},{"$f":"IF(A40=\"\",\"\",'1. Checklist & Certification'!$K$43)","v":""},{"$f":"IF(A40=\"\",\"\",'1. Checklist & Certification'!$K$45)","v":""},{"$f":"IF(A40=\"\",\"\",'1. Checklist & Certification'!$K$49)","v":""},{"$f":"IF(A40=\"\",\"\",'1. Checklist & Certification'!$K$62)","v":""},{"$f":"IF(A40=\"\",\"\",'1. Checklist & Certification'!$E$66)","v":""},{"$f":"IF(A40=\"\",\"\",'1. Checklist & Certification'!$E$67)","v":""},{"$f":"IF(A40=\"\",\"\",'1. Checklist & Certification'!$E$68)","v":""},{"$f":"IF(A40=\"\",\"\",'1. Checklist & Certification'!$G$66)","v":""},{"$f":"IF(A40=\"\",\"\",'1. Checklist & Certification'!$H$66)","v":""},{"$f":"IF(A40=\"\",\"\",'1. Checklist & Certification'!$I$66)","v":""},{"$f":"IF(A40=\"\",\"\",'1. Checklist & Certification'!$I$67)","v":""},{"$f":"IF(A40=\"\",\"\",'1. Checklist & Certification'!$I$68)","v":""},{"$f":"IF(A40=\"\",\"\",'1. Checklist & Certification'!$B$69)","v":""},{"$f":"IF(A40=\"\",\"\",'1. Checklist & Certification'!$C$69)","v":""},{"$f":"IF(A40=\"\",\"\",'1. Checklist & Certification'!$F$69)","v":""},{"$f":"IF(A40=\"\",\"\",'1. Checklist & Certification'!$G$69)","v":""},{"$f":"IF(A40=\"\",\"\",'1. Checklist & Certification'!$J$69)","v":""},{"$f":"IF(A40=\"\",\"\",'1. Checklist & Certification'!$K$69)","v":""},null,null,{"$f":"IF(AND(OR('1. Checklist & Certification'!$M$16=1,'1. Checklist & Certification'!$M$19=2),AO40>0,B40=\"\",I40>0,AQ40<I40,AV40<>\"Sec 8-Project\"),\"X\",IF(AND(OR('1. Checklist & Certification'!$M$20=4,'1. Checklist & Certification'!$M$21=5,'1. Checklist & Certification'!$M$22=7),AO40>0,B40=\"\",I40>0,K40<I40),\"X\",\"\"))","v":""},{"$f":"IF(A40=\"\",\"\",IF(SUMPRODUCT(-- (ISNUMBER(SEARCH({\"*AHSC*\",\"*FMTW*\",\"*FWHG*\",\"*GHI*\",\"*HHC*\",\"*HLCP*\",\"*HOME*\",\"*LPR*\",\"*MHP*\",\"*NHTF*\",\"*NSP*\",\"*PRP*\",\"*TOD*\",\"*VHHP*\"},'1. Checklist & Certification'!$L$7)))),\"MHP\",\"Legacy\"))","v":""},",,",null,null,null,{"$f":"IF('1. Checklist & Certification'!$M$20=4,\"Both\",IF(OR('1. Checklist & Certification'!$M$15>0,S40=\"CHRP-R\",U40=\"CHRP-R\",W40=\"CHRP-R\",Y40=\"CHRP-R\"),\"Under\",\"No\"))","v":"No"},"No","No",{"$f":"_xlfn.IFS(D40=\"\",\"\",D40=1,'MHP Family Income & Rent Limits'!$E$17,D40=2,'MHP Family Income & Rent Limits'!$F$17,D40=3,'MHP Family Income & Rent Limits'!$G$17,D40=4,'MHP Family Income & Rent Limits'!$H$17,D40=5,'MHP Family Income & Rent Limits'!$I$17,D40=6,'MHP Family Income & Rent Limits'!$J$17,D40=7,'MHP Family Income & Rent Limits'!$K$17,D40=8,'MHP Family Income & Rent Limits'!$L$17)","v":""},"",{"$f":"IF(OR(A40=0,B40=\"X\"),0,MIN(IF(AA40:AD40<>0,AA40:AD40)))","v":0},{"$f":"IF(OR(H40=\"\",I40=\"\"),0,IF(H40*0.3/12>I40,MIN(H40*0.3/12,I40*1.1)+AP40,I40*(1+(VLOOKUP('1. Checklist & Certification'!$F$9,'HLCP-E Rent Change'!$A$1:$D$59,4,FALSE)))+AP40))","v":0}]
[null,null,null,null,null,null,null,null,null,null,null,null,null,null,null,null,null,null,null,null,null,null,null,null,null,null,0,0,0,0,0,0,0,0,{"$f":"IF(OR(A41=0,B41=\"X\"),0,IF(OR(S41=\"FHDP\",S41=\"RHCP-B\",U41=\"FHDP\",U41=\"RHCP-B\",W41=\"FHDP\",W41=\"RHCP-B\",Y41=\"FHDP\",Y41=\"RHCP-B\"),TRUNC((MIN(I41,K41)*(1+'1. Checklist & Certification'!$K$43)+AP41)),0))","v":0},{"$f":"IF(OR(A41=0,B41=\"X\"),0,IF(OR(S41=\"CHRP-R\",S41=\"SERA\",S41=\"SUHRP\",U41=\"CHRP-R\",U41=\"SERA\",U41=\"SUHRP\",W41=\"CHRP-R\",W41=\"SERA\",W41=\"SUHRP\",Y41=\"CHRP-R\",Y41=\"SERA\",Y41=\"SUHRP\"),TRUNC((MIN(I41,K41)*(1+'1. Checklist & Certification'!$K$49))),0))","v":0},{"$f":"IF(OR(A41=0,B41=\"X\"),0,IF(OR(S41=\"CALDAP\",S41=\"DPRLP\",U41=\"CALDAP\",U41=\"DPRLP\",W41=\"CALDAP\",W41=\"DPRLP\",Y41=\"CALDAP\",Y41=\"DPRLP\"),TRUNC(((MIN(I41,K41))*(1+'1. Checklist & Certification'!$G$4))),0))","v":0},0,0,0,{"$f":"IF(OR(A41=0,B41=\"X\"),0,IF(OR(S41=\"PRP\",S41=\"LPR\",U41=\"PRP\",U41=\"LPR\",W41=\"PRP\",W41=\"LPR\",Y41=\"PRP\",Y41=\"LPR\"),MAX(I41+AP41,MIN(IF(AE41:AN41<>0,AE41:AN41))),MIN(IF(AE41:AN41<>0,AE41:AN41))))","v":0},{"$f":"IF(A41=0,0,IF(AND(OR(S41=\"Mgr\",S41=0),OR(U41=\"Mgr\",U41=0),OR(W41=\"Mgr\",W41=0)),0,IF(LEFT($A41,2)=\"B*\",VLOOKUP($E41,'1. Checklist & Certification'!$D$26:$E$32,2),IF(LEFT($A41,2)=\"C*\",VLOOKUP($E41,'1. Checklist & Certification'!$F$26:$G$32,2),IF(LEFT($A41,2)=\"D*\",VLOOKUP($E41,'1. Checklist & Certification'!$H$26:$I$32,2),IF(LEFT($A41,2)=\"E*\",VLOOKUP($E41,'1. Checklist & Certification'!$J$26:$K$32,2),VLOOKUP($E41,'1. Checklist & Certification'!$A$26:$B$32,2)))))))","v":0},0,0,null,null,null,null,"","",0,0,0,null,{"$f":"IF(A41=\"\",\"\",'1. Checklist & Certification'!$K$1)","v":""},{"$f":"IF(A41=\"\",\"\",'1. Checklist & Certification'!$C$62)","v":""},{"$f":"IF(A41=\"\",\"\",'1. Checklist & Certification'!$C$6)","v":""},{"$f":"IF(A41=\"\",\"\",'1. Checklist & Certification'!$G$5)","v":""},{"$f":"IFERROR(IF(A41=\"\",\"\",\n_xlfn.LET(_xlpm.Contract,'1. Checklist & Certification'!$C$7,\n_xlpm.Yr,TEXT(MOD(_xlfn.TEXTBEFORE(_xlpm.Contract,\"-\"),100),\"00\"),\n_xlpm.Program,_xlfn.TEXTAFTER(_xlfn.TEXTBEFORE(_xlpm.Contract,\"-\",2),\"-\"),\n_xlpm.CleanProgram,_xlfn.XLOOKUP(_xlpm.Program,SpellCheck[Input],SpellCheck[Correction],_xlpm.Program),\n_xlpm.Number,TEXT(_xlfn.TEXTAFTER(_xlpm.Contract,\"-\",2),\"0000\"),\n_xlfn.CONCAT(_xlpm.Yr,\"-\",_xlpm.CleanProgram,\"-\",_xlpm.Number))\n),\"\")","v":""},{"$f":"IFERROR(IF(A41=\"\",\"\",\n_xlfn.LET(_xlpm.Contract,'1. Checklist & Certification'!$C$8,\n_xlpm.Yr,TEXT(MOD(_xlfn.TEXTBEFORE(_xlpm.Contract,\"-\"),100),\"00\"),\n_xlpm.Program,_xlfn.TEXTAFTER(_xlfn.TEXTBEFORE(_xlpm.Contract,\"-\",2),\"-\"),\n_xlpm.CleanProgram,_xlfn.XLOOKUP(_xlpm.Program,SpellCheck[Input],SpellCheck[Correction],_xlpm.Program),\n_xlpm.Number,TEXT(_xlfn.TEXTAFTER(_xlpm.Contract,\"-\",2),\"0000\"),\n_xlfn.CONCAT(_xlpm.Yr,\"-\",_xlpm.CleanProgram,\"-\",_xlpm.Number))\n),\"\")","v":""},{"$f":"IFERROR(IF(A41=\"\",\"\",\n_xlfn.LET(_xlpm.Contract,'1. Checklist & Certification'!$F$7,\n_xlpm.Yr,TEXT(MOD(_xlfn.TEXTBEFORE(_xlpm.Contract,\"-\"),100),\"00\"),\n_xlpm.Program,_xlfn.TEXTAFTER(_xlfn.TEXTBEFORE(_xlpm.Contract,\"-\",2),\"-\"),\n_xlpm.CleanProgram,_xlfn.XLOOKUP(_xlpm.Program,SpellCheck[Input],SpellCheck[Correction],_xlpm.Program),\n_xlpm.Number,TEXT(_xlfn.TEXTAFTER(_xlpm.Contract,\"-\",2),\"0000\"),\n_xlfn.CONCAT(_xlpm.Yr,\"-\",_xlpm.CleanProgram,\"-\",_xlpm.Number))\n),\"\")","v":""},{"$f":"IFERROR(IF(A41=\"\",\"\",\n_xlfn.LET(_xlpm.Contract,'1. Checklist & Certification'!$F$8,\n_xlpm.Yr,TEXT(MOD(_xlfn.TEXTBEFORE(_xlpm.Contract,\"-\"),100),\"00\"),\n_xlpm.Program,_xlfn.TEXTAFTER(_xlfn.TEXTBEFORE(_xlpm.Contract,\"-\",2),\"-\"),\n_xlpm.CleanProgram,_xlfn.XLOOKUP(_xlpm.Program,SpellCheck[Input],SpellCheck[Correction],_xlpm.Program),\n_xlpm.Number,TEXT(_xlfn.TEXTAFTER(_xlpm.Contract,\"-\",2),\"0000\"),\n_xlfn.CONCAT(_xlpm.Yr,\"-\",_xlpm.CleanProgram,\"-\",_xlpm.Number))\n),\"\")","v":""},{"$f":"IF(A41=\"\",\"\",'1. Checklist & Certification'!$B$9)","v":""},{"$f":"IF(A41=\"\",\"\",'1. Checklist & Certification'!$F$9)","v":""},{"$f":"IF(A41=\"\",\"\",'1. Checklist & Certification'!$C$10)","v":""},{"$f":"IF(A41=\"\",\"\",'1. Checklist & Certification'!$C$11)","v":""},{"$f":"IF(A41=\"\",\"\",'1. Checklist & Certification'!$C$12)","v":""},{"$f":"IF(A41=\"\",\"\",'1. Checklist & Certification'!$B$14)","v":""},{"$f":"IF(A41=\"\",\"\",'1. Checklist & Certification'!$E$14)","v":""},{"$f":"IF(B41=\"\",\"\",'1. Checklist & Certification'!$G$14)","v":""},{"$f":"IF(A41=\"\",\"\",'MHP Family Income & Rent Limits'!$B$3)","v":""},{"$f":"IF(A41=\"\",\"\",'MHP Family Income & Rent Limits'!$J$3)","v":""},{"$f":"IF(A41=\"\",\"\",'MHP Family Income & Rent Limits'!$E$4)","v":""},{"$f":"IF(A41=\"\",\"\",'MHP Family Income & Rent Limits'!$C$7)","v":""},{"$f":"IF(A41=\"\",\"\",'MHP Family Income & Rent Limits'!$F$8)","v":""},{"$f":"IF(A41=\"\",\"\",'1. Checklist & Certification'!$G$4)","v":""},{"$f":"IF(A41=\"\",\"\",'1. Checklist & Certification'!$K$39)","v":""},{"$f":"IF(A41=\"\",\"\",'1. Checklist & Certification'!$K$43)","v":""},{"$f":"IF(A41=\"\",\"\",'1. Checklist & Certification'!$K$45)","v":""},{"$f":"IF(A41=\"\",\"\",'1. Checklist & Certification'!$K$49)","v":""},{"$f":"IF(A41=\"\",\"\",'1. Checklist & Certification'!$K$62)","v":""},{"$f":"IF(A41=\"\",\"\",'1. Checklist & Certification'!$E$66)","v":""},{"$f":"IF(A41=\"\",\"\",'1. Checklist & Certification'!$E$67)","v":""},{"$f":"IF(A41=\"\",\"\",'1. Checklist & Certification'!$E$68)","v":""},{"$f":"IF(A41=\"\",\"\",'1. Checklist & Certification'!$G$66)","v":""},{"$f":"IF(A41=\"\",\"\",'1. Checklist & Certification'!$H$66)","v":""},{"$f":"IF(A41=\"\",\"\",'1. Checklist & Certification'!$I$66)","v":""},{"$f":"IF(A41=\"\",\"\",'1. Checklist & Certification'!$I$67)","v":""},{"$f":"IF(A41=\"\",\"\",'1. Checklist & Certification'!$I$68)","v":""},{"$f":"IF(A41=\"\",\"\",'1. Checklist & Certification'!$B$69)","v":""},{"$f":"IF(A41=\"\",\"\",'1. Checklist & Certification'!$C$69)","v":""},{"$f":"IF(A41=\"\",\"\",'1. Checklist & Certification'!$F$69)","v":""},{"$f":"IF(A41=\"\",\"\",'1. Checklist & Certification'!$G$69)","v":""},{"$f":"IF(A41=\"\",\"\",'1. Checklist & Certification'!$J$69)","v":""},{"$f":"IF(A41=\"\",\"\",'1. Checklist & Certification'!$K$69)","v":""},null,null,{"$f":"IF(AND(OR('1. Checklist & Certification'!$M$16=1,'1. Checklist & Certification'!$M$19=2),AO41>0,B41=\"\",I41>0,AQ41<I41,AV41<>\"Sec 8-Project\"),\"X\",IF(AND(OR('1. Checklist & Certification'!$M$20=4,'1. Checklist & Certification'!$M$21=5,'1. Checklist & Certification'!$M$22=7),AO41>0,B41=\"\",I41>0,K41<I41),\"X\",\"\"))","v":""},{"$f":"IF(A41=\"\",\"\",IF(SUMPRODUCT(-- (ISNUMBER(SEARCH({\"*AHSC*\",\"*FMTW*\",\"*FWHG*\",\"*GHI*\",\"*HHC*\",\"*HLCP*\",\"*HOME*\",\"*LPR*\",\"*MHP*\",\"*NHTF*\",\"*NSP*\",\"*PRP*\",\"*TOD*\",\"*VHHP*\"},'1. Checklist & Certification'!$L$7)))),\"MHP\",\"Legacy\"))","v":""},",,",null,null,null,{"$f":"IF('1. Checklist & Certification'!$M$20=4,\"Both\",IF(OR('1. Checklist & Certification'!$M$15>0,S41=\"CHRP-R\",U41=\"CHRP-R\",W41=\"CHRP-R\",Y41=\"CHRP-R\"),\"Under\",\"No\"))","v":"No"},"No","No",{"$f":"_xlfn.IFS(D41=\"\",\"\",D41=1,'MHP Family Income & Rent Limits'!$E$17,D41=2,'MHP Family Income & Rent Limits'!$F$17,D41=3,'MHP Family Income & Rent Limits'!$G$17,D41=4,'MHP Family Income & Rent Limits'!$H$17,D41=5,'MHP Family Income & Rent Limits'!$I$17,D41=6,'MHP Family Income & Rent Limits'!$J$17,D41=7,'MHP Family Income & Rent Limits'!$K$17,D41=8,'MHP Family Income & Rent Limits'!$L$17)","v":""},"",{"$f":"IF(OR(A41=0,B41=\"X\"),0,MIN(IF(AA41:AD41<>0,AA41:AD41)))","v":0},{"$f":"IF(OR(H41=\"\",I41=\"\"),0,IF(H41*0.3/12>I41,MIN(H41*0.3/12,I41*1.1)+AP41,I41*(1+(VLOOKUP('1. Checklist & Certification'!$F$9,'HLCP-E Rent Change'!$A$1:$D$59,4,FALSE)))+AP41))","v":0}]
[null,null,null,null,null,null,null,null,null,null,null,null,null,null,null,null,null,null,null,null,null,null,null,null,null,null,0,0,0,0,0,0,0,0,{"$f":"IF(OR(A42=0,B42=\"X\"),0,IF(OR(S42=\"FHDP\",S42=\"RHCP-B\",U42=\"FHDP\",U42=\"RHCP-B\",W42=\"FHDP\",W42=\"RHCP-B\",Y42=\"FHDP\",Y42=\"RHCP-B\"),TRUNC((MIN(I42,K42)*(1+'1. Checklist & Certification'!$K$43)+AP42)),0))","v":0},{"$f":"IF(OR(A42=0,B42=\"X\"),0,IF(OR(S42=\"CHRP-R\",S42=\"SERA\",S42=\"SUHRP\",U42=\"CHRP-R\",U42=\"SERA\",U42=\"SUHRP\",W42=\"CHRP-R\",W42=\"SERA\",W42=\"SUHRP\",Y42=\"CHRP-R\",Y42=\"SERA\",Y42=\"SUHRP\"),TRUNC((MIN(I42,K42)*(1+'1. Checklist & Certification'!$K$49))),0))","v":0},{"$f":"IF(OR(A42=0,B42=\"X\"),0,IF(OR(S42=\"CALDAP\",S42=\"DPRLP\",U42=\"CALDAP\",U42=\"DPRLP\",W42=\"CALDAP\",W42=\"DPRLP\",Y42=\"CALDAP\",Y42=\"DPRLP\"),TRUNC(((MIN(I42,K42))*(1+'1. Checklist & Certification'!$G$4))),0))","v":0},0,0,0,{"$f":"IF(OR(A42=0,B42=\"X\"),0,IF(OR(S42=\"PRP\",S42=\"LPR\",U42=\"PRP\",U42=\"LPR\",W42=\"PRP\",W42=\"LPR\",Y42=\"PRP\",Y42=\"LPR\"),MAX(I42+AP42,MIN(IF(AE42:AN42<>0,AE42:AN42))),MIN(IF(AE42:AN42<>0,AE42:AN42))))","v":0},{"$f":"IF(A42=0,0,IF(AND(OR(S42=\"Mgr\",S42=0),OR(U42=\"Mgr\",U42=0),OR(W42=\"Mgr\",W42=0)),0,IF(LEFT($A42,2)=\"B*\",VLOOKUP($E42,'1. Checklist & Certification'!$D$26:$E$32,2),IF(LEFT($A42,2)=\"C*\",VLOOKUP($E42,'1. Checklist & Certification'!$F$26:$G$32,2),IF(LEFT($A42,2)=\"D*\",VLOOKUP($E42,'1. Checklist & Certification'!$H$26:$I$32,2),IF(LEFT($A42,2)=\"E*\",VLOOKUP($E42,'1. Checklist & Certification'!$J$26:$K$32,2),VLOOKUP($E42,'1. Checklist & Certification'!$A$26:$B$32,2)))))))","v":0},0,0,null,null,null,null,"","",0,0,0,null,{"$f":"IF(A42=\"\",\"\",'1. Checklist & Certification'!$K$1)","v":""},{"$f":"IF(A42=\"\",\"\",'1. Checklist & Certification'!$C$62)","v":""},{"$f":"IF(A42=\"\",\"\",'1. Checklist & Certification'!$C$6)","v":""},{"$f":"IF(A42=\"\",\"\",'1. Checklist & Certification'!$G$5)","v":""},{"$f":"IFERROR(IF(A42=\"\",\"\",\n_xlfn.LET(_xlpm.Contract,'1. Checklist & Certification'!$C$7,\n_xlpm.Yr,TEXT(MOD(_xlfn.TEXTBEFORE(_xlpm.Contract,\"-\"),100),\"00\"),\n_xlpm.Program,_xlfn.TEXTAFTER(_xlfn.TEXTBEFORE(_xlpm.Contract,\"-\",2),\"-\"),\n_xlpm.CleanProgram,_xlfn.XLOOKUP(_xlpm.Program,SpellCheck[Input],SpellCheck[Correction],_xlpm.Program),\n_xlpm.Number,TEXT(_xlfn.TEXTAFTER(_xlpm.Contract,\"-\",2),\"0000\"),\n_xlfn.CONCAT(_xlpm.Yr,\"-\",_xlpm.CleanProgram,\"-\",_xlpm.Number))\n),\"\")","v":""},{"$f":"IFERROR(IF(A42=\"\",\"\",\n_xlfn.LET(_xlpm.Contract,'1. Checklist & Certification'!$C$8,\n_xlpm.Yr,TEXT(MOD(_xlfn.TEXTBEFORE(_xlpm.Contract,\"-\"),100),\"00\"),\n_xlpm.Program,_xlfn.TEXTAFTER(_xlfn.TEXTBEFORE(_xlpm.Contract,\"-\",2),\"-\"),\n_xlpm.CleanProgram,_xlfn.XLOOKUP(_xlpm.Program,SpellCheck[Input],SpellCheck[Correction],_xlpm.Program),\n_xlpm.Number,TEXT(_xlfn.TEXTAFTER(_xlpm.Contract,\"-\",2),\"0000\"),\n_xlfn.CONCAT(_xlpm.Yr,\"-\",_xlpm.CleanProgram,\"-\",_xlpm.Number))\n),\"\")","v":""},{"$f":"IFERROR(IF(A42=\"\",\"\",\n_xlfn.LET(_xlpm.Contract,'1. Checklist & Certification'!$F$7,\n_xlpm.Yr,TEXT(MOD(_xlfn.TEXTBEFORE(_xlpm.Contract,\"-\"),100),\"00\"),\n_xlpm.Program,_xlfn.TEXTAFTER(_xlfn.TEXTBEFORE(_xlpm.Contract,\"-\",2),\"-\"),\n_xlpm.CleanProgram,_xlfn.XLOOKUP(_xlpm.Program,SpellCheck[Input],SpellCheck[Correction],_xlpm.Program),\n_xlpm.Number,TEXT(_xlfn.TEXTAFTER(_xlpm.Contract,\"-\",2),\"0000\"),\n_xlfn.CONCAT(_xlpm.Yr,\"-\",_xlpm.CleanProgram,\"-\",_xlpm.Number))\n),\"\")","v":""},{"$f":"IFERROR(IF(A42=\"\",\"\",\n_xlfn.LET(_xlpm.Contract,'1. Checklist & Certification'!$F$8,\n_xlpm.Yr,TEXT(MOD(_xlfn.TEXTBEFORE(_xlpm.Contract,\"-\"),100),\"00\"),\n_xlpm.Program,_xlfn.TEXTAFTER(_xlfn.TEXTBEFORE(_xlpm.Contract,\"-\",2),\"-\"),\n_xlpm.CleanProgram,_xlfn.XLOOKUP(_xlpm.Program,SpellCheck[Input],SpellCheck[Correction],_xlpm.Program),\n_xlpm.Number,TEXT(_xlfn.TEXTAFTER(_xlpm.Contract,\"-\",2),\"0000\"),\n_xlfn.CONCAT(_xlpm.Yr,\"-\",_xlpm.CleanProgram,\"-\",_xlpm.Number))\n),\"\")","v":""},{"$f":"IF(A42=\"\",\"\",'1. Checklist & Certification'!$B$9)","v":""},{"$f":"IF(A42=\"\",\"\",'1. Checklist & Certification'!$F$9)","v":""},{"$f":"IF(A42=\"\",\"\",'1. Checklist & Certification'!$C$10)","v":""},{"$f":"IF(A42=\"\",\"\",'1. Checklist & Certification'!$C$11)","v":""},{"$f":"IF(A42=\"\",\"\",'1. Checklist & Certification'!$C$12)","v":""},{"$f":"IF(A42=\"\",\"\",'1. Checklist & Certification'!$B$14)","v":""},{"$f":"IF(A42=\"\",\"\",'1. Checklist & Certification'!$E$14)","v":""},{"$f":"IF(B42=\"\",\"\",'1. Checklist & Certification'!$G$14)","v":""},{"$f":"IF(A42=\"\",\"\",'MHP Family Income & Rent Limits'!$B$3)","v":""},{"$f":"IF(A42=\"\",\"\",'MHP Family Income & Rent Limits'!$J$3)","v":""},{"$f":"IF(A42=\"\",\"\",'MHP Family Income & Rent Limits'!$E$4)","v":""},{"$f":"IF(A42=\"\",\"\",'MHP Family Income & Rent Limits'!$C$7)","v":""},{"$f":"IF(A42=\"\",\"\",'MHP Family Income & Rent Limits'!$F$8)","v":""},{"$f":"IF(A42=\"\",\"\",'1. Checklist & Certification'!$G$4)","v":""},{"$f":"IF(A42=\"\",\"\",'1. Checklist & Certification'!$K$39)","v":""},{"$f":"IF(A42=\"\",\"\",'1. Checklist & Certification'!$K$43)","v":""},{"$f":"IF(A42=\"\",\"\",'1. Checklist & Certification'!$K$45)","v":""},{"$f":"IF(A42=\"\",\"\",'1. Checklist & Certification'!$K$49)","v":""},{"$f":"IF(A42=\"\",\"\",'1. Checklist & Certification'!$K$62)","v":""},{"$f":"IF(A42=\"\",\"\",'1. Checklist & Certification'!$E$66)","v":""},{"$f":"IF(A42=\"\",\"\",'1. Checklist & Certification'!$E$67)","v":""},{"$f":"IF(A42=\"\",\"\",'1. Checklist & Certification'!$E$68)","v":""},{"$f":"IF(A42=\"\",\"\",'1. Checklist & Certification'!$G$66)","v":""},{"$f":"IF(A42=\"\",\"\",'1. Checklist & Certification'!$H$66)","v":""},{"$f":"IF(A42=\"\",\"\",'1. Checklist & Certification'!$I$66)","v":""},{"$f":"IF(A42=\"\",\"\",'1. Checklist & Certification'!$I$67)","v":""},{"$f":"IF(A42=\"\",\"\",'1. Checklist & Certification'!$I$68)","v":""},{"$f":"IF(A42=\"\",\"\",'1. Checklist & Certification'!$B$69)","v":""},{"$f":"IF(A42=\"\",\"\",'1. Checklist & Certification'!$C$69)","v":""},{"$f":"IF(A42=\"\",\"\",'1. Checklist & Certification'!$F$69)","v":""},{"$f":"IF(A42=\"\",\"\",'1. Checklist & Certification'!$G$69)","v":""},{"$f":"IF(A42=\"\",\"\",'1. Checklist & Certification'!$J$69)","v":""},{"$f":"IF(A42=\"\",\"\",'1. Checklist & Certification'!$K$69)","v":""},null,null,{"$f":"IF(AND(OR('1. Checklist & Certification'!$M$16=1,'1. Checklist & Certification'!$M$19=2),AO42>0,B42=\"\",I42>0,AQ42<I42,AV42<>\"Sec 8-Project\"),\"X\",IF(AND(OR('1. Checklist & Certification'!$M$20=4,'1. Checklist & Certification'!$M$21=5,'1. Checklist & Certification'!$M$22=7),AO42>0,B42=\"\",I42>0,K42<I42),\"X\",\"\"))","v":""},{"$f":"IF(A42=\"\",\"\",IF(SUMPRODUCT(-- (ISNUMBER(SEARCH({\"*AHSC*\",\"*FMTW*\",\"*FWHG*\",\"*GHI*\",\"*HHC*\",\"*HLCP*\",\"*HOME*\",\"*LPR*\",\"*MHP*\",\"*NHTF*\",\"*NSP*\",\"*PRP*\",\"*TOD*\",\"*VHHP*\"},'1. Checklist & Certification'!$L$7)))),\"MHP\",\"Legacy\"))","v":""},",,",null,null,null,{"$f":"IF('1. Checklist & Certification'!$M$20=4,\"Both\",IF(OR('1. Checklist & Certification'!$M$15>0,S42=\"CHRP-R\",U42=\"CHRP-R\",W42=\"CHRP-R\",Y42=\"CHRP-R\"),\"Under\",\"No\"))","v":"No"},"No","No",{"$f":"_xlfn.IFS(D42=\"\",\"\",D42=1,'MHP Family Income & Rent Limits'!$E$17,D42=2,'MHP Family Income & Rent Limits'!$F$17,D42=3,'MHP Family Income & Rent Limits'!$G$17,D42=4,'MHP Family Income & Rent Limits'!$H$17,D42=5,'MHP Family Income & Rent Limits'!$I$17,D42=6,'MHP Family Income & Rent Limits'!$J$17,D42=7,'MHP Family Income & Rent Limits'!$K$17,D42=8,'MHP Family Income & Rent Limits'!$L$17)","v":""},"",{"$f":"IF(OR(A42=0,B42=\"X\"),0,MIN(IF(AA42:AD42<>0,AA42:AD42)))","v":0},{"$f":"IF(OR(H42=\"\",I42=\"\"),0,IF(H42*0.3/12>I42,MIN(H42*0.3/12,I42*1.1)+AP42,I42*(1+(VLOOKUP('1. Checklist & Certification'!$F$9,'HLCP-E Rent Change'!$A$1:$D$59,4,FALSE)))+AP42))","v":0}]
[null,null,null,null,null,null,null,null,null,null,null,null,null,null,null,null,null,null,null,null,null,null,null,null,null,null,0,0,0,0,0,0,0,0,{"$f":"IF(OR(A43=0,B43=\"X\"),0,IF(OR(S43=\"FHDP\",S43=\"RHCP-B\",U43=\"FHDP\",U43=\"RHCP-B\",W43=\"FHDP\",W43=\"RHCP-B\",Y43=\"FHDP\",Y43=\"RHCP-B\"),TRUNC((MIN(I43,K43)*(1+'1. Checklist & Certification'!$K$43)+AP43)),0))","v":0},{"$f":"IF(OR(A43=0,B43=\"X\"),0,IF(OR(S43=\"CHRP-R\",S43=\"SERA\",S43=\"SUHRP\",U43=\"CHRP-R\",U43=\"SERA\",U43=\"SUHRP\",W43=\"CHRP-R\",W43=\"SERA\",W43=\"SUHRP\",Y43=\"CHRP-R\",Y43=\"SERA\",Y43=\"SUHRP\"),TRUNC((MIN(I43,K43)*(1+'1. Checklist & Certification'!$K$49))),0))","v":0},{"$f":"IF(OR(A43=0,B43=\"X\"),0,IF(OR(S43=\"CALDAP\",S43=\"DPRLP\",U43=\"CALDAP\",U43=\"DPRLP\",W43=\"CALDAP\",W43=\"DPRLP\",Y43=\"CALDAP\",Y43=\"DPRLP\"),TRUNC(((MIN(I43,K43))*(1+'1. Checklist & Certification'!$G$4))),0))","v":0},0,0,0,{"$f":"IF(OR(A43=0,B43=\"X\"),0,IF(OR(S43=\"PRP\",S43=\"LPR\",U43=\"PRP\",U43=\"LPR\",W43=\"PRP\",W43=\"LPR\",Y43=\"PRP\",Y43=\"LPR\"),MAX(I43+AP43,MIN(IF(AE43:AN43<>0,AE43:AN43))),MIN(IF(AE43:AN43<>0,AE43:AN43))))","v":0},{"$f":"IF(A43=0,0,IF(AND(OR(S43=\"Mgr\",S43=0),OR(U43=\"Mgr\",U43=0),OR(W43=\"Mgr\",W43=0)),0,IF(LEFT($A43,2)=\"B*\",VLOOKUP($E43,'1. Checklist & Certification'!$D$26:$E$32,2),IF(LEFT($A43,2)=\"C*\",VLOOKUP($E43,'1. Checklist & Certification'!$F$26:$G$32,2),IF(LEFT($A43,2)=\"D*\",VLOOKUP($E43,'1. Checklist & Certification'!$H$26:$I$32,2),IF(LEFT($A43,2)=\"E*\",VLOOKUP($E43,'1. Checklist & Certification'!$J$26:$K$32,2),VLOOKUP($E43,'1. Checklist & Certification'!$A$26:$B$32,2)))))))","v":0},0,0,null,null,null,null,"","",0,0,0,null,{"$f":"IF(A43=\"\",\"\",'1. Checklist & Certification'!$K$1)","v":""},{"$f":"IF(A43=\"\",\"\",'1. Checklist & Certification'!$C$62)","v":""},{"$f":"IF(A43=\"\",\"\",'1. Checklist & Certification'!$C$6)","v":""},{"$f":"IF(A43=\"\",\"\",'1. Checklist & Certification'!$G$5)","v":""},{"$f":"IFERROR(IF(A43=\"\",\"\",\n_xlfn.LET(_xlpm.Contract,'1. Checklist & Certification'!$C$7,\n_xlpm.Yr,TEXT(MOD(_xlfn.TEXTBEFORE(_xlpm.Contract,\"-\"),100),\"00\"),\n_xlpm.Program,_xlfn.TEXTAFTER(_xlfn.TEXTBEFORE(_xlpm.Contract,\"-\",2),\"-\"),\n_xlpm.CleanProgram,_xlfn.XLOOKUP(_xlpm.Program,SpellCheck[Input],SpellCheck[Correction],_xlpm.Program),\n_xlpm.Number,TEXT(_xlfn.TEXTAFTER(_xlpm.Contract,\"-\",2),\"0000\"),\n_xlfn.CONCAT(_xlpm.Yr,\"-\",_xlpm.CleanProgram,\"-\",_xlpm.Number))\n),\"\")","v":""},{"$f":"IFERROR(IF(A43=\"\",\"\",\n_xlfn.LET(_xlpm.Contract,'1. Checklist & Certification'!$C$8,\n_xlpm.Yr,TEXT(MOD(_xlfn.TEXTBEFORE(_xlpm.Contract,\"-\"),100),\"00\"),\n_xlpm.Program,_xlfn.TEXTAFTER(_xlfn.TEXTBEFORE(_xlpm.Contract,\"-\",2),\"-\"),\n_xlpm.CleanProgram,_xlfn.XLOOKUP(_xlpm.Program,SpellCheck[Input],SpellCheck[Correction],_xlpm.Program),\n_xlpm.Number,TEXT(_xlfn.TEXTAFTER(_xlpm.Contract,\"-\",2),\"0000\"),\n_xlfn.CONCAT(_xlpm.Yr,\"-\",_xlpm.CleanProgram,\"-\",_xlpm.Number))\n),\"\")","v":""},{"$f":"IFERROR(IF(A43=\"\",\"\",\n_xlfn.LET(_xlpm.Contract,'1. Checklist & Certification'!$F$7,\n_xlpm.Yr,TEXT(MOD(_xlfn.TEXTBEFORE(_xlpm.Contract,\"-\"),100),\"00\"),\n_xlpm.Program,_xlfn.TEXTAFTER(_xlfn.TEXTBEFORE(_xlpm.Contract,\"-\",2),\"-\"),\n_xlpm.CleanProgram,_xlfn.XLOOKUP(_xlpm.Program,SpellCheck[Input],SpellCheck[Correction],_xlpm.Program),\n_xlpm.Number,TEXT(_xlfn.TEXTAFTER(_xlpm.Contract,\"-\",2),\"0000\"),\n_xlfn.CONCAT(_xlpm.Yr,\"-\",_xlpm.CleanProgram,\"-\",_xlpm.Number))\n),\"\")","v":""},{"$f":"IFERROR(IF(A43=\"\",\"\",\n_xlfn.LET(_xlpm.Contract,'1. Checklist & Certification'!$F$8,\n_xlpm.Yr,TEXT(MOD(_xlfn.TEXTBEFORE(_xlpm.Contract,\"-\"),100),\"00\"),\n_xlpm.Program,_xlfn.TEXTAFTER(_xlfn.TEXTBEFORE(_xlpm.Contract,\"-\",2),\"-\"),\n_xlpm.CleanProgram,_xlfn.XLOOKUP(_xlpm.Program,SpellCheck[Input],SpellCheck[Correction],_xlpm.Program),\n_xlpm.Number,TEXT(_xlfn.TEXTAFTER(_xlpm.Contract,\"-\",2),\"0000\"),\n_xlfn.CONCAT(_xlpm.Yr,\"-\",_xlpm.CleanProgram,\"-\",_xlpm.Number))\n),\"\")","v":""},{"$f":"IF(A43=\"\",\"\",'1. Checklist & Certification'!$B$9)","v":""},{"$f":"IF(A43=\"\",\"\",'1. Checklist & Certification'!$F$9)","v":""},{"$f":"IF(A43=\"\",\"\",'1. Checklist & Certification'!$C$10)","v":""},{"$f":"IF(A43=\"\",\"\",'1. Checklist & Certification'!$C$11)","v":""},{"$f":"IF(A43=\"\",\"\",'1. Checklist & Certification'!$C$12)","v":""},{"$f":"IF(A43=\"\",\"\",'1. Checklist & Certification'!$B$14)","v":""},{"$f":"IF(A43=\"\",\"\",'1. Checklist & Certification'!$E$14)","v":""},{"$f":"IF(B43=\"\",\"\",'1. Checklist & Certification'!$G$14)","v":""},{"$f":"IF(A43=\"\",\"\",'MHP Family Income & Rent Limits'!$B$3)","v":""},{"$f":"IF(A43=\"\",\"\",'MHP Family Income & Rent Limits'!$J$3)","v":""},{"$f":"IF(A43=\"\",\"\",'MHP Family Income & Rent Limits'!$E$4)","v":""},{"$f":"IF(A43=\"\",\"\",'MHP Family Income & Rent Limits'!$C$7)","v":""},{"$f":"IF(A43=\"\",\"\",'MHP Family Income & Rent Limits'!$F$8)","v":""},{"$f":"IF(A43=\"\",\"\",'1. Checklist & Certification'!$G$4)","v":""},{"$f":"IF(A43=\"\",\"\",'1. Checklist & Certification'!$K$39)","v":""},{"$f":"IF(A43=\"\",\"\",'1. Checklist & Certification'!$K$43)","v":""},{"$f":"IF(A43=\"\",\"\",'1. Checklist & Certification'!$K$45)","v":""},{"$f":"IF(A43=\"\",\"\",'1. Checklist & Certification'!$K$49)","v":""},{"$f":"IF(A43=\"\",\"\",'1. Checklist & Certification'!$K$62)","v":""},{"$f":"IF(A43=\"\",\"\",'1. Checklist & Certification'!$E$66)","v":""},{"$f":"IF(A43=\"\",\"\",'1. Checklist & Certification'!$E$67)","v":""},{"$f":"IF(A43=\"\",\"\",'1. Checklist & Certification'!$E$68)","v":""},{"$f":"IF(A43=\"\",\"\",'1. Checklist & Certification'!$G$66)","v":""},{"$f":"IF(A43=\"\",\"\",'1. Checklist & Certification'!$H$66)","v":""},{"$f":"IF(A43=\"\",\"\",'1. Checklist & Certification'!$I$66)","v":""},{"$f":"IF(A43=\"\",\"\",'1. Checklist & Certification'!$I$67)","v":""},{"$f":"IF(A43=\"\",\"\",'1. Checklist & Certification'!$I$68)","v":""},{"$f":"IF(A43=\"\",\"\",'1. Checklist & Certification'!$B$69)","v":""},{"$f":"IF(A43=\"\",\"\",'1. Checklist & Certification'!$C$69)","v":""},{"$f":"IF(A43=\"\",\"\",'1. Checklist & Certification'!$F$69)","v":""},{"$f":"IF(A43=\"\",\"\",'1. Checklist & Certification'!$G$69)","v":""},{"$f":"IF(A43=\"\",\"\",'1. Checklist & Certification'!$J$69)","v":""},{"$f":"IF(A43=\"\",\"\",'1. Checklist & Certification'!$K$69)","v":""},null,null,{"$f":"IF(AND(OR('1. Checklist & Certification'!$M$16=1,'1. Checklist & Certification'!$M$19=2),AO43>0,B43=\"\",I43>0,AQ43<I43,AV43<>\"Sec 8-Project\"),\"X\",IF(AND(OR('1. Checklist & Certification'!$M$20=4,'1. Checklist & Certification'!$M$21=5,'1. Checklist & Certification'!$M$22=7),AO43>0,B43=\"\",I43>0,K43<I43),\"X\",\"\"))","v":""},{"$f":"IF(A43=\"\",\"\",IF(SUMPRODUCT(-- (ISNUMBER(SEARCH({\"*AHSC*\",\"*FMTW*\",\"*FWHG*\",\"*GHI*\",\"*HHC*\",\"*HLCP*\",\"*HOME*\",\"*LPR*\",\"*MHP*\",\"*NHTF*\",\"*NSP*\",\"*PRP*\",\"*TOD*\",\"*VHHP*\"},'1. Checklist & Certification'!$L$7)))),\"MHP\",\"Legacy\"))","v":""},",,",null,null,null,{"$f":"IF('1. Checklist & Certification'!$M$20=4,\"Both\",IF(OR('1. Checklist & Certification'!$M$15>0,S43=\"CHRP-R\",U43=\"CHRP-R\",W43=\"CHRP-R\",Y43=\"CHRP-R\"),\"Under\",\"No\"))","v":"No"},"No","No",{"$f":"_xlfn.IFS(D43=\"\",\"\",D43=1,'MHP Family Income & Rent Limits'!$E$17,D43=2,'MHP Family Income & Rent Limits'!$F$17,D43=3,'MHP Family Income & Rent Limits'!$G$17,D43=4,'MHP Family Income & Rent Limits'!$H$17,D43=5,'MHP Family Income & Rent Limits'!$I$17,D43=6,'MHP Family Income & Rent Limits'!$J$17,D43=7,'MHP Family Income & Rent Limits'!$K$17,D43=8,'MHP Family Income & Rent Limits'!$L$17)","v":""},"",{"$f":"IF(OR(A43=0,B43=\"X\"),0,MIN(IF(AA43:AD43<>0,AA43:AD43)))","v":0},{"$f":"IF(OR(H43=\"\",I43=\"\"),0,IF(H43*0.3/12>I43,MIN(H43*0.3/12,I43*1.1)+AP43,I43*(1+(VLOOKUP('1. Checklist & Certification'!$F$9,'HLCP-E Rent Change'!$A$1:$D$59,4,FALSE)))+AP43))","v":0}]
[null,null,null,null,null,null,null,null,null,null,null,null,null,null,null,null,null,null,null,null,null,null,null,null,null,null,0,0,0,0,0,0,0,0,{"$f":"IF(OR(A44=0,B44=\"X\"),0,IF(OR(S44=\"FHDP\",S44=\"RHCP-B\",U44=\"FHDP\",U44=\"RHCP-B\",W44=\"FHDP\",W44=\"RHCP-B\",Y44=\"FHDP\",Y44=\"RHCP-B\"),TRUNC((MIN(I44,K44)*(1+'1. Checklist & Certification'!$K$43)+AP44)),0))","v":0},{"$f":"IF(OR(A44=0,B44=\"X\"),0,IF(OR(S44=\"CHRP-R\",S44=\"SERA\",S44=\"SUHRP\",U44=\"CHRP-R\",U44=\"SERA\",U44=\"SUHRP\",W44=\"CHRP-R\",W44=\"SERA\",W44=\"SUHRP\",Y44=\"CHRP-R\",Y44=\"SERA\",Y44=\"SUHRP\"),TRUNC((MIN(I44,K44)*(1+'1. Checklist & Certification'!$K$49))),0))","v":0},{"$f":"IF(OR(A44=0,B44=\"X\"),0,IF(OR(S44=\"CALDAP\",S44=\"DPRLP\",U44=\"CALDAP\",U44=\"DPRLP\",W44=\"CALDAP\",W44=\"DPRLP\",Y44=\"CALDAP\",Y44=\"DPRLP\"),TRUNC(((MIN(I44,K44))*(1+'1. Checklist & Certification'!$G$4))),0))","v":0},0,0,0,{"$f":"IF(OR(A44=0,B44=\"X\"),0,IF(OR(S44=\"PRP\",S44=\"LPR\",U44=\"PRP\",U44=\"LPR\",W44=\"PRP\",W44=\"LPR\",Y44=\"PRP\",Y44=\"LPR\"),MAX(I44+AP44,MIN(IF(AE44:AN44<>0,AE44:AN44))),MIN(IF(AE44:AN44<>0,AE44:AN44))))","v":0},{"$f":"IF(A44=0,0,IF(AND(OR(S44=\"Mgr\",S44=0),OR(U44=\"Mgr\",U44=0),OR(W44=\"Mgr\",W44=0)),0,IF(LEFT($A44,2)=\"B*\",VLOOKUP($E44,'1. Checklist & Certification'!$D$26:$E$32,2),IF(LEFT($A44,2)=\"C*\",VLOOKUP($E44,'1. Checklist & Certification'!$F$26:$G$32,2),IF(LEFT($A44,2)=\"D*\",VLOOKUP($E44,'1. Checklist & Certification'!$H$26:$I$32,2),IF(LEFT($A44,2)=\"E*\",VLOOKUP($E44,'1. Checklist & Certification'!$J$26:$K$32,2),VLOOKUP($E44,'1. Checklist & Certification'!$A$26:$B$32,2)))))))","v":0},0,0,null,null,null,null,"","",0,0,0,null,{"$f":"IF(A44=\"\",\"\",'1. Checklist & Certification'!$K$1)","v":""},{"$f":"IF(A44=\"\",\"\",'1. Checklist & Certification'!$C$62)","v":""},{"$f":"IF(A44=\"\",\"\",'1. Checklist & Certification'!$C$6)","v":""},{"$f":"IF(A44=\"\",\"\",'1. Checklist & Certification'!$G$5)","v":""},{"$f":"IFERROR(IF(A44=\"\",\"\",\n_xlfn.LET(_xlpm.Contract,'1. Checklist & Certification'!$C$7,\n_xlpm.Yr,TEXT(MOD(_xlfn.TEXTBEFORE(_xlpm.Contract,\"-\"),100),\"00\"),\n_xlpm.Program,_xlfn.TEXTAFTER(_xlfn.TEXTBEFORE(_xlpm.Contract,\"-\",2),\"-\"),\n_xlpm.CleanProgram,_xlfn.XLOOKUP(_xlpm.Program,SpellCheck[Input],SpellCheck[Correction],_xlpm.Program),\n_xlpm.Number,TEXT(_xlfn.TEXTAFTER(_xlpm.Contract,\"-\",2),\"0000\"),\n_xlfn.CONCAT(_xlpm.Yr,\"-\",_xlpm.CleanProgram,\"-\",_xlpm.Number))\n),\"\")","v":""},{"$f":"IFERROR(IF(A44=\"\",\"\",\n_xlfn.LET(_xlpm.Contract,'1. Checklist & Certification'!$C$8,\n_xlpm.Yr,TEXT(MOD(_xlfn.TEXTBEFORE(_xlpm.Contract,\"-\"),100),\"00\"),\n_xlpm.Program,_xlfn.TEXTAFTER(_xlfn.TEXTBEFORE(_xlpm.Contract,\"-\",2),\"-\"),\n_xlpm.CleanProgram,_xlfn.XLOOKUP(_xlpm.Program,SpellCheck[Input],SpellCheck[Correction],_xlpm.Program),\n_xlpm.Number,TEXT(_xlfn.TEXTAFTER(_xlpm.Contract,\"-\",2),\"0000\"),\n_xlfn.CONCAT(_xlpm.Yr,\"-\",_xlpm.CleanProgram,\"-\",_xlpm.Number))\n),\"\")","v":""},{"$f":"IFERROR(IF(A44=\"\",\"\",\n_xlfn.LET(_xlpm.Contract,'1. Checklist & Certification'!$F$7,\n_xlpm.Yr,TEXT(MOD(_xlfn.TEXTBEFORE(_xlpm.Contract,\"-\"),100),\"00\"),\n_xlpm.Program,_xlfn.TEXTAFTER(_xlfn.TEXTBEFORE(_xlpm.Contract,\"-\",2),\"-\"),\n_xlpm.CleanProgram,_xlfn.XLOOKUP(_xlpm.Program,SpellCheck[Input],SpellCheck[Correction],_xlpm.Program),\n_xlpm.Number,TEXT(_xlfn.TEXTAFTER(_xlpm.Contract,\"-\",2),\"0000\"),\n_xlfn.CONCAT(_xlpm.Yr,\"-\",_xlpm.CleanProgram,\"-\",_xlpm.Number))\n),\"\")","v":""},{"$f":"IFERROR(IF(A44=\"\",\"\",\n_xlfn.LET(_xlpm.Contract,'1. Checklist & Certification'!$F$8,\n_xlpm.Yr,TEXT(MOD(_xlfn.TEXTBEFORE(_xlpm.Contract,\"-\"),100),\"00\"),\n_xlpm.Program,_xlfn.TEXTAFTER(_xlfn.TEXTBEFORE(_xlpm.Contract,\"-\",2),\"-\"),\n_xlpm.CleanProgram,_xlfn.XLOOKUP(_xlpm.Program,SpellCheck[Input],SpellCheck[Correction],_xlpm.Program),\n_xlpm.Number,TEXT(_xlfn.TEXTAFTER(_xlpm.Contract,\"-\",2),\"0000\"),\n_xlfn.CONCAT(_xlpm.Yr,\"-\",_xlpm.CleanProgram,\"-\",_xlpm.Number))\n),\"\")","v":""},{"$f":"IF(A44=\"\",\"\",'1. Checklist & Certification'!$B$9)","v":""},{"$f":"IF(A44=\"\",\"\",'1. Checklist & Certification'!$F$9)","v":""},{"$f":"IF(A44=\"\",\"\",'1. Checklist & Certification'!$C$10)","v":""},{"$f":"IF(A44=\"\",\"\",'1. Checklist & Certification'!$C$11)","v":""},{"$f":"IF(A44=\"\",\"\",'1. Checklist & Certification'!$C$12)","v":""},{"$f":"IF(A44=\"\",\"\",'1. Checklist & Certification'!$B$14)","v":""},{"$f":"IF(A44=\"\",\"\",'1. Checklist & Certification'!$E$14)","v":""},{"$f":"IF(B44=\"\",\"\",'1. Checklist & Certification'!$G$14)","v":""},{"$f":"IF(A44=\"\",\"\",'MHP Family Income & Rent Limits'!$B$3)","v":""},{"$f":"IF(A44=\"\",\"\",'MHP Family Income & Rent Limits'!$J$3)","v":""},{"$f":"IF(A44=\"\",\"\",'MHP Family Income & Rent Limits'!$E$4)","v":""},{"$f":"IF(A44=\"\",\"\",'MHP Family Income & Rent Limits'!$C$7)","v":""},{"$f":"IF(A44=\"\",\"\",'MHP Family Income & Rent Limits'!$F$8)","v":""},{"$f":"IF(A44=\"\",\"\",'1. Checklist & Certification'!$G$4)","v":""},{"$f":"IF(A44=\"\",\"\",'1. Checklist & Certification'!$K$39)","v":""},{"$f":"IF(A44=\"\",\"\",'1. Checklist & Certification'!$K$43)","v":""},{"$f":"IF(A44=\"\",\"\",'1. Checklist & Certification'!$K$45)","v":""},{"$f":"IF(A44=\"\",\"\",'1. Checklist & Certification'!$K$49)","v":""},{"$f":"IF(A44=\"\",\"\",'1. Checklist & Certification'!$K$62)","v":""},{"$f":"IF(A44=\"\",\"\",'1. Checklist & Certification'!$E$66)","v":""},{"$f":"IF(A44=\"\",\"\",'1. Checklist & Certification'!$E$67)","v":""},{"$f":"IF(A44=\"\",\"\",'1. Checklist & Certification'!$E$68)","v":""},{"$f":"IF(A44=\"\",\"\",'1. Checklist & Certification'!$G$66)","v":""},{"$f":"IF(A44=\"\",\"\",'1. Checklist & Certification'!$H$66)","v":""},{"$f":"IF(A44=\"\",\"\",'1. Checklist & Certification'!$I$66)","v":""},{"$f":"IF(A44=\"\",\"\",'1. Checklist & Certification'!$I$67)","v":""},{"$f":"IF(A44=\"\",\"\",'1. Checklist & Certification'!$I$68)","v":""},{"$f":"IF(A44=\"\",\"\",'1. Checklist & Certification'!$B$69)","v":""},{"$f":"IF(A44=\"\",\"\",'1. Checklist & Certification'!$C$69)","v":""},{"$f":"IF(A44=\"\",\"\",'1. Checklist & Certification'!$F$69)","v":""},{"$f":"IF(A44=\"\",\"\",'1. Checklist & Certification'!$G$69)","v":""},{"$f":"IF(A44=\"\",\"\",'1. Checklist & Certification'!$J$69)","v":""},{"$f":"IF(A44=\"\",\"\",'1. Checklist & Certification'!$K$69)","v":""},null,null,{"$f":"IF(AND(OR('1. Checklist & Certification'!$M$16=1,'1. Checklist & Certification'!$M$19=2),AO44>0,B44=\"\",I44>0,AQ44<I44,AV44<>\"Sec 8-Project\"),\"X\",IF(AND(OR('1. Checklist & Certification'!$M$20=4,'1. Checklist & Certification'!$M$21=5,'1. Checklist & Certification'!$M$22=7),AO44>0,B44=\"\",I44>0,K44<I44),\"X\",\"\"))","v":""},{"$f":"IF(A44=\"\",\"\",IF(SUMPRODUCT(-- (ISNUMBER(SEARCH({\"*AHSC*\",\"*FMTW*\",\"*FWHG*\",\"*GHI*\",\"*HHC*\",\"*HLCP*\",\"*HOME*\",\"*LPR*\",\"*MHP*\",\"*NHTF*\",\"*NSP*\",\"*PRP*\",\"*TOD*\",\"*VHHP*\"},'1. Checklist & Certification'!$L$7)))),\"MHP\",\"Legacy\"))","v":""},",,",null,null,null,{"$f":"IF('1. Checklist & Certification'!$M$20=4,\"Both\",IF(OR('1. Checklist & Certification'!$M$15>0,S44=\"CHRP-R\",U44=\"CHRP-R\",W44=\"CHRP-R\",Y44=\"CHRP-R\"),\"Under\",\"No\"))","v":"No"},"No","No",{"$f":"_xlfn.IFS(D44=\"\",\"\",D44=1,'MHP Family Income & Rent Limits'!$E$17,D44=2,'MHP Family Income & Rent Limits'!$F$17,D44=3,'MHP Family Income & Rent Limits'!$G$17,D44=4,'MHP Family Income & Rent Limits'!$H$17,D44=5,'MHP Family Income & Rent Limits'!$I$17,D44=6,'MHP Family Income & Rent Limits'!$J$17,D44=7,'MHP Family Income & Rent Limits'!$K$17,D44=8,'MHP Family Income & Rent Limits'!$L$17)","v":""},"",{"$f":"IF(OR(A44=0,B44=\"X\"),0,MIN(IF(AA44:AD44<>0,AA44:AD44)))","v":0},{"$f":"IF(OR(H44=\"\",I44=\"\"),0,IF(H44*0.3/12>I44,MIN(H44*0.3/12,I44*1.1)+AP44,I44*(1+(VLOOKUP('1. Checklist & Certification'!$F$9,'HLCP-E Rent Change'!$A$1:$D$59,4,FALSE)))+AP44))","v":0}]
[null,null,null,null,null,null,null,null,null,null,null,null,null,null,null,null,null,null,null,null,null,null,null,null,null,null,0,0,0,0,0,0,0,0,{"$f":"IF(OR(A45=0,B45=\"X\"),0,IF(OR(S45=\"FHDP\",S45=\"RHCP-B\",U45=\"FHDP\",U45=\"RHCP-B\",W45=\"FHDP\",W45=\"RHCP-B\",Y45=\"FHDP\",Y45=\"RHCP-B\"),TRUNC((MIN(I45,K45)*(1+'1. Checklist & Certification'!$K$43)+AP45)),0))","v":0},{"$f":"IF(OR(A45=0,B45=\"X\"),0,IF(OR(S45=\"CHRP-R\",S45=\"SERA\",S45=\"SUHRP\",U45=\"CHRP-R\",U45=\"SERA\",U45=\"SUHRP\",W45=\"CHRP-R\",W45=\"SERA\",W45=\"SUHRP\",Y45=\"CHRP-R\",Y45=\"SERA\",Y45=\"SUHRP\"),TRUNC((MIN(I45,K45)*(1+'1. Checklist & Certification'!$K$49))),0))","v":0},{"$f":"IF(OR(A45=0,B45=\"X\"),0,IF(OR(S45=\"CALDAP\",S45=\"DPRLP\",U45=\"CALDAP\",U45=\"DPRLP\",W45=\"CALDAP\",W45=\"DPRLP\",Y45=\"CALDAP\",Y45=\"DPRLP\"),TRUNC(((MIN(I45,K45))*(1+'1. Checklist & Certification'!$G$4))),0))","v":0},0,0,0,{"$f":"IF(OR(A45=0,B45=\"X\"),0,IF(OR(S45=\"PRP\",S45=\"LPR\",U45=\"PRP\",U45=\"LPR\",W45=\"PRP\",W45=\"LPR\",Y45=\"PRP\",Y45=\"LPR\"),MAX(I45+AP45,MIN(IF(AE45:AN45<>0,AE45:AN45))),MIN(IF(AE45:AN45<>0,AE45:AN45))))","v":0},{"$f":"IF(A45=0,0,IF(AND(OR(S45=\"Mgr\",S45=0),OR(U45=\"Mgr\",U45=0),OR(W45=\"Mgr\",W45=0)),0,IF(LEFT($A45,2)=\"B*\",VLOOKUP($E45,'1. Checklist & Certification'!$D$26:$E$32,2),IF(LEFT($A45,2)=\"C*\",VLOOKUP($E45,'1. Checklist & Certification'!$F$26:$G$32,2),IF(LEFT($A45,2)=\"D*\",VLOOKUP($E45,'1. Checklist & Certification'!$H$26:$I$32,2),IF(LEFT($A45,2)=\"E*\",VLOOKUP($E45,'1. Checklist & Certification'!$J$26:$K$32,2),VLOOKUP($E45,'1. Checklist & Certification'!$A$26:$B$32,2)))))))","v":0},0,0,null,null,null,null,"","",0,0,0,null,{"$f":"IF(A45=\"\",\"\",'1. Checklist & Certification'!$K$1)","v":""},{"$f":"IF(A45=\"\",\"\",'1. Checklist & Certification'!$C$62)","v":""},{"$f":"IF(A45=\"\",\"\",'1. Checklist & Certification'!$C$6)","v":""},{"$f":"IF(A45=\"\",\"\",'1. Checklist & Certification'!$G$5)","v":""},{"$f":"IFERROR(IF(A45=\"\",\"\",\n_xlfn.LET(_xlpm.Contract,'1. Checklist & Certification'!$C$7,\n_xlpm.Yr,TEXT(MOD(_xlfn.TEXTBEFORE(_xlpm.Contract,\"-\"),100),\"00\"),\n_xlpm.Program,_xlfn.TEXTAFTER(_xlfn.TEXTBEFORE(_xlpm.Contract,\"-\",2),\"-\"),\n_xlpm.CleanProgram,_xlfn.XLOOKUP(_xlpm.Program,SpellCheck[Input],SpellCheck[Correction],_xlpm.Program),\n_xlpm.Number,TEXT(_xlfn.TEXTAFTER(_xlpm.Contract,\"-\",2),\"0000\"),\n_xlfn.CONCAT(_xlpm.Yr,\"-\",_xlpm.CleanProgram,\"-\",_xlpm.Number))\n),\"\")","v":""},{"$f":"IFERROR(IF(A45=\"\",\"\",\n_xlfn.LET(_xlpm.Contract,'1. Checklist & Certification'!$C$8,\n_xlpm.Yr,TEXT(MOD(_xlfn.TEXTBEFORE(_xlpm.Contract,\"-\"),100),\"00\"),\n_xlpm.Program,_xlfn.TEXTAFTER(_xlfn.TEXTBEFORE(_xlpm.Contract,\"-\",2),\"-\"),\n_xlpm.CleanProgram,_xlfn.XLOOKUP(_xlpm.Program,SpellCheck[Input],SpellCheck[Correction],_xlpm.Program),\n_xlpm.Number,TEXT(_xlfn.TEXTAFTER(_xlpm.Contract,\"-\",2),\"0000\"),\n_xlfn.CONCAT(_xlpm.Yr,\"-\",_xlpm.CleanProgram,\"-\",_xlpm.Number))\n),\"\")","v":""},{"$f":"IFERROR(IF(A45=\"\",\"\",\n_xlfn.LET(_xlpm.Contract,'1. Checklist & Certification'!$F$7,\n_xlpm.Yr,TEXT(MOD(_xlfn.TEXTBEFORE(_xlpm.Contract,\"-\"),100),\"00\"),\n_xlpm.Program,_xlfn.TEXTAFTER(_xlfn.TEXTBEFORE(_xlpm.Contract,\"-\",2),\"-\"),\n_xlpm.CleanProgram,_xlfn.XLOOKUP(_xlpm.Program,SpellCheck[Input],SpellCheck[Correction],_xlpm.Program),\n_xlpm.Number,TEXT(_xlfn.TEXTAFTER(_xlpm.Contract,\"-\",2),\"0000\"),\n_xlfn.CONCAT(_xlpm.Yr,\"-\",_xlpm.CleanProgram,\"-\",_xlpm.Number))\n),\"\")","v":""},{"$f":"IFERROR(IF(A45=\"\",\"\",\n_xlfn.LET(_xlpm.Contract,'1. Checklist & Certification'!$F$8,\n_xlpm.Yr,TEXT(MOD(_xlfn.TEXTBEFORE(_xlpm.Contract,\"-\"),100),\"00\"),\n_xlpm.Program,_xlfn.TEXTAFTER(_xlfn.TEXTBEFORE(_xlpm.Contract,\"-\",2),\"-\"),\n_xlpm.CleanProgram,_xlfn.XLOOKUP(_xlpm.Program,SpellCheck[Input],SpellCheck[Correction],_xlpm.Program),\n_xlpm.Number,TEXT(_xlfn.TEXTAFTER(_xlpm.Contract,\"-\",2),\"0000\"),\n_xlfn.CONCAT(_xlpm.Yr,\"-\",_xlpm.CleanProgram,\"-\",_xlpm.Number))\n),\"\")","v":""},{"$f":"IF(A45=\"\",\"\",'1. Checklist & Certification'!$B$9)","v":""},{"$f":"IF(A45=\"\",\"\",'1. Checklist & Certification'!$F$9)","v":""},{"$f":"IF(A45=\"\",\"\",'1. Checklist & Certification'!$C$10)","v":""},{"$f":"IF(A45=\"\",\"\",'1. Checklist & Certification'!$C$11)","v":""},{"$f":"IF(A45=\"\",\"\",'1. Checklist & Certification'!$C$12)","v":""},{"$f":"IF(A45=\"\",\"\",'1. Checklist & Certification'!$B$14)","v":""},{"$f":"IF(A45=\"\",\"\",'1. Checklist & Certification'!$E$14)","v":""},{"$f":"IF(B45=\"\",\"\",'1. Checklist & Certification'!$G$14)","v":""},{"$f":"IF(A45=\"\",\"\",'MHP Family Income & Rent Limits'!$B$3)","v":""},{"$f":"IF(A45=\"\",\"\",'MHP Family Income & Rent Limits'!$J$3)","v":""},{"$f":"IF(A45=\"\",\"\",'MHP Family Income & Rent Limits'!$E$4)","v":""},{"$f":"IF(A45=\"\",\"\",'MHP Family Income & Rent Limits'!$C$7)","v":""},{"$f":"IF(A45=\"\",\"\",'MHP Family Income & Rent Limits'!$F$8)","v":""},{"$f":"IF(A45=\"\",\"\",'1. Checklist & Certification'!$G$4)","v":""},{"$f":"IF(A45=\"\",\"\",'1. Checklist & Certification'!$K$39)","v":""},{"$f":"IF(A45=\"\",\"\",'1. Checklist & Certification'!$K$43)","v":""},{"$f":"IF(A45=\"\",\"\",'1. Checklist & Certification'!$K$45)","v":""},{"$f":"IF(A45=\"\",\"\",'1. Checklist & Certification'!$K$49)","v":""},{"$f":"IF(A45=\"\",\"\",'1. Checklist & Certification'!$K$62)","v":""},{"$f":"IF(A45=\"\",\"\",'1. Checklist & Certification'!$E$66)","v":""},{"$f":"IF(A45=\"\",\"\",'1. Checklist & Certification'!$E$67)","v":""},{"$f":"IF(A45=\"\",\"\",'1. Checklist & Certification'!$E$68)","v":""},{"$f":"IF(A45=\"\",\"\",'1. Checklist & Certification'!$G$66)","v":""},{"$f":"IF(A45=\"\",\"\",'1. Checklist & Certification'!$H$66)","v":""},{"$f":"IF(A45=\"\",\"\",'1. Checklist & Certification'!$I$66)","v":""},{"$f":"IF(A45=\"\",\"\",'1. Checklist & Certification'!$I$67)","v":""},{"$f":"IF(A45=\"\",\"\",'1. Checklist & Certification'!$I$68)","v":""},{"$f":"IF(A45=\"\",\"\",'1. Checklist & Certification'!$B$69)","v":""},{"$f":"IF(A45=\"\",\"\",'1. Checklist & Certification'!$C$69)","v":""},{"$f":"IF(A45=\"\",\"\",'1. Checklist & Certification'!$F$69)","v":""},{"$f":"IF(A45=\"\",\"\",'1. Checklist & Certification'!$G$69)","v":""},{"$f":"IF(A45=\"\",\"\",'1. Checklist & Certification'!$J$69)","v":""},{"$f":"IF(A45=\"\",\"\",'1. Checklist & Certification'!$K$69)","v":""},null,null,{"$f":"IF(AND(OR('1. Checklist & Certification'!$M$16=1,'1. Checklist & Certification'!$M$19=2),AO45>0,B45=\"\",I45>0,AQ45<I45,AV45<>\"Sec 8-Project\"),\"X\",IF(AND(OR('1. Checklist & Certification'!$M$20=4,'1. Checklist & Certification'!$M$21=5,'1. Checklist & Certification'!$M$22=7),AO45>0,B45=\"\",I45>0,K45<I45),\"X\",\"\"))","v":""},{"$f":"IF(A45=\"\",\"\",IF(SUMPRODUCT(-- (ISNUMBER(SEARCH({\"*AHSC*\",\"*FMTW*\",\"*FWHG*\",\"*GHI*\",\"*HHC*\",\"*HLCP*\",\"*HOME*\",\"*LPR*\",\"*MHP*\",\"*NHTF*\",\"*NSP*\",\"*PRP*\",\"*TOD*\",\"*VHHP*\"},'1. Checklist & Certification'!$L$7)))),\"MHP\",\"Legacy\"))","v":""},",,",null,null,null,{"$f":"IF('1. Checklist & Certification'!$M$20=4,\"Both\",IF(OR('1. Checklist & Certification'!$M$15>0,S45=\"CHRP-R\",U45=\"CHRP-R\",W45=\"CHRP-R\",Y45=\"CHRP-R\"),\"Under\",\"No\"))","v":"No"},"No","No",{"$f":"_xlfn.IFS(D45=\"\",\"\",D45=1,'MHP Family Income & Rent Limits'!$E$17,D45=2,'MHP Family Income & Rent Limits'!$F$17,D45=3,'MHP Family Income & Rent Limits'!$G$17,D45=4,'MHP Family Income & Rent Limits'!$H$17,D45=5,'MHP Family Income & Rent Limits'!$I$17,D45=6,'MHP Family Income & Rent Limits'!$J$17,D45=7,'MHP Family Income & Rent Limits'!$K$17,D45=8,'MHP Family Income & Rent Limits'!$L$17)","v":""},"",{"$f":"IF(OR(A45=0,B45=\"X\"),0,MIN(IF(AA45:AD45<>0,AA45:AD45)))","v":0},{"$f":"IF(OR(H45=\"\",I45=\"\"),0,IF(H45*0.3/12>I45,MIN(H45*0.3/12,I45*1.1)+AP45,I45*(1+(VLOOKUP('1. Checklist & Certification'!$F$9,'HLCP-E Rent Change'!$A$1:$D$59,4,FALSE)))+AP45))","v":0}]
[null,null,null,null,null,null,null,null,null,null,null,null,null,null,null,null,null,null,null,null,null,null,null,null,null,null,0,0,0,0,0,0,0,0,{"$f":"IF(OR(A46=0,B46=\"X\"),0,IF(OR(S46=\"FHDP\",S46=\"RHCP-B\",U46=\"FHDP\",U46=\"RHCP-B\",W46=\"FHDP\",W46=\"RHCP-B\",Y46=\"FHDP\",Y46=\"RHCP-B\"),TRUNC((MIN(I46,K46)*(1+'1. Checklist & Certification'!$K$43)+AP46)),0))","v":0},{"$f":"IF(OR(A46=0,B46=\"X\"),0,IF(OR(S46=\"CHRP-R\",S46=\"SERA\",S46=\"SUHRP\",U46=\"CHRP-R\",U46=\"SERA\",U46=\"SUHRP\",W46=\"CHRP-R\",W46=\"SERA\",W46=\"SUHRP\",Y46=\"CHRP-R\",Y46=\"SERA\",Y46=\"SUHRP\"),TRUNC((MIN(I46,K46)*(1+'1. Checklist & Certification'!$K$49))),0))","v":0},{"$f":"IF(OR(A46=0,B46=\"X\"),0,IF(OR(S46=\"CALDAP\",S46=\"DPRLP\",U46=\"CALDAP\",U46=\"DPRLP\",W46=\"CALDAP\",W46=\"DPRLP\",Y46=\"CALDAP\",Y46=\"DPRLP\"),TRUNC(((MIN(I46,K46))*(1+'1. Checklist & Certification'!$G$4))),0))","v":0},0,0,0,{"$f":"IF(OR(A46=0,B46=\"X\"),0,IF(OR(S46=\"PRP\",S46=\"LPR\",U46=\"PRP\",U46=\"LPR\",W46=\"PRP\",W46=\"LPR\",Y46=\"PRP\",Y46=\"LPR\"),MAX(I46+AP46,MIN(IF(AE46:AN46<>0,AE46:AN46))),MIN(IF(AE46:AN46<>0,AE46:AN46))))","v":0},{"$f":"IF(A46=0,0,IF(AND(OR(S46=\"Mgr\",S46=0),OR(U46=\"Mgr\",U46=0),OR(W46=\"Mgr\",W46=0)),0,IF(LEFT($A46,2)=\"B*\",VLOOKUP($E46,'1. Checklist & Certification'!$D$26:$E$32,2),IF(LEFT($A46,2)=\"C*\",VLOOKUP($E46,'1. Checklist & Certification'!$F$26:$G$32,2),IF(LEFT($A46,2)=\"D*\",VLOOKUP($E46,'1. Checklist & Certification'!$H$26:$I$32,2),IF(LEFT($A46,2)=\"E*\",VLOOKUP($E46,'1. Checklist & Certification'!$J$26:$K$32,2),VLOOKUP($E46,'1. Checklist & Certification'!$A$26:$B$32,2)))))))","v":0},0,0,null,null,null,null,"","",0,0,0,null,{"$f":"IF(A46=\"\",\"\",'1. Checklist & Certification'!$K$1)","v":""},{"$f":"IF(A46=\"\",\"\",'1. Checklist & Certification'!$C$62)","v":""},{"$f":"IF(A46=\"\",\"\",'1. Checklist & Certification'!$C$6)","v":""},{"$f":"IF(A46=\"\",\"\",'1. Checklist & Certification'!$G$5)","v":""},{"$f":"IFERROR(IF(A46=\"\",\"\",\n_xlfn.LET(_xlpm.Contract,'1. Checklist & Certification'!$C$7,\n_xlpm.Yr,TEXT(MOD(_xlfn.TEXTBEFORE(_xlpm.Contract,\"-\"),100),\"00\"),\n_xlpm.Program,_xlfn.TEXTAFTER(_xlfn.TEXTBEFORE(_xlpm.Contract,\"-\",2),\"-\"),\n_xlpm.CleanProgram,_xlfn.XLOOKUP(_xlpm.Program,SpellCheck[Input],SpellCheck[Correction],_xlpm.Program),\n_xlpm.Number,TEXT(_xlfn.TEXTAFTER(_xlpm.Contract,\"-\",2),\"0000\"),\n_xlfn.CONCAT(_xlpm.Yr,\"-\",_xlpm.CleanProgram,\"-\",_xlpm.Number))\n),\"\")","v":""},{"$f":"IFERROR(IF(A46=\"\",\"\",\n_xlfn.LET(_xlpm.Contract,'1. Checklist & Certification'!$C$8,\n_xlpm.Yr,TEXT(MOD(_xlfn.TEXTBEFORE(_xlpm.Contract,\"-\"),100),\"00\"),\n_xlpm.Program,_xlfn.TEXTAFTER(_xlfn.TEXTBEFORE(_xlpm.Contract,\"-\",2),\"-\"),\n_xlpm.CleanProgram,_xlfn.XLOOKUP(_xlpm.Program,SpellCheck[Input],SpellCheck[Correction],_xlpm.Program),\n_xlpm.Number,TEXT(_xlfn.TEXTAFTER(_xlpm.Contract,\"-\",2),\"0000\"),\n_xlfn.CONCAT(_xlpm.Yr,\"-\",_xlpm.CleanProgram,\"-\",_xlpm.Number))\n),\"\")","v":""},{"$f":"IFERROR(IF(A46=\"\",\"\",\n_xlfn.LET(_xlpm.Contract,'1. Checklist & Certification'!$F$7,\n_xlpm.Yr,TEXT(MOD(_xlfn.TEXTBEFORE(_xlpm.Contract,\"-\"),100),\"00\"),\n_xlpm.Program,_xlfn.TEXTAFTER(_xlfn.TEXTBEFORE(_xlpm.Contract,\"-\",2),\"-\"),\n_xlpm.CleanProgram,_xlfn.XLOOKUP(_xlpm.Program,SpellCheck[Input],SpellCheck[Correction],_xlpm.Program),\n_xlpm.Number,TEXT(_xlfn.TEXTAFTER(_xlpm.Contract,\"-\",2),\"0000\"),\n_xlfn.CONCAT(_xlpm.Yr,\"-\",_xlpm.CleanProgram,\"-\",_xlpm.Number))\n),\"\")","v":""},{"$f":"IFERROR(IF(A46=\"\",\"\",\n_xlfn.LET(_xlpm.Contract,'1. Checklist & Certification'!$F$8,\n_xlpm.Yr,TEXT(MOD(_xlfn.TEXTBEFORE(_xlpm.Contract,\"-\"),100),\"00\"),\n_xlpm.Program,_xlfn.TEXTAFTER(_xlfn.TEXTBEFORE(_xlpm.Contract,\"-\",2),\"-\"),\n_xlpm.CleanProgram,_xlfn.XLOOKUP(_xlpm.Program,SpellCheck[Input],SpellCheck[Correction],_xlpm.Program),\n_xlpm.Number,TEXT(_xlfn.TEXTAFTER(_xlpm.Contract,\"-\",2),\"0000\"),\n_xlfn.CONCAT(_xlpm.Yr,\"-\",_xlpm.CleanProgram,\"-\",_xlpm.Number))\n),\"\")","v":""},{"$f":"IF(A46=\"\",\"\",'1. Checklist & Certification'!$B$9)","v":""},{"$f":"IF(A46=\"\",\"\",'1. Checklist & Certification'!$F$9)","v":""},{"$f":"IF(A46=\"\",\"\",'1. Checklist & Certification'!$C$10)","v":""},{"$f":"IF(A46=\"\",\"\",'1. Checklist & Certification'!$C$11)","v":""},{"$f":"IF(A46=\"\",\"\",'1. Checklist & Certification'!$C$12)","v":""},{"$f":"IF(A46=\"\",\"\",'1. Checklist & Certification'!$B$14)","v":""},{"$f":"IF(A46=\"\",\"\",'1. Checklist & Certification'!$E$14)","v":""},{"$f":"IF(B46=\"\",\"\",'1. Checklist & Certification'!$G$14)","v":""},{"$f":"IF(A46=\"\",\"\",'MHP Family Income & Rent Limits'!$B$3)","v":""},{"$f":"IF(A46=\"\",\"\",'MHP Family Income & Rent Limits'!$J$3)","v":""},{"$f":"IF(A46=\"\",\"\",'MHP Family Income & Rent Limits'!$E$4)","v":""},{"$f":"IF(A46=\"\",\"\",'MHP Family Income & Rent Limits'!$C$7)","v":""},{"$f":"IF(A46=\"\",\"\",'MHP Family Income & Rent Limits'!$F$8)","v":""},{"$f":"IF(A46=\"\",\"\",'1. Checklist & Certification'!$G$4)","v":""},{"$f":"IF(A46=\"\",\"\",'1. Checklist & Certification'!$K$39)","v":""},{"$f":"IF(A46=\"\",\"\",'1. Checklist & Certification'!$K$43)","v":""},{"$f":"IF(A46=\"\",\"\",'1. Checklist & Certification'!$K$45)","v":""},{"$f":"IF(A46=\"\",\"\",'1. Checklist & Certification'!$K$49)","v":""},{"$f":"IF(A46=\"\",\"\",'1. Checklist & Certification'!$K$62)","v":""},{"$f":"IF(A46=\"\",\"\",'1. Checklist & Certification'!$E$66)","v":""},{"$f":"IF(A46=\"\",\"\",'1. Checklist & Certification'!$E$67)","v":""},{"$f":"IF(A46=\"\",\"\",'1. Checklist & Certification'!$E$68)","v":""},{"$f":"IF(A46=\"\",\"\",'1. Checklist & Certification'!$G$66)","v":""},{"$f":"IF(A46=\"\",\"\",'1. Checklist & Certification'!$H$66)","v":""},{"$f":"IF(A46=\"\",\"\",'1. Checklist & Certification'!$I$66)","v":""},{"$f":"IF(A46=\"\",\"\",'1. Checklist & Certification'!$I$67)","v":""},{"$f":"IF(A46=\"\",\"\",'1. Checklist & Certification'!$I$68)","v":""},{"$f":"IF(A46=\"\",\"\",'1. Checklist & Certification'!$B$69)","v":""},{"$f":"IF(A46=\"\",\"\",'1. Checklist & Certification'!$C$69)","v":""},{"$f":"IF(A46=\"\",\"\",'1. Checklist & Certification'!$F$69)","v":""},{"$f":"IF(A46=\"\",\"\",'1. Checklist & Certification'!$G$69)","v":""},{"$f":"IF(A46=\"\",\"\",'1. Checklist & Certification'!$J$69)","v":""},{"$f":"IF(A46=\"\",\"\",'1. Checklist & Certification'!$K$69)","v":""},null,null,{"$f":"IF(AND(OR('1. Checklist & Certification'!$M$16=1,'1. Checklist & Certification'!$M$19=2),AO46>0,B46=\"\",I46>0,AQ46<I46,AV46<>\"Sec 8-Project\"),\"X\",IF(AND(OR('1. Checklist & Certification'!$M$20=4,'1. Checklist & Certification'!$M$21=5,'1. Checklist & Certification'!$M$22=7),AO46>0,B46=\"\",I46>0,K46<I46),\"X\",\"\"))","v":""},{"$f":"IF(A46=\"\",\"\",IF(SUMPRODUCT(-- (ISNUMBER(SEARCH({\"*AHSC*\",\"*FMTW*\",\"*FWHG*\",\"*GHI*\",\"*HHC*\",\"*HLCP*\",\"*HOME*\",\"*LPR*\",\"*MHP*\",\"*NHTF*\",\"*NSP*\",\"*PRP*\",\"*TOD*\",\"*VHHP*\"},'1. Checklist & Certification'!$L$7)))),\"MHP\",\"Legacy\"))","v":""},",,",null,null,null,{"$f":"IF('1. Checklist & Certification'!$M$20=4,\"Both\",IF(OR('1. Checklist & Certification'!$M$15>0,S46=\"CHRP-R\",U46=\"CHRP-R\",W46=\"CHRP-R\",Y46=\"CHRP-R\"),\"Under\",\"No\"))","v":"No"},"No","No",{"$f":"_xlfn.IFS(D46=\"\",\"\",D46=1,'MHP Family Income & Rent Limits'!$E$17,D46=2,'MHP Family Income & Rent Limits'!$F$17,D46=3,'MHP Family Income & Rent Limits'!$G$17,D46=4,'MHP Family Income & Rent Limits'!$H$17,D46=5,'MHP Family Income & Rent Limits'!$I$17,D46=6,'MHP Family Income & Rent Limits'!$J$17,D46=7,'MHP Family Income & Rent Limits'!$K$17,D46=8,'MHP Family Income & Rent Limits'!$L$17)","v":""},"",{"$f":"IF(OR(A46=0,B46=\"X\"),0,MIN(IF(AA46:AD46<>0,AA46:AD46)))","v":0},{"$f":"IF(OR(H46=\"\",I46=\"\"),0,IF(H46*0.3/12>I46,MIN(H46*0.3/12,I46*1.1)+AP46,I46*(1+(VLOOKUP('1. Checklist & Certification'!$F$9,'HLCP-E Rent Change'!$A$1:$D$59,4,FALSE)))+AP46))","v":0}]
[null,null,null,null,null,null,null,null,null,null,null,null,null,null,null,null,null,null,null,null,null,null,null,null,null,null,0,0,0,0,0,0,0,0,{"$f":"IF(OR(A47=0,B47=\"X\"),0,IF(OR(S47=\"FHDP\",S47=\"RHCP-B\",U47=\"FHDP\",U47=\"RHCP-B\",W47=\"FHDP\",W47=\"RHCP-B\",Y47=\"FHDP\",Y47=\"RHCP-B\"),TRUNC((MIN(I47,K47)*(1+'1. Checklist & Certification'!$K$43)+AP47)),0))","v":0},{"$f":"IF(OR(A47=0,B47=\"X\"),0,IF(OR(S47=\"CHRP-R\",S47=\"SERA\",S47=\"SUHRP\",U47=\"CHRP-R\",U47=\"SERA\",U47=\"SUHRP\",W47=\"CHRP-R\",W47=\"SERA\",W47=\"SUHRP\",Y47=\"CHRP-R\",Y47=\"SERA\",Y47=\"SUHRP\"),TRUNC((MIN(I47,K47)*(1+'1. Checklist & Certification'!$K$49))),0))","v":0},{"$f":"IF(OR(A47=0,B47=\"X\"),0,IF(OR(S47=\"CALDAP\",S47=\"DPRLP\",U47=\"CALDAP\",U47=\"DPRLP\",W47=\"CALDAP\",W47=\"DPRLP\",Y47=\"CALDAP\",Y47=\"DPRLP\"),TRUNC(((MIN(I47,K47))*(1+'1. Checklist & Certification'!$G$4))),0))","v":0},0,0,0,{"$f":"IF(OR(A47=0,B47=\"X\"),0,IF(OR(S47=\"PRP\",S47=\"LPR\",U47=\"PRP\",U47=\"LPR\",W47=\"PRP\",W47=\"LPR\",Y47=\"PRP\",Y47=\"LPR\"),MAX(I47+AP47,MIN(IF(AE47:AN47<>0,AE47:AN47))),MIN(IF(AE47:AN47<>0,AE47:AN47))))","v":0},{"$f":"IF(A47=0,0,IF(AND(OR(S47=\"Mgr\",S47=0),OR(U47=\"Mgr\",U47=0),OR(W47=\"Mgr\",W47=0)),0,IF(LEFT($A47,2)=\"B*\",VLOOKUP($E47,'1. Checklist & Certification'!$D$26:$E$32,2),IF(LEFT($A47,2)=\"C*\",VLOOKUP($E47,'1. Checklist & Certification'!$F$26:$G$32,2),IF(LEFT($A47,2)=\"D*\",VLOOKUP($E47,'1. Checklist & Certification'!$H$26:$I$32,2),IF(LEFT($A47,2)=\"E*\",VLOOKUP($E47,'1. Checklist & Certification'!$J$26:$K$32,2),VLOOKUP($E47,'1. Checklist & Certification'!$A$26:$B$32,2)))))))","v":0},0,0,null,null,null,null,"","",0,0,0,null,{"$f":"IF(A47=\"\",\"\",'1. Checklist & Certification'!$K$1)","v":""},{"$f":"IF(A47=\"\",\"\",'1. Checklist & Certification'!$C$62)","v":""},{"$f":"IF(A47=\"\",\"\",'1. Checklist & Certification'!$C$6)","v":""},{"$f":"IF(A47=\"\",\"\",'1. Checklist & Certification'!$G$5)","v":""},{"$f":"IFERROR(IF(A47=\"\",\"\",\n_xlfn.LET(_xlpm.Contract,'1. Checklist & Certification'!$C$7,\n_xlpm.Yr,TEXT(MOD(_xlfn.TEXTBEFORE(_xlpm.Contract,\"-\"),100),\"00\"),\n_xlpm.Program,_xlfn.TEXTAFTER(_xlfn.TEXTBEFORE(_xlpm.Contract,\"-\",2),\"-\"),\n_xlpm.CleanProgram,_xlfn.XLOOKUP(_xlpm.Program,SpellCheck[Input],SpellCheck[Correction],_xlpm.Program),\n_xlpm.Number,TEXT(_xlfn.TEXTAFTER(_xlpm.Contract,\"-\",2),\"0000\"),\n_xlfn.CONCAT(_xlpm.Yr,\"-\",_xlpm.CleanProgram,\"-\",_xlpm.Number))\n),\"\")","v":""},{"$f":"IFERROR(IF(A47=\"\",\"\",\n_xlfn.LET(_xlpm.Contract,'1. Checklist & Certification'!$C$8,\n_xlpm.Yr,TEXT(MOD(_xlfn.TEXTBEFORE(_xlpm.Contract,\"-\"),100),\"00\"),\n_xlpm.Program,_xlfn.TEXTAFTER(_xlfn.TEXTBEFORE(_xlpm.Contract,\"-\",2),\"-\"),\n_xlpm.CleanProgram,_xlfn.XLOOKUP(_xlpm.Program,SpellCheck[Input],SpellCheck[Correction],_xlpm.Program),\n_xlpm.Number,TEXT(_xlfn.TEXTAFTER(_xlpm.Contract,\"-\",2),\"0000\"),\n_xlfn.CONCAT(_xlpm.Yr,\"-\",_xlpm.CleanProgram,\"-\",_xlpm.Number))\n),\"\")","v":""},{"$f":"IFERROR(IF(A47=\"\",\"\",\n_xlfn.LET(_xlpm.Contract,'1. Checklist & Certification'!$F$7,\n_xlpm.Yr,TEXT(MOD(_xlfn.TEXTBEFORE(_xlpm.Contract,\"-\"),100),\"00\"),\n_xlpm.Program,_xlfn.TEXTAFTER(_xlfn.TEXTBEFORE(_xlpm.Contract,\"-\",2),\"-\"),\n_xlpm.CleanProgram,_xlfn.XLOOKUP(_xlpm.Program,SpellCheck[Input],SpellCheck[Correction],_xlpm.Program),\n_xlpm.Number,TEXT(_xlfn.TEXTAFTER(_xlpm.Contract,\"-\",2),\"0000\"),\n_xlfn.CONCAT(_xlpm.Yr,\"-\",_xlpm.CleanProgram,\"-\",_xlpm.Number))\n),\"\")","v":""},{"$f":"IFERROR(IF(A47=\"\",\"\",\n_xlfn.LET(_xlpm.Contract,'1. Checklist & Certification'!$F$8,\n_xlpm.Yr,TEXT(MOD(_xlfn.TEXTBEFORE(_xlpm.Contract,\"-\"),100),\"00\"),\n_xlpm.Program,_xlfn.TEXTAFTER(_xlfn.TEXTBEFORE(_xlpm.Contract,\"-\",2),\"-\"),\n_xlpm.CleanProgram,_xlfn.XLOOKUP(_xlpm.Program,SpellCheck[Input],SpellCheck[Correction],_xlpm.Program),\n_xlpm.Number,TEXT(_xlfn.TEXTAFTER(_xlpm.Contract,\"-\",2),\"0000\"),\n_xlfn.CONCAT(_xlpm.Yr,\"-\",_xlpm.CleanProgram,\"-\",_xlpm.Number))\n),\"\")","v":""},{"$f":"IF(A47=\"\",\"\",'1. Checklist & Certification'!$B$9)","v":""},{"$f":"IF(A47=\"\",\"\",'1. Checklist & Certification'!$F$9)","v":""},{"$f":"IF(A47=\"\",\"\",'1. Checklist & Certification'!$C$10)","v":""},{"$f":"IF(A47=\"\",\"\",'1. Checklist & Certification'!$C$11)","v":""},{"$f":"IF(A47=\"\",\"\",'1. Checklist & Certification'!$C$12)","v":""},{"$f":"IF(A47=\"\",\"\",'1. Checklist & Certification'!$B$14)","v":""},{"$f":"IF(A47=\"\",\"\",'1. Checklist & Certification'!$E$14)","v":""},{"$f":"IF(B47=\"\",\"\",'1. Checklist & Certification'!$G$14)","v":""},{"$f":"IF(A47=\"\",\"\",'MHP Family Income & Rent Limits'!$B$3)","v":""},{"$f":"IF(A47=\"\",\"\",'MHP Family Income & Rent Limits'!$J$3)","v":""},{"$f":"IF(A47=\"\",\"\",'MHP Family Income & Rent Limits'!$E$4)","v":""},{"$f":"IF(A47=\"\",\"\",'MHP Family Income & Rent Limits'!$C$7)","v":""},{"$f":"IF(A47=\"\",\"\",'MHP Family Income & Rent Limits'!$F$8)","v":""},{"$f":"IF(A47=\"\",\"\",'1. Checklist & Certification'!$G$4)","v":""},{"$f":"IF(A47=\"\",\"\",'1. Checklist & Certification'!$K$39)","v":""},{"$f":"IF(A47=\"\",\"\",'1. Checklist & Certification'!$K$43)","v":""},{"$f":"IF(A47=\"\",\"\",'1. Checklist & Certification'!$K$45)","v":""},{"$f":"IF(A47=\"\",\"\",'1. Checklist & Certification'!$K$49)","v":""},{"$f":"IF(A47=\"\",\"\",'1. Checklist & Certification'!$K$62)","v":""},{"$f":"IF(A47=\"\",\"\",'1. Checklist & Certification'!$E$66)","v":""},{"$f":"IF(A47=\"\",\"\",'1. Checklist & Certification'!$E$67)","v":""},{"$f":"IF(A47=\"\",\"\",'1. Checklist & Certification'!$E$68)","v":""},{"$f":"IF(A47=\"\",\"\",'1. Checklist & Certification'!$G$66)","v":""},{"$f":"IF(A47=\"\",\"\",'1. Checklist & Certification'!$H$66)","v":""},{"$f":"IF(A47=\"\",\"\",'1. Checklist & Certification'!$I$66)","v":""},{"$f":"IF(A47=\"\",\"\",'1. Checklist & Certification'!$I$67)","v":""},{"$f":"IF(A47=\"\",\"\",'1. Checklist & Certification'!$I$68)","v":""},{"$f":"IF(A47=\"\",\"\",'1. Checklist & Certification'!$B$69)","v":""},{"$f":"IF(A47=\"\",\"\",'1. Checklist & Certification'!$C$69)","v":""},{"$f":"IF(A47=\"\",\"\",'1. Checklist & Certification'!$F$69)","v":""},{"$f":"IF(A47=\"\",\"\",'1. Checklist & Certification'!$G$69)","v":""},{"$f":"IF(A47=\"\",\"\",'1. Checklist & Certification'!$J$69)","v":""},{"$f":"IF(A47=\"\",\"\",'1. Checklist & Certification'!$K$69)","v":""},null,null,{"$f":"IF(AND(OR('1. Checklist & Certification'!$M$16=1,'1. Checklist & Certification'!$M$19=2),AO47>0,B47=\"\",I47>0,AQ47<I47,AV47<>\"Sec 8-Project\"),\"X\",IF(AND(OR('1. Checklist & Certification'!$M$20=4,'1. Checklist & Certification'!$M$21=5,'1. Checklist & Certification'!$M$22=7),AO47>0,B47=\"\",I47>0,K47<I47),\"X\",\"\"))","v":""},{"$f":"IF(A47=\"\",\"\",IF(SUMPRODUCT(-- (ISNUMBER(SEARCH({\"*AHSC*\",\"*FMTW*\",\"*FWHG*\",\"*GHI*\",\"*HHC*\",\"*HLCP*\",\"*HOME*\",\"*LPR*\",\"*MHP*\",\"*NHTF*\",\"*NSP*\",\"*PRP*\",\"*TOD*\",\"*VHHP*\"},'1. Checklist & Certification'!$L$7)))),\"MHP\",\"Legacy\"))","v":""},",,",null,null,null,{"$f":"IF('1. Checklist & Certification'!$M$20=4,\"Both\",IF(OR('1. Checklist & Certification'!$M$15>0,S47=\"CHRP-R\",U47=\"CHRP-R\",W47=\"CHRP-R\",Y47=\"CHRP-R\"),\"Under\",\"No\"))","v":"No"},"No","No",{"$f":"_xlfn.IFS(D47=\"\",\"\",D47=1,'MHP Family Income & Rent Limits'!$E$17,D47=2,'MHP Family Income & Rent Limits'!$F$17,D47=3,'MHP Family Income & Rent Limits'!$G$17,D47=4,'MHP Family Income & Rent Limits'!$H$17,D47=5,'MHP Family Income & Rent Limits'!$I$17,D47=6,'MHP Family Income & Rent Limits'!$J$17,D47=7,'MHP Family Income & Rent Limits'!$K$17,D47=8,'MHP Family Income & Rent Limits'!$L$17)","v":""},"",{"$f":"IF(OR(A47=0,B47=\"X\"),0,MIN(IF(AA47:AD47<>0,AA47:AD47)))","v":0},{"$f":"IF(OR(H47=\"\",I47=\"\"),0,IF(H47*0.3/12>I47,MIN(H47*0.3/12,I47*1.1)+AP47,I47*(1+(VLOOKUP('1. Checklist & Certification'!$F$9,'HLCP-E Rent Change'!$A$1:$D$59,4,FALSE)))+AP47))","v":0}]
[null,null,null,null,null,null,null,null,null,null,null,null,null,null,null,null,null,null,null,null,null,null,null,null,null,null,0,0,0,0,0,0,0,0,{"$f":"IF(OR(A48=0,B48=\"X\"),0,IF(OR(S48=\"FHDP\",S48=\"RHCP-B\",U48=\"FHDP\",U48=\"RHCP-B\",W48=\"FHDP\",W48=\"RHCP-B\",Y48=\"FHDP\",Y48=\"RHCP-B\"),TRUNC((MIN(I48,K48)*(1+'1. Checklist & Certification'!$K$43)+AP48)),0))","v":0},{"$f":"IF(OR(A48=0,B48=\"X\"),0,IF(OR(S48=\"CHRP-R\",S48=\"SERA\",S48=\"SUHRP\",U48=\"CHRP-R\",U48=\"SERA\",U48=\"SUHRP\",W48=\"CHRP-R\",W48=\"SERA\",W48=\"SUHRP\",Y48=\"CHRP-R\",Y48=\"SERA\",Y48=\"SUHRP\"),TRUNC((MIN(I48,K48)*(1+'1. Checklist & Certification'!$K$49))),0))","v":0},{"$f":"IF(OR(A48=0,B48=\"X\"),0,IF(OR(S48=\"CALDAP\",S48=\"DPRLP\",U48=\"CALDAP\",U48=\"DPRLP\",W48=\"CALDAP\",W48=\"DPRLP\",Y48=\"CALDAP\",Y48=\"DPRLP\"),TRUNC(((MIN(I48,K48))*(1+'1. Checklist & Certification'!$G$4))),0))","v":0},0,0,0,{"$f":"IF(OR(A48=0,B48=\"X\"),0,IF(OR(S48=\"PRP\",S48=\"LPR\",U48=\"PRP\",U48=\"LPR\",W48=\"PRP\",W48=\"LPR\",Y48=\"PRP\",Y48=\"LPR\"),MAX(I48+AP48,MIN(IF(AE48:AN48<>0,AE48:AN48))),MIN(IF(AE48:AN48<>0,AE48:AN48))))","v":0},{"$f":"IF(A48=0,0,IF(AND(OR(S48=\"Mgr\",S48=0),OR(U48=\"Mgr\",U48=0),OR(W48=\"Mgr\",W48=0)),0,IF(LEFT($A48,2)=\"B*\",VLOOKUP($E48,'1. Checklist & Certification'!$D$26:$E$32,2),IF(LEFT($A48,2)=\"C*\",VLOOKUP($E48,'1. Checklist & Certification'!$F$26:$G$32,2),IF(LEFT($A48,2)=\"D*\",VLOOKUP($E48,'1. Checklist & Certification'!$H$26:$I$32,2),IF(LEFT($A48,2)=\"E*\",VLOOKUP($E48,'1. Checklist & Certification'!$J$26:$K$32,2),VLOOKUP($E48,'1. Checklist & Certification'!$A$26:$B$32,2)))))))","v":0},0,0,null,null,null,null,"","",0,0,0,null,{"$f":"IF(A48=\"\",\"\",'1. Checklist & Certification'!$K$1)","v":""},{"$f":"IF(A48=\"\",\"\",'1. Checklist & Certification'!$C$62)","v":""},{"$f":"IF(A48=\"\",\"\",'1. Checklist & Certification'!$C$6)","v":""},{"$f":"IF(A48=\"\",\"\",'1. Checklist & Certification'!$G$5)","v":""},{"$f":"IFERROR(IF(A48=\"\",\"\",\n_xlfn.LET(_xlpm.Contract,'1. Checklist & Certification'!$C$7,\n_xlpm.Yr,TEXT(MOD(_xlfn.TEXTBEFORE(_xlpm.Contract,\"-\"),100),\"00\"),\n_xlpm.Program,_xlfn.TEXTAFTER(_xlfn.TEXTBEFORE(_xlpm.Contract,\"-\",2),\"-\"),\n_xlpm.CleanProgram,_xlfn.XLOOKUP(_xlpm.Program,SpellCheck[Input],SpellCheck[Correction],_xlpm.Program),\n_xlpm.Number,TEXT(_xlfn.TEXTAFTER(_xlpm.Contract,\"-\",2),\"0000\"),\n_xlfn.CONCAT(_xlpm.Yr,\"-\",_xlpm.CleanProgram,\"-\",_xlpm.Number))\n),\"\")","v":""},{"$f":"IFERROR(IF(A48=\"\",\"\",\n_xlfn.LET(_xlpm.Contract,'1. Checklist & Certification'!$C$8,\n_xlpm.Yr,TEXT(MOD(_xlfn.TEXTBEFORE(_xlpm.Contract,\"-\"),100),\"00\"),\n_xlpm.Program,_xlfn.TEXTAFTER(_xlfn.TEXTBEFORE(_xlpm.Contract,\"-\",2),\"-\"),\n_xlpm.CleanProgram,_xlfn.XLOOKUP(_xlpm.Program,SpellCheck[Input],SpellCheck[Correction],_xlpm.Program),\n_xlpm.Number,TEXT(_xlfn.TEXTAFTER(_xlpm.Contract,\"-\",2),\"0000\"),\n_xlfn.CONCAT(_xlpm.Yr,\"-\",_xlpm.CleanProgram,\"-\",_xlpm.Number))\n),\"\")","v":""},{"$f":"IFERROR(IF(A48=\"\",\"\",\n_xlfn.LET(_xlpm.Contract,'1. Checklist & Certification'!$F$7,\n_xlpm.Yr,TEXT(MOD(_xlfn.TEXTBEFORE(_xlpm.Contract,\"-\"),100),\"00\"),\n_xlpm.Program,_xlfn.TEXTAFTER(_xlfn.TEXTBEFORE(_xlpm.Contract,\"-\",2),\"-\"),\n_xlpm.CleanProgram,_xlfn.XLOOKUP(_xlpm.Program,SpellCheck[Input],SpellCheck[Correction],_xlpm.Program),\n_xlpm.Number,TEXT(_xlfn.TEXTAFTER(_xlpm.Contract,\"-\",2),\"0000\"),\n_xlfn.CONCAT(_xlpm.Yr,\"-\",_xlpm.CleanProgram,\"-\",_xlpm.Number))\n),\"\")","v":""},{"$f":"IFERROR(IF(A48=\"\",\"\",\n_xlfn.LET(_xlpm.Contract,'1. Checklist & Certification'!$F$8,\n_xlpm.Yr,TEXT(MOD(_xlfn.TEXTBEFORE(_xlpm.Contract,\"-\"),100),\"00\"),\n_xlpm.Program,_xlfn.TEXTAFTER(_xlfn.TEXTBEFORE(_xlpm.Contract,\"-\",2),\"-\"),\n_xlpm.CleanProgram,_xlfn.XLOOKUP(_xlpm.Program,SpellCheck[Input],SpellCheck[Correction],_xlpm.Program),\n_xlpm.Number,TEXT(_xlfn.TEXTAFTER(_xlpm.Contract,\"-\",2),\"0000\"),\n_xlfn.CONCAT(_xlpm.Yr,\"-\",_xlpm.CleanProgram,\"-\",_xlpm.Number))\n),\"\")","v":""},{"$f":"IF(A48=\"\",\"\",'1. Checklist & Certification'!$B$9)","v":""},{"$f":"IF(A48=\"\",\"\",'1. Checklist & Certification'!$F$9)","v":""},{"$f":"IF(A48=\"\",\"\",'1. Checklist & Certification'!$C$10)","v":""},{"$f":"IF(A48=\"\",\"\",'1. Checklist & Certification'!$C$11)","v":""},{"$f":"IF(A48=\"\",\"\",'1. Checklist & Certification'!$C$12)","v":""},{"$f":"IF(A48=\"\",\"\",'1. Checklist & Certification'!$B$14)","v":""},{"$f":"IF(A48=\"\",\"\",'1. Checklist & Certification'!$E$14)","v":""},{"$f":"IF(B48=\"\",\"\",'1. Checklist & Certification'!$G$14)","v":""},{"$f":"IF(A48=\"\",\"\",'MHP Family Income & Rent Limits'!$B$3)","v":""},{"$f":"IF(A48=\"\",\"\",'MHP Family Income & Rent Limits'!$J$3)","v":""},{"$f":"IF(A48=\"\",\"\",'MHP Family Income & Rent Limits'!$E$4)","v":""},{"$f":"IF(A48=\"\",\"\",'MHP Family Income & Rent Limits'!$C$7)","v":""},{"$f":"IF(A48=\"\",\"\",'MHP Family Income & Rent Limits'!$F$8)","v":""},{"$f":"IF(A48=\"\",\"\",'1. Checklist & Certification'!$G$4)","v":""},{"$f":"IF(A48=\"\",\"\",'1. Checklist & Certification'!$K$39)","v":""},{"$f":"IF(A48=\"\",\"\",'1. Checklist & Certification'!$K$43)","v":""},{"$f":"IF(A48=\"\",\"\",'1. Checklist & Certification'!$K$45)","v":""},{"$f":"IF(A48=\"\",\"\",'1. Checklist & Certification'!$K$49)","v":""},{"$f":"IF(A48=\"\",\"\",'1. Checklist & Certification'!$K$62)","v":""},{"$f":"IF(A48=\"\",\"\",'1. Checklist & Certification'!$E$66)","v":""},{"$f":"IF(A48=\"\",\"\",'1. Checklist & Certification'!$E$67)","v":""},{"$f":"IF(A48=\"\",\"\",'1. Checklist & Certification'!$E$68)","v":""},{"$f":"IF(A48=\"\",\"\",'1. Checklist & Certification'!$G$66)","v":""},{"$f":"IF(A48=\"\",\"\",'1. Checklist & Certification'!$H$66)","v":""},{"$f":"IF(A48=\"\",\"\",'1. Checklist & Certification'!$I$66)","v":""},{"$f":"IF(A48=\"\",\"\",'1. Checklist & Certification'!$I$67)","v":""},{"$f":"IF(A48=\"\",\"\",'1. Checklist & Certification'!$I$68)","v":""},{"$f":"IF(A48=\"\",\"\",'1. Checklist & Certification'!$B$69)","v":""},{"$f":"IF(A48=\"\",\"\",'1. Checklist & Certification'!$C$69)","v":""},{"$f":"IF(A48=\"\",\"\",'1. Checklist & Certification'!$F$69)","v":""},{"$f":"IF(A48=\"\",\"\",'1. Checklist & Certification'!$G$69)","v":""},{"$f":"IF(A48=\"\",\"\",'1. Checklist & Certification'!$J$69)","v":""},{"$f":"IF(A48=\"\",\"\",'1. Checklist & Certification'!$K$69)","v":""},null,null,{"$f":"IF(AND(OR('1. Checklist & Certification'!$M$16=1,'1. Checklist & Certification'!$M$19=2),AO48>0,B48=\"\",I48>0,AQ48<I48,AV48<>\"Sec 8-Project\"),\"X\",IF(AND(OR('1. Checklist & Certification'!$M$20=4,'1. Checklist & Certification'!$M$21=5,'1. Checklist & Certification'!$M$22=7),AO48>0,B48=\"\",I48>0,K48<I48),\"X\",\"\"))","v":""},{"$f":"IF(A48=\"\",\"\",IF(SUMPRODUCT(-- (ISNUMBER(SEARCH({\"*AHSC*\",\"*FMTW*\",\"*FWHG*\",\"*GHI*\",\"*HHC*\",\"*HLCP*\",\"*HOME*\",\"*LPR*\",\"*MHP*\",\"*NHTF*\",\"*NSP*\",\"*PRP*\",\"*TOD*\",\"*VHHP*\"},'1. Checklist & Certification'!$L$7)))),\"MHP\",\"Legacy\"))","v":""},",,",null,null,null,{"$f":"IF('1. Checklist & Certification'!$M$20=4,\"Both\",IF(OR('1. Checklist & Certification'!$M$15>0,S48=\"CHRP-R\",U48=\"CHRP-R\",W48=\"CHRP-R\",Y48=\"CHRP-R\"),\"Under\",\"No\"))","v":"No"},"No","No",{"$f":"_xlfn.IFS(D48=\"\",\"\",D48=1,'MHP Family Income & Rent Limits'!$E$17,D48=2,'MHP Family Income & Rent Limits'!$F$17,D48=3,'MHP Family Income & Rent Limits'!$G$17,D48=4,'MHP Family Income & Rent Limits'!$H$17,D48=5,'MHP Family Income & Rent Limits'!$I$17,D48=6,'MHP Family Income & Rent Limits'!$J$17,D48=7,'MHP Family Income & Rent Limits'!$K$17,D48=8,'MHP Family Income & Rent Limits'!$L$17)","v":""},"",{"$f":"IF(OR(A48=0,B48=\"X\"),0,MIN(IF(AA48:AD48<>0,AA48:AD48)))","v":0},{"$f":"IF(OR(H48=\"\",I48=\"\"),0,IF(H48*0.3/12>I48,MIN(H48*0.3/12,I48*1.1)+AP48,I48*(1+(VLOOKUP('1. Checklist & Certification'!$F$9,'HLCP-E Rent Change'!$A$1:$D$59,4,FALSE)))+AP48))","v":0}]
[null,null,null,null,null,null,null,null,null,null,null,null,null,null,null,null,null,null,null,null,null,null,null,null,null,null,0,0,0,0,0,0,0,0,{"$f":"IF(OR(A49=0,B49=\"X\"),0,IF(OR(S49=\"FHDP\",S49=\"RHCP-B\",U49=\"FHDP\",U49=\"RHCP-B\",W49=\"FHDP\",W49=\"RHCP-B\",Y49=\"FHDP\",Y49=\"RHCP-B\"),TRUNC((MIN(I49,K49)*(1+'1. Checklist & Certification'!$K$43)+AP49)),0))","v":0},{"$f":"IF(OR(A49=0,B49=\"X\"),0,IF(OR(S49=\"CHRP-R\",S49=\"SERA\",S49=\"SUHRP\",U49=\"CHRP-R\",U49=\"SERA\",U49=\"SUHRP\",W49=\"CHRP-R\",W49=\"SERA\",W49=\"SUHRP\",Y49=\"CHRP-R\",Y49=\"SERA\",Y49=\"SUHRP\"),TRUNC((MIN(I49,K49)*(1+'1. Checklist & Certification'!$K$49))),0))","v":0},{"$f":"IF(OR(A49=0,B49=\"X\"),0,IF(OR(S49=\"CALDAP\",S49=\"DPRLP\",U49=\"CALDAP\",U49=\"DPRLP\",W49=\"CALDAP\",W49=\"DPRLP\",Y49=\"CALDAP\",Y49=\"DPRLP\"),TRUNC(((MIN(I49,K49))*(1+'1. Checklist & Certification'!$G$4))),0))","v":0},0,0,0,{"$f":"IF(OR(A49=0,B49=\"X\"),0,IF(OR(S49=\"PRP\",S49=\"LPR\",U49=\"PRP\",U49=\"LPR\",W49=\"PRP\",W49=\"LPR\",Y49=\"PRP\",Y49=\"LPR\"),MAX(I49+AP49,MIN(IF(AE49:AN49<>0,AE49:AN49))),MIN(IF(AE49:AN49<>0,AE49:AN49))))","v":0},{"$f":"IF(A49=0,0,IF(AND(OR(S49=\"Mgr\",S49=0),OR(U49=\"Mgr\",U49=0),OR(W49=\"Mgr\",W49=0)),0,IF(LEFT($A49,2)=\"B*\",VLOOKUP($E49,'1. Checklist & Certification'!$D$26:$E$32,2),IF(LEFT($A49,2)=\"C*\",VLOOKUP($E49,'1. Checklist & Certification'!$F$26:$G$32,2),IF(LEFT($A49,2)=\"D*\",VLOOKUP($E49,'1. Checklist & Certification'!$H$26:$I$32,2),IF(LEFT($A49,2)=\"E*\",VLOOKUP($E49,'1. Checklist & Certification'!$J$26:$K$32,2),VLOOKUP($E49,'1. Checklist & Certification'!$A$26:$B$32,2)))))))","v":0},0,0,null,null,null,null,"","",0,0,0,null,{"$f":"IF(A49=\"\",\"\",'1. Checklist & Certification'!$K$1)","v":""},{"$f":"IF(A49=\"\",\"\",'1. Checklist & Certification'!$C$62)","v":""},{"$f":"IF(A49=\"\",\"\",'1. Checklist & Certification'!$C$6)","v":""},{"$f":"IF(A49=\"\",\"\",'1. Checklist & Certification'!$G$5)","v":""},{"$f":"IFERROR(IF(A49=\"\",\"\",\n_xlfn.LET(_xlpm.Contract,'1. Checklist & Certification'!$C$7,\n_xlpm.Yr,TEXT(MOD(_xlfn.TEXTBEFORE(_xlpm.Contract,\"-\"),100),\"00\"),\n_xlpm.Program,_xlfn.TEXTAFTER(_xlfn.TEXTBEFORE(_xlpm.Contract,\"-\",2),\"-\"),\n_xlpm.CleanProgram,_xlfn.XLOOKUP(_xlpm.Program,SpellCheck[Input],SpellCheck[Correction],_xlpm.Program),\n_xlpm.Number,TEXT(_xlfn.TEXTAFTER(_xlpm.Contract,\"-\",2),\"0000\"),\n_xlfn.CONCAT(_xlpm.Yr,\"-\",_xlpm.CleanProgram,\"-\",_xlpm.Number))\n),\"\")","v":""},{"$f":"IFERROR(IF(A49=\"\",\"\",\n_xlfn.LET(_xlpm.Contract,'1. Checklist & Certification'!$C$8,\n_xlpm.Yr,TEXT(MOD(_xlfn.TEXTBEFORE(_xlpm.Contract,\"-\"),100),\"00\"),\n_xlpm.Program,_xlfn.TEXTAFTER(_xlfn.TEXTBEFORE(_xlpm.Contract,\"-\",2),\"-\"),\n_xlpm.CleanProgram,_xlfn.XLOOKUP(_xlpm.Program,SpellCheck[Input],SpellCheck[Correction],_xlpm.Program),\n_xlpm.Number,TEXT(_xlfn.TEXTAFTER(_xlpm.Contract,\"-\",2),\"0000\"),\n_xlfn.CONCAT(_xlpm.Yr,\"-\",_xlpm.CleanProgram,\"-\",_xlpm.Number))\n),\"\")","v":""},{"$f":"IFERROR(IF(A49=\"\",\"\",\n_xlfn.LET(_xlpm.Contract,'1. Checklist & Certification'!$F$7,\n_xlpm.Yr,TEXT(MOD(_xlfn.TEXTBEFORE(_xlpm.Contract,\"-\"),100),\"00\"),\n_xlpm.Program,_xlfn.TEXTAFTER(_xlfn.TEXTBEFORE(_xlpm.Contract,\"-\",2),\"-\"),\n_xlpm.CleanProgram,_xlfn.XLOOKUP(_xlpm.Program,SpellCheck[Input],SpellCheck[Correction],_xlpm.Program),\n_xlpm.Number,TEXT(_xlfn.TEXTAFTER(_xlpm.Contract,\"-\",2),\"0000\"),\n_xlfn.CONCAT(_xlpm.Yr,\"-\",_xlpm.CleanProgram,\"-\",_xlpm.Number))\n),\"\")","v":""},{"$f":"IFERROR(IF(A49=\"\",\"\",\n_xlfn.LET(_xlpm.Contract,'1. Checklist & Certification'!$F$8,\n_xlpm.Yr,TEXT(MOD(_xlfn.TEXTBEFORE(_xlpm.Contract,\"-\"),100),\"00\"),\n_xlpm.Program,_xlfn.TEXTAFTER(_xlfn.TEXTBEFORE(_xlpm.Contract,\"-\",2),\"-\"),\n_xlpm.CleanProgram,_xlfn.XLOOKUP(_xlpm.Program,SpellCheck[Input],SpellCheck[Correction],_xlpm.Program),\n_xlpm.Number,TEXT(_xlfn.TEXTAFTER(_xlpm.Contract,\"-\",2),\"0000\"),\n_xlfn.CONCAT(_xlpm.Yr,\"-\",_xlpm.CleanProgram,\"-\",_xlpm.Number))\n),\"\")","v":""},{"$f":"IF(A49=\"\",\"\",'1. Checklist & Certification'!$B$9)","v":""},{"$f":"IF(A49=\"\",\"\",'1. Checklist & Certification'!$F$9)","v":""},{"$f":"IF(A49=\"\",\"\",'1. Checklist & Certification'!$C$10)","v":""},{"$f":"IF(A49=\"\",\"\",'1. Checklist & Certification'!$C$11)","v":""},{"$f":"IF(A49=\"\",\"\",'1. Checklist & Certification'!$C$12)","v":""},{"$f":"IF(A49=\"\",\"\",'1. Checklist & Certification'!$B$14)","v":""},{"$f":"IF(A49=\"\",\"\",'1. Checklist & Certification'!$E$14)","v":""},{"$f":"IF(B49=\"\",\"\",'1. Checklist & Certification'!$G$14)","v":""},{"$f":"IF(A49=\"\",\"\",'MHP Family Income & Rent Limits'!$B$3)","v":""},{"$f":"IF(A49=\"\",\"\",'MHP Family Income & Rent Limits'!$J$3)","v":""},{"$f":"IF(A49=\"\",\"\",'MHP Family Income & Rent Limits'!$E$4)","v":""},{"$f":"IF(A49=\"\",\"\",'MHP Family Income & Rent Limits'!$C$7)","v":""},{"$f":"IF(A49=\"\",\"\",'MHP Family Income & Rent Limits'!$F$8)","v":""},{"$f":"IF(A49=\"\",\"\",'1. Checklist & Certification'!$G$4)","v":""},{"$f":"IF(A49=\"\",\"\",'1. Checklist & Certification'!$K$39)","v":""},{"$f":"IF(A49=\"\",\"\",'1. Checklist & Certification'!$K$43)","v":""},{"$f":"IF(A49=\"\",\"\",'1. Checklist & Certification'!$K$45)","v":""},{"$f":"IF(A49=\"\",\"\",'1. Checklist & Certification'!$K$49)","v":""},{"$f":"IF(A49=\"\",\"\",'1. Checklist & Certification'!$K$62)","v":""},{"$f":"IF(A49=\"\",\"\",'1. Checklist & Certification'!$E$66)","v":""},{"$f":"IF(A49=\"\",\"\",'1. Checklist & Certification'!$E$67)","v":""},{"$f":"IF(A49=\"\",\"\",'1. Checklist & Certification'!$E$68)","v":""},{"$f":"IF(A49=\"\",\"\",'1. Checklist & Certification'!$G$66)","v":""},{"$f":"IF(A49=\"\",\"\",'1. Checklist & Certification'!$H$66)","v":""},{"$f":"IF(A49=\"\",\"\",'1. Checklist & Certification'!$I$66)","v":""},{"$f":"IF(A49=\"\",\"\",'1. Checklist & Certification'!$I$67)","v":""},{"$f":"IF(A49=\"\",\"\",'1. Checklist & Certification'!$I$68)","v":""},{"$f":"IF(A49=\"\",\"\",'1. Checklist & Certification'!$B$69)","v":""},{"$f":"IF(A49=\"\",\"\",'1. Checklist & Certification'!$C$69)","v":""},{"$f":"IF(A49=\"\",\"\",'1. Checklist & Certification'!$F$69)","v":""},{"$f":"IF(A49=\"\",\"\",'1. Checklist & Certification'!$G$69)","v":""},{"$f":"IF(A49=\"\",\"\",'1. Checklist & Certification'!$J$69)","v":""},{"$f":"IF(A49=\"\",\"\",'1. Checklist & Certification'!$K$69)","v":""},null,null,{"$f":"IF(AND(OR('1. Checklist & Certification'!$M$16=1,'1. Checklist & Certification'!$M$19=2),AO49>0,B49=\"\",I49>0,AQ49<I49,AV49<>\"Sec 8-Project\"),\"X\",IF(AND(OR('1. Checklist & Certification'!$M$20=4,'1. Checklist & Certification'!$M$21=5,'1. Checklist & Certification'!$M$22=7),AO49>0,B49=\"\",I49>0,K49<I49),\"X\",\"\"))","v":""},{"$f":"IF(A49=\"\",\"\",IF(SUMPRODUCT(-- (ISNUMBER(SEARCH({\"*AHSC*\",\"*FMTW*\",\"*FWHG*\",\"*GHI*\",\"*HHC*\",\"*HLCP*\",\"*HOME*\",\"*LPR*\",\"*MHP*\",\"*NHTF*\",\"*NSP*\",\"*PRP*\",\"*TOD*\",\"*VHHP*\"},'1. Checklist & Certification'!$L$7)))),\"MHP\",\"Legacy\"))","v":""},",,",null,null,null,{"$f":"IF('1. Checklist & Certification'!$M$20=4,\"Both\",IF(OR('1. Checklist & Certification'!$M$15>0,S49=\"CHRP-R\",U49=\"CHRP-R\",W49=\"CHRP-R\",Y49=\"CHRP-R\"),\"Under\",\"No\"))","v":"No"},"No","No",{"$f":"_xlfn.IFS(D49=\"\",\"\",D49=1,'MHP Family Income & Rent Limits'!$E$17,D49=2,'MHP Family Income & Rent Limits'!$F$17,D49=3,'MHP Family Income & Rent Limits'!$G$17,D49=4,'MHP Family Income & Rent Limits'!$H$17,D49=5,'MHP Family Income & Rent Limits'!$I$17,D49=6,'MHP Family Income & Rent Limits'!$J$17,D49=7,'MHP Family Income & Rent Limits'!$K$17,D49=8,'MHP Family Income & Rent Limits'!$L$17)","v":""},"",{"$f":"IF(OR(A49=0,B49=\"X\"),0,MIN(IF(AA49:AD49<>0,AA49:AD49)))","v":0},{"$f":"IF(OR(H49=\"\",I49=\"\"),0,IF(H49*0.3/12>I49,MIN(H49*0.3/12,I49*1.1)+AP49,I49*(1+(VLOOKUP('1. Checklist & Certification'!$F$9,'HLCP-E Rent Change'!$A$1:$D$59,4,FALSE)))+AP49))","v":0}]
[null,null,null,null,null,null,null,null,null,null,null,null,null,null,null,null,null,null,null,null,null,null,null,null,null,null,0,0,0,0,0,0,0,0,{"$f":"IF(OR(A50=0,B50=\"X\"),0,IF(OR(S50=\"FHDP\",S50=\"RHCP-B\",U50=\"FHDP\",U50=\"RHCP-B\",W50=\"FHDP\",W50=\"RHCP-B\",Y50=\"FHDP\",Y50=\"RHCP-B\"),TRUNC((MIN(I50,K50)*(1+'1. Checklist & Certification'!$K$43)+AP50)),0))","v":0},{"$f":"IF(OR(A50=0,B50=\"X\"),0,IF(OR(S50=\"CHRP-R\",S50=\"SERA\",S50=\"SUHRP\",U50=\"CHRP-R\",U50=\"SERA\",U50=\"SUHRP\",W50=\"CHRP-R\",W50=\"SERA\",W50=\"SUHRP\",Y50=\"CHRP-R\",Y50=\"SERA\",Y50=\"SUHRP\"),TRUNC((MIN(I50,K50)*(1+'1. Checklist & Certification'!$K$49))),0))","v":0},{"$f":"IF(OR(A50=0,B50=\"X\"),0,IF(OR(S50=\"CALDAP\",S50=\"DPRLP\",U50=\"CALDAP\",U50=\"DPRLP\",W50=\"CALDAP\",W50=\"DPRLP\",Y50=\"CALDAP\",Y50=\"DPRLP\"),TRUNC(((MIN(I50,K50))*(1+'1. Checklist & Certification'!$G$4))),0))","v":0},0,0,0,{"$f":"IF(OR(A50=0,B50=\"X\"),0,IF(OR(S50=\"PRP\",S50=\"LPR\",U50=\"PRP\",U50=\"LPR\",W50=\"PRP\",W50=\"LPR\",Y50=\"PRP\",Y50=\"LPR\"),MAX(I50+AP50,MIN(IF(AE50:AN50<>0,AE50:AN50))),MIN(IF(AE50:AN50<>0,AE50:AN50))))","v":0},{"$f":"IF(A50=0,0,IF(AND(OR(S50=\"Mgr\",S50=0),OR(U50=\"Mgr\",U50=0),OR(W50=\"Mgr\",W50=0)),0,IF(LEFT($A50,2)=\"B*\",VLOOKUP($E50,'1. Checklist & Certification'!$D$26:$E$32,2),IF(LEFT($A50,2)=\"C*\",VLOOKUP($E50,'1. Checklist & Certification'!$F$26:$G$32,2),IF(LEFT($A50,2)=\"D*\",VLOOKUP($E50,'1. Checklist & Certification'!$H$26:$I$32,2),IF(LEFT($A50,2)=\"E*\",VLOOKUP($E50,'1. Checklist & Certification'!$J$26:$K$32,2),VLOOKUP($E50,'1. Checklist & Certification'!$A$26:$B$32,2)))))))","v":0},0,0,null,null,null,null,"","",0,0,0,null,{"$f":"IF(A50=\"\",\"\",'1. Checklist & Certification'!$K$1)","v":""},{"$f":"IF(A50=\"\",\"\",'1. Checklist & Certification'!$C$62)","v":""},{"$f":"IF(A50=\"\",\"\",'1. Checklist & Certification'!$C$6)","v":""},{"$f":"IF(A50=\"\",\"\",'1. Checklist & Certification'!$G$5)","v":""},{"$f":"IFERROR(IF(A50=\"\",\"\",\n_xlfn.LET(_xlpm.Contract,'1. Checklist & Certification'!$C$7,\n_xlpm.Yr,TEXT(MOD(_xlfn.TEXTBEFORE(_xlpm.Contract,\"-\"),100),\"00\"),\n_xlpm.Program,_xlfn.TEXTAFTER(_xlfn.TEXTBEFORE(_xlpm.Contract,\"-\",2),\"-\"),\n_xlpm.CleanProgram,_xlfn.XLOOKUP(_xlpm.Program,SpellCheck[Input],SpellCheck[Correction],_xlpm.Program),\n_xlpm.Number,TEXT(_xlfn.TEXTAFTER(_xlpm.Contract,\"-\",2),\"0000\"),\n_xlfn.CONCAT(_xlpm.Yr,\"-\",_xlpm.CleanProgram,\"-\",_xlpm.Number))\n),\"\")","v":""},{"$f":"IFERROR(IF(A50=\"\",\"\",\n_xlfn.LET(_xlpm.Contract,'1. Checklist & Certification'!$C$8,\n_xlpm.Yr,TEXT(MOD(_xlfn.TEXTBEFORE(_xlpm.Contract,\"-\"),100),\"00\"),\n_xlpm.Program,_xlfn.TEXTAFTER(_xlfn.TEXTBEFORE(_xlpm.Contract,\"-\",2),\"-\"),\n_xlpm.CleanProgram,_xlfn.XLOOKUP(_xlpm.Program,SpellCheck[Input],SpellCheck[Correction],_xlpm.Program),\n_xlpm.Number,TEXT(_xlfn.TEXTAFTER(_xlpm.Contract,\"-\",2),\"0000\"),\n_xlfn.CONCAT(_xlpm.Yr,\"-\",_xlpm.CleanProgram,\"-\",_xlpm.Number))\n),\"\")","v":""},{"$f":"IFERROR(IF(A50=\"\",\"\",\n_xlfn.LET(_xlpm.Contract,'1. Checklist & Certification'!$F$7,\n_xlpm.Yr,TEXT(MOD(_xlfn.TEXTBEFORE(_xlpm.Contract,\"-\"),100),\"00\"),\n_xlpm.Program,_xlfn.TEXTAFTER(_xlfn.TEXTBEFORE(_xlpm.Contract,\"-\",2),\"-\"),\n_xlpm.CleanProgram,_xlfn.XLOOKUP(_xlpm.Program,SpellCheck[Input],SpellCheck[Correction],_xlpm.Program),\n_xlpm.Number,TEXT(_xlfn.TEXTAFTER(_xlpm.Contract,\"-\",2),\"0000\"),\n_xlfn.CONCAT(_xlpm.Yr,\"-\",_xlpm.CleanProgram,\"-\",_xlpm.Number))\n),\"\")","v":""},{"$f":"IFERROR(IF(A50=\"\",\"\",\n_xlfn.LET(_xlpm.Contract,'1. Checklist & Certification'!$F$8,\n_xlpm.Yr,TEXT(MOD(_xlfn.TEXTBEFORE(_xlpm.Contract,\"-\"),100),\"00\"),\n_xlpm.Program,_xlfn.TEXTAFTER(_xlfn.TEXTBEFORE(_xlpm.Contract,\"-\",2),\"-\"),\n_xlpm.CleanProgram,_xlfn.XLOOKUP(_xlpm.Program,SpellCheck[Input],SpellCheck[Correction],_xlpm.Program),\n_xlpm.Number,TEXT(_xlfn.TEXTAFTER(_xlpm.Contract,\"-\",2),\"0000\"),\n_xlfn.CONCAT(_xlpm.Yr,\"-\",_xlpm.CleanProgram,\"-\",_xlpm.Number))\n),\"\")","v":""},{"$f":"IF(A50=\"\",\"\",'1. Checklist & Certification'!$B$9)","v":""},{"$f":"IF(A50=\"\",\"\",'1. Checklist & Certification'!$F$9)","v":""},{"$f":"IF(A50=\"\",\"\",'1. Checklist & Certification'!$C$10)","v":""},{"$f":"IF(A50=\"\",\"\",'1. Checklist & Certification'!$C$11)","v":""},{"$f":"IF(A50=\"\",\"\",'1. Checklist & Certification'!$C$12)","v":""},{"$f":"IF(A50=\"\",\"\",'1. Checklist & Certification'!$B$14)","v":""},{"$f":"IF(A50=\"\",\"\",'1. Checklist & Certification'!$E$14)","v":""},{"$f":"IF(B50=\"\",\"\",'1. Checklist & Certification'!$G$14)","v":""},{"$f":"IF(A50=\"\",\"\",'MHP Family Income & Rent Limits'!$B$3)","v":""},{"$f":"IF(A50=\"\",\"\",'MHP Family Income & Rent Limits'!$J$3)","v":""},{"$f":"IF(A50=\"\",\"\",'MHP Family Income & Rent Limits'!$E$4)","v":""},{"$f":"IF(A50=\"\",\"\",'MHP Family Income & Rent Limits'!$C$7)","v":""},{"$f":"IF(A50=\"\",\"\",'MHP Family Income & Rent Limits'!$F$8)","v":""},{"$f":"IF(A50=\"\",\"\",'1. Checklist & Certification'!$G$4)","v":""},{"$f":"IF(A50=\"\",\"\",'1. Checklist & Certification'!$K$39)","v":""},{"$f":"IF(A50=\"\",\"\",'1. Checklist & Certification'!$K$43)","v":""},{"$f":"IF(A50=\"\",\"\",'1. Checklist & Certification'!$K$45)","v":""},{"$f":"IF(A50=\"\",\"\",'1. Checklist & Certification'!$K$49)","v":""},{"$f":"IF(A50=\"\",\"\",'1. Checklist & Certification'!$K$62)","v":""},{"$f":"IF(A50=\"\",\"\",'1. Checklist & Certification'!$E$66)","v":""},{"$f":"IF(A50=\"\",\"\",'1. Checklist & Certification'!$E$67)","v":""},{"$f":"IF(A50=\"\",\"\",'1. Checklist & Certification'!$E$68)","v":""},{"$f":"IF(A50=\"\",\"\",'1. Checklist & Certification'!$G$66)","v":""},{"$f":"IF(A50=\"\",\"\",'1. Checklist & Certification'!$H$66)","v":""},{"$f":"IF(A50=\"\",\"\",'1. Checklist & Certification'!$I$66)","v":""},{"$f":"IF(A50=\"\",\"\",'1. Checklist & Certification'!$I$67)","v":""},{"$f":"IF(A50=\"\",\"\",'1. Checklist & Certification'!$I$68)","v":""},{"$f":"IF(A50=\"\",\"\",'1. Checklist & Certification'!$B$69)","v":""},{"$f":"IF(A50=\"\",\"\",'1. Checklist & Certification'!$C$69)","v":""},{"$f":"IF(A50=\"\",\"\",'1. Checklist & Certification'!$F$69)","v":""},{"$f":"IF(A50=\"\",\"\",'1. Checklist & Certification'!$G$69)","v":""},{"$f":"IF(A50=\"\",\"\",'1. Checklist & Certification'!$J$69)","v":""},{"$f":"IF(A50=\"\",\"\",'1. Checklist & Certification'!$K$69)","v":""},null,null,{"$f":"IF(AND(OR('1. Checklist & Certification'!$M$16=1,'1. Checklist & Certification'!$M$19=2),AO50>0,B50=\"\",I50>0,AQ50<I50,AV50<>\"Sec 8-Project\"),\"X\",IF(AND(OR('1. Checklist & Certification'!$M$20=4,'1. Checklist & Certification'!$M$21=5,'1. Checklist & Certification'!$M$22=7),AO50>0,B50=\"\",I50>0,K50<I50),\"X\",\"\"))","v":""},{"$f":"IF(A50=\"\",\"\",IF(SUMPRODUCT(-- (ISNUMBER(SEARCH({\"*AHSC*\",\"*FMTW*\",\"*FWHG*\",\"*GHI*\",\"*HHC*\",\"*HLCP*\",\"*HOME*\",\"*LPR*\",\"*MHP*\",\"*NHTF*\",\"*NSP*\",\"*PRP*\",\"*TOD*\",\"*VHHP*\"},'1. Checklist & Certification'!$L$7)))),\"MHP\",\"Legacy\"))","v":""},",,",null,null,null,{"$f":"IF('1. Checklist & Certification'!$M$20=4,\"Both\",IF(OR('1. Checklist & Certification'!$M$15>0,S50=\"CHRP-R\",U50=\"CHRP-R\",W50=\"CHRP-R\",Y50=\"CHRP-R\"),\"Under\",\"No\"))","v":"No"},"No","No",{"$f":"_xlfn.IFS(D50=\"\",\"\",D50=1,'MHP Family Income & Rent Limits'!$E$17,D50=2,'MHP Family Income & Rent Limits'!$F$17,D50=3,'MHP Family Income & Rent Limits'!$G$17,D50=4,'MHP Family Income & Rent Limits'!$H$17,D50=5,'MHP Family Income & Rent Limits'!$I$17,D50=6,'MHP Family Income & Rent Limits'!$J$17,D50=7,'MHP Family Income & Rent Limits'!$K$17,D50=8,'MHP Family Income & Rent Limits'!$L$17)","v":""},"",{"$f":"IF(OR(A50=0,B50=\"X\"),0,MIN(IF(AA50:AD50<>0,AA50:AD50)))","v":0},{"$f":"IF(OR(H50=\"\",I50=\"\"),0,IF(H50*0.3/12>I50,MIN(H50*0.3/12,I50*1.1)+AP50,I50*(1+(VLOOKUP('1. Checklist & Certification'!$F$9,'HLCP-E Rent Change'!$A$1:$D$59,4,FALSE)))+AP50))","v":0}]
[null,null,null,null,null,null,null,null,null,null,null,null,null,null,null,null,null,null,null,null,null,null,null,null,null,null,0,0,0,0,0,0,0,0,{"$f":"IF(OR(A51=0,B51=\"X\"),0,IF(OR(S51=\"FHDP\",S51=\"RHCP-B\",U51=\"FHDP\",U51=\"RHCP-B\",W51=\"FHDP\",W51=\"RHCP-B\",Y51=\"FHDP\",Y51=\"RHCP-B\"),TRUNC((MIN(I51,K51)*(1+'1. Checklist & Certification'!$K$43)+AP51)),0))","v":0},{"$f":"IF(OR(A51=0,B51=\"X\"),0,IF(OR(S51=\"CHRP-R\",S51=\"SERA\",S51=\"SUHRP\",U51=\"CHRP-R\",U51=\"SERA\",U51=\"SUHRP\",W51=\"CHRP-R\",W51=\"SERA\",W51=\"SUHRP\",Y51=\"CHRP-R\",Y51=\"SERA\",Y51=\"SUHRP\"),TRUNC((MIN(I51,K51)*(1+'1. Checklist & Certification'!$K$49))),0))","v":0},{"$f":"IF(OR(A51=0,B51=\"X\"),0,IF(OR(S51=\"CALDAP\",S51=\"DPRLP\",U51=\"CALDAP\",U51=\"DPRLP\",W51=\"CALDAP\",W51=\"DPRLP\",Y51=\"CALDAP\",Y51=\"DPRLP\"),TRUNC(((MIN(I51,K51))*(1+'1. Checklist & Certification'!$G$4))),0))","v":0},0,0,0,{"$f":"IF(OR(A51=0,B51=\"X\"),0,IF(OR(S51=\"PRP\",S51=\"LPR\",U51=\"PRP\",U51=\"LPR\",W51=\"PRP\",W51=\"LPR\",Y51=\"PRP\",Y51=\"LPR\"),MAX(I51+AP51,MIN(IF(AE51:AN51<>0,AE51:AN51))),MIN(IF(AE51:AN51<>0,AE51:AN51))))","v":0},{"$f":"IF(A51=0,0,IF(AND(OR(S51=\"Mgr\",S51=0),OR(U51=\"Mgr\",U51=0),OR(W51=\"Mgr\",W51=0)),0,IF(LEFT($A51,2)=\"B*\",VLOOKUP($E51,'1. Checklist & Certification'!$D$26:$E$32,2),IF(LEFT($A51,2)=\"C*\",VLOOKUP($E51,'1. Checklist & Certification'!$F$26:$G$32,2),IF(LEFT($A51,2)=\"D*\",VLOOKUP($E51,'1. Checklist & Certification'!$H$26:$I$32,2),IF(LEFT($A51,2)=\"E*\",VLOOKUP($E51,'1. Checklist & Certification'!$J$26:$K$32,2),VLOOKUP($E51,'1. Checklist & Certification'!$A$26:$B$32,2)))))))","v":0},0,0,null,null,null,null,"","",0,0,0,null,{"$f":"IF(A51=\"\",\"\",'1. Checklist & Certification'!$K$1)","v":""},{"$f":"IF(A51=\"\",\"\",'1. Checklist & Certification'!$C$62)","v":""},{"$f":"IF(A51=\"\",\"\",'1. Checklist & Certification'!$C$6)","v":""},{"$f":"IF(A51=\"\",\"\",'1. Checklist & Certification'!$G$5)","v":""},{"$f":"IFERROR(IF(A51=\"\",\"\",\n_xlfn.LET(_xlpm.Contract,'1. Checklist & Certification'!$C$7,\n_xlpm.Yr,TEXT(MOD(_xlfn.TEXTBEFORE(_xlpm.Contract,\"-\"),100),\"00\"),\n_xlpm.Program,_xlfn.TEXTAFTER(_xlfn.TEXTBEFORE(_xlpm.Contract,\"-\",2),\"-\"),\n_xlpm.CleanProgram,_xlfn.XLOOKUP(_xlpm.Program,SpellCheck[Input],SpellCheck[Correction],_xlpm.Program),\n_xlpm.Number,TEXT(_xlfn.TEXTAFTER(_xlpm.Contract,\"-\",2),\"0000\"),\n_xlfn.CONCAT(_xlpm.Yr,\"-\",_xlpm.CleanProgram,\"-\",_xlpm.Number))\n),\"\")","v":""},{"$f":"IFERROR(IF(A51=\"\",\"\",\n_xlfn.LET(_xlpm.Contract,'1. Checklist & Certification'!$C$8,\n_xlpm.Yr,TEXT(MOD(_xlfn.TEXTBEFORE(_xlpm.Contract,\"-\"),100),\"00\"),\n_xlpm.Program,_xlfn.TEXTAFTER(_xlfn.TEXTBEFORE(_xlpm.Contract,\"-\",2),\"-\"),\n_xlpm.CleanProgram,_xlfn.XLOOKUP(_xlpm.Program,SpellCheck[Input],SpellCheck[Correction],_xlpm.Program),\n_xlpm.Number,TEXT(_xlfn.TEXTAFTER(_xlpm.Contract,\"-\",2),\"0000\"),\n_xlfn.CONCAT(_xlpm.Yr,\"-\",_xlpm.CleanProgram,\"-\",_xlpm.Number))\n),\"\")","v":""},{"$f":"IFERROR(IF(A51=\"\",\"\",\n_xlfn.LET(_xlpm.Contract,'1. Checklist & Certification'!$F$7,\n_xlpm.Yr,TEXT(MOD(_xlfn.TEXTBEFORE(_xlpm.Contract,\"-\"),100),\"00\"),\n_xlpm.Program,_xlfn.TEXTAFTER(_xlfn.TEXTBEFORE(_xlpm.Contract,\"-\",2),\"-\"),\n_xlpm.CleanProgram,_xlfn.XLOOKUP(_xlpm.Program,SpellCheck[Input],SpellCheck[Correction],_xlpm.Program),\n_xlpm.Number,TEXT(_xlfn.TEXTAFTER(_xlpm.Contract,\"-\",2),\"0000\"),\n_xlfn.CONCAT(_xlpm.Yr,\"-\",_xlpm.CleanProgram,\"-\",_xlpm.Number))\n),\"\")","v":""},{"$f":"IFERROR(IF(A51=\"\",\"\",\n_xlfn.LET(_xlpm.Contract,'1. Checklist & Certification'!$F$8,\n_xlpm.Yr,TEXT(MOD(_xlfn.TEXTBEFORE(_xlpm.Contract,\"-\"),100),\"00\"),\n_xlpm.Program,_xlfn.TEXTAFTER(_xlfn.TEXTBEFORE(_xlpm.Contract,\"-\",2),\"-\"),\n_xlpm.CleanProgram,_xlfn.XLOOKUP(_xlpm.Program,SpellCheck[Input],SpellCheck[Correction],_xlpm.Program),\n_xlpm.Number,TEXT(_xlfn.TEXTAFTER(_xlpm.Contract,\"-\",2),\"0000\"),\n_xlfn.CONCAT(_xlpm.Yr,\"-\",_xlpm.CleanProgram,\"-\",_xlpm.Number))\n),\"\")","v":""},{"$f":"IF(A51=\"\",\"\",'1. Checklist & Certification'!$B$9)","v":""},{"$f":"IF(A51=\"\",\"\",'1. Checklist & Certification'!$F$9)","v":""},{"$f":"IF(A51=\"\",\"\",'1. Checklist & Certification'!$C$10)","v":""},{"$f":"IF(A51=\"\",\"\",'1. Checklist & Certification'!$C$11)","v":""},{"$f":"IF(A51=\"\",\"\",'1. Checklist & Certification'!$C$12)","v":""},{"$f":"IF(A51=\"\",\"\",'1. Checklist & Certification'!$B$14)","v":""},{"$f":"IF(A51=\"\",\"\",'1. Checklist & Certification'!$E$14)","v":""},{"$f":"IF(B51=\"\",\"\",'1. Checklist & Certification'!$G$14)","v":""},{"$f":"IF(A51=\"\",\"\",'MHP Family Income & Rent Limits'!$B$3)","v":""},{"$f":"IF(A51=\"\",\"\",'MHP Family Income & Rent Limits'!$J$3)","v":""},{"$f":"IF(A51=\"\",\"\",'MHP Family Income & Rent Limits'!$E$4)","v":""},{"$f":"IF(A51=\"\",\"\",'MHP Family Income & Rent Limits'!$C$7)","v":""},{"$f":"IF(A51=\"\",\"\",'MHP Family Income & Rent Limits'!$F$8)","v":""},{"$f":"IF(A51=\"\",\"\",'1. Checklist & Certification'!$G$4)","v":""},{"$f":"IF(A51=\"\",\"\",'1. Checklist & Certification'!$K$39)","v":""},{"$f":"IF(A51=\"\",\"\",'1. Checklist & Certification'!$K$43)","v":""},{"$f":"IF(A51=\"\",\"\",'1. Checklist & Certification'!$K$45)","v":""},{"$f":"IF(A51=\"\",\"\",'1. Checklist & Certification'!$K$49)","v":""},{"$f":"IF(A51=\"\",\"\",'1. Checklist & Certification'!$K$62)","v":""},{"$f":"IF(A51=\"\",\"\",'1. Checklist & Certification'!$E$66)","v":""},{"$f":"IF(A51=\"\",\"\",'1. Checklist & Certification'!$E$67)","v":""},{"$f":"IF(A51=\"\",\"\",'1. Checklist & Certification'!$E$68)","v":""},{"$f":"IF(A51=\"\",\"\",'1. Checklist & Certification'!$G$66)","v":""},{"$f":"IF(A51=\"\",\"\",'1. Checklist & Certification'!$H$66)","v":""},{"$f":"IF(A51=\"\",\"\",'1. Checklist & Certification'!$I$66)","v":""},{"$f":"IF(A51=\"\",\"\",'1. Checklist & Certification'!$I$67)","v":""},{"$f":"IF(A51=\"\",\"\",'1. Checklist & Certification'!$I$68)","v":""},{"$f":"IF(A51=\"\",\"\",'1. Checklist & Certification'!$B$69)","v":""},{"$f":"IF(A51=\"\",\"\",'1. Checklist & Certification'!$C$69)","v":""},{"$f":"IF(A51=\"\",\"\",'1. Checklist & Certification'!$F$69)","v":""},{"$f":"IF(A51=\"\",\"\",'1. Checklist & Certification'!$G$69)","v":""},{"$f":"IF(A51=\"\",\"\",'1. Checklist & Certification'!$J$69)","v":""},{"$f":"IF(A51=\"\",\"\",'1. Checklist & Certification'!$K$69)","v":""},null,null,{"$f":"IF(AND(OR('1. Checklist & Certification'!$M$16=1,'1. Checklist & Certification'!$M$19=2),AO51>0,B51=\"\",I51>0,AQ51<I51,AV51<>\"Sec 8-Project\"),\"X\",IF(AND(OR('1. Checklist & Certification'!$M$20=4,'1. Checklist & Certification'!$M$21=5,'1. Checklist & Certification'!$M$22=7),AO51>0,B51=\"\",I51>0,K51<I51),\"X\",\"\"))","v":""},{"$f":"IF(A51=\"\",\"\",IF(SUMPRODUCT(-- (ISNUMBER(SEARCH({\"*AHSC*\",\"*FMTW*\",\"*FWHG*\",\"*GHI*\",\"*HHC*\",\"*HLCP*\",\"*HOME*\",\"*LPR*\",\"*MHP*\",\"*NHTF*\",\"*NSP*\",\"*PRP*\",\"*TOD*\",\"*VHHP*\"},'1. Checklist & Certification'!$L$7)))),\"MHP\",\"Legacy\"))","v":""},",,",null,null,null,{"$f":"IF('1. Checklist & Certification'!$M$20=4,\"Both\",IF(OR('1. Checklist & Certification'!$M$15>0,S51=\"CHRP-R\",U51=\"CHRP-R\",W51=\"CHRP-R\",Y51=\"CHRP-R\"),\"Under\",\"No\"))","v":"No"},"No","No",{"$f":"_xlfn.IFS(D51=\"\",\"\",D51=1,'MHP Family Income & Rent Limits'!$E$17,D51=2,'MHP Family Income & Rent Limits'!$F$17,D51=3,'MHP Family Income & Rent Limits'!$G$17,D51=4,'MHP Family Income & Rent Limits'!$H$17,D51=5,'MHP Family Income & Rent Limits'!$I$17,D51=6,'MHP Family Income & Rent Limits'!$J$17,D51=7,'MHP Family Income & Rent Limits'!$K$17,D51=8,'MHP Family Income & Rent Limits'!$L$17)","v":""},"",{"$f":"IF(OR(A51=0,B51=\"X\"),0,MIN(IF(AA51:AD51<>0,AA51:AD51)))","v":0},{"$f":"IF(OR(H51=\"\",I51=\"\"),0,IF(H51*0.3/12>I51,MIN(H51*0.3/12,I51*1.1)+AP51,I51*(1+(VLOOKUP('1. Checklist & Certification'!$F$9,'HLCP-E Rent Change'!$A$1:$D$59,4,FALSE)))+AP51))","v":0}]
[null,null,null,null,null,null,null,null,null,null,null,null,null,null,null,null,null,null,null,null,null,null,null,null,null,null,0,0,0,0,0,0,0,0,{"$f":"IF(OR(A52=0,B52=\"X\"),0,IF(OR(S52=\"FHDP\",S52=\"RHCP-B\",U52=\"FHDP\",U52=\"RHCP-B\",W52=\"FHDP\",W52=\"RHCP-B\",Y52=\"FHDP\",Y52=\"RHCP-B\"),TRUNC((MIN(I52,K52)*(1+'1. Checklist & Certification'!$K$43)+AP52)),0))","v":0},{"$f":"IF(OR(A52=0,B52=\"X\"),0,IF(OR(S52=\"CHRP-R\",S52=\"SERA\",S52=\"SUHRP\",U52=\"CHRP-R\",U52=\"SERA\",U52=\"SUHRP\",W52=\"CHRP-R\",W52=\"SERA\",W52=\"SUHRP\",Y52=\"CHRP-R\",Y52=\"SERA\",Y52=\"SUHRP\"),TRUNC((MIN(I52,K52)*(1+'1. Checklist & Certification'!$K$49))),0))","v":0},{"$f":"IF(OR(A52=0,B52=\"X\"),0,IF(OR(S52=\"CALDAP\",S52=\"DPRLP\",U52=\"CALDAP\",U52=\"DPRLP\",W52=\"CALDAP\",W52=\"DPRLP\",Y52=\"CALDAP\",Y52=\"DPRLP\"),TRUNC(((MIN(I52,K52))*(1+'1. Checklist & Certification'!$G$4))),0))","v":0},0,0,0,{"$f":"IF(OR(A52=0,B52=\"X\"),0,IF(OR(S52=\"PRP\",S52=\"LPR\",U52=\"PRP\",U52=\"LPR\",W52=\"PRP\",W52=\"LPR\",Y52=\"PRP\",Y52=\"LPR\"),MAX(I52+AP52,MIN(IF(AE52:AN52<>0,AE52:AN52))),MIN(IF(AE52:AN52<>0,AE52:AN52))))","v":0},{"$f":"IF(A52=0,0,IF(AND(OR(S52=\"Mgr\",S52=0),OR(U52=\"Mgr\",U52=0),OR(W52=\"Mgr\",W52=0)),0,IF(LEFT($A52,2)=\"B*\",VLOOKUP($E52,'1. Checklist & Certification'!$D$26:$E$32,2),IF(LEFT($A52,2)=\"C*\",VLOOKUP($E52,'1. Checklist & Certification'!$F$26:$G$32,2),IF(LEFT($A52,2)=\"D*\",VLOOKUP($E52,'1. Checklist & Certification'!$H$26:$I$32,2),IF(LEFT($A52,2)=\"E*\",VLOOKUP($E52,'1. Checklist & Certification'!$J$26:$K$32,2),VLOOKUP($E52,'1. Checklist & Certification'!$A$26:$B$32,2)))))))","v":0},0,0,null,null,null,null,"","",0,0,0,null,{"$f":"IF(A52=\"\",\"\",'1. Checklist & Certification'!$K$1)","v":""},{"$f":"IF(A52=\"\",\"\",'1. Checklist & Certification'!$C$62)","v":""},{"$f":"IF(A52=\"\",\"\",'1. Checklist & Certification'!$C$6)","v":""},{"$f":"IF(A52=\"\",\"\",'1. Checklist & Certification'!$G$5)","v":""},{"$f":"IFERROR(IF(A52=\"\",\"\",\n_xlfn.LET(_xlpm.Contract,'1. Checklist & Certification'!$C$7,\n_xlpm.Yr,TEXT(MOD(_xlfn.TEXTBEFORE(_xlpm.Contract,\"-\"),100),\"00\"),\n_xlpm.Program,_xlfn.TEXTAFTER(_xlfn.TEXTBEFORE(_xlpm.Contract,\"-\",2),\"-\"),\n_xlpm.CleanProgram,_xlfn.XLOOKUP(_xlpm.Program,SpellCheck[Input],SpellCheck[Correction],_xlpm.Program),\n_xlpm.Number,TEXT(_xlfn.TEXTAFTER(_xlpm.Contract,\"-\",2),\"0000\"),\n_xlfn.CONCAT(_xlpm.Yr,\"-\",_xlpm.CleanProgram,\"-\",_xlpm.Number))\n),\"\")","v":""},{"$f":"IFERROR(IF(A52=\"\",\"\",\n_xlfn.LET(_xlpm.Contract,'1. Checklist & Certification'!$C$8,\n_xlpm.Yr,TEXT(MOD(_xlfn.TEXTBEFORE(_xlpm.Contract,\"-\"),100),\"00\"),\n_xlpm.Program,_xlfn.TEXTAFTER(_xlfn.TEXTBEFORE(_xlpm.Contract,\"-\",2),\"-\"),\n_xlpm.CleanProgram,_xlfn.XLOOKUP(_xlpm.Program,SpellCheck[Input],SpellCheck[Correction],_xlpm.Program),\n_xlpm.Number,TEXT(_xlfn.TEXTAFTER(_xlpm.Contract,\"-\",2),\"0000\"),\n_xlfn.CONCAT(_xlpm.Yr,\"-\",_xlpm.CleanProgram,\"-\",_xlpm.Number))\n),\"\")","v":""},{"$f":"IFERROR(IF(A52=\"\",\"\",\n_xlfn.LET(_xlpm.Contract,'1. Checklist & Certification'!$F$7,\n_xlpm.Yr,TEXT(MOD(_xlfn.TEXTBEFORE(_xlpm.Contract,\"-\"),100),\"00\"),\n_xlpm.Program,_xlfn.TEXTAFTER(_xlfn.TEXTBEFORE(_xlpm.Contract,\"-\",2),\"-\"),\n_xlpm.CleanProgram,_xlfn.XLOOKUP(_xlpm.Program,SpellCheck[Input],SpellCheck[Correction],_xlpm.Program),\n_xlpm.Number,TEXT(_xlfn.TEXTAFTER(_xlpm.Contract,\"-\",2),\"0000\"),\n_xlfn.CONCAT(_xlpm.Yr,\"-\",_xlpm.CleanProgram,\"-\",_xlpm.Number))\n),\"\")","v":""},{"$f":"IFERROR(IF(A52=\"\",\"\",\n_xlfn.LET(_xlpm.Contract,'1. Checklist & Certification'!$F$8,\n_xlpm.Yr,TEXT(MOD(_xlfn.TEXTBEFORE(_xlpm.Contract,\"-\"),100),\"00\"),\n_xlpm.Program,_xlfn.TEXTAFTER(_xlfn.TEXTBEFORE(_xlpm.Contract,\"-\",2),\"-\"),\n_xlpm.CleanProgram,_xlfn.XLOOKUP(_xlpm.Program,SpellCheck[Input],SpellCheck[Correction],_xlpm.Program),\n_xlpm.Number,TEXT(_xlfn.TEXTAFTER(_xlpm.Contract,\"-\",2),\"0000\"),\n_xlfn.CONCAT(_xlpm.Yr,\"-\",_xlpm.CleanProgram,\"-\",_xlpm.Number))\n),\"\")","v":""},{"$f":"IF(A52=\"\",\"\",'1. Checklist & Certification'!$B$9)","v":""},{"$f":"IF(A52=\"\",\"\",'1. Checklist & Certification'!$F$9)","v":""},{"$f":"IF(A52=\"\",\"\",'1. Checklist & Certification'!$C$10)","v":""},{"$f":"IF(A52=\"\",\"\",'1. Checklist & Certification'!$C$11)","v":""},{"$f":"IF(A52=\"\",\"\",'1. Checklist & Certification'!$C$12)","v":""},{"$f":"IF(A52=\"\",\"\",'1. Checklist & Certification'!$B$14)","v":""},{"$f":"IF(A52=\"\",\"\",'1. Checklist & Certification'!$E$14)","v":""},{"$f":"IF(B52=\"\",\"\",'1. Checklist & Certification'!$G$14)","v":""},{"$f":"IF(A52=\"\",\"\",'MHP Family Income & Rent Limits'!$B$3)","v":""},{"$f":"IF(A52=\"\",\"\",'MHP Family Income & Rent Limits'!$J$3)","v":""},{"$f":"IF(A52=\"\",\"\",'MHP Family Income & Rent Limits'!$E$4)","v":""},{"$f":"IF(A52=\"\",\"\",'MHP Family Income & Rent Limits'!$C$7)","v":""},{"$f":"IF(A52=\"\",\"\",'MHP Family Income & Rent Limits'!$F$8)","v":""},{"$f":"IF(A52=\"\",\"\",'1. Checklist & Certification'!$G$4)","v":""},{"$f":"IF(A52=\"\",\"\",'1. Checklist & Certification'!$K$39)","v":""},{"$f":"IF(A52=\"\",\"\",'1. Checklist & Certification'!$K$43)","v":""},{"$f":"IF(A52=\"\",\"\",'1. Checklist & Certification'!$K$45)","v":""},{"$f":"IF(A52=\"\",\"\",'1. Checklist & Certification'!$K$49)","v":""},{"$f":"IF(A52=\"\",\"\",'1. Checklist & Certification'!$K$62)","v":""},{"$f":"IF(A52=\"\",\"\",'1. Checklist & Certification'!$E$66)","v":""},{"$f":"IF(A52=\"\",\"\",'1. Checklist & Certification'!$E$67)","v":""},{"$f":"IF(A52=\"\",\"\",'1. Checklist & Certification'!$E$68)","v":""},{"$f":"IF(A52=\"\",\"\",'1. Checklist & Certification'!$G$66)","v":""},{"$f":"IF(A52=\"\",\"\",'1. Checklist & Certification'!$H$66)","v":""},{"$f":"IF(A52=\"\",\"\",'1. Checklist & Certification'!$I$66)","v":""},{"$f":"IF(A52=\"\",\"\",'1. Checklist & Certification'!$I$67)","v":""},{"$f":"IF(A52=\"\",\"\",'1. Checklist & Certification'!$I$68)","v":""},{"$f":"IF(A52=\"\",\"\",'1. Checklist & Certification'!$B$69)","v":""},{"$f":"IF(A52=\"\",\"\",'1. Checklist & Certification'!$C$69)","v":""},{"$f":"IF(A52=\"\",\"\",'1. Checklist & Certification'!$F$69)","v":""},{"$f":"IF(A52=\"\",\"\",'1. Checklist & Certification'!$G$69)","v":""},{"$f":"IF(A52=\"\",\"\",'1. Checklist & Certification'!$J$69)","v":""},{"$f":"IF(A52=\"\",\"\",'1. Checklist & Certification'!$K$69)","v":""},null,null,{"$f":"IF(AND(OR('1. Checklist & Certification'!$M$16=1,'1. Checklist & Certification'!$M$19=2),AO52>0,B52=\"\",I52>0,AQ52<I52,AV52<>\"Sec 8-Project\"),\"X\",IF(AND(OR('1. Checklist & Certification'!$M$20=4,'1. Checklist & Certification'!$M$21=5,'1. Checklist & Certification'!$M$22=7),AO52>0,B52=\"\",I52>0,K52<I52),\"X\",\"\"))","v":""},{"$f":"IF(A52=\"\",\"\",IF(SUMPRODUCT(-- (ISNUMBER(SEARCH({\"*AHSC*\",\"*FMTW*\",\"*FWHG*\",\"*GHI*\",\"*HHC*\",\"*HLCP*\",\"*HOME*\",\"*LPR*\",\"*MHP*\",\"*NHTF*\",\"*NSP*\",\"*PRP*\",\"*TOD*\",\"*VHHP*\"},'1. Checklist & Certification'!$L$7)))),\"MHP\",\"Legacy\"))","v":""},",,",null,null,null,{"$f":"IF('1. Checklist & Certification'!$M$20=4,\"Both\",IF(OR('1. Checklist & Certification'!$M$15>0,S52=\"CHRP-R\",U52=\"CHRP-R\",W52=\"CHRP-R\",Y52=\"CHRP-R\"),\"Under\",\"No\"))","v":"No"},"No","No",{"$f":"_xlfn.IFS(D52=\"\",\"\",D52=1,'MHP Family Income & Rent Limits'!$E$17,D52=2,'MHP Family Income & Rent Limits'!$F$17,D52=3,'MHP Family Income & Rent Limits'!$G$17,D52=4,'MHP Family Income & Rent Limits'!$H$17,D52=5,'MHP Family Income & Rent Limits'!$I$17,D52=6,'MHP Family Income & Rent Limits'!$J$17,D52=7,'MHP Family Income & Rent Limits'!$K$17,D52=8,'MHP Family Income & Rent Limits'!$L$17)","v":""},"",{"$f":"IF(OR(A52=0,B52=\"X\"),0,MIN(IF(AA52:AD52<>0,AA52:AD52)))","v":0},{"$f":"IF(OR(H52=\"\",I52=\"\"),0,IF(H52*0.3/12>I52,MIN(H52*0.3/12,I52*1.1)+AP52,I52*(1+(VLOOKUP('1. Checklist & Certification'!$F$9,'HLCP-E Rent Change'!$A$1:$D$59,4,FALSE)))+AP52))","v":0}]
[null,null,null,null,null,null,null,null,null,null,null,null,null,null,null,null,null,null,null,null,null,null,null,null,null,null,0,0,0,0,0,0,0,0,{"$f":"IF(OR(A53=0,B53=\"X\"),0,IF(OR(S53=\"FHDP\",S53=\"RHCP-B\",U53=\"FHDP\",U53=\"RHCP-B\",W53=\"FHDP\",W53=\"RHCP-B\",Y53=\"FHDP\",Y53=\"RHCP-B\"),TRUNC((MIN(I53,K53)*(1+'1. Checklist & Certification'!$K$43)+AP53)),0))","v":0},{"$f":"IF(OR(A53=0,B53=\"X\"),0,IF(OR(S53=\"CHRP-R\",S53=\"SERA\",S53=\"SUHRP\",U53=\"CHRP-R\",U53=\"SERA\",U53=\"SUHRP\",W53=\"CHRP-R\",W53=\"SERA\",W53=\"SUHRP\",Y53=\"CHRP-R\",Y53=\"SERA\",Y53=\"SUHRP\"),TRUNC((MIN(I53,K53)*(1+'1. Checklist & Certification'!$K$49))),0))","v":0},{"$f":"IF(OR(A53=0,B53=\"X\"),0,IF(OR(S53=\"CALDAP\",S53=\"DPRLP\",U53=\"CALDAP\",U53=\"DPRLP\",W53=\"CALDAP\",W53=\"DPRLP\",Y53=\"CALDAP\",Y53=\"DPRLP\"),TRUNC(((MIN(I53,K53))*(1+'1. Checklist & Certification'!$G$4))),0))","v":0},0,0,0,{"$f":"IF(OR(A53=0,B53=\"X\"),0,IF(OR(S53=\"PRP\",S53=\"LPR\",U53=\"PRP\",U53=\"LPR\",W53=\"PRP\",W53=\"LPR\",Y53=\"PRP\",Y53=\"LPR\"),MAX(I53+AP53,MIN(IF(AE53:AN53<>0,AE53:AN53))),MIN(IF(AE53:AN53<>0,AE53:AN53))))","v":0},{"$f":"IF(A53=0,0,IF(AND(OR(S53=\"Mgr\",S53=0),OR(U53=\"Mgr\",U53=0),OR(W53=\"Mgr\",W53=0)),0,IF(LEFT($A53,2)=\"B*\",VLOOKUP($E53,'1. Checklist & Certification'!$D$26:$E$32,2),IF(LEFT($A53,2)=\"C*\",VLOOKUP($E53,'1. Checklist & Certification'!$F$26:$G$32,2),IF(LEFT($A53,2)=\"D*\",VLOOKUP($E53,'1. Checklist & Certification'!$H$26:$I$32,2),IF(LEFT($A53,2)=\"E*\",VLOOKUP($E53,'1. Checklist & Certification'!$J$26:$K$32,2),VLOOKUP($E53,'1. Checklist & Certification'!$A$26:$B$32,2)))))))","v":0},0,0,null,null,null,null,"","",0,0,0,null,{"$f":"IF(A53=\"\",\"\",'1. Checklist & Certification'!$K$1)","v":""},{"$f":"IF(A53=\"\",\"\",'1. Checklist & Certification'!$C$62)","v":""},{"$f":"IF(A53=\"\",\"\",'1. Checklist & Certification'!$C$6)","v":""},{"$f":"IF(A53=\"\",\"\",'1. Checklist & Certification'!$G$5)","v":""},{"$f":"IFERROR(IF(A53=\"\",\"\",\n_xlfn.LET(_xlpm.Contract,'1. Checklist & Certification'!$C$7,\n_xlpm.Yr,TEXT(MOD(_xlfn.TEXTBEFORE(_xlpm.Contract,\"-\"),100),\"00\"),\n_xlpm.Program,_xlfn.TEXTAFTER(_xlfn.TEXTBEFORE(_xlpm.Contract,\"-\",2),\"-\"),\n_xlpm.CleanProgram,_xlfn.XLOOKUP(_xlpm.Program,SpellCheck[Input],SpellCheck[Correction],_xlpm.Program),\n_xlpm.Number,TEXT(_xlfn.TEXTAFTER(_xlpm.Contract,\"-\",2),\"0000\"),\n_xlfn.CONCAT(_xlpm.Yr,\"-\",_xlpm.CleanProgram,\"-\",_xlpm.Number))\n),\"\")","v":""},{"$f":"IFERROR(IF(A53=\"\",\"\",\n_xlfn.LET(_xlpm.Contract,'1. Checklist & Certification'!$C$8,\n_xlpm.Yr,TEXT(MOD(_xlfn.TEXTBEFORE(_xlpm.Contract,\"-\"),100),\"00\"),\n_xlpm.Program,_xlfn.TEXTAFTER(_xlfn.TEXTBEFORE(_xlpm.Contract,\"-\",2),\"-\"),\n_xlpm.CleanProgram,_xlfn.XLOOKUP(_xlpm.Program,SpellCheck[Input],SpellCheck[Correction],_xlpm.Program),\n_xlpm.Number,TEXT(_xlfn.TEXTAFTER(_xlpm.Contract,\"-\",2),\"0000\"),\n_xlfn.CONCAT(_xlpm.Yr,\"-\",_xlpm.CleanProgram,\"-\",_xlpm.Number))\n),\"\")","v":""},{"$f":"IFERROR(IF(A53=\"\",\"\",\n_xlfn.LET(_xlpm.Contract,'1. Checklist & Certification'!$F$7,\n_xlpm.Yr,TEXT(MOD(_xlfn.TEXTBEFORE(_xlpm.Contract,\"-\"),100),\"00\"),\n_xlpm.Program,_xlfn.TEXTAFTER(_xlfn.TEXTBEFORE(_xlpm.Contract,\"-\",2),\"-\"),\n_xlpm.CleanProgram,_xlfn.XLOOKUP(_xlpm.Program,SpellCheck[Input],SpellCheck[Correction],_xlpm.Program),\n_xlpm.Number,TEXT(_xlfn.TEXTAFTER(_xlpm.Contract,\"-\",2),\"0000\"),\n_xlfn.CONCAT(_xlpm.Yr,\"-\",_xlpm.CleanProgram,\"-\",_xlpm.Number))\n),\"\")","v":""},{"$f":"IFERROR(IF(A53=\"\",\"\",\n_xlfn.LET(_xlpm.Contract,'1. Checklist & Certification'!$F$8,\n_xlpm.Yr,TEXT(MOD(_xlfn.TEXTBEFORE(_xlpm.Contract,\"-\"),100),\"00\"),\n_xlpm.Program,_xlfn.TEXTAFTER(_xlfn.TEXTBEFORE(_xlpm.Contract,\"-\",2),\"-\"),\n_xlpm.CleanProgram,_xlfn.XLOOKUP(_xlpm.Program,SpellCheck[Input],SpellCheck[Correction],_xlpm.Program),\n_xlpm.Number,TEXT(_xlfn.TEXTAFTER(_xlpm.Contract,\"-\",2),\"0000\"),\n_xlfn.CONCAT(_xlpm.Yr,\"-\",_xlpm.CleanProgram,\"-\",_xlpm.Number))\n),\"\")","v":""},{"$f":"IF(A53=\"\",\"\",'1. Checklist & Certification'!$B$9)","v":""},{"$f":"IF(A53=\"\",\"\",'1. Checklist & Certification'!$F$9)","v":""},{"$f":"IF(A53=\"\",\"\",'1. Checklist & Certification'!$C$10)","v":""},{"$f":"IF(A53=\"\",\"\",'1. Checklist & Certification'!$C$11)","v":""},{"$f":"IF(A53=\"\",\"\",'1. Checklist & Certification'!$C$12)","v":""},{"$f":"IF(A53=\"\",\"\",'1. Checklist & Certification'!$B$14)","v":""},{"$f":"IF(A53=\"\",\"\",'1. Checklist & Certification'!$E$14)","v":""},{"$f":"IF(B53=\"\",\"\",'1. Checklist & Certification'!$G$14)","v":""},{"$f":"IF(A53=\"\",\"\",'MHP Family Income & Rent Limits'!$B$3)","v":""},{"$f":"IF(A53=\"\",\"\",'MHP Family Income & Rent Limits'!$J$3)","v":""},{"$f":"IF(A53=\"\",\"\",'MHP Family Income & Rent Limits'!$E$4)","v":""},{"$f":"IF(A53=\"\",\"\",'MHP Family Income & Rent Limits'!$C$7)","v":""},{"$f":"IF(A53=\"\",\"\",'MHP Family Income & Rent Limits'!$F$8)","v":""},{"$f":"IF(A53=\"\",\"\",'1. Checklist & Certification'!$G$4)","v":""},{"$f":"IF(A53=\"\",\"\",'1. Checklist & Certification'!$K$39)","v":""},{"$f":"IF(A53=\"\",\"\",'1. Checklist & Certification'!$K$43)","v":""},{"$f":"IF(A53=\"\",\"\",'1. Checklist & Certification'!$K$45)","v":""},{"$f":"IF(A53=\"\",\"\",'1. Checklist & Certification'!$K$49)","v":""},{"$f":"IF(A53=\"\",\"\",'1. Checklist & Certification'!$K$62)","v":""},{"$f":"IF(A53=\"\",\"\",'1. Checklist & Certification'!$E$66)","v":""},{"$f":"IF(A53=\"\",\"\",'1. Checklist & Certification'!$E$67)","v":""},{"$f":"IF(A53=\"\",\"\",'1. Checklist & Certification'!$E$68)","v":""},{"$f":"IF(A53=\"\",\"\",'1. Checklist & Certification'!$G$66)","v":""},{"$f":"IF(A53=\"\",\"\",'1. Checklist & Certification'!$H$66)","v":""},{"$f":"IF(A53=\"\",\"\",'1. Checklist & Certification'!$I$66)","v":""},{"$f":"IF(A53=\"\",\"\",'1. Checklist & Certification'!$I$67)","v":""},{"$f":"IF(A53=\"\",\"\",'1. Checklist & Certification'!$I$68)","v":""},{"$f":"IF(A53=\"\",\"\",'1. Checklist & Certification'!$B$69)","v":""},{"$f":"IF(A53=\"\",\"\",'1. Checklist & Certification'!$C$69)","v":""},{"$f":"IF(A53=\"\",\"\",'1. Checklist & Certification'!$F$69)","v":""},{"$f":"IF(A53=\"\",\"\",'1. Checklist & Certification'!$G$69)","v":""},{"$f":"IF(A53=\"\",\"\",'1. Checklist & Certification'!$J$69)","v":""},{"$f":"IF(A53=\"\",\"\",'1. Checklist & Certification'!$K$69)","v":""},null,null,{"$f":"IF(AND(OR('1. Checklist & Certification'!$M$16=1,'1. Checklist & Certification'!$M$19=2),AO53>0,B53=\"\",I53>0,AQ53<I53,AV53<>\"Sec 8-Project\"),\"X\",IF(AND(OR('1. Checklist & Certification'!$M$20=4,'1. Checklist & Certification'!$M$21=5,'1. Checklist & Certification'!$M$22=7),AO53>0,B53=\"\",I53>0,K53<I53),\"X\",\"\"))","v":""},{"$f":"IF(A53=\"\",\"\",IF(SUMPRODUCT(-- (ISNUMBER(SEARCH({\"*AHSC*\",\"*FMTW*\",\"*FWHG*\",\"*GHI*\",\"*HHC*\",\"*HLCP*\",\"*HOME*\",\"*LPR*\",\"*MHP*\",\"*NHTF*\",\"*NSP*\",\"*PRP*\",\"*TOD*\",\"*VHHP*\"},'1. Checklist & Certification'!$L$7)))),\"MHP\",\"Legacy\"))","v":""},",,",null,null,null,{"$f":"IF('1. Checklist & Certification'!$M$20=4,\"Both\",IF(OR('1. Checklist & Certification'!$M$15>0,S53=\"CHRP-R\",U53=\"CHRP-R\",W53=\"CHRP-R\",Y53=\"CHRP-R\"),\"Under\",\"No\"))","v":"No"},"No","No",{"$f":"_xlfn.IFS(D53=\"\",\"\",D53=1,'MHP Family Income & Rent Limits'!$E$17,D53=2,'MHP Family Income & Rent Limits'!$F$17,D53=3,'MHP Family Income & Rent Limits'!$G$17,D53=4,'MHP Family Income & Rent Limits'!$H$17,D53=5,'MHP Family Income & Rent Limits'!$I$17,D53=6,'MHP Family Income & Rent Limits'!$J$17,D53=7,'MHP Family Income & Rent Limits'!$K$17,D53=8,'MHP Family Income & Rent Limits'!$L$17)","v":""},"",{"$f":"IF(OR(A53=0,B53=\"X\"),0,MIN(IF(AA53:AD53<>0,AA53:AD53)))","v":0},{"$f":"IF(OR(H53=\"\",I53=\"\"),0,IF(H53*0.3/12>I53,MIN(H53*0.3/12,I53*1.1)+AP53,I53*(1+(VLOOKUP('1. Checklist & Certification'!$F$9,'HLCP-E Rent Change'!$A$1:$D$59,4,FALSE)))+AP53))","v":0}]
[null,null,null,null,null,null,null,null,null,null,null,null,null,null,null,null,null,null,null,null,null,null,null,null,null,null,0,0,0,0,0,0,0,0,{"$f":"IF(OR(A54=0,B54=\"X\"),0,IF(OR(S54=\"FHDP\",S54=\"RHCP-B\",U54=\"FHDP\",U54=\"RHCP-B\",W54=\"FHDP\",W54=\"RHCP-B\",Y54=\"FHDP\",Y54=\"RHCP-B\"),TRUNC((MIN(I54,K54)*(1+'1. Checklist & Certification'!$K$43)+AP54)),0))","v":0},{"$f":"IF(OR(A54=0,B54=\"X\"),0,IF(OR(S54=\"CHRP-R\",S54=\"SERA\",S54=\"SUHRP\",U54=\"CHRP-R\",U54=\"SERA\",U54=\"SUHRP\",W54=\"CHRP-R\",W54=\"SERA\",W54=\"SUHRP\",Y54=\"CHRP-R\",Y54=\"SERA\",Y54=\"SUHRP\"),TRUNC((MIN(I54,K54)*(1+'1. Checklist & Certification'!$K$49))),0))","v":0},{"$f":"IF(OR(A54=0,B54=\"X\"),0,IF(OR(S54=\"CALDAP\",S54=\"DPRLP\",U54=\"CALDAP\",U54=\"DPRLP\",W54=\"CALDAP\",W54=\"DPRLP\",Y54=\"CALDAP\",Y54=\"DPRLP\"),TRUNC(((MIN(I54,K54))*(1+'1. Checklist & Certification'!$G$4))),0))","v":0},0,0,0,{"$f":"IF(OR(A54=0,B54=\"X\"),0,IF(OR(S54=\"PRP\",S54=\"LPR\",U54=\"PRP\",U54=\"LPR\",W54=\"PRP\",W54=\"LPR\",Y54=\"PRP\",Y54=\"LPR\"),MAX(I54+AP54,MIN(IF(AE54:AN54<>0,AE54:AN54))),MIN(IF(AE54:AN54<>0,AE54:AN54))))","v":0},{"$f":"IF(A54=0,0,IF(AND(OR(S54=\"Mgr\",S54=0),OR(U54=\"Mgr\",U54=0),OR(W54=\"Mgr\",W54=0)),0,IF(LEFT($A54,2)=\"B*\",VLOOKUP($E54,'1. Checklist & Certification'!$D$26:$E$32,2),IF(LEFT($A54,2)=\"C*\",VLOOKUP($E54,'1. Checklist & Certification'!$F$26:$G$32,2),IF(LEFT($A54,2)=\"D*\",VLOOKUP($E54,'1. Checklist & Certification'!$H$26:$I$32,2),IF(LEFT($A54,2)=\"E*\",VLOOKUP($E54,'1. Checklist & Certification'!$J$26:$K$32,2),VLOOKUP($E54,'1. Checklist & Certification'!$A$26:$B$32,2)))))))","v":0},0,0,null,null,null,null,"","",0,0,0,null,{"$f":"IF(A54=\"\",\"\",'1. Checklist & Certification'!$K$1)","v":""},{"$f":"IF(A54=\"\",\"\",'1. Checklist & Certification'!$C$62)","v":""},{"$f":"IF(A54=\"\",\"\",'1. Checklist & Certification'!$C$6)","v":""},{"$f":"IF(A54=\"\",\"\",'1. Checklist & Certification'!$G$5)","v":""},{"$f":"IFERROR(IF(A54=\"\",\"\",\n_xlfn.LET(_xlpm.Contract,'1. Checklist & Certification'!$C$7,\n_xlpm.Yr,TEXT(MOD(_xlfn.TEXTBEFORE(_xlpm.Contract,\"-\"),100),\"00\"),\n_xlpm.Program,_xlfn.TEXTAFTER(_xlfn.TEXTBEFORE(_xlpm.Contract,\"-\",2),\"-\"),\n_xlpm.CleanProgram,_xlfn.XLOOKUP(_xlpm.Program,SpellCheck[Input],SpellCheck[Correction],_xlpm.Program),\n_xlpm.Number,TEXT(_xlfn.TEXTAFTER(_xlpm.Contract,\"-\",2),\"0000\"),\n_xlfn.CONCAT(_xlpm.Yr,\"-\",_xlpm.CleanProgram,\"-\",_xlpm.Number))\n),\"\")","v":""},{"$f":"IFERROR(IF(A54=\"\",\"\",\n_xlfn.LET(_xlpm.Contract,'1. Checklist & Certification'!$C$8,\n_xlpm.Yr,TEXT(MOD(_xlfn.TEXTBEFORE(_xlpm.Contract,\"-\"),100),\"00\"),\n_xlpm.Program,_xlfn.TEXTAFTER(_xlfn.TEXTBEFORE(_xlpm.Contract,\"-\",2),\"-\"),\n_xlpm.CleanProgram,_xlfn.XLOOKUP(_xlpm.Program,SpellCheck[Input],SpellCheck[Correction],_xlpm.Program),\n_xlpm.Number,TEXT(_xlfn.TEXTAFTER(_xlpm.Contract,\"-\",2),\"0000\"),\n_xlfn.CONCAT(_xlpm.Yr,\"-\",_xlpm.CleanProgram,\"-\",_xlpm.Number))\n),\"\")","v":""},{"$f":"IFERROR(IF(A54=\"\",\"\",\n_xlfn.LET(_xlpm.Contract,'1. Checklist & Certification'!$F$7,\n_xlpm.Yr,TEXT(MOD(_xlfn.TEXTBEFORE(_xlpm.Contract,\"-\"),100),\"00\"),\n_xlpm.Program,_xlfn.TEXTAFTER(_xlfn.TEXTBEFORE(_xlpm.Contract,\"-\",2),\"-\"),\n_xlpm.CleanProgram,_xlfn.XLOOKUP(_xlpm.Program,SpellCheck[Input],SpellCheck[Correction],_xlpm.Program),\n_xlpm.Number,TEXT(_xlfn.TEXTAFTER(_xlpm.Contract,\"-\",2),\"0000\"),\n_xlfn.CONCAT(_xlpm.Yr,\"-\",_xlpm.CleanProgram,\"-\",_xlpm.Number))\n),\"\")","v":""},{"$f":"IFERROR(IF(A54=\"\",\"\",\n_xlfn.LET(_xlpm.Contract,'1. Checklist & Certification'!$F$8,\n_xlpm.Yr,TEXT(MOD(_xlfn.TEXTBEFORE(_xlpm.Contract,\"-\"),100),\"00\"),\n_xlpm.Program,_xlfn.TEXTAFTER(_xlfn.TEXTBEFORE(_xlpm.Contract,\"-\",2),\"-\"),\n_xlpm.CleanProgram,_xlfn.XLOOKUP(_xlpm.Program,SpellCheck[Input],SpellCheck[Correction],_xlpm.Program),\n_xlpm.Number,TEXT(_xlfn.TEXTAFTER(_xlpm.Contract,\"-\",2),\"0000\"),\n_xlfn.CONCAT(_xlpm.Yr,\"-\",_xlpm.CleanProgram,\"-\",_xlpm.Number))\n),\"\")","v":""},{"$f":"IF(A54=\"\",\"\",'1. Checklist & Certification'!$B$9)","v":""},{"$f":"IF(A54=\"\",\"\",'1. Checklist & Certification'!$F$9)","v":""},{"$f":"IF(A54=\"\",\"\",'1. Checklist & Certification'!$C$10)","v":""},{"$f":"IF(A54=\"\",\"\",'1. Checklist & Certification'!$C$11)","v":""},{"$f":"IF(A54=\"\",\"\",'1. Checklist & Certification'!$C$12)","v":""},{"$f":"IF(A54=\"\",\"\",'1. Checklist & Certification'!$B$14)","v":""},{"$f":"IF(A54=\"\",\"\",'1. Checklist & Certification'!$E$14)","v":""},{"$f":"IF(B54=\"\",\"\",'1. Checklist & Certification'!$G$14)","v":""},{"$f":"IF(A54=\"\",\"\",'MHP Family Income & Rent Limits'!$B$3)","v":""},{"$f":"IF(A54=\"\",\"\",'MHP Family Income & Rent Limits'!$J$3)","v":""},{"$f":"IF(A54=\"\",\"\",'MHP Family Income & Rent Limits'!$E$4)","v":""},{"$f":"IF(A54=\"\",\"\",'MHP Family Income & Rent Limits'!$C$7)","v":""},{"$f":"IF(A54=\"\",\"\",'MHP Family Income & Rent Limits'!$F$8)","v":""},{"$f":"IF(A54=\"\",\"\",'1. Checklist & Certification'!$G$4)","v":""},{"$f":"IF(A54=\"\",\"\",'1. Checklist & Certification'!$K$39)","v":""},{"$f":"IF(A54=\"\",\"\",'1. Checklist & Certification'!$K$43)","v":""},{"$f":"IF(A54=\"\",\"\",'1. Checklist & Certification'!$K$45)","v":""},{"$f":"IF(A54=\"\",\"\",'1. Checklist & Certification'!$K$49)","v":""},{"$f":"IF(A54=\"\",\"\",'1. Checklist & Certification'!$K$62)","v":""},{"$f":"IF(A54=\"\",\"\",'1. Checklist & Certification'!$E$66)","v":""},{"$f":"IF(A54=\"\",\"\",'1. Checklist & Certification'!$E$67)","v":""},{"$f":"IF(A54=\"\",\"\",'1. Checklist & Certification'!$E$68)","v":""},{"$f":"IF(A54=\"\",\"\",'1. Checklist & Certification'!$G$66)","v":""},{"$f":"IF(A54=\"\",\"\",'1. Checklist & Certification'!$H$66)","v":""},{"$f":"IF(A54=\"\",\"\",'1. Checklist & Certification'!$I$66)","v":""},{"$f":"IF(A54=\"\",\"\",'1. Checklist & Certification'!$I$67)","v":""},{"$f":"IF(A54=\"\",\"\",'1. Checklist & Certification'!$I$68)","v":""},{"$f":"IF(A54=\"\",\"\",'1. Checklist & Certification'!$B$69)","v":""},{"$f":"IF(A54=\"\",\"\",'1. Checklist & Certification'!$C$69)","v":""},{"$f":"IF(A54=\"\",\"\",'1. Checklist & Certification'!$F$69)","v":""},{"$f":"IF(A54=\"\",\"\",'1. Checklist & Certification'!$G$69)","v":""},{"$f":"IF(A54=\"\",\"\",'1. Checklist & Certification'!$J$69)","v":""},{"$f":"IF(A54=\"\",\"\",'1. Checklist & Certification'!$K$69)","v":""},null,null,{"$f":"IF(AND(OR('1. Checklist & Certification'!$M$16=1,'1. Checklist & Certification'!$M$19=2),AO54>0,B54=\"\",I54>0,AQ54<I54,AV54<>\"Sec 8-Project\"),\"X\",IF(AND(OR('1. Checklist & Certification'!$M$20=4,'1. Checklist & Certification'!$M$21=5,'1. Checklist & Certification'!$M$22=7),AO54>0,B54=\"\",I54>0,K54<I54),\"X\",\"\"))","v":""},{"$f":"IF(A54=\"\",\"\",IF(SUMPRODUCT(-- (ISNUMBER(SEARCH({\"*AHSC*\",\"*FMTW*\",\"*FWHG*\",\"*GHI*\",\"*HHC*\",\"*HLCP*\",\"*HOME*\",\"*LPR*\",\"*MHP*\",\"*NHTF*\",\"*NSP*\",\"*PRP*\",\"*TOD*\",\"*VHHP*\"},'1. Checklist & Certification'!$L$7)))),\"MHP\",\"Legacy\"))","v":""},",,",null,null,null,{"$f":"IF('1. Checklist & Certification'!$M$20=4,\"Both\",IF(OR('1. Checklist & Certification'!$M$15>0,S54=\"CHRP-R\",U54=\"CHRP-R\",W54=\"CHRP-R\",Y54=\"CHRP-R\"),\"Under\",\"No\"))","v":"No"},"No","No",{"$f":"_xlfn.IFS(D54=\"\",\"\",D54=1,'MHP Family Income & Rent Limits'!$E$17,D54=2,'MHP Family Income & Rent Limits'!$F$17,D54=3,'MHP Family Income & Rent Limits'!$G$17,D54=4,'MHP Family Income & Rent Limits'!$H$17,D54=5,'MHP Family Income & Rent Limits'!$I$17,D54=6,'MHP Family Income & Rent Limits'!$J$17,D54=7,'MHP Family Income & Rent Limits'!$K$17,D54=8,'MHP Family Income & Rent Limits'!$L$17)","v":""},"",{"$f":"IF(OR(A54=0,B54=\"X\"),0,MIN(IF(AA54:AD54<>0,AA54:AD54)))","v":0},{"$f":"IF(OR(H54=\"\",I54=\"\"),0,IF(H54*0.3/12>I54,MIN(H54*0.3/12,I54*1.1)+AP54,I54*(1+(VLOOKUP('1. Checklist & Certification'!$F$9,'HLCP-E Rent Change'!$A$1:$D$59,4,FALSE)))+AP54))","v":0}]
[null,null,null,null,null,null,null,null,null,null,null,null,null,null,null,null,null,null,null,null,null,null,null,null,null,null,0,0,0,0,0,0,0,0,{"$f":"IF(OR(A55=0,B55=\"X\"),0,IF(OR(S55=\"FHDP\",S55=\"RHCP-B\",U55=\"FHDP\",U55=\"RHCP-B\",W55=\"FHDP\",W55=\"RHCP-B\",Y55=\"FHDP\",Y55=\"RHCP-B\"),TRUNC((MIN(I55,K55)*(1+'1. Checklist & Certification'!$K$43)+AP55)),0))","v":0},{"$f":"IF(OR(A55=0,B55=\"X\"),0,IF(OR(S55=\"CHRP-R\",S55=\"SERA\",S55=\"SUHRP\",U55=\"CHRP-R\",U55=\"SERA\",U55=\"SUHRP\",W55=\"CHRP-R\",W55=\"SERA\",W55=\"SUHRP\",Y55=\"CHRP-R\",Y55=\"SERA\",Y55=\"SUHRP\"),TRUNC((MIN(I55,K55)*(1+'1. Checklist & Certification'!$K$49))),0))","v":0},{"$f":"IF(OR(A55=0,B55=\"X\"),0,IF(OR(S55=\"CALDAP\",S55=\"DPRLP\",U55=\"CALDAP\",U55=\"DPRLP\",W55=\"CALDAP\",W55=\"DPRLP\",Y55=\"CALDAP\",Y55=\"DPRLP\"),TRUNC(((MIN(I55,K55))*(1+'1. Checklist & Certification'!$G$4))),0))","v":0},0,0,0,{"$f":"IF(OR(A55=0,B55=\"X\"),0,IF(OR(S55=\"PRP\",S55=\"LPR\",U55=\"PRP\",U55=\"LPR\",W55=\"PRP\",W55=\"LPR\",Y55=\"PRP\",Y55=\"LPR\"),MAX(I55+AP55,MIN(IF(AE55:AN55<>0,AE55:AN55))),MIN(IF(AE55:AN55<>0,AE55:AN55))))","v":0},{"$f":"IF(A55=0,0,IF(AND(OR(S55=\"Mgr\",S55=0),OR(U55=\"Mgr\",U55=0),OR(W55=\"Mgr\",W55=0)),0,IF(LEFT($A55,2)=\"B*\",VLOOKUP($E55,'1. Checklist & Certification'!$D$26:$E$32,2),IF(LEFT($A55,2)=\"C*\",VLOOKUP($E55,'1. Checklist & Certification'!$F$26:$G$32,2),IF(LEFT($A55,2)=\"D*\",VLOOKUP($E55,'1. Checklist & Certification'!$H$26:$I$32,2),IF(LEFT($A55,2)=\"E*\",VLOOKUP($E55,'1. Checklist & Certification'!$J$26:$K$32,2),VLOOKUP($E55,'1. Checklist & Certification'!$A$26:$B$32,2)))))))","v":0},0,0,null,null,null,null,"","",0,0,0,null,{"$f":"IF(A55=\"\",\"\",'1. Checklist & Certification'!$K$1)","v":""},{"$f":"IF(A55=\"\",\"\",'1. Checklist & Certification'!$C$62)","v":""},{"$f":"IF(A55=\"\",\"\",'1. Checklist & Certification'!$C$6)","v":""},{"$f":"IF(A55=\"\",\"\",'1. Checklist & Certification'!$G$5)","v":""},{"$f":"IFERROR(IF(A55=\"\",\"\",\n_xlfn.LET(_xlpm.Contract,'1. Checklist & Certification'!$C$7,\n_xlpm.Yr,TEXT(MOD(_xlfn.TEXTBEFORE(_xlpm.Contract,\"-\"),100),\"00\"),\n_xlpm.Program,_xlfn.TEXTAFTER(_xlfn.TEXTBEFORE(_xlpm.Contract,\"-\",2),\"-\"),\n_xlpm.CleanProgram,_xlfn.XLOOKUP(_xlpm.Program,SpellCheck[Input],SpellCheck[Correction],_xlpm.Program),\n_xlpm.Number,TEXT(_xlfn.TEXTAFTER(_xlpm.Contract,\"-\",2),\"0000\"),\n_xlfn.CONCAT(_xlpm.Yr,\"-\",_xlpm.CleanProgram,\"-\",_xlpm.Number))\n),\"\")","v":""},{"$f":"IFERROR(IF(A55=\"\",\"\",\n_xlfn.LET(_xlpm.Contract,'1. Checklist & Certification'!$C$8,\n_xlpm.Yr,TEXT(MOD(_xlfn.TEXTBEFORE(_xlpm.Contract,\"-\"),100),\"00\"),\n_xlpm.Program,_xlfn.TEXTAFTER(_xlfn.TEXTBEFORE(_xlpm.Contract,\"-\",2),\"-\"),\n_xlpm.CleanProgram,_xlfn.XLOOKUP(_xlpm.Program,SpellCheck[Input],SpellCheck[Correction],_xlpm.Program),\n_xlpm.Number,TEXT(_xlfn.TEXTAFTER(_xlpm.Contract,\"-\",2),\"0000\"),\n_xlfn.CONCAT(_xlpm.Yr,\"-\",_xlpm.CleanProgram,\"-\",_xlpm.Number))\n),\"\")","v":""},{"$f":"IFERROR(IF(A55=\"\",\"\",\n_xlfn.LET(_xlpm.Contract,'1. Checklist & Certification'!$F$7,\n_xlpm.Yr,TEXT(MOD(_xlfn.TEXTBEFORE(_xlpm.Contract,\"-\"),100),\"00\"),\n_xlpm.Program,_xlfn.TEXTAFTER(_xlfn.TEXTBEFORE(_xlpm.Contract,\"-\",2),\"-\"),\n_xlpm.CleanProgram,_xlfn.XLOOKUP(_xlpm.Program,SpellCheck[Input],SpellCheck[Correction],_xlpm.Program),\n_xlpm.Number,TEXT(_xlfn.TEXTAFTER(_xlpm.Contract,\"-\",2),\"0000\"),\n_xlfn.CONCAT(_xlpm.Yr,\"-\",_xlpm.CleanProgram,\"-\",_xlpm.Number))\n),\"\")","v":""},{"$f":"IFERROR(IF(A55=\"\",\"\",\n_xlfn.LET(_xlpm.Contract,'1. Checklist & Certification'!$F$8,\n_xlpm.Yr,TEXT(MOD(_xlfn.TEXTBEFORE(_xlpm.Contract,\"-\"),100),\"00\"),\n_xlpm.Program,_xlfn.TEXTAFTER(_xlfn.TEXTBEFORE(_xlpm.Contract,\"-\",2),\"-\"),\n_xlpm.CleanProgram,_xlfn.XLOOKUP(_xlpm.Program,SpellCheck[Input],SpellCheck[Correction],_xlpm.Program),\n_xlpm.Number,TEXT(_xlfn.TEXTAFTER(_xlpm.Contract,\"-\",2),\"0000\"),\n_xlfn.CONCAT(_xlpm.Yr,\"-\",_xlpm.CleanProgram,\"-\",_xlpm.Number))\n),\"\")","v":""},{"$f":"IF(A55=\"\",\"\",'1. Checklist & Certification'!$B$9)","v":""},{"$f":"IF(A55=\"\",\"\",'1. Checklist & Certification'!$F$9)","v":""},{"$f":"IF(A55=\"\",\"\",'1. Checklist & Certification'!$C$10)","v":""},{"$f":"IF(A55=\"\",\"\",'1. Checklist & Certification'!$C$11)","v":""},{"$f":"IF(A55=\"\",\"\",'1. Checklist & Certification'!$C$12)","v":""},{"$f":"IF(A55=\"\",\"\",'1. Checklist & Certification'!$B$14)","v":""},{"$f":"IF(A55=\"\",\"\",'1. Checklist & Certification'!$E$14)","v":""},{"$f":"IF(B55=\"\",\"\",'1. Checklist & Certification'!$G$14)","v":""},{"$f":"IF(A55=\"\",\"\",'MHP Family Income & Rent Limits'!$B$3)","v":""},{"$f":"IF(A55=\"\",\"\",'MHP Family Income & Rent Limits'!$J$3)","v":""},{"$f":"IF(A55=\"\",\"\",'MHP Family Income & Rent Limits'!$E$4)","v":""},{"$f":"IF(A55=\"\",\"\",'MHP Family Income & Rent Limits'!$C$7)","v":""},{"$f":"IF(A55=\"\",\"\",'MHP Family Income & Rent Limits'!$F$8)","v":""},{"$f":"IF(A55=\"\",\"\",'1. Checklist & Certification'!$G$4)","v":""},{"$f":"IF(A55=\"\",\"\",'1. Checklist & Certification'!$K$39)","v":""},{"$f":"IF(A55=\"\",\"\",'1. Checklist & Certification'!$K$43)","v":""},{"$f":"IF(A55=\"\",\"\",'1. Checklist & Certification'!$K$45)","v":""},{"$f":"IF(A55=\"\",\"\",'1. Checklist & Certification'!$K$49)","v":""},{"$f":"IF(A55=\"\",\"\",'1. Checklist & Certification'!$K$62)","v":""},{"$f":"IF(A55=\"\",\"\",'1. Checklist & Certification'!$E$66)","v":""},{"$f":"IF(A55=\"\",\"\",'1. Checklist & Certification'!$E$67)","v":""},{"$f":"IF(A55=\"\",\"\",'1. Checklist & Certification'!$E$68)","v":""},{"$f":"IF(A55=\"\",\"\",'1. Checklist & Certification'!$G$66)","v":""},{"$f":"IF(A55=\"\",\"\",'1. Checklist & Certification'!$H$66)","v":""},{"$f":"IF(A55=\"\",\"\",'1. Checklist & Certification'!$I$66)","v":""},{"$f":"IF(A55=\"\",\"\",'1. Checklist & Certification'!$I$67)","v":""},{"$f":"IF(A55=\"\",\"\",'1. Checklist & Certification'!$I$68)","v":""},{"$f":"IF(A55=\"\",\"\",'1. Checklist & Certification'!$B$69)","v":""},{"$f":"IF(A55=\"\",\"\",'1. Checklist & Certification'!$C$69)","v":""},{"$f":"IF(A55=\"\",\"\",'1. Checklist & Certification'!$F$69)","v":""},{"$f":"IF(A55=\"\",\"\",'1. Checklist & Certification'!$G$69)","v":""},{"$f":"IF(A55=\"\",\"\",'1. Checklist & Certification'!$J$69)","v":""},{"$f":"IF(A55=\"\",\"\",'1. Checklist & Certification'!$K$69)","v":""},null,null,{"$f":"IF(AND(OR('1. Checklist & Certification'!$M$16=1,'1. Checklist & Certification'!$M$19=2),AO55>0,B55=\"\",I55>0,AQ55<I55,AV55<>\"Sec 8-Project\"),\"X\",IF(AND(OR('1. Checklist & Certification'!$M$20=4,'1. Checklist & Certification'!$M$21=5,'1. Checklist & Certification'!$M$22=7),AO55>0,B55=\"\",I55>0,K55<I55),\"X\",\"\"))","v":""},{"$f":"IF(A55=\"\",\"\",IF(SUMPRODUCT(-- (ISNUMBER(SEARCH({\"*AHSC*\",\"*FMTW*\",\"*FWHG*\",\"*GHI*\",\"*HHC*\",\"*HLCP*\",\"*HOME*\",\"*LPR*\",\"*MHP*\",\"*NHTF*\",\"*NSP*\",\"*PRP*\",\"*TOD*\",\"*VHHP*\"},'1. Checklist & Certification'!$L$7)))),\"MHP\",\"Legacy\"))","v":""},",,",null,null,null,{"$f":"IF('1. Checklist & Certification'!$M$20=4,\"Both\",IF(OR('1. Checklist & Certification'!$M$15>0,S55=\"CHRP-R\",U55=\"CHRP-R\",W55=\"CHRP-R\",Y55=\"CHRP-R\"),\"Under\",\"No\"))","v":"No"},"No","No",{"$f":"_xlfn.IFS(D55=\"\",\"\",D55=1,'MHP Family Income & Rent Limits'!$E$17,D55=2,'MHP Family Income & Rent Limits'!$F$17,D55=3,'MHP Family Income & Rent Limits'!$G$17,D55=4,'MHP Family Income & Rent Limits'!$H$17,D55=5,'MHP Family Income & Rent Limits'!$I$17,D55=6,'MHP Family Income & Rent Limits'!$J$17,D55=7,'MHP Family Income & Rent Limits'!$K$17,D55=8,'MHP Family Income & Rent Limits'!$L$17)","v":""},"",{"$f":"IF(OR(A55=0,B55=\"X\"),0,MIN(IF(AA55:AD55<>0,AA55:AD55)))","v":0},{"$f":"IF(OR(H55=\"\",I55=\"\"),0,IF(H55*0.3/12>I55,MIN(H55*0.3/12,I55*1.1)+AP55,I55*(1+(VLOOKUP('1. Checklist & Certification'!$F$9,'HLCP-E Rent Change'!$A$1:$D$59,4,FALSE)))+AP55))","v":0}]
[null,null,null,null,null,null,null,null,null,null,null,null,null,null,null,null,null,null,null,null,null,null,null,null,null,null,0,0,0,0,0,0,0,0,{"$f":"IF(OR(A56=0,B56=\"X\"),0,IF(OR(S56=\"FHDP\",S56=\"RHCP-B\",U56=\"FHDP\",U56=\"RHCP-B\",W56=\"FHDP\",W56=\"RHCP-B\",Y56=\"FHDP\",Y56=\"RHCP-B\"),TRUNC((MIN(I56,K56)*(1+'1. Checklist & Certification'!$K$43)+AP56)),0))","v":0},{"$f":"IF(OR(A56=0,B56=\"X\"),0,IF(OR(S56=\"CHRP-R\",S56=\"SERA\",S56=\"SUHRP\",U56=\"CHRP-R\",U56=\"SERA\",U56=\"SUHRP\",W56=\"CHRP-R\",W56=\"SERA\",W56=\"SUHRP\",Y56=\"CHRP-R\",Y56=\"SERA\",Y56=\"SUHRP\"),TRUNC((MIN(I56,K56)*(1+'1. Checklist & Certification'!$K$49))),0))","v":0},{"$f":"IF(OR(A56=0,B56=\"X\"),0,IF(OR(S56=\"CALDAP\",S56=\"DPRLP\",U56=\"CALDAP\",U56=\"DPRLP\",W56=\"CALDAP\",W56=\"DPRLP\",Y56=\"CALDAP\",Y56=\"DPRLP\"),TRUNC(((MIN(I56,K56))*(1+'1. Checklist & Certification'!$G$4))),0))","v":0},0,0,0,{"$f":"IF(OR(A56=0,B56=\"X\"),0,IF(OR(S56=\"PRP\",S56=\"LPR\",U56=\"PRP\",U56=\"LPR\",W56=\"PRP\",W56=\"LPR\",Y56=\"PRP\",Y56=\"LPR\"),MAX(I56+AP56,MIN(IF(AE56:AN56<>0,AE56:AN56))),MIN(IF(AE56:AN56<>0,AE56:AN56))))","v":0},{"$f":"IF(A56=0,0,IF(AND(OR(S56=\"Mgr\",S56=0),OR(U56=\"Mgr\",U56=0),OR(W56=\"Mgr\",W56=0)),0,IF(LEFT($A56,2)=\"B*\",VLOOKUP($E56,'1. Checklist & Certification'!$D$26:$E$32,2),IF(LEFT($A56,2)=\"C*\",VLOOKUP($E56,'1. Checklist & Certification'!$F$26:$G$32,2),IF(LEFT($A56,2)=\"D*\",VLOOKUP($E56,'1. Checklist & Certification'!$H$26:$I$32,2),IF(LEFT($A56,2)=\"E*\",VLOOKUP($E56,'1. Checklist & Certification'!$J$26:$K$32,2),VLOOKUP($E56,'1. Checklist & Certification'!$A$26:$B$32,2)))))))","v":0},0,0,null,null,null,null,"","",0,0,0,null,{"$f":"IF(A56=\"\",\"\",'1. Checklist & Certification'!$K$1)","v":""},{"$f":"IF(A56=\"\",\"\",'1. Checklist & Certification'!$C$62)","v":""},{"$f":"IF(A56=\"\",\"\",'1. Checklist & Certification'!$C$6)","v":""},{"$f":"IF(A56=\"\",\"\",'1. Checklist & Certification'!$G$5)","v":""},{"$f":"IFERROR(IF(A56=\"\",\"\",\n_xlfn.LET(_xlpm.Contract,'1. Checklist & Certification'!$C$7,\n_xlpm.Yr,TEXT(MOD(_xlfn.TEXTBEFORE(_xlpm.Contract,\"-\"),100),\"00\"),\n_xlpm.Program,_xlfn.TEXTAFTER(_xlfn.TEXTBEFORE(_xlpm.Contract,\"-\",2),\"-\"),\n_xlpm.CleanProgram,_xlfn.XLOOKUP(_xlpm.Program,SpellCheck[Input],SpellCheck[Correction],_xlpm.Program),\n_xlpm.Number,TEXT(_xlfn.TEXTAFTER(_xlpm.Contract,\"-\",2),\"0000\"),\n_xlfn.CONCAT(_xlpm.Yr,\"-\",_xlpm.CleanProgram,\"-\",_xlpm.Number))\n),\"\")","v":""},{"$f":"IFERROR(IF(A56=\"\",\"\",\n_xlfn.LET(_xlpm.Contract,'1. Checklist & Certification'!$C$8,\n_xlpm.Yr,TEXT(MOD(_xlfn.TEXTBEFORE(_xlpm.Contract,\"-\"),100),\"00\"),\n_xlpm.Program,_xlfn.TEXTAFTER(_xlfn.TEXTBEFORE(_xlpm.Contract,\"-\",2),\"-\"),\n_xlpm.CleanProgram,_xlfn.XLOOKUP(_xlpm.Program,SpellCheck[Input],SpellCheck[Correction],_xlpm.Program),\n_xlpm.Number,TEXT(_xlfn.TEXTAFTER(_xlpm.Contract,\"-\",2),\"0000\"),\n_xlfn.CONCAT(_xlpm.Yr,\"-\",_xlpm.CleanProgram,\"-\",_xlpm.Number))\n),\"\")","v":""},{"$f":"IFERROR(IF(A56=\"\",\"\",\n_xlfn.LET(_xlpm.Contract,'1. Checklist & Certification'!$F$7,\n_xlpm.Yr,TEXT(MOD(_xlfn.TEXTBEFORE(_xlpm.Contract,\"-\"),100),\"00\"),\n_xlpm.Program,_xlfn.TEXTAFTER(_xlfn.TEXTBEFORE(_xlpm.Contract,\"-\",2),\"-\"),\n_xlpm.CleanProgram,_xlfn.XLOOKUP(_xlpm.Program,SpellCheck[Input],SpellCheck[Correction],_xlpm.Program),\n_xlpm.Number,TEXT(_xlfn.TEXTAFTER(_xlpm.Contract,\"-\",2),\"0000\"),\n_xlfn.CONCAT(_xlpm.Yr,\"-\",_xlpm.CleanProgram,\"-\",_xlpm.Number))\n),\"\")","v":""},{"$f":"IFERROR(IF(A56=\"\",\"\",\n_xlfn.LET(_xlpm.Contract,'1. Checklist & Certification'!$F$8,\n_xlpm.Yr,TEXT(MOD(_xlfn.TEXTBEFORE(_xlpm.Contract,\"-\"),100),\"00\"),\n_xlpm.Program,_xlfn.TEXTAFTER(_xlfn.TEXTBEFORE(_xlpm.Contract,\"-\",2),\"-\"),\n_xlpm.CleanProgram,_xlfn.XLOOKUP(_xlpm.Program,SpellCheck[Input],SpellCheck[Correction],_xlpm.Program),\n_xlpm.Number,TEXT(_xlfn.TEXTAFTER(_xlpm.Contract,\"-\",2),\"0000\"),\n_xlfn.CONCAT(_xlpm.Yr,\"-\",_xlpm.CleanProgram,\"-\",_xlpm.Number))\n),\"\")","v":""},{"$f":"IF(A56=\"\",\"\",'1. Checklist & Certification'!$B$9)","v":""},{"$f":"IF(A56=\"\",\"\",'1. Checklist & Certification'!$F$9)","v":""},{"$f":"IF(A56=\"\",\"\",'1. Checklist & Certification'!$C$10)","v":""},{"$f":"IF(A56=\"\",\"\",'1. Checklist & Certification'!$C$11)","v":""},{"$f":"IF(A56=\"\",\"\",'1. Checklist & Certification'!$C$12)","v":""},{"$f":"IF(A56=\"\",\"\",'1. Checklist & Certification'!$B$14)","v":""},{"$f":"IF(A56=\"\",\"\",'1. Checklist & Certification'!$E$14)","v":""},{"$f":"IF(B56=\"\",\"\",'1. Checklist & Certification'!$G$14)","v":""},{"$f":"IF(A56=\"\",\"\",'MHP Family Income & Rent Limits'!$B$3)","v":""},{"$f":"IF(A56=\"\",\"\",'MHP Family Income & Rent Limits'!$J$3)","v":""},{"$f":"IF(A56=\"\",\"\",'MHP Family Income & Rent Limits'!$E$4)","v":""},{"$f":"IF(A56=\"\",\"\",'MHP Family Income & Rent Limits'!$C$7)","v":""},{"$f":"IF(A56=\"\",\"\",'MHP Family Income & Rent Limits'!$F$8)","v":""},{"$f":"IF(A56=\"\",\"\",'1. Checklist & Certification'!$G$4)","v":""},{"$f":"IF(A56=\"\",\"\",'1. Checklist & Certification'!$K$39)","v":""},{"$f":"IF(A56=\"\",\"\",'1. Checklist & Certification'!$K$43)","v":""},{"$f":"IF(A56=\"\",\"\",'1. Checklist & Certification'!$K$45)","v":""},{"$f":"IF(A56=\"\",\"\",'1. Checklist & Certification'!$K$49)","v":""},{"$f":"IF(A56=\"\",\"\",'1. Checklist & Certification'!$K$62)","v":""},{"$f":"IF(A56=\"\",\"\",'1. Checklist & Certification'!$E$66)","v":""},{"$f":"IF(A56=\"\",\"\",'1. Checklist & Certification'!$E$67)","v":""},{"$f":"IF(A56=\"\",\"\",'1. Checklist & Certification'!$E$68)","v":""},{"$f":"IF(A56=\"\",\"\",'1. Checklist & Certification'!$G$66)","v":""},{"$f":"IF(A56=\"\",\"\",'1. Checklist & Certification'!$H$66)","v":""},{"$f":"IF(A56=\"\",\"\",'1. Checklist & Certification'!$I$66)","v":""},{"$f":"IF(A56=\"\",\"\",'1. Checklist & Certification'!$I$67)","v":""},{"$f":"IF(A56=\"\",\"\",'1. Checklist & Certification'!$I$68)","v":""},{"$f":"IF(A56=\"\",\"\",'1. Checklist & Certification'!$B$69)","v":""},{"$f":"IF(A56=\"\",\"\",'1. Checklist & Certification'!$C$69)","v":""},{"$f":"IF(A56=\"\",\"\",'1. Checklist & Certification'!$F$69)","v":""},{"$f":"IF(A56=\"\",\"\",'1. Checklist & Certification'!$G$69)","v":""},{"$f":"IF(A56=\"\",\"\",'1. Checklist & Certification'!$J$69)","v":""},{"$f":"IF(A56=\"\",\"\",'1. Checklist & Certification'!$K$69)","v":""},null,null,{"$f":"IF(AND(OR('1. Checklist & Certification'!$M$16=1,'1. Checklist & Certification'!$M$19=2),AO56>0,B56=\"\",I56>0,AQ56<I56,AV56<>\"Sec 8-Project\"),\"X\",IF(AND(OR('1. Checklist & Certification'!$M$20=4,'1. Checklist & Certification'!$M$21=5,'1. Checklist & Certification'!$M$22=7),AO56>0,B56=\"\",I56>0,K56<I56),\"X\",\"\"))","v":""},{"$f":"IF(A56=\"\",\"\",IF(SUMPRODUCT(-- (ISNUMBER(SEARCH({\"*AHSC*\",\"*FMTW*\",\"*FWHG*\",\"*GHI*\",\"*HHC*\",\"*HLCP*\",\"*HOME*\",\"*LPR*\",\"*MHP*\",\"*NHTF*\",\"*NSP*\",\"*PRP*\",\"*TOD*\",\"*VHHP*\"},'1. Checklist & Certification'!$L$7)))),\"MHP\",\"Legacy\"))","v":""},",,",null,null,null,{"$f":"IF('1. Checklist & Certification'!$M$20=4,\"Both\",IF(OR('1. Checklist & Certification'!$M$15>0,S56=\"CHRP-R\",U56=\"CHRP-R\",W56=\"CHRP-R\",Y56=\"CHRP-R\"),\"Under\",\"No\"))","v":"No"},"No","No",{"$f":"_xlfn.IFS(D56=\"\",\"\",D56=1,'MHP Family Income & Rent Limits'!$E$17,D56=2,'MHP Family Income & Rent Limits'!$F$17,D56=3,'MHP Family Income & Rent Limits'!$G$17,D56=4,'MHP Family Income & Rent Limits'!$H$17,D56=5,'MHP Family Income & Rent Limits'!$I$17,D56=6,'MHP Family Income & Rent Limits'!$J$17,D56=7,'MHP Family Income & Rent Limits'!$K$17,D56=8,'MHP Family Income & Rent Limits'!$L$17)","v":""},"",{"$f":"IF(OR(A56=0,B56=\"X\"),0,MIN(IF(AA56:AD56<>0,AA56:AD56)))","v":0},{"$f":"IF(OR(H56=\"\",I56=\"\"),0,IF(H56*0.3/12>I56,MIN(H56*0.3/12,I56*1.1)+AP56,I56*(1+(VLOOKUP('1. Checklist & Certification'!$F$9,'HLCP-E Rent Change'!$A$1:$D$59,4,FALSE)))+AP56))","v":0}]
[null,null,null,null,null,null,null,null,null,null,null,null,null,null,null,null,null,null,null,null,null,null,null,null,null,null,0,0,0,0,0,0,0,0,{"$f":"IF(OR(A57=0,B57=\"X\"),0,IF(OR(S57=\"FHDP\",S57=\"RHCP-B\",U57=\"FHDP\",U57=\"RHCP-B\",W57=\"FHDP\",W57=\"RHCP-B\",Y57=\"FHDP\",Y57=\"RHCP-B\"),TRUNC((MIN(I57,K57)*(1+'1. Checklist & Certification'!$K$43)+AP57)),0))","v":0},{"$f":"IF(OR(A57=0,B57=\"X\"),0,IF(OR(S57=\"CHRP-R\",S57=\"SERA\",S57=\"SUHRP\",U57=\"CHRP-R\",U57=\"SERA\",U57=\"SUHRP\",W57=\"CHRP-R\",W57=\"SERA\",W57=\"SUHRP\",Y57=\"CHRP-R\",Y57=\"SERA\",Y57=\"SUHRP\"),TRUNC((MIN(I57,K57)*(1+'1. Checklist & Certification'!$K$49))),0))","v":0},{"$f":"IF(OR(A57=0,B57=\"X\"),0,IF(OR(S57=\"CALDAP\",S57=\"DPRLP\",U57=\"CALDAP\",U57=\"DPRLP\",W57=\"CALDAP\",W57=\"DPRLP\",Y57=\"CALDAP\",Y57=\"DPRLP\"),TRUNC(((MIN(I57,K57))*(1+'1. Checklist & Certification'!$G$4))),0))","v":0},0,0,0,{"$f":"IF(OR(A57=0,B57=\"X\"),0,IF(OR(S57=\"PRP\",S57=\"LPR\",U57=\"PRP\",U57=\"LPR\",W57=\"PRP\",W57=\"LPR\",Y57=\"PRP\",Y57=\"LPR\"),MAX(I57+AP57,MIN(IF(AE57:AN57<>0,AE57:AN57))),MIN(IF(AE57:AN57<>0,AE57:AN57))))","v":0},{"$f":"IF(A57=0,0,IF(AND(OR(S57=\"Mgr\",S57=0),OR(U57=\"Mgr\",U57=0),OR(W57=\"Mgr\",W57=0)),0,IF(LEFT($A57,2)=\"B*\",VLOOKUP($E57,'1. Checklist & Certification'!$D$26:$E$32,2),IF(LEFT($A57,2)=\"C*\",VLOOKUP($E57,'1. Checklist & Certification'!$F$26:$G$32,2),IF(LEFT($A57,2)=\"D*\",VLOOKUP($E57,'1. Checklist & Certification'!$H$26:$I$32,2),IF(LEFT($A57,2)=\"E*\",VLOOKUP($E57,'1. Checklist & Certification'!$J$26:$K$32,2),VLOOKUP($E57,'1. Checklist & Certification'!$A$26:$B$32,2)))))))","v":0},0,0,null,null,null,null,"","",0,0,0,null,{"$f":"IF(A57=\"\",\"\",'1. Checklist & Certification'!$K$1)","v":""},{"$f":"IF(A57=\"\",\"\",'1. Checklist & Certification'!$C$62)","v":""},{"$f":"IF(A57=\"\",\"\",'1. Checklist & Certification'!$C$6)","v":""},{"$f":"IF(A57=\"\",\"\",'1. Checklist & Certification'!$G$5)","v":""},{"$f":"IFERROR(IF(A57=\"\",\"\",\n_xlfn.LET(_xlpm.Contract,'1. Checklist & Certification'!$C$7,\n_xlpm.Yr,TEXT(MOD(_xlfn.TEXTBEFORE(_xlpm.Contract,\"-\"),100),\"00\"),\n_xlpm.Program,_xlfn.TEXTAFTER(_xlfn.TEXTBEFORE(_xlpm.Contract,\"-\",2),\"-\"),\n_xlpm.CleanProgram,_xlfn.XLOOKUP(_xlpm.Program,SpellCheck[Input],SpellCheck[Correction],_xlpm.Program),\n_xlpm.Number,TEXT(_xlfn.TEXTAFTER(_xlpm.Contract,\"-\",2),\"0000\"),\n_xlfn.CONCAT(_xlpm.Yr,\"-\",_xlpm.CleanProgram,\"-\",_xlpm.Number))\n),\"\")","v":""},{"$f":"IFERROR(IF(A57=\"\",\"\",\n_xlfn.LET(_xlpm.Contract,'1. Checklist & Certification'!$C$8,\n_xlpm.Yr,TEXT(MOD(_xlfn.TEXTBEFORE(_xlpm.Contract,\"-\"),100),\"00\"),\n_xlpm.Program,_xlfn.TEXTAFTER(_xlfn.TEXTBEFORE(_xlpm.Contract,\"-\",2),\"-\"),\n_xlpm.CleanProgram,_xlfn.XLOOKUP(_xlpm.Program,SpellCheck[Input],SpellCheck[Correction],_xlpm.Program),\n_xlpm.Number,TEXT(_xlfn.TEXTAFTER(_xlpm.Contract,\"-\",2),\"0000\"),\n_xlfn.CONCAT(_xlpm.Yr,\"-\",_xlpm.CleanProgram,\"-\",_xlpm.Number))\n),\"\")","v":""},{"$f":"IFERROR(IF(A57=\"\",\"\",\n_xlfn.LET(_xlpm.Contract,'1. Checklist & Certification'!$F$7,\n_xlpm.Yr,TEXT(MOD(_xlfn.TEXTBEFORE(_xlpm.Contract,\"-\"),100),\"00\"),\n_xlpm.Program,_xlfn.TEXTAFTER(_xlfn.TEXTBEFORE(_xlpm.Contract,\"-\",2),\"-\"),\n_xlpm.CleanProgram,_xlfn.XLOOKUP(_xlpm.Program,SpellCheck[Input],SpellCheck[Correction],_xlpm.Program),\n_xlpm.Number,TEXT(_xlfn.TEXTAFTER(_xlpm.Contract,\"-\",2),\"0000\"),\n_xlfn.CONCAT(_xlpm.Yr,\"-\",_xlpm.CleanProgram,\"-\",_xlpm.Number))\n),\"\")","v":""},{"$f":"IFERROR(IF(A57=\"\",\"\",\n_xlfn.LET(_xlpm.Contract,'1. Checklist & Certification'!$F$8,\n_xlpm.Yr,TEXT(MOD(_xlfn.TEXTBEFORE(_xlpm.Contract,\"-\"),100),\"00\"),\n_xlpm.Program,_xlfn.TEXTAFTER(_xlfn.TEXTBEFORE(_xlpm.Contract,\"-\",2),\"-\"),\n_xlpm.CleanProgram,_xlfn.XLOOKUP(_xlpm.Program,SpellCheck[Input],SpellCheck[Correction],_xlpm.Program),\n_xlpm.Number,TEXT(_xlfn.TEXTAFTER(_xlpm.Contract,\"-\",2),\"0000\"),\n_xlfn.CONCAT(_xlpm.Yr,\"-\",_xlpm.CleanProgram,\"-\",_xlpm.Number))\n),\"\")","v":""},{"$f":"IF(A57=\"\",\"\",'1. Checklist & Certification'!$B$9)","v":""},{"$f":"IF(A57=\"\",\"\",'1. Checklist & Certification'!$F$9)","v":""},{"$f":"IF(A57=\"\",\"\",'1. Checklist & Certification'!$C$10)","v":""},{"$f":"IF(A57=\"\",\"\",'1. Checklist & Certification'!$C$11)","v":""},{"$f":"IF(A57=\"\",\"\",'1. Checklist & Certification'!$C$12)","v":""},{"$f":"IF(A57=\"\",\"\",'1. Checklist & Certification'!$B$14)","v":""},{"$f":"IF(A57=\"\",\"\",'1. Checklist & Certification'!$E$14)","v":""},{"$f":"IF(B57=\"\",\"\",'1. Checklist & Certification'!$G$14)","v":""},{"$f":"IF(A57=\"\",\"\",'MHP Family Income & Rent Limits'!$B$3)","v":""},{"$f":"IF(A57=\"\",\"\",'MHP Family Income & Rent Limits'!$J$3)","v":""},{"$f":"IF(A57=\"\",\"\",'MHP Family Income & Rent Limits'!$E$4)","v":""},{"$f":"IF(A57=\"\",\"\",'MHP Family Income & Rent Limits'!$C$7)","v":""},{"$f":"IF(A57=\"\",\"\",'MHP Family Income & Rent Limits'!$F$8)","v":""},{"$f":"IF(A57=\"\",\"\",'1. Checklist & Certification'!$G$4)","v":""},{"$f":"IF(A57=\"\",\"\",'1. Checklist & Certification'!$K$39)","v":""},{"$f":"IF(A57=\"\",\"\",'1. Checklist & Certification'!$K$43)","v":""},{"$f":"IF(A57=\"\",\"\",'1. Checklist & Certification'!$K$45)","v":""},{"$f":"IF(A57=\"\",\"\",'1. Checklist & Certification'!$K$49)","v":""},{"$f":"IF(A57=\"\",\"\",'1. Checklist & Certification'!$K$62)","v":""},{"$f":"IF(A57=\"\",\"\",'1. Checklist & Certification'!$E$66)","v":""},{"$f":"IF(A57=\"\",\"\",'1. Checklist & Certification'!$E$67)","v":""},{"$f":"IF(A57=\"\",\"\",'1. Checklist & Certification'!$E$68)","v":""},{"$f":"IF(A57=\"\",\"\",'1. Checklist & Certification'!$G$66)","v":""},{"$f":"IF(A57=\"\",\"\",'1. Checklist & Certification'!$H$66)","v":""},{"$f":"IF(A57=\"\",\"\",'1. Checklist & Certification'!$I$66)","v":""},{"$f":"IF(A57=\"\",\"\",'1. Checklist & Certification'!$I$67)","v":""},{"$f":"IF(A57=\"\",\"\",'1. Checklist & Certification'!$I$68)","v":""},{"$f":"IF(A57=\"\",\"\",'1. Checklist & Certification'!$B$69)","v":""},{"$f":"IF(A57=\"\",\"\",'1. Checklist & Certification'!$C$69)","v":""},{"$f":"IF(A57=\"\",\"\",'1. Checklist & Certification'!$F$69)","v":""},{"$f":"IF(A57=\"\",\"\",'1. Checklist & Certification'!$G$69)","v":""},{"$f":"IF(A57=\"\",\"\",'1. Checklist & Certification'!$J$69)","v":""},{"$f":"IF(A57=\"\",\"\",'1. Checklist & Certification'!$K$69)","v":""},null,null,{"$f":"IF(AND(OR('1. Checklist & Certification'!$M$16=1,'1. Checklist & Certification'!$M$19=2),AO57>0,B57=\"\",I57>0,AQ57<I57,AV57<>\"Sec 8-Project\"),\"X\",IF(AND(OR('1. Checklist & Certification'!$M$20=4,'1. Checklist & Certification'!$M$21=5,'1. Checklist & Certification'!$M$22=7),AO57>0,B57=\"\",I57>0,K57<I57),\"X\",\"\"))","v":""},{"$f":"IF(A57=\"\",\"\",IF(SUMPRODUCT(-- (ISNUMBER(SEARCH({\"*AHSC*\",\"*FMTW*\",\"*FWHG*\",\"*GHI*\",\"*HHC*\",\"*HLCP*\",\"*HOME*\",\"*LPR*\",\"*MHP*\",\"*NHTF*\",\"*NSP*\",\"*PRP*\",\"*TOD*\",\"*VHHP*\"},'1. Checklist & Certification'!$L$7)))),\"MHP\",\"Legacy\"))","v":""},",,",null,null,null,{"$f":"IF('1. Checklist & Certification'!$M$20=4,\"Both\",IF(OR('1. Checklist & Certification'!$M$15>0,S57=\"CHRP-R\",U57=\"CHRP-R\",W57=\"CHRP-R\",Y57=\"CHRP-R\"),\"Under\",\"No\"))","v":"No"},"No","No",{"$f":"_xlfn.IFS(D57=\"\",\"\",D57=1,'MHP Family Income & Rent Limits'!$E$17,D57=2,'MHP Family Income & Rent Limits'!$F$17,D57=3,'MHP Family Income & Rent Limits'!$G$17,D57=4,'MHP Family Income & Rent Limits'!$H$17,D57=5,'MHP Family Income & Rent Limits'!$I$17,D57=6,'MHP Family Income & Rent Limits'!$J$17,D57=7,'MHP Family Income & Rent Limits'!$K$17,D57=8,'MHP Family Income & Rent Limits'!$L$17)","v":""},"",{"$f":"IF(OR(A57=0,B57=\"X\"),0,MIN(IF(AA57:AD57<>0,AA57:AD57)))","v":0},{"$f":"IF(OR(H57=\"\",I57=\"\"),0,IF(H57*0.3/12>I57,MIN(H57*0.3/12,I57*1.1)+AP57,I57*(1+(VLOOKUP('1. Checklist & Certification'!$F$9,'HLCP-E Rent Change'!$A$1:$D$59,4,FALSE)))+AP57))","v":0}]
[null,null,null,null,null,null,null,null,null,null,null,null,null,null,null,null,null,null,null,null,null,null,null,null,null,null,0,0,0,0,0,0,0,0,{"$f":"IF(OR(A58=0,B58=\"X\"),0,IF(OR(S58=\"FHDP\",S58=\"RHCP-B\",U58=\"FHDP\",U58=\"RHCP-B\",W58=\"FHDP\",W58=\"RHCP-B\",Y58=\"FHDP\",Y58=\"RHCP-B\"),TRUNC((MIN(I58,K58)*(1+'1. Checklist & Certification'!$K$43)+AP58)),0))","v":0},{"$f":"IF(OR(A58=0,B58=\"X\"),0,IF(OR(S58=\"CHRP-R\",S58=\"SERA\",S58=\"SUHRP\",U58=\"CHRP-R\",U58=\"SERA\",U58=\"SUHRP\",W58=\"CHRP-R\",W58=\"SERA\",W58=\"SUHRP\",Y58=\"CHRP-R\",Y58=\"SERA\",Y58=\"SUHRP\"),TRUNC((MIN(I58,K58)*(1+'1. Checklist & Certification'!$K$49))),0))","v":0},{"$f":"IF(OR(A58=0,B58=\"X\"),0,IF(OR(S58=\"CALDAP\",S58=\"DPRLP\",U58=\"CALDAP\",U58=\"DPRLP\",W58=\"CALDAP\",W58=\"DPRLP\",Y58=\"CALDAP\",Y58=\"DPRLP\"),TRUNC(((MIN(I58,K58))*(1+'1. Checklist & Certification'!$G$4))),0))","v":0},0,0,0,{"$f":"IF(OR(A58=0,B58=\"X\"),0,IF(OR(S58=\"PRP\",S58=\"LPR\",U58=\"PRP\",U58=\"LPR\",W58=\"PRP\",W58=\"LPR\",Y58=\"PRP\",Y58=\"LPR\"),MAX(I58+AP58,MIN(IF(AE58:AN58<>0,AE58:AN58))),MIN(IF(AE58:AN58<>0,AE58:AN58))))","v":0},{"$f":"IF(A58=0,0,IF(AND(OR(S58=\"Mgr\",S58=0),OR(U58=\"Mgr\",U58=0),OR(W58=\"Mgr\",W58=0)),0,IF(LEFT($A58,2)=\"B*\",VLOOKUP($E58,'1. Checklist & Certification'!$D$26:$E$32,2),IF(LEFT($A58,2)=\"C*\",VLOOKUP($E58,'1. Checklist & Certification'!$F$26:$G$32,2),IF(LEFT($A58,2)=\"D*\",VLOOKUP($E58,'1. Checklist & Certification'!$H$26:$I$32,2),IF(LEFT($A58,2)=\"E*\",VLOOKUP($E58,'1. Checklist & Certification'!$J$26:$K$32,2),VLOOKUP($E58,'1. Checklist & Certification'!$A$26:$B$32,2)))))))","v":0},0,0,null,null,null,null,"","",0,0,0,null,{"$f":"IF(A58=\"\",\"\",'1. Checklist & Certification'!$K$1)","v":""},{"$f":"IF(A58=\"\",\"\",'1. Checklist & Certification'!$C$62)","v":""},{"$f":"IF(A58=\"\",\"\",'1. Checklist & Certification'!$C$6)","v":""},{"$f":"IF(A58=\"\",\"\",'1. Checklist & Certification'!$G$5)","v":""},{"$f":"IFERROR(IF(A58=\"\",\"\",\n_xlfn.LET(_xlpm.Contract,'1. Checklist & Certification'!$C$7,\n_xlpm.Yr,TEXT(MOD(_xlfn.TEXTBEFORE(_xlpm.Contract,\"-\"),100),\"00\"),\n_xlpm.Program,_xlfn.TEXTAFTER(_xlfn.TEXTBEFORE(_xlpm.Contract,\"-\",2),\"-\"),\n_xlpm.CleanProgram,_xlfn.XLOOKUP(_xlpm.Program,SpellCheck[Input],SpellCheck[Correction],_xlpm.Program),\n_xlpm.Number,TEXT(_xlfn.TEXTAFTER(_xlpm.Contract,\"-\",2),\"0000\"),\n_xlfn.CONCAT(_xlpm.Yr,\"-\",_xlpm.CleanProgram,\"-\",_xlpm.Number))\n),\"\")","v":""},{"$f":"IFERROR(IF(A58=\"\",\"\",\n_xlfn.LET(_xlpm.Contract,'1. Checklist & Certification'!$C$8,\n_xlpm.Yr,TEXT(MOD(_xlfn.TEXTBEFORE(_xlpm.Contract,\"-\"),100),\"00\"),\n_xlpm.Program,_xlfn.TEXTAFTER(_xlfn.TEXTBEFORE(_xlpm.Contract,\"-\",2),\"-\"),\n_xlpm.CleanProgram,_xlfn.XLOOKUP(_xlpm.Program,SpellCheck[Input],SpellCheck[Correction],_xlpm.Program),\n_xlpm.Number,TEXT(_xlfn.TEXTAFTER(_xlpm.Contract,\"-\",2),\"0000\"),\n_xlfn.CONCAT(_xlpm.Yr,\"-\",_xlpm.CleanProgram,\"-\",_xlpm.Number))\n),\"\")","v":""},{"$f":"IFERROR(IF(A58=\"\",\"\",\n_xlfn.LET(_xlpm.Contract,'1. Checklist & Certification'!$F$7,\n_xlpm.Yr,TEXT(MOD(_xlfn.TEXTBEFORE(_xlpm.Contract,\"-\"),100),\"00\"),\n_xlpm.Program,_xlfn.TEXTAFTER(_xlfn.TEXTBEFORE(_xlpm.Contract,\"-\",2),\"-\"),\n_xlpm.CleanProgram,_xlfn.XLOOKUP(_xlpm.Program,SpellCheck[Input],SpellCheck[Correction],_xlpm.Program),\n_xlpm.Number,TEXT(_xlfn.TEXTAFTER(_xlpm.Contract,\"-\",2),\"0000\"),\n_xlfn.CONCAT(_xlpm.Yr,\"-\",_xlpm.CleanProgram,\"-\",_xlpm.Number))\n),\"\")","v":""},{"$f":"IFERROR(IF(A58=\"\",\"\",\n_xlfn.LET(_xlpm.Contract,'1. Checklist & Certification'!$F$8,\n_xlpm.Yr,TEXT(MOD(_xlfn.TEXTBEFORE(_xlpm.Contract,\"-\"),100),\"00\"),\n_xlpm.Program,_xlfn.TEXTAFTER(_xlfn.TEXTBEFORE(_xlpm.Contract,\"-\",2),\"-\"),\n_xlpm.CleanProgram,_xlfn.XLOOKUP(_xlpm.Program,SpellCheck[Input],SpellCheck[Correction],_xlpm.Program),\n_xlpm.Number,TEXT(_xlfn.TEXTAFTER(_xlpm.Contract,\"-\",2),\"0000\"),\n_xlfn.CONCAT(_xlpm.Yr,\"-\",_xlpm.CleanProgram,\"-\",_xlpm.Number))\n),\"\")","v":""},{"$f":"IF(A58=\"\",\"\",'1. Checklist & Certification'!$B$9)","v":""},{"$f":"IF(A58=\"\",\"\",'1. Checklist & Certification'!$F$9)","v":""},{"$f":"IF(A58=\"\",\"\",'1. Checklist & Certification'!$C$10)","v":""},{"$f":"IF(A58=\"\",\"\",'1. Checklist & Certification'!$C$11)","v":""},{"$f":"IF(A58=\"\",\"\",'1. Checklist & Certification'!$C$12)","v":""},{"$f":"IF(A58=\"\",\"\",'1. Checklist & Certification'!$B$14)","v":""},{"$f":"IF(A58=\"\",\"\",'1. Checklist & Certification'!$E$14)","v":""},{"$f":"IF(B58=\"\",\"\",'1. Checklist & Certification'!$G$14)","v":""},{"$f":"IF(A58=\"\",\"\",'MHP Family Income & Rent Limits'!$B$3)","v":""},{"$f":"IF(A58=\"\",\"\",'MHP Family Income & Rent Limits'!$J$3)","v":""},{"$f":"IF(A58=\"\",\"\",'MHP Family Income & Rent Limits'!$E$4)","v":""},{"$f":"IF(A58=\"\",\"\",'MHP Family Income & Rent Limits'!$C$7)","v":""},{"$f":"IF(A58=\"\",\"\",'MHP Family Income & Rent Limits'!$F$8)","v":""},{"$f":"IF(A58=\"\",\"\",'1. Checklist & Certification'!$G$4)","v":""},{"$f":"IF(A58=\"\",\"\",'1. Checklist & Certification'!$K$39)","v":""},{"$f":"IF(A58=\"\",\"\",'1. Checklist & Certification'!$K$43)","v":""},{"$f":"IF(A58=\"\",\"\",'1. Checklist & Certification'!$K$45)","v":""},{"$f":"IF(A58=\"\",\"\",'1. Checklist & Certification'!$K$49)","v":""},{"$f":"IF(A58=\"\",\"\",'1. Checklist & Certification'!$K$62)","v":""},{"$f":"IF(A58=\"\",\"\",'1. Checklist & Certification'!$E$66)","v":""},{"$f":"IF(A58=\"\",\"\",'1. Checklist & Certification'!$E$67)","v":""},{"$f":"IF(A58=\"\",\"\",'1. Checklist & Certification'!$E$68)","v":""},{"$f":"IF(A58=\"\",\"\",'1. Checklist & Certification'!$G$66)","v":""},{"$f":"IF(A58=\"\",\"\",'1. Checklist & Certification'!$H$66)","v":""},{"$f":"IF(A58=\"\",\"\",'1. Checklist & Certification'!$I$66)","v":""},{"$f":"IF(A58=\"\",\"\",'1. Checklist & Certification'!$I$67)","v":""},{"$f":"IF(A58=\"\",\"\",'1. Checklist & Certification'!$I$68)","v":""},{"$f":"IF(A58=\"\",\"\",'1. Checklist & Certification'!$B$69)","v":""},{"$f":"IF(A58=\"\",\"\",'1. Checklist & Certification'!$C$69)","v":""},{"$f":"IF(A58=\"\",\"\",'1. Checklist & Certification'!$F$69)","v":""},{"$f":"IF(A58=\"\",\"\",'1. Checklist & Certification'!$G$69)","v":""},{"$f":"IF(A58=\"\",\"\",'1. Checklist & Certification'!$J$69)","v":""},{"$f":"IF(A58=\"\",\"\",'1. Checklist & Certification'!$K$69)","v":""},null,null,{"$f":"IF(AND(OR('1. Checklist & Certification'!$M$16=1,'1. Checklist & Certification'!$M$19=2),AO58>0,B58=\"\",I58>0,AQ58<I58,AV58<>\"Sec 8-Project\"),\"X\",IF(AND(OR('1. Checklist & Certification'!$M$20=4,'1. Checklist & Certification'!$M$21=5,'1. Checklist & Certification'!$M$22=7),AO58>0,B58=\"\",I58>0,K58<I58),\"X\",\"\"))","v":""},{"$f":"IF(A58=\"\",\"\",IF(SUMPRODUCT(-- (ISNUMBER(SEARCH({\"*AHSC*\",\"*FMTW*\",\"*FWHG*\",\"*GHI*\",\"*HHC*\",\"*HLCP*\",\"*HOME*\",\"*LPR*\",\"*MHP*\",\"*NHTF*\",\"*NSP*\",\"*PRP*\",\"*TOD*\",\"*VHHP*\"},'1. Checklist & Certification'!$L$7)))),\"MHP\",\"Legacy\"))","v":""},",,",null,null,null,{"$f":"IF('1. Checklist & Certification'!$M$20=4,\"Both\",IF(OR('1. Checklist & Certification'!$M$15>0,S58=\"CHRP-R\",U58=\"CHRP-R\",W58=\"CHRP-R\",Y58=\"CHRP-R\"),\"Under\",\"No\"))","v":"No"},"No","No",{"$f":"_xlfn.IFS(D58=\"\",\"\",D58=1,'MHP Family Income & Rent Limits'!$E$17,D58=2,'MHP Family Income & Rent Limits'!$F$17,D58=3,'MHP Family Income & Rent Limits'!$G$17,D58=4,'MHP Family Income & Rent Limits'!$H$17,D58=5,'MHP Family Income & Rent Limits'!$I$17,D58=6,'MHP Family Income & Rent Limits'!$J$17,D58=7,'MHP Family Income & Rent Limits'!$K$17,D58=8,'MHP Family Income & Rent Limits'!$L$17)","v":""},"",{"$f":"IF(OR(A58=0,B58=\"X\"),0,MIN(IF(AA58:AD58<>0,AA58:AD58)))","v":0},{"$f":"IF(OR(H58=\"\",I58=\"\"),0,IF(H58*0.3/12>I58,MIN(H58*0.3/12,I58*1.1)+AP58,I58*(1+(VLOOKUP('1. Checklist & Certification'!$F$9,'HLCP-E Rent Change'!$A$1:$D$59,4,FALSE)))+AP58))","v":0}]
[null,null,null,null,null,null,null,null,null,null,null,null,null,null,null,null,null,null,null,null,null,null,null,null,null,null,0,0,0,0,0,0,0,0,{"$f":"IF(OR(A59=0,B59=\"X\"),0,IF(OR(S59=\"FHDP\",S59=\"RHCP-B\",U59=\"FHDP\",U59=\"RHCP-B\",W59=\"FHDP\",W59=\"RHCP-B\",Y59=\"FHDP\",Y59=\"RHCP-B\"),TRUNC((MIN(I59,K59)*(1+'1. Checklist & Certification'!$K$43)+AP59)),0))","v":0},{"$f":"IF(OR(A59=0,B59=\"X\"),0,IF(OR(S59=\"CHRP-R\",S59=\"SERA\",S59=\"SUHRP\",U59=\"CHRP-R\",U59=\"SERA\",U59=\"SUHRP\",W59=\"CHRP-R\",W59=\"SERA\",W59=\"SUHRP\",Y59=\"CHRP-R\",Y59=\"SERA\",Y59=\"SUHRP\"),TRUNC((MIN(I59,K59)*(1+'1. Checklist & Certification'!$K$49))),0))","v":0},{"$f":"IF(OR(A59=0,B59=\"X\"),0,IF(OR(S59=\"CALDAP\",S59=\"DPRLP\",U59=\"CALDAP\",U59=\"DPRLP\",W59=\"CALDAP\",W59=\"DPRLP\",Y59=\"CALDAP\",Y59=\"DPRLP\"),TRUNC(((MIN(I59,K59))*(1+'1. Checklist & Certification'!$G$4))),0))","v":0},0,0,0,{"$f":"IF(OR(A59=0,B59=\"X\"),0,IF(OR(S59=\"PRP\",S59=\"LPR\",U59=\"PRP\",U59=\"LPR\",W59=\"PRP\",W59=\"LPR\",Y59=\"PRP\",Y59=\"LPR\"),MAX(I59+AP59,MIN(IF(AE59:AN59<>0,AE59:AN59))),MIN(IF(AE59:AN59<>0,AE59:AN59))))","v":0},{"$f":"IF(A59=0,0,IF(AND(OR(S59=\"Mgr\",S59=0),OR(U59=\"Mgr\",U59=0),OR(W59=\"Mgr\",W59=0)),0,IF(LEFT($A59,2)=\"B*\",VLOOKUP($E59,'1. Checklist & Certification'!$D$26:$E$32,2),IF(LEFT($A59,2)=\"C*\",VLOOKUP($E59,'1. Checklist & Certification'!$F$26:$G$32,2),IF(LEFT($A59,2)=\"D*\",VLOOKUP($E59,'1. Checklist & Certification'!$H$26:$I$32,2),IF(LEFT($A59,2)=\"E*\",VLOOKUP($E59,'1. Checklist & Certification'!$J$26:$K$32,2),VLOOKUP($E59,'1. Checklist & Certification'!$A$26:$B$32,2)))))))","v":0},0,0,null,null,null,null,"","",0,0,0,null,{"$f":"IF(A59=\"\",\"\",'1. Checklist & Certification'!$K$1)","v":""},{"$f":"IF(A59=\"\",\"\",'1. Checklist & Certification'!$C$62)","v":""},{"$f":"IF(A59=\"\",\"\",'1. Checklist & Certification'!$C$6)","v":""},{"$f":"IF(A59=\"\",\"\",'1. Checklist & Certification'!$G$5)","v":""},{"$f":"IFERROR(IF(A59=\"\",\"\",\n_xlfn.LET(_xlpm.Contract,'1. Checklist & Certification'!$C$7,\n_xlpm.Yr,TEXT(MOD(_xlfn.TEXTBEFORE(_xlpm.Contract,\"-\"),100),\"00\"),\n_xlpm.Program,_xlfn.TEXTAFTER(_xlfn.TEXTBEFORE(_xlpm.Contract,\"-\",2),\"-\"),\n_xlpm.CleanProgram,_xlfn.XLOOKUP(_xlpm.Program,SpellCheck[Input],SpellCheck[Correction],_xlpm.Program),\n_xlpm.Number,TEXT(_xlfn.TEXTAFTER(_xlpm.Contract,\"-\",2),\"0000\"),\n_xlfn.CONCAT(_xlpm.Yr,\"-\",_xlpm.CleanProgram,\"-\",_xlpm.Number))\n),\"\")","v":""},{"$f":"IFERROR(IF(A59=\"\",\"\",\n_xlfn.LET(_xlpm.Contract,'1. Checklist & Certification'!$C$8,\n_xlpm.Yr,TEXT(MOD(_xlfn.TEXTBEFORE(_xlpm.Contract,\"-\"),100),\"00\"),\n_xlpm.Program,_xlfn.TEXTAFTER(_xlfn.TEXTBEFORE(_xlpm.Contract,\"-\",2),\"-\"),\n_xlpm.CleanProgram,_xlfn.XLOOKUP(_xlpm.Program,SpellCheck[Input],SpellCheck[Correction],_xlpm.Program),\n_xlpm.Number,TEXT(_xlfn.TEXTAFTER(_xlpm.Contract,\"-\",2),\"0000\"),\n_xlfn.CONCAT(_xlpm.Yr,\"-\",_xlpm.CleanProgram,\"-\",_xlpm.Number))\n),\"\")","v":""},{"$f":"IFERROR(IF(A59=\"\",\"\",\n_xlfn.LET(_xlpm.Contract,'1. Checklist & Certification'!$F$7,\n_xlpm.Yr,TEXT(MOD(_xlfn.TEXTBEFORE(_xlpm.Contract,\"-\"),100),\"00\"),\n_xlpm.Program,_xlfn.TEXTAFTER(_xlfn.TEXTBEFORE(_xlpm.Contract,\"-\",2),\"-\"),\n_xlpm.CleanProgram,_xlfn.XLOOKUP(_xlpm.Program,SpellCheck[Input],SpellCheck[Correction],_xlpm.Program),\n_xlpm.Number,TEXT(_xlfn.TEXTAFTER(_xlpm.Contract,\"-\",2),\"0000\"),\n_xlfn.CONCAT(_xlpm.Yr,\"-\",_xlpm.CleanProgram,\"-\",_xlpm.Number))\n),\"\")","v":""},{"$f":"IFERROR(IF(A59=\"\",\"\",\n_xlfn.LET(_xlpm.Contract,'1. Checklist & Certification'!$F$8,\n_xlpm.Yr,TEXT(MOD(_xlfn.TEXTBEFORE(_xlpm.Contract,\"-\"),100),\"00\"),\n_xlpm.Program,_xlfn.TEXTAFTER(_xlfn.TEXTBEFORE(_xlpm.Contract,\"-\",2),\"-\"),\n_xlpm.CleanProgram,_xlfn.XLOOKUP(_xlpm.Program,SpellCheck[Input],SpellCheck[Correction],_xlpm.Program),\n_xlpm.Number,TEXT(_xlfn.TEXTAFTER(_xlpm.Contract,\"-\",2),\"0000\"),\n_xlfn.CONCAT(_xlpm.Yr,\"-\",_xlpm.CleanProgram,\"-\",_xlpm.Number))\n),\"\")","v":""},{"$f":"IF(A59=\"\",\"\",'1. Checklist & Certification'!$B$9)","v":""},{"$f":"IF(A59=\"\",\"\",'1. Checklist & Certification'!$F$9)","v":""},{"$f":"IF(A59=\"\",\"\",'1. Checklist & Certification'!$C$10)","v":""},{"$f":"IF(A59=\"\",\"\",'1. Checklist & Certification'!$C$11)","v":""},{"$f":"IF(A59=\"\",\"\",'1. Checklist & Certification'!$C$12)","v":""},{"$f":"IF(A59=\"\",\"\",'1. Checklist & Certification'!$B$14)","v":""},{"$f":"IF(A59=\"\",\"\",'1. Checklist & Certification'!$E$14)","v":""},{"$f":"IF(B59=\"\",\"\",'1. Checklist & Certification'!$G$14)","v":""},{"$f":"IF(A59=\"\",\"\",'MHP Family Income & Rent Limits'!$B$3)","v":""},{"$f":"IF(A59=\"\",\"\",'MHP Family Income & Rent Limits'!$J$3)","v":""},{"$f":"IF(A59=\"\",\"\",'MHP Family Income & Rent Limits'!$E$4)","v":""},{"$f":"IF(A59=\"\",\"\",'MHP Family Income & Rent Limits'!$C$7)","v":""},{"$f":"IF(A59=\"\",\"\",'MHP Family Income & Rent Limits'!$F$8)","v":""},{"$f":"IF(A59=\"\",\"\",'1. Checklist & Certification'!$G$4)","v":""},{"$f":"IF(A59=\"\",\"\",'1. Checklist & Certification'!$K$39)","v":""},{"$f":"IF(A59=\"\",\"\",'1. Checklist & Certification'!$K$43)","v":""},{"$f":"IF(A59=\"\",\"\",'1. Checklist & Certification'!$K$45)","v":""},{"$f":"IF(A59=\"\",\"\",'1. Checklist & Certification'!$K$49)","v":""},{"$f":"IF(A59=\"\",\"\",'1. Checklist & Certification'!$K$62)","v":""},{"$f":"IF(A59=\"\",\"\",'1. Checklist & Certification'!$E$66)","v":""},{"$f":"IF(A59=\"\",\"\",'1. Checklist & Certification'!$E$67)","v":""},{"$f":"IF(A59=\"\",\"\",'1. Checklist & Certification'!$E$68)","v":""},{"$f":"IF(A59=\"\",\"\",'1. Checklist & Certification'!$G$66)","v":""},{"$f":"IF(A59=\"\",\"\",'1. Checklist & Certification'!$H$66)","v":""},{"$f":"IF(A59=\"\",\"\",'1. Checklist & Certification'!$I$66)","v":""},{"$f":"IF(A59=\"\",\"\",'1. Checklist & Certification'!$I$67)","v":""},{"$f":"IF(A59=\"\",\"\",'1. Checklist & Certification'!$I$68)","v":""},{"$f":"IF(A59=\"\",\"\",'1. Checklist & Certification'!$B$69)","v":""},{"$f":"IF(A59=\"\",\"\",'1. Checklist & Certification'!$C$69)","v":""},{"$f":"IF(A59=\"\",\"\",'1. Checklist & Certification'!$F$69)","v":""},{"$f":"IF(A59=\"\",\"\",'1. Checklist & Certification'!$G$69)","v":""},{"$f":"IF(A59=\"\",\"\",'1. Checklist & Certification'!$J$69)","v":""},{"$f":"IF(A59=\"\",\"\",'1. Checklist & Certification'!$K$69)","v":""},null,null,{"$f":"IF(AND(OR('1. Checklist & Certification'!$M$16=1,'1. Checklist & Certification'!$M$19=2),AO59>0,B59=\"\",I59>0,AQ59<I59,AV59<>\"Sec 8-Project\"),\"X\",IF(AND(OR('1. Checklist & Certification'!$M$20=4,'1. Checklist & Certification'!$M$21=5,'1. Checklist & Certification'!$M$22=7),AO59>0,B59=\"\",I59>0,K59<I59),\"X\",\"\"))","v":""},{"$f":"IF(A59=\"\",\"\",IF(SUMPRODUCT(-- (ISNUMBER(SEARCH({\"*AHSC*\",\"*FMTW*\",\"*FWHG*\",\"*GHI*\",\"*HHC*\",\"*HLCP*\",\"*HOME*\",\"*LPR*\",\"*MHP*\",\"*NHTF*\",\"*NSP*\",\"*PRP*\",\"*TOD*\",\"*VHHP*\"},'1. Checklist & Certification'!$L$7)))),\"MHP\",\"Legacy\"))","v":""},",,",null,null,null,{"$f":"IF('1. Checklist & Certification'!$M$20=4,\"Both\",IF(OR('1. Checklist & Certification'!$M$15>0,S59=\"CHRP-R\",U59=\"CHRP-R\",W59=\"CHRP-R\",Y59=\"CHRP-R\"),\"Under\",\"No\"))","v":"No"},"No","No",{"$f":"_xlfn.IFS(D59=\"\",\"\",D59=1,'MHP Family Income & Rent Limits'!$E$17,D59=2,'MHP Family Income & Rent Limits'!$F$17,D59=3,'MHP Family Income & Rent Limits'!$G$17,D59=4,'MHP Family Income & Rent Limits'!$H$17,D59=5,'MHP Family Income & Rent Limits'!$I$17,D59=6,'MHP Family Income & Rent Limits'!$J$17,D59=7,'MHP Family Income & Rent Limits'!$K$17,D59=8,'MHP Family Income & Rent Limits'!$L$17)","v":""},"",{"$f":"IF(OR(A59=0,B59=\"X\"),0,MIN(IF(AA59:AD59<>0,AA59:AD59)))","v":0},{"$f":"IF(OR(H59=\"\",I59=\"\"),0,IF(H59*0.3/12>I59,MIN(H59*0.3/12,I59*1.1)+AP59,I59*(1+(VLOOKUP('1. Checklist & Certification'!$F$9,'HLCP-E Rent Change'!$A$1:$D$59,4,FALSE)))+AP59))","v":0}]
[null,null,null,null,null,null,null,null,null,null,null,null,null,null,null,null,null,null,null,null,null,null,null,null,null,null,0,0,0,0,0,0,0,0,{"$f":"IF(OR(A60=0,B60=\"X\"),0,IF(OR(S60=\"FHDP\",S60=\"RHCP-B\",U60=\"FHDP\",U60=\"RHCP-B\",W60=\"FHDP\",W60=\"RHCP-B\",Y60=\"FHDP\",Y60=\"RHCP-B\"),TRUNC((MIN(I60,K60)*(1+'1. Checklist & Certification'!$K$43)+AP60)),0))","v":0},{"$f":"IF(OR(A60=0,B60=\"X\"),0,IF(OR(S60=\"CHRP-R\",S60=\"SERA\",S60=\"SUHRP\",U60=\"CHRP-R\",U60=\"SERA\",U60=\"SUHRP\",W60=\"CHRP-R\",W60=\"SERA\",W60=\"SUHRP\",Y60=\"CHRP-R\",Y60=\"SERA\",Y60=\"SUHRP\"),TRUNC((MIN(I60,K60)*(1+'1. Checklist & Certification'!$K$49))),0))","v":0},{"$f":"IF(OR(A60=0,B60=\"X\"),0,IF(OR(S60=\"CALDAP\",S60=\"DPRLP\",U60=\"CALDAP\",U60=\"DPRLP\",W60=\"CALDAP\",W60=\"DPRLP\",Y60=\"CALDAP\",Y60=\"DPRLP\"),TRUNC(((MIN(I60,K60))*(1+'1. Checklist & Certification'!$G$4))),0))","v":0},0,0,0,{"$f":"IF(OR(A60=0,B60=\"X\"),0,IF(OR(S60=\"PRP\",S60=\"LPR\",U60=\"PRP\",U60=\"LPR\",W60=\"PRP\",W60=\"LPR\",Y60=\"PRP\",Y60=\"LPR\"),MAX(I60+AP60,MIN(IF(AE60:AN60<>0,AE60:AN60))),MIN(IF(AE60:AN60<>0,AE60:AN60))))","v":0},{"$f":"IF(A60=0,0,IF(AND(OR(S60=\"Mgr\",S60=0),OR(U60=\"Mgr\",U60=0),OR(W60=\"Mgr\",W60=0)),0,IF(LEFT($A60,2)=\"B*\",VLOOKUP($E60,'1. Checklist & Certification'!$D$26:$E$32,2),IF(LEFT($A60,2)=\"C*\",VLOOKUP($E60,'1. Checklist & Certification'!$F$26:$G$32,2),IF(LEFT($A60,2)=\"D*\",VLOOKUP($E60,'1. Checklist & Certification'!$H$26:$I$32,2),IF(LEFT($A60,2)=\"E*\",VLOOKUP($E60,'1. Checklist & Certification'!$J$26:$K$32,2),VLOOKUP($E60,'1. Checklist & Certification'!$A$26:$B$32,2)))))))","v":0},0,0,null,null,null,null,"","",0,0,0,null,{"$f":"IF(A60=\"\",\"\",'1. Checklist & Certification'!$K$1)","v":""},{"$f":"IF(A60=\"\",\"\",'1. Checklist & Certification'!$C$62)","v":""},{"$f":"IF(A60=\"\",\"\",'1. Checklist & Certification'!$C$6)","v":""},{"$f":"IF(A60=\"\",\"\",'1. Checklist & Certification'!$G$5)","v":""},{"$f":"IFERROR(IF(A60=\"\",\"\",\n_xlfn.LET(_xlpm.Contract,'1. Checklist & Certification'!$C$7,\n_xlpm.Yr,TEXT(MOD(_xlfn.TEXTBEFORE(_xlpm.Contract,\"-\"),100),\"00\"),\n_xlpm.Program,_xlfn.TEXTAFTER(_xlfn.TEXTBEFORE(_xlpm.Contract,\"-\",2),\"-\"),\n_xlpm.CleanProgram,_xlfn.XLOOKUP(_xlpm.Program,SpellCheck[Input],SpellCheck[Correction],_xlpm.Program),\n_xlpm.Number,TEXT(_xlfn.TEXTAFTER(_xlpm.Contract,\"-\",2),\"0000\"),\n_xlfn.CONCAT(_xlpm.Yr,\"-\",_xlpm.CleanProgram,\"-\",_xlpm.Number))\n),\"\")","v":""},{"$f":"IFERROR(IF(A60=\"\",\"\",\n_xlfn.LET(_xlpm.Contract,'1. Checklist & Certification'!$C$8,\n_xlpm.Yr,TEXT(MOD(_xlfn.TEXTBEFORE(_xlpm.Contract,\"-\"),100),\"00\"),\n_xlpm.Program,_xlfn.TEXTAFTER(_xlfn.TEXTBEFORE(_xlpm.Contract,\"-\",2),\"-\"),\n_xlpm.CleanProgram,_xlfn.XLOOKUP(_xlpm.Program,SpellCheck[Input],SpellCheck[Correction],_xlpm.Program),\n_xlpm.Number,TEXT(_xlfn.TEXTAFTER(_xlpm.Contract,\"-\",2),\"0000\"),\n_xlfn.CONCAT(_xlpm.Yr,\"-\",_xlpm.CleanProgram,\"-\",_xlpm.Number))\n),\"\")","v":""},{"$f":"IFERROR(IF(A60=\"\",\"\",\n_xlfn.LET(_xlpm.Contract,'1. Checklist & Certification'!$F$7,\n_xlpm.Yr,TEXT(MOD(_xlfn.TEXTBEFORE(_xlpm.Contract,\"-\"),100),\"00\"),\n_xlpm.Program,_xlfn.TEXTAFTER(_xlfn.TEXTBEFORE(_xlpm.Contract,\"-\",2),\"-\"),\n_xlpm.CleanProgram,_xlfn.XLOOKUP(_xlpm.Program,SpellCheck[Input],SpellCheck[Correction],_xlpm.Program),\n_xlpm.Number,TEXT(_xlfn.TEXTAFTER(_xlpm.Contract,\"-\",2),\"0000\"),\n_xlfn.CONCAT(_xlpm.Yr,\"-\",_xlpm.CleanProgram,\"-\",_xlpm.Number))\n),\"\")","v":""},{"$f":"IFERROR(IF(A60=\"\",\"\",\n_xlfn.LET(_xlpm.Contract,'1. Checklist & Certification'!$F$8,\n_xlpm.Yr,TEXT(MOD(_xlfn.TEXTBEFORE(_xlpm.Contract,\"-\"),100),\"00\"),\n_xlpm.Program,_xlfn.TEXTAFTER(_xlfn.TEXTBEFORE(_xlpm.Contract,\"-\",2),\"-\"),\n_xlpm.CleanProgram,_xlfn.XLOOKUP(_xlpm.Program,SpellCheck[Input],SpellCheck[Correction],_xlpm.Program),\n_xlpm.Number,TEXT(_xlfn.TEXTAFTER(_xlpm.Contract,\"-\",2),\"0000\"),\n_xlfn.CONCAT(_xlpm.Yr,\"-\",_xlpm.CleanProgram,\"-\",_xlpm.Number))\n),\"\")","v":""},{"$f":"IF(A60=\"\",\"\",'1. Checklist & Certification'!$B$9)","v":""},{"$f":"IF(A60=\"\",\"\",'1. Checklist & Certification'!$F$9)","v":""},{"$f":"IF(A60=\"\",\"\",'1. Checklist & Certification'!$C$10)","v":""},{"$f":"IF(A60=\"\",\"\",'1. Checklist & Certification'!$C$11)","v":""},{"$f":"IF(A60=\"\",\"\",'1. Checklist & Certification'!$C$12)","v":""},{"$f":"IF(A60=\"\",\"\",'1. Checklist & Certification'!$B$14)","v":""},{"$f":"IF(A60=\"\",\"\",'1. Checklist & Certification'!$E$14)","v":""},{"$f":"IF(B60=\"\",\"\",'1. Checklist & Certification'!$G$14)","v":""},{"$f":"IF(A60=\"\",\"\",'MHP Family Income & Rent Limits'!$B$3)","v":""},{"$f":"IF(A60=\"\",\"\",'MHP Family Income & Rent Limits'!$J$3)","v":""},{"$f":"IF(A60=\"\",\"\",'MHP Family Income & Rent Limits'!$E$4)","v":""},{"$f":"IF(A60=\"\",\"\",'MHP Family Income & Rent Limits'!$C$7)","v":""},{"$f":"IF(A60=\"\",\"\",'MHP Family Income & Rent Limits'!$F$8)","v":""},{"$f":"IF(A60=\"\",\"\",'1. Checklist & Certification'!$G$4)","v":""},{"$f":"IF(A60=\"\",\"\",'1. Checklist & Certification'!$K$39)","v":""},{"$f":"IF(A60=\"\",\"\",'1. Checklist & Certification'!$K$43)","v":""},{"$f":"IF(A60=\"\",\"\",'1. Checklist & Certification'!$K$45)","v":""},{"$f":"IF(A60=\"\",\"\",'1. Checklist & Certification'!$K$49)","v":""},{"$f":"IF(A60=\"\",\"\",'1. Checklist & Certification'!$K$62)","v":""},{"$f":"IF(A60=\"\",\"\",'1. Checklist & Certification'!$E$66)","v":""},{"$f":"IF(A60=\"\",\"\",'1. Checklist & Certification'!$E$67)","v":""},{"$f":"IF(A60=\"\",\"\",'1. Checklist & Certification'!$E$68)","v":""},{"$f":"IF(A60=\"\",\"\",'1. Checklist & Certification'!$G$66)","v":""},{"$f":"IF(A60=\"\",\"\",'1. Checklist & Certification'!$H$66)","v":""},{"$f":"IF(A60=\"\",\"\",'1. Checklist & Certification'!$I$66)","v":""},{"$f":"IF(A60=\"\",\"\",'1. Checklist & Certification'!$I$67)","v":""},{"$f":"IF(A60=\"\",\"\",'1. Checklist & Certification'!$I$68)","v":""},{"$f":"IF(A60=\"\",\"\",'1. Checklist & Certification'!$B$69)","v":""},{"$f":"IF(A60=\"\",\"\",'1. Checklist & Certification'!$C$69)","v":""},{"$f":"IF(A60=\"\",\"\",'1. Checklist & Certification'!$F$69)","v":""},{"$f":"IF(A60=\"\",\"\",'1. Checklist & Certification'!$G$69)","v":""},{"$f":"IF(A60=\"\",\"\",'1. Checklist & Certification'!$J$69)","v":""},{"$f":"IF(A60=\"\",\"\",'1. Checklist & Certification'!$K$69)","v":""},null,null,{"$f":"IF(AND(OR('1. Checklist & Certification'!$M$16=1,'1. Checklist & Certification'!$M$19=2),AO60>0,B60=\"\",I60>0,AQ60<I60,AV60<>\"Sec 8-Project\"),\"X\",IF(AND(OR('1. Checklist & Certification'!$M$20=4,'1. Checklist & Certification'!$M$21=5,'1. Checklist & Certification'!$M$22=7),AO60>0,B60=\"\",I60>0,K60<I60),\"X\",\"\"))","v":""},{"$f":"IF(A60=\"\",\"\",IF(SUMPRODUCT(-- (ISNUMBER(SEARCH({\"*AHSC*\",\"*FMTW*\",\"*FWHG*\",\"*GHI*\",\"*HHC*\",\"*HLCP*\",\"*HOME*\",\"*LPR*\",\"*MHP*\",\"*NHTF*\",\"*NSP*\",\"*PRP*\",\"*TOD*\",\"*VHHP*\"},'1. Checklist & Certification'!$L$7)))),\"MHP\",\"Legacy\"))","v":""},",,",null,null,null,{"$f":"IF('1. Checklist & Certification'!$M$20=4,\"Both\",IF(OR('1. Checklist & Certification'!$M$15>0,S60=\"CHRP-R\",U60=\"CHRP-R\",W60=\"CHRP-R\",Y60=\"CHRP-R\"),\"Under\",\"No\"))","v":"No"},"No","No",{"$f":"_xlfn.IFS(D60=\"\",\"\",D60=1,'MHP Family Income & Rent Limits'!$E$17,D60=2,'MHP Family Income & Rent Limits'!$F$17,D60=3,'MHP Family Income & Rent Limits'!$G$17,D60=4,'MHP Family Income & Rent Limits'!$H$17,D60=5,'MHP Family Income & Rent Limits'!$I$17,D60=6,'MHP Family Income & Rent Limits'!$J$17,D60=7,'MHP Family Income & Rent Limits'!$K$17,D60=8,'MHP Family Income & Rent Limits'!$L$17)","v":""},"",{"$f":"IF(OR(A60=0,B60=\"X\"),0,MIN(IF(AA60:AD60<>0,AA60:AD60)))","v":0},{"$f":"IF(OR(H60=\"\",I60=\"\"),0,IF(H60*0.3/12>I60,MIN(H60*0.3/12,I60*1.1)+AP60,I60*(1+(VLOOKUP('1. Checklist & Certification'!$F$9,'HLCP-E Rent Change'!$A$1:$D$59,4,FALSE)))+AP60))","v":0}]
[null,null,null,null,null,null,null,null,null,null,null,null,null,null,null,null,null,null,null,null,null,null,null,null,null,null,0,0,0,0,0,0,0,0,{"$f":"IF(OR(A61=0,B61=\"X\"),0,IF(OR(S61=\"FHDP\",S61=\"RHCP-B\",U61=\"FHDP\",U61=\"RHCP-B\",W61=\"FHDP\",W61=\"RHCP-B\",Y61=\"FHDP\",Y61=\"RHCP-B\"),TRUNC((MIN(I61,K61)*(1+'1. Checklist & Certification'!$K$43)+AP61)),0))","v":0},{"$f":"IF(OR(A61=0,B61=\"X\"),0,IF(OR(S61=\"CHRP-R\",S61=\"SERA\",S61=\"SUHRP\",U61=\"CHRP-R\",U61=\"SERA\",U61=\"SUHRP\",W61=\"CHRP-R\",W61=\"SERA\",W61=\"SUHRP\",Y61=\"CHRP-R\",Y61=\"SERA\",Y61=\"SUHRP\"),TRUNC((MIN(I61,K61)*(1+'1. Checklist & Certification'!$K$49))),0))","v":0},{"$f":"IF(OR(A61=0,B61=\"X\"),0,IF(OR(S61=\"CALDAP\",S61=\"DPRLP\",U61=\"CALDAP\",U61=\"DPRLP\",W61=\"CALDAP\",W61=\"DPRLP\",Y61=\"CALDAP\",Y61=\"DPRLP\"),TRUNC(((MIN(I61,K61))*(1+'1. Checklist & Certification'!$G$4))),0))","v":0},0,0,0,{"$f":"IF(OR(A61=0,B61=\"X\"),0,IF(OR(S61=\"PRP\",S61=\"LPR\",U61=\"PRP\",U61=\"LPR\",W61=\"PRP\",W61=\"LPR\",Y61=\"PRP\",Y61=\"LPR\"),MAX(I61+AP61,MIN(IF(AE61:AN61<>0,AE61:AN61))),MIN(IF(AE61:AN61<>0,AE61:AN61))))","v":0},{"$f":"IF(A61=0,0,IF(AND(OR(S61=\"Mgr\",S61=0),OR(U61=\"Mgr\",U61=0),OR(W61=\"Mgr\",W61=0)),0,IF(LEFT($A61,2)=\"B*\",VLOOKUP($E61,'1. Checklist & Certification'!$D$26:$E$32,2),IF(LEFT($A61,2)=\"C*\",VLOOKUP($E61,'1. Checklist & Certification'!$F$26:$G$32,2),IF(LEFT($A61,2)=\"D*\",VLOOKUP($E61,'1. Checklist & Certification'!$H$26:$I$32,2),IF(LEFT($A61,2)=\"E*\",VLOOKUP($E61,'1. Checklist & Certification'!$J$26:$K$32,2),VLOOKUP($E61,'1. Checklist & Certification'!$A$26:$B$32,2)))))))","v":0},0,0,null,null,null,null,"","",0,0,0,null,{"$f":"IF(A61=\"\",\"\",'1. Checklist & Certification'!$K$1)","v":""},{"$f":"IF(A61=\"\",\"\",'1. Checklist & Certification'!$C$62)","v":""},{"$f":"IF(A61=\"\",\"\",'1. Checklist & Certification'!$C$6)","v":""},{"$f":"IF(A61=\"\",\"\",'1. Checklist & Certification'!$G$5)","v":""},{"$f":"IFERROR(IF(A61=\"\",\"\",\n_xlfn.LET(_xlpm.Contract,'1. Checklist & Certification'!$C$7,\n_xlpm.Yr,TEXT(MOD(_xlfn.TEXTBEFORE(_xlpm.Contract,\"-\"),100),\"00\"),\n_xlpm.Program,_xlfn.TEXTAFTER(_xlfn.TEXTBEFORE(_xlpm.Contract,\"-\",2),\"-\"),\n_xlpm.CleanProgram,_xlfn.XLOOKUP(_xlpm.Program,SpellCheck[Input],SpellCheck[Correction],_xlpm.Program),\n_xlpm.Number,TEXT(_xlfn.TEXTAFTER(_xlpm.Contract,\"-\",2),\"0000\"),\n_xlfn.CONCAT(_xlpm.Yr,\"-\",_xlpm.CleanProgram,\"-\",_xlpm.Number))\n),\"\")","v":""},{"$f":"IFERROR(IF(A61=\"\",\"\",\n_xlfn.LET(_xlpm.Contract,'1. Checklist & Certification'!$C$8,\n_xlpm.Yr,TEXT(MOD(_xlfn.TEXTBEFORE(_xlpm.Contract,\"-\"),100),\"00\"),\n_xlpm.Program,_xlfn.TEXTAFTER(_xlfn.TEXTBEFORE(_xlpm.Contract,\"-\",2),\"-\"),\n_xlpm.CleanProgram,_xlfn.XLOOKUP(_xlpm.Program,SpellCheck[Input],SpellCheck[Correction],_xlpm.Program),\n_xlpm.Number,TEXT(_xlfn.TEXTAFTER(_xlpm.Contract,\"-\",2),\"0000\"),\n_xlfn.CONCAT(_xlpm.Yr,\"-\",_xlpm.CleanProgram,\"-\",_xlpm.Number))\n),\"\")","v":""},{"$f":"IFERROR(IF(A61=\"\",\"\",\n_xlfn.LET(_xlpm.Contract,'1. Checklist & Certification'!$F$7,\n_xlpm.Yr,TEXT(MOD(_xlfn.TEXTBEFORE(_xlpm.Contract,\"-\"),100),\"00\"),\n_xlpm.Program,_xlfn.TEXTAFTER(_xlfn.TEXTBEFORE(_xlpm.Contract,\"-\",2),\"-\"),\n_xlpm.CleanProgram,_xlfn.XLOOKUP(_xlpm.Program,SpellCheck[Input],SpellCheck[Correction],_xlpm.Program),\n_xlpm.Number,TEXT(_xlfn.TEXTAFTER(_xlpm.Contract,\"-\",2),\"0000\"),\n_xlfn.CONCAT(_xlpm.Yr,\"-\",_xlpm.CleanProgram,\"-\",_xlpm.Number))\n),\"\")","v":""},{"$f":"IFERROR(IF(A61=\"\",\"\",\n_xlfn.LET(_xlpm.Contract,'1. Checklist & Certification'!$F$8,\n_xlpm.Yr,TEXT(MOD(_xlfn.TEXTBEFORE(_xlpm.Contract,\"-\"),100),\"00\"),\n_xlpm.Program,_xlfn.TEXTAFTER(_xlfn.TEXTBEFORE(_xlpm.Contract,\"-\",2),\"-\"),\n_xlpm.CleanProgram,_xlfn.XLOOKUP(_xlpm.Program,SpellCheck[Input],SpellCheck[Correction],_xlpm.Program),\n_xlpm.Number,TEXT(_xlfn.TEXTAFTER(_xlpm.Contract,\"-\",2),\"0000\"),\n_xlfn.CONCAT(_xlpm.Yr,\"-\",_xlpm.CleanProgram,\"-\",_xlpm.Number))\n),\"\")","v":""},{"$f":"IF(A61=\"\",\"\",'1. Checklist & Certification'!$B$9)","v":""},{"$f":"IF(A61=\"\",\"\",'1. Checklist & Certification'!$F$9)","v":""},{"$f":"IF(A61=\"\",\"\",'1. Checklist & Certification'!$C$10)","v":""},{"$f":"IF(A61=\"\",\"\",'1. Checklist & Certification'!$C$11)","v":""},{"$f":"IF(A61=\"\",\"\",'1. Checklist & Certification'!$C$12)","v":""},{"$f":"IF(A61=\"\",\"\",'1. Checklist & Certification'!$B$14)","v":""},{"$f":"IF(A61=\"\",\"\",'1. Checklist & Certification'!$E$14)","v":""},{"$f":"IF(B61=\"\",\"\",'1. Checklist & Certification'!$G$14)","v":""},{"$f":"IF(A61=\"\",\"\",'MHP Family Income & Rent Limits'!$B$3)","v":""},{"$f":"IF(A61=\"\",\"\",'MHP Family Income & Rent Limits'!$J$3)","v":""},{"$f":"IF(A61=\"\",\"\",'MHP Family Income & Rent Limits'!$E$4)","v":""},{"$f":"IF(A61=\"\",\"\",'MHP Family Income & Rent Limits'!$C$7)","v":""},{"$f":"IF(A61=\"\",\"\",'MHP Family Income & Rent Limits'!$F$8)","v":""},{"$f":"IF(A61=\"\",\"\",'1. Checklist & Certification'!$G$4)","v":""},{"$f":"IF(A61=\"\",\"\",'1. Checklist & Certification'!$K$39)","v":""},{"$f":"IF(A61=\"\",\"\",'1. Checklist & Certification'!$K$43)","v":""},{"$f":"IF(A61=\"\",\"\",'1. Checklist & Certification'!$K$45)","v":""},{"$f":"IF(A61=\"\",\"\",'1. Checklist & Certification'!$K$49)","v":""},{"$f":"IF(A61=\"\",\"\",'1. Checklist & Certification'!$K$62)","v":""},{"$f":"IF(A61=\"\",\"\",'1. Checklist & Certification'!$E$66)","v":""},{"$f":"IF(A61=\"\",\"\",'1. Checklist & Certification'!$E$67)","v":""},{"$f":"IF(A61=\"\",\"\",'1. Checklist & Certification'!$E$68)","v":""},{"$f":"IF(A61=\"\",\"\",'1. Checklist & Certification'!$G$66)","v":""},{"$f":"IF(A61=\"\",\"\",'1. Checklist & Certification'!$H$66)","v":""},{"$f":"IF(A61=\"\",\"\",'1. Checklist & Certification'!$I$66)","v":""},{"$f":"IF(A61=\"\",\"\",'1. Checklist & Certification'!$I$67)","v":""},{"$f":"IF(A61=\"\",\"\",'1. Checklist & Certification'!$I$68)","v":""},{"$f":"IF(A61=\"\",\"\",'1. Checklist & Certification'!$B$69)","v":""},{"$f":"IF(A61=\"\",\"\",'1. Checklist & Certification'!$C$69)","v":""},{"$f":"IF(A61=\"\",\"\",'1. Checklist & Certification'!$F$69)","v":""},{"$f":"IF(A61=\"\",\"\",'1. Checklist & Certification'!$G$69)","v":""},{"$f":"IF(A61=\"\",\"\",'1. Checklist & Certification'!$J$69)","v":""},{"$f":"IF(A61=\"\",\"\",'1. Checklist & Certification'!$K$69)","v":""},null,null,{"$f":"IF(AND(OR('1. Checklist & Certification'!$M$16=1,'1. Checklist & Certification'!$M$19=2),AO61>0,B61=\"\",I61>0,AQ61<I61,AV61<>\"Sec 8-Project\"),\"X\",IF(AND(OR('1. Checklist & Certification'!$M$20=4,'1. Checklist & Certification'!$M$21=5,'1. Checklist & Certification'!$M$22=7),AO61>0,B61=\"\",I61>0,K61<I61),\"X\",\"\"))","v":""},{"$f":"IF(A61=\"\",\"\",IF(SUMPRODUCT(-- (ISNUMBER(SEARCH({\"*AHSC*\",\"*FMTW*\",\"*FWHG*\",\"*GHI*\",\"*HHC*\",\"*HLCP*\",\"*HOME*\",\"*LPR*\",\"*MHP*\",\"*NHTF*\",\"*NSP*\",\"*PRP*\",\"*TOD*\",\"*VHHP*\"},'1. Checklist & Certification'!$L$7)))),\"MHP\",\"Legacy\"))","v":""},",,",null,null,null,{"$f":"IF('1. Checklist & Certification'!$M$20=4,\"Both\",IF(OR('1. Checklist & Certification'!$M$15>0,S61=\"CHRP-R\",U61=\"CHRP-R\",W61=\"CHRP-R\",Y61=\"CHRP-R\"),\"Under\",\"No\"))","v":"No"},"No","No",{"$f":"_xlfn.IFS(D61=\"\",\"\",D61=1,'MHP Family Income & Rent Limits'!$E$17,D61=2,'MHP Family Income & Rent Limits'!$F$17,D61=3,'MHP Family Income & Rent Limits'!$G$17,D61=4,'MHP Family Income & Rent Limits'!$H$17,D61=5,'MHP Family Income & Rent Limits'!$I$17,D61=6,'MHP Family Income & Rent Limits'!$J$17,D61=7,'MHP Family Income & Rent Limits'!$K$17,D61=8,'MHP Family Income & Rent Limits'!$L$17)","v":""},"",{"$f":"IF(OR(A61=0,B61=\"X\"),0,MIN(IF(AA61:AD61<>0,AA61:AD61)))","v":0},{"$f":"IF(OR(H61=\"\",I61=\"\"),0,IF(H61*0.3/12>I61,MIN(H61*0.3/12,I61*1.1)+AP61,I61*(1+(VLOOKUP('1. Checklist & Certification'!$F$9,'HLCP-E Rent Change'!$A$1:$D$59,4,FALSE)))+AP61))","v":0}]
[null,null,null,null,null,null,null,null,null,null,null,null,null,null,null,null,null,null,null,null,null,null,null,null,null,null,0,0,0,0,0,0,0,0,{"$f":"IF(OR(A62=0,B62=\"X\"),0,IF(OR(S62=\"FHDP\",S62=\"RHCP-B\",U62=\"FHDP\",U62=\"RHCP-B\",W62=\"FHDP\",W62=\"RHCP-B\",Y62=\"FHDP\",Y62=\"RHCP-B\"),TRUNC((MIN(I62,K62)*(1+'1. Checklist & Certification'!$K$43)+AP62)),0))","v":0},{"$f":"IF(OR(A62=0,B62=\"X\"),0,IF(OR(S62=\"CHRP-R\",S62=\"SERA\",S62=\"SUHRP\",U62=\"CHRP-R\",U62=\"SERA\",U62=\"SUHRP\",W62=\"CHRP-R\",W62=\"SERA\",W62=\"SUHRP\",Y62=\"CHRP-R\",Y62=\"SERA\",Y62=\"SUHRP\"),TRUNC((MIN(I62,K62)*(1+'1. Checklist & Certification'!$K$49))),0))","v":0},{"$f":"IF(OR(A62=0,B62=\"X\"),0,IF(OR(S62=\"CALDAP\",S62=\"DPRLP\",U62=\"CALDAP\",U62=\"DPRLP\",W62=\"CALDAP\",W62=\"DPRLP\",Y62=\"CALDAP\",Y62=\"DPRLP\"),TRUNC(((MIN(I62,K62))*(1+'1. Checklist & Certification'!$G$4))),0))","v":0},0,0,0,{"$f":"IF(OR(A62=0,B62=\"X\"),0,IF(OR(S62=\"PRP\",S62=\"LPR\",U62=\"PRP\",U62=\"LPR\",W62=\"PRP\",W62=\"LPR\",Y62=\"PRP\",Y62=\"LPR\"),MAX(I62+AP62,MIN(IF(AE62:AN62<>0,AE62:AN62))),MIN(IF(AE62:AN62<>0,AE62:AN62))))","v":0},{"$f":"IF(A62=0,0,IF(AND(OR(S62=\"Mgr\",S62=0),OR(U62=\"Mgr\",U62=0),OR(W62=\"Mgr\",W62=0)),0,IF(LEFT($A62,2)=\"B*\",VLOOKUP($E62,'1. Checklist & Certification'!$D$26:$E$32,2),IF(LEFT($A62,2)=\"C*\",VLOOKUP($E62,'1. Checklist & Certification'!$F$26:$G$32,2),IF(LEFT($A62,2)=\"D*\",VLOOKUP($E62,'1. Checklist & Certification'!$H$26:$I$32,2),IF(LEFT($A62,2)=\"E*\",VLOOKUP($E62,'1. Checklist & Certification'!$J$26:$K$32,2),VLOOKUP($E62,'1. Checklist & Certification'!$A$26:$B$32,2)))))))","v":0},0,0,null,null,null,null,"","",0,0,0,null,{"$f":"IF(A62=\"\",\"\",'1. Checklist & Certification'!$K$1)","v":""},{"$f":"IF(A62=\"\",\"\",'1. Checklist & Certification'!$C$62)","v":""},{"$f":"IF(A62=\"\",\"\",'1. Checklist & Certification'!$C$6)","v":""},{"$f":"IF(A62=\"\",\"\",'1. Checklist & Certification'!$G$5)","v":""},{"$f":"IFERROR(IF(A62=\"\",\"\",\n_xlfn.LET(_xlpm.Contract,'1. Checklist & Certification'!$C$7,\n_xlpm.Yr,TEXT(MOD(_xlfn.TEXTBEFORE(_xlpm.Contract,\"-\"),100),\"00\"),\n_xlpm.Program,_xlfn.TEXTAFTER(_xlfn.TEXTBEFORE(_xlpm.Contract,\"-\",2),\"-\"),\n_xlpm.CleanProgram,_xlfn.XLOOKUP(_xlpm.Program,SpellCheck[Input],SpellCheck[Correction],_xlpm.Program),\n_xlpm.Number,TEXT(_xlfn.TEXTAFTER(_xlpm.Contract,\"-\",2),\"0000\"),\n_xlfn.CONCAT(_xlpm.Yr,\"-\",_xlpm.CleanProgram,\"-\",_xlpm.Number))\n),\"\")","v":""},{"$f":"IFERROR(IF(A62=\"\",\"\",\n_xlfn.LET(_xlpm.Contract,'1. Checklist & Certification'!$C$8,\n_xlpm.Yr,TEXT(MOD(_xlfn.TEXTBEFORE(_xlpm.Contract,\"-\"),100),\"00\"),\n_xlpm.Program,_xlfn.TEXTAFTER(_xlfn.TEXTBEFORE(_xlpm.Contract,\"-\",2),\"-\"),\n_xlpm.CleanProgram,_xlfn.XLOOKUP(_xlpm.Program,SpellCheck[Input],SpellCheck[Correction],_xlpm.Program),\n_xlpm.Number,TEXT(_xlfn.TEXTAFTER(_xlpm.Contract,\"-\",2),\"0000\"),\n_xlfn.CONCAT(_xlpm.Yr,\"-\",_xlpm.CleanProgram,\"-\",_xlpm.Number))\n),\"\")","v":""},{"$f":"IFERROR(IF(A62=\"\",\"\",\n_xlfn.LET(_xlpm.Contract,'1. Checklist & Certification'!$F$7,\n_xlpm.Yr,TEXT(MOD(_xlfn.TEXTBEFORE(_xlpm.Contract,\"-\"),100),\"00\"),\n_xlpm.Program,_xlfn.TEXTAFTER(_xlfn.TEXTBEFORE(_xlpm.Contract,\"-\",2),\"-\"),\n_xlpm.CleanProgram,_xlfn.XLOOKUP(_xlpm.Program,SpellCheck[Input],SpellCheck[Correction],_xlpm.Program),\n_xlpm.Number,TEXT(_xlfn.TEXTAFTER(_xlpm.Contract,\"-\",2),\"0000\"),\n_xlfn.CONCAT(_xlpm.Yr,\"-\",_xlpm.CleanProgram,\"-\",_xlpm.Number))\n),\"\")","v":""},{"$f":"IFERROR(IF(A62=\"\",\"\",\n_xlfn.LET(_xlpm.Contract,'1. Checklist & Certification'!$F$8,\n_xlpm.Yr,TEXT(MOD(_xlfn.TEXTBEFORE(_xlpm.Contract,\"-\"),100),\"00\"),\n_xlpm.Program,_xlfn.TEXTAFTER(_xlfn.TEXTBEFORE(_xlpm.Contract,\"-\",2),\"-\"),\n_xlpm.CleanProgram,_xlfn.XLOOKUP(_xlpm.Program,SpellCheck[Input],SpellCheck[Correction],_xlpm.Program),\n_xlpm.Number,TEXT(_xlfn.TEXTAFTER(_xlpm.Contract,\"-\",2),\"0000\"),\n_xlfn.CONCAT(_xlpm.Yr,\"-\",_xlpm.CleanProgram,\"-\",_xlpm.Number))\n),\"\")","v":""},{"$f":"IF(A62=\"\",\"\",'1. Checklist & Certification'!$B$9)","v":""},{"$f":"IF(A62=\"\",\"\",'1. Checklist & Certification'!$F$9)","v":""},{"$f":"IF(A62=\"\",\"\",'1. Checklist & Certification'!$C$10)","v":""},{"$f":"IF(A62=\"\",\"\",'1. Checklist & Certification'!$C$11)","v":""},{"$f":"IF(A62=\"\",\"\",'1. Checklist & Certification'!$C$12)","v":""},{"$f":"IF(A62=\"\",\"\",'1. Checklist & Certification'!$B$14)","v":""},{"$f":"IF(A62=\"\",\"\",'1. Checklist & Certification'!$E$14)","v":""},{"$f":"IF(B62=\"\",\"\",'1. Checklist & Certification'!$G$14)","v":""},{"$f":"IF(A62=\"\",\"\",'MHP Family Income & Rent Limits'!$B$3)","v":""},{"$f":"IF(A62=\"\",\"\",'MHP Family Income & Rent Limits'!$J$3)","v":""},{"$f":"IF(A62=\"\",\"\",'MHP Family Income & Rent Limits'!$E$4)","v":""},{"$f":"IF(A62=\"\",\"\",'MHP Family Income & Rent Limits'!$C$7)","v":""},{"$f":"IF(A62=\"\",\"\",'MHP Family Income & Rent Limits'!$F$8)","v":""},{"$f":"IF(A62=\"\",\"\",'1. Checklist & Certification'!$G$4)","v":""},{"$f":"IF(A62=\"\",\"\",'1. Checklist & Certification'!$K$39)","v":""},{"$f":"IF(A62=\"\",\"\",'1. Checklist & Certification'!$K$43)","v":""},{"$f":"IF(A62=\"\",\"\",'1. Checklist & Certification'!$K$45)","v":""},{"$f":"IF(A62=\"\",\"\",'1. Checklist & Certification'!$K$49)","v":""},{"$f":"IF(A62=\"\",\"\",'1. Checklist & Certification'!$K$62)","v":""},{"$f":"IF(A62=\"\",\"\",'1. Checklist & Certification'!$E$66)","v":""},{"$f":"IF(A62=\"\",\"\",'1. Checklist & Certification'!$E$67)","v":""},{"$f":"IF(A62=\"\",\"\",'1. Checklist & Certification'!$E$68)","v":""},{"$f":"IF(A62=\"\",\"\",'1. Checklist & Certification'!$G$66)","v":""},{"$f":"IF(A62=\"\",\"\",'1. Checklist & Certification'!$H$66)","v":""},{"$f":"IF(A62=\"\",\"\",'1. Checklist & Certification'!$I$66)","v":""},{"$f":"IF(A62=\"\",\"\",'1. Checklist & Certification'!$I$67)","v":""},{"$f":"IF(A62=\"\",\"\",'1. Checklist & Certification'!$I$68)","v":""},{"$f":"IF(A62=\"\",\"\",'1. Checklist & Certification'!$B$69)","v":""},{"$f":"IF(A62=\"\",\"\",'1. Checklist & Certification'!$C$69)","v":""},{"$f":"IF(A62=\"\",\"\",'1. Checklist & Certification'!$F$69)","v":""},{"$f":"IF(A62=\"\",\"\",'1. Checklist & Certification'!$G$69)","v":""},{"$f":"IF(A62=\"\",\"\",'1. Checklist & Certification'!$J$69)","v":""},{"$f":"IF(A62=\"\",\"\",'1. Checklist & Certification'!$K$69)","v":""},null,null,{"$f":"IF(AND(OR('1. Checklist & Certification'!$M$16=1,'1. Checklist & Certification'!$M$19=2),AO62>0,B62=\"\",I62>0,AQ62<I62,AV62<>\"Sec 8-Project\"),\"X\",IF(AND(OR('1. Checklist & Certification'!$M$20=4,'1. Checklist & Certification'!$M$21=5,'1. Checklist & Certification'!$M$22=7),AO62>0,B62=\"\",I62>0,K62<I62),\"X\",\"\"))","v":""},{"$f":"IF(A62=\"\",\"\",IF(SUMPRODUCT(-- (ISNUMBER(SEARCH({\"*AHSC*\",\"*FMTW*\",\"*FWHG*\",\"*GHI*\",\"*HHC*\",\"*HLCP*\",\"*HOME*\",\"*LPR*\",\"*MHP*\",\"*NHTF*\",\"*NSP*\",\"*PRP*\",\"*TOD*\",\"*VHHP*\"},'1. Checklist & Certification'!$L$7)))),\"MHP\",\"Legacy\"))","v":""},",,",null,null,null,{"$f":"IF('1. Checklist & Certification'!$M$20=4,\"Both\",IF(OR('1. Checklist & Certification'!$M$15>0,S62=\"CHRP-R\",U62=\"CHRP-R\",W62=\"CHRP-R\",Y62=\"CHRP-R\"),\"Under\",\"No\"))","v":"No"},"No","No",{"$f":"_xlfn.IFS(D62=\"\",\"\",D62=1,'MHP Family Income & Rent Limits'!$E$17,D62=2,'MHP Family Income & Rent Limits'!$F$17,D62=3,'MHP Family Income & Rent Limits'!$G$17,D62=4,'MHP Family Income & Rent Limits'!$H$17,D62=5,'MHP Family Income & Rent Limits'!$I$17,D62=6,'MHP Family Income & Rent Limits'!$J$17,D62=7,'MHP Family Income & Rent Limits'!$K$17,D62=8,'MHP Family Income & Rent Limits'!$L$17)","v":""},"",{"$f":"IF(OR(A62=0,B62=\"X\"),0,MIN(IF(AA62:AD62<>0,AA62:AD62)))","v":0},{"$f":"IF(OR(H62=\"\",I62=\"\"),0,IF(H62*0.3/12>I62,MIN(H62*0.3/12,I62*1.1)+AP62,I62*(1+(VLOOKUP('1. Checklist & Certification'!$F$9,'HLCP-E Rent Change'!$A$1:$D$59,4,FALSE)))+AP62))","v":0}]
[null,null,null,null,null,null,null,null,null,null,null,null,null,null,null,null,null,null,null,null,null,null,null,null,null,null,0,0,0,0,0,0,0,0,{"$f":"IF(OR(A63=0,B63=\"X\"),0,IF(OR(S63=\"FHDP\",S63=\"RHCP-B\",U63=\"FHDP\",U63=\"RHCP-B\",W63=\"FHDP\",W63=\"RHCP-B\",Y63=\"FHDP\",Y63=\"RHCP-B\"),TRUNC((MIN(I63,K63)*(1+'1. Checklist & Certification'!$K$43)+AP63)),0))","v":0},{"$f":"IF(OR(A63=0,B63=\"X\"),0,IF(OR(S63=\"CHRP-R\",S63=\"SERA\",S63=\"SUHRP\",U63=\"CHRP-R\",U63=\"SERA\",U63=\"SUHRP\",W63=\"CHRP-R\",W63=\"SERA\",W63=\"SUHRP\",Y63=\"CHRP-R\",Y63=\"SERA\",Y63=\"SUHRP\"),TRUNC((MIN(I63,K63)*(1+'1. Checklist & Certification'!$K$49))),0))","v":0},{"$f":"IF(OR(A63=0,B63=\"X\"),0,IF(OR(S63=\"CALDAP\",S63=\"DPRLP\",U63=\"CALDAP\",U63=\"DPRLP\",W63=\"CALDAP\",W63=\"DPRLP\",Y63=\"CALDAP\",Y63=\"DPRLP\"),TRUNC(((MIN(I63,K63))*(1+'1. Checklist & Certification'!$G$4))),0))","v":0},0,0,0,{"$f":"IF(OR(A63=0,B63=\"X\"),0,IF(OR(S63=\"PRP\",S63=\"LPR\",U63=\"PRP\",U63=\"LPR\",W63=\"PRP\",W63=\"LPR\",Y63=\"PRP\",Y63=\"LPR\"),MAX(I63+AP63,MIN(IF(AE63:AN63<>0,AE63:AN63))),MIN(IF(AE63:AN63<>0,AE63:AN63))))","v":0},{"$f":"IF(A63=0,0,IF(AND(OR(S63=\"Mgr\",S63=0),OR(U63=\"Mgr\",U63=0),OR(W63=\"Mgr\",W63=0)),0,IF(LEFT($A63,2)=\"B*\",VLOOKUP($E63,'1. Checklist & Certification'!$D$26:$E$32,2),IF(LEFT($A63,2)=\"C*\",VLOOKUP($E63,'1. Checklist & Certification'!$F$26:$G$32,2),IF(LEFT($A63,2)=\"D*\",VLOOKUP($E63,'1. Checklist & Certification'!$H$26:$I$32,2),IF(LEFT($A63,2)=\"E*\",VLOOKUP($E63,'1. Checklist & Certification'!$J$26:$K$32,2),VLOOKUP($E63,'1. Checklist & Certification'!$A$26:$B$32,2)))))))","v":0},0,0,null,null,null,null,"","",0,0,0,null,{"$f":"IF(A63=\"\",\"\",'1. Checklist & Certification'!$K$1)","v":""},{"$f":"IF(A63=\"\",\"\",'1. Checklist & Certification'!$C$62)","v":""},{"$f":"IF(A63=\"\",\"\",'1. Checklist & Certification'!$C$6)","v":""},{"$f":"IF(A63=\"\",\"\",'1. Checklist & Certification'!$G$5)","v":""},{"$f":"IFERROR(IF(A63=\"\",\"\",\n_xlfn.LET(_xlpm.Contract,'1. Checklist & Certification'!$C$7,\n_xlpm.Yr,TEXT(MOD(_xlfn.TEXTBEFORE(_xlpm.Contract,\"-\"),100),\"00\"),\n_xlpm.Program,_xlfn.TEXTAFTER(_xlfn.TEXTBEFORE(_xlpm.Contract,\"-\",2),\"-\"),\n_xlpm.CleanProgram,_xlfn.XLOOKUP(_xlpm.Program,SpellCheck[Input],SpellCheck[Correction],_xlpm.Program),\n_xlpm.Number,TEXT(_xlfn.TEXTAFTER(_xlpm.Contract,\"-\",2),\"0000\"),\n_xlfn.CONCAT(_xlpm.Yr,\"-\",_xlpm.CleanProgram,\"-\",_xlpm.Number))\n),\"\")","v":""},{"$f":"IFERROR(IF(A63=\"\",\"\",\n_xlfn.LET(_xlpm.Contract,'1. Checklist & Certification'!$C$8,\n_xlpm.Yr,TEXT(MOD(_xlfn.TEXTBEFORE(_xlpm.Contract,\"-\"),100),\"00\"),\n_xlpm.Program,_xlfn.TEXTAFTER(_xlfn.TEXTBEFORE(_xlpm.Contract,\"-\",2),\"-\"),\n_xlpm.CleanProgram,_xlfn.XLOOKUP(_xlpm.Program,SpellCheck[Input],SpellCheck[Correction],_xlpm.Program),\n_xlpm.Number,TEXT(_xlfn.TEXTAFTER(_xlpm.Contract,\"-\",2),\"0000\"),\n_xlfn.CONCAT(_xlpm.Yr,\"-\",_xlpm.CleanProgram,\"-\",_xlpm.Number))\n),\"\")","v":""},{"$f":"IFERROR(IF(A63=\"\",\"\",\n_xlfn.LET(_xlpm.Contract,'1. Checklist & Certification'!$F$7,\n_xlpm.Yr,TEXT(MOD(_xlfn.TEXTBEFORE(_xlpm.Contract,\"-\"),100),\"00\"),\n_xlpm.Program,_xlfn.TEXTAFTER(_xlfn.TEXTBEFORE(_xlpm.Contract,\"-\",2),\"-\"),\n_xlpm.CleanProgram,_xlfn.XLOOKUP(_xlpm.Program,SpellCheck[Input],SpellCheck[Correction],_xlpm.Program),\n_xlpm.Number,TEXT(_xlfn.TEXTAFTER(_xlpm.Contract,\"-\",2),\"0000\"),\n_xlfn.CONCAT(_xlpm.Yr,\"-\",_xlpm.CleanProgram,\"-\",_xlpm.Number))\n),\"\")","v":""},{"$f":"IFERROR(IF(A63=\"\",\"\",\n_xlfn.LET(_xlpm.Contract,'1. Checklist & Certification'!$F$8,\n_xlpm.Yr,TEXT(MOD(_xlfn.TEXTBEFORE(_xlpm.Contract,\"-\"),100),\"00\"),\n_xlpm.Program,_xlfn.TEXTAFTER(_xlfn.TEXTBEFORE(_xlpm.Contract,\"-\",2),\"-\"),\n_xlpm.CleanProgram,_xlfn.XLOOKUP(_xlpm.Program,SpellCheck[Input],SpellCheck[Correction],_xlpm.Program),\n_xlpm.Number,TEXT(_xlfn.TEXTAFTER(_xlpm.Contract,\"-\",2),\"0000\"),\n_xlfn.CONCAT(_xlpm.Yr,\"-\",_xlpm.CleanProgram,\"-\",_xlpm.Number))\n),\"\")","v":""},{"$f":"IF(A63=\"\",\"\",'1. Checklist & Certification'!$B$9)","v":""},{"$f":"IF(A63=\"\",\"\",'1. Checklist & Certification'!$F$9)","v":""},{"$f":"IF(A63=\"\",\"\",'1. Checklist & Certification'!$C$10)","v":""},{"$f":"IF(A63=\"\",\"\",'1. Checklist & Certification'!$C$11)","v":""},{"$f":"IF(A63=\"\",\"\",'1. Checklist & Certification'!$C$12)","v":""},{"$f":"IF(A63=\"\",\"\",'1. Checklist & Certification'!$B$14)","v":""},{"$f":"IF(A63=\"\",\"\",'1. Checklist & Certification'!$E$14)","v":""},{"$f":"IF(B63=\"\",\"\",'1. Checklist & Certification'!$G$14)","v":""},{"$f":"IF(A63=\"\",\"\",'MHP Family Income & Rent Limits'!$B$3)","v":""},{"$f":"IF(A63=\"\",\"\",'MHP Family Income & Rent Limits'!$J$3)","v":""},{"$f":"IF(A63=\"\",\"\",'MHP Family Income & Rent Limits'!$E$4)","v":""},{"$f":"IF(A63=\"\",\"\",'MHP Family Income & Rent Limits'!$C$7)","v":""},{"$f":"IF(A63=\"\",\"\",'MHP Family Income & Rent Limits'!$F$8)","v":""},{"$f":"IF(A63=\"\",\"\",'1. Checklist & Certification'!$G$4)","v":""},{"$f":"IF(A63=\"\",\"\",'1. Checklist & Certification'!$K$39)","v":""},{"$f":"IF(A63=\"\",\"\",'1. Checklist & Certification'!$K$43)","v":""},{"$f":"IF(A63=\"\",\"\",'1. Checklist & Certification'!$K$45)","v":""},{"$f":"IF(A63=\"\",\"\",'1. Checklist & Certification'!$K$49)","v":""},{"$f":"IF(A63=\"\",\"\",'1. Checklist & Certification'!$K$62)","v":""},{"$f":"IF(A63=\"\",\"\",'1. Checklist & Certification'!$E$66)","v":""},{"$f":"IF(A63=\"\",\"\",'1. Checklist & Certification'!$E$67)","v":""},{"$f":"IF(A63=\"\",\"\",'1. Checklist & Certification'!$E$68)","v":""},{"$f":"IF(A63=\"\",\"\",'1. Checklist & Certification'!$G$66)","v":""},{"$f":"IF(A63=\"\",\"\",'1. Checklist & Certification'!$H$66)","v":""},{"$f":"IF(A63=\"\",\"\",'1. Checklist & Certification'!$I$66)","v":""},{"$f":"IF(A63=\"\",\"\",'1. Checklist & Certification'!$I$67)","v":""},{"$f":"IF(A63=\"\",\"\",'1. Checklist & Certification'!$I$68)","v":""},{"$f":"IF(A63=\"\",\"\",'1. Checklist & Certification'!$B$69)","v":""},{"$f":"IF(A63=\"\",\"\",'1. Checklist & Certification'!$C$69)","v":""},{"$f":"IF(A63=\"\",\"\",'1. Checklist & Certification'!$F$69)","v":""},{"$f":"IF(A63=\"\",\"\",'1. Checklist & Certification'!$G$69)","v":""},{"$f":"IF(A63=\"\",\"\",'1. Checklist & Certification'!$J$69)","v":""},{"$f":"IF(A63=\"\",\"\",'1. Checklist & Certification'!$K$69)","v":""},null,null,{"$f":"IF(AND(OR('1. Checklist & Certification'!$M$16=1,'1. Checklist & Certification'!$M$19=2),AO63>0,B63=\"\",I63>0,AQ63<I63,AV63<>\"Sec 8-Project\"),\"X\",IF(AND(OR('1. Checklist & Certification'!$M$20=4,'1. Checklist & Certification'!$M$21=5,'1. Checklist & Certification'!$M$22=7),AO63>0,B63=\"\",I63>0,K63<I63),\"X\",\"\"))","v":""},{"$f":"IF(A63=\"\",\"\",IF(SUMPRODUCT(-- (ISNUMBER(SEARCH({\"*AHSC*\",\"*FMTW*\",\"*FWHG*\",\"*GHI*\",\"*HHC*\",\"*HLCP*\",\"*HOME*\",\"*LPR*\",\"*MHP*\",\"*NHTF*\",\"*NSP*\",\"*PRP*\",\"*TOD*\",\"*VHHP*\"},'1. Checklist & Certification'!$L$7)))),\"MHP\",\"Legacy\"))","v":""},",,",null,null,null,{"$f":"IF('1. Checklist & Certification'!$M$20=4,\"Both\",IF(OR('1. Checklist & Certification'!$M$15>0,S63=\"CHRP-R\",U63=\"CHRP-R\",W63=\"CHRP-R\",Y63=\"CHRP-R\"),\"Under\",\"No\"))","v":"No"},"No","No",{"$f":"_xlfn.IFS(D63=\"\",\"\",D63=1,'MHP Family Income & Rent Limits'!$E$17,D63=2,'MHP Family Income & Rent Limits'!$F$17,D63=3,'MHP Family Income & Rent Limits'!$G$17,D63=4,'MHP Family Income & Rent Limits'!$H$17,D63=5,'MHP Family Income & Rent Limits'!$I$17,D63=6,'MHP Family Income & Rent Limits'!$J$17,D63=7,'MHP Family Income & Rent Limits'!$K$17,D63=8,'MHP Family Income & Rent Limits'!$L$17)","v":""},"",{"$f":"IF(OR(A63=0,B63=\"X\"),0,MIN(IF(AA63:AD63<>0,AA63:AD63)))","v":0},{"$f":"IF(OR(H63=\"\",I63=\"\"),0,IF(H63*0.3/12>I63,MIN(H63*0.3/12,I63*1.1)+AP63,I63*(1+(VLOOKUP('1. Checklist & Certification'!$F$9,'HLCP-E Rent Change'!$A$1:$D$59,4,FALSE)))+AP63))","v":0}]
[null,null,null,null,null,null,null,null,null,null,null,null,null,null,null,null,null,null,null,null,null,null,null,null,null,null,0,0,0,0,0,0,0,0,{"$f":"IF(OR(A64=0,B64=\"X\"),0,IF(OR(S64=\"FHDP\",S64=\"RHCP-B\",U64=\"FHDP\",U64=\"RHCP-B\",W64=\"FHDP\",W64=\"RHCP-B\",Y64=\"FHDP\",Y64=\"RHCP-B\"),TRUNC((MIN(I64,K64)*(1+'1. Checklist & Certification'!$K$43)+AP64)),0))","v":0},{"$f":"IF(OR(A64=0,B64=\"X\"),0,IF(OR(S64=\"CHRP-R\",S64=\"SERA\",S64=\"SUHRP\",U64=\"CHRP-R\",U64=\"SERA\",U64=\"SUHRP\",W64=\"CHRP-R\",W64=\"SERA\",W64=\"SUHRP\",Y64=\"CHRP-R\",Y64=\"SERA\",Y64=\"SUHRP\"),TRUNC((MIN(I64,K64)*(1+'1. Checklist & Certification'!$K$49))),0))","v":0},{"$f":"IF(OR(A64=0,B64=\"X\"),0,IF(OR(S64=\"CALDAP\",S64=\"DPRLP\",U64=\"CALDAP\",U64=\"DPRLP\",W64=\"CALDAP\",W64=\"DPRLP\",Y64=\"CALDAP\",Y64=\"DPRLP\"),TRUNC(((MIN(I64,K64))*(1+'1. Checklist & Certification'!$G$4))),0))","v":0},0,0,0,{"$f":"IF(OR(A64=0,B64=\"X\"),0,IF(OR(S64=\"PRP\",S64=\"LPR\",U64=\"PRP\",U64=\"LPR\",W64=\"PRP\",W64=\"LPR\",Y64=\"PRP\",Y64=\"LPR\"),MAX(I64+AP64,MIN(IF(AE64:AN64<>0,AE64:AN64))),MIN(IF(AE64:AN64<>0,AE64:AN64))))","v":0},{"$f":"IF(A64=0,0,IF(AND(OR(S64=\"Mgr\",S64=0),OR(U64=\"Mgr\",U64=0),OR(W64=\"Mgr\",W64=0)),0,IF(LEFT($A64,2)=\"B*\",VLOOKUP($E64,'1. Checklist & Certification'!$D$26:$E$32,2),IF(LEFT($A64,2)=\"C*\",VLOOKUP($E64,'1. Checklist & Certification'!$F$26:$G$32,2),IF(LEFT($A64,2)=\"D*\",VLOOKUP($E64,'1. Checklist & Certification'!$H$26:$I$32,2),IF(LEFT($A64,2)=\"E*\",VLOOKUP($E64,'1. Checklist & Certification'!$J$26:$K$32,2),VLOOKUP($E64,'1. Checklist & Certification'!$A$26:$B$32,2)))))))","v":0},0,0,null,null,null,null,"","",0,0,0,null,{"$f":"IF(A64=\"\",\"\",'1. Checklist & Certification'!$K$1)","v":""},{"$f":"IF(A64=\"\",\"\",'1. Checklist & Certification'!$C$62)","v":""},{"$f":"IF(A64=\"\",\"\",'1. Checklist & Certification'!$C$6)","v":""},{"$f":"IF(A64=\"\",\"\",'1. Checklist & Certification'!$G$5)","v":""},{"$f":"IFERROR(IF(A64=\"\",\"\",\n_xlfn.LET(_xlpm.Contract,'1. Checklist & Certification'!$C$7,\n_xlpm.Yr,TEXT(MOD(_xlfn.TEXTBEFORE(_xlpm.Contract,\"-\"),100),\"00\"),\n_xlpm.Program,_xlfn.TEXTAFTER(_xlfn.TEXTBEFORE(_xlpm.Contract,\"-\",2),\"-\"),\n_xlpm.CleanProgram,_xlfn.XLOOKUP(_xlpm.Program,SpellCheck[Input],SpellCheck[Correction],_xlpm.Program),\n_xlpm.Number,TEXT(_xlfn.TEXTAFTER(_xlpm.Contract,\"-\",2),\"0000\"),\n_xlfn.CONCAT(_xlpm.Yr,\"-\",_xlpm.CleanProgram,\"-\",_xlpm.Number))\n),\"\")","v":""},{"$f":"IFERROR(IF(A64=\"\",\"\",\n_xlfn.LET(_xlpm.Contract,'1. Checklist & Certification'!$C$8,\n_xlpm.Yr,TEXT(MOD(_xlfn.TEXTBEFORE(_xlpm.Contract,\"-\"),100),\"00\"),\n_xlpm.Program,_xlfn.TEXTAFTER(_xlfn.TEXTBEFORE(_xlpm.Contract,\"-\",2),\"-\"),\n_xlpm.CleanProgram,_xlfn.XLOOKUP(_xlpm.Program,SpellCheck[Input],SpellCheck[Correction],_xlpm.Program),\n_xlpm.Number,TEXT(_xlfn.TEXTAFTER(_xlpm.Contract,\"-\",2),\"0000\"),\n_xlfn.CONCAT(_xlpm.Yr,\"-\",_xlpm.CleanProgram,\"-\",_xlpm.Number))\n),\"\")","v":""},{"$f":"IFERROR(IF(A64=\"\",\"\",\n_xlfn.LET(_xlpm.Contract,'1. Checklist & Certification'!$F$7,\n_xlpm.Yr,TEXT(MOD(_xlfn.TEXTBEFORE(_xlpm.Contract,\"-\"),100),\"00\"),\n_xlpm.Program,_xlfn.TEXTAFTER(_xlfn.TEXTBEFORE(_xlpm.Contract,\"-\",2),\"-\"),\n_xlpm.CleanProgram,_xlfn.XLOOKUP(_xlpm.Program,SpellCheck[Input],SpellCheck[Correction],_xlpm.Program),\n_xlpm.Number,TEXT(_xlfn.TEXTAFTER(_xlpm.Contract,\"-\",2),\"0000\"),\n_xlfn.CONCAT(_xlpm.Yr,\"-\",_xlpm.CleanProgram,\"-\",_xlpm.Number))\n),\"\")","v":""},{"$f":"IFERROR(IF(A64=\"\",\"\",\n_xlfn.LET(_xlpm.Contract,'1. Checklist & Certification'!$F$8,\n_xlpm.Yr,TEXT(MOD(_xlfn.TEXTBEFORE(_xlpm.Contract,\"-\"),100),\"00\"),\n_xlpm.Program,_xlfn.TEXTAFTER(_xlfn.TEXTBEFORE(_xlpm.Contract,\"-\",2),\"-\"),\n_xlpm.CleanProgram,_xlfn.XLOOKUP(_xlpm.Program,SpellCheck[Input],SpellCheck[Correction],_xlpm.Program),\n_xlpm.Number,TEXT(_xlfn.TEXTAFTER(_xlpm.Contract,\"-\",2),\"0000\"),\n_xlfn.CONCAT(_xlpm.Yr,\"-\",_xlpm.CleanProgram,\"-\",_xlpm.Number))\n),\"\")","v":""},{"$f":"IF(A64=\"\",\"\",'1. Checklist & Certification'!$B$9)","v":""},{"$f":"IF(A64=\"\",\"\",'1. Checklist & Certification'!$F$9)","v":""},{"$f":"IF(A64=\"\",\"\",'1. Checklist & Certification'!$C$10)","v":""},{"$f":"IF(A64=\"\",\"\",'1. Checklist & Certification'!$C$11)","v":""},{"$f":"IF(A64=\"\",\"\",'1. Checklist & Certification'!$C$12)","v":""},{"$f":"IF(A64=\"\",\"\",'1. Checklist & Certification'!$B$14)","v":""},{"$f":"IF(A64=\"\",\"\",'1. Checklist & Certification'!$E$14)","v":""},{"$f":"IF(B64=\"\",\"\",'1. Checklist & Certification'!$G$14)","v":""},{"$f":"IF(A64=\"\",\"\",'MHP Family Income & Rent Limits'!$B$3)","v":""},{"$f":"IF(A64=\"\",\"\",'MHP Family Income & Rent Limits'!$J$3)","v":""},{"$f":"IF(A64=\"\",\"\",'MHP Family Income & Rent Limits'!$E$4)","v":""},{"$f":"IF(A64=\"\",\"\",'MHP Family Income & Rent Limits'!$C$7)","v":""},{"$f":"IF(A64=\"\",\"\",'MHP Family Income & Rent Limits'!$F$8)","v":""},{"$f":"IF(A64=\"\",\"\",'1. Checklist & Certification'!$G$4)","v":""},{"$f":"IF(A64=\"\",\"\",'1. Checklist & Certification'!$K$39)","v":""},{"$f":"IF(A64=\"\",\"\",'1. Checklist & Certification'!$K$43)","v":""},{"$f":"IF(A64=\"\",\"\",'1. Checklist & Certification'!$K$45)","v":""},{"$f":"IF(A64=\"\",\"\",'1. Checklist & Certification'!$K$49)","v":""},{"$f":"IF(A64=\"\",\"\",'1. Checklist & Certification'!$K$62)","v":""},{"$f":"IF(A64=\"\",\"\",'1. Checklist & Certification'!$E$66)","v":""},{"$f":"IF(A64=\"\",\"\",'1. Checklist & Certification'!$E$67)","v":""},{"$f":"IF(A64=\"\",\"\",'1. Checklist & Certification'!$E$68)","v":""},{"$f":"IF(A64=\"\",\"\",'1. Checklist & Certification'!$G$66)","v":""},{"$f":"IF(A64=\"\",\"\",'1. Checklist & Certification'!$H$66)","v":""},{"$f":"IF(A64=\"\",\"\",'1. Checklist & Certification'!$I$66)","v":""},{"$f":"IF(A64=\"\",\"\",'1. Checklist & Certification'!$I$67)","v":""},{"$f":"IF(A64=\"\",\"\",'1. Checklist & Certification'!$I$68)","v":""},{"$f":"IF(A64=\"\",\"\",'1. Checklist & Certification'!$B$69)","v":""},{"$f":"IF(A64=\"\",\"\",'1. Checklist & Certification'!$C$69)","v":""},{"$f":"IF(A64=\"\",\"\",'1. Checklist & Certification'!$F$69)","v":""},{"$f":"IF(A64=\"\",\"\",'1. Checklist & Certification'!$G$69)","v":""},{"$f":"IF(A64=\"\",\"\",'1. Checklist & Certification'!$J$69)","v":""},{"$f":"IF(A64=\"\",\"\",'1. Checklist & Certification'!$K$69)","v":""},null,null,{"$f":"IF(AND(OR('1. Checklist & Certification'!$M$16=1,'1. Checklist & Certification'!$M$19=2),AO64>0,B64=\"\",I64>0,AQ64<I64,AV64<>\"Sec 8-Project\"),\"X\",IF(AND(OR('1. Checklist & Certification'!$M$20=4,'1. Checklist & Certification'!$M$21=5,'1. Checklist & Certification'!$M$22=7),AO64>0,B64=\"\",I64>0,K64<I64),\"X\",\"\"))","v":""},{"$f":"IF(A64=\"\",\"\",IF(SUMPRODUCT(-- (ISNUMBER(SEARCH({\"*AHSC*\",\"*FMTW*\",\"*FWHG*\",\"*GHI*\",\"*HHC*\",\"*HLCP*\",\"*HOME*\",\"*LPR*\",\"*MHP*\",\"*NHTF*\",\"*NSP*\",\"*PRP*\",\"*TOD*\",\"*VHHP*\"},'1. Checklist & Certification'!$L$7)))),\"MHP\",\"Legacy\"))","v":""},",,",null,null,null,{"$f":"IF('1. Checklist & Certification'!$M$20=4,\"Both\",IF(OR('1. Checklist & Certification'!$M$15>0,S64=\"CHRP-R\",U64=\"CHRP-R\",W64=\"CHRP-R\",Y64=\"CHRP-R\"),\"Under\",\"No\"))","v":"No"},"No","No",{"$f":"_xlfn.IFS(D64=\"\",\"\",D64=1,'MHP Family Income & Rent Limits'!$E$17,D64=2,'MHP Family Income & Rent Limits'!$F$17,D64=3,'MHP Family Income & Rent Limits'!$G$17,D64=4,'MHP Family Income & Rent Limits'!$H$17,D64=5,'MHP Family Income & Rent Limits'!$I$17,D64=6,'MHP Family Income & Rent Limits'!$J$17,D64=7,'MHP Family Income & Rent Limits'!$K$17,D64=8,'MHP Family Income & Rent Limits'!$L$17)","v":""},"",{"$f":"IF(OR(A64=0,B64=\"X\"),0,MIN(IF(AA64:AD64<>0,AA64:AD64)))","v":0},{"$f":"IF(OR(H64=\"\",I64=\"\"),0,IF(H64*0.3/12>I64,MIN(H64*0.3/12,I64*1.1)+AP64,I64*(1+(VLOOKUP('1. Checklist & Certification'!$F$9,'HLCP-E Rent Change'!$A$1:$D$59,4,FALSE)))+AP64))","v":0}]
[null,null,null,null,null,null,null,null,null,null,null,null,null,null,null,null,null,null,null,null,null,null,null,null,null,null,0,0,0,0,0,0,0,0,{"$f":"IF(OR(A65=0,B65=\"X\"),0,IF(OR(S65=\"FHDP\",S65=\"RHCP-B\",U65=\"FHDP\",U65=\"RHCP-B\",W65=\"FHDP\",W65=\"RHCP-B\",Y65=\"FHDP\",Y65=\"RHCP-B\"),TRUNC((MIN(I65,K65)*(1+'1. Checklist & Certification'!$K$43)+AP65)),0))","v":0},{"$f":"IF(OR(A65=0,B65=\"X\"),0,IF(OR(S65=\"CHRP-R\",S65=\"SERA\",S65=\"SUHRP\",U65=\"CHRP-R\",U65=\"SERA\",U65=\"SUHRP\",W65=\"CHRP-R\",W65=\"SERA\",W65=\"SUHRP\",Y65=\"CHRP-R\",Y65=\"SERA\",Y65=\"SUHRP\"),TRUNC((MIN(I65,K65)*(1+'1. Checklist & Certification'!$K$49))),0))","v":0},{"$f":"IF(OR(A65=0,B65=\"X\"),0,IF(OR(S65=\"CALDAP\",S65=\"DPRLP\",U65=\"CALDAP\",U65=\"DPRLP\",W65=\"CALDAP\",W65=\"DPRLP\",Y65=\"CALDAP\",Y65=\"DPRLP\"),TRUNC(((MIN(I65,K65))*(1+'1. Checklist & Certification'!$G$4))),0))","v":0},0,0,0,{"$f":"IF(OR(A65=0,B65=\"X\"),0,IF(OR(S65=\"PRP\",S65=\"LPR\",U65=\"PRP\",U65=\"LPR\",W65=\"PRP\",W65=\"LPR\",Y65=\"PRP\",Y65=\"LPR\"),MAX(I65+AP65,MIN(IF(AE65:AN65<>0,AE65:AN65))),MIN(IF(AE65:AN65<>0,AE65:AN65))))","v":0},{"$f":"IF(A65=0,0,IF(AND(OR(S65=\"Mgr\",S65=0),OR(U65=\"Mgr\",U65=0),OR(W65=\"Mgr\",W65=0)),0,IF(LEFT($A65,2)=\"B*\",VLOOKUP($E65,'1. Checklist & Certification'!$D$26:$E$32,2),IF(LEFT($A65,2)=\"C*\",VLOOKUP($E65,'1. Checklist & Certification'!$F$26:$G$32,2),IF(LEFT($A65,2)=\"D*\",VLOOKUP($E65,'1. Checklist & Certification'!$H$26:$I$32,2),IF(LEFT($A65,2)=\"E*\",VLOOKUP($E65,'1. Checklist & Certification'!$J$26:$K$32,2),VLOOKUP($E65,'1. Checklist & Certification'!$A$26:$B$32,2)))))))","v":0},0,0,null,null,null,null,"","",0,0,0,null,{"$f":"IF(A65=\"\",\"\",'1. Checklist & Certification'!$K$1)","v":""},{"$f":"IF(A65=\"\",\"\",'1. Checklist & Certification'!$C$62)","v":""},{"$f":"IF(A65=\"\",\"\",'1. Checklist & Certification'!$C$6)","v":""},{"$f":"IF(A65=\"\",\"\",'1. Checklist & Certification'!$G$5)","v":""},{"$f":"IFERROR(IF(A65=\"\",\"\",\n_xlfn.LET(_xlpm.Contract,'1. Checklist & Certification'!$C$7,\n_xlpm.Yr,TEXT(MOD(_xlfn.TEXTBEFORE(_xlpm.Contract,\"-\"),100),\"00\"),\n_xlpm.Program,_xlfn.TEXTAFTER(_xlfn.TEXTBEFORE(_xlpm.Contract,\"-\",2),\"-\"),\n_xlpm.CleanProgram,_xlfn.XLOOKUP(_xlpm.Program,SpellCheck[Input],SpellCheck[Correction],_xlpm.Program),\n_xlpm.Number,TEXT(_xlfn.TEXTAFTER(_xlpm.Contract,\"-\",2),\"0000\"),\n_xlfn.CONCAT(_xlpm.Yr,\"-\",_xlpm.CleanProgram,\"-\",_xlpm.Number))\n),\"\")","v":""},{"$f":"IFERROR(IF(A65=\"\",\"\",\n_xlfn.LET(_xlpm.Contract,'1. Checklist & Certification'!$C$8,\n_xlpm.Yr,TEXT(MOD(_xlfn.TEXTBEFORE(_xlpm.Contract,\"-\"),100),\"00\"),\n_xlpm.Program,_xlfn.TEXTAFTER(_xlfn.TEXTBEFORE(_xlpm.Contract,\"-\",2),\"-\"),\n_xlpm.CleanProgram,_xlfn.XLOOKUP(_xlpm.Program,SpellCheck[Input],SpellCheck[Correction],_xlpm.Program),\n_xlpm.Number,TEXT(_xlfn.TEXTAFTER(_xlpm.Contract,\"-\",2),\"0000\"),\n_xlfn.CONCAT(_xlpm.Yr,\"-\",_xlpm.CleanProgram,\"-\",_xlpm.Number))\n),\"\")","v":""},{"$f":"IFERROR(IF(A65=\"\",\"\",\n_xlfn.LET(_xlpm.Contract,'1. Checklist & Certification'!$F$7,\n_xlpm.Yr,TEXT(MOD(_xlfn.TEXTBEFORE(_xlpm.Contract,\"-\"),100),\"00\"),\n_xlpm.Program,_xlfn.TEXTAFTER(_xlfn.TEXTBEFORE(_xlpm.Contract,\"-\",2),\"-\"),\n_xlpm.CleanProgram,_xlfn.XLOOKUP(_xlpm.Program,SpellCheck[Input],SpellCheck[Correction],_xlpm.Program),\n_xlpm.Number,TEXT(_xlfn.TEXTAFTER(_xlpm.Contract,\"-\",2),\"0000\"),\n_xlfn.CONCAT(_xlpm.Yr,\"-\",_xlpm.CleanProgram,\"-\",_xlpm.Number))\n),\"\")","v":""},{"$f":"IFERROR(IF(A65=\"\",\"\",\n_xlfn.LET(_xlpm.Contract,'1. Checklist & Certification'!$F$8,\n_xlpm.Yr,TEXT(MOD(_xlfn.TEXTBEFORE(_xlpm.Contract,\"-\"),100),\"00\"),\n_xlpm.Program,_xlfn.TEXTAFTER(_xlfn.TEXTBEFORE(_xlpm.Contract,\"-\",2),\"-\"),\n_xlpm.CleanProgram,_xlfn.XLOOKUP(_xlpm.Program,SpellCheck[Input],SpellCheck[Correction],_xlpm.Program),\n_xlpm.Number,TEXT(_xlfn.TEXTAFTER(_xlpm.Contract,\"-\",2),\"0000\"),\n_xlfn.CONCAT(_xlpm.Yr,\"-\",_xlpm.CleanProgram,\"-\",_xlpm.Number))\n),\"\")","v":""},{"$f":"IF(A65=\"\",\"\",'1. Checklist & Certification'!$B$9)","v":""},{"$f":"IF(A65=\"\",\"\",'1. Checklist & Certification'!$F$9)","v":""},{"$f":"IF(A65=\"\",\"\",'1. Checklist & Certification'!$C$10)","v":""},{"$f":"IF(A65=\"\",\"\",'1. Checklist & Certification'!$C$11)","v":""},{"$f":"IF(A65=\"\",\"\",'1. Checklist & Certification'!$C$12)","v":""},{"$f":"IF(A65=\"\",\"\",'1. Checklist & Certification'!$B$14)","v":""},{"$f":"IF(A65=\"\",\"\",'1. Checklist & Certification'!$E$14)","v":""},{"$f":"IF(B65=\"\",\"\",'1. Checklist & Certification'!$G$14)","v":""},{"$f":"IF(A65=\"\",\"\",'MHP Family Income & Rent Limits'!$B$3)","v":""},{"$f":"IF(A65=\"\",\"\",'MHP Family Income & Rent Limits'!$J$3)","v":""},{"$f":"IF(A65=\"\",\"\",'MHP Family Income & Rent Limits'!$E$4)","v":""},{"$f":"IF(A65=\"\",\"\",'MHP Family Income & Rent Limits'!$C$7)","v":""},{"$f":"IF(A65=\"\",\"\",'MHP Family Income & Rent Limits'!$F$8)","v":""},{"$f":"IF(A65=\"\",\"\",'1. Checklist & Certification'!$G$4)","v":""},{"$f":"IF(A65=\"\",\"\",'1. Checklist & Certification'!$K$39)","v":""},{"$f":"IF(A65=\"\",\"\",'1. Checklist & Certification'!$K$43)","v":""},{"$f":"IF(A65=\"\",\"\",'1. Checklist & Certification'!$K$45)","v":""},{"$f":"IF(A65=\"\",\"\",'1. Checklist & Certification'!$K$49)","v":""},{"$f":"IF(A65=\"\",\"\",'1. Checklist & Certification'!$K$62)","v":""},{"$f":"IF(A65=\"\",\"\",'1. Checklist & Certification'!$E$66)","v":""},{"$f":"IF(A65=\"\",\"\",'1. Checklist & Certification'!$E$67)","v":""},{"$f":"IF(A65=\"\",\"\",'1. Checklist & Certification'!$E$68)","v":""},{"$f":"IF(A65=\"\",\"\",'1. Checklist & Certification'!$G$66)","v":""},{"$f":"IF(A65=\"\",\"\",'1. Checklist & Certification'!$H$66)","v":""},{"$f":"IF(A65=\"\",\"\",'1. Checklist & Certification'!$I$66)","v":""},{"$f":"IF(A65=\"\",\"\",'1. Checklist & Certification'!$I$67)","v":""},{"$f":"IF(A65=\"\",\"\",'1. Checklist & Certification'!$I$68)","v":""},{"$f":"IF(A65=\"\",\"\",'1. Checklist & Certification'!$B$69)","v":""},{"$f":"IF(A65=\"\",\"\",'1. Checklist & Certification'!$C$69)","v":""},{"$f":"IF(A65=\"\",\"\",'1. Checklist & Certification'!$F$69)","v":""},{"$f":"IF(A65=\"\",\"\",'1. Checklist & Certification'!$G$69)","v":""},{"$f":"IF(A65=\"\",\"\",'1. Checklist & Certification'!$J$69)","v":""},{"$f":"IF(A65=\"\",\"\",'1. Checklist & Certification'!$K$69)","v":""},null,null,{"$f":"IF(AND(OR('1. Checklist & Certification'!$M$16=1,'1. Checklist & Certification'!$M$19=2),AO65>0,B65=\"\",I65>0,AQ65<I65,AV65<>\"Sec 8-Project\"),\"X\",IF(AND(OR('1. Checklist & Certification'!$M$20=4,'1. Checklist & Certification'!$M$21=5,'1. Checklist & Certification'!$M$22=7),AO65>0,B65=\"\",I65>0,K65<I65),\"X\",\"\"))","v":""},{"$f":"IF(A65=\"\",\"\",IF(SUMPRODUCT(-- (ISNUMBER(SEARCH({\"*AHSC*\",\"*FMTW*\",\"*FWHG*\",\"*GHI*\",\"*HHC*\",\"*HLCP*\",\"*HOME*\",\"*LPR*\",\"*MHP*\",\"*NHTF*\",\"*NSP*\",\"*PRP*\",\"*TOD*\",\"*VHHP*\"},'1. Checklist & Certification'!$L$7)))),\"MHP\",\"Legacy\"))","v":""},",,",null,null,null,{"$f":"IF('1. Checklist & Certification'!$M$20=4,\"Both\",IF(OR('1. Checklist & Certification'!$M$15>0,S65=\"CHRP-R\",U65=\"CHRP-R\",W65=\"CHRP-R\",Y65=\"CHRP-R\"),\"Under\",\"No\"))","v":"No"},"No","No",{"$f":"_xlfn.IFS(D65=\"\",\"\",D65=1,'MHP Family Income & Rent Limits'!$E$17,D65=2,'MHP Family Income & Rent Limits'!$F$17,D65=3,'MHP Family Income & Rent Limits'!$G$17,D65=4,'MHP Family Income & Rent Limits'!$H$17,D65=5,'MHP Family Income & Rent Limits'!$I$17,D65=6,'MHP Family Income & Rent Limits'!$J$17,D65=7,'MHP Family Income & Rent Limits'!$K$17,D65=8,'MHP Family Income & Rent Limits'!$L$17)","v":""},"",{"$f":"IF(OR(A65=0,B65=\"X\"),0,MIN(IF(AA65:AD65<>0,AA65:AD65)))","v":0},{"$f":"IF(OR(H65=\"\",I65=\"\"),0,IF(H65*0.3/12>I65,MIN(H65*0.3/12,I65*1.1)+AP65,I65*(1+(VLOOKUP('1. Checklist & Certification'!$F$9,'HLCP-E Rent Change'!$A$1:$D$59,4,FALSE)))+AP65))","v":0}]
[null,null,null,null,null,null,null,null,null,null,null,null,null,null,null,null,null,null,null,null,null,null,null,null,null,null,0,0,0,0,0,0,0,0,{"$f":"IF(OR(A66=0,B66=\"X\"),0,IF(OR(S66=\"FHDP\",S66=\"RHCP-B\",U66=\"FHDP\",U66=\"RHCP-B\",W66=\"FHDP\",W66=\"RHCP-B\",Y66=\"FHDP\",Y66=\"RHCP-B\"),TRUNC((MIN(I66,K66)*(1+'1. Checklist & Certification'!$K$43)+AP66)),0))","v":0},{"$f":"IF(OR(A66=0,B66=\"X\"),0,IF(OR(S66=\"CHRP-R\",S66=\"SERA\",S66=\"SUHRP\",U66=\"CHRP-R\",U66=\"SERA\",U66=\"SUHRP\",W66=\"CHRP-R\",W66=\"SERA\",W66=\"SUHRP\",Y66=\"CHRP-R\",Y66=\"SERA\",Y66=\"SUHRP\"),TRUNC((MIN(I66,K66)*(1+'1. Checklist & Certification'!$K$49))),0))","v":0},{"$f":"IF(OR(A66=0,B66=\"X\"),0,IF(OR(S66=\"CALDAP\",S66=\"DPRLP\",U66=\"CALDAP\",U66=\"DPRLP\",W66=\"CALDAP\",W66=\"DPRLP\",Y66=\"CALDAP\",Y66=\"DPRLP\"),TRUNC(((MIN(I66,K66))*(1+'1. Checklist & Certification'!$G$4))),0))","v":0},0,0,0,{"$f":"IF(OR(A66=0,B66=\"X\"),0,IF(OR(S66=\"PRP\",S66=\"LPR\",U66=\"PRP\",U66=\"LPR\",W66=\"PRP\",W66=\"LPR\",Y66=\"PRP\",Y66=\"LPR\"),MAX(I66+AP66,MIN(IF(AE66:AN66<>0,AE66:AN66))),MIN(IF(AE66:AN66<>0,AE66:AN66))))","v":0},{"$f":"IF(A66=0,0,IF(AND(OR(S66=\"Mgr\",S66=0),OR(U66=\"Mgr\",U66=0),OR(W66=\"Mgr\",W66=0)),0,IF(LEFT($A66,2)=\"B*\",VLOOKUP($E66,'1. Checklist & Certification'!$D$26:$E$32,2),IF(LEFT($A66,2)=\"C*\",VLOOKUP($E66,'1. Checklist & Certification'!$F$26:$G$32,2),IF(LEFT($A66,2)=\"D*\",VLOOKUP($E66,'1. Checklist & Certification'!$H$26:$I$32,2),IF(LEFT($A66,2)=\"E*\",VLOOKUP($E66,'1. Checklist & Certification'!$J$26:$K$32,2),VLOOKUP($E66,'1. Checklist & Certification'!$A$26:$B$32,2)))))))","v":0},0,0,null,null,null,null,"","",0,0,0,null,{"$f":"IF(A66=\"\",\"\",'1. Checklist & Certification'!$K$1)","v":""},{"$f":"IF(A66=\"\",\"\",'1. Checklist & Certification'!$C$62)","v":""},{"$f":"IF(A66=\"\",\"\",'1. Checklist & Certification'!$C$6)","v":""},{"$f":"IF(A66=\"\",\"\",'1. Checklist & Certification'!$G$5)","v":""},{"$f":"IFERROR(IF(A66=\"\",\"\",\n_xlfn.LET(_xlpm.Contract,'1. Checklist & Certification'!$C$7,\n_xlpm.Yr,TEXT(MOD(_xlfn.TEXTBEFORE(_xlpm.Contract,\"-\"),100),\"00\"),\n_xlpm.Program,_xlfn.TEXTAFTER(_xlfn.TEXTBEFORE(_xlpm.Contract,\"-\",2),\"-\"),\n_xlpm.CleanProgram,_xlfn.XLOOKUP(_xlpm.Program,SpellCheck[Input],SpellCheck[Correction],_xlpm.Program),\n_xlpm.Number,TEXT(_xlfn.TEXTAFTER(_xlpm.Contract,\"-\",2),\"0000\"),\n_xlfn.CONCAT(_xlpm.Yr,\"-\",_xlpm.CleanProgram,\"-\",_xlpm.Number))\n),\"\")","v":""},{"$f":"IFERROR(IF(A66=\"\",\"\",\n_xlfn.LET(_xlpm.Contract,'1. Checklist & Certification'!$C$8,\n_xlpm.Yr,TEXT(MOD(_xlfn.TEXTBEFORE(_xlpm.Contract,\"-\"),100),\"00\"),\n_xlpm.Program,_xlfn.TEXTAFTER(_xlfn.TEXTBEFORE(_xlpm.Contract,\"-\",2),\"-\"),\n_xlpm.CleanProgram,_xlfn.XLOOKUP(_xlpm.Program,SpellCheck[Input],SpellCheck[Correction],_xlpm.Program),\n_xlpm.Number,TEXT(_xlfn.TEXTAFTER(_xlpm.Contract,\"-\",2),\"0000\"),\n_xlfn.CONCAT(_xlpm.Yr,\"-\",_xlpm.CleanProgram,\"-\",_xlpm.Number))\n),\"\")","v":""},{"$f":"IFERROR(IF(A66=\"\",\"\",\n_xlfn.LET(_xlpm.Contract,'1. Checklist & Certification'!$F$7,\n_xlpm.Yr,TEXT(MOD(_xlfn.TEXTBEFORE(_xlpm.Contract,\"-\"),100),\"00\"),\n_xlpm.Program,_xlfn.TEXTAFTER(_xlfn.TEXTBEFORE(_xlpm.Contract,\"-\",2),\"-\"),\n_xlpm.CleanProgram,_xlfn.XLOOKUP(_xlpm.Program,SpellCheck[Input],SpellCheck[Correction],_xlpm.Program),\n_xlpm.Number,TEXT(_xlfn.TEXTAFTER(_xlpm.Contract,\"-\",2),\"0000\"),\n_xlfn.CONCAT(_xlpm.Yr,\"-\",_xlpm.CleanProgram,\"-\",_xlpm.Number))\n),\"\")","v":""},{"$f":"IFERROR(IF(A66=\"\",\"\",\n_xlfn.LET(_xlpm.Contract,'1. Checklist & Certification'!$F$8,\n_xlpm.Yr,TEXT(MOD(_xlfn.TEXTBEFORE(_xlpm.Contract,\"-\"),100),\"00\"),\n_xlpm.Program,_xlfn.TEXTAFTER(_xlfn.TEXTBEFORE(_xlpm.Contract,\"-\",2),\"-\"),\n_xlpm.CleanProgram,_xlfn.XLOOKUP(_xlpm.Program,SpellCheck[Input],SpellCheck[Correction],_xlpm.Program),\n_xlpm.Number,TEXT(_xlfn.TEXTAFTER(_xlpm.Contract,\"-\",2),\"0000\"),\n_xlfn.CONCAT(_xlpm.Yr,\"-\",_xlpm.CleanProgram,\"-\",_xlpm.Number))\n),\"\")","v":""},{"$f":"IF(A66=\"\",\"\",'1. Checklist & Certification'!$B$9)","v":""},{"$f":"IF(A66=\"\",\"\",'1. Checklist & Certification'!$F$9)","v":""},{"$f":"IF(A66=\"\",\"\",'1. Checklist & Certification'!$C$10)","v":""},{"$f":"IF(A66=\"\",\"\",'1. Checklist & Certification'!$C$11)","v":""},{"$f":"IF(A66=\"\",\"\",'1. Checklist & Certification'!$C$12)","v":""},{"$f":"IF(A66=\"\",\"\",'1. Checklist & Certification'!$B$14)","v":""},{"$f":"IF(A66=\"\",\"\",'1. Checklist & Certification'!$E$14)","v":""},{"$f":"IF(B66=\"\",\"\",'1. Checklist & Certification'!$G$14)","v":""},{"$f":"IF(A66=\"\",\"\",'MHP Family Income & Rent Limits'!$B$3)","v":""},{"$f":"IF(A66=\"\",\"\",'MHP Family Income & Rent Limits'!$J$3)","v":""},{"$f":"IF(A66=\"\",\"\",'MHP Family Income & Rent Limits'!$E$4)","v":""},{"$f":"IF(A66=\"\",\"\",'MHP Family Income & Rent Limits'!$C$7)","v":""},{"$f":"IF(A66=\"\",\"\",'MHP Family Income & Rent Limits'!$F$8)","v":""},{"$f":"IF(A66=\"\",\"\",'1. Checklist & Certification'!$G$4)","v":""},{"$f":"IF(A66=\"\",\"\",'1. Checklist & Certification'!$K$39)","v":""},{"$f":"IF(A66=\"\",\"\",'1. Checklist & Certification'!$K$43)","v":""},{"$f":"IF(A66=\"\",\"\",'1. Checklist & Certification'!$K$45)","v":""},{"$f":"IF(A66=\"\",\"\",'1. Checklist & Certification'!$K$49)","v":""},{"$f":"IF(A66=\"\",\"\",'1. Checklist & Certification'!$K$62)","v":""},{"$f":"IF(A66=\"\",\"\",'1. Checklist & Certification'!$E$66)","v":""},{"$f":"IF(A66=\"\",\"\",'1. Checklist & Certification'!$E$67)","v":""},{"$f":"IF(A66=\"\",\"\",'1. Checklist & Certification'!$E$68)","v":""},{"$f":"IF(A66=\"\",\"\",'1. Checklist & Certification'!$G$66)","v":""},{"$f":"IF(A66=\"\",\"\",'1. Checklist & Certification'!$H$66)","v":""},{"$f":"IF(A66=\"\",\"\",'1. Checklist & Certification'!$I$66)","v":""},{"$f":"IF(A66=\"\",\"\",'1. Checklist & Certification'!$I$67)","v":""},{"$f":"IF(A66=\"\",\"\",'1. Checklist & Certification'!$I$68)","v":""},{"$f":"IF(A66=\"\",\"\",'1. Checklist & Certification'!$B$69)","v":""},{"$f":"IF(A66=\"\",\"\",'1. Checklist & Certification'!$C$69)","v":""},{"$f":"IF(A66=\"\",\"\",'1. Checklist & Certification'!$F$69)","v":""},{"$f":"IF(A66=\"\",\"\",'1. Checklist & Certification'!$G$69)","v":""},{"$f":"IF(A66=\"\",\"\",'1. Checklist & Certification'!$J$69)","v":""},{"$f":"IF(A66=\"\",\"\",'1. Checklist & Certification'!$K$69)","v":""},null,null,{"$f":"IF(AND(OR('1. Checklist & Certification'!$M$16=1,'1. Checklist & Certification'!$M$19=2),AO66>0,B66=\"\",I66>0,AQ66<I66,AV66<>\"Sec 8-Project\"),\"X\",IF(AND(OR('1. Checklist & Certification'!$M$20=4,'1. Checklist & Certification'!$M$21=5,'1. Checklist & Certification'!$M$22=7),AO66>0,B66=\"\",I66>0,K66<I66),\"X\",\"\"))","v":""},{"$f":"IF(A66=\"\",\"\",IF(SUMPRODUCT(-- (ISNUMBER(SEARCH({\"*AHSC*\",\"*FMTW*\",\"*FWHG*\",\"*GHI*\",\"*HHC*\",\"*HLCP*\",\"*HOME*\",\"*LPR*\",\"*MHP*\",\"*NHTF*\",\"*NSP*\",\"*PRP*\",\"*TOD*\",\"*VHHP*\"},'1. Checklist & Certification'!$L$7)))),\"MHP\",\"Legacy\"))","v":""},",,",null,null,null,{"$f":"IF('1. Checklist & Certification'!$M$20=4,\"Both\",IF(OR('1. Checklist & Certification'!$M$15>0,S66=\"CHRP-R\",U66=\"CHRP-R\",W66=\"CHRP-R\",Y66=\"CHRP-R\"),\"Under\",\"No\"))","v":"No"},"No","No",{"$f":"_xlfn.IFS(D66=\"\",\"\",D66=1,'MHP Family Income & Rent Limits'!$E$17,D66=2,'MHP Family Income & Rent Limits'!$F$17,D66=3,'MHP Family Income & Rent Limits'!$G$17,D66=4,'MHP Family Income & Rent Limits'!$H$17,D66=5,'MHP Family Income & Rent Limits'!$I$17,D66=6,'MHP Family Income & Rent Limits'!$J$17,D66=7,'MHP Family Income & Rent Limits'!$K$17,D66=8,'MHP Family Income & Rent Limits'!$L$17)","v":""},"",{"$f":"IF(OR(A66=0,B66=\"X\"),0,MIN(IF(AA66:AD66<>0,AA66:AD66)))","v":0},{"$f":"IF(OR(H66=\"\",I66=\"\"),0,IF(H66*0.3/12>I66,MIN(H66*0.3/12,I66*1.1)+AP66,I66*(1+(VLOOKUP('1. Checklist & Certification'!$F$9,'HLCP-E Rent Change'!$A$1:$D$59,4,FALSE)))+AP66))","v":0}]
[null,null,null,null,null,null,null,null,null,null,null,null,null,null,null,null,null,null,null,null,null,null,null,null,null,null,0,0,0,0,0,0,0,0,{"$f":"IF(OR(A67=0,B67=\"X\"),0,IF(OR(S67=\"FHDP\",S67=\"RHCP-B\",U67=\"FHDP\",U67=\"RHCP-B\",W67=\"FHDP\",W67=\"RHCP-B\",Y67=\"FHDP\",Y67=\"RHCP-B\"),TRUNC((MIN(I67,K67)*(1+'1. Checklist & Certification'!$K$43)+AP67)),0))","v":0},{"$f":"IF(OR(A67=0,B67=\"X\"),0,IF(OR(S67=\"CHRP-R\",S67=\"SERA\",S67=\"SUHRP\",U67=\"CHRP-R\",U67=\"SERA\",U67=\"SUHRP\",W67=\"CHRP-R\",W67=\"SERA\",W67=\"SUHRP\",Y67=\"CHRP-R\",Y67=\"SERA\",Y67=\"SUHRP\"),TRUNC((MIN(I67,K67)*(1+'1. Checklist & Certification'!$K$49))),0))","v":0},{"$f":"IF(OR(A67=0,B67=\"X\"),0,IF(OR(S67=\"CALDAP\",S67=\"DPRLP\",U67=\"CALDAP\",U67=\"DPRLP\",W67=\"CALDAP\",W67=\"DPRLP\",Y67=\"CALDAP\",Y67=\"DPRLP\"),TRUNC(((MIN(I67,K67))*(1+'1. Checklist & Certification'!$G$4))),0))","v":0},0,0,0,{"$f":"IF(OR(A67=0,B67=\"X\"),0,IF(OR(S67=\"PRP\",S67=\"LPR\",U67=\"PRP\",U67=\"LPR\",W67=\"PRP\",W67=\"LPR\",Y67=\"PRP\",Y67=\"LPR\"),MAX(I67+AP67,MIN(IF(AE67:AN67<>0,AE67:AN67))),MIN(IF(AE67:AN67<>0,AE67:AN67))))","v":0},{"$f":"IF(A67=0,0,IF(AND(OR(S67=\"Mgr\",S67=0),OR(U67=\"Mgr\",U67=0),OR(W67=\"Mgr\",W67=0)),0,IF(LEFT($A67,2)=\"B*\",VLOOKUP($E67,'1. Checklist & Certification'!$D$26:$E$32,2),IF(LEFT($A67,2)=\"C*\",VLOOKUP($E67,'1. Checklist & Certification'!$F$26:$G$32,2),IF(LEFT($A67,2)=\"D*\",VLOOKUP($E67,'1. Checklist & Certification'!$H$26:$I$32,2),IF(LEFT($A67,2)=\"E*\",VLOOKUP($E67,'1. Checklist & Certification'!$J$26:$K$32,2),VLOOKUP($E67,'1. Checklist & Certification'!$A$26:$B$32,2)))))))","v":0},0,0,null,null,null,null,"","",0,0,0,null,{"$f":"IF(A67=\"\",\"\",'1. Checklist & Certification'!$K$1)","v":""},{"$f":"IF(A67=\"\",\"\",'1. Checklist & Certification'!$C$62)","v":""},{"$f":"IF(A67=\"\",\"\",'1. Checklist & Certification'!$C$6)","v":""},{"$f":"IF(A67=\"\",\"\",'1. Checklist & Certification'!$G$5)","v":""},{"$f":"IFERROR(IF(A67=\"\",\"\",\n_xlfn.LET(_xlpm.Contract,'1. Checklist & Certification'!$C$7,\n_xlpm.Yr,TEXT(MOD(_xlfn.TEXTBEFORE(_xlpm.Contract,\"-\"),100),\"00\"),\n_xlpm.Program,_xlfn.TEXTAFTER(_xlfn.TEXTBEFORE(_xlpm.Contract,\"-\",2),\"-\"),\n_xlpm.CleanProgram,_xlfn.XLOOKUP(_xlpm.Program,SpellCheck[Input],SpellCheck[Correction],_xlpm.Program),\n_xlpm.Number,TEXT(_xlfn.TEXTAFTER(_xlpm.Contract,\"-\",2),\"0000\"),\n_xlfn.CONCAT(_xlpm.Yr,\"-\",_xlpm.CleanProgram,\"-\",_xlpm.Number))\n),\"\")","v":""},{"$f":"IFERROR(IF(A67=\"\",\"\",\n_xlfn.LET(_xlpm.Contract,'1. Checklist & Certification'!$C$8,\n_xlpm.Yr,TEXT(MOD(_xlfn.TEXTBEFORE(_xlpm.Contract,\"-\"),100),\"00\"),\n_xlpm.Program,_xlfn.TEXTAFTER(_xlfn.TEXTBEFORE(_xlpm.Contract,\"-\",2),\"-\"),\n_xlpm.CleanProgram,_xlfn.XLOOKUP(_xlpm.Program,SpellCheck[Input],SpellCheck[Correction],_xlpm.Program),\n_xlpm.Number,TEXT(_xlfn.TEXTAFTER(_xlpm.Contract,\"-\",2),\"0000\"),\n_xlfn.CONCAT(_xlpm.Yr,\"-\",_xlpm.CleanProgram,\"-\",_xlpm.Number))\n),\"\")","v":""},{"$f":"IFERROR(IF(A67=\"\",\"\",\n_xlfn.LET(_xlpm.Contract,'1. Checklist & Certification'!$F$7,\n_xlpm.Yr,TEXT(MOD(_xlfn.TEXTBEFORE(_xlpm.Contract,\"-\"),100),\"00\"),\n_xlpm.Program,_xlfn.TEXTAFTER(_xlfn.TEXTBEFORE(_xlpm.Contract,\"-\",2),\"-\"),\n_xlpm.CleanProgram,_xlfn.XLOOKUP(_xlpm.Program,SpellCheck[Input],SpellCheck[Correction],_xlpm.Program),\n_xlpm.Number,TEXT(_xlfn.TEXTAFTER(_xlpm.Contract,\"-\",2),\"0000\"),\n_xlfn.CONCAT(_xlpm.Yr,\"-\",_xlpm.CleanProgram,\"-\",_xlpm.Number))\n),\"\")","v":""},{"$f":"IFERROR(IF(A67=\"\",\"\",\n_xlfn.LET(_xlpm.Contract,'1. Checklist & Certification'!$F$8,\n_xlpm.Yr,TEXT(MOD(_xlfn.TEXTBEFORE(_xlpm.Contract,\"-\"),100),\"00\"),\n_xlpm.Program,_xlfn.TEXTAFTER(_xlfn.TEXTBEFORE(_xlpm.Contract,\"-\",2),\"-\"),\n_xlpm.CleanProgram,_xlfn.XLOOKUP(_xlpm.Program,SpellCheck[Input],SpellCheck[Correction],_xlpm.Program),\n_xlpm.Number,TEXT(_xlfn.TEXTAFTER(_xlpm.Contract,\"-\",2),\"0000\"),\n_xlfn.CONCAT(_xlpm.Yr,\"-\",_xlpm.CleanProgram,\"-\",_xlpm.Number))\n),\"\")","v":""},{"$f":"IF(A67=\"\",\"\",'1. Checklist & Certification'!$B$9)","v":""},{"$f":"IF(A67=\"\",\"\",'1. Checklist & Certification'!$F$9)","v":""},{"$f":"IF(A67=\"\",\"\",'1. Checklist & Certification'!$C$10)","v":""},{"$f":"IF(A67=\"\",\"\",'1. Checklist & Certification'!$C$11)","v":""},{"$f":"IF(A67=\"\",\"\",'1. Checklist & Certification'!$C$12)","v":""},{"$f":"IF(A67=\"\",\"\",'1. Checklist & Certification'!$B$14)","v":""},{"$f":"IF(A67=\"\",\"\",'1. Checklist & Certification'!$E$14)","v":""},{"$f":"IF(B67=\"\",\"\",'1. Checklist & Certification'!$G$14)","v":""},{"$f":"IF(A67=\"\",\"\",'MHP Family Income & Rent Limits'!$B$3)","v":""},{"$f":"IF(A67=\"\",\"\",'MHP Family Income & Rent Limits'!$J$3)","v":""},{"$f":"IF(A67=\"\",\"\",'MHP Family Income & Rent Limits'!$E$4)","v":""},{"$f":"IF(A67=\"\",\"\",'MHP Family Income & Rent Limits'!$C$7)","v":""},{"$f":"IF(A67=\"\",\"\",'MHP Family Income & Rent Limits'!$F$8)","v":""},{"$f":"IF(A67=\"\",\"\",'1. Checklist & Certification'!$G$4)","v":""},{"$f":"IF(A67=\"\",\"\",'1. Checklist & Certification'!$K$39)","v":""},{"$f":"IF(A67=\"\",\"\",'1. Checklist & Certification'!$K$43)","v":""},{"$f":"IF(A67=\"\",\"\",'1. Checklist & Certification'!$K$45)","v":""},{"$f":"IF(A67=\"\",\"\",'1. Checklist & Certification'!$K$49)","v":""},{"$f":"IF(A67=\"\",\"\",'1. Checklist & Certification'!$K$62)","v":""},{"$f":"IF(A67=\"\",\"\",'1. Checklist & Certification'!$E$66)","v":""},{"$f":"IF(A67=\"\",\"\",'1. Checklist & Certification'!$E$67)","v":""},{"$f":"IF(A67=\"\",\"\",'1. Checklist & Certification'!$E$68)","v":""},{"$f":"IF(A67=\"\",\"\",'1. Checklist & Certification'!$G$66)","v":""},{"$f":"IF(A67=\"\",\"\",'1. Checklist & Certification'!$H$66)","v":""},{"$f":"IF(A67=\"\",\"\",'1. Checklist & Certification'!$I$66)","v":""},{"$f":"IF(A67=\"\",\"\",'1. Checklist & Certification'!$I$67)","v":""},{"$f":"IF(A67=\"\",\"\",'1. Checklist & Certification'!$I$68)","v":""},{"$f":"IF(A67=\"\",\"\",'1. Checklist & Certification'!$B$69)","v":""},{"$f":"IF(A67=\"\",\"\",'1. Checklist & Certification'!$C$69)","v":""},{"$f":"IF(A67=\"\",\"\",'1. Checklist & Certification'!$F$69)","v":""},{"$f":"IF(A67=\"\",\"\",'1. Checklist & Certification'!$G$69)","v":""},{"$f":"IF(A67=\"\",\"\",'1. Checklist & Certification'!$J$69)","v":""},{"$f":"IF(A67=\"\",\"\",'1. Checklist & Certification'!$K$69)","v":""},null,null,{"$f":"IF(AND(OR('1. Checklist & Certification'!$M$16=1,'1. Checklist & Certification'!$M$19=2),AO67>0,B67=\"\",I67>0,AQ67<I67,AV67<>\"Sec 8-Project\"),\"X\",IF(AND(OR('1. Checklist & Certification'!$M$20=4,'1. Checklist & Certification'!$M$21=5,'1. Checklist & Certification'!$M$22=7),AO67>0,B67=\"\",I67>0,K67<I67),\"X\",\"\"))","v":""},{"$f":"IF(A67=\"\",\"\",IF(SUMPRODUCT(-- (ISNUMBER(SEARCH({\"*AHSC*\",\"*FMTW*\",\"*FWHG*\",\"*GHI*\",\"*HHC*\",\"*HLCP*\",\"*HOME*\",\"*LPR*\",\"*MHP*\",\"*NHTF*\",\"*NSP*\",\"*PRP*\",\"*TOD*\",\"*VHHP*\"},'1. Checklist & Certification'!$L$7)))),\"MHP\",\"Legacy\"))","v":""},",,",null,null,null,{"$f":"IF('1. Checklist & Certification'!$M$20=4,\"Both\",IF(OR('1. Checklist & Certification'!$M$15>0,S67=\"CHRP-R\",U67=\"CHRP-R\",W67=\"CHRP-R\",Y67=\"CHRP-R\"),\"Under\",\"No\"))","v":"No"},"No","No",{"$f":"_xlfn.IFS(D67=\"\",\"\",D67=1,'MHP Family Income & Rent Limits'!$E$17,D67=2,'MHP Family Income & Rent Limits'!$F$17,D67=3,'MHP Family Income & Rent Limits'!$G$17,D67=4,'MHP Family Income & Rent Limits'!$H$17,D67=5,'MHP Family Income & Rent Limits'!$I$17,D67=6,'MHP Family Income & Rent Limits'!$J$17,D67=7,'MHP Family Income & Rent Limits'!$K$17,D67=8,'MHP Family Income & Rent Limits'!$L$17)","v":""},"",{"$f":"IF(OR(A67=0,B67=\"X\"),0,MIN(IF(AA67:AD67<>0,AA67:AD67)))","v":0},{"$f":"IF(OR(H67=\"\",I67=\"\"),0,IF(H67*0.3/12>I67,MIN(H67*0.3/12,I67*1.1)+AP67,I67*(1+(VLOOKUP('1. Checklist & Certification'!$F$9,'HLCP-E Rent Change'!$A$1:$D$59,4,FALSE)))+AP67))","v":0}]
[null,null,null,null,null,null,null,null,null,null,null,null,null,null,null,null,null,null,null,null,null,null,null,null,null,null,0,0,0,0,0,0,0,0,{"$f":"IF(OR(A68=0,B68=\"X\"),0,IF(OR(S68=\"FHDP\",S68=\"RHCP-B\",U68=\"FHDP\",U68=\"RHCP-B\",W68=\"FHDP\",W68=\"RHCP-B\",Y68=\"FHDP\",Y68=\"RHCP-B\"),TRUNC((MIN(I68,K68)*(1+'1. Checklist & Certification'!$K$43)+AP68)),0))","v":0},{"$f":"IF(OR(A68=0,B68=\"X\"),0,IF(OR(S68=\"CHRP-R\",S68=\"SERA\",S68=\"SUHRP\",U68=\"CHRP-R\",U68=\"SERA\",U68=\"SUHRP\",W68=\"CHRP-R\",W68=\"SERA\",W68=\"SUHRP\",Y68=\"CHRP-R\",Y68=\"SERA\",Y68=\"SUHRP\"),TRUNC((MIN(I68,K68)*(1+'1. Checklist & Certification'!$K$49))),0))","v":0},{"$f":"IF(OR(A68=0,B68=\"X\"),0,IF(OR(S68=\"CALDAP\",S68=\"DPRLP\",U68=\"CALDAP\",U68=\"DPRLP\",W68=\"CALDAP\",W68=\"DPRLP\",Y68=\"CALDAP\",Y68=\"DPRLP\"),TRUNC(((MIN(I68,K68))*(1+'1. Checklist & Certification'!$G$4))),0))","v":0},0,0,0,{"$f":"IF(OR(A68=0,B68=\"X\"),0,IF(OR(S68=\"PRP\",S68=\"LPR\",U68=\"PRP\",U68=\"LPR\",W68=\"PRP\",W68=\"LPR\",Y68=\"PRP\",Y68=\"LPR\"),MAX(I68+AP68,MIN(IF(AE68:AN68<>0,AE68:AN68))),MIN(IF(AE68:AN68<>0,AE68:AN68))))","v":0},{"$f":"IF(A68=0,0,IF(AND(OR(S68=\"Mgr\",S68=0),OR(U68=\"Mgr\",U68=0),OR(W68=\"Mgr\",W68=0)),0,IF(LEFT($A68,2)=\"B*\",VLOOKUP($E68,'1. Checklist & Certification'!$D$26:$E$32,2),IF(LEFT($A68,2)=\"C*\",VLOOKUP($E68,'1. Checklist & Certification'!$F$26:$G$32,2),IF(LEFT($A68,2)=\"D*\",VLOOKUP($E68,'1. Checklist & Certification'!$H$26:$I$32,2),IF(LEFT($A68,2)=\"E*\",VLOOKUP($E68,'1. Checklist & Certification'!$J$26:$K$32,2),VLOOKUP($E68,'1. Checklist & Certification'!$A$26:$B$32,2)))))))","v":0},0,0,null,null,null,null,"","",0,0,0,null,{"$f":"IF(A68=\"\",\"\",'1. Checklist & Certification'!$K$1)","v":""},{"$f":"IF(A68=\"\",\"\",'1. Checklist & Certification'!$C$62)","v":""},{"$f":"IF(A68=\"\",\"\",'1. Checklist & Certification'!$C$6)","v":""},{"$f":"IF(A68=\"\",\"\",'1. Checklist & Certification'!$G$5)","v":""},{"$f":"IFERROR(IF(A68=\"\",\"\",\n_xlfn.LET(_xlpm.Contract,'1. Checklist & Certification'!$C$7,\n_xlpm.Yr,TEXT(MOD(_xlfn.TEXTBEFORE(_xlpm.Contract,\"-\"),100),\"00\"),\n_xlpm.Program,_xlfn.TEXTAFTER(_xlfn.TEXTBEFORE(_xlpm.Contract,\"-\",2),\"-\"),\n_xlpm.CleanProgram,_xlfn.XLOOKUP(_xlpm.Program,SpellCheck[Input],SpellCheck[Correction],_xlpm.Program),\n_xlpm.Number,TEXT(_xlfn.TEXTAFTER(_xlpm.Contract,\"-\",2),\"0000\"),\n_xlfn.CONCAT(_xlpm.Yr,\"-\",_xlpm.CleanProgram,\"-\",_xlpm.Number))\n),\"\")","v":""},{"$f":"IFERROR(IF(A68=\"\",\"\",\n_xlfn.LET(_xlpm.Contract,'1. Checklist & Certification'!$C$8,\n_xlpm.Yr,TEXT(MOD(_xlfn.TEXTBEFORE(_xlpm.Contract,\"-\"),100),\"00\"),\n_xlpm.Program,_xlfn.TEXTAFTER(_xlfn.TEXTBEFORE(_xlpm.Contract,\"-\",2),\"-\"),\n_xlpm.CleanProgram,_xlfn.XLOOKUP(_xlpm.Program,SpellCheck[Input],SpellCheck[Correction],_xlpm.Program),\n_xlpm.Number,TEXT(_xlfn.TEXTAFTER(_xlpm.Contract,\"-\",2),\"0000\"),\n_xlfn.CONCAT(_xlpm.Yr,\"-\",_xlpm.CleanProgram,\"-\",_xlpm.Number))\n),\"\")","v":""},{"$f":"IFERROR(IF(A68=\"\",\"\",\n_xlfn.LET(_xlpm.Contract,'1. Checklist & Certification'!$F$7,\n_xlpm.Yr,TEXT(MOD(_xlfn.TEXTBEFORE(_xlpm.Contract,\"-\"),100),\"00\"),\n_xlpm.Program,_xlfn.TEXTAFTER(_xlfn.TEXTBEFORE(_xlpm.Contract,\"-\",2),\"-\"),\n_xlpm.CleanProgram,_xlfn.XLOOKUP(_xlpm.Program,SpellCheck[Input],SpellCheck[Correction],_xlpm.Program),\n_xlpm.Number,TEXT(_xlfn.TEXTAFTER(_xlpm.Contract,\"-\",2),\"0000\"),\n_xlfn.CONCAT(_xlpm.Yr,\"-\",_xlpm.CleanProgram,\"-\",_xlpm.Number))\n),\"\")","v":""},{"$f":"IFERROR(IF(A68=\"\",\"\",\n_xlfn.LET(_xlpm.Contract,'1. Checklist & Certification'!$F$8,\n_xlpm.Yr,TEXT(MOD(_xlfn.TEXTBEFORE(_xlpm.Contract,\"-\"),100),\"00\"),\n_xlpm.Program,_xlfn.TEXTAFTER(_xlfn.TEXTBEFORE(_xlpm.Contract,\"-\",2),\"-\"),\n_xlpm.CleanProgram,_xlfn.XLOOKUP(_xlpm.Program,SpellCheck[Input],SpellCheck[Correction],_xlpm.Program),\n_xlpm.Number,TEXT(_xlfn.TEXTAFTER(_xlpm.Contract,\"-\",2),\"0000\"),\n_xlfn.CONCAT(_xlpm.Yr,\"-\",_xlpm.CleanProgram,\"-\",_xlpm.Number))\n),\"\")","v":""},{"$f":"IF(A68=\"\",\"\",'1. Checklist & Certification'!$B$9)","v":""},{"$f":"IF(A68=\"\",\"\",'1. Checklist & Certification'!$F$9)","v":""},{"$f":"IF(A68=\"\",\"\",'1. Checklist & Certification'!$C$10)","v":""},{"$f":"IF(A68=\"\",\"\",'1. Checklist & Certification'!$C$11)","v":""},{"$f":"IF(A68=\"\",\"\",'1. Checklist & Certification'!$C$12)","v":""},{"$f":"IF(A68=\"\",\"\",'1. Checklist & Certification'!$B$14)","v":""},{"$f":"IF(A68=\"\",\"\",'1. Checklist & Certification'!$E$14)","v":""},{"$f":"IF(B68=\"\",\"\",'1. Checklist & Certification'!$G$14)","v":""},{"$f":"IF(A68=\"\",\"\",'MHP Family Income & Rent Limits'!$B$3)","v":""},{"$f":"IF(A68=\"\",\"\",'MHP Family Income & Rent Limits'!$J$3)","v":""},{"$f":"IF(A68=\"\",\"\",'MHP Family Income & Rent Limits'!$E$4)","v":""},{"$f":"IF(A68=\"\",\"\",'MHP Family Income & Rent Limits'!$C$7)","v":""},{"$f":"IF(A68=\"\",\"\",'MHP Family Income & Rent Limits'!$F$8)","v":""},{"$f":"IF(A68=\"\",\"\",'1. Checklist & Certification'!$G$4)","v":""},{"$f":"IF(A68=\"\",\"\",'1. Checklist & Certification'!$K$39)","v":""},{"$f":"IF(A68=\"\",\"\",'1. Checklist & Certification'!$K$43)","v":""},{"$f":"IF(A68=\"\",\"\",'1. Checklist & Certification'!$K$45)","v":""},{"$f":"IF(A68=\"\",\"\",'1. Checklist & Certification'!$K$49)","v":""},{"$f":"IF(A68=\"\",\"\",'1. Checklist & Certification'!$K$62)","v":""},{"$f":"IF(A68=\"\",\"\",'1. Checklist & Certification'!$E$66)","v":""},{"$f":"IF(A68=\"\",\"\",'1. Checklist & Certification'!$E$67)","v":""},{"$f":"IF(A68=\"\",\"\",'1. Checklist & Certification'!$E$68)","v":""},{"$f":"IF(A68=\"\",\"\",'1. Checklist & Certification'!$G$66)","v":""},{"$f":"IF(A68=\"\",\"\",'1. Checklist & Certification'!$H$66)","v":""},{"$f":"IF(A68=\"\",\"\",'1. Checklist & Certification'!$I$66)","v":""},{"$f":"IF(A68=\"\",\"\",'1. Checklist & Certification'!$I$67)","v":""},{"$f":"IF(A68=\"\",\"\",'1. Checklist & Certification'!$I$68)","v":""},{"$f":"IF(A68=\"\",\"\",'1. Checklist & Certification'!$B$69)","v":""},{"$f":"IF(A68=\"\",\"\",'1. Checklist & Certification'!$C$69)","v":""},{"$f":"IF(A68=\"\",\"\",'1. Checklist & Certification'!$F$69)","v":""},{"$f":"IF(A68=\"\",\"\",'1. Checklist & Certification'!$G$69)","v":""},{"$f":"IF(A68=\"\",\"\",'1. Checklist & Certification'!$J$69)","v":""},{"$f":"IF(A68=\"\",\"\",'1. Checklist & Certification'!$K$69)","v":""},null,null,{"$f":"IF(AND(OR('1. Checklist & Certification'!$M$16=1,'1. Checklist & Certification'!$M$19=2),AO68>0,B68=\"\",I68>0,AQ68<I68,AV68<>\"Sec 8-Project\"),\"X\",IF(AND(OR('1. Checklist & Certification'!$M$20=4,'1. Checklist & Certification'!$M$21=5,'1. Checklist & Certification'!$M$22=7),AO68>0,B68=\"\",I68>0,K68<I68),\"X\",\"\"))","v":""},{"$f":"IF(A68=\"\",\"\",IF(SUMPRODUCT(-- (ISNUMBER(SEARCH({\"*AHSC*\",\"*FMTW*\",\"*FWHG*\",\"*GHI*\",\"*HHC*\",\"*HLCP*\",\"*HOME*\",\"*LPR*\",\"*MHP*\",\"*NHTF*\",\"*NSP*\",\"*PRP*\",\"*TOD*\",\"*VHHP*\"},'1. Checklist & Certification'!$L$7)))),\"MHP\",\"Legacy\"))","v":""},",,",null,null,null,{"$f":"IF('1. Checklist & Certification'!$M$20=4,\"Both\",IF(OR('1. Checklist & Certification'!$M$15>0,S68=\"CHRP-R\",U68=\"CHRP-R\",W68=\"CHRP-R\",Y68=\"CHRP-R\"),\"Under\",\"No\"))","v":"No"},"No","No",{"$f":"_xlfn.IFS(D68=\"\",\"\",D68=1,'MHP Family Income & Rent Limits'!$E$17,D68=2,'MHP Family Income & Rent Limits'!$F$17,D68=3,'MHP Family Income & Rent Limits'!$G$17,D68=4,'MHP Family Income & Rent Limits'!$H$17,D68=5,'MHP Family Income & Rent Limits'!$I$17,D68=6,'MHP Family Income & Rent Limits'!$J$17,D68=7,'MHP Family Income & Rent Limits'!$K$17,D68=8,'MHP Family Income & Rent Limits'!$L$17)","v":""},"",{"$f":"IF(OR(A68=0,B68=\"X\"),0,MIN(IF(AA68:AD68<>0,AA68:AD68)))","v":0},{"$f":"IF(OR(H68=\"\",I68=\"\"),0,IF(H68*0.3/12>I68,MIN(H68*0.3/12,I68*1.1)+AP68,I68*(1+(VLOOKUP('1. Checklist & Certification'!$F$9,'HLCP-E Rent Change'!$A$1:$D$59,4,FALSE)))+AP68))","v":0}]
[null,null,null,null,null,null,null,null,null,null,null,null,null,null,null,null,null,null,null,null,null,null,null,null,null,null,0,0,0,0,0,0,0,0,{"$f":"IF(OR(A69=0,B69=\"X\"),0,IF(OR(S69=\"FHDP\",S69=\"RHCP-B\",U69=\"FHDP\",U69=\"RHCP-B\",W69=\"FHDP\",W69=\"RHCP-B\",Y69=\"FHDP\",Y69=\"RHCP-B\"),TRUNC((MIN(I69,K69)*(1+'1. Checklist & Certification'!$K$43)+AP69)),0))","v":0},{"$f":"IF(OR(A69=0,B69=\"X\"),0,IF(OR(S69=\"CHRP-R\",S69=\"SERA\",S69=\"SUHRP\",U69=\"CHRP-R\",U69=\"SERA\",U69=\"SUHRP\",W69=\"CHRP-R\",W69=\"SERA\",W69=\"SUHRP\",Y69=\"CHRP-R\",Y69=\"SERA\",Y69=\"SUHRP\"),TRUNC((MIN(I69,K69)*(1+'1. Checklist & Certification'!$K$49))),0))","v":0},{"$f":"IF(OR(A69=0,B69=\"X\"),0,IF(OR(S69=\"CALDAP\",S69=\"DPRLP\",U69=\"CALDAP\",U69=\"DPRLP\",W69=\"CALDAP\",W69=\"DPRLP\",Y69=\"CALDAP\",Y69=\"DPRLP\"),TRUNC(((MIN(I69,K69))*(1+'1. Checklist & Certification'!$G$4))),0))","v":0},0,0,0,{"$f":"IF(OR(A69=0,B69=\"X\"),0,IF(OR(S69=\"PRP\",S69=\"LPR\",U69=\"PRP\",U69=\"LPR\",W69=\"PRP\",W69=\"LPR\",Y69=\"PRP\",Y69=\"LPR\"),MAX(I69+AP69,MIN(IF(AE69:AN69<>0,AE69:AN69))),MIN(IF(AE69:AN69<>0,AE69:AN69))))","v":0},{"$f":"IF(A69=0,0,IF(AND(OR(S69=\"Mgr\",S69=0),OR(U69=\"Mgr\",U69=0),OR(W69=\"Mgr\",W69=0)),0,IF(LEFT($A69,2)=\"B*\",VLOOKUP($E69,'1. Checklist & Certification'!$D$26:$E$32,2),IF(LEFT($A69,2)=\"C*\",VLOOKUP($E69,'1. Checklist & Certification'!$F$26:$G$32,2),IF(LEFT($A69,2)=\"D*\",VLOOKUP($E69,'1. Checklist & Certification'!$H$26:$I$32,2),IF(LEFT($A69,2)=\"E*\",VLOOKUP($E69,'1. Checklist & Certification'!$J$26:$K$32,2),VLOOKUP($E69,'1. Checklist & Certification'!$A$26:$B$32,2)))))))","v":0},0,0,null,null,null,null,"","",0,0,0,null,{"$f":"IF(A69=\"\",\"\",'1. Checklist & Certification'!$K$1)","v":""},{"$f":"IF(A69=\"\",\"\",'1. Checklist & Certification'!$C$62)","v":""},{"$f":"IF(A69=\"\",\"\",'1. Checklist & Certification'!$C$6)","v":""},{"$f":"IF(A69=\"\",\"\",'1. Checklist & Certification'!$G$5)","v":""},{"$f":"IFERROR(IF(A69=\"\",\"\",\n_xlfn.LET(_xlpm.Contract,'1. Checklist & Certification'!$C$7,\n_xlpm.Yr,TEXT(MOD(_xlfn.TEXTBEFORE(_xlpm.Contract,\"-\"),100),\"00\"),\n_xlpm.Program,_xlfn.TEXTAFTER(_xlfn.TEXTBEFORE(_xlpm.Contract,\"-\",2),\"-\"),\n_xlpm.CleanProgram,_xlfn.XLOOKUP(_xlpm.Program,SpellCheck[Input],SpellCheck[Correction],_xlpm.Program),\n_xlpm.Number,TEXT(_xlfn.TEXTAFTER(_xlpm.Contract,\"-\",2),\"0000\"),\n_xlfn.CONCAT(_xlpm.Yr,\"-\",_xlpm.CleanProgram,\"-\",_xlpm.Number))\n),\"\")","v":""},{"$f":"IFERROR(IF(A69=\"\",\"\",\n_xlfn.LET(_xlpm.Contract,'1. Checklist & Certification'!$C$8,\n_xlpm.Yr,TEXT(MOD(_xlfn.TEXTBEFORE(_xlpm.Contract,\"-\"),100),\"00\"),\n_xlpm.Program,_xlfn.TEXTAFTER(_xlfn.TEXTBEFORE(_xlpm.Contract,\"-\",2),\"-\"),\n_xlpm.CleanProgram,_xlfn.XLOOKUP(_xlpm.Program,SpellCheck[Input],SpellCheck[Correction],_xlpm.Program),\n_xlpm.Number,TEXT(_xlfn.TEXTAFTER(_xlpm.Contract,\"-\",2),\"0000\"),\n_xlfn.CONCAT(_xlpm.Yr,\"-\",_xlpm.CleanProgram,\"-\",_xlpm.Number))\n),\"\")","v":""},{"$f":"IFERROR(IF(A69=\"\",\"\",\n_xlfn.LET(_xlpm.Contract,'1. Checklist & Certification'!$F$7,\n_xlpm.Yr,TEXT(MOD(_xlfn.TEXTBEFORE(_xlpm.Contract,\"-\"),100),\"00\"),\n_xlpm.Program,_xlfn.TEXTAFTER(_xlfn.TEXTBEFORE(_xlpm.Contract,\"-\",2),\"-\"),\n_xlpm.CleanProgram,_xlfn.XLOOKUP(_xlpm.Program,SpellCheck[Input],SpellCheck[Correction],_xlpm.Program),\n_xlpm.Number,TEXT(_xlfn.TEXTAFTER(_xlpm.Contract,\"-\",2),\"0000\"),\n_xlfn.CONCAT(_xlpm.Yr,\"-\",_xlpm.CleanProgram,\"-\",_xlpm.Number))\n),\"\")","v":""},{"$f":"IFERROR(IF(A69=\"\",\"\",\n_xlfn.LET(_xlpm.Contract,'1. Checklist & Certification'!$F$8,\n_xlpm.Yr,TEXT(MOD(_xlfn.TEXTBEFORE(_xlpm.Contract,\"-\"),100),\"00\"),\n_xlpm.Program,_xlfn.TEXTAFTER(_xlfn.TEXTBEFORE(_xlpm.Contract,\"-\",2),\"-\"),\n_xlpm.CleanProgram,_xlfn.XLOOKUP(_xlpm.Program,SpellCheck[Input],SpellCheck[Correction],_xlpm.Program),\n_xlpm.Number,TEXT(_xlfn.TEXTAFTER(_xlpm.Contract,\"-\",2),\"0000\"),\n_xlfn.CONCAT(_xlpm.Yr,\"-\",_xlpm.CleanProgram,\"-\",_xlpm.Number))\n),\"\")","v":""},{"$f":"IF(A69=\"\",\"\",'1. Checklist & Certification'!$B$9)","v":""},{"$f":"IF(A69=\"\",\"\",'1. Checklist & Certification'!$F$9)","v":""},{"$f":"IF(A69=\"\",\"\",'1. Checklist & Certification'!$C$10)","v":""},{"$f":"IF(A69=\"\",\"\",'1. Checklist & Certification'!$C$11)","v":""},{"$f":"IF(A69=\"\",\"\",'1. Checklist & Certification'!$C$12)","v":""},{"$f":"IF(A69=\"\",\"\",'1. Checklist & Certification'!$B$14)","v":""},{"$f":"IF(A69=\"\",\"\",'1. Checklist & Certification'!$E$14)","v":""},{"$f":"IF(B69=\"\",\"\",'1. Checklist & Certification'!$G$14)","v":""},{"$f":"IF(A69=\"\",\"\",'MHP Family Income & Rent Limits'!$B$3)","v":""},{"$f":"IF(A69=\"\",\"\",'MHP Family Income & Rent Limits'!$J$3)","v":""},{"$f":"IF(A69=\"\",\"\",'MHP Family Income & Rent Limits'!$E$4)","v":""},{"$f":"IF(A69=\"\",\"\",'MHP Family Income & Rent Limits'!$C$7)","v":""},{"$f":"IF(A69=\"\",\"\",'MHP Family Income & Rent Limits'!$F$8)","v":""},{"$f":"IF(A69=\"\",\"\",'1. Checklist & Certification'!$G$4)","v":""},{"$f":"IF(A69=\"\",\"\",'1. Checklist & Certification'!$K$39)","v":""},{"$f":"IF(A69=\"\",\"\",'1. Checklist & Certification'!$K$43)","v":""},{"$f":"IF(A69=\"\",\"\",'1. Checklist & Certification'!$K$45)","v":""},{"$f":"IF(A69=\"\",\"\",'1. Checklist & Certification'!$K$49)","v":""},{"$f":"IF(A69=\"\",\"\",'1. Checklist & Certification'!$K$62)","v":""},{"$f":"IF(A69=\"\",\"\",'1. Checklist & Certification'!$E$66)","v":""},{"$f":"IF(A69=\"\",\"\",'1. Checklist & Certification'!$E$67)","v":""},{"$f":"IF(A69=\"\",\"\",'1. Checklist & Certification'!$E$68)","v":""},{"$f":"IF(A69=\"\",\"\",'1. Checklist & Certification'!$G$66)","v":""},{"$f":"IF(A69=\"\",\"\",'1. Checklist & Certification'!$H$66)","v":""},{"$f":"IF(A69=\"\",\"\",'1. Checklist & Certification'!$I$66)","v":""},{"$f":"IF(A69=\"\",\"\",'1. Checklist & Certification'!$I$67)","v":""},{"$f":"IF(A69=\"\",\"\",'1. Checklist & Certification'!$I$68)","v":""},{"$f":"IF(A69=\"\",\"\",'1. Checklist & Certification'!$B$69)","v":""},{"$f":"IF(A69=\"\",\"\",'1. Checklist & Certification'!$C$69)","v":""},{"$f":"IF(A69=\"\",\"\",'1. Checklist & Certification'!$F$69)","v":""},{"$f":"IF(A69=\"\",\"\",'1. Checklist & Certification'!$G$69)","v":""},{"$f":"IF(A69=\"\",\"\",'1. Checklist & Certification'!$J$69)","v":""},{"$f":"IF(A69=\"\",\"\",'1. Checklist & Certification'!$K$69)","v":""},null,null,{"$f":"IF(AND(OR('1. Checklist & Certification'!$M$16=1,'1. Checklist & Certification'!$M$19=2),AO69>0,B69=\"\",I69>0,AQ69<I69,AV69<>\"Sec 8-Project\"),\"X\",IF(AND(OR('1. Checklist & Certification'!$M$20=4,'1. Checklist & Certification'!$M$21=5,'1. Checklist & Certification'!$M$22=7),AO69>0,B69=\"\",I69>0,K69<I69),\"X\",\"\"))","v":""},{"$f":"IF(A69=\"\",\"\",IF(SUMPRODUCT(-- (ISNUMBER(SEARCH({\"*AHSC*\",\"*FMTW*\",\"*FWHG*\",\"*GHI*\",\"*HHC*\",\"*HLCP*\",\"*HOME*\",\"*LPR*\",\"*MHP*\",\"*NHTF*\",\"*NSP*\",\"*PRP*\",\"*TOD*\",\"*VHHP*\"},'1. Checklist & Certification'!$L$7)))),\"MHP\",\"Legacy\"))","v":""},",,",null,null,null,{"$f":"IF('1. Checklist & Certification'!$M$20=4,\"Both\",IF(OR('1. Checklist & Certification'!$M$15>0,S69=\"CHRP-R\",U69=\"CHRP-R\",W69=\"CHRP-R\",Y69=\"CHRP-R\"),\"Under\",\"No\"))","v":"No"},"No","No",{"$f":"_xlfn.IFS(D69=\"\",\"\",D69=1,'MHP Family Income & Rent Limits'!$E$17,D69=2,'MHP Family Income & Rent Limits'!$F$17,D69=3,'MHP Family Income & Rent Limits'!$G$17,D69=4,'MHP Family Income & Rent Limits'!$H$17,D69=5,'MHP Family Income & Rent Limits'!$I$17,D69=6,'MHP Family Income & Rent Limits'!$J$17,D69=7,'MHP Family Income & Rent Limits'!$K$17,D69=8,'MHP Family Income & Rent Limits'!$L$17)","v":""},"",{"$f":"IF(OR(A69=0,B69=\"X\"),0,MIN(IF(AA69:AD69<>0,AA69:AD69)))","v":0},{"$f":"IF(OR(H69=\"\",I69=\"\"),0,IF(H69*0.3/12>I69,MIN(H69*0.3/12,I69*1.1)+AP69,I69*(1+(VLOOKUP('1. Checklist & Certification'!$F$9,'HLCP-E Rent Change'!$A$1:$D$59,4,FALSE)))+AP69))","v":0}]
[null,null,null,null,null,null,null,null,null,null,null,null,null,null,null,null,null,null,null,null,null,null,null,null,null,null,0,0,0,0,0,0,0,0,{"$f":"IF(OR(A70=0,B70=\"X\"),0,IF(OR(S70=\"FHDP\",S70=\"RHCP-B\",U70=\"FHDP\",U70=\"RHCP-B\",W70=\"FHDP\",W70=\"RHCP-B\",Y70=\"FHDP\",Y70=\"RHCP-B\"),TRUNC((MIN(I70,K70)*(1+'1. Checklist & Certification'!$K$43)+AP70)),0))","v":0},{"$f":"IF(OR(A70=0,B70=\"X\"),0,IF(OR(S70=\"CHRP-R\",S70=\"SERA\",S70=\"SUHRP\",U70=\"CHRP-R\",U70=\"SERA\",U70=\"SUHRP\",W70=\"CHRP-R\",W70=\"SERA\",W70=\"SUHRP\",Y70=\"CHRP-R\",Y70=\"SERA\",Y70=\"SUHRP\"),TRUNC((MIN(I70,K70)*(1+'1. Checklist & Certification'!$K$49))),0))","v":0},{"$f":"IF(OR(A70=0,B70=\"X\"),0,IF(OR(S70=\"CALDAP\",S70=\"DPRLP\",U70=\"CALDAP\",U70=\"DPRLP\",W70=\"CALDAP\",W70=\"DPRLP\",Y70=\"CALDAP\",Y70=\"DPRLP\"),TRUNC(((MIN(I70,K70))*(1+'1. Checklist & Certification'!$G$4))),0))","v":0},0,0,0,{"$f":"IF(OR(A70=0,B70=\"X\"),0,IF(OR(S70=\"PRP\",S70=\"LPR\",U70=\"PRP\",U70=\"LPR\",W70=\"PRP\",W70=\"LPR\",Y70=\"PRP\",Y70=\"LPR\"),MAX(I70+AP70,MIN(IF(AE70:AN70<>0,AE70:AN70))),MIN(IF(AE70:AN70<>0,AE70:AN70))))","v":0},{"$f":"IF(A70=0,0,IF(AND(OR(S70=\"Mgr\",S70=0),OR(U70=\"Mgr\",U70=0),OR(W70=\"Mgr\",W70=0)),0,IF(LEFT($A70,2)=\"B*\",VLOOKUP($E70,'1. Checklist & Certification'!$D$26:$E$32,2),IF(LEFT($A70,2)=\"C*\",VLOOKUP($E70,'1. Checklist & Certification'!$F$26:$G$32,2),IF(LEFT($A70,2)=\"D*\",VLOOKUP($E70,'1. Checklist & Certification'!$H$26:$I$32,2),IF(LEFT($A70,2)=\"E*\",VLOOKUP($E70,'1. Checklist & Certification'!$J$26:$K$32,2),VLOOKUP($E70,'1. Checklist & Certification'!$A$26:$B$32,2)))))))","v":0},0,0,null,null,null,null,"","",0,0,0,null,{"$f":"IF(A70=\"\",\"\",'1. Checklist & Certification'!$K$1)","v":""},{"$f":"IF(A70=\"\",\"\",'1. Checklist & Certification'!$C$62)","v":""},{"$f":"IF(A70=\"\",\"\",'1. Checklist & Certification'!$C$6)","v":""},{"$f":"IF(A70=\"\",\"\",'1. Checklist & Certification'!$G$5)","v":""},{"$f":"IFERROR(IF(A70=\"\",\"\",\n_xlfn.LET(_xlpm.Contract,'1. Checklist & Certification'!$C$7,\n_xlpm.Yr,TEXT(MOD(_xlfn.TEXTBEFORE(_xlpm.Contract,\"-\"),100),\"00\"),\n_xlpm.Program,_xlfn.TEXTAFTER(_xlfn.TEXTBEFORE(_xlpm.Contract,\"-\",2),\"-\"),\n_xlpm.CleanProgram,_xlfn.XLOOKUP(_xlpm.Program,SpellCheck[Input],SpellCheck[Correction],_xlpm.Program),\n_xlpm.Number,TEXT(_xlfn.TEXTAFTER(_xlpm.Contract,\"-\",2),\"0000\"),\n_xlfn.CONCAT(_xlpm.Yr,\"-\",_xlpm.CleanProgram,\"-\",_xlpm.Number))\n),\"\")","v":""},{"$f":"IFERROR(IF(A70=\"\",\"\",\n_xlfn.LET(_xlpm.Contract,'1. Checklist & Certification'!$C$8,\n_xlpm.Yr,TEXT(MOD(_xlfn.TEXTBEFORE(_xlpm.Contract,\"-\"),100),\"00\"),\n_xlpm.Program,_xlfn.TEXTAFTER(_xlfn.TEXTBEFORE(_xlpm.Contract,\"-\",2),\"-\"),\n_xlpm.CleanProgram,_xlfn.XLOOKUP(_xlpm.Program,SpellCheck[Input],SpellCheck[Correction],_xlpm.Program),\n_xlpm.Number,TEXT(_xlfn.TEXTAFTER(_xlpm.Contract,\"-\",2),\"0000\"),\n_xlfn.CONCAT(_xlpm.Yr,\"-\",_xlpm.CleanProgram,\"-\",_xlpm.Number))\n),\"\")","v":""},{"$f":"IFERROR(IF(A70=\"\",\"\",\n_xlfn.LET(_xlpm.Contract,'1. Checklist & Certification'!$F$7,\n_xlpm.Yr,TEXT(MOD(_xlfn.TEXTBEFORE(_xlpm.Contract,\"-\"),100),\"00\"),\n_xlpm.Program,_xlfn.TEXTAFTER(_xlfn.TEXTBEFORE(_xlpm.Contract,\"-\",2),\"-\"),\n_xlpm.CleanProgram,_xlfn.XLOOKUP(_xlpm.Program,SpellCheck[Input],SpellCheck[Correction],_xlpm.Program),\n_xlpm.Number,TEXT(_xlfn.TEXTAFTER(_xlpm.Contract,\"-\",2),\"0000\"),\n_xlfn.CONCAT(_xlpm.Yr,\"-\",_xlpm.CleanProgram,\"-\",_xlpm.Number))\n),\"\")","v":""},{"$f":"IFERROR(IF(A70=\"\",\"\",\n_xlfn.LET(_xlpm.Contract,'1. Checklist & Certification'!$F$8,\n_xlpm.Yr,TEXT(MOD(_xlfn.TEXTBEFORE(_xlpm.Contract,\"-\"),100),\"00\"),\n_xlpm.Program,_xlfn.TEXTAFTER(_xlfn.TEXTBEFORE(_xlpm.Contract,\"-\",2),\"-\"),\n_xlpm.CleanProgram,_xlfn.XLOOKUP(_xlpm.Program,SpellCheck[Input],SpellCheck[Correction],_xlpm.Program),\n_xlpm.Number,TEXT(_xlfn.TEXTAFTER(_xlpm.Contract,\"-\",2),\"0000\"),\n_xlfn.CONCAT(_xlpm.Yr,\"-\",_xlpm.CleanProgram,\"-\",_xlpm.Number))\n),\"\")","v":""},{"$f":"IF(A70=\"\",\"\",'1. Checklist & Certification'!$B$9)","v":""},{"$f":"IF(A70=\"\",\"\",'1. Checklist & Certification'!$F$9)","v":""},{"$f":"IF(A70=\"\",\"\",'1. Checklist & Certification'!$C$10)","v":""},{"$f":"IF(A70=\"\",\"\",'1. Checklist & Certification'!$C$11)","v":""},{"$f":"IF(A70=\"\",\"\",'1. Checklist & Certification'!$C$12)","v":""},{"$f":"IF(A70=\"\",\"\",'1. Checklist & Certification'!$B$14)","v":""},{"$f":"IF(A70=\"\",\"\",'1. Checklist & Certification'!$E$14)","v":""},{"$f":"IF(B70=\"\",\"\",'1. Checklist & Certification'!$G$14)","v":""},{"$f":"IF(A70=\"\",\"\",'MHP Family Income & Rent Limits'!$B$3)","v":""},{"$f":"IF(A70=\"\",\"\",'MHP Family Income & Rent Limits'!$J$3)","v":""},{"$f":"IF(A70=\"\",\"\",'MHP Family Income & Rent Limits'!$E$4)","v":""},{"$f":"IF(A70=\"\",\"\",'MHP Family Income & Rent Limits'!$C$7)","v":""},{"$f":"IF(A70=\"\",\"\",'MHP Family Income & Rent Limits'!$F$8)","v":""},{"$f":"IF(A70=\"\",\"\",'1. Checklist & Certification'!$G$4)","v":""},{"$f":"IF(A70=\"\",\"\",'1. Checklist & Certification'!$K$39)","v":""},{"$f":"IF(A70=\"\",\"\",'1. Checklist & Certification'!$K$43)","v":""},{"$f":"IF(A70=\"\",\"\",'1. Checklist & Certification'!$K$45)","v":""},{"$f":"IF(A70=\"\",\"\",'1. Checklist & Certification'!$K$49)","v":""},{"$f":"IF(A70=\"\",\"\",'1. Checklist & Certification'!$K$62)","v":""},{"$f":"IF(A70=\"\",\"\",'1. Checklist & Certification'!$E$66)","v":""},{"$f":"IF(A70=\"\",\"\",'1. Checklist & Certification'!$E$67)","v":""},{"$f":"IF(A70=\"\",\"\",'1. Checklist & Certification'!$E$68)","v":""},{"$f":"IF(A70=\"\",\"\",'1. Checklist & Certification'!$G$66)","v":""},{"$f":"IF(A70=\"\",\"\",'1. Checklist & Certification'!$H$66)","v":""},{"$f":"IF(A70=\"\",\"\",'1. Checklist & Certification'!$I$66)","v":""},{"$f":"IF(A70=\"\",\"\",'1. Checklist & Certification'!$I$67)","v":""},{"$f":"IF(A70=\"\",\"\",'1. Checklist & Certification'!$I$68)","v":""},{"$f":"IF(A70=\"\",\"\",'1. Checklist & Certification'!$B$69)","v":""},{"$f":"IF(A70=\"\",\"\",'1. Checklist & Certification'!$C$69)","v":""},{"$f":"IF(A70=\"\",\"\",'1. Checklist & Certification'!$F$69)","v":""},{"$f":"IF(A70=\"\",\"\",'1. Checklist & Certification'!$G$69)","v":""},{"$f":"IF(A70=\"\",\"\",'1. Checklist & Certification'!$J$69)","v":""},{"$f":"IF(A70=\"\",\"\",'1. Checklist & Certification'!$K$69)","v":""},null,null,{"$f":"IF(AND(OR('1. Checklist & Certification'!$M$16=1,'1. Checklist & Certification'!$M$19=2),AO70>0,B70=\"\",I70>0,AQ70<I70,AV70<>\"Sec 8-Project\"),\"X\",IF(AND(OR('1. Checklist & Certification'!$M$20=4,'1. Checklist & Certification'!$M$21=5,'1. Checklist & Certification'!$M$22=7),AO70>0,B70=\"\",I70>0,K70<I70),\"X\",\"\"))","v":""},{"$f":"IF(A70=\"\",\"\",IF(SUMPRODUCT(-- (ISNUMBER(SEARCH({\"*AHSC*\",\"*FMTW*\",\"*FWHG*\",\"*GHI*\",\"*HHC*\",\"*HLCP*\",\"*HOME*\",\"*LPR*\",\"*MHP*\",\"*NHTF*\",\"*NSP*\",\"*PRP*\",\"*TOD*\",\"*VHHP*\"},'1. Checklist & Certification'!$L$7)))),\"MHP\",\"Legacy\"))","v":""},",,",null,null,null,{"$f":"IF('1. Checklist & Certification'!$M$20=4,\"Both\",IF(OR('1. Checklist & Certification'!$M$15>0,S70=\"CHRP-R\",U70=\"CHRP-R\",W70=\"CHRP-R\",Y70=\"CHRP-R\"),\"Under\",\"No\"))","v":"No"},"No","No",{"$f":"_xlfn.IFS(D70=\"\",\"\",D70=1,'MHP Family Income & Rent Limits'!$E$17,D70=2,'MHP Family Income & Rent Limits'!$F$17,D70=3,'MHP Family Income & Rent Limits'!$G$17,D70=4,'MHP Family Income & Rent Limits'!$H$17,D70=5,'MHP Family Income & Rent Limits'!$I$17,D70=6,'MHP Family Income & Rent Limits'!$J$17,D70=7,'MHP Family Income & Rent Limits'!$K$17,D70=8,'MHP Family Income & Rent Limits'!$L$17)","v":""},"",{"$f":"IF(OR(A70=0,B70=\"X\"),0,MIN(IF(AA70:AD70<>0,AA70:AD70)))","v":0},{"$f":"IF(OR(H70=\"\",I70=\"\"),0,IF(H70*0.3/12>I70,MIN(H70*0.3/12,I70*1.1)+AP70,I70*(1+(VLOOKUP('1. Checklist & Certification'!$F$9,'HLCP-E Rent Change'!$A$1:$D$59,4,FALSE)))+AP70))","v":0}]
[null,null,null,null,null,null,null,null,null,null,null,null,null,null,null,null,null,null,null,null,null,null,null,null,null,null,{"$f":"IF(D71=\"Vacant\",\"Vacant\",IF(T71<>0,INDEX(IncomeLimits,MATCH(T71,IncomeLevels,0),MATCH(D71,IncomePersons,0)),0))","v":0},{"$f":"IF(D71=\"Vacant\",\"Vacant\",IF(V71<>0,INDEX(IncomeLimits,MATCH(V71,IncomeLevels,0),MATCH(D71,IncomePersons,0)),0))","v":0},{"$f":"IF(D71=\"Vacant\",\"Vacant\",IF(X71<>0,INDEX(IncomeLimits,MATCH(X71,IncomeLevels,0),MATCH(D71,IncomePersons,0)),0))","v":0},{"$f":"IF(D71=\"Vacant\",\"Vacant\",IF(Z71<>0,INDEX(IncomeLimits,MATCH(Z71,IncomeLevels,0),MATCH(D71,IncomePersons,0)),0))","v":0},{"$f":"IF(OR(T71=\"LI State\",T71=\"VLI State\"),0,IF(T71>1,INDEX(RentLimits,MATCH(T71,RentLevels,0),MATCH(E71,RentPersons,0)),0))","v":0},{"$f":"IF(OR(V71=\"LI State\",V71=\"VLI State\"),0,IF(V71>1,INDEX(RentLimits,MATCH(V71,RentLevels,0),MATCH(E71,RentPersons,0)),0))","v":0},{"$f":"IF(OR(X71=\"LI State\",X71=\"VLI State\"),0,IF(X71>1,INDEX(RentLimits,MATCH(X71,RentLevels,0),MATCH(E71,RentPersons,0)),0))","v":0},{"$f":"IF(OR(Z71=\"LI State\",Z71=\"VLI State\"),0,IF(Z71>1,INDEX(RentLimits,MATCH(Z71,RentLevels,0),MATCH(E71,RentPersons,0)),0))","v":0},{"$f":"IF(OR(A71=0,B71=\"X\"),0,IF(OR(S71=\"FHDP\",S71=\"RHCP-B\",U71=\"FHDP\",U71=\"RHCP-B\",W71=\"FHDP\",W71=\"RHCP-B\",Y71=\"FHDP\",Y71=\"RHCP-B\"),TRUNC((MIN(I71,K71)*(1+'1. Checklist & Certification'!$K$43)+AP71)),0))","v":0},{"$f":"IF(OR(A71=0,B71=\"X\"),0,IF(OR(S71=\"CHRP-R\",S71=\"SERA\",S71=\"SUHRP\",U71=\"CHRP-R\",U71=\"SERA\",U71=\"SUHRP\",W71=\"CHRP-R\",W71=\"SERA\",W71=\"SUHRP\",Y71=\"CHRP-R\",Y71=\"SERA\",Y71=\"SUHRP\"),TRUNC((MIN(I71,K71)*(1+'1. Checklist & Certification'!$K$49))),0))","v":0},{"$f":"IF(OR(A71=0,B71=\"X\"),0,IF(OR(S71=\"CALDAP\",S71=\"DPRLP\",U71=\"CALDAP\",U71=\"DPRLP\",W71=\"CALDAP\",W71=\"DPRLP\",Y71=\"CALDAP\",Y71=\"DPRLP\"),TRUNC(((MIN(I71,K71))*(1+'1. Checklist & Certification'!$G$4))),0))","v":0},{"$f":"IF(D71=\"Vacant\",0,IF(H71=0,0,IF(OR(AND(S71=\"FWHG\",T71=0),AND(U71=\"FWHG\",V71=0),AND(W71=\"FWHG\",X71=0),AND(Y71=\"FWHG\",Z71=0)),TRUNC(H71*0.3/12),IF(OR(S71=\"HLCP-E\",U71=\"HLCP-E\",W71=\"HLCP-E\",Y71=\"HLCP-E\"),DF71,0))))","v":0},0,0,{"$f":"IF(OR(A71=0,B71=\"X\"),0,IF(OR(S71=\"PRP\",S71=\"LPR\",U71=\"PRP\",U71=\"LPR\",W71=\"PRP\",W71=\"LPR\",Y71=\"PRP\",Y71=\"LPR\"),MAX(I71+AP71,MIN(IF(AE71:AN71<>0,AE71:AN71))),MIN(IF(AE71:AN71<>0,AE71:AN71))))","v":0},{"$f":"IF(A71=0,0,IF(AND(OR(S71=\"Mgr\",S71=0),OR(U71=\"Mgr\",U71=0),OR(W71=\"Mgr\",W71=0)),0,IF(LEFT($A71,2)=\"B*\",VLOOKUP($E71,'1. Checklist & Certification'!$D$26:$E$32,2),IF(LEFT($A71,2)=\"C*\",VLOOKUP($E71,'1. Checklist & Certification'!$F$26:$G$32,2),IF(LEFT($A71,2)=\"D*\",VLOOKUP($E71,'1. Checklist & Certification'!$H$26:$I$32,2),IF(LEFT($A71,2)=\"E*\",VLOOKUP($E71,'1. Checklist & Certification'!$J$26:$K$32,2),VLOOKUP($E71,'1. Checklist & Certification'!$A$26:$B$32,2)))))))","v":0},{"$f":"IF(AO71=0,0,ROUND(AO71-AP71,0))","v":0},{"$f":"AS71-I71","v":0},null,null,null,null,{"$f":"IF($CV$5=TRUE,IF(AS71<>0,IF(AV71<>\"Sec 8-Project\",MIN(AQ71,AS71),AS71),\"\"),\"\")","v":""},{"$f":"IF(AW71=\"\",\"\",(I71*J71)+((12-J71)*AW71))","v":""},{"$f":"(I71*J71)+((12-J71)*AS71)","v":0},{"$f":"(AT71*J71)+((12-J71)*AU71)","v":0},0,null,{"$f":"IF(A71=\"\",\"\",'1. Checklist & Certification'!$K$1)","v":""},{"$f":"IF(A71=\"\",\"\",'1. Checklist & Certification'!$C$62)","v":""},{"$f":"IF(A71=\"\",\"\",'1. Checklist & Certification'!$C$6)","v":""},{"$f":"IF(A71=\"\",\"\",'1. Checklist & Certification'!$G$5)","v":""},{"$f":"IFERROR(IF(A71=\"\",\"\",\n_xlfn.LET(_xlpm.Contract,'1. Checklist & Certification'!$C$7,\n_xlpm.Yr,TEXT(MOD(_xlfn.TEXTBEFORE(_xlpm.Contract,\"-\"),100),\"00\"),\n_xlpm.Program,_xlfn.TEXTAFTER(_xlfn.TEXTBEFORE(_xlpm.Contract,\"-\",2),\"-\"),\n_xlpm.CleanProgram,_xlfn.XLOOKUP(_xlpm.Program,SpellCheck[Input],SpellCheck[Correction],_xlpm.Program),\n_xlpm.Number,TEXT(_xlfn.TEXTAFTER(_xlpm.Contract,\"-\",2),\"0000\"),\n_xlfn.CONCAT(_xlpm.Yr,\"-\",_xlpm.CleanProgram,\"-\",_xlpm.Number))\n),\"\")","v":""},{"$f":"IFERROR(IF(A71=\"\",\"\",\n_xlfn.LET(_xlpm.Contract,'1. Checklist & Certification'!$C$8,\n_xlpm.Yr,TEXT(MOD(_xlfn.TEXTBEFORE(_xlpm.Contract,\"-\"),100),\"00\"),\n_xlpm.Program,_xlfn.TEXTAFTER(_xlfn.TEXTBEFORE(_xlpm.Contract,\"-\",2),\"-\"),\n_xlpm.CleanProgram,_xlfn.XLOOKUP(_xlpm.Program,SpellCheck[Input],SpellCheck[Correction],_xlpm.Program),\n_xlpm.Number,TEXT(_xlfn.TEXTAFTER(_xlpm.Contract,\"-\",2),\"0000\"),\n_xlfn.CONCAT(_xlpm.Yr,\"-\",_xlpm.CleanProgram,\"-\",_xlpm.Number))\n),\"\")","v":""},{"$f":"IFERROR(IF(A71=\"\",\"\",\n_xlfn.LET(_xlpm.Contract,'1. Checklist & Certification'!$F$7,\n_xlpm.Yr,TEXT(MOD(_xlfn.TEXTBEFORE(_xlpm.Contract,\"-\"),100),\"00\"),\n_xlpm.Program,_xlfn.TEXTAFTER(_xlfn.TEXTBEFORE(_xlpm.Contract,\"-\",2),\"-\"),\n_xlpm.CleanProgram,_xlfn.XLOOKUP(_xlpm.Program,SpellCheck[Input],SpellCheck[Correction],_xlpm.Program),\n_xlpm.Number,TEXT(_xlfn.TEXTAFTER(_xlpm.Contract,\"-\",2),\"0000\"),\n_xlfn.CONCAT(_xlpm.Yr,\"-\",_xlpm.CleanProgram,\"-\",_xlpm.Number))\n),\"\")","v":""},{"$f":"IFERROR(IF(A71=\"\",\"\",\n_xlfn.LET(_xlpm.Contract,'1. Checklist & Certification'!$F$8,\n_xlpm.Yr,TEXT(MOD(_xlfn.TEXTBEFORE(_xlpm.Contract,\"-\"),100),\"00\"),\n_xlpm.Program,_xlfn.TEXTAFTER(_xlfn.TEXTBEFORE(_xlpm.Contract,\"-\",2),\"-\"),\n_xlpm.CleanProgram,_xlfn.XLOOKUP(_xlpm.Program,SpellCheck[Input],SpellCheck[Correction],_xlpm.Program),\n_xlpm.Number,TEXT(_xlfn.TEXTAFTER(_xlpm.Contract,\"-\",2),\"0000\"),\n_xlfn.CONCAT(_xlpm.Yr,\"-\",_xlpm.CleanProgram,\"-\",_xlpm.Number))\n),\"\")","v":""},{"$f":"IF(A71=\"\",\"\",'1. Checklist & Certification'!$B$9)","v":""},{"$f":"IF(A71=\"\",\"\",'1. Checklist & Certification'!$F$9)","v":""},{"$f":"IF(A71=\"\",\"\",'1. Checklist & Certification'!$C$10)","v":""},{"$f":"IF(A71=\"\",\"\",'1. Checklist & Certification'!$C$11)","v":""},{"$f":"IF(A71=\"\",\"\",'1. Checklist & Certification'!$C$12)","v":""},{"$f":"IF(A71=\"\",\"\",'1. Checklist & Certification'!$B$14)","v":""},{"$f":"IF(A71=\"\",\"\",'1. Checklist & Certification'!$E$14)","v":""},{"$f":"IF(B71=\"\",\"\",'1. Checklist & Certification'!$G$14)","v":""},{"$f":"IF(A71=\"\",\"\",'MHP Family Income & Rent Limits'!$B$3)","v":""},{"$f":"IF(A71=\"\",\"\",'MHP Family Income & Rent Limits'!$J$3)","v":""},{"$f":"IF(A71=\"\",\"\",'MHP Family Income & Rent Limits'!$E$4)","v":""},{"$f":"IF(A71=\"\",\"\",'MHP Family Income & Rent Limits'!$C$7)","v":""},{"$f":"IF(A71=\"\",\"\",'MHP Family Income & Rent Limits'!$F$8)","v":""},{"$f":"IF(A71=\"\",\"\",'1. Checklist & Certification'!$G$4)","v":""},{"$f":"IF(A71=\"\",\"\",'1. Checklist & Certification'!$K$39)","v":""},{"$f":"IF(A71=\"\",\"\",'1. Checklist & Certification'!$K$43)","v":""},{"$f":"IF(A71=\"\",\"\",'1. Checklist & Certification'!$K$45)","v":""},{"$f":"IF(A71=\"\",\"\",'1. Checklist & Certification'!$K$49)","v":""},{"$f":"IF(A71=\"\",\"\",'1. Checklist & Certification'!$K$62)","v":""},{"$f":"IF(A71=\"\",\"\",'1. Checklist & Certification'!$E$66)","v":""},{"$f":"IF(A71=\"\",\"\",'1. Checklist & Certification'!$E$67)","v":""},{"$f":"IF(A71=\"\",\"\",'1. Checklist & Certification'!$E$68)","v":""},{"$f":"IF(A71=\"\",\"\",'1. Checklist & Certification'!$G$66)","v":""},{"$f":"IF(A71=\"\",\"\",'1. Checklist & Certification'!$H$66)","v":""},{"$f":"IF(A71=\"\",\"\",'1. Checklist & Certification'!$I$66)","v":""},{"$f":"IF(A71=\"\",\"\",'1. Checklist & Certification'!$I$67)","v":""},{"$f":"IF(A71=\"\",\"\",'1. Checklist & Certification'!$I$68)","v":""},{"$f":"IF(A71=\"\",\"\",'1. Checklist & Certification'!$B$69)","v":""},{"$f":"IF(A71=\"\",\"\",'1. Checklist & Certification'!$C$69)","v":""},{"$f":"IF(A71=\"\",\"\",'1. Checklist & Certification'!$F$69)","v":""},{"$f":"IF(A71=\"\",\"\",'1. Checklist & Certification'!$G$69)","v":""},{"$f":"IF(A71=\"\",\"\",'1. Checklist & Certification'!$J$69)","v":""},{"$f":"IF(A71=\"\",\"\",'1. Checklist & Certification'!$K$69)","v":""},null,null,{"$f":"IF(AND(OR('1. Checklist & Certification'!$M$16=1,'1. Checklist & Certification'!$M$19=2),AO71>0,B71=\"\",I71>0,AQ71<I71,AV71<>\"Sec 8-Project\"),\"X\",IF(AND(OR('1. Checklist & Certification'!$M$20=4,'1. Checklist & Certification'!$M$21=5,'1. Checklist & Certification'!$M$22=7),AO71>0,B71=\"\",I71>0,K71<I71),\"X\",\"\"))","v":""},{"$f":"IF(A71=\"\",\"\",IF(SUMPRODUCT(-- (ISNUMBER(SEARCH({\"*AHSC*\",\"*FMTW*\",\"*FWHG*\",\"*GHI*\",\"*HHC*\",\"*HLCP*\",\"*HOME*\",\"*LPR*\",\"*MHP*\",\"*NHTF*\",\"*NSP*\",\"*PRP*\",\"*TOD*\",\"*VHHP*\"},'1. Checklist & Certification'!$L$7)))),\"MHP\",\"Legacy\"))","v":""},{"$f":"CONCATENATE(S71,\",\",U71,\",\",W71)","v":",,"},null,null,null,{"$f":"IF('1. Checklist & Certification'!$M$20=4,\"Both\",IF(OR('1. Checklist & Certification'!$M$15>0,S71=\"CHRP-R\",U71=\"CHRP-R\",W71=\"CHRP-R\",Y71=\"CHRP-R\"),\"Under\",\"No\"))","v":"No"},"No","No",{"$f":"_xlfn.IFS(D71=\"\",\"\",D71=1,'MHP Family Income & Rent Limits'!$E$17,D71=2,'MHP Family Income & Rent Limits'!$F$17,D71=3,'MHP Family Income & Rent Limits'!$G$17,D71=4,'MHP Family Income & Rent Limits'!$H$17,D71=5,'MHP Family Income & Rent Limits'!$I$17,D71=6,'MHP Family Income & Rent Limits'!$J$17,D71=7,'MHP Family Income & Rent Limits'!$K$17,D71=8,'MHP Family Income & Rent Limits'!$L$17)","v":""},{"$f":"IF(H71=\"\",\"\",IF(H71<=DC71,0.05,0.1))","v":""},{"$f":"IF(OR(A71=0,B71=\"X\"),0,MIN(IF(AA71:AD71<>0,AA71:AD71)))","v":0},{"$f":"IF(OR(H71=\"\",I71=\"\"),0,IF(H71*0.3/12>I71,MIN(H71*0.3/12,I71*1.1)+AP71,I71*(1+(VLOOKUP('1. Checklist & Certification'!$F$9,'HLCP-E Rent Change'!$A$1:$D$59,4,FALSE)))+AP71))","v":0}]
[null,null,null,null,null,null,null,null,null,null,null,null,null,null,null,null,null,null,null,null,null,null,null,null,null,null,0,0,0,0,0,0,0,0,{"$f":"IF(OR(A72=0,B72=\"X\"),0,IF(OR(S72=\"FHDP\",S72=\"RHCP-B\",U72=\"FHDP\",U72=\"RHCP-B\",W72=\"FHDP\",W72=\"RHCP-B\",Y72=\"FHDP\",Y72=\"RHCP-B\"),TRUNC((MIN(I72,K72)*(1+'1. Checklist & Certification'!$K$43)+AP72)),0))","v":0},{"$f":"IF(OR(A72=0,B72=\"X\"),0,IF(OR(S72=\"CHRP-R\",S72=\"SERA\",S72=\"SUHRP\",U72=\"CHRP-R\",U72=\"SERA\",U72=\"SUHRP\",W72=\"CHRP-R\",W72=\"SERA\",W72=\"SUHRP\",Y72=\"CHRP-R\",Y72=\"SERA\",Y72=\"SUHRP\"),TRUNC((MIN(I72,K72)*(1+'1. Checklist & Certification'!$K$49))),0))","v":0},{"$f":"IF(OR(A72=0,B72=\"X\"),0,IF(OR(S72=\"CALDAP\",S72=\"DPRLP\",U72=\"CALDAP\",U72=\"DPRLP\",W72=\"CALDAP\",W72=\"DPRLP\",Y72=\"CALDAP\",Y72=\"DPRLP\"),TRUNC(((MIN(I72,K72))*(1+'1. Checklist & Certification'!$G$4))),0))","v":0},0,{"$f":"IF(OR(A72=0,B72=\"X\"),0,IF(OR(S72=\"PRP\",S72=\"LPR\",U72=\"PRP\",U72=\"LPR\",W72=\"PRP\",W72=\"LPR\",Y72=\"PRP\",Y72=\"LPR\"),TRUNC(I72*(1+DD72)+AP72),0))","v":0},{"$f":"IF(OR(A72=0,B72=\"X\"),0,IF(OR(S72=\"PRP\",S72=\"LPR\",U72=\"PRP\",U72=\"LPR\",W72=\"PRP\",W72=\"LPR\",Y72=\"PRP\",Y72=\"LPR\"),TRUNC(H72*0.5/12),0))","v":0},{"$f":"IF(OR(A72=0,B72=\"X\"),0,IF(OR(S72=\"PRP\",S72=\"LPR\",U72=\"PRP\",U72=\"LPR\",W72=\"PRP\",W72=\"LPR\",Y72=\"PRP\",Y72=\"LPR\"),MAX(I72+AP72,MIN(IF(AE72:AN72<>0,AE72:AN72))),MIN(IF(AE72:AN72<>0,AE72:AN72))))","v":0},{"$f":"IF(A72=0,0,IF(AND(OR(S72=\"Mgr\",S72=0),OR(U72=\"Mgr\",U72=0),OR(W72=\"Mgr\",W72=0)),0,IF(LEFT($A72,2)=\"B*\",VLOOKUP($E72,'1. Checklist & Certification'!$D$26:$E$32,2),IF(LEFT($A72,2)=\"C*\",VLOOKUP($E72,'1. Checklist & Certification'!$F$26:$G$32,2),IF(LEFT($A72,2)=\"D*\",VLOOKUP($E72,'1. Checklist & Certification'!$H$26:$I$32,2),IF(LEFT($A72,2)=\"E*\",VLOOKUP($E72,'1. Checklist & Certification'!$J$26:$K$32,2),VLOOKUP($E72,'1. Checklist & Certification'!$A$26:$B$32,2)))))))","v":0},0,0,null,null,null,null,"","",0,0,{"$f":"IFERROR((AX72+(AP72*12))/H72,0)","v":0},null,{"$f":"IF(A72=\"\",\"\",'1. Checklist & Certification'!$K$1)","v":""},{"$f":"IF(A72=\"\",\"\",'1. Checklist & Certification'!$C$62)","v":""},{"$f":"IF(A72=\"\",\"\",'1. Checklist & Certification'!$C$6)","v":""},{"$f":"IF(A72=\"\",\"\",'1. Checklist & Certification'!$G$5)","v":""},{"$f":"IFERROR(IF(A72=\"\",\"\",\n_xlfn.LET(_xlpm.Contract,'1. Checklist & Certification'!$C$7,\n_xlpm.Yr,TEXT(MOD(_xlfn.TEXTBEFORE(_xlpm.Contract,\"-\"),100),\"00\"),\n_xlpm.Program,_xlfn.TEXTAFTER(_xlfn.TEXTBEFORE(_xlpm.Contract,\"-\",2),\"-\"),\n_xlpm.CleanProgram,_xlfn.XLOOKUP(_xlpm.Program,SpellCheck[Input],SpellCheck[Correction],_xlpm.Program),\n_xlpm.Number,TEXT(_xlfn.TEXTAFTER(_xlpm.Contract,\"-\",2),\"0000\"),\n_xlfn.CONCAT(_xlpm.Yr,\"-\",_xlpm.CleanProgram,\"-\",_xlpm.Number))\n),\"\")","v":""},{"$f":"IFERROR(IF(A72=\"\",\"\",\n_xlfn.LET(_xlpm.Contract,'1. Checklist & Certification'!$C$8,\n_xlpm.Yr,TEXT(MOD(_xlfn.TEXTBEFORE(_xlpm.Contract,\"-\"),100),\"00\"),\n_xlpm.Program,_xlfn.TEXTAFTER(_xlfn.TEXTBEFORE(_xlpm.Contract,\"-\",2),\"-\"),\n_xlpm.CleanProgram,_xlfn.XLOOKUP(_xlpm.Program,SpellCheck[Input],SpellCheck[Correction],_xlpm.Program),\n_xlpm.Number,TEXT(_xlfn.TEXTAFTER(_xlpm.Contract,\"-\",2),\"0000\"),\n_xlfn.CONCAT(_xlpm.Yr,\"-\",_xlpm.CleanProgram,\"-\",_xlpm.Number))\n),\"\")","v":""},{"$f":"IFERROR(IF(A72=\"\",\"\",\n_xlfn.LET(_xlpm.Contract,'1. Checklist & Certification'!$F$7,\n_xlpm.Yr,TEXT(MOD(_xlfn.TEXTBEFORE(_xlpm.Contract,\"-\"),100),\"00\"),\n_xlpm.Program,_xlfn.TEXTAFTER(_xlfn.TEXTBEFORE(_xlpm.Contract,\"-\",2),\"-\"),\n_xlpm.CleanProgram,_xlfn.XLOOKUP(_xlpm.Program,SpellCheck[Input],SpellCheck[Correction],_xlpm.Program),\n_xlpm.Number,TEXT(_xlfn.TEXTAFTER(_xlpm.Contract,\"-\",2),\"0000\"),\n_xlfn.CONCAT(_xlpm.Yr,\"-\",_xlpm.CleanProgram,\"-\",_xlpm.Number))\n),\"\")","v":""},{"$f":"IFERROR(IF(A72=\"\",\"\",\n_xlfn.LET(_xlpm.Contract,'1. Checklist & Certification'!$F$8,\n_xlpm.Yr,TEXT(MOD(_xlfn.TEXTBEFORE(_xlpm.Contract,\"-\"),100),\"00\"),\n_xlpm.Program,_xlfn.TEXTAFTER(_xlfn.TEXTBEFORE(_xlpm.Contract,\"-\",2),\"-\"),\n_xlpm.CleanProgram,_xlfn.XLOOKUP(_xlpm.Program,SpellCheck[Input],SpellCheck[Correction],_xlpm.Program),\n_xlpm.Number,TEXT(_xlfn.TEXTAFTER(_xlpm.Contract,\"-\",2),\"0000\"),\n_xlfn.CONCAT(_xlpm.Yr,\"-\",_xlpm.CleanProgram,\"-\",_xlpm.Number))\n),\"\")","v":""},{"$f":"IF(A72=\"\",\"\",'1. Checklist & Certification'!$B$9)","v":""},{"$f":"IF(A72=\"\",\"\",'1. Checklist & Certification'!$F$9)","v":""},{"$f":"IF(A72=\"\",\"\",'1. Checklist & Certification'!$C$10)","v":""},{"$f":"IF(A72=\"\",\"\",'1. Checklist & Certification'!$C$11)","v":""},{"$f":"IF(A72=\"\",\"\",'1. Checklist & Certification'!$C$12)","v":""},{"$f":"IF(A72=\"\",\"\",'1. Checklist & Certification'!$B$14)","v":""},{"$f":"IF(A72=\"\",\"\",'1. Checklist & Certification'!$E$14)","v":""},{"$f":"IF(B72=\"\",\"\",'1. Checklist & Certification'!$G$14)","v":""},{"$f":"IF(A72=\"\",\"\",'MHP Family Income & Rent Limits'!$B$3)","v":""},{"$f":"IF(A72=\"\",\"\",'MHP Family Income & Rent Limits'!$J$3)","v":""},{"$f":"IF(A72=\"\",\"\",'MHP Family Income & Rent Limits'!$E$4)","v":""},{"$f":"IF(A72=\"\",\"\",'MHP Family Income & Rent Limits'!$C$7)","v":""},{"$f":"IF(A72=\"\",\"\",'MHP Family Income & Rent Limits'!$F$8)","v":""},{"$f":"IF(A72=\"\",\"\",'1. Checklist & Certification'!$G$4)","v":""},{"$f":"IF(A72=\"\",\"\",'1. Checklist & Certification'!$K$39)","v":""},{"$f":"IF(A72=\"\",\"\",'1. Checklist & Certification'!$K$43)","v":""},{"$f":"IF(A72=\"\",\"\",'1. Checklist & Certification'!$K$45)","v":""},{"$f":"IF(A72=\"\",\"\",'1. Checklist & Certification'!$K$49)","v":""},{"$f":"IF(A72=\"\",\"\",'1. Checklist & Certification'!$K$62)","v":""},{"$f":"IF(A72=\"\",\"\",'1. Checklist & Certification'!$E$66)","v":""},{"$f":"IF(A72=\"\",\"\",'1. Checklist & Certification'!$E$67)","v":""},{"$f":"IF(A72=\"\",\"\",'1. Checklist & Certification'!$E$68)","v":""},{"$f":"IF(A72=\"\",\"\",'1. Checklist & Certification'!$G$66)","v":""},{"$f":"IF(A72=\"\",\"\",'1. Checklist & Certification'!$H$66)","v":""},{"$f":"IF(A72=\"\",\"\",'1. Checklist & Certification'!$I$66)","v":""},{"$f":"IF(A72=\"\",\"\",'1. Checklist & Certification'!$I$67)","v":""},{"$f":"IF(A72=\"\",\"\",'1. Checklist & Certification'!$I$68)","v":""},{"$f":"IF(A72=\"\",\"\",'1. Checklist & Certification'!$B$69)","v":""},{"$f":"IF(A72=\"\",\"\",'1. Checklist & Certification'!$C$69)","v":""},{"$f":"IF(A72=\"\",\"\",'1. Checklist & Certification'!$F$69)","v":""},{"$f":"IF(A72=\"\",\"\",'1. Checklist & Certification'!$G$69)","v":""},{"$f":"IF(A72=\"\",\"\",'1. Checklist & Certification'!$J$69)","v":""},{"$f":"IF(A72=\"\",\"\",'1. Checklist & Certification'!$K$69)","v":""},null,null,{"$f":"IF(AND(OR('1. Checklist & Certification'!$M$16=1,'1. Checklist & Certification'!$M$19=2),AO72>0,B72=\"\",I72>0,AQ72<I72,AV72<>\"Sec 8-Project\"),\"X\",IF(AND(OR('1. Checklist & Certification'!$M$20=4,'1. Checklist & Certification'!$M$21=5,'1. Checklist & Certification'!$M$22=7),AO72>0,B72=\"\",I72>0,K72<I72),\"X\",\"\"))","v":""},{"$f":"IF(A72=\"\",\"\",IF(SUMPRODUCT(-- (ISNUMBER(SEARCH({\"*AHSC*\",\"*FMTW*\",\"*FWHG*\",\"*GHI*\",\"*HHC*\",\"*HLCP*\",\"*HOME*\",\"*LPR*\",\"*MHP*\",\"*NHTF*\",\"*NSP*\",\"*PRP*\",\"*TOD*\",\"*VHHP*\"},'1. Checklist & Certification'!$L$7)))),\"MHP\",\"Legacy\"))","v":""},",,",null,null,null,{"$f":"IF('1. Checklist & Certification'!$M$20=4,\"Both\",IF(OR('1. Checklist & Certification'!$M$15>0,S72=\"CHRP-R\",U72=\"CHRP-R\",W72=\"CHRP-R\",Y72=\"CHRP-R\"),\"Under\",\"No\"))","v":"No"},{"$f":"IF(OR(B72=\"X\",D72=\"Vacant\",D72<1),\"No\",IF(AND(CZ72<>\"No\",D72<VLOOKUP(E72,$CW$7:$CY$13,2)),\"Yes\",\"No\"))","v":"No"},{"$f":"IF(OR(B72=\"X\",D72=\"Vacant\",D72<1),\"No\",IF(AND(CZ72=\"Both\",D72>VLOOKUP(E72,$CW$7:$CY$13,3)),\"Yes\",\"No\"))","v":"No"},{"$f":"_xlfn.IFS(D72=\"\",\"\",D72=1,'MHP Family Income & Rent Limits'!$E$17,D72=2,'MHP Family Income & Rent Limits'!$F$17,D72=3,'MHP Family Income & Rent Limits'!$G$17,D72=4,'MHP Family Income & Rent Limits'!$H$17,D72=5,'MHP Family Income & Rent Limits'!$I$17,D72=6,'MHP Family Income & Rent Limits'!$J$17,D72=7,'MHP Family Income & Rent Limits'!$K$17,D72=8,'MHP Family Income & Rent Limits'!$L$17)","v":""},"",{"$f":"IF(OR(A72=0,B72=\"X\"),0,MIN(IF(AA72:AD72<>0,AA72:AD72)))","v":0},{"$f":"IF(OR(H72=\"\",I72=\"\"),0,IF(H72*0.3/12>I72,MIN(H72*0.3/12,I72*1.1)+AP72,I72*(1+(VLOOKUP('1. Checklist & Certification'!$F$9,'HLCP-E Rent Change'!$A$1:$D$59,4,FALSE)))+AP72))","v":0}]
[null,null,null,null,null,null,null,null,null,null,null,null,null,null,null,null,null,null,null,null,null,null,null,null,null,null,0,0,0,0,0,0,0,0,{"$f":"IF(OR(A73=0,B73=\"X\"),0,IF(OR(S73=\"FHDP\",S73=\"RHCP-B\",U73=\"FHDP\",U73=\"RHCP-B\",W73=\"FHDP\",W73=\"RHCP-B\",Y73=\"FHDP\",Y73=\"RHCP-B\"),TRUNC((MIN(I73,K73)*(1+'1. Checklist & Certification'!$K$43)+AP73)),0))","v":0},{"$f":"IF(OR(A73=0,B73=\"X\"),0,IF(OR(S73=\"CHRP-R\",S73=\"SERA\",S73=\"SUHRP\",U73=\"CHRP-R\",U73=\"SERA\",U73=\"SUHRP\",W73=\"CHRP-R\",W73=\"SERA\",W73=\"SUHRP\",Y73=\"CHRP-R\",Y73=\"SERA\",Y73=\"SUHRP\"),TRUNC((MIN(I73,K73)*(1+'1. Checklist & Certification'!$K$49))),0))","v":0},{"$f":"IF(OR(A73=0,B73=\"X\"),0,IF(OR(S73=\"CALDAP\",S73=\"DPRLP\",U73=\"CALDAP\",U73=\"DPRLP\",W73=\"CALDAP\",W73=\"DPRLP\",Y73=\"CALDAP\",Y73=\"DPRLP\"),TRUNC(((MIN(I73,K73))*(1+'1. Checklist & Certification'!$G$4))),0))","v":0},0,0,0,{"$f":"IF(OR(A73=0,B73=\"X\"),0,IF(OR(S73=\"PRP\",S73=\"LPR\",U73=\"PRP\",U73=\"LPR\",W73=\"PRP\",W73=\"LPR\",Y73=\"PRP\",Y73=\"LPR\"),MAX(I73+AP73,MIN(IF(AE73:AN73<>0,AE73:AN73))),MIN(IF(AE73:AN73<>0,AE73:AN73))))","v":0},{"$f":"IF(A73=0,0,IF(AND(OR(S73=\"Mgr\",S73=0),OR(U73=\"Mgr\",U73=0),OR(W73=\"Mgr\",W73=0)),0,IF(LEFT($A73,2)=\"B*\",VLOOKUP($E73,'1. Checklist & Certification'!$D$26:$E$32,2),IF(LEFT($A73,2)=\"C*\",VLOOKUP($E73,'1. Checklist & Certification'!$F$26:$G$32,2),IF(LEFT($A73,2)=\"D*\",VLOOKUP($E73,'1. Checklist & Certification'!$H$26:$I$32,2),IF(LEFT($A73,2)=\"E*\",VLOOKUP($E73,'1. Checklist & Certification'!$J$26:$K$32,2),VLOOKUP($E73,'1. Checklist & Certification'!$A$26:$B$32,2)))))))","v":0},0,0,null,null,null,null,"","",0,0,0,null,{"$f":"IF(A73=\"\",\"\",'1. Checklist & Certification'!$K$1)","v":""},{"$f":"IF(A73=\"\",\"\",'1. Checklist & Certification'!$C$62)","v":""},{"$f":"IF(A73=\"\",\"\",'1. Checklist & Certification'!$C$6)","v":""},{"$f":"IF(A73=\"\",\"\",'1. Checklist & Certification'!$G$5)","v":""},{"$f":"IFERROR(IF(A73=\"\",\"\",\n_xlfn.LET(_xlpm.Contract,'1. Checklist & Certification'!$C$7,\n_xlpm.Yr,TEXT(MOD(_xlfn.TEXTBEFORE(_xlpm.Contract,\"-\"),100),\"00\"),\n_xlpm.Program,_xlfn.TEXTAFTER(_xlfn.TEXTBEFORE(_xlpm.Contract,\"-\",2),\"-\"),\n_xlpm.CleanProgram,_xlfn.XLOOKUP(_xlpm.Program,SpellCheck[Input],SpellCheck[Correction],_xlpm.Program),\n_xlpm.Number,TEXT(_xlfn.TEXTAFTER(_xlpm.Contract,\"-\",2),\"0000\"),\n_xlfn.CONCAT(_xlpm.Yr,\"-\",_xlpm.CleanProgram,\"-\",_xlpm.Number))\n),\"\")","v":""},{"$f":"IFERROR(IF(A73=\"\",\"\",\n_xlfn.LET(_xlpm.Contract,'1. Checklist & Certification'!$C$8,\n_xlpm.Yr,TEXT(MOD(_xlfn.TEXTBEFORE(_xlpm.Contract,\"-\"),100),\"00\"),\n_xlpm.Program,_xlfn.TEXTAFTER(_xlfn.TEXTBEFORE(_xlpm.Contract,\"-\",2),\"-\"),\n_xlpm.CleanProgram,_xlfn.XLOOKUP(_xlpm.Program,SpellCheck[Input],SpellCheck[Correction],_xlpm.Program),\n_xlpm.Number,TEXT(_xlfn.TEXTAFTER(_xlpm.Contract,\"-\",2),\"0000\"),\n_xlfn.CONCAT(_xlpm.Yr,\"-\",_xlpm.CleanProgram,\"-\",_xlpm.Number))\n),\"\")","v":""},{"$f":"IFERROR(IF(A73=\"\",\"\",\n_xlfn.LET(_xlpm.Contract,'1. Checklist & Certification'!$F$7,\n_xlpm.Yr,TEXT(MOD(_xlfn.TEXTBEFORE(_xlpm.Contract,\"-\"),100),\"00\"),\n_xlpm.Program,_xlfn.TEXTAFTER(_xlfn.TEXTBEFORE(_xlpm.Contract,\"-\",2),\"-\"),\n_xlpm.CleanProgram,_xlfn.XLOOKUP(_xlpm.Program,SpellCheck[Input],SpellCheck[Correction],_xlpm.Program),\n_xlpm.Number,TEXT(_xlfn.TEXTAFTER(_xlpm.Contract,\"-\",2),\"0000\"),\n_xlfn.CONCAT(_xlpm.Yr,\"-\",_xlpm.CleanProgram,\"-\",_xlpm.Number))\n),\"\")","v":""},{"$f":"IFERROR(IF(A73=\"\",\"\",\n_xlfn.LET(_xlpm.Contract,'1. Checklist & Certification'!$F$8,\n_xlpm.Yr,TEXT(MOD(_xlfn.TEXTBEFORE(_xlpm.Contract,\"-\"),100),\"00\"),\n_xlpm.Program,_xlfn.TEXTAFTER(_xlfn.TEXTBEFORE(_xlpm.Contract,\"-\",2),\"-\"),\n_xlpm.CleanProgram,_xlfn.XLOOKUP(_xlpm.Program,SpellCheck[Input],SpellCheck[Correction],_xlpm.Program),\n_xlpm.Number,TEXT(_xlfn.TEXTAFTER(_xlpm.Contract,\"-\",2),\"0000\"),\n_xlfn.CONCAT(_xlpm.Yr,\"-\",_xlpm.CleanProgram,\"-\",_xlpm.Number))\n),\"\")","v":""},{"$f":"IF(A73=\"\",\"\",'1. Checklist & Certification'!$B$9)","v":""},{"$f":"IF(A73=\"\",\"\",'1. Checklist & Certification'!$F$9)","v":""},{"$f":"IF(A73=\"\",\"\",'1. Checklist & Certification'!$C$10)","v":""},{"$f":"IF(A73=\"\",\"\",'1. Checklist & Certification'!$C$11)","v":""},{"$f":"IF(A73=\"\",\"\",'1. Checklist & Certification'!$C$12)","v":""},{"$f":"IF(A73=\"\",\"\",'1. Checklist & Certification'!$B$14)","v":""},{"$f":"IF(A73=\"\",\"\",'1. Checklist & Certification'!$E$14)","v":""},{"$f":"IF(B73=\"\",\"\",'1. Checklist & Certification'!$G$14)","v":""},{"$f":"IF(A73=\"\",\"\",'MHP Family Income & Rent Limits'!$B$3)","v":""},{"$f":"IF(A73=\"\",\"\",'MHP Family Income & Rent Limits'!$J$3)","v":""},{"$f":"IF(A73=\"\",\"\",'MHP Family Income & Rent Limits'!$E$4)","v":""},{"$f":"IF(A73=\"\",\"\",'MHP Family Income & Rent Limits'!$C$7)","v":""},{"$f":"IF(A73=\"\",\"\",'MHP Family Income & Rent Limits'!$F$8)","v":""},{"$f":"IF(A73=\"\",\"\",'1. Checklist & Certification'!$G$4)","v":""},{"$f":"IF(A73=\"\",\"\",'1. Checklist & Certification'!$K$39)","v":""},{"$f":"IF(A73=\"\",\"\",'1. Checklist & Certification'!$K$43)","v":""},{"$f":"IF(A73=\"\",\"\",'1. Checklist & Certification'!$K$45)","v":""},{"$f":"IF(A73=\"\",\"\",'1. Checklist & Certification'!$K$49)","v":""},{"$f":"IF(A73=\"\",\"\",'1. Checklist & Certification'!$K$62)","v":""},{"$f":"IF(A73=\"\",\"\",'1. Checklist & Certification'!$E$66)","v":""},{"$f":"IF(A73=\"\",\"\",'1. Checklist & Certification'!$E$67)","v":""},{"$f":"IF(A73=\"\",\"\",'1. Checklist & Certification'!$E$68)","v":""},{"$f":"IF(A73=\"\",\"\",'1. Checklist & Certification'!$G$66)","v":""},{"$f":"IF(A73=\"\",\"\",'1. Checklist & Certification'!$H$66)","v":""},{"$f":"IF(A73=\"\",\"\",'1. Checklist & Certification'!$I$66)","v":""},{"$f":"IF(A73=\"\",\"\",'1. Checklist & Certification'!$I$67)","v":""},{"$f":"IF(A73=\"\",\"\",'1. Checklist & Certification'!$I$68)","v":""},{"$f":"IF(A73=\"\",\"\",'1. Checklist & Certification'!$B$69)","v":""},{"$f":"IF(A73=\"\",\"\",'1. Checklist & Certification'!$C$69)","v":""},{"$f":"IF(A73=\"\",\"\",'1. Checklist & Certification'!$F$69)","v":""},{"$f":"IF(A73=\"\",\"\",'1. Checklist & Certification'!$G$69)","v":""},{"$f":"IF(A73=\"\",\"\",'1. Checklist & Certification'!$J$69)","v":""},{"$f":"IF(A73=\"\",\"\",'1. Checklist & Certification'!$K$69)","v":""},null,null,{"$f":"IF(AND(OR('1. Checklist & Certification'!$M$16=1,'1. Checklist & Certification'!$M$19=2),AO73>0,B73=\"\",I73>0,AQ73<I73,AV73<>\"Sec 8-Project\"),\"X\",IF(AND(OR('1. Checklist & Certification'!$M$20=4,'1. Checklist & Certification'!$M$21=5,'1. Checklist & Certification'!$M$22=7),AO73>0,B73=\"\",I73>0,K73<I73),\"X\",\"\"))","v":""},{"$f":"IF(A73=\"\",\"\",IF(SUMPRODUCT(-- (ISNUMBER(SEARCH({\"*AHSC*\",\"*FMTW*\",\"*FWHG*\",\"*GHI*\",\"*HHC*\",\"*HLCP*\",\"*HOME*\",\"*LPR*\",\"*MHP*\",\"*NHTF*\",\"*NSP*\",\"*PRP*\",\"*TOD*\",\"*VHHP*\"},'1. Checklist & Certification'!$L$7)))),\"MHP\",\"Legacy\"))","v":""},",,",null,null,null,{"$f":"IF('1. Checklist & Certification'!$M$20=4,\"Both\",IF(OR('1. Checklist & Certification'!$M$15>0,S73=\"CHRP-R\",U73=\"CHRP-R\",W73=\"CHRP-R\",Y73=\"CHRP-R\"),\"Under\",\"No\"))","v":"No"},"No","No",{"$f":"_xlfn.IFS(D73=\"\",\"\",D73=1,'MHP Family Income & Rent Limits'!$E$17,D73=2,'MHP Family Income & Rent Limits'!$F$17,D73=3,'MHP Family Income & Rent Limits'!$G$17,D73=4,'MHP Family Income & Rent Limits'!$H$17,D73=5,'MHP Family Income & Rent Limits'!$I$17,D73=6,'MHP Family Income & Rent Limits'!$J$17,D73=7,'MHP Family Income & Rent Limits'!$K$17,D73=8,'MHP Family Income & Rent Limits'!$L$17)","v":""},"",{"$f":"IF(OR(A73=0,B73=\"X\"),0,MIN(IF(AA73:AD73<>0,AA73:AD73)))","v":0},{"$f":"IF(OR(H73=\"\",I73=\"\"),0,IF(H73*0.3/12>I73,MIN(H73*0.3/12,I73*1.1)+AP73,I73*(1+(VLOOKUP('1. Checklist & Certification'!$F$9,'HLCP-E Rent Change'!$A$1:$D$59,4,FALSE)))+AP73))","v":0}]
[null,null,null,null,null,null,null,null,null,null,null,null,null,null,null,null,null,null,null,null,null,null,null,null,null,null,0,0,0,0,0,0,0,0,{"$f":"IF(OR(A74=0,B74=\"X\"),0,IF(OR(S74=\"FHDP\",S74=\"RHCP-B\",U74=\"FHDP\",U74=\"RHCP-B\",W74=\"FHDP\",W74=\"RHCP-B\",Y74=\"FHDP\",Y74=\"RHCP-B\"),TRUNC((MIN(I74,K74)*(1+'1. Checklist & Certification'!$K$43)+AP74)),0))","v":0},{"$f":"IF(OR(A74=0,B74=\"X\"),0,IF(OR(S74=\"CHRP-R\",S74=\"SERA\",S74=\"SUHRP\",U74=\"CHRP-R\",U74=\"SERA\",U74=\"SUHRP\",W74=\"CHRP-R\",W74=\"SERA\",W74=\"SUHRP\",Y74=\"CHRP-R\",Y74=\"SERA\",Y74=\"SUHRP\"),TRUNC((MIN(I74,K74)*(1+'1. Checklist & Certification'!$K$49))),0))","v":0},{"$f":"IF(OR(A74=0,B74=\"X\"),0,IF(OR(S74=\"CALDAP\",S74=\"DPRLP\",U74=\"CALDAP\",U74=\"DPRLP\",W74=\"CALDAP\",W74=\"DPRLP\",Y74=\"CALDAP\",Y74=\"DPRLP\"),TRUNC(((MIN(I74,K74))*(1+'1. Checklist & Certification'!$G$4))),0))","v":0},0,0,0,{"$f":"IF(OR(A74=0,B74=\"X\"),0,IF(OR(S74=\"PRP\",S74=\"LPR\",U74=\"PRP\",U74=\"LPR\",W74=\"PRP\",W74=\"LPR\",Y74=\"PRP\",Y74=\"LPR\"),MAX(I74+AP74,MIN(IF(AE74:AN74<>0,AE74:AN74))),MIN(IF(AE74:AN74<>0,AE74:AN74))))","v":0},{"$f":"IF(A74=0,0,IF(AND(OR(S74=\"Mgr\",S74=0),OR(U74=\"Mgr\",U74=0),OR(W74=\"Mgr\",W74=0)),0,IF(LEFT($A74,2)=\"B*\",VLOOKUP($E74,'1. Checklist & Certification'!$D$26:$E$32,2),IF(LEFT($A74,2)=\"C*\",VLOOKUP($E74,'1. Checklist & Certification'!$F$26:$G$32,2),IF(LEFT($A74,2)=\"D*\",VLOOKUP($E74,'1. Checklist & Certification'!$H$26:$I$32,2),IF(LEFT($A74,2)=\"E*\",VLOOKUP($E74,'1. Checklist & Certification'!$J$26:$K$32,2),VLOOKUP($E74,'1. Checklist & Certification'!$A$26:$B$32,2)))))))","v":0},0,0,null,null,null,null,"","",0,0,0,null,{"$f":"IF(A74=\"\",\"\",'1. Checklist & Certification'!$K$1)","v":""},{"$f":"IF(A74=\"\",\"\",'1. Checklist & Certification'!$C$62)","v":""},{"$f":"IF(A74=\"\",\"\",'1. Checklist & Certification'!$C$6)","v":""},{"$f":"IF(A74=\"\",\"\",'1. Checklist & Certification'!$G$5)","v":""},{"$f":"IFERROR(IF(A74=\"\",\"\",\n_xlfn.LET(_xlpm.Contract,'1. Checklist & Certification'!$C$7,\n_xlpm.Yr,TEXT(MOD(_xlfn.TEXTBEFORE(_xlpm.Contract,\"-\"),100),\"00\"),\n_xlpm.Program,_xlfn.TEXTAFTER(_xlfn.TEXTBEFORE(_xlpm.Contract,\"-\",2),\"-\"),\n_xlpm.CleanProgram,_xlfn.XLOOKUP(_xlpm.Program,SpellCheck[Input],SpellCheck[Correction],_xlpm.Program),\n_xlpm.Number,TEXT(_xlfn.TEXTAFTER(_xlpm.Contract,\"-\",2),\"0000\"),\n_xlfn.CONCAT(_xlpm.Yr,\"-\",_xlpm.CleanProgram,\"-\",_xlpm.Number))\n),\"\")","v":""},{"$f":"IFERROR(IF(A74=\"\",\"\",\n_xlfn.LET(_xlpm.Contract,'1. Checklist & Certification'!$C$8,\n_xlpm.Yr,TEXT(MOD(_xlfn.TEXTBEFORE(_xlpm.Contract,\"-\"),100),\"00\"),\n_xlpm.Program,_xlfn.TEXTAFTER(_xlfn.TEXTBEFORE(_xlpm.Contract,\"-\",2),\"-\"),\n_xlpm.CleanProgram,_xlfn.XLOOKUP(_xlpm.Program,SpellCheck[Input],SpellCheck[Correction],_xlpm.Program),\n_xlpm.Number,TEXT(_xlfn.TEXTAFTER(_xlpm.Contract,\"-\",2),\"0000\"),\n_xlfn.CONCAT(_xlpm.Yr,\"-\",_xlpm.CleanProgram,\"-\",_xlpm.Number))\n),\"\")","v":""},{"$f":"IFERROR(IF(A74=\"\",\"\",\n_xlfn.LET(_xlpm.Contract,'1. Checklist & Certification'!$F$7,\n_xlpm.Yr,TEXT(MOD(_xlfn.TEXTBEFORE(_xlpm.Contract,\"-\"),100),\"00\"),\n_xlpm.Program,_xlfn.TEXTAFTER(_xlfn.TEXTBEFORE(_xlpm.Contract,\"-\",2),\"-\"),\n_xlpm.CleanProgram,_xlfn.XLOOKUP(_xlpm.Program,SpellCheck[Input],SpellCheck[Correction],_xlpm.Program),\n_xlpm.Number,TEXT(_xlfn.TEXTAFTER(_xlpm.Contract,\"-\",2),\"0000\"),\n_xlfn.CONCAT(_xlpm.Yr,\"-\",_xlpm.CleanProgram,\"-\",_xlpm.Number))\n),\"\")","v":""},{"$f":"IFERROR(IF(A74=\"\",\"\",\n_xlfn.LET(_xlpm.Contract,'1. Checklist & Certification'!$F$8,\n_xlpm.Yr,TEXT(MOD(_xlfn.TEXTBEFORE(_xlpm.Contract,\"-\"),100),\"00\"),\n_xlpm.Program,_xlfn.TEXTAFTER(_xlfn.TEXTBEFORE(_xlpm.Contract,\"-\",2),\"-\"),\n_xlpm.CleanProgram,_xlfn.XLOOKUP(_xlpm.Program,SpellCheck[Input],SpellCheck[Correction],_xlpm.Program),\n_xlpm.Number,TEXT(_xlfn.TEXTAFTER(_xlpm.Contract,\"-\",2),\"0000\"),\n_xlfn.CONCAT(_xlpm.Yr,\"-\",_xlpm.CleanProgram,\"-\",_xlpm.Number))\n),\"\")","v":""},{"$f":"IF(A74=\"\",\"\",'1. Checklist & Certification'!$B$9)","v":""},{"$f":"IF(A74=\"\",\"\",'1. Checklist & Certification'!$F$9)","v":""},{"$f":"IF(A74=\"\",\"\",'1. Checklist & Certification'!$C$10)","v":""},{"$f":"IF(A74=\"\",\"\",'1. Checklist & Certification'!$C$11)","v":""},{"$f":"IF(A74=\"\",\"\",'1. Checklist & Certification'!$C$12)","v":""},{"$f":"IF(A74=\"\",\"\",'1. Checklist & Certification'!$B$14)","v":""},{"$f":"IF(A74=\"\",\"\",'1. Checklist & Certification'!$E$14)","v":""},{"$f":"IF(B74=\"\",\"\",'1. Checklist & Certification'!$G$14)","v":""},{"$f":"IF(A74=\"\",\"\",'MHP Family Income & Rent Limits'!$B$3)","v":""},{"$f":"IF(A74=\"\",\"\",'MHP Family Income & Rent Limits'!$J$3)","v":""},{"$f":"IF(A74=\"\",\"\",'MHP Family Income & Rent Limits'!$E$4)","v":""},{"$f":"IF(A74=\"\",\"\",'MHP Family Income & Rent Limits'!$C$7)","v":""},{"$f":"IF(A74=\"\",\"\",'MHP Family Income & Rent Limits'!$F$8)","v":""},{"$f":"IF(A74=\"\",\"\",'1. Checklist & Certification'!$G$4)","v":""},{"$f":"IF(A74=\"\",\"\",'1. Checklist & Certification'!$K$39)","v":""},{"$f":"IF(A74=\"\",\"\",'1. Checklist & Certification'!$K$43)","v":""},{"$f":"IF(A74=\"\",\"\",'1. Checklist & Certification'!$K$45)","v":""},{"$f":"IF(A74=\"\",\"\",'1. Checklist & Certification'!$K$49)","v":""},{"$f":"IF(A74=\"\",\"\",'1. Checklist & Certification'!$K$62)","v":""},{"$f":"IF(A74=\"\",\"\",'1. Checklist & Certification'!$E$66)","v":""},{"$f":"IF(A74=\"\",\"\",'1. Checklist & Certification'!$E$67)","v":""},{"$f":"IF(A74=\"\",\"\",'1. Checklist & Certification'!$E$68)","v":""},{"$f":"IF(A74=\"\",\"\",'1. Checklist & Certification'!$G$66)","v":""},{"$f":"IF(A74=\"\",\"\",'1. Checklist & Certification'!$H$66)","v":""},{"$f":"IF(A74=\"\",\"\",'1. Checklist & Certification'!$I$66)","v":""},{"$f":"IF(A74=\"\",\"\",'1. Checklist & Certification'!$I$67)","v":""},{"$f":"IF(A74=\"\",\"\",'1. Checklist & Certification'!$I$68)","v":""},{"$f":"IF(A74=\"\",\"\",'1. Checklist & Certification'!$B$69)","v":""},{"$f":"IF(A74=\"\",\"\",'1. Checklist & Certification'!$C$69)","v":""},{"$f":"IF(A74=\"\",\"\",'1. Checklist & Certification'!$F$69)","v":""},{"$f":"IF(A74=\"\",\"\",'1. Checklist & Certification'!$G$69)","v":""},{"$f":"IF(A74=\"\",\"\",'1. Checklist & Certification'!$J$69)","v":""},{"$f":"IF(A74=\"\",\"\",'1. Checklist & Certification'!$K$69)","v":""},null,null,{"$f":"IF(AND(OR('1. Checklist & Certification'!$M$16=1,'1. Checklist & Certification'!$M$19=2),AO74>0,B74=\"\",I74>0,AQ74<I74,AV74<>\"Sec 8-Project\"),\"X\",IF(AND(OR('1. Checklist & Certification'!$M$20=4,'1. Checklist & Certification'!$M$21=5,'1. Checklist & Certification'!$M$22=7),AO74>0,B74=\"\",I74>0,K74<I74),\"X\",\"\"))","v":""},{"$f":"IF(A74=\"\",\"\",IF(SUMPRODUCT(-- (ISNUMBER(SEARCH({\"*AHSC*\",\"*FMTW*\",\"*FWHG*\",\"*GHI*\",\"*HHC*\",\"*HLCP*\",\"*HOME*\",\"*LPR*\",\"*MHP*\",\"*NHTF*\",\"*NSP*\",\"*PRP*\",\"*TOD*\",\"*VHHP*\"},'1. Checklist & Certification'!$L$7)))),\"MHP\",\"Legacy\"))","v":""},",,",null,null,null,{"$f":"IF('1. Checklist & Certification'!$M$20=4,\"Both\",IF(OR('1. Checklist & Certification'!$M$15>0,S74=\"CHRP-R\",U74=\"CHRP-R\",W74=\"CHRP-R\",Y74=\"CHRP-R\"),\"Under\",\"No\"))","v":"No"},"No","No",{"$f":"_xlfn.IFS(D74=\"\",\"\",D74=1,'MHP Family Income & Rent Limits'!$E$17,D74=2,'MHP Family Income & Rent Limits'!$F$17,D74=3,'MHP Family Income & Rent Limits'!$G$17,D74=4,'MHP Family Income & Rent Limits'!$H$17,D74=5,'MHP Family Income & Rent Limits'!$I$17,D74=6,'MHP Family Income & Rent Limits'!$J$17,D74=7,'MHP Family Income & Rent Limits'!$K$17,D74=8,'MHP Family Income & Rent Limits'!$L$17)","v":""},"",{"$f":"IF(OR(A74=0,B74=\"X\"),0,MIN(IF(AA74:AD74<>0,AA74:AD74)))","v":0},{"$f":"IF(OR(H74=\"\",I74=\"\"),0,IF(H74*0.3/12>I74,MIN(H74*0.3/12,I74*1.1)+AP74,I74*(1+(VLOOKUP('1. Checklist & Certification'!$F$9,'HLCP-E Rent Change'!$A$1:$D$59,4,FALSE)))+AP74))","v":0}]
[null,null,null,null,null,null,null,null,null,null,null,null,null,null,null,null,null,null,null,null,null,null,null,null,null,null,0,0,0,0,0,0,0,0,{"$f":"IF(OR(A75=0,B75=\"X\"),0,IF(OR(S75=\"FHDP\",S75=\"RHCP-B\",U75=\"FHDP\",U75=\"RHCP-B\",W75=\"FHDP\",W75=\"RHCP-B\",Y75=\"FHDP\",Y75=\"RHCP-B\"),TRUNC((MIN(I75,K75)*(1+'1. Checklist & Certification'!$K$43)+AP75)),0))","v":0},{"$f":"IF(OR(A75=0,B75=\"X\"),0,IF(OR(S75=\"CHRP-R\",S75=\"SERA\",S75=\"SUHRP\",U75=\"CHRP-R\",U75=\"SERA\",U75=\"SUHRP\",W75=\"CHRP-R\",W75=\"SERA\",W75=\"SUHRP\",Y75=\"CHRP-R\",Y75=\"SERA\",Y75=\"SUHRP\"),TRUNC((MIN(I75,K75)*(1+'1. Checklist & Certification'!$K$49))),0))","v":0},{"$f":"IF(OR(A75=0,B75=\"X\"),0,IF(OR(S75=\"CALDAP\",S75=\"DPRLP\",U75=\"CALDAP\",U75=\"DPRLP\",W75=\"CALDAP\",W75=\"DPRLP\",Y75=\"CALDAP\",Y75=\"DPRLP\"),TRUNC(((MIN(I75,K75))*(1+'1. Checklist & Certification'!$G$4))),0))","v":0},0,0,0,{"$f":"IF(OR(A75=0,B75=\"X\"),0,IF(OR(S75=\"PRP\",S75=\"LPR\",U75=\"PRP\",U75=\"LPR\",W75=\"PRP\",W75=\"LPR\",Y75=\"PRP\",Y75=\"LPR\"),MAX(I75+AP75,MIN(IF(AE75:AN75<>0,AE75:AN75))),MIN(IF(AE75:AN75<>0,AE75:AN75))))","v":0},{"$f":"IF(A75=0,0,IF(AND(OR(S75=\"Mgr\",S75=0),OR(U75=\"Mgr\",U75=0),OR(W75=\"Mgr\",W75=0)),0,IF(LEFT($A75,2)=\"B*\",VLOOKUP($E75,'1. Checklist & Certification'!$D$26:$E$32,2),IF(LEFT($A75,2)=\"C*\",VLOOKUP($E75,'1. Checklist & Certification'!$F$26:$G$32,2),IF(LEFT($A75,2)=\"D*\",VLOOKUP($E75,'1. Checklist & Certification'!$H$26:$I$32,2),IF(LEFT($A75,2)=\"E*\",VLOOKUP($E75,'1. Checklist & Certification'!$J$26:$K$32,2),VLOOKUP($E75,'1. Checklist & Certification'!$A$26:$B$32,2)))))))","v":0},0,0,null,null,null,null,"","",0,0,0,null,{"$f":"IF(A75=\"\",\"\",'1. Checklist & Certification'!$K$1)","v":""},{"$f":"IF(A75=\"\",\"\",'1. Checklist & Certification'!$C$62)","v":""},{"$f":"IF(A75=\"\",\"\",'1. Checklist & Certification'!$C$6)","v":""},{"$f":"IF(A75=\"\",\"\",'1. Checklist & Certification'!$G$5)","v":""},{"$f":"IFERROR(IF(A75=\"\",\"\",\n_xlfn.LET(_xlpm.Contract,'1. Checklist & Certification'!$C$7,\n_xlpm.Yr,TEXT(MOD(_xlfn.TEXTBEFORE(_xlpm.Contract,\"-\"),100),\"00\"),\n_xlpm.Program,_xlfn.TEXTAFTER(_xlfn.TEXTBEFORE(_xlpm.Contract,\"-\",2),\"-\"),\n_xlpm.CleanProgram,_xlfn.XLOOKUP(_xlpm.Program,SpellCheck[Input],SpellCheck[Correction],_xlpm.Program),\n_xlpm.Number,TEXT(_xlfn.TEXTAFTER(_xlpm.Contract,\"-\",2),\"0000\"),\n_xlfn.CONCAT(_xlpm.Yr,\"-\",_xlpm.CleanProgram,\"-\",_xlpm.Number))\n),\"\")","v":""},{"$f":"IFERROR(IF(A75=\"\",\"\",\n_xlfn.LET(_xlpm.Contract,'1. Checklist & Certification'!$C$8,\n_xlpm.Yr,TEXT(MOD(_xlfn.TEXTBEFORE(_xlpm.Contract,\"-\"),100),\"00\"),\n_xlpm.Program,_xlfn.TEXTAFTER(_xlfn.TEXTBEFORE(_xlpm.Contract,\"-\",2),\"-\"),\n_xlpm.CleanProgram,_xlfn.XLOOKUP(_xlpm.Program,SpellCheck[Input],SpellCheck[Correction],_xlpm.Program),\n_xlpm.Number,TEXT(_xlfn.TEXTAFTER(_xlpm.Contract,\"-\",2),\"0000\"),\n_xlfn.CONCAT(_xlpm.Yr,\"-\",_xlpm.CleanProgram,\"-\",_xlpm.Number))\n),\"\")","v":""},{"$f":"IFERROR(IF(A75=\"\",\"\",\n_xlfn.LET(_xlpm.Contract,'1. Checklist & Certification'!$F$7,\n_xlpm.Yr,TEXT(MOD(_xlfn.TEXTBEFORE(_xlpm.Contract,\"-\"),100),\"00\"),\n_xlpm.Program,_xlfn.TEXTAFTER(_xlfn.TEXTBEFORE(_xlpm.Contract,\"-\",2),\"-\"),\n_xlpm.CleanProgram,_xlfn.XLOOKUP(_xlpm.Program,SpellCheck[Input],SpellCheck[Correction],_xlpm.Program),\n_xlpm.Number,TEXT(_xlfn.TEXTAFTER(_xlpm.Contract,\"-\",2),\"0000\"),\n_xlfn.CONCAT(_xlpm.Yr,\"-\",_xlpm.CleanProgram,\"-\",_xlpm.Number))\n),\"\")","v":""},{"$f":"IFERROR(IF(A75=\"\",\"\",\n_xlfn.LET(_xlpm.Contract,'1. Checklist & Certification'!$F$8,\n_xlpm.Yr,TEXT(MOD(_xlfn.TEXTBEFORE(_xlpm.Contract,\"-\"),100),\"00\"),\n_xlpm.Program,_xlfn.TEXTAFTER(_xlfn.TEXTBEFORE(_xlpm.Contract,\"-\",2),\"-\"),\n_xlpm.CleanProgram,_xlfn.XLOOKUP(_xlpm.Program,SpellCheck[Input],SpellCheck[Correction],_xlpm.Program),\n_xlpm.Number,TEXT(_xlfn.TEXTAFTER(_xlpm.Contract,\"-\",2),\"0000\"),\n_xlfn.CONCAT(_xlpm.Yr,\"-\",_xlpm.CleanProgram,\"-\",_xlpm.Number))\n),\"\")","v":""},{"$f":"IF(A75=\"\",\"\",'1. Checklist & Certification'!$B$9)","v":""},{"$f":"IF(A75=\"\",\"\",'1. Checklist & Certification'!$F$9)","v":""},{"$f":"IF(A75=\"\",\"\",'1. Checklist & Certification'!$C$10)","v":""},{"$f":"IF(A75=\"\",\"\",'1. Checklist & Certification'!$C$11)","v":""},{"$f":"IF(A75=\"\",\"\",'1. Checklist & Certification'!$C$12)","v":""},{"$f":"IF(A75=\"\",\"\",'1. Checklist & Certification'!$B$14)","v":""},{"$f":"IF(A75=\"\",\"\",'1. Checklist & Certification'!$E$14)","v":""},{"$f":"IF(B75=\"\",\"\",'1. Checklist & Certification'!$G$14)","v":""},{"$f":"IF(A75=\"\",\"\",'MHP Family Income & Rent Limits'!$B$3)","v":""},{"$f":"IF(A75=\"\",\"\",'MHP Family Income & Rent Limits'!$J$3)","v":""},{"$f":"IF(A75=\"\",\"\",'MHP Family Income & Rent Limits'!$E$4)","v":""},{"$f":"IF(A75=\"\",\"\",'MHP Family Income & Rent Limits'!$C$7)","v":""},{"$f":"IF(A75=\"\",\"\",'MHP Family Income & Rent Limits'!$F$8)","v":""},{"$f":"IF(A75=\"\",\"\",'1. Checklist & Certification'!$G$4)","v":""},{"$f":"IF(A75=\"\",\"\",'1. Checklist & Certification'!$K$39)","v":""},{"$f":"IF(A75=\"\",\"\",'1. Checklist & Certification'!$K$43)","v":""},{"$f":"IF(A75=\"\",\"\",'1. Checklist & Certification'!$K$45)","v":""},{"$f":"IF(A75=\"\",\"\",'1. Checklist & Certification'!$K$49)","v":""},{"$f":"IF(A75=\"\",\"\",'1. Checklist & Certification'!$K$62)","v":""},{"$f":"IF(A75=\"\",\"\",'1. Checklist & Certification'!$E$66)","v":""},{"$f":"IF(A75=\"\",\"\",'1. Checklist & Certification'!$E$67)","v":""},{"$f":"IF(A75=\"\",\"\",'1. Checklist & Certification'!$E$68)","v":""},{"$f":"IF(A75=\"\",\"\",'1. Checklist & Certification'!$G$66)","v":""},{"$f":"IF(A75=\"\",\"\",'1. Checklist & Certification'!$H$66)","v":""},{"$f":"IF(A75=\"\",\"\",'1. Checklist & Certification'!$I$66)","v":""},{"$f":"IF(A75=\"\",\"\",'1. Checklist & Certification'!$I$67)","v":""},{"$f":"IF(A75=\"\",\"\",'1. Checklist & Certification'!$I$68)","v":""},{"$f":"IF(A75=\"\",\"\",'1. Checklist & Certification'!$B$69)","v":""},{"$f":"IF(A75=\"\",\"\",'1. Checklist & Certification'!$C$69)","v":""},{"$f":"IF(A75=\"\",\"\",'1. Checklist & Certification'!$F$69)","v":""},{"$f":"IF(A75=\"\",\"\",'1. Checklist & Certification'!$G$69)","v":""},{"$f":"IF(A75=\"\",\"\",'1. Checklist & Certification'!$J$69)","v":""},{"$f":"IF(A75=\"\",\"\",'1. Checklist & Certification'!$K$69)","v":""},null,null,{"$f":"IF(AND(OR('1. Checklist & Certification'!$M$16=1,'1. Checklist & Certification'!$M$19=2),AO75>0,B75=\"\",I75>0,AQ75<I75,AV75<>\"Sec 8-Project\"),\"X\",IF(AND(OR('1. Checklist & Certification'!$M$20=4,'1. Checklist & Certification'!$M$21=5,'1. Checklist & Certification'!$M$22=7),AO75>0,B75=\"\",I75>0,K75<I75),\"X\",\"\"))","v":""},{"$f":"IF(A75=\"\",\"\",IF(SUMPRODUCT(-- (ISNUMBER(SEARCH({\"*AHSC*\",\"*FMTW*\",\"*FWHG*\",\"*GHI*\",\"*HHC*\",\"*HLCP*\",\"*HOME*\",\"*LPR*\",\"*MHP*\",\"*NHTF*\",\"*NSP*\",\"*PRP*\",\"*TOD*\",\"*VHHP*\"},'1. Checklist & Certification'!$L$7)))),\"MHP\",\"Legacy\"))","v":""},",,",null,null,null,{"$f":"IF('1. Checklist & Certification'!$M$20=4,\"Both\",IF(OR('1. Checklist & Certification'!$M$15>0,S75=\"CHRP-R\",U75=\"CHRP-R\",W75=\"CHRP-R\",Y75=\"CHRP-R\"),\"Under\",\"No\"))","v":"No"},"No","No",{"$f":"_xlfn.IFS(D75=\"\",\"\",D75=1,'MHP Family Income & Rent Limits'!$E$17,D75=2,'MHP Family Income & Rent Limits'!$F$17,D75=3,'MHP Family Income & Rent Limits'!$G$17,D75=4,'MHP Family Income & Rent Limits'!$H$17,D75=5,'MHP Family Income & Rent Limits'!$I$17,D75=6,'MHP Family Income & Rent Limits'!$J$17,D75=7,'MHP Family Income & Rent Limits'!$K$17,D75=8,'MHP Family Income & Rent Limits'!$L$17)","v":""},"",{"$f":"IF(OR(A75=0,B75=\"X\"),0,MIN(IF(AA75:AD75<>0,AA75:AD75)))","v":0},{"$f":"IF(OR(H75=\"\",I75=\"\"),0,IF(H75*0.3/12>I75,MIN(H75*0.3/12,I75*1.1)+AP75,I75*(1+(VLOOKUP('1. Checklist & Certification'!$F$9,'HLCP-E Rent Change'!$A$1:$D$59,4,FALSE)))+AP75))","v":0}]
[null,null,null,null,null,null,null,null,null,null,null,null,null,null,null,null,null,null,null,null,null,null,null,null,null,null,0,0,0,0,0,0,0,0,{"$f":"IF(OR(A76=0,B76=\"X\"),0,IF(OR(S76=\"FHDP\",S76=\"RHCP-B\",U76=\"FHDP\",U76=\"RHCP-B\",W76=\"FHDP\",W76=\"RHCP-B\",Y76=\"FHDP\",Y76=\"RHCP-B\"),TRUNC((MIN(I76,K76)*(1+'1. Checklist & Certification'!$K$43)+AP76)),0))","v":0},{"$f":"IF(OR(A76=0,B76=\"X\"),0,IF(OR(S76=\"CHRP-R\",S76=\"SERA\",S76=\"SUHRP\",U76=\"CHRP-R\",U76=\"SERA\",U76=\"SUHRP\",W76=\"CHRP-R\",W76=\"SERA\",W76=\"SUHRP\",Y76=\"CHRP-R\",Y76=\"SERA\",Y76=\"SUHRP\"),TRUNC((MIN(I76,K76)*(1+'1. Checklist & Certification'!$K$49))),0))","v":0},{"$f":"IF(OR(A76=0,B76=\"X\"),0,IF(OR(S76=\"CALDAP\",S76=\"DPRLP\",U76=\"CALDAP\",U76=\"DPRLP\",W76=\"CALDAP\",W76=\"DPRLP\",Y76=\"CALDAP\",Y76=\"DPRLP\"),TRUNC(((MIN(I76,K76))*(1+'1. Checklist & Certification'!$G$4))),0))","v":0},0,0,0,{"$f":"IF(OR(A76=0,B76=\"X\"),0,IF(OR(S76=\"PRP\",S76=\"LPR\",U76=\"PRP\",U76=\"LPR\",W76=\"PRP\",W76=\"LPR\",Y76=\"PRP\",Y76=\"LPR\"),MAX(I76+AP76,MIN(IF(AE76:AN76<>0,AE76:AN76))),MIN(IF(AE76:AN76<>0,AE76:AN76))))","v":0},{"$f":"IF(A76=0,0,IF(AND(OR(S76=\"Mgr\",S76=0),OR(U76=\"Mgr\",U76=0),OR(W76=\"Mgr\",W76=0)),0,IF(LEFT($A76,2)=\"B*\",VLOOKUP($E76,'1. Checklist & Certification'!$D$26:$E$32,2),IF(LEFT($A76,2)=\"C*\",VLOOKUP($E76,'1. Checklist & Certification'!$F$26:$G$32,2),IF(LEFT($A76,2)=\"D*\",VLOOKUP($E76,'1. Checklist & Certification'!$H$26:$I$32,2),IF(LEFT($A76,2)=\"E*\",VLOOKUP($E76,'1. Checklist & Certification'!$J$26:$K$32,2),VLOOKUP($E76,'1. Checklist & Certification'!$A$26:$B$32,2)))))))","v":0},0,0,null,null,null,null,"","",0,0,0,null,{"$f":"IF(A76=\"\",\"\",'1. Checklist & Certification'!$K$1)","v":""},{"$f":"IF(A76=\"\",\"\",'1. Checklist & Certification'!$C$62)","v":""},{"$f":"IF(A76=\"\",\"\",'1. Checklist & Certification'!$C$6)","v":""},{"$f":"IF(A76=\"\",\"\",'1. Checklist & Certification'!$G$5)","v":""},{"$f":"IFERROR(IF(A76=\"\",\"\",\n_xlfn.LET(_xlpm.Contract,'1. Checklist & Certification'!$C$7,\n_xlpm.Yr,TEXT(MOD(_xlfn.TEXTBEFORE(_xlpm.Contract,\"-\"),100),\"00\"),\n_xlpm.Program,_xlfn.TEXTAFTER(_xlfn.TEXTBEFORE(_xlpm.Contract,\"-\",2),\"-\"),\n_xlpm.CleanProgram,_xlfn.XLOOKUP(_xlpm.Program,SpellCheck[Input],SpellCheck[Correction],_xlpm.Program),\n_xlpm.Number,TEXT(_xlfn.TEXTAFTER(_xlpm.Contract,\"-\",2),\"0000\"),\n_xlfn.CONCAT(_xlpm.Yr,\"-\",_xlpm.CleanProgram,\"-\",_xlpm.Number))\n),\"\")","v":""},{"$f":"IFERROR(IF(A76=\"\",\"\",\n_xlfn.LET(_xlpm.Contract,'1. Checklist & Certification'!$C$8,\n_xlpm.Yr,TEXT(MOD(_xlfn.TEXTBEFORE(_xlpm.Contract,\"-\"),100),\"00\"),\n_xlpm.Program,_xlfn.TEXTAFTER(_xlfn.TEXTBEFORE(_xlpm.Contract,\"-\",2),\"-\"),\n_xlpm.CleanProgram,_xlfn.XLOOKUP(_xlpm.Program,SpellCheck[Input],SpellCheck[Correction],_xlpm.Program),\n_xlpm.Number,TEXT(_xlfn.TEXTAFTER(_xlpm.Contract,\"-\",2),\"0000\"),\n_xlfn.CONCAT(_xlpm.Yr,\"-\",_xlpm.CleanProgram,\"-\",_xlpm.Number))\n),\"\")","v":""},{"$f":"IFERROR(IF(A76=\"\",\"\",\n_xlfn.LET(_xlpm.Contract,'1. Checklist & Certification'!$F$7,\n_xlpm.Yr,TEXT(MOD(_xlfn.TEXTBEFORE(_xlpm.Contract,\"-\"),100),\"00\"),\n_xlpm.Program,_xlfn.TEXTAFTER(_xlfn.TEXTBEFORE(_xlpm.Contract,\"-\",2),\"-\"),\n_xlpm.CleanProgram,_xlfn.XLOOKUP(_xlpm.Program,SpellCheck[Input],SpellCheck[Correction],_xlpm.Program),\n_xlpm.Number,TEXT(_xlfn.TEXTAFTER(_xlpm.Contract,\"-\",2),\"0000\"),\n_xlfn.CONCAT(_xlpm.Yr,\"-\",_xlpm.CleanProgram,\"-\",_xlpm.Number))\n),\"\")","v":""},{"$f":"IFERROR(IF(A76=\"\",\"\",\n_xlfn.LET(_xlpm.Contract,'1. Checklist & Certification'!$F$8,\n_xlpm.Yr,TEXT(MOD(_xlfn.TEXTBEFORE(_xlpm.Contract,\"-\"),100),\"00\"),\n_xlpm.Program,_xlfn.TEXTAFTER(_xlfn.TEXTBEFORE(_xlpm.Contract,\"-\",2),\"-\"),\n_xlpm.CleanProgram,_xlfn.XLOOKUP(_xlpm.Program,SpellCheck[Input],SpellCheck[Correction],_xlpm.Program),\n_xlpm.Number,TEXT(_xlfn.TEXTAFTER(_xlpm.Contract,\"-\",2),\"0000\"),\n_xlfn.CONCAT(_xlpm.Yr,\"-\",_xlpm.CleanProgram,\"-\",_xlpm.Number))\n),\"\")","v":""},{"$f":"IF(A76=\"\",\"\",'1. Checklist & Certification'!$B$9)","v":""},{"$f":"IF(A76=\"\",\"\",'1. Checklist & Certification'!$F$9)","v":""},{"$f":"IF(A76=\"\",\"\",'1. Checklist & Certification'!$C$10)","v":""},{"$f":"IF(A76=\"\",\"\",'1. Checklist & Certification'!$C$11)","v":""},{"$f":"IF(A76=\"\",\"\",'1. Checklist & Certification'!$C$12)","v":""},{"$f":"IF(A76=\"\",\"\",'1. Checklist & Certification'!$B$14)","v":""},{"$f":"IF(A76=\"\",\"\",'1. Checklist & Certification'!$E$14)","v":""},{"$f":"IF(B76=\"\",\"\",'1. Checklist & Certification'!$G$14)","v":""},{"$f":"IF(A76=\"\",\"\",'MHP Family Income & Rent Limits'!$B$3)","v":""},{"$f":"IF(A76=\"\",\"\",'MHP Family Income & Rent Limits'!$J$3)","v":""},{"$f":"IF(A76=\"\",\"\",'MHP Family Income & Rent Limits'!$E$4)","v":""},{"$f":"IF(A76=\"\",\"\",'MHP Family Income & Rent Limits'!$C$7)","v":""},{"$f":"IF(A76=\"\",\"\",'MHP Family Income & Rent Limits'!$F$8)","v":""},{"$f":"IF(A76=\"\",\"\",'1. Checklist & Certification'!$G$4)","v":""},{"$f":"IF(A76=\"\",\"\",'1. Checklist & Certification'!$K$39)","v":""},{"$f":"IF(A76=\"\",\"\",'1. Checklist & Certification'!$K$43)","v":""},{"$f":"IF(A76=\"\",\"\",'1. Checklist & Certification'!$K$45)","v":""},{"$f":"IF(A76=\"\",\"\",'1. Checklist & Certification'!$K$49)","v":""},{"$f":"IF(A76=\"\",\"\",'1. Checklist & Certification'!$K$62)","v":""},{"$f":"IF(A76=\"\",\"\",'1. Checklist & Certification'!$E$66)","v":""},{"$f":"IF(A76=\"\",\"\",'1. Checklist & Certification'!$E$67)","v":""},{"$f":"IF(A76=\"\",\"\",'1. Checklist & Certification'!$E$68)","v":""},{"$f":"IF(A76=\"\",\"\",'1. Checklist & Certification'!$G$66)","v":""},{"$f":"IF(A76=\"\",\"\",'1. Checklist & Certification'!$H$66)","v":""},{"$f":"IF(A76=\"\",\"\",'1. Checklist & Certification'!$I$66)","v":""},{"$f":"IF(A76=\"\",\"\",'1. Checklist & Certification'!$I$67)","v":""},{"$f":"IF(A76=\"\",\"\",'1. Checklist & Certification'!$I$68)","v":""},{"$f":"IF(A76=\"\",\"\",'1. Checklist & Certification'!$B$69)","v":""},{"$f":"IF(A76=\"\",\"\",'1. Checklist & Certification'!$C$69)","v":""},{"$f":"IF(A76=\"\",\"\",'1. Checklist & Certification'!$F$69)","v":""},{"$f":"IF(A76=\"\",\"\",'1. Checklist & Certification'!$G$69)","v":""},{"$f":"IF(A76=\"\",\"\",'1. Checklist & Certification'!$J$69)","v":""},{"$f":"IF(A76=\"\",\"\",'1. Checklist & Certification'!$K$69)","v":""},null,null,{"$f":"IF(AND(OR('1. Checklist & Certification'!$M$16=1,'1. Checklist & Certification'!$M$19=2),AO76>0,B76=\"\",I76>0,AQ76<I76,AV76<>\"Sec 8-Project\"),\"X\",IF(AND(OR('1. Checklist & Certification'!$M$20=4,'1. Checklist & Certification'!$M$21=5,'1. Checklist & Certification'!$M$22=7),AO76>0,B76=\"\",I76>0,K76<I76),\"X\",\"\"))","v":""},{"$f":"IF(A76=\"\",\"\",IF(SUMPRODUCT(-- (ISNUMBER(SEARCH({\"*AHSC*\",\"*FMTW*\",\"*FWHG*\",\"*GHI*\",\"*HHC*\",\"*HLCP*\",\"*HOME*\",\"*LPR*\",\"*MHP*\",\"*NHTF*\",\"*NSP*\",\"*PRP*\",\"*TOD*\",\"*VHHP*\"},'1. Checklist & Certification'!$L$7)))),\"MHP\",\"Legacy\"))","v":""},",,",null,null,null,{"$f":"IF('1. Checklist & Certification'!$M$20=4,\"Both\",IF(OR('1. Checklist & Certification'!$M$15>0,S76=\"CHRP-R\",U76=\"CHRP-R\",W76=\"CHRP-R\",Y76=\"CHRP-R\"),\"Under\",\"No\"))","v":"No"},"No","No",{"$f":"_xlfn.IFS(D76=\"\",\"\",D76=1,'MHP Family Income & Rent Limits'!$E$17,D76=2,'MHP Family Income & Rent Limits'!$F$17,D76=3,'MHP Family Income & Rent Limits'!$G$17,D76=4,'MHP Family Income & Rent Limits'!$H$17,D76=5,'MHP Family Income & Rent Limits'!$I$17,D76=6,'MHP Family Income & Rent Limits'!$J$17,D76=7,'MHP Family Income & Rent Limits'!$K$17,D76=8,'MHP Family Income & Rent Limits'!$L$17)","v":""},"",{"$f":"IF(OR(A76=0,B76=\"X\"),0,MIN(IF(AA76:AD76<>0,AA76:AD76)))","v":0},{"$f":"IF(OR(H76=\"\",I76=\"\"),0,IF(H76*0.3/12>I76,MIN(H76*0.3/12,I76*1.1)+AP76,I76*(1+(VLOOKUP('1. Checklist & Certification'!$F$9,'HLCP-E Rent Change'!$A$1:$D$59,4,FALSE)))+AP76))","v":0}]
[null,null,null,null,null,null,null,null,null,null,null,null,null,null,null,null,null,null,null,null,null,null,null,null,null,null,0,0,0,0,0,0,0,0,{"$f":"IF(OR(A77=0,B77=\"X\"),0,IF(OR(S77=\"FHDP\",S77=\"RHCP-B\",U77=\"FHDP\",U77=\"RHCP-B\",W77=\"FHDP\",W77=\"RHCP-B\",Y77=\"FHDP\",Y77=\"RHCP-B\"),TRUNC((MIN(I77,K77)*(1+'1. Checklist & Certification'!$K$43)+AP77)),0))","v":0},{"$f":"IF(OR(A77=0,B77=\"X\"),0,IF(OR(S77=\"CHRP-R\",S77=\"SERA\",S77=\"SUHRP\",U77=\"CHRP-R\",U77=\"SERA\",U77=\"SUHRP\",W77=\"CHRP-R\",W77=\"SERA\",W77=\"SUHRP\",Y77=\"CHRP-R\",Y77=\"SERA\",Y77=\"SUHRP\"),TRUNC((MIN(I77,K77)*(1+'1. Checklist & Certification'!$K$49))),0))","v":0},{"$f":"IF(OR(A77=0,B77=\"X\"),0,IF(OR(S77=\"CALDAP\",S77=\"DPRLP\",U77=\"CALDAP\",U77=\"DPRLP\",W77=\"CALDAP\",W77=\"DPRLP\",Y77=\"CALDAP\",Y77=\"DPRLP\"),TRUNC(((MIN(I77,K77))*(1+'1. Checklist & Certification'!$G$4))),0))","v":0},0,0,0,{"$f":"IF(OR(A77=0,B77=\"X\"),0,IF(OR(S77=\"PRP\",S77=\"LPR\",U77=\"PRP\",U77=\"LPR\",W77=\"PRP\",W77=\"LPR\",Y77=\"PRP\",Y77=\"LPR\"),MAX(I77+AP77,MIN(IF(AE77:AN77<>0,AE77:AN77))),MIN(IF(AE77:AN77<>0,AE77:AN77))))","v":0},{"$f":"IF(A77=0,0,IF(AND(OR(S77=\"Mgr\",S77=0),OR(U77=\"Mgr\",U77=0),OR(W77=\"Mgr\",W77=0)),0,IF(LEFT($A77,2)=\"B*\",VLOOKUP($E77,'1. Checklist & Certification'!$D$26:$E$32,2),IF(LEFT($A77,2)=\"C*\",VLOOKUP($E77,'1. Checklist & Certification'!$F$26:$G$32,2),IF(LEFT($A77,2)=\"D*\",VLOOKUP($E77,'1. Checklist & Certification'!$H$26:$I$32,2),IF(LEFT($A77,2)=\"E*\",VLOOKUP($E77,'1. Checklist & Certification'!$J$26:$K$32,2),VLOOKUP($E77,'1. Checklist & Certification'!$A$26:$B$32,2)))))))","v":0},0,0,null,null,null,null,"","",0,0,0,null,{"$f":"IF(A77=\"\",\"\",'1. Checklist & Certification'!$K$1)","v":""},{"$f":"IF(A77=\"\",\"\",'1. Checklist & Certification'!$C$62)","v":""},{"$f":"IF(A77=\"\",\"\",'1. Checklist & Certification'!$C$6)","v":""},{"$f":"IF(A77=\"\",\"\",'1. Checklist & Certification'!$G$5)","v":""},{"$f":"IFERROR(IF(A77=\"\",\"\",\n_xlfn.LET(_xlpm.Contract,'1. Checklist & Certification'!$C$7,\n_xlpm.Yr,TEXT(MOD(_xlfn.TEXTBEFORE(_xlpm.Contract,\"-\"),100),\"00\"),\n_xlpm.Program,_xlfn.TEXTAFTER(_xlfn.TEXTBEFORE(_xlpm.Contract,\"-\",2),\"-\"),\n_xlpm.CleanProgram,_xlfn.XLOOKUP(_xlpm.Program,SpellCheck[Input],SpellCheck[Correction],_xlpm.Program),\n_xlpm.Number,TEXT(_xlfn.TEXTAFTER(_xlpm.Contract,\"-\",2),\"0000\"),\n_xlfn.CONCAT(_xlpm.Yr,\"-\",_xlpm.CleanProgram,\"-\",_xlpm.Number))\n),\"\")","v":""},{"$f":"IFERROR(IF(A77=\"\",\"\",\n_xlfn.LET(_xlpm.Contract,'1. Checklist & Certification'!$C$8,\n_xlpm.Yr,TEXT(MOD(_xlfn.TEXTBEFORE(_xlpm.Contract,\"-\"),100),\"00\"),\n_xlpm.Program,_xlfn.TEXTAFTER(_xlfn.TEXTBEFORE(_xlpm.Contract,\"-\",2),\"-\"),\n_xlpm.CleanProgram,_xlfn.XLOOKUP(_xlpm.Program,SpellCheck[Input],SpellCheck[Correction],_xlpm.Program),\n_xlpm.Number,TEXT(_xlfn.TEXTAFTER(_xlpm.Contract,\"-\",2),\"0000\"),\n_xlfn.CONCAT(_xlpm.Yr,\"-\",_xlpm.CleanProgram,\"-\",_xlpm.Number))\n),\"\")","v":""},{"$f":"IFERROR(IF(A77=\"\",\"\",\n_xlfn.LET(_xlpm.Contract,'1. Checklist & Certification'!$F$7,\n_xlpm.Yr,TEXT(MOD(_xlfn.TEXTBEFORE(_xlpm.Contract,\"-\"),100),\"00\"),\n_xlpm.Program,_xlfn.TEXTAFTER(_xlfn.TEXTBEFORE(_xlpm.Contract,\"-\",2),\"-\"),\n_xlpm.CleanProgram,_xlfn.XLOOKUP(_xlpm.Program,SpellCheck[Input],SpellCheck[Correction],_xlpm.Program),\n_xlpm.Number,TEXT(_xlfn.TEXTAFTER(_xlpm.Contract,\"-\",2),\"0000\"),\n_xlfn.CONCAT(_xlpm.Yr,\"-\",_xlpm.CleanProgram,\"-\",_xlpm.Number))\n),\"\")","v":""},{"$f":"IFERROR(IF(A77=\"\",\"\",\n_xlfn.LET(_xlpm.Contract,'1. Checklist & Certification'!$F$8,\n_xlpm.Yr,TEXT(MOD(_xlfn.TEXTBEFORE(_xlpm.Contract,\"-\"),100),\"00\"),\n_xlpm.Program,_xlfn.TEXTAFTER(_xlfn.TEXTBEFORE(_xlpm.Contract,\"-\",2),\"-\"),\n_xlpm.CleanProgram,_xlfn.XLOOKUP(_xlpm.Program,SpellCheck[Input],SpellCheck[Correction],_xlpm.Program),\n_xlpm.Number,TEXT(_xlfn.TEXTAFTER(_xlpm.Contract,\"-\",2),\"0000\"),\n_xlfn.CONCAT(_xlpm.Yr,\"-\",_xlpm.CleanProgram,\"-\",_xlpm.Number))\n),\"\")","v":""},{"$f":"IF(A77=\"\",\"\",'1. Checklist & Certification'!$B$9)","v":""},{"$f":"IF(A77=\"\",\"\",'1. Checklist & Certification'!$F$9)","v":""},{"$f":"IF(A77=\"\",\"\",'1. Checklist & Certification'!$C$10)","v":""},{"$f":"IF(A77=\"\",\"\",'1. Checklist & Certification'!$C$11)","v":""},{"$f":"IF(A77=\"\",\"\",'1. Checklist & Certification'!$C$12)","v":""},{"$f":"IF(A77=\"\",\"\",'1. Checklist & Certification'!$B$14)","v":""},{"$f":"IF(A77=\"\",\"\",'1. Checklist & Certification'!$E$14)","v":""},{"$f":"IF(B77=\"\",\"\",'1. Checklist & Certification'!$G$14)","v":""},{"$f":"IF(A77=\"\",\"\",'MHP Family Income & Rent Limits'!$B$3)","v":""},{"$f":"IF(A77=\"\",\"\",'MHP Family Income & Rent Limits'!$J$3)","v":""},{"$f":"IF(A77=\"\",\"\",'MHP Family Income & Rent Limits'!$E$4)","v":""},{"$f":"IF(A77=\"\",\"\",'MHP Family Income & Rent Limits'!$C$7)","v":""},{"$f":"IF(A77=\"\",\"\",'MHP Family Income & Rent Limits'!$F$8)","v":""},{"$f":"IF(A77=\"\",\"\",'1. Checklist & Certification'!$G$4)","v":""},{"$f":"IF(A77=\"\",\"\",'1. Checklist & Certification'!$K$39)","v":""},{"$f":"IF(A77=\"\",\"\",'1. Checklist & Certification'!$K$43)","v":""},{"$f":"IF(A77=\"\",\"\",'1. Checklist & Certification'!$K$45)","v":""},{"$f":"IF(A77=\"\",\"\",'1. Checklist & Certification'!$K$49)","v":""},{"$f":"IF(A77=\"\",\"\",'1. Checklist & Certification'!$K$62)","v":""},{"$f":"IF(A77=\"\",\"\",'1. Checklist & Certification'!$E$66)","v":""},{"$f":"IF(A77=\"\",\"\",'1. Checklist & Certification'!$E$67)","v":""},{"$f":"IF(A77=\"\",\"\",'1. Checklist & Certification'!$E$68)","v":""},{"$f":"IF(A77=\"\",\"\",'1. Checklist & Certification'!$G$66)","v":""},{"$f":"IF(A77=\"\",\"\",'1. Checklist & Certification'!$H$66)","v":""},{"$f":"IF(A77=\"\",\"\",'1. Checklist & Certification'!$I$66)","v":""},{"$f":"IF(A77=\"\",\"\",'1. Checklist & Certification'!$I$67)","v":""},{"$f":"IF(A77=\"\",\"\",'1. Checklist & Certification'!$I$68)","v":""},{"$f":"IF(A77=\"\",\"\",'1. Checklist & Certification'!$B$69)","v":""},{"$f":"IF(A77=\"\",\"\",'1. Checklist & Certification'!$C$69)","v":""},{"$f":"IF(A77=\"\",\"\",'1. Checklist & Certification'!$F$69)","v":""},{"$f":"IF(A77=\"\",\"\",'1. Checklist & Certification'!$G$69)","v":""},{"$f":"IF(A77=\"\",\"\",'1. Checklist & Certification'!$J$69)","v":""},{"$f":"IF(A77=\"\",\"\",'1. Checklist & Certification'!$K$69)","v":""},null,null,{"$f":"IF(AND(OR('1. Checklist & Certification'!$M$16=1,'1. Checklist & Certification'!$M$19=2),AO77>0,B77=\"\",I77>0,AQ77<I77,AV77<>\"Sec 8-Project\"),\"X\",IF(AND(OR('1. Checklist & Certification'!$M$20=4,'1. Checklist & Certification'!$M$21=5,'1. Checklist & Certification'!$M$22=7),AO77>0,B77=\"\",I77>0,K77<I77),\"X\",\"\"))","v":""},{"$f":"IF(A77=\"\",\"\",IF(SUMPRODUCT(-- (ISNUMBER(SEARCH({\"*AHSC*\",\"*FMTW*\",\"*FWHG*\",\"*GHI*\",\"*HHC*\",\"*HLCP*\",\"*HOME*\",\"*LPR*\",\"*MHP*\",\"*NHTF*\",\"*NSP*\",\"*PRP*\",\"*TOD*\",\"*VHHP*\"},'1. Checklist & Certification'!$L$7)))),\"MHP\",\"Legacy\"))","v":""},",,",null,null,null,{"$f":"IF('1. Checklist & Certification'!$M$20=4,\"Both\",IF(OR('1. Checklist & Certification'!$M$15>0,S77=\"CHRP-R\",U77=\"CHRP-R\",W77=\"CHRP-R\",Y77=\"CHRP-R\"),\"Under\",\"No\"))","v":"No"},"No","No",{"$f":"_xlfn.IFS(D77=\"\",\"\",D77=1,'MHP Family Income & Rent Limits'!$E$17,D77=2,'MHP Family Income & Rent Limits'!$F$17,D77=3,'MHP Family Income & Rent Limits'!$G$17,D77=4,'MHP Family Income & Rent Limits'!$H$17,D77=5,'MHP Family Income & Rent Limits'!$I$17,D77=6,'MHP Family Income & Rent Limits'!$J$17,D77=7,'MHP Family Income & Rent Limits'!$K$17,D77=8,'MHP Family Income & Rent Limits'!$L$17)","v":""},"",{"$f":"IF(OR(A77=0,B77=\"X\"),0,MIN(IF(AA77:AD77<>0,AA77:AD77)))","v":0},{"$f":"IF(OR(H77=\"\",I77=\"\"),0,IF(H77*0.3/12>I77,MIN(H77*0.3/12,I77*1.1)+AP77,I77*(1+(VLOOKUP('1. Checklist & Certification'!$F$9,'HLCP-E Rent Change'!$A$1:$D$59,4,FALSE)))+AP77))","v":0}]
[null,null,null,null,null,null,null,null,null,null,null,null,null,null,null,null,null,null,null,null,null,null,null,null,null,null,0,0,0,0,0,0,0,0,{"$f":"IF(OR(A78=0,B78=\"X\"),0,IF(OR(S78=\"FHDP\",S78=\"RHCP-B\",U78=\"FHDP\",U78=\"RHCP-B\",W78=\"FHDP\",W78=\"RHCP-B\",Y78=\"FHDP\",Y78=\"RHCP-B\"),TRUNC((MIN(I78,K78)*(1+'1. Checklist & Certification'!$K$43)+AP78)),0))","v":0},{"$f":"IF(OR(A78=0,B78=\"X\"),0,IF(OR(S78=\"CHRP-R\",S78=\"SERA\",S78=\"SUHRP\",U78=\"CHRP-R\",U78=\"SERA\",U78=\"SUHRP\",W78=\"CHRP-R\",W78=\"SERA\",W78=\"SUHRP\",Y78=\"CHRP-R\",Y78=\"SERA\",Y78=\"SUHRP\"),TRUNC((MIN(I78,K78)*(1+'1. Checklist & Certification'!$K$49))),0))","v":0},{"$f":"IF(OR(A78=0,B78=\"X\"),0,IF(OR(S78=\"CALDAP\",S78=\"DPRLP\",U78=\"CALDAP\",U78=\"DPRLP\",W78=\"CALDAP\",W78=\"DPRLP\",Y78=\"CALDAP\",Y78=\"DPRLP\"),TRUNC(((MIN(I78,K78))*(1+'1. Checklist & Certification'!$G$4))),0))","v":0},0,0,0,{"$f":"IF(OR(A78=0,B78=\"X\"),0,IF(OR(S78=\"PRP\",S78=\"LPR\",U78=\"PRP\",U78=\"LPR\",W78=\"PRP\",W78=\"LPR\",Y78=\"PRP\",Y78=\"LPR\"),MAX(I78+AP78,MIN(IF(AE78:AN78<>0,AE78:AN78))),MIN(IF(AE78:AN78<>0,AE78:AN78))))","v":0},{"$f":"IF(A78=0,0,IF(AND(OR(S78=\"Mgr\",S78=0),OR(U78=\"Mgr\",U78=0),OR(W78=\"Mgr\",W78=0)),0,IF(LEFT($A78,2)=\"B*\",VLOOKUP($E78,'1. Checklist & Certification'!$D$26:$E$32,2),IF(LEFT($A78,2)=\"C*\",VLOOKUP($E78,'1. Checklist & Certification'!$F$26:$G$32,2),IF(LEFT($A78,2)=\"D*\",VLOOKUP($E78,'1. Checklist & Certification'!$H$26:$I$32,2),IF(LEFT($A78,2)=\"E*\",VLOOKUP($E78,'1. Checklist & Certification'!$J$26:$K$32,2),VLOOKUP($E78,'1. Checklist & Certification'!$A$26:$B$32,2)))))))","v":0},0,0,null,null,null,null,"","",0,0,0,null,{"$f":"IF(A78=\"\",\"\",'1. Checklist & Certification'!$K$1)","v":""},{"$f":"IF(A78=\"\",\"\",'1. Checklist & Certification'!$C$62)","v":""},{"$f":"IF(A78=\"\",\"\",'1. Checklist & Certification'!$C$6)","v":""},{"$f":"IF(A78=\"\",\"\",'1. Checklist & Certification'!$G$5)","v":""},{"$f":"IFERROR(IF(A78=\"\",\"\",\n_xlfn.LET(_xlpm.Contract,'1. Checklist & Certification'!$C$7,\n_xlpm.Yr,TEXT(MOD(_xlfn.TEXTBEFORE(_xlpm.Contract,\"-\"),100),\"00\"),\n_xlpm.Program,_xlfn.TEXTAFTER(_xlfn.TEXTBEFORE(_xlpm.Contract,\"-\",2),\"-\"),\n_xlpm.CleanProgram,_xlfn.XLOOKUP(_xlpm.Program,SpellCheck[Input],SpellCheck[Correction],_xlpm.Program),\n_xlpm.Number,TEXT(_xlfn.TEXTAFTER(_xlpm.Contract,\"-\",2),\"0000\"),\n_xlfn.CONCAT(_xlpm.Yr,\"-\",_xlpm.CleanProgram,\"-\",_xlpm.Number))\n),\"\")","v":""},{"$f":"IFERROR(IF(A78=\"\",\"\",\n_xlfn.LET(_xlpm.Contract,'1. Checklist & Certification'!$C$8,\n_xlpm.Yr,TEXT(MOD(_xlfn.TEXTBEFORE(_xlpm.Contract,\"-\"),100),\"00\"),\n_xlpm.Program,_xlfn.TEXTAFTER(_xlfn.TEXTBEFORE(_xlpm.Contract,\"-\",2),\"-\"),\n_xlpm.CleanProgram,_xlfn.XLOOKUP(_xlpm.Program,SpellCheck[Input],SpellCheck[Correction],_xlpm.Program),\n_xlpm.Number,TEXT(_xlfn.TEXTAFTER(_xlpm.Contract,\"-\",2),\"0000\"),\n_xlfn.CONCAT(_xlpm.Yr,\"-\",_xlpm.CleanProgram,\"-\",_xlpm.Number))\n),\"\")","v":""},{"$f":"IFERROR(IF(A78=\"\",\"\",\n_xlfn.LET(_xlpm.Contract,'1. Checklist & Certification'!$F$7,\n_xlpm.Yr,TEXT(MOD(_xlfn.TEXTBEFORE(_xlpm.Contract,\"-\"),100),\"00\"),\n_xlpm.Program,_xlfn.TEXTAFTER(_xlfn.TEXTBEFORE(_xlpm.Contract,\"-\",2),\"-\"),\n_xlpm.CleanProgram,_xlfn.XLOOKUP(_xlpm.Program,SpellCheck[Input],SpellCheck[Correction],_xlpm.Program),\n_xlpm.Number,TEXT(_xlfn.TEXTAFTER(_xlpm.Contract,\"-\",2),\"0000\"),\n_xlfn.CONCAT(_xlpm.Yr,\"-\",_xlpm.CleanProgram,\"-\",_xlpm.Number))\n),\"\")","v":""},{"$f":"IFERROR(IF(A78=\"\",\"\",\n_xlfn.LET(_xlpm.Contract,'1. Checklist & Certification'!$F$8,\n_xlpm.Yr,TEXT(MOD(_xlfn.TEXTBEFORE(_xlpm.Contract,\"-\"),100),\"00\"),\n_xlpm.Program,_xlfn.TEXTAFTER(_xlfn.TEXTBEFORE(_xlpm.Contract,\"-\",2),\"-\"),\n_xlpm.CleanProgram,_xlfn.XLOOKUP(_xlpm.Program,SpellCheck[Input],SpellCheck[Correction],_xlpm.Program),\n_xlpm.Number,TEXT(_xlfn.TEXTAFTER(_xlpm.Contract,\"-\",2),\"0000\"),\n_xlfn.CONCAT(_xlpm.Yr,\"-\",_xlpm.CleanProgram,\"-\",_xlpm.Number))\n),\"\")","v":""},{"$f":"IF(A78=\"\",\"\",'1. Checklist & Certification'!$B$9)","v":""},{"$f":"IF(A78=\"\",\"\",'1. Checklist & Certification'!$F$9)","v":""},{"$f":"IF(A78=\"\",\"\",'1. Checklist & Certification'!$C$10)","v":""},{"$f":"IF(A78=\"\",\"\",'1. Checklist & Certification'!$C$11)","v":""},{"$f":"IF(A78=\"\",\"\",'1. Checklist & Certification'!$C$12)","v":""},{"$f":"IF(A78=\"\",\"\",'1. Checklist & Certification'!$B$14)","v":""},{"$f":"IF(A78=\"\",\"\",'1. Checklist & Certification'!$E$14)","v":""},{"$f":"IF(B78=\"\",\"\",'1. Checklist & Certification'!$G$14)","v":""},{"$f":"IF(A78=\"\",\"\",'MHP Family Income & Rent Limits'!$B$3)","v":""},{"$f":"IF(A78=\"\",\"\",'MHP Family Income & Rent Limits'!$J$3)","v":""},{"$f":"IF(A78=\"\",\"\",'MHP Family Income & Rent Limits'!$E$4)","v":""},{"$f":"IF(A78=\"\",\"\",'MHP Family Income & Rent Limits'!$C$7)","v":""},{"$f":"IF(A78=\"\",\"\",'MHP Family Income & Rent Limits'!$F$8)","v":""},{"$f":"IF(A78=\"\",\"\",'1. Checklist & Certification'!$G$4)","v":""},{"$f":"IF(A78=\"\",\"\",'1. Checklist & Certification'!$K$39)","v":""},{"$f":"IF(A78=\"\",\"\",'1. Checklist & Certification'!$K$43)","v":""},{"$f":"IF(A78=\"\",\"\",'1. Checklist & Certification'!$K$45)","v":""},{"$f":"IF(A78=\"\",\"\",'1. Checklist & Certification'!$K$49)","v":""},{"$f":"IF(A78=\"\",\"\",'1. Checklist & Certification'!$K$62)","v":""},{"$f":"IF(A78=\"\",\"\",'1. Checklist & Certification'!$E$66)","v":""},{"$f":"IF(A78=\"\",\"\",'1. Checklist & Certification'!$E$67)","v":""},{"$f":"IF(A78=\"\",\"\",'1. Checklist & Certification'!$E$68)","v":""},{"$f":"IF(A78=\"\",\"\",'1. Checklist & Certification'!$G$66)","v":""},{"$f":"IF(A78=\"\",\"\",'1. Checklist & Certification'!$H$66)","v":""},{"$f":"IF(A78=\"\",\"\",'1. Checklist & Certification'!$I$66)","v":""},{"$f":"IF(A78=\"\",\"\",'1. Checklist & Certification'!$I$67)","v":""},{"$f":"IF(A78=\"\",\"\",'1. Checklist & Certification'!$I$68)","v":""},{"$f":"IF(A78=\"\",\"\",'1. Checklist & Certification'!$B$69)","v":""},{"$f":"IF(A78=\"\",\"\",'1. Checklist & Certification'!$C$69)","v":""},{"$f":"IF(A78=\"\",\"\",'1. Checklist & Certification'!$F$69)","v":""},{"$f":"IF(A78=\"\",\"\",'1. Checklist & Certification'!$G$69)","v":""},{"$f":"IF(A78=\"\",\"\",'1. Checklist & Certification'!$J$69)","v":""},{"$f":"IF(A78=\"\",\"\",'1. Checklist & Certification'!$K$69)","v":""},null,null,{"$f":"IF(AND(OR('1. Checklist & Certification'!$M$16=1,'1. Checklist & Certification'!$M$19=2),AO78>0,B78=\"\",I78>0,AQ78<I78,AV78<>\"Sec 8-Project\"),\"X\",IF(AND(OR('1. Checklist & Certification'!$M$20=4,'1. Checklist & Certification'!$M$21=5,'1. Checklist & Certification'!$M$22=7),AO78>0,B78=\"\",I78>0,K78<I78),\"X\",\"\"))","v":""},{"$f":"IF(A78=\"\",\"\",IF(SUMPRODUCT(-- (ISNUMBER(SEARCH({\"*AHSC*\",\"*FMTW*\",\"*FWHG*\",\"*GHI*\",\"*HHC*\",\"*HLCP*\",\"*HOME*\",\"*LPR*\",\"*MHP*\",\"*NHTF*\",\"*NSP*\",\"*PRP*\",\"*TOD*\",\"*VHHP*\"},'1. Checklist & Certification'!$L$7)))),\"MHP\",\"Legacy\"))","v":""},",,",null,null,null,{"$f":"IF('1. Checklist & Certification'!$M$20=4,\"Both\",IF(OR('1. Checklist & Certification'!$M$15>0,S78=\"CHRP-R\",U78=\"CHRP-R\",W78=\"CHRP-R\",Y78=\"CHRP-R\"),\"Under\",\"No\"))","v":"No"},"No","No",{"$f":"_xlfn.IFS(D78=\"\",\"\",D78=1,'MHP Family Income & Rent Limits'!$E$17,D78=2,'MHP Family Income & Rent Limits'!$F$17,D78=3,'MHP Family Income & Rent Limits'!$G$17,D78=4,'MHP Family Income & Rent Limits'!$H$17,D78=5,'MHP Family Income & Rent Limits'!$I$17,D78=6,'MHP Family Income & Rent Limits'!$J$17,D78=7,'MHP Family Income & Rent Limits'!$K$17,D78=8,'MHP Family Income & Rent Limits'!$L$17)","v":""},"",{"$f":"IF(OR(A78=0,B78=\"X\"),0,MIN(IF(AA78:AD78<>0,AA78:AD78)))","v":0},{"$f":"IF(OR(H78=\"\",I78=\"\"),0,IF(H78*0.3/12>I78,MIN(H78*0.3/12,I78*1.1)+AP78,I78*(1+(VLOOKUP('1. Checklist & Certification'!$F$9,'HLCP-E Rent Change'!$A$1:$D$59,4,FALSE)))+AP78))","v":0}]
[null,null,null,null,null,null,null,null,null,null,null,null,null,null,null,null,null,null,null,null,null,null,null,null,null,null,0,0,0,0,0,0,0,0,{"$f":"IF(OR(A79=0,B79=\"X\"),0,IF(OR(S79=\"FHDP\",S79=\"RHCP-B\",U79=\"FHDP\",U79=\"RHCP-B\",W79=\"FHDP\",W79=\"RHCP-B\",Y79=\"FHDP\",Y79=\"RHCP-B\"),TRUNC((MIN(I79,K79)*(1+'1. Checklist & Certification'!$K$43)+AP79)),0))","v":0},{"$f":"IF(OR(A79=0,B79=\"X\"),0,IF(OR(S79=\"CHRP-R\",S79=\"SERA\",S79=\"SUHRP\",U79=\"CHRP-R\",U79=\"SERA\",U79=\"SUHRP\",W79=\"CHRP-R\",W79=\"SERA\",W79=\"SUHRP\",Y79=\"CHRP-R\",Y79=\"SERA\",Y79=\"SUHRP\"),TRUNC((MIN(I79,K79)*(1+'1. Checklist & Certification'!$K$49))),0))","v":0},{"$f":"IF(OR(A79=0,B79=\"X\"),0,IF(OR(S79=\"CALDAP\",S79=\"DPRLP\",U79=\"CALDAP\",U79=\"DPRLP\",W79=\"CALDAP\",W79=\"DPRLP\",Y79=\"CALDAP\",Y79=\"DPRLP\"),TRUNC(((MIN(I79,K79))*(1+'1. Checklist & Certification'!$G$4))),0))","v":0},0,0,0,{"$f":"IF(OR(A79=0,B79=\"X\"),0,IF(OR(S79=\"PRP\",S79=\"LPR\",U79=\"PRP\",U79=\"LPR\",W79=\"PRP\",W79=\"LPR\",Y79=\"PRP\",Y79=\"LPR\"),MAX(I79+AP79,MIN(IF(AE79:AN79<>0,AE79:AN79))),MIN(IF(AE79:AN79<>0,AE79:AN79))))","v":0},{"$f":"IF(A79=0,0,IF(AND(OR(S79=\"Mgr\",S79=0),OR(U79=\"Mgr\",U79=0),OR(W79=\"Mgr\",W79=0)),0,IF(LEFT($A79,2)=\"B*\",VLOOKUP($E79,'1. Checklist & Certification'!$D$26:$E$32,2),IF(LEFT($A79,2)=\"C*\",VLOOKUP($E79,'1. Checklist & Certification'!$F$26:$G$32,2),IF(LEFT($A79,2)=\"D*\",VLOOKUP($E79,'1. Checklist & Certification'!$H$26:$I$32,2),IF(LEFT($A79,2)=\"E*\",VLOOKUP($E79,'1. Checklist & Certification'!$J$26:$K$32,2),VLOOKUP($E79,'1. Checklist & Certification'!$A$26:$B$32,2)))))))","v":0},0,0,null,null,null,null,"","",0,0,0,null,{"$f":"IF(A79=\"\",\"\",'1. Checklist & Certification'!$K$1)","v":""},{"$f":"IF(A79=\"\",\"\",'1. Checklist & Certification'!$C$62)","v":""},{"$f":"IF(A79=\"\",\"\",'1. Checklist & Certification'!$C$6)","v":""},{"$f":"IF(A79=\"\",\"\",'1. Checklist & Certification'!$G$5)","v":""},{"$f":"IFERROR(IF(A79=\"\",\"\",\n_xlfn.LET(_xlpm.Contract,'1. Checklist & Certification'!$C$7,\n_xlpm.Yr,TEXT(MOD(_xlfn.TEXTBEFORE(_xlpm.Contract,\"-\"),100),\"00\"),\n_xlpm.Program,_xlfn.TEXTAFTER(_xlfn.TEXTBEFORE(_xlpm.Contract,\"-\",2),\"-\"),\n_xlpm.CleanProgram,_xlfn.XLOOKUP(_xlpm.Program,SpellCheck[Input],SpellCheck[Correction],_xlpm.Program),\n_xlpm.Number,TEXT(_xlfn.TEXTAFTER(_xlpm.Contract,\"-\",2),\"0000\"),\n_xlfn.CONCAT(_xlpm.Yr,\"-\",_xlpm.CleanProgram,\"-\",_xlpm.Number))\n),\"\")","v":""},{"$f":"IFERROR(IF(A79=\"\",\"\",\n_xlfn.LET(_xlpm.Contract,'1. Checklist & Certification'!$C$8,\n_xlpm.Yr,TEXT(MOD(_xlfn.TEXTBEFORE(_xlpm.Contract,\"-\"),100),\"00\"),\n_xlpm.Program,_xlfn.TEXTAFTER(_xlfn.TEXTBEFORE(_xlpm.Contract,\"-\",2),\"-\"),\n_xlpm.CleanProgram,_xlfn.XLOOKUP(_xlpm.Program,SpellCheck[Input],SpellCheck[Correction],_xlpm.Program),\n_xlpm.Number,TEXT(_xlfn.TEXTAFTER(_xlpm.Contract,\"-\",2),\"0000\"),\n_xlfn.CONCAT(_xlpm.Yr,\"-\",_xlpm.CleanProgram,\"-\",_xlpm.Number))\n),\"\")","v":""},{"$f":"IFERROR(IF(A79=\"\",\"\",\n_xlfn.LET(_xlpm.Contract,'1. Checklist & Certification'!$F$7,\n_xlpm.Yr,TEXT(MOD(_xlfn.TEXTBEFORE(_xlpm.Contract,\"-\"),100),\"00\"),\n_xlpm.Program,_xlfn.TEXTAFTER(_xlfn.TEXTBEFORE(_xlpm.Contract,\"-\",2),\"-\"),\n_xlpm.CleanProgram,_xlfn.XLOOKUP(_xlpm.Program,SpellCheck[Input],SpellCheck[Correction],_xlpm.Program),\n_xlpm.Number,TEXT(_xlfn.TEXTAFTER(_xlpm.Contract,\"-\",2),\"0000\"),\n_xlfn.CONCAT(_xlpm.Yr,\"-\",_xlpm.CleanProgram,\"-\",_xlpm.Number))\n),\"\")","v":""},{"$f":"IFERROR(IF(A79=\"\",\"\",\n_xlfn.LET(_xlpm.Contract,'1. Checklist & Certification'!$F$8,\n_xlpm.Yr,TEXT(MOD(_xlfn.TEXTBEFORE(_xlpm.Contract,\"-\"),100),\"00\"),\n_xlpm.Program,_xlfn.TEXTAFTER(_xlfn.TEXTBEFORE(_xlpm.Contract,\"-\",2),\"-\"),\n_xlpm.CleanProgram,_xlfn.XLOOKUP(_xlpm.Program,SpellCheck[Input],SpellCheck[Correction],_xlpm.Program),\n_xlpm.Number,TEXT(_xlfn.TEXTAFTER(_xlpm.Contract,\"-\",2),\"0000\"),\n_xlfn.CONCAT(_xlpm.Yr,\"-\",_xlpm.CleanProgram,\"-\",_xlpm.Number))\n),\"\")","v":""},{"$f":"IF(A79=\"\",\"\",'1. Checklist & Certification'!$B$9)","v":""},{"$f":"IF(A79=\"\",\"\",'1. Checklist & Certification'!$F$9)","v":""},{"$f":"IF(A79=\"\",\"\",'1. Checklist & Certification'!$C$10)","v":""},{"$f":"IF(A79=\"\",\"\",'1. Checklist & Certification'!$C$11)","v":""},{"$f":"IF(A79=\"\",\"\",'1. Checklist & Certification'!$C$12)","v":""},{"$f":"IF(A79=\"\",\"\",'1. Checklist & Certification'!$B$14)","v":""},{"$f":"IF(A79=\"\",\"\",'1. Checklist & Certification'!$E$14)","v":""},{"$f":"IF(B79=\"\",\"\",'1. Checklist & Certification'!$G$14)","v":""},{"$f":"IF(A79=\"\",\"\",'MHP Family Income & Rent Limits'!$B$3)","v":""},{"$f":"IF(A79=\"\",\"\",'MHP Family Income & Rent Limits'!$J$3)","v":""},{"$f":"IF(A79=\"\",\"\",'MHP Family Income & Rent Limits'!$E$4)","v":""},{"$f":"IF(A79=\"\",\"\",'MHP Family Income & Rent Limits'!$C$7)","v":""},{"$f":"IF(A79=\"\",\"\",'MHP Family Income & Rent Limits'!$F$8)","v":""},{"$f":"IF(A79=\"\",\"\",'1. Checklist & Certification'!$G$4)","v":""},{"$f":"IF(A79=\"\",\"\",'1. Checklist & Certification'!$K$39)","v":""},{"$f":"IF(A79=\"\",\"\",'1. Checklist & Certification'!$K$43)","v":""},{"$f":"IF(A79=\"\",\"\",'1. Checklist & Certification'!$K$45)","v":""},{"$f":"IF(A79=\"\",\"\",'1. Checklist & Certification'!$K$49)","v":""},{"$f":"IF(A79=\"\",\"\",'1. Checklist & Certification'!$K$62)","v":""},{"$f":"IF(A79=\"\",\"\",'1. Checklist & Certification'!$E$66)","v":""},{"$f":"IF(A79=\"\",\"\",'1. Checklist & Certification'!$E$67)","v":""},{"$f":"IF(A79=\"\",\"\",'1. Checklist & Certification'!$E$68)","v":""},{"$f":"IF(A79=\"\",\"\",'1. Checklist & Certification'!$G$66)","v":""},{"$f":"IF(A79=\"\",\"\",'1. Checklist & Certification'!$H$66)","v":""},{"$f":"IF(A79=\"\",\"\",'1. Checklist & Certification'!$I$66)","v":""},{"$f":"IF(A79=\"\",\"\",'1. Checklist & Certification'!$I$67)","v":""},{"$f":"IF(A79=\"\",\"\",'1. Checklist & Certification'!$I$68)","v":""},{"$f":"IF(A79=\"\",\"\",'1. Checklist & Certification'!$B$69)","v":""},{"$f":"IF(A79=\"\",\"\",'1. Checklist & Certification'!$C$69)","v":""},{"$f":"IF(A79=\"\",\"\",'1. Checklist & Certification'!$F$69)","v":""},{"$f":"IF(A79=\"\",\"\",'1. Checklist & Certification'!$G$69)","v":""},{"$f":"IF(A79=\"\",\"\",'1. Checklist & Certification'!$J$69)","v":""},{"$f":"IF(A79=\"\",\"\",'1. Checklist & Certification'!$K$69)","v":""},null,null,{"$f":"IF(AND(OR('1. Checklist & Certification'!$M$16=1,'1. Checklist & Certification'!$M$19=2),AO79>0,B79=\"\",I79>0,AQ79<I79,AV79<>\"Sec 8-Project\"),\"X\",IF(AND(OR('1. Checklist & Certification'!$M$20=4,'1. Checklist & Certification'!$M$21=5,'1. Checklist & Certification'!$M$22=7),AO79>0,B79=\"\",I79>0,K79<I79),\"X\",\"\"))","v":""},{"$f":"IF(A79=\"\",\"\",IF(SUMPRODUCT(-- (ISNUMBER(SEARCH({\"*AHSC*\",\"*FMTW*\",\"*FWHG*\",\"*GHI*\",\"*HHC*\",\"*HLCP*\",\"*HOME*\",\"*LPR*\",\"*MHP*\",\"*NHTF*\",\"*NSP*\",\"*PRP*\",\"*TOD*\",\"*VHHP*\"},'1. Checklist & Certification'!$L$7)))),\"MHP\",\"Legacy\"))","v":""},",,",null,null,null,{"$f":"IF('1. Checklist & Certification'!$M$20=4,\"Both\",IF(OR('1. Checklist & Certification'!$M$15>0,S79=\"CHRP-R\",U79=\"CHRP-R\",W79=\"CHRP-R\",Y79=\"CHRP-R\"),\"Under\",\"No\"))","v":"No"},"No","No",{"$f":"_xlfn.IFS(D79=\"\",\"\",D79=1,'MHP Family Income & Rent Limits'!$E$17,D79=2,'MHP Family Income & Rent Limits'!$F$17,D79=3,'MHP Family Income & Rent Limits'!$G$17,D79=4,'MHP Family Income & Rent Limits'!$H$17,D79=5,'MHP Family Income & Rent Limits'!$I$17,D79=6,'MHP Family Income & Rent Limits'!$J$17,D79=7,'MHP Family Income & Rent Limits'!$K$17,D79=8,'MHP Family Income & Rent Limits'!$L$17)","v":""},"",{"$f":"IF(OR(A79=0,B79=\"X\"),0,MIN(IF(AA79:AD79<>0,AA79:AD79)))","v":0},{"$f":"IF(OR(H79=\"\",I79=\"\"),0,IF(H79*0.3/12>I79,MIN(H79*0.3/12,I79*1.1)+AP79,I79*(1+(VLOOKUP('1. Checklist & Certification'!$F$9,'HLCP-E Rent Change'!$A$1:$D$59,4,FALSE)))+AP79))","v":0}]
[null,null,null,null,null,null,null,null,null,null,null,null,null,null,null,null,null,null,null,null,null,null,null,null,null,null,0,0,0,0,0,0,0,0,{"$f":"IF(OR(A80=0,B80=\"X\"),0,IF(OR(S80=\"FHDP\",S80=\"RHCP-B\",U80=\"FHDP\",U80=\"RHCP-B\",W80=\"FHDP\",W80=\"RHCP-B\",Y80=\"FHDP\",Y80=\"RHCP-B\"),TRUNC((MIN(I80,K80)*(1+'1. Checklist & Certification'!$K$43)+AP80)),0))","v":0},{"$f":"IF(OR(A80=0,B80=\"X\"),0,IF(OR(S80=\"CHRP-R\",S80=\"SERA\",S80=\"SUHRP\",U80=\"CHRP-R\",U80=\"SERA\",U80=\"SUHRP\",W80=\"CHRP-R\",W80=\"SERA\",W80=\"SUHRP\",Y80=\"CHRP-R\",Y80=\"SERA\",Y80=\"SUHRP\"),TRUNC((MIN(I80,K80)*(1+'1. Checklist & Certification'!$K$49))),0))","v":0},{"$f":"IF(OR(A80=0,B80=\"X\"),0,IF(OR(S80=\"CALDAP\",S80=\"DPRLP\",U80=\"CALDAP\",U80=\"DPRLP\",W80=\"CALDAP\",W80=\"DPRLP\",Y80=\"CALDAP\",Y80=\"DPRLP\"),TRUNC(((MIN(I80,K80))*(1+'1. Checklist & Certification'!$G$4))),0))","v":0},0,0,0,{"$f":"IF(OR(A80=0,B80=\"X\"),0,IF(OR(S80=\"PRP\",S80=\"LPR\",U80=\"PRP\",U80=\"LPR\",W80=\"PRP\",W80=\"LPR\",Y80=\"PRP\",Y80=\"LPR\"),MAX(I80+AP80,MIN(IF(AE80:AN80<>0,AE80:AN80))),MIN(IF(AE80:AN80<>0,AE80:AN80))))","v":0},{"$f":"IF(A80=0,0,IF(AND(OR(S80=\"Mgr\",S80=0),OR(U80=\"Mgr\",U80=0),OR(W80=\"Mgr\",W80=0)),0,IF(LEFT($A80,2)=\"B*\",VLOOKUP($E80,'1. Checklist & Certification'!$D$26:$E$32,2),IF(LEFT($A80,2)=\"C*\",VLOOKUP($E80,'1. Checklist & Certification'!$F$26:$G$32,2),IF(LEFT($A80,2)=\"D*\",VLOOKUP($E80,'1. Checklist & Certification'!$H$26:$I$32,2),IF(LEFT($A80,2)=\"E*\",VLOOKUP($E80,'1. Checklist & Certification'!$J$26:$K$32,2),VLOOKUP($E80,'1. Checklist & Certification'!$A$26:$B$32,2)))))))","v":0},0,0,null,null,null,null,"","",0,0,0,null,{"$f":"IF(A80=\"\",\"\",'1. Checklist & Certification'!$K$1)","v":""},{"$f":"IF(A80=\"\",\"\",'1. Checklist & Certification'!$C$62)","v":""},{"$f":"IF(A80=\"\",\"\",'1. Checklist & Certification'!$C$6)","v":""},{"$f":"IF(A80=\"\",\"\",'1. Checklist & Certification'!$G$5)","v":""},{"$f":"IFERROR(IF(A80=\"\",\"\",\n_xlfn.LET(_xlpm.Contract,'1. Checklist & Certification'!$C$7,\n_xlpm.Yr,TEXT(MOD(_xlfn.TEXTBEFORE(_xlpm.Contract,\"-\"),100),\"00\"),\n_xlpm.Program,_xlfn.TEXTAFTER(_xlfn.TEXTBEFORE(_xlpm.Contract,\"-\",2),\"-\"),\n_xlpm.CleanProgram,_xlfn.XLOOKUP(_xlpm.Program,SpellCheck[Input],SpellCheck[Correction],_xlpm.Program),\n_xlpm.Number,TEXT(_xlfn.TEXTAFTER(_xlpm.Contract,\"-\",2),\"0000\"),\n_xlfn.CONCAT(_xlpm.Yr,\"-\",_xlpm.CleanProgram,\"-\",_xlpm.Number))\n),\"\")","v":""},{"$f":"IFERROR(IF(A80=\"\",\"\",\n_xlfn.LET(_xlpm.Contract,'1. Checklist & Certification'!$C$8,\n_xlpm.Yr,TEXT(MOD(_xlfn.TEXTBEFORE(_xlpm.Contract,\"-\"),100),\"00\"),\n_xlpm.Program,_xlfn.TEXTAFTER(_xlfn.TEXTBEFORE(_xlpm.Contract,\"-\",2),\"-\"),\n_xlpm.CleanProgram,_xlfn.XLOOKUP(_xlpm.Program,SpellCheck[Input],SpellCheck[Correction],_xlpm.Program),\n_xlpm.Number,TEXT(_xlfn.TEXTAFTER(_xlpm.Contract,\"-\",2),\"0000\"),\n_xlfn.CONCAT(_xlpm.Yr,\"-\",_xlpm.CleanProgram,\"-\",_xlpm.Number))\n),\"\")","v":""},{"$f":"IFERROR(IF(A80=\"\",\"\",\n_xlfn.LET(_xlpm.Contract,'1. Checklist & Certification'!$F$7,\n_xlpm.Yr,TEXT(MOD(_xlfn.TEXTBEFORE(_xlpm.Contract,\"-\"),100),\"00\"),\n_xlpm.Program,_xlfn.TEXTAFTER(_xlfn.TEXTBEFORE(_xlpm.Contract,\"-\",2),\"-\"),\n_xlpm.CleanProgram,_xlfn.XLOOKUP(_xlpm.Program,SpellCheck[Input],SpellCheck[Correction],_xlpm.Program),\n_xlpm.Number,TEXT(_xlfn.TEXTAFTER(_xlpm.Contract,\"-\",2),\"0000\"),\n_xlfn.CONCAT(_xlpm.Yr,\"-\",_xlpm.CleanProgram,\"-\",_xlpm.Number))\n),\"\")","v":""},{"$f":"IFERROR(IF(A80=\"\",\"\",\n_xlfn.LET(_xlpm.Contract,'1. Checklist & Certification'!$F$8,\n_xlpm.Yr,TEXT(MOD(_xlfn.TEXTBEFORE(_xlpm.Contract,\"-\"),100),\"00\"),\n_xlpm.Program,_xlfn.TEXTAFTER(_xlfn.TEXTBEFORE(_xlpm.Contract,\"-\",2),\"-\"),\n_xlpm.CleanProgram,_xlfn.XLOOKUP(_xlpm.Program,SpellCheck[Input],SpellCheck[Correction],_xlpm.Program),\n_xlpm.Number,TEXT(_xlfn.TEXTAFTER(_xlpm.Contract,\"-\",2),\"0000\"),\n_xlfn.CONCAT(_xlpm.Yr,\"-\",_xlpm.CleanProgram,\"-\",_xlpm.Number))\n),\"\")","v":""},{"$f":"IF(A80=\"\",\"\",'1. Checklist & Certification'!$B$9)","v":""},{"$f":"IF(A80=\"\",\"\",'1. Checklist & Certification'!$F$9)","v":""},{"$f":"IF(A80=\"\",\"\",'1. Checklist & Certification'!$C$10)","v":""},{"$f":"IF(A80=\"\",\"\",'1. Checklist & Certification'!$C$11)","v":""},{"$f":"IF(A80=\"\",\"\",'1. Checklist & Certification'!$C$12)","v":""},{"$f":"IF(A80=\"\",\"\",'1. Checklist & Certification'!$B$14)","v":""},{"$f":"IF(A80=\"\",\"\",'1. Checklist & Certification'!$E$14)","v":""},{"$f":"IF(B80=\"\",\"\",'1. Checklist & Certification'!$G$14)","v":""},{"$f":"IF(A80=\"\",\"\",'MHP Family Income & Rent Limits'!$B$3)","v":""},{"$f":"IF(A80=\"\",\"\",'MHP Family Income & Rent Limits'!$J$3)","v":""},{"$f":"IF(A80=\"\",\"\",'MHP Family Income & Rent Limits'!$E$4)","v":""},{"$f":"IF(A80=\"\",\"\",'MHP Family Income & Rent Limits'!$C$7)","v":""},{"$f":"IF(A80=\"\",\"\",'MHP Family Income & Rent Limits'!$F$8)","v":""},{"$f":"IF(A80=\"\",\"\",'1. Checklist & Certification'!$G$4)","v":""},{"$f":"IF(A80=\"\",\"\",'1. Checklist & Certification'!$K$39)","v":""},{"$f":"IF(A80=\"\",\"\",'1. Checklist & Certification'!$K$43)","v":""},{"$f":"IF(A80=\"\",\"\",'1. Checklist & Certification'!$K$45)","v":""},{"$f":"IF(A80=\"\",\"\",'1. Checklist & Certification'!$K$49)","v":""},{"$f":"IF(A80=\"\",\"\",'1. Checklist & Certification'!$K$62)","v":""},{"$f":"IF(A80=\"\",\"\",'1. Checklist & Certification'!$E$66)","v":""},{"$f":"IF(A80=\"\",\"\",'1. Checklist & Certification'!$E$67)","v":""},{"$f":"IF(A80=\"\",\"\",'1. Checklist & Certification'!$E$68)","v":""},{"$f":"IF(A80=\"\",\"\",'1. Checklist & Certification'!$G$66)","v":""},{"$f":"IF(A80=\"\",\"\",'1. Checklist & Certification'!$H$66)","v":""},{"$f":"IF(A80=\"\",\"\",'1. Checklist & Certification'!$I$66)","v":""},{"$f":"IF(A80=\"\",\"\",'1. Checklist & Certification'!$I$67)","v":""},{"$f":"IF(A80=\"\",\"\",'1. Checklist & Certification'!$I$68)","v":""},{"$f":"IF(A80=\"\",\"\",'1. Checklist & Certification'!$B$69)","v":""},{"$f":"IF(A80=\"\",\"\",'1. Checklist & Certification'!$C$69)","v":""},{"$f":"IF(A80=\"\",\"\",'1. Checklist & Certification'!$F$69)","v":""},{"$f":"IF(A80=\"\",\"\",'1. Checklist & Certification'!$G$69)","v":""},{"$f":"IF(A80=\"\",\"\",'1. Checklist & Certification'!$J$69)","v":""},{"$f":"IF(A80=\"\",\"\",'1. Checklist & Certification'!$K$69)","v":""},null,null,{"$f":"IF(AND(OR('1. Checklist & Certification'!$M$16=1,'1. Checklist & Certification'!$M$19=2),AO80>0,B80=\"\",I80>0,AQ80<I80,AV80<>\"Sec 8-Project\"),\"X\",IF(AND(OR('1. Checklist & Certification'!$M$20=4,'1. Checklist & Certification'!$M$21=5,'1. Checklist & Certification'!$M$22=7),AO80>0,B80=\"\",I80>0,K80<I80),\"X\",\"\"))","v":""},{"$f":"IF(A80=\"\",\"\",IF(SUMPRODUCT(-- (ISNUMBER(SEARCH({\"*AHSC*\",\"*FMTW*\",\"*FWHG*\",\"*GHI*\",\"*HHC*\",\"*HLCP*\",\"*HOME*\",\"*LPR*\",\"*MHP*\",\"*NHTF*\",\"*NSP*\",\"*PRP*\",\"*TOD*\",\"*VHHP*\"},'1. Checklist & Certification'!$L$7)))),\"MHP\",\"Legacy\"))","v":""},",,",null,null,null,{"$f":"IF('1. Checklist & Certification'!$M$20=4,\"Both\",IF(OR('1. Checklist & Certification'!$M$15>0,S80=\"CHRP-R\",U80=\"CHRP-R\",W80=\"CHRP-R\",Y80=\"CHRP-R\"),\"Under\",\"No\"))","v":"No"},"No","No",{"$f":"_xlfn.IFS(D80=\"\",\"\",D80=1,'MHP Family Income & Rent Limits'!$E$17,D80=2,'MHP Family Income & Rent Limits'!$F$17,D80=3,'MHP Family Income & Rent Limits'!$G$17,D80=4,'MHP Family Income & Rent Limits'!$H$17,D80=5,'MHP Family Income & Rent Limits'!$I$17,D80=6,'MHP Family Income & Rent Limits'!$J$17,D80=7,'MHP Family Income & Rent Limits'!$K$17,D80=8,'MHP Family Income & Rent Limits'!$L$17)","v":""},"",{"$f":"IF(OR(A80=0,B80=\"X\"),0,MIN(IF(AA80:AD80<>0,AA80:AD80)))","v":0},{"$f":"IF(OR(H80=\"\",I80=\"\"),0,IF(H80*0.3/12>I80,MIN(H80*0.3/12,I80*1.1)+AP80,I80*(1+(VLOOKUP('1. Checklist & Certification'!$F$9,'HLCP-E Rent Change'!$A$1:$D$59,4,FALSE)))+AP80))","v":0}]
[null,null,null,null,null,null,null,null,null,null,null,null,null,null,null,null,null,null,null,null,null,null,null,null,null,null,0,0,0,0,0,0,0,0,{"$f":"IF(OR(A81=0,B81=\"X\"),0,IF(OR(S81=\"FHDP\",S81=\"RHCP-B\",U81=\"FHDP\",U81=\"RHCP-B\",W81=\"FHDP\",W81=\"RHCP-B\",Y81=\"FHDP\",Y81=\"RHCP-B\"),TRUNC((MIN(I81,K81)*(1+'1. Checklist & Certification'!$K$43)+AP81)),0))","v":0},{"$f":"IF(OR(A81=0,B81=\"X\"),0,IF(OR(S81=\"CHRP-R\",S81=\"SERA\",S81=\"SUHRP\",U81=\"CHRP-R\",U81=\"SERA\",U81=\"SUHRP\",W81=\"CHRP-R\",W81=\"SERA\",W81=\"SUHRP\",Y81=\"CHRP-R\",Y81=\"SERA\",Y81=\"SUHRP\"),TRUNC((MIN(I81,K81)*(1+'1. Checklist & Certification'!$K$49))),0))","v":0},{"$f":"IF(OR(A81=0,B81=\"X\"),0,IF(OR(S81=\"CALDAP\",S81=\"DPRLP\",U81=\"CALDAP\",U81=\"DPRLP\",W81=\"CALDAP\",W81=\"DPRLP\",Y81=\"CALDAP\",Y81=\"DPRLP\"),TRUNC(((MIN(I81,K81))*(1+'1. Checklist & Certification'!$G$4))),0))","v":0},0,0,0,{"$f":"IF(OR(A81=0,B81=\"X\"),0,IF(OR(S81=\"PRP\",S81=\"LPR\",U81=\"PRP\",U81=\"LPR\",W81=\"PRP\",W81=\"LPR\",Y81=\"PRP\",Y81=\"LPR\"),MAX(I81+AP81,MIN(IF(AE81:AN81<>0,AE81:AN81))),MIN(IF(AE81:AN81<>0,AE81:AN81))))","v":0},{"$f":"IF(A81=0,0,IF(AND(OR(S81=\"Mgr\",S81=0),OR(U81=\"Mgr\",U81=0),OR(W81=\"Mgr\",W81=0)),0,IF(LEFT($A81,2)=\"B*\",VLOOKUP($E81,'1. Checklist & Certification'!$D$26:$E$32,2),IF(LEFT($A81,2)=\"C*\",VLOOKUP($E81,'1. Checklist & Certification'!$F$26:$G$32,2),IF(LEFT($A81,2)=\"D*\",VLOOKUP($E81,'1. Checklist & Certification'!$H$26:$I$32,2),IF(LEFT($A81,2)=\"E*\",VLOOKUP($E81,'1. Checklist & Certification'!$J$26:$K$32,2),VLOOKUP($E81,'1. Checklist & Certification'!$A$26:$B$32,2)))))))","v":0},0,0,null,null,null,null,"","",0,0,0,null,{"$f":"IF(A81=\"\",\"\",'1. Checklist & Certification'!$K$1)","v":""},{"$f":"IF(A81=\"\",\"\",'1. Checklist & Certification'!$C$62)","v":""},{"$f":"IF(A81=\"\",\"\",'1. Checklist & Certification'!$C$6)","v":""},{"$f":"IF(A81=\"\",\"\",'1. Checklist & Certification'!$G$5)","v":""},{"$f":"IFERROR(IF(A81=\"\",\"\",\n_xlfn.LET(_xlpm.Contract,'1. Checklist & Certification'!$C$7,\n_xlpm.Yr,TEXT(MOD(_xlfn.TEXTBEFORE(_xlpm.Contract,\"-\"),100),\"00\"),\n_xlpm.Program,_xlfn.TEXTAFTER(_xlfn.TEXTBEFORE(_xlpm.Contract,\"-\",2),\"-\"),\n_xlpm.CleanProgram,_xlfn.XLOOKUP(_xlpm.Program,SpellCheck[Input],SpellCheck[Correction],_xlpm.Program),\n_xlpm.Number,TEXT(_xlfn.TEXTAFTER(_xlpm.Contract,\"-\",2),\"0000\"),\n_xlfn.CONCAT(_xlpm.Yr,\"-\",_xlpm.CleanProgram,\"-\",_xlpm.Number))\n),\"\")","v":""},{"$f":"IFERROR(IF(A81=\"\",\"\",\n_xlfn.LET(_xlpm.Contract,'1. Checklist & Certification'!$C$8,\n_xlpm.Yr,TEXT(MOD(_xlfn.TEXTBEFORE(_xlpm.Contract,\"-\"),100),\"00\"),\n_xlpm.Program,_xlfn.TEXTAFTER(_xlfn.TEXTBEFORE(_xlpm.Contract,\"-\",2),\"-\"),\n_xlpm.CleanProgram,_xlfn.XLOOKUP(_xlpm.Program,SpellCheck[Input],SpellCheck[Correction],_xlpm.Program),\n_xlpm.Number,TEXT(_xlfn.TEXTAFTER(_xlpm.Contract,\"-\",2),\"0000\"),\n_xlfn.CONCAT(_xlpm.Yr,\"-\",_xlpm.CleanProgram,\"-\",_xlpm.Number))\n),\"\")","v":""},{"$f":"IFERROR(IF(A81=\"\",\"\",\n_xlfn.LET(_xlpm.Contract,'1. Checklist & Certification'!$F$7,\n_xlpm.Yr,TEXT(MOD(_xlfn.TEXTBEFORE(_xlpm.Contract,\"-\"),100),\"00\"),\n_xlpm.Program,_xlfn.TEXTAFTER(_xlfn.TEXTBEFORE(_xlpm.Contract,\"-\",2),\"-\"),\n_xlpm.CleanProgram,_xlfn.XLOOKUP(_xlpm.Program,SpellCheck[Input],SpellCheck[Correction],_xlpm.Program),\n_xlpm.Number,TEXT(_xlfn.TEXTAFTER(_xlpm.Contract,\"-\",2),\"0000\"),\n_xlfn.CONCAT(_xlpm.Yr,\"-\",_xlpm.CleanProgram,\"-\",_xlpm.Number))\n),\"\")","v":""},{"$f":"IFERROR(IF(A81=\"\",\"\",\n_xlfn.LET(_xlpm.Contract,'1. Checklist & Certification'!$F$8,\n_xlpm.Yr,TEXT(MOD(_xlfn.TEXTBEFORE(_xlpm.Contract,\"-\"),100),\"00\"),\n_xlpm.Program,_xlfn.TEXTAFTER(_xlfn.TEXTBEFORE(_xlpm.Contract,\"-\",2),\"-\"),\n_xlpm.CleanProgram,_xlfn.XLOOKUP(_xlpm.Program,SpellCheck[Input],SpellCheck[Correction],_xlpm.Program),\n_xlpm.Number,TEXT(_xlfn.TEXTAFTER(_xlpm.Contract,\"-\",2),\"0000\"),\n_xlfn.CONCAT(_xlpm.Yr,\"-\",_xlpm.CleanProgram,\"-\",_xlpm.Number))\n),\"\")","v":""},{"$f":"IF(A81=\"\",\"\",'1. Checklist & Certification'!$B$9)","v":""},{"$f":"IF(A81=\"\",\"\",'1. Checklist & Certification'!$F$9)","v":""},{"$f":"IF(A81=\"\",\"\",'1. Checklist & Certification'!$C$10)","v":""},{"$f":"IF(A81=\"\",\"\",'1. Checklist & Certification'!$C$11)","v":""},{"$f":"IF(A81=\"\",\"\",'1. Checklist & Certification'!$C$12)","v":""},{"$f":"IF(A81=\"\",\"\",'1. Checklist & Certification'!$B$14)","v":""},{"$f":"IF(A81=\"\",\"\",'1. Checklist & Certification'!$E$14)","v":""},{"$f":"IF(B81=\"\",\"\",'1. Checklist & Certification'!$G$14)","v":""},{"$f":"IF(A81=\"\",\"\",'MHP Family Income & Rent Limits'!$B$3)","v":""},{"$f":"IF(A81=\"\",\"\",'MHP Family Income & Rent Limits'!$J$3)","v":""},{"$f":"IF(A81=\"\",\"\",'MHP Family Income & Rent Limits'!$E$4)","v":""},{"$f":"IF(A81=\"\",\"\",'MHP Family Income & Rent Limits'!$C$7)","v":""},{"$f":"IF(A81=\"\",\"\",'MHP Family Income & Rent Limits'!$F$8)","v":""},{"$f":"IF(A81=\"\",\"\",'1. Checklist & Certification'!$G$4)","v":""},{"$f":"IF(A81=\"\",\"\",'1. Checklist & Certification'!$K$39)","v":""},{"$f":"IF(A81=\"\",\"\",'1. Checklist & Certification'!$K$43)","v":""},{"$f":"IF(A81=\"\",\"\",'1. Checklist & Certification'!$K$45)","v":""},{"$f":"IF(A81=\"\",\"\",'1. Checklist & Certification'!$K$49)","v":""},{"$f":"IF(A81=\"\",\"\",'1. Checklist & Certification'!$K$62)","v":""},{"$f":"IF(A81=\"\",\"\",'1. Checklist & Certification'!$E$66)","v":""},{"$f":"IF(A81=\"\",\"\",'1. Checklist & Certification'!$E$67)","v":""},{"$f":"IF(A81=\"\",\"\",'1. Checklist & Certification'!$E$68)","v":""},{"$f":"IF(A81=\"\",\"\",'1. Checklist & Certification'!$G$66)","v":""},{"$f":"IF(A81=\"\",\"\",'1. Checklist & Certification'!$H$66)","v":""},{"$f":"IF(A81=\"\",\"\",'1. Checklist & Certification'!$I$66)","v":""},{"$f":"IF(A81=\"\",\"\",'1. Checklist & Certification'!$I$67)","v":""},{"$f":"IF(A81=\"\",\"\",'1. Checklist & Certification'!$I$68)","v":""},{"$f":"IF(A81=\"\",\"\",'1. Checklist & Certification'!$B$69)","v":""},{"$f":"IF(A81=\"\",\"\",'1. Checklist & Certification'!$C$69)","v":""},{"$f":"IF(A81=\"\",\"\",'1. Checklist & Certification'!$F$69)","v":""},{"$f":"IF(A81=\"\",\"\",'1. Checklist & Certification'!$G$69)","v":""},{"$f":"IF(A81=\"\",\"\",'1. Checklist & Certification'!$J$69)","v":""},{"$f":"IF(A81=\"\",\"\",'1. Checklist & Certification'!$K$69)","v":""},null,null,{"$f":"IF(AND(OR('1. Checklist & Certification'!$M$16=1,'1. Checklist & Certification'!$M$19=2),AO81>0,B81=\"\",I81>0,AQ81<I81,AV81<>\"Sec 8-Project\"),\"X\",IF(AND(OR('1. Checklist & Certification'!$M$20=4,'1. Checklist & Certification'!$M$21=5,'1. Checklist & Certification'!$M$22=7),AO81>0,B81=\"\",I81>0,K81<I81),\"X\",\"\"))","v":""},{"$f":"IF(A81=\"\",\"\",IF(SUMPRODUCT(-- (ISNUMBER(SEARCH({\"*AHSC*\",\"*FMTW*\",\"*FWHG*\",\"*GHI*\",\"*HHC*\",\"*HLCP*\",\"*HOME*\",\"*LPR*\",\"*MHP*\",\"*NHTF*\",\"*NSP*\",\"*PRP*\",\"*TOD*\",\"*VHHP*\"},'1. Checklist & Certification'!$L$7)))),\"MHP\",\"Legacy\"))","v":""},",,",null,null,null,{"$f":"IF('1. Checklist & Certification'!$M$20=4,\"Both\",IF(OR('1. Checklist & Certification'!$M$15>0,S81=\"CHRP-R\",U81=\"CHRP-R\",W81=\"CHRP-R\",Y81=\"CHRP-R\"),\"Under\",\"No\"))","v":"No"},"No","No",{"$f":"_xlfn.IFS(D81=\"\",\"\",D81=1,'MHP Family Income & Rent Limits'!$E$17,D81=2,'MHP Family Income & Rent Limits'!$F$17,D81=3,'MHP Family Income & Rent Limits'!$G$17,D81=4,'MHP Family Income & Rent Limits'!$H$17,D81=5,'MHP Family Income & Rent Limits'!$I$17,D81=6,'MHP Family Income & Rent Limits'!$J$17,D81=7,'MHP Family Income & Rent Limits'!$K$17,D81=8,'MHP Family Income & Rent Limits'!$L$17)","v":""},"",{"$f":"IF(OR(A81=0,B81=\"X\"),0,MIN(IF(AA81:AD81<>0,AA81:AD81)))","v":0},{"$f":"IF(OR(H81=\"\",I81=\"\"),0,IF(H81*0.3/12>I81,MIN(H81*0.3/12,I81*1.1)+AP81,I81*(1+(VLOOKUP('1. Checklist & Certification'!$F$9,'HLCP-E Rent Change'!$A$1:$D$59,4,FALSE)))+AP81))","v":0}]
[null,null,null,null,null,null,null,null,null,null,null,null,null,null,null,null,null,null,null,null,null,null,null,null,null,null,0,0,0,0,0,0,0,0,{"$f":"IF(OR(A82=0,B82=\"X\"),0,IF(OR(S82=\"FHDP\",S82=\"RHCP-B\",U82=\"FHDP\",U82=\"RHCP-B\",W82=\"FHDP\",W82=\"RHCP-B\",Y82=\"FHDP\",Y82=\"RHCP-B\"),TRUNC((MIN(I82,K82)*(1+'1. Checklist & Certification'!$K$43)+AP82)),0))","v":0},{"$f":"IF(OR(A82=0,B82=\"X\"),0,IF(OR(S82=\"CHRP-R\",S82=\"SERA\",S82=\"SUHRP\",U82=\"CHRP-R\",U82=\"SERA\",U82=\"SUHRP\",W82=\"CHRP-R\",W82=\"SERA\",W82=\"SUHRP\",Y82=\"CHRP-R\",Y82=\"SERA\",Y82=\"SUHRP\"),TRUNC((MIN(I82,K82)*(1+'1. Checklist & Certification'!$K$49))),0))","v":0},{"$f":"IF(OR(A82=0,B82=\"X\"),0,IF(OR(S82=\"CALDAP\",S82=\"DPRLP\",U82=\"CALDAP\",U82=\"DPRLP\",W82=\"CALDAP\",W82=\"DPRLP\",Y82=\"CALDAP\",Y82=\"DPRLP\"),TRUNC(((MIN(I82,K82))*(1+'1. Checklist & Certification'!$G$4))),0))","v":0},0,0,0,{"$f":"IF(OR(A82=0,B82=\"X\"),0,IF(OR(S82=\"PRP\",S82=\"LPR\",U82=\"PRP\",U82=\"LPR\",W82=\"PRP\",W82=\"LPR\",Y82=\"PRP\",Y82=\"LPR\"),MAX(I82+AP82,MIN(IF(AE82:AN82<>0,AE82:AN82))),MIN(IF(AE82:AN82<>0,AE82:AN82))))","v":0},{"$f":"IF(A82=0,0,IF(AND(OR(S82=\"Mgr\",S82=0),OR(U82=\"Mgr\",U82=0),OR(W82=\"Mgr\",W82=0)),0,IF(LEFT($A82,2)=\"B*\",VLOOKUP($E82,'1. Checklist & Certification'!$D$26:$E$32,2),IF(LEFT($A82,2)=\"C*\",VLOOKUP($E82,'1. Checklist & Certification'!$F$26:$G$32,2),IF(LEFT($A82,2)=\"D*\",VLOOKUP($E82,'1. Checklist & Certification'!$H$26:$I$32,2),IF(LEFT($A82,2)=\"E*\",VLOOKUP($E82,'1. Checklist & Certification'!$J$26:$K$32,2),VLOOKUP($E82,'1. Checklist & Certification'!$A$26:$B$32,2)))))))","v":0},0,0,null,null,null,null,"","",0,0,0,null,{"$f":"IF(A82=\"\",\"\",'1. Checklist & Certification'!$K$1)","v":""},{"$f":"IF(A82=\"\",\"\",'1. Checklist & Certification'!$C$62)","v":""},{"$f":"IF(A82=\"\",\"\",'1. Checklist & Certification'!$C$6)","v":""},{"$f":"IF(A82=\"\",\"\",'1. Checklist & Certification'!$G$5)","v":""},{"$f":"IFERROR(IF(A82=\"\",\"\",\n_xlfn.LET(_xlpm.Contract,'1. Checklist & Certification'!$C$7,\n_xlpm.Yr,TEXT(MOD(_xlfn.TEXTBEFORE(_xlpm.Contract,\"-\"),100),\"00\"),\n_xlpm.Program,_xlfn.TEXTAFTER(_xlfn.TEXTBEFORE(_xlpm.Contract,\"-\",2),\"-\"),\n_xlpm.CleanProgram,_xlfn.XLOOKUP(_xlpm.Program,SpellCheck[Input],SpellCheck[Correction],_xlpm.Program),\n_xlpm.Number,TEXT(_xlfn.TEXTAFTER(_xlpm.Contract,\"-\",2),\"0000\"),\n_xlfn.CONCAT(_xlpm.Yr,\"-\",_xlpm.CleanProgram,\"-\",_xlpm.Number))\n),\"\")","v":""},{"$f":"IFERROR(IF(A82=\"\",\"\",\n_xlfn.LET(_xlpm.Contract,'1. Checklist & Certification'!$C$8,\n_xlpm.Yr,TEXT(MOD(_xlfn.TEXTBEFORE(_xlpm.Contract,\"-\"),100),\"00\"),\n_xlpm.Program,_xlfn.TEXTAFTER(_xlfn.TEXTBEFORE(_xlpm.Contract,\"-\",2),\"-\"),\n_xlpm.CleanProgram,_xlfn.XLOOKUP(_xlpm.Program,SpellCheck[Input],SpellCheck[Correction],_xlpm.Program),\n_xlpm.Number,TEXT(_xlfn.TEXTAFTER(_xlpm.Contract,\"-\",2),\"0000\"),\n_xlfn.CONCAT(_xlpm.Yr,\"-\",_xlpm.CleanProgram,\"-\",_xlpm.Number))\n),\"\")","v":""},{"$f":"IFERROR(IF(A82=\"\",\"\",\n_xlfn.LET(_xlpm.Contract,'1. Checklist & Certification'!$F$7,\n_xlpm.Yr,TEXT(MOD(_xlfn.TEXTBEFORE(_xlpm.Contract,\"-\"),100),\"00\"),\n_xlpm.Program,_xlfn.TEXTAFTER(_xlfn.TEXTBEFORE(_xlpm.Contract,\"-\",2),\"-\"),\n_xlpm.CleanProgram,_xlfn.XLOOKUP(_xlpm.Program,SpellCheck[Input],SpellCheck[Correction],_xlpm.Program),\n_xlpm.Number,TEXT(_xlfn.TEXTAFTER(_xlpm.Contract,\"-\",2),\"0000\"),\n_xlfn.CONCAT(_xlpm.Yr,\"-\",_xlpm.CleanProgram,\"-\",_xlpm.Number))\n),\"\")","v":""},{"$f":"IFERROR(IF(A82=\"\",\"\",\n_xlfn.LET(_xlpm.Contract,'1. Checklist & Certification'!$F$8,\n_xlpm.Yr,TEXT(MOD(_xlfn.TEXTBEFORE(_xlpm.Contract,\"-\"),100),\"00\"),\n_xlpm.Program,_xlfn.TEXTAFTER(_xlfn.TEXTBEFORE(_xlpm.Contract,\"-\",2),\"-\"),\n_xlpm.CleanProgram,_xlfn.XLOOKUP(_xlpm.Program,SpellCheck[Input],SpellCheck[Correction],_xlpm.Program),\n_xlpm.Number,TEXT(_xlfn.TEXTAFTER(_xlpm.Contract,\"-\",2),\"0000\"),\n_xlfn.CONCAT(_xlpm.Yr,\"-\",_xlpm.CleanProgram,\"-\",_xlpm.Number))\n),\"\")","v":""},{"$f":"IF(A82=\"\",\"\",'1. Checklist & Certification'!$B$9)","v":""},{"$f":"IF(A82=\"\",\"\",'1. Checklist & Certification'!$F$9)","v":""},{"$f":"IF(A82=\"\",\"\",'1. Checklist & Certification'!$C$10)","v":""},{"$f":"IF(A82=\"\",\"\",'1. Checklist & Certification'!$C$11)","v":""},{"$f":"IF(A82=\"\",\"\",'1. Checklist & Certification'!$C$12)","v":""},{"$f":"IF(A82=\"\",\"\",'1. Checklist & Certification'!$B$14)","v":""},{"$f":"IF(A82=\"\",\"\",'1. Checklist & Certification'!$E$14)","v":""},{"$f":"IF(B82=\"\",\"\",'1. Checklist & Certification'!$G$14)","v":""},{"$f":"IF(A82=\"\",\"\",'MHP Family Income & Rent Limits'!$B$3)","v":""},{"$f":"IF(A82=\"\",\"\",'MHP Family Income & Rent Limits'!$J$3)","v":""},{"$f":"IF(A82=\"\",\"\",'MHP Family Income & Rent Limits'!$E$4)","v":""},{"$f":"IF(A82=\"\",\"\",'MHP Family Income & Rent Limits'!$C$7)","v":""},{"$f":"IF(A82=\"\",\"\",'MHP Family Income & Rent Limits'!$F$8)","v":""},{"$f":"IF(A82=\"\",\"\",'1. Checklist & Certification'!$G$4)","v":""},{"$f":"IF(A82=\"\",\"\",'1. Checklist & Certification'!$K$39)","v":""},{"$f":"IF(A82=\"\",\"\",'1. Checklist & Certification'!$K$43)","v":""},{"$f":"IF(A82=\"\",\"\",'1. Checklist & Certification'!$K$45)","v":""},{"$f":"IF(A82=\"\",\"\",'1. Checklist & Certification'!$K$49)","v":""},{"$f":"IF(A82=\"\",\"\",'1. Checklist & Certification'!$K$62)","v":""},{"$f":"IF(A82=\"\",\"\",'1. Checklist & Certification'!$E$66)","v":""},{"$f":"IF(A82=\"\",\"\",'1. Checklist & Certification'!$E$67)","v":""},{"$f":"IF(A82=\"\",\"\",'1. Checklist & Certification'!$E$68)","v":""},{"$f":"IF(A82=\"\",\"\",'1. Checklist & Certification'!$G$66)","v":""},{"$f":"IF(A82=\"\",\"\",'1. Checklist & Certification'!$H$66)","v":""},{"$f":"IF(A82=\"\",\"\",'1. Checklist & Certification'!$I$66)","v":""},{"$f":"IF(A82=\"\",\"\",'1. Checklist & Certification'!$I$67)","v":""},{"$f":"IF(A82=\"\",\"\",'1. Checklist & Certification'!$I$68)","v":""},{"$f":"IF(A82=\"\",\"\",'1. Checklist & Certification'!$B$69)","v":""},{"$f":"IF(A82=\"\",\"\",'1. Checklist & Certification'!$C$69)","v":""},{"$f":"IF(A82=\"\",\"\",'1. Checklist & Certification'!$F$69)","v":""},{"$f":"IF(A82=\"\",\"\",'1. Checklist & Certification'!$G$69)","v":""},{"$f":"IF(A82=\"\",\"\",'1. Checklist & Certification'!$J$69)","v":""},{"$f":"IF(A82=\"\",\"\",'1. Checklist & Certification'!$K$69)","v":""},null,null,{"$f":"IF(AND(OR('1. Checklist & Certification'!$M$16=1,'1. Checklist & Certification'!$M$19=2),AO82>0,B82=\"\",I82>0,AQ82<I82,AV82<>\"Sec 8-Project\"),\"X\",IF(AND(OR('1. Checklist & Certification'!$M$20=4,'1. Checklist & Certification'!$M$21=5,'1. Checklist & Certification'!$M$22=7),AO82>0,B82=\"\",I82>0,K82<I82),\"X\",\"\"))","v":""},{"$f":"IF(A82=\"\",\"\",IF(SUMPRODUCT(-- (ISNUMBER(SEARCH({\"*AHSC*\",\"*FMTW*\",\"*FWHG*\",\"*GHI*\",\"*HHC*\",\"*HLCP*\",\"*HOME*\",\"*LPR*\",\"*MHP*\",\"*NHTF*\",\"*NSP*\",\"*PRP*\",\"*TOD*\",\"*VHHP*\"},'1. Checklist & Certification'!$L$7)))),\"MHP\",\"Legacy\"))","v":""},",,",null,null,null,{"$f":"IF('1. Checklist & Certification'!$M$20=4,\"Both\",IF(OR('1. Checklist & Certification'!$M$15>0,S82=\"CHRP-R\",U82=\"CHRP-R\",W82=\"CHRP-R\",Y82=\"CHRP-R\"),\"Under\",\"No\"))","v":"No"},"No","No",{"$f":"_xlfn.IFS(D82=\"\",\"\",D82=1,'MHP Family Income & Rent Limits'!$E$17,D82=2,'MHP Family Income & Rent Limits'!$F$17,D82=3,'MHP Family Income & Rent Limits'!$G$17,D82=4,'MHP Family Income & Rent Limits'!$H$17,D82=5,'MHP Family Income & Rent Limits'!$I$17,D82=6,'MHP Family Income & Rent Limits'!$J$17,D82=7,'MHP Family Income & Rent Limits'!$K$17,D82=8,'MHP Family Income & Rent Limits'!$L$17)","v":""},"",{"$f":"IF(OR(A82=0,B82=\"X\"),0,MIN(IF(AA82:AD82<>0,AA82:AD82)))","v":0},{"$f":"IF(OR(H82=\"\",I82=\"\"),0,IF(H82*0.3/12>I82,MIN(H82*0.3/12,I82*1.1)+AP82,I82*(1+(VLOOKUP('1. Checklist & Certification'!$F$9,'HLCP-E Rent Change'!$A$1:$D$59,4,FALSE)))+AP82))","v":0}]
[null,null,null,null,null,null,null,null,null,null,null,null,null,null,null,null,null,null,null,null,null,null,null,null,null,null,0,0,0,0,0,0,0,0,{"$f":"IF(OR(A83=0,B83=\"X\"),0,IF(OR(S83=\"FHDP\",S83=\"RHCP-B\",U83=\"FHDP\",U83=\"RHCP-B\",W83=\"FHDP\",W83=\"RHCP-B\",Y83=\"FHDP\",Y83=\"RHCP-B\"),TRUNC((MIN(I83,K83)*(1+'1. Checklist & Certification'!$K$43)+AP83)),0))","v":0},{"$f":"IF(OR(A83=0,B83=\"X\"),0,IF(OR(S83=\"CHRP-R\",S83=\"SERA\",S83=\"SUHRP\",U83=\"CHRP-R\",U83=\"SERA\",U83=\"SUHRP\",W83=\"CHRP-R\",W83=\"SERA\",W83=\"SUHRP\",Y83=\"CHRP-R\",Y83=\"SERA\",Y83=\"SUHRP\"),TRUNC((MIN(I83,K83)*(1+'1. Checklist & Certification'!$K$49))),0))","v":0},{"$f":"IF(OR(A83=0,B83=\"X\"),0,IF(OR(S83=\"CALDAP\",S83=\"DPRLP\",U83=\"CALDAP\",U83=\"DPRLP\",W83=\"CALDAP\",W83=\"DPRLP\",Y83=\"CALDAP\",Y83=\"DPRLP\"),TRUNC(((MIN(I83,K83))*(1+'1. Checklist & Certification'!$G$4))),0))","v":0},0,0,0,{"$f":"IF(OR(A83=0,B83=\"X\"),0,IF(OR(S83=\"PRP\",S83=\"LPR\",U83=\"PRP\",U83=\"LPR\",W83=\"PRP\",W83=\"LPR\",Y83=\"PRP\",Y83=\"LPR\"),MAX(I83+AP83,MIN(IF(AE83:AN83<>0,AE83:AN83))),MIN(IF(AE83:AN83<>0,AE83:AN83))))","v":0},{"$f":"IF(A83=0,0,IF(AND(OR(S83=\"Mgr\",S83=0),OR(U83=\"Mgr\",U83=0),OR(W83=\"Mgr\",W83=0)),0,IF(LEFT($A83,2)=\"B*\",VLOOKUP($E83,'1. Checklist & Certification'!$D$26:$E$32,2),IF(LEFT($A83,2)=\"C*\",VLOOKUP($E83,'1. Checklist & Certification'!$F$26:$G$32,2),IF(LEFT($A83,2)=\"D*\",VLOOKUP($E83,'1. Checklist & Certification'!$H$26:$I$32,2),IF(LEFT($A83,2)=\"E*\",VLOOKUP($E83,'1. Checklist & Certification'!$J$26:$K$32,2),VLOOKUP($E83,'1. Checklist & Certification'!$A$26:$B$32,2)))))))","v":0},0,0,null,null,null,null,"","",0,0,0,null,{"$f":"IF(A83=\"\",\"\",'1. Checklist & Certification'!$K$1)","v":""},{"$f":"IF(A83=\"\",\"\",'1. Checklist & Certification'!$C$62)","v":""},{"$f":"IF(A83=\"\",\"\",'1. Checklist & Certification'!$C$6)","v":""},{"$f":"IF(A83=\"\",\"\",'1. Checklist & Certification'!$G$5)","v":""},{"$f":"IFERROR(IF(A83=\"\",\"\",\n_xlfn.LET(_xlpm.Contract,'1. Checklist & Certification'!$C$7,\n_xlpm.Yr,TEXT(MOD(_xlfn.TEXTBEFORE(_xlpm.Contract,\"-\"),100),\"00\"),\n_xlpm.Program,_xlfn.TEXTAFTER(_xlfn.TEXTBEFORE(_xlpm.Contract,\"-\",2),\"-\"),\n_xlpm.CleanProgram,_xlfn.XLOOKUP(_xlpm.Program,SpellCheck[Input],SpellCheck[Correction],_xlpm.Program),\n_xlpm.Number,TEXT(_xlfn.TEXTAFTER(_xlpm.Contract,\"-\",2),\"0000\"),\n_xlfn.CONCAT(_xlpm.Yr,\"-\",_xlpm.CleanProgram,\"-\",_xlpm.Number))\n),\"\")","v":""},{"$f":"IFERROR(IF(A83=\"\",\"\",\n_xlfn.LET(_xlpm.Contract,'1. Checklist & Certification'!$C$8,\n_xlpm.Yr,TEXT(MOD(_xlfn.TEXTBEFORE(_xlpm.Contract,\"-\"),100),\"00\"),\n_xlpm.Program,_xlfn.TEXTAFTER(_xlfn.TEXTBEFORE(_xlpm.Contract,\"-\",2),\"-\"),\n_xlpm.CleanProgram,_xlfn.XLOOKUP(_xlpm.Program,SpellCheck[Input],SpellCheck[Correction],_xlpm.Program),\n_xlpm.Number,TEXT(_xlfn.TEXTAFTER(_xlpm.Contract,\"-\",2),\"0000\"),\n_xlfn.CONCAT(_xlpm.Yr,\"-\",_xlpm.CleanProgram,\"-\",_xlpm.Number))\n),\"\")","v":""},{"$f":"IFERROR(IF(A83=\"\",\"\",\n_xlfn.LET(_xlpm.Contract,'1. Checklist & Certification'!$F$7,\n_xlpm.Yr,TEXT(MOD(_xlfn.TEXTBEFORE(_xlpm.Contract,\"-\"),100),\"00\"),\n_xlpm.Program,_xlfn.TEXTAFTER(_xlfn.TEXTBEFORE(_xlpm.Contract,\"-\",2),\"-\"),\n_xlpm.CleanProgram,_xlfn.XLOOKUP(_xlpm.Program,SpellCheck[Input],SpellCheck[Correction],_xlpm.Program),\n_xlpm.Number,TEXT(_xlfn.TEXTAFTER(_xlpm.Contract,\"-\",2),\"0000\"),\n_xlfn.CONCAT(_xlpm.Yr,\"-\",_xlpm.CleanProgram,\"-\",_xlpm.Number))\n),\"\")","v":""},{"$f":"IFERROR(IF(A83=\"\",\"\",\n_xlfn.LET(_xlpm.Contract,'1. Checklist & Certification'!$F$8,\n_xlpm.Yr,TEXT(MOD(_xlfn.TEXTBEFORE(_xlpm.Contract,\"-\"),100),\"00\"),\n_xlpm.Program,_xlfn.TEXTAFTER(_xlfn.TEXTBEFORE(_xlpm.Contract,\"-\",2),\"-\"),\n_xlpm.CleanProgram,_xlfn.XLOOKUP(_xlpm.Program,SpellCheck[Input],SpellCheck[Correction],_xlpm.Program),\n_xlpm.Number,TEXT(_xlfn.TEXTAFTER(_xlpm.Contract,\"-\",2),\"0000\"),\n_xlfn.CONCAT(_xlpm.Yr,\"-\",_xlpm.CleanProgram,\"-\",_xlpm.Number))\n),\"\")","v":""},{"$f":"IF(A83=\"\",\"\",'1. Checklist & Certification'!$B$9)","v":""},{"$f":"IF(A83=\"\",\"\",'1. Checklist & Certification'!$F$9)","v":""},{"$f":"IF(A83=\"\",\"\",'1. Checklist & Certification'!$C$10)","v":""},{"$f":"IF(A83=\"\",\"\",'1. Checklist & Certification'!$C$11)","v":""},{"$f":"IF(A83=\"\",\"\",'1. Checklist & Certification'!$C$12)","v":""},{"$f":"IF(A83=\"\",\"\",'1. Checklist & Certification'!$B$14)","v":""},{"$f":"IF(A83=\"\",\"\",'1. Checklist & Certification'!$E$14)","v":""},{"$f":"IF(B83=\"\",\"\",'1. Checklist & Certification'!$G$14)","v":""},{"$f":"IF(A83=\"\",\"\",'MHP Family Income & Rent Limits'!$B$3)","v":""},{"$f":"IF(A83=\"\",\"\",'MHP Family Income & Rent Limits'!$J$3)","v":""},{"$f":"IF(A83=\"\",\"\",'MHP Family Income & Rent Limits'!$E$4)","v":""},{"$f":"IF(A83=\"\",\"\",'MHP Family Income & Rent Limits'!$C$7)","v":""},{"$f":"IF(A83=\"\",\"\",'MHP Family Income & Rent Limits'!$F$8)","v":""},{"$f":"IF(A83=\"\",\"\",'1. Checklist & Certification'!$G$4)","v":""},{"$f":"IF(A83=\"\",\"\",'1. Checklist & Certification'!$K$39)","v":""},{"$f":"IF(A83=\"\",\"\",'1. Checklist & Certification'!$K$43)","v":""},{"$f":"IF(A83=\"\",\"\",'1. Checklist & Certification'!$K$45)","v":""},{"$f":"IF(A83=\"\",\"\",'1. Checklist & Certification'!$K$49)","v":""},{"$f":"IF(A83=\"\",\"\",'1. Checklist & Certification'!$K$62)","v":""},{"$f":"IF(A83=\"\",\"\",'1. Checklist & Certification'!$E$66)","v":""},{"$f":"IF(A83=\"\",\"\",'1. Checklist & Certification'!$E$67)","v":""},{"$f":"IF(A83=\"\",\"\",'1. Checklist & Certification'!$E$68)","v":""},{"$f":"IF(A83=\"\",\"\",'1. Checklist & Certification'!$G$66)","v":""},{"$f":"IF(A83=\"\",\"\",'1. Checklist & Certification'!$H$66)","v":""},{"$f":"IF(A83=\"\",\"\",'1. Checklist & Certification'!$I$66)","v":""},{"$f":"IF(A83=\"\",\"\",'1. Checklist & Certification'!$I$67)","v":""},{"$f":"IF(A83=\"\",\"\",'1. Checklist & Certification'!$I$68)","v":""},{"$f":"IF(A83=\"\",\"\",'1. Checklist & Certification'!$B$69)","v":""},{"$f":"IF(A83=\"\",\"\",'1. Checklist & Certification'!$C$69)","v":""},{"$f":"IF(A83=\"\",\"\",'1. Checklist & Certification'!$F$69)","v":""},{"$f":"IF(A83=\"\",\"\",'1. Checklist & Certification'!$G$69)","v":""},{"$f":"IF(A83=\"\",\"\",'1. Checklist & Certification'!$J$69)","v":""},{"$f":"IF(A83=\"\",\"\",'1. Checklist & Certification'!$K$69)","v":""},null,null,{"$f":"IF(AND(OR('1. Checklist & Certification'!$M$16=1,'1. Checklist & Certification'!$M$19=2),AO83>0,B83=\"\",I83>0,AQ83<I83,AV83<>\"Sec 8-Project\"),\"X\",IF(AND(OR('1. Checklist & Certification'!$M$20=4,'1. Checklist & Certification'!$M$21=5,'1. Checklist & Certification'!$M$22=7),AO83>0,B83=\"\",I83>0,K83<I83),\"X\",\"\"))","v":""},{"$f":"IF(A83=\"\",\"\",IF(SUMPRODUCT(-- (ISNUMBER(SEARCH({\"*AHSC*\",\"*FMTW*\",\"*FWHG*\",\"*GHI*\",\"*HHC*\",\"*HLCP*\",\"*HOME*\",\"*LPR*\",\"*MHP*\",\"*NHTF*\",\"*NSP*\",\"*PRP*\",\"*TOD*\",\"*VHHP*\"},'1. Checklist & Certification'!$L$7)))),\"MHP\",\"Legacy\"))","v":""},",,",null,null,null,{"$f":"IF('1. Checklist & Certification'!$M$20=4,\"Both\",IF(OR('1. Checklist & Certification'!$M$15>0,S83=\"CHRP-R\",U83=\"CHRP-R\",W83=\"CHRP-R\",Y83=\"CHRP-R\"),\"Under\",\"No\"))","v":"No"},"No","No",{"$f":"_xlfn.IFS(D83=\"\",\"\",D83=1,'MHP Family Income & Rent Limits'!$E$17,D83=2,'MHP Family Income & Rent Limits'!$F$17,D83=3,'MHP Family Income & Rent Limits'!$G$17,D83=4,'MHP Family Income & Rent Limits'!$H$17,D83=5,'MHP Family Income & Rent Limits'!$I$17,D83=6,'MHP Family Income & Rent Limits'!$J$17,D83=7,'MHP Family Income & Rent Limits'!$K$17,D83=8,'MHP Family Income & Rent Limits'!$L$17)","v":""},"",{"$f":"IF(OR(A83=0,B83=\"X\"),0,MIN(IF(AA83:AD83<>0,AA83:AD83)))","v":0},{"$f":"IF(OR(H83=\"\",I83=\"\"),0,IF(H83*0.3/12>I83,MIN(H83*0.3/12,I83*1.1)+AP83,I83*(1+(VLOOKUP('1. Checklist & Certification'!$F$9,'HLCP-E Rent Change'!$A$1:$D$59,4,FALSE)))+AP83))","v":0}]
[null,null,null,null,null,null,null,null,null,null,null,null,null,null,null,null,null,null,null,null,null,null,null,null,null,null,0,0,0,0,0,0,0,0,{"$f":"IF(OR(A84=0,B84=\"X\"),0,IF(OR(S84=\"FHDP\",S84=\"RHCP-B\",U84=\"FHDP\",U84=\"RHCP-B\",W84=\"FHDP\",W84=\"RHCP-B\",Y84=\"FHDP\",Y84=\"RHCP-B\"),TRUNC((MIN(I84,K84)*(1+'1. Checklist & Certification'!$K$43)+AP84)),0))","v":0},{"$f":"IF(OR(A84=0,B84=\"X\"),0,IF(OR(S84=\"CHRP-R\",S84=\"SERA\",S84=\"SUHRP\",U84=\"CHRP-R\",U84=\"SERA\",U84=\"SUHRP\",W84=\"CHRP-R\",W84=\"SERA\",W84=\"SUHRP\",Y84=\"CHRP-R\",Y84=\"SERA\",Y84=\"SUHRP\"),TRUNC((MIN(I84,K84)*(1+'1. Checklist & Certification'!$K$49))),0))","v":0},{"$f":"IF(OR(A84=0,B84=\"X\"),0,IF(OR(S84=\"CALDAP\",S84=\"DPRLP\",U84=\"CALDAP\",U84=\"DPRLP\",W84=\"CALDAP\",W84=\"DPRLP\",Y84=\"CALDAP\",Y84=\"DPRLP\"),TRUNC(((MIN(I84,K84))*(1+'1. Checklist & Certification'!$G$4))),0))","v":0},0,0,0,{"$f":"IF(OR(A84=0,B84=\"X\"),0,IF(OR(S84=\"PRP\",S84=\"LPR\",U84=\"PRP\",U84=\"LPR\",W84=\"PRP\",W84=\"LPR\",Y84=\"PRP\",Y84=\"LPR\"),MAX(I84+AP84,MIN(IF(AE84:AN84<>0,AE84:AN84))),MIN(IF(AE84:AN84<>0,AE84:AN84))))","v":0},{"$f":"IF(A84=0,0,IF(AND(OR(S84=\"Mgr\",S84=0),OR(U84=\"Mgr\",U84=0),OR(W84=\"Mgr\",W84=0)),0,IF(LEFT($A84,2)=\"B*\",VLOOKUP($E84,'1. Checklist & Certification'!$D$26:$E$32,2),IF(LEFT($A84,2)=\"C*\",VLOOKUP($E84,'1. Checklist & Certification'!$F$26:$G$32,2),IF(LEFT($A84,2)=\"D*\",VLOOKUP($E84,'1. Checklist & Certification'!$H$26:$I$32,2),IF(LEFT($A84,2)=\"E*\",VLOOKUP($E84,'1. Checklist & Certification'!$J$26:$K$32,2),VLOOKUP($E84,'1. Checklist & Certification'!$A$26:$B$32,2)))))))","v":0},0,0,null,null,null,null,"","",0,0,0,null,{"$f":"IF(A84=\"\",\"\",'1. Checklist & Certification'!$K$1)","v":""},{"$f":"IF(A84=\"\",\"\",'1. Checklist & Certification'!$C$62)","v":""},{"$f":"IF(A84=\"\",\"\",'1. Checklist & Certification'!$C$6)","v":""},{"$f":"IF(A84=\"\",\"\",'1. Checklist & Certification'!$G$5)","v":""},{"$f":"IFERROR(IF(A84=\"\",\"\",\n_xlfn.LET(_xlpm.Contract,'1. Checklist & Certification'!$C$7,\n_xlpm.Yr,TEXT(MOD(_xlfn.TEXTBEFORE(_xlpm.Contract,\"-\"),100),\"00\"),\n_xlpm.Program,_xlfn.TEXTAFTER(_xlfn.TEXTBEFORE(_xlpm.Contract,\"-\",2),\"-\"),\n_xlpm.CleanProgram,_xlfn.XLOOKUP(_xlpm.Program,SpellCheck[Input],SpellCheck[Correction],_xlpm.Program),\n_xlpm.Number,TEXT(_xlfn.TEXTAFTER(_xlpm.Contract,\"-\",2),\"0000\"),\n_xlfn.CONCAT(_xlpm.Yr,\"-\",_xlpm.CleanProgram,\"-\",_xlpm.Number))\n),\"\")","v":""},{"$f":"IFERROR(IF(A84=\"\",\"\",\n_xlfn.LET(_xlpm.Contract,'1. Checklist & Certification'!$C$8,\n_xlpm.Yr,TEXT(MOD(_xlfn.TEXTBEFORE(_xlpm.Contract,\"-\"),100),\"00\"),\n_xlpm.Program,_xlfn.TEXTAFTER(_xlfn.TEXTBEFORE(_xlpm.Contract,\"-\",2),\"-\"),\n_xlpm.CleanProgram,_xlfn.XLOOKUP(_xlpm.Program,SpellCheck[Input],SpellCheck[Correction],_xlpm.Program),\n_xlpm.Number,TEXT(_xlfn.TEXTAFTER(_xlpm.Contract,\"-\",2),\"0000\"),\n_xlfn.CONCAT(_xlpm.Yr,\"-\",_xlpm.CleanProgram,\"-\",_xlpm.Number))\n),\"\")","v":""},{"$f":"IFERROR(IF(A84=\"\",\"\",\n_xlfn.LET(_xlpm.Contract,'1. Checklist & Certification'!$F$7,\n_xlpm.Yr,TEXT(MOD(_xlfn.TEXTBEFORE(_xlpm.Contract,\"-\"),100),\"00\"),\n_xlpm.Program,_xlfn.TEXTAFTER(_xlfn.TEXTBEFORE(_xlpm.Contract,\"-\",2),\"-\"),\n_xlpm.CleanProgram,_xlfn.XLOOKUP(_xlpm.Program,SpellCheck[Input],SpellCheck[Correction],_xlpm.Program),\n_xlpm.Number,TEXT(_xlfn.TEXTAFTER(_xlpm.Contract,\"-\",2),\"0000\"),\n_xlfn.CONCAT(_xlpm.Yr,\"-\",_xlpm.CleanProgram,\"-\",_xlpm.Number))\n),\"\")","v":""},{"$f":"IFERROR(IF(A84=\"\",\"\",\n_xlfn.LET(_xlpm.Contract,'1. Checklist & Certification'!$F$8,\n_xlpm.Yr,TEXT(MOD(_xlfn.TEXTBEFORE(_xlpm.Contract,\"-\"),100),\"00\"),\n_xlpm.Program,_xlfn.TEXTAFTER(_xlfn.TEXTBEFORE(_xlpm.Contract,\"-\",2),\"-\"),\n_xlpm.CleanProgram,_xlfn.XLOOKUP(_xlpm.Program,SpellCheck[Input],SpellCheck[Correction],_xlpm.Program),\n_xlpm.Number,TEXT(_xlfn.TEXTAFTER(_xlpm.Contract,\"-\",2),\"0000\"),\n_xlfn.CONCAT(_xlpm.Yr,\"-\",_xlpm.CleanProgram,\"-\",_xlpm.Number))\n),\"\")","v":""},{"$f":"IF(A84=\"\",\"\",'1. Checklist & Certification'!$B$9)","v":""},{"$f":"IF(A84=\"\",\"\",'1. Checklist & Certification'!$F$9)","v":""},{"$f":"IF(A84=\"\",\"\",'1. Checklist & Certification'!$C$10)","v":""},{"$f":"IF(A84=\"\",\"\",'1. Checklist & Certification'!$C$11)","v":""},{"$f":"IF(A84=\"\",\"\",'1. Checklist & Certification'!$C$12)","v":""},{"$f":"IF(A84=\"\",\"\",'1. Checklist & Certification'!$B$14)","v":""},{"$f":"IF(A84=\"\",\"\",'1. Checklist & Certification'!$E$14)","v":""},{"$f":"IF(B84=\"\",\"\",'1. Checklist & Certification'!$G$14)","v":""},{"$f":"IF(A84=\"\",\"\",'MHP Family Income & Rent Limits'!$B$3)","v":""},{"$f":"IF(A84=\"\",\"\",'MHP Family Income & Rent Limits'!$J$3)","v":""},{"$f":"IF(A84=\"\",\"\",'MHP Family Income & Rent Limits'!$E$4)","v":""},{"$f":"IF(A84=\"\",\"\",'MHP Family Income & Rent Limits'!$C$7)","v":""},{"$f":"IF(A84=\"\",\"\",'MHP Family Income & Rent Limits'!$F$8)","v":""},{"$f":"IF(A84=\"\",\"\",'1. Checklist & Certification'!$G$4)","v":""},{"$f":"IF(A84=\"\",\"\",'1. Checklist & Certification'!$K$39)","v":""},{"$f":"IF(A84=\"\",\"\",'1. Checklist & Certification'!$K$43)","v":""},{"$f":"IF(A84=\"\",\"\",'1. Checklist & Certification'!$K$45)","v":""},{"$f":"IF(A84=\"\",\"\",'1. Checklist & Certification'!$K$49)","v":""},{"$f":"IF(A84=\"\",\"\",'1. Checklist & Certification'!$K$62)","v":""},{"$f":"IF(A84=\"\",\"\",'1. Checklist & Certification'!$E$66)","v":""},{"$f":"IF(A84=\"\",\"\",'1. Checklist & Certification'!$E$67)","v":""},{"$f":"IF(A84=\"\",\"\",'1. Checklist & Certification'!$E$68)","v":""},{"$f":"IF(A84=\"\",\"\",'1. Checklist & Certification'!$G$66)","v":""},{"$f":"IF(A84=\"\",\"\",'1. Checklist & Certification'!$H$66)","v":""},{"$f":"IF(A84=\"\",\"\",'1. Checklist & Certification'!$I$66)","v":""},{"$f":"IF(A84=\"\",\"\",'1. Checklist & Certification'!$I$67)","v":""},{"$f":"IF(A84=\"\",\"\",'1. Checklist & Certification'!$I$68)","v":""},{"$f":"IF(A84=\"\",\"\",'1. Checklist & Certification'!$B$69)","v":""},{"$f":"IF(A84=\"\",\"\",'1. Checklist & Certification'!$C$69)","v":""},{"$f":"IF(A84=\"\",\"\",'1. Checklist & Certification'!$F$69)","v":""},{"$f":"IF(A84=\"\",\"\",'1. Checklist & Certification'!$G$69)","v":""},{"$f":"IF(A84=\"\",\"\",'1. Checklist & Certification'!$J$69)","v":""},{"$f":"IF(A84=\"\",\"\",'1. Checklist & Certification'!$K$69)","v":""},null,null,{"$f":"IF(AND(OR('1. Checklist & Certification'!$M$16=1,'1. Checklist & Certification'!$M$19=2),AO84>0,B84=\"\",I84>0,AQ84<I84,AV84<>\"Sec 8-Project\"),\"X\",IF(AND(OR('1. Checklist & Certification'!$M$20=4,'1. Checklist & Certification'!$M$21=5,'1. Checklist & Certification'!$M$22=7),AO84>0,B84=\"\",I84>0,K84<I84),\"X\",\"\"))","v":""},{"$f":"IF(A84=\"\",\"\",IF(SUMPRODUCT(-- (ISNUMBER(SEARCH({\"*AHSC*\",\"*FMTW*\",\"*FWHG*\",\"*GHI*\",\"*HHC*\",\"*HLCP*\",\"*HOME*\",\"*LPR*\",\"*MHP*\",\"*NHTF*\",\"*NSP*\",\"*PRP*\",\"*TOD*\",\"*VHHP*\"},'1. Checklist & Certification'!$L$7)))),\"MHP\",\"Legacy\"))","v":""},",,",null,null,null,{"$f":"IF('1. Checklist & Certification'!$M$20=4,\"Both\",IF(OR('1. Checklist & Certification'!$M$15>0,S84=\"CHRP-R\",U84=\"CHRP-R\",W84=\"CHRP-R\",Y84=\"CHRP-R\"),\"Under\",\"No\"))","v":"No"},"No","No",{"$f":"_xlfn.IFS(D84=\"\",\"\",D84=1,'MHP Family Income & Rent Limits'!$E$17,D84=2,'MHP Family Income & Rent Limits'!$F$17,D84=3,'MHP Family Income & Rent Limits'!$G$17,D84=4,'MHP Family Income & Rent Limits'!$H$17,D84=5,'MHP Family Income & Rent Limits'!$I$17,D84=6,'MHP Family Income & Rent Limits'!$J$17,D84=7,'MHP Family Income & Rent Limits'!$K$17,D84=8,'MHP Family Income & Rent Limits'!$L$17)","v":""},"",{"$f":"IF(OR(A84=0,B84=\"X\"),0,MIN(IF(AA84:AD84<>0,AA84:AD84)))","v":0},{"$f":"IF(OR(H84=\"\",I84=\"\"),0,IF(H84*0.3/12>I84,MIN(H84*0.3/12,I84*1.1)+AP84,I84*(1+(VLOOKUP('1. Checklist & Certification'!$F$9,'HLCP-E Rent Change'!$A$1:$D$59,4,FALSE)))+AP84))","v":0}]
[null,null,null,null,null,null,null,null,null,null,null,null,null,null,null,null,null,null,null,null,null,null,null,null,null,null,0,0,0,0,0,0,0,0,{"$f":"IF(OR(A85=0,B85=\"X\"),0,IF(OR(S85=\"FHDP\",S85=\"RHCP-B\",U85=\"FHDP\",U85=\"RHCP-B\",W85=\"FHDP\",W85=\"RHCP-B\",Y85=\"FHDP\",Y85=\"RHCP-B\"),TRUNC((MIN(I85,K85)*(1+'1. Checklist & Certification'!$K$43)+AP85)),0))","v":0},{"$f":"IF(OR(A85=0,B85=\"X\"),0,IF(OR(S85=\"CHRP-R\",S85=\"SERA\",S85=\"SUHRP\",U85=\"CHRP-R\",U85=\"SERA\",U85=\"SUHRP\",W85=\"CHRP-R\",W85=\"SERA\",W85=\"SUHRP\",Y85=\"CHRP-R\",Y85=\"SERA\",Y85=\"SUHRP\"),TRUNC((MIN(I85,K85)*(1+'1. Checklist & Certification'!$K$49))),0))","v":0},{"$f":"IF(OR(A85=0,B85=\"X\"),0,IF(OR(S85=\"CALDAP\",S85=\"DPRLP\",U85=\"CALDAP\",U85=\"DPRLP\",W85=\"CALDAP\",W85=\"DPRLP\",Y85=\"CALDAP\",Y85=\"DPRLP\"),TRUNC(((MIN(I85,K85))*(1+'1. Checklist & Certification'!$G$4))),0))","v":0},0,0,0,{"$f":"IF(OR(A85=0,B85=\"X\"),0,IF(OR(S85=\"PRP\",S85=\"LPR\",U85=\"PRP\",U85=\"LPR\",W85=\"PRP\",W85=\"LPR\",Y85=\"PRP\",Y85=\"LPR\"),MAX(I85+AP85,MIN(IF(AE85:AN85<>0,AE85:AN85))),MIN(IF(AE85:AN85<>0,AE85:AN85))))","v":0},{"$f":"IF(A85=0,0,IF(AND(OR(S85=\"Mgr\",S85=0),OR(U85=\"Mgr\",U85=0),OR(W85=\"Mgr\",W85=0)),0,IF(LEFT($A85,2)=\"B*\",VLOOKUP($E85,'1. Checklist & Certification'!$D$26:$E$32,2),IF(LEFT($A85,2)=\"C*\",VLOOKUP($E85,'1. Checklist & Certification'!$F$26:$G$32,2),IF(LEFT($A85,2)=\"D*\",VLOOKUP($E85,'1. Checklist & Certification'!$H$26:$I$32,2),IF(LEFT($A85,2)=\"E*\",VLOOKUP($E85,'1. Checklist & Certification'!$J$26:$K$32,2),VLOOKUP($E85,'1. Checklist & Certification'!$A$26:$B$32,2)))))))","v":0},0,0,null,null,null,null,"","",0,0,0,null,{"$f":"IF(A85=\"\",\"\",'1. Checklist & Certification'!$K$1)","v":""},{"$f":"IF(A85=\"\",\"\",'1. Checklist & Certification'!$C$62)","v":""},{"$f":"IF(A85=\"\",\"\",'1. Checklist & Certification'!$C$6)","v":""},{"$f":"IF(A85=\"\",\"\",'1. Checklist & Certification'!$G$5)","v":""},{"$f":"IFERROR(IF(A85=\"\",\"\",\n_xlfn.LET(_xlpm.Contract,'1. Checklist & Certification'!$C$7,\n_xlpm.Yr,TEXT(MOD(_xlfn.TEXTBEFORE(_xlpm.Contract,\"-\"),100),\"00\"),\n_xlpm.Program,_xlfn.TEXTAFTER(_xlfn.TEXTBEFORE(_xlpm.Contract,\"-\",2),\"-\"),\n_xlpm.CleanProgram,_xlfn.XLOOKUP(_xlpm.Program,SpellCheck[Input],SpellCheck[Correction],_xlpm.Program),\n_xlpm.Number,TEXT(_xlfn.TEXTAFTER(_xlpm.Contract,\"-\",2),\"0000\"),\n_xlfn.CONCAT(_xlpm.Yr,\"-\",_xlpm.CleanProgram,\"-\",_xlpm.Number))\n),\"\")","v":""},{"$f":"IFERROR(IF(A85=\"\",\"\",\n_xlfn.LET(_xlpm.Contract,'1. Checklist & Certification'!$C$8,\n_xlpm.Yr,TEXT(MOD(_xlfn.TEXTBEFORE(_xlpm.Contract,\"-\"),100),\"00\"),\n_xlpm.Program,_xlfn.TEXTAFTER(_xlfn.TEXTBEFORE(_xlpm.Contract,\"-\",2),\"-\"),\n_xlpm.CleanProgram,_xlfn.XLOOKUP(_xlpm.Program,SpellCheck[Input],SpellCheck[Correction],_xlpm.Program),\n_xlpm.Number,TEXT(_xlfn.TEXTAFTER(_xlpm.Contract,\"-\",2),\"0000\"),\n_xlfn.CONCAT(_xlpm.Yr,\"-\",_xlpm.CleanProgram,\"-\",_xlpm.Number))\n),\"\")","v":""},{"$f":"IFERROR(IF(A85=\"\",\"\",\n_xlfn.LET(_xlpm.Contract,'1. Checklist & Certification'!$F$7,\n_xlpm.Yr,TEXT(MOD(_xlfn.TEXTBEFORE(_xlpm.Contract,\"-\"),100),\"00\"),\n_xlpm.Program,_xlfn.TEXTAFTER(_xlfn.TEXTBEFORE(_xlpm.Contract,\"-\",2),\"-\"),\n_xlpm.CleanProgram,_xlfn.XLOOKUP(_xlpm.Program,SpellCheck[Input],SpellCheck[Correction],_xlpm.Program),\n_xlpm.Number,TEXT(_xlfn.TEXTAFTER(_xlpm.Contract,\"-\",2),\"0000\"),\n_xlfn.CONCAT(_xlpm.Yr,\"-\",_xlpm.CleanProgram,\"-\",_xlpm.Number))\n),\"\")","v":""},{"$f":"IFERROR(IF(A85=\"\",\"\",\n_xlfn.LET(_xlpm.Contract,'1. Checklist & Certification'!$F$8,\n_xlpm.Yr,TEXT(MOD(_xlfn.TEXTBEFORE(_xlpm.Contract,\"-\"),100),\"00\"),\n_xlpm.Program,_xlfn.TEXTAFTER(_xlfn.TEXTBEFORE(_xlpm.Contract,\"-\",2),\"-\"),\n_xlpm.CleanProgram,_xlfn.XLOOKUP(_xlpm.Program,SpellCheck[Input],SpellCheck[Correction],_xlpm.Program),\n_xlpm.Number,TEXT(_xlfn.TEXTAFTER(_xlpm.Contract,\"-\",2),\"0000\"),\n_xlfn.CONCAT(_xlpm.Yr,\"-\",_xlpm.CleanProgram,\"-\",_xlpm.Number))\n),\"\")","v":""},{"$f":"IF(A85=\"\",\"\",'1. Checklist & Certification'!$B$9)","v":""},{"$f":"IF(A85=\"\",\"\",'1. Checklist & Certification'!$F$9)","v":""},{"$f":"IF(A85=\"\",\"\",'1. Checklist & Certification'!$C$10)","v":""},{"$f":"IF(A85=\"\",\"\",'1. Checklist & Certification'!$C$11)","v":""},{"$f":"IF(A85=\"\",\"\",'1. Checklist & Certification'!$C$12)","v":""},{"$f":"IF(A85=\"\",\"\",'1. Checklist & Certification'!$B$14)","v":""},{"$f":"IF(A85=\"\",\"\",'1. Checklist & Certification'!$E$14)","v":""},{"$f":"IF(B85=\"\",\"\",'1. Checklist & Certification'!$G$14)","v":""},{"$f":"IF(A85=\"\",\"\",'MHP Family Income & Rent Limits'!$B$3)","v":""},{"$f":"IF(A85=\"\",\"\",'MHP Family Income & Rent Limits'!$J$3)","v":""},{"$f":"IF(A85=\"\",\"\",'MHP Family Income & Rent Limits'!$E$4)","v":""},{"$f":"IF(A85=\"\",\"\",'MHP Family Income & Rent Limits'!$C$7)","v":""},{"$f":"IF(A85=\"\",\"\",'MHP Family Income & Rent Limits'!$F$8)","v":""},{"$f":"IF(A85=\"\",\"\",'1. Checklist & Certification'!$G$4)","v":""},{"$f":"IF(A85=\"\",\"\",'1. Checklist & Certification'!$K$39)","v":""},{"$f":"IF(A85=\"\",\"\",'1. Checklist & Certification'!$K$43)","v":""},{"$f":"IF(A85=\"\",\"\",'1. Checklist & Certification'!$K$45)","v":""},{"$f":"IF(A85=\"\",\"\",'1. Checklist & Certification'!$K$49)","v":""},{"$f":"IF(A85=\"\",\"\",'1. Checklist & Certification'!$K$62)","v":""},{"$f":"IF(A85=\"\",\"\",'1. Checklist & Certification'!$E$66)","v":""},{"$f":"IF(A85=\"\",\"\",'1. Checklist & Certification'!$E$67)","v":""},{"$f":"IF(A85=\"\",\"\",'1. Checklist & Certification'!$E$68)","v":""},{"$f":"IF(A85=\"\",\"\",'1. Checklist & Certification'!$G$66)","v":""},{"$f":"IF(A85=\"\",\"\",'1. Checklist & Certification'!$H$66)","v":""},{"$f":"IF(A85=\"\",\"\",'1. Checklist & Certification'!$I$66)","v":""},{"$f":"IF(A85=\"\",\"\",'1. Checklist & Certification'!$I$67)","v":""},{"$f":"IF(A85=\"\",\"\",'1. Checklist & Certification'!$I$68)","v":""},{"$f":"IF(A85=\"\",\"\",'1. Checklist & Certification'!$B$69)","v":""},{"$f":"IF(A85=\"\",\"\",'1. Checklist & Certification'!$C$69)","v":""},{"$f":"IF(A85=\"\",\"\",'1. Checklist & Certification'!$F$69)","v":""},{"$f":"IF(A85=\"\",\"\",'1. Checklist & Certification'!$G$69)","v":""},{"$f":"IF(A85=\"\",\"\",'1. Checklist & Certification'!$J$69)","v":""},{"$f":"IF(A85=\"\",\"\",'1. Checklist & Certification'!$K$69)","v":""},null,null,{"$f":"IF(AND(OR('1. Checklist & Certification'!$M$16=1,'1. Checklist & Certification'!$M$19=2),AO85>0,B85=\"\",I85>0,AQ85<I85,AV85<>\"Sec 8-Project\"),\"X\",IF(AND(OR('1. Checklist & Certification'!$M$20=4,'1. Checklist & Certification'!$M$21=5,'1. Checklist & Certification'!$M$22=7),AO85>0,B85=\"\",I85>0,K85<I85),\"X\",\"\"))","v":""},{"$f":"IF(A85=\"\",\"\",IF(SUMPRODUCT(-- (ISNUMBER(SEARCH({\"*AHSC*\",\"*FMTW*\",\"*FWHG*\",\"*GHI*\",\"*HHC*\",\"*HLCP*\",\"*HOME*\",\"*LPR*\",\"*MHP*\",\"*NHTF*\",\"*NSP*\",\"*PRP*\",\"*TOD*\",\"*VHHP*\"},'1. Checklist & Certification'!$L$7)))),\"MHP\",\"Legacy\"))","v":""},",,",null,null,null,{"$f":"IF('1. Checklist & Certification'!$M$20=4,\"Both\",IF(OR('1. Checklist & Certification'!$M$15>0,S85=\"CHRP-R\",U85=\"CHRP-R\",W85=\"CHRP-R\",Y85=\"CHRP-R\"),\"Under\",\"No\"))","v":"No"},"No","No",{"$f":"_xlfn.IFS(D85=\"\",\"\",D85=1,'MHP Family Income & Rent Limits'!$E$17,D85=2,'MHP Family Income & Rent Limits'!$F$17,D85=3,'MHP Family Income & Rent Limits'!$G$17,D85=4,'MHP Family Income & Rent Limits'!$H$17,D85=5,'MHP Family Income & Rent Limits'!$I$17,D85=6,'MHP Family Income & Rent Limits'!$J$17,D85=7,'MHP Family Income & Rent Limits'!$K$17,D85=8,'MHP Family Income & Rent Limits'!$L$17)","v":""},"",{"$f":"IF(OR(A85=0,B85=\"X\"),0,MIN(IF(AA85:AD85<>0,AA85:AD85)))","v":0},{"$f":"IF(OR(H85=\"\",I85=\"\"),0,IF(H85*0.3/12>I85,MIN(H85*0.3/12,I85*1.1)+AP85,I85*(1+(VLOOKUP('1. Checklist & Certification'!$F$9,'HLCP-E Rent Change'!$A$1:$D$59,4,FALSE)))+AP85))","v":0}]
[null,null,null,null,null,null,null,null,null,null,null,null,null,null,null,null,null,null,null,null,null,null,null,null,null,null,0,0,0,0,0,0,0,0,{"$f":"IF(OR(A86=0,B86=\"X\"),0,IF(OR(S86=\"FHDP\",S86=\"RHCP-B\",U86=\"FHDP\",U86=\"RHCP-B\",W86=\"FHDP\",W86=\"RHCP-B\",Y86=\"FHDP\",Y86=\"RHCP-B\"),TRUNC((MIN(I86,K86)*(1+'1. Checklist & Certification'!$K$43)+AP86)),0))","v":0},{"$f":"IF(OR(A86=0,B86=\"X\"),0,IF(OR(S86=\"CHRP-R\",S86=\"SERA\",S86=\"SUHRP\",U86=\"CHRP-R\",U86=\"SERA\",U86=\"SUHRP\",W86=\"CHRP-R\",W86=\"SERA\",W86=\"SUHRP\",Y86=\"CHRP-R\",Y86=\"SERA\",Y86=\"SUHRP\"),TRUNC((MIN(I86,K86)*(1+'1. Checklist & Certification'!$K$49))),0))","v":0},{"$f":"IF(OR(A86=0,B86=\"X\"),0,IF(OR(S86=\"CALDAP\",S86=\"DPRLP\",U86=\"CALDAP\",U86=\"DPRLP\",W86=\"CALDAP\",W86=\"DPRLP\",Y86=\"CALDAP\",Y86=\"DPRLP\"),TRUNC(((MIN(I86,K86))*(1+'1. Checklist & Certification'!$G$4))),0))","v":0},0,0,0,{"$f":"IF(OR(A86=0,B86=\"X\"),0,IF(OR(S86=\"PRP\",S86=\"LPR\",U86=\"PRP\",U86=\"LPR\",W86=\"PRP\",W86=\"LPR\",Y86=\"PRP\",Y86=\"LPR\"),MAX(I86+AP86,MIN(IF(AE86:AN86<>0,AE86:AN86))),MIN(IF(AE86:AN86<>0,AE86:AN86))))","v":0},{"$f":"IF(A86=0,0,IF(AND(OR(S86=\"Mgr\",S86=0),OR(U86=\"Mgr\",U86=0),OR(W86=\"Mgr\",W86=0)),0,IF(LEFT($A86,2)=\"B*\",VLOOKUP($E86,'1. Checklist & Certification'!$D$26:$E$32,2),IF(LEFT($A86,2)=\"C*\",VLOOKUP($E86,'1. Checklist & Certification'!$F$26:$G$32,2),IF(LEFT($A86,2)=\"D*\",VLOOKUP($E86,'1. Checklist & Certification'!$H$26:$I$32,2),IF(LEFT($A86,2)=\"E*\",VLOOKUP($E86,'1. Checklist & Certification'!$J$26:$K$32,2),VLOOKUP($E86,'1. Checklist & Certification'!$A$26:$B$32,2)))))))","v":0},0,0,null,null,null,null,"","",0,0,0,null,{"$f":"IF(A86=\"\",\"\",'1. Checklist & Certification'!$K$1)","v":""},{"$f":"IF(A86=\"\",\"\",'1. Checklist & Certification'!$C$62)","v":""},{"$f":"IF(A86=\"\",\"\",'1. Checklist & Certification'!$C$6)","v":""},{"$f":"IF(A86=\"\",\"\",'1. Checklist & Certification'!$G$5)","v":""},{"$f":"IFERROR(IF(A86=\"\",\"\",\n_xlfn.LET(_xlpm.Contract,'1. Checklist & Certification'!$C$7,\n_xlpm.Yr,TEXT(MOD(_xlfn.TEXTBEFORE(_xlpm.Contract,\"-\"),100),\"00\"),\n_xlpm.Program,_xlfn.TEXTAFTER(_xlfn.TEXTBEFORE(_xlpm.Contract,\"-\",2),\"-\"),\n_xlpm.CleanProgram,_xlfn.XLOOKUP(_xlpm.Program,SpellCheck[Input],SpellCheck[Correction],_xlpm.Program),\n_xlpm.Number,TEXT(_xlfn.TEXTAFTER(_xlpm.Contract,\"-\",2),\"0000\"),\n_xlfn.CONCAT(_xlpm.Yr,\"-\",_xlpm.CleanProgram,\"-\",_xlpm.Number))\n),\"\")","v":""},{"$f":"IFERROR(IF(A86=\"\",\"\",\n_xlfn.LET(_xlpm.Contract,'1. Checklist & Certification'!$C$8,\n_xlpm.Yr,TEXT(MOD(_xlfn.TEXTBEFORE(_xlpm.Contract,\"-\"),100),\"00\"),\n_xlpm.Program,_xlfn.TEXTAFTER(_xlfn.TEXTBEFORE(_xlpm.Contract,\"-\",2),\"-\"),\n_xlpm.CleanProgram,_xlfn.XLOOKUP(_xlpm.Program,SpellCheck[Input],SpellCheck[Correction],_xlpm.Program),\n_xlpm.Number,TEXT(_xlfn.TEXTAFTER(_xlpm.Contract,\"-\",2),\"0000\"),\n_xlfn.CONCAT(_xlpm.Yr,\"-\",_xlpm.CleanProgram,\"-\",_xlpm.Number))\n),\"\")","v":""},{"$f":"IFERROR(IF(A86=\"\",\"\",\n_xlfn.LET(_xlpm.Contract,'1. Checklist & Certification'!$F$7,\n_xlpm.Yr,TEXT(MOD(_xlfn.TEXTBEFORE(_xlpm.Contract,\"-\"),100),\"00\"),\n_xlpm.Program,_xlfn.TEXTAFTER(_xlfn.TEXTBEFORE(_xlpm.Contract,\"-\",2),\"-\"),\n_xlpm.CleanProgram,_xlfn.XLOOKUP(_xlpm.Program,SpellCheck[Input],SpellCheck[Correction],_xlpm.Program),\n_xlpm.Number,TEXT(_xlfn.TEXTAFTER(_xlpm.Contract,\"-\",2),\"0000\"),\n_xlfn.CONCAT(_xlpm.Yr,\"-\",_xlpm.CleanProgram,\"-\",_xlpm.Number))\n),\"\")","v":""},{"$f":"IFERROR(IF(A86=\"\",\"\",\n_xlfn.LET(_xlpm.Contract,'1. Checklist & Certification'!$F$8,\n_xlpm.Yr,TEXT(MOD(_xlfn.TEXTBEFORE(_xlpm.Contract,\"-\"),100),\"00\"),\n_xlpm.Program,_xlfn.TEXTAFTER(_xlfn.TEXTBEFORE(_xlpm.Contract,\"-\",2),\"-\"),\n_xlpm.CleanProgram,_xlfn.XLOOKUP(_xlpm.Program,SpellCheck[Input],SpellCheck[Correction],_xlpm.Program),\n_xlpm.Number,TEXT(_xlfn.TEXTAFTER(_xlpm.Contract,\"-\",2),\"0000\"),\n_xlfn.CONCAT(_xlpm.Yr,\"-\",_xlpm.CleanProgram,\"-\",_xlpm.Number))\n),\"\")","v":""},{"$f":"IF(A86=\"\",\"\",'1. Checklist & Certification'!$B$9)","v":""},{"$f":"IF(A86=\"\",\"\",'1. Checklist & Certification'!$F$9)","v":""},{"$f":"IF(A86=\"\",\"\",'1. Checklist & Certification'!$C$10)","v":""},{"$f":"IF(A86=\"\",\"\",'1. Checklist & Certification'!$C$11)","v":""},{"$f":"IF(A86=\"\",\"\",'1. Checklist & Certification'!$C$12)","v":""},{"$f":"IF(A86=\"\",\"\",'1. Checklist & Certification'!$B$14)","v":""},{"$f":"IF(A86=\"\",\"\",'1. Checklist & Certification'!$E$14)","v":""},{"$f":"IF(B86=\"\",\"\",'1. Checklist & Certification'!$G$14)","v":""},{"$f":"IF(A86=\"\",\"\",'MHP Family Income & Rent Limits'!$B$3)","v":""},{"$f":"IF(A86=\"\",\"\",'MHP Family Income & Rent Limits'!$J$3)","v":""},{"$f":"IF(A86=\"\",\"\",'MHP Family Income & Rent Limits'!$E$4)","v":""},{"$f":"IF(A86=\"\",\"\",'MHP Family Income & Rent Limits'!$C$7)","v":""},{"$f":"IF(A86=\"\",\"\",'MHP Family Income & Rent Limits'!$F$8)","v":""},{"$f":"IF(A86=\"\",\"\",'1. Checklist & Certification'!$G$4)","v":""},{"$f":"IF(A86=\"\",\"\",'1. Checklist & Certification'!$K$39)","v":""},{"$f":"IF(A86=\"\",\"\",'1. Checklist & Certification'!$K$43)","v":""},{"$f":"IF(A86=\"\",\"\",'1. Checklist & Certification'!$K$45)","v":""},{"$f":"IF(A86=\"\",\"\",'1. Checklist & Certification'!$K$49)","v":""},{"$f":"IF(A86=\"\",\"\",'1. Checklist & Certification'!$K$62)","v":""},{"$f":"IF(A86=\"\",\"\",'1. Checklist & Certification'!$E$66)","v":""},{"$f":"IF(A86=\"\",\"\",'1. Checklist & Certification'!$E$67)","v":""},{"$f":"IF(A86=\"\",\"\",'1. Checklist & Certification'!$E$68)","v":""},{"$f":"IF(A86=\"\",\"\",'1. Checklist & Certification'!$G$66)","v":""},{"$f":"IF(A86=\"\",\"\",'1. Checklist & Certification'!$H$66)","v":""},{"$f":"IF(A86=\"\",\"\",'1. Checklist & Certification'!$I$66)","v":""},{"$f":"IF(A86=\"\",\"\",'1. Checklist & Certification'!$I$67)","v":""},{"$f":"IF(A86=\"\",\"\",'1. Checklist & Certification'!$I$68)","v":""},{"$f":"IF(A86=\"\",\"\",'1. Checklist & Certification'!$B$69)","v":""},{"$f":"IF(A86=\"\",\"\",'1. Checklist & Certification'!$C$69)","v":""},{"$f":"IF(A86=\"\",\"\",'1. Checklist & Certification'!$F$69)","v":""},{"$f":"IF(A86=\"\",\"\",'1. Checklist & Certification'!$G$69)","v":""},{"$f":"IF(A86=\"\",\"\",'1. Checklist & Certification'!$J$69)","v":""},{"$f":"IF(A86=\"\",\"\",'1. Checklist & Certification'!$K$69)","v":""},null,null,{"$f":"IF(AND(OR('1. Checklist & Certification'!$M$16=1,'1. Checklist & Certification'!$M$19=2),AO86>0,B86=\"\",I86>0,AQ86<I86,AV86<>\"Sec 8-Project\"),\"X\",IF(AND(OR('1. Checklist & Certification'!$M$20=4,'1. Checklist & Certification'!$M$21=5,'1. Checklist & Certification'!$M$22=7),AO86>0,B86=\"\",I86>0,K86<I86),\"X\",\"\"))","v":""},{"$f":"IF(A86=\"\",\"\",IF(SUMPRODUCT(-- (ISNUMBER(SEARCH({\"*AHSC*\",\"*FMTW*\",\"*FWHG*\",\"*GHI*\",\"*HHC*\",\"*HLCP*\",\"*HOME*\",\"*LPR*\",\"*MHP*\",\"*NHTF*\",\"*NSP*\",\"*PRP*\",\"*TOD*\",\"*VHHP*\"},'1. Checklist & Certification'!$L$7)))),\"MHP\",\"Legacy\"))","v":""},",,",null,null,null,{"$f":"IF('1. Checklist & Certification'!$M$20=4,\"Both\",IF(OR('1. Checklist & Certification'!$M$15>0,S86=\"CHRP-R\",U86=\"CHRP-R\",W86=\"CHRP-R\",Y86=\"CHRP-R\"),\"Under\",\"No\"))","v":"No"},"No","No",{"$f":"_xlfn.IFS(D86=\"\",\"\",D86=1,'MHP Family Income & Rent Limits'!$E$17,D86=2,'MHP Family Income & Rent Limits'!$F$17,D86=3,'MHP Family Income & Rent Limits'!$G$17,D86=4,'MHP Family Income & Rent Limits'!$H$17,D86=5,'MHP Family Income & Rent Limits'!$I$17,D86=6,'MHP Family Income & Rent Limits'!$J$17,D86=7,'MHP Family Income & Rent Limits'!$K$17,D86=8,'MHP Family Income & Rent Limits'!$L$17)","v":""},"",{"$f":"IF(OR(A86=0,B86=\"X\"),0,MIN(IF(AA86:AD86<>0,AA86:AD86)))","v":0},{"$f":"IF(OR(H86=\"\",I86=\"\"),0,IF(H86*0.3/12>I86,MIN(H86*0.3/12,I86*1.1)+AP86,I86*(1+(VLOOKUP('1. Checklist & Certification'!$F$9,'HLCP-E Rent Change'!$A$1:$D$59,4,FALSE)))+AP86))","v":0}]
[null,null,null,null,null,null,null,null,null,null,null,null,null,null,null,null,null,null,null,null,null,null,null,null,null,null,0,0,0,0,0,0,0,0,{"$f":"IF(OR(A87=0,B87=\"X\"),0,IF(OR(S87=\"FHDP\",S87=\"RHCP-B\",U87=\"FHDP\",U87=\"RHCP-B\",W87=\"FHDP\",W87=\"RHCP-B\",Y87=\"FHDP\",Y87=\"RHCP-B\"),TRUNC((MIN(I87,K87)*(1+'1. Checklist & Certification'!$K$43)+AP87)),0))","v":0},{"$f":"IF(OR(A87=0,B87=\"X\"),0,IF(OR(S87=\"CHRP-R\",S87=\"SERA\",S87=\"SUHRP\",U87=\"CHRP-R\",U87=\"SERA\",U87=\"SUHRP\",W87=\"CHRP-R\",W87=\"SERA\",W87=\"SUHRP\",Y87=\"CHRP-R\",Y87=\"SERA\",Y87=\"SUHRP\"),TRUNC((MIN(I87,K87)*(1+'1. Checklist & Certification'!$K$49))),0))","v":0},{"$f":"IF(OR(A87=0,B87=\"X\"),0,IF(OR(S87=\"CALDAP\",S87=\"DPRLP\",U87=\"CALDAP\",U87=\"DPRLP\",W87=\"CALDAP\",W87=\"DPRLP\",Y87=\"CALDAP\",Y87=\"DPRLP\"),TRUNC(((MIN(I87,K87))*(1+'1. Checklist & Certification'!$G$4))),0))","v":0},0,0,0,{"$f":"IF(OR(A87=0,B87=\"X\"),0,IF(OR(S87=\"PRP\",S87=\"LPR\",U87=\"PRP\",U87=\"LPR\",W87=\"PRP\",W87=\"LPR\",Y87=\"PRP\",Y87=\"LPR\"),MAX(I87+AP87,MIN(IF(AE87:AN87<>0,AE87:AN87))),MIN(IF(AE87:AN87<>0,AE87:AN87))))","v":0},{"$f":"IF(A87=0,0,IF(AND(OR(S87=\"Mgr\",S87=0),OR(U87=\"Mgr\",U87=0),OR(W87=\"Mgr\",W87=0)),0,IF(LEFT($A87,2)=\"B*\",VLOOKUP($E87,'1. Checklist & Certification'!$D$26:$E$32,2),IF(LEFT($A87,2)=\"C*\",VLOOKUP($E87,'1. Checklist & Certification'!$F$26:$G$32,2),IF(LEFT($A87,2)=\"D*\",VLOOKUP($E87,'1. Checklist & Certification'!$H$26:$I$32,2),IF(LEFT($A87,2)=\"E*\",VLOOKUP($E87,'1. Checklist & Certification'!$J$26:$K$32,2),VLOOKUP($E87,'1. Checklist & Certification'!$A$26:$B$32,2)))))))","v":0},0,0,null,null,null,null,"","",0,0,0,null,{"$f":"IF(A87=\"\",\"\",'1. Checklist & Certification'!$K$1)","v":""},{"$f":"IF(A87=\"\",\"\",'1. Checklist & Certification'!$C$62)","v":""},{"$f":"IF(A87=\"\",\"\",'1. Checklist & Certification'!$C$6)","v":""},{"$f":"IF(A87=\"\",\"\",'1. Checklist & Certification'!$G$5)","v":""},{"$f":"IFERROR(IF(A87=\"\",\"\",\n_xlfn.LET(_xlpm.Contract,'1. Checklist & Certification'!$C$7,\n_xlpm.Yr,TEXT(MOD(_xlfn.TEXTBEFORE(_xlpm.Contract,\"-\"),100),\"00\"),\n_xlpm.Program,_xlfn.TEXTAFTER(_xlfn.TEXTBEFORE(_xlpm.Contract,\"-\",2),\"-\"),\n_xlpm.CleanProgram,_xlfn.XLOOKUP(_xlpm.Program,SpellCheck[Input],SpellCheck[Correction],_xlpm.Program),\n_xlpm.Number,TEXT(_xlfn.TEXTAFTER(_xlpm.Contract,\"-\",2),\"0000\"),\n_xlfn.CONCAT(_xlpm.Yr,\"-\",_xlpm.CleanProgram,\"-\",_xlpm.Number))\n),\"\")","v":""},{"$f":"IFERROR(IF(A87=\"\",\"\",\n_xlfn.LET(_xlpm.Contract,'1. Checklist & Certification'!$C$8,\n_xlpm.Yr,TEXT(MOD(_xlfn.TEXTBEFORE(_xlpm.Contract,\"-\"),100),\"00\"),\n_xlpm.Program,_xlfn.TEXTAFTER(_xlfn.TEXTBEFORE(_xlpm.Contract,\"-\",2),\"-\"),\n_xlpm.CleanProgram,_xlfn.XLOOKUP(_xlpm.Program,SpellCheck[Input],SpellCheck[Correction],_xlpm.Program),\n_xlpm.Number,TEXT(_xlfn.TEXTAFTER(_xlpm.Contract,\"-\",2),\"0000\"),\n_xlfn.CONCAT(_xlpm.Yr,\"-\",_xlpm.CleanProgram,\"-\",_xlpm.Number))\n),\"\")","v":""},{"$f":"IFERROR(IF(A87=\"\",\"\",\n_xlfn.LET(_xlpm.Contract,'1. Checklist & Certification'!$F$7,\n_xlpm.Yr,TEXT(MOD(_xlfn.TEXTBEFORE(_xlpm.Contract,\"-\"),100),\"00\"),\n_xlpm.Program,_xlfn.TEXTAFTER(_xlfn.TEXTBEFORE(_xlpm.Contract,\"-\",2),\"-\"),\n_xlpm.CleanProgram,_xlfn.XLOOKUP(_xlpm.Program,SpellCheck[Input],SpellCheck[Correction],_xlpm.Program),\n_xlpm.Number,TEXT(_xlfn.TEXTAFTER(_xlpm.Contract,\"-\",2),\"0000\"),\n_xlfn.CONCAT(_xlpm.Yr,\"-\",_xlpm.CleanProgram,\"-\",_xlpm.Number))\n),\"\")","v":""},{"$f":"IFERROR(IF(A87=\"\",\"\",\n_xlfn.LET(_xlpm.Contract,'1. Checklist & Certification'!$F$8,\n_xlpm.Yr,TEXT(MOD(_xlfn.TEXTBEFORE(_xlpm.Contract,\"-\"),100),\"00\"),\n_xlpm.Program,_xlfn.TEXTAFTER(_xlfn.TEXTBEFORE(_xlpm.Contract,\"-\",2),\"-\"),\n_xlpm.CleanProgram,_xlfn.XLOOKUP(_xlpm.Program,SpellCheck[Input],SpellCheck[Correction],_xlpm.Program),\n_xlpm.Number,TEXT(_xlfn.TEXTAFTER(_xlpm.Contract,\"-\",2),\"0000\"),\n_xlfn.CONCAT(_xlpm.Yr,\"-\",_xlpm.CleanProgram,\"-\",_xlpm.Number))\n),\"\")","v":""},{"$f":"IF(A87=\"\",\"\",'1. Checklist & Certification'!$B$9)","v":""},{"$f":"IF(A87=\"\",\"\",'1. Checklist & Certification'!$F$9)","v":""},{"$f":"IF(A87=\"\",\"\",'1. Checklist & Certification'!$C$10)","v":""},{"$f":"IF(A87=\"\",\"\",'1. Checklist & Certification'!$C$11)","v":""},{"$f":"IF(A87=\"\",\"\",'1. Checklist & Certification'!$C$12)","v":""},{"$f":"IF(A87=\"\",\"\",'1. Checklist & Certification'!$B$14)","v":""},{"$f":"IF(A87=\"\",\"\",'1. Checklist & Certification'!$E$14)","v":""},{"$f":"IF(B87=\"\",\"\",'1. Checklist & Certification'!$G$14)","v":""},{"$f":"IF(A87=\"\",\"\",'MHP Family Income & Rent Limits'!$B$3)","v":""},{"$f":"IF(A87=\"\",\"\",'MHP Family Income & Rent Limits'!$J$3)","v":""},{"$f":"IF(A87=\"\",\"\",'MHP Family Income & Rent Limits'!$E$4)","v":""},{"$f":"IF(A87=\"\",\"\",'MHP Family Income & Rent Limits'!$C$7)","v":""},{"$f":"IF(A87=\"\",\"\",'MHP Family Income & Rent Limits'!$F$8)","v":""},{"$f":"IF(A87=\"\",\"\",'1. Checklist & Certification'!$G$4)","v":""},{"$f":"IF(A87=\"\",\"\",'1. Checklist & Certification'!$K$39)","v":""},{"$f":"IF(A87=\"\",\"\",'1. Checklist & Certification'!$K$43)","v":""},{"$f":"IF(A87=\"\",\"\",'1. Checklist & Certification'!$K$45)","v":""},{"$f":"IF(A87=\"\",\"\",'1. Checklist & Certification'!$K$49)","v":""},{"$f":"IF(A87=\"\",\"\",'1. Checklist & Certification'!$K$62)","v":""},{"$f":"IF(A87=\"\",\"\",'1. Checklist & Certification'!$E$66)","v":""},{"$f":"IF(A87=\"\",\"\",'1. Checklist & Certification'!$E$67)","v":""},{"$f":"IF(A87=\"\",\"\",'1. Checklist & Certification'!$E$68)","v":""},{"$f":"IF(A87=\"\",\"\",'1. Checklist & Certification'!$G$66)","v":""},{"$f":"IF(A87=\"\",\"\",'1. Checklist & Certification'!$H$66)","v":""},{"$f":"IF(A87=\"\",\"\",'1. Checklist & Certification'!$I$66)","v":""},{"$f":"IF(A87=\"\",\"\",'1. Checklist & Certification'!$I$67)","v":""},{"$f":"IF(A87=\"\",\"\",'1. Checklist & Certification'!$I$68)","v":""},{"$f":"IF(A87=\"\",\"\",'1. Checklist & Certification'!$B$69)","v":""},{"$f":"IF(A87=\"\",\"\",'1. Checklist & Certification'!$C$69)","v":""},{"$f":"IF(A87=\"\",\"\",'1. Checklist & Certification'!$F$69)","v":""},{"$f":"IF(A87=\"\",\"\",'1. Checklist & Certification'!$G$69)","v":""},{"$f":"IF(A87=\"\",\"\",'1. Checklist & Certification'!$J$69)","v":""},{"$f":"IF(A87=\"\",\"\",'1. Checklist & Certification'!$K$69)","v":""},null,null,{"$f":"IF(AND(OR('1. Checklist & Certification'!$M$16=1,'1. Checklist & Certification'!$M$19=2),AO87>0,B87=\"\",I87>0,AQ87<I87,AV87<>\"Sec 8-Project\"),\"X\",IF(AND(OR('1. Checklist & Certification'!$M$20=4,'1. Checklist & Certification'!$M$21=5,'1. Checklist & Certification'!$M$22=7),AO87>0,B87=\"\",I87>0,K87<I87),\"X\",\"\"))","v":""},{"$f":"IF(A87=\"\",\"\",IF(SUMPRODUCT(-- (ISNUMBER(SEARCH({\"*AHSC*\",\"*FMTW*\",\"*FWHG*\",\"*GHI*\",\"*HHC*\",\"*HLCP*\",\"*HOME*\",\"*LPR*\",\"*MHP*\",\"*NHTF*\",\"*NSP*\",\"*PRP*\",\"*TOD*\",\"*VHHP*\"},'1. Checklist & Certification'!$L$7)))),\"MHP\",\"Legacy\"))","v":""},",,",null,null,null,{"$f":"IF('1. Checklist & Certification'!$M$20=4,\"Both\",IF(OR('1. Checklist & Certification'!$M$15>0,S87=\"CHRP-R\",U87=\"CHRP-R\",W87=\"CHRP-R\",Y87=\"CHRP-R\"),\"Under\",\"No\"))","v":"No"},"No","No",{"$f":"_xlfn.IFS(D87=\"\",\"\",D87=1,'MHP Family Income & Rent Limits'!$E$17,D87=2,'MHP Family Income & Rent Limits'!$F$17,D87=3,'MHP Family Income & Rent Limits'!$G$17,D87=4,'MHP Family Income & Rent Limits'!$H$17,D87=5,'MHP Family Income & Rent Limits'!$I$17,D87=6,'MHP Family Income & Rent Limits'!$J$17,D87=7,'MHP Family Income & Rent Limits'!$K$17,D87=8,'MHP Family Income & Rent Limits'!$L$17)","v":""},"",{"$f":"IF(OR(A87=0,B87=\"X\"),0,MIN(IF(AA87:AD87<>0,AA87:AD87)))","v":0},{"$f":"IF(OR(H87=\"\",I87=\"\"),0,IF(H87*0.3/12>I87,MIN(H87*0.3/12,I87*1.1)+AP87,I87*(1+(VLOOKUP('1. Checklist & Certification'!$F$9,'HLCP-E Rent Change'!$A$1:$D$59,4,FALSE)))+AP87))","v":0}]
[null,null,null,null,null,null,null,null,null,null,null,null,null,null,null,null,null,null,null,null,null,null,null,null,null,null,0,0,0,0,0,0,0,0,{"$f":"IF(OR(A88=0,B88=\"X\"),0,IF(OR(S88=\"FHDP\",S88=\"RHCP-B\",U88=\"FHDP\",U88=\"RHCP-B\",W88=\"FHDP\",W88=\"RHCP-B\",Y88=\"FHDP\",Y88=\"RHCP-B\"),TRUNC((MIN(I88,K88)*(1+'1. Checklist & Certification'!$K$43)+AP88)),0))","v":0},{"$f":"IF(OR(A88=0,B88=\"X\"),0,IF(OR(S88=\"CHRP-R\",S88=\"SERA\",S88=\"SUHRP\",U88=\"CHRP-R\",U88=\"SERA\",U88=\"SUHRP\",W88=\"CHRP-R\",W88=\"SERA\",W88=\"SUHRP\",Y88=\"CHRP-R\",Y88=\"SERA\",Y88=\"SUHRP\"),TRUNC((MIN(I88,K88)*(1+'1. Checklist & Certification'!$K$49))),0))","v":0},{"$f":"IF(OR(A88=0,B88=\"X\"),0,IF(OR(S88=\"CALDAP\",S88=\"DPRLP\",U88=\"CALDAP\",U88=\"DPRLP\",W88=\"CALDAP\",W88=\"DPRLP\",Y88=\"CALDAP\",Y88=\"DPRLP\"),TRUNC(((MIN(I88,K88))*(1+'1. Checklist & Certification'!$G$4))),0))","v":0},0,0,0,{"$f":"IF(OR(A88=0,B88=\"X\"),0,IF(OR(S88=\"PRP\",S88=\"LPR\",U88=\"PRP\",U88=\"LPR\",W88=\"PRP\",W88=\"LPR\",Y88=\"PRP\",Y88=\"LPR\"),MAX(I88+AP88,MIN(IF(AE88:AN88<>0,AE88:AN88))),MIN(IF(AE88:AN88<>0,AE88:AN88))))","v":0},{"$f":"IF(A88=0,0,IF(AND(OR(S88=\"Mgr\",S88=0),OR(U88=\"Mgr\",U88=0),OR(W88=\"Mgr\",W88=0)),0,IF(LEFT($A88,2)=\"B*\",VLOOKUP($E88,'1. Checklist & Certification'!$D$26:$E$32,2),IF(LEFT($A88,2)=\"C*\",VLOOKUP($E88,'1. Checklist & Certification'!$F$26:$G$32,2),IF(LEFT($A88,2)=\"D*\",VLOOKUP($E88,'1. Checklist & Certification'!$H$26:$I$32,2),IF(LEFT($A88,2)=\"E*\",VLOOKUP($E88,'1. Checklist & Certification'!$J$26:$K$32,2),VLOOKUP($E88,'1. Checklist & Certification'!$A$26:$B$32,2)))))))","v":0},0,0,null,null,null,null,"","",0,0,0,null,{"$f":"IF(A88=\"\",\"\",'1. Checklist & Certification'!$K$1)","v":""},{"$f":"IF(A88=\"\",\"\",'1. Checklist & Certification'!$C$62)","v":""},{"$f":"IF(A88=\"\",\"\",'1. Checklist & Certification'!$C$6)","v":""},{"$f":"IF(A88=\"\",\"\",'1. Checklist & Certification'!$G$5)","v":""},{"$f":"IFERROR(IF(A88=\"\",\"\",\n_xlfn.LET(_xlpm.Contract,'1. Checklist & Certification'!$C$7,\n_xlpm.Yr,TEXT(MOD(_xlfn.TEXTBEFORE(_xlpm.Contract,\"-\"),100),\"00\"),\n_xlpm.Program,_xlfn.TEXTAFTER(_xlfn.TEXTBEFORE(_xlpm.Contract,\"-\",2),\"-\"),\n_xlpm.CleanProgram,_xlfn.XLOOKUP(_xlpm.Program,SpellCheck[Input],SpellCheck[Correction],_xlpm.Program),\n_xlpm.Number,TEXT(_xlfn.TEXTAFTER(_xlpm.Contract,\"-\",2),\"0000\"),\n_xlfn.CONCAT(_xlpm.Yr,\"-\",_xlpm.CleanProgram,\"-\",_xlpm.Number))\n),\"\")","v":""},{"$f":"IFERROR(IF(A88=\"\",\"\",\n_xlfn.LET(_xlpm.Contract,'1. Checklist & Certification'!$C$8,\n_xlpm.Yr,TEXT(MOD(_xlfn.TEXTBEFORE(_xlpm.Contract,\"-\"),100),\"00\"),\n_xlpm.Program,_xlfn.TEXTAFTER(_xlfn.TEXTBEFORE(_xlpm.Contract,\"-\",2),\"-\"),\n_xlpm.CleanProgram,_xlfn.XLOOKUP(_xlpm.Program,SpellCheck[Input],SpellCheck[Correction],_xlpm.Program),\n_xlpm.Number,TEXT(_xlfn.TEXTAFTER(_xlpm.Contract,\"-\",2),\"0000\"),\n_xlfn.CONCAT(_xlpm.Yr,\"-\",_xlpm.CleanProgram,\"-\",_xlpm.Number))\n),\"\")","v":""},{"$f":"IFERROR(IF(A88=\"\",\"\",\n_xlfn.LET(_xlpm.Contract,'1. Checklist & Certification'!$F$7,\n_xlpm.Yr,TEXT(MOD(_xlfn.TEXTBEFORE(_xlpm.Contract,\"-\"),100),\"00\"),\n_xlpm.Program,_xlfn.TEXTAFTER(_xlfn.TEXTBEFORE(_xlpm.Contract,\"-\",2),\"-\"),\n_xlpm.CleanProgram,_xlfn.XLOOKUP(_xlpm.Program,SpellCheck[Input],SpellCheck[Correction],_xlpm.Program),\n_xlpm.Number,TEXT(_xlfn.TEXTAFTER(_xlpm.Contract,\"-\",2),\"0000\"),\n_xlfn.CONCAT(_xlpm.Yr,\"-\",_xlpm.CleanProgram,\"-\",_xlpm.Number))\n),\"\")","v":""},{"$f":"IFERROR(IF(A88=\"\",\"\",\n_xlfn.LET(_xlpm.Contract,'1. Checklist & Certification'!$F$8,\n_xlpm.Yr,TEXT(MOD(_xlfn.TEXTBEFORE(_xlpm.Contract,\"-\"),100),\"00\"),\n_xlpm.Program,_xlfn.TEXTAFTER(_xlfn.TEXTBEFORE(_xlpm.Contract,\"-\",2),\"-\"),\n_xlpm.CleanProgram,_xlfn.XLOOKUP(_xlpm.Program,SpellCheck[Input],SpellCheck[Correction],_xlpm.Program),\n_xlpm.Number,TEXT(_xlfn.TEXTAFTER(_xlpm.Contract,\"-\",2),\"0000\"),\n_xlfn.CONCAT(_xlpm.Yr,\"-\",_xlpm.CleanProgram,\"-\",_xlpm.Number))\n),\"\")","v":""},{"$f":"IF(A88=\"\",\"\",'1. Checklist & Certification'!$B$9)","v":""},{"$f":"IF(A88=\"\",\"\",'1. Checklist & Certification'!$F$9)","v":""},{"$f":"IF(A88=\"\",\"\",'1. Checklist & Certification'!$C$10)","v":""},{"$f":"IF(A88=\"\",\"\",'1. Checklist & Certification'!$C$11)","v":""},{"$f":"IF(A88=\"\",\"\",'1. Checklist & Certification'!$C$12)","v":""},{"$f":"IF(A88=\"\",\"\",'1. Checklist & Certification'!$B$14)","v":""},{"$f":"IF(A88=\"\",\"\",'1. Checklist & Certification'!$E$14)","v":""},{"$f":"IF(B88=\"\",\"\",'1. Checklist & Certification'!$G$14)","v":""},{"$f":"IF(A88=\"\",\"\",'MHP Family Income & Rent Limits'!$B$3)","v":""},{"$f":"IF(A88=\"\",\"\",'MHP Family Income & Rent Limits'!$J$3)","v":""},{"$f":"IF(A88=\"\",\"\",'MHP Family Income & Rent Limits'!$E$4)","v":""},{"$f":"IF(A88=\"\",\"\",'MHP Family Income & Rent Limits'!$C$7)","v":""},{"$f":"IF(A88=\"\",\"\",'MHP Family Income & Rent Limits'!$F$8)","v":""},{"$f":"IF(A88=\"\",\"\",'1. Checklist & Certification'!$G$4)","v":""},{"$f":"IF(A88=\"\",\"\",'1. Checklist & Certification'!$K$39)","v":""},{"$f":"IF(A88=\"\",\"\",'1. Checklist & Certification'!$K$43)","v":""},{"$f":"IF(A88=\"\",\"\",'1. Checklist & Certification'!$K$45)","v":""},{"$f":"IF(A88=\"\",\"\",'1. Checklist & Certification'!$K$49)","v":""},{"$f":"IF(A88=\"\",\"\",'1. Checklist & Certification'!$K$62)","v":""},{"$f":"IF(A88=\"\",\"\",'1. Checklist & Certification'!$E$66)","v":""},{"$f":"IF(A88=\"\",\"\",'1. Checklist & Certification'!$E$67)","v":""},{"$f":"IF(A88=\"\",\"\",'1. Checklist & Certification'!$E$68)","v":""},{"$f":"IF(A88=\"\",\"\",'1. Checklist & Certification'!$G$66)","v":""},{"$f":"IF(A88=\"\",\"\",'1. Checklist & Certification'!$H$66)","v":""},{"$f":"IF(A88=\"\",\"\",'1. Checklist & Certification'!$I$66)","v":""},{"$f":"IF(A88=\"\",\"\",'1. Checklist & Certification'!$I$67)","v":""},{"$f":"IF(A88=\"\",\"\",'1. Checklist & Certification'!$I$68)","v":""},{"$f":"IF(A88=\"\",\"\",'1. Checklist & Certification'!$B$69)","v":""},{"$f":"IF(A88=\"\",\"\",'1. Checklist & Certification'!$C$69)","v":""},{"$f":"IF(A88=\"\",\"\",'1. Checklist & Certification'!$F$69)","v":""},{"$f":"IF(A88=\"\",\"\",'1. Checklist & Certification'!$G$69)","v":""},{"$f":"IF(A88=\"\",\"\",'1. Checklist & Certification'!$J$69)","v":""},{"$f":"IF(A88=\"\",\"\",'1. Checklist & Certification'!$K$69)","v":""},null,null,{"$f":"IF(AND(OR('1. Checklist & Certification'!$M$16=1,'1. Checklist & Certification'!$M$19=2),AO88>0,B88=\"\",I88>0,AQ88<I88,AV88<>\"Sec 8-Project\"),\"X\",IF(AND(OR('1. Checklist & Certification'!$M$20=4,'1. Checklist & Certification'!$M$21=5,'1. Checklist & Certification'!$M$22=7),AO88>0,B88=\"\",I88>0,K88<I88),\"X\",\"\"))","v":""},{"$f":"IF(A88=\"\",\"\",IF(SUMPRODUCT(-- (ISNUMBER(SEARCH({\"*AHSC*\",\"*FMTW*\",\"*FWHG*\",\"*GHI*\",\"*HHC*\",\"*HLCP*\",\"*HOME*\",\"*LPR*\",\"*MHP*\",\"*NHTF*\",\"*NSP*\",\"*PRP*\",\"*TOD*\",\"*VHHP*\"},'1. Checklist & Certification'!$L$7)))),\"MHP\",\"Legacy\"))","v":""},",,",null,null,null,{"$f":"IF('1. Checklist & Certification'!$M$20=4,\"Both\",IF(OR('1. Checklist & Certification'!$M$15>0,S88=\"CHRP-R\",U88=\"CHRP-R\",W88=\"CHRP-R\",Y88=\"CHRP-R\"),\"Under\",\"No\"))","v":"No"},"No","No",{"$f":"_xlfn.IFS(D88=\"\",\"\",D88=1,'MHP Family Income & Rent Limits'!$E$17,D88=2,'MHP Family Income & Rent Limits'!$F$17,D88=3,'MHP Family Income & Rent Limits'!$G$17,D88=4,'MHP Family Income & Rent Limits'!$H$17,D88=5,'MHP Family Income & Rent Limits'!$I$17,D88=6,'MHP Family Income & Rent Limits'!$J$17,D88=7,'MHP Family Income & Rent Limits'!$K$17,D88=8,'MHP Family Income & Rent Limits'!$L$17)","v":""},"",{"$f":"IF(OR(A88=0,B88=\"X\"),0,MIN(IF(AA88:AD88<>0,AA88:AD88)))","v":0},{"$f":"IF(OR(H88=\"\",I88=\"\"),0,IF(H88*0.3/12>I88,MIN(H88*0.3/12,I88*1.1)+AP88,I88*(1+(VLOOKUP('1. Checklist & Certification'!$F$9,'HLCP-E Rent Change'!$A$1:$D$59,4,FALSE)))+AP88))","v":0}]
[null,null,null,null,null,null,null,null,null,null,null,null,null,null,null,null,null,null,null,null,null,null,null,null,null,null,0,0,0,0,0,0,0,0,{"$f":"IF(OR(A89=0,B89=\"X\"),0,IF(OR(S89=\"FHDP\",S89=\"RHCP-B\",U89=\"FHDP\",U89=\"RHCP-B\",W89=\"FHDP\",W89=\"RHCP-B\",Y89=\"FHDP\",Y89=\"RHCP-B\"),TRUNC((MIN(I89,K89)*(1+'1. Checklist & Certification'!$K$43)+AP89)),0))","v":0},{"$f":"IF(OR(A89=0,B89=\"X\"),0,IF(OR(S89=\"CHRP-R\",S89=\"SERA\",S89=\"SUHRP\",U89=\"CHRP-R\",U89=\"SERA\",U89=\"SUHRP\",W89=\"CHRP-R\",W89=\"SERA\",W89=\"SUHRP\",Y89=\"CHRP-R\",Y89=\"SERA\",Y89=\"SUHRP\"),TRUNC((MIN(I89,K89)*(1+'1. Checklist & Certification'!$K$49))),0))","v":0},{"$f":"IF(OR(A89=0,B89=\"X\"),0,IF(OR(S89=\"CALDAP\",S89=\"DPRLP\",U89=\"CALDAP\",U89=\"DPRLP\",W89=\"CALDAP\",W89=\"DPRLP\",Y89=\"CALDAP\",Y89=\"DPRLP\"),TRUNC(((MIN(I89,K89))*(1+'1. Checklist & Certification'!$G$4))),0))","v":0},0,0,0,{"$f":"IF(OR(A89=0,B89=\"X\"),0,IF(OR(S89=\"PRP\",S89=\"LPR\",U89=\"PRP\",U89=\"LPR\",W89=\"PRP\",W89=\"LPR\",Y89=\"PRP\",Y89=\"LPR\"),MAX(I89+AP89,MIN(IF(AE89:AN89<>0,AE89:AN89))),MIN(IF(AE89:AN89<>0,AE89:AN89))))","v":0},{"$f":"IF(A89=0,0,IF(AND(OR(S89=\"Mgr\",S89=0),OR(U89=\"Mgr\",U89=0),OR(W89=\"Mgr\",W89=0)),0,IF(LEFT($A89,2)=\"B*\",VLOOKUP($E89,'1. Checklist & Certification'!$D$26:$E$32,2),IF(LEFT($A89,2)=\"C*\",VLOOKUP($E89,'1. Checklist & Certification'!$F$26:$G$32,2),IF(LEFT($A89,2)=\"D*\",VLOOKUP($E89,'1. Checklist & Certification'!$H$26:$I$32,2),IF(LEFT($A89,2)=\"E*\",VLOOKUP($E89,'1. Checklist & Certification'!$J$26:$K$32,2),VLOOKUP($E89,'1. Checklist & Certification'!$A$26:$B$32,2)))))))","v":0},0,0,null,null,null,null,"","",0,0,0,null,{"$f":"IF(A89=\"\",\"\",'1. Checklist & Certification'!$K$1)","v":""},{"$f":"IF(A89=\"\",\"\",'1. Checklist & Certification'!$C$62)","v":""},{"$f":"IF(A89=\"\",\"\",'1. Checklist & Certification'!$C$6)","v":""},{"$f":"IF(A89=\"\",\"\",'1. Checklist & Certification'!$G$5)","v":""},{"$f":"IFERROR(IF(A89=\"\",\"\",\n_xlfn.LET(_xlpm.Contract,'1. Checklist & Certification'!$C$7,\n_xlpm.Yr,TEXT(MOD(_xlfn.TEXTBEFORE(_xlpm.Contract,\"-\"),100),\"00\"),\n_xlpm.Program,_xlfn.TEXTAFTER(_xlfn.TEXTBEFORE(_xlpm.Contract,\"-\",2),\"-\"),\n_xlpm.CleanProgram,_xlfn.XLOOKUP(_xlpm.Program,SpellCheck[Input],SpellCheck[Correction],_xlpm.Program),\n_xlpm.Number,TEXT(_xlfn.TEXTAFTER(_xlpm.Contract,\"-\",2),\"0000\"),\n_xlfn.CONCAT(_xlpm.Yr,\"-\",_xlpm.CleanProgram,\"-\",_xlpm.Number))\n),\"\")","v":""},{"$f":"IFERROR(IF(A89=\"\",\"\",\n_xlfn.LET(_xlpm.Contract,'1. Checklist & Certification'!$C$8,\n_xlpm.Yr,TEXT(MOD(_xlfn.TEXTBEFORE(_xlpm.Contract,\"-\"),100),\"00\"),\n_xlpm.Program,_xlfn.TEXTAFTER(_xlfn.TEXTBEFORE(_xlpm.Contract,\"-\",2),\"-\"),\n_xlpm.CleanProgram,_xlfn.XLOOKUP(_xlpm.Program,SpellCheck[Input],SpellCheck[Correction],_xlpm.Program),\n_xlpm.Number,TEXT(_xlfn.TEXTAFTER(_xlpm.Contract,\"-\",2),\"0000\"),\n_xlfn.CONCAT(_xlpm.Yr,\"-\",_xlpm.CleanProgram,\"-\",_xlpm.Number))\n),\"\")","v":""},{"$f":"IFERROR(IF(A89=\"\",\"\",\n_xlfn.LET(_xlpm.Contract,'1. Checklist & Certification'!$F$7,\n_xlpm.Yr,TEXT(MOD(_xlfn.TEXTBEFORE(_xlpm.Contract,\"-\"),100),\"00\"),\n_xlpm.Program,_xlfn.TEXTAFTER(_xlfn.TEXTBEFORE(_xlpm.Contract,\"-\",2),\"-\"),\n_xlpm.CleanProgram,_xlfn.XLOOKUP(_xlpm.Program,SpellCheck[Input],SpellCheck[Correction],_xlpm.Program),\n_xlpm.Number,TEXT(_xlfn.TEXTAFTER(_xlpm.Contract,\"-\",2),\"0000\"),\n_xlfn.CONCAT(_xlpm.Yr,\"-\",_xlpm.CleanProgram,\"-\",_xlpm.Number))\n),\"\")","v":""},{"$f":"IFERROR(IF(A89=\"\",\"\",\n_xlfn.LET(_xlpm.Contract,'1. Checklist & Certification'!$F$8,\n_xlpm.Yr,TEXT(MOD(_xlfn.TEXTBEFORE(_xlpm.Contract,\"-\"),100),\"00\"),\n_xlpm.Program,_xlfn.TEXTAFTER(_xlfn.TEXTBEFORE(_xlpm.Contract,\"-\",2),\"-\"),\n_xlpm.CleanProgram,_xlfn.XLOOKUP(_xlpm.Program,SpellCheck[Input],SpellCheck[Correction],_xlpm.Program),\n_xlpm.Number,TEXT(_xlfn.TEXTAFTER(_xlpm.Contract,\"-\",2),\"0000\"),\n_xlfn.CONCAT(_xlpm.Yr,\"-\",_xlpm.CleanProgram,\"-\",_xlpm.Number))\n),\"\")","v":""},{"$f":"IF(A89=\"\",\"\",'1. Checklist & Certification'!$B$9)","v":""},{"$f":"IF(A89=\"\",\"\",'1. Checklist & Certification'!$F$9)","v":""},{"$f":"IF(A89=\"\",\"\",'1. Checklist & Certification'!$C$10)","v":""},{"$f":"IF(A89=\"\",\"\",'1. Checklist & Certification'!$C$11)","v":""},{"$f":"IF(A89=\"\",\"\",'1. Checklist & Certification'!$C$12)","v":""},{"$f":"IF(A89=\"\",\"\",'1. Checklist & Certification'!$B$14)","v":""},{"$f":"IF(A89=\"\",\"\",'1. Checklist & Certification'!$E$14)","v":""},{"$f":"IF(B89=\"\",\"\",'1. Checklist & Certification'!$G$14)","v":""},{"$f":"IF(A89=\"\",\"\",'MHP Family Income & Rent Limits'!$B$3)","v":""},{"$f":"IF(A89=\"\",\"\",'MHP Family Income & Rent Limits'!$J$3)","v":""},{"$f":"IF(A89=\"\",\"\",'MHP Family Income & Rent Limits'!$E$4)","v":""},{"$f":"IF(A89=\"\",\"\",'MHP Family Income & Rent Limits'!$C$7)","v":""},{"$f":"IF(A89=\"\",\"\",'MHP Family Income & Rent Limits'!$F$8)","v":""},{"$f":"IF(A89=\"\",\"\",'1. Checklist & Certification'!$G$4)","v":""},{"$f":"IF(A89=\"\",\"\",'1. Checklist & Certification'!$K$39)","v":""},{"$f":"IF(A89=\"\",\"\",'1. Checklist & Certification'!$K$43)","v":""},{"$f":"IF(A89=\"\",\"\",'1. Checklist & Certification'!$K$45)","v":""},{"$f":"IF(A89=\"\",\"\",'1. Checklist & Certification'!$K$49)","v":""},{"$f":"IF(A89=\"\",\"\",'1. Checklist & Certification'!$K$62)","v":""},{"$f":"IF(A89=\"\",\"\",'1. Checklist & Certification'!$E$66)","v":""},{"$f":"IF(A89=\"\",\"\",'1. Checklist & Certification'!$E$67)","v":""},{"$f":"IF(A89=\"\",\"\",'1. Checklist & Certification'!$E$68)","v":""},{"$f":"IF(A89=\"\",\"\",'1. Checklist & Certification'!$G$66)","v":""},{"$f":"IF(A89=\"\",\"\",'1. Checklist & Certification'!$H$66)","v":""},{"$f":"IF(A89=\"\",\"\",'1. Checklist & Certification'!$I$66)","v":""},{"$f":"IF(A89=\"\",\"\",'1. Checklist & Certification'!$I$67)","v":""},{"$f":"IF(A89=\"\",\"\",'1. Checklist & Certification'!$I$68)","v":""},{"$f":"IF(A89=\"\",\"\",'1. Checklist & Certification'!$B$69)","v":""},{"$f":"IF(A89=\"\",\"\",'1. Checklist & Certification'!$C$69)","v":""},{"$f":"IF(A89=\"\",\"\",'1. Checklist & Certification'!$F$69)","v":""},{"$f":"IF(A89=\"\",\"\",'1. Checklist & Certification'!$G$69)","v":""},{"$f":"IF(A89=\"\",\"\",'1. Checklist & Certification'!$J$69)","v":""},{"$f":"IF(A89=\"\",\"\",'1. Checklist & Certification'!$K$69)","v":""},null,null,{"$f":"IF(AND(OR('1. Checklist & Certification'!$M$16=1,'1. Checklist & Certification'!$M$19=2),AO89>0,B89=\"\",I89>0,AQ89<I89,AV89<>\"Sec 8-Project\"),\"X\",IF(AND(OR('1. Checklist & Certification'!$M$20=4,'1. Checklist & Certification'!$M$21=5,'1. Checklist & Certification'!$M$22=7),AO89>0,B89=\"\",I89>0,K89<I89),\"X\",\"\"))","v":""},{"$f":"IF(A89=\"\",\"\",IF(SUMPRODUCT(-- (ISNUMBER(SEARCH({\"*AHSC*\",\"*FMTW*\",\"*FWHG*\",\"*GHI*\",\"*HHC*\",\"*HLCP*\",\"*HOME*\",\"*LPR*\",\"*MHP*\",\"*NHTF*\",\"*NSP*\",\"*PRP*\",\"*TOD*\",\"*VHHP*\"},'1. Checklist & Certification'!$L$7)))),\"MHP\",\"Legacy\"))","v":""},",,",null,null,null,{"$f":"IF('1. Checklist & Certification'!$M$20=4,\"Both\",IF(OR('1. Checklist & Certification'!$M$15>0,S89=\"CHRP-R\",U89=\"CHRP-R\",W89=\"CHRP-R\",Y89=\"CHRP-R\"),\"Under\",\"No\"))","v":"No"},"No","No",{"$f":"_xlfn.IFS(D89=\"\",\"\",D89=1,'MHP Family Income & Rent Limits'!$E$17,D89=2,'MHP Family Income & Rent Limits'!$F$17,D89=3,'MHP Family Income & Rent Limits'!$G$17,D89=4,'MHP Family Income & Rent Limits'!$H$17,D89=5,'MHP Family Income & Rent Limits'!$I$17,D89=6,'MHP Family Income & Rent Limits'!$J$17,D89=7,'MHP Family Income & Rent Limits'!$K$17,D89=8,'MHP Family Income & Rent Limits'!$L$17)","v":""},"",{"$f":"IF(OR(A89=0,B89=\"X\"),0,MIN(IF(AA89:AD89<>0,AA89:AD89)))","v":0},{"$f":"IF(OR(H89=\"\",I89=\"\"),0,IF(H89*0.3/12>I89,MIN(H89*0.3/12,I89*1.1)+AP89,I89*(1+(VLOOKUP('1. Checklist & Certification'!$F$9,'HLCP-E Rent Change'!$A$1:$D$59,4,FALSE)))+AP89))","v":0}]
[null,null,null,null,null,null,null,null,null,null,null,null,null,null,null,null,null,null,null,null,null,null,null,null,null,null,0,0,0,0,0,0,0,0,{"$f":"IF(OR(A90=0,B90=\"X\"),0,IF(OR(S90=\"FHDP\",S90=\"RHCP-B\",U90=\"FHDP\",U90=\"RHCP-B\",W90=\"FHDP\",W90=\"RHCP-B\",Y90=\"FHDP\",Y90=\"RHCP-B\"),TRUNC((MIN(I90,K90)*(1+'1. Checklist & Certification'!$K$43)+AP90)),0))","v":0},{"$f":"IF(OR(A90=0,B90=\"X\"),0,IF(OR(S90=\"CHRP-R\",S90=\"SERA\",S90=\"SUHRP\",U90=\"CHRP-R\",U90=\"SERA\",U90=\"SUHRP\",W90=\"CHRP-R\",W90=\"SERA\",W90=\"SUHRP\",Y90=\"CHRP-R\",Y90=\"SERA\",Y90=\"SUHRP\"),TRUNC((MIN(I90,K90)*(1+'1. Checklist & Certification'!$K$49))),0))","v":0},{"$f":"IF(OR(A90=0,B90=\"X\"),0,IF(OR(S90=\"CALDAP\",S90=\"DPRLP\",U90=\"CALDAP\",U90=\"DPRLP\",W90=\"CALDAP\",W90=\"DPRLP\",Y90=\"CALDAP\",Y90=\"DPRLP\"),TRUNC(((MIN(I90,K90))*(1+'1. Checklist & Certification'!$G$4))),0))","v":0},0,0,0,{"$f":"IF(OR(A90=0,B90=\"X\"),0,IF(OR(S90=\"PRP\",S90=\"LPR\",U90=\"PRP\",U90=\"LPR\",W90=\"PRP\",W90=\"LPR\",Y90=\"PRP\",Y90=\"LPR\"),MAX(I90+AP90,MIN(IF(AE90:AN90<>0,AE90:AN90))),MIN(IF(AE90:AN90<>0,AE90:AN90))))","v":0},{"$f":"IF(A90=0,0,IF(AND(OR(S90=\"Mgr\",S90=0),OR(U90=\"Mgr\",U90=0),OR(W90=\"Mgr\",W90=0)),0,IF(LEFT($A90,2)=\"B*\",VLOOKUP($E90,'1. Checklist & Certification'!$D$26:$E$32,2),IF(LEFT($A90,2)=\"C*\",VLOOKUP($E90,'1. Checklist & Certification'!$F$26:$G$32,2),IF(LEFT($A90,2)=\"D*\",VLOOKUP($E90,'1. Checklist & Certification'!$H$26:$I$32,2),IF(LEFT($A90,2)=\"E*\",VLOOKUP($E90,'1. Checklist & Certification'!$J$26:$K$32,2),VLOOKUP($E90,'1. Checklist & Certification'!$A$26:$B$32,2)))))))","v":0},0,0,null,null,null,null,"","",0,0,0,null,{"$f":"IF(A90=\"\",\"\",'1. Checklist & Certification'!$K$1)","v":""},{"$f":"IF(A90=\"\",\"\",'1. Checklist & Certification'!$C$62)","v":""},{"$f":"IF(A90=\"\",\"\",'1. Checklist & Certification'!$C$6)","v":""},{"$f":"IF(A90=\"\",\"\",'1. Checklist & Certification'!$G$5)","v":""},{"$f":"IFERROR(IF(A90=\"\",\"\",\n_xlfn.LET(_xlpm.Contract,'1. Checklist & Certification'!$C$7,\n_xlpm.Yr,TEXT(MOD(_xlfn.TEXTBEFORE(_xlpm.Contract,\"-\"),100),\"00\"),\n_xlpm.Program,_xlfn.TEXTAFTER(_xlfn.TEXTBEFORE(_xlpm.Contract,\"-\",2),\"-\"),\n_xlpm.CleanProgram,_xlfn.XLOOKUP(_xlpm.Program,SpellCheck[Input],SpellCheck[Correction],_xlpm.Program),\n_xlpm.Number,TEXT(_xlfn.TEXTAFTER(_xlpm.Contract,\"-\",2),\"0000\"),\n_xlfn.CONCAT(_xlpm.Yr,\"-\",_xlpm.CleanProgram,\"-\",_xlpm.Number))\n),\"\")","v":""},{"$f":"IFERROR(IF(A90=\"\",\"\",\n_xlfn.LET(_xlpm.Contract,'1. Checklist & Certification'!$C$8,\n_xlpm.Yr,TEXT(MOD(_xlfn.TEXTBEFORE(_xlpm.Contract,\"-\"),100),\"00\"),\n_xlpm.Program,_xlfn.TEXTAFTER(_xlfn.TEXTBEFORE(_xlpm.Contract,\"-\",2),\"-\"),\n_xlpm.CleanProgram,_xlfn.XLOOKUP(_xlpm.Program,SpellCheck[Input],SpellCheck[Correction],_xlpm.Program),\n_xlpm.Number,TEXT(_xlfn.TEXTAFTER(_xlpm.Contract,\"-\",2),\"0000\"),\n_xlfn.CONCAT(_xlpm.Yr,\"-\",_xlpm.CleanProgram,\"-\",_xlpm.Number))\n),\"\")","v":""},{"$f":"IFERROR(IF(A90=\"\",\"\",\n_xlfn.LET(_xlpm.Contract,'1. Checklist & Certification'!$F$7,\n_xlpm.Yr,TEXT(MOD(_xlfn.TEXTBEFORE(_xlpm.Contract,\"-\"),100),\"00\"),\n_xlpm.Program,_xlfn.TEXTAFTER(_xlfn.TEXTBEFORE(_xlpm.Contract,\"-\",2),\"-\"),\n_xlpm.CleanProgram,_xlfn.XLOOKUP(_xlpm.Program,SpellCheck[Input],SpellCheck[Correction],_xlpm.Program),\n_xlpm.Number,TEXT(_xlfn.TEXTAFTER(_xlpm.Contract,\"-\",2),\"0000\"),\n_xlfn.CONCAT(_xlpm.Yr,\"-\",_xlpm.CleanProgram,\"-\",_xlpm.Number))\n),\"\")","v":""},{"$f":"IFERROR(IF(A90=\"\",\"\",\n_xlfn.LET(_xlpm.Contract,'1. Checklist & Certification'!$F$8,\n_xlpm.Yr,TEXT(MOD(_xlfn.TEXTBEFORE(_xlpm.Contract,\"-\"),100),\"00\"),\n_xlpm.Program,_xlfn.TEXTAFTER(_xlfn.TEXTBEFORE(_xlpm.Contract,\"-\",2),\"-\"),\n_xlpm.CleanProgram,_xlfn.XLOOKUP(_xlpm.Program,SpellCheck[Input],SpellCheck[Correction],_xlpm.Program),\n_xlpm.Number,TEXT(_xlfn.TEXTAFTER(_xlpm.Contract,\"-\",2),\"0000\"),\n_xlfn.CONCAT(_xlpm.Yr,\"-\",_xlpm.CleanProgram,\"-\",_xlpm.Number))\n),\"\")","v":""},{"$f":"IF(A90=\"\",\"\",'1. Checklist & Certification'!$B$9)","v":""},{"$f":"IF(A90=\"\",\"\",'1. Checklist & Certification'!$F$9)","v":""},{"$f":"IF(A90=\"\",\"\",'1. Checklist & Certification'!$C$10)","v":""},{"$f":"IF(A90=\"\",\"\",'1. Checklist & Certification'!$C$11)","v":""},{"$f":"IF(A90=\"\",\"\",'1. Checklist & Certification'!$C$12)","v":""},{"$f":"IF(A90=\"\",\"\",'1. Checklist & Certification'!$B$14)","v":""},{"$f":"IF(A90=\"\",\"\",'1. Checklist & Certification'!$E$14)","v":""},{"$f":"IF(B90=\"\",\"\",'1. Checklist & Certification'!$G$14)","v":""},{"$f":"IF(A90=\"\",\"\",'MHP Family Income & Rent Limits'!$B$3)","v":""},{"$f":"IF(A90=\"\",\"\",'MHP Family Income & Rent Limits'!$J$3)","v":""},{"$f":"IF(A90=\"\",\"\",'MHP Family Income & Rent Limits'!$E$4)","v":""},{"$f":"IF(A90=\"\",\"\",'MHP Family Income & Rent Limits'!$C$7)","v":""},{"$f":"IF(A90=\"\",\"\",'MHP Family Income & Rent Limits'!$F$8)","v":""},{"$f":"IF(A90=\"\",\"\",'1. Checklist & Certification'!$G$4)","v":""},{"$f":"IF(A90=\"\",\"\",'1. Checklist & Certification'!$K$39)","v":""},{"$f":"IF(A90=\"\",\"\",'1. Checklist & Certification'!$K$43)","v":""},{"$f":"IF(A90=\"\",\"\",'1. Checklist & Certification'!$K$45)","v":""},{"$f":"IF(A90=\"\",\"\",'1. Checklist & Certification'!$K$49)","v":""},{"$f":"IF(A90=\"\",\"\",'1. Checklist & Certification'!$K$62)","v":""},{"$f":"IF(A90=\"\",\"\",'1. Checklist & Certification'!$E$66)","v":""},{"$f":"IF(A90=\"\",\"\",'1. Checklist & Certification'!$E$67)","v":""},{"$f":"IF(A90=\"\",\"\",'1. Checklist & Certification'!$E$68)","v":""},{"$f":"IF(A90=\"\",\"\",'1. Checklist & Certification'!$G$66)","v":""},{"$f":"IF(A90=\"\",\"\",'1. Checklist & Certification'!$H$66)","v":""},{"$f":"IF(A90=\"\",\"\",'1. Checklist & Certification'!$I$66)","v":""},{"$f":"IF(A90=\"\",\"\",'1. Checklist & Certification'!$I$67)","v":""},{"$f":"IF(A90=\"\",\"\",'1. Checklist & Certification'!$I$68)","v":""},{"$f":"IF(A90=\"\",\"\",'1. Checklist & Certification'!$B$69)","v":""},{"$f":"IF(A90=\"\",\"\",'1. Checklist & Certification'!$C$69)","v":""},{"$f":"IF(A90=\"\",\"\",'1. Checklist & Certification'!$F$69)","v":""},{"$f":"IF(A90=\"\",\"\",'1. Checklist & Certification'!$G$69)","v":""},{"$f":"IF(A90=\"\",\"\",'1. Checklist & Certification'!$J$69)","v":""},{"$f":"IF(A90=\"\",\"\",'1. Checklist & Certification'!$K$69)","v":""},null,null,{"$f":"IF(AND(OR('1. Checklist & Certification'!$M$16=1,'1. Checklist & Certification'!$M$19=2),AO90>0,B90=\"\",I90>0,AQ90<I90,AV90<>\"Sec 8-Project\"),\"X\",IF(AND(OR('1. Checklist & Certification'!$M$20=4,'1. Checklist & Certification'!$M$21=5,'1. Checklist & Certification'!$M$22=7),AO90>0,B90=\"\",I90>0,K90<I90),\"X\",\"\"))","v":""},{"$f":"IF(A90=\"\",\"\",IF(SUMPRODUCT(-- (ISNUMBER(SEARCH({\"*AHSC*\",\"*FMTW*\",\"*FWHG*\",\"*GHI*\",\"*HHC*\",\"*HLCP*\",\"*HOME*\",\"*LPR*\",\"*MHP*\",\"*NHTF*\",\"*NSP*\",\"*PRP*\",\"*TOD*\",\"*VHHP*\"},'1. Checklist & Certification'!$L$7)))),\"MHP\",\"Legacy\"))","v":""},",,",null,null,null,{"$f":"IF('1. Checklist & Certification'!$M$20=4,\"Both\",IF(OR('1. Checklist & Certification'!$M$15>0,S90=\"CHRP-R\",U90=\"CHRP-R\",W90=\"CHRP-R\",Y90=\"CHRP-R\"),\"Under\",\"No\"))","v":"No"},"No","No",{"$f":"_xlfn.IFS(D90=\"\",\"\",D90=1,'MHP Family Income & Rent Limits'!$E$17,D90=2,'MHP Family Income & Rent Limits'!$F$17,D90=3,'MHP Family Income & Rent Limits'!$G$17,D90=4,'MHP Family Income & Rent Limits'!$H$17,D90=5,'MHP Family Income & Rent Limits'!$I$17,D90=6,'MHP Family Income & Rent Limits'!$J$17,D90=7,'MHP Family Income & Rent Limits'!$K$17,D90=8,'MHP Family Income & Rent Limits'!$L$17)","v":""},"",{"$f":"IF(OR(A90=0,B90=\"X\"),0,MIN(IF(AA90:AD90<>0,AA90:AD90)))","v":0},{"$f":"IF(OR(H90=\"\",I90=\"\"),0,IF(H90*0.3/12>I90,MIN(H90*0.3/12,I90*1.1)+AP90,I90*(1+(VLOOKUP('1. Checklist & Certification'!$F$9,'HLCP-E Rent Change'!$A$1:$D$59,4,FALSE)))+AP90))","v":0}]
[null,null,null,null,null,null,null,null,null,null,null,null,null,null,null,null,null,null,null,null,null,null,null,null,null,null,0,0,0,0,0,0,0,0,{"$f":"IF(OR(A91=0,B91=\"X\"),0,IF(OR(S91=\"FHDP\",S91=\"RHCP-B\",U91=\"FHDP\",U91=\"RHCP-B\",W91=\"FHDP\",W91=\"RHCP-B\",Y91=\"FHDP\",Y91=\"RHCP-B\"),TRUNC((MIN(I91,K91)*(1+'1. Checklist & Certification'!$K$43)+AP91)),0))","v":0},{"$f":"IF(OR(A91=0,B91=\"X\"),0,IF(OR(S91=\"CHRP-R\",S91=\"SERA\",S91=\"SUHRP\",U91=\"CHRP-R\",U91=\"SERA\",U91=\"SUHRP\",W91=\"CHRP-R\",W91=\"SERA\",W91=\"SUHRP\",Y91=\"CHRP-R\",Y91=\"SERA\",Y91=\"SUHRP\"),TRUNC((MIN(I91,K91)*(1+'1. Checklist & Certification'!$K$49))),0))","v":0},{"$f":"IF(OR(A91=0,B91=\"X\"),0,IF(OR(S91=\"CALDAP\",S91=\"DPRLP\",U91=\"CALDAP\",U91=\"DPRLP\",W91=\"CALDAP\",W91=\"DPRLP\",Y91=\"CALDAP\",Y91=\"DPRLP\"),TRUNC(((MIN(I91,K91))*(1+'1. Checklist & Certification'!$G$4))),0))","v":0},0,0,0,{"$f":"IF(OR(A91=0,B91=\"X\"),0,IF(OR(S91=\"PRP\",S91=\"LPR\",U91=\"PRP\",U91=\"LPR\",W91=\"PRP\",W91=\"LPR\",Y91=\"PRP\",Y91=\"LPR\"),MAX(I91+AP91,MIN(IF(AE91:AN91<>0,AE91:AN91))),MIN(IF(AE91:AN91<>0,AE91:AN91))))","v":0},{"$f":"IF(A91=0,0,IF(AND(OR(S91=\"Mgr\",S91=0),OR(U91=\"Mgr\",U91=0),OR(W91=\"Mgr\",W91=0)),0,IF(LEFT($A91,2)=\"B*\",VLOOKUP($E91,'1. Checklist & Certification'!$D$26:$E$32,2),IF(LEFT($A91,2)=\"C*\",VLOOKUP($E91,'1. Checklist & Certification'!$F$26:$G$32,2),IF(LEFT($A91,2)=\"D*\",VLOOKUP($E91,'1. Checklist & Certification'!$H$26:$I$32,2),IF(LEFT($A91,2)=\"E*\",VLOOKUP($E91,'1. Checklist & Certification'!$J$26:$K$32,2),VLOOKUP($E91,'1. Checklist & Certification'!$A$26:$B$32,2)))))))","v":0},0,0,null,null,null,null,"","",0,0,0,null,{"$f":"IF(A91=\"\",\"\",'1. Checklist & Certification'!$K$1)","v":""},{"$f":"IF(A91=\"\",\"\",'1. Checklist & Certification'!$C$62)","v":""},{"$f":"IF(A91=\"\",\"\",'1. Checklist & Certification'!$C$6)","v":""},{"$f":"IF(A91=\"\",\"\",'1. Checklist & Certification'!$G$5)","v":""},{"$f":"IFERROR(IF(A91=\"\",\"\",\n_xlfn.LET(_xlpm.Contract,'1. Checklist & Certification'!$C$7,\n_xlpm.Yr,TEXT(MOD(_xlfn.TEXTBEFORE(_xlpm.Contract,\"-\"),100),\"00\"),\n_xlpm.Program,_xlfn.TEXTAFTER(_xlfn.TEXTBEFORE(_xlpm.Contract,\"-\",2),\"-\"),\n_xlpm.CleanProgram,_xlfn.XLOOKUP(_xlpm.Program,SpellCheck[Input],SpellCheck[Correction],_xlpm.Program),\n_xlpm.Number,TEXT(_xlfn.TEXTAFTER(_xlpm.Contract,\"-\",2),\"0000\"),\n_xlfn.CONCAT(_xlpm.Yr,\"-\",_xlpm.CleanProgram,\"-\",_xlpm.Number))\n),\"\")","v":""},{"$f":"IFERROR(IF(A91=\"\",\"\",\n_xlfn.LET(_xlpm.Contract,'1. Checklist & Certification'!$C$8,\n_xlpm.Yr,TEXT(MOD(_xlfn.TEXTBEFORE(_xlpm.Contract,\"-\"),100),\"00\"),\n_xlpm.Program,_xlfn.TEXTAFTER(_xlfn.TEXTBEFORE(_xlpm.Contract,\"-\",2),\"-\"),\n_xlpm.CleanProgram,_xlfn.XLOOKUP(_xlpm.Program,SpellCheck[Input],SpellCheck[Correction],_xlpm.Program),\n_xlpm.Number,TEXT(_xlfn.TEXTAFTER(_xlpm.Contract,\"-\",2),\"0000\"),\n_xlfn.CONCAT(_xlpm.Yr,\"-\",_xlpm.CleanProgram,\"-\",_xlpm.Number))\n),\"\")","v":""},{"$f":"IFERROR(IF(A91=\"\",\"\",\n_xlfn.LET(_xlpm.Contract,'1. Checklist & Certification'!$F$7,\n_xlpm.Yr,TEXT(MOD(_xlfn.TEXTBEFORE(_xlpm.Contract,\"-\"),100),\"00\"),\n_xlpm.Program,_xlfn.TEXTAFTER(_xlfn.TEXTBEFORE(_xlpm.Contract,\"-\",2),\"-\"),\n_xlpm.CleanProgram,_xlfn.XLOOKUP(_xlpm.Program,SpellCheck[Input],SpellCheck[Correction],_xlpm.Program),\n_xlpm.Number,TEXT(_xlfn.TEXTAFTER(_xlpm.Contract,\"-\",2),\"0000\"),\n_xlfn.CONCAT(_xlpm.Yr,\"-\",_xlpm.CleanProgram,\"-\",_xlpm.Number))\n),\"\")","v":""},{"$f":"IFERROR(IF(A91=\"\",\"\",\n_xlfn.LET(_xlpm.Contract,'1. Checklist & Certification'!$F$8,\n_xlpm.Yr,TEXT(MOD(_xlfn.TEXTBEFORE(_xlpm.Contract,\"-\"),100),\"00\"),\n_xlpm.Program,_xlfn.TEXTAFTER(_xlfn.TEXTBEFORE(_xlpm.Contract,\"-\",2),\"-\"),\n_xlpm.CleanProgram,_xlfn.XLOOKUP(_xlpm.Program,SpellCheck[Input],SpellCheck[Correction],_xlpm.Program),\n_xlpm.Number,TEXT(_xlfn.TEXTAFTER(_xlpm.Contract,\"-\",2),\"0000\"),\n_xlfn.CONCAT(_xlpm.Yr,\"-\",_xlpm.CleanProgram,\"-\",_xlpm.Number))\n),\"\")","v":""},{"$f":"IF(A91=\"\",\"\",'1. Checklist & Certification'!$B$9)","v":""},{"$f":"IF(A91=\"\",\"\",'1. Checklist & Certification'!$F$9)","v":""},{"$f":"IF(A91=\"\",\"\",'1. Checklist & Certification'!$C$10)","v":""},{"$f":"IF(A91=\"\",\"\",'1. Checklist & Certification'!$C$11)","v":""},{"$f":"IF(A91=\"\",\"\",'1. Checklist & Certification'!$C$12)","v":""},{"$f":"IF(A91=\"\",\"\",'1. Checklist & Certification'!$B$14)","v":""},{"$f":"IF(A91=\"\",\"\",'1. Checklist & Certification'!$E$14)","v":""},{"$f":"IF(B91=\"\",\"\",'1. Checklist & Certification'!$G$14)","v":""},{"$f":"IF(A91=\"\",\"\",'MHP Family Income & Rent Limits'!$B$3)","v":""},{"$f":"IF(A91=\"\",\"\",'MHP Family Income & Rent Limits'!$J$3)","v":""},{"$f":"IF(A91=\"\",\"\",'MHP Family Income & Rent Limits'!$E$4)","v":""},{"$f":"IF(A91=\"\",\"\",'MHP Family Income & Rent Limits'!$C$7)","v":""},{"$f":"IF(A91=\"\",\"\",'MHP Family Income & Rent Limits'!$F$8)","v":""},{"$f":"IF(A91=\"\",\"\",'1. Checklist & Certification'!$G$4)","v":""},{"$f":"IF(A91=\"\",\"\",'1. Checklist & Certification'!$K$39)","v":""},{"$f":"IF(A91=\"\",\"\",'1. Checklist & Certification'!$K$43)","v":""},{"$f":"IF(A91=\"\",\"\",'1. Checklist & Certification'!$K$45)","v":""},{"$f":"IF(A91=\"\",\"\",'1. Checklist & Certification'!$K$49)","v":""},{"$f":"IF(A91=\"\",\"\",'1. Checklist & Certification'!$K$62)","v":""},{"$f":"IF(A91=\"\",\"\",'1. Checklist & Certification'!$E$66)","v":""},{"$f":"IF(A91=\"\",\"\",'1. Checklist & Certification'!$E$67)","v":""},{"$f":"IF(A91=\"\",\"\",'1. Checklist & Certification'!$E$68)","v":""},{"$f":"IF(A91=\"\",\"\",'1. Checklist & Certification'!$G$66)","v":""},{"$f":"IF(A91=\"\",\"\",'1. Checklist & Certification'!$H$66)","v":""},{"$f":"IF(A91=\"\",\"\",'1. Checklist & Certification'!$I$66)","v":""},{"$f":"IF(A91=\"\",\"\",'1. Checklist & Certification'!$I$67)","v":""},{"$f":"IF(A91=\"\",\"\",'1. Checklist & Certification'!$I$68)","v":""},{"$f":"IF(A91=\"\",\"\",'1. Checklist & Certification'!$B$69)","v":""},{"$f":"IF(A91=\"\",\"\",'1. Checklist & Certification'!$C$69)","v":""},{"$f":"IF(A91=\"\",\"\",'1. Checklist & Certification'!$F$69)","v":""},{"$f":"IF(A91=\"\",\"\",'1. Checklist & Certification'!$G$69)","v":""},{"$f":"IF(A91=\"\",\"\",'1. Checklist & Certification'!$J$69)","v":""},{"$f":"IF(A91=\"\",\"\",'1. Checklist & Certification'!$K$69)","v":""},null,null,{"$f":"IF(AND(OR('1. Checklist & Certification'!$M$16=1,'1. Checklist & Certification'!$M$19=2),AO91>0,B91=\"\",I91>0,AQ91<I91,AV91<>\"Sec 8-Project\"),\"X\",IF(AND(OR('1. Checklist & Certification'!$M$20=4,'1. Checklist & Certification'!$M$21=5,'1. Checklist & Certification'!$M$22=7),AO91>0,B91=\"\",I91>0,K91<I91),\"X\",\"\"))","v":""},{"$f":"IF(A91=\"\",\"\",IF(SUMPRODUCT(-- (ISNUMBER(SEARCH({\"*AHSC*\",\"*FMTW*\",\"*FWHG*\",\"*GHI*\",\"*HHC*\",\"*HLCP*\",\"*HOME*\",\"*LPR*\",\"*MHP*\",\"*NHTF*\",\"*NSP*\",\"*PRP*\",\"*TOD*\",\"*VHHP*\"},'1. Checklist & Certification'!$L$7)))),\"MHP\",\"Legacy\"))","v":""},",,",null,null,null,{"$f":"IF('1. Checklist & Certification'!$M$20=4,\"Both\",IF(OR('1. Checklist & Certification'!$M$15>0,S91=\"CHRP-R\",U91=\"CHRP-R\",W91=\"CHRP-R\",Y91=\"CHRP-R\"),\"Under\",\"No\"))","v":"No"},"No","No",{"$f":"_xlfn.IFS(D91=\"\",\"\",D91=1,'MHP Family Income & Rent Limits'!$E$17,D91=2,'MHP Family Income & Rent Limits'!$F$17,D91=3,'MHP Family Income & Rent Limits'!$G$17,D91=4,'MHP Family Income & Rent Limits'!$H$17,D91=5,'MHP Family Income & Rent Limits'!$I$17,D91=6,'MHP Family Income & Rent Limits'!$J$17,D91=7,'MHP Family Income & Rent Limits'!$K$17,D91=8,'MHP Family Income & Rent Limits'!$L$17)","v":""},"",{"$f":"IF(OR(A91=0,B91=\"X\"),0,MIN(IF(AA91:AD91<>0,AA91:AD91)))","v":0},{"$f":"IF(OR(H91=\"\",I91=\"\"),0,IF(H91*0.3/12>I91,MIN(H91*0.3/12,I91*1.1)+AP91,I91*(1+(VLOOKUP('1. Checklist & Certification'!$F$9,'HLCP-E Rent Change'!$A$1:$D$59,4,FALSE)))+AP91))","v":0}]
[null,null,null,null,null,null,null,null,null,null,null,null,null,null,null,null,null,null,null,null,null,null,null,null,null,null,0,0,0,0,0,0,0,0,{"$f":"IF(OR(A92=0,B92=\"X\"),0,IF(OR(S92=\"FHDP\",S92=\"RHCP-B\",U92=\"FHDP\",U92=\"RHCP-B\",W92=\"FHDP\",W92=\"RHCP-B\",Y92=\"FHDP\",Y92=\"RHCP-B\"),TRUNC((MIN(I92,K92)*(1+'1. Checklist & Certification'!$K$43)+AP92)),0))","v":0},{"$f":"IF(OR(A92=0,B92=\"X\"),0,IF(OR(S92=\"CHRP-R\",S92=\"SERA\",S92=\"SUHRP\",U92=\"CHRP-R\",U92=\"SERA\",U92=\"SUHRP\",W92=\"CHRP-R\",W92=\"SERA\",W92=\"SUHRP\",Y92=\"CHRP-R\",Y92=\"SERA\",Y92=\"SUHRP\"),TRUNC((MIN(I92,K92)*(1+'1. Checklist & Certification'!$K$49))),0))","v":0},{"$f":"IF(OR(A92=0,B92=\"X\"),0,IF(OR(S92=\"CALDAP\",S92=\"DPRLP\",U92=\"CALDAP\",U92=\"DPRLP\",W92=\"CALDAP\",W92=\"DPRLP\",Y92=\"CALDAP\",Y92=\"DPRLP\"),TRUNC(((MIN(I92,K92))*(1+'1. Checklist & Certification'!$G$4))),0))","v":0},0,0,0,{"$f":"IF(OR(A92=0,B92=\"X\"),0,IF(OR(S92=\"PRP\",S92=\"LPR\",U92=\"PRP\",U92=\"LPR\",W92=\"PRP\",W92=\"LPR\",Y92=\"PRP\",Y92=\"LPR\"),MAX(I92+AP92,MIN(IF(AE92:AN92<>0,AE92:AN92))),MIN(IF(AE92:AN92<>0,AE92:AN92))))","v":0},{"$f":"IF(A92=0,0,IF(AND(OR(S92=\"Mgr\",S92=0),OR(U92=\"Mgr\",U92=0),OR(W92=\"Mgr\",W92=0)),0,IF(LEFT($A92,2)=\"B*\",VLOOKUP($E92,'1. Checklist & Certification'!$D$26:$E$32,2),IF(LEFT($A92,2)=\"C*\",VLOOKUP($E92,'1. Checklist & Certification'!$F$26:$G$32,2),IF(LEFT($A92,2)=\"D*\",VLOOKUP($E92,'1. Checklist & Certification'!$H$26:$I$32,2),IF(LEFT($A92,2)=\"E*\",VLOOKUP($E92,'1. Checklist & Certification'!$J$26:$K$32,2),VLOOKUP($E92,'1. Checklist & Certification'!$A$26:$B$32,2)))))))","v":0},0,0,null,null,null,null,"","",0,0,0,null,{"$f":"IF(A92=\"\",\"\",'1. Checklist & Certification'!$K$1)","v":""},{"$f":"IF(A92=\"\",\"\",'1. Checklist & Certification'!$C$62)","v":""},{"$f":"IF(A92=\"\",\"\",'1. Checklist & Certification'!$C$6)","v":""},{"$f":"IF(A92=\"\",\"\",'1. Checklist & Certification'!$G$5)","v":""},{"$f":"IFERROR(IF(A92=\"\",\"\",\n_xlfn.LET(_xlpm.Contract,'1. Checklist & Certification'!$C$7,\n_xlpm.Yr,TEXT(MOD(_xlfn.TEXTBEFORE(_xlpm.Contract,\"-\"),100),\"00\"),\n_xlpm.Program,_xlfn.TEXTAFTER(_xlfn.TEXTBEFORE(_xlpm.Contract,\"-\",2),\"-\"),\n_xlpm.CleanProgram,_xlfn.XLOOKUP(_xlpm.Program,SpellCheck[Input],SpellCheck[Correction],_xlpm.Program),\n_xlpm.Number,TEXT(_xlfn.TEXTAFTER(_xlpm.Contract,\"-\",2),\"0000\"),\n_xlfn.CONCAT(_xlpm.Yr,\"-\",_xlpm.CleanProgram,\"-\",_xlpm.Number))\n),\"\")","v":""},{"$f":"IFERROR(IF(A92=\"\",\"\",\n_xlfn.LET(_xlpm.Contract,'1. Checklist & Certification'!$C$8,\n_xlpm.Yr,TEXT(MOD(_xlfn.TEXTBEFORE(_xlpm.Contract,\"-\"),100),\"00\"),\n_xlpm.Program,_xlfn.TEXTAFTER(_xlfn.TEXTBEFORE(_xlpm.Contract,\"-\",2),\"-\"),\n_xlpm.CleanProgram,_xlfn.XLOOKUP(_xlpm.Program,SpellCheck[Input],SpellCheck[Correction],_xlpm.Program),\n_xlpm.Number,TEXT(_xlfn.TEXTAFTER(_xlpm.Contract,\"-\",2),\"0000\"),\n_xlfn.CONCAT(_xlpm.Yr,\"-\",_xlpm.CleanProgram,\"-\",_xlpm.Number))\n),\"\")","v":""},{"$f":"IFERROR(IF(A92=\"\",\"\",\n_xlfn.LET(_xlpm.Contract,'1. Checklist & Certification'!$F$7,\n_xlpm.Yr,TEXT(MOD(_xlfn.TEXTBEFORE(_xlpm.Contract,\"-\"),100),\"00\"),\n_xlpm.Program,_xlfn.TEXTAFTER(_xlfn.TEXTBEFORE(_xlpm.Contract,\"-\",2),\"-\"),\n_xlpm.CleanProgram,_xlfn.XLOOKUP(_xlpm.Program,SpellCheck[Input],SpellCheck[Correction],_xlpm.Program),\n_xlpm.Number,TEXT(_xlfn.TEXTAFTER(_xlpm.Contract,\"-\",2),\"0000\"),\n_xlfn.CONCAT(_xlpm.Yr,\"-\",_xlpm.CleanProgram,\"-\",_xlpm.Number))\n),\"\")","v":""},{"$f":"IFERROR(IF(A92=\"\",\"\",\n_xlfn.LET(_xlpm.Contract,'1. Checklist & Certification'!$F$8,\n_xlpm.Yr,TEXT(MOD(_xlfn.TEXTBEFORE(_xlpm.Contract,\"-\"),100),\"00\"),\n_xlpm.Program,_xlfn.TEXTAFTER(_xlfn.TEXTBEFORE(_xlpm.Contract,\"-\",2),\"-\"),\n_xlpm.CleanProgram,_xlfn.XLOOKUP(_xlpm.Program,SpellCheck[Input],SpellCheck[Correction],_xlpm.Program),\n_xlpm.Number,TEXT(_xlfn.TEXTAFTER(_xlpm.Contract,\"-\",2),\"0000\"),\n_xlfn.CONCAT(_xlpm.Yr,\"-\",_xlpm.CleanProgram,\"-\",_xlpm.Number))\n),\"\")","v":""},{"$f":"IF(A92=\"\",\"\",'1. Checklist & Certification'!$B$9)","v":""},{"$f":"IF(A92=\"\",\"\",'1. Checklist & Certification'!$F$9)","v":""},{"$f":"IF(A92=\"\",\"\",'1. Checklist & Certification'!$C$10)","v":""},{"$f":"IF(A92=\"\",\"\",'1. Checklist & Certification'!$C$11)","v":""},{"$f":"IF(A92=\"\",\"\",'1. Checklist & Certification'!$C$12)","v":""},{"$f":"IF(A92=\"\",\"\",'1. Checklist & Certification'!$B$14)","v":""},{"$f":"IF(A92=\"\",\"\",'1. Checklist & Certification'!$E$14)","v":""},{"$f":"IF(B92=\"\",\"\",'1. Checklist & Certification'!$G$14)","v":""},{"$f":"IF(A92=\"\",\"\",'MHP Family Income & Rent Limits'!$B$3)","v":""},{"$f":"IF(A92=\"\",\"\",'MHP Family Income & Rent Limits'!$J$3)","v":""},{"$f":"IF(A92=\"\",\"\",'MHP Family Income & Rent Limits'!$E$4)","v":""},{"$f":"IF(A92=\"\",\"\",'MHP Family Income & Rent Limits'!$C$7)","v":""},{"$f":"IF(A92=\"\",\"\",'MHP Family Income & Rent Limits'!$F$8)","v":""},{"$f":"IF(A92=\"\",\"\",'1. Checklist & Certification'!$G$4)","v":""},{"$f":"IF(A92=\"\",\"\",'1. Checklist & Certification'!$K$39)","v":""},{"$f":"IF(A92=\"\",\"\",'1. Checklist & Certification'!$K$43)","v":""},{"$f":"IF(A92=\"\",\"\",'1. Checklist & Certification'!$K$45)","v":""},{"$f":"IF(A92=\"\",\"\",'1. Checklist & Certification'!$K$49)","v":""},{"$f":"IF(A92=\"\",\"\",'1. Checklist & Certification'!$K$62)","v":""},{"$f":"IF(A92=\"\",\"\",'1. Checklist & Certification'!$E$66)","v":""},{"$f":"IF(A92=\"\",\"\",'1. Checklist & Certification'!$E$67)","v":""},{"$f":"IF(A92=\"\",\"\",'1. Checklist & Certification'!$E$68)","v":""},{"$f":"IF(A92=\"\",\"\",'1. Checklist & Certification'!$G$66)","v":""},{"$f":"IF(A92=\"\",\"\",'1. Checklist & Certification'!$H$66)","v":""},{"$f":"IF(A92=\"\",\"\",'1. Checklist & Certification'!$I$66)","v":""},{"$f":"IF(A92=\"\",\"\",'1. Checklist & Certification'!$I$67)","v":""},{"$f":"IF(A92=\"\",\"\",'1. Checklist & Certification'!$I$68)","v":""},{"$f":"IF(A92=\"\",\"\",'1. Checklist & Certification'!$B$69)","v":""},{"$f":"IF(A92=\"\",\"\",'1. Checklist & Certification'!$C$69)","v":""},{"$f":"IF(A92=\"\",\"\",'1. Checklist & Certification'!$F$69)","v":""},{"$f":"IF(A92=\"\",\"\",'1. Checklist & Certification'!$G$69)","v":""},{"$f":"IF(A92=\"\",\"\",'1. Checklist & Certification'!$J$69)","v":""},{"$f":"IF(A92=\"\",\"\",'1. Checklist & Certification'!$K$69)","v":""},null,null,{"$f":"IF(AND(OR('1. Checklist & Certification'!$M$16=1,'1. Checklist & Certification'!$M$19=2),AO92>0,B92=\"\",I92>0,AQ92<I92,AV92<>\"Sec 8-Project\"),\"X\",IF(AND(OR('1. Checklist & Certification'!$M$20=4,'1. Checklist & Certification'!$M$21=5,'1. Checklist & Certification'!$M$22=7),AO92>0,B92=\"\",I92>0,K92<I92),\"X\",\"\"))","v":""},{"$f":"IF(A92=\"\",\"\",IF(SUMPRODUCT(-- (ISNUMBER(SEARCH({\"*AHSC*\",\"*FMTW*\",\"*FWHG*\",\"*GHI*\",\"*HHC*\",\"*HLCP*\",\"*HOME*\",\"*LPR*\",\"*MHP*\",\"*NHTF*\",\"*NSP*\",\"*PRP*\",\"*TOD*\",\"*VHHP*\"},'1. Checklist & Certification'!$L$7)))),\"MHP\",\"Legacy\"))","v":""},",,",null,null,null,{"$f":"IF('1. Checklist & Certification'!$M$20=4,\"Both\",IF(OR('1. Checklist & Certification'!$M$15>0,S92=\"CHRP-R\",U92=\"CHRP-R\",W92=\"CHRP-R\",Y92=\"CHRP-R\"),\"Under\",\"No\"))","v":"No"},"No","No",{"$f":"_xlfn.IFS(D92=\"\",\"\",D92=1,'MHP Family Income & Rent Limits'!$E$17,D92=2,'MHP Family Income & Rent Limits'!$F$17,D92=3,'MHP Family Income & Rent Limits'!$G$17,D92=4,'MHP Family Income & Rent Limits'!$H$17,D92=5,'MHP Family Income & Rent Limits'!$I$17,D92=6,'MHP Family Income & Rent Limits'!$J$17,D92=7,'MHP Family Income & Rent Limits'!$K$17,D92=8,'MHP Family Income & Rent Limits'!$L$17)","v":""},"",{"$f":"IF(OR(A92=0,B92=\"X\"),0,MIN(IF(AA92:AD92<>0,AA92:AD92)))","v":0},{"$f":"IF(OR(H92=\"\",I92=\"\"),0,IF(H92*0.3/12>I92,MIN(H92*0.3/12,I92*1.1)+AP92,I92*(1+(VLOOKUP('1. Checklist & Certification'!$F$9,'HLCP-E Rent Change'!$A$1:$D$59,4,FALSE)))+AP92))","v":0}]
[null,null,null,null,null,null,null,null,null,null,null,null,null,null,null,null,null,null,null,null,null,null,null,null,null,null,0,0,0,0,0,0,0,0,{"$f":"IF(OR(A93=0,B93=\"X\"),0,IF(OR(S93=\"FHDP\",S93=\"RHCP-B\",U93=\"FHDP\",U93=\"RHCP-B\",W93=\"FHDP\",W93=\"RHCP-B\",Y93=\"FHDP\",Y93=\"RHCP-B\"),TRUNC((MIN(I93,K93)*(1+'1. Checklist & Certification'!$K$43)+AP93)),0))","v":0},{"$f":"IF(OR(A93=0,B93=\"X\"),0,IF(OR(S93=\"CHRP-R\",S93=\"SERA\",S93=\"SUHRP\",U93=\"CHRP-R\",U93=\"SERA\",U93=\"SUHRP\",W93=\"CHRP-R\",W93=\"SERA\",W93=\"SUHRP\",Y93=\"CHRP-R\",Y93=\"SERA\",Y93=\"SUHRP\"),TRUNC((MIN(I93,K93)*(1+'1. Checklist & Certification'!$K$49))),0))","v":0},{"$f":"IF(OR(A93=0,B93=\"X\"),0,IF(OR(S93=\"CALDAP\",S93=\"DPRLP\",U93=\"CALDAP\",U93=\"DPRLP\",W93=\"CALDAP\",W93=\"DPRLP\",Y93=\"CALDAP\",Y93=\"DPRLP\"),TRUNC(((MIN(I93,K93))*(1+'1. Checklist & Certification'!$G$4))),0))","v":0},0,0,0,{"$f":"IF(OR(A93=0,B93=\"X\"),0,IF(OR(S93=\"PRP\",S93=\"LPR\",U93=\"PRP\",U93=\"LPR\",W93=\"PRP\",W93=\"LPR\",Y93=\"PRP\",Y93=\"LPR\"),MAX(I93+AP93,MIN(IF(AE93:AN93<>0,AE93:AN93))),MIN(IF(AE93:AN93<>0,AE93:AN93))))","v":0},{"$f":"IF(A93=0,0,IF(AND(OR(S93=\"Mgr\",S93=0),OR(U93=\"Mgr\",U93=0),OR(W93=\"Mgr\",W93=0)),0,IF(LEFT($A93,2)=\"B*\",VLOOKUP($E93,'1. Checklist & Certification'!$D$26:$E$32,2),IF(LEFT($A93,2)=\"C*\",VLOOKUP($E93,'1. Checklist & Certification'!$F$26:$G$32,2),IF(LEFT($A93,2)=\"D*\",VLOOKUP($E93,'1. Checklist & Certification'!$H$26:$I$32,2),IF(LEFT($A93,2)=\"E*\",VLOOKUP($E93,'1. Checklist & Certification'!$J$26:$K$32,2),VLOOKUP($E93,'1. Checklist & Certification'!$A$26:$B$32,2)))))))","v":0},0,0,null,null,null,null,"","",0,0,0,null,{"$f":"IF(A93=\"\",\"\",'1. Checklist & Certification'!$K$1)","v":""},{"$f":"IF(A93=\"\",\"\",'1. Checklist & Certification'!$C$62)","v":""},{"$f":"IF(A93=\"\",\"\",'1. Checklist & Certification'!$C$6)","v":""},{"$f":"IF(A93=\"\",\"\",'1. Checklist & Certification'!$G$5)","v":""},{"$f":"IFERROR(IF(A93=\"\",\"\",\n_xlfn.LET(_xlpm.Contract,'1. Checklist & Certification'!$C$7,\n_xlpm.Yr,TEXT(MOD(_xlfn.TEXTBEFORE(_xlpm.Contract,\"-\"),100),\"00\"),\n_xlpm.Program,_xlfn.TEXTAFTER(_xlfn.TEXTBEFORE(_xlpm.Contract,\"-\",2),\"-\"),\n_xlpm.CleanProgram,_xlfn.XLOOKUP(_xlpm.Program,SpellCheck[Input],SpellCheck[Correction],_xlpm.Program),\n_xlpm.Number,TEXT(_xlfn.TEXTAFTER(_xlpm.Contract,\"-\",2),\"0000\"),\n_xlfn.CONCAT(_xlpm.Yr,\"-\",_xlpm.CleanProgram,\"-\",_xlpm.Number))\n),\"\")","v":""},{"$f":"IFERROR(IF(A93=\"\",\"\",\n_xlfn.LET(_xlpm.Contract,'1. Checklist & Certification'!$C$8,\n_xlpm.Yr,TEXT(MOD(_xlfn.TEXTBEFORE(_xlpm.Contract,\"-\"),100),\"00\"),\n_xlpm.Program,_xlfn.TEXTAFTER(_xlfn.TEXTBEFORE(_xlpm.Contract,\"-\",2),\"-\"),\n_xlpm.CleanProgram,_xlfn.XLOOKUP(_xlpm.Program,SpellCheck[Input],SpellCheck[Correction],_xlpm.Program),\n_xlpm.Number,TEXT(_xlfn.TEXTAFTER(_xlpm.Contract,\"-\",2),\"0000\"),\n_xlfn.CONCAT(_xlpm.Yr,\"-\",_xlpm.CleanProgram,\"-\",_xlpm.Number))\n),\"\")","v":""},{"$f":"IFERROR(IF(A93=\"\",\"\",\n_xlfn.LET(_xlpm.Contract,'1. Checklist & Certification'!$F$7,\n_xlpm.Yr,TEXT(MOD(_xlfn.TEXTBEFORE(_xlpm.Contract,\"-\"),100),\"00\"),\n_xlpm.Program,_xlfn.TEXTAFTER(_xlfn.TEXTBEFORE(_xlpm.Contract,\"-\",2),\"-\"),\n_xlpm.CleanProgram,_xlfn.XLOOKUP(_xlpm.Program,SpellCheck[Input],SpellCheck[Correction],_xlpm.Program),\n_xlpm.Number,TEXT(_xlfn.TEXTAFTER(_xlpm.Contract,\"-\",2),\"0000\"),\n_xlfn.CONCAT(_xlpm.Yr,\"-\",_xlpm.CleanProgram,\"-\",_xlpm.Number))\n),\"\")","v":""},{"$f":"IFERROR(IF(A93=\"\",\"\",\n_xlfn.LET(_xlpm.Contract,'1. Checklist & Certification'!$F$8,\n_xlpm.Yr,TEXT(MOD(_xlfn.TEXTBEFORE(_xlpm.Contract,\"-\"),100),\"00\"),\n_xlpm.Program,_xlfn.TEXTAFTER(_xlfn.TEXTBEFORE(_xlpm.Contract,\"-\",2),\"-\"),\n_xlpm.CleanProgram,_xlfn.XLOOKUP(_xlpm.Program,SpellCheck[Input],SpellCheck[Correction],_xlpm.Program),\n_xlpm.Number,TEXT(_xlfn.TEXTAFTER(_xlpm.Contract,\"-\",2),\"0000\"),\n_xlfn.CONCAT(_xlpm.Yr,\"-\",_xlpm.CleanProgram,\"-\",_xlpm.Number))\n),\"\")","v":""},{"$f":"IF(A93=\"\",\"\",'1. Checklist & Certification'!$B$9)","v":""},{"$f":"IF(A93=\"\",\"\",'1. Checklist & Certification'!$F$9)","v":""},{"$f":"IF(A93=\"\",\"\",'1. Checklist & Certification'!$C$10)","v":""},{"$f":"IF(A93=\"\",\"\",'1. Checklist & Certification'!$C$11)","v":""},{"$f":"IF(A93=\"\",\"\",'1. Checklist & Certification'!$C$12)","v":""},{"$f":"IF(A93=\"\",\"\",'1. Checklist & Certification'!$B$14)","v":""},{"$f":"IF(A93=\"\",\"\",'1. Checklist & Certification'!$E$14)","v":""},{"$f":"IF(B93=\"\",\"\",'1. Checklist & Certification'!$G$14)","v":""},{"$f":"IF(A93=\"\",\"\",'MHP Family Income & Rent Limits'!$B$3)","v":""},{"$f":"IF(A93=\"\",\"\",'MHP Family Income & Rent Limits'!$J$3)","v":""},{"$f":"IF(A93=\"\",\"\",'MHP Family Income & Rent Limits'!$E$4)","v":""},{"$f":"IF(A93=\"\",\"\",'MHP Family Income & Rent Limits'!$C$7)","v":""},{"$f":"IF(A93=\"\",\"\",'MHP Family Income & Rent Limits'!$F$8)","v":""},{"$f":"IF(A93=\"\",\"\",'1. Checklist & Certification'!$G$4)","v":""},{"$f":"IF(A93=\"\",\"\",'1. Checklist & Certification'!$K$39)","v":""},{"$f":"IF(A93=\"\",\"\",'1. Checklist & Certification'!$K$43)","v":""},{"$f":"IF(A93=\"\",\"\",'1. Checklist & Certification'!$K$45)","v":""},{"$f":"IF(A93=\"\",\"\",'1. Checklist & Certification'!$K$49)","v":""},{"$f":"IF(A93=\"\",\"\",'1. Checklist & Certification'!$K$62)","v":""},{"$f":"IF(A93=\"\",\"\",'1. Checklist & Certification'!$E$66)","v":""},{"$f":"IF(A93=\"\",\"\",'1. Checklist & Certification'!$E$67)","v":""},{"$f":"IF(A93=\"\",\"\",'1. Checklist & Certification'!$E$68)","v":""},{"$f":"IF(A93=\"\",\"\",'1. Checklist & Certification'!$G$66)","v":""},{"$f":"IF(A93=\"\",\"\",'1. Checklist & Certification'!$H$66)","v":""},{"$f":"IF(A93=\"\",\"\",'1. Checklist & Certification'!$I$66)","v":""},{"$f":"IF(A93=\"\",\"\",'1. Checklist & Certification'!$I$67)","v":""},{"$f":"IF(A93=\"\",\"\",'1. Checklist & Certification'!$I$68)","v":""},{"$f":"IF(A93=\"\",\"\",'1. Checklist & Certification'!$B$69)","v":""},{"$f":"IF(A93=\"\",\"\",'1. Checklist & Certification'!$C$69)","v":""},{"$f":"IF(A93=\"\",\"\",'1. Checklist & Certification'!$F$69)","v":""},{"$f":"IF(A93=\"\",\"\",'1. Checklist & Certification'!$G$69)","v":""},{"$f":"IF(A93=\"\",\"\",'1. Checklist & Certification'!$J$69)","v":""},{"$f":"IF(A93=\"\",\"\",'1. Checklist & Certification'!$K$69)","v":""},null,null,{"$f":"IF(AND(OR('1. Checklist & Certification'!$M$16=1,'1. Checklist & Certification'!$M$19=2),AO93>0,B93=\"\",I93>0,AQ93<I93,AV93<>\"Sec 8-Project\"),\"X\",IF(AND(OR('1. Checklist & Certification'!$M$20=4,'1. Checklist & Certification'!$M$21=5,'1. Checklist & Certification'!$M$22=7),AO93>0,B93=\"\",I93>0,K93<I93),\"X\",\"\"))","v":""},{"$f":"IF(A93=\"\",\"\",IF(SUMPRODUCT(-- (ISNUMBER(SEARCH({\"*AHSC*\",\"*FMTW*\",\"*FWHG*\",\"*GHI*\",\"*HHC*\",\"*HLCP*\",\"*HOME*\",\"*LPR*\",\"*MHP*\",\"*NHTF*\",\"*NSP*\",\"*PRP*\",\"*TOD*\",\"*VHHP*\"},'1. Checklist & Certification'!$L$7)))),\"MHP\",\"Legacy\"))","v":""},",,",null,null,null,{"$f":"IF('1. Checklist & Certification'!$M$20=4,\"Both\",IF(OR('1. Checklist & Certification'!$M$15>0,S93=\"CHRP-R\",U93=\"CHRP-R\",W93=\"CHRP-R\",Y93=\"CHRP-R\"),\"Under\",\"No\"))","v":"No"},"No","No",{"$f":"_xlfn.IFS(D93=\"\",\"\",D93=1,'MHP Family Income & Rent Limits'!$E$17,D93=2,'MHP Family Income & Rent Limits'!$F$17,D93=3,'MHP Family Income & Rent Limits'!$G$17,D93=4,'MHP Family Income & Rent Limits'!$H$17,D93=5,'MHP Family Income & Rent Limits'!$I$17,D93=6,'MHP Family Income & Rent Limits'!$J$17,D93=7,'MHP Family Income & Rent Limits'!$K$17,D93=8,'MHP Family Income & Rent Limits'!$L$17)","v":""},"",{"$f":"IF(OR(A93=0,B93=\"X\"),0,MIN(IF(AA93:AD93<>0,AA93:AD93)))","v":0},{"$f":"IF(OR(H93=\"\",I93=\"\"),0,IF(H93*0.3/12>I93,MIN(H93*0.3/12,I93*1.1)+AP93,I93*(1+(VLOOKUP('1. Checklist & Certification'!$F$9,'HLCP-E Rent Change'!$A$1:$D$59,4,FALSE)))+AP93))","v":0}]
[null,null,null,null,null,null,null,null,null,null,null,null,null,null,null,null,null,null,null,null,null,null,null,null,null,null,0,0,0,0,0,0,0,0,{"$f":"IF(OR(A94=0,B94=\"X\"),0,IF(OR(S94=\"FHDP\",S94=\"RHCP-B\",U94=\"FHDP\",U94=\"RHCP-B\",W94=\"FHDP\",W94=\"RHCP-B\",Y94=\"FHDP\",Y94=\"RHCP-B\"),TRUNC((MIN(I94,K94)*(1+'1. Checklist & Certification'!$K$43)+AP94)),0))","v":0},{"$f":"IF(OR(A94=0,B94=\"X\"),0,IF(OR(S94=\"CHRP-R\",S94=\"SERA\",S94=\"SUHRP\",U94=\"CHRP-R\",U94=\"SERA\",U94=\"SUHRP\",W94=\"CHRP-R\",W94=\"SERA\",W94=\"SUHRP\",Y94=\"CHRP-R\",Y94=\"SERA\",Y94=\"SUHRP\"),TRUNC((MIN(I94,K94)*(1+'1. Checklist & Certification'!$K$49))),0))","v":0},{"$f":"IF(OR(A94=0,B94=\"X\"),0,IF(OR(S94=\"CALDAP\",S94=\"DPRLP\",U94=\"CALDAP\",U94=\"DPRLP\",W94=\"CALDAP\",W94=\"DPRLP\",Y94=\"CALDAP\",Y94=\"DPRLP\"),TRUNC(((MIN(I94,K94))*(1+'1. Checklist & Certification'!$G$4))),0))","v":0},0,0,0,{"$f":"IF(OR(A94=0,B94=\"X\"),0,IF(OR(S94=\"PRP\",S94=\"LPR\",U94=\"PRP\",U94=\"LPR\",W94=\"PRP\",W94=\"LPR\",Y94=\"PRP\",Y94=\"LPR\"),MAX(I94+AP94,MIN(IF(AE94:AN94<>0,AE94:AN94))),MIN(IF(AE94:AN94<>0,AE94:AN94))))","v":0},{"$f":"IF(A94=0,0,IF(AND(OR(S94=\"Mgr\",S94=0),OR(U94=\"Mgr\",U94=0),OR(W94=\"Mgr\",W94=0)),0,IF(LEFT($A94,2)=\"B*\",VLOOKUP($E94,'1. Checklist & Certification'!$D$26:$E$32,2),IF(LEFT($A94,2)=\"C*\",VLOOKUP($E94,'1. Checklist & Certification'!$F$26:$G$32,2),IF(LEFT($A94,2)=\"D*\",VLOOKUP($E94,'1. Checklist & Certification'!$H$26:$I$32,2),IF(LEFT($A94,2)=\"E*\",VLOOKUP($E94,'1. Checklist & Certification'!$J$26:$K$32,2),VLOOKUP($E94,'1. Checklist & Certification'!$A$26:$B$32,2)))))))","v":0},0,0,null,null,null,null,"","",0,0,0,null,{"$f":"IF(A94=\"\",\"\",'1. Checklist & Certification'!$K$1)","v":""},{"$f":"IF(A94=\"\",\"\",'1. Checklist & Certification'!$C$62)","v":""},{"$f":"IF(A94=\"\",\"\",'1. Checklist & Certification'!$C$6)","v":""},{"$f":"IF(A94=\"\",\"\",'1. Checklist & Certification'!$G$5)","v":""},{"$f":"IFERROR(IF(A94=\"\",\"\",\n_xlfn.LET(_xlpm.Contract,'1. Checklist & Certification'!$C$7,\n_xlpm.Yr,TEXT(MOD(_xlfn.TEXTBEFORE(_xlpm.Contract,\"-\"),100),\"00\"),\n_xlpm.Program,_xlfn.TEXTAFTER(_xlfn.TEXTBEFORE(_xlpm.Contract,\"-\",2),\"-\"),\n_xlpm.CleanProgram,_xlfn.XLOOKUP(_xlpm.Program,SpellCheck[Input],SpellCheck[Correction],_xlpm.Program),\n_xlpm.Number,TEXT(_xlfn.TEXTAFTER(_xlpm.Contract,\"-\",2),\"0000\"),\n_xlfn.CONCAT(_xlpm.Yr,\"-\",_xlpm.CleanProgram,\"-\",_xlpm.Number))\n),\"\")","v":""},{"$f":"IFERROR(IF(A94=\"\",\"\",\n_xlfn.LET(_xlpm.Contract,'1. Checklist & Certification'!$C$8,\n_xlpm.Yr,TEXT(MOD(_xlfn.TEXTBEFORE(_xlpm.Contract,\"-\"),100),\"00\"),\n_xlpm.Program,_xlfn.TEXTAFTER(_xlfn.TEXTBEFORE(_xlpm.Contract,\"-\",2),\"-\"),\n_xlpm.CleanProgram,_xlfn.XLOOKUP(_xlpm.Program,SpellCheck[Input],SpellCheck[Correction],_xlpm.Program),\n_xlpm.Number,TEXT(_xlfn.TEXTAFTER(_xlpm.Contract,\"-\",2),\"0000\"),\n_xlfn.CONCAT(_xlpm.Yr,\"-\",_xlpm.CleanProgram,\"-\",_xlpm.Number))\n),\"\")","v":""},{"$f":"IFERROR(IF(A94=\"\",\"\",\n_xlfn.LET(_xlpm.Contract,'1. Checklist & Certification'!$F$7,\n_xlpm.Yr,TEXT(MOD(_xlfn.TEXTBEFORE(_xlpm.Contract,\"-\"),100),\"00\"),\n_xlpm.Program,_xlfn.TEXTAFTER(_xlfn.TEXTBEFORE(_xlpm.Contract,\"-\",2),\"-\"),\n_xlpm.CleanProgram,_xlfn.XLOOKUP(_xlpm.Program,SpellCheck[Input],SpellCheck[Correction],_xlpm.Program),\n_xlpm.Number,TEXT(_xlfn.TEXTAFTER(_xlpm.Contract,\"-\",2),\"0000\"),\n_xlfn.CONCAT(_xlpm.Yr,\"-\",_xlpm.CleanProgram,\"-\",_xlpm.Number))\n),\"\")","v":""},{"$f":"IFERROR(IF(A94=\"\",\"\",\n_xlfn.LET(_xlpm.Contract,'1. Checklist & Certification'!$F$8,\n_xlpm.Yr,TEXT(MOD(_xlfn.TEXTBEFORE(_xlpm.Contract,\"-\"),100),\"00\"),\n_xlpm.Program,_xlfn.TEXTAFTER(_xlfn.TEXTBEFORE(_xlpm.Contract,\"-\",2),\"-\"),\n_xlpm.CleanProgram,_xlfn.XLOOKUP(_xlpm.Program,SpellCheck[Input],SpellCheck[Correction],_xlpm.Program),\n_xlpm.Number,TEXT(_xlfn.TEXTAFTER(_xlpm.Contract,\"-\",2),\"0000\"),\n_xlfn.CONCAT(_xlpm.Yr,\"-\",_xlpm.CleanProgram,\"-\",_xlpm.Number))\n),\"\")","v":""},{"$f":"IF(A94=\"\",\"\",'1. Checklist & Certification'!$B$9)","v":""},{"$f":"IF(A94=\"\",\"\",'1. Checklist & Certification'!$F$9)","v":""},{"$f":"IF(A94=\"\",\"\",'1. Checklist & Certification'!$C$10)","v":""},{"$f":"IF(A94=\"\",\"\",'1. Checklist & Certification'!$C$11)","v":""},{"$f":"IF(A94=\"\",\"\",'1. Checklist & Certification'!$C$12)","v":""},{"$f":"IF(A94=\"\",\"\",'1. Checklist & Certification'!$B$14)","v":""},{"$f":"IF(A94=\"\",\"\",'1. Checklist & Certification'!$E$14)","v":""},{"$f":"IF(B94=\"\",\"\",'1. Checklist & Certification'!$G$14)","v":""},{"$f":"IF(A94=\"\",\"\",'MHP Family Income & Rent Limits'!$B$3)","v":""},{"$f":"IF(A94=\"\",\"\",'MHP Family Income & Rent Limits'!$J$3)","v":""},{"$f":"IF(A94=\"\",\"\",'MHP Family Income & Rent Limits'!$E$4)","v":""},{"$f":"IF(A94=\"\",\"\",'MHP Family Income & Rent Limits'!$C$7)","v":""},{"$f":"IF(A94=\"\",\"\",'MHP Family Income & Rent Limits'!$F$8)","v":""},{"$f":"IF(A94=\"\",\"\",'1. Checklist & Certification'!$G$4)","v":""},{"$f":"IF(A94=\"\",\"\",'1. Checklist & Certification'!$K$39)","v":""},{"$f":"IF(A94=\"\",\"\",'1. Checklist & Certification'!$K$43)","v":""},{"$f":"IF(A94=\"\",\"\",'1. Checklist & Certification'!$K$45)","v":""},{"$f":"IF(A94=\"\",\"\",'1. Checklist & Certification'!$K$49)","v":""},{"$f":"IF(A94=\"\",\"\",'1. Checklist & Certification'!$K$62)","v":""},{"$f":"IF(A94=\"\",\"\",'1. Checklist & Certification'!$E$66)","v":""},{"$f":"IF(A94=\"\",\"\",'1. Checklist & Certification'!$E$67)","v":""},{"$f":"IF(A94=\"\",\"\",'1. Checklist & Certification'!$E$68)","v":""},{"$f":"IF(A94=\"\",\"\",'1. Checklist & Certification'!$G$66)","v":""},{"$f":"IF(A94=\"\",\"\",'1. Checklist & Certification'!$H$66)","v":""},{"$f":"IF(A94=\"\",\"\",'1. Checklist & Certification'!$I$66)","v":""},{"$f":"IF(A94=\"\",\"\",'1. Checklist & Certification'!$I$67)","v":""},{"$f":"IF(A94=\"\",\"\",'1. Checklist & Certification'!$I$68)","v":""},{"$f":"IF(A94=\"\",\"\",'1. Checklist & Certification'!$B$69)","v":""},{"$f":"IF(A94=\"\",\"\",'1. Checklist & Certification'!$C$69)","v":""},{"$f":"IF(A94=\"\",\"\",'1. Checklist & Certification'!$F$69)","v":""},{"$f":"IF(A94=\"\",\"\",'1. Checklist & Certification'!$G$69)","v":""},{"$f":"IF(A94=\"\",\"\",'1. Checklist & Certification'!$J$69)","v":""},{"$f":"IF(A94=\"\",\"\",'1. Checklist & Certification'!$K$69)","v":""},null,null,{"$f":"IF(AND(OR('1. Checklist & Certification'!$M$16=1,'1. Checklist & Certification'!$M$19=2),AO94>0,B94=\"\",I94>0,AQ94<I94,AV94<>\"Sec 8-Project\"),\"X\",IF(AND(OR('1. Checklist & Certification'!$M$20=4,'1. Checklist & Certification'!$M$21=5,'1. Checklist & Certification'!$M$22=7),AO94>0,B94=\"\",I94>0,K94<I94),\"X\",\"\"))","v":""},{"$f":"IF(A94=\"\",\"\",IF(SUMPRODUCT(-- (ISNUMBER(SEARCH({\"*AHSC*\",\"*FMTW*\",\"*FWHG*\",\"*GHI*\",\"*HHC*\",\"*HLCP*\",\"*HOME*\",\"*LPR*\",\"*MHP*\",\"*NHTF*\",\"*NSP*\",\"*PRP*\",\"*TOD*\",\"*VHHP*\"},'1. Checklist & Certification'!$L$7)))),\"MHP\",\"Legacy\"))","v":""},",,",null,null,null,{"$f":"IF('1. Checklist & Certification'!$M$20=4,\"Both\",IF(OR('1. Checklist & Certification'!$M$15>0,S94=\"CHRP-R\",U94=\"CHRP-R\",W94=\"CHRP-R\",Y94=\"CHRP-R\"),\"Under\",\"No\"))","v":"No"},"No","No",{"$f":"_xlfn.IFS(D94=\"\",\"\",D94=1,'MHP Family Income & Rent Limits'!$E$17,D94=2,'MHP Family Income & Rent Limits'!$F$17,D94=3,'MHP Family Income & Rent Limits'!$G$17,D94=4,'MHP Family Income & Rent Limits'!$H$17,D94=5,'MHP Family Income & Rent Limits'!$I$17,D94=6,'MHP Family Income & Rent Limits'!$J$17,D94=7,'MHP Family Income & Rent Limits'!$K$17,D94=8,'MHP Family Income & Rent Limits'!$L$17)","v":""},"",{"$f":"IF(OR(A94=0,B94=\"X\"),0,MIN(IF(AA94:AD94<>0,AA94:AD94)))","v":0},{"$f":"IF(OR(H94=\"\",I94=\"\"),0,IF(H94*0.3/12>I94,MIN(H94*0.3/12,I94*1.1)+AP94,I94*(1+(VLOOKUP('1. Checklist & Certification'!$F$9,'HLCP-E Rent Change'!$A$1:$D$59,4,FALSE)))+AP94))","v":0}]
[null,null,null,null,null,null,null,null,null,null,null,null,null,null,null,null,null,null,null,null,null,null,null,null,null,null,0,0,0,0,0,0,0,0,{"$f":"IF(OR(A95=0,B95=\"X\"),0,IF(OR(S95=\"FHDP\",S95=\"RHCP-B\",U95=\"FHDP\",U95=\"RHCP-B\",W95=\"FHDP\",W95=\"RHCP-B\",Y95=\"FHDP\",Y95=\"RHCP-B\"),TRUNC((MIN(I95,K95)*(1+'1. Checklist & Certification'!$K$43)+AP95)),0))","v":0},{"$f":"IF(OR(A95=0,B95=\"X\"),0,IF(OR(S95=\"CHRP-R\",S95=\"SERA\",S95=\"SUHRP\",U95=\"CHRP-R\",U95=\"SERA\",U95=\"SUHRP\",W95=\"CHRP-R\",W95=\"SERA\",W95=\"SUHRP\",Y95=\"CHRP-R\",Y95=\"SERA\",Y95=\"SUHRP\"),TRUNC((MIN(I95,K95)*(1+'1. Checklist & Certification'!$K$49))),0))","v":0},{"$f":"IF(OR(A95=0,B95=\"X\"),0,IF(OR(S95=\"CALDAP\",S95=\"DPRLP\",U95=\"CALDAP\",U95=\"DPRLP\",W95=\"CALDAP\",W95=\"DPRLP\",Y95=\"CALDAP\",Y95=\"DPRLP\"),TRUNC(((MIN(I95,K95))*(1+'1. Checklist & Certification'!$G$4))),0))","v":0},0,0,0,{"$f":"IF(OR(A95=0,B95=\"X\"),0,IF(OR(S95=\"PRP\",S95=\"LPR\",U95=\"PRP\",U95=\"LPR\",W95=\"PRP\",W95=\"LPR\",Y95=\"PRP\",Y95=\"LPR\"),MAX(I95+AP95,MIN(IF(AE95:AN95<>0,AE95:AN95))),MIN(IF(AE95:AN95<>0,AE95:AN95))))","v":0},{"$f":"IF(A95=0,0,IF(AND(OR(S95=\"Mgr\",S95=0),OR(U95=\"Mgr\",U95=0),OR(W95=\"Mgr\",W95=0)),0,IF(LEFT($A95,2)=\"B*\",VLOOKUP($E95,'1. Checklist & Certification'!$D$26:$E$32,2),IF(LEFT($A95,2)=\"C*\",VLOOKUP($E95,'1. Checklist & Certification'!$F$26:$G$32,2),IF(LEFT($A95,2)=\"D*\",VLOOKUP($E95,'1. Checklist & Certification'!$H$26:$I$32,2),IF(LEFT($A95,2)=\"E*\",VLOOKUP($E95,'1. Checklist & Certification'!$J$26:$K$32,2),VLOOKUP($E95,'1. Checklist & Certification'!$A$26:$B$32,2)))))))","v":0},0,0,null,null,null,null,"","",0,0,0,null,{"$f":"IF(A95=\"\",\"\",'1. Checklist & Certification'!$K$1)","v":""},{"$f":"IF(A95=\"\",\"\",'1. Checklist & Certification'!$C$62)","v":""},{"$f":"IF(A95=\"\",\"\",'1. Checklist & Certification'!$C$6)","v":""},{"$f":"IF(A95=\"\",\"\",'1. Checklist & Certification'!$G$5)","v":""},{"$f":"IFERROR(IF(A95=\"\",\"\",\n_xlfn.LET(_xlpm.Contract,'1. Checklist & Certification'!$C$7,\n_xlpm.Yr,TEXT(MOD(_xlfn.TEXTBEFORE(_xlpm.Contract,\"-\"),100),\"00\"),\n_xlpm.Program,_xlfn.TEXTAFTER(_xlfn.TEXTBEFORE(_xlpm.Contract,\"-\",2),\"-\"),\n_xlpm.CleanProgram,_xlfn.XLOOKUP(_xlpm.Program,SpellCheck[Input],SpellCheck[Correction],_xlpm.Program),\n_xlpm.Number,TEXT(_xlfn.TEXTAFTER(_xlpm.Contract,\"-\",2),\"0000\"),\n_xlfn.CONCAT(_xlpm.Yr,\"-\",_xlpm.CleanProgram,\"-\",_xlpm.Number))\n),\"\")","v":""},{"$f":"IFERROR(IF(A95=\"\",\"\",\n_xlfn.LET(_xlpm.Contract,'1. Checklist & Certification'!$C$8,\n_xlpm.Yr,TEXT(MOD(_xlfn.TEXTBEFORE(_xlpm.Contract,\"-\"),100),\"00\"),\n_xlpm.Program,_xlfn.TEXTAFTER(_xlfn.TEXTBEFORE(_xlpm.Contract,\"-\",2),\"-\"),\n_xlpm.CleanProgram,_xlfn.XLOOKUP(_xlpm.Program,SpellCheck[Input],SpellCheck[Correction],_xlpm.Program),\n_xlpm.Number,TEXT(_xlfn.TEXTAFTER(_xlpm.Contract,\"-\",2),\"0000\"),\n_xlfn.CONCAT(_xlpm.Yr,\"-\",_xlpm.CleanProgram,\"-\",_xlpm.Number))\n),\"\")","v":""},{"$f":"IFERROR(IF(A95=\"\",\"\",\n_xlfn.LET(_xlpm.Contract,'1. Checklist & Certification'!$F$7,\n_xlpm.Yr,TEXT(MOD(_xlfn.TEXTBEFORE(_xlpm.Contract,\"-\"),100),\"00\"),\n_xlpm.Program,_xlfn.TEXTAFTER(_xlfn.TEXTBEFORE(_xlpm.Contract,\"-\",2),\"-\"),\n_xlpm.CleanProgram,_xlfn.XLOOKUP(_xlpm.Program,SpellCheck[Input],SpellCheck[Correction],_xlpm.Program),\n_xlpm.Number,TEXT(_xlfn.TEXTAFTER(_xlpm.Contract,\"-\",2),\"0000\"),\n_xlfn.CONCAT(_xlpm.Yr,\"-\",_xlpm.CleanProgram,\"-\",_xlpm.Number))\n),\"\")","v":""},{"$f":"IFERROR(IF(A95=\"\",\"\",\n_xlfn.LET(_xlpm.Contract,'1. Checklist & Certification'!$F$8,\n_xlpm.Yr,TEXT(MOD(_xlfn.TEXTBEFORE(_xlpm.Contract,\"-\"),100),\"00\"),\n_xlpm.Program,_xlfn.TEXTAFTER(_xlfn.TEXTBEFORE(_xlpm.Contract,\"-\",2),\"-\"),\n_xlpm.CleanProgram,_xlfn.XLOOKUP(_xlpm.Program,SpellCheck[Input],SpellCheck[Correction],_xlpm.Program),\n_xlpm.Number,TEXT(_xlfn.TEXTAFTER(_xlpm.Contract,\"-\",2),\"0000\"),\n_xlfn.CONCAT(_xlpm.Yr,\"-\",_xlpm.CleanProgram,\"-\",_xlpm.Number))\n),\"\")","v":""},{"$f":"IF(A95=\"\",\"\",'1. Checklist & Certification'!$B$9)","v":""},{"$f":"IF(A95=\"\",\"\",'1. Checklist & Certification'!$F$9)","v":""},{"$f":"IF(A95=\"\",\"\",'1. Checklist & Certification'!$C$10)","v":""},{"$f":"IF(A95=\"\",\"\",'1. Checklist & Certification'!$C$11)","v":""},{"$f":"IF(A95=\"\",\"\",'1. Checklist & Certification'!$C$12)","v":""},{"$f":"IF(A95=\"\",\"\",'1. Checklist & Certification'!$B$14)","v":""},{"$f":"IF(A95=\"\",\"\",'1. Checklist & Certification'!$E$14)","v":""},{"$f":"IF(B95=\"\",\"\",'1. Checklist & Certification'!$G$14)","v":""},{"$f":"IF(A95=\"\",\"\",'MHP Family Income & Rent Limits'!$B$3)","v":""},{"$f":"IF(A95=\"\",\"\",'MHP Family Income & Rent Limits'!$J$3)","v":""},{"$f":"IF(A95=\"\",\"\",'MHP Family Income & Rent Limits'!$E$4)","v":""},{"$f":"IF(A95=\"\",\"\",'MHP Family Income & Rent Limits'!$C$7)","v":""},{"$f":"IF(A95=\"\",\"\",'MHP Family Income & Rent Limits'!$F$8)","v":""},{"$f":"IF(A95=\"\",\"\",'1. Checklist & Certification'!$G$4)","v":""},{"$f":"IF(A95=\"\",\"\",'1. Checklist & Certification'!$K$39)","v":""},{"$f":"IF(A95=\"\",\"\",'1. Checklist & Certification'!$K$43)","v":""},{"$f":"IF(A95=\"\",\"\",'1. Checklist & Certification'!$K$45)","v":""},{"$f":"IF(A95=\"\",\"\",'1. Checklist & Certification'!$K$49)","v":""},{"$f":"IF(A95=\"\",\"\",'1. Checklist & Certification'!$K$62)","v":""},{"$f":"IF(A95=\"\",\"\",'1. Checklist & Certification'!$E$66)","v":""},{"$f":"IF(A95=\"\",\"\",'1. Checklist & Certification'!$E$67)","v":""},{"$f":"IF(A95=\"\",\"\",'1. Checklist & Certification'!$E$68)","v":""},{"$f":"IF(A95=\"\",\"\",'1. Checklist & Certification'!$G$66)","v":""},{"$f":"IF(A95=\"\",\"\",'1. Checklist & Certification'!$H$66)","v":""},{"$f":"IF(A95=\"\",\"\",'1. Checklist & Certification'!$I$66)","v":""},{"$f":"IF(A95=\"\",\"\",'1. Checklist & Certification'!$I$67)","v":""},{"$f":"IF(A95=\"\",\"\",'1. Checklist & Certification'!$I$68)","v":""},{"$f":"IF(A95=\"\",\"\",'1. Checklist & Certification'!$B$69)","v":""},{"$f":"IF(A95=\"\",\"\",'1. Checklist & Certification'!$C$69)","v":""},{"$f":"IF(A95=\"\",\"\",'1. Checklist & Certification'!$F$69)","v":""},{"$f":"IF(A95=\"\",\"\",'1. Checklist & Certification'!$G$69)","v":""},{"$f":"IF(A95=\"\",\"\",'1. Checklist & Certification'!$J$69)","v":""},{"$f":"IF(A95=\"\",\"\",'1. Checklist & Certification'!$K$69)","v":""},null,null,{"$f":"IF(AND(OR('1. Checklist & Certification'!$M$16=1,'1. Checklist & Certification'!$M$19=2),AO95>0,B95=\"\",I95>0,AQ95<I95,AV95<>\"Sec 8-Project\"),\"X\",IF(AND(OR('1. Checklist & Certification'!$M$20=4,'1. Checklist & Certification'!$M$21=5,'1. Checklist & Certification'!$M$22=7),AO95>0,B95=\"\",I95>0,K95<I95),\"X\",\"\"))","v":""},{"$f":"IF(A95=\"\",\"\",IF(SUMPRODUCT(-- (ISNUMBER(SEARCH({\"*AHSC*\",\"*FMTW*\",\"*FWHG*\",\"*GHI*\",\"*HHC*\",\"*HLCP*\",\"*HOME*\",\"*LPR*\",\"*MHP*\",\"*NHTF*\",\"*NSP*\",\"*PRP*\",\"*TOD*\",\"*VHHP*\"},'1. Checklist & Certification'!$L$7)))),\"MHP\",\"Legacy\"))","v":""},",,",null,null,null,{"$f":"IF('1. Checklist & Certification'!$M$20=4,\"Both\",IF(OR('1. Checklist & Certification'!$M$15>0,S95=\"CHRP-R\",U95=\"CHRP-R\",W95=\"CHRP-R\",Y95=\"CHRP-R\"),\"Under\",\"No\"))","v":"No"},"No","No",{"$f":"_xlfn.IFS(D95=\"\",\"\",D95=1,'MHP Family Income & Rent Limits'!$E$17,D95=2,'MHP Family Income & Rent Limits'!$F$17,D95=3,'MHP Family Income & Rent Limits'!$G$17,D95=4,'MHP Family Income & Rent Limits'!$H$17,D95=5,'MHP Family Income & Rent Limits'!$I$17,D95=6,'MHP Family Income & Rent Limits'!$J$17,D95=7,'MHP Family Income & Rent Limits'!$K$17,D95=8,'MHP Family Income & Rent Limits'!$L$17)","v":""},"",{"$f":"IF(OR(A95=0,B95=\"X\"),0,MIN(IF(AA95:AD95<>0,AA95:AD95)))","v":0},{"$f":"IF(OR(H95=\"\",I95=\"\"),0,IF(H95*0.3/12>I95,MIN(H95*0.3/12,I95*1.1)+AP95,I95*(1+(VLOOKUP('1. Checklist & Certification'!$F$9,'HLCP-E Rent Change'!$A$1:$D$59,4,FALSE)))+AP95))","v":0}]
[null,null,null,null,null,null,null,null,null,null,null,null,null,null,null,null,null,null,null,null,null,null,null,null,null,null,0,0,0,0,0,0,0,0,{"$f":"IF(OR(A96=0,B96=\"X\"),0,IF(OR(S96=\"FHDP\",S96=\"RHCP-B\",U96=\"FHDP\",U96=\"RHCP-B\",W96=\"FHDP\",W96=\"RHCP-B\",Y96=\"FHDP\",Y96=\"RHCP-B\"),TRUNC((MIN(I96,K96)*(1+'1. Checklist & Certification'!$K$43)+AP96)),0))","v":0},{"$f":"IF(OR(A96=0,B96=\"X\"),0,IF(OR(S96=\"CHRP-R\",S96=\"SERA\",S96=\"SUHRP\",U96=\"CHRP-R\",U96=\"SERA\",U96=\"SUHRP\",W96=\"CHRP-R\",W96=\"SERA\",W96=\"SUHRP\",Y96=\"CHRP-R\",Y96=\"SERA\",Y96=\"SUHRP\"),TRUNC((MIN(I96,K96)*(1+'1. Checklist & Certification'!$K$49))),0))","v":0},{"$f":"IF(OR(A96=0,B96=\"X\"),0,IF(OR(S96=\"CALDAP\",S96=\"DPRLP\",U96=\"CALDAP\",U96=\"DPRLP\",W96=\"CALDAP\",W96=\"DPRLP\",Y96=\"CALDAP\",Y96=\"DPRLP\"),TRUNC(((MIN(I96,K96))*(1+'1. Checklist & Certification'!$G$4))),0))","v":0},0,0,0,{"$f":"IF(OR(A96=0,B96=\"X\"),0,IF(OR(S96=\"PRP\",S96=\"LPR\",U96=\"PRP\",U96=\"LPR\",W96=\"PRP\",W96=\"LPR\",Y96=\"PRP\",Y96=\"LPR\"),MAX(I96+AP96,MIN(IF(AE96:AN96<>0,AE96:AN96))),MIN(IF(AE96:AN96<>0,AE96:AN96))))","v":0},{"$f":"IF(A96=0,0,IF(AND(OR(S96=\"Mgr\",S96=0),OR(U96=\"Mgr\",U96=0),OR(W96=\"Mgr\",W96=0)),0,IF(LEFT($A96,2)=\"B*\",VLOOKUP($E96,'1. Checklist & Certification'!$D$26:$E$32,2),IF(LEFT($A96,2)=\"C*\",VLOOKUP($E96,'1. Checklist & Certification'!$F$26:$G$32,2),IF(LEFT($A96,2)=\"D*\",VLOOKUP($E96,'1. Checklist & Certification'!$H$26:$I$32,2),IF(LEFT($A96,2)=\"E*\",VLOOKUP($E96,'1. Checklist & Certification'!$J$26:$K$32,2),VLOOKUP($E96,'1. Checklist & Certification'!$A$26:$B$32,2)))))))","v":0},0,0,null,null,null,null,"","",0,0,0,null,{"$f":"IF(A96=\"\",\"\",'1. Checklist & Certification'!$K$1)","v":""},{"$f":"IF(A96=\"\",\"\",'1. Checklist & Certification'!$C$62)","v":""},{"$f":"IF(A96=\"\",\"\",'1. Checklist & Certification'!$C$6)","v":""},{"$f":"IF(A96=\"\",\"\",'1. Checklist & Certification'!$G$5)","v":""},{"$f":"IFERROR(IF(A96=\"\",\"\",\n_xlfn.LET(_xlpm.Contract,'1. Checklist & Certification'!$C$7,\n_xlpm.Yr,TEXT(MOD(_xlfn.TEXTBEFORE(_xlpm.Contract,\"-\"),100),\"00\"),\n_xlpm.Program,_xlfn.TEXTAFTER(_xlfn.TEXTBEFORE(_xlpm.Contract,\"-\",2),\"-\"),\n_xlpm.CleanProgram,_xlfn.XLOOKUP(_xlpm.Program,SpellCheck[Input],SpellCheck[Correction],_xlpm.Program),\n_xlpm.Number,TEXT(_xlfn.TEXTAFTER(_xlpm.Contract,\"-\",2),\"0000\"),\n_xlfn.CONCAT(_xlpm.Yr,\"-\",_xlpm.CleanProgram,\"-\",_xlpm.Number))\n),\"\")","v":""},{"$f":"IFERROR(IF(A96=\"\",\"\",\n_xlfn.LET(_xlpm.Contract,'1. Checklist & Certification'!$C$8,\n_xlpm.Yr,TEXT(MOD(_xlfn.TEXTBEFORE(_xlpm.Contract,\"-\"),100),\"00\"),\n_xlpm.Program,_xlfn.TEXTAFTER(_xlfn.TEXTBEFORE(_xlpm.Contract,\"-\",2),\"-\"),\n_xlpm.CleanProgram,_xlfn.XLOOKUP(_xlpm.Program,SpellCheck[Input],SpellCheck[Correction],_xlpm.Program),\n_xlpm.Number,TEXT(_xlfn.TEXTAFTER(_xlpm.Contract,\"-\",2),\"0000\"),\n_xlfn.CONCAT(_xlpm.Yr,\"-\",_xlpm.CleanProgram,\"-\",_xlpm.Number))\n),\"\")","v":""},{"$f":"IFERROR(IF(A96=\"\",\"\",\n_xlfn.LET(_xlpm.Contract,'1. Checklist & Certification'!$F$7,\n_xlpm.Yr,TEXT(MOD(_xlfn.TEXTBEFORE(_xlpm.Contract,\"-\"),100),\"00\"),\n_xlpm.Program,_xlfn.TEXTAFTER(_xlfn.TEXTBEFORE(_xlpm.Contract,\"-\",2),\"-\"),\n_xlpm.CleanProgram,_xlfn.XLOOKUP(_xlpm.Program,SpellCheck[Input],SpellCheck[Correction],_xlpm.Program),\n_xlpm.Number,TEXT(_xlfn.TEXTAFTER(_xlpm.Contract,\"-\",2),\"0000\"),\n_xlfn.CONCAT(_xlpm.Yr,\"-\",_xlpm.CleanProgram,\"-\",_xlpm.Number))\n),\"\")","v":""},{"$f":"IFERROR(IF(A96=\"\",\"\",\n_xlfn.LET(_xlpm.Contract,'1. Checklist & Certification'!$F$8,\n_xlpm.Yr,TEXT(MOD(_xlfn.TEXTBEFORE(_xlpm.Contract,\"-\"),100),\"00\"),\n_xlpm.Program,_xlfn.TEXTAFTER(_xlfn.TEXTBEFORE(_xlpm.Contract,\"-\",2),\"-\"),\n_xlpm.CleanProgram,_xlfn.XLOOKUP(_xlpm.Program,SpellCheck[Input],SpellCheck[Correction],_xlpm.Program),\n_xlpm.Number,TEXT(_xlfn.TEXTAFTER(_xlpm.Contract,\"-\",2),\"0000\"),\n_xlfn.CONCAT(_xlpm.Yr,\"-\",_xlpm.CleanProgram,\"-\",_xlpm.Number))\n),\"\")","v":""},{"$f":"IF(A96=\"\",\"\",'1. Checklist & Certification'!$B$9)","v":""},{"$f":"IF(A96=\"\",\"\",'1. Checklist & Certification'!$F$9)","v":""},{"$f":"IF(A96=\"\",\"\",'1. Checklist & Certification'!$C$10)","v":""},{"$f":"IF(A96=\"\",\"\",'1. Checklist & Certification'!$C$11)","v":""},{"$f":"IF(A96=\"\",\"\",'1. Checklist & Certification'!$C$12)","v":""},{"$f":"IF(A96=\"\",\"\",'1. Checklist & Certification'!$B$14)","v":""},{"$f":"IF(A96=\"\",\"\",'1. Checklist & Certification'!$E$14)","v":""},{"$f":"IF(B96=\"\",\"\",'1. Checklist & Certification'!$G$14)","v":""},{"$f":"IF(A96=\"\",\"\",'MHP Family Income & Rent Limits'!$B$3)","v":""},{"$f":"IF(A96=\"\",\"\",'MHP Family Income & Rent Limits'!$J$3)","v":""},{"$f":"IF(A96=\"\",\"\",'MHP Family Income & Rent Limits'!$E$4)","v":""},{"$f":"IF(A96=\"\",\"\",'MHP Family Income & Rent Limits'!$C$7)","v":""},{"$f":"IF(A96=\"\",\"\",'MHP Family Income & Rent Limits'!$F$8)","v":""},{"$f":"IF(A96=\"\",\"\",'1. Checklist & Certification'!$G$4)","v":""},{"$f":"IF(A96=\"\",\"\",'1. Checklist & Certification'!$K$39)","v":""},{"$f":"IF(A96=\"\",\"\",'1. Checklist & Certification'!$K$43)","v":""},{"$f":"IF(A96=\"\",\"\",'1. Checklist & Certification'!$K$45)","v":""},{"$f":"IF(A96=\"\",\"\",'1. Checklist & Certification'!$K$49)","v":""},{"$f":"IF(A96=\"\",\"\",'1. Checklist & Certification'!$K$62)","v":""},{"$f":"IF(A96=\"\",\"\",'1. Checklist & Certification'!$E$66)","v":""},{"$f":"IF(A96=\"\",\"\",'1. Checklist & Certification'!$E$67)","v":""},{"$f":"IF(A96=\"\",\"\",'1. Checklist & Certification'!$E$68)","v":""},{"$f":"IF(A96=\"\",\"\",'1. Checklist & Certification'!$G$66)","v":""},{"$f":"IF(A96=\"\",\"\",'1. Checklist & Certification'!$H$66)","v":""},{"$f":"IF(A96=\"\",\"\",'1. Checklist & Certification'!$I$66)","v":""},{"$f":"IF(A96=\"\",\"\",'1. Checklist & Certification'!$I$67)","v":""},{"$f":"IF(A96=\"\",\"\",'1. Checklist & Certification'!$I$68)","v":""},{"$f":"IF(A96=\"\",\"\",'1. Checklist & Certification'!$B$69)","v":""},{"$f":"IF(A96=\"\",\"\",'1. Checklist & Certification'!$C$69)","v":""},{"$f":"IF(A96=\"\",\"\",'1. Checklist & Certification'!$F$69)","v":""},{"$f":"IF(A96=\"\",\"\",'1. Checklist & Certification'!$G$69)","v":""},{"$f":"IF(A96=\"\",\"\",'1. Checklist & Certification'!$J$69)","v":""},{"$f":"IF(A96=\"\",\"\",'1. Checklist & Certification'!$K$69)","v":""},null,null,{"$f":"IF(AND(OR('1. Checklist & Certification'!$M$16=1,'1. Checklist & Certification'!$M$19=2),AO96>0,B96=\"\",I96>0,AQ96<I96,AV96<>\"Sec 8-Project\"),\"X\",IF(AND(OR('1. Checklist & Certification'!$M$20=4,'1. Checklist & Certification'!$M$21=5,'1. Checklist & Certification'!$M$22=7),AO96>0,B96=\"\",I96>0,K96<I96),\"X\",\"\"))","v":""},{"$f":"IF(A96=\"\",\"\",IF(SUMPRODUCT(-- (ISNUMBER(SEARCH({\"*AHSC*\",\"*FMTW*\",\"*FWHG*\",\"*GHI*\",\"*HHC*\",\"*HLCP*\",\"*HOME*\",\"*LPR*\",\"*MHP*\",\"*NHTF*\",\"*NSP*\",\"*PRP*\",\"*TOD*\",\"*VHHP*\"},'1. Checklist & Certification'!$L$7)))),\"MHP\",\"Legacy\"))","v":""},",,",null,null,null,{"$f":"IF('1. Checklist & Certification'!$M$20=4,\"Both\",IF(OR('1. Checklist & Certification'!$M$15>0,S96=\"CHRP-R\",U96=\"CHRP-R\",W96=\"CHRP-R\",Y96=\"CHRP-R\"),\"Under\",\"No\"))","v":"No"},"No","No",{"$f":"_xlfn.IFS(D96=\"\",\"\",D96=1,'MHP Family Income & Rent Limits'!$E$17,D96=2,'MHP Family Income & Rent Limits'!$F$17,D96=3,'MHP Family Income & Rent Limits'!$G$17,D96=4,'MHP Family Income & Rent Limits'!$H$17,D96=5,'MHP Family Income & Rent Limits'!$I$17,D96=6,'MHP Family Income & Rent Limits'!$J$17,D96=7,'MHP Family Income & Rent Limits'!$K$17,D96=8,'MHP Family Income & Rent Limits'!$L$17)","v":""},"",{"$f":"IF(OR(A96=0,B96=\"X\"),0,MIN(IF(AA96:AD96<>0,AA96:AD96)))","v":0},{"$f":"IF(OR(H96=\"\",I96=\"\"),0,IF(H96*0.3/12>I96,MIN(H96*0.3/12,I96*1.1)+AP96,I96*(1+(VLOOKUP('1. Checklist & Certification'!$F$9,'HLCP-E Rent Change'!$A$1:$D$59,4,FALSE)))+AP96))","v":0}]
[null,null,null,null,null,null,null,null,null,null,null,null,null,null,null,null,null,null,null,null,null,null,null,null,null,null,0,0,0,0,0,0,0,0,{"$f":"IF(OR(A97=0,B97=\"X\"),0,IF(OR(S97=\"FHDP\",S97=\"RHCP-B\",U97=\"FHDP\",U97=\"RHCP-B\",W97=\"FHDP\",W97=\"RHCP-B\",Y97=\"FHDP\",Y97=\"RHCP-B\"),TRUNC((MIN(I97,K97)*(1+'1. Checklist & Certification'!$K$43)+AP97)),0))","v":0},{"$f":"IF(OR(A97=0,B97=\"X\"),0,IF(OR(S97=\"CHRP-R\",S97=\"SERA\",S97=\"SUHRP\",U97=\"CHRP-R\",U97=\"SERA\",U97=\"SUHRP\",W97=\"CHRP-R\",W97=\"SERA\",W97=\"SUHRP\",Y97=\"CHRP-R\",Y97=\"SERA\",Y97=\"SUHRP\"),TRUNC((MIN(I97,K97)*(1+'1. Checklist & Certification'!$K$49))),0))","v":0},{"$f":"IF(OR(A97=0,B97=\"X\"),0,IF(OR(S97=\"CALDAP\",S97=\"DPRLP\",U97=\"CALDAP\",U97=\"DPRLP\",W97=\"CALDAP\",W97=\"DPRLP\",Y97=\"CALDAP\",Y97=\"DPRLP\"),TRUNC(((MIN(I97,K97))*(1+'1. Checklist & Certification'!$G$4))),0))","v":0},0,0,0,{"$f":"IF(OR(A97=0,B97=\"X\"),0,IF(OR(S97=\"PRP\",S97=\"LPR\",U97=\"PRP\",U97=\"LPR\",W97=\"PRP\",W97=\"LPR\",Y97=\"PRP\",Y97=\"LPR\"),MAX(I97+AP97,MIN(IF(AE97:AN97<>0,AE97:AN97))),MIN(IF(AE97:AN97<>0,AE97:AN97))))","v":0},{"$f":"IF(A97=0,0,IF(AND(OR(S97=\"Mgr\",S97=0),OR(U97=\"Mgr\",U97=0),OR(W97=\"Mgr\",W97=0)),0,IF(LEFT($A97,2)=\"B*\",VLOOKUP($E97,'1. Checklist & Certification'!$D$26:$E$32,2),IF(LEFT($A97,2)=\"C*\",VLOOKUP($E97,'1. Checklist & Certification'!$F$26:$G$32,2),IF(LEFT($A97,2)=\"D*\",VLOOKUP($E97,'1. Checklist & Certification'!$H$26:$I$32,2),IF(LEFT($A97,2)=\"E*\",VLOOKUP($E97,'1. Checklist & Certification'!$J$26:$K$32,2),VLOOKUP($E97,'1. Checklist & Certification'!$A$26:$B$32,2)))))))","v":0},0,0,null,null,null,null,"","",0,0,0,null,{"$f":"IF(A97=\"\",\"\",'1. Checklist & Certification'!$K$1)","v":""},{"$f":"IF(A97=\"\",\"\",'1. Checklist & Certification'!$C$62)","v":""},{"$f":"IF(A97=\"\",\"\",'1. Checklist & Certification'!$C$6)","v":""},{"$f":"IF(A97=\"\",\"\",'1. Checklist & Certification'!$G$5)","v":""},{"$f":"IFERROR(IF(A97=\"\",\"\",\n_xlfn.LET(_xlpm.Contract,'1. Checklist & Certification'!$C$7,\n_xlpm.Yr,TEXT(MOD(_xlfn.TEXTBEFORE(_xlpm.Contract,\"-\"),100),\"00\"),\n_xlpm.Program,_xlfn.TEXTAFTER(_xlfn.TEXTBEFORE(_xlpm.Contract,\"-\",2),\"-\"),\n_xlpm.CleanProgram,_xlfn.XLOOKUP(_xlpm.Program,SpellCheck[Input],SpellCheck[Correction],_xlpm.Program),\n_xlpm.Number,TEXT(_xlfn.TEXTAFTER(_xlpm.Contract,\"-\",2),\"0000\"),\n_xlfn.CONCAT(_xlpm.Yr,\"-\",_xlpm.CleanProgram,\"-\",_xlpm.Number))\n),\"\")","v":""},{"$f":"IFERROR(IF(A97=\"\",\"\",\n_xlfn.LET(_xlpm.Contract,'1. Checklist & Certification'!$C$8,\n_xlpm.Yr,TEXT(MOD(_xlfn.TEXTBEFORE(_xlpm.Contract,\"-\"),100),\"00\"),\n_xlpm.Program,_xlfn.TEXTAFTER(_xlfn.TEXTBEFORE(_xlpm.Contract,\"-\",2),\"-\"),\n_xlpm.CleanProgram,_xlfn.XLOOKUP(_xlpm.Program,SpellCheck[Input],SpellCheck[Correction],_xlpm.Program),\n_xlpm.Number,TEXT(_xlfn.TEXTAFTER(_xlpm.Contract,\"-\",2),\"0000\"),\n_xlfn.CONCAT(_xlpm.Yr,\"-\",_xlpm.CleanProgram,\"-\",_xlpm.Number))\n),\"\")","v":""},{"$f":"IFERROR(IF(A97=\"\",\"\",\n_xlfn.LET(_xlpm.Contract,'1. Checklist & Certification'!$F$7,\n_xlpm.Yr,TEXT(MOD(_xlfn.TEXTBEFORE(_xlpm.Contract,\"-\"),100),\"00\"),\n_xlpm.Program,_xlfn.TEXTAFTER(_xlfn.TEXTBEFORE(_xlpm.Contract,\"-\",2),\"-\"),\n_xlpm.CleanProgram,_xlfn.XLOOKUP(_xlpm.Program,SpellCheck[Input],SpellCheck[Correction],_xlpm.Program),\n_xlpm.Number,TEXT(_xlfn.TEXTAFTER(_xlpm.Contract,\"-\",2),\"0000\"),\n_xlfn.CONCAT(_xlpm.Yr,\"-\",_xlpm.CleanProgram,\"-\",_xlpm.Number))\n),\"\")","v":""},{"$f":"IFERROR(IF(A97=\"\",\"\",\n_xlfn.LET(_xlpm.Contract,'1. Checklist & Certification'!$F$8,\n_xlpm.Yr,TEXT(MOD(_xlfn.TEXTBEFORE(_xlpm.Contract,\"-\"),100),\"00\"),\n_xlpm.Program,_xlfn.TEXTAFTER(_xlfn.TEXTBEFORE(_xlpm.Contract,\"-\",2),\"-\"),\n_xlpm.CleanProgram,_xlfn.XLOOKUP(_xlpm.Program,SpellCheck[Input],SpellCheck[Correction],_xlpm.Program),\n_xlpm.Number,TEXT(_xlfn.TEXTAFTER(_xlpm.Contract,\"-\",2),\"0000\"),\n_xlfn.CONCAT(_xlpm.Yr,\"-\",_xlpm.CleanProgram,\"-\",_xlpm.Number))\n),\"\")","v":""},{"$f":"IF(A97=\"\",\"\",'1. Checklist & Certification'!$B$9)","v":""},{"$f":"IF(A97=\"\",\"\",'1. Checklist & Certification'!$F$9)","v":""},{"$f":"IF(A97=\"\",\"\",'1. Checklist & Certification'!$C$10)","v":""},{"$f":"IF(A97=\"\",\"\",'1. Checklist & Certification'!$C$11)","v":""},{"$f":"IF(A97=\"\",\"\",'1. Checklist & Certification'!$C$12)","v":""},{"$f":"IF(A97=\"\",\"\",'1. Checklist & Certification'!$B$14)","v":""},{"$f":"IF(A97=\"\",\"\",'1. Checklist & Certification'!$E$14)","v":""},{"$f":"IF(B97=\"\",\"\",'1. Checklist & Certification'!$G$14)","v":""},{"$f":"IF(A97=\"\",\"\",'MHP Family Income & Rent Limits'!$B$3)","v":""},{"$f":"IF(A97=\"\",\"\",'MHP Family Income & Rent Limits'!$J$3)","v":""},{"$f":"IF(A97=\"\",\"\",'MHP Family Income & Rent Limits'!$E$4)","v":""},{"$f":"IF(A97=\"\",\"\",'MHP Family Income & Rent Limits'!$C$7)","v":""},{"$f":"IF(A97=\"\",\"\",'MHP Family Income & Rent Limits'!$F$8)","v":""},{"$f":"IF(A97=\"\",\"\",'1. Checklist & Certification'!$G$4)","v":""},{"$f":"IF(A97=\"\",\"\",'1. Checklist & Certification'!$K$39)","v":""},{"$f":"IF(A97=\"\",\"\",'1. Checklist & Certification'!$K$43)","v":""},{"$f":"IF(A97=\"\",\"\",'1. Checklist & Certification'!$K$45)","v":""},{"$f":"IF(A97=\"\",\"\",'1. Checklist & Certification'!$K$49)","v":""},{"$f":"IF(A97=\"\",\"\",'1. Checklist & Certification'!$K$62)","v":""},{"$f":"IF(A97=\"\",\"\",'1. Checklist & Certification'!$E$66)","v":""},{"$f":"IF(A97=\"\",\"\",'1. Checklist & Certification'!$E$67)","v":""},{"$f":"IF(A97=\"\",\"\",'1. Checklist & Certification'!$E$68)","v":""},{"$f":"IF(A97=\"\",\"\",'1. Checklist & Certification'!$G$66)","v":""},{"$f":"IF(A97=\"\",\"\",'1. Checklist & Certification'!$H$66)","v":""},{"$f":"IF(A97=\"\",\"\",'1. Checklist & Certification'!$I$66)","v":""},{"$f":"IF(A97=\"\",\"\",'1. Checklist & Certification'!$I$67)","v":""},{"$f":"IF(A97=\"\",\"\",'1. Checklist & Certification'!$I$68)","v":""},{"$f":"IF(A97=\"\",\"\",'1. Checklist & Certification'!$B$69)","v":""},{"$f":"IF(A97=\"\",\"\",'1. Checklist & Certification'!$C$69)","v":""},{"$f":"IF(A97=\"\",\"\",'1. Checklist & Certification'!$F$69)","v":""},{"$f":"IF(A97=\"\",\"\",'1. Checklist & Certification'!$G$69)","v":""},{"$f":"IF(A97=\"\",\"\",'1. Checklist & Certification'!$J$69)","v":""},{"$f":"IF(A97=\"\",\"\",'1. Checklist & Certification'!$K$69)","v":""},null,null,{"$f":"IF(AND(OR('1. Checklist & Certification'!$M$16=1,'1. Checklist & Certification'!$M$19=2),AO97>0,B97=\"\",I97>0,AQ97<I97,AV97<>\"Sec 8-Project\"),\"X\",IF(AND(OR('1. Checklist & Certification'!$M$20=4,'1. Checklist & Certification'!$M$21=5,'1. Checklist & Certification'!$M$22=7),AO97>0,B97=\"\",I97>0,K97<I97),\"X\",\"\"))","v":""},{"$f":"IF(A97=\"\",\"\",IF(SUMPRODUCT(-- (ISNUMBER(SEARCH({\"*AHSC*\",\"*FMTW*\",\"*FWHG*\",\"*GHI*\",\"*HHC*\",\"*HLCP*\",\"*HOME*\",\"*LPR*\",\"*MHP*\",\"*NHTF*\",\"*NSP*\",\"*PRP*\",\"*TOD*\",\"*VHHP*\"},'1. Checklist & Certification'!$L$7)))),\"MHP\",\"Legacy\"))","v":""},",,",null,null,null,{"$f":"IF('1. Checklist & Certification'!$M$20=4,\"Both\",IF(OR('1. Checklist & Certification'!$M$15>0,S97=\"CHRP-R\",U97=\"CHRP-R\",W97=\"CHRP-R\",Y97=\"CHRP-R\"),\"Under\",\"No\"))","v":"No"},"No","No",{"$f":"_xlfn.IFS(D97=\"\",\"\",D97=1,'MHP Family Income & Rent Limits'!$E$17,D97=2,'MHP Family Income & Rent Limits'!$F$17,D97=3,'MHP Family Income & Rent Limits'!$G$17,D97=4,'MHP Family Income & Rent Limits'!$H$17,D97=5,'MHP Family Income & Rent Limits'!$I$17,D97=6,'MHP Family Income & Rent Limits'!$J$17,D97=7,'MHP Family Income & Rent Limits'!$K$17,D97=8,'MHP Family Income & Rent Limits'!$L$17)","v":""},"",{"$f":"IF(OR(A97=0,B97=\"X\"),0,MIN(IF(AA97:AD97<>0,AA97:AD97)))","v":0},{"$f":"IF(OR(H97=\"\",I97=\"\"),0,IF(H97*0.3/12>I97,MIN(H97*0.3/12,I97*1.1)+AP97,I97*(1+(VLOOKUP('1. Checklist & Certification'!$F$9,'HLCP-E Rent Change'!$A$1:$D$59,4,FALSE)))+AP97))","v":0}]
[null,null,null,null,null,null,null,null,null,null,null,null,null,null,null,null,null,null,null,null,null,null,null,null,null,null,0,0,0,0,0,0,0,0,{"$f":"IF(OR(A98=0,B98=\"X\"),0,IF(OR(S98=\"FHDP\",S98=\"RHCP-B\",U98=\"FHDP\",U98=\"RHCP-B\",W98=\"FHDP\",W98=\"RHCP-B\",Y98=\"FHDP\",Y98=\"RHCP-B\"),TRUNC((MIN(I98,K98)*(1+'1. Checklist & Certification'!$K$43)+AP98)),0))","v":0},{"$f":"IF(OR(A98=0,B98=\"X\"),0,IF(OR(S98=\"CHRP-R\",S98=\"SERA\",S98=\"SUHRP\",U98=\"CHRP-R\",U98=\"SERA\",U98=\"SUHRP\",W98=\"CHRP-R\",W98=\"SERA\",W98=\"SUHRP\",Y98=\"CHRP-R\",Y98=\"SERA\",Y98=\"SUHRP\"),TRUNC((MIN(I98,K98)*(1+'1. Checklist & Certification'!$K$49))),0))","v":0},{"$f":"IF(OR(A98=0,B98=\"X\"),0,IF(OR(S98=\"CALDAP\",S98=\"DPRLP\",U98=\"CALDAP\",U98=\"DPRLP\",W98=\"CALDAP\",W98=\"DPRLP\",Y98=\"CALDAP\",Y98=\"DPRLP\"),TRUNC(((MIN(I98,K98))*(1+'1. Checklist & Certification'!$G$4))),0))","v":0},0,0,0,{"$f":"IF(OR(A98=0,B98=\"X\"),0,IF(OR(S98=\"PRP\",S98=\"LPR\",U98=\"PRP\",U98=\"LPR\",W98=\"PRP\",W98=\"LPR\",Y98=\"PRP\",Y98=\"LPR\"),MAX(I98+AP98,MIN(IF(AE98:AN98<>0,AE98:AN98))),MIN(IF(AE98:AN98<>0,AE98:AN98))))","v":0},{"$f":"IF(A98=0,0,IF(AND(OR(S98=\"Mgr\",S98=0),OR(U98=\"Mgr\",U98=0),OR(W98=\"Mgr\",W98=0)),0,IF(LEFT($A98,2)=\"B*\",VLOOKUP($E98,'1. Checklist & Certification'!$D$26:$E$32,2),IF(LEFT($A98,2)=\"C*\",VLOOKUP($E98,'1. Checklist & Certification'!$F$26:$G$32,2),IF(LEFT($A98,2)=\"D*\",VLOOKUP($E98,'1. Checklist & Certification'!$H$26:$I$32,2),IF(LEFT($A98,2)=\"E*\",VLOOKUP($E98,'1. Checklist & Certification'!$J$26:$K$32,2),VLOOKUP($E98,'1. Checklist & Certification'!$A$26:$B$32,2)))))))","v":0},0,0,null,null,null,null,"","",0,0,0,null,{"$f":"IF(A98=\"\",\"\",'1. Checklist & Certification'!$K$1)","v":""},{"$f":"IF(A98=\"\",\"\",'1. Checklist & Certification'!$C$62)","v":""},{"$f":"IF(A98=\"\",\"\",'1. Checklist & Certification'!$C$6)","v":""},{"$f":"IF(A98=\"\",\"\",'1. Checklist & Certification'!$G$5)","v":""},{"$f":"IFERROR(IF(A98=\"\",\"\",\n_xlfn.LET(_xlpm.Contract,'1. Checklist & Certification'!$C$7,\n_xlpm.Yr,TEXT(MOD(_xlfn.TEXTBEFORE(_xlpm.Contract,\"-\"),100),\"00\"),\n_xlpm.Program,_xlfn.TEXTAFTER(_xlfn.TEXTBEFORE(_xlpm.Contract,\"-\",2),\"-\"),\n_xlpm.CleanProgram,_xlfn.XLOOKUP(_xlpm.Program,SpellCheck[Input],SpellCheck[Correction],_xlpm.Program),\n_xlpm.Number,TEXT(_xlfn.TEXTAFTER(_xlpm.Contract,\"-\",2),\"0000\"),\n_xlfn.CONCAT(_xlpm.Yr,\"-\",_xlpm.CleanProgram,\"-\",_xlpm.Number))\n),\"\")","v":""},{"$f":"IFERROR(IF(A98=\"\",\"\",\n_xlfn.LET(_xlpm.Contract,'1. Checklist & Certification'!$C$8,\n_xlpm.Yr,TEXT(MOD(_xlfn.TEXTBEFORE(_xlpm.Contract,\"-\"),100),\"00\"),\n_xlpm.Program,_xlfn.TEXTAFTER(_xlfn.TEXTBEFORE(_xlpm.Contract,\"-\",2),\"-\"),\n_xlpm.CleanProgram,_xlfn.XLOOKUP(_xlpm.Program,SpellCheck[Input],SpellCheck[Correction],_xlpm.Program),\n_xlpm.Number,TEXT(_xlfn.TEXTAFTER(_xlpm.Contract,\"-\",2),\"0000\"),\n_xlfn.CONCAT(_xlpm.Yr,\"-\",_xlpm.CleanProgram,\"-\",_xlpm.Number))\n),\"\")","v":""},{"$f":"IFERROR(IF(A98=\"\",\"\",\n_xlfn.LET(_xlpm.Contract,'1. Checklist & Certification'!$F$7,\n_xlpm.Yr,TEXT(MOD(_xlfn.TEXTBEFORE(_xlpm.Contract,\"-\"),100),\"00\"),\n_xlpm.Program,_xlfn.TEXTAFTER(_xlfn.TEXTBEFORE(_xlpm.Contract,\"-\",2),\"-\"),\n_xlpm.CleanProgram,_xlfn.XLOOKUP(_xlpm.Program,SpellCheck[Input],SpellCheck[Correction],_xlpm.Program),\n_xlpm.Number,TEXT(_xlfn.TEXTAFTER(_xlpm.Contract,\"-\",2),\"0000\"),\n_xlfn.CONCAT(_xlpm.Yr,\"-\",_xlpm.CleanProgram,\"-\",_xlpm.Number))\n),\"\")","v":""},{"$f":"IFERROR(IF(A98=\"\",\"\",\n_xlfn.LET(_xlpm.Contract,'1. Checklist & Certification'!$F$8,\n_xlpm.Yr,TEXT(MOD(_xlfn.TEXTBEFORE(_xlpm.Contract,\"-\"),100),\"00\"),\n_xlpm.Program,_xlfn.TEXTAFTER(_xlfn.TEXTBEFORE(_xlpm.Contract,\"-\",2),\"-\"),\n_xlpm.CleanProgram,_xlfn.XLOOKUP(_xlpm.Program,SpellCheck[Input],SpellCheck[Correction],_xlpm.Program),\n_xlpm.Number,TEXT(_xlfn.TEXTAFTER(_xlpm.Contract,\"-\",2),\"0000\"),\n_xlfn.CONCAT(_xlpm.Yr,\"-\",_xlpm.CleanProgram,\"-\",_xlpm.Number))\n),\"\")","v":""},{"$f":"IF(A98=\"\",\"\",'1. Checklist & Certification'!$B$9)","v":""},{"$f":"IF(A98=\"\",\"\",'1. Checklist & Certification'!$F$9)","v":""},{"$f":"IF(A98=\"\",\"\",'1. Checklist & Certification'!$C$10)","v":""},{"$f":"IF(A98=\"\",\"\",'1. Checklist & Certification'!$C$11)","v":""},{"$f":"IF(A98=\"\",\"\",'1. Checklist & Certification'!$C$12)","v":""},{"$f":"IF(A98=\"\",\"\",'1. Checklist & Certification'!$B$14)","v":""},{"$f":"IF(A98=\"\",\"\",'1. Checklist & Certification'!$E$14)","v":""},{"$f":"IF(B98=\"\",\"\",'1. Checklist & Certification'!$G$14)","v":""},{"$f":"IF(A98=\"\",\"\",'MHP Family Income & Rent Limits'!$B$3)","v":""},{"$f":"IF(A98=\"\",\"\",'MHP Family Income & Rent Limits'!$J$3)","v":""},{"$f":"IF(A98=\"\",\"\",'MHP Family Income & Rent Limits'!$E$4)","v":""},{"$f":"IF(A98=\"\",\"\",'MHP Family Income & Rent Limits'!$C$7)","v":""},{"$f":"IF(A98=\"\",\"\",'MHP Family Income & Rent Limits'!$F$8)","v":""},{"$f":"IF(A98=\"\",\"\",'1. Checklist & Certification'!$G$4)","v":""},{"$f":"IF(A98=\"\",\"\",'1. Checklist & Certification'!$K$39)","v":""},{"$f":"IF(A98=\"\",\"\",'1. Checklist & Certification'!$K$43)","v":""},{"$f":"IF(A98=\"\",\"\",'1. Checklist & Certification'!$K$45)","v":""},{"$f":"IF(A98=\"\",\"\",'1. Checklist & Certification'!$K$49)","v":""},{"$f":"IF(A98=\"\",\"\",'1. Checklist & Certification'!$K$62)","v":""},{"$f":"IF(A98=\"\",\"\",'1. Checklist & Certification'!$E$66)","v":""},{"$f":"IF(A98=\"\",\"\",'1. Checklist & Certification'!$E$67)","v":""},{"$f":"IF(A98=\"\",\"\",'1. Checklist & Certification'!$E$68)","v":""},{"$f":"IF(A98=\"\",\"\",'1. Checklist & Certification'!$G$66)","v":""},{"$f":"IF(A98=\"\",\"\",'1. Checklist & Certification'!$H$66)","v":""},{"$f":"IF(A98=\"\",\"\",'1. Checklist & Certification'!$I$66)","v":""},{"$f":"IF(A98=\"\",\"\",'1. Checklist & Certification'!$I$67)","v":""},{"$f":"IF(A98=\"\",\"\",'1. Checklist & Certification'!$I$68)","v":""},{"$f":"IF(A98=\"\",\"\",'1. Checklist & Certification'!$B$69)","v":""},{"$f":"IF(A98=\"\",\"\",'1. Checklist & Certification'!$C$69)","v":""},{"$f":"IF(A98=\"\",\"\",'1. Checklist & Certification'!$F$69)","v":""},{"$f":"IF(A98=\"\",\"\",'1. Checklist & Certification'!$G$69)","v":""},{"$f":"IF(A98=\"\",\"\",'1. Checklist & Certification'!$J$69)","v":""},{"$f":"IF(A98=\"\",\"\",'1. Checklist & Certification'!$K$69)","v":""},null,null,{"$f":"IF(AND(OR('1. Checklist & Certification'!$M$16=1,'1. Checklist & Certification'!$M$19=2),AO98>0,B98=\"\",I98>0,AQ98<I98,AV98<>\"Sec 8-Project\"),\"X\",IF(AND(OR('1. Checklist & Certification'!$M$20=4,'1. Checklist & Certification'!$M$21=5,'1. Checklist & Certification'!$M$22=7),AO98>0,B98=\"\",I98>0,K98<I98),\"X\",\"\"))","v":""},{"$f":"IF(A98=\"\",\"\",IF(SUMPRODUCT(-- (ISNUMBER(SEARCH({\"*AHSC*\",\"*FMTW*\",\"*FWHG*\",\"*GHI*\",\"*HHC*\",\"*HLCP*\",\"*HOME*\",\"*LPR*\",\"*MHP*\",\"*NHTF*\",\"*NSP*\",\"*PRP*\",\"*TOD*\",\"*VHHP*\"},'1. Checklist & Certification'!$L$7)))),\"MHP\",\"Legacy\"))","v":""},",,",null,null,null,{"$f":"IF('1. Checklist & Certification'!$M$20=4,\"Both\",IF(OR('1. Checklist & Certification'!$M$15>0,S98=\"CHRP-R\",U98=\"CHRP-R\",W98=\"CHRP-R\",Y98=\"CHRP-R\"),\"Under\",\"No\"))","v":"No"},"No","No",{"$f":"_xlfn.IFS(D98=\"\",\"\",D98=1,'MHP Family Income & Rent Limits'!$E$17,D98=2,'MHP Family Income & Rent Limits'!$F$17,D98=3,'MHP Family Income & Rent Limits'!$G$17,D98=4,'MHP Family Income & Rent Limits'!$H$17,D98=5,'MHP Family Income & Rent Limits'!$I$17,D98=6,'MHP Family Income & Rent Limits'!$J$17,D98=7,'MHP Family Income & Rent Limits'!$K$17,D98=8,'MHP Family Income & Rent Limits'!$L$17)","v":""},"",{"$f":"IF(OR(A98=0,B98=\"X\"),0,MIN(IF(AA98:AD98<>0,AA98:AD98)))","v":0},{"$f":"IF(OR(H98=\"\",I98=\"\"),0,IF(H98*0.3/12>I98,MIN(H98*0.3/12,I98*1.1)+AP98,I98*(1+(VLOOKUP('1. Checklist & Certification'!$F$9,'HLCP-E Rent Change'!$A$1:$D$59,4,FALSE)))+AP98))","v":0}]
[null,null,null,null,null,null,null,null,null,null,null,null,null,null,null,null,null,null,null,null,null,null,null,null,null,null,0,0,0,0,0,0,0,0,{"$f":"IF(OR(A99=0,B99=\"X\"),0,IF(OR(S99=\"FHDP\",S99=\"RHCP-B\",U99=\"FHDP\",U99=\"RHCP-B\",W99=\"FHDP\",W99=\"RHCP-B\",Y99=\"FHDP\",Y99=\"RHCP-B\"),TRUNC((MIN(I99,K99)*(1+'1. Checklist & Certification'!$K$43)+AP99)),0))","v":0},{"$f":"IF(OR(A99=0,B99=\"X\"),0,IF(OR(S99=\"CHRP-R\",S99=\"SERA\",S99=\"SUHRP\",U99=\"CHRP-R\",U99=\"SERA\",U99=\"SUHRP\",W99=\"CHRP-R\",W99=\"SERA\",W99=\"SUHRP\",Y99=\"CHRP-R\",Y99=\"SERA\",Y99=\"SUHRP\"),TRUNC((MIN(I99,K99)*(1+'1. Checklist & Certification'!$K$49))),0))","v":0},{"$f":"IF(OR(A99=0,B99=\"X\"),0,IF(OR(S99=\"CALDAP\",S99=\"DPRLP\",U99=\"CALDAP\",U99=\"DPRLP\",W99=\"CALDAP\",W99=\"DPRLP\",Y99=\"CALDAP\",Y99=\"DPRLP\"),TRUNC(((MIN(I99,K99))*(1+'1. Checklist & Certification'!$G$4))),0))","v":0},0,0,0,{"$f":"IF(OR(A99=0,B99=\"X\"),0,IF(OR(S99=\"PRP\",S99=\"LPR\",U99=\"PRP\",U99=\"LPR\",W99=\"PRP\",W99=\"LPR\",Y99=\"PRP\",Y99=\"LPR\"),MAX(I99+AP99,MIN(IF(AE99:AN99<>0,AE99:AN99))),MIN(IF(AE99:AN99<>0,AE99:AN99))))","v":0},{"$f":"IF(A99=0,0,IF(AND(OR(S99=\"Mgr\",S99=0),OR(U99=\"Mgr\",U99=0),OR(W99=\"Mgr\",W99=0)),0,IF(LEFT($A99,2)=\"B*\",VLOOKUP($E99,'1. Checklist & Certification'!$D$26:$E$32,2),IF(LEFT($A99,2)=\"C*\",VLOOKUP($E99,'1. Checklist & Certification'!$F$26:$G$32,2),IF(LEFT($A99,2)=\"D*\",VLOOKUP($E99,'1. Checklist & Certification'!$H$26:$I$32,2),IF(LEFT($A99,2)=\"E*\",VLOOKUP($E99,'1. Checklist & Certification'!$J$26:$K$32,2),VLOOKUP($E99,'1. Checklist & Certification'!$A$26:$B$32,2)))))))","v":0},0,0,null,null,null,null,"","",0,0,0,null,{"$f":"IF(A99=\"\",\"\",'1. Checklist & Certification'!$K$1)","v":""},{"$f":"IF(A99=\"\",\"\",'1. Checklist & Certification'!$C$62)","v":""},{"$f":"IF(A99=\"\",\"\",'1. Checklist & Certification'!$C$6)","v":""},{"$f":"IF(A99=\"\",\"\",'1. Checklist & Certification'!$G$5)","v":""},{"$f":"IFERROR(IF(A99=\"\",\"\",\n_xlfn.LET(_xlpm.Contract,'1. Checklist & Certification'!$C$7,\n_xlpm.Yr,TEXT(MOD(_xlfn.TEXTBEFORE(_xlpm.Contract,\"-\"),100),\"00\"),\n_xlpm.Program,_xlfn.TEXTAFTER(_xlfn.TEXTBEFORE(_xlpm.Contract,\"-\",2),\"-\"),\n_xlpm.CleanProgram,_xlfn.XLOOKUP(_xlpm.Program,SpellCheck[Input],SpellCheck[Correction],_xlpm.Program),\n_xlpm.Number,TEXT(_xlfn.TEXTAFTER(_xlpm.Contract,\"-\",2),\"0000\"),\n_xlfn.CONCAT(_xlpm.Yr,\"-\",_xlpm.CleanProgram,\"-\",_xlpm.Number))\n),\"\")","v":""},{"$f":"IFERROR(IF(A99=\"\",\"\",\n_xlfn.LET(_xlpm.Contract,'1. Checklist & Certification'!$C$8,\n_xlpm.Yr,TEXT(MOD(_xlfn.TEXTBEFORE(_xlpm.Contract,\"-\"),100),\"00\"),\n_xlpm.Program,_xlfn.TEXTAFTER(_xlfn.TEXTBEFORE(_xlpm.Contract,\"-\",2),\"-\"),\n_xlpm.CleanProgram,_xlfn.XLOOKUP(_xlpm.Program,SpellCheck[Input],SpellCheck[Correction],_xlpm.Program),\n_xlpm.Number,TEXT(_xlfn.TEXTAFTER(_xlpm.Contract,\"-\",2),\"0000\"),\n_xlfn.CONCAT(_xlpm.Yr,\"-\",_xlpm.CleanProgram,\"-\",_xlpm.Number))\n),\"\")","v":""},{"$f":"IFERROR(IF(A99=\"\",\"\",\n_xlfn.LET(_xlpm.Contract,'1. Checklist & Certification'!$F$7,\n_xlpm.Yr,TEXT(MOD(_xlfn.TEXTBEFORE(_xlpm.Contract,\"-\"),100),\"00\"),\n_xlpm.Program,_xlfn.TEXTAFTER(_xlfn.TEXTBEFORE(_xlpm.Contract,\"-\",2),\"-\"),\n_xlpm.CleanProgram,_xlfn.XLOOKUP(_xlpm.Program,SpellCheck[Input],SpellCheck[Correction],_xlpm.Program),\n_xlpm.Number,TEXT(_xlfn.TEXTAFTER(_xlpm.Contract,\"-\",2),\"0000\"),\n_xlfn.CONCAT(_xlpm.Yr,\"-\",_xlpm.CleanProgram,\"-\",_xlpm.Number))\n),\"\")","v":""},{"$f":"IFERROR(IF(A99=\"\",\"\",\n_xlfn.LET(_xlpm.Contract,'1. Checklist & Certification'!$F$8,\n_xlpm.Yr,TEXT(MOD(_xlfn.TEXTBEFORE(_xlpm.Contract,\"-\"),100),\"00\"),\n_xlpm.Program,_xlfn.TEXTAFTER(_xlfn.TEXTBEFORE(_xlpm.Contract,\"-\",2),\"-\"),\n_xlpm.CleanProgram,_xlfn.XLOOKUP(_xlpm.Program,SpellCheck[Input],SpellCheck[Correction],_xlpm.Program),\n_xlpm.Number,TEXT(_xlfn.TEXTAFTER(_xlpm.Contract,\"-\",2),\"0000\"),\n_xlfn.CONCAT(_xlpm.Yr,\"-\",_xlpm.CleanProgram,\"-\",_xlpm.Number))\n),\"\")","v":""},{"$f":"IF(A99=\"\",\"\",'1. Checklist & Certification'!$B$9)","v":""},{"$f":"IF(A99=\"\",\"\",'1. Checklist & Certification'!$F$9)","v":""},{"$f":"IF(A99=\"\",\"\",'1. Checklist & Certification'!$C$10)","v":""},{"$f":"IF(A99=\"\",\"\",'1. Checklist & Certification'!$C$11)","v":""},{"$f":"IF(A99=\"\",\"\",'1. Checklist & Certification'!$C$12)","v":""},{"$f":"IF(A99=\"\",\"\",'1. Checklist & Certification'!$B$14)","v":""},{"$f":"IF(A99=\"\",\"\",'1. Checklist & Certification'!$E$14)","v":""},{"$f":"IF(B99=\"\",\"\",'1. Checklist & Certification'!$G$14)","v":""},{"$f":"IF(A99=\"\",\"\",'MHP Family Income & Rent Limits'!$B$3)","v":""},{"$f":"IF(A99=\"\",\"\",'MHP Family Income & Rent Limits'!$J$3)","v":""},{"$f":"IF(A99=\"\",\"\",'MHP Family Income & Rent Limits'!$E$4)","v":""},{"$f":"IF(A99=\"\",\"\",'MHP Family Income & Rent Limits'!$C$7)","v":""},{"$f":"IF(A99=\"\",\"\",'MHP Family Income & Rent Limits'!$F$8)","v":""},{"$f":"IF(A99=\"\",\"\",'1. Checklist & Certification'!$G$4)","v":""},{"$f":"IF(A99=\"\",\"\",'1. Checklist & Certification'!$K$39)","v":""},{"$f":"IF(A99=\"\",\"\",'1. Checklist & Certification'!$K$43)","v":""},{"$f":"IF(A99=\"\",\"\",'1. Checklist & Certification'!$K$45)","v":""},{"$f":"IF(A99=\"\",\"\",'1. Checklist & Certification'!$K$49)","v":""},{"$f":"IF(A99=\"\",\"\",'1. Checklist & Certification'!$K$62)","v":""},{"$f":"IF(A99=\"\",\"\",'1. Checklist & Certification'!$E$66)","v":""},{"$f":"IF(A99=\"\",\"\",'1. Checklist & Certification'!$E$67)","v":""},{"$f":"IF(A99=\"\",\"\",'1. Checklist & Certification'!$E$68)","v":""},{"$f":"IF(A99=\"\",\"\",'1. Checklist & Certification'!$G$66)","v":""},{"$f":"IF(A99=\"\",\"\",'1. Checklist & Certification'!$H$66)","v":""},{"$f":"IF(A99=\"\",\"\",'1. Checklist & Certification'!$I$66)","v":""},{"$f":"IF(A99=\"\",\"\",'1. Checklist & Certification'!$I$67)","v":""},{"$f":"IF(A99=\"\",\"\",'1. Checklist & Certification'!$I$68)","v":""},{"$f":"IF(A99=\"\",\"\",'1. Checklist & Certification'!$B$69)","v":""},{"$f":"IF(A99=\"\",\"\",'1. Checklist & Certification'!$C$69)","v":""},{"$f":"IF(A99=\"\",\"\",'1. Checklist & Certification'!$F$69)","v":""},{"$f":"IF(A99=\"\",\"\",'1. Checklist & Certification'!$G$69)","v":""},{"$f":"IF(A99=\"\",\"\",'1. Checklist & Certification'!$J$69)","v":""},{"$f":"IF(A99=\"\",\"\",'1. Checklist & Certification'!$K$69)","v":""},null,null,{"$f":"IF(AND(OR('1. Checklist & Certification'!$M$16=1,'1. Checklist & Certification'!$M$19=2),AO99>0,B99=\"\",I99>0,AQ99<I99,AV99<>\"Sec 8-Project\"),\"X\",IF(AND(OR('1. Checklist & Certification'!$M$20=4,'1. Checklist & Certification'!$M$21=5,'1. Checklist & Certification'!$M$22=7),AO99>0,B99=\"\",I99>0,K99<I99),\"X\",\"\"))","v":""},{"$f":"IF(A99=\"\",\"\",IF(SUMPRODUCT(-- (ISNUMBER(SEARCH({\"*AHSC*\",\"*FMTW*\",\"*FWHG*\",\"*GHI*\",\"*HHC*\",\"*HLCP*\",\"*HOME*\",\"*LPR*\",\"*MHP*\",\"*NHTF*\",\"*NSP*\",\"*PRP*\",\"*TOD*\",\"*VHHP*\"},'1. Checklist & Certification'!$L$7)))),\"MHP\",\"Legacy\"))","v":""},",,",null,null,null,{"$f":"IF('1. Checklist & Certification'!$M$20=4,\"Both\",IF(OR('1. Checklist & Certification'!$M$15>0,S99=\"CHRP-R\",U99=\"CHRP-R\",W99=\"CHRP-R\",Y99=\"CHRP-R\"),\"Under\",\"No\"))","v":"No"},"No","No",{"$f":"_xlfn.IFS(D99=\"\",\"\",D99=1,'MHP Family Income & Rent Limits'!$E$17,D99=2,'MHP Family Income & Rent Limits'!$F$17,D99=3,'MHP Family Income & Rent Limits'!$G$17,D99=4,'MHP Family Income & Rent Limits'!$H$17,D99=5,'MHP Family Income & Rent Limits'!$I$17,D99=6,'MHP Family Income & Rent Limits'!$J$17,D99=7,'MHP Family Income & Rent Limits'!$K$17,D99=8,'MHP Family Income & Rent Limits'!$L$17)","v":""},"",{"$f":"IF(OR(A99=0,B99=\"X\"),0,MIN(IF(AA99:AD99<>0,AA99:AD99)))","v":0},{"$f":"IF(OR(H99=\"\",I99=\"\"),0,IF(H99*0.3/12>I99,MIN(H99*0.3/12,I99*1.1)+AP99,I99*(1+(VLOOKUP('1. Checklist & Certification'!$F$9,'HLCP-E Rent Change'!$A$1:$D$59,4,FALSE)))+AP99))","v":0}]
[null,null,null,null,null,null,null,null,null,null,null,null,null,null,null,null,null,null,null,null,null,null,null,null,null,null,0,0,0,0,0,0,0,0,{"$f":"IF(OR(A100=0,B100=\"X\"),0,IF(OR(S100=\"FHDP\",S100=\"RHCP-B\",U100=\"FHDP\",U100=\"RHCP-B\",W100=\"FHDP\",W100=\"RHCP-B\",Y100=\"FHDP\",Y100=\"RHCP-B\"),TRUNC((MIN(I100,K100)*(1+'1. Checklist & Certification'!$K$43)+AP100)),0))","v":0},{"$f":"IF(OR(A100=0,B100=\"X\"),0,IF(OR(S100=\"CHRP-R\",S100=\"SERA\",S100=\"SUHRP\",U100=\"CHRP-R\",U100=\"SERA\",U100=\"SUHRP\",W100=\"CHRP-R\",W100=\"SERA\",W100=\"SUHRP\",Y100=\"CHRP-R\",Y100=\"SERA\",Y100=\"SUHRP\"),TRUNC((MIN(I100,K100)*(1+'1. Checklist & Certification'!$K$49))),0))","v":0},{"$f":"IF(OR(A100=0,B100=\"X\"),0,IF(OR(S100=\"CALDAP\",S100=\"DPRLP\",U100=\"CALDAP\",U100=\"DPRLP\",W100=\"CALDAP\",W100=\"DPRLP\",Y100=\"CALDAP\",Y100=\"DPRLP\"),TRUNC(((MIN(I100,K100))*(1+'1. Checklist & Certification'!$G$4))),0))","v":0},0,0,0,{"$f":"IF(OR(A100=0,B100=\"X\"),0,IF(OR(S100=\"PRP\",S100=\"LPR\",U100=\"PRP\",U100=\"LPR\",W100=\"PRP\",W100=\"LPR\",Y100=\"PRP\",Y100=\"LPR\"),MAX(I100+AP100,MIN(IF(AE100:AN100<>0,AE100:AN100))),MIN(IF(AE100:AN100<>0,AE100:AN100))))","v":0},{"$f":"IF(A100=0,0,IF(AND(OR(S100=\"Mgr\",S100=0),OR(U100=\"Mgr\",U100=0),OR(W100=\"Mgr\",W100=0)),0,IF(LEFT($A100,2)=\"B*\",VLOOKUP($E100,'1. Checklist & Certification'!$D$26:$E$32,2),IF(LEFT($A100,2)=\"C*\",VLOOKUP($E100,'1. Checklist & Certification'!$F$26:$G$32,2),IF(LEFT($A100,2)=\"D*\",VLOOKUP($E100,'1. Checklist & Certification'!$H$26:$I$32,2),IF(LEFT($A100,2)=\"E*\",VLOOKUP($E100,'1. Checklist & Certification'!$J$26:$K$32,2),VLOOKUP($E100,'1. Checklist & Certification'!$A$26:$B$32,2)))))))","v":0},0,0,null,null,null,null,"","",0,0,0,null,{"$f":"IF(A100=\"\",\"\",'1. Checklist & Certification'!$K$1)","v":""},{"$f":"IF(A100=\"\",\"\",'1. Checklist & Certification'!$C$62)","v":""},{"$f":"IF(A100=\"\",\"\",'1. Checklist & Certification'!$C$6)","v":""},{"$f":"IF(A100=\"\",\"\",'1. Checklist & Certification'!$G$5)","v":""},{"$f":"IFERROR(IF(A100=\"\",\"\",\n_xlfn.LET(_xlpm.Contract,'1. Checklist & Certification'!$C$7,\n_xlpm.Yr,TEXT(MOD(_xlfn.TEXTBEFORE(_xlpm.Contract,\"-\"),100),\"00\"),\n_xlpm.Program,_xlfn.TEXTAFTER(_xlfn.TEXTBEFORE(_xlpm.Contract,\"-\",2),\"-\"),\n_xlpm.CleanProgram,_xlfn.XLOOKUP(_xlpm.Program,SpellCheck[Input],SpellCheck[Correction],_xlpm.Program),\n_xlpm.Number,TEXT(_xlfn.TEXTAFTER(_xlpm.Contract,\"-\",2),\"0000\"),\n_xlfn.CONCAT(_xlpm.Yr,\"-\",_xlpm.CleanProgram,\"-\",_xlpm.Number))\n),\"\")","v":""},{"$f":"IFERROR(IF(A100=\"\",\"\",\n_xlfn.LET(_xlpm.Contract,'1. Checklist & Certification'!$C$8,\n_xlpm.Yr,TEXT(MOD(_xlfn.TEXTBEFORE(_xlpm.Contract,\"-\"),100),\"00\"),\n_xlpm.Program,_xlfn.TEXTAFTER(_xlfn.TEXTBEFORE(_xlpm.Contract,\"-\",2),\"-\"),\n_xlpm.CleanProgram,_xlfn.XLOOKUP(_xlpm.Program,SpellCheck[Input],SpellCheck[Correction],_xlpm.Program),\n_xlpm.Number,TEXT(_xlfn.TEXTAFTER(_xlpm.Contract,\"-\",2),\"0000\"),\n_xlfn.CONCAT(_xlpm.Yr,\"-\",_xlpm.CleanProgram,\"-\",_xlpm.Number))\n),\"\")","v":""},{"$f":"IFERROR(IF(A100=\"\",\"\",\n_xlfn.LET(_xlpm.Contract,'1. Checklist & Certification'!$F$7,\n_xlpm.Yr,TEXT(MOD(_xlfn.TEXTBEFORE(_xlpm.Contract,\"-\"),100),\"00\"),\n_xlpm.Program,_xlfn.TEXTAFTER(_xlfn.TEXTBEFORE(_xlpm.Contract,\"-\",2),\"-\"),\n_xlpm.CleanProgram,_xlfn.XLOOKUP(_xlpm.Program,SpellCheck[Input],SpellCheck[Correction],_xlpm.Program),\n_xlpm.Number,TEXT(_xlfn.TEXTAFTER(_xlpm.Contract,\"-\",2),\"0000\"),\n_xlfn.CONCAT(_xlpm.Yr,\"-\",_xlpm.CleanProgram,\"-\",_xlpm.Number))\n),\"\")","v":""},{"$f":"IFERROR(IF(A100=\"\",\"\",\n_xlfn.LET(_xlpm.Contract,'1. Checklist & Certification'!$F$8,\n_xlpm.Yr,TEXT(MOD(_xlfn.TEXTBEFORE(_xlpm.Contract,\"-\"),100),\"00\"),\n_xlpm.Program,_xlfn.TEXTAFTER(_xlfn.TEXTBEFORE(_xlpm.Contract,\"-\",2),\"-\"),\n_xlpm.CleanProgram,_xlfn.XLOOKUP(_xlpm.Program,SpellCheck[Input],SpellCheck[Correction],_xlpm.Program),\n_xlpm.Number,TEXT(_xlfn.TEXTAFTER(_xlpm.Contract,\"-\",2),\"0000\"),\n_xlfn.CONCAT(_xlpm.Yr,\"-\",_xlpm.CleanProgram,\"-\",_xlpm.Number))\n),\"\")","v":""},{"$f":"IF(A100=\"\",\"\",'1. Checklist & Certification'!$B$9)","v":""},{"$f":"IF(A100=\"\",\"\",'1. Checklist & Certification'!$F$9)","v":""},{"$f":"IF(A100=\"\",\"\",'1. Checklist & Certification'!$C$10)","v":""},{"$f":"IF(A100=\"\",\"\",'1. Checklist & Certification'!$C$11)","v":""},{"$f":"IF(A100=\"\",\"\",'1. Checklist & Certification'!$C$12)","v":""},{"$f":"IF(A100=\"\",\"\",'1. Checklist & Certification'!$B$14)","v":""},{"$f":"IF(A100=\"\",\"\",'1. Checklist & Certification'!$E$14)","v":""},{"$f":"IF(B100=\"\",\"\",'1. Checklist & Certification'!$G$14)","v":""},{"$f":"IF(A100=\"\",\"\",'MHP Family Income & Rent Limits'!$B$3)","v":""},{"$f":"IF(A100=\"\",\"\",'MHP Family Income & Rent Limits'!$J$3)","v":""},{"$f":"IF(A100=\"\",\"\",'MHP Family Income & Rent Limits'!$E$4)","v":""},{"$f":"IF(A100=\"\",\"\",'MHP Family Income & Rent Limits'!$C$7)","v":""},{"$f":"IF(A100=\"\",\"\",'MHP Family Income & Rent Limits'!$F$8)","v":""},{"$f":"IF(A100=\"\",\"\",'1. Checklist & Certification'!$G$4)","v":""},{"$f":"IF(A100=\"\",\"\",'1. Checklist & Certification'!$K$39)","v":""},{"$f":"IF(A100=\"\",\"\",'1. Checklist & Certification'!$K$43)","v":""},{"$f":"IF(A100=\"\",\"\",'1. Checklist & Certification'!$K$45)","v":""},{"$f":"IF(A100=\"\",\"\",'1. Checklist & Certification'!$K$49)","v":""},{"$f":"IF(A100=\"\",\"\",'1. Checklist & Certification'!$K$62)","v":""},{"$f":"IF(A100=\"\",\"\",'1. Checklist & Certification'!$E$66)","v":""},{"$f":"IF(A100=\"\",\"\",'1. Checklist & Certification'!$E$67)","v":""},{"$f":"IF(A100=\"\",\"\",'1. Checklist & Certification'!$E$68)","v":""},{"$f":"IF(A100=\"\",\"\",'1. Checklist & Certification'!$G$66)","v":""},{"$f":"IF(A100=\"\",\"\",'1. Checklist & Certification'!$H$66)","v":""},{"$f":"IF(A100=\"\",\"\",'1. Checklist & Certification'!$I$66)","v":""},{"$f":"IF(A100=\"\",\"\",'1. Checklist & Certification'!$I$67)","v":""},{"$f":"IF(A100=\"\",\"\",'1. Checklist & Certification'!$I$68)","v":""},{"$f":"IF(A100=\"\",\"\",'1. Checklist & Certification'!$B$69)","v":""},{"$f":"IF(A100=\"\",\"\",'1. Checklist & Certification'!$C$69)","v":""},{"$f":"IF(A100=\"\",\"\",'1. Checklist & Certification'!$F$69)","v":""},{"$f":"IF(A100=\"\",\"\",'1. Checklist & Certification'!$G$69)","v":""},{"$f":"IF(A100=\"\",\"\",'1. Checklist & Certification'!$J$69)","v":""},{"$f":"IF(A100=\"\",\"\",'1. Checklist & Certification'!$K$69)","v":""},null,null,{"$f":"IF(AND(OR('1. Checklist & Certification'!$M$16=1,'1. Checklist & Certification'!$M$19=2),AO100>0,B100=\"\",I100>0,AQ100<I100,AV100<>\"Sec 8-Project\"),\"X\",IF(AND(OR('1. Checklist & Certification'!$M$20=4,'1. Checklist & Certification'!$M$21=5,'1. Checklist & Certification'!$M$22=7),AO100>0,B100=\"\",I100>0,K100<I100),\"X\",\"\"))","v":""},{"$f":"IF(A100=\"\",\"\",IF(SUMPRODUCT(-- (ISNUMBER(SEARCH({\"*AHSC*\",\"*FMTW*\",\"*FWHG*\",\"*GHI*\",\"*HHC*\",\"*HLCP*\",\"*HOME*\",\"*LPR*\",\"*MHP*\",\"*NHTF*\",\"*NSP*\",\"*PRP*\",\"*TOD*\",\"*VHHP*\"},'1. Checklist & Certification'!$L$7)))),\"MHP\",\"Legacy\"))","v":""},",,",null,null,null,{"$f":"IF('1. Checklist & Certification'!$M$20=4,\"Both\",IF(OR('1. Checklist & Certification'!$M$15>0,S100=\"CHRP-R\",U100=\"CHRP-R\",W100=\"CHRP-R\",Y100=\"CHRP-R\"),\"Under\",\"No\"))","v":"No"},"No","No",{"$f":"_xlfn.IFS(D100=\"\",\"\",D100=1,'MHP Family Income & Rent Limits'!$E$17,D100=2,'MHP Family Income & Rent Limits'!$F$17,D100=3,'MHP Family Income & Rent Limits'!$G$17,D100=4,'MHP Family Income & Rent Limits'!$H$17,D100=5,'MHP Family Income & Rent Limits'!$I$17,D100=6,'MHP Family Income & Rent Limits'!$J$17,D100=7,'MHP Family Income & Rent Limits'!$K$17,D100=8,'MHP Family Income & Rent Limits'!$L$17)","v":""},"",{"$f":"IF(OR(A100=0,B100=\"X\"),0,MIN(IF(AA100:AD100<>0,AA100:AD100)))","v":0},{"$f":"IF(OR(H100=\"\",I100=\"\"),0,IF(H100*0.3/12>I100,MIN(H100*0.3/12,I100*1.1)+AP100,I100*(1+(VLOOKUP('1. Checklist & Certification'!$F$9,'HLCP-E Rent Change'!$A$1:$D$59,4,FALSE)))+AP100))","v":0}]
[null,null,null,null,null,null,null,null,null,null,null,null,null,null,null,null,null,null,null,null,null,null,null,null,null,null,0,0,0,0,0,0,0,0,{"$f":"IF(OR(A101=0,B101=\"X\"),0,IF(OR(S101=\"FHDP\",S101=\"RHCP-B\",U101=\"FHDP\",U101=\"RHCP-B\",W101=\"FHDP\",W101=\"RHCP-B\",Y101=\"FHDP\",Y101=\"RHCP-B\"),TRUNC((MIN(I101,K101)*(1+'1. Checklist & Certification'!$K$43)+AP101)),0))","v":0},{"$f":"IF(OR(A101=0,B101=\"X\"),0,IF(OR(S101=\"CHRP-R\",S101=\"SERA\",S101=\"SUHRP\",U101=\"CHRP-R\",U101=\"SERA\",U101=\"SUHRP\",W101=\"CHRP-R\",W101=\"SERA\",W101=\"SUHRP\",Y101=\"CHRP-R\",Y101=\"SERA\",Y101=\"SUHRP\"),TRUNC((MIN(I101,K101)*(1+'1. Checklist & Certification'!$K$49))),0))","v":0},{"$f":"IF(OR(A101=0,B101=\"X\"),0,IF(OR(S101=\"CALDAP\",S101=\"DPRLP\",U101=\"CALDAP\",U101=\"DPRLP\",W101=\"CALDAP\",W101=\"DPRLP\",Y101=\"CALDAP\",Y101=\"DPRLP\"),TRUNC(((MIN(I101,K101))*(1+'1. Checklist & Certification'!$G$4))),0))","v":0},0,0,0,{"$f":"IF(OR(A101=0,B101=\"X\"),0,IF(OR(S101=\"PRP\",S101=\"LPR\",U101=\"PRP\",U101=\"LPR\",W101=\"PRP\",W101=\"LPR\",Y101=\"PRP\",Y101=\"LPR\"),MAX(I101+AP101,MIN(IF(AE101:AN101<>0,AE101:AN101))),MIN(IF(AE101:AN101<>0,AE101:AN101))))","v":0},{"$f":"IF(A101=0,0,IF(AND(OR(S101=\"Mgr\",S101=0),OR(U101=\"Mgr\",U101=0),OR(W101=\"Mgr\",W101=0)),0,IF(LEFT($A101,2)=\"B*\",VLOOKUP($E101,'1. Checklist & Certification'!$D$26:$E$32,2),IF(LEFT($A101,2)=\"C*\",VLOOKUP($E101,'1. Checklist & Certification'!$F$26:$G$32,2),IF(LEFT($A101,2)=\"D*\",VLOOKUP($E101,'1. Checklist & Certification'!$H$26:$I$32,2),IF(LEFT($A101,2)=\"E*\",VLOOKUP($E101,'1. Checklist & Certification'!$J$26:$K$32,2),VLOOKUP($E101,'1. Checklist & Certification'!$A$26:$B$32,2)))))))","v":0},0,0,null,null,null,null,"","",0,0,0,null,{"$f":"IF(A101=\"\",\"\",'1. Checklist & Certification'!$K$1)","v":""},{"$f":"IF(A101=\"\",\"\",'1. Checklist & Certification'!$C$62)","v":""},{"$f":"IF(A101=\"\",\"\",'1. Checklist & Certification'!$C$6)","v":""},{"$f":"IF(A101=\"\",\"\",'1. Checklist & Certification'!$G$5)","v":""},{"$f":"IFERROR(IF(A101=\"\",\"\",\n_xlfn.LET(_xlpm.Contract,'1. Checklist & Certification'!$C$7,\n_xlpm.Yr,TEXT(MOD(_xlfn.TEXTBEFORE(_xlpm.Contract,\"-\"),100),\"00\"),\n_xlpm.Program,_xlfn.TEXTAFTER(_xlfn.TEXTBEFORE(_xlpm.Contract,\"-\",2),\"-\"),\n_xlpm.CleanProgram,_xlfn.XLOOKUP(_xlpm.Program,SpellCheck[Input],SpellCheck[Correction],_xlpm.Program),\n_xlpm.Number,TEXT(_xlfn.TEXTAFTER(_xlpm.Contract,\"-\",2),\"0000\"),\n_xlfn.CONCAT(_xlpm.Yr,\"-\",_xlpm.CleanProgram,\"-\",_xlpm.Number))\n),\"\")","v":""},{"$f":"IFERROR(IF(A101=\"\",\"\",\n_xlfn.LET(_xlpm.Contract,'1. Checklist & Certification'!$C$8,\n_xlpm.Yr,TEXT(MOD(_xlfn.TEXTBEFORE(_xlpm.Contract,\"-\"),100),\"00\"),\n_xlpm.Program,_xlfn.TEXTAFTER(_xlfn.TEXTBEFORE(_xlpm.Contract,\"-\",2),\"-\"),\n_xlpm.CleanProgram,_xlfn.XLOOKUP(_xlpm.Program,SpellCheck[Input],SpellCheck[Correction],_xlpm.Program),\n_xlpm.Number,TEXT(_xlfn.TEXTAFTER(_xlpm.Contract,\"-\",2),\"0000\"),\n_xlfn.CONCAT(_xlpm.Yr,\"-\",_xlpm.CleanProgram,\"-\",_xlpm.Number))\n),\"\")","v":""},{"$f":"IFERROR(IF(A101=\"\",\"\",\n_xlfn.LET(_xlpm.Contract,'1. Checklist & Certification'!$F$7,\n_xlpm.Yr,TEXT(MOD(_xlfn.TEXTBEFORE(_xlpm.Contract,\"-\"),100),\"00\"),\n_xlpm.Program,_xlfn.TEXTAFTER(_xlfn.TEXTBEFORE(_xlpm.Contract,\"-\",2),\"-\"),\n_xlpm.CleanProgram,_xlfn.XLOOKUP(_xlpm.Program,SpellCheck[Input],SpellCheck[Correction],_xlpm.Program),\n_xlpm.Number,TEXT(_xlfn.TEXTAFTER(_xlpm.Contract,\"-\",2),\"0000\"),\n_xlfn.CONCAT(_xlpm.Yr,\"-\",_xlpm.CleanProgram,\"-\",_xlpm.Number))\n),\"\")","v":""},{"$f":"IFERROR(IF(A101=\"\",\"\",\n_xlfn.LET(_xlpm.Contract,'1. Checklist & Certification'!$F$8,\n_xlpm.Yr,TEXT(MOD(_xlfn.TEXTBEFORE(_xlpm.Contract,\"-\"),100),\"00\"),\n_xlpm.Program,_xlfn.TEXTAFTER(_xlfn.TEXTBEFORE(_xlpm.Contract,\"-\",2),\"-\"),\n_xlpm.CleanProgram,_xlfn.XLOOKUP(_xlpm.Program,SpellCheck[Input],SpellCheck[Correction],_xlpm.Program),\n_xlpm.Number,TEXT(_xlfn.TEXTAFTER(_xlpm.Contract,\"-\",2),\"0000\"),\n_xlfn.CONCAT(_xlpm.Yr,\"-\",_xlpm.CleanProgram,\"-\",_xlpm.Number))\n),\"\")","v":""},{"$f":"IF(A101=\"\",\"\",'1. Checklist & Certification'!$B$9)","v":""},{"$f":"IF(A101=\"\",\"\",'1. Checklist & Certification'!$F$9)","v":""},{"$f":"IF(A101=\"\",\"\",'1. Checklist & Certification'!$C$10)","v":""},{"$f":"IF(A101=\"\",\"\",'1. Checklist & Certification'!$C$11)","v":""},{"$f":"IF(A101=\"\",\"\",'1. Checklist & Certification'!$C$12)","v":""},{"$f":"IF(A101=\"\",\"\",'1. Checklist & Certification'!$B$14)","v":""},{"$f":"IF(A101=\"\",\"\",'1. Checklist & Certification'!$E$14)","v":""},{"$f":"IF(B101=\"\",\"\",'1. Checklist & Certification'!$G$14)","v":""},{"$f":"IF(A101=\"\",\"\",'MHP Family Income & Rent Limits'!$B$3)","v":""},{"$f":"IF(A101=\"\",\"\",'MHP Family Income & Rent Limits'!$J$3)","v":""},{"$f":"IF(A101=\"\",\"\",'MHP Family Income & Rent Limits'!$E$4)","v":""},{"$f":"IF(A101=\"\",\"\",'MHP Family Income & Rent Limits'!$C$7)","v":""},{"$f":"IF(A101=\"\",\"\",'MHP Family Income & Rent Limits'!$F$8)","v":""},{"$f":"IF(A101=\"\",\"\",'1. Checklist & Certification'!$G$4)","v":""},{"$f":"IF(A101=\"\",\"\",'1. Checklist & Certification'!$K$39)","v":""},{"$f":"IF(A101=\"\",\"\",'1. Checklist & Certification'!$K$43)","v":""},{"$f":"IF(A101=\"\",\"\",'1. Checklist & Certification'!$K$45)","v":""},{"$f":"IF(A101=\"\",\"\",'1. Checklist & Certification'!$K$49)","v":""},{"$f":"IF(A101=\"\",\"\",'1. Checklist & Certification'!$K$62)","v":""},{"$f":"IF(A101=\"\",\"\",'1. Checklist & Certification'!$E$66)","v":""},{"$f":"IF(A101=\"\",\"\",'1. Checklist & Certification'!$E$67)","v":""},{"$f":"IF(A101=\"\",\"\",'1. Checklist & Certification'!$E$68)","v":""},{"$f":"IF(A101=\"\",\"\",'1. Checklist & Certification'!$G$66)","v":""},{"$f":"IF(A101=\"\",\"\",'1. Checklist & Certification'!$H$66)","v":""},{"$f":"IF(A101=\"\",\"\",'1. Checklist & Certification'!$I$66)","v":""},{"$f":"IF(A101=\"\",\"\",'1. Checklist & Certification'!$I$67)","v":""},{"$f":"IF(A101=\"\",\"\",'1. Checklist & Certification'!$I$68)","v":""},{"$f":"IF(A101=\"\",\"\",'1. Checklist & Certification'!$B$69)","v":""},{"$f":"IF(A101=\"\",\"\",'1. Checklist & Certification'!$C$69)","v":""},{"$f":"IF(A101=\"\",\"\",'1. Checklist & Certification'!$F$69)","v":""},{"$f":"IF(A101=\"\",\"\",'1. Checklist & Certification'!$G$69)","v":""},{"$f":"IF(A101=\"\",\"\",'1. Checklist & Certification'!$J$69)","v":""},{"$f":"IF(A101=\"\",\"\",'1. Checklist & Certification'!$K$69)","v":""},null,null,{"$f":"IF(AND(OR('1. Checklist & Certification'!$M$16=1,'1. Checklist & Certification'!$M$19=2),AO101>0,B101=\"\",I101>0,AQ101<I101,AV101<>\"Sec 8-Project\"),\"X\",IF(AND(OR('1. Checklist & Certification'!$M$20=4,'1. Checklist & Certification'!$M$21=5,'1. Checklist & Certification'!$M$22=7),AO101>0,B101=\"\",I101>0,K101<I101),\"X\",\"\"))","v":""},{"$f":"IF(A101=\"\",\"\",IF(SUMPRODUCT(-- (ISNUMBER(SEARCH({\"*AHSC*\",\"*FMTW*\",\"*FWHG*\",\"*GHI*\",\"*HHC*\",\"*HLCP*\",\"*HOME*\",\"*LPR*\",\"*MHP*\",\"*NHTF*\",\"*NSP*\",\"*PRP*\",\"*TOD*\",\"*VHHP*\"},'1. Checklist & Certification'!$L$7)))),\"MHP\",\"Legacy\"))","v":""},",,",null,null,null,{"$f":"IF('1. Checklist & Certification'!$M$20=4,\"Both\",IF(OR('1. Checklist & Certification'!$M$15>0,S101=\"CHRP-R\",U101=\"CHRP-R\",W101=\"CHRP-R\",Y101=\"CHRP-R\"),\"Under\",\"No\"))","v":"No"},"No","No",{"$f":"_xlfn.IFS(D101=\"\",\"\",D101=1,'MHP Family Income & Rent Limits'!$E$17,D101=2,'MHP Family Income & Rent Limits'!$F$17,D101=3,'MHP Family Income & Rent Limits'!$G$17,D101=4,'MHP Family Income & Rent Limits'!$H$17,D101=5,'MHP Family Income & Rent Limits'!$I$17,D101=6,'MHP Family Income & Rent Limits'!$J$17,D101=7,'MHP Family Income & Rent Limits'!$K$17,D101=8,'MHP Family Income & Rent Limits'!$L$17)","v":""},"",{"$f":"IF(OR(A101=0,B101=\"X\"),0,MIN(IF(AA101:AD101<>0,AA101:AD101)))","v":0},{"$f":"IF(OR(H101=\"\",I101=\"\"),0,IF(H101*0.3/12>I101,MIN(H101*0.3/12,I101*1.1)+AP101,I101*(1+(VLOOKUP('1. Checklist & Certification'!$F$9,'HLCP-E Rent Change'!$A$1:$D$59,4,FALSE)))+AP101))","v":0}]
[null,null,null,null,null,null,null,null,null,null,null,null,null,null,null,null,null,null,null,null,null,null,null,null,null,null,0,0,0,0,0,0,0,0,{"$f":"IF(OR(A102=0,B102=\"X\"),0,IF(OR(S102=\"FHDP\",S102=\"RHCP-B\",U102=\"FHDP\",U102=\"RHCP-B\",W102=\"FHDP\",W102=\"RHCP-B\",Y102=\"FHDP\",Y102=\"RHCP-B\"),TRUNC((MIN(I102,K102)*(1+'1. Checklist & Certification'!$K$43)+AP102)),0))","v":0},{"$f":"IF(OR(A102=0,B102=\"X\"),0,IF(OR(S102=\"CHRP-R\",S102=\"SERA\",S102=\"SUHRP\",U102=\"CHRP-R\",U102=\"SERA\",U102=\"SUHRP\",W102=\"CHRP-R\",W102=\"SERA\",W102=\"SUHRP\",Y102=\"CHRP-R\",Y102=\"SERA\",Y102=\"SUHRP\"),TRUNC((MIN(I102,K102)*(1+'1. Checklist & Certification'!$K$49))),0))","v":0},{"$f":"IF(OR(A102=0,B102=\"X\"),0,IF(OR(S102=\"CALDAP\",S102=\"DPRLP\",U102=\"CALDAP\",U102=\"DPRLP\",W102=\"CALDAP\",W102=\"DPRLP\",Y102=\"CALDAP\",Y102=\"DPRLP\"),TRUNC(((MIN(I102,K102))*(1+'1. Checklist & Certification'!$G$4))),0))","v":0},0,0,0,{"$f":"IF(OR(A102=0,B102=\"X\"),0,IF(OR(S102=\"PRP\",S102=\"LPR\",U102=\"PRP\",U102=\"LPR\",W102=\"PRP\",W102=\"LPR\",Y102=\"PRP\",Y102=\"LPR\"),MAX(I102+AP102,MIN(IF(AE102:AN102<>0,AE102:AN102))),MIN(IF(AE102:AN102<>0,AE102:AN102))))","v":0},{"$f":"IF(A102=0,0,IF(AND(OR(S102=\"Mgr\",S102=0),OR(U102=\"Mgr\",U102=0),OR(W102=\"Mgr\",W102=0)),0,IF(LEFT($A102,2)=\"B*\",VLOOKUP($E102,'1. Checklist & Certification'!$D$26:$E$32,2),IF(LEFT($A102,2)=\"C*\",VLOOKUP($E102,'1. Checklist & Certification'!$F$26:$G$32,2),IF(LEFT($A102,2)=\"D*\",VLOOKUP($E102,'1. Checklist & Certification'!$H$26:$I$32,2),IF(LEFT($A102,2)=\"E*\",VLOOKUP($E102,'1. Checklist & Certification'!$J$26:$K$32,2),VLOOKUP($E102,'1. Checklist & Certification'!$A$26:$B$32,2)))))))","v":0},0,0,null,null,null,null,"","",0,0,0,null,{"$f":"IF(A102=\"\",\"\",'1. Checklist & Certification'!$K$1)","v":""},{"$f":"IF(A102=\"\",\"\",'1. Checklist & Certification'!$C$62)","v":""},{"$f":"IF(A102=\"\",\"\",'1. Checklist & Certification'!$C$6)","v":""},{"$f":"IF(A102=\"\",\"\",'1. Checklist & Certification'!$G$5)","v":""},{"$f":"IFERROR(IF(A102=\"\",\"\",\n_xlfn.LET(_xlpm.Contract,'1. Checklist & Certification'!$C$7,\n_xlpm.Yr,TEXT(MOD(_xlfn.TEXTBEFORE(_xlpm.Contract,\"-\"),100),\"00\"),\n_xlpm.Program,_xlfn.TEXTAFTER(_xlfn.TEXTBEFORE(_xlpm.Contract,\"-\",2),\"-\"),\n_xlpm.CleanProgram,_xlfn.XLOOKUP(_xlpm.Program,SpellCheck[Input],SpellCheck[Correction],_xlpm.Program),\n_xlpm.Number,TEXT(_xlfn.TEXTAFTER(_xlpm.Contract,\"-\",2),\"0000\"),\n_xlfn.CONCAT(_xlpm.Yr,\"-\",_xlpm.CleanProgram,\"-\",_xlpm.Number))\n),\"\")","v":""},{"$f":"IFERROR(IF(A102=\"\",\"\",\n_xlfn.LET(_xlpm.Contract,'1. Checklist & Certification'!$C$8,\n_xlpm.Yr,TEXT(MOD(_xlfn.TEXTBEFORE(_xlpm.Contract,\"-\"),100),\"00\"),\n_xlpm.Program,_xlfn.TEXTAFTER(_xlfn.TEXTBEFORE(_xlpm.Contract,\"-\",2),\"-\"),\n_xlpm.CleanProgram,_xlfn.XLOOKUP(_xlpm.Program,SpellCheck[Input],SpellCheck[Correction],_xlpm.Program),\n_xlpm.Number,TEXT(_xlfn.TEXTAFTER(_xlpm.Contract,\"-\",2),\"0000\"),\n_xlfn.CONCAT(_xlpm.Yr,\"-\",_xlpm.CleanProgram,\"-\",_xlpm.Number))\n),\"\")","v":""},{"$f":"IFERROR(IF(A102=\"\",\"\",\n_xlfn.LET(_xlpm.Contract,'1. Checklist & Certification'!$F$7,\n_xlpm.Yr,TEXT(MOD(_xlfn.TEXTBEFORE(_xlpm.Contract,\"-\"),100),\"00\"),\n_xlpm.Program,_xlfn.TEXTAFTER(_xlfn.TEXTBEFORE(_xlpm.Contract,\"-\",2),\"-\"),\n_xlpm.CleanProgram,_xlfn.XLOOKUP(_xlpm.Program,SpellCheck[Input],SpellCheck[Correction],_xlpm.Program),\n_xlpm.Number,TEXT(_xlfn.TEXTAFTER(_xlpm.Contract,\"-\",2),\"0000\"),\n_xlfn.CONCAT(_xlpm.Yr,\"-\",_xlpm.CleanProgram,\"-\",_xlpm.Number))\n),\"\")","v":""},{"$f":"IFERROR(IF(A102=\"\",\"\",\n_xlfn.LET(_xlpm.Contract,'1. Checklist & Certification'!$F$8,\n_xlpm.Yr,TEXT(MOD(_xlfn.TEXTBEFORE(_xlpm.Contract,\"-\"),100),\"00\"),\n_xlpm.Program,_xlfn.TEXTAFTER(_xlfn.TEXTBEFORE(_xlpm.Contract,\"-\",2),\"-\"),\n_xlpm.CleanProgram,_xlfn.XLOOKUP(_xlpm.Program,SpellCheck[Input],SpellCheck[Correction],_xlpm.Program),\n_xlpm.Number,TEXT(_xlfn.TEXTAFTER(_xlpm.Contract,\"-\",2),\"0000\"),\n_xlfn.CONCAT(_xlpm.Yr,\"-\",_xlpm.CleanProgram,\"-\",_xlpm.Number))\n),\"\")","v":""},{"$f":"IF(A102=\"\",\"\",'1. Checklist & Certification'!$B$9)","v":""},{"$f":"IF(A102=\"\",\"\",'1. Checklist & Certification'!$F$9)","v":""},{"$f":"IF(A102=\"\",\"\",'1. Checklist & Certification'!$C$10)","v":""},{"$f":"IF(A102=\"\",\"\",'1. Checklist & Certification'!$C$11)","v":""},{"$f":"IF(A102=\"\",\"\",'1. Checklist & Certification'!$C$12)","v":""},{"$f":"IF(A102=\"\",\"\",'1. Checklist & Certification'!$B$14)","v":""},{"$f":"IF(A102=\"\",\"\",'1. Checklist & Certification'!$E$14)","v":""},{"$f":"IF(B102=\"\",\"\",'1. Checklist & Certification'!$G$14)","v":""},{"$f":"IF(A102=\"\",\"\",'MHP Family Income & Rent Limits'!$B$3)","v":""},{"$f":"IF(A102=\"\",\"\",'MHP Family Income & Rent Limits'!$J$3)","v":""},{"$f":"IF(A102=\"\",\"\",'MHP Family Income & Rent Limits'!$E$4)","v":""},{"$f":"IF(A102=\"\",\"\",'MHP Family Income & Rent Limits'!$C$7)","v":""},{"$f":"IF(A102=\"\",\"\",'MHP Family Income & Rent Limits'!$F$8)","v":""},{"$f":"IF(A102=\"\",\"\",'1. Checklist & Certification'!$G$4)","v":""},{"$f":"IF(A102=\"\",\"\",'1. Checklist & Certification'!$K$39)","v":""},{"$f":"IF(A102=\"\",\"\",'1. Checklist & Certification'!$K$43)","v":""},{"$f":"IF(A102=\"\",\"\",'1. Checklist & Certification'!$K$45)","v":""},{"$f":"IF(A102=\"\",\"\",'1. Checklist & Certification'!$K$49)","v":""},{"$f":"IF(A102=\"\",\"\",'1. Checklist & Certification'!$K$62)","v":""},{"$f":"IF(A102=\"\",\"\",'1. Checklist & Certification'!$E$66)","v":""},{"$f":"IF(A102=\"\",\"\",'1. Checklist & Certification'!$E$67)","v":""},{"$f":"IF(A102=\"\",\"\",'1. Checklist & Certification'!$E$68)","v":""},{"$f":"IF(A102=\"\",\"\",'1. Checklist & Certification'!$G$66)","v":""},{"$f":"IF(A102=\"\",\"\",'1. Checklist & Certification'!$H$66)","v":""},{"$f":"IF(A102=\"\",\"\",'1. Checklist & Certification'!$I$66)","v":""},{"$f":"IF(A102=\"\",\"\",'1. Checklist & Certification'!$I$67)","v":""},{"$f":"IF(A102=\"\",\"\",'1. Checklist & Certification'!$I$68)","v":""},{"$f":"IF(A102=\"\",\"\",'1. Checklist & Certification'!$B$69)","v":""},{"$f":"IF(A102=\"\",\"\",'1. Checklist & Certification'!$C$69)","v":""},{"$f":"IF(A102=\"\",\"\",'1. Checklist & Certification'!$F$69)","v":""},{"$f":"IF(A102=\"\",\"\",'1. Checklist & Certification'!$G$69)","v":""},{"$f":"IF(A102=\"\",\"\",'1. Checklist & Certification'!$J$69)","v":""},{"$f":"IF(A102=\"\",\"\",'1. Checklist & Certification'!$K$69)","v":""},null,null,{"$f":"IF(AND(OR('1. Checklist & Certification'!$M$16=1,'1. Checklist & Certification'!$M$19=2),AO102>0,B102=\"\",I102>0,AQ102<I102,AV102<>\"Sec 8-Project\"),\"X\",IF(AND(OR('1. Checklist & Certification'!$M$20=4,'1. Checklist & Certification'!$M$21=5,'1. Checklist & Certification'!$M$22=7),AO102>0,B102=\"\",I102>0,K102<I102),\"X\",\"\"))","v":""},{"$f":"IF(A102=\"\",\"\",IF(SUMPRODUCT(-- (ISNUMBER(SEARCH({\"*AHSC*\",\"*FMTW*\",\"*FWHG*\",\"*GHI*\",\"*HHC*\",\"*HLCP*\",\"*HOME*\",\"*LPR*\",\"*MHP*\",\"*NHTF*\",\"*NSP*\",\"*PRP*\",\"*TOD*\",\"*VHHP*\"},'1. Checklist & Certification'!$L$7)))),\"MHP\",\"Legacy\"))","v":""},",,",null,null,null,{"$f":"IF('1. Checklist & Certification'!$M$20=4,\"Both\",IF(OR('1. Checklist & Certification'!$M$15>0,S102=\"CHRP-R\",U102=\"CHRP-R\",W102=\"CHRP-R\",Y102=\"CHRP-R\"),\"Under\",\"No\"))","v":"No"},"No","No",{"$f":"_xlfn.IFS(D102=\"\",\"\",D102=1,'MHP Family Income & Rent Limits'!$E$17,D102=2,'MHP Family Income & Rent Limits'!$F$17,D102=3,'MHP Family Income & Rent Limits'!$G$17,D102=4,'MHP Family Income & Rent Limits'!$H$17,D102=5,'MHP Family Income & Rent Limits'!$I$17,D102=6,'MHP Family Income & Rent Limits'!$J$17,D102=7,'MHP Family Income & Rent Limits'!$K$17,D102=8,'MHP Family Income & Rent Limits'!$L$17)","v":""},"",{"$f":"IF(OR(A102=0,B102=\"X\"),0,MIN(IF(AA102:AD102<>0,AA102:AD102)))","v":0},{"$f":"IF(OR(H102=\"\",I102=\"\"),0,IF(H102*0.3/12>I102,MIN(H102*0.3/12,I102*1.1)+AP102,I102*(1+(VLOOKUP('1. Checklist & Certification'!$F$9,'HLCP-E Rent Change'!$A$1:$D$59,4,FALSE)))+AP102))","v":0}]
[null,null,null,null,null,null,null,null,null,null,null,null,null,null,null,null,null,null,null,null,null,null,null,null,null,null,0,0,0,0,0,0,0,0,{"$f":"IF(OR(A103=0,B103=\"X\"),0,IF(OR(S103=\"FHDP\",S103=\"RHCP-B\",U103=\"FHDP\",U103=\"RHCP-B\",W103=\"FHDP\",W103=\"RHCP-B\",Y103=\"FHDP\",Y103=\"RHCP-B\"),TRUNC((MIN(I103,K103)*(1+'1. Checklist & Certification'!$K$43)+AP103)),0))","v":0},{"$f":"IF(OR(A103=0,B103=\"X\"),0,IF(OR(S103=\"CHRP-R\",S103=\"SERA\",S103=\"SUHRP\",U103=\"CHRP-R\",U103=\"SERA\",U103=\"SUHRP\",W103=\"CHRP-R\",W103=\"SERA\",W103=\"SUHRP\",Y103=\"CHRP-R\",Y103=\"SERA\",Y103=\"SUHRP\"),TRUNC((MIN(I103,K103)*(1+'1. Checklist & Certification'!$K$49))),0))","v":0},{"$f":"IF(OR(A103=0,B103=\"X\"),0,IF(OR(S103=\"CALDAP\",S103=\"DPRLP\",U103=\"CALDAP\",U103=\"DPRLP\",W103=\"CALDAP\",W103=\"DPRLP\",Y103=\"CALDAP\",Y103=\"DPRLP\"),TRUNC(((MIN(I103,K103))*(1+'1. Checklist & Certification'!$G$4))),0))","v":0},0,0,0,{"$f":"IF(OR(A103=0,B103=\"X\"),0,IF(OR(S103=\"PRP\",S103=\"LPR\",U103=\"PRP\",U103=\"LPR\",W103=\"PRP\",W103=\"LPR\",Y103=\"PRP\",Y103=\"LPR\"),MAX(I103+AP103,MIN(IF(AE103:AN103<>0,AE103:AN103))),MIN(IF(AE103:AN103<>0,AE103:AN103))))","v":0},{"$f":"IF(A103=0,0,IF(AND(OR(S103=\"Mgr\",S103=0),OR(U103=\"Mgr\",U103=0),OR(W103=\"Mgr\",W103=0)),0,IF(LEFT($A103,2)=\"B*\",VLOOKUP($E103,'1. Checklist & Certification'!$D$26:$E$32,2),IF(LEFT($A103,2)=\"C*\",VLOOKUP($E103,'1. Checklist & Certification'!$F$26:$G$32,2),IF(LEFT($A103,2)=\"D*\",VLOOKUP($E103,'1. Checklist & Certification'!$H$26:$I$32,2),IF(LEFT($A103,2)=\"E*\",VLOOKUP($E103,'1. Checklist & Certification'!$J$26:$K$32,2),VLOOKUP($E103,'1. Checklist & Certification'!$A$26:$B$32,2)))))))","v":0},0,0,null,null,null,null,"","",0,0,0,null,{"$f":"IF(A103=\"\",\"\",'1. Checklist & Certification'!$K$1)","v":""},{"$f":"IF(A103=\"\",\"\",'1. Checklist & Certification'!$C$62)","v":""},{"$f":"IF(A103=\"\",\"\",'1. Checklist & Certification'!$C$6)","v":""},{"$f":"IF(A103=\"\",\"\",'1. Checklist & Certification'!$G$5)","v":""},{"$f":"IFERROR(IF(A103=\"\",\"\",\n_xlfn.LET(_xlpm.Contract,'1. Checklist & Certification'!$C$7,\n_xlpm.Yr,TEXT(MOD(_xlfn.TEXTBEFORE(_xlpm.Contract,\"-\"),100),\"00\"),\n_xlpm.Program,_xlfn.TEXTAFTER(_xlfn.TEXTBEFORE(_xlpm.Contract,\"-\",2),\"-\"),\n_xlpm.CleanProgram,_xlfn.XLOOKUP(_xlpm.Program,SpellCheck[Input],SpellCheck[Correction],_xlpm.Program),\n_xlpm.Number,TEXT(_xlfn.TEXTAFTER(_xlpm.Contract,\"-\",2),\"0000\"),\n_xlfn.CONCAT(_xlpm.Yr,\"-\",_xlpm.CleanProgram,\"-\",_xlpm.Number))\n),\"\")","v":""},{"$f":"IFERROR(IF(A103=\"\",\"\",\n_xlfn.LET(_xlpm.Contract,'1. Checklist & Certification'!$C$8,\n_xlpm.Yr,TEXT(MOD(_xlfn.TEXTBEFORE(_xlpm.Contract,\"-\"),100),\"00\"),\n_xlpm.Program,_xlfn.TEXTAFTER(_xlfn.TEXTBEFORE(_xlpm.Contract,\"-\",2),\"-\"),\n_xlpm.CleanProgram,_xlfn.XLOOKUP(_xlpm.Program,SpellCheck[Input],SpellCheck[Correction],_xlpm.Program),\n_xlpm.Number,TEXT(_xlfn.TEXTAFTER(_xlpm.Contract,\"-\",2),\"0000\"),\n_xlfn.CONCAT(_xlpm.Yr,\"-\",_xlpm.CleanProgram,\"-\",_xlpm.Number))\n),\"\")","v":""},{"$f":"IFERROR(IF(A103=\"\",\"\",\n_xlfn.LET(_xlpm.Contract,'1. Checklist & Certification'!$F$7,\n_xlpm.Yr,TEXT(MOD(_xlfn.TEXTBEFORE(_xlpm.Contract,\"-\"),100),\"00\"),\n_xlpm.Program,_xlfn.TEXTAFTER(_xlfn.TEXTBEFORE(_xlpm.Contract,\"-\",2),\"-\"),\n_xlpm.CleanProgram,_xlfn.XLOOKUP(_xlpm.Program,SpellCheck[Input],SpellCheck[Correction],_xlpm.Program),\n_xlpm.Number,TEXT(_xlfn.TEXTAFTER(_xlpm.Contract,\"-\",2),\"0000\"),\n_xlfn.CONCAT(_xlpm.Yr,\"-\",_xlpm.CleanProgram,\"-\",_xlpm.Number))\n),\"\")","v":""},{"$f":"IFERROR(IF(A103=\"\",\"\",\n_xlfn.LET(_xlpm.Contract,'1. Checklist & Certification'!$F$8,\n_xlpm.Yr,TEXT(MOD(_xlfn.TEXTBEFORE(_xlpm.Contract,\"-\"),100),\"00\"),\n_xlpm.Program,_xlfn.TEXTAFTER(_xlfn.TEXTBEFORE(_xlpm.Contract,\"-\",2),\"-\"),\n_xlpm.CleanProgram,_xlfn.XLOOKUP(_xlpm.Program,SpellCheck[Input],SpellCheck[Correction],_xlpm.Program),\n_xlpm.Number,TEXT(_xlfn.TEXTAFTER(_xlpm.Contract,\"-\",2),\"0000\"),\n_xlfn.CONCAT(_xlpm.Yr,\"-\",_xlpm.CleanProgram,\"-\",_xlpm.Number))\n),\"\")","v":""},{"$f":"IF(A103=\"\",\"\",'1. Checklist & Certification'!$B$9)","v":""},{"$f":"IF(A103=\"\",\"\",'1. Checklist & Certification'!$F$9)","v":""},{"$f":"IF(A103=\"\",\"\",'1. Checklist & Certification'!$C$10)","v":""},{"$f":"IF(A103=\"\",\"\",'1. Checklist & Certification'!$C$11)","v":""},{"$f":"IF(A103=\"\",\"\",'1. Checklist & Certification'!$C$12)","v":""},{"$f":"IF(A103=\"\",\"\",'1. Checklist & Certification'!$B$14)","v":""},{"$f":"IF(A103=\"\",\"\",'1. Checklist & Certification'!$E$14)","v":""},{"$f":"IF(B103=\"\",\"\",'1. Checklist & Certification'!$G$14)","v":""},{"$f":"IF(A103=\"\",\"\",'MHP Family Income & Rent Limits'!$B$3)","v":""},{"$f":"IF(A103=\"\",\"\",'MHP Family Income & Rent Limits'!$J$3)","v":""},{"$f":"IF(A103=\"\",\"\",'MHP Family Income & Rent Limits'!$E$4)","v":""},{"$f":"IF(A103=\"\",\"\",'MHP Family Income & Rent Limits'!$C$7)","v":""},{"$f":"IF(A103=\"\",\"\",'MHP Family Income & Rent Limits'!$F$8)","v":""},{"$f":"IF(A103=\"\",\"\",'1. Checklist & Certification'!$G$4)","v":""},{"$f":"IF(A103=\"\",\"\",'1. Checklist & Certification'!$K$39)","v":""},{"$f":"IF(A103=\"\",\"\",'1. Checklist & Certification'!$K$43)","v":""},{"$f":"IF(A103=\"\",\"\",'1. Checklist & Certification'!$K$45)","v":""},{"$f":"IF(A103=\"\",\"\",'1. Checklist & Certification'!$K$49)","v":""},{"$f":"IF(A103=\"\",\"\",'1. Checklist & Certification'!$K$62)","v":""},{"$f":"IF(A103=\"\",\"\",'1. Checklist & Certification'!$E$66)","v":""},{"$f":"IF(A103=\"\",\"\",'1. Checklist & Certification'!$E$67)","v":""},{"$f":"IF(A103=\"\",\"\",'1. Checklist & Certification'!$E$68)","v":""},{"$f":"IF(A103=\"\",\"\",'1. Checklist & Certification'!$G$66)","v":""},{"$f":"IF(A103=\"\",\"\",'1. Checklist & Certification'!$H$66)","v":""},{"$f":"IF(A103=\"\",\"\",'1. Checklist & Certification'!$I$66)","v":""},{"$f":"IF(A103=\"\",\"\",'1. Checklist & Certification'!$I$67)","v":""},{"$f":"IF(A103=\"\",\"\",'1. Checklist & Certification'!$I$68)","v":""},{"$f":"IF(A103=\"\",\"\",'1. Checklist & Certification'!$B$69)","v":""},{"$f":"IF(A103=\"\",\"\",'1. Checklist & Certification'!$C$69)","v":""},{"$f":"IF(A103=\"\",\"\",'1. Checklist & Certification'!$F$69)","v":""},{"$f":"IF(A103=\"\",\"\",'1. Checklist & Certification'!$G$69)","v":""},{"$f":"IF(A103=\"\",\"\",'1. Checklist & Certification'!$J$69)","v":""},{"$f":"IF(A103=\"\",\"\",'1. Checklist & Certification'!$K$69)","v":""},null,null,{"$f":"IF(AND(OR('1. Checklist & Certification'!$M$16=1,'1. Checklist & Certification'!$M$19=2),AO103>0,B103=\"\",I103>0,AQ103<I103,AV103<>\"Sec 8-Project\"),\"X\",IF(AND(OR('1. Checklist & Certification'!$M$20=4,'1. Checklist & Certification'!$M$21=5,'1. Checklist & Certification'!$M$22=7),AO103>0,B103=\"\",I103>0,K103<I103),\"X\",\"\"))","v":""},{"$f":"IF(A103=\"\",\"\",IF(SUMPRODUCT(-- (ISNUMBER(SEARCH({\"*AHSC*\",\"*FMTW*\",\"*FWHG*\",\"*GHI*\",\"*HHC*\",\"*HLCP*\",\"*HOME*\",\"*LPR*\",\"*MHP*\",\"*NHTF*\",\"*NSP*\",\"*PRP*\",\"*TOD*\",\"*VHHP*\"},'1. Checklist & Certification'!$L$7)))),\"MHP\",\"Legacy\"))","v":""},",,",null,null,null,{"$f":"IF('1. Checklist & Certification'!$M$20=4,\"Both\",IF(OR('1. Checklist & Certification'!$M$15>0,S103=\"CHRP-R\",U103=\"CHRP-R\",W103=\"CHRP-R\",Y103=\"CHRP-R\"),\"Under\",\"No\"))","v":"No"},"No","No",{"$f":"_xlfn.IFS(D103=\"\",\"\",D103=1,'MHP Family Income & Rent Limits'!$E$17,D103=2,'MHP Family Income & Rent Limits'!$F$17,D103=3,'MHP Family Income & Rent Limits'!$G$17,D103=4,'MHP Family Income & Rent Limits'!$H$17,D103=5,'MHP Family Income & Rent Limits'!$I$17,D103=6,'MHP Family Income & Rent Limits'!$J$17,D103=7,'MHP Family Income & Rent Limits'!$K$17,D103=8,'MHP Family Income & Rent Limits'!$L$17)","v":""},"",{"$f":"IF(OR(A103=0,B103=\"X\"),0,MIN(IF(AA103:AD103<>0,AA103:AD103)))","v":0},{"$f":"IF(OR(H103=\"\",I103=\"\"),0,IF(H103*0.3/12>I103,MIN(H103*0.3/12,I103*1.1)+AP103,I103*(1+(VLOOKUP('1. Checklist & Certification'!$F$9,'HLCP-E Rent Change'!$A$1:$D$59,4,FALSE)))+AP103))","v":0}]
[null,null,null,null,null,null,null,null,null,null,null,null,null,null,null,null,null,null,null,null,null,null,null,null,null,null,0,0,0,0,0,0,0,0,{"$f":"IF(OR(A104=0,B104=\"X\"),0,IF(OR(S104=\"FHDP\",S104=\"RHCP-B\",U104=\"FHDP\",U104=\"RHCP-B\",W104=\"FHDP\",W104=\"RHCP-B\",Y104=\"FHDP\",Y104=\"RHCP-B\"),TRUNC((MIN(I104,K104)*(1+'1. Checklist & Certification'!$K$43)+AP104)),0))","v":0},{"$f":"IF(OR(A104=0,B104=\"X\"),0,IF(OR(S104=\"CHRP-R\",S104=\"SERA\",S104=\"SUHRP\",U104=\"CHRP-R\",U104=\"SERA\",U104=\"SUHRP\",W104=\"CHRP-R\",W104=\"SERA\",W104=\"SUHRP\",Y104=\"CHRP-R\",Y104=\"SERA\",Y104=\"SUHRP\"),TRUNC((MIN(I104,K104)*(1+'1. Checklist & Certification'!$K$49))),0))","v":0},{"$f":"IF(OR(A104=0,B104=\"X\"),0,IF(OR(S104=\"CALDAP\",S104=\"DPRLP\",U104=\"CALDAP\",U104=\"DPRLP\",W104=\"CALDAP\",W104=\"DPRLP\",Y104=\"CALDAP\",Y104=\"DPRLP\"),TRUNC(((MIN(I104,K104))*(1+'1. Checklist & Certification'!$G$4))),0))","v":0},0,0,0,{"$f":"IF(OR(A104=0,B104=\"X\"),0,IF(OR(S104=\"PRP\",S104=\"LPR\",U104=\"PRP\",U104=\"LPR\",W104=\"PRP\",W104=\"LPR\",Y104=\"PRP\",Y104=\"LPR\"),MAX(I104+AP104,MIN(IF(AE104:AN104<>0,AE104:AN104))),MIN(IF(AE104:AN104<>0,AE104:AN104))))","v":0},{"$f":"IF(A104=0,0,IF(AND(OR(S104=\"Mgr\",S104=0),OR(U104=\"Mgr\",U104=0),OR(W104=\"Mgr\",W104=0)),0,IF(LEFT($A104,2)=\"B*\",VLOOKUP($E104,'1. Checklist & Certification'!$D$26:$E$32,2),IF(LEFT($A104,2)=\"C*\",VLOOKUP($E104,'1. Checklist & Certification'!$F$26:$G$32,2),IF(LEFT($A104,2)=\"D*\",VLOOKUP($E104,'1. Checklist & Certification'!$H$26:$I$32,2),IF(LEFT($A104,2)=\"E*\",VLOOKUP($E104,'1. Checklist & Certification'!$J$26:$K$32,2),VLOOKUP($E104,'1. Checklist & Certification'!$A$26:$B$32,2)))))))","v":0},0,0,null,null,null,null,"","",0,0,0,null,{"$f":"IF(A104=\"\",\"\",'1. Checklist & Certification'!$K$1)","v":""},{"$f":"IF(A104=\"\",\"\",'1. Checklist & Certification'!$C$62)","v":""},{"$f":"IF(A104=\"\",\"\",'1. Checklist & Certification'!$C$6)","v":""},{"$f":"IF(A104=\"\",\"\",'1. Checklist & Certification'!$G$5)","v":""},{"$f":"IFERROR(IF(A104=\"\",\"\",\n_xlfn.LET(_xlpm.Contract,'1. Checklist & Certification'!$C$7,\n_xlpm.Yr,TEXT(MOD(_xlfn.TEXTBEFORE(_xlpm.Contract,\"-\"),100),\"00\"),\n_xlpm.Program,_xlfn.TEXTAFTER(_xlfn.TEXTBEFORE(_xlpm.Contract,\"-\",2),\"-\"),\n_xlpm.CleanProgram,_xlfn.XLOOKUP(_xlpm.Program,SpellCheck[Input],SpellCheck[Correction],_xlpm.Program),\n_xlpm.Number,TEXT(_xlfn.TEXTAFTER(_xlpm.Contract,\"-\",2),\"0000\"),\n_xlfn.CONCAT(_xlpm.Yr,\"-\",_xlpm.CleanProgram,\"-\",_xlpm.Number))\n),\"\")","v":""},{"$f":"IFERROR(IF(A104=\"\",\"\",\n_xlfn.LET(_xlpm.Contract,'1. Checklist & Certification'!$C$8,\n_xlpm.Yr,TEXT(MOD(_xlfn.TEXTBEFORE(_xlpm.Contract,\"-\"),100),\"00\"),\n_xlpm.Program,_xlfn.TEXTAFTER(_xlfn.TEXTBEFORE(_xlpm.Contract,\"-\",2),\"-\"),\n_xlpm.CleanProgram,_xlfn.XLOOKUP(_xlpm.Program,SpellCheck[Input],SpellCheck[Correction],_xlpm.Program),\n_xlpm.Number,TEXT(_xlfn.TEXTAFTER(_xlpm.Contract,\"-\",2),\"0000\"),\n_xlfn.CONCAT(_xlpm.Yr,\"-\",_xlpm.CleanProgram,\"-\",_xlpm.Number))\n),\"\")","v":""},{"$f":"IFERROR(IF(A104=\"\",\"\",\n_xlfn.LET(_xlpm.Contract,'1. Checklist & Certification'!$F$7,\n_xlpm.Yr,TEXT(MOD(_xlfn.TEXTBEFORE(_xlpm.Contract,\"-\"),100),\"00\"),\n_xlpm.Program,_xlfn.TEXTAFTER(_xlfn.TEXTBEFORE(_xlpm.Contract,\"-\",2),\"-\"),\n_xlpm.CleanProgram,_xlfn.XLOOKUP(_xlpm.Program,SpellCheck[Input],SpellCheck[Correction],_xlpm.Program),\n_xlpm.Number,TEXT(_xlfn.TEXTAFTER(_xlpm.Contract,\"-\",2),\"0000\"),\n_xlfn.CONCAT(_xlpm.Yr,\"-\",_xlpm.CleanProgram,\"-\",_xlpm.Number))\n),\"\")","v":""},{"$f":"IFERROR(IF(A104=\"\",\"\",\n_xlfn.LET(_xlpm.Contract,'1. Checklist & Certification'!$F$8,\n_xlpm.Yr,TEXT(MOD(_xlfn.TEXTBEFORE(_xlpm.Contract,\"-\"),100),\"00\"),\n_xlpm.Program,_xlfn.TEXTAFTER(_xlfn.TEXTBEFORE(_xlpm.Contract,\"-\",2),\"-\"),\n_xlpm.CleanProgram,_xlfn.XLOOKUP(_xlpm.Program,SpellCheck[Input],SpellCheck[Correction],_xlpm.Program),\n_xlpm.Number,TEXT(_xlfn.TEXTAFTER(_xlpm.Contract,\"-\",2),\"0000\"),\n_xlfn.CONCAT(_xlpm.Yr,\"-\",_xlpm.CleanProgram,\"-\",_xlpm.Number))\n),\"\")","v":""},{"$f":"IF(A104=\"\",\"\",'1. Checklist & Certification'!$B$9)","v":""},{"$f":"IF(A104=\"\",\"\",'1. Checklist & Certification'!$F$9)","v":""},{"$f":"IF(A104=\"\",\"\",'1. Checklist & Certification'!$C$10)","v":""},{"$f":"IF(A104=\"\",\"\",'1. Checklist & Certification'!$C$11)","v":""},{"$f":"IF(A104=\"\",\"\",'1. Checklist & Certification'!$C$12)","v":""},{"$f":"IF(A104=\"\",\"\",'1. Checklist & Certification'!$B$14)","v":""},{"$f":"IF(A104=\"\",\"\",'1. Checklist & Certification'!$E$14)","v":""},{"$f":"IF(B104=\"\",\"\",'1. Checklist & Certification'!$G$14)","v":""},{"$f":"IF(A104=\"\",\"\",'MHP Family Income & Rent Limits'!$B$3)","v":""},{"$f":"IF(A104=\"\",\"\",'MHP Family Income & Rent Limits'!$J$3)","v":""},{"$f":"IF(A104=\"\",\"\",'MHP Family Income & Rent Limits'!$E$4)","v":""},{"$f":"IF(A104=\"\",\"\",'MHP Family Income & Rent Limits'!$C$7)","v":""},{"$f":"IF(A104=\"\",\"\",'MHP Family Income & Rent Limits'!$F$8)","v":""},{"$f":"IF(A104=\"\",\"\",'1. Checklist & Certification'!$G$4)","v":""},{"$f":"IF(A104=\"\",\"\",'1. Checklist & Certification'!$K$39)","v":""},{"$f":"IF(A104=\"\",\"\",'1. Checklist & Certification'!$K$43)","v":""},{"$f":"IF(A104=\"\",\"\",'1. Checklist & Certification'!$K$45)","v":""},{"$f":"IF(A104=\"\",\"\",'1. Checklist & Certification'!$K$49)","v":""},{"$f":"IF(A104=\"\",\"\",'1. Checklist & Certification'!$K$62)","v":""},{"$f":"IF(A104=\"\",\"\",'1. Checklist & Certification'!$E$66)","v":""},{"$f":"IF(A104=\"\",\"\",'1. Checklist & Certification'!$E$67)","v":""},{"$f":"IF(A104=\"\",\"\",'1. Checklist & Certification'!$E$68)","v":""},{"$f":"IF(A104=\"\",\"\",'1. Checklist & Certification'!$G$66)","v":""},{"$f":"IF(A104=\"\",\"\",'1. Checklist & Certification'!$H$66)","v":""},{"$f":"IF(A104=\"\",\"\",'1. Checklist & Certification'!$I$66)","v":""},{"$f":"IF(A104=\"\",\"\",'1. Checklist & Certification'!$I$67)","v":""},{"$f":"IF(A104=\"\",\"\",'1. Checklist & Certification'!$I$68)","v":""},{"$f":"IF(A104=\"\",\"\",'1. Checklist & Certification'!$B$69)","v":""},{"$f":"IF(A104=\"\",\"\",'1. Checklist & Certification'!$C$69)","v":""},{"$f":"IF(A104=\"\",\"\",'1. Checklist & Certification'!$F$69)","v":""},{"$f":"IF(A104=\"\",\"\",'1. Checklist & Certification'!$G$69)","v":""},{"$f":"IF(A104=\"\",\"\",'1. Checklist & Certification'!$J$69)","v":""},{"$f":"IF(A104=\"\",\"\",'1. Checklist & Certification'!$K$69)","v":""},null,null,{"$f":"IF(AND(OR('1. Checklist & Certification'!$M$16=1,'1. Checklist & Certification'!$M$19=2),AO104>0,B104=\"\",I104>0,AQ104<I104,AV104<>\"Sec 8-Project\"),\"X\",IF(AND(OR('1. Checklist & Certification'!$M$20=4,'1. Checklist & Certification'!$M$21=5,'1. Checklist & Certification'!$M$22=7),AO104>0,B104=\"\",I104>0,K104<I104),\"X\",\"\"))","v":""},{"$f":"IF(A104=\"\",\"\",IF(SUMPRODUCT(-- (ISNUMBER(SEARCH({\"*AHSC*\",\"*FMTW*\",\"*FWHG*\",\"*GHI*\",\"*HHC*\",\"*HLCP*\",\"*HOME*\",\"*LPR*\",\"*MHP*\",\"*NHTF*\",\"*NSP*\",\"*PRP*\",\"*TOD*\",\"*VHHP*\"},'1. Checklist & Certification'!$L$7)))),\"MHP\",\"Legacy\"))","v":""},",,",null,null,null,{"$f":"IF('1. Checklist & Certification'!$M$20=4,\"Both\",IF(OR('1. Checklist & Certification'!$M$15>0,S104=\"CHRP-R\",U104=\"CHRP-R\",W104=\"CHRP-R\",Y104=\"CHRP-R\"),\"Under\",\"No\"))","v":"No"},"No","No",{"$f":"_xlfn.IFS(D104=\"\",\"\",D104=1,'MHP Family Income & Rent Limits'!$E$17,D104=2,'MHP Family Income & Rent Limits'!$F$17,D104=3,'MHP Family Income & Rent Limits'!$G$17,D104=4,'MHP Family Income & Rent Limits'!$H$17,D104=5,'MHP Family Income & Rent Limits'!$I$17,D104=6,'MHP Family Income & Rent Limits'!$J$17,D104=7,'MHP Family Income & Rent Limits'!$K$17,D104=8,'MHP Family Income & Rent Limits'!$L$17)","v":""},"",{"$f":"IF(OR(A104=0,B104=\"X\"),0,MIN(IF(AA104:AD104<>0,AA104:AD104)))","v":0},{"$f":"IF(OR(H104=\"\",I104=\"\"),0,IF(H104*0.3/12>I104,MIN(H104*0.3/12,I104*1.1)+AP104,I104*(1+(VLOOKUP('1. Checklist & Certification'!$F$9,'HLCP-E Rent Change'!$A$1:$D$59,4,FALSE)))+AP104))","v":0}]
[null,null,null,null,null,null,null,null,null,null,null,null,null,null,null,null,null,null,null,null,null,null,null,null,null,null,0,0,0,0,0,0,0,0,{"$f":"IF(OR(A105=0,B105=\"X\"),0,IF(OR(S105=\"FHDP\",S105=\"RHCP-B\",U105=\"FHDP\",U105=\"RHCP-B\",W105=\"FHDP\",W105=\"RHCP-B\",Y105=\"FHDP\",Y105=\"RHCP-B\"),TRUNC((MIN(I105,K105)*(1+'1. Checklist & Certification'!$K$43)+AP105)),0))","v":0},{"$f":"IF(OR(A105=0,B105=\"X\"),0,IF(OR(S105=\"CHRP-R\",S105=\"SERA\",S105=\"SUHRP\",U105=\"CHRP-R\",U105=\"SERA\",U105=\"SUHRP\",W105=\"CHRP-R\",W105=\"SERA\",W105=\"SUHRP\",Y105=\"CHRP-R\",Y105=\"SERA\",Y105=\"SUHRP\"),TRUNC((MIN(I105,K105)*(1+'1. Checklist & Certification'!$K$49))),0))","v":0},{"$f":"IF(OR(A105=0,B105=\"X\"),0,IF(OR(S105=\"CALDAP\",S105=\"DPRLP\",U105=\"CALDAP\",U105=\"DPRLP\",W105=\"CALDAP\",W105=\"DPRLP\",Y105=\"CALDAP\",Y105=\"DPRLP\"),TRUNC(((MIN(I105,K105))*(1+'1. Checklist & Certification'!$G$4))),0))","v":0},0,0,0,{"$f":"IF(OR(A105=0,B105=\"X\"),0,IF(OR(S105=\"PRP\",S105=\"LPR\",U105=\"PRP\",U105=\"LPR\",W105=\"PRP\",W105=\"LPR\",Y105=\"PRP\",Y105=\"LPR\"),MAX(I105+AP105,MIN(IF(AE105:AN105<>0,AE105:AN105))),MIN(IF(AE105:AN105<>0,AE105:AN105))))","v":0},{"$f":"IF(A105=0,0,IF(AND(OR(S105=\"Mgr\",S105=0),OR(U105=\"Mgr\",U105=0),OR(W105=\"Mgr\",W105=0)),0,IF(LEFT($A105,2)=\"B*\",VLOOKUP($E105,'1. Checklist & Certification'!$D$26:$E$32,2),IF(LEFT($A105,2)=\"C*\",VLOOKUP($E105,'1. Checklist & Certification'!$F$26:$G$32,2),IF(LEFT($A105,2)=\"D*\",VLOOKUP($E105,'1. Checklist & Certification'!$H$26:$I$32,2),IF(LEFT($A105,2)=\"E*\",VLOOKUP($E105,'1. Checklist & Certification'!$J$26:$K$32,2),VLOOKUP($E105,'1. Checklist & Certification'!$A$26:$B$32,2)))))))","v":0},0,0,null,null,null,null,"","",0,0,0,null,{"$f":"IF(A105=\"\",\"\",'1. Checklist & Certification'!$K$1)","v":""},{"$f":"IF(A105=\"\",\"\",'1. Checklist & Certification'!$C$62)","v":""},{"$f":"IF(A105=\"\",\"\",'1. Checklist & Certification'!$C$6)","v":""},{"$f":"IF(A105=\"\",\"\",'1. Checklist & Certification'!$G$5)","v":""},{"$f":"IFERROR(IF(A105=\"\",\"\",\n_xlfn.LET(_xlpm.Contract,'1. Checklist & Certification'!$C$7,\n_xlpm.Yr,TEXT(MOD(_xlfn.TEXTBEFORE(_xlpm.Contract,\"-\"),100),\"00\"),\n_xlpm.Program,_xlfn.TEXTAFTER(_xlfn.TEXTBEFORE(_xlpm.Contract,\"-\",2),\"-\"),\n_xlpm.CleanProgram,_xlfn.XLOOKUP(_xlpm.Program,SpellCheck[Input],SpellCheck[Correction],_xlpm.Program),\n_xlpm.Number,TEXT(_xlfn.TEXTAFTER(_xlpm.Contract,\"-\",2),\"0000\"),\n_xlfn.CONCAT(_xlpm.Yr,\"-\",_xlpm.CleanProgram,\"-\",_xlpm.Number))\n),\"\")","v":""},{"$f":"IFERROR(IF(A105=\"\",\"\",\n_xlfn.LET(_xlpm.Contract,'1. Checklist & Certification'!$C$8,\n_xlpm.Yr,TEXT(MOD(_xlfn.TEXTBEFORE(_xlpm.Contract,\"-\"),100),\"00\"),\n_xlpm.Program,_xlfn.TEXTAFTER(_xlfn.TEXTBEFORE(_xlpm.Contract,\"-\",2),\"-\"),\n_xlpm.CleanProgram,_xlfn.XLOOKUP(_xlpm.Program,SpellCheck[Input],SpellCheck[Correction],_xlpm.Program),\n_xlpm.Number,TEXT(_xlfn.TEXTAFTER(_xlpm.Contract,\"-\",2),\"0000\"),\n_xlfn.CONCAT(_xlpm.Yr,\"-\",_xlpm.CleanProgram,\"-\",_xlpm.Number))\n),\"\")","v":""},{"$f":"IFERROR(IF(A105=\"\",\"\",\n_xlfn.LET(_xlpm.Contract,'1. Checklist & Certification'!$F$7,\n_xlpm.Yr,TEXT(MOD(_xlfn.TEXTBEFORE(_xlpm.Contract,\"-\"),100),\"00\"),\n_xlpm.Program,_xlfn.TEXTAFTER(_xlfn.TEXTBEFORE(_xlpm.Contract,\"-\",2),\"-\"),\n_xlpm.CleanProgram,_xlfn.XLOOKUP(_xlpm.Program,SpellCheck[Input],SpellCheck[Correction],_xlpm.Program),\n_xlpm.Number,TEXT(_xlfn.TEXTAFTER(_xlpm.Contract,\"-\",2),\"0000\"),\n_xlfn.CONCAT(_xlpm.Yr,\"-\",_xlpm.CleanProgram,\"-\",_xlpm.Number))\n),\"\")","v":""},{"$f":"IFERROR(IF(A105=\"\",\"\",\n_xlfn.LET(_xlpm.Contract,'1. Checklist & Certification'!$F$8,\n_xlpm.Yr,TEXT(MOD(_xlfn.TEXTBEFORE(_xlpm.Contract,\"-\"),100),\"00\"),\n_xlpm.Program,_xlfn.TEXTAFTER(_xlfn.TEXTBEFORE(_xlpm.Contract,\"-\",2),\"-\"),\n_xlpm.CleanProgram,_xlfn.XLOOKUP(_xlpm.Program,SpellCheck[Input],SpellCheck[Correction],_xlpm.Program),\n_xlpm.Number,TEXT(_xlfn.TEXTAFTER(_xlpm.Contract,\"-\",2),\"0000\"),\n_xlfn.CONCAT(_xlpm.Yr,\"-\",_xlpm.CleanProgram,\"-\",_xlpm.Number))\n),\"\")","v":""},{"$f":"IF(A105=\"\",\"\",'1. Checklist & Certification'!$B$9)","v":""},{"$f":"IF(A105=\"\",\"\",'1. Checklist & Certification'!$F$9)","v":""},{"$f":"IF(A105=\"\",\"\",'1. Checklist & Certification'!$C$10)","v":""},{"$f":"IF(A105=\"\",\"\",'1. Checklist & Certification'!$C$11)","v":""},{"$f":"IF(A105=\"\",\"\",'1. Checklist & Certification'!$C$12)","v":""},{"$f":"IF(A105=\"\",\"\",'1. Checklist & Certification'!$B$14)","v":""},{"$f":"IF(A105=\"\",\"\",'1. Checklist & Certification'!$E$14)","v":""},{"$f":"IF(B105=\"\",\"\",'1. Checklist & Certification'!$G$14)","v":""},{"$f":"IF(A105=\"\",\"\",'MHP Family Income & Rent Limits'!$B$3)","v":""},{"$f":"IF(A105=\"\",\"\",'MHP Family Income & Rent Limits'!$J$3)","v":""},{"$f":"IF(A105=\"\",\"\",'MHP Family Income & Rent Limits'!$E$4)","v":""},{"$f":"IF(A105=\"\",\"\",'MHP Family Income & Rent Limits'!$C$7)","v":""},{"$f":"IF(A105=\"\",\"\",'MHP Family Income & Rent Limits'!$F$8)","v":""},{"$f":"IF(A105=\"\",\"\",'1. Checklist & Certification'!$G$4)","v":""},{"$f":"IF(A105=\"\",\"\",'1. Checklist & Certification'!$K$39)","v":""},{"$f":"IF(A105=\"\",\"\",'1. Checklist & Certification'!$K$43)","v":""},{"$f":"IF(A105=\"\",\"\",'1. Checklist & Certification'!$K$45)","v":""},{"$f":"IF(A105=\"\",\"\",'1. Checklist & Certification'!$K$49)","v":""},{"$f":"IF(A105=\"\",\"\",'1. Checklist & Certification'!$K$62)","v":""},{"$f":"IF(A105=\"\",\"\",'1. Checklist & Certification'!$E$66)","v":""},{"$f":"IF(A105=\"\",\"\",'1. Checklist & Certification'!$E$67)","v":""},{"$f":"IF(A105=\"\",\"\",'1. Checklist & Certification'!$E$68)","v":""},{"$f":"IF(A105=\"\",\"\",'1. Checklist & Certification'!$G$66)","v":""},{"$f":"IF(A105=\"\",\"\",'1. Checklist & Certification'!$H$66)","v":""},{"$f":"IF(A105=\"\",\"\",'1. Checklist & Certification'!$I$66)","v":""},{"$f":"IF(A105=\"\",\"\",'1. Checklist & Certification'!$I$67)","v":""},{"$f":"IF(A105=\"\",\"\",'1. Checklist & Certification'!$I$68)","v":""},{"$f":"IF(A105=\"\",\"\",'1. Checklist & Certification'!$B$69)","v":""},{"$f":"IF(A105=\"\",\"\",'1. Checklist & Certification'!$C$69)","v":""},{"$f":"IF(A105=\"\",\"\",'1. Checklist & Certification'!$F$69)","v":""},{"$f":"IF(A105=\"\",\"\",'1. Checklist & Certification'!$G$69)","v":""},{"$f":"IF(A105=\"\",\"\",'1. Checklist & Certification'!$J$69)","v":""},{"$f":"IF(A105=\"\",\"\",'1. Checklist & Certification'!$K$69)","v":""},null,null,{"$f":"IF(AND(OR('1. Checklist & Certification'!$M$16=1,'1. Checklist & Certification'!$M$19=2),AO105>0,B105=\"\",I105>0,AQ105<I105,AV105<>\"Sec 8-Project\"),\"X\",IF(AND(OR('1. Checklist & Certification'!$M$20=4,'1. Checklist & Certification'!$M$21=5,'1. Checklist & Certification'!$M$22=7),AO105>0,B105=\"\",I105>0,K105<I105),\"X\",\"\"))","v":""},{"$f":"IF(A105=\"\",\"\",IF(SUMPRODUCT(-- (ISNUMBER(SEARCH({\"*AHSC*\",\"*FMTW*\",\"*FWHG*\",\"*GHI*\",\"*HHC*\",\"*HLCP*\",\"*HOME*\",\"*LPR*\",\"*MHP*\",\"*NHTF*\",\"*NSP*\",\"*PRP*\",\"*TOD*\",\"*VHHP*\"},'1. Checklist & Certification'!$L$7)))),\"MHP\",\"Legacy\"))","v":""},",,",null,null,null,{"$f":"IF('1. Checklist & Certification'!$M$20=4,\"Both\",IF(OR('1. Checklist & Certification'!$M$15>0,S105=\"CHRP-R\",U105=\"CHRP-R\",W105=\"CHRP-R\",Y105=\"CHRP-R\"),\"Under\",\"No\"))","v":"No"},"No","No",{"$f":"_xlfn.IFS(D105=\"\",\"\",D105=1,'MHP Family Income & Rent Limits'!$E$17,D105=2,'MHP Family Income & Rent Limits'!$F$17,D105=3,'MHP Family Income & Rent Limits'!$G$17,D105=4,'MHP Family Income & Rent Limits'!$H$17,D105=5,'MHP Family Income & Rent Limits'!$I$17,D105=6,'MHP Family Income & Rent Limits'!$J$17,D105=7,'MHP Family Income & Rent Limits'!$K$17,D105=8,'MHP Family Income & Rent Limits'!$L$17)","v":""},"",{"$f":"IF(OR(A105=0,B105=\"X\"),0,MIN(IF(AA105:AD105<>0,AA105:AD105)))","v":0},{"$f":"IF(OR(H105=\"\",I105=\"\"),0,IF(H105*0.3/12>I105,MIN(H105*0.3/12,I105*1.1)+AP105,I105*(1+(VLOOKUP('1. Checklist & Certification'!$F$9,'HLCP-E Rent Change'!$A$1:$D$59,4,FALSE)))+AP105))","v":0}]
[null,null,null,null,null,null,null,null,null,null,null,null,null,null,null,null,null,null,null,null,null,null,null,null,null,null,0,0,0,0,0,0,0,0,{"$f":"IF(OR(A106=0,B106=\"X\"),0,IF(OR(S106=\"FHDP\",S106=\"RHCP-B\",U106=\"FHDP\",U106=\"RHCP-B\",W106=\"FHDP\",W106=\"RHCP-B\",Y106=\"FHDP\",Y106=\"RHCP-B\"),TRUNC((MIN(I106,K106)*(1+'1. Checklist & Certification'!$K$43)+AP106)),0))","v":0},{"$f":"IF(OR(A106=0,B106=\"X\"),0,IF(OR(S106=\"CHRP-R\",S106=\"SERA\",S106=\"SUHRP\",U106=\"CHRP-R\",U106=\"SERA\",U106=\"SUHRP\",W106=\"CHRP-R\",W106=\"SERA\",W106=\"SUHRP\",Y106=\"CHRP-R\",Y106=\"SERA\",Y106=\"SUHRP\"),TRUNC((MIN(I106,K106)*(1+'1. Checklist & Certification'!$K$49))),0))","v":0},{"$f":"IF(OR(A106=0,B106=\"X\"),0,IF(OR(S106=\"CALDAP\",S106=\"DPRLP\",U106=\"CALDAP\",U106=\"DPRLP\",W106=\"CALDAP\",W106=\"DPRLP\",Y106=\"CALDAP\",Y106=\"DPRLP\"),TRUNC(((MIN(I106,K106))*(1+'1. Checklist & Certification'!$G$4))),0))","v":0},0,0,0,{"$f":"IF(OR(A106=0,B106=\"X\"),0,IF(OR(S106=\"PRP\",S106=\"LPR\",U106=\"PRP\",U106=\"LPR\",W106=\"PRP\",W106=\"LPR\",Y106=\"PRP\",Y106=\"LPR\"),MAX(I106+AP106,MIN(IF(AE106:AN106<>0,AE106:AN106))),MIN(IF(AE106:AN106<>0,AE106:AN106))))","v":0},{"$f":"IF(A106=0,0,IF(AND(OR(S106=\"Mgr\",S106=0),OR(U106=\"Mgr\",U106=0),OR(W106=\"Mgr\",W106=0)),0,IF(LEFT($A106,2)=\"B*\",VLOOKUP($E106,'1. Checklist & Certification'!$D$26:$E$32,2),IF(LEFT($A106,2)=\"C*\",VLOOKUP($E106,'1. Checklist & Certification'!$F$26:$G$32,2),IF(LEFT($A106,2)=\"D*\",VLOOKUP($E106,'1. Checklist & Certification'!$H$26:$I$32,2),IF(LEFT($A106,2)=\"E*\",VLOOKUP($E106,'1. Checklist & Certification'!$J$26:$K$32,2),VLOOKUP($E106,'1. Checklist & Certification'!$A$26:$B$32,2)))))))","v":0},0,0,null,null,null,null,"","",0,0,0,null,{"$f":"IF(A106=\"\",\"\",'1. Checklist & Certification'!$K$1)","v":""},{"$f":"IF(A106=\"\",\"\",'1. Checklist & Certification'!$C$62)","v":""},{"$f":"IF(A106=\"\",\"\",'1. Checklist & Certification'!$C$6)","v":""},{"$f":"IF(A106=\"\",\"\",'1. Checklist & Certification'!$G$5)","v":""},{"$f":"IFERROR(IF(A106=\"\",\"\",\n_xlfn.LET(_xlpm.Contract,'1. Checklist & Certification'!$C$7,\n_xlpm.Yr,TEXT(MOD(_xlfn.TEXTBEFORE(_xlpm.Contract,\"-\"),100),\"00\"),\n_xlpm.Program,_xlfn.TEXTAFTER(_xlfn.TEXTBEFORE(_xlpm.Contract,\"-\",2),\"-\"),\n_xlpm.CleanProgram,_xlfn.XLOOKUP(_xlpm.Program,SpellCheck[Input],SpellCheck[Correction],_xlpm.Program),\n_xlpm.Number,TEXT(_xlfn.TEXTAFTER(_xlpm.Contract,\"-\",2),\"0000\"),\n_xlfn.CONCAT(_xlpm.Yr,\"-\",_xlpm.CleanProgram,\"-\",_xlpm.Number))\n),\"\")","v":""},{"$f":"IFERROR(IF(A106=\"\",\"\",\n_xlfn.LET(_xlpm.Contract,'1. Checklist & Certification'!$C$8,\n_xlpm.Yr,TEXT(MOD(_xlfn.TEXTBEFORE(_xlpm.Contract,\"-\"),100),\"00\"),\n_xlpm.Program,_xlfn.TEXTAFTER(_xlfn.TEXTBEFORE(_xlpm.Contract,\"-\",2),\"-\"),\n_xlpm.CleanProgram,_xlfn.XLOOKUP(_xlpm.Program,SpellCheck[Input],SpellCheck[Correction],_xlpm.Program),\n_xlpm.Number,TEXT(_xlfn.TEXTAFTER(_xlpm.Contract,\"-\",2),\"0000\"),\n_xlfn.CONCAT(_xlpm.Yr,\"-\",_xlpm.CleanProgram,\"-\",_xlpm.Number))\n),\"\")","v":""},{"$f":"IFERROR(IF(A106=\"\",\"\",\n_xlfn.LET(_xlpm.Contract,'1. Checklist & Certification'!$F$7,\n_xlpm.Yr,TEXT(MOD(_xlfn.TEXTBEFORE(_xlpm.Contract,\"-\"),100),\"00\"),\n_xlpm.Program,_xlfn.TEXTAFTER(_xlfn.TEXTBEFORE(_xlpm.Contract,\"-\",2),\"-\"),\n_xlpm.CleanProgram,_xlfn.XLOOKUP(_xlpm.Program,SpellCheck[Input],SpellCheck[Correction],_xlpm.Program),\n_xlpm.Number,TEXT(_xlfn.TEXTAFTER(_xlpm.Contract,\"-\",2),\"0000\"),\n_xlfn.CONCAT(_xlpm.Yr,\"-\",_xlpm.CleanProgram,\"-\",_xlpm.Number))\n),\"\")","v":""},{"$f":"IFERROR(IF(A106=\"\",\"\",\n_xlfn.LET(_xlpm.Contract,'1. Checklist & Certification'!$F$8,\n_xlpm.Yr,TEXT(MOD(_xlfn.TEXTBEFORE(_xlpm.Contract,\"-\"),100),\"00\"),\n_xlpm.Program,_xlfn.TEXTAFTER(_xlfn.TEXTBEFORE(_xlpm.Contract,\"-\",2),\"-\"),\n_xlpm.CleanProgram,_xlfn.XLOOKUP(_xlpm.Program,SpellCheck[Input],SpellCheck[Correction],_xlpm.Program),\n_xlpm.Number,TEXT(_xlfn.TEXTAFTER(_xlpm.Contract,\"-\",2),\"0000\"),\n_xlfn.CONCAT(_xlpm.Yr,\"-\",_xlpm.CleanProgram,\"-\",_xlpm.Number))\n),\"\")","v":""},{"$f":"IF(A106=\"\",\"\",'1. Checklist & Certification'!$B$9)","v":""},{"$f":"IF(A106=\"\",\"\",'1. Checklist & Certification'!$F$9)","v":""},{"$f":"IF(A106=\"\",\"\",'1. Checklist & Certification'!$C$10)","v":""},{"$f":"IF(A106=\"\",\"\",'1. Checklist & Certification'!$C$11)","v":""},{"$f":"IF(A106=\"\",\"\",'1. Checklist & Certification'!$C$12)","v":""},{"$f":"IF(A106=\"\",\"\",'1. Checklist & Certification'!$B$14)","v":""},{"$f":"IF(A106=\"\",\"\",'1. Checklist & Certification'!$E$14)","v":""},{"$f":"IF(B106=\"\",\"\",'1. Checklist & Certification'!$G$14)","v":""},{"$f":"IF(A106=\"\",\"\",'MHP Family Income & Rent Limits'!$B$3)","v":""},{"$f":"IF(A106=\"\",\"\",'MHP Family Income & Rent Limits'!$J$3)","v":""},{"$f":"IF(A106=\"\",\"\",'MHP Family Income & Rent Limits'!$E$4)","v":""},{"$f":"IF(A106=\"\",\"\",'MHP Family Income & Rent Limits'!$C$7)","v":""},{"$f":"IF(A106=\"\",\"\",'MHP Family Income & Rent Limits'!$F$8)","v":""},{"$f":"IF(A106=\"\",\"\",'1. Checklist & Certification'!$G$4)","v":""},{"$f":"IF(A106=\"\",\"\",'1. Checklist & Certification'!$K$39)","v":""},{"$f":"IF(A106=\"\",\"\",'1. Checklist & Certification'!$K$43)","v":""},{"$f":"IF(A106=\"\",\"\",'1. Checklist & Certification'!$K$45)","v":""},{"$f":"IF(A106=\"\",\"\",'1. Checklist & Certification'!$K$49)","v":""},{"$f":"IF(A106=\"\",\"\",'1. Checklist & Certification'!$K$62)","v":""},{"$f":"IF(A106=\"\",\"\",'1. Checklist & Certification'!$E$66)","v":""},{"$f":"IF(A106=\"\",\"\",'1. Checklist & Certification'!$E$67)","v":""},{"$f":"IF(A106=\"\",\"\",'1. Checklist & Certification'!$E$68)","v":""},{"$f":"IF(A106=\"\",\"\",'1. Checklist & Certification'!$G$66)","v":""},{"$f":"IF(A106=\"\",\"\",'1. Checklist & Certification'!$H$66)","v":""},{"$f":"IF(A106=\"\",\"\",'1. Checklist & Certification'!$I$66)","v":""},{"$f":"IF(A106=\"\",\"\",'1. Checklist & Certification'!$I$67)","v":""},{"$f":"IF(A106=\"\",\"\",'1. Checklist & Certification'!$I$68)","v":""},{"$f":"IF(A106=\"\",\"\",'1. Checklist & Certification'!$B$69)","v":""},{"$f":"IF(A106=\"\",\"\",'1. Checklist & Certification'!$C$69)","v":""},{"$f":"IF(A106=\"\",\"\",'1. Checklist & Certification'!$F$69)","v":""},{"$f":"IF(A106=\"\",\"\",'1. Checklist & Certification'!$G$69)","v":""},{"$f":"IF(A106=\"\",\"\",'1. Checklist & Certification'!$J$69)","v":""},{"$f":"IF(A106=\"\",\"\",'1. Checklist & Certification'!$K$69)","v":""},null,null,{"$f":"IF(AND(OR('1. Checklist & Certification'!$M$16=1,'1. Checklist & Certification'!$M$19=2),AO106>0,B106=\"\",I106>0,AQ106<I106,AV106<>\"Sec 8-Project\"),\"X\",IF(AND(OR('1. Checklist & Certification'!$M$20=4,'1. Checklist & Certification'!$M$21=5,'1. Checklist & Certification'!$M$22=7),AO106>0,B106=\"\",I106>0,K106<I106),\"X\",\"\"))","v":""},{"$f":"IF(A106=\"\",\"\",IF(SUMPRODUCT(-- (ISNUMBER(SEARCH({\"*AHSC*\",\"*FMTW*\",\"*FWHG*\",\"*GHI*\",\"*HHC*\",\"*HLCP*\",\"*HOME*\",\"*LPR*\",\"*MHP*\",\"*NHTF*\",\"*NSP*\",\"*PRP*\",\"*TOD*\",\"*VHHP*\"},'1. Checklist & Certification'!$L$7)))),\"MHP\",\"Legacy\"))","v":""},",,",null,null,null,{"$f":"IF('1. Checklist & Certification'!$M$20=4,\"Both\",IF(OR('1. Checklist & Certification'!$M$15>0,S106=\"CHRP-R\",U106=\"CHRP-R\",W106=\"CHRP-R\",Y106=\"CHRP-R\"),\"Under\",\"No\"))","v":"No"},"No","No",{"$f":"_xlfn.IFS(D106=\"\",\"\",D106=1,'MHP Family Income & Rent Limits'!$E$17,D106=2,'MHP Family Income & Rent Limits'!$F$17,D106=3,'MHP Family Income & Rent Limits'!$G$17,D106=4,'MHP Family Income & Rent Limits'!$H$17,D106=5,'MHP Family Income & Rent Limits'!$I$17,D106=6,'MHP Family Income & Rent Limits'!$J$17,D106=7,'MHP Family Income & Rent Limits'!$K$17,D106=8,'MHP Family Income & Rent Limits'!$L$17)","v":""},"",{"$f":"IF(OR(A106=0,B106=\"X\"),0,MIN(IF(AA106:AD106<>0,AA106:AD106)))","v":0},{"$f":"IF(OR(H106=\"\",I106=\"\"),0,IF(H106*0.3/12>I106,MIN(H106*0.3/12,I106*1.1)+AP106,I106*(1+(VLOOKUP('1. Checklist & Certification'!$F$9,'HLCP-E Rent Change'!$A$1:$D$59,4,FALSE)))+AP106))","v":0}]
[null,null,null,null,null,null,null,null,null,null,null,null,null,null,null,null,null,null,null,null,null,null,null,null,null,null,0,0,0,0,0,0,0,0,{"$f":"IF(OR(A107=0,B107=\"X\"),0,IF(OR(S107=\"FHDP\",S107=\"RHCP-B\",U107=\"FHDP\",U107=\"RHCP-B\",W107=\"FHDP\",W107=\"RHCP-B\",Y107=\"FHDP\",Y107=\"RHCP-B\"),TRUNC((MIN(I107,K107)*(1+'1. Checklist & Certification'!$K$43)+AP107)),0))","v":0},{"$f":"IF(OR(A107=0,B107=\"X\"),0,IF(OR(S107=\"CHRP-R\",S107=\"SERA\",S107=\"SUHRP\",U107=\"CHRP-R\",U107=\"SERA\",U107=\"SUHRP\",W107=\"CHRP-R\",W107=\"SERA\",W107=\"SUHRP\",Y107=\"CHRP-R\",Y107=\"SERA\",Y107=\"SUHRP\"),TRUNC((MIN(I107,K107)*(1+'1. Checklist & Certification'!$K$49))),0))","v":0},{"$f":"IF(OR(A107=0,B107=\"X\"),0,IF(OR(S107=\"CALDAP\",S107=\"DPRLP\",U107=\"CALDAP\",U107=\"DPRLP\",W107=\"CALDAP\",W107=\"DPRLP\",Y107=\"CALDAP\",Y107=\"DPRLP\"),TRUNC(((MIN(I107,K107))*(1+'1. Checklist & Certification'!$G$4))),0))","v":0},0,0,0,{"$f":"IF(OR(A107=0,B107=\"X\"),0,IF(OR(S107=\"PRP\",S107=\"LPR\",U107=\"PRP\",U107=\"LPR\",W107=\"PRP\",W107=\"LPR\",Y107=\"PRP\",Y107=\"LPR\"),MAX(I107+AP107,MIN(IF(AE107:AN107<>0,AE107:AN107))),MIN(IF(AE107:AN107<>0,AE107:AN107))))","v":0},{"$f":"IF(A107=0,0,IF(AND(OR(S107=\"Mgr\",S107=0),OR(U107=\"Mgr\",U107=0),OR(W107=\"Mgr\",W107=0)),0,IF(LEFT($A107,2)=\"B*\",VLOOKUP($E107,'1. Checklist & Certification'!$D$26:$E$32,2),IF(LEFT($A107,2)=\"C*\",VLOOKUP($E107,'1. Checklist & Certification'!$F$26:$G$32,2),IF(LEFT($A107,2)=\"D*\",VLOOKUP($E107,'1. Checklist & Certification'!$H$26:$I$32,2),IF(LEFT($A107,2)=\"E*\",VLOOKUP($E107,'1. Checklist & Certification'!$J$26:$K$32,2),VLOOKUP($E107,'1. Checklist & Certification'!$A$26:$B$32,2)))))))","v":0},0,0,null,null,null,null,"","",0,0,0,null,{"$f":"IF(A107=\"\",\"\",'1. Checklist & Certification'!$K$1)","v":""},{"$f":"IF(A107=\"\",\"\",'1. Checklist & Certification'!$C$62)","v":""},{"$f":"IF(A107=\"\",\"\",'1. Checklist & Certification'!$C$6)","v":""},{"$f":"IF(A107=\"\",\"\",'1. Checklist & Certification'!$G$5)","v":""},{"$f":"IFERROR(IF(A107=\"\",\"\",\n_xlfn.LET(_xlpm.Contract,'1. Checklist & Certification'!$C$7,\n_xlpm.Yr,TEXT(MOD(_xlfn.TEXTBEFORE(_xlpm.Contract,\"-\"),100),\"00\"),\n_xlpm.Program,_xlfn.TEXTAFTER(_xlfn.TEXTBEFORE(_xlpm.Contract,\"-\",2),\"-\"),\n_xlpm.CleanProgram,_xlfn.XLOOKUP(_xlpm.Program,SpellCheck[Input],SpellCheck[Correction],_xlpm.Program),\n_xlpm.Number,TEXT(_xlfn.TEXTAFTER(_xlpm.Contract,\"-\",2),\"0000\"),\n_xlfn.CONCAT(_xlpm.Yr,\"-\",_xlpm.CleanProgram,\"-\",_xlpm.Number))\n),\"\")","v":""},{"$f":"IFERROR(IF(A107=\"\",\"\",\n_xlfn.LET(_xlpm.Contract,'1. Checklist & Certification'!$C$8,\n_xlpm.Yr,TEXT(MOD(_xlfn.TEXTBEFORE(_xlpm.Contract,\"-\"),100),\"00\"),\n_xlpm.Program,_xlfn.TEXTAFTER(_xlfn.TEXTBEFORE(_xlpm.Contract,\"-\",2),\"-\"),\n_xlpm.CleanProgram,_xlfn.XLOOKUP(_xlpm.Program,SpellCheck[Input],SpellCheck[Correction],_xlpm.Program),\n_xlpm.Number,TEXT(_xlfn.TEXTAFTER(_xlpm.Contract,\"-\",2),\"0000\"),\n_xlfn.CONCAT(_xlpm.Yr,\"-\",_xlpm.CleanProgram,\"-\",_xlpm.Number))\n),\"\")","v":""},{"$f":"IFERROR(IF(A107=\"\",\"\",\n_xlfn.LET(_xlpm.Contract,'1. Checklist & Certification'!$F$7,\n_xlpm.Yr,TEXT(MOD(_xlfn.TEXTBEFORE(_xlpm.Contract,\"-\"),100),\"00\"),\n_xlpm.Program,_xlfn.TEXTAFTER(_xlfn.TEXTBEFORE(_xlpm.Contract,\"-\",2),\"-\"),\n_xlpm.CleanProgram,_xlfn.XLOOKUP(_xlpm.Program,SpellCheck[Input],SpellCheck[Correction],_xlpm.Program),\n_xlpm.Number,TEXT(_xlfn.TEXTAFTER(_xlpm.Contract,\"-\",2),\"0000\"),\n_xlfn.CONCAT(_xlpm.Yr,\"-\",_xlpm.CleanProgram,\"-\",_xlpm.Number))\n),\"\")","v":""},{"$f":"IFERROR(IF(A107=\"\",\"\",\n_xlfn.LET(_xlpm.Contract,'1. Checklist & Certification'!$F$8,\n_xlpm.Yr,TEXT(MOD(_xlfn.TEXTBEFORE(_xlpm.Contract,\"-\"),100),\"00\"),\n_xlpm.Program,_xlfn.TEXTAFTER(_xlfn.TEXTBEFORE(_xlpm.Contract,\"-\",2),\"-\"),\n_xlpm.CleanProgram,_xlfn.XLOOKUP(_xlpm.Program,SpellCheck[Input],SpellCheck[Correction],_xlpm.Program),\n_xlpm.Number,TEXT(_xlfn.TEXTAFTER(_xlpm.Contract,\"-\",2),\"0000\"),\n_xlfn.CONCAT(_xlpm.Yr,\"-\",_xlpm.CleanProgram,\"-\",_xlpm.Number))\n),\"\")","v":""},{"$f":"IF(A107=\"\",\"\",'1. Checklist & Certification'!$B$9)","v":""},{"$f":"IF(A107=\"\",\"\",'1. Checklist & Certification'!$F$9)","v":""},{"$f":"IF(A107=\"\",\"\",'1. Checklist & Certification'!$C$10)","v":""},{"$f":"IF(A107=\"\",\"\",'1. Checklist & Certification'!$C$11)","v":""},{"$f":"IF(A107=\"\",\"\",'1. Checklist & Certification'!$C$12)","v":""},{"$f":"IF(A107=\"\",\"\",'1. Checklist & Certification'!$B$14)","v":""},{"$f":"IF(A107=\"\",\"\",'1. Checklist & Certification'!$E$14)","v":""},{"$f":"IF(B107=\"\",\"\",'1. Checklist & Certification'!$G$14)","v":""},{"$f":"IF(A107=\"\",\"\",'MHP Family Income & Rent Limits'!$B$3)","v":""},{"$f":"IF(A107=\"\",\"\",'MHP Family Income & Rent Limits'!$J$3)","v":""},{"$f":"IF(A107=\"\",\"\",'MHP Family Income & Rent Limits'!$E$4)","v":""},{"$f":"IF(A107=\"\",\"\",'MHP Family Income & Rent Limits'!$C$7)","v":""},{"$f":"IF(A107=\"\",\"\",'MHP Family Income & Rent Limits'!$F$8)","v":""},{"$f":"IF(A107=\"\",\"\",'1. Checklist & Certification'!$G$4)","v":""},{"$f":"IF(A107=\"\",\"\",'1. Checklist & Certification'!$K$39)","v":""},{"$f":"IF(A107=\"\",\"\",'1. Checklist & Certification'!$K$43)","v":""},{"$f":"IF(A107=\"\",\"\",'1. Checklist & Certification'!$K$45)","v":""},{"$f":"IF(A107=\"\",\"\",'1. Checklist & Certification'!$K$49)","v":""},{"$f":"IF(A107=\"\",\"\",'1. Checklist & Certification'!$K$62)","v":""},{"$f":"IF(A107=\"\",\"\",'1. Checklist & Certification'!$E$66)","v":""},{"$f":"IF(A107=\"\",\"\",'1. Checklist & Certification'!$E$67)","v":""},{"$f":"IF(A107=\"\",\"\",'1. Checklist & Certification'!$E$68)","v":""},{"$f":"IF(A107=\"\",\"\",'1. Checklist & Certification'!$G$66)","v":""},{"$f":"IF(A107=\"\",\"\",'1. Checklist & Certification'!$H$66)","v":""},{"$f":"IF(A107=\"\",\"\",'1. Checklist & Certification'!$I$66)","v":""},{"$f":"IF(A107=\"\",\"\",'1. Checklist & Certification'!$I$67)","v":""},{"$f":"IF(A107=\"\",\"\",'1. Checklist & Certification'!$I$68)","v":""},{"$f":"IF(A107=\"\",\"\",'1. Checklist & Certification'!$B$69)","v":""},{"$f":"IF(A107=\"\",\"\",'1. Checklist & Certification'!$C$69)","v":""},{"$f":"IF(A107=\"\",\"\",'1. Checklist & Certification'!$F$69)","v":""},{"$f":"IF(A107=\"\",\"\",'1. Checklist & Certification'!$G$69)","v":""},{"$f":"IF(A107=\"\",\"\",'1. Checklist & Certification'!$J$69)","v":""},{"$f":"IF(A107=\"\",\"\",'1. Checklist & Certification'!$K$69)","v":""},null,null,{"$f":"IF(AND(OR('1. Checklist & Certification'!$M$16=1,'1. Checklist & Certification'!$M$19=2),AO107>0,B107=\"\",I107>0,AQ107<I107,AV107<>\"Sec 8-Project\"),\"X\",IF(AND(OR('1. Checklist & Certification'!$M$20=4,'1. Checklist & Certification'!$M$21=5,'1. Checklist & Certification'!$M$22=7),AO107>0,B107=\"\",I107>0,K107<I107),\"X\",\"\"))","v":""},{"$f":"IF(A107=\"\",\"\",IF(SUMPRODUCT(-- (ISNUMBER(SEARCH({\"*AHSC*\",\"*FMTW*\",\"*FWHG*\",\"*GHI*\",\"*HHC*\",\"*HLCP*\",\"*HOME*\",\"*LPR*\",\"*MHP*\",\"*NHTF*\",\"*NSP*\",\"*PRP*\",\"*TOD*\",\"*VHHP*\"},'1. Checklist & Certification'!$L$7)))),\"MHP\",\"Legacy\"))","v":""},",,",null,null,null,{"$f":"IF('1. Checklist & Certification'!$M$20=4,\"Both\",IF(OR('1. Checklist & Certification'!$M$15>0,S107=\"CHRP-R\",U107=\"CHRP-R\",W107=\"CHRP-R\",Y107=\"CHRP-R\"),\"Under\",\"No\"))","v":"No"},"No","No",{"$f":"_xlfn.IFS(D107=\"\",\"\",D107=1,'MHP Family Income & Rent Limits'!$E$17,D107=2,'MHP Family Income & Rent Limits'!$F$17,D107=3,'MHP Family Income & Rent Limits'!$G$17,D107=4,'MHP Family Income & Rent Limits'!$H$17,D107=5,'MHP Family Income & Rent Limits'!$I$17,D107=6,'MHP Family Income & Rent Limits'!$J$17,D107=7,'MHP Family Income & Rent Limits'!$K$17,D107=8,'MHP Family Income & Rent Limits'!$L$17)","v":""},"",{"$f":"IF(OR(A107=0,B107=\"X\"),0,MIN(IF(AA107:AD107<>0,AA107:AD107)))","v":0},{"$f":"IF(OR(H107=\"\",I107=\"\"),0,IF(H107*0.3/12>I107,MIN(H107*0.3/12,I107*1.1)+AP107,I107*(1+(VLOOKUP('1. Checklist & Certification'!$F$9,'HLCP-E Rent Change'!$A$1:$D$59,4,FALSE)))+AP107))","v":0}]
[null,null,null,null,null,null,null,null,null,null,null,null,null,null,null,null,null,null,null,null,null,null,null,null,null,null,0,0,0,0,0,0,0,0,{"$f":"IF(OR(A108=0,B108=\"X\"),0,IF(OR(S108=\"FHDP\",S108=\"RHCP-B\",U108=\"FHDP\",U108=\"RHCP-B\",W108=\"FHDP\",W108=\"RHCP-B\",Y108=\"FHDP\",Y108=\"RHCP-B\"),TRUNC((MIN(I108,K108)*(1+'1. Checklist & Certification'!$K$43)+AP108)),0))","v":0},{"$f":"IF(OR(A108=0,B108=\"X\"),0,IF(OR(S108=\"CHRP-R\",S108=\"SERA\",S108=\"SUHRP\",U108=\"CHRP-R\",U108=\"SERA\",U108=\"SUHRP\",W108=\"CHRP-R\",W108=\"SERA\",W108=\"SUHRP\",Y108=\"CHRP-R\",Y108=\"SERA\",Y108=\"SUHRP\"),TRUNC((MIN(I108,K108)*(1+'1. Checklist & Certification'!$K$49))),0))","v":0},{"$f":"IF(OR(A108=0,B108=\"X\"),0,IF(OR(S108=\"CALDAP\",S108=\"DPRLP\",U108=\"CALDAP\",U108=\"DPRLP\",W108=\"CALDAP\",W108=\"DPRLP\",Y108=\"CALDAP\",Y108=\"DPRLP\"),TRUNC(((MIN(I108,K108))*(1+'1. Checklist & Certification'!$G$4))),0))","v":0},0,0,0,{"$f":"IF(OR(A108=0,B108=\"X\"),0,IF(OR(S108=\"PRP\",S108=\"LPR\",U108=\"PRP\",U108=\"LPR\",W108=\"PRP\",W108=\"LPR\",Y108=\"PRP\",Y108=\"LPR\"),MAX(I108+AP108,MIN(IF(AE108:AN108<>0,AE108:AN108))),MIN(IF(AE108:AN108<>0,AE108:AN108))))","v":0},{"$f":"IF(A108=0,0,IF(AND(OR(S108=\"Mgr\",S108=0),OR(U108=\"Mgr\",U108=0),OR(W108=\"Mgr\",W108=0)),0,IF(LEFT($A108,2)=\"B*\",VLOOKUP($E108,'1. Checklist & Certification'!$D$26:$E$32,2),IF(LEFT($A108,2)=\"C*\",VLOOKUP($E108,'1. Checklist & Certification'!$F$26:$G$32,2),IF(LEFT($A108,2)=\"D*\",VLOOKUP($E108,'1. Checklist & Certification'!$H$26:$I$32,2),IF(LEFT($A108,2)=\"E*\",VLOOKUP($E108,'1. Checklist & Certification'!$J$26:$K$32,2),VLOOKUP($E108,'1. Checklist & Certification'!$A$26:$B$32,2)))))))","v":0},0,0,null,null,null,null,"","",0,0,0,null,{"$f":"IF(A108=\"\",\"\",'1. Checklist & Certification'!$K$1)","v":""},{"$f":"IF(A108=\"\",\"\",'1. Checklist & Certification'!$C$62)","v":""},{"$f":"IF(A108=\"\",\"\",'1. Checklist & Certification'!$C$6)","v":""},{"$f":"IF(A108=\"\",\"\",'1. Checklist & Certification'!$G$5)","v":""},{"$f":"IFERROR(IF(A108=\"\",\"\",\n_xlfn.LET(_xlpm.Contract,'1. Checklist & Certification'!$C$7,\n_xlpm.Yr,TEXT(MOD(_xlfn.TEXTBEFORE(_xlpm.Contract,\"-\"),100),\"00\"),\n_xlpm.Program,_xlfn.TEXTAFTER(_xlfn.TEXTBEFORE(_xlpm.Contract,\"-\",2),\"-\"),\n_xlpm.CleanProgram,_xlfn.XLOOKUP(_xlpm.Program,SpellCheck[Input],SpellCheck[Correction],_xlpm.Program),\n_xlpm.Number,TEXT(_xlfn.TEXTAFTER(_xlpm.Contract,\"-\",2),\"0000\"),\n_xlfn.CONCAT(_xlpm.Yr,\"-\",_xlpm.CleanProgram,\"-\",_xlpm.Number))\n),\"\")","v":""},{"$f":"IFERROR(IF(A108=\"\",\"\",\n_xlfn.LET(_xlpm.Contract,'1. Checklist & Certification'!$C$8,\n_xlpm.Yr,TEXT(MOD(_xlfn.TEXTBEFORE(_xlpm.Contract,\"-\"),100),\"00\"),\n_xlpm.Program,_xlfn.TEXTAFTER(_xlfn.TEXTBEFORE(_xlpm.Contract,\"-\",2),\"-\"),\n_xlpm.CleanProgram,_xlfn.XLOOKUP(_xlpm.Program,SpellCheck[Input],SpellCheck[Correction],_xlpm.Program),\n_xlpm.Number,TEXT(_xlfn.TEXTAFTER(_xlpm.Contract,\"-\",2),\"0000\"),\n_xlfn.CONCAT(_xlpm.Yr,\"-\",_xlpm.CleanProgram,\"-\",_xlpm.Number))\n),\"\")","v":""},{"$f":"IFERROR(IF(A108=\"\",\"\",\n_xlfn.LET(_xlpm.Contract,'1. Checklist & Certification'!$F$7,\n_xlpm.Yr,TEXT(MOD(_xlfn.TEXTBEFORE(_xlpm.Contract,\"-\"),100),\"00\"),\n_xlpm.Program,_xlfn.TEXTAFTER(_xlfn.TEXTBEFORE(_xlpm.Contract,\"-\",2),\"-\"),\n_xlpm.CleanProgram,_xlfn.XLOOKUP(_xlpm.Program,SpellCheck[Input],SpellCheck[Correction],_xlpm.Program),\n_xlpm.Number,TEXT(_xlfn.TEXTAFTER(_xlpm.Contract,\"-\",2),\"0000\"),\n_xlfn.CONCAT(_xlpm.Yr,\"-\",_xlpm.CleanProgram,\"-\",_xlpm.Number))\n),\"\")","v":""},{"$f":"IFERROR(IF(A108=\"\",\"\",\n_xlfn.LET(_xlpm.Contract,'1. Checklist & Certification'!$F$8,\n_xlpm.Yr,TEXT(MOD(_xlfn.TEXTBEFORE(_xlpm.Contract,\"-\"),100),\"00\"),\n_xlpm.Program,_xlfn.TEXTAFTER(_xlfn.TEXTBEFORE(_xlpm.Contract,\"-\",2),\"-\"),\n_xlpm.CleanProgram,_xlfn.XLOOKUP(_xlpm.Program,SpellCheck[Input],SpellCheck[Correction],_xlpm.Program),\n_xlpm.Number,TEXT(_xlfn.TEXTAFTER(_xlpm.Contract,\"-\",2),\"0000\"),\n_xlfn.CONCAT(_xlpm.Yr,\"-\",_xlpm.CleanProgram,\"-\",_xlpm.Number))\n),\"\")","v":""},{"$f":"IF(A108=\"\",\"\",'1. Checklist & Certification'!$B$9)","v":""},{"$f":"IF(A108=\"\",\"\",'1. Checklist & Certification'!$F$9)","v":""},{"$f":"IF(A108=\"\",\"\",'1. Checklist & Certification'!$C$10)","v":""},{"$f":"IF(A108=\"\",\"\",'1. Checklist & Certification'!$C$11)","v":""},{"$f":"IF(A108=\"\",\"\",'1. Checklist & Certification'!$C$12)","v":""},{"$f":"IF(A108=\"\",\"\",'1. Checklist & Certification'!$B$14)","v":""},{"$f":"IF(A108=\"\",\"\",'1. Checklist & Certification'!$E$14)","v":""},{"$f":"IF(B108=\"\",\"\",'1. Checklist & Certification'!$G$14)","v":""},{"$f":"IF(A108=\"\",\"\",'MHP Family Income & Rent Limits'!$B$3)","v":""},{"$f":"IF(A108=\"\",\"\",'MHP Family Income & Rent Limits'!$J$3)","v":""},{"$f":"IF(A108=\"\",\"\",'MHP Family Income & Rent Limits'!$E$4)","v":""},{"$f":"IF(A108=\"\",\"\",'MHP Family Income & Rent Limits'!$C$7)","v":""},{"$f":"IF(A108=\"\",\"\",'MHP Family Income & Rent Limits'!$F$8)","v":""},{"$f":"IF(A108=\"\",\"\",'1. Checklist & Certification'!$G$4)","v":""},{"$f":"IF(A108=\"\",\"\",'1. Checklist & Certification'!$K$39)","v":""},{"$f":"IF(A108=\"\",\"\",'1. Checklist & Certification'!$K$43)","v":""},{"$f":"IF(A108=\"\",\"\",'1. Checklist & Certification'!$K$45)","v":""},{"$f":"IF(A108=\"\",\"\",'1. Checklist & Certification'!$K$49)","v":""},{"$f":"IF(A108=\"\",\"\",'1. Checklist & Certification'!$K$62)","v":""},{"$f":"IF(A108=\"\",\"\",'1. Checklist & Certification'!$E$66)","v":""},{"$f":"IF(A108=\"\",\"\",'1. Checklist & Certification'!$E$67)","v":""},{"$f":"IF(A108=\"\",\"\",'1. Checklist & Certification'!$E$68)","v":""},{"$f":"IF(A108=\"\",\"\",'1. Checklist & Certification'!$G$66)","v":""},{"$f":"IF(A108=\"\",\"\",'1. Checklist & Certification'!$H$66)","v":""},{"$f":"IF(A108=\"\",\"\",'1. Checklist & Certification'!$I$66)","v":""},{"$f":"IF(A108=\"\",\"\",'1. Checklist & Certification'!$I$67)","v":""},{"$f":"IF(A108=\"\",\"\",'1. Checklist & Certification'!$I$68)","v":""},{"$f":"IF(A108=\"\",\"\",'1. Checklist & Certification'!$B$69)","v":""},{"$f":"IF(A108=\"\",\"\",'1. Checklist & Certification'!$C$69)","v":""},{"$f":"IF(A108=\"\",\"\",'1. Checklist & Certification'!$F$69)","v":""},{"$f":"IF(A108=\"\",\"\",'1. Checklist & Certification'!$G$69)","v":""},{"$f":"IF(A108=\"\",\"\",'1. Checklist & Certification'!$J$69)","v":""},{"$f":"IF(A108=\"\",\"\",'1. Checklist & Certification'!$K$69)","v":""},null,null,{"$f":"IF(AND(OR('1. Checklist & Certification'!$M$16=1,'1. Checklist & Certification'!$M$19=2),AO108>0,B108=\"\",I108>0,AQ108<I108,AV108<>\"Sec 8-Project\"),\"X\",IF(AND(OR('1. Checklist & Certification'!$M$20=4,'1. Checklist & Certification'!$M$21=5,'1. Checklist & Certification'!$M$22=7),AO108>0,B108=\"\",I108>0,K108<I108),\"X\",\"\"))","v":""},{"$f":"IF(A108=\"\",\"\",IF(SUMPRODUCT(-- (ISNUMBER(SEARCH({\"*AHSC*\",\"*FMTW*\",\"*FWHG*\",\"*GHI*\",\"*HHC*\",\"*HLCP*\",\"*HOME*\",\"*LPR*\",\"*MHP*\",\"*NHTF*\",\"*NSP*\",\"*PRP*\",\"*TOD*\",\"*VHHP*\"},'1. Checklist & Certification'!$L$7)))),\"MHP\",\"Legacy\"))","v":""},",,",null,null,null,{"$f":"IF('1. Checklist & Certification'!$M$20=4,\"Both\",IF(OR('1. Checklist & Certification'!$M$15>0,S108=\"CHRP-R\",U108=\"CHRP-R\",W108=\"CHRP-R\",Y108=\"CHRP-R\"),\"Under\",\"No\"))","v":"No"},"No","No",{"$f":"_xlfn.IFS(D108=\"\",\"\",D108=1,'MHP Family Income & Rent Limits'!$E$17,D108=2,'MHP Family Income & Rent Limits'!$F$17,D108=3,'MHP Family Income & Rent Limits'!$G$17,D108=4,'MHP Family Income & Rent Limits'!$H$17,D108=5,'MHP Family Income & Rent Limits'!$I$17,D108=6,'MHP Family Income & Rent Limits'!$J$17,D108=7,'MHP Family Income & Rent Limits'!$K$17,D108=8,'MHP Family Income & Rent Limits'!$L$17)","v":""},"",{"$f":"IF(OR(A108=0,B108=\"X\"),0,MIN(IF(AA108:AD108<>0,AA108:AD108)))","v":0},{"$f":"IF(OR(H108=\"\",I108=\"\"),0,IF(H108*0.3/12>I108,MIN(H108*0.3/12,I108*1.1)+AP108,I108*(1+(VLOOKUP('1. Checklist & Certification'!$F$9,'HLCP-E Rent Change'!$A$1:$D$59,4,FALSE)))+AP108))","v":0}]
[null,null,null,null,null,null,null,null,null,null,null,null,null,null,null,null,null,null,null,null,null,null,null,null,null,null,0,0,0,0,0,0,0,0,{"$f":"IF(OR(A109=0,B109=\"X\"),0,IF(OR(S109=\"FHDP\",S109=\"RHCP-B\",U109=\"FHDP\",U109=\"RHCP-B\",W109=\"FHDP\",W109=\"RHCP-B\",Y109=\"FHDP\",Y109=\"RHCP-B\"),TRUNC((MIN(I109,K109)*(1+'1. Checklist & Certification'!$K$43)+AP109)),0))","v":0},{"$f":"IF(OR(A109=0,B109=\"X\"),0,IF(OR(S109=\"CHRP-R\",S109=\"SERA\",S109=\"SUHRP\",U109=\"CHRP-R\",U109=\"SERA\",U109=\"SUHRP\",W109=\"CHRP-R\",W109=\"SERA\",W109=\"SUHRP\",Y109=\"CHRP-R\",Y109=\"SERA\",Y109=\"SUHRP\"),TRUNC((MIN(I109,K109)*(1+'1. Checklist & Certification'!$K$49))),0))","v":0},{"$f":"IF(OR(A109=0,B109=\"X\"),0,IF(OR(S109=\"CALDAP\",S109=\"DPRLP\",U109=\"CALDAP\",U109=\"DPRLP\",W109=\"CALDAP\",W109=\"DPRLP\",Y109=\"CALDAP\",Y109=\"DPRLP\"),TRUNC(((MIN(I109,K109))*(1+'1. Checklist & Certification'!$G$4))),0))","v":0},0,0,0,{"$f":"IF(OR(A109=0,B109=\"X\"),0,IF(OR(S109=\"PRP\",S109=\"LPR\",U109=\"PRP\",U109=\"LPR\",W109=\"PRP\",W109=\"LPR\",Y109=\"PRP\",Y109=\"LPR\"),MAX(I109+AP109,MIN(IF(AE109:AN109<>0,AE109:AN109))),MIN(IF(AE109:AN109<>0,AE109:AN109))))","v":0},{"$f":"IF(A109=0,0,IF(AND(OR(S109=\"Mgr\",S109=0),OR(U109=\"Mgr\",U109=0),OR(W109=\"Mgr\",W109=0)),0,IF(LEFT($A109,2)=\"B*\",VLOOKUP($E109,'1. Checklist & Certification'!$D$26:$E$32,2),IF(LEFT($A109,2)=\"C*\",VLOOKUP($E109,'1. Checklist & Certification'!$F$26:$G$32,2),IF(LEFT($A109,2)=\"D*\",VLOOKUP($E109,'1. Checklist & Certification'!$H$26:$I$32,2),IF(LEFT($A109,2)=\"E*\",VLOOKUP($E109,'1. Checklist & Certification'!$J$26:$K$32,2),VLOOKUP($E109,'1. Checklist & Certification'!$A$26:$B$32,2)))))))","v":0},0,0,null,null,null,null,"","",0,0,0,null,{"$f":"IF(A109=\"\",\"\",'1. Checklist & Certification'!$K$1)","v":""},{"$f":"IF(A109=\"\",\"\",'1. Checklist & Certification'!$C$62)","v":""},{"$f":"IF(A109=\"\",\"\",'1. Checklist & Certification'!$C$6)","v":""},{"$f":"IF(A109=\"\",\"\",'1. Checklist & Certification'!$G$5)","v":""},{"$f":"IFERROR(IF(A109=\"\",\"\",\n_xlfn.LET(_xlpm.Contract,'1. Checklist & Certification'!$C$7,\n_xlpm.Yr,TEXT(MOD(_xlfn.TEXTBEFORE(_xlpm.Contract,\"-\"),100),\"00\"),\n_xlpm.Program,_xlfn.TEXTAFTER(_xlfn.TEXTBEFORE(_xlpm.Contract,\"-\",2),\"-\"),\n_xlpm.CleanProgram,_xlfn.XLOOKUP(_xlpm.Program,SpellCheck[Input],SpellCheck[Correction],_xlpm.Program),\n_xlpm.Number,TEXT(_xlfn.TEXTAFTER(_xlpm.Contract,\"-\",2),\"0000\"),\n_xlfn.CONCAT(_xlpm.Yr,\"-\",_xlpm.CleanProgram,\"-\",_xlpm.Number))\n),\"\")","v":""},{"$f":"IFERROR(IF(A109=\"\",\"\",\n_xlfn.LET(_xlpm.Contract,'1. Checklist & Certification'!$C$8,\n_xlpm.Yr,TEXT(MOD(_xlfn.TEXTBEFORE(_xlpm.Contract,\"-\"),100),\"00\"),\n_xlpm.Program,_xlfn.TEXTAFTER(_xlfn.TEXTBEFORE(_xlpm.Contract,\"-\",2),\"-\"),\n_xlpm.CleanProgram,_xlfn.XLOOKUP(_xlpm.Program,SpellCheck[Input],SpellCheck[Correction],_xlpm.Program),\n_xlpm.Number,TEXT(_xlfn.TEXTAFTER(_xlpm.Contract,\"-\",2),\"0000\"),\n_xlfn.CONCAT(_xlpm.Yr,\"-\",_xlpm.CleanProgram,\"-\",_xlpm.Number))\n),\"\")","v":""},{"$f":"IFERROR(IF(A109=\"\",\"\",\n_xlfn.LET(_xlpm.Contract,'1. Checklist & Certification'!$F$7,\n_xlpm.Yr,TEXT(MOD(_xlfn.TEXTBEFORE(_xlpm.Contract,\"-\"),100),\"00\"),\n_xlpm.Program,_xlfn.TEXTAFTER(_xlfn.TEXTBEFORE(_xlpm.Contract,\"-\",2),\"-\"),\n_xlpm.CleanProgram,_xlfn.XLOOKUP(_xlpm.Program,SpellCheck[Input],SpellCheck[Correction],_xlpm.Program),\n_xlpm.Number,TEXT(_xlfn.TEXTAFTER(_xlpm.Contract,\"-\",2),\"0000\"),\n_xlfn.CONCAT(_xlpm.Yr,\"-\",_xlpm.CleanProgram,\"-\",_xlpm.Number))\n),\"\")","v":""},{"$f":"IFERROR(IF(A109=\"\",\"\",\n_xlfn.LET(_xlpm.Contract,'1. Checklist & Certification'!$F$8,\n_xlpm.Yr,TEXT(MOD(_xlfn.TEXTBEFORE(_xlpm.Contract,\"-\"),100),\"00\"),\n_xlpm.Program,_xlfn.TEXTAFTER(_xlfn.TEXTBEFORE(_xlpm.Contract,\"-\",2),\"-\"),\n_xlpm.CleanProgram,_xlfn.XLOOKUP(_xlpm.Program,SpellCheck[Input],SpellCheck[Correction],_xlpm.Program),\n_xlpm.Number,TEXT(_xlfn.TEXTAFTER(_xlpm.Contract,\"-\",2),\"0000\"),\n_xlfn.CONCAT(_xlpm.Yr,\"-\",_xlpm.CleanProgram,\"-\",_xlpm.Number))\n),\"\")","v":""},{"$f":"IF(A109=\"\",\"\",'1. Checklist & Certification'!$B$9)","v":""},{"$f":"IF(A109=\"\",\"\",'1. Checklist & Certification'!$F$9)","v":""},{"$f":"IF(A109=\"\",\"\",'1. Checklist & Certification'!$C$10)","v":""},{"$f":"IF(A109=\"\",\"\",'1. Checklist & Certification'!$C$11)","v":""},{"$f":"IF(A109=\"\",\"\",'1. Checklist & Certification'!$C$12)","v":""},{"$f":"IF(A109=\"\",\"\",'1. Checklist & Certification'!$B$14)","v":""},{"$f":"IF(A109=\"\",\"\",'1. Checklist & Certification'!$E$14)","v":""},{"$f":"IF(B109=\"\",\"\",'1. Checklist & Certification'!$G$14)","v":""},{"$f":"IF(A109=\"\",\"\",'MHP Family Income & Rent Limits'!$B$3)","v":""},{"$f":"IF(A109=\"\",\"\",'MHP Family Income & Rent Limits'!$J$3)","v":""},{"$f":"IF(A109=\"\",\"\",'MHP Family Income & Rent Limits'!$E$4)","v":""},{"$f":"IF(A109=\"\",\"\",'MHP Family Income & Rent Limits'!$C$7)","v":""},{"$f":"IF(A109=\"\",\"\",'MHP Family Income & Rent Limits'!$F$8)","v":""},{"$f":"IF(A109=\"\",\"\",'1. Checklist & Certification'!$G$4)","v":""},{"$f":"IF(A109=\"\",\"\",'1. Checklist & Certification'!$K$39)","v":""},{"$f":"IF(A109=\"\",\"\",'1. Checklist & Certification'!$K$43)","v":""},{"$f":"IF(A109=\"\",\"\",'1. Checklist & Certification'!$K$45)","v":""},{"$f":"IF(A109=\"\",\"\",'1. Checklist & Certification'!$K$49)","v":""},{"$f":"IF(A109=\"\",\"\",'1. Checklist & Certification'!$K$62)","v":""},{"$f":"IF(A109=\"\",\"\",'1. Checklist & Certification'!$E$66)","v":""},{"$f":"IF(A109=\"\",\"\",'1. Checklist & Certification'!$E$67)","v":""},{"$f":"IF(A109=\"\",\"\",'1. Checklist & Certification'!$E$68)","v":""},{"$f":"IF(A109=\"\",\"\",'1. Checklist & Certification'!$G$66)","v":""},{"$f":"IF(A109=\"\",\"\",'1. Checklist & Certification'!$H$66)","v":""},{"$f":"IF(A109=\"\",\"\",'1. Checklist & Certification'!$I$66)","v":""},{"$f":"IF(A109=\"\",\"\",'1. Checklist & Certification'!$I$67)","v":""},{"$f":"IF(A109=\"\",\"\",'1. Checklist & Certification'!$I$68)","v":""},{"$f":"IF(A109=\"\",\"\",'1. Checklist & Certification'!$B$69)","v":""},{"$f":"IF(A109=\"\",\"\",'1. Checklist & Certification'!$C$69)","v":""},{"$f":"IF(A109=\"\",\"\",'1. Checklist & Certification'!$F$69)","v":""},{"$f":"IF(A109=\"\",\"\",'1. Checklist & Certification'!$G$69)","v":""},{"$f":"IF(A109=\"\",\"\",'1. Checklist & Certification'!$J$69)","v":""},{"$f":"IF(A109=\"\",\"\",'1. Checklist & Certification'!$K$69)","v":""},null,null,{"$f":"IF(AND(OR('1. Checklist & Certification'!$M$16=1,'1. Checklist & Certification'!$M$19=2),AO109>0,B109=\"\",I109>0,AQ109<I109,AV109<>\"Sec 8-Project\"),\"X\",IF(AND(OR('1. Checklist & Certification'!$M$20=4,'1. Checklist & Certification'!$M$21=5,'1. Checklist & Certification'!$M$22=7),AO109>0,B109=\"\",I109>0,K109<I109),\"X\",\"\"))","v":""},{"$f":"IF(A109=\"\",\"\",IF(SUMPRODUCT(-- (ISNUMBER(SEARCH({\"*AHSC*\",\"*FMTW*\",\"*FWHG*\",\"*GHI*\",\"*HHC*\",\"*HLCP*\",\"*HOME*\",\"*LPR*\",\"*MHP*\",\"*NHTF*\",\"*NSP*\",\"*PRP*\",\"*TOD*\",\"*VHHP*\"},'1. Checklist & Certification'!$L$7)))),\"MHP\",\"Legacy\"))","v":""},",,",null,null,null,{"$f":"IF('1. Checklist & Certification'!$M$20=4,\"Both\",IF(OR('1. Checklist & Certification'!$M$15>0,S109=\"CHRP-R\",U109=\"CHRP-R\",W109=\"CHRP-R\",Y109=\"CHRP-R\"),\"Under\",\"No\"))","v":"No"},"No","No",{"$f":"_xlfn.IFS(D109=\"\",\"\",D109=1,'MHP Family Income & Rent Limits'!$E$17,D109=2,'MHP Family Income & Rent Limits'!$F$17,D109=3,'MHP Family Income & Rent Limits'!$G$17,D109=4,'MHP Family Income & Rent Limits'!$H$17,D109=5,'MHP Family Income & Rent Limits'!$I$17,D109=6,'MHP Family Income & Rent Limits'!$J$17,D109=7,'MHP Family Income & Rent Limits'!$K$17,D109=8,'MHP Family Income & Rent Limits'!$L$17)","v":""},"",{"$f":"IF(OR(A109=0,B109=\"X\"),0,MIN(IF(AA109:AD109<>0,AA109:AD109)))","v":0},{"$f":"IF(OR(H109=\"\",I109=\"\"),0,IF(H109*0.3/12>I109,MIN(H109*0.3/12,I109*1.1)+AP109,I109*(1+(VLOOKUP('1. Checklist & Certification'!$F$9,'HLCP-E Rent Change'!$A$1:$D$59,4,FALSE)))+AP109))","v":0}]
[null,null,null,null,null,null,null,null,null,null,null,null,null,null,null,null,null,null,null,null,null,null,null,null,null,null,0,0,0,0,0,0,0,0,{"$f":"IF(OR(A110=0,B110=\"X\"),0,IF(OR(S110=\"FHDP\",S110=\"RHCP-B\",U110=\"FHDP\",U110=\"RHCP-B\",W110=\"FHDP\",W110=\"RHCP-B\",Y110=\"FHDP\",Y110=\"RHCP-B\"),TRUNC((MIN(I110,K110)*(1+'1. Checklist & Certification'!$K$43)+AP110)),0))","v":0},{"$f":"IF(OR(A110=0,B110=\"X\"),0,IF(OR(S110=\"CHRP-R\",S110=\"SERA\",S110=\"SUHRP\",U110=\"CHRP-R\",U110=\"SERA\",U110=\"SUHRP\",W110=\"CHRP-R\",W110=\"SERA\",W110=\"SUHRP\",Y110=\"CHRP-R\",Y110=\"SERA\",Y110=\"SUHRP\"),TRUNC((MIN(I110,K110)*(1+'1. Checklist & Certification'!$K$49))),0))","v":0},{"$f":"IF(OR(A110=0,B110=\"X\"),0,IF(OR(S110=\"CALDAP\",S110=\"DPRLP\",U110=\"CALDAP\",U110=\"DPRLP\",W110=\"CALDAP\",W110=\"DPRLP\",Y110=\"CALDAP\",Y110=\"DPRLP\"),TRUNC(((MIN(I110,K110))*(1+'1. Checklist & Certification'!$G$4))),0))","v":0},0,0,0,{"$f":"IF(OR(A110=0,B110=\"X\"),0,IF(OR(S110=\"PRP\",S110=\"LPR\",U110=\"PRP\",U110=\"LPR\",W110=\"PRP\",W110=\"LPR\",Y110=\"PRP\",Y110=\"LPR\"),MAX(I110+AP110,MIN(IF(AE110:AN110<>0,AE110:AN110))),MIN(IF(AE110:AN110<>0,AE110:AN110))))","v":0},{"$f":"IF(A110=0,0,IF(AND(OR(S110=\"Mgr\",S110=0),OR(U110=\"Mgr\",U110=0),OR(W110=\"Mgr\",W110=0)),0,IF(LEFT($A110,2)=\"B*\",VLOOKUP($E110,'1. Checklist & Certification'!$D$26:$E$32,2),IF(LEFT($A110,2)=\"C*\",VLOOKUP($E110,'1. Checklist & Certification'!$F$26:$G$32,2),IF(LEFT($A110,2)=\"D*\",VLOOKUP($E110,'1. Checklist & Certification'!$H$26:$I$32,2),IF(LEFT($A110,2)=\"E*\",VLOOKUP($E110,'1. Checklist & Certification'!$J$26:$K$32,2),VLOOKUP($E110,'1. Checklist & Certification'!$A$26:$B$32,2)))))))","v":0},0,0,null,null,null,null,"","",0,0,0,null,{"$f":"IF(A110=\"\",\"\",'1. Checklist & Certification'!$K$1)","v":""},{"$f":"IF(A110=\"\",\"\",'1. Checklist & Certification'!$C$62)","v":""},{"$f":"IF(A110=\"\",\"\",'1. Checklist & Certification'!$C$6)","v":""},{"$f":"IF(A110=\"\",\"\",'1. Checklist & Certification'!$G$5)","v":""},{"$f":"IFERROR(IF(A110=\"\",\"\",\n_xlfn.LET(_xlpm.Contract,'1. Checklist & Certification'!$C$7,\n_xlpm.Yr,TEXT(MOD(_xlfn.TEXTBEFORE(_xlpm.Contract,\"-\"),100),\"00\"),\n_xlpm.Program,_xlfn.TEXTAFTER(_xlfn.TEXTBEFORE(_xlpm.Contract,\"-\",2),\"-\"),\n_xlpm.CleanProgram,_xlfn.XLOOKUP(_xlpm.Program,SpellCheck[Input],SpellCheck[Correction],_xlpm.Program),\n_xlpm.Number,TEXT(_xlfn.TEXTAFTER(_xlpm.Contract,\"-\",2),\"0000\"),\n_xlfn.CONCAT(_xlpm.Yr,\"-\",_xlpm.CleanProgram,\"-\",_xlpm.Number))\n),\"\")","v":""},{"$f":"IFERROR(IF(A110=\"\",\"\",\n_xlfn.LET(_xlpm.Contract,'1. Checklist & Certification'!$C$8,\n_xlpm.Yr,TEXT(MOD(_xlfn.TEXTBEFORE(_xlpm.Contract,\"-\"),100),\"00\"),\n_xlpm.Program,_xlfn.TEXTAFTER(_xlfn.TEXTBEFORE(_xlpm.Contract,\"-\",2),\"-\"),\n_xlpm.CleanProgram,_xlfn.XLOOKUP(_xlpm.Program,SpellCheck[Input],SpellCheck[Correction],_xlpm.Program),\n_xlpm.Number,TEXT(_xlfn.TEXTAFTER(_xlpm.Contract,\"-\",2),\"0000\"),\n_xlfn.CONCAT(_xlpm.Yr,\"-\",_xlpm.CleanProgram,\"-\",_xlpm.Number))\n),\"\")","v":""},{"$f":"IFERROR(IF(A110=\"\",\"\",\n_xlfn.LET(_xlpm.Contract,'1. Checklist & Certification'!$F$7,\n_xlpm.Yr,TEXT(MOD(_xlfn.TEXTBEFORE(_xlpm.Contract,\"-\"),100),\"00\"),\n_xlpm.Program,_xlfn.TEXTAFTER(_xlfn.TEXTBEFORE(_xlpm.Contract,\"-\",2),\"-\"),\n_xlpm.CleanProgram,_xlfn.XLOOKUP(_xlpm.Program,SpellCheck[Input],SpellCheck[Correction],_xlpm.Program),\n_xlpm.Number,TEXT(_xlfn.TEXTAFTER(_xlpm.Contract,\"-\",2),\"0000\"),\n_xlfn.CONCAT(_xlpm.Yr,\"-\",_xlpm.CleanProgram,\"-\",_xlpm.Number))\n),\"\")","v":""},{"$f":"IFERROR(IF(A110=\"\",\"\",\n_xlfn.LET(_xlpm.Contract,'1. Checklist & Certification'!$F$8,\n_xlpm.Yr,TEXT(MOD(_xlfn.TEXTBEFORE(_xlpm.Contract,\"-\"),100),\"00\"),\n_xlpm.Program,_xlfn.TEXTAFTER(_xlfn.TEXTBEFORE(_xlpm.Contract,\"-\",2),\"-\"),\n_xlpm.CleanProgram,_xlfn.XLOOKUP(_xlpm.Program,SpellCheck[Input],SpellCheck[Correction],_xlpm.Program),\n_xlpm.Number,TEXT(_xlfn.TEXTAFTER(_xlpm.Contract,\"-\",2),\"0000\"),\n_xlfn.CONCAT(_xlpm.Yr,\"-\",_xlpm.CleanProgram,\"-\",_xlpm.Number))\n),\"\")","v":""},{"$f":"IF(A110=\"\",\"\",'1. Checklist & Certification'!$B$9)","v":""},{"$f":"IF(A110=\"\",\"\",'1. Checklist & Certification'!$F$9)","v":""},{"$f":"IF(A110=\"\",\"\",'1. Checklist & Certification'!$C$10)","v":""},{"$f":"IF(A110=\"\",\"\",'1. Checklist & Certification'!$C$11)","v":""},{"$f":"IF(A110=\"\",\"\",'1. Checklist & Certification'!$C$12)","v":""},{"$f":"IF(A110=\"\",\"\",'1. Checklist & Certification'!$B$14)","v":""},{"$f":"IF(A110=\"\",\"\",'1. Checklist & Certification'!$E$14)","v":""},{"$f":"IF(B110=\"\",\"\",'1. Checklist & Certification'!$G$14)","v":""},{"$f":"IF(A110=\"\",\"\",'MHP Family Income & Rent Limits'!$B$3)","v":""},{"$f":"IF(A110=\"\",\"\",'MHP Family Income & Rent Limits'!$J$3)","v":""},{"$f":"IF(A110=\"\",\"\",'MHP Family Income & Rent Limits'!$E$4)","v":""},{"$f":"IF(A110=\"\",\"\",'MHP Family Income & Rent Limits'!$C$7)","v":""},{"$f":"IF(A110=\"\",\"\",'MHP Family Income & Rent Limits'!$F$8)","v":""},{"$f":"IF(A110=\"\",\"\",'1. Checklist & Certification'!$G$4)","v":""},{"$f":"IF(A110=\"\",\"\",'1. Checklist & Certification'!$K$39)","v":""},{"$f":"IF(A110=\"\",\"\",'1. Checklist & Certification'!$K$43)","v":""},{"$f":"IF(A110=\"\",\"\",'1. Checklist & Certification'!$K$45)","v":""},{"$f":"IF(A110=\"\",\"\",'1. Checklist & Certification'!$K$49)","v":""},{"$f":"IF(A110=\"\",\"\",'1. Checklist & Certification'!$K$62)","v":""},{"$f":"IF(A110=\"\",\"\",'1. Checklist & Certification'!$E$66)","v":""},{"$f":"IF(A110=\"\",\"\",'1. Checklist & Certification'!$E$67)","v":""},{"$f":"IF(A110=\"\",\"\",'1. Checklist & Certification'!$E$68)","v":""},{"$f":"IF(A110=\"\",\"\",'1. Checklist & Certification'!$G$66)","v":""},{"$f":"IF(A110=\"\",\"\",'1. Checklist & Certification'!$H$66)","v":""},{"$f":"IF(A110=\"\",\"\",'1. Checklist & Certification'!$I$66)","v":""},{"$f":"IF(A110=\"\",\"\",'1. Checklist & Certification'!$I$67)","v":""},{"$f":"IF(A110=\"\",\"\",'1. Checklist & Certification'!$I$68)","v":""},{"$f":"IF(A110=\"\",\"\",'1. Checklist & Certification'!$B$69)","v":""},{"$f":"IF(A110=\"\",\"\",'1. Checklist & Certification'!$C$69)","v":""},{"$f":"IF(A110=\"\",\"\",'1. Checklist & Certification'!$F$69)","v":""},{"$f":"IF(A110=\"\",\"\",'1. Checklist & Certification'!$G$69)","v":""},{"$f":"IF(A110=\"\",\"\",'1. Checklist & Certification'!$J$69)","v":""},{"$f":"IF(A110=\"\",\"\",'1. Checklist & Certification'!$K$69)","v":""},null,null,{"$f":"IF(AND(OR('1. Checklist & Certification'!$M$16=1,'1. Checklist & Certification'!$M$19=2),AO110>0,B110=\"\",I110>0,AQ110<I110,AV110<>\"Sec 8-Project\"),\"X\",IF(AND(OR('1. Checklist & Certification'!$M$20=4,'1. Checklist & Certification'!$M$21=5,'1. Checklist & Certification'!$M$22=7),AO110>0,B110=\"\",I110>0,K110<I110),\"X\",\"\"))","v":""},{"$f":"IF(A110=\"\",\"\",IF(SUMPRODUCT(-- (ISNUMBER(SEARCH({\"*AHSC*\",\"*FMTW*\",\"*FWHG*\",\"*GHI*\",\"*HHC*\",\"*HLCP*\",\"*HOME*\",\"*LPR*\",\"*MHP*\",\"*NHTF*\",\"*NSP*\",\"*PRP*\",\"*TOD*\",\"*VHHP*\"},'1. Checklist & Certification'!$L$7)))),\"MHP\",\"Legacy\"))","v":""},",,",null,null,null,{"$f":"IF('1. Checklist & Certification'!$M$20=4,\"Both\",IF(OR('1. Checklist & Certification'!$M$15>0,S110=\"CHRP-R\",U110=\"CHRP-R\",W110=\"CHRP-R\",Y110=\"CHRP-R\"),\"Under\",\"No\"))","v":"No"},"No","No",{"$f":"_xlfn.IFS(D110=\"\",\"\",D110=1,'MHP Family Income & Rent Limits'!$E$17,D110=2,'MHP Family Income & Rent Limits'!$F$17,D110=3,'MHP Family Income & Rent Limits'!$G$17,D110=4,'MHP Family Income & Rent Limits'!$H$17,D110=5,'MHP Family Income & Rent Limits'!$I$17,D110=6,'MHP Family Income & Rent Limits'!$J$17,D110=7,'MHP Family Income & Rent Limits'!$K$17,D110=8,'MHP Family Income & Rent Limits'!$L$17)","v":""},"",{"$f":"IF(OR(A110=0,B110=\"X\"),0,MIN(IF(AA110:AD110<>0,AA110:AD110)))","v":0},{"$f":"IF(OR(H110=\"\",I110=\"\"),0,IF(H110*0.3/12>I110,MIN(H110*0.3/12,I110*1.1)+AP110,I110*(1+(VLOOKUP('1. Checklist & Certification'!$F$9,'HLCP-E Rent Change'!$A$1:$D$59,4,FALSE)))+AP110))","v":0}]
[null,null,null,null,null,null,null,null,null,null,null,null,null,null,null,null,null,null,null,null,null,null,null,null,null,null,0,0,0,0,0,0,0,0,{"$f":"IF(OR(A111=0,B111=\"X\"),0,IF(OR(S111=\"FHDP\",S111=\"RHCP-B\",U111=\"FHDP\",U111=\"RHCP-B\",W111=\"FHDP\",W111=\"RHCP-B\",Y111=\"FHDP\",Y111=\"RHCP-B\"),TRUNC((MIN(I111,K111)*(1+'1. Checklist & Certification'!$K$43)+AP111)),0))","v":0},{"$f":"IF(OR(A111=0,B111=\"X\"),0,IF(OR(S111=\"CHRP-R\",S111=\"SERA\",S111=\"SUHRP\",U111=\"CHRP-R\",U111=\"SERA\",U111=\"SUHRP\",W111=\"CHRP-R\",W111=\"SERA\",W111=\"SUHRP\",Y111=\"CHRP-R\",Y111=\"SERA\",Y111=\"SUHRP\"),TRUNC((MIN(I111,K111)*(1+'1. Checklist & Certification'!$K$49))),0))","v":0},{"$f":"IF(OR(A111=0,B111=\"X\"),0,IF(OR(S111=\"CALDAP\",S111=\"DPRLP\",U111=\"CALDAP\",U111=\"DPRLP\",W111=\"CALDAP\",W111=\"DPRLP\",Y111=\"CALDAP\",Y111=\"DPRLP\"),TRUNC(((MIN(I111,K111))*(1+'1. Checklist & Certification'!$G$4))),0))","v":0},0,0,0,{"$f":"IF(OR(A111=0,B111=\"X\"),0,IF(OR(S111=\"PRP\",S111=\"LPR\",U111=\"PRP\",U111=\"LPR\",W111=\"PRP\",W111=\"LPR\",Y111=\"PRP\",Y111=\"LPR\"),MAX(I111+AP111,MIN(IF(AE111:AN111<>0,AE111:AN111))),MIN(IF(AE111:AN111<>0,AE111:AN111))))","v":0},{"$f":"IF(A111=0,0,IF(AND(OR(S111=\"Mgr\",S111=0),OR(U111=\"Mgr\",U111=0),OR(W111=\"Mgr\",W111=0)),0,IF(LEFT($A111,2)=\"B*\",VLOOKUP($E111,'1. Checklist & Certification'!$D$26:$E$32,2),IF(LEFT($A111,2)=\"C*\",VLOOKUP($E111,'1. Checklist & Certification'!$F$26:$G$32,2),IF(LEFT($A111,2)=\"D*\",VLOOKUP($E111,'1. Checklist & Certification'!$H$26:$I$32,2),IF(LEFT($A111,2)=\"E*\",VLOOKUP($E111,'1. Checklist & Certification'!$J$26:$K$32,2),VLOOKUP($E111,'1. Checklist & Certification'!$A$26:$B$32,2)))))))","v":0},0,0,null,null,null,null,"","",0,0,0,null,{"$f":"IF(A111=\"\",\"\",'1. Checklist & Certification'!$K$1)","v":""},{"$f":"IF(A111=\"\",\"\",'1. Checklist & Certification'!$C$62)","v":""},{"$f":"IF(A111=\"\",\"\",'1. Checklist & Certification'!$C$6)","v":""},{"$f":"IF(A111=\"\",\"\",'1. Checklist & Certification'!$G$5)","v":""},{"$f":"IFERROR(IF(A111=\"\",\"\",\n_xlfn.LET(_xlpm.Contract,'1. Checklist & Certification'!$C$7,\n_xlpm.Yr,TEXT(MOD(_xlfn.TEXTBEFORE(_xlpm.Contract,\"-\"),100),\"00\"),\n_xlpm.Program,_xlfn.TEXTAFTER(_xlfn.TEXTBEFORE(_xlpm.Contract,\"-\",2),\"-\"),\n_xlpm.CleanProgram,_xlfn.XLOOKUP(_xlpm.Program,SpellCheck[Input],SpellCheck[Correction],_xlpm.Program),\n_xlpm.Number,TEXT(_xlfn.TEXTAFTER(_xlpm.Contract,\"-\",2),\"0000\"),\n_xlfn.CONCAT(_xlpm.Yr,\"-\",_xlpm.CleanProgram,\"-\",_xlpm.Number))\n),\"\")","v":""},{"$f":"IFERROR(IF(A111=\"\",\"\",\n_xlfn.LET(_xlpm.Contract,'1. Checklist & Certification'!$C$8,\n_xlpm.Yr,TEXT(MOD(_xlfn.TEXTBEFORE(_xlpm.Contract,\"-\"),100),\"00\"),\n_xlpm.Program,_xlfn.TEXTAFTER(_xlfn.TEXTBEFORE(_xlpm.Contract,\"-\",2),\"-\"),\n_xlpm.CleanProgram,_xlfn.XLOOKUP(_xlpm.Program,SpellCheck[Input],SpellCheck[Correction],_xlpm.Program),\n_xlpm.Number,TEXT(_xlfn.TEXTAFTER(_xlpm.Contract,\"-\",2),\"0000\"),\n_xlfn.CONCAT(_xlpm.Yr,\"-\",_xlpm.CleanProgram,\"-\",_xlpm.Number))\n),\"\")","v":""},{"$f":"IFERROR(IF(A111=\"\",\"\",\n_xlfn.LET(_xlpm.Contract,'1. Checklist & Certification'!$F$7,\n_xlpm.Yr,TEXT(MOD(_xlfn.TEXTBEFORE(_xlpm.Contract,\"-\"),100),\"00\"),\n_xlpm.Program,_xlfn.TEXTAFTER(_xlfn.TEXTBEFORE(_xlpm.Contract,\"-\",2),\"-\"),\n_xlpm.CleanProgram,_xlfn.XLOOKUP(_xlpm.Program,SpellCheck[Input],SpellCheck[Correction],_xlpm.Program),\n_xlpm.Number,TEXT(_xlfn.TEXTAFTER(_xlpm.Contract,\"-\",2),\"0000\"),\n_xlfn.CONCAT(_xlpm.Yr,\"-\",_xlpm.CleanProgram,\"-\",_xlpm.Number))\n),\"\")","v":""},{"$f":"IFERROR(IF(A111=\"\",\"\",\n_xlfn.LET(_xlpm.Contract,'1. Checklist & Certification'!$F$8,\n_xlpm.Yr,TEXT(MOD(_xlfn.TEXTBEFORE(_xlpm.Contract,\"-\"),100),\"00\"),\n_xlpm.Program,_xlfn.TEXTAFTER(_xlfn.TEXTBEFORE(_xlpm.Contract,\"-\",2),\"-\"),\n_xlpm.CleanProgram,_xlfn.XLOOKUP(_xlpm.Program,SpellCheck[Input],SpellCheck[Correction],_xlpm.Program),\n_xlpm.Number,TEXT(_xlfn.TEXTAFTER(_xlpm.Contract,\"-\",2),\"0000\"),\n_xlfn.CONCAT(_xlpm.Yr,\"-\",_xlpm.CleanProgram,\"-\",_xlpm.Number))\n),\"\")","v":""},{"$f":"IF(A111=\"\",\"\",'1. Checklist & Certification'!$B$9)","v":""},{"$f":"IF(A111=\"\",\"\",'1. Checklist & Certification'!$F$9)","v":""},{"$f":"IF(A111=\"\",\"\",'1. Checklist & Certification'!$C$10)","v":""},{"$f":"IF(A111=\"\",\"\",'1. Checklist & Certification'!$C$11)","v":""},{"$f":"IF(A111=\"\",\"\",'1. Checklist & Certification'!$C$12)","v":""},{"$f":"IF(A111=\"\",\"\",'1. Checklist & Certification'!$B$14)","v":""},{"$f":"IF(A111=\"\",\"\",'1. Checklist & Certification'!$E$14)","v":""},{"$f":"IF(B111=\"\",\"\",'1. Checklist & Certification'!$G$14)","v":""},{"$f":"IF(A111=\"\",\"\",'MHP Family Income & Rent Limits'!$B$3)","v":""},{"$f":"IF(A111=\"\",\"\",'MHP Family Income & Rent Limits'!$J$3)","v":""},{"$f":"IF(A111=\"\",\"\",'MHP Family Income & Rent Limits'!$E$4)","v":""},{"$f":"IF(A111=\"\",\"\",'MHP Family Income & Rent Limits'!$C$7)","v":""},{"$f":"IF(A111=\"\",\"\",'MHP Family Income & Rent Limits'!$F$8)","v":""},{"$f":"IF(A111=\"\",\"\",'1. Checklist & Certification'!$G$4)","v":""},{"$f":"IF(A111=\"\",\"\",'1. Checklist & Certification'!$K$39)","v":""},{"$f":"IF(A111=\"\",\"\",'1. Checklist & Certification'!$K$43)","v":""},{"$f":"IF(A111=\"\",\"\",'1. Checklist & Certification'!$K$45)","v":""},{"$f":"IF(A111=\"\",\"\",'1. Checklist & Certification'!$K$49)","v":""},{"$f":"IF(A111=\"\",\"\",'1. Checklist & Certification'!$K$62)","v":""},{"$f":"IF(A111=\"\",\"\",'1. Checklist & Certification'!$E$66)","v":""},{"$f":"IF(A111=\"\",\"\",'1. Checklist & Certification'!$E$67)","v":""},{"$f":"IF(A111=\"\",\"\",'1. Checklist & Certification'!$E$68)","v":""},{"$f":"IF(A111=\"\",\"\",'1. Checklist & Certification'!$G$66)","v":""},{"$f":"IF(A111=\"\",\"\",'1. Checklist & Certification'!$H$66)","v":""},{"$f":"IF(A111=\"\",\"\",'1. Checklist & Certification'!$I$66)","v":""},{"$f":"IF(A111=\"\",\"\",'1. Checklist & Certification'!$I$67)","v":""},{"$f":"IF(A111=\"\",\"\",'1. Checklist & Certification'!$I$68)","v":""},{"$f":"IF(A111=\"\",\"\",'1. Checklist & Certification'!$B$69)","v":""},{"$f":"IF(A111=\"\",\"\",'1. Checklist & Certification'!$C$69)","v":""},{"$f":"IF(A111=\"\",\"\",'1. Checklist & Certification'!$F$69)","v":""},{"$f":"IF(A111=\"\",\"\",'1. Checklist & Certification'!$G$69)","v":""},{"$f":"IF(A111=\"\",\"\",'1. Checklist & Certification'!$J$69)","v":""},{"$f":"IF(A111=\"\",\"\",'1. Checklist & Certification'!$K$69)","v":""},null,null,{"$f":"IF(AND(OR('1. Checklist & Certification'!$M$16=1,'1. Checklist & Certification'!$M$19=2),AO111>0,B111=\"\",I111>0,AQ111<I111,AV111<>\"Sec 8-Project\"),\"X\",IF(AND(OR('1. Checklist & Certification'!$M$20=4,'1. Checklist & Certification'!$M$21=5,'1. Checklist & Certification'!$M$22=7),AO111>0,B111=\"\",I111>0,K111<I111),\"X\",\"\"))","v":""},{"$f":"IF(A111=\"\",\"\",IF(SUMPRODUCT(-- (ISNUMBER(SEARCH({\"*AHSC*\",\"*FMTW*\",\"*FWHG*\",\"*GHI*\",\"*HHC*\",\"*HLCP*\",\"*HOME*\",\"*LPR*\",\"*MHP*\",\"*NHTF*\",\"*NSP*\",\"*PRP*\",\"*TOD*\",\"*VHHP*\"},'1. Checklist & Certification'!$L$7)))),\"MHP\",\"Legacy\"))","v":""},",,",null,null,null,{"$f":"IF('1. Checklist & Certification'!$M$20=4,\"Both\",IF(OR('1. Checklist & Certification'!$M$15>0,S111=\"CHRP-R\",U111=\"CHRP-R\",W111=\"CHRP-R\",Y111=\"CHRP-R\"),\"Under\",\"No\"))","v":"No"},"No","No",{"$f":"_xlfn.IFS(D111=\"\",\"\",D111=1,'MHP Family Income & Rent Limits'!$E$17,D111=2,'MHP Family Income & Rent Limits'!$F$17,D111=3,'MHP Family Income & Rent Limits'!$G$17,D111=4,'MHP Family Income & Rent Limits'!$H$17,D111=5,'MHP Family Income & Rent Limits'!$I$17,D111=6,'MHP Family Income & Rent Limits'!$J$17,D111=7,'MHP Family Income & Rent Limits'!$K$17,D111=8,'MHP Family Income & Rent Limits'!$L$17)","v":""},"",{"$f":"IF(OR(A111=0,B111=\"X\"),0,MIN(IF(AA111:AD111<>0,AA111:AD111)))","v":0},{"$f":"IF(OR(H111=\"\",I111=\"\"),0,IF(H111*0.3/12>I111,MIN(H111*0.3/12,I111*1.1)+AP111,I111*(1+(VLOOKUP('1. Checklist & Certification'!$F$9,'HLCP-E Rent Change'!$A$1:$D$59,4,FALSE)))+AP111))","v":0}]
[null,null,null,null,null,null,null,null,null,null,null,null,null,null,null,null,null,null,null,null,null,null,null,null,null,null,0,0,0,0,0,0,0,0,{"$f":"IF(OR(A112=0,B112=\"X\"),0,IF(OR(S112=\"FHDP\",S112=\"RHCP-B\",U112=\"FHDP\",U112=\"RHCP-B\",W112=\"FHDP\",W112=\"RHCP-B\",Y112=\"FHDP\",Y112=\"RHCP-B\"),TRUNC((MIN(I112,K112)*(1+'1. Checklist & Certification'!$K$43)+AP112)),0))","v":0},{"$f":"IF(OR(A112=0,B112=\"X\"),0,IF(OR(S112=\"CHRP-R\",S112=\"SERA\",S112=\"SUHRP\",U112=\"CHRP-R\",U112=\"SERA\",U112=\"SUHRP\",W112=\"CHRP-R\",W112=\"SERA\",W112=\"SUHRP\",Y112=\"CHRP-R\",Y112=\"SERA\",Y112=\"SUHRP\"),TRUNC((MIN(I112,K112)*(1+'1. Checklist & Certification'!$K$49))),0))","v":0},{"$f":"IF(OR(A112=0,B112=\"X\"),0,IF(OR(S112=\"CALDAP\",S112=\"DPRLP\",U112=\"CALDAP\",U112=\"DPRLP\",W112=\"CALDAP\",W112=\"DPRLP\",Y112=\"CALDAP\",Y112=\"DPRLP\"),TRUNC(((MIN(I112,K112))*(1+'1. Checklist & Certification'!$G$4))),0))","v":0},0,0,0,{"$f":"IF(OR(A112=0,B112=\"X\"),0,IF(OR(S112=\"PRP\",S112=\"LPR\",U112=\"PRP\",U112=\"LPR\",W112=\"PRP\",W112=\"LPR\",Y112=\"PRP\",Y112=\"LPR\"),MAX(I112+AP112,MIN(IF(AE112:AN112<>0,AE112:AN112))),MIN(IF(AE112:AN112<>0,AE112:AN112))))","v":0},{"$f":"IF(A112=0,0,IF(AND(OR(S112=\"Mgr\",S112=0),OR(U112=\"Mgr\",U112=0),OR(W112=\"Mgr\",W112=0)),0,IF(LEFT($A112,2)=\"B*\",VLOOKUP($E112,'1. Checklist & Certification'!$D$26:$E$32,2),IF(LEFT($A112,2)=\"C*\",VLOOKUP($E112,'1. Checklist & Certification'!$F$26:$G$32,2),IF(LEFT($A112,2)=\"D*\",VLOOKUP($E112,'1. Checklist & Certification'!$H$26:$I$32,2),IF(LEFT($A112,2)=\"E*\",VLOOKUP($E112,'1. Checklist & Certification'!$J$26:$K$32,2),VLOOKUP($E112,'1. Checklist & Certification'!$A$26:$B$32,2)))))))","v":0},0,0,null,null,null,null,"","",0,0,0,null,{"$f":"IF(A112=\"\",\"\",'1. Checklist & Certification'!$K$1)","v":""},{"$f":"IF(A112=\"\",\"\",'1. Checklist & Certification'!$C$62)","v":""},{"$f":"IF(A112=\"\",\"\",'1. Checklist & Certification'!$C$6)","v":""},{"$f":"IF(A112=\"\",\"\",'1. Checklist & Certification'!$G$5)","v":""},{"$f":"IFERROR(IF(A112=\"\",\"\",\n_xlfn.LET(_xlpm.Contract,'1. Checklist & Certification'!$C$7,\n_xlpm.Yr,TEXT(MOD(_xlfn.TEXTBEFORE(_xlpm.Contract,\"-\"),100),\"00\"),\n_xlpm.Program,_xlfn.TEXTAFTER(_xlfn.TEXTBEFORE(_xlpm.Contract,\"-\",2),\"-\"),\n_xlpm.CleanProgram,_xlfn.XLOOKUP(_xlpm.Program,SpellCheck[Input],SpellCheck[Correction],_xlpm.Program),\n_xlpm.Number,TEXT(_xlfn.TEXTAFTER(_xlpm.Contract,\"-\",2),\"0000\"),\n_xlfn.CONCAT(_xlpm.Yr,\"-\",_xlpm.CleanProgram,\"-\",_xlpm.Number))\n),\"\")","v":""},{"$f":"IFERROR(IF(A112=\"\",\"\",\n_xlfn.LET(_xlpm.Contract,'1. Checklist & Certification'!$C$8,\n_xlpm.Yr,TEXT(MOD(_xlfn.TEXTBEFORE(_xlpm.Contract,\"-\"),100),\"00\"),\n_xlpm.Program,_xlfn.TEXTAFTER(_xlfn.TEXTBEFORE(_xlpm.Contract,\"-\",2),\"-\"),\n_xlpm.CleanProgram,_xlfn.XLOOKUP(_xlpm.Program,SpellCheck[Input],SpellCheck[Correction],_xlpm.Program),\n_xlpm.Number,TEXT(_xlfn.TEXTAFTER(_xlpm.Contract,\"-\",2),\"0000\"),\n_xlfn.CONCAT(_xlpm.Yr,\"-\",_xlpm.CleanProgram,\"-\",_xlpm.Number))\n),\"\")","v":""},{"$f":"IFERROR(IF(A112=\"\",\"\",\n_xlfn.LET(_xlpm.Contract,'1. Checklist & Certification'!$F$7,\n_xlpm.Yr,TEXT(MOD(_xlfn.TEXTBEFORE(_xlpm.Contract,\"-\"),100),\"00\"),\n_xlpm.Program,_xlfn.TEXTAFTER(_xlfn.TEXTBEFORE(_xlpm.Contract,\"-\",2),\"-\"),\n_xlpm.CleanProgram,_xlfn.XLOOKUP(_xlpm.Program,SpellCheck[Input],SpellCheck[Correction],_xlpm.Program),\n_xlpm.Number,TEXT(_xlfn.TEXTAFTER(_xlpm.Contract,\"-\",2),\"0000\"),\n_xlfn.CONCAT(_xlpm.Yr,\"-\",_xlpm.CleanProgram,\"-\",_xlpm.Number))\n),\"\")","v":""},{"$f":"IFERROR(IF(A112=\"\",\"\",\n_xlfn.LET(_xlpm.Contract,'1. Checklist & Certification'!$F$8,\n_xlpm.Yr,TEXT(MOD(_xlfn.TEXTBEFORE(_xlpm.Contract,\"-\"),100),\"00\"),\n_xlpm.Program,_xlfn.TEXTAFTER(_xlfn.TEXTBEFORE(_xlpm.Contract,\"-\",2),\"-\"),\n_xlpm.CleanProgram,_xlfn.XLOOKUP(_xlpm.Program,SpellCheck[Input],SpellCheck[Correction],_xlpm.Program),\n_xlpm.Number,TEXT(_xlfn.TEXTAFTER(_xlpm.Contract,\"-\",2),\"0000\"),\n_xlfn.CONCAT(_xlpm.Yr,\"-\",_xlpm.CleanProgram,\"-\",_xlpm.Number))\n),\"\")","v":""},{"$f":"IF(A112=\"\",\"\",'1. Checklist & Certification'!$B$9)","v":""},{"$f":"IF(A112=\"\",\"\",'1. Checklist & Certification'!$F$9)","v":""},{"$f":"IF(A112=\"\",\"\",'1. Checklist & Certification'!$C$10)","v":""},{"$f":"IF(A112=\"\",\"\",'1. Checklist & Certification'!$C$11)","v":""},{"$f":"IF(A112=\"\",\"\",'1. Checklist & Certification'!$C$12)","v":""},{"$f":"IF(A112=\"\",\"\",'1. Checklist & Certification'!$B$14)","v":""},{"$f":"IF(A112=\"\",\"\",'1. Checklist & Certification'!$E$14)","v":""},{"$f":"IF(B112=\"\",\"\",'1. Checklist & Certification'!$G$14)","v":""},{"$f":"IF(A112=\"\",\"\",'MHP Family Income & Rent Limits'!$B$3)","v":""},{"$f":"IF(A112=\"\",\"\",'MHP Family Income & Rent Limits'!$J$3)","v":""},{"$f":"IF(A112=\"\",\"\",'MHP Family Income & Rent Limits'!$E$4)","v":""},{"$f":"IF(A112=\"\",\"\",'MHP Family Income & Rent Limits'!$C$7)","v":""},{"$f":"IF(A112=\"\",\"\",'MHP Family Income & Rent Limits'!$F$8)","v":""},{"$f":"IF(A112=\"\",\"\",'1. Checklist & Certification'!$G$4)","v":""},{"$f":"IF(A112=\"\",\"\",'1. Checklist & Certification'!$K$39)","v":""},{"$f":"IF(A112=\"\",\"\",'1. Checklist & Certification'!$K$43)","v":""},{"$f":"IF(A112=\"\",\"\",'1. Checklist & Certification'!$K$45)","v":""},{"$f":"IF(A112=\"\",\"\",'1. Checklist & Certification'!$K$49)","v":""},{"$f":"IF(A112=\"\",\"\",'1. Checklist & Certification'!$K$62)","v":""},{"$f":"IF(A112=\"\",\"\",'1. Checklist & Certification'!$E$66)","v":""},{"$f":"IF(A112=\"\",\"\",'1. Checklist & Certification'!$E$67)","v":""},{"$f":"IF(A112=\"\",\"\",'1. Checklist & Certification'!$E$68)","v":""},{"$f":"IF(A112=\"\",\"\",'1. Checklist & Certification'!$G$66)","v":""},{"$f":"IF(A112=\"\",\"\",'1. Checklist & Certification'!$H$66)","v":""},{"$f":"IF(A112=\"\",\"\",'1. Checklist & Certification'!$I$66)","v":""},{"$f":"IF(A112=\"\",\"\",'1. Checklist & Certification'!$I$67)","v":""},{"$f":"IF(A112=\"\",\"\",'1. Checklist & Certification'!$I$68)","v":""},{"$f":"IF(A112=\"\",\"\",'1. Checklist & Certification'!$B$69)","v":""},{"$f":"IF(A112=\"\",\"\",'1. Checklist & Certification'!$C$69)","v":""},{"$f":"IF(A112=\"\",\"\",'1. Checklist & Certification'!$F$69)","v":""},{"$f":"IF(A112=\"\",\"\",'1. Checklist & Certification'!$G$69)","v":""},{"$f":"IF(A112=\"\",\"\",'1. Checklist & Certification'!$J$69)","v":""},{"$f":"IF(A112=\"\",\"\",'1. Checklist & Certification'!$K$69)","v":""},null,null,{"$f":"IF(AND(OR('1. Checklist & Certification'!$M$16=1,'1. Checklist & Certification'!$M$19=2),AO112>0,B112=\"\",I112>0,AQ112<I112,AV112<>\"Sec 8-Project\"),\"X\",IF(AND(OR('1. Checklist & Certification'!$M$20=4,'1. Checklist & Certification'!$M$21=5,'1. Checklist & Certification'!$M$22=7),AO112>0,B112=\"\",I112>0,K112<I112),\"X\",\"\"))","v":""},{"$f":"IF(A112=\"\",\"\",IF(SUMPRODUCT(-- (ISNUMBER(SEARCH({\"*AHSC*\",\"*FMTW*\",\"*FWHG*\",\"*GHI*\",\"*HHC*\",\"*HLCP*\",\"*HOME*\",\"*LPR*\",\"*MHP*\",\"*NHTF*\",\"*NSP*\",\"*PRP*\",\"*TOD*\",\"*VHHP*\"},'1. Checklist & Certification'!$L$7)))),\"MHP\",\"Legacy\"))","v":""},",,",null,null,null,{"$f":"IF('1. Checklist & Certification'!$M$20=4,\"Both\",IF(OR('1. Checklist & Certification'!$M$15>0,S112=\"CHRP-R\",U112=\"CHRP-R\",W112=\"CHRP-R\",Y112=\"CHRP-R\"),\"Under\",\"No\"))","v":"No"},"No","No",{"$f":"_xlfn.IFS(D112=\"\",\"\",D112=1,'MHP Family Income & Rent Limits'!$E$17,D112=2,'MHP Family Income & Rent Limits'!$F$17,D112=3,'MHP Family Income & Rent Limits'!$G$17,D112=4,'MHP Family Income & Rent Limits'!$H$17,D112=5,'MHP Family Income & Rent Limits'!$I$17,D112=6,'MHP Family Income & Rent Limits'!$J$17,D112=7,'MHP Family Income & Rent Limits'!$K$17,D112=8,'MHP Family Income & Rent Limits'!$L$17)","v":""},"",{"$f":"IF(OR(A112=0,B112=\"X\"),0,MIN(IF(AA112:AD112<>0,AA112:AD112)))","v":0},{"$f":"IF(OR(H112=\"\",I112=\"\"),0,IF(H112*0.3/12>I112,MIN(H112*0.3/12,I112*1.1)+AP112,I112*(1+(VLOOKUP('1. Checklist & Certification'!$F$9,'HLCP-E Rent Change'!$A$1:$D$59,4,FALSE)))+AP112))","v":0}]
[null,null,null,null,null,null,null,null,null,null,null,null,null,null,null,null,null,null,null,null,null,null,null,null,null,null,0,0,0,0,0,0,0,0,{"$f":"IF(OR(A113=0,B113=\"X\"),0,IF(OR(S113=\"FHDP\",S113=\"RHCP-B\",U113=\"FHDP\",U113=\"RHCP-B\",W113=\"FHDP\",W113=\"RHCP-B\",Y113=\"FHDP\",Y113=\"RHCP-B\"),TRUNC((MIN(I113,K113)*(1+'1. Checklist & Certification'!$K$43)+AP113)),0))","v":0},{"$f":"IF(OR(A113=0,B113=\"X\"),0,IF(OR(S113=\"CHRP-R\",S113=\"SERA\",S113=\"SUHRP\",U113=\"CHRP-R\",U113=\"SERA\",U113=\"SUHRP\",W113=\"CHRP-R\",W113=\"SERA\",W113=\"SUHRP\",Y113=\"CHRP-R\",Y113=\"SERA\",Y113=\"SUHRP\"),TRUNC((MIN(I113,K113)*(1+'1. Checklist & Certification'!$K$49))),0))","v":0},{"$f":"IF(OR(A113=0,B113=\"X\"),0,IF(OR(S113=\"CALDAP\",S113=\"DPRLP\",U113=\"CALDAP\",U113=\"DPRLP\",W113=\"CALDAP\",W113=\"DPRLP\",Y113=\"CALDAP\",Y113=\"DPRLP\"),TRUNC(((MIN(I113,K113))*(1+'1. Checklist & Certification'!$G$4))),0))","v":0},0,0,0,{"$f":"IF(OR(A113=0,B113=\"X\"),0,IF(OR(S113=\"PRP\",S113=\"LPR\",U113=\"PRP\",U113=\"LPR\",W113=\"PRP\",W113=\"LPR\",Y113=\"PRP\",Y113=\"LPR\"),MAX(I113+AP113,MIN(IF(AE113:AN113<>0,AE113:AN113))),MIN(IF(AE113:AN113<>0,AE113:AN113))))","v":0},{"$f":"IF(A113=0,0,IF(AND(OR(S113=\"Mgr\",S113=0),OR(U113=\"Mgr\",U113=0),OR(W113=\"Mgr\",W113=0)),0,IF(LEFT($A113,2)=\"B*\",VLOOKUP($E113,'1. Checklist & Certification'!$D$26:$E$32,2),IF(LEFT($A113,2)=\"C*\",VLOOKUP($E113,'1. Checklist & Certification'!$F$26:$G$32,2),IF(LEFT($A113,2)=\"D*\",VLOOKUP($E113,'1. Checklist & Certification'!$H$26:$I$32,2),IF(LEFT($A113,2)=\"E*\",VLOOKUP($E113,'1. Checklist & Certification'!$J$26:$K$32,2),VLOOKUP($E113,'1. Checklist & Certification'!$A$26:$B$32,2)))))))","v":0},0,0,null,null,null,null,"","",0,0,0,null,{"$f":"IF(A113=\"\",\"\",'1. Checklist & Certification'!$K$1)","v":""},{"$f":"IF(A113=\"\",\"\",'1. Checklist & Certification'!$C$62)","v":""},{"$f":"IF(A113=\"\",\"\",'1. Checklist & Certification'!$C$6)","v":""},{"$f":"IF(A113=\"\",\"\",'1. Checklist & Certification'!$G$5)","v":""},{"$f":"IFERROR(IF(A113=\"\",\"\",\n_xlfn.LET(_xlpm.Contract,'1. Checklist & Certification'!$C$7,\n_xlpm.Yr,TEXT(MOD(_xlfn.TEXTBEFORE(_xlpm.Contract,\"-\"),100),\"00\"),\n_xlpm.Program,_xlfn.TEXTAFTER(_xlfn.TEXTBEFORE(_xlpm.Contract,\"-\",2),\"-\"),\n_xlpm.CleanProgram,_xlfn.XLOOKUP(_xlpm.Program,SpellCheck[Input],SpellCheck[Correction],_xlpm.Program),\n_xlpm.Number,TEXT(_xlfn.TEXTAFTER(_xlpm.Contract,\"-\",2),\"0000\"),\n_xlfn.CONCAT(_xlpm.Yr,\"-\",_xlpm.CleanProgram,\"-\",_xlpm.Number))\n),\"\")","v":""},{"$f":"IFERROR(IF(A113=\"\",\"\",\n_xlfn.LET(_xlpm.Contract,'1. Checklist & Certification'!$C$8,\n_xlpm.Yr,TEXT(MOD(_xlfn.TEXTBEFORE(_xlpm.Contract,\"-\"),100),\"00\"),\n_xlpm.Program,_xlfn.TEXTAFTER(_xlfn.TEXTBEFORE(_xlpm.Contract,\"-\",2),\"-\"),\n_xlpm.CleanProgram,_xlfn.XLOOKUP(_xlpm.Program,SpellCheck[Input],SpellCheck[Correction],_xlpm.Program),\n_xlpm.Number,TEXT(_xlfn.TEXTAFTER(_xlpm.Contract,\"-\",2),\"0000\"),\n_xlfn.CONCAT(_xlpm.Yr,\"-\",_xlpm.CleanProgram,\"-\",_xlpm.Number))\n),\"\")","v":""},{"$f":"IFERROR(IF(A113=\"\",\"\",\n_xlfn.LET(_xlpm.Contract,'1. Checklist & Certification'!$F$7,\n_xlpm.Yr,TEXT(MOD(_xlfn.TEXTBEFORE(_xlpm.Contract,\"-\"),100),\"00\"),\n_xlpm.Program,_xlfn.TEXTAFTER(_xlfn.TEXTBEFORE(_xlpm.Contract,\"-\",2),\"-\"),\n_xlpm.CleanProgram,_xlfn.XLOOKUP(_xlpm.Program,SpellCheck[Input],SpellCheck[Correction],_xlpm.Program),\n_xlpm.Number,TEXT(_xlfn.TEXTAFTER(_xlpm.Contract,\"-\",2),\"0000\"),\n_xlfn.CONCAT(_xlpm.Yr,\"-\",_xlpm.CleanProgram,\"-\",_xlpm.Number))\n),\"\")","v":""},{"$f":"IFERROR(IF(A113=\"\",\"\",\n_xlfn.LET(_xlpm.Contract,'1. Checklist & Certification'!$F$8,\n_xlpm.Yr,TEXT(MOD(_xlfn.TEXTBEFORE(_xlpm.Contract,\"-\"),100),\"00\"),\n_xlpm.Program,_xlfn.TEXTAFTER(_xlfn.TEXTBEFORE(_xlpm.Contract,\"-\",2),\"-\"),\n_xlpm.CleanProgram,_xlfn.XLOOKUP(_xlpm.Program,SpellCheck[Input],SpellCheck[Correction],_xlpm.Program),\n_xlpm.Number,TEXT(_xlfn.TEXTAFTER(_xlpm.Contract,\"-\",2),\"0000\"),\n_xlfn.CONCAT(_xlpm.Yr,\"-\",_xlpm.CleanProgram,\"-\",_xlpm.Number))\n),\"\")","v":""},{"$f":"IF(A113=\"\",\"\",'1. Checklist & Certification'!$B$9)","v":""},{"$f":"IF(A113=\"\",\"\",'1. Checklist & Certification'!$F$9)","v":""},{"$f":"IF(A113=\"\",\"\",'1. Checklist & Certification'!$C$10)","v":""},{"$f":"IF(A113=\"\",\"\",'1. Checklist & Certification'!$C$11)","v":""},{"$f":"IF(A113=\"\",\"\",'1. Checklist & Certification'!$C$12)","v":""},{"$f":"IF(A113=\"\",\"\",'1. Checklist & Certification'!$B$14)","v":""},{"$f":"IF(A113=\"\",\"\",'1. Checklist & Certification'!$E$14)","v":""},{"$f":"IF(B113=\"\",\"\",'1. Checklist & Certification'!$G$14)","v":""},{"$f":"IF(A113=\"\",\"\",'MHP Family Income & Rent Limits'!$B$3)","v":""},{"$f":"IF(A113=\"\",\"\",'MHP Family Income & Rent Limits'!$J$3)","v":""},{"$f":"IF(A113=\"\",\"\",'MHP Family Income & Rent Limits'!$E$4)","v":""},{"$f":"IF(A113=\"\",\"\",'MHP Family Income & Rent Limits'!$C$7)","v":""},{"$f":"IF(A113=\"\",\"\",'MHP Family Income & Rent Limits'!$F$8)","v":""},{"$f":"IF(A113=\"\",\"\",'1. Checklist & Certification'!$G$4)","v":""},{"$f":"IF(A113=\"\",\"\",'1. Checklist & Certification'!$K$39)","v":""},{"$f":"IF(A113=\"\",\"\",'1. Checklist & Certification'!$K$43)","v":""},{"$f":"IF(A113=\"\",\"\",'1. Checklist & Certification'!$K$45)","v":""},{"$f":"IF(A113=\"\",\"\",'1. Checklist & Certification'!$K$49)","v":""},{"$f":"IF(A113=\"\",\"\",'1. Checklist & Certification'!$K$62)","v":""},{"$f":"IF(A113=\"\",\"\",'1. Checklist & Certification'!$E$66)","v":""},{"$f":"IF(A113=\"\",\"\",'1. Checklist & Certification'!$E$67)","v":""},{"$f":"IF(A113=\"\",\"\",'1. Checklist & Certification'!$E$68)","v":""},{"$f":"IF(A113=\"\",\"\",'1. Checklist & Certification'!$G$66)","v":""},{"$f":"IF(A113=\"\",\"\",'1. Checklist & Certification'!$H$66)","v":""},{"$f":"IF(A113=\"\",\"\",'1. Checklist & Certification'!$I$66)","v":""},{"$f":"IF(A113=\"\",\"\",'1. Checklist & Certification'!$I$67)","v":""},{"$f":"IF(A113=\"\",\"\",'1. Checklist & Certification'!$I$68)","v":""},{"$f":"IF(A113=\"\",\"\",'1. Checklist & Certification'!$B$69)","v":""},{"$f":"IF(A113=\"\",\"\",'1. Checklist & Certification'!$C$69)","v":""},{"$f":"IF(A113=\"\",\"\",'1. Checklist & Certification'!$F$69)","v":""},{"$f":"IF(A113=\"\",\"\",'1. Checklist & Certification'!$G$69)","v":""},{"$f":"IF(A113=\"\",\"\",'1. Checklist & Certification'!$J$69)","v":""},{"$f":"IF(A113=\"\",\"\",'1. Checklist & Certification'!$K$69)","v":""},null,null,{"$f":"IF(AND(OR('1. Checklist & Certification'!$M$16=1,'1. Checklist & Certification'!$M$19=2),AO113>0,B113=\"\",I113>0,AQ113<I113,AV113<>\"Sec 8-Project\"),\"X\",IF(AND(OR('1. Checklist & Certification'!$M$20=4,'1. Checklist & Certification'!$M$21=5,'1. Checklist & Certification'!$M$22=7),AO113>0,B113=\"\",I113>0,K113<I113),\"X\",\"\"))","v":""},{"$f":"IF(A113=\"\",\"\",IF(SUMPRODUCT(-- (ISNUMBER(SEARCH({\"*AHSC*\",\"*FMTW*\",\"*FWHG*\",\"*GHI*\",\"*HHC*\",\"*HLCP*\",\"*HOME*\",\"*LPR*\",\"*MHP*\",\"*NHTF*\",\"*NSP*\",\"*PRP*\",\"*TOD*\",\"*VHHP*\"},'1. Checklist & Certification'!$L$7)))),\"MHP\",\"Legacy\"))","v":""},",,",null,null,null,{"$f":"IF('1. Checklist & Certification'!$M$20=4,\"Both\",IF(OR('1. Checklist & Certification'!$M$15>0,S113=\"CHRP-R\",U113=\"CHRP-R\",W113=\"CHRP-R\",Y113=\"CHRP-R\"),\"Under\",\"No\"))","v":"No"},"No","No",{"$f":"_xlfn.IFS(D113=\"\",\"\",D113=1,'MHP Family Income & Rent Limits'!$E$17,D113=2,'MHP Family Income & Rent Limits'!$F$17,D113=3,'MHP Family Income & Rent Limits'!$G$17,D113=4,'MHP Family Income & Rent Limits'!$H$17,D113=5,'MHP Family Income & Rent Limits'!$I$17,D113=6,'MHP Family Income & Rent Limits'!$J$17,D113=7,'MHP Family Income & Rent Limits'!$K$17,D113=8,'MHP Family Income & Rent Limits'!$L$17)","v":""},"",{"$f":"IF(OR(A113=0,B113=\"X\"),0,MIN(IF(AA113:AD113<>0,AA113:AD113)))","v":0},{"$f":"IF(OR(H113=\"\",I113=\"\"),0,IF(H113*0.3/12>I113,MIN(H113*0.3/12,I113*1.1)+AP113,I113*(1+(VLOOKUP('1. Checklist & Certification'!$F$9,'HLCP-E Rent Change'!$A$1:$D$59,4,FALSE)))+AP113))","v":0}]
[null,null,null,null,null,null,null,null,null,null,null,null,null,null,null,null,null,null,null,null,null,null,null,null,null,null,0,0,0,0,0,0,0,0,{"$f":"IF(OR(A114=0,B114=\"X\"),0,IF(OR(S114=\"FHDP\",S114=\"RHCP-B\",U114=\"FHDP\",U114=\"RHCP-B\",W114=\"FHDP\",W114=\"RHCP-B\",Y114=\"FHDP\",Y114=\"RHCP-B\"),TRUNC((MIN(I114,K114)*(1+'1. Checklist & Certification'!$K$43)+AP114)),0))","v":0},{"$f":"IF(OR(A114=0,B114=\"X\"),0,IF(OR(S114=\"CHRP-R\",S114=\"SERA\",S114=\"SUHRP\",U114=\"CHRP-R\",U114=\"SERA\",U114=\"SUHRP\",W114=\"CHRP-R\",W114=\"SERA\",W114=\"SUHRP\",Y114=\"CHRP-R\",Y114=\"SERA\",Y114=\"SUHRP\"),TRUNC((MIN(I114,K114)*(1+'1. Checklist & Certification'!$K$49))),0))","v":0},{"$f":"IF(OR(A114=0,B114=\"X\"),0,IF(OR(S114=\"CALDAP\",S114=\"DPRLP\",U114=\"CALDAP\",U114=\"DPRLP\",W114=\"CALDAP\",W114=\"DPRLP\",Y114=\"CALDAP\",Y114=\"DPRLP\"),TRUNC(((MIN(I114,K114))*(1+'1. Checklist & Certification'!$G$4))),0))","v":0},0,0,0,{"$f":"IF(OR(A114=0,B114=\"X\"),0,IF(OR(S114=\"PRP\",S114=\"LPR\",U114=\"PRP\",U114=\"LPR\",W114=\"PRP\",W114=\"LPR\",Y114=\"PRP\",Y114=\"LPR\"),MAX(I114+AP114,MIN(IF(AE114:AN114<>0,AE114:AN114))),MIN(IF(AE114:AN114<>0,AE114:AN114))))","v":0},{"$f":"IF(A114=0,0,IF(AND(OR(S114=\"Mgr\",S114=0),OR(U114=\"Mgr\",U114=0),OR(W114=\"Mgr\",W114=0)),0,IF(LEFT($A114,2)=\"B*\",VLOOKUP($E114,'1. Checklist & Certification'!$D$26:$E$32,2),IF(LEFT($A114,2)=\"C*\",VLOOKUP($E114,'1. Checklist & Certification'!$F$26:$G$32,2),IF(LEFT($A114,2)=\"D*\",VLOOKUP($E114,'1. Checklist & Certification'!$H$26:$I$32,2),IF(LEFT($A114,2)=\"E*\",VLOOKUP($E114,'1. Checklist & Certification'!$J$26:$K$32,2),VLOOKUP($E114,'1. Checklist & Certification'!$A$26:$B$32,2)))))))","v":0},0,0,null,null,null,null,"","",0,0,0,null,{"$f":"IF(A114=\"\",\"\",'1. Checklist & Certification'!$K$1)","v":""},{"$f":"IF(A114=\"\",\"\",'1. Checklist & Certification'!$C$62)","v":""},{"$f":"IF(A114=\"\",\"\",'1. Checklist & Certification'!$C$6)","v":""},{"$f":"IF(A114=\"\",\"\",'1. Checklist & Certification'!$G$5)","v":""},{"$f":"IFERROR(IF(A114=\"\",\"\",\n_xlfn.LET(_xlpm.Contract,'1. Checklist & Certification'!$C$7,\n_xlpm.Yr,TEXT(MOD(_xlfn.TEXTBEFORE(_xlpm.Contract,\"-\"),100),\"00\"),\n_xlpm.Program,_xlfn.TEXTAFTER(_xlfn.TEXTBEFORE(_xlpm.Contract,\"-\",2),\"-\"),\n_xlpm.CleanProgram,_xlfn.XLOOKUP(_xlpm.Program,SpellCheck[Input],SpellCheck[Correction],_xlpm.Program),\n_xlpm.Number,TEXT(_xlfn.TEXTAFTER(_xlpm.Contract,\"-\",2),\"0000\"),\n_xlfn.CONCAT(_xlpm.Yr,\"-\",_xlpm.CleanProgram,\"-\",_xlpm.Number))\n),\"\")","v":""},{"$f":"IFERROR(IF(A114=\"\",\"\",\n_xlfn.LET(_xlpm.Contract,'1. Checklist & Certification'!$C$8,\n_xlpm.Yr,TEXT(MOD(_xlfn.TEXTBEFORE(_xlpm.Contract,\"-\"),100),\"00\"),\n_xlpm.Program,_xlfn.TEXTAFTER(_xlfn.TEXTBEFORE(_xlpm.Contract,\"-\",2),\"-\"),\n_xlpm.CleanProgram,_xlfn.XLOOKUP(_xlpm.Program,SpellCheck[Input],SpellCheck[Correction],_xlpm.Program),\n_xlpm.Number,TEXT(_xlfn.TEXTAFTER(_xlpm.Contract,\"-\",2),\"0000\"),\n_xlfn.CONCAT(_xlpm.Yr,\"-\",_xlpm.CleanProgram,\"-\",_xlpm.Number))\n),\"\")","v":""},{"$f":"IFERROR(IF(A114=\"\",\"\",\n_xlfn.LET(_xlpm.Contract,'1. Checklist & Certification'!$F$7,\n_xlpm.Yr,TEXT(MOD(_xlfn.TEXTBEFORE(_xlpm.Contract,\"-\"),100),\"00\"),\n_xlpm.Program,_xlfn.TEXTAFTER(_xlfn.TEXTBEFORE(_xlpm.Contract,\"-\",2),\"-\"),\n_xlpm.CleanProgram,_xlfn.XLOOKUP(_xlpm.Program,SpellCheck[Input],SpellCheck[Correction],_xlpm.Program),\n_xlpm.Number,TEXT(_xlfn.TEXTAFTER(_xlpm.Contract,\"-\",2),\"0000\"),\n_xlfn.CONCAT(_xlpm.Yr,\"-\",_xlpm.CleanProgram,\"-\",_xlpm.Number))\n),\"\")","v":""},{"$f":"IFERROR(IF(A114=\"\",\"\",\n_xlfn.LET(_xlpm.Contract,'1. Checklist & Certification'!$F$8,\n_xlpm.Yr,TEXT(MOD(_xlfn.TEXTBEFORE(_xlpm.Contract,\"-\"),100),\"00\"),\n_xlpm.Program,_xlfn.TEXTAFTER(_xlfn.TEXTBEFORE(_xlpm.Contract,\"-\",2),\"-\"),\n_xlpm.CleanProgram,_xlfn.XLOOKUP(_xlpm.Program,SpellCheck[Input],SpellCheck[Correction],_xlpm.Program),\n_xlpm.Number,TEXT(_xlfn.TEXTAFTER(_xlpm.Contract,\"-\",2),\"0000\"),\n_xlfn.CONCAT(_xlpm.Yr,\"-\",_xlpm.CleanProgram,\"-\",_xlpm.Number))\n),\"\")","v":""},{"$f":"IF(A114=\"\",\"\",'1. Checklist & Certification'!$B$9)","v":""},{"$f":"IF(A114=\"\",\"\",'1. Checklist & Certification'!$F$9)","v":""},{"$f":"IF(A114=\"\",\"\",'1. Checklist & Certification'!$C$10)","v":""},{"$f":"IF(A114=\"\",\"\",'1. Checklist & Certification'!$C$11)","v":""},{"$f":"IF(A114=\"\",\"\",'1. Checklist & Certification'!$C$12)","v":""},{"$f":"IF(A114=\"\",\"\",'1. Checklist & Certification'!$B$14)","v":""},{"$f":"IF(A114=\"\",\"\",'1. Checklist & Certification'!$E$14)","v":""},{"$f":"IF(B114=\"\",\"\",'1. Checklist & Certification'!$G$14)","v":""},{"$f":"IF(A114=\"\",\"\",'MHP Family Income & Rent Limits'!$B$3)","v":""},{"$f":"IF(A114=\"\",\"\",'MHP Family Income & Rent Limits'!$J$3)","v":""},{"$f":"IF(A114=\"\",\"\",'MHP Family Income & Rent Limits'!$E$4)","v":""},{"$f":"IF(A114=\"\",\"\",'MHP Family Income & Rent Limits'!$C$7)","v":""},{"$f":"IF(A114=\"\",\"\",'MHP Family Income & Rent Limits'!$F$8)","v":""},{"$f":"IF(A114=\"\",\"\",'1. Checklist & Certification'!$G$4)","v":""},{"$f":"IF(A114=\"\",\"\",'1. Checklist & Certification'!$K$39)","v":""},{"$f":"IF(A114=\"\",\"\",'1. Checklist & Certification'!$K$43)","v":""},{"$f":"IF(A114=\"\",\"\",'1. Checklist & Certification'!$K$45)","v":""},{"$f":"IF(A114=\"\",\"\",'1. Checklist & Certification'!$K$49)","v":""},{"$f":"IF(A114=\"\",\"\",'1. Checklist & Certification'!$K$62)","v":""},{"$f":"IF(A114=\"\",\"\",'1. Checklist & Certification'!$E$66)","v":""},{"$f":"IF(A114=\"\",\"\",'1. Checklist & Certification'!$E$67)","v":""},{"$f":"IF(A114=\"\",\"\",'1. Checklist & Certification'!$E$68)","v":""},{"$f":"IF(A114=\"\",\"\",'1. Checklist & Certification'!$G$66)","v":""},{"$f":"IF(A114=\"\",\"\",'1. Checklist & Certification'!$H$66)","v":""},{"$f":"IF(A114=\"\",\"\",'1. Checklist & Certification'!$I$66)","v":""},{"$f":"IF(A114=\"\",\"\",'1. Checklist & Certification'!$I$67)","v":""},{"$f":"IF(A114=\"\",\"\",'1. Checklist & Certification'!$I$68)","v":""},{"$f":"IF(A114=\"\",\"\",'1. Checklist & Certification'!$B$69)","v":""},{"$f":"IF(A114=\"\",\"\",'1. Checklist & Certification'!$C$69)","v":""},{"$f":"IF(A114=\"\",\"\",'1. Checklist & Certification'!$F$69)","v":""},{"$f":"IF(A114=\"\",\"\",'1. Checklist & Certification'!$G$69)","v":""},{"$f":"IF(A114=\"\",\"\",'1. Checklist & Certification'!$J$69)","v":""},{"$f":"IF(A114=\"\",\"\",'1. Checklist & Certification'!$K$69)","v":""},null,null,{"$f":"IF(AND(OR('1. Checklist & Certification'!$M$16=1,'1. Checklist & Certification'!$M$19=2),AO114>0,B114=\"\",I114>0,AQ114<I114,AV114<>\"Sec 8-Project\"),\"X\",IF(AND(OR('1. Checklist & Certification'!$M$20=4,'1. Checklist & Certification'!$M$21=5,'1. Checklist & Certification'!$M$22=7),AO114>0,B114=\"\",I114>0,K114<I114),\"X\",\"\"))","v":""},{"$f":"IF(A114=\"\",\"\",IF(SUMPRODUCT(-- (ISNUMBER(SEARCH({\"*AHSC*\",\"*FMTW*\",\"*FWHG*\",\"*GHI*\",\"*HHC*\",\"*HLCP*\",\"*HOME*\",\"*LPR*\",\"*MHP*\",\"*NHTF*\",\"*NSP*\",\"*PRP*\",\"*TOD*\",\"*VHHP*\"},'1. Checklist & Certification'!$L$7)))),\"MHP\",\"Legacy\"))","v":""},",,",null,null,null,{"$f":"IF('1. Checklist & Certification'!$M$20=4,\"Both\",IF(OR('1. Checklist & Certification'!$M$15>0,S114=\"CHRP-R\",U114=\"CHRP-R\",W114=\"CHRP-R\",Y114=\"CHRP-R\"),\"Under\",\"No\"))","v":"No"},"No","No",{"$f":"_xlfn.IFS(D114=\"\",\"\",D114=1,'MHP Family Income & Rent Limits'!$E$17,D114=2,'MHP Family Income & Rent Limits'!$F$17,D114=3,'MHP Family Income & Rent Limits'!$G$17,D114=4,'MHP Family Income & Rent Limits'!$H$17,D114=5,'MHP Family Income & Rent Limits'!$I$17,D114=6,'MHP Family Income & Rent Limits'!$J$17,D114=7,'MHP Family Income & Rent Limits'!$K$17,D114=8,'MHP Family Income & Rent Limits'!$L$17)","v":""},"",{"$f":"IF(OR(A114=0,B114=\"X\"),0,MIN(IF(AA114:AD114<>0,AA114:AD114)))","v":0},{"$f":"IF(OR(H114=\"\",I114=\"\"),0,IF(H114*0.3/12>I114,MIN(H114*0.3/12,I114*1.1)+AP114,I114*(1+(VLOOKUP('1. Checklist & Certification'!$F$9,'HLCP-E Rent Change'!$A$1:$D$59,4,FALSE)))+AP114))","v":0}]
[null,null,null,null,null,null,null,null,null,null,null,null,null,null,null,null,null,null,null,null,null,null,null,null,null,null,0,0,0,0,0,0,0,0,{"$f":"IF(OR(A115=0,B115=\"X\"),0,IF(OR(S115=\"FHDP\",S115=\"RHCP-B\",U115=\"FHDP\",U115=\"RHCP-B\",W115=\"FHDP\",W115=\"RHCP-B\",Y115=\"FHDP\",Y115=\"RHCP-B\"),TRUNC((MIN(I115,K115)*(1+'1. Checklist & Certification'!$K$43)+AP115)),0))","v":0},{"$f":"IF(OR(A115=0,B115=\"X\"),0,IF(OR(S115=\"CHRP-R\",S115=\"SERA\",S115=\"SUHRP\",U115=\"CHRP-R\",U115=\"SERA\",U115=\"SUHRP\",W115=\"CHRP-R\",W115=\"SERA\",W115=\"SUHRP\",Y115=\"CHRP-R\",Y115=\"SERA\",Y115=\"SUHRP\"),TRUNC((MIN(I115,K115)*(1+'1. Checklist & Certification'!$K$49))),0))","v":0},{"$f":"IF(OR(A115=0,B115=\"X\"),0,IF(OR(S115=\"CALDAP\",S115=\"DPRLP\",U115=\"CALDAP\",U115=\"DPRLP\",W115=\"CALDAP\",W115=\"DPRLP\",Y115=\"CALDAP\",Y115=\"DPRLP\"),TRUNC(((MIN(I115,K115))*(1+'1. Checklist & Certification'!$G$4))),0))","v":0},0,0,0,{"$f":"IF(OR(A115=0,B115=\"X\"),0,IF(OR(S115=\"PRP\",S115=\"LPR\",U115=\"PRP\",U115=\"LPR\",W115=\"PRP\",W115=\"LPR\",Y115=\"PRP\",Y115=\"LPR\"),MAX(I115+AP115,MIN(IF(AE115:AN115<>0,AE115:AN115))),MIN(IF(AE115:AN115<>0,AE115:AN115))))","v":0},{"$f":"IF(A115=0,0,IF(AND(OR(S115=\"Mgr\",S115=0),OR(U115=\"Mgr\",U115=0),OR(W115=\"Mgr\",W115=0)),0,IF(LEFT($A115,2)=\"B*\",VLOOKUP($E115,'1. Checklist & Certification'!$D$26:$E$32,2),IF(LEFT($A115,2)=\"C*\",VLOOKUP($E115,'1. Checklist & Certification'!$F$26:$G$32,2),IF(LEFT($A115,2)=\"D*\",VLOOKUP($E115,'1. Checklist & Certification'!$H$26:$I$32,2),IF(LEFT($A115,2)=\"E*\",VLOOKUP($E115,'1. Checklist & Certification'!$J$26:$K$32,2),VLOOKUP($E115,'1. Checklist & Certification'!$A$26:$B$32,2)))))))","v":0},0,0,null,null,null,null,"","",0,0,0,null,{"$f":"IF(A115=\"\",\"\",'1. Checklist & Certification'!$K$1)","v":""},{"$f":"IF(A115=\"\",\"\",'1. Checklist & Certification'!$C$62)","v":""},{"$f":"IF(A115=\"\",\"\",'1. Checklist & Certification'!$C$6)","v":""},{"$f":"IF(A115=\"\",\"\",'1. Checklist & Certification'!$G$5)","v":""},{"$f":"IFERROR(IF(A115=\"\",\"\",\n_xlfn.LET(_xlpm.Contract,'1. Checklist & Certification'!$C$7,\n_xlpm.Yr,TEXT(MOD(_xlfn.TEXTBEFORE(_xlpm.Contract,\"-\"),100),\"00\"),\n_xlpm.Program,_xlfn.TEXTAFTER(_xlfn.TEXTBEFORE(_xlpm.Contract,\"-\",2),\"-\"),\n_xlpm.CleanProgram,_xlfn.XLOOKUP(_xlpm.Program,SpellCheck[Input],SpellCheck[Correction],_xlpm.Program),\n_xlpm.Number,TEXT(_xlfn.TEXTAFTER(_xlpm.Contract,\"-\",2),\"0000\"),\n_xlfn.CONCAT(_xlpm.Yr,\"-\",_xlpm.CleanProgram,\"-\",_xlpm.Number))\n),\"\")","v":""},{"$f":"IFERROR(IF(A115=\"\",\"\",\n_xlfn.LET(_xlpm.Contract,'1. Checklist & Certification'!$C$8,\n_xlpm.Yr,TEXT(MOD(_xlfn.TEXTBEFORE(_xlpm.Contract,\"-\"),100),\"00\"),\n_xlpm.Program,_xlfn.TEXTAFTER(_xlfn.TEXTBEFORE(_xlpm.Contract,\"-\",2),\"-\"),\n_xlpm.CleanProgram,_xlfn.XLOOKUP(_xlpm.Program,SpellCheck[Input],SpellCheck[Correction],_xlpm.Program),\n_xlpm.Number,TEXT(_xlfn.TEXTAFTER(_xlpm.Contract,\"-\",2),\"0000\"),\n_xlfn.CONCAT(_xlpm.Yr,\"-\",_xlpm.CleanProgram,\"-\",_xlpm.Number))\n),\"\")","v":""},{"$f":"IFERROR(IF(A115=\"\",\"\",\n_xlfn.LET(_xlpm.Contract,'1. Checklist & Certification'!$F$7,\n_xlpm.Yr,TEXT(MOD(_xlfn.TEXTBEFORE(_xlpm.Contract,\"-\"),100),\"00\"),\n_xlpm.Program,_xlfn.TEXTAFTER(_xlfn.TEXTBEFORE(_xlpm.Contract,\"-\",2),\"-\"),\n_xlpm.CleanProgram,_xlfn.XLOOKUP(_xlpm.Program,SpellCheck[Input],SpellCheck[Correction],_xlpm.Program),\n_xlpm.Number,TEXT(_xlfn.TEXTAFTER(_xlpm.Contract,\"-\",2),\"0000\"),\n_xlfn.CONCAT(_xlpm.Yr,\"-\",_xlpm.CleanProgram,\"-\",_xlpm.Number))\n),\"\")","v":""},{"$f":"IFERROR(IF(A115=\"\",\"\",\n_xlfn.LET(_xlpm.Contract,'1. Checklist & Certification'!$F$8,\n_xlpm.Yr,TEXT(MOD(_xlfn.TEXTBEFORE(_xlpm.Contract,\"-\"),100),\"00\"),\n_xlpm.Program,_xlfn.TEXTAFTER(_xlfn.TEXTBEFORE(_xlpm.Contract,\"-\",2),\"-\"),\n_xlpm.CleanProgram,_xlfn.XLOOKUP(_xlpm.Program,SpellCheck[Input],SpellCheck[Correction],_xlpm.Program),\n_xlpm.Number,TEXT(_xlfn.TEXTAFTER(_xlpm.Contract,\"-\",2),\"0000\"),\n_xlfn.CONCAT(_xlpm.Yr,\"-\",_xlpm.CleanProgram,\"-\",_xlpm.Number))\n),\"\")","v":""},{"$f":"IF(A115=\"\",\"\",'1. Checklist & Certification'!$B$9)","v":""},{"$f":"IF(A115=\"\",\"\",'1. Checklist & Certification'!$F$9)","v":""},{"$f":"IF(A115=\"\",\"\",'1. Checklist & Certification'!$C$10)","v":""},{"$f":"IF(A115=\"\",\"\",'1. Checklist & Certification'!$C$11)","v":""},{"$f":"IF(A115=\"\",\"\",'1. Checklist & Certification'!$C$12)","v":""},{"$f":"IF(A115=\"\",\"\",'1. Checklist & Certification'!$B$14)","v":""},{"$f":"IF(A115=\"\",\"\",'1. Checklist & Certification'!$E$14)","v":""},{"$f":"IF(B115=\"\",\"\",'1. Checklist & Certification'!$G$14)","v":""},{"$f":"IF(A115=\"\",\"\",'MHP Family Income & Rent Limits'!$B$3)","v":""},{"$f":"IF(A115=\"\",\"\",'MHP Family Income & Rent Limits'!$J$3)","v":""},{"$f":"IF(A115=\"\",\"\",'MHP Family Income & Rent Limits'!$E$4)","v":""},{"$f":"IF(A115=\"\",\"\",'MHP Family Income & Rent Limits'!$C$7)","v":""},{"$f":"IF(A115=\"\",\"\",'MHP Family Income & Rent Limits'!$F$8)","v":""},{"$f":"IF(A115=\"\",\"\",'1. Checklist & Certification'!$G$4)","v":""},{"$f":"IF(A115=\"\",\"\",'1. Checklist & Certification'!$K$39)","v":""},{"$f":"IF(A115=\"\",\"\",'1. Checklist & Certification'!$K$43)","v":""},{"$f":"IF(A115=\"\",\"\",'1. Checklist & Certification'!$K$45)","v":""},{"$f":"IF(A115=\"\",\"\",'1. Checklist & Certification'!$K$49)","v":""},{"$f":"IF(A115=\"\",\"\",'1. Checklist & Certification'!$K$62)","v":""},{"$f":"IF(A115=\"\",\"\",'1. Checklist & Certification'!$E$66)","v":""},{"$f":"IF(A115=\"\",\"\",'1. Checklist & Certification'!$E$67)","v":""},{"$f":"IF(A115=\"\",\"\",'1. Checklist & Certification'!$E$68)","v":""},{"$f":"IF(A115=\"\",\"\",'1. Checklist & Certification'!$G$66)","v":""},{"$f":"IF(A115=\"\",\"\",'1. Checklist & Certification'!$H$66)","v":""},{"$f":"IF(A115=\"\",\"\",'1. Checklist & Certification'!$I$66)","v":""},{"$f":"IF(A115=\"\",\"\",'1. Checklist & Certification'!$I$67)","v":""},{"$f":"IF(A115=\"\",\"\",'1. Checklist & Certification'!$I$68)","v":""},{"$f":"IF(A115=\"\",\"\",'1. Checklist & Certification'!$B$69)","v":""},{"$f":"IF(A115=\"\",\"\",'1. Checklist & Certification'!$C$69)","v":""},{"$f":"IF(A115=\"\",\"\",'1. Checklist & Certification'!$F$69)","v":""},{"$f":"IF(A115=\"\",\"\",'1. Checklist & Certification'!$G$69)","v":""},{"$f":"IF(A115=\"\",\"\",'1. Checklist & Certification'!$J$69)","v":""},{"$f":"IF(A115=\"\",\"\",'1. Checklist & Certification'!$K$69)","v":""},null,null,{"$f":"IF(AND(OR('1. Checklist & Certification'!$M$16=1,'1. Checklist & Certification'!$M$19=2),AO115>0,B115=\"\",I115>0,AQ115<I115,AV115<>\"Sec 8-Project\"),\"X\",IF(AND(OR('1. Checklist & Certification'!$M$20=4,'1. Checklist & Certification'!$M$21=5,'1. Checklist & Certification'!$M$22=7),AO115>0,B115=\"\",I115>0,K115<I115),\"X\",\"\"))","v":""},{"$f":"IF(A115=\"\",\"\",IF(SUMPRODUCT(-- (ISNUMBER(SEARCH({\"*AHSC*\",\"*FMTW*\",\"*FWHG*\",\"*GHI*\",\"*HHC*\",\"*HLCP*\",\"*HOME*\",\"*LPR*\",\"*MHP*\",\"*NHTF*\",\"*NSP*\",\"*PRP*\",\"*TOD*\",\"*VHHP*\"},'1. Checklist & Certification'!$L$7)))),\"MHP\",\"Legacy\"))","v":""},",,",null,null,null,{"$f":"IF('1. Checklist & Certification'!$M$20=4,\"Both\",IF(OR('1. Checklist & Certification'!$M$15>0,S115=\"CHRP-R\",U115=\"CHRP-R\",W115=\"CHRP-R\",Y115=\"CHRP-R\"),\"Under\",\"No\"))","v":"No"},"No","No",{"$f":"_xlfn.IFS(D115=\"\",\"\",D115=1,'MHP Family Income & Rent Limits'!$E$17,D115=2,'MHP Family Income & Rent Limits'!$F$17,D115=3,'MHP Family Income & Rent Limits'!$G$17,D115=4,'MHP Family Income & Rent Limits'!$H$17,D115=5,'MHP Family Income & Rent Limits'!$I$17,D115=6,'MHP Family Income & Rent Limits'!$J$17,D115=7,'MHP Family Income & Rent Limits'!$K$17,D115=8,'MHP Family Income & Rent Limits'!$L$17)","v":""},"",{"$f":"IF(OR(A115=0,B115=\"X\"),0,MIN(IF(AA115:AD115<>0,AA115:AD115)))","v":0},{"$f":"IF(OR(H115=\"\",I115=\"\"),0,IF(H115*0.3/12>I115,MIN(H115*0.3/12,I115*1.1)+AP115,I115*(1+(VLOOKUP('1. Checklist & Certification'!$F$9,'HLCP-E Rent Change'!$A$1:$D$59,4,FALSE)))+AP115))","v":0}]
[null,null,null,null,null,null,null,null,null,null,null,null,null,null,null,null,null,null,null,null,null,null,null,null,null,null,0,0,0,0,0,0,0,0,{"$f":"IF(OR(A116=0,B116=\"X\"),0,IF(OR(S116=\"FHDP\",S116=\"RHCP-B\",U116=\"FHDP\",U116=\"RHCP-B\",W116=\"FHDP\",W116=\"RHCP-B\",Y116=\"FHDP\",Y116=\"RHCP-B\"),TRUNC((MIN(I116,K116)*(1+'1. Checklist & Certification'!$K$43)+AP116)),0))","v":0},{"$f":"IF(OR(A116=0,B116=\"X\"),0,IF(OR(S116=\"CHRP-R\",S116=\"SERA\",S116=\"SUHRP\",U116=\"CHRP-R\",U116=\"SERA\",U116=\"SUHRP\",W116=\"CHRP-R\",W116=\"SERA\",W116=\"SUHRP\",Y116=\"CHRP-R\",Y116=\"SERA\",Y116=\"SUHRP\"),TRUNC((MIN(I116,K116)*(1+'1. Checklist & Certification'!$K$49))),0))","v":0},{"$f":"IF(OR(A116=0,B116=\"X\"),0,IF(OR(S116=\"CALDAP\",S116=\"DPRLP\",U116=\"CALDAP\",U116=\"DPRLP\",W116=\"CALDAP\",W116=\"DPRLP\",Y116=\"CALDAP\",Y116=\"DPRLP\"),TRUNC(((MIN(I116,K116))*(1+'1. Checklist & Certification'!$G$4))),0))","v":0},0,0,0,{"$f":"IF(OR(A116=0,B116=\"X\"),0,IF(OR(S116=\"PRP\",S116=\"LPR\",U116=\"PRP\",U116=\"LPR\",W116=\"PRP\",W116=\"LPR\",Y116=\"PRP\",Y116=\"LPR\"),MAX(I116+AP116,MIN(IF(AE116:AN116<>0,AE116:AN116))),MIN(IF(AE116:AN116<>0,AE116:AN116))))","v":0},{"$f":"IF(A116=0,0,IF(AND(OR(S116=\"Mgr\",S116=0),OR(U116=\"Mgr\",U116=0),OR(W116=\"Mgr\",W116=0)),0,IF(LEFT($A116,2)=\"B*\",VLOOKUP($E116,'1. Checklist & Certification'!$D$26:$E$32,2),IF(LEFT($A116,2)=\"C*\",VLOOKUP($E116,'1. Checklist & Certification'!$F$26:$G$32,2),IF(LEFT($A116,2)=\"D*\",VLOOKUP($E116,'1. Checklist & Certification'!$H$26:$I$32,2),IF(LEFT($A116,2)=\"E*\",VLOOKUP($E116,'1. Checklist & Certification'!$J$26:$K$32,2),VLOOKUP($E116,'1. Checklist & Certification'!$A$26:$B$32,2)))))))","v":0},0,0,null,null,null,null,"","",0,0,0,null,{"$f":"IF(A116=\"\",\"\",'1. Checklist & Certification'!$K$1)","v":""},{"$f":"IF(A116=\"\",\"\",'1. Checklist & Certification'!$C$62)","v":""},{"$f":"IF(A116=\"\",\"\",'1. Checklist & Certification'!$C$6)","v":""},{"$f":"IF(A116=\"\",\"\",'1. Checklist & Certification'!$G$5)","v":""},{"$f":"IFERROR(IF(A116=\"\",\"\",\n_xlfn.LET(_xlpm.Contract,'1. Checklist & Certification'!$C$7,\n_xlpm.Yr,TEXT(MOD(_xlfn.TEXTBEFORE(_xlpm.Contract,\"-\"),100),\"00\"),\n_xlpm.Program,_xlfn.TEXTAFTER(_xlfn.TEXTBEFORE(_xlpm.Contract,\"-\",2),\"-\"),\n_xlpm.CleanProgram,_xlfn.XLOOKUP(_xlpm.Program,SpellCheck[Input],SpellCheck[Correction],_xlpm.Program),\n_xlpm.Number,TEXT(_xlfn.TEXTAFTER(_xlpm.Contract,\"-\",2),\"0000\"),\n_xlfn.CONCAT(_xlpm.Yr,\"-\",_xlpm.CleanProgram,\"-\",_xlpm.Number))\n),\"\")","v":""},{"$f":"IFERROR(IF(A116=\"\",\"\",\n_xlfn.LET(_xlpm.Contract,'1. Checklist & Certification'!$C$8,\n_xlpm.Yr,TEXT(MOD(_xlfn.TEXTBEFORE(_xlpm.Contract,\"-\"),100),\"00\"),\n_xlpm.Program,_xlfn.TEXTAFTER(_xlfn.TEXTBEFORE(_xlpm.Contract,\"-\",2),\"-\"),\n_xlpm.CleanProgram,_xlfn.XLOOKUP(_xlpm.Program,SpellCheck[Input],SpellCheck[Correction],_xlpm.Program),\n_xlpm.Number,TEXT(_xlfn.TEXTAFTER(_xlpm.Contract,\"-\",2),\"0000\"),\n_xlfn.CONCAT(_xlpm.Yr,\"-\",_xlpm.CleanProgram,\"-\",_xlpm.Number))\n),\"\")","v":""},{"$f":"IFERROR(IF(A116=\"\",\"\",\n_xlfn.LET(_xlpm.Contract,'1. Checklist & Certification'!$F$7,\n_xlpm.Yr,TEXT(MOD(_xlfn.TEXTBEFORE(_xlpm.Contract,\"-\"),100),\"00\"),\n_xlpm.Program,_xlfn.TEXTAFTER(_xlfn.TEXTBEFORE(_xlpm.Contract,\"-\",2),\"-\"),\n_xlpm.CleanProgram,_xlfn.XLOOKUP(_xlpm.Program,SpellCheck[Input],SpellCheck[Correction],_xlpm.Program),\n_xlpm.Number,TEXT(_xlfn.TEXTAFTER(_xlpm.Contract,\"-\",2),\"0000\"),\n_xlfn.CONCAT(_xlpm.Yr,\"-\",_xlpm.CleanProgram,\"-\",_xlpm.Number))\n),\"\")","v":""},{"$f":"IFERROR(IF(A116=\"\",\"\",\n_xlfn.LET(_xlpm.Contract,'1. Checklist & Certification'!$F$8,\n_xlpm.Yr,TEXT(MOD(_xlfn.TEXTBEFORE(_xlpm.Contract,\"-\"),100),\"00\"),\n_xlpm.Program,_xlfn.TEXTAFTER(_xlfn.TEXTBEFORE(_xlpm.Contract,\"-\",2),\"-\"),\n_xlpm.CleanProgram,_xlfn.XLOOKUP(_xlpm.Program,SpellCheck[Input],SpellCheck[Correction],_xlpm.Program),\n_xlpm.Number,TEXT(_xlfn.TEXTAFTER(_xlpm.Contract,\"-\",2),\"0000\"),\n_xlfn.CONCAT(_xlpm.Yr,\"-\",_xlpm.CleanProgram,\"-\",_xlpm.Number))\n),\"\")","v":""},{"$f":"IF(A116=\"\",\"\",'1. Checklist & Certification'!$B$9)","v":""},{"$f":"IF(A116=\"\",\"\",'1. Checklist & Certification'!$F$9)","v":""},{"$f":"IF(A116=\"\",\"\",'1. Checklist & Certification'!$C$10)","v":""},{"$f":"IF(A116=\"\",\"\",'1. Checklist & Certification'!$C$11)","v":""},{"$f":"IF(A116=\"\",\"\",'1. Checklist & Certification'!$C$12)","v":""},{"$f":"IF(A116=\"\",\"\",'1. Checklist & Certification'!$B$14)","v":""},{"$f":"IF(A116=\"\",\"\",'1. Checklist & Certification'!$E$14)","v":""},{"$f":"IF(B116=\"\",\"\",'1. Checklist & Certification'!$G$14)","v":""},{"$f":"IF(A116=\"\",\"\",'MHP Family Income & Rent Limits'!$B$3)","v":""},{"$f":"IF(A116=\"\",\"\",'MHP Family Income & Rent Limits'!$J$3)","v":""},{"$f":"IF(A116=\"\",\"\",'MHP Family Income & Rent Limits'!$E$4)","v":""},{"$f":"IF(A116=\"\",\"\",'MHP Family Income & Rent Limits'!$C$7)","v":""},{"$f":"IF(A116=\"\",\"\",'MHP Family Income & Rent Limits'!$F$8)","v":""},{"$f":"IF(A116=\"\",\"\",'1. Checklist & Certification'!$G$4)","v":""},{"$f":"IF(A116=\"\",\"\",'1. Checklist & Certification'!$K$39)","v":""},{"$f":"IF(A116=\"\",\"\",'1. Checklist & Certification'!$K$43)","v":""},{"$f":"IF(A116=\"\",\"\",'1. Checklist & Certification'!$K$45)","v":""},{"$f":"IF(A116=\"\",\"\",'1. Checklist & Certification'!$K$49)","v":""},{"$f":"IF(A116=\"\",\"\",'1. Checklist & Certification'!$K$62)","v":""},{"$f":"IF(A116=\"\",\"\",'1. Checklist & Certification'!$E$66)","v":""},{"$f":"IF(A116=\"\",\"\",'1. Checklist & Certification'!$E$67)","v":""},{"$f":"IF(A116=\"\",\"\",'1. Checklist & Certification'!$E$68)","v":""},{"$f":"IF(A116=\"\",\"\",'1. Checklist & Certification'!$G$66)","v":""},{"$f":"IF(A116=\"\",\"\",'1. Checklist & Certification'!$H$66)","v":""},{"$f":"IF(A116=\"\",\"\",'1. Checklist & Certification'!$I$66)","v":""},{"$f":"IF(A116=\"\",\"\",'1. Checklist & Certification'!$I$67)","v":""},{"$f":"IF(A116=\"\",\"\",'1. Checklist & Certification'!$I$68)","v":""},{"$f":"IF(A116=\"\",\"\",'1. Checklist & Certification'!$B$69)","v":""},{"$f":"IF(A116=\"\",\"\",'1. Checklist & Certification'!$C$69)","v":""},{"$f":"IF(A116=\"\",\"\",'1. Checklist & Certification'!$F$69)","v":""},{"$f":"IF(A116=\"\",\"\",'1. Checklist & Certification'!$G$69)","v":""},{"$f":"IF(A116=\"\",\"\",'1. Checklist & Certification'!$J$69)","v":""},{"$f":"IF(A116=\"\",\"\",'1. Checklist & Certification'!$K$69)","v":""},null,null,{"$f":"IF(AND(OR('1. Checklist & Certification'!$M$16=1,'1. Checklist & Certification'!$M$19=2),AO116>0,B116=\"\",I116>0,AQ116<I116,AV116<>\"Sec 8-Project\"),\"X\",IF(AND(OR('1. Checklist & Certification'!$M$20=4,'1. Checklist & Certification'!$M$21=5,'1. Checklist & Certification'!$M$22=7),AO116>0,B116=\"\",I116>0,K116<I116),\"X\",\"\"))","v":""},{"$f":"IF(A116=\"\",\"\",IF(SUMPRODUCT(-- (ISNUMBER(SEARCH({\"*AHSC*\",\"*FMTW*\",\"*FWHG*\",\"*GHI*\",\"*HHC*\",\"*HLCP*\",\"*HOME*\",\"*LPR*\",\"*MHP*\",\"*NHTF*\",\"*NSP*\",\"*PRP*\",\"*TOD*\",\"*VHHP*\"},'1. Checklist & Certification'!$L$7)))),\"MHP\",\"Legacy\"))","v":""},",,",null,null,null,{"$f":"IF('1. Checklist & Certification'!$M$20=4,\"Both\",IF(OR('1. Checklist & Certification'!$M$15>0,S116=\"CHRP-R\",U116=\"CHRP-R\",W116=\"CHRP-R\",Y116=\"CHRP-R\"),\"Under\",\"No\"))","v":"No"},"No","No",{"$f":"_xlfn.IFS(D116=\"\",\"\",D116=1,'MHP Family Income & Rent Limits'!$E$17,D116=2,'MHP Family Income & Rent Limits'!$F$17,D116=3,'MHP Family Income & Rent Limits'!$G$17,D116=4,'MHP Family Income & Rent Limits'!$H$17,D116=5,'MHP Family Income & Rent Limits'!$I$17,D116=6,'MHP Family Income & Rent Limits'!$J$17,D116=7,'MHP Family Income & Rent Limits'!$K$17,D116=8,'MHP Family Income & Rent Limits'!$L$17)","v":""},"",{"$f":"IF(OR(A116=0,B116=\"X\"),0,MIN(IF(AA116:AD116<>0,AA116:AD116)))","v":0},{"$f":"IF(OR(H116=\"\",I116=\"\"),0,IF(H116*0.3/12>I116,MIN(H116*0.3/12,I116*1.1)+AP116,I116*(1+(VLOOKUP('1. Checklist & Certification'!$F$9,'HLCP-E Rent Change'!$A$1:$D$59,4,FALSE)))+AP116))","v":0}]
[null,null,null,null,null,null,null,null,null,null,null,null,null,null,null,null,null,null,null,null,null,null,null,null,null,null,0,0,0,0,0,0,0,0,{"$f":"IF(OR(A117=0,B117=\"X\"),0,IF(OR(S117=\"FHDP\",S117=\"RHCP-B\",U117=\"FHDP\",U117=\"RHCP-B\",W117=\"FHDP\",W117=\"RHCP-B\",Y117=\"FHDP\",Y117=\"RHCP-B\"),TRUNC((MIN(I117,K117)*(1+'1. Checklist & Certification'!$K$43)+AP117)),0))","v":0},{"$f":"IF(OR(A117=0,B117=\"X\"),0,IF(OR(S117=\"CHRP-R\",S117=\"SERA\",S117=\"SUHRP\",U117=\"CHRP-R\",U117=\"SERA\",U117=\"SUHRP\",W117=\"CHRP-R\",W117=\"SERA\",W117=\"SUHRP\",Y117=\"CHRP-R\",Y117=\"SERA\",Y117=\"SUHRP\"),TRUNC((MIN(I117,K117)*(1+'1. Checklist & Certification'!$K$49))),0))","v":0},{"$f":"IF(OR(A117=0,B117=\"X\"),0,IF(OR(S117=\"CALDAP\",S117=\"DPRLP\",U117=\"CALDAP\",U117=\"DPRLP\",W117=\"CALDAP\",W117=\"DPRLP\",Y117=\"CALDAP\",Y117=\"DPRLP\"),TRUNC(((MIN(I117,K117))*(1+'1. Checklist & Certification'!$G$4))),0))","v":0},0,0,0,{"$f":"IF(OR(A117=0,B117=\"X\"),0,IF(OR(S117=\"PRP\",S117=\"LPR\",U117=\"PRP\",U117=\"LPR\",W117=\"PRP\",W117=\"LPR\",Y117=\"PRP\",Y117=\"LPR\"),MAX(I117+AP117,MIN(IF(AE117:AN117<>0,AE117:AN117))),MIN(IF(AE117:AN117<>0,AE117:AN117))))","v":0},{"$f":"IF(A117=0,0,IF(AND(OR(S117=\"Mgr\",S117=0),OR(U117=\"Mgr\",U117=0),OR(W117=\"Mgr\",W117=0)),0,IF(LEFT($A117,2)=\"B*\",VLOOKUP($E117,'1. Checklist & Certification'!$D$26:$E$32,2),IF(LEFT($A117,2)=\"C*\",VLOOKUP($E117,'1. Checklist & Certification'!$F$26:$G$32,2),IF(LEFT($A117,2)=\"D*\",VLOOKUP($E117,'1. Checklist & Certification'!$H$26:$I$32,2),IF(LEFT($A117,2)=\"E*\",VLOOKUP($E117,'1. Checklist & Certification'!$J$26:$K$32,2),VLOOKUP($E117,'1. Checklist & Certification'!$A$26:$B$32,2)))))))","v":0},0,0,null,null,null,null,"","",0,0,0,null,{"$f":"IF(A117=\"\",\"\",'1. Checklist & Certification'!$K$1)","v":""},{"$f":"IF(A117=\"\",\"\",'1. Checklist & Certification'!$C$62)","v":""},{"$f":"IF(A117=\"\",\"\",'1. Checklist & Certification'!$C$6)","v":""},{"$f":"IF(A117=\"\",\"\",'1. Checklist & Certification'!$G$5)","v":""},{"$f":"IFERROR(IF(A117=\"\",\"\",\n_xlfn.LET(_xlpm.Contract,'1. Checklist & Certification'!$C$7,\n_xlpm.Yr,TEXT(MOD(_xlfn.TEXTBEFORE(_xlpm.Contract,\"-\"),100),\"00\"),\n_xlpm.Program,_xlfn.TEXTAFTER(_xlfn.TEXTBEFORE(_xlpm.Contract,\"-\",2),\"-\"),\n_xlpm.CleanProgram,_xlfn.XLOOKUP(_xlpm.Program,SpellCheck[Input],SpellCheck[Correction],_xlpm.Program),\n_xlpm.Number,TEXT(_xlfn.TEXTAFTER(_xlpm.Contract,\"-\",2),\"0000\"),\n_xlfn.CONCAT(_xlpm.Yr,\"-\",_xlpm.CleanProgram,\"-\",_xlpm.Number))\n),\"\")","v":""},{"$f":"IFERROR(IF(A117=\"\",\"\",\n_xlfn.LET(_xlpm.Contract,'1. Checklist & Certification'!$C$8,\n_xlpm.Yr,TEXT(MOD(_xlfn.TEXTBEFORE(_xlpm.Contract,\"-\"),100),\"00\"),\n_xlpm.Program,_xlfn.TEXTAFTER(_xlfn.TEXTBEFORE(_xlpm.Contract,\"-\",2),\"-\"),\n_xlpm.CleanProgram,_xlfn.XLOOKUP(_xlpm.Program,SpellCheck[Input],SpellCheck[Correction],_xlpm.Program),\n_xlpm.Number,TEXT(_xlfn.TEXTAFTER(_xlpm.Contract,\"-\",2),\"0000\"),\n_xlfn.CONCAT(_xlpm.Yr,\"-\",_xlpm.CleanProgram,\"-\",_xlpm.Number))\n),\"\")","v":""},{"$f":"IFERROR(IF(A117=\"\",\"\",\n_xlfn.LET(_xlpm.Contract,'1. Checklist & Certification'!$F$7,\n_xlpm.Yr,TEXT(MOD(_xlfn.TEXTBEFORE(_xlpm.Contract,\"-\"),100),\"00\"),\n_xlpm.Program,_xlfn.TEXTAFTER(_xlfn.TEXTBEFORE(_xlpm.Contract,\"-\",2),\"-\"),\n_xlpm.CleanProgram,_xlfn.XLOOKUP(_xlpm.Program,SpellCheck[Input],SpellCheck[Correction],_xlpm.Program),\n_xlpm.Number,TEXT(_xlfn.TEXTAFTER(_xlpm.Contract,\"-\",2),\"0000\"),\n_xlfn.CONCAT(_xlpm.Yr,\"-\",_xlpm.CleanProgram,\"-\",_xlpm.Number))\n),\"\")","v":""},{"$f":"IFERROR(IF(A117=\"\",\"\",\n_xlfn.LET(_xlpm.Contract,'1. Checklist & Certification'!$F$8,\n_xlpm.Yr,TEXT(MOD(_xlfn.TEXTBEFORE(_xlpm.Contract,\"-\"),100),\"00\"),\n_xlpm.Program,_xlfn.TEXTAFTER(_xlfn.TEXTBEFORE(_xlpm.Contract,\"-\",2),\"-\"),\n_xlpm.CleanProgram,_xlfn.XLOOKUP(_xlpm.Program,SpellCheck[Input],SpellCheck[Correction],_xlpm.Program),\n_xlpm.Number,TEXT(_xlfn.TEXTAFTER(_xlpm.Contract,\"-\",2),\"0000\"),\n_xlfn.CONCAT(_xlpm.Yr,\"-\",_xlpm.CleanProgram,\"-\",_xlpm.Number))\n),\"\")","v":""},{"$f":"IF(A117=\"\",\"\",'1. Checklist & Certification'!$B$9)","v":""},{"$f":"IF(A117=\"\",\"\",'1. Checklist & Certification'!$F$9)","v":""},{"$f":"IF(A117=\"\",\"\",'1. Checklist & Certification'!$C$10)","v":""},{"$f":"IF(A117=\"\",\"\",'1. Checklist & Certification'!$C$11)","v":""},{"$f":"IF(A117=\"\",\"\",'1. Checklist & Certification'!$C$12)","v":""},{"$f":"IF(A117=\"\",\"\",'1. Checklist & Certification'!$B$14)","v":""},{"$f":"IF(A117=\"\",\"\",'1. Checklist & Certification'!$E$14)","v":""},{"$f":"IF(B117=\"\",\"\",'1. Checklist & Certification'!$G$14)","v":""},{"$f":"IF(A117=\"\",\"\",'MHP Family Income & Rent Limits'!$B$3)","v":""},{"$f":"IF(A117=\"\",\"\",'MHP Family Income & Rent Limits'!$J$3)","v":""},{"$f":"IF(A117=\"\",\"\",'MHP Family Income & Rent Limits'!$E$4)","v":""},{"$f":"IF(A117=\"\",\"\",'MHP Family Income & Rent Limits'!$C$7)","v":""},{"$f":"IF(A117=\"\",\"\",'MHP Family Income & Rent Limits'!$F$8)","v":""},{"$f":"IF(A117=\"\",\"\",'1. Checklist & Certification'!$G$4)","v":""},{"$f":"IF(A117=\"\",\"\",'1. Checklist & Certification'!$K$39)","v":""},{"$f":"IF(A117=\"\",\"\",'1. Checklist & Certification'!$K$43)","v":""},{"$f":"IF(A117=\"\",\"\",'1. Checklist & Certification'!$K$45)","v":""},{"$f":"IF(A117=\"\",\"\",'1. Checklist & Certification'!$K$49)","v":""},{"$f":"IF(A117=\"\",\"\",'1. Checklist & Certification'!$K$62)","v":""},{"$f":"IF(A117=\"\",\"\",'1. Checklist & Certification'!$E$66)","v":""},{"$f":"IF(A117=\"\",\"\",'1. Checklist & Certification'!$E$67)","v":""},{"$f":"IF(A117=\"\",\"\",'1. Checklist & Certification'!$E$68)","v":""},{"$f":"IF(A117=\"\",\"\",'1. Checklist & Certification'!$G$66)","v":""},{"$f":"IF(A117=\"\",\"\",'1. Checklist & Certification'!$H$66)","v":""},{"$f":"IF(A117=\"\",\"\",'1. Checklist & Certification'!$I$66)","v":""},{"$f":"IF(A117=\"\",\"\",'1. Checklist & Certification'!$I$67)","v":""},{"$f":"IF(A117=\"\",\"\",'1. Checklist & Certification'!$I$68)","v":""},{"$f":"IF(A117=\"\",\"\",'1. Checklist & Certification'!$B$69)","v":""},{"$f":"IF(A117=\"\",\"\",'1. Checklist & Certification'!$C$69)","v":""},{"$f":"IF(A117=\"\",\"\",'1. Checklist & Certification'!$F$69)","v":""},{"$f":"IF(A117=\"\",\"\",'1. Checklist & Certification'!$G$69)","v":""},{"$f":"IF(A117=\"\",\"\",'1. Checklist & Certification'!$J$69)","v":""},{"$f":"IF(A117=\"\",\"\",'1. Checklist & Certification'!$K$69)","v":""},null,null,{"$f":"IF(AND(OR('1. Checklist & Certification'!$M$16=1,'1. Checklist & Certification'!$M$19=2),AO117>0,B117=\"\",I117>0,AQ117<I117,AV117<>\"Sec 8-Project\"),\"X\",IF(AND(OR('1. Checklist & Certification'!$M$20=4,'1. Checklist & Certification'!$M$21=5,'1. Checklist & Certification'!$M$22=7),AO117>0,B117=\"\",I117>0,K117<I117),\"X\",\"\"))","v":""},{"$f":"IF(A117=\"\",\"\",IF(SUMPRODUCT(-- (ISNUMBER(SEARCH({\"*AHSC*\",\"*FMTW*\",\"*FWHG*\",\"*GHI*\",\"*HHC*\",\"*HLCP*\",\"*HOME*\",\"*LPR*\",\"*MHP*\",\"*NHTF*\",\"*NSP*\",\"*PRP*\",\"*TOD*\",\"*VHHP*\"},'1. Checklist & Certification'!$L$7)))),\"MHP\",\"Legacy\"))","v":""},",,",null,null,null,{"$f":"IF('1. Checklist & Certification'!$M$20=4,\"Both\",IF(OR('1. Checklist & Certification'!$M$15>0,S117=\"CHRP-R\",U117=\"CHRP-R\",W117=\"CHRP-R\",Y117=\"CHRP-R\"),\"Under\",\"No\"))","v":"No"},"No","No",{"$f":"_xlfn.IFS(D117=\"\",\"\",D117=1,'MHP Family Income & Rent Limits'!$E$17,D117=2,'MHP Family Income & Rent Limits'!$F$17,D117=3,'MHP Family Income & Rent Limits'!$G$17,D117=4,'MHP Family Income & Rent Limits'!$H$17,D117=5,'MHP Family Income & Rent Limits'!$I$17,D117=6,'MHP Family Income & Rent Limits'!$J$17,D117=7,'MHP Family Income & Rent Limits'!$K$17,D117=8,'MHP Family Income & Rent Limits'!$L$17)","v":""},"",{"$f":"IF(OR(A117=0,B117=\"X\"),0,MIN(IF(AA117:AD117<>0,AA117:AD117)))","v":0},{"$f":"IF(OR(H117=\"\",I117=\"\"),0,IF(H117*0.3/12>I117,MIN(H117*0.3/12,I117*1.1)+AP117,I117*(1+(VLOOKUP('1. Checklist & Certification'!$F$9,'HLCP-E Rent Change'!$A$1:$D$59,4,FALSE)))+AP117))","v":0}]
[null,null,null,null,null,null,null,null,null,null,null,null,null,null,null,null,null,null,null,null,null,null,null,null,null,null,0,0,0,0,0,0,0,0,{"$f":"IF(OR(A118=0,B118=\"X\"),0,IF(OR(S118=\"FHDP\",S118=\"RHCP-B\",U118=\"FHDP\",U118=\"RHCP-B\",W118=\"FHDP\",W118=\"RHCP-B\",Y118=\"FHDP\",Y118=\"RHCP-B\"),TRUNC((MIN(I118,K118)*(1+'1. Checklist & Certification'!$K$43)+AP118)),0))","v":0},{"$f":"IF(OR(A118=0,B118=\"X\"),0,IF(OR(S118=\"CHRP-R\",S118=\"SERA\",S118=\"SUHRP\",U118=\"CHRP-R\",U118=\"SERA\",U118=\"SUHRP\",W118=\"CHRP-R\",W118=\"SERA\",W118=\"SUHRP\",Y118=\"CHRP-R\",Y118=\"SERA\",Y118=\"SUHRP\"),TRUNC((MIN(I118,K118)*(1+'1. Checklist & Certification'!$K$49))),0))","v":0},{"$f":"IF(OR(A118=0,B118=\"X\"),0,IF(OR(S118=\"CALDAP\",S118=\"DPRLP\",U118=\"CALDAP\",U118=\"DPRLP\",W118=\"CALDAP\",W118=\"DPRLP\",Y118=\"CALDAP\",Y118=\"DPRLP\"),TRUNC(((MIN(I118,K118))*(1+'1. Checklist & Certification'!$G$4))),0))","v":0},0,0,0,{"$f":"IF(OR(A118=0,B118=\"X\"),0,IF(OR(S118=\"PRP\",S118=\"LPR\",U118=\"PRP\",U118=\"LPR\",W118=\"PRP\",W118=\"LPR\",Y118=\"PRP\",Y118=\"LPR\"),MAX(I118+AP118,MIN(IF(AE118:AN118<>0,AE118:AN118))),MIN(IF(AE118:AN118<>0,AE118:AN118))))","v":0},{"$f":"IF(A118=0,0,IF(AND(OR(S118=\"Mgr\",S118=0),OR(U118=\"Mgr\",U118=0),OR(W118=\"Mgr\",W118=0)),0,IF(LEFT($A118,2)=\"B*\",VLOOKUP($E118,'1. Checklist & Certification'!$D$26:$E$32,2),IF(LEFT($A118,2)=\"C*\",VLOOKUP($E118,'1. Checklist & Certification'!$F$26:$G$32,2),IF(LEFT($A118,2)=\"D*\",VLOOKUP($E118,'1. Checklist & Certification'!$H$26:$I$32,2),IF(LEFT($A118,2)=\"E*\",VLOOKUP($E118,'1. Checklist & Certification'!$J$26:$K$32,2),VLOOKUP($E118,'1. Checklist & Certification'!$A$26:$B$32,2)))))))","v":0},0,0,null,null,null,null,"","",0,0,0,null,{"$f":"IF(A118=\"\",\"\",'1. Checklist & Certification'!$K$1)","v":""},{"$f":"IF(A118=\"\",\"\",'1. Checklist & Certification'!$C$62)","v":""},{"$f":"IF(A118=\"\",\"\",'1. Checklist & Certification'!$C$6)","v":""},{"$f":"IF(A118=\"\",\"\",'1. Checklist & Certification'!$G$5)","v":""},{"$f":"IFERROR(IF(A118=\"\",\"\",\n_xlfn.LET(_xlpm.Contract,'1. Checklist & Certification'!$C$7,\n_xlpm.Yr,TEXT(MOD(_xlfn.TEXTBEFORE(_xlpm.Contract,\"-\"),100),\"00\"),\n_xlpm.Program,_xlfn.TEXTAFTER(_xlfn.TEXTBEFORE(_xlpm.Contract,\"-\",2),\"-\"),\n_xlpm.CleanProgram,_xlfn.XLOOKUP(_xlpm.Program,SpellCheck[Input],SpellCheck[Correction],_xlpm.Program),\n_xlpm.Number,TEXT(_xlfn.TEXTAFTER(_xlpm.Contract,\"-\",2),\"0000\"),\n_xlfn.CONCAT(_xlpm.Yr,\"-\",_xlpm.CleanProgram,\"-\",_xlpm.Number))\n),\"\")","v":""},{"$f":"IFERROR(IF(A118=\"\",\"\",\n_xlfn.LET(_xlpm.Contract,'1. Checklist & Certification'!$C$8,\n_xlpm.Yr,TEXT(MOD(_xlfn.TEXTBEFORE(_xlpm.Contract,\"-\"),100),\"00\"),\n_xlpm.Program,_xlfn.TEXTAFTER(_xlfn.TEXTBEFORE(_xlpm.Contract,\"-\",2),\"-\"),\n_xlpm.CleanProgram,_xlfn.XLOOKUP(_xlpm.Program,SpellCheck[Input],SpellCheck[Correction],_xlpm.Program),\n_xlpm.Number,TEXT(_xlfn.TEXTAFTER(_xlpm.Contract,\"-\",2),\"0000\"),\n_xlfn.CONCAT(_xlpm.Yr,\"-\",_xlpm.CleanProgram,\"-\",_xlpm.Number))\n),\"\")","v":""},{"$f":"IFERROR(IF(A118=\"\",\"\",\n_xlfn.LET(_xlpm.Contract,'1. Checklist & Certification'!$F$7,\n_xlpm.Yr,TEXT(MOD(_xlfn.TEXTBEFORE(_xlpm.Contract,\"-\"),100),\"00\"),\n_xlpm.Program,_xlfn.TEXTAFTER(_xlfn.TEXTBEFORE(_xlpm.Contract,\"-\",2),\"-\"),\n_xlpm.CleanProgram,_xlfn.XLOOKUP(_xlpm.Program,SpellCheck[Input],SpellCheck[Correction],_xlpm.Program),\n_xlpm.Number,TEXT(_xlfn.TEXTAFTER(_xlpm.Contract,\"-\",2),\"0000\"),\n_xlfn.CONCAT(_xlpm.Yr,\"-\",_xlpm.CleanProgram,\"-\",_xlpm.Number))\n),\"\")","v":""},{"$f":"IFERROR(IF(A118=\"\",\"\",\n_xlfn.LET(_xlpm.Contract,'1. Checklist & Certification'!$F$8,\n_xlpm.Yr,TEXT(MOD(_xlfn.TEXTBEFORE(_xlpm.Contract,\"-\"),100),\"00\"),\n_xlpm.Program,_xlfn.TEXTAFTER(_xlfn.TEXTBEFORE(_xlpm.Contract,\"-\",2),\"-\"),\n_xlpm.CleanProgram,_xlfn.XLOOKUP(_xlpm.Program,SpellCheck[Input],SpellCheck[Correction],_xlpm.Program),\n_xlpm.Number,TEXT(_xlfn.TEXTAFTER(_xlpm.Contract,\"-\",2),\"0000\"),\n_xlfn.CONCAT(_xlpm.Yr,\"-\",_xlpm.CleanProgram,\"-\",_xlpm.Number))\n),\"\")","v":""},{"$f":"IF(A118=\"\",\"\",'1. Checklist & Certification'!$B$9)","v":""},{"$f":"IF(A118=\"\",\"\",'1. Checklist & Certification'!$F$9)","v":""},{"$f":"IF(A118=\"\",\"\",'1. Checklist & Certification'!$C$10)","v":""},{"$f":"IF(A118=\"\",\"\",'1. Checklist & Certification'!$C$11)","v":""},{"$f":"IF(A118=\"\",\"\",'1. Checklist & Certification'!$C$12)","v":""},{"$f":"IF(A118=\"\",\"\",'1. Checklist & Certification'!$B$14)","v":""},{"$f":"IF(A118=\"\",\"\",'1. Checklist & Certification'!$E$14)","v":""},{"$f":"IF(B118=\"\",\"\",'1. Checklist & Certification'!$G$14)","v":""},{"$f":"IF(A118=\"\",\"\",'MHP Family Income & Rent Limits'!$B$3)","v":""},{"$f":"IF(A118=\"\",\"\",'MHP Family Income & Rent Limits'!$J$3)","v":""},{"$f":"IF(A118=\"\",\"\",'MHP Family Income & Rent Limits'!$E$4)","v":""},{"$f":"IF(A118=\"\",\"\",'MHP Family Income & Rent Limits'!$C$7)","v":""},{"$f":"IF(A118=\"\",\"\",'MHP Family Income & Rent Limits'!$F$8)","v":""},{"$f":"IF(A118=\"\",\"\",'1. Checklist & Certification'!$G$4)","v":""},{"$f":"IF(A118=\"\",\"\",'1. Checklist & Certification'!$K$39)","v":""},{"$f":"IF(A118=\"\",\"\",'1. Checklist & Certification'!$K$43)","v":""},{"$f":"IF(A118=\"\",\"\",'1. Checklist & Certification'!$K$45)","v":""},{"$f":"IF(A118=\"\",\"\",'1. Checklist & Certification'!$K$49)","v":""},{"$f":"IF(A118=\"\",\"\",'1. Checklist & Certification'!$K$62)","v":""},{"$f":"IF(A118=\"\",\"\",'1. Checklist & Certification'!$E$66)","v":""},{"$f":"IF(A118=\"\",\"\",'1. Checklist & Certification'!$E$67)","v":""},{"$f":"IF(A118=\"\",\"\",'1. Checklist & Certification'!$E$68)","v":""},{"$f":"IF(A118=\"\",\"\",'1. Checklist & Certification'!$G$66)","v":""},{"$f":"IF(A118=\"\",\"\",'1. Checklist & Certification'!$H$66)","v":""},{"$f":"IF(A118=\"\",\"\",'1. Checklist & Certification'!$I$66)","v":""},{"$f":"IF(A118=\"\",\"\",'1. Checklist & Certification'!$I$67)","v":""},{"$f":"IF(A118=\"\",\"\",'1. Checklist & Certification'!$I$68)","v":""},{"$f":"IF(A118=\"\",\"\",'1. Checklist & Certification'!$B$69)","v":""},{"$f":"IF(A118=\"\",\"\",'1. Checklist & Certification'!$C$69)","v":""},{"$f":"IF(A118=\"\",\"\",'1. Checklist & Certification'!$F$69)","v":""},{"$f":"IF(A118=\"\",\"\",'1. Checklist & Certification'!$G$69)","v":""},{"$f":"IF(A118=\"\",\"\",'1. Checklist & Certification'!$J$69)","v":""},{"$f":"IF(A118=\"\",\"\",'1. Checklist & Certification'!$K$69)","v":""},null,null,{"$f":"IF(AND(OR('1. Checklist & Certification'!$M$16=1,'1. Checklist & Certification'!$M$19=2),AO118>0,B118=\"\",I118>0,AQ118<I118,AV118<>\"Sec 8-Project\"),\"X\",IF(AND(OR('1. Checklist & Certification'!$M$20=4,'1. Checklist & Certification'!$M$21=5,'1. Checklist & Certification'!$M$22=7),AO118>0,B118=\"\",I118>0,K118<I118),\"X\",\"\"))","v":""},{"$f":"IF(A118=\"\",\"\",IF(SUMPRODUCT(-- (ISNUMBER(SEARCH({\"*AHSC*\",\"*FMTW*\",\"*FWHG*\",\"*GHI*\",\"*HHC*\",\"*HLCP*\",\"*HOME*\",\"*LPR*\",\"*MHP*\",\"*NHTF*\",\"*NSP*\",\"*PRP*\",\"*TOD*\",\"*VHHP*\"},'1. Checklist & Certification'!$L$7)))),\"MHP\",\"Legacy\"))","v":""},",,",null,null,null,{"$f":"IF('1. Checklist & Certification'!$M$20=4,\"Both\",IF(OR('1. Checklist & Certification'!$M$15>0,S118=\"CHRP-R\",U118=\"CHRP-R\",W118=\"CHRP-R\",Y118=\"CHRP-R\"),\"Under\",\"No\"))","v":"No"},"No","No",{"$f":"_xlfn.IFS(D118=\"\",\"\",D118=1,'MHP Family Income & Rent Limits'!$E$17,D118=2,'MHP Family Income & Rent Limits'!$F$17,D118=3,'MHP Family Income & Rent Limits'!$G$17,D118=4,'MHP Family Income & Rent Limits'!$H$17,D118=5,'MHP Family Income & Rent Limits'!$I$17,D118=6,'MHP Family Income & Rent Limits'!$J$17,D118=7,'MHP Family Income & Rent Limits'!$K$17,D118=8,'MHP Family Income & Rent Limits'!$L$17)","v":""},"",{"$f":"IF(OR(A118=0,B118=\"X\"),0,MIN(IF(AA118:AD118<>0,AA118:AD118)))","v":0},{"$f":"IF(OR(H118=\"\",I118=\"\"),0,IF(H118*0.3/12>I118,MIN(H118*0.3/12,I118*1.1)+AP118,I118*(1+(VLOOKUP('1. Checklist & Certification'!$F$9,'HLCP-E Rent Change'!$A$1:$D$59,4,FALSE)))+AP118))","v":0}]
[null,null,null,null,null,null,null,null,null,null,null,null,null,null,null,null,null,null,null,null,null,null,null,null,null,null,0,0,0,0,0,0,0,0,{"$f":"IF(OR(A119=0,B119=\"X\"),0,IF(OR(S119=\"FHDP\",S119=\"RHCP-B\",U119=\"FHDP\",U119=\"RHCP-B\",W119=\"FHDP\",W119=\"RHCP-B\",Y119=\"FHDP\",Y119=\"RHCP-B\"),TRUNC((MIN(I119,K119)*(1+'1. Checklist & Certification'!$K$43)+AP119)),0))","v":0},{"$f":"IF(OR(A119=0,B119=\"X\"),0,IF(OR(S119=\"CHRP-R\",S119=\"SERA\",S119=\"SUHRP\",U119=\"CHRP-R\",U119=\"SERA\",U119=\"SUHRP\",W119=\"CHRP-R\",W119=\"SERA\",W119=\"SUHRP\",Y119=\"CHRP-R\",Y119=\"SERA\",Y119=\"SUHRP\"),TRUNC((MIN(I119,K119)*(1+'1. Checklist & Certification'!$K$49))),0))","v":0},{"$f":"IF(OR(A119=0,B119=\"X\"),0,IF(OR(S119=\"CALDAP\",S119=\"DPRLP\",U119=\"CALDAP\",U119=\"DPRLP\",W119=\"CALDAP\",W119=\"DPRLP\",Y119=\"CALDAP\",Y119=\"DPRLP\"),TRUNC(((MIN(I119,K119))*(1+'1. Checklist & Certification'!$G$4))),0))","v":0},0,0,0,{"$f":"IF(OR(A119=0,B119=\"X\"),0,IF(OR(S119=\"PRP\",S119=\"LPR\",U119=\"PRP\",U119=\"LPR\",W119=\"PRP\",W119=\"LPR\",Y119=\"PRP\",Y119=\"LPR\"),MAX(I119+AP119,MIN(IF(AE119:AN119<>0,AE119:AN119))),MIN(IF(AE119:AN119<>0,AE119:AN119))))","v":0},{"$f":"IF(A119=0,0,IF(AND(OR(S119=\"Mgr\",S119=0),OR(U119=\"Mgr\",U119=0),OR(W119=\"Mgr\",W119=0)),0,IF(LEFT($A119,2)=\"B*\",VLOOKUP($E119,'1. Checklist & Certification'!$D$26:$E$32,2),IF(LEFT($A119,2)=\"C*\",VLOOKUP($E119,'1. Checklist & Certification'!$F$26:$G$32,2),IF(LEFT($A119,2)=\"D*\",VLOOKUP($E119,'1. Checklist & Certification'!$H$26:$I$32,2),IF(LEFT($A119,2)=\"E*\",VLOOKUP($E119,'1. Checklist & Certification'!$J$26:$K$32,2),VLOOKUP($E119,'1. Checklist & Certification'!$A$26:$B$32,2)))))))","v":0},0,0,null,null,null,null,"","",0,0,0,null,{"$f":"IF(A119=\"\",\"\",'1. Checklist & Certification'!$K$1)","v":""},{"$f":"IF(A119=\"\",\"\",'1. Checklist & Certification'!$C$62)","v":""},{"$f":"IF(A119=\"\",\"\",'1. Checklist & Certification'!$C$6)","v":""},{"$f":"IF(A119=\"\",\"\",'1. Checklist & Certification'!$G$5)","v":""},{"$f":"IFERROR(IF(A119=\"\",\"\",\n_xlfn.LET(_xlpm.Contract,'1. Checklist & Certification'!$C$7,\n_xlpm.Yr,TEXT(MOD(_xlfn.TEXTBEFORE(_xlpm.Contract,\"-\"),100),\"00\"),\n_xlpm.Program,_xlfn.TEXTAFTER(_xlfn.TEXTBEFORE(_xlpm.Contract,\"-\",2),\"-\"),\n_xlpm.CleanProgram,_xlfn.XLOOKUP(_xlpm.Program,SpellCheck[Input],SpellCheck[Correction],_xlpm.Program),\n_xlpm.Number,TEXT(_xlfn.TEXTAFTER(_xlpm.Contract,\"-\",2),\"0000\"),\n_xlfn.CONCAT(_xlpm.Yr,\"-\",_xlpm.CleanProgram,\"-\",_xlpm.Number))\n),\"\")","v":""},{"$f":"IFERROR(IF(A119=\"\",\"\",\n_xlfn.LET(_xlpm.Contract,'1. Checklist & Certification'!$C$8,\n_xlpm.Yr,TEXT(MOD(_xlfn.TEXTBEFORE(_xlpm.Contract,\"-\"),100),\"00\"),\n_xlpm.Program,_xlfn.TEXTAFTER(_xlfn.TEXTBEFORE(_xlpm.Contract,\"-\",2),\"-\"),\n_xlpm.CleanProgram,_xlfn.XLOOKUP(_xlpm.Program,SpellCheck[Input],SpellCheck[Correction],_xlpm.Program),\n_xlpm.Number,TEXT(_xlfn.TEXTAFTER(_xlpm.Contract,\"-\",2),\"0000\"),\n_xlfn.CONCAT(_xlpm.Yr,\"-\",_xlpm.CleanProgram,\"-\",_xlpm.Number))\n),\"\")","v":""},{"$f":"IFERROR(IF(A119=\"\",\"\",\n_xlfn.LET(_xlpm.Contract,'1. Checklist & Certification'!$F$7,\n_xlpm.Yr,TEXT(MOD(_xlfn.TEXTBEFORE(_xlpm.Contract,\"-\"),100),\"00\"),\n_xlpm.Program,_xlfn.TEXTAFTER(_xlfn.TEXTBEFORE(_xlpm.Contract,\"-\",2),\"-\"),\n_xlpm.CleanProgram,_xlfn.XLOOKUP(_xlpm.Program,SpellCheck[Input],SpellCheck[Correction],_xlpm.Program),\n_xlpm.Number,TEXT(_xlfn.TEXTAFTER(_xlpm.Contract,\"-\",2),\"0000\"),\n_xlfn.CONCAT(_xlpm.Yr,\"-\",_xlpm.CleanProgram,\"-\",_xlpm.Number))\n),\"\")","v":""},{"$f":"IFERROR(IF(A119=\"\",\"\",\n_xlfn.LET(_xlpm.Contract,'1. Checklist & Certification'!$F$8,\n_xlpm.Yr,TEXT(MOD(_xlfn.TEXTBEFORE(_xlpm.Contract,\"-\"),100),\"00\"),\n_xlpm.Program,_xlfn.TEXTAFTER(_xlfn.TEXTBEFORE(_xlpm.Contract,\"-\",2),\"-\"),\n_xlpm.CleanProgram,_xlfn.XLOOKUP(_xlpm.Program,SpellCheck[Input],SpellCheck[Correction],_xlpm.Program),\n_xlpm.Number,TEXT(_xlfn.TEXTAFTER(_xlpm.Contract,\"-\",2),\"0000\"),\n_xlfn.CONCAT(_xlpm.Yr,\"-\",_xlpm.CleanProgram,\"-\",_xlpm.Number))\n),\"\")","v":""},{"$f":"IF(A119=\"\",\"\",'1. Checklist & Certification'!$B$9)","v":""},{"$f":"IF(A119=\"\",\"\",'1. Checklist & Certification'!$F$9)","v":""},{"$f":"IF(A119=\"\",\"\",'1. Checklist & Certification'!$C$10)","v":""},{"$f":"IF(A119=\"\",\"\",'1. Checklist & Certification'!$C$11)","v":""},{"$f":"IF(A119=\"\",\"\",'1. Checklist & Certification'!$C$12)","v":""},{"$f":"IF(A119=\"\",\"\",'1. Checklist & Certification'!$B$14)","v":""},{"$f":"IF(A119=\"\",\"\",'1. Checklist & Certification'!$E$14)","v":""},{"$f":"IF(B119=\"\",\"\",'1. Checklist & Certification'!$G$14)","v":""},{"$f":"IF(A119=\"\",\"\",'MHP Family Income & Rent Limits'!$B$3)","v":""},{"$f":"IF(A119=\"\",\"\",'MHP Family Income & Rent Limits'!$J$3)","v":""},{"$f":"IF(A119=\"\",\"\",'MHP Family Income & Rent Limits'!$E$4)","v":""},{"$f":"IF(A119=\"\",\"\",'MHP Family Income & Rent Limits'!$C$7)","v":""},{"$f":"IF(A119=\"\",\"\",'MHP Family Income & Rent Limits'!$F$8)","v":""},{"$f":"IF(A119=\"\",\"\",'1. Checklist & Certification'!$G$4)","v":""},{"$f":"IF(A119=\"\",\"\",'1. Checklist & Certification'!$K$39)","v":""},{"$f":"IF(A119=\"\",\"\",'1. Checklist & Certification'!$K$43)","v":""},{"$f":"IF(A119=\"\",\"\",'1. Checklist & Certification'!$K$45)","v":""},{"$f":"IF(A119=\"\",\"\",'1. Checklist & Certification'!$K$49)","v":""},{"$f":"IF(A119=\"\",\"\",'1. Checklist & Certification'!$K$62)","v":""},{"$f":"IF(A119=\"\",\"\",'1. Checklist & Certification'!$E$66)","v":""},{"$f":"IF(A119=\"\",\"\",'1. Checklist & Certification'!$E$67)","v":""},{"$f":"IF(A119=\"\",\"\",'1. Checklist & Certification'!$E$68)","v":""},{"$f":"IF(A119=\"\",\"\",'1. Checklist & Certification'!$G$66)","v":""},{"$f":"IF(A119=\"\",\"\",'1. Checklist & Certification'!$H$66)","v":""},{"$f":"IF(A119=\"\",\"\",'1. Checklist & Certification'!$I$66)","v":""},{"$f":"IF(A119=\"\",\"\",'1. Checklist & Certification'!$I$67)","v":""},{"$f":"IF(A119=\"\",\"\",'1. Checklist & Certification'!$I$68)","v":""},{"$f":"IF(A119=\"\",\"\",'1. Checklist & Certification'!$B$69)","v":""},{"$f":"IF(A119=\"\",\"\",'1. Checklist & Certification'!$C$69)","v":""},{"$f":"IF(A119=\"\",\"\",'1. Checklist & Certification'!$F$69)","v":""},{"$f":"IF(A119=\"\",\"\",'1. Checklist & Certification'!$G$69)","v":""},{"$f":"IF(A119=\"\",\"\",'1. Checklist & Certification'!$J$69)","v":""},{"$f":"IF(A119=\"\",\"\",'1. Checklist & Certification'!$K$69)","v":""},null,null,{"$f":"IF(AND(OR('1. Checklist & Certification'!$M$16=1,'1. Checklist & Certification'!$M$19=2),AO119>0,B119=\"\",I119>0,AQ119<I119,AV119<>\"Sec 8-Project\"),\"X\",IF(AND(OR('1. Checklist & Certification'!$M$20=4,'1. Checklist & Certification'!$M$21=5,'1. Checklist & Certification'!$M$22=7),AO119>0,B119=\"\",I119>0,K119<I119),\"X\",\"\"))","v":""},{"$f":"IF(A119=\"\",\"\",IF(SUMPRODUCT(-- (ISNUMBER(SEARCH({\"*AHSC*\",\"*FMTW*\",\"*FWHG*\",\"*GHI*\",\"*HHC*\",\"*HLCP*\",\"*HOME*\",\"*LPR*\",\"*MHP*\",\"*NHTF*\",\"*NSP*\",\"*PRP*\",\"*TOD*\",\"*VHHP*\"},'1. Checklist & Certification'!$L$7)))),\"MHP\",\"Legacy\"))","v":""},",,",null,null,null,{"$f":"IF('1. Checklist & Certification'!$M$20=4,\"Both\",IF(OR('1. Checklist & Certification'!$M$15>0,S119=\"CHRP-R\",U119=\"CHRP-R\",W119=\"CHRP-R\",Y119=\"CHRP-R\"),\"Under\",\"No\"))","v":"No"},"No","No",{"$f":"_xlfn.IFS(D119=\"\",\"\",D119=1,'MHP Family Income & Rent Limits'!$E$17,D119=2,'MHP Family Income & Rent Limits'!$F$17,D119=3,'MHP Family Income & Rent Limits'!$G$17,D119=4,'MHP Family Income & Rent Limits'!$H$17,D119=5,'MHP Family Income & Rent Limits'!$I$17,D119=6,'MHP Family Income & Rent Limits'!$J$17,D119=7,'MHP Family Income & Rent Limits'!$K$17,D119=8,'MHP Family Income & Rent Limits'!$L$17)","v":""},"",{"$f":"IF(OR(A119=0,B119=\"X\"),0,MIN(IF(AA119:AD119<>0,AA119:AD119)))","v":0},{"$f":"IF(OR(H119=\"\",I119=\"\"),0,IF(H119*0.3/12>I119,MIN(H119*0.3/12,I119*1.1)+AP119,I119*(1+(VLOOKUP('1. Checklist & Certification'!$F$9,'HLCP-E Rent Change'!$A$1:$D$59,4,FALSE)))+AP119))","v":0}]
[null,null,null,null,null,null,null,null,null,null,null,null,null,null,null,null,null,null,null,null,null,null,null,null,null,null,0,0,0,0,0,0,0,0,{"$f":"IF(OR(A120=0,B120=\"X\"),0,IF(OR(S120=\"FHDP\",S120=\"RHCP-B\",U120=\"FHDP\",U120=\"RHCP-B\",W120=\"FHDP\",W120=\"RHCP-B\",Y120=\"FHDP\",Y120=\"RHCP-B\"),TRUNC((MIN(I120,K120)*(1+'1. Checklist & Certification'!$K$43)+AP120)),0))","v":0},{"$f":"IF(OR(A120=0,B120=\"X\"),0,IF(OR(S120=\"CHRP-R\",S120=\"SERA\",S120=\"SUHRP\",U120=\"CHRP-R\",U120=\"SERA\",U120=\"SUHRP\",W120=\"CHRP-R\",W120=\"SERA\",W120=\"SUHRP\",Y120=\"CHRP-R\",Y120=\"SERA\",Y120=\"SUHRP\"),TRUNC((MIN(I120,K120)*(1+'1. Checklist & Certification'!$K$49))),0))","v":0},{"$f":"IF(OR(A120=0,B120=\"X\"),0,IF(OR(S120=\"CALDAP\",S120=\"DPRLP\",U120=\"CALDAP\",U120=\"DPRLP\",W120=\"CALDAP\",W120=\"DPRLP\",Y120=\"CALDAP\",Y120=\"DPRLP\"),TRUNC(((MIN(I120,K120))*(1+'1. Checklist & Certification'!$G$4))),0))","v":0},0,0,0,{"$f":"IF(OR(A120=0,B120=\"X\"),0,IF(OR(S120=\"PRP\",S120=\"LPR\",U120=\"PRP\",U120=\"LPR\",W120=\"PRP\",W120=\"LPR\",Y120=\"PRP\",Y120=\"LPR\"),MAX(I120+AP120,MIN(IF(AE120:AN120<>0,AE120:AN120))),MIN(IF(AE120:AN120<>0,AE120:AN120))))","v":0},{"$f":"IF(A120=0,0,IF(AND(OR(S120=\"Mgr\",S120=0),OR(U120=\"Mgr\",U120=0),OR(W120=\"Mgr\",W120=0)),0,IF(LEFT($A120,2)=\"B*\",VLOOKUP($E120,'1. Checklist & Certification'!$D$26:$E$32,2),IF(LEFT($A120,2)=\"C*\",VLOOKUP($E120,'1. Checklist & Certification'!$F$26:$G$32,2),IF(LEFT($A120,2)=\"D*\",VLOOKUP($E120,'1. Checklist & Certification'!$H$26:$I$32,2),IF(LEFT($A120,2)=\"E*\",VLOOKUP($E120,'1. Checklist & Certification'!$J$26:$K$32,2),VLOOKUP($E120,'1. Checklist & Certification'!$A$26:$B$32,2)))))))","v":0},0,0,null,null,null,null,"","",0,0,0,null,{"$f":"IF(A120=\"\",\"\",'1. Checklist & Certification'!$K$1)","v":""},{"$f":"IF(A120=\"\",\"\",'1. Checklist & Certification'!$C$62)","v":""},{"$f":"IF(A120=\"\",\"\",'1. Checklist & Certification'!$C$6)","v":""},{"$f":"IF(A120=\"\",\"\",'1. Checklist & Certification'!$G$5)","v":""},{"$f":"IFERROR(IF(A120=\"\",\"\",\n_xlfn.LET(_xlpm.Contract,'1. Checklist & Certification'!$C$7,\n_xlpm.Yr,TEXT(MOD(_xlfn.TEXTBEFORE(_xlpm.Contract,\"-\"),100),\"00\"),\n_xlpm.Program,_xlfn.TEXTAFTER(_xlfn.TEXTBEFORE(_xlpm.Contract,\"-\",2),\"-\"),\n_xlpm.CleanProgram,_xlfn.XLOOKUP(_xlpm.Program,SpellCheck[Input],SpellCheck[Correction],_xlpm.Program),\n_xlpm.Number,TEXT(_xlfn.TEXTAFTER(_xlpm.Contract,\"-\",2),\"0000\"),\n_xlfn.CONCAT(_xlpm.Yr,\"-\",_xlpm.CleanProgram,\"-\",_xlpm.Number))\n),\"\")","v":""},{"$f":"IFERROR(IF(A120=\"\",\"\",\n_xlfn.LET(_xlpm.Contract,'1. Checklist & Certification'!$C$8,\n_xlpm.Yr,TEXT(MOD(_xlfn.TEXTBEFORE(_xlpm.Contract,\"-\"),100),\"00\"),\n_xlpm.Program,_xlfn.TEXTAFTER(_xlfn.TEXTBEFORE(_xlpm.Contract,\"-\",2),\"-\"),\n_xlpm.CleanProgram,_xlfn.XLOOKUP(_xlpm.Program,SpellCheck[Input],SpellCheck[Correction],_xlpm.Program),\n_xlpm.Number,TEXT(_xlfn.TEXTAFTER(_xlpm.Contract,\"-\",2),\"0000\"),\n_xlfn.CONCAT(_xlpm.Yr,\"-\",_xlpm.CleanProgram,\"-\",_xlpm.Number))\n),\"\")","v":""},{"$f":"IFERROR(IF(A120=\"\",\"\",\n_xlfn.LET(_xlpm.Contract,'1. Checklist & Certification'!$F$7,\n_xlpm.Yr,TEXT(MOD(_xlfn.TEXTBEFORE(_xlpm.Contract,\"-\"),100),\"00\"),\n_xlpm.Program,_xlfn.TEXTAFTER(_xlfn.TEXTBEFORE(_xlpm.Contract,\"-\",2),\"-\"),\n_xlpm.CleanProgram,_xlfn.XLOOKUP(_xlpm.Program,SpellCheck[Input],SpellCheck[Correction],_xlpm.Program),\n_xlpm.Number,TEXT(_xlfn.TEXTAFTER(_xlpm.Contract,\"-\",2),\"0000\"),\n_xlfn.CONCAT(_xlpm.Yr,\"-\",_xlpm.CleanProgram,\"-\",_xlpm.Number))\n),\"\")","v":""},{"$f":"IFERROR(IF(A120=\"\",\"\",\n_xlfn.LET(_xlpm.Contract,'1. Checklist & Certification'!$F$8,\n_xlpm.Yr,TEXT(MOD(_xlfn.TEXTBEFORE(_xlpm.Contract,\"-\"),100),\"00\"),\n_xlpm.Program,_xlfn.TEXTAFTER(_xlfn.TEXTBEFORE(_xlpm.Contract,\"-\",2),\"-\"),\n_xlpm.CleanProgram,_xlfn.XLOOKUP(_xlpm.Program,SpellCheck[Input],SpellCheck[Correction],_xlpm.Program),\n_xlpm.Number,TEXT(_xlfn.TEXTAFTER(_xlpm.Contract,\"-\",2),\"0000\"),\n_xlfn.CONCAT(_xlpm.Yr,\"-\",_xlpm.CleanProgram,\"-\",_xlpm.Number))\n),\"\")","v":""},{"$f":"IF(A120=\"\",\"\",'1. Checklist & Certification'!$B$9)","v":""},{"$f":"IF(A120=\"\",\"\",'1. Checklist & Certification'!$F$9)","v":""},{"$f":"IF(A120=\"\",\"\",'1. Checklist & Certification'!$C$10)","v":""},{"$f":"IF(A120=\"\",\"\",'1. Checklist & Certification'!$C$11)","v":""},{"$f":"IF(A120=\"\",\"\",'1. Checklist & Certification'!$C$12)","v":""},{"$f":"IF(A120=\"\",\"\",'1. Checklist & Certification'!$B$14)","v":""},{"$f":"IF(A120=\"\",\"\",'1. Checklist & Certification'!$E$14)","v":""},{"$f":"IF(B120=\"\",\"\",'1. Checklist & Certification'!$G$14)","v":""},{"$f":"IF(A120=\"\",\"\",'MHP Family Income & Rent Limits'!$B$3)","v":""},{"$f":"IF(A120=\"\",\"\",'MHP Family Income & Rent Limits'!$J$3)","v":""},{"$f":"IF(A120=\"\",\"\",'MHP Family Income & Rent Limits'!$E$4)","v":""},{"$f":"IF(A120=\"\",\"\",'MHP Family Income & Rent Limits'!$C$7)","v":""},{"$f":"IF(A120=\"\",\"\",'MHP Family Income & Rent Limits'!$F$8)","v":""},{"$f":"IF(A120=\"\",\"\",'1. Checklist & Certification'!$G$4)","v":""},{"$f":"IF(A120=\"\",\"\",'1. Checklist & Certification'!$K$39)","v":""},{"$f":"IF(A120=\"\",\"\",'1. Checklist & Certification'!$K$43)","v":""},{"$f":"IF(A120=\"\",\"\",'1. Checklist & Certification'!$K$45)","v":""},{"$f":"IF(A120=\"\",\"\",'1. Checklist & Certification'!$K$49)","v":""},{"$f":"IF(A120=\"\",\"\",'1. Checklist & Certification'!$K$62)","v":""},{"$f":"IF(A120=\"\",\"\",'1. Checklist & Certification'!$E$66)","v":""},{"$f":"IF(A120=\"\",\"\",'1. Checklist & Certification'!$E$67)","v":""},{"$f":"IF(A120=\"\",\"\",'1. Checklist & Certification'!$E$68)","v":""},{"$f":"IF(A120=\"\",\"\",'1. Checklist & Certification'!$G$66)","v":""},{"$f":"IF(A120=\"\",\"\",'1. Checklist & Certification'!$H$66)","v":""},{"$f":"IF(A120=\"\",\"\",'1. Checklist & Certification'!$I$66)","v":""},{"$f":"IF(A120=\"\",\"\",'1. Checklist & Certification'!$I$67)","v":""},{"$f":"IF(A120=\"\",\"\",'1. Checklist & Certification'!$I$68)","v":""},{"$f":"IF(A120=\"\",\"\",'1. Checklist & Certification'!$B$69)","v":""},{"$f":"IF(A120=\"\",\"\",'1. Checklist & Certification'!$C$69)","v":""},{"$f":"IF(A120=\"\",\"\",'1. Checklist & Certification'!$F$69)","v":""},{"$f":"IF(A120=\"\",\"\",'1. Checklist & Certification'!$G$69)","v":""},{"$f":"IF(A120=\"\",\"\",'1. Checklist & Certification'!$J$69)","v":""},{"$f":"IF(A120=\"\",\"\",'1. Checklist & Certification'!$K$69)","v":""},null,null,{"$f":"IF(AND(OR('1. Checklist & Certification'!$M$16=1,'1. Checklist & Certification'!$M$19=2),AO120>0,B120=\"\",I120>0,AQ120<I120,AV120<>\"Sec 8-Project\"),\"X\",IF(AND(OR('1. Checklist & Certification'!$M$20=4,'1. Checklist & Certification'!$M$21=5,'1. Checklist & Certification'!$M$22=7),AO120>0,B120=\"\",I120>0,K120<I120),\"X\",\"\"))","v":""},{"$f":"IF(A120=\"\",\"\",IF(SUMPRODUCT(-- (ISNUMBER(SEARCH({\"*AHSC*\",\"*FMTW*\",\"*FWHG*\",\"*GHI*\",\"*HHC*\",\"*HLCP*\",\"*HOME*\",\"*LPR*\",\"*MHP*\",\"*NHTF*\",\"*NSP*\",\"*PRP*\",\"*TOD*\",\"*VHHP*\"},'1. Checklist & Certification'!$L$7)))),\"MHP\",\"Legacy\"))","v":""},",,",null,null,null,{"$f":"IF('1. Checklist & Certification'!$M$20=4,\"Both\",IF(OR('1. Checklist & Certification'!$M$15>0,S120=\"CHRP-R\",U120=\"CHRP-R\",W120=\"CHRP-R\",Y120=\"CHRP-R\"),\"Under\",\"No\"))","v":"No"},"No","No",{"$f":"_xlfn.IFS(D120=\"\",\"\",D120=1,'MHP Family Income & Rent Limits'!$E$17,D120=2,'MHP Family Income & Rent Limits'!$F$17,D120=3,'MHP Family Income & Rent Limits'!$G$17,D120=4,'MHP Family Income & Rent Limits'!$H$17,D120=5,'MHP Family Income & Rent Limits'!$I$17,D120=6,'MHP Family Income & Rent Limits'!$J$17,D120=7,'MHP Family Income & Rent Limits'!$K$17,D120=8,'MHP Family Income & Rent Limits'!$L$17)","v":""},"",{"$f":"IF(OR(A120=0,B120=\"X\"),0,MIN(IF(AA120:AD120<>0,AA120:AD120)))","v":0},{"$f":"IF(OR(H120=\"\",I120=\"\"),0,IF(H120*0.3/12>I120,MIN(H120*0.3/12,I120*1.1)+AP120,I120*(1+(VLOOKUP('1. Checklist & Certification'!$F$9,'HLCP-E Rent Change'!$A$1:$D$59,4,FALSE)))+AP120))","v":0}]
[null,null,null,null,null,null,null,null,null,null,null,null,null,null,null,null,null,null,null,null,null,null,null,null,null,null,0,0,0,0,0,0,0,0,{"$f":"IF(OR(A121=0,B121=\"X\"),0,IF(OR(S121=\"FHDP\",S121=\"RHCP-B\",U121=\"FHDP\",U121=\"RHCP-B\",W121=\"FHDP\",W121=\"RHCP-B\",Y121=\"FHDP\",Y121=\"RHCP-B\"),TRUNC((MIN(I121,K121)*(1+'1. Checklist & Certification'!$K$43)+AP121)),0))","v":0},{"$f":"IF(OR(A121=0,B121=\"X\"),0,IF(OR(S121=\"CHRP-R\",S121=\"SERA\",S121=\"SUHRP\",U121=\"CHRP-R\",U121=\"SERA\",U121=\"SUHRP\",W121=\"CHRP-R\",W121=\"SERA\",W121=\"SUHRP\",Y121=\"CHRP-R\",Y121=\"SERA\",Y121=\"SUHRP\"),TRUNC((MIN(I121,K121)*(1+'1. Checklist & Certification'!$K$49))),0))","v":0},{"$f":"IF(OR(A121=0,B121=\"X\"),0,IF(OR(S121=\"CALDAP\",S121=\"DPRLP\",U121=\"CALDAP\",U121=\"DPRLP\",W121=\"CALDAP\",W121=\"DPRLP\",Y121=\"CALDAP\",Y121=\"DPRLP\"),TRUNC(((MIN(I121,K121))*(1+'1. Checklist & Certification'!$G$4))),0))","v":0},0,0,0,{"$f":"IF(OR(A121=0,B121=\"X\"),0,IF(OR(S121=\"PRP\",S121=\"LPR\",U121=\"PRP\",U121=\"LPR\",W121=\"PRP\",W121=\"LPR\",Y121=\"PRP\",Y121=\"LPR\"),MAX(I121+AP121,MIN(IF(AE121:AN121<>0,AE121:AN121))),MIN(IF(AE121:AN121<>0,AE121:AN121))))","v":0},{"$f":"IF(A121=0,0,IF(AND(OR(S121=\"Mgr\",S121=0),OR(U121=\"Mgr\",U121=0),OR(W121=\"Mgr\",W121=0)),0,IF(LEFT($A121,2)=\"B*\",VLOOKUP($E121,'1. Checklist & Certification'!$D$26:$E$32,2),IF(LEFT($A121,2)=\"C*\",VLOOKUP($E121,'1. Checklist & Certification'!$F$26:$G$32,2),IF(LEFT($A121,2)=\"D*\",VLOOKUP($E121,'1. Checklist & Certification'!$H$26:$I$32,2),IF(LEFT($A121,2)=\"E*\",VLOOKUP($E121,'1. Checklist & Certification'!$J$26:$K$32,2),VLOOKUP($E121,'1. Checklist & Certification'!$A$26:$B$32,2)))))))","v":0},0,0,null,null,null,null,"","",0,0,0,null,{"$f":"IF(A121=\"\",\"\",'1. Checklist & Certification'!$K$1)","v":""},{"$f":"IF(A121=\"\",\"\",'1. Checklist & Certification'!$C$62)","v":""},{"$f":"IF(A121=\"\",\"\",'1. Checklist & Certification'!$C$6)","v":""},{"$f":"IF(A121=\"\",\"\",'1. Checklist & Certification'!$G$5)","v":""},{"$f":"IFERROR(IF(A121=\"\",\"\",\n_xlfn.LET(_xlpm.Contract,'1. Checklist & Certification'!$C$7,\n_xlpm.Yr,TEXT(MOD(_xlfn.TEXTBEFORE(_xlpm.Contract,\"-\"),100),\"00\"),\n_xlpm.Program,_xlfn.TEXTAFTER(_xlfn.TEXTBEFORE(_xlpm.Contract,\"-\",2),\"-\"),\n_xlpm.CleanProgram,_xlfn.XLOOKUP(_xlpm.Program,SpellCheck[Input],SpellCheck[Correction],_xlpm.Program),\n_xlpm.Number,TEXT(_xlfn.TEXTAFTER(_xlpm.Contract,\"-\",2),\"0000\"),\n_xlfn.CONCAT(_xlpm.Yr,\"-\",_xlpm.CleanProgram,\"-\",_xlpm.Number))\n),\"\")","v":""},{"$f":"IFERROR(IF(A121=\"\",\"\",\n_xlfn.LET(_xlpm.Contract,'1. Checklist & Certification'!$C$8,\n_xlpm.Yr,TEXT(MOD(_xlfn.TEXTBEFORE(_xlpm.Contract,\"-\"),100),\"00\"),\n_xlpm.Program,_xlfn.TEXTAFTER(_xlfn.TEXTBEFORE(_xlpm.Contract,\"-\",2),\"-\"),\n_xlpm.CleanProgram,_xlfn.XLOOKUP(_xlpm.Program,SpellCheck[Input],SpellCheck[Correction],_xlpm.Program),\n_xlpm.Number,TEXT(_xlfn.TEXTAFTER(_xlpm.Contract,\"-\",2),\"0000\"),\n_xlfn.CONCAT(_xlpm.Yr,\"-\",_xlpm.CleanProgram,\"-\",_xlpm.Number))\n),\"\")","v":""},{"$f":"IFERROR(IF(A121=\"\",\"\",\n_xlfn.LET(_xlpm.Contract,'1. Checklist & Certification'!$F$7,\n_xlpm.Yr,TEXT(MOD(_xlfn.TEXTBEFORE(_xlpm.Contract,\"-\"),100),\"00\"),\n_xlpm.Program,_xlfn.TEXTAFTER(_xlfn.TEXTBEFORE(_xlpm.Contract,\"-\",2),\"-\"),\n_xlpm.CleanProgram,_xlfn.XLOOKUP(_xlpm.Program,SpellCheck[Input],SpellCheck[Correction],_xlpm.Program),\n_xlpm.Number,TEXT(_xlfn.TEXTAFTER(_xlpm.Contract,\"-\",2),\"0000\"),\n_xlfn.CONCAT(_xlpm.Yr,\"-\",_xlpm.CleanProgram,\"-\",_xlpm.Number))\n),\"\")","v":""},{"$f":"IFERROR(IF(A121=\"\",\"\",\n_xlfn.LET(_xlpm.Contract,'1. Checklist & Certification'!$F$8,\n_xlpm.Yr,TEXT(MOD(_xlfn.TEXTBEFORE(_xlpm.Contract,\"-\"),100),\"00\"),\n_xlpm.Program,_xlfn.TEXTAFTER(_xlfn.TEXTBEFORE(_xlpm.Contract,\"-\",2),\"-\"),\n_xlpm.CleanProgram,_xlfn.XLOOKUP(_xlpm.Program,SpellCheck[Input],SpellCheck[Correction],_xlpm.Program),\n_xlpm.Number,TEXT(_xlfn.TEXTAFTER(_xlpm.Contract,\"-\",2),\"0000\"),\n_xlfn.CONCAT(_xlpm.Yr,\"-\",_xlpm.CleanProgram,\"-\",_xlpm.Number))\n),\"\")","v":""},{"$f":"IF(A121=\"\",\"\",'1. Checklist & Certification'!$B$9)","v":""},{"$f":"IF(A121=\"\",\"\",'1. Checklist & Certification'!$F$9)","v":""},{"$f":"IF(A121=\"\",\"\",'1. Checklist & Certification'!$C$10)","v":""},{"$f":"IF(A121=\"\",\"\",'1. Checklist & Certification'!$C$11)","v":""},{"$f":"IF(A121=\"\",\"\",'1. Checklist & Certification'!$C$12)","v":""},{"$f":"IF(A121=\"\",\"\",'1. Checklist & Certification'!$B$14)","v":""},{"$f":"IF(A121=\"\",\"\",'1. Checklist & Certification'!$E$14)","v":""},{"$f":"IF(B121=\"\",\"\",'1. Checklist & Certification'!$G$14)","v":""},{"$f":"IF(A121=\"\",\"\",'MHP Family Income & Rent Limits'!$B$3)","v":""},{"$f":"IF(A121=\"\",\"\",'MHP Family Income & Rent Limits'!$J$3)","v":""},{"$f":"IF(A121=\"\",\"\",'MHP Family Income & Rent Limits'!$E$4)","v":""},{"$f":"IF(A121=\"\",\"\",'MHP Family Income & Rent Limits'!$C$7)","v":""},{"$f":"IF(A121=\"\",\"\",'MHP Family Income & Rent Limits'!$F$8)","v":""},{"$f":"IF(A121=\"\",\"\",'1. Checklist & Certification'!$G$4)","v":""},{"$f":"IF(A121=\"\",\"\",'1. Checklist & Certification'!$K$39)","v":""},{"$f":"IF(A121=\"\",\"\",'1. Checklist & Certification'!$K$43)","v":""},{"$f":"IF(A121=\"\",\"\",'1. Checklist & Certification'!$K$45)","v":""},{"$f":"IF(A121=\"\",\"\",'1. Checklist & Certification'!$K$49)","v":""},{"$f":"IF(A121=\"\",\"\",'1. Checklist & Certification'!$K$62)","v":""},{"$f":"IF(A121=\"\",\"\",'1. Checklist & Certification'!$E$66)","v":""},{"$f":"IF(A121=\"\",\"\",'1. Checklist & Certification'!$E$67)","v":""},{"$f":"IF(A121=\"\",\"\",'1. Checklist & Certification'!$E$68)","v":""},{"$f":"IF(A121=\"\",\"\",'1. Checklist & Certification'!$G$66)","v":""},{"$f":"IF(A121=\"\",\"\",'1. Checklist & Certification'!$H$66)","v":""},{"$f":"IF(A121=\"\",\"\",'1. Checklist & Certification'!$I$66)","v":""},{"$f":"IF(A121=\"\",\"\",'1. Checklist & Certification'!$I$67)","v":""},{"$f":"IF(A121=\"\",\"\",'1. Checklist & Certification'!$I$68)","v":""},{"$f":"IF(A121=\"\",\"\",'1. Checklist & Certification'!$B$69)","v":""},{"$f":"IF(A121=\"\",\"\",'1. Checklist & Certification'!$C$69)","v":""},{"$f":"IF(A121=\"\",\"\",'1. Checklist & Certification'!$F$69)","v":""},{"$f":"IF(A121=\"\",\"\",'1. Checklist & Certification'!$G$69)","v":""},{"$f":"IF(A121=\"\",\"\",'1. Checklist & Certification'!$J$69)","v":""},{"$f":"IF(A121=\"\",\"\",'1. Checklist & Certification'!$K$69)","v":""},null,null,{"$f":"IF(AND(OR('1. Checklist & Certification'!$M$16=1,'1. Checklist & Certification'!$M$19=2),AO121>0,B121=\"\",I121>0,AQ121<I121,AV121<>\"Sec 8-Project\"),\"X\",IF(AND(OR('1. Checklist & Certification'!$M$20=4,'1. Checklist & Certification'!$M$21=5,'1. Checklist & Certification'!$M$22=7),AO121>0,B121=\"\",I121>0,K121<I121),\"X\",\"\"))","v":""},{"$f":"IF(A121=\"\",\"\",IF(SUMPRODUCT(-- (ISNUMBER(SEARCH({\"*AHSC*\",\"*FMTW*\",\"*FWHG*\",\"*GHI*\",\"*HHC*\",\"*HLCP*\",\"*HOME*\",\"*LPR*\",\"*MHP*\",\"*NHTF*\",\"*NSP*\",\"*PRP*\",\"*TOD*\",\"*VHHP*\"},'1. Checklist & Certification'!$L$7)))),\"MHP\",\"Legacy\"))","v":""},",,",null,null,null,{"$f":"IF('1. Checklist & Certification'!$M$20=4,\"Both\",IF(OR('1. Checklist & Certification'!$M$15>0,S121=\"CHRP-R\",U121=\"CHRP-R\",W121=\"CHRP-R\",Y121=\"CHRP-R\"),\"Under\",\"No\"))","v":"No"},"No","No",{"$f":"_xlfn.IFS(D121=\"\",\"\",D121=1,'MHP Family Income & Rent Limits'!$E$17,D121=2,'MHP Family Income & Rent Limits'!$F$17,D121=3,'MHP Family Income & Rent Limits'!$G$17,D121=4,'MHP Family Income & Rent Limits'!$H$17,D121=5,'MHP Family Income & Rent Limits'!$I$17,D121=6,'MHP Family Income & Rent Limits'!$J$17,D121=7,'MHP Family Income & Rent Limits'!$K$17,D121=8,'MHP Family Income & Rent Limits'!$L$17)","v":""},"",{"$f":"IF(OR(A121=0,B121=\"X\"),0,MIN(IF(AA121:AD121<>0,AA121:AD121)))","v":0},{"$f":"IF(OR(H121=\"\",I121=\"\"),0,IF(H121*0.3/12>I121,MIN(H121*0.3/12,I121*1.1)+AP121,I121*(1+(VLOOKUP('1. Checklist & Certification'!$F$9,'HLCP-E Rent Change'!$A$1:$D$59,4,FALSE)))+AP121))","v":0}]
[null,null,null,null,null,null,null,null,null,null,null,null,null,null,null,null,null,null,null,null,null,null,null,null,null,null,0,0,0,0,0,0,0,0,{"$f":"IF(OR(A122=0,B122=\"X\"),0,IF(OR(S122=\"FHDP\",S122=\"RHCP-B\",U122=\"FHDP\",U122=\"RHCP-B\",W122=\"FHDP\",W122=\"RHCP-B\",Y122=\"FHDP\",Y122=\"RHCP-B\"),TRUNC((MIN(I122,K122)*(1+'1. Checklist & Certification'!$K$43)+AP122)),0))","v":0},{"$f":"IF(OR(A122=0,B122=\"X\"),0,IF(OR(S122=\"CHRP-R\",S122=\"SERA\",S122=\"SUHRP\",U122=\"CHRP-R\",U122=\"SERA\",U122=\"SUHRP\",W122=\"CHRP-R\",W122=\"SERA\",W122=\"SUHRP\",Y122=\"CHRP-R\",Y122=\"SERA\",Y122=\"SUHRP\"),TRUNC((MIN(I122,K122)*(1+'1. Checklist & Certification'!$K$49))),0))","v":0},{"$f":"IF(OR(A122=0,B122=\"X\"),0,IF(OR(S122=\"CALDAP\",S122=\"DPRLP\",U122=\"CALDAP\",U122=\"DPRLP\",W122=\"CALDAP\",W122=\"DPRLP\",Y122=\"CALDAP\",Y122=\"DPRLP\"),TRUNC(((MIN(I122,K122))*(1+'1. Checklist & Certification'!$G$4))),0))","v":0},0,0,0,{"$f":"IF(OR(A122=0,B122=\"X\"),0,IF(OR(S122=\"PRP\",S122=\"LPR\",U122=\"PRP\",U122=\"LPR\",W122=\"PRP\",W122=\"LPR\",Y122=\"PRP\",Y122=\"LPR\"),MAX(I122+AP122,MIN(IF(AE122:AN122<>0,AE122:AN122))),MIN(IF(AE122:AN122<>0,AE122:AN122))))","v":0},{"$f":"IF(A122=0,0,IF(AND(OR(S122=\"Mgr\",S122=0),OR(U122=\"Mgr\",U122=0),OR(W122=\"Mgr\",W122=0)),0,IF(LEFT($A122,2)=\"B*\",VLOOKUP($E122,'1. Checklist & Certification'!$D$26:$E$32,2),IF(LEFT($A122,2)=\"C*\",VLOOKUP($E122,'1. Checklist & Certification'!$F$26:$G$32,2),IF(LEFT($A122,2)=\"D*\",VLOOKUP($E122,'1. Checklist & Certification'!$H$26:$I$32,2),IF(LEFT($A122,2)=\"E*\",VLOOKUP($E122,'1. Checklist & Certification'!$J$26:$K$32,2),VLOOKUP($E122,'1. Checklist & Certification'!$A$26:$B$32,2)))))))","v":0},0,0,null,null,null,null,"","",0,0,0,null,{"$f":"IF(A122=\"\",\"\",'1. Checklist & Certification'!$K$1)","v":""},{"$f":"IF(A122=\"\",\"\",'1. Checklist & Certification'!$C$62)","v":""},{"$f":"IF(A122=\"\",\"\",'1. Checklist & Certification'!$C$6)","v":""},{"$f":"IF(A122=\"\",\"\",'1. Checklist & Certification'!$G$5)","v":""},{"$f":"IFERROR(IF(A122=\"\",\"\",\n_xlfn.LET(_xlpm.Contract,'1. Checklist & Certification'!$C$7,\n_xlpm.Yr,TEXT(MOD(_xlfn.TEXTBEFORE(_xlpm.Contract,\"-\"),100),\"00\"),\n_xlpm.Program,_xlfn.TEXTAFTER(_xlfn.TEXTBEFORE(_xlpm.Contract,\"-\",2),\"-\"),\n_xlpm.CleanProgram,_xlfn.XLOOKUP(_xlpm.Program,SpellCheck[Input],SpellCheck[Correction],_xlpm.Program),\n_xlpm.Number,TEXT(_xlfn.TEXTAFTER(_xlpm.Contract,\"-\",2),\"0000\"),\n_xlfn.CONCAT(_xlpm.Yr,\"-\",_xlpm.CleanProgram,\"-\",_xlpm.Number))\n),\"\")","v":""},{"$f":"IFERROR(IF(A122=\"\",\"\",\n_xlfn.LET(_xlpm.Contract,'1. Checklist & Certification'!$C$8,\n_xlpm.Yr,TEXT(MOD(_xlfn.TEXTBEFORE(_xlpm.Contract,\"-\"),100),\"00\"),\n_xlpm.Program,_xlfn.TEXTAFTER(_xlfn.TEXTBEFORE(_xlpm.Contract,\"-\",2),\"-\"),\n_xlpm.CleanProgram,_xlfn.XLOOKUP(_xlpm.Program,SpellCheck[Input],SpellCheck[Correction],_xlpm.Program),\n_xlpm.Number,TEXT(_xlfn.TEXTAFTER(_xlpm.Contract,\"-\",2),\"0000\"),\n_xlfn.CONCAT(_xlpm.Yr,\"-\",_xlpm.CleanProgram,\"-\",_xlpm.Number))\n),\"\")","v":""},{"$f":"IFERROR(IF(A122=\"\",\"\",\n_xlfn.LET(_xlpm.Contract,'1. Checklist & Certification'!$F$7,\n_xlpm.Yr,TEXT(MOD(_xlfn.TEXTBEFORE(_xlpm.Contract,\"-\"),100),\"00\"),\n_xlpm.Program,_xlfn.TEXTAFTER(_xlfn.TEXTBEFORE(_xlpm.Contract,\"-\",2),\"-\"),\n_xlpm.CleanProgram,_xlfn.XLOOKUP(_xlpm.Program,SpellCheck[Input],SpellCheck[Correction],_xlpm.Program),\n_xlpm.Number,TEXT(_xlfn.TEXTAFTER(_xlpm.Contract,\"-\",2),\"0000\"),\n_xlfn.CONCAT(_xlpm.Yr,\"-\",_xlpm.CleanProgram,\"-\",_xlpm.Number))\n),\"\")","v":""},{"$f":"IFERROR(IF(A122=\"\",\"\",\n_xlfn.LET(_xlpm.Contract,'1. Checklist & Certification'!$F$8,\n_xlpm.Yr,TEXT(MOD(_xlfn.TEXTBEFORE(_xlpm.Contract,\"-\"),100),\"00\"),\n_xlpm.Program,_xlfn.TEXTAFTER(_xlfn.TEXTBEFORE(_xlpm.Contract,\"-\",2),\"-\"),\n_xlpm.CleanProgram,_xlfn.XLOOKUP(_xlpm.Program,SpellCheck[Input],SpellCheck[Correction],_xlpm.Program),\n_xlpm.Number,TEXT(_xlfn.TEXTAFTER(_xlpm.Contract,\"-\",2),\"0000\"),\n_xlfn.CONCAT(_xlpm.Yr,\"-\",_xlpm.CleanProgram,\"-\",_xlpm.Number))\n),\"\")","v":""},{"$f":"IF(A122=\"\",\"\",'1. Checklist & Certification'!$B$9)","v":""},{"$f":"IF(A122=\"\",\"\",'1. Checklist & Certification'!$F$9)","v":""},{"$f":"IF(A122=\"\",\"\",'1. Checklist & Certification'!$C$10)","v":""},{"$f":"IF(A122=\"\",\"\",'1. Checklist & Certification'!$C$11)","v":""},{"$f":"IF(A122=\"\",\"\",'1. Checklist & Certification'!$C$12)","v":""},{"$f":"IF(A122=\"\",\"\",'1. Checklist & Certification'!$B$14)","v":""},{"$f":"IF(A122=\"\",\"\",'1. Checklist & Certification'!$E$14)","v":""},{"$f":"IF(B122=\"\",\"\",'1. Checklist & Certification'!$G$14)","v":""},{"$f":"IF(A122=\"\",\"\",'MHP Family Income & Rent Limits'!$B$3)","v":""},{"$f":"IF(A122=\"\",\"\",'MHP Family Income & Rent Limits'!$J$3)","v":""},{"$f":"IF(A122=\"\",\"\",'MHP Family Income & Rent Limits'!$E$4)","v":""},{"$f":"IF(A122=\"\",\"\",'MHP Family Income & Rent Limits'!$C$7)","v":""},{"$f":"IF(A122=\"\",\"\",'MHP Family Income & Rent Limits'!$F$8)","v":""},{"$f":"IF(A122=\"\",\"\",'1. Checklist & Certification'!$G$4)","v":""},{"$f":"IF(A122=\"\",\"\",'1. Checklist & Certification'!$K$39)","v":""},{"$f":"IF(A122=\"\",\"\",'1. Checklist & Certification'!$K$43)","v":""},{"$f":"IF(A122=\"\",\"\",'1. Checklist & Certification'!$K$45)","v":""},{"$f":"IF(A122=\"\",\"\",'1. Checklist & Certification'!$K$49)","v":""},{"$f":"IF(A122=\"\",\"\",'1. Checklist & Certification'!$K$62)","v":""},{"$f":"IF(A122=\"\",\"\",'1. Checklist & Certification'!$E$66)","v":""},{"$f":"IF(A122=\"\",\"\",'1. Checklist & Certification'!$E$67)","v":""},{"$f":"IF(A122=\"\",\"\",'1. Checklist & Certification'!$E$68)","v":""},{"$f":"IF(A122=\"\",\"\",'1. Checklist & Certification'!$G$66)","v":""},{"$f":"IF(A122=\"\",\"\",'1. Checklist & Certification'!$H$66)","v":""},{"$f":"IF(A122=\"\",\"\",'1. Checklist & Certification'!$I$66)","v":""},{"$f":"IF(A122=\"\",\"\",'1. Checklist & Certification'!$I$67)","v":""},{"$f":"IF(A122=\"\",\"\",'1. Checklist & Certification'!$I$68)","v":""},{"$f":"IF(A122=\"\",\"\",'1. Checklist & Certification'!$B$69)","v":""},{"$f":"IF(A122=\"\",\"\",'1. Checklist & Certification'!$C$69)","v":""},{"$f":"IF(A122=\"\",\"\",'1. Checklist & Certification'!$F$69)","v":""},{"$f":"IF(A122=\"\",\"\",'1. Checklist & Certification'!$G$69)","v":""},{"$f":"IF(A122=\"\",\"\",'1. Checklist & Certification'!$J$69)","v":""},{"$f":"IF(A122=\"\",\"\",'1. Checklist & Certification'!$K$69)","v":""},null,null,{"$f":"IF(AND(OR('1. Checklist & Certification'!$M$16=1,'1. Checklist & Certification'!$M$19=2),AO122>0,B122=\"\",I122>0,AQ122<I122,AV122<>\"Sec 8-Project\"),\"X\",IF(AND(OR('1. Checklist & Certification'!$M$20=4,'1. Checklist & Certification'!$M$21=5,'1. Checklist & Certification'!$M$22=7),AO122>0,B122=\"\",I122>0,K122<I122),\"X\",\"\"))","v":""},{"$f":"IF(A122=\"\",\"\",IF(SUMPRODUCT(-- (ISNUMBER(SEARCH({\"*AHSC*\",\"*FMTW*\",\"*FWHG*\",\"*GHI*\",\"*HHC*\",\"*HLCP*\",\"*HOME*\",\"*LPR*\",\"*MHP*\",\"*NHTF*\",\"*NSP*\",\"*PRP*\",\"*TOD*\",\"*VHHP*\"},'1. Checklist & Certification'!$L$7)))),\"MHP\",\"Legacy\"))","v":""},",,",null,null,null,{"$f":"IF('1. Checklist & Certification'!$M$20=4,\"Both\",IF(OR('1. Checklist & Certification'!$M$15>0,S122=\"CHRP-R\",U122=\"CHRP-R\",W122=\"CHRP-R\",Y122=\"CHRP-R\"),\"Under\",\"No\"))","v":"No"},"No","No",{"$f":"_xlfn.IFS(D122=\"\",\"\",D122=1,'MHP Family Income & Rent Limits'!$E$17,D122=2,'MHP Family Income & Rent Limits'!$F$17,D122=3,'MHP Family Income & Rent Limits'!$G$17,D122=4,'MHP Family Income & Rent Limits'!$H$17,D122=5,'MHP Family Income & Rent Limits'!$I$17,D122=6,'MHP Family Income & Rent Limits'!$J$17,D122=7,'MHP Family Income & Rent Limits'!$K$17,D122=8,'MHP Family Income & Rent Limits'!$L$17)","v":""},"",{"$f":"IF(OR(A122=0,B122=\"X\"),0,MIN(IF(AA122:AD122<>0,AA122:AD122)))","v":0},{"$f":"IF(OR(H122=\"\",I122=\"\"),0,IF(H122*0.3/12>I122,MIN(H122*0.3/12,I122*1.1)+AP122,I122*(1+(VLOOKUP('1. Checklist & Certification'!$F$9,'HLCP-E Rent Change'!$A$1:$D$59,4,FALSE)))+AP122))","v":0}]
[null,null,null,null,null,null,null,null,null,null,null,null,null,null,null,null,null,null,null,null,null,null,null,null,null,null,0,0,0,0,0,0,0,0,{"$f":"IF(OR(A123=0,B123=\"X\"),0,IF(OR(S123=\"FHDP\",S123=\"RHCP-B\",U123=\"FHDP\",U123=\"RHCP-B\",W123=\"FHDP\",W123=\"RHCP-B\",Y123=\"FHDP\",Y123=\"RHCP-B\"),TRUNC((MIN(I123,K123)*(1+'1. Checklist & Certification'!$K$43)+AP123)),0))","v":0},{"$f":"IF(OR(A123=0,B123=\"X\"),0,IF(OR(S123=\"CHRP-R\",S123=\"SERA\",S123=\"SUHRP\",U123=\"CHRP-R\",U123=\"SERA\",U123=\"SUHRP\",W123=\"CHRP-R\",W123=\"SERA\",W123=\"SUHRP\",Y123=\"CHRP-R\",Y123=\"SERA\",Y123=\"SUHRP\"),TRUNC((MIN(I123,K123)*(1+'1. Checklist & Certification'!$K$49))),0))","v":0},{"$f":"IF(OR(A123=0,B123=\"X\"),0,IF(OR(S123=\"CALDAP\",S123=\"DPRLP\",U123=\"CALDAP\",U123=\"DPRLP\",W123=\"CALDAP\",W123=\"DPRLP\",Y123=\"CALDAP\",Y123=\"DPRLP\"),TRUNC(((MIN(I123,K123))*(1+'1. Checklist & Certification'!$G$4))),0))","v":0},0,0,0,{"$f":"IF(OR(A123=0,B123=\"X\"),0,IF(OR(S123=\"PRP\",S123=\"LPR\",U123=\"PRP\",U123=\"LPR\",W123=\"PRP\",W123=\"LPR\",Y123=\"PRP\",Y123=\"LPR\"),MAX(I123+AP123,MIN(IF(AE123:AN123<>0,AE123:AN123))),MIN(IF(AE123:AN123<>0,AE123:AN123))))","v":0},{"$f":"IF(A123=0,0,IF(AND(OR(S123=\"Mgr\",S123=0),OR(U123=\"Mgr\",U123=0),OR(W123=\"Mgr\",W123=0)),0,IF(LEFT($A123,2)=\"B*\",VLOOKUP($E123,'1. Checklist & Certification'!$D$26:$E$32,2),IF(LEFT($A123,2)=\"C*\",VLOOKUP($E123,'1. Checklist & Certification'!$F$26:$G$32,2),IF(LEFT($A123,2)=\"D*\",VLOOKUP($E123,'1. Checklist & Certification'!$H$26:$I$32,2),IF(LEFT($A123,2)=\"E*\",VLOOKUP($E123,'1. Checklist & Certification'!$J$26:$K$32,2),VLOOKUP($E123,'1. Checklist & Certification'!$A$26:$B$32,2)))))))","v":0},0,0,null,null,null,null,"","",0,0,0,null,{"$f":"IF(A123=\"\",\"\",'1. Checklist & Certification'!$K$1)","v":""},{"$f":"IF(A123=\"\",\"\",'1. Checklist & Certification'!$C$62)","v":""},{"$f":"IF(A123=\"\",\"\",'1. Checklist & Certification'!$C$6)","v":""},{"$f":"IF(A123=\"\",\"\",'1. Checklist & Certification'!$G$5)","v":""},{"$f":"IFERROR(IF(A123=\"\",\"\",\n_xlfn.LET(_xlpm.Contract,'1. Checklist & Certification'!$C$7,\n_xlpm.Yr,TEXT(MOD(_xlfn.TEXTBEFORE(_xlpm.Contract,\"-\"),100),\"00\"),\n_xlpm.Program,_xlfn.TEXTAFTER(_xlfn.TEXTBEFORE(_xlpm.Contract,\"-\",2),\"-\"),\n_xlpm.CleanProgram,_xlfn.XLOOKUP(_xlpm.Program,SpellCheck[Input],SpellCheck[Correction],_xlpm.Program),\n_xlpm.Number,TEXT(_xlfn.TEXTAFTER(_xlpm.Contract,\"-\",2),\"0000\"),\n_xlfn.CONCAT(_xlpm.Yr,\"-\",_xlpm.CleanProgram,\"-\",_xlpm.Number))\n),\"\")","v":""},{"$f":"IFERROR(IF(A123=\"\",\"\",\n_xlfn.LET(_xlpm.Contract,'1. Checklist & Certification'!$C$8,\n_xlpm.Yr,TEXT(MOD(_xlfn.TEXTBEFORE(_xlpm.Contract,\"-\"),100),\"00\"),\n_xlpm.Program,_xlfn.TEXTAFTER(_xlfn.TEXTBEFORE(_xlpm.Contract,\"-\",2),\"-\"),\n_xlpm.CleanProgram,_xlfn.XLOOKUP(_xlpm.Program,SpellCheck[Input],SpellCheck[Correction],_xlpm.Program),\n_xlpm.Number,TEXT(_xlfn.TEXTAFTER(_xlpm.Contract,\"-\",2),\"0000\"),\n_xlfn.CONCAT(_xlpm.Yr,\"-\",_xlpm.CleanProgram,\"-\",_xlpm.Number))\n),\"\")","v":""},{"$f":"IFERROR(IF(A123=\"\",\"\",\n_xlfn.LET(_xlpm.Contract,'1. Checklist & Certification'!$F$7,\n_xlpm.Yr,TEXT(MOD(_xlfn.TEXTBEFORE(_xlpm.Contract,\"-\"),100),\"00\"),\n_xlpm.Program,_xlfn.TEXTAFTER(_xlfn.TEXTBEFORE(_xlpm.Contract,\"-\",2),\"-\"),\n_xlpm.CleanProgram,_xlfn.XLOOKUP(_xlpm.Program,SpellCheck[Input],SpellCheck[Correction],_xlpm.Program),\n_xlpm.Number,TEXT(_xlfn.TEXTAFTER(_xlpm.Contract,\"-\",2),\"0000\"),\n_xlfn.CONCAT(_xlpm.Yr,\"-\",_xlpm.CleanProgram,\"-\",_xlpm.Number))\n),\"\")","v":""},{"$f":"IFERROR(IF(A123=\"\",\"\",\n_xlfn.LET(_xlpm.Contract,'1. Checklist & Certification'!$F$8,\n_xlpm.Yr,TEXT(MOD(_xlfn.TEXTBEFORE(_xlpm.Contract,\"-\"),100),\"00\"),\n_xlpm.Program,_xlfn.TEXTAFTER(_xlfn.TEXTBEFORE(_xlpm.Contract,\"-\",2),\"-\"),\n_xlpm.CleanProgram,_xlfn.XLOOKUP(_xlpm.Program,SpellCheck[Input],SpellCheck[Correction],_xlpm.Program),\n_xlpm.Number,TEXT(_xlfn.TEXTAFTER(_xlpm.Contract,\"-\",2),\"0000\"),\n_xlfn.CONCAT(_xlpm.Yr,\"-\",_xlpm.CleanProgram,\"-\",_xlpm.Number))\n),\"\")","v":""},{"$f":"IF(A123=\"\",\"\",'1. Checklist & Certification'!$B$9)","v":""},{"$f":"IF(A123=\"\",\"\",'1. Checklist & Certification'!$F$9)","v":""},{"$f":"IF(A123=\"\",\"\",'1. Checklist & Certification'!$C$10)","v":""},{"$f":"IF(A123=\"\",\"\",'1. Checklist & Certification'!$C$11)","v":""},{"$f":"IF(A123=\"\",\"\",'1. Checklist & Certification'!$C$12)","v":""},{"$f":"IF(A123=\"\",\"\",'1. Checklist & Certification'!$B$14)","v":""},{"$f":"IF(A123=\"\",\"\",'1. Checklist & Certification'!$E$14)","v":""},{"$f":"IF(B123=\"\",\"\",'1. Checklist & Certification'!$G$14)","v":""},{"$f":"IF(A123=\"\",\"\",'MHP Family Income & Rent Limits'!$B$3)","v":""},{"$f":"IF(A123=\"\",\"\",'MHP Family Income & Rent Limits'!$J$3)","v":""},{"$f":"IF(A123=\"\",\"\",'MHP Family Income & Rent Limits'!$E$4)","v":""},{"$f":"IF(A123=\"\",\"\",'MHP Family Income & Rent Limits'!$C$7)","v":""},{"$f":"IF(A123=\"\",\"\",'MHP Family Income & Rent Limits'!$F$8)","v":""},{"$f":"IF(A123=\"\",\"\",'1. Checklist & Certification'!$G$4)","v":""},{"$f":"IF(A123=\"\",\"\",'1. Checklist & Certification'!$K$39)","v":""},{"$f":"IF(A123=\"\",\"\",'1. Checklist & Certification'!$K$43)","v":""},{"$f":"IF(A123=\"\",\"\",'1. Checklist & Certification'!$K$45)","v":""},{"$f":"IF(A123=\"\",\"\",'1. Checklist & Certification'!$K$49)","v":""},{"$f":"IF(A123=\"\",\"\",'1. Checklist & Certification'!$K$62)","v":""},{"$f":"IF(A123=\"\",\"\",'1. Checklist & Certification'!$E$66)","v":""},{"$f":"IF(A123=\"\",\"\",'1. Checklist & Certification'!$E$67)","v":""},{"$f":"IF(A123=\"\",\"\",'1. Checklist & Certification'!$E$68)","v":""},{"$f":"IF(A123=\"\",\"\",'1. Checklist & Certification'!$G$66)","v":""},{"$f":"IF(A123=\"\",\"\",'1. Checklist & Certification'!$H$66)","v":""},{"$f":"IF(A123=\"\",\"\",'1. Checklist & Certification'!$I$66)","v":""},{"$f":"IF(A123=\"\",\"\",'1. Checklist & Certification'!$I$67)","v":""},{"$f":"IF(A123=\"\",\"\",'1. Checklist & Certification'!$I$68)","v":""},{"$f":"IF(A123=\"\",\"\",'1. Checklist & Certification'!$B$69)","v":""},{"$f":"IF(A123=\"\",\"\",'1. Checklist & Certification'!$C$69)","v":""},{"$f":"IF(A123=\"\",\"\",'1. Checklist & Certification'!$F$69)","v":""},{"$f":"IF(A123=\"\",\"\",'1. Checklist & Certification'!$G$69)","v":""},{"$f":"IF(A123=\"\",\"\",'1. Checklist & Certification'!$J$69)","v":""},{"$f":"IF(A123=\"\",\"\",'1. Checklist & Certification'!$K$69)","v":""},null,null,{"$f":"IF(AND(OR('1. Checklist & Certification'!$M$16=1,'1. Checklist & Certification'!$M$19=2),AO123>0,B123=\"\",I123>0,AQ123<I123,AV123<>\"Sec 8-Project\"),\"X\",IF(AND(OR('1. Checklist & Certification'!$M$20=4,'1. Checklist & Certification'!$M$21=5,'1. Checklist & Certification'!$M$22=7),AO123>0,B123=\"\",I123>0,K123<I123),\"X\",\"\"))","v":""},{"$f":"IF(A123=\"\",\"\",IF(SUMPRODUCT(-- (ISNUMBER(SEARCH({\"*AHSC*\",\"*FMTW*\",\"*FWHG*\",\"*GHI*\",\"*HHC*\",\"*HLCP*\",\"*HOME*\",\"*LPR*\",\"*MHP*\",\"*NHTF*\",\"*NSP*\",\"*PRP*\",\"*TOD*\",\"*VHHP*\"},'1. Checklist & Certification'!$L$7)))),\"MHP\",\"Legacy\"))","v":""},",,",null,null,null,{"$f":"IF('1. Checklist & Certification'!$M$20=4,\"Both\",IF(OR('1. Checklist & Certification'!$M$15>0,S123=\"CHRP-R\",U123=\"CHRP-R\",W123=\"CHRP-R\",Y123=\"CHRP-R\"),\"Under\",\"No\"))","v":"No"},"No","No",{"$f":"_xlfn.IFS(D123=\"\",\"\",D123=1,'MHP Family Income & Rent Limits'!$E$17,D123=2,'MHP Family Income & Rent Limits'!$F$17,D123=3,'MHP Family Income & Rent Limits'!$G$17,D123=4,'MHP Family Income & Rent Limits'!$H$17,D123=5,'MHP Family Income & Rent Limits'!$I$17,D123=6,'MHP Family Income & Rent Limits'!$J$17,D123=7,'MHP Family Income & Rent Limits'!$K$17,D123=8,'MHP Family Income & Rent Limits'!$L$17)","v":""},"",{"$f":"IF(OR(A123=0,B123=\"X\"),0,MIN(IF(AA123:AD123<>0,AA123:AD123)))","v":0},{"$f":"IF(OR(H123=\"\",I123=\"\"),0,IF(H123*0.3/12>I123,MIN(H123*0.3/12,I123*1.1)+AP123,I123*(1+(VLOOKUP('1. Checklist & Certification'!$F$9,'HLCP-E Rent Change'!$A$1:$D$59,4,FALSE)))+AP123))","v":0}]
[null,null,null,null,null,null,null,null,null,null,null,null,null,null,null,null,null,null,null,null,null,null,null,null,null,null,0,0,0,0,0,0,0,0,{"$f":"IF(OR(A124=0,B124=\"X\"),0,IF(OR(S124=\"FHDP\",S124=\"RHCP-B\",U124=\"FHDP\",U124=\"RHCP-B\",W124=\"FHDP\",W124=\"RHCP-B\",Y124=\"FHDP\",Y124=\"RHCP-B\"),TRUNC((MIN(I124,K124)*(1+'1. Checklist & Certification'!$K$43)+AP124)),0))","v":0},{"$f":"IF(OR(A124=0,B124=\"X\"),0,IF(OR(S124=\"CHRP-R\",S124=\"SERA\",S124=\"SUHRP\",U124=\"CHRP-R\",U124=\"SERA\",U124=\"SUHRP\",W124=\"CHRP-R\",W124=\"SERA\",W124=\"SUHRP\",Y124=\"CHRP-R\",Y124=\"SERA\",Y124=\"SUHRP\"),TRUNC((MIN(I124,K124)*(1+'1. Checklist & Certification'!$K$49))),0))","v":0},{"$f":"IF(OR(A124=0,B124=\"X\"),0,IF(OR(S124=\"CALDAP\",S124=\"DPRLP\",U124=\"CALDAP\",U124=\"DPRLP\",W124=\"CALDAP\",W124=\"DPRLP\",Y124=\"CALDAP\",Y124=\"DPRLP\"),TRUNC(((MIN(I124,K124))*(1+'1. Checklist & Certification'!$G$4))),0))","v":0},0,0,0,{"$f":"IF(OR(A124=0,B124=\"X\"),0,IF(OR(S124=\"PRP\",S124=\"LPR\",U124=\"PRP\",U124=\"LPR\",W124=\"PRP\",W124=\"LPR\",Y124=\"PRP\",Y124=\"LPR\"),MAX(I124+AP124,MIN(IF(AE124:AN124<>0,AE124:AN124))),MIN(IF(AE124:AN124<>0,AE124:AN124))))","v":0},{"$f":"IF(A124=0,0,IF(AND(OR(S124=\"Mgr\",S124=0),OR(U124=\"Mgr\",U124=0),OR(W124=\"Mgr\",W124=0)),0,IF(LEFT($A124,2)=\"B*\",VLOOKUP($E124,'1. Checklist & Certification'!$D$26:$E$32,2),IF(LEFT($A124,2)=\"C*\",VLOOKUP($E124,'1. Checklist & Certification'!$F$26:$G$32,2),IF(LEFT($A124,2)=\"D*\",VLOOKUP($E124,'1. Checklist & Certification'!$H$26:$I$32,2),IF(LEFT($A124,2)=\"E*\",VLOOKUP($E124,'1. Checklist & Certification'!$J$26:$K$32,2),VLOOKUP($E124,'1. Checklist & Certification'!$A$26:$B$32,2)))))))","v":0},0,0,null,null,null,null,"","",0,0,0,null,{"$f":"IF(A124=\"\",\"\",'1. Checklist & Certification'!$K$1)","v":""},{"$f":"IF(A124=\"\",\"\",'1. Checklist & Certification'!$C$62)","v":""},{"$f":"IF(A124=\"\",\"\",'1. Checklist & Certification'!$C$6)","v":""},{"$f":"IF(A124=\"\",\"\",'1. Checklist & Certification'!$G$5)","v":""},{"$f":"IFERROR(IF(A124=\"\",\"\",\n_xlfn.LET(_xlpm.Contract,'1. Checklist & Certification'!$C$7,\n_xlpm.Yr,TEXT(MOD(_xlfn.TEXTBEFORE(_xlpm.Contract,\"-\"),100),\"00\"),\n_xlpm.Program,_xlfn.TEXTAFTER(_xlfn.TEXTBEFORE(_xlpm.Contract,\"-\",2),\"-\"),\n_xlpm.CleanProgram,_xlfn.XLOOKUP(_xlpm.Program,SpellCheck[Input],SpellCheck[Correction],_xlpm.Program),\n_xlpm.Number,TEXT(_xlfn.TEXTAFTER(_xlpm.Contract,\"-\",2),\"0000\"),\n_xlfn.CONCAT(_xlpm.Yr,\"-\",_xlpm.CleanProgram,\"-\",_xlpm.Number))\n),\"\")","v":""},{"$f":"IFERROR(IF(A124=\"\",\"\",\n_xlfn.LET(_xlpm.Contract,'1. Checklist & Certification'!$C$8,\n_xlpm.Yr,TEXT(MOD(_xlfn.TEXTBEFORE(_xlpm.Contract,\"-\"),100),\"00\"),\n_xlpm.Program,_xlfn.TEXTAFTER(_xlfn.TEXTBEFORE(_xlpm.Contract,\"-\",2),\"-\"),\n_xlpm.CleanProgram,_xlfn.XLOOKUP(_xlpm.Program,SpellCheck[Input],SpellCheck[Correction],_xlpm.Program),\n_xlpm.Number,TEXT(_xlfn.TEXTAFTER(_xlpm.Contract,\"-\",2),\"0000\"),\n_xlfn.CONCAT(_xlpm.Yr,\"-\",_xlpm.CleanProgram,\"-\",_xlpm.Number))\n),\"\")","v":""},{"$f":"IFERROR(IF(A124=\"\",\"\",\n_xlfn.LET(_xlpm.Contract,'1. Checklist & Certification'!$F$7,\n_xlpm.Yr,TEXT(MOD(_xlfn.TEXTBEFORE(_xlpm.Contract,\"-\"),100),\"00\"),\n_xlpm.Program,_xlfn.TEXTAFTER(_xlfn.TEXTBEFORE(_xlpm.Contract,\"-\",2),\"-\"),\n_xlpm.CleanProgram,_xlfn.XLOOKUP(_xlpm.Program,SpellCheck[Input],SpellCheck[Correction],_xlpm.Program),\n_xlpm.Number,TEXT(_xlfn.TEXTAFTER(_xlpm.Contract,\"-\",2),\"0000\"),\n_xlfn.CONCAT(_xlpm.Yr,\"-\",_xlpm.CleanProgram,\"-\",_xlpm.Number))\n),\"\")","v":""},{"$f":"IFERROR(IF(A124=\"\",\"\",\n_xlfn.LET(_xlpm.Contract,'1. Checklist & Certification'!$F$8,\n_xlpm.Yr,TEXT(MOD(_xlfn.TEXTBEFORE(_xlpm.Contract,\"-\"),100),\"00\"),\n_xlpm.Program,_xlfn.TEXTAFTER(_xlfn.TEXTBEFORE(_xlpm.Contract,\"-\",2),\"-\"),\n_xlpm.CleanProgram,_xlfn.XLOOKUP(_xlpm.Program,SpellCheck[Input],SpellCheck[Correction],_xlpm.Program),\n_xlpm.Number,TEXT(_xlfn.TEXTAFTER(_xlpm.Contract,\"-\",2),\"0000\"),\n_xlfn.CONCAT(_xlpm.Yr,\"-\",_xlpm.CleanProgram,\"-\",_xlpm.Number))\n),\"\")","v":""},{"$f":"IF(A124=\"\",\"\",'1. Checklist & Certification'!$B$9)","v":""},{"$f":"IF(A124=\"\",\"\",'1. Checklist & Certification'!$F$9)","v":""},{"$f":"IF(A124=\"\",\"\",'1. Checklist & Certification'!$C$10)","v":""},{"$f":"IF(A124=\"\",\"\",'1. Checklist & Certification'!$C$11)","v":""},{"$f":"IF(A124=\"\",\"\",'1. Checklist & Certification'!$C$12)","v":""},{"$f":"IF(A124=\"\",\"\",'1. Checklist & Certification'!$B$14)","v":""},{"$f":"IF(A124=\"\",\"\",'1. Checklist & Certification'!$E$14)","v":""},{"$f":"IF(B124=\"\",\"\",'1. Checklist & Certification'!$G$14)","v":""},{"$f":"IF(A124=\"\",\"\",'MHP Family Income & Rent Limits'!$B$3)","v":""},{"$f":"IF(A124=\"\",\"\",'MHP Family Income & Rent Limits'!$J$3)","v":""},{"$f":"IF(A124=\"\",\"\",'MHP Family Income & Rent Limits'!$E$4)","v":""},{"$f":"IF(A124=\"\",\"\",'MHP Family Income & Rent Limits'!$C$7)","v":""},{"$f":"IF(A124=\"\",\"\",'MHP Family Income & Rent Limits'!$F$8)","v":""},{"$f":"IF(A124=\"\",\"\",'1. Checklist & Certification'!$G$4)","v":""},{"$f":"IF(A124=\"\",\"\",'1. Checklist & Certification'!$K$39)","v":""},{"$f":"IF(A124=\"\",\"\",'1. Checklist & Certification'!$K$43)","v":""},{"$f":"IF(A124=\"\",\"\",'1. Checklist & Certification'!$K$45)","v":""},{"$f":"IF(A124=\"\",\"\",'1. Checklist & Certification'!$K$49)","v":""},{"$f":"IF(A124=\"\",\"\",'1. Checklist & Certification'!$K$62)","v":""},{"$f":"IF(A124=\"\",\"\",'1. Checklist & Certification'!$E$66)","v":""},{"$f":"IF(A124=\"\",\"\",'1. Checklist & Certification'!$E$67)","v":""},{"$f":"IF(A124=\"\",\"\",'1. Checklist & Certification'!$E$68)","v":""},{"$f":"IF(A124=\"\",\"\",'1. Checklist & Certification'!$G$66)","v":""},{"$f":"IF(A124=\"\",\"\",'1. Checklist & Certification'!$H$66)","v":""},{"$f":"IF(A124=\"\",\"\",'1. Checklist & Certification'!$I$66)","v":""},{"$f":"IF(A124=\"\",\"\",'1. Checklist & Certification'!$I$67)","v":""},{"$f":"IF(A124=\"\",\"\",'1. Checklist & Certification'!$I$68)","v":""},{"$f":"IF(A124=\"\",\"\",'1. Checklist & Certification'!$B$69)","v":""},{"$f":"IF(A124=\"\",\"\",'1. Checklist & Certification'!$C$69)","v":""},{"$f":"IF(A124=\"\",\"\",'1. Checklist & Certification'!$F$69)","v":""},{"$f":"IF(A124=\"\",\"\",'1. Checklist & Certification'!$G$69)","v":""},{"$f":"IF(A124=\"\",\"\",'1. Checklist & Certification'!$J$69)","v":""},{"$f":"IF(A124=\"\",\"\",'1. Checklist & Certification'!$K$69)","v":""},null,null,{"$f":"IF(AND(OR('1. Checklist & Certification'!$M$16=1,'1. Checklist & Certification'!$M$19=2),AO124>0,B124=\"\",I124>0,AQ124<I124,AV124<>\"Sec 8-Project\"),\"X\",IF(AND(OR('1. Checklist & Certification'!$M$20=4,'1. Checklist & Certification'!$M$21=5,'1. Checklist & Certification'!$M$22=7),AO124>0,B124=\"\",I124>0,K124<I124),\"X\",\"\"))","v":""},{"$f":"IF(A124=\"\",\"\",IF(SUMPRODUCT(-- (ISNUMBER(SEARCH({\"*AHSC*\",\"*FMTW*\",\"*FWHG*\",\"*GHI*\",\"*HHC*\",\"*HLCP*\",\"*HOME*\",\"*LPR*\",\"*MHP*\",\"*NHTF*\",\"*NSP*\",\"*PRP*\",\"*TOD*\",\"*VHHP*\"},'1. Checklist & Certification'!$L$7)))),\"MHP\",\"Legacy\"))","v":""},",,",null,null,null,{"$f":"IF('1. Checklist & Certification'!$M$20=4,\"Both\",IF(OR('1. Checklist & Certification'!$M$15>0,S124=\"CHRP-R\",U124=\"CHRP-R\",W124=\"CHRP-R\",Y124=\"CHRP-R\"),\"Under\",\"No\"))","v":"No"},"No","No",{"$f":"_xlfn.IFS(D124=\"\",\"\",D124=1,'MHP Family Income & Rent Limits'!$E$17,D124=2,'MHP Family Income & Rent Limits'!$F$17,D124=3,'MHP Family Income & Rent Limits'!$G$17,D124=4,'MHP Family Income & Rent Limits'!$H$17,D124=5,'MHP Family Income & Rent Limits'!$I$17,D124=6,'MHP Family Income & Rent Limits'!$J$17,D124=7,'MHP Family Income & Rent Limits'!$K$17,D124=8,'MHP Family Income & Rent Limits'!$L$17)","v":""},"",{"$f":"IF(OR(A124=0,B124=\"X\"),0,MIN(IF(AA124:AD124<>0,AA124:AD124)))","v":0},{"$f":"IF(OR(H124=\"\",I124=\"\"),0,IF(H124*0.3/12>I124,MIN(H124*0.3/12,I124*1.1)+AP124,I124*(1+(VLOOKUP('1. Checklist & Certification'!$F$9,'HLCP-E Rent Change'!$A$1:$D$59,4,FALSE)))+AP124))","v":0}]
[null,null,null,null,null,null,null,null,null,null,null,null,null,null,null,null,null,null,null,null,null,null,null,null,null,null,0,0,0,0,0,0,0,0,{"$f":"IF(OR(A125=0,B125=\"X\"),0,IF(OR(S125=\"FHDP\",S125=\"RHCP-B\",U125=\"FHDP\",U125=\"RHCP-B\",W125=\"FHDP\",W125=\"RHCP-B\",Y125=\"FHDP\",Y125=\"RHCP-B\"),TRUNC((MIN(I125,K125)*(1+'1. Checklist & Certification'!$K$43)+AP125)),0))","v":0},{"$f":"IF(OR(A125=0,B125=\"X\"),0,IF(OR(S125=\"CHRP-R\",S125=\"SERA\",S125=\"SUHRP\",U125=\"CHRP-R\",U125=\"SERA\",U125=\"SUHRP\",W125=\"CHRP-R\",W125=\"SERA\",W125=\"SUHRP\",Y125=\"CHRP-R\",Y125=\"SERA\",Y125=\"SUHRP\"),TRUNC((MIN(I125,K125)*(1+'1. Checklist & Certification'!$K$49))),0))","v":0},{"$f":"IF(OR(A125=0,B125=\"X\"),0,IF(OR(S125=\"CALDAP\",S125=\"DPRLP\",U125=\"CALDAP\",U125=\"DPRLP\",W125=\"CALDAP\",W125=\"DPRLP\",Y125=\"CALDAP\",Y125=\"DPRLP\"),TRUNC(((MIN(I125,K125))*(1+'1. Checklist & Certification'!$G$4))),0))","v":0},0,0,0,{"$f":"IF(OR(A125=0,B125=\"X\"),0,IF(OR(S125=\"PRP\",S125=\"LPR\",U125=\"PRP\",U125=\"LPR\",W125=\"PRP\",W125=\"LPR\",Y125=\"PRP\",Y125=\"LPR\"),MAX(I125+AP125,MIN(IF(AE125:AN125<>0,AE125:AN125))),MIN(IF(AE125:AN125<>0,AE125:AN125))))","v":0},{"$f":"IF(A125=0,0,IF(AND(OR(S125=\"Mgr\",S125=0),OR(U125=\"Mgr\",U125=0),OR(W125=\"Mgr\",W125=0)),0,IF(LEFT($A125,2)=\"B*\",VLOOKUP($E125,'1. Checklist & Certification'!$D$26:$E$32,2),IF(LEFT($A125,2)=\"C*\",VLOOKUP($E125,'1. Checklist & Certification'!$F$26:$G$32,2),IF(LEFT($A125,2)=\"D*\",VLOOKUP($E125,'1. Checklist & Certification'!$H$26:$I$32,2),IF(LEFT($A125,2)=\"E*\",VLOOKUP($E125,'1. Checklist & Certification'!$J$26:$K$32,2),VLOOKUP($E125,'1. Checklist & Certification'!$A$26:$B$32,2)))))))","v":0},0,0,null,null,null,null,"","",0,0,0,null,{"$f":"IF(A125=\"\",\"\",'1. Checklist & Certification'!$K$1)","v":""},{"$f":"IF(A125=\"\",\"\",'1. Checklist & Certification'!$C$62)","v":""},{"$f":"IF(A125=\"\",\"\",'1. Checklist & Certification'!$C$6)","v":""},{"$f":"IF(A125=\"\",\"\",'1. Checklist & Certification'!$G$5)","v":""},{"$f":"IFERROR(IF(A125=\"\",\"\",\n_xlfn.LET(_xlpm.Contract,'1. Checklist & Certification'!$C$7,\n_xlpm.Yr,TEXT(MOD(_xlfn.TEXTBEFORE(_xlpm.Contract,\"-\"),100),\"00\"),\n_xlpm.Program,_xlfn.TEXTAFTER(_xlfn.TEXTBEFORE(_xlpm.Contract,\"-\",2),\"-\"),\n_xlpm.CleanProgram,_xlfn.XLOOKUP(_xlpm.Program,SpellCheck[Input],SpellCheck[Correction],_xlpm.Program),\n_xlpm.Number,TEXT(_xlfn.TEXTAFTER(_xlpm.Contract,\"-\",2),\"0000\"),\n_xlfn.CONCAT(_xlpm.Yr,\"-\",_xlpm.CleanProgram,\"-\",_xlpm.Number))\n),\"\")","v":""},{"$f":"IFERROR(IF(A125=\"\",\"\",\n_xlfn.LET(_xlpm.Contract,'1. Checklist & Certification'!$C$8,\n_xlpm.Yr,TEXT(MOD(_xlfn.TEXTBEFORE(_xlpm.Contract,\"-\"),100),\"00\"),\n_xlpm.Program,_xlfn.TEXTAFTER(_xlfn.TEXTBEFORE(_xlpm.Contract,\"-\",2),\"-\"),\n_xlpm.CleanProgram,_xlfn.XLOOKUP(_xlpm.Program,SpellCheck[Input],SpellCheck[Correction],_xlpm.Program),\n_xlpm.Number,TEXT(_xlfn.TEXTAFTER(_xlpm.Contract,\"-\",2),\"0000\"),\n_xlfn.CONCAT(_xlpm.Yr,\"-\",_xlpm.CleanProgram,\"-\",_xlpm.Number))\n),\"\")","v":""},{"$f":"IFERROR(IF(A125=\"\",\"\",\n_xlfn.LET(_xlpm.Contract,'1. Checklist & Certification'!$F$7,\n_xlpm.Yr,TEXT(MOD(_xlfn.TEXTBEFORE(_xlpm.Contract,\"-\"),100),\"00\"),\n_xlpm.Program,_xlfn.TEXTAFTER(_xlfn.TEXTBEFORE(_xlpm.Contract,\"-\",2),\"-\"),\n_xlpm.CleanProgram,_xlfn.XLOOKUP(_xlpm.Program,SpellCheck[Input],SpellCheck[Correction],_xlpm.Program),\n_xlpm.Number,TEXT(_xlfn.TEXTAFTER(_xlpm.Contract,\"-\",2),\"0000\"),\n_xlfn.CONCAT(_xlpm.Yr,\"-\",_xlpm.CleanProgram,\"-\",_xlpm.Number))\n),\"\")","v":""},{"$f":"IFERROR(IF(A125=\"\",\"\",\n_xlfn.LET(_xlpm.Contract,'1. Checklist & Certification'!$F$8,\n_xlpm.Yr,TEXT(MOD(_xlfn.TEXTBEFORE(_xlpm.Contract,\"-\"),100),\"00\"),\n_xlpm.Program,_xlfn.TEXTAFTER(_xlfn.TEXTBEFORE(_xlpm.Contract,\"-\",2),\"-\"),\n_xlpm.CleanProgram,_xlfn.XLOOKUP(_xlpm.Program,SpellCheck[Input],SpellCheck[Correction],_xlpm.Program),\n_xlpm.Number,TEXT(_xlfn.TEXTAFTER(_xlpm.Contract,\"-\",2),\"0000\"),\n_xlfn.CONCAT(_xlpm.Yr,\"-\",_xlpm.CleanProgram,\"-\",_xlpm.Number))\n),\"\")","v":""},{"$f":"IF(A125=\"\",\"\",'1. Checklist & Certification'!$B$9)","v":""},{"$f":"IF(A125=\"\",\"\",'1. Checklist & Certification'!$F$9)","v":""},{"$f":"IF(A125=\"\",\"\",'1. Checklist & Certification'!$C$10)","v":""},{"$f":"IF(A125=\"\",\"\",'1. Checklist & Certification'!$C$11)","v":""},{"$f":"IF(A125=\"\",\"\",'1. Checklist & Certification'!$C$12)","v":""},{"$f":"IF(A125=\"\",\"\",'1. Checklist & Certification'!$B$14)","v":""},{"$f":"IF(A125=\"\",\"\",'1. Checklist & Certification'!$E$14)","v":""},{"$f":"IF(B125=\"\",\"\",'1. Checklist & Certification'!$G$14)","v":""},{"$f":"IF(A125=\"\",\"\",'MHP Family Income & Rent Limits'!$B$3)","v":""},{"$f":"IF(A125=\"\",\"\",'MHP Family Income & Rent Limits'!$J$3)","v":""},{"$f":"IF(A125=\"\",\"\",'MHP Family Income & Rent Limits'!$E$4)","v":""},{"$f":"IF(A125=\"\",\"\",'MHP Family Income & Rent Limits'!$C$7)","v":""},{"$f":"IF(A125=\"\",\"\",'MHP Family Income & Rent Limits'!$F$8)","v":""},{"$f":"IF(A125=\"\",\"\",'1. Checklist & Certification'!$G$4)","v":""},{"$f":"IF(A125=\"\",\"\",'1. Checklist & Certification'!$K$39)","v":""},{"$f":"IF(A125=\"\",\"\",'1. Checklist & Certification'!$K$43)","v":""},{"$f":"IF(A125=\"\",\"\",'1. Checklist & Certification'!$K$45)","v":""},{"$f":"IF(A125=\"\",\"\",'1. Checklist & Certification'!$K$49)","v":""},{"$f":"IF(A125=\"\",\"\",'1. Checklist & Certification'!$K$62)","v":""},{"$f":"IF(A125=\"\",\"\",'1. Checklist & Certification'!$E$66)","v":""},{"$f":"IF(A125=\"\",\"\",'1. Checklist & Certification'!$E$67)","v":""},{"$f":"IF(A125=\"\",\"\",'1. Checklist & Certification'!$E$68)","v":""},{"$f":"IF(A125=\"\",\"\",'1. Checklist & Certification'!$G$66)","v":""},{"$f":"IF(A125=\"\",\"\",'1. Checklist & Certification'!$H$66)","v":""},{"$f":"IF(A125=\"\",\"\",'1. Checklist & Certification'!$I$66)","v":""},{"$f":"IF(A125=\"\",\"\",'1. Checklist & Certification'!$I$67)","v":""},{"$f":"IF(A125=\"\",\"\",'1. Checklist & Certification'!$I$68)","v":""},{"$f":"IF(A125=\"\",\"\",'1. Checklist & Certification'!$B$69)","v":""},{"$f":"IF(A125=\"\",\"\",'1. Checklist & Certification'!$C$69)","v":""},{"$f":"IF(A125=\"\",\"\",'1. Checklist & Certification'!$F$69)","v":""},{"$f":"IF(A125=\"\",\"\",'1. Checklist & Certification'!$G$69)","v":""},{"$f":"IF(A125=\"\",\"\",'1. Checklist & Certification'!$J$69)","v":""},{"$f":"IF(A125=\"\",\"\",'1. Checklist & Certification'!$K$69)","v":""},null,null,{"$f":"IF(AND(OR('1. Checklist & Certification'!$M$16=1,'1. Checklist & Certification'!$M$19=2),AO125>0,B125=\"\",I125>0,AQ125<I125,AV125<>\"Sec 8-Project\"),\"X\",IF(AND(OR('1. Checklist & Certification'!$M$20=4,'1. Checklist & Certification'!$M$21=5,'1. Checklist & Certification'!$M$22=7),AO125>0,B125=\"\",I125>0,K125<I125),\"X\",\"\"))","v":""},{"$f":"IF(A125=\"\",\"\",IF(SUMPRODUCT(-- (ISNUMBER(SEARCH({\"*AHSC*\",\"*FMTW*\",\"*FWHG*\",\"*GHI*\",\"*HHC*\",\"*HLCP*\",\"*HOME*\",\"*LPR*\",\"*MHP*\",\"*NHTF*\",\"*NSP*\",\"*PRP*\",\"*TOD*\",\"*VHHP*\"},'1. Checklist & Certification'!$L$7)))),\"MHP\",\"Legacy\"))","v":""},",,",null,null,null,{"$f":"IF('1. Checklist & Certification'!$M$20=4,\"Both\",IF(OR('1. Checklist & Certification'!$M$15>0,S125=\"CHRP-R\",U125=\"CHRP-R\",W125=\"CHRP-R\",Y125=\"CHRP-R\"),\"Under\",\"No\"))","v":"No"},"No","No",{"$f":"_xlfn.IFS(D125=\"\",\"\",D125=1,'MHP Family Income & Rent Limits'!$E$17,D125=2,'MHP Family Income & Rent Limits'!$F$17,D125=3,'MHP Family Income & Rent Limits'!$G$17,D125=4,'MHP Family Income & Rent Limits'!$H$17,D125=5,'MHP Family Income & Rent Limits'!$I$17,D125=6,'MHP Family Income & Rent Limits'!$J$17,D125=7,'MHP Family Income & Rent Limits'!$K$17,D125=8,'MHP Family Income & Rent Limits'!$L$17)","v":""},"",{"$f":"IF(OR(A125=0,B125=\"X\"),0,MIN(IF(AA125:AD125<>0,AA125:AD125)))","v":0},{"$f":"IF(OR(H125=\"\",I125=\"\"),0,IF(H125*0.3/12>I125,MIN(H125*0.3/12,I125*1.1)+AP125,I125*(1+(VLOOKUP('1. Checklist & Certification'!$F$9,'HLCP-E Rent Change'!$A$1:$D$59,4,FALSE)))+AP125))","v":0}]
[null,null,null,null,null,null,null,null,null,null,null,null,null,null,null,null,null,null,null,null,null,null,null,null,null,null,0,0,0,0,0,0,0,0,{"$f":"IF(OR(A126=0,B126=\"X\"),0,IF(OR(S126=\"FHDP\",S126=\"RHCP-B\",U126=\"FHDP\",U126=\"RHCP-B\",W126=\"FHDP\",W126=\"RHCP-B\",Y126=\"FHDP\",Y126=\"RHCP-B\"),TRUNC((MIN(I126,K126)*(1+'1. Checklist & Certification'!$K$43)+AP126)),0))","v":0},{"$f":"IF(OR(A126=0,B126=\"X\"),0,IF(OR(S126=\"CHRP-R\",S126=\"SERA\",S126=\"SUHRP\",U126=\"CHRP-R\",U126=\"SERA\",U126=\"SUHRP\",W126=\"CHRP-R\",W126=\"SERA\",W126=\"SUHRP\",Y126=\"CHRP-R\",Y126=\"SERA\",Y126=\"SUHRP\"),TRUNC((MIN(I126,K126)*(1+'1. Checklist & Certification'!$K$49))),0))","v":0},{"$f":"IF(OR(A126=0,B126=\"X\"),0,IF(OR(S126=\"CALDAP\",S126=\"DPRLP\",U126=\"CALDAP\",U126=\"DPRLP\",W126=\"CALDAP\",W126=\"DPRLP\",Y126=\"CALDAP\",Y126=\"DPRLP\"),TRUNC(((MIN(I126,K126))*(1+'1. Checklist & Certification'!$G$4))),0))","v":0},0,0,0,{"$f":"IF(OR(A126=0,B126=\"X\"),0,IF(OR(S126=\"PRP\",S126=\"LPR\",U126=\"PRP\",U126=\"LPR\",W126=\"PRP\",W126=\"LPR\",Y126=\"PRP\",Y126=\"LPR\"),MAX(I126+AP126,MIN(IF(AE126:AN126<>0,AE126:AN126))),MIN(IF(AE126:AN126<>0,AE126:AN126))))","v":0},{"$f":"IF(A126=0,0,IF(AND(OR(S126=\"Mgr\",S126=0),OR(U126=\"Mgr\",U126=0),OR(W126=\"Mgr\",W126=0)),0,IF(LEFT($A126,2)=\"B*\",VLOOKUP($E126,'1. Checklist & Certification'!$D$26:$E$32,2),IF(LEFT($A126,2)=\"C*\",VLOOKUP($E126,'1. Checklist & Certification'!$F$26:$G$32,2),IF(LEFT($A126,2)=\"D*\",VLOOKUP($E126,'1. Checklist & Certification'!$H$26:$I$32,2),IF(LEFT($A126,2)=\"E*\",VLOOKUP($E126,'1. Checklist & Certification'!$J$26:$K$32,2),VLOOKUP($E126,'1. Checklist & Certification'!$A$26:$B$32,2)))))))","v":0},0,0,null,null,null,null,"","",0,0,0,null,{"$f":"IF(A126=\"\",\"\",'1. Checklist & Certification'!$K$1)","v":""},{"$f":"IF(A126=\"\",\"\",'1. Checklist & Certification'!$C$62)","v":""},{"$f":"IF(A126=\"\",\"\",'1. Checklist & Certification'!$C$6)","v":""},{"$f":"IF(A126=\"\",\"\",'1. Checklist & Certification'!$G$5)","v":""},{"$f":"IFERROR(IF(A126=\"\",\"\",\n_xlfn.LET(_xlpm.Contract,'1. Checklist & Certification'!$C$7,\n_xlpm.Yr,TEXT(MOD(_xlfn.TEXTBEFORE(_xlpm.Contract,\"-\"),100),\"00\"),\n_xlpm.Program,_xlfn.TEXTAFTER(_xlfn.TEXTBEFORE(_xlpm.Contract,\"-\",2),\"-\"),\n_xlpm.CleanProgram,_xlfn.XLOOKUP(_xlpm.Program,SpellCheck[Input],SpellCheck[Correction],_xlpm.Program),\n_xlpm.Number,TEXT(_xlfn.TEXTAFTER(_xlpm.Contract,\"-\",2),\"0000\"),\n_xlfn.CONCAT(_xlpm.Yr,\"-\",_xlpm.CleanProgram,\"-\",_xlpm.Number))\n),\"\")","v":""},{"$f":"IFERROR(IF(A126=\"\",\"\",\n_xlfn.LET(_xlpm.Contract,'1. Checklist & Certification'!$C$8,\n_xlpm.Yr,TEXT(MOD(_xlfn.TEXTBEFORE(_xlpm.Contract,\"-\"),100),\"00\"),\n_xlpm.Program,_xlfn.TEXTAFTER(_xlfn.TEXTBEFORE(_xlpm.Contract,\"-\",2),\"-\"),\n_xlpm.CleanProgram,_xlfn.XLOOKUP(_xlpm.Program,SpellCheck[Input],SpellCheck[Correction],_xlpm.Program),\n_xlpm.Number,TEXT(_xlfn.TEXTAFTER(_xlpm.Contract,\"-\",2),\"0000\"),\n_xlfn.CONCAT(_xlpm.Yr,\"-\",_xlpm.CleanProgram,\"-\",_xlpm.Number))\n),\"\")","v":""},{"$f":"IFERROR(IF(A126=\"\",\"\",\n_xlfn.LET(_xlpm.Contract,'1. Checklist & Certification'!$F$7,\n_xlpm.Yr,TEXT(MOD(_xlfn.TEXTBEFORE(_xlpm.Contract,\"-\"),100),\"00\"),\n_xlpm.Program,_xlfn.TEXTAFTER(_xlfn.TEXTBEFORE(_xlpm.Contract,\"-\",2),\"-\"),\n_xlpm.CleanProgram,_xlfn.XLOOKUP(_xlpm.Program,SpellCheck[Input],SpellCheck[Correction],_xlpm.Program),\n_xlpm.Number,TEXT(_xlfn.TEXTAFTER(_xlpm.Contract,\"-\",2),\"0000\"),\n_xlfn.CONCAT(_xlpm.Yr,\"-\",_xlpm.CleanProgram,\"-\",_xlpm.Number))\n),\"\")","v":""},{"$f":"IFERROR(IF(A126=\"\",\"\",\n_xlfn.LET(_xlpm.Contract,'1. Checklist & Certification'!$F$8,\n_xlpm.Yr,TEXT(MOD(_xlfn.TEXTBEFORE(_xlpm.Contract,\"-\"),100),\"00\"),\n_xlpm.Program,_xlfn.TEXTAFTER(_xlfn.TEXTBEFORE(_xlpm.Contract,\"-\",2),\"-\"),\n_xlpm.CleanProgram,_xlfn.XLOOKUP(_xlpm.Program,SpellCheck[Input],SpellCheck[Correction],_xlpm.Program),\n_xlpm.Number,TEXT(_xlfn.TEXTAFTER(_xlpm.Contract,\"-\",2),\"0000\"),\n_xlfn.CONCAT(_xlpm.Yr,\"-\",_xlpm.CleanProgram,\"-\",_xlpm.Number))\n),\"\")","v":""},{"$f":"IF(A126=\"\",\"\",'1. Checklist & Certification'!$B$9)","v":""},{"$f":"IF(A126=\"\",\"\",'1. Checklist & Certification'!$F$9)","v":""},{"$f":"IF(A126=\"\",\"\",'1. Checklist & Certification'!$C$10)","v":""},{"$f":"IF(A126=\"\",\"\",'1. Checklist & Certification'!$C$11)","v":""},{"$f":"IF(A126=\"\",\"\",'1. Checklist & Certification'!$C$12)","v":""},{"$f":"IF(A126=\"\",\"\",'1. Checklist & Certification'!$B$14)","v":""},{"$f":"IF(A126=\"\",\"\",'1. Checklist & Certification'!$E$14)","v":""},{"$f":"IF(B126=\"\",\"\",'1. Checklist & Certification'!$G$14)","v":""},{"$f":"IF(A126=\"\",\"\",'MHP Family Income & Rent Limits'!$B$3)","v":""},{"$f":"IF(A126=\"\",\"\",'MHP Family Income & Rent Limits'!$J$3)","v":""},{"$f":"IF(A126=\"\",\"\",'MHP Family Income & Rent Limits'!$E$4)","v":""},{"$f":"IF(A126=\"\",\"\",'MHP Family Income & Rent Limits'!$C$7)","v":""},{"$f":"IF(A126=\"\",\"\",'MHP Family Income & Rent Limits'!$F$8)","v":""},{"$f":"IF(A126=\"\",\"\",'1. Checklist & Certification'!$G$4)","v":""},{"$f":"IF(A126=\"\",\"\",'1. Checklist & Certification'!$K$39)","v":""},{"$f":"IF(A126=\"\",\"\",'1. Checklist & Certification'!$K$43)","v":""},{"$f":"IF(A126=\"\",\"\",'1. Checklist & Certification'!$K$45)","v":""},{"$f":"IF(A126=\"\",\"\",'1. Checklist & Certification'!$K$49)","v":""},{"$f":"IF(A126=\"\",\"\",'1. Checklist & Certification'!$K$62)","v":""},{"$f":"IF(A126=\"\",\"\",'1. Checklist & Certification'!$E$66)","v":""},{"$f":"IF(A126=\"\",\"\",'1. Checklist & Certification'!$E$67)","v":""},{"$f":"IF(A126=\"\",\"\",'1. Checklist & Certification'!$E$68)","v":""},{"$f":"IF(A126=\"\",\"\",'1. Checklist & Certification'!$G$66)","v":""},{"$f":"IF(A126=\"\",\"\",'1. Checklist & Certification'!$H$66)","v":""},{"$f":"IF(A126=\"\",\"\",'1. Checklist & Certification'!$I$66)","v":""},{"$f":"IF(A126=\"\",\"\",'1. Checklist & Certification'!$I$67)","v":""},{"$f":"IF(A126=\"\",\"\",'1. Checklist & Certification'!$I$68)","v":""},{"$f":"IF(A126=\"\",\"\",'1. Checklist & Certification'!$B$69)","v":""},{"$f":"IF(A126=\"\",\"\",'1. Checklist & Certification'!$C$69)","v":""},{"$f":"IF(A126=\"\",\"\",'1. Checklist & Certification'!$F$69)","v":""},{"$f":"IF(A126=\"\",\"\",'1. Checklist & Certification'!$G$69)","v":""},{"$f":"IF(A126=\"\",\"\",'1. Checklist & Certification'!$J$69)","v":""},{"$f":"IF(A126=\"\",\"\",'1. Checklist & Certification'!$K$69)","v":""},null,null,{"$f":"IF(AND(OR('1. Checklist & Certification'!$M$16=1,'1. Checklist & Certification'!$M$19=2),AO126>0,B126=\"\",I126>0,AQ126<I126,AV126<>\"Sec 8-Project\"),\"X\",IF(AND(OR('1. Checklist & Certification'!$M$20=4,'1. Checklist & Certification'!$M$21=5,'1. Checklist & Certification'!$M$22=7),AO126>0,B126=\"\",I126>0,K126<I126),\"X\",\"\"))","v":""},{"$f":"IF(A126=\"\",\"\",IF(SUMPRODUCT(-- (ISNUMBER(SEARCH({\"*AHSC*\",\"*FMTW*\",\"*FWHG*\",\"*GHI*\",\"*HHC*\",\"*HLCP*\",\"*HOME*\",\"*LPR*\",\"*MHP*\",\"*NHTF*\",\"*NSP*\",\"*PRP*\",\"*TOD*\",\"*VHHP*\"},'1. Checklist & Certification'!$L$7)))),\"MHP\",\"Legacy\"))","v":""},",,",null,null,null,{"$f":"IF('1. Checklist & Certification'!$M$20=4,\"Both\",IF(OR('1. Checklist & Certification'!$M$15>0,S126=\"CHRP-R\",U126=\"CHRP-R\",W126=\"CHRP-R\",Y126=\"CHRP-R\"),\"Under\",\"No\"))","v":"No"},"No","No",{"$f":"_xlfn.IFS(D126=\"\",\"\",D126=1,'MHP Family Income & Rent Limits'!$E$17,D126=2,'MHP Family Income & Rent Limits'!$F$17,D126=3,'MHP Family Income & Rent Limits'!$G$17,D126=4,'MHP Family Income & Rent Limits'!$H$17,D126=5,'MHP Family Income & Rent Limits'!$I$17,D126=6,'MHP Family Income & Rent Limits'!$J$17,D126=7,'MHP Family Income & Rent Limits'!$K$17,D126=8,'MHP Family Income & Rent Limits'!$L$17)","v":""},"",{"$f":"IF(OR(A126=0,B126=\"X\"),0,MIN(IF(AA126:AD126<>0,AA126:AD126)))","v":0},{"$f":"IF(OR(H126=\"\",I126=\"\"),0,IF(H126*0.3/12>I126,MIN(H126*0.3/12,I126*1.1)+AP126,I126*(1+(VLOOKUP('1. Checklist & Certification'!$F$9,'HLCP-E Rent Change'!$A$1:$D$59,4,FALSE)))+AP126))","v":0}]
[null,null,null,null,null,null,null,null,null,null,null,null,null,null,null,null,null,null,null,null,null,null,null,null,null,null,0,0,0,0,0,0,0,0,{"$f":"IF(OR(A127=0,B127=\"X\"),0,IF(OR(S127=\"FHDP\",S127=\"RHCP-B\",U127=\"FHDP\",U127=\"RHCP-B\",W127=\"FHDP\",W127=\"RHCP-B\",Y127=\"FHDP\",Y127=\"RHCP-B\"),TRUNC((MIN(I127,K127)*(1+'1. Checklist & Certification'!$K$43)+AP127)),0))","v":0},{"$f":"IF(OR(A127=0,B127=\"X\"),0,IF(OR(S127=\"CHRP-R\",S127=\"SERA\",S127=\"SUHRP\",U127=\"CHRP-R\",U127=\"SERA\",U127=\"SUHRP\",W127=\"CHRP-R\",W127=\"SERA\",W127=\"SUHRP\",Y127=\"CHRP-R\",Y127=\"SERA\",Y127=\"SUHRP\"),TRUNC((MIN(I127,K127)*(1+'1. Checklist & Certification'!$K$49))),0))","v":0},{"$f":"IF(OR(A127=0,B127=\"X\"),0,IF(OR(S127=\"CALDAP\",S127=\"DPRLP\",U127=\"CALDAP\",U127=\"DPRLP\",W127=\"CALDAP\",W127=\"DPRLP\",Y127=\"CALDAP\",Y127=\"DPRLP\"),TRUNC(((MIN(I127,K127))*(1+'1. Checklist & Certification'!$G$4))),0))","v":0},0,0,0,{"$f":"IF(OR(A127=0,B127=\"X\"),0,IF(OR(S127=\"PRP\",S127=\"LPR\",U127=\"PRP\",U127=\"LPR\",W127=\"PRP\",W127=\"LPR\",Y127=\"PRP\",Y127=\"LPR\"),MAX(I127+AP127,MIN(IF(AE127:AN127<>0,AE127:AN127))),MIN(IF(AE127:AN127<>0,AE127:AN127))))","v":0},{"$f":"IF(A127=0,0,IF(AND(OR(S127=\"Mgr\",S127=0),OR(U127=\"Mgr\",U127=0),OR(W127=\"Mgr\",W127=0)),0,IF(LEFT($A127,2)=\"B*\",VLOOKUP($E127,'1. Checklist & Certification'!$D$26:$E$32,2),IF(LEFT($A127,2)=\"C*\",VLOOKUP($E127,'1. Checklist & Certification'!$F$26:$G$32,2),IF(LEFT($A127,2)=\"D*\",VLOOKUP($E127,'1. Checklist & Certification'!$H$26:$I$32,2),IF(LEFT($A127,2)=\"E*\",VLOOKUP($E127,'1. Checklist & Certification'!$J$26:$K$32,2),VLOOKUP($E127,'1. Checklist & Certification'!$A$26:$B$32,2)))))))","v":0},0,0,null,null,null,null,"","",0,0,0,null,{"$f":"IF(A127=\"\",\"\",'1. Checklist & Certification'!$K$1)","v":""},{"$f":"IF(A127=\"\",\"\",'1. Checklist & Certification'!$C$62)","v":""},{"$f":"IF(A127=\"\",\"\",'1. Checklist & Certification'!$C$6)","v":""},{"$f":"IF(A127=\"\",\"\",'1. Checklist & Certification'!$G$5)","v":""},{"$f":"IFERROR(IF(A127=\"\",\"\",\n_xlfn.LET(_xlpm.Contract,'1. Checklist & Certification'!$C$7,\n_xlpm.Yr,TEXT(MOD(_xlfn.TEXTBEFORE(_xlpm.Contract,\"-\"),100),\"00\"),\n_xlpm.Program,_xlfn.TEXTAFTER(_xlfn.TEXTBEFORE(_xlpm.Contract,\"-\",2),\"-\"),\n_xlpm.CleanProgram,_xlfn.XLOOKUP(_xlpm.Program,SpellCheck[Input],SpellCheck[Correction],_xlpm.Program),\n_xlpm.Number,TEXT(_xlfn.TEXTAFTER(_xlpm.Contract,\"-\",2),\"0000\"),\n_xlfn.CONCAT(_xlpm.Yr,\"-\",_xlpm.CleanProgram,\"-\",_xlpm.Number))\n),\"\")","v":""},{"$f":"IFERROR(IF(A127=\"\",\"\",\n_xlfn.LET(_xlpm.Contract,'1. Checklist & Certification'!$C$8,\n_xlpm.Yr,TEXT(MOD(_xlfn.TEXTBEFORE(_xlpm.Contract,\"-\"),100),\"00\"),\n_xlpm.Program,_xlfn.TEXTAFTER(_xlfn.TEXTBEFORE(_xlpm.Contract,\"-\",2),\"-\"),\n_xlpm.CleanProgram,_xlfn.XLOOKUP(_xlpm.Program,SpellCheck[Input],SpellCheck[Correction],_xlpm.Program),\n_xlpm.Number,TEXT(_xlfn.TEXTAFTER(_xlpm.Contract,\"-\",2),\"0000\"),\n_xlfn.CONCAT(_xlpm.Yr,\"-\",_xlpm.CleanProgram,\"-\",_xlpm.Number))\n),\"\")","v":""},{"$f":"IFERROR(IF(A127=\"\",\"\",\n_xlfn.LET(_xlpm.Contract,'1. Checklist & Certification'!$F$7,\n_xlpm.Yr,TEXT(MOD(_xlfn.TEXTBEFORE(_xlpm.Contract,\"-\"),100),\"00\"),\n_xlpm.Program,_xlfn.TEXTAFTER(_xlfn.TEXTBEFORE(_xlpm.Contract,\"-\",2),\"-\"),\n_xlpm.CleanProgram,_xlfn.XLOOKUP(_xlpm.Program,SpellCheck[Input],SpellCheck[Correction],_xlpm.Program),\n_xlpm.Number,TEXT(_xlfn.TEXTAFTER(_xlpm.Contract,\"-\",2),\"0000\"),\n_xlfn.CONCAT(_xlpm.Yr,\"-\",_xlpm.CleanProgram,\"-\",_xlpm.Number))\n),\"\")","v":""},{"$f":"IFERROR(IF(A127=\"\",\"\",\n_xlfn.LET(_xlpm.Contract,'1. Checklist & Certification'!$F$8,\n_xlpm.Yr,TEXT(MOD(_xlfn.TEXTBEFORE(_xlpm.Contract,\"-\"),100),\"00\"),\n_xlpm.Program,_xlfn.TEXTAFTER(_xlfn.TEXTBEFORE(_xlpm.Contract,\"-\",2),\"-\"),\n_xlpm.CleanProgram,_xlfn.XLOOKUP(_xlpm.Program,SpellCheck[Input],SpellCheck[Correction],_xlpm.Program),\n_xlpm.Number,TEXT(_xlfn.TEXTAFTER(_xlpm.Contract,\"-\",2),\"0000\"),\n_xlfn.CONCAT(_xlpm.Yr,\"-\",_xlpm.CleanProgram,\"-\",_xlpm.Number))\n),\"\")","v":""},{"$f":"IF(A127=\"\",\"\",'1. Checklist & Certification'!$B$9)","v":""},{"$f":"IF(A127=\"\",\"\",'1. Checklist & Certification'!$F$9)","v":""},{"$f":"IF(A127=\"\",\"\",'1. Checklist & Certification'!$C$10)","v":""},{"$f":"IF(A127=\"\",\"\",'1. Checklist & Certification'!$C$11)","v":""},{"$f":"IF(A127=\"\",\"\",'1. Checklist & Certification'!$C$12)","v":""},{"$f":"IF(A127=\"\",\"\",'1. Checklist & Certification'!$B$14)","v":""},{"$f":"IF(A127=\"\",\"\",'1. Checklist & Certification'!$E$14)","v":""},{"$f":"IF(B127=\"\",\"\",'1. Checklist & Certification'!$G$14)","v":""},{"$f":"IF(A127=\"\",\"\",'MHP Family Income & Rent Limits'!$B$3)","v":""},{"$f":"IF(A127=\"\",\"\",'MHP Family Income & Rent Limits'!$J$3)","v":""},{"$f":"IF(A127=\"\",\"\",'MHP Family Income & Rent Limits'!$E$4)","v":""},{"$f":"IF(A127=\"\",\"\",'MHP Family Income & Rent Limits'!$C$7)","v":""},{"$f":"IF(A127=\"\",\"\",'MHP Family Income & Rent Limits'!$F$8)","v":""},{"$f":"IF(A127=\"\",\"\",'1. Checklist & Certification'!$G$4)","v":""},{"$f":"IF(A127=\"\",\"\",'1. Checklist & Certification'!$K$39)","v":""},{"$f":"IF(A127=\"\",\"\",'1. Checklist & Certification'!$K$43)","v":""},{"$f":"IF(A127=\"\",\"\",'1. Checklist & Certification'!$K$45)","v":""},{"$f":"IF(A127=\"\",\"\",'1. Checklist & Certification'!$K$49)","v":""},{"$f":"IF(A127=\"\",\"\",'1. Checklist & Certification'!$K$62)","v":""},{"$f":"IF(A127=\"\",\"\",'1. Checklist & Certification'!$E$66)","v":""},{"$f":"IF(A127=\"\",\"\",'1. Checklist & Certification'!$E$67)","v":""},{"$f":"IF(A127=\"\",\"\",'1. Checklist & Certification'!$E$68)","v":""},{"$f":"IF(A127=\"\",\"\",'1. Checklist & Certification'!$G$66)","v":""},{"$f":"IF(A127=\"\",\"\",'1. Checklist & Certification'!$H$66)","v":""},{"$f":"IF(A127=\"\",\"\",'1. Checklist & Certification'!$I$66)","v":""},{"$f":"IF(A127=\"\",\"\",'1. Checklist & Certification'!$I$67)","v":""},{"$f":"IF(A127=\"\",\"\",'1. Checklist & Certification'!$I$68)","v":""},{"$f":"IF(A127=\"\",\"\",'1. Checklist & Certification'!$B$69)","v":""},{"$f":"IF(A127=\"\",\"\",'1. Checklist & Certification'!$C$69)","v":""},{"$f":"IF(A127=\"\",\"\",'1. Checklist & Certification'!$F$69)","v":""},{"$f":"IF(A127=\"\",\"\",'1. Checklist & Certification'!$G$69)","v":""},{"$f":"IF(A127=\"\",\"\",'1. Checklist & Certification'!$J$69)","v":""},{"$f":"IF(A127=\"\",\"\",'1. Checklist & Certification'!$K$69)","v":""},null,null,{"$f":"IF(AND(OR('1. Checklist & Certification'!$M$16=1,'1. Checklist & Certification'!$M$19=2),AO127>0,B127=\"\",I127>0,AQ127<I127,AV127<>\"Sec 8-Project\"),\"X\",IF(AND(OR('1. Checklist & Certification'!$M$20=4,'1. Checklist & Certification'!$M$21=5,'1. Checklist & Certification'!$M$22=7),AO127>0,B127=\"\",I127>0,K127<I127),\"X\",\"\"))","v":""},{"$f":"IF(A127=\"\",\"\",IF(SUMPRODUCT(-- (ISNUMBER(SEARCH({\"*AHSC*\",\"*FMTW*\",\"*FWHG*\",\"*GHI*\",\"*HHC*\",\"*HLCP*\",\"*HOME*\",\"*LPR*\",\"*MHP*\",\"*NHTF*\",\"*NSP*\",\"*PRP*\",\"*TOD*\",\"*VHHP*\"},'1. Checklist & Certification'!$L$7)))),\"MHP\",\"Legacy\"))","v":""},",,",null,null,null,{"$f":"IF('1. Checklist & Certification'!$M$20=4,\"Both\",IF(OR('1. Checklist & Certification'!$M$15>0,S127=\"CHRP-R\",U127=\"CHRP-R\",W127=\"CHRP-R\",Y127=\"CHRP-R\"),\"Under\",\"No\"))","v":"No"},"No","No",{"$f":"_xlfn.IFS(D127=\"\",\"\",D127=1,'MHP Family Income & Rent Limits'!$E$17,D127=2,'MHP Family Income & Rent Limits'!$F$17,D127=3,'MHP Family Income & Rent Limits'!$G$17,D127=4,'MHP Family Income & Rent Limits'!$H$17,D127=5,'MHP Family Income & Rent Limits'!$I$17,D127=6,'MHP Family Income & Rent Limits'!$J$17,D127=7,'MHP Family Income & Rent Limits'!$K$17,D127=8,'MHP Family Income & Rent Limits'!$L$17)","v":""},"",{"$f":"IF(OR(A127=0,B127=\"X\"),0,MIN(IF(AA127:AD127<>0,AA127:AD127)))","v":0},{"$f":"IF(OR(H127=\"\",I127=\"\"),0,IF(H127*0.3/12>I127,MIN(H127*0.3/12,I127*1.1)+AP127,I127*(1+(VLOOKUP('1. Checklist & Certification'!$F$9,'HLCP-E Rent Change'!$A$1:$D$59,4,FALSE)))+AP127))","v":0}]
[null,null,null,null,null,null,null,null,null,null,null,null,null,null,null,null,null,null,null,null,null,null,null,null,null,null,0,0,0,0,0,0,0,0,{"$f":"IF(OR(A128=0,B128=\"X\"),0,IF(OR(S128=\"FHDP\",S128=\"RHCP-B\",U128=\"FHDP\",U128=\"RHCP-B\",W128=\"FHDP\",W128=\"RHCP-B\",Y128=\"FHDP\",Y128=\"RHCP-B\"),TRUNC((MIN(I128,K128)*(1+'1. Checklist & Certification'!$K$43)+AP128)),0))","v":0},{"$f":"IF(OR(A128=0,B128=\"X\"),0,IF(OR(S128=\"CHRP-R\",S128=\"SERA\",S128=\"SUHRP\",U128=\"CHRP-R\",U128=\"SERA\",U128=\"SUHRP\",W128=\"CHRP-R\",W128=\"SERA\",W128=\"SUHRP\",Y128=\"CHRP-R\",Y128=\"SERA\",Y128=\"SUHRP\"),TRUNC((MIN(I128,K128)*(1+'1. Checklist & Certification'!$K$49))),0))","v":0},{"$f":"IF(OR(A128=0,B128=\"X\"),0,IF(OR(S128=\"CALDAP\",S128=\"DPRLP\",U128=\"CALDAP\",U128=\"DPRLP\",W128=\"CALDAP\",W128=\"DPRLP\",Y128=\"CALDAP\",Y128=\"DPRLP\"),TRUNC(((MIN(I128,K128))*(1+'1. Checklist & Certification'!$G$4))),0))","v":0},0,0,0,{"$f":"IF(OR(A128=0,B128=\"X\"),0,IF(OR(S128=\"PRP\",S128=\"LPR\",U128=\"PRP\",U128=\"LPR\",W128=\"PRP\",W128=\"LPR\",Y128=\"PRP\",Y128=\"LPR\"),MAX(I128+AP128,MIN(IF(AE128:AN128<>0,AE128:AN128))),MIN(IF(AE128:AN128<>0,AE128:AN128))))","v":0},{"$f":"IF(A128=0,0,IF(AND(OR(S128=\"Mgr\",S128=0),OR(U128=\"Mgr\",U128=0),OR(W128=\"Mgr\",W128=0)),0,IF(LEFT($A128,2)=\"B*\",VLOOKUP($E128,'1. Checklist & Certification'!$D$26:$E$32,2),IF(LEFT($A128,2)=\"C*\",VLOOKUP($E128,'1. Checklist & Certification'!$F$26:$G$32,2),IF(LEFT($A128,2)=\"D*\",VLOOKUP($E128,'1. Checklist & Certification'!$H$26:$I$32,2),IF(LEFT($A128,2)=\"E*\",VLOOKUP($E128,'1. Checklist & Certification'!$J$26:$K$32,2),VLOOKUP($E128,'1. Checklist & Certification'!$A$26:$B$32,2)))))))","v":0},0,0,null,null,null,null,"","",0,0,0,null,{"$f":"IF(A128=\"\",\"\",'1. Checklist & Certification'!$K$1)","v":""},{"$f":"IF(A128=\"\",\"\",'1. Checklist & Certification'!$C$62)","v":""},{"$f":"IF(A128=\"\",\"\",'1. Checklist & Certification'!$C$6)","v":""},{"$f":"IF(A128=\"\",\"\",'1. Checklist & Certification'!$G$5)","v":""},{"$f":"IFERROR(IF(A128=\"\",\"\",\n_xlfn.LET(_xlpm.Contract,'1. Checklist & Certification'!$C$7,\n_xlpm.Yr,TEXT(MOD(_xlfn.TEXTBEFORE(_xlpm.Contract,\"-\"),100),\"00\"),\n_xlpm.Program,_xlfn.TEXTAFTER(_xlfn.TEXTBEFORE(_xlpm.Contract,\"-\",2),\"-\"),\n_xlpm.CleanProgram,_xlfn.XLOOKUP(_xlpm.Program,SpellCheck[Input],SpellCheck[Correction],_xlpm.Program),\n_xlpm.Number,TEXT(_xlfn.TEXTAFTER(_xlpm.Contract,\"-\",2),\"0000\"),\n_xlfn.CONCAT(_xlpm.Yr,\"-\",_xlpm.CleanProgram,\"-\",_xlpm.Number))\n),\"\")","v":""},{"$f":"IFERROR(IF(A128=\"\",\"\",\n_xlfn.LET(_xlpm.Contract,'1. Checklist & Certification'!$C$8,\n_xlpm.Yr,TEXT(MOD(_xlfn.TEXTBEFORE(_xlpm.Contract,\"-\"),100),\"00\"),\n_xlpm.Program,_xlfn.TEXTAFTER(_xlfn.TEXTBEFORE(_xlpm.Contract,\"-\",2),\"-\"),\n_xlpm.CleanProgram,_xlfn.XLOOKUP(_xlpm.Program,SpellCheck[Input],SpellCheck[Correction],_xlpm.Program),\n_xlpm.Number,TEXT(_xlfn.TEXTAFTER(_xlpm.Contract,\"-\",2),\"0000\"),\n_xlfn.CONCAT(_xlpm.Yr,\"-\",_xlpm.CleanProgram,\"-\",_xlpm.Number))\n),\"\")","v":""},{"$f":"IFERROR(IF(A128=\"\",\"\",\n_xlfn.LET(_xlpm.Contract,'1. Checklist & Certification'!$F$7,\n_xlpm.Yr,TEXT(MOD(_xlfn.TEXTBEFORE(_xlpm.Contract,\"-\"),100),\"00\"),\n_xlpm.Program,_xlfn.TEXTAFTER(_xlfn.TEXTBEFORE(_xlpm.Contract,\"-\",2),\"-\"),\n_xlpm.CleanProgram,_xlfn.XLOOKUP(_xlpm.Program,SpellCheck[Input],SpellCheck[Correction],_xlpm.Program),\n_xlpm.Number,TEXT(_xlfn.TEXTAFTER(_xlpm.Contract,\"-\",2),\"0000\"),\n_xlfn.CONCAT(_xlpm.Yr,\"-\",_xlpm.CleanProgram,\"-\",_xlpm.Number))\n),\"\")","v":""},{"$f":"IFERROR(IF(A128=\"\",\"\",\n_xlfn.LET(_xlpm.Contract,'1. Checklist & Certification'!$F$8,\n_xlpm.Yr,TEXT(MOD(_xlfn.TEXTBEFORE(_xlpm.Contract,\"-\"),100),\"00\"),\n_xlpm.Program,_xlfn.TEXTAFTER(_xlfn.TEXTBEFORE(_xlpm.Contract,\"-\",2),\"-\"),\n_xlpm.CleanProgram,_xlfn.XLOOKUP(_xlpm.Program,SpellCheck[Input],SpellCheck[Correction],_xlpm.Program),\n_xlpm.Number,TEXT(_xlfn.TEXTAFTER(_xlpm.Contract,\"-\",2),\"0000\"),\n_xlfn.CONCAT(_xlpm.Yr,\"-\",_xlpm.CleanProgram,\"-\",_xlpm.Number))\n),\"\")","v":""},{"$f":"IF(A128=\"\",\"\",'1. Checklist & Certification'!$B$9)","v":""},{"$f":"IF(A128=\"\",\"\",'1. Checklist & Certification'!$F$9)","v":""},{"$f":"IF(A128=\"\",\"\",'1. Checklist & Certification'!$C$10)","v":""},{"$f":"IF(A128=\"\",\"\",'1. Checklist & Certification'!$C$11)","v":""},{"$f":"IF(A128=\"\",\"\",'1. Checklist & Certification'!$C$12)","v":""},{"$f":"IF(A128=\"\",\"\",'1. Checklist & Certification'!$B$14)","v":""},{"$f":"IF(A128=\"\",\"\",'1. Checklist & Certification'!$E$14)","v":""},{"$f":"IF(B128=\"\",\"\",'1. Checklist & Certification'!$G$14)","v":""},{"$f":"IF(A128=\"\",\"\",'MHP Family Income & Rent Limits'!$B$3)","v":""},{"$f":"IF(A128=\"\",\"\",'MHP Family Income & Rent Limits'!$J$3)","v":""},{"$f":"IF(A128=\"\",\"\",'MHP Family Income & Rent Limits'!$E$4)","v":""},{"$f":"IF(A128=\"\",\"\",'MHP Family Income & Rent Limits'!$C$7)","v":""},{"$f":"IF(A128=\"\",\"\",'MHP Family Income & Rent Limits'!$F$8)","v":""},{"$f":"IF(A128=\"\",\"\",'1. Checklist & Certification'!$G$4)","v":""},{"$f":"IF(A128=\"\",\"\",'1. Checklist & Certification'!$K$39)","v":""},{"$f":"IF(A128=\"\",\"\",'1. Checklist & Certification'!$K$43)","v":""},{"$f":"IF(A128=\"\",\"\",'1. Checklist & Certification'!$K$45)","v":""},{"$f":"IF(A128=\"\",\"\",'1. Checklist & Certification'!$K$49)","v":""},{"$f":"IF(A128=\"\",\"\",'1. Checklist & Certification'!$K$62)","v":""},{"$f":"IF(A128=\"\",\"\",'1. Checklist & Certification'!$E$66)","v":""},{"$f":"IF(A128=\"\",\"\",'1. Checklist & Certification'!$E$67)","v":""},{"$f":"IF(A128=\"\",\"\",'1. Checklist & Certification'!$E$68)","v":""},{"$f":"IF(A128=\"\",\"\",'1. Checklist & Certification'!$G$66)","v":""},{"$f":"IF(A128=\"\",\"\",'1. Checklist & Certification'!$H$66)","v":""},{"$f":"IF(A128=\"\",\"\",'1. Checklist & Certification'!$I$66)","v":""},{"$f":"IF(A128=\"\",\"\",'1. Checklist & Certification'!$I$67)","v":""},{"$f":"IF(A128=\"\",\"\",'1. Checklist & Certification'!$I$68)","v":""},{"$f":"IF(A128=\"\",\"\",'1. Checklist & Certification'!$B$69)","v":""},{"$f":"IF(A128=\"\",\"\",'1. Checklist & Certification'!$C$69)","v":""},{"$f":"IF(A128=\"\",\"\",'1. Checklist & Certification'!$F$69)","v":""},{"$f":"IF(A128=\"\",\"\",'1. Checklist & Certification'!$G$69)","v":""},{"$f":"IF(A128=\"\",\"\",'1. Checklist & Certification'!$J$69)","v":""},{"$f":"IF(A128=\"\",\"\",'1. Checklist & Certification'!$K$69)","v":""},null,null,{"$f":"IF(AND(OR('1. Checklist & Certification'!$M$16=1,'1. Checklist & Certification'!$M$19=2),AO128>0,B128=\"\",I128>0,AQ128<I128,AV128<>\"Sec 8-Project\"),\"X\",IF(AND(OR('1. Checklist & Certification'!$M$20=4,'1. Checklist & Certification'!$M$21=5,'1. Checklist & Certification'!$M$22=7),AO128>0,B128=\"\",I128>0,K128<I128),\"X\",\"\"))","v":""},{"$f":"IF(A128=\"\",\"\",IF(SUMPRODUCT(-- (ISNUMBER(SEARCH({\"*AHSC*\",\"*FMTW*\",\"*FWHG*\",\"*GHI*\",\"*HHC*\",\"*HLCP*\",\"*HOME*\",\"*LPR*\",\"*MHP*\",\"*NHTF*\",\"*NSP*\",\"*PRP*\",\"*TOD*\",\"*VHHP*\"},'1. Checklist & Certification'!$L$7)))),\"MHP\",\"Legacy\"))","v":""},",,",null,null,null,{"$f":"IF('1. Checklist & Certification'!$M$20=4,\"Both\",IF(OR('1. Checklist & Certification'!$M$15>0,S128=\"CHRP-R\",U128=\"CHRP-R\",W128=\"CHRP-R\",Y128=\"CHRP-R\"),\"Under\",\"No\"))","v":"No"},"No","No",{"$f":"_xlfn.IFS(D128=\"\",\"\",D128=1,'MHP Family Income & Rent Limits'!$E$17,D128=2,'MHP Family Income & Rent Limits'!$F$17,D128=3,'MHP Family Income & Rent Limits'!$G$17,D128=4,'MHP Family Income & Rent Limits'!$H$17,D128=5,'MHP Family Income & Rent Limits'!$I$17,D128=6,'MHP Family Income & Rent Limits'!$J$17,D128=7,'MHP Family Income & Rent Limits'!$K$17,D128=8,'MHP Family Income & Rent Limits'!$L$17)","v":""},"",{"$f":"IF(OR(A128=0,B128=\"X\"),0,MIN(IF(AA128:AD128<>0,AA128:AD128)))","v":0},{"$f":"IF(OR(H128=\"\",I128=\"\"),0,IF(H128*0.3/12>I128,MIN(H128*0.3/12,I128*1.1)+AP128,I128*(1+(VLOOKUP('1. Checklist & Certification'!$F$9,'HLCP-E Rent Change'!$A$1:$D$59,4,FALSE)))+AP128))","v":0}]
[null,null,null,null,null,null,null,null,null,null,null,null,null,null,null,null,null,null,null,null,null,null,null,null,null,null,0,0,0,0,0,0,0,0,{"$f":"IF(OR(A129=0,B129=\"X\"),0,IF(OR(S129=\"FHDP\",S129=\"RHCP-B\",U129=\"FHDP\",U129=\"RHCP-B\",W129=\"FHDP\",W129=\"RHCP-B\",Y129=\"FHDP\",Y129=\"RHCP-B\"),TRUNC((MIN(I129,K129)*(1+'1. Checklist & Certification'!$K$43)+AP129)),0))","v":0},{"$f":"IF(OR(A129=0,B129=\"X\"),0,IF(OR(S129=\"CHRP-R\",S129=\"SERA\",S129=\"SUHRP\",U129=\"CHRP-R\",U129=\"SERA\",U129=\"SUHRP\",W129=\"CHRP-R\",W129=\"SERA\",W129=\"SUHRP\",Y129=\"CHRP-R\",Y129=\"SERA\",Y129=\"SUHRP\"),TRUNC((MIN(I129,K129)*(1+'1. Checklist & Certification'!$K$49))),0))","v":0},{"$f":"IF(OR(A129=0,B129=\"X\"),0,IF(OR(S129=\"CALDAP\",S129=\"DPRLP\",U129=\"CALDAP\",U129=\"DPRLP\",W129=\"CALDAP\",W129=\"DPRLP\",Y129=\"CALDAP\",Y129=\"DPRLP\"),TRUNC(((MIN(I129,K129))*(1+'1. Checklist & Certification'!$G$4))),0))","v":0},0,0,0,{"$f":"IF(OR(A129=0,B129=\"X\"),0,IF(OR(S129=\"PRP\",S129=\"LPR\",U129=\"PRP\",U129=\"LPR\",W129=\"PRP\",W129=\"LPR\",Y129=\"PRP\",Y129=\"LPR\"),MAX(I129+AP129,MIN(IF(AE129:AN129<>0,AE129:AN129))),MIN(IF(AE129:AN129<>0,AE129:AN129))))","v":0},{"$f":"IF(A129=0,0,IF(AND(OR(S129=\"Mgr\",S129=0),OR(U129=\"Mgr\",U129=0),OR(W129=\"Mgr\",W129=0)),0,IF(LEFT($A129,2)=\"B*\",VLOOKUP($E129,'1. Checklist & Certification'!$D$26:$E$32,2),IF(LEFT($A129,2)=\"C*\",VLOOKUP($E129,'1. Checklist & Certification'!$F$26:$G$32,2),IF(LEFT($A129,2)=\"D*\",VLOOKUP($E129,'1. Checklist & Certification'!$H$26:$I$32,2),IF(LEFT($A129,2)=\"E*\",VLOOKUP($E129,'1. Checklist & Certification'!$J$26:$K$32,2),VLOOKUP($E129,'1. Checklist & Certification'!$A$26:$B$32,2)))))))","v":0},0,0,null,null,null,null,"","",0,0,0,null,{"$f":"IF(A129=\"\",\"\",'1. Checklist & Certification'!$K$1)","v":""},{"$f":"IF(A129=\"\",\"\",'1. Checklist & Certification'!$C$62)","v":""},{"$f":"IF(A129=\"\",\"\",'1. Checklist & Certification'!$C$6)","v":""},{"$f":"IF(A129=\"\",\"\",'1. Checklist & Certification'!$G$5)","v":""},{"$f":"IFERROR(IF(A129=\"\",\"\",\n_xlfn.LET(_xlpm.Contract,'1. Checklist & Certification'!$C$7,\n_xlpm.Yr,TEXT(MOD(_xlfn.TEXTBEFORE(_xlpm.Contract,\"-\"),100),\"00\"),\n_xlpm.Program,_xlfn.TEXTAFTER(_xlfn.TEXTBEFORE(_xlpm.Contract,\"-\",2),\"-\"),\n_xlpm.CleanProgram,_xlfn.XLOOKUP(_xlpm.Program,SpellCheck[Input],SpellCheck[Correction],_xlpm.Program),\n_xlpm.Number,TEXT(_xlfn.TEXTAFTER(_xlpm.Contract,\"-\",2),\"0000\"),\n_xlfn.CONCAT(_xlpm.Yr,\"-\",_xlpm.CleanProgram,\"-\",_xlpm.Number))\n),\"\")","v":""},{"$f":"IFERROR(IF(A129=\"\",\"\",\n_xlfn.LET(_xlpm.Contract,'1. Checklist & Certification'!$C$8,\n_xlpm.Yr,TEXT(MOD(_xlfn.TEXTBEFORE(_xlpm.Contract,\"-\"),100),\"00\"),\n_xlpm.Program,_xlfn.TEXTAFTER(_xlfn.TEXTBEFORE(_xlpm.Contract,\"-\",2),\"-\"),\n_xlpm.CleanProgram,_xlfn.XLOOKUP(_xlpm.Program,SpellCheck[Input],SpellCheck[Correction],_xlpm.Program),\n_xlpm.Number,TEXT(_xlfn.TEXTAFTER(_xlpm.Contract,\"-\",2),\"0000\"),\n_xlfn.CONCAT(_xlpm.Yr,\"-\",_xlpm.CleanProgram,\"-\",_xlpm.Number))\n),\"\")","v":""},{"$f":"IFERROR(IF(A129=\"\",\"\",\n_xlfn.LET(_xlpm.Contract,'1. Checklist & Certification'!$F$7,\n_xlpm.Yr,TEXT(MOD(_xlfn.TEXTBEFORE(_xlpm.Contract,\"-\"),100),\"00\"),\n_xlpm.Program,_xlfn.TEXTAFTER(_xlfn.TEXTBEFORE(_xlpm.Contract,\"-\",2),\"-\"),\n_xlpm.CleanProgram,_xlfn.XLOOKUP(_xlpm.Program,SpellCheck[Input],SpellCheck[Correction],_xlpm.Program),\n_xlpm.Number,TEXT(_xlfn.TEXTAFTER(_xlpm.Contract,\"-\",2),\"0000\"),\n_xlfn.CONCAT(_xlpm.Yr,\"-\",_xlpm.CleanProgram,\"-\",_xlpm.Number))\n),\"\")","v":""},{"$f":"IFERROR(IF(A129=\"\",\"\",\n_xlfn.LET(_xlpm.Contract,'1. Checklist & Certification'!$F$8,\n_xlpm.Yr,TEXT(MOD(_xlfn.TEXTBEFORE(_xlpm.Contract,\"-\"),100),\"00\"),\n_xlpm.Program,_xlfn.TEXTAFTER(_xlfn.TEXTBEFORE(_xlpm.Contract,\"-\",2),\"-\"),\n_xlpm.CleanProgram,_xlfn.XLOOKUP(_xlpm.Program,SpellCheck[Input],SpellCheck[Correction],_xlpm.Program),\n_xlpm.Number,TEXT(_xlfn.TEXTAFTER(_xlpm.Contract,\"-\",2),\"0000\"),\n_xlfn.CONCAT(_xlpm.Yr,\"-\",_xlpm.CleanProgram,\"-\",_xlpm.Number))\n),\"\")","v":""},{"$f":"IF(A129=\"\",\"\",'1. Checklist & Certification'!$B$9)","v":""},{"$f":"IF(A129=\"\",\"\",'1. Checklist & Certification'!$F$9)","v":""},{"$f":"IF(A129=\"\",\"\",'1. Checklist & Certification'!$C$10)","v":""},{"$f":"IF(A129=\"\",\"\",'1. Checklist & Certification'!$C$11)","v":""},{"$f":"IF(A129=\"\",\"\",'1. Checklist & Certification'!$C$12)","v":""},{"$f":"IF(A129=\"\",\"\",'1. Checklist & Certification'!$B$14)","v":""},{"$f":"IF(A129=\"\",\"\",'1. Checklist & Certification'!$E$14)","v":""},{"$f":"IF(B129=\"\",\"\",'1. Checklist & Certification'!$G$14)","v":""},{"$f":"IF(A129=\"\",\"\",'MHP Family Income & Rent Limits'!$B$3)","v":""},{"$f":"IF(A129=\"\",\"\",'MHP Family Income & Rent Limits'!$J$3)","v":""},{"$f":"IF(A129=\"\",\"\",'MHP Family Income & Rent Limits'!$E$4)","v":""},{"$f":"IF(A129=\"\",\"\",'MHP Family Income & Rent Limits'!$C$7)","v":""},{"$f":"IF(A129=\"\",\"\",'MHP Family Income & Rent Limits'!$F$8)","v":""},{"$f":"IF(A129=\"\",\"\",'1. Checklist & Certification'!$G$4)","v":""},{"$f":"IF(A129=\"\",\"\",'1. Checklist & Certification'!$K$39)","v":""},{"$f":"IF(A129=\"\",\"\",'1. Checklist & Certification'!$K$43)","v":""},{"$f":"IF(A129=\"\",\"\",'1. Checklist & Certification'!$K$45)","v":""},{"$f":"IF(A129=\"\",\"\",'1. Checklist & Certification'!$K$49)","v":""},{"$f":"IF(A129=\"\",\"\",'1. Checklist & Certification'!$K$62)","v":""},{"$f":"IF(A129=\"\",\"\",'1. Checklist & Certification'!$E$66)","v":""},{"$f":"IF(A129=\"\",\"\",'1. Checklist & Certification'!$E$67)","v":""},{"$f":"IF(A129=\"\",\"\",'1. Checklist & Certification'!$E$68)","v":""},{"$f":"IF(A129=\"\",\"\",'1. Checklist & Certification'!$G$66)","v":""},{"$f":"IF(A129=\"\",\"\",'1. Checklist & Certification'!$H$66)","v":""},{"$f":"IF(A129=\"\",\"\",'1. Checklist & Certification'!$I$66)","v":""},{"$f":"IF(A129=\"\",\"\",'1. Checklist & Certification'!$I$67)","v":""},{"$f":"IF(A129=\"\",\"\",'1. Checklist & Certification'!$I$68)","v":""},{"$f":"IF(A129=\"\",\"\",'1. Checklist & Certification'!$B$69)","v":""},{"$f":"IF(A129=\"\",\"\",'1. Checklist & Certification'!$C$69)","v":""},{"$f":"IF(A129=\"\",\"\",'1. Checklist & Certification'!$F$69)","v":""},{"$f":"IF(A129=\"\",\"\",'1. Checklist & Certification'!$G$69)","v":""},{"$f":"IF(A129=\"\",\"\",'1. Checklist & Certification'!$J$69)","v":""},{"$f":"IF(A129=\"\",\"\",'1. Checklist & Certification'!$K$69)","v":""},null,null,{"$f":"IF(AND(OR('1. Checklist & Certification'!$M$16=1,'1. Checklist & Certification'!$M$19=2),AO129>0,B129=\"\",I129>0,AQ129<I129,AV129<>\"Sec 8-Project\"),\"X\",IF(AND(OR('1. Checklist & Certification'!$M$20=4,'1. Checklist & Certification'!$M$21=5,'1. Checklist & Certification'!$M$22=7),AO129>0,B129=\"\",I129>0,K129<I129),\"X\",\"\"))","v":""},{"$f":"IF(A129=\"\",\"\",IF(SUMPRODUCT(-- (ISNUMBER(SEARCH({\"*AHSC*\",\"*FMTW*\",\"*FWHG*\",\"*GHI*\",\"*HHC*\",\"*HLCP*\",\"*HOME*\",\"*LPR*\",\"*MHP*\",\"*NHTF*\",\"*NSP*\",\"*PRP*\",\"*TOD*\",\"*VHHP*\"},'1. Checklist & Certification'!$L$7)))),\"MHP\",\"Legacy\"))","v":""},",,",null,null,null,{"$f":"IF('1. Checklist & Certification'!$M$20=4,\"Both\",IF(OR('1. Checklist & Certification'!$M$15>0,S129=\"CHRP-R\",U129=\"CHRP-R\",W129=\"CHRP-R\",Y129=\"CHRP-R\"),\"Under\",\"No\"))","v":"No"},"No","No",{"$f":"_xlfn.IFS(D129=\"\",\"\",D129=1,'MHP Family Income & Rent Limits'!$E$17,D129=2,'MHP Family Income & Rent Limits'!$F$17,D129=3,'MHP Family Income & Rent Limits'!$G$17,D129=4,'MHP Family Income & Rent Limits'!$H$17,D129=5,'MHP Family Income & Rent Limits'!$I$17,D129=6,'MHP Family Income & Rent Limits'!$J$17,D129=7,'MHP Family Income & Rent Limits'!$K$17,D129=8,'MHP Family Income & Rent Limits'!$L$17)","v":""},"",{"$f":"IF(OR(A129=0,B129=\"X\"),0,MIN(IF(AA129:AD129<>0,AA129:AD129)))","v":0},{"$f":"IF(OR(H129=\"\",I129=\"\"),0,IF(H129*0.3/12>I129,MIN(H129*0.3/12,I129*1.1)+AP129,I129*(1+(VLOOKUP('1. Checklist & Certification'!$F$9,'HLCP-E Rent Change'!$A$1:$D$59,4,FALSE)))+AP129))","v":0}]
[null,null,null,null,null,null,null,null,null,null,null,null,null,null,null,null,null,null,null,null,null,null,null,null,null,null,0,0,0,0,0,0,0,0,{"$f":"IF(OR(A130=0,B130=\"X\"),0,IF(OR(S130=\"FHDP\",S130=\"RHCP-B\",U130=\"FHDP\",U130=\"RHCP-B\",W130=\"FHDP\",W130=\"RHCP-B\",Y130=\"FHDP\",Y130=\"RHCP-B\"),TRUNC((MIN(I130,K130)*(1+'1. Checklist & Certification'!$K$43)+AP130)),0))","v":0},{"$f":"IF(OR(A130=0,B130=\"X\"),0,IF(OR(S130=\"CHRP-R\",S130=\"SERA\",S130=\"SUHRP\",U130=\"CHRP-R\",U130=\"SERA\",U130=\"SUHRP\",W130=\"CHRP-R\",W130=\"SERA\",W130=\"SUHRP\",Y130=\"CHRP-R\",Y130=\"SERA\",Y130=\"SUHRP\"),TRUNC((MIN(I130,K130)*(1+'1. Checklist & Certification'!$K$49))),0))","v":0},{"$f":"IF(OR(A130=0,B130=\"X\"),0,IF(OR(S130=\"CALDAP\",S130=\"DPRLP\",U130=\"CALDAP\",U130=\"DPRLP\",W130=\"CALDAP\",W130=\"DPRLP\",Y130=\"CALDAP\",Y130=\"DPRLP\"),TRUNC(((MIN(I130,K130))*(1+'1. Checklist & Certification'!$G$4))),0))","v":0},0,0,0,{"$f":"IF(OR(A130=0,B130=\"X\"),0,IF(OR(S130=\"PRP\",S130=\"LPR\",U130=\"PRP\",U130=\"LPR\",W130=\"PRP\",W130=\"LPR\",Y130=\"PRP\",Y130=\"LPR\"),MAX(I130+AP130,MIN(IF(AE130:AN130<>0,AE130:AN130))),MIN(IF(AE130:AN130<>0,AE130:AN130))))","v":0},{"$f":"IF(A130=0,0,IF(AND(OR(S130=\"Mgr\",S130=0),OR(U130=\"Mgr\",U130=0),OR(W130=\"Mgr\",W130=0)),0,IF(LEFT($A130,2)=\"B*\",VLOOKUP($E130,'1. Checklist & Certification'!$D$26:$E$32,2),IF(LEFT($A130,2)=\"C*\",VLOOKUP($E130,'1. Checklist & Certification'!$F$26:$G$32,2),IF(LEFT($A130,2)=\"D*\",VLOOKUP($E130,'1. Checklist & Certification'!$H$26:$I$32,2),IF(LEFT($A130,2)=\"E*\",VLOOKUP($E130,'1. Checklist & Certification'!$J$26:$K$32,2),VLOOKUP($E130,'1. Checklist & Certification'!$A$26:$B$32,2)))))))","v":0},0,0,null,null,null,null,"","",0,0,0,null,{"$f":"IF(A130=\"\",\"\",'1. Checklist & Certification'!$K$1)","v":""},{"$f":"IF(A130=\"\",\"\",'1. Checklist & Certification'!$C$62)","v":""},{"$f":"IF(A130=\"\",\"\",'1. Checklist & Certification'!$C$6)","v":""},{"$f":"IF(A130=\"\",\"\",'1. Checklist & Certification'!$G$5)","v":""},{"$f":"IFERROR(IF(A130=\"\",\"\",\n_xlfn.LET(_xlpm.Contract,'1. Checklist & Certification'!$C$7,\n_xlpm.Yr,TEXT(MOD(_xlfn.TEXTBEFORE(_xlpm.Contract,\"-\"),100),\"00\"),\n_xlpm.Program,_xlfn.TEXTAFTER(_xlfn.TEXTBEFORE(_xlpm.Contract,\"-\",2),\"-\"),\n_xlpm.CleanProgram,_xlfn.XLOOKUP(_xlpm.Program,SpellCheck[Input],SpellCheck[Correction],_xlpm.Program),\n_xlpm.Number,TEXT(_xlfn.TEXTAFTER(_xlpm.Contract,\"-\",2),\"0000\"),\n_xlfn.CONCAT(_xlpm.Yr,\"-\",_xlpm.CleanProgram,\"-\",_xlpm.Number))\n),\"\")","v":""},{"$f":"IFERROR(IF(A130=\"\",\"\",\n_xlfn.LET(_xlpm.Contract,'1. Checklist & Certification'!$C$8,\n_xlpm.Yr,TEXT(MOD(_xlfn.TEXTBEFORE(_xlpm.Contract,\"-\"),100),\"00\"),\n_xlpm.Program,_xlfn.TEXTAFTER(_xlfn.TEXTBEFORE(_xlpm.Contract,\"-\",2),\"-\"),\n_xlpm.CleanProgram,_xlfn.XLOOKUP(_xlpm.Program,SpellCheck[Input],SpellCheck[Correction],_xlpm.Program),\n_xlpm.Number,TEXT(_xlfn.TEXTAFTER(_xlpm.Contract,\"-\",2),\"0000\"),\n_xlfn.CONCAT(_xlpm.Yr,\"-\",_xlpm.CleanProgram,\"-\",_xlpm.Number))\n),\"\")","v":""},{"$f":"IFERROR(IF(A130=\"\",\"\",\n_xlfn.LET(_xlpm.Contract,'1. Checklist & Certification'!$F$7,\n_xlpm.Yr,TEXT(MOD(_xlfn.TEXTBEFORE(_xlpm.Contract,\"-\"),100),\"00\"),\n_xlpm.Program,_xlfn.TEXTAFTER(_xlfn.TEXTBEFORE(_xlpm.Contract,\"-\",2),\"-\"),\n_xlpm.CleanProgram,_xlfn.XLOOKUP(_xlpm.Program,SpellCheck[Input],SpellCheck[Correction],_xlpm.Program),\n_xlpm.Number,TEXT(_xlfn.TEXTAFTER(_xlpm.Contract,\"-\",2),\"0000\"),\n_xlfn.CONCAT(_xlpm.Yr,\"-\",_xlpm.CleanProgram,\"-\",_xlpm.Number))\n),\"\")","v":""},{"$f":"IFERROR(IF(A130=\"\",\"\",\n_xlfn.LET(_xlpm.Contract,'1. Checklist & Certification'!$F$8,\n_xlpm.Yr,TEXT(MOD(_xlfn.TEXTBEFORE(_xlpm.Contract,\"-\"),100),\"00\"),\n_xlpm.Program,_xlfn.TEXTAFTER(_xlfn.TEXTBEFORE(_xlpm.Contract,\"-\",2),\"-\"),\n_xlpm.CleanProgram,_xlfn.XLOOKUP(_xlpm.Program,SpellCheck[Input],SpellCheck[Correction],_xlpm.Program),\n_xlpm.Number,TEXT(_xlfn.TEXTAFTER(_xlpm.Contract,\"-\",2),\"0000\"),\n_xlfn.CONCAT(_xlpm.Yr,\"-\",_xlpm.CleanProgram,\"-\",_xlpm.Number))\n),\"\")","v":""},{"$f":"IF(A130=\"\",\"\",'1. Checklist & Certification'!$B$9)","v":""},{"$f":"IF(A130=\"\",\"\",'1. Checklist & Certification'!$F$9)","v":""},{"$f":"IF(A130=\"\",\"\",'1. Checklist & Certification'!$C$10)","v":""},{"$f":"IF(A130=\"\",\"\",'1. Checklist & Certification'!$C$11)","v":""},{"$f":"IF(A130=\"\",\"\",'1. Checklist & Certification'!$C$12)","v":""},{"$f":"IF(A130=\"\",\"\",'1. Checklist & Certification'!$B$14)","v":""},{"$f":"IF(A130=\"\",\"\",'1. Checklist & Certification'!$E$14)","v":""},{"$f":"IF(B130=\"\",\"\",'1. Checklist & Certification'!$G$14)","v":""},{"$f":"IF(A130=\"\",\"\",'MHP Family Income & Rent Limits'!$B$3)","v":""},{"$f":"IF(A130=\"\",\"\",'MHP Family Income & Rent Limits'!$J$3)","v":""},{"$f":"IF(A130=\"\",\"\",'MHP Family Income & Rent Limits'!$E$4)","v":""},{"$f":"IF(A130=\"\",\"\",'MHP Family Income & Rent Limits'!$C$7)","v":""},{"$f":"IF(A130=\"\",\"\",'MHP Family Income & Rent Limits'!$F$8)","v":""},{"$f":"IF(A130=\"\",\"\",'1. Checklist & Certification'!$G$4)","v":""},{"$f":"IF(A130=\"\",\"\",'1. Checklist & Certification'!$K$39)","v":""},{"$f":"IF(A130=\"\",\"\",'1. Checklist & Certification'!$K$43)","v":""},{"$f":"IF(A130=\"\",\"\",'1. Checklist & Certification'!$K$45)","v":""},{"$f":"IF(A130=\"\",\"\",'1. Checklist & Certification'!$K$49)","v":""},{"$f":"IF(A130=\"\",\"\",'1. Checklist & Certification'!$K$62)","v":""},{"$f":"IF(A130=\"\",\"\",'1. Checklist & Certification'!$E$66)","v":""},{"$f":"IF(A130=\"\",\"\",'1. Checklist & Certification'!$E$67)","v":""},{"$f":"IF(A130=\"\",\"\",'1. Checklist & Certification'!$E$68)","v":""},{"$f":"IF(A130=\"\",\"\",'1. Checklist & Certification'!$G$66)","v":""},{"$f":"IF(A130=\"\",\"\",'1. Checklist & Certification'!$H$66)","v":""},{"$f":"IF(A130=\"\",\"\",'1. Checklist & Certification'!$I$66)","v":""},{"$f":"IF(A130=\"\",\"\",'1. Checklist & Certification'!$I$67)","v":""},{"$f":"IF(A130=\"\",\"\",'1. Checklist & Certification'!$I$68)","v":""},{"$f":"IF(A130=\"\",\"\",'1. Checklist & Certification'!$B$69)","v":""},{"$f":"IF(A130=\"\",\"\",'1. Checklist & Certification'!$C$69)","v":""},{"$f":"IF(A130=\"\",\"\",'1. Checklist & Certification'!$F$69)","v":""},{"$f":"IF(A130=\"\",\"\",'1. Checklist & Certification'!$G$69)","v":""},{"$f":"IF(A130=\"\",\"\",'1. Checklist & Certification'!$J$69)","v":""},{"$f":"IF(A130=\"\",\"\",'1. Checklist & Certification'!$K$69)","v":""},null,null,{"$f":"IF(AND(OR('1. Checklist & Certification'!$M$16=1,'1. Checklist & Certification'!$M$19=2),AO130>0,B130=\"\",I130>0,AQ130<I130,AV130<>\"Sec 8-Project\"),\"X\",IF(AND(OR('1. Checklist & Certification'!$M$20=4,'1. Checklist & Certification'!$M$21=5,'1. Checklist & Certification'!$M$22=7),AO130>0,B130=\"\",I130>0,K130<I130),\"X\",\"\"))","v":""},{"$f":"IF(A130=\"\",\"\",IF(SUMPRODUCT(-- (ISNUMBER(SEARCH({\"*AHSC*\",\"*FMTW*\",\"*FWHG*\",\"*GHI*\",\"*HHC*\",\"*HLCP*\",\"*HOME*\",\"*LPR*\",\"*MHP*\",\"*NHTF*\",\"*NSP*\",\"*PRP*\",\"*TOD*\",\"*VHHP*\"},'1. Checklist & Certification'!$L$7)))),\"MHP\",\"Legacy\"))","v":""},",,",null,null,null,{"$f":"IF('1. Checklist & Certification'!$M$20=4,\"Both\",IF(OR('1. Checklist & Certification'!$M$15>0,S130=\"CHRP-R\",U130=\"CHRP-R\",W130=\"CHRP-R\",Y130=\"CHRP-R\"),\"Under\",\"No\"))","v":"No"},"No","No",{"$f":"_xlfn.IFS(D130=\"\",\"\",D130=1,'MHP Family Income & Rent Limits'!$E$17,D130=2,'MHP Family Income & Rent Limits'!$F$17,D130=3,'MHP Family Income & Rent Limits'!$G$17,D130=4,'MHP Family Income & Rent Limits'!$H$17,D130=5,'MHP Family Income & Rent Limits'!$I$17,D130=6,'MHP Family Income & Rent Limits'!$J$17,D130=7,'MHP Family Income & Rent Limits'!$K$17,D130=8,'MHP Family Income & Rent Limits'!$L$17)","v":""},"",{"$f":"IF(OR(A130=0,B130=\"X\"),0,MIN(IF(AA130:AD130<>0,AA130:AD130)))","v":0},{"$f":"IF(OR(H130=\"\",I130=\"\"),0,IF(H130*0.3/12>I130,MIN(H130*0.3/12,I130*1.1)+AP130,I130*(1+(VLOOKUP('1. Checklist & Certification'!$F$9,'HLCP-E Rent Change'!$A$1:$D$59,4,FALSE)))+AP130))","v":0}]
[null,null,null,null,null,null,null,null,null,null,null,null,null,null,null,null,null,null,null,null,null,null,null,null,null,null,0,0,0,0,0,0,0,0,{"$f":"IF(OR(A131=0,B131=\"X\"),0,IF(OR(S131=\"FHDP\",S131=\"RHCP-B\",U131=\"FHDP\",U131=\"RHCP-B\",W131=\"FHDP\",W131=\"RHCP-B\",Y131=\"FHDP\",Y131=\"RHCP-B\"),TRUNC((MIN(I131,K131)*(1+'1. Checklist & Certification'!$K$43)+AP131)),0))","v":0},{"$f":"IF(OR(A131=0,B131=\"X\"),0,IF(OR(S131=\"CHRP-R\",S131=\"SERA\",S131=\"SUHRP\",U131=\"CHRP-R\",U131=\"SERA\",U131=\"SUHRP\",W131=\"CHRP-R\",W131=\"SERA\",W131=\"SUHRP\",Y131=\"CHRP-R\",Y131=\"SERA\",Y131=\"SUHRP\"),TRUNC((MIN(I131,K131)*(1+'1. Checklist & Certification'!$K$49))),0))","v":0},{"$f":"IF(OR(A131=0,B131=\"X\"),0,IF(OR(S131=\"CALDAP\",S131=\"DPRLP\",U131=\"CALDAP\",U131=\"DPRLP\",W131=\"CALDAP\",W131=\"DPRLP\",Y131=\"CALDAP\",Y131=\"DPRLP\"),TRUNC(((MIN(I131,K131))*(1+'1. Checklist & Certification'!$G$4))),0))","v":0},0,0,0,{"$f":"IF(OR(A131=0,B131=\"X\"),0,IF(OR(S131=\"PRP\",S131=\"LPR\",U131=\"PRP\",U131=\"LPR\",W131=\"PRP\",W131=\"LPR\",Y131=\"PRP\",Y131=\"LPR\"),MAX(I131+AP131,MIN(IF(AE131:AN131<>0,AE131:AN131))),MIN(IF(AE131:AN131<>0,AE131:AN131))))","v":0},{"$f":"IF(A131=0,0,IF(AND(OR(S131=\"Mgr\",S131=0),OR(U131=\"Mgr\",U131=0),OR(W131=\"Mgr\",W131=0)),0,IF(LEFT($A131,2)=\"B*\",VLOOKUP($E131,'1. Checklist & Certification'!$D$26:$E$32,2),IF(LEFT($A131,2)=\"C*\",VLOOKUP($E131,'1. Checklist & Certification'!$F$26:$G$32,2),IF(LEFT($A131,2)=\"D*\",VLOOKUP($E131,'1. Checklist & Certification'!$H$26:$I$32,2),IF(LEFT($A131,2)=\"E*\",VLOOKUP($E131,'1. Checklist & Certification'!$J$26:$K$32,2),VLOOKUP($E131,'1. Checklist & Certification'!$A$26:$B$32,2)))))))","v":0},0,0,null,null,null,null,"","",0,0,0,null,{"$f":"IF(A131=\"\",\"\",'1. Checklist & Certification'!$K$1)","v":""},{"$f":"IF(A131=\"\",\"\",'1. Checklist & Certification'!$C$62)","v":""},{"$f":"IF(A131=\"\",\"\",'1. Checklist & Certification'!$C$6)","v":""},{"$f":"IF(A131=\"\",\"\",'1. Checklist & Certification'!$G$5)","v":""},{"$f":"IFERROR(IF(A131=\"\",\"\",\n_xlfn.LET(_xlpm.Contract,'1. Checklist & Certification'!$C$7,\n_xlpm.Yr,TEXT(MOD(_xlfn.TEXTBEFORE(_xlpm.Contract,\"-\"),100),\"00\"),\n_xlpm.Program,_xlfn.TEXTAFTER(_xlfn.TEXTBEFORE(_xlpm.Contract,\"-\",2),\"-\"),\n_xlpm.CleanProgram,_xlfn.XLOOKUP(_xlpm.Program,SpellCheck[Input],SpellCheck[Correction],_xlpm.Program),\n_xlpm.Number,TEXT(_xlfn.TEXTAFTER(_xlpm.Contract,\"-\",2),\"0000\"),\n_xlfn.CONCAT(_xlpm.Yr,\"-\",_xlpm.CleanProgram,\"-\",_xlpm.Number))\n),\"\")","v":""},{"$f":"IFERROR(IF(A131=\"\",\"\",\n_xlfn.LET(_xlpm.Contract,'1. Checklist & Certification'!$C$8,\n_xlpm.Yr,TEXT(MOD(_xlfn.TEXTBEFORE(_xlpm.Contract,\"-\"),100),\"00\"),\n_xlpm.Program,_xlfn.TEXTAFTER(_xlfn.TEXTBEFORE(_xlpm.Contract,\"-\",2),\"-\"),\n_xlpm.CleanProgram,_xlfn.XLOOKUP(_xlpm.Program,SpellCheck[Input],SpellCheck[Correction],_xlpm.Program),\n_xlpm.Number,TEXT(_xlfn.TEXTAFTER(_xlpm.Contract,\"-\",2),\"0000\"),\n_xlfn.CONCAT(_xlpm.Yr,\"-\",_xlpm.CleanProgram,\"-\",_xlpm.Number))\n),\"\")","v":""},{"$f":"IFERROR(IF(A131=\"\",\"\",\n_xlfn.LET(_xlpm.Contract,'1. Checklist & Certification'!$F$7,\n_xlpm.Yr,TEXT(MOD(_xlfn.TEXTBEFORE(_xlpm.Contract,\"-\"),100),\"00\"),\n_xlpm.Program,_xlfn.TEXTAFTER(_xlfn.TEXTBEFORE(_xlpm.Contract,\"-\",2),\"-\"),\n_xlpm.CleanProgram,_xlfn.XLOOKUP(_xlpm.Program,SpellCheck[Input],SpellCheck[Correction],_xlpm.Program),\n_xlpm.Number,TEXT(_xlfn.TEXTAFTER(_xlpm.Contract,\"-\",2),\"0000\"),\n_xlfn.CONCAT(_xlpm.Yr,\"-\",_xlpm.CleanProgram,\"-\",_xlpm.Number))\n),\"\")","v":""},{"$f":"IFERROR(IF(A131=\"\",\"\",\n_xlfn.LET(_xlpm.Contract,'1. Checklist & Certification'!$F$8,\n_xlpm.Yr,TEXT(MOD(_xlfn.TEXTBEFORE(_xlpm.Contract,\"-\"),100),\"00\"),\n_xlpm.Program,_xlfn.TEXTAFTER(_xlfn.TEXTBEFORE(_xlpm.Contract,\"-\",2),\"-\"),\n_xlpm.CleanProgram,_xlfn.XLOOKUP(_xlpm.Program,SpellCheck[Input],SpellCheck[Correction],_xlpm.Program),\n_xlpm.Number,TEXT(_xlfn.TEXTAFTER(_xlpm.Contract,\"-\",2),\"0000\"),\n_xlfn.CONCAT(_xlpm.Yr,\"-\",_xlpm.CleanProgram,\"-\",_xlpm.Number))\n),\"\")","v":""},{"$f":"IF(A131=\"\",\"\",'1. Checklist & Certification'!$B$9)","v":""},{"$f":"IF(A131=\"\",\"\",'1. Checklist & Certification'!$F$9)","v":""},{"$f":"IF(A131=\"\",\"\",'1. Checklist & Certification'!$C$10)","v":""},{"$f":"IF(A131=\"\",\"\",'1. Checklist & Certification'!$C$11)","v":""},{"$f":"IF(A131=\"\",\"\",'1. Checklist & Certification'!$C$12)","v":""},{"$f":"IF(A131=\"\",\"\",'1. Checklist & Certification'!$B$14)","v":""},{"$f":"IF(A131=\"\",\"\",'1. Checklist & Certification'!$E$14)","v":""},{"$f":"IF(B131=\"\",\"\",'1. Checklist & Certification'!$G$14)","v":""},{"$f":"IF(A131=\"\",\"\",'MHP Family Income & Rent Limits'!$B$3)","v":""},{"$f":"IF(A131=\"\",\"\",'MHP Family Income & Rent Limits'!$J$3)","v":""},{"$f":"IF(A131=\"\",\"\",'MHP Family Income & Rent Limits'!$E$4)","v":""},{"$f":"IF(A131=\"\",\"\",'MHP Family Income & Rent Limits'!$C$7)","v":""},{"$f":"IF(A131=\"\",\"\",'MHP Family Income & Rent Limits'!$F$8)","v":""},{"$f":"IF(A131=\"\",\"\",'1. Checklist & Certification'!$G$4)","v":""},{"$f":"IF(A131=\"\",\"\",'1. Checklist & Certification'!$K$39)","v":""},{"$f":"IF(A131=\"\",\"\",'1. Checklist & Certification'!$K$43)","v":""},{"$f":"IF(A131=\"\",\"\",'1. Checklist & Certification'!$K$45)","v":""},{"$f":"IF(A131=\"\",\"\",'1. Checklist & Certification'!$K$49)","v":""},{"$f":"IF(A131=\"\",\"\",'1. Checklist & Certification'!$K$62)","v":""},{"$f":"IF(A131=\"\",\"\",'1. Checklist & Certification'!$E$66)","v":""},{"$f":"IF(A131=\"\",\"\",'1. Checklist & Certification'!$E$67)","v":""},{"$f":"IF(A131=\"\",\"\",'1. Checklist & Certification'!$E$68)","v":""},{"$f":"IF(A131=\"\",\"\",'1. Checklist & Certification'!$G$66)","v":""},{"$f":"IF(A131=\"\",\"\",'1. Checklist & Certification'!$H$66)","v":""},{"$f":"IF(A131=\"\",\"\",'1. Checklist & Certification'!$I$66)","v":""},{"$f":"IF(A131=\"\",\"\",'1. Checklist & Certification'!$I$67)","v":""},{"$f":"IF(A131=\"\",\"\",'1. Checklist & Certification'!$I$68)","v":""},{"$f":"IF(A131=\"\",\"\",'1. Checklist & Certification'!$B$69)","v":""},{"$f":"IF(A131=\"\",\"\",'1. Checklist & Certification'!$C$69)","v":""},{"$f":"IF(A131=\"\",\"\",'1. Checklist & Certification'!$F$69)","v":""},{"$f":"IF(A131=\"\",\"\",'1. Checklist & Certification'!$G$69)","v":""},{"$f":"IF(A131=\"\",\"\",'1. Checklist & Certification'!$J$69)","v":""},{"$f":"IF(A131=\"\",\"\",'1. Checklist & Certification'!$K$69)","v":""},null,null,{"$f":"IF(AND(OR('1. Checklist & Certification'!$M$16=1,'1. Checklist & Certification'!$M$19=2),AO131>0,B131=\"\",I131>0,AQ131<I131,AV131<>\"Sec 8-Project\"),\"X\",IF(AND(OR('1. Checklist & Certification'!$M$20=4,'1. Checklist & Certification'!$M$21=5,'1. Checklist & Certification'!$M$22=7),AO131>0,B131=\"\",I131>0,K131<I131),\"X\",\"\"))","v":""},{"$f":"IF(A131=\"\",\"\",IF(SUMPRODUCT(-- (ISNUMBER(SEARCH({\"*AHSC*\",\"*FMTW*\",\"*FWHG*\",\"*GHI*\",\"*HHC*\",\"*HLCP*\",\"*HOME*\",\"*LPR*\",\"*MHP*\",\"*NHTF*\",\"*NSP*\",\"*PRP*\",\"*TOD*\",\"*VHHP*\"},'1. Checklist & Certification'!$L$7)))),\"MHP\",\"Legacy\"))","v":""},",,",null,null,null,{"$f":"IF('1. Checklist & Certification'!$M$20=4,\"Both\",IF(OR('1. Checklist & Certification'!$M$15>0,S131=\"CHRP-R\",U131=\"CHRP-R\",W131=\"CHRP-R\",Y131=\"CHRP-R\"),\"Under\",\"No\"))","v":"No"},"No","No",{"$f":"_xlfn.IFS(D131=\"\",\"\",D131=1,'MHP Family Income & Rent Limits'!$E$17,D131=2,'MHP Family Income & Rent Limits'!$F$17,D131=3,'MHP Family Income & Rent Limits'!$G$17,D131=4,'MHP Family Income & Rent Limits'!$H$17,D131=5,'MHP Family Income & Rent Limits'!$I$17,D131=6,'MHP Family Income & Rent Limits'!$J$17,D131=7,'MHP Family Income & Rent Limits'!$K$17,D131=8,'MHP Family Income & Rent Limits'!$L$17)","v":""},"",{"$f":"IF(OR(A131=0,B131=\"X\"),0,MIN(IF(AA131:AD131<>0,AA131:AD131)))","v":0},{"$f":"IF(OR(H131=\"\",I131=\"\"),0,IF(H131*0.3/12>I131,MIN(H131*0.3/12,I131*1.1)+AP131,I131*(1+(VLOOKUP('1. Checklist & Certification'!$F$9,'HLCP-E Rent Change'!$A$1:$D$59,4,FALSE)))+AP131))","v":0}]
[null,null,null,null,null,null,null,null,null,null,null,null,null,null,null,null,null,null,null,null,null,null,null,null,null,null,0,0,0,0,0,0,0,0,{"$f":"IF(OR(A132=0,B132=\"X\"),0,IF(OR(S132=\"FHDP\",S132=\"RHCP-B\",U132=\"FHDP\",U132=\"RHCP-B\",W132=\"FHDP\",W132=\"RHCP-B\",Y132=\"FHDP\",Y132=\"RHCP-B\"),TRUNC((MIN(I132,K132)*(1+'1. Checklist & Certification'!$K$43)+AP132)),0))","v":0},{"$f":"IF(OR(A132=0,B132=\"X\"),0,IF(OR(S132=\"CHRP-R\",S132=\"SERA\",S132=\"SUHRP\",U132=\"CHRP-R\",U132=\"SERA\",U132=\"SUHRP\",W132=\"CHRP-R\",W132=\"SERA\",W132=\"SUHRP\",Y132=\"CHRP-R\",Y132=\"SERA\",Y132=\"SUHRP\"),TRUNC((MIN(I132,K132)*(1+'1. Checklist & Certification'!$K$49))),0))","v":0},{"$f":"IF(OR(A132=0,B132=\"X\"),0,IF(OR(S132=\"CALDAP\",S132=\"DPRLP\",U132=\"CALDAP\",U132=\"DPRLP\",W132=\"CALDAP\",W132=\"DPRLP\",Y132=\"CALDAP\",Y132=\"DPRLP\"),TRUNC(((MIN(I132,K132))*(1+'1. Checklist & Certification'!$G$4))),0))","v":0},0,0,0,{"$f":"IF(OR(A132=0,B132=\"X\"),0,IF(OR(S132=\"PRP\",S132=\"LPR\",U132=\"PRP\",U132=\"LPR\",W132=\"PRP\",W132=\"LPR\",Y132=\"PRP\",Y132=\"LPR\"),MAX(I132+AP132,MIN(IF(AE132:AN132<>0,AE132:AN132))),MIN(IF(AE132:AN132<>0,AE132:AN132))))","v":0},{"$f":"IF(A132=0,0,IF(AND(OR(S132=\"Mgr\",S132=0),OR(U132=\"Mgr\",U132=0),OR(W132=\"Mgr\",W132=0)),0,IF(LEFT($A132,2)=\"B*\",VLOOKUP($E132,'1. Checklist & Certification'!$D$26:$E$32,2),IF(LEFT($A132,2)=\"C*\",VLOOKUP($E132,'1. Checklist & Certification'!$F$26:$G$32,2),IF(LEFT($A132,2)=\"D*\",VLOOKUP($E132,'1. Checklist & Certification'!$H$26:$I$32,2),IF(LEFT($A132,2)=\"E*\",VLOOKUP($E132,'1. Checklist & Certification'!$J$26:$K$32,2),VLOOKUP($E132,'1. Checklist & Certification'!$A$26:$B$32,2)))))))","v":0},0,0,null,null,null,null,"","",0,0,0,null,{"$f":"IF(A132=\"\",\"\",'1. Checklist & Certification'!$K$1)","v":""},{"$f":"IF(A132=\"\",\"\",'1. Checklist & Certification'!$C$62)","v":""},{"$f":"IF(A132=\"\",\"\",'1. Checklist & Certification'!$C$6)","v":""},{"$f":"IF(A132=\"\",\"\",'1. Checklist & Certification'!$G$5)","v":""},{"$f":"IFERROR(IF(A132=\"\",\"\",\n_xlfn.LET(_xlpm.Contract,'1. Checklist & Certification'!$C$7,\n_xlpm.Yr,TEXT(MOD(_xlfn.TEXTBEFORE(_xlpm.Contract,\"-\"),100),\"00\"),\n_xlpm.Program,_xlfn.TEXTAFTER(_xlfn.TEXTBEFORE(_xlpm.Contract,\"-\",2),\"-\"),\n_xlpm.CleanProgram,_xlfn.XLOOKUP(_xlpm.Program,SpellCheck[Input],SpellCheck[Correction],_xlpm.Program),\n_xlpm.Number,TEXT(_xlfn.TEXTAFTER(_xlpm.Contract,\"-\",2),\"0000\"),\n_xlfn.CONCAT(_xlpm.Yr,\"-\",_xlpm.CleanProgram,\"-\",_xlpm.Number))\n),\"\")","v":""},{"$f":"IFERROR(IF(A132=\"\",\"\",\n_xlfn.LET(_xlpm.Contract,'1. Checklist & Certification'!$C$8,\n_xlpm.Yr,TEXT(MOD(_xlfn.TEXTBEFORE(_xlpm.Contract,\"-\"),100),\"00\"),\n_xlpm.Program,_xlfn.TEXTAFTER(_xlfn.TEXTBEFORE(_xlpm.Contract,\"-\",2),\"-\"),\n_xlpm.CleanProgram,_xlfn.XLOOKUP(_xlpm.Program,SpellCheck[Input],SpellCheck[Correction],_xlpm.Program),\n_xlpm.Number,TEXT(_xlfn.TEXTAFTER(_xlpm.Contract,\"-\",2),\"0000\"),\n_xlfn.CONCAT(_xlpm.Yr,\"-\",_xlpm.CleanProgram,\"-\",_xlpm.Number))\n),\"\")","v":""},{"$f":"IFERROR(IF(A132=\"\",\"\",\n_xlfn.LET(_xlpm.Contract,'1. Checklist & Certification'!$F$7,\n_xlpm.Yr,TEXT(MOD(_xlfn.TEXTBEFORE(_xlpm.Contract,\"-\"),100),\"00\"),\n_xlpm.Program,_xlfn.TEXTAFTER(_xlfn.TEXTBEFORE(_xlpm.Contract,\"-\",2),\"-\"),\n_xlpm.CleanProgram,_xlfn.XLOOKUP(_xlpm.Program,SpellCheck[Input],SpellCheck[Correction],_xlpm.Program),\n_xlpm.Number,TEXT(_xlfn.TEXTAFTER(_xlpm.Contract,\"-\",2),\"0000\"),\n_xlfn.CONCAT(_xlpm.Yr,\"-\",_xlpm.CleanProgram,\"-\",_xlpm.Number))\n),\"\")","v":""},{"$f":"IFERROR(IF(A132=\"\",\"\",\n_xlfn.LET(_xlpm.Contract,'1. Checklist & Certification'!$F$8,\n_xlpm.Yr,TEXT(MOD(_xlfn.TEXTBEFORE(_xlpm.Contract,\"-\"),100),\"00\"),\n_xlpm.Program,_xlfn.TEXTAFTER(_xlfn.TEXTBEFORE(_xlpm.Contract,\"-\",2),\"-\"),\n_xlpm.CleanProgram,_xlfn.XLOOKUP(_xlpm.Program,SpellCheck[Input],SpellCheck[Correction],_xlpm.Program),\n_xlpm.Number,TEXT(_xlfn.TEXTAFTER(_xlpm.Contract,\"-\",2),\"0000\"),\n_xlfn.CONCAT(_xlpm.Yr,\"-\",_xlpm.CleanProgram,\"-\",_xlpm.Number))\n),\"\")","v":""},{"$f":"IF(A132=\"\",\"\",'1. Checklist & Certification'!$B$9)","v":""},{"$f":"IF(A132=\"\",\"\",'1. Checklist & Certification'!$F$9)","v":""},{"$f":"IF(A132=\"\",\"\",'1. Checklist & Certification'!$C$10)","v":""},{"$f":"IF(A132=\"\",\"\",'1. Checklist & Certification'!$C$11)","v":""},{"$f":"IF(A132=\"\",\"\",'1. Checklist & Certification'!$C$12)","v":""},{"$f":"IF(A132=\"\",\"\",'1. Checklist & Certification'!$B$14)","v":""},{"$f":"IF(A132=\"\",\"\",'1. Checklist & Certification'!$E$14)","v":""},{"$f":"IF(B132=\"\",\"\",'1. Checklist & Certification'!$G$14)","v":""},{"$f":"IF(A132=\"\",\"\",'MHP Family Income & Rent Limits'!$B$3)","v":""},{"$f":"IF(A132=\"\",\"\",'MHP Family Income & Rent Limits'!$J$3)","v":""},{"$f":"IF(A132=\"\",\"\",'MHP Family Income & Rent Limits'!$E$4)","v":""},{"$f":"IF(A132=\"\",\"\",'MHP Family Income & Rent Limits'!$C$7)","v":""},{"$f":"IF(A132=\"\",\"\",'MHP Family Income & Rent Limits'!$F$8)","v":""},{"$f":"IF(A132=\"\",\"\",'1. Checklist & Certification'!$G$4)","v":""},{"$f":"IF(A132=\"\",\"\",'1. Checklist & Certification'!$K$39)","v":""},{"$f":"IF(A132=\"\",\"\",'1. Checklist & Certification'!$K$43)","v":""},{"$f":"IF(A132=\"\",\"\",'1. Checklist & Certification'!$K$45)","v":""},{"$f":"IF(A132=\"\",\"\",'1. Checklist & Certification'!$K$49)","v":""},{"$f":"IF(A132=\"\",\"\",'1. Checklist & Certification'!$K$62)","v":""},{"$f":"IF(A132=\"\",\"\",'1. Checklist & Certification'!$E$66)","v":""},{"$f":"IF(A132=\"\",\"\",'1. Checklist & Certification'!$E$67)","v":""},{"$f":"IF(A132=\"\",\"\",'1. Checklist & Certification'!$E$68)","v":""},{"$f":"IF(A132=\"\",\"\",'1. Checklist & Certification'!$G$66)","v":""},{"$f":"IF(A132=\"\",\"\",'1. Checklist & Certification'!$H$66)","v":""},{"$f":"IF(A132=\"\",\"\",'1. Checklist & Certification'!$I$66)","v":""},{"$f":"IF(A132=\"\",\"\",'1. Checklist & Certification'!$I$67)","v":""},{"$f":"IF(A132=\"\",\"\",'1. Checklist & Certification'!$I$68)","v":""},{"$f":"IF(A132=\"\",\"\",'1. Checklist & Certification'!$B$69)","v":""},{"$f":"IF(A132=\"\",\"\",'1. Checklist & Certification'!$C$69)","v":""},{"$f":"IF(A132=\"\",\"\",'1. Checklist & Certification'!$F$69)","v":""},{"$f":"IF(A132=\"\",\"\",'1. Checklist & Certification'!$G$69)","v":""},{"$f":"IF(A132=\"\",\"\",'1. Checklist & Certification'!$J$69)","v":""},{"$f":"IF(A132=\"\",\"\",'1. Checklist & Certification'!$K$69)","v":""},null,null,{"$f":"IF(AND(OR('1. Checklist & Certification'!$M$16=1,'1. Checklist & Certification'!$M$19=2),AO132>0,B132=\"\",I132>0,AQ132<I132,AV132<>\"Sec 8-Project\"),\"X\",IF(AND(OR('1. Checklist & Certification'!$M$20=4,'1. Checklist & Certification'!$M$21=5,'1. Checklist & Certification'!$M$22=7),AO132>0,B132=\"\",I132>0,K132<I132),\"X\",\"\"))","v":""},{"$f":"IF(A132=\"\",\"\",IF(SUMPRODUCT(-- (ISNUMBER(SEARCH({\"*AHSC*\",\"*FMTW*\",\"*FWHG*\",\"*GHI*\",\"*HHC*\",\"*HLCP*\",\"*HOME*\",\"*LPR*\",\"*MHP*\",\"*NHTF*\",\"*NSP*\",\"*PRP*\",\"*TOD*\",\"*VHHP*\"},'1. Checklist & Certification'!$L$7)))),\"MHP\",\"Legacy\"))","v":""},",,",null,null,null,{"$f":"IF('1. Checklist & Certification'!$M$20=4,\"Both\",IF(OR('1. Checklist & Certification'!$M$15>0,S132=\"CHRP-R\",U132=\"CHRP-R\",W132=\"CHRP-R\",Y132=\"CHRP-R\"),\"Under\",\"No\"))","v":"No"},"No","No",{"$f":"_xlfn.IFS(D132=\"\",\"\",D132=1,'MHP Family Income & Rent Limits'!$E$17,D132=2,'MHP Family Income & Rent Limits'!$F$17,D132=3,'MHP Family Income & Rent Limits'!$G$17,D132=4,'MHP Family Income & Rent Limits'!$H$17,D132=5,'MHP Family Income & Rent Limits'!$I$17,D132=6,'MHP Family Income & Rent Limits'!$J$17,D132=7,'MHP Family Income & Rent Limits'!$K$17,D132=8,'MHP Family Income & Rent Limits'!$L$17)","v":""},"",{"$f":"IF(OR(A132=0,B132=\"X\"),0,MIN(IF(AA132:AD132<>0,AA132:AD132)))","v":0},{"$f":"IF(OR(H132=\"\",I132=\"\"),0,IF(H132*0.3/12>I132,MIN(H132*0.3/12,I132*1.1)+AP132,I132*(1+(VLOOKUP('1. Checklist & Certification'!$F$9,'HLCP-E Rent Change'!$A$1:$D$59,4,FALSE)))+AP132))","v":0}]
[null,null,null,null,null,null,null,null,null,null,null,null,null,null,null,null,null,null,null,null,null,null,null,null,null,null,0,0,0,0,0,0,0,0,{"$f":"IF(OR(A133=0,B133=\"X\"),0,IF(OR(S133=\"FHDP\",S133=\"RHCP-B\",U133=\"FHDP\",U133=\"RHCP-B\",W133=\"FHDP\",W133=\"RHCP-B\",Y133=\"FHDP\",Y133=\"RHCP-B\"),TRUNC((MIN(I133,K133)*(1+'1. Checklist & Certification'!$K$43)+AP133)),0))","v":0},{"$f":"IF(OR(A133=0,B133=\"X\"),0,IF(OR(S133=\"CHRP-R\",S133=\"SERA\",S133=\"SUHRP\",U133=\"CHRP-R\",U133=\"SERA\",U133=\"SUHRP\",W133=\"CHRP-R\",W133=\"SERA\",W133=\"SUHRP\",Y133=\"CHRP-R\",Y133=\"SERA\",Y133=\"SUHRP\"),TRUNC((MIN(I133,K133)*(1+'1. Checklist & Certification'!$K$49))),0))","v":0},{"$f":"IF(OR(A133=0,B133=\"X\"),0,IF(OR(S133=\"CALDAP\",S133=\"DPRLP\",U133=\"CALDAP\",U133=\"DPRLP\",W133=\"CALDAP\",W133=\"DPRLP\",Y133=\"CALDAP\",Y133=\"DPRLP\"),TRUNC(((MIN(I133,K133))*(1+'1. Checklist & Certification'!$G$4))),0))","v":0},0,0,0,{"$f":"IF(OR(A133=0,B133=\"X\"),0,IF(OR(S133=\"PRP\",S133=\"LPR\",U133=\"PRP\",U133=\"LPR\",W133=\"PRP\",W133=\"LPR\",Y133=\"PRP\",Y133=\"LPR\"),MAX(I133+AP133,MIN(IF(AE133:AN133<>0,AE133:AN133))),MIN(IF(AE133:AN133<>0,AE133:AN133))))","v":0},{"$f":"IF(A133=0,0,IF(AND(OR(S133=\"Mgr\",S133=0),OR(U133=\"Mgr\",U133=0),OR(W133=\"Mgr\",W133=0)),0,IF(LEFT($A133,2)=\"B*\",VLOOKUP($E133,'1. Checklist & Certification'!$D$26:$E$32,2),IF(LEFT($A133,2)=\"C*\",VLOOKUP($E133,'1. Checklist & Certification'!$F$26:$G$32,2),IF(LEFT($A133,2)=\"D*\",VLOOKUP($E133,'1. Checklist & Certification'!$H$26:$I$32,2),IF(LEFT($A133,2)=\"E*\",VLOOKUP($E133,'1. Checklist & Certification'!$J$26:$K$32,2),VLOOKUP($E133,'1. Checklist & Certification'!$A$26:$B$32,2)))))))","v":0},0,0,null,null,null,null,"","",0,0,0,null,{"$f":"IF(A133=\"\",\"\",'1. Checklist & Certification'!$K$1)","v":""},{"$f":"IF(A133=\"\",\"\",'1. Checklist & Certification'!$C$62)","v":""},{"$f":"IF(A133=\"\",\"\",'1. Checklist & Certification'!$C$6)","v":""},{"$f":"IF(A133=\"\",\"\",'1. Checklist & Certification'!$G$5)","v":""},{"$f":"IFERROR(IF(A133=\"\",\"\",\n_xlfn.LET(_xlpm.Contract,'1. Checklist & Certification'!$C$7,\n_xlpm.Yr,TEXT(MOD(_xlfn.TEXTBEFORE(_xlpm.Contract,\"-\"),100),\"00\"),\n_xlpm.Program,_xlfn.TEXTAFTER(_xlfn.TEXTBEFORE(_xlpm.Contract,\"-\",2),\"-\"),\n_xlpm.CleanProgram,_xlfn.XLOOKUP(_xlpm.Program,SpellCheck[Input],SpellCheck[Correction],_xlpm.Program),\n_xlpm.Number,TEXT(_xlfn.TEXTAFTER(_xlpm.Contract,\"-\",2),\"0000\"),\n_xlfn.CONCAT(_xlpm.Yr,\"-\",_xlpm.CleanProgram,\"-\",_xlpm.Number))\n),\"\")","v":""},{"$f":"IFERROR(IF(A133=\"\",\"\",\n_xlfn.LET(_xlpm.Contract,'1. Checklist & Certification'!$C$8,\n_xlpm.Yr,TEXT(MOD(_xlfn.TEXTBEFORE(_xlpm.Contract,\"-\"),100),\"00\"),\n_xlpm.Program,_xlfn.TEXTAFTER(_xlfn.TEXTBEFORE(_xlpm.Contract,\"-\",2),\"-\"),\n_xlpm.CleanProgram,_xlfn.XLOOKUP(_xlpm.Program,SpellCheck[Input],SpellCheck[Correction],_xlpm.Program),\n_xlpm.Number,TEXT(_xlfn.TEXTAFTER(_xlpm.Contract,\"-\",2),\"0000\"),\n_xlfn.CONCAT(_xlpm.Yr,\"-\",_xlpm.CleanProgram,\"-\",_xlpm.Number))\n),\"\")","v":""},{"$f":"IFERROR(IF(A133=\"\",\"\",\n_xlfn.LET(_xlpm.Contract,'1. Checklist & Certification'!$F$7,\n_xlpm.Yr,TEXT(MOD(_xlfn.TEXTBEFORE(_xlpm.Contract,\"-\"),100),\"00\"),\n_xlpm.Program,_xlfn.TEXTAFTER(_xlfn.TEXTBEFORE(_xlpm.Contract,\"-\",2),\"-\"),\n_xlpm.CleanProgram,_xlfn.XLOOKUP(_xlpm.Program,SpellCheck[Input],SpellCheck[Correction],_xlpm.Program),\n_xlpm.Number,TEXT(_xlfn.TEXTAFTER(_xlpm.Contract,\"-\",2),\"0000\"),\n_xlfn.CONCAT(_xlpm.Yr,\"-\",_xlpm.CleanProgram,\"-\",_xlpm.Number))\n),\"\")","v":""},{"$f":"IFERROR(IF(A133=\"\",\"\",\n_xlfn.LET(_xlpm.Contract,'1. Checklist & Certification'!$F$8,\n_xlpm.Yr,TEXT(MOD(_xlfn.TEXTBEFORE(_xlpm.Contract,\"-\"),100),\"00\"),\n_xlpm.Program,_xlfn.TEXTAFTER(_xlfn.TEXTBEFORE(_xlpm.Contract,\"-\",2),\"-\"),\n_xlpm.CleanProgram,_xlfn.XLOOKUP(_xlpm.Program,SpellCheck[Input],SpellCheck[Correction],_xlpm.Program),\n_xlpm.Number,TEXT(_xlfn.TEXTAFTER(_xlpm.Contract,\"-\",2),\"0000\"),\n_xlfn.CONCAT(_xlpm.Yr,\"-\",_xlpm.CleanProgram,\"-\",_xlpm.Number))\n),\"\")","v":""},{"$f":"IF(A133=\"\",\"\",'1. Checklist & Certification'!$B$9)","v":""},{"$f":"IF(A133=\"\",\"\",'1. Checklist & Certification'!$F$9)","v":""},{"$f":"IF(A133=\"\",\"\",'1. Checklist & Certification'!$C$10)","v":""},{"$f":"IF(A133=\"\",\"\",'1. Checklist & Certification'!$C$11)","v":""},{"$f":"IF(A133=\"\",\"\",'1. Checklist & Certification'!$C$12)","v":""},{"$f":"IF(A133=\"\",\"\",'1. Checklist & Certification'!$B$14)","v":""},{"$f":"IF(A133=\"\",\"\",'1. Checklist & Certification'!$E$14)","v":""},{"$f":"IF(B133=\"\",\"\",'1. Checklist & Certification'!$G$14)","v":""},{"$f":"IF(A133=\"\",\"\",'MHP Family Income & Rent Limits'!$B$3)","v":""},{"$f":"IF(A133=\"\",\"\",'MHP Family Income & Rent Limits'!$J$3)","v":""},{"$f":"IF(A133=\"\",\"\",'MHP Family Income & Rent Limits'!$E$4)","v":""},{"$f":"IF(A133=\"\",\"\",'MHP Family Income & Rent Limits'!$C$7)","v":""},{"$f":"IF(A133=\"\",\"\",'MHP Family Income & Rent Limits'!$F$8)","v":""},{"$f":"IF(A133=\"\",\"\",'1. Checklist & Certification'!$G$4)","v":""},{"$f":"IF(A133=\"\",\"\",'1. Checklist & Certification'!$K$39)","v":""},{"$f":"IF(A133=\"\",\"\",'1. Checklist & Certification'!$K$43)","v":""},{"$f":"IF(A133=\"\",\"\",'1. Checklist & Certification'!$K$45)","v":""},{"$f":"IF(A133=\"\",\"\",'1. Checklist & Certification'!$K$49)","v":""},{"$f":"IF(A133=\"\",\"\",'1. Checklist & Certification'!$K$62)","v":""},{"$f":"IF(A133=\"\",\"\",'1. Checklist & Certification'!$E$66)","v":""},{"$f":"IF(A133=\"\",\"\",'1. Checklist & Certification'!$E$67)","v":""},{"$f":"IF(A133=\"\",\"\",'1. Checklist & Certification'!$E$68)","v":""},{"$f":"IF(A133=\"\",\"\",'1. Checklist & Certification'!$G$66)","v":""},{"$f":"IF(A133=\"\",\"\",'1. Checklist & Certification'!$H$66)","v":""},{"$f":"IF(A133=\"\",\"\",'1. Checklist & Certification'!$I$66)","v":""},{"$f":"IF(A133=\"\",\"\",'1. Checklist & Certification'!$I$67)","v":""},{"$f":"IF(A133=\"\",\"\",'1. Checklist & Certification'!$I$68)","v":""},{"$f":"IF(A133=\"\",\"\",'1. Checklist & Certification'!$B$69)","v":""},{"$f":"IF(A133=\"\",\"\",'1. Checklist & Certification'!$C$69)","v":""},{"$f":"IF(A133=\"\",\"\",'1. Checklist & Certification'!$F$69)","v":""},{"$f":"IF(A133=\"\",\"\",'1. Checklist & Certification'!$G$69)","v":""},{"$f":"IF(A133=\"\",\"\",'1. Checklist & Certification'!$J$69)","v":""},{"$f":"IF(A133=\"\",\"\",'1. Checklist & Certification'!$K$69)","v":""},null,null,{"$f":"IF(AND(OR('1. Checklist & Certification'!$M$16=1,'1. Checklist & Certification'!$M$19=2),AO133>0,B133=\"\",I133>0,AQ133<I133,AV133<>\"Sec 8-Project\"),\"X\",IF(AND(OR('1. Checklist & Certification'!$M$20=4,'1. Checklist & Certification'!$M$21=5,'1. Checklist & Certification'!$M$22=7),AO133>0,B133=\"\",I133>0,K133<I133),\"X\",\"\"))","v":""},{"$f":"IF(A133=\"\",\"\",IF(SUMPRODUCT(-- (ISNUMBER(SEARCH({\"*AHSC*\",\"*FMTW*\",\"*FWHG*\",\"*GHI*\",\"*HHC*\",\"*HLCP*\",\"*HOME*\",\"*LPR*\",\"*MHP*\",\"*NHTF*\",\"*NSP*\",\"*PRP*\",\"*TOD*\",\"*VHHP*\"},'1. Checklist & Certification'!$L$7)))),\"MHP\",\"Legacy\"))","v":""},",,",null,null,null,{"$f":"IF('1. Checklist & Certification'!$M$20=4,\"Both\",IF(OR('1. Checklist & Certification'!$M$15>0,S133=\"CHRP-R\",U133=\"CHRP-R\",W133=\"CHRP-R\",Y133=\"CHRP-R\"),\"Under\",\"No\"))","v":"No"},"No","No",{"$f":"_xlfn.IFS(D133=\"\",\"\",D133=1,'MHP Family Income & Rent Limits'!$E$17,D133=2,'MHP Family Income & Rent Limits'!$F$17,D133=3,'MHP Family Income & Rent Limits'!$G$17,D133=4,'MHP Family Income & Rent Limits'!$H$17,D133=5,'MHP Family Income & Rent Limits'!$I$17,D133=6,'MHP Family Income & Rent Limits'!$J$17,D133=7,'MHP Family Income & Rent Limits'!$K$17,D133=8,'MHP Family Income & Rent Limits'!$L$17)","v":""},"",{"$f":"IF(OR(A133=0,B133=\"X\"),0,MIN(IF(AA133:AD133<>0,AA133:AD133)))","v":0},{"$f":"IF(OR(H133=\"\",I133=\"\"),0,IF(H133*0.3/12>I133,MIN(H133*0.3/12,I133*1.1)+AP133,I133*(1+(VLOOKUP('1. Checklist & Certification'!$F$9,'HLCP-E Rent Change'!$A$1:$D$59,4,FALSE)))+AP133))","v":0}]
[null,null,null,null,null,null,null,null,null,null,null,null,null,null,null,null,null,null,null,null,null,null,null,null,null,null,0,0,0,0,0,0,0,0,{"$f":"IF(OR(A134=0,B134=\"X\"),0,IF(OR(S134=\"FHDP\",S134=\"RHCP-B\",U134=\"FHDP\",U134=\"RHCP-B\",W134=\"FHDP\",W134=\"RHCP-B\",Y134=\"FHDP\",Y134=\"RHCP-B\"),TRUNC((MIN(I134,K134)*(1+'1. Checklist & Certification'!$K$43)+AP134)),0))","v":0},{"$f":"IF(OR(A134=0,B134=\"X\"),0,IF(OR(S134=\"CHRP-R\",S134=\"SERA\",S134=\"SUHRP\",U134=\"CHRP-R\",U134=\"SERA\",U134=\"SUHRP\",W134=\"CHRP-R\",W134=\"SERA\",W134=\"SUHRP\",Y134=\"CHRP-R\",Y134=\"SERA\",Y134=\"SUHRP\"),TRUNC((MIN(I134,K134)*(1+'1. Checklist & Certification'!$K$49))),0))","v":0},{"$f":"IF(OR(A134=0,B134=\"X\"),0,IF(OR(S134=\"CALDAP\",S134=\"DPRLP\",U134=\"CALDAP\",U134=\"DPRLP\",W134=\"CALDAP\",W134=\"DPRLP\",Y134=\"CALDAP\",Y134=\"DPRLP\"),TRUNC(((MIN(I134,K134))*(1+'1. Checklist & Certification'!$G$4))),0))","v":0},0,0,0,{"$f":"IF(OR(A134=0,B134=\"X\"),0,IF(OR(S134=\"PRP\",S134=\"LPR\",U134=\"PRP\",U134=\"LPR\",W134=\"PRP\",W134=\"LPR\",Y134=\"PRP\",Y134=\"LPR\"),MAX(I134+AP134,MIN(IF(AE134:AN134<>0,AE134:AN134))),MIN(IF(AE134:AN134<>0,AE134:AN134))))","v":0},{"$f":"IF(A134=0,0,IF(AND(OR(S134=\"Mgr\",S134=0),OR(U134=\"Mgr\",U134=0),OR(W134=\"Mgr\",W134=0)),0,IF(LEFT($A134,2)=\"B*\",VLOOKUP($E134,'1. Checklist & Certification'!$D$26:$E$32,2),IF(LEFT($A134,2)=\"C*\",VLOOKUP($E134,'1. Checklist & Certification'!$F$26:$G$32,2),IF(LEFT($A134,2)=\"D*\",VLOOKUP($E134,'1. Checklist & Certification'!$H$26:$I$32,2),IF(LEFT($A134,2)=\"E*\",VLOOKUP($E134,'1. Checklist & Certification'!$J$26:$K$32,2),VLOOKUP($E134,'1. Checklist & Certification'!$A$26:$B$32,2)))))))","v":0},0,0,null,null,null,null,"","",0,0,0,null,{"$f":"IF(A134=\"\",\"\",'1. Checklist & Certification'!$K$1)","v":""},{"$f":"IF(A134=\"\",\"\",'1. Checklist & Certification'!$C$62)","v":""},{"$f":"IF(A134=\"\",\"\",'1. Checklist & Certification'!$C$6)","v":""},{"$f":"IF(A134=\"\",\"\",'1. Checklist & Certification'!$G$5)","v":""},{"$f":"IFERROR(IF(A134=\"\",\"\",\n_xlfn.LET(_xlpm.Contract,'1. Checklist & Certification'!$C$7,\n_xlpm.Yr,TEXT(MOD(_xlfn.TEXTBEFORE(_xlpm.Contract,\"-\"),100),\"00\"),\n_xlpm.Program,_xlfn.TEXTAFTER(_xlfn.TEXTBEFORE(_xlpm.Contract,\"-\",2),\"-\"),\n_xlpm.CleanProgram,_xlfn.XLOOKUP(_xlpm.Program,SpellCheck[Input],SpellCheck[Correction],_xlpm.Program),\n_xlpm.Number,TEXT(_xlfn.TEXTAFTER(_xlpm.Contract,\"-\",2),\"0000\"),\n_xlfn.CONCAT(_xlpm.Yr,\"-\",_xlpm.CleanProgram,\"-\",_xlpm.Number))\n),\"\")","v":""},{"$f":"IFERROR(IF(A134=\"\",\"\",\n_xlfn.LET(_xlpm.Contract,'1. Checklist & Certification'!$C$8,\n_xlpm.Yr,TEXT(MOD(_xlfn.TEXTBEFORE(_xlpm.Contract,\"-\"),100),\"00\"),\n_xlpm.Program,_xlfn.TEXTAFTER(_xlfn.TEXTBEFORE(_xlpm.Contract,\"-\",2),\"-\"),\n_xlpm.CleanProgram,_xlfn.XLOOKUP(_xlpm.Program,SpellCheck[Input],SpellCheck[Correction],_xlpm.Program),\n_xlpm.Number,TEXT(_xlfn.TEXTAFTER(_xlpm.Contract,\"-\",2),\"0000\"),\n_xlfn.CONCAT(_xlpm.Yr,\"-\",_xlpm.CleanProgram,\"-\",_xlpm.Number))\n),\"\")","v":""},{"$f":"IFERROR(IF(A134=\"\",\"\",\n_xlfn.LET(_xlpm.Contract,'1. Checklist & Certification'!$F$7,\n_xlpm.Yr,TEXT(MOD(_xlfn.TEXTBEFORE(_xlpm.Contract,\"-\"),100),\"00\"),\n_xlpm.Program,_xlfn.TEXTAFTER(_xlfn.TEXTBEFORE(_xlpm.Contract,\"-\",2),\"-\"),\n_xlpm.CleanProgram,_xlfn.XLOOKUP(_xlpm.Program,SpellCheck[Input],SpellCheck[Correction],_xlpm.Program),\n_xlpm.Number,TEXT(_xlfn.TEXTAFTER(_xlpm.Contract,\"-\",2),\"0000\"),\n_xlfn.CONCAT(_xlpm.Yr,\"-\",_xlpm.CleanProgram,\"-\",_xlpm.Number))\n),\"\")","v":""},{"$f":"IFERROR(IF(A134=\"\",\"\",\n_xlfn.LET(_xlpm.Contract,'1. Checklist & Certification'!$F$8,\n_xlpm.Yr,TEXT(MOD(_xlfn.TEXTBEFORE(_xlpm.Contract,\"-\"),100),\"00\"),\n_xlpm.Program,_xlfn.TEXTAFTER(_xlfn.TEXTBEFORE(_xlpm.Contract,\"-\",2),\"-\"),\n_xlpm.CleanProgram,_xlfn.XLOOKUP(_xlpm.Program,SpellCheck[Input],SpellCheck[Correction],_xlpm.Program),\n_xlpm.Number,TEXT(_xlfn.TEXTAFTER(_xlpm.Contract,\"-\",2),\"0000\"),\n_xlfn.CONCAT(_xlpm.Yr,\"-\",_xlpm.CleanProgram,\"-\",_xlpm.Number))\n),\"\")","v":""},{"$f":"IF(A134=\"\",\"\",'1. Checklist & Certification'!$B$9)","v":""},{"$f":"IF(A134=\"\",\"\",'1. Checklist & Certification'!$F$9)","v":""},{"$f":"IF(A134=\"\",\"\",'1. Checklist & Certification'!$C$10)","v":""},{"$f":"IF(A134=\"\",\"\",'1. Checklist & Certification'!$C$11)","v":""},{"$f":"IF(A134=\"\",\"\",'1. Checklist & Certification'!$C$12)","v":""},{"$f":"IF(A134=\"\",\"\",'1. Checklist & Certification'!$B$14)","v":""},{"$f":"IF(A134=\"\",\"\",'1. Checklist & Certification'!$E$14)","v":""},{"$f":"IF(B134=\"\",\"\",'1. Checklist & Certification'!$G$14)","v":""},{"$f":"IF(A134=\"\",\"\",'MHP Family Income & Rent Limits'!$B$3)","v":""},{"$f":"IF(A134=\"\",\"\",'MHP Family Income & Rent Limits'!$J$3)","v":""},{"$f":"IF(A134=\"\",\"\",'MHP Family Income & Rent Limits'!$E$4)","v":""},{"$f":"IF(A134=\"\",\"\",'MHP Family Income & Rent Limits'!$C$7)","v":""},{"$f":"IF(A134=\"\",\"\",'MHP Family Income & Rent Limits'!$F$8)","v":""},{"$f":"IF(A134=\"\",\"\",'1. Checklist & Certification'!$G$4)","v":""},{"$f":"IF(A134=\"\",\"\",'1. Checklist & Certification'!$K$39)","v":""},{"$f":"IF(A134=\"\",\"\",'1. Checklist & Certification'!$K$43)","v":""},{"$f":"IF(A134=\"\",\"\",'1. Checklist & Certification'!$K$45)","v":""},{"$f":"IF(A134=\"\",\"\",'1. Checklist & Certification'!$K$49)","v":""},{"$f":"IF(A134=\"\",\"\",'1. Checklist & Certification'!$K$62)","v":""},{"$f":"IF(A134=\"\",\"\",'1. Checklist & Certification'!$E$66)","v":""},{"$f":"IF(A134=\"\",\"\",'1. Checklist & Certification'!$E$67)","v":""},{"$f":"IF(A134=\"\",\"\",'1. Checklist & Certification'!$E$68)","v":""},{"$f":"IF(A134=\"\",\"\",'1. Checklist & Certification'!$G$66)","v":""},{"$f":"IF(A134=\"\",\"\",'1. Checklist & Certification'!$H$66)","v":""},{"$f":"IF(A134=\"\",\"\",'1. Checklist & Certification'!$I$66)","v":""},{"$f":"IF(A134=\"\",\"\",'1. Checklist & Certification'!$I$67)","v":""},{"$f":"IF(A134=\"\",\"\",'1. Checklist & Certification'!$I$68)","v":""},{"$f":"IF(A134=\"\",\"\",'1. Checklist & Certification'!$B$69)","v":""},{"$f":"IF(A134=\"\",\"\",'1. Checklist & Certification'!$C$69)","v":""},{"$f":"IF(A134=\"\",\"\",'1. Checklist & Certification'!$F$69)","v":""},{"$f":"IF(A134=\"\",\"\",'1. Checklist & Certification'!$G$69)","v":""},{"$f":"IF(A134=\"\",\"\",'1. Checklist & Certification'!$J$69)","v":""},{"$f":"IF(A134=\"\",\"\",'1. Checklist & Certification'!$K$69)","v":""},null,null,{"$f":"IF(AND(OR('1. Checklist & Certification'!$M$16=1,'1. Checklist & Certification'!$M$19=2),AO134>0,B134=\"\",I134>0,AQ134<I134,AV134<>\"Sec 8-Project\"),\"X\",IF(AND(OR('1. Checklist & Certification'!$M$20=4,'1. Checklist & Certification'!$M$21=5,'1. Checklist & Certification'!$M$22=7),AO134>0,B134=\"\",I134>0,K134<I134),\"X\",\"\"))","v":""},{"$f":"IF(A134=\"\",\"\",IF(SUMPRODUCT(-- (ISNUMBER(SEARCH({\"*AHSC*\",\"*FMTW*\",\"*FWHG*\",\"*GHI*\",\"*HHC*\",\"*HLCP*\",\"*HOME*\",\"*LPR*\",\"*MHP*\",\"*NHTF*\",\"*NSP*\",\"*PRP*\",\"*TOD*\",\"*VHHP*\"},'1. Checklist & Certification'!$L$7)))),\"MHP\",\"Legacy\"))","v":""},",,",null,null,null,{"$f":"IF('1. Checklist & Certification'!$M$20=4,\"Both\",IF(OR('1. Checklist & Certification'!$M$15>0,S134=\"CHRP-R\",U134=\"CHRP-R\",W134=\"CHRP-R\",Y134=\"CHRP-R\"),\"Under\",\"No\"))","v":"No"},"No","No",{"$f":"_xlfn.IFS(D134=\"\",\"\",D134=1,'MHP Family Income & Rent Limits'!$E$17,D134=2,'MHP Family Income & Rent Limits'!$F$17,D134=3,'MHP Family Income & Rent Limits'!$G$17,D134=4,'MHP Family Income & Rent Limits'!$H$17,D134=5,'MHP Family Income & Rent Limits'!$I$17,D134=6,'MHP Family Income & Rent Limits'!$J$17,D134=7,'MHP Family Income & Rent Limits'!$K$17,D134=8,'MHP Family Income & Rent Limits'!$L$17)","v":""},"",{"$f":"IF(OR(A134=0,B134=\"X\"),0,MIN(IF(AA134:AD134<>0,AA134:AD134)))","v":0},{"$f":"IF(OR(H134=\"\",I134=\"\"),0,IF(H134*0.3/12>I134,MIN(H134*0.3/12,I134*1.1)+AP134,I134*(1+(VLOOKUP('1. Checklist & Certification'!$F$9,'HLCP-E Rent Change'!$A$1:$D$59,4,FALSE)))+AP134))","v":0}]
[null,null,null,null,null,null,null,null,null,null,null,null,null,null,null,null,null,null,null,null,null,null,null,null,null,null,{"$f":"IF(D135=\"Vacant\",\"Vacant\",IF(T135<>0,INDEX(IncomeLimits,MATCH(T135,IncomeLevels,0),MATCH(D135,IncomePersons,0)),0))","v":0},{"$f":"IF(D135=\"Vacant\",\"Vacant\",IF(V135<>0,INDEX(IncomeLimits,MATCH(V135,IncomeLevels,0),MATCH(D135,IncomePersons,0)),0))","v":0},{"$f":"IF(D135=\"Vacant\",\"Vacant\",IF(X135<>0,INDEX(IncomeLimits,MATCH(X135,IncomeLevels,0),MATCH(D135,IncomePersons,0)),0))","v":0},{"$f":"IF(D135=\"Vacant\",\"Vacant\",IF(Z135<>0,INDEX(IncomeLimits,MATCH(Z135,IncomeLevels,0),MATCH(D135,IncomePersons,0)),0))","v":0},{"$f":"IF(OR(T135=\"LI State\",T135=\"VLI State\"),0,IF(T135>1,INDEX(RentLimits,MATCH(T135,RentLevels,0),MATCH(E135,RentPersons,0)),0))","v":0},{"$f":"IF(OR(V135=\"LI State\",V135=\"VLI State\"),0,IF(V135>1,INDEX(RentLimits,MATCH(V135,RentLevels,0),MATCH(E135,RentPersons,0)),0))","v":0},{"$f":"IF(OR(X135=\"LI State\",X135=\"VLI State\"),0,IF(X135>1,INDEX(RentLimits,MATCH(X135,RentLevels,0),MATCH(E135,RentPersons,0)),0))","v":0},{"$f":"IF(OR(Z135=\"LI State\",Z135=\"VLI State\"),0,IF(Z135>1,INDEX(RentLimits,MATCH(Z135,RentLevels,0),MATCH(E135,RentPersons,0)),0))","v":0},{"$f":"IF(OR(A135=0,B135=\"X\"),0,IF(OR(S135=\"FHDP\",S135=\"RHCP-B\",U135=\"FHDP\",U135=\"RHCP-B\",W135=\"FHDP\",W135=\"RHCP-B\",Y135=\"FHDP\",Y135=\"RHCP-B\"),TRUNC((MIN(I135,K135)*(1+'1. Checklist & Certification'!$K$43)+AP135)),0))","v":0},{"$f":"IF(OR(A135=0,B135=\"X\"),0,IF(OR(S135=\"CHRP-R\",S135=\"SERA\",S135=\"SUHRP\",U135=\"CHRP-R\",U135=\"SERA\",U135=\"SUHRP\",W135=\"CHRP-R\",W135=\"SERA\",W135=\"SUHRP\",Y135=\"CHRP-R\",Y135=\"SERA\",Y135=\"SUHRP\"),TRUNC((MIN(I135,K135)*(1+'1. Checklist & Certification'!$K$49))),0))","v":0},{"$f":"IF(OR(A135=0,B135=\"X\"),0,IF(OR(S135=\"CALDAP\",S135=\"DPRLP\",U135=\"CALDAP\",U135=\"DPRLP\",W135=\"CALDAP\",W135=\"DPRLP\",Y135=\"CALDAP\",Y135=\"DPRLP\"),TRUNC(((MIN(I135,K135))*(1+'1. Checklist & Certification'!$G$4))),0))","v":0},{"$f":"IF(D135=\"Vacant\",0,IF(H135=0,0,IF(OR(AND(S135=\"FWHG\",T135=0),AND(U135=\"FWHG\",V135=0),AND(W135=\"FWHG\",X135=0),AND(Y135=\"FWHG\",Z135=0)),TRUNC(H135*0.3/12),IF(OR(S135=\"HLCP-E\",U135=\"HLCP-E\",W135=\"HLCP-E\",Y135=\"HLCP-E\"),DF135,0))))","v":0},0,0,{"$f":"IF(OR(A135=0,B135=\"X\"),0,IF(OR(S135=\"PRP\",S135=\"LPR\",U135=\"PRP\",U135=\"LPR\",W135=\"PRP\",W135=\"LPR\",Y135=\"PRP\",Y135=\"LPR\"),MAX(I135+AP135,MIN(IF(AE135:AN135<>0,AE135:AN135))),MIN(IF(AE135:AN135<>0,AE135:AN135))))","v":0},{"$f":"IF(A135=0,0,IF(AND(OR(S135=\"Mgr\",S135=0),OR(U135=\"Mgr\",U135=0),OR(W135=\"Mgr\",W135=0)),0,IF(LEFT($A135,2)=\"B*\",VLOOKUP($E135,'1. Checklist & Certification'!$D$26:$E$32,2),IF(LEFT($A135,2)=\"C*\",VLOOKUP($E135,'1. Checklist & Certification'!$F$26:$G$32,2),IF(LEFT($A135,2)=\"D*\",VLOOKUP($E135,'1. Checklist & Certification'!$H$26:$I$32,2),IF(LEFT($A135,2)=\"E*\",VLOOKUP($E135,'1. Checklist & Certification'!$J$26:$K$32,2),VLOOKUP($E135,'1. Checklist & Certification'!$A$26:$B$32,2)))))))","v":0},{"$f":"IF(AO135=0,0,ROUND(AO135-AP135,0))","v":0},{"$f":"AS135-I135","v":0},null,null,null,null,{"$f":"IF($CV$5=TRUE,IF(AS135<>0,IF(AV135<>\"Sec 8-Project\",MIN(AQ135,AS135),AS135),\"\"),\"\")","v":""},{"$f":"IF(AW135=\"\",\"\",(I135*J135)+((12-J135)*AW135))","v":""},{"$f":"(I135*J135)+((12-J135)*AS135)","v":0},{"$f":"(AT135*J135)+((12-J135)*AU135)","v":0},0,null,{"$f":"IF(A135=\"\",\"\",'1. Checklist & Certification'!$K$1)","v":""},{"$f":"IF(A135=\"\",\"\",'1. Checklist & Certification'!$C$62)","v":""},{"$f":"IF(A135=\"\",\"\",'1. Checklist & Certification'!$C$6)","v":""},{"$f":"IF(A135=\"\",\"\",'1. Checklist & Certification'!$G$5)","v":""},{"$f":"IFERROR(IF(A135=\"\",\"\",\n_xlfn.LET(_xlpm.Contract,'1. Checklist & Certification'!$C$7,\n_xlpm.Yr,TEXT(MOD(_xlfn.TEXTBEFORE(_xlpm.Contract,\"-\"),100),\"00\"),\n_xlpm.Program,_xlfn.TEXTAFTER(_xlfn.TEXTBEFORE(_xlpm.Contract,\"-\",2),\"-\"),\n_xlpm.CleanProgram,_xlfn.XLOOKUP(_xlpm.Program,SpellCheck[Input],SpellCheck[Correction],_xlpm.Program),\n_xlpm.Number,TEXT(_xlfn.TEXTAFTER(_xlpm.Contract,\"-\",2),\"0000\"),\n_xlfn.CONCAT(_xlpm.Yr,\"-\",_xlpm.CleanProgram,\"-\",_xlpm.Number))\n),\"\")","v":""},{"$f":"IFERROR(IF(A135=\"\",\"\",\n_xlfn.LET(_xlpm.Contract,'1. Checklist & Certification'!$C$8,\n_xlpm.Yr,TEXT(MOD(_xlfn.TEXTBEFORE(_xlpm.Contract,\"-\"),100),\"00\"),\n_xlpm.Program,_xlfn.TEXTAFTER(_xlfn.TEXTBEFORE(_xlpm.Contract,\"-\",2),\"-\"),\n_xlpm.CleanProgram,_xlfn.XLOOKUP(_xlpm.Program,SpellCheck[Input],SpellCheck[Correction],_xlpm.Program),\n_xlpm.Number,TEXT(_xlfn.TEXTAFTER(_xlpm.Contract,\"-\",2),\"0000\"),\n_xlfn.CONCAT(_xlpm.Yr,\"-\",_xlpm.CleanProgram,\"-\",_xlpm.Number))\n),\"\")","v":""},{"$f":"IFERROR(IF(A135=\"\",\"\",\n_xlfn.LET(_xlpm.Contract,'1. Checklist & Certification'!$F$7,\n_xlpm.Yr,TEXT(MOD(_xlfn.TEXTBEFORE(_xlpm.Contract,\"-\"),100),\"00\"),\n_xlpm.Program,_xlfn.TEXTAFTER(_xlfn.TEXTBEFORE(_xlpm.Contract,\"-\",2),\"-\"),\n_xlpm.CleanProgram,_xlfn.XLOOKUP(_xlpm.Program,SpellCheck[Input],SpellCheck[Correction],_xlpm.Program),\n_xlpm.Number,TEXT(_xlfn.TEXTAFTER(_xlpm.Contract,\"-\",2),\"0000\"),\n_xlfn.CONCAT(_xlpm.Yr,\"-\",_xlpm.CleanProgram,\"-\",_xlpm.Number))\n),\"\")","v":""},{"$f":"IFERROR(IF(A135=\"\",\"\",\n_xlfn.LET(_xlpm.Contract,'1. Checklist & Certification'!$F$8,\n_xlpm.Yr,TEXT(MOD(_xlfn.TEXTBEFORE(_xlpm.Contract,\"-\"),100),\"00\"),\n_xlpm.Program,_xlfn.TEXTAFTER(_xlfn.TEXTBEFORE(_xlpm.Contract,\"-\",2),\"-\"),\n_xlpm.CleanProgram,_xlfn.XLOOKUP(_xlpm.Program,SpellCheck[Input],SpellCheck[Correction],_xlpm.Program),\n_xlpm.Number,TEXT(_xlfn.TEXTAFTER(_xlpm.Contract,\"-\",2),\"0000\"),\n_xlfn.CONCAT(_xlpm.Yr,\"-\",_xlpm.CleanProgram,\"-\",_xlpm.Number))\n),\"\")","v":""},{"$f":"IF(A135=\"\",\"\",'1. Checklist & Certification'!$B$9)","v":""},{"$f":"IF(A135=\"\",\"\",'1. Checklist & Certification'!$F$9)","v":""},{"$f":"IF(A135=\"\",\"\",'1. Checklist & Certification'!$C$10)","v":""},{"$f":"IF(A135=\"\",\"\",'1. Checklist & Certification'!$C$11)","v":""},{"$f":"IF(A135=\"\",\"\",'1. Checklist & Certification'!$C$12)","v":""},{"$f":"IF(A135=\"\",\"\",'1. Checklist & Certification'!$B$14)","v":""},{"$f":"IF(A135=\"\",\"\",'1. Checklist & Certification'!$E$14)","v":""},{"$f":"IF(B135=\"\",\"\",'1. Checklist & Certification'!$G$14)","v":""},{"$f":"IF(A135=\"\",\"\",'MHP Family Income & Rent Limits'!$B$3)","v":""},{"$f":"IF(A135=\"\",\"\",'MHP Family Income & Rent Limits'!$J$3)","v":""},{"$f":"IF(A135=\"\",\"\",'MHP Family Income & Rent Limits'!$E$4)","v":""},{"$f":"IF(A135=\"\",\"\",'MHP Family Income & Rent Limits'!$C$7)","v":""},{"$f":"IF(A135=\"\",\"\",'MHP Family Income & Rent Limits'!$F$8)","v":""},{"$f":"IF(A135=\"\",\"\",'1. Checklist & Certification'!$G$4)","v":""},{"$f":"IF(A135=\"\",\"\",'1. Checklist & Certification'!$K$39)","v":""},{"$f":"IF(A135=\"\",\"\",'1. Checklist & Certification'!$K$43)","v":""},{"$f":"IF(A135=\"\",\"\",'1. Checklist & Certification'!$K$45)","v":""},{"$f":"IF(A135=\"\",\"\",'1. Checklist & Certification'!$K$49)","v":""},{"$f":"IF(A135=\"\",\"\",'1. Checklist & Certification'!$K$62)","v":""},{"$f":"IF(A135=\"\",\"\",'1. Checklist & Certification'!$E$66)","v":""},{"$f":"IF(A135=\"\",\"\",'1. Checklist & Certification'!$E$67)","v":""},{"$f":"IF(A135=\"\",\"\",'1. Checklist & Certification'!$E$68)","v":""},{"$f":"IF(A135=\"\",\"\",'1. Checklist & Certification'!$G$66)","v":""},{"$f":"IF(A135=\"\",\"\",'1. Checklist & Certification'!$H$66)","v":""},{"$f":"IF(A135=\"\",\"\",'1. Checklist & Certification'!$I$66)","v":""},{"$f":"IF(A135=\"\",\"\",'1. Checklist & Certification'!$I$67)","v":""},{"$f":"IF(A135=\"\",\"\",'1. Checklist & Certification'!$I$68)","v":""},{"$f":"IF(A135=\"\",\"\",'1. Checklist & Certification'!$B$69)","v":""},{"$f":"IF(A135=\"\",\"\",'1. Checklist & Certification'!$C$69)","v":""},{"$f":"IF(A135=\"\",\"\",'1. Checklist & Certification'!$F$69)","v":""},{"$f":"IF(A135=\"\",\"\",'1. Checklist & Certification'!$G$69)","v":""},{"$f":"IF(A135=\"\",\"\",'1. Checklist & Certification'!$J$69)","v":""},{"$f":"IF(A135=\"\",\"\",'1. Checklist & Certification'!$K$69)","v":""},null,null,{"$f":"IF(AND(OR('1. Checklist & Certification'!$M$16=1,'1. Checklist & Certification'!$M$19=2),AO135>0,B135=\"\",I135>0,AQ135<I135,AV135<>\"Sec 8-Project\"),\"X\",IF(AND(OR('1. Checklist & Certification'!$M$20=4,'1. Checklist & Certification'!$M$21=5,'1. Checklist & Certification'!$M$22=7),AO135>0,B135=\"\",I135>0,K135<I135),\"X\",\"\"))","v":""},{"$f":"IF(A135=\"\",\"\",IF(SUMPRODUCT(-- (ISNUMBER(SEARCH({\"*AHSC*\",\"*FMTW*\",\"*FWHG*\",\"*GHI*\",\"*HHC*\",\"*HLCP*\",\"*HOME*\",\"*LPR*\",\"*MHP*\",\"*NHTF*\",\"*NSP*\",\"*PRP*\",\"*TOD*\",\"*VHHP*\"},'1. Checklist & Certification'!$L$7)))),\"MHP\",\"Legacy\"))","v":""},{"$f":"CONCATENATE(S135,\",\",U135,\",\",W135)","v":",,"},null,null,null,{"$f":"IF('1. Checklist & Certification'!$M$20=4,\"Both\",IF(OR('1. Checklist & Certification'!$M$15>0,S135=\"CHRP-R\",U135=\"CHRP-R\",W135=\"CHRP-R\",Y135=\"CHRP-R\"),\"Under\",\"No\"))","v":"No"},"No","No",{"$f":"_xlfn.IFS(D135=\"\",\"\",D135=1,'MHP Family Income & Rent Limits'!$E$17,D135=2,'MHP Family Income & Rent Limits'!$F$17,D135=3,'MHP Family Income & Rent Limits'!$G$17,D135=4,'MHP Family Income & Rent Limits'!$H$17,D135=5,'MHP Family Income & Rent Limits'!$I$17,D135=6,'MHP Family Income & Rent Limits'!$J$17,D135=7,'MHP Family Income & Rent Limits'!$K$17,D135=8,'MHP Family Income & Rent Limits'!$L$17)","v":""},{"$f":"IF(H135=\"\",\"\",IF(H135<=DC135,0.05,0.1))","v":""},{"$f":"IF(OR(A135=0,B135=\"X\"),0,MIN(IF(AA135:AD135<>0,AA135:AD135)))","v":0},{"$f":"IF(OR(H135=\"\",I135=\"\"),0,IF(H135*0.3/12>I135,MIN(H135*0.3/12,I135*1.1)+AP135,I135*(1+(VLOOKUP('1. Checklist & Certification'!$F$9,'HLCP-E Rent Change'!$A$1:$D$59,4,FALSE)))+AP135))","v":0}]
[null,null,null,null,null,null,null,null,null,null,null,null,null,null,null,null,null,null,null,null,null,null,null,null,null,null,0,0,0,0,0,0,0,0,{"$f":"IF(OR(A136=0,B136=\"X\"),0,IF(OR(S136=\"FHDP\",S136=\"RHCP-B\",U136=\"FHDP\",U136=\"RHCP-B\",W136=\"FHDP\",W136=\"RHCP-B\",Y136=\"FHDP\",Y136=\"RHCP-B\"),TRUNC((MIN(I136,K136)*(1+'1. Checklist & Certification'!$K$43)+AP136)),0))","v":0},{"$f":"IF(OR(A136=0,B136=\"X\"),0,IF(OR(S136=\"CHRP-R\",S136=\"SERA\",S136=\"SUHRP\",U136=\"CHRP-R\",U136=\"SERA\",U136=\"SUHRP\",W136=\"CHRP-R\",W136=\"SERA\",W136=\"SUHRP\",Y136=\"CHRP-R\",Y136=\"SERA\",Y136=\"SUHRP\"),TRUNC((MIN(I136,K136)*(1+'1. Checklist & Certification'!$K$49))),0))","v":0},{"$f":"IF(OR(A136=0,B136=\"X\"),0,IF(OR(S136=\"CALDAP\",S136=\"DPRLP\",U136=\"CALDAP\",U136=\"DPRLP\",W136=\"CALDAP\",W136=\"DPRLP\",Y136=\"CALDAP\",Y136=\"DPRLP\"),TRUNC(((MIN(I136,K136))*(1+'1. Checklist & Certification'!$G$4))),0))","v":0},0,{"$f":"IF(OR(A136=0,B136=\"X\"),0,IF(OR(S136=\"PRP\",S136=\"LPR\",U136=\"PRP\",U136=\"LPR\",W136=\"PRP\",W136=\"LPR\",Y136=\"PRP\",Y136=\"LPR\"),TRUNC(I136*(1+DD136)+AP136),0))","v":0},{"$f":"IF(OR(A136=0,B136=\"X\"),0,IF(OR(S136=\"PRP\",S136=\"LPR\",U136=\"PRP\",U136=\"LPR\",W136=\"PRP\",W136=\"LPR\",Y136=\"PRP\",Y136=\"LPR\"),TRUNC(H136*0.5/12),0))","v":0},{"$f":"IF(OR(A136=0,B136=\"X\"),0,IF(OR(S136=\"PRP\",S136=\"LPR\",U136=\"PRP\",U136=\"LPR\",W136=\"PRP\",W136=\"LPR\",Y136=\"PRP\",Y136=\"LPR\"),MAX(I136+AP136,MIN(IF(AE136:AN136<>0,AE136:AN136))),MIN(IF(AE136:AN136<>0,AE136:AN136))))","v":0},{"$f":"IF(A136=0,0,IF(AND(OR(S136=\"Mgr\",S136=0),OR(U136=\"Mgr\",U136=0),OR(W136=\"Mgr\",W136=0)),0,IF(LEFT($A136,2)=\"B*\",VLOOKUP($E136,'1. Checklist & Certification'!$D$26:$E$32,2),IF(LEFT($A136,2)=\"C*\",VLOOKUP($E136,'1. Checklist & Certification'!$F$26:$G$32,2),IF(LEFT($A136,2)=\"D*\",VLOOKUP($E136,'1. Checklist & Certification'!$H$26:$I$32,2),IF(LEFT($A136,2)=\"E*\",VLOOKUP($E136,'1. Checklist & Certification'!$J$26:$K$32,2),VLOOKUP($E136,'1. Checklist & Certification'!$A$26:$B$32,2)))))))","v":0},0,0,null,null,null,null,"","",0,0,{"$f":"IFERROR((AX136+(AP136*12))/H136,0)","v":0},null,{"$f":"IF(A136=\"\",\"\",'1. Checklist & Certification'!$K$1)","v":""},{"$f":"IF(A136=\"\",\"\",'1. Checklist & Certification'!$C$62)","v":""},{"$f":"IF(A136=\"\",\"\",'1. Checklist & Certification'!$C$6)","v":""},{"$f":"IF(A136=\"\",\"\",'1. Checklist & Certification'!$G$5)","v":""},{"$f":"IFERROR(IF(A136=\"\",\"\",\n_xlfn.LET(_xlpm.Contract,'1. Checklist & Certification'!$C$7,\n_xlpm.Yr,TEXT(MOD(_xlfn.TEXTBEFORE(_xlpm.Contract,\"-\"),100),\"00\"),\n_xlpm.Program,_xlfn.TEXTAFTER(_xlfn.TEXTBEFORE(_xlpm.Contract,\"-\",2),\"-\"),\n_xlpm.CleanProgram,_xlfn.XLOOKUP(_xlpm.Program,SpellCheck[Input],SpellCheck[Correction],_xlpm.Program),\n_xlpm.Number,TEXT(_xlfn.TEXTAFTER(_xlpm.Contract,\"-\",2),\"0000\"),\n_xlfn.CONCAT(_xlpm.Yr,\"-\",_xlpm.CleanProgram,\"-\",_xlpm.Number))\n),\"\")","v":""},{"$f":"IFERROR(IF(A136=\"\",\"\",\n_xlfn.LET(_xlpm.Contract,'1. Checklist & Certification'!$C$8,\n_xlpm.Yr,TEXT(MOD(_xlfn.TEXTBEFORE(_xlpm.Contract,\"-\"),100),\"00\"),\n_xlpm.Program,_xlfn.TEXTAFTER(_xlfn.TEXTBEFORE(_xlpm.Contract,\"-\",2),\"-\"),\n_xlpm.CleanProgram,_xlfn.XLOOKUP(_xlpm.Program,SpellCheck[Input],SpellCheck[Correction],_xlpm.Program),\n_xlpm.Number,TEXT(_xlfn.TEXTAFTER(_xlpm.Contract,\"-\",2),\"0000\"),\n_xlfn.CONCAT(_xlpm.Yr,\"-\",_xlpm.CleanProgram,\"-\",_xlpm.Number))\n),\"\")","v":""},{"$f":"IFERROR(IF(A136=\"\",\"\",\n_xlfn.LET(_xlpm.Contract,'1. Checklist & Certification'!$F$7,\n_xlpm.Yr,TEXT(MOD(_xlfn.TEXTBEFORE(_xlpm.Contract,\"-\"),100),\"00\"),\n_xlpm.Program,_xlfn.TEXTAFTER(_xlfn.TEXTBEFORE(_xlpm.Contract,\"-\",2),\"-\"),\n_xlpm.CleanProgram,_xlfn.XLOOKUP(_xlpm.Program,SpellCheck[Input],SpellCheck[Correction],_xlpm.Program),\n_xlpm.Number,TEXT(_xlfn.TEXTAFTER(_xlpm.Contract,\"-\",2),\"0000\"),\n_xlfn.CONCAT(_xlpm.Yr,\"-\",_xlpm.CleanProgram,\"-\",_xlpm.Number))\n),\"\")","v":""},{"$f":"IFERROR(IF(A136=\"\",\"\",\n_xlfn.LET(_xlpm.Contract,'1. Checklist & Certification'!$F$8,\n_xlpm.Yr,TEXT(MOD(_xlfn.TEXTBEFORE(_xlpm.Contract,\"-\"),100),\"00\"),\n_xlpm.Program,_xlfn.TEXTAFTER(_xlfn.TEXTBEFORE(_xlpm.Contract,\"-\",2),\"-\"),\n_xlpm.CleanProgram,_xlfn.XLOOKUP(_xlpm.Program,SpellCheck[Input],SpellCheck[Correction],_xlpm.Program),\n_xlpm.Number,TEXT(_xlfn.TEXTAFTER(_xlpm.Contract,\"-\",2),\"0000\"),\n_xlfn.CONCAT(_xlpm.Yr,\"-\",_xlpm.CleanProgram,\"-\",_xlpm.Number))\n),\"\")","v":""},{"$f":"IF(A136=\"\",\"\",'1. Checklist & Certification'!$B$9)","v":""},{"$f":"IF(A136=\"\",\"\",'1. Checklist & Certification'!$F$9)","v":""},{"$f":"IF(A136=\"\",\"\",'1. Checklist & Certification'!$C$10)","v":""},{"$f":"IF(A136=\"\",\"\",'1. Checklist & Certification'!$C$11)","v":""},{"$f":"IF(A136=\"\",\"\",'1. Checklist & Certification'!$C$12)","v":""},{"$f":"IF(A136=\"\",\"\",'1. Checklist & Certification'!$B$14)","v":""},{"$f":"IF(A136=\"\",\"\",'1. Checklist & Certification'!$E$14)","v":""},{"$f":"IF(B136=\"\",\"\",'1. Checklist & Certification'!$G$14)","v":""},{"$f":"IF(A136=\"\",\"\",'MHP Family Income & Rent Limits'!$B$3)","v":""},{"$f":"IF(A136=\"\",\"\",'MHP Family Income & Rent Limits'!$J$3)","v":""},{"$f":"IF(A136=\"\",\"\",'MHP Family Income & Rent Limits'!$E$4)","v":""},{"$f":"IF(A136=\"\",\"\",'MHP Family Income & Rent Limits'!$C$7)","v":""},{"$f":"IF(A136=\"\",\"\",'MHP Family Income & Rent Limits'!$F$8)","v":""},{"$f":"IF(A136=\"\",\"\",'1. Checklist & Certification'!$G$4)","v":""},{"$f":"IF(A136=\"\",\"\",'1. Checklist & Certification'!$K$39)","v":""},{"$f":"IF(A136=\"\",\"\",'1. Checklist & Certification'!$K$43)","v":""},{"$f":"IF(A136=\"\",\"\",'1. Checklist & Certification'!$K$45)","v":""},{"$f":"IF(A136=\"\",\"\",'1. Checklist & Certification'!$K$49)","v":""},{"$f":"IF(A136=\"\",\"\",'1. Checklist & Certification'!$K$62)","v":""},{"$f":"IF(A136=\"\",\"\",'1. Checklist & Certification'!$E$66)","v":""},{"$f":"IF(A136=\"\",\"\",'1. Checklist & Certification'!$E$67)","v":""},{"$f":"IF(A136=\"\",\"\",'1. Checklist & Certification'!$E$68)","v":""},{"$f":"IF(A136=\"\",\"\",'1. Checklist & Certification'!$G$66)","v":""},{"$f":"IF(A136=\"\",\"\",'1. Checklist & Certification'!$H$66)","v":""},{"$f":"IF(A136=\"\",\"\",'1. Checklist & Certification'!$I$66)","v":""},{"$f":"IF(A136=\"\",\"\",'1. Checklist & Certification'!$I$67)","v":""},{"$f":"IF(A136=\"\",\"\",'1. Checklist & Certification'!$I$68)","v":""},{"$f":"IF(A136=\"\",\"\",'1. Checklist & Certification'!$B$69)","v":""},{"$f":"IF(A136=\"\",\"\",'1. Checklist & Certification'!$C$69)","v":""},{"$f":"IF(A136=\"\",\"\",'1. Checklist & Certification'!$F$69)","v":""},{"$f":"IF(A136=\"\",\"\",'1. Checklist & Certification'!$G$69)","v":""},{"$f":"IF(A136=\"\",\"\",'1. Checklist & Certification'!$J$69)","v":""},{"$f":"IF(A136=\"\",\"\",'1. Checklist & Certification'!$K$69)","v":""},null,null,{"$f":"IF(AND(OR('1. Checklist & Certification'!$M$16=1,'1. Checklist & Certification'!$M$19=2),AO136>0,B136=\"\",I136>0,AQ136<I136,AV136<>\"Sec 8-Project\"),\"X\",IF(AND(OR('1. Checklist & Certification'!$M$20=4,'1. Checklist & Certification'!$M$21=5,'1. Checklist & Certification'!$M$22=7),AO136>0,B136=\"\",I136>0,K136<I136),\"X\",\"\"))","v":""},{"$f":"IF(A136=\"\",\"\",IF(SUMPRODUCT(-- (ISNUMBER(SEARCH({\"*AHSC*\",\"*FMTW*\",\"*FWHG*\",\"*GHI*\",\"*HHC*\",\"*HLCP*\",\"*HOME*\",\"*LPR*\",\"*MHP*\",\"*NHTF*\",\"*NSP*\",\"*PRP*\",\"*TOD*\",\"*VHHP*\"},'1. Checklist & Certification'!$L$7)))),\"MHP\",\"Legacy\"))","v":""},",,",null,null,null,{"$f":"IF('1. Checklist & Certification'!$M$20=4,\"Both\",IF(OR('1. Checklist & Certification'!$M$15>0,S136=\"CHRP-R\",U136=\"CHRP-R\",W136=\"CHRP-R\",Y136=\"CHRP-R\"),\"Under\",\"No\"))","v":"No"},{"$f":"IF(OR(B136=\"X\",D136=\"Vacant\",D136<1),\"No\",IF(AND(CZ136<>\"No\",D136<VLOOKUP(E136,$CW$7:$CY$13,2)),\"Yes\",\"No\"))","v":"No"},{"$f":"IF(OR(B136=\"X\",D136=\"Vacant\",D136<1),\"No\",IF(AND(CZ136=\"Both\",D136>VLOOKUP(E136,$CW$7:$CY$13,3)),\"Yes\",\"No\"))","v":"No"},{"$f":"_xlfn.IFS(D136=\"\",\"\",D136=1,'MHP Family Income & Rent Limits'!$E$17,D136=2,'MHP Family Income & Rent Limits'!$F$17,D136=3,'MHP Family Income & Rent Limits'!$G$17,D136=4,'MHP Family Income & Rent Limits'!$H$17,D136=5,'MHP Family Income & Rent Limits'!$I$17,D136=6,'MHP Family Income & Rent Limits'!$J$17,D136=7,'MHP Family Income & Rent Limits'!$K$17,D136=8,'MHP Family Income & Rent Limits'!$L$17)","v":""},"",{"$f":"IF(OR(A136=0,B136=\"X\"),0,MIN(IF(AA136:AD136<>0,AA136:AD136)))","v":0},{"$f":"IF(OR(H136=\"\",I136=\"\"),0,IF(H136*0.3/12>I136,MIN(H136*0.3/12,I136*1.1)+AP136,I136*(1+(VLOOKUP('1. Checklist & Certification'!$F$9,'HLCP-E Rent Change'!$A$1:$D$59,4,FALSE)))+AP136))","v":0}]
[null,null,null,null,null,null,null,null,null,null,null,null,null,null,null,null,null,null,null,null,null,null,null,null,null,null,0,0,0,0,0,0,0,0,{"$f":"IF(OR(A137=0,B137=\"X\"),0,IF(OR(S137=\"FHDP\",S137=\"RHCP-B\",U137=\"FHDP\",U137=\"RHCP-B\",W137=\"FHDP\",W137=\"RHCP-B\",Y137=\"FHDP\",Y137=\"RHCP-B\"),TRUNC((MIN(I137,K137)*(1+'1. Checklist & Certification'!$K$43)+AP137)),0))","v":0},{"$f":"IF(OR(A137=0,B137=\"X\"),0,IF(OR(S137=\"CHRP-R\",S137=\"SERA\",S137=\"SUHRP\",U137=\"CHRP-R\",U137=\"SERA\",U137=\"SUHRP\",W137=\"CHRP-R\",W137=\"SERA\",W137=\"SUHRP\",Y137=\"CHRP-R\",Y137=\"SERA\",Y137=\"SUHRP\"),TRUNC((MIN(I137,K137)*(1+'1. Checklist & Certification'!$K$49))),0))","v":0},{"$f":"IF(OR(A137=0,B137=\"X\"),0,IF(OR(S137=\"CALDAP\",S137=\"DPRLP\",U137=\"CALDAP\",U137=\"DPRLP\",W137=\"CALDAP\",W137=\"DPRLP\",Y137=\"CALDAP\",Y137=\"DPRLP\"),TRUNC(((MIN(I137,K137))*(1+'1. Checklist & Certification'!$G$4))),0))","v":0},0,0,0,{"$f":"IF(OR(A137=0,B137=\"X\"),0,IF(OR(S137=\"PRP\",S137=\"LPR\",U137=\"PRP\",U137=\"LPR\",W137=\"PRP\",W137=\"LPR\",Y137=\"PRP\",Y137=\"LPR\"),MAX(I137+AP137,MIN(IF(AE137:AN137<>0,AE137:AN137))),MIN(IF(AE137:AN137<>0,AE137:AN137))))","v":0},{"$f":"IF(A137=0,0,IF(AND(OR(S137=\"Mgr\",S137=0),OR(U137=\"Mgr\",U137=0),OR(W137=\"Mgr\",W137=0)),0,IF(LEFT($A137,2)=\"B*\",VLOOKUP($E137,'1. Checklist & Certification'!$D$26:$E$32,2),IF(LEFT($A137,2)=\"C*\",VLOOKUP($E137,'1. Checklist & Certification'!$F$26:$G$32,2),IF(LEFT($A137,2)=\"D*\",VLOOKUP($E137,'1. Checklist & Certification'!$H$26:$I$32,2),IF(LEFT($A137,2)=\"E*\",VLOOKUP($E137,'1. Checklist & Certification'!$J$26:$K$32,2),VLOOKUP($E137,'1. Checklist & Certification'!$A$26:$B$32,2)))))))","v":0},0,0,null,null,null,null,"","",0,0,0,null,{"$f":"IF(A137=\"\",\"\",'1. Checklist & Certification'!$K$1)","v":""},{"$f":"IF(A137=\"\",\"\",'1. Checklist & Certification'!$C$62)","v":""},{"$f":"IF(A137=\"\",\"\",'1. Checklist & Certification'!$C$6)","v":""},{"$f":"IF(A137=\"\",\"\",'1. Checklist & Certification'!$G$5)","v":""},{"$f":"IFERROR(IF(A137=\"\",\"\",\n_xlfn.LET(_xlpm.Contract,'1. Checklist & Certification'!$C$7,\n_xlpm.Yr,TEXT(MOD(_xlfn.TEXTBEFORE(_xlpm.Contract,\"-\"),100),\"00\"),\n_xlpm.Program,_xlfn.TEXTAFTER(_xlfn.TEXTBEFORE(_xlpm.Contract,\"-\",2),\"-\"),\n_xlpm.CleanProgram,_xlfn.XLOOKUP(_xlpm.Program,SpellCheck[Input],SpellCheck[Correction],_xlpm.Program),\n_xlpm.Number,TEXT(_xlfn.TEXTAFTER(_xlpm.Contract,\"-\",2),\"0000\"),\n_xlfn.CONCAT(_xlpm.Yr,\"-\",_xlpm.CleanProgram,\"-\",_xlpm.Number))\n),\"\")","v":""},{"$f":"IFERROR(IF(A137=\"\",\"\",\n_xlfn.LET(_xlpm.Contract,'1. Checklist & Certification'!$C$8,\n_xlpm.Yr,TEXT(MOD(_xlfn.TEXTBEFORE(_xlpm.Contract,\"-\"),100),\"00\"),\n_xlpm.Program,_xlfn.TEXTAFTER(_xlfn.TEXTBEFORE(_xlpm.Contract,\"-\",2),\"-\"),\n_xlpm.CleanProgram,_xlfn.XLOOKUP(_xlpm.Program,SpellCheck[Input],SpellCheck[Correction],_xlpm.Program),\n_xlpm.Number,TEXT(_xlfn.TEXTAFTER(_xlpm.Contract,\"-\",2),\"0000\"),\n_xlfn.CONCAT(_xlpm.Yr,\"-\",_xlpm.CleanProgram,\"-\",_xlpm.Number))\n),\"\")","v":""},{"$f":"IFERROR(IF(A137=\"\",\"\",\n_xlfn.LET(_xlpm.Contract,'1. Checklist & Certification'!$F$7,\n_xlpm.Yr,TEXT(MOD(_xlfn.TEXTBEFORE(_xlpm.Contract,\"-\"),100),\"00\"),\n_xlpm.Program,_xlfn.TEXTAFTER(_xlfn.TEXTBEFORE(_xlpm.Contract,\"-\",2),\"-\"),\n_xlpm.CleanProgram,_xlfn.XLOOKUP(_xlpm.Program,SpellCheck[Input],SpellCheck[Correction],_xlpm.Program),\n_xlpm.Number,TEXT(_xlfn.TEXTAFTER(_xlpm.Contract,\"-\",2),\"0000\"),\n_xlfn.CONCAT(_xlpm.Yr,\"-\",_xlpm.CleanProgram,\"-\",_xlpm.Number))\n),\"\")","v":""},{"$f":"IFERROR(IF(A137=\"\",\"\",\n_xlfn.LET(_xlpm.Contract,'1. Checklist & Certification'!$F$8,\n_xlpm.Yr,TEXT(MOD(_xlfn.TEXTBEFORE(_xlpm.Contract,\"-\"),100),\"00\"),\n_xlpm.Program,_xlfn.TEXTAFTER(_xlfn.TEXTBEFORE(_xlpm.Contract,\"-\",2),\"-\"),\n_xlpm.CleanProgram,_xlfn.XLOOKUP(_xlpm.Program,SpellCheck[Input],SpellCheck[Correction],_xlpm.Program),\n_xlpm.Number,TEXT(_xlfn.TEXTAFTER(_xlpm.Contract,\"-\",2),\"0000\"),\n_xlfn.CONCAT(_xlpm.Yr,\"-\",_xlpm.CleanProgram,\"-\",_xlpm.Number))\n),\"\")","v":""},{"$f":"IF(A137=\"\",\"\",'1. Checklist & Certification'!$B$9)","v":""},{"$f":"IF(A137=\"\",\"\",'1. Checklist & Certification'!$F$9)","v":""},{"$f":"IF(A137=\"\",\"\",'1. Checklist & Certification'!$C$10)","v":""},{"$f":"IF(A137=\"\",\"\",'1. Checklist & Certification'!$C$11)","v":""},{"$f":"IF(A137=\"\",\"\",'1. Checklist & Certification'!$C$12)","v":""},{"$f":"IF(A137=\"\",\"\",'1. Checklist & Certification'!$B$14)","v":""},{"$f":"IF(A137=\"\",\"\",'1. Checklist & Certification'!$E$14)","v":""},{"$f":"IF(B137=\"\",\"\",'1. Checklist & Certification'!$G$14)","v":""},{"$f":"IF(A137=\"\",\"\",'MHP Family Income & Rent Limits'!$B$3)","v":""},{"$f":"IF(A137=\"\",\"\",'MHP Family Income & Rent Limits'!$J$3)","v":""},{"$f":"IF(A137=\"\",\"\",'MHP Family Income & Rent Limits'!$E$4)","v":""},{"$f":"IF(A137=\"\",\"\",'MHP Family Income & Rent Limits'!$C$7)","v":""},{"$f":"IF(A137=\"\",\"\",'MHP Family Income & Rent Limits'!$F$8)","v":""},{"$f":"IF(A137=\"\",\"\",'1. Checklist & Certification'!$G$4)","v":""},{"$f":"IF(A137=\"\",\"\",'1. Checklist & Certification'!$K$39)","v":""},{"$f":"IF(A137=\"\",\"\",'1. Checklist & Certification'!$K$43)","v":""},{"$f":"IF(A137=\"\",\"\",'1. Checklist & Certification'!$K$45)","v":""},{"$f":"IF(A137=\"\",\"\",'1. Checklist & Certification'!$K$49)","v":""},{"$f":"IF(A137=\"\",\"\",'1. Checklist & Certification'!$K$62)","v":""},{"$f":"IF(A137=\"\",\"\",'1. Checklist & Certification'!$E$66)","v":""},{"$f":"IF(A137=\"\",\"\",'1. Checklist & Certification'!$E$67)","v":""},{"$f":"IF(A137=\"\",\"\",'1. Checklist & Certification'!$E$68)","v":""},{"$f":"IF(A137=\"\",\"\",'1. Checklist & Certification'!$G$66)","v":""},{"$f":"IF(A137=\"\",\"\",'1. Checklist & Certification'!$H$66)","v":""},{"$f":"IF(A137=\"\",\"\",'1. Checklist & Certification'!$I$66)","v":""},{"$f":"IF(A137=\"\",\"\",'1. Checklist & Certification'!$I$67)","v":""},{"$f":"IF(A137=\"\",\"\",'1. Checklist & Certification'!$I$68)","v":""},{"$f":"IF(A137=\"\",\"\",'1. Checklist & Certification'!$B$69)","v":""},{"$f":"IF(A137=\"\",\"\",'1. Checklist & Certification'!$C$69)","v":""},{"$f":"IF(A137=\"\",\"\",'1. Checklist & Certification'!$F$69)","v":""},{"$f":"IF(A137=\"\",\"\",'1. Checklist & Certification'!$G$69)","v":""},{"$f":"IF(A137=\"\",\"\",'1. Checklist & Certification'!$J$69)","v":""},{"$f":"IF(A137=\"\",\"\",'1. Checklist & Certification'!$K$69)","v":""},null,null,{"$f":"IF(AND(OR('1. Checklist & Certification'!$M$16=1,'1. Checklist & Certification'!$M$19=2),AO137>0,B137=\"\",I137>0,AQ137<I137,AV137<>\"Sec 8-Project\"),\"X\",IF(AND(OR('1. Checklist & Certification'!$M$20=4,'1. Checklist & Certification'!$M$21=5,'1. Checklist & Certification'!$M$22=7),AO137>0,B137=\"\",I137>0,K137<I137),\"X\",\"\"))","v":""},{"$f":"IF(A137=\"\",\"\",IF(SUMPRODUCT(-- (ISNUMBER(SEARCH({\"*AHSC*\",\"*FMTW*\",\"*FWHG*\",\"*GHI*\",\"*HHC*\",\"*HLCP*\",\"*HOME*\",\"*LPR*\",\"*MHP*\",\"*NHTF*\",\"*NSP*\",\"*PRP*\",\"*TOD*\",\"*VHHP*\"},'1. Checklist & Certification'!$L$7)))),\"MHP\",\"Legacy\"))","v":""},",,",null,null,null,{"$f":"IF('1. Checklist & Certification'!$M$20=4,\"Both\",IF(OR('1. Checklist & Certification'!$M$15>0,S137=\"CHRP-R\",U137=\"CHRP-R\",W137=\"CHRP-R\",Y137=\"CHRP-R\"),\"Under\",\"No\"))","v":"No"},"No","No",{"$f":"_xlfn.IFS(D137=\"\",\"\",D137=1,'MHP Family Income & Rent Limits'!$E$17,D137=2,'MHP Family Income & Rent Limits'!$F$17,D137=3,'MHP Family Income & Rent Limits'!$G$17,D137=4,'MHP Family Income & Rent Limits'!$H$17,D137=5,'MHP Family Income & Rent Limits'!$I$17,D137=6,'MHP Family Income & Rent Limits'!$J$17,D137=7,'MHP Family Income & Rent Limits'!$K$17,D137=8,'MHP Family Income & Rent Limits'!$L$17)","v":""},"",{"$f":"IF(OR(A137=0,B137=\"X\"),0,MIN(IF(AA137:AD137<>0,AA137:AD137)))","v":0},{"$f":"IF(OR(H137=\"\",I137=\"\"),0,IF(H137*0.3/12>I137,MIN(H137*0.3/12,I137*1.1)+AP137,I137*(1+(VLOOKUP('1. Checklist & Certification'!$F$9,'HLCP-E Rent Change'!$A$1:$D$59,4,FALSE)))+AP137))","v":0}]
[null,null,null,null,null,null,null,null,null,null,null,null,null,null,null,null,null,null,null,null,null,null,null,null,null,null,0,0,0,0,0,0,0,0,{"$f":"IF(OR(A138=0,B138=\"X\"),0,IF(OR(S138=\"FHDP\",S138=\"RHCP-B\",U138=\"FHDP\",U138=\"RHCP-B\",W138=\"FHDP\",W138=\"RHCP-B\",Y138=\"FHDP\",Y138=\"RHCP-B\"),TRUNC((MIN(I138,K138)*(1+'1. Checklist & Certification'!$K$43)+AP138)),0))","v":0},{"$f":"IF(OR(A138=0,B138=\"X\"),0,IF(OR(S138=\"CHRP-R\",S138=\"SERA\",S138=\"SUHRP\",U138=\"CHRP-R\",U138=\"SERA\",U138=\"SUHRP\",W138=\"CHRP-R\",W138=\"SERA\",W138=\"SUHRP\",Y138=\"CHRP-R\",Y138=\"SERA\",Y138=\"SUHRP\"),TRUNC((MIN(I138,K138)*(1+'1. Checklist & Certification'!$K$49))),0))","v":0},{"$f":"IF(OR(A138=0,B138=\"X\"),0,IF(OR(S138=\"CALDAP\",S138=\"DPRLP\",U138=\"CALDAP\",U138=\"DPRLP\",W138=\"CALDAP\",W138=\"DPRLP\",Y138=\"CALDAP\",Y138=\"DPRLP\"),TRUNC(((MIN(I138,K138))*(1+'1. Checklist & Certification'!$G$4))),0))","v":0},0,0,0,{"$f":"IF(OR(A138=0,B138=\"X\"),0,IF(OR(S138=\"PRP\",S138=\"LPR\",U138=\"PRP\",U138=\"LPR\",W138=\"PRP\",W138=\"LPR\",Y138=\"PRP\",Y138=\"LPR\"),MAX(I138+AP138,MIN(IF(AE138:AN138<>0,AE138:AN138))),MIN(IF(AE138:AN138<>0,AE138:AN138))))","v":0},{"$f":"IF(A138=0,0,IF(AND(OR(S138=\"Mgr\",S138=0),OR(U138=\"Mgr\",U138=0),OR(W138=\"Mgr\",W138=0)),0,IF(LEFT($A138,2)=\"B*\",VLOOKUP($E138,'1. Checklist & Certification'!$D$26:$E$32,2),IF(LEFT($A138,2)=\"C*\",VLOOKUP($E138,'1. Checklist & Certification'!$F$26:$G$32,2),IF(LEFT($A138,2)=\"D*\",VLOOKUP($E138,'1. Checklist & Certification'!$H$26:$I$32,2),IF(LEFT($A138,2)=\"E*\",VLOOKUP($E138,'1. Checklist & Certification'!$J$26:$K$32,2),VLOOKUP($E138,'1. Checklist & Certification'!$A$26:$B$32,2)))))))","v":0},0,0,null,null,null,null,"","",0,0,0,null,{"$f":"IF(A138=\"\",\"\",'1. Checklist & Certification'!$K$1)","v":""},{"$f":"IF(A138=\"\",\"\",'1. Checklist & Certification'!$C$62)","v":""},{"$f":"IF(A138=\"\",\"\",'1. Checklist & Certification'!$C$6)","v":""},{"$f":"IF(A138=\"\",\"\",'1. Checklist & Certification'!$G$5)","v":""},{"$f":"IFERROR(IF(A138=\"\",\"\",\n_xlfn.LET(_xlpm.Contract,'1. Checklist & Certification'!$C$7,\n_xlpm.Yr,TEXT(MOD(_xlfn.TEXTBEFORE(_xlpm.Contract,\"-\"),100),\"00\"),\n_xlpm.Program,_xlfn.TEXTAFTER(_xlfn.TEXTBEFORE(_xlpm.Contract,\"-\",2),\"-\"),\n_xlpm.CleanProgram,_xlfn.XLOOKUP(_xlpm.Program,SpellCheck[Input],SpellCheck[Correction],_xlpm.Program),\n_xlpm.Number,TEXT(_xlfn.TEXTAFTER(_xlpm.Contract,\"-\",2),\"0000\"),\n_xlfn.CONCAT(_xlpm.Yr,\"-\",_xlpm.CleanProgram,\"-\",_xlpm.Number))\n),\"\")","v":""},{"$f":"IFERROR(IF(A138=\"\",\"\",\n_xlfn.LET(_xlpm.Contract,'1. Checklist & Certification'!$C$8,\n_xlpm.Yr,TEXT(MOD(_xlfn.TEXTBEFORE(_xlpm.Contract,\"-\"),100),\"00\"),\n_xlpm.Program,_xlfn.TEXTAFTER(_xlfn.TEXTBEFORE(_xlpm.Contract,\"-\",2),\"-\"),\n_xlpm.CleanProgram,_xlfn.XLOOKUP(_xlpm.Program,SpellCheck[Input],SpellCheck[Correction],_xlpm.Program),\n_xlpm.Number,TEXT(_xlfn.TEXTAFTER(_xlpm.Contract,\"-\",2),\"0000\"),\n_xlfn.CONCAT(_xlpm.Yr,\"-\",_xlpm.CleanProgram,\"-\",_xlpm.Number))\n),\"\")","v":""},{"$f":"IFERROR(IF(A138=\"\",\"\",\n_xlfn.LET(_xlpm.Contract,'1. Checklist & Certification'!$F$7,\n_xlpm.Yr,TEXT(MOD(_xlfn.TEXTBEFORE(_xlpm.Contract,\"-\"),100),\"00\"),\n_xlpm.Program,_xlfn.TEXTAFTER(_xlfn.TEXTBEFORE(_xlpm.Contract,\"-\",2),\"-\"),\n_xlpm.CleanProgram,_xlfn.XLOOKUP(_xlpm.Program,SpellCheck[Input],SpellCheck[Correction],_xlpm.Program),\n_xlpm.Number,TEXT(_xlfn.TEXTAFTER(_xlpm.Contract,\"-\",2),\"0000\"),\n_xlfn.CONCAT(_xlpm.Yr,\"-\",_xlpm.CleanProgram,\"-\",_xlpm.Number))\n),\"\")","v":""},{"$f":"IFERROR(IF(A138=\"\",\"\",\n_xlfn.LET(_xlpm.Contract,'1. Checklist & Certification'!$F$8,\n_xlpm.Yr,TEXT(MOD(_xlfn.TEXTBEFORE(_xlpm.Contract,\"-\"),100),\"00\"),\n_xlpm.Program,_xlfn.TEXTAFTER(_xlfn.TEXTBEFORE(_xlpm.Contract,\"-\",2),\"-\"),\n_xlpm.CleanProgram,_xlfn.XLOOKUP(_xlpm.Program,SpellCheck[Input],SpellCheck[Correction],_xlpm.Program),\n_xlpm.Number,TEXT(_xlfn.TEXTAFTER(_xlpm.Contract,\"-\",2),\"0000\"),\n_xlfn.CONCAT(_xlpm.Yr,\"-\",_xlpm.CleanProgram,\"-\",_xlpm.Number))\n),\"\")","v":""},{"$f":"IF(A138=\"\",\"\",'1. Checklist & Certification'!$B$9)","v":""},{"$f":"IF(A138=\"\",\"\",'1. Checklist & Certification'!$F$9)","v":""},{"$f":"IF(A138=\"\",\"\",'1. Checklist & Certification'!$C$10)","v":""},{"$f":"IF(A138=\"\",\"\",'1. Checklist & Certification'!$C$11)","v":""},{"$f":"IF(A138=\"\",\"\",'1. Checklist & Certification'!$C$12)","v":""},{"$f":"IF(A138=\"\",\"\",'1. Checklist & Certification'!$B$14)","v":""},{"$f":"IF(A138=\"\",\"\",'1. Checklist & Certification'!$E$14)","v":""},{"$f":"IF(B138=\"\",\"\",'1. Checklist & Certification'!$G$14)","v":""},{"$f":"IF(A138=\"\",\"\",'MHP Family Income & Rent Limits'!$B$3)","v":""},{"$f":"IF(A138=\"\",\"\",'MHP Family Income & Rent Limits'!$J$3)","v":""},{"$f":"IF(A138=\"\",\"\",'MHP Family Income & Rent Limits'!$E$4)","v":""},{"$f":"IF(A138=\"\",\"\",'MHP Family Income & Rent Limits'!$C$7)","v":""},{"$f":"IF(A138=\"\",\"\",'MHP Family Income & Rent Limits'!$F$8)","v":""},{"$f":"IF(A138=\"\",\"\",'1. Checklist & Certification'!$G$4)","v":""},{"$f":"IF(A138=\"\",\"\",'1. Checklist & Certification'!$K$39)","v":""},{"$f":"IF(A138=\"\",\"\",'1. Checklist & Certification'!$K$43)","v":""},{"$f":"IF(A138=\"\",\"\",'1. Checklist & Certification'!$K$45)","v":""},{"$f":"IF(A138=\"\",\"\",'1. Checklist & Certification'!$K$49)","v":""},{"$f":"IF(A138=\"\",\"\",'1. Checklist & Certification'!$K$62)","v":""},{"$f":"IF(A138=\"\",\"\",'1. Checklist & Certification'!$E$66)","v":""},{"$f":"IF(A138=\"\",\"\",'1. Checklist & Certification'!$E$67)","v":""},{"$f":"IF(A138=\"\",\"\",'1. Checklist & Certification'!$E$68)","v":""},{"$f":"IF(A138=\"\",\"\",'1. Checklist & Certification'!$G$66)","v":""},{"$f":"IF(A138=\"\",\"\",'1. Checklist & Certification'!$H$66)","v":""},{"$f":"IF(A138=\"\",\"\",'1. Checklist & Certification'!$I$66)","v":""},{"$f":"IF(A138=\"\",\"\",'1. Checklist & Certification'!$I$67)","v":""},{"$f":"IF(A138=\"\",\"\",'1. Checklist & Certification'!$I$68)","v":""},{"$f":"IF(A138=\"\",\"\",'1. Checklist & Certification'!$B$69)","v":""},{"$f":"IF(A138=\"\",\"\",'1. Checklist & Certification'!$C$69)","v":""},{"$f":"IF(A138=\"\",\"\",'1. Checklist & Certification'!$F$69)","v":""},{"$f":"IF(A138=\"\",\"\",'1. Checklist & Certification'!$G$69)","v":""},{"$f":"IF(A138=\"\",\"\",'1. Checklist & Certification'!$J$69)","v":""},{"$f":"IF(A138=\"\",\"\",'1. Checklist & Certification'!$K$69)","v":""},null,null,{"$f":"IF(AND(OR('1. Checklist & Certification'!$M$16=1,'1. Checklist & Certification'!$M$19=2),AO138>0,B138=\"\",I138>0,AQ138<I138,AV138<>\"Sec 8-Project\"),\"X\",IF(AND(OR('1. Checklist & Certification'!$M$20=4,'1. Checklist & Certification'!$M$21=5,'1. Checklist & Certification'!$M$22=7),AO138>0,B138=\"\",I138>0,K138<I138),\"X\",\"\"))","v":""},{"$f":"IF(A138=\"\",\"\",IF(SUMPRODUCT(-- (ISNUMBER(SEARCH({\"*AHSC*\",\"*FMTW*\",\"*FWHG*\",\"*GHI*\",\"*HHC*\",\"*HLCP*\",\"*HOME*\",\"*LPR*\",\"*MHP*\",\"*NHTF*\",\"*NSP*\",\"*PRP*\",\"*TOD*\",\"*VHHP*\"},'1. Checklist & Certification'!$L$7)))),\"MHP\",\"Legacy\"))","v":""},",,",null,null,null,{"$f":"IF('1. Checklist & Certification'!$M$20=4,\"Both\",IF(OR('1. Checklist & Certification'!$M$15>0,S138=\"CHRP-R\",U138=\"CHRP-R\",W138=\"CHRP-R\",Y138=\"CHRP-R\"),\"Under\",\"No\"))","v":"No"},"No","No",{"$f":"_xlfn.IFS(D138=\"\",\"\",D138=1,'MHP Family Income & Rent Limits'!$E$17,D138=2,'MHP Family Income & Rent Limits'!$F$17,D138=3,'MHP Family Income & Rent Limits'!$G$17,D138=4,'MHP Family Income & Rent Limits'!$H$17,D138=5,'MHP Family Income & Rent Limits'!$I$17,D138=6,'MHP Family Income & Rent Limits'!$J$17,D138=7,'MHP Family Income & Rent Limits'!$K$17,D138=8,'MHP Family Income & Rent Limits'!$L$17)","v":""},"",{"$f":"IF(OR(A138=0,B138=\"X\"),0,MIN(IF(AA138:AD138<>0,AA138:AD138)))","v":0},{"$f":"IF(OR(H138=\"\",I138=\"\"),0,IF(H138*0.3/12>I138,MIN(H138*0.3/12,I138*1.1)+AP138,I138*(1+(VLOOKUP('1. Checklist & Certification'!$F$9,'HLCP-E Rent Change'!$A$1:$D$59,4,FALSE)))+AP138))","v":0}]
[null,null,null,null,null,null,null,null,null,null,null,null,null,null,null,null,null,null,null,null,null,null,null,null,null,null,0,0,0,0,0,0,0,0,{"$f":"IF(OR(A139=0,B139=\"X\"),0,IF(OR(S139=\"FHDP\",S139=\"RHCP-B\",U139=\"FHDP\",U139=\"RHCP-B\",W139=\"FHDP\",W139=\"RHCP-B\",Y139=\"FHDP\",Y139=\"RHCP-B\"),TRUNC((MIN(I139,K139)*(1+'1. Checklist & Certification'!$K$43)+AP139)),0))","v":0},{"$f":"IF(OR(A139=0,B139=\"X\"),0,IF(OR(S139=\"CHRP-R\",S139=\"SERA\",S139=\"SUHRP\",U139=\"CHRP-R\",U139=\"SERA\",U139=\"SUHRP\",W139=\"CHRP-R\",W139=\"SERA\",W139=\"SUHRP\",Y139=\"CHRP-R\",Y139=\"SERA\",Y139=\"SUHRP\"),TRUNC((MIN(I139,K139)*(1+'1. Checklist & Certification'!$K$49))),0))","v":0},{"$f":"IF(OR(A139=0,B139=\"X\"),0,IF(OR(S139=\"CALDAP\",S139=\"DPRLP\",U139=\"CALDAP\",U139=\"DPRLP\",W139=\"CALDAP\",W139=\"DPRLP\",Y139=\"CALDAP\",Y139=\"DPRLP\"),TRUNC(((MIN(I139,K139))*(1+'1. Checklist & Certification'!$G$4))),0))","v":0},0,0,0,{"$f":"IF(OR(A139=0,B139=\"X\"),0,IF(OR(S139=\"PRP\",S139=\"LPR\",U139=\"PRP\",U139=\"LPR\",W139=\"PRP\",W139=\"LPR\",Y139=\"PRP\",Y139=\"LPR\"),MAX(I139+AP139,MIN(IF(AE139:AN139<>0,AE139:AN139))),MIN(IF(AE139:AN139<>0,AE139:AN139))))","v":0},{"$f":"IF(A139=0,0,IF(AND(OR(S139=\"Mgr\",S139=0),OR(U139=\"Mgr\",U139=0),OR(W139=\"Mgr\",W139=0)),0,IF(LEFT($A139,2)=\"B*\",VLOOKUP($E139,'1. Checklist & Certification'!$D$26:$E$32,2),IF(LEFT($A139,2)=\"C*\",VLOOKUP($E139,'1. Checklist & Certification'!$F$26:$G$32,2),IF(LEFT($A139,2)=\"D*\",VLOOKUP($E139,'1. Checklist & Certification'!$H$26:$I$32,2),IF(LEFT($A139,2)=\"E*\",VLOOKUP($E139,'1. Checklist & Certification'!$J$26:$K$32,2),VLOOKUP($E139,'1. Checklist & Certification'!$A$26:$B$32,2)))))))","v":0},0,0,null,null,null,null,"","",0,0,0,null,{"$f":"IF(A139=\"\",\"\",'1. Checklist & Certification'!$K$1)","v":""},{"$f":"IF(A139=\"\",\"\",'1. Checklist & Certification'!$C$62)","v":""},{"$f":"IF(A139=\"\",\"\",'1. Checklist & Certification'!$C$6)","v":""},{"$f":"IF(A139=\"\",\"\",'1. Checklist & Certification'!$G$5)","v":""},{"$f":"IFERROR(IF(A139=\"\",\"\",\n_xlfn.LET(_xlpm.Contract,'1. Checklist & Certification'!$C$7,\n_xlpm.Yr,TEXT(MOD(_xlfn.TEXTBEFORE(_xlpm.Contract,\"-\"),100),\"00\"),\n_xlpm.Program,_xlfn.TEXTAFTER(_xlfn.TEXTBEFORE(_xlpm.Contract,\"-\",2),\"-\"),\n_xlpm.CleanProgram,_xlfn.XLOOKUP(_xlpm.Program,SpellCheck[Input],SpellCheck[Correction],_xlpm.Program),\n_xlpm.Number,TEXT(_xlfn.TEXTAFTER(_xlpm.Contract,\"-\",2),\"0000\"),\n_xlfn.CONCAT(_xlpm.Yr,\"-\",_xlpm.CleanProgram,\"-\",_xlpm.Number))\n),\"\")","v":""},{"$f":"IFERROR(IF(A139=\"\",\"\",\n_xlfn.LET(_xlpm.Contract,'1. Checklist & Certification'!$C$8,\n_xlpm.Yr,TEXT(MOD(_xlfn.TEXTBEFORE(_xlpm.Contract,\"-\"),100),\"00\"),\n_xlpm.Program,_xlfn.TEXTAFTER(_xlfn.TEXTBEFORE(_xlpm.Contract,\"-\",2),\"-\"),\n_xlpm.CleanProgram,_xlfn.XLOOKUP(_xlpm.Program,SpellCheck[Input],SpellCheck[Correction],_xlpm.Program),\n_xlpm.Number,TEXT(_xlfn.TEXTAFTER(_xlpm.Contract,\"-\",2),\"0000\"),\n_xlfn.CONCAT(_xlpm.Yr,\"-\",_xlpm.CleanProgram,\"-\",_xlpm.Number))\n),\"\")","v":""},{"$f":"IFERROR(IF(A139=\"\",\"\",\n_xlfn.LET(_xlpm.Contract,'1. Checklist & Certification'!$F$7,\n_xlpm.Yr,TEXT(MOD(_xlfn.TEXTBEFORE(_xlpm.Contract,\"-\"),100),\"00\"),\n_xlpm.Program,_xlfn.TEXTAFTER(_xlfn.TEXTBEFORE(_xlpm.Contract,\"-\",2),\"-\"),\n_xlpm.CleanProgram,_xlfn.XLOOKUP(_xlpm.Program,SpellCheck[Input],SpellCheck[Correction],_xlpm.Program),\n_xlpm.Number,TEXT(_xlfn.TEXTAFTER(_xlpm.Contract,\"-\",2),\"0000\"),\n_xlfn.CONCAT(_xlpm.Yr,\"-\",_xlpm.CleanProgram,\"-\",_xlpm.Number))\n),\"\")","v":""},{"$f":"IFERROR(IF(A139=\"\",\"\",\n_xlfn.LET(_xlpm.Contract,'1. Checklist & Certification'!$F$8,\n_xlpm.Yr,TEXT(MOD(_xlfn.TEXTBEFORE(_xlpm.Contract,\"-\"),100),\"00\"),\n_xlpm.Program,_xlfn.TEXTAFTER(_xlfn.TEXTBEFORE(_xlpm.Contract,\"-\",2),\"-\"),\n_xlpm.CleanProgram,_xlfn.XLOOKUP(_xlpm.Program,SpellCheck[Input],SpellCheck[Correction],_xlpm.Program),\n_xlpm.Number,TEXT(_xlfn.TEXTAFTER(_xlpm.Contract,\"-\",2),\"0000\"),\n_xlfn.CONCAT(_xlpm.Yr,\"-\",_xlpm.CleanProgram,\"-\",_xlpm.Number))\n),\"\")","v":""},{"$f":"IF(A139=\"\",\"\",'1. Checklist & Certification'!$B$9)","v":""},{"$f":"IF(A139=\"\",\"\",'1. Checklist & Certification'!$F$9)","v":""},{"$f":"IF(A139=\"\",\"\",'1. Checklist & Certification'!$C$10)","v":""},{"$f":"IF(A139=\"\",\"\",'1. Checklist & Certification'!$C$11)","v":""},{"$f":"IF(A139=\"\",\"\",'1. Checklist & Certification'!$C$12)","v":""},{"$f":"IF(A139=\"\",\"\",'1. Checklist & Certification'!$B$14)","v":""},{"$f":"IF(A139=\"\",\"\",'1. Checklist & Certification'!$E$14)","v":""},{"$f":"IF(B139=\"\",\"\",'1. Checklist & Certification'!$G$14)","v":""},{"$f":"IF(A139=\"\",\"\",'MHP Family Income & Rent Limits'!$B$3)","v":""},{"$f":"IF(A139=\"\",\"\",'MHP Family Income & Rent Limits'!$J$3)","v":""},{"$f":"IF(A139=\"\",\"\",'MHP Family Income & Rent Limits'!$E$4)","v":""},{"$f":"IF(A139=\"\",\"\",'MHP Family Income & Rent Limits'!$C$7)","v":""},{"$f":"IF(A139=\"\",\"\",'MHP Family Income & Rent Limits'!$F$8)","v":""},{"$f":"IF(A139=\"\",\"\",'1. Checklist & Certification'!$G$4)","v":""},{"$f":"IF(A139=\"\",\"\",'1. Checklist & Certification'!$K$39)","v":""},{"$f":"IF(A139=\"\",\"\",'1. Checklist & Certification'!$K$43)","v":""},{"$f":"IF(A139=\"\",\"\",'1. Checklist & Certification'!$K$45)","v":""},{"$f":"IF(A139=\"\",\"\",'1. Checklist & Certification'!$K$49)","v":""},{"$f":"IF(A139=\"\",\"\",'1. Checklist & Certification'!$K$62)","v":""},{"$f":"IF(A139=\"\",\"\",'1. Checklist & Certification'!$E$66)","v":""},{"$f":"IF(A139=\"\",\"\",'1. Checklist & Certification'!$E$67)","v":""},{"$f":"IF(A139=\"\",\"\",'1. Checklist & Certification'!$E$68)","v":""},{"$f":"IF(A139=\"\",\"\",'1. Checklist & Certification'!$G$66)","v":""},{"$f":"IF(A139=\"\",\"\",'1. Checklist & Certification'!$H$66)","v":""},{"$f":"IF(A139=\"\",\"\",'1. Checklist & Certification'!$I$66)","v":""},{"$f":"IF(A139=\"\",\"\",'1. Checklist & Certification'!$I$67)","v":""},{"$f":"IF(A139=\"\",\"\",'1. Checklist & Certification'!$I$68)","v":""},{"$f":"IF(A139=\"\",\"\",'1. Checklist & Certification'!$B$69)","v":""},{"$f":"IF(A139=\"\",\"\",'1. Checklist & Certification'!$C$69)","v":""},{"$f":"IF(A139=\"\",\"\",'1. Checklist & Certification'!$F$69)","v":""},{"$f":"IF(A139=\"\",\"\",'1. Checklist & Certification'!$G$69)","v":""},{"$f":"IF(A139=\"\",\"\",'1. Checklist & Certification'!$J$69)","v":""},{"$f":"IF(A139=\"\",\"\",'1. Checklist & Certification'!$K$69)","v":""},null,null,{"$f":"IF(AND(OR('1. Checklist & Certification'!$M$16=1,'1. Checklist & Certification'!$M$19=2),AO139>0,B139=\"\",I139>0,AQ139<I139,AV139<>\"Sec 8-Project\"),\"X\",IF(AND(OR('1. Checklist & Certification'!$M$20=4,'1. Checklist & Certification'!$M$21=5,'1. Checklist & Certification'!$M$22=7),AO139>0,B139=\"\",I139>0,K139<I139),\"X\",\"\"))","v":""},{"$f":"IF(A139=\"\",\"\",IF(SUMPRODUCT(-- (ISNUMBER(SEARCH({\"*AHSC*\",\"*FMTW*\",\"*FWHG*\",\"*GHI*\",\"*HHC*\",\"*HLCP*\",\"*HOME*\",\"*LPR*\",\"*MHP*\",\"*NHTF*\",\"*NSP*\",\"*PRP*\",\"*TOD*\",\"*VHHP*\"},'1. Checklist & Certification'!$L$7)))),\"MHP\",\"Legacy\"))","v":""},",,",null,null,null,{"$f":"IF('1. Checklist & Certification'!$M$20=4,\"Both\",IF(OR('1. Checklist & Certification'!$M$15>0,S139=\"CHRP-R\",U139=\"CHRP-R\",W139=\"CHRP-R\",Y139=\"CHRP-R\"),\"Under\",\"No\"))","v":"No"},"No","No",{"$f":"_xlfn.IFS(D139=\"\",\"\",D139=1,'MHP Family Income & Rent Limits'!$E$17,D139=2,'MHP Family Income & Rent Limits'!$F$17,D139=3,'MHP Family Income & Rent Limits'!$G$17,D139=4,'MHP Family Income & Rent Limits'!$H$17,D139=5,'MHP Family Income & Rent Limits'!$I$17,D139=6,'MHP Family Income & Rent Limits'!$J$17,D139=7,'MHP Family Income & Rent Limits'!$K$17,D139=8,'MHP Family Income & Rent Limits'!$L$17)","v":""},"",{"$f":"IF(OR(A139=0,B139=\"X\"),0,MIN(IF(AA139:AD139<>0,AA139:AD139)))","v":0},{"$f":"IF(OR(H139=\"\",I139=\"\"),0,IF(H139*0.3/12>I139,MIN(H139*0.3/12,I139*1.1)+AP139,I139*(1+(VLOOKUP('1. Checklist & Certification'!$F$9,'HLCP-E Rent Change'!$A$1:$D$59,4,FALSE)))+AP139))","v":0}]
[null,null,null,null,null,null,null,null,null,null,null,null,null,null,null,null,null,null,null,null,null,null,null,null,null,null,0,0,0,0,0,0,0,0,{"$f":"IF(OR(A140=0,B140=\"X\"),0,IF(OR(S140=\"FHDP\",S140=\"RHCP-B\",U140=\"FHDP\",U140=\"RHCP-B\",W140=\"FHDP\",W140=\"RHCP-B\",Y140=\"FHDP\",Y140=\"RHCP-B\"),TRUNC((MIN(I140,K140)*(1+'1. Checklist & Certification'!$K$43)+AP140)),0))","v":0},{"$f":"IF(OR(A140=0,B140=\"X\"),0,IF(OR(S140=\"CHRP-R\",S140=\"SERA\",S140=\"SUHRP\",U140=\"CHRP-R\",U140=\"SERA\",U140=\"SUHRP\",W140=\"CHRP-R\",W140=\"SERA\",W140=\"SUHRP\",Y140=\"CHRP-R\",Y140=\"SERA\",Y140=\"SUHRP\"),TRUNC((MIN(I140,K140)*(1+'1. Checklist & Certification'!$K$49))),0))","v":0},{"$f":"IF(OR(A140=0,B140=\"X\"),0,IF(OR(S140=\"CALDAP\",S140=\"DPRLP\",U140=\"CALDAP\",U140=\"DPRLP\",W140=\"CALDAP\",W140=\"DPRLP\",Y140=\"CALDAP\",Y140=\"DPRLP\"),TRUNC(((MIN(I140,K140))*(1+'1. Checklist & Certification'!$G$4))),0))","v":0},0,0,0,{"$f":"IF(OR(A140=0,B140=\"X\"),0,IF(OR(S140=\"PRP\",S140=\"LPR\",U140=\"PRP\",U140=\"LPR\",W140=\"PRP\",W140=\"LPR\",Y140=\"PRP\",Y140=\"LPR\"),MAX(I140+AP140,MIN(IF(AE140:AN140<>0,AE140:AN140))),MIN(IF(AE140:AN140<>0,AE140:AN140))))","v":0},{"$f":"IF(A140=0,0,IF(AND(OR(S140=\"Mgr\",S140=0),OR(U140=\"Mgr\",U140=0),OR(W140=\"Mgr\",W140=0)),0,IF(LEFT($A140,2)=\"B*\",VLOOKUP($E140,'1. Checklist & Certification'!$D$26:$E$32,2),IF(LEFT($A140,2)=\"C*\",VLOOKUP($E140,'1. Checklist & Certification'!$F$26:$G$32,2),IF(LEFT($A140,2)=\"D*\",VLOOKUP($E140,'1. Checklist & Certification'!$H$26:$I$32,2),IF(LEFT($A140,2)=\"E*\",VLOOKUP($E140,'1. Checklist & Certification'!$J$26:$K$32,2),VLOOKUP($E140,'1. Checklist & Certification'!$A$26:$B$32,2)))))))","v":0},0,0,null,null,null,null,"","",0,0,0,null,{"$f":"IF(A140=\"\",\"\",'1. Checklist & Certification'!$K$1)","v":""},{"$f":"IF(A140=\"\",\"\",'1. Checklist & Certification'!$C$62)","v":""},{"$f":"IF(A140=\"\",\"\",'1. Checklist & Certification'!$C$6)","v":""},{"$f":"IF(A140=\"\",\"\",'1. Checklist & Certification'!$G$5)","v":""},{"$f":"IFERROR(IF(A140=\"\",\"\",\n_xlfn.LET(_xlpm.Contract,'1. Checklist & Certification'!$C$7,\n_xlpm.Yr,TEXT(MOD(_xlfn.TEXTBEFORE(_xlpm.Contract,\"-\"),100),\"00\"),\n_xlpm.Program,_xlfn.TEXTAFTER(_xlfn.TEXTBEFORE(_xlpm.Contract,\"-\",2),\"-\"),\n_xlpm.CleanProgram,_xlfn.XLOOKUP(_xlpm.Program,SpellCheck[Input],SpellCheck[Correction],_xlpm.Program),\n_xlpm.Number,TEXT(_xlfn.TEXTAFTER(_xlpm.Contract,\"-\",2),\"0000\"),\n_xlfn.CONCAT(_xlpm.Yr,\"-\",_xlpm.CleanProgram,\"-\",_xlpm.Number))\n),\"\")","v":""},{"$f":"IFERROR(IF(A140=\"\",\"\",\n_xlfn.LET(_xlpm.Contract,'1. Checklist & Certification'!$C$8,\n_xlpm.Yr,TEXT(MOD(_xlfn.TEXTBEFORE(_xlpm.Contract,\"-\"),100),\"00\"),\n_xlpm.Program,_xlfn.TEXTAFTER(_xlfn.TEXTBEFORE(_xlpm.Contract,\"-\",2),\"-\"),\n_xlpm.CleanProgram,_xlfn.XLOOKUP(_xlpm.Program,SpellCheck[Input],SpellCheck[Correction],_xlpm.Program),\n_xlpm.Number,TEXT(_xlfn.TEXTAFTER(_xlpm.Contract,\"-\",2),\"0000\"),\n_xlfn.CONCAT(_xlpm.Yr,\"-\",_xlpm.CleanProgram,\"-\",_xlpm.Number))\n),\"\")","v":""},{"$f":"IFERROR(IF(A140=\"\",\"\",\n_xlfn.LET(_xlpm.Contract,'1. Checklist & Certification'!$F$7,\n_xlpm.Yr,TEXT(MOD(_xlfn.TEXTBEFORE(_xlpm.Contract,\"-\"),100),\"00\"),\n_xlpm.Program,_xlfn.TEXTAFTER(_xlfn.TEXTBEFORE(_xlpm.Contract,\"-\",2),\"-\"),\n_xlpm.CleanProgram,_xlfn.XLOOKUP(_xlpm.Program,SpellCheck[Input],SpellCheck[Correction],_xlpm.Program),\n_xlpm.Number,TEXT(_xlfn.TEXTAFTER(_xlpm.Contract,\"-\",2),\"0000\"),\n_xlfn.CONCAT(_xlpm.Yr,\"-\",_xlpm.CleanProgram,\"-\",_xlpm.Number))\n),\"\")","v":""},{"$f":"IFERROR(IF(A140=\"\",\"\",\n_xlfn.LET(_xlpm.Contract,'1. Checklist & Certification'!$F$8,\n_xlpm.Yr,TEXT(MOD(_xlfn.TEXTBEFORE(_xlpm.Contract,\"-\"),100),\"00\"),\n_xlpm.Program,_xlfn.TEXTAFTER(_xlfn.TEXTBEFORE(_xlpm.Contract,\"-\",2),\"-\"),\n_xlpm.CleanProgram,_xlfn.XLOOKUP(_xlpm.Program,SpellCheck[Input],SpellCheck[Correction],_xlpm.Program),\n_xlpm.Number,TEXT(_xlfn.TEXTAFTER(_xlpm.Contract,\"-\",2),\"0000\"),\n_xlfn.CONCAT(_xlpm.Yr,\"-\",_xlpm.CleanProgram,\"-\",_xlpm.Number))\n),\"\")","v":""},{"$f":"IF(A140=\"\",\"\",'1. Checklist & Certification'!$B$9)","v":""},{"$f":"IF(A140=\"\",\"\",'1. Checklist & Certification'!$F$9)","v":""},{"$f":"IF(A140=\"\",\"\",'1. Checklist & Certification'!$C$10)","v":""},{"$f":"IF(A140=\"\",\"\",'1. Checklist & Certification'!$C$11)","v":""},{"$f":"IF(A140=\"\",\"\",'1. Checklist & Certification'!$C$12)","v":""},{"$f":"IF(A140=\"\",\"\",'1. Checklist & Certification'!$B$14)","v":""},{"$f":"IF(A140=\"\",\"\",'1. Checklist & Certification'!$E$14)","v":""},{"$f":"IF(B140=\"\",\"\",'1. Checklist & Certification'!$G$14)","v":""},{"$f":"IF(A140=\"\",\"\",'MHP Family Income & Rent Limits'!$B$3)","v":""},{"$f":"IF(A140=\"\",\"\",'MHP Family Income & Rent Limits'!$J$3)","v":""},{"$f":"IF(A140=\"\",\"\",'MHP Family Income & Rent Limits'!$E$4)","v":""},{"$f":"IF(A140=\"\",\"\",'MHP Family Income & Rent Limits'!$C$7)","v":""},{"$f":"IF(A140=\"\",\"\",'MHP Family Income & Rent Limits'!$F$8)","v":""},{"$f":"IF(A140=\"\",\"\",'1. Checklist & Certification'!$G$4)","v":""},{"$f":"IF(A140=\"\",\"\",'1. Checklist & Certification'!$K$39)","v":""},{"$f":"IF(A140=\"\",\"\",'1. Checklist & Certification'!$K$43)","v":""},{"$f":"IF(A140=\"\",\"\",'1. Checklist & Certification'!$K$45)","v":""},{"$f":"IF(A140=\"\",\"\",'1. Checklist & Certification'!$K$49)","v":""},{"$f":"IF(A140=\"\",\"\",'1. Checklist & Certification'!$K$62)","v":""},{"$f":"IF(A140=\"\",\"\",'1. Checklist & Certification'!$E$66)","v":""},{"$f":"IF(A140=\"\",\"\",'1. Checklist & Certification'!$E$67)","v":""},{"$f":"IF(A140=\"\",\"\",'1. Checklist & Certification'!$E$68)","v":""},{"$f":"IF(A140=\"\",\"\",'1. Checklist & Certification'!$G$66)","v":""},{"$f":"IF(A140=\"\",\"\",'1. Checklist & Certification'!$H$66)","v":""},{"$f":"IF(A140=\"\",\"\",'1. Checklist & Certification'!$I$66)","v":""},{"$f":"IF(A140=\"\",\"\",'1. Checklist & Certification'!$I$67)","v":""},{"$f":"IF(A140=\"\",\"\",'1. Checklist & Certification'!$I$68)","v":""},{"$f":"IF(A140=\"\",\"\",'1. Checklist & Certification'!$B$69)","v":""},{"$f":"IF(A140=\"\",\"\",'1. Checklist & Certification'!$C$69)","v":""},{"$f":"IF(A140=\"\",\"\",'1. Checklist & Certification'!$F$69)","v":""},{"$f":"IF(A140=\"\",\"\",'1. Checklist & Certification'!$G$69)","v":""},{"$f":"IF(A140=\"\",\"\",'1. Checklist & Certification'!$J$69)","v":""},{"$f":"IF(A140=\"\",\"\",'1. Checklist & Certification'!$K$69)","v":""},null,null,{"$f":"IF(AND(OR('1. Checklist & Certification'!$M$16=1,'1. Checklist & Certification'!$M$19=2),AO140>0,B140=\"\",I140>0,AQ140<I140,AV140<>\"Sec 8-Project\"),\"X\",IF(AND(OR('1. Checklist & Certification'!$M$20=4,'1. Checklist & Certification'!$M$21=5,'1. Checklist & Certification'!$M$22=7),AO140>0,B140=\"\",I140>0,K140<I140),\"X\",\"\"))","v":""},{"$f":"IF(A140=\"\",\"\",IF(SUMPRODUCT(-- (ISNUMBER(SEARCH({\"*AHSC*\",\"*FMTW*\",\"*FWHG*\",\"*GHI*\",\"*HHC*\",\"*HLCP*\",\"*HOME*\",\"*LPR*\",\"*MHP*\",\"*NHTF*\",\"*NSP*\",\"*PRP*\",\"*TOD*\",\"*VHHP*\"},'1. Checklist & Certification'!$L$7)))),\"MHP\",\"Legacy\"))","v":""},",,",null,null,null,{"$f":"IF('1. Checklist & Certification'!$M$20=4,\"Both\",IF(OR('1. Checklist & Certification'!$M$15>0,S140=\"CHRP-R\",U140=\"CHRP-R\",W140=\"CHRP-R\",Y140=\"CHRP-R\"),\"Under\",\"No\"))","v":"No"},"No","No",{"$f":"_xlfn.IFS(D140=\"\",\"\",D140=1,'MHP Family Income & Rent Limits'!$E$17,D140=2,'MHP Family Income & Rent Limits'!$F$17,D140=3,'MHP Family Income & Rent Limits'!$G$17,D140=4,'MHP Family Income & Rent Limits'!$H$17,D140=5,'MHP Family Income & Rent Limits'!$I$17,D140=6,'MHP Family Income & Rent Limits'!$J$17,D140=7,'MHP Family Income & Rent Limits'!$K$17,D140=8,'MHP Family Income & Rent Limits'!$L$17)","v":""},"",{"$f":"IF(OR(A140=0,B140=\"X\"),0,MIN(IF(AA140:AD140<>0,AA140:AD140)))","v":0},{"$f":"IF(OR(H140=\"\",I140=\"\"),0,IF(H140*0.3/12>I140,MIN(H140*0.3/12,I140*1.1)+AP140,I140*(1+(VLOOKUP('1. Checklist & Certification'!$F$9,'HLCP-E Rent Change'!$A$1:$D$59,4,FALSE)))+AP140))","v":0}]
[null,null,null,null,null,null,null,null,null,null,null,null,null,null,null,null,null,null,null,null,null,null,null,null,null,null,0,0,0,0,0,0,0,0,{"$f":"IF(OR(A141=0,B141=\"X\"),0,IF(OR(S141=\"FHDP\",S141=\"RHCP-B\",U141=\"FHDP\",U141=\"RHCP-B\",W141=\"FHDP\",W141=\"RHCP-B\",Y141=\"FHDP\",Y141=\"RHCP-B\"),TRUNC((MIN(I141,K141)*(1+'1. Checklist & Certification'!$K$43)+AP141)),0))","v":0},{"$f":"IF(OR(A141=0,B141=\"X\"),0,IF(OR(S141=\"CHRP-R\",S141=\"SERA\",S141=\"SUHRP\",U141=\"CHRP-R\",U141=\"SERA\",U141=\"SUHRP\",W141=\"CHRP-R\",W141=\"SERA\",W141=\"SUHRP\",Y141=\"CHRP-R\",Y141=\"SERA\",Y141=\"SUHRP\"),TRUNC((MIN(I141,K141)*(1+'1. Checklist & Certification'!$K$49))),0))","v":0},{"$f":"IF(OR(A141=0,B141=\"X\"),0,IF(OR(S141=\"CALDAP\",S141=\"DPRLP\",U141=\"CALDAP\",U141=\"DPRLP\",W141=\"CALDAP\",W141=\"DPRLP\",Y141=\"CALDAP\",Y141=\"DPRLP\"),TRUNC(((MIN(I141,K141))*(1+'1. Checklist & Certification'!$G$4))),0))","v":0},0,0,0,{"$f":"IF(OR(A141=0,B141=\"X\"),0,IF(OR(S141=\"PRP\",S141=\"LPR\",U141=\"PRP\",U141=\"LPR\",W141=\"PRP\",W141=\"LPR\",Y141=\"PRP\",Y141=\"LPR\"),MAX(I141+AP141,MIN(IF(AE141:AN141<>0,AE141:AN141))),MIN(IF(AE141:AN141<>0,AE141:AN141))))","v":0},{"$f":"IF(A141=0,0,IF(AND(OR(S141=\"Mgr\",S141=0),OR(U141=\"Mgr\",U141=0),OR(W141=\"Mgr\",W141=0)),0,IF(LEFT($A141,2)=\"B*\",VLOOKUP($E141,'1. Checklist & Certification'!$D$26:$E$32,2),IF(LEFT($A141,2)=\"C*\",VLOOKUP($E141,'1. Checklist & Certification'!$F$26:$G$32,2),IF(LEFT($A141,2)=\"D*\",VLOOKUP($E141,'1. Checklist & Certification'!$H$26:$I$32,2),IF(LEFT($A141,2)=\"E*\",VLOOKUP($E141,'1. Checklist & Certification'!$J$26:$K$32,2),VLOOKUP($E141,'1. Checklist & Certification'!$A$26:$B$32,2)))))))","v":0},0,0,null,null,null,null,"","",0,0,0,null,{"$f":"IF(A141=\"\",\"\",'1. Checklist & Certification'!$K$1)","v":""},{"$f":"IF(A141=\"\",\"\",'1. Checklist & Certification'!$C$62)","v":""},{"$f":"IF(A141=\"\",\"\",'1. Checklist & Certification'!$C$6)","v":""},{"$f":"IF(A141=\"\",\"\",'1. Checklist & Certification'!$G$5)","v":""},{"$f":"IFERROR(IF(A141=\"\",\"\",\n_xlfn.LET(_xlpm.Contract,'1. Checklist & Certification'!$C$7,\n_xlpm.Yr,TEXT(MOD(_xlfn.TEXTBEFORE(_xlpm.Contract,\"-\"),100),\"00\"),\n_xlpm.Program,_xlfn.TEXTAFTER(_xlfn.TEXTBEFORE(_xlpm.Contract,\"-\",2),\"-\"),\n_xlpm.CleanProgram,_xlfn.XLOOKUP(_xlpm.Program,SpellCheck[Input],SpellCheck[Correction],_xlpm.Program),\n_xlpm.Number,TEXT(_xlfn.TEXTAFTER(_xlpm.Contract,\"-\",2),\"0000\"),\n_xlfn.CONCAT(_xlpm.Yr,\"-\",_xlpm.CleanProgram,\"-\",_xlpm.Number))\n),\"\")","v":""},{"$f":"IFERROR(IF(A141=\"\",\"\",\n_xlfn.LET(_xlpm.Contract,'1. Checklist & Certification'!$C$8,\n_xlpm.Yr,TEXT(MOD(_xlfn.TEXTBEFORE(_xlpm.Contract,\"-\"),100),\"00\"),\n_xlpm.Program,_xlfn.TEXTAFTER(_xlfn.TEXTBEFORE(_xlpm.Contract,\"-\",2),\"-\"),\n_xlpm.CleanProgram,_xlfn.XLOOKUP(_xlpm.Program,SpellCheck[Input],SpellCheck[Correction],_xlpm.Program),\n_xlpm.Number,TEXT(_xlfn.TEXTAFTER(_xlpm.Contract,\"-\",2),\"0000\"),\n_xlfn.CONCAT(_xlpm.Yr,\"-\",_xlpm.CleanProgram,\"-\",_xlpm.Number))\n),\"\")","v":""},{"$f":"IFERROR(IF(A141=\"\",\"\",\n_xlfn.LET(_xlpm.Contract,'1. Checklist & Certification'!$F$7,\n_xlpm.Yr,TEXT(MOD(_xlfn.TEXTBEFORE(_xlpm.Contract,\"-\"),100),\"00\"),\n_xlpm.Program,_xlfn.TEXTAFTER(_xlfn.TEXTBEFORE(_xlpm.Contract,\"-\",2),\"-\"),\n_xlpm.CleanProgram,_xlfn.XLOOKUP(_xlpm.Program,SpellCheck[Input],SpellCheck[Correction],_xlpm.Program),\n_xlpm.Number,TEXT(_xlfn.TEXTAFTER(_xlpm.Contract,\"-\",2),\"0000\"),\n_xlfn.CONCAT(_xlpm.Yr,\"-\",_xlpm.CleanProgram,\"-\",_xlpm.Number))\n),\"\")","v":""},{"$f":"IFERROR(IF(A141=\"\",\"\",\n_xlfn.LET(_xlpm.Contract,'1. Checklist & Certification'!$F$8,\n_xlpm.Yr,TEXT(MOD(_xlfn.TEXTBEFORE(_xlpm.Contract,\"-\"),100),\"00\"),\n_xlpm.Program,_xlfn.TEXTAFTER(_xlfn.TEXTBEFORE(_xlpm.Contract,\"-\",2),\"-\"),\n_xlpm.CleanProgram,_xlfn.XLOOKUP(_xlpm.Program,SpellCheck[Input],SpellCheck[Correction],_xlpm.Program),\n_xlpm.Number,TEXT(_xlfn.TEXTAFTER(_xlpm.Contract,\"-\",2),\"0000\"),\n_xlfn.CONCAT(_xlpm.Yr,\"-\",_xlpm.CleanProgram,\"-\",_xlpm.Number))\n),\"\")","v":""},{"$f":"IF(A141=\"\",\"\",'1. Checklist & Certification'!$B$9)","v":""},{"$f":"IF(A141=\"\",\"\",'1. Checklist & Certification'!$F$9)","v":""},{"$f":"IF(A141=\"\",\"\",'1. Checklist & Certification'!$C$10)","v":""},{"$f":"IF(A141=\"\",\"\",'1. Checklist & Certification'!$C$11)","v":""},{"$f":"IF(A141=\"\",\"\",'1. Checklist & Certification'!$C$12)","v":""},{"$f":"IF(A141=\"\",\"\",'1. Checklist & Certification'!$B$14)","v":""},{"$f":"IF(A141=\"\",\"\",'1. Checklist & Certification'!$E$14)","v":""},{"$f":"IF(B141=\"\",\"\",'1. Checklist & Certification'!$G$14)","v":""},{"$f":"IF(A141=\"\",\"\",'MHP Family Income & Rent Limits'!$B$3)","v":""},{"$f":"IF(A141=\"\",\"\",'MHP Family Income & Rent Limits'!$J$3)","v":""},{"$f":"IF(A141=\"\",\"\",'MHP Family Income & Rent Limits'!$E$4)","v":""},{"$f":"IF(A141=\"\",\"\",'MHP Family Income & Rent Limits'!$C$7)","v":""},{"$f":"IF(A141=\"\",\"\",'MHP Family Income & Rent Limits'!$F$8)","v":""},{"$f":"IF(A141=\"\",\"\",'1. Checklist & Certification'!$G$4)","v":""},{"$f":"IF(A141=\"\",\"\",'1. Checklist & Certification'!$K$39)","v":""},{"$f":"IF(A141=\"\",\"\",'1. Checklist & Certification'!$K$43)","v":""},{"$f":"IF(A141=\"\",\"\",'1. Checklist & Certification'!$K$45)","v":""},{"$f":"IF(A141=\"\",\"\",'1. Checklist & Certification'!$K$49)","v":""},{"$f":"IF(A141=\"\",\"\",'1. Checklist & Certification'!$K$62)","v":""},{"$f":"IF(A141=\"\",\"\",'1. Checklist & Certification'!$E$66)","v":""},{"$f":"IF(A141=\"\",\"\",'1. Checklist & Certification'!$E$67)","v":""},{"$f":"IF(A141=\"\",\"\",'1. Checklist & Certification'!$E$68)","v":""},{"$f":"IF(A141=\"\",\"\",'1. Checklist & Certification'!$G$66)","v":""},{"$f":"IF(A141=\"\",\"\",'1. Checklist & Certification'!$H$66)","v":""},{"$f":"IF(A141=\"\",\"\",'1. Checklist & Certification'!$I$66)","v":""},{"$f":"IF(A141=\"\",\"\",'1. Checklist & Certification'!$I$67)","v":""},{"$f":"IF(A141=\"\",\"\",'1. Checklist & Certification'!$I$68)","v":""},{"$f":"IF(A141=\"\",\"\",'1. Checklist & Certification'!$B$69)","v":""},{"$f":"IF(A141=\"\",\"\",'1. Checklist & Certification'!$C$69)","v":""},{"$f":"IF(A141=\"\",\"\",'1. Checklist & Certification'!$F$69)","v":""},{"$f":"IF(A141=\"\",\"\",'1. Checklist & Certification'!$G$69)","v":""},{"$f":"IF(A141=\"\",\"\",'1. Checklist & Certification'!$J$69)","v":""},{"$f":"IF(A141=\"\",\"\",'1. Checklist & Certification'!$K$69)","v":""},null,null,{"$f":"IF(AND(OR('1. Checklist & Certification'!$M$16=1,'1. Checklist & Certification'!$M$19=2),AO141>0,B141=\"\",I141>0,AQ141<I141,AV141<>\"Sec 8-Project\"),\"X\",IF(AND(OR('1. Checklist & Certification'!$M$20=4,'1. Checklist & Certification'!$M$21=5,'1. Checklist & Certification'!$M$22=7),AO141>0,B141=\"\",I141>0,K141<I141),\"X\",\"\"))","v":""},{"$f":"IF(A141=\"\",\"\",IF(SUMPRODUCT(-- (ISNUMBER(SEARCH({\"*AHSC*\",\"*FMTW*\",\"*FWHG*\",\"*GHI*\",\"*HHC*\",\"*HLCP*\",\"*HOME*\",\"*LPR*\",\"*MHP*\",\"*NHTF*\",\"*NSP*\",\"*PRP*\",\"*TOD*\",\"*VHHP*\"},'1. Checklist & Certification'!$L$7)))),\"MHP\",\"Legacy\"))","v":""},",,",null,null,null,{"$f":"IF('1. Checklist & Certification'!$M$20=4,\"Both\",IF(OR('1. Checklist & Certification'!$M$15>0,S141=\"CHRP-R\",U141=\"CHRP-R\",W141=\"CHRP-R\",Y141=\"CHRP-R\"),\"Under\",\"No\"))","v":"No"},"No","No",{"$f":"_xlfn.IFS(D141=\"\",\"\",D141=1,'MHP Family Income & Rent Limits'!$E$17,D141=2,'MHP Family Income & Rent Limits'!$F$17,D141=3,'MHP Family Income & Rent Limits'!$G$17,D141=4,'MHP Family Income & Rent Limits'!$H$17,D141=5,'MHP Family Income & Rent Limits'!$I$17,D141=6,'MHP Family Income & Rent Limits'!$J$17,D141=7,'MHP Family Income & Rent Limits'!$K$17,D141=8,'MHP Family Income & Rent Limits'!$L$17)","v":""},"",{"$f":"IF(OR(A141=0,B141=\"X\"),0,MIN(IF(AA141:AD141<>0,AA141:AD141)))","v":0},{"$f":"IF(OR(H141=\"\",I141=\"\"),0,IF(H141*0.3/12>I141,MIN(H141*0.3/12,I141*1.1)+AP141,I141*(1+(VLOOKUP('1. Checklist & Certification'!$F$9,'HLCP-E Rent Change'!$A$1:$D$59,4,FALSE)))+AP141))","v":0}]
[null,null,null,null,null,null,null,null,null,null,null,null,null,null,null,null,null,null,null,null,null,null,null,null,null,null,0,0,0,0,0,0,0,0,{"$f":"IF(OR(A142=0,B142=\"X\"),0,IF(OR(S142=\"FHDP\",S142=\"RHCP-B\",U142=\"FHDP\",U142=\"RHCP-B\",W142=\"FHDP\",W142=\"RHCP-B\",Y142=\"FHDP\",Y142=\"RHCP-B\"),TRUNC((MIN(I142,K142)*(1+'1. Checklist & Certification'!$K$43)+AP142)),0))","v":0},{"$f":"IF(OR(A142=0,B142=\"X\"),0,IF(OR(S142=\"CHRP-R\",S142=\"SERA\",S142=\"SUHRP\",U142=\"CHRP-R\",U142=\"SERA\",U142=\"SUHRP\",W142=\"CHRP-R\",W142=\"SERA\",W142=\"SUHRP\",Y142=\"CHRP-R\",Y142=\"SERA\",Y142=\"SUHRP\"),TRUNC((MIN(I142,K142)*(1+'1. Checklist & Certification'!$K$49))),0))","v":0},{"$f":"IF(OR(A142=0,B142=\"X\"),0,IF(OR(S142=\"CALDAP\",S142=\"DPRLP\",U142=\"CALDAP\",U142=\"DPRLP\",W142=\"CALDAP\",W142=\"DPRLP\",Y142=\"CALDAP\",Y142=\"DPRLP\"),TRUNC(((MIN(I142,K142))*(1+'1. Checklist & Certification'!$G$4))),0))","v":0},0,0,0,{"$f":"IF(OR(A142=0,B142=\"X\"),0,IF(OR(S142=\"PRP\",S142=\"LPR\",U142=\"PRP\",U142=\"LPR\",W142=\"PRP\",W142=\"LPR\",Y142=\"PRP\",Y142=\"LPR\"),MAX(I142+AP142,MIN(IF(AE142:AN142<>0,AE142:AN142))),MIN(IF(AE142:AN142<>0,AE142:AN142))))","v":0},{"$f":"IF(A142=0,0,IF(AND(OR(S142=\"Mgr\",S142=0),OR(U142=\"Mgr\",U142=0),OR(W142=\"Mgr\",W142=0)),0,IF(LEFT($A142,2)=\"B*\",VLOOKUP($E142,'1. Checklist & Certification'!$D$26:$E$32,2),IF(LEFT($A142,2)=\"C*\",VLOOKUP($E142,'1. Checklist & Certification'!$F$26:$G$32,2),IF(LEFT($A142,2)=\"D*\",VLOOKUP($E142,'1. Checklist & Certification'!$H$26:$I$32,2),IF(LEFT($A142,2)=\"E*\",VLOOKUP($E142,'1. Checklist & Certification'!$J$26:$K$32,2),VLOOKUP($E142,'1. Checklist & Certification'!$A$26:$B$32,2)))))))","v":0},0,0,null,null,null,null,"","",0,0,0,null,{"$f":"IF(A142=\"\",\"\",'1. Checklist & Certification'!$K$1)","v":""},{"$f":"IF(A142=\"\",\"\",'1. Checklist & Certification'!$C$62)","v":""},{"$f":"IF(A142=\"\",\"\",'1. Checklist & Certification'!$C$6)","v":""},{"$f":"IF(A142=\"\",\"\",'1. Checklist & Certification'!$G$5)","v":""},{"$f":"IFERROR(IF(A142=\"\",\"\",\n_xlfn.LET(_xlpm.Contract,'1. Checklist & Certification'!$C$7,\n_xlpm.Yr,TEXT(MOD(_xlfn.TEXTBEFORE(_xlpm.Contract,\"-\"),100),\"00\"),\n_xlpm.Program,_xlfn.TEXTAFTER(_xlfn.TEXTBEFORE(_xlpm.Contract,\"-\",2),\"-\"),\n_xlpm.CleanProgram,_xlfn.XLOOKUP(_xlpm.Program,SpellCheck[Input],SpellCheck[Correction],_xlpm.Program),\n_xlpm.Number,TEXT(_xlfn.TEXTAFTER(_xlpm.Contract,\"-\",2),\"0000\"),\n_xlfn.CONCAT(_xlpm.Yr,\"-\",_xlpm.CleanProgram,\"-\",_xlpm.Number))\n),\"\")","v":""},{"$f":"IFERROR(IF(A142=\"\",\"\",\n_xlfn.LET(_xlpm.Contract,'1. Checklist & Certification'!$C$8,\n_xlpm.Yr,TEXT(MOD(_xlfn.TEXTBEFORE(_xlpm.Contract,\"-\"),100),\"00\"),\n_xlpm.Program,_xlfn.TEXTAFTER(_xlfn.TEXTBEFORE(_xlpm.Contract,\"-\",2),\"-\"),\n_xlpm.CleanProgram,_xlfn.XLOOKUP(_xlpm.Program,SpellCheck[Input],SpellCheck[Correction],_xlpm.Program),\n_xlpm.Number,TEXT(_xlfn.TEXTAFTER(_xlpm.Contract,\"-\",2),\"0000\"),\n_xlfn.CONCAT(_xlpm.Yr,\"-\",_xlpm.CleanProgram,\"-\",_xlpm.Number))\n),\"\")","v":""},{"$f":"IFERROR(IF(A142=\"\",\"\",\n_xlfn.LET(_xlpm.Contract,'1. Checklist & Certification'!$F$7,\n_xlpm.Yr,TEXT(MOD(_xlfn.TEXTBEFORE(_xlpm.Contract,\"-\"),100),\"00\"),\n_xlpm.Program,_xlfn.TEXTAFTER(_xlfn.TEXTBEFORE(_xlpm.Contract,\"-\",2),\"-\"),\n_xlpm.CleanProgram,_xlfn.XLOOKUP(_xlpm.Program,SpellCheck[Input],SpellCheck[Correction],_xlpm.Program),\n_xlpm.Number,TEXT(_xlfn.TEXTAFTER(_xlpm.Contract,\"-\",2),\"0000\"),\n_xlfn.CONCAT(_xlpm.Yr,\"-\",_xlpm.CleanProgram,\"-\",_xlpm.Number))\n),\"\")","v":""},{"$f":"IFERROR(IF(A142=\"\",\"\",\n_xlfn.LET(_xlpm.Contract,'1. Checklist & Certification'!$F$8,\n_xlpm.Yr,TEXT(MOD(_xlfn.TEXTBEFORE(_xlpm.Contract,\"-\"),100),\"00\"),\n_xlpm.Program,_xlfn.TEXTAFTER(_xlfn.TEXTBEFORE(_xlpm.Contract,\"-\",2),\"-\"),\n_xlpm.CleanProgram,_xlfn.XLOOKUP(_xlpm.Program,SpellCheck[Input],SpellCheck[Correction],_xlpm.Program),\n_xlpm.Number,TEXT(_xlfn.TEXTAFTER(_xlpm.Contract,\"-\",2),\"0000\"),\n_xlfn.CONCAT(_xlpm.Yr,\"-\",_xlpm.CleanProgram,\"-\",_xlpm.Number))\n),\"\")","v":""},{"$f":"IF(A142=\"\",\"\",'1. Checklist & Certification'!$B$9)","v":""},{"$f":"IF(A142=\"\",\"\",'1. Checklist & Certification'!$F$9)","v":""},{"$f":"IF(A142=\"\",\"\",'1. Checklist & Certification'!$C$10)","v":""},{"$f":"IF(A142=\"\",\"\",'1. Checklist & Certification'!$C$11)","v":""},{"$f":"IF(A142=\"\",\"\",'1. Checklist & Certification'!$C$12)","v":""},{"$f":"IF(A142=\"\",\"\",'1. Checklist & Certification'!$B$14)","v":""},{"$f":"IF(A142=\"\",\"\",'1. Checklist & Certification'!$E$14)","v":""},{"$f":"IF(B142=\"\",\"\",'1. Checklist & Certification'!$G$14)","v":""},{"$f":"IF(A142=\"\",\"\",'MHP Family Income & Rent Limits'!$B$3)","v":""},{"$f":"IF(A142=\"\",\"\",'MHP Family Income & Rent Limits'!$J$3)","v":""},{"$f":"IF(A142=\"\",\"\",'MHP Family Income & Rent Limits'!$E$4)","v":""},{"$f":"IF(A142=\"\",\"\",'MHP Family Income & Rent Limits'!$C$7)","v":""},{"$f":"IF(A142=\"\",\"\",'MHP Family Income & Rent Limits'!$F$8)","v":""},{"$f":"IF(A142=\"\",\"\",'1. Checklist & Certification'!$G$4)","v":""},{"$f":"IF(A142=\"\",\"\",'1. Checklist & Certification'!$K$39)","v":""},{"$f":"IF(A142=\"\",\"\",'1. Checklist & Certification'!$K$43)","v":""},{"$f":"IF(A142=\"\",\"\",'1. Checklist & Certification'!$K$45)","v":""},{"$f":"IF(A142=\"\",\"\",'1. Checklist & Certification'!$K$49)","v":""},{"$f":"IF(A142=\"\",\"\",'1. Checklist & Certification'!$K$62)","v":""},{"$f":"IF(A142=\"\",\"\",'1. Checklist & Certification'!$E$66)","v":""},{"$f":"IF(A142=\"\",\"\",'1. Checklist & Certification'!$E$67)","v":""},{"$f":"IF(A142=\"\",\"\",'1. Checklist & Certification'!$E$68)","v":""},{"$f":"IF(A142=\"\",\"\",'1. Checklist & Certification'!$G$66)","v":""},{"$f":"IF(A142=\"\",\"\",'1. Checklist & Certification'!$H$66)","v":""},{"$f":"IF(A142=\"\",\"\",'1. Checklist & Certification'!$I$66)","v":""},{"$f":"IF(A142=\"\",\"\",'1. Checklist & Certification'!$I$67)","v":""},{"$f":"IF(A142=\"\",\"\",'1. Checklist & Certification'!$I$68)","v":""},{"$f":"IF(A142=\"\",\"\",'1. Checklist & Certification'!$B$69)","v":""},{"$f":"IF(A142=\"\",\"\",'1. Checklist & Certification'!$C$69)","v":""},{"$f":"IF(A142=\"\",\"\",'1. Checklist & Certification'!$F$69)","v":""},{"$f":"IF(A142=\"\",\"\",'1. Checklist & Certification'!$G$69)","v":""},{"$f":"IF(A142=\"\",\"\",'1. Checklist & Certification'!$J$69)","v":""},{"$f":"IF(A142=\"\",\"\",'1. Checklist & Certification'!$K$69)","v":""},null,null,{"$f":"IF(AND(OR('1. Checklist & Certification'!$M$16=1,'1. Checklist & Certification'!$M$19=2),AO142>0,B142=\"\",I142>0,AQ142<I142,AV142<>\"Sec 8-Project\"),\"X\",IF(AND(OR('1. Checklist & Certification'!$M$20=4,'1. Checklist & Certification'!$M$21=5,'1. Checklist & Certification'!$M$22=7),AO142>0,B142=\"\",I142>0,K142<I142),\"X\",\"\"))","v":""},{"$f":"IF(A142=\"\",\"\",IF(SUMPRODUCT(-- (ISNUMBER(SEARCH({\"*AHSC*\",\"*FMTW*\",\"*FWHG*\",\"*GHI*\",\"*HHC*\",\"*HLCP*\",\"*HOME*\",\"*LPR*\",\"*MHP*\",\"*NHTF*\",\"*NSP*\",\"*PRP*\",\"*TOD*\",\"*VHHP*\"},'1. Checklist & Certification'!$L$7)))),\"MHP\",\"Legacy\"))","v":""},",,",null,null,null,{"$f":"IF('1. Checklist & Certification'!$M$20=4,\"Both\",IF(OR('1. Checklist & Certification'!$M$15>0,S142=\"CHRP-R\",U142=\"CHRP-R\",W142=\"CHRP-R\",Y142=\"CHRP-R\"),\"Under\",\"No\"))","v":"No"},"No","No",{"$f":"_xlfn.IFS(D142=\"\",\"\",D142=1,'MHP Family Income & Rent Limits'!$E$17,D142=2,'MHP Family Income & Rent Limits'!$F$17,D142=3,'MHP Family Income & Rent Limits'!$G$17,D142=4,'MHP Family Income & Rent Limits'!$H$17,D142=5,'MHP Family Income & Rent Limits'!$I$17,D142=6,'MHP Family Income & Rent Limits'!$J$17,D142=7,'MHP Family Income & Rent Limits'!$K$17,D142=8,'MHP Family Income & Rent Limits'!$L$17)","v":""},"",{"$f":"IF(OR(A142=0,B142=\"X\"),0,MIN(IF(AA142:AD142<>0,AA142:AD142)))","v":0},{"$f":"IF(OR(H142=\"\",I142=\"\"),0,IF(H142*0.3/12>I142,MIN(H142*0.3/12,I142*1.1)+AP142,I142*(1+(VLOOKUP('1. Checklist & Certification'!$F$9,'HLCP-E Rent Change'!$A$1:$D$59,4,FALSE)))+AP142))","v":0}]
[null,null,null,null,null,null,null,null,null,null,null,null,null,null,null,null,null,null,null,null,null,null,null,null,null,null,0,0,0,0,0,0,0,0,{"$f":"IF(OR(A143=0,B143=\"X\"),0,IF(OR(S143=\"FHDP\",S143=\"RHCP-B\",U143=\"FHDP\",U143=\"RHCP-B\",W143=\"FHDP\",W143=\"RHCP-B\",Y143=\"FHDP\",Y143=\"RHCP-B\"),TRUNC((MIN(I143,K143)*(1+'1. Checklist & Certification'!$K$43)+AP143)),0))","v":0},{"$f":"IF(OR(A143=0,B143=\"X\"),0,IF(OR(S143=\"CHRP-R\",S143=\"SERA\",S143=\"SUHRP\",U143=\"CHRP-R\",U143=\"SERA\",U143=\"SUHRP\",W143=\"CHRP-R\",W143=\"SERA\",W143=\"SUHRP\",Y143=\"CHRP-R\",Y143=\"SERA\",Y143=\"SUHRP\"),TRUNC((MIN(I143,K143)*(1+'1. Checklist & Certification'!$K$49))),0))","v":0},{"$f":"IF(OR(A143=0,B143=\"X\"),0,IF(OR(S143=\"CALDAP\",S143=\"DPRLP\",U143=\"CALDAP\",U143=\"DPRLP\",W143=\"CALDAP\",W143=\"DPRLP\",Y143=\"CALDAP\",Y143=\"DPRLP\"),TRUNC(((MIN(I143,K143))*(1+'1. Checklist & Certification'!$G$4))),0))","v":0},0,0,0,{"$f":"IF(OR(A143=0,B143=\"X\"),0,IF(OR(S143=\"PRP\",S143=\"LPR\",U143=\"PRP\",U143=\"LPR\",W143=\"PRP\",W143=\"LPR\",Y143=\"PRP\",Y143=\"LPR\"),MAX(I143+AP143,MIN(IF(AE143:AN143<>0,AE143:AN143))),MIN(IF(AE143:AN143<>0,AE143:AN143))))","v":0},{"$f":"IF(A143=0,0,IF(AND(OR(S143=\"Mgr\",S143=0),OR(U143=\"Mgr\",U143=0),OR(W143=\"Mgr\",W143=0)),0,IF(LEFT($A143,2)=\"B*\",VLOOKUP($E143,'1. Checklist & Certification'!$D$26:$E$32,2),IF(LEFT($A143,2)=\"C*\",VLOOKUP($E143,'1. Checklist & Certification'!$F$26:$G$32,2),IF(LEFT($A143,2)=\"D*\",VLOOKUP($E143,'1. Checklist & Certification'!$H$26:$I$32,2),IF(LEFT($A143,2)=\"E*\",VLOOKUP($E143,'1. Checklist & Certification'!$J$26:$K$32,2),VLOOKUP($E143,'1. Checklist & Certification'!$A$26:$B$32,2)))))))","v":0},0,0,null,null,null,null,"","",0,0,0,null,{"$f":"IF(A143=\"\",\"\",'1. Checklist & Certification'!$K$1)","v":""},{"$f":"IF(A143=\"\",\"\",'1. Checklist & Certification'!$C$62)","v":""},{"$f":"IF(A143=\"\",\"\",'1. Checklist & Certification'!$C$6)","v":""},{"$f":"IF(A143=\"\",\"\",'1. Checklist & Certification'!$G$5)","v":""},{"$f":"IFERROR(IF(A143=\"\",\"\",\n_xlfn.LET(_xlpm.Contract,'1. Checklist & Certification'!$C$7,\n_xlpm.Yr,TEXT(MOD(_xlfn.TEXTBEFORE(_xlpm.Contract,\"-\"),100),\"00\"),\n_xlpm.Program,_xlfn.TEXTAFTER(_xlfn.TEXTBEFORE(_xlpm.Contract,\"-\",2),\"-\"),\n_xlpm.CleanProgram,_xlfn.XLOOKUP(_xlpm.Program,SpellCheck[Input],SpellCheck[Correction],_xlpm.Program),\n_xlpm.Number,TEXT(_xlfn.TEXTAFTER(_xlpm.Contract,\"-\",2),\"0000\"),\n_xlfn.CONCAT(_xlpm.Yr,\"-\",_xlpm.CleanProgram,\"-\",_xlpm.Number))\n),\"\")","v":""},{"$f":"IFERROR(IF(A143=\"\",\"\",\n_xlfn.LET(_xlpm.Contract,'1. Checklist & Certification'!$C$8,\n_xlpm.Yr,TEXT(MOD(_xlfn.TEXTBEFORE(_xlpm.Contract,\"-\"),100),\"00\"),\n_xlpm.Program,_xlfn.TEXTAFTER(_xlfn.TEXTBEFORE(_xlpm.Contract,\"-\",2),\"-\"),\n_xlpm.CleanProgram,_xlfn.XLOOKUP(_xlpm.Program,SpellCheck[Input],SpellCheck[Correction],_xlpm.Program),\n_xlpm.Number,TEXT(_xlfn.TEXTAFTER(_xlpm.Contract,\"-\",2),\"0000\"),\n_xlfn.CONCAT(_xlpm.Yr,\"-\",_xlpm.CleanProgram,\"-\",_xlpm.Number))\n),\"\")","v":""},{"$f":"IFERROR(IF(A143=\"\",\"\",\n_xlfn.LET(_xlpm.Contract,'1. Checklist & Certification'!$F$7,\n_xlpm.Yr,TEXT(MOD(_xlfn.TEXTBEFORE(_xlpm.Contract,\"-\"),100),\"00\"),\n_xlpm.Program,_xlfn.TEXTAFTER(_xlfn.TEXTBEFORE(_xlpm.Contract,\"-\",2),\"-\"),\n_xlpm.CleanProgram,_xlfn.XLOOKUP(_xlpm.Program,SpellCheck[Input],SpellCheck[Correction],_xlpm.Program),\n_xlpm.Number,TEXT(_xlfn.TEXTAFTER(_xlpm.Contract,\"-\",2),\"0000\"),\n_xlfn.CONCAT(_xlpm.Yr,\"-\",_xlpm.CleanProgram,\"-\",_xlpm.Number))\n),\"\")","v":""},{"$f":"IFERROR(IF(A143=\"\",\"\",\n_xlfn.LET(_xlpm.Contract,'1. Checklist & Certification'!$F$8,\n_xlpm.Yr,TEXT(MOD(_xlfn.TEXTBEFORE(_xlpm.Contract,\"-\"),100),\"00\"),\n_xlpm.Program,_xlfn.TEXTAFTER(_xlfn.TEXTBEFORE(_xlpm.Contract,\"-\",2),\"-\"),\n_xlpm.CleanProgram,_xlfn.XLOOKUP(_xlpm.Program,SpellCheck[Input],SpellCheck[Correction],_xlpm.Program),\n_xlpm.Number,TEXT(_xlfn.TEXTAFTER(_xlpm.Contract,\"-\",2),\"0000\"),\n_xlfn.CONCAT(_xlpm.Yr,\"-\",_xlpm.CleanProgram,\"-\",_xlpm.Number))\n),\"\")","v":""},{"$f":"IF(A143=\"\",\"\",'1. Checklist & Certification'!$B$9)","v":""},{"$f":"IF(A143=\"\",\"\",'1. Checklist & Certification'!$F$9)","v":""},{"$f":"IF(A143=\"\",\"\",'1. Checklist & Certification'!$C$10)","v":""},{"$f":"IF(A143=\"\",\"\",'1. Checklist & Certification'!$C$11)","v":""},{"$f":"IF(A143=\"\",\"\",'1. Checklist & Certification'!$C$12)","v":""},{"$f":"IF(A143=\"\",\"\",'1. Checklist & Certification'!$B$14)","v":""},{"$f":"IF(A143=\"\",\"\",'1. Checklist & Certification'!$E$14)","v":""},{"$f":"IF(B143=\"\",\"\",'1. Checklist & Certification'!$G$14)","v":""},{"$f":"IF(A143=\"\",\"\",'MHP Family Income & Rent Limits'!$B$3)","v":""},{"$f":"IF(A143=\"\",\"\",'MHP Family Income & Rent Limits'!$J$3)","v":""},{"$f":"IF(A143=\"\",\"\",'MHP Family Income & Rent Limits'!$E$4)","v":""},{"$f":"IF(A143=\"\",\"\",'MHP Family Income & Rent Limits'!$C$7)","v":""},{"$f":"IF(A143=\"\",\"\",'MHP Family Income & Rent Limits'!$F$8)","v":""},{"$f":"IF(A143=\"\",\"\",'1. Checklist & Certification'!$G$4)","v":""},{"$f":"IF(A143=\"\",\"\",'1. Checklist & Certification'!$K$39)","v":""},{"$f":"IF(A143=\"\",\"\",'1. Checklist & Certification'!$K$43)","v":""},{"$f":"IF(A143=\"\",\"\",'1. Checklist & Certification'!$K$45)","v":""},{"$f":"IF(A143=\"\",\"\",'1. Checklist & Certification'!$K$49)","v":""},{"$f":"IF(A143=\"\",\"\",'1. Checklist & Certification'!$K$62)","v":""},{"$f":"IF(A143=\"\",\"\",'1. Checklist & Certification'!$E$66)","v":""},{"$f":"IF(A143=\"\",\"\",'1. Checklist & Certification'!$E$67)","v":""},{"$f":"IF(A143=\"\",\"\",'1. Checklist & Certification'!$E$68)","v":""},{"$f":"IF(A143=\"\",\"\",'1. Checklist & Certification'!$G$66)","v":""},{"$f":"IF(A143=\"\",\"\",'1. Checklist & Certification'!$H$66)","v":""},{"$f":"IF(A143=\"\",\"\",'1. Checklist & Certification'!$I$66)","v":""},{"$f":"IF(A143=\"\",\"\",'1. Checklist & Certification'!$I$67)","v":""},{"$f":"IF(A143=\"\",\"\",'1. Checklist & Certification'!$I$68)","v":""},{"$f":"IF(A143=\"\",\"\",'1. Checklist & Certification'!$B$69)","v":""},{"$f":"IF(A143=\"\",\"\",'1. Checklist & Certification'!$C$69)","v":""},{"$f":"IF(A143=\"\",\"\",'1. Checklist & Certification'!$F$69)","v":""},{"$f":"IF(A143=\"\",\"\",'1. Checklist & Certification'!$G$69)","v":""},{"$f":"IF(A143=\"\",\"\",'1. Checklist & Certification'!$J$69)","v":""},{"$f":"IF(A143=\"\",\"\",'1. Checklist & Certification'!$K$69)","v":""},null,null,{"$f":"IF(AND(OR('1. Checklist & Certification'!$M$16=1,'1. Checklist & Certification'!$M$19=2),AO143>0,B143=\"\",I143>0,AQ143<I143,AV143<>\"Sec 8-Project\"),\"X\",IF(AND(OR('1. Checklist & Certification'!$M$20=4,'1. Checklist & Certification'!$M$21=5,'1. Checklist & Certification'!$M$22=7),AO143>0,B143=\"\",I143>0,K143<I143),\"X\",\"\"))","v":""},{"$f":"IF(A143=\"\",\"\",IF(SUMPRODUCT(-- (ISNUMBER(SEARCH({\"*AHSC*\",\"*FMTW*\",\"*FWHG*\",\"*GHI*\",\"*HHC*\",\"*HLCP*\",\"*HOME*\",\"*LPR*\",\"*MHP*\",\"*NHTF*\",\"*NSP*\",\"*PRP*\",\"*TOD*\",\"*VHHP*\"},'1. Checklist & Certification'!$L$7)))),\"MHP\",\"Legacy\"))","v":""},",,",null,null,null,{"$f":"IF('1. Checklist & Certification'!$M$20=4,\"Both\",IF(OR('1. Checklist & Certification'!$M$15>0,S143=\"CHRP-R\",U143=\"CHRP-R\",W143=\"CHRP-R\",Y143=\"CHRP-R\"),\"Under\",\"No\"))","v":"No"},"No","No",{"$f":"_xlfn.IFS(D143=\"\",\"\",D143=1,'MHP Family Income & Rent Limits'!$E$17,D143=2,'MHP Family Income & Rent Limits'!$F$17,D143=3,'MHP Family Income & Rent Limits'!$G$17,D143=4,'MHP Family Income & Rent Limits'!$H$17,D143=5,'MHP Family Income & Rent Limits'!$I$17,D143=6,'MHP Family Income & Rent Limits'!$J$17,D143=7,'MHP Family Income & Rent Limits'!$K$17,D143=8,'MHP Family Income & Rent Limits'!$L$17)","v":""},"",{"$f":"IF(OR(A143=0,B143=\"X\"),0,MIN(IF(AA143:AD143<>0,AA143:AD143)))","v":0},{"$f":"IF(OR(H143=\"\",I143=\"\"),0,IF(H143*0.3/12>I143,MIN(H143*0.3/12,I143*1.1)+AP143,I143*(1+(VLOOKUP('1. Checklist & Certification'!$F$9,'HLCP-E Rent Change'!$A$1:$D$59,4,FALSE)))+AP143))","v":0}]
[null,null,null,null,null,null,null,null,null,null,null,null,null,null,null,null,null,null,null,null,null,null,null,null,null,null,0,0,0,0,0,0,0,0,{"$f":"IF(OR(A144=0,B144=\"X\"),0,IF(OR(S144=\"FHDP\",S144=\"RHCP-B\",U144=\"FHDP\",U144=\"RHCP-B\",W144=\"FHDP\",W144=\"RHCP-B\",Y144=\"FHDP\",Y144=\"RHCP-B\"),TRUNC((MIN(I144,K144)*(1+'1. Checklist & Certification'!$K$43)+AP144)),0))","v":0},{"$f":"IF(OR(A144=0,B144=\"X\"),0,IF(OR(S144=\"CHRP-R\",S144=\"SERA\",S144=\"SUHRP\",U144=\"CHRP-R\",U144=\"SERA\",U144=\"SUHRP\",W144=\"CHRP-R\",W144=\"SERA\",W144=\"SUHRP\",Y144=\"CHRP-R\",Y144=\"SERA\",Y144=\"SUHRP\"),TRUNC((MIN(I144,K144)*(1+'1. Checklist & Certification'!$K$49))),0))","v":0},{"$f":"IF(OR(A144=0,B144=\"X\"),0,IF(OR(S144=\"CALDAP\",S144=\"DPRLP\",U144=\"CALDAP\",U144=\"DPRLP\",W144=\"CALDAP\",W144=\"DPRLP\",Y144=\"CALDAP\",Y144=\"DPRLP\"),TRUNC(((MIN(I144,K144))*(1+'1. Checklist & Certification'!$G$4))),0))","v":0},0,0,0,{"$f":"IF(OR(A144=0,B144=\"X\"),0,IF(OR(S144=\"PRP\",S144=\"LPR\",U144=\"PRP\",U144=\"LPR\",W144=\"PRP\",W144=\"LPR\",Y144=\"PRP\",Y144=\"LPR\"),MAX(I144+AP144,MIN(IF(AE144:AN144<>0,AE144:AN144))),MIN(IF(AE144:AN144<>0,AE144:AN144))))","v":0},{"$f":"IF(A144=0,0,IF(AND(OR(S144=\"Mgr\",S144=0),OR(U144=\"Mgr\",U144=0),OR(W144=\"Mgr\",W144=0)),0,IF(LEFT($A144,2)=\"B*\",VLOOKUP($E144,'1. Checklist & Certification'!$D$26:$E$32,2),IF(LEFT($A144,2)=\"C*\",VLOOKUP($E144,'1. Checklist & Certification'!$F$26:$G$32,2),IF(LEFT($A144,2)=\"D*\",VLOOKUP($E144,'1. Checklist & Certification'!$H$26:$I$32,2),IF(LEFT($A144,2)=\"E*\",VLOOKUP($E144,'1. Checklist & Certification'!$J$26:$K$32,2),VLOOKUP($E144,'1. Checklist & Certification'!$A$26:$B$32,2)))))))","v":0},0,0,null,null,null,null,"","",0,0,0,null,{"$f":"IF(A144=\"\",\"\",'1. Checklist & Certification'!$K$1)","v":""},{"$f":"IF(A144=\"\",\"\",'1. Checklist & Certification'!$C$62)","v":""},{"$f":"IF(A144=\"\",\"\",'1. Checklist & Certification'!$C$6)","v":""},{"$f":"IF(A144=\"\",\"\",'1. Checklist & Certification'!$G$5)","v":""},{"$f":"IFERROR(IF(A144=\"\",\"\",\n_xlfn.LET(_xlpm.Contract,'1. Checklist & Certification'!$C$7,\n_xlpm.Yr,TEXT(MOD(_xlfn.TEXTBEFORE(_xlpm.Contract,\"-\"),100),\"00\"),\n_xlpm.Program,_xlfn.TEXTAFTER(_xlfn.TEXTBEFORE(_xlpm.Contract,\"-\",2),\"-\"),\n_xlpm.CleanProgram,_xlfn.XLOOKUP(_xlpm.Program,SpellCheck[Input],SpellCheck[Correction],_xlpm.Program),\n_xlpm.Number,TEXT(_xlfn.TEXTAFTER(_xlpm.Contract,\"-\",2),\"0000\"),\n_xlfn.CONCAT(_xlpm.Yr,\"-\",_xlpm.CleanProgram,\"-\",_xlpm.Number))\n),\"\")","v":""},{"$f":"IFERROR(IF(A144=\"\",\"\",\n_xlfn.LET(_xlpm.Contract,'1. Checklist & Certification'!$C$8,\n_xlpm.Yr,TEXT(MOD(_xlfn.TEXTBEFORE(_xlpm.Contract,\"-\"),100),\"00\"),\n_xlpm.Program,_xlfn.TEXTAFTER(_xlfn.TEXTBEFORE(_xlpm.Contract,\"-\",2),\"-\"),\n_xlpm.CleanProgram,_xlfn.XLOOKUP(_xlpm.Program,SpellCheck[Input],SpellCheck[Correction],_xlpm.Program),\n_xlpm.Number,TEXT(_xlfn.TEXTAFTER(_xlpm.Contract,\"-\",2),\"0000\"),\n_xlfn.CONCAT(_xlpm.Yr,\"-\",_xlpm.CleanProgram,\"-\",_xlpm.Number))\n),\"\")","v":""},{"$f":"IFERROR(IF(A144=\"\",\"\",\n_xlfn.LET(_xlpm.Contract,'1. Checklist & Certification'!$F$7,\n_xlpm.Yr,TEXT(MOD(_xlfn.TEXTBEFORE(_xlpm.Contract,\"-\"),100),\"00\"),\n_xlpm.Program,_xlfn.TEXTAFTER(_xlfn.TEXTBEFORE(_xlpm.Contract,\"-\",2),\"-\"),\n_xlpm.CleanProgram,_xlfn.XLOOKUP(_xlpm.Program,SpellCheck[Input],SpellCheck[Correction],_xlpm.Program),\n_xlpm.Number,TEXT(_xlfn.TEXTAFTER(_xlpm.Contract,\"-\",2),\"0000\"),\n_xlfn.CONCAT(_xlpm.Yr,\"-\",_xlpm.CleanProgram,\"-\",_xlpm.Number))\n),\"\")","v":""},{"$f":"IFERROR(IF(A144=\"\",\"\",\n_xlfn.LET(_xlpm.Contract,'1. Checklist & Certification'!$F$8,\n_xlpm.Yr,TEXT(MOD(_xlfn.TEXTBEFORE(_xlpm.Contract,\"-\"),100),\"00\"),\n_xlpm.Program,_xlfn.TEXTAFTER(_xlfn.TEXTBEFORE(_xlpm.Contract,\"-\",2),\"-\"),\n_xlpm.CleanProgram,_xlfn.XLOOKUP(_xlpm.Program,SpellCheck[Input],SpellCheck[Correction],_xlpm.Program),\n_xlpm.Number,TEXT(_xlfn.TEXTAFTER(_xlpm.Contract,\"-\",2),\"0000\"),\n_xlfn.CONCAT(_xlpm.Yr,\"-\",_xlpm.CleanProgram,\"-\",_xlpm.Number))\n),\"\")","v":""},{"$f":"IF(A144=\"\",\"\",'1. Checklist & Certification'!$B$9)","v":""},{"$f":"IF(A144=\"\",\"\",'1. Checklist & Certification'!$F$9)","v":""},{"$f":"IF(A144=\"\",\"\",'1. Checklist & Certification'!$C$10)","v":""},{"$f":"IF(A144=\"\",\"\",'1. Checklist & Certification'!$C$11)","v":""},{"$f":"IF(A144=\"\",\"\",'1. Checklist & Certification'!$C$12)","v":""},{"$f":"IF(A144=\"\",\"\",'1. Checklist & Certification'!$B$14)","v":""},{"$f":"IF(A144=\"\",\"\",'1. Checklist & Certification'!$E$14)","v":""},{"$f":"IF(B144=\"\",\"\",'1. Checklist & Certification'!$G$14)","v":""},{"$f":"IF(A144=\"\",\"\",'MHP Family Income & Rent Limits'!$B$3)","v":""},{"$f":"IF(A144=\"\",\"\",'MHP Family Income & Rent Limits'!$J$3)","v":""},{"$f":"IF(A144=\"\",\"\",'MHP Family Income & Rent Limits'!$E$4)","v":""},{"$f":"IF(A144=\"\",\"\",'MHP Family Income & Rent Limits'!$C$7)","v":""},{"$f":"IF(A144=\"\",\"\",'MHP Family Income & Rent Limits'!$F$8)","v":""},{"$f":"IF(A144=\"\",\"\",'1. Checklist & Certification'!$G$4)","v":""},{"$f":"IF(A144=\"\",\"\",'1. Checklist & Certification'!$K$39)","v":""},{"$f":"IF(A144=\"\",\"\",'1. Checklist & Certification'!$K$43)","v":""},{"$f":"IF(A144=\"\",\"\",'1. Checklist & Certification'!$K$45)","v":""},{"$f":"IF(A144=\"\",\"\",'1. Checklist & Certification'!$K$49)","v":""},{"$f":"IF(A144=\"\",\"\",'1. Checklist & Certification'!$K$62)","v":""},{"$f":"IF(A144=\"\",\"\",'1. Checklist & Certification'!$E$66)","v":""},{"$f":"IF(A144=\"\",\"\",'1. Checklist & Certification'!$E$67)","v":""},{"$f":"IF(A144=\"\",\"\",'1. Checklist & Certification'!$E$68)","v":""},{"$f":"IF(A144=\"\",\"\",'1. Checklist & Certification'!$G$66)","v":""},{"$f":"IF(A144=\"\",\"\",'1. Checklist & Certification'!$H$66)","v":""},{"$f":"IF(A144=\"\",\"\",'1. Checklist & Certification'!$I$66)","v":""},{"$f":"IF(A144=\"\",\"\",'1. Checklist & Certification'!$I$67)","v":""},{"$f":"IF(A144=\"\",\"\",'1. Checklist & Certification'!$I$68)","v":""},{"$f":"IF(A144=\"\",\"\",'1. Checklist & Certification'!$B$69)","v":""},{"$f":"IF(A144=\"\",\"\",'1. Checklist & Certification'!$C$69)","v":""},{"$f":"IF(A144=\"\",\"\",'1. Checklist & Certification'!$F$69)","v":""},{"$f":"IF(A144=\"\",\"\",'1. Checklist & Certification'!$G$69)","v":""},{"$f":"IF(A144=\"\",\"\",'1. Checklist & Certification'!$J$69)","v":""},{"$f":"IF(A144=\"\",\"\",'1. Checklist & Certification'!$K$69)","v":""},null,null,{"$f":"IF(AND(OR('1. Checklist & Certification'!$M$16=1,'1. Checklist & Certification'!$M$19=2),AO144>0,B144=\"\",I144>0,AQ144<I144,AV144<>\"Sec 8-Project\"),\"X\",IF(AND(OR('1. Checklist & Certification'!$M$20=4,'1. Checklist & Certification'!$M$21=5,'1. Checklist & Certification'!$M$22=7),AO144>0,B144=\"\",I144>0,K144<I144),\"X\",\"\"))","v":""},{"$f":"IF(A144=\"\",\"\",IF(SUMPRODUCT(-- (ISNUMBER(SEARCH({\"*AHSC*\",\"*FMTW*\",\"*FWHG*\",\"*GHI*\",\"*HHC*\",\"*HLCP*\",\"*HOME*\",\"*LPR*\",\"*MHP*\",\"*NHTF*\",\"*NSP*\",\"*PRP*\",\"*TOD*\",\"*VHHP*\"},'1. Checklist & Certification'!$L$7)))),\"MHP\",\"Legacy\"))","v":""},",,",null,null,null,{"$f":"IF('1. Checklist & Certification'!$M$20=4,\"Both\",IF(OR('1. Checklist & Certification'!$M$15>0,S144=\"CHRP-R\",U144=\"CHRP-R\",W144=\"CHRP-R\",Y144=\"CHRP-R\"),\"Under\",\"No\"))","v":"No"},"No","No",{"$f":"_xlfn.IFS(D144=\"\",\"\",D144=1,'MHP Family Income & Rent Limits'!$E$17,D144=2,'MHP Family Income & Rent Limits'!$F$17,D144=3,'MHP Family Income & Rent Limits'!$G$17,D144=4,'MHP Family Income & Rent Limits'!$H$17,D144=5,'MHP Family Income & Rent Limits'!$I$17,D144=6,'MHP Family Income & Rent Limits'!$J$17,D144=7,'MHP Family Income & Rent Limits'!$K$17,D144=8,'MHP Family Income & Rent Limits'!$L$17)","v":""},"",{"$f":"IF(OR(A144=0,B144=\"X\"),0,MIN(IF(AA144:AD144<>0,AA144:AD144)))","v":0},{"$f":"IF(OR(H144=\"\",I144=\"\"),0,IF(H144*0.3/12>I144,MIN(H144*0.3/12,I144*1.1)+AP144,I144*(1+(VLOOKUP('1. Checklist & Certification'!$F$9,'HLCP-E Rent Change'!$A$1:$D$59,4,FALSE)))+AP144))","v":0}]
[null,null,null,null,null,null,null,null,null,null,null,null,null,null,null,null,null,null,null,null,null,null,null,null,null,null,0,0,0,0,0,0,0,0,{"$f":"IF(OR(A145=0,B145=\"X\"),0,IF(OR(S145=\"FHDP\",S145=\"RHCP-B\",U145=\"FHDP\",U145=\"RHCP-B\",W145=\"FHDP\",W145=\"RHCP-B\",Y145=\"FHDP\",Y145=\"RHCP-B\"),TRUNC((MIN(I145,K145)*(1+'1. Checklist & Certification'!$K$43)+AP145)),0))","v":0},{"$f":"IF(OR(A145=0,B145=\"X\"),0,IF(OR(S145=\"CHRP-R\",S145=\"SERA\",S145=\"SUHRP\",U145=\"CHRP-R\",U145=\"SERA\",U145=\"SUHRP\",W145=\"CHRP-R\",W145=\"SERA\",W145=\"SUHRP\",Y145=\"CHRP-R\",Y145=\"SERA\",Y145=\"SUHRP\"),TRUNC((MIN(I145,K145)*(1+'1. Checklist & Certification'!$K$49))),0))","v":0},{"$f":"IF(OR(A145=0,B145=\"X\"),0,IF(OR(S145=\"CALDAP\",S145=\"DPRLP\",U145=\"CALDAP\",U145=\"DPRLP\",W145=\"CALDAP\",W145=\"DPRLP\",Y145=\"CALDAP\",Y145=\"DPRLP\"),TRUNC(((MIN(I145,K145))*(1+'1. Checklist & Certification'!$G$4))),0))","v":0},0,0,0,{"$f":"IF(OR(A145=0,B145=\"X\"),0,IF(OR(S145=\"PRP\",S145=\"LPR\",U145=\"PRP\",U145=\"LPR\",W145=\"PRP\",W145=\"LPR\",Y145=\"PRP\",Y145=\"LPR\"),MAX(I145+AP145,MIN(IF(AE145:AN145<>0,AE145:AN145))),MIN(IF(AE145:AN145<>0,AE145:AN145))))","v":0},{"$f":"IF(A145=0,0,IF(AND(OR(S145=\"Mgr\",S145=0),OR(U145=\"Mgr\",U145=0),OR(W145=\"Mgr\",W145=0)),0,IF(LEFT($A145,2)=\"B*\",VLOOKUP($E145,'1. Checklist & Certification'!$D$26:$E$32,2),IF(LEFT($A145,2)=\"C*\",VLOOKUP($E145,'1. Checklist & Certification'!$F$26:$G$32,2),IF(LEFT($A145,2)=\"D*\",VLOOKUP($E145,'1. Checklist & Certification'!$H$26:$I$32,2),IF(LEFT($A145,2)=\"E*\",VLOOKUP($E145,'1. Checklist & Certification'!$J$26:$K$32,2),VLOOKUP($E145,'1. Checklist & Certification'!$A$26:$B$32,2)))))))","v":0},0,0,null,null,null,null,"","",0,0,0,null,{"$f":"IF(A145=\"\",\"\",'1. Checklist & Certification'!$K$1)","v":""},{"$f":"IF(A145=\"\",\"\",'1. Checklist & Certification'!$C$62)","v":""},{"$f":"IF(A145=\"\",\"\",'1. Checklist & Certification'!$C$6)","v":""},{"$f":"IF(A145=\"\",\"\",'1. Checklist & Certification'!$G$5)","v":""},{"$f":"IFERROR(IF(A145=\"\",\"\",\n_xlfn.LET(_xlpm.Contract,'1. Checklist & Certification'!$C$7,\n_xlpm.Yr,TEXT(MOD(_xlfn.TEXTBEFORE(_xlpm.Contract,\"-\"),100),\"00\"),\n_xlpm.Program,_xlfn.TEXTAFTER(_xlfn.TEXTBEFORE(_xlpm.Contract,\"-\",2),\"-\"),\n_xlpm.CleanProgram,_xlfn.XLOOKUP(_xlpm.Program,SpellCheck[Input],SpellCheck[Correction],_xlpm.Program),\n_xlpm.Number,TEXT(_xlfn.TEXTAFTER(_xlpm.Contract,\"-\",2),\"0000\"),\n_xlfn.CONCAT(_xlpm.Yr,\"-\",_xlpm.CleanProgram,\"-\",_xlpm.Number))\n),\"\")","v":""},{"$f":"IFERROR(IF(A145=\"\",\"\",\n_xlfn.LET(_xlpm.Contract,'1. Checklist & Certification'!$C$8,\n_xlpm.Yr,TEXT(MOD(_xlfn.TEXTBEFORE(_xlpm.Contract,\"-\"),100),\"00\"),\n_xlpm.Program,_xlfn.TEXTAFTER(_xlfn.TEXTBEFORE(_xlpm.Contract,\"-\",2),\"-\"),\n_xlpm.CleanProgram,_xlfn.XLOOKUP(_xlpm.Program,SpellCheck[Input],SpellCheck[Correction],_xlpm.Program),\n_xlpm.Number,TEXT(_xlfn.TEXTAFTER(_xlpm.Contract,\"-\",2),\"0000\"),\n_xlfn.CONCAT(_xlpm.Yr,\"-\",_xlpm.CleanProgram,\"-\",_xlpm.Number))\n),\"\")","v":""},{"$f":"IFERROR(IF(A145=\"\",\"\",\n_xlfn.LET(_xlpm.Contract,'1. Checklist & Certification'!$F$7,\n_xlpm.Yr,TEXT(MOD(_xlfn.TEXTBEFORE(_xlpm.Contract,\"-\"),100),\"00\"),\n_xlpm.Program,_xlfn.TEXTAFTER(_xlfn.TEXTBEFORE(_xlpm.Contract,\"-\",2),\"-\"),\n_xlpm.CleanProgram,_xlfn.XLOOKUP(_xlpm.Program,SpellCheck[Input],SpellCheck[Correction],_xlpm.Program),\n_xlpm.Number,TEXT(_xlfn.TEXTAFTER(_xlpm.Contract,\"-\",2),\"0000\"),\n_xlfn.CONCAT(_xlpm.Yr,\"-\",_xlpm.CleanProgram,\"-\",_xlpm.Number))\n),\"\")","v":""},{"$f":"IFERROR(IF(A145=\"\",\"\",\n_xlfn.LET(_xlpm.Contract,'1. Checklist & Certification'!$F$8,\n_xlpm.Yr,TEXT(MOD(_xlfn.TEXTBEFORE(_xlpm.Contract,\"-\"),100),\"00\"),\n_xlpm.Program,_xlfn.TEXTAFTER(_xlfn.TEXTBEFORE(_xlpm.Contract,\"-\",2),\"-\"),\n_xlpm.CleanProgram,_xlfn.XLOOKUP(_xlpm.Program,SpellCheck[Input],SpellCheck[Correction],_xlpm.Program),\n_xlpm.Number,TEXT(_xlfn.TEXTAFTER(_xlpm.Contract,\"-\",2),\"0000\"),\n_xlfn.CONCAT(_xlpm.Yr,\"-\",_xlpm.CleanProgram,\"-\",_xlpm.Number))\n),\"\")","v":""},{"$f":"IF(A145=\"\",\"\",'1. Checklist & Certification'!$B$9)","v":""},{"$f":"IF(A145=\"\",\"\",'1. Checklist & Certification'!$F$9)","v":""},{"$f":"IF(A145=\"\",\"\",'1. Checklist & Certification'!$C$10)","v":""},{"$f":"IF(A145=\"\",\"\",'1. Checklist & Certification'!$C$11)","v":""},{"$f":"IF(A145=\"\",\"\",'1. Checklist & Certification'!$C$12)","v":""},{"$f":"IF(A145=\"\",\"\",'1. Checklist & Certification'!$B$14)","v":""},{"$f":"IF(A145=\"\",\"\",'1. Checklist & Certification'!$E$14)","v":""},{"$f":"IF(B145=\"\",\"\",'1. Checklist & Certification'!$G$14)","v":""},{"$f":"IF(A145=\"\",\"\",'MHP Family Income & Rent Limits'!$B$3)","v":""},{"$f":"IF(A145=\"\",\"\",'MHP Family Income & Rent Limits'!$J$3)","v":""},{"$f":"IF(A145=\"\",\"\",'MHP Family Income & Rent Limits'!$E$4)","v":""},{"$f":"IF(A145=\"\",\"\",'MHP Family Income & Rent Limits'!$C$7)","v":""},{"$f":"IF(A145=\"\",\"\",'MHP Family Income & Rent Limits'!$F$8)","v":""},{"$f":"IF(A145=\"\",\"\",'1. Checklist & Certification'!$G$4)","v":""},{"$f":"IF(A145=\"\",\"\",'1. Checklist & Certification'!$K$39)","v":""},{"$f":"IF(A145=\"\",\"\",'1. Checklist & Certification'!$K$43)","v":""},{"$f":"IF(A145=\"\",\"\",'1. Checklist & Certification'!$K$45)","v":""},{"$f":"IF(A145=\"\",\"\",'1. Checklist & Certification'!$K$49)","v":""},{"$f":"IF(A145=\"\",\"\",'1. Checklist & Certification'!$K$62)","v":""},{"$f":"IF(A145=\"\",\"\",'1. Checklist & Certification'!$E$66)","v":""},{"$f":"IF(A145=\"\",\"\",'1. Checklist & Certification'!$E$67)","v":""},{"$f":"IF(A145=\"\",\"\",'1. Checklist & Certification'!$E$68)","v":""},{"$f":"IF(A145=\"\",\"\",'1. Checklist & Certification'!$G$66)","v":""},{"$f":"IF(A145=\"\",\"\",'1. Checklist & Certification'!$H$66)","v":""},{"$f":"IF(A145=\"\",\"\",'1. Checklist & Certification'!$I$66)","v":""},{"$f":"IF(A145=\"\",\"\",'1. Checklist & Certification'!$I$67)","v":""},{"$f":"IF(A145=\"\",\"\",'1. Checklist & Certification'!$I$68)","v":""},{"$f":"IF(A145=\"\",\"\",'1. Checklist & Certification'!$B$69)","v":""},{"$f":"IF(A145=\"\",\"\",'1. Checklist & Certification'!$C$69)","v":""},{"$f":"IF(A145=\"\",\"\",'1. Checklist & Certification'!$F$69)","v":""},{"$f":"IF(A145=\"\",\"\",'1. Checklist & Certification'!$G$69)","v":""},{"$f":"IF(A145=\"\",\"\",'1. Checklist & Certification'!$J$69)","v":""},{"$f":"IF(A145=\"\",\"\",'1. Checklist & Certification'!$K$69)","v":""},null,null,{"$f":"IF(AND(OR('1. Checklist & Certification'!$M$16=1,'1. Checklist & Certification'!$M$19=2),AO145>0,B145=\"\",I145>0,AQ145<I145,AV145<>\"Sec 8-Project\"),\"X\",IF(AND(OR('1. Checklist & Certification'!$M$20=4,'1. Checklist & Certification'!$M$21=5,'1. Checklist & Certification'!$M$22=7),AO145>0,B145=\"\",I145>0,K145<I145),\"X\",\"\"))","v":""},{"$f":"IF(A145=\"\",\"\",IF(SUMPRODUCT(-- (ISNUMBER(SEARCH({\"*AHSC*\",\"*FMTW*\",\"*FWHG*\",\"*GHI*\",\"*HHC*\",\"*HLCP*\",\"*HOME*\",\"*LPR*\",\"*MHP*\",\"*NHTF*\",\"*NSP*\",\"*PRP*\",\"*TOD*\",\"*VHHP*\"},'1. Checklist & Certification'!$L$7)))),\"MHP\",\"Legacy\"))","v":""},",,",null,null,null,{"$f":"IF('1. Checklist & Certification'!$M$20=4,\"Both\",IF(OR('1. Checklist & Certification'!$M$15>0,S145=\"CHRP-R\",U145=\"CHRP-R\",W145=\"CHRP-R\",Y145=\"CHRP-R\"),\"Under\",\"No\"))","v":"No"},"No","No",{"$f":"_xlfn.IFS(D145=\"\",\"\",D145=1,'MHP Family Income & Rent Limits'!$E$17,D145=2,'MHP Family Income & Rent Limits'!$F$17,D145=3,'MHP Family Income & Rent Limits'!$G$17,D145=4,'MHP Family Income & Rent Limits'!$H$17,D145=5,'MHP Family Income & Rent Limits'!$I$17,D145=6,'MHP Family Income & Rent Limits'!$J$17,D145=7,'MHP Family Income & Rent Limits'!$K$17,D145=8,'MHP Family Income & Rent Limits'!$L$17)","v":""},"",{"$f":"IF(OR(A145=0,B145=\"X\"),0,MIN(IF(AA145:AD145<>0,AA145:AD145)))","v":0},{"$f":"IF(OR(H145=\"\",I145=\"\"),0,IF(H145*0.3/12>I145,MIN(H145*0.3/12,I145*1.1)+AP145,I145*(1+(VLOOKUP('1. Checklist & Certification'!$F$9,'HLCP-E Rent Change'!$A$1:$D$59,4,FALSE)))+AP145))","v":0}]
[null,null,null,null,null,null,null,null,null,null,null,null,null,null,null,null,null,null,null,null,null,null,null,null,null,null,0,0,0,0,0,0,0,0,{"$f":"IF(OR(A146=0,B146=\"X\"),0,IF(OR(S146=\"FHDP\",S146=\"RHCP-B\",U146=\"FHDP\",U146=\"RHCP-B\",W146=\"FHDP\",W146=\"RHCP-B\",Y146=\"FHDP\",Y146=\"RHCP-B\"),TRUNC((MIN(I146,K146)*(1+'1. Checklist & Certification'!$K$43)+AP146)),0))","v":0},{"$f":"IF(OR(A146=0,B146=\"X\"),0,IF(OR(S146=\"CHRP-R\",S146=\"SERA\",S146=\"SUHRP\",U146=\"CHRP-R\",U146=\"SERA\",U146=\"SUHRP\",W146=\"CHRP-R\",W146=\"SERA\",W146=\"SUHRP\",Y146=\"CHRP-R\",Y146=\"SERA\",Y146=\"SUHRP\"),TRUNC((MIN(I146,K146)*(1+'1. Checklist & Certification'!$K$49))),0))","v":0},{"$f":"IF(OR(A146=0,B146=\"X\"),0,IF(OR(S146=\"CALDAP\",S146=\"DPRLP\",U146=\"CALDAP\",U146=\"DPRLP\",W146=\"CALDAP\",W146=\"DPRLP\",Y146=\"CALDAP\",Y146=\"DPRLP\"),TRUNC(((MIN(I146,K146))*(1+'1. Checklist & Certification'!$G$4))),0))","v":0},0,0,0,{"$f":"IF(OR(A146=0,B146=\"X\"),0,IF(OR(S146=\"PRP\",S146=\"LPR\",U146=\"PRP\",U146=\"LPR\",W146=\"PRP\",W146=\"LPR\",Y146=\"PRP\",Y146=\"LPR\"),MAX(I146+AP146,MIN(IF(AE146:AN146<>0,AE146:AN146))),MIN(IF(AE146:AN146<>0,AE146:AN146))))","v":0},{"$f":"IF(A146=0,0,IF(AND(OR(S146=\"Mgr\",S146=0),OR(U146=\"Mgr\",U146=0),OR(W146=\"Mgr\",W146=0)),0,IF(LEFT($A146,2)=\"B*\",VLOOKUP($E146,'1. Checklist & Certification'!$D$26:$E$32,2),IF(LEFT($A146,2)=\"C*\",VLOOKUP($E146,'1. Checklist & Certification'!$F$26:$G$32,2),IF(LEFT($A146,2)=\"D*\",VLOOKUP($E146,'1. Checklist & Certification'!$H$26:$I$32,2),IF(LEFT($A146,2)=\"E*\",VLOOKUP($E146,'1. Checklist & Certification'!$J$26:$K$32,2),VLOOKUP($E146,'1. Checklist & Certification'!$A$26:$B$32,2)))))))","v":0},0,0,null,null,null,null,"","",0,0,0,null,{"$f":"IF(A146=\"\",\"\",'1. Checklist & Certification'!$K$1)","v":""},{"$f":"IF(A146=\"\",\"\",'1. Checklist & Certification'!$C$62)","v":""},{"$f":"IF(A146=\"\",\"\",'1. Checklist & Certification'!$C$6)","v":""},{"$f":"IF(A146=\"\",\"\",'1. Checklist & Certification'!$G$5)","v":""},{"$f":"IFERROR(IF(A146=\"\",\"\",\n_xlfn.LET(_xlpm.Contract,'1. Checklist & Certification'!$C$7,\n_xlpm.Yr,TEXT(MOD(_xlfn.TEXTBEFORE(_xlpm.Contract,\"-\"),100),\"00\"),\n_xlpm.Program,_xlfn.TEXTAFTER(_xlfn.TEXTBEFORE(_xlpm.Contract,\"-\",2),\"-\"),\n_xlpm.CleanProgram,_xlfn.XLOOKUP(_xlpm.Program,SpellCheck[Input],SpellCheck[Correction],_xlpm.Program),\n_xlpm.Number,TEXT(_xlfn.TEXTAFTER(_xlpm.Contract,\"-\",2),\"0000\"),\n_xlfn.CONCAT(_xlpm.Yr,\"-\",_xlpm.CleanProgram,\"-\",_xlpm.Number))\n),\"\")","v":""},{"$f":"IFERROR(IF(A146=\"\",\"\",\n_xlfn.LET(_xlpm.Contract,'1. Checklist & Certification'!$C$8,\n_xlpm.Yr,TEXT(MOD(_xlfn.TEXTBEFORE(_xlpm.Contract,\"-\"),100),\"00\"),\n_xlpm.Program,_xlfn.TEXTAFTER(_xlfn.TEXTBEFORE(_xlpm.Contract,\"-\",2),\"-\"),\n_xlpm.CleanProgram,_xlfn.XLOOKUP(_xlpm.Program,SpellCheck[Input],SpellCheck[Correction],_xlpm.Program),\n_xlpm.Number,TEXT(_xlfn.TEXTAFTER(_xlpm.Contract,\"-\",2),\"0000\"),\n_xlfn.CONCAT(_xlpm.Yr,\"-\",_xlpm.CleanProgram,\"-\",_xlpm.Number))\n),\"\")","v":""},{"$f":"IFERROR(IF(A146=\"\",\"\",\n_xlfn.LET(_xlpm.Contract,'1. Checklist & Certification'!$F$7,\n_xlpm.Yr,TEXT(MOD(_xlfn.TEXTBEFORE(_xlpm.Contract,\"-\"),100),\"00\"),\n_xlpm.Program,_xlfn.TEXTAFTER(_xlfn.TEXTBEFORE(_xlpm.Contract,\"-\",2),\"-\"),\n_xlpm.CleanProgram,_xlfn.XLOOKUP(_xlpm.Program,SpellCheck[Input],SpellCheck[Correction],_xlpm.Program),\n_xlpm.Number,TEXT(_xlfn.TEXTAFTER(_xlpm.Contract,\"-\",2),\"0000\"),\n_xlfn.CONCAT(_xlpm.Yr,\"-\",_xlpm.CleanProgram,\"-\",_xlpm.Number))\n),\"\")","v":""},{"$f":"IFERROR(IF(A146=\"\",\"\",\n_xlfn.LET(_xlpm.Contract,'1. Checklist & Certification'!$F$8,\n_xlpm.Yr,TEXT(MOD(_xlfn.TEXTBEFORE(_xlpm.Contract,\"-\"),100),\"00\"),\n_xlpm.Program,_xlfn.TEXTAFTER(_xlfn.TEXTBEFORE(_xlpm.Contract,\"-\",2),\"-\"),\n_xlpm.CleanProgram,_xlfn.XLOOKUP(_xlpm.Program,SpellCheck[Input],SpellCheck[Correction],_xlpm.Program),\n_xlpm.Number,TEXT(_xlfn.TEXTAFTER(_xlpm.Contract,\"-\",2),\"0000\"),\n_xlfn.CONCAT(_xlpm.Yr,\"-\",_xlpm.CleanProgram,\"-\",_xlpm.Number))\n),\"\")","v":""},{"$f":"IF(A146=\"\",\"\",'1. Checklist & Certification'!$B$9)","v":""},{"$f":"IF(A146=\"\",\"\",'1. Checklist & Certification'!$F$9)","v":""},{"$f":"IF(A146=\"\",\"\",'1. Checklist & Certification'!$C$10)","v":""},{"$f":"IF(A146=\"\",\"\",'1. Checklist & Certification'!$C$11)","v":""},{"$f":"IF(A146=\"\",\"\",'1. Checklist & Certification'!$C$12)","v":""},{"$f":"IF(A146=\"\",\"\",'1. Checklist & Certification'!$B$14)","v":""},{"$f":"IF(A146=\"\",\"\",'1. Checklist & Certification'!$E$14)","v":""},{"$f":"IF(B146=\"\",\"\",'1. Checklist & Certification'!$G$14)","v":""},{"$f":"IF(A146=\"\",\"\",'MHP Family Income & Rent Limits'!$B$3)","v":""},{"$f":"IF(A146=\"\",\"\",'MHP Family Income & Rent Limits'!$J$3)","v":""},{"$f":"IF(A146=\"\",\"\",'MHP Family Income & Rent Limits'!$E$4)","v":""},{"$f":"IF(A146=\"\",\"\",'MHP Family Income & Rent Limits'!$C$7)","v":""},{"$f":"IF(A146=\"\",\"\",'MHP Family Income & Rent Limits'!$F$8)","v":""},{"$f":"IF(A146=\"\",\"\",'1. Checklist & Certification'!$G$4)","v":""},{"$f":"IF(A146=\"\",\"\",'1. Checklist & Certification'!$K$39)","v":""},{"$f":"IF(A146=\"\",\"\",'1. Checklist & Certification'!$K$43)","v":""},{"$f":"IF(A146=\"\",\"\",'1. Checklist & Certification'!$K$45)","v":""},{"$f":"IF(A146=\"\",\"\",'1. Checklist & Certification'!$K$49)","v":""},{"$f":"IF(A146=\"\",\"\",'1. Checklist & Certification'!$K$62)","v":""},{"$f":"IF(A146=\"\",\"\",'1. Checklist & Certification'!$E$66)","v":""},{"$f":"IF(A146=\"\",\"\",'1. Checklist & Certification'!$E$67)","v":""},{"$f":"IF(A146=\"\",\"\",'1. Checklist & Certification'!$E$68)","v":""},{"$f":"IF(A146=\"\",\"\",'1. Checklist & Certification'!$G$66)","v":""},{"$f":"IF(A146=\"\",\"\",'1. Checklist & Certification'!$H$66)","v":""},{"$f":"IF(A146=\"\",\"\",'1. Checklist & Certification'!$I$66)","v":""},{"$f":"IF(A146=\"\",\"\",'1. Checklist & Certification'!$I$67)","v":""},{"$f":"IF(A146=\"\",\"\",'1. Checklist & Certification'!$I$68)","v":""},{"$f":"IF(A146=\"\",\"\",'1. Checklist & Certification'!$B$69)","v":""},{"$f":"IF(A146=\"\",\"\",'1. Checklist & Certification'!$C$69)","v":""},{"$f":"IF(A146=\"\",\"\",'1. Checklist & Certification'!$F$69)","v":""},{"$f":"IF(A146=\"\",\"\",'1. Checklist & Certification'!$G$69)","v":""},{"$f":"IF(A146=\"\",\"\",'1. Checklist & Certification'!$J$69)","v":""},{"$f":"IF(A146=\"\",\"\",'1. Checklist & Certification'!$K$69)","v":""},null,null,{"$f":"IF(AND(OR('1. Checklist & Certification'!$M$16=1,'1. Checklist & Certification'!$M$19=2),AO146>0,B146=\"\",I146>0,AQ146<I146,AV146<>\"Sec 8-Project\"),\"X\",IF(AND(OR('1. Checklist & Certification'!$M$20=4,'1. Checklist & Certification'!$M$21=5,'1. Checklist & Certification'!$M$22=7),AO146>0,B146=\"\",I146>0,K146<I146),\"X\",\"\"))","v":""},{"$f":"IF(A146=\"\",\"\",IF(SUMPRODUCT(-- (ISNUMBER(SEARCH({\"*AHSC*\",\"*FMTW*\",\"*FWHG*\",\"*GHI*\",\"*HHC*\",\"*HLCP*\",\"*HOME*\",\"*LPR*\",\"*MHP*\",\"*NHTF*\",\"*NSP*\",\"*PRP*\",\"*TOD*\",\"*VHHP*\"},'1. Checklist & Certification'!$L$7)))),\"MHP\",\"Legacy\"))","v":""},",,",null,null,null,{"$f":"IF('1. Checklist & Certification'!$M$20=4,\"Both\",IF(OR('1. Checklist & Certification'!$M$15>0,S146=\"CHRP-R\",U146=\"CHRP-R\",W146=\"CHRP-R\",Y146=\"CHRP-R\"),\"Under\",\"No\"))","v":"No"},"No","No",{"$f":"_xlfn.IFS(D146=\"\",\"\",D146=1,'MHP Family Income & Rent Limits'!$E$17,D146=2,'MHP Family Income & Rent Limits'!$F$17,D146=3,'MHP Family Income & Rent Limits'!$G$17,D146=4,'MHP Family Income & Rent Limits'!$H$17,D146=5,'MHP Family Income & Rent Limits'!$I$17,D146=6,'MHP Family Income & Rent Limits'!$J$17,D146=7,'MHP Family Income & Rent Limits'!$K$17,D146=8,'MHP Family Income & Rent Limits'!$L$17)","v":""},"",{"$f":"IF(OR(A146=0,B146=\"X\"),0,MIN(IF(AA146:AD146<>0,AA146:AD146)))","v":0},{"$f":"IF(OR(H146=\"\",I146=\"\"),0,IF(H146*0.3/12>I146,MIN(H146*0.3/12,I146*1.1)+AP146,I146*(1+(VLOOKUP('1. Checklist & Certification'!$F$9,'HLCP-E Rent Change'!$A$1:$D$59,4,FALSE)))+AP146))","v":0}]
[null,null,null,null,null,null,null,null,null,null,null,null,null,null,null,null,null,null,null,null,null,null,null,null,null,null,0,0,0,0,0,0,0,0,{"$f":"IF(OR(A147=0,B147=\"X\"),0,IF(OR(S147=\"FHDP\",S147=\"RHCP-B\",U147=\"FHDP\",U147=\"RHCP-B\",W147=\"FHDP\",W147=\"RHCP-B\",Y147=\"FHDP\",Y147=\"RHCP-B\"),TRUNC((MIN(I147,K147)*(1+'1. Checklist & Certification'!$K$43)+AP147)),0))","v":0},{"$f":"IF(OR(A147=0,B147=\"X\"),0,IF(OR(S147=\"CHRP-R\",S147=\"SERA\",S147=\"SUHRP\",U147=\"CHRP-R\",U147=\"SERA\",U147=\"SUHRP\",W147=\"CHRP-R\",W147=\"SERA\",W147=\"SUHRP\",Y147=\"CHRP-R\",Y147=\"SERA\",Y147=\"SUHRP\"),TRUNC((MIN(I147,K147)*(1+'1. Checklist & Certification'!$K$49))),0))","v":0},{"$f":"IF(OR(A147=0,B147=\"X\"),0,IF(OR(S147=\"CALDAP\",S147=\"DPRLP\",U147=\"CALDAP\",U147=\"DPRLP\",W147=\"CALDAP\",W147=\"DPRLP\",Y147=\"CALDAP\",Y147=\"DPRLP\"),TRUNC(((MIN(I147,K147))*(1+'1. Checklist & Certification'!$G$4))),0))","v":0},0,0,0,{"$f":"IF(OR(A147=0,B147=\"X\"),0,IF(OR(S147=\"PRP\",S147=\"LPR\",U147=\"PRP\",U147=\"LPR\",W147=\"PRP\",W147=\"LPR\",Y147=\"PRP\",Y147=\"LPR\"),MAX(I147+AP147,MIN(IF(AE147:AN147<>0,AE147:AN147))),MIN(IF(AE147:AN147<>0,AE147:AN147))))","v":0},{"$f":"IF(A147=0,0,IF(AND(OR(S147=\"Mgr\",S147=0),OR(U147=\"Mgr\",U147=0),OR(W147=\"Mgr\",W147=0)),0,IF(LEFT($A147,2)=\"B*\",VLOOKUP($E147,'1. Checklist & Certification'!$D$26:$E$32,2),IF(LEFT($A147,2)=\"C*\",VLOOKUP($E147,'1. Checklist & Certification'!$F$26:$G$32,2),IF(LEFT($A147,2)=\"D*\",VLOOKUP($E147,'1. Checklist & Certification'!$H$26:$I$32,2),IF(LEFT($A147,2)=\"E*\",VLOOKUP($E147,'1. Checklist & Certification'!$J$26:$K$32,2),VLOOKUP($E147,'1. Checklist & Certification'!$A$26:$B$32,2)))))))","v":0},0,0,null,null,null,null,"","",0,0,0,null,{"$f":"IF(A147=\"\",\"\",'1. Checklist & Certification'!$K$1)","v":""},{"$f":"IF(A147=\"\",\"\",'1. Checklist & Certification'!$C$62)","v":""},{"$f":"IF(A147=\"\",\"\",'1. Checklist & Certification'!$C$6)","v":""},{"$f":"IF(A147=\"\",\"\",'1. Checklist & Certification'!$G$5)","v":""},{"$f":"IFERROR(IF(A147=\"\",\"\",\n_xlfn.LET(_xlpm.Contract,'1. Checklist & Certification'!$C$7,\n_xlpm.Yr,TEXT(MOD(_xlfn.TEXTBEFORE(_xlpm.Contract,\"-\"),100),\"00\"),\n_xlpm.Program,_xlfn.TEXTAFTER(_xlfn.TEXTBEFORE(_xlpm.Contract,\"-\",2),\"-\"),\n_xlpm.CleanProgram,_xlfn.XLOOKUP(_xlpm.Program,SpellCheck[Input],SpellCheck[Correction],_xlpm.Program),\n_xlpm.Number,TEXT(_xlfn.TEXTAFTER(_xlpm.Contract,\"-\",2),\"0000\"),\n_xlfn.CONCAT(_xlpm.Yr,\"-\",_xlpm.CleanProgram,\"-\",_xlpm.Number))\n),\"\")","v":""},{"$f":"IFERROR(IF(A147=\"\",\"\",\n_xlfn.LET(_xlpm.Contract,'1. Checklist & Certification'!$C$8,\n_xlpm.Yr,TEXT(MOD(_xlfn.TEXTBEFORE(_xlpm.Contract,\"-\"),100),\"00\"),\n_xlpm.Program,_xlfn.TEXTAFTER(_xlfn.TEXTBEFORE(_xlpm.Contract,\"-\",2),\"-\"),\n_xlpm.CleanProgram,_xlfn.XLOOKUP(_xlpm.Program,SpellCheck[Input],SpellCheck[Correction],_xlpm.Program),\n_xlpm.Number,TEXT(_xlfn.TEXTAFTER(_xlpm.Contract,\"-\",2),\"0000\"),\n_xlfn.CONCAT(_xlpm.Yr,\"-\",_xlpm.CleanProgram,\"-\",_xlpm.Number))\n),\"\")","v":""},{"$f":"IFERROR(IF(A147=\"\",\"\",\n_xlfn.LET(_xlpm.Contract,'1. Checklist & Certification'!$F$7,\n_xlpm.Yr,TEXT(MOD(_xlfn.TEXTBEFORE(_xlpm.Contract,\"-\"),100),\"00\"),\n_xlpm.Program,_xlfn.TEXTAFTER(_xlfn.TEXTBEFORE(_xlpm.Contract,\"-\",2),\"-\"),\n_xlpm.CleanProgram,_xlfn.XLOOKUP(_xlpm.Program,SpellCheck[Input],SpellCheck[Correction],_xlpm.Program),\n_xlpm.Number,TEXT(_xlfn.TEXTAFTER(_xlpm.Contract,\"-\",2),\"0000\"),\n_xlfn.CONCAT(_xlpm.Yr,\"-\",_xlpm.CleanProgram,\"-\",_xlpm.Number))\n),\"\")","v":""},{"$f":"IFERROR(IF(A147=\"\",\"\",\n_xlfn.LET(_xlpm.Contract,'1. Checklist & Certification'!$F$8,\n_xlpm.Yr,TEXT(MOD(_xlfn.TEXTBEFORE(_xlpm.Contract,\"-\"),100),\"00\"),\n_xlpm.Program,_xlfn.TEXTAFTER(_xlfn.TEXTBEFORE(_xlpm.Contract,\"-\",2),\"-\"),\n_xlpm.CleanProgram,_xlfn.XLOOKUP(_xlpm.Program,SpellCheck[Input],SpellCheck[Correction],_xlpm.Program),\n_xlpm.Number,TEXT(_xlfn.TEXTAFTER(_xlpm.Contract,\"-\",2),\"0000\"),\n_xlfn.CONCAT(_xlpm.Yr,\"-\",_xlpm.CleanProgram,\"-\",_xlpm.Number))\n),\"\")","v":""},{"$f":"IF(A147=\"\",\"\",'1. Checklist & Certification'!$B$9)","v":""},{"$f":"IF(A147=\"\",\"\",'1. Checklist & Certification'!$F$9)","v":""},{"$f":"IF(A147=\"\",\"\",'1. Checklist & Certification'!$C$10)","v":""},{"$f":"IF(A147=\"\",\"\",'1. Checklist & Certification'!$C$11)","v":""},{"$f":"IF(A147=\"\",\"\",'1. Checklist & Certification'!$C$12)","v":""},{"$f":"IF(A147=\"\",\"\",'1. Checklist & Certification'!$B$14)","v":""},{"$f":"IF(A147=\"\",\"\",'1. Checklist & Certification'!$E$14)","v":""},{"$f":"IF(B147=\"\",\"\",'1. Checklist & Certification'!$G$14)","v":""},{"$f":"IF(A147=\"\",\"\",'MHP Family Income & Rent Limits'!$B$3)","v":""},{"$f":"IF(A147=\"\",\"\",'MHP Family Income & Rent Limits'!$J$3)","v":""},{"$f":"IF(A147=\"\",\"\",'MHP Family Income & Rent Limits'!$E$4)","v":""},{"$f":"IF(A147=\"\",\"\",'MHP Family Income & Rent Limits'!$C$7)","v":""},{"$f":"IF(A147=\"\",\"\",'MHP Family Income & Rent Limits'!$F$8)","v":""},{"$f":"IF(A147=\"\",\"\",'1. Checklist & Certification'!$G$4)","v":""},{"$f":"IF(A147=\"\",\"\",'1. Checklist & Certification'!$K$39)","v":""},{"$f":"IF(A147=\"\",\"\",'1. Checklist & Certification'!$K$43)","v":""},{"$f":"IF(A147=\"\",\"\",'1. Checklist & Certification'!$K$45)","v":""},{"$f":"IF(A147=\"\",\"\",'1. Checklist & Certification'!$K$49)","v":""},{"$f":"IF(A147=\"\",\"\",'1. Checklist & Certification'!$K$62)","v":""},{"$f":"IF(A147=\"\",\"\",'1. Checklist & Certification'!$E$66)","v":""},{"$f":"IF(A147=\"\",\"\",'1. Checklist & Certification'!$E$67)","v":""},{"$f":"IF(A147=\"\",\"\",'1. Checklist & Certification'!$E$68)","v":""},{"$f":"IF(A147=\"\",\"\",'1. Checklist & Certification'!$G$66)","v":""},{"$f":"IF(A147=\"\",\"\",'1. Checklist & Certification'!$H$66)","v":""},{"$f":"IF(A147=\"\",\"\",'1. Checklist & Certification'!$I$66)","v":""},{"$f":"IF(A147=\"\",\"\",'1. Checklist & Certification'!$I$67)","v":""},{"$f":"IF(A147=\"\",\"\",'1. Checklist & Certification'!$I$68)","v":""},{"$f":"IF(A147=\"\",\"\",'1. Checklist & Certification'!$B$69)","v":""},{"$f":"IF(A147=\"\",\"\",'1. Checklist & Certification'!$C$69)","v":""},{"$f":"IF(A147=\"\",\"\",'1. Checklist & Certification'!$F$69)","v":""},{"$f":"IF(A147=\"\",\"\",'1. Checklist & Certification'!$G$69)","v":""},{"$f":"IF(A147=\"\",\"\",'1. Checklist & Certification'!$J$69)","v":""},{"$f":"IF(A147=\"\",\"\",'1. Checklist & Certification'!$K$69)","v":""},null,null,{"$f":"IF(AND(OR('1. Checklist & Certification'!$M$16=1,'1. Checklist & Certification'!$M$19=2),AO147>0,B147=\"\",I147>0,AQ147<I147,AV147<>\"Sec 8-Project\"),\"X\",IF(AND(OR('1. Checklist & Certification'!$M$20=4,'1. Checklist & Certification'!$M$21=5,'1. Checklist & Certification'!$M$22=7),AO147>0,B147=\"\",I147>0,K147<I147),\"X\",\"\"))","v":""},{"$f":"IF(A147=\"\",\"\",IF(SUMPRODUCT(-- (ISNUMBER(SEARCH({\"*AHSC*\",\"*FMTW*\",\"*FWHG*\",\"*GHI*\",\"*HHC*\",\"*HLCP*\",\"*HOME*\",\"*LPR*\",\"*MHP*\",\"*NHTF*\",\"*NSP*\",\"*PRP*\",\"*TOD*\",\"*VHHP*\"},'1. Checklist & Certification'!$L$7)))),\"MHP\",\"Legacy\"))","v":""},",,",null,null,null,{"$f":"IF('1. Checklist & Certification'!$M$20=4,\"Both\",IF(OR('1. Checklist & Certification'!$M$15>0,S147=\"CHRP-R\",U147=\"CHRP-R\",W147=\"CHRP-R\",Y147=\"CHRP-R\"),\"Under\",\"No\"))","v":"No"},"No","No",{"$f":"_xlfn.IFS(D147=\"\",\"\",D147=1,'MHP Family Income & Rent Limits'!$E$17,D147=2,'MHP Family Income & Rent Limits'!$F$17,D147=3,'MHP Family Income & Rent Limits'!$G$17,D147=4,'MHP Family Income & Rent Limits'!$H$17,D147=5,'MHP Family Income & Rent Limits'!$I$17,D147=6,'MHP Family Income & Rent Limits'!$J$17,D147=7,'MHP Family Income & Rent Limits'!$K$17,D147=8,'MHP Family Income & Rent Limits'!$L$17)","v":""},"",{"$f":"IF(OR(A147=0,B147=\"X\"),0,MIN(IF(AA147:AD147<>0,AA147:AD147)))","v":0},{"$f":"IF(OR(H147=\"\",I147=\"\"),0,IF(H147*0.3/12>I147,MIN(H147*0.3/12,I147*1.1)+AP147,I147*(1+(VLOOKUP('1. Checklist & Certification'!$F$9,'HLCP-E Rent Change'!$A$1:$D$59,4,FALSE)))+AP147))","v":0}]
[null,null,null,null,null,null,null,null,null,null,null,null,null,null,null,null,null,null,null,null,null,null,null,null,null,null,0,0,0,0,0,0,0,0,{"$f":"IF(OR(A148=0,B148=\"X\"),0,IF(OR(S148=\"FHDP\",S148=\"RHCP-B\",U148=\"FHDP\",U148=\"RHCP-B\",W148=\"FHDP\",W148=\"RHCP-B\",Y148=\"FHDP\",Y148=\"RHCP-B\"),TRUNC((MIN(I148,K148)*(1+'1. Checklist & Certification'!$K$43)+AP148)),0))","v":0},{"$f":"IF(OR(A148=0,B148=\"X\"),0,IF(OR(S148=\"CHRP-R\",S148=\"SERA\",S148=\"SUHRP\",U148=\"CHRP-R\",U148=\"SERA\",U148=\"SUHRP\",W148=\"CHRP-R\",W148=\"SERA\",W148=\"SUHRP\",Y148=\"CHRP-R\",Y148=\"SERA\",Y148=\"SUHRP\"),TRUNC((MIN(I148,K148)*(1+'1. Checklist & Certification'!$K$49))),0))","v":0},{"$f":"IF(OR(A148=0,B148=\"X\"),0,IF(OR(S148=\"CALDAP\",S148=\"DPRLP\",U148=\"CALDAP\",U148=\"DPRLP\",W148=\"CALDAP\",W148=\"DPRLP\",Y148=\"CALDAP\",Y148=\"DPRLP\"),TRUNC(((MIN(I148,K148))*(1+'1. Checklist & Certification'!$G$4))),0))","v":0},0,0,0,{"$f":"IF(OR(A148=0,B148=\"X\"),0,IF(OR(S148=\"PRP\",S148=\"LPR\",U148=\"PRP\",U148=\"LPR\",W148=\"PRP\",W148=\"LPR\",Y148=\"PRP\",Y148=\"LPR\"),MAX(I148+AP148,MIN(IF(AE148:AN148<>0,AE148:AN148))),MIN(IF(AE148:AN148<>0,AE148:AN148))))","v":0},{"$f":"IF(A148=0,0,IF(AND(OR(S148=\"Mgr\",S148=0),OR(U148=\"Mgr\",U148=0),OR(W148=\"Mgr\",W148=0)),0,IF(LEFT($A148,2)=\"B*\",VLOOKUP($E148,'1. Checklist & Certification'!$D$26:$E$32,2),IF(LEFT($A148,2)=\"C*\",VLOOKUP($E148,'1. Checklist & Certification'!$F$26:$G$32,2),IF(LEFT($A148,2)=\"D*\",VLOOKUP($E148,'1. Checklist & Certification'!$H$26:$I$32,2),IF(LEFT($A148,2)=\"E*\",VLOOKUP($E148,'1. Checklist & Certification'!$J$26:$K$32,2),VLOOKUP($E148,'1. Checklist & Certification'!$A$26:$B$32,2)))))))","v":0},0,0,null,null,null,null,"","",0,0,0,null,{"$f":"IF(A148=\"\",\"\",'1. Checklist & Certification'!$K$1)","v":""},{"$f":"IF(A148=\"\",\"\",'1. Checklist & Certification'!$C$62)","v":""},{"$f":"IF(A148=\"\",\"\",'1. Checklist & Certification'!$C$6)","v":""},{"$f":"IF(A148=\"\",\"\",'1. Checklist & Certification'!$G$5)","v":""},{"$f":"IFERROR(IF(A148=\"\",\"\",\n_xlfn.LET(_xlpm.Contract,'1. Checklist & Certification'!$C$7,\n_xlpm.Yr,TEXT(MOD(_xlfn.TEXTBEFORE(_xlpm.Contract,\"-\"),100),\"00\"),\n_xlpm.Program,_xlfn.TEXTAFTER(_xlfn.TEXTBEFORE(_xlpm.Contract,\"-\",2),\"-\"),\n_xlpm.CleanProgram,_xlfn.XLOOKUP(_xlpm.Program,SpellCheck[Input],SpellCheck[Correction],_xlpm.Program),\n_xlpm.Number,TEXT(_xlfn.TEXTAFTER(_xlpm.Contract,\"-\",2),\"0000\"),\n_xlfn.CONCAT(_xlpm.Yr,\"-\",_xlpm.CleanProgram,\"-\",_xlpm.Number))\n),\"\")","v":""},{"$f":"IFERROR(IF(A148=\"\",\"\",\n_xlfn.LET(_xlpm.Contract,'1. Checklist & Certification'!$C$8,\n_xlpm.Yr,TEXT(MOD(_xlfn.TEXTBEFORE(_xlpm.Contract,\"-\"),100),\"00\"),\n_xlpm.Program,_xlfn.TEXTAFTER(_xlfn.TEXTBEFORE(_xlpm.Contract,\"-\",2),\"-\"),\n_xlpm.CleanProgram,_xlfn.XLOOKUP(_xlpm.Program,SpellCheck[Input],SpellCheck[Correction],_xlpm.Program),\n_xlpm.Number,TEXT(_xlfn.TEXTAFTER(_xlpm.Contract,\"-\",2),\"0000\"),\n_xlfn.CONCAT(_xlpm.Yr,\"-\",_xlpm.CleanProgram,\"-\",_xlpm.Number))\n),\"\")","v":""},{"$f":"IFERROR(IF(A148=\"\",\"\",\n_xlfn.LET(_xlpm.Contract,'1. Checklist & Certification'!$F$7,\n_xlpm.Yr,TEXT(MOD(_xlfn.TEXTBEFORE(_xlpm.Contract,\"-\"),100),\"00\"),\n_xlpm.Program,_xlfn.TEXTAFTER(_xlfn.TEXTBEFORE(_xlpm.Contract,\"-\",2),\"-\"),\n_xlpm.CleanProgram,_xlfn.XLOOKUP(_xlpm.Program,SpellCheck[Input],SpellCheck[Correction],_xlpm.Program),\n_xlpm.Number,TEXT(_xlfn.TEXTAFTER(_xlpm.Contract,\"-\",2),\"0000\"),\n_xlfn.CONCAT(_xlpm.Yr,\"-\",_xlpm.CleanProgram,\"-\",_xlpm.Number))\n),\"\")","v":""},{"$f":"IFERROR(IF(A148=\"\",\"\",\n_xlfn.LET(_xlpm.Contract,'1. Checklist & Certification'!$F$8,\n_xlpm.Yr,TEXT(MOD(_xlfn.TEXTBEFORE(_xlpm.Contract,\"-\"),100),\"00\"),\n_xlpm.Program,_xlfn.TEXTAFTER(_xlfn.TEXTBEFORE(_xlpm.Contract,\"-\",2),\"-\"),\n_xlpm.CleanProgram,_xlfn.XLOOKUP(_xlpm.Program,SpellCheck[Input],SpellCheck[Correction],_xlpm.Program),\n_xlpm.Number,TEXT(_xlfn.TEXTAFTER(_xlpm.Contract,\"-\",2),\"0000\"),\n_xlfn.CONCAT(_xlpm.Yr,\"-\",_xlpm.CleanProgram,\"-\",_xlpm.Number))\n),\"\")","v":""},{"$f":"IF(A148=\"\",\"\",'1. Checklist & Certification'!$B$9)","v":""},{"$f":"IF(A148=\"\",\"\",'1. Checklist & Certification'!$F$9)","v":""},{"$f":"IF(A148=\"\",\"\",'1. Checklist & Certification'!$C$10)","v":""},{"$f":"IF(A148=\"\",\"\",'1. Checklist & Certification'!$C$11)","v":""},{"$f":"IF(A148=\"\",\"\",'1. Checklist & Certification'!$C$12)","v":""},{"$f":"IF(A148=\"\",\"\",'1. Checklist & Certification'!$B$14)","v":""},{"$f":"IF(A148=\"\",\"\",'1. Checklist & Certification'!$E$14)","v":""},{"$f":"IF(B148=\"\",\"\",'1. Checklist & Certification'!$G$14)","v":""},{"$f":"IF(A148=\"\",\"\",'MHP Family Income & Rent Limits'!$B$3)","v":""},{"$f":"IF(A148=\"\",\"\",'MHP Family Income & Rent Limits'!$J$3)","v":""},{"$f":"IF(A148=\"\",\"\",'MHP Family Income & Rent Limits'!$E$4)","v":""},{"$f":"IF(A148=\"\",\"\",'MHP Family Income & Rent Limits'!$C$7)","v":""},{"$f":"IF(A148=\"\",\"\",'MHP Family Income & Rent Limits'!$F$8)","v":""},{"$f":"IF(A148=\"\",\"\",'1. Checklist & Certification'!$G$4)","v":""},{"$f":"IF(A148=\"\",\"\",'1. Checklist & Certification'!$K$39)","v":""},{"$f":"IF(A148=\"\",\"\",'1. Checklist & Certification'!$K$43)","v":""},{"$f":"IF(A148=\"\",\"\",'1. Checklist & Certification'!$K$45)","v":""},{"$f":"IF(A148=\"\",\"\",'1. Checklist & Certification'!$K$49)","v":""},{"$f":"IF(A148=\"\",\"\",'1. Checklist & Certification'!$K$62)","v":""},{"$f":"IF(A148=\"\",\"\",'1. Checklist & Certification'!$E$66)","v":""},{"$f":"IF(A148=\"\",\"\",'1. Checklist & Certification'!$E$67)","v":""},{"$f":"IF(A148=\"\",\"\",'1. Checklist & Certification'!$E$68)","v":""},{"$f":"IF(A148=\"\",\"\",'1. Checklist & Certification'!$G$66)","v":""},{"$f":"IF(A148=\"\",\"\",'1. Checklist & Certification'!$H$66)","v":""},{"$f":"IF(A148=\"\",\"\",'1. Checklist & Certification'!$I$66)","v":""},{"$f":"IF(A148=\"\",\"\",'1. Checklist & Certification'!$I$67)","v":""},{"$f":"IF(A148=\"\",\"\",'1. Checklist & Certification'!$I$68)","v":""},{"$f":"IF(A148=\"\",\"\",'1. Checklist & Certification'!$B$69)","v":""},{"$f":"IF(A148=\"\",\"\",'1. Checklist & Certification'!$C$69)","v":""},{"$f":"IF(A148=\"\",\"\",'1. Checklist & Certification'!$F$69)","v":""},{"$f":"IF(A148=\"\",\"\",'1. Checklist & Certification'!$G$69)","v":""},{"$f":"IF(A148=\"\",\"\",'1. Checklist & Certification'!$J$69)","v":""},{"$f":"IF(A148=\"\",\"\",'1. Checklist & Certification'!$K$69)","v":""},null,null,{"$f":"IF(AND(OR('1. Checklist & Certification'!$M$16=1,'1. Checklist & Certification'!$M$19=2),AO148>0,B148=\"\",I148>0,AQ148<I148,AV148<>\"Sec 8-Project\"),\"X\",IF(AND(OR('1. Checklist & Certification'!$M$20=4,'1. Checklist & Certification'!$M$21=5,'1. Checklist & Certification'!$M$22=7),AO148>0,B148=\"\",I148>0,K148<I148),\"X\",\"\"))","v":""},{"$f":"IF(A148=\"\",\"\",IF(SUMPRODUCT(-- (ISNUMBER(SEARCH({\"*AHSC*\",\"*FMTW*\",\"*FWHG*\",\"*GHI*\",\"*HHC*\",\"*HLCP*\",\"*HOME*\",\"*LPR*\",\"*MHP*\",\"*NHTF*\",\"*NSP*\",\"*PRP*\",\"*TOD*\",\"*VHHP*\"},'1. Checklist & Certification'!$L$7)))),\"MHP\",\"Legacy\"))","v":""},",,",null,null,null,{"$f":"IF('1. Checklist & Certification'!$M$20=4,\"Both\",IF(OR('1. Checklist & Certification'!$M$15>0,S148=\"CHRP-R\",U148=\"CHRP-R\",W148=\"CHRP-R\",Y148=\"CHRP-R\"),\"Under\",\"No\"))","v":"No"},"No","No",{"$f":"_xlfn.IFS(D148=\"\",\"\",D148=1,'MHP Family Income & Rent Limits'!$E$17,D148=2,'MHP Family Income & Rent Limits'!$F$17,D148=3,'MHP Family Income & Rent Limits'!$G$17,D148=4,'MHP Family Income & Rent Limits'!$H$17,D148=5,'MHP Family Income & Rent Limits'!$I$17,D148=6,'MHP Family Income & Rent Limits'!$J$17,D148=7,'MHP Family Income & Rent Limits'!$K$17,D148=8,'MHP Family Income & Rent Limits'!$L$17)","v":""},"",{"$f":"IF(OR(A148=0,B148=\"X\"),0,MIN(IF(AA148:AD148<>0,AA148:AD148)))","v":0},{"$f":"IF(OR(H148=\"\",I148=\"\"),0,IF(H148*0.3/12>I148,MIN(H148*0.3/12,I148*1.1)+AP148,I148*(1+(VLOOKUP('1. Checklist & Certification'!$F$9,'HLCP-E Rent Change'!$A$1:$D$59,4,FALSE)))+AP148))","v":0}]
[null,null,null,null,null,null,null,null,null,null,null,null,null,null,null,null,null,null,null,null,null,null,null,null,null,null,0,0,0,0,0,0,0,0,{"$f":"IF(OR(A149=0,B149=\"X\"),0,IF(OR(S149=\"FHDP\",S149=\"RHCP-B\",U149=\"FHDP\",U149=\"RHCP-B\",W149=\"FHDP\",W149=\"RHCP-B\",Y149=\"FHDP\",Y149=\"RHCP-B\"),TRUNC((MIN(I149,K149)*(1+'1. Checklist & Certification'!$K$43)+AP149)),0))","v":0},{"$f":"IF(OR(A149=0,B149=\"X\"),0,IF(OR(S149=\"CHRP-R\",S149=\"SERA\",S149=\"SUHRP\",U149=\"CHRP-R\",U149=\"SERA\",U149=\"SUHRP\",W149=\"CHRP-R\",W149=\"SERA\",W149=\"SUHRP\",Y149=\"CHRP-R\",Y149=\"SERA\",Y149=\"SUHRP\"),TRUNC((MIN(I149,K149)*(1+'1. Checklist & Certification'!$K$49))),0))","v":0},{"$f":"IF(OR(A149=0,B149=\"X\"),0,IF(OR(S149=\"CALDAP\",S149=\"DPRLP\",U149=\"CALDAP\",U149=\"DPRLP\",W149=\"CALDAP\",W149=\"DPRLP\",Y149=\"CALDAP\",Y149=\"DPRLP\"),TRUNC(((MIN(I149,K149))*(1+'1. Checklist & Certification'!$G$4))),0))","v":0},0,0,0,{"$f":"IF(OR(A149=0,B149=\"X\"),0,IF(OR(S149=\"PRP\",S149=\"LPR\",U149=\"PRP\",U149=\"LPR\",W149=\"PRP\",W149=\"LPR\",Y149=\"PRP\",Y149=\"LPR\"),MAX(I149+AP149,MIN(IF(AE149:AN149<>0,AE149:AN149))),MIN(IF(AE149:AN149<>0,AE149:AN149))))","v":0},{"$f":"IF(A149=0,0,IF(AND(OR(S149=\"Mgr\",S149=0),OR(U149=\"Mgr\",U149=0),OR(W149=\"Mgr\",W149=0)),0,IF(LEFT($A149,2)=\"B*\",VLOOKUP($E149,'1. Checklist & Certification'!$D$26:$E$32,2),IF(LEFT($A149,2)=\"C*\",VLOOKUP($E149,'1. Checklist & Certification'!$F$26:$G$32,2),IF(LEFT($A149,2)=\"D*\",VLOOKUP($E149,'1. Checklist & Certification'!$H$26:$I$32,2),IF(LEFT($A149,2)=\"E*\",VLOOKUP($E149,'1. Checklist & Certification'!$J$26:$K$32,2),VLOOKUP($E149,'1. Checklist & Certification'!$A$26:$B$32,2)))))))","v":0},0,0,null,null,null,null,"","",0,0,0,null,{"$f":"IF(A149=\"\",\"\",'1. Checklist & Certification'!$K$1)","v":""},{"$f":"IF(A149=\"\",\"\",'1. Checklist & Certification'!$C$62)","v":""},{"$f":"IF(A149=\"\",\"\",'1. Checklist & Certification'!$C$6)","v":""},{"$f":"IF(A149=\"\",\"\",'1. Checklist & Certification'!$G$5)","v":""},{"$f":"IFERROR(IF(A149=\"\",\"\",\n_xlfn.LET(_xlpm.Contract,'1. Checklist & Certification'!$C$7,\n_xlpm.Yr,TEXT(MOD(_xlfn.TEXTBEFORE(_xlpm.Contract,\"-\"),100),\"00\"),\n_xlpm.Program,_xlfn.TEXTAFTER(_xlfn.TEXTBEFORE(_xlpm.Contract,\"-\",2),\"-\"),\n_xlpm.CleanProgram,_xlfn.XLOOKUP(_xlpm.Program,SpellCheck[Input],SpellCheck[Correction],_xlpm.Program),\n_xlpm.Number,TEXT(_xlfn.TEXTAFTER(_xlpm.Contract,\"-\",2),\"0000\"),\n_xlfn.CONCAT(_xlpm.Yr,\"-\",_xlpm.CleanProgram,\"-\",_xlpm.Number))\n),\"\")","v":""},{"$f":"IFERROR(IF(A149=\"\",\"\",\n_xlfn.LET(_xlpm.Contract,'1. Checklist & Certification'!$C$8,\n_xlpm.Yr,TEXT(MOD(_xlfn.TEXTBEFORE(_xlpm.Contract,\"-\"),100),\"00\"),\n_xlpm.Program,_xlfn.TEXTAFTER(_xlfn.TEXTBEFORE(_xlpm.Contract,\"-\",2),\"-\"),\n_xlpm.CleanProgram,_xlfn.XLOOKUP(_xlpm.Program,SpellCheck[Input],SpellCheck[Correction],_xlpm.Program),\n_xlpm.Number,TEXT(_xlfn.TEXTAFTER(_xlpm.Contract,\"-\",2),\"0000\"),\n_xlfn.CONCAT(_xlpm.Yr,\"-\",_xlpm.CleanProgram,\"-\",_xlpm.Number))\n),\"\")","v":""},{"$f":"IFERROR(IF(A149=\"\",\"\",\n_xlfn.LET(_xlpm.Contract,'1. Checklist & Certification'!$F$7,\n_xlpm.Yr,TEXT(MOD(_xlfn.TEXTBEFORE(_xlpm.Contract,\"-\"),100),\"00\"),\n_xlpm.Program,_xlfn.TEXTAFTER(_xlfn.TEXTBEFORE(_xlpm.Contract,\"-\",2),\"-\"),\n_xlpm.CleanProgram,_xlfn.XLOOKUP(_xlpm.Program,SpellCheck[Input],SpellCheck[Correction],_xlpm.Program),\n_xlpm.Number,TEXT(_xlfn.TEXTAFTER(_xlpm.Contract,\"-\",2),\"0000\"),\n_xlfn.CONCAT(_xlpm.Yr,\"-\",_xlpm.CleanProgram,\"-\",_xlpm.Number))\n),\"\")","v":""},{"$f":"IFERROR(IF(A149=\"\",\"\",\n_xlfn.LET(_xlpm.Contract,'1. Checklist & Certification'!$F$8,\n_xlpm.Yr,TEXT(MOD(_xlfn.TEXTBEFORE(_xlpm.Contract,\"-\"),100),\"00\"),\n_xlpm.Program,_xlfn.TEXTAFTER(_xlfn.TEXTBEFORE(_xlpm.Contract,\"-\",2),\"-\"),\n_xlpm.CleanProgram,_xlfn.XLOOKUP(_xlpm.Program,SpellCheck[Input],SpellCheck[Correction],_xlpm.Program),\n_xlpm.Number,TEXT(_xlfn.TEXTAFTER(_xlpm.Contract,\"-\",2),\"0000\"),\n_xlfn.CONCAT(_xlpm.Yr,\"-\",_xlpm.CleanProgram,\"-\",_xlpm.Number))\n),\"\")","v":""},{"$f":"IF(A149=\"\",\"\",'1. Checklist & Certification'!$B$9)","v":""},{"$f":"IF(A149=\"\",\"\",'1. Checklist & Certification'!$F$9)","v":""},{"$f":"IF(A149=\"\",\"\",'1. Checklist & Certification'!$C$10)","v":""},{"$f":"IF(A149=\"\",\"\",'1. Checklist & Certification'!$C$11)","v":""},{"$f":"IF(A149=\"\",\"\",'1. Checklist & Certification'!$C$12)","v":""},{"$f":"IF(A149=\"\",\"\",'1. Checklist & Certification'!$B$14)","v":""},{"$f":"IF(A149=\"\",\"\",'1. Checklist & Certification'!$E$14)","v":""},{"$f":"IF(B149=\"\",\"\",'1. Checklist & Certification'!$G$14)","v":""},{"$f":"IF(A149=\"\",\"\",'MHP Family Income & Rent Limits'!$B$3)","v":""},{"$f":"IF(A149=\"\",\"\",'MHP Family Income & Rent Limits'!$J$3)","v":""},{"$f":"IF(A149=\"\",\"\",'MHP Family Income & Rent Limits'!$E$4)","v":""},{"$f":"IF(A149=\"\",\"\",'MHP Family Income & Rent Limits'!$C$7)","v":""},{"$f":"IF(A149=\"\",\"\",'MHP Family Income & Rent Limits'!$F$8)","v":""},{"$f":"IF(A149=\"\",\"\",'1. Checklist & Certification'!$G$4)","v":""},{"$f":"IF(A149=\"\",\"\",'1. Checklist & Certification'!$K$39)","v":""},{"$f":"IF(A149=\"\",\"\",'1. Checklist & Certification'!$K$43)","v":""},{"$f":"IF(A149=\"\",\"\",'1. Checklist & Certification'!$K$45)","v":""},{"$f":"IF(A149=\"\",\"\",'1. Checklist & Certification'!$K$49)","v":""},{"$f":"IF(A149=\"\",\"\",'1. Checklist & Certification'!$K$62)","v":""},{"$f":"IF(A149=\"\",\"\",'1. Checklist & Certification'!$E$66)","v":""},{"$f":"IF(A149=\"\",\"\",'1. Checklist & Certification'!$E$67)","v":""},{"$f":"IF(A149=\"\",\"\",'1. Checklist & Certification'!$E$68)","v":""},{"$f":"IF(A149=\"\",\"\",'1. Checklist & Certification'!$G$66)","v":""},{"$f":"IF(A149=\"\",\"\",'1. Checklist & Certification'!$H$66)","v":""},{"$f":"IF(A149=\"\",\"\",'1. Checklist & Certification'!$I$66)","v":""},{"$f":"IF(A149=\"\",\"\",'1. Checklist & Certification'!$I$67)","v":""},{"$f":"IF(A149=\"\",\"\",'1. Checklist & Certification'!$I$68)","v":""},{"$f":"IF(A149=\"\",\"\",'1. Checklist & Certification'!$B$69)","v":""},{"$f":"IF(A149=\"\",\"\",'1. Checklist & Certification'!$C$69)","v":""},{"$f":"IF(A149=\"\",\"\",'1. Checklist & Certification'!$F$69)","v":""},{"$f":"IF(A149=\"\",\"\",'1. Checklist & Certification'!$G$69)","v":""},{"$f":"IF(A149=\"\",\"\",'1. Checklist & Certification'!$J$69)","v":""},{"$f":"IF(A149=\"\",\"\",'1. Checklist & Certification'!$K$69)","v":""},null,null,{"$f":"IF(AND(OR('1. Checklist & Certification'!$M$16=1,'1. Checklist & Certification'!$M$19=2),AO149>0,B149=\"\",I149>0,AQ149<I149,AV149<>\"Sec 8-Project\"),\"X\",IF(AND(OR('1. Checklist & Certification'!$M$20=4,'1. Checklist & Certification'!$M$21=5,'1. Checklist & Certification'!$M$22=7),AO149>0,B149=\"\",I149>0,K149<I149),\"X\",\"\"))","v":""},{"$f":"IF(A149=\"\",\"\",IF(SUMPRODUCT(-- (ISNUMBER(SEARCH({\"*AHSC*\",\"*FMTW*\",\"*FWHG*\",\"*GHI*\",\"*HHC*\",\"*HLCP*\",\"*HOME*\",\"*LPR*\",\"*MHP*\",\"*NHTF*\",\"*NSP*\",\"*PRP*\",\"*TOD*\",\"*VHHP*\"},'1. Checklist & Certification'!$L$7)))),\"MHP\",\"Legacy\"))","v":""},",,",null,null,null,{"$f":"IF('1. Checklist & Certification'!$M$20=4,\"Both\",IF(OR('1. Checklist & Certification'!$M$15>0,S149=\"CHRP-R\",U149=\"CHRP-R\",W149=\"CHRP-R\",Y149=\"CHRP-R\"),\"Under\",\"No\"))","v":"No"},"No","No",{"$f":"_xlfn.IFS(D149=\"\",\"\",D149=1,'MHP Family Income & Rent Limits'!$E$17,D149=2,'MHP Family Income & Rent Limits'!$F$17,D149=3,'MHP Family Income & Rent Limits'!$G$17,D149=4,'MHP Family Income & Rent Limits'!$H$17,D149=5,'MHP Family Income & Rent Limits'!$I$17,D149=6,'MHP Family Income & Rent Limits'!$J$17,D149=7,'MHP Family Income & Rent Limits'!$K$17,D149=8,'MHP Family Income & Rent Limits'!$L$17)","v":""},"",{"$f":"IF(OR(A149=0,B149=\"X\"),0,MIN(IF(AA149:AD149<>0,AA149:AD149)))","v":0},{"$f":"IF(OR(H149=\"\",I149=\"\"),0,IF(H149*0.3/12>I149,MIN(H149*0.3/12,I149*1.1)+AP149,I149*(1+(VLOOKUP('1. Checklist & Certification'!$F$9,'HLCP-E Rent Change'!$A$1:$D$59,4,FALSE)))+AP149))","v":0}]
[null,null,null,null,null,null,null,null,null,null,null,null,null,null,null,null,null,null,null,null,null,null,null,null,null,null,0,0,0,0,0,0,0,0,{"$f":"IF(OR(A150=0,B150=\"X\"),0,IF(OR(S150=\"FHDP\",S150=\"RHCP-B\",U150=\"FHDP\",U150=\"RHCP-B\",W150=\"FHDP\",W150=\"RHCP-B\",Y150=\"FHDP\",Y150=\"RHCP-B\"),TRUNC((MIN(I150,K150)*(1+'1. Checklist & Certification'!$K$43)+AP150)),0))","v":0},{"$f":"IF(OR(A150=0,B150=\"X\"),0,IF(OR(S150=\"CHRP-R\",S150=\"SERA\",S150=\"SUHRP\",U150=\"CHRP-R\",U150=\"SERA\",U150=\"SUHRP\",W150=\"CHRP-R\",W150=\"SERA\",W150=\"SUHRP\",Y150=\"CHRP-R\",Y150=\"SERA\",Y150=\"SUHRP\"),TRUNC((MIN(I150,K150)*(1+'1. Checklist & Certification'!$K$49))),0))","v":0},{"$f":"IF(OR(A150=0,B150=\"X\"),0,IF(OR(S150=\"CALDAP\",S150=\"DPRLP\",U150=\"CALDAP\",U150=\"DPRLP\",W150=\"CALDAP\",W150=\"DPRLP\",Y150=\"CALDAP\",Y150=\"DPRLP\"),TRUNC(((MIN(I150,K150))*(1+'1. Checklist & Certification'!$G$4))),0))","v":0},0,0,0,{"$f":"IF(OR(A150=0,B150=\"X\"),0,IF(OR(S150=\"PRP\",S150=\"LPR\",U150=\"PRP\",U150=\"LPR\",W150=\"PRP\",W150=\"LPR\",Y150=\"PRP\",Y150=\"LPR\"),MAX(I150+AP150,MIN(IF(AE150:AN150<>0,AE150:AN150))),MIN(IF(AE150:AN150<>0,AE150:AN150))))","v":0},{"$f":"IF(A150=0,0,IF(AND(OR(S150=\"Mgr\",S150=0),OR(U150=\"Mgr\",U150=0),OR(W150=\"Mgr\",W150=0)),0,IF(LEFT($A150,2)=\"B*\",VLOOKUP($E150,'1. Checklist & Certification'!$D$26:$E$32,2),IF(LEFT($A150,2)=\"C*\",VLOOKUP($E150,'1. Checklist & Certification'!$F$26:$G$32,2),IF(LEFT($A150,2)=\"D*\",VLOOKUP($E150,'1. Checklist & Certification'!$H$26:$I$32,2),IF(LEFT($A150,2)=\"E*\",VLOOKUP($E150,'1. Checklist & Certification'!$J$26:$K$32,2),VLOOKUP($E150,'1. Checklist & Certification'!$A$26:$B$32,2)))))))","v":0},0,0,null,null,null,null,"","",0,0,0,null,{"$f":"IF(A150=\"\",\"\",'1. Checklist & Certification'!$K$1)","v":""},{"$f":"IF(A150=\"\",\"\",'1. Checklist & Certification'!$C$62)","v":""},{"$f":"IF(A150=\"\",\"\",'1. Checklist & Certification'!$C$6)","v":""},{"$f":"IF(A150=\"\",\"\",'1. Checklist & Certification'!$G$5)","v":""},{"$f":"IFERROR(IF(A150=\"\",\"\",\n_xlfn.LET(_xlpm.Contract,'1. Checklist & Certification'!$C$7,\n_xlpm.Yr,TEXT(MOD(_xlfn.TEXTBEFORE(_xlpm.Contract,\"-\"),100),\"00\"),\n_xlpm.Program,_xlfn.TEXTAFTER(_xlfn.TEXTBEFORE(_xlpm.Contract,\"-\",2),\"-\"),\n_xlpm.CleanProgram,_xlfn.XLOOKUP(_xlpm.Program,SpellCheck[Input],SpellCheck[Correction],_xlpm.Program),\n_xlpm.Number,TEXT(_xlfn.TEXTAFTER(_xlpm.Contract,\"-\",2),\"0000\"),\n_xlfn.CONCAT(_xlpm.Yr,\"-\",_xlpm.CleanProgram,\"-\",_xlpm.Number))\n),\"\")","v":""},{"$f":"IFERROR(IF(A150=\"\",\"\",\n_xlfn.LET(_xlpm.Contract,'1. Checklist & Certification'!$C$8,\n_xlpm.Yr,TEXT(MOD(_xlfn.TEXTBEFORE(_xlpm.Contract,\"-\"),100),\"00\"),\n_xlpm.Program,_xlfn.TEXTAFTER(_xlfn.TEXTBEFORE(_xlpm.Contract,\"-\",2),\"-\"),\n_xlpm.CleanProgram,_xlfn.XLOOKUP(_xlpm.Program,SpellCheck[Input],SpellCheck[Correction],_xlpm.Program),\n_xlpm.Number,TEXT(_xlfn.TEXTAFTER(_xlpm.Contract,\"-\",2),\"0000\"),\n_xlfn.CONCAT(_xlpm.Yr,\"-\",_xlpm.CleanProgram,\"-\",_xlpm.Number))\n),\"\")","v":""},{"$f":"IFERROR(IF(A150=\"\",\"\",\n_xlfn.LET(_xlpm.Contract,'1. Checklist & Certification'!$F$7,\n_xlpm.Yr,TEXT(MOD(_xlfn.TEXTBEFORE(_xlpm.Contract,\"-\"),100),\"00\"),\n_xlpm.Program,_xlfn.TEXTAFTER(_xlfn.TEXTBEFORE(_xlpm.Contract,\"-\",2),\"-\"),\n_xlpm.CleanProgram,_xlfn.XLOOKUP(_xlpm.Program,SpellCheck[Input],SpellCheck[Correction],_xlpm.Program),\n_xlpm.Number,TEXT(_xlfn.TEXTAFTER(_xlpm.Contract,\"-\",2),\"0000\"),\n_xlfn.CONCAT(_xlpm.Yr,\"-\",_xlpm.CleanProgram,\"-\",_xlpm.Number))\n),\"\")","v":""},{"$f":"IFERROR(IF(A150=\"\",\"\",\n_xlfn.LET(_xlpm.Contract,'1. Checklist & Certification'!$F$8,\n_xlpm.Yr,TEXT(MOD(_xlfn.TEXTBEFORE(_xlpm.Contract,\"-\"),100),\"00\"),\n_xlpm.Program,_xlfn.TEXTAFTER(_xlfn.TEXTBEFORE(_xlpm.Contract,\"-\",2),\"-\"),\n_xlpm.CleanProgram,_xlfn.XLOOKUP(_xlpm.Program,SpellCheck[Input],SpellCheck[Correction],_xlpm.Program),\n_xlpm.Number,TEXT(_xlfn.TEXTAFTER(_xlpm.Contract,\"-\",2),\"0000\"),\n_xlfn.CONCAT(_xlpm.Yr,\"-\",_xlpm.CleanProgram,\"-\",_xlpm.Number))\n),\"\")","v":""},{"$f":"IF(A150=\"\",\"\",'1. Checklist & Certification'!$B$9)","v":""},{"$f":"IF(A150=\"\",\"\",'1. Checklist & Certification'!$F$9)","v":""},{"$f":"IF(A150=\"\",\"\",'1. Checklist & Certification'!$C$10)","v":""},{"$f":"IF(A150=\"\",\"\",'1. Checklist & Certification'!$C$11)","v":""},{"$f":"IF(A150=\"\",\"\",'1. Checklist & Certification'!$C$12)","v":""},{"$f":"IF(A150=\"\",\"\",'1. Checklist & Certification'!$B$14)","v":""},{"$f":"IF(A150=\"\",\"\",'1. Checklist & Certification'!$E$14)","v":""},{"$f":"IF(B150=\"\",\"\",'1. Checklist & Certification'!$G$14)","v":""},{"$f":"IF(A150=\"\",\"\",'MHP Family Income & Rent Limits'!$B$3)","v":""},{"$f":"IF(A150=\"\",\"\",'MHP Family Income & Rent Limits'!$J$3)","v":""},{"$f":"IF(A150=\"\",\"\",'MHP Family Income & Rent Limits'!$E$4)","v":""},{"$f":"IF(A150=\"\",\"\",'MHP Family Income & Rent Limits'!$C$7)","v":""},{"$f":"IF(A150=\"\",\"\",'MHP Family Income & Rent Limits'!$F$8)","v":""},{"$f":"IF(A150=\"\",\"\",'1. Checklist & Certification'!$G$4)","v":""},{"$f":"IF(A150=\"\",\"\",'1. Checklist & Certification'!$K$39)","v":""},{"$f":"IF(A150=\"\",\"\",'1. Checklist & Certification'!$K$43)","v":""},{"$f":"IF(A150=\"\",\"\",'1. Checklist & Certification'!$K$45)","v":""},{"$f":"IF(A150=\"\",\"\",'1. Checklist & Certification'!$K$49)","v":""},{"$f":"IF(A150=\"\",\"\",'1. Checklist & Certification'!$K$62)","v":""},{"$f":"IF(A150=\"\",\"\",'1. Checklist & Certification'!$E$66)","v":""},{"$f":"IF(A150=\"\",\"\",'1. Checklist & Certification'!$E$67)","v":""},{"$f":"IF(A150=\"\",\"\",'1. Checklist & Certification'!$E$68)","v":""},{"$f":"IF(A150=\"\",\"\",'1. Checklist & Certification'!$G$66)","v":""},{"$f":"IF(A150=\"\",\"\",'1. Checklist & Certification'!$H$66)","v":""},{"$f":"IF(A150=\"\",\"\",'1. Checklist & Certification'!$I$66)","v":""},{"$f":"IF(A150=\"\",\"\",'1. Checklist & Certification'!$I$67)","v":""},{"$f":"IF(A150=\"\",\"\",'1. Checklist & Certification'!$I$68)","v":""},{"$f":"IF(A150=\"\",\"\",'1. Checklist & Certification'!$B$69)","v":""},{"$f":"IF(A150=\"\",\"\",'1. Checklist & Certification'!$C$69)","v":""},{"$f":"IF(A150=\"\",\"\",'1. Checklist & Certification'!$F$69)","v":""},{"$f":"IF(A150=\"\",\"\",'1. Checklist & Certification'!$G$69)","v":""},{"$f":"IF(A150=\"\",\"\",'1. Checklist & Certification'!$J$69)","v":""},{"$f":"IF(A150=\"\",\"\",'1. Checklist & Certification'!$K$69)","v":""},null,null,{"$f":"IF(AND(OR('1. Checklist & Certification'!$M$16=1,'1. Checklist & Certification'!$M$19=2),AO150>0,B150=\"\",I150>0,AQ150<I150,AV150<>\"Sec 8-Project\"),\"X\",IF(AND(OR('1. Checklist & Certification'!$M$20=4,'1. Checklist & Certification'!$M$21=5,'1. Checklist & Certification'!$M$22=7),AO150>0,B150=\"\",I150>0,K150<I150),\"X\",\"\"))","v":""},{"$f":"IF(A150=\"\",\"\",IF(SUMPRODUCT(-- (ISNUMBER(SEARCH({\"*AHSC*\",\"*FMTW*\",\"*FWHG*\",\"*GHI*\",\"*HHC*\",\"*HLCP*\",\"*HOME*\",\"*LPR*\",\"*MHP*\",\"*NHTF*\",\"*NSP*\",\"*PRP*\",\"*TOD*\",\"*VHHP*\"},'1. Checklist & Certification'!$L$7)))),\"MHP\",\"Legacy\"))","v":""},",,",null,null,null,{"$f":"IF('1. Checklist & Certification'!$M$20=4,\"Both\",IF(OR('1. Checklist & Certification'!$M$15>0,S150=\"CHRP-R\",U150=\"CHRP-R\",W150=\"CHRP-R\",Y150=\"CHRP-R\"),\"Under\",\"No\"))","v":"No"},"No","No",{"$f":"_xlfn.IFS(D150=\"\",\"\",D150=1,'MHP Family Income & Rent Limits'!$E$17,D150=2,'MHP Family Income & Rent Limits'!$F$17,D150=3,'MHP Family Income & Rent Limits'!$G$17,D150=4,'MHP Family Income & Rent Limits'!$H$17,D150=5,'MHP Family Income & Rent Limits'!$I$17,D150=6,'MHP Family Income & Rent Limits'!$J$17,D150=7,'MHP Family Income & Rent Limits'!$K$17,D150=8,'MHP Family Income & Rent Limits'!$L$17)","v":""},"",{"$f":"IF(OR(A150=0,B150=\"X\"),0,MIN(IF(AA150:AD150<>0,AA150:AD150)))","v":0},{"$f":"IF(OR(H150=\"\",I150=\"\"),0,IF(H150*0.3/12>I150,MIN(H150*0.3/12,I150*1.1)+AP150,I150*(1+(VLOOKUP('1. Checklist & Certification'!$F$9,'HLCP-E Rent Change'!$A$1:$D$59,4,FALSE)))+AP150))","v":0}]
[null,null,null,null,null,null,null,null,null,null,null,null,null,null,null,null,null,null,null,null,null,null,null,null,null,null,0,0,0,0,0,0,0,0,{"$f":"IF(OR(A151=0,B151=\"X\"),0,IF(OR(S151=\"FHDP\",S151=\"RHCP-B\",U151=\"FHDP\",U151=\"RHCP-B\",W151=\"FHDP\",W151=\"RHCP-B\",Y151=\"FHDP\",Y151=\"RHCP-B\"),TRUNC((MIN(I151,K151)*(1+'1. Checklist & Certification'!$K$43)+AP151)),0))","v":0},{"$f":"IF(OR(A151=0,B151=\"X\"),0,IF(OR(S151=\"CHRP-R\",S151=\"SERA\",S151=\"SUHRP\",U151=\"CHRP-R\",U151=\"SERA\",U151=\"SUHRP\",W151=\"CHRP-R\",W151=\"SERA\",W151=\"SUHRP\",Y151=\"CHRP-R\",Y151=\"SERA\",Y151=\"SUHRP\"),TRUNC((MIN(I151,K151)*(1+'1. Checklist & Certification'!$K$49))),0))","v":0},{"$f":"IF(OR(A151=0,B151=\"X\"),0,IF(OR(S151=\"CALDAP\",S151=\"DPRLP\",U151=\"CALDAP\",U151=\"DPRLP\",W151=\"CALDAP\",W151=\"DPRLP\",Y151=\"CALDAP\",Y151=\"DPRLP\"),TRUNC(((MIN(I151,K151))*(1+'1. Checklist & Certification'!$G$4))),0))","v":0},0,0,0,{"$f":"IF(OR(A151=0,B151=\"X\"),0,IF(OR(S151=\"PRP\",S151=\"LPR\",U151=\"PRP\",U151=\"LPR\",W151=\"PRP\",W151=\"LPR\",Y151=\"PRP\",Y151=\"LPR\"),MAX(I151+AP151,MIN(IF(AE151:AN151<>0,AE151:AN151))),MIN(IF(AE151:AN151<>0,AE151:AN151))))","v":0},{"$f":"IF(A151=0,0,IF(AND(OR(S151=\"Mgr\",S151=0),OR(U151=\"Mgr\",U151=0),OR(W151=\"Mgr\",W151=0)),0,IF(LEFT($A151,2)=\"B*\",VLOOKUP($E151,'1. Checklist & Certification'!$D$26:$E$32,2),IF(LEFT($A151,2)=\"C*\",VLOOKUP($E151,'1. Checklist & Certification'!$F$26:$G$32,2),IF(LEFT($A151,2)=\"D*\",VLOOKUP($E151,'1. Checklist & Certification'!$H$26:$I$32,2),IF(LEFT($A151,2)=\"E*\",VLOOKUP($E151,'1. Checklist & Certification'!$J$26:$K$32,2),VLOOKUP($E151,'1. Checklist & Certification'!$A$26:$B$32,2)))))))","v":0},0,0,null,null,null,null,"","",0,0,0,null,{"$f":"IF(A151=\"\",\"\",'1. Checklist & Certification'!$K$1)","v":""},{"$f":"IF(A151=\"\",\"\",'1. Checklist & Certification'!$C$62)","v":""},{"$f":"IF(A151=\"\",\"\",'1. Checklist & Certification'!$C$6)","v":""},{"$f":"IF(A151=\"\",\"\",'1. Checklist & Certification'!$G$5)","v":""},{"$f":"IFERROR(IF(A151=\"\",\"\",\n_xlfn.LET(_xlpm.Contract,'1. Checklist & Certification'!$C$7,\n_xlpm.Yr,TEXT(MOD(_xlfn.TEXTBEFORE(_xlpm.Contract,\"-\"),100),\"00\"),\n_xlpm.Program,_xlfn.TEXTAFTER(_xlfn.TEXTBEFORE(_xlpm.Contract,\"-\",2),\"-\"),\n_xlpm.CleanProgram,_xlfn.XLOOKUP(_xlpm.Program,SpellCheck[Input],SpellCheck[Correction],_xlpm.Program),\n_xlpm.Number,TEXT(_xlfn.TEXTAFTER(_xlpm.Contract,\"-\",2),\"0000\"),\n_xlfn.CONCAT(_xlpm.Yr,\"-\",_xlpm.CleanProgram,\"-\",_xlpm.Number))\n),\"\")","v":""},{"$f":"IFERROR(IF(A151=\"\",\"\",\n_xlfn.LET(_xlpm.Contract,'1. Checklist & Certification'!$C$8,\n_xlpm.Yr,TEXT(MOD(_xlfn.TEXTBEFORE(_xlpm.Contract,\"-\"),100),\"00\"),\n_xlpm.Program,_xlfn.TEXTAFTER(_xlfn.TEXTBEFORE(_xlpm.Contract,\"-\",2),\"-\"),\n_xlpm.CleanProgram,_xlfn.XLOOKUP(_xlpm.Program,SpellCheck[Input],SpellCheck[Correction],_xlpm.Program),\n_xlpm.Number,TEXT(_xlfn.TEXTAFTER(_xlpm.Contract,\"-\",2),\"0000\"),\n_xlfn.CONCAT(_xlpm.Yr,\"-\",_xlpm.CleanProgram,\"-\",_xlpm.Number))\n),\"\")","v":""},{"$f":"IFERROR(IF(A151=\"\",\"\",\n_xlfn.LET(_xlpm.Contract,'1. Checklist & Certification'!$F$7,\n_xlpm.Yr,TEXT(MOD(_xlfn.TEXTBEFORE(_xlpm.Contract,\"-\"),100),\"00\"),\n_xlpm.Program,_xlfn.TEXTAFTER(_xlfn.TEXTBEFORE(_xlpm.Contract,\"-\",2),\"-\"),\n_xlpm.CleanProgram,_xlfn.XLOOKUP(_xlpm.Program,SpellCheck[Input],SpellCheck[Correction],_xlpm.Program),\n_xlpm.Number,TEXT(_xlfn.TEXTAFTER(_xlpm.Contract,\"-\",2),\"0000\"),\n_xlfn.CONCAT(_xlpm.Yr,\"-\",_xlpm.CleanProgram,\"-\",_xlpm.Number))\n),\"\")","v":""},{"$f":"IFERROR(IF(A151=\"\",\"\",\n_xlfn.LET(_xlpm.Contract,'1. Checklist & Certification'!$F$8,\n_xlpm.Yr,TEXT(MOD(_xlfn.TEXTBEFORE(_xlpm.Contract,\"-\"),100),\"00\"),\n_xlpm.Program,_xlfn.TEXTAFTER(_xlfn.TEXTBEFORE(_xlpm.Contract,\"-\",2),\"-\"),\n_xlpm.CleanProgram,_xlfn.XLOOKUP(_xlpm.Program,SpellCheck[Input],SpellCheck[Correction],_xlpm.Program),\n_xlpm.Number,TEXT(_xlfn.TEXTAFTER(_xlpm.Contract,\"-\",2),\"0000\"),\n_xlfn.CONCAT(_xlpm.Yr,\"-\",_xlpm.CleanProgram,\"-\",_xlpm.Number))\n),\"\")","v":""},{"$f":"IF(A151=\"\",\"\",'1. Checklist & Certification'!$B$9)","v":""},{"$f":"IF(A151=\"\",\"\",'1. Checklist & Certification'!$F$9)","v":""},{"$f":"IF(A151=\"\",\"\",'1. Checklist & Certification'!$C$10)","v":""},{"$f":"IF(A151=\"\",\"\",'1. Checklist & Certification'!$C$11)","v":""},{"$f":"IF(A151=\"\",\"\",'1. Checklist & Certification'!$C$12)","v":""},{"$f":"IF(A151=\"\",\"\",'1. Checklist & Certification'!$B$14)","v":""},{"$f":"IF(A151=\"\",\"\",'1. Checklist & Certification'!$E$14)","v":""},{"$f":"IF(B151=\"\",\"\",'1. Checklist & Certification'!$G$14)","v":""},{"$f":"IF(A151=\"\",\"\",'MHP Family Income & Rent Limits'!$B$3)","v":""},{"$f":"IF(A151=\"\",\"\",'MHP Family Income & Rent Limits'!$J$3)","v":""},{"$f":"IF(A151=\"\",\"\",'MHP Family Income & Rent Limits'!$E$4)","v":""},{"$f":"IF(A151=\"\",\"\",'MHP Family Income & Rent Limits'!$C$7)","v":""},{"$f":"IF(A151=\"\",\"\",'MHP Family Income & Rent Limits'!$F$8)","v":""},{"$f":"IF(A151=\"\",\"\",'1. Checklist & Certification'!$G$4)","v":""},{"$f":"IF(A151=\"\",\"\",'1. Checklist & Certification'!$K$39)","v":""},{"$f":"IF(A151=\"\",\"\",'1. Checklist & Certification'!$K$43)","v":""},{"$f":"IF(A151=\"\",\"\",'1. Checklist & Certification'!$K$45)","v":""},{"$f":"IF(A151=\"\",\"\",'1. Checklist & Certification'!$K$49)","v":""},{"$f":"IF(A151=\"\",\"\",'1. Checklist & Certification'!$K$62)","v":""},{"$f":"IF(A151=\"\",\"\",'1. Checklist & Certification'!$E$66)","v":""},{"$f":"IF(A151=\"\",\"\",'1. Checklist & Certification'!$E$67)","v":""},{"$f":"IF(A151=\"\",\"\",'1. Checklist & Certification'!$E$68)","v":""},{"$f":"IF(A151=\"\",\"\",'1. Checklist & Certification'!$G$66)","v":""},{"$f":"IF(A151=\"\",\"\",'1. Checklist & Certification'!$H$66)","v":""},{"$f":"IF(A151=\"\",\"\",'1. Checklist & Certification'!$I$66)","v":""},{"$f":"IF(A151=\"\",\"\",'1. Checklist & Certification'!$I$67)","v":""},{"$f":"IF(A151=\"\",\"\",'1. Checklist & Certification'!$I$68)","v":""},{"$f":"IF(A151=\"\",\"\",'1. Checklist & Certification'!$B$69)","v":""},{"$f":"IF(A151=\"\",\"\",'1. Checklist & Certification'!$C$69)","v":""},{"$f":"IF(A151=\"\",\"\",'1. Checklist & Certification'!$F$69)","v":""},{"$f":"IF(A151=\"\",\"\",'1. Checklist & Certification'!$G$69)","v":""},{"$f":"IF(A151=\"\",\"\",'1. Checklist & Certification'!$J$69)","v":""},{"$f":"IF(A151=\"\",\"\",'1. Checklist & Certification'!$K$69)","v":""},null,null,{"$f":"IF(AND(OR('1. Checklist & Certification'!$M$16=1,'1. Checklist & Certification'!$M$19=2),AO151>0,B151=\"\",I151>0,AQ151<I151,AV151<>\"Sec 8-Project\"),\"X\",IF(AND(OR('1. Checklist & Certification'!$M$20=4,'1. Checklist & Certification'!$M$21=5,'1. Checklist & Certification'!$M$22=7),AO151>0,B151=\"\",I151>0,K151<I151),\"X\",\"\"))","v":""},{"$f":"IF(A151=\"\",\"\",IF(SUMPRODUCT(-- (ISNUMBER(SEARCH({\"*AHSC*\",\"*FMTW*\",\"*FWHG*\",\"*GHI*\",\"*HHC*\",\"*HLCP*\",\"*HOME*\",\"*LPR*\",\"*MHP*\",\"*NHTF*\",\"*NSP*\",\"*PRP*\",\"*TOD*\",\"*VHHP*\"},'1. Checklist & Certification'!$L$7)))),\"MHP\",\"Legacy\"))","v":""},",,",null,null,null,{"$f":"IF('1. Checklist & Certification'!$M$20=4,\"Both\",IF(OR('1. Checklist & Certification'!$M$15>0,S151=\"CHRP-R\",U151=\"CHRP-R\",W151=\"CHRP-R\",Y151=\"CHRP-R\"),\"Under\",\"No\"))","v":"No"},"No","No",{"$f":"_xlfn.IFS(D151=\"\",\"\",D151=1,'MHP Family Income & Rent Limits'!$E$17,D151=2,'MHP Family Income & Rent Limits'!$F$17,D151=3,'MHP Family Income & Rent Limits'!$G$17,D151=4,'MHP Family Income & Rent Limits'!$H$17,D151=5,'MHP Family Income & Rent Limits'!$I$17,D151=6,'MHP Family Income & Rent Limits'!$J$17,D151=7,'MHP Family Income & Rent Limits'!$K$17,D151=8,'MHP Family Income & Rent Limits'!$L$17)","v":""},"",{"$f":"IF(OR(A151=0,B151=\"X\"),0,MIN(IF(AA151:AD151<>0,AA151:AD151)))","v":0},{"$f":"IF(OR(H151=\"\",I151=\"\"),0,IF(H151*0.3/12>I151,MIN(H151*0.3/12,I151*1.1)+AP151,I151*(1+(VLOOKUP('1. Checklist & Certification'!$F$9,'HLCP-E Rent Change'!$A$1:$D$59,4,FALSE)))+AP151))","v":0}]
[null,null,null,null,null,null,null,null,null,null,null,null,null,null,null,null,null,null,null,null,null,null,null,null,null,null,0,0,0,0,0,0,0,0,{"$f":"IF(OR(A152=0,B152=\"X\"),0,IF(OR(S152=\"FHDP\",S152=\"RHCP-B\",U152=\"FHDP\",U152=\"RHCP-B\",W152=\"FHDP\",W152=\"RHCP-B\",Y152=\"FHDP\",Y152=\"RHCP-B\"),TRUNC((MIN(I152,K152)*(1+'1. Checklist & Certification'!$K$43)+AP152)),0))","v":0},{"$f":"IF(OR(A152=0,B152=\"X\"),0,IF(OR(S152=\"CHRP-R\",S152=\"SERA\",S152=\"SUHRP\",U152=\"CHRP-R\",U152=\"SERA\",U152=\"SUHRP\",W152=\"CHRP-R\",W152=\"SERA\",W152=\"SUHRP\",Y152=\"CHRP-R\",Y152=\"SERA\",Y152=\"SUHRP\"),TRUNC((MIN(I152,K152)*(1+'1. Checklist & Certification'!$K$49))),0))","v":0},{"$f":"IF(OR(A152=0,B152=\"X\"),0,IF(OR(S152=\"CALDAP\",S152=\"DPRLP\",U152=\"CALDAP\",U152=\"DPRLP\",W152=\"CALDAP\",W152=\"DPRLP\",Y152=\"CALDAP\",Y152=\"DPRLP\"),TRUNC(((MIN(I152,K152))*(1+'1. Checklist & Certification'!$G$4))),0))","v":0},0,0,0,{"$f":"IF(OR(A152=0,B152=\"X\"),0,IF(OR(S152=\"PRP\",S152=\"LPR\",U152=\"PRP\",U152=\"LPR\",W152=\"PRP\",W152=\"LPR\",Y152=\"PRP\",Y152=\"LPR\"),MAX(I152+AP152,MIN(IF(AE152:AN152<>0,AE152:AN152))),MIN(IF(AE152:AN152<>0,AE152:AN152))))","v":0},{"$f":"IF(A152=0,0,IF(AND(OR(S152=\"Mgr\",S152=0),OR(U152=\"Mgr\",U152=0),OR(W152=\"Mgr\",W152=0)),0,IF(LEFT($A152,2)=\"B*\",VLOOKUP($E152,'1. Checklist & Certification'!$D$26:$E$32,2),IF(LEFT($A152,2)=\"C*\",VLOOKUP($E152,'1. Checklist & Certification'!$F$26:$G$32,2),IF(LEFT($A152,2)=\"D*\",VLOOKUP($E152,'1. Checklist & Certification'!$H$26:$I$32,2),IF(LEFT($A152,2)=\"E*\",VLOOKUP($E152,'1. Checklist & Certification'!$J$26:$K$32,2),VLOOKUP($E152,'1. Checklist & Certification'!$A$26:$B$32,2)))))))","v":0},0,0,null,null,null,null,"","",0,0,0,null,{"$f":"IF(A152=\"\",\"\",'1. Checklist & Certification'!$K$1)","v":""},{"$f":"IF(A152=\"\",\"\",'1. Checklist & Certification'!$C$62)","v":""},{"$f":"IF(A152=\"\",\"\",'1. Checklist & Certification'!$C$6)","v":""},{"$f":"IF(A152=\"\",\"\",'1. Checklist & Certification'!$G$5)","v":""},{"$f":"IFERROR(IF(A152=\"\",\"\",\n_xlfn.LET(_xlpm.Contract,'1. Checklist & Certification'!$C$7,\n_xlpm.Yr,TEXT(MOD(_xlfn.TEXTBEFORE(_xlpm.Contract,\"-\"),100),\"00\"),\n_xlpm.Program,_xlfn.TEXTAFTER(_xlfn.TEXTBEFORE(_xlpm.Contract,\"-\",2),\"-\"),\n_xlpm.CleanProgram,_xlfn.XLOOKUP(_xlpm.Program,SpellCheck[Input],SpellCheck[Correction],_xlpm.Program),\n_xlpm.Number,TEXT(_xlfn.TEXTAFTER(_xlpm.Contract,\"-\",2),\"0000\"),\n_xlfn.CONCAT(_xlpm.Yr,\"-\",_xlpm.CleanProgram,\"-\",_xlpm.Number))\n),\"\")","v":""},{"$f":"IFERROR(IF(A152=\"\",\"\",\n_xlfn.LET(_xlpm.Contract,'1. Checklist & Certification'!$C$8,\n_xlpm.Yr,TEXT(MOD(_xlfn.TEXTBEFORE(_xlpm.Contract,\"-\"),100),\"00\"),\n_xlpm.Program,_xlfn.TEXTAFTER(_xlfn.TEXTBEFORE(_xlpm.Contract,\"-\",2),\"-\"),\n_xlpm.CleanProgram,_xlfn.XLOOKUP(_xlpm.Program,SpellCheck[Input],SpellCheck[Correction],_xlpm.Program),\n_xlpm.Number,TEXT(_xlfn.TEXTAFTER(_xlpm.Contract,\"-\",2),\"0000\"),\n_xlfn.CONCAT(_xlpm.Yr,\"-\",_xlpm.CleanProgram,\"-\",_xlpm.Number))\n),\"\")","v":""},{"$f":"IFERROR(IF(A152=\"\",\"\",\n_xlfn.LET(_xlpm.Contract,'1. Checklist & Certification'!$F$7,\n_xlpm.Yr,TEXT(MOD(_xlfn.TEXTBEFORE(_xlpm.Contract,\"-\"),100),\"00\"),\n_xlpm.Program,_xlfn.TEXTAFTER(_xlfn.TEXTBEFORE(_xlpm.Contract,\"-\",2),\"-\"),\n_xlpm.CleanProgram,_xlfn.XLOOKUP(_xlpm.Program,SpellCheck[Input],SpellCheck[Correction],_xlpm.Program),\n_xlpm.Number,TEXT(_xlfn.TEXTAFTER(_xlpm.Contract,\"-\",2),\"0000\"),\n_xlfn.CONCAT(_xlpm.Yr,\"-\",_xlpm.CleanProgram,\"-\",_xlpm.Number))\n),\"\")","v":""},{"$f":"IFERROR(IF(A152=\"\",\"\",\n_xlfn.LET(_xlpm.Contract,'1. Checklist & Certification'!$F$8,\n_xlpm.Yr,TEXT(MOD(_xlfn.TEXTBEFORE(_xlpm.Contract,\"-\"),100),\"00\"),\n_xlpm.Program,_xlfn.TEXTAFTER(_xlfn.TEXTBEFORE(_xlpm.Contract,\"-\",2),\"-\"),\n_xlpm.CleanProgram,_xlfn.XLOOKUP(_xlpm.Program,SpellCheck[Input],SpellCheck[Correction],_xlpm.Program),\n_xlpm.Number,TEXT(_xlfn.TEXTAFTER(_xlpm.Contract,\"-\",2),\"0000\"),\n_xlfn.CONCAT(_xlpm.Yr,\"-\",_xlpm.CleanProgram,\"-\",_xlpm.Number))\n),\"\")","v":""},{"$f":"IF(A152=\"\",\"\",'1. Checklist & Certification'!$B$9)","v":""},{"$f":"IF(A152=\"\",\"\",'1. Checklist & Certification'!$F$9)","v":""},{"$f":"IF(A152=\"\",\"\",'1. Checklist & Certification'!$C$10)","v":""},{"$f":"IF(A152=\"\",\"\",'1. Checklist & Certification'!$C$11)","v":""},{"$f":"IF(A152=\"\",\"\",'1. Checklist & Certification'!$C$12)","v":""},{"$f":"IF(A152=\"\",\"\",'1. Checklist & Certification'!$B$14)","v":""},{"$f":"IF(A152=\"\",\"\",'1. Checklist & Certification'!$E$14)","v":""},{"$f":"IF(B152=\"\",\"\",'1. Checklist & Certification'!$G$14)","v":""},{"$f":"IF(A152=\"\",\"\",'MHP Family Income & Rent Limits'!$B$3)","v":""},{"$f":"IF(A152=\"\",\"\",'MHP Family Income & Rent Limits'!$J$3)","v":""},{"$f":"IF(A152=\"\",\"\",'MHP Family Income & Rent Limits'!$E$4)","v":""},{"$f":"IF(A152=\"\",\"\",'MHP Family Income & Rent Limits'!$C$7)","v":""},{"$f":"IF(A152=\"\",\"\",'MHP Family Income & Rent Limits'!$F$8)","v":""},{"$f":"IF(A152=\"\",\"\",'1. Checklist & Certification'!$G$4)","v":""},{"$f":"IF(A152=\"\",\"\",'1. Checklist & Certification'!$K$39)","v":""},{"$f":"IF(A152=\"\",\"\",'1. Checklist & Certification'!$K$43)","v":""},{"$f":"IF(A152=\"\",\"\",'1. Checklist & Certification'!$K$45)","v":""},{"$f":"IF(A152=\"\",\"\",'1. Checklist & Certification'!$K$49)","v":""},{"$f":"IF(A152=\"\",\"\",'1. Checklist & Certification'!$K$62)","v":""},{"$f":"IF(A152=\"\",\"\",'1. Checklist & Certification'!$E$66)","v":""},{"$f":"IF(A152=\"\",\"\",'1. Checklist & Certification'!$E$67)","v":""},{"$f":"IF(A152=\"\",\"\",'1. Checklist & Certification'!$E$68)","v":""},{"$f":"IF(A152=\"\",\"\",'1. Checklist & Certification'!$G$66)","v":""},{"$f":"IF(A152=\"\",\"\",'1. Checklist & Certification'!$H$66)","v":""},{"$f":"IF(A152=\"\",\"\",'1. Checklist & Certification'!$I$66)","v":""},{"$f":"IF(A152=\"\",\"\",'1. Checklist & Certification'!$I$67)","v":""},{"$f":"IF(A152=\"\",\"\",'1. Checklist & Certification'!$I$68)","v":""},{"$f":"IF(A152=\"\",\"\",'1. Checklist & Certification'!$B$69)","v":""},{"$f":"IF(A152=\"\",\"\",'1. Checklist & Certification'!$C$69)","v":""},{"$f":"IF(A152=\"\",\"\",'1. Checklist & Certification'!$F$69)","v":""},{"$f":"IF(A152=\"\",\"\",'1. Checklist & Certification'!$G$69)","v":""},{"$f":"IF(A152=\"\",\"\",'1. Checklist & Certification'!$J$69)","v":""},{"$f":"IF(A152=\"\",\"\",'1. Checklist & Certification'!$K$69)","v":""},null,null,{"$f":"IF(AND(OR('1. Checklist & Certification'!$M$16=1,'1. Checklist & Certification'!$M$19=2),AO152>0,B152=\"\",I152>0,AQ152<I152,AV152<>\"Sec 8-Project\"),\"X\",IF(AND(OR('1. Checklist & Certification'!$M$20=4,'1. Checklist & Certification'!$M$21=5,'1. Checklist & Certification'!$M$22=7),AO152>0,B152=\"\",I152>0,K152<I152),\"X\",\"\"))","v":""},{"$f":"IF(A152=\"\",\"\",IF(SUMPRODUCT(-- (ISNUMBER(SEARCH({\"*AHSC*\",\"*FMTW*\",\"*FWHG*\",\"*GHI*\",\"*HHC*\",\"*HLCP*\",\"*HOME*\",\"*LPR*\",\"*MHP*\",\"*NHTF*\",\"*NSP*\",\"*PRP*\",\"*TOD*\",\"*VHHP*\"},'1. Checklist & Certification'!$L$7)))),\"MHP\",\"Legacy\"))","v":""},",,",null,null,null,{"$f":"IF('1. Checklist & Certification'!$M$20=4,\"Both\",IF(OR('1. Checklist & Certification'!$M$15>0,S152=\"CHRP-R\",U152=\"CHRP-R\",W152=\"CHRP-R\",Y152=\"CHRP-R\"),\"Under\",\"No\"))","v":"No"},"No","No",{"$f":"_xlfn.IFS(D152=\"\",\"\",D152=1,'MHP Family Income & Rent Limits'!$E$17,D152=2,'MHP Family Income & Rent Limits'!$F$17,D152=3,'MHP Family Income & Rent Limits'!$G$17,D152=4,'MHP Family Income & Rent Limits'!$H$17,D152=5,'MHP Family Income & Rent Limits'!$I$17,D152=6,'MHP Family Income & Rent Limits'!$J$17,D152=7,'MHP Family Income & Rent Limits'!$K$17,D152=8,'MHP Family Income & Rent Limits'!$L$17)","v":""},"",{"$f":"IF(OR(A152=0,B152=\"X\"),0,MIN(IF(AA152:AD152<>0,AA152:AD152)))","v":0},{"$f":"IF(OR(H152=\"\",I152=\"\"),0,IF(H152*0.3/12>I152,MIN(H152*0.3/12,I152*1.1)+AP152,I152*(1+(VLOOKUP('1. Checklist & Certification'!$F$9,'HLCP-E Rent Change'!$A$1:$D$59,4,FALSE)))+AP152))","v":0}]
[null,null,null,null,null,null,null,null,null,null,null,null,null,null,null,null,null,null,null,null,null,null,null,null,null,null,0,0,0,0,0,0,0,0,{"$f":"IF(OR(A153=0,B153=\"X\"),0,IF(OR(S153=\"FHDP\",S153=\"RHCP-B\",U153=\"FHDP\",U153=\"RHCP-B\",W153=\"FHDP\",W153=\"RHCP-B\",Y153=\"FHDP\",Y153=\"RHCP-B\"),TRUNC((MIN(I153,K153)*(1+'1. Checklist & Certification'!$K$43)+AP153)),0))","v":0},{"$f":"IF(OR(A153=0,B153=\"X\"),0,IF(OR(S153=\"CHRP-R\",S153=\"SERA\",S153=\"SUHRP\",U153=\"CHRP-R\",U153=\"SERA\",U153=\"SUHRP\",W153=\"CHRP-R\",W153=\"SERA\",W153=\"SUHRP\",Y153=\"CHRP-R\",Y153=\"SERA\",Y153=\"SUHRP\"),TRUNC((MIN(I153,K153)*(1+'1. Checklist & Certification'!$K$49))),0))","v":0},{"$f":"IF(OR(A153=0,B153=\"X\"),0,IF(OR(S153=\"CALDAP\",S153=\"DPRLP\",U153=\"CALDAP\",U153=\"DPRLP\",W153=\"CALDAP\",W153=\"DPRLP\",Y153=\"CALDAP\",Y153=\"DPRLP\"),TRUNC(((MIN(I153,K153))*(1+'1. Checklist & Certification'!$G$4))),0))","v":0},0,0,0,{"$f":"IF(OR(A153=0,B153=\"X\"),0,IF(OR(S153=\"PRP\",S153=\"LPR\",U153=\"PRP\",U153=\"LPR\",W153=\"PRP\",W153=\"LPR\",Y153=\"PRP\",Y153=\"LPR\"),MAX(I153+AP153,MIN(IF(AE153:AN153<>0,AE153:AN153))),MIN(IF(AE153:AN153<>0,AE153:AN153))))","v":0},{"$f":"IF(A153=0,0,IF(AND(OR(S153=\"Mgr\",S153=0),OR(U153=\"Mgr\",U153=0),OR(W153=\"Mgr\",W153=0)),0,IF(LEFT($A153,2)=\"B*\",VLOOKUP($E153,'1. Checklist & Certification'!$D$26:$E$32,2),IF(LEFT($A153,2)=\"C*\",VLOOKUP($E153,'1. Checklist & Certification'!$F$26:$G$32,2),IF(LEFT($A153,2)=\"D*\",VLOOKUP($E153,'1. Checklist & Certification'!$H$26:$I$32,2),IF(LEFT($A153,2)=\"E*\",VLOOKUP($E153,'1. Checklist & Certification'!$J$26:$K$32,2),VLOOKUP($E153,'1. Checklist & Certification'!$A$26:$B$32,2)))))))","v":0},0,0,null,null,null,null,"","",0,0,0,null,{"$f":"IF(A153=\"\",\"\",'1. Checklist & Certification'!$K$1)","v":""},{"$f":"IF(A153=\"\",\"\",'1. Checklist & Certification'!$C$62)","v":""},{"$f":"IF(A153=\"\",\"\",'1. Checklist & Certification'!$C$6)","v":""},{"$f":"IF(A153=\"\",\"\",'1. Checklist & Certification'!$G$5)","v":""},{"$f":"IFERROR(IF(A153=\"\",\"\",\n_xlfn.LET(_xlpm.Contract,'1. Checklist & Certification'!$C$7,\n_xlpm.Yr,TEXT(MOD(_xlfn.TEXTBEFORE(_xlpm.Contract,\"-\"),100),\"00\"),\n_xlpm.Program,_xlfn.TEXTAFTER(_xlfn.TEXTBEFORE(_xlpm.Contract,\"-\",2),\"-\"),\n_xlpm.CleanProgram,_xlfn.XLOOKUP(_xlpm.Program,SpellCheck[Input],SpellCheck[Correction],_xlpm.Program),\n_xlpm.Number,TEXT(_xlfn.TEXTAFTER(_xlpm.Contract,\"-\",2),\"0000\"),\n_xlfn.CONCAT(_xlpm.Yr,\"-\",_xlpm.CleanProgram,\"-\",_xlpm.Number))\n),\"\")","v":""},{"$f":"IFERROR(IF(A153=\"\",\"\",\n_xlfn.LET(_xlpm.Contract,'1. Checklist & Certification'!$C$8,\n_xlpm.Yr,TEXT(MOD(_xlfn.TEXTBEFORE(_xlpm.Contract,\"-\"),100),\"00\"),\n_xlpm.Program,_xlfn.TEXTAFTER(_xlfn.TEXTBEFORE(_xlpm.Contract,\"-\",2),\"-\"),\n_xlpm.CleanProgram,_xlfn.XLOOKUP(_xlpm.Program,SpellCheck[Input],SpellCheck[Correction],_xlpm.Program),\n_xlpm.Number,TEXT(_xlfn.TEXTAFTER(_xlpm.Contract,\"-\",2),\"0000\"),\n_xlfn.CONCAT(_xlpm.Yr,\"-\",_xlpm.CleanProgram,\"-\",_xlpm.Number))\n),\"\")","v":""},{"$f":"IFERROR(IF(A153=\"\",\"\",\n_xlfn.LET(_xlpm.Contract,'1. Checklist & Certification'!$F$7,\n_xlpm.Yr,TEXT(MOD(_xlfn.TEXTBEFORE(_xlpm.Contract,\"-\"),100),\"00\"),\n_xlpm.Program,_xlfn.TEXTAFTER(_xlfn.TEXTBEFORE(_xlpm.Contract,\"-\",2),\"-\"),\n_xlpm.CleanProgram,_xlfn.XLOOKUP(_xlpm.Program,SpellCheck[Input],SpellCheck[Correction],_xlpm.Program),\n_xlpm.Number,TEXT(_xlfn.TEXTAFTER(_xlpm.Contract,\"-\",2),\"0000\"),\n_xlfn.CONCAT(_xlpm.Yr,\"-\",_xlpm.CleanProgram,\"-\",_xlpm.Number))\n),\"\")","v":""},{"$f":"IFERROR(IF(A153=\"\",\"\",\n_xlfn.LET(_xlpm.Contract,'1. Checklist & Certification'!$F$8,\n_xlpm.Yr,TEXT(MOD(_xlfn.TEXTBEFORE(_xlpm.Contract,\"-\"),100),\"00\"),\n_xlpm.Program,_xlfn.TEXTAFTER(_xlfn.TEXTBEFORE(_xlpm.Contract,\"-\",2),\"-\"),\n_xlpm.CleanProgram,_xlfn.XLOOKUP(_xlpm.Program,SpellCheck[Input],SpellCheck[Correction],_xlpm.Program),\n_xlpm.Number,TEXT(_xlfn.TEXTAFTER(_xlpm.Contract,\"-\",2),\"0000\"),\n_xlfn.CONCAT(_xlpm.Yr,\"-\",_xlpm.CleanProgram,\"-\",_xlpm.Number))\n),\"\")","v":""},{"$f":"IF(A153=\"\",\"\",'1. Checklist & Certification'!$B$9)","v":""},{"$f":"IF(A153=\"\",\"\",'1. Checklist & Certification'!$F$9)","v":""},{"$f":"IF(A153=\"\",\"\",'1. Checklist & Certification'!$C$10)","v":""},{"$f":"IF(A153=\"\",\"\",'1. Checklist & Certification'!$C$11)","v":""},{"$f":"IF(A153=\"\",\"\",'1. Checklist & Certification'!$C$12)","v":""},{"$f":"IF(A153=\"\",\"\",'1. Checklist & Certification'!$B$14)","v":""},{"$f":"IF(A153=\"\",\"\",'1. Checklist & Certification'!$E$14)","v":""},{"$f":"IF(B153=\"\",\"\",'1. Checklist & Certification'!$G$14)","v":""},{"$f":"IF(A153=\"\",\"\",'MHP Family Income & Rent Limits'!$B$3)","v":""},{"$f":"IF(A153=\"\",\"\",'MHP Family Income & Rent Limits'!$J$3)","v":""},{"$f":"IF(A153=\"\",\"\",'MHP Family Income & Rent Limits'!$E$4)","v":""},{"$f":"IF(A153=\"\",\"\",'MHP Family Income & Rent Limits'!$C$7)","v":""},{"$f":"IF(A153=\"\",\"\",'MHP Family Income & Rent Limits'!$F$8)","v":""},{"$f":"IF(A153=\"\",\"\",'1. Checklist & Certification'!$G$4)","v":""},{"$f":"IF(A153=\"\",\"\",'1. Checklist & Certification'!$K$39)","v":""},{"$f":"IF(A153=\"\",\"\",'1. Checklist & Certification'!$K$43)","v":""},{"$f":"IF(A153=\"\",\"\",'1. Checklist & Certification'!$K$45)","v":""},{"$f":"IF(A153=\"\",\"\",'1. Checklist & Certification'!$K$49)","v":""},{"$f":"IF(A153=\"\",\"\",'1. Checklist & Certification'!$K$62)","v":""},{"$f":"IF(A153=\"\",\"\",'1. Checklist & Certification'!$E$66)","v":""},{"$f":"IF(A153=\"\",\"\",'1. Checklist & Certification'!$E$67)","v":""},{"$f":"IF(A153=\"\",\"\",'1. Checklist & Certification'!$E$68)","v":""},{"$f":"IF(A153=\"\",\"\",'1. Checklist & Certification'!$G$66)","v":""},{"$f":"IF(A153=\"\",\"\",'1. Checklist & Certification'!$H$66)","v":""},{"$f":"IF(A153=\"\",\"\",'1. Checklist & Certification'!$I$66)","v":""},{"$f":"IF(A153=\"\",\"\",'1. Checklist & Certification'!$I$67)","v":""},{"$f":"IF(A153=\"\",\"\",'1. Checklist & Certification'!$I$68)","v":""},{"$f":"IF(A153=\"\",\"\",'1. Checklist & Certification'!$B$69)","v":""},{"$f":"IF(A153=\"\",\"\",'1. Checklist & Certification'!$C$69)","v":""},{"$f":"IF(A153=\"\",\"\",'1. Checklist & Certification'!$F$69)","v":""},{"$f":"IF(A153=\"\",\"\",'1. Checklist & Certification'!$G$69)","v":""},{"$f":"IF(A153=\"\",\"\",'1. Checklist & Certification'!$J$69)","v":""},{"$f":"IF(A153=\"\",\"\",'1. Checklist & Certification'!$K$69)","v":""},null,null,{"$f":"IF(AND(OR('1. Checklist & Certification'!$M$16=1,'1. Checklist & Certification'!$M$19=2),AO153>0,B153=\"\",I153>0,AQ153<I153,AV153<>\"Sec 8-Project\"),\"X\",IF(AND(OR('1. Checklist & Certification'!$M$20=4,'1. Checklist & Certification'!$M$21=5,'1. Checklist & Certification'!$M$22=7),AO153>0,B153=\"\",I153>0,K153<I153),\"X\",\"\"))","v":""},{"$f":"IF(A153=\"\",\"\",IF(SUMPRODUCT(-- (ISNUMBER(SEARCH({\"*AHSC*\",\"*FMTW*\",\"*FWHG*\",\"*GHI*\",\"*HHC*\",\"*HLCP*\",\"*HOME*\",\"*LPR*\",\"*MHP*\",\"*NHTF*\",\"*NSP*\",\"*PRP*\",\"*TOD*\",\"*VHHP*\"},'1. Checklist & Certification'!$L$7)))),\"MHP\",\"Legacy\"))","v":""},",,",null,null,null,{"$f":"IF('1. Checklist & Certification'!$M$20=4,\"Both\",IF(OR('1. Checklist & Certification'!$M$15>0,S153=\"CHRP-R\",U153=\"CHRP-R\",W153=\"CHRP-R\",Y153=\"CHRP-R\"),\"Under\",\"No\"))","v":"No"},"No","No",{"$f":"_xlfn.IFS(D153=\"\",\"\",D153=1,'MHP Family Income & Rent Limits'!$E$17,D153=2,'MHP Family Income & Rent Limits'!$F$17,D153=3,'MHP Family Income & Rent Limits'!$G$17,D153=4,'MHP Family Income & Rent Limits'!$H$17,D153=5,'MHP Family Income & Rent Limits'!$I$17,D153=6,'MHP Family Income & Rent Limits'!$J$17,D153=7,'MHP Family Income & Rent Limits'!$K$17,D153=8,'MHP Family Income & Rent Limits'!$L$17)","v":""},"",{"$f":"IF(OR(A153=0,B153=\"X\"),0,MIN(IF(AA153:AD153<>0,AA153:AD153)))","v":0},{"$f":"IF(OR(H153=\"\",I153=\"\"),0,IF(H153*0.3/12>I153,MIN(H153*0.3/12,I153*1.1)+AP153,I153*(1+(VLOOKUP('1. Checklist & Certification'!$F$9,'HLCP-E Rent Change'!$A$1:$D$59,4,FALSE)))+AP153))","v":0}]
[null,null,null,null,null,null,null,null,null,null,null,null,null,null,null,null,null,null,null,null,null,null,null,null,null,null,0,0,0,0,0,0,0,0,{"$f":"IF(OR(A154=0,B154=\"X\"),0,IF(OR(S154=\"FHDP\",S154=\"RHCP-B\",U154=\"FHDP\",U154=\"RHCP-B\",W154=\"FHDP\",W154=\"RHCP-B\",Y154=\"FHDP\",Y154=\"RHCP-B\"),TRUNC((MIN(I154,K154)*(1+'1. Checklist & Certification'!$K$43)+AP154)),0))","v":0},{"$f":"IF(OR(A154=0,B154=\"X\"),0,IF(OR(S154=\"CHRP-R\",S154=\"SERA\",S154=\"SUHRP\",U154=\"CHRP-R\",U154=\"SERA\",U154=\"SUHRP\",W154=\"CHRP-R\",W154=\"SERA\",W154=\"SUHRP\",Y154=\"CHRP-R\",Y154=\"SERA\",Y154=\"SUHRP\"),TRUNC((MIN(I154,K154)*(1+'1. Checklist & Certification'!$K$49))),0))","v":0},{"$f":"IF(OR(A154=0,B154=\"X\"),0,IF(OR(S154=\"CALDAP\",S154=\"DPRLP\",U154=\"CALDAP\",U154=\"DPRLP\",W154=\"CALDAP\",W154=\"DPRLP\",Y154=\"CALDAP\",Y154=\"DPRLP\"),TRUNC(((MIN(I154,K154))*(1+'1. Checklist & Certification'!$G$4))),0))","v":0},0,0,0,{"$f":"IF(OR(A154=0,B154=\"X\"),0,IF(OR(S154=\"PRP\",S154=\"LPR\",U154=\"PRP\",U154=\"LPR\",W154=\"PRP\",W154=\"LPR\",Y154=\"PRP\",Y154=\"LPR\"),MAX(I154+AP154,MIN(IF(AE154:AN154<>0,AE154:AN154))),MIN(IF(AE154:AN154<>0,AE154:AN154))))","v":0},{"$f":"IF(A154=0,0,IF(AND(OR(S154=\"Mgr\",S154=0),OR(U154=\"Mgr\",U154=0),OR(W154=\"Mgr\",W154=0)),0,IF(LEFT($A154,2)=\"B*\",VLOOKUP($E154,'1. Checklist & Certification'!$D$26:$E$32,2),IF(LEFT($A154,2)=\"C*\",VLOOKUP($E154,'1. Checklist & Certification'!$F$26:$G$32,2),IF(LEFT($A154,2)=\"D*\",VLOOKUP($E154,'1. Checklist & Certification'!$H$26:$I$32,2),IF(LEFT($A154,2)=\"E*\",VLOOKUP($E154,'1. Checklist & Certification'!$J$26:$K$32,2),VLOOKUP($E154,'1. Checklist & Certification'!$A$26:$B$32,2)))))))","v":0},0,0,null,null,null,null,"","",0,0,0,null,{"$f":"IF(A154=\"\",\"\",'1. Checklist & Certification'!$K$1)","v":""},{"$f":"IF(A154=\"\",\"\",'1. Checklist & Certification'!$C$62)","v":""},{"$f":"IF(A154=\"\",\"\",'1. Checklist & Certification'!$C$6)","v":""},{"$f":"IF(A154=\"\",\"\",'1. Checklist & Certification'!$G$5)","v":""},{"$f":"IFERROR(IF(A154=\"\",\"\",\n_xlfn.LET(_xlpm.Contract,'1. Checklist & Certification'!$C$7,\n_xlpm.Yr,TEXT(MOD(_xlfn.TEXTBEFORE(_xlpm.Contract,\"-\"),100),\"00\"),\n_xlpm.Program,_xlfn.TEXTAFTER(_xlfn.TEXTBEFORE(_xlpm.Contract,\"-\",2),\"-\"),\n_xlpm.CleanProgram,_xlfn.XLOOKUP(_xlpm.Program,SpellCheck[Input],SpellCheck[Correction],_xlpm.Program),\n_xlpm.Number,TEXT(_xlfn.TEXTAFTER(_xlpm.Contract,\"-\",2),\"0000\"),\n_xlfn.CONCAT(_xlpm.Yr,\"-\",_xlpm.CleanProgram,\"-\",_xlpm.Number))\n),\"\")","v":""},{"$f":"IFERROR(IF(A154=\"\",\"\",\n_xlfn.LET(_xlpm.Contract,'1. Checklist & Certification'!$C$8,\n_xlpm.Yr,TEXT(MOD(_xlfn.TEXTBEFORE(_xlpm.Contract,\"-\"),100),\"00\"),\n_xlpm.Program,_xlfn.TEXTAFTER(_xlfn.TEXTBEFORE(_xlpm.Contract,\"-\",2),\"-\"),\n_xlpm.CleanProgram,_xlfn.XLOOKUP(_xlpm.Program,SpellCheck[Input],SpellCheck[Correction],_xlpm.Program),\n_xlpm.Number,TEXT(_xlfn.TEXTAFTER(_xlpm.Contract,\"-\",2),\"0000\"),\n_xlfn.CONCAT(_xlpm.Yr,\"-\",_xlpm.CleanProgram,\"-\",_xlpm.Number))\n),\"\")","v":""},{"$f":"IFERROR(IF(A154=\"\",\"\",\n_xlfn.LET(_xlpm.Contract,'1. Checklist & Certification'!$F$7,\n_xlpm.Yr,TEXT(MOD(_xlfn.TEXTBEFORE(_xlpm.Contract,\"-\"),100),\"00\"),\n_xlpm.Program,_xlfn.TEXTAFTER(_xlfn.TEXTBEFORE(_xlpm.Contract,\"-\",2),\"-\"),\n_xlpm.CleanProgram,_xlfn.XLOOKUP(_xlpm.Program,SpellCheck[Input],SpellCheck[Correction],_xlpm.Program),\n_xlpm.Number,TEXT(_xlfn.TEXTAFTER(_xlpm.Contract,\"-\",2),\"0000\"),\n_xlfn.CONCAT(_xlpm.Yr,\"-\",_xlpm.CleanProgram,\"-\",_xlpm.Number))\n),\"\")","v":""},{"$f":"IFERROR(IF(A154=\"\",\"\",\n_xlfn.LET(_xlpm.Contract,'1. Checklist & Certification'!$F$8,\n_xlpm.Yr,TEXT(MOD(_xlfn.TEXTBEFORE(_xlpm.Contract,\"-\"),100),\"00\"),\n_xlpm.Program,_xlfn.TEXTAFTER(_xlfn.TEXTBEFORE(_xlpm.Contract,\"-\",2),\"-\"),\n_xlpm.CleanProgram,_xlfn.XLOOKUP(_xlpm.Program,SpellCheck[Input],SpellCheck[Correction],_xlpm.Program),\n_xlpm.Number,TEXT(_xlfn.TEXTAFTER(_xlpm.Contract,\"-\",2),\"0000\"),\n_xlfn.CONCAT(_xlpm.Yr,\"-\",_xlpm.CleanProgram,\"-\",_xlpm.Number))\n),\"\")","v":""},{"$f":"IF(A154=\"\",\"\",'1. Checklist & Certification'!$B$9)","v":""},{"$f":"IF(A154=\"\",\"\",'1. Checklist & Certification'!$F$9)","v":""},{"$f":"IF(A154=\"\",\"\",'1. Checklist & Certification'!$C$10)","v":""},{"$f":"IF(A154=\"\",\"\",'1. Checklist & Certification'!$C$11)","v":""},{"$f":"IF(A154=\"\",\"\",'1. Checklist & Certification'!$C$12)","v":""},{"$f":"IF(A154=\"\",\"\",'1. Checklist & Certification'!$B$14)","v":""},{"$f":"IF(A154=\"\",\"\",'1. Checklist & Certification'!$E$14)","v":""},{"$f":"IF(B154=\"\",\"\",'1. Checklist & Certification'!$G$14)","v":""},{"$f":"IF(A154=\"\",\"\",'MHP Family Income & Rent Limits'!$B$3)","v":""},{"$f":"IF(A154=\"\",\"\",'MHP Family Income & Rent Limits'!$J$3)","v":""},{"$f":"IF(A154=\"\",\"\",'MHP Family Income & Rent Limits'!$E$4)","v":""},{"$f":"IF(A154=\"\",\"\",'MHP Family Income & Rent Limits'!$C$7)","v":""},{"$f":"IF(A154=\"\",\"\",'MHP Family Income & Rent Limits'!$F$8)","v":""},{"$f":"IF(A154=\"\",\"\",'1. Checklist & Certification'!$G$4)","v":""},{"$f":"IF(A154=\"\",\"\",'1. Checklist & Certification'!$K$39)","v":""},{"$f":"IF(A154=\"\",\"\",'1. Checklist & Certification'!$K$43)","v":""},{"$f":"IF(A154=\"\",\"\",'1. Checklist & Certification'!$K$45)","v":""},{"$f":"IF(A154=\"\",\"\",'1. Checklist & Certification'!$K$49)","v":""},{"$f":"IF(A154=\"\",\"\",'1. Checklist & Certification'!$K$62)","v":""},{"$f":"IF(A154=\"\",\"\",'1. Checklist & Certification'!$E$66)","v":""},{"$f":"IF(A154=\"\",\"\",'1. Checklist & Certification'!$E$67)","v":""},{"$f":"IF(A154=\"\",\"\",'1. Checklist & Certification'!$E$68)","v":""},{"$f":"IF(A154=\"\",\"\",'1. Checklist & Certification'!$G$66)","v":""},{"$f":"IF(A154=\"\",\"\",'1. Checklist & Certification'!$H$66)","v":""},{"$f":"IF(A154=\"\",\"\",'1. Checklist & Certification'!$I$66)","v":""},{"$f":"IF(A154=\"\",\"\",'1. Checklist & Certification'!$I$67)","v":""},{"$f":"IF(A154=\"\",\"\",'1. Checklist & Certification'!$I$68)","v":""},{"$f":"IF(A154=\"\",\"\",'1. Checklist & Certification'!$B$69)","v":""},{"$f":"IF(A154=\"\",\"\",'1. Checklist & Certification'!$C$69)","v":""},{"$f":"IF(A154=\"\",\"\",'1. Checklist & Certification'!$F$69)","v":""},{"$f":"IF(A154=\"\",\"\",'1. Checklist & Certification'!$G$69)","v":""},{"$f":"IF(A154=\"\",\"\",'1. Checklist & Certification'!$J$69)","v":""},{"$f":"IF(A154=\"\",\"\",'1. Checklist & Certification'!$K$69)","v":""},null,null,{"$f":"IF(AND(OR('1. Checklist & Certification'!$M$16=1,'1. Checklist & Certification'!$M$19=2),AO154>0,B154=\"\",I154>0,AQ154<I154,AV154<>\"Sec 8-Project\"),\"X\",IF(AND(OR('1. Checklist & Certification'!$M$20=4,'1. Checklist & Certification'!$M$21=5,'1. Checklist & Certification'!$M$22=7),AO154>0,B154=\"\",I154>0,K154<I154),\"X\",\"\"))","v":""},{"$f":"IF(A154=\"\",\"\",IF(SUMPRODUCT(-- (ISNUMBER(SEARCH({\"*AHSC*\",\"*FMTW*\",\"*FWHG*\",\"*GHI*\",\"*HHC*\",\"*HLCP*\",\"*HOME*\",\"*LPR*\",\"*MHP*\",\"*NHTF*\",\"*NSP*\",\"*PRP*\",\"*TOD*\",\"*VHHP*\"},'1. Checklist & Certification'!$L$7)))),\"MHP\",\"Legacy\"))","v":""},",,",null,null,null,{"$f":"IF('1. Checklist & Certification'!$M$20=4,\"Both\",IF(OR('1. Checklist & Certification'!$M$15>0,S154=\"CHRP-R\",U154=\"CHRP-R\",W154=\"CHRP-R\",Y154=\"CHRP-R\"),\"Under\",\"No\"))","v":"No"},"No","No",{"$f":"_xlfn.IFS(D154=\"\",\"\",D154=1,'MHP Family Income & Rent Limits'!$E$17,D154=2,'MHP Family Income & Rent Limits'!$F$17,D154=3,'MHP Family Income & Rent Limits'!$G$17,D154=4,'MHP Family Income & Rent Limits'!$H$17,D154=5,'MHP Family Income & Rent Limits'!$I$17,D154=6,'MHP Family Income & Rent Limits'!$J$17,D154=7,'MHP Family Income & Rent Limits'!$K$17,D154=8,'MHP Family Income & Rent Limits'!$L$17)","v":""},"",{"$f":"IF(OR(A154=0,B154=\"X\"),0,MIN(IF(AA154:AD154<>0,AA154:AD154)))","v":0},{"$f":"IF(OR(H154=\"\",I154=\"\"),0,IF(H154*0.3/12>I154,MIN(H154*0.3/12,I154*1.1)+AP154,I154*(1+(VLOOKUP('1. Checklist & Certification'!$F$9,'HLCP-E Rent Change'!$A$1:$D$59,4,FALSE)))+AP154))","v":0}]
[null,null,null,null,null,null,null,null,null,null,null,null,null,null,null,null,null,null,null,null,null,null,null,null,null,null,0,0,0,0,0,0,0,0,{"$f":"IF(OR(A155=0,B155=\"X\"),0,IF(OR(S155=\"FHDP\",S155=\"RHCP-B\",U155=\"FHDP\",U155=\"RHCP-B\",W155=\"FHDP\",W155=\"RHCP-B\",Y155=\"FHDP\",Y155=\"RHCP-B\"),TRUNC((MIN(I155,K155)*(1+'1. Checklist & Certification'!$K$43)+AP155)),0))","v":0},{"$f":"IF(OR(A155=0,B155=\"X\"),0,IF(OR(S155=\"CHRP-R\",S155=\"SERA\",S155=\"SUHRP\",U155=\"CHRP-R\",U155=\"SERA\",U155=\"SUHRP\",W155=\"CHRP-R\",W155=\"SERA\",W155=\"SUHRP\",Y155=\"CHRP-R\",Y155=\"SERA\",Y155=\"SUHRP\"),TRUNC((MIN(I155,K155)*(1+'1. Checklist & Certification'!$K$49))),0))","v":0},{"$f":"IF(OR(A155=0,B155=\"X\"),0,IF(OR(S155=\"CALDAP\",S155=\"DPRLP\",U155=\"CALDAP\",U155=\"DPRLP\",W155=\"CALDAP\",W155=\"DPRLP\",Y155=\"CALDAP\",Y155=\"DPRLP\"),TRUNC(((MIN(I155,K155))*(1+'1. Checklist & Certification'!$G$4))),0))","v":0},0,0,0,{"$f":"IF(OR(A155=0,B155=\"X\"),0,IF(OR(S155=\"PRP\",S155=\"LPR\",U155=\"PRP\",U155=\"LPR\",W155=\"PRP\",W155=\"LPR\",Y155=\"PRP\",Y155=\"LPR\"),MAX(I155+AP155,MIN(IF(AE155:AN155<>0,AE155:AN155))),MIN(IF(AE155:AN155<>0,AE155:AN155))))","v":0},{"$f":"IF(A155=0,0,IF(AND(OR(S155=\"Mgr\",S155=0),OR(U155=\"Mgr\",U155=0),OR(W155=\"Mgr\",W155=0)),0,IF(LEFT($A155,2)=\"B*\",VLOOKUP($E155,'1. Checklist & Certification'!$D$26:$E$32,2),IF(LEFT($A155,2)=\"C*\",VLOOKUP($E155,'1. Checklist & Certification'!$F$26:$G$32,2),IF(LEFT($A155,2)=\"D*\",VLOOKUP($E155,'1. Checklist & Certification'!$H$26:$I$32,2),IF(LEFT($A155,2)=\"E*\",VLOOKUP($E155,'1. Checklist & Certification'!$J$26:$K$32,2),VLOOKUP($E155,'1. Checklist & Certification'!$A$26:$B$32,2)))))))","v":0},0,0,null,null,null,null,"","",0,0,0,null,{"$f":"IF(A155=\"\",\"\",'1. Checklist & Certification'!$K$1)","v":""},{"$f":"IF(A155=\"\",\"\",'1. Checklist & Certification'!$C$62)","v":""},{"$f":"IF(A155=\"\",\"\",'1. Checklist & Certification'!$C$6)","v":""},{"$f":"IF(A155=\"\",\"\",'1. Checklist & Certification'!$G$5)","v":""},{"$f":"IFERROR(IF(A155=\"\",\"\",\n_xlfn.LET(_xlpm.Contract,'1. Checklist & Certification'!$C$7,\n_xlpm.Yr,TEXT(MOD(_xlfn.TEXTBEFORE(_xlpm.Contract,\"-\"),100),\"00\"),\n_xlpm.Program,_xlfn.TEXTAFTER(_xlfn.TEXTBEFORE(_xlpm.Contract,\"-\",2),\"-\"),\n_xlpm.CleanProgram,_xlfn.XLOOKUP(_xlpm.Program,SpellCheck[Input],SpellCheck[Correction],_xlpm.Program),\n_xlpm.Number,TEXT(_xlfn.TEXTAFTER(_xlpm.Contract,\"-\",2),\"0000\"),\n_xlfn.CONCAT(_xlpm.Yr,\"-\",_xlpm.CleanProgram,\"-\",_xlpm.Number))\n),\"\")","v":""},{"$f":"IFERROR(IF(A155=\"\",\"\",\n_xlfn.LET(_xlpm.Contract,'1. Checklist & Certification'!$C$8,\n_xlpm.Yr,TEXT(MOD(_xlfn.TEXTBEFORE(_xlpm.Contract,\"-\"),100),\"00\"),\n_xlpm.Program,_xlfn.TEXTAFTER(_xlfn.TEXTBEFORE(_xlpm.Contract,\"-\",2),\"-\"),\n_xlpm.CleanProgram,_xlfn.XLOOKUP(_xlpm.Program,SpellCheck[Input],SpellCheck[Correction],_xlpm.Program),\n_xlpm.Number,TEXT(_xlfn.TEXTAFTER(_xlpm.Contract,\"-\",2),\"0000\"),\n_xlfn.CONCAT(_xlpm.Yr,\"-\",_xlpm.CleanProgram,\"-\",_xlpm.Number))\n),\"\")","v":""},{"$f":"IFERROR(IF(A155=\"\",\"\",\n_xlfn.LET(_xlpm.Contract,'1. Checklist & Certification'!$F$7,\n_xlpm.Yr,TEXT(MOD(_xlfn.TEXTBEFORE(_xlpm.Contract,\"-\"),100),\"00\"),\n_xlpm.Program,_xlfn.TEXTAFTER(_xlfn.TEXTBEFORE(_xlpm.Contract,\"-\",2),\"-\"),\n_xlpm.CleanProgram,_xlfn.XLOOKUP(_xlpm.Program,SpellCheck[Input],SpellCheck[Correction],_xlpm.Program),\n_xlpm.Number,TEXT(_xlfn.TEXTAFTER(_xlpm.Contract,\"-\",2),\"0000\"),\n_xlfn.CONCAT(_xlpm.Yr,\"-\",_xlpm.CleanProgram,\"-\",_xlpm.Number))\n),\"\")","v":""},{"$f":"IFERROR(IF(A155=\"\",\"\",\n_xlfn.LET(_xlpm.Contract,'1. Checklist & Certification'!$F$8,\n_xlpm.Yr,TEXT(MOD(_xlfn.TEXTBEFORE(_xlpm.Contract,\"-\"),100),\"00\"),\n_xlpm.Program,_xlfn.TEXTAFTER(_xlfn.TEXTBEFORE(_xlpm.Contract,\"-\",2),\"-\"),\n_xlpm.CleanProgram,_xlfn.XLOOKUP(_xlpm.Program,SpellCheck[Input],SpellCheck[Correction],_xlpm.Program),\n_xlpm.Number,TEXT(_xlfn.TEXTAFTER(_xlpm.Contract,\"-\",2),\"0000\"),\n_xlfn.CONCAT(_xlpm.Yr,\"-\",_xlpm.CleanProgram,\"-\",_xlpm.Number))\n),\"\")","v":""},{"$f":"IF(A155=\"\",\"\",'1. Checklist & Certification'!$B$9)","v":""},{"$f":"IF(A155=\"\",\"\",'1. Checklist & Certification'!$F$9)","v":""},{"$f":"IF(A155=\"\",\"\",'1. Checklist & Certification'!$C$10)","v":""},{"$f":"IF(A155=\"\",\"\",'1. Checklist & Certification'!$C$11)","v":""},{"$f":"IF(A155=\"\",\"\",'1. Checklist & Certification'!$C$12)","v":""},{"$f":"IF(A155=\"\",\"\",'1. Checklist & Certification'!$B$14)","v":""},{"$f":"IF(A155=\"\",\"\",'1. Checklist & Certification'!$E$14)","v":""},{"$f":"IF(B155=\"\",\"\",'1. Checklist & Certification'!$G$14)","v":""},{"$f":"IF(A155=\"\",\"\",'MHP Family Income & Rent Limits'!$B$3)","v":""},{"$f":"IF(A155=\"\",\"\",'MHP Family Income & Rent Limits'!$J$3)","v":""},{"$f":"IF(A155=\"\",\"\",'MHP Family Income & Rent Limits'!$E$4)","v":""},{"$f":"IF(A155=\"\",\"\",'MHP Family Income & Rent Limits'!$C$7)","v":""},{"$f":"IF(A155=\"\",\"\",'MHP Family Income & Rent Limits'!$F$8)","v":""},{"$f":"IF(A155=\"\",\"\",'1. Checklist & Certification'!$G$4)","v":""},{"$f":"IF(A155=\"\",\"\",'1. Checklist & Certification'!$K$39)","v":""},{"$f":"IF(A155=\"\",\"\",'1. Checklist & Certification'!$K$43)","v":""},{"$f":"IF(A155=\"\",\"\",'1. Checklist & Certification'!$K$45)","v":""},{"$f":"IF(A155=\"\",\"\",'1. Checklist & Certification'!$K$49)","v":""},{"$f":"IF(A155=\"\",\"\",'1. Checklist & Certification'!$K$62)","v":""},{"$f":"IF(A155=\"\",\"\",'1. Checklist & Certification'!$E$66)","v":""},{"$f":"IF(A155=\"\",\"\",'1. Checklist & Certification'!$E$67)","v":""},{"$f":"IF(A155=\"\",\"\",'1. Checklist & Certification'!$E$68)","v":""},{"$f":"IF(A155=\"\",\"\",'1. Checklist & Certification'!$G$66)","v":""},{"$f":"IF(A155=\"\",\"\",'1. Checklist & Certification'!$H$66)","v":""},{"$f":"IF(A155=\"\",\"\",'1. Checklist & Certification'!$I$66)","v":""},{"$f":"IF(A155=\"\",\"\",'1. Checklist & Certification'!$I$67)","v":""},{"$f":"IF(A155=\"\",\"\",'1. Checklist & Certification'!$I$68)","v":""},{"$f":"IF(A155=\"\",\"\",'1. Checklist & Certification'!$B$69)","v":""},{"$f":"IF(A155=\"\",\"\",'1. Checklist & Certification'!$C$69)","v":""},{"$f":"IF(A155=\"\",\"\",'1. Checklist & Certification'!$F$69)","v":""},{"$f":"IF(A155=\"\",\"\",'1. Checklist & Certification'!$G$69)","v":""},{"$f":"IF(A155=\"\",\"\",'1. Checklist & Certification'!$J$69)","v":""},{"$f":"IF(A155=\"\",\"\",'1. Checklist & Certification'!$K$69)","v":""},null,null,{"$f":"IF(AND(OR('1. Checklist & Certification'!$M$16=1,'1. Checklist & Certification'!$M$19=2),AO155>0,B155=\"\",I155>0,AQ155<I155,AV155<>\"Sec 8-Project\"),\"X\",IF(AND(OR('1. Checklist & Certification'!$M$20=4,'1. Checklist & Certification'!$M$21=5,'1. Checklist & Certification'!$M$22=7),AO155>0,B155=\"\",I155>0,K155<I155),\"X\",\"\"))","v":""},{"$f":"IF(A155=\"\",\"\",IF(SUMPRODUCT(-- (ISNUMBER(SEARCH({\"*AHSC*\",\"*FMTW*\",\"*FWHG*\",\"*GHI*\",\"*HHC*\",\"*HLCP*\",\"*HOME*\",\"*LPR*\",\"*MHP*\",\"*NHTF*\",\"*NSP*\",\"*PRP*\",\"*TOD*\",\"*VHHP*\"},'1. Checklist & Certification'!$L$7)))),\"MHP\",\"Legacy\"))","v":""},",,",null,null,null,{"$f":"IF('1. Checklist & Certification'!$M$20=4,\"Both\",IF(OR('1. Checklist & Certification'!$M$15>0,S155=\"CHRP-R\",U155=\"CHRP-R\",W155=\"CHRP-R\",Y155=\"CHRP-R\"),\"Under\",\"No\"))","v":"No"},"No","No",{"$f":"_xlfn.IFS(D155=\"\",\"\",D155=1,'MHP Family Income & Rent Limits'!$E$17,D155=2,'MHP Family Income & Rent Limits'!$F$17,D155=3,'MHP Family Income & Rent Limits'!$G$17,D155=4,'MHP Family Income & Rent Limits'!$H$17,D155=5,'MHP Family Income & Rent Limits'!$I$17,D155=6,'MHP Family Income & Rent Limits'!$J$17,D155=7,'MHP Family Income & Rent Limits'!$K$17,D155=8,'MHP Family Income & Rent Limits'!$L$17)","v":""},"",{"$f":"IF(OR(A155=0,B155=\"X\"),0,MIN(IF(AA155:AD155<>0,AA155:AD155)))","v":0},{"$f":"IF(OR(H155=\"\",I155=\"\"),0,IF(H155*0.3/12>I155,MIN(H155*0.3/12,I155*1.1)+AP155,I155*(1+(VLOOKUP('1. Checklist & Certification'!$F$9,'HLCP-E Rent Change'!$A$1:$D$59,4,FALSE)))+AP155))","v":0}]
[null,null,null,null,null,null,null,null,null,null,null,null,null,null,null,null,null,null,null,null,null,null,null,null,null,null,0,0,0,0,0,0,0,0,{"$f":"IF(OR(A156=0,B156=\"X\"),0,IF(OR(S156=\"FHDP\",S156=\"RHCP-B\",U156=\"FHDP\",U156=\"RHCP-B\",W156=\"FHDP\",W156=\"RHCP-B\",Y156=\"FHDP\",Y156=\"RHCP-B\"),TRUNC((MIN(I156,K156)*(1+'1. Checklist & Certification'!$K$43)+AP156)),0))","v":0},{"$f":"IF(OR(A156=0,B156=\"X\"),0,IF(OR(S156=\"CHRP-R\",S156=\"SERA\",S156=\"SUHRP\",U156=\"CHRP-R\",U156=\"SERA\",U156=\"SUHRP\",W156=\"CHRP-R\",W156=\"SERA\",W156=\"SUHRP\",Y156=\"CHRP-R\",Y156=\"SERA\",Y156=\"SUHRP\"),TRUNC((MIN(I156,K156)*(1+'1. Checklist & Certification'!$K$49))),0))","v":0},{"$f":"IF(OR(A156=0,B156=\"X\"),0,IF(OR(S156=\"CALDAP\",S156=\"DPRLP\",U156=\"CALDAP\",U156=\"DPRLP\",W156=\"CALDAP\",W156=\"DPRLP\",Y156=\"CALDAP\",Y156=\"DPRLP\"),TRUNC(((MIN(I156,K156))*(1+'1. Checklist & Certification'!$G$4))),0))","v":0},0,0,0,{"$f":"IF(OR(A156=0,B156=\"X\"),0,IF(OR(S156=\"PRP\",S156=\"LPR\",U156=\"PRP\",U156=\"LPR\",W156=\"PRP\",W156=\"LPR\",Y156=\"PRP\",Y156=\"LPR\"),MAX(I156+AP156,MIN(IF(AE156:AN156<>0,AE156:AN156))),MIN(IF(AE156:AN156<>0,AE156:AN156))))","v":0},{"$f":"IF(A156=0,0,IF(AND(OR(S156=\"Mgr\",S156=0),OR(U156=\"Mgr\",U156=0),OR(W156=\"Mgr\",W156=0)),0,IF(LEFT($A156,2)=\"B*\",VLOOKUP($E156,'1. Checklist & Certification'!$D$26:$E$32,2),IF(LEFT($A156,2)=\"C*\",VLOOKUP($E156,'1. Checklist & Certification'!$F$26:$G$32,2),IF(LEFT($A156,2)=\"D*\",VLOOKUP($E156,'1. Checklist & Certification'!$H$26:$I$32,2),IF(LEFT($A156,2)=\"E*\",VLOOKUP($E156,'1. Checklist & Certification'!$J$26:$K$32,2),VLOOKUP($E156,'1. Checklist & Certification'!$A$26:$B$32,2)))))))","v":0},0,0,null,null,null,null,"","",0,0,0,null,{"$f":"IF(A156=\"\",\"\",'1. Checklist & Certification'!$K$1)","v":""},{"$f":"IF(A156=\"\",\"\",'1. Checklist & Certification'!$C$62)","v":""},{"$f":"IF(A156=\"\",\"\",'1. Checklist & Certification'!$C$6)","v":""},{"$f":"IF(A156=\"\",\"\",'1. Checklist & Certification'!$G$5)","v":""},{"$f":"IFERROR(IF(A156=\"\",\"\",\n_xlfn.LET(_xlpm.Contract,'1. Checklist & Certification'!$C$7,\n_xlpm.Yr,TEXT(MOD(_xlfn.TEXTBEFORE(_xlpm.Contract,\"-\"),100),\"00\"),\n_xlpm.Program,_xlfn.TEXTAFTER(_xlfn.TEXTBEFORE(_xlpm.Contract,\"-\",2),\"-\"),\n_xlpm.CleanProgram,_xlfn.XLOOKUP(_xlpm.Program,SpellCheck[Input],SpellCheck[Correction],_xlpm.Program),\n_xlpm.Number,TEXT(_xlfn.TEXTAFTER(_xlpm.Contract,\"-\",2),\"0000\"),\n_xlfn.CONCAT(_xlpm.Yr,\"-\",_xlpm.CleanProgram,\"-\",_xlpm.Number))\n),\"\")","v":""},{"$f":"IFERROR(IF(A156=\"\",\"\",\n_xlfn.LET(_xlpm.Contract,'1. Checklist & Certification'!$C$8,\n_xlpm.Yr,TEXT(MOD(_xlfn.TEXTBEFORE(_xlpm.Contract,\"-\"),100),\"00\"),\n_xlpm.Program,_xlfn.TEXTAFTER(_xlfn.TEXTBEFORE(_xlpm.Contract,\"-\",2),\"-\"),\n_xlpm.CleanProgram,_xlfn.XLOOKUP(_xlpm.Program,SpellCheck[Input],SpellCheck[Correction],_xlpm.Program),\n_xlpm.Number,TEXT(_xlfn.TEXTAFTER(_xlpm.Contract,\"-\",2),\"0000\"),\n_xlfn.CONCAT(_xlpm.Yr,\"-\",_xlpm.CleanProgram,\"-\",_xlpm.Number))\n),\"\")","v":""},{"$f":"IFERROR(IF(A156=\"\",\"\",\n_xlfn.LET(_xlpm.Contract,'1. Checklist & Certification'!$F$7,\n_xlpm.Yr,TEXT(MOD(_xlfn.TEXTBEFORE(_xlpm.Contract,\"-\"),100),\"00\"),\n_xlpm.Program,_xlfn.TEXTAFTER(_xlfn.TEXTBEFORE(_xlpm.Contract,\"-\",2),\"-\"),\n_xlpm.CleanProgram,_xlfn.XLOOKUP(_xlpm.Program,SpellCheck[Input],SpellCheck[Correction],_xlpm.Program),\n_xlpm.Number,TEXT(_xlfn.TEXTAFTER(_xlpm.Contract,\"-\",2),\"0000\"),\n_xlfn.CONCAT(_xlpm.Yr,\"-\",_xlpm.CleanProgram,\"-\",_xlpm.Number))\n),\"\")","v":""},{"$f":"IFERROR(IF(A156=\"\",\"\",\n_xlfn.LET(_xlpm.Contract,'1. Checklist & Certification'!$F$8,\n_xlpm.Yr,TEXT(MOD(_xlfn.TEXTBEFORE(_xlpm.Contract,\"-\"),100),\"00\"),\n_xlpm.Program,_xlfn.TEXTAFTER(_xlfn.TEXTBEFORE(_xlpm.Contract,\"-\",2),\"-\"),\n_xlpm.CleanProgram,_xlfn.XLOOKUP(_xlpm.Program,SpellCheck[Input],SpellCheck[Correction],_xlpm.Program),\n_xlpm.Number,TEXT(_xlfn.TEXTAFTER(_xlpm.Contract,\"-\",2),\"0000\"),\n_xlfn.CONCAT(_xlpm.Yr,\"-\",_xlpm.CleanProgram,\"-\",_xlpm.Number))\n),\"\")","v":""},{"$f":"IF(A156=\"\",\"\",'1. Checklist & Certification'!$B$9)","v":""},{"$f":"IF(A156=\"\",\"\",'1. Checklist & Certification'!$F$9)","v":""},{"$f":"IF(A156=\"\",\"\",'1. Checklist & Certification'!$C$10)","v":""},{"$f":"IF(A156=\"\",\"\",'1. Checklist & Certification'!$C$11)","v":""},{"$f":"IF(A156=\"\",\"\",'1. Checklist & Certification'!$C$12)","v":""},{"$f":"IF(A156=\"\",\"\",'1. Checklist & Certification'!$B$14)","v":""},{"$f":"IF(A156=\"\",\"\",'1. Checklist & Certification'!$E$14)","v":""},{"$f":"IF(B156=\"\",\"\",'1. Checklist & Certification'!$G$14)","v":""},{"$f":"IF(A156=\"\",\"\",'MHP Family Income & Rent Limits'!$B$3)","v":""},{"$f":"IF(A156=\"\",\"\",'MHP Family Income & Rent Limits'!$J$3)","v":""},{"$f":"IF(A156=\"\",\"\",'MHP Family Income & Rent Limits'!$E$4)","v":""},{"$f":"IF(A156=\"\",\"\",'MHP Family Income & Rent Limits'!$C$7)","v":""},{"$f":"IF(A156=\"\",\"\",'MHP Family Income & Rent Limits'!$F$8)","v":""},{"$f":"IF(A156=\"\",\"\",'1. Checklist & Certification'!$G$4)","v":""},{"$f":"IF(A156=\"\",\"\",'1. Checklist & Certification'!$K$39)","v":""},{"$f":"IF(A156=\"\",\"\",'1. Checklist & Certification'!$K$43)","v":""},{"$f":"IF(A156=\"\",\"\",'1. Checklist & Certification'!$K$45)","v":""},{"$f":"IF(A156=\"\",\"\",'1. Checklist & Certification'!$K$49)","v":""},{"$f":"IF(A156=\"\",\"\",'1. Checklist & Certification'!$K$62)","v":""},{"$f":"IF(A156=\"\",\"\",'1. Checklist & Certification'!$E$66)","v":""},{"$f":"IF(A156=\"\",\"\",'1. Checklist & Certification'!$E$67)","v":""},{"$f":"IF(A156=\"\",\"\",'1. Checklist & Certification'!$E$68)","v":""},{"$f":"IF(A156=\"\",\"\",'1. Checklist & Certification'!$G$66)","v":""},{"$f":"IF(A156=\"\",\"\",'1. Checklist & Certification'!$H$66)","v":""},{"$f":"IF(A156=\"\",\"\",'1. Checklist & Certification'!$I$66)","v":""},{"$f":"IF(A156=\"\",\"\",'1. Checklist & Certification'!$I$67)","v":""},{"$f":"IF(A156=\"\",\"\",'1. Checklist & Certification'!$I$68)","v":""},{"$f":"IF(A156=\"\",\"\",'1. Checklist & Certification'!$B$69)","v":""},{"$f":"IF(A156=\"\",\"\",'1. Checklist & Certification'!$C$69)","v":""},{"$f":"IF(A156=\"\",\"\",'1. Checklist & Certification'!$F$69)","v":""},{"$f":"IF(A156=\"\",\"\",'1. Checklist & Certification'!$G$69)","v":""},{"$f":"IF(A156=\"\",\"\",'1. Checklist & Certification'!$J$69)","v":""},{"$f":"IF(A156=\"\",\"\",'1. Checklist & Certification'!$K$69)","v":""},null,null,{"$f":"IF(AND(OR('1. Checklist & Certification'!$M$16=1,'1. Checklist & Certification'!$M$19=2),AO156>0,B156=\"\",I156>0,AQ156<I156,AV156<>\"Sec 8-Project\"),\"X\",IF(AND(OR('1. Checklist & Certification'!$M$20=4,'1. Checklist & Certification'!$M$21=5,'1. Checklist & Certification'!$M$22=7),AO156>0,B156=\"\",I156>0,K156<I156),\"X\",\"\"))","v":""},{"$f":"IF(A156=\"\",\"\",IF(SUMPRODUCT(-- (ISNUMBER(SEARCH({\"*AHSC*\",\"*FMTW*\",\"*FWHG*\",\"*GHI*\",\"*HHC*\",\"*HLCP*\",\"*HOME*\",\"*LPR*\",\"*MHP*\",\"*NHTF*\",\"*NSP*\",\"*PRP*\",\"*TOD*\",\"*VHHP*\"},'1. Checklist & Certification'!$L$7)))),\"MHP\",\"Legacy\"))","v":""},",,",null,null,null,{"$f":"IF('1. Checklist & Certification'!$M$20=4,\"Both\",IF(OR('1. Checklist & Certification'!$M$15>0,S156=\"CHRP-R\",U156=\"CHRP-R\",W156=\"CHRP-R\",Y156=\"CHRP-R\"),\"Under\",\"No\"))","v":"No"},"No","No",{"$f":"_xlfn.IFS(D156=\"\",\"\",D156=1,'MHP Family Income & Rent Limits'!$E$17,D156=2,'MHP Family Income & Rent Limits'!$F$17,D156=3,'MHP Family Income & Rent Limits'!$G$17,D156=4,'MHP Family Income & Rent Limits'!$H$17,D156=5,'MHP Family Income & Rent Limits'!$I$17,D156=6,'MHP Family Income & Rent Limits'!$J$17,D156=7,'MHP Family Income & Rent Limits'!$K$17,D156=8,'MHP Family Income & Rent Limits'!$L$17)","v":""},"",{"$f":"IF(OR(A156=0,B156=\"X\"),0,MIN(IF(AA156:AD156<>0,AA156:AD156)))","v":0},{"$f":"IF(OR(H156=\"\",I156=\"\"),0,IF(H156*0.3/12>I156,MIN(H156*0.3/12,I156*1.1)+AP156,I156*(1+(VLOOKUP('1. Checklist & Certification'!$F$9,'HLCP-E Rent Change'!$A$1:$D$59,4,FALSE)))+AP156))","v":0}]
[null,null,null,null,null,null,null,null,null,null,null,null,null,null,null,null,null,null,null,null,null,null,null,null,null,null,0,0,0,0,0,0,0,0,{"$f":"IF(OR(A157=0,B157=\"X\"),0,IF(OR(S157=\"FHDP\",S157=\"RHCP-B\",U157=\"FHDP\",U157=\"RHCP-B\",W157=\"FHDP\",W157=\"RHCP-B\",Y157=\"FHDP\",Y157=\"RHCP-B\"),TRUNC((MIN(I157,K157)*(1+'1. Checklist & Certification'!$K$43)+AP157)),0))","v":0},{"$f":"IF(OR(A157=0,B157=\"X\"),0,IF(OR(S157=\"CHRP-R\",S157=\"SERA\",S157=\"SUHRP\",U157=\"CHRP-R\",U157=\"SERA\",U157=\"SUHRP\",W157=\"CHRP-R\",W157=\"SERA\",W157=\"SUHRP\",Y157=\"CHRP-R\",Y157=\"SERA\",Y157=\"SUHRP\"),TRUNC((MIN(I157,K157)*(1+'1. Checklist & Certification'!$K$49))),0))","v":0},{"$f":"IF(OR(A157=0,B157=\"X\"),0,IF(OR(S157=\"CALDAP\",S157=\"DPRLP\",U157=\"CALDAP\",U157=\"DPRLP\",W157=\"CALDAP\",W157=\"DPRLP\",Y157=\"CALDAP\",Y157=\"DPRLP\"),TRUNC(((MIN(I157,K157))*(1+'1. Checklist & Certification'!$G$4))),0))","v":0},0,0,0,{"$f":"IF(OR(A157=0,B157=\"X\"),0,IF(OR(S157=\"PRP\",S157=\"LPR\",U157=\"PRP\",U157=\"LPR\",W157=\"PRP\",W157=\"LPR\",Y157=\"PRP\",Y157=\"LPR\"),MAX(I157+AP157,MIN(IF(AE157:AN157<>0,AE157:AN157))),MIN(IF(AE157:AN157<>0,AE157:AN157))))","v":0},{"$f":"IF(A157=0,0,IF(AND(OR(S157=\"Mgr\",S157=0),OR(U157=\"Mgr\",U157=0),OR(W157=\"Mgr\",W157=0)),0,IF(LEFT($A157,2)=\"B*\",VLOOKUP($E157,'1. Checklist & Certification'!$D$26:$E$32,2),IF(LEFT($A157,2)=\"C*\",VLOOKUP($E157,'1. Checklist & Certification'!$F$26:$G$32,2),IF(LEFT($A157,2)=\"D*\",VLOOKUP($E157,'1. Checklist & Certification'!$H$26:$I$32,2),IF(LEFT($A157,2)=\"E*\",VLOOKUP($E157,'1. Checklist & Certification'!$J$26:$K$32,2),VLOOKUP($E157,'1. Checklist & Certification'!$A$26:$B$32,2)))))))","v":0},0,0,null,null,null,null,"","",0,0,0,null,{"$f":"IF(A157=\"\",\"\",'1. Checklist & Certification'!$K$1)","v":""},{"$f":"IF(A157=\"\",\"\",'1. Checklist & Certification'!$C$62)","v":""},{"$f":"IF(A157=\"\",\"\",'1. Checklist & Certification'!$C$6)","v":""},{"$f":"IF(A157=\"\",\"\",'1. Checklist & Certification'!$G$5)","v":""},{"$f":"IFERROR(IF(A157=\"\",\"\",\n_xlfn.LET(_xlpm.Contract,'1. Checklist & Certification'!$C$7,\n_xlpm.Yr,TEXT(MOD(_xlfn.TEXTBEFORE(_xlpm.Contract,\"-\"),100),\"00\"),\n_xlpm.Program,_xlfn.TEXTAFTER(_xlfn.TEXTBEFORE(_xlpm.Contract,\"-\",2),\"-\"),\n_xlpm.CleanProgram,_xlfn.XLOOKUP(_xlpm.Program,SpellCheck[Input],SpellCheck[Correction],_xlpm.Program),\n_xlpm.Number,TEXT(_xlfn.TEXTAFTER(_xlpm.Contract,\"-\",2),\"0000\"),\n_xlfn.CONCAT(_xlpm.Yr,\"-\",_xlpm.CleanProgram,\"-\",_xlpm.Number))\n),\"\")","v":""},{"$f":"IFERROR(IF(A157=\"\",\"\",\n_xlfn.LET(_xlpm.Contract,'1. Checklist & Certification'!$C$8,\n_xlpm.Yr,TEXT(MOD(_xlfn.TEXTBEFORE(_xlpm.Contract,\"-\"),100),\"00\"),\n_xlpm.Program,_xlfn.TEXTAFTER(_xlfn.TEXTBEFORE(_xlpm.Contract,\"-\",2),\"-\"),\n_xlpm.CleanProgram,_xlfn.XLOOKUP(_xlpm.Program,SpellCheck[Input],SpellCheck[Correction],_xlpm.Program),\n_xlpm.Number,TEXT(_xlfn.TEXTAFTER(_xlpm.Contract,\"-\",2),\"0000\"),\n_xlfn.CONCAT(_xlpm.Yr,\"-\",_xlpm.CleanProgram,\"-\",_xlpm.Number))\n),\"\")","v":""},{"$f":"IFERROR(IF(A157=\"\",\"\",\n_xlfn.LET(_xlpm.Contract,'1. Checklist & Certification'!$F$7,\n_xlpm.Yr,TEXT(MOD(_xlfn.TEXTBEFORE(_xlpm.Contract,\"-\"),100),\"00\"),\n_xlpm.Program,_xlfn.TEXTAFTER(_xlfn.TEXTBEFORE(_xlpm.Contract,\"-\",2),\"-\"),\n_xlpm.CleanProgram,_xlfn.XLOOKUP(_xlpm.Program,SpellCheck[Input],SpellCheck[Correction],_xlpm.Program),\n_xlpm.Number,TEXT(_xlfn.TEXTAFTER(_xlpm.Contract,\"-\",2),\"0000\"),\n_xlfn.CONCAT(_xlpm.Yr,\"-\",_xlpm.CleanProgram,\"-\",_xlpm.Number))\n),\"\")","v":""},{"$f":"IFERROR(IF(A157=\"\",\"\",\n_xlfn.LET(_xlpm.Contract,'1. Checklist & Certification'!$F$8,\n_xlpm.Yr,TEXT(MOD(_xlfn.TEXTBEFORE(_xlpm.Contract,\"-\"),100),\"00\"),\n_xlpm.Program,_xlfn.TEXTAFTER(_xlfn.TEXTBEFORE(_xlpm.Contract,\"-\",2),\"-\"),\n_xlpm.CleanProgram,_xlfn.XLOOKUP(_xlpm.Program,SpellCheck[Input],SpellCheck[Correction],_xlpm.Program),\n_xlpm.Number,TEXT(_xlfn.TEXTAFTER(_xlpm.Contract,\"-\",2),\"0000\"),\n_xlfn.CONCAT(_xlpm.Yr,\"-\",_xlpm.CleanProgram,\"-\",_xlpm.Number))\n),\"\")","v":""},{"$f":"IF(A157=\"\",\"\",'1. Checklist & Certification'!$B$9)","v":""},{"$f":"IF(A157=\"\",\"\",'1. Checklist & Certification'!$F$9)","v":""},{"$f":"IF(A157=\"\",\"\",'1. Checklist & Certification'!$C$10)","v":""},{"$f":"IF(A157=\"\",\"\",'1. Checklist & Certification'!$C$11)","v":""},{"$f":"IF(A157=\"\",\"\",'1. Checklist & Certification'!$C$12)","v":""},{"$f":"IF(A157=\"\",\"\",'1. Checklist & Certification'!$B$14)","v":""},{"$f":"IF(A157=\"\",\"\",'1. Checklist & Certification'!$E$14)","v":""},{"$f":"IF(B157=\"\",\"\",'1. Checklist & Certification'!$G$14)","v":""},{"$f":"IF(A157=\"\",\"\",'MHP Family Income & Rent Limits'!$B$3)","v":""},{"$f":"IF(A157=\"\",\"\",'MHP Family Income & Rent Limits'!$J$3)","v":""},{"$f":"IF(A157=\"\",\"\",'MHP Family Income & Rent Limits'!$E$4)","v":""},{"$f":"IF(A157=\"\",\"\",'MHP Family Income & Rent Limits'!$C$7)","v":""},{"$f":"IF(A157=\"\",\"\",'MHP Family Income & Rent Limits'!$F$8)","v":""},{"$f":"IF(A157=\"\",\"\",'1. Checklist & Certification'!$G$4)","v":""},{"$f":"IF(A157=\"\",\"\",'1. Checklist & Certification'!$K$39)","v":""},{"$f":"IF(A157=\"\",\"\",'1. Checklist & Certification'!$K$43)","v":""},{"$f":"IF(A157=\"\",\"\",'1. Checklist & Certification'!$K$45)","v":""},{"$f":"IF(A157=\"\",\"\",'1. Checklist & Certification'!$K$49)","v":""},{"$f":"IF(A157=\"\",\"\",'1. Checklist & Certification'!$K$62)","v":""},{"$f":"IF(A157=\"\",\"\",'1. Checklist & Certification'!$E$66)","v":""},{"$f":"IF(A157=\"\",\"\",'1. Checklist & Certification'!$E$67)","v":""},{"$f":"IF(A157=\"\",\"\",'1. Checklist & Certification'!$E$68)","v":""},{"$f":"IF(A157=\"\",\"\",'1. Checklist & Certification'!$G$66)","v":""},{"$f":"IF(A157=\"\",\"\",'1. Checklist & Certification'!$H$66)","v":""},{"$f":"IF(A157=\"\",\"\",'1. Checklist & Certification'!$I$66)","v":""},{"$f":"IF(A157=\"\",\"\",'1. Checklist & Certification'!$I$67)","v":""},{"$f":"IF(A157=\"\",\"\",'1. Checklist & Certification'!$I$68)","v":""},{"$f":"IF(A157=\"\",\"\",'1. Checklist & Certification'!$B$69)","v":""},{"$f":"IF(A157=\"\",\"\",'1. Checklist & Certification'!$C$69)","v":""},{"$f":"IF(A157=\"\",\"\",'1. Checklist & Certification'!$F$69)","v":""},{"$f":"IF(A157=\"\",\"\",'1. Checklist & Certification'!$G$69)","v":""},{"$f":"IF(A157=\"\",\"\",'1. Checklist & Certification'!$J$69)","v":""},{"$f":"IF(A157=\"\",\"\",'1. Checklist & Certification'!$K$69)","v":""},null,null,{"$f":"IF(AND(OR('1. Checklist & Certification'!$M$16=1,'1. Checklist & Certification'!$M$19=2),AO157>0,B157=\"\",I157>0,AQ157<I157,AV157<>\"Sec 8-Project\"),\"X\",IF(AND(OR('1. Checklist & Certification'!$M$20=4,'1. Checklist & Certification'!$M$21=5,'1. Checklist & Certification'!$M$22=7),AO157>0,B157=\"\",I157>0,K157<I157),\"X\",\"\"))","v":""},{"$f":"IF(A157=\"\",\"\",IF(SUMPRODUCT(-- (ISNUMBER(SEARCH({\"*AHSC*\",\"*FMTW*\",\"*FWHG*\",\"*GHI*\",\"*HHC*\",\"*HLCP*\",\"*HOME*\",\"*LPR*\",\"*MHP*\",\"*NHTF*\",\"*NSP*\",\"*PRP*\",\"*TOD*\",\"*VHHP*\"},'1. Checklist & Certification'!$L$7)))),\"MHP\",\"Legacy\"))","v":""},",,",null,null,null,{"$f":"IF('1. Checklist & Certification'!$M$20=4,\"Both\",IF(OR('1. Checklist & Certification'!$M$15>0,S157=\"CHRP-R\",U157=\"CHRP-R\",W157=\"CHRP-R\",Y157=\"CHRP-R\"),\"Under\",\"No\"))","v":"No"},"No","No",{"$f":"_xlfn.IFS(D157=\"\",\"\",D157=1,'MHP Family Income & Rent Limits'!$E$17,D157=2,'MHP Family Income & Rent Limits'!$F$17,D157=3,'MHP Family Income & Rent Limits'!$G$17,D157=4,'MHP Family Income & Rent Limits'!$H$17,D157=5,'MHP Family Income & Rent Limits'!$I$17,D157=6,'MHP Family Income & Rent Limits'!$J$17,D157=7,'MHP Family Income & Rent Limits'!$K$17,D157=8,'MHP Family Income & Rent Limits'!$L$17)","v":""},"",{"$f":"IF(OR(A157=0,B157=\"X\"),0,MIN(IF(AA157:AD157<>0,AA157:AD157)))","v":0},{"$f":"IF(OR(H157=\"\",I157=\"\"),0,IF(H157*0.3/12>I157,MIN(H157*0.3/12,I157*1.1)+AP157,I157*(1+(VLOOKUP('1. Checklist & Certification'!$F$9,'HLCP-E Rent Change'!$A$1:$D$59,4,FALSE)))+AP157))","v":0}]
[null,null,null,null,null,null,null,null,null,null,null,null,null,null,null,null,null,null,null,null,null,null,null,null,null,null,0,0,0,0,0,0,0,0,{"$f":"IF(OR(A158=0,B158=\"X\"),0,IF(OR(S158=\"FHDP\",S158=\"RHCP-B\",U158=\"FHDP\",U158=\"RHCP-B\",W158=\"FHDP\",W158=\"RHCP-B\",Y158=\"FHDP\",Y158=\"RHCP-B\"),TRUNC((MIN(I158,K158)*(1+'1. Checklist & Certification'!$K$43)+AP158)),0))","v":0},{"$f":"IF(OR(A158=0,B158=\"X\"),0,IF(OR(S158=\"CHRP-R\",S158=\"SERA\",S158=\"SUHRP\",U158=\"CHRP-R\",U158=\"SERA\",U158=\"SUHRP\",W158=\"CHRP-R\",W158=\"SERA\",W158=\"SUHRP\",Y158=\"CHRP-R\",Y158=\"SERA\",Y158=\"SUHRP\"),TRUNC((MIN(I158,K158)*(1+'1. Checklist & Certification'!$K$49))),0))","v":0},{"$f":"IF(OR(A158=0,B158=\"X\"),0,IF(OR(S158=\"CALDAP\",S158=\"DPRLP\",U158=\"CALDAP\",U158=\"DPRLP\",W158=\"CALDAP\",W158=\"DPRLP\",Y158=\"CALDAP\",Y158=\"DPRLP\"),TRUNC(((MIN(I158,K158))*(1+'1. Checklist & Certification'!$G$4))),0))","v":0},0,0,0,{"$f":"IF(OR(A158=0,B158=\"X\"),0,IF(OR(S158=\"PRP\",S158=\"LPR\",U158=\"PRP\",U158=\"LPR\",W158=\"PRP\",W158=\"LPR\",Y158=\"PRP\",Y158=\"LPR\"),MAX(I158+AP158,MIN(IF(AE158:AN158<>0,AE158:AN158))),MIN(IF(AE158:AN158<>0,AE158:AN158))))","v":0},{"$f":"IF(A158=0,0,IF(AND(OR(S158=\"Mgr\",S158=0),OR(U158=\"Mgr\",U158=0),OR(W158=\"Mgr\",W158=0)),0,IF(LEFT($A158,2)=\"B*\",VLOOKUP($E158,'1. Checklist & Certification'!$D$26:$E$32,2),IF(LEFT($A158,2)=\"C*\",VLOOKUP($E158,'1. Checklist & Certification'!$F$26:$G$32,2),IF(LEFT($A158,2)=\"D*\",VLOOKUP($E158,'1. Checklist & Certification'!$H$26:$I$32,2),IF(LEFT($A158,2)=\"E*\",VLOOKUP($E158,'1. Checklist & Certification'!$J$26:$K$32,2),VLOOKUP($E158,'1. Checklist & Certification'!$A$26:$B$32,2)))))))","v":0},0,0,null,null,null,null,"","",0,0,0,null,{"$f":"IF(A158=\"\",\"\",'1. Checklist & Certification'!$K$1)","v":""},{"$f":"IF(A158=\"\",\"\",'1. Checklist & Certification'!$C$62)","v":""},{"$f":"IF(A158=\"\",\"\",'1. Checklist & Certification'!$C$6)","v":""},{"$f":"IF(A158=\"\",\"\",'1. Checklist & Certification'!$G$5)","v":""},{"$f":"IFERROR(IF(A158=\"\",\"\",\n_xlfn.LET(_xlpm.Contract,'1. Checklist & Certification'!$C$7,\n_xlpm.Yr,TEXT(MOD(_xlfn.TEXTBEFORE(_xlpm.Contract,\"-\"),100),\"00\"),\n_xlpm.Program,_xlfn.TEXTAFTER(_xlfn.TEXTBEFORE(_xlpm.Contract,\"-\",2),\"-\"),\n_xlpm.CleanProgram,_xlfn.XLOOKUP(_xlpm.Program,SpellCheck[Input],SpellCheck[Correction],_xlpm.Program),\n_xlpm.Number,TEXT(_xlfn.TEXTAFTER(_xlpm.Contract,\"-\",2),\"0000\"),\n_xlfn.CONCAT(_xlpm.Yr,\"-\",_xlpm.CleanProgram,\"-\",_xlpm.Number))\n),\"\")","v":""},{"$f":"IFERROR(IF(A158=\"\",\"\",\n_xlfn.LET(_xlpm.Contract,'1. Checklist & Certification'!$C$8,\n_xlpm.Yr,TEXT(MOD(_xlfn.TEXTBEFORE(_xlpm.Contract,\"-\"),100),\"00\"),\n_xlpm.Program,_xlfn.TEXTAFTER(_xlfn.TEXTBEFORE(_xlpm.Contract,\"-\",2),\"-\"),\n_xlpm.CleanProgram,_xlfn.XLOOKUP(_xlpm.Program,SpellCheck[Input],SpellCheck[Correction],_xlpm.Program),\n_xlpm.Number,TEXT(_xlfn.TEXTAFTER(_xlpm.Contract,\"-\",2),\"0000\"),\n_xlfn.CONCAT(_xlpm.Yr,\"-\",_xlpm.CleanProgram,\"-\",_xlpm.Number))\n),\"\")","v":""},{"$f":"IFERROR(IF(A158=\"\",\"\",\n_xlfn.LET(_xlpm.Contract,'1. Checklist & Certification'!$F$7,\n_xlpm.Yr,TEXT(MOD(_xlfn.TEXTBEFORE(_xlpm.Contract,\"-\"),100),\"00\"),\n_xlpm.Program,_xlfn.TEXTAFTER(_xlfn.TEXTBEFORE(_xlpm.Contract,\"-\",2),\"-\"),\n_xlpm.CleanProgram,_xlfn.XLOOKUP(_xlpm.Program,SpellCheck[Input],SpellCheck[Correction],_xlpm.Program),\n_xlpm.Number,TEXT(_xlfn.TEXTAFTER(_xlpm.Contract,\"-\",2),\"0000\"),\n_xlfn.CONCAT(_xlpm.Yr,\"-\",_xlpm.CleanProgram,\"-\",_xlpm.Number))\n),\"\")","v":""},{"$f":"IFERROR(IF(A158=\"\",\"\",\n_xlfn.LET(_xlpm.Contract,'1. Checklist & Certification'!$F$8,\n_xlpm.Yr,TEXT(MOD(_xlfn.TEXTBEFORE(_xlpm.Contract,\"-\"),100),\"00\"),\n_xlpm.Program,_xlfn.TEXTAFTER(_xlfn.TEXTBEFORE(_xlpm.Contract,\"-\",2),\"-\"),\n_xlpm.CleanProgram,_xlfn.XLOOKUP(_xlpm.Program,SpellCheck[Input],SpellCheck[Correction],_xlpm.Program),\n_xlpm.Number,TEXT(_xlfn.TEXTAFTER(_xlpm.Contract,\"-\",2),\"0000\"),\n_xlfn.CONCAT(_xlpm.Yr,\"-\",_xlpm.CleanProgram,\"-\",_xlpm.Number))\n),\"\")","v":""},{"$f":"IF(A158=\"\",\"\",'1. Checklist & Certification'!$B$9)","v":""},{"$f":"IF(A158=\"\",\"\",'1. Checklist & Certification'!$F$9)","v":""},{"$f":"IF(A158=\"\",\"\",'1. Checklist & Certification'!$C$10)","v":""},{"$f":"IF(A158=\"\",\"\",'1. Checklist & Certification'!$C$11)","v":""},{"$f":"IF(A158=\"\",\"\",'1. Checklist & Certification'!$C$12)","v":""},{"$f":"IF(A158=\"\",\"\",'1. Checklist & Certification'!$B$14)","v":""},{"$f":"IF(A158=\"\",\"\",'1. Checklist & Certification'!$E$14)","v":""},{"$f":"IF(B158=\"\",\"\",'1. Checklist & Certification'!$G$14)","v":""},{"$f":"IF(A158=\"\",\"\",'MHP Family Income & Rent Limits'!$B$3)","v":""},{"$f":"IF(A158=\"\",\"\",'MHP Family Income & Rent Limits'!$J$3)","v":""},{"$f":"IF(A158=\"\",\"\",'MHP Family Income & Rent Limits'!$E$4)","v":""},{"$f":"IF(A158=\"\",\"\",'MHP Family Income & Rent Limits'!$C$7)","v":""},{"$f":"IF(A158=\"\",\"\",'MHP Family Income & Rent Limits'!$F$8)","v":""},{"$f":"IF(A158=\"\",\"\",'1. Checklist & Certification'!$G$4)","v":""},{"$f":"IF(A158=\"\",\"\",'1. Checklist & Certification'!$K$39)","v":""},{"$f":"IF(A158=\"\",\"\",'1. Checklist & Certification'!$K$43)","v":""},{"$f":"IF(A158=\"\",\"\",'1. Checklist & Certification'!$K$45)","v":""},{"$f":"IF(A158=\"\",\"\",'1. Checklist & Certification'!$K$49)","v":""},{"$f":"IF(A158=\"\",\"\",'1. Checklist & Certification'!$K$62)","v":""},{"$f":"IF(A158=\"\",\"\",'1. Checklist & Certification'!$E$66)","v":""},{"$f":"IF(A158=\"\",\"\",'1. Checklist & Certification'!$E$67)","v":""},{"$f":"IF(A158=\"\",\"\",'1. Checklist & Certification'!$E$68)","v":""},{"$f":"IF(A158=\"\",\"\",'1. Checklist & Certification'!$G$66)","v":""},{"$f":"IF(A158=\"\",\"\",'1. Checklist & Certification'!$H$66)","v":""},{"$f":"IF(A158=\"\",\"\",'1. Checklist & Certification'!$I$66)","v":""},{"$f":"IF(A158=\"\",\"\",'1. Checklist & Certification'!$I$67)","v":""},{"$f":"IF(A158=\"\",\"\",'1. Checklist & Certification'!$I$68)","v":""},{"$f":"IF(A158=\"\",\"\",'1. Checklist & Certification'!$B$69)","v":""},{"$f":"IF(A158=\"\",\"\",'1. Checklist & Certification'!$C$69)","v":""},{"$f":"IF(A158=\"\",\"\",'1. Checklist & Certification'!$F$69)","v":""},{"$f":"IF(A158=\"\",\"\",'1. Checklist & Certification'!$G$69)","v":""},{"$f":"IF(A158=\"\",\"\",'1. Checklist & Certification'!$J$69)","v":""},{"$f":"IF(A158=\"\",\"\",'1. Checklist & Certification'!$K$69)","v":""},null,null,{"$f":"IF(AND(OR('1. Checklist & Certification'!$M$16=1,'1. Checklist & Certification'!$M$19=2),AO158>0,B158=\"\",I158>0,AQ158<I158,AV158<>\"Sec 8-Project\"),\"X\",IF(AND(OR('1. Checklist & Certification'!$M$20=4,'1. Checklist & Certification'!$M$21=5,'1. Checklist & Certification'!$M$22=7),AO158>0,B158=\"\",I158>0,K158<I158),\"X\",\"\"))","v":""},{"$f":"IF(A158=\"\",\"\",IF(SUMPRODUCT(-- (ISNUMBER(SEARCH({\"*AHSC*\",\"*FMTW*\",\"*FWHG*\",\"*GHI*\",\"*HHC*\",\"*HLCP*\",\"*HOME*\",\"*LPR*\",\"*MHP*\",\"*NHTF*\",\"*NSP*\",\"*PRP*\",\"*TOD*\",\"*VHHP*\"},'1. Checklist & Certification'!$L$7)))),\"MHP\",\"Legacy\"))","v":""},",,",null,null,null,{"$f":"IF('1. Checklist & Certification'!$M$20=4,\"Both\",IF(OR('1. Checklist & Certification'!$M$15>0,S158=\"CHRP-R\",U158=\"CHRP-R\",W158=\"CHRP-R\",Y158=\"CHRP-R\"),\"Under\",\"No\"))","v":"No"},"No","No",{"$f":"_xlfn.IFS(D158=\"\",\"\",D158=1,'MHP Family Income & Rent Limits'!$E$17,D158=2,'MHP Family Income & Rent Limits'!$F$17,D158=3,'MHP Family Income & Rent Limits'!$G$17,D158=4,'MHP Family Income & Rent Limits'!$H$17,D158=5,'MHP Family Income & Rent Limits'!$I$17,D158=6,'MHP Family Income & Rent Limits'!$J$17,D158=7,'MHP Family Income & Rent Limits'!$K$17,D158=8,'MHP Family Income & Rent Limits'!$L$17)","v":""},"",{"$f":"IF(OR(A158=0,B158=\"X\"),0,MIN(IF(AA158:AD158<>0,AA158:AD158)))","v":0},{"$f":"IF(OR(H158=\"\",I158=\"\"),0,IF(H158*0.3/12>I158,MIN(H158*0.3/12,I158*1.1)+AP158,I158*(1+(VLOOKUP('1. Checklist & Certification'!$F$9,'HLCP-E Rent Change'!$A$1:$D$59,4,FALSE)))+AP158))","v":0}]
[null,null,null,null,null,null,null,null,null,null,null,null,null,null,null,null,null,null,null,null,null,null,null,null,null,null,0,0,0,0,0,0,0,0,{"$f":"IF(OR(A159=0,B159=\"X\"),0,IF(OR(S159=\"FHDP\",S159=\"RHCP-B\",U159=\"FHDP\",U159=\"RHCP-B\",W159=\"FHDP\",W159=\"RHCP-B\",Y159=\"FHDP\",Y159=\"RHCP-B\"),TRUNC((MIN(I159,K159)*(1+'1. Checklist & Certification'!$K$43)+AP159)),0))","v":0},{"$f":"IF(OR(A159=0,B159=\"X\"),0,IF(OR(S159=\"CHRP-R\",S159=\"SERA\",S159=\"SUHRP\",U159=\"CHRP-R\",U159=\"SERA\",U159=\"SUHRP\",W159=\"CHRP-R\",W159=\"SERA\",W159=\"SUHRP\",Y159=\"CHRP-R\",Y159=\"SERA\",Y159=\"SUHRP\"),TRUNC((MIN(I159,K159)*(1+'1. Checklist & Certification'!$K$49))),0))","v":0},{"$f":"IF(OR(A159=0,B159=\"X\"),0,IF(OR(S159=\"CALDAP\",S159=\"DPRLP\",U159=\"CALDAP\",U159=\"DPRLP\",W159=\"CALDAP\",W159=\"DPRLP\",Y159=\"CALDAP\",Y159=\"DPRLP\"),TRUNC(((MIN(I159,K159))*(1+'1. Checklist & Certification'!$G$4))),0))","v":0},0,0,0,{"$f":"IF(OR(A159=0,B159=\"X\"),0,IF(OR(S159=\"PRP\",S159=\"LPR\",U159=\"PRP\",U159=\"LPR\",W159=\"PRP\",W159=\"LPR\",Y159=\"PRP\",Y159=\"LPR\"),MAX(I159+AP159,MIN(IF(AE159:AN159<>0,AE159:AN159))),MIN(IF(AE159:AN159<>0,AE159:AN159))))","v":0},{"$f":"IF(A159=0,0,IF(AND(OR(S159=\"Mgr\",S159=0),OR(U159=\"Mgr\",U159=0),OR(W159=\"Mgr\",W159=0)),0,IF(LEFT($A159,2)=\"B*\",VLOOKUP($E159,'1. Checklist & Certification'!$D$26:$E$32,2),IF(LEFT($A159,2)=\"C*\",VLOOKUP($E159,'1. Checklist & Certification'!$F$26:$G$32,2),IF(LEFT($A159,2)=\"D*\",VLOOKUP($E159,'1. Checklist & Certification'!$H$26:$I$32,2),IF(LEFT($A159,2)=\"E*\",VLOOKUP($E159,'1. Checklist & Certification'!$J$26:$K$32,2),VLOOKUP($E159,'1. Checklist & Certification'!$A$26:$B$32,2)))))))","v":0},0,0,null,null,null,null,"","",0,0,0,null,{"$f":"IF(A159=\"\",\"\",'1. Checklist & Certification'!$K$1)","v":""},{"$f":"IF(A159=\"\",\"\",'1. Checklist & Certification'!$C$62)","v":""},{"$f":"IF(A159=\"\",\"\",'1. Checklist & Certification'!$C$6)","v":""},{"$f":"IF(A159=\"\",\"\",'1. Checklist & Certification'!$G$5)","v":""},{"$f":"IFERROR(IF(A159=\"\",\"\",\n_xlfn.LET(_xlpm.Contract,'1. Checklist & Certification'!$C$7,\n_xlpm.Yr,TEXT(MOD(_xlfn.TEXTBEFORE(_xlpm.Contract,\"-\"),100),\"00\"),\n_xlpm.Program,_xlfn.TEXTAFTER(_xlfn.TEXTBEFORE(_xlpm.Contract,\"-\",2),\"-\"),\n_xlpm.CleanProgram,_xlfn.XLOOKUP(_xlpm.Program,SpellCheck[Input],SpellCheck[Correction],_xlpm.Program),\n_xlpm.Number,TEXT(_xlfn.TEXTAFTER(_xlpm.Contract,\"-\",2),\"0000\"),\n_xlfn.CONCAT(_xlpm.Yr,\"-\",_xlpm.CleanProgram,\"-\",_xlpm.Number))\n),\"\")","v":""},{"$f":"IFERROR(IF(A159=\"\",\"\",\n_xlfn.LET(_xlpm.Contract,'1. Checklist & Certification'!$C$8,\n_xlpm.Yr,TEXT(MOD(_xlfn.TEXTBEFORE(_xlpm.Contract,\"-\"),100),\"00\"),\n_xlpm.Program,_xlfn.TEXTAFTER(_xlfn.TEXTBEFORE(_xlpm.Contract,\"-\",2),\"-\"),\n_xlpm.CleanProgram,_xlfn.XLOOKUP(_xlpm.Program,SpellCheck[Input],SpellCheck[Correction],_xlpm.Program),\n_xlpm.Number,TEXT(_xlfn.TEXTAFTER(_xlpm.Contract,\"-\",2),\"0000\"),\n_xlfn.CONCAT(_xlpm.Yr,\"-\",_xlpm.CleanProgram,\"-\",_xlpm.Number))\n),\"\")","v":""},{"$f":"IFERROR(IF(A159=\"\",\"\",\n_xlfn.LET(_xlpm.Contract,'1. Checklist & Certification'!$F$7,\n_xlpm.Yr,TEXT(MOD(_xlfn.TEXTBEFORE(_xlpm.Contract,\"-\"),100),\"00\"),\n_xlpm.Program,_xlfn.TEXTAFTER(_xlfn.TEXTBEFORE(_xlpm.Contract,\"-\",2),\"-\"),\n_xlpm.CleanProgram,_xlfn.XLOOKUP(_xlpm.Program,SpellCheck[Input],SpellCheck[Correction],_xlpm.Program),\n_xlpm.Number,TEXT(_xlfn.TEXTAFTER(_xlpm.Contract,\"-\",2),\"0000\"),\n_xlfn.CONCAT(_xlpm.Yr,\"-\",_xlpm.CleanProgram,\"-\",_xlpm.Number))\n),\"\")","v":""},{"$f":"IFERROR(IF(A159=\"\",\"\",\n_xlfn.LET(_xlpm.Contract,'1. Checklist & Certification'!$F$8,\n_xlpm.Yr,TEXT(MOD(_xlfn.TEXTBEFORE(_xlpm.Contract,\"-\"),100),\"00\"),\n_xlpm.Program,_xlfn.TEXTAFTER(_xlfn.TEXTBEFORE(_xlpm.Contract,\"-\",2),\"-\"),\n_xlpm.CleanProgram,_xlfn.XLOOKUP(_xlpm.Program,SpellCheck[Input],SpellCheck[Correction],_xlpm.Program),\n_xlpm.Number,TEXT(_xlfn.TEXTAFTER(_xlpm.Contract,\"-\",2),\"0000\"),\n_xlfn.CONCAT(_xlpm.Yr,\"-\",_xlpm.CleanProgram,\"-\",_xlpm.Number))\n),\"\")","v":""},{"$f":"IF(A159=\"\",\"\",'1. Checklist & Certification'!$B$9)","v":""},{"$f":"IF(A159=\"\",\"\",'1. Checklist & Certification'!$F$9)","v":""},{"$f":"IF(A159=\"\",\"\",'1. Checklist & Certification'!$C$10)","v":""},{"$f":"IF(A159=\"\",\"\",'1. Checklist & Certification'!$C$11)","v":""},{"$f":"IF(A159=\"\",\"\",'1. Checklist & Certification'!$C$12)","v":""},{"$f":"IF(A159=\"\",\"\",'1. Checklist & Certification'!$B$14)","v":""},{"$f":"IF(A159=\"\",\"\",'1. Checklist & Certification'!$E$14)","v":""},{"$f":"IF(B159=\"\",\"\",'1. Checklist & Certification'!$G$14)","v":""},{"$f":"IF(A159=\"\",\"\",'MHP Family Income & Rent Limits'!$B$3)","v":""},{"$f":"IF(A159=\"\",\"\",'MHP Family Income & Rent Limits'!$J$3)","v":""},{"$f":"IF(A159=\"\",\"\",'MHP Family Income & Rent Limits'!$E$4)","v":""},{"$f":"IF(A159=\"\",\"\",'MHP Family Income & Rent Limits'!$C$7)","v":""},{"$f":"IF(A159=\"\",\"\",'MHP Family Income & Rent Limits'!$F$8)","v":""},{"$f":"IF(A159=\"\",\"\",'1. Checklist & Certification'!$G$4)","v":""},{"$f":"IF(A159=\"\",\"\",'1. Checklist & Certification'!$K$39)","v":""},{"$f":"IF(A159=\"\",\"\",'1. Checklist & Certification'!$K$43)","v":""},{"$f":"IF(A159=\"\",\"\",'1. Checklist & Certification'!$K$45)","v":""},{"$f":"IF(A159=\"\",\"\",'1. Checklist & Certification'!$K$49)","v":""},{"$f":"IF(A159=\"\",\"\",'1. Checklist & Certification'!$K$62)","v":""},{"$f":"IF(A159=\"\",\"\",'1. Checklist & Certification'!$E$66)","v":""},{"$f":"IF(A159=\"\",\"\",'1. Checklist & Certification'!$E$67)","v":""},{"$f":"IF(A159=\"\",\"\",'1. Checklist & Certification'!$E$68)","v":""},{"$f":"IF(A159=\"\",\"\",'1. Checklist & Certification'!$G$66)","v":""},{"$f":"IF(A159=\"\",\"\",'1. Checklist & Certification'!$H$66)","v":""},{"$f":"IF(A159=\"\",\"\",'1. Checklist & Certification'!$I$66)","v":""},{"$f":"IF(A159=\"\",\"\",'1. Checklist & Certification'!$I$67)","v":""},{"$f":"IF(A159=\"\",\"\",'1. Checklist & Certification'!$I$68)","v":""},{"$f":"IF(A159=\"\",\"\",'1. Checklist & Certification'!$B$69)","v":""},{"$f":"IF(A159=\"\",\"\",'1. Checklist & Certification'!$C$69)","v":""},{"$f":"IF(A159=\"\",\"\",'1. Checklist & Certification'!$F$69)","v":""},{"$f":"IF(A159=\"\",\"\",'1. Checklist & Certification'!$G$69)","v":""},{"$f":"IF(A159=\"\",\"\",'1. Checklist & Certification'!$J$69)","v":""},{"$f":"IF(A159=\"\",\"\",'1. Checklist & Certification'!$K$69)","v":""},null,null,{"$f":"IF(AND(OR('1. Checklist & Certification'!$M$16=1,'1. Checklist & Certification'!$M$19=2),AO159>0,B159=\"\",I159>0,AQ159<I159,AV159<>\"Sec 8-Project\"),\"X\",IF(AND(OR('1. Checklist & Certification'!$M$20=4,'1. Checklist & Certification'!$M$21=5,'1. Checklist & Certification'!$M$22=7),AO159>0,B159=\"\",I159>0,K159<I159),\"X\",\"\"))","v":""},{"$f":"IF(A159=\"\",\"\",IF(SUMPRODUCT(-- (ISNUMBER(SEARCH({\"*AHSC*\",\"*FMTW*\",\"*FWHG*\",\"*GHI*\",\"*HHC*\",\"*HLCP*\",\"*HOME*\",\"*LPR*\",\"*MHP*\",\"*NHTF*\",\"*NSP*\",\"*PRP*\",\"*TOD*\",\"*VHHP*\"},'1. Checklist & Certification'!$L$7)))),\"MHP\",\"Legacy\"))","v":""},",,",null,null,null,{"$f":"IF('1. Checklist & Certification'!$M$20=4,\"Both\",IF(OR('1. Checklist & Certification'!$M$15>0,S159=\"CHRP-R\",U159=\"CHRP-R\",W159=\"CHRP-R\",Y159=\"CHRP-R\"),\"Under\",\"No\"))","v":"No"},"No","No",{"$f":"_xlfn.IFS(D159=\"\",\"\",D159=1,'MHP Family Income & Rent Limits'!$E$17,D159=2,'MHP Family Income & Rent Limits'!$F$17,D159=3,'MHP Family Income & Rent Limits'!$G$17,D159=4,'MHP Family Income & Rent Limits'!$H$17,D159=5,'MHP Family Income & Rent Limits'!$I$17,D159=6,'MHP Family Income & Rent Limits'!$J$17,D159=7,'MHP Family Income & Rent Limits'!$K$17,D159=8,'MHP Family Income & Rent Limits'!$L$17)","v":""},"",{"$f":"IF(OR(A159=0,B159=\"X\"),0,MIN(IF(AA159:AD159<>0,AA159:AD159)))","v":0},{"$f":"IF(OR(H159=\"\",I159=\"\"),0,IF(H159*0.3/12>I159,MIN(H159*0.3/12,I159*1.1)+AP159,I159*(1+(VLOOKUP('1. Checklist & Certification'!$F$9,'HLCP-E Rent Change'!$A$1:$D$59,4,FALSE)))+AP159))","v":0}]
[null,null,null,null,null,null,null,null,null,null,null,null,null,null,null,null,null,null,null,null,null,null,null,null,null,null,0,0,0,0,0,0,0,0,{"$f":"IF(OR(A160=0,B160=\"X\"),0,IF(OR(S160=\"FHDP\",S160=\"RHCP-B\",U160=\"FHDP\",U160=\"RHCP-B\",W160=\"FHDP\",W160=\"RHCP-B\",Y160=\"FHDP\",Y160=\"RHCP-B\"),TRUNC((MIN(I160,K160)*(1+'1. Checklist & Certification'!$K$43)+AP160)),0))","v":0},{"$f":"IF(OR(A160=0,B160=\"X\"),0,IF(OR(S160=\"CHRP-R\",S160=\"SERA\",S160=\"SUHRP\",U160=\"CHRP-R\",U160=\"SERA\",U160=\"SUHRP\",W160=\"CHRP-R\",W160=\"SERA\",W160=\"SUHRP\",Y160=\"CHRP-R\",Y160=\"SERA\",Y160=\"SUHRP\"),TRUNC((MIN(I160,K160)*(1+'1. Checklist & Certification'!$K$49))),0))","v":0},{"$f":"IF(OR(A160=0,B160=\"X\"),0,IF(OR(S160=\"CALDAP\",S160=\"DPRLP\",U160=\"CALDAP\",U160=\"DPRLP\",W160=\"CALDAP\",W160=\"DPRLP\",Y160=\"CALDAP\",Y160=\"DPRLP\"),TRUNC(((MIN(I160,K160))*(1+'1. Checklist & Certification'!$G$4))),0))","v":0},0,0,0,{"$f":"IF(OR(A160=0,B160=\"X\"),0,IF(OR(S160=\"PRP\",S160=\"LPR\",U160=\"PRP\",U160=\"LPR\",W160=\"PRP\",W160=\"LPR\",Y160=\"PRP\",Y160=\"LPR\"),MAX(I160+AP160,MIN(IF(AE160:AN160<>0,AE160:AN160))),MIN(IF(AE160:AN160<>0,AE160:AN160))))","v":0},{"$f":"IF(A160=0,0,IF(AND(OR(S160=\"Mgr\",S160=0),OR(U160=\"Mgr\",U160=0),OR(W160=\"Mgr\",W160=0)),0,IF(LEFT($A160,2)=\"B*\",VLOOKUP($E160,'1. Checklist & Certification'!$D$26:$E$32,2),IF(LEFT($A160,2)=\"C*\",VLOOKUP($E160,'1. Checklist & Certification'!$F$26:$G$32,2),IF(LEFT($A160,2)=\"D*\",VLOOKUP($E160,'1. Checklist & Certification'!$H$26:$I$32,2),IF(LEFT($A160,2)=\"E*\",VLOOKUP($E160,'1. Checklist & Certification'!$J$26:$K$32,2),VLOOKUP($E160,'1. Checklist & Certification'!$A$26:$B$32,2)))))))","v":0},0,0,null,null,null,null,"","",0,0,0,null,{"$f":"IF(A160=\"\",\"\",'1. Checklist & Certification'!$K$1)","v":""},{"$f":"IF(A160=\"\",\"\",'1. Checklist & Certification'!$C$62)","v":""},{"$f":"IF(A160=\"\",\"\",'1. Checklist & Certification'!$C$6)","v":""},{"$f":"IF(A160=\"\",\"\",'1. Checklist & Certification'!$G$5)","v":""},{"$f":"IFERROR(IF(A160=\"\",\"\",\n_xlfn.LET(_xlpm.Contract,'1. Checklist & Certification'!$C$7,\n_xlpm.Yr,TEXT(MOD(_xlfn.TEXTBEFORE(_xlpm.Contract,\"-\"),100),\"00\"),\n_xlpm.Program,_xlfn.TEXTAFTER(_xlfn.TEXTBEFORE(_xlpm.Contract,\"-\",2),\"-\"),\n_xlpm.CleanProgram,_xlfn.XLOOKUP(_xlpm.Program,SpellCheck[Input],SpellCheck[Correction],_xlpm.Program),\n_xlpm.Number,TEXT(_xlfn.TEXTAFTER(_xlpm.Contract,\"-\",2),\"0000\"),\n_xlfn.CONCAT(_xlpm.Yr,\"-\",_xlpm.CleanProgram,\"-\",_xlpm.Number))\n),\"\")","v":""},{"$f":"IFERROR(IF(A160=\"\",\"\",\n_xlfn.LET(_xlpm.Contract,'1. Checklist & Certification'!$C$8,\n_xlpm.Yr,TEXT(MOD(_xlfn.TEXTBEFORE(_xlpm.Contract,\"-\"),100),\"00\"),\n_xlpm.Program,_xlfn.TEXTAFTER(_xlfn.TEXTBEFORE(_xlpm.Contract,\"-\",2),\"-\"),\n_xlpm.CleanProgram,_xlfn.XLOOKUP(_xlpm.Program,SpellCheck[Input],SpellCheck[Correction],_xlpm.Program),\n_xlpm.Number,TEXT(_xlfn.TEXTAFTER(_xlpm.Contract,\"-\",2),\"0000\"),\n_xlfn.CONCAT(_xlpm.Yr,\"-\",_xlpm.CleanProgram,\"-\",_xlpm.Number))\n),\"\")","v":""},{"$f":"IFERROR(IF(A160=\"\",\"\",\n_xlfn.LET(_xlpm.Contract,'1. Checklist & Certification'!$F$7,\n_xlpm.Yr,TEXT(MOD(_xlfn.TEXTBEFORE(_xlpm.Contract,\"-\"),100),\"00\"),\n_xlpm.Program,_xlfn.TEXTAFTER(_xlfn.TEXTBEFORE(_xlpm.Contract,\"-\",2),\"-\"),\n_xlpm.CleanProgram,_xlfn.XLOOKUP(_xlpm.Program,SpellCheck[Input],SpellCheck[Correction],_xlpm.Program),\n_xlpm.Number,TEXT(_xlfn.TEXTAFTER(_xlpm.Contract,\"-\",2),\"0000\"),\n_xlfn.CONCAT(_xlpm.Yr,\"-\",_xlpm.CleanProgram,\"-\",_xlpm.Number))\n),\"\")","v":""},{"$f":"IFERROR(IF(A160=\"\",\"\",\n_xlfn.LET(_xlpm.Contract,'1. Checklist & Certification'!$F$8,\n_xlpm.Yr,TEXT(MOD(_xlfn.TEXTBEFORE(_xlpm.Contract,\"-\"),100),\"00\"),\n_xlpm.Program,_xlfn.TEXTAFTER(_xlfn.TEXTBEFORE(_xlpm.Contract,\"-\",2),\"-\"),\n_xlpm.CleanProgram,_xlfn.XLOOKUP(_xlpm.Program,SpellCheck[Input],SpellCheck[Correction],_xlpm.Program),\n_xlpm.Number,TEXT(_xlfn.TEXTAFTER(_xlpm.Contract,\"-\",2),\"0000\"),\n_xlfn.CONCAT(_xlpm.Yr,\"-\",_xlpm.CleanProgram,\"-\",_xlpm.Number))\n),\"\")","v":""},{"$f":"IF(A160=\"\",\"\",'1. Checklist & Certification'!$B$9)","v":""},{"$f":"IF(A160=\"\",\"\",'1. Checklist & Certification'!$F$9)","v":""},{"$f":"IF(A160=\"\",\"\",'1. Checklist & Certification'!$C$10)","v":""},{"$f":"IF(A160=\"\",\"\",'1. Checklist & Certification'!$C$11)","v":""},{"$f":"IF(A160=\"\",\"\",'1. Checklist & Certification'!$C$12)","v":""},{"$f":"IF(A160=\"\",\"\",'1. Checklist & Certification'!$B$14)","v":""},{"$f":"IF(A160=\"\",\"\",'1. Checklist & Certification'!$E$14)","v":""},{"$f":"IF(B160=\"\",\"\",'1. Checklist & Certification'!$G$14)","v":""},{"$f":"IF(A160=\"\",\"\",'MHP Family Income & Rent Limits'!$B$3)","v":""},{"$f":"IF(A160=\"\",\"\",'MHP Family Income & Rent Limits'!$J$3)","v":""},{"$f":"IF(A160=\"\",\"\",'MHP Family Income & Rent Limits'!$E$4)","v":""},{"$f":"IF(A160=\"\",\"\",'MHP Family Income & Rent Limits'!$C$7)","v":""},{"$f":"IF(A160=\"\",\"\",'MHP Family Income & Rent Limits'!$F$8)","v":""},{"$f":"IF(A160=\"\",\"\",'1. Checklist & Certification'!$G$4)","v":""},{"$f":"IF(A160=\"\",\"\",'1. Checklist & Certification'!$K$39)","v":""},{"$f":"IF(A160=\"\",\"\",'1. Checklist & Certification'!$K$43)","v":""},{"$f":"IF(A160=\"\",\"\",'1. Checklist & Certification'!$K$45)","v":""},{"$f":"IF(A160=\"\",\"\",'1. Checklist & Certification'!$K$49)","v":""},{"$f":"IF(A160=\"\",\"\",'1. Checklist & Certification'!$K$62)","v":""},{"$f":"IF(A160=\"\",\"\",'1. Checklist & Certification'!$E$66)","v":""},{"$f":"IF(A160=\"\",\"\",'1. Checklist & Certification'!$E$67)","v":""},{"$f":"IF(A160=\"\",\"\",'1. Checklist & Certification'!$E$68)","v":""},{"$f":"IF(A160=\"\",\"\",'1. Checklist & Certification'!$G$66)","v":""},{"$f":"IF(A160=\"\",\"\",'1. Checklist & Certification'!$H$66)","v":""},{"$f":"IF(A160=\"\",\"\",'1. Checklist & Certification'!$I$66)","v":""},{"$f":"IF(A160=\"\",\"\",'1. Checklist & Certification'!$I$67)","v":""},{"$f":"IF(A160=\"\",\"\",'1. Checklist & Certification'!$I$68)","v":""},{"$f":"IF(A160=\"\",\"\",'1. Checklist & Certification'!$B$69)","v":""},{"$f":"IF(A160=\"\",\"\",'1. Checklist & Certification'!$C$69)","v":""},{"$f":"IF(A160=\"\",\"\",'1. Checklist & Certification'!$F$69)","v":""},{"$f":"IF(A160=\"\",\"\",'1. Checklist & Certification'!$G$69)","v":""},{"$f":"IF(A160=\"\",\"\",'1. Checklist & Certification'!$J$69)","v":""},{"$f":"IF(A160=\"\",\"\",'1. Checklist & Certification'!$K$69)","v":""},null,null,{"$f":"IF(AND(OR('1. Checklist & Certification'!$M$16=1,'1. Checklist & Certification'!$M$19=2),AO160>0,B160=\"\",I160>0,AQ160<I160,AV160<>\"Sec 8-Project\"),\"X\",IF(AND(OR('1. Checklist & Certification'!$M$20=4,'1. Checklist & Certification'!$M$21=5,'1. Checklist & Certification'!$M$22=7),AO160>0,B160=\"\",I160>0,K160<I160),\"X\",\"\"))","v":""},{"$f":"IF(A160=\"\",\"\",IF(SUMPRODUCT(-- (ISNUMBER(SEARCH({\"*AHSC*\",\"*FMTW*\",\"*FWHG*\",\"*GHI*\",\"*HHC*\",\"*HLCP*\",\"*HOME*\",\"*LPR*\",\"*MHP*\",\"*NHTF*\",\"*NSP*\",\"*PRP*\",\"*TOD*\",\"*VHHP*\"},'1. Checklist & Certification'!$L$7)))),\"MHP\",\"Legacy\"))","v":""},",,",null,null,null,{"$f":"IF('1. Checklist & Certification'!$M$20=4,\"Both\",IF(OR('1. Checklist & Certification'!$M$15>0,S160=\"CHRP-R\",U160=\"CHRP-R\",W160=\"CHRP-R\",Y160=\"CHRP-R\"),\"Under\",\"No\"))","v":"No"},"No","No",{"$f":"_xlfn.IFS(D160=\"\",\"\",D160=1,'MHP Family Income & Rent Limits'!$E$17,D160=2,'MHP Family Income & Rent Limits'!$F$17,D160=3,'MHP Family Income & Rent Limits'!$G$17,D160=4,'MHP Family Income & Rent Limits'!$H$17,D160=5,'MHP Family Income & Rent Limits'!$I$17,D160=6,'MHP Family Income & Rent Limits'!$J$17,D160=7,'MHP Family Income & Rent Limits'!$K$17,D160=8,'MHP Family Income & Rent Limits'!$L$17)","v":""},"",{"$f":"IF(OR(A160=0,B160=\"X\"),0,MIN(IF(AA160:AD160<>0,AA160:AD160)))","v":0},{"$f":"IF(OR(H160=\"\",I160=\"\"),0,IF(H160*0.3/12>I160,MIN(H160*0.3/12,I160*1.1)+AP160,I160*(1+(VLOOKUP('1. Checklist & Certification'!$F$9,'HLCP-E Rent Change'!$A$1:$D$59,4,FALSE)))+AP160))","v":0}]
[null,null,null,null,null,null,null,null,null,null,null,null,null,null,null,null,null,null,null,null,null,null,null,null,null,null,0,0,0,0,0,0,0,0,{"$f":"IF(OR(A161=0,B161=\"X\"),0,IF(OR(S161=\"FHDP\",S161=\"RHCP-B\",U161=\"FHDP\",U161=\"RHCP-B\",W161=\"FHDP\",W161=\"RHCP-B\",Y161=\"FHDP\",Y161=\"RHCP-B\"),TRUNC((MIN(I161,K161)*(1+'1. Checklist & Certification'!$K$43)+AP161)),0))","v":0},{"$f":"IF(OR(A161=0,B161=\"X\"),0,IF(OR(S161=\"CHRP-R\",S161=\"SERA\",S161=\"SUHRP\",U161=\"CHRP-R\",U161=\"SERA\",U161=\"SUHRP\",W161=\"CHRP-R\",W161=\"SERA\",W161=\"SUHRP\",Y161=\"CHRP-R\",Y161=\"SERA\",Y161=\"SUHRP\"),TRUNC((MIN(I161,K161)*(1+'1. Checklist & Certification'!$K$49))),0))","v":0},{"$f":"IF(OR(A161=0,B161=\"X\"),0,IF(OR(S161=\"CALDAP\",S161=\"DPRLP\",U161=\"CALDAP\",U161=\"DPRLP\",W161=\"CALDAP\",W161=\"DPRLP\",Y161=\"CALDAP\",Y161=\"DPRLP\"),TRUNC(((MIN(I161,K161))*(1+'1. Checklist & Certification'!$G$4))),0))","v":0},0,0,0,{"$f":"IF(OR(A161=0,B161=\"X\"),0,IF(OR(S161=\"PRP\",S161=\"LPR\",U161=\"PRP\",U161=\"LPR\",W161=\"PRP\",W161=\"LPR\",Y161=\"PRP\",Y161=\"LPR\"),MAX(I161+AP161,MIN(IF(AE161:AN161<>0,AE161:AN161))),MIN(IF(AE161:AN161<>0,AE161:AN161))))","v":0},{"$f":"IF(A161=0,0,IF(AND(OR(S161=\"Mgr\",S161=0),OR(U161=\"Mgr\",U161=0),OR(W161=\"Mgr\",W161=0)),0,IF(LEFT($A161,2)=\"B*\",VLOOKUP($E161,'1. Checklist & Certification'!$D$26:$E$32,2),IF(LEFT($A161,2)=\"C*\",VLOOKUP($E161,'1. Checklist & Certification'!$F$26:$G$32,2),IF(LEFT($A161,2)=\"D*\",VLOOKUP($E161,'1. Checklist & Certification'!$H$26:$I$32,2),IF(LEFT($A161,2)=\"E*\",VLOOKUP($E161,'1. Checklist & Certification'!$J$26:$K$32,2),VLOOKUP($E161,'1. Checklist & Certification'!$A$26:$B$32,2)))))))","v":0},0,0,null,null,null,null,"","",0,0,0,null,{"$f":"IF(A161=\"\",\"\",'1. Checklist & Certification'!$K$1)","v":""},{"$f":"IF(A161=\"\",\"\",'1. Checklist & Certification'!$C$62)","v":""},{"$f":"IF(A161=\"\",\"\",'1. Checklist & Certification'!$C$6)","v":""},{"$f":"IF(A161=\"\",\"\",'1. Checklist & Certification'!$G$5)","v":""},{"$f":"IFERROR(IF(A161=\"\",\"\",\n_xlfn.LET(_xlpm.Contract,'1. Checklist & Certification'!$C$7,\n_xlpm.Yr,TEXT(MOD(_xlfn.TEXTBEFORE(_xlpm.Contract,\"-\"),100),\"00\"),\n_xlpm.Program,_xlfn.TEXTAFTER(_xlfn.TEXTBEFORE(_xlpm.Contract,\"-\",2),\"-\"),\n_xlpm.CleanProgram,_xlfn.XLOOKUP(_xlpm.Program,SpellCheck[Input],SpellCheck[Correction],_xlpm.Program),\n_xlpm.Number,TEXT(_xlfn.TEXTAFTER(_xlpm.Contract,\"-\",2),\"0000\"),\n_xlfn.CONCAT(_xlpm.Yr,\"-\",_xlpm.CleanProgram,\"-\",_xlpm.Number))\n),\"\")","v":""},{"$f":"IFERROR(IF(A161=\"\",\"\",\n_xlfn.LET(_xlpm.Contract,'1. Checklist & Certification'!$C$8,\n_xlpm.Yr,TEXT(MOD(_xlfn.TEXTBEFORE(_xlpm.Contract,\"-\"),100),\"00\"),\n_xlpm.Program,_xlfn.TEXTAFTER(_xlfn.TEXTBEFORE(_xlpm.Contract,\"-\",2),\"-\"),\n_xlpm.CleanProgram,_xlfn.XLOOKUP(_xlpm.Program,SpellCheck[Input],SpellCheck[Correction],_xlpm.Program),\n_xlpm.Number,TEXT(_xlfn.TEXTAFTER(_xlpm.Contract,\"-\",2),\"0000\"),\n_xlfn.CONCAT(_xlpm.Yr,\"-\",_xlpm.CleanProgram,\"-\",_xlpm.Number))\n),\"\")","v":""},{"$f":"IFERROR(IF(A161=\"\",\"\",\n_xlfn.LET(_xlpm.Contract,'1. Checklist & Certification'!$F$7,\n_xlpm.Yr,TEXT(MOD(_xlfn.TEXTBEFORE(_xlpm.Contract,\"-\"),100),\"00\"),\n_xlpm.Program,_xlfn.TEXTAFTER(_xlfn.TEXTBEFORE(_xlpm.Contract,\"-\",2),\"-\"),\n_xlpm.CleanProgram,_xlfn.XLOOKUP(_xlpm.Program,SpellCheck[Input],SpellCheck[Correction],_xlpm.Program),\n_xlpm.Number,TEXT(_xlfn.TEXTAFTER(_xlpm.Contract,\"-\",2),\"0000\"),\n_xlfn.CONCAT(_xlpm.Yr,\"-\",_xlpm.CleanProgram,\"-\",_xlpm.Number))\n),\"\")","v":""},{"$f":"IFERROR(IF(A161=\"\",\"\",\n_xlfn.LET(_xlpm.Contract,'1. Checklist & Certification'!$F$8,\n_xlpm.Yr,TEXT(MOD(_xlfn.TEXTBEFORE(_xlpm.Contract,\"-\"),100),\"00\"),\n_xlpm.Program,_xlfn.TEXTAFTER(_xlfn.TEXTBEFORE(_xlpm.Contract,\"-\",2),\"-\"),\n_xlpm.CleanProgram,_xlfn.XLOOKUP(_xlpm.Program,SpellCheck[Input],SpellCheck[Correction],_xlpm.Program),\n_xlpm.Number,TEXT(_xlfn.TEXTAFTER(_xlpm.Contract,\"-\",2),\"0000\"),\n_xlfn.CONCAT(_xlpm.Yr,\"-\",_xlpm.CleanProgram,\"-\",_xlpm.Number))\n),\"\")","v":""},{"$f":"IF(A161=\"\",\"\",'1. Checklist & Certification'!$B$9)","v":""},{"$f":"IF(A161=\"\",\"\",'1. Checklist & Certification'!$F$9)","v":""},{"$f":"IF(A161=\"\",\"\",'1. Checklist & Certification'!$C$10)","v":""},{"$f":"IF(A161=\"\",\"\",'1. Checklist & Certification'!$C$11)","v":""},{"$f":"IF(A161=\"\",\"\",'1. Checklist & Certification'!$C$12)","v":""},{"$f":"IF(A161=\"\",\"\",'1. Checklist & Certification'!$B$14)","v":""},{"$f":"IF(A161=\"\",\"\",'1. Checklist & Certification'!$E$14)","v":""},{"$f":"IF(B161=\"\",\"\",'1. Checklist & Certification'!$G$14)","v":""},{"$f":"IF(A161=\"\",\"\",'MHP Family Income & Rent Limits'!$B$3)","v":""},{"$f":"IF(A161=\"\",\"\",'MHP Family Income & Rent Limits'!$J$3)","v":""},{"$f":"IF(A161=\"\",\"\",'MHP Family Income & Rent Limits'!$E$4)","v":""},{"$f":"IF(A161=\"\",\"\",'MHP Family Income & Rent Limits'!$C$7)","v":""},{"$f":"IF(A161=\"\",\"\",'MHP Family Income & Rent Limits'!$F$8)","v":""},{"$f":"IF(A161=\"\",\"\",'1. Checklist & Certification'!$G$4)","v":""},{"$f":"IF(A161=\"\",\"\",'1. Checklist & Certification'!$K$39)","v":""},{"$f":"IF(A161=\"\",\"\",'1. Checklist & Certification'!$K$43)","v":""},{"$f":"IF(A161=\"\",\"\",'1. Checklist & Certification'!$K$45)","v":""},{"$f":"IF(A161=\"\",\"\",'1. Checklist & Certification'!$K$49)","v":""},{"$f":"IF(A161=\"\",\"\",'1. Checklist & Certification'!$K$62)","v":""},{"$f":"IF(A161=\"\",\"\",'1. Checklist & Certification'!$E$66)","v":""},{"$f":"IF(A161=\"\",\"\",'1. Checklist & Certification'!$E$67)","v":""},{"$f":"IF(A161=\"\",\"\",'1. Checklist & Certification'!$E$68)","v":""},{"$f":"IF(A161=\"\",\"\",'1. Checklist & Certification'!$G$66)","v":""},{"$f":"IF(A161=\"\",\"\",'1. Checklist & Certification'!$H$66)","v":""},{"$f":"IF(A161=\"\",\"\",'1. Checklist & Certification'!$I$66)","v":""},{"$f":"IF(A161=\"\",\"\",'1. Checklist & Certification'!$I$67)","v":""},{"$f":"IF(A161=\"\",\"\",'1. Checklist & Certification'!$I$68)","v":""},{"$f":"IF(A161=\"\",\"\",'1. Checklist & Certification'!$B$69)","v":""},{"$f":"IF(A161=\"\",\"\",'1. Checklist & Certification'!$C$69)","v":""},{"$f":"IF(A161=\"\",\"\",'1. Checklist & Certification'!$F$69)","v":""},{"$f":"IF(A161=\"\",\"\",'1. Checklist & Certification'!$G$69)","v":""},{"$f":"IF(A161=\"\",\"\",'1. Checklist & Certification'!$J$69)","v":""},{"$f":"IF(A161=\"\",\"\",'1. Checklist & Certification'!$K$69)","v":""},null,null,{"$f":"IF(AND(OR('1. Checklist & Certification'!$M$16=1,'1. Checklist & Certification'!$M$19=2),AO161>0,B161=\"\",I161>0,AQ161<I161,AV161<>\"Sec 8-Project\"),\"X\",IF(AND(OR('1. Checklist & Certification'!$M$20=4,'1. Checklist & Certification'!$M$21=5,'1. Checklist & Certification'!$M$22=7),AO161>0,B161=\"\",I161>0,K161<I161),\"X\",\"\"))","v":""},{"$f":"IF(A161=\"\",\"\",IF(SUMPRODUCT(-- (ISNUMBER(SEARCH({\"*AHSC*\",\"*FMTW*\",\"*FWHG*\",\"*GHI*\",\"*HHC*\",\"*HLCP*\",\"*HOME*\",\"*LPR*\",\"*MHP*\",\"*NHTF*\",\"*NSP*\",\"*PRP*\",\"*TOD*\",\"*VHHP*\"},'1. Checklist & Certification'!$L$7)))),\"MHP\",\"Legacy\"))","v":""},",,",null,null,null,{"$f":"IF('1. Checklist & Certification'!$M$20=4,\"Both\",IF(OR('1. Checklist & Certification'!$M$15>0,S161=\"CHRP-R\",U161=\"CHRP-R\",W161=\"CHRP-R\",Y161=\"CHRP-R\"),\"Under\",\"No\"))","v":"No"},"No","No",{"$f":"_xlfn.IFS(D161=\"\",\"\",D161=1,'MHP Family Income & Rent Limits'!$E$17,D161=2,'MHP Family Income & Rent Limits'!$F$17,D161=3,'MHP Family Income & Rent Limits'!$G$17,D161=4,'MHP Family Income & Rent Limits'!$H$17,D161=5,'MHP Family Income & Rent Limits'!$I$17,D161=6,'MHP Family Income & Rent Limits'!$J$17,D161=7,'MHP Family Income & Rent Limits'!$K$17,D161=8,'MHP Family Income & Rent Limits'!$L$17)","v":""},"",{"$f":"IF(OR(A161=0,B161=\"X\"),0,MIN(IF(AA161:AD161<>0,AA161:AD161)))","v":0},{"$f":"IF(OR(H161=\"\",I161=\"\"),0,IF(H161*0.3/12>I161,MIN(H161*0.3/12,I161*1.1)+AP161,I161*(1+(VLOOKUP('1. Checklist & Certification'!$F$9,'HLCP-E Rent Change'!$A$1:$D$59,4,FALSE)))+AP161))","v":0}]
[null,null,null,null,null,null,null,null,null,null,null,null,null,null,null,null,null,null,null,null,null,null,null,null,null,null,0,0,0,0,0,0,0,0,{"$f":"IF(OR(A162=0,B162=\"X\"),0,IF(OR(S162=\"FHDP\",S162=\"RHCP-B\",U162=\"FHDP\",U162=\"RHCP-B\",W162=\"FHDP\",W162=\"RHCP-B\",Y162=\"FHDP\",Y162=\"RHCP-B\"),TRUNC((MIN(I162,K162)*(1+'1. Checklist & Certification'!$K$43)+AP162)),0))","v":0},{"$f":"IF(OR(A162=0,B162=\"X\"),0,IF(OR(S162=\"CHRP-R\",S162=\"SERA\",S162=\"SUHRP\",U162=\"CHRP-R\",U162=\"SERA\",U162=\"SUHRP\",W162=\"CHRP-R\",W162=\"SERA\",W162=\"SUHRP\",Y162=\"CHRP-R\",Y162=\"SERA\",Y162=\"SUHRP\"),TRUNC((MIN(I162,K162)*(1+'1. Checklist & Certification'!$K$49))),0))","v":0},{"$f":"IF(OR(A162=0,B162=\"X\"),0,IF(OR(S162=\"CALDAP\",S162=\"DPRLP\",U162=\"CALDAP\",U162=\"DPRLP\",W162=\"CALDAP\",W162=\"DPRLP\",Y162=\"CALDAP\",Y162=\"DPRLP\"),TRUNC(((MIN(I162,K162))*(1+'1. Checklist & Certification'!$G$4))),0))","v":0},0,0,0,{"$f":"IF(OR(A162=0,B162=\"X\"),0,IF(OR(S162=\"PRP\",S162=\"LPR\",U162=\"PRP\",U162=\"LPR\",W162=\"PRP\",W162=\"LPR\",Y162=\"PRP\",Y162=\"LPR\"),MAX(I162+AP162,MIN(IF(AE162:AN162<>0,AE162:AN162))),MIN(IF(AE162:AN162<>0,AE162:AN162))))","v":0},{"$f":"IF(A162=0,0,IF(AND(OR(S162=\"Mgr\",S162=0),OR(U162=\"Mgr\",U162=0),OR(W162=\"Mgr\",W162=0)),0,IF(LEFT($A162,2)=\"B*\",VLOOKUP($E162,'1. Checklist & Certification'!$D$26:$E$32,2),IF(LEFT($A162,2)=\"C*\",VLOOKUP($E162,'1. Checklist & Certification'!$F$26:$G$32,2),IF(LEFT($A162,2)=\"D*\",VLOOKUP($E162,'1. Checklist & Certification'!$H$26:$I$32,2),IF(LEFT($A162,2)=\"E*\",VLOOKUP($E162,'1. Checklist & Certification'!$J$26:$K$32,2),VLOOKUP($E162,'1. Checklist & Certification'!$A$26:$B$32,2)))))))","v":0},0,0,null,null,null,null,"","",0,0,0,null,{"$f":"IF(A162=\"\",\"\",'1. Checklist & Certification'!$K$1)","v":""},{"$f":"IF(A162=\"\",\"\",'1. Checklist & Certification'!$C$62)","v":""},{"$f":"IF(A162=\"\",\"\",'1. Checklist & Certification'!$C$6)","v":""},{"$f":"IF(A162=\"\",\"\",'1. Checklist & Certification'!$G$5)","v":""},{"$f":"IFERROR(IF(A162=\"\",\"\",\n_xlfn.LET(_xlpm.Contract,'1. Checklist & Certification'!$C$7,\n_xlpm.Yr,TEXT(MOD(_xlfn.TEXTBEFORE(_xlpm.Contract,\"-\"),100),\"00\"),\n_xlpm.Program,_xlfn.TEXTAFTER(_xlfn.TEXTBEFORE(_xlpm.Contract,\"-\",2),\"-\"),\n_xlpm.CleanProgram,_xlfn.XLOOKUP(_xlpm.Program,SpellCheck[Input],SpellCheck[Correction],_xlpm.Program),\n_xlpm.Number,TEXT(_xlfn.TEXTAFTER(_xlpm.Contract,\"-\",2),\"0000\"),\n_xlfn.CONCAT(_xlpm.Yr,\"-\",_xlpm.CleanProgram,\"-\",_xlpm.Number))\n),\"\")","v":""},{"$f":"IFERROR(IF(A162=\"\",\"\",\n_xlfn.LET(_xlpm.Contract,'1. Checklist & Certification'!$C$8,\n_xlpm.Yr,TEXT(MOD(_xlfn.TEXTBEFORE(_xlpm.Contract,\"-\"),100),\"00\"),\n_xlpm.Program,_xlfn.TEXTAFTER(_xlfn.TEXTBEFORE(_xlpm.Contract,\"-\",2),\"-\"),\n_xlpm.CleanProgram,_xlfn.XLOOKUP(_xlpm.Program,SpellCheck[Input],SpellCheck[Correction],_xlpm.Program),\n_xlpm.Number,TEXT(_xlfn.TEXTAFTER(_xlpm.Contract,\"-\",2),\"0000\"),\n_xlfn.CONCAT(_xlpm.Yr,\"-\",_xlpm.CleanProgram,\"-\",_xlpm.Number))\n),\"\")","v":""},{"$f":"IFERROR(IF(A162=\"\",\"\",\n_xlfn.LET(_xlpm.Contract,'1. Checklist & Certification'!$F$7,\n_xlpm.Yr,TEXT(MOD(_xlfn.TEXTBEFORE(_xlpm.Contract,\"-\"),100),\"00\"),\n_xlpm.Program,_xlfn.TEXTAFTER(_xlfn.TEXTBEFORE(_xlpm.Contract,\"-\",2),\"-\"),\n_xlpm.CleanProgram,_xlfn.XLOOKUP(_xlpm.Program,SpellCheck[Input],SpellCheck[Correction],_xlpm.Program),\n_xlpm.Number,TEXT(_xlfn.TEXTAFTER(_xlpm.Contract,\"-\",2),\"0000\"),\n_xlfn.CONCAT(_xlpm.Yr,\"-\",_xlpm.CleanProgram,\"-\",_xlpm.Number))\n),\"\")","v":""},{"$f":"IFERROR(IF(A162=\"\",\"\",\n_xlfn.LET(_xlpm.Contract,'1. Checklist & Certification'!$F$8,\n_xlpm.Yr,TEXT(MOD(_xlfn.TEXTBEFORE(_xlpm.Contract,\"-\"),100),\"00\"),\n_xlpm.Program,_xlfn.TEXTAFTER(_xlfn.TEXTBEFORE(_xlpm.Contract,\"-\",2),\"-\"),\n_xlpm.CleanProgram,_xlfn.XLOOKUP(_xlpm.Program,SpellCheck[Input],SpellCheck[Correction],_xlpm.Program),\n_xlpm.Number,TEXT(_xlfn.TEXTAFTER(_xlpm.Contract,\"-\",2),\"0000\"),\n_xlfn.CONCAT(_xlpm.Yr,\"-\",_xlpm.CleanProgram,\"-\",_xlpm.Number))\n),\"\")","v":""},{"$f":"IF(A162=\"\",\"\",'1. Checklist & Certification'!$B$9)","v":""},{"$f":"IF(A162=\"\",\"\",'1. Checklist & Certification'!$F$9)","v":""},{"$f":"IF(A162=\"\",\"\",'1. Checklist & Certification'!$C$10)","v":""},{"$f":"IF(A162=\"\",\"\",'1. Checklist & Certification'!$C$11)","v":""},{"$f":"IF(A162=\"\",\"\",'1. Checklist & Certification'!$C$12)","v":""},{"$f":"IF(A162=\"\",\"\",'1. Checklist & Certification'!$B$14)","v":""},{"$f":"IF(A162=\"\",\"\",'1. Checklist & Certification'!$E$14)","v":""},{"$f":"IF(B162=\"\",\"\",'1. Checklist & Certification'!$G$14)","v":""},{"$f":"IF(A162=\"\",\"\",'MHP Family Income & Rent Limits'!$B$3)","v":""},{"$f":"IF(A162=\"\",\"\",'MHP Family Income & Rent Limits'!$J$3)","v":""},{"$f":"IF(A162=\"\",\"\",'MHP Family Income & Rent Limits'!$E$4)","v":""},{"$f":"IF(A162=\"\",\"\",'MHP Family Income & Rent Limits'!$C$7)","v":""},{"$f":"IF(A162=\"\",\"\",'MHP Family Income & Rent Limits'!$F$8)","v":""},{"$f":"IF(A162=\"\",\"\",'1. Checklist & Certification'!$G$4)","v":""},{"$f":"IF(A162=\"\",\"\",'1. Checklist & Certification'!$K$39)","v":""},{"$f":"IF(A162=\"\",\"\",'1. Checklist & Certification'!$K$43)","v":""},{"$f":"IF(A162=\"\",\"\",'1. Checklist & Certification'!$K$45)","v":""},{"$f":"IF(A162=\"\",\"\",'1. Checklist & Certification'!$K$49)","v":""},{"$f":"IF(A162=\"\",\"\",'1. Checklist & Certification'!$K$62)","v":""},{"$f":"IF(A162=\"\",\"\",'1. Checklist & Certification'!$E$66)","v":""},{"$f":"IF(A162=\"\",\"\",'1. Checklist & Certification'!$E$67)","v":""},{"$f":"IF(A162=\"\",\"\",'1. Checklist & Certification'!$E$68)","v":""},{"$f":"IF(A162=\"\",\"\",'1. Checklist & Certification'!$G$66)","v":""},{"$f":"IF(A162=\"\",\"\",'1. Checklist & Certification'!$H$66)","v":""},{"$f":"IF(A162=\"\",\"\",'1. Checklist & Certification'!$I$66)","v":""},{"$f":"IF(A162=\"\",\"\",'1. Checklist & Certification'!$I$67)","v":""},{"$f":"IF(A162=\"\",\"\",'1. Checklist & Certification'!$I$68)","v":""},{"$f":"IF(A162=\"\",\"\",'1. Checklist & Certification'!$B$69)","v":""},{"$f":"IF(A162=\"\",\"\",'1. Checklist & Certification'!$C$69)","v":""},{"$f":"IF(A162=\"\",\"\",'1. Checklist & Certification'!$F$69)","v":""},{"$f":"IF(A162=\"\",\"\",'1. Checklist & Certification'!$G$69)","v":""},{"$f":"IF(A162=\"\",\"\",'1. Checklist & Certification'!$J$69)","v":""},{"$f":"IF(A162=\"\",\"\",'1. Checklist & Certification'!$K$69)","v":""},null,null,{"$f":"IF(AND(OR('1. Checklist & Certification'!$M$16=1,'1. Checklist & Certification'!$M$19=2),AO162>0,B162=\"\",I162>0,AQ162<I162,AV162<>\"Sec 8-Project\"),\"X\",IF(AND(OR('1. Checklist & Certification'!$M$20=4,'1. Checklist & Certification'!$M$21=5,'1. Checklist & Certification'!$M$22=7),AO162>0,B162=\"\",I162>0,K162<I162),\"X\",\"\"))","v":""},{"$f":"IF(A162=\"\",\"\",IF(SUMPRODUCT(-- (ISNUMBER(SEARCH({\"*AHSC*\",\"*FMTW*\",\"*FWHG*\",\"*GHI*\",\"*HHC*\",\"*HLCP*\",\"*HOME*\",\"*LPR*\",\"*MHP*\",\"*NHTF*\",\"*NSP*\",\"*PRP*\",\"*TOD*\",\"*VHHP*\"},'1. Checklist & Certification'!$L$7)))),\"MHP\",\"Legacy\"))","v":""},",,",null,null,null,{"$f":"IF('1. Checklist & Certification'!$M$20=4,\"Both\",IF(OR('1. Checklist & Certification'!$M$15>0,S162=\"CHRP-R\",U162=\"CHRP-R\",W162=\"CHRP-R\",Y162=\"CHRP-R\"),\"Under\",\"No\"))","v":"No"},"No","No",{"$f":"_xlfn.IFS(D162=\"\",\"\",D162=1,'MHP Family Income & Rent Limits'!$E$17,D162=2,'MHP Family Income & Rent Limits'!$F$17,D162=3,'MHP Family Income & Rent Limits'!$G$17,D162=4,'MHP Family Income & Rent Limits'!$H$17,D162=5,'MHP Family Income & Rent Limits'!$I$17,D162=6,'MHP Family Income & Rent Limits'!$J$17,D162=7,'MHP Family Income & Rent Limits'!$K$17,D162=8,'MHP Family Income & Rent Limits'!$L$17)","v":""},"",{"$f":"IF(OR(A162=0,B162=\"X\"),0,MIN(IF(AA162:AD162<>0,AA162:AD162)))","v":0},{"$f":"IF(OR(H162=\"\",I162=\"\"),0,IF(H162*0.3/12>I162,MIN(H162*0.3/12,I162*1.1)+AP162,I162*(1+(VLOOKUP('1. Checklist & Certification'!$F$9,'HLCP-E Rent Change'!$A$1:$D$59,4,FALSE)))+AP162))","v":0}]
[null,null,null,null,null,null,null,null,null,null,null,null,null,null,null,null,null,null,null,null,null,null,null,null,null,null,0,0,0,0,0,0,0,0,{"$f":"IF(OR(A163=0,B163=\"X\"),0,IF(OR(S163=\"FHDP\",S163=\"RHCP-B\",U163=\"FHDP\",U163=\"RHCP-B\",W163=\"FHDP\",W163=\"RHCP-B\",Y163=\"FHDP\",Y163=\"RHCP-B\"),TRUNC((MIN(I163,K163)*(1+'1. Checklist & Certification'!$K$43)+AP163)),0))","v":0},{"$f":"IF(OR(A163=0,B163=\"X\"),0,IF(OR(S163=\"CHRP-R\",S163=\"SERA\",S163=\"SUHRP\",U163=\"CHRP-R\",U163=\"SERA\",U163=\"SUHRP\",W163=\"CHRP-R\",W163=\"SERA\",W163=\"SUHRP\",Y163=\"CHRP-R\",Y163=\"SERA\",Y163=\"SUHRP\"),TRUNC((MIN(I163,K163)*(1+'1. Checklist & Certification'!$K$49))),0))","v":0},{"$f":"IF(OR(A163=0,B163=\"X\"),0,IF(OR(S163=\"CALDAP\",S163=\"DPRLP\",U163=\"CALDAP\",U163=\"DPRLP\",W163=\"CALDAP\",W163=\"DPRLP\",Y163=\"CALDAP\",Y163=\"DPRLP\"),TRUNC(((MIN(I163,K163))*(1+'1. Checklist & Certification'!$G$4))),0))","v":0},0,0,0,{"$f":"IF(OR(A163=0,B163=\"X\"),0,IF(OR(S163=\"PRP\",S163=\"LPR\",U163=\"PRP\",U163=\"LPR\",W163=\"PRP\",W163=\"LPR\",Y163=\"PRP\",Y163=\"LPR\"),MAX(I163+AP163,MIN(IF(AE163:AN163<>0,AE163:AN163))),MIN(IF(AE163:AN163<>0,AE163:AN163))))","v":0},{"$f":"IF(A163=0,0,IF(AND(OR(S163=\"Mgr\",S163=0),OR(U163=\"Mgr\",U163=0),OR(W163=\"Mgr\",W163=0)),0,IF(LEFT($A163,2)=\"B*\",VLOOKUP($E163,'1. Checklist & Certification'!$D$26:$E$32,2),IF(LEFT($A163,2)=\"C*\",VLOOKUP($E163,'1. Checklist & Certification'!$F$26:$G$32,2),IF(LEFT($A163,2)=\"D*\",VLOOKUP($E163,'1. Checklist & Certification'!$H$26:$I$32,2),IF(LEFT($A163,2)=\"E*\",VLOOKUP($E163,'1. Checklist & Certification'!$J$26:$K$32,2),VLOOKUP($E163,'1. Checklist & Certification'!$A$26:$B$32,2)))))))","v":0},0,0,null,null,null,null,"","",0,0,0,null,{"$f":"IF(A163=\"\",\"\",'1. Checklist & Certification'!$K$1)","v":""},{"$f":"IF(A163=\"\",\"\",'1. Checklist & Certification'!$C$62)","v":""},{"$f":"IF(A163=\"\",\"\",'1. Checklist & Certification'!$C$6)","v":""},{"$f":"IF(A163=\"\",\"\",'1. Checklist & Certification'!$G$5)","v":""},{"$f":"IFERROR(IF(A163=\"\",\"\",\n_xlfn.LET(_xlpm.Contract,'1. Checklist & Certification'!$C$7,\n_xlpm.Yr,TEXT(MOD(_xlfn.TEXTBEFORE(_xlpm.Contract,\"-\"),100),\"00\"),\n_xlpm.Program,_xlfn.TEXTAFTER(_xlfn.TEXTBEFORE(_xlpm.Contract,\"-\",2),\"-\"),\n_xlpm.CleanProgram,_xlfn.XLOOKUP(_xlpm.Program,SpellCheck[Input],SpellCheck[Correction],_xlpm.Program),\n_xlpm.Number,TEXT(_xlfn.TEXTAFTER(_xlpm.Contract,\"-\",2),\"0000\"),\n_xlfn.CONCAT(_xlpm.Yr,\"-\",_xlpm.CleanProgram,\"-\",_xlpm.Number))\n),\"\")","v":""},{"$f":"IFERROR(IF(A163=\"\",\"\",\n_xlfn.LET(_xlpm.Contract,'1. Checklist & Certification'!$C$8,\n_xlpm.Yr,TEXT(MOD(_xlfn.TEXTBEFORE(_xlpm.Contract,\"-\"),100),\"00\"),\n_xlpm.Program,_xlfn.TEXTAFTER(_xlfn.TEXTBEFORE(_xlpm.Contract,\"-\",2),\"-\"),\n_xlpm.CleanProgram,_xlfn.XLOOKUP(_xlpm.Program,SpellCheck[Input],SpellCheck[Correction],_xlpm.Program),\n_xlpm.Number,TEXT(_xlfn.TEXTAFTER(_xlpm.Contract,\"-\",2),\"0000\"),\n_xlfn.CONCAT(_xlpm.Yr,\"-\",_xlpm.CleanProgram,\"-\",_xlpm.Number))\n),\"\")","v":""},{"$f":"IFERROR(IF(A163=\"\",\"\",\n_xlfn.LET(_xlpm.Contract,'1. Checklist & Certification'!$F$7,\n_xlpm.Yr,TEXT(MOD(_xlfn.TEXTBEFORE(_xlpm.Contract,\"-\"),100),\"00\"),\n_xlpm.Program,_xlfn.TEXTAFTER(_xlfn.TEXTBEFORE(_xlpm.Contract,\"-\",2),\"-\"),\n_xlpm.CleanProgram,_xlfn.XLOOKUP(_xlpm.Program,SpellCheck[Input],SpellCheck[Correction],_xlpm.Program),\n_xlpm.Number,TEXT(_xlfn.TEXTAFTER(_xlpm.Contract,\"-\",2),\"0000\"),\n_xlfn.CONCAT(_xlpm.Yr,\"-\",_xlpm.CleanProgram,\"-\",_xlpm.Number))\n),\"\")","v":""},{"$f":"IFERROR(IF(A163=\"\",\"\",\n_xlfn.LET(_xlpm.Contract,'1. Checklist & Certification'!$F$8,\n_xlpm.Yr,TEXT(MOD(_xlfn.TEXTBEFORE(_xlpm.Contract,\"-\"),100),\"00\"),\n_xlpm.Program,_xlfn.TEXTAFTER(_xlfn.TEXTBEFORE(_xlpm.Contract,\"-\",2),\"-\"),\n_xlpm.CleanProgram,_xlfn.XLOOKUP(_xlpm.Program,SpellCheck[Input],SpellCheck[Correction],_xlpm.Program),\n_xlpm.Number,TEXT(_xlfn.TEXTAFTER(_xlpm.Contract,\"-\",2),\"0000\"),\n_xlfn.CONCAT(_xlpm.Yr,\"-\",_xlpm.CleanProgram,\"-\",_xlpm.Number))\n),\"\")","v":""},{"$f":"IF(A163=\"\",\"\",'1. Checklist & Certification'!$B$9)","v":""},{"$f":"IF(A163=\"\",\"\",'1. Checklist & Certification'!$F$9)","v":""},{"$f":"IF(A163=\"\",\"\",'1. Checklist & Certification'!$C$10)","v":""},{"$f":"IF(A163=\"\",\"\",'1. Checklist & Certification'!$C$11)","v":""},{"$f":"IF(A163=\"\",\"\",'1. Checklist & Certification'!$C$12)","v":""},{"$f":"IF(A163=\"\",\"\",'1. Checklist & Certification'!$B$14)","v":""},{"$f":"IF(A163=\"\",\"\",'1. Checklist & Certification'!$E$14)","v":""},{"$f":"IF(B163=\"\",\"\",'1. Checklist & Certification'!$G$14)","v":""},{"$f":"IF(A163=\"\",\"\",'MHP Family Income & Rent Limits'!$B$3)","v":""},{"$f":"IF(A163=\"\",\"\",'MHP Family Income & Rent Limits'!$J$3)","v":""},{"$f":"IF(A163=\"\",\"\",'MHP Family Income & Rent Limits'!$E$4)","v":""},{"$f":"IF(A163=\"\",\"\",'MHP Family Income & Rent Limits'!$C$7)","v":""},{"$f":"IF(A163=\"\",\"\",'MHP Family Income & Rent Limits'!$F$8)","v":""},{"$f":"IF(A163=\"\",\"\",'1. Checklist & Certification'!$G$4)","v":""},{"$f":"IF(A163=\"\",\"\",'1. Checklist & Certification'!$K$39)","v":""},{"$f":"IF(A163=\"\",\"\",'1. Checklist & Certification'!$K$43)","v":""},{"$f":"IF(A163=\"\",\"\",'1. Checklist & Certification'!$K$45)","v":""},{"$f":"IF(A163=\"\",\"\",'1. Checklist & Certification'!$K$49)","v":""},{"$f":"IF(A163=\"\",\"\",'1. Checklist & Certification'!$K$62)","v":""},{"$f":"IF(A163=\"\",\"\",'1. Checklist & Certification'!$E$66)","v":""},{"$f":"IF(A163=\"\",\"\",'1. Checklist & Certification'!$E$67)","v":""},{"$f":"IF(A163=\"\",\"\",'1. Checklist & Certification'!$E$68)","v":""},{"$f":"IF(A163=\"\",\"\",'1. Checklist & Certification'!$G$66)","v":""},{"$f":"IF(A163=\"\",\"\",'1. Checklist & Certification'!$H$66)","v":""},{"$f":"IF(A163=\"\",\"\",'1. Checklist & Certification'!$I$66)","v":""},{"$f":"IF(A163=\"\",\"\",'1. Checklist & Certification'!$I$67)","v":""},{"$f":"IF(A163=\"\",\"\",'1. Checklist & Certification'!$I$68)","v":""},{"$f":"IF(A163=\"\",\"\",'1. Checklist & Certification'!$B$69)","v":""},{"$f":"IF(A163=\"\",\"\",'1. Checklist & Certification'!$C$69)","v":""},{"$f":"IF(A163=\"\",\"\",'1. Checklist & Certification'!$F$69)","v":""},{"$f":"IF(A163=\"\",\"\",'1. Checklist & Certification'!$G$69)","v":""},{"$f":"IF(A163=\"\",\"\",'1. Checklist & Certification'!$J$69)","v":""},{"$f":"IF(A163=\"\",\"\",'1. Checklist & Certification'!$K$69)","v":""},null,null,{"$f":"IF(AND(OR('1. Checklist & Certification'!$M$16=1,'1. Checklist & Certification'!$M$19=2),AO163>0,B163=\"\",I163>0,AQ163<I163,AV163<>\"Sec 8-Project\"),\"X\",IF(AND(OR('1. Checklist & Certification'!$M$20=4,'1. Checklist & Certification'!$M$21=5,'1. Checklist & Certification'!$M$22=7),AO163>0,B163=\"\",I163>0,K163<I163),\"X\",\"\"))","v":""},{"$f":"IF(A163=\"\",\"\",IF(SUMPRODUCT(-- (ISNUMBER(SEARCH({\"*AHSC*\",\"*FMTW*\",\"*FWHG*\",\"*GHI*\",\"*HHC*\",\"*HLCP*\",\"*HOME*\",\"*LPR*\",\"*MHP*\",\"*NHTF*\",\"*NSP*\",\"*PRP*\",\"*TOD*\",\"*VHHP*\"},'1. Checklist & Certification'!$L$7)))),\"MHP\",\"Legacy\"))","v":""},",,",null,null,null,{"$f":"IF('1. Checklist & Certification'!$M$20=4,\"Both\",IF(OR('1. Checklist & Certification'!$M$15>0,S163=\"CHRP-R\",U163=\"CHRP-R\",W163=\"CHRP-R\",Y163=\"CHRP-R\"),\"Under\",\"No\"))","v":"No"},"No","No",{"$f":"_xlfn.IFS(D163=\"\",\"\",D163=1,'MHP Family Income & Rent Limits'!$E$17,D163=2,'MHP Family Income & Rent Limits'!$F$17,D163=3,'MHP Family Income & Rent Limits'!$G$17,D163=4,'MHP Family Income & Rent Limits'!$H$17,D163=5,'MHP Family Income & Rent Limits'!$I$17,D163=6,'MHP Family Income & Rent Limits'!$J$17,D163=7,'MHP Family Income & Rent Limits'!$K$17,D163=8,'MHP Family Income & Rent Limits'!$L$17)","v":""},"",{"$f":"IF(OR(A163=0,B163=\"X\"),0,MIN(IF(AA163:AD163<>0,AA163:AD163)))","v":0},{"$f":"IF(OR(H163=\"\",I163=\"\"),0,IF(H163*0.3/12>I163,MIN(H163*0.3/12,I163*1.1)+AP163,I163*(1+(VLOOKUP('1. Checklist & Certification'!$F$9,'HLCP-E Rent Change'!$A$1:$D$59,4,FALSE)))+AP163))","v":0}]
[null,null,null,null,null,null,null,null,null,null,null,null,null,null,null,null,null,null,null,null,null,null,null,null,null,null,0,0,0,0,0,0,0,0,{"$f":"IF(OR(A164=0,B164=\"X\"),0,IF(OR(S164=\"FHDP\",S164=\"RHCP-B\",U164=\"FHDP\",U164=\"RHCP-B\",W164=\"FHDP\",W164=\"RHCP-B\",Y164=\"FHDP\",Y164=\"RHCP-B\"),TRUNC((MIN(I164,K164)*(1+'1. Checklist & Certification'!$K$43)+AP164)),0))","v":0},{"$f":"IF(OR(A164=0,B164=\"X\"),0,IF(OR(S164=\"CHRP-R\",S164=\"SERA\",S164=\"SUHRP\",U164=\"CHRP-R\",U164=\"SERA\",U164=\"SUHRP\",W164=\"CHRP-R\",W164=\"SERA\",W164=\"SUHRP\",Y164=\"CHRP-R\",Y164=\"SERA\",Y164=\"SUHRP\"),TRUNC((MIN(I164,K164)*(1+'1. Checklist & Certification'!$K$49))),0))","v":0},{"$f":"IF(OR(A164=0,B164=\"X\"),0,IF(OR(S164=\"CALDAP\",S164=\"DPRLP\",U164=\"CALDAP\",U164=\"DPRLP\",W164=\"CALDAP\",W164=\"DPRLP\",Y164=\"CALDAP\",Y164=\"DPRLP\"),TRUNC(((MIN(I164,K164))*(1+'1. Checklist & Certification'!$G$4))),0))","v":0},0,0,0,{"$f":"IF(OR(A164=0,B164=\"X\"),0,IF(OR(S164=\"PRP\",S164=\"LPR\",U164=\"PRP\",U164=\"LPR\",W164=\"PRP\",W164=\"LPR\",Y164=\"PRP\",Y164=\"LPR\"),MAX(I164+AP164,MIN(IF(AE164:AN164<>0,AE164:AN164))),MIN(IF(AE164:AN164<>0,AE164:AN164))))","v":0},{"$f":"IF(A164=0,0,IF(AND(OR(S164=\"Mgr\",S164=0),OR(U164=\"Mgr\",U164=0),OR(W164=\"Mgr\",W164=0)),0,IF(LEFT($A164,2)=\"B*\",VLOOKUP($E164,'1. Checklist & Certification'!$D$26:$E$32,2),IF(LEFT($A164,2)=\"C*\",VLOOKUP($E164,'1. Checklist & Certification'!$F$26:$G$32,2),IF(LEFT($A164,2)=\"D*\",VLOOKUP($E164,'1. Checklist & Certification'!$H$26:$I$32,2),IF(LEFT($A164,2)=\"E*\",VLOOKUP($E164,'1. Checklist & Certification'!$J$26:$K$32,2),VLOOKUP($E164,'1. Checklist & Certification'!$A$26:$B$32,2)))))))","v":0},0,0,null,null,null,null,"","",0,0,0,null,{"$f":"IF(A164=\"\",\"\",'1. Checklist & Certification'!$K$1)","v":""},{"$f":"IF(A164=\"\",\"\",'1. Checklist & Certification'!$C$62)","v":""},{"$f":"IF(A164=\"\",\"\",'1. Checklist & Certification'!$C$6)","v":""},{"$f":"IF(A164=\"\",\"\",'1. Checklist & Certification'!$G$5)","v":""},{"$f":"IFERROR(IF(A164=\"\",\"\",\n_xlfn.LET(_xlpm.Contract,'1. Checklist & Certification'!$C$7,\n_xlpm.Yr,TEXT(MOD(_xlfn.TEXTBEFORE(_xlpm.Contract,\"-\"),100),\"00\"),\n_xlpm.Program,_xlfn.TEXTAFTER(_xlfn.TEXTBEFORE(_xlpm.Contract,\"-\",2),\"-\"),\n_xlpm.CleanProgram,_xlfn.XLOOKUP(_xlpm.Program,SpellCheck[Input],SpellCheck[Correction],_xlpm.Program),\n_xlpm.Number,TEXT(_xlfn.TEXTAFTER(_xlpm.Contract,\"-\",2),\"0000\"),\n_xlfn.CONCAT(_xlpm.Yr,\"-\",_xlpm.CleanProgram,\"-\",_xlpm.Number))\n),\"\")","v":""},{"$f":"IFERROR(IF(A164=\"\",\"\",\n_xlfn.LET(_xlpm.Contract,'1. Checklist & Certification'!$C$8,\n_xlpm.Yr,TEXT(MOD(_xlfn.TEXTBEFORE(_xlpm.Contract,\"-\"),100),\"00\"),\n_xlpm.Program,_xlfn.TEXTAFTER(_xlfn.TEXTBEFORE(_xlpm.Contract,\"-\",2),\"-\"),\n_xlpm.CleanProgram,_xlfn.XLOOKUP(_xlpm.Program,SpellCheck[Input],SpellCheck[Correction],_xlpm.Program),\n_xlpm.Number,TEXT(_xlfn.TEXTAFTER(_xlpm.Contract,\"-\",2),\"0000\"),\n_xlfn.CONCAT(_xlpm.Yr,\"-\",_xlpm.CleanProgram,\"-\",_xlpm.Number))\n),\"\")","v":""},{"$f":"IFERROR(IF(A164=\"\",\"\",\n_xlfn.LET(_xlpm.Contract,'1. Checklist & Certification'!$F$7,\n_xlpm.Yr,TEXT(MOD(_xlfn.TEXTBEFORE(_xlpm.Contract,\"-\"),100),\"00\"),\n_xlpm.Program,_xlfn.TEXTAFTER(_xlfn.TEXTBEFORE(_xlpm.Contract,\"-\",2),\"-\"),\n_xlpm.CleanProgram,_xlfn.XLOOKUP(_xlpm.Program,SpellCheck[Input],SpellCheck[Correction],_xlpm.Program),\n_xlpm.Number,TEXT(_xlfn.TEXTAFTER(_xlpm.Contract,\"-\",2),\"0000\"),\n_xlfn.CONCAT(_xlpm.Yr,\"-\",_xlpm.CleanProgram,\"-\",_xlpm.Number))\n),\"\")","v":""},{"$f":"IFERROR(IF(A164=\"\",\"\",\n_xlfn.LET(_xlpm.Contract,'1. Checklist & Certification'!$F$8,\n_xlpm.Yr,TEXT(MOD(_xlfn.TEXTBEFORE(_xlpm.Contract,\"-\"),100),\"00\"),\n_xlpm.Program,_xlfn.TEXTAFTER(_xlfn.TEXTBEFORE(_xlpm.Contract,\"-\",2),\"-\"),\n_xlpm.CleanProgram,_xlfn.XLOOKUP(_xlpm.Program,SpellCheck[Input],SpellCheck[Correction],_xlpm.Program),\n_xlpm.Number,TEXT(_xlfn.TEXTAFTER(_xlpm.Contract,\"-\",2),\"0000\"),\n_xlfn.CONCAT(_xlpm.Yr,\"-\",_xlpm.CleanProgram,\"-\",_xlpm.Number))\n),\"\")","v":""},{"$f":"IF(A164=\"\",\"\",'1. Checklist & Certification'!$B$9)","v":""},{"$f":"IF(A164=\"\",\"\",'1. Checklist & Certification'!$F$9)","v":""},{"$f":"IF(A164=\"\",\"\",'1. Checklist & Certification'!$C$10)","v":""},{"$f":"IF(A164=\"\",\"\",'1. Checklist & Certification'!$C$11)","v":""},{"$f":"IF(A164=\"\",\"\",'1. Checklist & Certification'!$C$12)","v":""},{"$f":"IF(A164=\"\",\"\",'1. Checklist & Certification'!$B$14)","v":""},{"$f":"IF(A164=\"\",\"\",'1. Checklist & Certification'!$E$14)","v":""},{"$f":"IF(B164=\"\",\"\",'1. Checklist & Certification'!$G$14)","v":""},{"$f":"IF(A164=\"\",\"\",'MHP Family Income & Rent Limits'!$B$3)","v":""},{"$f":"IF(A164=\"\",\"\",'MHP Family Income & Rent Limits'!$J$3)","v":""},{"$f":"IF(A164=\"\",\"\",'MHP Family Income & Rent Limits'!$E$4)","v":""},{"$f":"IF(A164=\"\",\"\",'MHP Family Income & Rent Limits'!$C$7)","v":""},{"$f":"IF(A164=\"\",\"\",'MHP Family Income & Rent Limits'!$F$8)","v":""},{"$f":"IF(A164=\"\",\"\",'1. Checklist & Certification'!$G$4)","v":""},{"$f":"IF(A164=\"\",\"\",'1. Checklist & Certification'!$K$39)","v":""},{"$f":"IF(A164=\"\",\"\",'1. Checklist & Certification'!$K$43)","v":""},{"$f":"IF(A164=\"\",\"\",'1. Checklist & Certification'!$K$45)","v":""},{"$f":"IF(A164=\"\",\"\",'1. Checklist & Certification'!$K$49)","v":""},{"$f":"IF(A164=\"\",\"\",'1. Checklist & Certification'!$K$62)","v":""},{"$f":"IF(A164=\"\",\"\",'1. Checklist & Certification'!$E$66)","v":""},{"$f":"IF(A164=\"\",\"\",'1. Checklist & Certification'!$E$67)","v":""},{"$f":"IF(A164=\"\",\"\",'1. Checklist & Certification'!$E$68)","v":""},{"$f":"IF(A164=\"\",\"\",'1. Checklist & Certification'!$G$66)","v":""},{"$f":"IF(A164=\"\",\"\",'1. Checklist & Certification'!$H$66)","v":""},{"$f":"IF(A164=\"\",\"\",'1. Checklist & Certification'!$I$66)","v":""},{"$f":"IF(A164=\"\",\"\",'1. Checklist & Certification'!$I$67)","v":""},{"$f":"IF(A164=\"\",\"\",'1. Checklist & Certification'!$I$68)","v":""},{"$f":"IF(A164=\"\",\"\",'1. Checklist & Certification'!$B$69)","v":""},{"$f":"IF(A164=\"\",\"\",'1. Checklist & Certification'!$C$69)","v":""},{"$f":"IF(A164=\"\",\"\",'1. Checklist & Certification'!$F$69)","v":""},{"$f":"IF(A164=\"\",\"\",'1. Checklist & Certification'!$G$69)","v":""},{"$f":"IF(A164=\"\",\"\",'1. Checklist & Certification'!$J$69)","v":""},{"$f":"IF(A164=\"\",\"\",'1. Checklist & Certification'!$K$69)","v":""},null,null,{"$f":"IF(AND(OR('1. Checklist & Certification'!$M$16=1,'1. Checklist & Certification'!$M$19=2),AO164>0,B164=\"\",I164>0,AQ164<I164,AV164<>\"Sec 8-Project\"),\"X\",IF(AND(OR('1. Checklist & Certification'!$M$20=4,'1. Checklist & Certification'!$M$21=5,'1. Checklist & Certification'!$M$22=7),AO164>0,B164=\"\",I164>0,K164<I164),\"X\",\"\"))","v":""},{"$f":"IF(A164=\"\",\"\",IF(SUMPRODUCT(-- (ISNUMBER(SEARCH({\"*AHSC*\",\"*FMTW*\",\"*FWHG*\",\"*GHI*\",\"*HHC*\",\"*HLCP*\",\"*HOME*\",\"*LPR*\",\"*MHP*\",\"*NHTF*\",\"*NSP*\",\"*PRP*\",\"*TOD*\",\"*VHHP*\"},'1. Checklist & Certification'!$L$7)))),\"MHP\",\"Legacy\"))","v":""},",,",null,null,null,{"$f":"IF('1. Checklist & Certification'!$M$20=4,\"Both\",IF(OR('1. Checklist & Certification'!$M$15>0,S164=\"CHRP-R\",U164=\"CHRP-R\",W164=\"CHRP-R\",Y164=\"CHRP-R\"),\"Under\",\"No\"))","v":"No"},"No","No",{"$f":"_xlfn.IFS(D164=\"\",\"\",D164=1,'MHP Family Income & Rent Limits'!$E$17,D164=2,'MHP Family Income & Rent Limits'!$F$17,D164=3,'MHP Family Income & Rent Limits'!$G$17,D164=4,'MHP Family Income & Rent Limits'!$H$17,D164=5,'MHP Family Income & Rent Limits'!$I$17,D164=6,'MHP Family Income & Rent Limits'!$J$17,D164=7,'MHP Family Income & Rent Limits'!$K$17,D164=8,'MHP Family Income & Rent Limits'!$L$17)","v":""},"",{"$f":"IF(OR(A164=0,B164=\"X\"),0,MIN(IF(AA164:AD164<>0,AA164:AD164)))","v":0},{"$f":"IF(OR(H164=\"\",I164=\"\"),0,IF(H164*0.3/12>I164,MIN(H164*0.3/12,I164*1.1)+AP164,I164*(1+(VLOOKUP('1. Checklist & Certification'!$F$9,'HLCP-E Rent Change'!$A$1:$D$59,4,FALSE)))+AP164))","v":0}]
[null,null,null,null,null,null,null,null,null,null,null,null,null,null,null,null,null,null,null,null,null,null,null,null,null,null,0,0,0,0,0,0,0,0,{"$f":"IF(OR(A165=0,B165=\"X\"),0,IF(OR(S165=\"FHDP\",S165=\"RHCP-B\",U165=\"FHDP\",U165=\"RHCP-B\",W165=\"FHDP\",W165=\"RHCP-B\",Y165=\"FHDP\",Y165=\"RHCP-B\"),TRUNC((MIN(I165,K165)*(1+'1. Checklist & Certification'!$K$43)+AP165)),0))","v":0},{"$f":"IF(OR(A165=0,B165=\"X\"),0,IF(OR(S165=\"CHRP-R\",S165=\"SERA\",S165=\"SUHRP\",U165=\"CHRP-R\",U165=\"SERA\",U165=\"SUHRP\",W165=\"CHRP-R\",W165=\"SERA\",W165=\"SUHRP\",Y165=\"CHRP-R\",Y165=\"SERA\",Y165=\"SUHRP\"),TRUNC((MIN(I165,K165)*(1+'1. Checklist & Certification'!$K$49))),0))","v":0},{"$f":"IF(OR(A165=0,B165=\"X\"),0,IF(OR(S165=\"CALDAP\",S165=\"DPRLP\",U165=\"CALDAP\",U165=\"DPRLP\",W165=\"CALDAP\",W165=\"DPRLP\",Y165=\"CALDAP\",Y165=\"DPRLP\"),TRUNC(((MIN(I165,K165))*(1+'1. Checklist & Certification'!$G$4))),0))","v":0},0,0,0,{"$f":"IF(OR(A165=0,B165=\"X\"),0,IF(OR(S165=\"PRP\",S165=\"LPR\",U165=\"PRP\",U165=\"LPR\",W165=\"PRP\",W165=\"LPR\",Y165=\"PRP\",Y165=\"LPR\"),MAX(I165+AP165,MIN(IF(AE165:AN165<>0,AE165:AN165))),MIN(IF(AE165:AN165<>0,AE165:AN165))))","v":0},{"$f":"IF(A165=0,0,IF(AND(OR(S165=\"Mgr\",S165=0),OR(U165=\"Mgr\",U165=0),OR(W165=\"Mgr\",W165=0)),0,IF(LEFT($A165,2)=\"B*\",VLOOKUP($E165,'1. Checklist & Certification'!$D$26:$E$32,2),IF(LEFT($A165,2)=\"C*\",VLOOKUP($E165,'1. Checklist & Certification'!$F$26:$G$32,2),IF(LEFT($A165,2)=\"D*\",VLOOKUP($E165,'1. Checklist & Certification'!$H$26:$I$32,2),IF(LEFT($A165,2)=\"E*\",VLOOKUP($E165,'1. Checklist & Certification'!$J$26:$K$32,2),VLOOKUP($E165,'1. Checklist & Certification'!$A$26:$B$32,2)))))))","v":0},0,0,null,null,null,null,"","",0,0,0,null,{"$f":"IF(A165=\"\",\"\",'1. Checklist & Certification'!$K$1)","v":""},{"$f":"IF(A165=\"\",\"\",'1. Checklist & Certification'!$C$62)","v":""},{"$f":"IF(A165=\"\",\"\",'1. Checklist & Certification'!$C$6)","v":""},{"$f":"IF(A165=\"\",\"\",'1. Checklist & Certification'!$G$5)","v":""},{"$f":"IFERROR(IF(A165=\"\",\"\",\n_xlfn.LET(_xlpm.Contract,'1. Checklist & Certification'!$C$7,\n_xlpm.Yr,TEXT(MOD(_xlfn.TEXTBEFORE(_xlpm.Contract,\"-\"),100),\"00\"),\n_xlpm.Program,_xlfn.TEXTAFTER(_xlfn.TEXTBEFORE(_xlpm.Contract,\"-\",2),\"-\"),\n_xlpm.CleanProgram,_xlfn.XLOOKUP(_xlpm.Program,SpellCheck[Input],SpellCheck[Correction],_xlpm.Program),\n_xlpm.Number,TEXT(_xlfn.TEXTAFTER(_xlpm.Contract,\"-\",2),\"0000\"),\n_xlfn.CONCAT(_xlpm.Yr,\"-\",_xlpm.CleanProgram,\"-\",_xlpm.Number))\n),\"\")","v":""},{"$f":"IFERROR(IF(A165=\"\",\"\",\n_xlfn.LET(_xlpm.Contract,'1. Checklist & Certification'!$C$8,\n_xlpm.Yr,TEXT(MOD(_xlfn.TEXTBEFORE(_xlpm.Contract,\"-\"),100),\"00\"),\n_xlpm.Program,_xlfn.TEXTAFTER(_xlfn.TEXTBEFORE(_xlpm.Contract,\"-\",2),\"-\"),\n_xlpm.CleanProgram,_xlfn.XLOOKUP(_xlpm.Program,SpellCheck[Input],SpellCheck[Correction],_xlpm.Program),\n_xlpm.Number,TEXT(_xlfn.TEXTAFTER(_xlpm.Contract,\"-\",2),\"0000\"),\n_xlfn.CONCAT(_xlpm.Yr,\"-\",_xlpm.CleanProgram,\"-\",_xlpm.Number))\n),\"\")","v":""},{"$f":"IFERROR(IF(A165=\"\",\"\",\n_xlfn.LET(_xlpm.Contract,'1. Checklist & Certification'!$F$7,\n_xlpm.Yr,TEXT(MOD(_xlfn.TEXTBEFORE(_xlpm.Contract,\"-\"),100),\"00\"),\n_xlpm.Program,_xlfn.TEXTAFTER(_xlfn.TEXTBEFORE(_xlpm.Contract,\"-\",2),\"-\"),\n_xlpm.CleanProgram,_xlfn.XLOOKUP(_xlpm.Program,SpellCheck[Input],SpellCheck[Correction],_xlpm.Program),\n_xlpm.Number,TEXT(_xlfn.TEXTAFTER(_xlpm.Contract,\"-\",2),\"0000\"),\n_xlfn.CONCAT(_xlpm.Yr,\"-\",_xlpm.CleanProgram,\"-\",_xlpm.Number))\n),\"\")","v":""},{"$f":"IFERROR(IF(A165=\"\",\"\",\n_xlfn.LET(_xlpm.Contract,'1. Checklist & Certification'!$F$8,\n_xlpm.Yr,TEXT(MOD(_xlfn.TEXTBEFORE(_xlpm.Contract,\"-\"),100),\"00\"),\n_xlpm.Program,_xlfn.TEXTAFTER(_xlfn.TEXTBEFORE(_xlpm.Contract,\"-\",2),\"-\"),\n_xlpm.CleanProgram,_xlfn.XLOOKUP(_xlpm.Program,SpellCheck[Input],SpellCheck[Correction],_xlpm.Program),\n_xlpm.Number,TEXT(_xlfn.TEXTAFTER(_xlpm.Contract,\"-\",2),\"0000\"),\n_xlfn.CONCAT(_xlpm.Yr,\"-\",_xlpm.CleanProgram,\"-\",_xlpm.Number))\n),\"\")","v":""},{"$f":"IF(A165=\"\",\"\",'1. Checklist & Certification'!$B$9)","v":""},{"$f":"IF(A165=\"\",\"\",'1. Checklist & Certification'!$F$9)","v":""},{"$f":"IF(A165=\"\",\"\",'1. Checklist & Certification'!$C$10)","v":""},{"$f":"IF(A165=\"\",\"\",'1. Checklist & Certification'!$C$11)","v":""},{"$f":"IF(A165=\"\",\"\",'1. Checklist & Certification'!$C$12)","v":""},{"$f":"IF(A165=\"\",\"\",'1. Checklist & Certification'!$B$14)","v":""},{"$f":"IF(A165=\"\",\"\",'1. Checklist & Certification'!$E$14)","v":""},{"$f":"IF(B165=\"\",\"\",'1. Checklist & Certification'!$G$14)","v":""},{"$f":"IF(A165=\"\",\"\",'MHP Family Income & Rent Limits'!$B$3)","v":""},{"$f":"IF(A165=\"\",\"\",'MHP Family Income & Rent Limits'!$J$3)","v":""},{"$f":"IF(A165=\"\",\"\",'MHP Family Income & Rent Limits'!$E$4)","v":""},{"$f":"IF(A165=\"\",\"\",'MHP Family Income & Rent Limits'!$C$7)","v":""},{"$f":"IF(A165=\"\",\"\",'MHP Family Income & Rent Limits'!$F$8)","v":""},{"$f":"IF(A165=\"\",\"\",'1. Checklist & Certification'!$G$4)","v":""},{"$f":"IF(A165=\"\",\"\",'1. Checklist & Certification'!$K$39)","v":""},{"$f":"IF(A165=\"\",\"\",'1. Checklist & Certification'!$K$43)","v":""},{"$f":"IF(A165=\"\",\"\",'1. Checklist & Certification'!$K$45)","v":""},{"$f":"IF(A165=\"\",\"\",'1. Checklist & Certification'!$K$49)","v":""},{"$f":"IF(A165=\"\",\"\",'1. Checklist & Certification'!$K$62)","v":""},{"$f":"IF(A165=\"\",\"\",'1. Checklist & Certification'!$E$66)","v":""},{"$f":"IF(A165=\"\",\"\",'1. Checklist & Certification'!$E$67)","v":""},{"$f":"IF(A165=\"\",\"\",'1. Checklist & Certification'!$E$68)","v":""},{"$f":"IF(A165=\"\",\"\",'1. Checklist & Certification'!$G$66)","v":""},{"$f":"IF(A165=\"\",\"\",'1. Checklist & Certification'!$H$66)","v":""},{"$f":"IF(A165=\"\",\"\",'1. Checklist & Certification'!$I$66)","v":""},{"$f":"IF(A165=\"\",\"\",'1. Checklist & Certification'!$I$67)","v":""},{"$f":"IF(A165=\"\",\"\",'1. Checklist & Certification'!$I$68)","v":""},{"$f":"IF(A165=\"\",\"\",'1. Checklist & Certification'!$B$69)","v":""},{"$f":"IF(A165=\"\",\"\",'1. Checklist & Certification'!$C$69)","v":""},{"$f":"IF(A165=\"\",\"\",'1. Checklist & Certification'!$F$69)","v":""},{"$f":"IF(A165=\"\",\"\",'1. Checklist & Certification'!$G$69)","v":""},{"$f":"IF(A165=\"\",\"\",'1. Checklist & Certification'!$J$69)","v":""},{"$f":"IF(A165=\"\",\"\",'1. Checklist & Certification'!$K$69)","v":""},null,null,{"$f":"IF(AND(OR('1. Checklist & Certification'!$M$16=1,'1. Checklist & Certification'!$M$19=2),AO165>0,B165=\"\",I165>0,AQ165<I165,AV165<>\"Sec 8-Project\"),\"X\",IF(AND(OR('1. Checklist & Certification'!$M$20=4,'1. Checklist & Certification'!$M$21=5,'1. Checklist & Certification'!$M$22=7),AO165>0,B165=\"\",I165>0,K165<I165),\"X\",\"\"))","v":""},{"$f":"IF(A165=\"\",\"\",IF(SUMPRODUCT(-- (ISNUMBER(SEARCH({\"*AHSC*\",\"*FMTW*\",\"*FWHG*\",\"*GHI*\",\"*HHC*\",\"*HLCP*\",\"*HOME*\",\"*LPR*\",\"*MHP*\",\"*NHTF*\",\"*NSP*\",\"*PRP*\",\"*TOD*\",\"*VHHP*\"},'1. Checklist & Certification'!$L$7)))),\"MHP\",\"Legacy\"))","v":""},",,",null,null,null,{"$f":"IF('1. Checklist & Certification'!$M$20=4,\"Both\",IF(OR('1. Checklist & Certification'!$M$15>0,S165=\"CHRP-R\",U165=\"CHRP-R\",W165=\"CHRP-R\",Y165=\"CHRP-R\"),\"Under\",\"No\"))","v":"No"},"No","No",{"$f":"_xlfn.IFS(D165=\"\",\"\",D165=1,'MHP Family Income & Rent Limits'!$E$17,D165=2,'MHP Family Income & Rent Limits'!$F$17,D165=3,'MHP Family Income & Rent Limits'!$G$17,D165=4,'MHP Family Income & Rent Limits'!$H$17,D165=5,'MHP Family Income & Rent Limits'!$I$17,D165=6,'MHP Family Income & Rent Limits'!$J$17,D165=7,'MHP Family Income & Rent Limits'!$K$17,D165=8,'MHP Family Income & Rent Limits'!$L$17)","v":""},"",{"$f":"IF(OR(A165=0,B165=\"X\"),0,MIN(IF(AA165:AD165<>0,AA165:AD165)))","v":0},{"$f":"IF(OR(H165=\"\",I165=\"\"),0,IF(H165*0.3/12>I165,MIN(H165*0.3/12,I165*1.1)+AP165,I165*(1+(VLOOKUP('1. Checklist & Certification'!$F$9,'HLCP-E Rent Change'!$A$1:$D$59,4,FALSE)))+AP165))","v":0}]
[null,null,null,null,null,null,null,null,null,null,null,null,null,null,null,null,null,null,null,null,null,null,null,null,null,null,0,0,0,0,0,0,0,0,{"$f":"IF(OR(A166=0,B166=\"X\"),0,IF(OR(S166=\"FHDP\",S166=\"RHCP-B\",U166=\"FHDP\",U166=\"RHCP-B\",W166=\"FHDP\",W166=\"RHCP-B\",Y166=\"FHDP\",Y166=\"RHCP-B\"),TRUNC((MIN(I166,K166)*(1+'1. Checklist & Certification'!$K$43)+AP166)),0))","v":0},{"$f":"IF(OR(A166=0,B166=\"X\"),0,IF(OR(S166=\"CHRP-R\",S166=\"SERA\",S166=\"SUHRP\",U166=\"CHRP-R\",U166=\"SERA\",U166=\"SUHRP\",W166=\"CHRP-R\",W166=\"SERA\",W166=\"SUHRP\",Y166=\"CHRP-R\",Y166=\"SERA\",Y166=\"SUHRP\"),TRUNC((MIN(I166,K166)*(1+'1. Checklist & Certification'!$K$49))),0))","v":0},{"$f":"IF(OR(A166=0,B166=\"X\"),0,IF(OR(S166=\"CALDAP\",S166=\"DPRLP\",U166=\"CALDAP\",U166=\"DPRLP\",W166=\"CALDAP\",W166=\"DPRLP\",Y166=\"CALDAP\",Y166=\"DPRLP\"),TRUNC(((MIN(I166,K166))*(1+'1. Checklist & Certification'!$G$4))),0))","v":0},0,0,0,{"$f":"IF(OR(A166=0,B166=\"X\"),0,IF(OR(S166=\"PRP\",S166=\"LPR\",U166=\"PRP\",U166=\"LPR\",W166=\"PRP\",W166=\"LPR\",Y166=\"PRP\",Y166=\"LPR\"),MAX(I166+AP166,MIN(IF(AE166:AN166<>0,AE166:AN166))),MIN(IF(AE166:AN166<>0,AE166:AN166))))","v":0},{"$f":"IF(A166=0,0,IF(AND(OR(S166=\"Mgr\",S166=0),OR(U166=\"Mgr\",U166=0),OR(W166=\"Mgr\",W166=0)),0,IF(LEFT($A166,2)=\"B*\",VLOOKUP($E166,'1. Checklist & Certification'!$D$26:$E$32,2),IF(LEFT($A166,2)=\"C*\",VLOOKUP($E166,'1. Checklist & Certification'!$F$26:$G$32,2),IF(LEFT($A166,2)=\"D*\",VLOOKUP($E166,'1. Checklist & Certification'!$H$26:$I$32,2),IF(LEFT($A166,2)=\"E*\",VLOOKUP($E166,'1. Checklist & Certification'!$J$26:$K$32,2),VLOOKUP($E166,'1. Checklist & Certification'!$A$26:$B$32,2)))))))","v":0},0,0,null,null,null,null,"","",0,0,0,null,{"$f":"IF(A166=\"\",\"\",'1. Checklist & Certification'!$K$1)","v":""},{"$f":"IF(A166=\"\",\"\",'1. Checklist & Certification'!$C$62)","v":""},{"$f":"IF(A166=\"\",\"\",'1. Checklist & Certification'!$C$6)","v":""},{"$f":"IF(A166=\"\",\"\",'1. Checklist & Certification'!$G$5)","v":""},{"$f":"IFERROR(IF(A166=\"\",\"\",\n_xlfn.LET(_xlpm.Contract,'1. Checklist & Certification'!$C$7,\n_xlpm.Yr,TEXT(MOD(_xlfn.TEXTBEFORE(_xlpm.Contract,\"-\"),100),\"00\"),\n_xlpm.Program,_xlfn.TEXTAFTER(_xlfn.TEXTBEFORE(_xlpm.Contract,\"-\",2),\"-\"),\n_xlpm.CleanProgram,_xlfn.XLOOKUP(_xlpm.Program,SpellCheck[Input],SpellCheck[Correction],_xlpm.Program),\n_xlpm.Number,TEXT(_xlfn.TEXTAFTER(_xlpm.Contract,\"-\",2),\"0000\"),\n_xlfn.CONCAT(_xlpm.Yr,\"-\",_xlpm.CleanProgram,\"-\",_xlpm.Number))\n),\"\")","v":""},{"$f":"IFERROR(IF(A166=\"\",\"\",\n_xlfn.LET(_xlpm.Contract,'1. Checklist & Certification'!$C$8,\n_xlpm.Yr,TEXT(MOD(_xlfn.TEXTBEFORE(_xlpm.Contract,\"-\"),100),\"00\"),\n_xlpm.Program,_xlfn.TEXTAFTER(_xlfn.TEXTBEFORE(_xlpm.Contract,\"-\",2),\"-\"),\n_xlpm.CleanProgram,_xlfn.XLOOKUP(_xlpm.Program,SpellCheck[Input],SpellCheck[Correction],_xlpm.Program),\n_xlpm.Number,TEXT(_xlfn.TEXTAFTER(_xlpm.Contract,\"-\",2),\"0000\"),\n_xlfn.CONCAT(_xlpm.Yr,\"-\",_xlpm.CleanProgram,\"-\",_xlpm.Number))\n),\"\")","v":""},{"$f":"IFERROR(IF(A166=\"\",\"\",\n_xlfn.LET(_xlpm.Contract,'1. Checklist & Certification'!$F$7,\n_xlpm.Yr,TEXT(MOD(_xlfn.TEXTBEFORE(_xlpm.Contract,\"-\"),100),\"00\"),\n_xlpm.Program,_xlfn.TEXTAFTER(_xlfn.TEXTBEFORE(_xlpm.Contract,\"-\",2),\"-\"),\n_xlpm.CleanProgram,_xlfn.XLOOKUP(_xlpm.Program,SpellCheck[Input],SpellCheck[Correction],_xlpm.Program),\n_xlpm.Number,TEXT(_xlfn.TEXTAFTER(_xlpm.Contract,\"-\",2),\"0000\"),\n_xlfn.CONCAT(_xlpm.Yr,\"-\",_xlpm.CleanProgram,\"-\",_xlpm.Number))\n),\"\")","v":""},{"$f":"IFERROR(IF(A166=\"\",\"\",\n_xlfn.LET(_xlpm.Contract,'1. Checklist & Certification'!$F$8,\n_xlpm.Yr,TEXT(MOD(_xlfn.TEXTBEFORE(_xlpm.Contract,\"-\"),100),\"00\"),\n_xlpm.Program,_xlfn.TEXTAFTER(_xlfn.TEXTBEFORE(_xlpm.Contract,\"-\",2),\"-\"),\n_xlpm.CleanProgram,_xlfn.XLOOKUP(_xlpm.Program,SpellCheck[Input],SpellCheck[Correction],_xlpm.Program),\n_xlpm.Number,TEXT(_xlfn.TEXTAFTER(_xlpm.Contract,\"-\",2),\"0000\"),\n_xlfn.CONCAT(_xlpm.Yr,\"-\",_xlpm.CleanProgram,\"-\",_xlpm.Number))\n),\"\")","v":""},{"$f":"IF(A166=\"\",\"\",'1. Checklist & Certification'!$B$9)","v":""},{"$f":"IF(A166=\"\",\"\",'1. Checklist & Certification'!$F$9)","v":""},{"$f":"IF(A166=\"\",\"\",'1. Checklist & Certification'!$C$10)","v":""},{"$f":"IF(A166=\"\",\"\",'1. Checklist & Certification'!$C$11)","v":""},{"$f":"IF(A166=\"\",\"\",'1. Checklist & Certification'!$C$12)","v":""},{"$f":"IF(A166=\"\",\"\",'1. Checklist & Certification'!$B$14)","v":""},{"$f":"IF(A166=\"\",\"\",'1. Checklist & Certification'!$E$14)","v":""},{"$f":"IF(B166=\"\",\"\",'1. Checklist & Certification'!$G$14)","v":""},{"$f":"IF(A166=\"\",\"\",'MHP Family Income & Rent Limits'!$B$3)","v":""},{"$f":"IF(A166=\"\",\"\",'MHP Family Income & Rent Limits'!$J$3)","v":""},{"$f":"IF(A166=\"\",\"\",'MHP Family Income & Rent Limits'!$E$4)","v":""},{"$f":"IF(A166=\"\",\"\",'MHP Family Income & Rent Limits'!$C$7)","v":""},{"$f":"IF(A166=\"\",\"\",'MHP Family Income & Rent Limits'!$F$8)","v":""},{"$f":"IF(A166=\"\",\"\",'1. Checklist & Certification'!$G$4)","v":""},{"$f":"IF(A166=\"\",\"\",'1. Checklist & Certification'!$K$39)","v":""},{"$f":"IF(A166=\"\",\"\",'1. Checklist & Certification'!$K$43)","v":""},{"$f":"IF(A166=\"\",\"\",'1. Checklist & Certification'!$K$45)","v":""},{"$f":"IF(A166=\"\",\"\",'1. Checklist & Certification'!$K$49)","v":""},{"$f":"IF(A166=\"\",\"\",'1. Checklist & Certification'!$K$62)","v":""},{"$f":"IF(A166=\"\",\"\",'1. Checklist & Certification'!$E$66)","v":""},{"$f":"IF(A166=\"\",\"\",'1. Checklist & Certification'!$E$67)","v":""},{"$f":"IF(A166=\"\",\"\",'1. Checklist & Certification'!$E$68)","v":""},{"$f":"IF(A166=\"\",\"\",'1. Checklist & Certification'!$G$66)","v":""},{"$f":"IF(A166=\"\",\"\",'1. Checklist & Certification'!$H$66)","v":""},{"$f":"IF(A166=\"\",\"\",'1. Checklist & Certification'!$I$66)","v":""},{"$f":"IF(A166=\"\",\"\",'1. Checklist & Certification'!$I$67)","v":""},{"$f":"IF(A166=\"\",\"\",'1. Checklist & Certification'!$I$68)","v":""},{"$f":"IF(A166=\"\",\"\",'1. Checklist & Certification'!$B$69)","v":""},{"$f":"IF(A166=\"\",\"\",'1. Checklist & Certification'!$C$69)","v":""},{"$f":"IF(A166=\"\",\"\",'1. Checklist & Certification'!$F$69)","v":""},{"$f":"IF(A166=\"\",\"\",'1. Checklist & Certification'!$G$69)","v":""},{"$f":"IF(A166=\"\",\"\",'1. Checklist & Certification'!$J$69)","v":""},{"$f":"IF(A166=\"\",\"\",'1. Checklist & Certification'!$K$69)","v":""},null,null,{"$f":"IF(AND(OR('1. Checklist & Certification'!$M$16=1,'1. Checklist & Certification'!$M$19=2),AO166>0,B166=\"\",I166>0,AQ166<I166,AV166<>\"Sec 8-Project\"),\"X\",IF(AND(OR('1. Checklist & Certification'!$M$20=4,'1. Checklist & Certification'!$M$21=5,'1. Checklist & Certification'!$M$22=7),AO166>0,B166=\"\",I166>0,K166<I166),\"X\",\"\"))","v":""},{"$f":"IF(A166=\"\",\"\",IF(SUMPRODUCT(-- (ISNUMBER(SEARCH({\"*AHSC*\",\"*FMTW*\",\"*FWHG*\",\"*GHI*\",\"*HHC*\",\"*HLCP*\",\"*HOME*\",\"*LPR*\",\"*MHP*\",\"*NHTF*\",\"*NSP*\",\"*PRP*\",\"*TOD*\",\"*VHHP*\"},'1. Checklist & Certification'!$L$7)))),\"MHP\",\"Legacy\"))","v":""},",,",null,null,null,{"$f":"IF('1. Checklist & Certification'!$M$20=4,\"Both\",IF(OR('1. Checklist & Certification'!$M$15>0,S166=\"CHRP-R\",U166=\"CHRP-R\",W166=\"CHRP-R\",Y166=\"CHRP-R\"),\"Under\",\"No\"))","v":"No"},"No","No",{"$f":"_xlfn.IFS(D166=\"\",\"\",D166=1,'MHP Family Income & Rent Limits'!$E$17,D166=2,'MHP Family Income & Rent Limits'!$F$17,D166=3,'MHP Family Income & Rent Limits'!$G$17,D166=4,'MHP Family Income & Rent Limits'!$H$17,D166=5,'MHP Family Income & Rent Limits'!$I$17,D166=6,'MHP Family Income & Rent Limits'!$J$17,D166=7,'MHP Family Income & Rent Limits'!$K$17,D166=8,'MHP Family Income & Rent Limits'!$L$17)","v":""},"",{"$f":"IF(OR(A166=0,B166=\"X\"),0,MIN(IF(AA166:AD166<>0,AA166:AD166)))","v":0},{"$f":"IF(OR(H166=\"\",I166=\"\"),0,IF(H166*0.3/12>I166,MIN(H166*0.3/12,I166*1.1)+AP166,I166*(1+(VLOOKUP('1. Checklist & Certification'!$F$9,'HLCP-E Rent Change'!$A$1:$D$59,4,FALSE)))+AP166))","v":0}]
[null,null,null,null,null,null,null,null,null,null,null,null,null,null,null,null,null,null,null,null,null,null,null,null,null,null,0,0,0,0,0,0,0,0,{"$f":"IF(OR(A167=0,B167=\"X\"),0,IF(OR(S167=\"FHDP\",S167=\"RHCP-B\",U167=\"FHDP\",U167=\"RHCP-B\",W167=\"FHDP\",W167=\"RHCP-B\",Y167=\"FHDP\",Y167=\"RHCP-B\"),TRUNC((MIN(I167,K167)*(1+'1. Checklist & Certification'!$K$43)+AP167)),0))","v":0},{"$f":"IF(OR(A167=0,B167=\"X\"),0,IF(OR(S167=\"CHRP-R\",S167=\"SERA\",S167=\"SUHRP\",U167=\"CHRP-R\",U167=\"SERA\",U167=\"SUHRP\",W167=\"CHRP-R\",W167=\"SERA\",W167=\"SUHRP\",Y167=\"CHRP-R\",Y167=\"SERA\",Y167=\"SUHRP\"),TRUNC((MIN(I167,K167)*(1+'1. Checklist & Certification'!$K$49))),0))","v":0},{"$f":"IF(OR(A167=0,B167=\"X\"),0,IF(OR(S167=\"CALDAP\",S167=\"DPRLP\",U167=\"CALDAP\",U167=\"DPRLP\",W167=\"CALDAP\",W167=\"DPRLP\",Y167=\"CALDAP\",Y167=\"DPRLP\"),TRUNC(((MIN(I167,K167))*(1+'1. Checklist & Certification'!$G$4))),0))","v":0},0,0,0,{"$f":"IF(OR(A167=0,B167=\"X\"),0,IF(OR(S167=\"PRP\",S167=\"LPR\",U167=\"PRP\",U167=\"LPR\",W167=\"PRP\",W167=\"LPR\",Y167=\"PRP\",Y167=\"LPR\"),MAX(I167+AP167,MIN(IF(AE167:AN167<>0,AE167:AN167))),MIN(IF(AE167:AN167<>0,AE167:AN167))))","v":0},{"$f":"IF(A167=0,0,IF(AND(OR(S167=\"Mgr\",S167=0),OR(U167=\"Mgr\",U167=0),OR(W167=\"Mgr\",W167=0)),0,IF(LEFT($A167,2)=\"B*\",VLOOKUP($E167,'1. Checklist & Certification'!$D$26:$E$32,2),IF(LEFT($A167,2)=\"C*\",VLOOKUP($E167,'1. Checklist & Certification'!$F$26:$G$32,2),IF(LEFT($A167,2)=\"D*\",VLOOKUP($E167,'1. Checklist & Certification'!$H$26:$I$32,2),IF(LEFT($A167,2)=\"E*\",VLOOKUP($E167,'1. Checklist & Certification'!$J$26:$K$32,2),VLOOKUP($E167,'1. Checklist & Certification'!$A$26:$B$32,2)))))))","v":0},0,0,null,null,null,null,"","",0,0,0,null,{"$f":"IF(A167=\"\",\"\",'1. Checklist & Certification'!$K$1)","v":""},{"$f":"IF(A167=\"\",\"\",'1. Checklist & Certification'!$C$62)","v":""},{"$f":"IF(A167=\"\",\"\",'1. Checklist & Certification'!$C$6)","v":""},{"$f":"IF(A167=\"\",\"\",'1. Checklist & Certification'!$G$5)","v":""},{"$f":"IFERROR(IF(A167=\"\",\"\",\n_xlfn.LET(_xlpm.Contract,'1. Checklist & Certification'!$C$7,\n_xlpm.Yr,TEXT(MOD(_xlfn.TEXTBEFORE(_xlpm.Contract,\"-\"),100),\"00\"),\n_xlpm.Program,_xlfn.TEXTAFTER(_xlfn.TEXTBEFORE(_xlpm.Contract,\"-\",2),\"-\"),\n_xlpm.CleanProgram,_xlfn.XLOOKUP(_xlpm.Program,SpellCheck[Input],SpellCheck[Correction],_xlpm.Program),\n_xlpm.Number,TEXT(_xlfn.TEXTAFTER(_xlpm.Contract,\"-\",2),\"0000\"),\n_xlfn.CONCAT(_xlpm.Yr,\"-\",_xlpm.CleanProgram,\"-\",_xlpm.Number))\n),\"\")","v":""},{"$f":"IFERROR(IF(A167=\"\",\"\",\n_xlfn.LET(_xlpm.Contract,'1. Checklist & Certification'!$C$8,\n_xlpm.Yr,TEXT(MOD(_xlfn.TEXTBEFORE(_xlpm.Contract,\"-\"),100),\"00\"),\n_xlpm.Program,_xlfn.TEXTAFTER(_xlfn.TEXTBEFORE(_xlpm.Contract,\"-\",2),\"-\"),\n_xlpm.CleanProgram,_xlfn.XLOOKUP(_xlpm.Program,SpellCheck[Input],SpellCheck[Correction],_xlpm.Program),\n_xlpm.Number,TEXT(_xlfn.TEXTAFTER(_xlpm.Contract,\"-\",2),\"0000\"),\n_xlfn.CONCAT(_xlpm.Yr,\"-\",_xlpm.CleanProgram,\"-\",_xlpm.Number))\n),\"\")","v":""},{"$f":"IFERROR(IF(A167=\"\",\"\",\n_xlfn.LET(_xlpm.Contract,'1. Checklist & Certification'!$F$7,\n_xlpm.Yr,TEXT(MOD(_xlfn.TEXTBEFORE(_xlpm.Contract,\"-\"),100),\"00\"),\n_xlpm.Program,_xlfn.TEXTAFTER(_xlfn.TEXTBEFORE(_xlpm.Contract,\"-\",2),\"-\"),\n_xlpm.CleanProgram,_xlfn.XLOOKUP(_xlpm.Program,SpellCheck[Input],SpellCheck[Correction],_xlpm.Program),\n_xlpm.Number,TEXT(_xlfn.TEXTAFTER(_xlpm.Contract,\"-\",2),\"0000\"),\n_xlfn.CONCAT(_xlpm.Yr,\"-\",_xlpm.CleanProgram,\"-\",_xlpm.Number))\n),\"\")","v":""},{"$f":"IFERROR(IF(A167=\"\",\"\",\n_xlfn.LET(_xlpm.Contract,'1. Checklist & Certification'!$F$8,\n_xlpm.Yr,TEXT(MOD(_xlfn.TEXTBEFORE(_xlpm.Contract,\"-\"),100),\"00\"),\n_xlpm.Program,_xlfn.TEXTAFTER(_xlfn.TEXTBEFORE(_xlpm.Contract,\"-\",2),\"-\"),\n_xlpm.CleanProgram,_xlfn.XLOOKUP(_xlpm.Program,SpellCheck[Input],SpellCheck[Correction],_xlpm.Program),\n_xlpm.Number,TEXT(_xlfn.TEXTAFTER(_xlpm.Contract,\"-\",2),\"0000\"),\n_xlfn.CONCAT(_xlpm.Yr,\"-\",_xlpm.CleanProgram,\"-\",_xlpm.Number))\n),\"\")","v":""},{"$f":"IF(A167=\"\",\"\",'1. Checklist & Certification'!$B$9)","v":""},{"$f":"IF(A167=\"\",\"\",'1. Checklist & Certification'!$F$9)","v":""},{"$f":"IF(A167=\"\",\"\",'1. Checklist & Certification'!$C$10)","v":""},{"$f":"IF(A167=\"\",\"\",'1. Checklist & Certification'!$C$11)","v":""},{"$f":"IF(A167=\"\",\"\",'1. Checklist & Certification'!$C$12)","v":""},{"$f":"IF(A167=\"\",\"\",'1. Checklist & Certification'!$B$14)","v":""},{"$f":"IF(A167=\"\",\"\",'1. Checklist & Certification'!$E$14)","v":""},{"$f":"IF(B167=\"\",\"\",'1. Checklist & Certification'!$G$14)","v":""},{"$f":"IF(A167=\"\",\"\",'MHP Family Income & Rent Limits'!$B$3)","v":""},{"$f":"IF(A167=\"\",\"\",'MHP Family Income & Rent Limits'!$J$3)","v":""},{"$f":"IF(A167=\"\",\"\",'MHP Family Income & Rent Limits'!$E$4)","v":""},{"$f":"IF(A167=\"\",\"\",'MHP Family Income & Rent Limits'!$C$7)","v":""},{"$f":"IF(A167=\"\",\"\",'MHP Family Income & Rent Limits'!$F$8)","v":""},{"$f":"IF(A167=\"\",\"\",'1. Checklist & Certification'!$G$4)","v":""},{"$f":"IF(A167=\"\",\"\",'1. Checklist & Certification'!$K$39)","v":""},{"$f":"IF(A167=\"\",\"\",'1. Checklist & Certification'!$K$43)","v":""},{"$f":"IF(A167=\"\",\"\",'1. Checklist & Certification'!$K$45)","v":""},{"$f":"IF(A167=\"\",\"\",'1. Checklist & Certification'!$K$49)","v":""},{"$f":"IF(A167=\"\",\"\",'1. Checklist & Certification'!$K$62)","v":""},{"$f":"IF(A167=\"\",\"\",'1. Checklist & Certification'!$E$66)","v":""},{"$f":"IF(A167=\"\",\"\",'1. Checklist & Certification'!$E$67)","v":""},{"$f":"IF(A167=\"\",\"\",'1. Checklist & Certification'!$E$68)","v":""},{"$f":"IF(A167=\"\",\"\",'1. Checklist & Certification'!$G$66)","v":""},{"$f":"IF(A167=\"\",\"\",'1. Checklist & Certification'!$H$66)","v":""},{"$f":"IF(A167=\"\",\"\",'1. Checklist & Certification'!$I$66)","v":""},{"$f":"IF(A167=\"\",\"\",'1. Checklist & Certification'!$I$67)","v":""},{"$f":"IF(A167=\"\",\"\",'1. Checklist & Certification'!$I$68)","v":""},{"$f":"IF(A167=\"\",\"\",'1. Checklist & Certification'!$B$69)","v":""},{"$f":"IF(A167=\"\",\"\",'1. Checklist & Certification'!$C$69)","v":""},{"$f":"IF(A167=\"\",\"\",'1. Checklist & Certification'!$F$69)","v":""},{"$f":"IF(A167=\"\",\"\",'1. Checklist & Certification'!$G$69)","v":""},{"$f":"IF(A167=\"\",\"\",'1. Checklist & Certification'!$J$69)","v":""},{"$f":"IF(A167=\"\",\"\",'1. Checklist & Certification'!$K$69)","v":""},null,null,{"$f":"IF(AND(OR('1. Checklist & Certification'!$M$16=1,'1. Checklist & Certification'!$M$19=2),AO167>0,B167=\"\",I167>0,AQ167<I167,AV167<>\"Sec 8-Project\"),\"X\",IF(AND(OR('1. Checklist & Certification'!$M$20=4,'1. Checklist & Certification'!$M$21=5,'1. Checklist & Certification'!$M$22=7),AO167>0,B167=\"\",I167>0,K167<I167),\"X\",\"\"))","v":""},{"$f":"IF(A167=\"\",\"\",IF(SUMPRODUCT(-- (ISNUMBER(SEARCH({\"*AHSC*\",\"*FMTW*\",\"*FWHG*\",\"*GHI*\",\"*HHC*\",\"*HLCP*\",\"*HOME*\",\"*LPR*\",\"*MHP*\",\"*NHTF*\",\"*NSP*\",\"*PRP*\",\"*TOD*\",\"*VHHP*\"},'1. Checklist & Certification'!$L$7)))),\"MHP\",\"Legacy\"))","v":""},",,",null,null,null,{"$f":"IF('1. Checklist & Certification'!$M$20=4,\"Both\",IF(OR('1. Checklist & Certification'!$M$15>0,S167=\"CHRP-R\",U167=\"CHRP-R\",W167=\"CHRP-R\",Y167=\"CHRP-R\"),\"Under\",\"No\"))","v":"No"},"No","No",{"$f":"_xlfn.IFS(D167=\"\",\"\",D167=1,'MHP Family Income & Rent Limits'!$E$17,D167=2,'MHP Family Income & Rent Limits'!$F$17,D167=3,'MHP Family Income & Rent Limits'!$G$17,D167=4,'MHP Family Income & Rent Limits'!$H$17,D167=5,'MHP Family Income & Rent Limits'!$I$17,D167=6,'MHP Family Income & Rent Limits'!$J$17,D167=7,'MHP Family Income & Rent Limits'!$K$17,D167=8,'MHP Family Income & Rent Limits'!$L$17)","v":""},"",{"$f":"IF(OR(A167=0,B167=\"X\"),0,MIN(IF(AA167:AD167<>0,AA167:AD167)))","v":0},{"$f":"IF(OR(H167=\"\",I167=\"\"),0,IF(H167*0.3/12>I167,MIN(H167*0.3/12,I167*1.1)+AP167,I167*(1+(VLOOKUP('1. Checklist & Certification'!$F$9,'HLCP-E Rent Change'!$A$1:$D$59,4,FALSE)))+AP167))","v":0}]
[null,null,null,null,null,null,null,null,null,null,null,null,null,null,null,null,null,null,null,null,null,null,null,null,null,null,0,0,0,0,0,0,0,0,{"$f":"IF(OR(A168=0,B168=\"X\"),0,IF(OR(S168=\"FHDP\",S168=\"RHCP-B\",U168=\"FHDP\",U168=\"RHCP-B\",W168=\"FHDP\",W168=\"RHCP-B\",Y168=\"FHDP\",Y168=\"RHCP-B\"),TRUNC((MIN(I168,K168)*(1+'1. Checklist & Certification'!$K$43)+AP168)),0))","v":0},{"$f":"IF(OR(A168=0,B168=\"X\"),0,IF(OR(S168=\"CHRP-R\",S168=\"SERA\",S168=\"SUHRP\",U168=\"CHRP-R\",U168=\"SERA\",U168=\"SUHRP\",W168=\"CHRP-R\",W168=\"SERA\",W168=\"SUHRP\",Y168=\"CHRP-R\",Y168=\"SERA\",Y168=\"SUHRP\"),TRUNC((MIN(I168,K168)*(1+'1. Checklist & Certification'!$K$49))),0))","v":0},{"$f":"IF(OR(A168=0,B168=\"X\"),0,IF(OR(S168=\"CALDAP\",S168=\"DPRLP\",U168=\"CALDAP\",U168=\"DPRLP\",W168=\"CALDAP\",W168=\"DPRLP\",Y168=\"CALDAP\",Y168=\"DPRLP\"),TRUNC(((MIN(I168,K168))*(1+'1. Checklist & Certification'!$G$4))),0))","v":0},0,0,0,{"$f":"IF(OR(A168=0,B168=\"X\"),0,IF(OR(S168=\"PRP\",S168=\"LPR\",U168=\"PRP\",U168=\"LPR\",W168=\"PRP\",W168=\"LPR\",Y168=\"PRP\",Y168=\"LPR\"),MAX(I168+AP168,MIN(IF(AE168:AN168<>0,AE168:AN168))),MIN(IF(AE168:AN168<>0,AE168:AN168))))","v":0},{"$f":"IF(A168=0,0,IF(AND(OR(S168=\"Mgr\",S168=0),OR(U168=\"Mgr\",U168=0),OR(W168=\"Mgr\",W168=0)),0,IF(LEFT($A168,2)=\"B*\",VLOOKUP($E168,'1. Checklist & Certification'!$D$26:$E$32,2),IF(LEFT($A168,2)=\"C*\",VLOOKUP($E168,'1. Checklist & Certification'!$F$26:$G$32,2),IF(LEFT($A168,2)=\"D*\",VLOOKUP($E168,'1. Checklist & Certification'!$H$26:$I$32,2),IF(LEFT($A168,2)=\"E*\",VLOOKUP($E168,'1. Checklist & Certification'!$J$26:$K$32,2),VLOOKUP($E168,'1. Checklist & Certification'!$A$26:$B$32,2)))))))","v":0},0,0,null,null,null,null,"","",0,0,0,null,{"$f":"IF(A168=\"\",\"\",'1. Checklist & Certification'!$K$1)","v":""},{"$f":"IF(A168=\"\",\"\",'1. Checklist & Certification'!$C$62)","v":""},{"$f":"IF(A168=\"\",\"\",'1. Checklist & Certification'!$C$6)","v":""},{"$f":"IF(A168=\"\",\"\",'1. Checklist & Certification'!$G$5)","v":""},{"$f":"IFERROR(IF(A168=\"\",\"\",\n_xlfn.LET(_xlpm.Contract,'1. Checklist & Certification'!$C$7,\n_xlpm.Yr,TEXT(MOD(_xlfn.TEXTBEFORE(_xlpm.Contract,\"-\"),100),\"00\"),\n_xlpm.Program,_xlfn.TEXTAFTER(_xlfn.TEXTBEFORE(_xlpm.Contract,\"-\",2),\"-\"),\n_xlpm.CleanProgram,_xlfn.XLOOKUP(_xlpm.Program,SpellCheck[Input],SpellCheck[Correction],_xlpm.Program),\n_xlpm.Number,TEXT(_xlfn.TEXTAFTER(_xlpm.Contract,\"-\",2),\"0000\"),\n_xlfn.CONCAT(_xlpm.Yr,\"-\",_xlpm.CleanProgram,\"-\",_xlpm.Number))\n),\"\")","v":""},{"$f":"IFERROR(IF(A168=\"\",\"\",\n_xlfn.LET(_xlpm.Contract,'1. Checklist & Certification'!$C$8,\n_xlpm.Yr,TEXT(MOD(_xlfn.TEXTBEFORE(_xlpm.Contract,\"-\"),100),\"00\"),\n_xlpm.Program,_xlfn.TEXTAFTER(_xlfn.TEXTBEFORE(_xlpm.Contract,\"-\",2),\"-\"),\n_xlpm.CleanProgram,_xlfn.XLOOKUP(_xlpm.Program,SpellCheck[Input],SpellCheck[Correction],_xlpm.Program),\n_xlpm.Number,TEXT(_xlfn.TEXTAFTER(_xlpm.Contract,\"-\",2),\"0000\"),\n_xlfn.CONCAT(_xlpm.Yr,\"-\",_xlpm.CleanProgram,\"-\",_xlpm.Number))\n),\"\")","v":""},{"$f":"IFERROR(IF(A168=\"\",\"\",\n_xlfn.LET(_xlpm.Contract,'1. Checklist & Certification'!$F$7,\n_xlpm.Yr,TEXT(MOD(_xlfn.TEXTBEFORE(_xlpm.Contract,\"-\"),100),\"00\"),\n_xlpm.Program,_xlfn.TEXTAFTER(_xlfn.TEXTBEFORE(_xlpm.Contract,\"-\",2),\"-\"),\n_xlpm.CleanProgram,_xlfn.XLOOKUP(_xlpm.Program,SpellCheck[Input],SpellCheck[Correction],_xlpm.Program),\n_xlpm.Number,TEXT(_xlfn.TEXTAFTER(_xlpm.Contract,\"-\",2),\"0000\"),\n_xlfn.CONCAT(_xlpm.Yr,\"-\",_xlpm.CleanProgram,\"-\",_xlpm.Number))\n),\"\")","v":""},{"$f":"IFERROR(IF(A168=\"\",\"\",\n_xlfn.LET(_xlpm.Contract,'1. Checklist & Certification'!$F$8,\n_xlpm.Yr,TEXT(MOD(_xlfn.TEXTBEFORE(_xlpm.Contract,\"-\"),100),\"00\"),\n_xlpm.Program,_xlfn.TEXTAFTER(_xlfn.TEXTBEFORE(_xlpm.Contract,\"-\",2),\"-\"),\n_xlpm.CleanProgram,_xlfn.XLOOKUP(_xlpm.Program,SpellCheck[Input],SpellCheck[Correction],_xlpm.Program),\n_xlpm.Number,TEXT(_xlfn.TEXTAFTER(_xlpm.Contract,\"-\",2),\"0000\"),\n_xlfn.CONCAT(_xlpm.Yr,\"-\",_xlpm.CleanProgram,\"-\",_xlpm.Number))\n),\"\")","v":""},{"$f":"IF(A168=\"\",\"\",'1. Checklist & Certification'!$B$9)","v":""},{"$f":"IF(A168=\"\",\"\",'1. Checklist & Certification'!$F$9)","v":""},{"$f":"IF(A168=\"\",\"\",'1. Checklist & Certification'!$C$10)","v":""},{"$f":"IF(A168=\"\",\"\",'1. Checklist & Certification'!$C$11)","v":""},{"$f":"IF(A168=\"\",\"\",'1. Checklist & Certification'!$C$12)","v":""},{"$f":"IF(A168=\"\",\"\",'1. Checklist & Certification'!$B$14)","v":""},{"$f":"IF(A168=\"\",\"\",'1. Checklist & Certification'!$E$14)","v":""},{"$f":"IF(B168=\"\",\"\",'1. Checklist & Certification'!$G$14)","v":""},{"$f":"IF(A168=\"\",\"\",'MHP Family Income & Rent Limits'!$B$3)","v":""},{"$f":"IF(A168=\"\",\"\",'MHP Family Income & Rent Limits'!$J$3)","v":""},{"$f":"IF(A168=\"\",\"\",'MHP Family Income & Rent Limits'!$E$4)","v":""},{"$f":"IF(A168=\"\",\"\",'MHP Family Income & Rent Limits'!$C$7)","v":""},{"$f":"IF(A168=\"\",\"\",'MHP Family Income & Rent Limits'!$F$8)","v":""},{"$f":"IF(A168=\"\",\"\",'1. Checklist & Certification'!$G$4)","v":""},{"$f":"IF(A168=\"\",\"\",'1. Checklist & Certification'!$K$39)","v":""},{"$f":"IF(A168=\"\",\"\",'1. Checklist & Certification'!$K$43)","v":""},{"$f":"IF(A168=\"\",\"\",'1. Checklist & Certification'!$K$45)","v":""},{"$f":"IF(A168=\"\",\"\",'1. Checklist & Certification'!$K$49)","v":""},{"$f":"IF(A168=\"\",\"\",'1. Checklist & Certification'!$K$62)","v":""},{"$f":"IF(A168=\"\",\"\",'1. Checklist & Certification'!$E$66)","v":""},{"$f":"IF(A168=\"\",\"\",'1. Checklist & Certification'!$E$67)","v":""},{"$f":"IF(A168=\"\",\"\",'1. Checklist & Certification'!$E$68)","v":""},{"$f":"IF(A168=\"\",\"\",'1. Checklist & Certification'!$G$66)","v":""},{"$f":"IF(A168=\"\",\"\",'1. Checklist & Certification'!$H$66)","v":""},{"$f":"IF(A168=\"\",\"\",'1. Checklist & Certification'!$I$66)","v":""},{"$f":"IF(A168=\"\",\"\",'1. Checklist & Certification'!$I$67)","v":""},{"$f":"IF(A168=\"\",\"\",'1. Checklist & Certification'!$I$68)","v":""},{"$f":"IF(A168=\"\",\"\",'1. Checklist & Certification'!$B$69)","v":""},{"$f":"IF(A168=\"\",\"\",'1. Checklist & Certification'!$C$69)","v":""},{"$f":"IF(A168=\"\",\"\",'1. Checklist & Certification'!$F$69)","v":""},{"$f":"IF(A168=\"\",\"\",'1. Checklist & Certification'!$G$69)","v":""},{"$f":"IF(A168=\"\",\"\",'1. Checklist & Certification'!$J$69)","v":""},{"$f":"IF(A168=\"\",\"\",'1. Checklist & Certification'!$K$69)","v":""},null,null,{"$f":"IF(AND(OR('1. Checklist & Certification'!$M$16=1,'1. Checklist & Certification'!$M$19=2),AO168>0,B168=\"\",I168>0,AQ168<I168,AV168<>\"Sec 8-Project\"),\"X\",IF(AND(OR('1. Checklist & Certification'!$M$20=4,'1. Checklist & Certification'!$M$21=5,'1. Checklist & Certification'!$M$22=7),AO168>0,B168=\"\",I168>0,K168<I168),\"X\",\"\"))","v":""},{"$f":"IF(A168=\"\",\"\",IF(SUMPRODUCT(-- (ISNUMBER(SEARCH({\"*AHSC*\",\"*FMTW*\",\"*FWHG*\",\"*GHI*\",\"*HHC*\",\"*HLCP*\",\"*HOME*\",\"*LPR*\",\"*MHP*\",\"*NHTF*\",\"*NSP*\",\"*PRP*\",\"*TOD*\",\"*VHHP*\"},'1. Checklist & Certification'!$L$7)))),\"MHP\",\"Legacy\"))","v":""},",,",null,null,null,{"$f":"IF('1. Checklist & Certification'!$M$20=4,\"Both\",IF(OR('1. Checklist & Certification'!$M$15>0,S168=\"CHRP-R\",U168=\"CHRP-R\",W168=\"CHRP-R\",Y168=\"CHRP-R\"),\"Under\",\"No\"))","v":"No"},"No","No",{"$f":"_xlfn.IFS(D168=\"\",\"\",D168=1,'MHP Family Income & Rent Limits'!$E$17,D168=2,'MHP Family Income & Rent Limits'!$F$17,D168=3,'MHP Family Income & Rent Limits'!$G$17,D168=4,'MHP Family Income & Rent Limits'!$H$17,D168=5,'MHP Family Income & Rent Limits'!$I$17,D168=6,'MHP Family Income & Rent Limits'!$J$17,D168=7,'MHP Family Income & Rent Limits'!$K$17,D168=8,'MHP Family Income & Rent Limits'!$L$17)","v":""},"",{"$f":"IF(OR(A168=0,B168=\"X\"),0,MIN(IF(AA168:AD168<>0,AA168:AD168)))","v":0},{"$f":"IF(OR(H168=\"\",I168=\"\"),0,IF(H168*0.3/12>I168,MIN(H168*0.3/12,I168*1.1)+AP168,I168*(1+(VLOOKUP('1. Checklist & Certification'!$F$9,'HLCP-E Rent Change'!$A$1:$D$59,4,FALSE)))+AP168))","v":0}]
[null,null,null,null,null,null,null,null,null,null,null,null,null,null,null,null,null,null,null,null,null,null,null,null,null,null,0,0,0,0,0,0,0,0,{"$f":"IF(OR(A169=0,B169=\"X\"),0,IF(OR(S169=\"FHDP\",S169=\"RHCP-B\",U169=\"FHDP\",U169=\"RHCP-B\",W169=\"FHDP\",W169=\"RHCP-B\",Y169=\"FHDP\",Y169=\"RHCP-B\"),TRUNC((MIN(I169,K169)*(1+'1. Checklist & Certification'!$K$43)+AP169)),0))","v":0},{"$f":"IF(OR(A169=0,B169=\"X\"),0,IF(OR(S169=\"CHRP-R\",S169=\"SERA\",S169=\"SUHRP\",U169=\"CHRP-R\",U169=\"SERA\",U169=\"SUHRP\",W169=\"CHRP-R\",W169=\"SERA\",W169=\"SUHRP\",Y169=\"CHRP-R\",Y169=\"SERA\",Y169=\"SUHRP\"),TRUNC((MIN(I169,K169)*(1+'1. Checklist & Certification'!$K$49))),0))","v":0},{"$f":"IF(OR(A169=0,B169=\"X\"),0,IF(OR(S169=\"CALDAP\",S169=\"DPRLP\",U169=\"CALDAP\",U169=\"DPRLP\",W169=\"CALDAP\",W169=\"DPRLP\",Y169=\"CALDAP\",Y169=\"DPRLP\"),TRUNC(((MIN(I169,K169))*(1+'1. Checklist & Certification'!$G$4))),0))","v":0},0,0,0,{"$f":"IF(OR(A169=0,B169=\"X\"),0,IF(OR(S169=\"PRP\",S169=\"LPR\",U169=\"PRP\",U169=\"LPR\",W169=\"PRP\",W169=\"LPR\",Y169=\"PRP\",Y169=\"LPR\"),MAX(I169+AP169,MIN(IF(AE169:AN169<>0,AE169:AN169))),MIN(IF(AE169:AN169<>0,AE169:AN169))))","v":0},{"$f":"IF(A169=0,0,IF(AND(OR(S169=\"Mgr\",S169=0),OR(U169=\"Mgr\",U169=0),OR(W169=\"Mgr\",W169=0)),0,IF(LEFT($A169,2)=\"B*\",VLOOKUP($E169,'1. Checklist & Certification'!$D$26:$E$32,2),IF(LEFT($A169,2)=\"C*\",VLOOKUP($E169,'1. Checklist & Certification'!$F$26:$G$32,2),IF(LEFT($A169,2)=\"D*\",VLOOKUP($E169,'1. Checklist & Certification'!$H$26:$I$32,2),IF(LEFT($A169,2)=\"E*\",VLOOKUP($E169,'1. Checklist & Certification'!$J$26:$K$32,2),VLOOKUP($E169,'1. Checklist & Certification'!$A$26:$B$32,2)))))))","v":0},0,0,null,null,null,null,"","",0,0,0,null,{"$f":"IF(A169=\"\",\"\",'1. Checklist & Certification'!$K$1)","v":""},{"$f":"IF(A169=\"\",\"\",'1. Checklist & Certification'!$C$62)","v":""},{"$f":"IF(A169=\"\",\"\",'1. Checklist & Certification'!$C$6)","v":""},{"$f":"IF(A169=\"\",\"\",'1. Checklist & Certification'!$G$5)","v":""},{"$f":"IFERROR(IF(A169=\"\",\"\",\n_xlfn.LET(_xlpm.Contract,'1. Checklist & Certification'!$C$7,\n_xlpm.Yr,TEXT(MOD(_xlfn.TEXTBEFORE(_xlpm.Contract,\"-\"),100),\"00\"),\n_xlpm.Program,_xlfn.TEXTAFTER(_xlfn.TEXTBEFORE(_xlpm.Contract,\"-\",2),\"-\"),\n_xlpm.CleanProgram,_xlfn.XLOOKUP(_xlpm.Program,SpellCheck[Input],SpellCheck[Correction],_xlpm.Program),\n_xlpm.Number,TEXT(_xlfn.TEXTAFTER(_xlpm.Contract,\"-\",2),\"0000\"),\n_xlfn.CONCAT(_xlpm.Yr,\"-\",_xlpm.CleanProgram,\"-\",_xlpm.Number))\n),\"\")","v":""},{"$f":"IFERROR(IF(A169=\"\",\"\",\n_xlfn.LET(_xlpm.Contract,'1. Checklist & Certification'!$C$8,\n_xlpm.Yr,TEXT(MOD(_xlfn.TEXTBEFORE(_xlpm.Contract,\"-\"),100),\"00\"),\n_xlpm.Program,_xlfn.TEXTAFTER(_xlfn.TEXTBEFORE(_xlpm.Contract,\"-\",2),\"-\"),\n_xlpm.CleanProgram,_xlfn.XLOOKUP(_xlpm.Program,SpellCheck[Input],SpellCheck[Correction],_xlpm.Program),\n_xlpm.Number,TEXT(_xlfn.TEXTAFTER(_xlpm.Contract,\"-\",2),\"0000\"),\n_xlfn.CONCAT(_xlpm.Yr,\"-\",_xlpm.CleanProgram,\"-\",_xlpm.Number))\n),\"\")","v":""},{"$f":"IFERROR(IF(A169=\"\",\"\",\n_xlfn.LET(_xlpm.Contract,'1. Checklist & Certification'!$F$7,\n_xlpm.Yr,TEXT(MOD(_xlfn.TEXTBEFORE(_xlpm.Contract,\"-\"),100),\"00\"),\n_xlpm.Program,_xlfn.TEXTAFTER(_xlfn.TEXTBEFORE(_xlpm.Contract,\"-\",2),\"-\"),\n_xlpm.CleanProgram,_xlfn.XLOOKUP(_xlpm.Program,SpellCheck[Input],SpellCheck[Correction],_xlpm.Program),\n_xlpm.Number,TEXT(_xlfn.TEXTAFTER(_xlpm.Contract,\"-\",2),\"0000\"),\n_xlfn.CONCAT(_xlpm.Yr,\"-\",_xlpm.CleanProgram,\"-\",_xlpm.Number))\n),\"\")","v":""},{"$f":"IFERROR(IF(A169=\"\",\"\",\n_xlfn.LET(_xlpm.Contract,'1. Checklist & Certification'!$F$8,\n_xlpm.Yr,TEXT(MOD(_xlfn.TEXTBEFORE(_xlpm.Contract,\"-\"),100),\"00\"),\n_xlpm.Program,_xlfn.TEXTAFTER(_xlfn.TEXTBEFORE(_xlpm.Contract,\"-\",2),\"-\"),\n_xlpm.CleanProgram,_xlfn.XLOOKUP(_xlpm.Program,SpellCheck[Input],SpellCheck[Correction],_xlpm.Program),\n_xlpm.Number,TEXT(_xlfn.TEXTAFTER(_xlpm.Contract,\"-\",2),\"0000\"),\n_xlfn.CONCAT(_xlpm.Yr,\"-\",_xlpm.CleanProgram,\"-\",_xlpm.Number))\n),\"\")","v":""},{"$f":"IF(A169=\"\",\"\",'1. Checklist & Certification'!$B$9)","v":""},{"$f":"IF(A169=\"\",\"\",'1. Checklist & Certification'!$F$9)","v":""},{"$f":"IF(A169=\"\",\"\",'1. Checklist & Certification'!$C$10)","v":""},{"$f":"IF(A169=\"\",\"\",'1. Checklist & Certification'!$C$11)","v":""},{"$f":"IF(A169=\"\",\"\",'1. Checklist & Certification'!$C$12)","v":""},{"$f":"IF(A169=\"\",\"\",'1. Checklist & Certification'!$B$14)","v":""},{"$f":"IF(A169=\"\",\"\",'1. Checklist & Certification'!$E$14)","v":""},{"$f":"IF(B169=\"\",\"\",'1. Checklist & Certification'!$G$14)","v":""},{"$f":"IF(A169=\"\",\"\",'MHP Family Income & Rent Limits'!$B$3)","v":""},{"$f":"IF(A169=\"\",\"\",'MHP Family Income & Rent Limits'!$J$3)","v":""},{"$f":"IF(A169=\"\",\"\",'MHP Family Income & Rent Limits'!$E$4)","v":""},{"$f":"IF(A169=\"\",\"\",'MHP Family Income & Rent Limits'!$C$7)","v":""},{"$f":"IF(A169=\"\",\"\",'MHP Family Income & Rent Limits'!$F$8)","v":""},{"$f":"IF(A169=\"\",\"\",'1. Checklist & Certification'!$G$4)","v":""},{"$f":"IF(A169=\"\",\"\",'1. Checklist & Certification'!$K$39)","v":""},{"$f":"IF(A169=\"\",\"\",'1. Checklist & Certification'!$K$43)","v":""},{"$f":"IF(A169=\"\",\"\",'1. Checklist & Certification'!$K$45)","v":""},{"$f":"IF(A169=\"\",\"\",'1. Checklist & Certification'!$K$49)","v":""},{"$f":"IF(A169=\"\",\"\",'1. Checklist & Certification'!$K$62)","v":""},{"$f":"IF(A169=\"\",\"\",'1. Checklist & Certification'!$E$66)","v":""},{"$f":"IF(A169=\"\",\"\",'1. Checklist & Certification'!$E$67)","v":""},{"$f":"IF(A169=\"\",\"\",'1. Checklist & Certification'!$E$68)","v":""},{"$f":"IF(A169=\"\",\"\",'1. Checklist & Certification'!$G$66)","v":""},{"$f":"IF(A169=\"\",\"\",'1. Checklist & Certification'!$H$66)","v":""},{"$f":"IF(A169=\"\",\"\",'1. Checklist & Certification'!$I$66)","v":""},{"$f":"IF(A169=\"\",\"\",'1. Checklist & Certification'!$I$67)","v":""},{"$f":"IF(A169=\"\",\"\",'1. Checklist & Certification'!$I$68)","v":""},{"$f":"IF(A169=\"\",\"\",'1. Checklist & Certification'!$B$69)","v":""},{"$f":"IF(A169=\"\",\"\",'1. Checklist & Certification'!$C$69)","v":""},{"$f":"IF(A169=\"\",\"\",'1. Checklist & Certification'!$F$69)","v":""},{"$f":"IF(A169=\"\",\"\",'1. Checklist & Certification'!$G$69)","v":""},{"$f":"IF(A169=\"\",\"\",'1. Checklist & Certification'!$J$69)","v":""},{"$f":"IF(A169=\"\",\"\",'1. Checklist & Certification'!$K$69)","v":""},null,null,{"$f":"IF(AND(OR('1. Checklist & Certification'!$M$16=1,'1. Checklist & Certification'!$M$19=2),AO169>0,B169=\"\",I169>0,AQ169<I169,AV169<>\"Sec 8-Project\"),\"X\",IF(AND(OR('1. Checklist & Certification'!$M$20=4,'1. Checklist & Certification'!$M$21=5,'1. Checklist & Certification'!$M$22=7),AO169>0,B169=\"\",I169>0,K169<I169),\"X\",\"\"))","v":""},{"$f":"IF(A169=\"\",\"\",IF(SUMPRODUCT(-- (ISNUMBER(SEARCH({\"*AHSC*\",\"*FMTW*\",\"*FWHG*\",\"*GHI*\",\"*HHC*\",\"*HLCP*\",\"*HOME*\",\"*LPR*\",\"*MHP*\",\"*NHTF*\",\"*NSP*\",\"*PRP*\",\"*TOD*\",\"*VHHP*\"},'1. Checklist & Certification'!$L$7)))),\"MHP\",\"Legacy\"))","v":""},",,",null,null,null,{"$f":"IF('1. Checklist & Certification'!$M$20=4,\"Both\",IF(OR('1. Checklist & Certification'!$M$15>0,S169=\"CHRP-R\",U169=\"CHRP-R\",W169=\"CHRP-R\",Y169=\"CHRP-R\"),\"Under\",\"No\"))","v":"No"},"No","No",{"$f":"_xlfn.IFS(D169=\"\",\"\",D169=1,'MHP Family Income & Rent Limits'!$E$17,D169=2,'MHP Family Income & Rent Limits'!$F$17,D169=3,'MHP Family Income & Rent Limits'!$G$17,D169=4,'MHP Family Income & Rent Limits'!$H$17,D169=5,'MHP Family Income & Rent Limits'!$I$17,D169=6,'MHP Family Income & Rent Limits'!$J$17,D169=7,'MHP Family Income & Rent Limits'!$K$17,D169=8,'MHP Family Income & Rent Limits'!$L$17)","v":""},"",{"$f":"IF(OR(A169=0,B169=\"X\"),0,MIN(IF(AA169:AD169<>0,AA169:AD169)))","v":0},{"$f":"IF(OR(H169=\"\",I169=\"\"),0,IF(H169*0.3/12>I169,MIN(H169*0.3/12,I169*1.1)+AP169,I169*(1+(VLOOKUP('1. Checklist & Certification'!$F$9,'HLCP-E Rent Change'!$A$1:$D$59,4,FALSE)))+AP169))","v":0}]
[null,null,null,null,null,null,null,null,null,null,null,null,null,null,null,null,null,null,null,null,null,null,null,null,null,null,0,0,0,0,0,0,0,0,{"$f":"IF(OR(A170=0,B170=\"X\"),0,IF(OR(S170=\"FHDP\",S170=\"RHCP-B\",U170=\"FHDP\",U170=\"RHCP-B\",W170=\"FHDP\",W170=\"RHCP-B\",Y170=\"FHDP\",Y170=\"RHCP-B\"),TRUNC((MIN(I170,K170)*(1+'1. Checklist & Certification'!$K$43)+AP170)),0))","v":0},{"$f":"IF(OR(A170=0,B170=\"X\"),0,IF(OR(S170=\"CHRP-R\",S170=\"SERA\",S170=\"SUHRP\",U170=\"CHRP-R\",U170=\"SERA\",U170=\"SUHRP\",W170=\"CHRP-R\",W170=\"SERA\",W170=\"SUHRP\",Y170=\"CHRP-R\",Y170=\"SERA\",Y170=\"SUHRP\"),TRUNC((MIN(I170,K170)*(1+'1. Checklist & Certification'!$K$49))),0))","v":0},{"$f":"IF(OR(A170=0,B170=\"X\"),0,IF(OR(S170=\"CALDAP\",S170=\"DPRLP\",U170=\"CALDAP\",U170=\"DPRLP\",W170=\"CALDAP\",W170=\"DPRLP\",Y170=\"CALDAP\",Y170=\"DPRLP\"),TRUNC(((MIN(I170,K170))*(1+'1. Checklist & Certification'!$G$4))),0))","v":0},0,0,0,{"$f":"IF(OR(A170=0,B170=\"X\"),0,IF(OR(S170=\"PRP\",S170=\"LPR\",U170=\"PRP\",U170=\"LPR\",W170=\"PRP\",W170=\"LPR\",Y170=\"PRP\",Y170=\"LPR\"),MAX(I170+AP170,MIN(IF(AE170:AN170<>0,AE170:AN170))),MIN(IF(AE170:AN170<>0,AE170:AN170))))","v":0},{"$f":"IF(A170=0,0,IF(AND(OR(S170=\"Mgr\",S170=0),OR(U170=\"Mgr\",U170=0),OR(W170=\"Mgr\",W170=0)),0,IF(LEFT($A170,2)=\"B*\",VLOOKUP($E170,'1. Checklist & Certification'!$D$26:$E$32,2),IF(LEFT($A170,2)=\"C*\",VLOOKUP($E170,'1. Checklist & Certification'!$F$26:$G$32,2),IF(LEFT($A170,2)=\"D*\",VLOOKUP($E170,'1. Checklist & Certification'!$H$26:$I$32,2),IF(LEFT($A170,2)=\"E*\",VLOOKUP($E170,'1. Checklist & Certification'!$J$26:$K$32,2),VLOOKUP($E170,'1. Checklist & Certification'!$A$26:$B$32,2)))))))","v":0},0,0,null,null,null,null,"","",0,0,0,null,{"$f":"IF(A170=\"\",\"\",'1. Checklist & Certification'!$K$1)","v":""},{"$f":"IF(A170=\"\",\"\",'1. Checklist & Certification'!$C$62)","v":""},{"$f":"IF(A170=\"\",\"\",'1. Checklist & Certification'!$C$6)","v":""},{"$f":"IF(A170=\"\",\"\",'1. Checklist & Certification'!$G$5)","v":""},{"$f":"IFERROR(IF(A170=\"\",\"\",\n_xlfn.LET(_xlpm.Contract,'1. Checklist & Certification'!$C$7,\n_xlpm.Yr,TEXT(MOD(_xlfn.TEXTBEFORE(_xlpm.Contract,\"-\"),100),\"00\"),\n_xlpm.Program,_xlfn.TEXTAFTER(_xlfn.TEXTBEFORE(_xlpm.Contract,\"-\",2),\"-\"),\n_xlpm.CleanProgram,_xlfn.XLOOKUP(_xlpm.Program,SpellCheck[Input],SpellCheck[Correction],_xlpm.Program),\n_xlpm.Number,TEXT(_xlfn.TEXTAFTER(_xlpm.Contract,\"-\",2),\"0000\"),\n_xlfn.CONCAT(_xlpm.Yr,\"-\",_xlpm.CleanProgram,\"-\",_xlpm.Number))\n),\"\")","v":""},{"$f":"IFERROR(IF(A170=\"\",\"\",\n_xlfn.LET(_xlpm.Contract,'1. Checklist & Certification'!$C$8,\n_xlpm.Yr,TEXT(MOD(_xlfn.TEXTBEFORE(_xlpm.Contract,\"-\"),100),\"00\"),\n_xlpm.Program,_xlfn.TEXTAFTER(_xlfn.TEXTBEFORE(_xlpm.Contract,\"-\",2),\"-\"),\n_xlpm.CleanProgram,_xlfn.XLOOKUP(_xlpm.Program,SpellCheck[Input],SpellCheck[Correction],_xlpm.Program),\n_xlpm.Number,TEXT(_xlfn.TEXTAFTER(_xlpm.Contract,\"-\",2),\"0000\"),\n_xlfn.CONCAT(_xlpm.Yr,\"-\",_xlpm.CleanProgram,\"-\",_xlpm.Number))\n),\"\")","v":""},{"$f":"IFERROR(IF(A170=\"\",\"\",\n_xlfn.LET(_xlpm.Contract,'1. Checklist & Certification'!$F$7,\n_xlpm.Yr,TEXT(MOD(_xlfn.TEXTBEFORE(_xlpm.Contract,\"-\"),100),\"00\"),\n_xlpm.Program,_xlfn.TEXTAFTER(_xlfn.TEXTBEFORE(_xlpm.Contract,\"-\",2),\"-\"),\n_xlpm.CleanProgram,_xlfn.XLOOKUP(_xlpm.Program,SpellCheck[Input],SpellCheck[Correction],_xlpm.Program),\n_xlpm.Number,TEXT(_xlfn.TEXTAFTER(_xlpm.Contract,\"-\",2),\"0000\"),\n_xlfn.CONCAT(_xlpm.Yr,\"-\",_xlpm.CleanProgram,\"-\",_xlpm.Number))\n),\"\")","v":""},{"$f":"IFERROR(IF(A170=\"\",\"\",\n_xlfn.LET(_xlpm.Contract,'1. Checklist & Certification'!$F$8,\n_xlpm.Yr,TEXT(MOD(_xlfn.TEXTBEFORE(_xlpm.Contract,\"-\"),100),\"00\"),\n_xlpm.Program,_xlfn.TEXTAFTER(_xlfn.TEXTBEFORE(_xlpm.Contract,\"-\",2),\"-\"),\n_xlpm.CleanProgram,_xlfn.XLOOKUP(_xlpm.Program,SpellCheck[Input],SpellCheck[Correction],_xlpm.Program),\n_xlpm.Number,TEXT(_xlfn.TEXTAFTER(_xlpm.Contract,\"-\",2),\"0000\"),\n_xlfn.CONCAT(_xlpm.Yr,\"-\",_xlpm.CleanProgram,\"-\",_xlpm.Number))\n),\"\")","v":""},{"$f":"IF(A170=\"\",\"\",'1. Checklist & Certification'!$B$9)","v":""},{"$f":"IF(A170=\"\",\"\",'1. Checklist & Certification'!$F$9)","v":""},{"$f":"IF(A170=\"\",\"\",'1. Checklist & Certification'!$C$10)","v":""},{"$f":"IF(A170=\"\",\"\",'1. Checklist & Certification'!$C$11)","v":""},{"$f":"IF(A170=\"\",\"\",'1. Checklist & Certification'!$C$12)","v":""},{"$f":"IF(A170=\"\",\"\",'1. Checklist & Certification'!$B$14)","v":""},{"$f":"IF(A170=\"\",\"\",'1. Checklist & Certification'!$E$14)","v":""},{"$f":"IF(B170=\"\",\"\",'1. Checklist & Certification'!$G$14)","v":""},{"$f":"IF(A170=\"\",\"\",'MHP Family Income & Rent Limits'!$B$3)","v":""},{"$f":"IF(A170=\"\",\"\",'MHP Family Income & Rent Limits'!$J$3)","v":""},{"$f":"IF(A170=\"\",\"\",'MHP Family Income & Rent Limits'!$E$4)","v":""},{"$f":"IF(A170=\"\",\"\",'MHP Family Income & Rent Limits'!$C$7)","v":""},{"$f":"IF(A170=\"\",\"\",'MHP Family Income & Rent Limits'!$F$8)","v":""},{"$f":"IF(A170=\"\",\"\",'1. Checklist & Certification'!$G$4)","v":""},{"$f":"IF(A170=\"\",\"\",'1. Checklist & Certification'!$K$39)","v":""},{"$f":"IF(A170=\"\",\"\",'1. Checklist & Certification'!$K$43)","v":""},{"$f":"IF(A170=\"\",\"\",'1. Checklist & Certification'!$K$45)","v":""},{"$f":"IF(A170=\"\",\"\",'1. Checklist & Certification'!$K$49)","v":""},{"$f":"IF(A170=\"\",\"\",'1. Checklist & Certification'!$K$62)","v":""},{"$f":"IF(A170=\"\",\"\",'1. Checklist & Certification'!$E$66)","v":""},{"$f":"IF(A170=\"\",\"\",'1. Checklist & Certification'!$E$67)","v":""},{"$f":"IF(A170=\"\",\"\",'1. Checklist & Certification'!$E$68)","v":""},{"$f":"IF(A170=\"\",\"\",'1. Checklist & Certification'!$G$66)","v":""},{"$f":"IF(A170=\"\",\"\",'1. Checklist & Certification'!$H$66)","v":""},{"$f":"IF(A170=\"\",\"\",'1. Checklist & Certification'!$I$66)","v":""},{"$f":"IF(A170=\"\",\"\",'1. Checklist & Certification'!$I$67)","v":""},{"$f":"IF(A170=\"\",\"\",'1. Checklist & Certification'!$I$68)","v":""},{"$f":"IF(A170=\"\",\"\",'1. Checklist & Certification'!$B$69)","v":""},{"$f":"IF(A170=\"\",\"\",'1. Checklist & Certification'!$C$69)","v":""},{"$f":"IF(A170=\"\",\"\",'1. Checklist & Certification'!$F$69)","v":""},{"$f":"IF(A170=\"\",\"\",'1. Checklist & Certification'!$G$69)","v":""},{"$f":"IF(A170=\"\",\"\",'1. Checklist & Certification'!$J$69)","v":""},{"$f":"IF(A170=\"\",\"\",'1. Checklist & Certification'!$K$69)","v":""},null,null,{"$f":"IF(AND(OR('1. Checklist & Certification'!$M$16=1,'1. Checklist & Certification'!$M$19=2),AO170>0,B170=\"\",I170>0,AQ170<I170,AV170<>\"Sec 8-Project\"),\"X\",IF(AND(OR('1. Checklist & Certification'!$M$20=4,'1. Checklist & Certification'!$M$21=5,'1. Checklist & Certification'!$M$22=7),AO170>0,B170=\"\",I170>0,K170<I170),\"X\",\"\"))","v":""},{"$f":"IF(A170=\"\",\"\",IF(SUMPRODUCT(-- (ISNUMBER(SEARCH({\"*AHSC*\",\"*FMTW*\",\"*FWHG*\",\"*GHI*\",\"*HHC*\",\"*HLCP*\",\"*HOME*\",\"*LPR*\",\"*MHP*\",\"*NHTF*\",\"*NSP*\",\"*PRP*\",\"*TOD*\",\"*VHHP*\"},'1. Checklist & Certification'!$L$7)))),\"MHP\",\"Legacy\"))","v":""},",,",null,null,null,{"$f":"IF('1. Checklist & Certification'!$M$20=4,\"Both\",IF(OR('1. Checklist & Certification'!$M$15>0,S170=\"CHRP-R\",U170=\"CHRP-R\",W170=\"CHRP-R\",Y170=\"CHRP-R\"),\"Under\",\"No\"))","v":"No"},"No","No",{"$f":"_xlfn.IFS(D170=\"\",\"\",D170=1,'MHP Family Income & Rent Limits'!$E$17,D170=2,'MHP Family Income & Rent Limits'!$F$17,D170=3,'MHP Family Income & Rent Limits'!$G$17,D170=4,'MHP Family Income & Rent Limits'!$H$17,D170=5,'MHP Family Income & Rent Limits'!$I$17,D170=6,'MHP Family Income & Rent Limits'!$J$17,D170=7,'MHP Family Income & Rent Limits'!$K$17,D170=8,'MHP Family Income & Rent Limits'!$L$17)","v":""},"",{"$f":"IF(OR(A170=0,B170=\"X\"),0,MIN(IF(AA170:AD170<>0,AA170:AD170)))","v":0},{"$f":"IF(OR(H170=\"\",I170=\"\"),0,IF(H170*0.3/12>I170,MIN(H170*0.3/12,I170*1.1)+AP170,I170*(1+(VLOOKUP('1. Checklist & Certification'!$F$9,'HLCP-E Rent Change'!$A$1:$D$59,4,FALSE)))+AP170))","v":0}]
[null,null,null,null,null,null,null,null,null,null,null,null,null,null,null,null,null,null,null,null,null,null,null,null,null,null,0,0,0,0,0,0,0,0,{"$f":"IF(OR(A171=0,B171=\"X\"),0,IF(OR(S171=\"FHDP\",S171=\"RHCP-B\",U171=\"FHDP\",U171=\"RHCP-B\",W171=\"FHDP\",W171=\"RHCP-B\",Y171=\"FHDP\",Y171=\"RHCP-B\"),TRUNC((MIN(I171,K171)*(1+'1. Checklist & Certification'!$K$43)+AP171)),0))","v":0},{"$f":"IF(OR(A171=0,B171=\"X\"),0,IF(OR(S171=\"CHRP-R\",S171=\"SERA\",S171=\"SUHRP\",U171=\"CHRP-R\",U171=\"SERA\",U171=\"SUHRP\",W171=\"CHRP-R\",W171=\"SERA\",W171=\"SUHRP\",Y171=\"CHRP-R\",Y171=\"SERA\",Y171=\"SUHRP\"),TRUNC((MIN(I171,K171)*(1+'1. Checklist & Certification'!$K$49))),0))","v":0},{"$f":"IF(OR(A171=0,B171=\"X\"),0,IF(OR(S171=\"CALDAP\",S171=\"DPRLP\",U171=\"CALDAP\",U171=\"DPRLP\",W171=\"CALDAP\",W171=\"DPRLP\",Y171=\"CALDAP\",Y171=\"DPRLP\"),TRUNC(((MIN(I171,K171))*(1+'1. Checklist & Certification'!$G$4))),0))","v":0},0,0,0,{"$f":"IF(OR(A171=0,B171=\"X\"),0,IF(OR(S171=\"PRP\",S171=\"LPR\",U171=\"PRP\",U171=\"LPR\",W171=\"PRP\",W171=\"LPR\",Y171=\"PRP\",Y171=\"LPR\"),MAX(I171+AP171,MIN(IF(AE171:AN171<>0,AE171:AN171))),MIN(IF(AE171:AN171<>0,AE171:AN171))))","v":0},{"$f":"IF(A171=0,0,IF(AND(OR(S171=\"Mgr\",S171=0),OR(U171=\"Mgr\",U171=0),OR(W171=\"Mgr\",W171=0)),0,IF(LEFT($A171,2)=\"B*\",VLOOKUP($E171,'1. Checklist & Certification'!$D$26:$E$32,2),IF(LEFT($A171,2)=\"C*\",VLOOKUP($E171,'1. Checklist & Certification'!$F$26:$G$32,2),IF(LEFT($A171,2)=\"D*\",VLOOKUP($E171,'1. Checklist & Certification'!$H$26:$I$32,2),IF(LEFT($A171,2)=\"E*\",VLOOKUP($E171,'1. Checklist & Certification'!$J$26:$K$32,2),VLOOKUP($E171,'1. Checklist & Certification'!$A$26:$B$32,2)))))))","v":0},0,0,null,null,null,null,"","",0,0,0,null,{"$f":"IF(A171=\"\",\"\",'1. Checklist & Certification'!$K$1)","v":""},{"$f":"IF(A171=\"\",\"\",'1. Checklist & Certification'!$C$62)","v":""},{"$f":"IF(A171=\"\",\"\",'1. Checklist & Certification'!$C$6)","v":""},{"$f":"IF(A171=\"\",\"\",'1. Checklist & Certification'!$G$5)","v":""},{"$f":"IFERROR(IF(A171=\"\",\"\",\n_xlfn.LET(_xlpm.Contract,'1. Checklist & Certification'!$C$7,\n_xlpm.Yr,TEXT(MOD(_xlfn.TEXTBEFORE(_xlpm.Contract,\"-\"),100),\"00\"),\n_xlpm.Program,_xlfn.TEXTAFTER(_xlfn.TEXTBEFORE(_xlpm.Contract,\"-\",2),\"-\"),\n_xlpm.CleanProgram,_xlfn.XLOOKUP(_xlpm.Program,SpellCheck[Input],SpellCheck[Correction],_xlpm.Program),\n_xlpm.Number,TEXT(_xlfn.TEXTAFTER(_xlpm.Contract,\"-\",2),\"0000\"),\n_xlfn.CONCAT(_xlpm.Yr,\"-\",_xlpm.CleanProgram,\"-\",_xlpm.Number))\n),\"\")","v":""},{"$f":"IFERROR(IF(A171=\"\",\"\",\n_xlfn.LET(_xlpm.Contract,'1. Checklist & Certification'!$C$8,\n_xlpm.Yr,TEXT(MOD(_xlfn.TEXTBEFORE(_xlpm.Contract,\"-\"),100),\"00\"),\n_xlpm.Program,_xlfn.TEXTAFTER(_xlfn.TEXTBEFORE(_xlpm.Contract,\"-\",2),\"-\"),\n_xlpm.CleanProgram,_xlfn.XLOOKUP(_xlpm.Program,SpellCheck[Input],SpellCheck[Correction],_xlpm.Program),\n_xlpm.Number,TEXT(_xlfn.TEXTAFTER(_xlpm.Contract,\"-\",2),\"0000\"),\n_xlfn.CONCAT(_xlpm.Yr,\"-\",_xlpm.CleanProgram,\"-\",_xlpm.Number))\n),\"\")","v":""},{"$f":"IFERROR(IF(A171=\"\",\"\",\n_xlfn.LET(_xlpm.Contract,'1. Checklist & Certification'!$F$7,\n_xlpm.Yr,TEXT(MOD(_xlfn.TEXTBEFORE(_xlpm.Contract,\"-\"),100),\"00\"),\n_xlpm.Program,_xlfn.TEXTAFTER(_xlfn.TEXTBEFORE(_xlpm.Contract,\"-\",2),\"-\"),\n_xlpm.CleanProgram,_xlfn.XLOOKUP(_xlpm.Program,SpellCheck[Input],SpellCheck[Correction],_xlpm.Program),\n_xlpm.Number,TEXT(_xlfn.TEXTAFTER(_xlpm.Contract,\"-\",2),\"0000\"),\n_xlfn.CONCAT(_xlpm.Yr,\"-\",_xlpm.CleanProgram,\"-\",_xlpm.Number))\n),\"\")","v":""},{"$f":"IFERROR(IF(A171=\"\",\"\",\n_xlfn.LET(_xlpm.Contract,'1. Checklist & Certification'!$F$8,\n_xlpm.Yr,TEXT(MOD(_xlfn.TEXTBEFORE(_xlpm.Contract,\"-\"),100),\"00\"),\n_xlpm.Program,_xlfn.TEXTAFTER(_xlfn.TEXTBEFORE(_xlpm.Contract,\"-\",2),\"-\"),\n_xlpm.CleanProgram,_xlfn.XLOOKUP(_xlpm.Program,SpellCheck[Input],SpellCheck[Correction],_xlpm.Program),\n_xlpm.Number,TEXT(_xlfn.TEXTAFTER(_xlpm.Contract,\"-\",2),\"0000\"),\n_xlfn.CONCAT(_xlpm.Yr,\"-\",_xlpm.CleanProgram,\"-\",_xlpm.Number))\n),\"\")","v":""},{"$f":"IF(A171=\"\",\"\",'1. Checklist & Certification'!$B$9)","v":""},{"$f":"IF(A171=\"\",\"\",'1. Checklist & Certification'!$F$9)","v":""},{"$f":"IF(A171=\"\",\"\",'1. Checklist & Certification'!$C$10)","v":""},{"$f":"IF(A171=\"\",\"\",'1. Checklist & Certification'!$C$11)","v":""},{"$f":"IF(A171=\"\",\"\",'1. Checklist & Certification'!$C$12)","v":""},{"$f":"IF(A171=\"\",\"\",'1. Checklist & Certification'!$B$14)","v":""},{"$f":"IF(A171=\"\",\"\",'1. Checklist & Certification'!$E$14)","v":""},{"$f":"IF(B171=\"\",\"\",'1. Checklist & Certification'!$G$14)","v":""},{"$f":"IF(A171=\"\",\"\",'MHP Family Income & Rent Limits'!$B$3)","v":""},{"$f":"IF(A171=\"\",\"\",'MHP Family Income & Rent Limits'!$J$3)","v":""},{"$f":"IF(A171=\"\",\"\",'MHP Family Income & Rent Limits'!$E$4)","v":""},{"$f":"IF(A171=\"\",\"\",'MHP Family Income & Rent Limits'!$C$7)","v":""},{"$f":"IF(A171=\"\",\"\",'MHP Family Income & Rent Limits'!$F$8)","v":""},{"$f":"IF(A171=\"\",\"\",'1. Checklist & Certification'!$G$4)","v":""},{"$f":"IF(A171=\"\",\"\",'1. Checklist & Certification'!$K$39)","v":""},{"$f":"IF(A171=\"\",\"\",'1. Checklist & Certification'!$K$43)","v":""},{"$f":"IF(A171=\"\",\"\",'1. Checklist & Certification'!$K$45)","v":""},{"$f":"IF(A171=\"\",\"\",'1. Checklist & Certification'!$K$49)","v":""},{"$f":"IF(A171=\"\",\"\",'1. Checklist & Certification'!$K$62)","v":""},{"$f":"IF(A171=\"\",\"\",'1. Checklist & Certification'!$E$66)","v":""},{"$f":"IF(A171=\"\",\"\",'1. Checklist & Certification'!$E$67)","v":""},{"$f":"IF(A171=\"\",\"\",'1. Checklist & Certification'!$E$68)","v":""},{"$f":"IF(A171=\"\",\"\",'1. Checklist & Certification'!$G$66)","v":""},{"$f":"IF(A171=\"\",\"\",'1. Checklist & Certification'!$H$66)","v":""},{"$f":"IF(A171=\"\",\"\",'1. Checklist & Certification'!$I$66)","v":""},{"$f":"IF(A171=\"\",\"\",'1. Checklist & Certification'!$I$67)","v":""},{"$f":"IF(A171=\"\",\"\",'1. Checklist & Certification'!$I$68)","v":""},{"$f":"IF(A171=\"\",\"\",'1. Checklist & Certification'!$B$69)","v":""},{"$f":"IF(A171=\"\",\"\",'1. Checklist & Certification'!$C$69)","v":""},{"$f":"IF(A171=\"\",\"\",'1. Checklist & Certification'!$F$69)","v":""},{"$f":"IF(A171=\"\",\"\",'1. Checklist & Certification'!$G$69)","v":""},{"$f":"IF(A171=\"\",\"\",'1. Checklist & Certification'!$J$69)","v":""},{"$f":"IF(A171=\"\",\"\",'1. Checklist & Certification'!$K$69)","v":""},null,null,{"$f":"IF(AND(OR('1. Checklist & Certification'!$M$16=1,'1. Checklist & Certification'!$M$19=2),AO171>0,B171=\"\",I171>0,AQ171<I171,AV171<>\"Sec 8-Project\"),\"X\",IF(AND(OR('1. Checklist & Certification'!$M$20=4,'1. Checklist & Certification'!$M$21=5,'1. Checklist & Certification'!$M$22=7),AO171>0,B171=\"\",I171>0,K171<I171),\"X\",\"\"))","v":""},{"$f":"IF(A171=\"\",\"\",IF(SUMPRODUCT(-- (ISNUMBER(SEARCH({\"*AHSC*\",\"*FMTW*\",\"*FWHG*\",\"*GHI*\",\"*HHC*\",\"*HLCP*\",\"*HOME*\",\"*LPR*\",\"*MHP*\",\"*NHTF*\",\"*NSP*\",\"*PRP*\",\"*TOD*\",\"*VHHP*\"},'1. Checklist & Certification'!$L$7)))),\"MHP\",\"Legacy\"))","v":""},",,",null,null,null,{"$f":"IF('1. Checklist & Certification'!$M$20=4,\"Both\",IF(OR('1. Checklist & Certification'!$M$15>0,S171=\"CHRP-R\",U171=\"CHRP-R\",W171=\"CHRP-R\",Y171=\"CHRP-R\"),\"Under\",\"No\"))","v":"No"},"No","No",{"$f":"_xlfn.IFS(D171=\"\",\"\",D171=1,'MHP Family Income & Rent Limits'!$E$17,D171=2,'MHP Family Income & Rent Limits'!$F$17,D171=3,'MHP Family Income & Rent Limits'!$G$17,D171=4,'MHP Family Income & Rent Limits'!$H$17,D171=5,'MHP Family Income & Rent Limits'!$I$17,D171=6,'MHP Family Income & Rent Limits'!$J$17,D171=7,'MHP Family Income & Rent Limits'!$K$17,D171=8,'MHP Family Income & Rent Limits'!$L$17)","v":""},"",{"$f":"IF(OR(A171=0,B171=\"X\"),0,MIN(IF(AA171:AD171<>0,AA171:AD171)))","v":0},{"$f":"IF(OR(H171=\"\",I171=\"\"),0,IF(H171*0.3/12>I171,MIN(H171*0.3/12,I171*1.1)+AP171,I171*(1+(VLOOKUP('1. Checklist & Certification'!$F$9,'HLCP-E Rent Change'!$A$1:$D$59,4,FALSE)))+AP171))","v":0}]
[null,null,null,null,null,null,null,null,null,null,null,null,null,null,null,null,null,null,null,null,null,null,null,null,null,null,0,0,0,0,0,0,0,0,{"$f":"IF(OR(A172=0,B172=\"X\"),0,IF(OR(S172=\"FHDP\",S172=\"RHCP-B\",U172=\"FHDP\",U172=\"RHCP-B\",W172=\"FHDP\",W172=\"RHCP-B\",Y172=\"FHDP\",Y172=\"RHCP-B\"),TRUNC((MIN(I172,K172)*(1+'1. Checklist & Certification'!$K$43)+AP172)),0))","v":0},{"$f":"IF(OR(A172=0,B172=\"X\"),0,IF(OR(S172=\"CHRP-R\",S172=\"SERA\",S172=\"SUHRP\",U172=\"CHRP-R\",U172=\"SERA\",U172=\"SUHRP\",W172=\"CHRP-R\",W172=\"SERA\",W172=\"SUHRP\",Y172=\"CHRP-R\",Y172=\"SERA\",Y172=\"SUHRP\"),TRUNC((MIN(I172,K172)*(1+'1. Checklist & Certification'!$K$49))),0))","v":0},{"$f":"IF(OR(A172=0,B172=\"X\"),0,IF(OR(S172=\"CALDAP\",S172=\"DPRLP\",U172=\"CALDAP\",U172=\"DPRLP\",W172=\"CALDAP\",W172=\"DPRLP\",Y172=\"CALDAP\",Y172=\"DPRLP\"),TRUNC(((MIN(I172,K172))*(1+'1. Checklist & Certification'!$G$4))),0))","v":0},0,0,0,{"$f":"IF(OR(A172=0,B172=\"X\"),0,IF(OR(S172=\"PRP\",S172=\"LPR\",U172=\"PRP\",U172=\"LPR\",W172=\"PRP\",W172=\"LPR\",Y172=\"PRP\",Y172=\"LPR\"),MAX(I172+AP172,MIN(IF(AE172:AN172<>0,AE172:AN172))),MIN(IF(AE172:AN172<>0,AE172:AN172))))","v":0},{"$f":"IF(A172=0,0,IF(AND(OR(S172=\"Mgr\",S172=0),OR(U172=\"Mgr\",U172=0),OR(W172=\"Mgr\",W172=0)),0,IF(LEFT($A172,2)=\"B*\",VLOOKUP($E172,'1. Checklist & Certification'!$D$26:$E$32,2),IF(LEFT($A172,2)=\"C*\",VLOOKUP($E172,'1. Checklist & Certification'!$F$26:$G$32,2),IF(LEFT($A172,2)=\"D*\",VLOOKUP($E172,'1. Checklist & Certification'!$H$26:$I$32,2),IF(LEFT($A172,2)=\"E*\",VLOOKUP($E172,'1. Checklist & Certification'!$J$26:$K$32,2),VLOOKUP($E172,'1. Checklist & Certification'!$A$26:$B$32,2)))))))","v":0},0,0,null,null,null,null,"","",0,0,0,null,{"$f":"IF(A172=\"\",\"\",'1. Checklist & Certification'!$K$1)","v":""},{"$f":"IF(A172=\"\",\"\",'1. Checklist & Certification'!$C$62)","v":""},{"$f":"IF(A172=\"\",\"\",'1. Checklist & Certification'!$C$6)","v":""},{"$f":"IF(A172=\"\",\"\",'1. Checklist & Certification'!$G$5)","v":""},{"$f":"IFERROR(IF(A172=\"\",\"\",\n_xlfn.LET(_xlpm.Contract,'1. Checklist & Certification'!$C$7,\n_xlpm.Yr,TEXT(MOD(_xlfn.TEXTBEFORE(_xlpm.Contract,\"-\"),100),\"00\"),\n_xlpm.Program,_xlfn.TEXTAFTER(_xlfn.TEXTBEFORE(_xlpm.Contract,\"-\",2),\"-\"),\n_xlpm.CleanProgram,_xlfn.XLOOKUP(_xlpm.Program,SpellCheck[Input],SpellCheck[Correction],_xlpm.Program),\n_xlpm.Number,TEXT(_xlfn.TEXTAFTER(_xlpm.Contract,\"-\",2),\"0000\"),\n_xlfn.CONCAT(_xlpm.Yr,\"-\",_xlpm.CleanProgram,\"-\",_xlpm.Number))\n),\"\")","v":""},{"$f":"IFERROR(IF(A172=\"\",\"\",\n_xlfn.LET(_xlpm.Contract,'1. Checklist & Certification'!$C$8,\n_xlpm.Yr,TEXT(MOD(_xlfn.TEXTBEFORE(_xlpm.Contract,\"-\"),100),\"00\"),\n_xlpm.Program,_xlfn.TEXTAFTER(_xlfn.TEXTBEFORE(_xlpm.Contract,\"-\",2),\"-\"),\n_xlpm.CleanProgram,_xlfn.XLOOKUP(_xlpm.Program,SpellCheck[Input],SpellCheck[Correction],_xlpm.Program),\n_xlpm.Number,TEXT(_xlfn.TEXTAFTER(_xlpm.Contract,\"-\",2),\"0000\"),\n_xlfn.CONCAT(_xlpm.Yr,\"-\",_xlpm.CleanProgram,\"-\",_xlpm.Number))\n),\"\")","v":""},{"$f":"IFERROR(IF(A172=\"\",\"\",\n_xlfn.LET(_xlpm.Contract,'1. Checklist & Certification'!$F$7,\n_xlpm.Yr,TEXT(MOD(_xlfn.TEXTBEFORE(_xlpm.Contract,\"-\"),100),\"00\"),\n_xlpm.Program,_xlfn.TEXTAFTER(_xlfn.TEXTBEFORE(_xlpm.Contract,\"-\",2),\"-\"),\n_xlpm.CleanProgram,_xlfn.XLOOKUP(_xlpm.Program,SpellCheck[Input],SpellCheck[Correction],_xlpm.Program),\n_xlpm.Number,TEXT(_xlfn.TEXTAFTER(_xlpm.Contract,\"-\",2),\"0000\"),\n_xlfn.CONCAT(_xlpm.Yr,\"-\",_xlpm.CleanProgram,\"-\",_xlpm.Number))\n),\"\")","v":""},{"$f":"IFERROR(IF(A172=\"\",\"\",\n_xlfn.LET(_xlpm.Contract,'1. Checklist & Certification'!$F$8,\n_xlpm.Yr,TEXT(MOD(_xlfn.TEXTBEFORE(_xlpm.Contract,\"-\"),100),\"00\"),\n_xlpm.Program,_xlfn.TEXTAFTER(_xlfn.TEXTBEFORE(_xlpm.Contract,\"-\",2),\"-\"),\n_xlpm.CleanProgram,_xlfn.XLOOKUP(_xlpm.Program,SpellCheck[Input],SpellCheck[Correction],_xlpm.Program),\n_xlpm.Number,TEXT(_xlfn.TEXTAFTER(_xlpm.Contract,\"-\",2),\"0000\"),\n_xlfn.CONCAT(_xlpm.Yr,\"-\",_xlpm.CleanProgram,\"-\",_xlpm.Number))\n),\"\")","v":""},{"$f":"IF(A172=\"\",\"\",'1. Checklist & Certification'!$B$9)","v":""},{"$f":"IF(A172=\"\",\"\",'1. Checklist & Certification'!$F$9)","v":""},{"$f":"IF(A172=\"\",\"\",'1. Checklist & Certification'!$C$10)","v":""},{"$f":"IF(A172=\"\",\"\",'1. Checklist & Certification'!$C$11)","v":""},{"$f":"IF(A172=\"\",\"\",'1. Checklist & Certification'!$C$12)","v":""},{"$f":"IF(A172=\"\",\"\",'1. Checklist & Certification'!$B$14)","v":""},{"$f":"IF(A172=\"\",\"\",'1. Checklist & Certification'!$E$14)","v":""},{"$f":"IF(B172=\"\",\"\",'1. Checklist & Certification'!$G$14)","v":""},{"$f":"IF(A172=\"\",\"\",'MHP Family Income & Rent Limits'!$B$3)","v":""},{"$f":"IF(A172=\"\",\"\",'MHP Family Income & Rent Limits'!$J$3)","v":""},{"$f":"IF(A172=\"\",\"\",'MHP Family Income & Rent Limits'!$E$4)","v":""},{"$f":"IF(A172=\"\",\"\",'MHP Family Income & Rent Limits'!$C$7)","v":""},{"$f":"IF(A172=\"\",\"\",'MHP Family Income & Rent Limits'!$F$8)","v":""},{"$f":"IF(A172=\"\",\"\",'1. Checklist & Certification'!$G$4)","v":""},{"$f":"IF(A172=\"\",\"\",'1. Checklist & Certification'!$K$39)","v":""},{"$f":"IF(A172=\"\",\"\",'1. Checklist & Certification'!$K$43)","v":""},{"$f":"IF(A172=\"\",\"\",'1. Checklist & Certification'!$K$45)","v":""},{"$f":"IF(A172=\"\",\"\",'1. Checklist & Certification'!$K$49)","v":""},{"$f":"IF(A172=\"\",\"\",'1. Checklist & Certification'!$K$62)","v":""},{"$f":"IF(A172=\"\",\"\",'1. Checklist & Certification'!$E$66)","v":""},{"$f":"IF(A172=\"\",\"\",'1. Checklist & Certification'!$E$67)","v":""},{"$f":"IF(A172=\"\",\"\",'1. Checklist & Certification'!$E$68)","v":""},{"$f":"IF(A172=\"\",\"\",'1. Checklist & Certification'!$G$66)","v":""},{"$f":"IF(A172=\"\",\"\",'1. Checklist & Certification'!$H$66)","v":""},{"$f":"IF(A172=\"\",\"\",'1. Checklist & Certification'!$I$66)","v":""},{"$f":"IF(A172=\"\",\"\",'1. Checklist & Certification'!$I$67)","v":""},{"$f":"IF(A172=\"\",\"\",'1. Checklist & Certification'!$I$68)","v":""},{"$f":"IF(A172=\"\",\"\",'1. Checklist & Certification'!$B$69)","v":""},{"$f":"IF(A172=\"\",\"\",'1. Checklist & Certification'!$C$69)","v":""},{"$f":"IF(A172=\"\",\"\",'1. Checklist & Certification'!$F$69)","v":""},{"$f":"IF(A172=\"\",\"\",'1. Checklist & Certification'!$G$69)","v":""},{"$f":"IF(A172=\"\",\"\",'1. Checklist & Certification'!$J$69)","v":""},{"$f":"IF(A172=\"\",\"\",'1. Checklist & Certification'!$K$69)","v":""},null,null,{"$f":"IF(AND(OR('1. Checklist & Certification'!$M$16=1,'1. Checklist & Certification'!$M$19=2),AO172>0,B172=\"\",I172>0,AQ172<I172,AV172<>\"Sec 8-Project\"),\"X\",IF(AND(OR('1. Checklist & Certification'!$M$20=4,'1. Checklist & Certification'!$M$21=5,'1. Checklist & Certification'!$M$22=7),AO172>0,B172=\"\",I172>0,K172<I172),\"X\",\"\"))","v":""},{"$f":"IF(A172=\"\",\"\",IF(SUMPRODUCT(-- (ISNUMBER(SEARCH({\"*AHSC*\",\"*FMTW*\",\"*FWHG*\",\"*GHI*\",\"*HHC*\",\"*HLCP*\",\"*HOME*\",\"*LPR*\",\"*MHP*\",\"*NHTF*\",\"*NSP*\",\"*PRP*\",\"*TOD*\",\"*VHHP*\"},'1. Checklist & Certification'!$L$7)))),\"MHP\",\"Legacy\"))","v":""},",,",null,null,null,{"$f":"IF('1. Checklist & Certification'!$M$20=4,\"Both\",IF(OR('1. Checklist & Certification'!$M$15>0,S172=\"CHRP-R\",U172=\"CHRP-R\",W172=\"CHRP-R\",Y172=\"CHRP-R\"),\"Under\",\"No\"))","v":"No"},"No","No",{"$f":"_xlfn.IFS(D172=\"\",\"\",D172=1,'MHP Family Income & Rent Limits'!$E$17,D172=2,'MHP Family Income & Rent Limits'!$F$17,D172=3,'MHP Family Income & Rent Limits'!$G$17,D172=4,'MHP Family Income & Rent Limits'!$H$17,D172=5,'MHP Family Income & Rent Limits'!$I$17,D172=6,'MHP Family Income & Rent Limits'!$J$17,D172=7,'MHP Family Income & Rent Limits'!$K$17,D172=8,'MHP Family Income & Rent Limits'!$L$17)","v":""},"",{"$f":"IF(OR(A172=0,B172=\"X\"),0,MIN(IF(AA172:AD172<>0,AA172:AD172)))","v":0},{"$f":"IF(OR(H172=\"\",I172=\"\"),0,IF(H172*0.3/12>I172,MIN(H172*0.3/12,I172*1.1)+AP172,I172*(1+(VLOOKUP('1. Checklist & Certification'!$F$9,'HLCP-E Rent Change'!$A$1:$D$59,4,FALSE)))+AP172))","v":0}]
[null,null,null,null,null,null,null,null,null,null,null,null,null,null,null,null,null,null,null,null,null,null,null,null,null,null,0,0,0,0,0,0,0,0,{"$f":"IF(OR(A173=0,B173=\"X\"),0,IF(OR(S173=\"FHDP\",S173=\"RHCP-B\",U173=\"FHDP\",U173=\"RHCP-B\",W173=\"FHDP\",W173=\"RHCP-B\",Y173=\"FHDP\",Y173=\"RHCP-B\"),TRUNC((MIN(I173,K173)*(1+'1. Checklist & Certification'!$K$43)+AP173)),0))","v":0},{"$f":"IF(OR(A173=0,B173=\"X\"),0,IF(OR(S173=\"CHRP-R\",S173=\"SERA\",S173=\"SUHRP\",U173=\"CHRP-R\",U173=\"SERA\",U173=\"SUHRP\",W173=\"CHRP-R\",W173=\"SERA\",W173=\"SUHRP\",Y173=\"CHRP-R\",Y173=\"SERA\",Y173=\"SUHRP\"),TRUNC((MIN(I173,K173)*(1+'1. Checklist & Certification'!$K$49))),0))","v":0},{"$f":"IF(OR(A173=0,B173=\"X\"),0,IF(OR(S173=\"CALDAP\",S173=\"DPRLP\",U173=\"CALDAP\",U173=\"DPRLP\",W173=\"CALDAP\",W173=\"DPRLP\",Y173=\"CALDAP\",Y173=\"DPRLP\"),TRUNC(((MIN(I173,K173))*(1+'1. Checklist & Certification'!$G$4))),0))","v":0},0,0,0,{"$f":"IF(OR(A173=0,B173=\"X\"),0,IF(OR(S173=\"PRP\",S173=\"LPR\",U173=\"PRP\",U173=\"LPR\",W173=\"PRP\",W173=\"LPR\",Y173=\"PRP\",Y173=\"LPR\"),MAX(I173+AP173,MIN(IF(AE173:AN173<>0,AE173:AN173))),MIN(IF(AE173:AN173<>0,AE173:AN173))))","v":0},{"$f":"IF(A173=0,0,IF(AND(OR(S173=\"Mgr\",S173=0),OR(U173=\"Mgr\",U173=0),OR(W173=\"Mgr\",W173=0)),0,IF(LEFT($A173,2)=\"B*\",VLOOKUP($E173,'1. Checklist & Certification'!$D$26:$E$32,2),IF(LEFT($A173,2)=\"C*\",VLOOKUP($E173,'1. Checklist & Certification'!$F$26:$G$32,2),IF(LEFT($A173,2)=\"D*\",VLOOKUP($E173,'1. Checklist & Certification'!$H$26:$I$32,2),IF(LEFT($A173,2)=\"E*\",VLOOKUP($E173,'1. Checklist & Certification'!$J$26:$K$32,2),VLOOKUP($E173,'1. Checklist & Certification'!$A$26:$B$32,2)))))))","v":0},0,0,null,null,null,null,"","",0,0,0,null,{"$f":"IF(A173=\"\",\"\",'1. Checklist & Certification'!$K$1)","v":""},{"$f":"IF(A173=\"\",\"\",'1. Checklist & Certification'!$C$62)","v":""},{"$f":"IF(A173=\"\",\"\",'1. Checklist & Certification'!$C$6)","v":""},{"$f":"IF(A173=\"\",\"\",'1. Checklist & Certification'!$G$5)","v":""},{"$f":"IFERROR(IF(A173=\"\",\"\",\n_xlfn.LET(_xlpm.Contract,'1. Checklist & Certification'!$C$7,\n_xlpm.Yr,TEXT(MOD(_xlfn.TEXTBEFORE(_xlpm.Contract,\"-\"),100),\"00\"),\n_xlpm.Program,_xlfn.TEXTAFTER(_xlfn.TEXTBEFORE(_xlpm.Contract,\"-\",2),\"-\"),\n_xlpm.CleanProgram,_xlfn.XLOOKUP(_xlpm.Program,SpellCheck[Input],SpellCheck[Correction],_xlpm.Program),\n_xlpm.Number,TEXT(_xlfn.TEXTAFTER(_xlpm.Contract,\"-\",2),\"0000\"),\n_xlfn.CONCAT(_xlpm.Yr,\"-\",_xlpm.CleanProgram,\"-\",_xlpm.Number))\n),\"\")","v":""},{"$f":"IFERROR(IF(A173=\"\",\"\",\n_xlfn.LET(_xlpm.Contract,'1. Checklist & Certification'!$C$8,\n_xlpm.Yr,TEXT(MOD(_xlfn.TEXTBEFORE(_xlpm.Contract,\"-\"),100),\"00\"),\n_xlpm.Program,_xlfn.TEXTAFTER(_xlfn.TEXTBEFORE(_xlpm.Contract,\"-\",2),\"-\"),\n_xlpm.CleanProgram,_xlfn.XLOOKUP(_xlpm.Program,SpellCheck[Input],SpellCheck[Correction],_xlpm.Program),\n_xlpm.Number,TEXT(_xlfn.TEXTAFTER(_xlpm.Contract,\"-\",2),\"0000\"),\n_xlfn.CONCAT(_xlpm.Yr,\"-\",_xlpm.CleanProgram,\"-\",_xlpm.Number))\n),\"\")","v":""},{"$f":"IFERROR(IF(A173=\"\",\"\",\n_xlfn.LET(_xlpm.Contract,'1. Checklist & Certification'!$F$7,\n_xlpm.Yr,TEXT(MOD(_xlfn.TEXTBEFORE(_xlpm.Contract,\"-\"),100),\"00\"),\n_xlpm.Program,_xlfn.TEXTAFTER(_xlfn.TEXTBEFORE(_xlpm.Contract,\"-\",2),\"-\"),\n_xlpm.CleanProgram,_xlfn.XLOOKUP(_xlpm.Program,SpellCheck[Input],SpellCheck[Correction],_xlpm.Program),\n_xlpm.Number,TEXT(_xlfn.TEXTAFTER(_xlpm.Contract,\"-\",2),\"0000\"),\n_xlfn.CONCAT(_xlpm.Yr,\"-\",_xlpm.CleanProgram,\"-\",_xlpm.Number))\n),\"\")","v":""},{"$f":"IFERROR(IF(A173=\"\",\"\",\n_xlfn.LET(_xlpm.Contract,'1. Checklist & Certification'!$F$8,\n_xlpm.Yr,TEXT(MOD(_xlfn.TEXTBEFORE(_xlpm.Contract,\"-\"),100),\"00\"),\n_xlpm.Program,_xlfn.TEXTAFTER(_xlfn.TEXTBEFORE(_xlpm.Contract,\"-\",2),\"-\"),\n_xlpm.CleanProgram,_xlfn.XLOOKUP(_xlpm.Program,SpellCheck[Input],SpellCheck[Correction],_xlpm.Program),\n_xlpm.Number,TEXT(_xlfn.TEXTAFTER(_xlpm.Contract,\"-\",2),\"0000\"),\n_xlfn.CONCAT(_xlpm.Yr,\"-\",_xlpm.CleanProgram,\"-\",_xlpm.Number))\n),\"\")","v":""},{"$f":"IF(A173=\"\",\"\",'1. Checklist & Certification'!$B$9)","v":""},{"$f":"IF(A173=\"\",\"\",'1. Checklist & Certification'!$F$9)","v":""},{"$f":"IF(A173=\"\",\"\",'1. Checklist & Certification'!$C$10)","v":""},{"$f":"IF(A173=\"\",\"\",'1. Checklist & Certification'!$C$11)","v":""},{"$f":"IF(A173=\"\",\"\",'1. Checklist & Certification'!$C$12)","v":""},{"$f":"IF(A173=\"\",\"\",'1. Checklist & Certification'!$B$14)","v":""},{"$f":"IF(A173=\"\",\"\",'1. Checklist & Certification'!$E$14)","v":""},{"$f":"IF(B173=\"\",\"\",'1. Checklist & Certification'!$G$14)","v":""},{"$f":"IF(A173=\"\",\"\",'MHP Family Income & Rent Limits'!$B$3)","v":""},{"$f":"IF(A173=\"\",\"\",'MHP Family Income & Rent Limits'!$J$3)","v":""},{"$f":"IF(A173=\"\",\"\",'MHP Family Income & Rent Limits'!$E$4)","v":""},{"$f":"IF(A173=\"\",\"\",'MHP Family Income & Rent Limits'!$C$7)","v":""},{"$f":"IF(A173=\"\",\"\",'MHP Family Income & Rent Limits'!$F$8)","v":""},{"$f":"IF(A173=\"\",\"\",'1. Checklist & Certification'!$G$4)","v":""},{"$f":"IF(A173=\"\",\"\",'1. Checklist & Certification'!$K$39)","v":""},{"$f":"IF(A173=\"\",\"\",'1. Checklist & Certification'!$K$43)","v":""},{"$f":"IF(A173=\"\",\"\",'1. Checklist & Certification'!$K$45)","v":""},{"$f":"IF(A173=\"\",\"\",'1. Checklist & Certification'!$K$49)","v":""},{"$f":"IF(A173=\"\",\"\",'1. Checklist & Certification'!$K$62)","v":""},{"$f":"IF(A173=\"\",\"\",'1. Checklist & Certification'!$E$66)","v":""},{"$f":"IF(A173=\"\",\"\",'1. Checklist & Certification'!$E$67)","v":""},{"$f":"IF(A173=\"\",\"\",'1. Checklist & Certification'!$E$68)","v":""},{"$f":"IF(A173=\"\",\"\",'1. Checklist & Certification'!$G$66)","v":""},{"$f":"IF(A173=\"\",\"\",'1. Checklist & Certification'!$H$66)","v":""},{"$f":"IF(A173=\"\",\"\",'1. Checklist & Certification'!$I$66)","v":""},{"$f":"IF(A173=\"\",\"\",'1. Checklist & Certification'!$I$67)","v":""},{"$f":"IF(A173=\"\",\"\",'1. Checklist & Certification'!$I$68)","v":""},{"$f":"IF(A173=\"\",\"\",'1. Checklist & Certification'!$B$69)","v":""},{"$f":"IF(A173=\"\",\"\",'1. Checklist & Certification'!$C$69)","v":""},{"$f":"IF(A173=\"\",\"\",'1. Checklist & Certification'!$F$69)","v":""},{"$f":"IF(A173=\"\",\"\",'1. Checklist & Certification'!$G$69)","v":""},{"$f":"IF(A173=\"\",\"\",'1. Checklist & Certification'!$J$69)","v":""},{"$f":"IF(A173=\"\",\"\",'1. Checklist & Certification'!$K$69)","v":""},null,null,{"$f":"IF(AND(OR('1. Checklist & Certification'!$M$16=1,'1. Checklist & Certification'!$M$19=2),AO173>0,B173=\"\",I173>0,AQ173<I173,AV173<>\"Sec 8-Project\"),\"X\",IF(AND(OR('1. Checklist & Certification'!$M$20=4,'1. Checklist & Certification'!$M$21=5,'1. Checklist & Certification'!$M$22=7),AO173>0,B173=\"\",I173>0,K173<I173),\"X\",\"\"))","v":""},{"$f":"IF(A173=\"\",\"\",IF(SUMPRODUCT(-- (ISNUMBER(SEARCH({\"*AHSC*\",\"*FMTW*\",\"*FWHG*\",\"*GHI*\",\"*HHC*\",\"*HLCP*\",\"*HOME*\",\"*LPR*\",\"*MHP*\",\"*NHTF*\",\"*NSP*\",\"*PRP*\",\"*TOD*\",\"*VHHP*\"},'1. Checklist & Certification'!$L$7)))),\"MHP\",\"Legacy\"))","v":""},",,",null,null,null,{"$f":"IF('1. Checklist & Certification'!$M$20=4,\"Both\",IF(OR('1. Checklist & Certification'!$M$15>0,S173=\"CHRP-R\",U173=\"CHRP-R\",W173=\"CHRP-R\",Y173=\"CHRP-R\"),\"Under\",\"No\"))","v":"No"},"No","No",{"$f":"_xlfn.IFS(D173=\"\",\"\",D173=1,'MHP Family Income & Rent Limits'!$E$17,D173=2,'MHP Family Income & Rent Limits'!$F$17,D173=3,'MHP Family Income & Rent Limits'!$G$17,D173=4,'MHP Family Income & Rent Limits'!$H$17,D173=5,'MHP Family Income & Rent Limits'!$I$17,D173=6,'MHP Family Income & Rent Limits'!$J$17,D173=7,'MHP Family Income & Rent Limits'!$K$17,D173=8,'MHP Family Income & Rent Limits'!$L$17)","v":""},"",{"$f":"IF(OR(A173=0,B173=\"X\"),0,MIN(IF(AA173:AD173<>0,AA173:AD173)))","v":0},{"$f":"IF(OR(H173=\"\",I173=\"\"),0,IF(H173*0.3/12>I173,MIN(H173*0.3/12,I173*1.1)+AP173,I173*(1+(VLOOKUP('1. Checklist & Certification'!$F$9,'HLCP-E Rent Change'!$A$1:$D$59,4,FALSE)))+AP173))","v":0}]
[null,null,null,null,null,null,null,null,null,null,null,null,null,null,null,null,null,null,null,null,null,null,null,null,null,null,0,0,0,0,0,0,0,0,{"$f":"IF(OR(A174=0,B174=\"X\"),0,IF(OR(S174=\"FHDP\",S174=\"RHCP-B\",U174=\"FHDP\",U174=\"RHCP-B\",W174=\"FHDP\",W174=\"RHCP-B\",Y174=\"FHDP\",Y174=\"RHCP-B\"),TRUNC((MIN(I174,K174)*(1+'1. Checklist & Certification'!$K$43)+AP174)),0))","v":0},{"$f":"IF(OR(A174=0,B174=\"X\"),0,IF(OR(S174=\"CHRP-R\",S174=\"SERA\",S174=\"SUHRP\",U174=\"CHRP-R\",U174=\"SERA\",U174=\"SUHRP\",W174=\"CHRP-R\",W174=\"SERA\",W174=\"SUHRP\",Y174=\"CHRP-R\",Y174=\"SERA\",Y174=\"SUHRP\"),TRUNC((MIN(I174,K174)*(1+'1. Checklist & Certification'!$K$49))),0))","v":0},{"$f":"IF(OR(A174=0,B174=\"X\"),0,IF(OR(S174=\"CALDAP\",S174=\"DPRLP\",U174=\"CALDAP\",U174=\"DPRLP\",W174=\"CALDAP\",W174=\"DPRLP\",Y174=\"CALDAP\",Y174=\"DPRLP\"),TRUNC(((MIN(I174,K174))*(1+'1. Checklist & Certification'!$G$4))),0))","v":0},0,0,0,{"$f":"IF(OR(A174=0,B174=\"X\"),0,IF(OR(S174=\"PRP\",S174=\"LPR\",U174=\"PRP\",U174=\"LPR\",W174=\"PRP\",W174=\"LPR\",Y174=\"PRP\",Y174=\"LPR\"),MAX(I174+AP174,MIN(IF(AE174:AN174<>0,AE174:AN174))),MIN(IF(AE174:AN174<>0,AE174:AN174))))","v":0},{"$f":"IF(A174=0,0,IF(AND(OR(S174=\"Mgr\",S174=0),OR(U174=\"Mgr\",U174=0),OR(W174=\"Mgr\",W174=0)),0,IF(LEFT($A174,2)=\"B*\",VLOOKUP($E174,'1. Checklist & Certification'!$D$26:$E$32,2),IF(LEFT($A174,2)=\"C*\",VLOOKUP($E174,'1. Checklist & Certification'!$F$26:$G$32,2),IF(LEFT($A174,2)=\"D*\",VLOOKUP($E174,'1. Checklist & Certification'!$H$26:$I$32,2),IF(LEFT($A174,2)=\"E*\",VLOOKUP($E174,'1. Checklist & Certification'!$J$26:$K$32,2),VLOOKUP($E174,'1. Checklist & Certification'!$A$26:$B$32,2)))))))","v":0},0,0,null,null,null,null,"","",0,0,0,null,{"$f":"IF(A174=\"\",\"\",'1. Checklist & Certification'!$K$1)","v":""},{"$f":"IF(A174=\"\",\"\",'1. Checklist & Certification'!$C$62)","v":""},{"$f":"IF(A174=\"\",\"\",'1. Checklist & Certification'!$C$6)","v":""},{"$f":"IF(A174=\"\",\"\",'1. Checklist & Certification'!$G$5)","v":""},{"$f":"IFERROR(IF(A174=\"\",\"\",\n_xlfn.LET(_xlpm.Contract,'1. Checklist & Certification'!$C$7,\n_xlpm.Yr,TEXT(MOD(_xlfn.TEXTBEFORE(_xlpm.Contract,\"-\"),100),\"00\"),\n_xlpm.Program,_xlfn.TEXTAFTER(_xlfn.TEXTBEFORE(_xlpm.Contract,\"-\",2),\"-\"),\n_xlpm.CleanProgram,_xlfn.XLOOKUP(_xlpm.Program,SpellCheck[Input],SpellCheck[Correction],_xlpm.Program),\n_xlpm.Number,TEXT(_xlfn.TEXTAFTER(_xlpm.Contract,\"-\",2),\"0000\"),\n_xlfn.CONCAT(_xlpm.Yr,\"-\",_xlpm.CleanProgram,\"-\",_xlpm.Number))\n),\"\")","v":""},{"$f":"IFERROR(IF(A174=\"\",\"\",\n_xlfn.LET(_xlpm.Contract,'1. Checklist & Certification'!$C$8,\n_xlpm.Yr,TEXT(MOD(_xlfn.TEXTBEFORE(_xlpm.Contract,\"-\"),100),\"00\"),\n_xlpm.Program,_xlfn.TEXTAFTER(_xlfn.TEXTBEFORE(_xlpm.Contract,\"-\",2),\"-\"),\n_xlpm.CleanProgram,_xlfn.XLOOKUP(_xlpm.Program,SpellCheck[Input],SpellCheck[Correction],_xlpm.Program),\n_xlpm.Number,TEXT(_xlfn.TEXTAFTER(_xlpm.Contract,\"-\",2),\"0000\"),\n_xlfn.CONCAT(_xlpm.Yr,\"-\",_xlpm.CleanProgram,\"-\",_xlpm.Number))\n),\"\")","v":""},{"$f":"IFERROR(IF(A174=\"\",\"\",\n_xlfn.LET(_xlpm.Contract,'1. Checklist & Certification'!$F$7,\n_xlpm.Yr,TEXT(MOD(_xlfn.TEXTBEFORE(_xlpm.Contract,\"-\"),100),\"00\"),\n_xlpm.Program,_xlfn.TEXTAFTER(_xlfn.TEXTBEFORE(_xlpm.Contract,\"-\",2),\"-\"),\n_xlpm.CleanProgram,_xlfn.XLOOKUP(_xlpm.Program,SpellCheck[Input],SpellCheck[Correction],_xlpm.Program),\n_xlpm.Number,TEXT(_xlfn.TEXTAFTER(_xlpm.Contract,\"-\",2),\"0000\"),\n_xlfn.CONCAT(_xlpm.Yr,\"-\",_xlpm.CleanProgram,\"-\",_xlpm.Number))\n),\"\")","v":""},{"$f":"IFERROR(IF(A174=\"\",\"\",\n_xlfn.LET(_xlpm.Contract,'1. Checklist & Certification'!$F$8,\n_xlpm.Yr,TEXT(MOD(_xlfn.TEXTBEFORE(_xlpm.Contract,\"-\"),100),\"00\"),\n_xlpm.Program,_xlfn.TEXTAFTER(_xlfn.TEXTBEFORE(_xlpm.Contract,\"-\",2),\"-\"),\n_xlpm.CleanProgram,_xlfn.XLOOKUP(_xlpm.Program,SpellCheck[Input],SpellCheck[Correction],_xlpm.Program),\n_xlpm.Number,TEXT(_xlfn.TEXTAFTER(_xlpm.Contract,\"-\",2),\"0000\"),\n_xlfn.CONCAT(_xlpm.Yr,\"-\",_xlpm.CleanProgram,\"-\",_xlpm.Number))\n),\"\")","v":""},{"$f":"IF(A174=\"\",\"\",'1. Checklist & Certification'!$B$9)","v":""},{"$f":"IF(A174=\"\",\"\",'1. Checklist & Certification'!$F$9)","v":""},{"$f":"IF(A174=\"\",\"\",'1. Checklist & Certification'!$C$10)","v":""},{"$f":"IF(A174=\"\",\"\",'1. Checklist & Certification'!$C$11)","v":""},{"$f":"IF(A174=\"\",\"\",'1. Checklist & Certification'!$C$12)","v":""},{"$f":"IF(A174=\"\",\"\",'1. Checklist & Certification'!$B$14)","v":""},{"$f":"IF(A174=\"\",\"\",'1. Checklist & Certification'!$E$14)","v":""},{"$f":"IF(B174=\"\",\"\",'1. Checklist & Certification'!$G$14)","v":""},{"$f":"IF(A174=\"\",\"\",'MHP Family Income & Rent Limits'!$B$3)","v":""},{"$f":"IF(A174=\"\",\"\",'MHP Family Income & Rent Limits'!$J$3)","v":""},{"$f":"IF(A174=\"\",\"\",'MHP Family Income & Rent Limits'!$E$4)","v":""},{"$f":"IF(A174=\"\",\"\",'MHP Family Income & Rent Limits'!$C$7)","v":""},{"$f":"IF(A174=\"\",\"\",'MHP Family Income & Rent Limits'!$F$8)","v":""},{"$f":"IF(A174=\"\",\"\",'1. Checklist & Certification'!$G$4)","v":""},{"$f":"IF(A174=\"\",\"\",'1. Checklist & Certification'!$K$39)","v":""},{"$f":"IF(A174=\"\",\"\",'1. Checklist & Certification'!$K$43)","v":""},{"$f":"IF(A174=\"\",\"\",'1. Checklist & Certification'!$K$45)","v":""},{"$f":"IF(A174=\"\",\"\",'1. Checklist & Certification'!$K$49)","v":""},{"$f":"IF(A174=\"\",\"\",'1. Checklist & Certification'!$K$62)","v":""},{"$f":"IF(A174=\"\",\"\",'1. Checklist & Certification'!$E$66)","v":""},{"$f":"IF(A174=\"\",\"\",'1. Checklist & Certification'!$E$67)","v":""},{"$f":"IF(A174=\"\",\"\",'1. Checklist & Certification'!$E$68)","v":""},{"$f":"IF(A174=\"\",\"\",'1. Checklist & Certification'!$G$66)","v":""},{"$f":"IF(A174=\"\",\"\",'1. Checklist & Certification'!$H$66)","v":""},{"$f":"IF(A174=\"\",\"\",'1. Checklist & Certification'!$I$66)","v":""},{"$f":"IF(A174=\"\",\"\",'1. Checklist & Certification'!$I$67)","v":""},{"$f":"IF(A174=\"\",\"\",'1. Checklist & Certification'!$I$68)","v":""},{"$f":"IF(A174=\"\",\"\",'1. Checklist & Certification'!$B$69)","v":""},{"$f":"IF(A174=\"\",\"\",'1. Checklist & Certification'!$C$69)","v":""},{"$f":"IF(A174=\"\",\"\",'1. Checklist & Certification'!$F$69)","v":""},{"$f":"IF(A174=\"\",\"\",'1. Checklist & Certification'!$G$69)","v":""},{"$f":"IF(A174=\"\",\"\",'1. Checklist & Certification'!$J$69)","v":""},{"$f":"IF(A174=\"\",\"\",'1. Checklist & Certification'!$K$69)","v":""},null,null,{"$f":"IF(AND(OR('1. Checklist & Certification'!$M$16=1,'1. Checklist & Certification'!$M$19=2),AO174>0,B174=\"\",I174>0,AQ174<I174,AV174<>\"Sec 8-Project\"),\"X\",IF(AND(OR('1. Checklist & Certification'!$M$20=4,'1. Checklist & Certification'!$M$21=5,'1. Checklist & Certification'!$M$22=7),AO174>0,B174=\"\",I174>0,K174<I174),\"X\",\"\"))","v":""},{"$f":"IF(A174=\"\",\"\",IF(SUMPRODUCT(-- (ISNUMBER(SEARCH({\"*AHSC*\",\"*FMTW*\",\"*FWHG*\",\"*GHI*\",\"*HHC*\",\"*HLCP*\",\"*HOME*\",\"*LPR*\",\"*MHP*\",\"*NHTF*\",\"*NSP*\",\"*PRP*\",\"*TOD*\",\"*VHHP*\"},'1. Checklist & Certification'!$L$7)))),\"MHP\",\"Legacy\"))","v":""},",,",null,null,null,{"$f":"IF('1. Checklist & Certification'!$M$20=4,\"Both\",IF(OR('1. Checklist & Certification'!$M$15>0,S174=\"CHRP-R\",U174=\"CHRP-R\",W174=\"CHRP-R\",Y174=\"CHRP-R\"),\"Under\",\"No\"))","v":"No"},"No","No",{"$f":"_xlfn.IFS(D174=\"\",\"\",D174=1,'MHP Family Income & Rent Limits'!$E$17,D174=2,'MHP Family Income & Rent Limits'!$F$17,D174=3,'MHP Family Income & Rent Limits'!$G$17,D174=4,'MHP Family Income & Rent Limits'!$H$17,D174=5,'MHP Family Income & Rent Limits'!$I$17,D174=6,'MHP Family Income & Rent Limits'!$J$17,D174=7,'MHP Family Income & Rent Limits'!$K$17,D174=8,'MHP Family Income & Rent Limits'!$L$17)","v":""},"",{"$f":"IF(OR(A174=0,B174=\"X\"),0,MIN(IF(AA174:AD174<>0,AA174:AD174)))","v":0},{"$f":"IF(OR(H174=\"\",I174=\"\"),0,IF(H174*0.3/12>I174,MIN(H174*0.3/12,I174*1.1)+AP174,I174*(1+(VLOOKUP('1. Checklist & Certification'!$F$9,'HLCP-E Rent Change'!$A$1:$D$59,4,FALSE)))+AP174))","v":0}]
[null,null,null,null,null,null,null,null,null,null,null,null,null,null,null,null,null,null,null,null,null,null,null,null,null,null,0,0,0,0,0,0,0,0,{"$f":"IF(OR(A175=0,B175=\"X\"),0,IF(OR(S175=\"FHDP\",S175=\"RHCP-B\",U175=\"FHDP\",U175=\"RHCP-B\",W175=\"FHDP\",W175=\"RHCP-B\",Y175=\"FHDP\",Y175=\"RHCP-B\"),TRUNC((MIN(I175,K175)*(1+'1. Checklist & Certification'!$K$43)+AP175)),0))","v":0},{"$f":"IF(OR(A175=0,B175=\"X\"),0,IF(OR(S175=\"CHRP-R\",S175=\"SERA\",S175=\"SUHRP\",U175=\"CHRP-R\",U175=\"SERA\",U175=\"SUHRP\",W175=\"CHRP-R\",W175=\"SERA\",W175=\"SUHRP\",Y175=\"CHRP-R\",Y175=\"SERA\",Y175=\"SUHRP\"),TRUNC((MIN(I175,K175)*(1+'1. Checklist & Certification'!$K$49))),0))","v":0},{"$f":"IF(OR(A175=0,B175=\"X\"),0,IF(OR(S175=\"CALDAP\",S175=\"DPRLP\",U175=\"CALDAP\",U175=\"DPRLP\",W175=\"CALDAP\",W175=\"DPRLP\",Y175=\"CALDAP\",Y175=\"DPRLP\"),TRUNC(((MIN(I175,K175))*(1+'1. Checklist & Certification'!$G$4))),0))","v":0},0,0,0,{"$f":"IF(OR(A175=0,B175=\"X\"),0,IF(OR(S175=\"PRP\",S175=\"LPR\",U175=\"PRP\",U175=\"LPR\",W175=\"PRP\",W175=\"LPR\",Y175=\"PRP\",Y175=\"LPR\"),MAX(I175+AP175,MIN(IF(AE175:AN175<>0,AE175:AN175))),MIN(IF(AE175:AN175<>0,AE175:AN175))))","v":0},{"$f":"IF(A175=0,0,IF(AND(OR(S175=\"Mgr\",S175=0),OR(U175=\"Mgr\",U175=0),OR(W175=\"Mgr\",W175=0)),0,IF(LEFT($A175,2)=\"B*\",VLOOKUP($E175,'1. Checklist & Certification'!$D$26:$E$32,2),IF(LEFT($A175,2)=\"C*\",VLOOKUP($E175,'1. Checklist & Certification'!$F$26:$G$32,2),IF(LEFT($A175,2)=\"D*\",VLOOKUP($E175,'1. Checklist & Certification'!$H$26:$I$32,2),IF(LEFT($A175,2)=\"E*\",VLOOKUP($E175,'1. Checklist & Certification'!$J$26:$K$32,2),VLOOKUP($E175,'1. Checklist & Certification'!$A$26:$B$32,2)))))))","v":0},0,0,null,null,null,null,"","",0,0,0,null,{"$f":"IF(A175=\"\",\"\",'1. Checklist & Certification'!$K$1)","v":""},{"$f":"IF(A175=\"\",\"\",'1. Checklist & Certification'!$C$62)","v":""},{"$f":"IF(A175=\"\",\"\",'1. Checklist & Certification'!$C$6)","v":""},{"$f":"IF(A175=\"\",\"\",'1. Checklist & Certification'!$G$5)","v":""},{"$f":"IFERROR(IF(A175=\"\",\"\",\n_xlfn.LET(_xlpm.Contract,'1. Checklist & Certification'!$C$7,\n_xlpm.Yr,TEXT(MOD(_xlfn.TEXTBEFORE(_xlpm.Contract,\"-\"),100),\"00\"),\n_xlpm.Program,_xlfn.TEXTAFTER(_xlfn.TEXTBEFORE(_xlpm.Contract,\"-\",2),\"-\"),\n_xlpm.CleanProgram,_xlfn.XLOOKUP(_xlpm.Program,SpellCheck[Input],SpellCheck[Correction],_xlpm.Program),\n_xlpm.Number,TEXT(_xlfn.TEXTAFTER(_xlpm.Contract,\"-\",2),\"0000\"),\n_xlfn.CONCAT(_xlpm.Yr,\"-\",_xlpm.CleanProgram,\"-\",_xlpm.Number))\n),\"\")","v":""},{"$f":"IFERROR(IF(A175=\"\",\"\",\n_xlfn.LET(_xlpm.Contract,'1. Checklist & Certification'!$C$8,\n_xlpm.Yr,TEXT(MOD(_xlfn.TEXTBEFORE(_xlpm.Contract,\"-\"),100),\"00\"),\n_xlpm.Program,_xlfn.TEXTAFTER(_xlfn.TEXTBEFORE(_xlpm.Contract,\"-\",2),\"-\"),\n_xlpm.CleanProgram,_xlfn.XLOOKUP(_xlpm.Program,SpellCheck[Input],SpellCheck[Correction],_xlpm.Program),\n_xlpm.Number,TEXT(_xlfn.TEXTAFTER(_xlpm.Contract,\"-\",2),\"0000\"),\n_xlfn.CONCAT(_xlpm.Yr,\"-\",_xlpm.CleanProgram,\"-\",_xlpm.Number))\n),\"\")","v":""},{"$f":"IFERROR(IF(A175=\"\",\"\",\n_xlfn.LET(_xlpm.Contract,'1. Checklist & Certification'!$F$7,\n_xlpm.Yr,TEXT(MOD(_xlfn.TEXTBEFORE(_xlpm.Contract,\"-\"),100),\"00\"),\n_xlpm.Program,_xlfn.TEXTAFTER(_xlfn.TEXTBEFORE(_xlpm.Contract,\"-\",2),\"-\"),\n_xlpm.CleanProgram,_xlfn.XLOOKUP(_xlpm.Program,SpellCheck[Input],SpellCheck[Correction],_xlpm.Program),\n_xlpm.Number,TEXT(_xlfn.TEXTAFTER(_xlpm.Contract,\"-\",2),\"0000\"),\n_xlfn.CONCAT(_xlpm.Yr,\"-\",_xlpm.CleanProgram,\"-\",_xlpm.Number))\n),\"\")","v":""},{"$f":"IFERROR(IF(A175=\"\",\"\",\n_xlfn.LET(_xlpm.Contract,'1. Checklist & Certification'!$F$8,\n_xlpm.Yr,TEXT(MOD(_xlfn.TEXTBEFORE(_xlpm.Contract,\"-\"),100),\"00\"),\n_xlpm.Program,_xlfn.TEXTAFTER(_xlfn.TEXTBEFORE(_xlpm.Contract,\"-\",2),\"-\"),\n_xlpm.CleanProgram,_xlfn.XLOOKUP(_xlpm.Program,SpellCheck[Input],SpellCheck[Correction],_xlpm.Program),\n_xlpm.Number,TEXT(_xlfn.TEXTAFTER(_xlpm.Contract,\"-\",2),\"0000\"),\n_xlfn.CONCAT(_xlpm.Yr,\"-\",_xlpm.CleanProgram,\"-\",_xlpm.Number))\n),\"\")","v":""},{"$f":"IF(A175=\"\",\"\",'1. Checklist & Certification'!$B$9)","v":""},{"$f":"IF(A175=\"\",\"\",'1. Checklist & Certification'!$F$9)","v":""},{"$f":"IF(A175=\"\",\"\",'1. Checklist & Certification'!$C$10)","v":""},{"$f":"IF(A175=\"\",\"\",'1. Checklist & Certification'!$C$11)","v":""},{"$f":"IF(A175=\"\",\"\",'1. Checklist & Certification'!$C$12)","v":""},{"$f":"IF(A175=\"\",\"\",'1. Checklist & Certification'!$B$14)","v":""},{"$f":"IF(A175=\"\",\"\",'1. Checklist & Certification'!$E$14)","v":""},{"$f":"IF(B175=\"\",\"\",'1. Checklist & Certification'!$G$14)","v":""},{"$f":"IF(A175=\"\",\"\",'MHP Family Income & Rent Limits'!$B$3)","v":""},{"$f":"IF(A175=\"\",\"\",'MHP Family Income & Rent Limits'!$J$3)","v":""},{"$f":"IF(A175=\"\",\"\",'MHP Family Income & Rent Limits'!$E$4)","v":""},{"$f":"IF(A175=\"\",\"\",'MHP Family Income & Rent Limits'!$C$7)","v":""},{"$f":"IF(A175=\"\",\"\",'MHP Family Income & Rent Limits'!$F$8)","v":""},{"$f":"IF(A175=\"\",\"\",'1. Checklist & Certification'!$G$4)","v":""},{"$f":"IF(A175=\"\",\"\",'1. Checklist & Certification'!$K$39)","v":""},{"$f":"IF(A175=\"\",\"\",'1. Checklist & Certification'!$K$43)","v":""},{"$f":"IF(A175=\"\",\"\",'1. Checklist & Certification'!$K$45)","v":""},{"$f":"IF(A175=\"\",\"\",'1. Checklist & Certification'!$K$49)","v":""},{"$f":"IF(A175=\"\",\"\",'1. Checklist & Certification'!$K$62)","v":""},{"$f":"IF(A175=\"\",\"\",'1. Checklist & Certification'!$E$66)","v":""},{"$f":"IF(A175=\"\",\"\",'1. Checklist & Certification'!$E$67)","v":""},{"$f":"IF(A175=\"\",\"\",'1. Checklist & Certification'!$E$68)","v":""},{"$f":"IF(A175=\"\",\"\",'1. Checklist & Certification'!$G$66)","v":""},{"$f":"IF(A175=\"\",\"\",'1. Checklist & Certification'!$H$66)","v":""},{"$f":"IF(A175=\"\",\"\",'1. Checklist & Certification'!$I$66)","v":""},{"$f":"IF(A175=\"\",\"\",'1. Checklist & Certification'!$I$67)","v":""},{"$f":"IF(A175=\"\",\"\",'1. Checklist & Certification'!$I$68)","v":""},{"$f":"IF(A175=\"\",\"\",'1. Checklist & Certification'!$B$69)","v":""},{"$f":"IF(A175=\"\",\"\",'1. Checklist & Certification'!$C$69)","v":""},{"$f":"IF(A175=\"\",\"\",'1. Checklist & Certification'!$F$69)","v":""},{"$f":"IF(A175=\"\",\"\",'1. Checklist & Certification'!$G$69)","v":""},{"$f":"IF(A175=\"\",\"\",'1. Checklist & Certification'!$J$69)","v":""},{"$f":"IF(A175=\"\",\"\",'1. Checklist & Certification'!$K$69)","v":""},null,null,{"$f":"IF(AND(OR('1. Checklist & Certification'!$M$16=1,'1. Checklist & Certification'!$M$19=2),AO175>0,B175=\"\",I175>0,AQ175<I175,AV175<>\"Sec 8-Project\"),\"X\",IF(AND(OR('1. Checklist & Certification'!$M$20=4,'1. Checklist & Certification'!$M$21=5,'1. Checklist & Certification'!$M$22=7),AO175>0,B175=\"\",I175>0,K175<I175),\"X\",\"\"))","v":""},{"$f":"IF(A175=\"\",\"\",IF(SUMPRODUCT(-- (ISNUMBER(SEARCH({\"*AHSC*\",\"*FMTW*\",\"*FWHG*\",\"*GHI*\",\"*HHC*\",\"*HLCP*\",\"*HOME*\",\"*LPR*\",\"*MHP*\",\"*NHTF*\",\"*NSP*\",\"*PRP*\",\"*TOD*\",\"*VHHP*\"},'1. Checklist & Certification'!$L$7)))),\"MHP\",\"Legacy\"))","v":""},",,",null,null,null,{"$f":"IF('1. Checklist & Certification'!$M$20=4,\"Both\",IF(OR('1. Checklist & Certification'!$M$15>0,S175=\"CHRP-R\",U175=\"CHRP-R\",W175=\"CHRP-R\",Y175=\"CHRP-R\"),\"Under\",\"No\"))","v":"No"},"No","No",{"$f":"_xlfn.IFS(D175=\"\",\"\",D175=1,'MHP Family Income & Rent Limits'!$E$17,D175=2,'MHP Family Income & Rent Limits'!$F$17,D175=3,'MHP Family Income & Rent Limits'!$G$17,D175=4,'MHP Family Income & Rent Limits'!$H$17,D175=5,'MHP Family Income & Rent Limits'!$I$17,D175=6,'MHP Family Income & Rent Limits'!$J$17,D175=7,'MHP Family Income & Rent Limits'!$K$17,D175=8,'MHP Family Income & Rent Limits'!$L$17)","v":""},"",{"$f":"IF(OR(A175=0,B175=\"X\"),0,MIN(IF(AA175:AD175<>0,AA175:AD175)))","v":0},{"$f":"IF(OR(H175=\"\",I175=\"\"),0,IF(H175*0.3/12>I175,MIN(H175*0.3/12,I175*1.1)+AP175,I175*(1+(VLOOKUP('1. Checklist & Certification'!$F$9,'HLCP-E Rent Change'!$A$1:$D$59,4,FALSE)))+AP175))","v":0}]
[null,null,null,null,null,null,null,null,null,null,null,null,null,null,null,null,null,null,null,null,null,null,null,null,null,null,0,0,0,0,0,0,0,0,{"$f":"IF(OR(A176=0,B176=\"X\"),0,IF(OR(S176=\"FHDP\",S176=\"RHCP-B\",U176=\"FHDP\",U176=\"RHCP-B\",W176=\"FHDP\",W176=\"RHCP-B\",Y176=\"FHDP\",Y176=\"RHCP-B\"),TRUNC((MIN(I176,K176)*(1+'1. Checklist & Certification'!$K$43)+AP176)),0))","v":0},{"$f":"IF(OR(A176=0,B176=\"X\"),0,IF(OR(S176=\"CHRP-R\",S176=\"SERA\",S176=\"SUHRP\",U176=\"CHRP-R\",U176=\"SERA\",U176=\"SUHRP\",W176=\"CHRP-R\",W176=\"SERA\",W176=\"SUHRP\",Y176=\"CHRP-R\",Y176=\"SERA\",Y176=\"SUHRP\"),TRUNC((MIN(I176,K176)*(1+'1. Checklist & Certification'!$K$49))),0))","v":0},{"$f":"IF(OR(A176=0,B176=\"X\"),0,IF(OR(S176=\"CALDAP\",S176=\"DPRLP\",U176=\"CALDAP\",U176=\"DPRLP\",W176=\"CALDAP\",W176=\"DPRLP\",Y176=\"CALDAP\",Y176=\"DPRLP\"),TRUNC(((MIN(I176,K176))*(1+'1. Checklist & Certification'!$G$4))),0))","v":0},0,0,0,{"$f":"IF(OR(A176=0,B176=\"X\"),0,IF(OR(S176=\"PRP\",S176=\"LPR\",U176=\"PRP\",U176=\"LPR\",W176=\"PRP\",W176=\"LPR\",Y176=\"PRP\",Y176=\"LPR\"),MAX(I176+AP176,MIN(IF(AE176:AN176<>0,AE176:AN176))),MIN(IF(AE176:AN176<>0,AE176:AN176))))","v":0},{"$f":"IF(A176=0,0,IF(AND(OR(S176=\"Mgr\",S176=0),OR(U176=\"Mgr\",U176=0),OR(W176=\"Mgr\",W176=0)),0,IF(LEFT($A176,2)=\"B*\",VLOOKUP($E176,'1. Checklist & Certification'!$D$26:$E$32,2),IF(LEFT($A176,2)=\"C*\",VLOOKUP($E176,'1. Checklist & Certification'!$F$26:$G$32,2),IF(LEFT($A176,2)=\"D*\",VLOOKUP($E176,'1. Checklist & Certification'!$H$26:$I$32,2),IF(LEFT($A176,2)=\"E*\",VLOOKUP($E176,'1. Checklist & Certification'!$J$26:$K$32,2),VLOOKUP($E176,'1. Checklist & Certification'!$A$26:$B$32,2)))))))","v":0},0,0,null,null,null,null,"","",0,0,0,null,{"$f":"IF(A176=\"\",\"\",'1. Checklist & Certification'!$K$1)","v":""},{"$f":"IF(A176=\"\",\"\",'1. Checklist & Certification'!$C$62)","v":""},{"$f":"IF(A176=\"\",\"\",'1. Checklist & Certification'!$C$6)","v":""},{"$f":"IF(A176=\"\",\"\",'1. Checklist & Certification'!$G$5)","v":""},{"$f":"IFERROR(IF(A176=\"\",\"\",\n_xlfn.LET(_xlpm.Contract,'1. Checklist & Certification'!$C$7,\n_xlpm.Yr,TEXT(MOD(_xlfn.TEXTBEFORE(_xlpm.Contract,\"-\"),100),\"00\"),\n_xlpm.Program,_xlfn.TEXTAFTER(_xlfn.TEXTBEFORE(_xlpm.Contract,\"-\",2),\"-\"),\n_xlpm.CleanProgram,_xlfn.XLOOKUP(_xlpm.Program,SpellCheck[Input],SpellCheck[Correction],_xlpm.Program),\n_xlpm.Number,TEXT(_xlfn.TEXTAFTER(_xlpm.Contract,\"-\",2),\"0000\"),\n_xlfn.CONCAT(_xlpm.Yr,\"-\",_xlpm.CleanProgram,\"-\",_xlpm.Number))\n),\"\")","v":""},{"$f":"IFERROR(IF(A176=\"\",\"\",\n_xlfn.LET(_xlpm.Contract,'1. Checklist & Certification'!$C$8,\n_xlpm.Yr,TEXT(MOD(_xlfn.TEXTBEFORE(_xlpm.Contract,\"-\"),100),\"00\"),\n_xlpm.Program,_xlfn.TEXTAFTER(_xlfn.TEXTBEFORE(_xlpm.Contract,\"-\",2),\"-\"),\n_xlpm.CleanProgram,_xlfn.XLOOKUP(_xlpm.Program,SpellCheck[Input],SpellCheck[Correction],_xlpm.Program),\n_xlpm.Number,TEXT(_xlfn.TEXTAFTER(_xlpm.Contract,\"-\",2),\"0000\"),\n_xlfn.CONCAT(_xlpm.Yr,\"-\",_xlpm.CleanProgram,\"-\",_xlpm.Number))\n),\"\")","v":""},{"$f":"IFERROR(IF(A176=\"\",\"\",\n_xlfn.LET(_xlpm.Contract,'1. Checklist & Certification'!$F$7,\n_xlpm.Yr,TEXT(MOD(_xlfn.TEXTBEFORE(_xlpm.Contract,\"-\"),100),\"00\"),\n_xlpm.Program,_xlfn.TEXTAFTER(_xlfn.TEXTBEFORE(_xlpm.Contract,\"-\",2),\"-\"),\n_xlpm.CleanProgram,_xlfn.XLOOKUP(_xlpm.Program,SpellCheck[Input],SpellCheck[Correction],_xlpm.Program),\n_xlpm.Number,TEXT(_xlfn.TEXTAFTER(_xlpm.Contract,\"-\",2),\"0000\"),\n_xlfn.CONCAT(_xlpm.Yr,\"-\",_xlpm.CleanProgram,\"-\",_xlpm.Number))\n),\"\")","v":""},{"$f":"IFERROR(IF(A176=\"\",\"\",\n_xlfn.LET(_xlpm.Contract,'1. Checklist & Certification'!$F$8,\n_xlpm.Yr,TEXT(MOD(_xlfn.TEXTBEFORE(_xlpm.Contract,\"-\"),100),\"00\"),\n_xlpm.Program,_xlfn.TEXTAFTER(_xlfn.TEXTBEFORE(_xlpm.Contract,\"-\",2),\"-\"),\n_xlpm.CleanProgram,_xlfn.XLOOKUP(_xlpm.Program,SpellCheck[Input],SpellCheck[Correction],_xlpm.Program),\n_xlpm.Number,TEXT(_xlfn.TEXTAFTER(_xlpm.Contract,\"-\",2),\"0000\"),\n_xlfn.CONCAT(_xlpm.Yr,\"-\",_xlpm.CleanProgram,\"-\",_xlpm.Number))\n),\"\")","v":""},{"$f":"IF(A176=\"\",\"\",'1. Checklist & Certification'!$B$9)","v":""},{"$f":"IF(A176=\"\",\"\",'1. Checklist & Certification'!$F$9)","v":""},{"$f":"IF(A176=\"\",\"\",'1. Checklist & Certification'!$C$10)","v":""},{"$f":"IF(A176=\"\",\"\",'1. Checklist & Certification'!$C$11)","v":""},{"$f":"IF(A176=\"\",\"\",'1. Checklist & Certification'!$C$12)","v":""},{"$f":"IF(A176=\"\",\"\",'1. Checklist & Certification'!$B$14)","v":""},{"$f":"IF(A176=\"\",\"\",'1. Checklist & Certification'!$E$14)","v":""},{"$f":"IF(B176=\"\",\"\",'1. Checklist & Certification'!$G$14)","v":""},{"$f":"IF(A176=\"\",\"\",'MHP Family Income & Rent Limits'!$B$3)","v":""},{"$f":"IF(A176=\"\",\"\",'MHP Family Income & Rent Limits'!$J$3)","v":""},{"$f":"IF(A176=\"\",\"\",'MHP Family Income & Rent Limits'!$E$4)","v":""},{"$f":"IF(A176=\"\",\"\",'MHP Family Income & Rent Limits'!$C$7)","v":""},{"$f":"IF(A176=\"\",\"\",'MHP Family Income & Rent Limits'!$F$8)","v":""},{"$f":"IF(A176=\"\",\"\",'1. Checklist & Certification'!$G$4)","v":""},{"$f":"IF(A176=\"\",\"\",'1. Checklist & Certification'!$K$39)","v":""},{"$f":"IF(A176=\"\",\"\",'1. Checklist & Certification'!$K$43)","v":""},{"$f":"IF(A176=\"\",\"\",'1. Checklist & Certification'!$K$45)","v":""},{"$f":"IF(A176=\"\",\"\",'1. Checklist & Certification'!$K$49)","v":""},{"$f":"IF(A176=\"\",\"\",'1. Checklist & Certification'!$K$62)","v":""},{"$f":"IF(A176=\"\",\"\",'1. Checklist & Certification'!$E$66)","v":""},{"$f":"IF(A176=\"\",\"\",'1. Checklist & Certification'!$E$67)","v":""},{"$f":"IF(A176=\"\",\"\",'1. Checklist & Certification'!$E$68)","v":""},{"$f":"IF(A176=\"\",\"\",'1. Checklist & Certification'!$G$66)","v":""},{"$f":"IF(A176=\"\",\"\",'1. Checklist & Certification'!$H$66)","v":""},{"$f":"IF(A176=\"\",\"\",'1. Checklist & Certification'!$I$66)","v":""},{"$f":"IF(A176=\"\",\"\",'1. Checklist & Certification'!$I$67)","v":""},{"$f":"IF(A176=\"\",\"\",'1. Checklist & Certification'!$I$68)","v":""},{"$f":"IF(A176=\"\",\"\",'1. Checklist & Certification'!$B$69)","v":""},{"$f":"IF(A176=\"\",\"\",'1. Checklist & Certification'!$C$69)","v":""},{"$f":"IF(A176=\"\",\"\",'1. Checklist & Certification'!$F$69)","v":""},{"$f":"IF(A176=\"\",\"\",'1. Checklist & Certification'!$G$69)","v":""},{"$f":"IF(A176=\"\",\"\",'1. Checklist & Certification'!$J$69)","v":""},{"$f":"IF(A176=\"\",\"\",'1. Checklist & Certification'!$K$69)","v":""},null,null,{"$f":"IF(AND(OR('1. Checklist & Certification'!$M$16=1,'1. Checklist & Certification'!$M$19=2),AO176>0,B176=\"\",I176>0,AQ176<I176,AV176<>\"Sec 8-Project\"),\"X\",IF(AND(OR('1. Checklist & Certification'!$M$20=4,'1. Checklist & Certification'!$M$21=5,'1. Checklist & Certification'!$M$22=7),AO176>0,B176=\"\",I176>0,K176<I176),\"X\",\"\"))","v":""},{"$f":"IF(A176=\"\",\"\",IF(SUMPRODUCT(-- (ISNUMBER(SEARCH({\"*AHSC*\",\"*FMTW*\",\"*FWHG*\",\"*GHI*\",\"*HHC*\",\"*HLCP*\",\"*HOME*\",\"*LPR*\",\"*MHP*\",\"*NHTF*\",\"*NSP*\",\"*PRP*\",\"*TOD*\",\"*VHHP*\"},'1. Checklist & Certification'!$L$7)))),\"MHP\",\"Legacy\"))","v":""},",,",null,null,null,{"$f":"IF('1. Checklist & Certification'!$M$20=4,\"Both\",IF(OR('1. Checklist & Certification'!$M$15>0,S176=\"CHRP-R\",U176=\"CHRP-R\",W176=\"CHRP-R\",Y176=\"CHRP-R\"),\"Under\",\"No\"))","v":"No"},"No","No",{"$f":"_xlfn.IFS(D176=\"\",\"\",D176=1,'MHP Family Income & Rent Limits'!$E$17,D176=2,'MHP Family Income & Rent Limits'!$F$17,D176=3,'MHP Family Income & Rent Limits'!$G$17,D176=4,'MHP Family Income & Rent Limits'!$H$17,D176=5,'MHP Family Income & Rent Limits'!$I$17,D176=6,'MHP Family Income & Rent Limits'!$J$17,D176=7,'MHP Family Income & Rent Limits'!$K$17,D176=8,'MHP Family Income & Rent Limits'!$L$17)","v":""},"",{"$f":"IF(OR(A176=0,B176=\"X\"),0,MIN(IF(AA176:AD176<>0,AA176:AD176)))","v":0},{"$f":"IF(OR(H176=\"\",I176=\"\"),0,IF(H176*0.3/12>I176,MIN(H176*0.3/12,I176*1.1)+AP176,I176*(1+(VLOOKUP('1. Checklist & Certification'!$F$9,'HLCP-E Rent Change'!$A$1:$D$59,4,FALSE)))+AP176))","v":0}]
[null,null,null,null,null,null,null,null,null,null,null,null,null,null,null,null,null,null,null,null,null,null,null,null,null,null,0,0,0,0,0,0,0,0,{"$f":"IF(OR(A177=0,B177=\"X\"),0,IF(OR(S177=\"FHDP\",S177=\"RHCP-B\",U177=\"FHDP\",U177=\"RHCP-B\",W177=\"FHDP\",W177=\"RHCP-B\",Y177=\"FHDP\",Y177=\"RHCP-B\"),TRUNC((MIN(I177,K177)*(1+'1. Checklist & Certification'!$K$43)+AP177)),0))","v":0},{"$f":"IF(OR(A177=0,B177=\"X\"),0,IF(OR(S177=\"CHRP-R\",S177=\"SERA\",S177=\"SUHRP\",U177=\"CHRP-R\",U177=\"SERA\",U177=\"SUHRP\",W177=\"CHRP-R\",W177=\"SERA\",W177=\"SUHRP\",Y177=\"CHRP-R\",Y177=\"SERA\",Y177=\"SUHRP\"),TRUNC((MIN(I177,K177)*(1+'1. Checklist & Certification'!$K$49))),0))","v":0},{"$f":"IF(OR(A177=0,B177=\"X\"),0,IF(OR(S177=\"CALDAP\",S177=\"DPRLP\",U177=\"CALDAP\",U177=\"DPRLP\",W177=\"CALDAP\",W177=\"DPRLP\",Y177=\"CALDAP\",Y177=\"DPRLP\"),TRUNC(((MIN(I177,K177))*(1+'1. Checklist & Certification'!$G$4))),0))","v":0},0,0,0,{"$f":"IF(OR(A177=0,B177=\"X\"),0,IF(OR(S177=\"PRP\",S177=\"LPR\",U177=\"PRP\",U177=\"LPR\",W177=\"PRP\",W177=\"LPR\",Y177=\"PRP\",Y177=\"LPR\"),MAX(I177+AP177,MIN(IF(AE177:AN177<>0,AE177:AN177))),MIN(IF(AE177:AN177<>0,AE177:AN177))))","v":0},{"$f":"IF(A177=0,0,IF(AND(OR(S177=\"Mgr\",S177=0),OR(U177=\"Mgr\",U177=0),OR(W177=\"Mgr\",W177=0)),0,IF(LEFT($A177,2)=\"B*\",VLOOKUP($E177,'1. Checklist & Certification'!$D$26:$E$32,2),IF(LEFT($A177,2)=\"C*\",VLOOKUP($E177,'1. Checklist & Certification'!$F$26:$G$32,2),IF(LEFT($A177,2)=\"D*\",VLOOKUP($E177,'1. Checklist & Certification'!$H$26:$I$32,2),IF(LEFT($A177,2)=\"E*\",VLOOKUP($E177,'1. Checklist & Certification'!$J$26:$K$32,2),VLOOKUP($E177,'1. Checklist & Certification'!$A$26:$B$32,2)))))))","v":0},0,0,null,null,null,null,"","",0,0,0,null,{"$f":"IF(A177=\"\",\"\",'1. Checklist & Certification'!$K$1)","v":""},{"$f":"IF(A177=\"\",\"\",'1. Checklist & Certification'!$C$62)","v":""},{"$f":"IF(A177=\"\",\"\",'1. Checklist & Certification'!$C$6)","v":""},{"$f":"IF(A177=\"\",\"\",'1. Checklist & Certification'!$G$5)","v":""},{"$f":"IFERROR(IF(A177=\"\",\"\",\n_xlfn.LET(_xlpm.Contract,'1. Checklist & Certification'!$C$7,\n_xlpm.Yr,TEXT(MOD(_xlfn.TEXTBEFORE(_xlpm.Contract,\"-\"),100),\"00\"),\n_xlpm.Program,_xlfn.TEXTAFTER(_xlfn.TEXTBEFORE(_xlpm.Contract,\"-\",2),\"-\"),\n_xlpm.CleanProgram,_xlfn.XLOOKUP(_xlpm.Program,SpellCheck[Input],SpellCheck[Correction],_xlpm.Program),\n_xlpm.Number,TEXT(_xlfn.TEXTAFTER(_xlpm.Contract,\"-\",2),\"0000\"),\n_xlfn.CONCAT(_xlpm.Yr,\"-\",_xlpm.CleanProgram,\"-\",_xlpm.Number))\n),\"\")","v":""},{"$f":"IFERROR(IF(A177=\"\",\"\",\n_xlfn.LET(_xlpm.Contract,'1. Checklist & Certification'!$C$8,\n_xlpm.Yr,TEXT(MOD(_xlfn.TEXTBEFORE(_xlpm.Contract,\"-\"),100),\"00\"),\n_xlpm.Program,_xlfn.TEXTAFTER(_xlfn.TEXTBEFORE(_xlpm.Contract,\"-\",2),\"-\"),\n_xlpm.CleanProgram,_xlfn.XLOOKUP(_xlpm.Program,SpellCheck[Input],SpellCheck[Correction],_xlpm.Program),\n_xlpm.Number,TEXT(_xlfn.TEXTAFTER(_xlpm.Contract,\"-\",2),\"0000\"),\n_xlfn.CONCAT(_xlpm.Yr,\"-\",_xlpm.CleanProgram,\"-\",_xlpm.Number))\n),\"\")","v":""},{"$f":"IFERROR(IF(A177=\"\",\"\",\n_xlfn.LET(_xlpm.Contract,'1. Checklist & Certification'!$F$7,\n_xlpm.Yr,TEXT(MOD(_xlfn.TEXTBEFORE(_xlpm.Contract,\"-\"),100),\"00\"),\n_xlpm.Program,_xlfn.TEXTAFTER(_xlfn.TEXTBEFORE(_xlpm.Contract,\"-\",2),\"-\"),\n_xlpm.CleanProgram,_xlfn.XLOOKUP(_xlpm.Program,SpellCheck[Input],SpellCheck[Correction],_xlpm.Program),\n_xlpm.Number,TEXT(_xlfn.TEXTAFTER(_xlpm.Contract,\"-\",2),\"0000\"),\n_xlfn.CONCAT(_xlpm.Yr,\"-\",_xlpm.CleanProgram,\"-\",_xlpm.Number))\n),\"\")","v":""},{"$f":"IFERROR(IF(A177=\"\",\"\",\n_xlfn.LET(_xlpm.Contract,'1. Checklist & Certification'!$F$8,\n_xlpm.Yr,TEXT(MOD(_xlfn.TEXTBEFORE(_xlpm.Contract,\"-\"),100),\"00\"),\n_xlpm.Program,_xlfn.TEXTAFTER(_xlfn.TEXTBEFORE(_xlpm.Contract,\"-\",2),\"-\"),\n_xlpm.CleanProgram,_xlfn.XLOOKUP(_xlpm.Program,SpellCheck[Input],SpellCheck[Correction],_xlpm.Program),\n_xlpm.Number,TEXT(_xlfn.TEXTAFTER(_xlpm.Contract,\"-\",2),\"0000\"),\n_xlfn.CONCAT(_xlpm.Yr,\"-\",_xlpm.CleanProgram,\"-\",_xlpm.Number))\n),\"\")","v":""},{"$f":"IF(A177=\"\",\"\",'1. Checklist & Certification'!$B$9)","v":""},{"$f":"IF(A177=\"\",\"\",'1. Checklist & Certification'!$F$9)","v":""},{"$f":"IF(A177=\"\",\"\",'1. Checklist & Certification'!$C$10)","v":""},{"$f":"IF(A177=\"\",\"\",'1. Checklist & Certification'!$C$11)","v":""},{"$f":"IF(A177=\"\",\"\",'1. Checklist & Certification'!$C$12)","v":""},{"$f":"IF(A177=\"\",\"\",'1. Checklist & Certification'!$B$14)","v":""},{"$f":"IF(A177=\"\",\"\",'1. Checklist & Certification'!$E$14)","v":""},{"$f":"IF(B177=\"\",\"\",'1. Checklist & Certification'!$G$14)","v":""},{"$f":"IF(A177=\"\",\"\",'MHP Family Income & Rent Limits'!$B$3)","v":""},{"$f":"IF(A177=\"\",\"\",'MHP Family Income & Rent Limits'!$J$3)","v":""},{"$f":"IF(A177=\"\",\"\",'MHP Family Income & Rent Limits'!$E$4)","v":""},{"$f":"IF(A177=\"\",\"\",'MHP Family Income & Rent Limits'!$C$7)","v":""},{"$f":"IF(A177=\"\",\"\",'MHP Family Income & Rent Limits'!$F$8)","v":""},{"$f":"IF(A177=\"\",\"\",'1. Checklist & Certification'!$G$4)","v":""},{"$f":"IF(A177=\"\",\"\",'1. Checklist & Certification'!$K$39)","v":""},{"$f":"IF(A177=\"\",\"\",'1. Checklist & Certification'!$K$43)","v":""},{"$f":"IF(A177=\"\",\"\",'1. Checklist & Certification'!$K$45)","v":""},{"$f":"IF(A177=\"\",\"\",'1. Checklist & Certification'!$K$49)","v":""},{"$f":"IF(A177=\"\",\"\",'1. Checklist & Certification'!$K$62)","v":""},{"$f":"IF(A177=\"\",\"\",'1. Checklist & Certification'!$E$66)","v":""},{"$f":"IF(A177=\"\",\"\",'1. Checklist & Certification'!$E$67)","v":""},{"$f":"IF(A177=\"\",\"\",'1. Checklist & Certification'!$E$68)","v":""},{"$f":"IF(A177=\"\",\"\",'1. Checklist & Certification'!$G$66)","v":""},{"$f":"IF(A177=\"\",\"\",'1. Checklist & Certification'!$H$66)","v":""},{"$f":"IF(A177=\"\",\"\",'1. Checklist & Certification'!$I$66)","v":""},{"$f":"IF(A177=\"\",\"\",'1. Checklist & Certification'!$I$67)","v":""},{"$f":"IF(A177=\"\",\"\",'1. Checklist & Certification'!$I$68)","v":""},{"$f":"IF(A177=\"\",\"\",'1. Checklist & Certification'!$B$69)","v":""},{"$f":"IF(A177=\"\",\"\",'1. Checklist & Certification'!$C$69)","v":""},{"$f":"IF(A177=\"\",\"\",'1. Checklist & Certification'!$F$69)","v":""},{"$f":"IF(A177=\"\",\"\",'1. Checklist & Certification'!$G$69)","v":""},{"$f":"IF(A177=\"\",\"\",'1. Checklist & Certification'!$J$69)","v":""},{"$f":"IF(A177=\"\",\"\",'1. Checklist & Certification'!$K$69)","v":""},null,null,{"$f":"IF(AND(OR('1. Checklist & Certification'!$M$16=1,'1. Checklist & Certification'!$M$19=2),AO177>0,B177=\"\",I177>0,AQ177<I177,AV177<>\"Sec 8-Project\"),\"X\",IF(AND(OR('1. Checklist & Certification'!$M$20=4,'1. Checklist & Certification'!$M$21=5,'1. Checklist & Certification'!$M$22=7),AO177>0,B177=\"\",I177>0,K177<I177),\"X\",\"\"))","v":""},{"$f":"IF(A177=\"\",\"\",IF(SUMPRODUCT(-- (ISNUMBER(SEARCH({\"*AHSC*\",\"*FMTW*\",\"*FWHG*\",\"*GHI*\",\"*HHC*\",\"*HLCP*\",\"*HOME*\",\"*LPR*\",\"*MHP*\",\"*NHTF*\",\"*NSP*\",\"*PRP*\",\"*TOD*\",\"*VHHP*\"},'1. Checklist & Certification'!$L$7)))),\"MHP\",\"Legacy\"))","v":""},",,",null,null,null,{"$f":"IF('1. Checklist & Certification'!$M$20=4,\"Both\",IF(OR('1. Checklist & Certification'!$M$15>0,S177=\"CHRP-R\",U177=\"CHRP-R\",W177=\"CHRP-R\",Y177=\"CHRP-R\"),\"Under\",\"No\"))","v":"No"},"No","No",{"$f":"_xlfn.IFS(D177=\"\",\"\",D177=1,'MHP Family Income & Rent Limits'!$E$17,D177=2,'MHP Family Income & Rent Limits'!$F$17,D177=3,'MHP Family Income & Rent Limits'!$G$17,D177=4,'MHP Family Income & Rent Limits'!$H$17,D177=5,'MHP Family Income & Rent Limits'!$I$17,D177=6,'MHP Family Income & Rent Limits'!$J$17,D177=7,'MHP Family Income & Rent Limits'!$K$17,D177=8,'MHP Family Income & Rent Limits'!$L$17)","v":""},"",{"$f":"IF(OR(A177=0,B177=\"X\"),0,MIN(IF(AA177:AD177<>0,AA177:AD177)))","v":0},{"$f":"IF(OR(H177=\"\",I177=\"\"),0,IF(H177*0.3/12>I177,MIN(H177*0.3/12,I177*1.1)+AP177,I177*(1+(VLOOKUP('1. Checklist & Certification'!$F$9,'HLCP-E Rent Change'!$A$1:$D$59,4,FALSE)))+AP177))","v":0}]
[null,null,null,null,null,null,null,null,null,null,null,null,null,null,null,null,null,null,null,null,null,null,null,null,null,null,0,0,0,0,0,0,0,0,{"$f":"IF(OR(A178=0,B178=\"X\"),0,IF(OR(S178=\"FHDP\",S178=\"RHCP-B\",U178=\"FHDP\",U178=\"RHCP-B\",W178=\"FHDP\",W178=\"RHCP-B\",Y178=\"FHDP\",Y178=\"RHCP-B\"),TRUNC((MIN(I178,K178)*(1+'1. Checklist & Certification'!$K$43)+AP178)),0))","v":0},{"$f":"IF(OR(A178=0,B178=\"X\"),0,IF(OR(S178=\"CHRP-R\",S178=\"SERA\",S178=\"SUHRP\",U178=\"CHRP-R\",U178=\"SERA\",U178=\"SUHRP\",W178=\"CHRP-R\",W178=\"SERA\",W178=\"SUHRP\",Y178=\"CHRP-R\",Y178=\"SERA\",Y178=\"SUHRP\"),TRUNC((MIN(I178,K178)*(1+'1. Checklist & Certification'!$K$49))),0))","v":0},{"$f":"IF(OR(A178=0,B178=\"X\"),0,IF(OR(S178=\"CALDAP\",S178=\"DPRLP\",U178=\"CALDAP\",U178=\"DPRLP\",W178=\"CALDAP\",W178=\"DPRLP\",Y178=\"CALDAP\",Y178=\"DPRLP\"),TRUNC(((MIN(I178,K178))*(1+'1. Checklist & Certification'!$G$4))),0))","v":0},0,0,0,{"$f":"IF(OR(A178=0,B178=\"X\"),0,IF(OR(S178=\"PRP\",S178=\"LPR\",U178=\"PRP\",U178=\"LPR\",W178=\"PRP\",W178=\"LPR\",Y178=\"PRP\",Y178=\"LPR\"),MAX(I178+AP178,MIN(IF(AE178:AN178<>0,AE178:AN178))),MIN(IF(AE178:AN178<>0,AE178:AN178))))","v":0},{"$f":"IF(A178=0,0,IF(AND(OR(S178=\"Mgr\",S178=0),OR(U178=\"Mgr\",U178=0),OR(W178=\"Mgr\",W178=0)),0,IF(LEFT($A178,2)=\"B*\",VLOOKUP($E178,'1. Checklist & Certification'!$D$26:$E$32,2),IF(LEFT($A178,2)=\"C*\",VLOOKUP($E178,'1. Checklist & Certification'!$F$26:$G$32,2),IF(LEFT($A178,2)=\"D*\",VLOOKUP($E178,'1. Checklist & Certification'!$H$26:$I$32,2),IF(LEFT($A178,2)=\"E*\",VLOOKUP($E178,'1. Checklist & Certification'!$J$26:$K$32,2),VLOOKUP($E178,'1. Checklist & Certification'!$A$26:$B$32,2)))))))","v":0},0,0,null,null,null,null,"","",0,0,0,null,{"$f":"IF(A178=\"\",\"\",'1. Checklist & Certification'!$K$1)","v":""},{"$f":"IF(A178=\"\",\"\",'1. Checklist & Certification'!$C$62)","v":""},{"$f":"IF(A178=\"\",\"\",'1. Checklist & Certification'!$C$6)","v":""},{"$f":"IF(A178=\"\",\"\",'1. Checklist & Certification'!$G$5)","v":""},{"$f":"IFERROR(IF(A178=\"\",\"\",\n_xlfn.LET(_xlpm.Contract,'1. Checklist & Certification'!$C$7,\n_xlpm.Yr,TEXT(MOD(_xlfn.TEXTBEFORE(_xlpm.Contract,\"-\"),100),\"00\"),\n_xlpm.Program,_xlfn.TEXTAFTER(_xlfn.TEXTBEFORE(_xlpm.Contract,\"-\",2),\"-\"),\n_xlpm.CleanProgram,_xlfn.XLOOKUP(_xlpm.Program,SpellCheck[Input],SpellCheck[Correction],_xlpm.Program),\n_xlpm.Number,TEXT(_xlfn.TEXTAFTER(_xlpm.Contract,\"-\",2),\"0000\"),\n_xlfn.CONCAT(_xlpm.Yr,\"-\",_xlpm.CleanProgram,\"-\",_xlpm.Number))\n),\"\")","v":""},{"$f":"IFERROR(IF(A178=\"\",\"\",\n_xlfn.LET(_xlpm.Contract,'1. Checklist & Certification'!$C$8,\n_xlpm.Yr,TEXT(MOD(_xlfn.TEXTBEFORE(_xlpm.Contract,\"-\"),100),\"00\"),\n_xlpm.Program,_xlfn.TEXTAFTER(_xlfn.TEXTBEFORE(_xlpm.Contract,\"-\",2),\"-\"),\n_xlpm.CleanProgram,_xlfn.XLOOKUP(_xlpm.Program,SpellCheck[Input],SpellCheck[Correction],_xlpm.Program),\n_xlpm.Number,TEXT(_xlfn.TEXTAFTER(_xlpm.Contract,\"-\",2),\"0000\"),\n_xlfn.CONCAT(_xlpm.Yr,\"-\",_xlpm.CleanProgram,\"-\",_xlpm.Number))\n),\"\")","v":""},{"$f":"IFERROR(IF(A178=\"\",\"\",\n_xlfn.LET(_xlpm.Contract,'1. Checklist & Certification'!$F$7,\n_xlpm.Yr,TEXT(MOD(_xlfn.TEXTBEFORE(_xlpm.Contract,\"-\"),100),\"00\"),\n_xlpm.Program,_xlfn.TEXTAFTER(_xlfn.TEXTBEFORE(_xlpm.Contract,\"-\",2),\"-\"),\n_xlpm.CleanProgram,_xlfn.XLOOKUP(_xlpm.Program,SpellCheck[Input],SpellCheck[Correction],_xlpm.Program),\n_xlpm.Number,TEXT(_xlfn.TEXTAFTER(_xlpm.Contract,\"-\",2),\"0000\"),\n_xlfn.CONCAT(_xlpm.Yr,\"-\",_xlpm.CleanProgram,\"-\",_xlpm.Number))\n),\"\")","v":""},{"$f":"IFERROR(IF(A178=\"\",\"\",\n_xlfn.LET(_xlpm.Contract,'1. Checklist & Certification'!$F$8,\n_xlpm.Yr,TEXT(MOD(_xlfn.TEXTBEFORE(_xlpm.Contract,\"-\"),100),\"00\"),\n_xlpm.Program,_xlfn.TEXTAFTER(_xlfn.TEXTBEFORE(_xlpm.Contract,\"-\",2),\"-\"),\n_xlpm.CleanProgram,_xlfn.XLOOKUP(_xlpm.Program,SpellCheck[Input],SpellCheck[Correction],_xlpm.Program),\n_xlpm.Number,TEXT(_xlfn.TEXTAFTER(_xlpm.Contract,\"-\",2),\"0000\"),\n_xlfn.CONCAT(_xlpm.Yr,\"-\",_xlpm.CleanProgram,\"-\",_xlpm.Number))\n),\"\")","v":""},{"$f":"IF(A178=\"\",\"\",'1. Checklist & Certification'!$B$9)","v":""},{"$f":"IF(A178=\"\",\"\",'1. Checklist & Certification'!$F$9)","v":""},{"$f":"IF(A178=\"\",\"\",'1. Checklist & Certification'!$C$10)","v":""},{"$f":"IF(A178=\"\",\"\",'1. Checklist & Certification'!$C$11)","v":""},{"$f":"IF(A178=\"\",\"\",'1. Checklist & Certification'!$C$12)","v":""},{"$f":"IF(A178=\"\",\"\",'1. Checklist & Certification'!$B$14)","v":""},{"$f":"IF(A178=\"\",\"\",'1. Checklist & Certification'!$E$14)","v":""},{"$f":"IF(B178=\"\",\"\",'1. Checklist & Certification'!$G$14)","v":""},{"$f":"IF(A178=\"\",\"\",'MHP Family Income & Rent Limits'!$B$3)","v":""},{"$f":"IF(A178=\"\",\"\",'MHP Family Income & Rent Limits'!$J$3)","v":""},{"$f":"IF(A178=\"\",\"\",'MHP Family Income & Rent Limits'!$E$4)","v":""},{"$f":"IF(A178=\"\",\"\",'MHP Family Income & Rent Limits'!$C$7)","v":""},{"$f":"IF(A178=\"\",\"\",'MHP Family Income & Rent Limits'!$F$8)","v":""},{"$f":"IF(A178=\"\",\"\",'1. Checklist & Certification'!$G$4)","v":""},{"$f":"IF(A178=\"\",\"\",'1. Checklist & Certification'!$K$39)","v":""},{"$f":"IF(A178=\"\",\"\",'1. Checklist & Certification'!$K$43)","v":""},{"$f":"IF(A178=\"\",\"\",'1. Checklist & Certification'!$K$45)","v":""},{"$f":"IF(A178=\"\",\"\",'1. Checklist & Certification'!$K$49)","v":""},{"$f":"IF(A178=\"\",\"\",'1. Checklist & Certification'!$K$62)","v":""},{"$f":"IF(A178=\"\",\"\",'1. Checklist & Certification'!$E$66)","v":""},{"$f":"IF(A178=\"\",\"\",'1. Checklist & Certification'!$E$67)","v":""},{"$f":"IF(A178=\"\",\"\",'1. Checklist & Certification'!$E$68)","v":""},{"$f":"IF(A178=\"\",\"\",'1. Checklist & Certification'!$G$66)","v":""},{"$f":"IF(A178=\"\",\"\",'1. Checklist & Certification'!$H$66)","v":""},{"$f":"IF(A178=\"\",\"\",'1. Checklist & Certification'!$I$66)","v":""},{"$f":"IF(A178=\"\",\"\",'1. Checklist & Certification'!$I$67)","v":""},{"$f":"IF(A178=\"\",\"\",'1. Checklist & Certification'!$I$68)","v":""},{"$f":"IF(A178=\"\",\"\",'1. Checklist & Certification'!$B$69)","v":""},{"$f":"IF(A178=\"\",\"\",'1. Checklist & Certification'!$C$69)","v":""},{"$f":"IF(A178=\"\",\"\",'1. Checklist & Certification'!$F$69)","v":""},{"$f":"IF(A178=\"\",\"\",'1. Checklist & Certification'!$G$69)","v":""},{"$f":"IF(A178=\"\",\"\",'1. Checklist & Certification'!$J$69)","v":""},{"$f":"IF(A178=\"\",\"\",'1. Checklist & Certification'!$K$69)","v":""},null,null,{"$f":"IF(AND(OR('1. Checklist & Certification'!$M$16=1,'1. Checklist & Certification'!$M$19=2),AO178>0,B178=\"\",I178>0,AQ178<I178,AV178<>\"Sec 8-Project\"),\"X\",IF(AND(OR('1. Checklist & Certification'!$M$20=4,'1. Checklist & Certification'!$M$21=5,'1. Checklist & Certification'!$M$22=7),AO178>0,B178=\"\",I178>0,K178<I178),\"X\",\"\"))","v":""},{"$f":"IF(A178=\"\",\"\",IF(SUMPRODUCT(-- (ISNUMBER(SEARCH({\"*AHSC*\",\"*FMTW*\",\"*FWHG*\",\"*GHI*\",\"*HHC*\",\"*HLCP*\",\"*HOME*\",\"*LPR*\",\"*MHP*\",\"*NHTF*\",\"*NSP*\",\"*PRP*\",\"*TOD*\",\"*VHHP*\"},'1. Checklist & Certification'!$L$7)))),\"MHP\",\"Legacy\"))","v":""},",,",null,null,null,{"$f":"IF('1. Checklist & Certification'!$M$20=4,\"Both\",IF(OR('1. Checklist & Certification'!$M$15>0,S178=\"CHRP-R\",U178=\"CHRP-R\",W178=\"CHRP-R\",Y178=\"CHRP-R\"),\"Under\",\"No\"))","v":"No"},"No","No",{"$f":"_xlfn.IFS(D178=\"\",\"\",D178=1,'MHP Family Income & Rent Limits'!$E$17,D178=2,'MHP Family Income & Rent Limits'!$F$17,D178=3,'MHP Family Income & Rent Limits'!$G$17,D178=4,'MHP Family Income & Rent Limits'!$H$17,D178=5,'MHP Family Income & Rent Limits'!$I$17,D178=6,'MHP Family Income & Rent Limits'!$J$17,D178=7,'MHP Family Income & Rent Limits'!$K$17,D178=8,'MHP Family Income & Rent Limits'!$L$17)","v":""},"",{"$f":"IF(OR(A178=0,B178=\"X\"),0,MIN(IF(AA178:AD178<>0,AA178:AD178)))","v":0},{"$f":"IF(OR(H178=\"\",I178=\"\"),0,IF(H178*0.3/12>I178,MIN(H178*0.3/12,I178*1.1)+AP178,I178*(1+(VLOOKUP('1. Checklist & Certification'!$F$9,'HLCP-E Rent Change'!$A$1:$D$59,4,FALSE)))+AP178))","v":0}]
[null,null,null,null,null,null,null,null,null,null,null,null,null,null,null,null,null,null,null,null,null,null,null,null,null,null,0,0,0,0,0,0,0,0,{"$f":"IF(OR(A179=0,B179=\"X\"),0,IF(OR(S179=\"FHDP\",S179=\"RHCP-B\",U179=\"FHDP\",U179=\"RHCP-B\",W179=\"FHDP\",W179=\"RHCP-B\",Y179=\"FHDP\",Y179=\"RHCP-B\"),TRUNC((MIN(I179,K179)*(1+'1. Checklist & Certification'!$K$43)+AP179)),0))","v":0},{"$f":"IF(OR(A179=0,B179=\"X\"),0,IF(OR(S179=\"CHRP-R\",S179=\"SERA\",S179=\"SUHRP\",U179=\"CHRP-R\",U179=\"SERA\",U179=\"SUHRP\",W179=\"CHRP-R\",W179=\"SERA\",W179=\"SUHRP\",Y179=\"CHRP-R\",Y179=\"SERA\",Y179=\"SUHRP\"),TRUNC((MIN(I179,K179)*(1+'1. Checklist & Certification'!$K$49))),0))","v":0},{"$f":"IF(OR(A179=0,B179=\"X\"),0,IF(OR(S179=\"CALDAP\",S179=\"DPRLP\",U179=\"CALDAP\",U179=\"DPRLP\",W179=\"CALDAP\",W179=\"DPRLP\",Y179=\"CALDAP\",Y179=\"DPRLP\"),TRUNC(((MIN(I179,K179))*(1+'1. Checklist & Certification'!$G$4))),0))","v":0},0,0,0,{"$f":"IF(OR(A179=0,B179=\"X\"),0,IF(OR(S179=\"PRP\",S179=\"LPR\",U179=\"PRP\",U179=\"LPR\",W179=\"PRP\",W179=\"LPR\",Y179=\"PRP\",Y179=\"LPR\"),MAX(I179+AP179,MIN(IF(AE179:AN179<>0,AE179:AN179))),MIN(IF(AE179:AN179<>0,AE179:AN179))))","v":0},{"$f":"IF(A179=0,0,IF(AND(OR(S179=\"Mgr\",S179=0),OR(U179=\"Mgr\",U179=0),OR(W179=\"Mgr\",W179=0)),0,IF(LEFT($A179,2)=\"B*\",VLOOKUP($E179,'1. Checklist & Certification'!$D$26:$E$32,2),IF(LEFT($A179,2)=\"C*\",VLOOKUP($E179,'1. Checklist & Certification'!$F$26:$G$32,2),IF(LEFT($A179,2)=\"D*\",VLOOKUP($E179,'1. Checklist & Certification'!$H$26:$I$32,2),IF(LEFT($A179,2)=\"E*\",VLOOKUP($E179,'1. Checklist & Certification'!$J$26:$K$32,2),VLOOKUP($E179,'1. Checklist & Certification'!$A$26:$B$32,2)))))))","v":0},0,0,null,null,null,null,"","",0,0,0,null,{"$f":"IF(A179=\"\",\"\",'1. Checklist & Certification'!$K$1)","v":""},{"$f":"IF(A179=\"\",\"\",'1. Checklist & Certification'!$C$62)","v":""},{"$f":"IF(A179=\"\",\"\",'1. Checklist & Certification'!$C$6)","v":""},{"$f":"IF(A179=\"\",\"\",'1. Checklist & Certification'!$G$5)","v":""},{"$f":"IFERROR(IF(A179=\"\",\"\",\n_xlfn.LET(_xlpm.Contract,'1. Checklist & Certification'!$C$7,\n_xlpm.Yr,TEXT(MOD(_xlfn.TEXTBEFORE(_xlpm.Contract,\"-\"),100),\"00\"),\n_xlpm.Program,_xlfn.TEXTAFTER(_xlfn.TEXTBEFORE(_xlpm.Contract,\"-\",2),\"-\"),\n_xlpm.CleanProgram,_xlfn.XLOOKUP(_xlpm.Program,SpellCheck[Input],SpellCheck[Correction],_xlpm.Program),\n_xlpm.Number,TEXT(_xlfn.TEXTAFTER(_xlpm.Contract,\"-\",2),\"0000\"),\n_xlfn.CONCAT(_xlpm.Yr,\"-\",_xlpm.CleanProgram,\"-\",_xlpm.Number))\n),\"\")","v":""},{"$f":"IFERROR(IF(A179=\"\",\"\",\n_xlfn.LET(_xlpm.Contract,'1. Checklist & Certification'!$C$8,\n_xlpm.Yr,TEXT(MOD(_xlfn.TEXTBEFORE(_xlpm.Contract,\"-\"),100),\"00\"),\n_xlpm.Program,_xlfn.TEXTAFTER(_xlfn.TEXTBEFORE(_xlpm.Contract,\"-\",2),\"-\"),\n_xlpm.CleanProgram,_xlfn.XLOOKUP(_xlpm.Program,SpellCheck[Input],SpellCheck[Correction],_xlpm.Program),\n_xlpm.Number,TEXT(_xlfn.TEXTAFTER(_xlpm.Contract,\"-\",2),\"0000\"),\n_xlfn.CONCAT(_xlpm.Yr,\"-\",_xlpm.CleanProgram,\"-\",_xlpm.Number))\n),\"\")","v":""},{"$f":"IFERROR(IF(A179=\"\",\"\",\n_xlfn.LET(_xlpm.Contract,'1. Checklist & Certification'!$F$7,\n_xlpm.Yr,TEXT(MOD(_xlfn.TEXTBEFORE(_xlpm.Contract,\"-\"),100),\"00\"),\n_xlpm.Program,_xlfn.TEXTAFTER(_xlfn.TEXTBEFORE(_xlpm.Contract,\"-\",2),\"-\"),\n_xlpm.CleanProgram,_xlfn.XLOOKUP(_xlpm.Program,SpellCheck[Input],SpellCheck[Correction],_xlpm.Program),\n_xlpm.Number,TEXT(_xlfn.TEXTAFTER(_xlpm.Contract,\"-\",2),\"0000\"),\n_xlfn.CONCAT(_xlpm.Yr,\"-\",_xlpm.CleanProgram,\"-\",_xlpm.Number))\n),\"\")","v":""},{"$f":"IFERROR(IF(A179=\"\",\"\",\n_xlfn.LET(_xlpm.Contract,'1. Checklist & Certification'!$F$8,\n_xlpm.Yr,TEXT(MOD(_xlfn.TEXTBEFORE(_xlpm.Contract,\"-\"),100),\"00\"),\n_xlpm.Program,_xlfn.TEXTAFTER(_xlfn.TEXTBEFORE(_xlpm.Contract,\"-\",2),\"-\"),\n_xlpm.CleanProgram,_xlfn.XLOOKUP(_xlpm.Program,SpellCheck[Input],SpellCheck[Correction],_xlpm.Program),\n_xlpm.Number,TEXT(_xlfn.TEXTAFTER(_xlpm.Contract,\"-\",2),\"0000\"),\n_xlfn.CONCAT(_xlpm.Yr,\"-\",_xlpm.CleanProgram,\"-\",_xlpm.Number))\n),\"\")","v":""},{"$f":"IF(A179=\"\",\"\",'1. Checklist & Certification'!$B$9)","v":""},{"$f":"IF(A179=\"\",\"\",'1. Checklist & Certification'!$F$9)","v":""},{"$f":"IF(A179=\"\",\"\",'1. Checklist & Certification'!$C$10)","v":""},{"$f":"IF(A179=\"\",\"\",'1. Checklist & Certification'!$C$11)","v":""},{"$f":"IF(A179=\"\",\"\",'1. Checklist & Certification'!$C$12)","v":""},{"$f":"IF(A179=\"\",\"\",'1. Checklist & Certification'!$B$14)","v":""},{"$f":"IF(A179=\"\",\"\",'1. Checklist & Certification'!$E$14)","v":""},{"$f":"IF(B179=\"\",\"\",'1. Checklist & Certification'!$G$14)","v":""},{"$f":"IF(A179=\"\",\"\",'MHP Family Income & Rent Limits'!$B$3)","v":""},{"$f":"IF(A179=\"\",\"\",'MHP Family Income & Rent Limits'!$J$3)","v":""},{"$f":"IF(A179=\"\",\"\",'MHP Family Income & Rent Limits'!$E$4)","v":""},{"$f":"IF(A179=\"\",\"\",'MHP Family Income & Rent Limits'!$C$7)","v":""},{"$f":"IF(A179=\"\",\"\",'MHP Family Income & Rent Limits'!$F$8)","v":""},{"$f":"IF(A179=\"\",\"\",'1. Checklist & Certification'!$G$4)","v":""},{"$f":"IF(A179=\"\",\"\",'1. Checklist & Certification'!$K$39)","v":""},{"$f":"IF(A179=\"\",\"\",'1. Checklist & Certification'!$K$43)","v":""},{"$f":"IF(A179=\"\",\"\",'1. Checklist & Certification'!$K$45)","v":""},{"$f":"IF(A179=\"\",\"\",'1. Checklist & Certification'!$K$49)","v":""},{"$f":"IF(A179=\"\",\"\",'1. Checklist & Certification'!$K$62)","v":""},{"$f":"IF(A179=\"\",\"\",'1. Checklist & Certification'!$E$66)","v":""},{"$f":"IF(A179=\"\",\"\",'1. Checklist & Certification'!$E$67)","v":""},{"$f":"IF(A179=\"\",\"\",'1. Checklist & Certification'!$E$68)","v":""},{"$f":"IF(A179=\"\",\"\",'1. Checklist & Certification'!$G$66)","v":""},{"$f":"IF(A179=\"\",\"\",'1. Checklist & Certification'!$H$66)","v":""},{"$f":"IF(A179=\"\",\"\",'1. Checklist & Certification'!$I$66)","v":""},{"$f":"IF(A179=\"\",\"\",'1. Checklist & Certification'!$I$67)","v":""},{"$f":"IF(A179=\"\",\"\",'1. Checklist & Certification'!$I$68)","v":""},{"$f":"IF(A179=\"\",\"\",'1. Checklist & Certification'!$B$69)","v":""},{"$f":"IF(A179=\"\",\"\",'1. Checklist & Certification'!$C$69)","v":""},{"$f":"IF(A179=\"\",\"\",'1. Checklist & Certification'!$F$69)","v":""},{"$f":"IF(A179=\"\",\"\",'1. Checklist & Certification'!$G$69)","v":""},{"$f":"IF(A179=\"\",\"\",'1. Checklist & Certification'!$J$69)","v":""},{"$f":"IF(A179=\"\",\"\",'1. Checklist & Certification'!$K$69)","v":""},null,null,{"$f":"IF(AND(OR('1. Checklist & Certification'!$M$16=1,'1. Checklist & Certification'!$M$19=2),AO179>0,B179=\"\",I179>0,AQ179<I179,AV179<>\"Sec 8-Project\"),\"X\",IF(AND(OR('1. Checklist & Certification'!$M$20=4,'1. Checklist & Certification'!$M$21=5,'1. Checklist & Certification'!$M$22=7),AO179>0,B179=\"\",I179>0,K179<I179),\"X\",\"\"))","v":""},{"$f":"IF(A179=\"\",\"\",IF(SUMPRODUCT(-- (ISNUMBER(SEARCH({\"*AHSC*\",\"*FMTW*\",\"*FWHG*\",\"*GHI*\",\"*HHC*\",\"*HLCP*\",\"*HOME*\",\"*LPR*\",\"*MHP*\",\"*NHTF*\",\"*NSP*\",\"*PRP*\",\"*TOD*\",\"*VHHP*\"},'1. Checklist & Certification'!$L$7)))),\"MHP\",\"Legacy\"))","v":""},",,",null,null,null,{"$f":"IF('1. Checklist & Certification'!$M$20=4,\"Both\",IF(OR('1. Checklist & Certification'!$M$15>0,S179=\"CHRP-R\",U179=\"CHRP-R\",W179=\"CHRP-R\",Y179=\"CHRP-R\"),\"Under\",\"No\"))","v":"No"},"No","No",{"$f":"_xlfn.IFS(D179=\"\",\"\",D179=1,'MHP Family Income & Rent Limits'!$E$17,D179=2,'MHP Family Income & Rent Limits'!$F$17,D179=3,'MHP Family Income & Rent Limits'!$G$17,D179=4,'MHP Family Income & Rent Limits'!$H$17,D179=5,'MHP Family Income & Rent Limits'!$I$17,D179=6,'MHP Family Income & Rent Limits'!$J$17,D179=7,'MHP Family Income & Rent Limits'!$K$17,D179=8,'MHP Family Income & Rent Limits'!$L$17)","v":""},"",{"$f":"IF(OR(A179=0,B179=\"X\"),0,MIN(IF(AA179:AD179<>0,AA179:AD179)))","v":0},{"$f":"IF(OR(H179=\"\",I179=\"\"),0,IF(H179*0.3/12>I179,MIN(H179*0.3/12,I179*1.1)+AP179,I179*(1+(VLOOKUP('1. Checklist & Certification'!$F$9,'HLCP-E Rent Change'!$A$1:$D$59,4,FALSE)))+AP179))","v":0}]
[null,null,null,null,null,null,null,null,null,null,null,null,null,null,null,null,null,null,null,null,null,null,null,null,null,null,0,0,0,0,0,0,0,0,{"$f":"IF(OR(A180=0,B180=\"X\"),0,IF(OR(S180=\"FHDP\",S180=\"RHCP-B\",U180=\"FHDP\",U180=\"RHCP-B\",W180=\"FHDP\",W180=\"RHCP-B\",Y180=\"FHDP\",Y180=\"RHCP-B\"),TRUNC((MIN(I180,K180)*(1+'1. Checklist & Certification'!$K$43)+AP180)),0))","v":0},{"$f":"IF(OR(A180=0,B180=\"X\"),0,IF(OR(S180=\"CHRP-R\",S180=\"SERA\",S180=\"SUHRP\",U180=\"CHRP-R\",U180=\"SERA\",U180=\"SUHRP\",W180=\"CHRP-R\",W180=\"SERA\",W180=\"SUHRP\",Y180=\"CHRP-R\",Y180=\"SERA\",Y180=\"SUHRP\"),TRUNC((MIN(I180,K180)*(1+'1. Checklist & Certification'!$K$49))),0))","v":0},{"$f":"IF(OR(A180=0,B180=\"X\"),0,IF(OR(S180=\"CALDAP\",S180=\"DPRLP\",U180=\"CALDAP\",U180=\"DPRLP\",W180=\"CALDAP\",W180=\"DPRLP\",Y180=\"CALDAP\",Y180=\"DPRLP\"),TRUNC(((MIN(I180,K180))*(1+'1. Checklist & Certification'!$G$4))),0))","v":0},0,0,0,{"$f":"IF(OR(A180=0,B180=\"X\"),0,IF(OR(S180=\"PRP\",S180=\"LPR\",U180=\"PRP\",U180=\"LPR\",W180=\"PRP\",W180=\"LPR\",Y180=\"PRP\",Y180=\"LPR\"),MAX(I180+AP180,MIN(IF(AE180:AN180<>0,AE180:AN180))),MIN(IF(AE180:AN180<>0,AE180:AN180))))","v":0},{"$f":"IF(A180=0,0,IF(AND(OR(S180=\"Mgr\",S180=0),OR(U180=\"Mgr\",U180=0),OR(W180=\"Mgr\",W180=0)),0,IF(LEFT($A180,2)=\"B*\",VLOOKUP($E180,'1. Checklist & Certification'!$D$26:$E$32,2),IF(LEFT($A180,2)=\"C*\",VLOOKUP($E180,'1. Checklist & Certification'!$F$26:$G$32,2),IF(LEFT($A180,2)=\"D*\",VLOOKUP($E180,'1. Checklist & Certification'!$H$26:$I$32,2),IF(LEFT($A180,2)=\"E*\",VLOOKUP($E180,'1. Checklist & Certification'!$J$26:$K$32,2),VLOOKUP($E180,'1. Checklist & Certification'!$A$26:$B$32,2)))))))","v":0},0,0,null,null,null,null,"","",0,0,0,null,{"$f":"IF(A180=\"\",\"\",'1. Checklist & Certification'!$K$1)","v":""},{"$f":"IF(A180=\"\",\"\",'1. Checklist & Certification'!$C$62)","v":""},{"$f":"IF(A180=\"\",\"\",'1. Checklist & Certification'!$C$6)","v":""},{"$f":"IF(A180=\"\",\"\",'1. Checklist & Certification'!$G$5)","v":""},{"$f":"IFERROR(IF(A180=\"\",\"\",\n_xlfn.LET(_xlpm.Contract,'1. Checklist & Certification'!$C$7,\n_xlpm.Yr,TEXT(MOD(_xlfn.TEXTBEFORE(_xlpm.Contract,\"-\"),100),\"00\"),\n_xlpm.Program,_xlfn.TEXTAFTER(_xlfn.TEXTBEFORE(_xlpm.Contract,\"-\",2),\"-\"),\n_xlpm.CleanProgram,_xlfn.XLOOKUP(_xlpm.Program,SpellCheck[Input],SpellCheck[Correction],_xlpm.Program),\n_xlpm.Number,TEXT(_xlfn.TEXTAFTER(_xlpm.Contract,\"-\",2),\"0000\"),\n_xlfn.CONCAT(_xlpm.Yr,\"-\",_xlpm.CleanProgram,\"-\",_xlpm.Number))\n),\"\")","v":""},{"$f":"IFERROR(IF(A180=\"\",\"\",\n_xlfn.LET(_xlpm.Contract,'1. Checklist & Certification'!$C$8,\n_xlpm.Yr,TEXT(MOD(_xlfn.TEXTBEFORE(_xlpm.Contract,\"-\"),100),\"00\"),\n_xlpm.Program,_xlfn.TEXTAFTER(_xlfn.TEXTBEFORE(_xlpm.Contract,\"-\",2),\"-\"),\n_xlpm.CleanProgram,_xlfn.XLOOKUP(_xlpm.Program,SpellCheck[Input],SpellCheck[Correction],_xlpm.Program),\n_xlpm.Number,TEXT(_xlfn.TEXTAFTER(_xlpm.Contract,\"-\",2),\"0000\"),\n_xlfn.CONCAT(_xlpm.Yr,\"-\",_xlpm.CleanProgram,\"-\",_xlpm.Number))\n),\"\")","v":""},{"$f":"IFERROR(IF(A180=\"\",\"\",\n_xlfn.LET(_xlpm.Contract,'1. Checklist & Certification'!$F$7,\n_xlpm.Yr,TEXT(MOD(_xlfn.TEXTBEFORE(_xlpm.Contract,\"-\"),100),\"00\"),\n_xlpm.Program,_xlfn.TEXTAFTER(_xlfn.TEXTBEFORE(_xlpm.Contract,\"-\",2),\"-\"),\n_xlpm.CleanProgram,_xlfn.XLOOKUP(_xlpm.Program,SpellCheck[Input],SpellCheck[Correction],_xlpm.Program),\n_xlpm.Number,TEXT(_xlfn.TEXTAFTER(_xlpm.Contract,\"-\",2),\"0000\"),\n_xlfn.CONCAT(_xlpm.Yr,\"-\",_xlpm.CleanProgram,\"-\",_xlpm.Number))\n),\"\")","v":""},{"$f":"IFERROR(IF(A180=\"\",\"\",\n_xlfn.LET(_xlpm.Contract,'1. Checklist & Certification'!$F$8,\n_xlpm.Yr,TEXT(MOD(_xlfn.TEXTBEFORE(_xlpm.Contract,\"-\"),100),\"00\"),\n_xlpm.Program,_xlfn.TEXTAFTER(_xlfn.TEXTBEFORE(_xlpm.Contract,\"-\",2),\"-\"),\n_xlpm.CleanProgram,_xlfn.XLOOKUP(_xlpm.Program,SpellCheck[Input],SpellCheck[Correction],_xlpm.Program),\n_xlpm.Number,TEXT(_xlfn.TEXTAFTER(_xlpm.Contract,\"-\",2),\"0000\"),\n_xlfn.CONCAT(_xlpm.Yr,\"-\",_xlpm.CleanProgram,\"-\",_xlpm.Number))\n),\"\")","v":""},{"$f":"IF(A180=\"\",\"\",'1. Checklist & Certification'!$B$9)","v":""},{"$f":"IF(A180=\"\",\"\",'1. Checklist & Certification'!$F$9)","v":""},{"$f":"IF(A180=\"\",\"\",'1. Checklist & Certification'!$C$10)","v":""},{"$f":"IF(A180=\"\",\"\",'1. Checklist & Certification'!$C$11)","v":""},{"$f":"IF(A180=\"\",\"\",'1. Checklist & Certification'!$C$12)","v":""},{"$f":"IF(A180=\"\",\"\",'1. Checklist & Certification'!$B$14)","v":""},{"$f":"IF(A180=\"\",\"\",'1. Checklist & Certification'!$E$14)","v":""},{"$f":"IF(B180=\"\",\"\",'1. Checklist & Certification'!$G$14)","v":""},{"$f":"IF(A180=\"\",\"\",'MHP Family Income & Rent Limits'!$B$3)","v":""},{"$f":"IF(A180=\"\",\"\",'MHP Family Income & Rent Limits'!$J$3)","v":""},{"$f":"IF(A180=\"\",\"\",'MHP Family Income & Rent Limits'!$E$4)","v":""},{"$f":"IF(A180=\"\",\"\",'MHP Family Income & Rent Limits'!$C$7)","v":""},{"$f":"IF(A180=\"\",\"\",'MHP Family Income & Rent Limits'!$F$8)","v":""},{"$f":"IF(A180=\"\",\"\",'1. Checklist & Certification'!$G$4)","v":""},{"$f":"IF(A180=\"\",\"\",'1. Checklist & Certification'!$K$39)","v":""},{"$f":"IF(A180=\"\",\"\",'1. Checklist & Certification'!$K$43)","v":""},{"$f":"IF(A180=\"\",\"\",'1. Checklist & Certification'!$K$45)","v":""},{"$f":"IF(A180=\"\",\"\",'1. Checklist & Certification'!$K$49)","v":""},{"$f":"IF(A180=\"\",\"\",'1. Checklist & Certification'!$K$62)","v":""},{"$f":"IF(A180=\"\",\"\",'1. Checklist & Certification'!$E$66)","v":""},{"$f":"IF(A180=\"\",\"\",'1. Checklist & Certification'!$E$67)","v":""},{"$f":"IF(A180=\"\",\"\",'1. Checklist & Certification'!$E$68)","v":""},{"$f":"IF(A180=\"\",\"\",'1. Checklist & Certification'!$G$66)","v":""},{"$f":"IF(A180=\"\",\"\",'1. Checklist & Certification'!$H$66)","v":""},{"$f":"IF(A180=\"\",\"\",'1. Checklist & Certification'!$I$66)","v":""},{"$f":"IF(A180=\"\",\"\",'1. Checklist & Certification'!$I$67)","v":""},{"$f":"IF(A180=\"\",\"\",'1. Checklist & Certification'!$I$68)","v":""},{"$f":"IF(A180=\"\",\"\",'1. Checklist & Certification'!$B$69)","v":""},{"$f":"IF(A180=\"\",\"\",'1. Checklist & Certification'!$C$69)","v":""},{"$f":"IF(A180=\"\",\"\",'1. Checklist & Certification'!$F$69)","v":""},{"$f":"IF(A180=\"\",\"\",'1. Checklist & Certification'!$G$69)","v":""},{"$f":"IF(A180=\"\",\"\",'1. Checklist & Certification'!$J$69)","v":""},{"$f":"IF(A180=\"\",\"\",'1. Checklist & Certification'!$K$69)","v":""},null,null,{"$f":"IF(AND(OR('1. Checklist & Certification'!$M$16=1,'1. Checklist & Certification'!$M$19=2),AO180>0,B180=\"\",I180>0,AQ180<I180,AV180<>\"Sec 8-Project\"),\"X\",IF(AND(OR('1. Checklist & Certification'!$M$20=4,'1. Checklist & Certification'!$M$21=5,'1. Checklist & Certification'!$M$22=7),AO180>0,B180=\"\",I180>0,K180<I180),\"X\",\"\"))","v":""},{"$f":"IF(A180=\"\",\"\",IF(SUMPRODUCT(-- (ISNUMBER(SEARCH({\"*AHSC*\",\"*FMTW*\",\"*FWHG*\",\"*GHI*\",\"*HHC*\",\"*HLCP*\",\"*HOME*\",\"*LPR*\",\"*MHP*\",\"*NHTF*\",\"*NSP*\",\"*PRP*\",\"*TOD*\",\"*VHHP*\"},'1. Checklist & Certification'!$L$7)))),\"MHP\",\"Legacy\"))","v":""},",,",null,null,null,{"$f":"IF('1. Checklist & Certification'!$M$20=4,\"Both\",IF(OR('1. Checklist & Certification'!$M$15>0,S180=\"CHRP-R\",U180=\"CHRP-R\",W180=\"CHRP-R\",Y180=\"CHRP-R\"),\"Under\",\"No\"))","v":"No"},"No","No",{"$f":"_xlfn.IFS(D180=\"\",\"\",D180=1,'MHP Family Income & Rent Limits'!$E$17,D180=2,'MHP Family Income & Rent Limits'!$F$17,D180=3,'MHP Family Income & Rent Limits'!$G$17,D180=4,'MHP Family Income & Rent Limits'!$H$17,D180=5,'MHP Family Income & Rent Limits'!$I$17,D180=6,'MHP Family Income & Rent Limits'!$J$17,D180=7,'MHP Family Income & Rent Limits'!$K$17,D180=8,'MHP Family Income & Rent Limits'!$L$17)","v":""},"",{"$f":"IF(OR(A180=0,B180=\"X\"),0,MIN(IF(AA180:AD180<>0,AA180:AD180)))","v":0},{"$f":"IF(OR(H180=\"\",I180=\"\"),0,IF(H180*0.3/12>I180,MIN(H180*0.3/12,I180*1.1)+AP180,I180*(1+(VLOOKUP('1. Checklist & Certification'!$F$9,'HLCP-E Rent Change'!$A$1:$D$59,4,FALSE)))+AP180))","v":0}]
[null,null,null,null,null,null,null,null,null,null,null,null,null,null,null,null,null,null,null,null,null,null,null,null,null,null,0,0,0,0,0,0,0,0,{"$f":"IF(OR(A181=0,B181=\"X\"),0,IF(OR(S181=\"FHDP\",S181=\"RHCP-B\",U181=\"FHDP\",U181=\"RHCP-B\",W181=\"FHDP\",W181=\"RHCP-B\",Y181=\"FHDP\",Y181=\"RHCP-B\"),TRUNC((MIN(I181,K181)*(1+'1. Checklist & Certification'!$K$43)+AP181)),0))","v":0},{"$f":"IF(OR(A181=0,B181=\"X\"),0,IF(OR(S181=\"CHRP-R\",S181=\"SERA\",S181=\"SUHRP\",U181=\"CHRP-R\",U181=\"SERA\",U181=\"SUHRP\",W181=\"CHRP-R\",W181=\"SERA\",W181=\"SUHRP\",Y181=\"CHRP-R\",Y181=\"SERA\",Y181=\"SUHRP\"),TRUNC((MIN(I181,K181)*(1+'1. Checklist & Certification'!$K$49))),0))","v":0},{"$f":"IF(OR(A181=0,B181=\"X\"),0,IF(OR(S181=\"CALDAP\",S181=\"DPRLP\",U181=\"CALDAP\",U181=\"DPRLP\",W181=\"CALDAP\",W181=\"DPRLP\",Y181=\"CALDAP\",Y181=\"DPRLP\"),TRUNC(((MIN(I181,K181))*(1+'1. Checklist & Certification'!$G$4))),0))","v":0},0,0,0,{"$f":"IF(OR(A181=0,B181=\"X\"),0,IF(OR(S181=\"PRP\",S181=\"LPR\",U181=\"PRP\",U181=\"LPR\",W181=\"PRP\",W181=\"LPR\",Y181=\"PRP\",Y181=\"LPR\"),MAX(I181+AP181,MIN(IF(AE181:AN181<>0,AE181:AN181))),MIN(IF(AE181:AN181<>0,AE181:AN181))))","v":0},{"$f":"IF(A181=0,0,IF(AND(OR(S181=\"Mgr\",S181=0),OR(U181=\"Mgr\",U181=0),OR(W181=\"Mgr\",W181=0)),0,IF(LEFT($A181,2)=\"B*\",VLOOKUP($E181,'1. Checklist & Certification'!$D$26:$E$32,2),IF(LEFT($A181,2)=\"C*\",VLOOKUP($E181,'1. Checklist & Certification'!$F$26:$G$32,2),IF(LEFT($A181,2)=\"D*\",VLOOKUP($E181,'1. Checklist & Certification'!$H$26:$I$32,2),IF(LEFT($A181,2)=\"E*\",VLOOKUP($E181,'1. Checklist & Certification'!$J$26:$K$32,2),VLOOKUP($E181,'1. Checklist & Certification'!$A$26:$B$32,2)))))))","v":0},0,0,null,null,null,null,"","",0,0,0,null,{"$f":"IF(A181=\"\",\"\",'1. Checklist & Certification'!$K$1)","v":""},{"$f":"IF(A181=\"\",\"\",'1. Checklist & Certification'!$C$62)","v":""},{"$f":"IF(A181=\"\",\"\",'1. Checklist & Certification'!$C$6)","v":""},{"$f":"IF(A181=\"\",\"\",'1. Checklist & Certification'!$G$5)","v":""},{"$f":"IFERROR(IF(A181=\"\",\"\",\n_xlfn.LET(_xlpm.Contract,'1. Checklist & Certification'!$C$7,\n_xlpm.Yr,TEXT(MOD(_xlfn.TEXTBEFORE(_xlpm.Contract,\"-\"),100),\"00\"),\n_xlpm.Program,_xlfn.TEXTAFTER(_xlfn.TEXTBEFORE(_xlpm.Contract,\"-\",2),\"-\"),\n_xlpm.CleanProgram,_xlfn.XLOOKUP(_xlpm.Program,SpellCheck[Input],SpellCheck[Correction],_xlpm.Program),\n_xlpm.Number,TEXT(_xlfn.TEXTAFTER(_xlpm.Contract,\"-\",2),\"0000\"),\n_xlfn.CONCAT(_xlpm.Yr,\"-\",_xlpm.CleanProgram,\"-\",_xlpm.Number))\n),\"\")","v":""},{"$f":"IFERROR(IF(A181=\"\",\"\",\n_xlfn.LET(_xlpm.Contract,'1. Checklist & Certification'!$C$8,\n_xlpm.Yr,TEXT(MOD(_xlfn.TEXTBEFORE(_xlpm.Contract,\"-\"),100),\"00\"),\n_xlpm.Program,_xlfn.TEXTAFTER(_xlfn.TEXTBEFORE(_xlpm.Contract,\"-\",2),\"-\"),\n_xlpm.CleanProgram,_xlfn.XLOOKUP(_xlpm.Program,SpellCheck[Input],SpellCheck[Correction],_xlpm.Program),\n_xlpm.Number,TEXT(_xlfn.TEXTAFTER(_xlpm.Contract,\"-\",2),\"0000\"),\n_xlfn.CONCAT(_xlpm.Yr,\"-\",_xlpm.CleanProgram,\"-\",_xlpm.Number))\n),\"\")","v":""},{"$f":"IFERROR(IF(A181=\"\",\"\",\n_xlfn.LET(_xlpm.Contract,'1. Checklist & Certification'!$F$7,\n_xlpm.Yr,TEXT(MOD(_xlfn.TEXTBEFORE(_xlpm.Contract,\"-\"),100),\"00\"),\n_xlpm.Program,_xlfn.TEXTAFTER(_xlfn.TEXTBEFORE(_xlpm.Contract,\"-\",2),\"-\"),\n_xlpm.CleanProgram,_xlfn.XLOOKUP(_xlpm.Program,SpellCheck[Input],SpellCheck[Correction],_xlpm.Program),\n_xlpm.Number,TEXT(_xlfn.TEXTAFTER(_xlpm.Contract,\"-\",2),\"0000\"),\n_xlfn.CONCAT(_xlpm.Yr,\"-\",_xlpm.CleanProgram,\"-\",_xlpm.Number))\n),\"\")","v":""},{"$f":"IFERROR(IF(A181=\"\",\"\",\n_xlfn.LET(_xlpm.Contract,'1. Checklist & Certification'!$F$8,\n_xlpm.Yr,TEXT(MOD(_xlfn.TEXTBEFORE(_xlpm.Contract,\"-\"),100),\"00\"),\n_xlpm.Program,_xlfn.TEXTAFTER(_xlfn.TEXTBEFORE(_xlpm.Contract,\"-\",2),\"-\"),\n_xlpm.CleanProgram,_xlfn.XLOOKUP(_xlpm.Program,SpellCheck[Input],SpellCheck[Correction],_xlpm.Program),\n_xlpm.Number,TEXT(_xlfn.TEXTAFTER(_xlpm.Contract,\"-\",2),\"0000\"),\n_xlfn.CONCAT(_xlpm.Yr,\"-\",_xlpm.CleanProgram,\"-\",_xlpm.Number))\n),\"\")","v":""},{"$f":"IF(A181=\"\",\"\",'1. Checklist & Certification'!$B$9)","v":""},{"$f":"IF(A181=\"\",\"\",'1. Checklist & Certification'!$F$9)","v":""},{"$f":"IF(A181=\"\",\"\",'1. Checklist & Certification'!$C$10)","v":""},{"$f":"IF(A181=\"\",\"\",'1. Checklist & Certification'!$C$11)","v":""},{"$f":"IF(A181=\"\",\"\",'1. Checklist & Certification'!$C$12)","v":""},{"$f":"IF(A181=\"\",\"\",'1. Checklist & Certification'!$B$14)","v":""},{"$f":"IF(A181=\"\",\"\",'1. Checklist & Certification'!$E$14)","v":""},{"$f":"IF(B181=\"\",\"\",'1. Checklist & Certification'!$G$14)","v":""},{"$f":"IF(A181=\"\",\"\",'MHP Family Income & Rent Limits'!$B$3)","v":""},{"$f":"IF(A181=\"\",\"\",'MHP Family Income & Rent Limits'!$J$3)","v":""},{"$f":"IF(A181=\"\",\"\",'MHP Family Income & Rent Limits'!$E$4)","v":""},{"$f":"IF(A181=\"\",\"\",'MHP Family Income & Rent Limits'!$C$7)","v":""},{"$f":"IF(A181=\"\",\"\",'MHP Family Income & Rent Limits'!$F$8)","v":""},{"$f":"IF(A181=\"\",\"\",'1. Checklist & Certification'!$G$4)","v":""},{"$f":"IF(A181=\"\",\"\",'1. Checklist & Certification'!$K$39)","v":""},{"$f":"IF(A181=\"\",\"\",'1. Checklist & Certification'!$K$43)","v":""},{"$f":"IF(A181=\"\",\"\",'1. Checklist & Certification'!$K$45)","v":""},{"$f":"IF(A181=\"\",\"\",'1. Checklist & Certification'!$K$49)","v":""},{"$f":"IF(A181=\"\",\"\",'1. Checklist & Certification'!$K$62)","v":""},{"$f":"IF(A181=\"\",\"\",'1. Checklist & Certification'!$E$66)","v":""},{"$f":"IF(A181=\"\",\"\",'1. Checklist & Certification'!$E$67)","v":""},{"$f":"IF(A181=\"\",\"\",'1. Checklist & Certification'!$E$68)","v":""},{"$f":"IF(A181=\"\",\"\",'1. Checklist & Certification'!$G$66)","v":""},{"$f":"IF(A181=\"\",\"\",'1. Checklist & Certification'!$H$66)","v":""},{"$f":"IF(A181=\"\",\"\",'1. Checklist & Certification'!$I$66)","v":""},{"$f":"IF(A181=\"\",\"\",'1. Checklist & Certification'!$I$67)","v":""},{"$f":"IF(A181=\"\",\"\",'1. Checklist & Certification'!$I$68)","v":""},{"$f":"IF(A181=\"\",\"\",'1. Checklist & Certification'!$B$69)","v":""},{"$f":"IF(A181=\"\",\"\",'1. Checklist & Certification'!$C$69)","v":""},{"$f":"IF(A181=\"\",\"\",'1. Checklist & Certification'!$F$69)","v":""},{"$f":"IF(A181=\"\",\"\",'1. Checklist & Certification'!$G$69)","v":""},{"$f":"IF(A181=\"\",\"\",'1. Checklist & Certification'!$J$69)","v":""},{"$f":"IF(A181=\"\",\"\",'1. Checklist & Certification'!$K$69)","v":""},null,null,{"$f":"IF(AND(OR('1. Checklist & Certification'!$M$16=1,'1. Checklist & Certification'!$M$19=2),AO181>0,B181=\"\",I181>0,AQ181<I181,AV181<>\"Sec 8-Project\"),\"X\",IF(AND(OR('1. Checklist & Certification'!$M$20=4,'1. Checklist & Certification'!$M$21=5,'1. Checklist & Certification'!$M$22=7),AO181>0,B181=\"\",I181>0,K181<I181),\"X\",\"\"))","v":""},{"$f":"IF(A181=\"\",\"\",IF(SUMPRODUCT(-- (ISNUMBER(SEARCH({\"*AHSC*\",\"*FMTW*\",\"*FWHG*\",\"*GHI*\",\"*HHC*\",\"*HLCP*\",\"*HOME*\",\"*LPR*\",\"*MHP*\",\"*NHTF*\",\"*NSP*\",\"*PRP*\",\"*TOD*\",\"*VHHP*\"},'1. Checklist & Certification'!$L$7)))),\"MHP\",\"Legacy\"))","v":""},",,",null,null,null,{"$f":"IF('1. Checklist & Certification'!$M$20=4,\"Both\",IF(OR('1. Checklist & Certification'!$M$15>0,S181=\"CHRP-R\",U181=\"CHRP-R\",W181=\"CHRP-R\",Y181=\"CHRP-R\"),\"Under\",\"No\"))","v":"No"},"No","No",{"$f":"_xlfn.IFS(D181=\"\",\"\",D181=1,'MHP Family Income & Rent Limits'!$E$17,D181=2,'MHP Family Income & Rent Limits'!$F$17,D181=3,'MHP Family Income & Rent Limits'!$G$17,D181=4,'MHP Family Income & Rent Limits'!$H$17,D181=5,'MHP Family Income & Rent Limits'!$I$17,D181=6,'MHP Family Income & Rent Limits'!$J$17,D181=7,'MHP Family Income & Rent Limits'!$K$17,D181=8,'MHP Family Income & Rent Limits'!$L$17)","v":""},"",{"$f":"IF(OR(A181=0,B181=\"X\"),0,MIN(IF(AA181:AD181<>0,AA181:AD181)))","v":0},{"$f":"IF(OR(H181=\"\",I181=\"\"),0,IF(H181*0.3/12>I181,MIN(H181*0.3/12,I181*1.1)+AP181,I181*(1+(VLOOKUP('1. Checklist & Certification'!$F$9,'HLCP-E Rent Change'!$A$1:$D$59,4,FALSE)))+AP181))","v":0}]
[null,null,null,null,null,null,null,null,null,null,null,null,null,null,null,null,null,null,null,null,null,null,null,null,null,null,0,0,0,0,0,0,0,0,{"$f":"IF(OR(A182=0,B182=\"X\"),0,IF(OR(S182=\"FHDP\",S182=\"RHCP-B\",U182=\"FHDP\",U182=\"RHCP-B\",W182=\"FHDP\",W182=\"RHCP-B\",Y182=\"FHDP\",Y182=\"RHCP-B\"),TRUNC((MIN(I182,K182)*(1+'1. Checklist & Certification'!$K$43)+AP182)),0))","v":0},{"$f":"IF(OR(A182=0,B182=\"X\"),0,IF(OR(S182=\"CHRP-R\",S182=\"SERA\",S182=\"SUHRP\",U182=\"CHRP-R\",U182=\"SERA\",U182=\"SUHRP\",W182=\"CHRP-R\",W182=\"SERA\",W182=\"SUHRP\",Y182=\"CHRP-R\",Y182=\"SERA\",Y182=\"SUHRP\"),TRUNC((MIN(I182,K182)*(1+'1. Checklist & Certification'!$K$49))),0))","v":0},{"$f":"IF(OR(A182=0,B182=\"X\"),0,IF(OR(S182=\"CALDAP\",S182=\"DPRLP\",U182=\"CALDAP\",U182=\"DPRLP\",W182=\"CALDAP\",W182=\"DPRLP\",Y182=\"CALDAP\",Y182=\"DPRLP\"),TRUNC(((MIN(I182,K182))*(1+'1. Checklist & Certification'!$G$4))),0))","v":0},0,0,0,{"$f":"IF(OR(A182=0,B182=\"X\"),0,IF(OR(S182=\"PRP\",S182=\"LPR\",U182=\"PRP\",U182=\"LPR\",W182=\"PRP\",W182=\"LPR\",Y182=\"PRP\",Y182=\"LPR\"),MAX(I182+AP182,MIN(IF(AE182:AN182<>0,AE182:AN182))),MIN(IF(AE182:AN182<>0,AE182:AN182))))","v":0},{"$f":"IF(A182=0,0,IF(AND(OR(S182=\"Mgr\",S182=0),OR(U182=\"Mgr\",U182=0),OR(W182=\"Mgr\",W182=0)),0,IF(LEFT($A182,2)=\"B*\",VLOOKUP($E182,'1. Checklist & Certification'!$D$26:$E$32,2),IF(LEFT($A182,2)=\"C*\",VLOOKUP($E182,'1. Checklist & Certification'!$F$26:$G$32,2),IF(LEFT($A182,2)=\"D*\",VLOOKUP($E182,'1. Checklist & Certification'!$H$26:$I$32,2),IF(LEFT($A182,2)=\"E*\",VLOOKUP($E182,'1. Checklist & Certification'!$J$26:$K$32,2),VLOOKUP($E182,'1. Checklist & Certification'!$A$26:$B$32,2)))))))","v":0},0,0,null,null,null,null,"","",0,0,0,null,{"$f":"IF(A182=\"\",\"\",'1. Checklist & Certification'!$K$1)","v":""},{"$f":"IF(A182=\"\",\"\",'1. Checklist & Certification'!$C$62)","v":""},{"$f":"IF(A182=\"\",\"\",'1. Checklist & Certification'!$C$6)","v":""},{"$f":"IF(A182=\"\",\"\",'1. Checklist & Certification'!$G$5)","v":""},{"$f":"IFERROR(IF(A182=\"\",\"\",\n_xlfn.LET(_xlpm.Contract,'1. Checklist & Certification'!$C$7,\n_xlpm.Yr,TEXT(MOD(_xlfn.TEXTBEFORE(_xlpm.Contract,\"-\"),100),\"00\"),\n_xlpm.Program,_xlfn.TEXTAFTER(_xlfn.TEXTBEFORE(_xlpm.Contract,\"-\",2),\"-\"),\n_xlpm.CleanProgram,_xlfn.XLOOKUP(_xlpm.Program,SpellCheck[Input],SpellCheck[Correction],_xlpm.Program),\n_xlpm.Number,TEXT(_xlfn.TEXTAFTER(_xlpm.Contract,\"-\",2),\"0000\"),\n_xlfn.CONCAT(_xlpm.Yr,\"-\",_xlpm.CleanProgram,\"-\",_xlpm.Number))\n),\"\")","v":""},{"$f":"IFERROR(IF(A182=\"\",\"\",\n_xlfn.LET(_xlpm.Contract,'1. Checklist & Certification'!$C$8,\n_xlpm.Yr,TEXT(MOD(_xlfn.TEXTBEFORE(_xlpm.Contract,\"-\"),100),\"00\"),\n_xlpm.Program,_xlfn.TEXTAFTER(_xlfn.TEXTBEFORE(_xlpm.Contract,\"-\",2),\"-\"),\n_xlpm.CleanProgram,_xlfn.XLOOKUP(_xlpm.Program,SpellCheck[Input],SpellCheck[Correction],_xlpm.Program),\n_xlpm.Number,TEXT(_xlfn.TEXTAFTER(_xlpm.Contract,\"-\",2),\"0000\"),\n_xlfn.CONCAT(_xlpm.Yr,\"-\",_xlpm.CleanProgram,\"-\",_xlpm.Number))\n),\"\")","v":""},{"$f":"IFERROR(IF(A182=\"\",\"\",\n_xlfn.LET(_xlpm.Contract,'1. Checklist & Certification'!$F$7,\n_xlpm.Yr,TEXT(MOD(_xlfn.TEXTBEFORE(_xlpm.Contract,\"-\"),100),\"00\"),\n_xlpm.Program,_xlfn.TEXTAFTER(_xlfn.TEXTBEFORE(_xlpm.Contract,\"-\",2),\"-\"),\n_xlpm.CleanProgram,_xlfn.XLOOKUP(_xlpm.Program,SpellCheck[Input],SpellCheck[Correction],_xlpm.Program),\n_xlpm.Number,TEXT(_xlfn.TEXTAFTER(_xlpm.Contract,\"-\",2),\"0000\"),\n_xlfn.CONCAT(_xlpm.Yr,\"-\",_xlpm.CleanProgram,\"-\",_xlpm.Number))\n),\"\")","v":""},{"$f":"IFERROR(IF(A182=\"\",\"\",\n_xlfn.LET(_xlpm.Contract,'1. Checklist & Certification'!$F$8,\n_xlpm.Yr,TEXT(MOD(_xlfn.TEXTBEFORE(_xlpm.Contract,\"-\"),100),\"00\"),\n_xlpm.Program,_xlfn.TEXTAFTER(_xlfn.TEXTBEFORE(_xlpm.Contract,\"-\",2),\"-\"),\n_xlpm.CleanProgram,_xlfn.XLOOKUP(_xlpm.Program,SpellCheck[Input],SpellCheck[Correction],_xlpm.Program),\n_xlpm.Number,TEXT(_xlfn.TEXTAFTER(_xlpm.Contract,\"-\",2),\"0000\"),\n_xlfn.CONCAT(_xlpm.Yr,\"-\",_xlpm.CleanProgram,\"-\",_xlpm.Number))\n),\"\")","v":""},{"$f":"IF(A182=\"\",\"\",'1. Checklist & Certification'!$B$9)","v":""},{"$f":"IF(A182=\"\",\"\",'1. Checklist & Certification'!$F$9)","v":""},{"$f":"IF(A182=\"\",\"\",'1. Checklist & Certification'!$C$10)","v":""},{"$f":"IF(A182=\"\",\"\",'1. Checklist & Certification'!$C$11)","v":""},{"$f":"IF(A182=\"\",\"\",'1. Checklist & Certification'!$C$12)","v":""},{"$f":"IF(A182=\"\",\"\",'1. Checklist & Certification'!$B$14)","v":""},{"$f":"IF(A182=\"\",\"\",'1. Checklist & Certification'!$E$14)","v":""},{"$f":"IF(B182=\"\",\"\",'1. Checklist & Certification'!$G$14)","v":""},{"$f":"IF(A182=\"\",\"\",'MHP Family Income & Rent Limits'!$B$3)","v":""},{"$f":"IF(A182=\"\",\"\",'MHP Family Income & Rent Limits'!$J$3)","v":""},{"$f":"IF(A182=\"\",\"\",'MHP Family Income & Rent Limits'!$E$4)","v":""},{"$f":"IF(A182=\"\",\"\",'MHP Family Income & Rent Limits'!$C$7)","v":""},{"$f":"IF(A182=\"\",\"\",'MHP Family Income & Rent Limits'!$F$8)","v":""},{"$f":"IF(A182=\"\",\"\",'1. Checklist & Certification'!$G$4)","v":""},{"$f":"IF(A182=\"\",\"\",'1. Checklist & Certification'!$K$39)","v":""},{"$f":"IF(A182=\"\",\"\",'1. Checklist & Certification'!$K$43)","v":""},{"$f":"IF(A182=\"\",\"\",'1. Checklist & Certification'!$K$45)","v":""},{"$f":"IF(A182=\"\",\"\",'1. Checklist & Certification'!$K$49)","v":""},{"$f":"IF(A182=\"\",\"\",'1. Checklist & Certification'!$K$62)","v":""},{"$f":"IF(A182=\"\",\"\",'1. Checklist & Certification'!$E$66)","v":""},{"$f":"IF(A182=\"\",\"\",'1. Checklist & Certification'!$E$67)","v":""},{"$f":"IF(A182=\"\",\"\",'1. Checklist & Certification'!$E$68)","v":""},{"$f":"IF(A182=\"\",\"\",'1. Checklist & Certification'!$G$66)","v":""},{"$f":"IF(A182=\"\",\"\",'1. Checklist & Certification'!$H$66)","v":""},{"$f":"IF(A182=\"\",\"\",'1. Checklist & Certification'!$I$66)","v":""},{"$f":"IF(A182=\"\",\"\",'1. Checklist & Certification'!$I$67)","v":""},{"$f":"IF(A182=\"\",\"\",'1. Checklist & Certification'!$I$68)","v":""},{"$f":"IF(A182=\"\",\"\",'1. Checklist & Certification'!$B$69)","v":""},{"$f":"IF(A182=\"\",\"\",'1. Checklist & Certification'!$C$69)","v":""},{"$f":"IF(A182=\"\",\"\",'1. Checklist & Certification'!$F$69)","v":""},{"$f":"IF(A182=\"\",\"\",'1. Checklist & Certification'!$G$69)","v":""},{"$f":"IF(A182=\"\",\"\",'1. Checklist & Certification'!$J$69)","v":""},{"$f":"IF(A182=\"\",\"\",'1. Checklist & Certification'!$K$69)","v":""},null,null,{"$f":"IF(AND(OR('1. Checklist & Certification'!$M$16=1,'1. Checklist & Certification'!$M$19=2),AO182>0,B182=\"\",I182>0,AQ182<I182,AV182<>\"Sec 8-Project\"),\"X\",IF(AND(OR('1. Checklist & Certification'!$M$20=4,'1. Checklist & Certification'!$M$21=5,'1. Checklist & Certification'!$M$22=7),AO182>0,B182=\"\",I182>0,K182<I182),\"X\",\"\"))","v":""},{"$f":"IF(A182=\"\",\"\",IF(SUMPRODUCT(-- (ISNUMBER(SEARCH({\"*AHSC*\",\"*FMTW*\",\"*FWHG*\",\"*GHI*\",\"*HHC*\",\"*HLCP*\",\"*HOME*\",\"*LPR*\",\"*MHP*\",\"*NHTF*\",\"*NSP*\",\"*PRP*\",\"*TOD*\",\"*VHHP*\"},'1. Checklist & Certification'!$L$7)))),\"MHP\",\"Legacy\"))","v":""},",,",null,null,null,{"$f":"IF('1. Checklist & Certification'!$M$20=4,\"Both\",IF(OR('1. Checklist & Certification'!$M$15>0,S182=\"CHRP-R\",U182=\"CHRP-R\",W182=\"CHRP-R\",Y182=\"CHRP-R\"),\"Under\",\"No\"))","v":"No"},"No","No",{"$f":"_xlfn.IFS(D182=\"\",\"\",D182=1,'MHP Family Income & Rent Limits'!$E$17,D182=2,'MHP Family Income & Rent Limits'!$F$17,D182=3,'MHP Family Income & Rent Limits'!$G$17,D182=4,'MHP Family Income & Rent Limits'!$H$17,D182=5,'MHP Family Income & Rent Limits'!$I$17,D182=6,'MHP Family Income & Rent Limits'!$J$17,D182=7,'MHP Family Income & Rent Limits'!$K$17,D182=8,'MHP Family Income & Rent Limits'!$L$17)","v":""},"",{"$f":"IF(OR(A182=0,B182=\"X\"),0,MIN(IF(AA182:AD182<>0,AA182:AD182)))","v":0},{"$f":"IF(OR(H182=\"\",I182=\"\"),0,IF(H182*0.3/12>I182,MIN(H182*0.3/12,I182*1.1)+AP182,I182*(1+(VLOOKUP('1. Checklist & Certification'!$F$9,'HLCP-E Rent Change'!$A$1:$D$59,4,FALSE)))+AP182))","v":0}]
[null,null,null,null,null,null,null,null,null,null,null,null,null,null,null,null,null,null,null,null,null,null,null,null,null,null,0,0,0,0,0,0,0,0,{"$f":"IF(OR(A183=0,B183=\"X\"),0,IF(OR(S183=\"FHDP\",S183=\"RHCP-B\",U183=\"FHDP\",U183=\"RHCP-B\",W183=\"FHDP\",W183=\"RHCP-B\",Y183=\"FHDP\",Y183=\"RHCP-B\"),TRUNC((MIN(I183,K183)*(1+'1. Checklist & Certification'!$K$43)+AP183)),0))","v":0},{"$f":"IF(OR(A183=0,B183=\"X\"),0,IF(OR(S183=\"CHRP-R\",S183=\"SERA\",S183=\"SUHRP\",U183=\"CHRP-R\",U183=\"SERA\",U183=\"SUHRP\",W183=\"CHRP-R\",W183=\"SERA\",W183=\"SUHRP\",Y183=\"CHRP-R\",Y183=\"SERA\",Y183=\"SUHRP\"),TRUNC((MIN(I183,K183)*(1+'1. Checklist & Certification'!$K$49))),0))","v":0},{"$f":"IF(OR(A183=0,B183=\"X\"),0,IF(OR(S183=\"CALDAP\",S183=\"DPRLP\",U183=\"CALDAP\",U183=\"DPRLP\",W183=\"CALDAP\",W183=\"DPRLP\",Y183=\"CALDAP\",Y183=\"DPRLP\"),TRUNC(((MIN(I183,K183))*(1+'1. Checklist & Certification'!$G$4))),0))","v":0},0,0,0,{"$f":"IF(OR(A183=0,B183=\"X\"),0,IF(OR(S183=\"PRP\",S183=\"LPR\",U183=\"PRP\",U183=\"LPR\",W183=\"PRP\",W183=\"LPR\",Y183=\"PRP\",Y183=\"LPR\"),MAX(I183+AP183,MIN(IF(AE183:AN183<>0,AE183:AN183))),MIN(IF(AE183:AN183<>0,AE183:AN183))))","v":0},{"$f":"IF(A183=0,0,IF(AND(OR(S183=\"Mgr\",S183=0),OR(U183=\"Mgr\",U183=0),OR(W183=\"Mgr\",W183=0)),0,IF(LEFT($A183,2)=\"B*\",VLOOKUP($E183,'1. Checklist & Certification'!$D$26:$E$32,2),IF(LEFT($A183,2)=\"C*\",VLOOKUP($E183,'1. Checklist & Certification'!$F$26:$G$32,2),IF(LEFT($A183,2)=\"D*\",VLOOKUP($E183,'1. Checklist & Certification'!$H$26:$I$32,2),IF(LEFT($A183,2)=\"E*\",VLOOKUP($E183,'1. Checklist & Certification'!$J$26:$K$32,2),VLOOKUP($E183,'1. Checklist & Certification'!$A$26:$B$32,2)))))))","v":0},0,0,null,null,null,null,"","",0,0,0,null,{"$f":"IF(A183=\"\",\"\",'1. Checklist & Certification'!$K$1)","v":""},{"$f":"IF(A183=\"\",\"\",'1. Checklist & Certification'!$C$62)","v":""},{"$f":"IF(A183=\"\",\"\",'1. Checklist & Certification'!$C$6)","v":""},{"$f":"IF(A183=\"\",\"\",'1. Checklist & Certification'!$G$5)","v":""},{"$f":"IFERROR(IF(A183=\"\",\"\",\n_xlfn.LET(_xlpm.Contract,'1. Checklist & Certification'!$C$7,\n_xlpm.Yr,TEXT(MOD(_xlfn.TEXTBEFORE(_xlpm.Contract,\"-\"),100),\"00\"),\n_xlpm.Program,_xlfn.TEXTAFTER(_xlfn.TEXTBEFORE(_xlpm.Contract,\"-\",2),\"-\"),\n_xlpm.CleanProgram,_xlfn.XLOOKUP(_xlpm.Program,SpellCheck[Input],SpellCheck[Correction],_xlpm.Program),\n_xlpm.Number,TEXT(_xlfn.TEXTAFTER(_xlpm.Contract,\"-\",2),\"0000\"),\n_xlfn.CONCAT(_xlpm.Yr,\"-\",_xlpm.CleanProgram,\"-\",_xlpm.Number))\n),\"\")","v":""},{"$f":"IFERROR(IF(A183=\"\",\"\",\n_xlfn.LET(_xlpm.Contract,'1. Checklist & Certification'!$C$8,\n_xlpm.Yr,TEXT(MOD(_xlfn.TEXTBEFORE(_xlpm.Contract,\"-\"),100),\"00\"),\n_xlpm.Program,_xlfn.TEXTAFTER(_xlfn.TEXTBEFORE(_xlpm.Contract,\"-\",2),\"-\"),\n_xlpm.CleanProgram,_xlfn.XLOOKUP(_xlpm.Program,SpellCheck[Input],SpellCheck[Correction],_xlpm.Program),\n_xlpm.Number,TEXT(_xlfn.TEXTAFTER(_xlpm.Contract,\"-\",2),\"0000\"),\n_xlfn.CONCAT(_xlpm.Yr,\"-\",_xlpm.CleanProgram,\"-\",_xlpm.Number))\n),\"\")","v":""},{"$f":"IFERROR(IF(A183=\"\",\"\",\n_xlfn.LET(_xlpm.Contract,'1. Checklist & Certification'!$F$7,\n_xlpm.Yr,TEXT(MOD(_xlfn.TEXTBEFORE(_xlpm.Contract,\"-\"),100),\"00\"),\n_xlpm.Program,_xlfn.TEXTAFTER(_xlfn.TEXTBEFORE(_xlpm.Contract,\"-\",2),\"-\"),\n_xlpm.CleanProgram,_xlfn.XLOOKUP(_xlpm.Program,SpellCheck[Input],SpellCheck[Correction],_xlpm.Program),\n_xlpm.Number,TEXT(_xlfn.TEXTAFTER(_xlpm.Contract,\"-\",2),\"0000\"),\n_xlfn.CONCAT(_xlpm.Yr,\"-\",_xlpm.CleanProgram,\"-\",_xlpm.Number))\n),\"\")","v":""},{"$f":"IFERROR(IF(A183=\"\",\"\",\n_xlfn.LET(_xlpm.Contract,'1. Checklist & Certification'!$F$8,\n_xlpm.Yr,TEXT(MOD(_xlfn.TEXTBEFORE(_xlpm.Contract,\"-\"),100),\"00\"),\n_xlpm.Program,_xlfn.TEXTAFTER(_xlfn.TEXTBEFORE(_xlpm.Contract,\"-\",2),\"-\"),\n_xlpm.CleanProgram,_xlfn.XLOOKUP(_xlpm.Program,SpellCheck[Input],SpellCheck[Correction],_xlpm.Program),\n_xlpm.Number,TEXT(_xlfn.TEXTAFTER(_xlpm.Contract,\"-\",2),\"0000\"),\n_xlfn.CONCAT(_xlpm.Yr,\"-\",_xlpm.CleanProgram,\"-\",_xlpm.Number))\n),\"\")","v":""},{"$f":"IF(A183=\"\",\"\",'1. Checklist & Certification'!$B$9)","v":""},{"$f":"IF(A183=\"\",\"\",'1. Checklist & Certification'!$F$9)","v":""},{"$f":"IF(A183=\"\",\"\",'1. Checklist & Certification'!$C$10)","v":""},{"$f":"IF(A183=\"\",\"\",'1. Checklist & Certification'!$C$11)","v":""},{"$f":"IF(A183=\"\",\"\",'1. Checklist & Certification'!$C$12)","v":""},{"$f":"IF(A183=\"\",\"\",'1. Checklist & Certification'!$B$14)","v":""},{"$f":"IF(A183=\"\",\"\",'1. Checklist & Certification'!$E$14)","v":""},{"$f":"IF(B183=\"\",\"\",'1. Checklist & Certification'!$G$14)","v":""},{"$f":"IF(A183=\"\",\"\",'MHP Family Income & Rent Limits'!$B$3)","v":""},{"$f":"IF(A183=\"\",\"\",'MHP Family Income & Rent Limits'!$J$3)","v":""},{"$f":"IF(A183=\"\",\"\",'MHP Family Income & Rent Limits'!$E$4)","v":""},{"$f":"IF(A183=\"\",\"\",'MHP Family Income & Rent Limits'!$C$7)","v":""},{"$f":"IF(A183=\"\",\"\",'MHP Family Income & Rent Limits'!$F$8)","v":""},{"$f":"IF(A183=\"\",\"\",'1. Checklist & Certification'!$G$4)","v":""},{"$f":"IF(A183=\"\",\"\",'1. Checklist & Certification'!$K$39)","v":""},{"$f":"IF(A183=\"\",\"\",'1. Checklist & Certification'!$K$43)","v":""},{"$f":"IF(A183=\"\",\"\",'1. Checklist & Certification'!$K$45)","v":""},{"$f":"IF(A183=\"\",\"\",'1. Checklist & Certification'!$K$49)","v":""},{"$f":"IF(A183=\"\",\"\",'1. Checklist & Certification'!$K$62)","v":""},{"$f":"IF(A183=\"\",\"\",'1. Checklist & Certification'!$E$66)","v":""},{"$f":"IF(A183=\"\",\"\",'1. Checklist & Certification'!$E$67)","v":""},{"$f":"IF(A183=\"\",\"\",'1. Checklist & Certification'!$E$68)","v":""},{"$f":"IF(A183=\"\",\"\",'1. Checklist & Certification'!$G$66)","v":""},{"$f":"IF(A183=\"\",\"\",'1. Checklist & Certification'!$H$66)","v":""},{"$f":"IF(A183=\"\",\"\",'1. Checklist & Certification'!$I$66)","v":""},{"$f":"IF(A183=\"\",\"\",'1. Checklist & Certification'!$I$67)","v":""},{"$f":"IF(A183=\"\",\"\",'1. Checklist & Certification'!$I$68)","v":""},{"$f":"IF(A183=\"\",\"\",'1. Checklist & Certification'!$B$69)","v":""},{"$f":"IF(A183=\"\",\"\",'1. Checklist & Certification'!$C$69)","v":""},{"$f":"IF(A183=\"\",\"\",'1. Checklist & Certification'!$F$69)","v":""},{"$f":"IF(A183=\"\",\"\",'1. Checklist & Certification'!$G$69)","v":""},{"$f":"IF(A183=\"\",\"\",'1. Checklist & Certification'!$J$69)","v":""},{"$f":"IF(A183=\"\",\"\",'1. Checklist & Certification'!$K$69)","v":""},null,null,{"$f":"IF(AND(OR('1. Checklist & Certification'!$M$16=1,'1. Checklist & Certification'!$M$19=2),AO183>0,B183=\"\",I183>0,AQ183<I183,AV183<>\"Sec 8-Project\"),\"X\",IF(AND(OR('1. Checklist & Certification'!$M$20=4,'1. Checklist & Certification'!$M$21=5,'1. Checklist & Certification'!$M$22=7),AO183>0,B183=\"\",I183>0,K183<I183),\"X\",\"\"))","v":""},{"$f":"IF(A183=\"\",\"\",IF(SUMPRODUCT(-- (ISNUMBER(SEARCH({\"*AHSC*\",\"*FMTW*\",\"*FWHG*\",\"*GHI*\",\"*HHC*\",\"*HLCP*\",\"*HOME*\",\"*LPR*\",\"*MHP*\",\"*NHTF*\",\"*NSP*\",\"*PRP*\",\"*TOD*\",\"*VHHP*\"},'1. Checklist & Certification'!$L$7)))),\"MHP\",\"Legacy\"))","v":""},",,",null,null,null,{"$f":"IF('1. Checklist & Certification'!$M$20=4,\"Both\",IF(OR('1. Checklist & Certification'!$M$15>0,S183=\"CHRP-R\",U183=\"CHRP-R\",W183=\"CHRP-R\",Y183=\"CHRP-R\"),\"Under\",\"No\"))","v":"No"},"No","No",{"$f":"_xlfn.IFS(D183=\"\",\"\",D183=1,'MHP Family Income & Rent Limits'!$E$17,D183=2,'MHP Family Income & Rent Limits'!$F$17,D183=3,'MHP Family Income & Rent Limits'!$G$17,D183=4,'MHP Family Income & Rent Limits'!$H$17,D183=5,'MHP Family Income & Rent Limits'!$I$17,D183=6,'MHP Family Income & Rent Limits'!$J$17,D183=7,'MHP Family Income & Rent Limits'!$K$17,D183=8,'MHP Family Income & Rent Limits'!$L$17)","v":""},"",{"$f":"IF(OR(A183=0,B183=\"X\"),0,MIN(IF(AA183:AD183<>0,AA183:AD183)))","v":0},{"$f":"IF(OR(H183=\"\",I183=\"\"),0,IF(H183*0.3/12>I183,MIN(H183*0.3/12,I183*1.1)+AP183,I183*(1+(VLOOKUP('1. Checklist & Certification'!$F$9,'HLCP-E Rent Change'!$A$1:$D$59,4,FALSE)))+AP183))","v":0}]
[null,null,null,null,null,null,null,null,null,null,null,null,null,null,null,null,null,null,null,null,null,null,null,null,null,null,0,0,0,0,0,0,0,0,{"$f":"IF(OR(A184=0,B184=\"X\"),0,IF(OR(S184=\"FHDP\",S184=\"RHCP-B\",U184=\"FHDP\",U184=\"RHCP-B\",W184=\"FHDP\",W184=\"RHCP-B\",Y184=\"FHDP\",Y184=\"RHCP-B\"),TRUNC((MIN(I184,K184)*(1+'1. Checklist & Certification'!$K$43)+AP184)),0))","v":0},{"$f":"IF(OR(A184=0,B184=\"X\"),0,IF(OR(S184=\"CHRP-R\",S184=\"SERA\",S184=\"SUHRP\",U184=\"CHRP-R\",U184=\"SERA\",U184=\"SUHRP\",W184=\"CHRP-R\",W184=\"SERA\",W184=\"SUHRP\",Y184=\"CHRP-R\",Y184=\"SERA\",Y184=\"SUHRP\"),TRUNC((MIN(I184,K184)*(1+'1. Checklist & Certification'!$K$49))),0))","v":0},{"$f":"IF(OR(A184=0,B184=\"X\"),0,IF(OR(S184=\"CALDAP\",S184=\"DPRLP\",U184=\"CALDAP\",U184=\"DPRLP\",W184=\"CALDAP\",W184=\"DPRLP\",Y184=\"CALDAP\",Y184=\"DPRLP\"),TRUNC(((MIN(I184,K184))*(1+'1. Checklist & Certification'!$G$4))),0))","v":0},0,0,0,{"$f":"IF(OR(A184=0,B184=\"X\"),0,IF(OR(S184=\"PRP\",S184=\"LPR\",U184=\"PRP\",U184=\"LPR\",W184=\"PRP\",W184=\"LPR\",Y184=\"PRP\",Y184=\"LPR\"),MAX(I184+AP184,MIN(IF(AE184:AN184<>0,AE184:AN184))),MIN(IF(AE184:AN184<>0,AE184:AN184))))","v":0},{"$f":"IF(A184=0,0,IF(AND(OR(S184=\"Mgr\",S184=0),OR(U184=\"Mgr\",U184=0),OR(W184=\"Mgr\",W184=0)),0,IF(LEFT($A184,2)=\"B*\",VLOOKUP($E184,'1. Checklist & Certification'!$D$26:$E$32,2),IF(LEFT($A184,2)=\"C*\",VLOOKUP($E184,'1. Checklist & Certification'!$F$26:$G$32,2),IF(LEFT($A184,2)=\"D*\",VLOOKUP($E184,'1. Checklist & Certification'!$H$26:$I$32,2),IF(LEFT($A184,2)=\"E*\",VLOOKUP($E184,'1. Checklist & Certification'!$J$26:$K$32,2),VLOOKUP($E184,'1. Checklist & Certification'!$A$26:$B$32,2)))))))","v":0},0,0,null,null,null,null,"","",0,0,0,null,{"$f":"IF(A184=\"\",\"\",'1. Checklist & Certification'!$K$1)","v":""},{"$f":"IF(A184=\"\",\"\",'1. Checklist & Certification'!$C$62)","v":""},{"$f":"IF(A184=\"\",\"\",'1. Checklist & Certification'!$C$6)","v":""},{"$f":"IF(A184=\"\",\"\",'1. Checklist & Certification'!$G$5)","v":""},{"$f":"IFERROR(IF(A184=\"\",\"\",\n_xlfn.LET(_xlpm.Contract,'1. Checklist & Certification'!$C$7,\n_xlpm.Yr,TEXT(MOD(_xlfn.TEXTBEFORE(_xlpm.Contract,\"-\"),100),\"00\"),\n_xlpm.Program,_xlfn.TEXTAFTER(_xlfn.TEXTBEFORE(_xlpm.Contract,\"-\",2),\"-\"),\n_xlpm.CleanProgram,_xlfn.XLOOKUP(_xlpm.Program,SpellCheck[Input],SpellCheck[Correction],_xlpm.Program),\n_xlpm.Number,TEXT(_xlfn.TEXTAFTER(_xlpm.Contract,\"-\",2),\"0000\"),\n_xlfn.CONCAT(_xlpm.Yr,\"-\",_xlpm.CleanProgram,\"-\",_xlpm.Number))\n),\"\")","v":""},{"$f":"IFERROR(IF(A184=\"\",\"\",\n_xlfn.LET(_xlpm.Contract,'1. Checklist & Certification'!$C$8,\n_xlpm.Yr,TEXT(MOD(_xlfn.TEXTBEFORE(_xlpm.Contract,\"-\"),100),\"00\"),\n_xlpm.Program,_xlfn.TEXTAFTER(_xlfn.TEXTBEFORE(_xlpm.Contract,\"-\",2),\"-\"),\n_xlpm.CleanProgram,_xlfn.XLOOKUP(_xlpm.Program,SpellCheck[Input],SpellCheck[Correction],_xlpm.Program),\n_xlpm.Number,TEXT(_xlfn.TEXTAFTER(_xlpm.Contract,\"-\",2),\"0000\"),\n_xlfn.CONCAT(_xlpm.Yr,\"-\",_xlpm.CleanProgram,\"-\",_xlpm.Number))\n),\"\")","v":""},{"$f":"IFERROR(IF(A184=\"\",\"\",\n_xlfn.LET(_xlpm.Contract,'1. Checklist & Certification'!$F$7,\n_xlpm.Yr,TEXT(MOD(_xlfn.TEXTBEFORE(_xlpm.Contract,\"-\"),100),\"00\"),\n_xlpm.Program,_xlfn.TEXTAFTER(_xlfn.TEXTBEFORE(_xlpm.Contract,\"-\",2),\"-\"),\n_xlpm.CleanProgram,_xlfn.XLOOKUP(_xlpm.Program,SpellCheck[Input],SpellCheck[Correction],_xlpm.Program),\n_xlpm.Number,TEXT(_xlfn.TEXTAFTER(_xlpm.Contract,\"-\",2),\"0000\"),\n_xlfn.CONCAT(_xlpm.Yr,\"-\",_xlpm.CleanProgram,\"-\",_xlpm.Number))\n),\"\")","v":""},{"$f":"IFERROR(IF(A184=\"\",\"\",\n_xlfn.LET(_xlpm.Contract,'1. Checklist & Certification'!$F$8,\n_xlpm.Yr,TEXT(MOD(_xlfn.TEXTBEFORE(_xlpm.Contract,\"-\"),100),\"00\"),\n_xlpm.Program,_xlfn.TEXTAFTER(_xlfn.TEXTBEFORE(_xlpm.Contract,\"-\",2),\"-\"),\n_xlpm.CleanProgram,_xlfn.XLOOKUP(_xlpm.Program,SpellCheck[Input],SpellCheck[Correction],_xlpm.Program),\n_xlpm.Number,TEXT(_xlfn.TEXTAFTER(_xlpm.Contract,\"-\",2),\"0000\"),\n_xlfn.CONCAT(_xlpm.Yr,\"-\",_xlpm.CleanProgram,\"-\",_xlpm.Number))\n),\"\")","v":""},{"$f":"IF(A184=\"\",\"\",'1. Checklist & Certification'!$B$9)","v":""},{"$f":"IF(A184=\"\",\"\",'1. Checklist & Certification'!$F$9)","v":""},{"$f":"IF(A184=\"\",\"\",'1. Checklist & Certification'!$C$10)","v":""},{"$f":"IF(A184=\"\",\"\",'1. Checklist & Certification'!$C$11)","v":""},{"$f":"IF(A184=\"\",\"\",'1. Checklist & Certification'!$C$12)","v":""},{"$f":"IF(A184=\"\",\"\",'1. Checklist & Certification'!$B$14)","v":""},{"$f":"IF(A184=\"\",\"\",'1. Checklist & Certification'!$E$14)","v":""},{"$f":"IF(B184=\"\",\"\",'1. Checklist & Certification'!$G$14)","v":""},{"$f":"IF(A184=\"\",\"\",'MHP Family Income & Rent Limits'!$B$3)","v":""},{"$f":"IF(A184=\"\",\"\",'MHP Family Income & Rent Limits'!$J$3)","v":""},{"$f":"IF(A184=\"\",\"\",'MHP Family Income & Rent Limits'!$E$4)","v":""},{"$f":"IF(A184=\"\",\"\",'MHP Family Income & Rent Limits'!$C$7)","v":""},{"$f":"IF(A184=\"\",\"\",'MHP Family Income & Rent Limits'!$F$8)","v":""},{"$f":"IF(A184=\"\",\"\",'1. Checklist & Certification'!$G$4)","v":""},{"$f":"IF(A184=\"\",\"\",'1. Checklist & Certification'!$K$39)","v":""},{"$f":"IF(A184=\"\",\"\",'1. Checklist & Certification'!$K$43)","v":""},{"$f":"IF(A184=\"\",\"\",'1. Checklist & Certification'!$K$45)","v":""},{"$f":"IF(A184=\"\",\"\",'1. Checklist & Certification'!$K$49)","v":""},{"$f":"IF(A184=\"\",\"\",'1. Checklist & Certification'!$K$62)","v":""},{"$f":"IF(A184=\"\",\"\",'1. Checklist & Certification'!$E$66)","v":""},{"$f":"IF(A184=\"\",\"\",'1. Checklist & Certification'!$E$67)","v":""},{"$f":"IF(A184=\"\",\"\",'1. Checklist & Certification'!$E$68)","v":""},{"$f":"IF(A184=\"\",\"\",'1. Checklist & Certification'!$G$66)","v":""},{"$f":"IF(A184=\"\",\"\",'1. Checklist & Certification'!$H$66)","v":""},{"$f":"IF(A184=\"\",\"\",'1. Checklist & Certification'!$I$66)","v":""},{"$f":"IF(A184=\"\",\"\",'1. Checklist & Certification'!$I$67)","v":""},{"$f":"IF(A184=\"\",\"\",'1. Checklist & Certification'!$I$68)","v":""},{"$f":"IF(A184=\"\",\"\",'1. Checklist & Certification'!$B$69)","v":""},{"$f":"IF(A184=\"\",\"\",'1. Checklist & Certification'!$C$69)","v":""},{"$f":"IF(A184=\"\",\"\",'1. Checklist & Certification'!$F$69)","v":""},{"$f":"IF(A184=\"\",\"\",'1. Checklist & Certification'!$G$69)","v":""},{"$f":"IF(A184=\"\",\"\",'1. Checklist & Certification'!$J$69)","v":""},{"$f":"IF(A184=\"\",\"\",'1. Checklist & Certification'!$K$69)","v":""},null,null,{"$f":"IF(AND(OR('1. Checklist & Certification'!$M$16=1,'1. Checklist & Certification'!$M$19=2),AO184>0,B184=\"\",I184>0,AQ184<I184,AV184<>\"Sec 8-Project\"),\"X\",IF(AND(OR('1. Checklist & Certification'!$M$20=4,'1. Checklist & Certification'!$M$21=5,'1. Checklist & Certification'!$M$22=7),AO184>0,B184=\"\",I184>0,K184<I184),\"X\",\"\"))","v":""},{"$f":"IF(A184=\"\",\"\",IF(SUMPRODUCT(-- (ISNUMBER(SEARCH({\"*AHSC*\",\"*FMTW*\",\"*FWHG*\",\"*GHI*\",\"*HHC*\",\"*HLCP*\",\"*HOME*\",\"*LPR*\",\"*MHP*\",\"*NHTF*\",\"*NSP*\",\"*PRP*\",\"*TOD*\",\"*VHHP*\"},'1. Checklist & Certification'!$L$7)))),\"MHP\",\"Legacy\"))","v":""},",,",null,null,null,{"$f":"IF('1. Checklist & Certification'!$M$20=4,\"Both\",IF(OR('1. Checklist & Certification'!$M$15>0,S184=\"CHRP-R\",U184=\"CHRP-R\",W184=\"CHRP-R\",Y184=\"CHRP-R\"),\"Under\",\"No\"))","v":"No"},"No","No",{"$f":"_xlfn.IFS(D184=\"\",\"\",D184=1,'MHP Family Income & Rent Limits'!$E$17,D184=2,'MHP Family Income & Rent Limits'!$F$17,D184=3,'MHP Family Income & Rent Limits'!$G$17,D184=4,'MHP Family Income & Rent Limits'!$H$17,D184=5,'MHP Family Income & Rent Limits'!$I$17,D184=6,'MHP Family Income & Rent Limits'!$J$17,D184=7,'MHP Family Income & Rent Limits'!$K$17,D184=8,'MHP Family Income & Rent Limits'!$L$17)","v":""},"",{"$f":"IF(OR(A184=0,B184=\"X\"),0,MIN(IF(AA184:AD184<>0,AA184:AD184)))","v":0},{"$f":"IF(OR(H184=\"\",I184=\"\"),0,IF(H184*0.3/12>I184,MIN(H184*0.3/12,I184*1.1)+AP184,I184*(1+(VLOOKUP('1. Checklist & Certification'!$F$9,'HLCP-E Rent Change'!$A$1:$D$59,4,FALSE)))+AP184))","v":0}]
[null,null,null,null,null,null,null,null,null,null,null,null,null,null,null,null,null,null,null,null,null,null,null,null,null,null,0,0,0,0,0,0,0,0,{"$f":"IF(OR(A185=0,B185=\"X\"),0,IF(OR(S185=\"FHDP\",S185=\"RHCP-B\",U185=\"FHDP\",U185=\"RHCP-B\",W185=\"FHDP\",W185=\"RHCP-B\",Y185=\"FHDP\",Y185=\"RHCP-B\"),TRUNC((MIN(I185,K185)*(1+'1. Checklist & Certification'!$K$43)+AP185)),0))","v":0},{"$f":"IF(OR(A185=0,B185=\"X\"),0,IF(OR(S185=\"CHRP-R\",S185=\"SERA\",S185=\"SUHRP\",U185=\"CHRP-R\",U185=\"SERA\",U185=\"SUHRP\",W185=\"CHRP-R\",W185=\"SERA\",W185=\"SUHRP\",Y185=\"CHRP-R\",Y185=\"SERA\",Y185=\"SUHRP\"),TRUNC((MIN(I185,K185)*(1+'1. Checklist & Certification'!$K$49))),0))","v":0},{"$f":"IF(OR(A185=0,B185=\"X\"),0,IF(OR(S185=\"CALDAP\",S185=\"DPRLP\",U185=\"CALDAP\",U185=\"DPRLP\",W185=\"CALDAP\",W185=\"DPRLP\",Y185=\"CALDAP\",Y185=\"DPRLP\"),TRUNC(((MIN(I185,K185))*(1+'1. Checklist & Certification'!$G$4))),0))","v":0},0,0,0,{"$f":"IF(OR(A185=0,B185=\"X\"),0,IF(OR(S185=\"PRP\",S185=\"LPR\",U185=\"PRP\",U185=\"LPR\",W185=\"PRP\",W185=\"LPR\",Y185=\"PRP\",Y185=\"LPR\"),MAX(I185+AP185,MIN(IF(AE185:AN185<>0,AE185:AN185))),MIN(IF(AE185:AN185<>0,AE185:AN185))))","v":0},{"$f":"IF(A185=0,0,IF(AND(OR(S185=\"Mgr\",S185=0),OR(U185=\"Mgr\",U185=0),OR(W185=\"Mgr\",W185=0)),0,IF(LEFT($A185,2)=\"B*\",VLOOKUP($E185,'1. Checklist & Certification'!$D$26:$E$32,2),IF(LEFT($A185,2)=\"C*\",VLOOKUP($E185,'1. Checklist & Certification'!$F$26:$G$32,2),IF(LEFT($A185,2)=\"D*\",VLOOKUP($E185,'1. Checklist & Certification'!$H$26:$I$32,2),IF(LEFT($A185,2)=\"E*\",VLOOKUP($E185,'1. Checklist & Certification'!$J$26:$K$32,2),VLOOKUP($E185,'1. Checklist & Certification'!$A$26:$B$32,2)))))))","v":0},0,0,null,null,null,null,"","",0,0,0,null,{"$f":"IF(A185=\"\",\"\",'1. Checklist & Certification'!$K$1)","v":""},{"$f":"IF(A185=\"\",\"\",'1. Checklist & Certification'!$C$62)","v":""},{"$f":"IF(A185=\"\",\"\",'1. Checklist & Certification'!$C$6)","v":""},{"$f":"IF(A185=\"\",\"\",'1. Checklist & Certification'!$G$5)","v":""},{"$f":"IFERROR(IF(A185=\"\",\"\",\n_xlfn.LET(_xlpm.Contract,'1. Checklist & Certification'!$C$7,\n_xlpm.Yr,TEXT(MOD(_xlfn.TEXTBEFORE(_xlpm.Contract,\"-\"),100),\"00\"),\n_xlpm.Program,_xlfn.TEXTAFTER(_xlfn.TEXTBEFORE(_xlpm.Contract,\"-\",2),\"-\"),\n_xlpm.CleanProgram,_xlfn.XLOOKUP(_xlpm.Program,SpellCheck[Input],SpellCheck[Correction],_xlpm.Program),\n_xlpm.Number,TEXT(_xlfn.TEXTAFTER(_xlpm.Contract,\"-\",2),\"0000\"),\n_xlfn.CONCAT(_xlpm.Yr,\"-\",_xlpm.CleanProgram,\"-\",_xlpm.Number))\n),\"\")","v":""},{"$f":"IFERROR(IF(A185=\"\",\"\",\n_xlfn.LET(_xlpm.Contract,'1. Checklist & Certification'!$C$8,\n_xlpm.Yr,TEXT(MOD(_xlfn.TEXTBEFORE(_xlpm.Contract,\"-\"),100),\"00\"),\n_xlpm.Program,_xlfn.TEXTAFTER(_xlfn.TEXTBEFORE(_xlpm.Contract,\"-\",2),\"-\"),\n_xlpm.CleanProgram,_xlfn.XLOOKUP(_xlpm.Program,SpellCheck[Input],SpellCheck[Correction],_xlpm.Program),\n_xlpm.Number,TEXT(_xlfn.TEXTAFTER(_xlpm.Contract,\"-\",2),\"0000\"),\n_xlfn.CONCAT(_xlpm.Yr,\"-\",_xlpm.CleanProgram,\"-\",_xlpm.Number))\n),\"\")","v":""},{"$f":"IFERROR(IF(A185=\"\",\"\",\n_xlfn.LET(_xlpm.Contract,'1. Checklist & Certification'!$F$7,\n_xlpm.Yr,TEXT(MOD(_xlfn.TEXTBEFORE(_xlpm.Contract,\"-\"),100),\"00\"),\n_xlpm.Program,_xlfn.TEXTAFTER(_xlfn.TEXTBEFORE(_xlpm.Contract,\"-\",2),\"-\"),\n_xlpm.CleanProgram,_xlfn.XLOOKUP(_xlpm.Program,SpellCheck[Input],SpellCheck[Correction],_xlpm.Program),\n_xlpm.Number,TEXT(_xlfn.TEXTAFTER(_xlpm.Contract,\"-\",2),\"0000\"),\n_xlfn.CONCAT(_xlpm.Yr,\"-\",_xlpm.CleanProgram,\"-\",_xlpm.Number))\n),\"\")","v":""},{"$f":"IFERROR(IF(A185=\"\",\"\",\n_xlfn.LET(_xlpm.Contract,'1. Checklist & Certification'!$F$8,\n_xlpm.Yr,TEXT(MOD(_xlfn.TEXTBEFORE(_xlpm.Contract,\"-\"),100),\"00\"),\n_xlpm.Program,_xlfn.TEXTAFTER(_xlfn.TEXTBEFORE(_xlpm.Contract,\"-\",2),\"-\"),\n_xlpm.CleanProgram,_xlfn.XLOOKUP(_xlpm.Program,SpellCheck[Input],SpellCheck[Correction],_xlpm.Program),\n_xlpm.Number,TEXT(_xlfn.TEXTAFTER(_xlpm.Contract,\"-\",2),\"0000\"),\n_xlfn.CONCAT(_xlpm.Yr,\"-\",_xlpm.CleanProgram,\"-\",_xlpm.Number))\n),\"\")","v":""},{"$f":"IF(A185=\"\",\"\",'1. Checklist & Certification'!$B$9)","v":""},{"$f":"IF(A185=\"\",\"\",'1. Checklist & Certification'!$F$9)","v":""},{"$f":"IF(A185=\"\",\"\",'1. Checklist & Certification'!$C$10)","v":""},{"$f":"IF(A185=\"\",\"\",'1. Checklist & Certification'!$C$11)","v":""},{"$f":"IF(A185=\"\",\"\",'1. Checklist & Certification'!$C$12)","v":""},{"$f":"IF(A185=\"\",\"\",'1. Checklist & Certification'!$B$14)","v":""},{"$f":"IF(A185=\"\",\"\",'1. Checklist & Certification'!$E$14)","v":""},{"$f":"IF(B185=\"\",\"\",'1. Checklist & Certification'!$G$14)","v":""},{"$f":"IF(A185=\"\",\"\",'MHP Family Income & Rent Limits'!$B$3)","v":""},{"$f":"IF(A185=\"\",\"\",'MHP Family Income & Rent Limits'!$J$3)","v":""},{"$f":"IF(A185=\"\",\"\",'MHP Family Income & Rent Limits'!$E$4)","v":""},{"$f":"IF(A185=\"\",\"\",'MHP Family Income & Rent Limits'!$C$7)","v":""},{"$f":"IF(A185=\"\",\"\",'MHP Family Income & Rent Limits'!$F$8)","v":""},{"$f":"IF(A185=\"\",\"\",'1. Checklist & Certification'!$G$4)","v":""},{"$f":"IF(A185=\"\",\"\",'1. Checklist & Certification'!$K$39)","v":""},{"$f":"IF(A185=\"\",\"\",'1. Checklist & Certification'!$K$43)","v":""},{"$f":"IF(A185=\"\",\"\",'1. Checklist & Certification'!$K$45)","v":""},{"$f":"IF(A185=\"\",\"\",'1. Checklist & Certification'!$K$49)","v":""},{"$f":"IF(A185=\"\",\"\",'1. Checklist & Certification'!$K$62)","v":""},{"$f":"IF(A185=\"\",\"\",'1. Checklist & Certification'!$E$66)","v":""},{"$f":"IF(A185=\"\",\"\",'1. Checklist & Certification'!$E$67)","v":""},{"$f":"IF(A185=\"\",\"\",'1. Checklist & Certification'!$E$68)","v":""},{"$f":"IF(A185=\"\",\"\",'1. Checklist & Certification'!$G$66)","v":""},{"$f":"IF(A185=\"\",\"\",'1. Checklist & Certification'!$H$66)","v":""},{"$f":"IF(A185=\"\",\"\",'1. Checklist & Certification'!$I$66)","v":""},{"$f":"IF(A185=\"\",\"\",'1. Checklist & Certification'!$I$67)","v":""},{"$f":"IF(A185=\"\",\"\",'1. Checklist & Certification'!$I$68)","v":""},{"$f":"IF(A185=\"\",\"\",'1. Checklist & Certification'!$B$69)","v":""},{"$f":"IF(A185=\"\",\"\",'1. Checklist & Certification'!$C$69)","v":""},{"$f":"IF(A185=\"\",\"\",'1. Checklist & Certification'!$F$69)","v":""},{"$f":"IF(A185=\"\",\"\",'1. Checklist & Certification'!$G$69)","v":""},{"$f":"IF(A185=\"\",\"\",'1. Checklist & Certification'!$J$69)","v":""},{"$f":"IF(A185=\"\",\"\",'1. Checklist & Certification'!$K$69)","v":""},null,null,{"$f":"IF(AND(OR('1. Checklist & Certification'!$M$16=1,'1. Checklist & Certification'!$M$19=2),AO185>0,B185=\"\",I185>0,AQ185<I185,AV185<>\"Sec 8-Project\"),\"X\",IF(AND(OR('1. Checklist & Certification'!$M$20=4,'1. Checklist & Certification'!$M$21=5,'1. Checklist & Certification'!$M$22=7),AO185>0,B185=\"\",I185>0,K185<I185),\"X\",\"\"))","v":""},{"$f":"IF(A185=\"\",\"\",IF(SUMPRODUCT(-- (ISNUMBER(SEARCH({\"*AHSC*\",\"*FMTW*\",\"*FWHG*\",\"*GHI*\",\"*HHC*\",\"*HLCP*\",\"*HOME*\",\"*LPR*\",\"*MHP*\",\"*NHTF*\",\"*NSP*\",\"*PRP*\",\"*TOD*\",\"*VHHP*\"},'1. Checklist & Certification'!$L$7)))),\"MHP\",\"Legacy\"))","v":""},",,",null,null,null,{"$f":"IF('1. Checklist & Certification'!$M$20=4,\"Both\",IF(OR('1. Checklist & Certification'!$M$15>0,S185=\"CHRP-R\",U185=\"CHRP-R\",W185=\"CHRP-R\",Y185=\"CHRP-R\"),\"Under\",\"No\"))","v":"No"},"No","No",{"$f":"_xlfn.IFS(D185=\"\",\"\",D185=1,'MHP Family Income & Rent Limits'!$E$17,D185=2,'MHP Family Income & Rent Limits'!$F$17,D185=3,'MHP Family Income & Rent Limits'!$G$17,D185=4,'MHP Family Income & Rent Limits'!$H$17,D185=5,'MHP Family Income & Rent Limits'!$I$17,D185=6,'MHP Family Income & Rent Limits'!$J$17,D185=7,'MHP Family Income & Rent Limits'!$K$17,D185=8,'MHP Family Income & Rent Limits'!$L$17)","v":""},"",{"$f":"IF(OR(A185=0,B185=\"X\"),0,MIN(IF(AA185:AD185<>0,AA185:AD185)))","v":0},{"$f":"IF(OR(H185=\"\",I185=\"\"),0,IF(H185*0.3/12>I185,MIN(H185*0.3/12,I185*1.1)+AP185,I185*(1+(VLOOKUP('1. Checklist & Certification'!$F$9,'HLCP-E Rent Change'!$A$1:$D$59,4,FALSE)))+AP185))","v":0}]
[null,null,null,null,null,null,null,null,null,null,null,null,null,null,null,null,null,null,null,null,null,null,null,null,null,null,0,0,0,0,0,0,0,0,{"$f":"IF(OR(A186=0,B186=\"X\"),0,IF(OR(S186=\"FHDP\",S186=\"RHCP-B\",U186=\"FHDP\",U186=\"RHCP-B\",W186=\"FHDP\",W186=\"RHCP-B\",Y186=\"FHDP\",Y186=\"RHCP-B\"),TRUNC((MIN(I186,K186)*(1+'1. Checklist & Certification'!$K$43)+AP186)),0))","v":0},{"$f":"IF(OR(A186=0,B186=\"X\"),0,IF(OR(S186=\"CHRP-R\",S186=\"SERA\",S186=\"SUHRP\",U186=\"CHRP-R\",U186=\"SERA\",U186=\"SUHRP\",W186=\"CHRP-R\",W186=\"SERA\",W186=\"SUHRP\",Y186=\"CHRP-R\",Y186=\"SERA\",Y186=\"SUHRP\"),TRUNC((MIN(I186,K186)*(1+'1. Checklist & Certification'!$K$49))),0))","v":0},{"$f":"IF(OR(A186=0,B186=\"X\"),0,IF(OR(S186=\"CALDAP\",S186=\"DPRLP\",U186=\"CALDAP\",U186=\"DPRLP\",W186=\"CALDAP\",W186=\"DPRLP\",Y186=\"CALDAP\",Y186=\"DPRLP\"),TRUNC(((MIN(I186,K186))*(1+'1. Checklist & Certification'!$G$4))),0))","v":0},0,0,0,{"$f":"IF(OR(A186=0,B186=\"X\"),0,IF(OR(S186=\"PRP\",S186=\"LPR\",U186=\"PRP\",U186=\"LPR\",W186=\"PRP\",W186=\"LPR\",Y186=\"PRP\",Y186=\"LPR\"),MAX(I186+AP186,MIN(IF(AE186:AN186<>0,AE186:AN186))),MIN(IF(AE186:AN186<>0,AE186:AN186))))","v":0},{"$f":"IF(A186=0,0,IF(AND(OR(S186=\"Mgr\",S186=0),OR(U186=\"Mgr\",U186=0),OR(W186=\"Mgr\",W186=0)),0,IF(LEFT($A186,2)=\"B*\",VLOOKUP($E186,'1. Checklist & Certification'!$D$26:$E$32,2),IF(LEFT($A186,2)=\"C*\",VLOOKUP($E186,'1. Checklist & Certification'!$F$26:$G$32,2),IF(LEFT($A186,2)=\"D*\",VLOOKUP($E186,'1. Checklist & Certification'!$H$26:$I$32,2),IF(LEFT($A186,2)=\"E*\",VLOOKUP($E186,'1. Checklist & Certification'!$J$26:$K$32,2),VLOOKUP($E186,'1. Checklist & Certification'!$A$26:$B$32,2)))))))","v":0},0,0,null,null,null,null,"","",0,0,0,null,{"$f":"IF(A186=\"\",\"\",'1. Checklist & Certification'!$K$1)","v":""},{"$f":"IF(A186=\"\",\"\",'1. Checklist & Certification'!$C$62)","v":""},{"$f":"IF(A186=\"\",\"\",'1. Checklist & Certification'!$C$6)","v":""},{"$f":"IF(A186=\"\",\"\",'1. Checklist & Certification'!$G$5)","v":""},{"$f":"IFERROR(IF(A186=\"\",\"\",\n_xlfn.LET(_xlpm.Contract,'1. Checklist & Certification'!$C$7,\n_xlpm.Yr,TEXT(MOD(_xlfn.TEXTBEFORE(_xlpm.Contract,\"-\"),100),\"00\"),\n_xlpm.Program,_xlfn.TEXTAFTER(_xlfn.TEXTBEFORE(_xlpm.Contract,\"-\",2),\"-\"),\n_xlpm.CleanProgram,_xlfn.XLOOKUP(_xlpm.Program,SpellCheck[Input],SpellCheck[Correction],_xlpm.Program),\n_xlpm.Number,TEXT(_xlfn.TEXTAFTER(_xlpm.Contract,\"-\",2),\"0000\"),\n_xlfn.CONCAT(_xlpm.Yr,\"-\",_xlpm.CleanProgram,\"-\",_xlpm.Number))\n),\"\")","v":""},{"$f":"IFERROR(IF(A186=\"\",\"\",\n_xlfn.LET(_xlpm.Contract,'1. Checklist & Certification'!$C$8,\n_xlpm.Yr,TEXT(MOD(_xlfn.TEXTBEFORE(_xlpm.Contract,\"-\"),100),\"00\"),\n_xlpm.Program,_xlfn.TEXTAFTER(_xlfn.TEXTBEFORE(_xlpm.Contract,\"-\",2),\"-\"),\n_xlpm.CleanProgram,_xlfn.XLOOKUP(_xlpm.Program,SpellCheck[Input],SpellCheck[Correction],_xlpm.Program),\n_xlpm.Number,TEXT(_xlfn.TEXTAFTER(_xlpm.Contract,\"-\",2),\"0000\"),\n_xlfn.CONCAT(_xlpm.Yr,\"-\",_xlpm.CleanProgram,\"-\",_xlpm.Number))\n),\"\")","v":""},{"$f":"IFERROR(IF(A186=\"\",\"\",\n_xlfn.LET(_xlpm.Contract,'1. Checklist & Certification'!$F$7,\n_xlpm.Yr,TEXT(MOD(_xlfn.TEXTBEFORE(_xlpm.Contract,\"-\"),100),\"00\"),\n_xlpm.Program,_xlfn.TEXTAFTER(_xlfn.TEXTBEFORE(_xlpm.Contract,\"-\",2),\"-\"),\n_xlpm.CleanProgram,_xlfn.XLOOKUP(_xlpm.Program,SpellCheck[Input],SpellCheck[Correction],_xlpm.Program),\n_xlpm.Number,TEXT(_xlfn.TEXTAFTER(_xlpm.Contract,\"-\",2),\"0000\"),\n_xlfn.CONCAT(_xlpm.Yr,\"-\",_xlpm.CleanProgram,\"-\",_xlpm.Number))\n),\"\")","v":""},{"$f":"IFERROR(IF(A186=\"\",\"\",\n_xlfn.LET(_xlpm.Contract,'1. Checklist & Certification'!$F$8,\n_xlpm.Yr,TEXT(MOD(_xlfn.TEXTBEFORE(_xlpm.Contract,\"-\"),100),\"00\"),\n_xlpm.Program,_xlfn.TEXTAFTER(_xlfn.TEXTBEFORE(_xlpm.Contract,\"-\",2),\"-\"),\n_xlpm.CleanProgram,_xlfn.XLOOKUP(_xlpm.Program,SpellCheck[Input],SpellCheck[Correction],_xlpm.Program),\n_xlpm.Number,TEXT(_xlfn.TEXTAFTER(_xlpm.Contract,\"-\",2),\"0000\"),\n_xlfn.CONCAT(_xlpm.Yr,\"-\",_xlpm.CleanProgram,\"-\",_xlpm.Number))\n),\"\")","v":""},{"$f":"IF(A186=\"\",\"\",'1. Checklist & Certification'!$B$9)","v":""},{"$f":"IF(A186=\"\",\"\",'1. Checklist & Certification'!$F$9)","v":""},{"$f":"IF(A186=\"\",\"\",'1. Checklist & Certification'!$C$10)","v":""},{"$f":"IF(A186=\"\",\"\",'1. Checklist & Certification'!$C$11)","v":""},{"$f":"IF(A186=\"\",\"\",'1. Checklist & Certification'!$C$12)","v":""},{"$f":"IF(A186=\"\",\"\",'1. Checklist & Certification'!$B$14)","v":""},{"$f":"IF(A186=\"\",\"\",'1. Checklist & Certification'!$E$14)","v":""},{"$f":"IF(B186=\"\",\"\",'1. Checklist & Certification'!$G$14)","v":""},{"$f":"IF(A186=\"\",\"\",'MHP Family Income & Rent Limits'!$B$3)","v":""},{"$f":"IF(A186=\"\",\"\",'MHP Family Income & Rent Limits'!$J$3)","v":""},{"$f":"IF(A186=\"\",\"\",'MHP Family Income & Rent Limits'!$E$4)","v":""},{"$f":"IF(A186=\"\",\"\",'MHP Family Income & Rent Limits'!$C$7)","v":""},{"$f":"IF(A186=\"\",\"\",'MHP Family Income & Rent Limits'!$F$8)","v":""},{"$f":"IF(A186=\"\",\"\",'1. Checklist & Certification'!$G$4)","v":""},{"$f":"IF(A186=\"\",\"\",'1. Checklist & Certification'!$K$39)","v":""},{"$f":"IF(A186=\"\",\"\",'1. Checklist & Certification'!$K$43)","v":""},{"$f":"IF(A186=\"\",\"\",'1. Checklist & Certification'!$K$45)","v":""},{"$f":"IF(A186=\"\",\"\",'1. Checklist & Certification'!$K$49)","v":""},{"$f":"IF(A186=\"\",\"\",'1. Checklist & Certification'!$K$62)","v":""},{"$f":"IF(A186=\"\",\"\",'1. Checklist & Certification'!$E$66)","v":""},{"$f":"IF(A186=\"\",\"\",'1. Checklist & Certification'!$E$67)","v":""},{"$f":"IF(A186=\"\",\"\",'1. Checklist & Certification'!$E$68)","v":""},{"$f":"IF(A186=\"\",\"\",'1. Checklist & Certification'!$G$66)","v":""},{"$f":"IF(A186=\"\",\"\",'1. Checklist & Certification'!$H$66)","v":""},{"$f":"IF(A186=\"\",\"\",'1. Checklist & Certification'!$I$66)","v":""},{"$f":"IF(A186=\"\",\"\",'1. Checklist & Certification'!$I$67)","v":""},{"$f":"IF(A186=\"\",\"\",'1. Checklist & Certification'!$I$68)","v":""},{"$f":"IF(A186=\"\",\"\",'1. Checklist & Certification'!$B$69)","v":""},{"$f":"IF(A186=\"\",\"\",'1. Checklist & Certification'!$C$69)","v":""},{"$f":"IF(A186=\"\",\"\",'1. Checklist & Certification'!$F$69)","v":""},{"$f":"IF(A186=\"\",\"\",'1. Checklist & Certification'!$G$69)","v":""},{"$f":"IF(A186=\"\",\"\",'1. Checklist & Certification'!$J$69)","v":""},{"$f":"IF(A186=\"\",\"\",'1. Checklist & Certification'!$K$69)","v":""},null,null,{"$f":"IF(AND(OR('1. Checklist & Certification'!$M$16=1,'1. Checklist & Certification'!$M$19=2),AO186>0,B186=\"\",I186>0,AQ186<I186,AV186<>\"Sec 8-Project\"),\"X\",IF(AND(OR('1. Checklist & Certification'!$M$20=4,'1. Checklist & Certification'!$M$21=5,'1. Checklist & Certification'!$M$22=7),AO186>0,B186=\"\",I186>0,K186<I186),\"X\",\"\"))","v":""},{"$f":"IF(A186=\"\",\"\",IF(SUMPRODUCT(-- (ISNUMBER(SEARCH({\"*AHSC*\",\"*FMTW*\",\"*FWHG*\",\"*GHI*\",\"*HHC*\",\"*HLCP*\",\"*HOME*\",\"*LPR*\",\"*MHP*\",\"*NHTF*\",\"*NSP*\",\"*PRP*\",\"*TOD*\",\"*VHHP*\"},'1. Checklist & Certification'!$L$7)))),\"MHP\",\"Legacy\"))","v":""},",,",null,null,null,{"$f":"IF('1. Checklist & Certification'!$M$20=4,\"Both\",IF(OR('1. Checklist & Certification'!$M$15>0,S186=\"CHRP-R\",U186=\"CHRP-R\",W186=\"CHRP-R\",Y186=\"CHRP-R\"),\"Under\",\"No\"))","v":"No"},"No","No",{"$f":"_xlfn.IFS(D186=\"\",\"\",D186=1,'MHP Family Income & Rent Limits'!$E$17,D186=2,'MHP Family Income & Rent Limits'!$F$17,D186=3,'MHP Family Income & Rent Limits'!$G$17,D186=4,'MHP Family Income & Rent Limits'!$H$17,D186=5,'MHP Family Income & Rent Limits'!$I$17,D186=6,'MHP Family Income & Rent Limits'!$J$17,D186=7,'MHP Family Income & Rent Limits'!$K$17,D186=8,'MHP Family Income & Rent Limits'!$L$17)","v":""},"",{"$f":"IF(OR(A186=0,B186=\"X\"),0,MIN(IF(AA186:AD186<>0,AA186:AD186)))","v":0},{"$f":"IF(OR(H186=\"\",I186=\"\"),0,IF(H186*0.3/12>I186,MIN(H186*0.3/12,I186*1.1)+AP186,I186*(1+(VLOOKUP('1. Checklist & Certification'!$F$9,'HLCP-E Rent Change'!$A$1:$D$59,4,FALSE)))+AP186))","v":0}]
[null,null,null,null,null,null,null,null,null,null,null,null,null,null,null,null,null,null,null,null,null,null,null,null,null,null,0,0,0,0,0,0,0,0,{"$f":"IF(OR(A187=0,B187=\"X\"),0,IF(OR(S187=\"FHDP\",S187=\"RHCP-B\",U187=\"FHDP\",U187=\"RHCP-B\",W187=\"FHDP\",W187=\"RHCP-B\",Y187=\"FHDP\",Y187=\"RHCP-B\"),TRUNC((MIN(I187,K187)*(1+'1. Checklist & Certification'!$K$43)+AP187)),0))","v":0},{"$f":"IF(OR(A187=0,B187=\"X\"),0,IF(OR(S187=\"CHRP-R\",S187=\"SERA\",S187=\"SUHRP\",U187=\"CHRP-R\",U187=\"SERA\",U187=\"SUHRP\",W187=\"CHRP-R\",W187=\"SERA\",W187=\"SUHRP\",Y187=\"CHRP-R\",Y187=\"SERA\",Y187=\"SUHRP\"),TRUNC((MIN(I187,K187)*(1+'1. Checklist & Certification'!$K$49))),0))","v":0},{"$f":"IF(OR(A187=0,B187=\"X\"),0,IF(OR(S187=\"CALDAP\",S187=\"DPRLP\",U187=\"CALDAP\",U187=\"DPRLP\",W187=\"CALDAP\",W187=\"DPRLP\",Y187=\"CALDAP\",Y187=\"DPRLP\"),TRUNC(((MIN(I187,K187))*(1+'1. Checklist & Certification'!$G$4))),0))","v":0},0,0,0,{"$f":"IF(OR(A187=0,B187=\"X\"),0,IF(OR(S187=\"PRP\",S187=\"LPR\",U187=\"PRP\",U187=\"LPR\",W187=\"PRP\",W187=\"LPR\",Y187=\"PRP\",Y187=\"LPR\"),MAX(I187+AP187,MIN(IF(AE187:AN187<>0,AE187:AN187))),MIN(IF(AE187:AN187<>0,AE187:AN187))))","v":0},{"$f":"IF(A187=0,0,IF(AND(OR(S187=\"Mgr\",S187=0),OR(U187=\"Mgr\",U187=0),OR(W187=\"Mgr\",W187=0)),0,IF(LEFT($A187,2)=\"B*\",VLOOKUP($E187,'1. Checklist & Certification'!$D$26:$E$32,2),IF(LEFT($A187,2)=\"C*\",VLOOKUP($E187,'1. Checklist & Certification'!$F$26:$G$32,2),IF(LEFT($A187,2)=\"D*\",VLOOKUP($E187,'1. Checklist & Certification'!$H$26:$I$32,2),IF(LEFT($A187,2)=\"E*\",VLOOKUP($E187,'1. Checklist & Certification'!$J$26:$K$32,2),VLOOKUP($E187,'1. Checklist & Certification'!$A$26:$B$32,2)))))))","v":0},0,0,null,null,null,null,"","",0,0,0,null,{"$f":"IF(A187=\"\",\"\",'1. Checklist & Certification'!$K$1)","v":""},{"$f":"IF(A187=\"\",\"\",'1. Checklist & Certification'!$C$62)","v":""},{"$f":"IF(A187=\"\",\"\",'1. Checklist & Certification'!$C$6)","v":""},{"$f":"IF(A187=\"\",\"\",'1. Checklist & Certification'!$G$5)","v":""},{"$f":"IFERROR(IF(A187=\"\",\"\",\n_xlfn.LET(_xlpm.Contract,'1. Checklist & Certification'!$C$7,\n_xlpm.Yr,TEXT(MOD(_xlfn.TEXTBEFORE(_xlpm.Contract,\"-\"),100),\"00\"),\n_xlpm.Program,_xlfn.TEXTAFTER(_xlfn.TEXTBEFORE(_xlpm.Contract,\"-\",2),\"-\"),\n_xlpm.CleanProgram,_xlfn.XLOOKUP(_xlpm.Program,SpellCheck[Input],SpellCheck[Correction],_xlpm.Program),\n_xlpm.Number,TEXT(_xlfn.TEXTAFTER(_xlpm.Contract,\"-\",2),\"0000\"),\n_xlfn.CONCAT(_xlpm.Yr,\"-\",_xlpm.CleanProgram,\"-\",_xlpm.Number))\n),\"\")","v":""},{"$f":"IFERROR(IF(A187=\"\",\"\",\n_xlfn.LET(_xlpm.Contract,'1. Checklist & Certification'!$C$8,\n_xlpm.Yr,TEXT(MOD(_xlfn.TEXTBEFORE(_xlpm.Contract,\"-\"),100),\"00\"),\n_xlpm.Program,_xlfn.TEXTAFTER(_xlfn.TEXTBEFORE(_xlpm.Contract,\"-\",2),\"-\"),\n_xlpm.CleanProgram,_xlfn.XLOOKUP(_xlpm.Program,SpellCheck[Input],SpellCheck[Correction],_xlpm.Program),\n_xlpm.Number,TEXT(_xlfn.TEXTAFTER(_xlpm.Contract,\"-\",2),\"0000\"),\n_xlfn.CONCAT(_xlpm.Yr,\"-\",_xlpm.CleanProgram,\"-\",_xlpm.Number))\n),\"\")","v":""},{"$f":"IFERROR(IF(A187=\"\",\"\",\n_xlfn.LET(_xlpm.Contract,'1. Checklist & Certification'!$F$7,\n_xlpm.Yr,TEXT(MOD(_xlfn.TEXTBEFORE(_xlpm.Contract,\"-\"),100),\"00\"),\n_xlpm.Program,_xlfn.TEXTAFTER(_xlfn.TEXTBEFORE(_xlpm.Contract,\"-\",2),\"-\"),\n_xlpm.CleanProgram,_xlfn.XLOOKUP(_xlpm.Program,SpellCheck[Input],SpellCheck[Correction],_xlpm.Program),\n_xlpm.Number,TEXT(_xlfn.TEXTAFTER(_xlpm.Contract,\"-\",2),\"0000\"),\n_xlfn.CONCAT(_xlpm.Yr,\"-\",_xlpm.CleanProgram,\"-\",_xlpm.Number))\n),\"\")","v":""},{"$f":"IFERROR(IF(A187=\"\",\"\",\n_xlfn.LET(_xlpm.Contract,'1. Checklist & Certification'!$F$8,\n_xlpm.Yr,TEXT(MOD(_xlfn.TEXTBEFORE(_xlpm.Contract,\"-\"),100),\"00\"),\n_xlpm.Program,_xlfn.TEXTAFTER(_xlfn.TEXTBEFORE(_xlpm.Contract,\"-\",2),\"-\"),\n_xlpm.CleanProgram,_xlfn.XLOOKUP(_xlpm.Program,SpellCheck[Input],SpellCheck[Correction],_xlpm.Program),\n_xlpm.Number,TEXT(_xlfn.TEXTAFTER(_xlpm.Contract,\"-\",2),\"0000\"),\n_xlfn.CONCAT(_xlpm.Yr,\"-\",_xlpm.CleanProgram,\"-\",_xlpm.Number))\n),\"\")","v":""},{"$f":"IF(A187=\"\",\"\",'1. Checklist & Certification'!$B$9)","v":""},{"$f":"IF(A187=\"\",\"\",'1. Checklist & Certification'!$F$9)","v":""},{"$f":"IF(A187=\"\",\"\",'1. Checklist & Certification'!$C$10)","v":""},{"$f":"IF(A187=\"\",\"\",'1. Checklist & Certification'!$C$11)","v":""},{"$f":"IF(A187=\"\",\"\",'1. Checklist & Certification'!$C$12)","v":""},{"$f":"IF(A187=\"\",\"\",'1. Checklist & Certification'!$B$14)","v":""},{"$f":"IF(A187=\"\",\"\",'1. Checklist & Certification'!$E$14)","v":""},{"$f":"IF(B187=\"\",\"\",'1. Checklist & Certification'!$G$14)","v":""},{"$f":"IF(A187=\"\",\"\",'MHP Family Income & Rent Limits'!$B$3)","v":""},{"$f":"IF(A187=\"\",\"\",'MHP Family Income & Rent Limits'!$J$3)","v":""},{"$f":"IF(A187=\"\",\"\",'MHP Family Income & Rent Limits'!$E$4)","v":""},{"$f":"IF(A187=\"\",\"\",'MHP Family Income & Rent Limits'!$C$7)","v":""},{"$f":"IF(A187=\"\",\"\",'MHP Family Income & Rent Limits'!$F$8)","v":""},{"$f":"IF(A187=\"\",\"\",'1. Checklist & Certification'!$G$4)","v":""},{"$f":"IF(A187=\"\",\"\",'1. Checklist & Certification'!$K$39)","v":""},{"$f":"IF(A187=\"\",\"\",'1. Checklist & Certification'!$K$43)","v":""},{"$f":"IF(A187=\"\",\"\",'1. Checklist & Certification'!$K$45)","v":""},{"$f":"IF(A187=\"\",\"\",'1. Checklist & Certification'!$K$49)","v":""},{"$f":"IF(A187=\"\",\"\",'1. Checklist & Certification'!$K$62)","v":""},{"$f":"IF(A187=\"\",\"\",'1. Checklist & Certification'!$E$66)","v":""},{"$f":"IF(A187=\"\",\"\",'1. Checklist & Certification'!$E$67)","v":""},{"$f":"IF(A187=\"\",\"\",'1. Checklist & Certification'!$E$68)","v":""},{"$f":"IF(A187=\"\",\"\",'1. Checklist & Certification'!$G$66)","v":""},{"$f":"IF(A187=\"\",\"\",'1. Checklist & Certification'!$H$66)","v":""},{"$f":"IF(A187=\"\",\"\",'1. Checklist & Certification'!$I$66)","v":""},{"$f":"IF(A187=\"\",\"\",'1. Checklist & Certification'!$I$67)","v":""},{"$f":"IF(A187=\"\",\"\",'1. Checklist & Certification'!$I$68)","v":""},{"$f":"IF(A187=\"\",\"\",'1. Checklist & Certification'!$B$69)","v":""},{"$f":"IF(A187=\"\",\"\",'1. Checklist & Certification'!$C$69)","v":""},{"$f":"IF(A187=\"\",\"\",'1. Checklist & Certification'!$F$69)","v":""},{"$f":"IF(A187=\"\",\"\",'1. Checklist & Certification'!$G$69)","v":""},{"$f":"IF(A187=\"\",\"\",'1. Checklist & Certification'!$J$69)","v":""},{"$f":"IF(A187=\"\",\"\",'1. Checklist & Certification'!$K$69)","v":""},null,null,{"$f":"IF(AND(OR('1. Checklist & Certification'!$M$16=1,'1. Checklist & Certification'!$M$19=2),AO187>0,B187=\"\",I187>0,AQ187<I187,AV187<>\"Sec 8-Project\"),\"X\",IF(AND(OR('1. Checklist & Certification'!$M$20=4,'1. Checklist & Certification'!$M$21=5,'1. Checklist & Certification'!$M$22=7),AO187>0,B187=\"\",I187>0,K187<I187),\"X\",\"\"))","v":""},{"$f":"IF(A187=\"\",\"\",IF(SUMPRODUCT(-- (ISNUMBER(SEARCH({\"*AHSC*\",\"*FMTW*\",\"*FWHG*\",\"*GHI*\",\"*HHC*\",\"*HLCP*\",\"*HOME*\",\"*LPR*\",\"*MHP*\",\"*NHTF*\",\"*NSP*\",\"*PRP*\",\"*TOD*\",\"*VHHP*\"},'1. Checklist & Certification'!$L$7)))),\"MHP\",\"Legacy\"))","v":""},",,",null,null,null,{"$f":"IF('1. Checklist & Certification'!$M$20=4,\"Both\",IF(OR('1. Checklist & Certification'!$M$15>0,S187=\"CHRP-R\",U187=\"CHRP-R\",W187=\"CHRP-R\",Y187=\"CHRP-R\"),\"Under\",\"No\"))","v":"No"},"No","No",{"$f":"_xlfn.IFS(D187=\"\",\"\",D187=1,'MHP Family Income & Rent Limits'!$E$17,D187=2,'MHP Family Income & Rent Limits'!$F$17,D187=3,'MHP Family Income & Rent Limits'!$G$17,D187=4,'MHP Family Income & Rent Limits'!$H$17,D187=5,'MHP Family Income & Rent Limits'!$I$17,D187=6,'MHP Family Income & Rent Limits'!$J$17,D187=7,'MHP Family Income & Rent Limits'!$K$17,D187=8,'MHP Family Income & Rent Limits'!$L$17)","v":""},"",{"$f":"IF(OR(A187=0,B187=\"X\"),0,MIN(IF(AA187:AD187<>0,AA187:AD187)))","v":0},{"$f":"IF(OR(H187=\"\",I187=\"\"),0,IF(H187*0.3/12>I187,MIN(H187*0.3/12,I187*1.1)+AP187,I187*(1+(VLOOKUP('1. Checklist & Certification'!$F$9,'HLCP-E Rent Change'!$A$1:$D$59,4,FALSE)))+AP187))","v":0}]
[null,null,null,null,null,null,null,null,null,null,null,null,null,null,null,null,null,null,null,null,null,null,null,null,null,null,0,0,0,0,0,0,0,0,{"$f":"IF(OR(A188=0,B188=\"X\"),0,IF(OR(S188=\"FHDP\",S188=\"RHCP-B\",U188=\"FHDP\",U188=\"RHCP-B\",W188=\"FHDP\",W188=\"RHCP-B\",Y188=\"FHDP\",Y188=\"RHCP-B\"),TRUNC((MIN(I188,K188)*(1+'1. Checklist & Certification'!$K$43)+AP188)),0))","v":0},{"$f":"IF(OR(A188=0,B188=\"X\"),0,IF(OR(S188=\"CHRP-R\",S188=\"SERA\",S188=\"SUHRP\",U188=\"CHRP-R\",U188=\"SERA\",U188=\"SUHRP\",W188=\"CHRP-R\",W188=\"SERA\",W188=\"SUHRP\",Y188=\"CHRP-R\",Y188=\"SERA\",Y188=\"SUHRP\"),TRUNC((MIN(I188,K188)*(1+'1. Checklist & Certification'!$K$49))),0))","v":0},{"$f":"IF(OR(A188=0,B188=\"X\"),0,IF(OR(S188=\"CALDAP\",S188=\"DPRLP\",U188=\"CALDAP\",U188=\"DPRLP\",W188=\"CALDAP\",W188=\"DPRLP\",Y188=\"CALDAP\",Y188=\"DPRLP\"),TRUNC(((MIN(I188,K188))*(1+'1. Checklist & Certification'!$G$4))),0))","v":0},0,0,0,{"$f":"IF(OR(A188=0,B188=\"X\"),0,IF(OR(S188=\"PRP\",S188=\"LPR\",U188=\"PRP\",U188=\"LPR\",W188=\"PRP\",W188=\"LPR\",Y188=\"PRP\",Y188=\"LPR\"),MAX(I188+AP188,MIN(IF(AE188:AN188<>0,AE188:AN188))),MIN(IF(AE188:AN188<>0,AE188:AN188))))","v":0},{"$f":"IF(A188=0,0,IF(AND(OR(S188=\"Mgr\",S188=0),OR(U188=\"Mgr\",U188=0),OR(W188=\"Mgr\",W188=0)),0,IF(LEFT($A188,2)=\"B*\",VLOOKUP($E188,'1. Checklist & Certification'!$D$26:$E$32,2),IF(LEFT($A188,2)=\"C*\",VLOOKUP($E188,'1. Checklist & Certification'!$F$26:$G$32,2),IF(LEFT($A188,2)=\"D*\",VLOOKUP($E188,'1. Checklist & Certification'!$H$26:$I$32,2),IF(LEFT($A188,2)=\"E*\",VLOOKUP($E188,'1. Checklist & Certification'!$J$26:$K$32,2),VLOOKUP($E188,'1. Checklist & Certification'!$A$26:$B$32,2)))))))","v":0},0,0,null,null,null,null,"","",0,0,0,null,{"$f":"IF(A188=\"\",\"\",'1. Checklist & Certification'!$K$1)","v":""},{"$f":"IF(A188=\"\",\"\",'1. Checklist & Certification'!$C$62)","v":""},{"$f":"IF(A188=\"\",\"\",'1. Checklist & Certification'!$C$6)","v":""},{"$f":"IF(A188=\"\",\"\",'1. Checklist & Certification'!$G$5)","v":""},{"$f":"IFERROR(IF(A188=\"\",\"\",\n_xlfn.LET(_xlpm.Contract,'1. Checklist & Certification'!$C$7,\n_xlpm.Yr,TEXT(MOD(_xlfn.TEXTBEFORE(_xlpm.Contract,\"-\"),100),\"00\"),\n_xlpm.Program,_xlfn.TEXTAFTER(_xlfn.TEXTBEFORE(_xlpm.Contract,\"-\",2),\"-\"),\n_xlpm.CleanProgram,_xlfn.XLOOKUP(_xlpm.Program,SpellCheck[Input],SpellCheck[Correction],_xlpm.Program),\n_xlpm.Number,TEXT(_xlfn.TEXTAFTER(_xlpm.Contract,\"-\",2),\"0000\"),\n_xlfn.CONCAT(_xlpm.Yr,\"-\",_xlpm.CleanProgram,\"-\",_xlpm.Number))\n),\"\")","v":""},{"$f":"IFERROR(IF(A188=\"\",\"\",\n_xlfn.LET(_xlpm.Contract,'1. Checklist & Certification'!$C$8,\n_xlpm.Yr,TEXT(MOD(_xlfn.TEXTBEFORE(_xlpm.Contract,\"-\"),100),\"00\"),\n_xlpm.Program,_xlfn.TEXTAFTER(_xlfn.TEXTBEFORE(_xlpm.Contract,\"-\",2),\"-\"),\n_xlpm.CleanProgram,_xlfn.XLOOKUP(_xlpm.Program,SpellCheck[Input],SpellCheck[Correction],_xlpm.Program),\n_xlpm.Number,TEXT(_xlfn.TEXTAFTER(_xlpm.Contract,\"-\",2),\"0000\"),\n_xlfn.CONCAT(_xlpm.Yr,\"-\",_xlpm.CleanProgram,\"-\",_xlpm.Number))\n),\"\")","v":""},{"$f":"IFERROR(IF(A188=\"\",\"\",\n_xlfn.LET(_xlpm.Contract,'1. Checklist & Certification'!$F$7,\n_xlpm.Yr,TEXT(MOD(_xlfn.TEXTBEFORE(_xlpm.Contract,\"-\"),100),\"00\"),\n_xlpm.Program,_xlfn.TEXTAFTER(_xlfn.TEXTBEFORE(_xlpm.Contract,\"-\",2),\"-\"),\n_xlpm.CleanProgram,_xlfn.XLOOKUP(_xlpm.Program,SpellCheck[Input],SpellCheck[Correction],_xlpm.Program),\n_xlpm.Number,TEXT(_xlfn.TEXTAFTER(_xlpm.Contract,\"-\",2),\"0000\"),\n_xlfn.CONCAT(_xlpm.Yr,\"-\",_xlpm.CleanProgram,\"-\",_xlpm.Number))\n),\"\")","v":""},{"$f":"IFERROR(IF(A188=\"\",\"\",\n_xlfn.LET(_xlpm.Contract,'1. Checklist & Certification'!$F$8,\n_xlpm.Yr,TEXT(MOD(_xlfn.TEXTBEFORE(_xlpm.Contract,\"-\"),100),\"00\"),\n_xlpm.Program,_xlfn.TEXTAFTER(_xlfn.TEXTBEFORE(_xlpm.Contract,\"-\",2),\"-\"),\n_xlpm.CleanProgram,_xlfn.XLOOKUP(_xlpm.Program,SpellCheck[Input],SpellCheck[Correction],_xlpm.Program),\n_xlpm.Number,TEXT(_xlfn.TEXTAFTER(_xlpm.Contract,\"-\",2),\"0000\"),\n_xlfn.CONCAT(_xlpm.Yr,\"-\",_xlpm.CleanProgram,\"-\",_xlpm.Number))\n),\"\")","v":""},{"$f":"IF(A188=\"\",\"\",'1. Checklist & Certification'!$B$9)","v":""},{"$f":"IF(A188=\"\",\"\",'1. Checklist & Certification'!$F$9)","v":""},{"$f":"IF(A188=\"\",\"\",'1. Checklist & Certification'!$C$10)","v":""},{"$f":"IF(A188=\"\",\"\",'1. Checklist & Certification'!$C$11)","v":""},{"$f":"IF(A188=\"\",\"\",'1. Checklist & Certification'!$C$12)","v":""},{"$f":"IF(A188=\"\",\"\",'1. Checklist & Certification'!$B$14)","v":""},{"$f":"IF(A188=\"\",\"\",'1. Checklist & Certification'!$E$14)","v":""},{"$f":"IF(B188=\"\",\"\",'1. Checklist & Certification'!$G$14)","v":""},{"$f":"IF(A188=\"\",\"\",'MHP Family Income & Rent Limits'!$B$3)","v":""},{"$f":"IF(A188=\"\",\"\",'MHP Family Income & Rent Limits'!$J$3)","v":""},{"$f":"IF(A188=\"\",\"\",'MHP Family Income & Rent Limits'!$E$4)","v":""},{"$f":"IF(A188=\"\",\"\",'MHP Family Income & Rent Limits'!$C$7)","v":""},{"$f":"IF(A188=\"\",\"\",'MHP Family Income & Rent Limits'!$F$8)","v":""},{"$f":"IF(A188=\"\",\"\",'1. Checklist & Certification'!$G$4)","v":""},{"$f":"IF(A188=\"\",\"\",'1. Checklist & Certification'!$K$39)","v":""},{"$f":"IF(A188=\"\",\"\",'1. Checklist & Certification'!$K$43)","v":""},{"$f":"IF(A188=\"\",\"\",'1. Checklist & Certification'!$K$45)","v":""},{"$f":"IF(A188=\"\",\"\",'1. Checklist & Certification'!$K$49)","v":""},{"$f":"IF(A188=\"\",\"\",'1. Checklist & Certification'!$K$62)","v":""},{"$f":"IF(A188=\"\",\"\",'1. Checklist & Certification'!$E$66)","v":""},{"$f":"IF(A188=\"\",\"\",'1. Checklist & Certification'!$E$67)","v":""},{"$f":"IF(A188=\"\",\"\",'1. Checklist & Certification'!$E$68)","v":""},{"$f":"IF(A188=\"\",\"\",'1. Checklist & Certification'!$G$66)","v":""},{"$f":"IF(A188=\"\",\"\",'1. Checklist & Certification'!$H$66)","v":""},{"$f":"IF(A188=\"\",\"\",'1. Checklist & Certification'!$I$66)","v":""},{"$f":"IF(A188=\"\",\"\",'1. Checklist & Certification'!$I$67)","v":""},{"$f":"IF(A188=\"\",\"\",'1. Checklist & Certification'!$I$68)","v":""},{"$f":"IF(A188=\"\",\"\",'1. Checklist & Certification'!$B$69)","v":""},{"$f":"IF(A188=\"\",\"\",'1. Checklist & Certification'!$C$69)","v":""},{"$f":"IF(A188=\"\",\"\",'1. Checklist & Certification'!$F$69)","v":""},{"$f":"IF(A188=\"\",\"\",'1. Checklist & Certification'!$G$69)","v":""},{"$f":"IF(A188=\"\",\"\",'1. Checklist & Certification'!$J$69)","v":""},{"$f":"IF(A188=\"\",\"\",'1. Checklist & Certification'!$K$69)","v":""},null,null,{"$f":"IF(AND(OR('1. Checklist & Certification'!$M$16=1,'1. Checklist & Certification'!$M$19=2),AO188>0,B188=\"\",I188>0,AQ188<I188,AV188<>\"Sec 8-Project\"),\"X\",IF(AND(OR('1. Checklist & Certification'!$M$20=4,'1. Checklist & Certification'!$M$21=5,'1. Checklist & Certification'!$M$22=7),AO188>0,B188=\"\",I188>0,K188<I188),\"X\",\"\"))","v":""},{"$f":"IF(A188=\"\",\"\",IF(SUMPRODUCT(-- (ISNUMBER(SEARCH({\"*AHSC*\",\"*FMTW*\",\"*FWHG*\",\"*GHI*\",\"*HHC*\",\"*HLCP*\",\"*HOME*\",\"*LPR*\",\"*MHP*\",\"*NHTF*\",\"*NSP*\",\"*PRP*\",\"*TOD*\",\"*VHHP*\"},'1. Checklist & Certification'!$L$7)))),\"MHP\",\"Legacy\"))","v":""},",,",null,null,null,{"$f":"IF('1. Checklist & Certification'!$M$20=4,\"Both\",IF(OR('1. Checklist & Certification'!$M$15>0,S188=\"CHRP-R\",U188=\"CHRP-R\",W188=\"CHRP-R\",Y188=\"CHRP-R\"),\"Under\",\"No\"))","v":"No"},"No","No",{"$f":"_xlfn.IFS(D188=\"\",\"\",D188=1,'MHP Family Income & Rent Limits'!$E$17,D188=2,'MHP Family Income & Rent Limits'!$F$17,D188=3,'MHP Family Income & Rent Limits'!$G$17,D188=4,'MHP Family Income & Rent Limits'!$H$17,D188=5,'MHP Family Income & Rent Limits'!$I$17,D188=6,'MHP Family Income & Rent Limits'!$J$17,D188=7,'MHP Family Income & Rent Limits'!$K$17,D188=8,'MHP Family Income & Rent Limits'!$L$17)","v":""},"",{"$f":"IF(OR(A188=0,B188=\"X\"),0,MIN(IF(AA188:AD188<>0,AA188:AD188)))","v":0},{"$f":"IF(OR(H188=\"\",I188=\"\"),0,IF(H188*0.3/12>I188,MIN(H188*0.3/12,I188*1.1)+AP188,I188*(1+(VLOOKUP('1. Checklist & Certification'!$F$9,'HLCP-E Rent Change'!$A$1:$D$59,4,FALSE)))+AP188))","v":0}]
[null,null,null,null,null,null,null,null,null,null,null,null,null,null,null,null,null,null,null,null,null,null,null,null,null,null,0,0,0,0,0,0,0,0,{"$f":"IF(OR(A189=0,B189=\"X\"),0,IF(OR(S189=\"FHDP\",S189=\"RHCP-B\",U189=\"FHDP\",U189=\"RHCP-B\",W189=\"FHDP\",W189=\"RHCP-B\",Y189=\"FHDP\",Y189=\"RHCP-B\"),TRUNC((MIN(I189,K189)*(1+'1. Checklist & Certification'!$K$43)+AP189)),0))","v":0},{"$f":"IF(OR(A189=0,B189=\"X\"),0,IF(OR(S189=\"CHRP-R\",S189=\"SERA\",S189=\"SUHRP\",U189=\"CHRP-R\",U189=\"SERA\",U189=\"SUHRP\",W189=\"CHRP-R\",W189=\"SERA\",W189=\"SUHRP\",Y189=\"CHRP-R\",Y189=\"SERA\",Y189=\"SUHRP\"),TRUNC((MIN(I189,K189)*(1+'1. Checklist & Certification'!$K$49))),0))","v":0},{"$f":"IF(OR(A189=0,B189=\"X\"),0,IF(OR(S189=\"CALDAP\",S189=\"DPRLP\",U189=\"CALDAP\",U189=\"DPRLP\",W189=\"CALDAP\",W189=\"DPRLP\",Y189=\"CALDAP\",Y189=\"DPRLP\"),TRUNC(((MIN(I189,K189))*(1+'1. Checklist & Certification'!$G$4))),0))","v":0},0,0,0,{"$f":"IF(OR(A189=0,B189=\"X\"),0,IF(OR(S189=\"PRP\",S189=\"LPR\",U189=\"PRP\",U189=\"LPR\",W189=\"PRP\",W189=\"LPR\",Y189=\"PRP\",Y189=\"LPR\"),MAX(I189+AP189,MIN(IF(AE189:AN189<>0,AE189:AN189))),MIN(IF(AE189:AN189<>0,AE189:AN189))))","v":0},{"$f":"IF(A189=0,0,IF(AND(OR(S189=\"Mgr\",S189=0),OR(U189=\"Mgr\",U189=0),OR(W189=\"Mgr\",W189=0)),0,IF(LEFT($A189,2)=\"B*\",VLOOKUP($E189,'1. Checklist & Certification'!$D$26:$E$32,2),IF(LEFT($A189,2)=\"C*\",VLOOKUP($E189,'1. Checklist & Certification'!$F$26:$G$32,2),IF(LEFT($A189,2)=\"D*\",VLOOKUP($E189,'1. Checklist & Certification'!$H$26:$I$32,2),IF(LEFT($A189,2)=\"E*\",VLOOKUP($E189,'1. Checklist & Certification'!$J$26:$K$32,2),VLOOKUP($E189,'1. Checklist & Certification'!$A$26:$B$32,2)))))))","v":0},0,0,null,null,null,null,"","",0,0,0,null,{"$f":"IF(A189=\"\",\"\",'1. Checklist & Certification'!$K$1)","v":""},{"$f":"IF(A189=\"\",\"\",'1. Checklist & Certification'!$C$62)","v":""},{"$f":"IF(A189=\"\",\"\",'1. Checklist & Certification'!$C$6)","v":""},{"$f":"IF(A189=\"\",\"\",'1. Checklist & Certification'!$G$5)","v":""},{"$f":"IFERROR(IF(A189=\"\",\"\",\n_xlfn.LET(_xlpm.Contract,'1. Checklist & Certification'!$C$7,\n_xlpm.Yr,TEXT(MOD(_xlfn.TEXTBEFORE(_xlpm.Contract,\"-\"),100),\"00\"),\n_xlpm.Program,_xlfn.TEXTAFTER(_xlfn.TEXTBEFORE(_xlpm.Contract,\"-\",2),\"-\"),\n_xlpm.CleanProgram,_xlfn.XLOOKUP(_xlpm.Program,SpellCheck[Input],SpellCheck[Correction],_xlpm.Program),\n_xlpm.Number,TEXT(_xlfn.TEXTAFTER(_xlpm.Contract,\"-\",2),\"0000\"),\n_xlfn.CONCAT(_xlpm.Yr,\"-\",_xlpm.CleanProgram,\"-\",_xlpm.Number))\n),\"\")","v":""},{"$f":"IFERROR(IF(A189=\"\",\"\",\n_xlfn.LET(_xlpm.Contract,'1. Checklist & Certification'!$C$8,\n_xlpm.Yr,TEXT(MOD(_xlfn.TEXTBEFORE(_xlpm.Contract,\"-\"),100),\"00\"),\n_xlpm.Program,_xlfn.TEXTAFTER(_xlfn.TEXTBEFORE(_xlpm.Contract,\"-\",2),\"-\"),\n_xlpm.CleanProgram,_xlfn.XLOOKUP(_xlpm.Program,SpellCheck[Input],SpellCheck[Correction],_xlpm.Program),\n_xlpm.Number,TEXT(_xlfn.TEXTAFTER(_xlpm.Contract,\"-\",2),\"0000\"),\n_xlfn.CONCAT(_xlpm.Yr,\"-\",_xlpm.CleanProgram,\"-\",_xlpm.Number))\n),\"\")","v":""},{"$f":"IFERROR(IF(A189=\"\",\"\",\n_xlfn.LET(_xlpm.Contract,'1. Checklist & Certification'!$F$7,\n_xlpm.Yr,TEXT(MOD(_xlfn.TEXTBEFORE(_xlpm.Contract,\"-\"),100),\"00\"),\n_xlpm.Program,_xlfn.TEXTAFTER(_xlfn.TEXTBEFORE(_xlpm.Contract,\"-\",2),\"-\"),\n_xlpm.CleanProgram,_xlfn.XLOOKUP(_xlpm.Program,SpellCheck[Input],SpellCheck[Correction],_xlpm.Program),\n_xlpm.Number,TEXT(_xlfn.TEXTAFTER(_xlpm.Contract,\"-\",2),\"0000\"),\n_xlfn.CONCAT(_xlpm.Yr,\"-\",_xlpm.CleanProgram,\"-\",_xlpm.Number))\n),\"\")","v":""},{"$f":"IFERROR(IF(A189=\"\",\"\",\n_xlfn.LET(_xlpm.Contract,'1. Checklist & Certification'!$F$8,\n_xlpm.Yr,TEXT(MOD(_xlfn.TEXTBEFORE(_xlpm.Contract,\"-\"),100),\"00\"),\n_xlpm.Program,_xlfn.TEXTAFTER(_xlfn.TEXTBEFORE(_xlpm.Contract,\"-\",2),\"-\"),\n_xlpm.CleanProgram,_xlfn.XLOOKUP(_xlpm.Program,SpellCheck[Input],SpellCheck[Correction],_xlpm.Program),\n_xlpm.Number,TEXT(_xlfn.TEXTAFTER(_xlpm.Contract,\"-\",2),\"0000\"),\n_xlfn.CONCAT(_xlpm.Yr,\"-\",_xlpm.CleanProgram,\"-\",_xlpm.Number))\n),\"\")","v":""},{"$f":"IF(A189=\"\",\"\",'1. Checklist & Certification'!$B$9)","v":""},{"$f":"IF(A189=\"\",\"\",'1. Checklist & Certification'!$F$9)","v":""},{"$f":"IF(A189=\"\",\"\",'1. Checklist & Certification'!$C$10)","v":""},{"$f":"IF(A189=\"\",\"\",'1. Checklist & Certification'!$C$11)","v":""},{"$f":"IF(A189=\"\",\"\",'1. Checklist & Certification'!$C$12)","v":""},{"$f":"IF(A189=\"\",\"\",'1. Checklist & Certification'!$B$14)","v":""},{"$f":"IF(A189=\"\",\"\",'1. Checklist & Certification'!$E$14)","v":""},{"$f":"IF(B189=\"\",\"\",'1. Checklist & Certification'!$G$14)","v":""},{"$f":"IF(A189=\"\",\"\",'MHP Family Income & Rent Limits'!$B$3)","v":""},{"$f":"IF(A189=\"\",\"\",'MHP Family Income & Rent Limits'!$J$3)","v":""},{"$f":"IF(A189=\"\",\"\",'MHP Family Income & Rent Limits'!$E$4)","v":""},{"$f":"IF(A189=\"\",\"\",'MHP Family Income & Rent Limits'!$C$7)","v":""},{"$f":"IF(A189=\"\",\"\",'MHP Family Income & Rent Limits'!$F$8)","v":""},{"$f":"IF(A189=\"\",\"\",'1. Checklist & Certification'!$G$4)","v":""},{"$f":"IF(A189=\"\",\"\",'1. Checklist & Certification'!$K$39)","v":""},{"$f":"IF(A189=\"\",\"\",'1. Checklist & Certification'!$K$43)","v":""},{"$f":"IF(A189=\"\",\"\",'1. Checklist & Certification'!$K$45)","v":""},{"$f":"IF(A189=\"\",\"\",'1. Checklist & Certification'!$K$49)","v":""},{"$f":"IF(A189=\"\",\"\",'1. Checklist & Certification'!$K$62)","v":""},{"$f":"IF(A189=\"\",\"\",'1. Checklist & Certification'!$E$66)","v":""},{"$f":"IF(A189=\"\",\"\",'1. Checklist & Certification'!$E$67)","v":""},{"$f":"IF(A189=\"\",\"\",'1. Checklist & Certification'!$E$68)","v":""},{"$f":"IF(A189=\"\",\"\",'1. Checklist & Certification'!$G$66)","v":""},{"$f":"IF(A189=\"\",\"\",'1. Checklist & Certification'!$H$66)","v":""},{"$f":"IF(A189=\"\",\"\",'1. Checklist & Certification'!$I$66)","v":""},{"$f":"IF(A189=\"\",\"\",'1. Checklist & Certification'!$I$67)","v":""},{"$f":"IF(A189=\"\",\"\",'1. Checklist & Certification'!$I$68)","v":""},{"$f":"IF(A189=\"\",\"\",'1. Checklist & Certification'!$B$69)","v":""},{"$f":"IF(A189=\"\",\"\",'1. Checklist & Certification'!$C$69)","v":""},{"$f":"IF(A189=\"\",\"\",'1. Checklist & Certification'!$F$69)","v":""},{"$f":"IF(A189=\"\",\"\",'1. Checklist & Certification'!$G$69)","v":""},{"$f":"IF(A189=\"\",\"\",'1. Checklist & Certification'!$J$69)","v":""},{"$f":"IF(A189=\"\",\"\",'1. Checklist & Certification'!$K$69)","v":""},null,null,{"$f":"IF(AND(OR('1. Checklist & Certification'!$M$16=1,'1. Checklist & Certification'!$M$19=2),AO189>0,B189=\"\",I189>0,AQ189<I189,AV189<>\"Sec 8-Project\"),\"X\",IF(AND(OR('1. Checklist & Certification'!$M$20=4,'1. Checklist & Certification'!$M$21=5,'1. Checklist & Certification'!$M$22=7),AO189>0,B189=\"\",I189>0,K189<I189),\"X\",\"\"))","v":""},{"$f":"IF(A189=\"\",\"\",IF(SUMPRODUCT(-- (ISNUMBER(SEARCH({\"*AHSC*\",\"*FMTW*\",\"*FWHG*\",\"*GHI*\",\"*HHC*\",\"*HLCP*\",\"*HOME*\",\"*LPR*\",\"*MHP*\",\"*NHTF*\",\"*NSP*\",\"*PRP*\",\"*TOD*\",\"*VHHP*\"},'1. Checklist & Certification'!$L$7)))),\"MHP\",\"Legacy\"))","v":""},",,",null,null,null,{"$f":"IF('1. Checklist & Certification'!$M$20=4,\"Both\",IF(OR('1. Checklist & Certification'!$M$15>0,S189=\"CHRP-R\",U189=\"CHRP-R\",W189=\"CHRP-R\",Y189=\"CHRP-R\"),\"Under\",\"No\"))","v":"No"},"No","No",{"$f":"_xlfn.IFS(D189=\"\",\"\",D189=1,'MHP Family Income & Rent Limits'!$E$17,D189=2,'MHP Family Income & Rent Limits'!$F$17,D189=3,'MHP Family Income & Rent Limits'!$G$17,D189=4,'MHP Family Income & Rent Limits'!$H$17,D189=5,'MHP Family Income & Rent Limits'!$I$17,D189=6,'MHP Family Income & Rent Limits'!$J$17,D189=7,'MHP Family Income & Rent Limits'!$K$17,D189=8,'MHP Family Income & Rent Limits'!$L$17)","v":""},"",{"$f":"IF(OR(A189=0,B189=\"X\"),0,MIN(IF(AA189:AD189<>0,AA189:AD189)))","v":0},{"$f":"IF(OR(H189=\"\",I189=\"\"),0,IF(H189*0.3/12>I189,MIN(H189*0.3/12,I189*1.1)+AP189,I189*(1+(VLOOKUP('1. Checklist & Certification'!$F$9,'HLCP-E Rent Change'!$A$1:$D$59,4,FALSE)))+AP189))","v":0}]
[null,null,null,null,null,null,null,null,null,null,null,null,null,null,null,null,null,null,null,null,null,null,null,null,null,null,0,0,0,0,0,0,0,0,{"$f":"IF(OR(A190=0,B190=\"X\"),0,IF(OR(S190=\"FHDP\",S190=\"RHCP-B\",U190=\"FHDP\",U190=\"RHCP-B\",W190=\"FHDP\",W190=\"RHCP-B\",Y190=\"FHDP\",Y190=\"RHCP-B\"),TRUNC((MIN(I190,K190)*(1+'1. Checklist & Certification'!$K$43)+AP190)),0))","v":0},{"$f":"IF(OR(A190=0,B190=\"X\"),0,IF(OR(S190=\"CHRP-R\",S190=\"SERA\",S190=\"SUHRP\",U190=\"CHRP-R\",U190=\"SERA\",U190=\"SUHRP\",W190=\"CHRP-R\",W190=\"SERA\",W190=\"SUHRP\",Y190=\"CHRP-R\",Y190=\"SERA\",Y190=\"SUHRP\"),TRUNC((MIN(I190,K190)*(1+'1. Checklist & Certification'!$K$49))),0))","v":0},{"$f":"IF(OR(A190=0,B190=\"X\"),0,IF(OR(S190=\"CALDAP\",S190=\"DPRLP\",U190=\"CALDAP\",U190=\"DPRLP\",W190=\"CALDAP\",W190=\"DPRLP\",Y190=\"CALDAP\",Y190=\"DPRLP\"),TRUNC(((MIN(I190,K190))*(1+'1. Checklist & Certification'!$G$4))),0))","v":0},0,0,0,{"$f":"IF(OR(A190=0,B190=\"X\"),0,IF(OR(S190=\"PRP\",S190=\"LPR\",U190=\"PRP\",U190=\"LPR\",W190=\"PRP\",W190=\"LPR\",Y190=\"PRP\",Y190=\"LPR\"),MAX(I190+AP190,MIN(IF(AE190:AN190<>0,AE190:AN190))),MIN(IF(AE190:AN190<>0,AE190:AN190))))","v":0},{"$f":"IF(A190=0,0,IF(AND(OR(S190=\"Mgr\",S190=0),OR(U190=\"Mgr\",U190=0),OR(W190=\"Mgr\",W190=0)),0,IF(LEFT($A190,2)=\"B*\",VLOOKUP($E190,'1. Checklist & Certification'!$D$26:$E$32,2),IF(LEFT($A190,2)=\"C*\",VLOOKUP($E190,'1. Checklist & Certification'!$F$26:$G$32,2),IF(LEFT($A190,2)=\"D*\",VLOOKUP($E190,'1. Checklist & Certification'!$H$26:$I$32,2),IF(LEFT($A190,2)=\"E*\",VLOOKUP($E190,'1. Checklist & Certification'!$J$26:$K$32,2),VLOOKUP($E190,'1. Checklist & Certification'!$A$26:$B$32,2)))))))","v":0},0,0,null,null,null,null,"","",0,0,0,null,{"$f":"IF(A190=\"\",\"\",'1. Checklist & Certification'!$K$1)","v":""},{"$f":"IF(A190=\"\",\"\",'1. Checklist & Certification'!$C$62)","v":""},{"$f":"IF(A190=\"\",\"\",'1. Checklist & Certification'!$C$6)","v":""},{"$f":"IF(A190=\"\",\"\",'1. Checklist & Certification'!$G$5)","v":""},{"$f":"IFERROR(IF(A190=\"\",\"\",\n_xlfn.LET(_xlpm.Contract,'1. Checklist & Certification'!$C$7,\n_xlpm.Yr,TEXT(MOD(_xlfn.TEXTBEFORE(_xlpm.Contract,\"-\"),100),\"00\"),\n_xlpm.Program,_xlfn.TEXTAFTER(_xlfn.TEXTBEFORE(_xlpm.Contract,\"-\",2),\"-\"),\n_xlpm.CleanProgram,_xlfn.XLOOKUP(_xlpm.Program,SpellCheck[Input],SpellCheck[Correction],_xlpm.Program),\n_xlpm.Number,TEXT(_xlfn.TEXTAFTER(_xlpm.Contract,\"-\",2),\"0000\"),\n_xlfn.CONCAT(_xlpm.Yr,\"-\",_xlpm.CleanProgram,\"-\",_xlpm.Number))\n),\"\")","v":""},{"$f":"IFERROR(IF(A190=\"\",\"\",\n_xlfn.LET(_xlpm.Contract,'1. Checklist & Certification'!$C$8,\n_xlpm.Yr,TEXT(MOD(_xlfn.TEXTBEFORE(_xlpm.Contract,\"-\"),100),\"00\"),\n_xlpm.Program,_xlfn.TEXTAFTER(_xlfn.TEXTBEFORE(_xlpm.Contract,\"-\",2),\"-\"),\n_xlpm.CleanProgram,_xlfn.XLOOKUP(_xlpm.Program,SpellCheck[Input],SpellCheck[Correction],_xlpm.Program),\n_xlpm.Number,TEXT(_xlfn.TEXTAFTER(_xlpm.Contract,\"-\",2),\"0000\"),\n_xlfn.CONCAT(_xlpm.Yr,\"-\",_xlpm.CleanProgram,\"-\",_xlpm.Number))\n),\"\")","v":""},{"$f":"IFERROR(IF(A190=\"\",\"\",\n_xlfn.LET(_xlpm.Contract,'1. Checklist & Certification'!$F$7,\n_xlpm.Yr,TEXT(MOD(_xlfn.TEXTBEFORE(_xlpm.Contract,\"-\"),100),\"00\"),\n_xlpm.Program,_xlfn.TEXTAFTER(_xlfn.TEXTBEFORE(_xlpm.Contract,\"-\",2),\"-\"),\n_xlpm.CleanProgram,_xlfn.XLOOKUP(_xlpm.Program,SpellCheck[Input],SpellCheck[Correction],_xlpm.Program),\n_xlpm.Number,TEXT(_xlfn.TEXTAFTER(_xlpm.Contract,\"-\",2),\"0000\"),\n_xlfn.CONCAT(_xlpm.Yr,\"-\",_xlpm.CleanProgram,\"-\",_xlpm.Number))\n),\"\")","v":""},{"$f":"IFERROR(IF(A190=\"\",\"\",\n_xlfn.LET(_xlpm.Contract,'1. Checklist & Certification'!$F$8,\n_xlpm.Yr,TEXT(MOD(_xlfn.TEXTBEFORE(_xlpm.Contract,\"-\"),100),\"00\"),\n_xlpm.Program,_xlfn.TEXTAFTER(_xlfn.TEXTBEFORE(_xlpm.Contract,\"-\",2),\"-\"),\n_xlpm.CleanProgram,_xlfn.XLOOKUP(_xlpm.Program,SpellCheck[Input],SpellCheck[Correction],_xlpm.Program),\n_xlpm.Number,TEXT(_xlfn.TEXTAFTER(_xlpm.Contract,\"-\",2),\"0000\"),\n_xlfn.CONCAT(_xlpm.Yr,\"-\",_xlpm.CleanProgram,\"-\",_xlpm.Number))\n),\"\")","v":""},{"$f":"IF(A190=\"\",\"\",'1. Checklist & Certification'!$B$9)","v":""},{"$f":"IF(A190=\"\",\"\",'1. Checklist & Certification'!$F$9)","v":""},{"$f":"IF(A190=\"\",\"\",'1. Checklist & Certification'!$C$10)","v":""},{"$f":"IF(A190=\"\",\"\",'1. Checklist & Certification'!$C$11)","v":""},{"$f":"IF(A190=\"\",\"\",'1. Checklist & Certification'!$C$12)","v":""},{"$f":"IF(A190=\"\",\"\",'1. Checklist & Certification'!$B$14)","v":""},{"$f":"IF(A190=\"\",\"\",'1. Checklist & Certification'!$E$14)","v":""},{"$f":"IF(B190=\"\",\"\",'1. Checklist & Certification'!$G$14)","v":""},{"$f":"IF(A190=\"\",\"\",'MHP Family Income & Rent Limits'!$B$3)","v":""},{"$f":"IF(A190=\"\",\"\",'MHP Family Income & Rent Limits'!$J$3)","v":""},{"$f":"IF(A190=\"\",\"\",'MHP Family Income & Rent Limits'!$E$4)","v":""},{"$f":"IF(A190=\"\",\"\",'MHP Family Income & Rent Limits'!$C$7)","v":""},{"$f":"IF(A190=\"\",\"\",'MHP Family Income & Rent Limits'!$F$8)","v":""},{"$f":"IF(A190=\"\",\"\",'1. Checklist & Certification'!$G$4)","v":""},{"$f":"IF(A190=\"\",\"\",'1. Checklist & Certification'!$K$39)","v":""},{"$f":"IF(A190=\"\",\"\",'1. Checklist & Certification'!$K$43)","v":""},{"$f":"IF(A190=\"\",\"\",'1. Checklist & Certification'!$K$45)","v":""},{"$f":"IF(A190=\"\",\"\",'1. Checklist & Certification'!$K$49)","v":""},{"$f":"IF(A190=\"\",\"\",'1. Checklist & Certification'!$K$62)","v":""},{"$f":"IF(A190=\"\",\"\",'1. Checklist & Certification'!$E$66)","v":""},{"$f":"IF(A190=\"\",\"\",'1. Checklist & Certification'!$E$67)","v":""},{"$f":"IF(A190=\"\",\"\",'1. Checklist & Certification'!$E$68)","v":""},{"$f":"IF(A190=\"\",\"\",'1. Checklist & Certification'!$G$66)","v":""},{"$f":"IF(A190=\"\",\"\",'1. Checklist & Certification'!$H$66)","v":""},{"$f":"IF(A190=\"\",\"\",'1. Checklist & Certification'!$I$66)","v":""},{"$f":"IF(A190=\"\",\"\",'1. Checklist & Certification'!$I$67)","v":""},{"$f":"IF(A190=\"\",\"\",'1. Checklist & Certification'!$I$68)","v":""},{"$f":"IF(A190=\"\",\"\",'1. Checklist & Certification'!$B$69)","v":""},{"$f":"IF(A190=\"\",\"\",'1. Checklist & Certification'!$C$69)","v":""},{"$f":"IF(A190=\"\",\"\",'1. Checklist & Certification'!$F$69)","v":""},{"$f":"IF(A190=\"\",\"\",'1. Checklist & Certification'!$G$69)","v":""},{"$f":"IF(A190=\"\",\"\",'1. Checklist & Certification'!$J$69)","v":""},{"$f":"IF(A190=\"\",\"\",'1. Checklist & Certification'!$K$69)","v":""},null,null,{"$f":"IF(AND(OR('1. Checklist & Certification'!$M$16=1,'1. Checklist & Certification'!$M$19=2),AO190>0,B190=\"\",I190>0,AQ190<I190,AV190<>\"Sec 8-Project\"),\"X\",IF(AND(OR('1. Checklist & Certification'!$M$20=4,'1. Checklist & Certification'!$M$21=5,'1. Checklist & Certification'!$M$22=7),AO190>0,B190=\"\",I190>0,K190<I190),\"X\",\"\"))","v":""},{"$f":"IF(A190=\"\",\"\",IF(SUMPRODUCT(-- (ISNUMBER(SEARCH({\"*AHSC*\",\"*FMTW*\",\"*FWHG*\",\"*GHI*\",\"*HHC*\",\"*HLCP*\",\"*HOME*\",\"*LPR*\",\"*MHP*\",\"*NHTF*\",\"*NSP*\",\"*PRP*\",\"*TOD*\",\"*VHHP*\"},'1. Checklist & Certification'!$L$7)))),\"MHP\",\"Legacy\"))","v":""},",,",null,null,null,{"$f":"IF('1. Checklist & Certification'!$M$20=4,\"Both\",IF(OR('1. Checklist & Certification'!$M$15>0,S190=\"CHRP-R\",U190=\"CHRP-R\",W190=\"CHRP-R\",Y190=\"CHRP-R\"),\"Under\",\"No\"))","v":"No"},"No","No",{"$f":"_xlfn.IFS(D190=\"\",\"\",D190=1,'MHP Family Income & Rent Limits'!$E$17,D190=2,'MHP Family Income & Rent Limits'!$F$17,D190=3,'MHP Family Income & Rent Limits'!$G$17,D190=4,'MHP Family Income & Rent Limits'!$H$17,D190=5,'MHP Family Income & Rent Limits'!$I$17,D190=6,'MHP Family Income & Rent Limits'!$J$17,D190=7,'MHP Family Income & Rent Limits'!$K$17,D190=8,'MHP Family Income & Rent Limits'!$L$17)","v":""},"",{"$f":"IF(OR(A190=0,B190=\"X\"),0,MIN(IF(AA190:AD190<>0,AA190:AD190)))","v":0},{"$f":"IF(OR(H190=\"\",I190=\"\"),0,IF(H190*0.3/12>I190,MIN(H190*0.3/12,I190*1.1)+AP190,I190*(1+(VLOOKUP('1. Checklist & Certification'!$F$9,'HLCP-E Rent Change'!$A$1:$D$59,4,FALSE)))+AP190))","v":0}]
[null,null,null,null,null,null,null,null,null,null,null,null,null,null,null,null,null,null,null,null,null,null,null,null,null,null,0,0,0,0,0,0,0,0,{"$f":"IF(OR(A191=0,B191=\"X\"),0,IF(OR(S191=\"FHDP\",S191=\"RHCP-B\",U191=\"FHDP\",U191=\"RHCP-B\",W191=\"FHDP\",W191=\"RHCP-B\",Y191=\"FHDP\",Y191=\"RHCP-B\"),TRUNC((MIN(I191,K191)*(1+'1. Checklist & Certification'!$K$43)+AP191)),0))","v":0},{"$f":"IF(OR(A191=0,B191=\"X\"),0,IF(OR(S191=\"CHRP-R\",S191=\"SERA\",S191=\"SUHRP\",U191=\"CHRP-R\",U191=\"SERA\",U191=\"SUHRP\",W191=\"CHRP-R\",W191=\"SERA\",W191=\"SUHRP\",Y191=\"CHRP-R\",Y191=\"SERA\",Y191=\"SUHRP\"),TRUNC((MIN(I191,K191)*(1+'1. Checklist & Certification'!$K$49))),0))","v":0},{"$f":"IF(OR(A191=0,B191=\"X\"),0,IF(OR(S191=\"CALDAP\",S191=\"DPRLP\",U191=\"CALDAP\",U191=\"DPRLP\",W191=\"CALDAP\",W191=\"DPRLP\",Y191=\"CALDAP\",Y191=\"DPRLP\"),TRUNC(((MIN(I191,K191))*(1+'1. Checklist & Certification'!$G$4))),0))","v":0},0,0,0,{"$f":"IF(OR(A191=0,B191=\"X\"),0,IF(OR(S191=\"PRP\",S191=\"LPR\",U191=\"PRP\",U191=\"LPR\",W191=\"PRP\",W191=\"LPR\",Y191=\"PRP\",Y191=\"LPR\"),MAX(I191+AP191,MIN(IF(AE191:AN191<>0,AE191:AN191))),MIN(IF(AE191:AN191<>0,AE191:AN191))))","v":0},{"$f":"IF(A191=0,0,IF(AND(OR(S191=\"Mgr\",S191=0),OR(U191=\"Mgr\",U191=0),OR(W191=\"Mgr\",W191=0)),0,IF(LEFT($A191,2)=\"B*\",VLOOKUP($E191,'1. Checklist & Certification'!$D$26:$E$32,2),IF(LEFT($A191,2)=\"C*\",VLOOKUP($E191,'1. Checklist & Certification'!$F$26:$G$32,2),IF(LEFT($A191,2)=\"D*\",VLOOKUP($E191,'1. Checklist & Certification'!$H$26:$I$32,2),IF(LEFT($A191,2)=\"E*\",VLOOKUP($E191,'1. Checklist & Certification'!$J$26:$K$32,2),VLOOKUP($E191,'1. Checklist & Certification'!$A$26:$B$32,2)))))))","v":0},0,0,null,null,null,null,"","",0,0,0,null,{"$f":"IF(A191=\"\",\"\",'1. Checklist & Certification'!$K$1)","v":""},{"$f":"IF(A191=\"\",\"\",'1. Checklist & Certification'!$C$62)","v":""},{"$f":"IF(A191=\"\",\"\",'1. Checklist & Certification'!$C$6)","v":""},{"$f":"IF(A191=\"\",\"\",'1. Checklist & Certification'!$G$5)","v":""},{"$f":"IFERROR(IF(A191=\"\",\"\",\n_xlfn.LET(_xlpm.Contract,'1. Checklist & Certification'!$C$7,\n_xlpm.Yr,TEXT(MOD(_xlfn.TEXTBEFORE(_xlpm.Contract,\"-\"),100),\"00\"),\n_xlpm.Program,_xlfn.TEXTAFTER(_xlfn.TEXTBEFORE(_xlpm.Contract,\"-\",2),\"-\"),\n_xlpm.CleanProgram,_xlfn.XLOOKUP(_xlpm.Program,SpellCheck[Input],SpellCheck[Correction],_xlpm.Program),\n_xlpm.Number,TEXT(_xlfn.TEXTAFTER(_xlpm.Contract,\"-\",2),\"0000\"),\n_xlfn.CONCAT(_xlpm.Yr,\"-\",_xlpm.CleanProgram,\"-\",_xlpm.Number))\n),\"\")","v":""},{"$f":"IFERROR(IF(A191=\"\",\"\",\n_xlfn.LET(_xlpm.Contract,'1. Checklist & Certification'!$C$8,\n_xlpm.Yr,TEXT(MOD(_xlfn.TEXTBEFORE(_xlpm.Contract,\"-\"),100),\"00\"),\n_xlpm.Program,_xlfn.TEXTAFTER(_xlfn.TEXTBEFORE(_xlpm.Contract,\"-\",2),\"-\"),\n_xlpm.CleanProgram,_xlfn.XLOOKUP(_xlpm.Program,SpellCheck[Input],SpellCheck[Correction],_xlpm.Program),\n_xlpm.Number,TEXT(_xlfn.TEXTAFTER(_xlpm.Contract,\"-\",2),\"0000\"),\n_xlfn.CONCAT(_xlpm.Yr,\"-\",_xlpm.CleanProgram,\"-\",_xlpm.Number))\n),\"\")","v":""},{"$f":"IFERROR(IF(A191=\"\",\"\",\n_xlfn.LET(_xlpm.Contract,'1. Checklist & Certification'!$F$7,\n_xlpm.Yr,TEXT(MOD(_xlfn.TEXTBEFORE(_xlpm.Contract,\"-\"),100),\"00\"),\n_xlpm.Program,_xlfn.TEXTAFTER(_xlfn.TEXTBEFORE(_xlpm.Contract,\"-\",2),\"-\"),\n_xlpm.CleanProgram,_xlfn.XLOOKUP(_xlpm.Program,SpellCheck[Input],SpellCheck[Correction],_xlpm.Program),\n_xlpm.Number,TEXT(_xlfn.TEXTAFTER(_xlpm.Contract,\"-\",2),\"0000\"),\n_xlfn.CONCAT(_xlpm.Yr,\"-\",_xlpm.CleanProgram,\"-\",_xlpm.Number))\n),\"\")","v":""},{"$f":"IFERROR(IF(A191=\"\",\"\",\n_xlfn.LET(_xlpm.Contract,'1. Checklist & Certification'!$F$8,\n_xlpm.Yr,TEXT(MOD(_xlfn.TEXTBEFORE(_xlpm.Contract,\"-\"),100),\"00\"),\n_xlpm.Program,_xlfn.TEXTAFTER(_xlfn.TEXTBEFORE(_xlpm.Contract,\"-\",2),\"-\"),\n_xlpm.CleanProgram,_xlfn.XLOOKUP(_xlpm.Program,SpellCheck[Input],SpellCheck[Correction],_xlpm.Program),\n_xlpm.Number,TEXT(_xlfn.TEXTAFTER(_xlpm.Contract,\"-\",2),\"0000\"),\n_xlfn.CONCAT(_xlpm.Yr,\"-\",_xlpm.CleanProgram,\"-\",_xlpm.Number))\n),\"\")","v":""},{"$f":"IF(A191=\"\",\"\",'1. Checklist & Certification'!$B$9)","v":""},{"$f":"IF(A191=\"\",\"\",'1. Checklist & Certification'!$F$9)","v":""},{"$f":"IF(A191=\"\",\"\",'1. Checklist & Certification'!$C$10)","v":""},{"$f":"IF(A191=\"\",\"\",'1. Checklist & Certification'!$C$11)","v":""},{"$f":"IF(A191=\"\",\"\",'1. Checklist & Certification'!$C$12)","v":""},{"$f":"IF(A191=\"\",\"\",'1. Checklist & Certification'!$B$14)","v":""},{"$f":"IF(A191=\"\",\"\",'1. Checklist & Certification'!$E$14)","v":""},{"$f":"IF(B191=\"\",\"\",'1. Checklist & Certification'!$G$14)","v":""},{"$f":"IF(A191=\"\",\"\",'MHP Family Income & Rent Limits'!$B$3)","v":""},{"$f":"IF(A191=\"\",\"\",'MHP Family Income & Rent Limits'!$J$3)","v":""},{"$f":"IF(A191=\"\",\"\",'MHP Family Income & Rent Limits'!$E$4)","v":""},{"$f":"IF(A191=\"\",\"\",'MHP Family Income & Rent Limits'!$C$7)","v":""},{"$f":"IF(A191=\"\",\"\",'MHP Family Income & Rent Limits'!$F$8)","v":""},{"$f":"IF(A191=\"\",\"\",'1. Checklist & Certification'!$G$4)","v":""},{"$f":"IF(A191=\"\",\"\",'1. Checklist & Certification'!$K$39)","v":""},{"$f":"IF(A191=\"\",\"\",'1. Checklist & Certification'!$K$43)","v":""},{"$f":"IF(A191=\"\",\"\",'1. Checklist & Certification'!$K$45)","v":""},{"$f":"IF(A191=\"\",\"\",'1. Checklist & Certification'!$K$49)","v":""},{"$f":"IF(A191=\"\",\"\",'1. Checklist & Certification'!$K$62)","v":""},{"$f":"IF(A191=\"\",\"\",'1. Checklist & Certification'!$E$66)","v":""},{"$f":"IF(A191=\"\",\"\",'1. Checklist & Certification'!$E$67)","v":""},{"$f":"IF(A191=\"\",\"\",'1. Checklist & Certification'!$E$68)","v":""},{"$f":"IF(A191=\"\",\"\",'1. Checklist & Certification'!$G$66)","v":""},{"$f":"IF(A191=\"\",\"\",'1. Checklist & Certification'!$H$66)","v":""},{"$f":"IF(A191=\"\",\"\",'1. Checklist & Certification'!$I$66)","v":""},{"$f":"IF(A191=\"\",\"\",'1. Checklist & Certification'!$I$67)","v":""},{"$f":"IF(A191=\"\",\"\",'1. Checklist & Certification'!$I$68)","v":""},{"$f":"IF(A191=\"\",\"\",'1. Checklist & Certification'!$B$69)","v":""},{"$f":"IF(A191=\"\",\"\",'1. Checklist & Certification'!$C$69)","v":""},{"$f":"IF(A191=\"\",\"\",'1. Checklist & Certification'!$F$69)","v":""},{"$f":"IF(A191=\"\",\"\",'1. Checklist & Certification'!$G$69)","v":""},{"$f":"IF(A191=\"\",\"\",'1. Checklist & Certification'!$J$69)","v":""},{"$f":"IF(A191=\"\",\"\",'1. Checklist & Certification'!$K$69)","v":""},null,null,{"$f":"IF(AND(OR('1. Checklist & Certification'!$M$16=1,'1. Checklist & Certification'!$M$19=2),AO191>0,B191=\"\",I191>0,AQ191<I191,AV191<>\"Sec 8-Project\"),\"X\",IF(AND(OR('1. Checklist & Certification'!$M$20=4,'1. Checklist & Certification'!$M$21=5,'1. Checklist & Certification'!$M$22=7),AO191>0,B191=\"\",I191>0,K191<I191),\"X\",\"\"))","v":""},{"$f":"IF(A191=\"\",\"\",IF(SUMPRODUCT(-- (ISNUMBER(SEARCH({\"*AHSC*\",\"*FMTW*\",\"*FWHG*\",\"*GHI*\",\"*HHC*\",\"*HLCP*\",\"*HOME*\",\"*LPR*\",\"*MHP*\",\"*NHTF*\",\"*NSP*\",\"*PRP*\",\"*TOD*\",\"*VHHP*\"},'1. Checklist & Certification'!$L$7)))),\"MHP\",\"Legacy\"))","v":""},",,",null,null,null,{"$f":"IF('1. Checklist & Certification'!$M$20=4,\"Both\",IF(OR('1. Checklist & Certification'!$M$15>0,S191=\"CHRP-R\",U191=\"CHRP-R\",W191=\"CHRP-R\",Y191=\"CHRP-R\"),\"Under\",\"No\"))","v":"No"},"No","No",{"$f":"_xlfn.IFS(D191=\"\",\"\",D191=1,'MHP Family Income & Rent Limits'!$E$17,D191=2,'MHP Family Income & Rent Limits'!$F$17,D191=3,'MHP Family Income & Rent Limits'!$G$17,D191=4,'MHP Family Income & Rent Limits'!$H$17,D191=5,'MHP Family Income & Rent Limits'!$I$17,D191=6,'MHP Family Income & Rent Limits'!$J$17,D191=7,'MHP Family Income & Rent Limits'!$K$17,D191=8,'MHP Family Income & Rent Limits'!$L$17)","v":""},"",{"$f":"IF(OR(A191=0,B191=\"X\"),0,MIN(IF(AA191:AD191<>0,AA191:AD191)))","v":0},{"$f":"IF(OR(H191=\"\",I191=\"\"),0,IF(H191*0.3/12>I191,MIN(H191*0.3/12,I191*1.1)+AP191,I191*(1+(VLOOKUP('1. Checklist & Certification'!$F$9,'HLCP-E Rent Change'!$A$1:$D$59,4,FALSE)))+AP191))","v":0}]
[null,null,null,null,null,null,null,null,null,null,null,null,null,null,null,null,null,null,null,null,null,null,null,null,null,null,0,0,0,0,0,0,0,0,{"$f":"IF(OR(A192=0,B192=\"X\"),0,IF(OR(S192=\"FHDP\",S192=\"RHCP-B\",U192=\"FHDP\",U192=\"RHCP-B\",W192=\"FHDP\",W192=\"RHCP-B\",Y192=\"FHDP\",Y192=\"RHCP-B\"),TRUNC((MIN(I192,K192)*(1+'1. Checklist & Certification'!$K$43)+AP192)),0))","v":0},{"$f":"IF(OR(A192=0,B192=\"X\"),0,IF(OR(S192=\"CHRP-R\",S192=\"SERA\",S192=\"SUHRP\",U192=\"CHRP-R\",U192=\"SERA\",U192=\"SUHRP\",W192=\"CHRP-R\",W192=\"SERA\",W192=\"SUHRP\",Y192=\"CHRP-R\",Y192=\"SERA\",Y192=\"SUHRP\"),TRUNC((MIN(I192,K192)*(1+'1. Checklist & Certification'!$K$49))),0))","v":0},{"$f":"IF(OR(A192=0,B192=\"X\"),0,IF(OR(S192=\"CALDAP\",S192=\"DPRLP\",U192=\"CALDAP\",U192=\"DPRLP\",W192=\"CALDAP\",W192=\"DPRLP\",Y192=\"CALDAP\",Y192=\"DPRLP\"),TRUNC(((MIN(I192,K192))*(1+'1. Checklist & Certification'!$G$4))),0))","v":0},0,0,0,{"$f":"IF(OR(A192=0,B192=\"X\"),0,IF(OR(S192=\"PRP\",S192=\"LPR\",U192=\"PRP\",U192=\"LPR\",W192=\"PRP\",W192=\"LPR\",Y192=\"PRP\",Y192=\"LPR\"),MAX(I192+AP192,MIN(IF(AE192:AN192<>0,AE192:AN192))),MIN(IF(AE192:AN192<>0,AE192:AN192))))","v":0},{"$f":"IF(A192=0,0,IF(AND(OR(S192=\"Mgr\",S192=0),OR(U192=\"Mgr\",U192=0),OR(W192=\"Mgr\",W192=0)),0,IF(LEFT($A192,2)=\"B*\",VLOOKUP($E192,'1. Checklist & Certification'!$D$26:$E$32,2),IF(LEFT($A192,2)=\"C*\",VLOOKUP($E192,'1. Checklist & Certification'!$F$26:$G$32,2),IF(LEFT($A192,2)=\"D*\",VLOOKUP($E192,'1. Checklist & Certification'!$H$26:$I$32,2),IF(LEFT($A192,2)=\"E*\",VLOOKUP($E192,'1. Checklist & Certification'!$J$26:$K$32,2),VLOOKUP($E192,'1. Checklist & Certification'!$A$26:$B$32,2)))))))","v":0},0,0,null,null,null,null,"","",0,0,0,null,{"$f":"IF(A192=\"\",\"\",'1. Checklist & Certification'!$K$1)","v":""},{"$f":"IF(A192=\"\",\"\",'1. Checklist & Certification'!$C$62)","v":""},{"$f":"IF(A192=\"\",\"\",'1. Checklist & Certification'!$C$6)","v":""},{"$f":"IF(A192=\"\",\"\",'1. Checklist & Certification'!$G$5)","v":""},{"$f":"IFERROR(IF(A192=\"\",\"\",\n_xlfn.LET(_xlpm.Contract,'1. Checklist & Certification'!$C$7,\n_xlpm.Yr,TEXT(MOD(_xlfn.TEXTBEFORE(_xlpm.Contract,\"-\"),100),\"00\"),\n_xlpm.Program,_xlfn.TEXTAFTER(_xlfn.TEXTBEFORE(_xlpm.Contract,\"-\",2),\"-\"),\n_xlpm.CleanProgram,_xlfn.XLOOKUP(_xlpm.Program,SpellCheck[Input],SpellCheck[Correction],_xlpm.Program),\n_xlpm.Number,TEXT(_xlfn.TEXTAFTER(_xlpm.Contract,\"-\",2),\"0000\"),\n_xlfn.CONCAT(_xlpm.Yr,\"-\",_xlpm.CleanProgram,\"-\",_xlpm.Number))\n),\"\")","v":""},{"$f":"IFERROR(IF(A192=\"\",\"\",\n_xlfn.LET(_xlpm.Contract,'1. Checklist & Certification'!$C$8,\n_xlpm.Yr,TEXT(MOD(_xlfn.TEXTBEFORE(_xlpm.Contract,\"-\"),100),\"00\"),\n_xlpm.Program,_xlfn.TEXTAFTER(_xlfn.TEXTBEFORE(_xlpm.Contract,\"-\",2),\"-\"),\n_xlpm.CleanProgram,_xlfn.XLOOKUP(_xlpm.Program,SpellCheck[Input],SpellCheck[Correction],_xlpm.Program),\n_xlpm.Number,TEXT(_xlfn.TEXTAFTER(_xlpm.Contract,\"-\",2),\"0000\"),\n_xlfn.CONCAT(_xlpm.Yr,\"-\",_xlpm.CleanProgram,\"-\",_xlpm.Number))\n),\"\")","v":""},{"$f":"IFERROR(IF(A192=\"\",\"\",\n_xlfn.LET(_xlpm.Contract,'1. Checklist & Certification'!$F$7,\n_xlpm.Yr,TEXT(MOD(_xlfn.TEXTBEFORE(_xlpm.Contract,\"-\"),100),\"00\"),\n_xlpm.Program,_xlfn.TEXTAFTER(_xlfn.TEXTBEFORE(_xlpm.Contract,\"-\",2),\"-\"),\n_xlpm.CleanProgram,_xlfn.XLOOKUP(_xlpm.Program,SpellCheck[Input],SpellCheck[Correction],_xlpm.Program),\n_xlpm.Number,TEXT(_xlfn.TEXTAFTER(_xlpm.Contract,\"-\",2),\"0000\"),\n_xlfn.CONCAT(_xlpm.Yr,\"-\",_xlpm.CleanProgram,\"-\",_xlpm.Number))\n),\"\")","v":""},{"$f":"IFERROR(IF(A192=\"\",\"\",\n_xlfn.LET(_xlpm.Contract,'1. Checklist & Certification'!$F$8,\n_xlpm.Yr,TEXT(MOD(_xlfn.TEXTBEFORE(_xlpm.Contract,\"-\"),100),\"00\"),\n_xlpm.Program,_xlfn.TEXTAFTER(_xlfn.TEXTBEFORE(_xlpm.Contract,\"-\",2),\"-\"),\n_xlpm.CleanProgram,_xlfn.XLOOKUP(_xlpm.Program,SpellCheck[Input],SpellCheck[Correction],_xlpm.Program),\n_xlpm.Number,TEXT(_xlfn.TEXTAFTER(_xlpm.Contract,\"-\",2),\"0000\"),\n_xlfn.CONCAT(_xlpm.Yr,\"-\",_xlpm.CleanProgram,\"-\",_xlpm.Number))\n),\"\")","v":""},{"$f":"IF(A192=\"\",\"\",'1. Checklist & Certification'!$B$9)","v":""},{"$f":"IF(A192=\"\",\"\",'1. Checklist & Certification'!$F$9)","v":""},{"$f":"IF(A192=\"\",\"\",'1. Checklist & Certification'!$C$10)","v":""},{"$f":"IF(A192=\"\",\"\",'1. Checklist & Certification'!$C$11)","v":""},{"$f":"IF(A192=\"\",\"\",'1. Checklist & Certification'!$C$12)","v":""},{"$f":"IF(A192=\"\",\"\",'1. Checklist & Certification'!$B$14)","v":""},{"$f":"IF(A192=\"\",\"\",'1. Checklist & Certification'!$E$14)","v":""},{"$f":"IF(B192=\"\",\"\",'1. Checklist & Certification'!$G$14)","v":""},{"$f":"IF(A192=\"\",\"\",'MHP Family Income & Rent Limits'!$B$3)","v":""},{"$f":"IF(A192=\"\",\"\",'MHP Family Income & Rent Limits'!$J$3)","v":""},{"$f":"IF(A192=\"\",\"\",'MHP Family Income & Rent Limits'!$E$4)","v":""},{"$f":"IF(A192=\"\",\"\",'MHP Family Income & Rent Limits'!$C$7)","v":""},{"$f":"IF(A192=\"\",\"\",'MHP Family Income & Rent Limits'!$F$8)","v":""},{"$f":"IF(A192=\"\",\"\",'1. Checklist & Certification'!$G$4)","v":""},{"$f":"IF(A192=\"\",\"\",'1. Checklist & Certification'!$K$39)","v":""},{"$f":"IF(A192=\"\",\"\",'1. Checklist & Certification'!$K$43)","v":""},{"$f":"IF(A192=\"\",\"\",'1. Checklist & Certification'!$K$45)","v":""},{"$f":"IF(A192=\"\",\"\",'1. Checklist & Certification'!$K$49)","v":""},{"$f":"IF(A192=\"\",\"\",'1. Checklist & Certification'!$K$62)","v":""},{"$f":"IF(A192=\"\",\"\",'1. Checklist & Certification'!$E$66)","v":""},{"$f":"IF(A192=\"\",\"\",'1. Checklist & Certification'!$E$67)","v":""},{"$f":"IF(A192=\"\",\"\",'1. Checklist & Certification'!$E$68)","v":""},{"$f":"IF(A192=\"\",\"\",'1. Checklist & Certification'!$G$66)","v":""},{"$f":"IF(A192=\"\",\"\",'1. Checklist & Certification'!$H$66)","v":""},{"$f":"IF(A192=\"\",\"\",'1. Checklist & Certification'!$I$66)","v":""},{"$f":"IF(A192=\"\",\"\",'1. Checklist & Certification'!$I$67)","v":""},{"$f":"IF(A192=\"\",\"\",'1. Checklist & Certification'!$I$68)","v":""},{"$f":"IF(A192=\"\",\"\",'1. Checklist & Certification'!$B$69)","v":""},{"$f":"IF(A192=\"\",\"\",'1. Checklist & Certification'!$C$69)","v":""},{"$f":"IF(A192=\"\",\"\",'1. Checklist & Certification'!$F$69)","v":""},{"$f":"IF(A192=\"\",\"\",'1. Checklist & Certification'!$G$69)","v":""},{"$f":"IF(A192=\"\",\"\",'1. Checklist & Certification'!$J$69)","v":""},{"$f":"IF(A192=\"\",\"\",'1. Checklist & Certification'!$K$69)","v":""},null,null,{"$f":"IF(AND(OR('1. Checklist & Certification'!$M$16=1,'1. Checklist & Certification'!$M$19=2),AO192>0,B192=\"\",I192>0,AQ192<I192,AV192<>\"Sec 8-Project\"),\"X\",IF(AND(OR('1. Checklist & Certification'!$M$20=4,'1. Checklist & Certification'!$M$21=5,'1. Checklist & Certification'!$M$22=7),AO192>0,B192=\"\",I192>0,K192<I192),\"X\",\"\"))","v":""},{"$f":"IF(A192=\"\",\"\",IF(SUMPRODUCT(-- (ISNUMBER(SEARCH({\"*AHSC*\",\"*FMTW*\",\"*FWHG*\",\"*GHI*\",\"*HHC*\",\"*HLCP*\",\"*HOME*\",\"*LPR*\",\"*MHP*\",\"*NHTF*\",\"*NSP*\",\"*PRP*\",\"*TOD*\",\"*VHHP*\"},'1. Checklist & Certification'!$L$7)))),\"MHP\",\"Legacy\"))","v":""},",,",null,null,null,{"$f":"IF('1. Checklist & Certification'!$M$20=4,\"Both\",IF(OR('1. Checklist & Certification'!$M$15>0,S192=\"CHRP-R\",U192=\"CHRP-R\",W192=\"CHRP-R\",Y192=\"CHRP-R\"),\"Under\",\"No\"))","v":"No"},"No","No",{"$f":"_xlfn.IFS(D192=\"\",\"\",D192=1,'MHP Family Income & Rent Limits'!$E$17,D192=2,'MHP Family Income & Rent Limits'!$F$17,D192=3,'MHP Family Income & Rent Limits'!$G$17,D192=4,'MHP Family Income & Rent Limits'!$H$17,D192=5,'MHP Family Income & Rent Limits'!$I$17,D192=6,'MHP Family Income & Rent Limits'!$J$17,D192=7,'MHP Family Income & Rent Limits'!$K$17,D192=8,'MHP Family Income & Rent Limits'!$L$17)","v":""},"",{"$f":"IF(OR(A192=0,B192=\"X\"),0,MIN(IF(AA192:AD192<>0,AA192:AD192)))","v":0},{"$f":"IF(OR(H192=\"\",I192=\"\"),0,IF(H192*0.3/12>I192,MIN(H192*0.3/12,I192*1.1)+AP192,I192*(1+(VLOOKUP('1. Checklist & Certification'!$F$9,'HLCP-E Rent Change'!$A$1:$D$59,4,FALSE)))+AP192))","v":0}]
[null,null,null,null,null,null,null,null,null,null,null,null,null,null,null,null,null,null,null,null,null,null,null,null,null,null,0,0,0,0,0,0,0,0,{"$f":"IF(OR(A193=0,B193=\"X\"),0,IF(OR(S193=\"FHDP\",S193=\"RHCP-B\",U193=\"FHDP\",U193=\"RHCP-B\",W193=\"FHDP\",W193=\"RHCP-B\",Y193=\"FHDP\",Y193=\"RHCP-B\"),TRUNC((MIN(I193,K193)*(1+'1. Checklist & Certification'!$K$43)+AP193)),0))","v":0},{"$f":"IF(OR(A193=0,B193=\"X\"),0,IF(OR(S193=\"CHRP-R\",S193=\"SERA\",S193=\"SUHRP\",U193=\"CHRP-R\",U193=\"SERA\",U193=\"SUHRP\",W193=\"CHRP-R\",W193=\"SERA\",W193=\"SUHRP\",Y193=\"CHRP-R\",Y193=\"SERA\",Y193=\"SUHRP\"),TRUNC((MIN(I193,K193)*(1+'1. Checklist & Certification'!$K$49))),0))","v":0},{"$f":"IF(OR(A193=0,B193=\"X\"),0,IF(OR(S193=\"CALDAP\",S193=\"DPRLP\",U193=\"CALDAP\",U193=\"DPRLP\",W193=\"CALDAP\",W193=\"DPRLP\",Y193=\"CALDAP\",Y193=\"DPRLP\"),TRUNC(((MIN(I193,K193))*(1+'1. Checklist & Certification'!$G$4))),0))","v":0},0,0,0,{"$f":"IF(OR(A193=0,B193=\"X\"),0,IF(OR(S193=\"PRP\",S193=\"LPR\",U193=\"PRP\",U193=\"LPR\",W193=\"PRP\",W193=\"LPR\",Y193=\"PRP\",Y193=\"LPR\"),MAX(I193+AP193,MIN(IF(AE193:AN193<>0,AE193:AN193))),MIN(IF(AE193:AN193<>0,AE193:AN193))))","v":0},{"$f":"IF(A193=0,0,IF(AND(OR(S193=\"Mgr\",S193=0),OR(U193=\"Mgr\",U193=0),OR(W193=\"Mgr\",W193=0)),0,IF(LEFT($A193,2)=\"B*\",VLOOKUP($E193,'1. Checklist & Certification'!$D$26:$E$32,2),IF(LEFT($A193,2)=\"C*\",VLOOKUP($E193,'1. Checklist & Certification'!$F$26:$G$32,2),IF(LEFT($A193,2)=\"D*\",VLOOKUP($E193,'1. Checklist & Certification'!$H$26:$I$32,2),IF(LEFT($A193,2)=\"E*\",VLOOKUP($E193,'1. Checklist & Certification'!$J$26:$K$32,2),VLOOKUP($E193,'1. Checklist & Certification'!$A$26:$B$32,2)))))))","v":0},0,0,null,null,null,null,"","",0,0,0,null,{"$f":"IF(A193=\"\",\"\",'1. Checklist & Certification'!$K$1)","v":""},{"$f":"IF(A193=\"\",\"\",'1. Checklist & Certification'!$C$62)","v":""},{"$f":"IF(A193=\"\",\"\",'1. Checklist & Certification'!$C$6)","v":""},{"$f":"IF(A193=\"\",\"\",'1. Checklist & Certification'!$G$5)","v":""},{"$f":"IFERROR(IF(A193=\"\",\"\",\n_xlfn.LET(_xlpm.Contract,'1. Checklist & Certification'!$C$7,\n_xlpm.Yr,TEXT(MOD(_xlfn.TEXTBEFORE(_xlpm.Contract,\"-\"),100),\"00\"),\n_xlpm.Program,_xlfn.TEXTAFTER(_xlfn.TEXTBEFORE(_xlpm.Contract,\"-\",2),\"-\"),\n_xlpm.CleanProgram,_xlfn.XLOOKUP(_xlpm.Program,SpellCheck[Input],SpellCheck[Correction],_xlpm.Program),\n_xlpm.Number,TEXT(_xlfn.TEXTAFTER(_xlpm.Contract,\"-\",2),\"0000\"),\n_xlfn.CONCAT(_xlpm.Yr,\"-\",_xlpm.CleanProgram,\"-\",_xlpm.Number))\n),\"\")","v":""},{"$f":"IFERROR(IF(A193=\"\",\"\",\n_xlfn.LET(_xlpm.Contract,'1. Checklist & Certification'!$C$8,\n_xlpm.Yr,TEXT(MOD(_xlfn.TEXTBEFORE(_xlpm.Contract,\"-\"),100),\"00\"),\n_xlpm.Program,_xlfn.TEXTAFTER(_xlfn.TEXTBEFORE(_xlpm.Contract,\"-\",2),\"-\"),\n_xlpm.CleanProgram,_xlfn.XLOOKUP(_xlpm.Program,SpellCheck[Input],SpellCheck[Correction],_xlpm.Program),\n_xlpm.Number,TEXT(_xlfn.TEXTAFTER(_xlpm.Contract,\"-\",2),\"0000\"),\n_xlfn.CONCAT(_xlpm.Yr,\"-\",_xlpm.CleanProgram,\"-\",_xlpm.Number))\n),\"\")","v":""},{"$f":"IFERROR(IF(A193=\"\",\"\",\n_xlfn.LET(_xlpm.Contract,'1. Checklist & Certification'!$F$7,\n_xlpm.Yr,TEXT(MOD(_xlfn.TEXTBEFORE(_xlpm.Contract,\"-\"),100),\"00\"),\n_xlpm.Program,_xlfn.TEXTAFTER(_xlfn.TEXTBEFORE(_xlpm.Contract,\"-\",2),\"-\"),\n_xlpm.CleanProgram,_xlfn.XLOOKUP(_xlpm.Program,SpellCheck[Input],SpellCheck[Correction],_xlpm.Program),\n_xlpm.Number,TEXT(_xlfn.TEXTAFTER(_xlpm.Contract,\"-\",2),\"0000\"),\n_xlfn.CONCAT(_xlpm.Yr,\"-\",_xlpm.CleanProgram,\"-\",_xlpm.Number))\n),\"\")","v":""},{"$f":"IFERROR(IF(A193=\"\",\"\",\n_xlfn.LET(_xlpm.Contract,'1. Checklist & Certification'!$F$8,\n_xlpm.Yr,TEXT(MOD(_xlfn.TEXTBEFORE(_xlpm.Contract,\"-\"),100),\"00\"),\n_xlpm.Program,_xlfn.TEXTAFTER(_xlfn.TEXTBEFORE(_xlpm.Contract,\"-\",2),\"-\"),\n_xlpm.CleanProgram,_xlfn.XLOOKUP(_xlpm.Program,SpellCheck[Input],SpellCheck[Correction],_xlpm.Program),\n_xlpm.Number,TEXT(_xlfn.TEXTAFTER(_xlpm.Contract,\"-\",2),\"0000\"),\n_xlfn.CONCAT(_xlpm.Yr,\"-\",_xlpm.CleanProgram,\"-\",_xlpm.Number))\n),\"\")","v":""},{"$f":"IF(A193=\"\",\"\",'1. Checklist & Certification'!$B$9)","v":""},{"$f":"IF(A193=\"\",\"\",'1. Checklist & Certification'!$F$9)","v":""},{"$f":"IF(A193=\"\",\"\",'1. Checklist & Certification'!$C$10)","v":""},{"$f":"IF(A193=\"\",\"\",'1. Checklist & Certification'!$C$11)","v":""},{"$f":"IF(A193=\"\",\"\",'1. Checklist & Certification'!$C$12)","v":""},{"$f":"IF(A193=\"\",\"\",'1. Checklist & Certification'!$B$14)","v":""},{"$f":"IF(A193=\"\",\"\",'1. Checklist & Certification'!$E$14)","v":""},{"$f":"IF(B193=\"\",\"\",'1. Checklist & Certification'!$G$14)","v":""},{"$f":"IF(A193=\"\",\"\",'MHP Family Income & Rent Limits'!$B$3)","v":""},{"$f":"IF(A193=\"\",\"\",'MHP Family Income & Rent Limits'!$J$3)","v":""},{"$f":"IF(A193=\"\",\"\",'MHP Family Income & Rent Limits'!$E$4)","v":""},{"$f":"IF(A193=\"\",\"\",'MHP Family Income & Rent Limits'!$C$7)","v":""},{"$f":"IF(A193=\"\",\"\",'MHP Family Income & Rent Limits'!$F$8)","v":""},{"$f":"IF(A193=\"\",\"\",'1. Checklist & Certification'!$G$4)","v":""},{"$f":"IF(A193=\"\",\"\",'1. Checklist & Certification'!$K$39)","v":""},{"$f":"IF(A193=\"\",\"\",'1. Checklist & Certification'!$K$43)","v":""},{"$f":"IF(A193=\"\",\"\",'1. Checklist & Certification'!$K$45)","v":""},{"$f":"IF(A193=\"\",\"\",'1. Checklist & Certification'!$K$49)","v":""},{"$f":"IF(A193=\"\",\"\",'1. Checklist & Certification'!$K$62)","v":""},{"$f":"IF(A193=\"\",\"\",'1. Checklist & Certification'!$E$66)","v":""},{"$f":"IF(A193=\"\",\"\",'1. Checklist & Certification'!$E$67)","v":""},{"$f":"IF(A193=\"\",\"\",'1. Checklist & Certification'!$E$68)","v":""},{"$f":"IF(A193=\"\",\"\",'1. Checklist & Certification'!$G$66)","v":""},{"$f":"IF(A193=\"\",\"\",'1. Checklist & Certification'!$H$66)","v":""},{"$f":"IF(A193=\"\",\"\",'1. Checklist & Certification'!$I$66)","v":""},{"$f":"IF(A193=\"\",\"\",'1. Checklist & Certification'!$I$67)","v":""},{"$f":"IF(A193=\"\",\"\",'1. Checklist & Certification'!$I$68)","v":""},{"$f":"IF(A193=\"\",\"\",'1. Checklist & Certification'!$B$69)","v":""},{"$f":"IF(A193=\"\",\"\",'1. Checklist & Certification'!$C$69)","v":""},{"$f":"IF(A193=\"\",\"\",'1. Checklist & Certification'!$F$69)","v":""},{"$f":"IF(A193=\"\",\"\",'1. Checklist & Certification'!$G$69)","v":""},{"$f":"IF(A193=\"\",\"\",'1. Checklist & Certification'!$J$69)","v":""},{"$f":"IF(A193=\"\",\"\",'1. Checklist & Certification'!$K$69)","v":""},null,null,{"$f":"IF(AND(OR('1. Checklist & Certification'!$M$16=1,'1. Checklist & Certification'!$M$19=2),AO193>0,B193=\"\",I193>0,AQ193<I193,AV193<>\"Sec 8-Project\"),\"X\",IF(AND(OR('1. Checklist & Certification'!$M$20=4,'1. Checklist & Certification'!$M$21=5,'1. Checklist & Certification'!$M$22=7),AO193>0,B193=\"\",I193>0,K193<I193),\"X\",\"\"))","v":""},{"$f":"IF(A193=\"\",\"\",IF(SUMPRODUCT(-- (ISNUMBER(SEARCH({\"*AHSC*\",\"*FMTW*\",\"*FWHG*\",\"*GHI*\",\"*HHC*\",\"*HLCP*\",\"*HOME*\",\"*LPR*\",\"*MHP*\",\"*NHTF*\",\"*NSP*\",\"*PRP*\",\"*TOD*\",\"*VHHP*\"},'1. Checklist & Certification'!$L$7)))),\"MHP\",\"Legacy\"))","v":""},",,",null,null,null,{"$f":"IF('1. Checklist & Certification'!$M$20=4,\"Both\",IF(OR('1. Checklist & Certification'!$M$15>0,S193=\"CHRP-R\",U193=\"CHRP-R\",W193=\"CHRP-R\",Y193=\"CHRP-R\"),\"Under\",\"No\"))","v":"No"},"No","No",{"$f":"_xlfn.IFS(D193=\"\",\"\",D193=1,'MHP Family Income & Rent Limits'!$E$17,D193=2,'MHP Family Income & Rent Limits'!$F$17,D193=3,'MHP Family Income & Rent Limits'!$G$17,D193=4,'MHP Family Income & Rent Limits'!$H$17,D193=5,'MHP Family Income & Rent Limits'!$I$17,D193=6,'MHP Family Income & Rent Limits'!$J$17,D193=7,'MHP Family Income & Rent Limits'!$K$17,D193=8,'MHP Family Income & Rent Limits'!$L$17)","v":""},"",{"$f":"IF(OR(A193=0,B193=\"X\"),0,MIN(IF(AA193:AD193<>0,AA193:AD193)))","v":0},{"$f":"IF(OR(H193=\"\",I193=\"\"),0,IF(H193*0.3/12>I193,MIN(H193*0.3/12,I193*1.1)+AP193,I193*(1+(VLOOKUP('1. Checklist & Certification'!$F$9,'HLCP-E Rent Change'!$A$1:$D$59,4,FALSE)))+AP193))","v":0}]
[null,null,null,null,null,null,null,null,null,null,null,null,null,null,null,null,null,null,null,null,null,null,null,null,null,null,0,0,0,0,0,0,0,0,{"$f":"IF(OR(A194=0,B194=\"X\"),0,IF(OR(S194=\"FHDP\",S194=\"RHCP-B\",U194=\"FHDP\",U194=\"RHCP-B\",W194=\"FHDP\",W194=\"RHCP-B\",Y194=\"FHDP\",Y194=\"RHCP-B\"),TRUNC((MIN(I194,K194)*(1+'1. Checklist & Certification'!$K$43)+AP194)),0))","v":0},{"$f":"IF(OR(A194=0,B194=\"X\"),0,IF(OR(S194=\"CHRP-R\",S194=\"SERA\",S194=\"SUHRP\",U194=\"CHRP-R\",U194=\"SERA\",U194=\"SUHRP\",W194=\"CHRP-R\",W194=\"SERA\",W194=\"SUHRP\",Y194=\"CHRP-R\",Y194=\"SERA\",Y194=\"SUHRP\"),TRUNC((MIN(I194,K194)*(1+'1. Checklist & Certification'!$K$49))),0))","v":0},{"$f":"IF(OR(A194=0,B194=\"X\"),0,IF(OR(S194=\"CALDAP\",S194=\"DPRLP\",U194=\"CALDAP\",U194=\"DPRLP\",W194=\"CALDAP\",W194=\"DPRLP\",Y194=\"CALDAP\",Y194=\"DPRLP\"),TRUNC(((MIN(I194,K194))*(1+'1. Checklist & Certification'!$G$4))),0))","v":0},0,0,0,{"$f":"IF(OR(A194=0,B194=\"X\"),0,IF(OR(S194=\"PRP\",S194=\"LPR\",U194=\"PRP\",U194=\"LPR\",W194=\"PRP\",W194=\"LPR\",Y194=\"PRP\",Y194=\"LPR\"),MAX(I194+AP194,MIN(IF(AE194:AN194<>0,AE194:AN194))),MIN(IF(AE194:AN194<>0,AE194:AN194))))","v":0},{"$f":"IF(A194=0,0,IF(AND(OR(S194=\"Mgr\",S194=0),OR(U194=\"Mgr\",U194=0),OR(W194=\"Mgr\",W194=0)),0,IF(LEFT($A194,2)=\"B*\",VLOOKUP($E194,'1. Checklist & Certification'!$D$26:$E$32,2),IF(LEFT($A194,2)=\"C*\",VLOOKUP($E194,'1. Checklist & Certification'!$F$26:$G$32,2),IF(LEFT($A194,2)=\"D*\",VLOOKUP($E194,'1. Checklist & Certification'!$H$26:$I$32,2),IF(LEFT($A194,2)=\"E*\",VLOOKUP($E194,'1. Checklist & Certification'!$J$26:$K$32,2),VLOOKUP($E194,'1. Checklist & Certification'!$A$26:$B$32,2)))))))","v":0},0,0,null,null,null,null,"","",0,0,0,null,{"$f":"IF(A194=\"\",\"\",'1. Checklist & Certification'!$K$1)","v":""},{"$f":"IF(A194=\"\",\"\",'1. Checklist & Certification'!$C$62)","v":""},{"$f":"IF(A194=\"\",\"\",'1. Checklist & Certification'!$C$6)","v":""},{"$f":"IF(A194=\"\",\"\",'1. Checklist & Certification'!$G$5)","v":""},{"$f":"IFERROR(IF(A194=\"\",\"\",\n_xlfn.LET(_xlpm.Contract,'1. Checklist & Certification'!$C$7,\n_xlpm.Yr,TEXT(MOD(_xlfn.TEXTBEFORE(_xlpm.Contract,\"-\"),100),\"00\"),\n_xlpm.Program,_xlfn.TEXTAFTER(_xlfn.TEXTBEFORE(_xlpm.Contract,\"-\",2),\"-\"),\n_xlpm.CleanProgram,_xlfn.XLOOKUP(_xlpm.Program,SpellCheck[Input],SpellCheck[Correction],_xlpm.Program),\n_xlpm.Number,TEXT(_xlfn.TEXTAFTER(_xlpm.Contract,\"-\",2),\"0000\"),\n_xlfn.CONCAT(_xlpm.Yr,\"-\",_xlpm.CleanProgram,\"-\",_xlpm.Number))\n),\"\")","v":""},{"$f":"IFERROR(IF(A194=\"\",\"\",\n_xlfn.LET(_xlpm.Contract,'1. Checklist & Certification'!$C$8,\n_xlpm.Yr,TEXT(MOD(_xlfn.TEXTBEFORE(_xlpm.Contract,\"-\"),100),\"00\"),\n_xlpm.Program,_xlfn.TEXTAFTER(_xlfn.TEXTBEFORE(_xlpm.Contract,\"-\",2),\"-\"),\n_xlpm.CleanProgram,_xlfn.XLOOKUP(_xlpm.Program,SpellCheck[Input],SpellCheck[Correction],_xlpm.Program),\n_xlpm.Number,TEXT(_xlfn.TEXTAFTER(_xlpm.Contract,\"-\",2),\"0000\"),\n_xlfn.CONCAT(_xlpm.Yr,\"-\",_xlpm.CleanProgram,\"-\",_xlpm.Number))\n),\"\")","v":""},{"$f":"IFERROR(IF(A194=\"\",\"\",\n_xlfn.LET(_xlpm.Contract,'1. Checklist & Certification'!$F$7,\n_xlpm.Yr,TEXT(MOD(_xlfn.TEXTBEFORE(_xlpm.Contract,\"-\"),100),\"00\"),\n_xlpm.Program,_xlfn.TEXTAFTER(_xlfn.TEXTBEFORE(_xlpm.Contract,\"-\",2),\"-\"),\n_xlpm.CleanProgram,_xlfn.XLOOKUP(_xlpm.Program,SpellCheck[Input],SpellCheck[Correction],_xlpm.Program),\n_xlpm.Number,TEXT(_xlfn.TEXTAFTER(_xlpm.Contract,\"-\",2),\"0000\"),\n_xlfn.CONCAT(_xlpm.Yr,\"-\",_xlpm.CleanProgram,\"-\",_xlpm.Number))\n),\"\")","v":""},{"$f":"IFERROR(IF(A194=\"\",\"\",\n_xlfn.LET(_xlpm.Contract,'1. Checklist & Certification'!$F$8,\n_xlpm.Yr,TEXT(MOD(_xlfn.TEXTBEFORE(_xlpm.Contract,\"-\"),100),\"00\"),\n_xlpm.Program,_xlfn.TEXTAFTER(_xlfn.TEXTBEFORE(_xlpm.Contract,\"-\",2),\"-\"),\n_xlpm.CleanProgram,_xlfn.XLOOKUP(_xlpm.Program,SpellCheck[Input],SpellCheck[Correction],_xlpm.Program),\n_xlpm.Number,TEXT(_xlfn.TEXTAFTER(_xlpm.Contract,\"-\",2),\"0000\"),\n_xlfn.CONCAT(_xlpm.Yr,\"-\",_xlpm.CleanProgram,\"-\",_xlpm.Number))\n),\"\")","v":""},{"$f":"IF(A194=\"\",\"\",'1. Checklist & Certification'!$B$9)","v":""},{"$f":"IF(A194=\"\",\"\",'1. Checklist & Certification'!$F$9)","v":""},{"$f":"IF(A194=\"\",\"\",'1. Checklist & Certification'!$C$10)","v":""},{"$f":"IF(A194=\"\",\"\",'1. Checklist & Certification'!$C$11)","v":""},{"$f":"IF(A194=\"\",\"\",'1. Checklist & Certification'!$C$12)","v":""},{"$f":"IF(A194=\"\",\"\",'1. Checklist & Certification'!$B$14)","v":""},{"$f":"IF(A194=\"\",\"\",'1. Checklist & Certification'!$E$14)","v":""},{"$f":"IF(B194=\"\",\"\",'1. Checklist & Certification'!$G$14)","v":""},{"$f":"IF(A194=\"\",\"\",'MHP Family Income & Rent Limits'!$B$3)","v":""},{"$f":"IF(A194=\"\",\"\",'MHP Family Income & Rent Limits'!$J$3)","v":""},{"$f":"IF(A194=\"\",\"\",'MHP Family Income & Rent Limits'!$E$4)","v":""},{"$f":"IF(A194=\"\",\"\",'MHP Family Income & Rent Limits'!$C$7)","v":""},{"$f":"IF(A194=\"\",\"\",'MHP Family Income & Rent Limits'!$F$8)","v":""},{"$f":"IF(A194=\"\",\"\",'1. Checklist & Certification'!$G$4)","v":""},{"$f":"IF(A194=\"\",\"\",'1. Checklist & Certification'!$K$39)","v":""},{"$f":"IF(A194=\"\",\"\",'1. Checklist & Certification'!$K$43)","v":""},{"$f":"IF(A194=\"\",\"\",'1. Checklist & Certification'!$K$45)","v":""},{"$f":"IF(A194=\"\",\"\",'1. Checklist & Certification'!$K$49)","v":""},{"$f":"IF(A194=\"\",\"\",'1. Checklist & Certification'!$K$62)","v":""},{"$f":"IF(A194=\"\",\"\",'1. Checklist & Certification'!$E$66)","v":""},{"$f":"IF(A194=\"\",\"\",'1. Checklist & Certification'!$E$67)","v":""},{"$f":"IF(A194=\"\",\"\",'1. Checklist & Certification'!$E$68)","v":""},{"$f":"IF(A194=\"\",\"\",'1. Checklist & Certification'!$G$66)","v":""},{"$f":"IF(A194=\"\",\"\",'1. Checklist & Certification'!$H$66)","v":""},{"$f":"IF(A194=\"\",\"\",'1. Checklist & Certification'!$I$66)","v":""},{"$f":"IF(A194=\"\",\"\",'1. Checklist & Certification'!$I$67)","v":""},{"$f":"IF(A194=\"\",\"\",'1. Checklist & Certification'!$I$68)","v":""},{"$f":"IF(A194=\"\",\"\",'1. Checklist & Certification'!$B$69)","v":""},{"$f":"IF(A194=\"\",\"\",'1. Checklist & Certification'!$C$69)","v":""},{"$f":"IF(A194=\"\",\"\",'1. Checklist & Certification'!$F$69)","v":""},{"$f":"IF(A194=\"\",\"\",'1. Checklist & Certification'!$G$69)","v":""},{"$f":"IF(A194=\"\",\"\",'1. Checklist & Certification'!$J$69)","v":""},{"$f":"IF(A194=\"\",\"\",'1. Checklist & Certification'!$K$69)","v":""},null,null,{"$f":"IF(AND(OR('1. Checklist & Certification'!$M$16=1,'1. Checklist & Certification'!$M$19=2),AO194>0,B194=\"\",I194>0,AQ194<I194,AV194<>\"Sec 8-Project\"),\"X\",IF(AND(OR('1. Checklist & Certification'!$M$20=4,'1. Checklist & Certification'!$M$21=5,'1. Checklist & Certification'!$M$22=7),AO194>0,B194=\"\",I194>0,K194<I194),\"X\",\"\"))","v":""},{"$f":"IF(A194=\"\",\"\",IF(SUMPRODUCT(-- (ISNUMBER(SEARCH({\"*AHSC*\",\"*FMTW*\",\"*FWHG*\",\"*GHI*\",\"*HHC*\",\"*HLCP*\",\"*HOME*\",\"*LPR*\",\"*MHP*\",\"*NHTF*\",\"*NSP*\",\"*PRP*\",\"*TOD*\",\"*VHHP*\"},'1. Checklist & Certification'!$L$7)))),\"MHP\",\"Legacy\"))","v":""},",,",null,null,null,{"$f":"IF('1. Checklist & Certification'!$M$20=4,\"Both\",IF(OR('1. Checklist & Certification'!$M$15>0,S194=\"CHRP-R\",U194=\"CHRP-R\",W194=\"CHRP-R\",Y194=\"CHRP-R\"),\"Under\",\"No\"))","v":"No"},"No","No",{"$f":"_xlfn.IFS(D194=\"\",\"\",D194=1,'MHP Family Income & Rent Limits'!$E$17,D194=2,'MHP Family Income & Rent Limits'!$F$17,D194=3,'MHP Family Income & Rent Limits'!$G$17,D194=4,'MHP Family Income & Rent Limits'!$H$17,D194=5,'MHP Family Income & Rent Limits'!$I$17,D194=6,'MHP Family Income & Rent Limits'!$J$17,D194=7,'MHP Family Income & Rent Limits'!$K$17,D194=8,'MHP Family Income & Rent Limits'!$L$17)","v":""},"",{"$f":"IF(OR(A194=0,B194=\"X\"),0,MIN(IF(AA194:AD194<>0,AA194:AD194)))","v":0},{"$f":"IF(OR(H194=\"\",I194=\"\"),0,IF(H194*0.3/12>I194,MIN(H194*0.3/12,I194*1.1)+AP194,I194*(1+(VLOOKUP('1. Checklist & Certification'!$F$9,'HLCP-E Rent Change'!$A$1:$D$59,4,FALSE)))+AP194))","v":0}]
[null,null,null,null,null,null,null,null,null,null,null,null,null,null,null,null,null,null,null,null,null,null,null,null,null,null,0,0,0,0,0,0,0,0,{"$f":"IF(OR(A195=0,B195=\"X\"),0,IF(OR(S195=\"FHDP\",S195=\"RHCP-B\",U195=\"FHDP\",U195=\"RHCP-B\",W195=\"FHDP\",W195=\"RHCP-B\",Y195=\"FHDP\",Y195=\"RHCP-B\"),TRUNC((MIN(I195,K195)*(1+'1. Checklist & Certification'!$K$43)+AP195)),0))","v":0},{"$f":"IF(OR(A195=0,B195=\"X\"),0,IF(OR(S195=\"CHRP-R\",S195=\"SERA\",S195=\"SUHRP\",U195=\"CHRP-R\",U195=\"SERA\",U195=\"SUHRP\",W195=\"CHRP-R\",W195=\"SERA\",W195=\"SUHRP\",Y195=\"CHRP-R\",Y195=\"SERA\",Y195=\"SUHRP\"),TRUNC((MIN(I195,K195)*(1+'1. Checklist & Certification'!$K$49))),0))","v":0},{"$f":"IF(OR(A195=0,B195=\"X\"),0,IF(OR(S195=\"CALDAP\",S195=\"DPRLP\",U195=\"CALDAP\",U195=\"DPRLP\",W195=\"CALDAP\",W195=\"DPRLP\",Y195=\"CALDAP\",Y195=\"DPRLP\"),TRUNC(((MIN(I195,K195))*(1+'1. Checklist & Certification'!$G$4))),0))","v":0},0,0,0,{"$f":"IF(OR(A195=0,B195=\"X\"),0,IF(OR(S195=\"PRP\",S195=\"LPR\",U195=\"PRP\",U195=\"LPR\",W195=\"PRP\",W195=\"LPR\",Y195=\"PRP\",Y195=\"LPR\"),MAX(I195+AP195,MIN(IF(AE195:AN195<>0,AE195:AN195))),MIN(IF(AE195:AN195<>0,AE195:AN195))))","v":0},{"$f":"IF(A195=0,0,IF(AND(OR(S195=\"Mgr\",S195=0),OR(U195=\"Mgr\",U195=0),OR(W195=\"Mgr\",W195=0)),0,IF(LEFT($A195,2)=\"B*\",VLOOKUP($E195,'1. Checklist & Certification'!$D$26:$E$32,2),IF(LEFT($A195,2)=\"C*\",VLOOKUP($E195,'1. Checklist & Certification'!$F$26:$G$32,2),IF(LEFT($A195,2)=\"D*\",VLOOKUP($E195,'1. Checklist & Certification'!$H$26:$I$32,2),IF(LEFT($A195,2)=\"E*\",VLOOKUP($E195,'1. Checklist & Certification'!$J$26:$K$32,2),VLOOKUP($E195,'1. Checklist & Certification'!$A$26:$B$32,2)))))))","v":0},0,0,null,null,null,null,"","",0,0,0,null,{"$f":"IF(A195=\"\",\"\",'1. Checklist & Certification'!$K$1)","v":""},{"$f":"IF(A195=\"\",\"\",'1. Checklist & Certification'!$C$62)","v":""},{"$f":"IF(A195=\"\",\"\",'1. Checklist & Certification'!$C$6)","v":""},{"$f":"IF(A195=\"\",\"\",'1. Checklist & Certification'!$G$5)","v":""},{"$f":"IFERROR(IF(A195=\"\",\"\",\n_xlfn.LET(_xlpm.Contract,'1. Checklist & Certification'!$C$7,\n_xlpm.Yr,TEXT(MOD(_xlfn.TEXTBEFORE(_xlpm.Contract,\"-\"),100),\"00\"),\n_xlpm.Program,_xlfn.TEXTAFTER(_xlfn.TEXTBEFORE(_xlpm.Contract,\"-\",2),\"-\"),\n_xlpm.CleanProgram,_xlfn.XLOOKUP(_xlpm.Program,SpellCheck[Input],SpellCheck[Correction],_xlpm.Program),\n_xlpm.Number,TEXT(_xlfn.TEXTAFTER(_xlpm.Contract,\"-\",2),\"0000\"),\n_xlfn.CONCAT(_xlpm.Yr,\"-\",_xlpm.CleanProgram,\"-\",_xlpm.Number))\n),\"\")","v":""},{"$f":"IFERROR(IF(A195=\"\",\"\",\n_xlfn.LET(_xlpm.Contract,'1. Checklist & Certification'!$C$8,\n_xlpm.Yr,TEXT(MOD(_xlfn.TEXTBEFORE(_xlpm.Contract,\"-\"),100),\"00\"),\n_xlpm.Program,_xlfn.TEXTAFTER(_xlfn.TEXTBEFORE(_xlpm.Contract,\"-\",2),\"-\"),\n_xlpm.CleanProgram,_xlfn.XLOOKUP(_xlpm.Program,SpellCheck[Input],SpellCheck[Correction],_xlpm.Program),\n_xlpm.Number,TEXT(_xlfn.TEXTAFTER(_xlpm.Contract,\"-\",2),\"0000\"),\n_xlfn.CONCAT(_xlpm.Yr,\"-\",_xlpm.CleanProgram,\"-\",_xlpm.Number))\n),\"\")","v":""},{"$f":"IFERROR(IF(A195=\"\",\"\",\n_xlfn.LET(_xlpm.Contract,'1. Checklist & Certification'!$F$7,\n_xlpm.Yr,TEXT(MOD(_xlfn.TEXTBEFORE(_xlpm.Contract,\"-\"),100),\"00\"),\n_xlpm.Program,_xlfn.TEXTAFTER(_xlfn.TEXTBEFORE(_xlpm.Contract,\"-\",2),\"-\"),\n_xlpm.CleanProgram,_xlfn.XLOOKUP(_xlpm.Program,SpellCheck[Input],SpellCheck[Correction],_xlpm.Program),\n_xlpm.Number,TEXT(_xlfn.TEXTAFTER(_xlpm.Contract,\"-\",2),\"0000\"),\n_xlfn.CONCAT(_xlpm.Yr,\"-\",_xlpm.CleanProgram,\"-\",_xlpm.Number))\n),\"\")","v":""},{"$f":"IFERROR(IF(A195=\"\",\"\",\n_xlfn.LET(_xlpm.Contract,'1. Checklist & Certification'!$F$8,\n_xlpm.Yr,TEXT(MOD(_xlfn.TEXTBEFORE(_xlpm.Contract,\"-\"),100),\"00\"),\n_xlpm.Program,_xlfn.TEXTAFTER(_xlfn.TEXTBEFORE(_xlpm.Contract,\"-\",2),\"-\"),\n_xlpm.CleanProgram,_xlfn.XLOOKUP(_xlpm.Program,SpellCheck[Input],SpellCheck[Correction],_xlpm.Program),\n_xlpm.Number,TEXT(_xlfn.TEXTAFTER(_xlpm.Contract,\"-\",2),\"0000\"),\n_xlfn.CONCAT(_xlpm.Yr,\"-\",_xlpm.CleanProgram,\"-\",_xlpm.Number))\n),\"\")","v":""},{"$f":"IF(A195=\"\",\"\",'1. Checklist & Certification'!$B$9)","v":""},{"$f":"IF(A195=\"\",\"\",'1. Checklist & Certification'!$F$9)","v":""},{"$f":"IF(A195=\"\",\"\",'1. Checklist & Certification'!$C$10)","v":""},{"$f":"IF(A195=\"\",\"\",'1. Checklist & Certification'!$C$11)","v":""},{"$f":"IF(A195=\"\",\"\",'1. Checklist & Certification'!$C$12)","v":""},{"$f":"IF(A195=\"\",\"\",'1. Checklist & Certification'!$B$14)","v":""},{"$f":"IF(A195=\"\",\"\",'1. Checklist & Certification'!$E$14)","v":""},{"$f":"IF(B195=\"\",\"\",'1. Checklist & Certification'!$G$14)","v":""},{"$f":"IF(A195=\"\",\"\",'MHP Family Income & Rent Limits'!$B$3)","v":""},{"$f":"IF(A195=\"\",\"\",'MHP Family Income & Rent Limits'!$J$3)","v":""},{"$f":"IF(A195=\"\",\"\",'MHP Family Income & Rent Limits'!$E$4)","v":""},{"$f":"IF(A195=\"\",\"\",'MHP Family Income & Rent Limits'!$C$7)","v":""},{"$f":"IF(A195=\"\",\"\",'MHP Family Income & Rent Limits'!$F$8)","v":""},{"$f":"IF(A195=\"\",\"\",'1. Checklist & Certification'!$G$4)","v":""},{"$f":"IF(A195=\"\",\"\",'1. Checklist & Certification'!$K$39)","v":""},{"$f":"IF(A195=\"\",\"\",'1. Checklist & Certification'!$K$43)","v":""},{"$f":"IF(A195=\"\",\"\",'1. Checklist & Certification'!$K$45)","v":""},{"$f":"IF(A195=\"\",\"\",'1. Checklist & Certification'!$K$49)","v":""},{"$f":"IF(A195=\"\",\"\",'1. Checklist & Certification'!$K$62)","v":""},{"$f":"IF(A195=\"\",\"\",'1. Checklist & Certification'!$E$66)","v":""},{"$f":"IF(A195=\"\",\"\",'1. Checklist & Certification'!$E$67)","v":""},{"$f":"IF(A195=\"\",\"\",'1. Checklist & Certification'!$E$68)","v":""},{"$f":"IF(A195=\"\",\"\",'1. Checklist & Certification'!$G$66)","v":""},{"$f":"IF(A195=\"\",\"\",'1. Checklist & Certification'!$H$66)","v":""},{"$f":"IF(A195=\"\",\"\",'1. Checklist & Certification'!$I$66)","v":""},{"$f":"IF(A195=\"\",\"\",'1. Checklist & Certification'!$I$67)","v":""},{"$f":"IF(A195=\"\",\"\",'1. Checklist & Certification'!$I$68)","v":""},{"$f":"IF(A195=\"\",\"\",'1. Checklist & Certification'!$B$69)","v":""},{"$f":"IF(A195=\"\",\"\",'1. Checklist & Certification'!$C$69)","v":""},{"$f":"IF(A195=\"\",\"\",'1. Checklist & Certification'!$F$69)","v":""},{"$f":"IF(A195=\"\",\"\",'1. Checklist & Certification'!$G$69)","v":""},{"$f":"IF(A195=\"\",\"\",'1. Checklist & Certification'!$J$69)","v":""},{"$f":"IF(A195=\"\",\"\",'1. Checklist & Certification'!$K$69)","v":""},null,null,{"$f":"IF(AND(OR('1. Checklist & Certification'!$M$16=1,'1. Checklist & Certification'!$M$19=2),AO195>0,B195=\"\",I195>0,AQ195<I195,AV195<>\"Sec 8-Project\"),\"X\",IF(AND(OR('1. Checklist & Certification'!$M$20=4,'1. Checklist & Certification'!$M$21=5,'1. Checklist & Certification'!$M$22=7),AO195>0,B195=\"\",I195>0,K195<I195),\"X\",\"\"))","v":""},{"$f":"IF(A195=\"\",\"\",IF(SUMPRODUCT(-- (ISNUMBER(SEARCH({\"*AHSC*\",\"*FMTW*\",\"*FWHG*\",\"*GHI*\",\"*HHC*\",\"*HLCP*\",\"*HOME*\",\"*LPR*\",\"*MHP*\",\"*NHTF*\",\"*NSP*\",\"*PRP*\",\"*TOD*\",\"*VHHP*\"},'1. Checklist & Certification'!$L$7)))),\"MHP\",\"Legacy\"))","v":""},",,",null,null,null,{"$f":"IF('1. Checklist & Certification'!$M$20=4,\"Both\",IF(OR('1. Checklist & Certification'!$M$15>0,S195=\"CHRP-R\",U195=\"CHRP-R\",W195=\"CHRP-R\",Y195=\"CHRP-R\"),\"Under\",\"No\"))","v":"No"},"No","No",{"$f":"_xlfn.IFS(D195=\"\",\"\",D195=1,'MHP Family Income & Rent Limits'!$E$17,D195=2,'MHP Family Income & Rent Limits'!$F$17,D195=3,'MHP Family Income & Rent Limits'!$G$17,D195=4,'MHP Family Income & Rent Limits'!$H$17,D195=5,'MHP Family Income & Rent Limits'!$I$17,D195=6,'MHP Family Income & Rent Limits'!$J$17,D195=7,'MHP Family Income & Rent Limits'!$K$17,D195=8,'MHP Family Income & Rent Limits'!$L$17)","v":""},"",{"$f":"IF(OR(A195=0,B195=\"X\"),0,MIN(IF(AA195:AD195<>0,AA195:AD195)))","v":0},{"$f":"IF(OR(H195=\"\",I195=\"\"),0,IF(H195*0.3/12>I195,MIN(H195*0.3/12,I195*1.1)+AP195,I195*(1+(VLOOKUP('1. Checklist & Certification'!$F$9,'HLCP-E Rent Change'!$A$1:$D$59,4,FALSE)))+AP195))","v":0}]
[null,null,null,null,null,null,null,null,null,null,null,null,null,null,null,null,null,null,null,null,null,null,null,null,null,null,0,0,0,0,0,0,0,0,{"$f":"IF(OR(A196=0,B196=\"X\"),0,IF(OR(S196=\"FHDP\",S196=\"RHCP-B\",U196=\"FHDP\",U196=\"RHCP-B\",W196=\"FHDP\",W196=\"RHCP-B\",Y196=\"FHDP\",Y196=\"RHCP-B\"),TRUNC((MIN(I196,K196)*(1+'1. Checklist & Certification'!$K$43)+AP196)),0))","v":0},{"$f":"IF(OR(A196=0,B196=\"X\"),0,IF(OR(S196=\"CHRP-R\",S196=\"SERA\",S196=\"SUHRP\",U196=\"CHRP-R\",U196=\"SERA\",U196=\"SUHRP\",W196=\"CHRP-R\",W196=\"SERA\",W196=\"SUHRP\",Y196=\"CHRP-R\",Y196=\"SERA\",Y196=\"SUHRP\"),TRUNC((MIN(I196,K196)*(1+'1. Checklist & Certification'!$K$49))),0))","v":0},{"$f":"IF(OR(A196=0,B196=\"X\"),0,IF(OR(S196=\"CALDAP\",S196=\"DPRLP\",U196=\"CALDAP\",U196=\"DPRLP\",W196=\"CALDAP\",W196=\"DPRLP\",Y196=\"CALDAP\",Y196=\"DPRLP\"),TRUNC(((MIN(I196,K196))*(1+'1. Checklist & Certification'!$G$4))),0))","v":0},0,0,0,{"$f":"IF(OR(A196=0,B196=\"X\"),0,IF(OR(S196=\"PRP\",S196=\"LPR\",U196=\"PRP\",U196=\"LPR\",W196=\"PRP\",W196=\"LPR\",Y196=\"PRP\",Y196=\"LPR\"),MAX(I196+AP196,MIN(IF(AE196:AN196<>0,AE196:AN196))),MIN(IF(AE196:AN196<>0,AE196:AN196))))","v":0},{"$f":"IF(A196=0,0,IF(AND(OR(S196=\"Mgr\",S196=0),OR(U196=\"Mgr\",U196=0),OR(W196=\"Mgr\",W196=0)),0,IF(LEFT($A196,2)=\"B*\",VLOOKUP($E196,'1. Checklist & Certification'!$D$26:$E$32,2),IF(LEFT($A196,2)=\"C*\",VLOOKUP($E196,'1. Checklist & Certification'!$F$26:$G$32,2),IF(LEFT($A196,2)=\"D*\",VLOOKUP($E196,'1. Checklist & Certification'!$H$26:$I$32,2),IF(LEFT($A196,2)=\"E*\",VLOOKUP($E196,'1. Checklist & Certification'!$J$26:$K$32,2),VLOOKUP($E196,'1. Checklist & Certification'!$A$26:$B$32,2)))))))","v":0},0,0,null,null,null,null,"","",0,0,0,null,{"$f":"IF(A196=\"\",\"\",'1. Checklist & Certification'!$K$1)","v":""},{"$f":"IF(A196=\"\",\"\",'1. Checklist & Certification'!$C$62)","v":""},{"$f":"IF(A196=\"\",\"\",'1. Checklist & Certification'!$C$6)","v":""},{"$f":"IF(A196=\"\",\"\",'1. Checklist & Certification'!$G$5)","v":""},{"$f":"IFERROR(IF(A196=\"\",\"\",\n_xlfn.LET(_xlpm.Contract,'1. Checklist & Certification'!$C$7,\n_xlpm.Yr,TEXT(MOD(_xlfn.TEXTBEFORE(_xlpm.Contract,\"-\"),100),\"00\"),\n_xlpm.Program,_xlfn.TEXTAFTER(_xlfn.TEXTBEFORE(_xlpm.Contract,\"-\",2),\"-\"),\n_xlpm.CleanProgram,_xlfn.XLOOKUP(_xlpm.Program,SpellCheck[Input],SpellCheck[Correction],_xlpm.Program),\n_xlpm.Number,TEXT(_xlfn.TEXTAFTER(_xlpm.Contract,\"-\",2),\"0000\"),\n_xlfn.CONCAT(_xlpm.Yr,\"-\",_xlpm.CleanProgram,\"-\",_xlpm.Number))\n),\"\")","v":""},{"$f":"IFERROR(IF(A196=\"\",\"\",\n_xlfn.LET(_xlpm.Contract,'1. Checklist & Certification'!$C$8,\n_xlpm.Yr,TEXT(MOD(_xlfn.TEXTBEFORE(_xlpm.Contract,\"-\"),100),\"00\"),\n_xlpm.Program,_xlfn.TEXTAFTER(_xlfn.TEXTBEFORE(_xlpm.Contract,\"-\",2),\"-\"),\n_xlpm.CleanProgram,_xlfn.XLOOKUP(_xlpm.Program,SpellCheck[Input],SpellCheck[Correction],_xlpm.Program),\n_xlpm.Number,TEXT(_xlfn.TEXTAFTER(_xlpm.Contract,\"-\",2),\"0000\"),\n_xlfn.CONCAT(_xlpm.Yr,\"-\",_xlpm.CleanProgram,\"-\",_xlpm.Number))\n),\"\")","v":""},{"$f":"IFERROR(IF(A196=\"\",\"\",\n_xlfn.LET(_xlpm.Contract,'1. Checklist & Certification'!$F$7,\n_xlpm.Yr,TEXT(MOD(_xlfn.TEXTBEFORE(_xlpm.Contract,\"-\"),100),\"00\"),\n_xlpm.Program,_xlfn.TEXTAFTER(_xlfn.TEXTBEFORE(_xlpm.Contract,\"-\",2),\"-\"),\n_xlpm.CleanProgram,_xlfn.XLOOKUP(_xlpm.Program,SpellCheck[Input],SpellCheck[Correction],_xlpm.Program),\n_xlpm.Number,TEXT(_xlfn.TEXTAFTER(_xlpm.Contract,\"-\",2),\"0000\"),\n_xlfn.CONCAT(_xlpm.Yr,\"-\",_xlpm.CleanProgram,\"-\",_xlpm.Number))\n),\"\")","v":""},{"$f":"IFERROR(IF(A196=\"\",\"\",\n_xlfn.LET(_xlpm.Contract,'1. Checklist & Certification'!$F$8,\n_xlpm.Yr,TEXT(MOD(_xlfn.TEXTBEFORE(_xlpm.Contract,\"-\"),100),\"00\"),\n_xlpm.Program,_xlfn.TEXTAFTER(_xlfn.TEXTBEFORE(_xlpm.Contract,\"-\",2),\"-\"),\n_xlpm.CleanProgram,_xlfn.XLOOKUP(_xlpm.Program,SpellCheck[Input],SpellCheck[Correction],_xlpm.Program),\n_xlpm.Number,TEXT(_xlfn.TEXTAFTER(_xlpm.Contract,\"-\",2),\"0000\"),\n_xlfn.CONCAT(_xlpm.Yr,\"-\",_xlpm.CleanProgram,\"-\",_xlpm.Number))\n),\"\")","v":""},{"$f":"IF(A196=\"\",\"\",'1. Checklist & Certification'!$B$9)","v":""},{"$f":"IF(A196=\"\",\"\",'1. Checklist & Certification'!$F$9)","v":""},{"$f":"IF(A196=\"\",\"\",'1. Checklist & Certification'!$C$10)","v":""},{"$f":"IF(A196=\"\",\"\",'1. Checklist & Certification'!$C$11)","v":""},{"$f":"IF(A196=\"\",\"\",'1. Checklist & Certification'!$C$12)","v":""},{"$f":"IF(A196=\"\",\"\",'1. Checklist & Certification'!$B$14)","v":""},{"$f":"IF(A196=\"\",\"\",'1. Checklist & Certification'!$E$14)","v":""},{"$f":"IF(B196=\"\",\"\",'1. Checklist & Certification'!$G$14)","v":""},{"$f":"IF(A196=\"\",\"\",'MHP Family Income & Rent Limits'!$B$3)","v":""},{"$f":"IF(A196=\"\",\"\",'MHP Family Income & Rent Limits'!$J$3)","v":""},{"$f":"IF(A196=\"\",\"\",'MHP Family Income & Rent Limits'!$E$4)","v":""},{"$f":"IF(A196=\"\",\"\",'MHP Family Income & Rent Limits'!$C$7)","v":""},{"$f":"IF(A196=\"\",\"\",'MHP Family Income & Rent Limits'!$F$8)","v":""},{"$f":"IF(A196=\"\",\"\",'1. Checklist & Certification'!$G$4)","v":""},{"$f":"IF(A196=\"\",\"\",'1. Checklist & Certification'!$K$39)","v":""},{"$f":"IF(A196=\"\",\"\",'1. Checklist & Certification'!$K$43)","v":""},{"$f":"IF(A196=\"\",\"\",'1. Checklist & Certification'!$K$45)","v":""},{"$f":"IF(A196=\"\",\"\",'1. Checklist & Certification'!$K$49)","v":""},{"$f":"IF(A196=\"\",\"\",'1. Checklist & Certification'!$K$62)","v":""},{"$f":"IF(A196=\"\",\"\",'1. Checklist & Certification'!$E$66)","v":""},{"$f":"IF(A196=\"\",\"\",'1. Checklist & Certification'!$E$67)","v":""},{"$f":"IF(A196=\"\",\"\",'1. Checklist & Certification'!$E$68)","v":""},{"$f":"IF(A196=\"\",\"\",'1. Checklist & Certification'!$G$66)","v":""},{"$f":"IF(A196=\"\",\"\",'1. Checklist & Certification'!$H$66)","v":""},{"$f":"IF(A196=\"\",\"\",'1. Checklist & Certification'!$I$66)","v":""},{"$f":"IF(A196=\"\",\"\",'1. Checklist & Certification'!$I$67)","v":""},{"$f":"IF(A196=\"\",\"\",'1. Checklist & Certification'!$I$68)","v":""},{"$f":"IF(A196=\"\",\"\",'1. Checklist & Certification'!$B$69)","v":""},{"$f":"IF(A196=\"\",\"\",'1. Checklist & Certification'!$C$69)","v":""},{"$f":"IF(A196=\"\",\"\",'1. Checklist & Certification'!$F$69)","v":""},{"$f":"IF(A196=\"\",\"\",'1. Checklist & Certification'!$G$69)","v":""},{"$f":"IF(A196=\"\",\"\",'1. Checklist & Certification'!$J$69)","v":""},{"$f":"IF(A196=\"\",\"\",'1. Checklist & Certification'!$K$69)","v":""},null,null,{"$f":"IF(AND(OR('1. Checklist & Certification'!$M$16=1,'1. Checklist & Certification'!$M$19=2),AO196>0,B196=\"\",I196>0,AQ196<I196,AV196<>\"Sec 8-Project\"),\"X\",IF(AND(OR('1. Checklist & Certification'!$M$20=4,'1. Checklist & Certification'!$M$21=5,'1. Checklist & Certification'!$M$22=7),AO196>0,B196=\"\",I196>0,K196<I196),\"X\",\"\"))","v":""},{"$f":"IF(A196=\"\",\"\",IF(SUMPRODUCT(-- (ISNUMBER(SEARCH({\"*AHSC*\",\"*FMTW*\",\"*FWHG*\",\"*GHI*\",\"*HHC*\",\"*HLCP*\",\"*HOME*\",\"*LPR*\",\"*MHP*\",\"*NHTF*\",\"*NSP*\",\"*PRP*\",\"*TOD*\",\"*VHHP*\"},'1. Checklist & Certification'!$L$7)))),\"MHP\",\"Legacy\"))","v":""},",,",null,null,null,{"$f":"IF('1. Checklist & Certification'!$M$20=4,\"Both\",IF(OR('1. Checklist & Certification'!$M$15>0,S196=\"CHRP-R\",U196=\"CHRP-R\",W196=\"CHRP-R\",Y196=\"CHRP-R\"),\"Under\",\"No\"))","v":"No"},"No","No",{"$f":"_xlfn.IFS(D196=\"\",\"\",D196=1,'MHP Family Income & Rent Limits'!$E$17,D196=2,'MHP Family Income & Rent Limits'!$F$17,D196=3,'MHP Family Income & Rent Limits'!$G$17,D196=4,'MHP Family Income & Rent Limits'!$H$17,D196=5,'MHP Family Income & Rent Limits'!$I$17,D196=6,'MHP Family Income & Rent Limits'!$J$17,D196=7,'MHP Family Income & Rent Limits'!$K$17,D196=8,'MHP Family Income & Rent Limits'!$L$17)","v":""},"",{"$f":"IF(OR(A196=0,B196=\"X\"),0,MIN(IF(AA196:AD196<>0,AA196:AD196)))","v":0},{"$f":"IF(OR(H196=\"\",I196=\"\"),0,IF(H196*0.3/12>I196,MIN(H196*0.3/12,I196*1.1)+AP196,I196*(1+(VLOOKUP('1. Checklist & Certification'!$F$9,'HLCP-E Rent Change'!$A$1:$D$59,4,FALSE)))+AP196))","v":0}]
[null,null,null,null,null,null,null,null,null,null,null,null,null,null,null,null,null,null,null,null,null,null,null,null,null,null,0,0,0,0,0,0,0,0,{"$f":"IF(OR(A197=0,B197=\"X\"),0,IF(OR(S197=\"FHDP\",S197=\"RHCP-B\",U197=\"FHDP\",U197=\"RHCP-B\",W197=\"FHDP\",W197=\"RHCP-B\",Y197=\"FHDP\",Y197=\"RHCP-B\"),TRUNC((MIN(I197,K197)*(1+'1. Checklist & Certification'!$K$43)+AP197)),0))","v":0},{"$f":"IF(OR(A197=0,B197=\"X\"),0,IF(OR(S197=\"CHRP-R\",S197=\"SERA\",S197=\"SUHRP\",U197=\"CHRP-R\",U197=\"SERA\",U197=\"SUHRP\",W197=\"CHRP-R\",W197=\"SERA\",W197=\"SUHRP\",Y197=\"CHRP-R\",Y197=\"SERA\",Y197=\"SUHRP\"),TRUNC((MIN(I197,K197)*(1+'1. Checklist & Certification'!$K$49))),0))","v":0},{"$f":"IF(OR(A197=0,B197=\"X\"),0,IF(OR(S197=\"CALDAP\",S197=\"DPRLP\",U197=\"CALDAP\",U197=\"DPRLP\",W197=\"CALDAP\",W197=\"DPRLP\",Y197=\"CALDAP\",Y197=\"DPRLP\"),TRUNC(((MIN(I197,K197))*(1+'1. Checklist & Certification'!$G$4))),0))","v":0},0,0,0,{"$f":"IF(OR(A197=0,B197=\"X\"),0,IF(OR(S197=\"PRP\",S197=\"LPR\",U197=\"PRP\",U197=\"LPR\",W197=\"PRP\",W197=\"LPR\",Y197=\"PRP\",Y197=\"LPR\"),MAX(I197+AP197,MIN(IF(AE197:AN197<>0,AE197:AN197))),MIN(IF(AE197:AN197<>0,AE197:AN197))))","v":0},{"$f":"IF(A197=0,0,IF(AND(OR(S197=\"Mgr\",S197=0),OR(U197=\"Mgr\",U197=0),OR(W197=\"Mgr\",W197=0)),0,IF(LEFT($A197,2)=\"B*\",VLOOKUP($E197,'1. Checklist & Certification'!$D$26:$E$32,2),IF(LEFT($A197,2)=\"C*\",VLOOKUP($E197,'1. Checklist & Certification'!$F$26:$G$32,2),IF(LEFT($A197,2)=\"D*\",VLOOKUP($E197,'1. Checklist & Certification'!$H$26:$I$32,2),IF(LEFT($A197,2)=\"E*\",VLOOKUP($E197,'1. Checklist & Certification'!$J$26:$K$32,2),VLOOKUP($E197,'1. Checklist & Certification'!$A$26:$B$32,2)))))))","v":0},0,0,null,null,null,null,"","",0,0,0,null,{"$f":"IF(A197=\"\",\"\",'1. Checklist & Certification'!$K$1)","v":""},{"$f":"IF(A197=\"\",\"\",'1. Checklist & Certification'!$C$62)","v":""},{"$f":"IF(A197=\"\",\"\",'1. Checklist & Certification'!$C$6)","v":""},{"$f":"IF(A197=\"\",\"\",'1. Checklist & Certification'!$G$5)","v":""},{"$f":"IFERROR(IF(A197=\"\",\"\",\n_xlfn.LET(_xlpm.Contract,'1. Checklist & Certification'!$C$7,\n_xlpm.Yr,TEXT(MOD(_xlfn.TEXTBEFORE(_xlpm.Contract,\"-\"),100),\"00\"),\n_xlpm.Program,_xlfn.TEXTAFTER(_xlfn.TEXTBEFORE(_xlpm.Contract,\"-\",2),\"-\"),\n_xlpm.CleanProgram,_xlfn.XLOOKUP(_xlpm.Program,SpellCheck[Input],SpellCheck[Correction],_xlpm.Program),\n_xlpm.Number,TEXT(_xlfn.TEXTAFTER(_xlpm.Contract,\"-\",2),\"0000\"),\n_xlfn.CONCAT(_xlpm.Yr,\"-\",_xlpm.CleanProgram,\"-\",_xlpm.Number))\n),\"\")","v":""},{"$f":"IFERROR(IF(A197=\"\",\"\",\n_xlfn.LET(_xlpm.Contract,'1. Checklist & Certification'!$C$8,\n_xlpm.Yr,TEXT(MOD(_xlfn.TEXTBEFORE(_xlpm.Contract,\"-\"),100),\"00\"),\n_xlpm.Program,_xlfn.TEXTAFTER(_xlfn.TEXTBEFORE(_xlpm.Contract,\"-\",2),\"-\"),\n_xlpm.CleanProgram,_xlfn.XLOOKUP(_xlpm.Program,SpellCheck[Input],SpellCheck[Correction],_xlpm.Program),\n_xlpm.Number,TEXT(_xlfn.TEXTAFTER(_xlpm.Contract,\"-\",2),\"0000\"),\n_xlfn.CONCAT(_xlpm.Yr,\"-\",_xlpm.CleanProgram,\"-\",_xlpm.Number))\n),\"\")","v":""},{"$f":"IFERROR(IF(A197=\"\",\"\",\n_xlfn.LET(_xlpm.Contract,'1. Checklist & Certification'!$F$7,\n_xlpm.Yr,TEXT(MOD(_xlfn.TEXTBEFORE(_xlpm.Contract,\"-\"),100),\"00\"),\n_xlpm.Program,_xlfn.TEXTAFTER(_xlfn.TEXTBEFORE(_xlpm.Contract,\"-\",2),\"-\"),\n_xlpm.CleanProgram,_xlfn.XLOOKUP(_xlpm.Program,SpellCheck[Input],SpellCheck[Correction],_xlpm.Program),\n_xlpm.Number,TEXT(_xlfn.TEXTAFTER(_xlpm.Contract,\"-\",2),\"0000\"),\n_xlfn.CONCAT(_xlpm.Yr,\"-\",_xlpm.CleanProgram,\"-\",_xlpm.Number))\n),\"\")","v":""},{"$f":"IFERROR(IF(A197=\"\",\"\",\n_xlfn.LET(_xlpm.Contract,'1. Checklist & Certification'!$F$8,\n_xlpm.Yr,TEXT(MOD(_xlfn.TEXTBEFORE(_xlpm.Contract,\"-\"),100),\"00\"),\n_xlpm.Program,_xlfn.TEXTAFTER(_xlfn.TEXTBEFORE(_xlpm.Contract,\"-\",2),\"-\"),\n_xlpm.CleanProgram,_xlfn.XLOOKUP(_xlpm.Program,SpellCheck[Input],SpellCheck[Correction],_xlpm.Program),\n_xlpm.Number,TEXT(_xlfn.TEXTAFTER(_xlpm.Contract,\"-\",2),\"0000\"),\n_xlfn.CONCAT(_xlpm.Yr,\"-\",_xlpm.CleanProgram,\"-\",_xlpm.Number))\n),\"\")","v":""},{"$f":"IF(A197=\"\",\"\",'1. Checklist & Certification'!$B$9)","v":""},{"$f":"IF(A197=\"\",\"\",'1. Checklist & Certification'!$F$9)","v":""},{"$f":"IF(A197=\"\",\"\",'1. Checklist & Certification'!$C$10)","v":""},{"$f":"IF(A197=\"\",\"\",'1. Checklist & Certification'!$C$11)","v":""},{"$f":"IF(A197=\"\",\"\",'1. Checklist & Certification'!$C$12)","v":""},{"$f":"IF(A197=\"\",\"\",'1. Checklist & Certification'!$B$14)","v":""},{"$f":"IF(A197=\"\",\"\",'1. Checklist & Certification'!$E$14)","v":""},{"$f":"IF(B197=\"\",\"\",'1. Checklist & Certification'!$G$14)","v":""},{"$f":"IF(A197=\"\",\"\",'MHP Family Income & Rent Limits'!$B$3)","v":""},{"$f":"IF(A197=\"\",\"\",'MHP Family Income & Rent Limits'!$J$3)","v":""},{"$f":"IF(A197=\"\",\"\",'MHP Family Income & Rent Limits'!$E$4)","v":""},{"$f":"IF(A197=\"\",\"\",'MHP Family Income & Rent Limits'!$C$7)","v":""},{"$f":"IF(A197=\"\",\"\",'MHP Family Income & Rent Limits'!$F$8)","v":""},{"$f":"IF(A197=\"\",\"\",'1. Checklist & Certification'!$G$4)","v":""},{"$f":"IF(A197=\"\",\"\",'1. Checklist & Certification'!$K$39)","v":""},{"$f":"IF(A197=\"\",\"\",'1. Checklist & Certification'!$K$43)","v":""},{"$f":"IF(A197=\"\",\"\",'1. Checklist & Certification'!$K$45)","v":""},{"$f":"IF(A197=\"\",\"\",'1. Checklist & Certification'!$K$49)","v":""},{"$f":"IF(A197=\"\",\"\",'1. Checklist & Certification'!$K$62)","v":""},{"$f":"IF(A197=\"\",\"\",'1. Checklist & Certification'!$E$66)","v":""},{"$f":"IF(A197=\"\",\"\",'1. Checklist & Certification'!$E$67)","v":""},{"$f":"IF(A197=\"\",\"\",'1. Checklist & Certification'!$E$68)","v":""},{"$f":"IF(A197=\"\",\"\",'1. Checklist & Certification'!$G$66)","v":""},{"$f":"IF(A197=\"\",\"\",'1. Checklist & Certification'!$H$66)","v":""},{"$f":"IF(A197=\"\",\"\",'1. Checklist & Certification'!$I$66)","v":""},{"$f":"IF(A197=\"\",\"\",'1. Checklist & Certification'!$I$67)","v":""},{"$f":"IF(A197=\"\",\"\",'1. Checklist & Certification'!$I$68)","v":""},{"$f":"IF(A197=\"\",\"\",'1. Checklist & Certification'!$B$69)","v":""},{"$f":"IF(A197=\"\",\"\",'1. Checklist & Certification'!$C$69)","v":""},{"$f":"IF(A197=\"\",\"\",'1. Checklist & Certification'!$F$69)","v":""},{"$f":"IF(A197=\"\",\"\",'1. Checklist & Certification'!$G$69)","v":""},{"$f":"IF(A197=\"\",\"\",'1. Checklist & Certification'!$J$69)","v":""},{"$f":"IF(A197=\"\",\"\",'1. Checklist & Certification'!$K$69)","v":""},null,null,{"$f":"IF(AND(OR('1. Checklist & Certification'!$M$16=1,'1. Checklist & Certification'!$M$19=2),AO197>0,B197=\"\",I197>0,AQ197<I197,AV197<>\"Sec 8-Project\"),\"X\",IF(AND(OR('1. Checklist & Certification'!$M$20=4,'1. Checklist & Certification'!$M$21=5,'1. Checklist & Certification'!$M$22=7),AO197>0,B197=\"\",I197>0,K197<I197),\"X\",\"\"))","v":""},{"$f":"IF(A197=\"\",\"\",IF(SUMPRODUCT(-- (ISNUMBER(SEARCH({\"*AHSC*\",\"*FMTW*\",\"*FWHG*\",\"*GHI*\",\"*HHC*\",\"*HLCP*\",\"*HOME*\",\"*LPR*\",\"*MHP*\",\"*NHTF*\",\"*NSP*\",\"*PRP*\",\"*TOD*\",\"*VHHP*\"},'1. Checklist & Certification'!$L$7)))),\"MHP\",\"Legacy\"))","v":""},",,",null,null,null,{"$f":"IF('1. Checklist & Certification'!$M$20=4,\"Both\",IF(OR('1. Checklist & Certification'!$M$15>0,S197=\"CHRP-R\",U197=\"CHRP-R\",W197=\"CHRP-R\",Y197=\"CHRP-R\"),\"Under\",\"No\"))","v":"No"},"No","No",{"$f":"_xlfn.IFS(D197=\"\",\"\",D197=1,'MHP Family Income & Rent Limits'!$E$17,D197=2,'MHP Family Income & Rent Limits'!$F$17,D197=3,'MHP Family Income & Rent Limits'!$G$17,D197=4,'MHP Family Income & Rent Limits'!$H$17,D197=5,'MHP Family Income & Rent Limits'!$I$17,D197=6,'MHP Family Income & Rent Limits'!$J$17,D197=7,'MHP Family Income & Rent Limits'!$K$17,D197=8,'MHP Family Income & Rent Limits'!$L$17)","v":""},"",{"$f":"IF(OR(A197=0,B197=\"X\"),0,MIN(IF(AA197:AD197<>0,AA197:AD197)))","v":0},{"$f":"IF(OR(H197=\"\",I197=\"\"),0,IF(H197*0.3/12>I197,MIN(H197*0.3/12,I197*1.1)+AP197,I197*(1+(VLOOKUP('1. Checklist & Certification'!$F$9,'HLCP-E Rent Change'!$A$1:$D$59,4,FALSE)))+AP197))","v":0}]
[null,null,null,null,null,null,null,null,null,null,null,null,null,null,null,null,null,null,null,null,null,null,null,null,null,null,0,0,0,0,0,0,0,0,{"$f":"IF(OR(A198=0,B198=\"X\"),0,IF(OR(S198=\"FHDP\",S198=\"RHCP-B\",U198=\"FHDP\",U198=\"RHCP-B\",W198=\"FHDP\",W198=\"RHCP-B\",Y198=\"FHDP\",Y198=\"RHCP-B\"),TRUNC((MIN(I198,K198)*(1+'1. Checklist & Certification'!$K$43)+AP198)),0))","v":0},{"$f":"IF(OR(A198=0,B198=\"X\"),0,IF(OR(S198=\"CHRP-R\",S198=\"SERA\",S198=\"SUHRP\",U198=\"CHRP-R\",U198=\"SERA\",U198=\"SUHRP\",W198=\"CHRP-R\",W198=\"SERA\",W198=\"SUHRP\",Y198=\"CHRP-R\",Y198=\"SERA\",Y198=\"SUHRP\"),TRUNC((MIN(I198,K198)*(1+'1. Checklist & Certification'!$K$49))),0))","v":0},{"$f":"IF(OR(A198=0,B198=\"X\"),0,IF(OR(S198=\"CALDAP\",S198=\"DPRLP\",U198=\"CALDAP\",U198=\"DPRLP\",W198=\"CALDAP\",W198=\"DPRLP\",Y198=\"CALDAP\",Y198=\"DPRLP\"),TRUNC(((MIN(I198,K198))*(1+'1. Checklist & Certification'!$G$4))),0))","v":0},0,0,0,{"$f":"IF(OR(A198=0,B198=\"X\"),0,IF(OR(S198=\"PRP\",S198=\"LPR\",U198=\"PRP\",U198=\"LPR\",W198=\"PRP\",W198=\"LPR\",Y198=\"PRP\",Y198=\"LPR\"),MAX(I198+AP198,MIN(IF(AE198:AN198<>0,AE198:AN198))),MIN(IF(AE198:AN198<>0,AE198:AN198))))","v":0},{"$f":"IF(A198=0,0,IF(AND(OR(S198=\"Mgr\",S198=0),OR(U198=\"Mgr\",U198=0),OR(W198=\"Mgr\",W198=0)),0,IF(LEFT($A198,2)=\"B*\",VLOOKUP($E198,'1. Checklist & Certification'!$D$26:$E$32,2),IF(LEFT($A198,2)=\"C*\",VLOOKUP($E198,'1. Checklist & Certification'!$F$26:$G$32,2),IF(LEFT($A198,2)=\"D*\",VLOOKUP($E198,'1. Checklist & Certification'!$H$26:$I$32,2),IF(LEFT($A198,2)=\"E*\",VLOOKUP($E198,'1. Checklist & Certification'!$J$26:$K$32,2),VLOOKUP($E198,'1. Checklist & Certification'!$A$26:$B$32,2)))))))","v":0},0,0,null,null,null,null,"","",0,0,0,null,{"$f":"IF(A198=\"\",\"\",'1. Checklist & Certification'!$K$1)","v":""},{"$f":"IF(A198=\"\",\"\",'1. Checklist & Certification'!$C$62)","v":""},{"$f":"IF(A198=\"\",\"\",'1. Checklist & Certification'!$C$6)","v":""},{"$f":"IF(A198=\"\",\"\",'1. Checklist & Certification'!$G$5)","v":""},{"$f":"IFERROR(IF(A198=\"\",\"\",\n_xlfn.LET(_xlpm.Contract,'1. Checklist & Certification'!$C$7,\n_xlpm.Yr,TEXT(MOD(_xlfn.TEXTBEFORE(_xlpm.Contract,\"-\"),100),\"00\"),\n_xlpm.Program,_xlfn.TEXTAFTER(_xlfn.TEXTBEFORE(_xlpm.Contract,\"-\",2),\"-\"),\n_xlpm.CleanProgram,_xlfn.XLOOKUP(_xlpm.Program,SpellCheck[Input],SpellCheck[Correction],_xlpm.Program),\n_xlpm.Number,TEXT(_xlfn.TEXTAFTER(_xlpm.Contract,\"-\",2),\"0000\"),\n_xlfn.CONCAT(_xlpm.Yr,\"-\",_xlpm.CleanProgram,\"-\",_xlpm.Number))\n),\"\")","v":""},{"$f":"IFERROR(IF(A198=\"\",\"\",\n_xlfn.LET(_xlpm.Contract,'1. Checklist & Certification'!$C$8,\n_xlpm.Yr,TEXT(MOD(_xlfn.TEXTBEFORE(_xlpm.Contract,\"-\"),100),\"00\"),\n_xlpm.Program,_xlfn.TEXTAFTER(_xlfn.TEXTBEFORE(_xlpm.Contract,\"-\",2),\"-\"),\n_xlpm.CleanProgram,_xlfn.XLOOKUP(_xlpm.Program,SpellCheck[Input],SpellCheck[Correction],_xlpm.Program),\n_xlpm.Number,TEXT(_xlfn.TEXTAFTER(_xlpm.Contract,\"-\",2),\"0000\"),\n_xlfn.CONCAT(_xlpm.Yr,\"-\",_xlpm.CleanProgram,\"-\",_xlpm.Number))\n),\"\")","v":""},{"$f":"IFERROR(IF(A198=\"\",\"\",\n_xlfn.LET(_xlpm.Contract,'1. Checklist & Certification'!$F$7,\n_xlpm.Yr,TEXT(MOD(_xlfn.TEXTBEFORE(_xlpm.Contract,\"-\"),100),\"00\"),\n_xlpm.Program,_xlfn.TEXTAFTER(_xlfn.TEXTBEFORE(_xlpm.Contract,\"-\",2),\"-\"),\n_xlpm.CleanProgram,_xlfn.XLOOKUP(_xlpm.Program,SpellCheck[Input],SpellCheck[Correction],_xlpm.Program),\n_xlpm.Number,TEXT(_xlfn.TEXTAFTER(_xlpm.Contract,\"-\",2),\"0000\"),\n_xlfn.CONCAT(_xlpm.Yr,\"-\",_xlpm.CleanProgram,\"-\",_xlpm.Number))\n),\"\")","v":""},{"$f":"IFERROR(IF(A198=\"\",\"\",\n_xlfn.LET(_xlpm.Contract,'1. Checklist & Certification'!$F$8,\n_xlpm.Yr,TEXT(MOD(_xlfn.TEXTBEFORE(_xlpm.Contract,\"-\"),100),\"00\"),\n_xlpm.Program,_xlfn.TEXTAFTER(_xlfn.TEXTBEFORE(_xlpm.Contract,\"-\",2),\"-\"),\n_xlpm.CleanProgram,_xlfn.XLOOKUP(_xlpm.Program,SpellCheck[Input],SpellCheck[Correction],_xlpm.Program),\n_xlpm.Number,TEXT(_xlfn.TEXTAFTER(_xlpm.Contract,\"-\",2),\"0000\"),\n_xlfn.CONCAT(_xlpm.Yr,\"-\",_xlpm.CleanProgram,\"-\",_xlpm.Number))\n),\"\")","v":""},{"$f":"IF(A198=\"\",\"\",'1. Checklist & Certification'!$B$9)","v":""},{"$f":"IF(A198=\"\",\"\",'1. Checklist & Certification'!$F$9)","v":""},{"$f":"IF(A198=\"\",\"\",'1. Checklist & Certification'!$C$10)","v":""},{"$f":"IF(A198=\"\",\"\",'1. Checklist & Certification'!$C$11)","v":""},{"$f":"IF(A198=\"\",\"\",'1. Checklist & Certification'!$C$12)","v":""},{"$f":"IF(A198=\"\",\"\",'1. Checklist & Certification'!$B$14)","v":""},{"$f":"IF(A198=\"\",\"\",'1. Checklist & Certification'!$E$14)","v":""},{"$f":"IF(B198=\"\",\"\",'1. Checklist & Certification'!$G$14)","v":""},{"$f":"IF(A198=\"\",\"\",'MHP Family Income & Rent Limits'!$B$3)","v":""},{"$f":"IF(A198=\"\",\"\",'MHP Family Income & Rent Limits'!$J$3)","v":""},{"$f":"IF(A198=\"\",\"\",'MHP Family Income & Rent Limits'!$E$4)","v":""},{"$f":"IF(A198=\"\",\"\",'MHP Family Income & Rent Limits'!$C$7)","v":""},{"$f":"IF(A198=\"\",\"\",'MHP Family Income & Rent Limits'!$F$8)","v":""},{"$f":"IF(A198=\"\",\"\",'1. Checklist & Certification'!$G$4)","v":""},{"$f":"IF(A198=\"\",\"\",'1. Checklist & Certification'!$K$39)","v":""},{"$f":"IF(A198=\"\",\"\",'1. Checklist & Certification'!$K$43)","v":""},{"$f":"IF(A198=\"\",\"\",'1. Checklist & Certification'!$K$45)","v":""},{"$f":"IF(A198=\"\",\"\",'1. Checklist & Certification'!$K$49)","v":""},{"$f":"IF(A198=\"\",\"\",'1. Checklist & Certification'!$K$62)","v":""},{"$f":"IF(A198=\"\",\"\",'1. Checklist & Certification'!$E$66)","v":""},{"$f":"IF(A198=\"\",\"\",'1. Checklist & Certification'!$E$67)","v":""},{"$f":"IF(A198=\"\",\"\",'1. Checklist & Certification'!$E$68)","v":""},{"$f":"IF(A198=\"\",\"\",'1. Checklist & Certification'!$G$66)","v":""},{"$f":"IF(A198=\"\",\"\",'1. Checklist & Certification'!$H$66)","v":""},{"$f":"IF(A198=\"\",\"\",'1. Checklist & Certification'!$I$66)","v":""},{"$f":"IF(A198=\"\",\"\",'1. Checklist & Certification'!$I$67)","v":""},{"$f":"IF(A198=\"\",\"\",'1. Checklist & Certification'!$I$68)","v":""},{"$f":"IF(A198=\"\",\"\",'1. Checklist & Certification'!$B$69)","v":""},{"$f":"IF(A198=\"\",\"\",'1. Checklist & Certification'!$C$69)","v":""},{"$f":"IF(A198=\"\",\"\",'1. Checklist & Certification'!$F$69)","v":""},{"$f":"IF(A198=\"\",\"\",'1. Checklist & Certification'!$G$69)","v":""},{"$f":"IF(A198=\"\",\"\",'1. Checklist & Certification'!$J$69)","v":""},{"$f":"IF(A198=\"\",\"\",'1. Checklist & Certification'!$K$69)","v":""},null,null,{"$f":"IF(AND(OR('1. Checklist & Certification'!$M$16=1,'1. Checklist & Certification'!$M$19=2),AO198>0,B198=\"\",I198>0,AQ198<I198,AV198<>\"Sec 8-Project\"),\"X\",IF(AND(OR('1. Checklist & Certification'!$M$20=4,'1. Checklist & Certification'!$M$21=5,'1. Checklist & Certification'!$M$22=7),AO198>0,B198=\"\",I198>0,K198<I198),\"X\",\"\"))","v":""},{"$f":"IF(A198=\"\",\"\",IF(SUMPRODUCT(-- (ISNUMBER(SEARCH({\"*AHSC*\",\"*FMTW*\",\"*FWHG*\",\"*GHI*\",\"*HHC*\",\"*HLCP*\",\"*HOME*\",\"*LPR*\",\"*MHP*\",\"*NHTF*\",\"*NSP*\",\"*PRP*\",\"*TOD*\",\"*VHHP*\"},'1. Checklist & Certification'!$L$7)))),\"MHP\",\"Legacy\"))","v":""},",,",null,null,null,{"$f":"IF('1. Checklist & Certification'!$M$20=4,\"Both\",IF(OR('1. Checklist & Certification'!$M$15>0,S198=\"CHRP-R\",U198=\"CHRP-R\",W198=\"CHRP-R\",Y198=\"CHRP-R\"),\"Under\",\"No\"))","v":"No"},"No","No",{"$f":"_xlfn.IFS(D198=\"\",\"\",D198=1,'MHP Family Income & Rent Limits'!$E$17,D198=2,'MHP Family Income & Rent Limits'!$F$17,D198=3,'MHP Family Income & Rent Limits'!$G$17,D198=4,'MHP Family Income & Rent Limits'!$H$17,D198=5,'MHP Family Income & Rent Limits'!$I$17,D198=6,'MHP Family Income & Rent Limits'!$J$17,D198=7,'MHP Family Income & Rent Limits'!$K$17,D198=8,'MHP Family Income & Rent Limits'!$L$17)","v":""},"",{"$f":"IF(OR(A198=0,B198=\"X\"),0,MIN(IF(AA198:AD198<>0,AA198:AD198)))","v":0},{"$f":"IF(OR(H198=\"\",I198=\"\"),0,IF(H198*0.3/12>I198,MIN(H198*0.3/12,I198*1.1)+AP198,I198*(1+(VLOOKUP('1. Checklist & Certification'!$F$9,'HLCP-E Rent Change'!$A$1:$D$59,4,FALSE)))+AP198))","v":0}]
[null,null,null,null,null,null,null,null,null,null,null,null,null,null,null,null,null,null,null,null,null,null,null,null,null,null,{"$f":"IF(D199=\"Vacant\",\"Vacant\",IF(T199<>0,INDEX(IncomeLimits,MATCH(T199,IncomeLevels,0),MATCH(D199,IncomePersons,0)),0))","v":0},{"$f":"IF(D199=\"Vacant\",\"Vacant\",IF(V199<>0,INDEX(IncomeLimits,MATCH(V199,IncomeLevels,0),MATCH(D199,IncomePersons,0)),0))","v":0},{"$f":"IF(D199=\"Vacant\",\"Vacant\",IF(X199<>0,INDEX(IncomeLimits,MATCH(X199,IncomeLevels,0),MATCH(D199,IncomePersons,0)),0))","v":0},{"$f":"IF(D199=\"Vacant\",\"Vacant\",IF(Z199<>0,INDEX(IncomeLimits,MATCH(Z199,IncomeLevels,0),MATCH(D199,IncomePersons,0)),0))","v":0},{"$f":"IF(OR(T199=\"LI State\",T199=\"VLI State\"),0,IF(T199>1,INDEX(RentLimits,MATCH(T199,RentLevels,0),MATCH(E199,RentPersons,0)),0))","v":0},{"$f":"IF(OR(V199=\"LI State\",V199=\"VLI State\"),0,IF(V199>1,INDEX(RentLimits,MATCH(V199,RentLevels,0),MATCH(E199,RentPersons,0)),0))","v":0},{"$f":"IF(OR(X199=\"LI State\",X199=\"VLI State\"),0,IF(X199>1,INDEX(RentLimits,MATCH(X199,RentLevels,0),MATCH(E199,RentPersons,0)),0))","v":0},{"$f":"IF(OR(Z199=\"LI State\",Z199=\"VLI State\"),0,IF(Z199>1,INDEX(RentLimits,MATCH(Z199,RentLevels,0),MATCH(E199,RentPersons,0)),0))","v":0},{"$f":"IF(OR(A199=0,B199=\"X\"),0,IF(OR(S199=\"FHDP\",S199=\"RHCP-B\",U199=\"FHDP\",U199=\"RHCP-B\",W199=\"FHDP\",W199=\"RHCP-B\",Y199=\"FHDP\",Y199=\"RHCP-B\"),TRUNC((MIN(I199,K199)*(1+'1. Checklist & Certification'!$K$43)+AP199)),0))","v":0},{"$f":"IF(OR(A199=0,B199=\"X\"),0,IF(OR(S199=\"CHRP-R\",S199=\"SERA\",S199=\"SUHRP\",U199=\"CHRP-R\",U199=\"SERA\",U199=\"SUHRP\",W199=\"CHRP-R\",W199=\"SERA\",W199=\"SUHRP\",Y199=\"CHRP-R\",Y199=\"SERA\",Y199=\"SUHRP\"),TRUNC((MIN(I199,K199)*(1+'1. Checklist & Certification'!$K$49))),0))","v":0},{"$f":"IF(OR(A199=0,B199=\"X\"),0,IF(OR(S199=\"CALDAP\",S199=\"DPRLP\",U199=\"CALDAP\",U199=\"DPRLP\",W199=\"CALDAP\",W199=\"DPRLP\",Y199=\"CALDAP\",Y199=\"DPRLP\"),TRUNC(((MIN(I199,K199))*(1+'1. Checklist & Certification'!$G$4))),0))","v":0},{"$f":"IF(D199=\"Vacant\",0,IF(H199=0,0,IF(OR(AND(S199=\"FWHG\",T199=0),AND(U199=\"FWHG\",V199=0),AND(W199=\"FWHG\",X199=0),AND(Y199=\"FWHG\",Z199=0)),TRUNC(H199*0.3/12),IF(OR(S199=\"HLCP-E\",U199=\"HLCP-E\",W199=\"HLCP-E\",Y199=\"HLCP-E\"),DF199,0))))","v":0},0,0,{"$f":"IF(OR(A199=0,B199=\"X\"),0,IF(OR(S199=\"PRP\",S199=\"LPR\",U199=\"PRP\",U199=\"LPR\",W199=\"PRP\",W199=\"LPR\",Y199=\"PRP\",Y199=\"LPR\"),MAX(I199+AP199,MIN(IF(AE199:AN199<>0,AE199:AN199))),MIN(IF(AE199:AN199<>0,AE199:AN199))))","v":0},{"$f":"IF(A199=0,0,IF(AND(OR(S199=\"Mgr\",S199=0),OR(U199=\"Mgr\",U199=0),OR(W199=\"Mgr\",W199=0)),0,IF(LEFT($A199,2)=\"B*\",VLOOKUP($E199,'1. Checklist & Certification'!$D$26:$E$32,2),IF(LEFT($A199,2)=\"C*\",VLOOKUP($E199,'1. Checklist & Certification'!$F$26:$G$32,2),IF(LEFT($A199,2)=\"D*\",VLOOKUP($E199,'1. Checklist & Certification'!$H$26:$I$32,2),IF(LEFT($A199,2)=\"E*\",VLOOKUP($E199,'1. Checklist & Certification'!$J$26:$K$32,2),VLOOKUP($E199,'1. Checklist & Certification'!$A$26:$B$32,2)))))))","v":0},{"$f":"IF(AO199=0,0,ROUND(AO199-AP199,0))","v":0},{"$f":"AS199-I199","v":0},null,null,null,null,{"$f":"IF($CV$5=TRUE,IF(AS199<>0,IF(AV199<>\"Sec 8-Project\",MIN(AQ199,AS199),AS199),\"\"),\"\")","v":""},{"$f":"IF(AW199=\"\",\"\",(I199*J199)+((12-J199)*AW199))","v":""},{"$f":"(I199*J199)+((12-J199)*AS199)","v":0},{"$f":"(AT199*J199)+((12-J199)*AU199)","v":0},0,null,{"$f":"IF(A199=\"\",\"\",'1. Checklist & Certification'!$K$1)","v":""},{"$f":"IF(A199=\"\",\"\",'1. Checklist & Certification'!$C$62)","v":""},{"$f":"IF(A199=\"\",\"\",'1. Checklist & Certification'!$C$6)","v":""},{"$f":"IF(A199=\"\",\"\",'1. Checklist & Certification'!$G$5)","v":""},{"$f":"IFERROR(IF(A199=\"\",\"\",\n_xlfn.LET(_xlpm.Contract,'1. Checklist & Certification'!$C$7,\n_xlpm.Yr,TEXT(MOD(_xlfn.TEXTBEFORE(_xlpm.Contract,\"-\"),100),\"00\"),\n_xlpm.Program,_xlfn.TEXTAFTER(_xlfn.TEXTBEFORE(_xlpm.Contract,\"-\",2),\"-\"),\n_xlpm.CleanProgram,_xlfn.XLOOKUP(_xlpm.Program,SpellCheck[Input],SpellCheck[Correction],_xlpm.Program),\n_xlpm.Number,TEXT(_xlfn.TEXTAFTER(_xlpm.Contract,\"-\",2),\"0000\"),\n_xlfn.CONCAT(_xlpm.Yr,\"-\",_xlpm.CleanProgram,\"-\",_xlpm.Number))\n),\"\")","v":""},{"$f":"IFERROR(IF(A199=\"\",\"\",\n_xlfn.LET(_xlpm.Contract,'1. Checklist & Certification'!$C$8,\n_xlpm.Yr,TEXT(MOD(_xlfn.TEXTBEFORE(_xlpm.Contract,\"-\"),100),\"00\"),\n_xlpm.Program,_xlfn.TEXTAFTER(_xlfn.TEXTBEFORE(_xlpm.Contract,\"-\",2),\"-\"),\n_xlpm.CleanProgram,_xlfn.XLOOKUP(_xlpm.Program,SpellCheck[Input],SpellCheck[Correction],_xlpm.Program),\n_xlpm.Number,TEXT(_xlfn.TEXTAFTER(_xlpm.Contract,\"-\",2),\"0000\"),\n_xlfn.CONCAT(_xlpm.Yr,\"-\",_xlpm.CleanProgram,\"-\",_xlpm.Number))\n),\"\")","v":""},{"$f":"IFERROR(IF(A199=\"\",\"\",\n_xlfn.LET(_xlpm.Contract,'1. Checklist & Certification'!$F$7,\n_xlpm.Yr,TEXT(MOD(_xlfn.TEXTBEFORE(_xlpm.Contract,\"-\"),100),\"00\"),\n_xlpm.Program,_xlfn.TEXTAFTER(_xlfn.TEXTBEFORE(_xlpm.Contract,\"-\",2),\"-\"),\n_xlpm.CleanProgram,_xlfn.XLOOKUP(_xlpm.Program,SpellCheck[Input],SpellCheck[Correction],_xlpm.Program),\n_xlpm.Number,TEXT(_xlfn.TEXTAFTER(_xlpm.Contract,\"-\",2),\"0000\"),\n_xlfn.CONCAT(_xlpm.Yr,\"-\",_xlpm.CleanProgram,\"-\",_xlpm.Number))\n),\"\")","v":""},{"$f":"IFERROR(IF(A199=\"\",\"\",\n_xlfn.LET(_xlpm.Contract,'1. Checklist & Certification'!$F$8,\n_xlpm.Yr,TEXT(MOD(_xlfn.TEXTBEFORE(_xlpm.Contract,\"-\"),100),\"00\"),\n_xlpm.Program,_xlfn.TEXTAFTER(_xlfn.TEXTBEFORE(_xlpm.Contract,\"-\",2),\"-\"),\n_xlpm.CleanProgram,_xlfn.XLOOKUP(_xlpm.Program,SpellCheck[Input],SpellCheck[Correction],_xlpm.Program),\n_xlpm.Number,TEXT(_xlfn.TEXTAFTER(_xlpm.Contract,\"-\",2),\"0000\"),\n_xlfn.CONCAT(_xlpm.Yr,\"-\",_xlpm.CleanProgram,\"-\",_xlpm.Number))\n),\"\")","v":""},{"$f":"IF(A199=\"\",\"\",'1. Checklist & Certification'!$B$9)","v":""},{"$f":"IF(A199=\"\",\"\",'1. Checklist & Certification'!$F$9)","v":""},{"$f":"IF(A199=\"\",\"\",'1. Checklist & Certification'!$C$10)","v":""},{"$f":"IF(A199=\"\",\"\",'1. Checklist & Certification'!$C$11)","v":""},{"$f":"IF(A199=\"\",\"\",'1. Checklist & Certification'!$C$12)","v":""},{"$f":"IF(A199=\"\",\"\",'1. Checklist & Certification'!$B$14)","v":""},{"$f":"IF(A199=\"\",\"\",'1. Checklist & Certification'!$E$14)","v":""},{"$f":"IF(B199=\"\",\"\",'1. Checklist & Certification'!$G$14)","v":""},{"$f":"IF(A199=\"\",\"\",'MHP Family Income & Rent Limits'!$B$3)","v":""},{"$f":"IF(A199=\"\",\"\",'MHP Family Income & Rent Limits'!$J$3)","v":""},{"$f":"IF(A199=\"\",\"\",'MHP Family Income & Rent Limits'!$E$4)","v":""},{"$f":"IF(A199=\"\",\"\",'MHP Family Income & Rent Limits'!$C$7)","v":""},{"$f":"IF(A199=\"\",\"\",'MHP Family Income & Rent Limits'!$F$8)","v":""},{"$f":"IF(A199=\"\",\"\",'1. Checklist & Certification'!$G$4)","v":""},{"$f":"IF(A199=\"\",\"\",'1. Checklist & Certification'!$K$39)","v":""},{"$f":"IF(A199=\"\",\"\",'1. Checklist & Certification'!$K$43)","v":""},{"$f":"IF(A199=\"\",\"\",'1. Checklist & Certification'!$K$45)","v":""},{"$f":"IF(A199=\"\",\"\",'1. Checklist & Certification'!$K$49)","v":""},{"$f":"IF(A199=\"\",\"\",'1. Checklist & Certification'!$K$62)","v":""},{"$f":"IF(A199=\"\",\"\",'1. Checklist & Certification'!$E$66)","v":""},{"$f":"IF(A199=\"\",\"\",'1. Checklist & Certification'!$E$67)","v":""},{"$f":"IF(A199=\"\",\"\",'1. Checklist & Certification'!$E$68)","v":""},{"$f":"IF(A199=\"\",\"\",'1. Checklist & Certification'!$G$66)","v":""},{"$f":"IF(A199=\"\",\"\",'1. Checklist & Certification'!$H$66)","v":""},{"$f":"IF(A199=\"\",\"\",'1. Checklist & Certification'!$I$66)","v":""},{"$f":"IF(A199=\"\",\"\",'1. Checklist & Certification'!$I$67)","v":""},{"$f":"IF(A199=\"\",\"\",'1. Checklist & Certification'!$I$68)","v":""},{"$f":"IF(A199=\"\",\"\",'1. Checklist & Certification'!$B$69)","v":""},{"$f":"IF(A199=\"\",\"\",'1. Checklist & Certification'!$C$69)","v":""},{"$f":"IF(A199=\"\",\"\",'1. Checklist & Certification'!$F$69)","v":""},{"$f":"IF(A199=\"\",\"\",'1. Checklist & Certification'!$G$69)","v":""},{"$f":"IF(A199=\"\",\"\",'1. Checklist & Certification'!$J$69)","v":""},{"$f":"IF(A199=\"\",\"\",'1. Checklist & Certification'!$K$69)","v":""},null,null,{"$f":"IF(AND(OR('1. Checklist & Certification'!$M$16=1,'1. Checklist & Certification'!$M$19=2),AO199>0,B199=\"\",I199>0,AQ199<I199,AV199<>\"Sec 8-Project\"),\"X\",IF(AND(OR('1. Checklist & Certification'!$M$20=4,'1. Checklist & Certification'!$M$21=5,'1. Checklist & Certification'!$M$22=7),AO199>0,B199=\"\",I199>0,K199<I199),\"X\",\"\"))","v":""},{"$f":"IF(A199=\"\",\"\",IF(SUMPRODUCT(-- (ISNUMBER(SEARCH({\"*AHSC*\",\"*FMTW*\",\"*FWHG*\",\"*GHI*\",\"*HHC*\",\"*HLCP*\",\"*HOME*\",\"*LPR*\",\"*MHP*\",\"*NHTF*\",\"*NSP*\",\"*PRP*\",\"*TOD*\",\"*VHHP*\"},'1. Checklist & Certification'!$L$7)))),\"MHP\",\"Legacy\"))","v":""},{"$f":"CONCATENATE(S199,\",\",U199,\",\",W199)","v":",,"},null,null,null,{"$f":"IF('1. Checklist & Certification'!$M$20=4,\"Both\",IF(OR('1. Checklist & Certification'!$M$15>0,S199=\"CHRP-R\",U199=\"CHRP-R\",W199=\"CHRP-R\",Y199=\"CHRP-R\"),\"Under\",\"No\"))","v":"No"},"No","No",{"$f":"_xlfn.IFS(D199=\"\",\"\",D199=1,'MHP Family Income & Rent Limits'!$E$17,D199=2,'MHP Family Income & Rent Limits'!$F$17,D199=3,'MHP Family Income & Rent Limits'!$G$17,D199=4,'MHP Family Income & Rent Limits'!$H$17,D199=5,'MHP Family Income & Rent Limits'!$I$17,D199=6,'MHP Family Income & Rent Limits'!$J$17,D199=7,'MHP Family Income & Rent Limits'!$K$17,D199=8,'MHP Family Income & Rent Limits'!$L$17)","v":""},{"$f":"IF(H199=\"\",\"\",IF(H199<=DC199,0.05,0.1))","v":""},{"$f":"IF(OR(A199=0,B199=\"X\"),0,MIN(IF(AA199:AD199<>0,AA199:AD199)))","v":0},{"$f":"IF(OR(H199=\"\",I199=\"\"),0,IF(H199*0.3/12>I199,MIN(H199*0.3/12,I199*1.1)+AP199,I199*(1+(VLOOKUP('1. Checklist & Certification'!$F$9,'HLCP-E Rent Change'!$A$1:$D$59,4,FALSE)))+AP199))","v":0}]
[null,null,null,null,null,null,null,null,null,null,null,null,null,null,null,null,null,null,null,null,null,null,null,null,null,null,0,0,0,0,0,0,0,0,{"$f":"IF(OR(A200=0,B200=\"X\"),0,IF(OR(S200=\"FHDP\",S200=\"RHCP-B\",U200=\"FHDP\",U200=\"RHCP-B\",W200=\"FHDP\",W200=\"RHCP-B\",Y200=\"FHDP\",Y200=\"RHCP-B\"),TRUNC((MIN(I200,K200)*(1+'1. Checklist & Certification'!$K$43)+AP200)),0))","v":0},{"$f":"IF(OR(A200=0,B200=\"X\"),0,IF(OR(S200=\"CHRP-R\",S200=\"SERA\",S200=\"SUHRP\",U200=\"CHRP-R\",U200=\"SERA\",U200=\"SUHRP\",W200=\"CHRP-R\",W200=\"SERA\",W200=\"SUHRP\",Y200=\"CHRP-R\",Y200=\"SERA\",Y200=\"SUHRP\"),TRUNC((MIN(I200,K200)*(1+'1. Checklist & Certification'!$K$49))),0))","v":0},{"$f":"IF(OR(A200=0,B200=\"X\"),0,IF(OR(S200=\"CALDAP\",S200=\"DPRLP\",U200=\"CALDAP\",U200=\"DPRLP\",W200=\"CALDAP\",W200=\"DPRLP\",Y200=\"CALDAP\",Y200=\"DPRLP\"),TRUNC(((MIN(I200,K200))*(1+'1. Checklist & Certification'!$G$4))),0))","v":0},0,{"$f":"IF(OR(A200=0,B200=\"X\"),0,IF(OR(S200=\"PRP\",S200=\"LPR\",U200=\"PRP\",U200=\"LPR\",W200=\"PRP\",W200=\"LPR\",Y200=\"PRP\",Y200=\"LPR\"),TRUNC(I200*(1+DD200)+AP200),0))","v":0},{"$f":"IF(OR(A200=0,B200=\"X\"),0,IF(OR(S200=\"PRP\",S200=\"LPR\",U200=\"PRP\",U200=\"LPR\",W200=\"PRP\",W200=\"LPR\",Y200=\"PRP\",Y200=\"LPR\"),TRUNC(H200*0.5/12),0))","v":0},{"$f":"IF(OR(A200=0,B200=\"X\"),0,IF(OR(S200=\"PRP\",S200=\"LPR\",U200=\"PRP\",U200=\"LPR\",W200=\"PRP\",W200=\"LPR\",Y200=\"PRP\",Y200=\"LPR\"),MAX(I200+AP200,MIN(IF(AE200:AN200<>0,AE200:AN200))),MIN(IF(AE200:AN200<>0,AE200:AN200))))","v":0},{"$f":"IF(A200=0,0,IF(AND(OR(S200=\"Mgr\",S200=0),OR(U200=\"Mgr\",U200=0),OR(W200=\"Mgr\",W200=0)),0,IF(LEFT($A200,2)=\"B*\",VLOOKUP($E200,'1. Checklist & Certification'!$D$26:$E$32,2),IF(LEFT($A200,2)=\"C*\",VLOOKUP($E200,'1. Checklist & Certification'!$F$26:$G$32,2),IF(LEFT($A200,2)=\"D*\",VLOOKUP($E200,'1. Checklist & Certification'!$H$26:$I$32,2),IF(LEFT($A200,2)=\"E*\",VLOOKUP($E200,'1. Checklist & Certification'!$J$26:$K$32,2),VLOOKUP($E200,'1. Checklist & Certification'!$A$26:$B$32,2)))))))","v":0},0,0,null,null,null,null,"","",0,0,{"$f":"IFERROR((AX200+(AP200*12))/H200,0)","v":0},null,{"$f":"IF(A200=\"\",\"\",'1. Checklist & Certification'!$K$1)","v":""},{"$f":"IF(A200=\"\",\"\",'1. Checklist & Certification'!$C$62)","v":""},{"$f":"IF(A200=\"\",\"\",'1. Checklist & Certification'!$C$6)","v":""},{"$f":"IF(A200=\"\",\"\",'1. Checklist & Certification'!$G$5)","v":""},{"$f":"IFERROR(IF(A200=\"\",\"\",\n_xlfn.LET(_xlpm.Contract,'1. Checklist & Certification'!$C$7,\n_xlpm.Yr,TEXT(MOD(_xlfn.TEXTBEFORE(_xlpm.Contract,\"-\"),100),\"00\"),\n_xlpm.Program,_xlfn.TEXTAFTER(_xlfn.TEXTBEFORE(_xlpm.Contract,\"-\",2),\"-\"),\n_xlpm.CleanProgram,_xlfn.XLOOKUP(_xlpm.Program,SpellCheck[Input],SpellCheck[Correction],_xlpm.Program),\n_xlpm.Number,TEXT(_xlfn.TEXTAFTER(_xlpm.Contract,\"-\",2),\"0000\"),\n_xlfn.CONCAT(_xlpm.Yr,\"-\",_xlpm.CleanProgram,\"-\",_xlpm.Number))\n),\"\")","v":""},{"$f":"IFERROR(IF(A200=\"\",\"\",\n_xlfn.LET(_xlpm.Contract,'1. Checklist & Certification'!$C$8,\n_xlpm.Yr,TEXT(MOD(_xlfn.TEXTBEFORE(_xlpm.Contract,\"-\"),100),\"00\"),\n_xlpm.Program,_xlfn.TEXTAFTER(_xlfn.TEXTBEFORE(_xlpm.Contract,\"-\",2),\"-\"),\n_xlpm.CleanProgram,_xlfn.XLOOKUP(_xlpm.Program,SpellCheck[Input],SpellCheck[Correction],_xlpm.Program),\n_xlpm.Number,TEXT(_xlfn.TEXTAFTER(_xlpm.Contract,\"-\",2),\"0000\"),\n_xlfn.CONCAT(_xlpm.Yr,\"-\",_xlpm.CleanProgram,\"-\",_xlpm.Number))\n),\"\")","v":""},{"$f":"IFERROR(IF(A200=\"\",\"\",\n_xlfn.LET(_xlpm.Contract,'1. Checklist & Certification'!$F$7,\n_xlpm.Yr,TEXT(MOD(_xlfn.TEXTBEFORE(_xlpm.Contract,\"-\"),100),\"00\"),\n_xlpm.Program,_xlfn.TEXTAFTER(_xlfn.TEXTBEFORE(_xlpm.Contract,\"-\",2),\"-\"),\n_xlpm.CleanProgram,_xlfn.XLOOKUP(_xlpm.Program,SpellCheck[Input],SpellCheck[Correction],_xlpm.Program),\n_xlpm.Number,TEXT(_xlfn.TEXTAFTER(_xlpm.Contract,\"-\",2),\"0000\"),\n_xlfn.CONCAT(_xlpm.Yr,\"-\",_xlpm.CleanProgram,\"-\",_xlpm.Number))\n),\"\")","v":""},{"$f":"IFERROR(IF(A200=\"\",\"\",\n_xlfn.LET(_xlpm.Contract,'1. Checklist & Certification'!$F$8,\n_xlpm.Yr,TEXT(MOD(_xlfn.TEXTBEFORE(_xlpm.Contract,\"-\"),100),\"00\"),\n_xlpm.Program,_xlfn.TEXTAFTER(_xlfn.TEXTBEFORE(_xlpm.Contract,\"-\",2),\"-\"),\n_xlpm.CleanProgram,_xlfn.XLOOKUP(_xlpm.Program,SpellCheck[Input],SpellCheck[Correction],_xlpm.Program),\n_xlpm.Number,TEXT(_xlfn.TEXTAFTER(_xlpm.Contract,\"-\",2),\"0000\"),\n_xlfn.CONCAT(_xlpm.Yr,\"-\",_xlpm.CleanProgram,\"-\",_xlpm.Number))\n),\"\")","v":""},{"$f":"IF(A200=\"\",\"\",'1. Checklist & Certification'!$B$9)","v":""},{"$f":"IF(A200=\"\",\"\",'1. Checklist & Certification'!$F$9)","v":""},{"$f":"IF(A200=\"\",\"\",'1. Checklist & Certification'!$C$10)","v":""},{"$f":"IF(A200=\"\",\"\",'1. Checklist & Certification'!$C$11)","v":""},{"$f":"IF(A200=\"\",\"\",'1. Checklist & Certification'!$C$12)","v":""},{"$f":"IF(A200=\"\",\"\",'1. Checklist & Certification'!$B$14)","v":""},{"$f":"IF(A200=\"\",\"\",'1. Checklist & Certification'!$E$14)","v":""},{"$f":"IF(B200=\"\",\"\",'1. Checklist & Certification'!$G$14)","v":""},{"$f":"IF(A200=\"\",\"\",'MHP Family Income & Rent Limits'!$B$3)","v":""},{"$f":"IF(A200=\"\",\"\",'MHP Family Income & Rent Limits'!$J$3)","v":""},{"$f":"IF(A200=\"\",\"\",'MHP Family Income & Rent Limits'!$E$4)","v":""},{"$f":"IF(A200=\"\",\"\",'MHP Family Income & Rent Limits'!$C$7)","v":""},{"$f":"IF(A200=\"\",\"\",'MHP Family Income & Rent Limits'!$F$8)","v":""},{"$f":"IF(A200=\"\",\"\",'1. Checklist & Certification'!$G$4)","v":""},{"$f":"IF(A200=\"\",\"\",'1. Checklist & Certification'!$K$39)","v":""},{"$f":"IF(A200=\"\",\"\",'1. Checklist & Certification'!$K$43)","v":""},{"$f":"IF(A200=\"\",\"\",'1. Checklist & Certification'!$K$45)","v":""},{"$f":"IF(A200=\"\",\"\",'1. Checklist & Certification'!$K$49)","v":""},{"$f":"IF(A200=\"\",\"\",'1. Checklist & Certification'!$K$62)","v":""},{"$f":"IF(A200=\"\",\"\",'1. Checklist & Certification'!$E$66)","v":""},{"$f":"IF(A200=\"\",\"\",'1. Checklist & Certification'!$E$67)","v":""},{"$f":"IF(A200=\"\",\"\",'1. Checklist & Certification'!$E$68)","v":""},{"$f":"IF(A200=\"\",\"\",'1. Checklist & Certification'!$G$66)","v":""},{"$f":"IF(A200=\"\",\"\",'1. Checklist & Certification'!$H$66)","v":""},{"$f":"IF(A200=\"\",\"\",'1. Checklist & Certification'!$I$66)","v":""},{"$f":"IF(A200=\"\",\"\",'1. Checklist & Certification'!$I$67)","v":""},{"$f":"IF(A200=\"\",\"\",'1. Checklist & Certification'!$I$68)","v":""},{"$f":"IF(A200=\"\",\"\",'1. Checklist & Certification'!$B$69)","v":""},{"$f":"IF(A200=\"\",\"\",'1. Checklist & Certification'!$C$69)","v":""},{"$f":"IF(A200=\"\",\"\",'1. Checklist & Certification'!$F$69)","v":""},{"$f":"IF(A200=\"\",\"\",'1. Checklist & Certification'!$G$69)","v":""},{"$f":"IF(A200=\"\",\"\",'1. Checklist & Certification'!$J$69)","v":""},{"$f":"IF(A200=\"\",\"\",'1. Checklist & Certification'!$K$69)","v":""},null,null,{"$f":"IF(AND(OR('1. Checklist & Certification'!$M$16=1,'1. Checklist & Certification'!$M$19=2),AO200>0,B200=\"\",I200>0,AQ200<I200,AV200<>\"Sec 8-Project\"),\"X\",IF(AND(OR('1. Checklist & Certification'!$M$20=4,'1. Checklist & Certification'!$M$21=5,'1. Checklist & Certification'!$M$22=7),AO200>0,B200=\"\",I200>0,K200<I200),\"X\",\"\"))","v":""},{"$f":"IF(A200=\"\",\"\",IF(SUMPRODUCT(-- (ISNUMBER(SEARCH({\"*AHSC*\",\"*FMTW*\",\"*FWHG*\",\"*GHI*\",\"*HHC*\",\"*HLCP*\",\"*HOME*\",\"*LPR*\",\"*MHP*\",\"*NHTF*\",\"*NSP*\",\"*PRP*\",\"*TOD*\",\"*VHHP*\"},'1. Checklist & Certification'!$L$7)))),\"MHP\",\"Legacy\"))","v":""},",,",null,null,null,{"$f":"IF('1. Checklist & Certification'!$M$20=4,\"Both\",IF(OR('1. Checklist & Certification'!$M$15>0,S200=\"CHRP-R\",U200=\"CHRP-R\",W200=\"CHRP-R\",Y200=\"CHRP-R\"),\"Under\",\"No\"))","v":"No"},{"$f":"IF(OR(B200=\"X\",D200=\"Vacant\",D200<1),\"No\",IF(AND(CZ200<>\"No\",D200<VLOOKUP(E200,$CW$7:$CY$13,2)),\"Yes\",\"No\"))","v":"No"},{"$f":"IF(OR(B200=\"X\",D200=\"Vacant\",D200<1),\"No\",IF(AND(CZ200=\"Both\",D200>VLOOKUP(E200,$CW$7:$CY$13,3)),\"Yes\",\"No\"))","v":"No"},{"$f":"_xlfn.IFS(D200=\"\",\"\",D200=1,'MHP Family Income & Rent Limits'!$E$17,D200=2,'MHP Family Income & Rent Limits'!$F$17,D200=3,'MHP Family Income & Rent Limits'!$G$17,D200=4,'MHP Family Income & Rent Limits'!$H$17,D200=5,'MHP Family Income & Rent Limits'!$I$17,D200=6,'MHP Family Income & Rent Limits'!$J$17,D200=7,'MHP Family Income & Rent Limits'!$K$17,D200=8,'MHP Family Income & Rent Limits'!$L$17)","v":""},"",{"$f":"IF(OR(A200=0,B200=\"X\"),0,MIN(IF(AA200:AD200<>0,AA200:AD200)))","v":0},{"$f":"IF(OR(H200=\"\",I200=\"\"),0,IF(H200*0.3/12>I200,MIN(H200*0.3/12,I200*1.1)+AP200,I200*(1+(VLOOKUP('1. Checklist & Certification'!$F$9,'HLCP-E Rent Change'!$A$1:$D$59,4,FALSE)))+AP200))","v":0}]
[null,null,null,null,null,null,null,null,null,null,null,null,null,null,null,null,null,null,null,null,null,null,null,null,null,null,0,0,0,0,0,0,0,0,{"$f":"IF(OR(A201=0,B201=\"X\"),0,IF(OR(S201=\"FHDP\",S201=\"RHCP-B\",U201=\"FHDP\",U201=\"RHCP-B\",W201=\"FHDP\",W201=\"RHCP-B\",Y201=\"FHDP\",Y201=\"RHCP-B\"),TRUNC((MIN(I201,K201)*(1+'1. Checklist & Certification'!$K$43)+AP201)),0))","v":0},{"$f":"IF(OR(A201=0,B201=\"X\"),0,IF(OR(S201=\"CHRP-R\",S201=\"SERA\",S201=\"SUHRP\",U201=\"CHRP-R\",U201=\"SERA\",U201=\"SUHRP\",W201=\"CHRP-R\",W201=\"SERA\",W201=\"SUHRP\",Y201=\"CHRP-R\",Y201=\"SERA\",Y201=\"SUHRP\"),TRUNC((MIN(I201,K201)*(1+'1. Checklist & Certification'!$K$49))),0))","v":0},{"$f":"IF(OR(A201=0,B201=\"X\"),0,IF(OR(S201=\"CALDAP\",S201=\"DPRLP\",U201=\"CALDAP\",U201=\"DPRLP\",W201=\"CALDAP\",W201=\"DPRLP\",Y201=\"CALDAP\",Y201=\"DPRLP\"),TRUNC(((MIN(I201,K201))*(1+'1. Checklist & Certification'!$G$4))),0))","v":0},0,0,0,{"$f":"IF(OR(A201=0,B201=\"X\"),0,IF(OR(S201=\"PRP\",S201=\"LPR\",U201=\"PRP\",U201=\"LPR\",W201=\"PRP\",W201=\"LPR\",Y201=\"PRP\",Y201=\"LPR\"),MAX(I201+AP201,MIN(IF(AE201:AN201<>0,AE201:AN201))),MIN(IF(AE201:AN201<>0,AE201:AN201))))","v":0},{"$f":"IF(A201=0,0,IF(AND(OR(S201=\"Mgr\",S201=0),OR(U201=\"Mgr\",U201=0),OR(W201=\"Mgr\",W201=0)),0,IF(LEFT($A201,2)=\"B*\",VLOOKUP($E201,'1. Checklist & Certification'!$D$26:$E$32,2),IF(LEFT($A201,2)=\"C*\",VLOOKUP($E201,'1. Checklist & Certification'!$F$26:$G$32,2),IF(LEFT($A201,2)=\"D*\",VLOOKUP($E201,'1. Checklist & Certification'!$H$26:$I$32,2),IF(LEFT($A201,2)=\"E*\",VLOOKUP($E201,'1. Checklist & Certification'!$J$26:$K$32,2),VLOOKUP($E201,'1. Checklist & Certification'!$A$26:$B$32,2)))))))","v":0},0,0,null,null,null,null,"","",0,0,0,null,{"$f":"IF(A201=\"\",\"\",'1. Checklist & Certification'!$K$1)","v":""},{"$f":"IF(A201=\"\",\"\",'1. Checklist & Certification'!$C$62)","v":""},{"$f":"IF(A201=\"\",\"\",'1. Checklist & Certification'!$C$6)","v":""},{"$f":"IF(A201=\"\",\"\",'1. Checklist & Certification'!$G$5)","v":""},{"$f":"IFERROR(IF(A201=\"\",\"\",\n_xlfn.LET(_xlpm.Contract,'1. Checklist & Certification'!$C$7,\n_xlpm.Yr,TEXT(MOD(_xlfn.TEXTBEFORE(_xlpm.Contract,\"-\"),100),\"00\"),\n_xlpm.Program,_xlfn.TEXTAFTER(_xlfn.TEXTBEFORE(_xlpm.Contract,\"-\",2),\"-\"),\n_xlpm.CleanProgram,_xlfn.XLOOKUP(_xlpm.Program,SpellCheck[Input],SpellCheck[Correction],_xlpm.Program),\n_xlpm.Number,TEXT(_xlfn.TEXTAFTER(_xlpm.Contract,\"-\",2),\"0000\"),\n_xlfn.CONCAT(_xlpm.Yr,\"-\",_xlpm.CleanProgram,\"-\",_xlpm.Number))\n),\"\")","v":""},{"$f":"IFERROR(IF(A201=\"\",\"\",\n_xlfn.LET(_xlpm.Contract,'1. Checklist & Certification'!$C$8,\n_xlpm.Yr,TEXT(MOD(_xlfn.TEXTBEFORE(_xlpm.Contract,\"-\"),100),\"00\"),\n_xlpm.Program,_xlfn.TEXTAFTER(_xlfn.TEXTBEFORE(_xlpm.Contract,\"-\",2),\"-\"),\n_xlpm.CleanProgram,_xlfn.XLOOKUP(_xlpm.Program,SpellCheck[Input],SpellCheck[Correction],_xlpm.Program),\n_xlpm.Number,TEXT(_xlfn.TEXTAFTER(_xlpm.Contract,\"-\",2),\"0000\"),\n_xlfn.CONCAT(_xlpm.Yr,\"-\",_xlpm.CleanProgram,\"-\",_xlpm.Number))\n),\"\")","v":""},{"$f":"IFERROR(IF(A201=\"\",\"\",\n_xlfn.LET(_xlpm.Contract,'1. Checklist & Certification'!$F$7,\n_xlpm.Yr,TEXT(MOD(_xlfn.TEXTBEFORE(_xlpm.Contract,\"-\"),100),\"00\"),\n_xlpm.Program,_xlfn.TEXTAFTER(_xlfn.TEXTBEFORE(_xlpm.Contract,\"-\",2),\"-\"),\n_xlpm.CleanProgram,_xlfn.XLOOKUP(_xlpm.Program,SpellCheck[Input],SpellCheck[Correction],_xlpm.Program),\n_xlpm.Number,TEXT(_xlfn.TEXTAFTER(_xlpm.Contract,\"-\",2),\"0000\"),\n_xlfn.CONCAT(_xlpm.Yr,\"-\",_xlpm.CleanProgram,\"-\",_xlpm.Number))\n),\"\")","v":""},{"$f":"IFERROR(IF(A201=\"\",\"\",\n_xlfn.LET(_xlpm.Contract,'1. Checklist & Certification'!$F$8,\n_xlpm.Yr,TEXT(MOD(_xlfn.TEXTBEFORE(_xlpm.Contract,\"-\"),100),\"00\"),\n_xlpm.Program,_xlfn.TEXTAFTER(_xlfn.TEXTBEFORE(_xlpm.Contract,\"-\",2),\"-\"),\n_xlpm.CleanProgram,_xlfn.XLOOKUP(_xlpm.Program,SpellCheck[Input],SpellCheck[Correction],_xlpm.Program),\n_xlpm.Number,TEXT(_xlfn.TEXTAFTER(_xlpm.Contract,\"-\",2),\"0000\"),\n_xlfn.CONCAT(_xlpm.Yr,\"-\",_xlpm.CleanProgram,\"-\",_xlpm.Number))\n),\"\")","v":""},{"$f":"IF(A201=\"\",\"\",'1. Checklist & Certification'!$B$9)","v":""},{"$f":"IF(A201=\"\",\"\",'1. Checklist & Certification'!$F$9)","v":""},{"$f":"IF(A201=\"\",\"\",'1. Checklist & Certification'!$C$10)","v":""},{"$f":"IF(A201=\"\",\"\",'1. Checklist & Certification'!$C$11)","v":""},{"$f":"IF(A201=\"\",\"\",'1. Checklist & Certification'!$C$12)","v":""},{"$f":"IF(A201=\"\",\"\",'1. Checklist & Certification'!$B$14)","v":""},{"$f":"IF(A201=\"\",\"\",'1. Checklist & Certification'!$E$14)","v":""},{"$f":"IF(B201=\"\",\"\",'1. Checklist & Certification'!$G$14)","v":""},{"$f":"IF(A201=\"\",\"\",'MHP Family Income & Rent Limits'!$B$3)","v":""},{"$f":"IF(A201=\"\",\"\",'MHP Family Income & Rent Limits'!$J$3)","v":""},{"$f":"IF(A201=\"\",\"\",'MHP Family Income & Rent Limits'!$E$4)","v":""},{"$f":"IF(A201=\"\",\"\",'MHP Family Income & Rent Limits'!$C$7)","v":""},{"$f":"IF(A201=\"\",\"\",'MHP Family Income & Rent Limits'!$F$8)","v":""},{"$f":"IF(A201=\"\",\"\",'1. Checklist & Certification'!$G$4)","v":""},{"$f":"IF(A201=\"\",\"\",'1. Checklist & Certification'!$K$39)","v":""},{"$f":"IF(A201=\"\",\"\",'1. Checklist & Certification'!$K$43)","v":""},{"$f":"IF(A201=\"\",\"\",'1. Checklist & Certification'!$K$45)","v":""},{"$f":"IF(A201=\"\",\"\",'1. Checklist & Certification'!$K$49)","v":""},{"$f":"IF(A201=\"\",\"\",'1. Checklist & Certification'!$K$62)","v":""},{"$f":"IF(A201=\"\",\"\",'1. Checklist & Certification'!$E$66)","v":""},{"$f":"IF(A201=\"\",\"\",'1. Checklist & Certification'!$E$67)","v":""},{"$f":"IF(A201=\"\",\"\",'1. Checklist & Certification'!$E$68)","v":""},{"$f":"IF(A201=\"\",\"\",'1. Checklist & Certification'!$G$66)","v":""},{"$f":"IF(A201=\"\",\"\",'1. Checklist & Certification'!$H$66)","v":""},{"$f":"IF(A201=\"\",\"\",'1. Checklist & Certification'!$I$66)","v":""},{"$f":"IF(A201=\"\",\"\",'1. Checklist & Certification'!$I$67)","v":""},{"$f":"IF(A201=\"\",\"\",'1. Checklist & Certification'!$I$68)","v":""},{"$f":"IF(A201=\"\",\"\",'1. Checklist & Certification'!$B$69)","v":""},{"$f":"IF(A201=\"\",\"\",'1. Checklist & Certification'!$C$69)","v":""},{"$f":"IF(A201=\"\",\"\",'1. Checklist & Certification'!$F$69)","v":""},{"$f":"IF(A201=\"\",\"\",'1. Checklist & Certification'!$G$69)","v":""},{"$f":"IF(A201=\"\",\"\",'1. Checklist & Certification'!$J$69)","v":""},{"$f":"IF(A201=\"\",\"\",'1. Checklist & Certification'!$K$69)","v":""},null,null,{"$f":"IF(AND(OR('1. Checklist & Certification'!$M$16=1,'1. Checklist & Certification'!$M$19=2),AO201>0,B201=\"\",I201>0,AQ201<I201,AV201<>\"Sec 8-Project\"),\"X\",IF(AND(OR('1. Checklist & Certification'!$M$20=4,'1. Checklist & Certification'!$M$21=5,'1. Checklist & Certification'!$M$22=7),AO201>0,B201=\"\",I201>0,K201<I201),\"X\",\"\"))","v":""},{"$f":"IF(A201=\"\",\"\",IF(SUMPRODUCT(-- (ISNUMBER(SEARCH({\"*AHSC*\",\"*FMTW*\",\"*FWHG*\",\"*GHI*\",\"*HHC*\",\"*HLCP*\",\"*HOME*\",\"*LPR*\",\"*MHP*\",\"*NHTF*\",\"*NSP*\",\"*PRP*\",\"*TOD*\",\"*VHHP*\"},'1. Checklist & Certification'!$L$7)))),\"MHP\",\"Legacy\"))","v":""},",,",null,null,null,{"$f":"IF('1. Checklist & Certification'!$M$20=4,\"Both\",IF(OR('1. Checklist & Certification'!$M$15>0,S201=\"CHRP-R\",U201=\"CHRP-R\",W201=\"CHRP-R\",Y201=\"CHRP-R\"),\"Under\",\"No\"))","v":"No"},"No","No",{"$f":"_xlfn.IFS(D201=\"\",\"\",D201=1,'MHP Family Income & Rent Limits'!$E$17,D201=2,'MHP Family Income & Rent Limits'!$F$17,D201=3,'MHP Family Income & Rent Limits'!$G$17,D201=4,'MHP Family Income & Rent Limits'!$H$17,D201=5,'MHP Family Income & Rent Limits'!$I$17,D201=6,'MHP Family Income & Rent Limits'!$J$17,D201=7,'MHP Family Income & Rent Limits'!$K$17,D201=8,'MHP Family Income & Rent Limits'!$L$17)","v":""},"",{"$f":"IF(OR(A201=0,B201=\"X\"),0,MIN(IF(AA201:AD201<>0,AA201:AD201)))","v":0},{"$f":"IF(OR(H201=\"\",I201=\"\"),0,IF(H201*0.3/12>I201,MIN(H201*0.3/12,I201*1.1)+AP201,I201*(1+(VLOOKUP('1. Checklist & Certification'!$F$9,'HLCP-E Rent Change'!$A$1:$D$59,4,FALSE)))+AP201))","v":0}]
[null,null,null,null,null,null,null,null,null,null,null,null,null,null,null,null,null,null,null,null,null,null,null,null,null,null,0,0,0,0,0,0,0,0,{"$f":"IF(OR(A202=0,B202=\"X\"),0,IF(OR(S202=\"FHDP\",S202=\"RHCP-B\",U202=\"FHDP\",U202=\"RHCP-B\",W202=\"FHDP\",W202=\"RHCP-B\",Y202=\"FHDP\",Y202=\"RHCP-B\"),TRUNC((MIN(I202,K202)*(1+'1. Checklist & Certification'!$K$43)+AP202)),0))","v":0},{"$f":"IF(OR(A202=0,B202=\"X\"),0,IF(OR(S202=\"CHRP-R\",S202=\"SERA\",S202=\"SUHRP\",U202=\"CHRP-R\",U202=\"SERA\",U202=\"SUHRP\",W202=\"CHRP-R\",W202=\"SERA\",W202=\"SUHRP\",Y202=\"CHRP-R\",Y202=\"SERA\",Y202=\"SUHRP\"),TRUNC((MIN(I202,K202)*(1+'1. Checklist & Certification'!$K$49))),0))","v":0},{"$f":"IF(OR(A202=0,B202=\"X\"),0,IF(OR(S202=\"CALDAP\",S202=\"DPRLP\",U202=\"CALDAP\",U202=\"DPRLP\",W202=\"CALDAP\",W202=\"DPRLP\",Y202=\"CALDAP\",Y202=\"DPRLP\"),TRUNC(((MIN(I202,K202))*(1+'1. Checklist & Certification'!$G$4))),0))","v":0},0,0,0,{"$f":"IF(OR(A202=0,B202=\"X\"),0,IF(OR(S202=\"PRP\",S202=\"LPR\",U202=\"PRP\",U202=\"LPR\",W202=\"PRP\",W202=\"LPR\",Y202=\"PRP\",Y202=\"LPR\"),MAX(I202+AP202,MIN(IF(AE202:AN202<>0,AE202:AN202))),MIN(IF(AE202:AN202<>0,AE202:AN202))))","v":0},{"$f":"IF(A202=0,0,IF(AND(OR(S202=\"Mgr\",S202=0),OR(U202=\"Mgr\",U202=0),OR(W202=\"Mgr\",W202=0)),0,IF(LEFT($A202,2)=\"B*\",VLOOKUP($E202,'1. Checklist & Certification'!$D$26:$E$32,2),IF(LEFT($A202,2)=\"C*\",VLOOKUP($E202,'1. Checklist & Certification'!$F$26:$G$32,2),IF(LEFT($A202,2)=\"D*\",VLOOKUP($E202,'1. Checklist & Certification'!$H$26:$I$32,2),IF(LEFT($A202,2)=\"E*\",VLOOKUP($E202,'1. Checklist & Certification'!$J$26:$K$32,2),VLOOKUP($E202,'1. Checklist & Certification'!$A$26:$B$32,2)))))))","v":0},0,0,null,null,null,null,"","",0,0,0,null,{"$f":"IF(A202=\"\",\"\",'1. Checklist & Certification'!$K$1)","v":""},{"$f":"IF(A202=\"\",\"\",'1. Checklist & Certification'!$C$62)","v":""},{"$f":"IF(A202=\"\",\"\",'1. Checklist & Certification'!$C$6)","v":""},{"$f":"IF(A202=\"\",\"\",'1. Checklist & Certification'!$G$5)","v":""},{"$f":"IFERROR(IF(A202=\"\",\"\",\n_xlfn.LET(_xlpm.Contract,'1. Checklist & Certification'!$C$7,\n_xlpm.Yr,TEXT(MOD(_xlfn.TEXTBEFORE(_xlpm.Contract,\"-\"),100),\"00\"),\n_xlpm.Program,_xlfn.TEXTAFTER(_xlfn.TEXTBEFORE(_xlpm.Contract,\"-\",2),\"-\"),\n_xlpm.CleanProgram,_xlfn.XLOOKUP(_xlpm.Program,SpellCheck[Input],SpellCheck[Correction],_xlpm.Program),\n_xlpm.Number,TEXT(_xlfn.TEXTAFTER(_xlpm.Contract,\"-\",2),\"0000\"),\n_xlfn.CONCAT(_xlpm.Yr,\"-\",_xlpm.CleanProgram,\"-\",_xlpm.Number))\n),\"\")","v":""},{"$f":"IFERROR(IF(A202=\"\",\"\",\n_xlfn.LET(_xlpm.Contract,'1. Checklist & Certification'!$C$8,\n_xlpm.Yr,TEXT(MOD(_xlfn.TEXTBEFORE(_xlpm.Contract,\"-\"),100),\"00\"),\n_xlpm.Program,_xlfn.TEXTAFTER(_xlfn.TEXTBEFORE(_xlpm.Contract,\"-\",2),\"-\"),\n_xlpm.CleanProgram,_xlfn.XLOOKUP(_xlpm.Program,SpellCheck[Input],SpellCheck[Correction],_xlpm.Program),\n_xlpm.Number,TEXT(_xlfn.TEXTAFTER(_xlpm.Contract,\"-\",2),\"0000\"),\n_xlfn.CONCAT(_xlpm.Yr,\"-\",_xlpm.CleanProgram,\"-\",_xlpm.Number))\n),\"\")","v":""},{"$f":"IFERROR(IF(A202=\"\",\"\",\n_xlfn.LET(_xlpm.Contract,'1. Checklist & Certification'!$F$7,\n_xlpm.Yr,TEXT(MOD(_xlfn.TEXTBEFORE(_xlpm.Contract,\"-\"),100),\"00\"),\n_xlpm.Program,_xlfn.TEXTAFTER(_xlfn.TEXTBEFORE(_xlpm.Contract,\"-\",2),\"-\"),\n_xlpm.CleanProgram,_xlfn.XLOOKUP(_xlpm.Program,SpellCheck[Input],SpellCheck[Correction],_xlpm.Program),\n_xlpm.Number,TEXT(_xlfn.TEXTAFTER(_xlpm.Contract,\"-\",2),\"0000\"),\n_xlfn.CONCAT(_xlpm.Yr,\"-\",_xlpm.CleanProgram,\"-\",_xlpm.Number))\n),\"\")","v":""},{"$f":"IFERROR(IF(A202=\"\",\"\",\n_xlfn.LET(_xlpm.Contract,'1. Checklist & Certification'!$F$8,\n_xlpm.Yr,TEXT(MOD(_xlfn.TEXTBEFORE(_xlpm.Contract,\"-\"),100),\"00\"),\n_xlpm.Program,_xlfn.TEXTAFTER(_xlfn.TEXTBEFORE(_xlpm.Contract,\"-\",2),\"-\"),\n_xlpm.CleanProgram,_xlfn.XLOOKUP(_xlpm.Program,SpellCheck[Input],SpellCheck[Correction],_xlpm.Program),\n_xlpm.Number,TEXT(_xlfn.TEXTAFTER(_xlpm.Contract,\"-\",2),\"0000\"),\n_xlfn.CONCAT(_xlpm.Yr,\"-\",_xlpm.CleanProgram,\"-\",_xlpm.Number))\n),\"\")","v":""},{"$f":"IF(A202=\"\",\"\",'1. Checklist & Certification'!$B$9)","v":""},{"$f":"IF(A202=\"\",\"\",'1. Checklist & Certification'!$F$9)","v":""},{"$f":"IF(A202=\"\",\"\",'1. Checklist & Certification'!$C$10)","v":""},{"$f":"IF(A202=\"\",\"\",'1. Checklist & Certification'!$C$11)","v":""},{"$f":"IF(A202=\"\",\"\",'1. Checklist & Certification'!$C$12)","v":""},{"$f":"IF(A202=\"\",\"\",'1. Checklist & Certification'!$B$14)","v":""},{"$f":"IF(A202=\"\",\"\",'1. Checklist & Certification'!$E$14)","v":""},{"$f":"IF(B202=\"\",\"\",'1. Checklist & Certification'!$G$14)","v":""},{"$f":"IF(A202=\"\",\"\",'MHP Family Income & Rent Limits'!$B$3)","v":""},{"$f":"IF(A202=\"\",\"\",'MHP Family Income & Rent Limits'!$J$3)","v":""},{"$f":"IF(A202=\"\",\"\",'MHP Family Income & Rent Limits'!$E$4)","v":""},{"$f":"IF(A202=\"\",\"\",'MHP Family Income & Rent Limits'!$C$7)","v":""},{"$f":"IF(A202=\"\",\"\",'MHP Family Income & Rent Limits'!$F$8)","v":""},{"$f":"IF(A202=\"\",\"\",'1. Checklist & Certification'!$G$4)","v":""},{"$f":"IF(A202=\"\",\"\",'1. Checklist & Certification'!$K$39)","v":""},{"$f":"IF(A202=\"\",\"\",'1. Checklist & Certification'!$K$43)","v":""},{"$f":"IF(A202=\"\",\"\",'1. Checklist & Certification'!$K$45)","v":""},{"$f":"IF(A202=\"\",\"\",'1. Checklist & Certification'!$K$49)","v":""},{"$f":"IF(A202=\"\",\"\",'1. Checklist & Certification'!$K$62)","v":""},{"$f":"IF(A202=\"\",\"\",'1. Checklist & Certification'!$E$66)","v":""},{"$f":"IF(A202=\"\",\"\",'1. Checklist & Certification'!$E$67)","v":""},{"$f":"IF(A202=\"\",\"\",'1. Checklist & Certification'!$E$68)","v":""},{"$f":"IF(A202=\"\",\"\",'1. Checklist & Certification'!$G$66)","v":""},{"$f":"IF(A202=\"\",\"\",'1. Checklist & Certification'!$H$66)","v":""},{"$f":"IF(A202=\"\",\"\",'1. Checklist & Certification'!$I$66)","v":""},{"$f":"IF(A202=\"\",\"\",'1. Checklist & Certification'!$I$67)","v":""},{"$f":"IF(A202=\"\",\"\",'1. Checklist & Certification'!$I$68)","v":""},{"$f":"IF(A202=\"\",\"\",'1. Checklist & Certification'!$B$69)","v":""},{"$f":"IF(A202=\"\",\"\",'1. Checklist & Certification'!$C$69)","v":""},{"$f":"IF(A202=\"\",\"\",'1. Checklist & Certification'!$F$69)","v":""},{"$f":"IF(A202=\"\",\"\",'1. Checklist & Certification'!$G$69)","v":""},{"$f":"IF(A202=\"\",\"\",'1. Checklist & Certification'!$J$69)","v":""},{"$f":"IF(A202=\"\",\"\",'1. Checklist & Certification'!$K$69)","v":""},null,null,{"$f":"IF(AND(OR('1. Checklist & Certification'!$M$16=1,'1. Checklist & Certification'!$M$19=2),AO202>0,B202=\"\",I202>0,AQ202<I202,AV202<>\"Sec 8-Project\"),\"X\",IF(AND(OR('1. Checklist & Certification'!$M$20=4,'1. Checklist & Certification'!$M$21=5,'1. Checklist & Certification'!$M$22=7),AO202>0,B202=\"\",I202>0,K202<I202),\"X\",\"\"))","v":""},{"$f":"IF(A202=\"\",\"\",IF(SUMPRODUCT(-- (ISNUMBER(SEARCH({\"*AHSC*\",\"*FMTW*\",\"*FWHG*\",\"*GHI*\",\"*HHC*\",\"*HLCP*\",\"*HOME*\",\"*LPR*\",\"*MHP*\",\"*NHTF*\",\"*NSP*\",\"*PRP*\",\"*TOD*\",\"*VHHP*\"},'1. Checklist & Certification'!$L$7)))),\"MHP\",\"Legacy\"))","v":""},",,",null,null,null,{"$f":"IF('1. Checklist & Certification'!$M$20=4,\"Both\",IF(OR('1. Checklist & Certification'!$M$15>0,S202=\"CHRP-R\",U202=\"CHRP-R\",W202=\"CHRP-R\",Y202=\"CHRP-R\"),\"Under\",\"No\"))","v":"No"},"No","No",{"$f":"_xlfn.IFS(D202=\"\",\"\",D202=1,'MHP Family Income & Rent Limits'!$E$17,D202=2,'MHP Family Income & Rent Limits'!$F$17,D202=3,'MHP Family Income & Rent Limits'!$G$17,D202=4,'MHP Family Income & Rent Limits'!$H$17,D202=5,'MHP Family Income & Rent Limits'!$I$17,D202=6,'MHP Family Income & Rent Limits'!$J$17,D202=7,'MHP Family Income & Rent Limits'!$K$17,D202=8,'MHP Family Income & Rent Limits'!$L$17)","v":""},"",{"$f":"IF(OR(A202=0,B202=\"X\"),0,MIN(IF(AA202:AD202<>0,AA202:AD202)))","v":0},{"$f":"IF(OR(H202=\"\",I202=\"\"),0,IF(H202*0.3/12>I202,MIN(H202*0.3/12,I202*1.1)+AP202,I202*(1+(VLOOKUP('1. Checklist & Certification'!$F$9,'HLCP-E Rent Change'!$A$1:$D$59,4,FALSE)))+AP202))","v":0}]
[null,null,null,null,null,null,null,null,null,null,null,null,null,null,null,null,null,null,null,null,null,null,null,null,null,null,0,0,0,0,0,0,0,0,{"$f":"IF(OR(A203=0,B203=\"X\"),0,IF(OR(S203=\"FHDP\",S203=\"RHCP-B\",U203=\"FHDP\",U203=\"RHCP-B\",W203=\"FHDP\",W203=\"RHCP-B\",Y203=\"FHDP\",Y203=\"RHCP-B\"),TRUNC((MIN(I203,K203)*(1+'1. Checklist & Certification'!$K$43)+AP203)),0))","v":0},{"$f":"IF(OR(A203=0,B203=\"X\"),0,IF(OR(S203=\"CHRP-R\",S203=\"SERA\",S203=\"SUHRP\",U203=\"CHRP-R\",U203=\"SERA\",U203=\"SUHRP\",W203=\"CHRP-R\",W203=\"SERA\",W203=\"SUHRP\",Y203=\"CHRP-R\",Y203=\"SERA\",Y203=\"SUHRP\"),TRUNC((MIN(I203,K203)*(1+'1. Checklist & Certification'!$K$49))),0))","v":0},{"$f":"IF(OR(A203=0,B203=\"X\"),0,IF(OR(S203=\"CALDAP\",S203=\"DPRLP\",U203=\"CALDAP\",U203=\"DPRLP\",W203=\"CALDAP\",W203=\"DPRLP\",Y203=\"CALDAP\",Y203=\"DPRLP\"),TRUNC(((MIN(I203,K203))*(1+'1. Checklist & Certification'!$G$4))),0))","v":0},0,0,0,{"$f":"IF(OR(A203=0,B203=\"X\"),0,IF(OR(S203=\"PRP\",S203=\"LPR\",U203=\"PRP\",U203=\"LPR\",W203=\"PRP\",W203=\"LPR\",Y203=\"PRP\",Y203=\"LPR\"),MAX(I203+AP203,MIN(IF(AE203:AN203<>0,AE203:AN203))),MIN(IF(AE203:AN203<>0,AE203:AN203))))","v":0},{"$f":"IF(A203=0,0,IF(AND(OR(S203=\"Mgr\",S203=0),OR(U203=\"Mgr\",U203=0),OR(W203=\"Mgr\",W203=0)),0,IF(LEFT($A203,2)=\"B*\",VLOOKUP($E203,'1. Checklist & Certification'!$D$26:$E$32,2),IF(LEFT($A203,2)=\"C*\",VLOOKUP($E203,'1. Checklist & Certification'!$F$26:$G$32,2),IF(LEFT($A203,2)=\"D*\",VLOOKUP($E203,'1. Checklist & Certification'!$H$26:$I$32,2),IF(LEFT($A203,2)=\"E*\",VLOOKUP($E203,'1. Checklist & Certification'!$J$26:$K$32,2),VLOOKUP($E203,'1. Checklist & Certification'!$A$26:$B$32,2)))))))","v":0},0,0,null,null,null,null,"","",0,0,0,null,{"$f":"IF(A203=\"\",\"\",'1. Checklist & Certification'!$K$1)","v":""},{"$f":"IF(A203=\"\",\"\",'1. Checklist & Certification'!$C$62)","v":""},{"$f":"IF(A203=\"\",\"\",'1. Checklist & Certification'!$C$6)","v":""},{"$f":"IF(A203=\"\",\"\",'1. Checklist & Certification'!$G$5)","v":""},{"$f":"IFERROR(IF(A203=\"\",\"\",\n_xlfn.LET(_xlpm.Contract,'1. Checklist & Certification'!$C$7,\n_xlpm.Yr,TEXT(MOD(_xlfn.TEXTBEFORE(_xlpm.Contract,\"-\"),100),\"00\"),\n_xlpm.Program,_xlfn.TEXTAFTER(_xlfn.TEXTBEFORE(_xlpm.Contract,\"-\",2),\"-\"),\n_xlpm.CleanProgram,_xlfn.XLOOKUP(_xlpm.Program,SpellCheck[Input],SpellCheck[Correction],_xlpm.Program),\n_xlpm.Number,TEXT(_xlfn.TEXTAFTER(_xlpm.Contract,\"-\",2),\"0000\"),\n_xlfn.CONCAT(_xlpm.Yr,\"-\",_xlpm.CleanProgram,\"-\",_xlpm.Number))\n),\"\")","v":""},{"$f":"IFERROR(IF(A203=\"\",\"\",\n_xlfn.LET(_xlpm.Contract,'1. Checklist & Certification'!$C$8,\n_xlpm.Yr,TEXT(MOD(_xlfn.TEXTBEFORE(_xlpm.Contract,\"-\"),100),\"00\"),\n_xlpm.Program,_xlfn.TEXTAFTER(_xlfn.TEXTBEFORE(_xlpm.Contract,\"-\",2),\"-\"),\n_xlpm.CleanProgram,_xlfn.XLOOKUP(_xlpm.Program,SpellCheck[Input],SpellCheck[Correction],_xlpm.Program),\n_xlpm.Number,TEXT(_xlfn.TEXTAFTER(_xlpm.Contract,\"-\",2),\"0000\"),\n_xlfn.CONCAT(_xlpm.Yr,\"-\",_xlpm.CleanProgram,\"-\",_xlpm.Number))\n),\"\")","v":""},{"$f":"IFERROR(IF(A203=\"\",\"\",\n_xlfn.LET(_xlpm.Contract,'1. Checklist & Certification'!$F$7,\n_xlpm.Yr,TEXT(MOD(_xlfn.TEXTBEFORE(_xlpm.Contract,\"-\"),100),\"00\"),\n_xlpm.Program,_xlfn.TEXTAFTER(_xlfn.TEXTBEFORE(_xlpm.Contract,\"-\",2),\"-\"),\n_xlpm.CleanProgram,_xlfn.XLOOKUP(_xlpm.Program,SpellCheck[Input],SpellCheck[Correction],_xlpm.Program),\n_xlpm.Number,TEXT(_xlfn.TEXTAFTER(_xlpm.Contract,\"-\",2),\"0000\"),\n_xlfn.CONCAT(_xlpm.Yr,\"-\",_xlpm.CleanProgram,\"-\",_xlpm.Number))\n),\"\")","v":""},{"$f":"IFERROR(IF(A203=\"\",\"\",\n_xlfn.LET(_xlpm.Contract,'1. Checklist & Certification'!$F$8,\n_xlpm.Yr,TEXT(MOD(_xlfn.TEXTBEFORE(_xlpm.Contract,\"-\"),100),\"00\"),\n_xlpm.Program,_xlfn.TEXTAFTER(_xlfn.TEXTBEFORE(_xlpm.Contract,\"-\",2),\"-\"),\n_xlpm.CleanProgram,_xlfn.XLOOKUP(_xlpm.Program,SpellCheck[Input],SpellCheck[Correction],_xlpm.Program),\n_xlpm.Number,TEXT(_xlfn.TEXTAFTER(_xlpm.Contract,\"-\",2),\"0000\"),\n_xlfn.CONCAT(_xlpm.Yr,\"-\",_xlpm.CleanProgram,\"-\",_xlpm.Number))\n),\"\")","v":""},{"$f":"IF(A203=\"\",\"\",'1. Checklist & Certification'!$B$9)","v":""},{"$f":"IF(A203=\"\",\"\",'1. Checklist & Certification'!$F$9)","v":""},{"$f":"IF(A203=\"\",\"\",'1. Checklist & Certification'!$C$10)","v":""},{"$f":"IF(A203=\"\",\"\",'1. Checklist & Certification'!$C$11)","v":""},{"$f":"IF(A203=\"\",\"\",'1. Checklist & Certification'!$C$12)","v":""},{"$f":"IF(A203=\"\",\"\",'1. Checklist & Certification'!$B$14)","v":""},{"$f":"IF(A203=\"\",\"\",'1. Checklist & Certification'!$E$14)","v":""},{"$f":"IF(B203=\"\",\"\",'1. Checklist & Certification'!$G$14)","v":""},{"$f":"IF(A203=\"\",\"\",'MHP Family Income & Rent Limits'!$B$3)","v":""},{"$f":"IF(A203=\"\",\"\",'MHP Family Income & Rent Limits'!$J$3)","v":""},{"$f":"IF(A203=\"\",\"\",'MHP Family Income & Rent Limits'!$E$4)","v":""},{"$f":"IF(A203=\"\",\"\",'MHP Family Income & Rent Limits'!$C$7)","v":""},{"$f":"IF(A203=\"\",\"\",'MHP Family Income & Rent Limits'!$F$8)","v":""},{"$f":"IF(A203=\"\",\"\",'1. Checklist & Certification'!$G$4)","v":""},{"$f":"IF(A203=\"\",\"\",'1. Checklist & Certification'!$K$39)","v":""},{"$f":"IF(A203=\"\",\"\",'1. Checklist & Certification'!$K$43)","v":""},{"$f":"IF(A203=\"\",\"\",'1. Checklist & Certification'!$K$45)","v":""},{"$f":"IF(A203=\"\",\"\",'1. Checklist & Certification'!$K$49)","v":""},{"$f":"IF(A203=\"\",\"\",'1. Checklist & Certification'!$K$62)","v":""},{"$f":"IF(A203=\"\",\"\",'1. Checklist & Certification'!$E$66)","v":""},{"$f":"IF(A203=\"\",\"\",'1. Checklist & Certification'!$E$67)","v":""},{"$f":"IF(A203=\"\",\"\",'1. Checklist & Certification'!$E$68)","v":""},{"$f":"IF(A203=\"\",\"\",'1. Checklist & Certification'!$G$66)","v":""},{"$f":"IF(A203=\"\",\"\",'1. Checklist & Certification'!$H$66)","v":""},{"$f":"IF(A203=\"\",\"\",'1. Checklist & Certification'!$I$66)","v":""},{"$f":"IF(A203=\"\",\"\",'1. Checklist & Certification'!$I$67)","v":""},{"$f":"IF(A203=\"\",\"\",'1. Checklist & Certification'!$I$68)","v":""},{"$f":"IF(A203=\"\",\"\",'1. Checklist & Certification'!$B$69)","v":""},{"$f":"IF(A203=\"\",\"\",'1. Checklist & Certification'!$C$69)","v":""},{"$f":"IF(A203=\"\",\"\",'1. Checklist & Certification'!$F$69)","v":""},{"$f":"IF(A203=\"\",\"\",'1. Checklist & Certification'!$G$69)","v":""},{"$f":"IF(A203=\"\",\"\",'1. Checklist & Certification'!$J$69)","v":""},{"$f":"IF(A203=\"\",\"\",'1. Checklist & Certification'!$K$69)","v":""},null,null,{"$f":"IF(AND(OR('1. Checklist & Certification'!$M$16=1,'1. Checklist & Certification'!$M$19=2),AO203>0,B203=\"\",I203>0,AQ203<I203,AV203<>\"Sec 8-Project\"),\"X\",IF(AND(OR('1. Checklist & Certification'!$M$20=4,'1. Checklist & Certification'!$M$21=5,'1. Checklist & Certification'!$M$22=7),AO203>0,B203=\"\",I203>0,K203<I203),\"X\",\"\"))","v":""},{"$f":"IF(A203=\"\",\"\",IF(SUMPRODUCT(-- (ISNUMBER(SEARCH({\"*AHSC*\",\"*FMTW*\",\"*FWHG*\",\"*GHI*\",\"*HHC*\",\"*HLCP*\",\"*HOME*\",\"*LPR*\",\"*MHP*\",\"*NHTF*\",\"*NSP*\",\"*PRP*\",\"*TOD*\",\"*VHHP*\"},'1. Checklist & Certification'!$L$7)))),\"MHP\",\"Legacy\"))","v":""},",,",null,null,null,{"$f":"IF('1. Checklist & Certification'!$M$20=4,\"Both\",IF(OR('1. Checklist & Certification'!$M$15>0,S203=\"CHRP-R\",U203=\"CHRP-R\",W203=\"CHRP-R\",Y203=\"CHRP-R\"),\"Under\",\"No\"))","v":"No"},"No","No",{"$f":"_xlfn.IFS(D203=\"\",\"\",D203=1,'MHP Family Income & Rent Limits'!$E$17,D203=2,'MHP Family Income & Rent Limits'!$F$17,D203=3,'MHP Family Income & Rent Limits'!$G$17,D203=4,'MHP Family Income & Rent Limits'!$H$17,D203=5,'MHP Family Income & Rent Limits'!$I$17,D203=6,'MHP Family Income & Rent Limits'!$J$17,D203=7,'MHP Family Income & Rent Limits'!$K$17,D203=8,'MHP Family Income & Rent Limits'!$L$17)","v":""},"",{"$f":"IF(OR(A203=0,B203=\"X\"),0,MIN(IF(AA203:AD203<>0,AA203:AD203)))","v":0},{"$f":"IF(OR(H203=\"\",I203=\"\"),0,IF(H203*0.3/12>I203,MIN(H203*0.3/12,I203*1.1)+AP203,I203*(1+(VLOOKUP('1. Checklist & Certification'!$F$9,'HLCP-E Rent Change'!$A$1:$D$59,4,FALSE)))+AP203))","v":0}]
[null,null,null,null,null,null,null,null,null,null,null,null,null,null,null,null,null,null,null,null,null,null,null,null,null,null,0,0,0,0,0,0,0,0,{"$f":"IF(OR(A204=0,B204=\"X\"),0,IF(OR(S204=\"FHDP\",S204=\"RHCP-B\",U204=\"FHDP\",U204=\"RHCP-B\",W204=\"FHDP\",W204=\"RHCP-B\",Y204=\"FHDP\",Y204=\"RHCP-B\"),TRUNC((MIN(I204,K204)*(1+'1. Checklist & Certification'!$K$43)+AP204)),0))","v":0},{"$f":"IF(OR(A204=0,B204=\"X\"),0,IF(OR(S204=\"CHRP-R\",S204=\"SERA\",S204=\"SUHRP\",U204=\"CHRP-R\",U204=\"SERA\",U204=\"SUHRP\",W204=\"CHRP-R\",W204=\"SERA\",W204=\"SUHRP\",Y204=\"CHRP-R\",Y204=\"SERA\",Y204=\"SUHRP\"),TRUNC((MIN(I204,K204)*(1+'1. Checklist & Certification'!$K$49))),0))","v":0},{"$f":"IF(OR(A204=0,B204=\"X\"),0,IF(OR(S204=\"CALDAP\",S204=\"DPRLP\",U204=\"CALDAP\",U204=\"DPRLP\",W204=\"CALDAP\",W204=\"DPRLP\",Y204=\"CALDAP\",Y204=\"DPRLP\"),TRUNC(((MIN(I204,K204))*(1+'1. Checklist & Certification'!$G$4))),0))","v":0},0,0,0,{"$f":"IF(OR(A204=0,B204=\"X\"),0,IF(OR(S204=\"PRP\",S204=\"LPR\",U204=\"PRP\",U204=\"LPR\",W204=\"PRP\",W204=\"LPR\",Y204=\"PRP\",Y204=\"LPR\"),MAX(I204+AP204,MIN(IF(AE204:AN204<>0,AE204:AN204))),MIN(IF(AE204:AN204<>0,AE204:AN204))))","v":0},{"$f":"IF(A204=0,0,IF(AND(OR(S204=\"Mgr\",S204=0),OR(U204=\"Mgr\",U204=0),OR(W204=\"Mgr\",W204=0)),0,IF(LEFT($A204,2)=\"B*\",VLOOKUP($E204,'1. Checklist & Certification'!$D$26:$E$32,2),IF(LEFT($A204,2)=\"C*\",VLOOKUP($E204,'1. Checklist & Certification'!$F$26:$G$32,2),IF(LEFT($A204,2)=\"D*\",VLOOKUP($E204,'1. Checklist & Certification'!$H$26:$I$32,2),IF(LEFT($A204,2)=\"E*\",VLOOKUP($E204,'1. Checklist & Certification'!$J$26:$K$32,2),VLOOKUP($E204,'1. Checklist & Certification'!$A$26:$B$32,2)))))))","v":0},0,0,null,null,null,null,"","",0,0,0,null,{"$f":"IF(A204=\"\",\"\",'1. Checklist & Certification'!$K$1)","v":""},{"$f":"IF(A204=\"\",\"\",'1. Checklist & Certification'!$C$62)","v":""},{"$f":"IF(A204=\"\",\"\",'1. Checklist & Certification'!$C$6)","v":""},{"$f":"IF(A204=\"\",\"\",'1. Checklist & Certification'!$G$5)","v":""},{"$f":"IFERROR(IF(A204=\"\",\"\",\n_xlfn.LET(_xlpm.Contract,'1. Checklist & Certification'!$C$7,\n_xlpm.Yr,TEXT(MOD(_xlfn.TEXTBEFORE(_xlpm.Contract,\"-\"),100),\"00\"),\n_xlpm.Program,_xlfn.TEXTAFTER(_xlfn.TEXTBEFORE(_xlpm.Contract,\"-\",2),\"-\"),\n_xlpm.CleanProgram,_xlfn.XLOOKUP(_xlpm.Program,SpellCheck[Input],SpellCheck[Correction],_xlpm.Program),\n_xlpm.Number,TEXT(_xlfn.TEXTAFTER(_xlpm.Contract,\"-\",2),\"0000\"),\n_xlfn.CONCAT(_xlpm.Yr,\"-\",_xlpm.CleanProgram,\"-\",_xlpm.Number))\n),\"\")","v":""},{"$f":"IFERROR(IF(A204=\"\",\"\",\n_xlfn.LET(_xlpm.Contract,'1. Checklist & Certification'!$C$8,\n_xlpm.Yr,TEXT(MOD(_xlfn.TEXTBEFORE(_xlpm.Contract,\"-\"),100),\"00\"),\n_xlpm.Program,_xlfn.TEXTAFTER(_xlfn.TEXTBEFORE(_xlpm.Contract,\"-\",2),\"-\"),\n_xlpm.CleanProgram,_xlfn.XLOOKUP(_xlpm.Program,SpellCheck[Input],SpellCheck[Correction],_xlpm.Program),\n_xlpm.Number,TEXT(_xlfn.TEXTAFTER(_xlpm.Contract,\"-\",2),\"0000\"),\n_xlfn.CONCAT(_xlpm.Yr,\"-\",_xlpm.CleanProgram,\"-\",_xlpm.Number))\n),\"\")","v":""},{"$f":"IFERROR(IF(A204=\"\",\"\",\n_xlfn.LET(_xlpm.Contract,'1. Checklist & Certification'!$F$7,\n_xlpm.Yr,TEXT(MOD(_xlfn.TEXTBEFORE(_xlpm.Contract,\"-\"),100),\"00\"),\n_xlpm.Program,_xlfn.TEXTAFTER(_xlfn.TEXTBEFORE(_xlpm.Contract,\"-\",2),\"-\"),\n_xlpm.CleanProgram,_xlfn.XLOOKUP(_xlpm.Program,SpellCheck[Input],SpellCheck[Correction],_xlpm.Program),\n_xlpm.Number,TEXT(_xlfn.TEXTAFTER(_xlpm.Contract,\"-\",2),\"0000\"),\n_xlfn.CONCAT(_xlpm.Yr,\"-\",_xlpm.CleanProgram,\"-\",_xlpm.Number))\n),\"\")","v":""},{"$f":"IFERROR(IF(A204=\"\",\"\",\n_xlfn.LET(_xlpm.Contract,'1. Checklist & Certification'!$F$8,\n_xlpm.Yr,TEXT(MOD(_xlfn.TEXTBEFORE(_xlpm.Contract,\"-\"),100),\"00\"),\n_xlpm.Program,_xlfn.TEXTAFTER(_xlfn.TEXTBEFORE(_xlpm.Contract,\"-\",2),\"-\"),\n_xlpm.CleanProgram,_xlfn.XLOOKUP(_xlpm.Program,SpellCheck[Input],SpellCheck[Correction],_xlpm.Program),\n_xlpm.Number,TEXT(_xlfn.TEXTAFTER(_xlpm.Contract,\"-\",2),\"0000\"),\n_xlfn.CONCAT(_xlpm.Yr,\"-\",_xlpm.CleanProgram,\"-\",_xlpm.Number))\n),\"\")","v":""},{"$f":"IF(A204=\"\",\"\",'1. Checklist & Certification'!$B$9)","v":""},{"$f":"IF(A204=\"\",\"\",'1. Checklist & Certification'!$F$9)","v":""},{"$f":"IF(A204=\"\",\"\",'1. Checklist & Certification'!$C$10)","v":""},{"$f":"IF(A204=\"\",\"\",'1. Checklist & Certification'!$C$11)","v":""},{"$f":"IF(A204=\"\",\"\",'1. Checklist & Certification'!$C$12)","v":""},{"$f":"IF(A204=\"\",\"\",'1. Checklist & Certification'!$B$14)","v":""},{"$f":"IF(A204=\"\",\"\",'1. Checklist & Certification'!$E$14)","v":""},{"$f":"IF(B204=\"\",\"\",'1. Checklist & Certification'!$G$14)","v":""},{"$f":"IF(A204=\"\",\"\",'MHP Family Income & Rent Limits'!$B$3)","v":""},{"$f":"IF(A204=\"\",\"\",'MHP Family Income & Rent Limits'!$J$3)","v":""},{"$f":"IF(A204=\"\",\"\",'MHP Family Income & Rent Limits'!$E$4)","v":""},{"$f":"IF(A204=\"\",\"\",'MHP Family Income & Rent Limits'!$C$7)","v":""},{"$f":"IF(A204=\"\",\"\",'MHP Family Income & Rent Limits'!$F$8)","v":""},{"$f":"IF(A204=\"\",\"\",'1. Checklist & Certification'!$G$4)","v":""},{"$f":"IF(A204=\"\",\"\",'1. Checklist & Certification'!$K$39)","v":""},{"$f":"IF(A204=\"\",\"\",'1. Checklist & Certification'!$K$43)","v":""},{"$f":"IF(A204=\"\",\"\",'1. Checklist & Certification'!$K$45)","v":""},{"$f":"IF(A204=\"\",\"\",'1. Checklist & Certification'!$K$49)","v":""},{"$f":"IF(A204=\"\",\"\",'1. Checklist & Certification'!$K$62)","v":""},{"$f":"IF(A204=\"\",\"\",'1. Checklist & Certification'!$E$66)","v":""},{"$f":"IF(A204=\"\",\"\",'1. Checklist & Certification'!$E$67)","v":""},{"$f":"IF(A204=\"\",\"\",'1. Checklist & Certification'!$E$68)","v":""},{"$f":"IF(A204=\"\",\"\",'1. Checklist & Certification'!$G$66)","v":""},{"$f":"IF(A204=\"\",\"\",'1. Checklist & Certification'!$H$66)","v":""},{"$f":"IF(A204=\"\",\"\",'1. Checklist & Certification'!$I$66)","v":""},{"$f":"IF(A204=\"\",\"\",'1. Checklist & Certification'!$I$67)","v":""},{"$f":"IF(A204=\"\",\"\",'1. Checklist & Certification'!$I$68)","v":""},{"$f":"IF(A204=\"\",\"\",'1. Checklist & Certification'!$B$69)","v":""},{"$f":"IF(A204=\"\",\"\",'1. Checklist & Certification'!$C$69)","v":""},{"$f":"IF(A204=\"\",\"\",'1. Checklist & Certification'!$F$69)","v":""},{"$f":"IF(A204=\"\",\"\",'1. Checklist & Certification'!$G$69)","v":""},{"$f":"IF(A204=\"\",\"\",'1. Checklist & Certification'!$J$69)","v":""},{"$f":"IF(A204=\"\",\"\",'1. Checklist & Certification'!$K$69)","v":""},null,null,{"$f":"IF(AND(OR('1. Checklist & Certification'!$M$16=1,'1. Checklist & Certification'!$M$19=2),AO204>0,B204=\"\",I204>0,AQ204<I204,AV204<>\"Sec 8-Project\"),\"X\",IF(AND(OR('1. Checklist & Certification'!$M$20=4,'1. Checklist & Certification'!$M$21=5,'1. Checklist & Certification'!$M$22=7),AO204>0,B204=\"\",I204>0,K204<I204),\"X\",\"\"))","v":""},{"$f":"IF(A204=\"\",\"\",IF(SUMPRODUCT(-- (ISNUMBER(SEARCH({\"*AHSC*\",\"*FMTW*\",\"*FWHG*\",\"*GHI*\",\"*HHC*\",\"*HLCP*\",\"*HOME*\",\"*LPR*\",\"*MHP*\",\"*NHTF*\",\"*NSP*\",\"*PRP*\",\"*TOD*\",\"*VHHP*\"},'1. Checklist & Certification'!$L$7)))),\"MHP\",\"Legacy\"))","v":""},",,",null,null,null,{"$f":"IF('1. Checklist & Certification'!$M$20=4,\"Both\",IF(OR('1. Checklist & Certification'!$M$15>0,S204=\"CHRP-R\",U204=\"CHRP-R\",W204=\"CHRP-R\",Y204=\"CHRP-R\"),\"Under\",\"No\"))","v":"No"},"No","No",{"$f":"_xlfn.IFS(D204=\"\",\"\",D204=1,'MHP Family Income & Rent Limits'!$E$17,D204=2,'MHP Family Income & Rent Limits'!$F$17,D204=3,'MHP Family Income & Rent Limits'!$G$17,D204=4,'MHP Family Income & Rent Limits'!$H$17,D204=5,'MHP Family Income & Rent Limits'!$I$17,D204=6,'MHP Family Income & Rent Limits'!$J$17,D204=7,'MHP Family Income & Rent Limits'!$K$17,D204=8,'MHP Family Income & Rent Limits'!$L$17)","v":""},"",{"$f":"IF(OR(A204=0,B204=\"X\"),0,MIN(IF(AA204:AD204<>0,AA204:AD204)))","v":0},{"$f":"IF(OR(H204=\"\",I204=\"\"),0,IF(H204*0.3/12>I204,MIN(H204*0.3/12,I204*1.1)+AP204,I204*(1+(VLOOKUP('1. Checklist & Certification'!$F$9,'HLCP-E Rent Change'!$A$1:$D$59,4,FALSE)))+AP204))","v":0}]
[null,null,null,null,null,null,null,null,null,null,null,null,null,null,null,null,null,null,null,null,null,null,null,null,null,null,0,0,0,0,0,0,0,0,{"$f":"IF(OR(A205=0,B205=\"X\"),0,IF(OR(S205=\"FHDP\",S205=\"RHCP-B\",U205=\"FHDP\",U205=\"RHCP-B\",W205=\"FHDP\",W205=\"RHCP-B\",Y205=\"FHDP\",Y205=\"RHCP-B\"),TRUNC((MIN(I205,K205)*(1+'1. Checklist & Certification'!$K$43)+AP205)),0))","v":0},{"$f":"IF(OR(A205=0,B205=\"X\"),0,IF(OR(S205=\"CHRP-R\",S205=\"SERA\",S205=\"SUHRP\",U205=\"CHRP-R\",U205=\"SERA\",U205=\"SUHRP\",W205=\"CHRP-R\",W205=\"SERA\",W205=\"SUHRP\",Y205=\"CHRP-R\",Y205=\"SERA\",Y205=\"SUHRP\"),TRUNC((MIN(I205,K205)*(1+'1. Checklist & Certification'!$K$49))),0))","v":0},{"$f":"IF(OR(A205=0,B205=\"X\"),0,IF(OR(S205=\"CALDAP\",S205=\"DPRLP\",U205=\"CALDAP\",U205=\"DPRLP\",W205=\"CALDAP\",W205=\"DPRLP\",Y205=\"CALDAP\",Y205=\"DPRLP\"),TRUNC(((MIN(I205,K205))*(1+'1. Checklist & Certification'!$G$4))),0))","v":0},0,0,0,{"$f":"IF(OR(A205=0,B205=\"X\"),0,IF(OR(S205=\"PRP\",S205=\"LPR\",U205=\"PRP\",U205=\"LPR\",W205=\"PRP\",W205=\"LPR\",Y205=\"PRP\",Y205=\"LPR\"),MAX(I205+AP205,MIN(IF(AE205:AN205<>0,AE205:AN205))),MIN(IF(AE205:AN205<>0,AE205:AN205))))","v":0},{"$f":"IF(A205=0,0,IF(AND(OR(S205=\"Mgr\",S205=0),OR(U205=\"Mgr\",U205=0),OR(W205=\"Mgr\",W205=0)),0,IF(LEFT($A205,2)=\"B*\",VLOOKUP($E205,'1. Checklist & Certification'!$D$26:$E$32,2),IF(LEFT($A205,2)=\"C*\",VLOOKUP($E205,'1. Checklist & Certification'!$F$26:$G$32,2),IF(LEFT($A205,2)=\"D*\",VLOOKUP($E205,'1. Checklist & Certification'!$H$26:$I$32,2),IF(LEFT($A205,2)=\"E*\",VLOOKUP($E205,'1. Checklist & Certification'!$J$26:$K$32,2),VLOOKUP($E205,'1. Checklist & Certification'!$A$26:$B$32,2)))))))","v":0},0,0,null,null,null,null,"","",0,0,0,null,{"$f":"IF(A205=\"\",\"\",'1. Checklist & Certification'!$K$1)","v":""},{"$f":"IF(A205=\"\",\"\",'1. Checklist & Certification'!$C$62)","v":""},{"$f":"IF(A205=\"\",\"\",'1. Checklist & Certification'!$C$6)","v":""},{"$f":"IF(A205=\"\",\"\",'1. Checklist & Certification'!$G$5)","v":""},{"$f":"IFERROR(IF(A205=\"\",\"\",\n_xlfn.LET(_xlpm.Contract,'1. Checklist & Certification'!$C$7,\n_xlpm.Yr,TEXT(MOD(_xlfn.TEXTBEFORE(_xlpm.Contract,\"-\"),100),\"00\"),\n_xlpm.Program,_xlfn.TEXTAFTER(_xlfn.TEXTBEFORE(_xlpm.Contract,\"-\",2),\"-\"),\n_xlpm.CleanProgram,_xlfn.XLOOKUP(_xlpm.Program,SpellCheck[Input],SpellCheck[Correction],_xlpm.Program),\n_xlpm.Number,TEXT(_xlfn.TEXTAFTER(_xlpm.Contract,\"-\",2),\"0000\"),\n_xlfn.CONCAT(_xlpm.Yr,\"-\",_xlpm.CleanProgram,\"-\",_xlpm.Number))\n),\"\")","v":""},{"$f":"IFERROR(IF(A205=\"\",\"\",\n_xlfn.LET(_xlpm.Contract,'1. Checklist & Certification'!$C$8,\n_xlpm.Yr,TEXT(MOD(_xlfn.TEXTBEFORE(_xlpm.Contract,\"-\"),100),\"00\"),\n_xlpm.Program,_xlfn.TEXTAFTER(_xlfn.TEXTBEFORE(_xlpm.Contract,\"-\",2),\"-\"),\n_xlpm.CleanProgram,_xlfn.XLOOKUP(_xlpm.Program,SpellCheck[Input],SpellCheck[Correction],_xlpm.Program),\n_xlpm.Number,TEXT(_xlfn.TEXTAFTER(_xlpm.Contract,\"-\",2),\"0000\"),\n_xlfn.CONCAT(_xlpm.Yr,\"-\",_xlpm.CleanProgram,\"-\",_xlpm.Number))\n),\"\")","v":""},{"$f":"IFERROR(IF(A205=\"\",\"\",\n_xlfn.LET(_xlpm.Contract,'1. Checklist & Certification'!$F$7,\n_xlpm.Yr,TEXT(MOD(_xlfn.TEXTBEFORE(_xlpm.Contract,\"-\"),100),\"00\"),\n_xlpm.Program,_xlfn.TEXTAFTER(_xlfn.TEXTBEFORE(_xlpm.Contract,\"-\",2),\"-\"),\n_xlpm.CleanProgram,_xlfn.XLOOKUP(_xlpm.Program,SpellCheck[Input],SpellCheck[Correction],_xlpm.Program),\n_xlpm.Number,TEXT(_xlfn.TEXTAFTER(_xlpm.Contract,\"-\",2),\"0000\"),\n_xlfn.CONCAT(_xlpm.Yr,\"-\",_xlpm.CleanProgram,\"-\",_xlpm.Number))\n),\"\")","v":""},{"$f":"IFERROR(IF(A205=\"\",\"\",\n_xlfn.LET(_xlpm.Contract,'1. Checklist & Certification'!$F$8,\n_xlpm.Yr,TEXT(MOD(_xlfn.TEXTBEFORE(_xlpm.Contract,\"-\"),100),\"00\"),\n_xlpm.Program,_xlfn.TEXTAFTER(_xlfn.TEXTBEFORE(_xlpm.Contract,\"-\",2),\"-\"),\n_xlpm.CleanProgram,_xlfn.XLOOKUP(_xlpm.Program,SpellCheck[Input],SpellCheck[Correction],_xlpm.Program),\n_xlpm.Number,TEXT(_xlfn.TEXTAFTER(_xlpm.Contract,\"-\",2),\"0000\"),\n_xlfn.CONCAT(_xlpm.Yr,\"-\",_xlpm.CleanProgram,\"-\",_xlpm.Number))\n),\"\")","v":""},{"$f":"IF(A205=\"\",\"\",'1. Checklist & Certification'!$B$9)","v":""},{"$f":"IF(A205=\"\",\"\",'1. Checklist & Certification'!$F$9)","v":""},{"$f":"IF(A205=\"\",\"\",'1. Checklist & Certification'!$C$10)","v":""},{"$f":"IF(A205=\"\",\"\",'1. Checklist & Certification'!$C$11)","v":""},{"$f":"IF(A205=\"\",\"\",'1. Checklist & Certification'!$C$12)","v":""},{"$f":"IF(A205=\"\",\"\",'1. Checklist & Certification'!$B$14)","v":""},{"$f":"IF(A205=\"\",\"\",'1. Checklist & Certification'!$E$14)","v":""},{"$f":"IF(B205=\"\",\"\",'1. Checklist & Certification'!$G$14)","v":""},{"$f":"IF(A205=\"\",\"\",'MHP Family Income & Rent Limits'!$B$3)","v":""},{"$f":"IF(A205=\"\",\"\",'MHP Family Income & Rent Limits'!$J$3)","v":""},{"$f":"IF(A205=\"\",\"\",'MHP Family Income & Rent Limits'!$E$4)","v":""},{"$f":"IF(A205=\"\",\"\",'MHP Family Income & Rent Limits'!$C$7)","v":""},{"$f":"IF(A205=\"\",\"\",'MHP Family Income & Rent Limits'!$F$8)","v":""},{"$f":"IF(A205=\"\",\"\",'1. Checklist & Certification'!$G$4)","v":""},{"$f":"IF(A205=\"\",\"\",'1. Checklist & Certification'!$K$39)","v":""},{"$f":"IF(A205=\"\",\"\",'1. Checklist & Certification'!$K$43)","v":""},{"$f":"IF(A205=\"\",\"\",'1. Checklist & Certification'!$K$45)","v":""},{"$f":"IF(A205=\"\",\"\",'1. Checklist & Certification'!$K$49)","v":""},{"$f":"IF(A205=\"\",\"\",'1. Checklist & Certification'!$K$62)","v":""},{"$f":"IF(A205=\"\",\"\",'1. Checklist & Certification'!$E$66)","v":""},{"$f":"IF(A205=\"\",\"\",'1. Checklist & Certification'!$E$67)","v":""},{"$f":"IF(A205=\"\",\"\",'1. Checklist & Certification'!$E$68)","v":""},{"$f":"IF(A205=\"\",\"\",'1. Checklist & Certification'!$G$66)","v":""},{"$f":"IF(A205=\"\",\"\",'1. Checklist & Certification'!$H$66)","v":""},{"$f":"IF(A205=\"\",\"\",'1. Checklist & Certification'!$I$66)","v":""},{"$f":"IF(A205=\"\",\"\",'1. Checklist & Certification'!$I$67)","v":""},{"$f":"IF(A205=\"\",\"\",'1. Checklist & Certification'!$I$68)","v":""},{"$f":"IF(A205=\"\",\"\",'1. Checklist & Certification'!$B$69)","v":""},{"$f":"IF(A205=\"\",\"\",'1. Checklist & Certification'!$C$69)","v":""},{"$f":"IF(A205=\"\",\"\",'1. Checklist & Certification'!$F$69)","v":""},{"$f":"IF(A205=\"\",\"\",'1. Checklist & Certification'!$G$69)","v":""},{"$f":"IF(A205=\"\",\"\",'1. Checklist & Certification'!$J$69)","v":""},{"$f":"IF(A205=\"\",\"\",'1. Checklist & Certification'!$K$69)","v":""},null,null,{"$f":"IF(AND(OR('1. Checklist & Certification'!$M$16=1,'1. Checklist & Certification'!$M$19=2),AO205>0,B205=\"\",I205>0,AQ205<I205,AV205<>\"Sec 8-Project\"),\"X\",IF(AND(OR('1. Checklist & Certification'!$M$20=4,'1. Checklist & Certification'!$M$21=5,'1. Checklist & Certification'!$M$22=7),AO205>0,B205=\"\",I205>0,K205<I205),\"X\",\"\"))","v":""},{"$f":"IF(A205=\"\",\"\",IF(SUMPRODUCT(-- (ISNUMBER(SEARCH({\"*AHSC*\",\"*FMTW*\",\"*FWHG*\",\"*GHI*\",\"*HHC*\",\"*HLCP*\",\"*HOME*\",\"*LPR*\",\"*MHP*\",\"*NHTF*\",\"*NSP*\",\"*PRP*\",\"*TOD*\",\"*VHHP*\"},'1. Checklist & Certification'!$L$7)))),\"MHP\",\"Legacy\"))","v":""},",,",null,null,null,{"$f":"IF('1. Checklist & Certification'!$M$20=4,\"Both\",IF(OR('1. Checklist & Certification'!$M$15>0,S205=\"CHRP-R\",U205=\"CHRP-R\",W205=\"CHRP-R\",Y205=\"CHRP-R\"),\"Under\",\"No\"))","v":"No"},"No","No",{"$f":"_xlfn.IFS(D205=\"\",\"\",D205=1,'MHP Family Income & Rent Limits'!$E$17,D205=2,'MHP Family Income & Rent Limits'!$F$17,D205=3,'MHP Family Income & Rent Limits'!$G$17,D205=4,'MHP Family Income & Rent Limits'!$H$17,D205=5,'MHP Family Income & Rent Limits'!$I$17,D205=6,'MHP Family Income & Rent Limits'!$J$17,D205=7,'MHP Family Income & Rent Limits'!$K$17,D205=8,'MHP Family Income & Rent Limits'!$L$17)","v":""},"",{"$f":"IF(OR(A205=0,B205=\"X\"),0,MIN(IF(AA205:AD205<>0,AA205:AD205)))","v":0},{"$f":"IF(OR(H205=\"\",I205=\"\"),0,IF(H205*0.3/12>I205,MIN(H205*0.3/12,I205*1.1)+AP205,I205*(1+(VLOOKUP('1. Checklist & Certification'!$F$9,'HLCP-E Rent Change'!$A$1:$D$59,4,FALSE)))+AP205))","v":0}]
[null,null,null,null,null,null,null,null,null,null,null,null,null,null,null,null,null,null,null,null,null,null,null,null,null,null,0,0,0,0,0,0,0,0,{"$f":"IF(OR(A206=0,B206=\"X\"),0,IF(OR(S206=\"FHDP\",S206=\"RHCP-B\",U206=\"FHDP\",U206=\"RHCP-B\",W206=\"FHDP\",W206=\"RHCP-B\",Y206=\"FHDP\",Y206=\"RHCP-B\"),TRUNC((MIN(I206,K206)*(1+'1. Checklist & Certification'!$K$43)+AP206)),0))","v":0},{"$f":"IF(OR(A206=0,B206=\"X\"),0,IF(OR(S206=\"CHRP-R\",S206=\"SERA\",S206=\"SUHRP\",U206=\"CHRP-R\",U206=\"SERA\",U206=\"SUHRP\",W206=\"CHRP-R\",W206=\"SERA\",W206=\"SUHRP\",Y206=\"CHRP-R\",Y206=\"SERA\",Y206=\"SUHRP\"),TRUNC((MIN(I206,K206)*(1+'1. Checklist & Certification'!$K$49))),0))","v":0},{"$f":"IF(OR(A206=0,B206=\"X\"),0,IF(OR(S206=\"CALDAP\",S206=\"DPRLP\",U206=\"CALDAP\",U206=\"DPRLP\",W206=\"CALDAP\",W206=\"DPRLP\",Y206=\"CALDAP\",Y206=\"DPRLP\"),TRUNC(((MIN(I206,K206))*(1+'1. Checklist & Certification'!$G$4))),0))","v":0},0,0,0,{"$f":"IF(OR(A206=0,B206=\"X\"),0,IF(OR(S206=\"PRP\",S206=\"LPR\",U206=\"PRP\",U206=\"LPR\",W206=\"PRP\",W206=\"LPR\",Y206=\"PRP\",Y206=\"LPR\"),MAX(I206+AP206,MIN(IF(AE206:AN206<>0,AE206:AN206))),MIN(IF(AE206:AN206<>0,AE206:AN206))))","v":0},{"$f":"IF(A206=0,0,IF(AND(OR(S206=\"Mgr\",S206=0),OR(U206=\"Mgr\",U206=0),OR(W206=\"Mgr\",W206=0)),0,IF(LEFT($A206,2)=\"B*\",VLOOKUP($E206,'1. Checklist & Certification'!$D$26:$E$32,2),IF(LEFT($A206,2)=\"C*\",VLOOKUP($E206,'1. Checklist & Certification'!$F$26:$G$32,2),IF(LEFT($A206,2)=\"D*\",VLOOKUP($E206,'1. Checklist & Certification'!$H$26:$I$32,2),IF(LEFT($A206,2)=\"E*\",VLOOKUP($E206,'1. Checklist & Certification'!$J$26:$K$32,2),VLOOKUP($E206,'1. Checklist & Certification'!$A$26:$B$32,2)))))))","v":0},0,0,null,null,null,null,"","",0,0,0,null,{"$f":"IF(A206=\"\",\"\",'1. Checklist & Certification'!$K$1)","v":""},{"$f":"IF(A206=\"\",\"\",'1. Checklist & Certification'!$C$62)","v":""},{"$f":"IF(A206=\"\",\"\",'1. Checklist & Certification'!$C$6)","v":""},{"$f":"IF(A206=\"\",\"\",'1. Checklist & Certification'!$G$5)","v":""},{"$f":"IFERROR(IF(A206=\"\",\"\",\n_xlfn.LET(_xlpm.Contract,'1. Checklist & Certification'!$C$7,\n_xlpm.Yr,TEXT(MOD(_xlfn.TEXTBEFORE(_xlpm.Contract,\"-\"),100),\"00\"),\n_xlpm.Program,_xlfn.TEXTAFTER(_xlfn.TEXTBEFORE(_xlpm.Contract,\"-\",2),\"-\"),\n_xlpm.CleanProgram,_xlfn.XLOOKUP(_xlpm.Program,SpellCheck[Input],SpellCheck[Correction],_xlpm.Program),\n_xlpm.Number,TEXT(_xlfn.TEXTAFTER(_xlpm.Contract,\"-\",2),\"0000\"),\n_xlfn.CONCAT(_xlpm.Yr,\"-\",_xlpm.CleanProgram,\"-\",_xlpm.Number))\n),\"\")","v":""},{"$f":"IFERROR(IF(A206=\"\",\"\",\n_xlfn.LET(_xlpm.Contract,'1. Checklist & Certification'!$C$8,\n_xlpm.Yr,TEXT(MOD(_xlfn.TEXTBEFORE(_xlpm.Contract,\"-\"),100),\"00\"),\n_xlpm.Program,_xlfn.TEXTAFTER(_xlfn.TEXTBEFORE(_xlpm.Contract,\"-\",2),\"-\"),\n_xlpm.CleanProgram,_xlfn.XLOOKUP(_xlpm.Program,SpellCheck[Input],SpellCheck[Correction],_xlpm.Program),\n_xlpm.Number,TEXT(_xlfn.TEXTAFTER(_xlpm.Contract,\"-\",2),\"0000\"),\n_xlfn.CONCAT(_xlpm.Yr,\"-\",_xlpm.CleanProgram,\"-\",_xlpm.Number))\n),\"\")","v":""},{"$f":"IFERROR(IF(A206=\"\",\"\",\n_xlfn.LET(_xlpm.Contract,'1. Checklist & Certification'!$F$7,\n_xlpm.Yr,TEXT(MOD(_xlfn.TEXTBEFORE(_xlpm.Contract,\"-\"),100),\"00\"),\n_xlpm.Program,_xlfn.TEXTAFTER(_xlfn.TEXTBEFORE(_xlpm.Contract,\"-\",2),\"-\"),\n_xlpm.CleanProgram,_xlfn.XLOOKUP(_xlpm.Program,SpellCheck[Input],SpellCheck[Correction],_xlpm.Program),\n_xlpm.Number,TEXT(_xlfn.TEXTAFTER(_xlpm.Contract,\"-\",2),\"0000\"),\n_xlfn.CONCAT(_xlpm.Yr,\"-\",_xlpm.CleanProgram,\"-\",_xlpm.Number))\n),\"\")","v":""},{"$f":"IFERROR(IF(A206=\"\",\"\",\n_xlfn.LET(_xlpm.Contract,'1. Checklist & Certification'!$F$8,\n_xlpm.Yr,TEXT(MOD(_xlfn.TEXTBEFORE(_xlpm.Contract,\"-\"),100),\"00\"),\n_xlpm.Program,_xlfn.TEXTAFTER(_xlfn.TEXTBEFORE(_xlpm.Contract,\"-\",2),\"-\"),\n_xlpm.CleanProgram,_xlfn.XLOOKUP(_xlpm.Program,SpellCheck[Input],SpellCheck[Correction],_xlpm.Program),\n_xlpm.Number,TEXT(_xlfn.TEXTAFTER(_xlpm.Contract,\"-\",2),\"0000\"),\n_xlfn.CONCAT(_xlpm.Yr,\"-\",_xlpm.CleanProgram,\"-\",_xlpm.Number))\n),\"\")","v":""},{"$f":"IF(A206=\"\",\"\",'1. Checklist & Certification'!$B$9)","v":""},{"$f":"IF(A206=\"\",\"\",'1. Checklist & Certification'!$F$9)","v":""},{"$f":"IF(A206=\"\",\"\",'1. Checklist & Certification'!$C$10)","v":""},{"$f":"IF(A206=\"\",\"\",'1. Checklist & Certification'!$C$11)","v":""},{"$f":"IF(A206=\"\",\"\",'1. Checklist & Certification'!$C$12)","v":""},{"$f":"IF(A206=\"\",\"\",'1. Checklist & Certification'!$B$14)","v":""},{"$f":"IF(A206=\"\",\"\",'1. Checklist & Certification'!$E$14)","v":""},{"$f":"IF(B206=\"\",\"\",'1. Checklist & Certification'!$G$14)","v":""},{"$f":"IF(A206=\"\",\"\",'MHP Family Income & Rent Limits'!$B$3)","v":""},{"$f":"IF(A206=\"\",\"\",'MHP Family Income & Rent Limits'!$J$3)","v":""},{"$f":"IF(A206=\"\",\"\",'MHP Family Income & Rent Limits'!$E$4)","v":""},{"$f":"IF(A206=\"\",\"\",'MHP Family Income & Rent Limits'!$C$7)","v":""},{"$f":"IF(A206=\"\",\"\",'MHP Family Income & Rent Limits'!$F$8)","v":""},{"$f":"IF(A206=\"\",\"\",'1. Checklist & Certification'!$G$4)","v":""},{"$f":"IF(A206=\"\",\"\",'1. Checklist & Certification'!$K$39)","v":""},{"$f":"IF(A206=\"\",\"\",'1. Checklist & Certification'!$K$43)","v":""},{"$f":"IF(A206=\"\",\"\",'1. Checklist & Certification'!$K$45)","v":""},{"$f":"IF(A206=\"\",\"\",'1. Checklist & Certification'!$K$49)","v":""},{"$f":"IF(A206=\"\",\"\",'1. Checklist & Certification'!$K$62)","v":""},{"$f":"IF(A206=\"\",\"\",'1. Checklist & Certification'!$E$66)","v":""},{"$f":"IF(A206=\"\",\"\",'1. Checklist & Certification'!$E$67)","v":""},{"$f":"IF(A206=\"\",\"\",'1. Checklist & Certification'!$E$68)","v":""},{"$f":"IF(A206=\"\",\"\",'1. Checklist & Certification'!$G$66)","v":""},{"$f":"IF(A206=\"\",\"\",'1. Checklist & Certification'!$H$66)","v":""},{"$f":"IF(A206=\"\",\"\",'1. Checklist & Certification'!$I$66)","v":""},{"$f":"IF(A206=\"\",\"\",'1. Checklist & Certification'!$I$67)","v":""},{"$f":"IF(A206=\"\",\"\",'1. Checklist & Certification'!$I$68)","v":""},{"$f":"IF(A206=\"\",\"\",'1. Checklist & Certification'!$B$69)","v":""},{"$f":"IF(A206=\"\",\"\",'1. Checklist & Certification'!$C$69)","v":""},{"$f":"IF(A206=\"\",\"\",'1. Checklist & Certification'!$F$69)","v":""},{"$f":"IF(A206=\"\",\"\",'1. Checklist & Certification'!$G$69)","v":""},{"$f":"IF(A206=\"\",\"\",'1. Checklist & Certification'!$J$69)","v":""},{"$f":"IF(A206=\"\",\"\",'1. Checklist & Certification'!$K$69)","v":""},null,null,{"$f":"IF(AND(OR('1. Checklist & Certification'!$M$16=1,'1. Checklist & Certification'!$M$19=2),AO206>0,B206=\"\",I206>0,AQ206<I206,AV206<>\"Sec 8-Project\"),\"X\",IF(AND(OR('1. Checklist & Certification'!$M$20=4,'1. Checklist & Certification'!$M$21=5,'1. Checklist & Certification'!$M$22=7),AO206>0,B206=\"\",I206>0,K206<I206),\"X\",\"\"))","v":""},{"$f":"IF(A206=\"\",\"\",IF(SUMPRODUCT(-- (ISNUMBER(SEARCH({\"*AHSC*\",\"*FMTW*\",\"*FWHG*\",\"*GHI*\",\"*HHC*\",\"*HLCP*\",\"*HOME*\",\"*LPR*\",\"*MHP*\",\"*NHTF*\",\"*NSP*\",\"*PRP*\",\"*TOD*\",\"*VHHP*\"},'1. Checklist & Certification'!$L$7)))),\"MHP\",\"Legacy\"))","v":""},",,",null,null,null,{"$f":"IF('1. Checklist & Certification'!$M$20=4,\"Both\",IF(OR('1. Checklist & Certification'!$M$15>0,S206=\"CHRP-R\",U206=\"CHRP-R\",W206=\"CHRP-R\",Y206=\"CHRP-R\"),\"Under\",\"No\"))","v":"No"},"No","No",{"$f":"_xlfn.IFS(D206=\"\",\"\",D206=1,'MHP Family Income & Rent Limits'!$E$17,D206=2,'MHP Family Income & Rent Limits'!$F$17,D206=3,'MHP Family Income & Rent Limits'!$G$17,D206=4,'MHP Family Income & Rent Limits'!$H$17,D206=5,'MHP Family Income & Rent Limits'!$I$17,D206=6,'MHP Family Income & Rent Limits'!$J$17,D206=7,'MHP Family Income & Rent Limits'!$K$17,D206=8,'MHP Family Income & Rent Limits'!$L$17)","v":""},"",{"$f":"IF(OR(A206=0,B206=\"X\"),0,MIN(IF(AA206:AD206<>0,AA206:AD206)))","v":0},{"$f":"IF(OR(H206=\"\",I206=\"\"),0,IF(H206*0.3/12>I206,MIN(H206*0.3/12,I206*1.1)+AP206,I206*(1+(VLOOKUP('1. Checklist & Certification'!$F$9,'HLCP-E Rent Change'!$A$1:$D$59,4,FALSE)))+AP206))","v":0}]
[null,null,null,null,null,null,null,null,null,null,null,null,null,null,null,null,null,null,null,null,null,null,null,null,null,null,0,0,0,0,0,0,0,0,{"$f":"IF(OR(A207=0,B207=\"X\"),0,IF(OR(S207=\"FHDP\",S207=\"RHCP-B\",U207=\"FHDP\",U207=\"RHCP-B\",W207=\"FHDP\",W207=\"RHCP-B\",Y207=\"FHDP\",Y207=\"RHCP-B\"),TRUNC((MIN(I207,K207)*(1+'1. Checklist & Certification'!$K$43)+AP207)),0))","v":0},{"$f":"IF(OR(A207=0,B207=\"X\"),0,IF(OR(S207=\"CHRP-R\",S207=\"SERA\",S207=\"SUHRP\",U207=\"CHRP-R\",U207=\"SERA\",U207=\"SUHRP\",W207=\"CHRP-R\",W207=\"SERA\",W207=\"SUHRP\",Y207=\"CHRP-R\",Y207=\"SERA\",Y207=\"SUHRP\"),TRUNC((MIN(I207,K207)*(1+'1. Checklist & Certification'!$K$49))),0))","v":0},{"$f":"IF(OR(A207=0,B207=\"X\"),0,IF(OR(S207=\"CALDAP\",S207=\"DPRLP\",U207=\"CALDAP\",U207=\"DPRLP\",W207=\"CALDAP\",W207=\"DPRLP\",Y207=\"CALDAP\",Y207=\"DPRLP\"),TRUNC(((MIN(I207,K207))*(1+'1. Checklist & Certification'!$G$4))),0))","v":0},0,0,0,{"$f":"IF(OR(A207=0,B207=\"X\"),0,IF(OR(S207=\"PRP\",S207=\"LPR\",U207=\"PRP\",U207=\"LPR\",W207=\"PRP\",W207=\"LPR\",Y207=\"PRP\",Y207=\"LPR\"),MAX(I207+AP207,MIN(IF(AE207:AN207<>0,AE207:AN207))),MIN(IF(AE207:AN207<>0,AE207:AN207))))","v":0},{"$f":"IF(A207=0,0,IF(AND(OR(S207=\"Mgr\",S207=0),OR(U207=\"Mgr\",U207=0),OR(W207=\"Mgr\",W207=0)),0,IF(LEFT($A207,2)=\"B*\",VLOOKUP($E207,'1. Checklist & Certification'!$D$26:$E$32,2),IF(LEFT($A207,2)=\"C*\",VLOOKUP($E207,'1. Checklist & Certification'!$F$26:$G$32,2),IF(LEFT($A207,2)=\"D*\",VLOOKUP($E207,'1. Checklist & Certification'!$H$26:$I$32,2),IF(LEFT($A207,2)=\"E*\",VLOOKUP($E207,'1. Checklist & Certification'!$J$26:$K$32,2),VLOOKUP($E207,'1. Checklist & Certification'!$A$26:$B$32,2)))))))","v":0},0,0,null,null,null,null,"","",0,0,0,null,{"$f":"IF(A207=\"\",\"\",'1. Checklist & Certification'!$K$1)","v":""},{"$f":"IF(A207=\"\",\"\",'1. Checklist & Certification'!$C$62)","v":""},{"$f":"IF(A207=\"\",\"\",'1. Checklist & Certification'!$C$6)","v":""},{"$f":"IF(A207=\"\",\"\",'1. Checklist & Certification'!$G$5)","v":""},{"$f":"IFERROR(IF(A207=\"\",\"\",\n_xlfn.LET(_xlpm.Contract,'1. Checklist & Certification'!$C$7,\n_xlpm.Yr,TEXT(MOD(_xlfn.TEXTBEFORE(_xlpm.Contract,\"-\"),100),\"00\"),\n_xlpm.Program,_xlfn.TEXTAFTER(_xlfn.TEXTBEFORE(_xlpm.Contract,\"-\",2),\"-\"),\n_xlpm.CleanProgram,_xlfn.XLOOKUP(_xlpm.Program,SpellCheck[Input],SpellCheck[Correction],_xlpm.Program),\n_xlpm.Number,TEXT(_xlfn.TEXTAFTER(_xlpm.Contract,\"-\",2),\"0000\"),\n_xlfn.CONCAT(_xlpm.Yr,\"-\",_xlpm.CleanProgram,\"-\",_xlpm.Number))\n),\"\")","v":""},{"$f":"IFERROR(IF(A207=\"\",\"\",\n_xlfn.LET(_xlpm.Contract,'1. Checklist & Certification'!$C$8,\n_xlpm.Yr,TEXT(MOD(_xlfn.TEXTBEFORE(_xlpm.Contract,\"-\"),100),\"00\"),\n_xlpm.Program,_xlfn.TEXTAFTER(_xlfn.TEXTBEFORE(_xlpm.Contract,\"-\",2),\"-\"),\n_xlpm.CleanProgram,_xlfn.XLOOKUP(_xlpm.Program,SpellCheck[Input],SpellCheck[Correction],_xlpm.Program),\n_xlpm.Number,TEXT(_xlfn.TEXTAFTER(_xlpm.Contract,\"-\",2),\"0000\"),\n_xlfn.CONCAT(_xlpm.Yr,\"-\",_xlpm.CleanProgram,\"-\",_xlpm.Number))\n),\"\")","v":""},{"$f":"IFERROR(IF(A207=\"\",\"\",\n_xlfn.LET(_xlpm.Contract,'1. Checklist & Certification'!$F$7,\n_xlpm.Yr,TEXT(MOD(_xlfn.TEXTBEFORE(_xlpm.Contract,\"-\"),100),\"00\"),\n_xlpm.Program,_xlfn.TEXTAFTER(_xlfn.TEXTBEFORE(_xlpm.Contract,\"-\",2),\"-\"),\n_xlpm.CleanProgram,_xlfn.XLOOKUP(_xlpm.Program,SpellCheck[Input],SpellCheck[Correction],_xlpm.Program),\n_xlpm.Number,TEXT(_xlfn.TEXTAFTER(_xlpm.Contract,\"-\",2),\"0000\"),\n_xlfn.CONCAT(_xlpm.Yr,\"-\",_xlpm.CleanProgram,\"-\",_xlpm.Number))\n),\"\")","v":""},{"$f":"IFERROR(IF(A207=\"\",\"\",\n_xlfn.LET(_xlpm.Contract,'1. Checklist & Certification'!$F$8,\n_xlpm.Yr,TEXT(MOD(_xlfn.TEXTBEFORE(_xlpm.Contract,\"-\"),100),\"00\"),\n_xlpm.Program,_xlfn.TEXTAFTER(_xlfn.TEXTBEFORE(_xlpm.Contract,\"-\",2),\"-\"),\n_xlpm.CleanProgram,_xlfn.XLOOKUP(_xlpm.Program,SpellCheck[Input],SpellCheck[Correction],_xlpm.Program),\n_xlpm.Number,TEXT(_xlfn.TEXTAFTER(_xlpm.Contract,\"-\",2),\"0000\"),\n_xlfn.CONCAT(_xlpm.Yr,\"-\",_xlpm.CleanProgram,\"-\",_xlpm.Number))\n),\"\")","v":""},{"$f":"IF(A207=\"\",\"\",'1. Checklist & Certification'!$B$9)","v":""},{"$f":"IF(A207=\"\",\"\",'1. Checklist & Certification'!$F$9)","v":""},{"$f":"IF(A207=\"\",\"\",'1. Checklist & Certification'!$C$10)","v":""},{"$f":"IF(A207=\"\",\"\",'1. Checklist & Certification'!$C$11)","v":""},{"$f":"IF(A207=\"\",\"\",'1. Checklist & Certification'!$C$12)","v":""},{"$f":"IF(A207=\"\",\"\",'1. Checklist & Certification'!$B$14)","v":""},{"$f":"IF(A207=\"\",\"\",'1. Checklist & Certification'!$E$14)","v":""},{"$f":"IF(B207=\"\",\"\",'1. Checklist & Certification'!$G$14)","v":""},{"$f":"IF(A207=\"\",\"\",'MHP Family Income & Rent Limits'!$B$3)","v":""},{"$f":"IF(A207=\"\",\"\",'MHP Family Income & Rent Limits'!$J$3)","v":""},{"$f":"IF(A207=\"\",\"\",'MHP Family Income & Rent Limits'!$E$4)","v":""},{"$f":"IF(A207=\"\",\"\",'MHP Family Income & Rent Limits'!$C$7)","v":""},{"$f":"IF(A207=\"\",\"\",'MHP Family Income & Rent Limits'!$F$8)","v":""},{"$f":"IF(A207=\"\",\"\",'1. Checklist & Certification'!$G$4)","v":""},{"$f":"IF(A207=\"\",\"\",'1. Checklist & Certification'!$K$39)","v":""},{"$f":"IF(A207=\"\",\"\",'1. Checklist & Certification'!$K$43)","v":""},{"$f":"IF(A207=\"\",\"\",'1. Checklist & Certification'!$K$45)","v":""},{"$f":"IF(A207=\"\",\"\",'1. Checklist & Certification'!$K$49)","v":""},{"$f":"IF(A207=\"\",\"\",'1. Checklist & Certification'!$K$62)","v":""},{"$f":"IF(A207=\"\",\"\",'1. Checklist & Certification'!$E$66)","v":""},{"$f":"IF(A207=\"\",\"\",'1. Checklist & Certification'!$E$67)","v":""},{"$f":"IF(A207=\"\",\"\",'1. Checklist & Certification'!$E$68)","v":""},{"$f":"IF(A207=\"\",\"\",'1. Checklist & Certification'!$G$66)","v":""},{"$f":"IF(A207=\"\",\"\",'1. Checklist & Certification'!$H$66)","v":""},{"$f":"IF(A207=\"\",\"\",'1. Checklist & Certification'!$I$66)","v":""},{"$f":"IF(A207=\"\",\"\",'1. Checklist & Certification'!$I$67)","v":""},{"$f":"IF(A207=\"\",\"\",'1. Checklist & Certification'!$I$68)","v":""},{"$f":"IF(A207=\"\",\"\",'1. Checklist & Certification'!$B$69)","v":""},{"$f":"IF(A207=\"\",\"\",'1. Checklist & Certification'!$C$69)","v":""},{"$f":"IF(A207=\"\",\"\",'1. Checklist & Certification'!$F$69)","v":""},{"$f":"IF(A207=\"\",\"\",'1. Checklist & Certification'!$G$69)","v":""},{"$f":"IF(A207=\"\",\"\",'1. Checklist & Certification'!$J$69)","v":""},{"$f":"IF(A207=\"\",\"\",'1. Checklist & Certification'!$K$69)","v":""},null,null,{"$f":"IF(AND(OR('1. Checklist & Certification'!$M$16=1,'1. Checklist & Certification'!$M$19=2),AO207>0,B207=\"\",I207>0,AQ207<I207,AV207<>\"Sec 8-Project\"),\"X\",IF(AND(OR('1. Checklist & Certification'!$M$20=4,'1. Checklist & Certification'!$M$21=5,'1. Checklist & Certification'!$M$22=7),AO207>0,B207=\"\",I207>0,K207<I207),\"X\",\"\"))","v":""},{"$f":"IF(A207=\"\",\"\",IF(SUMPRODUCT(-- (ISNUMBER(SEARCH({\"*AHSC*\",\"*FMTW*\",\"*FWHG*\",\"*GHI*\",\"*HHC*\",\"*HLCP*\",\"*HOME*\",\"*LPR*\",\"*MHP*\",\"*NHTF*\",\"*NSP*\",\"*PRP*\",\"*TOD*\",\"*VHHP*\"},'1. Checklist & Certification'!$L$7)))),\"MHP\",\"Legacy\"))","v":""},",,",null,null,null,{"$f":"IF('1. Checklist & Certification'!$M$20=4,\"Both\",IF(OR('1. Checklist & Certification'!$M$15>0,S207=\"CHRP-R\",U207=\"CHRP-R\",W207=\"CHRP-R\",Y207=\"CHRP-R\"),\"Under\",\"No\"))","v":"No"},"No","No",{"$f":"_xlfn.IFS(D207=\"\",\"\",D207=1,'MHP Family Income & Rent Limits'!$E$17,D207=2,'MHP Family Income & Rent Limits'!$F$17,D207=3,'MHP Family Income & Rent Limits'!$G$17,D207=4,'MHP Family Income & Rent Limits'!$H$17,D207=5,'MHP Family Income & Rent Limits'!$I$17,D207=6,'MHP Family Income & Rent Limits'!$J$17,D207=7,'MHP Family Income & Rent Limits'!$K$17,D207=8,'MHP Family Income & Rent Limits'!$L$17)","v":""},"",{"$f":"IF(OR(A207=0,B207=\"X\"),0,MIN(IF(AA207:AD207<>0,AA207:AD207)))","v":0},{"$f":"IF(OR(H207=\"\",I207=\"\"),0,IF(H207*0.3/12>I207,MIN(H207*0.3/12,I207*1.1)+AP207,I207*(1+(VLOOKUP('1. Checklist & Certification'!$F$9,'HLCP-E Rent Change'!$A$1:$D$59,4,FALSE)))+AP207))","v":0}]
[null,null,null,null,null,null,null,null,null,null,null,null,null,null,null,null,null,null,null,null,null,null,null,null,null,null,0,0,0,0,0,0,0,0,{"$f":"IF(OR(A208=0,B208=\"X\"),0,IF(OR(S208=\"FHDP\",S208=\"RHCP-B\",U208=\"FHDP\",U208=\"RHCP-B\",W208=\"FHDP\",W208=\"RHCP-B\",Y208=\"FHDP\",Y208=\"RHCP-B\"),TRUNC((MIN(I208,K208)*(1+'1. Checklist & Certification'!$K$43)+AP208)),0))","v":0},{"$f":"IF(OR(A208=0,B208=\"X\"),0,IF(OR(S208=\"CHRP-R\",S208=\"SERA\",S208=\"SUHRP\",U208=\"CHRP-R\",U208=\"SERA\",U208=\"SUHRP\",W208=\"CHRP-R\",W208=\"SERA\",W208=\"SUHRP\",Y208=\"CHRP-R\",Y208=\"SERA\",Y208=\"SUHRP\"),TRUNC((MIN(I208,K208)*(1+'1. Checklist & Certification'!$K$49))),0))","v":0},{"$f":"IF(OR(A208=0,B208=\"X\"),0,IF(OR(S208=\"CALDAP\",S208=\"DPRLP\",U208=\"CALDAP\",U208=\"DPRLP\",W208=\"CALDAP\",W208=\"DPRLP\",Y208=\"CALDAP\",Y208=\"DPRLP\"),TRUNC(((MIN(I208,K208))*(1+'1. Checklist & Certification'!$G$4))),0))","v":0},0,0,0,{"$f":"IF(OR(A208=0,B208=\"X\"),0,IF(OR(S208=\"PRP\",S208=\"LPR\",U208=\"PRP\",U208=\"LPR\",W208=\"PRP\",W208=\"LPR\",Y208=\"PRP\",Y208=\"LPR\"),MAX(I208+AP208,MIN(IF(AE208:AN208<>0,AE208:AN208))),MIN(IF(AE208:AN208<>0,AE208:AN208))))","v":0},{"$f":"IF(A208=0,0,IF(AND(OR(S208=\"Mgr\",S208=0),OR(U208=\"Mgr\",U208=0),OR(W208=\"Mgr\",W208=0)),0,IF(LEFT($A208,2)=\"B*\",VLOOKUP($E208,'1. Checklist & Certification'!$D$26:$E$32,2),IF(LEFT($A208,2)=\"C*\",VLOOKUP($E208,'1. Checklist & Certification'!$F$26:$G$32,2),IF(LEFT($A208,2)=\"D*\",VLOOKUP($E208,'1. Checklist & Certification'!$H$26:$I$32,2),IF(LEFT($A208,2)=\"E*\",VLOOKUP($E208,'1. Checklist & Certification'!$J$26:$K$32,2),VLOOKUP($E208,'1. Checklist & Certification'!$A$26:$B$32,2)))))))","v":0},0,0,null,null,null,null,"","",0,0,0,null,{"$f":"IF(A208=\"\",\"\",'1. Checklist & Certification'!$K$1)","v":""},{"$f":"IF(A208=\"\",\"\",'1. Checklist & Certification'!$C$62)","v":""},{"$f":"IF(A208=\"\",\"\",'1. Checklist & Certification'!$C$6)","v":""},{"$f":"IF(A208=\"\",\"\",'1. Checklist & Certification'!$G$5)","v":""},{"$f":"IFERROR(IF(A208=\"\",\"\",\n_xlfn.LET(_xlpm.Contract,'1. Checklist & Certification'!$C$7,\n_xlpm.Yr,TEXT(MOD(_xlfn.TEXTBEFORE(_xlpm.Contract,\"-\"),100),\"00\"),\n_xlpm.Program,_xlfn.TEXTAFTER(_xlfn.TEXTBEFORE(_xlpm.Contract,\"-\",2),\"-\"),\n_xlpm.CleanProgram,_xlfn.XLOOKUP(_xlpm.Program,SpellCheck[Input],SpellCheck[Correction],_xlpm.Program),\n_xlpm.Number,TEXT(_xlfn.TEXTAFTER(_xlpm.Contract,\"-\",2),\"0000\"),\n_xlfn.CONCAT(_xlpm.Yr,\"-\",_xlpm.CleanProgram,\"-\",_xlpm.Number))\n),\"\")","v":""},{"$f":"IFERROR(IF(A208=\"\",\"\",\n_xlfn.LET(_xlpm.Contract,'1. Checklist & Certification'!$C$8,\n_xlpm.Yr,TEXT(MOD(_xlfn.TEXTBEFORE(_xlpm.Contract,\"-\"),100),\"00\"),\n_xlpm.Program,_xlfn.TEXTAFTER(_xlfn.TEXTBEFORE(_xlpm.Contract,\"-\",2),\"-\"),\n_xlpm.CleanProgram,_xlfn.XLOOKUP(_xlpm.Program,SpellCheck[Input],SpellCheck[Correction],_xlpm.Program),\n_xlpm.Number,TEXT(_xlfn.TEXTAFTER(_xlpm.Contract,\"-\",2),\"0000\"),\n_xlfn.CONCAT(_xlpm.Yr,\"-\",_xlpm.CleanProgram,\"-\",_xlpm.Number))\n),\"\")","v":""},{"$f":"IFERROR(IF(A208=\"\",\"\",\n_xlfn.LET(_xlpm.Contract,'1. Checklist & Certification'!$F$7,\n_xlpm.Yr,TEXT(MOD(_xlfn.TEXTBEFORE(_xlpm.Contract,\"-\"),100),\"00\"),\n_xlpm.Program,_xlfn.TEXTAFTER(_xlfn.TEXTBEFORE(_xlpm.Contract,\"-\",2),\"-\"),\n_xlpm.CleanProgram,_xlfn.XLOOKUP(_xlpm.Program,SpellCheck[Input],SpellCheck[Correction],_xlpm.Program),\n_xlpm.Number,TEXT(_xlfn.TEXTAFTER(_xlpm.Contract,\"-\",2),\"0000\"),\n_xlfn.CONCAT(_xlpm.Yr,\"-\",_xlpm.CleanProgram,\"-\",_xlpm.Number))\n),\"\")","v":""},{"$f":"IFERROR(IF(A208=\"\",\"\",\n_xlfn.LET(_xlpm.Contract,'1. Checklist & Certification'!$F$8,\n_xlpm.Yr,TEXT(MOD(_xlfn.TEXTBEFORE(_xlpm.Contract,\"-\"),100),\"00\"),\n_xlpm.Program,_xlfn.TEXTAFTER(_xlfn.TEXTBEFORE(_xlpm.Contract,\"-\",2),\"-\"),\n_xlpm.CleanProgram,_xlfn.XLOOKUP(_xlpm.Program,SpellCheck[Input],SpellCheck[Correction],_xlpm.Program),\n_xlpm.Number,TEXT(_xlfn.TEXTAFTER(_xlpm.Contract,\"-\",2),\"0000\"),\n_xlfn.CONCAT(_xlpm.Yr,\"-\",_xlpm.CleanProgram,\"-\",_xlpm.Number))\n),\"\")","v":""},{"$f":"IF(A208=\"\",\"\",'1. Checklist & Certification'!$B$9)","v":""},{"$f":"IF(A208=\"\",\"\",'1. Checklist & Certification'!$F$9)","v":""},{"$f":"IF(A208=\"\",\"\",'1. Checklist & Certification'!$C$10)","v":""},{"$f":"IF(A208=\"\",\"\",'1. Checklist & Certification'!$C$11)","v":""},{"$f":"IF(A208=\"\",\"\",'1. Checklist & Certification'!$C$12)","v":""},{"$f":"IF(A208=\"\",\"\",'1. Checklist & Certification'!$B$14)","v":""},{"$f":"IF(A208=\"\",\"\",'1. Checklist & Certification'!$E$14)","v":""},{"$f":"IF(B208=\"\",\"\",'1. Checklist & Certification'!$G$14)","v":""},{"$f":"IF(A208=\"\",\"\",'MHP Family Income & Rent Limits'!$B$3)","v":""},{"$f":"IF(A208=\"\",\"\",'MHP Family Income & Rent Limits'!$J$3)","v":""},{"$f":"IF(A208=\"\",\"\",'MHP Family Income & Rent Limits'!$E$4)","v":""},{"$f":"IF(A208=\"\",\"\",'MHP Family Income & Rent Limits'!$C$7)","v":""},{"$f":"IF(A208=\"\",\"\",'MHP Family Income & Rent Limits'!$F$8)","v":""},{"$f":"IF(A208=\"\",\"\",'1. Checklist & Certification'!$G$4)","v":""},{"$f":"IF(A208=\"\",\"\",'1. Checklist & Certification'!$K$39)","v":""},{"$f":"IF(A208=\"\",\"\",'1. Checklist & Certification'!$K$43)","v":""},{"$f":"IF(A208=\"\",\"\",'1. Checklist & Certification'!$K$45)","v":""},{"$f":"IF(A208=\"\",\"\",'1. Checklist & Certification'!$K$49)","v":""},{"$f":"IF(A208=\"\",\"\",'1. Checklist & Certification'!$K$62)","v":""},{"$f":"IF(A208=\"\",\"\",'1. Checklist & Certification'!$E$66)","v":""},{"$f":"IF(A208=\"\",\"\",'1. Checklist & Certification'!$E$67)","v":""},{"$f":"IF(A208=\"\",\"\",'1. Checklist & Certification'!$E$68)","v":""},{"$f":"IF(A208=\"\",\"\",'1. Checklist & Certification'!$G$66)","v":""},{"$f":"IF(A208=\"\",\"\",'1. Checklist & Certification'!$H$66)","v":""},{"$f":"IF(A208=\"\",\"\",'1. Checklist & Certification'!$I$66)","v":""},{"$f":"IF(A208=\"\",\"\",'1. Checklist & Certification'!$I$67)","v":""},{"$f":"IF(A208=\"\",\"\",'1. Checklist & Certification'!$I$68)","v":""},{"$f":"IF(A208=\"\",\"\",'1. Checklist & Certification'!$B$69)","v":""},{"$f":"IF(A208=\"\",\"\",'1. Checklist & Certification'!$C$69)","v":""},{"$f":"IF(A208=\"\",\"\",'1. Checklist & Certification'!$F$69)","v":""},{"$f":"IF(A208=\"\",\"\",'1. Checklist & Certification'!$G$69)","v":""},{"$f":"IF(A208=\"\",\"\",'1. Checklist & Certification'!$J$69)","v":""},{"$f":"IF(A208=\"\",\"\",'1. Checklist & Certification'!$K$69)","v":""},null,null,{"$f":"IF(AND(OR('1. Checklist & Certification'!$M$16=1,'1. Checklist & Certification'!$M$19=2),AO208>0,B208=\"\",I208>0,AQ208<I208,AV208<>\"Sec 8-Project\"),\"X\",IF(AND(OR('1. Checklist & Certification'!$M$20=4,'1. Checklist & Certification'!$M$21=5,'1. Checklist & Certification'!$M$22=7),AO208>0,B208=\"\",I208>0,K208<I208),\"X\",\"\"))","v":""},{"$f":"IF(A208=\"\",\"\",IF(SUMPRODUCT(-- (ISNUMBER(SEARCH({\"*AHSC*\",\"*FMTW*\",\"*FWHG*\",\"*GHI*\",\"*HHC*\",\"*HLCP*\",\"*HOME*\",\"*LPR*\",\"*MHP*\",\"*NHTF*\",\"*NSP*\",\"*PRP*\",\"*TOD*\",\"*VHHP*\"},'1. Checklist & Certification'!$L$7)))),\"MHP\",\"Legacy\"))","v":""},",,",null,null,null,{"$f":"IF('1. Checklist & Certification'!$M$20=4,\"Both\",IF(OR('1. Checklist & Certification'!$M$15>0,S208=\"CHRP-R\",U208=\"CHRP-R\",W208=\"CHRP-R\",Y208=\"CHRP-R\"),\"Under\",\"No\"))","v":"No"},"No","No",{"$f":"_xlfn.IFS(D208=\"\",\"\",D208=1,'MHP Family Income & Rent Limits'!$E$17,D208=2,'MHP Family Income & Rent Limits'!$F$17,D208=3,'MHP Family Income & Rent Limits'!$G$17,D208=4,'MHP Family Income & Rent Limits'!$H$17,D208=5,'MHP Family Income & Rent Limits'!$I$17,D208=6,'MHP Family Income & Rent Limits'!$J$17,D208=7,'MHP Family Income & Rent Limits'!$K$17,D208=8,'MHP Family Income & Rent Limits'!$L$17)","v":""},"",{"$f":"IF(OR(A208=0,B208=\"X\"),0,MIN(IF(AA208:AD208<>0,AA208:AD208)))","v":0},{"$f":"IF(OR(H208=\"\",I208=\"\"),0,IF(H208*0.3/12>I208,MIN(H208*0.3/12,I208*1.1)+AP208,I208*(1+(VLOOKUP('1. Checklist & Certification'!$F$9,'HLCP-E Rent Change'!$A$1:$D$59,4,FALSE)))+AP208))","v":0}]
[null,null,null,null,null,null,null,null,null,null,null,null,null,null,null,null,null,null,null,null,null,null,null,null,null,null,0,0,0,0,0,0,0,0,{"$f":"IF(OR(A209=0,B209=\"X\"),0,IF(OR(S209=\"FHDP\",S209=\"RHCP-B\",U209=\"FHDP\",U209=\"RHCP-B\",W209=\"FHDP\",W209=\"RHCP-B\",Y209=\"FHDP\",Y209=\"RHCP-B\"),TRUNC((MIN(I209,K209)*(1+'1. Checklist & Certification'!$K$43)+AP209)),0))","v":0},{"$f":"IF(OR(A209=0,B209=\"X\"),0,IF(OR(S209=\"CHRP-R\",S209=\"SERA\",S209=\"SUHRP\",U209=\"CHRP-R\",U209=\"SERA\",U209=\"SUHRP\",W209=\"CHRP-R\",W209=\"SERA\",W209=\"SUHRP\",Y209=\"CHRP-R\",Y209=\"SERA\",Y209=\"SUHRP\"),TRUNC((MIN(I209,K209)*(1+'1. Checklist & Certification'!$K$49))),0))","v":0},{"$f":"IF(OR(A209=0,B209=\"X\"),0,IF(OR(S209=\"CALDAP\",S209=\"DPRLP\",U209=\"CALDAP\",U209=\"DPRLP\",W209=\"CALDAP\",W209=\"DPRLP\",Y209=\"CALDAP\",Y209=\"DPRLP\"),TRUNC(((MIN(I209,K209))*(1+'1. Checklist & Certification'!$G$4))),0))","v":0},0,0,0,{"$f":"IF(OR(A209=0,B209=\"X\"),0,IF(OR(S209=\"PRP\",S209=\"LPR\",U209=\"PRP\",U209=\"LPR\",W209=\"PRP\",W209=\"LPR\",Y209=\"PRP\",Y209=\"LPR\"),MAX(I209+AP209,MIN(IF(AE209:AN209<>0,AE209:AN209))),MIN(IF(AE209:AN209<>0,AE209:AN209))))","v":0},{"$f":"IF(A209=0,0,IF(AND(OR(S209=\"Mgr\",S209=0),OR(U209=\"Mgr\",U209=0),OR(W209=\"Mgr\",W209=0)),0,IF(LEFT($A209,2)=\"B*\",VLOOKUP($E209,'1. Checklist & Certification'!$D$26:$E$32,2),IF(LEFT($A209,2)=\"C*\",VLOOKUP($E209,'1. Checklist & Certification'!$F$26:$G$32,2),IF(LEFT($A209,2)=\"D*\",VLOOKUP($E209,'1. Checklist & Certification'!$H$26:$I$32,2),IF(LEFT($A209,2)=\"E*\",VLOOKUP($E209,'1. Checklist & Certification'!$J$26:$K$32,2),VLOOKUP($E209,'1. Checklist & Certification'!$A$26:$B$32,2)))))))","v":0},0,0,null,null,null,null,"","",0,0,0,null,{"$f":"IF(A209=\"\",\"\",'1. Checklist & Certification'!$K$1)","v":""},{"$f":"IF(A209=\"\",\"\",'1. Checklist & Certification'!$C$62)","v":""},{"$f":"IF(A209=\"\",\"\",'1. Checklist & Certification'!$C$6)","v":""},{"$f":"IF(A209=\"\",\"\",'1. Checklist & Certification'!$G$5)","v":""},{"$f":"IFERROR(IF(A209=\"\",\"\",\n_xlfn.LET(_xlpm.Contract,'1. Checklist & Certification'!$C$7,\n_xlpm.Yr,TEXT(MOD(_xlfn.TEXTBEFORE(_xlpm.Contract,\"-\"),100),\"00\"),\n_xlpm.Program,_xlfn.TEXTAFTER(_xlfn.TEXTBEFORE(_xlpm.Contract,\"-\",2),\"-\"),\n_xlpm.CleanProgram,_xlfn.XLOOKUP(_xlpm.Program,SpellCheck[Input],SpellCheck[Correction],_xlpm.Program),\n_xlpm.Number,TEXT(_xlfn.TEXTAFTER(_xlpm.Contract,\"-\",2),\"0000\"),\n_xlfn.CONCAT(_xlpm.Yr,\"-\",_xlpm.CleanProgram,\"-\",_xlpm.Number))\n),\"\")","v":""},{"$f":"IFERROR(IF(A209=\"\",\"\",\n_xlfn.LET(_xlpm.Contract,'1. Checklist & Certification'!$C$8,\n_xlpm.Yr,TEXT(MOD(_xlfn.TEXTBEFORE(_xlpm.Contract,\"-\"),100),\"00\"),\n_xlpm.Program,_xlfn.TEXTAFTER(_xlfn.TEXTBEFORE(_xlpm.Contract,\"-\",2),\"-\"),\n_xlpm.CleanProgram,_xlfn.XLOOKUP(_xlpm.Program,SpellCheck[Input],SpellCheck[Correction],_xlpm.Program),\n_xlpm.Number,TEXT(_xlfn.TEXTAFTER(_xlpm.Contract,\"-\",2),\"0000\"),\n_xlfn.CONCAT(_xlpm.Yr,\"-\",_xlpm.CleanProgram,\"-\",_xlpm.Number))\n),\"\")","v":""},{"$f":"IFERROR(IF(A209=\"\",\"\",\n_xlfn.LET(_xlpm.Contract,'1. Checklist & Certification'!$F$7,\n_xlpm.Yr,TEXT(MOD(_xlfn.TEXTBEFORE(_xlpm.Contract,\"-\"),100),\"00\"),\n_xlpm.Program,_xlfn.TEXTAFTER(_xlfn.TEXTBEFORE(_xlpm.Contract,\"-\",2),\"-\"),\n_xlpm.CleanProgram,_xlfn.XLOOKUP(_xlpm.Program,SpellCheck[Input],SpellCheck[Correction],_xlpm.Program),\n_xlpm.Number,TEXT(_xlfn.TEXTAFTER(_xlpm.Contract,\"-\",2),\"0000\"),\n_xlfn.CONCAT(_xlpm.Yr,\"-\",_xlpm.CleanProgram,\"-\",_xlpm.Number))\n),\"\")","v":""},{"$f":"IFERROR(IF(A209=\"\",\"\",\n_xlfn.LET(_xlpm.Contract,'1. Checklist & Certification'!$F$8,\n_xlpm.Yr,TEXT(MOD(_xlfn.TEXTBEFORE(_xlpm.Contract,\"-\"),100),\"00\"),\n_xlpm.Program,_xlfn.TEXTAFTER(_xlfn.TEXTBEFORE(_xlpm.Contract,\"-\",2),\"-\"),\n_xlpm.CleanProgram,_xlfn.XLOOKUP(_xlpm.Program,SpellCheck[Input],SpellCheck[Correction],_xlpm.Program),\n_xlpm.Number,TEXT(_xlfn.TEXTAFTER(_xlpm.Contract,\"-\",2),\"0000\"),\n_xlfn.CONCAT(_xlpm.Yr,\"-\",_xlpm.CleanProgram,\"-\",_xlpm.Number))\n),\"\")","v":""},{"$f":"IF(A209=\"\",\"\",'1. Checklist & Certification'!$B$9)","v":""},{"$f":"IF(A209=\"\",\"\",'1. Checklist & Certification'!$F$9)","v":""},{"$f":"IF(A209=\"\",\"\",'1. Checklist & Certification'!$C$10)","v":""},{"$f":"IF(A209=\"\",\"\",'1. Checklist & Certification'!$C$11)","v":""},{"$f":"IF(A209=\"\",\"\",'1. Checklist & Certification'!$C$12)","v":""},{"$f":"IF(A209=\"\",\"\",'1. Checklist & Certification'!$B$14)","v":""},{"$f":"IF(A209=\"\",\"\",'1. Checklist & Certification'!$E$14)","v":""},{"$f":"IF(B209=\"\",\"\",'1. Checklist & Certification'!$G$14)","v":""},{"$f":"IF(A209=\"\",\"\",'MHP Family Income & Rent Limits'!$B$3)","v":""},{"$f":"IF(A209=\"\",\"\",'MHP Family Income & Rent Limits'!$J$3)","v":""},{"$f":"IF(A209=\"\",\"\",'MHP Family Income & Rent Limits'!$E$4)","v":""},{"$f":"IF(A209=\"\",\"\",'MHP Family Income & Rent Limits'!$C$7)","v":""},{"$f":"IF(A209=\"\",\"\",'MHP Family Income & Rent Limits'!$F$8)","v":""},{"$f":"IF(A209=\"\",\"\",'1. Checklist & Certification'!$G$4)","v":""},{"$f":"IF(A209=\"\",\"\",'1. Checklist & Certification'!$K$39)","v":""},{"$f":"IF(A209=\"\",\"\",'1. Checklist & Certification'!$K$43)","v":""},{"$f":"IF(A209=\"\",\"\",'1. Checklist & Certification'!$K$45)","v":""},{"$f":"IF(A209=\"\",\"\",'1. Checklist & Certification'!$K$49)","v":""},{"$f":"IF(A209=\"\",\"\",'1. Checklist & Certification'!$K$62)","v":""},{"$f":"IF(A209=\"\",\"\",'1. Checklist & Certification'!$E$66)","v":""},{"$f":"IF(A209=\"\",\"\",'1. Checklist & Certification'!$E$67)","v":""},{"$f":"IF(A209=\"\",\"\",'1. Checklist & Certification'!$E$68)","v":""},{"$f":"IF(A209=\"\",\"\",'1. Checklist & Certification'!$G$66)","v":""},{"$f":"IF(A209=\"\",\"\",'1. Checklist & Certification'!$H$66)","v":""},{"$f":"IF(A209=\"\",\"\",'1. Checklist & Certification'!$I$66)","v":""},{"$f":"IF(A209=\"\",\"\",'1. Checklist & Certification'!$I$67)","v":""},{"$f":"IF(A209=\"\",\"\",'1. Checklist & Certification'!$I$68)","v":""},{"$f":"IF(A209=\"\",\"\",'1. Checklist & Certification'!$B$69)","v":""},{"$f":"IF(A209=\"\",\"\",'1. Checklist & Certification'!$C$69)","v":""},{"$f":"IF(A209=\"\",\"\",'1. Checklist & Certification'!$F$69)","v":""},{"$f":"IF(A209=\"\",\"\",'1. Checklist & Certification'!$G$69)","v":""},{"$f":"IF(A209=\"\",\"\",'1. Checklist & Certification'!$J$69)","v":""},{"$f":"IF(A209=\"\",\"\",'1. Checklist & Certification'!$K$69)","v":""},null,null,{"$f":"IF(AND(OR('1. Checklist & Certification'!$M$16=1,'1. Checklist & Certification'!$M$19=2),AO209>0,B209=\"\",I209>0,AQ209<I209,AV209<>\"Sec 8-Project\"),\"X\",IF(AND(OR('1. Checklist & Certification'!$M$20=4,'1. Checklist & Certification'!$M$21=5,'1. Checklist & Certification'!$M$22=7),AO209>0,B209=\"\",I209>0,K209<I209),\"X\",\"\"))","v":""},{"$f":"IF(A209=\"\",\"\",IF(SUMPRODUCT(-- (ISNUMBER(SEARCH({\"*AHSC*\",\"*FMTW*\",\"*FWHG*\",\"*GHI*\",\"*HHC*\",\"*HLCP*\",\"*HOME*\",\"*LPR*\",\"*MHP*\",\"*NHTF*\",\"*NSP*\",\"*PRP*\",\"*TOD*\",\"*VHHP*\"},'1. Checklist & Certification'!$L$7)))),\"MHP\",\"Legacy\"))","v":""},",,",null,null,null,{"$f":"IF('1. Checklist & Certification'!$M$20=4,\"Both\",IF(OR('1. Checklist & Certification'!$M$15>0,S209=\"CHRP-R\",U209=\"CHRP-R\",W209=\"CHRP-R\",Y209=\"CHRP-R\"),\"Under\",\"No\"))","v":"No"},"No","No",{"$f":"_xlfn.IFS(D209=\"\",\"\",D209=1,'MHP Family Income & Rent Limits'!$E$17,D209=2,'MHP Family Income & Rent Limits'!$F$17,D209=3,'MHP Family Income & Rent Limits'!$G$17,D209=4,'MHP Family Income & Rent Limits'!$H$17,D209=5,'MHP Family Income & Rent Limits'!$I$17,D209=6,'MHP Family Income & Rent Limits'!$J$17,D209=7,'MHP Family Income & Rent Limits'!$K$17,D209=8,'MHP Family Income & Rent Limits'!$L$17)","v":""},"",{"$f":"IF(OR(A209=0,B209=\"X\"),0,MIN(IF(AA209:AD209<>0,AA209:AD209)))","v":0},{"$f":"IF(OR(H209=\"\",I209=\"\"),0,IF(H209*0.3/12>I209,MIN(H209*0.3/12,I209*1.1)+AP209,I209*(1+(VLOOKUP('1. Checklist & Certification'!$F$9,'HLCP-E Rent Change'!$A$1:$D$59,4,FALSE)))+AP209))","v":0}]
[null,null,null,null,null,null,null,null,null,null,null,null,null,null,null,null,null,null,null,null,null,null,null,null,null,null,0,0,0,0,0,0,0,0,{"$f":"IF(OR(A210=0,B210=\"X\"),0,IF(OR(S210=\"FHDP\",S210=\"RHCP-B\",U210=\"FHDP\",U210=\"RHCP-B\",W210=\"FHDP\",W210=\"RHCP-B\",Y210=\"FHDP\",Y210=\"RHCP-B\"),TRUNC((MIN(I210,K210)*(1+'1. Checklist & Certification'!$K$43)+AP210)),0))","v":0},{"$f":"IF(OR(A210=0,B210=\"X\"),0,IF(OR(S210=\"CHRP-R\",S210=\"SERA\",S210=\"SUHRP\",U210=\"CHRP-R\",U210=\"SERA\",U210=\"SUHRP\",W210=\"CHRP-R\",W210=\"SERA\",W210=\"SUHRP\",Y210=\"CHRP-R\",Y210=\"SERA\",Y210=\"SUHRP\"),TRUNC((MIN(I210,K210)*(1+'1. Checklist & Certification'!$K$49))),0))","v":0},{"$f":"IF(OR(A210=0,B210=\"X\"),0,IF(OR(S210=\"CALDAP\",S210=\"DPRLP\",U210=\"CALDAP\",U210=\"DPRLP\",W210=\"CALDAP\",W210=\"DPRLP\",Y210=\"CALDAP\",Y210=\"DPRLP\"),TRUNC(((MIN(I210,K210))*(1+'1. Checklist & Certification'!$G$4))),0))","v":0},0,0,0,{"$f":"IF(OR(A210=0,B210=\"X\"),0,IF(OR(S210=\"PRP\",S210=\"LPR\",U210=\"PRP\",U210=\"LPR\",W210=\"PRP\",W210=\"LPR\",Y210=\"PRP\",Y210=\"LPR\"),MAX(I210+AP210,MIN(IF(AE210:AN210<>0,AE210:AN210))),MIN(IF(AE210:AN210<>0,AE210:AN210))))","v":0},{"$f":"IF(A210=0,0,IF(AND(OR(S210=\"Mgr\",S210=0),OR(U210=\"Mgr\",U210=0),OR(W210=\"Mgr\",W210=0)),0,IF(LEFT($A210,2)=\"B*\",VLOOKUP($E210,'1. Checklist & Certification'!$D$26:$E$32,2),IF(LEFT($A210,2)=\"C*\",VLOOKUP($E210,'1. Checklist & Certification'!$F$26:$G$32,2),IF(LEFT($A210,2)=\"D*\",VLOOKUP($E210,'1. Checklist & Certification'!$H$26:$I$32,2),IF(LEFT($A210,2)=\"E*\",VLOOKUP($E210,'1. Checklist & Certification'!$J$26:$K$32,2),VLOOKUP($E210,'1. Checklist & Certification'!$A$26:$B$32,2)))))))","v":0},0,0,null,null,null,null,"","",0,0,0,null,{"$f":"IF(A210=\"\",\"\",'1. Checklist & Certification'!$K$1)","v":""},{"$f":"IF(A210=\"\",\"\",'1. Checklist & Certification'!$C$62)","v":""},{"$f":"IF(A210=\"\",\"\",'1. Checklist & Certification'!$C$6)","v":""},{"$f":"IF(A210=\"\",\"\",'1. Checklist & Certification'!$G$5)","v":""},{"$f":"IFERROR(IF(A210=\"\",\"\",\n_xlfn.LET(_xlpm.Contract,'1. Checklist & Certification'!$C$7,\n_xlpm.Yr,TEXT(MOD(_xlfn.TEXTBEFORE(_xlpm.Contract,\"-\"),100),\"00\"),\n_xlpm.Program,_xlfn.TEXTAFTER(_xlfn.TEXTBEFORE(_xlpm.Contract,\"-\",2),\"-\"),\n_xlpm.CleanProgram,_xlfn.XLOOKUP(_xlpm.Program,SpellCheck[Input],SpellCheck[Correction],_xlpm.Program),\n_xlpm.Number,TEXT(_xlfn.TEXTAFTER(_xlpm.Contract,\"-\",2),\"0000\"),\n_xlfn.CONCAT(_xlpm.Yr,\"-\",_xlpm.CleanProgram,\"-\",_xlpm.Number))\n),\"\")","v":""},{"$f":"IFERROR(IF(A210=\"\",\"\",\n_xlfn.LET(_xlpm.Contract,'1. Checklist & Certification'!$C$8,\n_xlpm.Yr,TEXT(MOD(_xlfn.TEXTBEFORE(_xlpm.Contract,\"-\"),100),\"00\"),\n_xlpm.Program,_xlfn.TEXTAFTER(_xlfn.TEXTBEFORE(_xlpm.Contract,\"-\",2),\"-\"),\n_xlpm.CleanProgram,_xlfn.XLOOKUP(_xlpm.Program,SpellCheck[Input],SpellCheck[Correction],_xlpm.Program),\n_xlpm.Number,TEXT(_xlfn.TEXTAFTER(_xlpm.Contract,\"-\",2),\"0000\"),\n_xlfn.CONCAT(_xlpm.Yr,\"-\",_xlpm.CleanProgram,\"-\",_xlpm.Number))\n),\"\")","v":""},{"$f":"IFERROR(IF(A210=\"\",\"\",\n_xlfn.LET(_xlpm.Contract,'1. Checklist & Certification'!$F$7,\n_xlpm.Yr,TEXT(MOD(_xlfn.TEXTBEFORE(_xlpm.Contract,\"-\"),100),\"00\"),\n_xlpm.Program,_xlfn.TEXTAFTER(_xlfn.TEXTBEFORE(_xlpm.Contract,\"-\",2),\"-\"),\n_xlpm.CleanProgram,_xlfn.XLOOKUP(_xlpm.Program,SpellCheck[Input],SpellCheck[Correction],_xlpm.Program),\n_xlpm.Number,TEXT(_xlfn.TEXTAFTER(_xlpm.Contract,\"-\",2),\"0000\"),\n_xlfn.CONCAT(_xlpm.Yr,\"-\",_xlpm.CleanProgram,\"-\",_xlpm.Number))\n),\"\")","v":""},{"$f":"IFERROR(IF(A210=\"\",\"\",\n_xlfn.LET(_xlpm.Contract,'1. Checklist & Certification'!$F$8,\n_xlpm.Yr,TEXT(MOD(_xlfn.TEXTBEFORE(_xlpm.Contract,\"-\"),100),\"00\"),\n_xlpm.Program,_xlfn.TEXTAFTER(_xlfn.TEXTBEFORE(_xlpm.Contract,\"-\",2),\"-\"),\n_xlpm.CleanProgram,_xlfn.XLOOKUP(_xlpm.Program,SpellCheck[Input],SpellCheck[Correction],_xlpm.Program),\n_xlpm.Number,TEXT(_xlfn.TEXTAFTER(_xlpm.Contract,\"-\",2),\"0000\"),\n_xlfn.CONCAT(_xlpm.Yr,\"-\",_xlpm.CleanProgram,\"-\",_xlpm.Number))\n),\"\")","v":""},{"$f":"IF(A210=\"\",\"\",'1. Checklist & Certification'!$B$9)","v":""},{"$f":"IF(A210=\"\",\"\",'1. Checklist & Certification'!$F$9)","v":""},{"$f":"IF(A210=\"\",\"\",'1. Checklist & Certification'!$C$10)","v":""},{"$f":"IF(A210=\"\",\"\",'1. Checklist & Certification'!$C$11)","v":""},{"$f":"IF(A210=\"\",\"\",'1. Checklist & Certification'!$C$12)","v":""},{"$f":"IF(A210=\"\",\"\",'1. Checklist & Certification'!$B$14)","v":""},{"$f":"IF(A210=\"\",\"\",'1. Checklist & Certification'!$E$14)","v":""},{"$f":"IF(B210=\"\",\"\",'1. Checklist & Certification'!$G$14)","v":""},{"$f":"IF(A210=\"\",\"\",'MHP Family Income & Rent Limits'!$B$3)","v":""},{"$f":"IF(A210=\"\",\"\",'MHP Family Income & Rent Limits'!$J$3)","v":""},{"$f":"IF(A210=\"\",\"\",'MHP Family Income & Rent Limits'!$E$4)","v":""},{"$f":"IF(A210=\"\",\"\",'MHP Family Income & Rent Limits'!$C$7)","v":""},{"$f":"IF(A210=\"\",\"\",'MHP Family Income & Rent Limits'!$F$8)","v":""},{"$f":"IF(A210=\"\",\"\",'1. Checklist & Certification'!$G$4)","v":""},{"$f":"IF(A210=\"\",\"\",'1. Checklist & Certification'!$K$39)","v":""},{"$f":"IF(A210=\"\",\"\",'1. Checklist & Certification'!$K$43)","v":""},{"$f":"IF(A210=\"\",\"\",'1. Checklist & Certification'!$K$45)","v":""},{"$f":"IF(A210=\"\",\"\",'1. Checklist & Certification'!$K$49)","v":""},{"$f":"IF(A210=\"\",\"\",'1. Checklist & Certification'!$K$62)","v":""},{"$f":"IF(A210=\"\",\"\",'1. Checklist & Certification'!$E$66)","v":""},{"$f":"IF(A210=\"\",\"\",'1. Checklist & Certification'!$E$67)","v":""},{"$f":"IF(A210=\"\",\"\",'1. Checklist & Certification'!$E$68)","v":""},{"$f":"IF(A210=\"\",\"\",'1. Checklist & Certification'!$G$66)","v":""},{"$f":"IF(A210=\"\",\"\",'1. Checklist & Certification'!$H$66)","v":""},{"$f":"IF(A210=\"\",\"\",'1. Checklist & Certification'!$I$66)","v":""},{"$f":"IF(A210=\"\",\"\",'1. Checklist & Certification'!$I$67)","v":""},{"$f":"IF(A210=\"\",\"\",'1. Checklist & Certification'!$I$68)","v":""},{"$f":"IF(A210=\"\",\"\",'1. Checklist & Certification'!$B$69)","v":""},{"$f":"IF(A210=\"\",\"\",'1. Checklist & Certification'!$C$69)","v":""},{"$f":"IF(A210=\"\",\"\",'1. Checklist & Certification'!$F$69)","v":""},{"$f":"IF(A210=\"\",\"\",'1. Checklist & Certification'!$G$69)","v":""},{"$f":"IF(A210=\"\",\"\",'1. Checklist & Certification'!$J$69)","v":""},{"$f":"IF(A210=\"\",\"\",'1. Checklist & Certification'!$K$69)","v":""},null,null,{"$f":"IF(AND(OR('1. Checklist & Certification'!$M$16=1,'1. Checklist & Certification'!$M$19=2),AO210>0,B210=\"\",I210>0,AQ210<I210,AV210<>\"Sec 8-Project\"),\"X\",IF(AND(OR('1. Checklist & Certification'!$M$20=4,'1. Checklist & Certification'!$M$21=5,'1. Checklist & Certification'!$M$22=7),AO210>0,B210=\"\",I210>0,K210<I210),\"X\",\"\"))","v":""},{"$f":"IF(A210=\"\",\"\",IF(SUMPRODUCT(-- (ISNUMBER(SEARCH({\"*AHSC*\",\"*FMTW*\",\"*FWHG*\",\"*GHI*\",\"*HHC*\",\"*HLCP*\",\"*HOME*\",\"*LPR*\",\"*MHP*\",\"*NHTF*\",\"*NSP*\",\"*PRP*\",\"*TOD*\",\"*VHHP*\"},'1. Checklist & Certification'!$L$7)))),\"MHP\",\"Legacy\"))","v":""},",,",null,null,null,{"$f":"IF('1. Checklist & Certification'!$M$20=4,\"Both\",IF(OR('1. Checklist & Certification'!$M$15>0,S210=\"CHRP-R\",U210=\"CHRP-R\",W210=\"CHRP-R\",Y210=\"CHRP-R\"),\"Under\",\"No\"))","v":"No"},"No","No",{"$f":"_xlfn.IFS(D210=\"\",\"\",D210=1,'MHP Family Income & Rent Limits'!$E$17,D210=2,'MHP Family Income & Rent Limits'!$F$17,D210=3,'MHP Family Income & Rent Limits'!$G$17,D210=4,'MHP Family Income & Rent Limits'!$H$17,D210=5,'MHP Family Income & Rent Limits'!$I$17,D210=6,'MHP Family Income & Rent Limits'!$J$17,D210=7,'MHP Family Income & Rent Limits'!$K$17,D210=8,'MHP Family Income & Rent Limits'!$L$17)","v":""},"",{"$f":"IF(OR(A210=0,B210=\"X\"),0,MIN(IF(AA210:AD210<>0,AA210:AD210)))","v":0},{"$f":"IF(OR(H210=\"\",I210=\"\"),0,IF(H210*0.3/12>I210,MIN(H210*0.3/12,I210*1.1)+AP210,I210*(1+(VLOOKUP('1. Checklist & Certification'!$F$9,'HLCP-E Rent Change'!$A$1:$D$59,4,FALSE)))+AP210))","v":0}]
[null,null,null,null,null,null,null,null,null,null,null,null,null,null,null,null,null,null,null,null,null,null,null,null,null,null,0,0,0,0,0,0,0,0,{"$f":"IF(OR(A211=0,B211=\"X\"),0,IF(OR(S211=\"FHDP\",S211=\"RHCP-B\",U211=\"FHDP\",U211=\"RHCP-B\",W211=\"FHDP\",W211=\"RHCP-B\",Y211=\"FHDP\",Y211=\"RHCP-B\"),TRUNC((MIN(I211,K211)*(1+'1. Checklist & Certification'!$K$43)+AP211)),0))","v":0},{"$f":"IF(OR(A211=0,B211=\"X\"),0,IF(OR(S211=\"CHRP-R\",S211=\"SERA\",S211=\"SUHRP\",U211=\"CHRP-R\",U211=\"SERA\",U211=\"SUHRP\",W211=\"CHRP-R\",W211=\"SERA\",W211=\"SUHRP\",Y211=\"CHRP-R\",Y211=\"SERA\",Y211=\"SUHRP\"),TRUNC((MIN(I211,K211)*(1+'1. Checklist & Certification'!$K$49))),0))","v":0},{"$f":"IF(OR(A211=0,B211=\"X\"),0,IF(OR(S211=\"CALDAP\",S211=\"DPRLP\",U211=\"CALDAP\",U211=\"DPRLP\",W211=\"CALDAP\",W211=\"DPRLP\",Y211=\"CALDAP\",Y211=\"DPRLP\"),TRUNC(((MIN(I211,K211))*(1+'1. Checklist & Certification'!$G$4))),0))","v":0},0,0,0,{"$f":"IF(OR(A211=0,B211=\"X\"),0,IF(OR(S211=\"PRP\",S211=\"LPR\",U211=\"PRP\",U211=\"LPR\",W211=\"PRP\",W211=\"LPR\",Y211=\"PRP\",Y211=\"LPR\"),MAX(I211+AP211,MIN(IF(AE211:AN211<>0,AE211:AN211))),MIN(IF(AE211:AN211<>0,AE211:AN211))))","v":0},{"$f":"IF(A211=0,0,IF(AND(OR(S211=\"Mgr\",S211=0),OR(U211=\"Mgr\",U211=0),OR(W211=\"Mgr\",W211=0)),0,IF(LEFT($A211,2)=\"B*\",VLOOKUP($E211,'1. Checklist & Certification'!$D$26:$E$32,2),IF(LEFT($A211,2)=\"C*\",VLOOKUP($E211,'1. Checklist & Certification'!$F$26:$G$32,2),IF(LEFT($A211,2)=\"D*\",VLOOKUP($E211,'1. Checklist & Certification'!$H$26:$I$32,2),IF(LEFT($A211,2)=\"E*\",VLOOKUP($E211,'1. Checklist & Certification'!$J$26:$K$32,2),VLOOKUP($E211,'1. Checklist & Certification'!$A$26:$B$32,2)))))))","v":0},0,0,null,null,null,null,"","",0,0,0,null,{"$f":"IF(A211=\"\",\"\",'1. Checklist & Certification'!$K$1)","v":""},{"$f":"IF(A211=\"\",\"\",'1. Checklist & Certification'!$C$62)","v":""},{"$f":"IF(A211=\"\",\"\",'1. Checklist & Certification'!$C$6)","v":""},{"$f":"IF(A211=\"\",\"\",'1. Checklist & Certification'!$G$5)","v":""},{"$f":"IFERROR(IF(A211=\"\",\"\",\n_xlfn.LET(_xlpm.Contract,'1. Checklist & Certification'!$C$7,\n_xlpm.Yr,TEXT(MOD(_xlfn.TEXTBEFORE(_xlpm.Contract,\"-\"),100),\"00\"),\n_xlpm.Program,_xlfn.TEXTAFTER(_xlfn.TEXTBEFORE(_xlpm.Contract,\"-\",2),\"-\"),\n_xlpm.CleanProgram,_xlfn.XLOOKUP(_xlpm.Program,SpellCheck[Input],SpellCheck[Correction],_xlpm.Program),\n_xlpm.Number,TEXT(_xlfn.TEXTAFTER(_xlpm.Contract,\"-\",2),\"0000\"),\n_xlfn.CONCAT(_xlpm.Yr,\"-\",_xlpm.CleanProgram,\"-\",_xlpm.Number))\n),\"\")","v":""},{"$f":"IFERROR(IF(A211=\"\",\"\",\n_xlfn.LET(_xlpm.Contract,'1. Checklist & Certification'!$C$8,\n_xlpm.Yr,TEXT(MOD(_xlfn.TEXTBEFORE(_xlpm.Contract,\"-\"),100),\"00\"),\n_xlpm.Program,_xlfn.TEXTAFTER(_xlfn.TEXTBEFORE(_xlpm.Contract,\"-\",2),\"-\"),\n_xlpm.CleanProgram,_xlfn.XLOOKUP(_xlpm.Program,SpellCheck[Input],SpellCheck[Correction],_xlpm.Program),\n_xlpm.Number,TEXT(_xlfn.TEXTAFTER(_xlpm.Contract,\"-\",2),\"0000\"),\n_xlfn.CONCAT(_xlpm.Yr,\"-\",_xlpm.CleanProgram,\"-\",_xlpm.Number))\n),\"\")","v":""},{"$f":"IFERROR(IF(A211=\"\",\"\",\n_xlfn.LET(_xlpm.Contract,'1. Checklist & Certification'!$F$7,\n_xlpm.Yr,TEXT(MOD(_xlfn.TEXTBEFORE(_xlpm.Contract,\"-\"),100),\"00\"),\n_xlpm.Program,_xlfn.TEXTAFTER(_xlfn.TEXTBEFORE(_xlpm.Contract,\"-\",2),\"-\"),\n_xlpm.CleanProgram,_xlfn.XLOOKUP(_xlpm.Program,SpellCheck[Input],SpellCheck[Correction],_xlpm.Program),\n_xlpm.Number,TEXT(_xlfn.TEXTAFTER(_xlpm.Contract,\"-\",2),\"0000\"),\n_xlfn.CONCAT(_xlpm.Yr,\"-\",_xlpm.CleanProgram,\"-\",_xlpm.Number))\n),\"\")","v":""},{"$f":"IFERROR(IF(A211=\"\",\"\",\n_xlfn.LET(_xlpm.Contract,'1. Checklist & Certification'!$F$8,\n_xlpm.Yr,TEXT(MOD(_xlfn.TEXTBEFORE(_xlpm.Contract,\"-\"),100),\"00\"),\n_xlpm.Program,_xlfn.TEXTAFTER(_xlfn.TEXTBEFORE(_xlpm.Contract,\"-\",2),\"-\"),\n_xlpm.CleanProgram,_xlfn.XLOOKUP(_xlpm.Program,SpellCheck[Input],SpellCheck[Correction],_xlpm.Program),\n_xlpm.Number,TEXT(_xlfn.TEXTAFTER(_xlpm.Contract,\"-\",2),\"0000\"),\n_xlfn.CONCAT(_xlpm.Yr,\"-\",_xlpm.CleanProgram,\"-\",_xlpm.Number))\n),\"\")","v":""},{"$f":"IF(A211=\"\",\"\",'1. Checklist & Certification'!$B$9)","v":""},{"$f":"IF(A211=\"\",\"\",'1. Checklist & Certification'!$F$9)","v":""},{"$f":"IF(A211=\"\",\"\",'1. Checklist & Certification'!$C$10)","v":""},{"$f":"IF(A211=\"\",\"\",'1. Checklist & Certification'!$C$11)","v":""},{"$f":"IF(A211=\"\",\"\",'1. Checklist & Certification'!$C$12)","v":""},{"$f":"IF(A211=\"\",\"\",'1. Checklist & Certification'!$B$14)","v":""},{"$f":"IF(A211=\"\",\"\",'1. Checklist & Certification'!$E$14)","v":""},{"$f":"IF(B211=\"\",\"\",'1. Checklist & Certification'!$G$14)","v":""},{"$f":"IF(A211=\"\",\"\",'MHP Family Income & Rent Limits'!$B$3)","v":""},{"$f":"IF(A211=\"\",\"\",'MHP Family Income & Rent Limits'!$J$3)","v":""},{"$f":"IF(A211=\"\",\"\",'MHP Family Income & Rent Limits'!$E$4)","v":""},{"$f":"IF(A211=\"\",\"\",'MHP Family Income & Rent Limits'!$C$7)","v":""},{"$f":"IF(A211=\"\",\"\",'MHP Family Income & Rent Limits'!$F$8)","v":""},{"$f":"IF(A211=\"\",\"\",'1. Checklist & Certification'!$G$4)","v":""},{"$f":"IF(A211=\"\",\"\",'1. Checklist & Certification'!$K$39)","v":""},{"$f":"IF(A211=\"\",\"\",'1. Checklist & Certification'!$K$43)","v":""},{"$f":"IF(A211=\"\",\"\",'1. Checklist & Certification'!$K$45)","v":""},{"$f":"IF(A211=\"\",\"\",'1. Checklist & Certification'!$K$49)","v":""},{"$f":"IF(A211=\"\",\"\",'1. Checklist & Certification'!$K$62)","v":""},{"$f":"IF(A211=\"\",\"\",'1. Checklist & Certification'!$E$66)","v":""},{"$f":"IF(A211=\"\",\"\",'1. Checklist & Certification'!$E$67)","v":""},{"$f":"IF(A211=\"\",\"\",'1. Checklist & Certification'!$E$68)","v":""},{"$f":"IF(A211=\"\",\"\",'1. Checklist & Certification'!$G$66)","v":""},{"$f":"IF(A211=\"\",\"\",'1. Checklist & Certification'!$H$66)","v":""},{"$f":"IF(A211=\"\",\"\",'1. Checklist & Certification'!$I$66)","v":""},{"$f":"IF(A211=\"\",\"\",'1. Checklist & Certification'!$I$67)","v":""},{"$f":"IF(A211=\"\",\"\",'1. Checklist & Certification'!$I$68)","v":""},{"$f":"IF(A211=\"\",\"\",'1. Checklist & Certification'!$B$69)","v":""},{"$f":"IF(A211=\"\",\"\",'1. Checklist & Certification'!$C$69)","v":""},{"$f":"IF(A211=\"\",\"\",'1. Checklist & Certification'!$F$69)","v":""},{"$f":"IF(A211=\"\",\"\",'1. Checklist & Certification'!$G$69)","v":""},{"$f":"IF(A211=\"\",\"\",'1. Checklist & Certification'!$J$69)","v":""},{"$f":"IF(A211=\"\",\"\",'1. Checklist & Certification'!$K$69)","v":""},null,null,{"$f":"IF(AND(OR('1. Checklist & Certification'!$M$16=1,'1. Checklist & Certification'!$M$19=2),AO211>0,B211=\"\",I211>0,AQ211<I211,AV211<>\"Sec 8-Project\"),\"X\",IF(AND(OR('1. Checklist & Certification'!$M$20=4,'1. Checklist & Certification'!$M$21=5,'1. Checklist & Certification'!$M$22=7),AO211>0,B211=\"\",I211>0,K211<I211),\"X\",\"\"))","v":""},{"$f":"IF(A211=\"\",\"\",IF(SUMPRODUCT(-- (ISNUMBER(SEARCH({\"*AHSC*\",\"*FMTW*\",\"*FWHG*\",\"*GHI*\",\"*HHC*\",\"*HLCP*\",\"*HOME*\",\"*LPR*\",\"*MHP*\",\"*NHTF*\",\"*NSP*\",\"*PRP*\",\"*TOD*\",\"*VHHP*\"},'1. Checklist & Certification'!$L$7)))),\"MHP\",\"Legacy\"))","v":""},",,",null,null,null,{"$f":"IF('1. Checklist & Certification'!$M$20=4,\"Both\",IF(OR('1. Checklist & Certification'!$M$15>0,S211=\"CHRP-R\",U211=\"CHRP-R\",W211=\"CHRP-R\",Y211=\"CHRP-R\"),\"Under\",\"No\"))","v":"No"},"No","No",{"$f":"_xlfn.IFS(D211=\"\",\"\",D211=1,'MHP Family Income & Rent Limits'!$E$17,D211=2,'MHP Family Income & Rent Limits'!$F$17,D211=3,'MHP Family Income & Rent Limits'!$G$17,D211=4,'MHP Family Income & Rent Limits'!$H$17,D211=5,'MHP Family Income & Rent Limits'!$I$17,D211=6,'MHP Family Income & Rent Limits'!$J$17,D211=7,'MHP Family Income & Rent Limits'!$K$17,D211=8,'MHP Family Income & Rent Limits'!$L$17)","v":""},"",{"$f":"IF(OR(A211=0,B211=\"X\"),0,MIN(IF(AA211:AD211<>0,AA211:AD211)))","v":0},{"$f":"IF(OR(H211=\"\",I211=\"\"),0,IF(H211*0.3/12>I211,MIN(H211*0.3/12,I211*1.1)+AP211,I211*(1+(VLOOKUP('1. Checklist & Certification'!$F$9,'HLCP-E Rent Change'!$A$1:$D$59,4,FALSE)))+AP211))","v":0}]
[null,null,null,null,null,null,null,null,null,null,null,null,null,null,null,null,null,null,null,null,null,null,null,null,null,null,0,0,0,0,0,0,0,0,{"$f":"IF(OR(A212=0,B212=\"X\"),0,IF(OR(S212=\"FHDP\",S212=\"RHCP-B\",U212=\"FHDP\",U212=\"RHCP-B\",W212=\"FHDP\",W212=\"RHCP-B\",Y212=\"FHDP\",Y212=\"RHCP-B\"),TRUNC((MIN(I212,K212)*(1+'1. Checklist & Certification'!$K$43)+AP212)),0))","v":0},{"$f":"IF(OR(A212=0,B212=\"X\"),0,IF(OR(S212=\"CHRP-R\",S212=\"SERA\",S212=\"SUHRP\",U212=\"CHRP-R\",U212=\"SERA\",U212=\"SUHRP\",W212=\"CHRP-R\",W212=\"SERA\",W212=\"SUHRP\",Y212=\"CHRP-R\",Y212=\"SERA\",Y212=\"SUHRP\"),TRUNC((MIN(I212,K212)*(1+'1. Checklist & Certification'!$K$49))),0))","v":0},{"$f":"IF(OR(A212=0,B212=\"X\"),0,IF(OR(S212=\"CALDAP\",S212=\"DPRLP\",U212=\"CALDAP\",U212=\"DPRLP\",W212=\"CALDAP\",W212=\"DPRLP\",Y212=\"CALDAP\",Y212=\"DPRLP\"),TRUNC(((MIN(I212,K212))*(1+'1. Checklist & Certification'!$G$4))),0))","v":0},0,0,0,{"$f":"IF(OR(A212=0,B212=\"X\"),0,IF(OR(S212=\"PRP\",S212=\"LPR\",U212=\"PRP\",U212=\"LPR\",W212=\"PRP\",W212=\"LPR\",Y212=\"PRP\",Y212=\"LPR\"),MAX(I212+AP212,MIN(IF(AE212:AN212<>0,AE212:AN212))),MIN(IF(AE212:AN212<>0,AE212:AN212))))","v":0},{"$f":"IF(A212=0,0,IF(AND(OR(S212=\"Mgr\",S212=0),OR(U212=\"Mgr\",U212=0),OR(W212=\"Mgr\",W212=0)),0,IF(LEFT($A212,2)=\"B*\",VLOOKUP($E212,'1. Checklist & Certification'!$D$26:$E$32,2),IF(LEFT($A212,2)=\"C*\",VLOOKUP($E212,'1. Checklist & Certification'!$F$26:$G$32,2),IF(LEFT($A212,2)=\"D*\",VLOOKUP($E212,'1. Checklist & Certification'!$H$26:$I$32,2),IF(LEFT($A212,2)=\"E*\",VLOOKUP($E212,'1. Checklist & Certification'!$J$26:$K$32,2),VLOOKUP($E212,'1. Checklist & Certification'!$A$26:$B$32,2)))))))","v":0},0,0,null,null,null,null,"","",0,0,0,null,{"$f":"IF(A212=\"\",\"\",'1. Checklist & Certification'!$K$1)","v":""},{"$f":"IF(A212=\"\",\"\",'1. Checklist & Certification'!$C$62)","v":""},{"$f":"IF(A212=\"\",\"\",'1. Checklist & Certification'!$C$6)","v":""},{"$f":"IF(A212=\"\",\"\",'1. Checklist & Certification'!$G$5)","v":""},{"$f":"IFERROR(IF(A212=\"\",\"\",\n_xlfn.LET(_xlpm.Contract,'1. Checklist & Certification'!$C$7,\n_xlpm.Yr,TEXT(MOD(_xlfn.TEXTBEFORE(_xlpm.Contract,\"-\"),100),\"00\"),\n_xlpm.Program,_xlfn.TEXTAFTER(_xlfn.TEXTBEFORE(_xlpm.Contract,\"-\",2),\"-\"),\n_xlpm.CleanProgram,_xlfn.XLOOKUP(_xlpm.Program,SpellCheck[Input],SpellCheck[Correction],_xlpm.Program),\n_xlpm.Number,TEXT(_xlfn.TEXTAFTER(_xlpm.Contract,\"-\",2),\"0000\"),\n_xlfn.CONCAT(_xlpm.Yr,\"-\",_xlpm.CleanProgram,\"-\",_xlpm.Number))\n),\"\")","v":""},{"$f":"IFERROR(IF(A212=\"\",\"\",\n_xlfn.LET(_xlpm.Contract,'1. Checklist & Certification'!$C$8,\n_xlpm.Yr,TEXT(MOD(_xlfn.TEXTBEFORE(_xlpm.Contract,\"-\"),100),\"00\"),\n_xlpm.Program,_xlfn.TEXTAFTER(_xlfn.TEXTBEFORE(_xlpm.Contract,\"-\",2),\"-\"),\n_xlpm.CleanProgram,_xlfn.XLOOKUP(_xlpm.Program,SpellCheck[Input],SpellCheck[Correction],_xlpm.Program),\n_xlpm.Number,TEXT(_xlfn.TEXTAFTER(_xlpm.Contract,\"-\",2),\"0000\"),\n_xlfn.CONCAT(_xlpm.Yr,\"-\",_xlpm.CleanProgram,\"-\",_xlpm.Number))\n),\"\")","v":""},{"$f":"IFERROR(IF(A212=\"\",\"\",\n_xlfn.LET(_xlpm.Contract,'1. Checklist & Certification'!$F$7,\n_xlpm.Yr,TEXT(MOD(_xlfn.TEXTBEFORE(_xlpm.Contract,\"-\"),100),\"00\"),\n_xlpm.Program,_xlfn.TEXTAFTER(_xlfn.TEXTBEFORE(_xlpm.Contract,\"-\",2),\"-\"),\n_xlpm.CleanProgram,_xlfn.XLOOKUP(_xlpm.Program,SpellCheck[Input],SpellCheck[Correction],_xlpm.Program),\n_xlpm.Number,TEXT(_xlfn.TEXTAFTER(_xlpm.Contract,\"-\",2),\"0000\"),\n_xlfn.CONCAT(_xlpm.Yr,\"-\",_xlpm.CleanProgram,\"-\",_xlpm.Number))\n),\"\")","v":""},{"$f":"IFERROR(IF(A212=\"\",\"\",\n_xlfn.LET(_xlpm.Contract,'1. Checklist & Certification'!$F$8,\n_xlpm.Yr,TEXT(MOD(_xlfn.TEXTBEFORE(_xlpm.Contract,\"-\"),100),\"00\"),\n_xlpm.Program,_xlfn.TEXTAFTER(_xlfn.TEXTBEFORE(_xlpm.Contract,\"-\",2),\"-\"),\n_xlpm.CleanProgram,_xlfn.XLOOKUP(_xlpm.Program,SpellCheck[Input],SpellCheck[Correction],_xlpm.Program),\n_xlpm.Number,TEXT(_xlfn.TEXTAFTER(_xlpm.Contract,\"-\",2),\"0000\"),\n_xlfn.CONCAT(_xlpm.Yr,\"-\",_xlpm.CleanProgram,\"-\",_xlpm.Number))\n),\"\")","v":""},{"$f":"IF(A212=\"\",\"\",'1. Checklist & Certification'!$B$9)","v":""},{"$f":"IF(A212=\"\",\"\",'1. Checklist & Certification'!$F$9)","v":""},{"$f":"IF(A212=\"\",\"\",'1. Checklist & Certification'!$C$10)","v":""},{"$f":"IF(A212=\"\",\"\",'1. Checklist & Certification'!$C$11)","v":""},{"$f":"IF(A212=\"\",\"\",'1. Checklist & Certification'!$C$12)","v":""},{"$f":"IF(A212=\"\",\"\",'1. Checklist & Certification'!$B$14)","v":""},{"$f":"IF(A212=\"\",\"\",'1. Checklist & Certification'!$E$14)","v":""},{"$f":"IF(B212=\"\",\"\",'1. Checklist & Certification'!$G$14)","v":""},{"$f":"IF(A212=\"\",\"\",'MHP Family Income & Rent Limits'!$B$3)","v":""},{"$f":"IF(A212=\"\",\"\",'MHP Family Income & Rent Limits'!$J$3)","v":""},{"$f":"IF(A212=\"\",\"\",'MHP Family Income & Rent Limits'!$E$4)","v":""},{"$f":"IF(A212=\"\",\"\",'MHP Family Income & Rent Limits'!$C$7)","v":""},{"$f":"IF(A212=\"\",\"\",'MHP Family Income & Rent Limits'!$F$8)","v":""},{"$f":"IF(A212=\"\",\"\",'1. Checklist & Certification'!$G$4)","v":""},{"$f":"IF(A212=\"\",\"\",'1. Checklist & Certification'!$K$39)","v":""},{"$f":"IF(A212=\"\",\"\",'1. Checklist & Certification'!$K$43)","v":""},{"$f":"IF(A212=\"\",\"\",'1. Checklist & Certification'!$K$45)","v":""},{"$f":"IF(A212=\"\",\"\",'1. Checklist & Certification'!$K$49)","v":""},{"$f":"IF(A212=\"\",\"\",'1. Checklist & Certification'!$K$62)","v":""},{"$f":"IF(A212=\"\",\"\",'1. Checklist & Certification'!$E$66)","v":""},{"$f":"IF(A212=\"\",\"\",'1. Checklist & Certification'!$E$67)","v":""},{"$f":"IF(A212=\"\",\"\",'1. Checklist & Certification'!$E$68)","v":""},{"$f":"IF(A212=\"\",\"\",'1. Checklist & Certification'!$G$66)","v":""},{"$f":"IF(A212=\"\",\"\",'1. Checklist & Certification'!$H$66)","v":""},{"$f":"IF(A212=\"\",\"\",'1. Checklist & Certification'!$I$66)","v":""},{"$f":"IF(A212=\"\",\"\",'1. Checklist & Certification'!$I$67)","v":""},{"$f":"IF(A212=\"\",\"\",'1. Checklist & Certification'!$I$68)","v":""},{"$f":"IF(A212=\"\",\"\",'1. Checklist & Certification'!$B$69)","v":""},{"$f":"IF(A212=\"\",\"\",'1. Checklist & Certification'!$C$69)","v":""},{"$f":"IF(A212=\"\",\"\",'1. Checklist & Certification'!$F$69)","v":""},{"$f":"IF(A212=\"\",\"\",'1. Checklist & Certification'!$G$69)","v":""},{"$f":"IF(A212=\"\",\"\",'1. Checklist & Certification'!$J$69)","v":""},{"$f":"IF(A212=\"\",\"\",'1. Checklist & Certification'!$K$69)","v":""},null,null,{"$f":"IF(AND(OR('1. Checklist & Certification'!$M$16=1,'1. Checklist & Certification'!$M$19=2),AO212>0,B212=\"\",I212>0,AQ212<I212,AV212<>\"Sec 8-Project\"),\"X\",IF(AND(OR('1. Checklist & Certification'!$M$20=4,'1. Checklist & Certification'!$M$21=5,'1. Checklist & Certification'!$M$22=7),AO212>0,B212=\"\",I212>0,K212<I212),\"X\",\"\"))","v":""},{"$f":"IF(A212=\"\",\"\",IF(SUMPRODUCT(-- (ISNUMBER(SEARCH({\"*AHSC*\",\"*FMTW*\",\"*FWHG*\",\"*GHI*\",\"*HHC*\",\"*HLCP*\",\"*HOME*\",\"*LPR*\",\"*MHP*\",\"*NHTF*\",\"*NSP*\",\"*PRP*\",\"*TOD*\",\"*VHHP*\"},'1. Checklist & Certification'!$L$7)))),\"MHP\",\"Legacy\"))","v":""},",,",null,null,null,{"$f":"IF('1. Checklist & Certification'!$M$20=4,\"Both\",IF(OR('1. Checklist & Certification'!$M$15>0,S212=\"CHRP-R\",U212=\"CHRP-R\",W212=\"CHRP-R\",Y212=\"CHRP-R\"),\"Under\",\"No\"))","v":"No"},"No","No",{"$f":"_xlfn.IFS(D212=\"\",\"\",D212=1,'MHP Family Income & Rent Limits'!$E$17,D212=2,'MHP Family Income & Rent Limits'!$F$17,D212=3,'MHP Family Income & Rent Limits'!$G$17,D212=4,'MHP Family Income & Rent Limits'!$H$17,D212=5,'MHP Family Income & Rent Limits'!$I$17,D212=6,'MHP Family Income & Rent Limits'!$J$17,D212=7,'MHP Family Income & Rent Limits'!$K$17,D212=8,'MHP Family Income & Rent Limits'!$L$17)","v":""},"",{"$f":"IF(OR(A212=0,B212=\"X\"),0,MIN(IF(AA212:AD212<>0,AA212:AD212)))","v":0},{"$f":"IF(OR(H212=\"\",I212=\"\"),0,IF(H212*0.3/12>I212,MIN(H212*0.3/12,I212*1.1)+AP212,I212*(1+(VLOOKUP('1. Checklist & Certification'!$F$9,'HLCP-E Rent Change'!$A$1:$D$59,4,FALSE)))+AP212))","v":0}]
[null,null,null,null,null,null,null,null,null,null,null,null,null,null,null,null,null,null,null,null,null,null,null,null,null,null,0,0,0,0,0,0,0,0,{"$f":"IF(OR(A213=0,B213=\"X\"),0,IF(OR(S213=\"FHDP\",S213=\"RHCP-B\",U213=\"FHDP\",U213=\"RHCP-B\",W213=\"FHDP\",W213=\"RHCP-B\",Y213=\"FHDP\",Y213=\"RHCP-B\"),TRUNC((MIN(I213,K213)*(1+'1. Checklist & Certification'!$K$43)+AP213)),0))","v":0},{"$f":"IF(OR(A213=0,B213=\"X\"),0,IF(OR(S213=\"CHRP-R\",S213=\"SERA\",S213=\"SUHRP\",U213=\"CHRP-R\",U213=\"SERA\",U213=\"SUHRP\",W213=\"CHRP-R\",W213=\"SERA\",W213=\"SUHRP\",Y213=\"CHRP-R\",Y213=\"SERA\",Y213=\"SUHRP\"),TRUNC((MIN(I213,K213)*(1+'1. Checklist & Certification'!$K$49))),0))","v":0},{"$f":"IF(OR(A213=0,B213=\"X\"),0,IF(OR(S213=\"CALDAP\",S213=\"DPRLP\",U213=\"CALDAP\",U213=\"DPRLP\",W213=\"CALDAP\",W213=\"DPRLP\",Y213=\"CALDAP\",Y213=\"DPRLP\"),TRUNC(((MIN(I213,K213))*(1+'1. Checklist & Certification'!$G$4))),0))","v":0},0,0,0,{"$f":"IF(OR(A213=0,B213=\"X\"),0,IF(OR(S213=\"PRP\",S213=\"LPR\",U213=\"PRP\",U213=\"LPR\",W213=\"PRP\",W213=\"LPR\",Y213=\"PRP\",Y213=\"LPR\"),MAX(I213+AP213,MIN(IF(AE213:AN213<>0,AE213:AN213))),MIN(IF(AE213:AN213<>0,AE213:AN213))))","v":0},{"$f":"IF(A213=0,0,IF(AND(OR(S213=\"Mgr\",S213=0),OR(U213=\"Mgr\",U213=0),OR(W213=\"Mgr\",W213=0)),0,IF(LEFT($A213,2)=\"B*\",VLOOKUP($E213,'1. Checklist & Certification'!$D$26:$E$32,2),IF(LEFT($A213,2)=\"C*\",VLOOKUP($E213,'1. Checklist & Certification'!$F$26:$G$32,2),IF(LEFT($A213,2)=\"D*\",VLOOKUP($E213,'1. Checklist & Certification'!$H$26:$I$32,2),IF(LEFT($A213,2)=\"E*\",VLOOKUP($E213,'1. Checklist & Certification'!$J$26:$K$32,2),VLOOKUP($E213,'1. Checklist & Certification'!$A$26:$B$32,2)))))))","v":0},0,0,null,null,null,null,"","",0,0,0,null,{"$f":"IF(A213=\"\",\"\",'1. Checklist & Certification'!$K$1)","v":""},{"$f":"IF(A213=\"\",\"\",'1. Checklist & Certification'!$C$62)","v":""},{"$f":"IF(A213=\"\",\"\",'1. Checklist & Certification'!$C$6)","v":""},{"$f":"IF(A213=\"\",\"\",'1. Checklist & Certification'!$G$5)","v":""},{"$f":"IFERROR(IF(A213=\"\",\"\",\n_xlfn.LET(_xlpm.Contract,'1. Checklist & Certification'!$C$7,\n_xlpm.Yr,TEXT(MOD(_xlfn.TEXTBEFORE(_xlpm.Contract,\"-\"),100),\"00\"),\n_xlpm.Program,_xlfn.TEXTAFTER(_xlfn.TEXTBEFORE(_xlpm.Contract,\"-\",2),\"-\"),\n_xlpm.CleanProgram,_xlfn.XLOOKUP(_xlpm.Program,SpellCheck[Input],SpellCheck[Correction],_xlpm.Program),\n_xlpm.Number,TEXT(_xlfn.TEXTAFTER(_xlpm.Contract,\"-\",2),\"0000\"),\n_xlfn.CONCAT(_xlpm.Yr,\"-\",_xlpm.CleanProgram,\"-\",_xlpm.Number))\n),\"\")","v":""},{"$f":"IFERROR(IF(A213=\"\",\"\",\n_xlfn.LET(_xlpm.Contract,'1. Checklist & Certification'!$C$8,\n_xlpm.Yr,TEXT(MOD(_xlfn.TEXTBEFORE(_xlpm.Contract,\"-\"),100),\"00\"),\n_xlpm.Program,_xlfn.TEXTAFTER(_xlfn.TEXTBEFORE(_xlpm.Contract,\"-\",2),\"-\"),\n_xlpm.CleanProgram,_xlfn.XLOOKUP(_xlpm.Program,SpellCheck[Input],SpellCheck[Correction],_xlpm.Program),\n_xlpm.Number,TEXT(_xlfn.TEXTAFTER(_xlpm.Contract,\"-\",2),\"0000\"),\n_xlfn.CONCAT(_xlpm.Yr,\"-\",_xlpm.CleanProgram,\"-\",_xlpm.Number))\n),\"\")","v":""},{"$f":"IFERROR(IF(A213=\"\",\"\",\n_xlfn.LET(_xlpm.Contract,'1. Checklist & Certification'!$F$7,\n_xlpm.Yr,TEXT(MOD(_xlfn.TEXTBEFORE(_xlpm.Contract,\"-\"),100),\"00\"),\n_xlpm.Program,_xlfn.TEXTAFTER(_xlfn.TEXTBEFORE(_xlpm.Contract,\"-\",2),\"-\"),\n_xlpm.CleanProgram,_xlfn.XLOOKUP(_xlpm.Program,SpellCheck[Input],SpellCheck[Correction],_xlpm.Program),\n_xlpm.Number,TEXT(_xlfn.TEXTAFTER(_xlpm.Contract,\"-\",2),\"0000\"),\n_xlfn.CONCAT(_xlpm.Yr,\"-\",_xlpm.CleanProgram,\"-\",_xlpm.Number))\n),\"\")","v":""},{"$f":"IFERROR(IF(A213=\"\",\"\",\n_xlfn.LET(_xlpm.Contract,'1. Checklist & Certification'!$F$8,\n_xlpm.Yr,TEXT(MOD(_xlfn.TEXTBEFORE(_xlpm.Contract,\"-\"),100),\"00\"),\n_xlpm.Program,_xlfn.TEXTAFTER(_xlfn.TEXTBEFORE(_xlpm.Contract,\"-\",2),\"-\"),\n_xlpm.CleanProgram,_xlfn.XLOOKUP(_xlpm.Program,SpellCheck[Input],SpellCheck[Correction],_xlpm.Program),\n_xlpm.Number,TEXT(_xlfn.TEXTAFTER(_xlpm.Contract,\"-\",2),\"0000\"),\n_xlfn.CONCAT(_xlpm.Yr,\"-\",_xlpm.CleanProgram,\"-\",_xlpm.Number))\n),\"\")","v":""},{"$f":"IF(A213=\"\",\"\",'1. Checklist & Certification'!$B$9)","v":""},{"$f":"IF(A213=\"\",\"\",'1. Checklist & Certification'!$F$9)","v":""},{"$f":"IF(A213=\"\",\"\",'1. Checklist & Certification'!$C$10)","v":""},{"$f":"IF(A213=\"\",\"\",'1. Checklist & Certification'!$C$11)","v":""},{"$f":"IF(A213=\"\",\"\",'1. Checklist & Certification'!$C$12)","v":""},{"$f":"IF(A213=\"\",\"\",'1. Checklist & Certification'!$B$14)","v":""},{"$f":"IF(A213=\"\",\"\",'1. Checklist & Certification'!$E$14)","v":""},{"$f":"IF(B213=\"\",\"\",'1. Checklist & Certification'!$G$14)","v":""},{"$f":"IF(A213=\"\",\"\",'MHP Family Income & Rent Limits'!$B$3)","v":""},{"$f":"IF(A213=\"\",\"\",'MHP Family Income & Rent Limits'!$J$3)","v":""},{"$f":"IF(A213=\"\",\"\",'MHP Family Income & Rent Limits'!$E$4)","v":""},{"$f":"IF(A213=\"\",\"\",'MHP Family Income & Rent Limits'!$C$7)","v":""},{"$f":"IF(A213=\"\",\"\",'MHP Family Income & Rent Limits'!$F$8)","v":""},{"$f":"IF(A213=\"\",\"\",'1. Checklist & Certification'!$G$4)","v":""},{"$f":"IF(A213=\"\",\"\",'1. Checklist & Certification'!$K$39)","v":""},{"$f":"IF(A213=\"\",\"\",'1. Checklist & Certification'!$K$43)","v":""},{"$f":"IF(A213=\"\",\"\",'1. Checklist & Certification'!$K$45)","v":""},{"$f":"IF(A213=\"\",\"\",'1. Checklist & Certification'!$K$49)","v":""},{"$f":"IF(A213=\"\",\"\",'1. Checklist & Certification'!$K$62)","v":""},{"$f":"IF(A213=\"\",\"\",'1. Checklist & Certification'!$E$66)","v":""},{"$f":"IF(A213=\"\",\"\",'1. Checklist & Certification'!$E$67)","v":""},{"$f":"IF(A213=\"\",\"\",'1. Checklist & Certification'!$E$68)","v":""},{"$f":"IF(A213=\"\",\"\",'1. Checklist & Certification'!$G$66)","v":""},{"$f":"IF(A213=\"\",\"\",'1. Checklist & Certification'!$H$66)","v":""},{"$f":"IF(A213=\"\",\"\",'1. Checklist & Certification'!$I$66)","v":""},{"$f":"IF(A213=\"\",\"\",'1. Checklist & Certification'!$I$67)","v":""},{"$f":"IF(A213=\"\",\"\",'1. Checklist & Certification'!$I$68)","v":""},{"$f":"IF(A213=\"\",\"\",'1. Checklist & Certification'!$B$69)","v":""},{"$f":"IF(A213=\"\",\"\",'1. Checklist & Certification'!$C$69)","v":""},{"$f":"IF(A213=\"\",\"\",'1. Checklist & Certification'!$F$69)","v":""},{"$f":"IF(A213=\"\",\"\",'1. Checklist & Certification'!$G$69)","v":""},{"$f":"IF(A213=\"\",\"\",'1. Checklist & Certification'!$J$69)","v":""},{"$f":"IF(A213=\"\",\"\",'1. Checklist & Certification'!$K$69)","v":""},null,null,{"$f":"IF(AND(OR('1. Checklist & Certification'!$M$16=1,'1. Checklist & Certification'!$M$19=2),AO213>0,B213=\"\",I213>0,AQ213<I213,AV213<>\"Sec 8-Project\"),\"X\",IF(AND(OR('1. Checklist & Certification'!$M$20=4,'1. Checklist & Certification'!$M$21=5,'1. Checklist & Certification'!$M$22=7),AO213>0,B213=\"\",I213>0,K213<I213),\"X\",\"\"))","v":""},{"$f":"IF(A213=\"\",\"\",IF(SUMPRODUCT(-- (ISNUMBER(SEARCH({\"*AHSC*\",\"*FMTW*\",\"*FWHG*\",\"*GHI*\",\"*HHC*\",\"*HLCP*\",\"*HOME*\",\"*LPR*\",\"*MHP*\",\"*NHTF*\",\"*NSP*\",\"*PRP*\",\"*TOD*\",\"*VHHP*\"},'1. Checklist & Certification'!$L$7)))),\"MHP\",\"Legacy\"))","v":""},",,",null,null,null,{"$f":"IF('1. Checklist & Certification'!$M$20=4,\"Both\",IF(OR('1. Checklist & Certification'!$M$15>0,S213=\"CHRP-R\",U213=\"CHRP-R\",W213=\"CHRP-R\",Y213=\"CHRP-R\"),\"Under\",\"No\"))","v":"No"},"No","No",{"$f":"_xlfn.IFS(D213=\"\",\"\",D213=1,'MHP Family Income & Rent Limits'!$E$17,D213=2,'MHP Family Income & Rent Limits'!$F$17,D213=3,'MHP Family Income & Rent Limits'!$G$17,D213=4,'MHP Family Income & Rent Limits'!$H$17,D213=5,'MHP Family Income & Rent Limits'!$I$17,D213=6,'MHP Family Income & Rent Limits'!$J$17,D213=7,'MHP Family Income & Rent Limits'!$K$17,D213=8,'MHP Family Income & Rent Limits'!$L$17)","v":""},"",{"$f":"IF(OR(A213=0,B213=\"X\"),0,MIN(IF(AA213:AD213<>0,AA213:AD213)))","v":0},{"$f":"IF(OR(H213=\"\",I213=\"\"),0,IF(H213*0.3/12>I213,MIN(H213*0.3/12,I213*1.1)+AP213,I213*(1+(VLOOKUP('1. Checklist & Certification'!$F$9,'HLCP-E Rent Change'!$A$1:$D$59,4,FALSE)))+AP213))","v":0}]
[null,null,null,null,null,null,null,null,null,null,null,null,null,null,null,null,null,null,null,null,null,null,null,null,null,null,0,0,0,0,0,0,0,0,{"$f":"IF(OR(A214=0,B214=\"X\"),0,IF(OR(S214=\"FHDP\",S214=\"RHCP-B\",U214=\"FHDP\",U214=\"RHCP-B\",W214=\"FHDP\",W214=\"RHCP-B\",Y214=\"FHDP\",Y214=\"RHCP-B\"),TRUNC((MIN(I214,K214)*(1+'1. Checklist & Certification'!$K$43)+AP214)),0))","v":0},{"$f":"IF(OR(A214=0,B214=\"X\"),0,IF(OR(S214=\"CHRP-R\",S214=\"SERA\",S214=\"SUHRP\",U214=\"CHRP-R\",U214=\"SERA\",U214=\"SUHRP\",W214=\"CHRP-R\",W214=\"SERA\",W214=\"SUHRP\",Y214=\"CHRP-R\",Y214=\"SERA\",Y214=\"SUHRP\"),TRUNC((MIN(I214,K214)*(1+'1. Checklist & Certification'!$K$49))),0))","v":0},{"$f":"IF(OR(A214=0,B214=\"X\"),0,IF(OR(S214=\"CALDAP\",S214=\"DPRLP\",U214=\"CALDAP\",U214=\"DPRLP\",W214=\"CALDAP\",W214=\"DPRLP\",Y214=\"CALDAP\",Y214=\"DPRLP\"),TRUNC(((MIN(I214,K214))*(1+'1. Checklist & Certification'!$G$4))),0))","v":0},0,0,0,{"$f":"IF(OR(A214=0,B214=\"X\"),0,IF(OR(S214=\"PRP\",S214=\"LPR\",U214=\"PRP\",U214=\"LPR\",W214=\"PRP\",W214=\"LPR\",Y214=\"PRP\",Y214=\"LPR\"),MAX(I214+AP214,MIN(IF(AE214:AN214<>0,AE214:AN214))),MIN(IF(AE214:AN214<>0,AE214:AN214))))","v":0},{"$f":"IF(A214=0,0,IF(AND(OR(S214=\"Mgr\",S214=0),OR(U214=\"Mgr\",U214=0),OR(W214=\"Mgr\",W214=0)),0,IF(LEFT($A214,2)=\"B*\",VLOOKUP($E214,'1. Checklist & Certification'!$D$26:$E$32,2),IF(LEFT($A214,2)=\"C*\",VLOOKUP($E214,'1. Checklist & Certification'!$F$26:$G$32,2),IF(LEFT($A214,2)=\"D*\",VLOOKUP($E214,'1. Checklist & Certification'!$H$26:$I$32,2),IF(LEFT($A214,2)=\"E*\",VLOOKUP($E214,'1. Checklist & Certification'!$J$26:$K$32,2),VLOOKUP($E214,'1. Checklist & Certification'!$A$26:$B$32,2)))))))","v":0},0,0,null,null,null,null,"","",0,0,0,null,{"$f":"IF(A214=\"\",\"\",'1. Checklist & Certification'!$K$1)","v":""},{"$f":"IF(A214=\"\",\"\",'1. Checklist & Certification'!$C$62)","v":""},{"$f":"IF(A214=\"\",\"\",'1. Checklist & Certification'!$C$6)","v":""},{"$f":"IF(A214=\"\",\"\",'1. Checklist & Certification'!$G$5)","v":""},{"$f":"IFERROR(IF(A214=\"\",\"\",\n_xlfn.LET(_xlpm.Contract,'1. Checklist & Certification'!$C$7,\n_xlpm.Yr,TEXT(MOD(_xlfn.TEXTBEFORE(_xlpm.Contract,\"-\"),100),\"00\"),\n_xlpm.Program,_xlfn.TEXTAFTER(_xlfn.TEXTBEFORE(_xlpm.Contract,\"-\",2),\"-\"),\n_xlpm.CleanProgram,_xlfn.XLOOKUP(_xlpm.Program,SpellCheck[Input],SpellCheck[Correction],_xlpm.Program),\n_xlpm.Number,TEXT(_xlfn.TEXTAFTER(_xlpm.Contract,\"-\",2),\"0000\"),\n_xlfn.CONCAT(_xlpm.Yr,\"-\",_xlpm.CleanProgram,\"-\",_xlpm.Number))\n),\"\")","v":""},{"$f":"IFERROR(IF(A214=\"\",\"\",\n_xlfn.LET(_xlpm.Contract,'1. Checklist & Certification'!$C$8,\n_xlpm.Yr,TEXT(MOD(_xlfn.TEXTBEFORE(_xlpm.Contract,\"-\"),100),\"00\"),\n_xlpm.Program,_xlfn.TEXTAFTER(_xlfn.TEXTBEFORE(_xlpm.Contract,\"-\",2),\"-\"),\n_xlpm.CleanProgram,_xlfn.XLOOKUP(_xlpm.Program,SpellCheck[Input],SpellCheck[Correction],_xlpm.Program),\n_xlpm.Number,TEXT(_xlfn.TEXTAFTER(_xlpm.Contract,\"-\",2),\"0000\"),\n_xlfn.CONCAT(_xlpm.Yr,\"-\",_xlpm.CleanProgram,\"-\",_xlpm.Number))\n),\"\")","v":""},{"$f":"IFERROR(IF(A214=\"\",\"\",\n_xlfn.LET(_xlpm.Contract,'1. Checklist & Certification'!$F$7,\n_xlpm.Yr,TEXT(MOD(_xlfn.TEXTBEFORE(_xlpm.Contract,\"-\"),100),\"00\"),\n_xlpm.Program,_xlfn.TEXTAFTER(_xlfn.TEXTBEFORE(_xlpm.Contract,\"-\",2),\"-\"),\n_xlpm.CleanProgram,_xlfn.XLOOKUP(_xlpm.Program,SpellCheck[Input],SpellCheck[Correction],_xlpm.Program),\n_xlpm.Number,TEXT(_xlfn.TEXTAFTER(_xlpm.Contract,\"-\",2),\"0000\"),\n_xlfn.CONCAT(_xlpm.Yr,\"-\",_xlpm.CleanProgram,\"-\",_xlpm.Number))\n),\"\")","v":""},{"$f":"IFERROR(IF(A214=\"\",\"\",\n_xlfn.LET(_xlpm.Contract,'1. Checklist & Certification'!$F$8,\n_xlpm.Yr,TEXT(MOD(_xlfn.TEXTBEFORE(_xlpm.Contract,\"-\"),100),\"00\"),\n_xlpm.Program,_xlfn.TEXTAFTER(_xlfn.TEXTBEFORE(_xlpm.Contract,\"-\",2),\"-\"),\n_xlpm.CleanProgram,_xlfn.XLOOKUP(_xlpm.Program,SpellCheck[Input],SpellCheck[Correction],_xlpm.Program),\n_xlpm.Number,TEXT(_xlfn.TEXTAFTER(_xlpm.Contract,\"-\",2),\"0000\"),\n_xlfn.CONCAT(_xlpm.Yr,\"-\",_xlpm.CleanProgram,\"-\",_xlpm.Number))\n),\"\")","v":""},{"$f":"IF(A214=\"\",\"\",'1. Checklist & Certification'!$B$9)","v":""},{"$f":"IF(A214=\"\",\"\",'1. Checklist & Certification'!$F$9)","v":""},{"$f":"IF(A214=\"\",\"\",'1. Checklist & Certification'!$C$10)","v":""},{"$f":"IF(A214=\"\",\"\",'1. Checklist & Certification'!$C$11)","v":""},{"$f":"IF(A214=\"\",\"\",'1. Checklist & Certification'!$C$12)","v":""},{"$f":"IF(A214=\"\",\"\",'1. Checklist & Certification'!$B$14)","v":""},{"$f":"IF(A214=\"\",\"\",'1. Checklist & Certification'!$E$14)","v":""},{"$f":"IF(B214=\"\",\"\",'1. Checklist & Certification'!$G$14)","v":""},{"$f":"IF(A214=\"\",\"\",'MHP Family Income & Rent Limits'!$B$3)","v":""},{"$f":"IF(A214=\"\",\"\",'MHP Family Income & Rent Limits'!$J$3)","v":""},{"$f":"IF(A214=\"\",\"\",'MHP Family Income & Rent Limits'!$E$4)","v":""},{"$f":"IF(A214=\"\",\"\",'MHP Family Income & Rent Limits'!$C$7)","v":""},{"$f":"IF(A214=\"\",\"\",'MHP Family Income & Rent Limits'!$F$8)","v":""},{"$f":"IF(A214=\"\",\"\",'1. Checklist & Certification'!$G$4)","v":""},{"$f":"IF(A214=\"\",\"\",'1. Checklist & Certification'!$K$39)","v":""},{"$f":"IF(A214=\"\",\"\",'1. Checklist & Certification'!$K$43)","v":""},{"$f":"IF(A214=\"\",\"\",'1. Checklist & Certification'!$K$45)","v":""},{"$f":"IF(A214=\"\",\"\",'1. Checklist & Certification'!$K$49)","v":""},{"$f":"IF(A214=\"\",\"\",'1. Checklist & Certification'!$K$62)","v":""},{"$f":"IF(A214=\"\",\"\",'1. Checklist & Certification'!$E$66)","v":""},{"$f":"IF(A214=\"\",\"\",'1. Checklist & Certification'!$E$67)","v":""},{"$f":"IF(A214=\"\",\"\",'1. Checklist & Certification'!$E$68)","v":""},{"$f":"IF(A214=\"\",\"\",'1. Checklist & Certification'!$G$66)","v":""},{"$f":"IF(A214=\"\",\"\",'1. Checklist & Certification'!$H$66)","v":""},{"$f":"IF(A214=\"\",\"\",'1. Checklist & Certification'!$I$66)","v":""},{"$f":"IF(A214=\"\",\"\",'1. Checklist & Certification'!$I$67)","v":""},{"$f":"IF(A214=\"\",\"\",'1. Checklist & Certification'!$I$68)","v":""},{"$f":"IF(A214=\"\",\"\",'1. Checklist & Certification'!$B$69)","v":""},{"$f":"IF(A214=\"\",\"\",'1. Checklist & Certification'!$C$69)","v":""},{"$f":"IF(A214=\"\",\"\",'1. Checklist & Certification'!$F$69)","v":""},{"$f":"IF(A214=\"\",\"\",'1. Checklist & Certification'!$G$69)","v":""},{"$f":"IF(A214=\"\",\"\",'1. Checklist & Certification'!$J$69)","v":""},{"$f":"IF(A214=\"\",\"\",'1. Checklist & Certification'!$K$69)","v":""},null,null,{"$f":"IF(AND(OR('1. Checklist & Certification'!$M$16=1,'1. Checklist & Certification'!$M$19=2),AO214>0,B214=\"\",I214>0,AQ214<I214,AV214<>\"Sec 8-Project\"),\"X\",IF(AND(OR('1. Checklist & Certification'!$M$20=4,'1. Checklist & Certification'!$M$21=5,'1. Checklist & Certification'!$M$22=7),AO214>0,B214=\"\",I214>0,K214<I214),\"X\",\"\"))","v":""},{"$f":"IF(A214=\"\",\"\",IF(SUMPRODUCT(-- (ISNUMBER(SEARCH({\"*AHSC*\",\"*FMTW*\",\"*FWHG*\",\"*GHI*\",\"*HHC*\",\"*HLCP*\",\"*HOME*\",\"*LPR*\",\"*MHP*\",\"*NHTF*\",\"*NSP*\",\"*PRP*\",\"*TOD*\",\"*VHHP*\"},'1. Checklist & Certification'!$L$7)))),\"MHP\",\"Legacy\"))","v":""},",,",null,null,null,{"$f":"IF('1. Checklist & Certification'!$M$20=4,\"Both\",IF(OR('1. Checklist & Certification'!$M$15>0,S214=\"CHRP-R\",U214=\"CHRP-R\",W214=\"CHRP-R\",Y214=\"CHRP-R\"),\"Under\",\"No\"))","v":"No"},"No","No",{"$f":"_xlfn.IFS(D214=\"\",\"\",D214=1,'MHP Family Income & Rent Limits'!$E$17,D214=2,'MHP Family Income & Rent Limits'!$F$17,D214=3,'MHP Family Income & Rent Limits'!$G$17,D214=4,'MHP Family Income & Rent Limits'!$H$17,D214=5,'MHP Family Income & Rent Limits'!$I$17,D214=6,'MHP Family Income & Rent Limits'!$J$17,D214=7,'MHP Family Income & Rent Limits'!$K$17,D214=8,'MHP Family Income & Rent Limits'!$L$17)","v":""},"",{"$f":"IF(OR(A214=0,B214=\"X\"),0,MIN(IF(AA214:AD214<>0,AA214:AD214)))","v":0},{"$f":"IF(OR(H214=\"\",I214=\"\"),0,IF(H214*0.3/12>I214,MIN(H214*0.3/12,I214*1.1)+AP214,I214*(1+(VLOOKUP('1. Checklist & Certification'!$F$9,'HLCP-E Rent Change'!$A$1:$D$59,4,FALSE)))+AP214))","v":0}]
[null,null,null,null,null,null,null,null,null,null,null,null,null,null,null,null,null,null,null,null,null,null,null,null,null,null,0,0,0,0,0,0,0,0,{"$f":"IF(OR(A215=0,B215=\"X\"),0,IF(OR(S215=\"FHDP\",S215=\"RHCP-B\",U215=\"FHDP\",U215=\"RHCP-B\",W215=\"FHDP\",W215=\"RHCP-B\",Y215=\"FHDP\",Y215=\"RHCP-B\"),TRUNC((MIN(I215,K215)*(1+'1. Checklist & Certification'!$K$43)+AP215)),0))","v":0},{"$f":"IF(OR(A215=0,B215=\"X\"),0,IF(OR(S215=\"CHRP-R\",S215=\"SERA\",S215=\"SUHRP\",U215=\"CHRP-R\",U215=\"SERA\",U215=\"SUHRP\",W215=\"CHRP-R\",W215=\"SERA\",W215=\"SUHRP\",Y215=\"CHRP-R\",Y215=\"SERA\",Y215=\"SUHRP\"),TRUNC((MIN(I215,K215)*(1+'1. Checklist & Certification'!$K$49))),0))","v":0},{"$f":"IF(OR(A215=0,B215=\"X\"),0,IF(OR(S215=\"CALDAP\",S215=\"DPRLP\",U215=\"CALDAP\",U215=\"DPRLP\",W215=\"CALDAP\",W215=\"DPRLP\",Y215=\"CALDAP\",Y215=\"DPRLP\"),TRUNC(((MIN(I215,K215))*(1+'1. Checklist & Certification'!$G$4))),0))","v":0},0,0,0,{"$f":"IF(OR(A215=0,B215=\"X\"),0,IF(OR(S215=\"PRP\",S215=\"LPR\",U215=\"PRP\",U215=\"LPR\",W215=\"PRP\",W215=\"LPR\",Y215=\"PRP\",Y215=\"LPR\"),MAX(I215+AP215,MIN(IF(AE215:AN215<>0,AE215:AN215))),MIN(IF(AE215:AN215<>0,AE215:AN215))))","v":0},{"$f":"IF(A215=0,0,IF(AND(OR(S215=\"Mgr\",S215=0),OR(U215=\"Mgr\",U215=0),OR(W215=\"Mgr\",W215=0)),0,IF(LEFT($A215,2)=\"B*\",VLOOKUP($E215,'1. Checklist & Certification'!$D$26:$E$32,2),IF(LEFT($A215,2)=\"C*\",VLOOKUP($E215,'1. Checklist & Certification'!$F$26:$G$32,2),IF(LEFT($A215,2)=\"D*\",VLOOKUP($E215,'1. Checklist & Certification'!$H$26:$I$32,2),IF(LEFT($A215,2)=\"E*\",VLOOKUP($E215,'1. Checklist & Certification'!$J$26:$K$32,2),VLOOKUP($E215,'1. Checklist & Certification'!$A$26:$B$32,2)))))))","v":0},0,0,null,null,null,null,"","",0,0,0,null,{"$f":"IF(A215=\"\",\"\",'1. Checklist & Certification'!$K$1)","v":""},{"$f":"IF(A215=\"\",\"\",'1. Checklist & Certification'!$C$62)","v":""},{"$f":"IF(A215=\"\",\"\",'1. Checklist & Certification'!$C$6)","v":""},{"$f":"IF(A215=\"\",\"\",'1. Checklist & Certification'!$G$5)","v":""},{"$f":"IFERROR(IF(A215=\"\",\"\",\n_xlfn.LET(_xlpm.Contract,'1. Checklist & Certification'!$C$7,\n_xlpm.Yr,TEXT(MOD(_xlfn.TEXTBEFORE(_xlpm.Contract,\"-\"),100),\"00\"),\n_xlpm.Program,_xlfn.TEXTAFTER(_xlfn.TEXTBEFORE(_xlpm.Contract,\"-\",2),\"-\"),\n_xlpm.CleanProgram,_xlfn.XLOOKUP(_xlpm.Program,SpellCheck[Input],SpellCheck[Correction],_xlpm.Program),\n_xlpm.Number,TEXT(_xlfn.TEXTAFTER(_xlpm.Contract,\"-\",2),\"0000\"),\n_xlfn.CONCAT(_xlpm.Yr,\"-\",_xlpm.CleanProgram,\"-\",_xlpm.Number))\n),\"\")","v":""},{"$f":"IFERROR(IF(A215=\"\",\"\",\n_xlfn.LET(_xlpm.Contract,'1. Checklist & Certification'!$C$8,\n_xlpm.Yr,TEXT(MOD(_xlfn.TEXTBEFORE(_xlpm.Contract,\"-\"),100),\"00\"),\n_xlpm.Program,_xlfn.TEXTAFTER(_xlfn.TEXTBEFORE(_xlpm.Contract,\"-\",2),\"-\"),\n_xlpm.CleanProgram,_xlfn.XLOOKUP(_xlpm.Program,SpellCheck[Input],SpellCheck[Correction],_xlpm.Program),\n_xlpm.Number,TEXT(_xlfn.TEXTAFTER(_xlpm.Contract,\"-\",2),\"0000\"),\n_xlfn.CONCAT(_xlpm.Yr,\"-\",_xlpm.CleanProgram,\"-\",_xlpm.Number))\n),\"\")","v":""},{"$f":"IFERROR(IF(A215=\"\",\"\",\n_xlfn.LET(_xlpm.Contract,'1. Checklist & Certification'!$F$7,\n_xlpm.Yr,TEXT(MOD(_xlfn.TEXTBEFORE(_xlpm.Contract,\"-\"),100),\"00\"),\n_xlpm.Program,_xlfn.TEXTAFTER(_xlfn.TEXTBEFORE(_xlpm.Contract,\"-\",2),\"-\"),\n_xlpm.CleanProgram,_xlfn.XLOOKUP(_xlpm.Program,SpellCheck[Input],SpellCheck[Correction],_xlpm.Program),\n_xlpm.Number,TEXT(_xlfn.TEXTAFTER(_xlpm.Contract,\"-\",2),\"0000\"),\n_xlfn.CONCAT(_xlpm.Yr,\"-\",_xlpm.CleanProgram,\"-\",_xlpm.Number))\n),\"\")","v":""},{"$f":"IFERROR(IF(A215=\"\",\"\",\n_xlfn.LET(_xlpm.Contract,'1. Checklist & Certification'!$F$8,\n_xlpm.Yr,TEXT(MOD(_xlfn.TEXTBEFORE(_xlpm.Contract,\"-\"),100),\"00\"),\n_xlpm.Program,_xlfn.TEXTAFTER(_xlfn.TEXTBEFORE(_xlpm.Contract,\"-\",2),\"-\"),\n_xlpm.CleanProgram,_xlfn.XLOOKUP(_xlpm.Program,SpellCheck[Input],SpellCheck[Correction],_xlpm.Program),\n_xlpm.Number,TEXT(_xlfn.TEXTAFTER(_xlpm.Contract,\"-\",2),\"0000\"),\n_xlfn.CONCAT(_xlpm.Yr,\"-\",_xlpm.CleanProgram,\"-\",_xlpm.Number))\n),\"\")","v":""},{"$f":"IF(A215=\"\",\"\",'1. Checklist & Certification'!$B$9)","v":""},{"$f":"IF(A215=\"\",\"\",'1. Checklist & Certification'!$F$9)","v":""},{"$f":"IF(A215=\"\",\"\",'1. Checklist & Certification'!$C$10)","v":""},{"$f":"IF(A215=\"\",\"\",'1. Checklist & Certification'!$C$11)","v":""},{"$f":"IF(A215=\"\",\"\",'1. Checklist & Certification'!$C$12)","v":""},{"$f":"IF(A215=\"\",\"\",'1. Checklist & Certification'!$B$14)","v":""},{"$f":"IF(A215=\"\",\"\",'1. Checklist & Certification'!$E$14)","v":""},{"$f":"IF(B215=\"\",\"\",'1. Checklist & Certification'!$G$14)","v":""},{"$f":"IF(A215=\"\",\"\",'MHP Family Income & Rent Limits'!$B$3)","v":""},{"$f":"IF(A215=\"\",\"\",'MHP Family Income & Rent Limits'!$J$3)","v":""},{"$f":"IF(A215=\"\",\"\",'MHP Family Income & Rent Limits'!$E$4)","v":""},{"$f":"IF(A215=\"\",\"\",'MHP Family Income & Rent Limits'!$C$7)","v":""},{"$f":"IF(A215=\"\",\"\",'MHP Family Income & Rent Limits'!$F$8)","v":""},{"$f":"IF(A215=\"\",\"\",'1. Checklist & Certification'!$G$4)","v":""},{"$f":"IF(A215=\"\",\"\",'1. Checklist & Certification'!$K$39)","v":""},{"$f":"IF(A215=\"\",\"\",'1. Checklist & Certification'!$K$43)","v":""},{"$f":"IF(A215=\"\",\"\",'1. Checklist & Certification'!$K$45)","v":""},{"$f":"IF(A215=\"\",\"\",'1. Checklist & Certification'!$K$49)","v":""},{"$f":"IF(A215=\"\",\"\",'1. Checklist & Certification'!$K$62)","v":""},{"$f":"IF(A215=\"\",\"\",'1. Checklist & Certification'!$E$66)","v":""},{"$f":"IF(A215=\"\",\"\",'1. Checklist & Certification'!$E$67)","v":""},{"$f":"IF(A215=\"\",\"\",'1. Checklist & Certification'!$E$68)","v":""},{"$f":"IF(A215=\"\",\"\",'1. Checklist & Certification'!$G$66)","v":""},{"$f":"IF(A215=\"\",\"\",'1. Checklist & Certification'!$H$66)","v":""},{"$f":"IF(A215=\"\",\"\",'1. Checklist & Certification'!$I$66)","v":""},{"$f":"IF(A215=\"\",\"\",'1. Checklist & Certification'!$I$67)","v":""},{"$f":"IF(A215=\"\",\"\",'1. Checklist & Certification'!$I$68)","v":""},{"$f":"IF(A215=\"\",\"\",'1. Checklist & Certification'!$B$69)","v":""},{"$f":"IF(A215=\"\",\"\",'1. Checklist & Certification'!$C$69)","v":""},{"$f":"IF(A215=\"\",\"\",'1. Checklist & Certification'!$F$69)","v":""},{"$f":"IF(A215=\"\",\"\",'1. Checklist & Certification'!$G$69)","v":""},{"$f":"IF(A215=\"\",\"\",'1. Checklist & Certification'!$J$69)","v":""},{"$f":"IF(A215=\"\",\"\",'1. Checklist & Certification'!$K$69)","v":""},null,null,{"$f":"IF(AND(OR('1. Checklist & Certification'!$M$16=1,'1. Checklist & Certification'!$M$19=2),AO215>0,B215=\"\",I215>0,AQ215<I215,AV215<>\"Sec 8-Project\"),\"X\",IF(AND(OR('1. Checklist & Certification'!$M$20=4,'1. Checklist & Certification'!$M$21=5,'1. Checklist & Certification'!$M$22=7),AO215>0,B215=\"\",I215>0,K215<I215),\"X\",\"\"))","v":""},{"$f":"IF(A215=\"\",\"\",IF(SUMPRODUCT(-- (ISNUMBER(SEARCH({\"*AHSC*\",\"*FMTW*\",\"*FWHG*\",\"*GHI*\",\"*HHC*\",\"*HLCP*\",\"*HOME*\",\"*LPR*\",\"*MHP*\",\"*NHTF*\",\"*NSP*\",\"*PRP*\",\"*TOD*\",\"*VHHP*\"},'1. Checklist & Certification'!$L$7)))),\"MHP\",\"Legacy\"))","v":""},",,",null,null,null,{"$f":"IF('1. Checklist & Certification'!$M$20=4,\"Both\",IF(OR('1. Checklist & Certification'!$M$15>0,S215=\"CHRP-R\",U215=\"CHRP-R\",W215=\"CHRP-R\",Y215=\"CHRP-R\"),\"Under\",\"No\"))","v":"No"},"No","No",{"$f":"_xlfn.IFS(D215=\"\",\"\",D215=1,'MHP Family Income & Rent Limits'!$E$17,D215=2,'MHP Family Income & Rent Limits'!$F$17,D215=3,'MHP Family Income & Rent Limits'!$G$17,D215=4,'MHP Family Income & Rent Limits'!$H$17,D215=5,'MHP Family Income & Rent Limits'!$I$17,D215=6,'MHP Family Income & Rent Limits'!$J$17,D215=7,'MHP Family Income & Rent Limits'!$K$17,D215=8,'MHP Family Income & Rent Limits'!$L$17)","v":""},"",{"$f":"IF(OR(A215=0,B215=\"X\"),0,MIN(IF(AA215:AD215<>0,AA215:AD215)))","v":0},{"$f":"IF(OR(H215=\"\",I215=\"\"),0,IF(H215*0.3/12>I215,MIN(H215*0.3/12,I215*1.1)+AP215,I215*(1+(VLOOKUP('1. Checklist & Certification'!$F$9,'HLCP-E Rent Change'!$A$1:$D$59,4,FALSE)))+AP215))","v":0}]
[null,null,null,null,null,null,null,null,null,null,null,null,null,null,null,null,null,null,null,null,null,null,null,null,null,null,0,0,0,0,0,0,0,0,{"$f":"IF(OR(A216=0,B216=\"X\"),0,IF(OR(S216=\"FHDP\",S216=\"RHCP-B\",U216=\"FHDP\",U216=\"RHCP-B\",W216=\"FHDP\",W216=\"RHCP-B\",Y216=\"FHDP\",Y216=\"RHCP-B\"),TRUNC((MIN(I216,K216)*(1+'1. Checklist & Certification'!$K$43)+AP216)),0))","v":0},{"$f":"IF(OR(A216=0,B216=\"X\"),0,IF(OR(S216=\"CHRP-R\",S216=\"SERA\",S216=\"SUHRP\",U216=\"CHRP-R\",U216=\"SERA\",U216=\"SUHRP\",W216=\"CHRP-R\",W216=\"SERA\",W216=\"SUHRP\",Y216=\"CHRP-R\",Y216=\"SERA\",Y216=\"SUHRP\"),TRUNC((MIN(I216,K216)*(1+'1. Checklist & Certification'!$K$49))),0))","v":0},{"$f":"IF(OR(A216=0,B216=\"X\"),0,IF(OR(S216=\"CALDAP\",S216=\"DPRLP\",U216=\"CALDAP\",U216=\"DPRLP\",W216=\"CALDAP\",W216=\"DPRLP\",Y216=\"CALDAP\",Y216=\"DPRLP\"),TRUNC(((MIN(I216,K216))*(1+'1. Checklist & Certification'!$G$4))),0))","v":0},0,0,0,{"$f":"IF(OR(A216=0,B216=\"X\"),0,IF(OR(S216=\"PRP\",S216=\"LPR\",U216=\"PRP\",U216=\"LPR\",W216=\"PRP\",W216=\"LPR\",Y216=\"PRP\",Y216=\"LPR\"),MAX(I216+AP216,MIN(IF(AE216:AN216<>0,AE216:AN216))),MIN(IF(AE216:AN216<>0,AE216:AN216))))","v":0},{"$f":"IF(A216=0,0,IF(AND(OR(S216=\"Mgr\",S216=0),OR(U216=\"Mgr\",U216=0),OR(W216=\"Mgr\",W216=0)),0,IF(LEFT($A216,2)=\"B*\",VLOOKUP($E216,'1. Checklist & Certification'!$D$26:$E$32,2),IF(LEFT($A216,2)=\"C*\",VLOOKUP($E216,'1. Checklist & Certification'!$F$26:$G$32,2),IF(LEFT($A216,2)=\"D*\",VLOOKUP($E216,'1. Checklist & Certification'!$H$26:$I$32,2),IF(LEFT($A216,2)=\"E*\",VLOOKUP($E216,'1. Checklist & Certification'!$J$26:$K$32,2),VLOOKUP($E216,'1. Checklist & Certification'!$A$26:$B$32,2)))))))","v":0},0,0,null,null,null,null,"","",0,0,0,null,{"$f":"IF(A216=\"\",\"\",'1. Checklist & Certification'!$K$1)","v":""},{"$f":"IF(A216=\"\",\"\",'1. Checklist & Certification'!$C$62)","v":""},{"$f":"IF(A216=\"\",\"\",'1. Checklist & Certification'!$C$6)","v":""},{"$f":"IF(A216=\"\",\"\",'1. Checklist & Certification'!$G$5)","v":""},{"$f":"IFERROR(IF(A216=\"\",\"\",\n_xlfn.LET(_xlpm.Contract,'1. Checklist & Certification'!$C$7,\n_xlpm.Yr,TEXT(MOD(_xlfn.TEXTBEFORE(_xlpm.Contract,\"-\"),100),\"00\"),\n_xlpm.Program,_xlfn.TEXTAFTER(_xlfn.TEXTBEFORE(_xlpm.Contract,\"-\",2),\"-\"),\n_xlpm.CleanProgram,_xlfn.XLOOKUP(_xlpm.Program,SpellCheck[Input],SpellCheck[Correction],_xlpm.Program),\n_xlpm.Number,TEXT(_xlfn.TEXTAFTER(_xlpm.Contract,\"-\",2),\"0000\"),\n_xlfn.CONCAT(_xlpm.Yr,\"-\",_xlpm.CleanProgram,\"-\",_xlpm.Number))\n),\"\")","v":""},{"$f":"IFERROR(IF(A216=\"\",\"\",\n_xlfn.LET(_xlpm.Contract,'1. Checklist & Certification'!$C$8,\n_xlpm.Yr,TEXT(MOD(_xlfn.TEXTBEFORE(_xlpm.Contract,\"-\"),100),\"00\"),\n_xlpm.Program,_xlfn.TEXTAFTER(_xlfn.TEXTBEFORE(_xlpm.Contract,\"-\",2),\"-\"),\n_xlpm.CleanProgram,_xlfn.XLOOKUP(_xlpm.Program,SpellCheck[Input],SpellCheck[Correction],_xlpm.Program),\n_xlpm.Number,TEXT(_xlfn.TEXTAFTER(_xlpm.Contract,\"-\",2),\"0000\"),\n_xlfn.CONCAT(_xlpm.Yr,\"-\",_xlpm.CleanProgram,\"-\",_xlpm.Number))\n),\"\")","v":""},{"$f":"IFERROR(IF(A216=\"\",\"\",\n_xlfn.LET(_xlpm.Contract,'1. Checklist & Certification'!$F$7,\n_xlpm.Yr,TEXT(MOD(_xlfn.TEXTBEFORE(_xlpm.Contract,\"-\"),100),\"00\"),\n_xlpm.Program,_xlfn.TEXTAFTER(_xlfn.TEXTBEFORE(_xlpm.Contract,\"-\",2),\"-\"),\n_xlpm.CleanProgram,_xlfn.XLOOKUP(_xlpm.Program,SpellCheck[Input],SpellCheck[Correction],_xlpm.Program),\n_xlpm.Number,TEXT(_xlfn.TEXTAFTER(_xlpm.Contract,\"-\",2),\"0000\"),\n_xlfn.CONCAT(_xlpm.Yr,\"-\",_xlpm.CleanProgram,\"-\",_xlpm.Number))\n),\"\")","v":""},{"$f":"IFERROR(IF(A216=\"\",\"\",\n_xlfn.LET(_xlpm.Contract,'1. Checklist & Certification'!$F$8,\n_xlpm.Yr,TEXT(MOD(_xlfn.TEXTBEFORE(_xlpm.Contract,\"-\"),100),\"00\"),\n_xlpm.Program,_xlfn.TEXTAFTER(_xlfn.TEXTBEFORE(_xlpm.Contract,\"-\",2),\"-\"),\n_xlpm.CleanProgram,_xlfn.XLOOKUP(_xlpm.Program,SpellCheck[Input],SpellCheck[Correction],_xlpm.Program),\n_xlpm.Number,TEXT(_xlfn.TEXTAFTER(_xlpm.Contract,\"-\",2),\"0000\"),\n_xlfn.CONCAT(_xlpm.Yr,\"-\",_xlpm.CleanProgram,\"-\",_xlpm.Number))\n),\"\")","v":""},{"$f":"IF(A216=\"\",\"\",'1. Checklist & Certification'!$B$9)","v":""},{"$f":"IF(A216=\"\",\"\",'1. Checklist & Certification'!$F$9)","v":""},{"$f":"IF(A216=\"\",\"\",'1. Checklist & Certification'!$C$10)","v":""},{"$f":"IF(A216=\"\",\"\",'1. Checklist & Certification'!$C$11)","v":""},{"$f":"IF(A216=\"\",\"\",'1. Checklist & Certification'!$C$12)","v":""},{"$f":"IF(A216=\"\",\"\",'1. Checklist & Certification'!$B$14)","v":""},{"$f":"IF(A216=\"\",\"\",'1. Checklist & Certification'!$E$14)","v":""},{"$f":"IF(B216=\"\",\"\",'1. Checklist & Certification'!$G$14)","v":""},{"$f":"IF(A216=\"\",\"\",'MHP Family Income & Rent Limits'!$B$3)","v":""},{"$f":"IF(A216=\"\",\"\",'MHP Family Income & Rent Limits'!$J$3)","v":""},{"$f":"IF(A216=\"\",\"\",'MHP Family Income & Rent Limits'!$E$4)","v":""},{"$f":"IF(A216=\"\",\"\",'MHP Family Income & Rent Limits'!$C$7)","v":""},{"$f":"IF(A216=\"\",\"\",'MHP Family Income & Rent Limits'!$F$8)","v":""},{"$f":"IF(A216=\"\",\"\",'1. Checklist & Certification'!$G$4)","v":""},{"$f":"IF(A216=\"\",\"\",'1. Checklist & Certification'!$K$39)","v":""},{"$f":"IF(A216=\"\",\"\",'1. Checklist & Certification'!$K$43)","v":""},{"$f":"IF(A216=\"\",\"\",'1. Checklist & Certification'!$K$45)","v":""},{"$f":"IF(A216=\"\",\"\",'1. Checklist & Certification'!$K$49)","v":""},{"$f":"IF(A216=\"\",\"\",'1. Checklist & Certification'!$K$62)","v":""},{"$f":"IF(A216=\"\",\"\",'1. Checklist & Certification'!$E$66)","v":""},{"$f":"IF(A216=\"\",\"\",'1. Checklist & Certification'!$E$67)","v":""},{"$f":"IF(A216=\"\",\"\",'1. Checklist & Certification'!$E$68)","v":""},{"$f":"IF(A216=\"\",\"\",'1. Checklist & Certification'!$G$66)","v":""},{"$f":"IF(A216=\"\",\"\",'1. Checklist & Certification'!$H$66)","v":""},{"$f":"IF(A216=\"\",\"\",'1. Checklist & Certification'!$I$66)","v":""},{"$f":"IF(A216=\"\",\"\",'1. Checklist & Certification'!$I$67)","v":""},{"$f":"IF(A216=\"\",\"\",'1. Checklist & Certification'!$I$68)","v":""},{"$f":"IF(A216=\"\",\"\",'1. Checklist & Certification'!$B$69)","v":""},{"$f":"IF(A216=\"\",\"\",'1. Checklist & Certification'!$C$69)","v":""},{"$f":"IF(A216=\"\",\"\",'1. Checklist & Certification'!$F$69)","v":""},{"$f":"IF(A216=\"\",\"\",'1. Checklist & Certification'!$G$69)","v":""},{"$f":"IF(A216=\"\",\"\",'1. Checklist & Certification'!$J$69)","v":""},{"$f":"IF(A216=\"\",\"\",'1. Checklist & Certification'!$K$69)","v":""},null,null,{"$f":"IF(AND(OR('1. Checklist & Certification'!$M$16=1,'1. Checklist & Certification'!$M$19=2),AO216>0,B216=\"\",I216>0,AQ216<I216,AV216<>\"Sec 8-Project\"),\"X\",IF(AND(OR('1. Checklist & Certification'!$M$20=4,'1. Checklist & Certification'!$M$21=5,'1. Checklist & Certification'!$M$22=7),AO216>0,B216=\"\",I216>0,K216<I216),\"X\",\"\"))","v":""},{"$f":"IF(A216=\"\",\"\",IF(SUMPRODUCT(-- (ISNUMBER(SEARCH({\"*AHSC*\",\"*FMTW*\",\"*FWHG*\",\"*GHI*\",\"*HHC*\",\"*HLCP*\",\"*HOME*\",\"*LPR*\",\"*MHP*\",\"*NHTF*\",\"*NSP*\",\"*PRP*\",\"*TOD*\",\"*VHHP*\"},'1. Checklist & Certification'!$L$7)))),\"MHP\",\"Legacy\"))","v":""},",,",null,null,null,{"$f":"IF('1. Checklist & Certification'!$M$20=4,\"Both\",IF(OR('1. Checklist & Certification'!$M$15>0,S216=\"CHRP-R\",U216=\"CHRP-R\",W216=\"CHRP-R\",Y216=\"CHRP-R\"),\"Under\",\"No\"))","v":"No"},"No","No",{"$f":"_xlfn.IFS(D216=\"\",\"\",D216=1,'MHP Family Income & Rent Limits'!$E$17,D216=2,'MHP Family Income & Rent Limits'!$F$17,D216=3,'MHP Family Income & Rent Limits'!$G$17,D216=4,'MHP Family Income & Rent Limits'!$H$17,D216=5,'MHP Family Income & Rent Limits'!$I$17,D216=6,'MHP Family Income & Rent Limits'!$J$17,D216=7,'MHP Family Income & Rent Limits'!$K$17,D216=8,'MHP Family Income & Rent Limits'!$L$17)","v":""},"",{"$f":"IF(OR(A216=0,B216=\"X\"),0,MIN(IF(AA216:AD216<>0,AA216:AD216)))","v":0},{"$f":"IF(OR(H216=\"\",I216=\"\"),0,IF(H216*0.3/12>I216,MIN(H216*0.3/12,I216*1.1)+AP216,I216*(1+(VLOOKUP('1. Checklist & Certification'!$F$9,'HLCP-E Rent Change'!$A$1:$D$59,4,FALSE)))+AP216))","v":0}]
[null,null,null,null,null,null,null,null,null,null,null,null,null,null,null,null,null,null,null,null,null,null,null,null,null,null,0,0,0,0,0,0,0,0,{"$f":"IF(OR(A217=0,B217=\"X\"),0,IF(OR(S217=\"FHDP\",S217=\"RHCP-B\",U217=\"FHDP\",U217=\"RHCP-B\",W217=\"FHDP\",W217=\"RHCP-B\",Y217=\"FHDP\",Y217=\"RHCP-B\"),TRUNC((MIN(I217,K217)*(1+'1. Checklist & Certification'!$K$43)+AP217)),0))","v":0},{"$f":"IF(OR(A217=0,B217=\"X\"),0,IF(OR(S217=\"CHRP-R\",S217=\"SERA\",S217=\"SUHRP\",U217=\"CHRP-R\",U217=\"SERA\",U217=\"SUHRP\",W217=\"CHRP-R\",W217=\"SERA\",W217=\"SUHRP\",Y217=\"CHRP-R\",Y217=\"SERA\",Y217=\"SUHRP\"),TRUNC((MIN(I217,K217)*(1+'1. Checklist & Certification'!$K$49))),0))","v":0},{"$f":"IF(OR(A217=0,B217=\"X\"),0,IF(OR(S217=\"CALDAP\",S217=\"DPRLP\",U217=\"CALDAP\",U217=\"DPRLP\",W217=\"CALDAP\",W217=\"DPRLP\",Y217=\"CALDAP\",Y217=\"DPRLP\"),TRUNC(((MIN(I217,K217))*(1+'1. Checklist & Certification'!$G$4))),0))","v":0},0,0,0,{"$f":"IF(OR(A217=0,B217=\"X\"),0,IF(OR(S217=\"PRP\",S217=\"LPR\",U217=\"PRP\",U217=\"LPR\",W217=\"PRP\",W217=\"LPR\",Y217=\"PRP\",Y217=\"LPR\"),MAX(I217+AP217,MIN(IF(AE217:AN217<>0,AE217:AN217))),MIN(IF(AE217:AN217<>0,AE217:AN217))))","v":0},{"$f":"IF(A217=0,0,IF(AND(OR(S217=\"Mgr\",S217=0),OR(U217=\"Mgr\",U217=0),OR(W217=\"Mgr\",W217=0)),0,IF(LEFT($A217,2)=\"B*\",VLOOKUP($E217,'1. Checklist & Certification'!$D$26:$E$32,2),IF(LEFT($A217,2)=\"C*\",VLOOKUP($E217,'1. Checklist & Certification'!$F$26:$G$32,2),IF(LEFT($A217,2)=\"D*\",VLOOKUP($E217,'1. Checklist & Certification'!$H$26:$I$32,2),IF(LEFT($A217,2)=\"E*\",VLOOKUP($E217,'1. Checklist & Certification'!$J$26:$K$32,2),VLOOKUP($E217,'1. Checklist & Certification'!$A$26:$B$32,2)))))))","v":0},0,0,null,null,null,null,"","",0,0,0,null,{"$f":"IF(A217=\"\",\"\",'1. Checklist & Certification'!$K$1)","v":""},{"$f":"IF(A217=\"\",\"\",'1. Checklist & Certification'!$C$62)","v":""},{"$f":"IF(A217=\"\",\"\",'1. Checklist & Certification'!$C$6)","v":""},{"$f":"IF(A217=\"\",\"\",'1. Checklist & Certification'!$G$5)","v":""},{"$f":"IFERROR(IF(A217=\"\",\"\",\n_xlfn.LET(_xlpm.Contract,'1. Checklist & Certification'!$C$7,\n_xlpm.Yr,TEXT(MOD(_xlfn.TEXTBEFORE(_xlpm.Contract,\"-\"),100),\"00\"),\n_xlpm.Program,_xlfn.TEXTAFTER(_xlfn.TEXTBEFORE(_xlpm.Contract,\"-\",2),\"-\"),\n_xlpm.CleanProgram,_xlfn.XLOOKUP(_xlpm.Program,SpellCheck[Input],SpellCheck[Correction],_xlpm.Program),\n_xlpm.Number,TEXT(_xlfn.TEXTAFTER(_xlpm.Contract,\"-\",2),\"0000\"),\n_xlfn.CONCAT(_xlpm.Yr,\"-\",_xlpm.CleanProgram,\"-\",_xlpm.Number))\n),\"\")","v":""},{"$f":"IFERROR(IF(A217=\"\",\"\",\n_xlfn.LET(_xlpm.Contract,'1. Checklist & Certification'!$C$8,\n_xlpm.Yr,TEXT(MOD(_xlfn.TEXTBEFORE(_xlpm.Contract,\"-\"),100),\"00\"),\n_xlpm.Program,_xlfn.TEXTAFTER(_xlfn.TEXTBEFORE(_xlpm.Contract,\"-\",2),\"-\"),\n_xlpm.CleanProgram,_xlfn.XLOOKUP(_xlpm.Program,SpellCheck[Input],SpellCheck[Correction],_xlpm.Program),\n_xlpm.Number,TEXT(_xlfn.TEXTAFTER(_xlpm.Contract,\"-\",2),\"0000\"),\n_xlfn.CONCAT(_xlpm.Yr,\"-\",_xlpm.CleanProgram,\"-\",_xlpm.Number))\n),\"\")","v":""},{"$f":"IFERROR(IF(A217=\"\",\"\",\n_xlfn.LET(_xlpm.Contract,'1. Checklist & Certification'!$F$7,\n_xlpm.Yr,TEXT(MOD(_xlfn.TEXTBEFORE(_xlpm.Contract,\"-\"),100),\"00\"),\n_xlpm.Program,_xlfn.TEXTAFTER(_xlfn.TEXTBEFORE(_xlpm.Contract,\"-\",2),\"-\"),\n_xlpm.CleanProgram,_xlfn.XLOOKUP(_xlpm.Program,SpellCheck[Input],SpellCheck[Correction],_xlpm.Program),\n_xlpm.Number,TEXT(_xlfn.TEXTAFTER(_xlpm.Contract,\"-\",2),\"0000\"),\n_xlfn.CONCAT(_xlpm.Yr,\"-\",_xlpm.CleanProgram,\"-\",_xlpm.Number))\n),\"\")","v":""},{"$f":"IFERROR(IF(A217=\"\",\"\",\n_xlfn.LET(_xlpm.Contract,'1. Checklist & Certification'!$F$8,\n_xlpm.Yr,TEXT(MOD(_xlfn.TEXTBEFORE(_xlpm.Contract,\"-\"),100),\"00\"),\n_xlpm.Program,_xlfn.TEXTAFTER(_xlfn.TEXTBEFORE(_xlpm.Contract,\"-\",2),\"-\"),\n_xlpm.CleanProgram,_xlfn.XLOOKUP(_xlpm.Program,SpellCheck[Input],SpellCheck[Correction],_xlpm.Program),\n_xlpm.Number,TEXT(_xlfn.TEXTAFTER(_xlpm.Contract,\"-\",2),\"0000\"),\n_xlfn.CONCAT(_xlpm.Yr,\"-\",_xlpm.CleanProgram,\"-\",_xlpm.Number))\n),\"\")","v":""},{"$f":"IF(A217=\"\",\"\",'1. Checklist & Certification'!$B$9)","v":""},{"$f":"IF(A217=\"\",\"\",'1. Checklist & Certification'!$F$9)","v":""},{"$f":"IF(A217=\"\",\"\",'1. Checklist & Certification'!$C$10)","v":""},{"$f":"IF(A217=\"\",\"\",'1. Checklist & Certification'!$C$11)","v":""},{"$f":"IF(A217=\"\",\"\",'1. Checklist & Certification'!$C$12)","v":""},{"$f":"IF(A217=\"\",\"\",'1. Checklist & Certification'!$B$14)","v":""},{"$f":"IF(A217=\"\",\"\",'1. Checklist & Certification'!$E$14)","v":""},{"$f":"IF(B217=\"\",\"\",'1. Checklist & Certification'!$G$14)","v":""},{"$f":"IF(A217=\"\",\"\",'MHP Family Income & Rent Limits'!$B$3)","v":""},{"$f":"IF(A217=\"\",\"\",'MHP Family Income & Rent Limits'!$J$3)","v":""},{"$f":"IF(A217=\"\",\"\",'MHP Family Income & Rent Limits'!$E$4)","v":""},{"$f":"IF(A217=\"\",\"\",'MHP Family Income & Rent Limits'!$C$7)","v":""},{"$f":"IF(A217=\"\",\"\",'MHP Family Income & Rent Limits'!$F$8)","v":""},{"$f":"IF(A217=\"\",\"\",'1. Checklist & Certification'!$G$4)","v":""},{"$f":"IF(A217=\"\",\"\",'1. Checklist & Certification'!$K$39)","v":""},{"$f":"IF(A217=\"\",\"\",'1. Checklist & Certification'!$K$43)","v":""},{"$f":"IF(A217=\"\",\"\",'1. Checklist & Certification'!$K$45)","v":""},{"$f":"IF(A217=\"\",\"\",'1. Checklist & Certification'!$K$49)","v":""},{"$f":"IF(A217=\"\",\"\",'1. Checklist & Certification'!$K$62)","v":""},{"$f":"IF(A217=\"\",\"\",'1. Checklist & Certification'!$E$66)","v":""},{"$f":"IF(A217=\"\",\"\",'1. Checklist & Certification'!$E$67)","v":""},{"$f":"IF(A217=\"\",\"\",'1. Checklist & Certification'!$E$68)","v":""},{"$f":"IF(A217=\"\",\"\",'1. Checklist & Certification'!$G$66)","v":""},{"$f":"IF(A217=\"\",\"\",'1. Checklist & Certification'!$H$66)","v":""},{"$f":"IF(A217=\"\",\"\",'1. Checklist & Certification'!$I$66)","v":""},{"$f":"IF(A217=\"\",\"\",'1. Checklist & Certification'!$I$67)","v":""},{"$f":"IF(A217=\"\",\"\",'1. Checklist & Certification'!$I$68)","v":""},{"$f":"IF(A217=\"\",\"\",'1. Checklist & Certification'!$B$69)","v":""},{"$f":"IF(A217=\"\",\"\",'1. Checklist & Certification'!$C$69)","v":""},{"$f":"IF(A217=\"\",\"\",'1. Checklist & Certification'!$F$69)","v":""},{"$f":"IF(A217=\"\",\"\",'1. Checklist & Certification'!$G$69)","v":""},{"$f":"IF(A217=\"\",\"\",'1. Checklist & Certification'!$J$69)","v":""},{"$f":"IF(A217=\"\",\"\",'1. Checklist & Certification'!$K$69)","v":""},null,null,{"$f":"IF(AND(OR('1. Checklist & Certification'!$M$16=1,'1. Checklist & Certification'!$M$19=2),AO217>0,B217=\"\",I217>0,AQ217<I217,AV217<>\"Sec 8-Project\"),\"X\",IF(AND(OR('1. Checklist & Certification'!$M$20=4,'1. Checklist & Certification'!$M$21=5,'1. Checklist & Certification'!$M$22=7),AO217>0,B217=\"\",I217>0,K217<I217),\"X\",\"\"))","v":""},{"$f":"IF(A217=\"\",\"\",IF(SUMPRODUCT(-- (ISNUMBER(SEARCH({\"*AHSC*\",\"*FMTW*\",\"*FWHG*\",\"*GHI*\",\"*HHC*\",\"*HLCP*\",\"*HOME*\",\"*LPR*\",\"*MHP*\",\"*NHTF*\",\"*NSP*\",\"*PRP*\",\"*TOD*\",\"*VHHP*\"},'1. Checklist & Certification'!$L$7)))),\"MHP\",\"Legacy\"))","v":""},",,",null,null,null,{"$f":"IF('1. Checklist & Certification'!$M$20=4,\"Both\",IF(OR('1. Checklist & Certification'!$M$15>0,S217=\"CHRP-R\",U217=\"CHRP-R\",W217=\"CHRP-R\",Y217=\"CHRP-R\"),\"Under\",\"No\"))","v":"No"},"No","No",{"$f":"_xlfn.IFS(D217=\"\",\"\",D217=1,'MHP Family Income & Rent Limits'!$E$17,D217=2,'MHP Family Income & Rent Limits'!$F$17,D217=3,'MHP Family Income & Rent Limits'!$G$17,D217=4,'MHP Family Income & Rent Limits'!$H$17,D217=5,'MHP Family Income & Rent Limits'!$I$17,D217=6,'MHP Family Income & Rent Limits'!$J$17,D217=7,'MHP Family Income & Rent Limits'!$K$17,D217=8,'MHP Family Income & Rent Limits'!$L$17)","v":""},"",{"$f":"IF(OR(A217=0,B217=\"X\"),0,MIN(IF(AA217:AD217<>0,AA217:AD217)))","v":0},{"$f":"IF(OR(H217=\"\",I217=\"\"),0,IF(H217*0.3/12>I217,MIN(H217*0.3/12,I217*1.1)+AP217,I217*(1+(VLOOKUP('1. Checklist & Certification'!$F$9,'HLCP-E Rent Change'!$A$1:$D$59,4,FALSE)))+AP217))","v":0}]
[null,null,null,null,null,null,null,null,null,null,null,null,null,null,null,null,null,null,null,null,null,null,null,null,null,null,0,0,0,0,0,0,0,0,{"$f":"IF(OR(A218=0,B218=\"X\"),0,IF(OR(S218=\"FHDP\",S218=\"RHCP-B\",U218=\"FHDP\",U218=\"RHCP-B\",W218=\"FHDP\",W218=\"RHCP-B\",Y218=\"FHDP\",Y218=\"RHCP-B\"),TRUNC((MIN(I218,K218)*(1+'1. Checklist & Certification'!$K$43)+AP218)),0))","v":0},{"$f":"IF(OR(A218=0,B218=\"X\"),0,IF(OR(S218=\"CHRP-R\",S218=\"SERA\",S218=\"SUHRP\",U218=\"CHRP-R\",U218=\"SERA\",U218=\"SUHRP\",W218=\"CHRP-R\",W218=\"SERA\",W218=\"SUHRP\",Y218=\"CHRP-R\",Y218=\"SERA\",Y218=\"SUHRP\"),TRUNC((MIN(I218,K218)*(1+'1. Checklist & Certification'!$K$49))),0))","v":0},{"$f":"IF(OR(A218=0,B218=\"X\"),0,IF(OR(S218=\"CALDAP\",S218=\"DPRLP\",U218=\"CALDAP\",U218=\"DPRLP\",W218=\"CALDAP\",W218=\"DPRLP\",Y218=\"CALDAP\",Y218=\"DPRLP\"),TRUNC(((MIN(I218,K218))*(1+'1. Checklist & Certification'!$G$4))),0))","v":0},0,0,0,{"$f":"IF(OR(A218=0,B218=\"X\"),0,IF(OR(S218=\"PRP\",S218=\"LPR\",U218=\"PRP\",U218=\"LPR\",W218=\"PRP\",W218=\"LPR\",Y218=\"PRP\",Y218=\"LPR\"),MAX(I218+AP218,MIN(IF(AE218:AN218<>0,AE218:AN218))),MIN(IF(AE218:AN218<>0,AE218:AN218))))","v":0},{"$f":"IF(A218=0,0,IF(AND(OR(S218=\"Mgr\",S218=0),OR(U218=\"Mgr\",U218=0),OR(W218=\"Mgr\",W218=0)),0,IF(LEFT($A218,2)=\"B*\",VLOOKUP($E218,'1. Checklist & Certification'!$D$26:$E$32,2),IF(LEFT($A218,2)=\"C*\",VLOOKUP($E218,'1. Checklist & Certification'!$F$26:$G$32,2),IF(LEFT($A218,2)=\"D*\",VLOOKUP($E218,'1. Checklist & Certification'!$H$26:$I$32,2),IF(LEFT($A218,2)=\"E*\",VLOOKUP($E218,'1. Checklist & Certification'!$J$26:$K$32,2),VLOOKUP($E218,'1. Checklist & Certification'!$A$26:$B$32,2)))))))","v":0},0,0,null,null,null,null,"","",0,0,0,null,{"$f":"IF(A218=\"\",\"\",'1. Checklist & Certification'!$K$1)","v":""},{"$f":"IF(A218=\"\",\"\",'1. Checklist & Certification'!$C$62)","v":""},{"$f":"IF(A218=\"\",\"\",'1. Checklist & Certification'!$C$6)","v":""},{"$f":"IF(A218=\"\",\"\",'1. Checklist & Certification'!$G$5)","v":""},{"$f":"IFERROR(IF(A218=\"\",\"\",\n_xlfn.LET(_xlpm.Contract,'1. Checklist & Certification'!$C$7,\n_xlpm.Yr,TEXT(MOD(_xlfn.TEXTBEFORE(_xlpm.Contract,\"-\"),100),\"00\"),\n_xlpm.Program,_xlfn.TEXTAFTER(_xlfn.TEXTBEFORE(_xlpm.Contract,\"-\",2),\"-\"),\n_xlpm.CleanProgram,_xlfn.XLOOKUP(_xlpm.Program,SpellCheck[Input],SpellCheck[Correction],_xlpm.Program),\n_xlpm.Number,TEXT(_xlfn.TEXTAFTER(_xlpm.Contract,\"-\",2),\"0000\"),\n_xlfn.CONCAT(_xlpm.Yr,\"-\",_xlpm.CleanProgram,\"-\",_xlpm.Number))\n),\"\")","v":""},{"$f":"IFERROR(IF(A218=\"\",\"\",\n_xlfn.LET(_xlpm.Contract,'1. Checklist & Certification'!$C$8,\n_xlpm.Yr,TEXT(MOD(_xlfn.TEXTBEFORE(_xlpm.Contract,\"-\"),100),\"00\"),\n_xlpm.Program,_xlfn.TEXTAFTER(_xlfn.TEXTBEFORE(_xlpm.Contract,\"-\",2),\"-\"),\n_xlpm.CleanProgram,_xlfn.XLOOKUP(_xlpm.Program,SpellCheck[Input],SpellCheck[Correction],_xlpm.Program),\n_xlpm.Number,TEXT(_xlfn.TEXTAFTER(_xlpm.Contract,\"-\",2),\"0000\"),\n_xlfn.CONCAT(_xlpm.Yr,\"-\",_xlpm.CleanProgram,\"-\",_xlpm.Number))\n),\"\")","v":""},{"$f":"IFERROR(IF(A218=\"\",\"\",\n_xlfn.LET(_xlpm.Contract,'1. Checklist & Certification'!$F$7,\n_xlpm.Yr,TEXT(MOD(_xlfn.TEXTBEFORE(_xlpm.Contract,\"-\"),100),\"00\"),\n_xlpm.Program,_xlfn.TEXTAFTER(_xlfn.TEXTBEFORE(_xlpm.Contract,\"-\",2),\"-\"),\n_xlpm.CleanProgram,_xlfn.XLOOKUP(_xlpm.Program,SpellCheck[Input],SpellCheck[Correction],_xlpm.Program),\n_xlpm.Number,TEXT(_xlfn.TEXTAFTER(_xlpm.Contract,\"-\",2),\"0000\"),\n_xlfn.CONCAT(_xlpm.Yr,\"-\",_xlpm.CleanProgram,\"-\",_xlpm.Number))\n),\"\")","v":""},{"$f":"IFERROR(IF(A218=\"\",\"\",\n_xlfn.LET(_xlpm.Contract,'1. Checklist & Certification'!$F$8,\n_xlpm.Yr,TEXT(MOD(_xlfn.TEXTBEFORE(_xlpm.Contract,\"-\"),100),\"00\"),\n_xlpm.Program,_xlfn.TEXTAFTER(_xlfn.TEXTBEFORE(_xlpm.Contract,\"-\",2),\"-\"),\n_xlpm.CleanProgram,_xlfn.XLOOKUP(_xlpm.Program,SpellCheck[Input],SpellCheck[Correction],_xlpm.Program),\n_xlpm.Number,TEXT(_xlfn.TEXTAFTER(_xlpm.Contract,\"-\",2),\"0000\"),\n_xlfn.CONCAT(_xlpm.Yr,\"-\",_xlpm.CleanProgram,\"-\",_xlpm.Number))\n),\"\")","v":""},{"$f":"IF(A218=\"\",\"\",'1. Checklist & Certification'!$B$9)","v":""},{"$f":"IF(A218=\"\",\"\",'1. Checklist & Certification'!$F$9)","v":""},{"$f":"IF(A218=\"\",\"\",'1. Checklist & Certification'!$C$10)","v":""},{"$f":"IF(A218=\"\",\"\",'1. Checklist & Certification'!$C$11)","v":""},{"$f":"IF(A218=\"\",\"\",'1. Checklist & Certification'!$C$12)","v":""},{"$f":"IF(A218=\"\",\"\",'1. Checklist & Certification'!$B$14)","v":""},{"$f":"IF(A218=\"\",\"\",'1. Checklist & Certification'!$E$14)","v":""},{"$f":"IF(B218=\"\",\"\",'1. Checklist & Certification'!$G$14)","v":""},{"$f":"IF(A218=\"\",\"\",'MHP Family Income & Rent Limits'!$B$3)","v":""},{"$f":"IF(A218=\"\",\"\",'MHP Family Income & Rent Limits'!$J$3)","v":""},{"$f":"IF(A218=\"\",\"\",'MHP Family Income & Rent Limits'!$E$4)","v":""},{"$f":"IF(A218=\"\",\"\",'MHP Family Income & Rent Limits'!$C$7)","v":""},{"$f":"IF(A218=\"\",\"\",'MHP Family Income & Rent Limits'!$F$8)","v":""},{"$f":"IF(A218=\"\",\"\",'1. Checklist & Certification'!$G$4)","v":""},{"$f":"IF(A218=\"\",\"\",'1. Checklist & Certification'!$K$39)","v":""},{"$f":"IF(A218=\"\",\"\",'1. Checklist & Certification'!$K$43)","v":""},{"$f":"IF(A218=\"\",\"\",'1. Checklist & Certification'!$K$45)","v":""},{"$f":"IF(A218=\"\",\"\",'1. Checklist & Certification'!$K$49)","v":""},{"$f":"IF(A218=\"\",\"\",'1. Checklist & Certification'!$K$62)","v":""},{"$f":"IF(A218=\"\",\"\",'1. Checklist & Certification'!$E$66)","v":""},{"$f":"IF(A218=\"\",\"\",'1. Checklist & Certification'!$E$67)","v":""},{"$f":"IF(A218=\"\",\"\",'1. Checklist & Certification'!$E$68)","v":""},{"$f":"IF(A218=\"\",\"\",'1. Checklist & Certification'!$G$66)","v":""},{"$f":"IF(A218=\"\",\"\",'1. Checklist & Certification'!$H$66)","v":""},{"$f":"IF(A218=\"\",\"\",'1. Checklist & Certification'!$I$66)","v":""},{"$f":"IF(A218=\"\",\"\",'1. Checklist & Certification'!$I$67)","v":""},{"$f":"IF(A218=\"\",\"\",'1. Checklist & Certification'!$I$68)","v":""},{"$f":"IF(A218=\"\",\"\",'1. Checklist & Certification'!$B$69)","v":""},{"$f":"IF(A218=\"\",\"\",'1. Checklist & Certification'!$C$69)","v":""},{"$f":"IF(A218=\"\",\"\",'1. Checklist & Certification'!$F$69)","v":""},{"$f":"IF(A218=\"\",\"\",'1. Checklist & Certification'!$G$69)","v":""},{"$f":"IF(A218=\"\",\"\",'1. Checklist & Certification'!$J$69)","v":""},{"$f":"IF(A218=\"\",\"\",'1. Checklist & Certification'!$K$69)","v":""},null,null,{"$f":"IF(AND(OR('1. Checklist & Certification'!$M$16=1,'1. Checklist & Certification'!$M$19=2),AO218>0,B218=\"\",I218>0,AQ218<I218,AV218<>\"Sec 8-Project\"),\"X\",IF(AND(OR('1. Checklist & Certification'!$M$20=4,'1. Checklist & Certification'!$M$21=5,'1. Checklist & Certification'!$M$22=7),AO218>0,B218=\"\",I218>0,K218<I218),\"X\",\"\"))","v":""},{"$f":"IF(A218=\"\",\"\",IF(SUMPRODUCT(-- (ISNUMBER(SEARCH({\"*AHSC*\",\"*FMTW*\",\"*FWHG*\",\"*GHI*\",\"*HHC*\",\"*HLCP*\",\"*HOME*\",\"*LPR*\",\"*MHP*\",\"*NHTF*\",\"*NSP*\",\"*PRP*\",\"*TOD*\",\"*VHHP*\"},'1. Checklist & Certification'!$L$7)))),\"MHP\",\"Legacy\"))","v":""},",,",null,null,null,{"$f":"IF('1. Checklist & Certification'!$M$20=4,\"Both\",IF(OR('1. Checklist & Certification'!$M$15>0,S218=\"CHRP-R\",U218=\"CHRP-R\",W218=\"CHRP-R\",Y218=\"CHRP-R\"),\"Under\",\"No\"))","v":"No"},"No","No",{"$f":"_xlfn.IFS(D218=\"\",\"\",D218=1,'MHP Family Income & Rent Limits'!$E$17,D218=2,'MHP Family Income & Rent Limits'!$F$17,D218=3,'MHP Family Income & Rent Limits'!$G$17,D218=4,'MHP Family Income & Rent Limits'!$H$17,D218=5,'MHP Family Income & Rent Limits'!$I$17,D218=6,'MHP Family Income & Rent Limits'!$J$17,D218=7,'MHP Family Income & Rent Limits'!$K$17,D218=8,'MHP Family Income & Rent Limits'!$L$17)","v":""},"",{"$f":"IF(OR(A218=0,B218=\"X\"),0,MIN(IF(AA218:AD218<>0,AA218:AD218)))","v":0},{"$f":"IF(OR(H218=\"\",I218=\"\"),0,IF(H218*0.3/12>I218,MIN(H218*0.3/12,I218*1.1)+AP218,I218*(1+(VLOOKUP('1. Checklist & Certification'!$F$9,'HLCP-E Rent Change'!$A$1:$D$59,4,FALSE)))+AP218))","v":0}]
[null,null,null,null,null,null,null,null,null,null,null,null,null,null,null,null,null,null,null,null,null,null,null,null,null,null,0,0,0,0,0,0,0,0,{"$f":"IF(OR(A219=0,B219=\"X\"),0,IF(OR(S219=\"FHDP\",S219=\"RHCP-B\",U219=\"FHDP\",U219=\"RHCP-B\",W219=\"FHDP\",W219=\"RHCP-B\",Y219=\"FHDP\",Y219=\"RHCP-B\"),TRUNC((MIN(I219,K219)*(1+'1. Checklist & Certification'!$K$43)+AP219)),0))","v":0},{"$f":"IF(OR(A219=0,B219=\"X\"),0,IF(OR(S219=\"CHRP-R\",S219=\"SERA\",S219=\"SUHRP\",U219=\"CHRP-R\",U219=\"SERA\",U219=\"SUHRP\",W219=\"CHRP-R\",W219=\"SERA\",W219=\"SUHRP\",Y219=\"CHRP-R\",Y219=\"SERA\",Y219=\"SUHRP\"),TRUNC((MIN(I219,K219)*(1+'1. Checklist & Certification'!$K$49))),0))","v":0},{"$f":"IF(OR(A219=0,B219=\"X\"),0,IF(OR(S219=\"CALDAP\",S219=\"DPRLP\",U219=\"CALDAP\",U219=\"DPRLP\",W219=\"CALDAP\",W219=\"DPRLP\",Y219=\"CALDAP\",Y219=\"DPRLP\"),TRUNC(((MIN(I219,K219))*(1+'1. Checklist & Certification'!$G$4))),0))","v":0},0,0,0,{"$f":"IF(OR(A219=0,B219=\"X\"),0,IF(OR(S219=\"PRP\",S219=\"LPR\",U219=\"PRP\",U219=\"LPR\",W219=\"PRP\",W219=\"LPR\",Y219=\"PRP\",Y219=\"LPR\"),MAX(I219+AP219,MIN(IF(AE219:AN219<>0,AE219:AN219))),MIN(IF(AE219:AN219<>0,AE219:AN219))))","v":0},{"$f":"IF(A219=0,0,IF(AND(OR(S219=\"Mgr\",S219=0),OR(U219=\"Mgr\",U219=0),OR(W219=\"Mgr\",W219=0)),0,IF(LEFT($A219,2)=\"B*\",VLOOKUP($E219,'1. Checklist & Certification'!$D$26:$E$32,2),IF(LEFT($A219,2)=\"C*\",VLOOKUP($E219,'1. Checklist & Certification'!$F$26:$G$32,2),IF(LEFT($A219,2)=\"D*\",VLOOKUP($E219,'1. Checklist & Certification'!$H$26:$I$32,2),IF(LEFT($A219,2)=\"E*\",VLOOKUP($E219,'1. Checklist & Certification'!$J$26:$K$32,2),VLOOKUP($E219,'1. Checklist & Certification'!$A$26:$B$32,2)))))))","v":0},0,0,null,null,null,null,"","",0,0,0,null,{"$f":"IF(A219=\"\",\"\",'1. Checklist & Certification'!$K$1)","v":""},{"$f":"IF(A219=\"\",\"\",'1. Checklist & Certification'!$C$62)","v":""},{"$f":"IF(A219=\"\",\"\",'1. Checklist & Certification'!$C$6)","v":""},{"$f":"IF(A219=\"\",\"\",'1. Checklist & Certification'!$G$5)","v":""},{"$f":"IFERROR(IF(A219=\"\",\"\",\n_xlfn.LET(_xlpm.Contract,'1. Checklist & Certification'!$C$7,\n_xlpm.Yr,TEXT(MOD(_xlfn.TEXTBEFORE(_xlpm.Contract,\"-\"),100),\"00\"),\n_xlpm.Program,_xlfn.TEXTAFTER(_xlfn.TEXTBEFORE(_xlpm.Contract,\"-\",2),\"-\"),\n_xlpm.CleanProgram,_xlfn.XLOOKUP(_xlpm.Program,SpellCheck[Input],SpellCheck[Correction],_xlpm.Program),\n_xlpm.Number,TEXT(_xlfn.TEXTAFTER(_xlpm.Contract,\"-\",2),\"0000\"),\n_xlfn.CONCAT(_xlpm.Yr,\"-\",_xlpm.CleanProgram,\"-\",_xlpm.Number))\n),\"\")","v":""},{"$f":"IFERROR(IF(A219=\"\",\"\",\n_xlfn.LET(_xlpm.Contract,'1. Checklist & Certification'!$C$8,\n_xlpm.Yr,TEXT(MOD(_xlfn.TEXTBEFORE(_xlpm.Contract,\"-\"),100),\"00\"),\n_xlpm.Program,_xlfn.TEXTAFTER(_xlfn.TEXTBEFORE(_xlpm.Contract,\"-\",2),\"-\"),\n_xlpm.CleanProgram,_xlfn.XLOOKUP(_xlpm.Program,SpellCheck[Input],SpellCheck[Correction],_xlpm.Program),\n_xlpm.Number,TEXT(_xlfn.TEXTAFTER(_xlpm.Contract,\"-\",2),\"0000\"),\n_xlfn.CONCAT(_xlpm.Yr,\"-\",_xlpm.CleanProgram,\"-\",_xlpm.Number))\n),\"\")","v":""},{"$f":"IFERROR(IF(A219=\"\",\"\",\n_xlfn.LET(_xlpm.Contract,'1. Checklist & Certification'!$F$7,\n_xlpm.Yr,TEXT(MOD(_xlfn.TEXTBEFORE(_xlpm.Contract,\"-\"),100),\"00\"),\n_xlpm.Program,_xlfn.TEXTAFTER(_xlfn.TEXTBEFORE(_xlpm.Contract,\"-\",2),\"-\"),\n_xlpm.CleanProgram,_xlfn.XLOOKUP(_xlpm.Program,SpellCheck[Input],SpellCheck[Correction],_xlpm.Program),\n_xlpm.Number,TEXT(_xlfn.TEXTAFTER(_xlpm.Contract,\"-\",2),\"0000\"),\n_xlfn.CONCAT(_xlpm.Yr,\"-\",_xlpm.CleanProgram,\"-\",_xlpm.Number))\n),\"\")","v":""},{"$f":"IFERROR(IF(A219=\"\",\"\",\n_xlfn.LET(_xlpm.Contract,'1. Checklist & Certification'!$F$8,\n_xlpm.Yr,TEXT(MOD(_xlfn.TEXTBEFORE(_xlpm.Contract,\"-\"),100),\"00\"),\n_xlpm.Program,_xlfn.TEXTAFTER(_xlfn.TEXTBEFORE(_xlpm.Contract,\"-\",2),\"-\"),\n_xlpm.CleanProgram,_xlfn.XLOOKUP(_xlpm.Program,SpellCheck[Input],SpellCheck[Correction],_xlpm.Program),\n_xlpm.Number,TEXT(_xlfn.TEXTAFTER(_xlpm.Contract,\"-\",2),\"0000\"),\n_xlfn.CONCAT(_xlpm.Yr,\"-\",_xlpm.CleanProgram,\"-\",_xlpm.Number))\n),\"\")","v":""},{"$f":"IF(A219=\"\",\"\",'1. Checklist & Certification'!$B$9)","v":""},{"$f":"IF(A219=\"\",\"\",'1. Checklist & Certification'!$F$9)","v":""},{"$f":"IF(A219=\"\",\"\",'1. Checklist & Certification'!$C$10)","v":""},{"$f":"IF(A219=\"\",\"\",'1. Checklist & Certification'!$C$11)","v":""},{"$f":"IF(A219=\"\",\"\",'1. Checklist & Certification'!$C$12)","v":""},{"$f":"IF(A219=\"\",\"\",'1. Checklist & Certification'!$B$14)","v":""},{"$f":"IF(A219=\"\",\"\",'1. Checklist & Certification'!$E$14)","v":""},{"$f":"IF(B219=\"\",\"\",'1. Checklist & Certification'!$G$14)","v":""},{"$f":"IF(A219=\"\",\"\",'MHP Family Income & Rent Limits'!$B$3)","v":""},{"$f":"IF(A219=\"\",\"\",'MHP Family Income & Rent Limits'!$J$3)","v":""},{"$f":"IF(A219=\"\",\"\",'MHP Family Income & Rent Limits'!$E$4)","v":""},{"$f":"IF(A219=\"\",\"\",'MHP Family Income & Rent Limits'!$C$7)","v":""},{"$f":"IF(A219=\"\",\"\",'MHP Family Income & Rent Limits'!$F$8)","v":""},{"$f":"IF(A219=\"\",\"\",'1. Checklist & Certification'!$G$4)","v":""},{"$f":"IF(A219=\"\",\"\",'1. Checklist & Certification'!$K$39)","v":""},{"$f":"IF(A219=\"\",\"\",'1. Checklist & Certification'!$K$43)","v":""},{"$f":"IF(A219=\"\",\"\",'1. Checklist & Certification'!$K$45)","v":""},{"$f":"IF(A219=\"\",\"\",'1. Checklist & Certification'!$K$49)","v":""},{"$f":"IF(A219=\"\",\"\",'1. Checklist & Certification'!$K$62)","v":""},{"$f":"IF(A219=\"\",\"\",'1. Checklist & Certification'!$E$66)","v":""},{"$f":"IF(A219=\"\",\"\",'1. Checklist & Certification'!$E$67)","v":""},{"$f":"IF(A219=\"\",\"\",'1. Checklist & Certification'!$E$68)","v":""},{"$f":"IF(A219=\"\",\"\",'1. Checklist & Certification'!$G$66)","v":""},{"$f":"IF(A219=\"\",\"\",'1. Checklist & Certification'!$H$66)","v":""},{"$f":"IF(A219=\"\",\"\",'1. Checklist & Certification'!$I$66)","v":""},{"$f":"IF(A219=\"\",\"\",'1. Checklist & Certification'!$I$67)","v":""},{"$f":"IF(A219=\"\",\"\",'1. Checklist & Certification'!$I$68)","v":""},{"$f":"IF(A219=\"\",\"\",'1. Checklist & Certification'!$B$69)","v":""},{"$f":"IF(A219=\"\",\"\",'1. Checklist & Certification'!$C$69)","v":""},{"$f":"IF(A219=\"\",\"\",'1. Checklist & Certification'!$F$69)","v":""},{"$f":"IF(A219=\"\",\"\",'1. Checklist & Certification'!$G$69)","v":""},{"$f":"IF(A219=\"\",\"\",'1. Checklist & Certification'!$J$69)","v":""},{"$f":"IF(A219=\"\",\"\",'1. Checklist & Certification'!$K$69)","v":""},null,null,{"$f":"IF(AND(OR('1. Checklist & Certification'!$M$16=1,'1. Checklist & Certification'!$M$19=2),AO219>0,B219=\"\",I219>0,AQ219<I219,AV219<>\"Sec 8-Project\"),\"X\",IF(AND(OR('1. Checklist & Certification'!$M$20=4,'1. Checklist & Certification'!$M$21=5,'1. Checklist & Certification'!$M$22=7),AO219>0,B219=\"\",I219>0,K219<I219),\"X\",\"\"))","v":""},{"$f":"IF(A219=\"\",\"\",IF(SUMPRODUCT(-- (ISNUMBER(SEARCH({\"*AHSC*\",\"*FMTW*\",\"*FWHG*\",\"*GHI*\",\"*HHC*\",\"*HLCP*\",\"*HOME*\",\"*LPR*\",\"*MHP*\",\"*NHTF*\",\"*NSP*\",\"*PRP*\",\"*TOD*\",\"*VHHP*\"},'1. Checklist & Certification'!$L$7)))),\"MHP\",\"Legacy\"))","v":""},",,",null,null,null,{"$f":"IF('1. Checklist & Certification'!$M$20=4,\"Both\",IF(OR('1. Checklist & Certification'!$M$15>0,S219=\"CHRP-R\",U219=\"CHRP-R\",W219=\"CHRP-R\",Y219=\"CHRP-R\"),\"Under\",\"No\"))","v":"No"},"No","No",{"$f":"_xlfn.IFS(D219=\"\",\"\",D219=1,'MHP Family Income & Rent Limits'!$E$17,D219=2,'MHP Family Income & Rent Limits'!$F$17,D219=3,'MHP Family Income & Rent Limits'!$G$17,D219=4,'MHP Family Income & Rent Limits'!$H$17,D219=5,'MHP Family Income & Rent Limits'!$I$17,D219=6,'MHP Family Income & Rent Limits'!$J$17,D219=7,'MHP Family Income & Rent Limits'!$K$17,D219=8,'MHP Family Income & Rent Limits'!$L$17)","v":""},"",{"$f":"IF(OR(A219=0,B219=\"X\"),0,MIN(IF(AA219:AD219<>0,AA219:AD219)))","v":0},{"$f":"IF(OR(H219=\"\",I219=\"\"),0,IF(H219*0.3/12>I219,MIN(H219*0.3/12,I219*1.1)+AP219,I219*(1+(VLOOKUP('1. Checklist & Certification'!$F$9,'HLCP-E Rent Change'!$A$1:$D$59,4,FALSE)))+AP219))","v":0}]
[null,null,null,null,null,null,null,null,null,null,null,null,null,null,null,null,null,null,null,null,null,null,null,null,null,null,0,0,0,0,0,0,0,0,{"$f":"IF(OR(A220=0,B220=\"X\"),0,IF(OR(S220=\"FHDP\",S220=\"RHCP-B\",U220=\"FHDP\",U220=\"RHCP-B\",W220=\"FHDP\",W220=\"RHCP-B\",Y220=\"FHDP\",Y220=\"RHCP-B\"),TRUNC((MIN(I220,K220)*(1+'1. Checklist & Certification'!$K$43)+AP220)),0))","v":0},{"$f":"IF(OR(A220=0,B220=\"X\"),0,IF(OR(S220=\"CHRP-R\",S220=\"SERA\",S220=\"SUHRP\",U220=\"CHRP-R\",U220=\"SERA\",U220=\"SUHRP\",W220=\"CHRP-R\",W220=\"SERA\",W220=\"SUHRP\",Y220=\"CHRP-R\",Y220=\"SERA\",Y220=\"SUHRP\"),TRUNC((MIN(I220,K220)*(1+'1. Checklist & Certification'!$K$49))),0))","v":0},{"$f":"IF(OR(A220=0,B220=\"X\"),0,IF(OR(S220=\"CALDAP\",S220=\"DPRLP\",U220=\"CALDAP\",U220=\"DPRLP\",W220=\"CALDAP\",W220=\"DPRLP\",Y220=\"CALDAP\",Y220=\"DPRLP\"),TRUNC(((MIN(I220,K220))*(1+'1. Checklist & Certification'!$G$4))),0))","v":0},0,0,0,{"$f":"IF(OR(A220=0,B220=\"X\"),0,IF(OR(S220=\"PRP\",S220=\"LPR\",U220=\"PRP\",U220=\"LPR\",W220=\"PRP\",W220=\"LPR\",Y220=\"PRP\",Y220=\"LPR\"),MAX(I220+AP220,MIN(IF(AE220:AN220<>0,AE220:AN220))),MIN(IF(AE220:AN220<>0,AE220:AN220))))","v":0},{"$f":"IF(A220=0,0,IF(AND(OR(S220=\"Mgr\",S220=0),OR(U220=\"Mgr\",U220=0),OR(W220=\"Mgr\",W220=0)),0,IF(LEFT($A220,2)=\"B*\",VLOOKUP($E220,'1. Checklist & Certification'!$D$26:$E$32,2),IF(LEFT($A220,2)=\"C*\",VLOOKUP($E220,'1. Checklist & Certification'!$F$26:$G$32,2),IF(LEFT($A220,2)=\"D*\",VLOOKUP($E220,'1. Checklist & Certification'!$H$26:$I$32,2),IF(LEFT($A220,2)=\"E*\",VLOOKUP($E220,'1. Checklist & Certification'!$J$26:$K$32,2),VLOOKUP($E220,'1. Checklist & Certification'!$A$26:$B$32,2)))))))","v":0},0,0,null,null,null,null,"","",0,0,0,null,{"$f":"IF(A220=\"\",\"\",'1. Checklist & Certification'!$K$1)","v":""},{"$f":"IF(A220=\"\",\"\",'1. Checklist & Certification'!$C$62)","v":""},{"$f":"IF(A220=\"\",\"\",'1. Checklist & Certification'!$C$6)","v":""},{"$f":"IF(A220=\"\",\"\",'1. Checklist & Certification'!$G$5)","v":""},{"$f":"IFERROR(IF(A220=\"\",\"\",\n_xlfn.LET(_xlpm.Contract,'1. Checklist & Certification'!$C$7,\n_xlpm.Yr,TEXT(MOD(_xlfn.TEXTBEFORE(_xlpm.Contract,\"-\"),100),\"00\"),\n_xlpm.Program,_xlfn.TEXTAFTER(_xlfn.TEXTBEFORE(_xlpm.Contract,\"-\",2),\"-\"),\n_xlpm.CleanProgram,_xlfn.XLOOKUP(_xlpm.Program,SpellCheck[Input],SpellCheck[Correction],_xlpm.Program),\n_xlpm.Number,TEXT(_xlfn.TEXTAFTER(_xlpm.Contract,\"-\",2),\"0000\"),\n_xlfn.CONCAT(_xlpm.Yr,\"-\",_xlpm.CleanProgram,\"-\",_xlpm.Number))\n),\"\")","v":""},{"$f":"IFERROR(IF(A220=\"\",\"\",\n_xlfn.LET(_xlpm.Contract,'1. Checklist & Certification'!$C$8,\n_xlpm.Yr,TEXT(MOD(_xlfn.TEXTBEFORE(_xlpm.Contract,\"-\"),100),\"00\"),\n_xlpm.Program,_xlfn.TEXTAFTER(_xlfn.TEXTBEFORE(_xlpm.Contract,\"-\",2),\"-\"),\n_xlpm.CleanProgram,_xlfn.XLOOKUP(_xlpm.Program,SpellCheck[Input],SpellCheck[Correction],_xlpm.Program),\n_xlpm.Number,TEXT(_xlfn.TEXTAFTER(_xlpm.Contract,\"-\",2),\"0000\"),\n_xlfn.CONCAT(_xlpm.Yr,\"-\",_xlpm.CleanProgram,\"-\",_xlpm.Number))\n),\"\")","v":""},{"$f":"IFERROR(IF(A220=\"\",\"\",\n_xlfn.LET(_xlpm.Contract,'1. Checklist & Certification'!$F$7,\n_xlpm.Yr,TEXT(MOD(_xlfn.TEXTBEFORE(_xlpm.Contract,\"-\"),100),\"00\"),\n_xlpm.Program,_xlfn.TEXTAFTER(_xlfn.TEXTBEFORE(_xlpm.Contract,\"-\",2),\"-\"),\n_xlpm.CleanProgram,_xlfn.XLOOKUP(_xlpm.Program,SpellCheck[Input],SpellCheck[Correction],_xlpm.Program),\n_xlpm.Number,TEXT(_xlfn.TEXTAFTER(_xlpm.Contract,\"-\",2),\"0000\"),\n_xlfn.CONCAT(_xlpm.Yr,\"-\",_xlpm.CleanProgram,\"-\",_xlpm.Number))\n),\"\")","v":""},{"$f":"IFERROR(IF(A220=\"\",\"\",\n_xlfn.LET(_xlpm.Contract,'1. Checklist & Certification'!$F$8,\n_xlpm.Yr,TEXT(MOD(_xlfn.TEXTBEFORE(_xlpm.Contract,\"-\"),100),\"00\"),\n_xlpm.Program,_xlfn.TEXTAFTER(_xlfn.TEXTBEFORE(_xlpm.Contract,\"-\",2),\"-\"),\n_xlpm.CleanProgram,_xlfn.XLOOKUP(_xlpm.Program,SpellCheck[Input],SpellCheck[Correction],_xlpm.Program),\n_xlpm.Number,TEXT(_xlfn.TEXTAFTER(_xlpm.Contract,\"-\",2),\"0000\"),\n_xlfn.CONCAT(_xlpm.Yr,\"-\",_xlpm.CleanProgram,\"-\",_xlpm.Number))\n),\"\")","v":""},{"$f":"IF(A220=\"\",\"\",'1. Checklist & Certification'!$B$9)","v":""},{"$f":"IF(A220=\"\",\"\",'1. Checklist & Certification'!$F$9)","v":""},{"$f":"IF(A220=\"\",\"\",'1. Checklist & Certification'!$C$10)","v":""},{"$f":"IF(A220=\"\",\"\",'1. Checklist & Certification'!$C$11)","v":""},{"$f":"IF(A220=\"\",\"\",'1. Checklist & Certification'!$C$12)","v":""},{"$f":"IF(A220=\"\",\"\",'1. Checklist & Certification'!$B$14)","v":""},{"$f":"IF(A220=\"\",\"\",'1. Checklist & Certification'!$E$14)","v":""},{"$f":"IF(B220=\"\",\"\",'1. Checklist & Certification'!$G$14)","v":""},{"$f":"IF(A220=\"\",\"\",'MHP Family Income & Rent Limits'!$B$3)","v":""},{"$f":"IF(A220=\"\",\"\",'MHP Family Income & Rent Limits'!$J$3)","v":""},{"$f":"IF(A220=\"\",\"\",'MHP Family Income & Rent Limits'!$E$4)","v":""},{"$f":"IF(A220=\"\",\"\",'MHP Family Income & Rent Limits'!$C$7)","v":""},{"$f":"IF(A220=\"\",\"\",'MHP Family Income & Rent Limits'!$F$8)","v":""},{"$f":"IF(A220=\"\",\"\",'1. Checklist & Certification'!$G$4)","v":""},{"$f":"IF(A220=\"\",\"\",'1. Checklist & Certification'!$K$39)","v":""},{"$f":"IF(A220=\"\",\"\",'1. Checklist & Certification'!$K$43)","v":""},{"$f":"IF(A220=\"\",\"\",'1. Checklist & Certification'!$K$45)","v":""},{"$f":"IF(A220=\"\",\"\",'1. Checklist & Certification'!$K$49)","v":""},{"$f":"IF(A220=\"\",\"\",'1. Checklist & Certification'!$K$62)","v":""},{"$f":"IF(A220=\"\",\"\",'1. Checklist & Certification'!$E$66)","v":""},{"$f":"IF(A220=\"\",\"\",'1. Checklist & Certification'!$E$67)","v":""},{"$f":"IF(A220=\"\",\"\",'1. Checklist & Certification'!$E$68)","v":""},{"$f":"IF(A220=\"\",\"\",'1. Checklist & Certification'!$G$66)","v":""},{"$f":"IF(A220=\"\",\"\",'1. Checklist & Certification'!$H$66)","v":""},{"$f":"IF(A220=\"\",\"\",'1. Checklist & Certification'!$I$66)","v":""},{"$f":"IF(A220=\"\",\"\",'1. Checklist & Certification'!$I$67)","v":""},{"$f":"IF(A220=\"\",\"\",'1. Checklist & Certification'!$I$68)","v":""},{"$f":"IF(A220=\"\",\"\",'1. Checklist & Certification'!$B$69)","v":""},{"$f":"IF(A220=\"\",\"\",'1. Checklist & Certification'!$C$69)","v":""},{"$f":"IF(A220=\"\",\"\",'1. Checklist & Certification'!$F$69)","v":""},{"$f":"IF(A220=\"\",\"\",'1. Checklist & Certification'!$G$69)","v":""},{"$f":"IF(A220=\"\",\"\",'1. Checklist & Certification'!$J$69)","v":""},{"$f":"IF(A220=\"\",\"\",'1. Checklist & Certification'!$K$69)","v":""},null,null,{"$f":"IF(AND(OR('1. Checklist & Certification'!$M$16=1,'1. Checklist & Certification'!$M$19=2),AO220>0,B220=\"\",I220>0,AQ220<I220,AV220<>\"Sec 8-Project\"),\"X\",IF(AND(OR('1. Checklist & Certification'!$M$20=4,'1. Checklist & Certification'!$M$21=5,'1. Checklist & Certification'!$M$22=7),AO220>0,B220=\"\",I220>0,K220<I220),\"X\",\"\"))","v":""},{"$f":"IF(A220=\"\",\"\",IF(SUMPRODUCT(-- (ISNUMBER(SEARCH({\"*AHSC*\",\"*FMTW*\",\"*FWHG*\",\"*GHI*\",\"*HHC*\",\"*HLCP*\",\"*HOME*\",\"*LPR*\",\"*MHP*\",\"*NHTF*\",\"*NSP*\",\"*PRP*\",\"*TOD*\",\"*VHHP*\"},'1. Checklist & Certification'!$L$7)))),\"MHP\",\"Legacy\"))","v":""},",,",null,null,null,{"$f":"IF('1. Checklist & Certification'!$M$20=4,\"Both\",IF(OR('1. Checklist & Certification'!$M$15>0,S220=\"CHRP-R\",U220=\"CHRP-R\",W220=\"CHRP-R\",Y220=\"CHRP-R\"),\"Under\",\"No\"))","v":"No"},"No","No",{"$f":"_xlfn.IFS(D220=\"\",\"\",D220=1,'MHP Family Income & Rent Limits'!$E$17,D220=2,'MHP Family Income & Rent Limits'!$F$17,D220=3,'MHP Family Income & Rent Limits'!$G$17,D220=4,'MHP Family Income & Rent Limits'!$H$17,D220=5,'MHP Family Income & Rent Limits'!$I$17,D220=6,'MHP Family Income & Rent Limits'!$J$17,D220=7,'MHP Family Income & Rent Limits'!$K$17,D220=8,'MHP Family Income & Rent Limits'!$L$17)","v":""},"",{"$f":"IF(OR(A220=0,B220=\"X\"),0,MIN(IF(AA220:AD220<>0,AA220:AD220)))","v":0},{"$f":"IF(OR(H220=\"\",I220=\"\"),0,IF(H220*0.3/12>I220,MIN(H220*0.3/12,I220*1.1)+AP220,I220*(1+(VLOOKUP('1. Checklist & Certification'!$F$9,'HLCP-E Rent Change'!$A$1:$D$59,4,FALSE)))+AP220))","v":0}]
[null,null,null,null,null,null,null,null,null,null,null,null,null,null,null,null,null,null,null,null,null,null,null,null,null,null,0,0,0,0,0,0,0,0,{"$f":"IF(OR(A221=0,B221=\"X\"),0,IF(OR(S221=\"FHDP\",S221=\"RHCP-B\",U221=\"FHDP\",U221=\"RHCP-B\",W221=\"FHDP\",W221=\"RHCP-B\",Y221=\"FHDP\",Y221=\"RHCP-B\"),TRUNC((MIN(I221,K221)*(1+'1. Checklist & Certification'!$K$43)+AP221)),0))","v":0},{"$f":"IF(OR(A221=0,B221=\"X\"),0,IF(OR(S221=\"CHRP-R\",S221=\"SERA\",S221=\"SUHRP\",U221=\"CHRP-R\",U221=\"SERA\",U221=\"SUHRP\",W221=\"CHRP-R\",W221=\"SERA\",W221=\"SUHRP\",Y221=\"CHRP-R\",Y221=\"SERA\",Y221=\"SUHRP\"),TRUNC((MIN(I221,K221)*(1+'1. Checklist & Certification'!$K$49))),0))","v":0},{"$f":"IF(OR(A221=0,B221=\"X\"),0,IF(OR(S221=\"CALDAP\",S221=\"DPRLP\",U221=\"CALDAP\",U221=\"DPRLP\",W221=\"CALDAP\",W221=\"DPRLP\",Y221=\"CALDAP\",Y221=\"DPRLP\"),TRUNC(((MIN(I221,K221))*(1+'1. Checklist & Certification'!$G$4))),0))","v":0},0,0,0,{"$f":"IF(OR(A221=0,B221=\"X\"),0,IF(OR(S221=\"PRP\",S221=\"LPR\",U221=\"PRP\",U221=\"LPR\",W221=\"PRP\",W221=\"LPR\",Y221=\"PRP\",Y221=\"LPR\"),MAX(I221+AP221,MIN(IF(AE221:AN221<>0,AE221:AN221))),MIN(IF(AE221:AN221<>0,AE221:AN221))))","v":0},{"$f":"IF(A221=0,0,IF(AND(OR(S221=\"Mgr\",S221=0),OR(U221=\"Mgr\",U221=0),OR(W221=\"Mgr\",W221=0)),0,IF(LEFT($A221,2)=\"B*\",VLOOKUP($E221,'1. Checklist & Certification'!$D$26:$E$32,2),IF(LEFT($A221,2)=\"C*\",VLOOKUP($E221,'1. Checklist & Certification'!$F$26:$G$32,2),IF(LEFT($A221,2)=\"D*\",VLOOKUP($E221,'1. Checklist & Certification'!$H$26:$I$32,2),IF(LEFT($A221,2)=\"E*\",VLOOKUP($E221,'1. Checklist & Certification'!$J$26:$K$32,2),VLOOKUP($E221,'1. Checklist & Certification'!$A$26:$B$32,2)))))))","v":0},0,0,null,null,null,null,"","",0,0,0,null,{"$f":"IF(A221=\"\",\"\",'1. Checklist & Certification'!$K$1)","v":""},{"$f":"IF(A221=\"\",\"\",'1. Checklist & Certification'!$C$62)","v":""},{"$f":"IF(A221=\"\",\"\",'1. Checklist & Certification'!$C$6)","v":""},{"$f":"IF(A221=\"\",\"\",'1. Checklist & Certification'!$G$5)","v":""},{"$f":"IFERROR(IF(A221=\"\",\"\",\n_xlfn.LET(_xlpm.Contract,'1. Checklist & Certification'!$C$7,\n_xlpm.Yr,TEXT(MOD(_xlfn.TEXTBEFORE(_xlpm.Contract,\"-\"),100),\"00\"),\n_xlpm.Program,_xlfn.TEXTAFTER(_xlfn.TEXTBEFORE(_xlpm.Contract,\"-\",2),\"-\"),\n_xlpm.CleanProgram,_xlfn.XLOOKUP(_xlpm.Program,SpellCheck[Input],SpellCheck[Correction],_xlpm.Program),\n_xlpm.Number,TEXT(_xlfn.TEXTAFTER(_xlpm.Contract,\"-\",2),\"0000\"),\n_xlfn.CONCAT(_xlpm.Yr,\"-\",_xlpm.CleanProgram,\"-\",_xlpm.Number))\n),\"\")","v":""},{"$f":"IFERROR(IF(A221=\"\",\"\",\n_xlfn.LET(_xlpm.Contract,'1. Checklist & Certification'!$C$8,\n_xlpm.Yr,TEXT(MOD(_xlfn.TEXTBEFORE(_xlpm.Contract,\"-\"),100),\"00\"),\n_xlpm.Program,_xlfn.TEXTAFTER(_xlfn.TEXTBEFORE(_xlpm.Contract,\"-\",2),\"-\"),\n_xlpm.CleanProgram,_xlfn.XLOOKUP(_xlpm.Program,SpellCheck[Input],SpellCheck[Correction],_xlpm.Program),\n_xlpm.Number,TEXT(_xlfn.TEXTAFTER(_xlpm.Contract,\"-\",2),\"0000\"),\n_xlfn.CONCAT(_xlpm.Yr,\"-\",_xlpm.CleanProgram,\"-\",_xlpm.Number))\n),\"\")","v":""},{"$f":"IFERROR(IF(A221=\"\",\"\",\n_xlfn.LET(_xlpm.Contract,'1. Checklist & Certification'!$F$7,\n_xlpm.Yr,TEXT(MOD(_xlfn.TEXTBEFORE(_xlpm.Contract,\"-\"),100),\"00\"),\n_xlpm.Program,_xlfn.TEXTAFTER(_xlfn.TEXTBEFORE(_xlpm.Contract,\"-\",2),\"-\"),\n_xlpm.CleanProgram,_xlfn.XLOOKUP(_xlpm.Program,SpellCheck[Input],SpellCheck[Correction],_xlpm.Program),\n_xlpm.Number,TEXT(_xlfn.TEXTAFTER(_xlpm.Contract,\"-\",2),\"0000\"),\n_xlfn.CONCAT(_xlpm.Yr,\"-\",_xlpm.CleanProgram,\"-\",_xlpm.Number))\n),\"\")","v":""},{"$f":"IFERROR(IF(A221=\"\",\"\",\n_xlfn.LET(_xlpm.Contract,'1. Checklist & Certification'!$F$8,\n_xlpm.Yr,TEXT(MOD(_xlfn.TEXTBEFORE(_xlpm.Contract,\"-\"),100),\"00\"),\n_xlpm.Program,_xlfn.TEXTAFTER(_xlfn.TEXTBEFORE(_xlpm.Contract,\"-\",2),\"-\"),\n_xlpm.CleanProgram,_xlfn.XLOOKUP(_xlpm.Program,SpellCheck[Input],SpellCheck[Correction],_xlpm.Program),\n_xlpm.Number,TEXT(_xlfn.TEXTAFTER(_xlpm.Contract,\"-\",2),\"0000\"),\n_xlfn.CONCAT(_xlpm.Yr,\"-\",_xlpm.CleanProgram,\"-\",_xlpm.Number))\n),\"\")","v":""},{"$f":"IF(A221=\"\",\"\",'1. Checklist & Certification'!$B$9)","v":""},{"$f":"IF(A221=\"\",\"\",'1. Checklist & Certification'!$F$9)","v":""},{"$f":"IF(A221=\"\",\"\",'1. Checklist & Certification'!$C$10)","v":""},{"$f":"IF(A221=\"\",\"\",'1. Checklist & Certification'!$C$11)","v":""},{"$f":"IF(A221=\"\",\"\",'1. Checklist & Certification'!$C$12)","v":""},{"$f":"IF(A221=\"\",\"\",'1. Checklist & Certification'!$B$14)","v":""},{"$f":"IF(A221=\"\",\"\",'1. Checklist & Certification'!$E$14)","v":""},{"$f":"IF(B221=\"\",\"\",'1. Checklist & Certification'!$G$14)","v":""},{"$f":"IF(A221=\"\",\"\",'MHP Family Income & Rent Limits'!$B$3)","v":""},{"$f":"IF(A221=\"\",\"\",'MHP Family Income & Rent Limits'!$J$3)","v":""},{"$f":"IF(A221=\"\",\"\",'MHP Family Income & Rent Limits'!$E$4)","v":""},{"$f":"IF(A221=\"\",\"\",'MHP Family Income & Rent Limits'!$C$7)","v":""},{"$f":"IF(A221=\"\",\"\",'MHP Family Income & Rent Limits'!$F$8)","v":""},{"$f":"IF(A221=\"\",\"\",'1. Checklist & Certification'!$G$4)","v":""},{"$f":"IF(A221=\"\",\"\",'1. Checklist & Certification'!$K$39)","v":""},{"$f":"IF(A221=\"\",\"\",'1. Checklist & Certification'!$K$43)","v":""},{"$f":"IF(A221=\"\",\"\",'1. Checklist & Certification'!$K$45)","v":""},{"$f":"IF(A221=\"\",\"\",'1. Checklist & Certification'!$K$49)","v":""},{"$f":"IF(A221=\"\",\"\",'1. Checklist & Certification'!$K$62)","v":""},{"$f":"IF(A221=\"\",\"\",'1. Checklist & Certification'!$E$66)","v":""},{"$f":"IF(A221=\"\",\"\",'1. Checklist & Certification'!$E$67)","v":""},{"$f":"IF(A221=\"\",\"\",'1. Checklist & Certification'!$E$68)","v":""},{"$f":"IF(A221=\"\",\"\",'1. Checklist & Certification'!$G$66)","v":""},{"$f":"IF(A221=\"\",\"\",'1. Checklist & Certification'!$H$66)","v":""},{"$f":"IF(A221=\"\",\"\",'1. Checklist & Certification'!$I$66)","v":""},{"$f":"IF(A221=\"\",\"\",'1. Checklist & Certification'!$I$67)","v":""},{"$f":"IF(A221=\"\",\"\",'1. Checklist & Certification'!$I$68)","v":""},{"$f":"IF(A221=\"\",\"\",'1. Checklist & Certification'!$B$69)","v":""},{"$f":"IF(A221=\"\",\"\",'1. Checklist & Certification'!$C$69)","v":""},{"$f":"IF(A221=\"\",\"\",'1. Checklist & Certification'!$F$69)","v":""},{"$f":"IF(A221=\"\",\"\",'1. Checklist & Certification'!$G$69)","v":""},{"$f":"IF(A221=\"\",\"\",'1. Checklist & Certification'!$J$69)","v":""},{"$f":"IF(A221=\"\",\"\",'1. Checklist & Certification'!$K$69)","v":""},null,null,{"$f":"IF(AND(OR('1. Checklist & Certification'!$M$16=1,'1. Checklist & Certification'!$M$19=2),AO221>0,B221=\"\",I221>0,AQ221<I221,AV221<>\"Sec 8-Project\"),\"X\",IF(AND(OR('1. Checklist & Certification'!$M$20=4,'1. Checklist & Certification'!$M$21=5,'1. Checklist & Certification'!$M$22=7),AO221>0,B221=\"\",I221>0,K221<I221),\"X\",\"\"))","v":""},{"$f":"IF(A221=\"\",\"\",IF(SUMPRODUCT(-- (ISNUMBER(SEARCH({\"*AHSC*\",\"*FMTW*\",\"*FWHG*\",\"*GHI*\",\"*HHC*\",\"*HLCP*\",\"*HOME*\",\"*LPR*\",\"*MHP*\",\"*NHTF*\",\"*NSP*\",\"*PRP*\",\"*TOD*\",\"*VHHP*\"},'1. Checklist & Certification'!$L$7)))),\"MHP\",\"Legacy\"))","v":""},",,",null,null,null,{"$f":"IF('1. Checklist & Certification'!$M$20=4,\"Both\",IF(OR('1. Checklist & Certification'!$M$15>0,S221=\"CHRP-R\",U221=\"CHRP-R\",W221=\"CHRP-R\",Y221=\"CHRP-R\"),\"Under\",\"No\"))","v":"No"},"No","No",{"$f":"_xlfn.IFS(D221=\"\",\"\",D221=1,'MHP Family Income & Rent Limits'!$E$17,D221=2,'MHP Family Income & Rent Limits'!$F$17,D221=3,'MHP Family Income & Rent Limits'!$G$17,D221=4,'MHP Family Income & Rent Limits'!$H$17,D221=5,'MHP Family Income & Rent Limits'!$I$17,D221=6,'MHP Family Income & Rent Limits'!$J$17,D221=7,'MHP Family Income & Rent Limits'!$K$17,D221=8,'MHP Family Income & Rent Limits'!$L$17)","v":""},"",{"$f":"IF(OR(A221=0,B221=\"X\"),0,MIN(IF(AA221:AD221<>0,AA221:AD221)))","v":0},{"$f":"IF(OR(H221=\"\",I221=\"\"),0,IF(H221*0.3/12>I221,MIN(H221*0.3/12,I221*1.1)+AP221,I221*(1+(VLOOKUP('1. Checklist & Certification'!$F$9,'HLCP-E Rent Change'!$A$1:$D$59,4,FALSE)))+AP221))","v":0}]
[null,null,null,null,null,null,null,null,null,null,null,null,null,null,null,null,null,null,null,null,null,null,null,null,null,null,0,0,0,0,0,0,0,0,{"$f":"IF(OR(A222=0,B222=\"X\"),0,IF(OR(S222=\"FHDP\",S222=\"RHCP-B\",U222=\"FHDP\",U222=\"RHCP-B\",W222=\"FHDP\",W222=\"RHCP-B\",Y222=\"FHDP\",Y222=\"RHCP-B\"),TRUNC((MIN(I222,K222)*(1+'1. Checklist & Certification'!$K$43)+AP222)),0))","v":0},{"$f":"IF(OR(A222=0,B222=\"X\"),0,IF(OR(S222=\"CHRP-R\",S222=\"SERA\",S222=\"SUHRP\",U222=\"CHRP-R\",U222=\"SERA\",U222=\"SUHRP\",W222=\"CHRP-R\",W222=\"SERA\",W222=\"SUHRP\",Y222=\"CHRP-R\",Y222=\"SERA\",Y222=\"SUHRP\"),TRUNC((MIN(I222,K222)*(1+'1. Checklist & Certification'!$K$49))),0))","v":0},{"$f":"IF(OR(A222=0,B222=\"X\"),0,IF(OR(S222=\"CALDAP\",S222=\"DPRLP\",U222=\"CALDAP\",U222=\"DPRLP\",W222=\"CALDAP\",W222=\"DPRLP\",Y222=\"CALDAP\",Y222=\"DPRLP\"),TRUNC(((MIN(I222,K222))*(1+'1. Checklist & Certification'!$G$4))),0))","v":0},0,0,0,{"$f":"IF(OR(A222=0,B222=\"X\"),0,IF(OR(S222=\"PRP\",S222=\"LPR\",U222=\"PRP\",U222=\"LPR\",W222=\"PRP\",W222=\"LPR\",Y222=\"PRP\",Y222=\"LPR\"),MAX(I222+AP222,MIN(IF(AE222:AN222<>0,AE222:AN222))),MIN(IF(AE222:AN222<>0,AE222:AN222))))","v":0},{"$f":"IF(A222=0,0,IF(AND(OR(S222=\"Mgr\",S222=0),OR(U222=\"Mgr\",U222=0),OR(W222=\"Mgr\",W222=0)),0,IF(LEFT($A222,2)=\"B*\",VLOOKUP($E222,'1. Checklist & Certification'!$D$26:$E$32,2),IF(LEFT($A222,2)=\"C*\",VLOOKUP($E222,'1. Checklist & Certification'!$F$26:$G$32,2),IF(LEFT($A222,2)=\"D*\",VLOOKUP($E222,'1. Checklist & Certification'!$H$26:$I$32,2),IF(LEFT($A222,2)=\"E*\",VLOOKUP($E222,'1. Checklist & Certification'!$J$26:$K$32,2),VLOOKUP($E222,'1. Checklist & Certification'!$A$26:$B$32,2)))))))","v":0},0,0,null,null,null,null,"","",0,0,0,null,{"$f":"IF(A222=\"\",\"\",'1. Checklist & Certification'!$K$1)","v":""},{"$f":"IF(A222=\"\",\"\",'1. Checklist & Certification'!$C$62)","v":""},{"$f":"IF(A222=\"\",\"\",'1. Checklist & Certification'!$C$6)","v":""},{"$f":"IF(A222=\"\",\"\",'1. Checklist & Certification'!$G$5)","v":""},{"$f":"IFERROR(IF(A222=\"\",\"\",\n_xlfn.LET(_xlpm.Contract,'1. Checklist & Certification'!$C$7,\n_xlpm.Yr,TEXT(MOD(_xlfn.TEXTBEFORE(_xlpm.Contract,\"-\"),100),\"00\"),\n_xlpm.Program,_xlfn.TEXTAFTER(_xlfn.TEXTBEFORE(_xlpm.Contract,\"-\",2),\"-\"),\n_xlpm.CleanProgram,_xlfn.XLOOKUP(_xlpm.Program,SpellCheck[Input],SpellCheck[Correction],_xlpm.Program),\n_xlpm.Number,TEXT(_xlfn.TEXTAFTER(_xlpm.Contract,\"-\",2),\"0000\"),\n_xlfn.CONCAT(_xlpm.Yr,\"-\",_xlpm.CleanProgram,\"-\",_xlpm.Number))\n),\"\")","v":""},{"$f":"IFERROR(IF(A222=\"\",\"\",\n_xlfn.LET(_xlpm.Contract,'1. Checklist & Certification'!$C$8,\n_xlpm.Yr,TEXT(MOD(_xlfn.TEXTBEFORE(_xlpm.Contract,\"-\"),100),\"00\"),\n_xlpm.Program,_xlfn.TEXTAFTER(_xlfn.TEXTBEFORE(_xlpm.Contract,\"-\",2),\"-\"),\n_xlpm.CleanProgram,_xlfn.XLOOKUP(_xlpm.Program,SpellCheck[Input],SpellCheck[Correction],_xlpm.Program),\n_xlpm.Number,TEXT(_xlfn.TEXTAFTER(_xlpm.Contract,\"-\",2),\"0000\"),\n_xlfn.CONCAT(_xlpm.Yr,\"-\",_xlpm.CleanProgram,\"-\",_xlpm.Number))\n),\"\")","v":""},{"$f":"IFERROR(IF(A222=\"\",\"\",\n_xlfn.LET(_xlpm.Contract,'1. Checklist & Certification'!$F$7,\n_xlpm.Yr,TEXT(MOD(_xlfn.TEXTBEFORE(_xlpm.Contract,\"-\"),100),\"00\"),\n_xlpm.Program,_xlfn.TEXTAFTER(_xlfn.TEXTBEFORE(_xlpm.Contract,\"-\",2),\"-\"),\n_xlpm.CleanProgram,_xlfn.XLOOKUP(_xlpm.Program,SpellCheck[Input],SpellCheck[Correction],_xlpm.Program),\n_xlpm.Number,TEXT(_xlfn.TEXTAFTER(_xlpm.Contract,\"-\",2),\"0000\"),\n_xlfn.CONCAT(_xlpm.Yr,\"-\",_xlpm.CleanProgram,\"-\",_xlpm.Number))\n),\"\")","v":""},{"$f":"IFERROR(IF(A222=\"\",\"\",\n_xlfn.LET(_xlpm.Contract,'1. Checklist & Certification'!$F$8,\n_xlpm.Yr,TEXT(MOD(_xlfn.TEXTBEFORE(_xlpm.Contract,\"-\"),100),\"00\"),\n_xlpm.Program,_xlfn.TEXTAFTER(_xlfn.TEXTBEFORE(_xlpm.Contract,\"-\",2),\"-\"),\n_xlpm.CleanProgram,_xlfn.XLOOKUP(_xlpm.Program,SpellCheck[Input],SpellCheck[Correction],_xlpm.Program),\n_xlpm.Number,TEXT(_xlfn.TEXTAFTER(_xlpm.Contract,\"-\",2),\"0000\"),\n_xlfn.CONCAT(_xlpm.Yr,\"-\",_xlpm.CleanProgram,\"-\",_xlpm.Number))\n),\"\")","v":""},{"$f":"IF(A222=\"\",\"\",'1. Checklist & Certification'!$B$9)","v":""},{"$f":"IF(A222=\"\",\"\",'1. Checklist & Certification'!$F$9)","v":""},{"$f":"IF(A222=\"\",\"\",'1. Checklist & Certification'!$C$10)","v":""},{"$f":"IF(A222=\"\",\"\",'1. Checklist & Certification'!$C$11)","v":""},{"$f":"IF(A222=\"\",\"\",'1. Checklist & Certification'!$C$12)","v":""},{"$f":"IF(A222=\"\",\"\",'1. Checklist & Certification'!$B$14)","v":""},{"$f":"IF(A222=\"\",\"\",'1. Checklist & Certification'!$E$14)","v":""},{"$f":"IF(B222=\"\",\"\",'1. Checklist & Certification'!$G$14)","v":""},{"$f":"IF(A222=\"\",\"\",'MHP Family Income & Rent Limits'!$B$3)","v":""},{"$f":"IF(A222=\"\",\"\",'MHP Family Income & Rent Limits'!$J$3)","v":""},{"$f":"IF(A222=\"\",\"\",'MHP Family Income & Rent Limits'!$E$4)","v":""},{"$f":"IF(A222=\"\",\"\",'MHP Family Income & Rent Limits'!$C$7)","v":""},{"$f":"IF(A222=\"\",\"\",'MHP Family Income & Rent Limits'!$F$8)","v":""},{"$f":"IF(A222=\"\",\"\",'1. Checklist & Certification'!$G$4)","v":""},{"$f":"IF(A222=\"\",\"\",'1. Checklist & Certification'!$K$39)","v":""},{"$f":"IF(A222=\"\",\"\",'1. Checklist & Certification'!$K$43)","v":""},{"$f":"IF(A222=\"\",\"\",'1. Checklist & Certification'!$K$45)","v":""},{"$f":"IF(A222=\"\",\"\",'1. Checklist & Certification'!$K$49)","v":""},{"$f":"IF(A222=\"\",\"\",'1. Checklist & Certification'!$K$62)","v":""},{"$f":"IF(A222=\"\",\"\",'1. Checklist & Certification'!$E$66)","v":""},{"$f":"IF(A222=\"\",\"\",'1. Checklist & Certification'!$E$67)","v":""},{"$f":"IF(A222=\"\",\"\",'1. Checklist & Certification'!$E$68)","v":""},{"$f":"IF(A222=\"\",\"\",'1. Checklist & Certification'!$G$66)","v":""},{"$f":"IF(A222=\"\",\"\",'1. Checklist & Certification'!$H$66)","v":""},{"$f":"IF(A222=\"\",\"\",'1. Checklist & Certification'!$I$66)","v":""},{"$f":"IF(A222=\"\",\"\",'1. Checklist & Certification'!$I$67)","v":""},{"$f":"IF(A222=\"\",\"\",'1. Checklist & Certification'!$I$68)","v":""},{"$f":"IF(A222=\"\",\"\",'1. Checklist & Certification'!$B$69)","v":""},{"$f":"IF(A222=\"\",\"\",'1. Checklist & Certification'!$C$69)","v":""},{"$f":"IF(A222=\"\",\"\",'1. Checklist & Certification'!$F$69)","v":""},{"$f":"IF(A222=\"\",\"\",'1. Checklist & Certification'!$G$69)","v":""},{"$f":"IF(A222=\"\",\"\",'1. Checklist & Certification'!$J$69)","v":""},{"$f":"IF(A222=\"\",\"\",'1. Checklist & Certification'!$K$69)","v":""},null,null,{"$f":"IF(AND(OR('1. Checklist & Certification'!$M$16=1,'1. Checklist & Certification'!$M$19=2),AO222>0,B222=\"\",I222>0,AQ222<I222,AV222<>\"Sec 8-Project\"),\"X\",IF(AND(OR('1. Checklist & Certification'!$M$20=4,'1. Checklist & Certification'!$M$21=5,'1. Checklist & Certification'!$M$22=7),AO222>0,B222=\"\",I222>0,K222<I222),\"X\",\"\"))","v":""},{"$f":"IF(A222=\"\",\"\",IF(SUMPRODUCT(-- (ISNUMBER(SEARCH({\"*AHSC*\",\"*FMTW*\",\"*FWHG*\",\"*GHI*\",\"*HHC*\",\"*HLCP*\",\"*HOME*\",\"*LPR*\",\"*MHP*\",\"*NHTF*\",\"*NSP*\",\"*PRP*\",\"*TOD*\",\"*VHHP*\"},'1. Checklist & Certification'!$L$7)))),\"MHP\",\"Legacy\"))","v":""},",,",null,null,null,{"$f":"IF('1. Checklist & Certification'!$M$20=4,\"Both\",IF(OR('1. Checklist & Certification'!$M$15>0,S222=\"CHRP-R\",U222=\"CHRP-R\",W222=\"CHRP-R\",Y222=\"CHRP-R\"),\"Under\",\"No\"))","v":"No"},"No","No",{"$f":"_xlfn.IFS(D222=\"\",\"\",D222=1,'MHP Family Income & Rent Limits'!$E$17,D222=2,'MHP Family Income & Rent Limits'!$F$17,D222=3,'MHP Family Income & Rent Limits'!$G$17,D222=4,'MHP Family Income & Rent Limits'!$H$17,D222=5,'MHP Family Income & Rent Limits'!$I$17,D222=6,'MHP Family Income & Rent Limits'!$J$17,D222=7,'MHP Family Income & Rent Limits'!$K$17,D222=8,'MHP Family Income & Rent Limits'!$L$17)","v":""},"",{"$f":"IF(OR(A222=0,B222=\"X\"),0,MIN(IF(AA222:AD222<>0,AA222:AD222)))","v":0},{"$f":"IF(OR(H222=\"\",I222=\"\"),0,IF(H222*0.3/12>I222,MIN(H222*0.3/12,I222*1.1)+AP222,I222*(1+(VLOOKUP('1. Checklist & Certification'!$F$9,'HLCP-E Rent Change'!$A$1:$D$59,4,FALSE)))+AP222))","v":0}]
[null,null,null,null,null,null,null,null,null,null,null,null,null,null,null,null,null,null,null,null,null,null,null,null,null,null,0,0,0,0,0,0,0,0,{"$f":"IF(OR(A223=0,B223=\"X\"),0,IF(OR(S223=\"FHDP\",S223=\"RHCP-B\",U223=\"FHDP\",U223=\"RHCP-B\",W223=\"FHDP\",W223=\"RHCP-B\",Y223=\"FHDP\",Y223=\"RHCP-B\"),TRUNC((MIN(I223,K223)*(1+'1. Checklist & Certification'!$K$43)+AP223)),0))","v":0},{"$f":"IF(OR(A223=0,B223=\"X\"),0,IF(OR(S223=\"CHRP-R\",S223=\"SERA\",S223=\"SUHRP\",U223=\"CHRP-R\",U223=\"SERA\",U223=\"SUHRP\",W223=\"CHRP-R\",W223=\"SERA\",W223=\"SUHRP\",Y223=\"CHRP-R\",Y223=\"SERA\",Y223=\"SUHRP\"),TRUNC((MIN(I223,K223)*(1+'1. Checklist & Certification'!$K$49))),0))","v":0},{"$f":"IF(OR(A223=0,B223=\"X\"),0,IF(OR(S223=\"CALDAP\",S223=\"DPRLP\",U223=\"CALDAP\",U223=\"DPRLP\",W223=\"CALDAP\",W223=\"DPRLP\",Y223=\"CALDAP\",Y223=\"DPRLP\"),TRUNC(((MIN(I223,K223))*(1+'1. Checklist & Certification'!$G$4))),0))","v":0},0,0,0,{"$f":"IF(OR(A223=0,B223=\"X\"),0,IF(OR(S223=\"PRP\",S223=\"LPR\",U223=\"PRP\",U223=\"LPR\",W223=\"PRP\",W223=\"LPR\",Y223=\"PRP\",Y223=\"LPR\"),MAX(I223+AP223,MIN(IF(AE223:AN223<>0,AE223:AN223))),MIN(IF(AE223:AN223<>0,AE223:AN223))))","v":0},{"$f":"IF(A223=0,0,IF(AND(OR(S223=\"Mgr\",S223=0),OR(U223=\"Mgr\",U223=0),OR(W223=\"Mgr\",W223=0)),0,IF(LEFT($A223,2)=\"B*\",VLOOKUP($E223,'1. Checklist & Certification'!$D$26:$E$32,2),IF(LEFT($A223,2)=\"C*\",VLOOKUP($E223,'1. Checklist & Certification'!$F$26:$G$32,2),IF(LEFT($A223,2)=\"D*\",VLOOKUP($E223,'1. Checklist & Certification'!$H$26:$I$32,2),IF(LEFT($A223,2)=\"E*\",VLOOKUP($E223,'1. Checklist & Certification'!$J$26:$K$32,2),VLOOKUP($E223,'1. Checklist & Certification'!$A$26:$B$32,2)))))))","v":0},0,0,null,null,null,null,"","",0,0,0,null,{"$f":"IF(A223=\"\",\"\",'1. Checklist & Certification'!$K$1)","v":""},{"$f":"IF(A223=\"\",\"\",'1. Checklist & Certification'!$C$62)","v":""},{"$f":"IF(A223=\"\",\"\",'1. Checklist & Certification'!$C$6)","v":""},{"$f":"IF(A223=\"\",\"\",'1. Checklist & Certification'!$G$5)","v":""},{"$f":"IFERROR(IF(A223=\"\",\"\",\n_xlfn.LET(_xlpm.Contract,'1. Checklist & Certification'!$C$7,\n_xlpm.Yr,TEXT(MOD(_xlfn.TEXTBEFORE(_xlpm.Contract,\"-\"),100),\"00\"),\n_xlpm.Program,_xlfn.TEXTAFTER(_xlfn.TEXTBEFORE(_xlpm.Contract,\"-\",2),\"-\"),\n_xlpm.CleanProgram,_xlfn.XLOOKUP(_xlpm.Program,SpellCheck[Input],SpellCheck[Correction],_xlpm.Program),\n_xlpm.Number,TEXT(_xlfn.TEXTAFTER(_xlpm.Contract,\"-\",2),\"0000\"),\n_xlfn.CONCAT(_xlpm.Yr,\"-\",_xlpm.CleanProgram,\"-\",_xlpm.Number))\n),\"\")","v":""},{"$f":"IFERROR(IF(A223=\"\",\"\",\n_xlfn.LET(_xlpm.Contract,'1. Checklist & Certification'!$C$8,\n_xlpm.Yr,TEXT(MOD(_xlfn.TEXTBEFORE(_xlpm.Contract,\"-\"),100),\"00\"),\n_xlpm.Program,_xlfn.TEXTAFTER(_xlfn.TEXTBEFORE(_xlpm.Contract,\"-\",2),\"-\"),\n_xlpm.CleanProgram,_xlfn.XLOOKUP(_xlpm.Program,SpellCheck[Input],SpellCheck[Correction],_xlpm.Program),\n_xlpm.Number,TEXT(_xlfn.TEXTAFTER(_xlpm.Contract,\"-\",2),\"0000\"),\n_xlfn.CONCAT(_xlpm.Yr,\"-\",_xlpm.CleanProgram,\"-\",_xlpm.Number))\n),\"\")","v":""},{"$f":"IFERROR(IF(A223=\"\",\"\",\n_xlfn.LET(_xlpm.Contract,'1. Checklist & Certification'!$F$7,\n_xlpm.Yr,TEXT(MOD(_xlfn.TEXTBEFORE(_xlpm.Contract,\"-\"),100),\"00\"),\n_xlpm.Program,_xlfn.TEXTAFTER(_xlfn.TEXTBEFORE(_xlpm.Contract,\"-\",2),\"-\"),\n_xlpm.CleanProgram,_xlfn.XLOOKUP(_xlpm.Program,SpellCheck[Input],SpellCheck[Correction],_xlpm.Program),\n_xlpm.Number,TEXT(_xlfn.TEXTAFTER(_xlpm.Contract,\"-\",2),\"0000\"),\n_xlfn.CONCAT(_xlpm.Yr,\"-\",_xlpm.CleanProgram,\"-\",_xlpm.Number))\n),\"\")","v":""},{"$f":"IFERROR(IF(A223=\"\",\"\",\n_xlfn.LET(_xlpm.Contract,'1. Checklist & Certification'!$F$8,\n_xlpm.Yr,TEXT(MOD(_xlfn.TEXTBEFORE(_xlpm.Contract,\"-\"),100),\"00\"),\n_xlpm.Program,_xlfn.TEXTAFTER(_xlfn.TEXTBEFORE(_xlpm.Contract,\"-\",2),\"-\"),\n_xlpm.CleanProgram,_xlfn.XLOOKUP(_xlpm.Program,SpellCheck[Input],SpellCheck[Correction],_xlpm.Program),\n_xlpm.Number,TEXT(_xlfn.TEXTAFTER(_xlpm.Contract,\"-\",2),\"0000\"),\n_xlfn.CONCAT(_xlpm.Yr,\"-\",_xlpm.CleanProgram,\"-\",_xlpm.Number))\n),\"\")","v":""},{"$f":"IF(A223=\"\",\"\",'1. Checklist & Certification'!$B$9)","v":""},{"$f":"IF(A223=\"\",\"\",'1. Checklist & Certification'!$F$9)","v":""},{"$f":"IF(A223=\"\",\"\",'1. Checklist & Certification'!$C$10)","v":""},{"$f":"IF(A223=\"\",\"\",'1. Checklist & Certification'!$C$11)","v":""},{"$f":"IF(A223=\"\",\"\",'1. Checklist & Certification'!$C$12)","v":""},{"$f":"IF(A223=\"\",\"\",'1. Checklist & Certification'!$B$14)","v":""},{"$f":"IF(A223=\"\",\"\",'1. Checklist & Certification'!$E$14)","v":""},{"$f":"IF(B223=\"\",\"\",'1. Checklist & Certification'!$G$14)","v":""},{"$f":"IF(A223=\"\",\"\",'MHP Family Income & Rent Limits'!$B$3)","v":""},{"$f":"IF(A223=\"\",\"\",'MHP Family Income & Rent Limits'!$J$3)","v":""},{"$f":"IF(A223=\"\",\"\",'MHP Family Income & Rent Limits'!$E$4)","v":""},{"$f":"IF(A223=\"\",\"\",'MHP Family Income & Rent Limits'!$C$7)","v":""},{"$f":"IF(A223=\"\",\"\",'MHP Family Income & Rent Limits'!$F$8)","v":""},{"$f":"IF(A223=\"\",\"\",'1. Checklist & Certification'!$G$4)","v":""},{"$f":"IF(A223=\"\",\"\",'1. Checklist & Certification'!$K$39)","v":""},{"$f":"IF(A223=\"\",\"\",'1. Checklist & Certification'!$K$43)","v":""},{"$f":"IF(A223=\"\",\"\",'1. Checklist & Certification'!$K$45)","v":""},{"$f":"IF(A223=\"\",\"\",'1. Checklist & Certification'!$K$49)","v":""},{"$f":"IF(A223=\"\",\"\",'1. Checklist & Certification'!$K$62)","v":""},{"$f":"IF(A223=\"\",\"\",'1. Checklist & Certification'!$E$66)","v":""},{"$f":"IF(A223=\"\",\"\",'1. Checklist & Certification'!$E$67)","v":""},{"$f":"IF(A223=\"\",\"\",'1. Checklist & Certification'!$E$68)","v":""},{"$f":"IF(A223=\"\",\"\",'1. Checklist & Certification'!$G$66)","v":""},{"$f":"IF(A223=\"\",\"\",'1. Checklist & Certification'!$H$66)","v":""},{"$f":"IF(A223=\"\",\"\",'1. Checklist & Certification'!$I$66)","v":""},{"$f":"IF(A223=\"\",\"\",'1. Checklist & Certification'!$I$67)","v":""},{"$f":"IF(A223=\"\",\"\",'1. Checklist & Certification'!$I$68)","v":""},{"$f":"IF(A223=\"\",\"\",'1. Checklist & Certification'!$B$69)","v":""},{"$f":"IF(A223=\"\",\"\",'1. Checklist & Certification'!$C$69)","v":""},{"$f":"IF(A223=\"\",\"\",'1. Checklist & Certification'!$F$69)","v":""},{"$f":"IF(A223=\"\",\"\",'1. Checklist & Certification'!$G$69)","v":""},{"$f":"IF(A223=\"\",\"\",'1. Checklist & Certification'!$J$69)","v":""},{"$f":"IF(A223=\"\",\"\",'1. Checklist & Certification'!$K$69)","v":""},null,null,{"$f":"IF(AND(OR('1. Checklist & Certification'!$M$16=1,'1. Checklist & Certification'!$M$19=2),AO223>0,B223=\"\",I223>0,AQ223<I223,AV223<>\"Sec 8-Project\"),\"X\",IF(AND(OR('1. Checklist & Certification'!$M$20=4,'1. Checklist & Certification'!$M$21=5,'1. Checklist & Certification'!$M$22=7),AO223>0,B223=\"\",I223>0,K223<I223),\"X\",\"\"))","v":""},{"$f":"IF(A223=\"\",\"\",IF(SUMPRODUCT(-- (ISNUMBER(SEARCH({\"*AHSC*\",\"*FMTW*\",\"*FWHG*\",\"*GHI*\",\"*HHC*\",\"*HLCP*\",\"*HOME*\",\"*LPR*\",\"*MHP*\",\"*NHTF*\",\"*NSP*\",\"*PRP*\",\"*TOD*\",\"*VHHP*\"},'1. Checklist & Certification'!$L$7)))),\"MHP\",\"Legacy\"))","v":""},",,",null,null,null,{"$f":"IF('1. Checklist & Certification'!$M$20=4,\"Both\",IF(OR('1. Checklist & Certification'!$M$15>0,S223=\"CHRP-R\",U223=\"CHRP-R\",W223=\"CHRP-R\",Y223=\"CHRP-R\"),\"Under\",\"No\"))","v":"No"},"No","No",{"$f":"_xlfn.IFS(D223=\"\",\"\",D223=1,'MHP Family Income & Rent Limits'!$E$17,D223=2,'MHP Family Income & Rent Limits'!$F$17,D223=3,'MHP Family Income & Rent Limits'!$G$17,D223=4,'MHP Family Income & Rent Limits'!$H$17,D223=5,'MHP Family Income & Rent Limits'!$I$17,D223=6,'MHP Family Income & Rent Limits'!$J$17,D223=7,'MHP Family Income & Rent Limits'!$K$17,D223=8,'MHP Family Income & Rent Limits'!$L$17)","v":""},"",{"$f":"IF(OR(A223=0,B223=\"X\"),0,MIN(IF(AA223:AD223<>0,AA223:AD223)))","v":0},{"$f":"IF(OR(H223=\"\",I223=\"\"),0,IF(H223*0.3/12>I223,MIN(H223*0.3/12,I223*1.1)+AP223,I223*(1+(VLOOKUP('1. Checklist & Certification'!$F$9,'HLCP-E Rent Change'!$A$1:$D$59,4,FALSE)))+AP223))","v":0}]
[null,null,null,null,null,null,null,null,null,null,null,null,null,null,null,null,null,null,null,null,null,null,null,null,null,null,0,0,0,0,0,0,0,0,{"$f":"IF(OR(A224=0,B224=\"X\"),0,IF(OR(S224=\"FHDP\",S224=\"RHCP-B\",U224=\"FHDP\",U224=\"RHCP-B\",W224=\"FHDP\",W224=\"RHCP-B\",Y224=\"FHDP\",Y224=\"RHCP-B\"),TRUNC((MIN(I224,K224)*(1+'1. Checklist & Certification'!$K$43)+AP224)),0))","v":0},{"$f":"IF(OR(A224=0,B224=\"X\"),0,IF(OR(S224=\"CHRP-R\",S224=\"SERA\",S224=\"SUHRP\",U224=\"CHRP-R\",U224=\"SERA\",U224=\"SUHRP\",W224=\"CHRP-R\",W224=\"SERA\",W224=\"SUHRP\",Y224=\"CHRP-R\",Y224=\"SERA\",Y224=\"SUHRP\"),TRUNC((MIN(I224,K224)*(1+'1. Checklist & Certification'!$K$49))),0))","v":0},{"$f":"IF(OR(A224=0,B224=\"X\"),0,IF(OR(S224=\"CALDAP\",S224=\"DPRLP\",U224=\"CALDAP\",U224=\"DPRLP\",W224=\"CALDAP\",W224=\"DPRLP\",Y224=\"CALDAP\",Y224=\"DPRLP\"),TRUNC(((MIN(I224,K224))*(1+'1. Checklist & Certification'!$G$4))),0))","v":0},0,0,0,{"$f":"IF(OR(A224=0,B224=\"X\"),0,IF(OR(S224=\"PRP\",S224=\"LPR\",U224=\"PRP\",U224=\"LPR\",W224=\"PRP\",W224=\"LPR\",Y224=\"PRP\",Y224=\"LPR\"),MAX(I224+AP224,MIN(IF(AE224:AN224<>0,AE224:AN224))),MIN(IF(AE224:AN224<>0,AE224:AN224))))","v":0},{"$f":"IF(A224=0,0,IF(AND(OR(S224=\"Mgr\",S224=0),OR(U224=\"Mgr\",U224=0),OR(W224=\"Mgr\",W224=0)),0,IF(LEFT($A224,2)=\"B*\",VLOOKUP($E224,'1. Checklist & Certification'!$D$26:$E$32,2),IF(LEFT($A224,2)=\"C*\",VLOOKUP($E224,'1. Checklist & Certification'!$F$26:$G$32,2),IF(LEFT($A224,2)=\"D*\",VLOOKUP($E224,'1. Checklist & Certification'!$H$26:$I$32,2),IF(LEFT($A224,2)=\"E*\",VLOOKUP($E224,'1. Checklist & Certification'!$J$26:$K$32,2),VLOOKUP($E224,'1. Checklist & Certification'!$A$26:$B$32,2)))))))","v":0},0,0,null,null,null,null,"","",0,0,0,null,{"$f":"IF(A224=\"\",\"\",'1. Checklist & Certification'!$K$1)","v":""},{"$f":"IF(A224=\"\",\"\",'1. Checklist & Certification'!$C$62)","v":""},{"$f":"IF(A224=\"\",\"\",'1. Checklist & Certification'!$C$6)","v":""},{"$f":"IF(A224=\"\",\"\",'1. Checklist & Certification'!$G$5)","v":""},{"$f":"IFERROR(IF(A224=\"\",\"\",\n_xlfn.LET(_xlpm.Contract,'1. Checklist & Certification'!$C$7,\n_xlpm.Yr,TEXT(MOD(_xlfn.TEXTBEFORE(_xlpm.Contract,\"-\"),100),\"00\"),\n_xlpm.Program,_xlfn.TEXTAFTER(_xlfn.TEXTBEFORE(_xlpm.Contract,\"-\",2),\"-\"),\n_xlpm.CleanProgram,_xlfn.XLOOKUP(_xlpm.Program,SpellCheck[Input],SpellCheck[Correction],_xlpm.Program),\n_xlpm.Number,TEXT(_xlfn.TEXTAFTER(_xlpm.Contract,\"-\",2),\"0000\"),\n_xlfn.CONCAT(_xlpm.Yr,\"-\",_xlpm.CleanProgram,\"-\",_xlpm.Number))\n),\"\")","v":""},{"$f":"IFERROR(IF(A224=\"\",\"\",\n_xlfn.LET(_xlpm.Contract,'1. Checklist & Certification'!$C$8,\n_xlpm.Yr,TEXT(MOD(_xlfn.TEXTBEFORE(_xlpm.Contract,\"-\"),100),\"00\"),\n_xlpm.Program,_xlfn.TEXTAFTER(_xlfn.TEXTBEFORE(_xlpm.Contract,\"-\",2),\"-\"),\n_xlpm.CleanProgram,_xlfn.XLOOKUP(_xlpm.Program,SpellCheck[Input],SpellCheck[Correction],_xlpm.Program),\n_xlpm.Number,TEXT(_xlfn.TEXTAFTER(_xlpm.Contract,\"-\",2),\"0000\"),\n_xlfn.CONCAT(_xlpm.Yr,\"-\",_xlpm.CleanProgram,\"-\",_xlpm.Number))\n),\"\")","v":""},{"$f":"IFERROR(IF(A224=\"\",\"\",\n_xlfn.LET(_xlpm.Contract,'1. Checklist & Certification'!$F$7,\n_xlpm.Yr,TEXT(MOD(_xlfn.TEXTBEFORE(_xlpm.Contract,\"-\"),100),\"00\"),\n_xlpm.Program,_xlfn.TEXTAFTER(_xlfn.TEXTBEFORE(_xlpm.Contract,\"-\",2),\"-\"),\n_xlpm.CleanProgram,_xlfn.XLOOKUP(_xlpm.Program,SpellCheck[Input],SpellCheck[Correction],_xlpm.Program),\n_xlpm.Number,TEXT(_xlfn.TEXTAFTER(_xlpm.Contract,\"-\",2),\"0000\"),\n_xlfn.CONCAT(_xlpm.Yr,\"-\",_xlpm.CleanProgram,\"-\",_xlpm.Number))\n),\"\")","v":""},{"$f":"IFERROR(IF(A224=\"\",\"\",\n_xlfn.LET(_xlpm.Contract,'1. Checklist & Certification'!$F$8,\n_xlpm.Yr,TEXT(MOD(_xlfn.TEXTBEFORE(_xlpm.Contract,\"-\"),100),\"00\"),\n_xlpm.Program,_xlfn.TEXTAFTER(_xlfn.TEXTBEFORE(_xlpm.Contract,\"-\",2),\"-\"),\n_xlpm.CleanProgram,_xlfn.XLOOKUP(_xlpm.Program,SpellCheck[Input],SpellCheck[Correction],_xlpm.Program),\n_xlpm.Number,TEXT(_xlfn.TEXTAFTER(_xlpm.Contract,\"-\",2),\"0000\"),\n_xlfn.CONCAT(_xlpm.Yr,\"-\",_xlpm.CleanProgram,\"-\",_xlpm.Number))\n),\"\")","v":""},{"$f":"IF(A224=\"\",\"\",'1. Checklist & Certification'!$B$9)","v":""},{"$f":"IF(A224=\"\",\"\",'1. Checklist & Certification'!$F$9)","v":""},{"$f":"IF(A224=\"\",\"\",'1. Checklist & Certification'!$C$10)","v":""},{"$f":"IF(A224=\"\",\"\",'1. Checklist & Certification'!$C$11)","v":""},{"$f":"IF(A224=\"\",\"\",'1. Checklist & Certification'!$C$12)","v":""},{"$f":"IF(A224=\"\",\"\",'1. Checklist & Certification'!$B$14)","v":""},{"$f":"IF(A224=\"\",\"\",'1. Checklist & Certification'!$E$14)","v":""},{"$f":"IF(B224=\"\",\"\",'1. Checklist & Certification'!$G$14)","v":""},{"$f":"IF(A224=\"\",\"\",'MHP Family Income & Rent Limits'!$B$3)","v":""},{"$f":"IF(A224=\"\",\"\",'MHP Family Income & Rent Limits'!$J$3)","v":""},{"$f":"IF(A224=\"\",\"\",'MHP Family Income & Rent Limits'!$E$4)","v":""},{"$f":"IF(A224=\"\",\"\",'MHP Family Income & Rent Limits'!$C$7)","v":""},{"$f":"IF(A224=\"\",\"\",'MHP Family Income & Rent Limits'!$F$8)","v":""},{"$f":"IF(A224=\"\",\"\",'1. Checklist & Certification'!$G$4)","v":""},{"$f":"IF(A224=\"\",\"\",'1. Checklist & Certification'!$K$39)","v":""},{"$f":"IF(A224=\"\",\"\",'1. Checklist & Certification'!$K$43)","v":""},{"$f":"IF(A224=\"\",\"\",'1. Checklist & Certification'!$K$45)","v":""},{"$f":"IF(A224=\"\",\"\",'1. Checklist & Certification'!$K$49)","v":""},{"$f":"IF(A224=\"\",\"\",'1. Checklist & Certification'!$K$62)","v":""},{"$f":"IF(A224=\"\",\"\",'1. Checklist & Certification'!$E$66)","v":""},{"$f":"IF(A224=\"\",\"\",'1. Checklist & Certification'!$E$67)","v":""},{"$f":"IF(A224=\"\",\"\",'1. Checklist & Certification'!$E$68)","v":""},{"$f":"IF(A224=\"\",\"\",'1. Checklist & Certification'!$G$66)","v":""},{"$f":"IF(A224=\"\",\"\",'1. Checklist & Certification'!$H$66)","v":""},{"$f":"IF(A224=\"\",\"\",'1. Checklist & Certification'!$I$66)","v":""},{"$f":"IF(A224=\"\",\"\",'1. Checklist & Certification'!$I$67)","v":""},{"$f":"IF(A224=\"\",\"\",'1. Checklist & Certification'!$I$68)","v":""},{"$f":"IF(A224=\"\",\"\",'1. Checklist & Certification'!$B$69)","v":""},{"$f":"IF(A224=\"\",\"\",'1. Checklist & Certification'!$C$69)","v":""},{"$f":"IF(A224=\"\",\"\",'1. Checklist & Certification'!$F$69)","v":""},{"$f":"IF(A224=\"\",\"\",'1. Checklist & Certification'!$G$69)","v":""},{"$f":"IF(A224=\"\",\"\",'1. Checklist & Certification'!$J$69)","v":""},{"$f":"IF(A224=\"\",\"\",'1. Checklist & Certification'!$K$69)","v":""},null,null,{"$f":"IF(AND(OR('1. Checklist & Certification'!$M$16=1,'1. Checklist & Certification'!$M$19=2),AO224>0,B224=\"\",I224>0,AQ224<I224,AV224<>\"Sec 8-Project\"),\"X\",IF(AND(OR('1. Checklist & Certification'!$M$20=4,'1. Checklist & Certification'!$M$21=5,'1. Checklist & Certification'!$M$22=7),AO224>0,B224=\"\",I224>0,K224<I224),\"X\",\"\"))","v":""},{"$f":"IF(A224=\"\",\"\",IF(SUMPRODUCT(-- (ISNUMBER(SEARCH({\"*AHSC*\",\"*FMTW*\",\"*FWHG*\",\"*GHI*\",\"*HHC*\",\"*HLCP*\",\"*HOME*\",\"*LPR*\",\"*MHP*\",\"*NHTF*\",\"*NSP*\",\"*PRP*\",\"*TOD*\",\"*VHHP*\"},'1. Checklist & Certification'!$L$7)))),\"MHP\",\"Legacy\"))","v":""},",,",null,null,null,{"$f":"IF('1. Checklist & Certification'!$M$20=4,\"Both\",IF(OR('1. Checklist & Certification'!$M$15>0,S224=\"CHRP-R\",U224=\"CHRP-R\",W224=\"CHRP-R\",Y224=\"CHRP-R\"),\"Under\",\"No\"))","v":"No"},"No","No",{"$f":"_xlfn.IFS(D224=\"\",\"\",D224=1,'MHP Family Income & Rent Limits'!$E$17,D224=2,'MHP Family Income & Rent Limits'!$F$17,D224=3,'MHP Family Income & Rent Limits'!$G$17,D224=4,'MHP Family Income & Rent Limits'!$H$17,D224=5,'MHP Family Income & Rent Limits'!$I$17,D224=6,'MHP Family Income & Rent Limits'!$J$17,D224=7,'MHP Family Income & Rent Limits'!$K$17,D224=8,'MHP Family Income & Rent Limits'!$L$17)","v":""},"",{"$f":"IF(OR(A224=0,B224=\"X\"),0,MIN(IF(AA224:AD224<>0,AA224:AD224)))","v":0},{"$f":"IF(OR(H224=\"\",I224=\"\"),0,IF(H224*0.3/12>I224,MIN(H224*0.3/12,I224*1.1)+AP224,I224*(1+(VLOOKUP('1. Checklist & Certification'!$F$9,'HLCP-E Rent Change'!$A$1:$D$59,4,FALSE)))+AP224))","v":0}]
[null,null,null,null,null,null,null,null,null,null,null,null,null,null,null,null,null,null,null,null,null,null,null,null,null,null,0,0,0,0,0,0,0,0,{"$f":"IF(OR(A225=0,B225=\"X\"),0,IF(OR(S225=\"FHDP\",S225=\"RHCP-B\",U225=\"FHDP\",U225=\"RHCP-B\",W225=\"FHDP\",W225=\"RHCP-B\",Y225=\"FHDP\",Y225=\"RHCP-B\"),TRUNC((MIN(I225,K225)*(1+'1. Checklist & Certification'!$K$43)+AP225)),0))","v":0},{"$f":"IF(OR(A225=0,B225=\"X\"),0,IF(OR(S225=\"CHRP-R\",S225=\"SERA\",S225=\"SUHRP\",U225=\"CHRP-R\",U225=\"SERA\",U225=\"SUHRP\",W225=\"CHRP-R\",W225=\"SERA\",W225=\"SUHRP\",Y225=\"CHRP-R\",Y225=\"SERA\",Y225=\"SUHRP\"),TRUNC((MIN(I225,K225)*(1+'1. Checklist & Certification'!$K$49))),0))","v":0},{"$f":"IF(OR(A225=0,B225=\"X\"),0,IF(OR(S225=\"CALDAP\",S225=\"DPRLP\",U225=\"CALDAP\",U225=\"DPRLP\",W225=\"CALDAP\",W225=\"DPRLP\",Y225=\"CALDAP\",Y225=\"DPRLP\"),TRUNC(((MIN(I225,K225))*(1+'1. Checklist & Certification'!$G$4))),0))","v":0},0,0,0,{"$f":"IF(OR(A225=0,B225=\"X\"),0,IF(OR(S225=\"PRP\",S225=\"LPR\",U225=\"PRP\",U225=\"LPR\",W225=\"PRP\",W225=\"LPR\",Y225=\"PRP\",Y225=\"LPR\"),MAX(I225+AP225,MIN(IF(AE225:AN225<>0,AE225:AN225))),MIN(IF(AE225:AN225<>0,AE225:AN225))))","v":0},{"$f":"IF(A225=0,0,IF(AND(OR(S225=\"Mgr\",S225=0),OR(U225=\"Mgr\",U225=0),OR(W225=\"Mgr\",W225=0)),0,IF(LEFT($A225,2)=\"B*\",VLOOKUP($E225,'1. Checklist & Certification'!$D$26:$E$32,2),IF(LEFT($A225,2)=\"C*\",VLOOKUP($E225,'1. Checklist & Certification'!$F$26:$G$32,2),IF(LEFT($A225,2)=\"D*\",VLOOKUP($E225,'1. Checklist & Certification'!$H$26:$I$32,2),IF(LEFT($A225,2)=\"E*\",VLOOKUP($E225,'1. Checklist & Certification'!$J$26:$K$32,2),VLOOKUP($E225,'1. Checklist & Certification'!$A$26:$B$32,2)))))))","v":0},0,0,null,null,null,null,"","",0,0,0,null,{"$f":"IF(A225=\"\",\"\",'1. Checklist & Certification'!$K$1)","v":""},{"$f":"IF(A225=\"\",\"\",'1. Checklist & Certification'!$C$62)","v":""},{"$f":"IF(A225=\"\",\"\",'1. Checklist & Certification'!$C$6)","v":""},{"$f":"IF(A225=\"\",\"\",'1. Checklist & Certification'!$G$5)","v":""},{"$f":"IFERROR(IF(A225=\"\",\"\",\n_xlfn.LET(_xlpm.Contract,'1. Checklist & Certification'!$C$7,\n_xlpm.Yr,TEXT(MOD(_xlfn.TEXTBEFORE(_xlpm.Contract,\"-\"),100),\"00\"),\n_xlpm.Program,_xlfn.TEXTAFTER(_xlfn.TEXTBEFORE(_xlpm.Contract,\"-\",2),\"-\"),\n_xlpm.CleanProgram,_xlfn.XLOOKUP(_xlpm.Program,SpellCheck[Input],SpellCheck[Correction],_xlpm.Program),\n_xlpm.Number,TEXT(_xlfn.TEXTAFTER(_xlpm.Contract,\"-\",2),\"0000\"),\n_xlfn.CONCAT(_xlpm.Yr,\"-\",_xlpm.CleanProgram,\"-\",_xlpm.Number))\n),\"\")","v":""},{"$f":"IFERROR(IF(A225=\"\",\"\",\n_xlfn.LET(_xlpm.Contract,'1. Checklist & Certification'!$C$8,\n_xlpm.Yr,TEXT(MOD(_xlfn.TEXTBEFORE(_xlpm.Contract,\"-\"),100),\"00\"),\n_xlpm.Program,_xlfn.TEXTAFTER(_xlfn.TEXTBEFORE(_xlpm.Contract,\"-\",2),\"-\"),\n_xlpm.CleanProgram,_xlfn.XLOOKUP(_xlpm.Program,SpellCheck[Input],SpellCheck[Correction],_xlpm.Program),\n_xlpm.Number,TEXT(_xlfn.TEXTAFTER(_xlpm.Contract,\"-\",2),\"0000\"),\n_xlfn.CONCAT(_xlpm.Yr,\"-\",_xlpm.CleanProgram,\"-\",_xlpm.Number))\n),\"\")","v":""},{"$f":"IFERROR(IF(A225=\"\",\"\",\n_xlfn.LET(_xlpm.Contract,'1. Checklist & Certification'!$F$7,\n_xlpm.Yr,TEXT(MOD(_xlfn.TEXTBEFORE(_xlpm.Contract,\"-\"),100),\"00\"),\n_xlpm.Program,_xlfn.TEXTAFTER(_xlfn.TEXTBEFORE(_xlpm.Contract,\"-\",2),\"-\"),\n_xlpm.CleanProgram,_xlfn.XLOOKUP(_xlpm.Program,SpellCheck[Input],SpellCheck[Correction],_xlpm.Program),\n_xlpm.Number,TEXT(_xlfn.TEXTAFTER(_xlpm.Contract,\"-\",2),\"0000\"),\n_xlfn.CONCAT(_xlpm.Yr,\"-\",_xlpm.CleanProgram,\"-\",_xlpm.Number))\n),\"\")","v":""},{"$f":"IFERROR(IF(A225=\"\",\"\",\n_xlfn.LET(_xlpm.Contract,'1. Checklist & Certification'!$F$8,\n_xlpm.Yr,TEXT(MOD(_xlfn.TEXTBEFORE(_xlpm.Contract,\"-\"),100),\"00\"),\n_xlpm.Program,_xlfn.TEXTAFTER(_xlfn.TEXTBEFORE(_xlpm.Contract,\"-\",2),\"-\"),\n_xlpm.CleanProgram,_xlfn.XLOOKUP(_xlpm.Program,SpellCheck[Input],SpellCheck[Correction],_xlpm.Program),\n_xlpm.Number,TEXT(_xlfn.TEXTAFTER(_xlpm.Contract,\"-\",2),\"0000\"),\n_xlfn.CONCAT(_xlpm.Yr,\"-\",_xlpm.CleanProgram,\"-\",_xlpm.Number))\n),\"\")","v":""},{"$f":"IF(A225=\"\",\"\",'1. Checklist & Certification'!$B$9)","v":""},{"$f":"IF(A225=\"\",\"\",'1. Checklist & Certification'!$F$9)","v":""},{"$f":"IF(A225=\"\",\"\",'1. Checklist & Certification'!$C$10)","v":""},{"$f":"IF(A225=\"\",\"\",'1. Checklist & Certification'!$C$11)","v":""},{"$f":"IF(A225=\"\",\"\",'1. Checklist & Certification'!$C$12)","v":""},{"$f":"IF(A225=\"\",\"\",'1. Checklist & Certification'!$B$14)","v":""},{"$f":"IF(A225=\"\",\"\",'1. Checklist & Certification'!$E$14)","v":""},{"$f":"IF(B225=\"\",\"\",'1. Checklist & Certification'!$G$14)","v":""},{"$f":"IF(A225=\"\",\"\",'MHP Family Income & Rent Limits'!$B$3)","v":""},{"$f":"IF(A225=\"\",\"\",'MHP Family Income & Rent Limits'!$J$3)","v":""},{"$f":"IF(A225=\"\",\"\",'MHP Family Income & Rent Limits'!$E$4)","v":""},{"$f":"IF(A225=\"\",\"\",'MHP Family Income & Rent Limits'!$C$7)","v":""},{"$f":"IF(A225=\"\",\"\",'MHP Family Income & Rent Limits'!$F$8)","v":""},{"$f":"IF(A225=\"\",\"\",'1. Checklist & Certification'!$G$4)","v":""},{"$f":"IF(A225=\"\",\"\",'1. Checklist & Certification'!$K$39)","v":""},{"$f":"IF(A225=\"\",\"\",'1. Checklist & Certification'!$K$43)","v":""},{"$f":"IF(A225=\"\",\"\",'1. Checklist & Certification'!$K$45)","v":""},{"$f":"IF(A225=\"\",\"\",'1. Checklist & Certification'!$K$49)","v":""},{"$f":"IF(A225=\"\",\"\",'1. Checklist & Certification'!$K$62)","v":""},{"$f":"IF(A225=\"\",\"\",'1. Checklist & Certification'!$E$66)","v":""},{"$f":"IF(A225=\"\",\"\",'1. Checklist & Certification'!$E$67)","v":""},{"$f":"IF(A225=\"\",\"\",'1. Checklist & Certification'!$E$68)","v":""},{"$f":"IF(A225=\"\",\"\",'1. Checklist & Certification'!$G$66)","v":""},{"$f":"IF(A225=\"\",\"\",'1. Checklist & Certification'!$H$66)","v":""},{"$f":"IF(A225=\"\",\"\",'1. Checklist & Certification'!$I$66)","v":""},{"$f":"IF(A225=\"\",\"\",'1. Checklist & Certification'!$I$67)","v":""},{"$f":"IF(A225=\"\",\"\",'1. Checklist & Certification'!$I$68)","v":""},{"$f":"IF(A225=\"\",\"\",'1. Checklist & Certification'!$B$69)","v":""},{"$f":"IF(A225=\"\",\"\",'1. Checklist & Certification'!$C$69)","v":""},{"$f":"IF(A225=\"\",\"\",'1. Checklist & Certification'!$F$69)","v":""},{"$f":"IF(A225=\"\",\"\",'1. Checklist & Certification'!$G$69)","v":""},{"$f":"IF(A225=\"\",\"\",'1. Checklist & Certification'!$J$69)","v":""},{"$f":"IF(A225=\"\",\"\",'1. Checklist & Certification'!$K$69)","v":""},null,null,{"$f":"IF(AND(OR('1. Checklist & Certification'!$M$16=1,'1. Checklist & Certification'!$M$19=2),AO225>0,B225=\"\",I225>0,AQ225<I225,AV225<>\"Sec 8-Project\"),\"X\",IF(AND(OR('1. Checklist & Certification'!$M$20=4,'1. Checklist & Certification'!$M$21=5,'1. Checklist & Certification'!$M$22=7),AO225>0,B225=\"\",I225>0,K225<I225),\"X\",\"\"))","v":""},{"$f":"IF(A225=\"\",\"\",IF(SUMPRODUCT(-- (ISNUMBER(SEARCH({\"*AHSC*\",\"*FMTW*\",\"*FWHG*\",\"*GHI*\",\"*HHC*\",\"*HLCP*\",\"*HOME*\",\"*LPR*\",\"*MHP*\",\"*NHTF*\",\"*NSP*\",\"*PRP*\",\"*TOD*\",\"*VHHP*\"},'1. Checklist & Certification'!$L$7)))),\"MHP\",\"Legacy\"))","v":""},",,",null,null,null,{"$f":"IF('1. Checklist & Certification'!$M$20=4,\"Both\",IF(OR('1. Checklist & Certification'!$M$15>0,S225=\"CHRP-R\",U225=\"CHRP-R\",W225=\"CHRP-R\",Y225=\"CHRP-R\"),\"Under\",\"No\"))","v":"No"},"No","No",{"$f":"_xlfn.IFS(D225=\"\",\"\",D225=1,'MHP Family Income & Rent Limits'!$E$17,D225=2,'MHP Family Income & Rent Limits'!$F$17,D225=3,'MHP Family Income & Rent Limits'!$G$17,D225=4,'MHP Family Income & Rent Limits'!$H$17,D225=5,'MHP Family Income & Rent Limits'!$I$17,D225=6,'MHP Family Income & Rent Limits'!$J$17,D225=7,'MHP Family Income & Rent Limits'!$K$17,D225=8,'MHP Family Income & Rent Limits'!$L$17)","v":""},"",{"$f":"IF(OR(A225=0,B225=\"X\"),0,MIN(IF(AA225:AD225<>0,AA225:AD225)))","v":0},{"$f":"IF(OR(H225=\"\",I225=\"\"),0,IF(H225*0.3/12>I225,MIN(H225*0.3/12,I225*1.1)+AP225,I225*(1+(VLOOKUP('1. Checklist & Certification'!$F$9,'HLCP-E Rent Change'!$A$1:$D$59,4,FALSE)))+AP225))","v":0}]
[null,null,null,null,null,null,null,null,null,null,null,null,null,null,null,null,null,null,null,null,null,null,null,null,null,null,0,0,0,0,0,0,0,0,{"$f":"IF(OR(A226=0,B226=\"X\"),0,IF(OR(S226=\"FHDP\",S226=\"RHCP-B\",U226=\"FHDP\",U226=\"RHCP-B\",W226=\"FHDP\",W226=\"RHCP-B\",Y226=\"FHDP\",Y226=\"RHCP-B\"),TRUNC((MIN(I226,K226)*(1+'1. Checklist & Certification'!$K$43)+AP226)),0))","v":0},{"$f":"IF(OR(A226=0,B226=\"X\"),0,IF(OR(S226=\"CHRP-R\",S226=\"SERA\",S226=\"SUHRP\",U226=\"CHRP-R\",U226=\"SERA\",U226=\"SUHRP\",W226=\"CHRP-R\",W226=\"SERA\",W226=\"SUHRP\",Y226=\"CHRP-R\",Y226=\"SERA\",Y226=\"SUHRP\"),TRUNC((MIN(I226,K226)*(1+'1. Checklist & Certification'!$K$49))),0))","v":0},{"$f":"IF(OR(A226=0,B226=\"X\"),0,IF(OR(S226=\"CALDAP\",S226=\"DPRLP\",U226=\"CALDAP\",U226=\"DPRLP\",W226=\"CALDAP\",W226=\"DPRLP\",Y226=\"CALDAP\",Y226=\"DPRLP\"),TRUNC(((MIN(I226,K226))*(1+'1. Checklist & Certification'!$G$4))),0))","v":0},0,0,0,{"$f":"IF(OR(A226=0,B226=\"X\"),0,IF(OR(S226=\"PRP\",S226=\"LPR\",U226=\"PRP\",U226=\"LPR\",W226=\"PRP\",W226=\"LPR\",Y226=\"PRP\",Y226=\"LPR\"),MAX(I226+AP226,MIN(IF(AE226:AN226<>0,AE226:AN226))),MIN(IF(AE226:AN226<>0,AE226:AN226))))","v":0},{"$f":"IF(A226=0,0,IF(AND(OR(S226=\"Mgr\",S226=0),OR(U226=\"Mgr\",U226=0),OR(W226=\"Mgr\",W226=0)),0,IF(LEFT($A226,2)=\"B*\",VLOOKUP($E226,'1. Checklist & Certification'!$D$26:$E$32,2),IF(LEFT($A226,2)=\"C*\",VLOOKUP($E226,'1. Checklist & Certification'!$F$26:$G$32,2),IF(LEFT($A226,2)=\"D*\",VLOOKUP($E226,'1. Checklist & Certification'!$H$26:$I$32,2),IF(LEFT($A226,2)=\"E*\",VLOOKUP($E226,'1. Checklist & Certification'!$J$26:$K$32,2),VLOOKUP($E226,'1. Checklist & Certification'!$A$26:$B$32,2)))))))","v":0},0,0,null,null,null,null,"","",0,0,0,null,{"$f":"IF(A226=\"\",\"\",'1. Checklist & Certification'!$K$1)","v":""},{"$f":"IF(A226=\"\",\"\",'1. Checklist & Certification'!$C$62)","v":""},{"$f":"IF(A226=\"\",\"\",'1. Checklist & Certification'!$C$6)","v":""},{"$f":"IF(A226=\"\",\"\",'1. Checklist & Certification'!$G$5)","v":""},{"$f":"IFERROR(IF(A226=\"\",\"\",\n_xlfn.LET(_xlpm.Contract,'1. Checklist & Certification'!$C$7,\n_xlpm.Yr,TEXT(MOD(_xlfn.TEXTBEFORE(_xlpm.Contract,\"-\"),100),\"00\"),\n_xlpm.Program,_xlfn.TEXTAFTER(_xlfn.TEXTBEFORE(_xlpm.Contract,\"-\",2),\"-\"),\n_xlpm.CleanProgram,_xlfn.XLOOKUP(_xlpm.Program,SpellCheck[Input],SpellCheck[Correction],_xlpm.Program),\n_xlpm.Number,TEXT(_xlfn.TEXTAFTER(_xlpm.Contract,\"-\",2),\"0000\"),\n_xlfn.CONCAT(_xlpm.Yr,\"-\",_xlpm.CleanProgram,\"-\",_xlpm.Number))\n),\"\")","v":""},{"$f":"IFERROR(IF(A226=\"\",\"\",\n_xlfn.LET(_xlpm.Contract,'1. Checklist & Certification'!$C$8,\n_xlpm.Yr,TEXT(MOD(_xlfn.TEXTBEFORE(_xlpm.Contract,\"-\"),100),\"00\"),\n_xlpm.Program,_xlfn.TEXTAFTER(_xlfn.TEXTBEFORE(_xlpm.Contract,\"-\",2),\"-\"),\n_xlpm.CleanProgram,_xlfn.XLOOKUP(_xlpm.Program,SpellCheck[Input],SpellCheck[Correction],_xlpm.Program),\n_xlpm.Number,TEXT(_xlfn.TEXTAFTER(_xlpm.Contract,\"-\",2),\"0000\"),\n_xlfn.CONCAT(_xlpm.Yr,\"-\",_xlpm.CleanProgram,\"-\",_xlpm.Number))\n),\"\")","v":""},{"$f":"IFERROR(IF(A226=\"\",\"\",\n_xlfn.LET(_xlpm.Contract,'1. Checklist & Certification'!$F$7,\n_xlpm.Yr,TEXT(MOD(_xlfn.TEXTBEFORE(_xlpm.Contract,\"-\"),100),\"00\"),\n_xlpm.Program,_xlfn.TEXTAFTER(_xlfn.TEXTBEFORE(_xlpm.Contract,\"-\",2),\"-\"),\n_xlpm.CleanProgram,_xlfn.XLOOKUP(_xlpm.Program,SpellCheck[Input],SpellCheck[Correction],_xlpm.Program),\n_xlpm.Number,TEXT(_xlfn.TEXTAFTER(_xlpm.Contract,\"-\",2),\"0000\"),\n_xlfn.CONCAT(_xlpm.Yr,\"-\",_xlpm.CleanProgram,\"-\",_xlpm.Number))\n),\"\")","v":""},{"$f":"IFERROR(IF(A226=\"\",\"\",\n_xlfn.LET(_xlpm.Contract,'1. Checklist & Certification'!$F$8,\n_xlpm.Yr,TEXT(MOD(_xlfn.TEXTBEFORE(_xlpm.Contract,\"-\"),100),\"00\"),\n_xlpm.Program,_xlfn.TEXTAFTER(_xlfn.TEXTBEFORE(_xlpm.Contract,\"-\",2),\"-\"),\n_xlpm.CleanProgram,_xlfn.XLOOKUP(_xlpm.Program,SpellCheck[Input],SpellCheck[Correction],_xlpm.Program),\n_xlpm.Number,TEXT(_xlfn.TEXTAFTER(_xlpm.Contract,\"-\",2),\"0000\"),\n_xlfn.CONCAT(_xlpm.Yr,\"-\",_xlpm.CleanProgram,\"-\",_xlpm.Number))\n),\"\")","v":""},{"$f":"IF(A226=\"\",\"\",'1. Checklist & Certification'!$B$9)","v":""},{"$f":"IF(A226=\"\",\"\",'1. Checklist & Certification'!$F$9)","v":""},{"$f":"IF(A226=\"\",\"\",'1. Checklist & Certification'!$C$10)","v":""},{"$f":"IF(A226=\"\",\"\",'1. Checklist & Certification'!$C$11)","v":""},{"$f":"IF(A226=\"\",\"\",'1. Checklist & Certification'!$C$12)","v":""},{"$f":"IF(A226=\"\",\"\",'1. Checklist & Certification'!$B$14)","v":""},{"$f":"IF(A226=\"\",\"\",'1. Checklist & Certification'!$E$14)","v":""},{"$f":"IF(B226=\"\",\"\",'1. Checklist & Certification'!$G$14)","v":""},{"$f":"IF(A226=\"\",\"\",'MHP Family Income & Rent Limits'!$B$3)","v":""},{"$f":"IF(A226=\"\",\"\",'MHP Family Income & Rent Limits'!$J$3)","v":""},{"$f":"IF(A226=\"\",\"\",'MHP Family Income & Rent Limits'!$E$4)","v":""},{"$f":"IF(A226=\"\",\"\",'MHP Family Income & Rent Limits'!$C$7)","v":""},{"$f":"IF(A226=\"\",\"\",'MHP Family Income & Rent Limits'!$F$8)","v":""},{"$f":"IF(A226=\"\",\"\",'1. Checklist & Certification'!$G$4)","v":""},{"$f":"IF(A226=\"\",\"\",'1. Checklist & Certification'!$K$39)","v":""},{"$f":"IF(A226=\"\",\"\",'1. Checklist & Certification'!$K$43)","v":""},{"$f":"IF(A226=\"\",\"\",'1. Checklist & Certification'!$K$45)","v":""},{"$f":"IF(A226=\"\",\"\",'1. Checklist & Certification'!$K$49)","v":""},{"$f":"IF(A226=\"\",\"\",'1. Checklist & Certification'!$K$62)","v":""},{"$f":"IF(A226=\"\",\"\",'1. Checklist & Certification'!$E$66)","v":""},{"$f":"IF(A226=\"\",\"\",'1. Checklist & Certification'!$E$67)","v":""},{"$f":"IF(A226=\"\",\"\",'1. Checklist & Certification'!$E$68)","v":""},{"$f":"IF(A226=\"\",\"\",'1. Checklist & Certification'!$G$66)","v":""},{"$f":"IF(A226=\"\",\"\",'1. Checklist & Certification'!$H$66)","v":""},{"$f":"IF(A226=\"\",\"\",'1. Checklist & Certification'!$I$66)","v":""},{"$f":"IF(A226=\"\",\"\",'1. Checklist & Certification'!$I$67)","v":""},{"$f":"IF(A226=\"\",\"\",'1. Checklist & Certification'!$I$68)","v":""},{"$f":"IF(A226=\"\",\"\",'1. Checklist & Certification'!$B$69)","v":""},{"$f":"IF(A226=\"\",\"\",'1. Checklist & Certification'!$C$69)","v":""},{"$f":"IF(A226=\"\",\"\",'1. Checklist & Certification'!$F$69)","v":""},{"$f":"IF(A226=\"\",\"\",'1. Checklist & Certification'!$G$69)","v":""},{"$f":"IF(A226=\"\",\"\",'1. Checklist & Certification'!$J$69)","v":""},{"$f":"IF(A226=\"\",\"\",'1. Checklist & Certification'!$K$69)","v":""},null,null,{"$f":"IF(AND(OR('1. Checklist & Certification'!$M$16=1,'1. Checklist & Certification'!$M$19=2),AO226>0,B226=\"\",I226>0,AQ226<I226,AV226<>\"Sec 8-Project\"),\"X\",IF(AND(OR('1. Checklist & Certification'!$M$20=4,'1. Checklist & Certification'!$M$21=5,'1. Checklist & Certification'!$M$22=7),AO226>0,B226=\"\",I226>0,K226<I226),\"X\",\"\"))","v":""},{"$f":"IF(A226=\"\",\"\",IF(SUMPRODUCT(-- (ISNUMBER(SEARCH({\"*AHSC*\",\"*FMTW*\",\"*FWHG*\",\"*GHI*\",\"*HHC*\",\"*HLCP*\",\"*HOME*\",\"*LPR*\",\"*MHP*\",\"*NHTF*\",\"*NSP*\",\"*PRP*\",\"*TOD*\",\"*VHHP*\"},'1. Checklist & Certification'!$L$7)))),\"MHP\",\"Legacy\"))","v":""},",,",null,null,null,{"$f":"IF('1. Checklist & Certification'!$M$20=4,\"Both\",IF(OR('1. Checklist & Certification'!$M$15>0,S226=\"CHRP-R\",U226=\"CHRP-R\",W226=\"CHRP-R\",Y226=\"CHRP-R\"),\"Under\",\"No\"))","v":"No"},"No","No",{"$f":"_xlfn.IFS(D226=\"\",\"\",D226=1,'MHP Family Income & Rent Limits'!$E$17,D226=2,'MHP Family Income & Rent Limits'!$F$17,D226=3,'MHP Family Income & Rent Limits'!$G$17,D226=4,'MHP Family Income & Rent Limits'!$H$17,D226=5,'MHP Family Income & Rent Limits'!$I$17,D226=6,'MHP Family Income & Rent Limits'!$J$17,D226=7,'MHP Family Income & Rent Limits'!$K$17,D226=8,'MHP Family Income & Rent Limits'!$L$17)","v":""},"",{"$f":"IF(OR(A226=0,B226=\"X\"),0,MIN(IF(AA226:AD226<>0,AA226:AD226)))","v":0},{"$f":"IF(OR(H226=\"\",I226=\"\"),0,IF(H226*0.3/12>I226,MIN(H226*0.3/12,I226*1.1)+AP226,I226*(1+(VLOOKUP('1. Checklist & Certification'!$F$9,'HLCP-E Rent Change'!$A$1:$D$59,4,FALSE)))+AP226))","v":0}]
[null,null,null,null,null,null,null,null,null,null,null,null,null,null,null,null,null,null,null,null,null,null,null,null,null,null,0,0,0,0,0,0,0,0,{"$f":"IF(OR(A227=0,B227=\"X\"),0,IF(OR(S227=\"FHDP\",S227=\"RHCP-B\",U227=\"FHDP\",U227=\"RHCP-B\",W227=\"FHDP\",W227=\"RHCP-B\",Y227=\"FHDP\",Y227=\"RHCP-B\"),TRUNC((MIN(I227,K227)*(1+'1. Checklist & Certification'!$K$43)+AP227)),0))","v":0},{"$f":"IF(OR(A227=0,B227=\"X\"),0,IF(OR(S227=\"CHRP-R\",S227=\"SERA\",S227=\"SUHRP\",U227=\"CHRP-R\",U227=\"SERA\",U227=\"SUHRP\",W227=\"CHRP-R\",W227=\"SERA\",W227=\"SUHRP\",Y227=\"CHRP-R\",Y227=\"SERA\",Y227=\"SUHRP\"),TRUNC((MIN(I227,K227)*(1+'1. Checklist & Certification'!$K$49))),0))","v":0},{"$f":"IF(OR(A227=0,B227=\"X\"),0,IF(OR(S227=\"CALDAP\",S227=\"DPRLP\",U227=\"CALDAP\",U227=\"DPRLP\",W227=\"CALDAP\",W227=\"DPRLP\",Y227=\"CALDAP\",Y227=\"DPRLP\"),TRUNC(((MIN(I227,K227))*(1+'1. Checklist & Certification'!$G$4))),0))","v":0},0,0,0,{"$f":"IF(OR(A227=0,B227=\"X\"),0,IF(OR(S227=\"PRP\",S227=\"LPR\",U227=\"PRP\",U227=\"LPR\",W227=\"PRP\",W227=\"LPR\",Y227=\"PRP\",Y227=\"LPR\"),MAX(I227+AP227,MIN(IF(AE227:AN227<>0,AE227:AN227))),MIN(IF(AE227:AN227<>0,AE227:AN227))))","v":0},{"$f":"IF(A227=0,0,IF(AND(OR(S227=\"Mgr\",S227=0),OR(U227=\"Mgr\",U227=0),OR(W227=\"Mgr\",W227=0)),0,IF(LEFT($A227,2)=\"B*\",VLOOKUP($E227,'1. Checklist & Certification'!$D$26:$E$32,2),IF(LEFT($A227,2)=\"C*\",VLOOKUP($E227,'1. Checklist & Certification'!$F$26:$G$32,2),IF(LEFT($A227,2)=\"D*\",VLOOKUP($E227,'1. Checklist & Certification'!$H$26:$I$32,2),IF(LEFT($A227,2)=\"E*\",VLOOKUP($E227,'1. Checklist & Certification'!$J$26:$K$32,2),VLOOKUP($E227,'1. Checklist & Certification'!$A$26:$B$32,2)))))))","v":0},0,0,null,null,null,null,"","",0,0,0,null,{"$f":"IF(A227=\"\",\"\",'1. Checklist & Certification'!$K$1)","v":""},{"$f":"IF(A227=\"\",\"\",'1. Checklist & Certification'!$C$62)","v":""},{"$f":"IF(A227=\"\",\"\",'1. Checklist & Certification'!$C$6)","v":""},{"$f":"IF(A227=\"\",\"\",'1. Checklist & Certification'!$G$5)","v":""},{"$f":"IFERROR(IF(A227=\"\",\"\",\n_xlfn.LET(_xlpm.Contract,'1. Checklist & Certification'!$C$7,\n_xlpm.Yr,TEXT(MOD(_xlfn.TEXTBEFORE(_xlpm.Contract,\"-\"),100),\"00\"),\n_xlpm.Program,_xlfn.TEXTAFTER(_xlfn.TEXTBEFORE(_xlpm.Contract,\"-\",2),\"-\"),\n_xlpm.CleanProgram,_xlfn.XLOOKUP(_xlpm.Program,SpellCheck[Input],SpellCheck[Correction],_xlpm.Program),\n_xlpm.Number,TEXT(_xlfn.TEXTAFTER(_xlpm.Contract,\"-\",2),\"0000\"),\n_xlfn.CONCAT(_xlpm.Yr,\"-\",_xlpm.CleanProgram,\"-\",_xlpm.Number))\n),\"\")","v":""},{"$f":"IFERROR(IF(A227=\"\",\"\",\n_xlfn.LET(_xlpm.Contract,'1. Checklist & Certification'!$C$8,\n_xlpm.Yr,TEXT(MOD(_xlfn.TEXTBEFORE(_xlpm.Contract,\"-\"),100),\"00\"),\n_xlpm.Program,_xlfn.TEXTAFTER(_xlfn.TEXTBEFORE(_xlpm.Contract,\"-\",2),\"-\"),\n_xlpm.CleanProgram,_xlfn.XLOOKUP(_xlpm.Program,SpellCheck[Input],SpellCheck[Correction],_xlpm.Program),\n_xlpm.Number,TEXT(_xlfn.TEXTAFTER(_xlpm.Contract,\"-\",2),\"0000\"),\n_xlfn.CONCAT(_xlpm.Yr,\"-\",_xlpm.CleanProgram,\"-\",_xlpm.Number))\n),\"\")","v":""},{"$f":"IFERROR(IF(A227=\"\",\"\",\n_xlfn.LET(_xlpm.Contract,'1. Checklist & Certification'!$F$7,\n_xlpm.Yr,TEXT(MOD(_xlfn.TEXTBEFORE(_xlpm.Contract,\"-\"),100),\"00\"),\n_xlpm.Program,_xlfn.TEXTAFTER(_xlfn.TEXTBEFORE(_xlpm.Contract,\"-\",2),\"-\"),\n_xlpm.CleanProgram,_xlfn.XLOOKUP(_xlpm.Program,SpellCheck[Input],SpellCheck[Correction],_xlpm.Program),\n_xlpm.Number,TEXT(_xlfn.TEXTAFTER(_xlpm.Contract,\"-\",2),\"0000\"),\n_xlfn.CONCAT(_xlpm.Yr,\"-\",_xlpm.CleanProgram,\"-\",_xlpm.Number))\n),\"\")","v":""},{"$f":"IFERROR(IF(A227=\"\",\"\",\n_xlfn.LET(_xlpm.Contract,'1. Checklist & Certification'!$F$8,\n_xlpm.Yr,TEXT(MOD(_xlfn.TEXTBEFORE(_xlpm.Contract,\"-\"),100),\"00\"),\n_xlpm.Program,_xlfn.TEXTAFTER(_xlfn.TEXTBEFORE(_xlpm.Contract,\"-\",2),\"-\"),\n_xlpm.CleanProgram,_xlfn.XLOOKUP(_xlpm.Program,SpellCheck[Input],SpellCheck[Correction],_xlpm.Program),\n_xlpm.Number,TEXT(_xlfn.TEXTAFTER(_xlpm.Contract,\"-\",2),\"0000\"),\n_xlfn.CONCAT(_xlpm.Yr,\"-\",_xlpm.CleanProgram,\"-\",_xlpm.Number))\n),\"\")","v":""},{"$f":"IF(A227=\"\",\"\",'1. Checklist & Certification'!$B$9)","v":""},{"$f":"IF(A227=\"\",\"\",'1. Checklist & Certification'!$F$9)","v":""},{"$f":"IF(A227=\"\",\"\",'1. Checklist & Certification'!$C$10)","v":""},{"$f":"IF(A227=\"\",\"\",'1. Checklist & Certification'!$C$11)","v":""},{"$f":"IF(A227=\"\",\"\",'1. Checklist & Certification'!$C$12)","v":""},{"$f":"IF(A227=\"\",\"\",'1. Checklist & Certification'!$B$14)","v":""},{"$f":"IF(A227=\"\",\"\",'1. Checklist & Certification'!$E$14)","v":""},{"$f":"IF(B227=\"\",\"\",'1. Checklist & Certification'!$G$14)","v":""},{"$f":"IF(A227=\"\",\"\",'MHP Family Income & Rent Limits'!$B$3)","v":""},{"$f":"IF(A227=\"\",\"\",'MHP Family Income & Rent Limits'!$J$3)","v":""},{"$f":"IF(A227=\"\",\"\",'MHP Family Income & Rent Limits'!$E$4)","v":""},{"$f":"IF(A227=\"\",\"\",'MHP Family Income & Rent Limits'!$C$7)","v":""},{"$f":"IF(A227=\"\",\"\",'MHP Family Income & Rent Limits'!$F$8)","v":""},{"$f":"IF(A227=\"\",\"\",'1. Checklist & Certification'!$G$4)","v":""},{"$f":"IF(A227=\"\",\"\",'1. Checklist & Certification'!$K$39)","v":""},{"$f":"IF(A227=\"\",\"\",'1. Checklist & Certification'!$K$43)","v":""},{"$f":"IF(A227=\"\",\"\",'1. Checklist & Certification'!$K$45)","v":""},{"$f":"IF(A227=\"\",\"\",'1. Checklist & Certification'!$K$49)","v":""},{"$f":"IF(A227=\"\",\"\",'1. Checklist & Certification'!$K$62)","v":""},{"$f":"IF(A227=\"\",\"\",'1. Checklist & Certification'!$E$66)","v":""},{"$f":"IF(A227=\"\",\"\",'1. Checklist & Certification'!$E$67)","v":""},{"$f":"IF(A227=\"\",\"\",'1. Checklist & Certification'!$E$68)","v":""},{"$f":"IF(A227=\"\",\"\",'1. Checklist & Certification'!$G$66)","v":""},{"$f":"IF(A227=\"\",\"\",'1. Checklist & Certification'!$H$66)","v":""},{"$f":"IF(A227=\"\",\"\",'1. Checklist & Certification'!$I$66)","v":""},{"$f":"IF(A227=\"\",\"\",'1. Checklist & Certification'!$I$67)","v":""},{"$f":"IF(A227=\"\",\"\",'1. Checklist & Certification'!$I$68)","v":""},{"$f":"IF(A227=\"\",\"\",'1. Checklist & Certification'!$B$69)","v":""},{"$f":"IF(A227=\"\",\"\",'1. Checklist & Certification'!$C$69)","v":""},{"$f":"IF(A227=\"\",\"\",'1. Checklist & Certification'!$F$69)","v":""},{"$f":"IF(A227=\"\",\"\",'1. Checklist & Certification'!$G$69)","v":""},{"$f":"IF(A227=\"\",\"\",'1. Checklist & Certification'!$J$69)","v":""},{"$f":"IF(A227=\"\",\"\",'1. Checklist & Certification'!$K$69)","v":""},null,null,{"$f":"IF(AND(OR('1. Checklist & Certification'!$M$16=1,'1. Checklist & Certification'!$M$19=2),AO227>0,B227=\"\",I227>0,AQ227<I227,AV227<>\"Sec 8-Project\"),\"X\",IF(AND(OR('1. Checklist & Certification'!$M$20=4,'1. Checklist & Certification'!$M$21=5,'1. Checklist & Certification'!$M$22=7),AO227>0,B227=\"\",I227>0,K227<I227),\"X\",\"\"))","v":""},{"$f":"IF(A227=\"\",\"\",IF(SUMPRODUCT(-- (ISNUMBER(SEARCH({\"*AHSC*\",\"*FMTW*\",\"*FWHG*\",\"*GHI*\",\"*HHC*\",\"*HLCP*\",\"*HOME*\",\"*LPR*\",\"*MHP*\",\"*NHTF*\",\"*NSP*\",\"*PRP*\",\"*TOD*\",\"*VHHP*\"},'1. Checklist & Certification'!$L$7)))),\"MHP\",\"Legacy\"))","v":""},",,",null,null,null,{"$f":"IF('1. Checklist & Certification'!$M$20=4,\"Both\",IF(OR('1. Checklist & Certification'!$M$15>0,S227=\"CHRP-R\",U227=\"CHRP-R\",W227=\"CHRP-R\",Y227=\"CHRP-R\"),\"Under\",\"No\"))","v":"No"},"No","No",{"$f":"_xlfn.IFS(D227=\"\",\"\",D227=1,'MHP Family Income & Rent Limits'!$E$17,D227=2,'MHP Family Income & Rent Limits'!$F$17,D227=3,'MHP Family Income & Rent Limits'!$G$17,D227=4,'MHP Family Income & Rent Limits'!$H$17,D227=5,'MHP Family Income & Rent Limits'!$I$17,D227=6,'MHP Family Income & Rent Limits'!$J$17,D227=7,'MHP Family Income & Rent Limits'!$K$17,D227=8,'MHP Family Income & Rent Limits'!$L$17)","v":""},"",{"$f":"IF(OR(A227=0,B227=\"X\"),0,MIN(IF(AA227:AD227<>0,AA227:AD227)))","v":0},{"$f":"IF(OR(H227=\"\",I227=\"\"),0,IF(H227*0.3/12>I227,MIN(H227*0.3/12,I227*1.1)+AP227,I227*(1+(VLOOKUP('1. Checklist & Certification'!$F$9,'HLCP-E Rent Change'!$A$1:$D$59,4,FALSE)))+AP227))","v":0}]
[null,null,null,null,null,null,null,null,null,null,null,null,null,null,null,null,null,null,null,null,null,null,null,null,null,null,0,0,0,0,0,0,0,0,{"$f":"IF(OR(A228=0,B228=\"X\"),0,IF(OR(S228=\"FHDP\",S228=\"RHCP-B\",U228=\"FHDP\",U228=\"RHCP-B\",W228=\"FHDP\",W228=\"RHCP-B\",Y228=\"FHDP\",Y228=\"RHCP-B\"),TRUNC((MIN(I228,K228)*(1+'1. Checklist & Certification'!$K$43)+AP228)),0))","v":0},{"$f":"IF(OR(A228=0,B228=\"X\"),0,IF(OR(S228=\"CHRP-R\",S228=\"SERA\",S228=\"SUHRP\",U228=\"CHRP-R\",U228=\"SERA\",U228=\"SUHRP\",W228=\"CHRP-R\",W228=\"SERA\",W228=\"SUHRP\",Y228=\"CHRP-R\",Y228=\"SERA\",Y228=\"SUHRP\"),TRUNC((MIN(I228,K228)*(1+'1. Checklist & Certification'!$K$49))),0))","v":0},{"$f":"IF(OR(A228=0,B228=\"X\"),0,IF(OR(S228=\"CALDAP\",S228=\"DPRLP\",U228=\"CALDAP\",U228=\"DPRLP\",W228=\"CALDAP\",W228=\"DPRLP\",Y228=\"CALDAP\",Y228=\"DPRLP\"),TRUNC(((MIN(I228,K228))*(1+'1. Checklist & Certification'!$G$4))),0))","v":0},0,0,0,{"$f":"IF(OR(A228=0,B228=\"X\"),0,IF(OR(S228=\"PRP\",S228=\"LPR\",U228=\"PRP\",U228=\"LPR\",W228=\"PRP\",W228=\"LPR\",Y228=\"PRP\",Y228=\"LPR\"),MAX(I228+AP228,MIN(IF(AE228:AN228<>0,AE228:AN228))),MIN(IF(AE228:AN228<>0,AE228:AN228))))","v":0},{"$f":"IF(A228=0,0,IF(AND(OR(S228=\"Mgr\",S228=0),OR(U228=\"Mgr\",U228=0),OR(W228=\"Mgr\",W228=0)),0,IF(LEFT($A228,2)=\"B*\",VLOOKUP($E228,'1. Checklist & Certification'!$D$26:$E$32,2),IF(LEFT($A228,2)=\"C*\",VLOOKUP($E228,'1. Checklist & Certification'!$F$26:$G$32,2),IF(LEFT($A228,2)=\"D*\",VLOOKUP($E228,'1. Checklist & Certification'!$H$26:$I$32,2),IF(LEFT($A228,2)=\"E*\",VLOOKUP($E228,'1. Checklist & Certification'!$J$26:$K$32,2),VLOOKUP($E228,'1. Checklist & Certification'!$A$26:$B$32,2)))))))","v":0},0,0,null,null,null,null,"","",0,0,0,null,{"$f":"IF(A228=\"\",\"\",'1. Checklist & Certification'!$K$1)","v":""},{"$f":"IF(A228=\"\",\"\",'1. Checklist & Certification'!$C$62)","v":""},{"$f":"IF(A228=\"\",\"\",'1. Checklist & Certification'!$C$6)","v":""},{"$f":"IF(A228=\"\",\"\",'1. Checklist & Certification'!$G$5)","v":""},{"$f":"IFERROR(IF(A228=\"\",\"\",\n_xlfn.LET(_xlpm.Contract,'1. Checklist & Certification'!$C$7,\n_xlpm.Yr,TEXT(MOD(_xlfn.TEXTBEFORE(_xlpm.Contract,\"-\"),100),\"00\"),\n_xlpm.Program,_xlfn.TEXTAFTER(_xlfn.TEXTBEFORE(_xlpm.Contract,\"-\",2),\"-\"),\n_xlpm.CleanProgram,_xlfn.XLOOKUP(_xlpm.Program,SpellCheck[Input],SpellCheck[Correction],_xlpm.Program),\n_xlpm.Number,TEXT(_xlfn.TEXTAFTER(_xlpm.Contract,\"-\",2),\"0000\"),\n_xlfn.CONCAT(_xlpm.Yr,\"-\",_xlpm.CleanProgram,\"-\",_xlpm.Number))\n),\"\")","v":""},{"$f":"IFERROR(IF(A228=\"\",\"\",\n_xlfn.LET(_xlpm.Contract,'1. Checklist & Certification'!$C$8,\n_xlpm.Yr,TEXT(MOD(_xlfn.TEXTBEFORE(_xlpm.Contract,\"-\"),100),\"00\"),\n_xlpm.Program,_xlfn.TEXTAFTER(_xlfn.TEXTBEFORE(_xlpm.Contract,\"-\",2),\"-\"),\n_xlpm.CleanProgram,_xlfn.XLOOKUP(_xlpm.Program,SpellCheck[Input],SpellCheck[Correction],_xlpm.Program),\n_xlpm.Number,TEXT(_xlfn.TEXTAFTER(_xlpm.Contract,\"-\",2),\"0000\"),\n_xlfn.CONCAT(_xlpm.Yr,\"-\",_xlpm.CleanProgram,\"-\",_xlpm.Number))\n),\"\")","v":""},{"$f":"IFERROR(IF(A228=\"\",\"\",\n_xlfn.LET(_xlpm.Contract,'1. Checklist & Certification'!$F$7,\n_xlpm.Yr,TEXT(MOD(_xlfn.TEXTBEFORE(_xlpm.Contract,\"-\"),100),\"00\"),\n_xlpm.Program,_xlfn.TEXTAFTER(_xlfn.TEXTBEFORE(_xlpm.Contract,\"-\",2),\"-\"),\n_xlpm.CleanProgram,_xlfn.XLOOKUP(_xlpm.Program,SpellCheck[Input],SpellCheck[Correction],_xlpm.Program),\n_xlpm.Number,TEXT(_xlfn.TEXTAFTER(_xlpm.Contract,\"-\",2),\"0000\"),\n_xlfn.CONCAT(_xlpm.Yr,\"-\",_xlpm.CleanProgram,\"-\",_xlpm.Number))\n),\"\")","v":""},{"$f":"IFERROR(IF(A228=\"\",\"\",\n_xlfn.LET(_xlpm.Contract,'1. Checklist & Certification'!$F$8,\n_xlpm.Yr,TEXT(MOD(_xlfn.TEXTBEFORE(_xlpm.Contract,\"-\"),100),\"00\"),\n_xlpm.Program,_xlfn.TEXTAFTER(_xlfn.TEXTBEFORE(_xlpm.Contract,\"-\",2),\"-\"),\n_xlpm.CleanProgram,_xlfn.XLOOKUP(_xlpm.Program,SpellCheck[Input],SpellCheck[Correction],_xlpm.Program),\n_xlpm.Number,TEXT(_xlfn.TEXTAFTER(_xlpm.Contract,\"-\",2),\"0000\"),\n_xlfn.CONCAT(_xlpm.Yr,\"-\",_xlpm.CleanProgram,\"-\",_xlpm.Number))\n),\"\")","v":""},{"$f":"IF(A228=\"\",\"\",'1. Checklist & Certification'!$B$9)","v":""},{"$f":"IF(A228=\"\",\"\",'1. Checklist & Certification'!$F$9)","v":""},{"$f":"IF(A228=\"\",\"\",'1. Checklist & Certification'!$C$10)","v":""},{"$f":"IF(A228=\"\",\"\",'1. Checklist & Certification'!$C$11)","v":""},{"$f":"IF(A228=\"\",\"\",'1. Checklist & Certification'!$C$12)","v":""},{"$f":"IF(A228=\"\",\"\",'1. Checklist & Certification'!$B$14)","v":""},{"$f":"IF(A228=\"\",\"\",'1. Checklist & Certification'!$E$14)","v":""},{"$f":"IF(B228=\"\",\"\",'1. Checklist & Certification'!$G$14)","v":""},{"$f":"IF(A228=\"\",\"\",'MHP Family Income & Rent Limits'!$B$3)","v":""},{"$f":"IF(A228=\"\",\"\",'MHP Family Income & Rent Limits'!$J$3)","v":""},{"$f":"IF(A228=\"\",\"\",'MHP Family Income & Rent Limits'!$E$4)","v":""},{"$f":"IF(A228=\"\",\"\",'MHP Family Income & Rent Limits'!$C$7)","v":""},{"$f":"IF(A228=\"\",\"\",'MHP Family Income & Rent Limits'!$F$8)","v":""},{"$f":"IF(A228=\"\",\"\",'1. Checklist & Certification'!$G$4)","v":""},{"$f":"IF(A228=\"\",\"\",'1. Checklist & Certification'!$K$39)","v":""},{"$f":"IF(A228=\"\",\"\",'1. Checklist & Certification'!$K$43)","v":""},{"$f":"IF(A228=\"\",\"\",'1. Checklist & Certification'!$K$45)","v":""},{"$f":"IF(A228=\"\",\"\",'1. Checklist & Certification'!$K$49)","v":""},{"$f":"IF(A228=\"\",\"\",'1. Checklist & Certification'!$K$62)","v":""},{"$f":"IF(A228=\"\",\"\",'1. Checklist & Certification'!$E$66)","v":""},{"$f":"IF(A228=\"\",\"\",'1. Checklist & Certification'!$E$67)","v":""},{"$f":"IF(A228=\"\",\"\",'1. Checklist & Certification'!$E$68)","v":""},{"$f":"IF(A228=\"\",\"\",'1. Checklist & Certification'!$G$66)","v":""},{"$f":"IF(A228=\"\",\"\",'1. Checklist & Certification'!$H$66)","v":""},{"$f":"IF(A228=\"\",\"\",'1. Checklist & Certification'!$I$66)","v":""},{"$f":"IF(A228=\"\",\"\",'1. Checklist & Certification'!$I$67)","v":""},{"$f":"IF(A228=\"\",\"\",'1. Checklist & Certification'!$I$68)","v":""},{"$f":"IF(A228=\"\",\"\",'1. Checklist & Certification'!$B$69)","v":""},{"$f":"IF(A228=\"\",\"\",'1. Checklist & Certification'!$C$69)","v":""},{"$f":"IF(A228=\"\",\"\",'1. Checklist & Certification'!$F$69)","v":""},{"$f":"IF(A228=\"\",\"\",'1. Checklist & Certification'!$G$69)","v":""},{"$f":"IF(A228=\"\",\"\",'1. Checklist & Certification'!$J$69)","v":""},{"$f":"IF(A228=\"\",\"\",'1. Checklist & Certification'!$K$69)","v":""},null,null,{"$f":"IF(AND(OR('1. Checklist & Certification'!$M$16=1,'1. Checklist & Certification'!$M$19=2),AO228>0,B228=\"\",I228>0,AQ228<I228,AV228<>\"Sec 8-Project\"),\"X\",IF(AND(OR('1. Checklist & Certification'!$M$20=4,'1. Checklist & Certification'!$M$21=5,'1. Checklist & Certification'!$M$22=7),AO228>0,B228=\"\",I228>0,K228<I228),\"X\",\"\"))","v":""},{"$f":"IF(A228=\"\",\"\",IF(SUMPRODUCT(-- (ISNUMBER(SEARCH({\"*AHSC*\",\"*FMTW*\",\"*FWHG*\",\"*GHI*\",\"*HHC*\",\"*HLCP*\",\"*HOME*\",\"*LPR*\",\"*MHP*\",\"*NHTF*\",\"*NSP*\",\"*PRP*\",\"*TOD*\",\"*VHHP*\"},'1. Checklist & Certification'!$L$7)))),\"MHP\",\"Legacy\"))","v":""},",,",null,null,null,{"$f":"IF('1. Checklist & Certification'!$M$20=4,\"Both\",IF(OR('1. Checklist & Certification'!$M$15>0,S228=\"CHRP-R\",U228=\"CHRP-R\",W228=\"CHRP-R\",Y228=\"CHRP-R\"),\"Under\",\"No\"))","v":"No"},"No","No",{"$f":"_xlfn.IFS(D228=\"\",\"\",D228=1,'MHP Family Income & Rent Limits'!$E$17,D228=2,'MHP Family Income & Rent Limits'!$F$17,D228=3,'MHP Family Income & Rent Limits'!$G$17,D228=4,'MHP Family Income & Rent Limits'!$H$17,D228=5,'MHP Family Income & Rent Limits'!$I$17,D228=6,'MHP Family Income & Rent Limits'!$J$17,D228=7,'MHP Family Income & Rent Limits'!$K$17,D228=8,'MHP Family Income & Rent Limits'!$L$17)","v":""},"",{"$f":"IF(OR(A228=0,B228=\"X\"),0,MIN(IF(AA228:AD228<>0,AA228:AD228)))","v":0},{"$f":"IF(OR(H228=\"\",I228=\"\"),0,IF(H228*0.3/12>I228,MIN(H228*0.3/12,I228*1.1)+AP228,I228*(1+(VLOOKUP('1. Checklist & Certification'!$F$9,'HLCP-E Rent Change'!$A$1:$D$59,4,FALSE)))+AP228))","v":0}]
[null,null,null,null,null,null,null,null,null,null,null,null,null,null,null,null,null,null,null,null,null,null,null,null,null,null,0,0,0,0,0,0,0,0,{"$f":"IF(OR(A229=0,B229=\"X\"),0,IF(OR(S229=\"FHDP\",S229=\"RHCP-B\",U229=\"FHDP\",U229=\"RHCP-B\",W229=\"FHDP\",W229=\"RHCP-B\",Y229=\"FHDP\",Y229=\"RHCP-B\"),TRUNC((MIN(I229,K229)*(1+'1. Checklist & Certification'!$K$43)+AP229)),0))","v":0},{"$f":"IF(OR(A229=0,B229=\"X\"),0,IF(OR(S229=\"CHRP-R\",S229=\"SERA\",S229=\"SUHRP\",U229=\"CHRP-R\",U229=\"SERA\",U229=\"SUHRP\",W229=\"CHRP-R\",W229=\"SERA\",W229=\"SUHRP\",Y229=\"CHRP-R\",Y229=\"SERA\",Y229=\"SUHRP\"),TRUNC((MIN(I229,K229)*(1+'1. Checklist & Certification'!$K$49))),0))","v":0},{"$f":"IF(OR(A229=0,B229=\"X\"),0,IF(OR(S229=\"CALDAP\",S229=\"DPRLP\",U229=\"CALDAP\",U229=\"DPRLP\",W229=\"CALDAP\",W229=\"DPRLP\",Y229=\"CALDAP\",Y229=\"DPRLP\"),TRUNC(((MIN(I229,K229))*(1+'1. Checklist & Certification'!$G$4))),0))","v":0},0,0,0,{"$f":"IF(OR(A229=0,B229=\"X\"),0,IF(OR(S229=\"PRP\",S229=\"LPR\",U229=\"PRP\",U229=\"LPR\",W229=\"PRP\",W229=\"LPR\",Y229=\"PRP\",Y229=\"LPR\"),MAX(I229+AP229,MIN(IF(AE229:AN229<>0,AE229:AN229))),MIN(IF(AE229:AN229<>0,AE229:AN229))))","v":0},{"$f":"IF(A229=0,0,IF(AND(OR(S229=\"Mgr\",S229=0),OR(U229=\"Mgr\",U229=0),OR(W229=\"Mgr\",W229=0)),0,IF(LEFT($A229,2)=\"B*\",VLOOKUP($E229,'1. Checklist & Certification'!$D$26:$E$32,2),IF(LEFT($A229,2)=\"C*\",VLOOKUP($E229,'1. Checklist & Certification'!$F$26:$G$32,2),IF(LEFT($A229,2)=\"D*\",VLOOKUP($E229,'1. Checklist & Certification'!$H$26:$I$32,2),IF(LEFT($A229,2)=\"E*\",VLOOKUP($E229,'1. Checklist & Certification'!$J$26:$K$32,2),VLOOKUP($E229,'1. Checklist & Certification'!$A$26:$B$32,2)))))))","v":0},0,0,null,null,null,null,"","",0,0,0,null,{"$f":"IF(A229=\"\",\"\",'1. Checklist & Certification'!$K$1)","v":""},{"$f":"IF(A229=\"\",\"\",'1. Checklist & Certification'!$C$62)","v":""},{"$f":"IF(A229=\"\",\"\",'1. Checklist & Certification'!$C$6)","v":""},{"$f":"IF(A229=\"\",\"\",'1. Checklist & Certification'!$G$5)","v":""},{"$f":"IFERROR(IF(A229=\"\",\"\",\n_xlfn.LET(_xlpm.Contract,'1. Checklist & Certification'!$C$7,\n_xlpm.Yr,TEXT(MOD(_xlfn.TEXTBEFORE(_xlpm.Contract,\"-\"),100),\"00\"),\n_xlpm.Program,_xlfn.TEXTAFTER(_xlfn.TEXTBEFORE(_xlpm.Contract,\"-\",2),\"-\"),\n_xlpm.CleanProgram,_xlfn.XLOOKUP(_xlpm.Program,SpellCheck[Input],SpellCheck[Correction],_xlpm.Program),\n_xlpm.Number,TEXT(_xlfn.TEXTAFTER(_xlpm.Contract,\"-\",2),\"0000\"),\n_xlfn.CONCAT(_xlpm.Yr,\"-\",_xlpm.CleanProgram,\"-\",_xlpm.Number))\n),\"\")","v":""},{"$f":"IFERROR(IF(A229=\"\",\"\",\n_xlfn.LET(_xlpm.Contract,'1. Checklist & Certification'!$C$8,\n_xlpm.Yr,TEXT(MOD(_xlfn.TEXTBEFORE(_xlpm.Contract,\"-\"),100),\"00\"),\n_xlpm.Program,_xlfn.TEXTAFTER(_xlfn.TEXTBEFORE(_xlpm.Contract,\"-\",2),\"-\"),\n_xlpm.CleanProgram,_xlfn.XLOOKUP(_xlpm.Program,SpellCheck[Input],SpellCheck[Correction],_xlpm.Program),\n_xlpm.Number,TEXT(_xlfn.TEXTAFTER(_xlpm.Contract,\"-\",2),\"0000\"),\n_xlfn.CONCAT(_xlpm.Yr,\"-\",_xlpm.CleanProgram,\"-\",_xlpm.Number))\n),\"\")","v":""},{"$f":"IFERROR(IF(A229=\"\",\"\",\n_xlfn.LET(_xlpm.Contract,'1. Checklist & Certification'!$F$7,\n_xlpm.Yr,TEXT(MOD(_xlfn.TEXTBEFORE(_xlpm.Contract,\"-\"),100),\"00\"),\n_xlpm.Program,_xlfn.TEXTAFTER(_xlfn.TEXTBEFORE(_xlpm.Contract,\"-\",2),\"-\"),\n_xlpm.CleanProgram,_xlfn.XLOOKUP(_xlpm.Program,SpellCheck[Input],SpellCheck[Correction],_xlpm.Program),\n_xlpm.Number,TEXT(_xlfn.TEXTAFTER(_xlpm.Contract,\"-\",2),\"0000\"),\n_xlfn.CONCAT(_xlpm.Yr,\"-\",_xlpm.CleanProgram,\"-\",_xlpm.Number))\n),\"\")","v":""},{"$f":"IFERROR(IF(A229=\"\",\"\",\n_xlfn.LET(_xlpm.Contract,'1. Checklist & Certification'!$F$8,\n_xlpm.Yr,TEXT(MOD(_xlfn.TEXTBEFORE(_xlpm.Contract,\"-\"),100),\"00\"),\n_xlpm.Program,_xlfn.TEXTAFTER(_xlfn.TEXTBEFORE(_xlpm.Contract,\"-\",2),\"-\"),\n_xlpm.CleanProgram,_xlfn.XLOOKUP(_xlpm.Program,SpellCheck[Input],SpellCheck[Correction],_xlpm.Program),\n_xlpm.Number,TEXT(_xlfn.TEXTAFTER(_xlpm.Contract,\"-\",2),\"0000\"),\n_xlfn.CONCAT(_xlpm.Yr,\"-\",_xlpm.CleanProgram,\"-\",_xlpm.Number))\n),\"\")","v":""},{"$f":"IF(A229=\"\",\"\",'1. Checklist & Certification'!$B$9)","v":""},{"$f":"IF(A229=\"\",\"\",'1. Checklist & Certification'!$F$9)","v":""},{"$f":"IF(A229=\"\",\"\",'1. Checklist & Certification'!$C$10)","v":""},{"$f":"IF(A229=\"\",\"\",'1. Checklist & Certification'!$C$11)","v":""},{"$f":"IF(A229=\"\",\"\",'1. Checklist & Certification'!$C$12)","v":""},{"$f":"IF(A229=\"\",\"\",'1. Checklist & Certification'!$B$14)","v":""},{"$f":"IF(A229=\"\",\"\",'1. Checklist & Certification'!$E$14)","v":""},{"$f":"IF(B229=\"\",\"\",'1. Checklist & Certification'!$G$14)","v":""},{"$f":"IF(A229=\"\",\"\",'MHP Family Income & Rent Limits'!$B$3)","v":""},{"$f":"IF(A229=\"\",\"\",'MHP Family Income & Rent Limits'!$J$3)","v":""},{"$f":"IF(A229=\"\",\"\",'MHP Family Income & Rent Limits'!$E$4)","v":""},{"$f":"IF(A229=\"\",\"\",'MHP Family Income & Rent Limits'!$C$7)","v":""},{"$f":"IF(A229=\"\",\"\",'MHP Family Income & Rent Limits'!$F$8)","v":""},{"$f":"IF(A229=\"\",\"\",'1. Checklist & Certification'!$G$4)","v":""},{"$f":"IF(A229=\"\",\"\",'1. Checklist & Certification'!$K$39)","v":""},{"$f":"IF(A229=\"\",\"\",'1. Checklist & Certification'!$K$43)","v":""},{"$f":"IF(A229=\"\",\"\",'1. Checklist & Certification'!$K$45)","v":""},{"$f":"IF(A229=\"\",\"\",'1. Checklist & Certification'!$K$49)","v":""},{"$f":"IF(A229=\"\",\"\",'1. Checklist & Certification'!$K$62)","v":""},{"$f":"IF(A229=\"\",\"\",'1. Checklist & Certification'!$E$66)","v":""},{"$f":"IF(A229=\"\",\"\",'1. Checklist & Certification'!$E$67)","v":""},{"$f":"IF(A229=\"\",\"\",'1. Checklist & Certification'!$E$68)","v":""},{"$f":"IF(A229=\"\",\"\",'1. Checklist & Certification'!$G$66)","v":""},{"$f":"IF(A229=\"\",\"\",'1. Checklist & Certification'!$H$66)","v":""},{"$f":"IF(A229=\"\",\"\",'1. Checklist & Certification'!$I$66)","v":""},{"$f":"IF(A229=\"\",\"\",'1. Checklist & Certification'!$I$67)","v":""},{"$f":"IF(A229=\"\",\"\",'1. Checklist & Certification'!$I$68)","v":""},{"$f":"IF(A229=\"\",\"\",'1. Checklist & Certification'!$B$69)","v":""},{"$f":"IF(A229=\"\",\"\",'1. Checklist & Certification'!$C$69)","v":""},{"$f":"IF(A229=\"\",\"\",'1. Checklist & Certification'!$F$69)","v":""},{"$f":"IF(A229=\"\",\"\",'1. Checklist & Certification'!$G$69)","v":""},{"$f":"IF(A229=\"\",\"\",'1. Checklist & Certification'!$J$69)","v":""},{"$f":"IF(A229=\"\",\"\",'1. Checklist & Certification'!$K$69)","v":""},null,null,{"$f":"IF(AND(OR('1. Checklist & Certification'!$M$16=1,'1. Checklist & Certification'!$M$19=2),AO229>0,B229=\"\",I229>0,AQ229<I229,AV229<>\"Sec 8-Project\"),\"X\",IF(AND(OR('1. Checklist & Certification'!$M$20=4,'1. Checklist & Certification'!$M$21=5,'1. Checklist & Certification'!$M$22=7),AO229>0,B229=\"\",I229>0,K229<I229),\"X\",\"\"))","v":""},{"$f":"IF(A229=\"\",\"\",IF(SUMPRODUCT(-- (ISNUMBER(SEARCH({\"*AHSC*\",\"*FMTW*\",\"*FWHG*\",\"*GHI*\",\"*HHC*\",\"*HLCP*\",\"*HOME*\",\"*LPR*\",\"*MHP*\",\"*NHTF*\",\"*NSP*\",\"*PRP*\",\"*TOD*\",\"*VHHP*\"},'1. Checklist & Certification'!$L$7)))),\"MHP\",\"Legacy\"))","v":""},",,",null,null,null,{"$f":"IF('1. Checklist & Certification'!$M$20=4,\"Both\",IF(OR('1. Checklist & Certification'!$M$15>0,S229=\"CHRP-R\",U229=\"CHRP-R\",W229=\"CHRP-R\",Y229=\"CHRP-R\"),\"Under\",\"No\"))","v":"No"},"No","No",{"$f":"_xlfn.IFS(D229=\"\",\"\",D229=1,'MHP Family Income & Rent Limits'!$E$17,D229=2,'MHP Family Income & Rent Limits'!$F$17,D229=3,'MHP Family Income & Rent Limits'!$G$17,D229=4,'MHP Family Income & Rent Limits'!$H$17,D229=5,'MHP Family Income & Rent Limits'!$I$17,D229=6,'MHP Family Income & Rent Limits'!$J$17,D229=7,'MHP Family Income & Rent Limits'!$K$17,D229=8,'MHP Family Income & Rent Limits'!$L$17)","v":""},"",{"$f":"IF(OR(A229=0,B229=\"X\"),0,MIN(IF(AA229:AD229<>0,AA229:AD229)))","v":0},{"$f":"IF(OR(H229=\"\",I229=\"\"),0,IF(H229*0.3/12>I229,MIN(H229*0.3/12,I229*1.1)+AP229,I229*(1+(VLOOKUP('1. Checklist & Certification'!$F$9,'HLCP-E Rent Change'!$A$1:$D$59,4,FALSE)))+AP229))","v":0}]
[null,null,null,null,null,null,null,null,null,null,null,null,null,null,null,null,null,null,null,null,null,null,null,null,null,null,0,0,0,0,0,0,0,0,{"$f":"IF(OR(A230=0,B230=\"X\"),0,IF(OR(S230=\"FHDP\",S230=\"RHCP-B\",U230=\"FHDP\",U230=\"RHCP-B\",W230=\"FHDP\",W230=\"RHCP-B\",Y230=\"FHDP\",Y230=\"RHCP-B\"),TRUNC((MIN(I230,K230)*(1+'1. Checklist & Certification'!$K$43)+AP230)),0))","v":0},{"$f":"IF(OR(A230=0,B230=\"X\"),0,IF(OR(S230=\"CHRP-R\",S230=\"SERA\",S230=\"SUHRP\",U230=\"CHRP-R\",U230=\"SERA\",U230=\"SUHRP\",W230=\"CHRP-R\",W230=\"SERA\",W230=\"SUHRP\",Y230=\"CHRP-R\",Y230=\"SERA\",Y230=\"SUHRP\"),TRUNC((MIN(I230,K230)*(1+'1. Checklist & Certification'!$K$49))),0))","v":0},{"$f":"IF(OR(A230=0,B230=\"X\"),0,IF(OR(S230=\"CALDAP\",S230=\"DPRLP\",U230=\"CALDAP\",U230=\"DPRLP\",W230=\"CALDAP\",W230=\"DPRLP\",Y230=\"CALDAP\",Y230=\"DPRLP\"),TRUNC(((MIN(I230,K230))*(1+'1. Checklist & Certification'!$G$4))),0))","v":0},0,0,0,{"$f":"IF(OR(A230=0,B230=\"X\"),0,IF(OR(S230=\"PRP\",S230=\"LPR\",U230=\"PRP\",U230=\"LPR\",W230=\"PRP\",W230=\"LPR\",Y230=\"PRP\",Y230=\"LPR\"),MAX(I230+AP230,MIN(IF(AE230:AN230<>0,AE230:AN230))),MIN(IF(AE230:AN230<>0,AE230:AN230))))","v":0},{"$f":"IF(A230=0,0,IF(AND(OR(S230=\"Mgr\",S230=0),OR(U230=\"Mgr\",U230=0),OR(W230=\"Mgr\",W230=0)),0,IF(LEFT($A230,2)=\"B*\",VLOOKUP($E230,'1. Checklist & Certification'!$D$26:$E$32,2),IF(LEFT($A230,2)=\"C*\",VLOOKUP($E230,'1. Checklist & Certification'!$F$26:$G$32,2),IF(LEFT($A230,2)=\"D*\",VLOOKUP($E230,'1. Checklist & Certification'!$H$26:$I$32,2),IF(LEFT($A230,2)=\"E*\",VLOOKUP($E230,'1. Checklist & Certification'!$J$26:$K$32,2),VLOOKUP($E230,'1. Checklist & Certification'!$A$26:$B$32,2)))))))","v":0},0,0,null,null,null,null,"","",0,0,0,null,{"$f":"IF(A230=\"\",\"\",'1. Checklist & Certification'!$K$1)","v":""},{"$f":"IF(A230=\"\",\"\",'1. Checklist & Certification'!$C$62)","v":""},{"$f":"IF(A230=\"\",\"\",'1. Checklist & Certification'!$C$6)","v":""},{"$f":"IF(A230=\"\",\"\",'1. Checklist & Certification'!$G$5)","v":""},{"$f":"IFERROR(IF(A230=\"\",\"\",\n_xlfn.LET(_xlpm.Contract,'1. Checklist & Certification'!$C$7,\n_xlpm.Yr,TEXT(MOD(_xlfn.TEXTBEFORE(_xlpm.Contract,\"-\"),100),\"00\"),\n_xlpm.Program,_xlfn.TEXTAFTER(_xlfn.TEXTBEFORE(_xlpm.Contract,\"-\",2),\"-\"),\n_xlpm.CleanProgram,_xlfn.XLOOKUP(_xlpm.Program,SpellCheck[Input],SpellCheck[Correction],_xlpm.Program),\n_xlpm.Number,TEXT(_xlfn.TEXTAFTER(_xlpm.Contract,\"-\",2),\"0000\"),\n_xlfn.CONCAT(_xlpm.Yr,\"-\",_xlpm.CleanProgram,\"-\",_xlpm.Number))\n),\"\")","v":""},{"$f":"IFERROR(IF(A230=\"\",\"\",\n_xlfn.LET(_xlpm.Contract,'1. Checklist & Certification'!$C$8,\n_xlpm.Yr,TEXT(MOD(_xlfn.TEXTBEFORE(_xlpm.Contract,\"-\"),100),\"00\"),\n_xlpm.Program,_xlfn.TEXTAFTER(_xlfn.TEXTBEFORE(_xlpm.Contract,\"-\",2),\"-\"),\n_xlpm.CleanProgram,_xlfn.XLOOKUP(_xlpm.Program,SpellCheck[Input],SpellCheck[Correction],_xlpm.Program),\n_xlpm.Number,TEXT(_xlfn.TEXTAFTER(_xlpm.Contract,\"-\",2),\"0000\"),\n_xlfn.CONCAT(_xlpm.Yr,\"-\",_xlpm.CleanProgram,\"-\",_xlpm.Number))\n),\"\")","v":""},{"$f":"IFERROR(IF(A230=\"\",\"\",\n_xlfn.LET(_xlpm.Contract,'1. Checklist & Certification'!$F$7,\n_xlpm.Yr,TEXT(MOD(_xlfn.TEXTBEFORE(_xlpm.Contract,\"-\"),100),\"00\"),\n_xlpm.Program,_xlfn.TEXTAFTER(_xlfn.TEXTBEFORE(_xlpm.Contract,\"-\",2),\"-\"),\n_xlpm.CleanProgram,_xlfn.XLOOKUP(_xlpm.Program,SpellCheck[Input],SpellCheck[Correction],_xlpm.Program),\n_xlpm.Number,TEXT(_xlfn.TEXTAFTER(_xlpm.Contract,\"-\",2),\"0000\"),\n_xlfn.CONCAT(_xlpm.Yr,\"-\",_xlpm.CleanProgram,\"-\",_xlpm.Number))\n),\"\")","v":""},{"$f":"IFERROR(IF(A230=\"\",\"\",\n_xlfn.LET(_xlpm.Contract,'1. Checklist & Certification'!$F$8,\n_xlpm.Yr,TEXT(MOD(_xlfn.TEXTBEFORE(_xlpm.Contract,\"-\"),100),\"00\"),\n_xlpm.Program,_xlfn.TEXTAFTER(_xlfn.TEXTBEFORE(_xlpm.Contract,\"-\",2),\"-\"),\n_xlpm.CleanProgram,_xlfn.XLOOKUP(_xlpm.Program,SpellCheck[Input],SpellCheck[Correction],_xlpm.Program),\n_xlpm.Number,TEXT(_xlfn.TEXTAFTER(_xlpm.Contract,\"-\",2),\"0000\"),\n_xlfn.CONCAT(_xlpm.Yr,\"-\",_xlpm.CleanProgram,\"-\",_xlpm.Number))\n),\"\")","v":""},{"$f":"IF(A230=\"\",\"\",'1. Checklist & Certification'!$B$9)","v":""},{"$f":"IF(A230=\"\",\"\",'1. Checklist & Certification'!$F$9)","v":""},{"$f":"IF(A230=\"\",\"\",'1. Checklist & Certification'!$C$10)","v":""},{"$f":"IF(A230=\"\",\"\",'1. Checklist & Certification'!$C$11)","v":""},{"$f":"IF(A230=\"\",\"\",'1. Checklist & Certification'!$C$12)","v":""},{"$f":"IF(A230=\"\",\"\",'1. Checklist & Certification'!$B$14)","v":""},{"$f":"IF(A230=\"\",\"\",'1. Checklist & Certification'!$E$14)","v":""},{"$f":"IF(B230=\"\",\"\",'1. Checklist & Certification'!$G$14)","v":""},{"$f":"IF(A230=\"\",\"\",'MHP Family Income & Rent Limits'!$B$3)","v":""},{"$f":"IF(A230=\"\",\"\",'MHP Family Income & Rent Limits'!$J$3)","v":""},{"$f":"IF(A230=\"\",\"\",'MHP Family Income & Rent Limits'!$E$4)","v":""},{"$f":"IF(A230=\"\",\"\",'MHP Family Income & Rent Limits'!$C$7)","v":""},{"$f":"IF(A230=\"\",\"\",'MHP Family Income & Rent Limits'!$F$8)","v":""},{"$f":"IF(A230=\"\",\"\",'1. Checklist & Certification'!$G$4)","v":""},{"$f":"IF(A230=\"\",\"\",'1. Checklist & Certification'!$K$39)","v":""},{"$f":"IF(A230=\"\",\"\",'1. Checklist & Certification'!$K$43)","v":""},{"$f":"IF(A230=\"\",\"\",'1. Checklist & Certification'!$K$45)","v":""},{"$f":"IF(A230=\"\",\"\",'1. Checklist & Certification'!$K$49)","v":""},{"$f":"IF(A230=\"\",\"\",'1. Checklist & Certification'!$K$62)","v":""},{"$f":"IF(A230=\"\",\"\",'1. Checklist & Certification'!$E$66)","v":""},{"$f":"IF(A230=\"\",\"\",'1. Checklist & Certification'!$E$67)","v":""},{"$f":"IF(A230=\"\",\"\",'1. Checklist & Certification'!$E$68)","v":""},{"$f":"IF(A230=\"\",\"\",'1. Checklist & Certification'!$G$66)","v":""},{"$f":"IF(A230=\"\",\"\",'1. Checklist & Certification'!$H$66)","v":""},{"$f":"IF(A230=\"\",\"\",'1. Checklist & Certification'!$I$66)","v":""},{"$f":"IF(A230=\"\",\"\",'1. Checklist & Certification'!$I$67)","v":""},{"$f":"IF(A230=\"\",\"\",'1. Checklist & Certification'!$I$68)","v":""},{"$f":"IF(A230=\"\",\"\",'1. Checklist & Certification'!$B$69)","v":""},{"$f":"IF(A230=\"\",\"\",'1. Checklist & Certification'!$C$69)","v":""},{"$f":"IF(A230=\"\",\"\",'1. Checklist & Certification'!$F$69)","v":""},{"$f":"IF(A230=\"\",\"\",'1. Checklist & Certification'!$G$69)","v":""},{"$f":"IF(A230=\"\",\"\",'1. Checklist & Certification'!$J$69)","v":""},{"$f":"IF(A230=\"\",\"\",'1. Checklist & Certification'!$K$69)","v":""},null,null,{"$f":"IF(AND(OR('1. Checklist & Certification'!$M$16=1,'1. Checklist & Certification'!$M$19=2),AO230>0,B230=\"\",I230>0,AQ230<I230,AV230<>\"Sec 8-Project\"),\"X\",IF(AND(OR('1. Checklist & Certification'!$M$20=4,'1. Checklist & Certification'!$M$21=5,'1. Checklist & Certification'!$M$22=7),AO230>0,B230=\"\",I230>0,K230<I230),\"X\",\"\"))","v":""},{"$f":"IF(A230=\"\",\"\",IF(SUMPRODUCT(-- (ISNUMBER(SEARCH({\"*AHSC*\",\"*FMTW*\",\"*FWHG*\",\"*GHI*\",\"*HHC*\",\"*HLCP*\",\"*HOME*\",\"*LPR*\",\"*MHP*\",\"*NHTF*\",\"*NSP*\",\"*PRP*\",\"*TOD*\",\"*VHHP*\"},'1. Checklist & Certification'!$L$7)))),\"MHP\",\"Legacy\"))","v":""},",,",null,null,null,{"$f":"IF('1. Checklist & Certification'!$M$20=4,\"Both\",IF(OR('1. Checklist & Certification'!$M$15>0,S230=\"CHRP-R\",U230=\"CHRP-R\",W230=\"CHRP-R\",Y230=\"CHRP-R\"),\"Under\",\"No\"))","v":"No"},"No","No",{"$f":"_xlfn.IFS(D230=\"\",\"\",D230=1,'MHP Family Income & Rent Limits'!$E$17,D230=2,'MHP Family Income & Rent Limits'!$F$17,D230=3,'MHP Family Income & Rent Limits'!$G$17,D230=4,'MHP Family Income & Rent Limits'!$H$17,D230=5,'MHP Family Income & Rent Limits'!$I$17,D230=6,'MHP Family Income & Rent Limits'!$J$17,D230=7,'MHP Family Income & Rent Limits'!$K$17,D230=8,'MHP Family Income & Rent Limits'!$L$17)","v":""},"",{"$f":"IF(OR(A230=0,B230=\"X\"),0,MIN(IF(AA230:AD230<>0,AA230:AD230)))","v":0},{"$f":"IF(OR(H230=\"\",I230=\"\"),0,IF(H230*0.3/12>I230,MIN(H230*0.3/12,I230*1.1)+AP230,I230*(1+(VLOOKUP('1. Checklist & Certification'!$F$9,'HLCP-E Rent Change'!$A$1:$D$59,4,FALSE)))+AP230))","v":0}]
[null,null,null,null,null,null,null,null,null,null,null,null,null,null,null,null,null,null,null,null,null,null,null,null,null,null,0,0,0,0,0,0,0,0,{"$f":"IF(OR(A231=0,B231=\"X\"),0,IF(OR(S231=\"FHDP\",S231=\"RHCP-B\",U231=\"FHDP\",U231=\"RHCP-B\",W231=\"FHDP\",W231=\"RHCP-B\",Y231=\"FHDP\",Y231=\"RHCP-B\"),TRUNC((MIN(I231,K231)*(1+'1. Checklist & Certification'!$K$43)+AP231)),0))","v":0},{"$f":"IF(OR(A231=0,B231=\"X\"),0,IF(OR(S231=\"CHRP-R\",S231=\"SERA\",S231=\"SUHRP\",U231=\"CHRP-R\",U231=\"SERA\",U231=\"SUHRP\",W231=\"CHRP-R\",W231=\"SERA\",W231=\"SUHRP\",Y231=\"CHRP-R\",Y231=\"SERA\",Y231=\"SUHRP\"),TRUNC((MIN(I231,K231)*(1+'1. Checklist & Certification'!$K$49))),0))","v":0},{"$f":"IF(OR(A231=0,B231=\"X\"),0,IF(OR(S231=\"CALDAP\",S231=\"DPRLP\",U231=\"CALDAP\",U231=\"DPRLP\",W231=\"CALDAP\",W231=\"DPRLP\",Y231=\"CALDAP\",Y231=\"DPRLP\"),TRUNC(((MIN(I231,K231))*(1+'1. Checklist & Certification'!$G$4))),0))","v":0},0,0,0,{"$f":"IF(OR(A231=0,B231=\"X\"),0,IF(OR(S231=\"PRP\",S231=\"LPR\",U231=\"PRP\",U231=\"LPR\",W231=\"PRP\",W231=\"LPR\",Y231=\"PRP\",Y231=\"LPR\"),MAX(I231+AP231,MIN(IF(AE231:AN231<>0,AE231:AN231))),MIN(IF(AE231:AN231<>0,AE231:AN231))))","v":0},{"$f":"IF(A231=0,0,IF(AND(OR(S231=\"Mgr\",S231=0),OR(U231=\"Mgr\",U231=0),OR(W231=\"Mgr\",W231=0)),0,IF(LEFT($A231,2)=\"B*\",VLOOKUP($E231,'1. Checklist & Certification'!$D$26:$E$32,2),IF(LEFT($A231,2)=\"C*\",VLOOKUP($E231,'1. Checklist & Certification'!$F$26:$G$32,2),IF(LEFT($A231,2)=\"D*\",VLOOKUP($E231,'1. Checklist & Certification'!$H$26:$I$32,2),IF(LEFT($A231,2)=\"E*\",VLOOKUP($E231,'1. Checklist & Certification'!$J$26:$K$32,2),VLOOKUP($E231,'1. Checklist & Certification'!$A$26:$B$32,2)))))))","v":0},0,0,null,null,null,null,"","",0,0,0,null,{"$f":"IF(A231=\"\",\"\",'1. Checklist & Certification'!$K$1)","v":""},{"$f":"IF(A231=\"\",\"\",'1. Checklist & Certification'!$C$62)","v":""},{"$f":"IF(A231=\"\",\"\",'1. Checklist & Certification'!$C$6)","v":""},{"$f":"IF(A231=\"\",\"\",'1. Checklist & Certification'!$G$5)","v":""},{"$f":"IFERROR(IF(A231=\"\",\"\",\n_xlfn.LET(_xlpm.Contract,'1. Checklist & Certification'!$C$7,\n_xlpm.Yr,TEXT(MOD(_xlfn.TEXTBEFORE(_xlpm.Contract,\"-\"),100),\"00\"),\n_xlpm.Program,_xlfn.TEXTAFTER(_xlfn.TEXTBEFORE(_xlpm.Contract,\"-\",2),\"-\"),\n_xlpm.CleanProgram,_xlfn.XLOOKUP(_xlpm.Program,SpellCheck[Input],SpellCheck[Correction],_xlpm.Program),\n_xlpm.Number,TEXT(_xlfn.TEXTAFTER(_xlpm.Contract,\"-\",2),\"0000\"),\n_xlfn.CONCAT(_xlpm.Yr,\"-\",_xlpm.CleanProgram,\"-\",_xlpm.Number))\n),\"\")","v":""},{"$f":"IFERROR(IF(A231=\"\",\"\",\n_xlfn.LET(_xlpm.Contract,'1. Checklist & Certification'!$C$8,\n_xlpm.Yr,TEXT(MOD(_xlfn.TEXTBEFORE(_xlpm.Contract,\"-\"),100),\"00\"),\n_xlpm.Program,_xlfn.TEXTAFTER(_xlfn.TEXTBEFORE(_xlpm.Contract,\"-\",2),\"-\"),\n_xlpm.CleanProgram,_xlfn.XLOOKUP(_xlpm.Program,SpellCheck[Input],SpellCheck[Correction],_xlpm.Program),\n_xlpm.Number,TEXT(_xlfn.TEXTAFTER(_xlpm.Contract,\"-\",2),\"0000\"),\n_xlfn.CONCAT(_xlpm.Yr,\"-\",_xlpm.CleanProgram,\"-\",_xlpm.Number))\n),\"\")","v":""},{"$f":"IFERROR(IF(A231=\"\",\"\",\n_xlfn.LET(_xlpm.Contract,'1. Checklist & Certification'!$F$7,\n_xlpm.Yr,TEXT(MOD(_xlfn.TEXTBEFORE(_xlpm.Contract,\"-\"),100),\"00\"),\n_xlpm.Program,_xlfn.TEXTAFTER(_xlfn.TEXTBEFORE(_xlpm.Contract,\"-\",2),\"-\"),\n_xlpm.CleanProgram,_xlfn.XLOOKUP(_xlpm.Program,SpellCheck[Input],SpellCheck[Correction],_xlpm.Program),\n_xlpm.Number,TEXT(_xlfn.TEXTAFTER(_xlpm.Contract,\"-\",2),\"0000\"),\n_xlfn.CONCAT(_xlpm.Yr,\"-\",_xlpm.CleanProgram,\"-\",_xlpm.Number))\n),\"\")","v":""},{"$f":"IFERROR(IF(A231=\"\",\"\",\n_xlfn.LET(_xlpm.Contract,'1. Checklist & Certification'!$F$8,\n_xlpm.Yr,TEXT(MOD(_xlfn.TEXTBEFORE(_xlpm.Contract,\"-\"),100),\"00\"),\n_xlpm.Program,_xlfn.TEXTAFTER(_xlfn.TEXTBEFORE(_xlpm.Contract,\"-\",2),\"-\"),\n_xlpm.CleanProgram,_xlfn.XLOOKUP(_xlpm.Program,SpellCheck[Input],SpellCheck[Correction],_xlpm.Program),\n_xlpm.Number,TEXT(_xlfn.TEXTAFTER(_xlpm.Contract,\"-\",2),\"0000\"),\n_xlfn.CONCAT(_xlpm.Yr,\"-\",_xlpm.CleanProgram,\"-\",_xlpm.Number))\n),\"\")","v":""},{"$f":"IF(A231=\"\",\"\",'1. Checklist & Certification'!$B$9)","v":""},{"$f":"IF(A231=\"\",\"\",'1. Checklist & Certification'!$F$9)","v":""},{"$f":"IF(A231=\"\",\"\",'1. Checklist & Certification'!$C$10)","v":""},{"$f":"IF(A231=\"\",\"\",'1. Checklist & Certification'!$C$11)","v":""},{"$f":"IF(A231=\"\",\"\",'1. Checklist & Certification'!$C$12)","v":""},{"$f":"IF(A231=\"\",\"\",'1. Checklist & Certification'!$B$14)","v":""},{"$f":"IF(A231=\"\",\"\",'1. Checklist & Certification'!$E$14)","v":""},{"$f":"IF(B231=\"\",\"\",'1. Checklist & Certification'!$G$14)","v":""},{"$f":"IF(A231=\"\",\"\",'MHP Family Income & Rent Limits'!$B$3)","v":""},{"$f":"IF(A231=\"\",\"\",'MHP Family Income & Rent Limits'!$J$3)","v":""},{"$f":"IF(A231=\"\",\"\",'MHP Family Income & Rent Limits'!$E$4)","v":""},{"$f":"IF(A231=\"\",\"\",'MHP Family Income & Rent Limits'!$C$7)","v":""},{"$f":"IF(A231=\"\",\"\",'MHP Family Income & Rent Limits'!$F$8)","v":""},{"$f":"IF(A231=\"\",\"\",'1. Checklist & Certification'!$G$4)","v":""},{"$f":"IF(A231=\"\",\"\",'1. Checklist & Certification'!$K$39)","v":""},{"$f":"IF(A231=\"\",\"\",'1. Checklist & Certification'!$K$43)","v":""},{"$f":"IF(A231=\"\",\"\",'1. Checklist & Certification'!$K$45)","v":""},{"$f":"IF(A231=\"\",\"\",'1. Checklist & Certification'!$K$49)","v":""},{"$f":"IF(A231=\"\",\"\",'1. Checklist & Certification'!$K$62)","v":""},{"$f":"IF(A231=\"\",\"\",'1. Checklist & Certification'!$E$66)","v":""},{"$f":"IF(A231=\"\",\"\",'1. Checklist & Certification'!$E$67)","v":""},{"$f":"IF(A231=\"\",\"\",'1. Checklist & Certification'!$E$68)","v":""},{"$f":"IF(A231=\"\",\"\",'1. Checklist & Certification'!$G$66)","v":""},{"$f":"IF(A231=\"\",\"\",'1. Checklist & Certification'!$H$66)","v":""},{"$f":"IF(A231=\"\",\"\",'1. Checklist & Certification'!$I$66)","v":""},{"$f":"IF(A231=\"\",\"\",'1. Checklist & Certification'!$I$67)","v":""},{"$f":"IF(A231=\"\",\"\",'1. Checklist & Certification'!$I$68)","v":""},{"$f":"IF(A231=\"\",\"\",'1. Checklist & Certification'!$B$69)","v":""},{"$f":"IF(A231=\"\",\"\",'1. Checklist & Certification'!$C$69)","v":""},{"$f":"IF(A231=\"\",\"\",'1. Checklist & Certification'!$F$69)","v":""},{"$f":"IF(A231=\"\",\"\",'1. Checklist & Certification'!$G$69)","v":""},{"$f":"IF(A231=\"\",\"\",'1. Checklist & Certification'!$J$69)","v":""},{"$f":"IF(A231=\"\",\"\",'1. Checklist & Certification'!$K$69)","v":""},null,null,{"$f":"IF(AND(OR('1. Checklist & Certification'!$M$16=1,'1. Checklist & Certification'!$M$19=2),AO231>0,B231=\"\",I231>0,AQ231<I231,AV231<>\"Sec 8-Project\"),\"X\",IF(AND(OR('1. Checklist & Certification'!$M$20=4,'1. Checklist & Certification'!$M$21=5,'1. Checklist & Certification'!$M$22=7),AO231>0,B231=\"\",I231>0,K231<I231),\"X\",\"\"))","v":""},{"$f":"IF(A231=\"\",\"\",IF(SUMPRODUCT(-- (ISNUMBER(SEARCH({\"*AHSC*\",\"*FMTW*\",\"*FWHG*\",\"*GHI*\",\"*HHC*\",\"*HLCP*\",\"*HOME*\",\"*LPR*\",\"*MHP*\",\"*NHTF*\",\"*NSP*\",\"*PRP*\",\"*TOD*\",\"*VHHP*\"},'1. Checklist & Certification'!$L$7)))),\"MHP\",\"Legacy\"))","v":""},",,",null,null,null,{"$f":"IF('1. Checklist & Certification'!$M$20=4,\"Both\",IF(OR('1. Checklist & Certification'!$M$15>0,S231=\"CHRP-R\",U231=\"CHRP-R\",W231=\"CHRP-R\",Y231=\"CHRP-R\"),\"Under\",\"No\"))","v":"No"},"No","No",{"$f":"_xlfn.IFS(D231=\"\",\"\",D231=1,'MHP Family Income & Rent Limits'!$E$17,D231=2,'MHP Family Income & Rent Limits'!$F$17,D231=3,'MHP Family Income & Rent Limits'!$G$17,D231=4,'MHP Family Income & Rent Limits'!$H$17,D231=5,'MHP Family Income & Rent Limits'!$I$17,D231=6,'MHP Family Income & Rent Limits'!$J$17,D231=7,'MHP Family Income & Rent Limits'!$K$17,D231=8,'MHP Family Income & Rent Limits'!$L$17)","v":""},"",{"$f":"IF(OR(A231=0,B231=\"X\"),0,MIN(IF(AA231:AD231<>0,AA231:AD231)))","v":0},{"$f":"IF(OR(H231=\"\",I231=\"\"),0,IF(H231*0.3/12>I231,MIN(H231*0.3/12,I231*1.1)+AP231,I231*(1+(VLOOKUP('1. Checklist & Certification'!$F$9,'HLCP-E Rent Change'!$A$1:$D$59,4,FALSE)))+AP231))","v":0}]
[null,null,null,null,null,null,null,null,null,null,null,null,null,null,null,null,null,null,null,null,null,null,null,null,null,null,0,0,0,0,0,0,0,0,{"$f":"IF(OR(A232=0,B232=\"X\"),0,IF(OR(S232=\"FHDP\",S232=\"RHCP-B\",U232=\"FHDP\",U232=\"RHCP-B\",W232=\"FHDP\",W232=\"RHCP-B\",Y232=\"FHDP\",Y232=\"RHCP-B\"),TRUNC((MIN(I232,K232)*(1+'1. Checklist & Certification'!$K$43)+AP232)),0))","v":0},{"$f":"IF(OR(A232=0,B232=\"X\"),0,IF(OR(S232=\"CHRP-R\",S232=\"SERA\",S232=\"SUHRP\",U232=\"CHRP-R\",U232=\"SERA\",U232=\"SUHRP\",W232=\"CHRP-R\",W232=\"SERA\",W232=\"SUHRP\",Y232=\"CHRP-R\",Y232=\"SERA\",Y232=\"SUHRP\"),TRUNC((MIN(I232,K232)*(1+'1. Checklist & Certification'!$K$49))),0))","v":0},{"$f":"IF(OR(A232=0,B232=\"X\"),0,IF(OR(S232=\"CALDAP\",S232=\"DPRLP\",U232=\"CALDAP\",U232=\"DPRLP\",W232=\"CALDAP\",W232=\"DPRLP\",Y232=\"CALDAP\",Y232=\"DPRLP\"),TRUNC(((MIN(I232,K232))*(1+'1. Checklist & Certification'!$G$4))),0))","v":0},0,0,0,{"$f":"IF(OR(A232=0,B232=\"X\"),0,IF(OR(S232=\"PRP\",S232=\"LPR\",U232=\"PRP\",U232=\"LPR\",W232=\"PRP\",W232=\"LPR\",Y232=\"PRP\",Y232=\"LPR\"),MAX(I232+AP232,MIN(IF(AE232:AN232<>0,AE232:AN232))),MIN(IF(AE232:AN232<>0,AE232:AN232))))","v":0},{"$f":"IF(A232=0,0,IF(AND(OR(S232=\"Mgr\",S232=0),OR(U232=\"Mgr\",U232=0),OR(W232=\"Mgr\",W232=0)),0,IF(LEFT($A232,2)=\"B*\",VLOOKUP($E232,'1. Checklist & Certification'!$D$26:$E$32,2),IF(LEFT($A232,2)=\"C*\",VLOOKUP($E232,'1. Checklist & Certification'!$F$26:$G$32,2),IF(LEFT($A232,2)=\"D*\",VLOOKUP($E232,'1. Checklist & Certification'!$H$26:$I$32,2),IF(LEFT($A232,2)=\"E*\",VLOOKUP($E232,'1. Checklist & Certification'!$J$26:$K$32,2),VLOOKUP($E232,'1. Checklist & Certification'!$A$26:$B$32,2)))))))","v":0},0,0,null,null,null,null,"","",0,0,0,null,{"$f":"IF(A232=\"\",\"\",'1. Checklist & Certification'!$K$1)","v":""},{"$f":"IF(A232=\"\",\"\",'1. Checklist & Certification'!$C$62)","v":""},{"$f":"IF(A232=\"\",\"\",'1. Checklist & Certification'!$C$6)","v":""},{"$f":"IF(A232=\"\",\"\",'1. Checklist & Certification'!$G$5)","v":""},{"$f":"IFERROR(IF(A232=\"\",\"\",\n_xlfn.LET(_xlpm.Contract,'1. Checklist & Certification'!$C$7,\n_xlpm.Yr,TEXT(MOD(_xlfn.TEXTBEFORE(_xlpm.Contract,\"-\"),100),\"00\"),\n_xlpm.Program,_xlfn.TEXTAFTER(_xlfn.TEXTBEFORE(_xlpm.Contract,\"-\",2),\"-\"),\n_xlpm.CleanProgram,_xlfn.XLOOKUP(_xlpm.Program,SpellCheck[Input],SpellCheck[Correction],_xlpm.Program),\n_xlpm.Number,TEXT(_xlfn.TEXTAFTER(_xlpm.Contract,\"-\",2),\"0000\"),\n_xlfn.CONCAT(_xlpm.Yr,\"-\",_xlpm.CleanProgram,\"-\",_xlpm.Number))\n),\"\")","v":""},{"$f":"IFERROR(IF(A232=\"\",\"\",\n_xlfn.LET(_xlpm.Contract,'1. Checklist & Certification'!$C$8,\n_xlpm.Yr,TEXT(MOD(_xlfn.TEXTBEFORE(_xlpm.Contract,\"-\"),100),\"00\"),\n_xlpm.Program,_xlfn.TEXTAFTER(_xlfn.TEXTBEFORE(_xlpm.Contract,\"-\",2),\"-\"),\n_xlpm.CleanProgram,_xlfn.XLOOKUP(_xlpm.Program,SpellCheck[Input],SpellCheck[Correction],_xlpm.Program),\n_xlpm.Number,TEXT(_xlfn.TEXTAFTER(_xlpm.Contract,\"-\",2),\"0000\"),\n_xlfn.CONCAT(_xlpm.Yr,\"-\",_xlpm.CleanProgram,\"-\",_xlpm.Number))\n),\"\")","v":""},{"$f":"IFERROR(IF(A232=\"\",\"\",\n_xlfn.LET(_xlpm.Contract,'1. Checklist & Certification'!$F$7,\n_xlpm.Yr,TEXT(MOD(_xlfn.TEXTBEFORE(_xlpm.Contract,\"-\"),100),\"00\"),\n_xlpm.Program,_xlfn.TEXTAFTER(_xlfn.TEXTBEFORE(_xlpm.Contract,\"-\",2),\"-\"),\n_xlpm.CleanProgram,_xlfn.XLOOKUP(_xlpm.Program,SpellCheck[Input],SpellCheck[Correction],_xlpm.Program),\n_xlpm.Number,TEXT(_xlfn.TEXTAFTER(_xlpm.Contract,\"-\",2),\"0000\"),\n_xlfn.CONCAT(_xlpm.Yr,\"-\",_xlpm.CleanProgram,\"-\",_xlpm.Number))\n),\"\")","v":""},{"$f":"IFERROR(IF(A232=\"\",\"\",\n_xlfn.LET(_xlpm.Contract,'1. Checklist & Certification'!$F$8,\n_xlpm.Yr,TEXT(MOD(_xlfn.TEXTBEFORE(_xlpm.Contract,\"-\"),100),\"00\"),\n_xlpm.Program,_xlfn.TEXTAFTER(_xlfn.TEXTBEFORE(_xlpm.Contract,\"-\",2),\"-\"),\n_xlpm.CleanProgram,_xlfn.XLOOKUP(_xlpm.Program,SpellCheck[Input],SpellCheck[Correction],_xlpm.Program),\n_xlpm.Number,TEXT(_xlfn.TEXTAFTER(_xlpm.Contract,\"-\",2),\"0000\"),\n_xlfn.CONCAT(_xlpm.Yr,\"-\",_xlpm.CleanProgram,\"-\",_xlpm.Number))\n),\"\")","v":""},{"$f":"IF(A232=\"\",\"\",'1. Checklist & Certification'!$B$9)","v":""},{"$f":"IF(A232=\"\",\"\",'1. Checklist & Certification'!$F$9)","v":""},{"$f":"IF(A232=\"\",\"\",'1. Checklist & Certification'!$C$10)","v":""},{"$f":"IF(A232=\"\",\"\",'1. Checklist & Certification'!$C$11)","v":""},{"$f":"IF(A232=\"\",\"\",'1. Checklist & Certification'!$C$12)","v":""},{"$f":"IF(A232=\"\",\"\",'1. Checklist & Certification'!$B$14)","v":""},{"$f":"IF(A232=\"\",\"\",'1. Checklist & Certification'!$E$14)","v":""},{"$f":"IF(B232=\"\",\"\",'1. Checklist & Certification'!$G$14)","v":""},{"$f":"IF(A232=\"\",\"\",'MHP Family Income & Rent Limits'!$B$3)","v":""},{"$f":"IF(A232=\"\",\"\",'MHP Family Income & Rent Limits'!$J$3)","v":""},{"$f":"IF(A232=\"\",\"\",'MHP Family Income & Rent Limits'!$E$4)","v":""},{"$f":"IF(A232=\"\",\"\",'MHP Family Income & Rent Limits'!$C$7)","v":""},{"$f":"IF(A232=\"\",\"\",'MHP Family Income & Rent Limits'!$F$8)","v":""},{"$f":"IF(A232=\"\",\"\",'1. Checklist & Certification'!$G$4)","v":""},{"$f":"IF(A232=\"\",\"\",'1. Checklist & Certification'!$K$39)","v":""},{"$f":"IF(A232=\"\",\"\",'1. Checklist & Certification'!$K$43)","v":""},{"$f":"IF(A232=\"\",\"\",'1. Checklist & Certification'!$K$45)","v":""},{"$f":"IF(A232=\"\",\"\",'1. Checklist & Certification'!$K$49)","v":""},{"$f":"IF(A232=\"\",\"\",'1. Checklist & Certification'!$K$62)","v":""},{"$f":"IF(A232=\"\",\"\",'1. Checklist & Certification'!$E$66)","v":""},{"$f":"IF(A232=\"\",\"\",'1. Checklist & Certification'!$E$67)","v":""},{"$f":"IF(A232=\"\",\"\",'1. Checklist & Certification'!$E$68)","v":""},{"$f":"IF(A232=\"\",\"\",'1. Checklist & Certification'!$G$66)","v":""},{"$f":"IF(A232=\"\",\"\",'1. Checklist & Certification'!$H$66)","v":""},{"$f":"IF(A232=\"\",\"\",'1. Checklist & Certification'!$I$66)","v":""},{"$f":"IF(A232=\"\",\"\",'1. Checklist & Certification'!$I$67)","v":""},{"$f":"IF(A232=\"\",\"\",'1. Checklist & Certification'!$I$68)","v":""},{"$f":"IF(A232=\"\",\"\",'1. Checklist & Certification'!$B$69)","v":""},{"$f":"IF(A232=\"\",\"\",'1. Checklist & Certification'!$C$69)","v":""},{"$f":"IF(A232=\"\",\"\",'1. Checklist & Certification'!$F$69)","v":""},{"$f":"IF(A232=\"\",\"\",'1. Checklist & Certification'!$G$69)","v":""},{"$f":"IF(A232=\"\",\"\",'1. Checklist & Certification'!$J$69)","v":""},{"$f":"IF(A232=\"\",\"\",'1. Checklist & Certification'!$K$69)","v":""},null,null,{"$f":"IF(AND(OR('1. Checklist & Certification'!$M$16=1,'1. Checklist & Certification'!$M$19=2),AO232>0,B232=\"\",I232>0,AQ232<I232,AV232<>\"Sec 8-Project\"),\"X\",IF(AND(OR('1. Checklist & Certification'!$M$20=4,'1. Checklist & Certification'!$M$21=5,'1. Checklist & Certification'!$M$22=7),AO232>0,B232=\"\",I232>0,K232<I232),\"X\",\"\"))","v":""},{"$f":"IF(A232=\"\",\"\",IF(SUMPRODUCT(-- (ISNUMBER(SEARCH({\"*AHSC*\",\"*FMTW*\",\"*FWHG*\",\"*GHI*\",\"*HHC*\",\"*HLCP*\",\"*HOME*\",\"*LPR*\",\"*MHP*\",\"*NHTF*\",\"*NSP*\",\"*PRP*\",\"*TOD*\",\"*VHHP*\"},'1. Checklist & Certification'!$L$7)))),\"MHP\",\"Legacy\"))","v":""},",,",null,null,null,{"$f":"IF('1. Checklist & Certification'!$M$20=4,\"Both\",IF(OR('1. Checklist & Certification'!$M$15>0,S232=\"CHRP-R\",U232=\"CHRP-R\",W232=\"CHRP-R\",Y232=\"CHRP-R\"),\"Under\",\"No\"))","v":"No"},"No","No",{"$f":"_xlfn.IFS(D232=\"\",\"\",D232=1,'MHP Family Income & Rent Limits'!$E$17,D232=2,'MHP Family Income & Rent Limits'!$F$17,D232=3,'MHP Family Income & Rent Limits'!$G$17,D232=4,'MHP Family Income & Rent Limits'!$H$17,D232=5,'MHP Family Income & Rent Limits'!$I$17,D232=6,'MHP Family Income & Rent Limits'!$J$17,D232=7,'MHP Family Income & Rent Limits'!$K$17,D232=8,'MHP Family Income & Rent Limits'!$L$17)","v":""},"",{"$f":"IF(OR(A232=0,B232=\"X\"),0,MIN(IF(AA232:AD232<>0,AA232:AD232)))","v":0},{"$f":"IF(OR(H232=\"\",I232=\"\"),0,IF(H232*0.3/12>I232,MIN(H232*0.3/12,I232*1.1)+AP232,I232*(1+(VLOOKUP('1. Checklist & Certification'!$F$9,'HLCP-E Rent Change'!$A$1:$D$59,4,FALSE)))+AP232))","v":0}]
[null,null,null,null,null,null,null,null,null,null,null,null,null,null,null,null,null,null,null,null,null,null,null,null,null,null,0,0,0,0,0,0,0,0,{"$f":"IF(OR(A233=0,B233=\"X\"),0,IF(OR(S233=\"FHDP\",S233=\"RHCP-B\",U233=\"FHDP\",U233=\"RHCP-B\",W233=\"FHDP\",W233=\"RHCP-B\",Y233=\"FHDP\",Y233=\"RHCP-B\"),TRUNC((MIN(I233,K233)*(1+'1. Checklist & Certification'!$K$43)+AP233)),0))","v":0},{"$f":"IF(OR(A233=0,B233=\"X\"),0,IF(OR(S233=\"CHRP-R\",S233=\"SERA\",S233=\"SUHRP\",U233=\"CHRP-R\",U233=\"SERA\",U233=\"SUHRP\",W233=\"CHRP-R\",W233=\"SERA\",W233=\"SUHRP\",Y233=\"CHRP-R\",Y233=\"SERA\",Y233=\"SUHRP\"),TRUNC((MIN(I233,K233)*(1+'1. Checklist & Certification'!$K$49))),0))","v":0},{"$f":"IF(OR(A233=0,B233=\"X\"),0,IF(OR(S233=\"CALDAP\",S233=\"DPRLP\",U233=\"CALDAP\",U233=\"DPRLP\",W233=\"CALDAP\",W233=\"DPRLP\",Y233=\"CALDAP\",Y233=\"DPRLP\"),TRUNC(((MIN(I233,K233))*(1+'1. Checklist & Certification'!$G$4))),0))","v":0},0,0,0,{"$f":"IF(OR(A233=0,B233=\"X\"),0,IF(OR(S233=\"PRP\",S233=\"LPR\",U233=\"PRP\",U233=\"LPR\",W233=\"PRP\",W233=\"LPR\",Y233=\"PRP\",Y233=\"LPR\"),MAX(I233+AP233,MIN(IF(AE233:AN233<>0,AE233:AN233))),MIN(IF(AE233:AN233<>0,AE233:AN233))))","v":0},{"$f":"IF(A233=0,0,IF(AND(OR(S233=\"Mgr\",S233=0),OR(U233=\"Mgr\",U233=0),OR(W233=\"Mgr\",W233=0)),0,IF(LEFT($A233,2)=\"B*\",VLOOKUP($E233,'1. Checklist & Certification'!$D$26:$E$32,2),IF(LEFT($A233,2)=\"C*\",VLOOKUP($E233,'1. Checklist & Certification'!$F$26:$G$32,2),IF(LEFT($A233,2)=\"D*\",VLOOKUP($E233,'1. Checklist & Certification'!$H$26:$I$32,2),IF(LEFT($A233,2)=\"E*\",VLOOKUP($E233,'1. Checklist & Certification'!$J$26:$K$32,2),VLOOKUP($E233,'1. Checklist & Certification'!$A$26:$B$32,2)))))))","v":0},0,0,null,null,null,null,"","",0,0,0,null,{"$f":"IF(A233=\"\",\"\",'1. Checklist & Certification'!$K$1)","v":""},{"$f":"IF(A233=\"\",\"\",'1. Checklist & Certification'!$C$62)","v":""},{"$f":"IF(A233=\"\",\"\",'1. Checklist & Certification'!$C$6)","v":""},{"$f":"IF(A233=\"\",\"\",'1. Checklist & Certification'!$G$5)","v":""},{"$f":"IFERROR(IF(A233=\"\",\"\",\n_xlfn.LET(_xlpm.Contract,'1. Checklist & Certification'!$C$7,\n_xlpm.Yr,TEXT(MOD(_xlfn.TEXTBEFORE(_xlpm.Contract,\"-\"),100),\"00\"),\n_xlpm.Program,_xlfn.TEXTAFTER(_xlfn.TEXTBEFORE(_xlpm.Contract,\"-\",2),\"-\"),\n_xlpm.CleanProgram,_xlfn.XLOOKUP(_xlpm.Program,SpellCheck[Input],SpellCheck[Correction],_xlpm.Program),\n_xlpm.Number,TEXT(_xlfn.TEXTAFTER(_xlpm.Contract,\"-\",2),\"0000\"),\n_xlfn.CONCAT(_xlpm.Yr,\"-\",_xlpm.CleanProgram,\"-\",_xlpm.Number))\n),\"\")","v":""},{"$f":"IFERROR(IF(A233=\"\",\"\",\n_xlfn.LET(_xlpm.Contract,'1. Checklist & Certification'!$C$8,\n_xlpm.Yr,TEXT(MOD(_xlfn.TEXTBEFORE(_xlpm.Contract,\"-\"),100),\"00\"),\n_xlpm.Program,_xlfn.TEXTAFTER(_xlfn.TEXTBEFORE(_xlpm.Contract,\"-\",2),\"-\"),\n_xlpm.CleanProgram,_xlfn.XLOOKUP(_xlpm.Program,SpellCheck[Input],SpellCheck[Correction],_xlpm.Program),\n_xlpm.Number,TEXT(_xlfn.TEXTAFTER(_xlpm.Contract,\"-\",2),\"0000\"),\n_xlfn.CONCAT(_xlpm.Yr,\"-\",_xlpm.CleanProgram,\"-\",_xlpm.Number))\n),\"\")","v":""},{"$f":"IFERROR(IF(A233=\"\",\"\",\n_xlfn.LET(_xlpm.Contract,'1. Checklist & Certification'!$F$7,\n_xlpm.Yr,TEXT(MOD(_xlfn.TEXTBEFORE(_xlpm.Contract,\"-\"),100),\"00\"),\n_xlpm.Program,_xlfn.TEXTAFTER(_xlfn.TEXTBEFORE(_xlpm.Contract,\"-\",2),\"-\"),\n_xlpm.CleanProgram,_xlfn.XLOOKUP(_xlpm.Program,SpellCheck[Input],SpellCheck[Correction],_xlpm.Program),\n_xlpm.Number,TEXT(_xlfn.TEXTAFTER(_xlpm.Contract,\"-\",2),\"0000\"),\n_xlfn.CONCAT(_xlpm.Yr,\"-\",_xlpm.CleanProgram,\"-\",_xlpm.Number))\n),\"\")","v":""},{"$f":"IFERROR(IF(A233=\"\",\"\",\n_xlfn.LET(_xlpm.Contract,'1. Checklist & Certification'!$F$8,\n_xlpm.Yr,TEXT(MOD(_xlfn.TEXTBEFORE(_xlpm.Contract,\"-\"),100),\"00\"),\n_xlpm.Program,_xlfn.TEXTAFTER(_xlfn.TEXTBEFORE(_xlpm.Contract,\"-\",2),\"-\"),\n_xlpm.CleanProgram,_xlfn.XLOOKUP(_xlpm.Program,SpellCheck[Input],SpellCheck[Correction],_xlpm.Program),\n_xlpm.Number,TEXT(_xlfn.TEXTAFTER(_xlpm.Contract,\"-\",2),\"0000\"),\n_xlfn.CONCAT(_xlpm.Yr,\"-\",_xlpm.CleanProgram,\"-\",_xlpm.Number))\n),\"\")","v":""},{"$f":"IF(A233=\"\",\"\",'1. Checklist & Certification'!$B$9)","v":""},{"$f":"IF(A233=\"\",\"\",'1. Checklist & Certification'!$F$9)","v":""},{"$f":"IF(A233=\"\",\"\",'1. Checklist & Certification'!$C$10)","v":""},{"$f":"IF(A233=\"\",\"\",'1. Checklist & Certification'!$C$11)","v":""},{"$f":"IF(A233=\"\",\"\",'1. Checklist & Certification'!$C$12)","v":""},{"$f":"IF(A233=\"\",\"\",'1. Checklist & Certification'!$B$14)","v":""},{"$f":"IF(A233=\"\",\"\",'1. Checklist & Certification'!$E$14)","v":""},{"$f":"IF(B233=\"\",\"\",'1. Checklist & Certification'!$G$14)","v":""},{"$f":"IF(A233=\"\",\"\",'MHP Family Income & Rent Limits'!$B$3)","v":""},{"$f":"IF(A233=\"\",\"\",'MHP Family Income & Rent Limits'!$J$3)","v":""},{"$f":"IF(A233=\"\",\"\",'MHP Family Income & Rent Limits'!$E$4)","v":""},{"$f":"IF(A233=\"\",\"\",'MHP Family Income & Rent Limits'!$C$7)","v":""},{"$f":"IF(A233=\"\",\"\",'MHP Family Income & Rent Limits'!$F$8)","v":""},{"$f":"IF(A233=\"\",\"\",'1. Checklist & Certification'!$G$4)","v":""},{"$f":"IF(A233=\"\",\"\",'1. Checklist & Certification'!$K$39)","v":""},{"$f":"IF(A233=\"\",\"\",'1. Checklist & Certification'!$K$43)","v":""},{"$f":"IF(A233=\"\",\"\",'1. Checklist & Certification'!$K$45)","v":""},{"$f":"IF(A233=\"\",\"\",'1. Checklist & Certification'!$K$49)","v":""},{"$f":"IF(A233=\"\",\"\",'1. Checklist & Certification'!$K$62)","v":""},{"$f":"IF(A233=\"\",\"\",'1. Checklist & Certification'!$E$66)","v":""},{"$f":"IF(A233=\"\",\"\",'1. Checklist & Certification'!$E$67)","v":""},{"$f":"IF(A233=\"\",\"\",'1. Checklist & Certification'!$E$68)","v":""},{"$f":"IF(A233=\"\",\"\",'1. Checklist & Certification'!$G$66)","v":""},{"$f":"IF(A233=\"\",\"\",'1. Checklist & Certification'!$H$66)","v":""},{"$f":"IF(A233=\"\",\"\",'1. Checklist & Certification'!$I$66)","v":""},{"$f":"IF(A233=\"\",\"\",'1. Checklist & Certification'!$I$67)","v":""},{"$f":"IF(A233=\"\",\"\",'1. Checklist & Certification'!$I$68)","v":""},{"$f":"IF(A233=\"\",\"\",'1. Checklist & Certification'!$B$69)","v":""},{"$f":"IF(A233=\"\",\"\",'1. Checklist & Certification'!$C$69)","v":""},{"$f":"IF(A233=\"\",\"\",'1. Checklist & Certification'!$F$69)","v":""},{"$f":"IF(A233=\"\",\"\",'1. Checklist & Certification'!$G$69)","v":""},{"$f":"IF(A233=\"\",\"\",'1. Checklist & Certification'!$J$69)","v":""},{"$f":"IF(A233=\"\",\"\",'1. Checklist & Certification'!$K$69)","v":""},null,null,{"$f":"IF(AND(OR('1. Checklist & Certification'!$M$16=1,'1. Checklist & Certification'!$M$19=2),AO233>0,B233=\"\",I233>0,AQ233<I233,AV233<>\"Sec 8-Project\"),\"X\",IF(AND(OR('1. Checklist & Certification'!$M$20=4,'1. Checklist & Certification'!$M$21=5,'1. Checklist & Certification'!$M$22=7),AO233>0,B233=\"\",I233>0,K233<I233),\"X\",\"\"))","v":""},{"$f":"IF(A233=\"\",\"\",IF(SUMPRODUCT(-- (ISNUMBER(SEARCH({\"*AHSC*\",\"*FMTW*\",\"*FWHG*\",\"*GHI*\",\"*HHC*\",\"*HLCP*\",\"*HOME*\",\"*LPR*\",\"*MHP*\",\"*NHTF*\",\"*NSP*\",\"*PRP*\",\"*TOD*\",\"*VHHP*\"},'1. Checklist & Certification'!$L$7)))),\"MHP\",\"Legacy\"))","v":""},",,",null,null,null,{"$f":"IF('1. Checklist & Certification'!$M$20=4,\"Both\",IF(OR('1. Checklist & Certification'!$M$15>0,S233=\"CHRP-R\",U233=\"CHRP-R\",W233=\"CHRP-R\",Y233=\"CHRP-R\"),\"Under\",\"No\"))","v":"No"},"No","No",{"$f":"_xlfn.IFS(D233=\"\",\"\",D233=1,'MHP Family Income & Rent Limits'!$E$17,D233=2,'MHP Family Income & Rent Limits'!$F$17,D233=3,'MHP Family Income & Rent Limits'!$G$17,D233=4,'MHP Family Income & Rent Limits'!$H$17,D233=5,'MHP Family Income & Rent Limits'!$I$17,D233=6,'MHP Family Income & Rent Limits'!$J$17,D233=7,'MHP Family Income & Rent Limits'!$K$17,D233=8,'MHP Family Income & Rent Limits'!$L$17)","v":""},"",{"$f":"IF(OR(A233=0,B233=\"X\"),0,MIN(IF(AA233:AD233<>0,AA233:AD233)))","v":0},{"$f":"IF(OR(H233=\"\",I233=\"\"),0,IF(H233*0.3/12>I233,MIN(H233*0.3/12,I233*1.1)+AP233,I233*(1+(VLOOKUP('1. Checklist & Certification'!$F$9,'HLCP-E Rent Change'!$A$1:$D$59,4,FALSE)))+AP233))","v":0}]
[null,null,null,null,null,null,null,null,null,null,null,null,null,null,null,null,null,null,null,null,null,null,null,null,null,null,0,0,0,0,0,0,0,0,{"$f":"IF(OR(A234=0,B234=\"X\"),0,IF(OR(S234=\"FHDP\",S234=\"RHCP-B\",U234=\"FHDP\",U234=\"RHCP-B\",W234=\"FHDP\",W234=\"RHCP-B\",Y234=\"FHDP\",Y234=\"RHCP-B\"),TRUNC((MIN(I234,K234)*(1+'1. Checklist & Certification'!$K$43)+AP234)),0))","v":0},{"$f":"IF(OR(A234=0,B234=\"X\"),0,IF(OR(S234=\"CHRP-R\",S234=\"SERA\",S234=\"SUHRP\",U234=\"CHRP-R\",U234=\"SERA\",U234=\"SUHRP\",W234=\"CHRP-R\",W234=\"SERA\",W234=\"SUHRP\",Y234=\"CHRP-R\",Y234=\"SERA\",Y234=\"SUHRP\"),TRUNC((MIN(I234,K234)*(1+'1. Checklist & Certification'!$K$49))),0))","v":0},{"$f":"IF(OR(A234=0,B234=\"X\"),0,IF(OR(S234=\"CALDAP\",S234=\"DPRLP\",U234=\"CALDAP\",U234=\"DPRLP\",W234=\"CALDAP\",W234=\"DPRLP\",Y234=\"CALDAP\",Y234=\"DPRLP\"),TRUNC(((MIN(I234,K234))*(1+'1. Checklist & Certification'!$G$4))),0))","v":0},0,0,0,{"$f":"IF(OR(A234=0,B234=\"X\"),0,IF(OR(S234=\"PRP\",S234=\"LPR\",U234=\"PRP\",U234=\"LPR\",W234=\"PRP\",W234=\"LPR\",Y234=\"PRP\",Y234=\"LPR\"),MAX(I234+AP234,MIN(IF(AE234:AN234<>0,AE234:AN234))),MIN(IF(AE234:AN234<>0,AE234:AN234))))","v":0},{"$f":"IF(A234=0,0,IF(AND(OR(S234=\"Mgr\",S234=0),OR(U234=\"Mgr\",U234=0),OR(W234=\"Mgr\",W234=0)),0,IF(LEFT($A234,2)=\"B*\",VLOOKUP($E234,'1. Checklist & Certification'!$D$26:$E$32,2),IF(LEFT($A234,2)=\"C*\",VLOOKUP($E234,'1. Checklist & Certification'!$F$26:$G$32,2),IF(LEFT($A234,2)=\"D*\",VLOOKUP($E234,'1. Checklist & Certification'!$H$26:$I$32,2),IF(LEFT($A234,2)=\"E*\",VLOOKUP($E234,'1. Checklist & Certification'!$J$26:$K$32,2),VLOOKUP($E234,'1. Checklist & Certification'!$A$26:$B$32,2)))))))","v":0},0,0,null,null,null,null,"","",0,0,0,null,{"$f":"IF(A234=\"\",\"\",'1. Checklist & Certification'!$K$1)","v":""},{"$f":"IF(A234=\"\",\"\",'1. Checklist & Certification'!$C$62)","v":""},{"$f":"IF(A234=\"\",\"\",'1. Checklist & Certification'!$C$6)","v":""},{"$f":"IF(A234=\"\",\"\",'1. Checklist & Certification'!$G$5)","v":""},{"$f":"IFERROR(IF(A234=\"\",\"\",\n_xlfn.LET(_xlpm.Contract,'1. Checklist & Certification'!$C$7,\n_xlpm.Yr,TEXT(MOD(_xlfn.TEXTBEFORE(_xlpm.Contract,\"-\"),100),\"00\"),\n_xlpm.Program,_xlfn.TEXTAFTER(_xlfn.TEXTBEFORE(_xlpm.Contract,\"-\",2),\"-\"),\n_xlpm.CleanProgram,_xlfn.XLOOKUP(_xlpm.Program,SpellCheck[Input],SpellCheck[Correction],_xlpm.Program),\n_xlpm.Number,TEXT(_xlfn.TEXTAFTER(_xlpm.Contract,\"-\",2),\"0000\"),\n_xlfn.CONCAT(_xlpm.Yr,\"-\",_xlpm.CleanProgram,\"-\",_xlpm.Number))\n),\"\")","v":""},{"$f":"IFERROR(IF(A234=\"\",\"\",\n_xlfn.LET(_xlpm.Contract,'1. Checklist & Certification'!$C$8,\n_xlpm.Yr,TEXT(MOD(_xlfn.TEXTBEFORE(_xlpm.Contract,\"-\"),100),\"00\"),\n_xlpm.Program,_xlfn.TEXTAFTER(_xlfn.TEXTBEFORE(_xlpm.Contract,\"-\",2),\"-\"),\n_xlpm.CleanProgram,_xlfn.XLOOKUP(_xlpm.Program,SpellCheck[Input],SpellCheck[Correction],_xlpm.Program),\n_xlpm.Number,TEXT(_xlfn.TEXTAFTER(_xlpm.Contract,\"-\",2),\"0000\"),\n_xlfn.CONCAT(_xlpm.Yr,\"-\",_xlpm.CleanProgram,\"-\",_xlpm.Number))\n),\"\")","v":""},{"$f":"IFERROR(IF(A234=\"\",\"\",\n_xlfn.LET(_xlpm.Contract,'1. Checklist & Certification'!$F$7,\n_xlpm.Yr,TEXT(MOD(_xlfn.TEXTBEFORE(_xlpm.Contract,\"-\"),100),\"00\"),\n_xlpm.Program,_xlfn.TEXTAFTER(_xlfn.TEXTBEFORE(_xlpm.Contract,\"-\",2),\"-\"),\n_xlpm.CleanProgram,_xlfn.XLOOKUP(_xlpm.Program,SpellCheck[Input],SpellCheck[Correction],_xlpm.Program),\n_xlpm.Number,TEXT(_xlfn.TEXTAFTER(_xlpm.Contract,\"-\",2),\"0000\"),\n_xlfn.CONCAT(_xlpm.Yr,\"-\",_xlpm.CleanProgram,\"-\",_xlpm.Number))\n),\"\")","v":""},{"$f":"IFERROR(IF(A234=\"\",\"\",\n_xlfn.LET(_xlpm.Contract,'1. Checklist & Certification'!$F$8,\n_xlpm.Yr,TEXT(MOD(_xlfn.TEXTBEFORE(_xlpm.Contract,\"-\"),100),\"00\"),\n_xlpm.Program,_xlfn.TEXTAFTER(_xlfn.TEXTBEFORE(_xlpm.Contract,\"-\",2),\"-\"),\n_xlpm.CleanProgram,_xlfn.XLOOKUP(_xlpm.Program,SpellCheck[Input],SpellCheck[Correction],_xlpm.Program),\n_xlpm.Number,TEXT(_xlfn.TEXTAFTER(_xlpm.Contract,\"-\",2),\"0000\"),\n_xlfn.CONCAT(_xlpm.Yr,\"-\",_xlpm.CleanProgram,\"-\",_xlpm.Number))\n),\"\")","v":""},{"$f":"IF(A234=\"\",\"\",'1. Checklist & Certification'!$B$9)","v":""},{"$f":"IF(A234=\"\",\"\",'1. Checklist & Certification'!$F$9)","v":""},{"$f":"IF(A234=\"\",\"\",'1. Checklist & Certification'!$C$10)","v":""},{"$f":"IF(A234=\"\",\"\",'1. Checklist & Certification'!$C$11)","v":""},{"$f":"IF(A234=\"\",\"\",'1. Checklist & Certification'!$C$12)","v":""},{"$f":"IF(A234=\"\",\"\",'1. Checklist & Certification'!$B$14)","v":""},{"$f":"IF(A234=\"\",\"\",'1. Checklist & Certification'!$E$14)","v":""},{"$f":"IF(B234=\"\",\"\",'1. Checklist & Certification'!$G$14)","v":""},{"$f":"IF(A234=\"\",\"\",'MHP Family Income & Rent Limits'!$B$3)","v":""},{"$f":"IF(A234=\"\",\"\",'MHP Family Income & Rent Limits'!$J$3)","v":""},{"$f":"IF(A234=\"\",\"\",'MHP Family Income & Rent Limits'!$E$4)","v":""},{"$f":"IF(A234=\"\",\"\",'MHP Family Income & Rent Limits'!$C$7)","v":""},{"$f":"IF(A234=\"\",\"\",'MHP Family Income & Rent Limits'!$F$8)","v":""},{"$f":"IF(A234=\"\",\"\",'1. Checklist & Certification'!$G$4)","v":""},{"$f":"IF(A234=\"\",\"\",'1. Checklist & Certification'!$K$39)","v":""},{"$f":"IF(A234=\"\",\"\",'1. Checklist & Certification'!$K$43)","v":""},{"$f":"IF(A234=\"\",\"\",'1. Checklist & Certification'!$K$45)","v":""},{"$f":"IF(A234=\"\",\"\",'1. Checklist & Certification'!$K$49)","v":""},{"$f":"IF(A234=\"\",\"\",'1. Checklist & Certification'!$K$62)","v":""},{"$f":"IF(A234=\"\",\"\",'1. Checklist & Certification'!$E$66)","v":""},{"$f":"IF(A234=\"\",\"\",'1. Checklist & Certification'!$E$67)","v":""},{"$f":"IF(A234=\"\",\"\",'1. Checklist & Certification'!$E$68)","v":""},{"$f":"IF(A234=\"\",\"\",'1. Checklist & Certification'!$G$66)","v":""},{"$f":"IF(A234=\"\",\"\",'1. Checklist & Certification'!$H$66)","v":""},{"$f":"IF(A234=\"\",\"\",'1. Checklist & Certification'!$I$66)","v":""},{"$f":"IF(A234=\"\",\"\",'1. Checklist & Certification'!$I$67)","v":""},{"$f":"IF(A234=\"\",\"\",'1. Checklist & Certification'!$I$68)","v":""},{"$f":"IF(A234=\"\",\"\",'1. Checklist & Certification'!$B$69)","v":""},{"$f":"IF(A234=\"\",\"\",'1. Checklist & Certification'!$C$69)","v":""},{"$f":"IF(A234=\"\",\"\",'1. Checklist & Certification'!$F$69)","v":""},{"$f":"IF(A234=\"\",\"\",'1. Checklist & Certification'!$G$69)","v":""},{"$f":"IF(A234=\"\",\"\",'1. Checklist & Certification'!$J$69)","v":""},{"$f":"IF(A234=\"\",\"\",'1. Checklist & Certification'!$K$69)","v":""},null,null,{"$f":"IF(AND(OR('1. Checklist & Certification'!$M$16=1,'1. Checklist & Certification'!$M$19=2),AO234>0,B234=\"\",I234>0,AQ234<I234,AV234<>\"Sec 8-Project\"),\"X\",IF(AND(OR('1. Checklist & Certification'!$M$20=4,'1. Checklist & Certification'!$M$21=5,'1. Checklist & Certification'!$M$22=7),AO234>0,B234=\"\",I234>0,K234<I234),\"X\",\"\"))","v":""},{"$f":"IF(A234=\"\",\"\",IF(SUMPRODUCT(-- (ISNUMBER(SEARCH({\"*AHSC*\",\"*FMTW*\",\"*FWHG*\",\"*GHI*\",\"*HHC*\",\"*HLCP*\",\"*HOME*\",\"*LPR*\",\"*MHP*\",\"*NHTF*\",\"*NSP*\",\"*PRP*\",\"*TOD*\",\"*VHHP*\"},'1. Checklist & Certification'!$L$7)))),\"MHP\",\"Legacy\"))","v":""},",,",null,null,null,{"$f":"IF('1. Checklist & Certification'!$M$20=4,\"Both\",IF(OR('1. Checklist & Certification'!$M$15>0,S234=\"CHRP-R\",U234=\"CHRP-R\",W234=\"CHRP-R\",Y234=\"CHRP-R\"),\"Under\",\"No\"))","v":"No"},"No","No",{"$f":"_xlfn.IFS(D234=\"\",\"\",D234=1,'MHP Family Income & Rent Limits'!$E$17,D234=2,'MHP Family Income & Rent Limits'!$F$17,D234=3,'MHP Family Income & Rent Limits'!$G$17,D234=4,'MHP Family Income & Rent Limits'!$H$17,D234=5,'MHP Family Income & Rent Limits'!$I$17,D234=6,'MHP Family Income & Rent Limits'!$J$17,D234=7,'MHP Family Income & Rent Limits'!$K$17,D234=8,'MHP Family Income & Rent Limits'!$L$17)","v":""},"",{"$f":"IF(OR(A234=0,B234=\"X\"),0,MIN(IF(AA234:AD234<>0,AA234:AD234)))","v":0},{"$f":"IF(OR(H234=\"\",I234=\"\"),0,IF(H234*0.3/12>I234,MIN(H234*0.3/12,I234*1.1)+AP234,I234*(1+(VLOOKUP('1. Checklist & Certification'!$F$9,'HLCP-E Rent Change'!$A$1:$D$59,4,FALSE)))+AP234))","v":0}]
[null,null,null,null,null,null,null,null,null,null,null,null,null,null,null,null,null,null,null,null,null,null,null,null,null,null,0,0,0,0,0,0,0,0,{"$f":"IF(OR(A235=0,B235=\"X\"),0,IF(OR(S235=\"FHDP\",S235=\"RHCP-B\",U235=\"FHDP\",U235=\"RHCP-B\",W235=\"FHDP\",W235=\"RHCP-B\",Y235=\"FHDP\",Y235=\"RHCP-B\"),TRUNC((MIN(I235,K235)*(1+'1. Checklist & Certification'!$K$43)+AP235)),0))","v":0},{"$f":"IF(OR(A235=0,B235=\"X\"),0,IF(OR(S235=\"CHRP-R\",S235=\"SERA\",S235=\"SUHRP\",U235=\"CHRP-R\",U235=\"SERA\",U235=\"SUHRP\",W235=\"CHRP-R\",W235=\"SERA\",W235=\"SUHRP\",Y235=\"CHRP-R\",Y235=\"SERA\",Y235=\"SUHRP\"),TRUNC((MIN(I235,K235)*(1+'1. Checklist & Certification'!$K$49))),0))","v":0},{"$f":"IF(OR(A235=0,B235=\"X\"),0,IF(OR(S235=\"CALDAP\",S235=\"DPRLP\",U235=\"CALDAP\",U235=\"DPRLP\",W235=\"CALDAP\",W235=\"DPRLP\",Y235=\"CALDAP\",Y235=\"DPRLP\"),TRUNC(((MIN(I235,K235))*(1+'1. Checklist & Certification'!$G$4))),0))","v":0},0,0,0,{"$f":"IF(OR(A235=0,B235=\"X\"),0,IF(OR(S235=\"PRP\",S235=\"LPR\",U235=\"PRP\",U235=\"LPR\",W235=\"PRP\",W235=\"LPR\",Y235=\"PRP\",Y235=\"LPR\"),MAX(I235+AP235,MIN(IF(AE235:AN235<>0,AE235:AN235))),MIN(IF(AE235:AN235<>0,AE235:AN235))))","v":0},{"$f":"IF(A235=0,0,IF(AND(OR(S235=\"Mgr\",S235=0),OR(U235=\"Mgr\",U235=0),OR(W235=\"Mgr\",W235=0)),0,IF(LEFT($A235,2)=\"B*\",VLOOKUP($E235,'1. Checklist & Certification'!$D$26:$E$32,2),IF(LEFT($A235,2)=\"C*\",VLOOKUP($E235,'1. Checklist & Certification'!$F$26:$G$32,2),IF(LEFT($A235,2)=\"D*\",VLOOKUP($E235,'1. Checklist & Certification'!$H$26:$I$32,2),IF(LEFT($A235,2)=\"E*\",VLOOKUP($E235,'1. Checklist & Certification'!$J$26:$K$32,2),VLOOKUP($E235,'1. Checklist & Certification'!$A$26:$B$32,2)))))))","v":0},0,0,null,null,null,null,"","",0,0,0,null,{"$f":"IF(A235=\"\",\"\",'1. Checklist & Certification'!$K$1)","v":""},{"$f":"IF(A235=\"\",\"\",'1. Checklist & Certification'!$C$62)","v":""},{"$f":"IF(A235=\"\",\"\",'1. Checklist & Certification'!$C$6)","v":""},{"$f":"IF(A235=\"\",\"\",'1. Checklist & Certification'!$G$5)","v":""},{"$f":"IFERROR(IF(A235=\"\",\"\",\n_xlfn.LET(_xlpm.Contract,'1. Checklist & Certification'!$C$7,\n_xlpm.Yr,TEXT(MOD(_xlfn.TEXTBEFORE(_xlpm.Contract,\"-\"),100),\"00\"),\n_xlpm.Program,_xlfn.TEXTAFTER(_xlfn.TEXTBEFORE(_xlpm.Contract,\"-\",2),\"-\"),\n_xlpm.CleanProgram,_xlfn.XLOOKUP(_xlpm.Program,SpellCheck[Input],SpellCheck[Correction],_xlpm.Program),\n_xlpm.Number,TEXT(_xlfn.TEXTAFTER(_xlpm.Contract,\"-\",2),\"0000\"),\n_xlfn.CONCAT(_xlpm.Yr,\"-\",_xlpm.CleanProgram,\"-\",_xlpm.Number))\n),\"\")","v":""},{"$f":"IFERROR(IF(A235=\"\",\"\",\n_xlfn.LET(_xlpm.Contract,'1. Checklist & Certification'!$C$8,\n_xlpm.Yr,TEXT(MOD(_xlfn.TEXTBEFORE(_xlpm.Contract,\"-\"),100),\"00\"),\n_xlpm.Program,_xlfn.TEXTAFTER(_xlfn.TEXTBEFORE(_xlpm.Contract,\"-\",2),\"-\"),\n_xlpm.CleanProgram,_xlfn.XLOOKUP(_xlpm.Program,SpellCheck[Input],SpellCheck[Correction],_xlpm.Program),\n_xlpm.Number,TEXT(_xlfn.TEXTAFTER(_xlpm.Contract,\"-\",2),\"0000\"),\n_xlfn.CONCAT(_xlpm.Yr,\"-\",_xlpm.CleanProgram,\"-\",_xlpm.Number))\n),\"\")","v":""},{"$f":"IFERROR(IF(A235=\"\",\"\",\n_xlfn.LET(_xlpm.Contract,'1. Checklist & Certification'!$F$7,\n_xlpm.Yr,TEXT(MOD(_xlfn.TEXTBEFORE(_xlpm.Contract,\"-\"),100),\"00\"),\n_xlpm.Program,_xlfn.TEXTAFTER(_xlfn.TEXTBEFORE(_xlpm.Contract,\"-\",2),\"-\"),\n_xlpm.CleanProgram,_xlfn.XLOOKUP(_xlpm.Program,SpellCheck[Input],SpellCheck[Correction],_xlpm.Program),\n_xlpm.Number,TEXT(_xlfn.TEXTAFTER(_xlpm.Contract,\"-\",2),\"0000\"),\n_xlfn.CONCAT(_xlpm.Yr,\"-\",_xlpm.CleanProgram,\"-\",_xlpm.Number))\n),\"\")","v":""},{"$f":"IFERROR(IF(A235=\"\",\"\",\n_xlfn.LET(_xlpm.Contract,'1. Checklist & Certification'!$F$8,\n_xlpm.Yr,TEXT(MOD(_xlfn.TEXTBEFORE(_xlpm.Contract,\"-\"),100),\"00\"),\n_xlpm.Program,_xlfn.TEXTAFTER(_xlfn.TEXTBEFORE(_xlpm.Contract,\"-\",2),\"-\"),\n_xlpm.CleanProgram,_xlfn.XLOOKUP(_xlpm.Program,SpellCheck[Input],SpellCheck[Correction],_xlpm.Program),\n_xlpm.Number,TEXT(_xlfn.TEXTAFTER(_xlpm.Contract,\"-\",2),\"0000\"),\n_xlfn.CONCAT(_xlpm.Yr,\"-\",_xlpm.CleanProgram,\"-\",_xlpm.Number))\n),\"\")","v":""},{"$f":"IF(A235=\"\",\"\",'1. Checklist & Certification'!$B$9)","v":""},{"$f":"IF(A235=\"\",\"\",'1. Checklist & Certification'!$F$9)","v":""},{"$f":"IF(A235=\"\",\"\",'1. Checklist & Certification'!$C$10)","v":""},{"$f":"IF(A235=\"\",\"\",'1. Checklist & Certification'!$C$11)","v":""},{"$f":"IF(A235=\"\",\"\",'1. Checklist & Certification'!$C$12)","v":""},{"$f":"IF(A235=\"\",\"\",'1. Checklist & Certification'!$B$14)","v":""},{"$f":"IF(A235=\"\",\"\",'1. Checklist & Certification'!$E$14)","v":""},{"$f":"IF(B235=\"\",\"\",'1. Checklist & Certification'!$G$14)","v":""},{"$f":"IF(A235=\"\",\"\",'MHP Family Income & Rent Limits'!$B$3)","v":""},{"$f":"IF(A235=\"\",\"\",'MHP Family Income & Rent Limits'!$J$3)","v":""},{"$f":"IF(A235=\"\",\"\",'MHP Family Income & Rent Limits'!$E$4)","v":""},{"$f":"IF(A235=\"\",\"\",'MHP Family Income & Rent Limits'!$C$7)","v":""},{"$f":"IF(A235=\"\",\"\",'MHP Family Income & Rent Limits'!$F$8)","v":""},{"$f":"IF(A235=\"\",\"\",'1. Checklist & Certification'!$G$4)","v":""},{"$f":"IF(A235=\"\",\"\",'1. Checklist & Certification'!$K$39)","v":""},{"$f":"IF(A235=\"\",\"\",'1. Checklist & Certification'!$K$43)","v":""},{"$f":"IF(A235=\"\",\"\",'1. Checklist & Certification'!$K$45)","v":""},{"$f":"IF(A235=\"\",\"\",'1. Checklist & Certification'!$K$49)","v":""},{"$f":"IF(A235=\"\",\"\",'1. Checklist & Certification'!$K$62)","v":""},{"$f":"IF(A235=\"\",\"\",'1. Checklist & Certification'!$E$66)","v":""},{"$f":"IF(A235=\"\",\"\",'1. Checklist & Certification'!$E$67)","v":""},{"$f":"IF(A235=\"\",\"\",'1. Checklist & Certification'!$E$68)","v":""},{"$f":"IF(A235=\"\",\"\",'1. Checklist & Certification'!$G$66)","v":""},{"$f":"IF(A235=\"\",\"\",'1. Checklist & Certification'!$H$66)","v":""},{"$f":"IF(A235=\"\",\"\",'1. Checklist & Certification'!$I$66)","v":""},{"$f":"IF(A235=\"\",\"\",'1. Checklist & Certification'!$I$67)","v":""},{"$f":"IF(A235=\"\",\"\",'1. Checklist & Certification'!$I$68)","v":""},{"$f":"IF(A235=\"\",\"\",'1. Checklist & Certification'!$B$69)","v":""},{"$f":"IF(A235=\"\",\"\",'1. Checklist & Certification'!$C$69)","v":""},{"$f":"IF(A235=\"\",\"\",'1. Checklist & Certification'!$F$69)","v":""},{"$f":"IF(A235=\"\",\"\",'1. Checklist & Certification'!$G$69)","v":""},{"$f":"IF(A235=\"\",\"\",'1. Checklist & Certification'!$J$69)","v":""},{"$f":"IF(A235=\"\",\"\",'1. Checklist & Certification'!$K$69)","v":""},null,null,{"$f":"IF(AND(OR('1. Checklist & Certification'!$M$16=1,'1. Checklist & Certification'!$M$19=2),AO235>0,B235=\"\",I235>0,AQ235<I235,AV235<>\"Sec 8-Project\"),\"X\",IF(AND(OR('1. Checklist & Certification'!$M$20=4,'1. Checklist & Certification'!$M$21=5,'1. Checklist & Certification'!$M$22=7),AO235>0,B235=\"\",I235>0,K235<I235),\"X\",\"\"))","v":""},{"$f":"IF(A235=\"\",\"\",IF(SUMPRODUCT(-- (ISNUMBER(SEARCH({\"*AHSC*\",\"*FMTW*\",\"*FWHG*\",\"*GHI*\",\"*HHC*\",\"*HLCP*\",\"*HOME*\",\"*LPR*\",\"*MHP*\",\"*NHTF*\",\"*NSP*\",\"*PRP*\",\"*TOD*\",\"*VHHP*\"},'1. Checklist & Certification'!$L$7)))),\"MHP\",\"Legacy\"))","v":""},",,",null,null,null,{"$f":"IF('1. Checklist & Certification'!$M$20=4,\"Both\",IF(OR('1. Checklist & Certification'!$M$15>0,S235=\"CHRP-R\",U235=\"CHRP-R\",W235=\"CHRP-R\",Y235=\"CHRP-R\"),\"Under\",\"No\"))","v":"No"},"No","No",{"$f":"_xlfn.IFS(D235=\"\",\"\",D235=1,'MHP Family Income & Rent Limits'!$E$17,D235=2,'MHP Family Income & Rent Limits'!$F$17,D235=3,'MHP Family Income & Rent Limits'!$G$17,D235=4,'MHP Family Income & Rent Limits'!$H$17,D235=5,'MHP Family Income & Rent Limits'!$I$17,D235=6,'MHP Family Income & Rent Limits'!$J$17,D235=7,'MHP Family Income & Rent Limits'!$K$17,D235=8,'MHP Family Income & Rent Limits'!$L$17)","v":""},"",{"$f":"IF(OR(A235=0,B235=\"X\"),0,MIN(IF(AA235:AD235<>0,AA235:AD235)))","v":0},{"$f":"IF(OR(H235=\"\",I235=\"\"),0,IF(H235*0.3/12>I235,MIN(H235*0.3/12,I235*1.1)+AP235,I235*(1+(VLOOKUP('1. Checklist & Certification'!$F$9,'HLCP-E Rent Change'!$A$1:$D$59,4,FALSE)))+AP235))","v":0}]
[null,null,null,null,null,null,null,null,null,null,null,null,null,null,null,null,null,null,null,null,null,null,null,null,null,null,0,0,0,0,0,0,0,0,{"$f":"IF(OR(A236=0,B236=\"X\"),0,IF(OR(S236=\"FHDP\",S236=\"RHCP-B\",U236=\"FHDP\",U236=\"RHCP-B\",W236=\"FHDP\",W236=\"RHCP-B\",Y236=\"FHDP\",Y236=\"RHCP-B\"),TRUNC((MIN(I236,K236)*(1+'1. Checklist & Certification'!$K$43)+AP236)),0))","v":0},{"$f":"IF(OR(A236=0,B236=\"X\"),0,IF(OR(S236=\"CHRP-R\",S236=\"SERA\",S236=\"SUHRP\",U236=\"CHRP-R\",U236=\"SERA\",U236=\"SUHRP\",W236=\"CHRP-R\",W236=\"SERA\",W236=\"SUHRP\",Y236=\"CHRP-R\",Y236=\"SERA\",Y236=\"SUHRP\"),TRUNC((MIN(I236,K236)*(1+'1. Checklist & Certification'!$K$49))),0))","v":0},{"$f":"IF(OR(A236=0,B236=\"X\"),0,IF(OR(S236=\"CALDAP\",S236=\"DPRLP\",U236=\"CALDAP\",U236=\"DPRLP\",W236=\"CALDAP\",W236=\"DPRLP\",Y236=\"CALDAP\",Y236=\"DPRLP\"),TRUNC(((MIN(I236,K236))*(1+'1. Checklist & Certification'!$G$4))),0))","v":0},0,0,0,{"$f":"IF(OR(A236=0,B236=\"X\"),0,IF(OR(S236=\"PRP\",S236=\"LPR\",U236=\"PRP\",U236=\"LPR\",W236=\"PRP\",W236=\"LPR\",Y236=\"PRP\",Y236=\"LPR\"),MAX(I236+AP236,MIN(IF(AE236:AN236<>0,AE236:AN236))),MIN(IF(AE236:AN236<>0,AE236:AN236))))","v":0},{"$f":"IF(A236=0,0,IF(AND(OR(S236=\"Mgr\",S236=0),OR(U236=\"Mgr\",U236=0),OR(W236=\"Mgr\",W236=0)),0,IF(LEFT($A236,2)=\"B*\",VLOOKUP($E236,'1. Checklist & Certification'!$D$26:$E$32,2),IF(LEFT($A236,2)=\"C*\",VLOOKUP($E236,'1. Checklist & Certification'!$F$26:$G$32,2),IF(LEFT($A236,2)=\"D*\",VLOOKUP($E236,'1. Checklist & Certification'!$H$26:$I$32,2),IF(LEFT($A236,2)=\"E*\",VLOOKUP($E236,'1. Checklist & Certification'!$J$26:$K$32,2),VLOOKUP($E236,'1. Checklist & Certification'!$A$26:$B$32,2)))))))","v":0},0,0,null,null,null,null,"","",0,0,0,null,{"$f":"IF(A236=\"\",\"\",'1. Checklist & Certification'!$K$1)","v":""},{"$f":"IF(A236=\"\",\"\",'1. Checklist & Certification'!$C$62)","v":""},{"$f":"IF(A236=\"\",\"\",'1. Checklist & Certification'!$C$6)","v":""},{"$f":"IF(A236=\"\",\"\",'1. Checklist & Certification'!$G$5)","v":""},{"$f":"IFERROR(IF(A236=\"\",\"\",\n_xlfn.LET(_xlpm.Contract,'1. Checklist & Certification'!$C$7,\n_xlpm.Yr,TEXT(MOD(_xlfn.TEXTBEFORE(_xlpm.Contract,\"-\"),100),\"00\"),\n_xlpm.Program,_xlfn.TEXTAFTER(_xlfn.TEXTBEFORE(_xlpm.Contract,\"-\",2),\"-\"),\n_xlpm.CleanProgram,_xlfn.XLOOKUP(_xlpm.Program,SpellCheck[Input],SpellCheck[Correction],_xlpm.Program),\n_xlpm.Number,TEXT(_xlfn.TEXTAFTER(_xlpm.Contract,\"-\",2),\"0000\"),\n_xlfn.CONCAT(_xlpm.Yr,\"-\",_xlpm.CleanProgram,\"-\",_xlpm.Number))\n),\"\")","v":""},{"$f":"IFERROR(IF(A236=\"\",\"\",\n_xlfn.LET(_xlpm.Contract,'1. Checklist & Certification'!$C$8,\n_xlpm.Yr,TEXT(MOD(_xlfn.TEXTBEFORE(_xlpm.Contract,\"-\"),100),\"00\"),\n_xlpm.Program,_xlfn.TEXTAFTER(_xlfn.TEXTBEFORE(_xlpm.Contract,\"-\",2),\"-\"),\n_xlpm.CleanProgram,_xlfn.XLOOKUP(_xlpm.Program,SpellCheck[Input],SpellCheck[Correction],_xlpm.Program),\n_xlpm.Number,TEXT(_xlfn.TEXTAFTER(_xlpm.Contract,\"-\",2),\"0000\"),\n_xlfn.CONCAT(_xlpm.Yr,\"-\",_xlpm.CleanProgram,\"-\",_xlpm.Number))\n),\"\")","v":""},{"$f":"IFERROR(IF(A236=\"\",\"\",\n_xlfn.LET(_xlpm.Contract,'1. Checklist & Certification'!$F$7,\n_xlpm.Yr,TEXT(MOD(_xlfn.TEXTBEFORE(_xlpm.Contract,\"-\"),100),\"00\"),\n_xlpm.Program,_xlfn.TEXTAFTER(_xlfn.TEXTBEFORE(_xlpm.Contract,\"-\",2),\"-\"),\n_xlpm.CleanProgram,_xlfn.XLOOKUP(_xlpm.Program,SpellCheck[Input],SpellCheck[Correction],_xlpm.Program),\n_xlpm.Number,TEXT(_xlfn.TEXTAFTER(_xlpm.Contract,\"-\",2),\"0000\"),\n_xlfn.CONCAT(_xlpm.Yr,\"-\",_xlpm.CleanProgram,\"-\",_xlpm.Number))\n),\"\")","v":""},{"$f":"IFERROR(IF(A236=\"\",\"\",\n_xlfn.LET(_xlpm.Contract,'1. Checklist & Certification'!$F$8,\n_xlpm.Yr,TEXT(MOD(_xlfn.TEXTBEFORE(_xlpm.Contract,\"-\"),100),\"00\"),\n_xlpm.Program,_xlfn.TEXTAFTER(_xlfn.TEXTBEFORE(_xlpm.Contract,\"-\",2),\"-\"),\n_xlpm.CleanProgram,_xlfn.XLOOKUP(_xlpm.Program,SpellCheck[Input],SpellCheck[Correction],_xlpm.Program),\n_xlpm.Number,TEXT(_xlfn.TEXTAFTER(_xlpm.Contract,\"-\",2),\"0000\"),\n_xlfn.CONCAT(_xlpm.Yr,\"-\",_xlpm.CleanProgram,\"-\",_xlpm.Number))\n),\"\")","v":""},{"$f":"IF(A236=\"\",\"\",'1. Checklist & Certification'!$B$9)","v":""},{"$f":"IF(A236=\"\",\"\",'1. Checklist & Certification'!$F$9)","v":""},{"$f":"IF(A236=\"\",\"\",'1. Checklist & Certification'!$C$10)","v":""},{"$f":"IF(A236=\"\",\"\",'1. Checklist & Certification'!$C$11)","v":""},{"$f":"IF(A236=\"\",\"\",'1. Checklist & Certification'!$C$12)","v":""},{"$f":"IF(A236=\"\",\"\",'1. Checklist & Certification'!$B$14)","v":""},{"$f":"IF(A236=\"\",\"\",'1. Checklist & Certification'!$E$14)","v":""},{"$f":"IF(B236=\"\",\"\",'1. Checklist & Certification'!$G$14)","v":""},{"$f":"IF(A236=\"\",\"\",'MHP Family Income & Rent Limits'!$B$3)","v":""},{"$f":"IF(A236=\"\",\"\",'MHP Family Income & Rent Limits'!$J$3)","v":""},{"$f":"IF(A236=\"\",\"\",'MHP Family Income & Rent Limits'!$E$4)","v":""},{"$f":"IF(A236=\"\",\"\",'MHP Family Income & Rent Limits'!$C$7)","v":""},{"$f":"IF(A236=\"\",\"\",'MHP Family Income & Rent Limits'!$F$8)","v":""},{"$f":"IF(A236=\"\",\"\",'1. Checklist & Certification'!$G$4)","v":""},{"$f":"IF(A236=\"\",\"\",'1. Checklist & Certification'!$K$39)","v":""},{"$f":"IF(A236=\"\",\"\",'1. Checklist & Certification'!$K$43)","v":""},{"$f":"IF(A236=\"\",\"\",'1. Checklist & Certification'!$K$45)","v":""},{"$f":"IF(A236=\"\",\"\",'1. Checklist & Certification'!$K$49)","v":""},{"$f":"IF(A236=\"\",\"\",'1. Checklist & Certification'!$K$62)","v":""},{"$f":"IF(A236=\"\",\"\",'1. Checklist & Certification'!$E$66)","v":""},{"$f":"IF(A236=\"\",\"\",'1. Checklist & Certification'!$E$67)","v":""},{"$f":"IF(A236=\"\",\"\",'1. Checklist & Certification'!$E$68)","v":""},{"$f":"IF(A236=\"\",\"\",'1. Checklist & Certification'!$G$66)","v":""},{"$f":"IF(A236=\"\",\"\",'1. Checklist & Certification'!$H$66)","v":""},{"$f":"IF(A236=\"\",\"\",'1. Checklist & Certification'!$I$66)","v":""},{"$f":"IF(A236=\"\",\"\",'1. Checklist & Certification'!$I$67)","v":""},{"$f":"IF(A236=\"\",\"\",'1. Checklist & Certification'!$I$68)","v":""},{"$f":"IF(A236=\"\",\"\",'1. Checklist & Certification'!$B$69)","v":""},{"$f":"IF(A236=\"\",\"\",'1. Checklist & Certification'!$C$69)","v":""},{"$f":"IF(A236=\"\",\"\",'1. Checklist & Certification'!$F$69)","v":""},{"$f":"IF(A236=\"\",\"\",'1. Checklist & Certification'!$G$69)","v":""},{"$f":"IF(A236=\"\",\"\",'1. Checklist & Certification'!$J$69)","v":""},{"$f":"IF(A236=\"\",\"\",'1. Checklist & Certification'!$K$69)","v":""},null,null,{"$f":"IF(AND(OR('1. Checklist & Certification'!$M$16=1,'1. Checklist & Certification'!$M$19=2),AO236>0,B236=\"\",I236>0,AQ236<I236,AV236<>\"Sec 8-Project\"),\"X\",IF(AND(OR('1. Checklist & Certification'!$M$20=4,'1. Checklist & Certification'!$M$21=5,'1. Checklist & Certification'!$M$22=7),AO236>0,B236=\"\",I236>0,K236<I236),\"X\",\"\"))","v":""},{"$f":"IF(A236=\"\",\"\",IF(SUMPRODUCT(-- (ISNUMBER(SEARCH({\"*AHSC*\",\"*FMTW*\",\"*FWHG*\",\"*GHI*\",\"*HHC*\",\"*HLCP*\",\"*HOME*\",\"*LPR*\",\"*MHP*\",\"*NHTF*\",\"*NSP*\",\"*PRP*\",\"*TOD*\",\"*VHHP*\"},'1. Checklist & Certification'!$L$7)))),\"MHP\",\"Legacy\"))","v":""},",,",null,null,null,{"$f":"IF('1. Checklist & Certification'!$M$20=4,\"Both\",IF(OR('1. Checklist & Certification'!$M$15>0,S236=\"CHRP-R\",U236=\"CHRP-R\",W236=\"CHRP-R\",Y236=\"CHRP-R\"),\"Under\",\"No\"))","v":"No"},"No","No",{"$f":"_xlfn.IFS(D236=\"\",\"\",D236=1,'MHP Family Income & Rent Limits'!$E$17,D236=2,'MHP Family Income & Rent Limits'!$F$17,D236=3,'MHP Family Income & Rent Limits'!$G$17,D236=4,'MHP Family Income & Rent Limits'!$H$17,D236=5,'MHP Family Income & Rent Limits'!$I$17,D236=6,'MHP Family Income & Rent Limits'!$J$17,D236=7,'MHP Family Income & Rent Limits'!$K$17,D236=8,'MHP Family Income & Rent Limits'!$L$17)","v":""},"",{"$f":"IF(OR(A236=0,B236=\"X\"),0,MIN(IF(AA236:AD236<>0,AA236:AD236)))","v":0},{"$f":"IF(OR(H236=\"\",I236=\"\"),0,IF(H236*0.3/12>I236,MIN(H236*0.3/12,I236*1.1)+AP236,I236*(1+(VLOOKUP('1. Checklist & Certification'!$F$9,'HLCP-E Rent Change'!$A$1:$D$59,4,FALSE)))+AP236))","v":0}]
[null,null,null,null,null,null,null,null,null,null,null,null,null,null,null,null,null,null,null,null,null,null,null,null,null,null,0,0,0,0,0,0,0,0,{"$f":"IF(OR(A237=0,B237=\"X\"),0,IF(OR(S237=\"FHDP\",S237=\"RHCP-B\",U237=\"FHDP\",U237=\"RHCP-B\",W237=\"FHDP\",W237=\"RHCP-B\",Y237=\"FHDP\",Y237=\"RHCP-B\"),TRUNC((MIN(I237,K237)*(1+'1. Checklist & Certification'!$K$43)+AP237)),0))","v":0},{"$f":"IF(OR(A237=0,B237=\"X\"),0,IF(OR(S237=\"CHRP-R\",S237=\"SERA\",S237=\"SUHRP\",U237=\"CHRP-R\",U237=\"SERA\",U237=\"SUHRP\",W237=\"CHRP-R\",W237=\"SERA\",W237=\"SUHRP\",Y237=\"CHRP-R\",Y237=\"SERA\",Y237=\"SUHRP\"),TRUNC((MIN(I237,K237)*(1+'1. Checklist & Certification'!$K$49))),0))","v":0},{"$f":"IF(OR(A237=0,B237=\"X\"),0,IF(OR(S237=\"CALDAP\",S237=\"DPRLP\",U237=\"CALDAP\",U237=\"DPRLP\",W237=\"CALDAP\",W237=\"DPRLP\",Y237=\"CALDAP\",Y237=\"DPRLP\"),TRUNC(((MIN(I237,K237))*(1+'1. Checklist & Certification'!$G$4))),0))","v":0},0,0,0,{"$f":"IF(OR(A237=0,B237=\"X\"),0,IF(OR(S237=\"PRP\",S237=\"LPR\",U237=\"PRP\",U237=\"LPR\",W237=\"PRP\",W237=\"LPR\",Y237=\"PRP\",Y237=\"LPR\"),MAX(I237+AP237,MIN(IF(AE237:AN237<>0,AE237:AN237))),MIN(IF(AE237:AN237<>0,AE237:AN237))))","v":0},{"$f":"IF(A237=0,0,IF(AND(OR(S237=\"Mgr\",S237=0),OR(U237=\"Mgr\",U237=0),OR(W237=\"Mgr\",W237=0)),0,IF(LEFT($A237,2)=\"B*\",VLOOKUP($E237,'1. Checklist & Certification'!$D$26:$E$32,2),IF(LEFT($A237,2)=\"C*\",VLOOKUP($E237,'1. Checklist & Certification'!$F$26:$G$32,2),IF(LEFT($A237,2)=\"D*\",VLOOKUP($E237,'1. Checklist & Certification'!$H$26:$I$32,2),IF(LEFT($A237,2)=\"E*\",VLOOKUP($E237,'1. Checklist & Certification'!$J$26:$K$32,2),VLOOKUP($E237,'1. Checklist & Certification'!$A$26:$B$32,2)))))))","v":0},0,0,null,null,null,null,"","",0,0,0,null,{"$f":"IF(A237=\"\",\"\",'1. Checklist & Certification'!$K$1)","v":""},{"$f":"IF(A237=\"\",\"\",'1. Checklist & Certification'!$C$62)","v":""},{"$f":"IF(A237=\"\",\"\",'1. Checklist & Certification'!$C$6)","v":""},{"$f":"IF(A237=\"\",\"\",'1. Checklist & Certification'!$G$5)","v":""},{"$f":"IFERROR(IF(A237=\"\",\"\",\n_xlfn.LET(_xlpm.Contract,'1. Checklist & Certification'!$C$7,\n_xlpm.Yr,TEXT(MOD(_xlfn.TEXTBEFORE(_xlpm.Contract,\"-\"),100),\"00\"),\n_xlpm.Program,_xlfn.TEXTAFTER(_xlfn.TEXTBEFORE(_xlpm.Contract,\"-\",2),\"-\"),\n_xlpm.CleanProgram,_xlfn.XLOOKUP(_xlpm.Program,SpellCheck[Input],SpellCheck[Correction],_xlpm.Program),\n_xlpm.Number,TEXT(_xlfn.TEXTAFTER(_xlpm.Contract,\"-\",2),\"0000\"),\n_xlfn.CONCAT(_xlpm.Yr,\"-\",_xlpm.CleanProgram,\"-\",_xlpm.Number))\n),\"\")","v":""},{"$f":"IFERROR(IF(A237=\"\",\"\",\n_xlfn.LET(_xlpm.Contract,'1. Checklist & Certification'!$C$8,\n_xlpm.Yr,TEXT(MOD(_xlfn.TEXTBEFORE(_xlpm.Contract,\"-\"),100),\"00\"),\n_xlpm.Program,_xlfn.TEXTAFTER(_xlfn.TEXTBEFORE(_xlpm.Contract,\"-\",2),\"-\"),\n_xlpm.CleanProgram,_xlfn.XLOOKUP(_xlpm.Program,SpellCheck[Input],SpellCheck[Correction],_xlpm.Program),\n_xlpm.Number,TEXT(_xlfn.TEXTAFTER(_xlpm.Contract,\"-\",2),\"0000\"),\n_xlfn.CONCAT(_xlpm.Yr,\"-\",_xlpm.CleanProgram,\"-\",_xlpm.Number))\n),\"\")","v":""},{"$f":"IFERROR(IF(A237=\"\",\"\",\n_xlfn.LET(_xlpm.Contract,'1. Checklist & Certification'!$F$7,\n_xlpm.Yr,TEXT(MOD(_xlfn.TEXTBEFORE(_xlpm.Contract,\"-\"),100),\"00\"),\n_xlpm.Program,_xlfn.TEXTAFTER(_xlfn.TEXTBEFORE(_xlpm.Contract,\"-\",2),\"-\"),\n_xlpm.CleanProgram,_xlfn.XLOOKUP(_xlpm.Program,SpellCheck[Input],SpellCheck[Correction],_xlpm.Program),\n_xlpm.Number,TEXT(_xlfn.TEXTAFTER(_xlpm.Contract,\"-\",2),\"0000\"),\n_xlfn.CONCAT(_xlpm.Yr,\"-\",_xlpm.CleanProgram,\"-\",_xlpm.Number))\n),\"\")","v":""},{"$f":"IFERROR(IF(A237=\"\",\"\",\n_xlfn.LET(_xlpm.Contract,'1. Checklist & Certification'!$F$8,\n_xlpm.Yr,TEXT(MOD(_xlfn.TEXTBEFORE(_xlpm.Contract,\"-\"),100),\"00\"),\n_xlpm.Program,_xlfn.TEXTAFTER(_xlfn.TEXTBEFORE(_xlpm.Contract,\"-\",2),\"-\"),\n_xlpm.CleanProgram,_xlfn.XLOOKUP(_xlpm.Program,SpellCheck[Input],SpellCheck[Correction],_xlpm.Program),\n_xlpm.Number,TEXT(_xlfn.TEXTAFTER(_xlpm.Contract,\"-\",2),\"0000\"),\n_xlfn.CONCAT(_xlpm.Yr,\"-\",_xlpm.CleanProgram,\"-\",_xlpm.Number))\n),\"\")","v":""},{"$f":"IF(A237=\"\",\"\",'1. Checklist & Certification'!$B$9)","v":""},{"$f":"IF(A237=\"\",\"\",'1. Checklist & Certification'!$F$9)","v":""},{"$f":"IF(A237=\"\",\"\",'1. Checklist & Certification'!$C$10)","v":""},{"$f":"IF(A237=\"\",\"\",'1. Checklist & Certification'!$C$11)","v":""},{"$f":"IF(A237=\"\",\"\",'1. Checklist & Certification'!$C$12)","v":""},{"$f":"IF(A237=\"\",\"\",'1. Checklist & Certification'!$B$14)","v":""},{"$f":"IF(A237=\"\",\"\",'1. Checklist & Certification'!$E$14)","v":""},{"$f":"IF(B237=\"\",\"\",'1. Checklist & Certification'!$G$14)","v":""},{"$f":"IF(A237=\"\",\"\",'MHP Family Income & Rent Limits'!$B$3)","v":""},{"$f":"IF(A237=\"\",\"\",'MHP Family Income & Rent Limits'!$J$3)","v":""},{"$f":"IF(A237=\"\",\"\",'MHP Family Income & Rent Limits'!$E$4)","v":""},{"$f":"IF(A237=\"\",\"\",'MHP Family Income & Rent Limits'!$C$7)","v":""},{"$f":"IF(A237=\"\",\"\",'MHP Family Income & Rent Limits'!$F$8)","v":""},{"$f":"IF(A237=\"\",\"\",'1. Checklist & Certification'!$G$4)","v":""},{"$f":"IF(A237=\"\",\"\",'1. Checklist & Certification'!$K$39)","v":""},{"$f":"IF(A237=\"\",\"\",'1. Checklist & Certification'!$K$43)","v":""},{"$f":"IF(A237=\"\",\"\",'1. Checklist & Certification'!$K$45)","v":""},{"$f":"IF(A237=\"\",\"\",'1. Checklist & Certification'!$K$49)","v":""},{"$f":"IF(A237=\"\",\"\",'1. Checklist & Certification'!$K$62)","v":""},{"$f":"IF(A237=\"\",\"\",'1. Checklist & Certification'!$E$66)","v":""},{"$f":"IF(A237=\"\",\"\",'1. Checklist & Certification'!$E$67)","v":""},{"$f":"IF(A237=\"\",\"\",'1. Checklist & Certification'!$E$68)","v":""},{"$f":"IF(A237=\"\",\"\",'1. Checklist & Certification'!$G$66)","v":""},{"$f":"IF(A237=\"\",\"\",'1. Checklist & Certification'!$H$66)","v":""},{"$f":"IF(A237=\"\",\"\",'1. Checklist & Certification'!$I$66)","v":""},{"$f":"IF(A237=\"\",\"\",'1. Checklist & Certification'!$I$67)","v":""},{"$f":"IF(A237=\"\",\"\",'1. Checklist & Certification'!$I$68)","v":""},{"$f":"IF(A237=\"\",\"\",'1. Checklist & Certification'!$B$69)","v":""},{"$f":"IF(A237=\"\",\"\",'1. Checklist & Certification'!$C$69)","v":""},{"$f":"IF(A237=\"\",\"\",'1. Checklist & Certification'!$F$69)","v":""},{"$f":"IF(A237=\"\",\"\",'1. Checklist & Certification'!$G$69)","v":""},{"$f":"IF(A237=\"\",\"\",'1. Checklist & Certification'!$J$69)","v":""},{"$f":"IF(A237=\"\",\"\",'1. Checklist & Certification'!$K$69)","v":""},null,null,{"$f":"IF(AND(OR('1. Checklist & Certification'!$M$16=1,'1. Checklist & Certification'!$M$19=2),AO237>0,B237=\"\",I237>0,AQ237<I237,AV237<>\"Sec 8-Project\"),\"X\",IF(AND(OR('1. Checklist & Certification'!$M$20=4,'1. Checklist & Certification'!$M$21=5,'1. Checklist & Certification'!$M$22=7),AO237>0,B237=\"\",I237>0,K237<I237),\"X\",\"\"))","v":""},{"$f":"IF(A237=\"\",\"\",IF(SUMPRODUCT(-- (ISNUMBER(SEARCH({\"*AHSC*\",\"*FMTW*\",\"*FWHG*\",\"*GHI*\",\"*HHC*\",\"*HLCP*\",\"*HOME*\",\"*LPR*\",\"*MHP*\",\"*NHTF*\",\"*NSP*\",\"*PRP*\",\"*TOD*\",\"*VHHP*\"},'1. Checklist & Certification'!$L$7)))),\"MHP\",\"Legacy\"))","v":""},",,",null,null,null,{"$f":"IF('1. Checklist & Certification'!$M$20=4,\"Both\",IF(OR('1. Checklist & Certification'!$M$15>0,S237=\"CHRP-R\",U237=\"CHRP-R\",W237=\"CHRP-R\",Y237=\"CHRP-R\"),\"Under\",\"No\"))","v":"No"},"No","No",{"$f":"_xlfn.IFS(D237=\"\",\"\",D237=1,'MHP Family Income & Rent Limits'!$E$17,D237=2,'MHP Family Income & Rent Limits'!$F$17,D237=3,'MHP Family Income & Rent Limits'!$G$17,D237=4,'MHP Family Income & Rent Limits'!$H$17,D237=5,'MHP Family Income & Rent Limits'!$I$17,D237=6,'MHP Family Income & Rent Limits'!$J$17,D237=7,'MHP Family Income & Rent Limits'!$K$17,D237=8,'MHP Family Income & Rent Limits'!$L$17)","v":""},"",{"$f":"IF(OR(A237=0,B237=\"X\"),0,MIN(IF(AA237:AD237<>0,AA237:AD237)))","v":0},{"$f":"IF(OR(H237=\"\",I237=\"\"),0,IF(H237*0.3/12>I237,MIN(H237*0.3/12,I237*1.1)+AP237,I237*(1+(VLOOKUP('1. Checklist & Certification'!$F$9,'HLCP-E Rent Change'!$A$1:$D$59,4,FALSE)))+AP237))","v":0}]
[null,null,null,null,null,null,null,null,null,null,null,null,null,null,null,null,null,null,null,null,null,null,null,null,null,null,0,0,0,0,0,0,0,0,{"$f":"IF(OR(A238=0,B238=\"X\"),0,IF(OR(S238=\"FHDP\",S238=\"RHCP-B\",U238=\"FHDP\",U238=\"RHCP-B\",W238=\"FHDP\",W238=\"RHCP-B\",Y238=\"FHDP\",Y238=\"RHCP-B\"),TRUNC((MIN(I238,K238)*(1+'1. Checklist & Certification'!$K$43)+AP238)),0))","v":0},{"$f":"IF(OR(A238=0,B238=\"X\"),0,IF(OR(S238=\"CHRP-R\",S238=\"SERA\",S238=\"SUHRP\",U238=\"CHRP-R\",U238=\"SERA\",U238=\"SUHRP\",W238=\"CHRP-R\",W238=\"SERA\",W238=\"SUHRP\",Y238=\"CHRP-R\",Y238=\"SERA\",Y238=\"SUHRP\"),TRUNC((MIN(I238,K238)*(1+'1. Checklist & Certification'!$K$49))),0))","v":0},{"$f":"IF(OR(A238=0,B238=\"X\"),0,IF(OR(S238=\"CALDAP\",S238=\"DPRLP\",U238=\"CALDAP\",U238=\"DPRLP\",W238=\"CALDAP\",W238=\"DPRLP\",Y238=\"CALDAP\",Y238=\"DPRLP\"),TRUNC(((MIN(I238,K238))*(1+'1. Checklist & Certification'!$G$4))),0))","v":0},0,0,0,{"$f":"IF(OR(A238=0,B238=\"X\"),0,IF(OR(S238=\"PRP\",S238=\"LPR\",U238=\"PRP\",U238=\"LPR\",W238=\"PRP\",W238=\"LPR\",Y238=\"PRP\",Y238=\"LPR\"),MAX(I238+AP238,MIN(IF(AE238:AN238<>0,AE238:AN238))),MIN(IF(AE238:AN238<>0,AE238:AN238))))","v":0},{"$f":"IF(A238=0,0,IF(AND(OR(S238=\"Mgr\",S238=0),OR(U238=\"Mgr\",U238=0),OR(W238=\"Mgr\",W238=0)),0,IF(LEFT($A238,2)=\"B*\",VLOOKUP($E238,'1. Checklist & Certification'!$D$26:$E$32,2),IF(LEFT($A238,2)=\"C*\",VLOOKUP($E238,'1. Checklist & Certification'!$F$26:$G$32,2),IF(LEFT($A238,2)=\"D*\",VLOOKUP($E238,'1. Checklist & Certification'!$H$26:$I$32,2),IF(LEFT($A238,2)=\"E*\",VLOOKUP($E238,'1. Checklist & Certification'!$J$26:$K$32,2),VLOOKUP($E238,'1. Checklist & Certification'!$A$26:$B$32,2)))))))","v":0},0,0,null,null,null,null,"","",0,0,0,null,{"$f":"IF(A238=\"\",\"\",'1. Checklist & Certification'!$K$1)","v":""},{"$f":"IF(A238=\"\",\"\",'1. Checklist & Certification'!$C$62)","v":""},{"$f":"IF(A238=\"\",\"\",'1. Checklist & Certification'!$C$6)","v":""},{"$f":"IF(A238=\"\",\"\",'1. Checklist & Certification'!$G$5)","v":""},{"$f":"IFERROR(IF(A238=\"\",\"\",\n_xlfn.LET(_xlpm.Contract,'1. Checklist & Certification'!$C$7,\n_xlpm.Yr,TEXT(MOD(_xlfn.TEXTBEFORE(_xlpm.Contract,\"-\"),100),\"00\"),\n_xlpm.Program,_xlfn.TEXTAFTER(_xlfn.TEXTBEFORE(_xlpm.Contract,\"-\",2),\"-\"),\n_xlpm.CleanProgram,_xlfn.XLOOKUP(_xlpm.Program,SpellCheck[Input],SpellCheck[Correction],_xlpm.Program),\n_xlpm.Number,TEXT(_xlfn.TEXTAFTER(_xlpm.Contract,\"-\",2),\"0000\"),\n_xlfn.CONCAT(_xlpm.Yr,\"-\",_xlpm.CleanProgram,\"-\",_xlpm.Number))\n),\"\")","v":""},{"$f":"IFERROR(IF(A238=\"\",\"\",\n_xlfn.LET(_xlpm.Contract,'1. Checklist & Certification'!$C$8,\n_xlpm.Yr,TEXT(MOD(_xlfn.TEXTBEFORE(_xlpm.Contract,\"-\"),100),\"00\"),\n_xlpm.Program,_xlfn.TEXTAFTER(_xlfn.TEXTBEFORE(_xlpm.Contract,\"-\",2),\"-\"),\n_xlpm.CleanProgram,_xlfn.XLOOKUP(_xlpm.Program,SpellCheck[Input],SpellCheck[Correction],_xlpm.Program),\n_xlpm.Number,TEXT(_xlfn.TEXTAFTER(_xlpm.Contract,\"-\",2),\"0000\"),\n_xlfn.CONCAT(_xlpm.Yr,\"-\",_xlpm.CleanProgram,\"-\",_xlpm.Number))\n),\"\")","v":""},{"$f":"IFERROR(IF(A238=\"\",\"\",\n_xlfn.LET(_xlpm.Contract,'1. Checklist & Certification'!$F$7,\n_xlpm.Yr,TEXT(MOD(_xlfn.TEXTBEFORE(_xlpm.Contract,\"-\"),100),\"00\"),\n_xlpm.Program,_xlfn.TEXTAFTER(_xlfn.TEXTBEFORE(_xlpm.Contract,\"-\",2),\"-\"),\n_xlpm.CleanProgram,_xlfn.XLOOKUP(_xlpm.Program,SpellCheck[Input],SpellCheck[Correction],_xlpm.Program),\n_xlpm.Number,TEXT(_xlfn.TEXTAFTER(_xlpm.Contract,\"-\",2),\"0000\"),\n_xlfn.CONCAT(_xlpm.Yr,\"-\",_xlpm.CleanProgram,\"-\",_xlpm.Number))\n),\"\")","v":""},{"$f":"IFERROR(IF(A238=\"\",\"\",\n_xlfn.LET(_xlpm.Contract,'1. Checklist & Certification'!$F$8,\n_xlpm.Yr,TEXT(MOD(_xlfn.TEXTBEFORE(_xlpm.Contract,\"-\"),100),\"00\"),\n_xlpm.Program,_xlfn.TEXTAFTER(_xlfn.TEXTBEFORE(_xlpm.Contract,\"-\",2),\"-\"),\n_xlpm.CleanProgram,_xlfn.XLOOKUP(_xlpm.Program,SpellCheck[Input],SpellCheck[Correction],_xlpm.Program),\n_xlpm.Number,TEXT(_xlfn.TEXTAFTER(_xlpm.Contract,\"-\",2),\"0000\"),\n_xlfn.CONCAT(_xlpm.Yr,\"-\",_xlpm.CleanProgram,\"-\",_xlpm.Number))\n),\"\")","v":""},{"$f":"IF(A238=\"\",\"\",'1. Checklist & Certification'!$B$9)","v":""},{"$f":"IF(A238=\"\",\"\",'1. Checklist & Certification'!$F$9)","v":""},{"$f":"IF(A238=\"\",\"\",'1. Checklist & Certification'!$C$10)","v":""},{"$f":"IF(A238=\"\",\"\",'1. Checklist & Certification'!$C$11)","v":""},{"$f":"IF(A238=\"\",\"\",'1. Checklist & Certification'!$C$12)","v":""},{"$f":"IF(A238=\"\",\"\",'1. Checklist & Certification'!$B$14)","v":""},{"$f":"IF(A238=\"\",\"\",'1. Checklist & Certification'!$E$14)","v":""},{"$f":"IF(B238=\"\",\"\",'1. Checklist & Certification'!$G$14)","v":""},{"$f":"IF(A238=\"\",\"\",'MHP Family Income & Rent Limits'!$B$3)","v":""},{"$f":"IF(A238=\"\",\"\",'MHP Family Income & Rent Limits'!$J$3)","v":""},{"$f":"IF(A238=\"\",\"\",'MHP Family Income & Rent Limits'!$E$4)","v":""},{"$f":"IF(A238=\"\",\"\",'MHP Family Income & Rent Limits'!$C$7)","v":""},{"$f":"IF(A238=\"\",\"\",'MHP Family Income & Rent Limits'!$F$8)","v":""},{"$f":"IF(A238=\"\",\"\",'1. Checklist & Certification'!$G$4)","v":""},{"$f":"IF(A238=\"\",\"\",'1. Checklist & Certification'!$K$39)","v":""},{"$f":"IF(A238=\"\",\"\",'1. Checklist & Certification'!$K$43)","v":""},{"$f":"IF(A238=\"\",\"\",'1. Checklist & Certification'!$K$45)","v":""},{"$f":"IF(A238=\"\",\"\",'1. Checklist & Certification'!$K$49)","v":""},{"$f":"IF(A238=\"\",\"\",'1. Checklist & Certification'!$K$62)","v":""},{"$f":"IF(A238=\"\",\"\",'1. Checklist & Certification'!$E$66)","v":""},{"$f":"IF(A238=\"\",\"\",'1. Checklist & Certification'!$E$67)","v":""},{"$f":"IF(A238=\"\",\"\",'1. Checklist & Certification'!$E$68)","v":""},{"$f":"IF(A238=\"\",\"\",'1. Checklist & Certification'!$G$66)","v":""},{"$f":"IF(A238=\"\",\"\",'1. Checklist & Certification'!$H$66)","v":""},{"$f":"IF(A238=\"\",\"\",'1. Checklist & Certification'!$I$66)","v":""},{"$f":"IF(A238=\"\",\"\",'1. Checklist & Certification'!$I$67)","v":""},{"$f":"IF(A238=\"\",\"\",'1. Checklist & Certification'!$I$68)","v":""},{"$f":"IF(A238=\"\",\"\",'1. Checklist & Certification'!$B$69)","v":""},{"$f":"IF(A238=\"\",\"\",'1. Checklist & Certification'!$C$69)","v":""},{"$f":"IF(A238=\"\",\"\",'1. Checklist & Certification'!$F$69)","v":""},{"$f":"IF(A238=\"\",\"\",'1. Checklist & Certification'!$G$69)","v":""},{"$f":"IF(A238=\"\",\"\",'1. Checklist & Certification'!$J$69)","v":""},{"$f":"IF(A238=\"\",\"\",'1. Checklist & Certification'!$K$69)","v":""},null,null,{"$f":"IF(AND(OR('1. Checklist & Certification'!$M$16=1,'1. Checklist & Certification'!$M$19=2),AO238>0,B238=\"\",I238>0,AQ238<I238,AV238<>\"Sec 8-Project\"),\"X\",IF(AND(OR('1. Checklist & Certification'!$M$20=4,'1. Checklist & Certification'!$M$21=5,'1. Checklist & Certification'!$M$22=7),AO238>0,B238=\"\",I238>0,K238<I238),\"X\",\"\"))","v":""},{"$f":"IF(A238=\"\",\"\",IF(SUMPRODUCT(-- (ISNUMBER(SEARCH({\"*AHSC*\",\"*FMTW*\",\"*FWHG*\",\"*GHI*\",\"*HHC*\",\"*HLCP*\",\"*HOME*\",\"*LPR*\",\"*MHP*\",\"*NHTF*\",\"*NSP*\",\"*PRP*\",\"*TOD*\",\"*VHHP*\"},'1. Checklist & Certification'!$L$7)))),\"MHP\",\"Legacy\"))","v":""},",,",null,null,null,{"$f":"IF('1. Checklist & Certification'!$M$20=4,\"Both\",IF(OR('1. Checklist & Certification'!$M$15>0,S238=\"CHRP-R\",U238=\"CHRP-R\",W238=\"CHRP-R\",Y238=\"CHRP-R\"),\"Under\",\"No\"))","v":"No"},"No","No",{"$f":"_xlfn.IFS(D238=\"\",\"\",D238=1,'MHP Family Income & Rent Limits'!$E$17,D238=2,'MHP Family Income & Rent Limits'!$F$17,D238=3,'MHP Family Income & Rent Limits'!$G$17,D238=4,'MHP Family Income & Rent Limits'!$H$17,D238=5,'MHP Family Income & Rent Limits'!$I$17,D238=6,'MHP Family Income & Rent Limits'!$J$17,D238=7,'MHP Family Income & Rent Limits'!$K$17,D238=8,'MHP Family Income & Rent Limits'!$L$17)","v":""},"",{"$f":"IF(OR(A238=0,B238=\"X\"),0,MIN(IF(AA238:AD238<>0,AA238:AD238)))","v":0},{"$f":"IF(OR(H238=\"\",I238=\"\"),0,IF(H238*0.3/12>I238,MIN(H238*0.3/12,I238*1.1)+AP238,I238*(1+(VLOOKUP('1. Checklist & Certification'!$F$9,'HLCP-E Rent Change'!$A$1:$D$59,4,FALSE)))+AP238))","v":0}]
[null,null,null,null,null,null,null,null,null,null,null,null,null,null,null,null,null,null,null,null,null,null,null,null,null,null,0,0,0,0,0,0,0,0,{"$f":"IF(OR(A239=0,B239=\"X\"),0,IF(OR(S239=\"FHDP\",S239=\"RHCP-B\",U239=\"FHDP\",U239=\"RHCP-B\",W239=\"FHDP\",W239=\"RHCP-B\",Y239=\"FHDP\",Y239=\"RHCP-B\"),TRUNC((MIN(I239,K239)*(1+'1. Checklist & Certification'!$K$43)+AP239)),0))","v":0},{"$f":"IF(OR(A239=0,B239=\"X\"),0,IF(OR(S239=\"CHRP-R\",S239=\"SERA\",S239=\"SUHRP\",U239=\"CHRP-R\",U239=\"SERA\",U239=\"SUHRP\",W239=\"CHRP-R\",W239=\"SERA\",W239=\"SUHRP\",Y239=\"CHRP-R\",Y239=\"SERA\",Y239=\"SUHRP\"),TRUNC((MIN(I239,K239)*(1+'1. Checklist & Certification'!$K$49))),0))","v":0},{"$f":"IF(OR(A239=0,B239=\"X\"),0,IF(OR(S239=\"CALDAP\",S239=\"DPRLP\",U239=\"CALDAP\",U239=\"DPRLP\",W239=\"CALDAP\",W239=\"DPRLP\",Y239=\"CALDAP\",Y239=\"DPRLP\"),TRUNC(((MIN(I239,K239))*(1+'1. Checklist & Certification'!$G$4))),0))","v":0},0,0,0,{"$f":"IF(OR(A239=0,B239=\"X\"),0,IF(OR(S239=\"PRP\",S239=\"LPR\",U239=\"PRP\",U239=\"LPR\",W239=\"PRP\",W239=\"LPR\",Y239=\"PRP\",Y239=\"LPR\"),MAX(I239+AP239,MIN(IF(AE239:AN239<>0,AE239:AN239))),MIN(IF(AE239:AN239<>0,AE239:AN239))))","v":0},{"$f":"IF(A239=0,0,IF(AND(OR(S239=\"Mgr\",S239=0),OR(U239=\"Mgr\",U239=0),OR(W239=\"Mgr\",W239=0)),0,IF(LEFT($A239,2)=\"B*\",VLOOKUP($E239,'1. Checklist & Certification'!$D$26:$E$32,2),IF(LEFT($A239,2)=\"C*\",VLOOKUP($E239,'1. Checklist & Certification'!$F$26:$G$32,2),IF(LEFT($A239,2)=\"D*\",VLOOKUP($E239,'1. Checklist & Certification'!$H$26:$I$32,2),IF(LEFT($A239,2)=\"E*\",VLOOKUP($E239,'1. Checklist & Certification'!$J$26:$K$32,2),VLOOKUP($E239,'1. Checklist & Certification'!$A$26:$B$32,2)))))))","v":0},0,0,null,null,null,null,"","",0,0,0,null,{"$f":"IF(A239=\"\",\"\",'1. Checklist & Certification'!$K$1)","v":""},{"$f":"IF(A239=\"\",\"\",'1. Checklist & Certification'!$C$62)","v":""},{"$f":"IF(A239=\"\",\"\",'1. Checklist & Certification'!$C$6)","v":""},{"$f":"IF(A239=\"\",\"\",'1. Checklist & Certification'!$G$5)","v":""},{"$f":"IFERROR(IF(A239=\"\",\"\",\n_xlfn.LET(_xlpm.Contract,'1. Checklist & Certification'!$C$7,\n_xlpm.Yr,TEXT(MOD(_xlfn.TEXTBEFORE(_xlpm.Contract,\"-\"),100),\"00\"),\n_xlpm.Program,_xlfn.TEXTAFTER(_xlfn.TEXTBEFORE(_xlpm.Contract,\"-\",2),\"-\"),\n_xlpm.CleanProgram,_xlfn.XLOOKUP(_xlpm.Program,SpellCheck[Input],SpellCheck[Correction],_xlpm.Program),\n_xlpm.Number,TEXT(_xlfn.TEXTAFTER(_xlpm.Contract,\"-\",2),\"0000\"),\n_xlfn.CONCAT(_xlpm.Yr,\"-\",_xlpm.CleanProgram,\"-\",_xlpm.Number))\n),\"\")","v":""},{"$f":"IFERROR(IF(A239=\"\",\"\",\n_xlfn.LET(_xlpm.Contract,'1. Checklist & Certification'!$C$8,\n_xlpm.Yr,TEXT(MOD(_xlfn.TEXTBEFORE(_xlpm.Contract,\"-\"),100),\"00\"),\n_xlpm.Program,_xlfn.TEXTAFTER(_xlfn.TEXTBEFORE(_xlpm.Contract,\"-\",2),\"-\"),\n_xlpm.CleanProgram,_xlfn.XLOOKUP(_xlpm.Program,SpellCheck[Input],SpellCheck[Correction],_xlpm.Program),\n_xlpm.Number,TEXT(_xlfn.TEXTAFTER(_xlpm.Contract,\"-\",2),\"0000\"),\n_xlfn.CONCAT(_xlpm.Yr,\"-\",_xlpm.CleanProgram,\"-\",_xlpm.Number))\n),\"\")","v":""},{"$f":"IFERROR(IF(A239=\"\",\"\",\n_xlfn.LET(_xlpm.Contract,'1. Checklist & Certification'!$F$7,\n_xlpm.Yr,TEXT(MOD(_xlfn.TEXTBEFORE(_xlpm.Contract,\"-\"),100),\"00\"),\n_xlpm.Program,_xlfn.TEXTAFTER(_xlfn.TEXTBEFORE(_xlpm.Contract,\"-\",2),\"-\"),\n_xlpm.CleanProgram,_xlfn.XLOOKUP(_xlpm.Program,SpellCheck[Input],SpellCheck[Correction],_xlpm.Program),\n_xlpm.Number,TEXT(_xlfn.TEXTAFTER(_xlpm.Contract,\"-\",2),\"0000\"),\n_xlfn.CONCAT(_xlpm.Yr,\"-\",_xlpm.CleanProgram,\"-\",_xlpm.Number))\n),\"\")","v":""},{"$f":"IFERROR(IF(A239=\"\",\"\",\n_xlfn.LET(_xlpm.Contract,'1. Checklist & Certification'!$F$8,\n_xlpm.Yr,TEXT(MOD(_xlfn.TEXTBEFORE(_xlpm.Contract,\"-\"),100),\"00\"),\n_xlpm.Program,_xlfn.TEXTAFTER(_xlfn.TEXTBEFORE(_xlpm.Contract,\"-\",2),\"-\"),\n_xlpm.CleanProgram,_xlfn.XLOOKUP(_xlpm.Program,SpellCheck[Input],SpellCheck[Correction],_xlpm.Program),\n_xlpm.Number,TEXT(_xlfn.TEXTAFTER(_xlpm.Contract,\"-\",2),\"0000\"),\n_xlfn.CONCAT(_xlpm.Yr,\"-\",_xlpm.CleanProgram,\"-\",_xlpm.Number))\n),\"\")","v":""},{"$f":"IF(A239=\"\",\"\",'1. Checklist & Certification'!$B$9)","v":""},{"$f":"IF(A239=\"\",\"\",'1. Checklist & Certification'!$F$9)","v":""},{"$f":"IF(A239=\"\",\"\",'1. Checklist & Certification'!$C$10)","v":""},{"$f":"IF(A239=\"\",\"\",'1. Checklist & Certification'!$C$11)","v":""},{"$f":"IF(A239=\"\",\"\",'1. Checklist & Certification'!$C$12)","v":""},{"$f":"IF(A239=\"\",\"\",'1. Checklist & Certification'!$B$14)","v":""},{"$f":"IF(A239=\"\",\"\",'1. Checklist & Certification'!$E$14)","v":""},{"$f":"IF(B239=\"\",\"\",'1. Checklist & Certification'!$G$14)","v":""},{"$f":"IF(A239=\"\",\"\",'MHP Family Income & Rent Limits'!$B$3)","v":""},{"$f":"IF(A239=\"\",\"\",'MHP Family Income & Rent Limits'!$J$3)","v":""},{"$f":"IF(A239=\"\",\"\",'MHP Family Income & Rent Limits'!$E$4)","v":""},{"$f":"IF(A239=\"\",\"\",'MHP Family Income & Rent Limits'!$C$7)","v":""},{"$f":"IF(A239=\"\",\"\",'MHP Family Income & Rent Limits'!$F$8)","v":""},{"$f":"IF(A239=\"\",\"\",'1. Checklist & Certification'!$G$4)","v":""},{"$f":"IF(A239=\"\",\"\",'1. Checklist & Certification'!$K$39)","v":""},{"$f":"IF(A239=\"\",\"\",'1. Checklist & Certification'!$K$43)","v":""},{"$f":"IF(A239=\"\",\"\",'1. Checklist & Certification'!$K$45)","v":""},{"$f":"IF(A239=\"\",\"\",'1. Checklist & Certification'!$K$49)","v":""},{"$f":"IF(A239=\"\",\"\",'1. Checklist & Certification'!$K$62)","v":""},{"$f":"IF(A239=\"\",\"\",'1. Checklist & Certification'!$E$66)","v":""},{"$f":"IF(A239=\"\",\"\",'1. Checklist & Certification'!$E$67)","v":""},{"$f":"IF(A239=\"\",\"\",'1. Checklist & Certification'!$E$68)","v":""},{"$f":"IF(A239=\"\",\"\",'1. Checklist & Certification'!$G$66)","v":""},{"$f":"IF(A239=\"\",\"\",'1. Checklist & Certification'!$H$66)","v":""},{"$f":"IF(A239=\"\",\"\",'1. Checklist & Certification'!$I$66)","v":""},{"$f":"IF(A239=\"\",\"\",'1. Checklist & Certification'!$I$67)","v":""},{"$f":"IF(A239=\"\",\"\",'1. Checklist & Certification'!$I$68)","v":""},{"$f":"IF(A239=\"\",\"\",'1. Checklist & Certification'!$B$69)","v":""},{"$f":"IF(A239=\"\",\"\",'1. Checklist & Certification'!$C$69)","v":""},{"$f":"IF(A239=\"\",\"\",'1. Checklist & Certification'!$F$69)","v":""},{"$f":"IF(A239=\"\",\"\",'1. Checklist & Certification'!$G$69)","v":""},{"$f":"IF(A239=\"\",\"\",'1. Checklist & Certification'!$J$69)","v":""},{"$f":"IF(A239=\"\",\"\",'1. Checklist & Certification'!$K$69)","v":""},null,null,{"$f":"IF(AND(OR('1. Checklist & Certification'!$M$16=1,'1. Checklist & Certification'!$M$19=2),AO239>0,B239=\"\",I239>0,AQ239<I239,AV239<>\"Sec 8-Project\"),\"X\",IF(AND(OR('1. Checklist & Certification'!$M$20=4,'1. Checklist & Certification'!$M$21=5,'1. Checklist & Certification'!$M$22=7),AO239>0,B239=\"\",I239>0,K239<I239),\"X\",\"\"))","v":""},{"$f":"IF(A239=\"\",\"\",IF(SUMPRODUCT(-- (ISNUMBER(SEARCH({\"*AHSC*\",\"*FMTW*\",\"*FWHG*\",\"*GHI*\",\"*HHC*\",\"*HLCP*\",\"*HOME*\",\"*LPR*\",\"*MHP*\",\"*NHTF*\",\"*NSP*\",\"*PRP*\",\"*TOD*\",\"*VHHP*\"},'1. Checklist & Certification'!$L$7)))),\"MHP\",\"Legacy\"))","v":""},",,",null,null,null,{"$f":"IF('1. Checklist & Certification'!$M$20=4,\"Both\",IF(OR('1. Checklist & Certification'!$M$15>0,S239=\"CHRP-R\",U239=\"CHRP-R\",W239=\"CHRP-R\",Y239=\"CHRP-R\"),\"Under\",\"No\"))","v":"No"},"No","No",{"$f":"_xlfn.IFS(D239=\"\",\"\",D239=1,'MHP Family Income & Rent Limits'!$E$17,D239=2,'MHP Family Income & Rent Limits'!$F$17,D239=3,'MHP Family Income & Rent Limits'!$G$17,D239=4,'MHP Family Income & Rent Limits'!$H$17,D239=5,'MHP Family Income & Rent Limits'!$I$17,D239=6,'MHP Family Income & Rent Limits'!$J$17,D239=7,'MHP Family Income & Rent Limits'!$K$17,D239=8,'MHP Family Income & Rent Limits'!$L$17)","v":""},"",{"$f":"IF(OR(A239=0,B239=\"X\"),0,MIN(IF(AA239:AD239<>0,AA239:AD239)))","v":0},{"$f":"IF(OR(H239=\"\",I239=\"\"),0,IF(H239*0.3/12>I239,MIN(H239*0.3/12,I239*1.1)+AP239,I239*(1+(VLOOKUP('1. Checklist & Certification'!$F$9,'HLCP-E Rent Change'!$A$1:$D$59,4,FALSE)))+AP239))","v":0}]
[null,null,null,null,null,null,null,null,null,null,null,null,null,null,null,null,null,null,null,null,null,null,null,null,null,null,0,0,0,0,0,0,0,0,{"$f":"IF(OR(A240=0,B240=\"X\"),0,IF(OR(S240=\"FHDP\",S240=\"RHCP-B\",U240=\"FHDP\",U240=\"RHCP-B\",W240=\"FHDP\",W240=\"RHCP-B\",Y240=\"FHDP\",Y240=\"RHCP-B\"),TRUNC((MIN(I240,K240)*(1+'1. Checklist & Certification'!$K$43)+AP240)),0))","v":0},{"$f":"IF(OR(A240=0,B240=\"X\"),0,IF(OR(S240=\"CHRP-R\",S240=\"SERA\",S240=\"SUHRP\",U240=\"CHRP-R\",U240=\"SERA\",U240=\"SUHRP\",W240=\"CHRP-R\",W240=\"SERA\",W240=\"SUHRP\",Y240=\"CHRP-R\",Y240=\"SERA\",Y240=\"SUHRP\"),TRUNC((MIN(I240,K240)*(1+'1. Checklist & Certification'!$K$49))),0))","v":0},{"$f":"IF(OR(A240=0,B240=\"X\"),0,IF(OR(S240=\"CALDAP\",S240=\"DPRLP\",U240=\"CALDAP\",U240=\"DPRLP\",W240=\"CALDAP\",W240=\"DPRLP\",Y240=\"CALDAP\",Y240=\"DPRLP\"),TRUNC(((MIN(I240,K240))*(1+'1. Checklist & Certification'!$G$4))),0))","v":0},0,0,0,{"$f":"IF(OR(A240=0,B240=\"X\"),0,IF(OR(S240=\"PRP\",S240=\"LPR\",U240=\"PRP\",U240=\"LPR\",W240=\"PRP\",W240=\"LPR\",Y240=\"PRP\",Y240=\"LPR\"),MAX(I240+AP240,MIN(IF(AE240:AN240<>0,AE240:AN240))),MIN(IF(AE240:AN240<>0,AE240:AN240))))","v":0},{"$f":"IF(A240=0,0,IF(AND(OR(S240=\"Mgr\",S240=0),OR(U240=\"Mgr\",U240=0),OR(W240=\"Mgr\",W240=0)),0,IF(LEFT($A240,2)=\"B*\",VLOOKUP($E240,'1. Checklist & Certification'!$D$26:$E$32,2),IF(LEFT($A240,2)=\"C*\",VLOOKUP($E240,'1. Checklist & Certification'!$F$26:$G$32,2),IF(LEFT($A240,2)=\"D*\",VLOOKUP($E240,'1. Checklist & Certification'!$H$26:$I$32,2),IF(LEFT($A240,2)=\"E*\",VLOOKUP($E240,'1. Checklist & Certification'!$J$26:$K$32,2),VLOOKUP($E240,'1. Checklist & Certification'!$A$26:$B$32,2)))))))","v":0},0,0,null,null,null,null,"","",0,0,0,null,{"$f":"IF(A240=\"\",\"\",'1. Checklist & Certification'!$K$1)","v":""},{"$f":"IF(A240=\"\",\"\",'1. Checklist & Certification'!$C$62)","v":""},{"$f":"IF(A240=\"\",\"\",'1. Checklist & Certification'!$C$6)","v":""},{"$f":"IF(A240=\"\",\"\",'1. Checklist & Certification'!$G$5)","v":""},{"$f":"IFERROR(IF(A240=\"\",\"\",\n_xlfn.LET(_xlpm.Contract,'1. Checklist & Certification'!$C$7,\n_xlpm.Yr,TEXT(MOD(_xlfn.TEXTBEFORE(_xlpm.Contract,\"-\"),100),\"00\"),\n_xlpm.Program,_xlfn.TEXTAFTER(_xlfn.TEXTBEFORE(_xlpm.Contract,\"-\",2),\"-\"),\n_xlpm.CleanProgram,_xlfn.XLOOKUP(_xlpm.Program,SpellCheck[Input],SpellCheck[Correction],_xlpm.Program),\n_xlpm.Number,TEXT(_xlfn.TEXTAFTER(_xlpm.Contract,\"-\",2),\"0000\"),\n_xlfn.CONCAT(_xlpm.Yr,\"-\",_xlpm.CleanProgram,\"-\",_xlpm.Number))\n),\"\")","v":""},{"$f":"IFERROR(IF(A240=\"\",\"\",\n_xlfn.LET(_xlpm.Contract,'1. Checklist & Certification'!$C$8,\n_xlpm.Yr,TEXT(MOD(_xlfn.TEXTBEFORE(_xlpm.Contract,\"-\"),100),\"00\"),\n_xlpm.Program,_xlfn.TEXTAFTER(_xlfn.TEXTBEFORE(_xlpm.Contract,\"-\",2),\"-\"),\n_xlpm.CleanProgram,_xlfn.XLOOKUP(_xlpm.Program,SpellCheck[Input],SpellCheck[Correction],_xlpm.Program),\n_xlpm.Number,TEXT(_xlfn.TEXTAFTER(_xlpm.Contract,\"-\",2),\"0000\"),\n_xlfn.CONCAT(_xlpm.Yr,\"-\",_xlpm.CleanProgram,\"-\",_xlpm.Number))\n),\"\")","v":""},{"$f":"IFERROR(IF(A240=\"\",\"\",\n_xlfn.LET(_xlpm.Contract,'1. Checklist & Certification'!$F$7,\n_xlpm.Yr,TEXT(MOD(_xlfn.TEXTBEFORE(_xlpm.Contract,\"-\"),100),\"00\"),\n_xlpm.Program,_xlfn.TEXTAFTER(_xlfn.TEXTBEFORE(_xlpm.Contract,\"-\",2),\"-\"),\n_xlpm.CleanProgram,_xlfn.XLOOKUP(_xlpm.Program,SpellCheck[Input],SpellCheck[Correction],_xlpm.Program),\n_xlpm.Number,TEXT(_xlfn.TEXTAFTER(_xlpm.Contract,\"-\",2),\"0000\"),\n_xlfn.CONCAT(_xlpm.Yr,\"-\",_xlpm.CleanProgram,\"-\",_xlpm.Number))\n),\"\")","v":""},{"$f":"IFERROR(IF(A240=\"\",\"\",\n_xlfn.LET(_xlpm.Contract,'1. Checklist & Certification'!$F$8,\n_xlpm.Yr,TEXT(MOD(_xlfn.TEXTBEFORE(_xlpm.Contract,\"-\"),100),\"00\"),\n_xlpm.Program,_xlfn.TEXTAFTER(_xlfn.TEXTBEFORE(_xlpm.Contract,\"-\",2),\"-\"),\n_xlpm.CleanProgram,_xlfn.XLOOKUP(_xlpm.Program,SpellCheck[Input],SpellCheck[Correction],_xlpm.Program),\n_xlpm.Number,TEXT(_xlfn.TEXTAFTER(_xlpm.Contract,\"-\",2),\"0000\"),\n_xlfn.CONCAT(_xlpm.Yr,\"-\",_xlpm.CleanProgram,\"-\",_xlpm.Number))\n),\"\")","v":""},{"$f":"IF(A240=\"\",\"\",'1. Checklist & Certification'!$B$9)","v":""},{"$f":"IF(A240=\"\",\"\",'1. Checklist & Certification'!$F$9)","v":""},{"$f":"IF(A240=\"\",\"\",'1. Checklist & Certification'!$C$10)","v":""},{"$f":"IF(A240=\"\",\"\",'1. Checklist & Certification'!$C$11)","v":""},{"$f":"IF(A240=\"\",\"\",'1. Checklist & Certification'!$C$12)","v":""},{"$f":"IF(A240=\"\",\"\",'1. Checklist & Certification'!$B$14)","v":""},{"$f":"IF(A240=\"\",\"\",'1. Checklist & Certification'!$E$14)","v":""},{"$f":"IF(B240=\"\",\"\",'1. Checklist & Certification'!$G$14)","v":""},{"$f":"IF(A240=\"\",\"\",'MHP Family Income & Rent Limits'!$B$3)","v":""},{"$f":"IF(A240=\"\",\"\",'MHP Family Income & Rent Limits'!$J$3)","v":""},{"$f":"IF(A240=\"\",\"\",'MHP Family Income & Rent Limits'!$E$4)","v":""},{"$f":"IF(A240=\"\",\"\",'MHP Family Income & Rent Limits'!$C$7)","v":""},{"$f":"IF(A240=\"\",\"\",'MHP Family Income & Rent Limits'!$F$8)","v":""},{"$f":"IF(A240=\"\",\"\",'1. Checklist & Certification'!$G$4)","v":""},{"$f":"IF(A240=\"\",\"\",'1. Checklist & Certification'!$K$39)","v":""},{"$f":"IF(A240=\"\",\"\",'1. Checklist & Certification'!$K$43)","v":""},{"$f":"IF(A240=\"\",\"\",'1. Checklist & Certification'!$K$45)","v":""},{"$f":"IF(A240=\"\",\"\",'1. Checklist & Certification'!$K$49)","v":""},{"$f":"IF(A240=\"\",\"\",'1. Checklist & Certification'!$K$62)","v":""},{"$f":"IF(A240=\"\",\"\",'1. Checklist & Certification'!$E$66)","v":""},{"$f":"IF(A240=\"\",\"\",'1. Checklist & Certification'!$E$67)","v":""},{"$f":"IF(A240=\"\",\"\",'1. Checklist & Certification'!$E$68)","v":""},{"$f":"IF(A240=\"\",\"\",'1. Checklist & Certification'!$G$66)","v":""},{"$f":"IF(A240=\"\",\"\",'1. Checklist & Certification'!$H$66)","v":""},{"$f":"IF(A240=\"\",\"\",'1. Checklist & Certification'!$I$66)","v":""},{"$f":"IF(A240=\"\",\"\",'1. Checklist & Certification'!$I$67)","v":""},{"$f":"IF(A240=\"\",\"\",'1. Checklist & Certification'!$I$68)","v":""},{"$f":"IF(A240=\"\",\"\",'1. Checklist & Certification'!$B$69)","v":""},{"$f":"IF(A240=\"\",\"\",'1. Checklist & Certification'!$C$69)","v":""},{"$f":"IF(A240=\"\",\"\",'1. Checklist & Certification'!$F$69)","v":""},{"$f":"IF(A240=\"\",\"\",'1. Checklist & Certification'!$G$69)","v":""},{"$f":"IF(A240=\"\",\"\",'1. Checklist & Certification'!$J$69)","v":""},{"$f":"IF(A240=\"\",\"\",'1. Checklist & Certification'!$K$69)","v":""},null,null,{"$f":"IF(AND(OR('1. Checklist & Certification'!$M$16=1,'1. Checklist & Certification'!$M$19=2),AO240>0,B240=\"\",I240>0,AQ240<I240,AV240<>\"Sec 8-Project\"),\"X\",IF(AND(OR('1. Checklist & Certification'!$M$20=4,'1. Checklist & Certification'!$M$21=5,'1. Checklist & Certification'!$M$22=7),AO240>0,B240=\"\",I240>0,K240<I240),\"X\",\"\"))","v":""},{"$f":"IF(A240=\"\",\"\",IF(SUMPRODUCT(-- (ISNUMBER(SEARCH({\"*AHSC*\",\"*FMTW*\",\"*FWHG*\",\"*GHI*\",\"*HHC*\",\"*HLCP*\",\"*HOME*\",\"*LPR*\",\"*MHP*\",\"*NHTF*\",\"*NSP*\",\"*PRP*\",\"*TOD*\",\"*VHHP*\"},'1. Checklist & Certification'!$L$7)))),\"MHP\",\"Legacy\"))","v":""},",,",null,null,null,{"$f":"IF('1. Checklist & Certification'!$M$20=4,\"Both\",IF(OR('1. Checklist & Certification'!$M$15>0,S240=\"CHRP-R\",U240=\"CHRP-R\",W240=\"CHRP-R\",Y240=\"CHRP-R\"),\"Under\",\"No\"))","v":"No"},"No","No",{"$f":"_xlfn.IFS(D240=\"\",\"\",D240=1,'MHP Family Income & Rent Limits'!$E$17,D240=2,'MHP Family Income & Rent Limits'!$F$17,D240=3,'MHP Family Income & Rent Limits'!$G$17,D240=4,'MHP Family Income & Rent Limits'!$H$17,D240=5,'MHP Family Income & Rent Limits'!$I$17,D240=6,'MHP Family Income & Rent Limits'!$J$17,D240=7,'MHP Family Income & Rent Limits'!$K$17,D240=8,'MHP Family Income & Rent Limits'!$L$17)","v":""},"",{"$f":"IF(OR(A240=0,B240=\"X\"),0,MIN(IF(AA240:AD240<>0,AA240:AD240)))","v":0},{"$f":"IF(OR(H240=\"\",I240=\"\"),0,IF(H240*0.3/12>I240,MIN(H240*0.3/12,I240*1.1)+AP240,I240*(1+(VLOOKUP('1. Checklist & Certification'!$F$9,'HLCP-E Rent Change'!$A$1:$D$59,4,FALSE)))+AP240))","v":0}]
[null,null,null,null,null,null,null,null,null,null,null,null,null,null,null,null,null,null,null,null,null,null,null,null,null,null,0,0,0,0,0,0,0,0,{"$f":"IF(OR(A241=0,B241=\"X\"),0,IF(OR(S241=\"FHDP\",S241=\"RHCP-B\",U241=\"FHDP\",U241=\"RHCP-B\",W241=\"FHDP\",W241=\"RHCP-B\",Y241=\"FHDP\",Y241=\"RHCP-B\"),TRUNC((MIN(I241,K241)*(1+'1. Checklist & Certification'!$K$43)+AP241)),0))","v":0},{"$f":"IF(OR(A241=0,B241=\"X\"),0,IF(OR(S241=\"CHRP-R\",S241=\"SERA\",S241=\"SUHRP\",U241=\"CHRP-R\",U241=\"SERA\",U241=\"SUHRP\",W241=\"CHRP-R\",W241=\"SERA\",W241=\"SUHRP\",Y241=\"CHRP-R\",Y241=\"SERA\",Y241=\"SUHRP\"),TRUNC((MIN(I241,K241)*(1+'1. Checklist & Certification'!$K$49))),0))","v":0},{"$f":"IF(OR(A241=0,B241=\"X\"),0,IF(OR(S241=\"CALDAP\",S241=\"DPRLP\",U241=\"CALDAP\",U241=\"DPRLP\",W241=\"CALDAP\",W241=\"DPRLP\",Y241=\"CALDAP\",Y241=\"DPRLP\"),TRUNC(((MIN(I241,K241))*(1+'1. Checklist & Certification'!$G$4))),0))","v":0},0,0,0,{"$f":"IF(OR(A241=0,B241=\"X\"),0,IF(OR(S241=\"PRP\",S241=\"LPR\",U241=\"PRP\",U241=\"LPR\",W241=\"PRP\",W241=\"LPR\",Y241=\"PRP\",Y241=\"LPR\"),MAX(I241+AP241,MIN(IF(AE241:AN241<>0,AE241:AN241))),MIN(IF(AE241:AN241<>0,AE241:AN241))))","v":0},{"$f":"IF(A241=0,0,IF(AND(OR(S241=\"Mgr\",S241=0),OR(U241=\"Mgr\",U241=0),OR(W241=\"Mgr\",W241=0)),0,IF(LEFT($A241,2)=\"B*\",VLOOKUP($E241,'1. Checklist & Certification'!$D$26:$E$32,2),IF(LEFT($A241,2)=\"C*\",VLOOKUP($E241,'1. Checklist & Certification'!$F$26:$G$32,2),IF(LEFT($A241,2)=\"D*\",VLOOKUP($E241,'1. Checklist & Certification'!$H$26:$I$32,2),IF(LEFT($A241,2)=\"E*\",VLOOKUP($E241,'1. Checklist & Certification'!$J$26:$K$32,2),VLOOKUP($E241,'1. Checklist & Certification'!$A$26:$B$32,2)))))))","v":0},0,0,null,null,null,null,"","",0,0,0,null,{"$f":"IF(A241=\"\",\"\",'1. Checklist & Certification'!$K$1)","v":""},{"$f":"IF(A241=\"\",\"\",'1. Checklist & Certification'!$C$62)","v":""},{"$f":"IF(A241=\"\",\"\",'1. Checklist & Certification'!$C$6)","v":""},{"$f":"IF(A241=\"\",\"\",'1. Checklist & Certification'!$G$5)","v":""},{"$f":"IFERROR(IF(A241=\"\",\"\",\n_xlfn.LET(_xlpm.Contract,'1. Checklist & Certification'!$C$7,\n_xlpm.Yr,TEXT(MOD(_xlfn.TEXTBEFORE(_xlpm.Contract,\"-\"),100),\"00\"),\n_xlpm.Program,_xlfn.TEXTAFTER(_xlfn.TEXTBEFORE(_xlpm.Contract,\"-\",2),\"-\"),\n_xlpm.CleanProgram,_xlfn.XLOOKUP(_xlpm.Program,SpellCheck[Input],SpellCheck[Correction],_xlpm.Program),\n_xlpm.Number,TEXT(_xlfn.TEXTAFTER(_xlpm.Contract,\"-\",2),\"0000\"),\n_xlfn.CONCAT(_xlpm.Yr,\"-\",_xlpm.CleanProgram,\"-\",_xlpm.Number))\n),\"\")","v":""},{"$f":"IFERROR(IF(A241=\"\",\"\",\n_xlfn.LET(_xlpm.Contract,'1. Checklist & Certification'!$C$8,\n_xlpm.Yr,TEXT(MOD(_xlfn.TEXTBEFORE(_xlpm.Contract,\"-\"),100),\"00\"),\n_xlpm.Program,_xlfn.TEXTAFTER(_xlfn.TEXTBEFORE(_xlpm.Contract,\"-\",2),\"-\"),\n_xlpm.CleanProgram,_xlfn.XLOOKUP(_xlpm.Program,SpellCheck[Input],SpellCheck[Correction],_xlpm.Program),\n_xlpm.Number,TEXT(_xlfn.TEXTAFTER(_xlpm.Contract,\"-\",2),\"0000\"),\n_xlfn.CONCAT(_xlpm.Yr,\"-\",_xlpm.CleanProgram,\"-\",_xlpm.Number))\n),\"\")","v":""},{"$f":"IFERROR(IF(A241=\"\",\"\",\n_xlfn.LET(_xlpm.Contract,'1. Checklist & Certification'!$F$7,\n_xlpm.Yr,TEXT(MOD(_xlfn.TEXTBEFORE(_xlpm.Contract,\"-\"),100),\"00\"),\n_xlpm.Program,_xlfn.TEXTAFTER(_xlfn.TEXTBEFORE(_xlpm.Contract,\"-\",2),\"-\"),\n_xlpm.CleanProgram,_xlfn.XLOOKUP(_xlpm.Program,SpellCheck[Input],SpellCheck[Correction],_xlpm.Program),\n_xlpm.Number,TEXT(_xlfn.TEXTAFTER(_xlpm.Contract,\"-\",2),\"0000\"),\n_xlfn.CONCAT(_xlpm.Yr,\"-\",_xlpm.CleanProgram,\"-\",_xlpm.Number))\n),\"\")","v":""},{"$f":"IFERROR(IF(A241=\"\",\"\",\n_xlfn.LET(_xlpm.Contract,'1. Checklist & Certification'!$F$8,\n_xlpm.Yr,TEXT(MOD(_xlfn.TEXTBEFORE(_xlpm.Contract,\"-\"),100),\"00\"),\n_xlpm.Program,_xlfn.TEXTAFTER(_xlfn.TEXTBEFORE(_xlpm.Contract,\"-\",2),\"-\"),\n_xlpm.CleanProgram,_xlfn.XLOOKUP(_xlpm.Program,SpellCheck[Input],SpellCheck[Correction],_xlpm.Program),\n_xlpm.Number,TEXT(_xlfn.TEXTAFTER(_xlpm.Contract,\"-\",2),\"0000\"),\n_xlfn.CONCAT(_xlpm.Yr,\"-\",_xlpm.CleanProgram,\"-\",_xlpm.Number))\n),\"\")","v":""},{"$f":"IF(A241=\"\",\"\",'1. Checklist & Certification'!$B$9)","v":""},{"$f":"IF(A241=\"\",\"\",'1. Checklist & Certification'!$F$9)","v":""},{"$f":"IF(A241=\"\",\"\",'1. Checklist & Certification'!$C$10)","v":""},{"$f":"IF(A241=\"\",\"\",'1. Checklist & Certification'!$C$11)","v":""},{"$f":"IF(A241=\"\",\"\",'1. Checklist & Certification'!$C$12)","v":""},{"$f":"IF(A241=\"\",\"\",'1. Checklist & Certification'!$B$14)","v":""},{"$f":"IF(A241=\"\",\"\",'1. Checklist & Certification'!$E$14)","v":""},{"$f":"IF(B241=\"\",\"\",'1. Checklist & Certification'!$G$14)","v":""},{"$f":"IF(A241=\"\",\"\",'MHP Family Income & Rent Limits'!$B$3)","v":""},{"$f":"IF(A241=\"\",\"\",'MHP Family Income & Rent Limits'!$J$3)","v":""},{"$f":"IF(A241=\"\",\"\",'MHP Family Income & Rent Limits'!$E$4)","v":""},{"$f":"IF(A241=\"\",\"\",'MHP Family Income & Rent Limits'!$C$7)","v":""},{"$f":"IF(A241=\"\",\"\",'MHP Family Income & Rent Limits'!$F$8)","v":""},{"$f":"IF(A241=\"\",\"\",'1. Checklist & Certification'!$G$4)","v":""},{"$f":"IF(A241=\"\",\"\",'1. Checklist & Certification'!$K$39)","v":""},{"$f":"IF(A241=\"\",\"\",'1. Checklist & Certification'!$K$43)","v":""},{"$f":"IF(A241=\"\",\"\",'1. Checklist & Certification'!$K$45)","v":""},{"$f":"IF(A241=\"\",\"\",'1. Checklist & Certification'!$K$49)","v":""},{"$f":"IF(A241=\"\",\"\",'1. Checklist & Certification'!$K$62)","v":""},{"$f":"IF(A241=\"\",\"\",'1. Checklist & Certification'!$E$66)","v":""},{"$f":"IF(A241=\"\",\"\",'1. Checklist & Certification'!$E$67)","v":""},{"$f":"IF(A241=\"\",\"\",'1. Checklist & Certification'!$E$68)","v":""},{"$f":"IF(A241=\"\",\"\",'1. Checklist & Certification'!$G$66)","v":""},{"$f":"IF(A241=\"\",\"\",'1. Checklist & Certification'!$H$66)","v":""},{"$f":"IF(A241=\"\",\"\",'1. Checklist & Certification'!$I$66)","v":""},{"$f":"IF(A241=\"\",\"\",'1. Checklist & Certification'!$I$67)","v":""},{"$f":"IF(A241=\"\",\"\",'1. Checklist & Certification'!$I$68)","v":""},{"$f":"IF(A241=\"\",\"\",'1. Checklist & Certification'!$B$69)","v":""},{"$f":"IF(A241=\"\",\"\",'1. Checklist & Certification'!$C$69)","v":""},{"$f":"IF(A241=\"\",\"\",'1. Checklist & Certification'!$F$69)","v":""},{"$f":"IF(A241=\"\",\"\",'1. Checklist & Certification'!$G$69)","v":""},{"$f":"IF(A241=\"\",\"\",'1. Checklist & Certification'!$J$69)","v":""},{"$f":"IF(A241=\"\",\"\",'1. Checklist & Certification'!$K$69)","v":""},null,null,{"$f":"IF(AND(OR('1. Checklist & Certification'!$M$16=1,'1. Checklist & Certification'!$M$19=2),AO241>0,B241=\"\",I241>0,AQ241<I241,AV241<>\"Sec 8-Project\"),\"X\",IF(AND(OR('1. Checklist & Certification'!$M$20=4,'1. Checklist & Certification'!$M$21=5,'1. Checklist & Certification'!$M$22=7),AO241>0,B241=\"\",I241>0,K241<I241),\"X\",\"\"))","v":""},{"$f":"IF(A241=\"\",\"\",IF(SUMPRODUCT(-- (ISNUMBER(SEARCH({\"*AHSC*\",\"*FMTW*\",\"*FWHG*\",\"*GHI*\",\"*HHC*\",\"*HLCP*\",\"*HOME*\",\"*LPR*\",\"*MHP*\",\"*NHTF*\",\"*NSP*\",\"*PRP*\",\"*TOD*\",\"*VHHP*\"},'1. Checklist & Certification'!$L$7)))),\"MHP\",\"Legacy\"))","v":""},",,",null,null,null,{"$f":"IF('1. Checklist & Certification'!$M$20=4,\"Both\",IF(OR('1. Checklist & Certification'!$M$15>0,S241=\"CHRP-R\",U241=\"CHRP-R\",W241=\"CHRP-R\",Y241=\"CHRP-R\"),\"Under\",\"No\"))","v":"No"},"No","No",{"$f":"_xlfn.IFS(D241=\"\",\"\",D241=1,'MHP Family Income & Rent Limits'!$E$17,D241=2,'MHP Family Income & Rent Limits'!$F$17,D241=3,'MHP Family Income & Rent Limits'!$G$17,D241=4,'MHP Family Income & Rent Limits'!$H$17,D241=5,'MHP Family Income & Rent Limits'!$I$17,D241=6,'MHP Family Income & Rent Limits'!$J$17,D241=7,'MHP Family Income & Rent Limits'!$K$17,D241=8,'MHP Family Income & Rent Limits'!$L$17)","v":""},"",{"$f":"IF(OR(A241=0,B241=\"X\"),0,MIN(IF(AA241:AD241<>0,AA241:AD241)))","v":0},{"$f":"IF(OR(H241=\"\",I241=\"\"),0,IF(H241*0.3/12>I241,MIN(H241*0.3/12,I241*1.1)+AP241,I241*(1+(VLOOKUP('1. Checklist & Certification'!$F$9,'HLCP-E Rent Change'!$A$1:$D$59,4,FALSE)))+AP241))","v":0}]
[null,null,null,null,null,null,null,null,null,null,null,null,null,null,null,null,null,null,null,null,null,null,null,null,null,null,0,0,0,0,0,0,0,0,{"$f":"IF(OR(A242=0,B242=\"X\"),0,IF(OR(S242=\"FHDP\",S242=\"RHCP-B\",U242=\"FHDP\",U242=\"RHCP-B\",W242=\"FHDP\",W242=\"RHCP-B\",Y242=\"FHDP\",Y242=\"RHCP-B\"),TRUNC((MIN(I242,K242)*(1+'1. Checklist & Certification'!$K$43)+AP242)),0))","v":0},{"$f":"IF(OR(A242=0,B242=\"X\"),0,IF(OR(S242=\"CHRP-R\",S242=\"SERA\",S242=\"SUHRP\",U242=\"CHRP-R\",U242=\"SERA\",U242=\"SUHRP\",W242=\"CHRP-R\",W242=\"SERA\",W242=\"SUHRP\",Y242=\"CHRP-R\",Y242=\"SERA\",Y242=\"SUHRP\"),TRUNC((MIN(I242,K242)*(1+'1. Checklist & Certification'!$K$49))),0))","v":0},{"$f":"IF(OR(A242=0,B242=\"X\"),0,IF(OR(S242=\"CALDAP\",S242=\"DPRLP\",U242=\"CALDAP\",U242=\"DPRLP\",W242=\"CALDAP\",W242=\"DPRLP\",Y242=\"CALDAP\",Y242=\"DPRLP\"),TRUNC(((MIN(I242,K242))*(1+'1. Checklist & Certification'!$G$4))),0))","v":0},0,0,0,{"$f":"IF(OR(A242=0,B242=\"X\"),0,IF(OR(S242=\"PRP\",S242=\"LPR\",U242=\"PRP\",U242=\"LPR\",W242=\"PRP\",W242=\"LPR\",Y242=\"PRP\",Y242=\"LPR\"),MAX(I242+AP242,MIN(IF(AE242:AN242<>0,AE242:AN242))),MIN(IF(AE242:AN242<>0,AE242:AN242))))","v":0},{"$f":"IF(A242=0,0,IF(AND(OR(S242=\"Mgr\",S242=0),OR(U242=\"Mgr\",U242=0),OR(W242=\"Mgr\",W242=0)),0,IF(LEFT($A242,2)=\"B*\",VLOOKUP($E242,'1. Checklist & Certification'!$D$26:$E$32,2),IF(LEFT($A242,2)=\"C*\",VLOOKUP($E242,'1. Checklist & Certification'!$F$26:$G$32,2),IF(LEFT($A242,2)=\"D*\",VLOOKUP($E242,'1. Checklist & Certification'!$H$26:$I$32,2),IF(LEFT($A242,2)=\"E*\",VLOOKUP($E242,'1. Checklist & Certification'!$J$26:$K$32,2),VLOOKUP($E242,'1. Checklist & Certification'!$A$26:$B$32,2)))))))","v":0},0,0,null,null,null,null,"","",0,0,0,null,{"$f":"IF(A242=\"\",\"\",'1. Checklist & Certification'!$K$1)","v":""},{"$f":"IF(A242=\"\",\"\",'1. Checklist & Certification'!$C$62)","v":""},{"$f":"IF(A242=\"\",\"\",'1. Checklist & Certification'!$C$6)","v":""},{"$f":"IF(A242=\"\",\"\",'1. Checklist & Certification'!$G$5)","v":""},{"$f":"IFERROR(IF(A242=\"\",\"\",\n_xlfn.LET(_xlpm.Contract,'1. Checklist & Certification'!$C$7,\n_xlpm.Yr,TEXT(MOD(_xlfn.TEXTBEFORE(_xlpm.Contract,\"-\"),100),\"00\"),\n_xlpm.Program,_xlfn.TEXTAFTER(_xlfn.TEXTBEFORE(_xlpm.Contract,\"-\",2),\"-\"),\n_xlpm.CleanProgram,_xlfn.XLOOKUP(_xlpm.Program,SpellCheck[Input],SpellCheck[Correction],_xlpm.Program),\n_xlpm.Number,TEXT(_xlfn.TEXTAFTER(_xlpm.Contract,\"-\",2),\"0000\"),\n_xlfn.CONCAT(_xlpm.Yr,\"-\",_xlpm.CleanProgram,\"-\",_xlpm.Number))\n),\"\")","v":""},{"$f":"IFERROR(IF(A242=\"\",\"\",\n_xlfn.LET(_xlpm.Contract,'1. Checklist & Certification'!$C$8,\n_xlpm.Yr,TEXT(MOD(_xlfn.TEXTBEFORE(_xlpm.Contract,\"-\"),100),\"00\"),\n_xlpm.Program,_xlfn.TEXTAFTER(_xlfn.TEXTBEFORE(_xlpm.Contract,\"-\",2),\"-\"),\n_xlpm.CleanProgram,_xlfn.XLOOKUP(_xlpm.Program,SpellCheck[Input],SpellCheck[Correction],_xlpm.Program),\n_xlpm.Number,TEXT(_xlfn.TEXTAFTER(_xlpm.Contract,\"-\",2),\"0000\"),\n_xlfn.CONCAT(_xlpm.Yr,\"-\",_xlpm.CleanProgram,\"-\",_xlpm.Number))\n),\"\")","v":""},{"$f":"IFERROR(IF(A242=\"\",\"\",\n_xlfn.LET(_xlpm.Contract,'1. Checklist & Certification'!$F$7,\n_xlpm.Yr,TEXT(MOD(_xlfn.TEXTBEFORE(_xlpm.Contract,\"-\"),100),\"00\"),\n_xlpm.Program,_xlfn.TEXTAFTER(_xlfn.TEXTBEFORE(_xlpm.Contract,\"-\",2),\"-\"),\n_xlpm.CleanProgram,_xlfn.XLOOKUP(_xlpm.Program,SpellCheck[Input],SpellCheck[Correction],_xlpm.Program),\n_xlpm.Number,TEXT(_xlfn.TEXTAFTER(_xlpm.Contract,\"-\",2),\"0000\"),\n_xlfn.CONCAT(_xlpm.Yr,\"-\",_xlpm.CleanProgram,\"-\",_xlpm.Number))\n),\"\")","v":""},{"$f":"IFERROR(IF(A242=\"\",\"\",\n_xlfn.LET(_xlpm.Contract,'1. Checklist & Certification'!$F$8,\n_xlpm.Yr,TEXT(MOD(_xlfn.TEXTBEFORE(_xlpm.Contract,\"-\"),100),\"00\"),\n_xlpm.Program,_xlfn.TEXTAFTER(_xlfn.TEXTBEFORE(_xlpm.Contract,\"-\",2),\"-\"),\n_xlpm.CleanProgram,_xlfn.XLOOKUP(_xlpm.Program,SpellCheck[Input],SpellCheck[Correction],_xlpm.Program),\n_xlpm.Number,TEXT(_xlfn.TEXTAFTER(_xlpm.Contract,\"-\",2),\"0000\"),\n_xlfn.CONCAT(_xlpm.Yr,\"-\",_xlpm.CleanProgram,\"-\",_xlpm.Number))\n),\"\")","v":""},{"$f":"IF(A242=\"\",\"\",'1. Checklist & Certification'!$B$9)","v":""},{"$f":"IF(A242=\"\",\"\",'1. Checklist & Certification'!$F$9)","v":""},{"$f":"IF(A242=\"\",\"\",'1. Checklist & Certification'!$C$10)","v":""},{"$f":"IF(A242=\"\",\"\",'1. Checklist & Certification'!$C$11)","v":""},{"$f":"IF(A242=\"\",\"\",'1. Checklist & Certification'!$C$12)","v":""},{"$f":"IF(A242=\"\",\"\",'1. Checklist & Certification'!$B$14)","v":""},{"$f":"IF(A242=\"\",\"\",'1. Checklist & Certification'!$E$14)","v":""},{"$f":"IF(B242=\"\",\"\",'1. Checklist & Certification'!$G$14)","v":""},{"$f":"IF(A242=\"\",\"\",'MHP Family Income & Rent Limits'!$B$3)","v":""},{"$f":"IF(A242=\"\",\"\",'MHP Family Income & Rent Limits'!$J$3)","v":""},{"$f":"IF(A242=\"\",\"\",'MHP Family Income & Rent Limits'!$E$4)","v":""},{"$f":"IF(A242=\"\",\"\",'MHP Family Income & Rent Limits'!$C$7)","v":""},{"$f":"IF(A242=\"\",\"\",'MHP Family Income & Rent Limits'!$F$8)","v":""},{"$f":"IF(A242=\"\",\"\",'1. Checklist & Certification'!$G$4)","v":""},{"$f":"IF(A242=\"\",\"\",'1. Checklist & Certification'!$K$39)","v":""},{"$f":"IF(A242=\"\",\"\",'1. Checklist & Certification'!$K$43)","v":""},{"$f":"IF(A242=\"\",\"\",'1. Checklist & Certification'!$K$45)","v":""},{"$f":"IF(A242=\"\",\"\",'1. Checklist & Certification'!$K$49)","v":""},{"$f":"IF(A242=\"\",\"\",'1. Checklist & Certification'!$K$62)","v":""},{"$f":"IF(A242=\"\",\"\",'1. Checklist & Certification'!$E$66)","v":""},{"$f":"IF(A242=\"\",\"\",'1. Checklist & Certification'!$E$67)","v":""},{"$f":"IF(A242=\"\",\"\",'1. Checklist & Certification'!$E$68)","v":""},{"$f":"IF(A242=\"\",\"\",'1. Checklist & Certification'!$G$66)","v":""},{"$f":"IF(A242=\"\",\"\",'1. Checklist & Certification'!$H$66)","v":""},{"$f":"IF(A242=\"\",\"\",'1. Checklist & Certification'!$I$66)","v":""},{"$f":"IF(A242=\"\",\"\",'1. Checklist & Certification'!$I$67)","v":""},{"$f":"IF(A242=\"\",\"\",'1. Checklist & Certification'!$I$68)","v":""},{"$f":"IF(A242=\"\",\"\",'1. Checklist & Certification'!$B$69)","v":""},{"$f":"IF(A242=\"\",\"\",'1. Checklist & Certification'!$C$69)","v":""},{"$f":"IF(A242=\"\",\"\",'1. Checklist & Certification'!$F$69)","v":""},{"$f":"IF(A242=\"\",\"\",'1. Checklist & Certification'!$G$69)","v":""},{"$f":"IF(A242=\"\",\"\",'1. Checklist & Certification'!$J$69)","v":""},{"$f":"IF(A242=\"\",\"\",'1. Checklist & Certification'!$K$69)","v":""},null,null,{"$f":"IF(AND(OR('1. Checklist & Certification'!$M$16=1,'1. Checklist & Certification'!$M$19=2),AO242>0,B242=\"\",I242>0,AQ242<I242,AV242<>\"Sec 8-Project\"),\"X\",IF(AND(OR('1. Checklist & Certification'!$M$20=4,'1. Checklist & Certification'!$M$21=5,'1. Checklist & Certification'!$M$22=7),AO242>0,B242=\"\",I242>0,K242<I242),\"X\",\"\"))","v":""},{"$f":"IF(A242=\"\",\"\",IF(SUMPRODUCT(-- (ISNUMBER(SEARCH({\"*AHSC*\",\"*FMTW*\",\"*FWHG*\",\"*GHI*\",\"*HHC*\",\"*HLCP*\",\"*HOME*\",\"*LPR*\",\"*MHP*\",\"*NHTF*\",\"*NSP*\",\"*PRP*\",\"*TOD*\",\"*VHHP*\"},'1. Checklist & Certification'!$L$7)))),\"MHP\",\"Legacy\"))","v":""},",,",null,null,null,{"$f":"IF('1. Checklist & Certification'!$M$20=4,\"Both\",IF(OR('1. Checklist & Certification'!$M$15>0,S242=\"CHRP-R\",U242=\"CHRP-R\",W242=\"CHRP-R\",Y242=\"CHRP-R\"),\"Under\",\"No\"))","v":"No"},"No","No",{"$f":"_xlfn.IFS(D242=\"\",\"\",D242=1,'MHP Family Income & Rent Limits'!$E$17,D242=2,'MHP Family Income & Rent Limits'!$F$17,D242=3,'MHP Family Income & Rent Limits'!$G$17,D242=4,'MHP Family Income & Rent Limits'!$H$17,D242=5,'MHP Family Income & Rent Limits'!$I$17,D242=6,'MHP Family Income & Rent Limits'!$J$17,D242=7,'MHP Family Income & Rent Limits'!$K$17,D242=8,'MHP Family Income & Rent Limits'!$L$17)","v":""},"",{"$f":"IF(OR(A242=0,B242=\"X\"),0,MIN(IF(AA242:AD242<>0,AA242:AD242)))","v":0},{"$f":"IF(OR(H242=\"\",I242=\"\"),0,IF(H242*0.3/12>I242,MIN(H242*0.3/12,I242*1.1)+AP242,I242*(1+(VLOOKUP('1. Checklist & Certification'!$F$9,'HLCP-E Rent Change'!$A$1:$D$59,4,FALSE)))+AP242))","v":0}]
[null,null,null,null,null,null,null,null,null,null,null,null,null,null,null,null,null,null,null,null,null,null,null,null,null,null,0,0,0,0,0,0,0,0,{"$f":"IF(OR(A243=0,B243=\"X\"),0,IF(OR(S243=\"FHDP\",S243=\"RHCP-B\",U243=\"FHDP\",U243=\"RHCP-B\",W243=\"FHDP\",W243=\"RHCP-B\",Y243=\"FHDP\",Y243=\"RHCP-B\"),TRUNC((MIN(I243,K243)*(1+'1. Checklist & Certification'!$K$43)+AP243)),0))","v":0},{"$f":"IF(OR(A243=0,B243=\"X\"),0,IF(OR(S243=\"CHRP-R\",S243=\"SERA\",S243=\"SUHRP\",U243=\"CHRP-R\",U243=\"SERA\",U243=\"SUHRP\",W243=\"CHRP-R\",W243=\"SERA\",W243=\"SUHRP\",Y243=\"CHRP-R\",Y243=\"SERA\",Y243=\"SUHRP\"),TRUNC((MIN(I243,K243)*(1+'1. Checklist & Certification'!$K$49))),0))","v":0},{"$f":"IF(OR(A243=0,B243=\"X\"),0,IF(OR(S243=\"CALDAP\",S243=\"DPRLP\",U243=\"CALDAP\",U243=\"DPRLP\",W243=\"CALDAP\",W243=\"DPRLP\",Y243=\"CALDAP\",Y243=\"DPRLP\"),TRUNC(((MIN(I243,K243))*(1+'1. Checklist & Certification'!$G$4))),0))","v":0},0,0,0,{"$f":"IF(OR(A243=0,B243=\"X\"),0,IF(OR(S243=\"PRP\",S243=\"LPR\",U243=\"PRP\",U243=\"LPR\",W243=\"PRP\",W243=\"LPR\",Y243=\"PRP\",Y243=\"LPR\"),MAX(I243+AP243,MIN(IF(AE243:AN243<>0,AE243:AN243))),MIN(IF(AE243:AN243<>0,AE243:AN243))))","v":0},{"$f":"IF(A243=0,0,IF(AND(OR(S243=\"Mgr\",S243=0),OR(U243=\"Mgr\",U243=0),OR(W243=\"Mgr\",W243=0)),0,IF(LEFT($A243,2)=\"B*\",VLOOKUP($E243,'1. Checklist & Certification'!$D$26:$E$32,2),IF(LEFT($A243,2)=\"C*\",VLOOKUP($E243,'1. Checklist & Certification'!$F$26:$G$32,2),IF(LEFT($A243,2)=\"D*\",VLOOKUP($E243,'1. Checklist & Certification'!$H$26:$I$32,2),IF(LEFT($A243,2)=\"E*\",VLOOKUP($E243,'1. Checklist & Certification'!$J$26:$K$32,2),VLOOKUP($E243,'1. Checklist & Certification'!$A$26:$B$32,2)))))))","v":0},0,0,null,null,null,null,"","",0,0,0,null,{"$f":"IF(A243=\"\",\"\",'1. Checklist & Certification'!$K$1)","v":""},{"$f":"IF(A243=\"\",\"\",'1. Checklist & Certification'!$C$62)","v":""},{"$f":"IF(A243=\"\",\"\",'1. Checklist & Certification'!$C$6)","v":""},{"$f":"IF(A243=\"\",\"\",'1. Checklist & Certification'!$G$5)","v":""},{"$f":"IFERROR(IF(A243=\"\",\"\",\n_xlfn.LET(_xlpm.Contract,'1. Checklist & Certification'!$C$7,\n_xlpm.Yr,TEXT(MOD(_xlfn.TEXTBEFORE(_xlpm.Contract,\"-\"),100),\"00\"),\n_xlpm.Program,_xlfn.TEXTAFTER(_xlfn.TEXTBEFORE(_xlpm.Contract,\"-\",2),\"-\"),\n_xlpm.CleanProgram,_xlfn.XLOOKUP(_xlpm.Program,SpellCheck[Input],SpellCheck[Correction],_xlpm.Program),\n_xlpm.Number,TEXT(_xlfn.TEXTAFTER(_xlpm.Contract,\"-\",2),\"0000\"),\n_xlfn.CONCAT(_xlpm.Yr,\"-\",_xlpm.CleanProgram,\"-\",_xlpm.Number))\n),\"\")","v":""},{"$f":"IFERROR(IF(A243=\"\",\"\",\n_xlfn.LET(_xlpm.Contract,'1. Checklist & Certification'!$C$8,\n_xlpm.Yr,TEXT(MOD(_xlfn.TEXTBEFORE(_xlpm.Contract,\"-\"),100),\"00\"),\n_xlpm.Program,_xlfn.TEXTAFTER(_xlfn.TEXTBEFORE(_xlpm.Contract,\"-\",2),\"-\"),\n_xlpm.CleanProgram,_xlfn.XLOOKUP(_xlpm.Program,SpellCheck[Input],SpellCheck[Correction],_xlpm.Program),\n_xlpm.Number,TEXT(_xlfn.TEXTAFTER(_xlpm.Contract,\"-\",2),\"0000\"),\n_xlfn.CONCAT(_xlpm.Yr,\"-\",_xlpm.CleanProgram,\"-\",_xlpm.Number))\n),\"\")","v":""},{"$f":"IFERROR(IF(A243=\"\",\"\",\n_xlfn.LET(_xlpm.Contract,'1. Checklist & Certification'!$F$7,\n_xlpm.Yr,TEXT(MOD(_xlfn.TEXTBEFORE(_xlpm.Contract,\"-\"),100),\"00\"),\n_xlpm.Program,_xlfn.TEXTAFTER(_xlfn.TEXTBEFORE(_xlpm.Contract,\"-\",2),\"-\"),\n_xlpm.CleanProgram,_xlfn.XLOOKUP(_xlpm.Program,SpellCheck[Input],SpellCheck[Correction],_xlpm.Program),\n_xlpm.Number,TEXT(_xlfn.TEXTAFTER(_xlpm.Contract,\"-\",2),\"0000\"),\n_xlfn.CONCAT(_xlpm.Yr,\"-\",_xlpm.CleanProgram,\"-\",_xlpm.Number))\n),\"\")","v":""},{"$f":"IFERROR(IF(A243=\"\",\"\",\n_xlfn.LET(_xlpm.Contract,'1. Checklist & Certification'!$F$8,\n_xlpm.Yr,TEXT(MOD(_xlfn.TEXTBEFORE(_xlpm.Contract,\"-\"),100),\"00\"),\n_xlpm.Program,_xlfn.TEXTAFTER(_xlfn.TEXTBEFORE(_xlpm.Contract,\"-\",2),\"-\"),\n_xlpm.CleanProgram,_xlfn.XLOOKUP(_xlpm.Program,SpellCheck[Input],SpellCheck[Correction],_xlpm.Program),\n_xlpm.Number,TEXT(_xlfn.TEXTAFTER(_xlpm.Contract,\"-\",2),\"0000\"),\n_xlfn.CONCAT(_xlpm.Yr,\"-\",_xlpm.CleanProgram,\"-\",_xlpm.Number))\n),\"\")","v":""},{"$f":"IF(A243=\"\",\"\",'1. Checklist & Certification'!$B$9)","v":""},{"$f":"IF(A243=\"\",\"\",'1. Checklist & Certification'!$F$9)","v":""},{"$f":"IF(A243=\"\",\"\",'1. Checklist & Certification'!$C$10)","v":""},{"$f":"IF(A243=\"\",\"\",'1. Checklist & Certification'!$C$11)","v":""},{"$f":"IF(A243=\"\",\"\",'1. Checklist & Certification'!$C$12)","v":""},{"$f":"IF(A243=\"\",\"\",'1. Checklist & Certification'!$B$14)","v":""},{"$f":"IF(A243=\"\",\"\",'1. Checklist & Certification'!$E$14)","v":""},{"$f":"IF(B243=\"\",\"\",'1. Checklist & Certification'!$G$14)","v":""},{"$f":"IF(A243=\"\",\"\",'MHP Family Income & Rent Limits'!$B$3)","v":""},{"$f":"IF(A243=\"\",\"\",'MHP Family Income & Rent Limits'!$J$3)","v":""},{"$f":"IF(A243=\"\",\"\",'MHP Family Income & Rent Limits'!$E$4)","v":""},{"$f":"IF(A243=\"\",\"\",'MHP Family Income & Rent Limits'!$C$7)","v":""},{"$f":"IF(A243=\"\",\"\",'MHP Family Income & Rent Limits'!$F$8)","v":""},{"$f":"IF(A243=\"\",\"\",'1. Checklist & Certification'!$G$4)","v":""},{"$f":"IF(A243=\"\",\"\",'1. Checklist & Certification'!$K$39)","v":""},{"$f":"IF(A243=\"\",\"\",'1. Checklist & Certification'!$K$43)","v":""},{"$f":"IF(A243=\"\",\"\",'1. Checklist & Certification'!$K$45)","v":""},{"$f":"IF(A243=\"\",\"\",'1. Checklist & Certification'!$K$49)","v":""},{"$f":"IF(A243=\"\",\"\",'1. Checklist & Certification'!$K$62)","v":""},{"$f":"IF(A243=\"\",\"\",'1. Checklist & Certification'!$E$66)","v":""},{"$f":"IF(A243=\"\",\"\",'1. Checklist & Certification'!$E$67)","v":""},{"$f":"IF(A243=\"\",\"\",'1. Checklist & Certification'!$E$68)","v":""},{"$f":"IF(A243=\"\",\"\",'1. Checklist & Certification'!$G$66)","v":""},{"$f":"IF(A243=\"\",\"\",'1. Checklist & Certification'!$H$66)","v":""},{"$f":"IF(A243=\"\",\"\",'1. Checklist & Certification'!$I$66)","v":""},{"$f":"IF(A243=\"\",\"\",'1. Checklist & Certification'!$I$67)","v":""},{"$f":"IF(A243=\"\",\"\",'1. Checklist & Certification'!$I$68)","v":""},{"$f":"IF(A243=\"\",\"\",'1. Checklist & Certification'!$B$69)","v":""},{"$f":"IF(A243=\"\",\"\",'1. Checklist & Certification'!$C$69)","v":""},{"$f":"IF(A243=\"\",\"\",'1. Checklist & Certification'!$F$69)","v":""},{"$f":"IF(A243=\"\",\"\",'1. Checklist & Certification'!$G$69)","v":""},{"$f":"IF(A243=\"\",\"\",'1. Checklist & Certification'!$J$69)","v":""},{"$f":"IF(A243=\"\",\"\",'1. Checklist & Certification'!$K$69)","v":""},null,null,{"$f":"IF(AND(OR('1. Checklist & Certification'!$M$16=1,'1. Checklist & Certification'!$M$19=2),AO243>0,B243=\"\",I243>0,AQ243<I243,AV243<>\"Sec 8-Project\"),\"X\",IF(AND(OR('1. Checklist & Certification'!$M$20=4,'1. Checklist & Certification'!$M$21=5,'1. Checklist & Certification'!$M$22=7),AO243>0,B243=\"\",I243>0,K243<I243),\"X\",\"\"))","v":""},{"$f":"IF(A243=\"\",\"\",IF(SUMPRODUCT(-- (ISNUMBER(SEARCH({\"*AHSC*\",\"*FMTW*\",\"*FWHG*\",\"*GHI*\",\"*HHC*\",\"*HLCP*\",\"*HOME*\",\"*LPR*\",\"*MHP*\",\"*NHTF*\",\"*NSP*\",\"*PRP*\",\"*TOD*\",\"*VHHP*\"},'1. Checklist & Certification'!$L$7)))),\"MHP\",\"Legacy\"))","v":""},",,",null,null,null,{"$f":"IF('1. Checklist & Certification'!$M$20=4,\"Both\",IF(OR('1. Checklist & Certification'!$M$15>0,S243=\"CHRP-R\",U243=\"CHRP-R\",W243=\"CHRP-R\",Y243=\"CHRP-R\"),\"Under\",\"No\"))","v":"No"},"No","No",{"$f":"_xlfn.IFS(D243=\"\",\"\",D243=1,'MHP Family Income & Rent Limits'!$E$17,D243=2,'MHP Family Income & Rent Limits'!$F$17,D243=3,'MHP Family Income & Rent Limits'!$G$17,D243=4,'MHP Family Income & Rent Limits'!$H$17,D243=5,'MHP Family Income & Rent Limits'!$I$17,D243=6,'MHP Family Income & Rent Limits'!$J$17,D243=7,'MHP Family Income & Rent Limits'!$K$17,D243=8,'MHP Family Income & Rent Limits'!$L$17)","v":""},"",{"$f":"IF(OR(A243=0,B243=\"X\"),0,MIN(IF(AA243:AD243<>0,AA243:AD243)))","v":0},{"$f":"IF(OR(H243=\"\",I243=\"\"),0,IF(H243*0.3/12>I243,MIN(H243*0.3/12,I243*1.1)+AP243,I243*(1+(VLOOKUP('1. Checklist & Certification'!$F$9,'HLCP-E Rent Change'!$A$1:$D$59,4,FALSE)))+AP243))","v":0}]
[null,null,null,null,null,null,null,null,null,null,null,null,null,null,null,null,null,null,null,null,null,null,null,null,null,null,0,0,0,0,0,0,0,0,{"$f":"IF(OR(A244=0,B244=\"X\"),0,IF(OR(S244=\"FHDP\",S244=\"RHCP-B\",U244=\"FHDP\",U244=\"RHCP-B\",W244=\"FHDP\",W244=\"RHCP-B\",Y244=\"FHDP\",Y244=\"RHCP-B\"),TRUNC((MIN(I244,K244)*(1+'1. Checklist & Certification'!$K$43)+AP244)),0))","v":0},{"$f":"IF(OR(A244=0,B244=\"X\"),0,IF(OR(S244=\"CHRP-R\",S244=\"SERA\",S244=\"SUHRP\",U244=\"CHRP-R\",U244=\"SERA\",U244=\"SUHRP\",W244=\"CHRP-R\",W244=\"SERA\",W244=\"SUHRP\",Y244=\"CHRP-R\",Y244=\"SERA\",Y244=\"SUHRP\"),TRUNC((MIN(I244,K244)*(1+'1. Checklist & Certification'!$K$49))),0))","v":0},{"$f":"IF(OR(A244=0,B244=\"X\"),0,IF(OR(S244=\"CALDAP\",S244=\"DPRLP\",U244=\"CALDAP\",U244=\"DPRLP\",W244=\"CALDAP\",W244=\"DPRLP\",Y244=\"CALDAP\",Y244=\"DPRLP\"),TRUNC(((MIN(I244,K244))*(1+'1. Checklist & Certification'!$G$4))),0))","v":0},0,0,0,{"$f":"IF(OR(A244=0,B244=\"X\"),0,IF(OR(S244=\"PRP\",S244=\"LPR\",U244=\"PRP\",U244=\"LPR\",W244=\"PRP\",W244=\"LPR\",Y244=\"PRP\",Y244=\"LPR\"),MAX(I244+AP244,MIN(IF(AE244:AN244<>0,AE244:AN244))),MIN(IF(AE244:AN244<>0,AE244:AN244))))","v":0},{"$f":"IF(A244=0,0,IF(AND(OR(S244=\"Mgr\",S244=0),OR(U244=\"Mgr\",U244=0),OR(W244=\"Mgr\",W244=0)),0,IF(LEFT($A244,2)=\"B*\",VLOOKUP($E244,'1. Checklist & Certification'!$D$26:$E$32,2),IF(LEFT($A244,2)=\"C*\",VLOOKUP($E244,'1. Checklist & Certification'!$F$26:$G$32,2),IF(LEFT($A244,2)=\"D*\",VLOOKUP($E244,'1. Checklist & Certification'!$H$26:$I$32,2),IF(LEFT($A244,2)=\"E*\",VLOOKUP($E244,'1. Checklist & Certification'!$J$26:$K$32,2),VLOOKUP($E244,'1. Checklist & Certification'!$A$26:$B$32,2)))))))","v":0},0,0,null,null,null,null,"","",0,0,0,null,{"$f":"IF(A244=\"\",\"\",'1. Checklist & Certification'!$K$1)","v":""},{"$f":"IF(A244=\"\",\"\",'1. Checklist & Certification'!$C$62)","v":""},{"$f":"IF(A244=\"\",\"\",'1. Checklist & Certification'!$C$6)","v":""},{"$f":"IF(A244=\"\",\"\",'1. Checklist & Certification'!$G$5)","v":""},{"$f":"IFERROR(IF(A244=\"\",\"\",\n_xlfn.LET(_xlpm.Contract,'1. Checklist & Certification'!$C$7,\n_xlpm.Yr,TEXT(MOD(_xlfn.TEXTBEFORE(_xlpm.Contract,\"-\"),100),\"00\"),\n_xlpm.Program,_xlfn.TEXTAFTER(_xlfn.TEXTBEFORE(_xlpm.Contract,\"-\",2),\"-\"),\n_xlpm.CleanProgram,_xlfn.XLOOKUP(_xlpm.Program,SpellCheck[Input],SpellCheck[Correction],_xlpm.Program),\n_xlpm.Number,TEXT(_xlfn.TEXTAFTER(_xlpm.Contract,\"-\",2),\"0000\"),\n_xlfn.CONCAT(_xlpm.Yr,\"-\",_xlpm.CleanProgram,\"-\",_xlpm.Number))\n),\"\")","v":""},{"$f":"IFERROR(IF(A244=\"\",\"\",\n_xlfn.LET(_xlpm.Contract,'1. Checklist & Certification'!$C$8,\n_xlpm.Yr,TEXT(MOD(_xlfn.TEXTBEFORE(_xlpm.Contract,\"-\"),100),\"00\"),\n_xlpm.Program,_xlfn.TEXTAFTER(_xlfn.TEXTBEFORE(_xlpm.Contract,\"-\",2),\"-\"),\n_xlpm.CleanProgram,_xlfn.XLOOKUP(_xlpm.Program,SpellCheck[Input],SpellCheck[Correction],_xlpm.Program),\n_xlpm.Number,TEXT(_xlfn.TEXTAFTER(_xlpm.Contract,\"-\",2),\"0000\"),\n_xlfn.CONCAT(_xlpm.Yr,\"-\",_xlpm.CleanProgram,\"-\",_xlpm.Number))\n),\"\")","v":""},{"$f":"IFERROR(IF(A244=\"\",\"\",\n_xlfn.LET(_xlpm.Contract,'1. Checklist & Certification'!$F$7,\n_xlpm.Yr,TEXT(MOD(_xlfn.TEXTBEFORE(_xlpm.Contract,\"-\"),100),\"00\"),\n_xlpm.Program,_xlfn.TEXTAFTER(_xlfn.TEXTBEFORE(_xlpm.Contract,\"-\",2),\"-\"),\n_xlpm.CleanProgram,_xlfn.XLOOKUP(_xlpm.Program,SpellCheck[Input],SpellCheck[Correction],_xlpm.Program),\n_xlpm.Number,TEXT(_xlfn.TEXTAFTER(_xlpm.Contract,\"-\",2),\"0000\"),\n_xlfn.CONCAT(_xlpm.Yr,\"-\",_xlpm.CleanProgram,\"-\",_xlpm.Number))\n),\"\")","v":""},{"$f":"IFERROR(IF(A244=\"\",\"\",\n_xlfn.LET(_xlpm.Contract,'1. Checklist & Certification'!$F$8,\n_xlpm.Yr,TEXT(MOD(_xlfn.TEXTBEFORE(_xlpm.Contract,\"-\"),100),\"00\"),\n_xlpm.Program,_xlfn.TEXTAFTER(_xlfn.TEXTBEFORE(_xlpm.Contract,\"-\",2),\"-\"),\n_xlpm.CleanProgram,_xlfn.XLOOKUP(_xlpm.Program,SpellCheck[Input],SpellCheck[Correction],_xlpm.Program),\n_xlpm.Number,TEXT(_xlfn.TEXTAFTER(_xlpm.Contract,\"-\",2),\"0000\"),\n_xlfn.CONCAT(_xlpm.Yr,\"-\",_xlpm.CleanProgram,\"-\",_xlpm.Number))\n),\"\")","v":""},{"$f":"IF(A244=\"\",\"\",'1. Checklist & Certification'!$B$9)","v":""},{"$f":"IF(A244=\"\",\"\",'1. Checklist & Certification'!$F$9)","v":""},{"$f":"IF(A244=\"\",\"\",'1. Checklist & Certification'!$C$10)","v":""},{"$f":"IF(A244=\"\",\"\",'1. Checklist & Certification'!$C$11)","v":""},{"$f":"IF(A244=\"\",\"\",'1. Checklist & Certification'!$C$12)","v":""},{"$f":"IF(A244=\"\",\"\",'1. Checklist & Certification'!$B$14)","v":""},{"$f":"IF(A244=\"\",\"\",'1. Checklist & Certification'!$E$14)","v":""},{"$f":"IF(B244=\"\",\"\",'1. Checklist & Certification'!$G$14)","v":""},{"$f":"IF(A244=\"\",\"\",'MHP Family Income & Rent Limits'!$B$3)","v":""},{"$f":"IF(A244=\"\",\"\",'MHP Family Income & Rent Limits'!$J$3)","v":""},{"$f":"IF(A244=\"\",\"\",'MHP Family Income & Rent Limits'!$E$4)","v":""},{"$f":"IF(A244=\"\",\"\",'MHP Family Income & Rent Limits'!$C$7)","v":""},{"$f":"IF(A244=\"\",\"\",'MHP Family Income & Rent Limits'!$F$8)","v":""},{"$f":"IF(A244=\"\",\"\",'1. Checklist & Certification'!$G$4)","v":""},{"$f":"IF(A244=\"\",\"\",'1. Checklist & Certification'!$K$39)","v":""},{"$f":"IF(A244=\"\",\"\",'1. Checklist & Certification'!$K$43)","v":""},{"$f":"IF(A244=\"\",\"\",'1. Checklist & Certification'!$K$45)","v":""},{"$f":"IF(A244=\"\",\"\",'1. Checklist & Certification'!$K$49)","v":""},{"$f":"IF(A244=\"\",\"\",'1. Checklist & Certification'!$K$62)","v":""},{"$f":"IF(A244=\"\",\"\",'1. Checklist & Certification'!$E$66)","v":""},{"$f":"IF(A244=\"\",\"\",'1. Checklist & Certification'!$E$67)","v":""},{"$f":"IF(A244=\"\",\"\",'1. Checklist & Certification'!$E$68)","v":""},{"$f":"IF(A244=\"\",\"\",'1. Checklist & Certification'!$G$66)","v":""},{"$f":"IF(A244=\"\",\"\",'1. Checklist & Certification'!$H$66)","v":""},{"$f":"IF(A244=\"\",\"\",'1. Checklist & Certification'!$I$66)","v":""},{"$f":"IF(A244=\"\",\"\",'1. Checklist & Certification'!$I$67)","v":""},{"$f":"IF(A244=\"\",\"\",'1. Checklist & Certification'!$I$68)","v":""},{"$f":"IF(A244=\"\",\"\",'1. Checklist & Certification'!$B$69)","v":""},{"$f":"IF(A244=\"\",\"\",'1. Checklist & Certification'!$C$69)","v":""},{"$f":"IF(A244=\"\",\"\",'1. Checklist & Certification'!$F$69)","v":""},{"$f":"IF(A244=\"\",\"\",'1. Checklist & Certification'!$G$69)","v":""},{"$f":"IF(A244=\"\",\"\",'1. Checklist & Certification'!$J$69)","v":""},{"$f":"IF(A244=\"\",\"\",'1. Checklist & Certification'!$K$69)","v":""},null,null,{"$f":"IF(AND(OR('1. Checklist & Certification'!$M$16=1,'1. Checklist & Certification'!$M$19=2),AO244>0,B244=\"\",I244>0,AQ244<I244,AV244<>\"Sec 8-Project\"),\"X\",IF(AND(OR('1. Checklist & Certification'!$M$20=4,'1. Checklist & Certification'!$M$21=5,'1. Checklist & Certification'!$M$22=7),AO244>0,B244=\"\",I244>0,K244<I244),\"X\",\"\"))","v":""},{"$f":"IF(A244=\"\",\"\",IF(SUMPRODUCT(-- (ISNUMBER(SEARCH({\"*AHSC*\",\"*FMTW*\",\"*FWHG*\",\"*GHI*\",\"*HHC*\",\"*HLCP*\",\"*HOME*\",\"*LPR*\",\"*MHP*\",\"*NHTF*\",\"*NSP*\",\"*PRP*\",\"*TOD*\",\"*VHHP*\"},'1. Checklist & Certification'!$L$7)))),\"MHP\",\"Legacy\"))","v":""},",,",null,null,null,{"$f":"IF('1. Checklist & Certification'!$M$20=4,\"Both\",IF(OR('1. Checklist & Certification'!$M$15>0,S244=\"CHRP-R\",U244=\"CHRP-R\",W244=\"CHRP-R\",Y244=\"CHRP-R\"),\"Under\",\"No\"))","v":"No"},"No","No",{"$f":"_xlfn.IFS(D244=\"\",\"\",D244=1,'MHP Family Income & Rent Limits'!$E$17,D244=2,'MHP Family Income & Rent Limits'!$F$17,D244=3,'MHP Family Income & Rent Limits'!$G$17,D244=4,'MHP Family Income & Rent Limits'!$H$17,D244=5,'MHP Family Income & Rent Limits'!$I$17,D244=6,'MHP Family Income & Rent Limits'!$J$17,D244=7,'MHP Family Income & Rent Limits'!$K$17,D244=8,'MHP Family Income & Rent Limits'!$L$17)","v":""},"",{"$f":"IF(OR(A244=0,B244=\"X\"),0,MIN(IF(AA244:AD244<>0,AA244:AD244)))","v":0},{"$f":"IF(OR(H244=\"\",I244=\"\"),0,IF(H244*0.3/12>I244,MIN(H244*0.3/12,I244*1.1)+AP244,I244*(1+(VLOOKUP('1. Checklist & Certification'!$F$9,'HLCP-E Rent Change'!$A$1:$D$59,4,FALSE)))+AP244))","v":0}]
[null,null,null,null,null,null,null,null,null,null,null,null,null,null,null,null,null,null,null,null,null,null,null,null,null,null,0,0,0,0,0,0,0,0,{"$f":"IF(OR(A245=0,B245=\"X\"),0,IF(OR(S245=\"FHDP\",S245=\"RHCP-B\",U245=\"FHDP\",U245=\"RHCP-B\",W245=\"FHDP\",W245=\"RHCP-B\",Y245=\"FHDP\",Y245=\"RHCP-B\"),TRUNC((MIN(I245,K245)*(1+'1. Checklist & Certification'!$K$43)+AP245)),0))","v":0},{"$f":"IF(OR(A245=0,B245=\"X\"),0,IF(OR(S245=\"CHRP-R\",S245=\"SERA\",S245=\"SUHRP\",U245=\"CHRP-R\",U245=\"SERA\",U245=\"SUHRP\",W245=\"CHRP-R\",W245=\"SERA\",W245=\"SUHRP\",Y245=\"CHRP-R\",Y245=\"SERA\",Y245=\"SUHRP\"),TRUNC((MIN(I245,K245)*(1+'1. Checklist & Certification'!$K$49))),0))","v":0},{"$f":"IF(OR(A245=0,B245=\"X\"),0,IF(OR(S245=\"CALDAP\",S245=\"DPRLP\",U245=\"CALDAP\",U245=\"DPRLP\",W245=\"CALDAP\",W245=\"DPRLP\",Y245=\"CALDAP\",Y245=\"DPRLP\"),TRUNC(((MIN(I245,K245))*(1+'1. Checklist & Certification'!$G$4))),0))","v":0},0,0,0,{"$f":"IF(OR(A245=0,B245=\"X\"),0,IF(OR(S245=\"PRP\",S245=\"LPR\",U245=\"PRP\",U245=\"LPR\",W245=\"PRP\",W245=\"LPR\",Y245=\"PRP\",Y245=\"LPR\"),MAX(I245+AP245,MIN(IF(AE245:AN245<>0,AE245:AN245))),MIN(IF(AE245:AN245<>0,AE245:AN245))))","v":0},{"$f":"IF(A245=0,0,IF(AND(OR(S245=\"Mgr\",S245=0),OR(U245=\"Mgr\",U245=0),OR(W245=\"Mgr\",W245=0)),0,IF(LEFT($A245,2)=\"B*\",VLOOKUP($E245,'1. Checklist & Certification'!$D$26:$E$32,2),IF(LEFT($A245,2)=\"C*\",VLOOKUP($E245,'1. Checklist & Certification'!$F$26:$G$32,2),IF(LEFT($A245,2)=\"D*\",VLOOKUP($E245,'1. Checklist & Certification'!$H$26:$I$32,2),IF(LEFT($A245,2)=\"E*\",VLOOKUP($E245,'1. Checklist & Certification'!$J$26:$K$32,2),VLOOKUP($E245,'1. Checklist & Certification'!$A$26:$B$32,2)))))))","v":0},0,0,null,null,null,null,"","",0,0,0,null,{"$f":"IF(A245=\"\",\"\",'1. Checklist & Certification'!$K$1)","v":""},{"$f":"IF(A245=\"\",\"\",'1. Checklist & Certification'!$C$62)","v":""},{"$f":"IF(A245=\"\",\"\",'1. Checklist & Certification'!$C$6)","v":""},{"$f":"IF(A245=\"\",\"\",'1. Checklist & Certification'!$G$5)","v":""},{"$f":"IFERROR(IF(A245=\"\",\"\",\n_xlfn.LET(_xlpm.Contract,'1. Checklist & Certification'!$C$7,\n_xlpm.Yr,TEXT(MOD(_xlfn.TEXTBEFORE(_xlpm.Contract,\"-\"),100),\"00\"),\n_xlpm.Program,_xlfn.TEXTAFTER(_xlfn.TEXTBEFORE(_xlpm.Contract,\"-\",2),\"-\"),\n_xlpm.CleanProgram,_xlfn.XLOOKUP(_xlpm.Program,SpellCheck[Input],SpellCheck[Correction],_xlpm.Program),\n_xlpm.Number,TEXT(_xlfn.TEXTAFTER(_xlpm.Contract,\"-\",2),\"0000\"),\n_xlfn.CONCAT(_xlpm.Yr,\"-\",_xlpm.CleanProgram,\"-\",_xlpm.Number))\n),\"\")","v":""},{"$f":"IFERROR(IF(A245=\"\",\"\",\n_xlfn.LET(_xlpm.Contract,'1. Checklist & Certification'!$C$8,\n_xlpm.Yr,TEXT(MOD(_xlfn.TEXTBEFORE(_xlpm.Contract,\"-\"),100),\"00\"),\n_xlpm.Program,_xlfn.TEXTAFTER(_xlfn.TEXTBEFORE(_xlpm.Contract,\"-\",2),\"-\"),\n_xlpm.CleanProgram,_xlfn.XLOOKUP(_xlpm.Program,SpellCheck[Input],SpellCheck[Correction],_xlpm.Program),\n_xlpm.Number,TEXT(_xlfn.TEXTAFTER(_xlpm.Contract,\"-\",2),\"0000\"),\n_xlfn.CONCAT(_xlpm.Yr,\"-\",_xlpm.CleanProgram,\"-\",_xlpm.Number))\n),\"\")","v":""},{"$f":"IFERROR(IF(A245=\"\",\"\",\n_xlfn.LET(_xlpm.Contract,'1. Checklist & Certification'!$F$7,\n_xlpm.Yr,TEXT(MOD(_xlfn.TEXTBEFORE(_xlpm.Contract,\"-\"),100),\"00\"),\n_xlpm.Program,_xlfn.TEXTAFTER(_xlfn.TEXTBEFORE(_xlpm.Contract,\"-\",2),\"-\"),\n_xlpm.CleanProgram,_xlfn.XLOOKUP(_xlpm.Program,SpellCheck[Input],SpellCheck[Correction],_xlpm.Program),\n_xlpm.Number,TEXT(_xlfn.TEXTAFTER(_xlpm.Contract,\"-\",2),\"0000\"),\n_xlfn.CONCAT(_xlpm.Yr,\"-\",_xlpm.CleanProgram,\"-\",_xlpm.Number))\n),\"\")","v":""},{"$f":"IFERROR(IF(A245=\"\",\"\",\n_xlfn.LET(_xlpm.Contract,'1. Checklist & Certification'!$F$8,\n_xlpm.Yr,TEXT(MOD(_xlfn.TEXTBEFORE(_xlpm.Contract,\"-\"),100),\"00\"),\n_xlpm.Program,_xlfn.TEXTAFTER(_xlfn.TEXTBEFORE(_xlpm.Contract,\"-\",2),\"-\"),\n_xlpm.CleanProgram,_xlfn.XLOOKUP(_xlpm.Program,SpellCheck[Input],SpellCheck[Correction],_xlpm.Program),\n_xlpm.Number,TEXT(_xlfn.TEXTAFTER(_xlpm.Contract,\"-\",2),\"0000\"),\n_xlfn.CONCAT(_xlpm.Yr,\"-\",_xlpm.CleanProgram,\"-\",_xlpm.Number))\n),\"\")","v":""},{"$f":"IF(A245=\"\",\"\",'1. Checklist & Certification'!$B$9)","v":""},{"$f":"IF(A245=\"\",\"\",'1. Checklist & Certification'!$F$9)","v":""},{"$f":"IF(A245=\"\",\"\",'1. Checklist & Certification'!$C$10)","v":""},{"$f":"IF(A245=\"\",\"\",'1. Checklist & Certification'!$C$11)","v":""},{"$f":"IF(A245=\"\",\"\",'1. Checklist & Certification'!$C$12)","v":""},{"$f":"IF(A245=\"\",\"\",'1. Checklist & Certification'!$B$14)","v":""},{"$f":"IF(A245=\"\",\"\",'1. Checklist & Certification'!$E$14)","v":""},{"$f":"IF(B245=\"\",\"\",'1. Checklist & Certification'!$G$14)","v":""},{"$f":"IF(A245=\"\",\"\",'MHP Family Income & Rent Limits'!$B$3)","v":""},{"$f":"IF(A245=\"\",\"\",'MHP Family Income & Rent Limits'!$J$3)","v":""},{"$f":"IF(A245=\"\",\"\",'MHP Family Income & Rent Limits'!$E$4)","v":""},{"$f":"IF(A245=\"\",\"\",'MHP Family Income & Rent Limits'!$C$7)","v":""},{"$f":"IF(A245=\"\",\"\",'MHP Family Income & Rent Limits'!$F$8)","v":""},{"$f":"IF(A245=\"\",\"\",'1. Checklist & Certification'!$G$4)","v":""},{"$f":"IF(A245=\"\",\"\",'1. Checklist & Certification'!$K$39)","v":""},{"$f":"IF(A245=\"\",\"\",'1. Checklist & Certification'!$K$43)","v":""},{"$f":"IF(A245=\"\",\"\",'1. Checklist & Certification'!$K$45)","v":""},{"$f":"IF(A245=\"\",\"\",'1. Checklist & Certification'!$K$49)","v":""},{"$f":"IF(A245=\"\",\"\",'1. Checklist & Certification'!$K$62)","v":""},{"$f":"IF(A245=\"\",\"\",'1. Checklist & Certification'!$E$66)","v":""},{"$f":"IF(A245=\"\",\"\",'1. Checklist & Certification'!$E$67)","v":""},{"$f":"IF(A245=\"\",\"\",'1. Checklist & Certification'!$E$68)","v":""},{"$f":"IF(A245=\"\",\"\",'1. Checklist & Certification'!$G$66)","v":""},{"$f":"IF(A245=\"\",\"\",'1. Checklist & Certification'!$H$66)","v":""},{"$f":"IF(A245=\"\",\"\",'1. Checklist & Certification'!$I$66)","v":""},{"$f":"IF(A245=\"\",\"\",'1. Checklist & Certification'!$I$67)","v":""},{"$f":"IF(A245=\"\",\"\",'1. Checklist & Certification'!$I$68)","v":""},{"$f":"IF(A245=\"\",\"\",'1. Checklist & Certification'!$B$69)","v":""},{"$f":"IF(A245=\"\",\"\",'1. Checklist & Certification'!$C$69)","v":""},{"$f":"IF(A245=\"\",\"\",'1. Checklist & Certification'!$F$69)","v":""},{"$f":"IF(A245=\"\",\"\",'1. Checklist & Certification'!$G$69)","v":""},{"$f":"IF(A245=\"\",\"\",'1. Checklist & Certification'!$J$69)","v":""},{"$f":"IF(A245=\"\",\"\",'1. Checklist & Certification'!$K$69)","v":""},null,null,{"$f":"IF(AND(OR('1. Checklist & Certification'!$M$16=1,'1. Checklist & Certification'!$M$19=2),AO245>0,B245=\"\",I245>0,AQ245<I245,AV245<>\"Sec 8-Project\"),\"X\",IF(AND(OR('1. Checklist & Certification'!$M$20=4,'1. Checklist & Certification'!$M$21=5,'1. Checklist & Certification'!$M$22=7),AO245>0,B245=\"\",I245>0,K245<I245),\"X\",\"\"))","v":""},{"$f":"IF(A245=\"\",\"\",IF(SUMPRODUCT(-- (ISNUMBER(SEARCH({\"*AHSC*\",\"*FMTW*\",\"*FWHG*\",\"*GHI*\",\"*HHC*\",\"*HLCP*\",\"*HOME*\",\"*LPR*\",\"*MHP*\",\"*NHTF*\",\"*NSP*\",\"*PRP*\",\"*TOD*\",\"*VHHP*\"},'1. Checklist & Certification'!$L$7)))),\"MHP\",\"Legacy\"))","v":""},",,",null,null,null,{"$f":"IF('1. Checklist & Certification'!$M$20=4,\"Both\",IF(OR('1. Checklist & Certification'!$M$15>0,S245=\"CHRP-R\",U245=\"CHRP-R\",W245=\"CHRP-R\",Y245=\"CHRP-R\"),\"Under\",\"No\"))","v":"No"},"No","No",{"$f":"_xlfn.IFS(D245=\"\",\"\",D245=1,'MHP Family Income & Rent Limits'!$E$17,D245=2,'MHP Family Income & Rent Limits'!$F$17,D245=3,'MHP Family Income & Rent Limits'!$G$17,D245=4,'MHP Family Income & Rent Limits'!$H$17,D245=5,'MHP Family Income & Rent Limits'!$I$17,D245=6,'MHP Family Income & Rent Limits'!$J$17,D245=7,'MHP Family Income & Rent Limits'!$K$17,D245=8,'MHP Family Income & Rent Limits'!$L$17)","v":""},"",{"$f":"IF(OR(A245=0,B245=\"X\"),0,MIN(IF(AA245:AD245<>0,AA245:AD245)))","v":0},{"$f":"IF(OR(H245=\"\",I245=\"\"),0,IF(H245*0.3/12>I245,MIN(H245*0.3/12,I245*1.1)+AP245,I245*(1+(VLOOKUP('1. Checklist & Certification'!$F$9,'HLCP-E Rent Change'!$A$1:$D$59,4,FALSE)))+AP245))","v":0}]
[null,null,null,null,null,null,null,null,null,null,null,null,null,null,null,null,null,null,null,null,null,null,null,null,null,null,0,0,0,0,0,0,0,0,{"$f":"IF(OR(A246=0,B246=\"X\"),0,IF(OR(S246=\"FHDP\",S246=\"RHCP-B\",U246=\"FHDP\",U246=\"RHCP-B\",W246=\"FHDP\",W246=\"RHCP-B\",Y246=\"FHDP\",Y246=\"RHCP-B\"),TRUNC((MIN(I246,K246)*(1+'1. Checklist & Certification'!$K$43)+AP246)),0))","v":0},{"$f":"IF(OR(A246=0,B246=\"X\"),0,IF(OR(S246=\"CHRP-R\",S246=\"SERA\",S246=\"SUHRP\",U246=\"CHRP-R\",U246=\"SERA\",U246=\"SUHRP\",W246=\"CHRP-R\",W246=\"SERA\",W246=\"SUHRP\",Y246=\"CHRP-R\",Y246=\"SERA\",Y246=\"SUHRP\"),TRUNC((MIN(I246,K246)*(1+'1. Checklist & Certification'!$K$49))),0))","v":0},{"$f":"IF(OR(A246=0,B246=\"X\"),0,IF(OR(S246=\"CALDAP\",S246=\"DPRLP\",U246=\"CALDAP\",U246=\"DPRLP\",W246=\"CALDAP\",W246=\"DPRLP\",Y246=\"CALDAP\",Y246=\"DPRLP\"),TRUNC(((MIN(I246,K246))*(1+'1. Checklist & Certification'!$G$4))),0))","v":0},0,0,0,{"$f":"IF(OR(A246=0,B246=\"X\"),0,IF(OR(S246=\"PRP\",S246=\"LPR\",U246=\"PRP\",U246=\"LPR\",W246=\"PRP\",W246=\"LPR\",Y246=\"PRP\",Y246=\"LPR\"),MAX(I246+AP246,MIN(IF(AE246:AN246<>0,AE246:AN246))),MIN(IF(AE246:AN246<>0,AE246:AN246))))","v":0},{"$f":"IF(A246=0,0,IF(AND(OR(S246=\"Mgr\",S246=0),OR(U246=\"Mgr\",U246=0),OR(W246=\"Mgr\",W246=0)),0,IF(LEFT($A246,2)=\"B*\",VLOOKUP($E246,'1. Checklist & Certification'!$D$26:$E$32,2),IF(LEFT($A246,2)=\"C*\",VLOOKUP($E246,'1. Checklist & Certification'!$F$26:$G$32,2),IF(LEFT($A246,2)=\"D*\",VLOOKUP($E246,'1. Checklist & Certification'!$H$26:$I$32,2),IF(LEFT($A246,2)=\"E*\",VLOOKUP($E246,'1. Checklist & Certification'!$J$26:$K$32,2),VLOOKUP($E246,'1. Checklist & Certification'!$A$26:$B$32,2)))))))","v":0},0,0,null,null,null,null,"","",0,0,0,null,{"$f":"IF(A246=\"\",\"\",'1. Checklist & Certification'!$K$1)","v":""},{"$f":"IF(A246=\"\",\"\",'1. Checklist & Certification'!$C$62)","v":""},{"$f":"IF(A246=\"\",\"\",'1. Checklist & Certification'!$C$6)","v":""},{"$f":"IF(A246=\"\",\"\",'1. Checklist & Certification'!$G$5)","v":""},{"$f":"IFERROR(IF(A246=\"\",\"\",\n_xlfn.LET(_xlpm.Contract,'1. Checklist & Certification'!$C$7,\n_xlpm.Yr,TEXT(MOD(_xlfn.TEXTBEFORE(_xlpm.Contract,\"-\"),100),\"00\"),\n_xlpm.Program,_xlfn.TEXTAFTER(_xlfn.TEXTBEFORE(_xlpm.Contract,\"-\",2),\"-\"),\n_xlpm.CleanProgram,_xlfn.XLOOKUP(_xlpm.Program,SpellCheck[Input],SpellCheck[Correction],_xlpm.Program),\n_xlpm.Number,TEXT(_xlfn.TEXTAFTER(_xlpm.Contract,\"-\",2),\"0000\"),\n_xlfn.CONCAT(_xlpm.Yr,\"-\",_xlpm.CleanProgram,\"-\",_xlpm.Number))\n),\"\")","v":""},{"$f":"IFERROR(IF(A246=\"\",\"\",\n_xlfn.LET(_xlpm.Contract,'1. Checklist & Certification'!$C$8,\n_xlpm.Yr,TEXT(MOD(_xlfn.TEXTBEFORE(_xlpm.Contract,\"-\"),100),\"00\"),\n_xlpm.Program,_xlfn.TEXTAFTER(_xlfn.TEXTBEFORE(_xlpm.Contract,\"-\",2),\"-\"),\n_xlpm.CleanProgram,_xlfn.XLOOKUP(_xlpm.Program,SpellCheck[Input],SpellCheck[Correction],_xlpm.Program),\n_xlpm.Number,TEXT(_xlfn.TEXTAFTER(_xlpm.Contract,\"-\",2),\"0000\"),\n_xlfn.CONCAT(_xlpm.Yr,\"-\",_xlpm.CleanProgram,\"-\",_xlpm.Number))\n),\"\")","v":""},{"$f":"IFERROR(IF(A246=\"\",\"\",\n_xlfn.LET(_xlpm.Contract,'1. Checklist & Certification'!$F$7,\n_xlpm.Yr,TEXT(MOD(_xlfn.TEXTBEFORE(_xlpm.Contract,\"-\"),100),\"00\"),\n_xlpm.Program,_xlfn.TEXTAFTER(_xlfn.TEXTBEFORE(_xlpm.Contract,\"-\",2),\"-\"),\n_xlpm.CleanProgram,_xlfn.XLOOKUP(_xlpm.Program,SpellCheck[Input],SpellCheck[Correction],_xlpm.Program),\n_xlpm.Number,TEXT(_xlfn.TEXTAFTER(_xlpm.Contract,\"-\",2),\"0000\"),\n_xlfn.CONCAT(_xlpm.Yr,\"-\",_xlpm.CleanProgram,\"-\",_xlpm.Number))\n),\"\")","v":""},{"$f":"IFERROR(IF(A246=\"\",\"\",\n_xlfn.LET(_xlpm.Contract,'1. Checklist & Certification'!$F$8,\n_xlpm.Yr,TEXT(MOD(_xlfn.TEXTBEFORE(_xlpm.Contract,\"-\"),100),\"00\"),\n_xlpm.Program,_xlfn.TEXTAFTER(_xlfn.TEXTBEFORE(_xlpm.Contract,\"-\",2),\"-\"),\n_xlpm.CleanProgram,_xlfn.XLOOKUP(_xlpm.Program,SpellCheck[Input],SpellCheck[Correction],_xlpm.Program),\n_xlpm.Number,TEXT(_xlfn.TEXTAFTER(_xlpm.Contract,\"-\",2),\"0000\"),\n_xlfn.CONCAT(_xlpm.Yr,\"-\",_xlpm.CleanProgram,\"-\",_xlpm.Number))\n),\"\")","v":""},{"$f":"IF(A246=\"\",\"\",'1. Checklist & Certification'!$B$9)","v":""},{"$f":"IF(A246=\"\",\"\",'1. Checklist & Certification'!$F$9)","v":""},{"$f":"IF(A246=\"\",\"\",'1. Checklist & Certification'!$C$10)","v":""},{"$f":"IF(A246=\"\",\"\",'1. Checklist & Certification'!$C$11)","v":""},{"$f":"IF(A246=\"\",\"\",'1. Checklist & Certification'!$C$12)","v":""},{"$f":"IF(A246=\"\",\"\",'1. Checklist & Certification'!$B$14)","v":""},{"$f":"IF(A246=\"\",\"\",'1. Checklist & Certification'!$E$14)","v":""},{"$f":"IF(B246=\"\",\"\",'1. Checklist & Certification'!$G$14)","v":""},{"$f":"IF(A246=\"\",\"\",'MHP Family Income & Rent Limits'!$B$3)","v":""},{"$f":"IF(A246=\"\",\"\",'MHP Family Income & Rent Limits'!$J$3)","v":""},{"$f":"IF(A246=\"\",\"\",'MHP Family Income & Rent Limits'!$E$4)","v":""},{"$f":"IF(A246=\"\",\"\",'MHP Family Income & Rent Limits'!$C$7)","v":""},{"$f":"IF(A246=\"\",\"\",'MHP Family Income & Rent Limits'!$F$8)","v":""},{"$f":"IF(A246=\"\",\"\",'1. Checklist & Certification'!$G$4)","v":""},{"$f":"IF(A246=\"\",\"\",'1. Checklist & Certification'!$K$39)","v":""},{"$f":"IF(A246=\"\",\"\",'1. Checklist & Certification'!$K$43)","v":""},{"$f":"IF(A246=\"\",\"\",'1. Checklist & Certification'!$K$45)","v":""},{"$f":"IF(A246=\"\",\"\",'1. Checklist & Certification'!$K$49)","v":""},{"$f":"IF(A246=\"\",\"\",'1. Checklist & Certification'!$K$62)","v":""},{"$f":"IF(A246=\"\",\"\",'1. Checklist & Certification'!$E$66)","v":""},{"$f":"IF(A246=\"\",\"\",'1. Checklist & Certification'!$E$67)","v":""},{"$f":"IF(A246=\"\",\"\",'1. Checklist & Certification'!$E$68)","v":""},{"$f":"IF(A246=\"\",\"\",'1. Checklist & Certification'!$G$66)","v":""},{"$f":"IF(A246=\"\",\"\",'1. Checklist & Certification'!$H$66)","v":""},{"$f":"IF(A246=\"\",\"\",'1. Checklist & Certification'!$I$66)","v":""},{"$f":"IF(A246=\"\",\"\",'1. Checklist & Certification'!$I$67)","v":""},{"$f":"IF(A246=\"\",\"\",'1. Checklist & Certification'!$I$68)","v":""},{"$f":"IF(A246=\"\",\"\",'1. Checklist & Certification'!$B$69)","v":""},{"$f":"IF(A246=\"\",\"\",'1. Checklist & Certification'!$C$69)","v":""},{"$f":"IF(A246=\"\",\"\",'1. Checklist & Certification'!$F$69)","v":""},{"$f":"IF(A246=\"\",\"\",'1. Checklist & Certification'!$G$69)","v":""},{"$f":"IF(A246=\"\",\"\",'1. Checklist & Certification'!$J$69)","v":""},{"$f":"IF(A246=\"\",\"\",'1. Checklist & Certification'!$K$69)","v":""},null,null,{"$f":"IF(AND(OR('1. Checklist & Certification'!$M$16=1,'1. Checklist & Certification'!$M$19=2),AO246>0,B246=\"\",I246>0,AQ246<I246,AV246<>\"Sec 8-Project\"),\"X\",IF(AND(OR('1. Checklist & Certification'!$M$20=4,'1. Checklist & Certification'!$M$21=5,'1. Checklist & Certification'!$M$22=7),AO246>0,B246=\"\",I246>0,K246<I246),\"X\",\"\"))","v":""},{"$f":"IF(A246=\"\",\"\",IF(SUMPRODUCT(-- (ISNUMBER(SEARCH({\"*AHSC*\",\"*FMTW*\",\"*FWHG*\",\"*GHI*\",\"*HHC*\",\"*HLCP*\",\"*HOME*\",\"*LPR*\",\"*MHP*\",\"*NHTF*\",\"*NSP*\",\"*PRP*\",\"*TOD*\",\"*VHHP*\"},'1. Checklist & Certification'!$L$7)))),\"MHP\",\"Legacy\"))","v":""},",,",null,null,null,{"$f":"IF('1. Checklist & Certification'!$M$20=4,\"Both\",IF(OR('1. Checklist & Certification'!$M$15>0,S246=\"CHRP-R\",U246=\"CHRP-R\",W246=\"CHRP-R\",Y246=\"CHRP-R\"),\"Under\",\"No\"))","v":"No"},"No","No",{"$f":"_xlfn.IFS(D246=\"\",\"\",D246=1,'MHP Family Income & Rent Limits'!$E$17,D246=2,'MHP Family Income & Rent Limits'!$F$17,D246=3,'MHP Family Income & Rent Limits'!$G$17,D246=4,'MHP Family Income & Rent Limits'!$H$17,D246=5,'MHP Family Income & Rent Limits'!$I$17,D246=6,'MHP Family Income & Rent Limits'!$J$17,D246=7,'MHP Family Income & Rent Limits'!$K$17,D246=8,'MHP Family Income & Rent Limits'!$L$17)","v":""},"",{"$f":"IF(OR(A246=0,B246=\"X\"),0,MIN(IF(AA246:AD246<>0,AA246:AD246)))","v":0},{"$f":"IF(OR(H246=\"\",I246=\"\"),0,IF(H246*0.3/12>I246,MIN(H246*0.3/12,I246*1.1)+AP246,I246*(1+(VLOOKUP('1. Checklist & Certification'!$F$9,'HLCP-E Rent Change'!$A$1:$D$59,4,FALSE)))+AP246))","v":0}]
[null,null,null,null,null,null,null,null,null,null,null,null,null,null,null,null,null,null,null,null,null,null,null,null,null,null,0,0,0,0,0,0,0,0,{"$f":"IF(OR(A247=0,B247=\"X\"),0,IF(OR(S247=\"FHDP\",S247=\"RHCP-B\",U247=\"FHDP\",U247=\"RHCP-B\",W247=\"FHDP\",W247=\"RHCP-B\",Y247=\"FHDP\",Y247=\"RHCP-B\"),TRUNC((MIN(I247,K247)*(1+'1. Checklist & Certification'!$K$43)+AP247)),0))","v":0},{"$f":"IF(OR(A247=0,B247=\"X\"),0,IF(OR(S247=\"CHRP-R\",S247=\"SERA\",S247=\"SUHRP\",U247=\"CHRP-R\",U247=\"SERA\",U247=\"SUHRP\",W247=\"CHRP-R\",W247=\"SERA\",W247=\"SUHRP\",Y247=\"CHRP-R\",Y247=\"SERA\",Y247=\"SUHRP\"),TRUNC((MIN(I247,K247)*(1+'1. Checklist & Certification'!$K$49))),0))","v":0},{"$f":"IF(OR(A247=0,B247=\"X\"),0,IF(OR(S247=\"CALDAP\",S247=\"DPRLP\",U247=\"CALDAP\",U247=\"DPRLP\",W247=\"CALDAP\",W247=\"DPRLP\",Y247=\"CALDAP\",Y247=\"DPRLP\"),TRUNC(((MIN(I247,K247))*(1+'1. Checklist & Certification'!$G$4))),0))","v":0},0,0,0,{"$f":"IF(OR(A247=0,B247=\"X\"),0,IF(OR(S247=\"PRP\",S247=\"LPR\",U247=\"PRP\",U247=\"LPR\",W247=\"PRP\",W247=\"LPR\",Y247=\"PRP\",Y247=\"LPR\"),MAX(I247+AP247,MIN(IF(AE247:AN247<>0,AE247:AN247))),MIN(IF(AE247:AN247<>0,AE247:AN247))))","v":0},{"$f":"IF(A247=0,0,IF(AND(OR(S247=\"Mgr\",S247=0),OR(U247=\"Mgr\",U247=0),OR(W247=\"Mgr\",W247=0)),0,IF(LEFT($A247,2)=\"B*\",VLOOKUP($E247,'1. Checklist & Certification'!$D$26:$E$32,2),IF(LEFT($A247,2)=\"C*\",VLOOKUP($E247,'1. Checklist & Certification'!$F$26:$G$32,2),IF(LEFT($A247,2)=\"D*\",VLOOKUP($E247,'1. Checklist & Certification'!$H$26:$I$32,2),IF(LEFT($A247,2)=\"E*\",VLOOKUP($E247,'1. Checklist & Certification'!$J$26:$K$32,2),VLOOKUP($E247,'1. Checklist & Certification'!$A$26:$B$32,2)))))))","v":0},0,0,null,null,null,null,"","",0,0,0,null,{"$f":"IF(A247=\"\",\"\",'1. Checklist & Certification'!$K$1)","v":""},{"$f":"IF(A247=\"\",\"\",'1. Checklist & Certification'!$C$62)","v":""},{"$f":"IF(A247=\"\",\"\",'1. Checklist & Certification'!$C$6)","v":""},{"$f":"IF(A247=\"\",\"\",'1. Checklist & Certification'!$G$5)","v":""},{"$f":"IFERROR(IF(A247=\"\",\"\",\n_xlfn.LET(_xlpm.Contract,'1. Checklist & Certification'!$C$7,\n_xlpm.Yr,TEXT(MOD(_xlfn.TEXTBEFORE(_xlpm.Contract,\"-\"),100),\"00\"),\n_xlpm.Program,_xlfn.TEXTAFTER(_xlfn.TEXTBEFORE(_xlpm.Contract,\"-\",2),\"-\"),\n_xlpm.CleanProgram,_xlfn.XLOOKUP(_xlpm.Program,SpellCheck[Input],SpellCheck[Correction],_xlpm.Program),\n_xlpm.Number,TEXT(_xlfn.TEXTAFTER(_xlpm.Contract,\"-\",2),\"0000\"),\n_xlfn.CONCAT(_xlpm.Yr,\"-\",_xlpm.CleanProgram,\"-\",_xlpm.Number))\n),\"\")","v":""},{"$f":"IFERROR(IF(A247=\"\",\"\",\n_xlfn.LET(_xlpm.Contract,'1. Checklist & Certification'!$C$8,\n_xlpm.Yr,TEXT(MOD(_xlfn.TEXTBEFORE(_xlpm.Contract,\"-\"),100),\"00\"),\n_xlpm.Program,_xlfn.TEXTAFTER(_xlfn.TEXTBEFORE(_xlpm.Contract,\"-\",2),\"-\"),\n_xlpm.CleanProgram,_xlfn.XLOOKUP(_xlpm.Program,SpellCheck[Input],SpellCheck[Correction],_xlpm.Program),\n_xlpm.Number,TEXT(_xlfn.TEXTAFTER(_xlpm.Contract,\"-\",2),\"0000\"),\n_xlfn.CONCAT(_xlpm.Yr,\"-\",_xlpm.CleanProgram,\"-\",_xlpm.Number))\n),\"\")","v":""},{"$f":"IFERROR(IF(A247=\"\",\"\",\n_xlfn.LET(_xlpm.Contract,'1. Checklist & Certification'!$F$7,\n_xlpm.Yr,TEXT(MOD(_xlfn.TEXTBEFORE(_xlpm.Contract,\"-\"),100),\"00\"),\n_xlpm.Program,_xlfn.TEXTAFTER(_xlfn.TEXTBEFORE(_xlpm.Contract,\"-\",2),\"-\"),\n_xlpm.CleanProgram,_xlfn.XLOOKUP(_xlpm.Program,SpellCheck[Input],SpellCheck[Correction],_xlpm.Program),\n_xlpm.Number,TEXT(_xlfn.TEXTAFTER(_xlpm.Contract,\"-\",2),\"0000\"),\n_xlfn.CONCAT(_xlpm.Yr,\"-\",_xlpm.CleanProgram,\"-\",_xlpm.Number))\n),\"\")","v":""},{"$f":"IFERROR(IF(A247=\"\",\"\",\n_xlfn.LET(_xlpm.Contract,'1. Checklist & Certification'!$F$8,\n_xlpm.Yr,TEXT(MOD(_xlfn.TEXTBEFORE(_xlpm.Contract,\"-\"),100),\"00\"),\n_xlpm.Program,_xlfn.TEXTAFTER(_xlfn.TEXTBEFORE(_xlpm.Contract,\"-\",2),\"-\"),\n_xlpm.CleanProgram,_xlfn.XLOOKUP(_xlpm.Program,SpellCheck[Input],SpellCheck[Correction],_xlpm.Program),\n_xlpm.Number,TEXT(_xlfn.TEXTAFTER(_xlpm.Contract,\"-\",2),\"0000\"),\n_xlfn.CONCAT(_xlpm.Yr,\"-\",_xlpm.CleanProgram,\"-\",_xlpm.Number))\n),\"\")","v":""},{"$f":"IF(A247=\"\",\"\",'1. Checklist & Certification'!$B$9)","v":""},{"$f":"IF(A247=\"\",\"\",'1. Checklist & Certification'!$F$9)","v":""},{"$f":"IF(A247=\"\",\"\",'1. Checklist & Certification'!$C$10)","v":""},{"$f":"IF(A247=\"\",\"\",'1. Checklist & Certification'!$C$11)","v":""},{"$f":"IF(A247=\"\",\"\",'1. Checklist & Certification'!$C$12)","v":""},{"$f":"IF(A247=\"\",\"\",'1. Checklist & Certification'!$B$14)","v":""},{"$f":"IF(A247=\"\",\"\",'1. Checklist & Certification'!$E$14)","v":""},{"$f":"IF(B247=\"\",\"\",'1. Checklist & Certification'!$G$14)","v":""},{"$f":"IF(A247=\"\",\"\",'MHP Family Income & Rent Limits'!$B$3)","v":""},{"$f":"IF(A247=\"\",\"\",'MHP Family Income & Rent Limits'!$J$3)","v":""},{"$f":"IF(A247=\"\",\"\",'MHP Family Income & Rent Limits'!$E$4)","v":""},{"$f":"IF(A247=\"\",\"\",'MHP Family Income & Rent Limits'!$C$7)","v":""},{"$f":"IF(A247=\"\",\"\",'MHP Family Income & Rent Limits'!$F$8)","v":""},{"$f":"IF(A247=\"\",\"\",'1. Checklist & Certification'!$G$4)","v":""},{"$f":"IF(A247=\"\",\"\",'1. Checklist & Certification'!$K$39)","v":""},{"$f":"IF(A247=\"\",\"\",'1. Checklist & Certification'!$K$43)","v":""},{"$f":"IF(A247=\"\",\"\",'1. Checklist & Certification'!$K$45)","v":""},{"$f":"IF(A247=\"\",\"\",'1. Checklist & Certification'!$K$49)","v":""},{"$f":"IF(A247=\"\",\"\",'1. Checklist & Certification'!$K$62)","v":""},{"$f":"IF(A247=\"\",\"\",'1. Checklist & Certification'!$E$66)","v":""},{"$f":"IF(A247=\"\",\"\",'1. Checklist & Certification'!$E$67)","v":""},{"$f":"IF(A247=\"\",\"\",'1. Checklist & Certification'!$E$68)","v":""},{"$f":"IF(A247=\"\",\"\",'1. Checklist & Certification'!$G$66)","v":""},{"$f":"IF(A247=\"\",\"\",'1. Checklist & Certification'!$H$66)","v":""},{"$f":"IF(A247=\"\",\"\",'1. Checklist & Certification'!$I$66)","v":""},{"$f":"IF(A247=\"\",\"\",'1. Checklist & Certification'!$I$67)","v":""},{"$f":"IF(A247=\"\",\"\",'1. Checklist & Certification'!$I$68)","v":""},{"$f":"IF(A247=\"\",\"\",'1. Checklist & Certification'!$B$69)","v":""},{"$f":"IF(A247=\"\",\"\",'1. Checklist & Certification'!$C$69)","v":""},{"$f":"IF(A247=\"\",\"\",'1. Checklist & Certification'!$F$69)","v":""},{"$f":"IF(A247=\"\",\"\",'1. Checklist & Certification'!$G$69)","v":""},{"$f":"IF(A247=\"\",\"\",'1. Checklist & Certification'!$J$69)","v":""},{"$f":"IF(A247=\"\",\"\",'1. Checklist & Certification'!$K$69)","v":""},null,null,{"$f":"IF(AND(OR('1. Checklist & Certification'!$M$16=1,'1. Checklist & Certification'!$M$19=2),AO247>0,B247=\"\",I247>0,AQ247<I247,AV247<>\"Sec 8-Project\"),\"X\",IF(AND(OR('1. Checklist & Certification'!$M$20=4,'1. Checklist & Certification'!$M$21=5,'1. Checklist & Certification'!$M$22=7),AO247>0,B247=\"\",I247>0,K247<I247),\"X\",\"\"))","v":""},{"$f":"IF(A247=\"\",\"\",IF(SUMPRODUCT(-- (ISNUMBER(SEARCH({\"*AHSC*\",\"*FMTW*\",\"*FWHG*\",\"*GHI*\",\"*HHC*\",\"*HLCP*\",\"*HOME*\",\"*LPR*\",\"*MHP*\",\"*NHTF*\",\"*NSP*\",\"*PRP*\",\"*TOD*\",\"*VHHP*\"},'1. Checklist & Certification'!$L$7)))),\"MHP\",\"Legacy\"))","v":""},",,",null,null,null,{"$f":"IF('1. Checklist & Certification'!$M$20=4,\"Both\",IF(OR('1. Checklist & Certification'!$M$15>0,S247=\"CHRP-R\",U247=\"CHRP-R\",W247=\"CHRP-R\",Y247=\"CHRP-R\"),\"Under\",\"No\"))","v":"No"},"No","No",{"$f":"_xlfn.IFS(D247=\"\",\"\",D247=1,'MHP Family Income & Rent Limits'!$E$17,D247=2,'MHP Family Income & Rent Limits'!$F$17,D247=3,'MHP Family Income & Rent Limits'!$G$17,D247=4,'MHP Family Income & Rent Limits'!$H$17,D247=5,'MHP Family Income & Rent Limits'!$I$17,D247=6,'MHP Family Income & Rent Limits'!$J$17,D247=7,'MHP Family Income & Rent Limits'!$K$17,D247=8,'MHP Family Income & Rent Limits'!$L$17)","v":""},"",{"$f":"IF(OR(A247=0,B247=\"X\"),0,MIN(IF(AA247:AD247<>0,AA247:AD247)))","v":0},{"$f":"IF(OR(H247=\"\",I247=\"\"),0,IF(H247*0.3/12>I247,MIN(H247*0.3/12,I247*1.1)+AP247,I247*(1+(VLOOKUP('1. Checklist & Certification'!$F$9,'HLCP-E Rent Change'!$A$1:$D$59,4,FALSE)))+AP247))","v":0}]
[null,null,null,null,null,null,null,null,null,null,null,null,null,null,null,null,null,null,null,null,null,null,null,null,null,null,0,0,0,0,0,0,0,0,{"$f":"IF(OR(A248=0,B248=\"X\"),0,IF(OR(S248=\"FHDP\",S248=\"RHCP-B\",U248=\"FHDP\",U248=\"RHCP-B\",W248=\"FHDP\",W248=\"RHCP-B\",Y248=\"FHDP\",Y248=\"RHCP-B\"),TRUNC((MIN(I248,K248)*(1+'1. Checklist & Certification'!$K$43)+AP248)),0))","v":0},{"$f":"IF(OR(A248=0,B248=\"X\"),0,IF(OR(S248=\"CHRP-R\",S248=\"SERA\",S248=\"SUHRP\",U248=\"CHRP-R\",U248=\"SERA\",U248=\"SUHRP\",W248=\"CHRP-R\",W248=\"SERA\",W248=\"SUHRP\",Y248=\"CHRP-R\",Y248=\"SERA\",Y248=\"SUHRP\"),TRUNC((MIN(I248,K248)*(1+'1. Checklist & Certification'!$K$49))),0))","v":0},{"$f":"IF(OR(A248=0,B248=\"X\"),0,IF(OR(S248=\"CALDAP\",S248=\"DPRLP\",U248=\"CALDAP\",U248=\"DPRLP\",W248=\"CALDAP\",W248=\"DPRLP\",Y248=\"CALDAP\",Y248=\"DPRLP\"),TRUNC(((MIN(I248,K248))*(1+'1. Checklist & Certification'!$G$4))),0))","v":0},0,0,0,{"$f":"IF(OR(A248=0,B248=\"X\"),0,IF(OR(S248=\"PRP\",S248=\"LPR\",U248=\"PRP\",U248=\"LPR\",W248=\"PRP\",W248=\"LPR\",Y248=\"PRP\",Y248=\"LPR\"),MAX(I248+AP248,MIN(IF(AE248:AN248<>0,AE248:AN248))),MIN(IF(AE248:AN248<>0,AE248:AN248))))","v":0},{"$f":"IF(A248=0,0,IF(AND(OR(S248=\"Mgr\",S248=0),OR(U248=\"Mgr\",U248=0),OR(W248=\"Mgr\",W248=0)),0,IF(LEFT($A248,2)=\"B*\",VLOOKUP($E248,'1. Checklist & Certification'!$D$26:$E$32,2),IF(LEFT($A248,2)=\"C*\",VLOOKUP($E248,'1. Checklist & Certification'!$F$26:$G$32,2),IF(LEFT($A248,2)=\"D*\",VLOOKUP($E248,'1. Checklist & Certification'!$H$26:$I$32,2),IF(LEFT($A248,2)=\"E*\",VLOOKUP($E248,'1. Checklist & Certification'!$J$26:$K$32,2),VLOOKUP($E248,'1. Checklist & Certification'!$A$26:$B$32,2)))))))","v":0},0,0,null,null,null,null,"","",0,0,0,null,{"$f":"IF(A248=\"\",\"\",'1. Checklist & Certification'!$K$1)","v":""},{"$f":"IF(A248=\"\",\"\",'1. Checklist & Certification'!$C$62)","v":""},{"$f":"IF(A248=\"\",\"\",'1. Checklist & Certification'!$C$6)","v":""},{"$f":"IF(A248=\"\",\"\",'1. Checklist & Certification'!$G$5)","v":""},{"$f":"IFERROR(IF(A248=\"\",\"\",\n_xlfn.LET(_xlpm.Contract,'1. Checklist & Certification'!$C$7,\n_xlpm.Yr,TEXT(MOD(_xlfn.TEXTBEFORE(_xlpm.Contract,\"-\"),100),\"00\"),\n_xlpm.Program,_xlfn.TEXTAFTER(_xlfn.TEXTBEFORE(_xlpm.Contract,\"-\",2),\"-\"),\n_xlpm.CleanProgram,_xlfn.XLOOKUP(_xlpm.Program,SpellCheck[Input],SpellCheck[Correction],_xlpm.Program),\n_xlpm.Number,TEXT(_xlfn.TEXTAFTER(_xlpm.Contract,\"-\",2),\"0000\"),\n_xlfn.CONCAT(_xlpm.Yr,\"-\",_xlpm.CleanProgram,\"-\",_xlpm.Number))\n),\"\")","v":""},{"$f":"IFERROR(IF(A248=\"\",\"\",\n_xlfn.LET(_xlpm.Contract,'1. Checklist & Certification'!$C$8,\n_xlpm.Yr,TEXT(MOD(_xlfn.TEXTBEFORE(_xlpm.Contract,\"-\"),100),\"00\"),\n_xlpm.Program,_xlfn.TEXTAFTER(_xlfn.TEXTBEFORE(_xlpm.Contract,\"-\",2),\"-\"),\n_xlpm.CleanProgram,_xlfn.XLOOKUP(_xlpm.Program,SpellCheck[Input],SpellCheck[Correction],_xlpm.Program),\n_xlpm.Number,TEXT(_xlfn.TEXTAFTER(_xlpm.Contract,\"-\",2),\"0000\"),\n_xlfn.CONCAT(_xlpm.Yr,\"-\",_xlpm.CleanProgram,\"-\",_xlpm.Number))\n),\"\")","v":""},{"$f":"IFERROR(IF(A248=\"\",\"\",\n_xlfn.LET(_xlpm.Contract,'1. Checklist & Certification'!$F$7,\n_xlpm.Yr,TEXT(MOD(_xlfn.TEXTBEFORE(_xlpm.Contract,\"-\"),100),\"00\"),\n_xlpm.Program,_xlfn.TEXTAFTER(_xlfn.TEXTBEFORE(_xlpm.Contract,\"-\",2),\"-\"),\n_xlpm.CleanProgram,_xlfn.XLOOKUP(_xlpm.Program,SpellCheck[Input],SpellCheck[Correction],_xlpm.Program),\n_xlpm.Number,TEXT(_xlfn.TEXTAFTER(_xlpm.Contract,\"-\",2),\"0000\"),\n_xlfn.CONCAT(_xlpm.Yr,\"-\",_xlpm.CleanProgram,\"-\",_xlpm.Number))\n),\"\")","v":""},{"$f":"IFERROR(IF(A248=\"\",\"\",\n_xlfn.LET(_xlpm.Contract,'1. Checklist & Certification'!$F$8,\n_xlpm.Yr,TEXT(MOD(_xlfn.TEXTBEFORE(_xlpm.Contract,\"-\"),100),\"00\"),\n_xlpm.Program,_xlfn.TEXTAFTER(_xlfn.TEXTBEFORE(_xlpm.Contract,\"-\",2),\"-\"),\n_xlpm.CleanProgram,_xlfn.XLOOKUP(_xlpm.Program,SpellCheck[Input],SpellCheck[Correction],_xlpm.Program),\n_xlpm.Number,TEXT(_xlfn.TEXTAFTER(_xlpm.Contract,\"-\",2),\"0000\"),\n_xlfn.CONCAT(_xlpm.Yr,\"-\",_xlpm.CleanProgram,\"-\",_xlpm.Number))\n),\"\")","v":""},{"$f":"IF(A248=\"\",\"\",'1. Checklist & Certification'!$B$9)","v":""},{"$f":"IF(A248=\"\",\"\",'1. Checklist & Certification'!$F$9)","v":""},{"$f":"IF(A248=\"\",\"\",'1. Checklist & Certification'!$C$10)","v":""},{"$f":"IF(A248=\"\",\"\",'1. Checklist & Certification'!$C$11)","v":""},{"$f":"IF(A248=\"\",\"\",'1. Checklist & Certification'!$C$12)","v":""},{"$f":"IF(A248=\"\",\"\",'1. Checklist & Certification'!$B$14)","v":""},{"$f":"IF(A248=\"\",\"\",'1. Checklist & Certification'!$E$14)","v":""},{"$f":"IF(B248=\"\",\"\",'1. Checklist & Certification'!$G$14)","v":""},{"$f":"IF(A248=\"\",\"\",'MHP Family Income & Rent Limits'!$B$3)","v":""},{"$f":"IF(A248=\"\",\"\",'MHP Family Income & Rent Limits'!$J$3)","v":""},{"$f":"IF(A248=\"\",\"\",'MHP Family Income & Rent Limits'!$E$4)","v":""},{"$f":"IF(A248=\"\",\"\",'MHP Family Income & Rent Limits'!$C$7)","v":""},{"$f":"IF(A248=\"\",\"\",'MHP Family Income & Rent Limits'!$F$8)","v":""},{"$f":"IF(A248=\"\",\"\",'1. Checklist & Certification'!$G$4)","v":""},{"$f":"IF(A248=\"\",\"\",'1. Checklist & Certification'!$K$39)","v":""},{"$f":"IF(A248=\"\",\"\",'1. Checklist & Certification'!$K$43)","v":""},{"$f":"IF(A248=\"\",\"\",'1. Checklist & Certification'!$K$45)","v":""},{"$f":"IF(A248=\"\",\"\",'1. Checklist & Certification'!$K$49)","v":""},{"$f":"IF(A248=\"\",\"\",'1. Checklist & Certification'!$K$62)","v":""},{"$f":"IF(A248=\"\",\"\",'1. Checklist & Certification'!$E$66)","v":""},{"$f":"IF(A248=\"\",\"\",'1. Checklist & Certification'!$E$67)","v":""},{"$f":"IF(A248=\"\",\"\",'1. Checklist & Certification'!$E$68)","v":""},{"$f":"IF(A248=\"\",\"\",'1. Checklist & Certification'!$G$66)","v":""},{"$f":"IF(A248=\"\",\"\",'1. Checklist & Certification'!$H$66)","v":""},{"$f":"IF(A248=\"\",\"\",'1. Checklist & Certification'!$I$66)","v":""},{"$f":"IF(A248=\"\",\"\",'1. Checklist & Certification'!$I$67)","v":""},{"$f":"IF(A248=\"\",\"\",'1. Checklist & Certification'!$I$68)","v":""},{"$f":"IF(A248=\"\",\"\",'1. Checklist & Certification'!$B$69)","v":""},{"$f":"IF(A248=\"\",\"\",'1. Checklist & Certification'!$C$69)","v":""},{"$f":"IF(A248=\"\",\"\",'1. Checklist & Certification'!$F$69)","v":""},{"$f":"IF(A248=\"\",\"\",'1. Checklist & Certification'!$G$69)","v":""},{"$f":"IF(A248=\"\",\"\",'1. Checklist & Certification'!$J$69)","v":""},{"$f":"IF(A248=\"\",\"\",'1. Checklist & Certification'!$K$69)","v":""},null,null,{"$f":"IF(AND(OR('1. Checklist & Certification'!$M$16=1,'1. Checklist & Certification'!$M$19=2),AO248>0,B248=\"\",I248>0,AQ248<I248,AV248<>\"Sec 8-Project\"),\"X\",IF(AND(OR('1. Checklist & Certification'!$M$20=4,'1. Checklist & Certification'!$M$21=5,'1. Checklist & Certification'!$M$22=7),AO248>0,B248=\"\",I248>0,K248<I248),\"X\",\"\"))","v":""},{"$f":"IF(A248=\"\",\"\",IF(SUMPRODUCT(-- (ISNUMBER(SEARCH({\"*AHSC*\",\"*FMTW*\",\"*FWHG*\",\"*GHI*\",\"*HHC*\",\"*HLCP*\",\"*HOME*\",\"*LPR*\",\"*MHP*\",\"*NHTF*\",\"*NSP*\",\"*PRP*\",\"*TOD*\",\"*VHHP*\"},'1. Checklist & Certification'!$L$7)))),\"MHP\",\"Legacy\"))","v":""},",,",null,null,null,{"$f":"IF('1. Checklist & Certification'!$M$20=4,\"Both\",IF(OR('1. Checklist & Certification'!$M$15>0,S248=\"CHRP-R\",U248=\"CHRP-R\",W248=\"CHRP-R\",Y248=\"CHRP-R\"),\"Under\",\"No\"))","v":"No"},"No","No",{"$f":"_xlfn.IFS(D248=\"\",\"\",D248=1,'MHP Family Income & Rent Limits'!$E$17,D248=2,'MHP Family Income & Rent Limits'!$F$17,D248=3,'MHP Family Income & Rent Limits'!$G$17,D248=4,'MHP Family Income & Rent Limits'!$H$17,D248=5,'MHP Family Income & Rent Limits'!$I$17,D248=6,'MHP Family Income & Rent Limits'!$J$17,D248=7,'MHP Family Income & Rent Limits'!$K$17,D248=8,'MHP Family Income & Rent Limits'!$L$17)","v":""},"",{"$f":"IF(OR(A248=0,B248=\"X\"),0,MIN(IF(AA248:AD248<>0,AA248:AD248)))","v":0},{"$f":"IF(OR(H248=\"\",I248=\"\"),0,IF(H248*0.3/12>I248,MIN(H248*0.3/12,I248*1.1)+AP248,I248*(1+(VLOOKUP('1. Checklist & Certification'!$F$9,'HLCP-E Rent Change'!$A$1:$D$59,4,FALSE)))+AP248))","v":0}]
[null,null,null,null,null,null,null,null,null,null,null,null,null,null,null,null,null,null,null,null,null,null,null,null,null,null,0,0,0,0,0,0,0,0,{"$f":"IF(OR(A249=0,B249=\"X\"),0,IF(OR(S249=\"FHDP\",S249=\"RHCP-B\",U249=\"FHDP\",U249=\"RHCP-B\",W249=\"FHDP\",W249=\"RHCP-B\",Y249=\"FHDP\",Y249=\"RHCP-B\"),TRUNC((MIN(I249,K249)*(1+'1. Checklist & Certification'!$K$43)+AP249)),0))","v":0},{"$f":"IF(OR(A249=0,B249=\"X\"),0,IF(OR(S249=\"CHRP-R\",S249=\"SERA\",S249=\"SUHRP\",U249=\"CHRP-R\",U249=\"SERA\",U249=\"SUHRP\",W249=\"CHRP-R\",W249=\"SERA\",W249=\"SUHRP\",Y249=\"CHRP-R\",Y249=\"SERA\",Y249=\"SUHRP\"),TRUNC((MIN(I249,K249)*(1+'1. Checklist & Certification'!$K$49))),0))","v":0},{"$f":"IF(OR(A249=0,B249=\"X\"),0,IF(OR(S249=\"CALDAP\",S249=\"DPRLP\",U249=\"CALDAP\",U249=\"DPRLP\",W249=\"CALDAP\",W249=\"DPRLP\",Y249=\"CALDAP\",Y249=\"DPRLP\"),TRUNC(((MIN(I249,K249))*(1+'1. Checklist & Certification'!$G$4))),0))","v":0},0,0,0,{"$f":"IF(OR(A249=0,B249=\"X\"),0,IF(OR(S249=\"PRP\",S249=\"LPR\",U249=\"PRP\",U249=\"LPR\",W249=\"PRP\",W249=\"LPR\",Y249=\"PRP\",Y249=\"LPR\"),MAX(I249+AP249,MIN(IF(AE249:AN249<>0,AE249:AN249))),MIN(IF(AE249:AN249<>0,AE249:AN249))))","v":0},{"$f":"IF(A249=0,0,IF(AND(OR(S249=\"Mgr\",S249=0),OR(U249=\"Mgr\",U249=0),OR(W249=\"Mgr\",W249=0)),0,IF(LEFT($A249,2)=\"B*\",VLOOKUP($E249,'1. Checklist & Certification'!$D$26:$E$32,2),IF(LEFT($A249,2)=\"C*\",VLOOKUP($E249,'1. Checklist & Certification'!$F$26:$G$32,2),IF(LEFT($A249,2)=\"D*\",VLOOKUP($E249,'1. Checklist & Certification'!$H$26:$I$32,2),IF(LEFT($A249,2)=\"E*\",VLOOKUP($E249,'1. Checklist & Certification'!$J$26:$K$32,2),VLOOKUP($E249,'1. Checklist & Certification'!$A$26:$B$32,2)))))))","v":0},0,0,null,null,null,null,"","",0,0,0,null,{"$f":"IF(A249=\"\",\"\",'1. Checklist & Certification'!$K$1)","v":""},{"$f":"IF(A249=\"\",\"\",'1. Checklist & Certification'!$C$62)","v":""},{"$f":"IF(A249=\"\",\"\",'1. Checklist & Certification'!$C$6)","v":""},{"$f":"IF(A249=\"\",\"\",'1. Checklist & Certification'!$G$5)","v":""},{"$f":"IFERROR(IF(A249=\"\",\"\",\n_xlfn.LET(_xlpm.Contract,'1. Checklist & Certification'!$C$7,\n_xlpm.Yr,TEXT(MOD(_xlfn.TEXTBEFORE(_xlpm.Contract,\"-\"),100),\"00\"),\n_xlpm.Program,_xlfn.TEXTAFTER(_xlfn.TEXTBEFORE(_xlpm.Contract,\"-\",2),\"-\"),\n_xlpm.CleanProgram,_xlfn.XLOOKUP(_xlpm.Program,SpellCheck[Input],SpellCheck[Correction],_xlpm.Program),\n_xlpm.Number,TEXT(_xlfn.TEXTAFTER(_xlpm.Contract,\"-\",2),\"0000\"),\n_xlfn.CONCAT(_xlpm.Yr,\"-\",_xlpm.CleanProgram,\"-\",_xlpm.Number))\n),\"\")","v":""},{"$f":"IFERROR(IF(A249=\"\",\"\",\n_xlfn.LET(_xlpm.Contract,'1. Checklist & Certification'!$C$8,\n_xlpm.Yr,TEXT(MOD(_xlfn.TEXTBEFORE(_xlpm.Contract,\"-\"),100),\"00\"),\n_xlpm.Program,_xlfn.TEXTAFTER(_xlfn.TEXTBEFORE(_xlpm.Contract,\"-\",2),\"-\"),\n_xlpm.CleanProgram,_xlfn.XLOOKUP(_xlpm.Program,SpellCheck[Input],SpellCheck[Correction],_xlpm.Program),\n_xlpm.Number,TEXT(_xlfn.TEXTAFTER(_xlpm.Contract,\"-\",2),\"0000\"),\n_xlfn.CONCAT(_xlpm.Yr,\"-\",_xlpm.CleanProgram,\"-\",_xlpm.Number))\n),\"\")","v":""},{"$f":"IFERROR(IF(A249=\"\",\"\",\n_xlfn.LET(_xlpm.Contract,'1. Checklist & Certification'!$F$7,\n_xlpm.Yr,TEXT(MOD(_xlfn.TEXTBEFORE(_xlpm.Contract,\"-\"),100),\"00\"),\n_xlpm.Program,_xlfn.TEXTAFTER(_xlfn.TEXTBEFORE(_xlpm.Contract,\"-\",2),\"-\"),\n_xlpm.CleanProgram,_xlfn.XLOOKUP(_xlpm.Program,SpellCheck[Input],SpellCheck[Correction],_xlpm.Program),\n_xlpm.Number,TEXT(_xlfn.TEXTAFTER(_xlpm.Contract,\"-\",2),\"0000\"),\n_xlfn.CONCAT(_xlpm.Yr,\"-\",_xlpm.CleanProgram,\"-\",_xlpm.Number))\n),\"\")","v":""},{"$f":"IFERROR(IF(A249=\"\",\"\",\n_xlfn.LET(_xlpm.Contract,'1. Checklist & Certification'!$F$8,\n_xlpm.Yr,TEXT(MOD(_xlfn.TEXTBEFORE(_xlpm.Contract,\"-\"),100),\"00\"),\n_xlpm.Program,_xlfn.TEXTAFTER(_xlfn.TEXTBEFORE(_xlpm.Contract,\"-\",2),\"-\"),\n_xlpm.CleanProgram,_xlfn.XLOOKUP(_xlpm.Program,SpellCheck[Input],SpellCheck[Correction],_xlpm.Program),\n_xlpm.Number,TEXT(_xlfn.TEXTAFTER(_xlpm.Contract,\"-\",2),\"0000\"),\n_xlfn.CONCAT(_xlpm.Yr,\"-\",_xlpm.CleanProgram,\"-\",_xlpm.Number))\n),\"\")","v":""},{"$f":"IF(A249=\"\",\"\",'1. Checklist & Certification'!$B$9)","v":""},{"$f":"IF(A249=\"\",\"\",'1. Checklist & Certification'!$F$9)","v":""},{"$f":"IF(A249=\"\",\"\",'1. Checklist & Certification'!$C$10)","v":""},{"$f":"IF(A249=\"\",\"\",'1. Checklist & Certification'!$C$11)","v":""},{"$f":"IF(A249=\"\",\"\",'1. Checklist & Certification'!$C$12)","v":""},{"$f":"IF(A249=\"\",\"\",'1. Checklist & Certification'!$B$14)","v":""},{"$f":"IF(A249=\"\",\"\",'1. Checklist & Certification'!$E$14)","v":""},{"$f":"IF(B249=\"\",\"\",'1. Checklist & Certification'!$G$14)","v":""},{"$f":"IF(A249=\"\",\"\",'MHP Family Income & Rent Limits'!$B$3)","v":""},{"$f":"IF(A249=\"\",\"\",'MHP Family Income & Rent Limits'!$J$3)","v":""},{"$f":"IF(A249=\"\",\"\",'MHP Family Income & Rent Limits'!$E$4)","v":""},{"$f":"IF(A249=\"\",\"\",'MHP Family Income & Rent Limits'!$C$7)","v":""},{"$f":"IF(A249=\"\",\"\",'MHP Family Income & Rent Limits'!$F$8)","v":""},{"$f":"IF(A249=\"\",\"\",'1. Checklist & Certification'!$G$4)","v":""},{"$f":"IF(A249=\"\",\"\",'1. Checklist & Certification'!$K$39)","v":""},{"$f":"IF(A249=\"\",\"\",'1. Checklist & Certification'!$K$43)","v":""},{"$f":"IF(A249=\"\",\"\",'1. Checklist & Certification'!$K$45)","v":""},{"$f":"IF(A249=\"\",\"\",'1. Checklist & Certification'!$K$49)","v":""},{"$f":"IF(A249=\"\",\"\",'1. Checklist & Certification'!$K$62)","v":""},{"$f":"IF(A249=\"\",\"\",'1. Checklist & Certification'!$E$66)","v":""},{"$f":"IF(A249=\"\",\"\",'1. Checklist & Certification'!$E$67)","v":""},{"$f":"IF(A249=\"\",\"\",'1. Checklist & Certification'!$E$68)","v":""},{"$f":"IF(A249=\"\",\"\",'1. Checklist & Certification'!$G$66)","v":""},{"$f":"IF(A249=\"\",\"\",'1. Checklist & Certification'!$H$66)","v":""},{"$f":"IF(A249=\"\",\"\",'1. Checklist & Certification'!$I$66)","v":""},{"$f":"IF(A249=\"\",\"\",'1. Checklist & Certification'!$I$67)","v":""},{"$f":"IF(A249=\"\",\"\",'1. Checklist & Certification'!$I$68)","v":""},{"$f":"IF(A249=\"\",\"\",'1. Checklist & Certification'!$B$69)","v":""},{"$f":"IF(A249=\"\",\"\",'1. Checklist & Certification'!$C$69)","v":""},{"$f":"IF(A249=\"\",\"\",'1. Checklist & Certification'!$F$69)","v":""},{"$f":"IF(A249=\"\",\"\",'1. Checklist & Certification'!$G$69)","v":""},{"$f":"IF(A249=\"\",\"\",'1. Checklist & Certification'!$J$69)","v":""},{"$f":"IF(A249=\"\",\"\",'1. Checklist & Certification'!$K$69)","v":""},null,null,{"$f":"IF(AND(OR('1. Checklist & Certification'!$M$16=1,'1. Checklist & Certification'!$M$19=2),AO249>0,B249=\"\",I249>0,AQ249<I249,AV249<>\"Sec 8-Project\"),\"X\",IF(AND(OR('1. Checklist & Certification'!$M$20=4,'1. Checklist & Certification'!$M$21=5,'1. Checklist & Certification'!$M$22=7),AO249>0,B249=\"\",I249>0,K249<I249),\"X\",\"\"))","v":""},{"$f":"IF(A249=\"\",\"\",IF(SUMPRODUCT(-- (ISNUMBER(SEARCH({\"*AHSC*\",\"*FMTW*\",\"*FWHG*\",\"*GHI*\",\"*HHC*\",\"*HLCP*\",\"*HOME*\",\"*LPR*\",\"*MHP*\",\"*NHTF*\",\"*NSP*\",\"*PRP*\",\"*TOD*\",\"*VHHP*\"},'1. Checklist & Certification'!$L$7)))),\"MHP\",\"Legacy\"))","v":""},",,",null,null,null,{"$f":"IF('1. Checklist & Certification'!$M$20=4,\"Both\",IF(OR('1. Checklist & Certification'!$M$15>0,S249=\"CHRP-R\",U249=\"CHRP-R\",W249=\"CHRP-R\",Y249=\"CHRP-R\"),\"Under\",\"No\"))","v":"No"},"No","No",{"$f":"_xlfn.IFS(D249=\"\",\"\",D249=1,'MHP Family Income & Rent Limits'!$E$17,D249=2,'MHP Family Income & Rent Limits'!$F$17,D249=3,'MHP Family Income & Rent Limits'!$G$17,D249=4,'MHP Family Income & Rent Limits'!$H$17,D249=5,'MHP Family Income & Rent Limits'!$I$17,D249=6,'MHP Family Income & Rent Limits'!$J$17,D249=7,'MHP Family Income & Rent Limits'!$K$17,D249=8,'MHP Family Income & Rent Limits'!$L$17)","v":""},"",{"$f":"IF(OR(A249=0,B249=\"X\"),0,MIN(IF(AA249:AD249<>0,AA249:AD249)))","v":0},{"$f":"IF(OR(H249=\"\",I249=\"\"),0,IF(H249*0.3/12>I249,MIN(H249*0.3/12,I249*1.1)+AP249,I249*(1+(VLOOKUP('1. Checklist & Certification'!$F$9,'HLCP-E Rent Change'!$A$1:$D$59,4,FALSE)))+AP249))","v":0}]
[null,null,null,null,null,null,null,null,null,null,null,null,null,null,null,null,null,null,null,null,null,null,null,null,null,null,0,0,0,0,0,0,0,0,{"$f":"IF(OR(A250=0,B250=\"X\"),0,IF(OR(S250=\"FHDP\",S250=\"RHCP-B\",U250=\"FHDP\",U250=\"RHCP-B\",W250=\"FHDP\",W250=\"RHCP-B\",Y250=\"FHDP\",Y250=\"RHCP-B\"),TRUNC((MIN(I250,K250)*(1+'1. Checklist & Certification'!$K$43)+AP250)),0))","v":0},{"$f":"IF(OR(A250=0,B250=\"X\"),0,IF(OR(S250=\"CHRP-R\",S250=\"SERA\",S250=\"SUHRP\",U250=\"CHRP-R\",U250=\"SERA\",U250=\"SUHRP\",W250=\"CHRP-R\",W250=\"SERA\",W250=\"SUHRP\",Y250=\"CHRP-R\",Y250=\"SERA\",Y250=\"SUHRP\"),TRUNC((MIN(I250,K250)*(1+'1. Checklist & Certification'!$K$49))),0))","v":0},{"$f":"IF(OR(A250=0,B250=\"X\"),0,IF(OR(S250=\"CALDAP\",S250=\"DPRLP\",U250=\"CALDAP\",U250=\"DPRLP\",W250=\"CALDAP\",W250=\"DPRLP\",Y250=\"CALDAP\",Y250=\"DPRLP\"),TRUNC(((MIN(I250,K250))*(1+'1. Checklist & Certification'!$G$4))),0))","v":0},0,0,0,{"$f":"IF(OR(A250=0,B250=\"X\"),0,IF(OR(S250=\"PRP\",S250=\"LPR\",U250=\"PRP\",U250=\"LPR\",W250=\"PRP\",W250=\"LPR\",Y250=\"PRP\",Y250=\"LPR\"),MAX(I250+AP250,MIN(IF(AE250:AN250<>0,AE250:AN250))),MIN(IF(AE250:AN250<>0,AE250:AN250))))","v":0},{"$f":"IF(A250=0,0,IF(AND(OR(S250=\"Mgr\",S250=0),OR(U250=\"Mgr\",U250=0),OR(W250=\"Mgr\",W250=0)),0,IF(LEFT($A250,2)=\"B*\",VLOOKUP($E250,'1. Checklist & Certification'!$D$26:$E$32,2),IF(LEFT($A250,2)=\"C*\",VLOOKUP($E250,'1. Checklist & Certification'!$F$26:$G$32,2),IF(LEFT($A250,2)=\"D*\",VLOOKUP($E250,'1. Checklist & Certification'!$H$26:$I$32,2),IF(LEFT($A250,2)=\"E*\",VLOOKUP($E250,'1. Checklist & Certification'!$J$26:$K$32,2),VLOOKUP($E250,'1. Checklist & Certification'!$A$26:$B$32,2)))))))","v":0},0,0,null,null,null,null,"","",0,0,0,null,{"$f":"IF(A250=\"\",\"\",'1. Checklist & Certification'!$K$1)","v":""},{"$f":"IF(A250=\"\",\"\",'1. Checklist & Certification'!$C$62)","v":""},{"$f":"IF(A250=\"\",\"\",'1. Checklist & Certification'!$C$6)","v":""},{"$f":"IF(A250=\"\",\"\",'1. Checklist & Certification'!$G$5)","v":""},{"$f":"IFERROR(IF(A250=\"\",\"\",\n_xlfn.LET(_xlpm.Contract,'1. Checklist & Certification'!$C$7,\n_xlpm.Yr,TEXT(MOD(_xlfn.TEXTBEFORE(_xlpm.Contract,\"-\"),100),\"00\"),\n_xlpm.Program,_xlfn.TEXTAFTER(_xlfn.TEXTBEFORE(_xlpm.Contract,\"-\",2),\"-\"),\n_xlpm.CleanProgram,_xlfn.XLOOKUP(_xlpm.Program,SpellCheck[Input],SpellCheck[Correction],_xlpm.Program),\n_xlpm.Number,TEXT(_xlfn.TEXTAFTER(_xlpm.Contract,\"-\",2),\"0000\"),\n_xlfn.CONCAT(_xlpm.Yr,\"-\",_xlpm.CleanProgram,\"-\",_xlpm.Number))\n),\"\")","v":""},{"$f":"IFERROR(IF(A250=\"\",\"\",\n_xlfn.LET(_xlpm.Contract,'1. Checklist & Certification'!$C$8,\n_xlpm.Yr,TEXT(MOD(_xlfn.TEXTBEFORE(_xlpm.Contract,\"-\"),100),\"00\"),\n_xlpm.Program,_xlfn.TEXTAFTER(_xlfn.TEXTBEFORE(_xlpm.Contract,\"-\",2),\"-\"),\n_xlpm.CleanProgram,_xlfn.XLOOKUP(_xlpm.Program,SpellCheck[Input],SpellCheck[Correction],_xlpm.Program),\n_xlpm.Number,TEXT(_xlfn.TEXTAFTER(_xlpm.Contract,\"-\",2),\"0000\"),\n_xlfn.CONCAT(_xlpm.Yr,\"-\",_xlpm.CleanProgram,\"-\",_xlpm.Number))\n),\"\")","v":""},{"$f":"IFERROR(IF(A250=\"\",\"\",\n_xlfn.LET(_xlpm.Contract,'1. Checklist & Certification'!$F$7,\n_xlpm.Yr,TEXT(MOD(_xlfn.TEXTBEFORE(_xlpm.Contract,\"-\"),100),\"00\"),\n_xlpm.Program,_xlfn.TEXTAFTER(_xlfn.TEXTBEFORE(_xlpm.Contract,\"-\",2),\"-\"),\n_xlpm.CleanProgram,_xlfn.XLOOKUP(_xlpm.Program,SpellCheck[Input],SpellCheck[Correction],_xlpm.Program),\n_xlpm.Number,TEXT(_xlfn.TEXTAFTER(_xlpm.Contract,\"-\",2),\"0000\"),\n_xlfn.CONCAT(_xlpm.Yr,\"-\",_xlpm.CleanProgram,\"-\",_xlpm.Number))\n),\"\")","v":""},{"$f":"IFERROR(IF(A250=\"\",\"\",\n_xlfn.LET(_xlpm.Contract,'1. Checklist & Certification'!$F$8,\n_xlpm.Yr,TEXT(MOD(_xlfn.TEXTBEFORE(_xlpm.Contract,\"-\"),100),\"00\"),\n_xlpm.Program,_xlfn.TEXTAFTER(_xlfn.TEXTBEFORE(_xlpm.Contract,\"-\",2),\"-\"),\n_xlpm.CleanProgram,_xlfn.XLOOKUP(_xlpm.Program,SpellCheck[Input],SpellCheck[Correction],_xlpm.Program),\n_xlpm.Number,TEXT(_xlfn.TEXTAFTER(_xlpm.Contract,\"-\",2),\"0000\"),\n_xlfn.CONCAT(_xlpm.Yr,\"-\",_xlpm.CleanProgram,\"-\",_xlpm.Number))\n),\"\")","v":""},{"$f":"IF(A250=\"\",\"\",'1. Checklist & Certification'!$B$9)","v":""},{"$f":"IF(A250=\"\",\"\",'1. Checklist & Certification'!$F$9)","v":""},{"$f":"IF(A250=\"\",\"\",'1. Checklist & Certification'!$C$10)","v":""},{"$f":"IF(A250=\"\",\"\",'1. Checklist & Certification'!$C$11)","v":""},{"$f":"IF(A250=\"\",\"\",'1. Checklist & Certification'!$C$12)","v":""},{"$f":"IF(A250=\"\",\"\",'1. Checklist & Certification'!$B$14)","v":""},{"$f":"IF(A250=\"\",\"\",'1. Checklist & Certification'!$E$14)","v":""},{"$f":"IF(B250=\"\",\"\",'1. Checklist & Certification'!$G$14)","v":""},{"$f":"IF(A250=\"\",\"\",'MHP Family Income & Rent Limits'!$B$3)","v":""},{"$f":"IF(A250=\"\",\"\",'MHP Family Income & Rent Limits'!$J$3)","v":""},{"$f":"IF(A250=\"\",\"\",'MHP Family Income & Rent Limits'!$E$4)","v":""},{"$f":"IF(A250=\"\",\"\",'MHP Family Income & Rent Limits'!$C$7)","v":""},{"$f":"IF(A250=\"\",\"\",'MHP Family Income & Rent Limits'!$F$8)","v":""},{"$f":"IF(A250=\"\",\"\",'1. Checklist & Certification'!$G$4)","v":""},{"$f":"IF(A250=\"\",\"\",'1. Checklist & Certification'!$K$39)","v":""},{"$f":"IF(A250=\"\",\"\",'1. Checklist & Certification'!$K$43)","v":""},{"$f":"IF(A250=\"\",\"\",'1. Checklist & Certification'!$K$45)","v":""},{"$f":"IF(A250=\"\",\"\",'1. Checklist & Certification'!$K$49)","v":""},{"$f":"IF(A250=\"\",\"\",'1. Checklist & Certification'!$K$62)","v":""},{"$f":"IF(A250=\"\",\"\",'1. Checklist & Certification'!$E$66)","v":""},{"$f":"IF(A250=\"\",\"\",'1. Checklist & Certification'!$E$67)","v":""},{"$f":"IF(A250=\"\",\"\",'1. Checklist & Certification'!$E$68)","v":""},{"$f":"IF(A250=\"\",\"\",'1. Checklist & Certification'!$G$66)","v":""},{"$f":"IF(A250=\"\",\"\",'1. Checklist & Certification'!$H$66)","v":""},{"$f":"IF(A250=\"\",\"\",'1. Checklist & Certification'!$I$66)","v":""},{"$f":"IF(A250=\"\",\"\",'1. Checklist & Certification'!$I$67)","v":""},{"$f":"IF(A250=\"\",\"\",'1. Checklist & Certification'!$I$68)","v":""},{"$f":"IF(A250=\"\",\"\",'1. Checklist & Certification'!$B$69)","v":""},{"$f":"IF(A250=\"\",\"\",'1. Checklist & Certification'!$C$69)","v":""},{"$f":"IF(A250=\"\",\"\",'1. Checklist & Certification'!$F$69)","v":""},{"$f":"IF(A250=\"\",\"\",'1. Checklist & Certification'!$G$69)","v":""},{"$f":"IF(A250=\"\",\"\",'1. Checklist & Certification'!$J$69)","v":""},{"$f":"IF(A250=\"\",\"\",'1. Checklist & Certification'!$K$69)","v":""},null,null,{"$f":"IF(AND(OR('1. Checklist & Certification'!$M$16=1,'1. Checklist & Certification'!$M$19=2),AO250>0,B250=\"\",I250>0,AQ250<I250,AV250<>\"Sec 8-Project\"),\"X\",IF(AND(OR('1. Checklist & Certification'!$M$20=4,'1. Checklist & Certification'!$M$21=5,'1. Checklist & Certification'!$M$22=7),AO250>0,B250=\"\",I250>0,K250<I250),\"X\",\"\"))","v":""},{"$f":"IF(A250=\"\",\"\",IF(SUMPRODUCT(-- (ISNUMBER(SEARCH({\"*AHSC*\",\"*FMTW*\",\"*FWHG*\",\"*GHI*\",\"*HHC*\",\"*HLCP*\",\"*HOME*\",\"*LPR*\",\"*MHP*\",\"*NHTF*\",\"*NSP*\",\"*PRP*\",\"*TOD*\",\"*VHHP*\"},'1. Checklist & Certification'!$L$7)))),\"MHP\",\"Legacy\"))","v":""},",,",null,null,null,{"$f":"IF('1. Checklist & Certification'!$M$20=4,\"Both\",IF(OR('1. Checklist & Certification'!$M$15>0,S250=\"CHRP-R\",U250=\"CHRP-R\",W250=\"CHRP-R\",Y250=\"CHRP-R\"),\"Under\",\"No\"))","v":"No"},"No","No",{"$f":"_xlfn.IFS(D250=\"\",\"\",D250=1,'MHP Family Income & Rent Limits'!$E$17,D250=2,'MHP Family Income & Rent Limits'!$F$17,D250=3,'MHP Family Income & Rent Limits'!$G$17,D250=4,'MHP Family Income & Rent Limits'!$H$17,D250=5,'MHP Family Income & Rent Limits'!$I$17,D250=6,'MHP Family Income & Rent Limits'!$J$17,D250=7,'MHP Family Income & Rent Limits'!$K$17,D250=8,'MHP Family Income & Rent Limits'!$L$17)","v":""},"",{"$f":"IF(OR(A250=0,B250=\"X\"),0,MIN(IF(AA250:AD250<>0,AA250:AD250)))","v":0},{"$f":"IF(OR(H250=\"\",I250=\"\"),0,IF(H250*0.3/12>I250,MIN(H250*0.3/12,I250*1.1)+AP250,I250*(1+(VLOOKUP('1. Checklist & Certification'!$F$9,'HLCP-E Rent Change'!$A$1:$D$59,4,FALSE)))+AP250))","v":0}]
[null,null,null,null,null,null,null,null,null,null,null,null,null,null,null,null,null,null,null,null,null,null,null,null,null,null,0,0,0,0,0,0,0,0,{"$f":"IF(OR(A251=0,B251=\"X\"),0,IF(OR(S251=\"FHDP\",S251=\"RHCP-B\",U251=\"FHDP\",U251=\"RHCP-B\",W251=\"FHDP\",W251=\"RHCP-B\",Y251=\"FHDP\",Y251=\"RHCP-B\"),TRUNC((MIN(I251,K251)*(1+'1. Checklist & Certification'!$K$43)+AP251)),0))","v":0},{"$f":"IF(OR(A251=0,B251=\"X\"),0,IF(OR(S251=\"CHRP-R\",S251=\"SERA\",S251=\"SUHRP\",U251=\"CHRP-R\",U251=\"SERA\",U251=\"SUHRP\",W251=\"CHRP-R\",W251=\"SERA\",W251=\"SUHRP\",Y251=\"CHRP-R\",Y251=\"SERA\",Y251=\"SUHRP\"),TRUNC((MIN(I251,K251)*(1+'1. Checklist & Certification'!$K$49))),0))","v":0},{"$f":"IF(OR(A251=0,B251=\"X\"),0,IF(OR(S251=\"CALDAP\",S251=\"DPRLP\",U251=\"CALDAP\",U251=\"DPRLP\",W251=\"CALDAP\",W251=\"DPRLP\",Y251=\"CALDAP\",Y251=\"DPRLP\"),TRUNC(((MIN(I251,K251))*(1+'1. Checklist & Certification'!$G$4))),0))","v":0},0,0,0,{"$f":"IF(OR(A251=0,B251=\"X\"),0,IF(OR(S251=\"PRP\",S251=\"LPR\",U251=\"PRP\",U251=\"LPR\",W251=\"PRP\",W251=\"LPR\",Y251=\"PRP\",Y251=\"LPR\"),MAX(I251+AP251,MIN(IF(AE251:AN251<>0,AE251:AN251))),MIN(IF(AE251:AN251<>0,AE251:AN251))))","v":0},{"$f":"IF(A251=0,0,IF(AND(OR(S251=\"Mgr\",S251=0),OR(U251=\"Mgr\",U251=0),OR(W251=\"Mgr\",W251=0)),0,IF(LEFT($A251,2)=\"B*\",VLOOKUP($E251,'1. Checklist & Certification'!$D$26:$E$32,2),IF(LEFT($A251,2)=\"C*\",VLOOKUP($E251,'1. Checklist & Certification'!$F$26:$G$32,2),IF(LEFT($A251,2)=\"D*\",VLOOKUP($E251,'1. Checklist & Certification'!$H$26:$I$32,2),IF(LEFT($A251,2)=\"E*\",VLOOKUP($E251,'1. Checklist & Certification'!$J$26:$K$32,2),VLOOKUP($E251,'1. Checklist & Certification'!$A$26:$B$32,2)))))))","v":0},0,0,null,null,null,null,"","",0,0,0,null,{"$f":"IF(A251=\"\",\"\",'1. Checklist & Certification'!$K$1)","v":""},{"$f":"IF(A251=\"\",\"\",'1. Checklist & Certification'!$C$62)","v":""},{"$f":"IF(A251=\"\",\"\",'1. Checklist & Certification'!$C$6)","v":""},{"$f":"IF(A251=\"\",\"\",'1. Checklist & Certification'!$G$5)","v":""},{"$f":"IFERROR(IF(A251=\"\",\"\",\n_xlfn.LET(_xlpm.Contract,'1. Checklist & Certification'!$C$7,\n_xlpm.Yr,TEXT(MOD(_xlfn.TEXTBEFORE(_xlpm.Contract,\"-\"),100),\"00\"),\n_xlpm.Program,_xlfn.TEXTAFTER(_xlfn.TEXTBEFORE(_xlpm.Contract,\"-\",2),\"-\"),\n_xlpm.CleanProgram,_xlfn.XLOOKUP(_xlpm.Program,SpellCheck[Input],SpellCheck[Correction],_xlpm.Program),\n_xlpm.Number,TEXT(_xlfn.TEXTAFTER(_xlpm.Contract,\"-\",2),\"0000\"),\n_xlfn.CONCAT(_xlpm.Yr,\"-\",_xlpm.CleanProgram,\"-\",_xlpm.Number))\n),\"\")","v":""},{"$f":"IFERROR(IF(A251=\"\",\"\",\n_xlfn.LET(_xlpm.Contract,'1. Checklist & Certification'!$C$8,\n_xlpm.Yr,TEXT(MOD(_xlfn.TEXTBEFORE(_xlpm.Contract,\"-\"),100),\"00\"),\n_xlpm.Program,_xlfn.TEXTAFTER(_xlfn.TEXTBEFORE(_xlpm.Contract,\"-\",2),\"-\"),\n_xlpm.CleanProgram,_xlfn.XLOOKUP(_xlpm.Program,SpellCheck[Input],SpellCheck[Correction],_xlpm.Program),\n_xlpm.Number,TEXT(_xlfn.TEXTAFTER(_xlpm.Contract,\"-\",2),\"0000\"),\n_xlfn.CONCAT(_xlpm.Yr,\"-\",_xlpm.CleanProgram,\"-\",_xlpm.Number))\n),\"\")","v":""},{"$f":"IFERROR(IF(A251=\"\",\"\",\n_xlfn.LET(_xlpm.Contract,'1. Checklist & Certification'!$F$7,\n_xlpm.Yr,TEXT(MOD(_xlfn.TEXTBEFORE(_xlpm.Contract,\"-\"),100),\"00\"),\n_xlpm.Program,_xlfn.TEXTAFTER(_xlfn.TEXTBEFORE(_xlpm.Contract,\"-\",2),\"-\"),\n_xlpm.CleanProgram,_xlfn.XLOOKUP(_xlpm.Program,SpellCheck[Input],SpellCheck[Correction],_xlpm.Program),\n_xlpm.Number,TEXT(_xlfn.TEXTAFTER(_xlpm.Contract,\"-\",2),\"0000\"),\n_xlfn.CONCAT(_xlpm.Yr,\"-\",_xlpm.CleanProgram,\"-\",_xlpm.Number))\n),\"\")","v":""},{"$f":"IFERROR(IF(A251=\"\",\"\",\n_xlfn.LET(_xlpm.Contract,'1. Checklist & Certification'!$F$8,\n_xlpm.Yr,TEXT(MOD(_xlfn.TEXTBEFORE(_xlpm.Contract,\"-\"),100),\"00\"),\n_xlpm.Program,_xlfn.TEXTAFTER(_xlfn.TEXTBEFORE(_xlpm.Contract,\"-\",2),\"-\"),\n_xlpm.CleanProgram,_xlfn.XLOOKUP(_xlpm.Program,SpellCheck[Input],SpellCheck[Correction],_xlpm.Program),\n_xlpm.Number,TEXT(_xlfn.TEXTAFTER(_xlpm.Contract,\"-\",2),\"0000\"),\n_xlfn.CONCAT(_xlpm.Yr,\"-\",_xlpm.CleanProgram,\"-\",_xlpm.Number))\n),\"\")","v":""},{"$f":"IF(A251=\"\",\"\",'1. Checklist & Certification'!$B$9)","v":""},{"$f":"IF(A251=\"\",\"\",'1. Checklist & Certification'!$F$9)","v":""},{"$f":"IF(A251=\"\",\"\",'1. Checklist & Certification'!$C$10)","v":""},{"$f":"IF(A251=\"\",\"\",'1. Checklist & Certification'!$C$11)","v":""},{"$f":"IF(A251=\"\",\"\",'1. Checklist & Certification'!$C$12)","v":""},{"$f":"IF(A251=\"\",\"\",'1. Checklist & Certification'!$B$14)","v":""},{"$f":"IF(A251=\"\",\"\",'1. Checklist & Certification'!$E$14)","v":""},{"$f":"IF(B251=\"\",\"\",'1. Checklist & Certification'!$G$14)","v":""},{"$f":"IF(A251=\"\",\"\",'MHP Family Income & Rent Limits'!$B$3)","v":""},{"$f":"IF(A251=\"\",\"\",'MHP Family Income & Rent Limits'!$J$3)","v":""},{"$f":"IF(A251=\"\",\"\",'MHP Family Income & Rent Limits'!$E$4)","v":""},{"$f":"IF(A251=\"\",\"\",'MHP Family Income & Rent Limits'!$C$7)","v":""},{"$f":"IF(A251=\"\",\"\",'MHP Family Income & Rent Limits'!$F$8)","v":""},{"$f":"IF(A251=\"\",\"\",'1. Checklist & Certification'!$G$4)","v":""},{"$f":"IF(A251=\"\",\"\",'1. Checklist & Certification'!$K$39)","v":""},{"$f":"IF(A251=\"\",\"\",'1. Checklist & Certification'!$K$43)","v":""},{"$f":"IF(A251=\"\",\"\",'1. Checklist & Certification'!$K$45)","v":""},{"$f":"IF(A251=\"\",\"\",'1. Checklist & Certification'!$K$49)","v":""},{"$f":"IF(A251=\"\",\"\",'1. Checklist & Certification'!$K$62)","v":""},{"$f":"IF(A251=\"\",\"\",'1. Checklist & Certification'!$E$66)","v":""},{"$f":"IF(A251=\"\",\"\",'1. Checklist & Certification'!$E$67)","v":""},{"$f":"IF(A251=\"\",\"\",'1. Checklist & Certification'!$E$68)","v":""},{"$f":"IF(A251=\"\",\"\",'1. Checklist & Certification'!$G$66)","v":""},{"$f":"IF(A251=\"\",\"\",'1. Checklist & Certification'!$H$66)","v":""},{"$f":"IF(A251=\"\",\"\",'1. Checklist & Certification'!$I$66)","v":""},{"$f":"IF(A251=\"\",\"\",'1. Checklist & Certification'!$I$67)","v":""},{"$f":"IF(A251=\"\",\"\",'1. Checklist & Certification'!$I$68)","v":""},{"$f":"IF(A251=\"\",\"\",'1. Checklist & Certification'!$B$69)","v":""},{"$f":"IF(A251=\"\",\"\",'1. Checklist & Certification'!$C$69)","v":""},{"$f":"IF(A251=\"\",\"\",'1. Checklist & Certification'!$F$69)","v":""},{"$f":"IF(A251=\"\",\"\",'1. Checklist & Certification'!$G$69)","v":""},{"$f":"IF(A251=\"\",\"\",'1. Checklist & Certification'!$J$69)","v":""},{"$f":"IF(A251=\"\",\"\",'1. Checklist & Certification'!$K$69)","v":""},null,null,{"$f":"IF(AND(OR('1. Checklist & Certification'!$M$16=1,'1. Checklist & Certification'!$M$19=2),AO251>0,B251=\"\",I251>0,AQ251<I251,AV251<>\"Sec 8-Project\"),\"X\",IF(AND(OR('1. Checklist & Certification'!$M$20=4,'1. Checklist & Certification'!$M$21=5,'1. Checklist & Certification'!$M$22=7),AO251>0,B251=\"\",I251>0,K251<I251),\"X\",\"\"))","v":""},{"$f":"IF(A251=\"\",\"\",IF(SUMPRODUCT(-- (ISNUMBER(SEARCH({\"*AHSC*\",\"*FMTW*\",\"*FWHG*\",\"*GHI*\",\"*HHC*\",\"*HLCP*\",\"*HOME*\",\"*LPR*\",\"*MHP*\",\"*NHTF*\",\"*NSP*\",\"*PRP*\",\"*TOD*\",\"*VHHP*\"},'1. Checklist & Certification'!$L$7)))),\"MHP\",\"Legacy\"))","v":""},",,",null,null,null,{"$f":"IF('1. Checklist & Certification'!$M$20=4,\"Both\",IF(OR('1. Checklist & Certification'!$M$15>0,S251=\"CHRP-R\",U251=\"CHRP-R\",W251=\"CHRP-R\",Y251=\"CHRP-R\"),\"Under\",\"No\"))","v":"No"},"No","No",{"$f":"_xlfn.IFS(D251=\"\",\"\",D251=1,'MHP Family Income & Rent Limits'!$E$17,D251=2,'MHP Family Income & Rent Limits'!$F$17,D251=3,'MHP Family Income & Rent Limits'!$G$17,D251=4,'MHP Family Income & Rent Limits'!$H$17,D251=5,'MHP Family Income & Rent Limits'!$I$17,D251=6,'MHP Family Income & Rent Limits'!$J$17,D251=7,'MHP Family Income & Rent Limits'!$K$17,D251=8,'MHP Family Income & Rent Limits'!$L$17)","v":""},"",{"$f":"IF(OR(A251=0,B251=\"X\"),0,MIN(IF(AA251:AD251<>0,AA251:AD251)))","v":0},{"$f":"IF(OR(H251=\"\",I251=\"\"),0,IF(H251*0.3/12>I251,MIN(H251*0.3/12,I251*1.1)+AP251,I251*(1+(VLOOKUP('1. Checklist & Certification'!$F$9,'HLCP-E Rent Change'!$A$1:$D$59,4,FALSE)))+AP251))","v":0}]
[null,null,null,null,null,null,null,null,null,null,null,null,null,null,null,null,null,null,null,null,null,null,null,null,null,null,0,0,0,0,0,0,0,0,{"$f":"IF(OR(A252=0,B252=\"X\"),0,IF(OR(S252=\"FHDP\",S252=\"RHCP-B\",U252=\"FHDP\",U252=\"RHCP-B\",W252=\"FHDP\",W252=\"RHCP-B\",Y252=\"FHDP\",Y252=\"RHCP-B\"),TRUNC((MIN(I252,K252)*(1+'1. Checklist & Certification'!$K$43)+AP252)),0))","v":0},{"$f":"IF(OR(A252=0,B252=\"X\"),0,IF(OR(S252=\"CHRP-R\",S252=\"SERA\",S252=\"SUHRP\",U252=\"CHRP-R\",U252=\"SERA\",U252=\"SUHRP\",W252=\"CHRP-R\",W252=\"SERA\",W252=\"SUHRP\",Y252=\"CHRP-R\",Y252=\"SERA\",Y252=\"SUHRP\"),TRUNC((MIN(I252,K252)*(1+'1. Checklist & Certification'!$K$49))),0))","v":0},{"$f":"IF(OR(A252=0,B252=\"X\"),0,IF(OR(S252=\"CALDAP\",S252=\"DPRLP\",U252=\"CALDAP\",U252=\"DPRLP\",W252=\"CALDAP\",W252=\"DPRLP\",Y252=\"CALDAP\",Y252=\"DPRLP\"),TRUNC(((MIN(I252,K252))*(1+'1. Checklist & Certification'!$G$4))),0))","v":0},0,0,0,{"$f":"IF(OR(A252=0,B252=\"X\"),0,IF(OR(S252=\"PRP\",S252=\"LPR\",U252=\"PRP\",U252=\"LPR\",W252=\"PRP\",W252=\"LPR\",Y252=\"PRP\",Y252=\"LPR\"),MAX(I252+AP252,MIN(IF(AE252:AN252<>0,AE252:AN252))),MIN(IF(AE252:AN252<>0,AE252:AN252))))","v":0},{"$f":"IF(A252=0,0,IF(AND(OR(S252=\"Mgr\",S252=0),OR(U252=\"Mgr\",U252=0),OR(W252=\"Mgr\",W252=0)),0,IF(LEFT($A252,2)=\"B*\",VLOOKUP($E252,'1. Checklist & Certification'!$D$26:$E$32,2),IF(LEFT($A252,2)=\"C*\",VLOOKUP($E252,'1. Checklist & Certification'!$F$26:$G$32,2),IF(LEFT($A252,2)=\"D*\",VLOOKUP($E252,'1. Checklist & Certification'!$H$26:$I$32,2),IF(LEFT($A252,2)=\"E*\",VLOOKUP($E252,'1. Checklist & Certification'!$J$26:$K$32,2),VLOOKUP($E252,'1. Checklist & Certification'!$A$26:$B$32,2)))))))","v":0},0,0,null,null,null,null,"","",0,0,0,null,{"$f":"IF(A252=\"\",\"\",'1. Checklist & Certification'!$K$1)","v":""},{"$f":"IF(A252=\"\",\"\",'1. Checklist & Certification'!$C$62)","v":""},{"$f":"IF(A252=\"\",\"\",'1. Checklist & Certification'!$C$6)","v":""},{"$f":"IF(A252=\"\",\"\",'1. Checklist & Certification'!$G$5)","v":""},{"$f":"IFERROR(IF(A252=\"\",\"\",\n_xlfn.LET(_xlpm.Contract,'1. Checklist & Certification'!$C$7,\n_xlpm.Yr,TEXT(MOD(_xlfn.TEXTBEFORE(_xlpm.Contract,\"-\"),100),\"00\"),\n_xlpm.Program,_xlfn.TEXTAFTER(_xlfn.TEXTBEFORE(_xlpm.Contract,\"-\",2),\"-\"),\n_xlpm.CleanProgram,_xlfn.XLOOKUP(_xlpm.Program,SpellCheck[Input],SpellCheck[Correction],_xlpm.Program),\n_xlpm.Number,TEXT(_xlfn.TEXTAFTER(_xlpm.Contract,\"-\",2),\"0000\"),\n_xlfn.CONCAT(_xlpm.Yr,\"-\",_xlpm.CleanProgram,\"-\",_xlpm.Number))\n),\"\")","v":""},{"$f":"IFERROR(IF(A252=\"\",\"\",\n_xlfn.LET(_xlpm.Contract,'1. Checklist & Certification'!$C$8,\n_xlpm.Yr,TEXT(MOD(_xlfn.TEXTBEFORE(_xlpm.Contract,\"-\"),100),\"00\"),\n_xlpm.Program,_xlfn.TEXTAFTER(_xlfn.TEXTBEFORE(_xlpm.Contract,\"-\",2),\"-\"),\n_xlpm.CleanProgram,_xlfn.XLOOKUP(_xlpm.Program,SpellCheck[Input],SpellCheck[Correction],_xlpm.Program),\n_xlpm.Number,TEXT(_xlfn.TEXTAFTER(_xlpm.Contract,\"-\",2),\"0000\"),\n_xlfn.CONCAT(_xlpm.Yr,\"-\",_xlpm.CleanProgram,\"-\",_xlpm.Number))\n),\"\")","v":""},{"$f":"IFERROR(IF(A252=\"\",\"\",\n_xlfn.LET(_xlpm.Contract,'1. Checklist & Certification'!$F$7,\n_xlpm.Yr,TEXT(MOD(_xlfn.TEXTBEFORE(_xlpm.Contract,\"-\"),100),\"00\"),\n_xlpm.Program,_xlfn.TEXTAFTER(_xlfn.TEXTBEFORE(_xlpm.Contract,\"-\",2),\"-\"),\n_xlpm.CleanProgram,_xlfn.XLOOKUP(_xlpm.Program,SpellCheck[Input],SpellCheck[Correction],_xlpm.Program),\n_xlpm.Number,TEXT(_xlfn.TEXTAFTER(_xlpm.Contract,\"-\",2),\"0000\"),\n_xlfn.CONCAT(_xlpm.Yr,\"-\",_xlpm.CleanProgram,\"-\",_xlpm.Number))\n),\"\")","v":""},{"$f":"IFERROR(IF(A252=\"\",\"\",\n_xlfn.LET(_xlpm.Contract,'1. Checklist & Certification'!$F$8,\n_xlpm.Yr,TEXT(MOD(_xlfn.TEXTBEFORE(_xlpm.Contract,\"-\"),100),\"00\"),\n_xlpm.Program,_xlfn.TEXTAFTER(_xlfn.TEXTBEFORE(_xlpm.Contract,\"-\",2),\"-\"),\n_xlpm.CleanProgram,_xlfn.XLOOKUP(_xlpm.Program,SpellCheck[Input],SpellCheck[Correction],_xlpm.Program),\n_xlpm.Number,TEXT(_xlfn.TEXTAFTER(_xlpm.Contract,\"-\",2),\"0000\"),\n_xlfn.CONCAT(_xlpm.Yr,\"-\",_xlpm.CleanProgram,\"-\",_xlpm.Number))\n),\"\")","v":""},{"$f":"IF(A252=\"\",\"\",'1. Checklist & Certification'!$B$9)","v":""},{"$f":"IF(A252=\"\",\"\",'1. Checklist & Certification'!$F$9)","v":""},{"$f":"IF(A252=\"\",\"\",'1. Checklist & Certification'!$C$10)","v":""},{"$f":"IF(A252=\"\",\"\",'1. Checklist & Certification'!$C$11)","v":""},{"$f":"IF(A252=\"\",\"\",'1. Checklist & Certification'!$C$12)","v":""},{"$f":"IF(A252=\"\",\"\",'1. Checklist & Certification'!$B$14)","v":""},{"$f":"IF(A252=\"\",\"\",'1. Checklist & Certification'!$E$14)","v":""},{"$f":"IF(B252=\"\",\"\",'1. Checklist & Certification'!$G$14)","v":""},{"$f":"IF(A252=\"\",\"\",'MHP Family Income & Rent Limits'!$B$3)","v":""},{"$f":"IF(A252=\"\",\"\",'MHP Family Income & Rent Limits'!$J$3)","v":""},{"$f":"IF(A252=\"\",\"\",'MHP Family Income & Rent Limits'!$E$4)","v":""},{"$f":"IF(A252=\"\",\"\",'MHP Family Income & Rent Limits'!$C$7)","v":""},{"$f":"IF(A252=\"\",\"\",'MHP Family Income & Rent Limits'!$F$8)","v":""},{"$f":"IF(A252=\"\",\"\",'1. Checklist & Certification'!$G$4)","v":""},{"$f":"IF(A252=\"\",\"\",'1. Checklist & Certification'!$K$39)","v":""},{"$f":"IF(A252=\"\",\"\",'1. Checklist & Certification'!$K$43)","v":""},{"$f":"IF(A252=\"\",\"\",'1. Checklist & Certification'!$K$45)","v":""},{"$f":"IF(A252=\"\",\"\",'1. Checklist & Certification'!$K$49)","v":""},{"$f":"IF(A252=\"\",\"\",'1. Checklist & Certification'!$K$62)","v":""},{"$f":"IF(A252=\"\",\"\",'1. Checklist & Certification'!$E$66)","v":""},{"$f":"IF(A252=\"\",\"\",'1. Checklist & Certification'!$E$67)","v":""},{"$f":"IF(A252=\"\",\"\",'1. Checklist & Certification'!$E$68)","v":""},{"$f":"IF(A252=\"\",\"\",'1. Checklist & Certification'!$G$66)","v":""},{"$f":"IF(A252=\"\",\"\",'1. Checklist & Certification'!$H$66)","v":""},{"$f":"IF(A252=\"\",\"\",'1. Checklist & Certification'!$I$66)","v":""},{"$f":"IF(A252=\"\",\"\",'1. Checklist & Certification'!$I$67)","v":""},{"$f":"IF(A252=\"\",\"\",'1. Checklist & Certification'!$I$68)","v":""},{"$f":"IF(A252=\"\",\"\",'1. Checklist & Certification'!$B$69)","v":""},{"$f":"IF(A252=\"\",\"\",'1. Checklist & Certification'!$C$69)","v":""},{"$f":"IF(A252=\"\",\"\",'1. Checklist & Certification'!$F$69)","v":""},{"$f":"IF(A252=\"\",\"\",'1. Checklist & Certification'!$G$69)","v":""},{"$f":"IF(A252=\"\",\"\",'1. Checklist & Certification'!$J$69)","v":""},{"$f":"IF(A252=\"\",\"\",'1. Checklist & Certification'!$K$69)","v":""},null,null,{"$f":"IF(AND(OR('1. Checklist & Certification'!$M$16=1,'1. Checklist & Certification'!$M$19=2),AO252>0,B252=\"\",I252>0,AQ252<I252,AV252<>\"Sec 8-Project\"),\"X\",IF(AND(OR('1. Checklist & Certification'!$M$20=4,'1. Checklist & Certification'!$M$21=5,'1. Checklist & Certification'!$M$22=7),AO252>0,B252=\"\",I252>0,K252<I252),\"X\",\"\"))","v":""},{"$f":"IF(A252=\"\",\"\",IF(SUMPRODUCT(-- (ISNUMBER(SEARCH({\"*AHSC*\",\"*FMTW*\",\"*FWHG*\",\"*GHI*\",\"*HHC*\",\"*HLCP*\",\"*HOME*\",\"*LPR*\",\"*MHP*\",\"*NHTF*\",\"*NSP*\",\"*PRP*\",\"*TOD*\",\"*VHHP*\"},'1. Checklist & Certification'!$L$7)))),\"MHP\",\"Legacy\"))","v":""},",,",null,null,null,{"$f":"IF('1. Checklist & Certification'!$M$20=4,\"Both\",IF(OR('1. Checklist & Certification'!$M$15>0,S252=\"CHRP-R\",U252=\"CHRP-R\",W252=\"CHRP-R\",Y252=\"CHRP-R\"),\"Under\",\"No\"))","v":"No"},"No","No",{"$f":"_xlfn.IFS(D252=\"\",\"\",D252=1,'MHP Family Income & Rent Limits'!$E$17,D252=2,'MHP Family Income & Rent Limits'!$F$17,D252=3,'MHP Family Income & Rent Limits'!$G$17,D252=4,'MHP Family Income & Rent Limits'!$H$17,D252=5,'MHP Family Income & Rent Limits'!$I$17,D252=6,'MHP Family Income & Rent Limits'!$J$17,D252=7,'MHP Family Income & Rent Limits'!$K$17,D252=8,'MHP Family Income & Rent Limits'!$L$17)","v":""},"",{"$f":"IF(OR(A252=0,B252=\"X\"),0,MIN(IF(AA252:AD252<>0,AA252:AD252)))","v":0},{"$f":"IF(OR(H252=\"\",I252=\"\"),0,IF(H252*0.3/12>I252,MIN(H252*0.3/12,I252*1.1)+AP252,I252*(1+(VLOOKUP('1. Checklist & Certification'!$F$9,'HLCP-E Rent Change'!$A$1:$D$59,4,FALSE)))+AP252))","v":0}]
[null,null,null,null,null,null,null,null,null,null,null,null,null,null,null,null,null,null,null,null,null,null,null,null,null,null,0,0,0,0,0,0,0,0,{"$f":"IF(OR(A253=0,B253=\"X\"),0,IF(OR(S253=\"FHDP\",S253=\"RHCP-B\",U253=\"FHDP\",U253=\"RHCP-B\",W253=\"FHDP\",W253=\"RHCP-B\",Y253=\"FHDP\",Y253=\"RHCP-B\"),TRUNC((MIN(I253,K253)*(1+'1. Checklist & Certification'!$K$43)+AP253)),0))","v":0},{"$f":"IF(OR(A253=0,B253=\"X\"),0,IF(OR(S253=\"CHRP-R\",S253=\"SERA\",S253=\"SUHRP\",U253=\"CHRP-R\",U253=\"SERA\",U253=\"SUHRP\",W253=\"CHRP-R\",W253=\"SERA\",W253=\"SUHRP\",Y253=\"CHRP-R\",Y253=\"SERA\",Y253=\"SUHRP\"),TRUNC((MIN(I253,K253)*(1+'1. Checklist & Certification'!$K$49))),0))","v":0},{"$f":"IF(OR(A253=0,B253=\"X\"),0,IF(OR(S253=\"CALDAP\",S253=\"DPRLP\",U253=\"CALDAP\",U253=\"DPRLP\",W253=\"CALDAP\",W253=\"DPRLP\",Y253=\"CALDAP\",Y253=\"DPRLP\"),TRUNC(((MIN(I253,K253))*(1+'1. Checklist & Certification'!$G$4))),0))","v":0},0,0,0,{"$f":"IF(OR(A253=0,B253=\"X\"),0,IF(OR(S253=\"PRP\",S253=\"LPR\",U253=\"PRP\",U253=\"LPR\",W253=\"PRP\",W253=\"LPR\",Y253=\"PRP\",Y253=\"LPR\"),MAX(I253+AP253,MIN(IF(AE253:AN253<>0,AE253:AN253))),MIN(IF(AE253:AN253<>0,AE253:AN253))))","v":0},{"$f":"IF(A253=0,0,IF(AND(OR(S253=\"Mgr\",S253=0),OR(U253=\"Mgr\",U253=0),OR(W253=\"Mgr\",W253=0)),0,IF(LEFT($A253,2)=\"B*\",VLOOKUP($E253,'1. Checklist & Certification'!$D$26:$E$32,2),IF(LEFT($A253,2)=\"C*\",VLOOKUP($E253,'1. Checklist & Certification'!$F$26:$G$32,2),IF(LEFT($A253,2)=\"D*\",VLOOKUP($E253,'1. Checklist & Certification'!$H$26:$I$32,2),IF(LEFT($A253,2)=\"E*\",VLOOKUP($E253,'1. Checklist & Certification'!$J$26:$K$32,2),VLOOKUP($E253,'1. Checklist & Certification'!$A$26:$B$32,2)))))))","v":0},0,0,null,null,null,null,"","",0,0,0,null,{"$f":"IF(A253=\"\",\"\",'1. Checklist & Certification'!$K$1)","v":""},{"$f":"IF(A253=\"\",\"\",'1. Checklist & Certification'!$C$62)","v":""},{"$f":"IF(A253=\"\",\"\",'1. Checklist & Certification'!$C$6)","v":""},{"$f":"IF(A253=\"\",\"\",'1. Checklist & Certification'!$G$5)","v":""},{"$f":"IFERROR(IF(A253=\"\",\"\",\n_xlfn.LET(_xlpm.Contract,'1. Checklist & Certification'!$C$7,\n_xlpm.Yr,TEXT(MOD(_xlfn.TEXTBEFORE(_xlpm.Contract,\"-\"),100),\"00\"),\n_xlpm.Program,_xlfn.TEXTAFTER(_xlfn.TEXTBEFORE(_xlpm.Contract,\"-\",2),\"-\"),\n_xlpm.CleanProgram,_xlfn.XLOOKUP(_xlpm.Program,SpellCheck[Input],SpellCheck[Correction],_xlpm.Program),\n_xlpm.Number,TEXT(_xlfn.TEXTAFTER(_xlpm.Contract,\"-\",2),\"0000\"),\n_xlfn.CONCAT(_xlpm.Yr,\"-\",_xlpm.CleanProgram,\"-\",_xlpm.Number))\n),\"\")","v":""},{"$f":"IFERROR(IF(A253=\"\",\"\",\n_xlfn.LET(_xlpm.Contract,'1. Checklist & Certification'!$C$8,\n_xlpm.Yr,TEXT(MOD(_xlfn.TEXTBEFORE(_xlpm.Contract,\"-\"),100),\"00\"),\n_xlpm.Program,_xlfn.TEXTAFTER(_xlfn.TEXTBEFORE(_xlpm.Contract,\"-\",2),\"-\"),\n_xlpm.CleanProgram,_xlfn.XLOOKUP(_xlpm.Program,SpellCheck[Input],SpellCheck[Correction],_xlpm.Program),\n_xlpm.Number,TEXT(_xlfn.TEXTAFTER(_xlpm.Contract,\"-\",2),\"0000\"),\n_xlfn.CONCAT(_xlpm.Yr,\"-\",_xlpm.CleanProgram,\"-\",_xlpm.Number))\n),\"\")","v":""},{"$f":"IFERROR(IF(A253=\"\",\"\",\n_xlfn.LET(_xlpm.Contract,'1. Checklist & Certification'!$F$7,\n_xlpm.Yr,TEXT(MOD(_xlfn.TEXTBEFORE(_xlpm.Contract,\"-\"),100),\"00\"),\n_xlpm.Program,_xlfn.TEXTAFTER(_xlfn.TEXTBEFORE(_xlpm.Contract,\"-\",2),\"-\"),\n_xlpm.CleanProgram,_xlfn.XLOOKUP(_xlpm.Program,SpellCheck[Input],SpellCheck[Correction],_xlpm.Program),\n_xlpm.Number,TEXT(_xlfn.TEXTAFTER(_xlpm.Contract,\"-\",2),\"0000\"),\n_xlfn.CONCAT(_xlpm.Yr,\"-\",_xlpm.CleanProgram,\"-\",_xlpm.Number))\n),\"\")","v":""},{"$f":"IFERROR(IF(A253=\"\",\"\",\n_xlfn.LET(_xlpm.Contract,'1. Checklist & Certification'!$F$8,\n_xlpm.Yr,TEXT(MOD(_xlfn.TEXTBEFORE(_xlpm.Contract,\"-\"),100),\"00\"),\n_xlpm.Program,_xlfn.TEXTAFTER(_xlfn.TEXTBEFORE(_xlpm.Contract,\"-\",2),\"-\"),\n_xlpm.CleanProgram,_xlfn.XLOOKUP(_xlpm.Program,SpellCheck[Input],SpellCheck[Correction],_xlpm.Program),\n_xlpm.Number,TEXT(_xlfn.TEXTAFTER(_xlpm.Contract,\"-\",2),\"0000\"),\n_xlfn.CONCAT(_xlpm.Yr,\"-\",_xlpm.CleanProgram,\"-\",_xlpm.Number))\n),\"\")","v":""},{"$f":"IF(A253=\"\",\"\",'1. Checklist & Certification'!$B$9)","v":""},{"$f":"IF(A253=\"\",\"\",'1. Checklist & Certification'!$F$9)","v":""},{"$f":"IF(A253=\"\",\"\",'1. Checklist & Certification'!$C$10)","v":""},{"$f":"IF(A253=\"\",\"\",'1. Checklist & Certification'!$C$11)","v":""},{"$f":"IF(A253=\"\",\"\",'1. Checklist & Certification'!$C$12)","v":""},{"$f":"IF(A253=\"\",\"\",'1. Checklist & Certification'!$B$14)","v":""},{"$f":"IF(A253=\"\",\"\",'1. Checklist & Certification'!$E$14)","v":""},{"$f":"IF(B253=\"\",\"\",'1. Checklist & Certification'!$G$14)","v":""},{"$f":"IF(A253=\"\",\"\",'MHP Family Income & Rent Limits'!$B$3)","v":""},{"$f":"IF(A253=\"\",\"\",'MHP Family Income & Rent Limits'!$J$3)","v":""},{"$f":"IF(A253=\"\",\"\",'MHP Family Income & Rent Limits'!$E$4)","v":""},{"$f":"IF(A253=\"\",\"\",'MHP Family Income & Rent Limits'!$C$7)","v":""},{"$f":"IF(A253=\"\",\"\",'MHP Family Income & Rent Limits'!$F$8)","v":""},{"$f":"IF(A253=\"\",\"\",'1. Checklist & Certification'!$G$4)","v":""},{"$f":"IF(A253=\"\",\"\",'1. Checklist & Certification'!$K$39)","v":""},{"$f":"IF(A253=\"\",\"\",'1. Checklist & Certification'!$K$43)","v":""},{"$f":"IF(A253=\"\",\"\",'1. Checklist & Certification'!$K$45)","v":""},{"$f":"IF(A253=\"\",\"\",'1. Checklist & Certification'!$K$49)","v":""},{"$f":"IF(A253=\"\",\"\",'1. Checklist & Certification'!$K$62)","v":""},{"$f":"IF(A253=\"\",\"\",'1. Checklist & Certification'!$E$66)","v":""},{"$f":"IF(A253=\"\",\"\",'1. Checklist & Certification'!$E$67)","v":""},{"$f":"IF(A253=\"\",\"\",'1. Checklist & Certification'!$E$68)","v":""},{"$f":"IF(A253=\"\",\"\",'1. Checklist & Certification'!$G$66)","v":""},{"$f":"IF(A253=\"\",\"\",'1. Checklist & Certification'!$H$66)","v":""},{"$f":"IF(A253=\"\",\"\",'1. Checklist & Certification'!$I$66)","v":""},{"$f":"IF(A253=\"\",\"\",'1. Checklist & Certification'!$I$67)","v":""},{"$f":"IF(A253=\"\",\"\",'1. Checklist & Certification'!$I$68)","v":""},{"$f":"IF(A253=\"\",\"\",'1. Checklist & Certification'!$B$69)","v":""},{"$f":"IF(A253=\"\",\"\",'1. Checklist & Certification'!$C$69)","v":""},{"$f":"IF(A253=\"\",\"\",'1. Checklist & Certification'!$F$69)","v":""},{"$f":"IF(A253=\"\",\"\",'1. Checklist & Certification'!$G$69)","v":""},{"$f":"IF(A253=\"\",\"\",'1. Checklist & Certification'!$J$69)","v":""},{"$f":"IF(A253=\"\",\"\",'1. Checklist & Certification'!$K$69)","v":""},null,null,{"$f":"IF(AND(OR('1. Checklist & Certification'!$M$16=1,'1. Checklist & Certification'!$M$19=2),AO253>0,B253=\"\",I253>0,AQ253<I253,AV253<>\"Sec 8-Project\"),\"X\",IF(AND(OR('1. Checklist & Certification'!$M$20=4,'1. Checklist & Certification'!$M$21=5,'1. Checklist & Certification'!$M$22=7),AO253>0,B253=\"\",I253>0,K253<I253),\"X\",\"\"))","v":""},{"$f":"IF(A253=\"\",\"\",IF(SUMPRODUCT(-- (ISNUMBER(SEARCH({\"*AHSC*\",\"*FMTW*\",\"*FWHG*\",\"*GHI*\",\"*HHC*\",\"*HLCP*\",\"*HOME*\",\"*LPR*\",\"*MHP*\",\"*NHTF*\",\"*NSP*\",\"*PRP*\",\"*TOD*\",\"*VHHP*\"},'1. Checklist & Certification'!$L$7)))),\"MHP\",\"Legacy\"))","v":""},",,",null,null,null,{"$f":"IF('1. Checklist & Certification'!$M$20=4,\"Both\",IF(OR('1. Checklist & Certification'!$M$15>0,S253=\"CHRP-R\",U253=\"CHRP-R\",W253=\"CHRP-R\",Y253=\"CHRP-R\"),\"Under\",\"No\"))","v":"No"},"No","No",{"$f":"_xlfn.IFS(D253=\"\",\"\",D253=1,'MHP Family Income & Rent Limits'!$E$17,D253=2,'MHP Family Income & Rent Limits'!$F$17,D253=3,'MHP Family Income & Rent Limits'!$G$17,D253=4,'MHP Family Income & Rent Limits'!$H$17,D253=5,'MHP Family Income & Rent Limits'!$I$17,D253=6,'MHP Family Income & Rent Limits'!$J$17,D253=7,'MHP Family Income & Rent Limits'!$K$17,D253=8,'MHP Family Income & Rent Limits'!$L$17)","v":""},"",{"$f":"IF(OR(A253=0,B253=\"X\"),0,MIN(IF(AA253:AD253<>0,AA253:AD253)))","v":0},{"$f":"IF(OR(H253=\"\",I253=\"\"),0,IF(H253*0.3/12>I253,MIN(H253*0.3/12,I253*1.1)+AP253,I253*(1+(VLOOKUP('1. Checklist & Certification'!$F$9,'HLCP-E Rent Change'!$A$1:$D$59,4,FALSE)))+AP253))","v":0}]
[null,null,null,null,null,null,null,null,null,null,null,null,null,null,null,null,null,null,null,null,null,null,null,null,null,null,0,0,0,0,0,0,0,0,{"$f":"IF(OR(A254=0,B254=\"X\"),0,IF(OR(S254=\"FHDP\",S254=\"RHCP-B\",U254=\"FHDP\",U254=\"RHCP-B\",W254=\"FHDP\",W254=\"RHCP-B\",Y254=\"FHDP\",Y254=\"RHCP-B\"),TRUNC((MIN(I254,K254)*(1+'1. Checklist & Certification'!$K$43)+AP254)),0))","v":0},{"$f":"IF(OR(A254=0,B254=\"X\"),0,IF(OR(S254=\"CHRP-R\",S254=\"SERA\",S254=\"SUHRP\",U254=\"CHRP-R\",U254=\"SERA\",U254=\"SUHRP\",W254=\"CHRP-R\",W254=\"SERA\",W254=\"SUHRP\",Y254=\"CHRP-R\",Y254=\"SERA\",Y254=\"SUHRP\"),TRUNC((MIN(I254,K254)*(1+'1. Checklist & Certification'!$K$49))),0))","v":0},{"$f":"IF(OR(A254=0,B254=\"X\"),0,IF(OR(S254=\"CALDAP\",S254=\"DPRLP\",U254=\"CALDAP\",U254=\"DPRLP\",W254=\"CALDAP\",W254=\"DPRLP\",Y254=\"CALDAP\",Y254=\"DPRLP\"),TRUNC(((MIN(I254,K254))*(1+'1. Checklist & Certification'!$G$4))),0))","v":0},0,0,0,{"$f":"IF(OR(A254=0,B254=\"X\"),0,IF(OR(S254=\"PRP\",S254=\"LPR\",U254=\"PRP\",U254=\"LPR\",W254=\"PRP\",W254=\"LPR\",Y254=\"PRP\",Y254=\"LPR\"),MAX(I254+AP254,MIN(IF(AE254:AN254<>0,AE254:AN254))),MIN(IF(AE254:AN254<>0,AE254:AN254))))","v":0},{"$f":"IF(A254=0,0,IF(AND(OR(S254=\"Mgr\",S254=0),OR(U254=\"Mgr\",U254=0),OR(W254=\"Mgr\",W254=0)),0,IF(LEFT($A254,2)=\"B*\",VLOOKUP($E254,'1. Checklist & Certification'!$D$26:$E$32,2),IF(LEFT($A254,2)=\"C*\",VLOOKUP($E254,'1. Checklist & Certification'!$F$26:$G$32,2),IF(LEFT($A254,2)=\"D*\",VLOOKUP($E254,'1. Checklist & Certification'!$H$26:$I$32,2),IF(LEFT($A254,2)=\"E*\",VLOOKUP($E254,'1. Checklist & Certification'!$J$26:$K$32,2),VLOOKUP($E254,'1. Checklist & Certification'!$A$26:$B$32,2)))))))","v":0},0,0,null,null,null,null,"","",0,0,0,null,{"$f":"IF(A254=\"\",\"\",'1. Checklist & Certification'!$K$1)","v":""},{"$f":"IF(A254=\"\",\"\",'1. Checklist & Certification'!$C$62)","v":""},{"$f":"IF(A254=\"\",\"\",'1. Checklist & Certification'!$C$6)","v":""},{"$f":"IF(A254=\"\",\"\",'1. Checklist & Certification'!$G$5)","v":""},{"$f":"IFERROR(IF(A254=\"\",\"\",\n_xlfn.LET(_xlpm.Contract,'1. Checklist & Certification'!$C$7,\n_xlpm.Yr,TEXT(MOD(_xlfn.TEXTBEFORE(_xlpm.Contract,\"-\"),100),\"00\"),\n_xlpm.Program,_xlfn.TEXTAFTER(_xlfn.TEXTBEFORE(_xlpm.Contract,\"-\",2),\"-\"),\n_xlpm.CleanProgram,_xlfn.XLOOKUP(_xlpm.Program,SpellCheck[Input],SpellCheck[Correction],_xlpm.Program),\n_xlpm.Number,TEXT(_xlfn.TEXTAFTER(_xlpm.Contract,\"-\",2),\"0000\"),\n_xlfn.CONCAT(_xlpm.Yr,\"-\",_xlpm.CleanProgram,\"-\",_xlpm.Number))\n),\"\")","v":""},{"$f":"IFERROR(IF(A254=\"\",\"\",\n_xlfn.LET(_xlpm.Contract,'1. Checklist & Certification'!$C$8,\n_xlpm.Yr,TEXT(MOD(_xlfn.TEXTBEFORE(_xlpm.Contract,\"-\"),100),\"00\"),\n_xlpm.Program,_xlfn.TEXTAFTER(_xlfn.TEXTBEFORE(_xlpm.Contract,\"-\",2),\"-\"),\n_xlpm.CleanProgram,_xlfn.XLOOKUP(_xlpm.Program,SpellCheck[Input],SpellCheck[Correction],_xlpm.Program),\n_xlpm.Number,TEXT(_xlfn.TEXTAFTER(_xlpm.Contract,\"-\",2),\"0000\"),\n_xlfn.CONCAT(_xlpm.Yr,\"-\",_xlpm.CleanProgram,\"-\",_xlpm.Number))\n),\"\")","v":""},{"$f":"IFERROR(IF(A254=\"\",\"\",\n_xlfn.LET(_xlpm.Contract,'1. Checklist & Certification'!$F$7,\n_xlpm.Yr,TEXT(MOD(_xlfn.TEXTBEFORE(_xlpm.Contract,\"-\"),100),\"00\"),\n_xlpm.Program,_xlfn.TEXTAFTER(_xlfn.TEXTBEFORE(_xlpm.Contract,\"-\",2),\"-\"),\n_xlpm.CleanProgram,_xlfn.XLOOKUP(_xlpm.Program,SpellCheck[Input],SpellCheck[Correction],_xlpm.Program),\n_xlpm.Number,TEXT(_xlfn.TEXTAFTER(_xlpm.Contract,\"-\",2),\"0000\"),\n_xlfn.CONCAT(_xlpm.Yr,\"-\",_xlpm.CleanProgram,\"-\",_xlpm.Number))\n),\"\")","v":""},{"$f":"IFERROR(IF(A254=\"\",\"\",\n_xlfn.LET(_xlpm.Contract,'1. Checklist & Certification'!$F$8,\n_xlpm.Yr,TEXT(MOD(_xlfn.TEXTBEFORE(_xlpm.Contract,\"-\"),100),\"00\"),\n_xlpm.Program,_xlfn.TEXTAFTER(_xlfn.TEXTBEFORE(_xlpm.Contract,\"-\",2),\"-\"),\n_xlpm.CleanProgram,_xlfn.XLOOKUP(_xlpm.Program,SpellCheck[Input],SpellCheck[Correction],_xlpm.Program),\n_xlpm.Number,TEXT(_xlfn.TEXTAFTER(_xlpm.Contract,\"-\",2),\"0000\"),\n_xlfn.CONCAT(_xlpm.Yr,\"-\",_xlpm.CleanProgram,\"-\",_xlpm.Number))\n),\"\")","v":""},{"$f":"IF(A254=\"\",\"\",'1. Checklist & Certification'!$B$9)","v":""},{"$f":"IF(A254=\"\",\"\",'1. Checklist & Certification'!$F$9)","v":""},{"$f":"IF(A254=\"\",\"\",'1. Checklist & Certification'!$C$10)","v":""},{"$f":"IF(A254=\"\",\"\",'1. Checklist & Certification'!$C$11)","v":""},{"$f":"IF(A254=\"\",\"\",'1. Checklist & Certification'!$C$12)","v":""},{"$f":"IF(A254=\"\",\"\",'1. Checklist & Certification'!$B$14)","v":""},{"$f":"IF(A254=\"\",\"\",'1. Checklist & Certification'!$E$14)","v":""},{"$f":"IF(B254=\"\",\"\",'1. Checklist & Certification'!$G$14)","v":""},{"$f":"IF(A254=\"\",\"\",'MHP Family Income & Rent Limits'!$B$3)","v":""},{"$f":"IF(A254=\"\",\"\",'MHP Family Income & Rent Limits'!$J$3)","v":""},{"$f":"IF(A254=\"\",\"\",'MHP Family Income & Rent Limits'!$E$4)","v":""},{"$f":"IF(A254=\"\",\"\",'MHP Family Income & Rent Limits'!$C$7)","v":""},{"$f":"IF(A254=\"\",\"\",'MHP Family Income & Rent Limits'!$F$8)","v":""},{"$f":"IF(A254=\"\",\"\",'1. Checklist & Certification'!$G$4)","v":""},{"$f":"IF(A254=\"\",\"\",'1. Checklist & Certification'!$K$39)","v":""},{"$f":"IF(A254=\"\",\"\",'1. Checklist & Certification'!$K$43)","v":""},{"$f":"IF(A254=\"\",\"\",'1. Checklist & Certification'!$K$45)","v":""},{"$f":"IF(A254=\"\",\"\",'1. Checklist & Certification'!$K$49)","v":""},{"$f":"IF(A254=\"\",\"\",'1. Checklist & Certification'!$K$62)","v":""},{"$f":"IF(A254=\"\",\"\",'1. Checklist & Certification'!$E$66)","v":""},{"$f":"IF(A254=\"\",\"\",'1. Checklist & Certification'!$E$67)","v":""},{"$f":"IF(A254=\"\",\"\",'1. Checklist & Certification'!$E$68)","v":""},{"$f":"IF(A254=\"\",\"\",'1. Checklist & Certification'!$G$66)","v":""},{"$f":"IF(A254=\"\",\"\",'1. Checklist & Certification'!$H$66)","v":""},{"$f":"IF(A254=\"\",\"\",'1. Checklist & Certification'!$I$66)","v":""},{"$f":"IF(A254=\"\",\"\",'1. Checklist & Certification'!$I$67)","v":""},{"$f":"IF(A254=\"\",\"\",'1. Checklist & Certification'!$I$68)","v":""},{"$f":"IF(A254=\"\",\"\",'1. Checklist & Certification'!$B$69)","v":""},{"$f":"IF(A254=\"\",\"\",'1. Checklist & Certification'!$C$69)","v":""},{"$f":"IF(A254=\"\",\"\",'1. Checklist & Certification'!$F$69)","v":""},{"$f":"IF(A254=\"\",\"\",'1. Checklist & Certification'!$G$69)","v":""},{"$f":"IF(A254=\"\",\"\",'1. Checklist & Certification'!$J$69)","v":""},{"$f":"IF(A254=\"\",\"\",'1. Checklist & Certification'!$K$69)","v":""},null,null,{"$f":"IF(AND(OR('1. Checklist & Certification'!$M$16=1,'1. Checklist & Certification'!$M$19=2),AO254>0,B254=\"\",I254>0,AQ254<I254,AV254<>\"Sec 8-Project\"),\"X\",IF(AND(OR('1. Checklist & Certification'!$M$20=4,'1. Checklist & Certification'!$M$21=5,'1. Checklist & Certification'!$M$22=7),AO254>0,B254=\"\",I254>0,K254<I254),\"X\",\"\"))","v":""},{"$f":"IF(A254=\"\",\"\",IF(SUMPRODUCT(-- (ISNUMBER(SEARCH({\"*AHSC*\",\"*FMTW*\",\"*FWHG*\",\"*GHI*\",\"*HHC*\",\"*HLCP*\",\"*HOME*\",\"*LPR*\",\"*MHP*\",\"*NHTF*\",\"*NSP*\",\"*PRP*\",\"*TOD*\",\"*VHHP*\"},'1. Checklist & Certification'!$L$7)))),\"MHP\",\"Legacy\"))","v":""},",,",null,null,null,{"$f":"IF('1. Checklist & Certification'!$M$20=4,\"Both\",IF(OR('1. Checklist & Certification'!$M$15>0,S254=\"CHRP-R\",U254=\"CHRP-R\",W254=\"CHRP-R\",Y254=\"CHRP-R\"),\"Under\",\"No\"))","v":"No"},"No","No",{"$f":"_xlfn.IFS(D254=\"\",\"\",D254=1,'MHP Family Income & Rent Limits'!$E$17,D254=2,'MHP Family Income & Rent Limits'!$F$17,D254=3,'MHP Family Income & Rent Limits'!$G$17,D254=4,'MHP Family Income & Rent Limits'!$H$17,D254=5,'MHP Family Income & Rent Limits'!$I$17,D254=6,'MHP Family Income & Rent Limits'!$J$17,D254=7,'MHP Family Income & Rent Limits'!$K$17,D254=8,'MHP Family Income & Rent Limits'!$L$17)","v":""},"",{"$f":"IF(OR(A254=0,B254=\"X\"),0,MIN(IF(AA254:AD254<>0,AA254:AD254)))","v":0},{"$f":"IF(OR(H254=\"\",I254=\"\"),0,IF(H254*0.3/12>I254,MIN(H254*0.3/12,I254*1.1)+AP254,I254*(1+(VLOOKUP('1. Checklist & Certification'!$F$9,'HLCP-E Rent Change'!$A$1:$D$59,4,FALSE)))+AP254))","v":0}]
[null,null,null,null,null,null,null,null,null,null,null,null,null,null,null,null,null,null,null,null,null,null,null,null,null,null,0,0,0,0,0,0,0,0,{"$f":"IF(OR(A255=0,B255=\"X\"),0,IF(OR(S255=\"FHDP\",S255=\"RHCP-B\",U255=\"FHDP\",U255=\"RHCP-B\",W255=\"FHDP\",W255=\"RHCP-B\",Y255=\"FHDP\",Y255=\"RHCP-B\"),TRUNC((MIN(I255,K255)*(1+'1. Checklist & Certification'!$K$43)+AP255)),0))","v":0},{"$f":"IF(OR(A255=0,B255=\"X\"),0,IF(OR(S255=\"CHRP-R\",S255=\"SERA\",S255=\"SUHRP\",U255=\"CHRP-R\",U255=\"SERA\",U255=\"SUHRP\",W255=\"CHRP-R\",W255=\"SERA\",W255=\"SUHRP\",Y255=\"CHRP-R\",Y255=\"SERA\",Y255=\"SUHRP\"),TRUNC((MIN(I255,K255)*(1+'1. Checklist & Certification'!$K$49))),0))","v":0},{"$f":"IF(OR(A255=0,B255=\"X\"),0,IF(OR(S255=\"CALDAP\",S255=\"DPRLP\",U255=\"CALDAP\",U255=\"DPRLP\",W255=\"CALDAP\",W255=\"DPRLP\",Y255=\"CALDAP\",Y255=\"DPRLP\"),TRUNC(((MIN(I255,K255))*(1+'1. Checklist & Certification'!$G$4))),0))","v":0},0,0,0,{"$f":"IF(OR(A255=0,B255=\"X\"),0,IF(OR(S255=\"PRP\",S255=\"LPR\",U255=\"PRP\",U255=\"LPR\",W255=\"PRP\",W255=\"LPR\",Y255=\"PRP\",Y255=\"LPR\"),MAX(I255+AP255,MIN(IF(AE255:AN255<>0,AE255:AN255))),MIN(IF(AE255:AN255<>0,AE255:AN255))))","v":0},{"$f":"IF(A255=0,0,IF(AND(OR(S255=\"Mgr\",S255=0),OR(U255=\"Mgr\",U255=0),OR(W255=\"Mgr\",W255=0)),0,IF(LEFT($A255,2)=\"B*\",VLOOKUP($E255,'1. Checklist & Certification'!$D$26:$E$32,2),IF(LEFT($A255,2)=\"C*\",VLOOKUP($E255,'1. Checklist & Certification'!$F$26:$G$32,2),IF(LEFT($A255,2)=\"D*\",VLOOKUP($E255,'1. Checklist & Certification'!$H$26:$I$32,2),IF(LEFT($A255,2)=\"E*\",VLOOKUP($E255,'1. Checklist & Certification'!$J$26:$K$32,2),VLOOKUP($E255,'1. Checklist & Certification'!$A$26:$B$32,2)))))))","v":0},0,0,null,null,null,null,"","",0,0,0,null,{"$f":"IF(A255=\"\",\"\",'1. Checklist & Certification'!$K$1)","v":""},{"$f":"IF(A255=\"\",\"\",'1. Checklist & Certification'!$C$62)","v":""},{"$f":"IF(A255=\"\",\"\",'1. Checklist & Certification'!$C$6)","v":""},{"$f":"IF(A255=\"\",\"\",'1. Checklist & Certification'!$G$5)","v":""},{"$f":"IFERROR(IF(A255=\"\",\"\",\n_xlfn.LET(_xlpm.Contract,'1. Checklist & Certification'!$C$7,\n_xlpm.Yr,TEXT(MOD(_xlfn.TEXTBEFORE(_xlpm.Contract,\"-\"),100),\"00\"),\n_xlpm.Program,_xlfn.TEXTAFTER(_xlfn.TEXTBEFORE(_xlpm.Contract,\"-\",2),\"-\"),\n_xlpm.CleanProgram,_xlfn.XLOOKUP(_xlpm.Program,SpellCheck[Input],SpellCheck[Correction],_xlpm.Program),\n_xlpm.Number,TEXT(_xlfn.TEXTAFTER(_xlpm.Contract,\"-\",2),\"0000\"),\n_xlfn.CONCAT(_xlpm.Yr,\"-\",_xlpm.CleanProgram,\"-\",_xlpm.Number))\n),\"\")","v":""},{"$f":"IFERROR(IF(A255=\"\",\"\",\n_xlfn.LET(_xlpm.Contract,'1. Checklist & Certification'!$C$8,\n_xlpm.Yr,TEXT(MOD(_xlfn.TEXTBEFORE(_xlpm.Contract,\"-\"),100),\"00\"),\n_xlpm.Program,_xlfn.TEXTAFTER(_xlfn.TEXTBEFORE(_xlpm.Contract,\"-\",2),\"-\"),\n_xlpm.CleanProgram,_xlfn.XLOOKUP(_xlpm.Program,SpellCheck[Input],SpellCheck[Correction],_xlpm.Program),\n_xlpm.Number,TEXT(_xlfn.TEXTAFTER(_xlpm.Contract,\"-\",2),\"0000\"),\n_xlfn.CONCAT(_xlpm.Yr,\"-\",_xlpm.CleanProgram,\"-\",_xlpm.Number))\n),\"\")","v":""},{"$f":"IFERROR(IF(A255=\"\",\"\",\n_xlfn.LET(_xlpm.Contract,'1. Checklist & Certification'!$F$7,\n_xlpm.Yr,TEXT(MOD(_xlfn.TEXTBEFORE(_xlpm.Contract,\"-\"),100),\"00\"),\n_xlpm.Program,_xlfn.TEXTAFTER(_xlfn.TEXTBEFORE(_xlpm.Contract,\"-\",2),\"-\"),\n_xlpm.CleanProgram,_xlfn.XLOOKUP(_xlpm.Program,SpellCheck[Input],SpellCheck[Correction],_xlpm.Program),\n_xlpm.Number,TEXT(_xlfn.TEXTAFTER(_xlpm.Contract,\"-\",2),\"0000\"),\n_xlfn.CONCAT(_xlpm.Yr,\"-\",_xlpm.CleanProgram,\"-\",_xlpm.Number))\n),\"\")","v":""},{"$f":"IFERROR(IF(A255=\"\",\"\",\n_xlfn.LET(_xlpm.Contract,'1. Checklist & Certification'!$F$8,\n_xlpm.Yr,TEXT(MOD(_xlfn.TEXTBEFORE(_xlpm.Contract,\"-\"),100),\"00\"),\n_xlpm.Program,_xlfn.TEXTAFTER(_xlfn.TEXTBEFORE(_xlpm.Contract,\"-\",2),\"-\"),\n_xlpm.CleanProgram,_xlfn.XLOOKUP(_xlpm.Program,SpellCheck[Input],SpellCheck[Correction],_xlpm.Program),\n_xlpm.Number,TEXT(_xlfn.TEXTAFTER(_xlpm.Contract,\"-\",2),\"0000\"),\n_xlfn.CONCAT(_xlpm.Yr,\"-\",_xlpm.CleanProgram,\"-\",_xlpm.Number))\n),\"\")","v":""},{"$f":"IF(A255=\"\",\"\",'1. Checklist & Certification'!$B$9)","v":""},{"$f":"IF(A255=\"\",\"\",'1. Checklist & Certification'!$F$9)","v":""},{"$f":"IF(A255=\"\",\"\",'1. Checklist & Certification'!$C$10)","v":""},{"$f":"IF(A255=\"\",\"\",'1. Checklist & Certification'!$C$11)","v":""},{"$f":"IF(A255=\"\",\"\",'1. Checklist & Certification'!$C$12)","v":""},{"$f":"IF(A255=\"\",\"\",'1. Checklist & Certification'!$B$14)","v":""},{"$f":"IF(A255=\"\",\"\",'1. Checklist & Certification'!$E$14)","v":""},{"$f":"IF(B255=\"\",\"\",'1. Checklist & Certification'!$G$14)","v":""},{"$f":"IF(A255=\"\",\"\",'MHP Family Income & Rent Limits'!$B$3)","v":""},{"$f":"IF(A255=\"\",\"\",'MHP Family Income & Rent Limits'!$J$3)","v":""},{"$f":"IF(A255=\"\",\"\",'MHP Family Income & Rent Limits'!$E$4)","v":""},{"$f":"IF(A255=\"\",\"\",'MHP Family Income & Rent Limits'!$C$7)","v":""},{"$f":"IF(A255=\"\",\"\",'MHP Family Income & Rent Limits'!$F$8)","v":""},{"$f":"IF(A255=\"\",\"\",'1. Checklist & Certification'!$G$4)","v":""},{"$f":"IF(A255=\"\",\"\",'1. Checklist & Certification'!$K$39)","v":""},{"$f":"IF(A255=\"\",\"\",'1. Checklist & Certification'!$K$43)","v":""},{"$f":"IF(A255=\"\",\"\",'1. Checklist & Certification'!$K$45)","v":""},{"$f":"IF(A255=\"\",\"\",'1. Checklist & Certification'!$K$49)","v":""},{"$f":"IF(A255=\"\",\"\",'1. Checklist & Certification'!$K$62)","v":""},{"$f":"IF(A255=\"\",\"\",'1. Checklist & Certification'!$E$66)","v":""},{"$f":"IF(A255=\"\",\"\",'1. Checklist & Certification'!$E$67)","v":""},{"$f":"IF(A255=\"\",\"\",'1. Checklist & Certification'!$E$68)","v":""},{"$f":"IF(A255=\"\",\"\",'1. Checklist & Certification'!$G$66)","v":""},{"$f":"IF(A255=\"\",\"\",'1. Checklist & Certification'!$H$66)","v":""},{"$f":"IF(A255=\"\",\"\",'1. Checklist & Certification'!$I$66)","v":""},{"$f":"IF(A255=\"\",\"\",'1. Checklist & Certification'!$I$67)","v":""},{"$f":"IF(A255=\"\",\"\",'1. Checklist & Certification'!$I$68)","v":""},{"$f":"IF(A255=\"\",\"\",'1. Checklist & Certification'!$B$69)","v":""},{"$f":"IF(A255=\"\",\"\",'1. Checklist & Certification'!$C$69)","v":""},{"$f":"IF(A255=\"\",\"\",'1. Checklist & Certification'!$F$69)","v":""},{"$f":"IF(A255=\"\",\"\",'1. Checklist & Certification'!$G$69)","v":""},{"$f":"IF(A255=\"\",\"\",'1. Checklist & Certification'!$J$69)","v":""},{"$f":"IF(A255=\"\",\"\",'1. Checklist & Certification'!$K$69)","v":""},null,null,{"$f":"IF(AND(OR('1. Checklist & Certification'!$M$16=1,'1. Checklist & Certification'!$M$19=2),AO255>0,B255=\"\",I255>0,AQ255<I255,AV255<>\"Sec 8-Project\"),\"X\",IF(AND(OR('1. Checklist & Certification'!$M$20=4,'1. Checklist & Certification'!$M$21=5,'1. Checklist & Certification'!$M$22=7),AO255>0,B255=\"\",I255>0,K255<I255),\"X\",\"\"))","v":""},{"$f":"IF(A255=\"\",\"\",IF(SUMPRODUCT(-- (ISNUMBER(SEARCH({\"*AHSC*\",\"*FMTW*\",\"*FWHG*\",\"*GHI*\",\"*HHC*\",\"*HLCP*\",\"*HOME*\",\"*LPR*\",\"*MHP*\",\"*NHTF*\",\"*NSP*\",\"*PRP*\",\"*TOD*\",\"*VHHP*\"},'1. Checklist & Certification'!$L$7)))),\"MHP\",\"Legacy\"))","v":""},",,",null,null,null,{"$f":"IF('1. Checklist & Certification'!$M$20=4,\"Both\",IF(OR('1. Checklist & Certification'!$M$15>0,S255=\"CHRP-R\",U255=\"CHRP-R\",W255=\"CHRP-R\",Y255=\"CHRP-R\"),\"Under\",\"No\"))","v":"No"},"No","No",{"$f":"_xlfn.IFS(D255=\"\",\"\",D255=1,'MHP Family Income & Rent Limits'!$E$17,D255=2,'MHP Family Income & Rent Limits'!$F$17,D255=3,'MHP Family Income & Rent Limits'!$G$17,D255=4,'MHP Family Income & Rent Limits'!$H$17,D255=5,'MHP Family Income & Rent Limits'!$I$17,D255=6,'MHP Family Income & Rent Limits'!$J$17,D255=7,'MHP Family Income & Rent Limits'!$K$17,D255=8,'MHP Family Income & Rent Limits'!$L$17)","v":""},"",{"$f":"IF(OR(A255=0,B255=\"X\"),0,MIN(IF(AA255:AD255<>0,AA255:AD255)))","v":0},{"$f":"IF(OR(H255=\"\",I255=\"\"),0,IF(H255*0.3/12>I255,MIN(H255*0.3/12,I255*1.1)+AP255,I255*(1+(VLOOKUP('1. Checklist & Certification'!$F$9,'HLCP-E Rent Change'!$A$1:$D$59,4,FALSE)))+AP255))","v":0}]
[null,null,null,null,null,null,null,null,null,null,null,null,null,null,null,null,null,null,null,null,null,null,null,null,null,null,0,0,0,0,0,0,0,0,{"$f":"IF(OR(A256=0,B256=\"X\"),0,IF(OR(S256=\"FHDP\",S256=\"RHCP-B\",U256=\"FHDP\",U256=\"RHCP-B\",W256=\"FHDP\",W256=\"RHCP-B\",Y256=\"FHDP\",Y256=\"RHCP-B\"),TRUNC((MIN(I256,K256)*(1+'1. Checklist & Certification'!$K$43)+AP256)),0))","v":0},{"$f":"IF(OR(A256=0,B256=\"X\"),0,IF(OR(S256=\"CHRP-R\",S256=\"SERA\",S256=\"SUHRP\",U256=\"CHRP-R\",U256=\"SERA\",U256=\"SUHRP\",W256=\"CHRP-R\",W256=\"SERA\",W256=\"SUHRP\",Y256=\"CHRP-R\",Y256=\"SERA\",Y256=\"SUHRP\"),TRUNC((MIN(I256,K256)*(1+'1. Checklist & Certification'!$K$49))),0))","v":0},{"$f":"IF(OR(A256=0,B256=\"X\"),0,IF(OR(S256=\"CALDAP\",S256=\"DPRLP\",U256=\"CALDAP\",U256=\"DPRLP\",W256=\"CALDAP\",W256=\"DPRLP\",Y256=\"CALDAP\",Y256=\"DPRLP\"),TRUNC(((MIN(I256,K256))*(1+'1. Checklist & Certification'!$G$4))),0))","v":0},0,0,0,{"$f":"IF(OR(A256=0,B256=\"X\"),0,IF(OR(S256=\"PRP\",S256=\"LPR\",U256=\"PRP\",U256=\"LPR\",W256=\"PRP\",W256=\"LPR\",Y256=\"PRP\",Y256=\"LPR\"),MAX(I256+AP256,MIN(IF(AE256:AN256<>0,AE256:AN256))),MIN(IF(AE256:AN256<>0,AE256:AN256))))","v":0},{"$f":"IF(A256=0,0,IF(AND(OR(S256=\"Mgr\",S256=0),OR(U256=\"Mgr\",U256=0),OR(W256=\"Mgr\",W256=0)),0,IF(LEFT($A256,2)=\"B*\",VLOOKUP($E256,'1. Checklist & Certification'!$D$26:$E$32,2),IF(LEFT($A256,2)=\"C*\",VLOOKUP($E256,'1. Checklist & Certification'!$F$26:$G$32,2),IF(LEFT($A256,2)=\"D*\",VLOOKUP($E256,'1. Checklist & Certification'!$H$26:$I$32,2),IF(LEFT($A256,2)=\"E*\",VLOOKUP($E256,'1. Checklist & Certification'!$J$26:$K$32,2),VLOOKUP($E256,'1. Checklist & Certification'!$A$26:$B$32,2)))))))","v":0},0,0,null,null,null,null,"","",0,0,0,null,{"$f":"IF(A256=\"\",\"\",'1. Checklist & Certification'!$K$1)","v":""},{"$f":"IF(A256=\"\",\"\",'1. Checklist & Certification'!$C$62)","v":""},{"$f":"IF(A256=\"\",\"\",'1. Checklist & Certification'!$C$6)","v":""},{"$f":"IF(A256=\"\",\"\",'1. Checklist & Certification'!$G$5)","v":""},{"$f":"IFERROR(IF(A256=\"\",\"\",\n_xlfn.LET(_xlpm.Contract,'1. Checklist & Certification'!$C$7,\n_xlpm.Yr,TEXT(MOD(_xlfn.TEXTBEFORE(_xlpm.Contract,\"-\"),100),\"00\"),\n_xlpm.Program,_xlfn.TEXTAFTER(_xlfn.TEXTBEFORE(_xlpm.Contract,\"-\",2),\"-\"),\n_xlpm.CleanProgram,_xlfn.XLOOKUP(_xlpm.Program,SpellCheck[Input],SpellCheck[Correction],_xlpm.Program),\n_xlpm.Number,TEXT(_xlfn.TEXTAFTER(_xlpm.Contract,\"-\",2),\"0000\"),\n_xlfn.CONCAT(_xlpm.Yr,\"-\",_xlpm.CleanProgram,\"-\",_xlpm.Number))\n),\"\")","v":""},{"$f":"IFERROR(IF(A256=\"\",\"\",\n_xlfn.LET(_xlpm.Contract,'1. Checklist & Certification'!$C$8,\n_xlpm.Yr,TEXT(MOD(_xlfn.TEXTBEFORE(_xlpm.Contract,\"-\"),100),\"00\"),\n_xlpm.Program,_xlfn.TEXTAFTER(_xlfn.TEXTBEFORE(_xlpm.Contract,\"-\",2),\"-\"),\n_xlpm.CleanProgram,_xlfn.XLOOKUP(_xlpm.Program,SpellCheck[Input],SpellCheck[Correction],_xlpm.Program),\n_xlpm.Number,TEXT(_xlfn.TEXTAFTER(_xlpm.Contract,\"-\",2),\"0000\"),\n_xlfn.CONCAT(_xlpm.Yr,\"-\",_xlpm.CleanProgram,\"-\",_xlpm.Number))\n),\"\")","v":""},{"$f":"IFERROR(IF(A256=\"\",\"\",\n_xlfn.LET(_xlpm.Contract,'1. Checklist & Certification'!$F$7,\n_xlpm.Yr,TEXT(MOD(_xlfn.TEXTBEFORE(_xlpm.Contract,\"-\"),100),\"00\"),\n_xlpm.Program,_xlfn.TEXTAFTER(_xlfn.TEXTBEFORE(_xlpm.Contract,\"-\",2),\"-\"),\n_xlpm.CleanProgram,_xlfn.XLOOKUP(_xlpm.Program,SpellCheck[Input],SpellCheck[Correction],_xlpm.Program),\n_xlpm.Number,TEXT(_xlfn.TEXTAFTER(_xlpm.Contract,\"-\",2),\"0000\"),\n_xlfn.CONCAT(_xlpm.Yr,\"-\",_xlpm.CleanProgram,\"-\",_xlpm.Number))\n),\"\")","v":""},{"$f":"IFERROR(IF(A256=\"\",\"\",\n_xlfn.LET(_xlpm.Contract,'1. Checklist & Certification'!$F$8,\n_xlpm.Yr,TEXT(MOD(_xlfn.TEXTBEFORE(_xlpm.Contract,\"-\"),100),\"00\"),\n_xlpm.Program,_xlfn.TEXTAFTER(_xlfn.TEXTBEFORE(_xlpm.Contract,\"-\",2),\"-\"),\n_xlpm.CleanProgram,_xlfn.XLOOKUP(_xlpm.Program,SpellCheck[Input],SpellCheck[Correction],_xlpm.Program),\n_xlpm.Number,TEXT(_xlfn.TEXTAFTER(_xlpm.Contract,\"-\",2),\"0000\"),\n_xlfn.CONCAT(_xlpm.Yr,\"-\",_xlpm.CleanProgram,\"-\",_xlpm.Number))\n),\"\")","v":""},{"$f":"IF(A256=\"\",\"\",'1. Checklist & Certification'!$B$9)","v":""},{"$f":"IF(A256=\"\",\"\",'1. Checklist & Certification'!$F$9)","v":""},{"$f":"IF(A256=\"\",\"\",'1. Checklist & Certification'!$C$10)","v":""},{"$f":"IF(A256=\"\",\"\",'1. Checklist & Certification'!$C$11)","v":""},{"$f":"IF(A256=\"\",\"\",'1. Checklist & Certification'!$C$12)","v":""},{"$f":"IF(A256=\"\",\"\",'1. Checklist & Certification'!$B$14)","v":""},{"$f":"IF(A256=\"\",\"\",'1. Checklist & Certification'!$E$14)","v":""},{"$f":"IF(B256=\"\",\"\",'1. Checklist & Certification'!$G$14)","v":""},{"$f":"IF(A256=\"\",\"\",'MHP Family Income & Rent Limits'!$B$3)","v":""},{"$f":"IF(A256=\"\",\"\",'MHP Family Income & Rent Limits'!$J$3)","v":""},{"$f":"IF(A256=\"\",\"\",'MHP Family Income & Rent Limits'!$E$4)","v":""},{"$f":"IF(A256=\"\",\"\",'MHP Family Income & Rent Limits'!$C$7)","v":""},{"$f":"IF(A256=\"\",\"\",'MHP Family Income & Rent Limits'!$F$8)","v":""},{"$f":"IF(A256=\"\",\"\",'1. Checklist & Certification'!$G$4)","v":""},{"$f":"IF(A256=\"\",\"\",'1. Checklist & Certification'!$K$39)","v":""},{"$f":"IF(A256=\"\",\"\",'1. Checklist & Certification'!$K$43)","v":""},{"$f":"IF(A256=\"\",\"\",'1. Checklist & Certification'!$K$45)","v":""},{"$f":"IF(A256=\"\",\"\",'1. Checklist & Certification'!$K$49)","v":""},{"$f":"IF(A256=\"\",\"\",'1. Checklist & Certification'!$K$62)","v":""},{"$f":"IF(A256=\"\",\"\",'1. Checklist & Certification'!$E$66)","v":""},{"$f":"IF(A256=\"\",\"\",'1. Checklist & Certification'!$E$67)","v":""},{"$f":"IF(A256=\"\",\"\",'1. Checklist & Certification'!$E$68)","v":""},{"$f":"IF(A256=\"\",\"\",'1. Checklist & Certification'!$G$66)","v":""},{"$f":"IF(A256=\"\",\"\",'1. Checklist & Certification'!$H$66)","v":""},{"$f":"IF(A256=\"\",\"\",'1. Checklist & Certification'!$I$66)","v":""},{"$f":"IF(A256=\"\",\"\",'1. Checklist & Certification'!$I$67)","v":""},{"$f":"IF(A256=\"\",\"\",'1. Checklist & Certification'!$I$68)","v":""},{"$f":"IF(A256=\"\",\"\",'1. Checklist & Certification'!$B$69)","v":""},{"$f":"IF(A256=\"\",\"\",'1. Checklist & Certification'!$C$69)","v":""},{"$f":"IF(A256=\"\",\"\",'1. Checklist & Certification'!$F$69)","v":""},{"$f":"IF(A256=\"\",\"\",'1. Checklist & Certification'!$G$69)","v":""},{"$f":"IF(A256=\"\",\"\",'1. Checklist & Certification'!$J$69)","v":""},{"$f":"IF(A256=\"\",\"\",'1. Checklist & Certification'!$K$69)","v":""},null,null,{"$f":"IF(AND(OR('1. Checklist & Certification'!$M$16=1,'1. Checklist & Certification'!$M$19=2),AO256>0,B256=\"\",I256>0,AQ256<I256,AV256<>\"Sec 8-Project\"),\"X\",IF(AND(OR('1. Checklist & Certification'!$M$20=4,'1. Checklist & Certification'!$M$21=5,'1. Checklist & Certification'!$M$22=7),AO256>0,B256=\"\",I256>0,K256<I256),\"X\",\"\"))","v":""},{"$f":"IF(A256=\"\",\"\",IF(SUMPRODUCT(-- (ISNUMBER(SEARCH({\"*AHSC*\",\"*FMTW*\",\"*FWHG*\",\"*GHI*\",\"*HHC*\",\"*HLCP*\",\"*HOME*\",\"*LPR*\",\"*MHP*\",\"*NHTF*\",\"*NSP*\",\"*PRP*\",\"*TOD*\",\"*VHHP*\"},'1. Checklist & Certification'!$L$7)))),\"MHP\",\"Legacy\"))","v":""},",,",null,null,null,{"$f":"IF('1. Checklist & Certification'!$M$20=4,\"Both\",IF(OR('1. Checklist & Certification'!$M$15>0,S256=\"CHRP-R\",U256=\"CHRP-R\",W256=\"CHRP-R\",Y256=\"CHRP-R\"),\"Under\",\"No\"))","v":"No"},"No","No",{"$f":"_xlfn.IFS(D256=\"\",\"\",D256=1,'MHP Family Income & Rent Limits'!$E$17,D256=2,'MHP Family Income & Rent Limits'!$F$17,D256=3,'MHP Family Income & Rent Limits'!$G$17,D256=4,'MHP Family Income & Rent Limits'!$H$17,D256=5,'MHP Family Income & Rent Limits'!$I$17,D256=6,'MHP Family Income & Rent Limits'!$J$17,D256=7,'MHP Family Income & Rent Limits'!$K$17,D256=8,'MHP Family Income & Rent Limits'!$L$17)","v":""},"",{"$f":"IF(OR(A256=0,B256=\"X\"),0,MIN(IF(AA256:AD256<>0,AA256:AD256)))","v":0},{"$f":"IF(OR(H256=\"\",I256=\"\"),0,IF(H256*0.3/12>I256,MIN(H256*0.3/12,I256*1.1)+AP256,I256*(1+(VLOOKUP('1. Checklist & Certification'!$F$9,'HLCP-E Rent Change'!$A$1:$D$59,4,FALSE)))+AP256))","v":0}]
[null,null,null,null,null,null,null,null,null,null,null,null,null,null,null,null,null,null,null,null,null,null,null,null,null,null,0,0,0,0,0,0,0,0,{"$f":"IF(OR(A257=0,B257=\"X\"),0,IF(OR(S257=\"FHDP\",S257=\"RHCP-B\",U257=\"FHDP\",U257=\"RHCP-B\",W257=\"FHDP\",W257=\"RHCP-B\",Y257=\"FHDP\",Y257=\"RHCP-B\"),TRUNC((MIN(I257,K257)*(1+'1. Checklist & Certification'!$K$43)+AP257)),0))","v":0},{"$f":"IF(OR(A257=0,B257=\"X\"),0,IF(OR(S257=\"CHRP-R\",S257=\"SERA\",S257=\"SUHRP\",U257=\"CHRP-R\",U257=\"SERA\",U257=\"SUHRP\",W257=\"CHRP-R\",W257=\"SERA\",W257=\"SUHRP\",Y257=\"CHRP-R\",Y257=\"SERA\",Y257=\"SUHRP\"),TRUNC((MIN(I257,K257)*(1+'1. Checklist & Certification'!$K$49))),0))","v":0},{"$f":"IF(OR(A257=0,B257=\"X\"),0,IF(OR(S257=\"CALDAP\",S257=\"DPRLP\",U257=\"CALDAP\",U257=\"DPRLP\",W257=\"CALDAP\",W257=\"DPRLP\",Y257=\"CALDAP\",Y257=\"DPRLP\"),TRUNC(((MIN(I257,K257))*(1+'1. Checklist & Certification'!$G$4))),0))","v":0},0,0,0,{"$f":"IF(OR(A257=0,B257=\"X\"),0,IF(OR(S257=\"PRP\",S257=\"LPR\",U257=\"PRP\",U257=\"LPR\",W257=\"PRP\",W257=\"LPR\",Y257=\"PRP\",Y257=\"LPR\"),MAX(I257+AP257,MIN(IF(AE257:AN257<>0,AE257:AN257))),MIN(IF(AE257:AN257<>0,AE257:AN257))))","v":0},{"$f":"IF(A257=0,0,IF(AND(OR(S257=\"Mgr\",S257=0),OR(U257=\"Mgr\",U257=0),OR(W257=\"Mgr\",W257=0)),0,IF(LEFT($A257,2)=\"B*\",VLOOKUP($E257,'1. Checklist & Certification'!$D$26:$E$32,2),IF(LEFT($A257,2)=\"C*\",VLOOKUP($E257,'1. Checklist & Certification'!$F$26:$G$32,2),IF(LEFT($A257,2)=\"D*\",VLOOKUP($E257,'1. Checklist & Certification'!$H$26:$I$32,2),IF(LEFT($A257,2)=\"E*\",VLOOKUP($E257,'1. Checklist & Certification'!$J$26:$K$32,2),VLOOKUP($E257,'1. Checklist & Certification'!$A$26:$B$32,2)))))))","v":0},0,0,null,null,null,null,"","",0,0,0,null,{"$f":"IF(A257=\"\",\"\",'1. Checklist & Certification'!$K$1)","v":""},{"$f":"IF(A257=\"\",\"\",'1. Checklist & Certification'!$C$62)","v":""},{"$f":"IF(A257=\"\",\"\",'1. Checklist & Certification'!$C$6)","v":""},{"$f":"IF(A257=\"\",\"\",'1. Checklist & Certification'!$G$5)","v":""},{"$f":"IFERROR(IF(A257=\"\",\"\",\n_xlfn.LET(_xlpm.Contract,'1. Checklist & Certification'!$C$7,\n_xlpm.Yr,TEXT(MOD(_xlfn.TEXTBEFORE(_xlpm.Contract,\"-\"),100),\"00\"),\n_xlpm.Program,_xlfn.TEXTAFTER(_xlfn.TEXTBEFORE(_xlpm.Contract,\"-\",2),\"-\"),\n_xlpm.CleanProgram,_xlfn.XLOOKUP(_xlpm.Program,SpellCheck[Input],SpellCheck[Correction],_xlpm.Program),\n_xlpm.Number,TEXT(_xlfn.TEXTAFTER(_xlpm.Contract,\"-\",2),\"0000\"),\n_xlfn.CONCAT(_xlpm.Yr,\"-\",_xlpm.CleanProgram,\"-\",_xlpm.Number))\n),\"\")","v":""},{"$f":"IFERROR(IF(A257=\"\",\"\",\n_xlfn.LET(_xlpm.Contract,'1. Checklist & Certification'!$C$8,\n_xlpm.Yr,TEXT(MOD(_xlfn.TEXTBEFORE(_xlpm.Contract,\"-\"),100),\"00\"),\n_xlpm.Program,_xlfn.TEXTAFTER(_xlfn.TEXTBEFORE(_xlpm.Contract,\"-\",2),\"-\"),\n_xlpm.CleanProgram,_xlfn.XLOOKUP(_xlpm.Program,SpellCheck[Input],SpellCheck[Correction],_xlpm.Program),\n_xlpm.Number,TEXT(_xlfn.TEXTAFTER(_xlpm.Contract,\"-\",2),\"0000\"),\n_xlfn.CONCAT(_xlpm.Yr,\"-\",_xlpm.CleanProgram,\"-\",_xlpm.Number))\n),\"\")","v":""},{"$f":"IFERROR(IF(A257=\"\",\"\",\n_xlfn.LET(_xlpm.Contract,'1. Checklist & Certification'!$F$7,\n_xlpm.Yr,TEXT(MOD(_xlfn.TEXTBEFORE(_xlpm.Contract,\"-\"),100),\"00\"),\n_xlpm.Program,_xlfn.TEXTAFTER(_xlfn.TEXTBEFORE(_xlpm.Contract,\"-\",2),\"-\"),\n_xlpm.CleanProgram,_xlfn.XLOOKUP(_xlpm.Program,SpellCheck[Input],SpellCheck[Correction],_xlpm.Program),\n_xlpm.Number,TEXT(_xlfn.TEXTAFTER(_xlpm.Contract,\"-\",2),\"0000\"),\n_xlfn.CONCAT(_xlpm.Yr,\"-\",_xlpm.CleanProgram,\"-\",_xlpm.Number))\n),\"\")","v":""},{"$f":"IFERROR(IF(A257=\"\",\"\",\n_xlfn.LET(_xlpm.Contract,'1. Checklist & Certification'!$F$8,\n_xlpm.Yr,TEXT(MOD(_xlfn.TEXTBEFORE(_xlpm.Contract,\"-\"),100),\"00\"),\n_xlpm.Program,_xlfn.TEXTAFTER(_xlfn.TEXTBEFORE(_xlpm.Contract,\"-\",2),\"-\"),\n_xlpm.CleanProgram,_xlfn.XLOOKUP(_xlpm.Program,SpellCheck[Input],SpellCheck[Correction],_xlpm.Program),\n_xlpm.Number,TEXT(_xlfn.TEXTAFTER(_xlpm.Contract,\"-\",2),\"0000\"),\n_xlfn.CONCAT(_xlpm.Yr,\"-\",_xlpm.CleanProgram,\"-\",_xlpm.Number))\n),\"\")","v":""},{"$f":"IF(A257=\"\",\"\",'1. Checklist & Certification'!$B$9)","v":""},{"$f":"IF(A257=\"\",\"\",'1. Checklist & Certification'!$F$9)","v":""},{"$f":"IF(A257=\"\",\"\",'1. Checklist & Certification'!$C$10)","v":""},{"$f":"IF(A257=\"\",\"\",'1. Checklist & Certification'!$C$11)","v":""},{"$f":"IF(A257=\"\",\"\",'1. Checklist & Certification'!$C$12)","v":""},{"$f":"IF(A257=\"\",\"\",'1. Checklist & Certification'!$B$14)","v":""},{"$f":"IF(A257=\"\",\"\",'1. Checklist & Certification'!$E$14)","v":""},{"$f":"IF(B257=\"\",\"\",'1. Checklist & Certification'!$G$14)","v":""},{"$f":"IF(A257=\"\",\"\",'MHP Family Income & Rent Limits'!$B$3)","v":""},{"$f":"IF(A257=\"\",\"\",'MHP Family Income & Rent Limits'!$J$3)","v":""},{"$f":"IF(A257=\"\",\"\",'MHP Family Income & Rent Limits'!$E$4)","v":""},{"$f":"IF(A257=\"\",\"\",'MHP Family Income & Rent Limits'!$C$7)","v":""},{"$f":"IF(A257=\"\",\"\",'MHP Family Income & Rent Limits'!$F$8)","v":""},{"$f":"IF(A257=\"\",\"\",'1. Checklist & Certification'!$G$4)","v":""},{"$f":"IF(A257=\"\",\"\",'1. Checklist & Certification'!$K$39)","v":""},{"$f":"IF(A257=\"\",\"\",'1. Checklist & Certification'!$K$43)","v":""},{"$f":"IF(A257=\"\",\"\",'1. Checklist & Certification'!$K$45)","v":""},{"$f":"IF(A257=\"\",\"\",'1. Checklist & Certification'!$K$49)","v":""},{"$f":"IF(A257=\"\",\"\",'1. Checklist & Certification'!$K$62)","v":""},{"$f":"IF(A257=\"\",\"\",'1. Checklist & Certification'!$E$66)","v":""},{"$f":"IF(A257=\"\",\"\",'1. Checklist & Certification'!$E$67)","v":""},{"$f":"IF(A257=\"\",\"\",'1. Checklist & Certification'!$E$68)","v":""},{"$f":"IF(A257=\"\",\"\",'1. Checklist & Certification'!$G$66)","v":""},{"$f":"IF(A257=\"\",\"\",'1. Checklist & Certification'!$H$66)","v":""},{"$f":"IF(A257=\"\",\"\",'1. Checklist & Certification'!$I$66)","v":""},{"$f":"IF(A257=\"\",\"\",'1. Checklist & Certification'!$I$67)","v":""},{"$f":"IF(A257=\"\",\"\",'1. Checklist & Certification'!$I$68)","v":""},{"$f":"IF(A257=\"\",\"\",'1. Checklist & Certification'!$B$69)","v":""},{"$f":"IF(A257=\"\",\"\",'1. Checklist & Certification'!$C$69)","v":""},{"$f":"IF(A257=\"\",\"\",'1. Checklist & Certification'!$F$69)","v":""},{"$f":"IF(A257=\"\",\"\",'1. Checklist & Certification'!$G$69)","v":""},{"$f":"IF(A257=\"\",\"\",'1. Checklist & Certification'!$J$69)","v":""},{"$f":"IF(A257=\"\",\"\",'1. Checklist & Certification'!$K$69)","v":""},null,null,{"$f":"IF(AND(OR('1. Checklist & Certification'!$M$16=1,'1. Checklist & Certification'!$M$19=2),AO257>0,B257=\"\",I257>0,AQ257<I257,AV257<>\"Sec 8-Project\"),\"X\",IF(AND(OR('1. Checklist & Certification'!$M$20=4,'1. Checklist & Certification'!$M$21=5,'1. Checklist & Certification'!$M$22=7),AO257>0,B257=\"\",I257>0,K257<I257),\"X\",\"\"))","v":""},{"$f":"IF(A257=\"\",\"\",IF(SUMPRODUCT(-- (ISNUMBER(SEARCH({\"*AHSC*\",\"*FMTW*\",\"*FWHG*\",\"*GHI*\",\"*HHC*\",\"*HLCP*\",\"*HOME*\",\"*LPR*\",\"*MHP*\",\"*NHTF*\",\"*NSP*\",\"*PRP*\",\"*TOD*\",\"*VHHP*\"},'1. Checklist & Certification'!$L$7)))),\"MHP\",\"Legacy\"))","v":""},",,",null,null,null,{"$f":"IF('1. Checklist & Certification'!$M$20=4,\"Both\",IF(OR('1. Checklist & Certification'!$M$15>0,S257=\"CHRP-R\",U257=\"CHRP-R\",W257=\"CHRP-R\",Y257=\"CHRP-R\"),\"Under\",\"No\"))","v":"No"},"No","No",{"$f":"_xlfn.IFS(D257=\"\",\"\",D257=1,'MHP Family Income & Rent Limits'!$E$17,D257=2,'MHP Family Income & Rent Limits'!$F$17,D257=3,'MHP Family Income & Rent Limits'!$G$17,D257=4,'MHP Family Income & Rent Limits'!$H$17,D257=5,'MHP Family Income & Rent Limits'!$I$17,D257=6,'MHP Family Income & Rent Limits'!$J$17,D257=7,'MHP Family Income & Rent Limits'!$K$17,D257=8,'MHP Family Income & Rent Limits'!$L$17)","v":""},"",{"$f":"IF(OR(A257=0,B257=\"X\"),0,MIN(IF(AA257:AD257<>0,AA257:AD257)))","v":0},{"$f":"IF(OR(H257=\"\",I257=\"\"),0,IF(H257*0.3/12>I257,MIN(H257*0.3/12,I257*1.1)+AP257,I257*(1+(VLOOKUP('1. Checklist & Certification'!$F$9,'HLCP-E Rent Change'!$A$1:$D$59,4,FALSE)))+AP257))","v":0}]
[null,null,null,null,null,null,null,null,null,null,null,null,null,null,null,null,null,null,null,null,null,null,null,null,null,null,0,0,0,0,0,0,0,0,{"$f":"IF(OR(A258=0,B258=\"X\"),0,IF(OR(S258=\"FHDP\",S258=\"RHCP-B\",U258=\"FHDP\",U258=\"RHCP-B\",W258=\"FHDP\",W258=\"RHCP-B\",Y258=\"FHDP\",Y258=\"RHCP-B\"),TRUNC((MIN(I258,K258)*(1+'1. Checklist & Certification'!$K$43)+AP258)),0))","v":0},{"$f":"IF(OR(A258=0,B258=\"X\"),0,IF(OR(S258=\"CHRP-R\",S258=\"SERA\",S258=\"SUHRP\",U258=\"CHRP-R\",U258=\"SERA\",U258=\"SUHRP\",W258=\"CHRP-R\",W258=\"SERA\",W258=\"SUHRP\",Y258=\"CHRP-R\",Y258=\"SERA\",Y258=\"SUHRP\"),TRUNC((MIN(I258,K258)*(1+'1. Checklist & Certification'!$K$49))),0))","v":0},{"$f":"IF(OR(A258=0,B258=\"X\"),0,IF(OR(S258=\"CALDAP\",S258=\"DPRLP\",U258=\"CALDAP\",U258=\"DPRLP\",W258=\"CALDAP\",W258=\"DPRLP\",Y258=\"CALDAP\",Y258=\"DPRLP\"),TRUNC(((MIN(I258,K258))*(1+'1. Checklist & Certification'!$G$4))),0))","v":0},0,0,0,{"$f":"IF(OR(A258=0,B258=\"X\"),0,IF(OR(S258=\"PRP\",S258=\"LPR\",U258=\"PRP\",U258=\"LPR\",W258=\"PRP\",W258=\"LPR\",Y258=\"PRP\",Y258=\"LPR\"),MAX(I258+AP258,MIN(IF(AE258:AN258<>0,AE258:AN258))),MIN(IF(AE258:AN258<>0,AE258:AN258))))","v":0},{"$f":"IF(A258=0,0,IF(AND(OR(S258=\"Mgr\",S258=0),OR(U258=\"Mgr\",U258=0),OR(W258=\"Mgr\",W258=0)),0,IF(LEFT($A258,2)=\"B*\",VLOOKUP($E258,'1. Checklist & Certification'!$D$26:$E$32,2),IF(LEFT($A258,2)=\"C*\",VLOOKUP($E258,'1. Checklist & Certification'!$F$26:$G$32,2),IF(LEFT($A258,2)=\"D*\",VLOOKUP($E258,'1. Checklist & Certification'!$H$26:$I$32,2),IF(LEFT($A258,2)=\"E*\",VLOOKUP($E258,'1. Checklist & Certification'!$J$26:$K$32,2),VLOOKUP($E258,'1. Checklist & Certification'!$A$26:$B$32,2)))))))","v":0},0,0,null,null,null,null,"","",0,0,0,null,{"$f":"IF(A258=\"\",\"\",'1. Checklist & Certification'!$K$1)","v":""},{"$f":"IF(A258=\"\",\"\",'1. Checklist & Certification'!$C$62)","v":""},{"$f":"IF(A258=\"\",\"\",'1. Checklist & Certification'!$C$6)","v":""},{"$f":"IF(A258=\"\",\"\",'1. Checklist & Certification'!$G$5)","v":""},{"$f":"IFERROR(IF(A258=\"\",\"\",\n_xlfn.LET(_xlpm.Contract,'1. Checklist & Certification'!$C$7,\n_xlpm.Yr,TEXT(MOD(_xlfn.TEXTBEFORE(_xlpm.Contract,\"-\"),100),\"00\"),\n_xlpm.Program,_xlfn.TEXTAFTER(_xlfn.TEXTBEFORE(_xlpm.Contract,\"-\",2),\"-\"),\n_xlpm.CleanProgram,_xlfn.XLOOKUP(_xlpm.Program,SpellCheck[Input],SpellCheck[Correction],_xlpm.Program),\n_xlpm.Number,TEXT(_xlfn.TEXTAFTER(_xlpm.Contract,\"-\",2),\"0000\"),\n_xlfn.CONCAT(_xlpm.Yr,\"-\",_xlpm.CleanProgram,\"-\",_xlpm.Number))\n),\"\")","v":""},{"$f":"IFERROR(IF(A258=\"\",\"\",\n_xlfn.LET(_xlpm.Contract,'1. Checklist & Certification'!$C$8,\n_xlpm.Yr,TEXT(MOD(_xlfn.TEXTBEFORE(_xlpm.Contract,\"-\"),100),\"00\"),\n_xlpm.Program,_xlfn.TEXTAFTER(_xlfn.TEXTBEFORE(_xlpm.Contract,\"-\",2),\"-\"),\n_xlpm.CleanProgram,_xlfn.XLOOKUP(_xlpm.Program,SpellCheck[Input],SpellCheck[Correction],_xlpm.Program),\n_xlpm.Number,TEXT(_xlfn.TEXTAFTER(_xlpm.Contract,\"-\",2),\"0000\"),\n_xlfn.CONCAT(_xlpm.Yr,\"-\",_xlpm.CleanProgram,\"-\",_xlpm.Number))\n),\"\")","v":""},{"$f":"IFERROR(IF(A258=\"\",\"\",\n_xlfn.LET(_xlpm.Contract,'1. Checklist & Certification'!$F$7,\n_xlpm.Yr,TEXT(MOD(_xlfn.TEXTBEFORE(_xlpm.Contract,\"-\"),100),\"00\"),\n_xlpm.Program,_xlfn.TEXTAFTER(_xlfn.TEXTBEFORE(_xlpm.Contract,\"-\",2),\"-\"),\n_xlpm.CleanProgram,_xlfn.XLOOKUP(_xlpm.Program,SpellCheck[Input],SpellCheck[Correction],_xlpm.Program),\n_xlpm.Number,TEXT(_xlfn.TEXTAFTER(_xlpm.Contract,\"-\",2),\"0000\"),\n_xlfn.CONCAT(_xlpm.Yr,\"-\",_xlpm.CleanProgram,\"-\",_xlpm.Number))\n),\"\")","v":""},{"$f":"IFERROR(IF(A258=\"\",\"\",\n_xlfn.LET(_xlpm.Contract,'1. Checklist & Certification'!$F$8,\n_xlpm.Yr,TEXT(MOD(_xlfn.TEXTBEFORE(_xlpm.Contract,\"-\"),100),\"00\"),\n_xlpm.Program,_xlfn.TEXTAFTER(_xlfn.TEXTBEFORE(_xlpm.Contract,\"-\",2),\"-\"),\n_xlpm.CleanProgram,_xlfn.XLOOKUP(_xlpm.Program,SpellCheck[Input],SpellCheck[Correction],_xlpm.Program),\n_xlpm.Number,TEXT(_xlfn.TEXTAFTER(_xlpm.Contract,\"-\",2),\"0000\"),\n_xlfn.CONCAT(_xlpm.Yr,\"-\",_xlpm.CleanProgram,\"-\",_xlpm.Number))\n),\"\")","v":""},{"$f":"IF(A258=\"\",\"\",'1. Checklist & Certification'!$B$9)","v":""},{"$f":"IF(A258=\"\",\"\",'1. Checklist & Certification'!$F$9)","v":""},{"$f":"IF(A258=\"\",\"\",'1. Checklist & Certification'!$C$10)","v":""},{"$f":"IF(A258=\"\",\"\",'1. Checklist & Certification'!$C$11)","v":""},{"$f":"IF(A258=\"\",\"\",'1. Checklist & Certification'!$C$12)","v":""},{"$f":"IF(A258=\"\",\"\",'1. Checklist & Certification'!$B$14)","v":""},{"$f":"IF(A258=\"\",\"\",'1. Checklist & Certification'!$E$14)","v":""},{"$f":"IF(B258=\"\",\"\",'1. Checklist & Certification'!$G$14)","v":""},{"$f":"IF(A258=\"\",\"\",'MHP Family Income & Rent Limits'!$B$3)","v":""},{"$f":"IF(A258=\"\",\"\",'MHP Family Income & Rent Limits'!$J$3)","v":""},{"$f":"IF(A258=\"\",\"\",'MHP Family Income & Rent Limits'!$E$4)","v":""},{"$f":"IF(A258=\"\",\"\",'MHP Family Income & Rent Limits'!$C$7)","v":""},{"$f":"IF(A258=\"\",\"\",'MHP Family Income & Rent Limits'!$F$8)","v":""},{"$f":"IF(A258=\"\",\"\",'1. Checklist & Certification'!$G$4)","v":""},{"$f":"IF(A258=\"\",\"\",'1. Checklist & Certification'!$K$39)","v":""},{"$f":"IF(A258=\"\",\"\",'1. Checklist & Certification'!$K$43)","v":""},{"$f":"IF(A258=\"\",\"\",'1. Checklist & Certification'!$K$45)","v":""},{"$f":"IF(A258=\"\",\"\",'1. Checklist & Certification'!$K$49)","v":""},{"$f":"IF(A258=\"\",\"\",'1. Checklist & Certification'!$K$62)","v":""},{"$f":"IF(A258=\"\",\"\",'1. Checklist & Certification'!$E$66)","v":""},{"$f":"IF(A258=\"\",\"\",'1. Checklist & Certification'!$E$67)","v":""},{"$f":"IF(A258=\"\",\"\",'1. Checklist & Certification'!$E$68)","v":""},{"$f":"IF(A258=\"\",\"\",'1. Checklist & Certification'!$G$66)","v":""},{"$f":"IF(A258=\"\",\"\",'1. Checklist & Certification'!$H$66)","v":""},{"$f":"IF(A258=\"\",\"\",'1. Checklist & Certification'!$I$66)","v":""},{"$f":"IF(A258=\"\",\"\",'1. Checklist & Certification'!$I$67)","v":""},{"$f":"IF(A258=\"\",\"\",'1. Checklist & Certification'!$I$68)","v":""},{"$f":"IF(A258=\"\",\"\",'1. Checklist & Certification'!$B$69)","v":""},{"$f":"IF(A258=\"\",\"\",'1. Checklist & Certification'!$C$69)","v":""},{"$f":"IF(A258=\"\",\"\",'1. Checklist & Certification'!$F$69)","v":""},{"$f":"IF(A258=\"\",\"\",'1. Checklist & Certification'!$G$69)","v":""},{"$f":"IF(A258=\"\",\"\",'1. Checklist & Certification'!$J$69)","v":""},{"$f":"IF(A258=\"\",\"\",'1. Checklist & Certification'!$K$69)","v":""},null,null,{"$f":"IF(AND(OR('1. Checklist & Certification'!$M$16=1,'1. Checklist & Certification'!$M$19=2),AO258>0,B258=\"\",I258>0,AQ258<I258,AV258<>\"Sec 8-Project\"),\"X\",IF(AND(OR('1. Checklist & Certification'!$M$20=4,'1. Checklist & Certification'!$M$21=5,'1. Checklist & Certification'!$M$22=7),AO258>0,B258=\"\",I258>0,K258<I258),\"X\",\"\"))","v":""},{"$f":"IF(A258=\"\",\"\",IF(SUMPRODUCT(-- (ISNUMBER(SEARCH({\"*AHSC*\",\"*FMTW*\",\"*FWHG*\",\"*GHI*\",\"*HHC*\",\"*HLCP*\",\"*HOME*\",\"*LPR*\",\"*MHP*\",\"*NHTF*\",\"*NSP*\",\"*PRP*\",\"*TOD*\",\"*VHHP*\"},'1. Checklist & Certification'!$L$7)))),\"MHP\",\"Legacy\"))","v":""},",,",null,null,null,{"$f":"IF('1. Checklist & Certification'!$M$20=4,\"Both\",IF(OR('1. Checklist & Certification'!$M$15>0,S258=\"CHRP-R\",U258=\"CHRP-R\",W258=\"CHRP-R\",Y258=\"CHRP-R\"),\"Under\",\"No\"))","v":"No"},"No","No",{"$f":"_xlfn.IFS(D258=\"\",\"\",D258=1,'MHP Family Income & Rent Limits'!$E$17,D258=2,'MHP Family Income & Rent Limits'!$F$17,D258=3,'MHP Family Income & Rent Limits'!$G$17,D258=4,'MHP Family Income & Rent Limits'!$H$17,D258=5,'MHP Family Income & Rent Limits'!$I$17,D258=6,'MHP Family Income & Rent Limits'!$J$17,D258=7,'MHP Family Income & Rent Limits'!$K$17,D258=8,'MHP Family Income & Rent Limits'!$L$17)","v":""},"",{"$f":"IF(OR(A258=0,B258=\"X\"),0,MIN(IF(AA258:AD258<>0,AA258:AD258)))","v":0},{"$f":"IF(OR(H258=\"\",I258=\"\"),0,IF(H258*0.3/12>I258,MIN(H258*0.3/12,I258*1.1)+AP258,I258*(1+(VLOOKUP('1. Checklist & Certification'!$F$9,'HLCP-E Rent Change'!$A$1:$D$59,4,FALSE)))+AP258))","v":0}]
[null,null,null,null,null,null,null,null,null,null,null,null,null,null,null,null,null,null,null,null,null,null,null,null,null,null,0,0,0,0,0,0,0,0,{"$f":"IF(OR(A259=0,B259=\"X\"),0,IF(OR(S259=\"FHDP\",S259=\"RHCP-B\",U259=\"FHDP\",U259=\"RHCP-B\",W259=\"FHDP\",W259=\"RHCP-B\",Y259=\"FHDP\",Y259=\"RHCP-B\"),TRUNC((MIN(I259,K259)*(1+'1. Checklist & Certification'!$K$43)+AP259)),0))","v":0},{"$f":"IF(OR(A259=0,B259=\"X\"),0,IF(OR(S259=\"CHRP-R\",S259=\"SERA\",S259=\"SUHRP\",U259=\"CHRP-R\",U259=\"SERA\",U259=\"SUHRP\",W259=\"CHRP-R\",W259=\"SERA\",W259=\"SUHRP\",Y259=\"CHRP-R\",Y259=\"SERA\",Y259=\"SUHRP\"),TRUNC((MIN(I259,K259)*(1+'1. Checklist & Certification'!$K$49))),0))","v":0},{"$f":"IF(OR(A259=0,B259=\"X\"),0,IF(OR(S259=\"CALDAP\",S259=\"DPRLP\",U259=\"CALDAP\",U259=\"DPRLP\",W259=\"CALDAP\",W259=\"DPRLP\",Y259=\"CALDAP\",Y259=\"DPRLP\"),TRUNC(((MIN(I259,K259))*(1+'1. Checklist & Certification'!$G$4))),0))","v":0},0,0,0,{"$f":"IF(OR(A259=0,B259=\"X\"),0,IF(OR(S259=\"PRP\",S259=\"LPR\",U259=\"PRP\",U259=\"LPR\",W259=\"PRP\",W259=\"LPR\",Y259=\"PRP\",Y259=\"LPR\"),MAX(I259+AP259,MIN(IF(AE259:AN259<>0,AE259:AN259))),MIN(IF(AE259:AN259<>0,AE259:AN259))))","v":0},{"$f":"IF(A259=0,0,IF(AND(OR(S259=\"Mgr\",S259=0),OR(U259=\"Mgr\",U259=0),OR(W259=\"Mgr\",W259=0)),0,IF(LEFT($A259,2)=\"B*\",VLOOKUP($E259,'1. Checklist & Certification'!$D$26:$E$32,2),IF(LEFT($A259,2)=\"C*\",VLOOKUP($E259,'1. Checklist & Certification'!$F$26:$G$32,2),IF(LEFT($A259,2)=\"D*\",VLOOKUP($E259,'1. Checklist & Certification'!$H$26:$I$32,2),IF(LEFT($A259,2)=\"E*\",VLOOKUP($E259,'1. Checklist & Certification'!$J$26:$K$32,2),VLOOKUP($E259,'1. Checklist & Certification'!$A$26:$B$32,2)))))))","v":0},0,0,null,null,null,null,"","",0,0,0,null,{"$f":"IF(A259=\"\",\"\",'1. Checklist & Certification'!$K$1)","v":""},{"$f":"IF(A259=\"\",\"\",'1. Checklist & Certification'!$C$62)","v":""},{"$f":"IF(A259=\"\",\"\",'1. Checklist & Certification'!$C$6)","v":""},{"$f":"IF(A259=\"\",\"\",'1. Checklist & Certification'!$G$5)","v":""},{"$f":"IFERROR(IF(A259=\"\",\"\",\n_xlfn.LET(_xlpm.Contract,'1. Checklist & Certification'!$C$7,\n_xlpm.Yr,TEXT(MOD(_xlfn.TEXTBEFORE(_xlpm.Contract,\"-\"),100),\"00\"),\n_xlpm.Program,_xlfn.TEXTAFTER(_xlfn.TEXTBEFORE(_xlpm.Contract,\"-\",2),\"-\"),\n_xlpm.CleanProgram,_xlfn.XLOOKUP(_xlpm.Program,SpellCheck[Input],SpellCheck[Correction],_xlpm.Program),\n_xlpm.Number,TEXT(_xlfn.TEXTAFTER(_xlpm.Contract,\"-\",2),\"0000\"),\n_xlfn.CONCAT(_xlpm.Yr,\"-\",_xlpm.CleanProgram,\"-\",_xlpm.Number))\n),\"\")","v":""},{"$f":"IFERROR(IF(A259=\"\",\"\",\n_xlfn.LET(_xlpm.Contract,'1. Checklist & Certification'!$C$8,\n_xlpm.Yr,TEXT(MOD(_xlfn.TEXTBEFORE(_xlpm.Contract,\"-\"),100),\"00\"),\n_xlpm.Program,_xlfn.TEXTAFTER(_xlfn.TEXTBEFORE(_xlpm.Contract,\"-\",2),\"-\"),\n_xlpm.CleanProgram,_xlfn.XLOOKUP(_xlpm.Program,SpellCheck[Input],SpellCheck[Correction],_xlpm.Program),\n_xlpm.Number,TEXT(_xlfn.TEXTAFTER(_xlpm.Contract,\"-\",2),\"0000\"),\n_xlfn.CONCAT(_xlpm.Yr,\"-\",_xlpm.CleanProgram,\"-\",_xlpm.Number))\n),\"\")","v":""},{"$f":"IFERROR(IF(A259=\"\",\"\",\n_xlfn.LET(_xlpm.Contract,'1. Checklist & Certification'!$F$7,\n_xlpm.Yr,TEXT(MOD(_xlfn.TEXTBEFORE(_xlpm.Contract,\"-\"),100),\"00\"),\n_xlpm.Program,_xlfn.TEXTAFTER(_xlfn.TEXTBEFORE(_xlpm.Contract,\"-\",2),\"-\"),\n_xlpm.CleanProgram,_xlfn.XLOOKUP(_xlpm.Program,SpellCheck[Input],SpellCheck[Correction],_xlpm.Program),\n_xlpm.Number,TEXT(_xlfn.TEXTAFTER(_xlpm.Contract,\"-\",2),\"0000\"),\n_xlfn.CONCAT(_xlpm.Yr,\"-\",_xlpm.CleanProgram,\"-\",_xlpm.Number))\n),\"\")","v":""},{"$f":"IFERROR(IF(A259=\"\",\"\",\n_xlfn.LET(_xlpm.Contract,'1. Checklist & Certification'!$F$8,\n_xlpm.Yr,TEXT(MOD(_xlfn.TEXTBEFORE(_xlpm.Contract,\"-\"),100),\"00\"),\n_xlpm.Program,_xlfn.TEXTAFTER(_xlfn.TEXTBEFORE(_xlpm.Contract,\"-\",2),\"-\"),\n_xlpm.CleanProgram,_xlfn.XLOOKUP(_xlpm.Program,SpellCheck[Input],SpellCheck[Correction],_xlpm.Program),\n_xlpm.Number,TEXT(_xlfn.TEXTAFTER(_xlpm.Contract,\"-\",2),\"0000\"),\n_xlfn.CONCAT(_xlpm.Yr,\"-\",_xlpm.CleanProgram,\"-\",_xlpm.Number))\n),\"\")","v":""},{"$f":"IF(A259=\"\",\"\",'1. Checklist & Certification'!$B$9)","v":""},{"$f":"IF(A259=\"\",\"\",'1. Checklist & Certification'!$F$9)","v":""},{"$f":"IF(A259=\"\",\"\",'1. Checklist & Certification'!$C$10)","v":""},{"$f":"IF(A259=\"\",\"\",'1. Checklist & Certification'!$C$11)","v":""},{"$f":"IF(A259=\"\",\"\",'1. Checklist & Certification'!$C$12)","v":""},{"$f":"IF(A259=\"\",\"\",'1. Checklist & Certification'!$B$14)","v":""},{"$f":"IF(A259=\"\",\"\",'1. Checklist & Certification'!$E$14)","v":""},{"$f":"IF(B259=\"\",\"\",'1. Checklist & Certification'!$G$14)","v":""},{"$f":"IF(A259=\"\",\"\",'MHP Family Income & Rent Limits'!$B$3)","v":""},{"$f":"IF(A259=\"\",\"\",'MHP Family Income & Rent Limits'!$J$3)","v":""},{"$f":"IF(A259=\"\",\"\",'MHP Family Income & Rent Limits'!$E$4)","v":""},{"$f":"IF(A259=\"\",\"\",'MHP Family Income & Rent Limits'!$C$7)","v":""},{"$f":"IF(A259=\"\",\"\",'MHP Family Income & Rent Limits'!$F$8)","v":""},{"$f":"IF(A259=\"\",\"\",'1. Checklist & Certification'!$G$4)","v":""},{"$f":"IF(A259=\"\",\"\",'1. Checklist & Certification'!$K$39)","v":""},{"$f":"IF(A259=\"\",\"\",'1. Checklist & Certification'!$K$43)","v":""},{"$f":"IF(A259=\"\",\"\",'1. Checklist & Certification'!$K$45)","v":""},{"$f":"IF(A259=\"\",\"\",'1. Checklist & Certification'!$K$49)","v":""},{"$f":"IF(A259=\"\",\"\",'1. Checklist & Certification'!$K$62)","v":""},{"$f":"IF(A259=\"\",\"\",'1. Checklist & Certification'!$E$66)","v":""},{"$f":"IF(A259=\"\",\"\",'1. Checklist & Certification'!$E$67)","v":""},{"$f":"IF(A259=\"\",\"\",'1. Checklist & Certification'!$E$68)","v":""},{"$f":"IF(A259=\"\",\"\",'1. Checklist & Certification'!$G$66)","v":""},{"$f":"IF(A259=\"\",\"\",'1. Checklist & Certification'!$H$66)","v":""},{"$f":"IF(A259=\"\",\"\",'1. Checklist & Certification'!$I$66)","v":""},{"$f":"IF(A259=\"\",\"\",'1. Checklist & Certification'!$I$67)","v":""},{"$f":"IF(A259=\"\",\"\",'1. Checklist & Certification'!$I$68)","v":""},{"$f":"IF(A259=\"\",\"\",'1. Checklist & Certification'!$B$69)","v":""},{"$f":"IF(A259=\"\",\"\",'1. Checklist & Certification'!$C$69)","v":""},{"$f":"IF(A259=\"\",\"\",'1. Checklist & Certification'!$F$69)","v":""},{"$f":"IF(A259=\"\",\"\",'1. Checklist & Certification'!$G$69)","v":""},{"$f":"IF(A259=\"\",\"\",'1. Checklist & Certification'!$J$69)","v":""},{"$f":"IF(A259=\"\",\"\",'1. Checklist & Certification'!$K$69)","v":""},null,null,{"$f":"IF(AND(OR('1. Checklist & Certification'!$M$16=1,'1. Checklist & Certification'!$M$19=2),AO259>0,B259=\"\",I259>0,AQ259<I259,AV259<>\"Sec 8-Project\"),\"X\",IF(AND(OR('1. Checklist & Certification'!$M$20=4,'1. Checklist & Certification'!$M$21=5,'1. Checklist & Certification'!$M$22=7),AO259>0,B259=\"\",I259>0,K259<I259),\"X\",\"\"))","v":""},{"$f":"IF(A259=\"\",\"\",IF(SUMPRODUCT(-- (ISNUMBER(SEARCH({\"*AHSC*\",\"*FMTW*\",\"*FWHG*\",\"*GHI*\",\"*HHC*\",\"*HLCP*\",\"*HOME*\",\"*LPR*\",\"*MHP*\",\"*NHTF*\",\"*NSP*\",\"*PRP*\",\"*TOD*\",\"*VHHP*\"},'1. Checklist & Certification'!$L$7)))),\"MHP\",\"Legacy\"))","v":""},",,",null,null,null,{"$f":"IF('1. Checklist & Certification'!$M$20=4,\"Both\",IF(OR('1. Checklist & Certification'!$M$15>0,S259=\"CHRP-R\",U259=\"CHRP-R\",W259=\"CHRP-R\",Y259=\"CHRP-R\"),\"Under\",\"No\"))","v":"No"},"No","No",{"$f":"_xlfn.IFS(D259=\"\",\"\",D259=1,'MHP Family Income & Rent Limits'!$E$17,D259=2,'MHP Family Income & Rent Limits'!$F$17,D259=3,'MHP Family Income & Rent Limits'!$G$17,D259=4,'MHP Family Income & Rent Limits'!$H$17,D259=5,'MHP Family Income & Rent Limits'!$I$17,D259=6,'MHP Family Income & Rent Limits'!$J$17,D259=7,'MHP Family Income & Rent Limits'!$K$17,D259=8,'MHP Family Income & Rent Limits'!$L$17)","v":""},"",{"$f":"IF(OR(A259=0,B259=\"X\"),0,MIN(IF(AA259:AD259<>0,AA259:AD259)))","v":0},{"$f":"IF(OR(H259=\"\",I259=\"\"),0,IF(H259*0.3/12>I259,MIN(H259*0.3/12,I259*1.1)+AP259,I259*(1+(VLOOKUP('1. Checklist & Certification'!$F$9,'HLCP-E Rent Change'!$A$1:$D$59,4,FALSE)))+AP259))","v":0}]
[null,null,null,null,null,null,null,null,null,null,null,null,null,null,null,null,null,null,null,null,null,null,null,null,null,null,0,0,0,0,0,0,0,0,{"$f":"IF(OR(A260=0,B260=\"X\"),0,IF(OR(S260=\"FHDP\",S260=\"RHCP-B\",U260=\"FHDP\",U260=\"RHCP-B\",W260=\"FHDP\",W260=\"RHCP-B\",Y260=\"FHDP\",Y260=\"RHCP-B\"),TRUNC((MIN(I260,K260)*(1+'1. Checklist & Certification'!$K$43)+AP260)),0))","v":0},{"$f":"IF(OR(A260=0,B260=\"X\"),0,IF(OR(S260=\"CHRP-R\",S260=\"SERA\",S260=\"SUHRP\",U260=\"CHRP-R\",U260=\"SERA\",U260=\"SUHRP\",W260=\"CHRP-R\",W260=\"SERA\",W260=\"SUHRP\",Y260=\"CHRP-R\",Y260=\"SERA\",Y260=\"SUHRP\"),TRUNC((MIN(I260,K260)*(1+'1. Checklist & Certification'!$K$49))),0))","v":0},{"$f":"IF(OR(A260=0,B260=\"X\"),0,IF(OR(S260=\"CALDAP\",S260=\"DPRLP\",U260=\"CALDAP\",U260=\"DPRLP\",W260=\"CALDAP\",W260=\"DPRLP\",Y260=\"CALDAP\",Y260=\"DPRLP\"),TRUNC(((MIN(I260,K260))*(1+'1. Checklist & Certification'!$G$4))),0))","v":0},0,0,0,{"$f":"IF(OR(A260=0,B260=\"X\"),0,IF(OR(S260=\"PRP\",S260=\"LPR\",U260=\"PRP\",U260=\"LPR\",W260=\"PRP\",W260=\"LPR\",Y260=\"PRP\",Y260=\"LPR\"),MAX(I260+AP260,MIN(IF(AE260:AN260<>0,AE260:AN260))),MIN(IF(AE260:AN260<>0,AE260:AN260))))","v":0},{"$f":"IF(A260=0,0,IF(AND(OR(S260=\"Mgr\",S260=0),OR(U260=\"Mgr\",U260=0),OR(W260=\"Mgr\",W260=0)),0,IF(LEFT($A260,2)=\"B*\",VLOOKUP($E260,'1. Checklist & Certification'!$D$26:$E$32,2),IF(LEFT($A260,2)=\"C*\",VLOOKUP($E260,'1. Checklist & Certification'!$F$26:$G$32,2),IF(LEFT($A260,2)=\"D*\",VLOOKUP($E260,'1. Checklist & Certification'!$H$26:$I$32,2),IF(LEFT($A260,2)=\"E*\",VLOOKUP($E260,'1. Checklist & Certification'!$J$26:$K$32,2),VLOOKUP($E260,'1. Checklist & Certification'!$A$26:$B$32,2)))))))","v":0},0,0,null,null,null,null,"","",0,0,0,null,{"$f":"IF(A260=\"\",\"\",'1. Checklist & Certification'!$K$1)","v":""},{"$f":"IF(A260=\"\",\"\",'1. Checklist & Certification'!$C$62)","v":""},{"$f":"IF(A260=\"\",\"\",'1. Checklist & Certification'!$C$6)","v":""},{"$f":"IF(A260=\"\",\"\",'1. Checklist & Certification'!$G$5)","v":""},{"$f":"IFERROR(IF(A260=\"\",\"\",\n_xlfn.LET(_xlpm.Contract,'1. Checklist & Certification'!$C$7,\n_xlpm.Yr,TEXT(MOD(_xlfn.TEXTBEFORE(_xlpm.Contract,\"-\"),100),\"00\"),\n_xlpm.Program,_xlfn.TEXTAFTER(_xlfn.TEXTBEFORE(_xlpm.Contract,\"-\",2),\"-\"),\n_xlpm.CleanProgram,_xlfn.XLOOKUP(_xlpm.Program,SpellCheck[Input],SpellCheck[Correction],_xlpm.Program),\n_xlpm.Number,TEXT(_xlfn.TEXTAFTER(_xlpm.Contract,\"-\",2),\"0000\"),\n_xlfn.CONCAT(_xlpm.Yr,\"-\",_xlpm.CleanProgram,\"-\",_xlpm.Number))\n),\"\")","v":""},{"$f":"IFERROR(IF(A260=\"\",\"\",\n_xlfn.LET(_xlpm.Contract,'1. Checklist & Certification'!$C$8,\n_xlpm.Yr,TEXT(MOD(_xlfn.TEXTBEFORE(_xlpm.Contract,\"-\"),100),\"00\"),\n_xlpm.Program,_xlfn.TEXTAFTER(_xlfn.TEXTBEFORE(_xlpm.Contract,\"-\",2),\"-\"),\n_xlpm.CleanProgram,_xlfn.XLOOKUP(_xlpm.Program,SpellCheck[Input],SpellCheck[Correction],_xlpm.Program),\n_xlpm.Number,TEXT(_xlfn.TEXTAFTER(_xlpm.Contract,\"-\",2),\"0000\"),\n_xlfn.CONCAT(_xlpm.Yr,\"-\",_xlpm.CleanProgram,\"-\",_xlpm.Number))\n),\"\")","v":""},{"$f":"IFERROR(IF(A260=\"\",\"\",\n_xlfn.LET(_xlpm.Contract,'1. Checklist & Certification'!$F$7,\n_xlpm.Yr,TEXT(MOD(_xlfn.TEXTBEFORE(_xlpm.Contract,\"-\"),100),\"00\"),\n_xlpm.Program,_xlfn.TEXTAFTER(_xlfn.TEXTBEFORE(_xlpm.Contract,\"-\",2),\"-\"),\n_xlpm.CleanProgram,_xlfn.XLOOKUP(_xlpm.Program,SpellCheck[Input],SpellCheck[Correction],_xlpm.Program),\n_xlpm.Number,TEXT(_xlfn.TEXTAFTER(_xlpm.Contract,\"-\",2),\"0000\"),\n_xlfn.CONCAT(_xlpm.Yr,\"-\",_xlpm.CleanProgram,\"-\",_xlpm.Number))\n),\"\")","v":""},{"$f":"IFERROR(IF(A260=\"\",\"\",\n_xlfn.LET(_xlpm.Contract,'1. Checklist & Certification'!$F$8,\n_xlpm.Yr,TEXT(MOD(_xlfn.TEXTBEFORE(_xlpm.Contract,\"-\"),100),\"00\"),\n_xlpm.Program,_xlfn.TEXTAFTER(_xlfn.TEXTBEFORE(_xlpm.Contract,\"-\",2),\"-\"),\n_xlpm.CleanProgram,_xlfn.XLOOKUP(_xlpm.Program,SpellCheck[Input],SpellCheck[Correction],_xlpm.Program),\n_xlpm.Number,TEXT(_xlfn.TEXTAFTER(_xlpm.Contract,\"-\",2),\"0000\"),\n_xlfn.CONCAT(_xlpm.Yr,\"-\",_xlpm.CleanProgram,\"-\",_xlpm.Number))\n),\"\")","v":""},{"$f":"IF(A260=\"\",\"\",'1. Checklist & Certification'!$B$9)","v":""},{"$f":"IF(A260=\"\",\"\",'1. Checklist & Certification'!$F$9)","v":""},{"$f":"IF(A260=\"\",\"\",'1. Checklist & Certification'!$C$10)","v":""},{"$f":"IF(A260=\"\",\"\",'1. Checklist & Certification'!$C$11)","v":""},{"$f":"IF(A260=\"\",\"\",'1. Checklist & Certification'!$C$12)","v":""},{"$f":"IF(A260=\"\",\"\",'1. Checklist & Certification'!$B$14)","v":""},{"$f":"IF(A260=\"\",\"\",'1. Checklist & Certification'!$E$14)","v":""},{"$f":"IF(B260=\"\",\"\",'1. Checklist & Certification'!$G$14)","v":""},{"$f":"IF(A260=\"\",\"\",'MHP Family Income & Rent Limits'!$B$3)","v":""},{"$f":"IF(A260=\"\",\"\",'MHP Family Income & Rent Limits'!$J$3)","v":""},{"$f":"IF(A260=\"\",\"\",'MHP Family Income & Rent Limits'!$E$4)","v":""},{"$f":"IF(A260=\"\",\"\",'MHP Family Income & Rent Limits'!$C$7)","v":""},{"$f":"IF(A260=\"\",\"\",'MHP Family Income & Rent Limits'!$F$8)","v":""},{"$f":"IF(A260=\"\",\"\",'1. Checklist & Certification'!$G$4)","v":""},{"$f":"IF(A260=\"\",\"\",'1. Checklist & Certification'!$K$39)","v":""},{"$f":"IF(A260=\"\",\"\",'1. Checklist & Certification'!$K$43)","v":""},{"$f":"IF(A260=\"\",\"\",'1. Checklist & Certification'!$K$45)","v":""},{"$f":"IF(A260=\"\",\"\",'1. Checklist & Certification'!$K$49)","v":""},{"$f":"IF(A260=\"\",\"\",'1. Checklist & Certification'!$K$62)","v":""},{"$f":"IF(A260=\"\",\"\",'1. Checklist & Certification'!$E$66)","v":""},{"$f":"IF(A260=\"\",\"\",'1. Checklist & Certification'!$E$67)","v":""},{"$f":"IF(A260=\"\",\"\",'1. Checklist & Certification'!$E$68)","v":""},{"$f":"IF(A260=\"\",\"\",'1. Checklist & Certification'!$G$66)","v":""},{"$f":"IF(A260=\"\",\"\",'1. Checklist & Certification'!$H$66)","v":""},{"$f":"IF(A260=\"\",\"\",'1. Checklist & Certification'!$I$66)","v":""},{"$f":"IF(A260=\"\",\"\",'1. Checklist & Certification'!$I$67)","v":""},{"$f":"IF(A260=\"\",\"\",'1. Checklist & Certification'!$I$68)","v":""},{"$f":"IF(A260=\"\",\"\",'1. Checklist & Certification'!$B$69)","v":""},{"$f":"IF(A260=\"\",\"\",'1. Checklist & Certification'!$C$69)","v":""},{"$f":"IF(A260=\"\",\"\",'1. Checklist & Certification'!$F$69)","v":""},{"$f":"IF(A260=\"\",\"\",'1. Checklist & Certification'!$G$69)","v":""},{"$f":"IF(A260=\"\",\"\",'1. Checklist & Certification'!$J$69)","v":""},{"$f":"IF(A260=\"\",\"\",'1. Checklist & Certification'!$K$69)","v":""},null,null,{"$f":"IF(AND(OR('1. Checklist & Certification'!$M$16=1,'1. Checklist & Certification'!$M$19=2),AO260>0,B260=\"\",I260>0,AQ260<I260,AV260<>\"Sec 8-Project\"),\"X\",IF(AND(OR('1. Checklist & Certification'!$M$20=4,'1. Checklist & Certification'!$M$21=5,'1. Checklist & Certification'!$M$22=7),AO260>0,B260=\"\",I260>0,K260<I260),\"X\",\"\"))","v":""},{"$f":"IF(A260=\"\",\"\",IF(SUMPRODUCT(-- (ISNUMBER(SEARCH({\"*AHSC*\",\"*FMTW*\",\"*FWHG*\",\"*GHI*\",\"*HHC*\",\"*HLCP*\",\"*HOME*\",\"*LPR*\",\"*MHP*\",\"*NHTF*\",\"*NSP*\",\"*PRP*\",\"*TOD*\",\"*VHHP*\"},'1. Checklist & Certification'!$L$7)))),\"MHP\",\"Legacy\"))","v":""},",,",null,null,null,{"$f":"IF('1. Checklist & Certification'!$M$20=4,\"Both\",IF(OR('1. Checklist & Certification'!$M$15>0,S260=\"CHRP-R\",U260=\"CHRP-R\",W260=\"CHRP-R\",Y260=\"CHRP-R\"),\"Under\",\"No\"))","v":"No"},"No","No",{"$f":"_xlfn.IFS(D260=\"\",\"\",D260=1,'MHP Family Income & Rent Limits'!$E$17,D260=2,'MHP Family Income & Rent Limits'!$F$17,D260=3,'MHP Family Income & Rent Limits'!$G$17,D260=4,'MHP Family Income & Rent Limits'!$H$17,D260=5,'MHP Family Income & Rent Limits'!$I$17,D260=6,'MHP Family Income & Rent Limits'!$J$17,D260=7,'MHP Family Income & Rent Limits'!$K$17,D260=8,'MHP Family Income & Rent Limits'!$L$17)","v":""},"",{"$f":"IF(OR(A260=0,B260=\"X\"),0,MIN(IF(AA260:AD260<>0,AA260:AD260)))","v":0},{"$f":"IF(OR(H260=\"\",I260=\"\"),0,IF(H260*0.3/12>I260,MIN(H260*0.3/12,I260*1.1)+AP260,I260*(1+(VLOOKUP('1. Checklist & Certification'!$F$9,'HLCP-E Rent Change'!$A$1:$D$59,4,FALSE)))+AP260))","v":0}]
[null,null,null,null,null,null,null,null,null,null,null,null,null,null,null,null,null,null,null,null,null,null,null,null,null,null,0,0,0,0,0,0,0,0,{"$f":"IF(OR(A261=0,B261=\"X\"),0,IF(OR(S261=\"FHDP\",S261=\"RHCP-B\",U261=\"FHDP\",U261=\"RHCP-B\",W261=\"FHDP\",W261=\"RHCP-B\",Y261=\"FHDP\",Y261=\"RHCP-B\"),TRUNC((MIN(I261,K261)*(1+'1. Checklist & Certification'!$K$43)+AP261)),0))","v":0},{"$f":"IF(OR(A261=0,B261=\"X\"),0,IF(OR(S261=\"CHRP-R\",S261=\"SERA\",S261=\"SUHRP\",U261=\"CHRP-R\",U261=\"SERA\",U261=\"SUHRP\",W261=\"CHRP-R\",W261=\"SERA\",W261=\"SUHRP\",Y261=\"CHRP-R\",Y261=\"SERA\",Y261=\"SUHRP\"),TRUNC((MIN(I261,K261)*(1+'1. Checklist & Certification'!$K$49))),0))","v":0},{"$f":"IF(OR(A261=0,B261=\"X\"),0,IF(OR(S261=\"CALDAP\",S261=\"DPRLP\",U261=\"CALDAP\",U261=\"DPRLP\",W261=\"CALDAP\",W261=\"DPRLP\",Y261=\"CALDAP\",Y261=\"DPRLP\"),TRUNC(((MIN(I261,K261))*(1+'1. Checklist & Certification'!$G$4))),0))","v":0},0,0,0,{"$f":"IF(OR(A261=0,B261=\"X\"),0,IF(OR(S261=\"PRP\",S261=\"LPR\",U261=\"PRP\",U261=\"LPR\",W261=\"PRP\",W261=\"LPR\",Y261=\"PRP\",Y261=\"LPR\"),MAX(I261+AP261,MIN(IF(AE261:AN261<>0,AE261:AN261))),MIN(IF(AE261:AN261<>0,AE261:AN261))))","v":0},{"$f":"IF(A261=0,0,IF(AND(OR(S261=\"Mgr\",S261=0),OR(U261=\"Mgr\",U261=0),OR(W261=\"Mgr\",W261=0)),0,IF(LEFT($A261,2)=\"B*\",VLOOKUP($E261,'1. Checklist & Certification'!$D$26:$E$32,2),IF(LEFT($A261,2)=\"C*\",VLOOKUP($E261,'1. Checklist & Certification'!$F$26:$G$32,2),IF(LEFT($A261,2)=\"D*\",VLOOKUP($E261,'1. Checklist & Certification'!$H$26:$I$32,2),IF(LEFT($A261,2)=\"E*\",VLOOKUP($E261,'1. Checklist & Certification'!$J$26:$K$32,2),VLOOKUP($E261,'1. Checklist & Certification'!$A$26:$B$32,2)))))))","v":0},0,0,null,null,null,null,"","",0,0,0,null,{"$f":"IF(A261=\"\",\"\",'1. Checklist & Certification'!$K$1)","v":""},{"$f":"IF(A261=\"\",\"\",'1. Checklist & Certification'!$C$62)","v":""},{"$f":"IF(A261=\"\",\"\",'1. Checklist & Certification'!$C$6)","v":""},{"$f":"IF(A261=\"\",\"\",'1. Checklist & Certification'!$G$5)","v":""},{"$f":"IFERROR(IF(A261=\"\",\"\",\n_xlfn.LET(_xlpm.Contract,'1. Checklist & Certification'!$C$7,\n_xlpm.Yr,TEXT(MOD(_xlfn.TEXTBEFORE(_xlpm.Contract,\"-\"),100),\"00\"),\n_xlpm.Program,_xlfn.TEXTAFTER(_xlfn.TEXTBEFORE(_xlpm.Contract,\"-\",2),\"-\"),\n_xlpm.CleanProgram,_xlfn.XLOOKUP(_xlpm.Program,SpellCheck[Input],SpellCheck[Correction],_xlpm.Program),\n_xlpm.Number,TEXT(_xlfn.TEXTAFTER(_xlpm.Contract,\"-\",2),\"0000\"),\n_xlfn.CONCAT(_xlpm.Yr,\"-\",_xlpm.CleanProgram,\"-\",_xlpm.Number))\n),\"\")","v":""},{"$f":"IFERROR(IF(A261=\"\",\"\",\n_xlfn.LET(_xlpm.Contract,'1. Checklist & Certification'!$C$8,\n_xlpm.Yr,TEXT(MOD(_xlfn.TEXTBEFORE(_xlpm.Contract,\"-\"),100),\"00\"),\n_xlpm.Program,_xlfn.TEXTAFTER(_xlfn.TEXTBEFORE(_xlpm.Contract,\"-\",2),\"-\"),\n_xlpm.CleanProgram,_xlfn.XLOOKUP(_xlpm.Program,SpellCheck[Input],SpellCheck[Correction],_xlpm.Program),\n_xlpm.Number,TEXT(_xlfn.TEXTAFTER(_xlpm.Contract,\"-\",2),\"0000\"),\n_xlfn.CONCAT(_xlpm.Yr,\"-\",_xlpm.CleanProgram,\"-\",_xlpm.Number))\n),\"\")","v":""},{"$f":"IFERROR(IF(A261=\"\",\"\",\n_xlfn.LET(_xlpm.Contract,'1. Checklist & Certification'!$F$7,\n_xlpm.Yr,TEXT(MOD(_xlfn.TEXTBEFORE(_xlpm.Contract,\"-\"),100),\"00\"),\n_xlpm.Program,_xlfn.TEXTAFTER(_xlfn.TEXTBEFORE(_xlpm.Contract,\"-\",2),\"-\"),\n_xlpm.CleanProgram,_xlfn.XLOOKUP(_xlpm.Program,SpellCheck[Input],SpellCheck[Correction],_xlpm.Program),\n_xlpm.Number,TEXT(_xlfn.TEXTAFTER(_xlpm.Contract,\"-\",2),\"0000\"),\n_xlfn.CONCAT(_xlpm.Yr,\"-\",_xlpm.CleanProgram,\"-\",_xlpm.Number))\n),\"\")","v":""},{"$f":"IFERROR(IF(A261=\"\",\"\",\n_xlfn.LET(_xlpm.Contract,'1. Checklist & Certification'!$F$8,\n_xlpm.Yr,TEXT(MOD(_xlfn.TEXTBEFORE(_xlpm.Contract,\"-\"),100),\"00\"),\n_xlpm.Program,_xlfn.TEXTAFTER(_xlfn.TEXTBEFORE(_xlpm.Contract,\"-\",2),\"-\"),\n_xlpm.CleanProgram,_xlfn.XLOOKUP(_xlpm.Program,SpellCheck[Input],SpellCheck[Correction],_xlpm.Program),\n_xlpm.Number,TEXT(_xlfn.TEXTAFTER(_xlpm.Contract,\"-\",2),\"0000\"),\n_xlfn.CONCAT(_xlpm.Yr,\"-\",_xlpm.CleanProgram,\"-\",_xlpm.Number))\n),\"\")","v":""},{"$f":"IF(A261=\"\",\"\",'1. Checklist & Certification'!$B$9)","v":""},{"$f":"IF(A261=\"\",\"\",'1. Checklist & Certification'!$F$9)","v":""},{"$f":"IF(A261=\"\",\"\",'1. Checklist & Certification'!$C$10)","v":""},{"$f":"IF(A261=\"\",\"\",'1. Checklist & Certification'!$C$11)","v":""},{"$f":"IF(A261=\"\",\"\",'1. Checklist & Certification'!$C$12)","v":""},{"$f":"IF(A261=\"\",\"\",'1. Checklist & Certification'!$B$14)","v":""},{"$f":"IF(A261=\"\",\"\",'1. Checklist & Certification'!$E$14)","v":""},{"$f":"IF(B261=\"\",\"\",'1. Checklist & Certification'!$G$14)","v":""},{"$f":"IF(A261=\"\",\"\",'MHP Family Income & Rent Limits'!$B$3)","v":""},{"$f":"IF(A261=\"\",\"\",'MHP Family Income & Rent Limits'!$J$3)","v":""},{"$f":"IF(A261=\"\",\"\",'MHP Family Income & Rent Limits'!$E$4)","v":""},{"$f":"IF(A261=\"\",\"\",'MHP Family Income & Rent Limits'!$C$7)","v":""},{"$f":"IF(A261=\"\",\"\",'MHP Family Income & Rent Limits'!$F$8)","v":""},{"$f":"IF(A261=\"\",\"\",'1. Checklist & Certification'!$G$4)","v":""},{"$f":"IF(A261=\"\",\"\",'1. Checklist & Certification'!$K$39)","v":""},{"$f":"IF(A261=\"\",\"\",'1. Checklist & Certification'!$K$43)","v":""},{"$f":"IF(A261=\"\",\"\",'1. Checklist & Certification'!$K$45)","v":""},{"$f":"IF(A261=\"\",\"\",'1. Checklist & Certification'!$K$49)","v":""},{"$f":"IF(A261=\"\",\"\",'1. Checklist & Certification'!$K$62)","v":""},{"$f":"IF(A261=\"\",\"\",'1. Checklist & Certification'!$E$66)","v":""},{"$f":"IF(A261=\"\",\"\",'1. Checklist & Certification'!$E$67)","v":""},{"$f":"IF(A261=\"\",\"\",'1. Checklist & Certification'!$E$68)","v":""},{"$f":"IF(A261=\"\",\"\",'1. Checklist & Certification'!$G$66)","v":""},{"$f":"IF(A261=\"\",\"\",'1. Checklist & Certification'!$H$66)","v":""},{"$f":"IF(A261=\"\",\"\",'1. Checklist & Certification'!$I$66)","v":""},{"$f":"IF(A261=\"\",\"\",'1. Checklist & Certification'!$I$67)","v":""},{"$f":"IF(A261=\"\",\"\",'1. Checklist & Certification'!$I$68)","v":""},{"$f":"IF(A261=\"\",\"\",'1. Checklist & Certification'!$B$69)","v":""},{"$f":"IF(A261=\"\",\"\",'1. Checklist & Certification'!$C$69)","v":""},{"$f":"IF(A261=\"\",\"\",'1. Checklist & Certification'!$F$69)","v":""},{"$f":"IF(A261=\"\",\"\",'1. Checklist & Certification'!$G$69)","v":""},{"$f":"IF(A261=\"\",\"\",'1. Checklist & Certification'!$J$69)","v":""},{"$f":"IF(A261=\"\",\"\",'1. Checklist & Certification'!$K$69)","v":""},null,null,{"$f":"IF(AND(OR('1. Checklist & Certification'!$M$16=1,'1. Checklist & Certification'!$M$19=2),AO261>0,B261=\"\",I261>0,AQ261<I261,AV261<>\"Sec 8-Project\"),\"X\",IF(AND(OR('1. Checklist & Certification'!$M$20=4,'1. Checklist & Certification'!$M$21=5,'1. Checklist & Certification'!$M$22=7),AO261>0,B261=\"\",I261>0,K261<I261),\"X\",\"\"))","v":""},{"$f":"IF(A261=\"\",\"\",IF(SUMPRODUCT(-- (ISNUMBER(SEARCH({\"*AHSC*\",\"*FMTW*\",\"*FWHG*\",\"*GHI*\",\"*HHC*\",\"*HLCP*\",\"*HOME*\",\"*LPR*\",\"*MHP*\",\"*NHTF*\",\"*NSP*\",\"*PRP*\",\"*TOD*\",\"*VHHP*\"},'1. Checklist & Certification'!$L$7)))),\"MHP\",\"Legacy\"))","v":""},",,",null,null,null,{"$f":"IF('1. Checklist & Certification'!$M$20=4,\"Both\",IF(OR('1. Checklist & Certification'!$M$15>0,S261=\"CHRP-R\",U261=\"CHRP-R\",W261=\"CHRP-R\",Y261=\"CHRP-R\"),\"Under\",\"No\"))","v":"No"},"No","No",{"$f":"_xlfn.IFS(D261=\"\",\"\",D261=1,'MHP Family Income & Rent Limits'!$E$17,D261=2,'MHP Family Income & Rent Limits'!$F$17,D261=3,'MHP Family Income & Rent Limits'!$G$17,D261=4,'MHP Family Income & Rent Limits'!$H$17,D261=5,'MHP Family Income & Rent Limits'!$I$17,D261=6,'MHP Family Income & Rent Limits'!$J$17,D261=7,'MHP Family Income & Rent Limits'!$K$17,D261=8,'MHP Family Income & Rent Limits'!$L$17)","v":""},"",{"$f":"IF(OR(A261=0,B261=\"X\"),0,MIN(IF(AA261:AD261<>0,AA261:AD261)))","v":0},{"$f":"IF(OR(H261=\"\",I261=\"\"),0,IF(H261*0.3/12>I261,MIN(H261*0.3/12,I261*1.1)+AP261,I261*(1+(VLOOKUP('1. Checklist & Certification'!$F$9,'HLCP-E Rent Change'!$A$1:$D$59,4,FALSE)))+AP261))","v":0}]
[null,null,null,null,null,null,null,null,null,null,null,null,null,null,null,null,null,null,null,null,null,null,null,null,null,null,0,0,0,0,0,0,0,0,{"$f":"IF(OR(A262=0,B262=\"X\"),0,IF(OR(S262=\"FHDP\",S262=\"RHCP-B\",U262=\"FHDP\",U262=\"RHCP-B\",W262=\"FHDP\",W262=\"RHCP-B\",Y262=\"FHDP\",Y262=\"RHCP-B\"),TRUNC((MIN(I262,K262)*(1+'1. Checklist & Certification'!$K$43)+AP262)),0))","v":0},{"$f":"IF(OR(A262=0,B262=\"X\"),0,IF(OR(S262=\"CHRP-R\",S262=\"SERA\",S262=\"SUHRP\",U262=\"CHRP-R\",U262=\"SERA\",U262=\"SUHRP\",W262=\"CHRP-R\",W262=\"SERA\",W262=\"SUHRP\",Y262=\"CHRP-R\",Y262=\"SERA\",Y262=\"SUHRP\"),TRUNC((MIN(I262,K262)*(1+'1. Checklist & Certification'!$K$49))),0))","v":0},{"$f":"IF(OR(A262=0,B262=\"X\"),0,IF(OR(S262=\"CALDAP\",S262=\"DPRLP\",U262=\"CALDAP\",U262=\"DPRLP\",W262=\"CALDAP\",W262=\"DPRLP\",Y262=\"CALDAP\",Y262=\"DPRLP\"),TRUNC(((MIN(I262,K262))*(1+'1. Checklist & Certification'!$G$4))),0))","v":0},0,0,0,{"$f":"IF(OR(A262=0,B262=\"X\"),0,IF(OR(S262=\"PRP\",S262=\"LPR\",U262=\"PRP\",U262=\"LPR\",W262=\"PRP\",W262=\"LPR\",Y262=\"PRP\",Y262=\"LPR\"),MAX(I262+AP262,MIN(IF(AE262:AN262<>0,AE262:AN262))),MIN(IF(AE262:AN262<>0,AE262:AN262))))","v":0},{"$f":"IF(A262=0,0,IF(AND(OR(S262=\"Mgr\",S262=0),OR(U262=\"Mgr\",U262=0),OR(W262=\"Mgr\",W262=0)),0,IF(LEFT($A262,2)=\"B*\",VLOOKUP($E262,'1. Checklist & Certification'!$D$26:$E$32,2),IF(LEFT($A262,2)=\"C*\",VLOOKUP($E262,'1. Checklist & Certification'!$F$26:$G$32,2),IF(LEFT($A262,2)=\"D*\",VLOOKUP($E262,'1. Checklist & Certification'!$H$26:$I$32,2),IF(LEFT($A262,2)=\"E*\",VLOOKUP($E262,'1. Checklist & Certification'!$J$26:$K$32,2),VLOOKUP($E262,'1. Checklist & Certification'!$A$26:$B$32,2)))))))","v":0},0,0,null,null,null,null,"","",0,0,0,null,{"$f":"IF(A262=\"\",\"\",'1. Checklist & Certification'!$K$1)","v":""},{"$f":"IF(A262=\"\",\"\",'1. Checklist & Certification'!$C$62)","v":""},{"$f":"IF(A262=\"\",\"\",'1. Checklist & Certification'!$C$6)","v":""},{"$f":"IF(A262=\"\",\"\",'1. Checklist & Certification'!$G$5)","v":""},{"$f":"IFERROR(IF(A262=\"\",\"\",\n_xlfn.LET(_xlpm.Contract,'1. Checklist & Certification'!$C$7,\n_xlpm.Yr,TEXT(MOD(_xlfn.TEXTBEFORE(_xlpm.Contract,\"-\"),100),\"00\"),\n_xlpm.Program,_xlfn.TEXTAFTER(_xlfn.TEXTBEFORE(_xlpm.Contract,\"-\",2),\"-\"),\n_xlpm.CleanProgram,_xlfn.XLOOKUP(_xlpm.Program,SpellCheck[Input],SpellCheck[Correction],_xlpm.Program),\n_xlpm.Number,TEXT(_xlfn.TEXTAFTER(_xlpm.Contract,\"-\",2),\"0000\"),\n_xlfn.CONCAT(_xlpm.Yr,\"-\",_xlpm.CleanProgram,\"-\",_xlpm.Number))\n),\"\")","v":""},{"$f":"IFERROR(IF(A262=\"\",\"\",\n_xlfn.LET(_xlpm.Contract,'1. Checklist & Certification'!$C$8,\n_xlpm.Yr,TEXT(MOD(_xlfn.TEXTBEFORE(_xlpm.Contract,\"-\"),100),\"00\"),\n_xlpm.Program,_xlfn.TEXTAFTER(_xlfn.TEXTBEFORE(_xlpm.Contract,\"-\",2),\"-\"),\n_xlpm.CleanProgram,_xlfn.XLOOKUP(_xlpm.Program,SpellCheck[Input],SpellCheck[Correction],_xlpm.Program),\n_xlpm.Number,TEXT(_xlfn.TEXTAFTER(_xlpm.Contract,\"-\",2),\"0000\"),\n_xlfn.CONCAT(_xlpm.Yr,\"-\",_xlpm.CleanProgram,\"-\",_xlpm.Number))\n),\"\")","v":""},{"$f":"IFERROR(IF(A262=\"\",\"\",\n_xlfn.LET(_xlpm.Contract,'1. Checklist & Certification'!$F$7,\n_xlpm.Yr,TEXT(MOD(_xlfn.TEXTBEFORE(_xlpm.Contract,\"-\"),100),\"00\"),\n_xlpm.Program,_xlfn.TEXTAFTER(_xlfn.TEXTBEFORE(_xlpm.Contract,\"-\",2),\"-\"),\n_xlpm.CleanProgram,_xlfn.XLOOKUP(_xlpm.Program,SpellCheck[Input],SpellCheck[Correction],_xlpm.Program),\n_xlpm.Number,TEXT(_xlfn.TEXTAFTER(_xlpm.Contract,\"-\",2),\"0000\"),\n_xlfn.CONCAT(_xlpm.Yr,\"-\",_xlpm.CleanProgram,\"-\",_xlpm.Number))\n),\"\")","v":""},{"$f":"IFERROR(IF(A262=\"\",\"\",\n_xlfn.LET(_xlpm.Contract,'1. Checklist & Certification'!$F$8,\n_xlpm.Yr,TEXT(MOD(_xlfn.TEXTBEFORE(_xlpm.Contract,\"-\"),100),\"00\"),\n_xlpm.Program,_xlfn.TEXTAFTER(_xlfn.TEXTBEFORE(_xlpm.Contract,\"-\",2),\"-\"),\n_xlpm.CleanProgram,_xlfn.XLOOKUP(_xlpm.Program,SpellCheck[Input],SpellCheck[Correction],_xlpm.Program),\n_xlpm.Number,TEXT(_xlfn.TEXTAFTER(_xlpm.Contract,\"-\",2),\"0000\"),\n_xlfn.CONCAT(_xlpm.Yr,\"-\",_xlpm.CleanProgram,\"-\",_xlpm.Number))\n),\"\")","v":""},{"$f":"IF(A262=\"\",\"\",'1. Checklist & Certification'!$B$9)","v":""},{"$f":"IF(A262=\"\",\"\",'1. Checklist & Certification'!$F$9)","v":""},{"$f":"IF(A262=\"\",\"\",'1. Checklist & Certification'!$C$10)","v":""},{"$f":"IF(A262=\"\",\"\",'1. Checklist & Certification'!$C$11)","v":""},{"$f":"IF(A262=\"\",\"\",'1. Checklist & Certification'!$C$12)","v":""},{"$f":"IF(A262=\"\",\"\",'1. Checklist & Certification'!$B$14)","v":""},{"$f":"IF(A262=\"\",\"\",'1. Checklist & Certification'!$E$14)","v":""},{"$f":"IF(B262=\"\",\"\",'1. Checklist & Certification'!$G$14)","v":""},{"$f":"IF(A262=\"\",\"\",'MHP Family Income & Rent Limits'!$B$3)","v":""},{"$f":"IF(A262=\"\",\"\",'MHP Family Income & Rent Limits'!$J$3)","v":""},{"$f":"IF(A262=\"\",\"\",'MHP Family Income & Rent Limits'!$E$4)","v":""},{"$f":"IF(A262=\"\",\"\",'MHP Family Income & Rent Limits'!$C$7)","v":""},{"$f":"IF(A262=\"\",\"\",'MHP Family Income & Rent Limits'!$F$8)","v":""},{"$f":"IF(A262=\"\",\"\",'1. Checklist & Certification'!$G$4)","v":""},{"$f":"IF(A262=\"\",\"\",'1. Checklist & Certification'!$K$39)","v":""},{"$f":"IF(A262=\"\",\"\",'1. Checklist & Certification'!$K$43)","v":""},{"$f":"IF(A262=\"\",\"\",'1. Checklist & Certification'!$K$45)","v":""},{"$f":"IF(A262=\"\",\"\",'1. Checklist & Certification'!$K$49)","v":""},{"$f":"IF(A262=\"\",\"\",'1. Checklist & Certification'!$K$62)","v":""},{"$f":"IF(A262=\"\",\"\",'1. Checklist & Certification'!$E$66)","v":""},{"$f":"IF(A262=\"\",\"\",'1. Checklist & Certification'!$E$67)","v":""},{"$f":"IF(A262=\"\",\"\",'1. Checklist & Certification'!$E$68)","v":""},{"$f":"IF(A262=\"\",\"\",'1. Checklist & Certification'!$G$66)","v":""},{"$f":"IF(A262=\"\",\"\",'1. Checklist & Certification'!$H$66)","v":""},{"$f":"IF(A262=\"\",\"\",'1. Checklist & Certification'!$I$66)","v":""},{"$f":"IF(A262=\"\",\"\",'1. Checklist & Certification'!$I$67)","v":""},{"$f":"IF(A262=\"\",\"\",'1. Checklist & Certification'!$I$68)","v":""},{"$f":"IF(A262=\"\",\"\",'1. Checklist & Certification'!$B$69)","v":""},{"$f":"IF(A262=\"\",\"\",'1. Checklist & Certification'!$C$69)","v":""},{"$f":"IF(A262=\"\",\"\",'1. Checklist & Certification'!$F$69)","v":""},{"$f":"IF(A262=\"\",\"\",'1. Checklist & Certification'!$G$69)","v":""},{"$f":"IF(A262=\"\",\"\",'1. Checklist & Certification'!$J$69)","v":""},{"$f":"IF(A262=\"\",\"\",'1. Checklist & Certification'!$K$69)","v":""},null,null,{"$f":"IF(AND(OR('1. Checklist & Certification'!$M$16=1,'1. Checklist & Certification'!$M$19=2),AO262>0,B262=\"\",I262>0,AQ262<I262,AV262<>\"Sec 8-Project\"),\"X\",IF(AND(OR('1. Checklist & Certification'!$M$20=4,'1. Checklist & Certification'!$M$21=5,'1. Checklist & Certification'!$M$22=7),AO262>0,B262=\"\",I262>0,K262<I262),\"X\",\"\"))","v":""},{"$f":"IF(A262=\"\",\"\",IF(SUMPRODUCT(-- (ISNUMBER(SEARCH({\"*AHSC*\",\"*FMTW*\",\"*FWHG*\",\"*GHI*\",\"*HHC*\",\"*HLCP*\",\"*HOME*\",\"*LPR*\",\"*MHP*\",\"*NHTF*\",\"*NSP*\",\"*PRP*\",\"*TOD*\",\"*VHHP*\"},'1. Checklist & Certification'!$L$7)))),\"MHP\",\"Legacy\"))","v":""},",,",null,null,null,{"$f":"IF('1. Checklist & Certification'!$M$20=4,\"Both\",IF(OR('1. Checklist & Certification'!$M$15>0,S262=\"CHRP-R\",U262=\"CHRP-R\",W262=\"CHRP-R\",Y262=\"CHRP-R\"),\"Under\",\"No\"))","v":"No"},"No","No",{"$f":"_xlfn.IFS(D262=\"\",\"\",D262=1,'MHP Family Income & Rent Limits'!$E$17,D262=2,'MHP Family Income & Rent Limits'!$F$17,D262=3,'MHP Family Income & Rent Limits'!$G$17,D262=4,'MHP Family Income & Rent Limits'!$H$17,D262=5,'MHP Family Income & Rent Limits'!$I$17,D262=6,'MHP Family Income & Rent Limits'!$J$17,D262=7,'MHP Family Income & Rent Limits'!$K$17,D262=8,'MHP Family Income & Rent Limits'!$L$17)","v":""},"",{"$f":"IF(OR(A262=0,B262=\"X\"),0,MIN(IF(AA262:AD262<>0,AA262:AD262)))","v":0},{"$f":"IF(OR(H262=\"\",I262=\"\"),0,IF(H262*0.3/12>I262,MIN(H262*0.3/12,I262*1.1)+AP262,I262*(1+(VLOOKUP('1. Checklist & Certification'!$F$9,'HLCP-E Rent Change'!$A$1:$D$59,4,FALSE)))+AP262))","v":0}]
[null,null,null,null,null,null,null,null,null,null,null,null,null,null,null,null,null,null,null,null,null,null,null,null,null,null,{"$f":"IF(D263=\"Vacant\",\"Vacant\",IF(T263<>0,INDEX(IncomeLimits,MATCH(T263,IncomeLevels,0),MATCH(D263,IncomePersons,0)),0))","v":0},{"$f":"IF(D263=\"Vacant\",\"Vacant\",IF(V263<>0,INDEX(IncomeLimits,MATCH(V263,IncomeLevels,0),MATCH(D263,IncomePersons,0)),0))","v":0},{"$f":"IF(D263=\"Vacant\",\"Vacant\",IF(X263<>0,INDEX(IncomeLimits,MATCH(X263,IncomeLevels,0),MATCH(D263,IncomePersons,0)),0))","v":0},{"$f":"IF(D263=\"Vacant\",\"Vacant\",IF(Z263<>0,INDEX(IncomeLimits,MATCH(Z263,IncomeLevels,0),MATCH(D263,IncomePersons,0)),0))","v":0},{"$f":"IF(OR(T263=\"LI State\",T263=\"VLI State\"),0,IF(T263>1,INDEX(RentLimits,MATCH(T263,RentLevels,0),MATCH(E263,RentPersons,0)),0))","v":0},{"$f":"IF(OR(V263=\"LI State\",V263=\"VLI State\"),0,IF(V263>1,INDEX(RentLimits,MATCH(V263,RentLevels,0),MATCH(E263,RentPersons,0)),0))","v":0},{"$f":"IF(OR(X263=\"LI State\",X263=\"VLI State\"),0,IF(X263>1,INDEX(RentLimits,MATCH(X263,RentLevels,0),MATCH(E263,RentPersons,0)),0))","v":0},{"$f":"IF(OR(Z263=\"LI State\",Z263=\"VLI State\"),0,IF(Z263>1,INDEX(RentLimits,MATCH(Z263,RentLevels,0),MATCH(E263,RentPersons,0)),0))","v":0},{"$f":"IF(OR(A263=0,B263=\"X\"),0,IF(OR(S263=\"FHDP\",S263=\"RHCP-B\",U263=\"FHDP\",U263=\"RHCP-B\",W263=\"FHDP\",W263=\"RHCP-B\",Y263=\"FHDP\",Y263=\"RHCP-B\"),TRUNC((MIN(I263,K263)*(1+'1. Checklist & Certification'!$K$43)+AP263)),0))","v":0},{"$f":"IF(OR(A263=0,B263=\"X\"),0,IF(OR(S263=\"CHRP-R\",S263=\"SERA\",S263=\"SUHRP\",U263=\"CHRP-R\",U263=\"SERA\",U263=\"SUHRP\",W263=\"CHRP-R\",W263=\"SERA\",W263=\"SUHRP\",Y263=\"CHRP-R\",Y263=\"SERA\",Y263=\"SUHRP\"),TRUNC((MIN(I263,K263)*(1+'1. Checklist & Certification'!$K$49))),0))","v":0},{"$f":"IF(OR(A263=0,B263=\"X\"),0,IF(OR(S263=\"CALDAP\",S263=\"DPRLP\",U263=\"CALDAP\",U263=\"DPRLP\",W263=\"CALDAP\",W263=\"DPRLP\",Y263=\"CALDAP\",Y263=\"DPRLP\"),TRUNC(((MIN(I263,K263))*(1+'1. Checklist & Certification'!$G$4))),0))","v":0},{"$f":"IF(D263=\"Vacant\",0,IF(H263=0,0,IF(OR(AND(S263=\"FWHG\",T263=0),AND(U263=\"FWHG\",V263=0),AND(W263=\"FWHG\",X263=0),AND(Y263=\"FWHG\",Z263=0)),TRUNC(H263*0.3/12),IF(OR(S263=\"HLCP-E\",U263=\"HLCP-E\",W263=\"HLCP-E\",Y263=\"HLCP-E\"),DF263,0))))","v":0},0,0,{"$f":"IF(OR(A263=0,B263=\"X\"),0,IF(OR(S263=\"PRP\",S263=\"LPR\",U263=\"PRP\",U263=\"LPR\",W263=\"PRP\",W263=\"LPR\",Y263=\"PRP\",Y263=\"LPR\"),MAX(I263+AP263,MIN(IF(AE263:AN263<>0,AE263:AN263))),MIN(IF(AE263:AN263<>0,AE263:AN263))))","v":0},{"$f":"IF(A263=0,0,IF(AND(OR(S263=\"Mgr\",S263=0),OR(U263=\"Mgr\",U263=0),OR(W263=\"Mgr\",W263=0)),0,IF(LEFT($A263,2)=\"B*\",VLOOKUP($E263,'1. Checklist & Certification'!$D$26:$E$32,2),IF(LEFT($A263,2)=\"C*\",VLOOKUP($E263,'1. Checklist & Certification'!$F$26:$G$32,2),IF(LEFT($A263,2)=\"D*\",VLOOKUP($E263,'1. Checklist & Certification'!$H$26:$I$32,2),IF(LEFT($A263,2)=\"E*\",VLOOKUP($E263,'1. Checklist & Certification'!$J$26:$K$32,2),VLOOKUP($E263,'1. Checklist & Certification'!$A$26:$B$32,2)))))))","v":0},{"$f":"IF(AO263=0,0,ROUND(AO263-AP263,0))","v":0},{"$f":"AS263-I263","v":0},null,null,null,null,{"$f":"IF($CV$5=TRUE,IF(AS263<>0,IF(AV263<>\"Sec 8-Project\",MIN(AQ263,AS263),AS263),\"\"),\"\")","v":""},{"$f":"IF(AW263=\"\",\"\",(I263*J263)+((12-J263)*AW263))","v":""},{"$f":"(I263*J263)+((12-J263)*AS263)","v":0},{"$f":"(AT263*J263)+((12-J263)*AU263)","v":0},0,null,{"$f":"IF(A263=\"\",\"\",'1. Checklist & Certification'!$K$1)","v":""},{"$f":"IF(A263=\"\",\"\",'1. Checklist & Certification'!$C$62)","v":""},{"$f":"IF(A263=\"\",\"\",'1. Checklist & Certification'!$C$6)","v":""},{"$f":"IF(A263=\"\",\"\",'1. Checklist & Certification'!$G$5)","v":""},{"$f":"IFERROR(IF(A263=\"\",\"\",\n_xlfn.LET(_xlpm.Contract,'1. Checklist & Certification'!$C$7,\n_xlpm.Yr,TEXT(MOD(_xlfn.TEXTBEFORE(_xlpm.Contract,\"-\"),100),\"00\"),\n_xlpm.Program,_xlfn.TEXTAFTER(_xlfn.TEXTBEFORE(_xlpm.Contract,\"-\",2),\"-\"),\n_xlpm.CleanProgram,_xlfn.XLOOKUP(_xlpm.Program,SpellCheck[Input],SpellCheck[Correction],_xlpm.Program),\n_xlpm.Number,TEXT(_xlfn.TEXTAFTER(_xlpm.Contract,\"-\",2),\"0000\"),\n_xlfn.CONCAT(_xlpm.Yr,\"-\",_xlpm.CleanProgram,\"-\",_xlpm.Number))\n),\"\")","v":""},{"$f":"IFERROR(IF(A263=\"\",\"\",\n_xlfn.LET(_xlpm.Contract,'1. Checklist & Certification'!$C$8,\n_xlpm.Yr,TEXT(MOD(_xlfn.TEXTBEFORE(_xlpm.Contract,\"-\"),100),\"00\"),\n_xlpm.Program,_xlfn.TEXTAFTER(_xlfn.TEXTBEFORE(_xlpm.Contract,\"-\",2),\"-\"),\n_xlpm.CleanProgram,_xlfn.XLOOKUP(_xlpm.Program,SpellCheck[Input],SpellCheck[Correction],_xlpm.Program),\n_xlpm.Number,TEXT(_xlfn.TEXTAFTER(_xlpm.Contract,\"-\",2),\"0000\"),\n_xlfn.CONCAT(_xlpm.Yr,\"-\",_xlpm.CleanProgram,\"-\",_xlpm.Number))\n),\"\")","v":""},{"$f":"IFERROR(IF(A263=\"\",\"\",\n_xlfn.LET(_xlpm.Contract,'1. Checklist & Certification'!$F$7,\n_xlpm.Yr,TEXT(MOD(_xlfn.TEXTBEFORE(_xlpm.Contract,\"-\"),100),\"00\"),\n_xlpm.Program,_xlfn.TEXTAFTER(_xlfn.TEXTBEFORE(_xlpm.Contract,\"-\",2),\"-\"),\n_xlpm.CleanProgram,_xlfn.XLOOKUP(_xlpm.Program,SpellCheck[Input],SpellCheck[Correction],_xlpm.Program),\n_xlpm.Number,TEXT(_xlfn.TEXTAFTER(_xlpm.Contract,\"-\",2),\"0000\"),\n_xlfn.CONCAT(_xlpm.Yr,\"-\",_xlpm.CleanProgram,\"-\",_xlpm.Number))\n),\"\")","v":""},{"$f":"IFERROR(IF(A263=\"\",\"\",\n_xlfn.LET(_xlpm.Contract,'1. Checklist & Certification'!$F$8,\n_xlpm.Yr,TEXT(MOD(_xlfn.TEXTBEFORE(_xlpm.Contract,\"-\"),100),\"00\"),\n_xlpm.Program,_xlfn.TEXTAFTER(_xlfn.TEXTBEFORE(_xlpm.Contract,\"-\",2),\"-\"),\n_xlpm.CleanProgram,_xlfn.XLOOKUP(_xlpm.Program,SpellCheck[Input],SpellCheck[Correction],_xlpm.Program),\n_xlpm.Number,TEXT(_xlfn.TEXTAFTER(_xlpm.Contract,\"-\",2),\"0000\"),\n_xlfn.CONCAT(_xlpm.Yr,\"-\",_xlpm.CleanProgram,\"-\",_xlpm.Number))\n),\"\")","v":""},{"$f":"IF(A263=\"\",\"\",'1. Checklist & Certification'!$B$9)","v":""},{"$f":"IF(A263=\"\",\"\",'1. Checklist & Certification'!$F$9)","v":""},{"$f":"IF(A263=\"\",\"\",'1. Checklist & Certification'!$C$10)","v":""},{"$f":"IF(A263=\"\",\"\",'1. Checklist & Certification'!$C$11)","v":""},{"$f":"IF(A263=\"\",\"\",'1. Checklist & Certification'!$C$12)","v":""},{"$f":"IF(A263=\"\",\"\",'1. Checklist & Certification'!$B$14)","v":""},{"$f":"IF(A263=\"\",\"\",'1. Checklist & Certification'!$E$14)","v":""},{"$f":"IF(B263=\"\",\"\",'1. Checklist & Certification'!$G$14)","v":""},{"$f":"IF(A263=\"\",\"\",'MHP Family Income & Rent Limits'!$B$3)","v":""},{"$f":"IF(A263=\"\",\"\",'MHP Family Income & Rent Limits'!$J$3)","v":""},{"$f":"IF(A263=\"\",\"\",'MHP Family Income & Rent Limits'!$E$4)","v":""},{"$f":"IF(A263=\"\",\"\",'MHP Family Income & Rent Limits'!$C$7)","v":""},{"$f":"IF(A263=\"\",\"\",'MHP Family Income & Rent Limits'!$F$8)","v":""},{"$f":"IF(A263=\"\",\"\",'1. Checklist & Certification'!$G$4)","v":""},{"$f":"IF(A263=\"\",\"\",'1. Checklist & Certification'!$K$39)","v":""},{"$f":"IF(A263=\"\",\"\",'1. Checklist & Certification'!$K$43)","v":""},{"$f":"IF(A263=\"\",\"\",'1. Checklist & Certification'!$K$45)","v":""},{"$f":"IF(A263=\"\",\"\",'1. Checklist & Certification'!$K$49)","v":""},{"$f":"IF(A263=\"\",\"\",'1. Checklist & Certification'!$K$62)","v":""},{"$f":"IF(A263=\"\",\"\",'1. Checklist & Certification'!$E$66)","v":""},{"$f":"IF(A263=\"\",\"\",'1. Checklist & Certification'!$E$67)","v":""},{"$f":"IF(A263=\"\",\"\",'1. Checklist & Certification'!$E$68)","v":""},{"$f":"IF(A263=\"\",\"\",'1. Checklist & Certification'!$G$66)","v":""},{"$f":"IF(A263=\"\",\"\",'1. Checklist & Certification'!$H$66)","v":""},{"$f":"IF(A263=\"\",\"\",'1. Checklist & Certification'!$I$66)","v":""},{"$f":"IF(A263=\"\",\"\",'1. Checklist & Certification'!$I$67)","v":""},{"$f":"IF(A263=\"\",\"\",'1. Checklist & Certification'!$I$68)","v":""},{"$f":"IF(A263=\"\",\"\",'1. Checklist & Certification'!$B$69)","v":""},{"$f":"IF(A263=\"\",\"\",'1. Checklist & Certification'!$C$69)","v":""},{"$f":"IF(A263=\"\",\"\",'1. Checklist & Certification'!$F$69)","v":""},{"$f":"IF(A263=\"\",\"\",'1. Checklist & Certification'!$G$69)","v":""},{"$f":"IF(A263=\"\",\"\",'1. Checklist & Certification'!$J$69)","v":""},{"$f":"IF(A263=\"\",\"\",'1. Checklist & Certification'!$K$69)","v":""},null,null,{"$f":"IF(AND(OR('1. Checklist & Certification'!$M$16=1,'1. Checklist & Certification'!$M$19=2),AO263>0,B263=\"\",I263>0,AQ263<I263,AV263<>\"Sec 8-Project\"),\"X\",IF(AND(OR('1. Checklist & Certification'!$M$20=4,'1. Checklist & Certification'!$M$21=5,'1. Checklist & Certification'!$M$22=7),AO263>0,B263=\"\",I263>0,K263<I263),\"X\",\"\"))","v":""},{"$f":"IF(A263=\"\",\"\",IF(SUMPRODUCT(-- (ISNUMBER(SEARCH({\"*AHSC*\",\"*FMTW*\",\"*FWHG*\",\"*GHI*\",\"*HHC*\",\"*HLCP*\",\"*HOME*\",\"*LPR*\",\"*MHP*\",\"*NHTF*\",\"*NSP*\",\"*PRP*\",\"*TOD*\",\"*VHHP*\"},'1. Checklist & Certification'!$L$7)))),\"MHP\",\"Legacy\"))","v":""},{"$f":"CONCATENATE(S263,\",\",U263,\",\",W263)","v":",,"},null,null,null,{"$f":"IF('1. Checklist & Certification'!$M$20=4,\"Both\",IF(OR('1. Checklist & Certification'!$M$15>0,S263=\"CHRP-R\",U263=\"CHRP-R\",W263=\"CHRP-R\",Y263=\"CHRP-R\"),\"Under\",\"No\"))","v":"No"},"No","No",{"$f":"_xlfn.IFS(D263=\"\",\"\",D263=1,'MHP Family Income & Rent Limits'!$E$17,D263=2,'MHP Family Income & Rent Limits'!$F$17,D263=3,'MHP Family Income & Rent Limits'!$G$17,D263=4,'MHP Family Income & Rent Limits'!$H$17,D263=5,'MHP Family Income & Rent Limits'!$I$17,D263=6,'MHP Family Income & Rent Limits'!$J$17,D263=7,'MHP Family Income & Rent Limits'!$K$17,D263=8,'MHP Family Income & Rent Limits'!$L$17)","v":""},{"$f":"IF(H263=\"\",\"\",IF(H263<=DC263,0.05,0.1))","v":""},{"$f":"IF(OR(A263=0,B263=\"X\"),0,MIN(IF(AA263:AD263<>0,AA263:AD263)))","v":0},{"$f":"IF(OR(H263=\"\",I263=\"\"),0,IF(H263*0.3/12>I263,MIN(H263*0.3/12,I263*1.1)+AP263,I263*(1+(VLOOKUP('1. Checklist & Certification'!$F$9,'HLCP-E Rent Change'!$A$1:$D$59,4,FALSE)))+AP263))","v":0}]
[null,null,null,null,null,null,null,null,null,null,null,null,null,null,null,null,null,null,null,null,null,null,null,null,null,null,0,0,0,0,0,0,0,0,{"$f":"IF(OR(A264=0,B264=\"X\"),0,IF(OR(S264=\"FHDP\",S264=\"RHCP-B\",U264=\"FHDP\",U264=\"RHCP-B\",W264=\"FHDP\",W264=\"RHCP-B\",Y264=\"FHDP\",Y264=\"RHCP-B\"),TRUNC((MIN(I264,K264)*(1+'1. Checklist & Certification'!$K$43)+AP264)),0))","v":0},{"$f":"IF(OR(A264=0,B264=\"X\"),0,IF(OR(S264=\"CHRP-R\",S264=\"SERA\",S264=\"SUHRP\",U264=\"CHRP-R\",U264=\"SERA\",U264=\"SUHRP\",W264=\"CHRP-R\",W264=\"SERA\",W264=\"SUHRP\",Y264=\"CHRP-R\",Y264=\"SERA\",Y264=\"SUHRP\"),TRUNC((MIN(I264,K264)*(1+'1. Checklist & Certification'!$K$49))),0))","v":0},{"$f":"IF(OR(A264=0,B264=\"X\"),0,IF(OR(S264=\"CALDAP\",S264=\"DPRLP\",U264=\"CALDAP\",U264=\"DPRLP\",W264=\"CALDAP\",W264=\"DPRLP\",Y264=\"CALDAP\",Y264=\"DPRLP\"),TRUNC(((MIN(I264,K264))*(1+'1. Checklist & Certification'!$G$4))),0))","v":0},0,{"$f":"IF(OR(A264=0,B264=\"X\"),0,IF(OR(S264=\"PRP\",S264=\"LPR\",U264=\"PRP\",U264=\"LPR\",W264=\"PRP\",W264=\"LPR\",Y264=\"PRP\",Y264=\"LPR\"),TRUNC(I264*(1+DD264)+AP264),0))","v":0},{"$f":"IF(OR(A264=0,B264=\"X\"),0,IF(OR(S264=\"PRP\",S264=\"LPR\",U264=\"PRP\",U264=\"LPR\",W264=\"PRP\",W264=\"LPR\",Y264=\"PRP\",Y264=\"LPR\"),TRUNC(H264*0.5/12),0))","v":0},{"$f":"IF(OR(A264=0,B264=\"X\"),0,IF(OR(S264=\"PRP\",S264=\"LPR\",U264=\"PRP\",U264=\"LPR\",W264=\"PRP\",W264=\"LPR\",Y264=\"PRP\",Y264=\"LPR\"),MAX(I264+AP264,MIN(IF(AE264:AN264<>0,AE264:AN264))),MIN(IF(AE264:AN264<>0,AE264:AN264))))","v":0},{"$f":"IF(A264=0,0,IF(AND(OR(S264=\"Mgr\",S264=0),OR(U264=\"Mgr\",U264=0),OR(W264=\"Mgr\",W264=0)),0,IF(LEFT($A264,2)=\"B*\",VLOOKUP($E264,'1. Checklist & Certification'!$D$26:$E$32,2),IF(LEFT($A264,2)=\"C*\",VLOOKUP($E264,'1. Checklist & Certification'!$F$26:$G$32,2),IF(LEFT($A264,2)=\"D*\",VLOOKUP($E264,'1. Checklist & Certification'!$H$26:$I$32,2),IF(LEFT($A264,2)=\"E*\",VLOOKUP($E264,'1. Checklist & Certification'!$J$26:$K$32,2),VLOOKUP($E264,'1. Checklist & Certification'!$A$26:$B$32,2)))))))","v":0},0,0,null,null,null,null,"","",0,0,{"$f":"IFERROR((AX264+(AP264*12))/H264,0)","v":0},null,{"$f":"IF(A264=\"\",\"\",'1. Checklist & Certification'!$K$1)","v":""},{"$f":"IF(A264=\"\",\"\",'1. Checklist & Certification'!$C$62)","v":""},{"$f":"IF(A264=\"\",\"\",'1. Checklist & Certification'!$C$6)","v":""},{"$f":"IF(A264=\"\",\"\",'1. Checklist & Certification'!$G$5)","v":""},{"$f":"IFERROR(IF(A264=\"\",\"\",\n_xlfn.LET(_xlpm.Contract,'1. Checklist & Certification'!$C$7,\n_xlpm.Yr,TEXT(MOD(_xlfn.TEXTBEFORE(_xlpm.Contract,\"-\"),100),\"00\"),\n_xlpm.Program,_xlfn.TEXTAFTER(_xlfn.TEXTBEFORE(_xlpm.Contract,\"-\",2),\"-\"),\n_xlpm.CleanProgram,_xlfn.XLOOKUP(_xlpm.Program,SpellCheck[Input],SpellCheck[Correction],_xlpm.Program),\n_xlpm.Number,TEXT(_xlfn.TEXTAFTER(_xlpm.Contract,\"-\",2),\"0000\"),\n_xlfn.CONCAT(_xlpm.Yr,\"-\",_xlpm.CleanProgram,\"-\",_xlpm.Number))\n),\"\")","v":""},{"$f":"IFERROR(IF(A264=\"\",\"\",\n_xlfn.LET(_xlpm.Contract,'1. Checklist & Certification'!$C$8,\n_xlpm.Yr,TEXT(MOD(_xlfn.TEXTBEFORE(_xlpm.Contract,\"-\"),100),\"00\"),\n_xlpm.Program,_xlfn.TEXTAFTER(_xlfn.TEXTBEFORE(_xlpm.Contract,\"-\",2),\"-\"),\n_xlpm.CleanProgram,_xlfn.XLOOKUP(_xlpm.Program,SpellCheck[Input],SpellCheck[Correction],_xlpm.Program),\n_xlpm.Number,TEXT(_xlfn.TEXTAFTER(_xlpm.Contract,\"-\",2),\"0000\"),\n_xlfn.CONCAT(_xlpm.Yr,\"-\",_xlpm.CleanProgram,\"-\",_xlpm.Number))\n),\"\")","v":""},{"$f":"IFERROR(IF(A264=\"\",\"\",\n_xlfn.LET(_xlpm.Contract,'1. Checklist & Certification'!$F$7,\n_xlpm.Yr,TEXT(MOD(_xlfn.TEXTBEFORE(_xlpm.Contract,\"-\"),100),\"00\"),\n_xlpm.Program,_xlfn.TEXTAFTER(_xlfn.TEXTBEFORE(_xlpm.Contract,\"-\",2),\"-\"),\n_xlpm.CleanProgram,_xlfn.XLOOKUP(_xlpm.Program,SpellCheck[Input],SpellCheck[Correction],_xlpm.Program),\n_xlpm.Number,TEXT(_xlfn.TEXTAFTER(_xlpm.Contract,\"-\",2),\"0000\"),\n_xlfn.CONCAT(_xlpm.Yr,\"-\",_xlpm.CleanProgram,\"-\",_xlpm.Number))\n),\"\")","v":""},{"$f":"IFERROR(IF(A264=\"\",\"\",\n_xlfn.LET(_xlpm.Contract,'1. Checklist & Certification'!$F$8,\n_xlpm.Yr,TEXT(MOD(_xlfn.TEXTBEFORE(_xlpm.Contract,\"-\"),100),\"00\"),\n_xlpm.Program,_xlfn.TEXTAFTER(_xlfn.TEXTBEFORE(_xlpm.Contract,\"-\",2),\"-\"),\n_xlpm.CleanProgram,_xlfn.XLOOKUP(_xlpm.Program,SpellCheck[Input],SpellCheck[Correction],_xlpm.Program),\n_xlpm.Number,TEXT(_xlfn.TEXTAFTER(_xlpm.Contract,\"-\",2),\"0000\"),\n_xlfn.CONCAT(_xlpm.Yr,\"-\",_xlpm.CleanProgram,\"-\",_xlpm.Number))\n),\"\")","v":""},{"$f":"IF(A264=\"\",\"\",'1. Checklist & Certification'!$B$9)","v":""},{"$f":"IF(A264=\"\",\"\",'1. Checklist & Certification'!$F$9)","v":""},{"$f":"IF(A264=\"\",\"\",'1. Checklist & Certification'!$C$10)","v":""},{"$f":"IF(A264=\"\",\"\",'1. Checklist & Certification'!$C$11)","v":""},{"$f":"IF(A264=\"\",\"\",'1. Checklist & Certification'!$C$12)","v":""},{"$f":"IF(A264=\"\",\"\",'1. Checklist & Certification'!$B$14)","v":""},{"$f":"IF(A264=\"\",\"\",'1. Checklist & Certification'!$E$14)","v":""},{"$f":"IF(B264=\"\",\"\",'1. Checklist & Certification'!$G$14)","v":""},{"$f":"IF(A264=\"\",\"\",'MHP Family Income & Rent Limits'!$B$3)","v":""},{"$f":"IF(A264=\"\",\"\",'MHP Family Income & Rent Limits'!$J$3)","v":""},{"$f":"IF(A264=\"\",\"\",'MHP Family Income & Rent Limits'!$E$4)","v":""},{"$f":"IF(A264=\"\",\"\",'MHP Family Income & Rent Limits'!$C$7)","v":""},{"$f":"IF(A264=\"\",\"\",'MHP Family Income & Rent Limits'!$F$8)","v":""},{"$f":"IF(A264=\"\",\"\",'1. Checklist & Certification'!$G$4)","v":""},{"$f":"IF(A264=\"\",\"\",'1. Checklist & Certification'!$K$39)","v":""},{"$f":"IF(A264=\"\",\"\",'1. Checklist & Certification'!$K$43)","v":""},{"$f":"IF(A264=\"\",\"\",'1. Checklist & Certification'!$K$45)","v":""},{"$f":"IF(A264=\"\",\"\",'1. Checklist & Certification'!$K$49)","v":""},{"$f":"IF(A264=\"\",\"\",'1. Checklist & Certification'!$K$62)","v":""},{"$f":"IF(A264=\"\",\"\",'1. Checklist & Certification'!$E$66)","v":""},{"$f":"IF(A264=\"\",\"\",'1. Checklist & Certification'!$E$67)","v":""},{"$f":"IF(A264=\"\",\"\",'1. Checklist & Certification'!$E$68)","v":""},{"$f":"IF(A264=\"\",\"\",'1. Checklist & Certification'!$G$66)","v":""},{"$f":"IF(A264=\"\",\"\",'1. Checklist & Certification'!$H$66)","v":""},{"$f":"IF(A264=\"\",\"\",'1. Checklist & Certification'!$I$66)","v":""},{"$f":"IF(A264=\"\",\"\",'1. Checklist & Certification'!$I$67)","v":""},{"$f":"IF(A264=\"\",\"\",'1. Checklist & Certification'!$I$68)","v":""},{"$f":"IF(A264=\"\",\"\",'1. Checklist & Certification'!$B$69)","v":""},{"$f":"IF(A264=\"\",\"\",'1. Checklist & Certification'!$C$69)","v":""},{"$f":"IF(A264=\"\",\"\",'1. Checklist & Certification'!$F$69)","v":""},{"$f":"IF(A264=\"\",\"\",'1. Checklist & Certification'!$G$69)","v":""},{"$f":"IF(A264=\"\",\"\",'1. Checklist & Certification'!$J$69)","v":""},{"$f":"IF(A264=\"\",\"\",'1. Checklist & Certification'!$K$69)","v":""},null,null,{"$f":"IF(AND(OR('1. Checklist & Certification'!$M$16=1,'1. Checklist & Certification'!$M$19=2),AO264>0,B264=\"\",I264>0,AQ264<I264,AV264<>\"Sec 8-Project\"),\"X\",IF(AND(OR('1. Checklist & Certification'!$M$20=4,'1. Checklist & Certification'!$M$21=5,'1. Checklist & Certification'!$M$22=7),AO264>0,B264=\"\",I264>0,K264<I264),\"X\",\"\"))","v":""},{"$f":"IF(A264=\"\",\"\",IF(SUMPRODUCT(-- (ISNUMBER(SEARCH({\"*AHSC*\",\"*FMTW*\",\"*FWHG*\",\"*GHI*\",\"*HHC*\",\"*HLCP*\",\"*HOME*\",\"*LPR*\",\"*MHP*\",\"*NHTF*\",\"*NSP*\",\"*PRP*\",\"*TOD*\",\"*VHHP*\"},'1. Checklist & Certification'!$L$7)))),\"MHP\",\"Legacy\"))","v":""},",,",null,null,null,{"$f":"IF('1. Checklist & Certification'!$M$20=4,\"Both\",IF(OR('1. Checklist & Certification'!$M$15>0,S264=\"CHRP-R\",U264=\"CHRP-R\",W264=\"CHRP-R\",Y264=\"CHRP-R\"),\"Under\",\"No\"))","v":"No"},{"$f":"IF(OR(B264=\"X\",D264=\"Vacant\",D264<1),\"No\",IF(AND(CZ264<>\"No\",D264<VLOOKUP(E264,$CW$7:$CY$13,2)),\"Yes\",\"No\"))","v":"No"},{"$f":"IF(OR(B264=\"X\",D264=\"Vacant\",D264<1),\"No\",IF(AND(CZ264=\"Both\",D264>VLOOKUP(E264,$CW$7:$CY$13,3)),\"Yes\",\"No\"))","v":"No"},{"$f":"_xlfn.IFS(D264=\"\",\"\",D264=1,'MHP Family Income & Rent Limits'!$E$17,D264=2,'MHP Family Income & Rent Limits'!$F$17,D264=3,'MHP Family Income & Rent Limits'!$G$17,D264=4,'MHP Family Income & Rent Limits'!$H$17,D264=5,'MHP Family Income & Rent Limits'!$I$17,D264=6,'MHP Family Income & Rent Limits'!$J$17,D264=7,'MHP Family Income & Rent Limits'!$K$17,D264=8,'MHP Family Income & Rent Limits'!$L$17)","v":""},"",{"$f":"IF(OR(A264=0,B264=\"X\"),0,MIN(IF(AA264:AD264<>0,AA264:AD264)))","v":0},{"$f":"IF(OR(H264=\"\",I264=\"\"),0,IF(H264*0.3/12>I264,MIN(H264*0.3/12,I264*1.1)+AP264,I264*(1+(VLOOKUP('1. Checklist & Certification'!$F$9,'HLCP-E Rent Change'!$A$1:$D$59,4,FALSE)))+AP264))","v":0}]
[null,null,null,null,null,null,null,null,null,null,null,null,null,null,null,null,null,null,null,null,null,null,null,null,null,null,0,0,0,0,0,0,0,0,{"$f":"IF(OR(A265=0,B265=\"X\"),0,IF(OR(S265=\"FHDP\",S265=\"RHCP-B\",U265=\"FHDP\",U265=\"RHCP-B\",W265=\"FHDP\",W265=\"RHCP-B\",Y265=\"FHDP\",Y265=\"RHCP-B\"),TRUNC((MIN(I265,K265)*(1+'1. Checklist & Certification'!$K$43)+AP265)),0))","v":0},{"$f":"IF(OR(A265=0,B265=\"X\"),0,IF(OR(S265=\"CHRP-R\",S265=\"SERA\",S265=\"SUHRP\",U265=\"CHRP-R\",U265=\"SERA\",U265=\"SUHRP\",W265=\"CHRP-R\",W265=\"SERA\",W265=\"SUHRP\",Y265=\"CHRP-R\",Y265=\"SERA\",Y265=\"SUHRP\"),TRUNC((MIN(I265,K265)*(1+'1. Checklist & Certification'!$K$49))),0))","v":0},{"$f":"IF(OR(A265=0,B265=\"X\"),0,IF(OR(S265=\"CALDAP\",S265=\"DPRLP\",U265=\"CALDAP\",U265=\"DPRLP\",W265=\"CALDAP\",W265=\"DPRLP\",Y265=\"CALDAP\",Y265=\"DPRLP\"),TRUNC(((MIN(I265,K265))*(1+'1. Checklist & Certification'!$G$4))),0))","v":0},0,0,0,{"$f":"IF(OR(A265=0,B265=\"X\"),0,IF(OR(S265=\"PRP\",S265=\"LPR\",U265=\"PRP\",U265=\"LPR\",W265=\"PRP\",W265=\"LPR\",Y265=\"PRP\",Y265=\"LPR\"),MAX(I265+AP265,MIN(IF(AE265:AN265<>0,AE265:AN265))),MIN(IF(AE265:AN265<>0,AE265:AN265))))","v":0},{"$f":"IF(A265=0,0,IF(AND(OR(S265=\"Mgr\",S265=0),OR(U265=\"Mgr\",U265=0),OR(W265=\"Mgr\",W265=0)),0,IF(LEFT($A265,2)=\"B*\",VLOOKUP($E265,'1. Checklist & Certification'!$D$26:$E$32,2),IF(LEFT($A265,2)=\"C*\",VLOOKUP($E265,'1. Checklist & Certification'!$F$26:$G$32,2),IF(LEFT($A265,2)=\"D*\",VLOOKUP($E265,'1. Checklist & Certification'!$H$26:$I$32,2),IF(LEFT($A265,2)=\"E*\",VLOOKUP($E265,'1. Checklist & Certification'!$J$26:$K$32,2),VLOOKUP($E265,'1. Checklist & Certification'!$A$26:$B$32,2)))))))","v":0},0,0,null,null,null,null,"","",0,0,0,null,{"$f":"IF(A265=\"\",\"\",'1. Checklist & Certification'!$K$1)","v":""},{"$f":"IF(A265=\"\",\"\",'1. Checklist & Certification'!$C$62)","v":""},{"$f":"IF(A265=\"\",\"\",'1. Checklist & Certification'!$C$6)","v":""},{"$f":"IF(A265=\"\",\"\",'1. Checklist & Certification'!$G$5)","v":""},{"$f":"IFERROR(IF(A265=\"\",\"\",\n_xlfn.LET(_xlpm.Contract,'1. Checklist & Certification'!$C$7,\n_xlpm.Yr,TEXT(MOD(_xlfn.TEXTBEFORE(_xlpm.Contract,\"-\"),100),\"00\"),\n_xlpm.Program,_xlfn.TEXTAFTER(_xlfn.TEXTBEFORE(_xlpm.Contract,\"-\",2),\"-\"),\n_xlpm.CleanProgram,_xlfn.XLOOKUP(_xlpm.Program,SpellCheck[Input],SpellCheck[Correction],_xlpm.Program),\n_xlpm.Number,TEXT(_xlfn.TEXTAFTER(_xlpm.Contract,\"-\",2),\"0000\"),\n_xlfn.CONCAT(_xlpm.Yr,\"-\",_xlpm.CleanProgram,\"-\",_xlpm.Number))\n),\"\")","v":""},{"$f":"IFERROR(IF(A265=\"\",\"\",\n_xlfn.LET(_xlpm.Contract,'1. Checklist & Certification'!$C$8,\n_xlpm.Yr,TEXT(MOD(_xlfn.TEXTBEFORE(_xlpm.Contract,\"-\"),100),\"00\"),\n_xlpm.Program,_xlfn.TEXTAFTER(_xlfn.TEXTBEFORE(_xlpm.Contract,\"-\",2),\"-\"),\n_xlpm.CleanProgram,_xlfn.XLOOKUP(_xlpm.Program,SpellCheck[Input],SpellCheck[Correction],_xlpm.Program),\n_xlpm.Number,TEXT(_xlfn.TEXTAFTER(_xlpm.Contract,\"-\",2),\"0000\"),\n_xlfn.CONCAT(_xlpm.Yr,\"-\",_xlpm.CleanProgram,\"-\",_xlpm.Number))\n),\"\")","v":""},{"$f":"IFERROR(IF(A265=\"\",\"\",\n_xlfn.LET(_xlpm.Contract,'1. Checklist & Certification'!$F$7,\n_xlpm.Yr,TEXT(MOD(_xlfn.TEXTBEFORE(_xlpm.Contract,\"-\"),100),\"00\"),\n_xlpm.Program,_xlfn.TEXTAFTER(_xlfn.TEXTBEFORE(_xlpm.Contract,\"-\",2),\"-\"),\n_xlpm.CleanProgram,_xlfn.XLOOKUP(_xlpm.Program,SpellCheck[Input],SpellCheck[Correction],_xlpm.Program),\n_xlpm.Number,TEXT(_xlfn.TEXTAFTER(_xlpm.Contract,\"-\",2),\"0000\"),\n_xlfn.CONCAT(_xlpm.Yr,\"-\",_xlpm.CleanProgram,\"-\",_xlpm.Number))\n),\"\")","v":""},{"$f":"IFERROR(IF(A265=\"\",\"\",\n_xlfn.LET(_xlpm.Contract,'1. Checklist & Certification'!$F$8,\n_xlpm.Yr,TEXT(MOD(_xlfn.TEXTBEFORE(_xlpm.Contract,\"-\"),100),\"00\"),\n_xlpm.Program,_xlfn.TEXTAFTER(_xlfn.TEXTBEFORE(_xlpm.Contract,\"-\",2),\"-\"),\n_xlpm.CleanProgram,_xlfn.XLOOKUP(_xlpm.Program,SpellCheck[Input],SpellCheck[Correction],_xlpm.Program),\n_xlpm.Number,TEXT(_xlfn.TEXTAFTER(_xlpm.Contract,\"-\",2),\"0000\"),\n_xlfn.CONCAT(_xlpm.Yr,\"-\",_xlpm.CleanProgram,\"-\",_xlpm.Number))\n),\"\")","v":""},{"$f":"IF(A265=\"\",\"\",'1. Checklist & Certification'!$B$9)","v":""},{"$f":"IF(A265=\"\",\"\",'1. Checklist & Certification'!$F$9)","v":""},{"$f":"IF(A265=\"\",\"\",'1. Checklist & Certification'!$C$10)","v":""},{"$f":"IF(A265=\"\",\"\",'1. Checklist & Certification'!$C$11)","v":""},{"$f":"IF(A265=\"\",\"\",'1. Checklist & Certification'!$C$12)","v":""},{"$f":"IF(A265=\"\",\"\",'1. Checklist & Certification'!$B$14)","v":""},{"$f":"IF(A265=\"\",\"\",'1. Checklist & Certification'!$E$14)","v":""},{"$f":"IF(B265=\"\",\"\",'1. Checklist & Certification'!$G$14)","v":""},{"$f":"IF(A265=\"\",\"\",'MHP Family Income & Rent Limits'!$B$3)","v":""},{"$f":"IF(A265=\"\",\"\",'MHP Family Income & Rent Limits'!$J$3)","v":""},{"$f":"IF(A265=\"\",\"\",'MHP Family Income & Rent Limits'!$E$4)","v":""},{"$f":"IF(A265=\"\",\"\",'MHP Family Income & Rent Limits'!$C$7)","v":""},{"$f":"IF(A265=\"\",\"\",'MHP Family Income & Rent Limits'!$F$8)","v":""},{"$f":"IF(A265=\"\",\"\",'1. Checklist & Certification'!$G$4)","v":""},{"$f":"IF(A265=\"\",\"\",'1. Checklist & Certification'!$K$39)","v":""},{"$f":"IF(A265=\"\",\"\",'1. Checklist & Certification'!$K$43)","v":""},{"$f":"IF(A265=\"\",\"\",'1. Checklist & Certification'!$K$45)","v":""},{"$f":"IF(A265=\"\",\"\",'1. Checklist & Certification'!$K$49)","v":""},{"$f":"IF(A265=\"\",\"\",'1. Checklist & Certification'!$K$62)","v":""},{"$f":"IF(A265=\"\",\"\",'1. Checklist & Certification'!$E$66)","v":""},{"$f":"IF(A265=\"\",\"\",'1. Checklist & Certification'!$E$67)","v":""},{"$f":"IF(A265=\"\",\"\",'1. Checklist & Certification'!$E$68)","v":""},{"$f":"IF(A265=\"\",\"\",'1. Checklist & Certification'!$G$66)","v":""},{"$f":"IF(A265=\"\",\"\",'1. Checklist & Certification'!$H$66)","v":""},{"$f":"IF(A265=\"\",\"\",'1. Checklist & Certification'!$I$66)","v":""},{"$f":"IF(A265=\"\",\"\",'1. Checklist & Certification'!$I$67)","v":""},{"$f":"IF(A265=\"\",\"\",'1. Checklist & Certification'!$I$68)","v":""},{"$f":"IF(A265=\"\",\"\",'1. Checklist & Certification'!$B$69)","v":""},{"$f":"IF(A265=\"\",\"\",'1. Checklist & Certification'!$C$69)","v":""},{"$f":"IF(A265=\"\",\"\",'1. Checklist & Certification'!$F$69)","v":""},{"$f":"IF(A265=\"\",\"\",'1. Checklist & Certification'!$G$69)","v":""},{"$f":"IF(A265=\"\",\"\",'1. Checklist & Certification'!$J$69)","v":""},{"$f":"IF(A265=\"\",\"\",'1. Checklist & Certification'!$K$69)","v":""},null,null,{"$f":"IF(AND(OR('1. Checklist & Certification'!$M$16=1,'1. Checklist & Certification'!$M$19=2),AO265>0,B265=\"\",I265>0,AQ265<I265,AV265<>\"Sec 8-Project\"),\"X\",IF(AND(OR('1. Checklist & Certification'!$M$20=4,'1. Checklist & Certification'!$M$21=5,'1. Checklist & Certification'!$M$22=7),AO265>0,B265=\"\",I265>0,K265<I265),\"X\",\"\"))","v":""},{"$f":"IF(A265=\"\",\"\",IF(SUMPRODUCT(-- (ISNUMBER(SEARCH({\"*AHSC*\",\"*FMTW*\",\"*FWHG*\",\"*GHI*\",\"*HHC*\",\"*HLCP*\",\"*HOME*\",\"*LPR*\",\"*MHP*\",\"*NHTF*\",\"*NSP*\",\"*PRP*\",\"*TOD*\",\"*VHHP*\"},'1. Checklist & Certification'!$L$7)))),\"MHP\",\"Legacy\"))","v":""},",,",null,null,null,{"$f":"IF('1. Checklist & Certification'!$M$20=4,\"Both\",IF(OR('1. Checklist & Certification'!$M$15>0,S265=\"CHRP-R\",U265=\"CHRP-R\",W265=\"CHRP-R\",Y265=\"CHRP-R\"),\"Under\",\"No\"))","v":"No"},"No","No",{"$f":"_xlfn.IFS(D265=\"\",\"\",D265=1,'MHP Family Income & Rent Limits'!$E$17,D265=2,'MHP Family Income & Rent Limits'!$F$17,D265=3,'MHP Family Income & Rent Limits'!$G$17,D265=4,'MHP Family Income & Rent Limits'!$H$17,D265=5,'MHP Family Income & Rent Limits'!$I$17,D265=6,'MHP Family Income & Rent Limits'!$J$17,D265=7,'MHP Family Income & Rent Limits'!$K$17,D265=8,'MHP Family Income & Rent Limits'!$L$17)","v":""},"",{"$f":"IF(OR(A265=0,B265=\"X\"),0,MIN(IF(AA265:AD265<>0,AA265:AD265)))","v":0},{"$f":"IF(OR(H265=\"\",I265=\"\"),0,IF(H265*0.3/12>I265,MIN(H265*0.3/12,I265*1.1)+AP265,I265*(1+(VLOOKUP('1. Checklist & Certification'!$F$9,'HLCP-E Rent Change'!$A$1:$D$59,4,FALSE)))+AP265))","v":0}]
[null,null,null,null,null,null,null,null,null,null,null,null,null,null,null,null,null,null,null,null,null,null,null,null,null,null,0,0,0,0,0,0,0,0,{"$f":"IF(OR(A266=0,B266=\"X\"),0,IF(OR(S266=\"FHDP\",S266=\"RHCP-B\",U266=\"FHDP\",U266=\"RHCP-B\",W266=\"FHDP\",W266=\"RHCP-B\",Y266=\"FHDP\",Y266=\"RHCP-B\"),TRUNC((MIN(I266,K266)*(1+'1. Checklist & Certification'!$K$43)+AP266)),0))","v":0},{"$f":"IF(OR(A266=0,B266=\"X\"),0,IF(OR(S266=\"CHRP-R\",S266=\"SERA\",S266=\"SUHRP\",U266=\"CHRP-R\",U266=\"SERA\",U266=\"SUHRP\",W266=\"CHRP-R\",W266=\"SERA\",W266=\"SUHRP\",Y266=\"CHRP-R\",Y266=\"SERA\",Y266=\"SUHRP\"),TRUNC((MIN(I266,K266)*(1+'1. Checklist & Certification'!$K$49))),0))","v":0},{"$f":"IF(OR(A266=0,B266=\"X\"),0,IF(OR(S266=\"CALDAP\",S266=\"DPRLP\",U266=\"CALDAP\",U266=\"DPRLP\",W266=\"CALDAP\",W266=\"DPRLP\",Y266=\"CALDAP\",Y266=\"DPRLP\"),TRUNC(((MIN(I266,K266))*(1+'1. Checklist & Certification'!$G$4))),0))","v":0},0,0,0,{"$f":"IF(OR(A266=0,B266=\"X\"),0,IF(OR(S266=\"PRP\",S266=\"LPR\",U266=\"PRP\",U266=\"LPR\",W266=\"PRP\",W266=\"LPR\",Y266=\"PRP\",Y266=\"LPR\"),MAX(I266+AP266,MIN(IF(AE266:AN266<>0,AE266:AN266))),MIN(IF(AE266:AN266<>0,AE266:AN266))))","v":0},{"$f":"IF(A266=0,0,IF(AND(OR(S266=\"Mgr\",S266=0),OR(U266=\"Mgr\",U266=0),OR(W266=\"Mgr\",W266=0)),0,IF(LEFT($A266,2)=\"B*\",VLOOKUP($E266,'1. Checklist & Certification'!$D$26:$E$32,2),IF(LEFT($A266,2)=\"C*\",VLOOKUP($E266,'1. Checklist & Certification'!$F$26:$G$32,2),IF(LEFT($A266,2)=\"D*\",VLOOKUP($E266,'1. Checklist & Certification'!$H$26:$I$32,2),IF(LEFT($A266,2)=\"E*\",VLOOKUP($E266,'1. Checklist & Certification'!$J$26:$K$32,2),VLOOKUP($E266,'1. Checklist & Certification'!$A$26:$B$32,2)))))))","v":0},0,0,null,null,null,null,"","",0,0,0,null,{"$f":"IF(A266=\"\",\"\",'1. Checklist & Certification'!$K$1)","v":""},{"$f":"IF(A266=\"\",\"\",'1. Checklist & Certification'!$C$62)","v":""},{"$f":"IF(A266=\"\",\"\",'1. Checklist & Certification'!$C$6)","v":""},{"$f":"IF(A266=\"\",\"\",'1. Checklist & Certification'!$G$5)","v":""},{"$f":"IFERROR(IF(A266=\"\",\"\",\n_xlfn.LET(_xlpm.Contract,'1. Checklist & Certification'!$C$7,\n_xlpm.Yr,TEXT(MOD(_xlfn.TEXTBEFORE(_xlpm.Contract,\"-\"),100),\"00\"),\n_xlpm.Program,_xlfn.TEXTAFTER(_xlfn.TEXTBEFORE(_xlpm.Contract,\"-\",2),\"-\"),\n_xlpm.CleanProgram,_xlfn.XLOOKUP(_xlpm.Program,SpellCheck[Input],SpellCheck[Correction],_xlpm.Program),\n_xlpm.Number,TEXT(_xlfn.TEXTAFTER(_xlpm.Contract,\"-\",2),\"0000\"),\n_xlfn.CONCAT(_xlpm.Yr,\"-\",_xlpm.CleanProgram,\"-\",_xlpm.Number))\n),\"\")","v":""},{"$f":"IFERROR(IF(A266=\"\",\"\",\n_xlfn.LET(_xlpm.Contract,'1. Checklist & Certification'!$C$8,\n_xlpm.Yr,TEXT(MOD(_xlfn.TEXTBEFORE(_xlpm.Contract,\"-\"),100),\"00\"),\n_xlpm.Program,_xlfn.TEXTAFTER(_xlfn.TEXTBEFORE(_xlpm.Contract,\"-\",2),\"-\"),\n_xlpm.CleanProgram,_xlfn.XLOOKUP(_xlpm.Program,SpellCheck[Input],SpellCheck[Correction],_xlpm.Program),\n_xlpm.Number,TEXT(_xlfn.TEXTAFTER(_xlpm.Contract,\"-\",2),\"0000\"),\n_xlfn.CONCAT(_xlpm.Yr,\"-\",_xlpm.CleanProgram,\"-\",_xlpm.Number))\n),\"\")","v":""},{"$f":"IFERROR(IF(A266=\"\",\"\",\n_xlfn.LET(_xlpm.Contract,'1. Checklist & Certification'!$F$7,\n_xlpm.Yr,TEXT(MOD(_xlfn.TEXTBEFORE(_xlpm.Contract,\"-\"),100),\"00\"),\n_xlpm.Program,_xlfn.TEXTAFTER(_xlfn.TEXTBEFORE(_xlpm.Contract,\"-\",2),\"-\"),\n_xlpm.CleanProgram,_xlfn.XLOOKUP(_xlpm.Program,SpellCheck[Input],SpellCheck[Correction],_xlpm.Program),\n_xlpm.Number,TEXT(_xlfn.TEXTAFTER(_xlpm.Contract,\"-\",2),\"0000\"),\n_xlfn.CONCAT(_xlpm.Yr,\"-\",_xlpm.CleanProgram,\"-\",_xlpm.Number))\n),\"\")","v":""},{"$f":"IFERROR(IF(A266=\"\",\"\",\n_xlfn.LET(_xlpm.Contract,'1. Checklist & Certification'!$F$8,\n_xlpm.Yr,TEXT(MOD(_xlfn.TEXTBEFORE(_xlpm.Contract,\"-\"),100),\"00\"),\n_xlpm.Program,_xlfn.TEXTAFTER(_xlfn.TEXTBEFORE(_xlpm.Contract,\"-\",2),\"-\"),\n_xlpm.CleanProgram,_xlfn.XLOOKUP(_xlpm.Program,SpellCheck[Input],SpellCheck[Correction],_xlpm.Program),\n_xlpm.Number,TEXT(_xlfn.TEXTAFTER(_xlpm.Contract,\"-\",2),\"0000\"),\n_xlfn.CONCAT(_xlpm.Yr,\"-\",_xlpm.CleanProgram,\"-\",_xlpm.Number))\n),\"\")","v":""},{"$f":"IF(A266=\"\",\"\",'1. Checklist & Certification'!$B$9)","v":""},{"$f":"IF(A266=\"\",\"\",'1. Checklist & Certification'!$F$9)","v":""},{"$f":"IF(A266=\"\",\"\",'1. Checklist & Certification'!$C$10)","v":""},{"$f":"IF(A266=\"\",\"\",'1. Checklist & Certification'!$C$11)","v":""},{"$f":"IF(A266=\"\",\"\",'1. Checklist & Certification'!$C$12)","v":""},{"$f":"IF(A266=\"\",\"\",'1. Checklist & Certification'!$B$14)","v":""},{"$f":"IF(A266=\"\",\"\",'1. Checklist & Certification'!$E$14)","v":""},{"$f":"IF(B266=\"\",\"\",'1. Checklist & Certification'!$G$14)","v":""},{"$f":"IF(A266=\"\",\"\",'MHP Family Income & Rent Limits'!$B$3)","v":""},{"$f":"IF(A266=\"\",\"\",'MHP Family Income & Rent Limits'!$J$3)","v":""},{"$f":"IF(A266=\"\",\"\",'MHP Family Income & Rent Limits'!$E$4)","v":""},{"$f":"IF(A266=\"\",\"\",'MHP Family Income & Rent Limits'!$C$7)","v":""},{"$f":"IF(A266=\"\",\"\",'MHP Family Income & Rent Limits'!$F$8)","v":""},{"$f":"IF(A266=\"\",\"\",'1. Checklist & Certification'!$G$4)","v":""},{"$f":"IF(A266=\"\",\"\",'1. Checklist & Certification'!$K$39)","v":""},{"$f":"IF(A266=\"\",\"\",'1. Checklist & Certification'!$K$43)","v":""},{"$f":"IF(A266=\"\",\"\",'1. Checklist & Certification'!$K$45)","v":""},{"$f":"IF(A266=\"\",\"\",'1. Checklist & Certification'!$K$49)","v":""},{"$f":"IF(A266=\"\",\"\",'1. Checklist & Certification'!$K$62)","v":""},{"$f":"IF(A266=\"\",\"\",'1. Checklist & Certification'!$E$66)","v":""},{"$f":"IF(A266=\"\",\"\",'1. Checklist & Certification'!$E$67)","v":""},{"$f":"IF(A266=\"\",\"\",'1. Checklist & Certification'!$E$68)","v":""},{"$f":"IF(A266=\"\",\"\",'1. Checklist & Certification'!$G$66)","v":""},{"$f":"IF(A266=\"\",\"\",'1. Checklist & Certification'!$H$66)","v":""},{"$f":"IF(A266=\"\",\"\",'1. Checklist & Certification'!$I$66)","v":""},{"$f":"IF(A266=\"\",\"\",'1. Checklist & Certification'!$I$67)","v":""},{"$f":"IF(A266=\"\",\"\",'1. Checklist & Certification'!$I$68)","v":""},{"$f":"IF(A266=\"\",\"\",'1. Checklist & Certification'!$B$69)","v":""},{"$f":"IF(A266=\"\",\"\",'1. Checklist & Certification'!$C$69)","v":""},{"$f":"IF(A266=\"\",\"\",'1. Checklist & Certification'!$F$69)","v":""},{"$f":"IF(A266=\"\",\"\",'1. Checklist & Certification'!$G$69)","v":""},{"$f":"IF(A266=\"\",\"\",'1. Checklist & Certification'!$J$69)","v":""},{"$f":"IF(A266=\"\",\"\",'1. Checklist & Certification'!$K$69)","v":""},null,null,{"$f":"IF(AND(OR('1. Checklist & Certification'!$M$16=1,'1. Checklist & Certification'!$M$19=2),AO266>0,B266=\"\",I266>0,AQ266<I266,AV266<>\"Sec 8-Project\"),\"X\",IF(AND(OR('1. Checklist & Certification'!$M$20=4,'1. Checklist & Certification'!$M$21=5,'1. Checklist & Certification'!$M$22=7),AO266>0,B266=\"\",I266>0,K266<I266),\"X\",\"\"))","v":""},{"$f":"IF(A266=\"\",\"\",IF(SUMPRODUCT(-- (ISNUMBER(SEARCH({\"*AHSC*\",\"*FMTW*\",\"*FWHG*\",\"*GHI*\",\"*HHC*\",\"*HLCP*\",\"*HOME*\",\"*LPR*\",\"*MHP*\",\"*NHTF*\",\"*NSP*\",\"*PRP*\",\"*TOD*\",\"*VHHP*\"},'1. Checklist & Certification'!$L$7)))),\"MHP\",\"Legacy\"))","v":""},",,",null,null,null,{"$f":"IF('1. Checklist & Certification'!$M$20=4,\"Both\",IF(OR('1. Checklist & Certification'!$M$15>0,S266=\"CHRP-R\",U266=\"CHRP-R\",W266=\"CHRP-R\",Y266=\"CHRP-R\"),\"Under\",\"No\"))","v":"No"},"No","No",{"$f":"_xlfn.IFS(D266=\"\",\"\",D266=1,'MHP Family Income & Rent Limits'!$E$17,D266=2,'MHP Family Income & Rent Limits'!$F$17,D266=3,'MHP Family Income & Rent Limits'!$G$17,D266=4,'MHP Family Income & Rent Limits'!$H$17,D266=5,'MHP Family Income & Rent Limits'!$I$17,D266=6,'MHP Family Income & Rent Limits'!$J$17,D266=7,'MHP Family Income & Rent Limits'!$K$17,D266=8,'MHP Family Income & Rent Limits'!$L$17)","v":""},"",{"$f":"IF(OR(A266=0,B266=\"X\"),0,MIN(IF(AA266:AD266<>0,AA266:AD266)))","v":0},{"$f":"IF(OR(H266=\"\",I266=\"\"),0,IF(H266*0.3/12>I266,MIN(H266*0.3/12,I266*1.1)+AP266,I266*(1+(VLOOKUP('1. Checklist & Certification'!$F$9,'HLCP-E Rent Change'!$A$1:$D$59,4,FALSE)))+AP266))","v":0}]
[null,null,null,null,null,null,null,null,null,null,null,null,null,null,null,null,null,null,null,null,null,null,null,null,null,null,0,0,0,0,0,0,0,0,{"$f":"IF(OR(A267=0,B267=\"X\"),0,IF(OR(S267=\"FHDP\",S267=\"RHCP-B\",U267=\"FHDP\",U267=\"RHCP-B\",W267=\"FHDP\",W267=\"RHCP-B\",Y267=\"FHDP\",Y267=\"RHCP-B\"),TRUNC((MIN(I267,K267)*(1+'1. Checklist & Certification'!$K$43)+AP267)),0))","v":0},{"$f":"IF(OR(A267=0,B267=\"X\"),0,IF(OR(S267=\"CHRP-R\",S267=\"SERA\",S267=\"SUHRP\",U267=\"CHRP-R\",U267=\"SERA\",U267=\"SUHRP\",W267=\"CHRP-R\",W267=\"SERA\",W267=\"SUHRP\",Y267=\"CHRP-R\",Y267=\"SERA\",Y267=\"SUHRP\"),TRUNC((MIN(I267,K267)*(1+'1. Checklist & Certification'!$K$49))),0))","v":0},{"$f":"IF(OR(A267=0,B267=\"X\"),0,IF(OR(S267=\"CALDAP\",S267=\"DPRLP\",U267=\"CALDAP\",U267=\"DPRLP\",W267=\"CALDAP\",W267=\"DPRLP\",Y267=\"CALDAP\",Y267=\"DPRLP\"),TRUNC(((MIN(I267,K267))*(1+'1. Checklist & Certification'!$G$4))),0))","v":0},0,0,0,{"$f":"IF(OR(A267=0,B267=\"X\"),0,IF(OR(S267=\"PRP\",S267=\"LPR\",U267=\"PRP\",U267=\"LPR\",W267=\"PRP\",W267=\"LPR\",Y267=\"PRP\",Y267=\"LPR\"),MAX(I267+AP267,MIN(IF(AE267:AN267<>0,AE267:AN267))),MIN(IF(AE267:AN267<>0,AE267:AN267))))","v":0},{"$f":"IF(A267=0,0,IF(AND(OR(S267=\"Mgr\",S267=0),OR(U267=\"Mgr\",U267=0),OR(W267=\"Mgr\",W267=0)),0,IF(LEFT($A267,2)=\"B*\",VLOOKUP($E267,'1. Checklist & Certification'!$D$26:$E$32,2),IF(LEFT($A267,2)=\"C*\",VLOOKUP($E267,'1. Checklist & Certification'!$F$26:$G$32,2),IF(LEFT($A267,2)=\"D*\",VLOOKUP($E267,'1. Checklist & Certification'!$H$26:$I$32,2),IF(LEFT($A267,2)=\"E*\",VLOOKUP($E267,'1. Checklist & Certification'!$J$26:$K$32,2),VLOOKUP($E267,'1. Checklist & Certification'!$A$26:$B$32,2)))))))","v":0},0,0,null,null,null,null,"","",0,0,0,null,{"$f":"IF(A267=\"\",\"\",'1. Checklist & Certification'!$K$1)","v":""},{"$f":"IF(A267=\"\",\"\",'1. Checklist & Certification'!$C$62)","v":""},{"$f":"IF(A267=\"\",\"\",'1. Checklist & Certification'!$C$6)","v":""},{"$f":"IF(A267=\"\",\"\",'1. Checklist & Certification'!$G$5)","v":""},{"$f":"IFERROR(IF(A267=\"\",\"\",\n_xlfn.LET(_xlpm.Contract,'1. Checklist & Certification'!$C$7,\n_xlpm.Yr,TEXT(MOD(_xlfn.TEXTBEFORE(_xlpm.Contract,\"-\"),100),\"00\"),\n_xlpm.Program,_xlfn.TEXTAFTER(_xlfn.TEXTBEFORE(_xlpm.Contract,\"-\",2),\"-\"),\n_xlpm.CleanProgram,_xlfn.XLOOKUP(_xlpm.Program,SpellCheck[Input],SpellCheck[Correction],_xlpm.Program),\n_xlpm.Number,TEXT(_xlfn.TEXTAFTER(_xlpm.Contract,\"-\",2),\"0000\"),\n_xlfn.CONCAT(_xlpm.Yr,\"-\",_xlpm.CleanProgram,\"-\",_xlpm.Number))\n),\"\")","v":""},{"$f":"IFERROR(IF(A267=\"\",\"\",\n_xlfn.LET(_xlpm.Contract,'1. Checklist & Certification'!$C$8,\n_xlpm.Yr,TEXT(MOD(_xlfn.TEXTBEFORE(_xlpm.Contract,\"-\"),100),\"00\"),\n_xlpm.Program,_xlfn.TEXTAFTER(_xlfn.TEXTBEFORE(_xlpm.Contract,\"-\",2),\"-\"),\n_xlpm.CleanProgram,_xlfn.XLOOKUP(_xlpm.Program,SpellCheck[Input],SpellCheck[Correction],_xlpm.Program),\n_xlpm.Number,TEXT(_xlfn.TEXTAFTER(_xlpm.Contract,\"-\",2),\"0000\"),\n_xlfn.CONCAT(_xlpm.Yr,\"-\",_xlpm.CleanProgram,\"-\",_xlpm.Number))\n),\"\")","v":""},{"$f":"IFERROR(IF(A267=\"\",\"\",\n_xlfn.LET(_xlpm.Contract,'1. Checklist & Certification'!$F$7,\n_xlpm.Yr,TEXT(MOD(_xlfn.TEXTBEFORE(_xlpm.Contract,\"-\"),100),\"00\"),\n_xlpm.Program,_xlfn.TEXTAFTER(_xlfn.TEXTBEFORE(_xlpm.Contract,\"-\",2),\"-\"),\n_xlpm.CleanProgram,_xlfn.XLOOKUP(_xlpm.Program,SpellCheck[Input],SpellCheck[Correction],_xlpm.Program),\n_xlpm.Number,TEXT(_xlfn.TEXTAFTER(_xlpm.Contract,\"-\",2),\"0000\"),\n_xlfn.CONCAT(_xlpm.Yr,\"-\",_xlpm.CleanProgram,\"-\",_xlpm.Number))\n),\"\")","v":""},{"$f":"IFERROR(IF(A267=\"\",\"\",\n_xlfn.LET(_xlpm.Contract,'1. Checklist & Certification'!$F$8,\n_xlpm.Yr,TEXT(MOD(_xlfn.TEXTBEFORE(_xlpm.Contract,\"-\"),100),\"00\"),\n_xlpm.Program,_xlfn.TEXTAFTER(_xlfn.TEXTBEFORE(_xlpm.Contract,\"-\",2),\"-\"),\n_xlpm.CleanProgram,_xlfn.XLOOKUP(_xlpm.Program,SpellCheck[Input],SpellCheck[Correction],_xlpm.Program),\n_xlpm.Number,TEXT(_xlfn.TEXTAFTER(_xlpm.Contract,\"-\",2),\"0000\"),\n_xlfn.CONCAT(_xlpm.Yr,\"-\",_xlpm.CleanProgram,\"-\",_xlpm.Number))\n),\"\")","v":""},{"$f":"IF(A267=\"\",\"\",'1. Checklist & Certification'!$B$9)","v":""},{"$f":"IF(A267=\"\",\"\",'1. Checklist & Certification'!$F$9)","v":""},{"$f":"IF(A267=\"\",\"\",'1. Checklist & Certification'!$C$10)","v":""},{"$f":"IF(A267=\"\",\"\",'1. Checklist & Certification'!$C$11)","v":""},{"$f":"IF(A267=\"\",\"\",'1. Checklist & Certification'!$C$12)","v":""},{"$f":"IF(A267=\"\",\"\",'1. Checklist & Certification'!$B$14)","v":""},{"$f":"IF(A267=\"\",\"\",'1. Checklist & Certification'!$E$14)","v":""},{"$f":"IF(B267=\"\",\"\",'1. Checklist & Certification'!$G$14)","v":""},{"$f":"IF(A267=\"\",\"\",'MHP Family Income & Rent Limits'!$B$3)","v":""},{"$f":"IF(A267=\"\",\"\",'MHP Family Income & Rent Limits'!$J$3)","v":""},{"$f":"IF(A267=\"\",\"\",'MHP Family Income & Rent Limits'!$E$4)","v":""},{"$f":"IF(A267=\"\",\"\",'MHP Family Income & Rent Limits'!$C$7)","v":""},{"$f":"IF(A267=\"\",\"\",'MHP Family Income & Rent Limits'!$F$8)","v":""},{"$f":"IF(A267=\"\",\"\",'1. Checklist & Certification'!$G$4)","v":""},{"$f":"IF(A267=\"\",\"\",'1. Checklist & Certification'!$K$39)","v":""},{"$f":"IF(A267=\"\",\"\",'1. Checklist & Certification'!$K$43)","v":""},{"$f":"IF(A267=\"\",\"\",'1. Checklist & Certification'!$K$45)","v":""},{"$f":"IF(A267=\"\",\"\",'1. Checklist & Certification'!$K$49)","v":""},{"$f":"IF(A267=\"\",\"\",'1. Checklist & Certification'!$K$62)","v":""},{"$f":"IF(A267=\"\",\"\",'1. Checklist & Certification'!$E$66)","v":""},{"$f":"IF(A267=\"\",\"\",'1. Checklist & Certification'!$E$67)","v":""},{"$f":"IF(A267=\"\",\"\",'1. Checklist & Certification'!$E$68)","v":""},{"$f":"IF(A267=\"\",\"\",'1. Checklist & Certification'!$G$66)","v":""},{"$f":"IF(A267=\"\",\"\",'1. Checklist & Certification'!$H$66)","v":""},{"$f":"IF(A267=\"\",\"\",'1. Checklist & Certification'!$I$66)","v":""},{"$f":"IF(A267=\"\",\"\",'1. Checklist & Certification'!$I$67)","v":""},{"$f":"IF(A267=\"\",\"\",'1. Checklist & Certification'!$I$68)","v":""},{"$f":"IF(A267=\"\",\"\",'1. Checklist & Certification'!$B$69)","v":""},{"$f":"IF(A267=\"\",\"\",'1. Checklist & Certification'!$C$69)","v":""},{"$f":"IF(A267=\"\",\"\",'1. Checklist & Certification'!$F$69)","v":""},{"$f":"IF(A267=\"\",\"\",'1. Checklist & Certification'!$G$69)","v":""},{"$f":"IF(A267=\"\",\"\",'1. Checklist & Certification'!$J$69)","v":""},{"$f":"IF(A267=\"\",\"\",'1. Checklist & Certification'!$K$69)","v":""},null,null,{"$f":"IF(AND(OR('1. Checklist & Certification'!$M$16=1,'1. Checklist & Certification'!$M$19=2),AO267>0,B267=\"\",I267>0,AQ267<I267,AV267<>\"Sec 8-Project\"),\"X\",IF(AND(OR('1. Checklist & Certification'!$M$20=4,'1. Checklist & Certification'!$M$21=5,'1. Checklist & Certification'!$M$22=7),AO267>0,B267=\"\",I267>0,K267<I267),\"X\",\"\"))","v":""},{"$f":"IF(A267=\"\",\"\",IF(SUMPRODUCT(-- (ISNUMBER(SEARCH({\"*AHSC*\",\"*FMTW*\",\"*FWHG*\",\"*GHI*\",\"*HHC*\",\"*HLCP*\",\"*HOME*\",\"*LPR*\",\"*MHP*\",\"*NHTF*\",\"*NSP*\",\"*PRP*\",\"*TOD*\",\"*VHHP*\"},'1. Checklist & Certification'!$L$7)))),\"MHP\",\"Legacy\"))","v":""},",,",null,null,null,{"$f":"IF('1. Checklist & Certification'!$M$20=4,\"Both\",IF(OR('1. Checklist & Certification'!$M$15>0,S267=\"CHRP-R\",U267=\"CHRP-R\",W267=\"CHRP-R\",Y267=\"CHRP-R\"),\"Under\",\"No\"))","v":"No"},"No","No",{"$f":"_xlfn.IFS(D267=\"\",\"\",D267=1,'MHP Family Income & Rent Limits'!$E$17,D267=2,'MHP Family Income & Rent Limits'!$F$17,D267=3,'MHP Family Income & Rent Limits'!$G$17,D267=4,'MHP Family Income & Rent Limits'!$H$17,D267=5,'MHP Family Income & Rent Limits'!$I$17,D267=6,'MHP Family Income & Rent Limits'!$J$17,D267=7,'MHP Family Income & Rent Limits'!$K$17,D267=8,'MHP Family Income & Rent Limits'!$L$17)","v":""},"",{"$f":"IF(OR(A267=0,B267=\"X\"),0,MIN(IF(AA267:AD267<>0,AA267:AD267)))","v":0},{"$f":"IF(OR(H267=\"\",I267=\"\"),0,IF(H267*0.3/12>I267,MIN(H267*0.3/12,I267*1.1)+AP267,I267*(1+(VLOOKUP('1. Checklist & Certification'!$F$9,'HLCP-E Rent Change'!$A$1:$D$59,4,FALSE)))+AP267))","v":0}]
[null,null,null,null,null,null,null,null,null,null,null,null,null,null,null,null,null,null,null,null,null,null,null,null,null,null,0,0,0,0,0,0,0,0,{"$f":"IF(OR(A268=0,B268=\"X\"),0,IF(OR(S268=\"FHDP\",S268=\"RHCP-B\",U268=\"FHDP\",U268=\"RHCP-B\",W268=\"FHDP\",W268=\"RHCP-B\",Y268=\"FHDP\",Y268=\"RHCP-B\"),TRUNC((MIN(I268,K268)*(1+'1. Checklist & Certification'!$K$43)+AP268)),0))","v":0},{"$f":"IF(OR(A268=0,B268=\"X\"),0,IF(OR(S268=\"CHRP-R\",S268=\"SERA\",S268=\"SUHRP\",U268=\"CHRP-R\",U268=\"SERA\",U268=\"SUHRP\",W268=\"CHRP-R\",W268=\"SERA\",W268=\"SUHRP\",Y268=\"CHRP-R\",Y268=\"SERA\",Y268=\"SUHRP\"),TRUNC((MIN(I268,K268)*(1+'1. Checklist & Certification'!$K$49))),0))","v":0},{"$f":"IF(OR(A268=0,B268=\"X\"),0,IF(OR(S268=\"CALDAP\",S268=\"DPRLP\",U268=\"CALDAP\",U268=\"DPRLP\",W268=\"CALDAP\",W268=\"DPRLP\",Y268=\"CALDAP\",Y268=\"DPRLP\"),TRUNC(((MIN(I268,K268))*(1+'1. Checklist & Certification'!$G$4))),0))","v":0},0,0,0,{"$f":"IF(OR(A268=0,B268=\"X\"),0,IF(OR(S268=\"PRP\",S268=\"LPR\",U268=\"PRP\",U268=\"LPR\",W268=\"PRP\",W268=\"LPR\",Y268=\"PRP\",Y268=\"LPR\"),MAX(I268+AP268,MIN(IF(AE268:AN268<>0,AE268:AN268))),MIN(IF(AE268:AN268<>0,AE268:AN268))))","v":0},{"$f":"IF(A268=0,0,IF(AND(OR(S268=\"Mgr\",S268=0),OR(U268=\"Mgr\",U268=0),OR(W268=\"Mgr\",W268=0)),0,IF(LEFT($A268,2)=\"B*\",VLOOKUP($E268,'1. Checklist & Certification'!$D$26:$E$32,2),IF(LEFT($A268,2)=\"C*\",VLOOKUP($E268,'1. Checklist & Certification'!$F$26:$G$32,2),IF(LEFT($A268,2)=\"D*\",VLOOKUP($E268,'1. Checklist & Certification'!$H$26:$I$32,2),IF(LEFT($A268,2)=\"E*\",VLOOKUP($E268,'1. Checklist & Certification'!$J$26:$K$32,2),VLOOKUP($E268,'1. Checklist & Certification'!$A$26:$B$32,2)))))))","v":0},0,0,null,null,null,null,"","",0,0,0,null,{"$f":"IF(A268=\"\",\"\",'1. Checklist & Certification'!$K$1)","v":""},{"$f":"IF(A268=\"\",\"\",'1. Checklist & Certification'!$C$62)","v":""},{"$f":"IF(A268=\"\",\"\",'1. Checklist & Certification'!$C$6)","v":""},{"$f":"IF(A268=\"\",\"\",'1. Checklist & Certification'!$G$5)","v":""},{"$f":"IFERROR(IF(A268=\"\",\"\",\n_xlfn.LET(_xlpm.Contract,'1. Checklist & Certification'!$C$7,\n_xlpm.Yr,TEXT(MOD(_xlfn.TEXTBEFORE(_xlpm.Contract,\"-\"),100),\"00\"),\n_xlpm.Program,_xlfn.TEXTAFTER(_xlfn.TEXTBEFORE(_xlpm.Contract,\"-\",2),\"-\"),\n_xlpm.CleanProgram,_xlfn.XLOOKUP(_xlpm.Program,SpellCheck[Input],SpellCheck[Correction],_xlpm.Program),\n_xlpm.Number,TEXT(_xlfn.TEXTAFTER(_xlpm.Contract,\"-\",2),\"0000\"),\n_xlfn.CONCAT(_xlpm.Yr,\"-\",_xlpm.CleanProgram,\"-\",_xlpm.Number))\n),\"\")","v":""},{"$f":"IFERROR(IF(A268=\"\",\"\",\n_xlfn.LET(_xlpm.Contract,'1. Checklist & Certification'!$C$8,\n_xlpm.Yr,TEXT(MOD(_xlfn.TEXTBEFORE(_xlpm.Contract,\"-\"),100),\"00\"),\n_xlpm.Program,_xlfn.TEXTAFTER(_xlfn.TEXTBEFORE(_xlpm.Contract,\"-\",2),\"-\"),\n_xlpm.CleanProgram,_xlfn.XLOOKUP(_xlpm.Program,SpellCheck[Input],SpellCheck[Correction],_xlpm.Program),\n_xlpm.Number,TEXT(_xlfn.TEXTAFTER(_xlpm.Contract,\"-\",2),\"0000\"),\n_xlfn.CONCAT(_xlpm.Yr,\"-\",_xlpm.CleanProgram,\"-\",_xlpm.Number))\n),\"\")","v":""},{"$f":"IFERROR(IF(A268=\"\",\"\",\n_xlfn.LET(_xlpm.Contract,'1. Checklist & Certification'!$F$7,\n_xlpm.Yr,TEXT(MOD(_xlfn.TEXTBEFORE(_xlpm.Contract,\"-\"),100),\"00\"),\n_xlpm.Program,_xlfn.TEXTAFTER(_xlfn.TEXTBEFORE(_xlpm.Contract,\"-\",2),\"-\"),\n_xlpm.CleanProgram,_xlfn.XLOOKUP(_xlpm.Program,SpellCheck[Input],SpellCheck[Correction],_xlpm.Program),\n_xlpm.Number,TEXT(_xlfn.TEXTAFTER(_xlpm.Contract,\"-\",2),\"0000\"),\n_xlfn.CONCAT(_xlpm.Yr,\"-\",_xlpm.CleanProgram,\"-\",_xlpm.Number))\n),\"\")","v":""},{"$f":"IFERROR(IF(A268=\"\",\"\",\n_xlfn.LET(_xlpm.Contract,'1. Checklist & Certification'!$F$8,\n_xlpm.Yr,TEXT(MOD(_xlfn.TEXTBEFORE(_xlpm.Contract,\"-\"),100),\"00\"),\n_xlpm.Program,_xlfn.TEXTAFTER(_xlfn.TEXTBEFORE(_xlpm.Contract,\"-\",2),\"-\"),\n_xlpm.CleanProgram,_xlfn.XLOOKUP(_xlpm.Program,SpellCheck[Input],SpellCheck[Correction],_xlpm.Program),\n_xlpm.Number,TEXT(_xlfn.TEXTAFTER(_xlpm.Contract,\"-\",2),\"0000\"),\n_xlfn.CONCAT(_xlpm.Yr,\"-\",_xlpm.CleanProgram,\"-\",_xlpm.Number))\n),\"\")","v":""},{"$f":"IF(A268=\"\",\"\",'1. Checklist & Certification'!$B$9)","v":""},{"$f":"IF(A268=\"\",\"\",'1. Checklist & Certification'!$F$9)","v":""},{"$f":"IF(A268=\"\",\"\",'1. Checklist & Certification'!$C$10)","v":""},{"$f":"IF(A268=\"\",\"\",'1. Checklist & Certification'!$C$11)","v":""},{"$f":"IF(A268=\"\",\"\",'1. Checklist & Certification'!$C$12)","v":""},{"$f":"IF(A268=\"\",\"\",'1. Checklist & Certification'!$B$14)","v":""},{"$f":"IF(A268=\"\",\"\",'1. Checklist & Certification'!$E$14)","v":""},{"$f":"IF(B268=\"\",\"\",'1. Checklist & Certification'!$G$14)","v":""},{"$f":"IF(A268=\"\",\"\",'MHP Family Income & Rent Limits'!$B$3)","v":""},{"$f":"IF(A268=\"\",\"\",'MHP Family Income & Rent Limits'!$J$3)","v":""},{"$f":"IF(A268=\"\",\"\",'MHP Family Income & Rent Limits'!$E$4)","v":""},{"$f":"IF(A268=\"\",\"\",'MHP Family Income & Rent Limits'!$C$7)","v":""},{"$f":"IF(A268=\"\",\"\",'MHP Family Income & Rent Limits'!$F$8)","v":""},{"$f":"IF(A268=\"\",\"\",'1. Checklist & Certification'!$G$4)","v":""},{"$f":"IF(A268=\"\",\"\",'1. Checklist & Certification'!$K$39)","v":""},{"$f":"IF(A268=\"\",\"\",'1. Checklist & Certification'!$K$43)","v":""},{"$f":"IF(A268=\"\",\"\",'1. Checklist & Certification'!$K$45)","v":""},{"$f":"IF(A268=\"\",\"\",'1. Checklist & Certification'!$K$49)","v":""},{"$f":"IF(A268=\"\",\"\",'1. Checklist & Certification'!$K$62)","v":""},{"$f":"IF(A268=\"\",\"\",'1. Checklist & Certification'!$E$66)","v":""},{"$f":"IF(A268=\"\",\"\",'1. Checklist & Certification'!$E$67)","v":""},{"$f":"IF(A268=\"\",\"\",'1. Checklist & Certification'!$E$68)","v":""},{"$f":"IF(A268=\"\",\"\",'1. Checklist & Certification'!$G$66)","v":""},{"$f":"IF(A268=\"\",\"\",'1. Checklist & Certification'!$H$66)","v":""},{"$f":"IF(A268=\"\",\"\",'1. Checklist & Certification'!$I$66)","v":""},{"$f":"IF(A268=\"\",\"\",'1. Checklist & Certification'!$I$67)","v":""},{"$f":"IF(A268=\"\",\"\",'1. Checklist & Certification'!$I$68)","v":""},{"$f":"IF(A268=\"\",\"\",'1. Checklist & Certification'!$B$69)","v":""},{"$f":"IF(A268=\"\",\"\",'1. Checklist & Certification'!$C$69)","v":""},{"$f":"IF(A268=\"\",\"\",'1. Checklist & Certification'!$F$69)","v":""},{"$f":"IF(A268=\"\",\"\",'1. Checklist & Certification'!$G$69)","v":""},{"$f":"IF(A268=\"\",\"\",'1. Checklist & Certification'!$J$69)","v":""},{"$f":"IF(A268=\"\",\"\",'1. Checklist & Certification'!$K$69)","v":""},null,null,{"$f":"IF(AND(OR('1. Checklist & Certification'!$M$16=1,'1. Checklist & Certification'!$M$19=2),AO268>0,B268=\"\",I268>0,AQ268<I268,AV268<>\"Sec 8-Project\"),\"X\",IF(AND(OR('1. Checklist & Certification'!$M$20=4,'1. Checklist & Certification'!$M$21=5,'1. Checklist & Certification'!$M$22=7),AO268>0,B268=\"\",I268>0,K268<I268),\"X\",\"\"))","v":""},{"$f":"IF(A268=\"\",\"\",IF(SUMPRODUCT(-- (ISNUMBER(SEARCH({\"*AHSC*\",\"*FMTW*\",\"*FWHG*\",\"*GHI*\",\"*HHC*\",\"*HLCP*\",\"*HOME*\",\"*LPR*\",\"*MHP*\",\"*NHTF*\",\"*NSP*\",\"*PRP*\",\"*TOD*\",\"*VHHP*\"},'1. Checklist & Certification'!$L$7)))),\"MHP\",\"Legacy\"))","v":""},",,",null,null,null,{"$f":"IF('1. Checklist & Certification'!$M$20=4,\"Both\",IF(OR('1. Checklist & Certification'!$M$15>0,S268=\"CHRP-R\",U268=\"CHRP-R\",W268=\"CHRP-R\",Y268=\"CHRP-R\"),\"Under\",\"No\"))","v":"No"},"No","No",{"$f":"_xlfn.IFS(D268=\"\",\"\",D268=1,'MHP Family Income & Rent Limits'!$E$17,D268=2,'MHP Family Income & Rent Limits'!$F$17,D268=3,'MHP Family Income & Rent Limits'!$G$17,D268=4,'MHP Family Income & Rent Limits'!$H$17,D268=5,'MHP Family Income & Rent Limits'!$I$17,D268=6,'MHP Family Income & Rent Limits'!$J$17,D268=7,'MHP Family Income & Rent Limits'!$K$17,D268=8,'MHP Family Income & Rent Limits'!$L$17)","v":""},"",{"$f":"IF(OR(A268=0,B268=\"X\"),0,MIN(IF(AA268:AD268<>0,AA268:AD268)))","v":0},{"$f":"IF(OR(H268=\"\",I268=\"\"),0,IF(H268*0.3/12>I268,MIN(H268*0.3/12,I268*1.1)+AP268,I268*(1+(VLOOKUP('1. Checklist & Certification'!$F$9,'HLCP-E Rent Change'!$A$1:$D$59,4,FALSE)))+AP268))","v":0}]
[null,null,null,null,null,null,null,null,null,null,null,null,null,null,null,null,null,null,null,null,null,null,null,null,null,null,0,0,0,0,0,0,0,0,{"$f":"IF(OR(A269=0,B269=\"X\"),0,IF(OR(S269=\"FHDP\",S269=\"RHCP-B\",U269=\"FHDP\",U269=\"RHCP-B\",W269=\"FHDP\",W269=\"RHCP-B\",Y269=\"FHDP\",Y269=\"RHCP-B\"),TRUNC((MIN(I269,K269)*(1+'1. Checklist & Certification'!$K$43)+AP269)),0))","v":0},{"$f":"IF(OR(A269=0,B269=\"X\"),0,IF(OR(S269=\"CHRP-R\",S269=\"SERA\",S269=\"SUHRP\",U269=\"CHRP-R\",U269=\"SERA\",U269=\"SUHRP\",W269=\"CHRP-R\",W269=\"SERA\",W269=\"SUHRP\",Y269=\"CHRP-R\",Y269=\"SERA\",Y269=\"SUHRP\"),TRUNC((MIN(I269,K269)*(1+'1. Checklist & Certification'!$K$49))),0))","v":0},{"$f":"IF(OR(A269=0,B269=\"X\"),0,IF(OR(S269=\"CALDAP\",S269=\"DPRLP\",U269=\"CALDAP\",U269=\"DPRLP\",W269=\"CALDAP\",W269=\"DPRLP\",Y269=\"CALDAP\",Y269=\"DPRLP\"),TRUNC(((MIN(I269,K269))*(1+'1. Checklist & Certification'!$G$4))),0))","v":0},0,0,0,{"$f":"IF(OR(A269=0,B269=\"X\"),0,IF(OR(S269=\"PRP\",S269=\"LPR\",U269=\"PRP\",U269=\"LPR\",W269=\"PRP\",W269=\"LPR\",Y269=\"PRP\",Y269=\"LPR\"),MAX(I269+AP269,MIN(IF(AE269:AN269<>0,AE269:AN269))),MIN(IF(AE269:AN269<>0,AE269:AN269))))","v":0},{"$f":"IF(A269=0,0,IF(AND(OR(S269=\"Mgr\",S269=0),OR(U269=\"Mgr\",U269=0),OR(W269=\"Mgr\",W269=0)),0,IF(LEFT($A269,2)=\"B*\",VLOOKUP($E269,'1. Checklist & Certification'!$D$26:$E$32,2),IF(LEFT($A269,2)=\"C*\",VLOOKUP($E269,'1. Checklist & Certification'!$F$26:$G$32,2),IF(LEFT($A269,2)=\"D*\",VLOOKUP($E269,'1. Checklist & Certification'!$H$26:$I$32,2),IF(LEFT($A269,2)=\"E*\",VLOOKUP($E269,'1. Checklist & Certification'!$J$26:$K$32,2),VLOOKUP($E269,'1. Checklist & Certification'!$A$26:$B$32,2)))))))","v":0},0,0,null,null,null,null,"","",0,0,0,null,{"$f":"IF(A269=\"\",\"\",'1. Checklist & Certification'!$K$1)","v":""},{"$f":"IF(A269=\"\",\"\",'1. Checklist & Certification'!$C$62)","v":""},{"$f":"IF(A269=\"\",\"\",'1. Checklist & Certification'!$C$6)","v":""},{"$f":"IF(A269=\"\",\"\",'1. Checklist & Certification'!$G$5)","v":""},{"$f":"IFERROR(IF(A269=\"\",\"\",\n_xlfn.LET(_xlpm.Contract,'1. Checklist & Certification'!$C$7,\n_xlpm.Yr,TEXT(MOD(_xlfn.TEXTBEFORE(_xlpm.Contract,\"-\"),100),\"00\"),\n_xlpm.Program,_xlfn.TEXTAFTER(_xlfn.TEXTBEFORE(_xlpm.Contract,\"-\",2),\"-\"),\n_xlpm.CleanProgram,_xlfn.XLOOKUP(_xlpm.Program,SpellCheck[Input],SpellCheck[Correction],_xlpm.Program),\n_xlpm.Number,TEXT(_xlfn.TEXTAFTER(_xlpm.Contract,\"-\",2),\"0000\"),\n_xlfn.CONCAT(_xlpm.Yr,\"-\",_xlpm.CleanProgram,\"-\",_xlpm.Number))\n),\"\")","v":""},{"$f":"IFERROR(IF(A269=\"\",\"\",\n_xlfn.LET(_xlpm.Contract,'1. Checklist & Certification'!$C$8,\n_xlpm.Yr,TEXT(MOD(_xlfn.TEXTBEFORE(_xlpm.Contract,\"-\"),100),\"00\"),\n_xlpm.Program,_xlfn.TEXTAFTER(_xlfn.TEXTBEFORE(_xlpm.Contract,\"-\",2),\"-\"),\n_xlpm.CleanProgram,_xlfn.XLOOKUP(_xlpm.Program,SpellCheck[Input],SpellCheck[Correction],_xlpm.Program),\n_xlpm.Number,TEXT(_xlfn.TEXTAFTER(_xlpm.Contract,\"-\",2),\"0000\"),\n_xlfn.CONCAT(_xlpm.Yr,\"-\",_xlpm.CleanProgram,\"-\",_xlpm.Number))\n),\"\")","v":""},{"$f":"IFERROR(IF(A269=\"\",\"\",\n_xlfn.LET(_xlpm.Contract,'1. Checklist & Certification'!$F$7,\n_xlpm.Yr,TEXT(MOD(_xlfn.TEXTBEFORE(_xlpm.Contract,\"-\"),100),\"00\"),\n_xlpm.Program,_xlfn.TEXTAFTER(_xlfn.TEXTBEFORE(_xlpm.Contract,\"-\",2),\"-\"),\n_xlpm.CleanProgram,_xlfn.XLOOKUP(_xlpm.Program,SpellCheck[Input],SpellCheck[Correction],_xlpm.Program),\n_xlpm.Number,TEXT(_xlfn.TEXTAFTER(_xlpm.Contract,\"-\",2),\"0000\"),\n_xlfn.CONCAT(_xlpm.Yr,\"-\",_xlpm.CleanProgram,\"-\",_xlpm.Number))\n),\"\")","v":""},{"$f":"IFERROR(IF(A269=\"\",\"\",\n_xlfn.LET(_xlpm.Contract,'1. Checklist & Certification'!$F$8,\n_xlpm.Yr,TEXT(MOD(_xlfn.TEXTBEFORE(_xlpm.Contract,\"-\"),100),\"00\"),\n_xlpm.Program,_xlfn.TEXTAFTER(_xlfn.TEXTBEFORE(_xlpm.Contract,\"-\",2),\"-\"),\n_xlpm.CleanProgram,_xlfn.XLOOKUP(_xlpm.Program,SpellCheck[Input],SpellCheck[Correction],_xlpm.Program),\n_xlpm.Number,TEXT(_xlfn.TEXTAFTER(_xlpm.Contract,\"-\",2),\"0000\"),\n_xlfn.CONCAT(_xlpm.Yr,\"-\",_xlpm.CleanProgram,\"-\",_xlpm.Number))\n),\"\")","v":""},{"$f":"IF(A269=\"\",\"\",'1. Checklist & Certification'!$B$9)","v":""},{"$f":"IF(A269=\"\",\"\",'1. Checklist & Certification'!$F$9)","v":""},{"$f":"IF(A269=\"\",\"\",'1. Checklist & Certification'!$C$10)","v":""},{"$f":"IF(A269=\"\",\"\",'1. Checklist & Certification'!$C$11)","v":""},{"$f":"IF(A269=\"\",\"\",'1. Checklist & Certification'!$C$12)","v":""},{"$f":"IF(A269=\"\",\"\",'1. Checklist & Certification'!$B$14)","v":""},{"$f":"IF(A269=\"\",\"\",'1. Checklist & Certification'!$E$14)","v":""},{"$f":"IF(B269=\"\",\"\",'1. Checklist & Certification'!$G$14)","v":""},{"$f":"IF(A269=\"\",\"\",'MHP Family Income & Rent Limits'!$B$3)","v":""},{"$f":"IF(A269=\"\",\"\",'MHP Family Income & Rent Limits'!$J$3)","v":""},{"$f":"IF(A269=\"\",\"\",'MHP Family Income & Rent Limits'!$E$4)","v":""},{"$f":"IF(A269=\"\",\"\",'MHP Family Income & Rent Limits'!$C$7)","v":""},{"$f":"IF(A269=\"\",\"\",'MHP Family Income & Rent Limits'!$F$8)","v":""},{"$f":"IF(A269=\"\",\"\",'1. Checklist & Certification'!$G$4)","v":""},{"$f":"IF(A269=\"\",\"\",'1. Checklist & Certification'!$K$39)","v":""},{"$f":"IF(A269=\"\",\"\",'1. Checklist & Certification'!$K$43)","v":""},{"$f":"IF(A269=\"\",\"\",'1. Checklist & Certification'!$K$45)","v":""},{"$f":"IF(A269=\"\",\"\",'1. Checklist & Certification'!$K$49)","v":""},{"$f":"IF(A269=\"\",\"\",'1. Checklist & Certification'!$K$62)","v":""},{"$f":"IF(A269=\"\",\"\",'1. Checklist & Certification'!$E$66)","v":""},{"$f":"IF(A269=\"\",\"\",'1. Checklist & Certification'!$E$67)","v":""},{"$f":"IF(A269=\"\",\"\",'1. Checklist & Certification'!$E$68)","v":""},{"$f":"IF(A269=\"\",\"\",'1. Checklist & Certification'!$G$66)","v":""},{"$f":"IF(A269=\"\",\"\",'1. Checklist & Certification'!$H$66)","v":""},{"$f":"IF(A269=\"\",\"\",'1. Checklist & Certification'!$I$66)","v":""},{"$f":"IF(A269=\"\",\"\",'1. Checklist & Certification'!$I$67)","v":""},{"$f":"IF(A269=\"\",\"\",'1. Checklist & Certification'!$I$68)","v":""},{"$f":"IF(A269=\"\",\"\",'1. Checklist & Certification'!$B$69)","v":""},{"$f":"IF(A269=\"\",\"\",'1. Checklist & Certification'!$C$69)","v":""},{"$f":"IF(A269=\"\",\"\",'1. Checklist & Certification'!$F$69)","v":""},{"$f":"IF(A269=\"\",\"\",'1. Checklist & Certification'!$G$69)","v":""},{"$f":"IF(A269=\"\",\"\",'1. Checklist & Certification'!$J$69)","v":""},{"$f":"IF(A269=\"\",\"\",'1. Checklist & Certification'!$K$69)","v":""},null,null,{"$f":"IF(AND(OR('1. Checklist & Certification'!$M$16=1,'1. Checklist & Certification'!$M$19=2),AO269>0,B269=\"\",I269>0,AQ269<I269,AV269<>\"Sec 8-Project\"),\"X\",IF(AND(OR('1. Checklist & Certification'!$M$20=4,'1. Checklist & Certification'!$M$21=5,'1. Checklist & Certification'!$M$22=7),AO269>0,B269=\"\",I269>0,K269<I269),\"X\",\"\"))","v":""},{"$f":"IF(A269=\"\",\"\",IF(SUMPRODUCT(-- (ISNUMBER(SEARCH({\"*AHSC*\",\"*FMTW*\",\"*FWHG*\",\"*GHI*\",\"*HHC*\",\"*HLCP*\",\"*HOME*\",\"*LPR*\",\"*MHP*\",\"*NHTF*\",\"*NSP*\",\"*PRP*\",\"*TOD*\",\"*VHHP*\"},'1. Checklist & Certification'!$L$7)))),\"MHP\",\"Legacy\"))","v":""},",,",null,null,null,{"$f":"IF('1. Checklist & Certification'!$M$20=4,\"Both\",IF(OR('1. Checklist & Certification'!$M$15>0,S269=\"CHRP-R\",U269=\"CHRP-R\",W269=\"CHRP-R\",Y269=\"CHRP-R\"),\"Under\",\"No\"))","v":"No"},"No","No",{"$f":"_xlfn.IFS(D269=\"\",\"\",D269=1,'MHP Family Income & Rent Limits'!$E$17,D269=2,'MHP Family Income & Rent Limits'!$F$17,D269=3,'MHP Family Income & Rent Limits'!$G$17,D269=4,'MHP Family Income & Rent Limits'!$H$17,D269=5,'MHP Family Income & Rent Limits'!$I$17,D269=6,'MHP Family Income & Rent Limits'!$J$17,D269=7,'MHP Family Income & Rent Limits'!$K$17,D269=8,'MHP Family Income & Rent Limits'!$L$17)","v":""},"",{"$f":"IF(OR(A269=0,B269=\"X\"),0,MIN(IF(AA269:AD269<>0,AA269:AD269)))","v":0},{"$f":"IF(OR(H269=\"\",I269=\"\"),0,IF(H269*0.3/12>I269,MIN(H269*0.3/12,I269*1.1)+AP269,I269*(1+(VLOOKUP('1. Checklist & Certification'!$F$9,'HLCP-E Rent Change'!$A$1:$D$59,4,FALSE)))+AP269))","v":0}]
[null,null,null,null,null,null,null,null,null,null,null,null,null,null,null,null,null,null,null,null,null,null,null,null,null,null,0,0,0,0,0,0,0,0,{"$f":"IF(OR(A270=0,B270=\"X\"),0,IF(OR(S270=\"FHDP\",S270=\"RHCP-B\",U270=\"FHDP\",U270=\"RHCP-B\",W270=\"FHDP\",W270=\"RHCP-B\",Y270=\"FHDP\",Y270=\"RHCP-B\"),TRUNC((MIN(I270,K270)*(1+'1. Checklist & Certification'!$K$43)+AP270)),0))","v":0},{"$f":"IF(OR(A270=0,B270=\"X\"),0,IF(OR(S270=\"CHRP-R\",S270=\"SERA\",S270=\"SUHRP\",U270=\"CHRP-R\",U270=\"SERA\",U270=\"SUHRP\",W270=\"CHRP-R\",W270=\"SERA\",W270=\"SUHRP\",Y270=\"CHRP-R\",Y270=\"SERA\",Y270=\"SUHRP\"),TRUNC((MIN(I270,K270)*(1+'1. Checklist & Certification'!$K$49))),0))","v":0},{"$f":"IF(OR(A270=0,B270=\"X\"),0,IF(OR(S270=\"CALDAP\",S270=\"DPRLP\",U270=\"CALDAP\",U270=\"DPRLP\",W270=\"CALDAP\",W270=\"DPRLP\",Y270=\"CALDAP\",Y270=\"DPRLP\"),TRUNC(((MIN(I270,K270))*(1+'1. Checklist & Certification'!$G$4))),0))","v":0},0,0,0,{"$f":"IF(OR(A270=0,B270=\"X\"),0,IF(OR(S270=\"PRP\",S270=\"LPR\",U270=\"PRP\",U270=\"LPR\",W270=\"PRP\",W270=\"LPR\",Y270=\"PRP\",Y270=\"LPR\"),MAX(I270+AP270,MIN(IF(AE270:AN270<>0,AE270:AN270))),MIN(IF(AE270:AN270<>0,AE270:AN270))))","v":0},{"$f":"IF(A270=0,0,IF(AND(OR(S270=\"Mgr\",S270=0),OR(U270=\"Mgr\",U270=0),OR(W270=\"Mgr\",W270=0)),0,IF(LEFT($A270,2)=\"B*\",VLOOKUP($E270,'1. Checklist & Certification'!$D$26:$E$32,2),IF(LEFT($A270,2)=\"C*\",VLOOKUP($E270,'1. Checklist & Certification'!$F$26:$G$32,2),IF(LEFT($A270,2)=\"D*\",VLOOKUP($E270,'1. Checklist & Certification'!$H$26:$I$32,2),IF(LEFT($A270,2)=\"E*\",VLOOKUP($E270,'1. Checklist & Certification'!$J$26:$K$32,2),VLOOKUP($E270,'1. Checklist & Certification'!$A$26:$B$32,2)))))))","v":0},0,0,null,null,null,null,"","",0,0,0,null,{"$f":"IF(A270=\"\",\"\",'1. Checklist & Certification'!$K$1)","v":""},{"$f":"IF(A270=\"\",\"\",'1. Checklist & Certification'!$C$62)","v":""},{"$f":"IF(A270=\"\",\"\",'1. Checklist & Certification'!$C$6)","v":""},{"$f":"IF(A270=\"\",\"\",'1. Checklist & Certification'!$G$5)","v":""},{"$f":"IFERROR(IF(A270=\"\",\"\",\n_xlfn.LET(_xlpm.Contract,'1. Checklist & Certification'!$C$7,\n_xlpm.Yr,TEXT(MOD(_xlfn.TEXTBEFORE(_xlpm.Contract,\"-\"),100),\"00\"),\n_xlpm.Program,_xlfn.TEXTAFTER(_xlfn.TEXTBEFORE(_xlpm.Contract,\"-\",2),\"-\"),\n_xlpm.CleanProgram,_xlfn.XLOOKUP(_xlpm.Program,SpellCheck[Input],SpellCheck[Correction],_xlpm.Program),\n_xlpm.Number,TEXT(_xlfn.TEXTAFTER(_xlpm.Contract,\"-\",2),\"0000\"),\n_xlfn.CONCAT(_xlpm.Yr,\"-\",_xlpm.CleanProgram,\"-\",_xlpm.Number))\n),\"\")","v":""},{"$f":"IFERROR(IF(A270=\"\",\"\",\n_xlfn.LET(_xlpm.Contract,'1. Checklist & Certification'!$C$8,\n_xlpm.Yr,TEXT(MOD(_xlfn.TEXTBEFORE(_xlpm.Contract,\"-\"),100),\"00\"),\n_xlpm.Program,_xlfn.TEXTAFTER(_xlfn.TEXTBEFORE(_xlpm.Contract,\"-\",2),\"-\"),\n_xlpm.CleanProgram,_xlfn.XLOOKUP(_xlpm.Program,SpellCheck[Input],SpellCheck[Correction],_xlpm.Program),\n_xlpm.Number,TEXT(_xlfn.TEXTAFTER(_xlpm.Contract,\"-\",2),\"0000\"),\n_xlfn.CONCAT(_xlpm.Yr,\"-\",_xlpm.CleanProgram,\"-\",_xlpm.Number))\n),\"\")","v":""},{"$f":"IFERROR(IF(A270=\"\",\"\",\n_xlfn.LET(_xlpm.Contract,'1. Checklist & Certification'!$F$7,\n_xlpm.Yr,TEXT(MOD(_xlfn.TEXTBEFORE(_xlpm.Contract,\"-\"),100),\"00\"),\n_xlpm.Program,_xlfn.TEXTAFTER(_xlfn.TEXTBEFORE(_xlpm.Contract,\"-\",2),\"-\"),\n_xlpm.CleanProgram,_xlfn.XLOOKUP(_xlpm.Program,SpellCheck[Input],SpellCheck[Correction],_xlpm.Program),\n_xlpm.Number,TEXT(_xlfn.TEXTAFTER(_xlpm.Contract,\"-\",2),\"0000\"),\n_xlfn.CONCAT(_xlpm.Yr,\"-\",_xlpm.CleanProgram,\"-\",_xlpm.Number))\n),\"\")","v":""},{"$f":"IFERROR(IF(A270=\"\",\"\",\n_xlfn.LET(_xlpm.Contract,'1. Checklist & Certification'!$F$8,\n_xlpm.Yr,TEXT(MOD(_xlfn.TEXTBEFORE(_xlpm.Contract,\"-\"),100),\"00\"),\n_xlpm.Program,_xlfn.TEXTAFTER(_xlfn.TEXTBEFORE(_xlpm.Contract,\"-\",2),\"-\"),\n_xlpm.CleanProgram,_xlfn.XLOOKUP(_xlpm.Program,SpellCheck[Input],SpellCheck[Correction],_xlpm.Program),\n_xlpm.Number,TEXT(_xlfn.TEXTAFTER(_xlpm.Contract,\"-\",2),\"0000\"),\n_xlfn.CONCAT(_xlpm.Yr,\"-\",_xlpm.CleanProgram,\"-\",_xlpm.Number))\n),\"\")","v":""},{"$f":"IF(A270=\"\",\"\",'1. Checklist & Certification'!$B$9)","v":""},{"$f":"IF(A270=\"\",\"\",'1. Checklist & Certification'!$F$9)","v":""},{"$f":"IF(A270=\"\",\"\",'1. Checklist & Certification'!$C$10)","v":""},{"$f":"IF(A270=\"\",\"\",'1. Checklist & Certification'!$C$11)","v":""},{"$f":"IF(A270=\"\",\"\",'1. Checklist & Certification'!$C$12)","v":""},{"$f":"IF(A270=\"\",\"\",'1. Checklist & Certification'!$B$14)","v":""},{"$f":"IF(A270=\"\",\"\",'1. Checklist & Certification'!$E$14)","v":""},{"$f":"IF(B270=\"\",\"\",'1. Checklist & Certification'!$G$14)","v":""},{"$f":"IF(A270=\"\",\"\",'MHP Family Income & Rent Limits'!$B$3)","v":""},{"$f":"IF(A270=\"\",\"\",'MHP Family Income & Rent Limits'!$J$3)","v":""},{"$f":"IF(A270=\"\",\"\",'MHP Family Income & Rent Limits'!$E$4)","v":""},{"$f":"IF(A270=\"\",\"\",'MHP Family Income & Rent Limits'!$C$7)","v":""},{"$f":"IF(A270=\"\",\"\",'MHP Family Income & Rent Limits'!$F$8)","v":""},{"$f":"IF(A270=\"\",\"\",'1. Checklist & Certification'!$G$4)","v":""},{"$f":"IF(A270=\"\",\"\",'1. Checklist & Certification'!$K$39)","v":""},{"$f":"IF(A270=\"\",\"\",'1. Checklist & Certification'!$K$43)","v":""},{"$f":"IF(A270=\"\",\"\",'1. Checklist & Certification'!$K$45)","v":""},{"$f":"IF(A270=\"\",\"\",'1. Checklist & Certification'!$K$49)","v":""},{"$f":"IF(A270=\"\",\"\",'1. Checklist & Certification'!$K$62)","v":""},{"$f":"IF(A270=\"\",\"\",'1. Checklist & Certification'!$E$66)","v":""},{"$f":"IF(A270=\"\",\"\",'1. Checklist & Certification'!$E$67)","v":""},{"$f":"IF(A270=\"\",\"\",'1. Checklist & Certification'!$E$68)","v":""},{"$f":"IF(A270=\"\",\"\",'1. Checklist & Certification'!$G$66)","v":""},{"$f":"IF(A270=\"\",\"\",'1. Checklist & Certification'!$H$66)","v":""},{"$f":"IF(A270=\"\",\"\",'1. Checklist & Certification'!$I$66)","v":""},{"$f":"IF(A270=\"\",\"\",'1. Checklist & Certification'!$I$67)","v":""},{"$f":"IF(A270=\"\",\"\",'1. Checklist & Certification'!$I$68)","v":""},{"$f":"IF(A270=\"\",\"\",'1. Checklist & Certification'!$B$69)","v":""},{"$f":"IF(A270=\"\",\"\",'1. Checklist & Certification'!$C$69)","v":""},{"$f":"IF(A270=\"\",\"\",'1. Checklist & Certification'!$F$69)","v":""},{"$f":"IF(A270=\"\",\"\",'1. Checklist & Certification'!$G$69)","v":""},{"$f":"IF(A270=\"\",\"\",'1. Checklist & Certification'!$J$69)","v":""},{"$f":"IF(A270=\"\",\"\",'1. Checklist & Certification'!$K$69)","v":""},null,null,{"$f":"IF(AND(OR('1. Checklist & Certification'!$M$16=1,'1. Checklist & Certification'!$M$19=2),AO270>0,B270=\"\",I270>0,AQ270<I270,AV270<>\"Sec 8-Project\"),\"X\",IF(AND(OR('1. Checklist & Certification'!$M$20=4,'1. Checklist & Certification'!$M$21=5,'1. Checklist & Certification'!$M$22=7),AO270>0,B270=\"\",I270>0,K270<I270),\"X\",\"\"))","v":""},{"$f":"IF(A270=\"\",\"\",IF(SUMPRODUCT(-- (ISNUMBER(SEARCH({\"*AHSC*\",\"*FMTW*\",\"*FWHG*\",\"*GHI*\",\"*HHC*\",\"*HLCP*\",\"*HOME*\",\"*LPR*\",\"*MHP*\",\"*NHTF*\",\"*NSP*\",\"*PRP*\",\"*TOD*\",\"*VHHP*\"},'1. Checklist & Certification'!$L$7)))),\"MHP\",\"Legacy\"))","v":""},",,",null,null,null,{"$f":"IF('1. Checklist & Certification'!$M$20=4,\"Both\",IF(OR('1. Checklist & Certification'!$M$15>0,S270=\"CHRP-R\",U270=\"CHRP-R\",W270=\"CHRP-R\",Y270=\"CHRP-R\"),\"Under\",\"No\"))","v":"No"},"No","No",{"$f":"_xlfn.IFS(D270=\"\",\"\",D270=1,'MHP Family Income & Rent Limits'!$E$17,D270=2,'MHP Family Income & Rent Limits'!$F$17,D270=3,'MHP Family Income & Rent Limits'!$G$17,D270=4,'MHP Family Income & Rent Limits'!$H$17,D270=5,'MHP Family Income & Rent Limits'!$I$17,D270=6,'MHP Family Income & Rent Limits'!$J$17,D270=7,'MHP Family Income & Rent Limits'!$K$17,D270=8,'MHP Family Income & Rent Limits'!$L$17)","v":""},"",{"$f":"IF(OR(A270=0,B270=\"X\"),0,MIN(IF(AA270:AD270<>0,AA270:AD270)))","v":0},{"$f":"IF(OR(H270=\"\",I270=\"\"),0,IF(H270*0.3/12>I270,MIN(H270*0.3/12,I270*1.1)+AP270,I270*(1+(VLOOKUP('1. Checklist & Certification'!$F$9,'HLCP-E Rent Change'!$A$1:$D$59,4,FALSE)))+AP270))","v":0}]
[null,null,null,null,null,null,null,null,null,null,null,null,null,null,null,null,null,null,null,null,null,null,null,null,null,null,0,0,0,0,0,0,0,0,{"$f":"IF(OR(A271=0,B271=\"X\"),0,IF(OR(S271=\"FHDP\",S271=\"RHCP-B\",U271=\"FHDP\",U271=\"RHCP-B\",W271=\"FHDP\",W271=\"RHCP-B\",Y271=\"FHDP\",Y271=\"RHCP-B\"),TRUNC((MIN(I271,K271)*(1+'1. Checklist & Certification'!$K$43)+AP271)),0))","v":0},{"$f":"IF(OR(A271=0,B271=\"X\"),0,IF(OR(S271=\"CHRP-R\",S271=\"SERA\",S271=\"SUHRP\",U271=\"CHRP-R\",U271=\"SERA\",U271=\"SUHRP\",W271=\"CHRP-R\",W271=\"SERA\",W271=\"SUHRP\",Y271=\"CHRP-R\",Y271=\"SERA\",Y271=\"SUHRP\"),TRUNC((MIN(I271,K271)*(1+'1. Checklist & Certification'!$K$49))),0))","v":0},{"$f":"IF(OR(A271=0,B271=\"X\"),0,IF(OR(S271=\"CALDAP\",S271=\"DPRLP\",U271=\"CALDAP\",U271=\"DPRLP\",W271=\"CALDAP\",W271=\"DPRLP\",Y271=\"CALDAP\",Y271=\"DPRLP\"),TRUNC(((MIN(I271,K271))*(1+'1. Checklist & Certification'!$G$4))),0))","v":0},0,0,0,{"$f":"IF(OR(A271=0,B271=\"X\"),0,IF(OR(S271=\"PRP\",S271=\"LPR\",U271=\"PRP\",U271=\"LPR\",W271=\"PRP\",W271=\"LPR\",Y271=\"PRP\",Y271=\"LPR\"),MAX(I271+AP271,MIN(IF(AE271:AN271<>0,AE271:AN271))),MIN(IF(AE271:AN271<>0,AE271:AN271))))","v":0},{"$f":"IF(A271=0,0,IF(AND(OR(S271=\"Mgr\",S271=0),OR(U271=\"Mgr\",U271=0),OR(W271=\"Mgr\",W271=0)),0,IF(LEFT($A271,2)=\"B*\",VLOOKUP($E271,'1. Checklist & Certification'!$D$26:$E$32,2),IF(LEFT($A271,2)=\"C*\",VLOOKUP($E271,'1. Checklist & Certification'!$F$26:$G$32,2),IF(LEFT($A271,2)=\"D*\",VLOOKUP($E271,'1. Checklist & Certification'!$H$26:$I$32,2),IF(LEFT($A271,2)=\"E*\",VLOOKUP($E271,'1. Checklist & Certification'!$J$26:$K$32,2),VLOOKUP($E271,'1. Checklist & Certification'!$A$26:$B$32,2)))))))","v":0},0,0,null,null,null,null,"","",0,0,0,null,{"$f":"IF(A271=\"\",\"\",'1. Checklist & Certification'!$K$1)","v":""},{"$f":"IF(A271=\"\",\"\",'1. Checklist & Certification'!$C$62)","v":""},{"$f":"IF(A271=\"\",\"\",'1. Checklist & Certification'!$C$6)","v":""},{"$f":"IF(A271=\"\",\"\",'1. Checklist & Certification'!$G$5)","v":""},{"$f":"IFERROR(IF(A271=\"\",\"\",\n_xlfn.LET(_xlpm.Contract,'1. Checklist & Certification'!$C$7,\n_xlpm.Yr,TEXT(MOD(_xlfn.TEXTBEFORE(_xlpm.Contract,\"-\"),100),\"00\"),\n_xlpm.Program,_xlfn.TEXTAFTER(_xlfn.TEXTBEFORE(_xlpm.Contract,\"-\",2),\"-\"),\n_xlpm.CleanProgram,_xlfn.XLOOKUP(_xlpm.Program,SpellCheck[Input],SpellCheck[Correction],_xlpm.Program),\n_xlpm.Number,TEXT(_xlfn.TEXTAFTER(_xlpm.Contract,\"-\",2),\"0000\"),\n_xlfn.CONCAT(_xlpm.Yr,\"-\",_xlpm.CleanProgram,\"-\",_xlpm.Number))\n),\"\")","v":""},{"$f":"IFERROR(IF(A271=\"\",\"\",\n_xlfn.LET(_xlpm.Contract,'1. Checklist & Certification'!$C$8,\n_xlpm.Yr,TEXT(MOD(_xlfn.TEXTBEFORE(_xlpm.Contract,\"-\"),100),\"00\"),\n_xlpm.Program,_xlfn.TEXTAFTER(_xlfn.TEXTBEFORE(_xlpm.Contract,\"-\",2),\"-\"),\n_xlpm.CleanProgram,_xlfn.XLOOKUP(_xlpm.Program,SpellCheck[Input],SpellCheck[Correction],_xlpm.Program),\n_xlpm.Number,TEXT(_xlfn.TEXTAFTER(_xlpm.Contract,\"-\",2),\"0000\"),\n_xlfn.CONCAT(_xlpm.Yr,\"-\",_xlpm.CleanProgram,\"-\",_xlpm.Number))\n),\"\")","v":""},{"$f":"IFERROR(IF(A271=\"\",\"\",\n_xlfn.LET(_xlpm.Contract,'1. Checklist & Certification'!$F$7,\n_xlpm.Yr,TEXT(MOD(_xlfn.TEXTBEFORE(_xlpm.Contract,\"-\"),100),\"00\"),\n_xlpm.Program,_xlfn.TEXTAFTER(_xlfn.TEXTBEFORE(_xlpm.Contract,\"-\",2),\"-\"),\n_xlpm.CleanProgram,_xlfn.XLOOKUP(_xlpm.Program,SpellCheck[Input],SpellCheck[Correction],_xlpm.Program),\n_xlpm.Number,TEXT(_xlfn.TEXTAFTER(_xlpm.Contract,\"-\",2),\"0000\"),\n_xlfn.CONCAT(_xlpm.Yr,\"-\",_xlpm.CleanProgram,\"-\",_xlpm.Number))\n),\"\")","v":""},{"$f":"IFERROR(IF(A271=\"\",\"\",\n_xlfn.LET(_xlpm.Contract,'1. Checklist & Certification'!$F$8,\n_xlpm.Yr,TEXT(MOD(_xlfn.TEXTBEFORE(_xlpm.Contract,\"-\"),100),\"00\"),\n_xlpm.Program,_xlfn.TEXTAFTER(_xlfn.TEXTBEFORE(_xlpm.Contract,\"-\",2),\"-\"),\n_xlpm.CleanProgram,_xlfn.XLOOKUP(_xlpm.Program,SpellCheck[Input],SpellCheck[Correction],_xlpm.Program),\n_xlpm.Number,TEXT(_xlfn.TEXTAFTER(_xlpm.Contract,\"-\",2),\"0000\"),\n_xlfn.CONCAT(_xlpm.Yr,\"-\",_xlpm.CleanProgram,\"-\",_xlpm.Number))\n),\"\")","v":""},{"$f":"IF(A271=\"\",\"\",'1. Checklist & Certification'!$B$9)","v":""},{"$f":"IF(A271=\"\",\"\",'1. Checklist & Certification'!$F$9)","v":""},{"$f":"IF(A271=\"\",\"\",'1. Checklist & Certification'!$C$10)","v":""},{"$f":"IF(A271=\"\",\"\",'1. Checklist & Certification'!$C$11)","v":""},{"$f":"IF(A271=\"\",\"\",'1. Checklist & Certification'!$C$12)","v":""},{"$f":"IF(A271=\"\",\"\",'1. Checklist & Certification'!$B$14)","v":""},{"$f":"IF(A271=\"\",\"\",'1. Checklist & Certification'!$E$14)","v":""},{"$f":"IF(B271=\"\",\"\",'1. Checklist & Certification'!$G$14)","v":""},{"$f":"IF(A271=\"\",\"\",'MHP Family Income & Rent Limits'!$B$3)","v":""},{"$f":"IF(A271=\"\",\"\",'MHP Family Income & Rent Limits'!$J$3)","v":""},{"$f":"IF(A271=\"\",\"\",'MHP Family Income & Rent Limits'!$E$4)","v":""},{"$f":"IF(A271=\"\",\"\",'MHP Family Income & Rent Limits'!$C$7)","v":""},{"$f":"IF(A271=\"\",\"\",'MHP Family Income & Rent Limits'!$F$8)","v":""},{"$f":"IF(A271=\"\",\"\",'1. Checklist & Certification'!$G$4)","v":""},{"$f":"IF(A271=\"\",\"\",'1. Checklist & Certification'!$K$39)","v":""},{"$f":"IF(A271=\"\",\"\",'1. Checklist & Certification'!$K$43)","v":""},{"$f":"IF(A271=\"\",\"\",'1. Checklist & Certification'!$K$45)","v":""},{"$f":"IF(A271=\"\",\"\",'1. Checklist & Certification'!$K$49)","v":""},{"$f":"IF(A271=\"\",\"\",'1. Checklist & Certification'!$K$62)","v":""},{"$f":"IF(A271=\"\",\"\",'1. Checklist & Certification'!$E$66)","v":""},{"$f":"IF(A271=\"\",\"\",'1. Checklist & Certification'!$E$67)","v":""},{"$f":"IF(A271=\"\",\"\",'1. Checklist & Certification'!$E$68)","v":""},{"$f":"IF(A271=\"\",\"\",'1. Checklist & Certification'!$G$66)","v":""},{"$f":"IF(A271=\"\",\"\",'1. Checklist & Certification'!$H$66)","v":""},{"$f":"IF(A271=\"\",\"\",'1. Checklist & Certification'!$I$66)","v":""},{"$f":"IF(A271=\"\",\"\",'1. Checklist & Certification'!$I$67)","v":""},{"$f":"IF(A271=\"\",\"\",'1. Checklist & Certification'!$I$68)","v":""},{"$f":"IF(A271=\"\",\"\",'1. Checklist & Certification'!$B$69)","v":""},{"$f":"IF(A271=\"\",\"\",'1. Checklist & Certification'!$C$69)","v":""},{"$f":"IF(A271=\"\",\"\",'1. Checklist & Certification'!$F$69)","v":""},{"$f":"IF(A271=\"\",\"\",'1. Checklist & Certification'!$G$69)","v":""},{"$f":"IF(A271=\"\",\"\",'1. Checklist & Certification'!$J$69)","v":""},{"$f":"IF(A271=\"\",\"\",'1. Checklist & Certification'!$K$69)","v":""},null,null,{"$f":"IF(AND(OR('1. Checklist & Certification'!$M$16=1,'1. Checklist & Certification'!$M$19=2),AO271>0,B271=\"\",I271>0,AQ271<I271,AV271<>\"Sec 8-Project\"),\"X\",IF(AND(OR('1. Checklist & Certification'!$M$20=4,'1. Checklist & Certification'!$M$21=5,'1. Checklist & Certification'!$M$22=7),AO271>0,B271=\"\",I271>0,K271<I271),\"X\",\"\"))","v":""},{"$f":"IF(A271=\"\",\"\",IF(SUMPRODUCT(-- (ISNUMBER(SEARCH({\"*AHSC*\",\"*FMTW*\",\"*FWHG*\",\"*GHI*\",\"*HHC*\",\"*HLCP*\",\"*HOME*\",\"*LPR*\",\"*MHP*\",\"*NHTF*\",\"*NSP*\",\"*PRP*\",\"*TOD*\",\"*VHHP*\"},'1. Checklist & Certification'!$L$7)))),\"MHP\",\"Legacy\"))","v":""},",,",null,null,null,{"$f":"IF('1. Checklist & Certification'!$M$20=4,\"Both\",IF(OR('1. Checklist & Certification'!$M$15>0,S271=\"CHRP-R\",U271=\"CHRP-R\",W271=\"CHRP-R\",Y271=\"CHRP-R\"),\"Under\",\"No\"))","v":"No"},"No","No",{"$f":"_xlfn.IFS(D271=\"\",\"\",D271=1,'MHP Family Income & Rent Limits'!$E$17,D271=2,'MHP Family Income & Rent Limits'!$F$17,D271=3,'MHP Family Income & Rent Limits'!$G$17,D271=4,'MHP Family Income & Rent Limits'!$H$17,D271=5,'MHP Family Income & Rent Limits'!$I$17,D271=6,'MHP Family Income & Rent Limits'!$J$17,D271=7,'MHP Family Income & Rent Limits'!$K$17,D271=8,'MHP Family Income & Rent Limits'!$L$17)","v":""},"",{"$f":"IF(OR(A271=0,B271=\"X\"),0,MIN(IF(AA271:AD271<>0,AA271:AD271)))","v":0},{"$f":"IF(OR(H271=\"\",I271=\"\"),0,IF(H271*0.3/12>I271,MIN(H271*0.3/12,I271*1.1)+AP271,I271*(1+(VLOOKUP('1. Checklist & Certification'!$F$9,'HLCP-E Rent Change'!$A$1:$D$59,4,FALSE)))+AP271))","v":0}]
[null,null,null,null,null,null,null,null,null,null,null,null,null,null,null,null,null,null,null,null,null,null,null,null,null,null,0,0,0,0,0,0,0,0,{"$f":"IF(OR(A272=0,B272=\"X\"),0,IF(OR(S272=\"FHDP\",S272=\"RHCP-B\",U272=\"FHDP\",U272=\"RHCP-B\",W272=\"FHDP\",W272=\"RHCP-B\",Y272=\"FHDP\",Y272=\"RHCP-B\"),TRUNC((MIN(I272,K272)*(1+'1. Checklist & Certification'!$K$43)+AP272)),0))","v":0},{"$f":"IF(OR(A272=0,B272=\"X\"),0,IF(OR(S272=\"CHRP-R\",S272=\"SERA\",S272=\"SUHRP\",U272=\"CHRP-R\",U272=\"SERA\",U272=\"SUHRP\",W272=\"CHRP-R\",W272=\"SERA\",W272=\"SUHRP\",Y272=\"CHRP-R\",Y272=\"SERA\",Y272=\"SUHRP\"),TRUNC((MIN(I272,K272)*(1+'1. Checklist & Certification'!$K$49))),0))","v":0},{"$f":"IF(OR(A272=0,B272=\"X\"),0,IF(OR(S272=\"CALDAP\",S272=\"DPRLP\",U272=\"CALDAP\",U272=\"DPRLP\",W272=\"CALDAP\",W272=\"DPRLP\",Y272=\"CALDAP\",Y272=\"DPRLP\"),TRUNC(((MIN(I272,K272))*(1+'1. Checklist & Certification'!$G$4))),0))","v":0},0,0,0,{"$f":"IF(OR(A272=0,B272=\"X\"),0,IF(OR(S272=\"PRP\",S272=\"LPR\",U272=\"PRP\",U272=\"LPR\",W272=\"PRP\",W272=\"LPR\",Y272=\"PRP\",Y272=\"LPR\"),MAX(I272+AP272,MIN(IF(AE272:AN272<>0,AE272:AN272))),MIN(IF(AE272:AN272<>0,AE272:AN272))))","v":0},{"$f":"IF(A272=0,0,IF(AND(OR(S272=\"Mgr\",S272=0),OR(U272=\"Mgr\",U272=0),OR(W272=\"Mgr\",W272=0)),0,IF(LEFT($A272,2)=\"B*\",VLOOKUP($E272,'1. Checklist & Certification'!$D$26:$E$32,2),IF(LEFT($A272,2)=\"C*\",VLOOKUP($E272,'1. Checklist & Certification'!$F$26:$G$32,2),IF(LEFT($A272,2)=\"D*\",VLOOKUP($E272,'1. Checklist & Certification'!$H$26:$I$32,2),IF(LEFT($A272,2)=\"E*\",VLOOKUP($E272,'1. Checklist & Certification'!$J$26:$K$32,2),VLOOKUP($E272,'1. Checklist & Certification'!$A$26:$B$32,2)))))))","v":0},0,0,null,null,null,null,"","",0,0,0,null,{"$f":"IF(A272=\"\",\"\",'1. Checklist & Certification'!$K$1)","v":""},{"$f":"IF(A272=\"\",\"\",'1. Checklist & Certification'!$C$62)","v":""},{"$f":"IF(A272=\"\",\"\",'1. Checklist & Certification'!$C$6)","v":""},{"$f":"IF(A272=\"\",\"\",'1. Checklist & Certification'!$G$5)","v":""},{"$f":"IFERROR(IF(A272=\"\",\"\",\n_xlfn.LET(_xlpm.Contract,'1. Checklist & Certification'!$C$7,\n_xlpm.Yr,TEXT(MOD(_xlfn.TEXTBEFORE(_xlpm.Contract,\"-\"),100),\"00\"),\n_xlpm.Program,_xlfn.TEXTAFTER(_xlfn.TEXTBEFORE(_xlpm.Contract,\"-\",2),\"-\"),\n_xlpm.CleanProgram,_xlfn.XLOOKUP(_xlpm.Program,SpellCheck[Input],SpellCheck[Correction],_xlpm.Program),\n_xlpm.Number,TEXT(_xlfn.TEXTAFTER(_xlpm.Contract,\"-\",2),\"0000\"),\n_xlfn.CONCAT(_xlpm.Yr,\"-\",_xlpm.CleanProgram,\"-\",_xlpm.Number))\n),\"\")","v":""},{"$f":"IFERROR(IF(A272=\"\",\"\",\n_xlfn.LET(_xlpm.Contract,'1. Checklist & Certification'!$C$8,\n_xlpm.Yr,TEXT(MOD(_xlfn.TEXTBEFORE(_xlpm.Contract,\"-\"),100),\"00\"),\n_xlpm.Program,_xlfn.TEXTAFTER(_xlfn.TEXTBEFORE(_xlpm.Contract,\"-\",2),\"-\"),\n_xlpm.CleanProgram,_xlfn.XLOOKUP(_xlpm.Program,SpellCheck[Input],SpellCheck[Correction],_xlpm.Program),\n_xlpm.Number,TEXT(_xlfn.TEXTAFTER(_xlpm.Contract,\"-\",2),\"0000\"),\n_xlfn.CONCAT(_xlpm.Yr,\"-\",_xlpm.CleanProgram,\"-\",_xlpm.Number))\n),\"\")","v":""},{"$f":"IFERROR(IF(A272=\"\",\"\",\n_xlfn.LET(_xlpm.Contract,'1. Checklist & Certification'!$F$7,\n_xlpm.Yr,TEXT(MOD(_xlfn.TEXTBEFORE(_xlpm.Contract,\"-\"),100),\"00\"),\n_xlpm.Program,_xlfn.TEXTAFTER(_xlfn.TEXTBEFORE(_xlpm.Contract,\"-\",2),\"-\"),\n_xlpm.CleanProgram,_xlfn.XLOOKUP(_xlpm.Program,SpellCheck[Input],SpellCheck[Correction],_xlpm.Program),\n_xlpm.Number,TEXT(_xlfn.TEXTAFTER(_xlpm.Contract,\"-\",2),\"0000\"),\n_xlfn.CONCAT(_xlpm.Yr,\"-\",_xlpm.CleanProgram,\"-\",_xlpm.Number))\n),\"\")","v":""},{"$f":"IFERROR(IF(A272=\"\",\"\",\n_xlfn.LET(_xlpm.Contract,'1. Checklist & Certification'!$F$8,\n_xlpm.Yr,TEXT(MOD(_xlfn.TEXTBEFORE(_xlpm.Contract,\"-\"),100),\"00\"),\n_xlpm.Program,_xlfn.TEXTAFTER(_xlfn.TEXTBEFORE(_xlpm.Contract,\"-\",2),\"-\"),\n_xlpm.CleanProgram,_xlfn.XLOOKUP(_xlpm.Program,SpellCheck[Input],SpellCheck[Correction],_xlpm.Program),\n_xlpm.Number,TEXT(_xlfn.TEXTAFTER(_xlpm.Contract,\"-\",2),\"0000\"),\n_xlfn.CONCAT(_xlpm.Yr,\"-\",_xlpm.CleanProgram,\"-\",_xlpm.Number))\n),\"\")","v":""},{"$f":"IF(A272=\"\",\"\",'1. Checklist & Certification'!$B$9)","v":""},{"$f":"IF(A272=\"\",\"\",'1. Checklist & Certification'!$F$9)","v":""},{"$f":"IF(A272=\"\",\"\",'1. Checklist & Certification'!$C$10)","v":""},{"$f":"IF(A272=\"\",\"\",'1. Checklist & Certification'!$C$11)","v":""},{"$f":"IF(A272=\"\",\"\",'1. Checklist & Certification'!$C$12)","v":""},{"$f":"IF(A272=\"\",\"\",'1. Checklist & Certification'!$B$14)","v":""},{"$f":"IF(A272=\"\",\"\",'1. Checklist & Certification'!$E$14)","v":""},{"$f":"IF(B272=\"\",\"\",'1. Checklist & Certification'!$G$14)","v":""},{"$f":"IF(A272=\"\",\"\",'MHP Family Income & Rent Limits'!$B$3)","v":""},{"$f":"IF(A272=\"\",\"\",'MHP Family Income & Rent Limits'!$J$3)","v":""},{"$f":"IF(A272=\"\",\"\",'MHP Family Income & Rent Limits'!$E$4)","v":""},{"$f":"IF(A272=\"\",\"\",'MHP Family Income & Rent Limits'!$C$7)","v":""},{"$f":"IF(A272=\"\",\"\",'MHP Family Income & Rent Limits'!$F$8)","v":""},{"$f":"IF(A272=\"\",\"\",'1. Checklist & Certification'!$G$4)","v":""},{"$f":"IF(A272=\"\",\"\",'1. Checklist & Certification'!$K$39)","v":""},{"$f":"IF(A272=\"\",\"\",'1. Checklist & Certification'!$K$43)","v":""},{"$f":"IF(A272=\"\",\"\",'1. Checklist & Certification'!$K$45)","v":""},{"$f":"IF(A272=\"\",\"\",'1. Checklist & Certification'!$K$49)","v":""},{"$f":"IF(A272=\"\",\"\",'1. Checklist & Certification'!$K$62)","v":""},{"$f":"IF(A272=\"\",\"\",'1. Checklist & Certification'!$E$66)","v":""},{"$f":"IF(A272=\"\",\"\",'1. Checklist & Certification'!$E$67)","v":""},{"$f":"IF(A272=\"\",\"\",'1. Checklist & Certification'!$E$68)","v":""},{"$f":"IF(A272=\"\",\"\",'1. Checklist & Certification'!$G$66)","v":""},{"$f":"IF(A272=\"\",\"\",'1. Checklist & Certification'!$H$66)","v":""},{"$f":"IF(A272=\"\",\"\",'1. Checklist & Certification'!$I$66)","v":""},{"$f":"IF(A272=\"\",\"\",'1. Checklist & Certification'!$I$67)","v":""},{"$f":"IF(A272=\"\",\"\",'1. Checklist & Certification'!$I$68)","v":""},{"$f":"IF(A272=\"\",\"\",'1. Checklist & Certification'!$B$69)","v":""},{"$f":"IF(A272=\"\",\"\",'1. Checklist & Certification'!$C$69)","v":""},{"$f":"IF(A272=\"\",\"\",'1. Checklist & Certification'!$F$69)","v":""},{"$f":"IF(A272=\"\",\"\",'1. Checklist & Certification'!$G$69)","v":""},{"$f":"IF(A272=\"\",\"\",'1. Checklist & Certification'!$J$69)","v":""},{"$f":"IF(A272=\"\",\"\",'1. Checklist & Certification'!$K$69)","v":""},null,null,{"$f":"IF(AND(OR('1. Checklist & Certification'!$M$16=1,'1. Checklist & Certification'!$M$19=2),AO272>0,B272=\"\",I272>0,AQ272<I272,AV272<>\"Sec 8-Project\"),\"X\",IF(AND(OR('1. Checklist & Certification'!$M$20=4,'1. Checklist & Certification'!$M$21=5,'1. Checklist & Certification'!$M$22=7),AO272>0,B272=\"\",I272>0,K272<I272),\"X\",\"\"))","v":""},{"$f":"IF(A272=\"\",\"\",IF(SUMPRODUCT(-- (ISNUMBER(SEARCH({\"*AHSC*\",\"*FMTW*\",\"*FWHG*\",\"*GHI*\",\"*HHC*\",\"*HLCP*\",\"*HOME*\",\"*LPR*\",\"*MHP*\",\"*NHTF*\",\"*NSP*\",\"*PRP*\",\"*TOD*\",\"*VHHP*\"},'1. Checklist & Certification'!$L$7)))),\"MHP\",\"Legacy\"))","v":""},",,",null,null,null,{"$f":"IF('1. Checklist & Certification'!$M$20=4,\"Both\",IF(OR('1. Checklist & Certification'!$M$15>0,S272=\"CHRP-R\",U272=\"CHRP-R\",W272=\"CHRP-R\",Y272=\"CHRP-R\"),\"Under\",\"No\"))","v":"No"},"No","No",{"$f":"_xlfn.IFS(D272=\"\",\"\",D272=1,'MHP Family Income & Rent Limits'!$E$17,D272=2,'MHP Family Income & Rent Limits'!$F$17,D272=3,'MHP Family Income & Rent Limits'!$G$17,D272=4,'MHP Family Income & Rent Limits'!$H$17,D272=5,'MHP Family Income & Rent Limits'!$I$17,D272=6,'MHP Family Income & Rent Limits'!$J$17,D272=7,'MHP Family Income & Rent Limits'!$K$17,D272=8,'MHP Family Income & Rent Limits'!$L$17)","v":""},"",{"$f":"IF(OR(A272=0,B272=\"X\"),0,MIN(IF(AA272:AD272<>0,AA272:AD272)))","v":0},{"$f":"IF(OR(H272=\"\",I272=\"\"),0,IF(H272*0.3/12>I272,MIN(H272*0.3/12,I272*1.1)+AP272,I272*(1+(VLOOKUP('1. Checklist & Certification'!$F$9,'HLCP-E Rent Change'!$A$1:$D$59,4,FALSE)))+AP272))","v":0}]
[null,null,null,null,null,null,null,null,null,null,null,null,null,null,null,null,null,null,null,null,null,null,null,null,null,null,0,0,0,0,0,0,0,0,{"$f":"IF(OR(A273=0,B273=\"X\"),0,IF(OR(S273=\"FHDP\",S273=\"RHCP-B\",U273=\"FHDP\",U273=\"RHCP-B\",W273=\"FHDP\",W273=\"RHCP-B\",Y273=\"FHDP\",Y273=\"RHCP-B\"),TRUNC((MIN(I273,K273)*(1+'1. Checklist & Certification'!$K$43)+AP273)),0))","v":0},{"$f":"IF(OR(A273=0,B273=\"X\"),0,IF(OR(S273=\"CHRP-R\",S273=\"SERA\",S273=\"SUHRP\",U273=\"CHRP-R\",U273=\"SERA\",U273=\"SUHRP\",W273=\"CHRP-R\",W273=\"SERA\",W273=\"SUHRP\",Y273=\"CHRP-R\",Y273=\"SERA\",Y273=\"SUHRP\"),TRUNC((MIN(I273,K273)*(1+'1. Checklist & Certification'!$K$49))),0))","v":0},{"$f":"IF(OR(A273=0,B273=\"X\"),0,IF(OR(S273=\"CALDAP\",S273=\"DPRLP\",U273=\"CALDAP\",U273=\"DPRLP\",W273=\"CALDAP\",W273=\"DPRLP\",Y273=\"CALDAP\",Y273=\"DPRLP\"),TRUNC(((MIN(I273,K273))*(1+'1. Checklist & Certification'!$G$4))),0))","v":0},0,0,0,{"$f":"IF(OR(A273=0,B273=\"X\"),0,IF(OR(S273=\"PRP\",S273=\"LPR\",U273=\"PRP\",U273=\"LPR\",W273=\"PRP\",W273=\"LPR\",Y273=\"PRP\",Y273=\"LPR\"),MAX(I273+AP273,MIN(IF(AE273:AN273<>0,AE273:AN273))),MIN(IF(AE273:AN273<>0,AE273:AN273))))","v":0},{"$f":"IF(A273=0,0,IF(AND(OR(S273=\"Mgr\",S273=0),OR(U273=\"Mgr\",U273=0),OR(W273=\"Mgr\",W273=0)),0,IF(LEFT($A273,2)=\"B*\",VLOOKUP($E273,'1. Checklist & Certification'!$D$26:$E$32,2),IF(LEFT($A273,2)=\"C*\",VLOOKUP($E273,'1. Checklist & Certification'!$F$26:$G$32,2),IF(LEFT($A273,2)=\"D*\",VLOOKUP($E273,'1. Checklist & Certification'!$H$26:$I$32,2),IF(LEFT($A273,2)=\"E*\",VLOOKUP($E273,'1. Checklist & Certification'!$J$26:$K$32,2),VLOOKUP($E273,'1. Checklist & Certification'!$A$26:$B$32,2)))))))","v":0},0,0,null,null,null,null,"","",0,0,0,null,{"$f":"IF(A273=\"\",\"\",'1. Checklist & Certification'!$K$1)","v":""},{"$f":"IF(A273=\"\",\"\",'1. Checklist & Certification'!$C$62)","v":""},{"$f":"IF(A273=\"\",\"\",'1. Checklist & Certification'!$C$6)","v":""},{"$f":"IF(A273=\"\",\"\",'1. Checklist & Certification'!$G$5)","v":""},{"$f":"IFERROR(IF(A273=\"\",\"\",\n_xlfn.LET(_xlpm.Contract,'1. Checklist & Certification'!$C$7,\n_xlpm.Yr,TEXT(MOD(_xlfn.TEXTBEFORE(_xlpm.Contract,\"-\"),100),\"00\"),\n_xlpm.Program,_xlfn.TEXTAFTER(_xlfn.TEXTBEFORE(_xlpm.Contract,\"-\",2),\"-\"),\n_xlpm.CleanProgram,_xlfn.XLOOKUP(_xlpm.Program,SpellCheck[Input],SpellCheck[Correction],_xlpm.Program),\n_xlpm.Number,TEXT(_xlfn.TEXTAFTER(_xlpm.Contract,\"-\",2),\"0000\"),\n_xlfn.CONCAT(_xlpm.Yr,\"-\",_xlpm.CleanProgram,\"-\",_xlpm.Number))\n),\"\")","v":""},{"$f":"IFERROR(IF(A273=\"\",\"\",\n_xlfn.LET(_xlpm.Contract,'1. Checklist & Certification'!$C$8,\n_xlpm.Yr,TEXT(MOD(_xlfn.TEXTBEFORE(_xlpm.Contract,\"-\"),100),\"00\"),\n_xlpm.Program,_xlfn.TEXTAFTER(_xlfn.TEXTBEFORE(_xlpm.Contract,\"-\",2),\"-\"),\n_xlpm.CleanProgram,_xlfn.XLOOKUP(_xlpm.Program,SpellCheck[Input],SpellCheck[Correction],_xlpm.Program),\n_xlpm.Number,TEXT(_xlfn.TEXTAFTER(_xlpm.Contract,\"-\",2),\"0000\"),\n_xlfn.CONCAT(_xlpm.Yr,\"-\",_xlpm.CleanProgram,\"-\",_xlpm.Number))\n),\"\")","v":""},{"$f":"IFERROR(IF(A273=\"\",\"\",\n_xlfn.LET(_xlpm.Contract,'1. Checklist & Certification'!$F$7,\n_xlpm.Yr,TEXT(MOD(_xlfn.TEXTBEFORE(_xlpm.Contract,\"-\"),100),\"00\"),\n_xlpm.Program,_xlfn.TEXTAFTER(_xlfn.TEXTBEFORE(_xlpm.Contract,\"-\",2),\"-\"),\n_xlpm.CleanProgram,_xlfn.XLOOKUP(_xlpm.Program,SpellCheck[Input],SpellCheck[Correction],_xlpm.Program),\n_xlpm.Number,TEXT(_xlfn.TEXTAFTER(_xlpm.Contract,\"-\",2),\"0000\"),\n_xlfn.CONCAT(_xlpm.Yr,\"-\",_xlpm.CleanProgram,\"-\",_xlpm.Number))\n),\"\")","v":""},{"$f":"IFERROR(IF(A273=\"\",\"\",\n_xlfn.LET(_xlpm.Contract,'1. Checklist & Certification'!$F$8,\n_xlpm.Yr,TEXT(MOD(_xlfn.TEXTBEFORE(_xlpm.Contract,\"-\"),100),\"00\"),\n_xlpm.Program,_xlfn.TEXTAFTER(_xlfn.TEXTBEFORE(_xlpm.Contract,\"-\",2),\"-\"),\n_xlpm.CleanProgram,_xlfn.XLOOKUP(_xlpm.Program,SpellCheck[Input],SpellCheck[Correction],_xlpm.Program),\n_xlpm.Number,TEXT(_xlfn.TEXTAFTER(_xlpm.Contract,\"-\",2),\"0000\"),\n_xlfn.CONCAT(_xlpm.Yr,\"-\",_xlpm.CleanProgram,\"-\",_xlpm.Number))\n),\"\")","v":""},{"$f":"IF(A273=\"\",\"\",'1. Checklist & Certification'!$B$9)","v":""},{"$f":"IF(A273=\"\",\"\",'1. Checklist & Certification'!$F$9)","v":""},{"$f":"IF(A273=\"\",\"\",'1. Checklist & Certification'!$C$10)","v":""},{"$f":"IF(A273=\"\",\"\",'1. Checklist & Certification'!$C$11)","v":""},{"$f":"IF(A273=\"\",\"\",'1. Checklist & Certification'!$C$12)","v":""},{"$f":"IF(A273=\"\",\"\",'1. Checklist & Certification'!$B$14)","v":""},{"$f":"IF(A273=\"\",\"\",'1. Checklist & Certification'!$E$14)","v":""},{"$f":"IF(B273=\"\",\"\",'1. Checklist & Certification'!$G$14)","v":""},{"$f":"IF(A273=\"\",\"\",'MHP Family Income & Rent Limits'!$B$3)","v":""},{"$f":"IF(A273=\"\",\"\",'MHP Family Income & Rent Limits'!$J$3)","v":""},{"$f":"IF(A273=\"\",\"\",'MHP Family Income & Rent Limits'!$E$4)","v":""},{"$f":"IF(A273=\"\",\"\",'MHP Family Income & Rent Limits'!$C$7)","v":""},{"$f":"IF(A273=\"\",\"\",'MHP Family Income & Rent Limits'!$F$8)","v":""},{"$f":"IF(A273=\"\",\"\",'1. Checklist & Certification'!$G$4)","v":""},{"$f":"IF(A273=\"\",\"\",'1. Checklist & Certification'!$K$39)","v":""},{"$f":"IF(A273=\"\",\"\",'1. Checklist & Certification'!$K$43)","v":""},{"$f":"IF(A273=\"\",\"\",'1. Checklist & Certification'!$K$45)","v":""},{"$f":"IF(A273=\"\",\"\",'1. Checklist & Certification'!$K$49)","v":""},{"$f":"IF(A273=\"\",\"\",'1. Checklist & Certification'!$K$62)","v":""},{"$f":"IF(A273=\"\",\"\",'1. Checklist & Certification'!$E$66)","v":""},{"$f":"IF(A273=\"\",\"\",'1. Checklist & Certification'!$E$67)","v":""},{"$f":"IF(A273=\"\",\"\",'1. Checklist & Certification'!$E$68)","v":""},{"$f":"IF(A273=\"\",\"\",'1. Checklist & Certification'!$G$66)","v":""},{"$f":"IF(A273=\"\",\"\",'1. Checklist & Certification'!$H$66)","v":""},{"$f":"IF(A273=\"\",\"\",'1. Checklist & Certification'!$I$66)","v":""},{"$f":"IF(A273=\"\",\"\",'1. Checklist & Certification'!$I$67)","v":""},{"$f":"IF(A273=\"\",\"\",'1. Checklist & Certification'!$I$68)","v":""},{"$f":"IF(A273=\"\",\"\",'1. Checklist & Certification'!$B$69)","v":""},{"$f":"IF(A273=\"\",\"\",'1. Checklist & Certification'!$C$69)","v":""},{"$f":"IF(A273=\"\",\"\",'1. Checklist & Certification'!$F$69)","v":""},{"$f":"IF(A273=\"\",\"\",'1. Checklist & Certification'!$G$69)","v":""},{"$f":"IF(A273=\"\",\"\",'1. Checklist & Certification'!$J$69)","v":""},{"$f":"IF(A273=\"\",\"\",'1. Checklist & Certification'!$K$69)","v":""},null,null,{"$f":"IF(AND(OR('1. Checklist & Certification'!$M$16=1,'1. Checklist & Certification'!$M$19=2),AO273>0,B273=\"\",I273>0,AQ273<I273,AV273<>\"Sec 8-Project\"),\"X\",IF(AND(OR('1. Checklist & Certification'!$M$20=4,'1. Checklist & Certification'!$M$21=5,'1. Checklist & Certification'!$M$22=7),AO273>0,B273=\"\",I273>0,K273<I273),\"X\",\"\"))","v":""},{"$f":"IF(A273=\"\",\"\",IF(SUMPRODUCT(-- (ISNUMBER(SEARCH({\"*AHSC*\",\"*FMTW*\",\"*FWHG*\",\"*GHI*\",\"*HHC*\",\"*HLCP*\",\"*HOME*\",\"*LPR*\",\"*MHP*\",\"*NHTF*\",\"*NSP*\",\"*PRP*\",\"*TOD*\",\"*VHHP*\"},'1. Checklist & Certification'!$L$7)))),\"MHP\",\"Legacy\"))","v":""},",,",null,null,null,{"$f":"IF('1. Checklist & Certification'!$M$20=4,\"Both\",IF(OR('1. Checklist & Certification'!$M$15>0,S273=\"CHRP-R\",U273=\"CHRP-R\",W273=\"CHRP-R\",Y273=\"CHRP-R\"),\"Under\",\"No\"))","v":"No"},"No","No",{"$f":"_xlfn.IFS(D273=\"\",\"\",D273=1,'MHP Family Income & Rent Limits'!$E$17,D273=2,'MHP Family Income & Rent Limits'!$F$17,D273=3,'MHP Family Income & Rent Limits'!$G$17,D273=4,'MHP Family Income & Rent Limits'!$H$17,D273=5,'MHP Family Income & Rent Limits'!$I$17,D273=6,'MHP Family Income & Rent Limits'!$J$17,D273=7,'MHP Family Income & Rent Limits'!$K$17,D273=8,'MHP Family Income & Rent Limits'!$L$17)","v":""},"",{"$f":"IF(OR(A273=0,B273=\"X\"),0,MIN(IF(AA273:AD273<>0,AA273:AD273)))","v":0},{"$f":"IF(OR(H273=\"\",I273=\"\"),0,IF(H273*0.3/12>I273,MIN(H273*0.3/12,I273*1.1)+AP273,I273*(1+(VLOOKUP('1. Checklist & Certification'!$F$9,'HLCP-E Rent Change'!$A$1:$D$59,4,FALSE)))+AP273))","v":0}]
[null,null,null,null,null,null,null,null,null,null,null,null,null,null,null,null,null,null,null,null,null,null,null,null,null,null,0,0,0,0,0,0,0,0,{"$f":"IF(OR(A274=0,B274=\"X\"),0,IF(OR(S274=\"FHDP\",S274=\"RHCP-B\",U274=\"FHDP\",U274=\"RHCP-B\",W274=\"FHDP\",W274=\"RHCP-B\",Y274=\"FHDP\",Y274=\"RHCP-B\"),TRUNC((MIN(I274,K274)*(1+'1. Checklist & Certification'!$K$43)+AP274)),0))","v":0},{"$f":"IF(OR(A274=0,B274=\"X\"),0,IF(OR(S274=\"CHRP-R\",S274=\"SERA\",S274=\"SUHRP\",U274=\"CHRP-R\",U274=\"SERA\",U274=\"SUHRP\",W274=\"CHRP-R\",W274=\"SERA\",W274=\"SUHRP\",Y274=\"CHRP-R\",Y274=\"SERA\",Y274=\"SUHRP\"),TRUNC((MIN(I274,K274)*(1+'1. Checklist & Certification'!$K$49))),0))","v":0},{"$f":"IF(OR(A274=0,B274=\"X\"),0,IF(OR(S274=\"CALDAP\",S274=\"DPRLP\",U274=\"CALDAP\",U274=\"DPRLP\",W274=\"CALDAP\",W274=\"DPRLP\",Y274=\"CALDAP\",Y274=\"DPRLP\"),TRUNC(((MIN(I274,K274))*(1+'1. Checklist & Certification'!$G$4))),0))","v":0},0,0,0,{"$f":"IF(OR(A274=0,B274=\"X\"),0,IF(OR(S274=\"PRP\",S274=\"LPR\",U274=\"PRP\",U274=\"LPR\",W274=\"PRP\",W274=\"LPR\",Y274=\"PRP\",Y274=\"LPR\"),MAX(I274+AP274,MIN(IF(AE274:AN274<>0,AE274:AN274))),MIN(IF(AE274:AN274<>0,AE274:AN274))))","v":0},{"$f":"IF(A274=0,0,IF(AND(OR(S274=\"Mgr\",S274=0),OR(U274=\"Mgr\",U274=0),OR(W274=\"Mgr\",W274=0)),0,IF(LEFT($A274,2)=\"B*\",VLOOKUP($E274,'1. Checklist & Certification'!$D$26:$E$32,2),IF(LEFT($A274,2)=\"C*\",VLOOKUP($E274,'1. Checklist & Certification'!$F$26:$G$32,2),IF(LEFT($A274,2)=\"D*\",VLOOKUP($E274,'1. Checklist & Certification'!$H$26:$I$32,2),IF(LEFT($A274,2)=\"E*\",VLOOKUP($E274,'1. Checklist & Certification'!$J$26:$K$32,2),VLOOKUP($E274,'1. Checklist & Certification'!$A$26:$B$32,2)))))))","v":0},0,0,null,null,null,null,"","",0,0,0,null,{"$f":"IF(A274=\"\",\"\",'1. Checklist & Certification'!$K$1)","v":""},{"$f":"IF(A274=\"\",\"\",'1. Checklist & Certification'!$C$62)","v":""},{"$f":"IF(A274=\"\",\"\",'1. Checklist & Certification'!$C$6)","v":""},{"$f":"IF(A274=\"\",\"\",'1. Checklist & Certification'!$G$5)","v":""},{"$f":"IFERROR(IF(A274=\"\",\"\",\n_xlfn.LET(_xlpm.Contract,'1. Checklist & Certification'!$C$7,\n_xlpm.Yr,TEXT(MOD(_xlfn.TEXTBEFORE(_xlpm.Contract,\"-\"),100),\"00\"),\n_xlpm.Program,_xlfn.TEXTAFTER(_xlfn.TEXTBEFORE(_xlpm.Contract,\"-\",2),\"-\"),\n_xlpm.CleanProgram,_xlfn.XLOOKUP(_xlpm.Program,SpellCheck[Input],SpellCheck[Correction],_xlpm.Program),\n_xlpm.Number,TEXT(_xlfn.TEXTAFTER(_xlpm.Contract,\"-\",2),\"0000\"),\n_xlfn.CONCAT(_xlpm.Yr,\"-\",_xlpm.CleanProgram,\"-\",_xlpm.Number))\n),\"\")","v":""},{"$f":"IFERROR(IF(A274=\"\",\"\",\n_xlfn.LET(_xlpm.Contract,'1. Checklist & Certification'!$C$8,\n_xlpm.Yr,TEXT(MOD(_xlfn.TEXTBEFORE(_xlpm.Contract,\"-\"),100),\"00\"),\n_xlpm.Program,_xlfn.TEXTAFTER(_xlfn.TEXTBEFORE(_xlpm.Contract,\"-\",2),\"-\"),\n_xlpm.CleanProgram,_xlfn.XLOOKUP(_xlpm.Program,SpellCheck[Input],SpellCheck[Correction],_xlpm.Program),\n_xlpm.Number,TEXT(_xlfn.TEXTAFTER(_xlpm.Contract,\"-\",2),\"0000\"),\n_xlfn.CONCAT(_xlpm.Yr,\"-\",_xlpm.CleanProgram,\"-\",_xlpm.Number))\n),\"\")","v":""},{"$f":"IFERROR(IF(A274=\"\",\"\",\n_xlfn.LET(_xlpm.Contract,'1. Checklist & Certification'!$F$7,\n_xlpm.Yr,TEXT(MOD(_xlfn.TEXTBEFORE(_xlpm.Contract,\"-\"),100),\"00\"),\n_xlpm.Program,_xlfn.TEXTAFTER(_xlfn.TEXTBEFORE(_xlpm.Contract,\"-\",2),\"-\"),\n_xlpm.CleanProgram,_xlfn.XLOOKUP(_xlpm.Program,SpellCheck[Input],SpellCheck[Correction],_xlpm.Program),\n_xlpm.Number,TEXT(_xlfn.TEXTAFTER(_xlpm.Contract,\"-\",2),\"0000\"),\n_xlfn.CONCAT(_xlpm.Yr,\"-\",_xlpm.CleanProgram,\"-\",_xlpm.Number))\n),\"\")","v":""},{"$f":"IFERROR(IF(A274=\"\",\"\",\n_xlfn.LET(_xlpm.Contract,'1. Checklist & Certification'!$F$8,\n_xlpm.Yr,TEXT(MOD(_xlfn.TEXTBEFORE(_xlpm.Contract,\"-\"),100),\"00\"),\n_xlpm.Program,_xlfn.TEXTAFTER(_xlfn.TEXTBEFORE(_xlpm.Contract,\"-\",2),\"-\"),\n_xlpm.CleanProgram,_xlfn.XLOOKUP(_xlpm.Program,SpellCheck[Input],SpellCheck[Correction],_xlpm.Program),\n_xlpm.Number,TEXT(_xlfn.TEXTAFTER(_xlpm.Contract,\"-\",2),\"0000\"),\n_xlfn.CONCAT(_xlpm.Yr,\"-\",_xlpm.CleanProgram,\"-\",_xlpm.Number))\n),\"\")","v":""},{"$f":"IF(A274=\"\",\"\",'1. Checklist & Certification'!$B$9)","v":""},{"$f":"IF(A274=\"\",\"\",'1. Checklist & Certification'!$F$9)","v":""},{"$f":"IF(A274=\"\",\"\",'1. Checklist & Certification'!$C$10)","v":""},{"$f":"IF(A274=\"\",\"\",'1. Checklist & Certification'!$C$11)","v":""},{"$f":"IF(A274=\"\",\"\",'1. Checklist & Certification'!$C$12)","v":""},{"$f":"IF(A274=\"\",\"\",'1. Checklist & Certification'!$B$14)","v":""},{"$f":"IF(A274=\"\",\"\",'1. Checklist & Certification'!$E$14)","v":""},{"$f":"IF(B274=\"\",\"\",'1. Checklist & Certification'!$G$14)","v":""},{"$f":"IF(A274=\"\",\"\",'MHP Family Income & Rent Limits'!$B$3)","v":""},{"$f":"IF(A274=\"\",\"\",'MHP Family Income & Rent Limits'!$J$3)","v":""},{"$f":"IF(A274=\"\",\"\",'MHP Family Income & Rent Limits'!$E$4)","v":""},{"$f":"IF(A274=\"\",\"\",'MHP Family Income & Rent Limits'!$C$7)","v":""},{"$f":"IF(A274=\"\",\"\",'MHP Family Income & Rent Limits'!$F$8)","v":""},{"$f":"IF(A274=\"\",\"\",'1. Checklist & Certification'!$G$4)","v":""},{"$f":"IF(A274=\"\",\"\",'1. Checklist & Certification'!$K$39)","v":""},{"$f":"IF(A274=\"\",\"\",'1. Checklist & Certification'!$K$43)","v":""},{"$f":"IF(A274=\"\",\"\",'1. Checklist & Certification'!$K$45)","v":""},{"$f":"IF(A274=\"\",\"\",'1. Checklist & Certification'!$K$49)","v":""},{"$f":"IF(A274=\"\",\"\",'1. Checklist & Certification'!$K$62)","v":""},{"$f":"IF(A274=\"\",\"\",'1. Checklist & Certification'!$E$66)","v":""},{"$f":"IF(A274=\"\",\"\",'1. Checklist & Certification'!$E$67)","v":""},{"$f":"IF(A274=\"\",\"\",'1. Checklist & Certification'!$E$68)","v":""},{"$f":"IF(A274=\"\",\"\",'1. Checklist & Certification'!$G$66)","v":""},{"$f":"IF(A274=\"\",\"\",'1. Checklist & Certification'!$H$66)","v":""},{"$f":"IF(A274=\"\",\"\",'1. Checklist & Certification'!$I$66)","v":""},{"$f":"IF(A274=\"\",\"\",'1. Checklist & Certification'!$I$67)","v":""},{"$f":"IF(A274=\"\",\"\",'1. Checklist & Certification'!$I$68)","v":""},{"$f":"IF(A274=\"\",\"\",'1. Checklist & Certification'!$B$69)","v":""},{"$f":"IF(A274=\"\",\"\",'1. Checklist & Certification'!$C$69)","v":""},{"$f":"IF(A274=\"\",\"\",'1. Checklist & Certification'!$F$69)","v":""},{"$f":"IF(A274=\"\",\"\",'1. Checklist & Certification'!$G$69)","v":""},{"$f":"IF(A274=\"\",\"\",'1. Checklist & Certification'!$J$69)","v":""},{"$f":"IF(A274=\"\",\"\",'1. Checklist & Certification'!$K$69)","v":""},null,null,{"$f":"IF(AND(OR('1. Checklist & Certification'!$M$16=1,'1. Checklist & Certification'!$M$19=2),AO274>0,B274=\"\",I274>0,AQ274<I274,AV274<>\"Sec 8-Project\"),\"X\",IF(AND(OR('1. Checklist & Certification'!$M$20=4,'1. Checklist & Certification'!$M$21=5,'1. Checklist & Certification'!$M$22=7),AO274>0,B274=\"\",I274>0,K274<I274),\"X\",\"\"))","v":""},{"$f":"IF(A274=\"\",\"\",IF(SUMPRODUCT(-- (ISNUMBER(SEARCH({\"*AHSC*\",\"*FMTW*\",\"*FWHG*\",\"*GHI*\",\"*HHC*\",\"*HLCP*\",\"*HOME*\",\"*LPR*\",\"*MHP*\",\"*NHTF*\",\"*NSP*\",\"*PRP*\",\"*TOD*\",\"*VHHP*\"},'1. Checklist & Certification'!$L$7)))),\"MHP\",\"Legacy\"))","v":""},",,",null,null,null,{"$f":"IF('1. Checklist & Certification'!$M$20=4,\"Both\",IF(OR('1. Checklist & Certification'!$M$15>0,S274=\"CHRP-R\",U274=\"CHRP-R\",W274=\"CHRP-R\",Y274=\"CHRP-R\"),\"Under\",\"No\"))","v":"No"},"No","No",{"$f":"_xlfn.IFS(D274=\"\",\"\",D274=1,'MHP Family Income & Rent Limits'!$E$17,D274=2,'MHP Family Income & Rent Limits'!$F$17,D274=3,'MHP Family Income & Rent Limits'!$G$17,D274=4,'MHP Family Income & Rent Limits'!$H$17,D274=5,'MHP Family Income & Rent Limits'!$I$17,D274=6,'MHP Family Income & Rent Limits'!$J$17,D274=7,'MHP Family Income & Rent Limits'!$K$17,D274=8,'MHP Family Income & Rent Limits'!$L$17)","v":""},"",{"$f":"IF(OR(A274=0,B274=\"X\"),0,MIN(IF(AA274:AD274<>0,AA274:AD274)))","v":0},{"$f":"IF(OR(H274=\"\",I274=\"\"),0,IF(H274*0.3/12>I274,MIN(H274*0.3/12,I274*1.1)+AP274,I274*(1+(VLOOKUP('1. Checklist & Certification'!$F$9,'HLCP-E Rent Change'!$A$1:$D$59,4,FALSE)))+AP274))","v":0}]
[null,null,null,null,null,null,null,null,null,null,null,null,null,null,null,null,null,null,null,null,null,null,null,null,null,null,0,0,0,0,0,0,0,0,{"$f":"IF(OR(A275=0,B275=\"X\"),0,IF(OR(S275=\"FHDP\",S275=\"RHCP-B\",U275=\"FHDP\",U275=\"RHCP-B\",W275=\"FHDP\",W275=\"RHCP-B\",Y275=\"FHDP\",Y275=\"RHCP-B\"),TRUNC((MIN(I275,K275)*(1+'1. Checklist & Certification'!$K$43)+AP275)),0))","v":0},{"$f":"IF(OR(A275=0,B275=\"X\"),0,IF(OR(S275=\"CHRP-R\",S275=\"SERA\",S275=\"SUHRP\",U275=\"CHRP-R\",U275=\"SERA\",U275=\"SUHRP\",W275=\"CHRP-R\",W275=\"SERA\",W275=\"SUHRP\",Y275=\"CHRP-R\",Y275=\"SERA\",Y275=\"SUHRP\"),TRUNC((MIN(I275,K275)*(1+'1. Checklist & Certification'!$K$49))),0))","v":0},{"$f":"IF(OR(A275=0,B275=\"X\"),0,IF(OR(S275=\"CALDAP\",S275=\"DPRLP\",U275=\"CALDAP\",U275=\"DPRLP\",W275=\"CALDAP\",W275=\"DPRLP\",Y275=\"CALDAP\",Y275=\"DPRLP\"),TRUNC(((MIN(I275,K275))*(1+'1. Checklist & Certification'!$G$4))),0))","v":0},0,0,0,{"$f":"IF(OR(A275=0,B275=\"X\"),0,IF(OR(S275=\"PRP\",S275=\"LPR\",U275=\"PRP\",U275=\"LPR\",W275=\"PRP\",W275=\"LPR\",Y275=\"PRP\",Y275=\"LPR\"),MAX(I275+AP275,MIN(IF(AE275:AN275<>0,AE275:AN275))),MIN(IF(AE275:AN275<>0,AE275:AN275))))","v":0},{"$f":"IF(A275=0,0,IF(AND(OR(S275=\"Mgr\",S275=0),OR(U275=\"Mgr\",U275=0),OR(W275=\"Mgr\",W275=0)),0,IF(LEFT($A275,2)=\"B*\",VLOOKUP($E275,'1. Checklist & Certification'!$D$26:$E$32,2),IF(LEFT($A275,2)=\"C*\",VLOOKUP($E275,'1. Checklist & Certification'!$F$26:$G$32,2),IF(LEFT($A275,2)=\"D*\",VLOOKUP($E275,'1. Checklist & Certification'!$H$26:$I$32,2),IF(LEFT($A275,2)=\"E*\",VLOOKUP($E275,'1. Checklist & Certification'!$J$26:$K$32,2),VLOOKUP($E275,'1. Checklist & Certification'!$A$26:$B$32,2)))))))","v":0},0,0,null,null,null,null,"","",0,0,0,null,{"$f":"IF(A275=\"\",\"\",'1. Checklist & Certification'!$K$1)","v":""},{"$f":"IF(A275=\"\",\"\",'1. Checklist & Certification'!$C$62)","v":""},{"$f":"IF(A275=\"\",\"\",'1. Checklist & Certification'!$C$6)","v":""},{"$f":"IF(A275=\"\",\"\",'1. Checklist & Certification'!$G$5)","v":""},{"$f":"IFERROR(IF(A275=\"\",\"\",\n_xlfn.LET(_xlpm.Contract,'1. Checklist & Certification'!$C$7,\n_xlpm.Yr,TEXT(MOD(_xlfn.TEXTBEFORE(_xlpm.Contract,\"-\"),100),\"00\"),\n_xlpm.Program,_xlfn.TEXTAFTER(_xlfn.TEXTBEFORE(_xlpm.Contract,\"-\",2),\"-\"),\n_xlpm.CleanProgram,_xlfn.XLOOKUP(_xlpm.Program,SpellCheck[Input],SpellCheck[Correction],_xlpm.Program),\n_xlpm.Number,TEXT(_xlfn.TEXTAFTER(_xlpm.Contract,\"-\",2),\"0000\"),\n_xlfn.CONCAT(_xlpm.Yr,\"-\",_xlpm.CleanProgram,\"-\",_xlpm.Number))\n),\"\")","v":""},{"$f":"IFERROR(IF(A275=\"\",\"\",\n_xlfn.LET(_xlpm.Contract,'1. Checklist & Certification'!$C$8,\n_xlpm.Yr,TEXT(MOD(_xlfn.TEXTBEFORE(_xlpm.Contract,\"-\"),100),\"00\"),\n_xlpm.Program,_xlfn.TEXTAFTER(_xlfn.TEXTBEFORE(_xlpm.Contract,\"-\",2),\"-\"),\n_xlpm.CleanProgram,_xlfn.XLOOKUP(_xlpm.Program,SpellCheck[Input],SpellCheck[Correction],_xlpm.Program),\n_xlpm.Number,TEXT(_xlfn.TEXTAFTER(_xlpm.Contract,\"-\",2),\"0000\"),\n_xlfn.CONCAT(_xlpm.Yr,\"-\",_xlpm.CleanProgram,\"-\",_xlpm.Number))\n),\"\")","v":""},{"$f":"IFERROR(IF(A275=\"\",\"\",\n_xlfn.LET(_xlpm.Contract,'1. Checklist & Certification'!$F$7,\n_xlpm.Yr,TEXT(MOD(_xlfn.TEXTBEFORE(_xlpm.Contract,\"-\"),100),\"00\"),\n_xlpm.Program,_xlfn.TEXTAFTER(_xlfn.TEXTBEFORE(_xlpm.Contract,\"-\",2),\"-\"),\n_xlpm.CleanProgram,_xlfn.XLOOKUP(_xlpm.Program,SpellCheck[Input],SpellCheck[Correction],_xlpm.Program),\n_xlpm.Number,TEXT(_xlfn.TEXTAFTER(_xlpm.Contract,\"-\",2),\"0000\"),\n_xlfn.CONCAT(_xlpm.Yr,\"-\",_xlpm.CleanProgram,\"-\",_xlpm.Number))\n),\"\")","v":""},{"$f":"IFERROR(IF(A275=\"\",\"\",\n_xlfn.LET(_xlpm.Contract,'1. Checklist & Certification'!$F$8,\n_xlpm.Yr,TEXT(MOD(_xlfn.TEXTBEFORE(_xlpm.Contract,\"-\"),100),\"00\"),\n_xlpm.Program,_xlfn.TEXTAFTER(_xlfn.TEXTBEFORE(_xlpm.Contract,\"-\",2),\"-\"),\n_xlpm.CleanProgram,_xlfn.XLOOKUP(_xlpm.Program,SpellCheck[Input],SpellCheck[Correction],_xlpm.Program),\n_xlpm.Number,TEXT(_xlfn.TEXTAFTER(_xlpm.Contract,\"-\",2),\"0000\"),\n_xlfn.CONCAT(_xlpm.Yr,\"-\",_xlpm.CleanProgram,\"-\",_xlpm.Number))\n),\"\")","v":""},{"$f":"IF(A275=\"\",\"\",'1. Checklist & Certification'!$B$9)","v":""},{"$f":"IF(A275=\"\",\"\",'1. Checklist & Certification'!$F$9)","v":""},{"$f":"IF(A275=\"\",\"\",'1. Checklist & Certification'!$C$10)","v":""},{"$f":"IF(A275=\"\",\"\",'1. Checklist & Certification'!$C$11)","v":""},{"$f":"IF(A275=\"\",\"\",'1. Checklist & Certification'!$C$12)","v":""},{"$f":"IF(A275=\"\",\"\",'1. Checklist & Certification'!$B$14)","v":""},{"$f":"IF(A275=\"\",\"\",'1. Checklist & Certification'!$E$14)","v":""},{"$f":"IF(B275=\"\",\"\",'1. Checklist & Certification'!$G$14)","v":""},{"$f":"IF(A275=\"\",\"\",'MHP Family Income & Rent Limits'!$B$3)","v":""},{"$f":"IF(A275=\"\",\"\",'MHP Family Income & Rent Limits'!$J$3)","v":""},{"$f":"IF(A275=\"\",\"\",'MHP Family Income & Rent Limits'!$E$4)","v":""},{"$f":"IF(A275=\"\",\"\",'MHP Family Income & Rent Limits'!$C$7)","v":""},{"$f":"IF(A275=\"\",\"\",'MHP Family Income & Rent Limits'!$F$8)","v":""},{"$f":"IF(A275=\"\",\"\",'1. Checklist & Certification'!$G$4)","v":""},{"$f":"IF(A275=\"\",\"\",'1. Checklist & Certification'!$K$39)","v":""},{"$f":"IF(A275=\"\",\"\",'1. Checklist & Certification'!$K$43)","v":""},{"$f":"IF(A275=\"\",\"\",'1. Checklist & Certification'!$K$45)","v":""},{"$f":"IF(A275=\"\",\"\",'1. Checklist & Certification'!$K$49)","v":""},{"$f":"IF(A275=\"\",\"\",'1. Checklist & Certification'!$K$62)","v":""},{"$f":"IF(A275=\"\",\"\",'1. Checklist & Certification'!$E$66)","v":""},{"$f":"IF(A275=\"\",\"\",'1. Checklist & Certification'!$E$67)","v":""},{"$f":"IF(A275=\"\",\"\",'1. Checklist & Certification'!$E$68)","v":""},{"$f":"IF(A275=\"\",\"\",'1. Checklist & Certification'!$G$66)","v":""},{"$f":"IF(A275=\"\",\"\",'1. Checklist & Certification'!$H$66)","v":""},{"$f":"IF(A275=\"\",\"\",'1. Checklist & Certification'!$I$66)","v":""},{"$f":"IF(A275=\"\",\"\",'1. Checklist & Certification'!$I$67)","v":""},{"$f":"IF(A275=\"\",\"\",'1. Checklist & Certification'!$I$68)","v":""},{"$f":"IF(A275=\"\",\"\",'1. Checklist & Certification'!$B$69)","v":""},{"$f":"IF(A275=\"\",\"\",'1. Checklist & Certification'!$C$69)","v":""},{"$f":"IF(A275=\"\",\"\",'1. Checklist & Certification'!$F$69)","v":""},{"$f":"IF(A275=\"\",\"\",'1. Checklist & Certification'!$G$69)","v":""},{"$f":"IF(A275=\"\",\"\",'1. Checklist & Certification'!$J$69)","v":""},{"$f":"IF(A275=\"\",\"\",'1. Checklist & Certification'!$K$69)","v":""},null,null,{"$f":"IF(AND(OR('1. Checklist & Certification'!$M$16=1,'1. Checklist & Certification'!$M$19=2),AO275>0,B275=\"\",I275>0,AQ275<I275,AV275<>\"Sec 8-Project\"),\"X\",IF(AND(OR('1. Checklist & Certification'!$M$20=4,'1. Checklist & Certification'!$M$21=5,'1. Checklist & Certification'!$M$22=7),AO275>0,B275=\"\",I275>0,K275<I275),\"X\",\"\"))","v":""},{"$f":"IF(A275=\"\",\"\",IF(SUMPRODUCT(-- (ISNUMBER(SEARCH({\"*AHSC*\",\"*FMTW*\",\"*FWHG*\",\"*GHI*\",\"*HHC*\",\"*HLCP*\",\"*HOME*\",\"*LPR*\",\"*MHP*\",\"*NHTF*\",\"*NSP*\",\"*PRP*\",\"*TOD*\",\"*VHHP*\"},'1. Checklist & Certification'!$L$7)))),\"MHP\",\"Legacy\"))","v":""},",,",null,null,null,{"$f":"IF('1. Checklist & Certification'!$M$20=4,\"Both\",IF(OR('1. Checklist & Certification'!$M$15>0,S275=\"CHRP-R\",U275=\"CHRP-R\",W275=\"CHRP-R\",Y275=\"CHRP-R\"),\"Under\",\"No\"))","v":"No"},"No","No",{"$f":"_xlfn.IFS(D275=\"\",\"\",D275=1,'MHP Family Income & Rent Limits'!$E$17,D275=2,'MHP Family Income & Rent Limits'!$F$17,D275=3,'MHP Family Income & Rent Limits'!$G$17,D275=4,'MHP Family Income & Rent Limits'!$H$17,D275=5,'MHP Family Income & Rent Limits'!$I$17,D275=6,'MHP Family Income & Rent Limits'!$J$17,D275=7,'MHP Family Income & Rent Limits'!$K$17,D275=8,'MHP Family Income & Rent Limits'!$L$17)","v":""},"",{"$f":"IF(OR(A275=0,B275=\"X\"),0,MIN(IF(AA275:AD275<>0,AA275:AD275)))","v":0},{"$f":"IF(OR(H275=\"\",I275=\"\"),0,IF(H275*0.3/12>I275,MIN(H275*0.3/12,I275*1.1)+AP275,I275*(1+(VLOOKUP('1. Checklist & Certification'!$F$9,'HLCP-E Rent Change'!$A$1:$D$59,4,FALSE)))+AP275))","v":0}]
[null,null,null,null,null,null,null,null,null,null,null,null,null,null,null,null,null,null,null,null,null,null,null,null,null,null,0,0,0,0,0,0,0,0,{"$f":"IF(OR(A276=0,B276=\"X\"),0,IF(OR(S276=\"FHDP\",S276=\"RHCP-B\",U276=\"FHDP\",U276=\"RHCP-B\",W276=\"FHDP\",W276=\"RHCP-B\",Y276=\"FHDP\",Y276=\"RHCP-B\"),TRUNC((MIN(I276,K276)*(1+'1. Checklist & Certification'!$K$43)+AP276)),0))","v":0},{"$f":"IF(OR(A276=0,B276=\"X\"),0,IF(OR(S276=\"CHRP-R\",S276=\"SERA\",S276=\"SUHRP\",U276=\"CHRP-R\",U276=\"SERA\",U276=\"SUHRP\",W276=\"CHRP-R\",W276=\"SERA\",W276=\"SUHRP\",Y276=\"CHRP-R\",Y276=\"SERA\",Y276=\"SUHRP\"),TRUNC((MIN(I276,K276)*(1+'1. Checklist & Certification'!$K$49))),0))","v":0},{"$f":"IF(OR(A276=0,B276=\"X\"),0,IF(OR(S276=\"CALDAP\",S276=\"DPRLP\",U276=\"CALDAP\",U276=\"DPRLP\",W276=\"CALDAP\",W276=\"DPRLP\",Y276=\"CALDAP\",Y276=\"DPRLP\"),TRUNC(((MIN(I276,K276))*(1+'1. Checklist & Certification'!$G$4))),0))","v":0},0,0,0,{"$f":"IF(OR(A276=0,B276=\"X\"),0,IF(OR(S276=\"PRP\",S276=\"LPR\",U276=\"PRP\",U276=\"LPR\",W276=\"PRP\",W276=\"LPR\",Y276=\"PRP\",Y276=\"LPR\"),MAX(I276+AP276,MIN(IF(AE276:AN276<>0,AE276:AN276))),MIN(IF(AE276:AN276<>0,AE276:AN276))))","v":0},{"$f":"IF(A276=0,0,IF(AND(OR(S276=\"Mgr\",S276=0),OR(U276=\"Mgr\",U276=0),OR(W276=\"Mgr\",W276=0)),0,IF(LEFT($A276,2)=\"B*\",VLOOKUP($E276,'1. Checklist & Certification'!$D$26:$E$32,2),IF(LEFT($A276,2)=\"C*\",VLOOKUP($E276,'1. Checklist & Certification'!$F$26:$G$32,2),IF(LEFT($A276,2)=\"D*\",VLOOKUP($E276,'1. Checklist & Certification'!$H$26:$I$32,2),IF(LEFT($A276,2)=\"E*\",VLOOKUP($E276,'1. Checklist & Certification'!$J$26:$K$32,2),VLOOKUP($E276,'1. Checklist & Certification'!$A$26:$B$32,2)))))))","v":0},0,0,null,null,null,null,"","",0,0,0,null,{"$f":"IF(A276=\"\",\"\",'1. Checklist & Certification'!$K$1)","v":""},{"$f":"IF(A276=\"\",\"\",'1. Checklist & Certification'!$C$62)","v":""},{"$f":"IF(A276=\"\",\"\",'1. Checklist & Certification'!$C$6)","v":""},{"$f":"IF(A276=\"\",\"\",'1. Checklist & Certification'!$G$5)","v":""},{"$f":"IFERROR(IF(A276=\"\",\"\",\n_xlfn.LET(_xlpm.Contract,'1. Checklist & Certification'!$C$7,\n_xlpm.Yr,TEXT(MOD(_xlfn.TEXTBEFORE(_xlpm.Contract,\"-\"),100),\"00\"),\n_xlpm.Program,_xlfn.TEXTAFTER(_xlfn.TEXTBEFORE(_xlpm.Contract,\"-\",2),\"-\"),\n_xlpm.CleanProgram,_xlfn.XLOOKUP(_xlpm.Program,SpellCheck[Input],SpellCheck[Correction],_xlpm.Program),\n_xlpm.Number,TEXT(_xlfn.TEXTAFTER(_xlpm.Contract,\"-\",2),\"0000\"),\n_xlfn.CONCAT(_xlpm.Yr,\"-\",_xlpm.CleanProgram,\"-\",_xlpm.Number))\n),\"\")","v":""},{"$f":"IFERROR(IF(A276=\"\",\"\",\n_xlfn.LET(_xlpm.Contract,'1. Checklist & Certification'!$C$8,\n_xlpm.Yr,TEXT(MOD(_xlfn.TEXTBEFORE(_xlpm.Contract,\"-\"),100),\"00\"),\n_xlpm.Program,_xlfn.TEXTAFTER(_xlfn.TEXTBEFORE(_xlpm.Contract,\"-\",2),\"-\"),\n_xlpm.CleanProgram,_xlfn.XLOOKUP(_xlpm.Program,SpellCheck[Input],SpellCheck[Correction],_xlpm.Program),\n_xlpm.Number,TEXT(_xlfn.TEXTAFTER(_xlpm.Contract,\"-\",2),\"0000\"),\n_xlfn.CONCAT(_xlpm.Yr,\"-\",_xlpm.CleanProgram,\"-\",_xlpm.Number))\n),\"\")","v":""},{"$f":"IFERROR(IF(A276=\"\",\"\",\n_xlfn.LET(_xlpm.Contract,'1. Checklist & Certification'!$F$7,\n_xlpm.Yr,TEXT(MOD(_xlfn.TEXTBEFORE(_xlpm.Contract,\"-\"),100),\"00\"),\n_xlpm.Program,_xlfn.TEXTAFTER(_xlfn.TEXTBEFORE(_xlpm.Contract,\"-\",2),\"-\"),\n_xlpm.CleanProgram,_xlfn.XLOOKUP(_xlpm.Program,SpellCheck[Input],SpellCheck[Correction],_xlpm.Program),\n_xlpm.Number,TEXT(_xlfn.TEXTAFTER(_xlpm.Contract,\"-\",2),\"0000\"),\n_xlfn.CONCAT(_xlpm.Yr,\"-\",_xlpm.CleanProgram,\"-\",_xlpm.Number))\n),\"\")","v":""},{"$f":"IFERROR(IF(A276=\"\",\"\",\n_xlfn.LET(_xlpm.Contract,'1. Checklist & Certification'!$F$8,\n_xlpm.Yr,TEXT(MOD(_xlfn.TEXTBEFORE(_xlpm.Contract,\"-\"),100),\"00\"),\n_xlpm.Program,_xlfn.TEXTAFTER(_xlfn.TEXTBEFORE(_xlpm.Contract,\"-\",2),\"-\"),\n_xlpm.CleanProgram,_xlfn.XLOOKUP(_xlpm.Program,SpellCheck[Input],SpellCheck[Correction],_xlpm.Program),\n_xlpm.Number,TEXT(_xlfn.TEXTAFTER(_xlpm.Contract,\"-\",2),\"0000\"),\n_xlfn.CONCAT(_xlpm.Yr,\"-\",_xlpm.CleanProgram,\"-\",_xlpm.Number))\n),\"\")","v":""},{"$f":"IF(A276=\"\",\"\",'1. Checklist & Certification'!$B$9)","v":""},{"$f":"IF(A276=\"\",\"\",'1. Checklist & Certification'!$F$9)","v":""},{"$f":"IF(A276=\"\",\"\",'1. Checklist & Certification'!$C$10)","v":""},{"$f":"IF(A276=\"\",\"\",'1. Checklist & Certification'!$C$11)","v":""},{"$f":"IF(A276=\"\",\"\",'1. Checklist & Certification'!$C$12)","v":""},{"$f":"IF(A276=\"\",\"\",'1. Checklist & Certification'!$B$14)","v":""},{"$f":"IF(A276=\"\",\"\",'1. Checklist & Certification'!$E$14)","v":""},{"$f":"IF(B276=\"\",\"\",'1. Checklist & Certification'!$G$14)","v":""},{"$f":"IF(A276=\"\",\"\",'MHP Family Income & Rent Limits'!$B$3)","v":""},{"$f":"IF(A276=\"\",\"\",'MHP Family Income & Rent Limits'!$J$3)","v":""},{"$f":"IF(A276=\"\",\"\",'MHP Family Income & Rent Limits'!$E$4)","v":""},{"$f":"IF(A276=\"\",\"\",'MHP Family Income & Rent Limits'!$C$7)","v":""},{"$f":"IF(A276=\"\",\"\",'MHP Family Income & Rent Limits'!$F$8)","v":""},{"$f":"IF(A276=\"\",\"\",'1. Checklist & Certification'!$G$4)","v":""},{"$f":"IF(A276=\"\",\"\",'1. Checklist & Certification'!$K$39)","v":""},{"$f":"IF(A276=\"\",\"\",'1. Checklist & Certification'!$K$43)","v":""},{"$f":"IF(A276=\"\",\"\",'1. Checklist & Certification'!$K$45)","v":""},{"$f":"IF(A276=\"\",\"\",'1. Checklist & Certification'!$K$49)","v":""},{"$f":"IF(A276=\"\",\"\",'1. Checklist & Certification'!$K$62)","v":""},{"$f":"IF(A276=\"\",\"\",'1. Checklist & Certification'!$E$66)","v":""},{"$f":"IF(A276=\"\",\"\",'1. Checklist & Certification'!$E$67)","v":""},{"$f":"IF(A276=\"\",\"\",'1. Checklist & Certification'!$E$68)","v":""},{"$f":"IF(A276=\"\",\"\",'1. Checklist & Certification'!$G$66)","v":""},{"$f":"IF(A276=\"\",\"\",'1. Checklist & Certification'!$H$66)","v":""},{"$f":"IF(A276=\"\",\"\",'1. Checklist & Certification'!$I$66)","v":""},{"$f":"IF(A276=\"\",\"\",'1. Checklist & Certification'!$I$67)","v":""},{"$f":"IF(A276=\"\",\"\",'1. Checklist & Certification'!$I$68)","v":""},{"$f":"IF(A276=\"\",\"\",'1. Checklist & Certification'!$B$69)","v":""},{"$f":"IF(A276=\"\",\"\",'1. Checklist & Certification'!$C$69)","v":""},{"$f":"IF(A276=\"\",\"\",'1. Checklist & Certification'!$F$69)","v":""},{"$f":"IF(A276=\"\",\"\",'1. Checklist & Certification'!$G$69)","v":""},{"$f":"IF(A276=\"\",\"\",'1. Checklist & Certification'!$J$69)","v":""},{"$f":"IF(A276=\"\",\"\",'1. Checklist & Certification'!$K$69)","v":""},null,null,{"$f":"IF(AND(OR('1. Checklist & Certification'!$M$16=1,'1. Checklist & Certification'!$M$19=2),AO276>0,B276=\"\",I276>0,AQ276<I276,AV276<>\"Sec 8-Project\"),\"X\",IF(AND(OR('1. Checklist & Certification'!$M$20=4,'1. Checklist & Certification'!$M$21=5,'1. Checklist & Certification'!$M$22=7),AO276>0,B276=\"\",I276>0,K276<I276),\"X\",\"\"))","v":""},{"$f":"IF(A276=\"\",\"\",IF(SUMPRODUCT(-- (ISNUMBER(SEARCH({\"*AHSC*\",\"*FMTW*\",\"*FWHG*\",\"*GHI*\",\"*HHC*\",\"*HLCP*\",\"*HOME*\",\"*LPR*\",\"*MHP*\",\"*NHTF*\",\"*NSP*\",\"*PRP*\",\"*TOD*\",\"*VHHP*\"},'1. Checklist & Certification'!$L$7)))),\"MHP\",\"Legacy\"))","v":""},",,",null,null,null,{"$f":"IF('1. Checklist & Certification'!$M$20=4,\"Both\",IF(OR('1. Checklist & Certification'!$M$15>0,S276=\"CHRP-R\",U276=\"CHRP-R\",W276=\"CHRP-R\",Y276=\"CHRP-R\"),\"Under\",\"No\"))","v":"No"},"No","No",{"$f":"_xlfn.IFS(D276=\"\",\"\",D276=1,'MHP Family Income & Rent Limits'!$E$17,D276=2,'MHP Family Income & Rent Limits'!$F$17,D276=3,'MHP Family Income & Rent Limits'!$G$17,D276=4,'MHP Family Income & Rent Limits'!$H$17,D276=5,'MHP Family Income & Rent Limits'!$I$17,D276=6,'MHP Family Income & Rent Limits'!$J$17,D276=7,'MHP Family Income & Rent Limits'!$K$17,D276=8,'MHP Family Income & Rent Limits'!$L$17)","v":""},"",{"$f":"IF(OR(A276=0,B276=\"X\"),0,MIN(IF(AA276:AD276<>0,AA276:AD276)))","v":0},{"$f":"IF(OR(H276=\"\",I276=\"\"),0,IF(H276*0.3/12>I276,MIN(H276*0.3/12,I276*1.1)+AP276,I276*(1+(VLOOKUP('1. Checklist & Certification'!$F$9,'HLCP-E Rent Change'!$A$1:$D$59,4,FALSE)))+AP276))","v":0}]
[null,null,null,null,null,null,null,null,null,null,null,null,null,null,null,null,null,null,null,null,null,null,null,null,null,null,0,0,0,0,0,0,0,0,{"$f":"IF(OR(A277=0,B277=\"X\"),0,IF(OR(S277=\"FHDP\",S277=\"RHCP-B\",U277=\"FHDP\",U277=\"RHCP-B\",W277=\"FHDP\",W277=\"RHCP-B\",Y277=\"FHDP\",Y277=\"RHCP-B\"),TRUNC((MIN(I277,K277)*(1+'1. Checklist & Certification'!$K$43)+AP277)),0))","v":0},{"$f":"IF(OR(A277=0,B277=\"X\"),0,IF(OR(S277=\"CHRP-R\",S277=\"SERA\",S277=\"SUHRP\",U277=\"CHRP-R\",U277=\"SERA\",U277=\"SUHRP\",W277=\"CHRP-R\",W277=\"SERA\",W277=\"SUHRP\",Y277=\"CHRP-R\",Y277=\"SERA\",Y277=\"SUHRP\"),TRUNC((MIN(I277,K277)*(1+'1. Checklist & Certification'!$K$49))),0))","v":0},{"$f":"IF(OR(A277=0,B277=\"X\"),0,IF(OR(S277=\"CALDAP\",S277=\"DPRLP\",U277=\"CALDAP\",U277=\"DPRLP\",W277=\"CALDAP\",W277=\"DPRLP\",Y277=\"CALDAP\",Y277=\"DPRLP\"),TRUNC(((MIN(I277,K277))*(1+'1. Checklist & Certification'!$G$4))),0))","v":0},0,0,0,{"$f":"IF(OR(A277=0,B277=\"X\"),0,IF(OR(S277=\"PRP\",S277=\"LPR\",U277=\"PRP\",U277=\"LPR\",W277=\"PRP\",W277=\"LPR\",Y277=\"PRP\",Y277=\"LPR\"),MAX(I277+AP277,MIN(IF(AE277:AN277<>0,AE277:AN277))),MIN(IF(AE277:AN277<>0,AE277:AN277))))","v":0},{"$f":"IF(A277=0,0,IF(AND(OR(S277=\"Mgr\",S277=0),OR(U277=\"Mgr\",U277=0),OR(W277=\"Mgr\",W277=0)),0,IF(LEFT($A277,2)=\"B*\",VLOOKUP($E277,'1. Checklist & Certification'!$D$26:$E$32,2),IF(LEFT($A277,2)=\"C*\",VLOOKUP($E277,'1. Checklist & Certification'!$F$26:$G$32,2),IF(LEFT($A277,2)=\"D*\",VLOOKUP($E277,'1. Checklist & Certification'!$H$26:$I$32,2),IF(LEFT($A277,2)=\"E*\",VLOOKUP($E277,'1. Checklist & Certification'!$J$26:$K$32,2),VLOOKUP($E277,'1. Checklist & Certification'!$A$26:$B$32,2)))))))","v":0},0,0,null,null,null,null,"","",0,0,0,null,{"$f":"IF(A277=\"\",\"\",'1. Checklist & Certification'!$K$1)","v":""},{"$f":"IF(A277=\"\",\"\",'1. Checklist & Certification'!$C$62)","v":""},{"$f":"IF(A277=\"\",\"\",'1. Checklist & Certification'!$C$6)","v":""},{"$f":"IF(A277=\"\",\"\",'1. Checklist & Certification'!$G$5)","v":""},{"$f":"IFERROR(IF(A277=\"\",\"\",\n_xlfn.LET(_xlpm.Contract,'1. Checklist & Certification'!$C$7,\n_xlpm.Yr,TEXT(MOD(_xlfn.TEXTBEFORE(_xlpm.Contract,\"-\"),100),\"00\"),\n_xlpm.Program,_xlfn.TEXTAFTER(_xlfn.TEXTBEFORE(_xlpm.Contract,\"-\",2),\"-\"),\n_xlpm.CleanProgram,_xlfn.XLOOKUP(_xlpm.Program,SpellCheck[Input],SpellCheck[Correction],_xlpm.Program),\n_xlpm.Number,TEXT(_xlfn.TEXTAFTER(_xlpm.Contract,\"-\",2),\"0000\"),\n_xlfn.CONCAT(_xlpm.Yr,\"-\",_xlpm.CleanProgram,\"-\",_xlpm.Number))\n),\"\")","v":""},{"$f":"IFERROR(IF(A277=\"\",\"\",\n_xlfn.LET(_xlpm.Contract,'1. Checklist & Certification'!$C$8,\n_xlpm.Yr,TEXT(MOD(_xlfn.TEXTBEFORE(_xlpm.Contract,\"-\"),100),\"00\"),\n_xlpm.Program,_xlfn.TEXTAFTER(_xlfn.TEXTBEFORE(_xlpm.Contract,\"-\",2),\"-\"),\n_xlpm.CleanProgram,_xlfn.XLOOKUP(_xlpm.Program,SpellCheck[Input],SpellCheck[Correction],_xlpm.Program),\n_xlpm.Number,TEXT(_xlfn.TEXTAFTER(_xlpm.Contract,\"-\",2),\"0000\"),\n_xlfn.CONCAT(_xlpm.Yr,\"-\",_xlpm.CleanProgram,\"-\",_xlpm.Number))\n),\"\")","v":""},{"$f":"IFERROR(IF(A277=\"\",\"\",\n_xlfn.LET(_xlpm.Contract,'1. Checklist & Certification'!$F$7,\n_xlpm.Yr,TEXT(MOD(_xlfn.TEXTBEFORE(_xlpm.Contract,\"-\"),100),\"00\"),\n_xlpm.Program,_xlfn.TEXTAFTER(_xlfn.TEXTBEFORE(_xlpm.Contract,\"-\",2),\"-\"),\n_xlpm.CleanProgram,_xlfn.XLOOKUP(_xlpm.Program,SpellCheck[Input],SpellCheck[Correction],_xlpm.Program),\n_xlpm.Number,TEXT(_xlfn.TEXTAFTER(_xlpm.Contract,\"-\",2),\"0000\"),\n_xlfn.CONCAT(_xlpm.Yr,\"-\",_xlpm.CleanProgram,\"-\",_xlpm.Number))\n),\"\")","v":""},{"$f":"IFERROR(IF(A277=\"\",\"\",\n_xlfn.LET(_xlpm.Contract,'1. Checklist & Certification'!$F$8,\n_xlpm.Yr,TEXT(MOD(_xlfn.TEXTBEFORE(_xlpm.Contract,\"-\"),100),\"00\"),\n_xlpm.Program,_xlfn.TEXTAFTER(_xlfn.TEXTBEFORE(_xlpm.Contract,\"-\",2),\"-\"),\n_xlpm.CleanProgram,_xlfn.XLOOKUP(_xlpm.Program,SpellCheck[Input],SpellCheck[Correction],_xlpm.Program),\n_xlpm.Number,TEXT(_xlfn.TEXTAFTER(_xlpm.Contract,\"-\",2),\"0000\"),\n_xlfn.CONCAT(_xlpm.Yr,\"-\",_xlpm.CleanProgram,\"-\",_xlpm.Number))\n),\"\")","v":""},{"$f":"IF(A277=\"\",\"\",'1. Checklist & Certification'!$B$9)","v":""},{"$f":"IF(A277=\"\",\"\",'1. Checklist & Certification'!$F$9)","v":""},{"$f":"IF(A277=\"\",\"\",'1. Checklist & Certification'!$C$10)","v":""},{"$f":"IF(A277=\"\",\"\",'1. Checklist & Certification'!$C$11)","v":""},{"$f":"IF(A277=\"\",\"\",'1. Checklist & Certification'!$C$12)","v":""},{"$f":"IF(A277=\"\",\"\",'1. Checklist & Certification'!$B$14)","v":""},{"$f":"IF(A277=\"\",\"\",'1. Checklist & Certification'!$E$14)","v":""},{"$f":"IF(B277=\"\",\"\",'1. Checklist & Certification'!$G$14)","v":""},{"$f":"IF(A277=\"\",\"\",'MHP Family Income & Rent Limits'!$B$3)","v":""},{"$f":"IF(A277=\"\",\"\",'MHP Family Income & Rent Limits'!$J$3)","v":""},{"$f":"IF(A277=\"\",\"\",'MHP Family Income & Rent Limits'!$E$4)","v":""},{"$f":"IF(A277=\"\",\"\",'MHP Family Income & Rent Limits'!$C$7)","v":""},{"$f":"IF(A277=\"\",\"\",'MHP Family Income & Rent Limits'!$F$8)","v":""},{"$f":"IF(A277=\"\",\"\",'1. Checklist & Certification'!$G$4)","v":""},{"$f":"IF(A277=\"\",\"\",'1. Checklist & Certification'!$K$39)","v":""},{"$f":"IF(A277=\"\",\"\",'1. Checklist & Certification'!$K$43)","v":""},{"$f":"IF(A277=\"\",\"\",'1. Checklist & Certification'!$K$45)","v":""},{"$f":"IF(A277=\"\",\"\",'1. Checklist & Certification'!$K$49)","v":""},{"$f":"IF(A277=\"\",\"\",'1. Checklist & Certification'!$K$62)","v":""},{"$f":"IF(A277=\"\",\"\",'1. Checklist & Certification'!$E$66)","v":""},{"$f":"IF(A277=\"\",\"\",'1. Checklist & Certification'!$E$67)","v":""},{"$f":"IF(A277=\"\",\"\",'1. Checklist & Certification'!$E$68)","v":""},{"$f":"IF(A277=\"\",\"\",'1. Checklist & Certification'!$G$66)","v":""},{"$f":"IF(A277=\"\",\"\",'1. Checklist & Certification'!$H$66)","v":""},{"$f":"IF(A277=\"\",\"\",'1. Checklist & Certification'!$I$66)","v":""},{"$f":"IF(A277=\"\",\"\",'1. Checklist & Certification'!$I$67)","v":""},{"$f":"IF(A277=\"\",\"\",'1. Checklist & Certification'!$I$68)","v":""},{"$f":"IF(A277=\"\",\"\",'1. Checklist & Certification'!$B$69)","v":""},{"$f":"IF(A277=\"\",\"\",'1. Checklist & Certification'!$C$69)","v":""},{"$f":"IF(A277=\"\",\"\",'1. Checklist & Certification'!$F$69)","v":""},{"$f":"IF(A277=\"\",\"\",'1. Checklist & Certification'!$G$69)","v":""},{"$f":"IF(A277=\"\",\"\",'1. Checklist & Certification'!$J$69)","v":""},{"$f":"IF(A277=\"\",\"\",'1. Checklist & Certification'!$K$69)","v":""},null,null,{"$f":"IF(AND(OR('1. Checklist & Certification'!$M$16=1,'1. Checklist & Certification'!$M$19=2),AO277>0,B277=\"\",I277>0,AQ277<I277,AV277<>\"Sec 8-Project\"),\"X\",IF(AND(OR('1. Checklist & Certification'!$M$20=4,'1. Checklist & Certification'!$M$21=5,'1. Checklist & Certification'!$M$22=7),AO277>0,B277=\"\",I277>0,K277<I277),\"X\",\"\"))","v":""},{"$f":"IF(A277=\"\",\"\",IF(SUMPRODUCT(-- (ISNUMBER(SEARCH({\"*AHSC*\",\"*FMTW*\",\"*FWHG*\",\"*GHI*\",\"*HHC*\",\"*HLCP*\",\"*HOME*\",\"*LPR*\",\"*MHP*\",\"*NHTF*\",\"*NSP*\",\"*PRP*\",\"*TOD*\",\"*VHHP*\"},'1. Checklist & Certification'!$L$7)))),\"MHP\",\"Legacy\"))","v":""},",,",null,null,null,{"$f":"IF('1. Checklist & Certification'!$M$20=4,\"Both\",IF(OR('1. Checklist & Certification'!$M$15>0,S277=\"CHRP-R\",U277=\"CHRP-R\",W277=\"CHRP-R\",Y277=\"CHRP-R\"),\"Under\",\"No\"))","v":"No"},"No","No",{"$f":"_xlfn.IFS(D277=\"\",\"\",D277=1,'MHP Family Income & Rent Limits'!$E$17,D277=2,'MHP Family Income & Rent Limits'!$F$17,D277=3,'MHP Family Income & Rent Limits'!$G$17,D277=4,'MHP Family Income & Rent Limits'!$H$17,D277=5,'MHP Family Income & Rent Limits'!$I$17,D277=6,'MHP Family Income & Rent Limits'!$J$17,D277=7,'MHP Family Income & Rent Limits'!$K$17,D277=8,'MHP Family Income & Rent Limits'!$L$17)","v":""},"",{"$f":"IF(OR(A277=0,B277=\"X\"),0,MIN(IF(AA277:AD277<>0,AA277:AD277)))","v":0},{"$f":"IF(OR(H277=\"\",I277=\"\"),0,IF(H277*0.3/12>I277,MIN(H277*0.3/12,I277*1.1)+AP277,I277*(1+(VLOOKUP('1. Checklist & Certification'!$F$9,'HLCP-E Rent Change'!$A$1:$D$59,4,FALSE)))+AP277))","v":0}]
[null,null,null,null,null,null,null,null,null,null,null,null,null,null,null,null,null,null,null,null,null,null,null,null,null,null,0,0,0,0,0,0,0,0,{"$f":"IF(OR(A278=0,B278=\"X\"),0,IF(OR(S278=\"FHDP\",S278=\"RHCP-B\",U278=\"FHDP\",U278=\"RHCP-B\",W278=\"FHDP\",W278=\"RHCP-B\",Y278=\"FHDP\",Y278=\"RHCP-B\"),TRUNC((MIN(I278,K278)*(1+'1. Checklist & Certification'!$K$43)+AP278)),0))","v":0},{"$f":"IF(OR(A278=0,B278=\"X\"),0,IF(OR(S278=\"CHRP-R\",S278=\"SERA\",S278=\"SUHRP\",U278=\"CHRP-R\",U278=\"SERA\",U278=\"SUHRP\",W278=\"CHRP-R\",W278=\"SERA\",W278=\"SUHRP\",Y278=\"CHRP-R\",Y278=\"SERA\",Y278=\"SUHRP\"),TRUNC((MIN(I278,K278)*(1+'1. Checklist & Certification'!$K$49))),0))","v":0},{"$f":"IF(OR(A278=0,B278=\"X\"),0,IF(OR(S278=\"CALDAP\",S278=\"DPRLP\",U278=\"CALDAP\",U278=\"DPRLP\",W278=\"CALDAP\",W278=\"DPRLP\",Y278=\"CALDAP\",Y278=\"DPRLP\"),TRUNC(((MIN(I278,K278))*(1+'1. Checklist & Certification'!$G$4))),0))","v":0},0,0,0,{"$f":"IF(OR(A278=0,B278=\"X\"),0,IF(OR(S278=\"PRP\",S278=\"LPR\",U278=\"PRP\",U278=\"LPR\",W278=\"PRP\",W278=\"LPR\",Y278=\"PRP\",Y278=\"LPR\"),MAX(I278+AP278,MIN(IF(AE278:AN278<>0,AE278:AN278))),MIN(IF(AE278:AN278<>0,AE278:AN278))))","v":0},{"$f":"IF(A278=0,0,IF(AND(OR(S278=\"Mgr\",S278=0),OR(U278=\"Mgr\",U278=0),OR(W278=\"Mgr\",W278=0)),0,IF(LEFT($A278,2)=\"B*\",VLOOKUP($E278,'1. Checklist & Certification'!$D$26:$E$32,2),IF(LEFT($A278,2)=\"C*\",VLOOKUP($E278,'1. Checklist & Certification'!$F$26:$G$32,2),IF(LEFT($A278,2)=\"D*\",VLOOKUP($E278,'1. Checklist & Certification'!$H$26:$I$32,2),IF(LEFT($A278,2)=\"E*\",VLOOKUP($E278,'1. Checklist & Certification'!$J$26:$K$32,2),VLOOKUP($E278,'1. Checklist & Certification'!$A$26:$B$32,2)))))))","v":0},0,0,null,null,null,null,"","",0,0,0,null,{"$f":"IF(A278=\"\",\"\",'1. Checklist & Certification'!$K$1)","v":""},{"$f":"IF(A278=\"\",\"\",'1. Checklist & Certification'!$C$62)","v":""},{"$f":"IF(A278=\"\",\"\",'1. Checklist & Certification'!$C$6)","v":""},{"$f":"IF(A278=\"\",\"\",'1. Checklist & Certification'!$G$5)","v":""},{"$f":"IFERROR(IF(A278=\"\",\"\",\n_xlfn.LET(_xlpm.Contract,'1. Checklist & Certification'!$C$7,\n_xlpm.Yr,TEXT(MOD(_xlfn.TEXTBEFORE(_xlpm.Contract,\"-\"),100),\"00\"),\n_xlpm.Program,_xlfn.TEXTAFTER(_xlfn.TEXTBEFORE(_xlpm.Contract,\"-\",2),\"-\"),\n_xlpm.CleanProgram,_xlfn.XLOOKUP(_xlpm.Program,SpellCheck[Input],SpellCheck[Correction],_xlpm.Program),\n_xlpm.Number,TEXT(_xlfn.TEXTAFTER(_xlpm.Contract,\"-\",2),\"0000\"),\n_xlfn.CONCAT(_xlpm.Yr,\"-\",_xlpm.CleanProgram,\"-\",_xlpm.Number))\n),\"\")","v":""},{"$f":"IFERROR(IF(A278=\"\",\"\",\n_xlfn.LET(_xlpm.Contract,'1. Checklist & Certification'!$C$8,\n_xlpm.Yr,TEXT(MOD(_xlfn.TEXTBEFORE(_xlpm.Contract,\"-\"),100),\"00\"),\n_xlpm.Program,_xlfn.TEXTAFTER(_xlfn.TEXTBEFORE(_xlpm.Contract,\"-\",2),\"-\"),\n_xlpm.CleanProgram,_xlfn.XLOOKUP(_xlpm.Program,SpellCheck[Input],SpellCheck[Correction],_xlpm.Program),\n_xlpm.Number,TEXT(_xlfn.TEXTAFTER(_xlpm.Contract,\"-\",2),\"0000\"),\n_xlfn.CONCAT(_xlpm.Yr,\"-\",_xlpm.CleanProgram,\"-\",_xlpm.Number))\n),\"\")","v":""},{"$f":"IFERROR(IF(A278=\"\",\"\",\n_xlfn.LET(_xlpm.Contract,'1. Checklist & Certification'!$F$7,\n_xlpm.Yr,TEXT(MOD(_xlfn.TEXTBEFORE(_xlpm.Contract,\"-\"),100),\"00\"),\n_xlpm.Program,_xlfn.TEXTAFTER(_xlfn.TEXTBEFORE(_xlpm.Contract,\"-\",2),\"-\"),\n_xlpm.CleanProgram,_xlfn.XLOOKUP(_xlpm.Program,SpellCheck[Input],SpellCheck[Correction],_xlpm.Program),\n_xlpm.Number,TEXT(_xlfn.TEXTAFTER(_xlpm.Contract,\"-\",2),\"0000\"),\n_xlfn.CONCAT(_xlpm.Yr,\"-\",_xlpm.CleanProgram,\"-\",_xlpm.Number))\n),\"\")","v":""},{"$f":"IFERROR(IF(A278=\"\",\"\",\n_xlfn.LET(_xlpm.Contract,'1. Checklist & Certification'!$F$8,\n_xlpm.Yr,TEXT(MOD(_xlfn.TEXTBEFORE(_xlpm.Contract,\"-\"),100),\"00\"),\n_xlpm.Program,_xlfn.TEXTAFTER(_xlfn.TEXTBEFORE(_xlpm.Contract,\"-\",2),\"-\"),\n_xlpm.CleanProgram,_xlfn.XLOOKUP(_xlpm.Program,SpellCheck[Input],SpellCheck[Correction],_xlpm.Program),\n_xlpm.Number,TEXT(_xlfn.TEXTAFTER(_xlpm.Contract,\"-\",2),\"0000\"),\n_xlfn.CONCAT(_xlpm.Yr,\"-\",_xlpm.CleanProgram,\"-\",_xlpm.Number))\n),\"\")","v":""},{"$f":"IF(A278=\"\",\"\",'1. Checklist & Certification'!$B$9)","v":""},{"$f":"IF(A278=\"\",\"\",'1. Checklist & Certification'!$F$9)","v":""},{"$f":"IF(A278=\"\",\"\",'1. Checklist & Certification'!$C$10)","v":""},{"$f":"IF(A278=\"\",\"\",'1. Checklist & Certification'!$C$11)","v":""},{"$f":"IF(A278=\"\",\"\",'1. Checklist & Certification'!$C$12)","v":""},{"$f":"IF(A278=\"\",\"\",'1. Checklist & Certification'!$B$14)","v":""},{"$f":"IF(A278=\"\",\"\",'1. Checklist & Certification'!$E$14)","v":""},{"$f":"IF(B278=\"\",\"\",'1. Checklist & Certification'!$G$14)","v":""},{"$f":"IF(A278=\"\",\"\",'MHP Family Income & Rent Limits'!$B$3)","v":""},{"$f":"IF(A278=\"\",\"\",'MHP Family Income & Rent Limits'!$J$3)","v":""},{"$f":"IF(A278=\"\",\"\",'MHP Family Income & Rent Limits'!$E$4)","v":""},{"$f":"IF(A278=\"\",\"\",'MHP Family Income & Rent Limits'!$C$7)","v":""},{"$f":"IF(A278=\"\",\"\",'MHP Family Income & Rent Limits'!$F$8)","v":""},{"$f":"IF(A278=\"\",\"\",'1. Checklist & Certification'!$G$4)","v":""},{"$f":"IF(A278=\"\",\"\",'1. Checklist & Certification'!$K$39)","v":""},{"$f":"IF(A278=\"\",\"\",'1. Checklist & Certification'!$K$43)","v":""},{"$f":"IF(A278=\"\",\"\",'1. Checklist & Certification'!$K$45)","v":""},{"$f":"IF(A278=\"\",\"\",'1. Checklist & Certification'!$K$49)","v":""},{"$f":"IF(A278=\"\",\"\",'1. Checklist & Certification'!$K$62)","v":""},{"$f":"IF(A278=\"\",\"\",'1. Checklist & Certification'!$E$66)","v":""},{"$f":"IF(A278=\"\",\"\",'1. Checklist & Certification'!$E$67)","v":""},{"$f":"IF(A278=\"\",\"\",'1. Checklist & Certification'!$E$68)","v":""},{"$f":"IF(A278=\"\",\"\",'1. Checklist & Certification'!$G$66)","v":""},{"$f":"IF(A278=\"\",\"\",'1. Checklist & Certification'!$H$66)","v":""},{"$f":"IF(A278=\"\",\"\",'1. Checklist & Certification'!$I$66)","v":""},{"$f":"IF(A278=\"\",\"\",'1. Checklist & Certification'!$I$67)","v":""},{"$f":"IF(A278=\"\",\"\",'1. Checklist & Certification'!$I$68)","v":""},{"$f":"IF(A278=\"\",\"\",'1. Checklist & Certification'!$B$69)","v":""},{"$f":"IF(A278=\"\",\"\",'1. Checklist & Certification'!$C$69)","v":""},{"$f":"IF(A278=\"\",\"\",'1. Checklist & Certification'!$F$69)","v":""},{"$f":"IF(A278=\"\",\"\",'1. Checklist & Certification'!$G$69)","v":""},{"$f":"IF(A278=\"\",\"\",'1. Checklist & Certification'!$J$69)","v":""},{"$f":"IF(A278=\"\",\"\",'1. Checklist & Certification'!$K$69)","v":""},null,null,{"$f":"IF(AND(OR('1. Checklist & Certification'!$M$16=1,'1. Checklist & Certification'!$M$19=2),AO278>0,B278=\"\",I278>0,AQ278<I278,AV278<>\"Sec 8-Project\"),\"X\",IF(AND(OR('1. Checklist & Certification'!$M$20=4,'1. Checklist & Certification'!$M$21=5,'1. Checklist & Certification'!$M$22=7),AO278>0,B278=\"\",I278>0,K278<I278),\"X\",\"\"))","v":""},{"$f":"IF(A278=\"\",\"\",IF(SUMPRODUCT(-- (ISNUMBER(SEARCH({\"*AHSC*\",\"*FMTW*\",\"*FWHG*\",\"*GHI*\",\"*HHC*\",\"*HLCP*\",\"*HOME*\",\"*LPR*\",\"*MHP*\",\"*NHTF*\",\"*NSP*\",\"*PRP*\",\"*TOD*\",\"*VHHP*\"},'1. Checklist & Certification'!$L$7)))),\"MHP\",\"Legacy\"))","v":""},",,",null,null,null,{"$f":"IF('1. Checklist & Certification'!$M$20=4,\"Both\",IF(OR('1. Checklist & Certification'!$M$15>0,S278=\"CHRP-R\",U278=\"CHRP-R\",W278=\"CHRP-R\",Y278=\"CHRP-R\"),\"Under\",\"No\"))","v":"No"},"No","No",{"$f":"_xlfn.IFS(D278=\"\",\"\",D278=1,'MHP Family Income & Rent Limits'!$E$17,D278=2,'MHP Family Income & Rent Limits'!$F$17,D278=3,'MHP Family Income & Rent Limits'!$G$17,D278=4,'MHP Family Income & Rent Limits'!$H$17,D278=5,'MHP Family Income & Rent Limits'!$I$17,D278=6,'MHP Family Income & Rent Limits'!$J$17,D278=7,'MHP Family Income & Rent Limits'!$K$17,D278=8,'MHP Family Income & Rent Limits'!$L$17)","v":""},"",{"$f":"IF(OR(A278=0,B278=\"X\"),0,MIN(IF(AA278:AD278<>0,AA278:AD278)))","v":0},{"$f":"IF(OR(H278=\"\",I278=\"\"),0,IF(H278*0.3/12>I278,MIN(H278*0.3/12,I278*1.1)+AP278,I278*(1+(VLOOKUP('1. Checklist & Certification'!$F$9,'HLCP-E Rent Change'!$A$1:$D$59,4,FALSE)))+AP278))","v":0}]
[null,null,null,null,null,null,null,null,null,null,null,null,null,null,null,null,null,null,null,null,null,null,null,null,null,null,0,0,0,0,0,0,0,0,{"$f":"IF(OR(A279=0,B279=\"X\"),0,IF(OR(S279=\"FHDP\",S279=\"RHCP-B\",U279=\"FHDP\",U279=\"RHCP-B\",W279=\"FHDP\",W279=\"RHCP-B\",Y279=\"FHDP\",Y279=\"RHCP-B\"),TRUNC((MIN(I279,K279)*(1+'1. Checklist & Certification'!$K$43)+AP279)),0))","v":0},{"$f":"IF(OR(A279=0,B279=\"X\"),0,IF(OR(S279=\"CHRP-R\",S279=\"SERA\",S279=\"SUHRP\",U279=\"CHRP-R\",U279=\"SERA\",U279=\"SUHRP\",W279=\"CHRP-R\",W279=\"SERA\",W279=\"SUHRP\",Y279=\"CHRP-R\",Y279=\"SERA\",Y279=\"SUHRP\"),TRUNC((MIN(I279,K279)*(1+'1. Checklist & Certification'!$K$49))),0))","v":0},{"$f":"IF(OR(A279=0,B279=\"X\"),0,IF(OR(S279=\"CALDAP\",S279=\"DPRLP\",U279=\"CALDAP\",U279=\"DPRLP\",W279=\"CALDAP\",W279=\"DPRLP\",Y279=\"CALDAP\",Y279=\"DPRLP\"),TRUNC(((MIN(I279,K279))*(1+'1. Checklist & Certification'!$G$4))),0))","v":0},0,0,0,{"$f":"IF(OR(A279=0,B279=\"X\"),0,IF(OR(S279=\"PRP\",S279=\"LPR\",U279=\"PRP\",U279=\"LPR\",W279=\"PRP\",W279=\"LPR\",Y279=\"PRP\",Y279=\"LPR\"),MAX(I279+AP279,MIN(IF(AE279:AN279<>0,AE279:AN279))),MIN(IF(AE279:AN279<>0,AE279:AN279))))","v":0},{"$f":"IF(A279=0,0,IF(AND(OR(S279=\"Mgr\",S279=0),OR(U279=\"Mgr\",U279=0),OR(W279=\"Mgr\",W279=0)),0,IF(LEFT($A279,2)=\"B*\",VLOOKUP($E279,'1. Checklist & Certification'!$D$26:$E$32,2),IF(LEFT($A279,2)=\"C*\",VLOOKUP($E279,'1. Checklist & Certification'!$F$26:$G$32,2),IF(LEFT($A279,2)=\"D*\",VLOOKUP($E279,'1. Checklist & Certification'!$H$26:$I$32,2),IF(LEFT($A279,2)=\"E*\",VLOOKUP($E279,'1. Checklist & Certification'!$J$26:$K$32,2),VLOOKUP($E279,'1. Checklist & Certification'!$A$26:$B$32,2)))))))","v":0},0,0,null,null,null,null,"","",0,0,0,null,{"$f":"IF(A279=\"\",\"\",'1. Checklist & Certification'!$K$1)","v":""},{"$f":"IF(A279=\"\",\"\",'1. Checklist & Certification'!$C$62)","v":""},{"$f":"IF(A279=\"\",\"\",'1. Checklist & Certification'!$C$6)","v":""},{"$f":"IF(A279=\"\",\"\",'1. Checklist & Certification'!$G$5)","v":""},{"$f":"IFERROR(IF(A279=\"\",\"\",\n_xlfn.LET(_xlpm.Contract,'1. Checklist & Certification'!$C$7,\n_xlpm.Yr,TEXT(MOD(_xlfn.TEXTBEFORE(_xlpm.Contract,\"-\"),100),\"00\"),\n_xlpm.Program,_xlfn.TEXTAFTER(_xlfn.TEXTBEFORE(_xlpm.Contract,\"-\",2),\"-\"),\n_xlpm.CleanProgram,_xlfn.XLOOKUP(_xlpm.Program,SpellCheck[Input],SpellCheck[Correction],_xlpm.Program),\n_xlpm.Number,TEXT(_xlfn.TEXTAFTER(_xlpm.Contract,\"-\",2),\"0000\"),\n_xlfn.CONCAT(_xlpm.Yr,\"-\",_xlpm.CleanProgram,\"-\",_xlpm.Number))\n),\"\")","v":""},{"$f":"IFERROR(IF(A279=\"\",\"\",\n_xlfn.LET(_xlpm.Contract,'1. Checklist & Certification'!$C$8,\n_xlpm.Yr,TEXT(MOD(_xlfn.TEXTBEFORE(_xlpm.Contract,\"-\"),100),\"00\"),\n_xlpm.Program,_xlfn.TEXTAFTER(_xlfn.TEXTBEFORE(_xlpm.Contract,\"-\",2),\"-\"),\n_xlpm.CleanProgram,_xlfn.XLOOKUP(_xlpm.Program,SpellCheck[Input],SpellCheck[Correction],_xlpm.Program),\n_xlpm.Number,TEXT(_xlfn.TEXTAFTER(_xlpm.Contract,\"-\",2),\"0000\"),\n_xlfn.CONCAT(_xlpm.Yr,\"-\",_xlpm.CleanProgram,\"-\",_xlpm.Number))\n),\"\")","v":""},{"$f":"IFERROR(IF(A279=\"\",\"\",\n_xlfn.LET(_xlpm.Contract,'1. Checklist & Certification'!$F$7,\n_xlpm.Yr,TEXT(MOD(_xlfn.TEXTBEFORE(_xlpm.Contract,\"-\"),100),\"00\"),\n_xlpm.Program,_xlfn.TEXTAFTER(_xlfn.TEXTBEFORE(_xlpm.Contract,\"-\",2),\"-\"),\n_xlpm.CleanProgram,_xlfn.XLOOKUP(_xlpm.Program,SpellCheck[Input],SpellCheck[Correction],_xlpm.Program),\n_xlpm.Number,TEXT(_xlfn.TEXTAFTER(_xlpm.Contract,\"-\",2),\"0000\"),\n_xlfn.CONCAT(_xlpm.Yr,\"-\",_xlpm.CleanProgram,\"-\",_xlpm.Number))\n),\"\")","v":""},{"$f":"IFERROR(IF(A279=\"\",\"\",\n_xlfn.LET(_xlpm.Contract,'1. Checklist & Certification'!$F$8,\n_xlpm.Yr,TEXT(MOD(_xlfn.TEXTBEFORE(_xlpm.Contract,\"-\"),100),\"00\"),\n_xlpm.Program,_xlfn.TEXTAFTER(_xlfn.TEXTBEFORE(_xlpm.Contract,\"-\",2),\"-\"),\n_xlpm.CleanProgram,_xlfn.XLOOKUP(_xlpm.Program,SpellCheck[Input],SpellCheck[Correction],_xlpm.Program),\n_xlpm.Number,TEXT(_xlfn.TEXTAFTER(_xlpm.Contract,\"-\",2),\"0000\"),\n_xlfn.CONCAT(_xlpm.Yr,\"-\",_xlpm.CleanProgram,\"-\",_xlpm.Number))\n),\"\")","v":""},{"$f":"IF(A279=\"\",\"\",'1. Checklist & Certification'!$B$9)","v":""},{"$f":"IF(A279=\"\",\"\",'1. Checklist & Certification'!$F$9)","v":""},{"$f":"IF(A279=\"\",\"\",'1. Checklist & Certification'!$C$10)","v":""},{"$f":"IF(A279=\"\",\"\",'1. Checklist & Certification'!$C$11)","v":""},{"$f":"IF(A279=\"\",\"\",'1. Checklist & Certification'!$C$12)","v":""},{"$f":"IF(A279=\"\",\"\",'1. Checklist & Certification'!$B$14)","v":""},{"$f":"IF(A279=\"\",\"\",'1. Checklist & Certification'!$E$14)","v":""},{"$f":"IF(B279=\"\",\"\",'1. Checklist & Certification'!$G$14)","v":""},{"$f":"IF(A279=\"\",\"\",'MHP Family Income & Rent Limits'!$B$3)","v":""},{"$f":"IF(A279=\"\",\"\",'MHP Family Income & Rent Limits'!$J$3)","v":""},{"$f":"IF(A279=\"\",\"\",'MHP Family Income & Rent Limits'!$E$4)","v":""},{"$f":"IF(A279=\"\",\"\",'MHP Family Income & Rent Limits'!$C$7)","v":""},{"$f":"IF(A279=\"\",\"\",'MHP Family Income & Rent Limits'!$F$8)","v":""},{"$f":"IF(A279=\"\",\"\",'1. Checklist & Certification'!$G$4)","v":""},{"$f":"IF(A279=\"\",\"\",'1. Checklist & Certification'!$K$39)","v":""},{"$f":"IF(A279=\"\",\"\",'1. Checklist & Certification'!$K$43)","v":""},{"$f":"IF(A279=\"\",\"\",'1. Checklist & Certification'!$K$45)","v":""},{"$f":"IF(A279=\"\",\"\",'1. Checklist & Certification'!$K$49)","v":""},{"$f":"IF(A279=\"\",\"\",'1. Checklist & Certification'!$K$62)","v":""},{"$f":"IF(A279=\"\",\"\",'1. Checklist & Certification'!$E$66)","v":""},{"$f":"IF(A279=\"\",\"\",'1. Checklist & Certification'!$E$67)","v":""},{"$f":"IF(A279=\"\",\"\",'1. Checklist & Certification'!$E$68)","v":""},{"$f":"IF(A279=\"\",\"\",'1. Checklist & Certification'!$G$66)","v":""},{"$f":"IF(A279=\"\",\"\",'1. Checklist & Certification'!$H$66)","v":""},{"$f":"IF(A279=\"\",\"\",'1. Checklist & Certification'!$I$66)","v":""},{"$f":"IF(A279=\"\",\"\",'1. Checklist & Certification'!$I$67)","v":""},{"$f":"IF(A279=\"\",\"\",'1. Checklist & Certification'!$I$68)","v":""},{"$f":"IF(A279=\"\",\"\",'1. Checklist & Certification'!$B$69)","v":""},{"$f":"IF(A279=\"\",\"\",'1. Checklist & Certification'!$C$69)","v":""},{"$f":"IF(A279=\"\",\"\",'1. Checklist & Certification'!$F$69)","v":""},{"$f":"IF(A279=\"\",\"\",'1. Checklist & Certification'!$G$69)","v":""},{"$f":"IF(A279=\"\",\"\",'1. Checklist & Certification'!$J$69)","v":""},{"$f":"IF(A279=\"\",\"\",'1. Checklist & Certification'!$K$69)","v":""},null,null,{"$f":"IF(AND(OR('1. Checklist & Certification'!$M$16=1,'1. Checklist & Certification'!$M$19=2),AO279>0,B279=\"\",I279>0,AQ279<I279,AV279<>\"Sec 8-Project\"),\"X\",IF(AND(OR('1. Checklist & Certification'!$M$20=4,'1. Checklist & Certification'!$M$21=5,'1. Checklist & Certification'!$M$22=7),AO279>0,B279=\"\",I279>0,K279<I279),\"X\",\"\"))","v":""},{"$f":"IF(A279=\"\",\"\",IF(SUMPRODUCT(-- (ISNUMBER(SEARCH({\"*AHSC*\",\"*FMTW*\",\"*FWHG*\",\"*GHI*\",\"*HHC*\",\"*HLCP*\",\"*HOME*\",\"*LPR*\",\"*MHP*\",\"*NHTF*\",\"*NSP*\",\"*PRP*\",\"*TOD*\",\"*VHHP*\"},'1. Checklist & Certification'!$L$7)))),\"MHP\",\"Legacy\"))","v":""},",,",null,null,null,{"$f":"IF('1. Checklist & Certification'!$M$20=4,\"Both\",IF(OR('1. Checklist & Certification'!$M$15>0,S279=\"CHRP-R\",U279=\"CHRP-R\",W279=\"CHRP-R\",Y279=\"CHRP-R\"),\"Under\",\"No\"))","v":"No"},"No","No",{"$f":"_xlfn.IFS(D279=\"\",\"\",D279=1,'MHP Family Income & Rent Limits'!$E$17,D279=2,'MHP Family Income & Rent Limits'!$F$17,D279=3,'MHP Family Income & Rent Limits'!$G$17,D279=4,'MHP Family Income & Rent Limits'!$H$17,D279=5,'MHP Family Income & Rent Limits'!$I$17,D279=6,'MHP Family Income & Rent Limits'!$J$17,D279=7,'MHP Family Income & Rent Limits'!$K$17,D279=8,'MHP Family Income & Rent Limits'!$L$17)","v":""},"",{"$f":"IF(OR(A279=0,B279=\"X\"),0,MIN(IF(AA279:AD279<>0,AA279:AD279)))","v":0},{"$f":"IF(OR(H279=\"\",I279=\"\"),0,IF(H279*0.3/12>I279,MIN(H279*0.3/12,I279*1.1)+AP279,I279*(1+(VLOOKUP('1. Checklist & Certification'!$F$9,'HLCP-E Rent Change'!$A$1:$D$59,4,FALSE)))+AP279))","v":0}]
[null,null,null,null,null,null,null,null,null,null,null,null,null,null,null,null,null,null,null,null,null,null,null,null,null,null,0,0,0,0,0,0,0,0,{"$f":"IF(OR(A280=0,B280=\"X\"),0,IF(OR(S280=\"FHDP\",S280=\"RHCP-B\",U280=\"FHDP\",U280=\"RHCP-B\",W280=\"FHDP\",W280=\"RHCP-B\",Y280=\"FHDP\",Y280=\"RHCP-B\"),TRUNC((MIN(I280,K280)*(1+'1. Checklist & Certification'!$K$43)+AP280)),0))","v":0},{"$f":"IF(OR(A280=0,B280=\"X\"),0,IF(OR(S280=\"CHRP-R\",S280=\"SERA\",S280=\"SUHRP\",U280=\"CHRP-R\",U280=\"SERA\",U280=\"SUHRP\",W280=\"CHRP-R\",W280=\"SERA\",W280=\"SUHRP\",Y280=\"CHRP-R\",Y280=\"SERA\",Y280=\"SUHRP\"),TRUNC((MIN(I280,K280)*(1+'1. Checklist & Certification'!$K$49))),0))","v":0},{"$f":"IF(OR(A280=0,B280=\"X\"),0,IF(OR(S280=\"CALDAP\",S280=\"DPRLP\",U280=\"CALDAP\",U280=\"DPRLP\",W280=\"CALDAP\",W280=\"DPRLP\",Y280=\"CALDAP\",Y280=\"DPRLP\"),TRUNC(((MIN(I280,K280))*(1+'1. Checklist & Certification'!$G$4))),0))","v":0},0,0,0,{"$f":"IF(OR(A280=0,B280=\"X\"),0,IF(OR(S280=\"PRP\",S280=\"LPR\",U280=\"PRP\",U280=\"LPR\",W280=\"PRP\",W280=\"LPR\",Y280=\"PRP\",Y280=\"LPR\"),MAX(I280+AP280,MIN(IF(AE280:AN280<>0,AE280:AN280))),MIN(IF(AE280:AN280<>0,AE280:AN280))))","v":0},{"$f":"IF(A280=0,0,IF(AND(OR(S280=\"Mgr\",S280=0),OR(U280=\"Mgr\",U280=0),OR(W280=\"Mgr\",W280=0)),0,IF(LEFT($A280,2)=\"B*\",VLOOKUP($E280,'1. Checklist & Certification'!$D$26:$E$32,2),IF(LEFT($A280,2)=\"C*\",VLOOKUP($E280,'1. Checklist & Certification'!$F$26:$G$32,2),IF(LEFT($A280,2)=\"D*\",VLOOKUP($E280,'1. Checklist & Certification'!$H$26:$I$32,2),IF(LEFT($A280,2)=\"E*\",VLOOKUP($E280,'1. Checklist & Certification'!$J$26:$K$32,2),VLOOKUP($E280,'1. Checklist & Certification'!$A$26:$B$32,2)))))))","v":0},0,0,null,null,null,null,"","",0,0,0,null,{"$f":"IF(A280=\"\",\"\",'1. Checklist & Certification'!$K$1)","v":""},{"$f":"IF(A280=\"\",\"\",'1. Checklist & Certification'!$C$62)","v":""},{"$f":"IF(A280=\"\",\"\",'1. Checklist & Certification'!$C$6)","v":""},{"$f":"IF(A280=\"\",\"\",'1. Checklist & Certification'!$G$5)","v":""},{"$f":"IFERROR(IF(A280=\"\",\"\",\n_xlfn.LET(_xlpm.Contract,'1. Checklist & Certification'!$C$7,\n_xlpm.Yr,TEXT(MOD(_xlfn.TEXTBEFORE(_xlpm.Contract,\"-\"),100),\"00\"),\n_xlpm.Program,_xlfn.TEXTAFTER(_xlfn.TEXTBEFORE(_xlpm.Contract,\"-\",2),\"-\"),\n_xlpm.CleanProgram,_xlfn.XLOOKUP(_xlpm.Program,SpellCheck[Input],SpellCheck[Correction],_xlpm.Program),\n_xlpm.Number,TEXT(_xlfn.TEXTAFTER(_xlpm.Contract,\"-\",2),\"0000\"),\n_xlfn.CONCAT(_xlpm.Yr,\"-\",_xlpm.CleanProgram,\"-\",_xlpm.Number))\n),\"\")","v":""},{"$f":"IFERROR(IF(A280=\"\",\"\",\n_xlfn.LET(_xlpm.Contract,'1. Checklist & Certification'!$C$8,\n_xlpm.Yr,TEXT(MOD(_xlfn.TEXTBEFORE(_xlpm.Contract,\"-\"),100),\"00\"),\n_xlpm.Program,_xlfn.TEXTAFTER(_xlfn.TEXTBEFORE(_xlpm.Contract,\"-\",2),\"-\"),\n_xlpm.CleanProgram,_xlfn.XLOOKUP(_xlpm.Program,SpellCheck[Input],SpellCheck[Correction],_xlpm.Program),\n_xlpm.Number,TEXT(_xlfn.TEXTAFTER(_xlpm.Contract,\"-\",2),\"0000\"),\n_xlfn.CONCAT(_xlpm.Yr,\"-\",_xlpm.CleanProgram,\"-\",_xlpm.Number))\n),\"\")","v":""},{"$f":"IFERROR(IF(A280=\"\",\"\",\n_xlfn.LET(_xlpm.Contract,'1. Checklist & Certification'!$F$7,\n_xlpm.Yr,TEXT(MOD(_xlfn.TEXTBEFORE(_xlpm.Contract,\"-\"),100),\"00\"),\n_xlpm.Program,_xlfn.TEXTAFTER(_xlfn.TEXTBEFORE(_xlpm.Contract,\"-\",2),\"-\"),\n_xlpm.CleanProgram,_xlfn.XLOOKUP(_xlpm.Program,SpellCheck[Input],SpellCheck[Correction],_xlpm.Program),\n_xlpm.Number,TEXT(_xlfn.TEXTAFTER(_xlpm.Contract,\"-\",2),\"0000\"),\n_xlfn.CONCAT(_xlpm.Yr,\"-\",_xlpm.CleanProgram,\"-\",_xlpm.Number))\n),\"\")","v":""},{"$f":"IFERROR(IF(A280=\"\",\"\",\n_xlfn.LET(_xlpm.Contract,'1. Checklist & Certification'!$F$8,\n_xlpm.Yr,TEXT(MOD(_xlfn.TEXTBEFORE(_xlpm.Contract,\"-\"),100),\"00\"),\n_xlpm.Program,_xlfn.TEXTAFTER(_xlfn.TEXTBEFORE(_xlpm.Contract,\"-\",2),\"-\"),\n_xlpm.CleanProgram,_xlfn.XLOOKUP(_xlpm.Program,SpellCheck[Input],SpellCheck[Correction],_xlpm.Program),\n_xlpm.Number,TEXT(_xlfn.TEXTAFTER(_xlpm.Contract,\"-\",2),\"0000\"),\n_xlfn.CONCAT(_xlpm.Yr,\"-\",_xlpm.CleanProgram,\"-\",_xlpm.Number))\n),\"\")","v":""},{"$f":"IF(A280=\"\",\"\",'1. Checklist & Certification'!$B$9)","v":""},{"$f":"IF(A280=\"\",\"\",'1. Checklist & Certification'!$F$9)","v":""},{"$f":"IF(A280=\"\",\"\",'1. Checklist & Certification'!$C$10)","v":""},{"$f":"IF(A280=\"\",\"\",'1. Checklist & Certification'!$C$11)","v":""},{"$f":"IF(A280=\"\",\"\",'1. Checklist & Certification'!$C$12)","v":""},{"$f":"IF(A280=\"\",\"\",'1. Checklist & Certification'!$B$14)","v":""},{"$f":"IF(A280=\"\",\"\",'1. Checklist & Certification'!$E$14)","v":""},{"$f":"IF(B280=\"\",\"\",'1. Checklist & Certification'!$G$14)","v":""},{"$f":"IF(A280=\"\",\"\",'MHP Family Income & Rent Limits'!$B$3)","v":""},{"$f":"IF(A280=\"\",\"\",'MHP Family Income & Rent Limits'!$J$3)","v":""},{"$f":"IF(A280=\"\",\"\",'MHP Family Income & Rent Limits'!$E$4)","v":""},{"$f":"IF(A280=\"\",\"\",'MHP Family Income & Rent Limits'!$C$7)","v":""},{"$f":"IF(A280=\"\",\"\",'MHP Family Income & Rent Limits'!$F$8)","v":""},{"$f":"IF(A280=\"\",\"\",'1. Checklist & Certification'!$G$4)","v":""},{"$f":"IF(A280=\"\",\"\",'1. Checklist & Certification'!$K$39)","v":""},{"$f":"IF(A280=\"\",\"\",'1. Checklist & Certification'!$K$43)","v":""},{"$f":"IF(A280=\"\",\"\",'1. Checklist & Certification'!$K$45)","v":""},{"$f":"IF(A280=\"\",\"\",'1. Checklist & Certification'!$K$49)","v":""},{"$f":"IF(A280=\"\",\"\",'1. Checklist & Certification'!$K$62)","v":""},{"$f":"IF(A280=\"\",\"\",'1. Checklist & Certification'!$E$66)","v":""},{"$f":"IF(A280=\"\",\"\",'1. Checklist & Certification'!$E$67)","v":""},{"$f":"IF(A280=\"\",\"\",'1. Checklist & Certification'!$E$68)","v":""},{"$f":"IF(A280=\"\",\"\",'1. Checklist & Certification'!$G$66)","v":""},{"$f":"IF(A280=\"\",\"\",'1. Checklist & Certification'!$H$66)","v":""},{"$f":"IF(A280=\"\",\"\",'1. Checklist & Certification'!$I$66)","v":""},{"$f":"IF(A280=\"\",\"\",'1. Checklist & Certification'!$I$67)","v":""},{"$f":"IF(A280=\"\",\"\",'1. Checklist & Certification'!$I$68)","v":""},{"$f":"IF(A280=\"\",\"\",'1. Checklist & Certification'!$B$69)","v":""},{"$f":"IF(A280=\"\",\"\",'1. Checklist & Certification'!$C$69)","v":""},{"$f":"IF(A280=\"\",\"\",'1. Checklist & Certification'!$F$69)","v":""},{"$f":"IF(A280=\"\",\"\",'1. Checklist & Certification'!$G$69)","v":""},{"$f":"IF(A280=\"\",\"\",'1. Checklist & Certification'!$J$69)","v":""},{"$f":"IF(A280=\"\",\"\",'1. Checklist & Certification'!$K$69)","v":""},null,null,{"$f":"IF(AND(OR('1. Checklist & Certification'!$M$16=1,'1. Checklist & Certification'!$M$19=2),AO280>0,B280=\"\",I280>0,AQ280<I280,AV280<>\"Sec 8-Project\"),\"X\",IF(AND(OR('1. Checklist & Certification'!$M$20=4,'1. Checklist & Certification'!$M$21=5,'1. Checklist & Certification'!$M$22=7),AO280>0,B280=\"\",I280>0,K280<I280),\"X\",\"\"))","v":""},{"$f":"IF(A280=\"\",\"\",IF(SUMPRODUCT(-- (ISNUMBER(SEARCH({\"*AHSC*\",\"*FMTW*\",\"*FWHG*\",\"*GHI*\",\"*HHC*\",\"*HLCP*\",\"*HOME*\",\"*LPR*\",\"*MHP*\",\"*NHTF*\",\"*NSP*\",\"*PRP*\",\"*TOD*\",\"*VHHP*\"},'1. Checklist & Certification'!$L$7)))),\"MHP\",\"Legacy\"))","v":""},",,",null,null,null,{"$f":"IF('1. Checklist & Certification'!$M$20=4,\"Both\",IF(OR('1. Checklist & Certification'!$M$15>0,S280=\"CHRP-R\",U280=\"CHRP-R\",W280=\"CHRP-R\",Y280=\"CHRP-R\"),\"Under\",\"No\"))","v":"No"},"No","No",{"$f":"_xlfn.IFS(D280=\"\",\"\",D280=1,'MHP Family Income & Rent Limits'!$E$17,D280=2,'MHP Family Income & Rent Limits'!$F$17,D280=3,'MHP Family Income & Rent Limits'!$G$17,D280=4,'MHP Family Income & Rent Limits'!$H$17,D280=5,'MHP Family Income & Rent Limits'!$I$17,D280=6,'MHP Family Income & Rent Limits'!$J$17,D280=7,'MHP Family Income & Rent Limits'!$K$17,D280=8,'MHP Family Income & Rent Limits'!$L$17)","v":""},"",{"$f":"IF(OR(A280=0,B280=\"X\"),0,MIN(IF(AA280:AD280<>0,AA280:AD280)))","v":0},{"$f":"IF(OR(H280=\"\",I280=\"\"),0,IF(H280*0.3/12>I280,MIN(H280*0.3/12,I280*1.1)+AP280,I280*(1+(VLOOKUP('1. Checklist & Certification'!$F$9,'HLCP-E Rent Change'!$A$1:$D$59,4,FALSE)))+AP280))","v":0}]
[null,null,null,null,null,null,null,null,null,null,null,null,null,null,null,null,null,null,null,null,null,null,null,null,null,null,0,0,0,0,0,0,0,0,{"$f":"IF(OR(A281=0,B281=\"X\"),0,IF(OR(S281=\"FHDP\",S281=\"RHCP-B\",U281=\"FHDP\",U281=\"RHCP-B\",W281=\"FHDP\",W281=\"RHCP-B\",Y281=\"FHDP\",Y281=\"RHCP-B\"),TRUNC((MIN(I281,K281)*(1+'1. Checklist & Certification'!$K$43)+AP281)),0))","v":0},{"$f":"IF(OR(A281=0,B281=\"X\"),0,IF(OR(S281=\"CHRP-R\",S281=\"SERA\",S281=\"SUHRP\",U281=\"CHRP-R\",U281=\"SERA\",U281=\"SUHRP\",W281=\"CHRP-R\",W281=\"SERA\",W281=\"SUHRP\",Y281=\"CHRP-R\",Y281=\"SERA\",Y281=\"SUHRP\"),TRUNC((MIN(I281,K281)*(1+'1. Checklist & Certification'!$K$49))),0))","v":0},{"$f":"IF(OR(A281=0,B281=\"X\"),0,IF(OR(S281=\"CALDAP\",S281=\"DPRLP\",U281=\"CALDAP\",U281=\"DPRLP\",W281=\"CALDAP\",W281=\"DPRLP\",Y281=\"CALDAP\",Y281=\"DPRLP\"),TRUNC(((MIN(I281,K281))*(1+'1. Checklist & Certification'!$G$4))),0))","v":0},0,0,0,{"$f":"IF(OR(A281=0,B281=\"X\"),0,IF(OR(S281=\"PRP\",S281=\"LPR\",U281=\"PRP\",U281=\"LPR\",W281=\"PRP\",W281=\"LPR\",Y281=\"PRP\",Y281=\"LPR\"),MAX(I281+AP281,MIN(IF(AE281:AN281<>0,AE281:AN281))),MIN(IF(AE281:AN281<>0,AE281:AN281))))","v":0},{"$f":"IF(A281=0,0,IF(AND(OR(S281=\"Mgr\",S281=0),OR(U281=\"Mgr\",U281=0),OR(W281=\"Mgr\",W281=0)),0,IF(LEFT($A281,2)=\"B*\",VLOOKUP($E281,'1. Checklist & Certification'!$D$26:$E$32,2),IF(LEFT($A281,2)=\"C*\",VLOOKUP($E281,'1. Checklist & Certification'!$F$26:$G$32,2),IF(LEFT($A281,2)=\"D*\",VLOOKUP($E281,'1. Checklist & Certification'!$H$26:$I$32,2),IF(LEFT($A281,2)=\"E*\",VLOOKUP($E281,'1. Checklist & Certification'!$J$26:$K$32,2),VLOOKUP($E281,'1. Checklist & Certification'!$A$26:$B$32,2)))))))","v":0},0,0,null,null,null,null,"","",0,0,0,null,{"$f":"IF(A281=\"\",\"\",'1. Checklist & Certification'!$K$1)","v":""},{"$f":"IF(A281=\"\",\"\",'1. Checklist & Certification'!$C$62)","v":""},{"$f":"IF(A281=\"\",\"\",'1. Checklist & Certification'!$C$6)","v":""},{"$f":"IF(A281=\"\",\"\",'1. Checklist & Certification'!$G$5)","v":""},{"$f":"IFERROR(IF(A281=\"\",\"\",\n_xlfn.LET(_xlpm.Contract,'1. Checklist & Certification'!$C$7,\n_xlpm.Yr,TEXT(MOD(_xlfn.TEXTBEFORE(_xlpm.Contract,\"-\"),100),\"00\"),\n_xlpm.Program,_xlfn.TEXTAFTER(_xlfn.TEXTBEFORE(_xlpm.Contract,\"-\",2),\"-\"),\n_xlpm.CleanProgram,_xlfn.XLOOKUP(_xlpm.Program,SpellCheck[Input],SpellCheck[Correction],_xlpm.Program),\n_xlpm.Number,TEXT(_xlfn.TEXTAFTER(_xlpm.Contract,\"-\",2),\"0000\"),\n_xlfn.CONCAT(_xlpm.Yr,\"-\",_xlpm.CleanProgram,\"-\",_xlpm.Number))\n),\"\")","v":""},{"$f":"IFERROR(IF(A281=\"\",\"\",\n_xlfn.LET(_xlpm.Contract,'1. Checklist & Certification'!$C$8,\n_xlpm.Yr,TEXT(MOD(_xlfn.TEXTBEFORE(_xlpm.Contract,\"-\"),100),\"00\"),\n_xlpm.Program,_xlfn.TEXTAFTER(_xlfn.TEXTBEFORE(_xlpm.Contract,\"-\",2),\"-\"),\n_xlpm.CleanProgram,_xlfn.XLOOKUP(_xlpm.Program,SpellCheck[Input],SpellCheck[Correction],_xlpm.Program),\n_xlpm.Number,TEXT(_xlfn.TEXTAFTER(_xlpm.Contract,\"-\",2),\"0000\"),\n_xlfn.CONCAT(_xlpm.Yr,\"-\",_xlpm.CleanProgram,\"-\",_xlpm.Number))\n),\"\")","v":""},{"$f":"IFERROR(IF(A281=\"\",\"\",\n_xlfn.LET(_xlpm.Contract,'1. Checklist & Certification'!$F$7,\n_xlpm.Yr,TEXT(MOD(_xlfn.TEXTBEFORE(_xlpm.Contract,\"-\"),100),\"00\"),\n_xlpm.Program,_xlfn.TEXTAFTER(_xlfn.TEXTBEFORE(_xlpm.Contract,\"-\",2),\"-\"),\n_xlpm.CleanProgram,_xlfn.XLOOKUP(_xlpm.Program,SpellCheck[Input],SpellCheck[Correction],_xlpm.Program),\n_xlpm.Number,TEXT(_xlfn.TEXTAFTER(_xlpm.Contract,\"-\",2),\"0000\"),\n_xlfn.CONCAT(_xlpm.Yr,\"-\",_xlpm.CleanProgram,\"-\",_xlpm.Number))\n),\"\")","v":""},{"$f":"IFERROR(IF(A281=\"\",\"\",\n_xlfn.LET(_xlpm.Contract,'1. Checklist & Certification'!$F$8,\n_xlpm.Yr,TEXT(MOD(_xlfn.TEXTBEFORE(_xlpm.Contract,\"-\"),100),\"00\"),\n_xlpm.Program,_xlfn.TEXTAFTER(_xlfn.TEXTBEFORE(_xlpm.Contract,\"-\",2),\"-\"),\n_xlpm.CleanProgram,_xlfn.XLOOKUP(_xlpm.Program,SpellCheck[Input],SpellCheck[Correction],_xlpm.Program),\n_xlpm.Number,TEXT(_xlfn.TEXTAFTER(_xlpm.Contract,\"-\",2),\"0000\"),\n_xlfn.CONCAT(_xlpm.Yr,\"-\",_xlpm.CleanProgram,\"-\",_xlpm.Number))\n),\"\")","v":""},{"$f":"IF(A281=\"\",\"\",'1. Checklist & Certification'!$B$9)","v":""},{"$f":"IF(A281=\"\",\"\",'1. Checklist & Certification'!$F$9)","v":""},{"$f":"IF(A281=\"\",\"\",'1. Checklist & Certification'!$C$10)","v":""},{"$f":"IF(A281=\"\",\"\",'1. Checklist & Certification'!$C$11)","v":""},{"$f":"IF(A281=\"\",\"\",'1. Checklist & Certification'!$C$12)","v":""},{"$f":"IF(A281=\"\",\"\",'1. Checklist & Certification'!$B$14)","v":""},{"$f":"IF(A281=\"\",\"\",'1. Checklist & Certification'!$E$14)","v":""},{"$f":"IF(B281=\"\",\"\",'1. Checklist & Certification'!$G$14)","v":""},{"$f":"IF(A281=\"\",\"\",'MHP Family Income & Rent Limits'!$B$3)","v":""},{"$f":"IF(A281=\"\",\"\",'MHP Family Income & Rent Limits'!$J$3)","v":""},{"$f":"IF(A281=\"\",\"\",'MHP Family Income & Rent Limits'!$E$4)","v":""},{"$f":"IF(A281=\"\",\"\",'MHP Family Income & Rent Limits'!$C$7)","v":""},{"$f":"IF(A281=\"\",\"\",'MHP Family Income & Rent Limits'!$F$8)","v":""},{"$f":"IF(A281=\"\",\"\",'1. Checklist & Certification'!$G$4)","v":""},{"$f":"IF(A281=\"\",\"\",'1. Checklist & Certification'!$K$39)","v":""},{"$f":"IF(A281=\"\",\"\",'1. Checklist & Certification'!$K$43)","v":""},{"$f":"IF(A281=\"\",\"\",'1. Checklist & Certification'!$K$45)","v":""},{"$f":"IF(A281=\"\",\"\",'1. Checklist & Certification'!$K$49)","v":""},{"$f":"IF(A281=\"\",\"\",'1. Checklist & Certification'!$K$62)","v":""},{"$f":"IF(A281=\"\",\"\",'1. Checklist & Certification'!$E$66)","v":""},{"$f":"IF(A281=\"\",\"\",'1. Checklist & Certification'!$E$67)","v":""},{"$f":"IF(A281=\"\",\"\",'1. Checklist & Certification'!$E$68)","v":""},{"$f":"IF(A281=\"\",\"\",'1. Checklist & Certification'!$G$66)","v":""},{"$f":"IF(A281=\"\",\"\",'1. Checklist & Certification'!$H$66)","v":""},{"$f":"IF(A281=\"\",\"\",'1. Checklist & Certification'!$I$66)","v":""},{"$f":"IF(A281=\"\",\"\",'1. Checklist & Certification'!$I$67)","v":""},{"$f":"IF(A281=\"\",\"\",'1. Checklist & Certification'!$I$68)","v":""},{"$f":"IF(A281=\"\",\"\",'1. Checklist & Certification'!$B$69)","v":""},{"$f":"IF(A281=\"\",\"\",'1. Checklist & Certification'!$C$69)","v":""},{"$f":"IF(A281=\"\",\"\",'1. Checklist & Certification'!$F$69)","v":""},{"$f":"IF(A281=\"\",\"\",'1. Checklist & Certification'!$G$69)","v":""},{"$f":"IF(A281=\"\",\"\",'1. Checklist & Certification'!$J$69)","v":""},{"$f":"IF(A281=\"\",\"\",'1. Checklist & Certification'!$K$69)","v":""},null,null,{"$f":"IF(AND(OR('1. Checklist & Certification'!$M$16=1,'1. Checklist & Certification'!$M$19=2),AO281>0,B281=\"\",I281>0,AQ281<I281,AV281<>\"Sec 8-Project\"),\"X\",IF(AND(OR('1. Checklist & Certification'!$M$20=4,'1. Checklist & Certification'!$M$21=5,'1. Checklist & Certification'!$M$22=7),AO281>0,B281=\"\",I281>0,K281<I281),\"X\",\"\"))","v":""},{"$f":"IF(A281=\"\",\"\",IF(SUMPRODUCT(-- (ISNUMBER(SEARCH({\"*AHSC*\",\"*FMTW*\",\"*FWHG*\",\"*GHI*\",\"*HHC*\",\"*HLCP*\",\"*HOME*\",\"*LPR*\",\"*MHP*\",\"*NHTF*\",\"*NSP*\",\"*PRP*\",\"*TOD*\",\"*VHHP*\"},'1. Checklist & Certification'!$L$7)))),\"MHP\",\"Legacy\"))","v":""},",,",null,null,null,{"$f":"IF('1. Checklist & Certification'!$M$20=4,\"Both\",IF(OR('1. Checklist & Certification'!$M$15>0,S281=\"CHRP-R\",U281=\"CHRP-R\",W281=\"CHRP-R\",Y281=\"CHRP-R\"),\"Under\",\"No\"))","v":"No"},"No","No",{"$f":"_xlfn.IFS(D281=\"\",\"\",D281=1,'MHP Family Income & Rent Limits'!$E$17,D281=2,'MHP Family Income & Rent Limits'!$F$17,D281=3,'MHP Family Income & Rent Limits'!$G$17,D281=4,'MHP Family Income & Rent Limits'!$H$17,D281=5,'MHP Family Income & Rent Limits'!$I$17,D281=6,'MHP Family Income & Rent Limits'!$J$17,D281=7,'MHP Family Income & Rent Limits'!$K$17,D281=8,'MHP Family Income & Rent Limits'!$L$17)","v":""},"",{"$f":"IF(OR(A281=0,B281=\"X\"),0,MIN(IF(AA281:AD281<>0,AA281:AD281)))","v":0},{"$f":"IF(OR(H281=\"\",I281=\"\"),0,IF(H281*0.3/12>I281,MIN(H281*0.3/12,I281*1.1)+AP281,I281*(1+(VLOOKUP('1. Checklist & Certification'!$F$9,'HLCP-E Rent Change'!$A$1:$D$59,4,FALSE)))+AP281))","v":0}]
[null,null,null,null,null,null,null,null,null,null,null,null,null,null,null,null,null,null,null,null,null,null,null,null,null,null,0,0,0,0,0,0,0,0,{"$f":"IF(OR(A282=0,B282=\"X\"),0,IF(OR(S282=\"FHDP\",S282=\"RHCP-B\",U282=\"FHDP\",U282=\"RHCP-B\",W282=\"FHDP\",W282=\"RHCP-B\",Y282=\"FHDP\",Y282=\"RHCP-B\"),TRUNC((MIN(I282,K282)*(1+'1. Checklist & Certification'!$K$43)+AP282)),0))","v":0},{"$f":"IF(OR(A282=0,B282=\"X\"),0,IF(OR(S282=\"CHRP-R\",S282=\"SERA\",S282=\"SUHRP\",U282=\"CHRP-R\",U282=\"SERA\",U282=\"SUHRP\",W282=\"CHRP-R\",W282=\"SERA\",W282=\"SUHRP\",Y282=\"CHRP-R\",Y282=\"SERA\",Y282=\"SUHRP\"),TRUNC((MIN(I282,K282)*(1+'1. Checklist & Certification'!$K$49))),0))","v":0},{"$f":"IF(OR(A282=0,B282=\"X\"),0,IF(OR(S282=\"CALDAP\",S282=\"DPRLP\",U282=\"CALDAP\",U282=\"DPRLP\",W282=\"CALDAP\",W282=\"DPRLP\",Y282=\"CALDAP\",Y282=\"DPRLP\"),TRUNC(((MIN(I282,K282))*(1+'1. Checklist & Certification'!$G$4))),0))","v":0},0,0,0,{"$f":"IF(OR(A282=0,B282=\"X\"),0,IF(OR(S282=\"PRP\",S282=\"LPR\",U282=\"PRP\",U282=\"LPR\",W282=\"PRP\",W282=\"LPR\",Y282=\"PRP\",Y282=\"LPR\"),MAX(I282+AP282,MIN(IF(AE282:AN282<>0,AE282:AN282))),MIN(IF(AE282:AN282<>0,AE282:AN282))))","v":0},{"$f":"IF(A282=0,0,IF(AND(OR(S282=\"Mgr\",S282=0),OR(U282=\"Mgr\",U282=0),OR(W282=\"Mgr\",W282=0)),0,IF(LEFT($A282,2)=\"B*\",VLOOKUP($E282,'1. Checklist & Certification'!$D$26:$E$32,2),IF(LEFT($A282,2)=\"C*\",VLOOKUP($E282,'1. Checklist & Certification'!$F$26:$G$32,2),IF(LEFT($A282,2)=\"D*\",VLOOKUP($E282,'1. Checklist & Certification'!$H$26:$I$32,2),IF(LEFT($A282,2)=\"E*\",VLOOKUP($E282,'1. Checklist & Certification'!$J$26:$K$32,2),VLOOKUP($E282,'1. Checklist & Certification'!$A$26:$B$32,2)))))))","v":0},0,0,null,null,null,null,"","",0,0,0,null,{"$f":"IF(A282=\"\",\"\",'1. Checklist & Certification'!$K$1)","v":""},{"$f":"IF(A282=\"\",\"\",'1. Checklist & Certification'!$C$62)","v":""},{"$f":"IF(A282=\"\",\"\",'1. Checklist & Certification'!$C$6)","v":""},{"$f":"IF(A282=\"\",\"\",'1. Checklist & Certification'!$G$5)","v":""},{"$f":"IFERROR(IF(A282=\"\",\"\",\n_xlfn.LET(_xlpm.Contract,'1. Checklist & Certification'!$C$7,\n_xlpm.Yr,TEXT(MOD(_xlfn.TEXTBEFORE(_xlpm.Contract,\"-\"),100),\"00\"),\n_xlpm.Program,_xlfn.TEXTAFTER(_xlfn.TEXTBEFORE(_xlpm.Contract,\"-\",2),\"-\"),\n_xlpm.CleanProgram,_xlfn.XLOOKUP(_xlpm.Program,SpellCheck[Input],SpellCheck[Correction],_xlpm.Program),\n_xlpm.Number,TEXT(_xlfn.TEXTAFTER(_xlpm.Contract,\"-\",2),\"0000\"),\n_xlfn.CONCAT(_xlpm.Yr,\"-\",_xlpm.CleanProgram,\"-\",_xlpm.Number))\n),\"\")","v":""},{"$f":"IFERROR(IF(A282=\"\",\"\",\n_xlfn.LET(_xlpm.Contract,'1. Checklist & Certification'!$C$8,\n_xlpm.Yr,TEXT(MOD(_xlfn.TEXTBEFORE(_xlpm.Contract,\"-\"),100),\"00\"),\n_xlpm.Program,_xlfn.TEXTAFTER(_xlfn.TEXTBEFORE(_xlpm.Contract,\"-\",2),\"-\"),\n_xlpm.CleanProgram,_xlfn.XLOOKUP(_xlpm.Program,SpellCheck[Input],SpellCheck[Correction],_xlpm.Program),\n_xlpm.Number,TEXT(_xlfn.TEXTAFTER(_xlpm.Contract,\"-\",2),\"0000\"),\n_xlfn.CONCAT(_xlpm.Yr,\"-\",_xlpm.CleanProgram,\"-\",_xlpm.Number))\n),\"\")","v":""},{"$f":"IFERROR(IF(A282=\"\",\"\",\n_xlfn.LET(_xlpm.Contract,'1. Checklist & Certification'!$F$7,\n_xlpm.Yr,TEXT(MOD(_xlfn.TEXTBEFORE(_xlpm.Contract,\"-\"),100),\"00\"),\n_xlpm.Program,_xlfn.TEXTAFTER(_xlfn.TEXTBEFORE(_xlpm.Contract,\"-\",2),\"-\"),\n_xlpm.CleanProgram,_xlfn.XLOOKUP(_xlpm.Program,SpellCheck[Input],SpellCheck[Correction],_xlpm.Program),\n_xlpm.Number,TEXT(_xlfn.TEXTAFTER(_xlpm.Contract,\"-\",2),\"0000\"),\n_xlfn.CONCAT(_xlpm.Yr,\"-\",_xlpm.CleanProgram,\"-\",_xlpm.Number))\n),\"\")","v":""},{"$f":"IFERROR(IF(A282=\"\",\"\",\n_xlfn.LET(_xlpm.Contract,'1. Checklist & Certification'!$F$8,\n_xlpm.Yr,TEXT(MOD(_xlfn.TEXTBEFORE(_xlpm.Contract,\"-\"),100),\"00\"),\n_xlpm.Program,_xlfn.TEXTAFTER(_xlfn.TEXTBEFORE(_xlpm.Contract,\"-\",2),\"-\"),\n_xlpm.CleanProgram,_xlfn.XLOOKUP(_xlpm.Program,SpellCheck[Input],SpellCheck[Correction],_xlpm.Program),\n_xlpm.Number,TEXT(_xlfn.TEXTAFTER(_xlpm.Contract,\"-\",2),\"0000\"),\n_xlfn.CONCAT(_xlpm.Yr,\"-\",_xlpm.CleanProgram,\"-\",_xlpm.Number))\n),\"\")","v":""},{"$f":"IF(A282=\"\",\"\",'1. Checklist & Certification'!$B$9)","v":""},{"$f":"IF(A282=\"\",\"\",'1. Checklist & Certification'!$F$9)","v":""},{"$f":"IF(A282=\"\",\"\",'1. Checklist & Certification'!$C$10)","v":""},{"$f":"IF(A282=\"\",\"\",'1. Checklist & Certification'!$C$11)","v":""},{"$f":"IF(A282=\"\",\"\",'1. Checklist & Certification'!$C$12)","v":""},{"$f":"IF(A282=\"\",\"\",'1. Checklist & Certification'!$B$14)","v":""},{"$f":"IF(A282=\"\",\"\",'1. Checklist & Certification'!$E$14)","v":""},{"$f":"IF(B282=\"\",\"\",'1. Checklist & Certification'!$G$14)","v":""},{"$f":"IF(A282=\"\",\"\",'MHP Family Income & Rent Limits'!$B$3)","v":""},{"$f":"IF(A282=\"\",\"\",'MHP Family Income & Rent Limits'!$J$3)","v":""},{"$f":"IF(A282=\"\",\"\",'MHP Family Income & Rent Limits'!$E$4)","v":""},{"$f":"IF(A282=\"\",\"\",'MHP Family Income & Rent Limits'!$C$7)","v":""},{"$f":"IF(A282=\"\",\"\",'MHP Family Income & Rent Limits'!$F$8)","v":""},{"$f":"IF(A282=\"\",\"\",'1. Checklist & Certification'!$G$4)","v":""},{"$f":"IF(A282=\"\",\"\",'1. Checklist & Certification'!$K$39)","v":""},{"$f":"IF(A282=\"\",\"\",'1. Checklist & Certification'!$K$43)","v":""},{"$f":"IF(A282=\"\",\"\",'1. Checklist & Certification'!$K$45)","v":""},{"$f":"IF(A282=\"\",\"\",'1. Checklist & Certification'!$K$49)","v":""},{"$f":"IF(A282=\"\",\"\",'1. Checklist & Certification'!$K$62)","v":""},{"$f":"IF(A282=\"\",\"\",'1. Checklist & Certification'!$E$66)","v":""},{"$f":"IF(A282=\"\",\"\",'1. Checklist & Certification'!$E$67)","v":""},{"$f":"IF(A282=\"\",\"\",'1. Checklist & Certification'!$E$68)","v":""},{"$f":"IF(A282=\"\",\"\",'1. Checklist & Certification'!$G$66)","v":""},{"$f":"IF(A282=\"\",\"\",'1. Checklist & Certification'!$H$66)","v":""},{"$f":"IF(A282=\"\",\"\",'1. Checklist & Certification'!$I$66)","v":""},{"$f":"IF(A282=\"\",\"\",'1. Checklist & Certification'!$I$67)","v":""},{"$f":"IF(A282=\"\",\"\",'1. Checklist & Certification'!$I$68)","v":""},{"$f":"IF(A282=\"\",\"\",'1. Checklist & Certification'!$B$69)","v":""},{"$f":"IF(A282=\"\",\"\",'1. Checklist & Certification'!$C$69)","v":""},{"$f":"IF(A282=\"\",\"\",'1. Checklist & Certification'!$F$69)","v":""},{"$f":"IF(A282=\"\",\"\",'1. Checklist & Certification'!$G$69)","v":""},{"$f":"IF(A282=\"\",\"\",'1. Checklist & Certification'!$J$69)","v":""},{"$f":"IF(A282=\"\",\"\",'1. Checklist & Certification'!$K$69)","v":""},null,null,{"$f":"IF(AND(OR('1. Checklist & Certification'!$M$16=1,'1. Checklist & Certification'!$M$19=2),AO282>0,B282=\"\",I282>0,AQ282<I282,AV282<>\"Sec 8-Project\"),\"X\",IF(AND(OR('1. Checklist & Certification'!$M$20=4,'1. Checklist & Certification'!$M$21=5,'1. Checklist & Certification'!$M$22=7),AO282>0,B282=\"\",I282>0,K282<I282),\"X\",\"\"))","v":""},{"$f":"IF(A282=\"\",\"\",IF(SUMPRODUCT(-- (ISNUMBER(SEARCH({\"*AHSC*\",\"*FMTW*\",\"*FWHG*\",\"*GHI*\",\"*HHC*\",\"*HLCP*\",\"*HOME*\",\"*LPR*\",\"*MHP*\",\"*NHTF*\",\"*NSP*\",\"*PRP*\",\"*TOD*\",\"*VHHP*\"},'1. Checklist & Certification'!$L$7)))),\"MHP\",\"Legacy\"))","v":""},",,",null,null,null,{"$f":"IF('1. Checklist & Certification'!$M$20=4,\"Both\",IF(OR('1. Checklist & Certification'!$M$15>0,S282=\"CHRP-R\",U282=\"CHRP-R\",W282=\"CHRP-R\",Y282=\"CHRP-R\"),\"Under\",\"No\"))","v":"No"},"No","No",{"$f":"_xlfn.IFS(D282=\"\",\"\",D282=1,'MHP Family Income & Rent Limits'!$E$17,D282=2,'MHP Family Income & Rent Limits'!$F$17,D282=3,'MHP Family Income & Rent Limits'!$G$17,D282=4,'MHP Family Income & Rent Limits'!$H$17,D282=5,'MHP Family Income & Rent Limits'!$I$17,D282=6,'MHP Family Income & Rent Limits'!$J$17,D282=7,'MHP Family Income & Rent Limits'!$K$17,D282=8,'MHP Family Income & Rent Limits'!$L$17)","v":""},"",{"$f":"IF(OR(A282=0,B282=\"X\"),0,MIN(IF(AA282:AD282<>0,AA282:AD282)))","v":0},{"$f":"IF(OR(H282=\"\",I282=\"\"),0,IF(H282*0.3/12>I282,MIN(H282*0.3/12,I282*1.1)+AP282,I282*(1+(VLOOKUP('1. Checklist & Certification'!$F$9,'HLCP-E Rent Change'!$A$1:$D$59,4,FALSE)))+AP282))","v":0}]
[null,null,null,null,null,null,null,null,null,null,null,null,null,null,null,null,null,null,null,null,null,null,null,null,null,null,0,0,0,0,0,0,0,0,{"$f":"IF(OR(A283=0,B283=\"X\"),0,IF(OR(S283=\"FHDP\",S283=\"RHCP-B\",U283=\"FHDP\",U283=\"RHCP-B\",W283=\"FHDP\",W283=\"RHCP-B\",Y283=\"FHDP\",Y283=\"RHCP-B\"),TRUNC((MIN(I283,K283)*(1+'1. Checklist & Certification'!$K$43)+AP283)),0))","v":0},{"$f":"IF(OR(A283=0,B283=\"X\"),0,IF(OR(S283=\"CHRP-R\",S283=\"SERA\",S283=\"SUHRP\",U283=\"CHRP-R\",U283=\"SERA\",U283=\"SUHRP\",W283=\"CHRP-R\",W283=\"SERA\",W283=\"SUHRP\",Y283=\"CHRP-R\",Y283=\"SERA\",Y283=\"SUHRP\"),TRUNC((MIN(I283,K283)*(1+'1. Checklist & Certification'!$K$49))),0))","v":0},{"$f":"IF(OR(A283=0,B283=\"X\"),0,IF(OR(S283=\"CALDAP\",S283=\"DPRLP\",U283=\"CALDAP\",U283=\"DPRLP\",W283=\"CALDAP\",W283=\"DPRLP\",Y283=\"CALDAP\",Y283=\"DPRLP\"),TRUNC(((MIN(I283,K283))*(1+'1. Checklist & Certification'!$G$4))),0))","v":0},0,0,0,{"$f":"IF(OR(A283=0,B283=\"X\"),0,IF(OR(S283=\"PRP\",S283=\"LPR\",U283=\"PRP\",U283=\"LPR\",W283=\"PRP\",W283=\"LPR\",Y283=\"PRP\",Y283=\"LPR\"),MAX(I283+AP283,MIN(IF(AE283:AN283<>0,AE283:AN283))),MIN(IF(AE283:AN283<>0,AE283:AN283))))","v":0},{"$f":"IF(A283=0,0,IF(AND(OR(S283=\"Mgr\",S283=0),OR(U283=\"Mgr\",U283=0),OR(W283=\"Mgr\",W283=0)),0,IF(LEFT($A283,2)=\"B*\",VLOOKUP($E283,'1. Checklist & Certification'!$D$26:$E$32,2),IF(LEFT($A283,2)=\"C*\",VLOOKUP($E283,'1. Checklist & Certification'!$F$26:$G$32,2),IF(LEFT($A283,2)=\"D*\",VLOOKUP($E283,'1. Checklist & Certification'!$H$26:$I$32,2),IF(LEFT($A283,2)=\"E*\",VLOOKUP($E283,'1. Checklist & Certification'!$J$26:$K$32,2),VLOOKUP($E283,'1. Checklist & Certification'!$A$26:$B$32,2)))))))","v":0},0,0,null,null,null,null,"","",0,0,0,null,{"$f":"IF(A283=\"\",\"\",'1. Checklist & Certification'!$K$1)","v":""},{"$f":"IF(A283=\"\",\"\",'1. Checklist & Certification'!$C$62)","v":""},{"$f":"IF(A283=\"\",\"\",'1. Checklist & Certification'!$C$6)","v":""},{"$f":"IF(A283=\"\",\"\",'1. Checklist & Certification'!$G$5)","v":""},{"$f":"IFERROR(IF(A283=\"\",\"\",\n_xlfn.LET(_xlpm.Contract,'1. Checklist & Certification'!$C$7,\n_xlpm.Yr,TEXT(MOD(_xlfn.TEXTBEFORE(_xlpm.Contract,\"-\"),100),\"00\"),\n_xlpm.Program,_xlfn.TEXTAFTER(_xlfn.TEXTBEFORE(_xlpm.Contract,\"-\",2),\"-\"),\n_xlpm.CleanProgram,_xlfn.XLOOKUP(_xlpm.Program,SpellCheck[Input],SpellCheck[Correction],_xlpm.Program),\n_xlpm.Number,TEXT(_xlfn.TEXTAFTER(_xlpm.Contract,\"-\",2),\"0000\"),\n_xlfn.CONCAT(_xlpm.Yr,\"-\",_xlpm.CleanProgram,\"-\",_xlpm.Number))\n),\"\")","v":""},{"$f":"IFERROR(IF(A283=\"\",\"\",\n_xlfn.LET(_xlpm.Contract,'1. Checklist & Certification'!$C$8,\n_xlpm.Yr,TEXT(MOD(_xlfn.TEXTBEFORE(_xlpm.Contract,\"-\"),100),\"00\"),\n_xlpm.Program,_xlfn.TEXTAFTER(_xlfn.TEXTBEFORE(_xlpm.Contract,\"-\",2),\"-\"),\n_xlpm.CleanProgram,_xlfn.XLOOKUP(_xlpm.Program,SpellCheck[Input],SpellCheck[Correction],_xlpm.Program),\n_xlpm.Number,TEXT(_xlfn.TEXTAFTER(_xlpm.Contract,\"-\",2),\"0000\"),\n_xlfn.CONCAT(_xlpm.Yr,\"-\",_xlpm.CleanProgram,\"-\",_xlpm.Number))\n),\"\")","v":""},{"$f":"IFERROR(IF(A283=\"\",\"\",\n_xlfn.LET(_xlpm.Contract,'1. Checklist & Certification'!$F$7,\n_xlpm.Yr,TEXT(MOD(_xlfn.TEXTBEFORE(_xlpm.Contract,\"-\"),100),\"00\"),\n_xlpm.Program,_xlfn.TEXTAFTER(_xlfn.TEXTBEFORE(_xlpm.Contract,\"-\",2),\"-\"),\n_xlpm.CleanProgram,_xlfn.XLOOKUP(_xlpm.Program,SpellCheck[Input],SpellCheck[Correction],_xlpm.Program),\n_xlpm.Number,TEXT(_xlfn.TEXTAFTER(_xlpm.Contract,\"-\",2),\"0000\"),\n_xlfn.CONCAT(_xlpm.Yr,\"-\",_xlpm.CleanProgram,\"-\",_xlpm.Number))\n),\"\")","v":""},{"$f":"IFERROR(IF(A283=\"\",\"\",\n_xlfn.LET(_xlpm.Contract,'1. Checklist & Certification'!$F$8,\n_xlpm.Yr,TEXT(MOD(_xlfn.TEXTBEFORE(_xlpm.Contract,\"-\"),100),\"00\"),\n_xlpm.Program,_xlfn.TEXTAFTER(_xlfn.TEXTBEFORE(_xlpm.Contract,\"-\",2),\"-\"),\n_xlpm.CleanProgram,_xlfn.XLOOKUP(_xlpm.Program,SpellCheck[Input],SpellCheck[Correction],_xlpm.Program),\n_xlpm.Number,TEXT(_xlfn.TEXTAFTER(_xlpm.Contract,\"-\",2),\"0000\"),\n_xlfn.CONCAT(_xlpm.Yr,\"-\",_xlpm.CleanProgram,\"-\",_xlpm.Number))\n),\"\")","v":""},{"$f":"IF(A283=\"\",\"\",'1. Checklist & Certification'!$B$9)","v":""},{"$f":"IF(A283=\"\",\"\",'1. Checklist & Certification'!$F$9)","v":""},{"$f":"IF(A283=\"\",\"\",'1. Checklist & Certification'!$C$10)","v":""},{"$f":"IF(A283=\"\",\"\",'1. Checklist & Certification'!$C$11)","v":""},{"$f":"IF(A283=\"\",\"\",'1. Checklist & Certification'!$C$12)","v":""},{"$f":"IF(A283=\"\",\"\",'1. Checklist & Certification'!$B$14)","v":""},{"$f":"IF(A283=\"\",\"\",'1. Checklist & Certification'!$E$14)","v":""},{"$f":"IF(B283=\"\",\"\",'1. Checklist & Certification'!$G$14)","v":""},{"$f":"IF(A283=\"\",\"\",'MHP Family Income & Rent Limits'!$B$3)","v":""},{"$f":"IF(A283=\"\",\"\",'MHP Family Income & Rent Limits'!$J$3)","v":""},{"$f":"IF(A283=\"\",\"\",'MHP Family Income & Rent Limits'!$E$4)","v":""},{"$f":"IF(A283=\"\",\"\",'MHP Family Income & Rent Limits'!$C$7)","v":""},{"$f":"IF(A283=\"\",\"\",'MHP Family Income & Rent Limits'!$F$8)","v":""},{"$f":"IF(A283=\"\",\"\",'1. Checklist & Certification'!$G$4)","v":""},{"$f":"IF(A283=\"\",\"\",'1. Checklist & Certification'!$K$39)","v":""},{"$f":"IF(A283=\"\",\"\",'1. Checklist & Certification'!$K$43)","v":""},{"$f":"IF(A283=\"\",\"\",'1. Checklist & Certification'!$K$45)","v":""},{"$f":"IF(A283=\"\",\"\",'1. Checklist & Certification'!$K$49)","v":""},{"$f":"IF(A283=\"\",\"\",'1. Checklist & Certification'!$K$62)","v":""},{"$f":"IF(A283=\"\",\"\",'1. Checklist & Certification'!$E$66)","v":""},{"$f":"IF(A283=\"\",\"\",'1. Checklist & Certification'!$E$67)","v":""},{"$f":"IF(A283=\"\",\"\",'1. Checklist & Certification'!$E$68)","v":""},{"$f":"IF(A283=\"\",\"\",'1. Checklist & Certification'!$G$66)","v":""},{"$f":"IF(A283=\"\",\"\",'1. Checklist & Certification'!$H$66)","v":""},{"$f":"IF(A283=\"\",\"\",'1. Checklist & Certification'!$I$66)","v":""},{"$f":"IF(A283=\"\",\"\",'1. Checklist & Certification'!$I$67)","v":""},{"$f":"IF(A283=\"\",\"\",'1. Checklist & Certification'!$I$68)","v":""},{"$f":"IF(A283=\"\",\"\",'1. Checklist & Certification'!$B$69)","v":""},{"$f":"IF(A283=\"\",\"\",'1. Checklist & Certification'!$C$69)","v":""},{"$f":"IF(A283=\"\",\"\",'1. Checklist & Certification'!$F$69)","v":""},{"$f":"IF(A283=\"\",\"\",'1. Checklist & Certification'!$G$69)","v":""},{"$f":"IF(A283=\"\",\"\",'1. Checklist & Certification'!$J$69)","v":""},{"$f":"IF(A283=\"\",\"\",'1. Checklist & Certification'!$K$69)","v":""},null,null,{"$f":"IF(AND(OR('1. Checklist & Certification'!$M$16=1,'1. Checklist & Certification'!$M$19=2),AO283>0,B283=\"\",I283>0,AQ283<I283,AV283<>\"Sec 8-Project\"),\"X\",IF(AND(OR('1. Checklist & Certification'!$M$20=4,'1. Checklist & Certification'!$M$21=5,'1. Checklist & Certification'!$M$22=7),AO283>0,B283=\"\",I283>0,K283<I283),\"X\",\"\"))","v":""},{"$f":"IF(A283=\"\",\"\",IF(SUMPRODUCT(-- (ISNUMBER(SEARCH({\"*AHSC*\",\"*FMTW*\",\"*FWHG*\",\"*GHI*\",\"*HHC*\",\"*HLCP*\",\"*HOME*\",\"*LPR*\",\"*MHP*\",\"*NHTF*\",\"*NSP*\",\"*PRP*\",\"*TOD*\",\"*VHHP*\"},'1. Checklist & Certification'!$L$7)))),\"MHP\",\"Legacy\"))","v":""},",,",null,null,null,{"$f":"IF('1. Checklist & Certification'!$M$20=4,\"Both\",IF(OR('1. Checklist & Certification'!$M$15>0,S283=\"CHRP-R\",U283=\"CHRP-R\",W283=\"CHRP-R\",Y283=\"CHRP-R\"),\"Under\",\"No\"))","v":"No"},"No","No",{"$f":"_xlfn.IFS(D283=\"\",\"\",D283=1,'MHP Family Income & Rent Limits'!$E$17,D283=2,'MHP Family Income & Rent Limits'!$F$17,D283=3,'MHP Family Income & Rent Limits'!$G$17,D283=4,'MHP Family Income & Rent Limits'!$H$17,D283=5,'MHP Family Income & Rent Limits'!$I$17,D283=6,'MHP Family Income & Rent Limits'!$J$17,D283=7,'MHP Family Income & Rent Limits'!$K$17,D283=8,'MHP Family Income & Rent Limits'!$L$17)","v":""},"",{"$f":"IF(OR(A283=0,B283=\"X\"),0,MIN(IF(AA283:AD283<>0,AA283:AD283)))","v":0},{"$f":"IF(OR(H283=\"\",I283=\"\"),0,IF(H283*0.3/12>I283,MIN(H283*0.3/12,I283*1.1)+AP283,I283*(1+(VLOOKUP('1. Checklist & Certification'!$F$9,'HLCP-E Rent Change'!$A$1:$D$59,4,FALSE)))+AP283))","v":0}]
[null,null,null,null,null,null,null,null,null,null,null,null,null,null,null,null,null,null,null,null,null,null,null,null,null,null,0,0,0,0,0,0,0,0,{"$f":"IF(OR(A284=0,B284=\"X\"),0,IF(OR(S284=\"FHDP\",S284=\"RHCP-B\",U284=\"FHDP\",U284=\"RHCP-B\",W284=\"FHDP\",W284=\"RHCP-B\",Y284=\"FHDP\",Y284=\"RHCP-B\"),TRUNC((MIN(I284,K284)*(1+'1. Checklist & Certification'!$K$43)+AP284)),0))","v":0},{"$f":"IF(OR(A284=0,B284=\"X\"),0,IF(OR(S284=\"CHRP-R\",S284=\"SERA\",S284=\"SUHRP\",U284=\"CHRP-R\",U284=\"SERA\",U284=\"SUHRP\",W284=\"CHRP-R\",W284=\"SERA\",W284=\"SUHRP\",Y284=\"CHRP-R\",Y284=\"SERA\",Y284=\"SUHRP\"),TRUNC((MIN(I284,K284)*(1+'1. Checklist & Certification'!$K$49))),0))","v":0},{"$f":"IF(OR(A284=0,B284=\"X\"),0,IF(OR(S284=\"CALDAP\",S284=\"DPRLP\",U284=\"CALDAP\",U284=\"DPRLP\",W284=\"CALDAP\",W284=\"DPRLP\",Y284=\"CALDAP\",Y284=\"DPRLP\"),TRUNC(((MIN(I284,K284))*(1+'1. Checklist & Certification'!$G$4))),0))","v":0},0,0,0,{"$f":"IF(OR(A284=0,B284=\"X\"),0,IF(OR(S284=\"PRP\",S284=\"LPR\",U284=\"PRP\",U284=\"LPR\",W284=\"PRP\",W284=\"LPR\",Y284=\"PRP\",Y284=\"LPR\"),MAX(I284+AP284,MIN(IF(AE284:AN284<>0,AE284:AN284))),MIN(IF(AE284:AN284<>0,AE284:AN284))))","v":0},{"$f":"IF(A284=0,0,IF(AND(OR(S284=\"Mgr\",S284=0),OR(U284=\"Mgr\",U284=0),OR(W284=\"Mgr\",W284=0)),0,IF(LEFT($A284,2)=\"B*\",VLOOKUP($E284,'1. Checklist & Certification'!$D$26:$E$32,2),IF(LEFT($A284,2)=\"C*\",VLOOKUP($E284,'1. Checklist & Certification'!$F$26:$G$32,2),IF(LEFT($A284,2)=\"D*\",VLOOKUP($E284,'1. Checklist & Certification'!$H$26:$I$32,2),IF(LEFT($A284,2)=\"E*\",VLOOKUP($E284,'1. Checklist & Certification'!$J$26:$K$32,2),VLOOKUP($E284,'1. Checklist & Certification'!$A$26:$B$32,2)))))))","v":0},0,0,null,null,null,null,"","",0,0,0,null,{"$f":"IF(A284=\"\",\"\",'1. Checklist & Certification'!$K$1)","v":""},{"$f":"IF(A284=\"\",\"\",'1. Checklist & Certification'!$C$62)","v":""},{"$f":"IF(A284=\"\",\"\",'1. Checklist & Certification'!$C$6)","v":""},{"$f":"IF(A284=\"\",\"\",'1. Checklist & Certification'!$G$5)","v":""},{"$f":"IFERROR(IF(A284=\"\",\"\",\n_xlfn.LET(_xlpm.Contract,'1. Checklist & Certification'!$C$7,\n_xlpm.Yr,TEXT(MOD(_xlfn.TEXTBEFORE(_xlpm.Contract,\"-\"),100),\"00\"),\n_xlpm.Program,_xlfn.TEXTAFTER(_xlfn.TEXTBEFORE(_xlpm.Contract,\"-\",2),\"-\"),\n_xlpm.CleanProgram,_xlfn.XLOOKUP(_xlpm.Program,SpellCheck[Input],SpellCheck[Correction],_xlpm.Program),\n_xlpm.Number,TEXT(_xlfn.TEXTAFTER(_xlpm.Contract,\"-\",2),\"0000\"),\n_xlfn.CONCAT(_xlpm.Yr,\"-\",_xlpm.CleanProgram,\"-\",_xlpm.Number))\n),\"\")","v":""},{"$f":"IFERROR(IF(A284=\"\",\"\",\n_xlfn.LET(_xlpm.Contract,'1. Checklist & Certification'!$C$8,\n_xlpm.Yr,TEXT(MOD(_xlfn.TEXTBEFORE(_xlpm.Contract,\"-\"),100),\"00\"),\n_xlpm.Program,_xlfn.TEXTAFTER(_xlfn.TEXTBEFORE(_xlpm.Contract,\"-\",2),\"-\"),\n_xlpm.CleanProgram,_xlfn.XLOOKUP(_xlpm.Program,SpellCheck[Input],SpellCheck[Correction],_xlpm.Program),\n_xlpm.Number,TEXT(_xlfn.TEXTAFTER(_xlpm.Contract,\"-\",2),\"0000\"),\n_xlfn.CONCAT(_xlpm.Yr,\"-\",_xlpm.CleanProgram,\"-\",_xlpm.Number))\n),\"\")","v":""},{"$f":"IFERROR(IF(A284=\"\",\"\",\n_xlfn.LET(_xlpm.Contract,'1. Checklist & Certification'!$F$7,\n_xlpm.Yr,TEXT(MOD(_xlfn.TEXTBEFORE(_xlpm.Contract,\"-\"),100),\"00\"),\n_xlpm.Program,_xlfn.TEXTAFTER(_xlfn.TEXTBEFORE(_xlpm.Contract,\"-\",2),\"-\"),\n_xlpm.CleanProgram,_xlfn.XLOOKUP(_xlpm.Program,SpellCheck[Input],SpellCheck[Correction],_xlpm.Program),\n_xlpm.Number,TEXT(_xlfn.TEXTAFTER(_xlpm.Contract,\"-\",2),\"0000\"),\n_xlfn.CONCAT(_xlpm.Yr,\"-\",_xlpm.CleanProgram,\"-\",_xlpm.Number))\n),\"\")","v":""},{"$f":"IFERROR(IF(A284=\"\",\"\",\n_xlfn.LET(_xlpm.Contract,'1. Checklist & Certification'!$F$8,\n_xlpm.Yr,TEXT(MOD(_xlfn.TEXTBEFORE(_xlpm.Contract,\"-\"),100),\"00\"),\n_xlpm.Program,_xlfn.TEXTAFTER(_xlfn.TEXTBEFORE(_xlpm.Contract,\"-\",2),\"-\"),\n_xlpm.CleanProgram,_xlfn.XLOOKUP(_xlpm.Program,SpellCheck[Input],SpellCheck[Correction],_xlpm.Program),\n_xlpm.Number,TEXT(_xlfn.TEXTAFTER(_xlpm.Contract,\"-\",2),\"0000\"),\n_xlfn.CONCAT(_xlpm.Yr,\"-\",_xlpm.CleanProgram,\"-\",_xlpm.Number))\n),\"\")","v":""},{"$f":"IF(A284=\"\",\"\",'1. Checklist & Certification'!$B$9)","v":""},{"$f":"IF(A284=\"\",\"\",'1. Checklist & Certification'!$F$9)","v":""},{"$f":"IF(A284=\"\",\"\",'1. Checklist & Certification'!$C$10)","v":""},{"$f":"IF(A284=\"\",\"\",'1. Checklist & Certification'!$C$11)","v":""},{"$f":"IF(A284=\"\",\"\",'1. Checklist & Certification'!$C$12)","v":""},{"$f":"IF(A284=\"\",\"\",'1. Checklist & Certification'!$B$14)","v":""},{"$f":"IF(A284=\"\",\"\",'1. Checklist & Certification'!$E$14)","v":""},{"$f":"IF(B284=\"\",\"\",'1. Checklist & Certification'!$G$14)","v":""},{"$f":"IF(A284=\"\",\"\",'MHP Family Income & Rent Limits'!$B$3)","v":""},{"$f":"IF(A284=\"\",\"\",'MHP Family Income & Rent Limits'!$J$3)","v":""},{"$f":"IF(A284=\"\",\"\",'MHP Family Income & Rent Limits'!$E$4)","v":""},{"$f":"IF(A284=\"\",\"\",'MHP Family Income & Rent Limits'!$C$7)","v":""},{"$f":"IF(A284=\"\",\"\",'MHP Family Income & Rent Limits'!$F$8)","v":""},{"$f":"IF(A284=\"\",\"\",'1. Checklist & Certification'!$G$4)","v":""},{"$f":"IF(A284=\"\",\"\",'1. Checklist & Certification'!$K$39)","v":""},{"$f":"IF(A284=\"\",\"\",'1. Checklist & Certification'!$K$43)","v":""},{"$f":"IF(A284=\"\",\"\",'1. Checklist & Certification'!$K$45)","v":""},{"$f":"IF(A284=\"\",\"\",'1. Checklist & Certification'!$K$49)","v":""},{"$f":"IF(A284=\"\",\"\",'1. Checklist & Certification'!$K$62)","v":""},{"$f":"IF(A284=\"\",\"\",'1. Checklist & Certification'!$E$66)","v":""},{"$f":"IF(A284=\"\",\"\",'1. Checklist & Certification'!$E$67)","v":""},{"$f":"IF(A284=\"\",\"\",'1. Checklist & Certification'!$E$68)","v":""},{"$f":"IF(A284=\"\",\"\",'1. Checklist & Certification'!$G$66)","v":""},{"$f":"IF(A284=\"\",\"\",'1. Checklist & Certification'!$H$66)","v":""},{"$f":"IF(A284=\"\",\"\",'1. Checklist & Certification'!$I$66)","v":""},{"$f":"IF(A284=\"\",\"\",'1. Checklist & Certification'!$I$67)","v":""},{"$f":"IF(A284=\"\",\"\",'1. Checklist & Certification'!$I$68)","v":""},{"$f":"IF(A284=\"\",\"\",'1. Checklist & Certification'!$B$69)","v":""},{"$f":"IF(A284=\"\",\"\",'1. Checklist & Certification'!$C$69)","v":""},{"$f":"IF(A284=\"\",\"\",'1. Checklist & Certification'!$F$69)","v":""},{"$f":"IF(A284=\"\",\"\",'1. Checklist & Certification'!$G$69)","v":""},{"$f":"IF(A284=\"\",\"\",'1. Checklist & Certification'!$J$69)","v":""},{"$f":"IF(A284=\"\",\"\",'1. Checklist & Certification'!$K$69)","v":""},null,null,{"$f":"IF(AND(OR('1. Checklist & Certification'!$M$16=1,'1. Checklist & Certification'!$M$19=2),AO284>0,B284=\"\",I284>0,AQ284<I284,AV284<>\"Sec 8-Project\"),\"X\",IF(AND(OR('1. Checklist & Certification'!$M$20=4,'1. Checklist & Certification'!$M$21=5,'1. Checklist & Certification'!$M$22=7),AO284>0,B284=\"\",I284>0,K284<I284),\"X\",\"\"))","v":""},{"$f":"IF(A284=\"\",\"\",IF(SUMPRODUCT(-- (ISNUMBER(SEARCH({\"*AHSC*\",\"*FMTW*\",\"*FWHG*\",\"*GHI*\",\"*HHC*\",\"*HLCP*\",\"*HOME*\",\"*LPR*\",\"*MHP*\",\"*NHTF*\",\"*NSP*\",\"*PRP*\",\"*TOD*\",\"*VHHP*\"},'1. Checklist & Certification'!$L$7)))),\"MHP\",\"Legacy\"))","v":""},",,",null,null,null,{"$f":"IF('1. Checklist & Certification'!$M$20=4,\"Both\",IF(OR('1. Checklist & Certification'!$M$15>0,S284=\"CHRP-R\",U284=\"CHRP-R\",W284=\"CHRP-R\",Y284=\"CHRP-R\"),\"Under\",\"No\"))","v":"No"},"No","No",{"$f":"_xlfn.IFS(D284=\"\",\"\",D284=1,'MHP Family Income & Rent Limits'!$E$17,D284=2,'MHP Family Income & Rent Limits'!$F$17,D284=3,'MHP Family Income & Rent Limits'!$G$17,D284=4,'MHP Family Income & Rent Limits'!$H$17,D284=5,'MHP Family Income & Rent Limits'!$I$17,D284=6,'MHP Family Income & Rent Limits'!$J$17,D284=7,'MHP Family Income & Rent Limits'!$K$17,D284=8,'MHP Family Income & Rent Limits'!$L$17)","v":""},"",{"$f":"IF(OR(A284=0,B284=\"X\"),0,MIN(IF(AA284:AD284<>0,AA284:AD284)))","v":0},{"$f":"IF(OR(H284=\"\",I284=\"\"),0,IF(H284*0.3/12>I284,MIN(H284*0.3/12,I284*1.1)+AP284,I284*(1+(VLOOKUP('1. Checklist & Certification'!$F$9,'HLCP-E Rent Change'!$A$1:$D$59,4,FALSE)))+AP284))","v":0}]
[null,null,null,null,null,null,null,null,null,null,null,null,null,null,null,null,null,null,null,null,null,null,null,null,null,null,0,0,0,0,0,0,0,0,{"$f":"IF(OR(A285=0,B285=\"X\"),0,IF(OR(S285=\"FHDP\",S285=\"RHCP-B\",U285=\"FHDP\",U285=\"RHCP-B\",W285=\"FHDP\",W285=\"RHCP-B\",Y285=\"FHDP\",Y285=\"RHCP-B\"),TRUNC((MIN(I285,K285)*(1+'1. Checklist & Certification'!$K$43)+AP285)),0))","v":0},{"$f":"IF(OR(A285=0,B285=\"X\"),0,IF(OR(S285=\"CHRP-R\",S285=\"SERA\",S285=\"SUHRP\",U285=\"CHRP-R\",U285=\"SERA\",U285=\"SUHRP\",W285=\"CHRP-R\",W285=\"SERA\",W285=\"SUHRP\",Y285=\"CHRP-R\",Y285=\"SERA\",Y285=\"SUHRP\"),TRUNC((MIN(I285,K285)*(1+'1. Checklist & Certification'!$K$49))),0))","v":0},{"$f":"IF(OR(A285=0,B285=\"X\"),0,IF(OR(S285=\"CALDAP\",S285=\"DPRLP\",U285=\"CALDAP\",U285=\"DPRLP\",W285=\"CALDAP\",W285=\"DPRLP\",Y285=\"CALDAP\",Y285=\"DPRLP\"),TRUNC(((MIN(I285,K285))*(1+'1. Checklist & Certification'!$G$4))),0))","v":0},0,0,0,{"$f":"IF(OR(A285=0,B285=\"X\"),0,IF(OR(S285=\"PRP\",S285=\"LPR\",U285=\"PRP\",U285=\"LPR\",W285=\"PRP\",W285=\"LPR\",Y285=\"PRP\",Y285=\"LPR\"),MAX(I285+AP285,MIN(IF(AE285:AN285<>0,AE285:AN285))),MIN(IF(AE285:AN285<>0,AE285:AN285))))","v":0},{"$f":"IF(A285=0,0,IF(AND(OR(S285=\"Mgr\",S285=0),OR(U285=\"Mgr\",U285=0),OR(W285=\"Mgr\",W285=0)),0,IF(LEFT($A285,2)=\"B*\",VLOOKUP($E285,'1. Checklist & Certification'!$D$26:$E$32,2),IF(LEFT($A285,2)=\"C*\",VLOOKUP($E285,'1. Checklist & Certification'!$F$26:$G$32,2),IF(LEFT($A285,2)=\"D*\",VLOOKUP($E285,'1. Checklist & Certification'!$H$26:$I$32,2),IF(LEFT($A285,2)=\"E*\",VLOOKUP($E285,'1. Checklist & Certification'!$J$26:$K$32,2),VLOOKUP($E285,'1. Checklist & Certification'!$A$26:$B$32,2)))))))","v":0},0,0,null,null,null,null,"","",0,0,0,null,{"$f":"IF(A285=\"\",\"\",'1. Checklist & Certification'!$K$1)","v":""},{"$f":"IF(A285=\"\",\"\",'1. Checklist & Certification'!$C$62)","v":""},{"$f":"IF(A285=\"\",\"\",'1. Checklist & Certification'!$C$6)","v":""},{"$f":"IF(A285=\"\",\"\",'1. Checklist & Certification'!$G$5)","v":""},{"$f":"IFERROR(IF(A285=\"\",\"\",\n_xlfn.LET(_xlpm.Contract,'1. Checklist & Certification'!$C$7,\n_xlpm.Yr,TEXT(MOD(_xlfn.TEXTBEFORE(_xlpm.Contract,\"-\"),100),\"00\"),\n_xlpm.Program,_xlfn.TEXTAFTER(_xlfn.TEXTBEFORE(_xlpm.Contract,\"-\",2),\"-\"),\n_xlpm.CleanProgram,_xlfn.XLOOKUP(_xlpm.Program,SpellCheck[Input],SpellCheck[Correction],_xlpm.Program),\n_xlpm.Number,TEXT(_xlfn.TEXTAFTER(_xlpm.Contract,\"-\",2),\"0000\"),\n_xlfn.CONCAT(_xlpm.Yr,\"-\",_xlpm.CleanProgram,\"-\",_xlpm.Number))\n),\"\")","v":""},{"$f":"IFERROR(IF(A285=\"\",\"\",\n_xlfn.LET(_xlpm.Contract,'1. Checklist & Certification'!$C$8,\n_xlpm.Yr,TEXT(MOD(_xlfn.TEXTBEFORE(_xlpm.Contract,\"-\"),100),\"00\"),\n_xlpm.Program,_xlfn.TEXTAFTER(_xlfn.TEXTBEFORE(_xlpm.Contract,\"-\",2),\"-\"),\n_xlpm.CleanProgram,_xlfn.XLOOKUP(_xlpm.Program,SpellCheck[Input],SpellCheck[Correction],_xlpm.Program),\n_xlpm.Number,TEXT(_xlfn.TEXTAFTER(_xlpm.Contract,\"-\",2),\"0000\"),\n_xlfn.CONCAT(_xlpm.Yr,\"-\",_xlpm.CleanProgram,\"-\",_xlpm.Number))\n),\"\")","v":""},{"$f":"IFERROR(IF(A285=\"\",\"\",\n_xlfn.LET(_xlpm.Contract,'1. Checklist & Certification'!$F$7,\n_xlpm.Yr,TEXT(MOD(_xlfn.TEXTBEFORE(_xlpm.Contract,\"-\"),100),\"00\"),\n_xlpm.Program,_xlfn.TEXTAFTER(_xlfn.TEXTBEFORE(_xlpm.Contract,\"-\",2),\"-\"),\n_xlpm.CleanProgram,_xlfn.XLOOKUP(_xlpm.Program,SpellCheck[Input],SpellCheck[Correction],_xlpm.Program),\n_xlpm.Number,TEXT(_xlfn.TEXTAFTER(_xlpm.Contract,\"-\",2),\"0000\"),\n_xlfn.CONCAT(_xlpm.Yr,\"-\",_xlpm.CleanProgram,\"-\",_xlpm.Number))\n),\"\")","v":""},{"$f":"IFERROR(IF(A285=\"\",\"\",\n_xlfn.LET(_xlpm.Contract,'1. Checklist & Certification'!$F$8,\n_xlpm.Yr,TEXT(MOD(_xlfn.TEXTBEFORE(_xlpm.Contract,\"-\"),100),\"00\"),\n_xlpm.Program,_xlfn.TEXTAFTER(_xlfn.TEXTBEFORE(_xlpm.Contract,\"-\",2),\"-\"),\n_xlpm.CleanProgram,_xlfn.XLOOKUP(_xlpm.Program,SpellCheck[Input],SpellCheck[Correction],_xlpm.Program),\n_xlpm.Number,TEXT(_xlfn.TEXTAFTER(_xlpm.Contract,\"-\",2),\"0000\"),\n_xlfn.CONCAT(_xlpm.Yr,\"-\",_xlpm.CleanProgram,\"-\",_xlpm.Number))\n),\"\")","v":""},{"$f":"IF(A285=\"\",\"\",'1. Checklist & Certification'!$B$9)","v":""},{"$f":"IF(A285=\"\",\"\",'1. Checklist & Certification'!$F$9)","v":""},{"$f":"IF(A285=\"\",\"\",'1. Checklist & Certification'!$C$10)","v":""},{"$f":"IF(A285=\"\",\"\",'1. Checklist & Certification'!$C$11)","v":""},{"$f":"IF(A285=\"\",\"\",'1. Checklist & Certification'!$C$12)","v":""},{"$f":"IF(A285=\"\",\"\",'1. Checklist & Certification'!$B$14)","v":""},{"$f":"IF(A285=\"\",\"\",'1. Checklist & Certification'!$E$14)","v":""},{"$f":"IF(B285=\"\",\"\",'1. Checklist & Certification'!$G$14)","v":""},{"$f":"IF(A285=\"\",\"\",'MHP Family Income & Rent Limits'!$B$3)","v":""},{"$f":"IF(A285=\"\",\"\",'MHP Family Income & Rent Limits'!$J$3)","v":""},{"$f":"IF(A285=\"\",\"\",'MHP Family Income & Rent Limits'!$E$4)","v":""},{"$f":"IF(A285=\"\",\"\",'MHP Family Income & Rent Limits'!$C$7)","v":""},{"$f":"IF(A285=\"\",\"\",'MHP Family Income & Rent Limits'!$F$8)","v":""},{"$f":"IF(A285=\"\",\"\",'1. Checklist & Certification'!$G$4)","v":""},{"$f":"IF(A285=\"\",\"\",'1. Checklist & Certification'!$K$39)","v":""},{"$f":"IF(A285=\"\",\"\",'1. Checklist & Certification'!$K$43)","v":""},{"$f":"IF(A285=\"\",\"\",'1. Checklist & Certification'!$K$45)","v":""},{"$f":"IF(A285=\"\",\"\",'1. Checklist & Certification'!$K$49)","v":""},{"$f":"IF(A285=\"\",\"\",'1. Checklist & Certification'!$K$62)","v":""},{"$f":"IF(A285=\"\",\"\",'1. Checklist & Certification'!$E$66)","v":""},{"$f":"IF(A285=\"\",\"\",'1. Checklist & Certification'!$E$67)","v":""},{"$f":"IF(A285=\"\",\"\",'1. Checklist & Certification'!$E$68)","v":""},{"$f":"IF(A285=\"\",\"\",'1. Checklist & Certification'!$G$66)","v":""},{"$f":"IF(A285=\"\",\"\",'1. Checklist & Certification'!$H$66)","v":""},{"$f":"IF(A285=\"\",\"\",'1. Checklist & Certification'!$I$66)","v":""},{"$f":"IF(A285=\"\",\"\",'1. Checklist & Certification'!$I$67)","v":""},{"$f":"IF(A285=\"\",\"\",'1. Checklist & Certification'!$I$68)","v":""},{"$f":"IF(A285=\"\",\"\",'1. Checklist & Certification'!$B$69)","v":""},{"$f":"IF(A285=\"\",\"\",'1. Checklist & Certification'!$C$69)","v":""},{"$f":"IF(A285=\"\",\"\",'1. Checklist & Certification'!$F$69)","v":""},{"$f":"IF(A285=\"\",\"\",'1. Checklist & Certification'!$G$69)","v":""},{"$f":"IF(A285=\"\",\"\",'1. Checklist & Certification'!$J$69)","v":""},{"$f":"IF(A285=\"\",\"\",'1. Checklist & Certification'!$K$69)","v":""},null,null,{"$f":"IF(AND(OR('1. Checklist & Certification'!$M$16=1,'1. Checklist & Certification'!$M$19=2),AO285>0,B285=\"\",I285>0,AQ285<I285,AV285<>\"Sec 8-Project\"),\"X\",IF(AND(OR('1. Checklist & Certification'!$M$20=4,'1. Checklist & Certification'!$M$21=5,'1. Checklist & Certification'!$M$22=7),AO285>0,B285=\"\",I285>0,K285<I285),\"X\",\"\"))","v":""},{"$f":"IF(A285=\"\",\"\",IF(SUMPRODUCT(-- (ISNUMBER(SEARCH({\"*AHSC*\",\"*FMTW*\",\"*FWHG*\",\"*GHI*\",\"*HHC*\",\"*HLCP*\",\"*HOME*\",\"*LPR*\",\"*MHP*\",\"*NHTF*\",\"*NSP*\",\"*PRP*\",\"*TOD*\",\"*VHHP*\"},'1. Checklist & Certification'!$L$7)))),\"MHP\",\"Legacy\"))","v":""},",,",null,null,null,{"$f":"IF('1. Checklist & Certification'!$M$20=4,\"Both\",IF(OR('1. Checklist & Certification'!$M$15>0,S285=\"CHRP-R\",U285=\"CHRP-R\",W285=\"CHRP-R\",Y285=\"CHRP-R\"),\"Under\",\"No\"))","v":"No"},"No","No",{"$f":"_xlfn.IFS(D285=\"\",\"\",D285=1,'MHP Family Income & Rent Limits'!$E$17,D285=2,'MHP Family Income & Rent Limits'!$F$17,D285=3,'MHP Family Income & Rent Limits'!$G$17,D285=4,'MHP Family Income & Rent Limits'!$H$17,D285=5,'MHP Family Income & Rent Limits'!$I$17,D285=6,'MHP Family Income & Rent Limits'!$J$17,D285=7,'MHP Family Income & Rent Limits'!$K$17,D285=8,'MHP Family Income & Rent Limits'!$L$17)","v":""},"",{"$f":"IF(OR(A285=0,B285=\"X\"),0,MIN(IF(AA285:AD285<>0,AA285:AD285)))","v":0},{"$f":"IF(OR(H285=\"\",I285=\"\"),0,IF(H285*0.3/12>I285,MIN(H285*0.3/12,I285*1.1)+AP285,I285*(1+(VLOOKUP('1. Checklist & Certification'!$F$9,'HLCP-E Rent Change'!$A$1:$D$59,4,FALSE)))+AP285))","v":0}]
[null,null,null,null,null,null,null,null,null,null,null,null,null,null,null,null,null,null,null,null,null,null,null,null,null,null,0,0,0,0,0,0,0,0,{"$f":"IF(OR(A286=0,B286=\"X\"),0,IF(OR(S286=\"FHDP\",S286=\"RHCP-B\",U286=\"FHDP\",U286=\"RHCP-B\",W286=\"FHDP\",W286=\"RHCP-B\",Y286=\"FHDP\",Y286=\"RHCP-B\"),TRUNC((MIN(I286,K286)*(1+'1. Checklist & Certification'!$K$43)+AP286)),0))","v":0},{"$f":"IF(OR(A286=0,B286=\"X\"),0,IF(OR(S286=\"CHRP-R\",S286=\"SERA\",S286=\"SUHRP\",U286=\"CHRP-R\",U286=\"SERA\",U286=\"SUHRP\",W286=\"CHRP-R\",W286=\"SERA\",W286=\"SUHRP\",Y286=\"CHRP-R\",Y286=\"SERA\",Y286=\"SUHRP\"),TRUNC((MIN(I286,K286)*(1+'1. Checklist & Certification'!$K$49))),0))","v":0},{"$f":"IF(OR(A286=0,B286=\"X\"),0,IF(OR(S286=\"CALDAP\",S286=\"DPRLP\",U286=\"CALDAP\",U286=\"DPRLP\",W286=\"CALDAP\",W286=\"DPRLP\",Y286=\"CALDAP\",Y286=\"DPRLP\"),TRUNC(((MIN(I286,K286))*(1+'1. Checklist & Certification'!$G$4))),0))","v":0},0,0,0,{"$f":"IF(OR(A286=0,B286=\"X\"),0,IF(OR(S286=\"PRP\",S286=\"LPR\",U286=\"PRP\",U286=\"LPR\",W286=\"PRP\",W286=\"LPR\",Y286=\"PRP\",Y286=\"LPR\"),MAX(I286+AP286,MIN(IF(AE286:AN286<>0,AE286:AN286))),MIN(IF(AE286:AN286<>0,AE286:AN286))))","v":0},{"$f":"IF(A286=0,0,IF(AND(OR(S286=\"Mgr\",S286=0),OR(U286=\"Mgr\",U286=0),OR(W286=\"Mgr\",W286=0)),0,IF(LEFT($A286,2)=\"B*\",VLOOKUP($E286,'1. Checklist & Certification'!$D$26:$E$32,2),IF(LEFT($A286,2)=\"C*\",VLOOKUP($E286,'1. Checklist & Certification'!$F$26:$G$32,2),IF(LEFT($A286,2)=\"D*\",VLOOKUP($E286,'1. Checklist & Certification'!$H$26:$I$32,2),IF(LEFT($A286,2)=\"E*\",VLOOKUP($E286,'1. Checklist & Certification'!$J$26:$K$32,2),VLOOKUP($E286,'1. Checklist & Certification'!$A$26:$B$32,2)))))))","v":0},0,0,null,null,null,null,"","",0,0,0,null,{"$f":"IF(A286=\"\",\"\",'1. Checklist & Certification'!$K$1)","v":""},{"$f":"IF(A286=\"\",\"\",'1. Checklist & Certification'!$C$62)","v":""},{"$f":"IF(A286=\"\",\"\",'1. Checklist & Certification'!$C$6)","v":""},{"$f":"IF(A286=\"\",\"\",'1. Checklist & Certification'!$G$5)","v":""},{"$f":"IFERROR(IF(A286=\"\",\"\",\n_xlfn.LET(_xlpm.Contract,'1. Checklist & Certification'!$C$7,\n_xlpm.Yr,TEXT(MOD(_xlfn.TEXTBEFORE(_xlpm.Contract,\"-\"),100),\"00\"),\n_xlpm.Program,_xlfn.TEXTAFTER(_xlfn.TEXTBEFORE(_xlpm.Contract,\"-\",2),\"-\"),\n_xlpm.CleanProgram,_xlfn.XLOOKUP(_xlpm.Program,SpellCheck[Input],SpellCheck[Correction],_xlpm.Program),\n_xlpm.Number,TEXT(_xlfn.TEXTAFTER(_xlpm.Contract,\"-\",2),\"0000\"),\n_xlfn.CONCAT(_xlpm.Yr,\"-\",_xlpm.CleanProgram,\"-\",_xlpm.Number))\n),\"\")","v":""},{"$f":"IFERROR(IF(A286=\"\",\"\",\n_xlfn.LET(_xlpm.Contract,'1. Checklist & Certification'!$C$8,\n_xlpm.Yr,TEXT(MOD(_xlfn.TEXTBEFORE(_xlpm.Contract,\"-\"),100),\"00\"),\n_xlpm.Program,_xlfn.TEXTAFTER(_xlfn.TEXTBEFORE(_xlpm.Contract,\"-\",2),\"-\"),\n_xlpm.CleanProgram,_xlfn.XLOOKUP(_xlpm.Program,SpellCheck[Input],SpellCheck[Correction],_xlpm.Program),\n_xlpm.Number,TEXT(_xlfn.TEXTAFTER(_xlpm.Contract,\"-\",2),\"0000\"),\n_xlfn.CONCAT(_xlpm.Yr,\"-\",_xlpm.CleanProgram,\"-\",_xlpm.Number))\n),\"\")","v":""},{"$f":"IFERROR(IF(A286=\"\",\"\",\n_xlfn.LET(_xlpm.Contract,'1. Checklist & Certification'!$F$7,\n_xlpm.Yr,TEXT(MOD(_xlfn.TEXTBEFORE(_xlpm.Contract,\"-\"),100),\"00\"),\n_xlpm.Program,_xlfn.TEXTAFTER(_xlfn.TEXTBEFORE(_xlpm.Contract,\"-\",2),\"-\"),\n_xlpm.CleanProgram,_xlfn.XLOOKUP(_xlpm.Program,SpellCheck[Input],SpellCheck[Correction],_xlpm.Program),\n_xlpm.Number,TEXT(_xlfn.TEXTAFTER(_xlpm.Contract,\"-\",2),\"0000\"),\n_xlfn.CONCAT(_xlpm.Yr,\"-\",_xlpm.CleanProgram,\"-\",_xlpm.Number))\n),\"\")","v":""},{"$f":"IFERROR(IF(A286=\"\",\"\",\n_xlfn.LET(_xlpm.Contract,'1. Checklist & Certification'!$F$8,\n_xlpm.Yr,TEXT(MOD(_xlfn.TEXTBEFORE(_xlpm.Contract,\"-\"),100),\"00\"),\n_xlpm.Program,_xlfn.TEXTAFTER(_xlfn.TEXTBEFORE(_xlpm.Contract,\"-\",2),\"-\"),\n_xlpm.CleanProgram,_xlfn.XLOOKUP(_xlpm.Program,SpellCheck[Input],SpellCheck[Correction],_xlpm.Program),\n_xlpm.Number,TEXT(_xlfn.TEXTAFTER(_xlpm.Contract,\"-\",2),\"0000\"),\n_xlfn.CONCAT(_xlpm.Yr,\"-\",_xlpm.CleanProgram,\"-\",_xlpm.Number))\n),\"\")","v":""},{"$f":"IF(A286=\"\",\"\",'1. Checklist & Certification'!$B$9)","v":""},{"$f":"IF(A286=\"\",\"\",'1. Checklist & Certification'!$F$9)","v":""},{"$f":"IF(A286=\"\",\"\",'1. Checklist & Certification'!$C$10)","v":""},{"$f":"IF(A286=\"\",\"\",'1. Checklist & Certification'!$C$11)","v":""},{"$f":"IF(A286=\"\",\"\",'1. Checklist & Certification'!$C$12)","v":""},{"$f":"IF(A286=\"\",\"\",'1. Checklist & Certification'!$B$14)","v":""},{"$f":"IF(A286=\"\",\"\",'1. Checklist & Certification'!$E$14)","v":""},{"$f":"IF(B286=\"\",\"\",'1. Checklist & Certification'!$G$14)","v":""},{"$f":"IF(A286=\"\",\"\",'MHP Family Income & Rent Limits'!$B$3)","v":""},{"$f":"IF(A286=\"\",\"\",'MHP Family Income & Rent Limits'!$J$3)","v":""},{"$f":"IF(A286=\"\",\"\",'MHP Family Income & Rent Limits'!$E$4)","v":""},{"$f":"IF(A286=\"\",\"\",'MHP Family Income & Rent Limits'!$C$7)","v":""},{"$f":"IF(A286=\"\",\"\",'MHP Family Income & Rent Limits'!$F$8)","v":""},{"$f":"IF(A286=\"\",\"\",'1. Checklist & Certification'!$G$4)","v":""},{"$f":"IF(A286=\"\",\"\",'1. Checklist & Certification'!$K$39)","v":""},{"$f":"IF(A286=\"\",\"\",'1. Checklist & Certification'!$K$43)","v":""},{"$f":"IF(A286=\"\",\"\",'1. Checklist & Certification'!$K$45)","v":""},{"$f":"IF(A286=\"\",\"\",'1. Checklist & Certification'!$K$49)","v":""},{"$f":"IF(A286=\"\",\"\",'1. Checklist & Certification'!$K$62)","v":""},{"$f":"IF(A286=\"\",\"\",'1. Checklist & Certification'!$E$66)","v":""},{"$f":"IF(A286=\"\",\"\",'1. Checklist & Certification'!$E$67)","v":""},{"$f":"IF(A286=\"\",\"\",'1. Checklist & Certification'!$E$68)","v":""},{"$f":"IF(A286=\"\",\"\",'1. Checklist & Certification'!$G$66)","v":""},{"$f":"IF(A286=\"\",\"\",'1. Checklist & Certification'!$H$66)","v":""},{"$f":"IF(A286=\"\",\"\",'1. Checklist & Certification'!$I$66)","v":""},{"$f":"IF(A286=\"\",\"\",'1. Checklist & Certification'!$I$67)","v":""},{"$f":"IF(A286=\"\",\"\",'1. Checklist & Certification'!$I$68)","v":""},{"$f":"IF(A286=\"\",\"\",'1. Checklist & Certification'!$B$69)","v":""},{"$f":"IF(A286=\"\",\"\",'1. Checklist & Certification'!$C$69)","v":""},{"$f":"IF(A286=\"\",\"\",'1. Checklist & Certification'!$F$69)","v":""},{"$f":"IF(A286=\"\",\"\",'1. Checklist & Certification'!$G$69)","v":""},{"$f":"IF(A286=\"\",\"\",'1. Checklist & Certification'!$J$69)","v":""},{"$f":"IF(A286=\"\",\"\",'1. Checklist & Certification'!$K$69)","v":""},null,null,{"$f":"IF(AND(OR('1. Checklist & Certification'!$M$16=1,'1. Checklist & Certification'!$M$19=2),AO286>0,B286=\"\",I286>0,AQ286<I286,AV286<>\"Sec 8-Project\"),\"X\",IF(AND(OR('1. Checklist & Certification'!$M$20=4,'1. Checklist & Certification'!$M$21=5,'1. Checklist & Certification'!$M$22=7),AO286>0,B286=\"\",I286>0,K286<I286),\"X\",\"\"))","v":""},{"$f":"IF(A286=\"\",\"\",IF(SUMPRODUCT(-- (ISNUMBER(SEARCH({\"*AHSC*\",\"*FMTW*\",\"*FWHG*\",\"*GHI*\",\"*HHC*\",\"*HLCP*\",\"*HOME*\",\"*LPR*\",\"*MHP*\",\"*NHTF*\",\"*NSP*\",\"*PRP*\",\"*TOD*\",\"*VHHP*\"},'1. Checklist & Certification'!$L$7)))),\"MHP\",\"Legacy\"))","v":""},",,",null,null,null,{"$f":"IF('1. Checklist & Certification'!$M$20=4,\"Both\",IF(OR('1. Checklist & Certification'!$M$15>0,S286=\"CHRP-R\",U286=\"CHRP-R\",W286=\"CHRP-R\",Y286=\"CHRP-R\"),\"Under\",\"No\"))","v":"No"},"No","No",{"$f":"_xlfn.IFS(D286=\"\",\"\",D286=1,'MHP Family Income & Rent Limits'!$E$17,D286=2,'MHP Family Income & Rent Limits'!$F$17,D286=3,'MHP Family Income & Rent Limits'!$G$17,D286=4,'MHP Family Income & Rent Limits'!$H$17,D286=5,'MHP Family Income & Rent Limits'!$I$17,D286=6,'MHP Family Income & Rent Limits'!$J$17,D286=7,'MHP Family Income & Rent Limits'!$K$17,D286=8,'MHP Family Income & Rent Limits'!$L$17)","v":""},"",{"$f":"IF(OR(A286=0,B286=\"X\"),0,MIN(IF(AA286:AD286<>0,AA286:AD286)))","v":0},{"$f":"IF(OR(H286=\"\",I286=\"\"),0,IF(H286*0.3/12>I286,MIN(H286*0.3/12,I286*1.1)+AP286,I286*(1+(VLOOKUP('1. Checklist & Certification'!$F$9,'HLCP-E Rent Change'!$A$1:$D$59,4,FALSE)))+AP286))","v":0}]
[null,null,null,null,null,null,null,null,null,null,null,null,null,null,null,null,null,null,null,null,null,null,null,null,null,null,0,0,0,0,0,0,0,0,{"$f":"IF(OR(A287=0,B287=\"X\"),0,IF(OR(S287=\"FHDP\",S287=\"RHCP-B\",U287=\"FHDP\",U287=\"RHCP-B\",W287=\"FHDP\",W287=\"RHCP-B\",Y287=\"FHDP\",Y287=\"RHCP-B\"),TRUNC((MIN(I287,K287)*(1+'1. Checklist & Certification'!$K$43)+AP287)),0))","v":0},{"$f":"IF(OR(A287=0,B287=\"X\"),0,IF(OR(S287=\"CHRP-R\",S287=\"SERA\",S287=\"SUHRP\",U287=\"CHRP-R\",U287=\"SERA\",U287=\"SUHRP\",W287=\"CHRP-R\",W287=\"SERA\",W287=\"SUHRP\",Y287=\"CHRP-R\",Y287=\"SERA\",Y287=\"SUHRP\"),TRUNC((MIN(I287,K287)*(1+'1. Checklist & Certification'!$K$49))),0))","v":0},{"$f":"IF(OR(A287=0,B287=\"X\"),0,IF(OR(S287=\"CALDAP\",S287=\"DPRLP\",U287=\"CALDAP\",U287=\"DPRLP\",W287=\"CALDAP\",W287=\"DPRLP\",Y287=\"CALDAP\",Y287=\"DPRLP\"),TRUNC(((MIN(I287,K287))*(1+'1. Checklist & Certification'!$G$4))),0))","v":0},0,0,0,{"$f":"IF(OR(A287=0,B287=\"X\"),0,IF(OR(S287=\"PRP\",S287=\"LPR\",U287=\"PRP\",U287=\"LPR\",W287=\"PRP\",W287=\"LPR\",Y287=\"PRP\",Y287=\"LPR\"),MAX(I287+AP287,MIN(IF(AE287:AN287<>0,AE287:AN287))),MIN(IF(AE287:AN287<>0,AE287:AN287))))","v":0},{"$f":"IF(A287=0,0,IF(AND(OR(S287=\"Mgr\",S287=0),OR(U287=\"Mgr\",U287=0),OR(W287=\"Mgr\",W287=0)),0,IF(LEFT($A287,2)=\"B*\",VLOOKUP($E287,'1. Checklist & Certification'!$D$26:$E$32,2),IF(LEFT($A287,2)=\"C*\",VLOOKUP($E287,'1. Checklist & Certification'!$F$26:$G$32,2),IF(LEFT($A287,2)=\"D*\",VLOOKUP($E287,'1. Checklist & Certification'!$H$26:$I$32,2),IF(LEFT($A287,2)=\"E*\",VLOOKUP($E287,'1. Checklist & Certification'!$J$26:$K$32,2),VLOOKUP($E287,'1. Checklist & Certification'!$A$26:$B$32,2)))))))","v":0},0,0,null,null,null,null,"","",0,0,0,null,{"$f":"IF(A287=\"\",\"\",'1. Checklist & Certification'!$K$1)","v":""},{"$f":"IF(A287=\"\",\"\",'1. Checklist & Certification'!$C$62)","v":""},{"$f":"IF(A287=\"\",\"\",'1. Checklist & Certification'!$C$6)","v":""},{"$f":"IF(A287=\"\",\"\",'1. Checklist & Certification'!$G$5)","v":""},{"$f":"IFERROR(IF(A287=\"\",\"\",\n_xlfn.LET(_xlpm.Contract,'1. Checklist & Certification'!$C$7,\n_xlpm.Yr,TEXT(MOD(_xlfn.TEXTBEFORE(_xlpm.Contract,\"-\"),100),\"00\"),\n_xlpm.Program,_xlfn.TEXTAFTER(_xlfn.TEXTBEFORE(_xlpm.Contract,\"-\",2),\"-\"),\n_xlpm.CleanProgram,_xlfn.XLOOKUP(_xlpm.Program,SpellCheck[Input],SpellCheck[Correction],_xlpm.Program),\n_xlpm.Number,TEXT(_xlfn.TEXTAFTER(_xlpm.Contract,\"-\",2),\"0000\"),\n_xlfn.CONCAT(_xlpm.Yr,\"-\",_xlpm.CleanProgram,\"-\",_xlpm.Number))\n),\"\")","v":""},{"$f":"IFERROR(IF(A287=\"\",\"\",\n_xlfn.LET(_xlpm.Contract,'1. Checklist & Certification'!$C$8,\n_xlpm.Yr,TEXT(MOD(_xlfn.TEXTBEFORE(_xlpm.Contract,\"-\"),100),\"00\"),\n_xlpm.Program,_xlfn.TEXTAFTER(_xlfn.TEXTBEFORE(_xlpm.Contract,\"-\",2),\"-\"),\n_xlpm.CleanProgram,_xlfn.XLOOKUP(_xlpm.Program,SpellCheck[Input],SpellCheck[Correction],_xlpm.Program),\n_xlpm.Number,TEXT(_xlfn.TEXTAFTER(_xlpm.Contract,\"-\",2),\"0000\"),\n_xlfn.CONCAT(_xlpm.Yr,\"-\",_xlpm.CleanProgram,\"-\",_xlpm.Number))\n),\"\")","v":""},{"$f":"IFERROR(IF(A287=\"\",\"\",\n_xlfn.LET(_xlpm.Contract,'1. Checklist & Certification'!$F$7,\n_xlpm.Yr,TEXT(MOD(_xlfn.TEXTBEFORE(_xlpm.Contract,\"-\"),100),\"00\"),\n_xlpm.Program,_xlfn.TEXTAFTER(_xlfn.TEXTBEFORE(_xlpm.Contract,\"-\",2),\"-\"),\n_xlpm.CleanProgram,_xlfn.XLOOKUP(_xlpm.Program,SpellCheck[Input],SpellCheck[Correction],_xlpm.Program),\n_xlpm.Number,TEXT(_xlfn.TEXTAFTER(_xlpm.Contract,\"-\",2),\"0000\"),\n_xlfn.CONCAT(_xlpm.Yr,\"-\",_xlpm.CleanProgram,\"-\",_xlpm.Number))\n),\"\")","v":""},{"$f":"IFERROR(IF(A287=\"\",\"\",\n_xlfn.LET(_xlpm.Contract,'1. Checklist & Certification'!$F$8,\n_xlpm.Yr,TEXT(MOD(_xlfn.TEXTBEFORE(_xlpm.Contract,\"-\"),100),\"00\"),\n_xlpm.Program,_xlfn.TEXTAFTER(_xlfn.TEXTBEFORE(_xlpm.Contract,\"-\",2),\"-\"),\n_xlpm.CleanProgram,_xlfn.XLOOKUP(_xlpm.Program,SpellCheck[Input],SpellCheck[Correction],_xlpm.Program),\n_xlpm.Number,TEXT(_xlfn.TEXTAFTER(_xlpm.Contract,\"-\",2),\"0000\"),\n_xlfn.CONCAT(_xlpm.Yr,\"-\",_xlpm.CleanProgram,\"-\",_xlpm.Number))\n),\"\")","v":""},{"$f":"IF(A287=\"\",\"\",'1. Checklist & Certification'!$B$9)","v":""},{"$f":"IF(A287=\"\",\"\",'1. Checklist & Certification'!$F$9)","v":""},{"$f":"IF(A287=\"\",\"\",'1. Checklist & Certification'!$C$10)","v":""},{"$f":"IF(A287=\"\",\"\",'1. Checklist & Certification'!$C$11)","v":""},{"$f":"IF(A287=\"\",\"\",'1. Checklist & Certification'!$C$12)","v":""},{"$f":"IF(A287=\"\",\"\",'1. Checklist & Certification'!$B$14)","v":""},{"$f":"IF(A287=\"\",\"\",'1. Checklist & Certification'!$E$14)","v":""},{"$f":"IF(B287=\"\",\"\",'1. Checklist & Certification'!$G$14)","v":""},{"$f":"IF(A287=\"\",\"\",'MHP Family Income & Rent Limits'!$B$3)","v":""},{"$f":"IF(A287=\"\",\"\",'MHP Family Income & Rent Limits'!$J$3)","v":""},{"$f":"IF(A287=\"\",\"\",'MHP Family Income & Rent Limits'!$E$4)","v":""},{"$f":"IF(A287=\"\",\"\",'MHP Family Income & Rent Limits'!$C$7)","v":""},{"$f":"IF(A287=\"\",\"\",'MHP Family Income & Rent Limits'!$F$8)","v":""},{"$f":"IF(A287=\"\",\"\",'1. Checklist & Certification'!$G$4)","v":""},{"$f":"IF(A287=\"\",\"\",'1. Checklist & Certification'!$K$39)","v":""},{"$f":"IF(A287=\"\",\"\",'1. Checklist & Certification'!$K$43)","v":""},{"$f":"IF(A287=\"\",\"\",'1. Checklist & Certification'!$K$45)","v":""},{"$f":"IF(A287=\"\",\"\",'1. Checklist & Certification'!$K$49)","v":""},{"$f":"IF(A287=\"\",\"\",'1. Checklist & Certification'!$K$62)","v":""},{"$f":"IF(A287=\"\",\"\",'1. Checklist & Certification'!$E$66)","v":""},{"$f":"IF(A287=\"\",\"\",'1. Checklist & Certification'!$E$67)","v":""},{"$f":"IF(A287=\"\",\"\",'1. Checklist & Certification'!$E$68)","v":""},{"$f":"IF(A287=\"\",\"\",'1. Checklist & Certification'!$G$66)","v":""},{"$f":"IF(A287=\"\",\"\",'1. Checklist & Certification'!$H$66)","v":""},{"$f":"IF(A287=\"\",\"\",'1. Checklist & Certification'!$I$66)","v":""},{"$f":"IF(A287=\"\",\"\",'1. Checklist & Certification'!$I$67)","v":""},{"$f":"IF(A287=\"\",\"\",'1. Checklist & Certification'!$I$68)","v":""},{"$f":"IF(A287=\"\",\"\",'1. Checklist & Certification'!$B$69)","v":""},{"$f":"IF(A287=\"\",\"\",'1. Checklist & Certification'!$C$69)","v":""},{"$f":"IF(A287=\"\",\"\",'1. Checklist & Certification'!$F$69)","v":""},{"$f":"IF(A287=\"\",\"\",'1. Checklist & Certification'!$G$69)","v":""},{"$f":"IF(A287=\"\",\"\",'1. Checklist & Certification'!$J$69)","v":""},{"$f":"IF(A287=\"\",\"\",'1. Checklist & Certification'!$K$69)","v":""},null,null,{"$f":"IF(AND(OR('1. Checklist & Certification'!$M$16=1,'1. Checklist & Certification'!$M$19=2),AO287>0,B287=\"\",I287>0,AQ287<I287,AV287<>\"Sec 8-Project\"),\"X\",IF(AND(OR('1. Checklist & Certification'!$M$20=4,'1. Checklist & Certification'!$M$21=5,'1. Checklist & Certification'!$M$22=7),AO287>0,B287=\"\",I287>0,K287<I287),\"X\",\"\"))","v":""},{"$f":"IF(A287=\"\",\"\",IF(SUMPRODUCT(-- (ISNUMBER(SEARCH({\"*AHSC*\",\"*FMTW*\",\"*FWHG*\",\"*GHI*\",\"*HHC*\",\"*HLCP*\",\"*HOME*\",\"*LPR*\",\"*MHP*\",\"*NHTF*\",\"*NSP*\",\"*PRP*\",\"*TOD*\",\"*VHHP*\"},'1. Checklist & Certification'!$L$7)))),\"MHP\",\"Legacy\"))","v":""},",,",null,null,null,{"$f":"IF('1. Checklist & Certification'!$M$20=4,\"Both\",IF(OR('1. Checklist & Certification'!$M$15>0,S287=\"CHRP-R\",U287=\"CHRP-R\",W287=\"CHRP-R\",Y287=\"CHRP-R\"),\"Under\",\"No\"))","v":"No"},"No","No",{"$f":"_xlfn.IFS(D287=\"\",\"\",D287=1,'MHP Family Income & Rent Limits'!$E$17,D287=2,'MHP Family Income & Rent Limits'!$F$17,D287=3,'MHP Family Income & Rent Limits'!$G$17,D287=4,'MHP Family Income & Rent Limits'!$H$17,D287=5,'MHP Family Income & Rent Limits'!$I$17,D287=6,'MHP Family Income & Rent Limits'!$J$17,D287=7,'MHP Family Income & Rent Limits'!$K$17,D287=8,'MHP Family Income & Rent Limits'!$L$17)","v":""},"",{"$f":"IF(OR(A287=0,B287=\"X\"),0,MIN(IF(AA287:AD287<>0,AA287:AD287)))","v":0},{"$f":"IF(OR(H287=\"\",I287=\"\"),0,IF(H287*0.3/12>I287,MIN(H287*0.3/12,I287*1.1)+AP287,I287*(1+(VLOOKUP('1. Checklist & Certification'!$F$9,'HLCP-E Rent Change'!$A$1:$D$59,4,FALSE)))+AP287))","v":0}]
[null,null,null,null,null,null,null,null,null,null,null,null,null,null,null,null,null,null,null,null,null,null,null,null,null,null,0,0,0,0,0,0,0,0,{"$f":"IF(OR(A288=0,B288=\"X\"),0,IF(OR(S288=\"FHDP\",S288=\"RHCP-B\",U288=\"FHDP\",U288=\"RHCP-B\",W288=\"FHDP\",W288=\"RHCP-B\",Y288=\"FHDP\",Y288=\"RHCP-B\"),TRUNC((MIN(I288,K288)*(1+'1. Checklist & Certification'!$K$43)+AP288)),0))","v":0},{"$f":"IF(OR(A288=0,B288=\"X\"),0,IF(OR(S288=\"CHRP-R\",S288=\"SERA\",S288=\"SUHRP\",U288=\"CHRP-R\",U288=\"SERA\",U288=\"SUHRP\",W288=\"CHRP-R\",W288=\"SERA\",W288=\"SUHRP\",Y288=\"CHRP-R\",Y288=\"SERA\",Y288=\"SUHRP\"),TRUNC((MIN(I288,K288)*(1+'1. Checklist & Certification'!$K$49))),0))","v":0},{"$f":"IF(OR(A288=0,B288=\"X\"),0,IF(OR(S288=\"CALDAP\",S288=\"DPRLP\",U288=\"CALDAP\",U288=\"DPRLP\",W288=\"CALDAP\",W288=\"DPRLP\",Y288=\"CALDAP\",Y288=\"DPRLP\"),TRUNC(((MIN(I288,K288))*(1+'1. Checklist & Certification'!$G$4))),0))","v":0},0,0,0,{"$f":"IF(OR(A288=0,B288=\"X\"),0,IF(OR(S288=\"PRP\",S288=\"LPR\",U288=\"PRP\",U288=\"LPR\",W288=\"PRP\",W288=\"LPR\",Y288=\"PRP\",Y288=\"LPR\"),MAX(I288+AP288,MIN(IF(AE288:AN288<>0,AE288:AN288))),MIN(IF(AE288:AN288<>0,AE288:AN288))))","v":0},{"$f":"IF(A288=0,0,IF(AND(OR(S288=\"Mgr\",S288=0),OR(U288=\"Mgr\",U288=0),OR(W288=\"Mgr\",W288=0)),0,IF(LEFT($A288,2)=\"B*\",VLOOKUP($E288,'1. Checklist & Certification'!$D$26:$E$32,2),IF(LEFT($A288,2)=\"C*\",VLOOKUP($E288,'1. Checklist & Certification'!$F$26:$G$32,2),IF(LEFT($A288,2)=\"D*\",VLOOKUP($E288,'1. Checklist & Certification'!$H$26:$I$32,2),IF(LEFT($A288,2)=\"E*\",VLOOKUP($E288,'1. Checklist & Certification'!$J$26:$K$32,2),VLOOKUP($E288,'1. Checklist & Certification'!$A$26:$B$32,2)))))))","v":0},0,0,null,null,null,null,"","",0,0,0,null,{"$f":"IF(A288=\"\",\"\",'1. Checklist & Certification'!$K$1)","v":""},{"$f":"IF(A288=\"\",\"\",'1. Checklist & Certification'!$C$62)","v":""},{"$f":"IF(A288=\"\",\"\",'1. Checklist & Certification'!$C$6)","v":""},{"$f":"IF(A288=\"\",\"\",'1. Checklist & Certification'!$G$5)","v":""},{"$f":"IFERROR(IF(A288=\"\",\"\",\n_xlfn.LET(_xlpm.Contract,'1. Checklist & Certification'!$C$7,\n_xlpm.Yr,TEXT(MOD(_xlfn.TEXTBEFORE(_xlpm.Contract,\"-\"),100),\"00\"),\n_xlpm.Program,_xlfn.TEXTAFTER(_xlfn.TEXTBEFORE(_xlpm.Contract,\"-\",2),\"-\"),\n_xlpm.CleanProgram,_xlfn.XLOOKUP(_xlpm.Program,SpellCheck[Input],SpellCheck[Correction],_xlpm.Program),\n_xlpm.Number,TEXT(_xlfn.TEXTAFTER(_xlpm.Contract,\"-\",2),\"0000\"),\n_xlfn.CONCAT(_xlpm.Yr,\"-\",_xlpm.CleanProgram,\"-\",_xlpm.Number))\n),\"\")","v":""},{"$f":"IFERROR(IF(A288=\"\",\"\",\n_xlfn.LET(_xlpm.Contract,'1. Checklist & Certification'!$C$8,\n_xlpm.Yr,TEXT(MOD(_xlfn.TEXTBEFORE(_xlpm.Contract,\"-\"),100),\"00\"),\n_xlpm.Program,_xlfn.TEXTAFTER(_xlfn.TEXTBEFORE(_xlpm.Contract,\"-\",2),\"-\"),\n_xlpm.CleanProgram,_xlfn.XLOOKUP(_xlpm.Program,SpellCheck[Input],SpellCheck[Correction],_xlpm.Program),\n_xlpm.Number,TEXT(_xlfn.TEXTAFTER(_xlpm.Contract,\"-\",2),\"0000\"),\n_xlfn.CONCAT(_xlpm.Yr,\"-\",_xlpm.CleanProgram,\"-\",_xlpm.Number))\n),\"\")","v":""},{"$f":"IFERROR(IF(A288=\"\",\"\",\n_xlfn.LET(_xlpm.Contract,'1. Checklist & Certification'!$F$7,\n_xlpm.Yr,TEXT(MOD(_xlfn.TEXTBEFORE(_xlpm.Contract,\"-\"),100),\"00\"),\n_xlpm.Program,_xlfn.TEXTAFTER(_xlfn.TEXTBEFORE(_xlpm.Contract,\"-\",2),\"-\"),\n_xlpm.CleanProgram,_xlfn.XLOOKUP(_xlpm.Program,SpellCheck[Input],SpellCheck[Correction],_xlpm.Program),\n_xlpm.Number,TEXT(_xlfn.TEXTAFTER(_xlpm.Contract,\"-\",2),\"0000\"),\n_xlfn.CONCAT(_xlpm.Yr,\"-\",_xlpm.CleanProgram,\"-\",_xlpm.Number))\n),\"\")","v":""},{"$f":"IFERROR(IF(A288=\"\",\"\",\n_xlfn.LET(_xlpm.Contract,'1. Checklist & Certification'!$F$8,\n_xlpm.Yr,TEXT(MOD(_xlfn.TEXTBEFORE(_xlpm.Contract,\"-\"),100),\"00\"),\n_xlpm.Program,_xlfn.TEXTAFTER(_xlfn.TEXTBEFORE(_xlpm.Contract,\"-\",2),\"-\"),\n_xlpm.CleanProgram,_xlfn.XLOOKUP(_xlpm.Program,SpellCheck[Input],SpellCheck[Correction],_xlpm.Program),\n_xlpm.Number,TEXT(_xlfn.TEXTAFTER(_xlpm.Contract,\"-\",2),\"0000\"),\n_xlfn.CONCAT(_xlpm.Yr,\"-\",_xlpm.CleanProgram,\"-\",_xlpm.Number))\n),\"\")","v":""},{"$f":"IF(A288=\"\",\"\",'1. Checklist & Certification'!$B$9)","v":""},{"$f":"IF(A288=\"\",\"\",'1. Checklist & Certification'!$F$9)","v":""},{"$f":"IF(A288=\"\",\"\",'1. Checklist & Certification'!$C$10)","v":""},{"$f":"IF(A288=\"\",\"\",'1. Checklist & Certification'!$C$11)","v":""},{"$f":"IF(A288=\"\",\"\",'1. Checklist & Certification'!$C$12)","v":""},{"$f":"IF(A288=\"\",\"\",'1. Checklist & Certification'!$B$14)","v":""},{"$f":"IF(A288=\"\",\"\",'1. Checklist & Certification'!$E$14)","v":""},{"$f":"IF(B288=\"\",\"\",'1. Checklist & Certification'!$G$14)","v":""},{"$f":"IF(A288=\"\",\"\",'MHP Family Income & Rent Limits'!$B$3)","v":""},{"$f":"IF(A288=\"\",\"\",'MHP Family Income & Rent Limits'!$J$3)","v":""},{"$f":"IF(A288=\"\",\"\",'MHP Family Income & Rent Limits'!$E$4)","v":""},{"$f":"IF(A288=\"\",\"\",'MHP Family Income & Rent Limits'!$C$7)","v":""},{"$f":"IF(A288=\"\",\"\",'MHP Family Income & Rent Limits'!$F$8)","v":""},{"$f":"IF(A288=\"\",\"\",'1. Checklist & Certification'!$G$4)","v":""},{"$f":"IF(A288=\"\",\"\",'1. Checklist & Certification'!$K$39)","v":""},{"$f":"IF(A288=\"\",\"\",'1. Checklist & Certification'!$K$43)","v":""},{"$f":"IF(A288=\"\",\"\",'1. Checklist & Certification'!$K$45)","v":""},{"$f":"IF(A288=\"\",\"\",'1. Checklist & Certification'!$K$49)","v":""},{"$f":"IF(A288=\"\",\"\",'1. Checklist & Certification'!$K$62)","v":""},{"$f":"IF(A288=\"\",\"\",'1. Checklist & Certification'!$E$66)","v":""},{"$f":"IF(A288=\"\",\"\",'1. Checklist & Certification'!$E$67)","v":""},{"$f":"IF(A288=\"\",\"\",'1. Checklist & Certification'!$E$68)","v":""},{"$f":"IF(A288=\"\",\"\",'1. Checklist & Certification'!$G$66)","v":""},{"$f":"IF(A288=\"\",\"\",'1. Checklist & Certification'!$H$66)","v":""},{"$f":"IF(A288=\"\",\"\",'1. Checklist & Certification'!$I$66)","v":""},{"$f":"IF(A288=\"\",\"\",'1. Checklist & Certification'!$I$67)","v":""},{"$f":"IF(A288=\"\",\"\",'1. Checklist & Certification'!$I$68)","v":""},{"$f":"IF(A288=\"\",\"\",'1. Checklist & Certification'!$B$69)","v":""},{"$f":"IF(A288=\"\",\"\",'1. Checklist & Certification'!$C$69)","v":""},{"$f":"IF(A288=\"\",\"\",'1. Checklist & Certification'!$F$69)","v":""},{"$f":"IF(A288=\"\",\"\",'1. Checklist & Certification'!$G$69)","v":""},{"$f":"IF(A288=\"\",\"\",'1. Checklist & Certification'!$J$69)","v":""},{"$f":"IF(A288=\"\",\"\",'1. Checklist & Certification'!$K$69)","v":""},null,null,{"$f":"IF(AND(OR('1. Checklist & Certification'!$M$16=1,'1. Checklist & Certification'!$M$19=2),AO288>0,B288=\"\",I288>0,AQ288<I288,AV288<>\"Sec 8-Project\"),\"X\",IF(AND(OR('1. Checklist & Certification'!$M$20=4,'1. Checklist & Certification'!$M$21=5,'1. Checklist & Certification'!$M$22=7),AO288>0,B288=\"\",I288>0,K288<I288),\"X\",\"\"))","v":""},{"$f":"IF(A288=\"\",\"\",IF(SUMPRODUCT(-- (ISNUMBER(SEARCH({\"*AHSC*\",\"*FMTW*\",\"*FWHG*\",\"*GHI*\",\"*HHC*\",\"*HLCP*\",\"*HOME*\",\"*LPR*\",\"*MHP*\",\"*NHTF*\",\"*NSP*\",\"*PRP*\",\"*TOD*\",\"*VHHP*\"},'1. Checklist & Certification'!$L$7)))),\"MHP\",\"Legacy\"))","v":""},",,",null,null,null,{"$f":"IF('1. Checklist & Certification'!$M$20=4,\"Both\",IF(OR('1. Checklist & Certification'!$M$15>0,S288=\"CHRP-R\",U288=\"CHRP-R\",W288=\"CHRP-R\",Y288=\"CHRP-R\"),\"Under\",\"No\"))","v":"No"},"No","No",{"$f":"_xlfn.IFS(D288=\"\",\"\",D288=1,'MHP Family Income & Rent Limits'!$E$17,D288=2,'MHP Family Income & Rent Limits'!$F$17,D288=3,'MHP Family Income & Rent Limits'!$G$17,D288=4,'MHP Family Income & Rent Limits'!$H$17,D288=5,'MHP Family Income & Rent Limits'!$I$17,D288=6,'MHP Family Income & Rent Limits'!$J$17,D288=7,'MHP Family Income & Rent Limits'!$K$17,D288=8,'MHP Family Income & Rent Limits'!$L$17)","v":""},"",{"$f":"IF(OR(A288=0,B288=\"X\"),0,MIN(IF(AA288:AD288<>0,AA288:AD288)))","v":0},{"$f":"IF(OR(H288=\"\",I288=\"\"),0,IF(H288*0.3/12>I288,MIN(H288*0.3/12,I288*1.1)+AP288,I288*(1+(VLOOKUP('1. Checklist & Certification'!$F$9,'HLCP-E Rent Change'!$A$1:$D$59,4,FALSE)))+AP288))","v":0}]
[null,null,null,null,null,null,null,null,null,null,null,null,null,null,null,null,null,null,null,null,null,null,null,null,null,null,0,0,0,0,0,0,0,0,{"$f":"IF(OR(A289=0,B289=\"X\"),0,IF(OR(S289=\"FHDP\",S289=\"RHCP-B\",U289=\"FHDP\",U289=\"RHCP-B\",W289=\"FHDP\",W289=\"RHCP-B\",Y289=\"FHDP\",Y289=\"RHCP-B\"),TRUNC((MIN(I289,K289)*(1+'1. Checklist & Certification'!$K$43)+AP289)),0))","v":0},{"$f":"IF(OR(A289=0,B289=\"X\"),0,IF(OR(S289=\"CHRP-R\",S289=\"SERA\",S289=\"SUHRP\",U289=\"CHRP-R\",U289=\"SERA\",U289=\"SUHRP\",W289=\"CHRP-R\",W289=\"SERA\",W289=\"SUHRP\",Y289=\"CHRP-R\",Y289=\"SERA\",Y289=\"SUHRP\"),TRUNC((MIN(I289,K289)*(1+'1. Checklist & Certification'!$K$49))),0))","v":0},{"$f":"IF(OR(A289=0,B289=\"X\"),0,IF(OR(S289=\"CALDAP\",S289=\"DPRLP\",U289=\"CALDAP\",U289=\"DPRLP\",W289=\"CALDAP\",W289=\"DPRLP\",Y289=\"CALDAP\",Y289=\"DPRLP\"),TRUNC(((MIN(I289,K289))*(1+'1. Checklist & Certification'!$G$4))),0))","v":0},0,0,0,{"$f":"IF(OR(A289=0,B289=\"X\"),0,IF(OR(S289=\"PRP\",S289=\"LPR\",U289=\"PRP\",U289=\"LPR\",W289=\"PRP\",W289=\"LPR\",Y289=\"PRP\",Y289=\"LPR\"),MAX(I289+AP289,MIN(IF(AE289:AN289<>0,AE289:AN289))),MIN(IF(AE289:AN289<>0,AE289:AN289))))","v":0},{"$f":"IF(A289=0,0,IF(AND(OR(S289=\"Mgr\",S289=0),OR(U289=\"Mgr\",U289=0),OR(W289=\"Mgr\",W289=0)),0,IF(LEFT($A289,2)=\"B*\",VLOOKUP($E289,'1. Checklist & Certification'!$D$26:$E$32,2),IF(LEFT($A289,2)=\"C*\",VLOOKUP($E289,'1. Checklist & Certification'!$F$26:$G$32,2),IF(LEFT($A289,2)=\"D*\",VLOOKUP($E289,'1. Checklist & Certification'!$H$26:$I$32,2),IF(LEFT($A289,2)=\"E*\",VLOOKUP($E289,'1. Checklist & Certification'!$J$26:$K$32,2),VLOOKUP($E289,'1. Checklist & Certification'!$A$26:$B$32,2)))))))","v":0},0,0,null,null,null,null,"","",0,0,0,null,{"$f":"IF(A289=\"\",\"\",'1. Checklist & Certification'!$K$1)","v":""},{"$f":"IF(A289=\"\",\"\",'1. Checklist & Certification'!$C$62)","v":""},{"$f":"IF(A289=\"\",\"\",'1. Checklist & Certification'!$C$6)","v":""},{"$f":"IF(A289=\"\",\"\",'1. Checklist & Certification'!$G$5)","v":""},{"$f":"IFERROR(IF(A289=\"\",\"\",\n_xlfn.LET(_xlpm.Contract,'1. Checklist & Certification'!$C$7,\n_xlpm.Yr,TEXT(MOD(_xlfn.TEXTBEFORE(_xlpm.Contract,\"-\"),100),\"00\"),\n_xlpm.Program,_xlfn.TEXTAFTER(_xlfn.TEXTBEFORE(_xlpm.Contract,\"-\",2),\"-\"),\n_xlpm.CleanProgram,_xlfn.XLOOKUP(_xlpm.Program,SpellCheck[Input],SpellCheck[Correction],_xlpm.Program),\n_xlpm.Number,TEXT(_xlfn.TEXTAFTER(_xlpm.Contract,\"-\",2),\"0000\"),\n_xlfn.CONCAT(_xlpm.Yr,\"-\",_xlpm.CleanProgram,\"-\",_xlpm.Number))\n),\"\")","v":""},{"$f":"IFERROR(IF(A289=\"\",\"\",\n_xlfn.LET(_xlpm.Contract,'1. Checklist & Certification'!$C$8,\n_xlpm.Yr,TEXT(MOD(_xlfn.TEXTBEFORE(_xlpm.Contract,\"-\"),100),\"00\"),\n_xlpm.Program,_xlfn.TEXTAFTER(_xlfn.TEXTBEFORE(_xlpm.Contract,\"-\",2),\"-\"),\n_xlpm.CleanProgram,_xlfn.XLOOKUP(_xlpm.Program,SpellCheck[Input],SpellCheck[Correction],_xlpm.Program),\n_xlpm.Number,TEXT(_xlfn.TEXTAFTER(_xlpm.Contract,\"-\",2),\"0000\"),\n_xlfn.CONCAT(_xlpm.Yr,\"-\",_xlpm.CleanProgram,\"-\",_xlpm.Number))\n),\"\")","v":""},{"$f":"IFERROR(IF(A289=\"\",\"\",\n_xlfn.LET(_xlpm.Contract,'1. Checklist & Certification'!$F$7,\n_xlpm.Yr,TEXT(MOD(_xlfn.TEXTBEFORE(_xlpm.Contract,\"-\"),100),\"00\"),\n_xlpm.Program,_xlfn.TEXTAFTER(_xlfn.TEXTBEFORE(_xlpm.Contract,\"-\",2),\"-\"),\n_xlpm.CleanProgram,_xlfn.XLOOKUP(_xlpm.Program,SpellCheck[Input],SpellCheck[Correction],_xlpm.Program),\n_xlpm.Number,TEXT(_xlfn.TEXTAFTER(_xlpm.Contract,\"-\",2),\"0000\"),\n_xlfn.CONCAT(_xlpm.Yr,\"-\",_xlpm.CleanProgram,\"-\",_xlpm.Number))\n),\"\")","v":""},{"$f":"IFERROR(IF(A289=\"\",\"\",\n_xlfn.LET(_xlpm.Contract,'1. Checklist & Certification'!$F$8,\n_xlpm.Yr,TEXT(MOD(_xlfn.TEXTBEFORE(_xlpm.Contract,\"-\"),100),\"00\"),\n_xlpm.Program,_xlfn.TEXTAFTER(_xlfn.TEXTBEFORE(_xlpm.Contract,\"-\",2),\"-\"),\n_xlpm.CleanProgram,_xlfn.XLOOKUP(_xlpm.Program,SpellCheck[Input],SpellCheck[Correction],_xlpm.Program),\n_xlpm.Number,TEXT(_xlfn.TEXTAFTER(_xlpm.Contract,\"-\",2),\"0000\"),\n_xlfn.CONCAT(_xlpm.Yr,\"-\",_xlpm.CleanProgram,\"-\",_xlpm.Number))\n),\"\")","v":""},{"$f":"IF(A289=\"\",\"\",'1. Checklist & Certification'!$B$9)","v":""},{"$f":"IF(A289=\"\",\"\",'1. Checklist & Certification'!$F$9)","v":""},{"$f":"IF(A289=\"\",\"\",'1. Checklist & Certification'!$C$10)","v":""},{"$f":"IF(A289=\"\",\"\",'1. Checklist & Certification'!$C$11)","v":""},{"$f":"IF(A289=\"\",\"\",'1. Checklist & Certification'!$C$12)","v":""},{"$f":"IF(A289=\"\",\"\",'1. Checklist & Certification'!$B$14)","v":""},{"$f":"IF(A289=\"\",\"\",'1. Checklist & Certification'!$E$14)","v":""},{"$f":"IF(B289=\"\",\"\",'1. Checklist & Certification'!$G$14)","v":""},{"$f":"IF(A289=\"\",\"\",'MHP Family Income & Rent Limits'!$B$3)","v":""},{"$f":"IF(A289=\"\",\"\",'MHP Family Income & Rent Limits'!$J$3)","v":""},{"$f":"IF(A289=\"\",\"\",'MHP Family Income & Rent Limits'!$E$4)","v":""},{"$f":"IF(A289=\"\",\"\",'MHP Family Income & Rent Limits'!$C$7)","v":""},{"$f":"IF(A289=\"\",\"\",'MHP Family Income & Rent Limits'!$F$8)","v":""},{"$f":"IF(A289=\"\",\"\",'1. Checklist & Certification'!$G$4)","v":""},{"$f":"IF(A289=\"\",\"\",'1. Checklist & Certification'!$K$39)","v":""},{"$f":"IF(A289=\"\",\"\",'1. Checklist & Certification'!$K$43)","v":""},{"$f":"IF(A289=\"\",\"\",'1. Checklist & Certification'!$K$45)","v":""},{"$f":"IF(A289=\"\",\"\",'1. Checklist & Certification'!$K$49)","v":""},{"$f":"IF(A289=\"\",\"\",'1. Checklist & Certification'!$K$62)","v":""},{"$f":"IF(A289=\"\",\"\",'1. Checklist & Certification'!$E$66)","v":""},{"$f":"IF(A289=\"\",\"\",'1. Checklist & Certification'!$E$67)","v":""},{"$f":"IF(A289=\"\",\"\",'1. Checklist & Certification'!$E$68)","v":""},{"$f":"IF(A289=\"\",\"\",'1. Checklist & Certification'!$G$66)","v":""},{"$f":"IF(A289=\"\",\"\",'1. Checklist & Certification'!$H$66)","v":""},{"$f":"IF(A289=\"\",\"\",'1. Checklist & Certification'!$I$66)","v":""},{"$f":"IF(A289=\"\",\"\",'1. Checklist & Certification'!$I$67)","v":""},{"$f":"IF(A289=\"\",\"\",'1. Checklist & Certification'!$I$68)","v":""},{"$f":"IF(A289=\"\",\"\",'1. Checklist & Certification'!$B$69)","v":""},{"$f":"IF(A289=\"\",\"\",'1. Checklist & Certification'!$C$69)","v":""},{"$f":"IF(A289=\"\",\"\",'1. Checklist & Certification'!$F$69)","v":""},{"$f":"IF(A289=\"\",\"\",'1. Checklist & Certification'!$G$69)","v":""},{"$f":"IF(A289=\"\",\"\",'1. Checklist & Certification'!$J$69)","v":""},{"$f":"IF(A289=\"\",\"\",'1. Checklist & Certification'!$K$69)","v":""},null,null,{"$f":"IF(AND(OR('1. Checklist & Certification'!$M$16=1,'1. Checklist & Certification'!$M$19=2),AO289>0,B289=\"\",I289>0,AQ289<I289,AV289<>\"Sec 8-Project\"),\"X\",IF(AND(OR('1. Checklist & Certification'!$M$20=4,'1. Checklist & Certification'!$M$21=5,'1. Checklist & Certification'!$M$22=7),AO289>0,B289=\"\",I289>0,K289<I289),\"X\",\"\"))","v":""},{"$f":"IF(A289=\"\",\"\",IF(SUMPRODUCT(-- (ISNUMBER(SEARCH({\"*AHSC*\",\"*FMTW*\",\"*FWHG*\",\"*GHI*\",\"*HHC*\",\"*HLCP*\",\"*HOME*\",\"*LPR*\",\"*MHP*\",\"*NHTF*\",\"*NSP*\",\"*PRP*\",\"*TOD*\",\"*VHHP*\"},'1. Checklist & Certification'!$L$7)))),\"MHP\",\"Legacy\"))","v":""},",,",null,null,null,{"$f":"IF('1. Checklist & Certification'!$M$20=4,\"Both\",IF(OR('1. Checklist & Certification'!$M$15>0,S289=\"CHRP-R\",U289=\"CHRP-R\",W289=\"CHRP-R\",Y289=\"CHRP-R\"),\"Under\",\"No\"))","v":"No"},"No","No",{"$f":"_xlfn.IFS(D289=\"\",\"\",D289=1,'MHP Family Income & Rent Limits'!$E$17,D289=2,'MHP Family Income & Rent Limits'!$F$17,D289=3,'MHP Family Income & Rent Limits'!$G$17,D289=4,'MHP Family Income & Rent Limits'!$H$17,D289=5,'MHP Family Income & Rent Limits'!$I$17,D289=6,'MHP Family Income & Rent Limits'!$J$17,D289=7,'MHP Family Income & Rent Limits'!$K$17,D289=8,'MHP Family Income & Rent Limits'!$L$17)","v":""},"",{"$f":"IF(OR(A289=0,B289=\"X\"),0,MIN(IF(AA289:AD289<>0,AA289:AD289)))","v":0},{"$f":"IF(OR(H289=\"\",I289=\"\"),0,IF(H289*0.3/12>I289,MIN(H289*0.3/12,I289*1.1)+AP289,I289*(1+(VLOOKUP('1. Checklist & Certification'!$F$9,'HLCP-E Rent Change'!$A$1:$D$59,4,FALSE)))+AP289))","v":0}]
[null,null,null,null,null,null,null,null,null,null,null,null,null,null,null,null,null,null,null,null,null,null,null,null,null,null,0,0,0,0,0,0,0,0,{"$f":"IF(OR(A290=0,B290=\"X\"),0,IF(OR(S290=\"FHDP\",S290=\"RHCP-B\",U290=\"FHDP\",U290=\"RHCP-B\",W290=\"FHDP\",W290=\"RHCP-B\",Y290=\"FHDP\",Y290=\"RHCP-B\"),TRUNC((MIN(I290,K290)*(1+'1. Checklist & Certification'!$K$43)+AP290)),0))","v":0},{"$f":"IF(OR(A290=0,B290=\"X\"),0,IF(OR(S290=\"CHRP-R\",S290=\"SERA\",S290=\"SUHRP\",U290=\"CHRP-R\",U290=\"SERA\",U290=\"SUHRP\",W290=\"CHRP-R\",W290=\"SERA\",W290=\"SUHRP\",Y290=\"CHRP-R\",Y290=\"SERA\",Y290=\"SUHRP\"),TRUNC((MIN(I290,K290)*(1+'1. Checklist & Certification'!$K$49))),0))","v":0},{"$f":"IF(OR(A290=0,B290=\"X\"),0,IF(OR(S290=\"CALDAP\",S290=\"DPRLP\",U290=\"CALDAP\",U290=\"DPRLP\",W290=\"CALDAP\",W290=\"DPRLP\",Y290=\"CALDAP\",Y290=\"DPRLP\"),TRUNC(((MIN(I290,K290))*(1+'1. Checklist & Certification'!$G$4))),0))","v":0},0,0,0,{"$f":"IF(OR(A290=0,B290=\"X\"),0,IF(OR(S290=\"PRP\",S290=\"LPR\",U290=\"PRP\",U290=\"LPR\",W290=\"PRP\",W290=\"LPR\",Y290=\"PRP\",Y290=\"LPR\"),MAX(I290+AP290,MIN(IF(AE290:AN290<>0,AE290:AN290))),MIN(IF(AE290:AN290<>0,AE290:AN290))))","v":0},{"$f":"IF(A290=0,0,IF(AND(OR(S290=\"Mgr\",S290=0),OR(U290=\"Mgr\",U290=0),OR(W290=\"Mgr\",W290=0)),0,IF(LEFT($A290,2)=\"B*\",VLOOKUP($E290,'1. Checklist & Certification'!$D$26:$E$32,2),IF(LEFT($A290,2)=\"C*\",VLOOKUP($E290,'1. Checklist & Certification'!$F$26:$G$32,2),IF(LEFT($A290,2)=\"D*\",VLOOKUP($E290,'1. Checklist & Certification'!$H$26:$I$32,2),IF(LEFT($A290,2)=\"E*\",VLOOKUP($E290,'1. Checklist & Certification'!$J$26:$K$32,2),VLOOKUP($E290,'1. Checklist & Certification'!$A$26:$B$32,2)))))))","v":0},0,0,null,null,null,null,"","",0,0,0,null,{"$f":"IF(A290=\"\",\"\",'1. Checklist & Certification'!$K$1)","v":""},{"$f":"IF(A290=\"\",\"\",'1. Checklist & Certification'!$C$62)","v":""},{"$f":"IF(A290=\"\",\"\",'1. Checklist & Certification'!$C$6)","v":""},{"$f":"IF(A290=\"\",\"\",'1. Checklist & Certification'!$G$5)","v":""},{"$f":"IFERROR(IF(A290=\"\",\"\",\n_xlfn.LET(_xlpm.Contract,'1. Checklist & Certification'!$C$7,\n_xlpm.Yr,TEXT(MOD(_xlfn.TEXTBEFORE(_xlpm.Contract,\"-\"),100),\"00\"),\n_xlpm.Program,_xlfn.TEXTAFTER(_xlfn.TEXTBEFORE(_xlpm.Contract,\"-\",2),\"-\"),\n_xlpm.CleanProgram,_xlfn.XLOOKUP(_xlpm.Program,SpellCheck[Input],SpellCheck[Correction],_xlpm.Program),\n_xlpm.Number,TEXT(_xlfn.TEXTAFTER(_xlpm.Contract,\"-\",2),\"0000\"),\n_xlfn.CONCAT(_xlpm.Yr,\"-\",_xlpm.CleanProgram,\"-\",_xlpm.Number))\n),\"\")","v":""},{"$f":"IFERROR(IF(A290=\"\",\"\",\n_xlfn.LET(_xlpm.Contract,'1. Checklist & Certification'!$C$8,\n_xlpm.Yr,TEXT(MOD(_xlfn.TEXTBEFORE(_xlpm.Contract,\"-\"),100),\"00\"),\n_xlpm.Program,_xlfn.TEXTAFTER(_xlfn.TEXTBEFORE(_xlpm.Contract,\"-\",2),\"-\"),\n_xlpm.CleanProgram,_xlfn.XLOOKUP(_xlpm.Program,SpellCheck[Input],SpellCheck[Correction],_xlpm.Program),\n_xlpm.Number,TEXT(_xlfn.TEXTAFTER(_xlpm.Contract,\"-\",2),\"0000\"),\n_xlfn.CONCAT(_xlpm.Yr,\"-\",_xlpm.CleanProgram,\"-\",_xlpm.Number))\n),\"\")","v":""},{"$f":"IFERROR(IF(A290=\"\",\"\",\n_xlfn.LET(_xlpm.Contract,'1. Checklist & Certification'!$F$7,\n_xlpm.Yr,TEXT(MOD(_xlfn.TEXTBEFORE(_xlpm.Contract,\"-\"),100),\"00\"),\n_xlpm.Program,_xlfn.TEXTAFTER(_xlfn.TEXTBEFORE(_xlpm.Contract,\"-\",2),\"-\"),\n_xlpm.CleanProgram,_xlfn.XLOOKUP(_xlpm.Program,SpellCheck[Input],SpellCheck[Correction],_xlpm.Program),\n_xlpm.Number,TEXT(_xlfn.TEXTAFTER(_xlpm.Contract,\"-\",2),\"0000\"),\n_xlfn.CONCAT(_xlpm.Yr,\"-\",_xlpm.CleanProgram,\"-\",_xlpm.Number))\n),\"\")","v":""},{"$f":"IFERROR(IF(A290=\"\",\"\",\n_xlfn.LET(_xlpm.Contract,'1. Checklist & Certification'!$F$8,\n_xlpm.Yr,TEXT(MOD(_xlfn.TEXTBEFORE(_xlpm.Contract,\"-\"),100),\"00\"),\n_xlpm.Program,_xlfn.TEXTAFTER(_xlfn.TEXTBEFORE(_xlpm.Contract,\"-\",2),\"-\"),\n_xlpm.CleanProgram,_xlfn.XLOOKUP(_xlpm.Program,SpellCheck[Input],SpellCheck[Correction],_xlpm.Program),\n_xlpm.Number,TEXT(_xlfn.TEXTAFTER(_xlpm.Contract,\"-\",2),\"0000\"),\n_xlfn.CONCAT(_xlpm.Yr,\"-\",_xlpm.CleanProgram,\"-\",_xlpm.Number))\n),\"\")","v":""},{"$f":"IF(A290=\"\",\"\",'1. Checklist & Certification'!$B$9)","v":""},{"$f":"IF(A290=\"\",\"\",'1. Checklist & Certification'!$F$9)","v":""},{"$f":"IF(A290=\"\",\"\",'1. Checklist & Certification'!$C$10)","v":""},{"$f":"IF(A290=\"\",\"\",'1. Checklist & Certification'!$C$11)","v":""},{"$f":"IF(A290=\"\",\"\",'1. Checklist & Certification'!$C$12)","v":""},{"$f":"IF(A290=\"\",\"\",'1. Checklist & Certification'!$B$14)","v":""},{"$f":"IF(A290=\"\",\"\",'1. Checklist & Certification'!$E$14)","v":""},{"$f":"IF(B290=\"\",\"\",'1. Checklist & Certification'!$G$14)","v":""},{"$f":"IF(A290=\"\",\"\",'MHP Family Income & Rent Limits'!$B$3)","v":""},{"$f":"IF(A290=\"\",\"\",'MHP Family Income & Rent Limits'!$J$3)","v":""},{"$f":"IF(A290=\"\",\"\",'MHP Family Income & Rent Limits'!$E$4)","v":""},{"$f":"IF(A290=\"\",\"\",'MHP Family Income & Rent Limits'!$C$7)","v":""},{"$f":"IF(A290=\"\",\"\",'MHP Family Income & Rent Limits'!$F$8)","v":""},{"$f":"IF(A290=\"\",\"\",'1. Checklist & Certification'!$G$4)","v":""},{"$f":"IF(A290=\"\",\"\",'1. Checklist & Certification'!$K$39)","v":""},{"$f":"IF(A290=\"\",\"\",'1. Checklist & Certification'!$K$43)","v":""},{"$f":"IF(A290=\"\",\"\",'1. Checklist & Certification'!$K$45)","v":""},{"$f":"IF(A290=\"\",\"\",'1. Checklist & Certification'!$K$49)","v":""},{"$f":"IF(A290=\"\",\"\",'1. Checklist & Certification'!$K$62)","v":""},{"$f":"IF(A290=\"\",\"\",'1. Checklist & Certification'!$E$66)","v":""},{"$f":"IF(A290=\"\",\"\",'1. Checklist & Certification'!$E$67)","v":""},{"$f":"IF(A290=\"\",\"\",'1. Checklist & Certification'!$E$68)","v":""},{"$f":"IF(A290=\"\",\"\",'1. Checklist & Certification'!$G$66)","v":""},{"$f":"IF(A290=\"\",\"\",'1. Checklist & Certification'!$H$66)","v":""},{"$f":"IF(A290=\"\",\"\",'1. Checklist & Certification'!$I$66)","v":""},{"$f":"IF(A290=\"\",\"\",'1. Checklist & Certification'!$I$67)","v":""},{"$f":"IF(A290=\"\",\"\",'1. Checklist & Certification'!$I$68)","v":""},{"$f":"IF(A290=\"\",\"\",'1. Checklist & Certification'!$B$69)","v":""},{"$f":"IF(A290=\"\",\"\",'1. Checklist & Certification'!$C$69)","v":""},{"$f":"IF(A290=\"\",\"\",'1. Checklist & Certification'!$F$69)","v":""},{"$f":"IF(A290=\"\",\"\",'1. Checklist & Certification'!$G$69)","v":""},{"$f":"IF(A290=\"\",\"\",'1. Checklist & Certification'!$J$69)","v":""},{"$f":"IF(A290=\"\",\"\",'1. Checklist & Certification'!$K$69)","v":""},null,null,{"$f":"IF(AND(OR('1. Checklist & Certification'!$M$16=1,'1. Checklist & Certification'!$M$19=2),AO290>0,B290=\"\",I290>0,AQ290<I290,AV290<>\"Sec 8-Project\"),\"X\",IF(AND(OR('1. Checklist & Certification'!$M$20=4,'1. Checklist & Certification'!$M$21=5,'1. Checklist & Certification'!$M$22=7),AO290>0,B290=\"\",I290>0,K290<I290),\"X\",\"\"))","v":""},{"$f":"IF(A290=\"\",\"\",IF(SUMPRODUCT(-- (ISNUMBER(SEARCH({\"*AHSC*\",\"*FMTW*\",\"*FWHG*\",\"*GHI*\",\"*HHC*\",\"*HLCP*\",\"*HOME*\",\"*LPR*\",\"*MHP*\",\"*NHTF*\",\"*NSP*\",\"*PRP*\",\"*TOD*\",\"*VHHP*\"},'1. Checklist & Certification'!$L$7)))),\"MHP\",\"Legacy\"))","v":""},",,",null,null,null,{"$f":"IF('1. Checklist & Certification'!$M$20=4,\"Both\",IF(OR('1. Checklist & Certification'!$M$15>0,S290=\"CHRP-R\",U290=\"CHRP-R\",W290=\"CHRP-R\",Y290=\"CHRP-R\"),\"Under\",\"No\"))","v":"No"},"No","No",{"$f":"_xlfn.IFS(D290=\"\",\"\",D290=1,'MHP Family Income & Rent Limits'!$E$17,D290=2,'MHP Family Income & Rent Limits'!$F$17,D290=3,'MHP Family Income & Rent Limits'!$G$17,D290=4,'MHP Family Income & Rent Limits'!$H$17,D290=5,'MHP Family Income & Rent Limits'!$I$17,D290=6,'MHP Family Income & Rent Limits'!$J$17,D290=7,'MHP Family Income & Rent Limits'!$K$17,D290=8,'MHP Family Income & Rent Limits'!$L$17)","v":""},"",{"$f":"IF(OR(A290=0,B290=\"X\"),0,MIN(IF(AA290:AD290<>0,AA290:AD290)))","v":0},{"$f":"IF(OR(H290=\"\",I290=\"\"),0,IF(H290*0.3/12>I290,MIN(H290*0.3/12,I290*1.1)+AP290,I290*(1+(VLOOKUP('1. Checklist & Certification'!$F$9,'HLCP-E Rent Change'!$A$1:$D$59,4,FALSE)))+AP290))","v":0}]
[null,null,null,null,null,null,null,null,null,null,null,null,null,null,null,null,null,null,null,null,null,null,null,null,null,null,0,0,0,0,0,0,0,0,{"$f":"IF(OR(A291=0,B291=\"X\"),0,IF(OR(S291=\"FHDP\",S291=\"RHCP-B\",U291=\"FHDP\",U291=\"RHCP-B\",W291=\"FHDP\",W291=\"RHCP-B\",Y291=\"FHDP\",Y291=\"RHCP-B\"),TRUNC((MIN(I291,K291)*(1+'1. Checklist & Certification'!$K$43)+AP291)),0))","v":0},{"$f":"IF(OR(A291=0,B291=\"X\"),0,IF(OR(S291=\"CHRP-R\",S291=\"SERA\",S291=\"SUHRP\",U291=\"CHRP-R\",U291=\"SERA\",U291=\"SUHRP\",W291=\"CHRP-R\",W291=\"SERA\",W291=\"SUHRP\",Y291=\"CHRP-R\",Y291=\"SERA\",Y291=\"SUHRP\"),TRUNC((MIN(I291,K291)*(1+'1. Checklist & Certification'!$K$49))),0))","v":0},{"$f":"IF(OR(A291=0,B291=\"X\"),0,IF(OR(S291=\"CALDAP\",S291=\"DPRLP\",U291=\"CALDAP\",U291=\"DPRLP\",W291=\"CALDAP\",W291=\"DPRLP\",Y291=\"CALDAP\",Y291=\"DPRLP\"),TRUNC(((MIN(I291,K291))*(1+'1. Checklist & Certification'!$G$4))),0))","v":0},0,0,0,{"$f":"IF(OR(A291=0,B291=\"X\"),0,IF(OR(S291=\"PRP\",S291=\"LPR\",U291=\"PRP\",U291=\"LPR\",W291=\"PRP\",W291=\"LPR\",Y291=\"PRP\",Y291=\"LPR\"),MAX(I291+AP291,MIN(IF(AE291:AN291<>0,AE291:AN291))),MIN(IF(AE291:AN291<>0,AE291:AN291))))","v":0},{"$f":"IF(A291=0,0,IF(AND(OR(S291=\"Mgr\",S291=0),OR(U291=\"Mgr\",U291=0),OR(W291=\"Mgr\",W291=0)),0,IF(LEFT($A291,2)=\"B*\",VLOOKUP($E291,'1. Checklist & Certification'!$D$26:$E$32,2),IF(LEFT($A291,2)=\"C*\",VLOOKUP($E291,'1. Checklist & Certification'!$F$26:$G$32,2),IF(LEFT($A291,2)=\"D*\",VLOOKUP($E291,'1. Checklist & Certification'!$H$26:$I$32,2),IF(LEFT($A291,2)=\"E*\",VLOOKUP($E291,'1. Checklist & Certification'!$J$26:$K$32,2),VLOOKUP($E291,'1. Checklist & Certification'!$A$26:$B$32,2)))))))","v":0},0,0,null,null,null,null,"","",0,0,0,null,{"$f":"IF(A291=\"\",\"\",'1. Checklist & Certification'!$K$1)","v":""},{"$f":"IF(A291=\"\",\"\",'1. Checklist & Certification'!$C$62)","v":""},{"$f":"IF(A291=\"\",\"\",'1. Checklist & Certification'!$C$6)","v":""},{"$f":"IF(A291=\"\",\"\",'1. Checklist & Certification'!$G$5)","v":""},{"$f":"IFERROR(IF(A291=\"\",\"\",\n_xlfn.LET(_xlpm.Contract,'1. Checklist & Certification'!$C$7,\n_xlpm.Yr,TEXT(MOD(_xlfn.TEXTBEFORE(_xlpm.Contract,\"-\"),100),\"00\"),\n_xlpm.Program,_xlfn.TEXTAFTER(_xlfn.TEXTBEFORE(_xlpm.Contract,\"-\",2),\"-\"),\n_xlpm.CleanProgram,_xlfn.XLOOKUP(_xlpm.Program,SpellCheck[Input],SpellCheck[Correction],_xlpm.Program),\n_xlpm.Number,TEXT(_xlfn.TEXTAFTER(_xlpm.Contract,\"-\",2),\"0000\"),\n_xlfn.CONCAT(_xlpm.Yr,\"-\",_xlpm.CleanProgram,\"-\",_xlpm.Number))\n),\"\")","v":""},{"$f":"IFERROR(IF(A291=\"\",\"\",\n_xlfn.LET(_xlpm.Contract,'1. Checklist & Certification'!$C$8,\n_xlpm.Yr,TEXT(MOD(_xlfn.TEXTBEFORE(_xlpm.Contract,\"-\"),100),\"00\"),\n_xlpm.Program,_xlfn.TEXTAFTER(_xlfn.TEXTBEFORE(_xlpm.Contract,\"-\",2),\"-\"),\n_xlpm.CleanProgram,_xlfn.XLOOKUP(_xlpm.Program,SpellCheck[Input],SpellCheck[Correction],_xlpm.Program),\n_xlpm.Number,TEXT(_xlfn.TEXTAFTER(_xlpm.Contract,\"-\",2),\"0000\"),\n_xlfn.CONCAT(_xlpm.Yr,\"-\",_xlpm.CleanProgram,\"-\",_xlpm.Number))\n),\"\")","v":""},{"$f":"IFERROR(IF(A291=\"\",\"\",\n_xlfn.LET(_xlpm.Contract,'1. Checklist & Certification'!$F$7,\n_xlpm.Yr,TEXT(MOD(_xlfn.TEXTBEFORE(_xlpm.Contract,\"-\"),100),\"00\"),\n_xlpm.Program,_xlfn.TEXTAFTER(_xlfn.TEXTBEFORE(_xlpm.Contract,\"-\",2),\"-\"),\n_xlpm.CleanProgram,_xlfn.XLOOKUP(_xlpm.Program,SpellCheck[Input],SpellCheck[Correction],_xlpm.Program),\n_xlpm.Number,TEXT(_xlfn.TEXTAFTER(_xlpm.Contract,\"-\",2),\"0000\"),\n_xlfn.CONCAT(_xlpm.Yr,\"-\",_xlpm.CleanProgram,\"-\",_xlpm.Number))\n),\"\")","v":""},{"$f":"IFERROR(IF(A291=\"\",\"\",\n_xlfn.LET(_xlpm.Contract,'1. Checklist & Certification'!$F$8,\n_xlpm.Yr,TEXT(MOD(_xlfn.TEXTBEFORE(_xlpm.Contract,\"-\"),100),\"00\"),\n_xlpm.Program,_xlfn.TEXTAFTER(_xlfn.TEXTBEFORE(_xlpm.Contract,\"-\",2),\"-\"),\n_xlpm.CleanProgram,_xlfn.XLOOKUP(_xlpm.Program,SpellCheck[Input],SpellCheck[Correction],_xlpm.Program),\n_xlpm.Number,TEXT(_xlfn.TEXTAFTER(_xlpm.Contract,\"-\",2),\"0000\"),\n_xlfn.CONCAT(_xlpm.Yr,\"-\",_xlpm.CleanProgram,\"-\",_xlpm.Number))\n),\"\")","v":""},{"$f":"IF(A291=\"\",\"\",'1. Checklist & Certification'!$B$9)","v":""},{"$f":"IF(A291=\"\",\"\",'1. Checklist & Certification'!$F$9)","v":""},{"$f":"IF(A291=\"\",\"\",'1. Checklist & Certification'!$C$10)","v":""},{"$f":"IF(A291=\"\",\"\",'1. Checklist & Certification'!$C$11)","v":""},{"$f":"IF(A291=\"\",\"\",'1. Checklist & Certification'!$C$12)","v":""},{"$f":"IF(A291=\"\",\"\",'1. Checklist & Certification'!$B$14)","v":""},{"$f":"IF(A291=\"\",\"\",'1. Checklist & Certification'!$E$14)","v":""},{"$f":"IF(B291=\"\",\"\",'1. Checklist & Certification'!$G$14)","v":""},{"$f":"IF(A291=\"\",\"\",'MHP Family Income & Rent Limits'!$B$3)","v":""},{"$f":"IF(A291=\"\",\"\",'MHP Family Income & Rent Limits'!$J$3)","v":""},{"$f":"IF(A291=\"\",\"\",'MHP Family Income & Rent Limits'!$E$4)","v":""},{"$f":"IF(A291=\"\",\"\",'MHP Family Income & Rent Limits'!$C$7)","v":""},{"$f":"IF(A291=\"\",\"\",'MHP Family Income & Rent Limits'!$F$8)","v":""},{"$f":"IF(A291=\"\",\"\",'1. Checklist & Certification'!$G$4)","v":""},{"$f":"IF(A291=\"\",\"\",'1. Checklist & Certification'!$K$39)","v":""},{"$f":"IF(A291=\"\",\"\",'1. Checklist & Certification'!$K$43)","v":""},{"$f":"IF(A291=\"\",\"\",'1. Checklist & Certification'!$K$45)","v":""},{"$f":"IF(A291=\"\",\"\",'1. Checklist & Certification'!$K$49)","v":""},{"$f":"IF(A291=\"\",\"\",'1. Checklist & Certification'!$K$62)","v":""},{"$f":"IF(A291=\"\",\"\",'1. Checklist & Certification'!$E$66)","v":""},{"$f":"IF(A291=\"\",\"\",'1. Checklist & Certification'!$E$67)","v":""},{"$f":"IF(A291=\"\",\"\",'1. Checklist & Certification'!$E$68)","v":""},{"$f":"IF(A291=\"\",\"\",'1. Checklist & Certification'!$G$66)","v":""},{"$f":"IF(A291=\"\",\"\",'1. Checklist & Certification'!$H$66)","v":""},{"$f":"IF(A291=\"\",\"\",'1. Checklist & Certification'!$I$66)","v":""},{"$f":"IF(A291=\"\",\"\",'1. Checklist & Certification'!$I$67)","v":""},{"$f":"IF(A291=\"\",\"\",'1. Checklist & Certification'!$I$68)","v":""},{"$f":"IF(A291=\"\",\"\",'1. Checklist & Certification'!$B$69)","v":""},{"$f":"IF(A291=\"\",\"\",'1. Checklist & Certification'!$C$69)","v":""},{"$f":"IF(A291=\"\",\"\",'1. Checklist & Certification'!$F$69)","v":""},{"$f":"IF(A291=\"\",\"\",'1. Checklist & Certification'!$G$69)","v":""},{"$f":"IF(A291=\"\",\"\",'1. Checklist & Certification'!$J$69)","v":""},{"$f":"IF(A291=\"\",\"\",'1. Checklist & Certification'!$K$69)","v":""},null,null,{"$f":"IF(AND(OR('1. Checklist & Certification'!$M$16=1,'1. Checklist & Certification'!$M$19=2),AO291>0,B291=\"\",I291>0,AQ291<I291,AV291<>\"Sec 8-Project\"),\"X\",IF(AND(OR('1. Checklist & Certification'!$M$20=4,'1. Checklist & Certification'!$M$21=5,'1. Checklist & Certification'!$M$22=7),AO291>0,B291=\"\",I291>0,K291<I291),\"X\",\"\"))","v":""},{"$f":"IF(A291=\"\",\"\",IF(SUMPRODUCT(-- (ISNUMBER(SEARCH({\"*AHSC*\",\"*FMTW*\",\"*FWHG*\",\"*GHI*\",\"*HHC*\",\"*HLCP*\",\"*HOME*\",\"*LPR*\",\"*MHP*\",\"*NHTF*\",\"*NSP*\",\"*PRP*\",\"*TOD*\",\"*VHHP*\"},'1. Checklist & Certification'!$L$7)))),\"MHP\",\"Legacy\"))","v":""},",,",null,null,null,{"$f":"IF('1. Checklist & Certification'!$M$20=4,\"Both\",IF(OR('1. Checklist & Certification'!$M$15>0,S291=\"CHRP-R\",U291=\"CHRP-R\",W291=\"CHRP-R\",Y291=\"CHRP-R\"),\"Under\",\"No\"))","v":"No"},"No","No",{"$f":"_xlfn.IFS(D291=\"\",\"\",D291=1,'MHP Family Income & Rent Limits'!$E$17,D291=2,'MHP Family Income & Rent Limits'!$F$17,D291=3,'MHP Family Income & Rent Limits'!$G$17,D291=4,'MHP Family Income & Rent Limits'!$H$17,D291=5,'MHP Family Income & Rent Limits'!$I$17,D291=6,'MHP Family Income & Rent Limits'!$J$17,D291=7,'MHP Family Income & Rent Limits'!$K$17,D291=8,'MHP Family Income & Rent Limits'!$L$17)","v":""},"",{"$f":"IF(OR(A291=0,B291=\"X\"),0,MIN(IF(AA291:AD291<>0,AA291:AD291)))","v":0},{"$f":"IF(OR(H291=\"\",I291=\"\"),0,IF(H291*0.3/12>I291,MIN(H291*0.3/12,I291*1.1)+AP291,I291*(1+(VLOOKUP('1. Checklist & Certification'!$F$9,'HLCP-E Rent Change'!$A$1:$D$59,4,FALSE)))+AP291))","v":0}]
[null,null,null,null,null,null,null,null,null,null,null,null,null,null,null,null,null,null,null,null,null,null,null,null,null,null,0,0,0,0,0,0,0,0,{"$f":"IF(OR(A292=0,B292=\"X\"),0,IF(OR(S292=\"FHDP\",S292=\"RHCP-B\",U292=\"FHDP\",U292=\"RHCP-B\",W292=\"FHDP\",W292=\"RHCP-B\",Y292=\"FHDP\",Y292=\"RHCP-B\"),TRUNC((MIN(I292,K292)*(1+'1. Checklist & Certification'!$K$43)+AP292)),0))","v":0},{"$f":"IF(OR(A292=0,B292=\"X\"),0,IF(OR(S292=\"CHRP-R\",S292=\"SERA\",S292=\"SUHRP\",U292=\"CHRP-R\",U292=\"SERA\",U292=\"SUHRP\",W292=\"CHRP-R\",W292=\"SERA\",W292=\"SUHRP\",Y292=\"CHRP-R\",Y292=\"SERA\",Y292=\"SUHRP\"),TRUNC((MIN(I292,K292)*(1+'1. Checklist & Certification'!$K$49))),0))","v":0},{"$f":"IF(OR(A292=0,B292=\"X\"),0,IF(OR(S292=\"CALDAP\",S292=\"DPRLP\",U292=\"CALDAP\",U292=\"DPRLP\",W292=\"CALDAP\",W292=\"DPRLP\",Y292=\"CALDAP\",Y292=\"DPRLP\"),TRUNC(((MIN(I292,K292))*(1+'1. Checklist & Certification'!$G$4))),0))","v":0},0,0,0,{"$f":"IF(OR(A292=0,B292=\"X\"),0,IF(OR(S292=\"PRP\",S292=\"LPR\",U292=\"PRP\",U292=\"LPR\",W292=\"PRP\",W292=\"LPR\",Y292=\"PRP\",Y292=\"LPR\"),MAX(I292+AP292,MIN(IF(AE292:AN292<>0,AE292:AN292))),MIN(IF(AE292:AN292<>0,AE292:AN292))))","v":0},{"$f":"IF(A292=0,0,IF(AND(OR(S292=\"Mgr\",S292=0),OR(U292=\"Mgr\",U292=0),OR(W292=\"Mgr\",W292=0)),0,IF(LEFT($A292,2)=\"B*\",VLOOKUP($E292,'1. Checklist & Certification'!$D$26:$E$32,2),IF(LEFT($A292,2)=\"C*\",VLOOKUP($E292,'1. Checklist & Certification'!$F$26:$G$32,2),IF(LEFT($A292,2)=\"D*\",VLOOKUP($E292,'1. Checklist & Certification'!$H$26:$I$32,2),IF(LEFT($A292,2)=\"E*\",VLOOKUP($E292,'1. Checklist & Certification'!$J$26:$K$32,2),VLOOKUP($E292,'1. Checklist & Certification'!$A$26:$B$32,2)))))))","v":0},0,0,null,null,null,null,"","",0,0,0,null,{"$f":"IF(A292=\"\",\"\",'1. Checklist & Certification'!$K$1)","v":""},{"$f":"IF(A292=\"\",\"\",'1. Checklist & Certification'!$C$62)","v":""},{"$f":"IF(A292=\"\",\"\",'1. Checklist & Certification'!$C$6)","v":""},{"$f":"IF(A292=\"\",\"\",'1. Checklist & Certification'!$G$5)","v":""},{"$f":"IFERROR(IF(A292=\"\",\"\",\n_xlfn.LET(_xlpm.Contract,'1. Checklist & Certification'!$C$7,\n_xlpm.Yr,TEXT(MOD(_xlfn.TEXTBEFORE(_xlpm.Contract,\"-\"),100),\"00\"),\n_xlpm.Program,_xlfn.TEXTAFTER(_xlfn.TEXTBEFORE(_xlpm.Contract,\"-\",2),\"-\"),\n_xlpm.CleanProgram,_xlfn.XLOOKUP(_xlpm.Program,SpellCheck[Input],SpellCheck[Correction],_xlpm.Program),\n_xlpm.Number,TEXT(_xlfn.TEXTAFTER(_xlpm.Contract,\"-\",2),\"0000\"),\n_xlfn.CONCAT(_xlpm.Yr,\"-\",_xlpm.CleanProgram,\"-\",_xlpm.Number))\n),\"\")","v":""},{"$f":"IFERROR(IF(A292=\"\",\"\",\n_xlfn.LET(_xlpm.Contract,'1. Checklist & Certification'!$C$8,\n_xlpm.Yr,TEXT(MOD(_xlfn.TEXTBEFORE(_xlpm.Contract,\"-\"),100),\"00\"),\n_xlpm.Program,_xlfn.TEXTAFTER(_xlfn.TEXTBEFORE(_xlpm.Contract,\"-\",2),\"-\"),\n_xlpm.CleanProgram,_xlfn.XLOOKUP(_xlpm.Program,SpellCheck[Input],SpellCheck[Correction],_xlpm.Program),\n_xlpm.Number,TEXT(_xlfn.TEXTAFTER(_xlpm.Contract,\"-\",2),\"0000\"),\n_xlfn.CONCAT(_xlpm.Yr,\"-\",_xlpm.CleanProgram,\"-\",_xlpm.Number))\n),\"\")","v":""},{"$f":"IFERROR(IF(A292=\"\",\"\",\n_xlfn.LET(_xlpm.Contract,'1. Checklist & Certification'!$F$7,\n_xlpm.Yr,TEXT(MOD(_xlfn.TEXTBEFORE(_xlpm.Contract,\"-\"),100),\"00\"),\n_xlpm.Program,_xlfn.TEXTAFTER(_xlfn.TEXTBEFORE(_xlpm.Contract,\"-\",2),\"-\"),\n_xlpm.CleanProgram,_xlfn.XLOOKUP(_xlpm.Program,SpellCheck[Input],SpellCheck[Correction],_xlpm.Program),\n_xlpm.Number,TEXT(_xlfn.TEXTAFTER(_xlpm.Contract,\"-\",2),\"0000\"),\n_xlfn.CONCAT(_xlpm.Yr,\"-\",_xlpm.CleanProgram,\"-\",_xlpm.Number))\n),\"\")","v":""},{"$f":"IFERROR(IF(A292=\"\",\"\",\n_xlfn.LET(_xlpm.Contract,'1. Checklist & Certification'!$F$8,\n_xlpm.Yr,TEXT(MOD(_xlfn.TEXTBEFORE(_xlpm.Contract,\"-\"),100),\"00\"),\n_xlpm.Program,_xlfn.TEXTAFTER(_xlfn.TEXTBEFORE(_xlpm.Contract,\"-\",2),\"-\"),\n_xlpm.CleanProgram,_xlfn.XLOOKUP(_xlpm.Program,SpellCheck[Input],SpellCheck[Correction],_xlpm.Program),\n_xlpm.Number,TEXT(_xlfn.TEXTAFTER(_xlpm.Contract,\"-\",2),\"0000\"),\n_xlfn.CONCAT(_xlpm.Yr,\"-\",_xlpm.CleanProgram,\"-\",_xlpm.Number))\n),\"\")","v":""},{"$f":"IF(A292=\"\",\"\",'1. Checklist & Certification'!$B$9)","v":""},{"$f":"IF(A292=\"\",\"\",'1. Checklist & Certification'!$F$9)","v":""},{"$f":"IF(A292=\"\",\"\",'1. Checklist & Certification'!$C$10)","v":""},{"$f":"IF(A292=\"\",\"\",'1. Checklist & Certification'!$C$11)","v":""},{"$f":"IF(A292=\"\",\"\",'1. Checklist & Certification'!$C$12)","v":""},{"$f":"IF(A292=\"\",\"\",'1. Checklist & Certification'!$B$14)","v":""},{"$f":"IF(A292=\"\",\"\",'1. Checklist & Certification'!$E$14)","v":""},{"$f":"IF(B292=\"\",\"\",'1. Checklist & Certification'!$G$14)","v":""},{"$f":"IF(A292=\"\",\"\",'MHP Family Income & Rent Limits'!$B$3)","v":""},{"$f":"IF(A292=\"\",\"\",'MHP Family Income & Rent Limits'!$J$3)","v":""},{"$f":"IF(A292=\"\",\"\",'MHP Family Income & Rent Limits'!$E$4)","v":""},{"$f":"IF(A292=\"\",\"\",'MHP Family Income & Rent Limits'!$C$7)","v":""},{"$f":"IF(A292=\"\",\"\",'MHP Family Income & Rent Limits'!$F$8)","v":""},{"$f":"IF(A292=\"\",\"\",'1. Checklist & Certification'!$G$4)","v":""},{"$f":"IF(A292=\"\",\"\",'1. Checklist & Certification'!$K$39)","v":""},{"$f":"IF(A292=\"\",\"\",'1. Checklist & Certification'!$K$43)","v":""},{"$f":"IF(A292=\"\",\"\",'1. Checklist & Certification'!$K$45)","v":""},{"$f":"IF(A292=\"\",\"\",'1. Checklist & Certification'!$K$49)","v":""},{"$f":"IF(A292=\"\",\"\",'1. Checklist & Certification'!$K$62)","v":""},{"$f":"IF(A292=\"\",\"\",'1. Checklist & Certification'!$E$66)","v":""},{"$f":"IF(A292=\"\",\"\",'1. Checklist & Certification'!$E$67)","v":""},{"$f":"IF(A292=\"\",\"\",'1. Checklist & Certification'!$E$68)","v":""},{"$f":"IF(A292=\"\",\"\",'1. Checklist & Certification'!$G$66)","v":""},{"$f":"IF(A292=\"\",\"\",'1. Checklist & Certification'!$H$66)","v":""},{"$f":"IF(A292=\"\",\"\",'1. Checklist & Certification'!$I$66)","v":""},{"$f":"IF(A292=\"\",\"\",'1. Checklist & Certification'!$I$67)","v":""},{"$f":"IF(A292=\"\",\"\",'1. Checklist & Certification'!$I$68)","v":""},{"$f":"IF(A292=\"\",\"\",'1. Checklist & Certification'!$B$69)","v":""},{"$f":"IF(A292=\"\",\"\",'1. Checklist & Certification'!$C$69)","v":""},{"$f":"IF(A292=\"\",\"\",'1. Checklist & Certification'!$F$69)","v":""},{"$f":"IF(A292=\"\",\"\",'1. Checklist & Certification'!$G$69)","v":""},{"$f":"IF(A292=\"\",\"\",'1. Checklist & Certification'!$J$69)","v":""},{"$f":"IF(A292=\"\",\"\",'1. Checklist & Certification'!$K$69)","v":""},null,null,{"$f":"IF(AND(OR('1. Checklist & Certification'!$M$16=1,'1. Checklist & Certification'!$M$19=2),AO292>0,B292=\"\",I292>0,AQ292<I292,AV292<>\"Sec 8-Project\"),\"X\",IF(AND(OR('1. Checklist & Certification'!$M$20=4,'1. Checklist & Certification'!$M$21=5,'1. Checklist & Certification'!$M$22=7),AO292>0,B292=\"\",I292>0,K292<I292),\"X\",\"\"))","v":""},{"$f":"IF(A292=\"\",\"\",IF(SUMPRODUCT(-- (ISNUMBER(SEARCH({\"*AHSC*\",\"*FMTW*\",\"*FWHG*\",\"*GHI*\",\"*HHC*\",\"*HLCP*\",\"*HOME*\",\"*LPR*\",\"*MHP*\",\"*NHTF*\",\"*NSP*\",\"*PRP*\",\"*TOD*\",\"*VHHP*\"},'1. Checklist & Certification'!$L$7)))),\"MHP\",\"Legacy\"))","v":""},",,",null,null,null,{"$f":"IF('1. Checklist & Certification'!$M$20=4,\"Both\",IF(OR('1. Checklist & Certification'!$M$15>0,S292=\"CHRP-R\",U292=\"CHRP-R\",W292=\"CHRP-R\",Y292=\"CHRP-R\"),\"Under\",\"No\"))","v":"No"},"No","No",{"$f":"_xlfn.IFS(D292=\"\",\"\",D292=1,'MHP Family Income & Rent Limits'!$E$17,D292=2,'MHP Family Income & Rent Limits'!$F$17,D292=3,'MHP Family Income & Rent Limits'!$G$17,D292=4,'MHP Family Income & Rent Limits'!$H$17,D292=5,'MHP Family Income & Rent Limits'!$I$17,D292=6,'MHP Family Income & Rent Limits'!$J$17,D292=7,'MHP Family Income & Rent Limits'!$K$17,D292=8,'MHP Family Income & Rent Limits'!$L$17)","v":""},"",{"$f":"IF(OR(A292=0,B292=\"X\"),0,MIN(IF(AA292:AD292<>0,AA292:AD292)))","v":0},{"$f":"IF(OR(H292=\"\",I292=\"\"),0,IF(H292*0.3/12>I292,MIN(H292*0.3/12,I292*1.1)+AP292,I292*(1+(VLOOKUP('1. Checklist & Certification'!$F$9,'HLCP-E Rent Change'!$A$1:$D$59,4,FALSE)))+AP292))","v":0}]
[null,null,null,null,null,null,null,null,null,null,null,null,null,null,null,null,null,null,null,null,null,null,null,null,null,null,0,0,0,0,0,0,0,0,{"$f":"IF(OR(A293=0,B293=\"X\"),0,IF(OR(S293=\"FHDP\",S293=\"RHCP-B\",U293=\"FHDP\",U293=\"RHCP-B\",W293=\"FHDP\",W293=\"RHCP-B\",Y293=\"FHDP\",Y293=\"RHCP-B\"),TRUNC((MIN(I293,K293)*(1+'1. Checklist & Certification'!$K$43)+AP293)),0))","v":0},{"$f":"IF(OR(A293=0,B293=\"X\"),0,IF(OR(S293=\"CHRP-R\",S293=\"SERA\",S293=\"SUHRP\",U293=\"CHRP-R\",U293=\"SERA\",U293=\"SUHRP\",W293=\"CHRP-R\",W293=\"SERA\",W293=\"SUHRP\",Y293=\"CHRP-R\",Y293=\"SERA\",Y293=\"SUHRP\"),TRUNC((MIN(I293,K293)*(1+'1. Checklist & Certification'!$K$49))),0))","v":0},{"$f":"IF(OR(A293=0,B293=\"X\"),0,IF(OR(S293=\"CALDAP\",S293=\"DPRLP\",U293=\"CALDAP\",U293=\"DPRLP\",W293=\"CALDAP\",W293=\"DPRLP\",Y293=\"CALDAP\",Y293=\"DPRLP\"),TRUNC(((MIN(I293,K293))*(1+'1. Checklist & Certification'!$G$4))),0))","v":0},0,0,0,{"$f":"IF(OR(A293=0,B293=\"X\"),0,IF(OR(S293=\"PRP\",S293=\"LPR\",U293=\"PRP\",U293=\"LPR\",W293=\"PRP\",W293=\"LPR\",Y293=\"PRP\",Y293=\"LPR\"),MAX(I293+AP293,MIN(IF(AE293:AN293<>0,AE293:AN293))),MIN(IF(AE293:AN293<>0,AE293:AN293))))","v":0},{"$f":"IF(A293=0,0,IF(AND(OR(S293=\"Mgr\",S293=0),OR(U293=\"Mgr\",U293=0),OR(W293=\"Mgr\",W293=0)),0,IF(LEFT($A293,2)=\"B*\",VLOOKUP($E293,'1. Checklist & Certification'!$D$26:$E$32,2),IF(LEFT($A293,2)=\"C*\",VLOOKUP($E293,'1. Checklist & Certification'!$F$26:$G$32,2),IF(LEFT($A293,2)=\"D*\",VLOOKUP($E293,'1. Checklist & Certification'!$H$26:$I$32,2),IF(LEFT($A293,2)=\"E*\",VLOOKUP($E293,'1. Checklist & Certification'!$J$26:$K$32,2),VLOOKUP($E293,'1. Checklist & Certification'!$A$26:$B$32,2)))))))","v":0},0,0,null,null,null,null,"","",0,0,0,null,{"$f":"IF(A293=\"\",\"\",'1. Checklist & Certification'!$K$1)","v":""},{"$f":"IF(A293=\"\",\"\",'1. Checklist & Certification'!$C$62)","v":""},{"$f":"IF(A293=\"\",\"\",'1. Checklist & Certification'!$C$6)","v":""},{"$f":"IF(A293=\"\",\"\",'1. Checklist & Certification'!$G$5)","v":""},{"$f":"IFERROR(IF(A293=\"\",\"\",\n_xlfn.LET(_xlpm.Contract,'1. Checklist & Certification'!$C$7,\n_xlpm.Yr,TEXT(MOD(_xlfn.TEXTBEFORE(_xlpm.Contract,\"-\"),100),\"00\"),\n_xlpm.Program,_xlfn.TEXTAFTER(_xlfn.TEXTBEFORE(_xlpm.Contract,\"-\",2),\"-\"),\n_xlpm.CleanProgram,_xlfn.XLOOKUP(_xlpm.Program,SpellCheck[Input],SpellCheck[Correction],_xlpm.Program),\n_xlpm.Number,TEXT(_xlfn.TEXTAFTER(_xlpm.Contract,\"-\",2),\"0000\"),\n_xlfn.CONCAT(_xlpm.Yr,\"-\",_xlpm.CleanProgram,\"-\",_xlpm.Number))\n),\"\")","v":""},{"$f":"IFERROR(IF(A293=\"\",\"\",\n_xlfn.LET(_xlpm.Contract,'1. Checklist & Certification'!$C$8,\n_xlpm.Yr,TEXT(MOD(_xlfn.TEXTBEFORE(_xlpm.Contract,\"-\"),100),\"00\"),\n_xlpm.Program,_xlfn.TEXTAFTER(_xlfn.TEXTBEFORE(_xlpm.Contract,\"-\",2),\"-\"),\n_xlpm.CleanProgram,_xlfn.XLOOKUP(_xlpm.Program,SpellCheck[Input],SpellCheck[Correction],_xlpm.Program),\n_xlpm.Number,TEXT(_xlfn.TEXTAFTER(_xlpm.Contract,\"-\",2),\"0000\"),\n_xlfn.CONCAT(_xlpm.Yr,\"-\",_xlpm.CleanProgram,\"-\",_xlpm.Number))\n),\"\")","v":""},{"$f":"IFERROR(IF(A293=\"\",\"\",\n_xlfn.LET(_xlpm.Contract,'1. Checklist & Certification'!$F$7,\n_xlpm.Yr,TEXT(MOD(_xlfn.TEXTBEFORE(_xlpm.Contract,\"-\"),100),\"00\"),\n_xlpm.Program,_xlfn.TEXTAFTER(_xlfn.TEXTBEFORE(_xlpm.Contract,\"-\",2),\"-\"),\n_xlpm.CleanProgram,_xlfn.XLOOKUP(_xlpm.Program,SpellCheck[Input],SpellCheck[Correction],_xlpm.Program),\n_xlpm.Number,TEXT(_xlfn.TEXTAFTER(_xlpm.Contract,\"-\",2),\"0000\"),\n_xlfn.CONCAT(_xlpm.Yr,\"-\",_xlpm.CleanProgram,\"-\",_xlpm.Number))\n),\"\")","v":""},{"$f":"IFERROR(IF(A293=\"\",\"\",\n_xlfn.LET(_xlpm.Contract,'1. Checklist & Certification'!$F$8,\n_xlpm.Yr,TEXT(MOD(_xlfn.TEXTBEFORE(_xlpm.Contract,\"-\"),100),\"00\"),\n_xlpm.Program,_xlfn.TEXTAFTER(_xlfn.TEXTBEFORE(_xlpm.Contract,\"-\",2),\"-\"),\n_xlpm.CleanProgram,_xlfn.XLOOKUP(_xlpm.Program,SpellCheck[Input],SpellCheck[Correction],_xlpm.Program),\n_xlpm.Number,TEXT(_xlfn.TEXTAFTER(_xlpm.Contract,\"-\",2),\"0000\"),\n_xlfn.CONCAT(_xlpm.Yr,\"-\",_xlpm.CleanProgram,\"-\",_xlpm.Number))\n),\"\")","v":""},{"$f":"IF(A293=\"\",\"\",'1. Checklist & Certification'!$B$9)","v":""},{"$f":"IF(A293=\"\",\"\",'1. Checklist & Certification'!$F$9)","v":""},{"$f":"IF(A293=\"\",\"\",'1. Checklist & Certification'!$C$10)","v":""},{"$f":"IF(A293=\"\",\"\",'1. Checklist & Certification'!$C$11)","v":""},{"$f":"IF(A293=\"\",\"\",'1. Checklist & Certification'!$C$12)","v":""},{"$f":"IF(A293=\"\",\"\",'1. Checklist & Certification'!$B$14)","v":""},{"$f":"IF(A293=\"\",\"\",'1. Checklist & Certification'!$E$14)","v":""},{"$f":"IF(B293=\"\",\"\",'1. Checklist & Certification'!$G$14)","v":""},{"$f":"IF(A293=\"\",\"\",'MHP Family Income & Rent Limits'!$B$3)","v":""},{"$f":"IF(A293=\"\",\"\",'MHP Family Income & Rent Limits'!$J$3)","v":""},{"$f":"IF(A293=\"\",\"\",'MHP Family Income & Rent Limits'!$E$4)","v":""},{"$f":"IF(A293=\"\",\"\",'MHP Family Income & Rent Limits'!$C$7)","v":""},{"$f":"IF(A293=\"\",\"\",'MHP Family Income & Rent Limits'!$F$8)","v":""},{"$f":"IF(A293=\"\",\"\",'1. Checklist & Certification'!$G$4)","v":""},{"$f":"IF(A293=\"\",\"\",'1. Checklist & Certification'!$K$39)","v":""},{"$f":"IF(A293=\"\",\"\",'1. Checklist & Certification'!$K$43)","v":""},{"$f":"IF(A293=\"\",\"\",'1. Checklist & Certification'!$K$45)","v":""},{"$f":"IF(A293=\"\",\"\",'1. Checklist & Certification'!$K$49)","v":""},{"$f":"IF(A293=\"\",\"\",'1. Checklist & Certification'!$K$62)","v":""},{"$f":"IF(A293=\"\",\"\",'1. Checklist & Certification'!$E$66)","v":""},{"$f":"IF(A293=\"\",\"\",'1. Checklist & Certification'!$E$67)","v":""},{"$f":"IF(A293=\"\",\"\",'1. Checklist & Certification'!$E$68)","v":""},{"$f":"IF(A293=\"\",\"\",'1. Checklist & Certification'!$G$66)","v":""},{"$f":"IF(A293=\"\",\"\",'1. Checklist & Certification'!$H$66)","v":""},{"$f":"IF(A293=\"\",\"\",'1. Checklist & Certification'!$I$66)","v":""},{"$f":"IF(A293=\"\",\"\",'1. Checklist & Certification'!$I$67)","v":""},{"$f":"IF(A293=\"\",\"\",'1. Checklist & Certification'!$I$68)","v":""},{"$f":"IF(A293=\"\",\"\",'1. Checklist & Certification'!$B$69)","v":""},{"$f":"IF(A293=\"\",\"\",'1. Checklist & Certification'!$C$69)","v":""},{"$f":"IF(A293=\"\",\"\",'1. Checklist & Certification'!$F$69)","v":""},{"$f":"IF(A293=\"\",\"\",'1. Checklist & Certification'!$G$69)","v":""},{"$f":"IF(A293=\"\",\"\",'1. Checklist & Certification'!$J$69)","v":""},{"$f":"IF(A293=\"\",\"\",'1. Checklist & Certification'!$K$69)","v":""},null,null,{"$f":"IF(AND(OR('1. Checklist & Certification'!$M$16=1,'1. Checklist & Certification'!$M$19=2),AO293>0,B293=\"\",I293>0,AQ293<I293,AV293<>\"Sec 8-Project\"),\"X\",IF(AND(OR('1. Checklist & Certification'!$M$20=4,'1. Checklist & Certification'!$M$21=5,'1. Checklist & Certification'!$M$22=7),AO293>0,B293=\"\",I293>0,K293<I293),\"X\",\"\"))","v":""},{"$f":"IF(A293=\"\",\"\",IF(SUMPRODUCT(-- (ISNUMBER(SEARCH({\"*AHSC*\",\"*FMTW*\",\"*FWHG*\",\"*GHI*\",\"*HHC*\",\"*HLCP*\",\"*HOME*\",\"*LPR*\",\"*MHP*\",\"*NHTF*\",\"*NSP*\",\"*PRP*\",\"*TOD*\",\"*VHHP*\"},'1. Checklist & Certification'!$L$7)))),\"MHP\",\"Legacy\"))","v":""},",,",null,null,null,{"$f":"IF('1. Checklist & Certification'!$M$20=4,\"Both\",IF(OR('1. Checklist & Certification'!$M$15>0,S293=\"CHRP-R\",U293=\"CHRP-R\",W293=\"CHRP-R\",Y293=\"CHRP-R\"),\"Under\",\"No\"))","v":"No"},"No","No",{"$f":"_xlfn.IFS(D293=\"\",\"\",D293=1,'MHP Family Income & Rent Limits'!$E$17,D293=2,'MHP Family Income & Rent Limits'!$F$17,D293=3,'MHP Family Income & Rent Limits'!$G$17,D293=4,'MHP Family Income & Rent Limits'!$H$17,D293=5,'MHP Family Income & Rent Limits'!$I$17,D293=6,'MHP Family Income & Rent Limits'!$J$17,D293=7,'MHP Family Income & Rent Limits'!$K$17,D293=8,'MHP Family Income & Rent Limits'!$L$17)","v":""},"",{"$f":"IF(OR(A293=0,B293=\"X\"),0,MIN(IF(AA293:AD293<>0,AA293:AD293)))","v":0},{"$f":"IF(OR(H293=\"\",I293=\"\"),0,IF(H293*0.3/12>I293,MIN(H293*0.3/12,I293*1.1)+AP293,I293*(1+(VLOOKUP('1. Checklist & Certification'!$F$9,'HLCP-E Rent Change'!$A$1:$D$59,4,FALSE)))+AP293))","v":0}]
[null,null,null,null,null,null,null,null,null,null,null,null,null,null,null,null,null,null,null,null,null,null,null,null,null,null,0,0,0,0,0,0,0,0,{"$f":"IF(OR(A294=0,B294=\"X\"),0,IF(OR(S294=\"FHDP\",S294=\"RHCP-B\",U294=\"FHDP\",U294=\"RHCP-B\",W294=\"FHDP\",W294=\"RHCP-B\",Y294=\"FHDP\",Y294=\"RHCP-B\"),TRUNC((MIN(I294,K294)*(1+'1. Checklist & Certification'!$K$43)+AP294)),0))","v":0},{"$f":"IF(OR(A294=0,B294=\"X\"),0,IF(OR(S294=\"CHRP-R\",S294=\"SERA\",S294=\"SUHRP\",U294=\"CHRP-R\",U294=\"SERA\",U294=\"SUHRP\",W294=\"CHRP-R\",W294=\"SERA\",W294=\"SUHRP\",Y294=\"CHRP-R\",Y294=\"SERA\",Y294=\"SUHRP\"),TRUNC((MIN(I294,K294)*(1+'1. Checklist & Certification'!$K$49))),0))","v":0},{"$f":"IF(OR(A294=0,B294=\"X\"),0,IF(OR(S294=\"CALDAP\",S294=\"DPRLP\",U294=\"CALDAP\",U294=\"DPRLP\",W294=\"CALDAP\",W294=\"DPRLP\",Y294=\"CALDAP\",Y294=\"DPRLP\"),TRUNC(((MIN(I294,K294))*(1+'1. Checklist & Certification'!$G$4))),0))","v":0},0,0,0,{"$f":"IF(OR(A294=0,B294=\"X\"),0,IF(OR(S294=\"PRP\",S294=\"LPR\",U294=\"PRP\",U294=\"LPR\",W294=\"PRP\",W294=\"LPR\",Y294=\"PRP\",Y294=\"LPR\"),MAX(I294+AP294,MIN(IF(AE294:AN294<>0,AE294:AN294))),MIN(IF(AE294:AN294<>0,AE294:AN294))))","v":0},{"$f":"IF(A294=0,0,IF(AND(OR(S294=\"Mgr\",S294=0),OR(U294=\"Mgr\",U294=0),OR(W294=\"Mgr\",W294=0)),0,IF(LEFT($A294,2)=\"B*\",VLOOKUP($E294,'1. Checklist & Certification'!$D$26:$E$32,2),IF(LEFT($A294,2)=\"C*\",VLOOKUP($E294,'1. Checklist & Certification'!$F$26:$G$32,2),IF(LEFT($A294,2)=\"D*\",VLOOKUP($E294,'1. Checklist & Certification'!$H$26:$I$32,2),IF(LEFT($A294,2)=\"E*\",VLOOKUP($E294,'1. Checklist & Certification'!$J$26:$K$32,2),VLOOKUP($E294,'1. Checklist & Certification'!$A$26:$B$32,2)))))))","v":0},0,0,null,null,null,null,"","",0,0,0,null,{"$f":"IF(A294=\"\",\"\",'1. Checklist & Certification'!$K$1)","v":""},{"$f":"IF(A294=\"\",\"\",'1. Checklist & Certification'!$C$62)","v":""},{"$f":"IF(A294=\"\",\"\",'1. Checklist & Certification'!$C$6)","v":""},{"$f":"IF(A294=\"\",\"\",'1. Checklist & Certification'!$G$5)","v":""},{"$f":"IFERROR(IF(A294=\"\",\"\",\n_xlfn.LET(_xlpm.Contract,'1. Checklist & Certification'!$C$7,\n_xlpm.Yr,TEXT(MOD(_xlfn.TEXTBEFORE(_xlpm.Contract,\"-\"),100),\"00\"),\n_xlpm.Program,_xlfn.TEXTAFTER(_xlfn.TEXTBEFORE(_xlpm.Contract,\"-\",2),\"-\"),\n_xlpm.CleanProgram,_xlfn.XLOOKUP(_xlpm.Program,SpellCheck[Input],SpellCheck[Correction],_xlpm.Program),\n_xlpm.Number,TEXT(_xlfn.TEXTAFTER(_xlpm.Contract,\"-\",2),\"0000\"),\n_xlfn.CONCAT(_xlpm.Yr,\"-\",_xlpm.CleanProgram,\"-\",_xlpm.Number))\n),\"\")","v":""},{"$f":"IFERROR(IF(A294=\"\",\"\",\n_xlfn.LET(_xlpm.Contract,'1. Checklist & Certification'!$C$8,\n_xlpm.Yr,TEXT(MOD(_xlfn.TEXTBEFORE(_xlpm.Contract,\"-\"),100),\"00\"),\n_xlpm.Program,_xlfn.TEXTAFTER(_xlfn.TEXTBEFORE(_xlpm.Contract,\"-\",2),\"-\"),\n_xlpm.CleanProgram,_xlfn.XLOOKUP(_xlpm.Program,SpellCheck[Input],SpellCheck[Correction],_xlpm.Program),\n_xlpm.Number,TEXT(_xlfn.TEXTAFTER(_xlpm.Contract,\"-\",2),\"0000\"),\n_xlfn.CONCAT(_xlpm.Yr,\"-\",_xlpm.CleanProgram,\"-\",_xlpm.Number))\n),\"\")","v":""},{"$f":"IFERROR(IF(A294=\"\",\"\",\n_xlfn.LET(_xlpm.Contract,'1. Checklist & Certification'!$F$7,\n_xlpm.Yr,TEXT(MOD(_xlfn.TEXTBEFORE(_xlpm.Contract,\"-\"),100),\"00\"),\n_xlpm.Program,_xlfn.TEXTAFTER(_xlfn.TEXTBEFORE(_xlpm.Contract,\"-\",2),\"-\"),\n_xlpm.CleanProgram,_xlfn.XLOOKUP(_xlpm.Program,SpellCheck[Input],SpellCheck[Correction],_xlpm.Program),\n_xlpm.Number,TEXT(_xlfn.TEXTAFTER(_xlpm.Contract,\"-\",2),\"0000\"),\n_xlfn.CONCAT(_xlpm.Yr,\"-\",_xlpm.CleanProgram,\"-\",_xlpm.Number))\n),\"\")","v":""},{"$f":"IFERROR(IF(A294=\"\",\"\",\n_xlfn.LET(_xlpm.Contract,'1. Checklist & Certification'!$F$8,\n_xlpm.Yr,TEXT(MOD(_xlfn.TEXTBEFORE(_xlpm.Contract,\"-\"),100),\"00\"),\n_xlpm.Program,_xlfn.TEXTAFTER(_xlfn.TEXTBEFORE(_xlpm.Contract,\"-\",2),\"-\"),\n_xlpm.CleanProgram,_xlfn.XLOOKUP(_xlpm.Program,SpellCheck[Input],SpellCheck[Correction],_xlpm.Program),\n_xlpm.Number,TEXT(_xlfn.TEXTAFTER(_xlpm.Contract,\"-\",2),\"0000\"),\n_xlfn.CONCAT(_xlpm.Yr,\"-\",_xlpm.CleanProgram,\"-\",_xlpm.Number))\n),\"\")","v":""},{"$f":"IF(A294=\"\",\"\",'1. Checklist & Certification'!$B$9)","v":""},{"$f":"IF(A294=\"\",\"\",'1. Checklist & Certification'!$F$9)","v":""},{"$f":"IF(A294=\"\",\"\",'1. Checklist & Certification'!$C$10)","v":""},{"$f":"IF(A294=\"\",\"\",'1. Checklist & Certification'!$C$11)","v":""},{"$f":"IF(A294=\"\",\"\",'1. Checklist & Certification'!$C$12)","v":""},{"$f":"IF(A294=\"\",\"\",'1. Checklist & Certification'!$B$14)","v":""},{"$f":"IF(A294=\"\",\"\",'1. Checklist & Certification'!$E$14)","v":""},{"$f":"IF(B294=\"\",\"\",'1. Checklist & Certification'!$G$14)","v":""},{"$f":"IF(A294=\"\",\"\",'MHP Family Income & Rent Limits'!$B$3)","v":""},{"$f":"IF(A294=\"\",\"\",'MHP Family Income & Rent Limits'!$J$3)","v":""},{"$f":"IF(A294=\"\",\"\",'MHP Family Income & Rent Limits'!$E$4)","v":""},{"$f":"IF(A294=\"\",\"\",'MHP Family Income & Rent Limits'!$C$7)","v":""},{"$f":"IF(A294=\"\",\"\",'MHP Family Income & Rent Limits'!$F$8)","v":""},{"$f":"IF(A294=\"\",\"\",'1. Checklist & Certification'!$G$4)","v":""},{"$f":"IF(A294=\"\",\"\",'1. Checklist & Certification'!$K$39)","v":""},{"$f":"IF(A294=\"\",\"\",'1. Checklist & Certification'!$K$43)","v":""},{"$f":"IF(A294=\"\",\"\",'1. Checklist & Certification'!$K$45)","v":""},{"$f":"IF(A294=\"\",\"\",'1. Checklist & Certification'!$K$49)","v":""},{"$f":"IF(A294=\"\",\"\",'1. Checklist & Certification'!$K$62)","v":""},{"$f":"IF(A294=\"\",\"\",'1. Checklist & Certification'!$E$66)","v":""},{"$f":"IF(A294=\"\",\"\",'1. Checklist & Certification'!$E$67)","v":""},{"$f":"IF(A294=\"\",\"\",'1. Checklist & Certification'!$E$68)","v":""},{"$f":"IF(A294=\"\",\"\",'1. Checklist & Certification'!$G$66)","v":""},{"$f":"IF(A294=\"\",\"\",'1. Checklist & Certification'!$H$66)","v":""},{"$f":"IF(A294=\"\",\"\",'1. Checklist & Certification'!$I$66)","v":""},{"$f":"IF(A294=\"\",\"\",'1. Checklist & Certification'!$I$67)","v":""},{"$f":"IF(A294=\"\",\"\",'1. Checklist & Certification'!$I$68)","v":""},{"$f":"IF(A294=\"\",\"\",'1. Checklist & Certification'!$B$69)","v":""},{"$f":"IF(A294=\"\",\"\",'1. Checklist & Certification'!$C$69)","v":""},{"$f":"IF(A294=\"\",\"\",'1. Checklist & Certification'!$F$69)","v":""},{"$f":"IF(A294=\"\",\"\",'1. Checklist & Certification'!$G$69)","v":""},{"$f":"IF(A294=\"\",\"\",'1. Checklist & Certification'!$J$69)","v":""},{"$f":"IF(A294=\"\",\"\",'1. Checklist & Certification'!$K$69)","v":""},null,null,{"$f":"IF(AND(OR('1. Checklist & Certification'!$M$16=1,'1. Checklist & Certification'!$M$19=2),AO294>0,B294=\"\",I294>0,AQ294<I294,AV294<>\"Sec 8-Project\"),\"X\",IF(AND(OR('1. Checklist & Certification'!$M$20=4,'1. Checklist & Certification'!$M$21=5,'1. Checklist & Certification'!$M$22=7),AO294>0,B294=\"\",I294>0,K294<I294),\"X\",\"\"))","v":""},{"$f":"IF(A294=\"\",\"\",IF(SUMPRODUCT(-- (ISNUMBER(SEARCH({\"*AHSC*\",\"*FMTW*\",\"*FWHG*\",\"*GHI*\",\"*HHC*\",\"*HLCP*\",\"*HOME*\",\"*LPR*\",\"*MHP*\",\"*NHTF*\",\"*NSP*\",\"*PRP*\",\"*TOD*\",\"*VHHP*\"},'1. Checklist & Certification'!$L$7)))),\"MHP\",\"Legacy\"))","v":""},",,",null,null,null,{"$f":"IF('1. Checklist & Certification'!$M$20=4,\"Both\",IF(OR('1. Checklist & Certification'!$M$15>0,S294=\"CHRP-R\",U294=\"CHRP-R\",W294=\"CHRP-R\",Y294=\"CHRP-R\"),\"Under\",\"No\"))","v":"No"},"No","No",{"$f":"_xlfn.IFS(D294=\"\",\"\",D294=1,'MHP Family Income & Rent Limits'!$E$17,D294=2,'MHP Family Income & Rent Limits'!$F$17,D294=3,'MHP Family Income & Rent Limits'!$G$17,D294=4,'MHP Family Income & Rent Limits'!$H$17,D294=5,'MHP Family Income & Rent Limits'!$I$17,D294=6,'MHP Family Income & Rent Limits'!$J$17,D294=7,'MHP Family Income & Rent Limits'!$K$17,D294=8,'MHP Family Income & Rent Limits'!$L$17)","v":""},"",{"$f":"IF(OR(A294=0,B294=\"X\"),0,MIN(IF(AA294:AD294<>0,AA294:AD294)))","v":0},{"$f":"IF(OR(H294=\"\",I294=\"\"),0,IF(H294*0.3/12>I294,MIN(H294*0.3/12,I294*1.1)+AP294,I294*(1+(VLOOKUP('1. Checklist & Certification'!$F$9,'HLCP-E Rent Change'!$A$1:$D$59,4,FALSE)))+AP294))","v":0}]
[null,null,null,null,null,null,null,null,null,null,null,null,null,null,null,null,null,null,null,null,null,null,null,null,null,null,0,0,0,0,0,0,0,0,{"$f":"IF(OR(A295=0,B295=\"X\"),0,IF(OR(S295=\"FHDP\",S295=\"RHCP-B\",U295=\"FHDP\",U295=\"RHCP-B\",W295=\"FHDP\",W295=\"RHCP-B\",Y295=\"FHDP\",Y295=\"RHCP-B\"),TRUNC((MIN(I295,K295)*(1+'1. Checklist & Certification'!$K$43)+AP295)),0))","v":0},{"$f":"IF(OR(A295=0,B295=\"X\"),0,IF(OR(S295=\"CHRP-R\",S295=\"SERA\",S295=\"SUHRP\",U295=\"CHRP-R\",U295=\"SERA\",U295=\"SUHRP\",W295=\"CHRP-R\",W295=\"SERA\",W295=\"SUHRP\",Y295=\"CHRP-R\",Y295=\"SERA\",Y295=\"SUHRP\"),TRUNC((MIN(I295,K295)*(1+'1. Checklist & Certification'!$K$49))),0))","v":0},{"$f":"IF(OR(A295=0,B295=\"X\"),0,IF(OR(S295=\"CALDAP\",S295=\"DPRLP\",U295=\"CALDAP\",U295=\"DPRLP\",W295=\"CALDAP\",W295=\"DPRLP\",Y295=\"CALDAP\",Y295=\"DPRLP\"),TRUNC(((MIN(I295,K295))*(1+'1. Checklist & Certification'!$G$4))),0))","v":0},0,0,0,{"$f":"IF(OR(A295=0,B295=\"X\"),0,IF(OR(S295=\"PRP\",S295=\"LPR\",U295=\"PRP\",U295=\"LPR\",W295=\"PRP\",W295=\"LPR\",Y295=\"PRP\",Y295=\"LPR\"),MAX(I295+AP295,MIN(IF(AE295:AN295<>0,AE295:AN295))),MIN(IF(AE295:AN295<>0,AE295:AN295))))","v":0},{"$f":"IF(A295=0,0,IF(AND(OR(S295=\"Mgr\",S295=0),OR(U295=\"Mgr\",U295=0),OR(W295=\"Mgr\",W295=0)),0,IF(LEFT($A295,2)=\"B*\",VLOOKUP($E295,'1. Checklist & Certification'!$D$26:$E$32,2),IF(LEFT($A295,2)=\"C*\",VLOOKUP($E295,'1. Checklist & Certification'!$F$26:$G$32,2),IF(LEFT($A295,2)=\"D*\",VLOOKUP($E295,'1. Checklist & Certification'!$H$26:$I$32,2),IF(LEFT($A295,2)=\"E*\",VLOOKUP($E295,'1. Checklist & Certification'!$J$26:$K$32,2),VLOOKUP($E295,'1. Checklist & Certification'!$A$26:$B$32,2)))))))","v":0},0,0,null,null,null,null,"","",0,0,0,null,{"$f":"IF(A295=\"\",\"\",'1. Checklist & Certification'!$K$1)","v":""},{"$f":"IF(A295=\"\",\"\",'1. Checklist & Certification'!$C$62)","v":""},{"$f":"IF(A295=\"\",\"\",'1. Checklist & Certification'!$C$6)","v":""},{"$f":"IF(A295=\"\",\"\",'1. Checklist & Certification'!$G$5)","v":""},{"$f":"IFERROR(IF(A295=\"\",\"\",\n_xlfn.LET(_xlpm.Contract,'1. Checklist & Certification'!$C$7,\n_xlpm.Yr,TEXT(MOD(_xlfn.TEXTBEFORE(_xlpm.Contract,\"-\"),100),\"00\"),\n_xlpm.Program,_xlfn.TEXTAFTER(_xlfn.TEXTBEFORE(_xlpm.Contract,\"-\",2),\"-\"),\n_xlpm.CleanProgram,_xlfn.XLOOKUP(_xlpm.Program,SpellCheck[Input],SpellCheck[Correction],_xlpm.Program),\n_xlpm.Number,TEXT(_xlfn.TEXTAFTER(_xlpm.Contract,\"-\",2),\"0000\"),\n_xlfn.CONCAT(_xlpm.Yr,\"-\",_xlpm.CleanProgram,\"-\",_xlpm.Number))\n),\"\")","v":""},{"$f":"IFERROR(IF(A295=\"\",\"\",\n_xlfn.LET(_xlpm.Contract,'1. Checklist & Certification'!$C$8,\n_xlpm.Yr,TEXT(MOD(_xlfn.TEXTBEFORE(_xlpm.Contract,\"-\"),100),\"00\"),\n_xlpm.Program,_xlfn.TEXTAFTER(_xlfn.TEXTBEFORE(_xlpm.Contract,\"-\",2),\"-\"),\n_xlpm.CleanProgram,_xlfn.XLOOKUP(_xlpm.Program,SpellCheck[Input],SpellCheck[Correction],_xlpm.Program),\n_xlpm.Number,TEXT(_xlfn.TEXTAFTER(_xlpm.Contract,\"-\",2),\"0000\"),\n_xlfn.CONCAT(_xlpm.Yr,\"-\",_xlpm.CleanProgram,\"-\",_xlpm.Number))\n),\"\")","v":""},{"$f":"IFERROR(IF(A295=\"\",\"\",\n_xlfn.LET(_xlpm.Contract,'1. Checklist & Certification'!$F$7,\n_xlpm.Yr,TEXT(MOD(_xlfn.TEXTBEFORE(_xlpm.Contract,\"-\"),100),\"00\"),\n_xlpm.Program,_xlfn.TEXTAFTER(_xlfn.TEXTBEFORE(_xlpm.Contract,\"-\",2),\"-\"),\n_xlpm.CleanProgram,_xlfn.XLOOKUP(_xlpm.Program,SpellCheck[Input],SpellCheck[Correction],_xlpm.Program),\n_xlpm.Number,TEXT(_xlfn.TEXTAFTER(_xlpm.Contract,\"-\",2),\"0000\"),\n_xlfn.CONCAT(_xlpm.Yr,\"-\",_xlpm.CleanProgram,\"-\",_xlpm.Number))\n),\"\")","v":""},{"$f":"IFERROR(IF(A295=\"\",\"\",\n_xlfn.LET(_xlpm.Contract,'1. Checklist & Certification'!$F$8,\n_xlpm.Yr,TEXT(MOD(_xlfn.TEXTBEFORE(_xlpm.Contract,\"-\"),100),\"00\"),\n_xlpm.Program,_xlfn.TEXTAFTER(_xlfn.TEXTBEFORE(_xlpm.Contract,\"-\",2),\"-\"),\n_xlpm.CleanProgram,_xlfn.XLOOKUP(_xlpm.Program,SpellCheck[Input],SpellCheck[Correction],_xlpm.Program),\n_xlpm.Number,TEXT(_xlfn.TEXTAFTER(_xlpm.Contract,\"-\",2),\"0000\"),\n_xlfn.CONCAT(_xlpm.Yr,\"-\",_xlpm.CleanProgram,\"-\",_xlpm.Number))\n),\"\")","v":""},{"$f":"IF(A295=\"\",\"\",'1. Checklist & Certification'!$B$9)","v":""},{"$f":"IF(A295=\"\",\"\",'1. Checklist & Certification'!$F$9)","v":""},{"$f":"IF(A295=\"\",\"\",'1. Checklist & Certification'!$C$10)","v":""},{"$f":"IF(A295=\"\",\"\",'1. Checklist & Certification'!$C$11)","v":""},{"$f":"IF(A295=\"\",\"\",'1. Checklist & Certification'!$C$12)","v":""},{"$f":"IF(A295=\"\",\"\",'1. Checklist & Certification'!$B$14)","v":""},{"$f":"IF(A295=\"\",\"\",'1. Checklist & Certification'!$E$14)","v":""},{"$f":"IF(B295=\"\",\"\",'1. Checklist & Certification'!$G$14)","v":""},{"$f":"IF(A295=\"\",\"\",'MHP Family Income & Rent Limits'!$B$3)","v":""},{"$f":"IF(A295=\"\",\"\",'MHP Family Income & Rent Limits'!$J$3)","v":""},{"$f":"IF(A295=\"\",\"\",'MHP Family Income & Rent Limits'!$E$4)","v":""},{"$f":"IF(A295=\"\",\"\",'MHP Family Income & Rent Limits'!$C$7)","v":""},{"$f":"IF(A295=\"\",\"\",'MHP Family Income & Rent Limits'!$F$8)","v":""},{"$f":"IF(A295=\"\",\"\",'1. Checklist & Certification'!$G$4)","v":""},{"$f":"IF(A295=\"\",\"\",'1. Checklist & Certification'!$K$39)","v":""},{"$f":"IF(A295=\"\",\"\",'1. Checklist & Certification'!$K$43)","v":""},{"$f":"IF(A295=\"\",\"\",'1. Checklist & Certification'!$K$45)","v":""},{"$f":"IF(A295=\"\",\"\",'1. Checklist & Certification'!$K$49)","v":""},{"$f":"IF(A295=\"\",\"\",'1. Checklist & Certification'!$K$62)","v":""},{"$f":"IF(A295=\"\",\"\",'1. Checklist & Certification'!$E$66)","v":""},{"$f":"IF(A295=\"\",\"\",'1. Checklist & Certification'!$E$67)","v":""},{"$f":"IF(A295=\"\",\"\",'1. Checklist & Certification'!$E$68)","v":""},{"$f":"IF(A295=\"\",\"\",'1. Checklist & Certification'!$G$66)","v":""},{"$f":"IF(A295=\"\",\"\",'1. Checklist & Certification'!$H$66)","v":""},{"$f":"IF(A295=\"\",\"\",'1. Checklist & Certification'!$I$66)","v":""},{"$f":"IF(A295=\"\",\"\",'1. Checklist & Certification'!$I$67)","v":""},{"$f":"IF(A295=\"\",\"\",'1. Checklist & Certification'!$I$68)","v":""},{"$f":"IF(A295=\"\",\"\",'1. Checklist & Certification'!$B$69)","v":""},{"$f":"IF(A295=\"\",\"\",'1. Checklist & Certification'!$C$69)","v":""},{"$f":"IF(A295=\"\",\"\",'1. Checklist & Certification'!$F$69)","v":""},{"$f":"IF(A295=\"\",\"\",'1. Checklist & Certification'!$G$69)","v":""},{"$f":"IF(A295=\"\",\"\",'1. Checklist & Certification'!$J$69)","v":""},{"$f":"IF(A295=\"\",\"\",'1. Checklist & Certification'!$K$69)","v":""},null,null,{"$f":"IF(AND(OR('1. Checklist & Certification'!$M$16=1,'1. Checklist & Certification'!$M$19=2),AO295>0,B295=\"\",I295>0,AQ295<I295,AV295<>\"Sec 8-Project\"),\"X\",IF(AND(OR('1. Checklist & Certification'!$M$20=4,'1. Checklist & Certification'!$M$21=5,'1. Checklist & Certification'!$M$22=7),AO295>0,B295=\"\",I295>0,K295<I295),\"X\",\"\"))","v":""},{"$f":"IF(A295=\"\",\"\",IF(SUMPRODUCT(-- (ISNUMBER(SEARCH({\"*AHSC*\",\"*FMTW*\",\"*FWHG*\",\"*GHI*\",\"*HHC*\",\"*HLCP*\",\"*HOME*\",\"*LPR*\",\"*MHP*\",\"*NHTF*\",\"*NSP*\",\"*PRP*\",\"*TOD*\",\"*VHHP*\"},'1. Checklist & Certification'!$L$7)))),\"MHP\",\"Legacy\"))","v":""},",,",null,null,null,{"$f":"IF('1. Checklist & Certification'!$M$20=4,\"Both\",IF(OR('1. Checklist & Certification'!$M$15>0,S295=\"CHRP-R\",U295=\"CHRP-R\",W295=\"CHRP-R\",Y295=\"CHRP-R\"),\"Under\",\"No\"))","v":"No"},"No","No",{"$f":"_xlfn.IFS(D295=\"\",\"\",D295=1,'MHP Family Income & Rent Limits'!$E$17,D295=2,'MHP Family Income & Rent Limits'!$F$17,D295=3,'MHP Family Income & Rent Limits'!$G$17,D295=4,'MHP Family Income & Rent Limits'!$H$17,D295=5,'MHP Family Income & Rent Limits'!$I$17,D295=6,'MHP Family Income & Rent Limits'!$J$17,D295=7,'MHP Family Income & Rent Limits'!$K$17,D295=8,'MHP Family Income & Rent Limits'!$L$17)","v":""},"",{"$f":"IF(OR(A295=0,B295=\"X\"),0,MIN(IF(AA295:AD295<>0,AA295:AD295)))","v":0},{"$f":"IF(OR(H295=\"\",I295=\"\"),0,IF(H295*0.3/12>I295,MIN(H295*0.3/12,I295*1.1)+AP295,I295*(1+(VLOOKUP('1. Checklist & Certification'!$F$9,'HLCP-E Rent Change'!$A$1:$D$59,4,FALSE)))+AP295))","v":0}]
[null,null,null,null,null,null,null,null,null,null,null,null,null,null,null,null,null,null,null,null,null,null,null,null,null,null,0,0,0,0,0,0,0,0,{"$f":"IF(OR(A296=0,B296=\"X\"),0,IF(OR(S296=\"FHDP\",S296=\"RHCP-B\",U296=\"FHDP\",U296=\"RHCP-B\",W296=\"FHDP\",W296=\"RHCP-B\",Y296=\"FHDP\",Y296=\"RHCP-B\"),TRUNC((MIN(I296,K296)*(1+'1. Checklist & Certification'!$K$43)+AP296)),0))","v":0},{"$f":"IF(OR(A296=0,B296=\"X\"),0,IF(OR(S296=\"CHRP-R\",S296=\"SERA\",S296=\"SUHRP\",U296=\"CHRP-R\",U296=\"SERA\",U296=\"SUHRP\",W296=\"CHRP-R\",W296=\"SERA\",W296=\"SUHRP\",Y296=\"CHRP-R\",Y296=\"SERA\",Y296=\"SUHRP\"),TRUNC((MIN(I296,K296)*(1+'1. Checklist & Certification'!$K$49))),0))","v":0},{"$f":"IF(OR(A296=0,B296=\"X\"),0,IF(OR(S296=\"CALDAP\",S296=\"DPRLP\",U296=\"CALDAP\",U296=\"DPRLP\",W296=\"CALDAP\",W296=\"DPRLP\",Y296=\"CALDAP\",Y296=\"DPRLP\"),TRUNC(((MIN(I296,K296))*(1+'1. Checklist & Certification'!$G$4))),0))","v":0},0,0,0,{"$f":"IF(OR(A296=0,B296=\"X\"),0,IF(OR(S296=\"PRP\",S296=\"LPR\",U296=\"PRP\",U296=\"LPR\",W296=\"PRP\",W296=\"LPR\",Y296=\"PRP\",Y296=\"LPR\"),MAX(I296+AP296,MIN(IF(AE296:AN296<>0,AE296:AN296))),MIN(IF(AE296:AN296<>0,AE296:AN296))))","v":0},{"$f":"IF(A296=0,0,IF(AND(OR(S296=\"Mgr\",S296=0),OR(U296=\"Mgr\",U296=0),OR(W296=\"Mgr\",W296=0)),0,IF(LEFT($A296,2)=\"B*\",VLOOKUP($E296,'1. Checklist & Certification'!$D$26:$E$32,2),IF(LEFT($A296,2)=\"C*\",VLOOKUP($E296,'1. Checklist & Certification'!$F$26:$G$32,2),IF(LEFT($A296,2)=\"D*\",VLOOKUP($E296,'1. Checklist & Certification'!$H$26:$I$32,2),IF(LEFT($A296,2)=\"E*\",VLOOKUP($E296,'1. Checklist & Certification'!$J$26:$K$32,2),VLOOKUP($E296,'1. Checklist & Certification'!$A$26:$B$32,2)))))))","v":0},0,0,null,null,null,null,"","",0,0,0,null,{"$f":"IF(A296=\"\",\"\",'1. Checklist & Certification'!$K$1)","v":""},{"$f":"IF(A296=\"\",\"\",'1. Checklist & Certification'!$C$62)","v":""},{"$f":"IF(A296=\"\",\"\",'1. Checklist & Certification'!$C$6)","v":""},{"$f":"IF(A296=\"\",\"\",'1. Checklist & Certification'!$G$5)","v":""},{"$f":"IFERROR(IF(A296=\"\",\"\",\n_xlfn.LET(_xlpm.Contract,'1. Checklist & Certification'!$C$7,\n_xlpm.Yr,TEXT(MOD(_xlfn.TEXTBEFORE(_xlpm.Contract,\"-\"),100),\"00\"),\n_xlpm.Program,_xlfn.TEXTAFTER(_xlfn.TEXTBEFORE(_xlpm.Contract,\"-\",2),\"-\"),\n_xlpm.CleanProgram,_xlfn.XLOOKUP(_xlpm.Program,SpellCheck[Input],SpellCheck[Correction],_xlpm.Program),\n_xlpm.Number,TEXT(_xlfn.TEXTAFTER(_xlpm.Contract,\"-\",2),\"0000\"),\n_xlfn.CONCAT(_xlpm.Yr,\"-\",_xlpm.CleanProgram,\"-\",_xlpm.Number))\n),\"\")","v":""},{"$f":"IFERROR(IF(A296=\"\",\"\",\n_xlfn.LET(_xlpm.Contract,'1. Checklist & Certification'!$C$8,\n_xlpm.Yr,TEXT(MOD(_xlfn.TEXTBEFORE(_xlpm.Contract,\"-\"),100),\"00\"),\n_xlpm.Program,_xlfn.TEXTAFTER(_xlfn.TEXTBEFORE(_xlpm.Contract,\"-\",2),\"-\"),\n_xlpm.CleanProgram,_xlfn.XLOOKUP(_xlpm.Program,SpellCheck[Input],SpellCheck[Correction],_xlpm.Program),\n_xlpm.Number,TEXT(_xlfn.TEXTAFTER(_xlpm.Contract,\"-\",2),\"0000\"),\n_xlfn.CONCAT(_xlpm.Yr,\"-\",_xlpm.CleanProgram,\"-\",_xlpm.Number))\n),\"\")","v":""},{"$f":"IFERROR(IF(A296=\"\",\"\",\n_xlfn.LET(_xlpm.Contract,'1. Checklist & Certification'!$F$7,\n_xlpm.Yr,TEXT(MOD(_xlfn.TEXTBEFORE(_xlpm.Contract,\"-\"),100),\"00\"),\n_xlpm.Program,_xlfn.TEXTAFTER(_xlfn.TEXTBEFORE(_xlpm.Contract,\"-\",2),\"-\"),\n_xlpm.CleanProgram,_xlfn.XLOOKUP(_xlpm.Program,SpellCheck[Input],SpellCheck[Correction],_xlpm.Program),\n_xlpm.Number,TEXT(_xlfn.TEXTAFTER(_xlpm.Contract,\"-\",2),\"0000\"),\n_xlfn.CONCAT(_xlpm.Yr,\"-\",_xlpm.CleanProgram,\"-\",_xlpm.Number))\n),\"\")","v":""},{"$f":"IFERROR(IF(A296=\"\",\"\",\n_xlfn.LET(_xlpm.Contract,'1. Checklist & Certification'!$F$8,\n_xlpm.Yr,TEXT(MOD(_xlfn.TEXTBEFORE(_xlpm.Contract,\"-\"),100),\"00\"),\n_xlpm.Program,_xlfn.TEXTAFTER(_xlfn.TEXTBEFORE(_xlpm.Contract,\"-\",2),\"-\"),\n_xlpm.CleanProgram,_xlfn.XLOOKUP(_xlpm.Program,SpellCheck[Input],SpellCheck[Correction],_xlpm.Program),\n_xlpm.Number,TEXT(_xlfn.TEXTAFTER(_xlpm.Contract,\"-\",2),\"0000\"),\n_xlfn.CONCAT(_xlpm.Yr,\"-\",_xlpm.CleanProgram,\"-\",_xlpm.Number))\n),\"\")","v":""},{"$f":"IF(A296=\"\",\"\",'1. Checklist & Certification'!$B$9)","v":""},{"$f":"IF(A296=\"\",\"\",'1. Checklist & Certification'!$F$9)","v":""},{"$f":"IF(A296=\"\",\"\",'1. Checklist & Certification'!$C$10)","v":""},{"$f":"IF(A296=\"\",\"\",'1. Checklist & Certification'!$C$11)","v":""},{"$f":"IF(A296=\"\",\"\",'1. Checklist & Certification'!$C$12)","v":""},{"$f":"IF(A296=\"\",\"\",'1. Checklist & Certification'!$B$14)","v":""},{"$f":"IF(A296=\"\",\"\",'1. Checklist & Certification'!$E$14)","v":""},{"$f":"IF(B296=\"\",\"\",'1. Checklist & Certification'!$G$14)","v":""},{"$f":"IF(A296=\"\",\"\",'MHP Family Income & Rent Limits'!$B$3)","v":""},{"$f":"IF(A296=\"\",\"\",'MHP Family Income & Rent Limits'!$J$3)","v":""},{"$f":"IF(A296=\"\",\"\",'MHP Family Income & Rent Limits'!$E$4)","v":""},{"$f":"IF(A296=\"\",\"\",'MHP Family Income & Rent Limits'!$C$7)","v":""},{"$f":"IF(A296=\"\",\"\",'MHP Family Income & Rent Limits'!$F$8)","v":""},{"$f":"IF(A296=\"\",\"\",'1. Checklist & Certification'!$G$4)","v":""},{"$f":"IF(A296=\"\",\"\",'1. Checklist & Certification'!$K$39)","v":""},{"$f":"IF(A296=\"\",\"\",'1. Checklist & Certification'!$K$43)","v":""},{"$f":"IF(A296=\"\",\"\",'1. Checklist & Certification'!$K$45)","v":""},{"$f":"IF(A296=\"\",\"\",'1. Checklist & Certification'!$K$49)","v":""},{"$f":"IF(A296=\"\",\"\",'1. Checklist & Certification'!$K$62)","v":""},{"$f":"IF(A296=\"\",\"\",'1. Checklist & Certification'!$E$66)","v":""},{"$f":"IF(A296=\"\",\"\",'1. Checklist & Certification'!$E$67)","v":""},{"$f":"IF(A296=\"\",\"\",'1. Checklist & Certification'!$E$68)","v":""},{"$f":"IF(A296=\"\",\"\",'1. Checklist & Certification'!$G$66)","v":""},{"$f":"IF(A296=\"\",\"\",'1. Checklist & Certification'!$H$66)","v":""},{"$f":"IF(A296=\"\",\"\",'1. Checklist & Certification'!$I$66)","v":""},{"$f":"IF(A296=\"\",\"\",'1. Checklist & Certification'!$I$67)","v":""},{"$f":"IF(A296=\"\",\"\",'1. Checklist & Certification'!$I$68)","v":""},{"$f":"IF(A296=\"\",\"\",'1. Checklist & Certification'!$B$69)","v":""},{"$f":"IF(A296=\"\",\"\",'1. Checklist & Certification'!$C$69)","v":""},{"$f":"IF(A296=\"\",\"\",'1. Checklist & Certification'!$F$69)","v":""},{"$f":"IF(A296=\"\",\"\",'1. Checklist & Certification'!$G$69)","v":""},{"$f":"IF(A296=\"\",\"\",'1. Checklist & Certification'!$J$69)","v":""},{"$f":"IF(A296=\"\",\"\",'1. Checklist & Certification'!$K$69)","v":""},null,null,{"$f":"IF(AND(OR('1. Checklist & Certification'!$M$16=1,'1. Checklist & Certification'!$M$19=2),AO296>0,B296=\"\",I296>0,AQ296<I296,AV296<>\"Sec 8-Project\"),\"X\",IF(AND(OR('1. Checklist & Certification'!$M$20=4,'1. Checklist & Certification'!$M$21=5,'1. Checklist & Certification'!$M$22=7),AO296>0,B296=\"\",I296>0,K296<I296),\"X\",\"\"))","v":""},{"$f":"IF(A296=\"\",\"\",IF(SUMPRODUCT(-- (ISNUMBER(SEARCH({\"*AHSC*\",\"*FMTW*\",\"*FWHG*\",\"*GHI*\",\"*HHC*\",\"*HLCP*\",\"*HOME*\",\"*LPR*\",\"*MHP*\",\"*NHTF*\",\"*NSP*\",\"*PRP*\",\"*TOD*\",\"*VHHP*\"},'1. Checklist & Certification'!$L$7)))),\"MHP\",\"Legacy\"))","v":""},",,",null,null,null,{"$f":"IF('1. Checklist & Certification'!$M$20=4,\"Both\",IF(OR('1. Checklist & Certification'!$M$15>0,S296=\"CHRP-R\",U296=\"CHRP-R\",W296=\"CHRP-R\",Y296=\"CHRP-R\"),\"Under\",\"No\"))","v":"No"},"No","No",{"$f":"_xlfn.IFS(D296=\"\",\"\",D296=1,'MHP Family Income & Rent Limits'!$E$17,D296=2,'MHP Family Income & Rent Limits'!$F$17,D296=3,'MHP Family Income & Rent Limits'!$G$17,D296=4,'MHP Family Income & Rent Limits'!$H$17,D296=5,'MHP Family Income & Rent Limits'!$I$17,D296=6,'MHP Family Income & Rent Limits'!$J$17,D296=7,'MHP Family Income & Rent Limits'!$K$17,D296=8,'MHP Family Income & Rent Limits'!$L$17)","v":""},"",{"$f":"IF(OR(A296=0,B296=\"X\"),0,MIN(IF(AA296:AD296<>0,AA296:AD296)))","v":0},{"$f":"IF(OR(H296=\"\",I296=\"\"),0,IF(H296*0.3/12>I296,MIN(H296*0.3/12,I296*1.1)+AP296,I296*(1+(VLOOKUP('1. Checklist & Certification'!$F$9,'HLCP-E Rent Change'!$A$1:$D$59,4,FALSE)))+AP296))","v":0}]
[null,null,null,null,null,null,null,null,null,null,null,null,null,null,null,null,null,null,null,null,null,null,null,null,null,null,0,0,0,0,0,0,0,0,{"$f":"IF(OR(A297=0,B297=\"X\"),0,IF(OR(S297=\"FHDP\",S297=\"RHCP-B\",U297=\"FHDP\",U297=\"RHCP-B\",W297=\"FHDP\",W297=\"RHCP-B\",Y297=\"FHDP\",Y297=\"RHCP-B\"),TRUNC((MIN(I297,K297)*(1+'1. Checklist & Certification'!$K$43)+AP297)),0))","v":0},{"$f":"IF(OR(A297=0,B297=\"X\"),0,IF(OR(S297=\"CHRP-R\",S297=\"SERA\",S297=\"SUHRP\",U297=\"CHRP-R\",U297=\"SERA\",U297=\"SUHRP\",W297=\"CHRP-R\",W297=\"SERA\",W297=\"SUHRP\",Y297=\"CHRP-R\",Y297=\"SERA\",Y297=\"SUHRP\"),TRUNC((MIN(I297,K297)*(1+'1. Checklist & Certification'!$K$49))),0))","v":0},{"$f":"IF(OR(A297=0,B297=\"X\"),0,IF(OR(S297=\"CALDAP\",S297=\"DPRLP\",U297=\"CALDAP\",U297=\"DPRLP\",W297=\"CALDAP\",W297=\"DPRLP\",Y297=\"CALDAP\",Y297=\"DPRLP\"),TRUNC(((MIN(I297,K297))*(1+'1. Checklist & Certification'!$G$4))),0))","v":0},0,0,0,{"$f":"IF(OR(A297=0,B297=\"X\"),0,IF(OR(S297=\"PRP\",S297=\"LPR\",U297=\"PRP\",U297=\"LPR\",W297=\"PRP\",W297=\"LPR\",Y297=\"PRP\",Y297=\"LPR\"),MAX(I297+AP297,MIN(IF(AE297:AN297<>0,AE297:AN297))),MIN(IF(AE297:AN297<>0,AE297:AN297))))","v":0},{"$f":"IF(A297=0,0,IF(AND(OR(S297=\"Mgr\",S297=0),OR(U297=\"Mgr\",U297=0),OR(W297=\"Mgr\",W297=0)),0,IF(LEFT($A297,2)=\"B*\",VLOOKUP($E297,'1. Checklist & Certification'!$D$26:$E$32,2),IF(LEFT($A297,2)=\"C*\",VLOOKUP($E297,'1. Checklist & Certification'!$F$26:$G$32,2),IF(LEFT($A297,2)=\"D*\",VLOOKUP($E297,'1. Checklist & Certification'!$H$26:$I$32,2),IF(LEFT($A297,2)=\"E*\",VLOOKUP($E297,'1. Checklist & Certification'!$J$26:$K$32,2),VLOOKUP($E297,'1. Checklist & Certification'!$A$26:$B$32,2)))))))","v":0},0,0,null,null,null,null,"","",0,0,0,null,{"$f":"IF(A297=\"\",\"\",'1. Checklist & Certification'!$K$1)","v":""},{"$f":"IF(A297=\"\",\"\",'1. Checklist & Certification'!$C$62)","v":""},{"$f":"IF(A297=\"\",\"\",'1. Checklist & Certification'!$C$6)","v":""},{"$f":"IF(A297=\"\",\"\",'1. Checklist & Certification'!$G$5)","v":""},{"$f":"IFERROR(IF(A297=\"\",\"\",\n_xlfn.LET(_xlpm.Contract,'1. Checklist & Certification'!$C$7,\n_xlpm.Yr,TEXT(MOD(_xlfn.TEXTBEFORE(_xlpm.Contract,\"-\"),100),\"00\"),\n_xlpm.Program,_xlfn.TEXTAFTER(_xlfn.TEXTBEFORE(_xlpm.Contract,\"-\",2),\"-\"),\n_xlpm.CleanProgram,_xlfn.XLOOKUP(_xlpm.Program,SpellCheck[Input],SpellCheck[Correction],_xlpm.Program),\n_xlpm.Number,TEXT(_xlfn.TEXTAFTER(_xlpm.Contract,\"-\",2),\"0000\"),\n_xlfn.CONCAT(_xlpm.Yr,\"-\",_xlpm.CleanProgram,\"-\",_xlpm.Number))\n),\"\")","v":""},{"$f":"IFERROR(IF(A297=\"\",\"\",\n_xlfn.LET(_xlpm.Contract,'1. Checklist & Certification'!$C$8,\n_xlpm.Yr,TEXT(MOD(_xlfn.TEXTBEFORE(_xlpm.Contract,\"-\"),100),\"00\"),\n_xlpm.Program,_xlfn.TEXTAFTER(_xlfn.TEXTBEFORE(_xlpm.Contract,\"-\",2),\"-\"),\n_xlpm.CleanProgram,_xlfn.XLOOKUP(_xlpm.Program,SpellCheck[Input],SpellCheck[Correction],_xlpm.Program),\n_xlpm.Number,TEXT(_xlfn.TEXTAFTER(_xlpm.Contract,\"-\",2),\"0000\"),\n_xlfn.CONCAT(_xlpm.Yr,\"-\",_xlpm.CleanProgram,\"-\",_xlpm.Number))\n),\"\")","v":""},{"$f":"IFERROR(IF(A297=\"\",\"\",\n_xlfn.LET(_xlpm.Contract,'1. Checklist & Certification'!$F$7,\n_xlpm.Yr,TEXT(MOD(_xlfn.TEXTBEFORE(_xlpm.Contract,\"-\"),100),\"00\"),\n_xlpm.Program,_xlfn.TEXTAFTER(_xlfn.TEXTBEFORE(_xlpm.Contract,\"-\",2),\"-\"),\n_xlpm.CleanProgram,_xlfn.XLOOKUP(_xlpm.Program,SpellCheck[Input],SpellCheck[Correction],_xlpm.Program),\n_xlpm.Number,TEXT(_xlfn.TEXTAFTER(_xlpm.Contract,\"-\",2),\"0000\"),\n_xlfn.CONCAT(_xlpm.Yr,\"-\",_xlpm.CleanProgram,\"-\",_xlpm.Number))\n),\"\")","v":""},{"$f":"IFERROR(IF(A297=\"\",\"\",\n_xlfn.LET(_xlpm.Contract,'1. Checklist & Certification'!$F$8,\n_xlpm.Yr,TEXT(MOD(_xlfn.TEXTBEFORE(_xlpm.Contract,\"-\"),100),\"00\"),\n_xlpm.Program,_xlfn.TEXTAFTER(_xlfn.TEXTBEFORE(_xlpm.Contract,\"-\",2),\"-\"),\n_xlpm.CleanProgram,_xlfn.XLOOKUP(_xlpm.Program,SpellCheck[Input],SpellCheck[Correction],_xlpm.Program),\n_xlpm.Number,TEXT(_xlfn.TEXTAFTER(_xlpm.Contract,\"-\",2),\"0000\"),\n_xlfn.CONCAT(_xlpm.Yr,\"-\",_xlpm.CleanProgram,\"-\",_xlpm.Number))\n),\"\")","v":""},{"$f":"IF(A297=\"\",\"\",'1. Checklist & Certification'!$B$9)","v":""},{"$f":"IF(A297=\"\",\"\",'1. Checklist & Certification'!$F$9)","v":""},{"$f":"IF(A297=\"\",\"\",'1. Checklist & Certification'!$C$10)","v":""},{"$f":"IF(A297=\"\",\"\",'1. Checklist & Certification'!$C$11)","v":""},{"$f":"IF(A297=\"\",\"\",'1. Checklist & Certification'!$C$12)","v":""},{"$f":"IF(A297=\"\",\"\",'1. Checklist & Certification'!$B$14)","v":""},{"$f":"IF(A297=\"\",\"\",'1. Checklist & Certification'!$E$14)","v":""},{"$f":"IF(B297=\"\",\"\",'1. Checklist & Certification'!$G$14)","v":""},{"$f":"IF(A297=\"\",\"\",'MHP Family Income & Rent Limits'!$B$3)","v":""},{"$f":"IF(A297=\"\",\"\",'MHP Family Income & Rent Limits'!$J$3)","v":""},{"$f":"IF(A297=\"\",\"\",'MHP Family Income & Rent Limits'!$E$4)","v":""},{"$f":"IF(A297=\"\",\"\",'MHP Family Income & Rent Limits'!$C$7)","v":""},{"$f":"IF(A297=\"\",\"\",'MHP Family Income & Rent Limits'!$F$8)","v":""},{"$f":"IF(A297=\"\",\"\",'1. Checklist & Certification'!$G$4)","v":""},{"$f":"IF(A297=\"\",\"\",'1. Checklist & Certification'!$K$39)","v":""},{"$f":"IF(A297=\"\",\"\",'1. Checklist & Certification'!$K$43)","v":""},{"$f":"IF(A297=\"\",\"\",'1. Checklist & Certification'!$K$45)","v":""},{"$f":"IF(A297=\"\",\"\",'1. Checklist & Certification'!$K$49)","v":""},{"$f":"IF(A297=\"\",\"\",'1. Checklist & Certification'!$K$62)","v":""},{"$f":"IF(A297=\"\",\"\",'1. Checklist & Certification'!$E$66)","v":""},{"$f":"IF(A297=\"\",\"\",'1. Checklist & Certification'!$E$67)","v":""},{"$f":"IF(A297=\"\",\"\",'1. Checklist & Certification'!$E$68)","v":""},{"$f":"IF(A297=\"\",\"\",'1. Checklist & Certification'!$G$66)","v":""},{"$f":"IF(A297=\"\",\"\",'1. Checklist & Certification'!$H$66)","v":""},{"$f":"IF(A297=\"\",\"\",'1. Checklist & Certification'!$I$66)","v":""},{"$f":"IF(A297=\"\",\"\",'1. Checklist & Certification'!$I$67)","v":""},{"$f":"IF(A297=\"\",\"\",'1. Checklist & Certification'!$I$68)","v":""},{"$f":"IF(A297=\"\",\"\",'1. Checklist & Certification'!$B$69)","v":""},{"$f":"IF(A297=\"\",\"\",'1. Checklist & Certification'!$C$69)","v":""},{"$f":"IF(A297=\"\",\"\",'1. Checklist & Certification'!$F$69)","v":""},{"$f":"IF(A297=\"\",\"\",'1. Checklist & Certification'!$G$69)","v":""},{"$f":"IF(A297=\"\",\"\",'1. Checklist & Certification'!$J$69)","v":""},{"$f":"IF(A297=\"\",\"\",'1. Checklist & Certification'!$K$69)","v":""},null,null,{"$f":"IF(AND(OR('1. Checklist & Certification'!$M$16=1,'1. Checklist & Certification'!$M$19=2),AO297>0,B297=\"\",I297>0,AQ297<I297,AV297<>\"Sec 8-Project\"),\"X\",IF(AND(OR('1. Checklist & Certification'!$M$20=4,'1. Checklist & Certification'!$M$21=5,'1. Checklist & Certification'!$M$22=7),AO297>0,B297=\"\",I297>0,K297<I297),\"X\",\"\"))","v":""},{"$f":"IF(A297=\"\",\"\",IF(SUMPRODUCT(-- (ISNUMBER(SEARCH({\"*AHSC*\",\"*FMTW*\",\"*FWHG*\",\"*GHI*\",\"*HHC*\",\"*HLCP*\",\"*HOME*\",\"*LPR*\",\"*MHP*\",\"*NHTF*\",\"*NSP*\",\"*PRP*\",\"*TOD*\",\"*VHHP*\"},'1. Checklist & Certification'!$L$7)))),\"MHP\",\"Legacy\"))","v":""},",,",null,null,null,{"$f":"IF('1. Checklist & Certification'!$M$20=4,\"Both\",IF(OR('1. Checklist & Certification'!$M$15>0,S297=\"CHRP-R\",U297=\"CHRP-R\",W297=\"CHRP-R\",Y297=\"CHRP-R\"),\"Under\",\"No\"))","v":"No"},"No","No",{"$f":"_xlfn.IFS(D297=\"\",\"\",D297=1,'MHP Family Income & Rent Limits'!$E$17,D297=2,'MHP Family Income & Rent Limits'!$F$17,D297=3,'MHP Family Income & Rent Limits'!$G$17,D297=4,'MHP Family Income & Rent Limits'!$H$17,D297=5,'MHP Family Income & Rent Limits'!$I$17,D297=6,'MHP Family Income & Rent Limits'!$J$17,D297=7,'MHP Family Income & Rent Limits'!$K$17,D297=8,'MHP Family Income & Rent Limits'!$L$17)","v":""},"",{"$f":"IF(OR(A297=0,B297=\"X\"),0,MIN(IF(AA297:AD297<>0,AA297:AD297)))","v":0},{"$f":"IF(OR(H297=\"\",I297=\"\"),0,IF(H297*0.3/12>I297,MIN(H297*0.3/12,I297*1.1)+AP297,I297*(1+(VLOOKUP('1. Checklist & Certification'!$F$9,'HLCP-E Rent Change'!$A$1:$D$59,4,FALSE)))+AP297))","v":0}]
[null,null,null,null,null,null,null,null,null,null,null,null,null,null,null,null,null,null,null,null,null,null,null,null,null,null,0,0,0,0,0,0,0,0,{"$f":"IF(OR(A298=0,B298=\"X\"),0,IF(OR(S298=\"FHDP\",S298=\"RHCP-B\",U298=\"FHDP\",U298=\"RHCP-B\",W298=\"FHDP\",W298=\"RHCP-B\",Y298=\"FHDP\",Y298=\"RHCP-B\"),TRUNC((MIN(I298,K298)*(1+'1. Checklist & Certification'!$K$43)+AP298)),0))","v":0},{"$f":"IF(OR(A298=0,B298=\"X\"),0,IF(OR(S298=\"CHRP-R\",S298=\"SERA\",S298=\"SUHRP\",U298=\"CHRP-R\",U298=\"SERA\",U298=\"SUHRP\",W298=\"CHRP-R\",W298=\"SERA\",W298=\"SUHRP\",Y298=\"CHRP-R\",Y298=\"SERA\",Y298=\"SUHRP\"),TRUNC((MIN(I298,K298)*(1+'1. Checklist & Certification'!$K$49))),0))","v":0},{"$f":"IF(OR(A298=0,B298=\"X\"),0,IF(OR(S298=\"CALDAP\",S298=\"DPRLP\",U298=\"CALDAP\",U298=\"DPRLP\",W298=\"CALDAP\",W298=\"DPRLP\",Y298=\"CALDAP\",Y298=\"DPRLP\"),TRUNC(((MIN(I298,K298))*(1+'1. Checklist & Certification'!$G$4))),0))","v":0},0,0,0,{"$f":"IF(OR(A298=0,B298=\"X\"),0,IF(OR(S298=\"PRP\",S298=\"LPR\",U298=\"PRP\",U298=\"LPR\",W298=\"PRP\",W298=\"LPR\",Y298=\"PRP\",Y298=\"LPR\"),MAX(I298+AP298,MIN(IF(AE298:AN298<>0,AE298:AN298))),MIN(IF(AE298:AN298<>0,AE298:AN298))))","v":0},{"$f":"IF(A298=0,0,IF(AND(OR(S298=\"Mgr\",S298=0),OR(U298=\"Mgr\",U298=0),OR(W298=\"Mgr\",W298=0)),0,IF(LEFT($A298,2)=\"B*\",VLOOKUP($E298,'1. Checklist & Certification'!$D$26:$E$32,2),IF(LEFT($A298,2)=\"C*\",VLOOKUP($E298,'1. Checklist & Certification'!$F$26:$G$32,2),IF(LEFT($A298,2)=\"D*\",VLOOKUP($E298,'1. Checklist & Certification'!$H$26:$I$32,2),IF(LEFT($A298,2)=\"E*\",VLOOKUP($E298,'1. Checklist & Certification'!$J$26:$K$32,2),VLOOKUP($E298,'1. Checklist & Certification'!$A$26:$B$32,2)))))))","v":0},0,0,null,null,null,null,"","",0,0,0,null,{"$f":"IF(A298=\"\",\"\",'1. Checklist & Certification'!$K$1)","v":""},{"$f":"IF(A298=\"\",\"\",'1. Checklist & Certification'!$C$62)","v":""},{"$f":"IF(A298=\"\",\"\",'1. Checklist & Certification'!$C$6)","v":""},{"$f":"IF(A298=\"\",\"\",'1. Checklist & Certification'!$G$5)","v":""},{"$f":"IFERROR(IF(A298=\"\",\"\",\n_xlfn.LET(_xlpm.Contract,'1. Checklist & Certification'!$C$7,\n_xlpm.Yr,TEXT(MOD(_xlfn.TEXTBEFORE(_xlpm.Contract,\"-\"),100),\"00\"),\n_xlpm.Program,_xlfn.TEXTAFTER(_xlfn.TEXTBEFORE(_xlpm.Contract,\"-\",2),\"-\"),\n_xlpm.CleanProgram,_xlfn.XLOOKUP(_xlpm.Program,SpellCheck[Input],SpellCheck[Correction],_xlpm.Program),\n_xlpm.Number,TEXT(_xlfn.TEXTAFTER(_xlpm.Contract,\"-\",2),\"0000\"),\n_xlfn.CONCAT(_xlpm.Yr,\"-\",_xlpm.CleanProgram,\"-\",_xlpm.Number))\n),\"\")","v":""},{"$f":"IFERROR(IF(A298=\"\",\"\",\n_xlfn.LET(_xlpm.Contract,'1. Checklist & Certification'!$C$8,\n_xlpm.Yr,TEXT(MOD(_xlfn.TEXTBEFORE(_xlpm.Contract,\"-\"),100),\"00\"),\n_xlpm.Program,_xlfn.TEXTAFTER(_xlfn.TEXTBEFORE(_xlpm.Contract,\"-\",2),\"-\"),\n_xlpm.CleanProgram,_xlfn.XLOOKUP(_xlpm.Program,SpellCheck[Input],SpellCheck[Correction],_xlpm.Program),\n_xlpm.Number,TEXT(_xlfn.TEXTAFTER(_xlpm.Contract,\"-\",2),\"0000\"),\n_xlfn.CONCAT(_xlpm.Yr,\"-\",_xlpm.CleanProgram,\"-\",_xlpm.Number))\n),\"\")","v":""},{"$f":"IFERROR(IF(A298=\"\",\"\",\n_xlfn.LET(_xlpm.Contract,'1. Checklist & Certification'!$F$7,\n_xlpm.Yr,TEXT(MOD(_xlfn.TEXTBEFORE(_xlpm.Contract,\"-\"),100),\"00\"),\n_xlpm.Program,_xlfn.TEXTAFTER(_xlfn.TEXTBEFORE(_xlpm.Contract,\"-\",2),\"-\"),\n_xlpm.CleanProgram,_xlfn.XLOOKUP(_xlpm.Program,SpellCheck[Input],SpellCheck[Correction],_xlpm.Program),\n_xlpm.Number,TEXT(_xlfn.TEXTAFTER(_xlpm.Contract,\"-\",2),\"0000\"),\n_xlfn.CONCAT(_xlpm.Yr,\"-\",_xlpm.CleanProgram,\"-\",_xlpm.Number))\n),\"\")","v":""},{"$f":"IFERROR(IF(A298=\"\",\"\",\n_xlfn.LET(_xlpm.Contract,'1. Checklist & Certification'!$F$8,\n_xlpm.Yr,TEXT(MOD(_xlfn.TEXTBEFORE(_xlpm.Contract,\"-\"),100),\"00\"),\n_xlpm.Program,_xlfn.TEXTAFTER(_xlfn.TEXTBEFORE(_xlpm.Contract,\"-\",2),\"-\"),\n_xlpm.CleanProgram,_xlfn.XLOOKUP(_xlpm.Program,SpellCheck[Input],SpellCheck[Correction],_xlpm.Program),\n_xlpm.Number,TEXT(_xlfn.TEXTAFTER(_xlpm.Contract,\"-\",2),\"0000\"),\n_xlfn.CONCAT(_xlpm.Yr,\"-\",_xlpm.CleanProgram,\"-\",_xlpm.Number))\n),\"\")","v":""},{"$f":"IF(A298=\"\",\"\",'1. Checklist & Certification'!$B$9)","v":""},{"$f":"IF(A298=\"\",\"\",'1. Checklist & Certification'!$F$9)","v":""},{"$f":"IF(A298=\"\",\"\",'1. Checklist & Certification'!$C$10)","v":""},{"$f":"IF(A298=\"\",\"\",'1. Checklist & Certification'!$C$11)","v":""},{"$f":"IF(A298=\"\",\"\",'1. Checklist & Certification'!$C$12)","v":""},{"$f":"IF(A298=\"\",\"\",'1. Checklist & Certification'!$B$14)","v":""},{"$f":"IF(A298=\"\",\"\",'1. Checklist & Certification'!$E$14)","v":""},{"$f":"IF(B298=\"\",\"\",'1. Checklist & Certification'!$G$14)","v":""},{"$f":"IF(A298=\"\",\"\",'MHP Family Income & Rent Limits'!$B$3)","v":""},{"$f":"IF(A298=\"\",\"\",'MHP Family Income & Rent Limits'!$J$3)","v":""},{"$f":"IF(A298=\"\",\"\",'MHP Family Income & Rent Limits'!$E$4)","v":""},{"$f":"IF(A298=\"\",\"\",'MHP Family Income & Rent Limits'!$C$7)","v":""},{"$f":"IF(A298=\"\",\"\",'MHP Family Income & Rent Limits'!$F$8)","v":""},{"$f":"IF(A298=\"\",\"\",'1. Checklist & Certification'!$G$4)","v":""},{"$f":"IF(A298=\"\",\"\",'1. Checklist & Certification'!$K$39)","v":""},{"$f":"IF(A298=\"\",\"\",'1. Checklist & Certification'!$K$43)","v":""},{"$f":"IF(A298=\"\",\"\",'1. Checklist & Certification'!$K$45)","v":""},{"$f":"IF(A298=\"\",\"\",'1. Checklist & Certification'!$K$49)","v":""},{"$f":"IF(A298=\"\",\"\",'1. Checklist & Certification'!$K$62)","v":""},{"$f":"IF(A298=\"\",\"\",'1. Checklist & Certification'!$E$66)","v":""},{"$f":"IF(A298=\"\",\"\",'1. Checklist & Certification'!$E$67)","v":""},{"$f":"IF(A298=\"\",\"\",'1. Checklist & Certification'!$E$68)","v":""},{"$f":"IF(A298=\"\",\"\",'1. Checklist & Certification'!$G$66)","v":""},{"$f":"IF(A298=\"\",\"\",'1. Checklist & Certification'!$H$66)","v":""},{"$f":"IF(A298=\"\",\"\",'1. Checklist & Certification'!$I$66)","v":""},{"$f":"IF(A298=\"\",\"\",'1. Checklist & Certification'!$I$67)","v":""},{"$f":"IF(A298=\"\",\"\",'1. Checklist & Certification'!$I$68)","v":""},{"$f":"IF(A298=\"\",\"\",'1. Checklist & Certification'!$B$69)","v":""},{"$f":"IF(A298=\"\",\"\",'1. Checklist & Certification'!$C$69)","v":""},{"$f":"IF(A298=\"\",\"\",'1. Checklist & Certification'!$F$69)","v":""},{"$f":"IF(A298=\"\",\"\",'1. Checklist & Certification'!$G$69)","v":""},{"$f":"IF(A298=\"\",\"\",'1. Checklist & Certification'!$J$69)","v":""},{"$f":"IF(A298=\"\",\"\",'1. Checklist & Certification'!$K$69)","v":""},null,null,{"$f":"IF(AND(OR('1. Checklist & Certification'!$M$16=1,'1. Checklist & Certification'!$M$19=2),AO298>0,B298=\"\",I298>0,AQ298<I298,AV298<>\"Sec 8-Project\"),\"X\",IF(AND(OR('1. Checklist & Certification'!$M$20=4,'1. Checklist & Certification'!$M$21=5,'1. Checklist & Certification'!$M$22=7),AO298>0,B298=\"\",I298>0,K298<I298),\"X\",\"\"))","v":""},{"$f":"IF(A298=\"\",\"\",IF(SUMPRODUCT(-- (ISNUMBER(SEARCH({\"*AHSC*\",\"*FMTW*\",\"*FWHG*\",\"*GHI*\",\"*HHC*\",\"*HLCP*\",\"*HOME*\",\"*LPR*\",\"*MHP*\",\"*NHTF*\",\"*NSP*\",\"*PRP*\",\"*TOD*\",\"*VHHP*\"},'1. Checklist & Certification'!$L$7)))),\"MHP\",\"Legacy\"))","v":""},",,",null,null,null,{"$f":"IF('1. Checklist & Certification'!$M$20=4,\"Both\",IF(OR('1. Checklist & Certification'!$M$15>0,S298=\"CHRP-R\",U298=\"CHRP-R\",W298=\"CHRP-R\",Y298=\"CHRP-R\"),\"Under\",\"No\"))","v":"No"},"No","No",{"$f":"_xlfn.IFS(D298=\"\",\"\",D298=1,'MHP Family Income & Rent Limits'!$E$17,D298=2,'MHP Family Income & Rent Limits'!$F$17,D298=3,'MHP Family Income & Rent Limits'!$G$17,D298=4,'MHP Family Income & Rent Limits'!$H$17,D298=5,'MHP Family Income & Rent Limits'!$I$17,D298=6,'MHP Family Income & Rent Limits'!$J$17,D298=7,'MHP Family Income & Rent Limits'!$K$17,D298=8,'MHP Family Income & Rent Limits'!$L$17)","v":""},"",{"$f":"IF(OR(A298=0,B298=\"X\"),0,MIN(IF(AA298:AD298<>0,AA298:AD298)))","v":0},{"$f":"IF(OR(H298=\"\",I298=\"\"),0,IF(H298*0.3/12>I298,MIN(H298*0.3/12,I298*1.1)+AP298,I298*(1+(VLOOKUP('1. Checklist & Certification'!$F$9,'HLCP-E Rent Change'!$A$1:$D$59,4,FALSE)))+AP298))","v":0}]
[null,null,null,null,null,null,null,null,null,null,null,null,null,null,null,null,null,null,null,null,null,null,null,null,null,null,0,0,0,0,0,0,0,0,{"$f":"IF(OR(A299=0,B299=\"X\"),0,IF(OR(S299=\"FHDP\",S299=\"RHCP-B\",U299=\"FHDP\",U299=\"RHCP-B\",W299=\"FHDP\",W299=\"RHCP-B\",Y299=\"FHDP\",Y299=\"RHCP-B\"),TRUNC((MIN(I299,K299)*(1+'1. Checklist & Certification'!$K$43)+AP299)),0))","v":0},{"$f":"IF(OR(A299=0,B299=\"X\"),0,IF(OR(S299=\"CHRP-R\",S299=\"SERA\",S299=\"SUHRP\",U299=\"CHRP-R\",U299=\"SERA\",U299=\"SUHRP\",W299=\"CHRP-R\",W299=\"SERA\",W299=\"SUHRP\",Y299=\"CHRP-R\",Y299=\"SERA\",Y299=\"SUHRP\"),TRUNC((MIN(I299,K299)*(1+'1. Checklist & Certification'!$K$49))),0))","v":0},{"$f":"IF(OR(A299=0,B299=\"X\"),0,IF(OR(S299=\"CALDAP\",S299=\"DPRLP\",U299=\"CALDAP\",U299=\"DPRLP\",W299=\"CALDAP\",W299=\"DPRLP\",Y299=\"CALDAP\",Y299=\"DPRLP\"),TRUNC(((MIN(I299,K299))*(1+'1. Checklist & Certification'!$G$4))),0))","v":0},0,0,0,{"$f":"IF(OR(A299=0,B299=\"X\"),0,IF(OR(S299=\"PRP\",S299=\"LPR\",U299=\"PRP\",U299=\"LPR\",W299=\"PRP\",W299=\"LPR\",Y299=\"PRP\",Y299=\"LPR\"),MAX(I299+AP299,MIN(IF(AE299:AN299<>0,AE299:AN299))),MIN(IF(AE299:AN299<>0,AE299:AN299))))","v":0},{"$f":"IF(A299=0,0,IF(AND(OR(S299=\"Mgr\",S299=0),OR(U299=\"Mgr\",U299=0),OR(W299=\"Mgr\",W299=0)),0,IF(LEFT($A299,2)=\"B*\",VLOOKUP($E299,'1. Checklist & Certification'!$D$26:$E$32,2),IF(LEFT($A299,2)=\"C*\",VLOOKUP($E299,'1. Checklist & Certification'!$F$26:$G$32,2),IF(LEFT($A299,2)=\"D*\",VLOOKUP($E299,'1. Checklist & Certification'!$H$26:$I$32,2),IF(LEFT($A299,2)=\"E*\",VLOOKUP($E299,'1. Checklist & Certification'!$J$26:$K$32,2),VLOOKUP($E299,'1. Checklist & Certification'!$A$26:$B$32,2)))))))","v":0},0,0,null,null,null,null,"","",0,0,0,null,{"$f":"IF(A299=\"\",\"\",'1. Checklist & Certification'!$K$1)","v":""},{"$f":"IF(A299=\"\",\"\",'1. Checklist & Certification'!$C$62)","v":""},{"$f":"IF(A299=\"\",\"\",'1. Checklist & Certification'!$C$6)","v":""},{"$f":"IF(A299=\"\",\"\",'1. Checklist & Certification'!$G$5)","v":""},{"$f":"IFERROR(IF(A299=\"\",\"\",\n_xlfn.LET(_xlpm.Contract,'1. Checklist & Certification'!$C$7,\n_xlpm.Yr,TEXT(MOD(_xlfn.TEXTBEFORE(_xlpm.Contract,\"-\"),100),\"00\"),\n_xlpm.Program,_xlfn.TEXTAFTER(_xlfn.TEXTBEFORE(_xlpm.Contract,\"-\",2),\"-\"),\n_xlpm.CleanProgram,_xlfn.XLOOKUP(_xlpm.Program,SpellCheck[Input],SpellCheck[Correction],_xlpm.Program),\n_xlpm.Number,TEXT(_xlfn.TEXTAFTER(_xlpm.Contract,\"-\",2),\"0000\"),\n_xlfn.CONCAT(_xlpm.Yr,\"-\",_xlpm.CleanProgram,\"-\",_xlpm.Number))\n),\"\")","v":""},{"$f":"IFERROR(IF(A299=\"\",\"\",\n_xlfn.LET(_xlpm.Contract,'1. Checklist & Certification'!$C$8,\n_xlpm.Yr,TEXT(MOD(_xlfn.TEXTBEFORE(_xlpm.Contract,\"-\"),100),\"00\"),\n_xlpm.Program,_xlfn.TEXTAFTER(_xlfn.TEXTBEFORE(_xlpm.Contract,\"-\",2),\"-\"),\n_xlpm.CleanProgram,_xlfn.XLOOKUP(_xlpm.Program,SpellCheck[Input],SpellCheck[Correction],_xlpm.Program),\n_xlpm.Number,TEXT(_xlfn.TEXTAFTER(_xlpm.Contract,\"-\",2),\"0000\"),\n_xlfn.CONCAT(_xlpm.Yr,\"-\",_xlpm.CleanProgram,\"-\",_xlpm.Number))\n),\"\")","v":""},{"$f":"IFERROR(IF(A299=\"\",\"\",\n_xlfn.LET(_xlpm.Contract,'1. Checklist & Certification'!$F$7,\n_xlpm.Yr,TEXT(MOD(_xlfn.TEXTBEFORE(_xlpm.Contract,\"-\"),100),\"00\"),\n_xlpm.Program,_xlfn.TEXTAFTER(_xlfn.TEXTBEFORE(_xlpm.Contract,\"-\",2),\"-\"),\n_xlpm.CleanProgram,_xlfn.XLOOKUP(_xlpm.Program,SpellCheck[Input],SpellCheck[Correction],_xlpm.Program),\n_xlpm.Number,TEXT(_xlfn.TEXTAFTER(_xlpm.Contract,\"-\",2),\"0000\"),\n_xlfn.CONCAT(_xlpm.Yr,\"-\",_xlpm.CleanProgram,\"-\",_xlpm.Number))\n),\"\")","v":""},{"$f":"IFERROR(IF(A299=\"\",\"\",\n_xlfn.LET(_xlpm.Contract,'1. Checklist & Certification'!$F$8,\n_xlpm.Yr,TEXT(MOD(_xlfn.TEXTBEFORE(_xlpm.Contract,\"-\"),100),\"00\"),\n_xlpm.Program,_xlfn.TEXTAFTER(_xlfn.TEXTBEFORE(_xlpm.Contract,\"-\",2),\"-\"),\n_xlpm.CleanProgram,_xlfn.XLOOKUP(_xlpm.Program,SpellCheck[Input],SpellCheck[Correction],_xlpm.Program),\n_xlpm.Number,TEXT(_xlfn.TEXTAFTER(_xlpm.Contract,\"-\",2),\"0000\"),\n_xlfn.CONCAT(_xlpm.Yr,\"-\",_xlpm.CleanProgram,\"-\",_xlpm.Number))\n),\"\")","v":""},{"$f":"IF(A299=\"\",\"\",'1. Checklist & Certification'!$B$9)","v":""},{"$f":"IF(A299=\"\",\"\",'1. Checklist & Certification'!$F$9)","v":""},{"$f":"IF(A299=\"\",\"\",'1. Checklist & Certification'!$C$10)","v":""},{"$f":"IF(A299=\"\",\"\",'1. Checklist & Certification'!$C$11)","v":""},{"$f":"IF(A299=\"\",\"\",'1. Checklist & Certification'!$C$12)","v":""},{"$f":"IF(A299=\"\",\"\",'1. Checklist & Certification'!$B$14)","v":""},{"$f":"IF(A299=\"\",\"\",'1. Checklist & Certification'!$E$14)","v":""},{"$f":"IF(B299=\"\",\"\",'1. Checklist & Certification'!$G$14)","v":""},{"$f":"IF(A299=\"\",\"\",'MHP Family Income & Rent Limits'!$B$3)","v":""},{"$f":"IF(A299=\"\",\"\",'MHP Family Income & Rent Limits'!$J$3)","v":""},{"$f":"IF(A299=\"\",\"\",'MHP Family Income & Rent Limits'!$E$4)","v":""},{"$f":"IF(A299=\"\",\"\",'MHP Family Income & Rent Limits'!$C$7)","v":""},{"$f":"IF(A299=\"\",\"\",'MHP Family Income & Rent Limits'!$F$8)","v":""},{"$f":"IF(A299=\"\",\"\",'1. Checklist & Certification'!$G$4)","v":""},{"$f":"IF(A299=\"\",\"\",'1. Checklist & Certification'!$K$39)","v":""},{"$f":"IF(A299=\"\",\"\",'1. Checklist & Certification'!$K$43)","v":""},{"$f":"IF(A299=\"\",\"\",'1. Checklist & Certification'!$K$45)","v":""},{"$f":"IF(A299=\"\",\"\",'1. Checklist & Certification'!$K$49)","v":""},{"$f":"IF(A299=\"\",\"\",'1. Checklist & Certification'!$K$62)","v":""},{"$f":"IF(A299=\"\",\"\",'1. Checklist & Certification'!$E$66)","v":""},{"$f":"IF(A299=\"\",\"\",'1. Checklist & Certification'!$E$67)","v":""},{"$f":"IF(A299=\"\",\"\",'1. Checklist & Certification'!$E$68)","v":""},{"$f":"IF(A299=\"\",\"\",'1. Checklist & Certification'!$G$66)","v":""},{"$f":"IF(A299=\"\",\"\",'1. Checklist & Certification'!$H$66)","v":""},{"$f":"IF(A299=\"\",\"\",'1. Checklist & Certification'!$I$66)","v":""},{"$f":"IF(A299=\"\",\"\",'1. Checklist & Certification'!$I$67)","v":""},{"$f":"IF(A299=\"\",\"\",'1. Checklist & Certification'!$I$68)","v":""},{"$f":"IF(A299=\"\",\"\",'1. Checklist & Certification'!$B$69)","v":""},{"$f":"IF(A299=\"\",\"\",'1. Checklist & Certification'!$C$69)","v":""},{"$f":"IF(A299=\"\",\"\",'1. Checklist & Certification'!$F$69)","v":""},{"$f":"IF(A299=\"\",\"\",'1. Checklist & Certification'!$G$69)","v":""},{"$f":"IF(A299=\"\",\"\",'1. Checklist & Certification'!$J$69)","v":""},{"$f":"IF(A299=\"\",\"\",'1. Checklist & Certification'!$K$69)","v":""},null,null,{"$f":"IF(AND(OR('1. Checklist & Certification'!$M$16=1,'1. Checklist & Certification'!$M$19=2),AO299>0,B299=\"\",I299>0,AQ299<I299,AV299<>\"Sec 8-Project\"),\"X\",IF(AND(OR('1. Checklist & Certification'!$M$20=4,'1. Checklist & Certification'!$M$21=5,'1. Checklist & Certification'!$M$22=7),AO299>0,B299=\"\",I299>0,K299<I299),\"X\",\"\"))","v":""},{"$f":"IF(A299=\"\",\"\",IF(SUMPRODUCT(-- (ISNUMBER(SEARCH({\"*AHSC*\",\"*FMTW*\",\"*FWHG*\",\"*GHI*\",\"*HHC*\",\"*HLCP*\",\"*HOME*\",\"*LPR*\",\"*MHP*\",\"*NHTF*\",\"*NSP*\",\"*PRP*\",\"*TOD*\",\"*VHHP*\"},'1. Checklist & Certification'!$L$7)))),\"MHP\",\"Legacy\"))","v":""},",,",null,null,null,{"$f":"IF('1. Checklist & Certification'!$M$20=4,\"Both\",IF(OR('1. Checklist & Certification'!$M$15>0,S299=\"CHRP-R\",U299=\"CHRP-R\",W299=\"CHRP-R\",Y299=\"CHRP-R\"),\"Under\",\"No\"))","v":"No"},"No","No",{"$f":"_xlfn.IFS(D299=\"\",\"\",D299=1,'MHP Family Income & Rent Limits'!$E$17,D299=2,'MHP Family Income & Rent Limits'!$F$17,D299=3,'MHP Family Income & Rent Limits'!$G$17,D299=4,'MHP Family Income & Rent Limits'!$H$17,D299=5,'MHP Family Income & Rent Limits'!$I$17,D299=6,'MHP Family Income & Rent Limits'!$J$17,D299=7,'MHP Family Income & Rent Limits'!$K$17,D299=8,'MHP Family Income & Rent Limits'!$L$17)","v":""},"",{"$f":"IF(OR(A299=0,B299=\"X\"),0,MIN(IF(AA299:AD299<>0,AA299:AD299)))","v":0},{"$f":"IF(OR(H299=\"\",I299=\"\"),0,IF(H299*0.3/12>I299,MIN(H299*0.3/12,I299*1.1)+AP299,I299*(1+(VLOOKUP('1. Checklist & Certification'!$F$9,'HLCP-E Rent Change'!$A$1:$D$59,4,FALSE)))+AP299))","v":0}]
[null,null,null,null,null,null,null,null,null,null,null,null,null,null,null,null,null,null,null,null,null,null,null,null,null,null,0,0,0,0,0,0,0,0,{"$f":"IF(OR(A300=0,B300=\"X\"),0,IF(OR(S300=\"FHDP\",S300=\"RHCP-B\",U300=\"FHDP\",U300=\"RHCP-B\",W300=\"FHDP\",W300=\"RHCP-B\",Y300=\"FHDP\",Y300=\"RHCP-B\"),TRUNC((MIN(I300,K300)*(1+'1. Checklist & Certification'!$K$43)+AP300)),0))","v":0},{"$f":"IF(OR(A300=0,B300=\"X\"),0,IF(OR(S300=\"CHRP-R\",S300=\"SERA\",S300=\"SUHRP\",U300=\"CHRP-R\",U300=\"SERA\",U300=\"SUHRP\",W300=\"CHRP-R\",W300=\"SERA\",W300=\"SUHRP\",Y300=\"CHRP-R\",Y300=\"SERA\",Y300=\"SUHRP\"),TRUNC((MIN(I300,K300)*(1+'1. Checklist & Certification'!$K$49))),0))","v":0},{"$f":"IF(OR(A300=0,B300=\"X\"),0,IF(OR(S300=\"CALDAP\",S300=\"DPRLP\",U300=\"CALDAP\",U300=\"DPRLP\",W300=\"CALDAP\",W300=\"DPRLP\",Y300=\"CALDAP\",Y300=\"DPRLP\"),TRUNC(((MIN(I300,K300))*(1+'1. Checklist & Certification'!$G$4))),0))","v":0},0,0,0,{"$f":"IF(OR(A300=0,B300=\"X\"),0,IF(OR(S300=\"PRP\",S300=\"LPR\",U300=\"PRP\",U300=\"LPR\",W300=\"PRP\",W300=\"LPR\",Y300=\"PRP\",Y300=\"LPR\"),MAX(I300+AP300,MIN(IF(AE300:AN300<>0,AE300:AN300))),MIN(IF(AE300:AN300<>0,AE300:AN300))))","v":0},{"$f":"IF(A300=0,0,IF(AND(OR(S300=\"Mgr\",S300=0),OR(U300=\"Mgr\",U300=0),OR(W300=\"Mgr\",W300=0)),0,IF(LEFT($A300,2)=\"B*\",VLOOKUP($E300,'1. Checklist & Certification'!$D$26:$E$32,2),IF(LEFT($A300,2)=\"C*\",VLOOKUP($E300,'1. Checklist & Certification'!$F$26:$G$32,2),IF(LEFT($A300,2)=\"D*\",VLOOKUP($E300,'1. Checklist & Certification'!$H$26:$I$32,2),IF(LEFT($A300,2)=\"E*\",VLOOKUP($E300,'1. Checklist & Certification'!$J$26:$K$32,2),VLOOKUP($E300,'1. Checklist & Certification'!$A$26:$B$32,2)))))))","v":0},0,0,null,null,null,null,"","",0,0,0,null,{"$f":"IF(A300=\"\",\"\",'1. Checklist & Certification'!$K$1)","v":""},{"$f":"IF(A300=\"\",\"\",'1. Checklist & Certification'!$C$62)","v":""},{"$f":"IF(A300=\"\",\"\",'1. Checklist & Certification'!$C$6)","v":""},{"$f":"IF(A300=\"\",\"\",'1. Checklist & Certification'!$G$5)","v":""},{"$f":"IFERROR(IF(A300=\"\",\"\",\n_xlfn.LET(_xlpm.Contract,'1. Checklist & Certification'!$C$7,\n_xlpm.Yr,TEXT(MOD(_xlfn.TEXTBEFORE(_xlpm.Contract,\"-\"),100),\"00\"),\n_xlpm.Program,_xlfn.TEXTAFTER(_xlfn.TEXTBEFORE(_xlpm.Contract,\"-\",2),\"-\"),\n_xlpm.CleanProgram,_xlfn.XLOOKUP(_xlpm.Program,SpellCheck[Input],SpellCheck[Correction],_xlpm.Program),\n_xlpm.Number,TEXT(_xlfn.TEXTAFTER(_xlpm.Contract,\"-\",2),\"0000\"),\n_xlfn.CONCAT(_xlpm.Yr,\"-\",_xlpm.CleanProgram,\"-\",_xlpm.Number))\n),\"\")","v":""},{"$f":"IFERROR(IF(A300=\"\",\"\",\n_xlfn.LET(_xlpm.Contract,'1. Checklist & Certification'!$C$8,\n_xlpm.Yr,TEXT(MOD(_xlfn.TEXTBEFORE(_xlpm.Contract,\"-\"),100),\"00\"),\n_xlpm.Program,_xlfn.TEXTAFTER(_xlfn.TEXTBEFORE(_xlpm.Contract,\"-\",2),\"-\"),\n_xlpm.CleanProgram,_xlfn.XLOOKUP(_xlpm.Program,SpellCheck[Input],SpellCheck[Correction],_xlpm.Program),\n_xlpm.Number,TEXT(_xlfn.TEXTAFTER(_xlpm.Contract,\"-\",2),\"0000\"),\n_xlfn.CONCAT(_xlpm.Yr,\"-\",_xlpm.CleanProgram,\"-\",_xlpm.Number))\n),\"\")","v":""},{"$f":"IFERROR(IF(A300=\"\",\"\",\n_xlfn.LET(_xlpm.Contract,'1. Checklist & Certification'!$F$7,\n_xlpm.Yr,TEXT(MOD(_xlfn.TEXTBEFORE(_xlpm.Contract,\"-\"),100),\"00\"),\n_xlpm.Program,_xlfn.TEXTAFTER(_xlfn.TEXTBEFORE(_xlpm.Contract,\"-\",2),\"-\"),\n_xlpm.CleanProgram,_xlfn.XLOOKUP(_xlpm.Program,SpellCheck[Input],SpellCheck[Correction],_xlpm.Program),\n_xlpm.Number,TEXT(_xlfn.TEXTAFTER(_xlpm.Contract,\"-\",2),\"0000\"),\n_xlfn.CONCAT(_xlpm.Yr,\"-\",_xlpm.CleanProgram,\"-\",_xlpm.Number))\n),\"\")","v":""},{"$f":"IFERROR(IF(A300=\"\",\"\",\n_xlfn.LET(_xlpm.Contract,'1. Checklist & Certification'!$F$8,\n_xlpm.Yr,TEXT(MOD(_xlfn.TEXTBEFORE(_xlpm.Contract,\"-\"),100),\"00\"),\n_xlpm.Program,_xlfn.TEXTAFTER(_xlfn.TEXTBEFORE(_xlpm.Contract,\"-\",2),\"-\"),\n_xlpm.CleanProgram,_xlfn.XLOOKUP(_xlpm.Program,SpellCheck[Input],SpellCheck[Correction],_xlpm.Program),\n_xlpm.Number,TEXT(_xlfn.TEXTAFTER(_xlpm.Contract,\"-\",2),\"0000\"),\n_xlfn.CONCAT(_xlpm.Yr,\"-\",_xlpm.CleanProgram,\"-\",_xlpm.Number))\n),\"\")","v":""},{"$f":"IF(A300=\"\",\"\",'1. Checklist & Certification'!$B$9)","v":""},{"$f":"IF(A300=\"\",\"\",'1. Checklist & Certification'!$F$9)","v":""},{"$f":"IF(A300=\"\",\"\",'1. Checklist & Certification'!$C$10)","v":""},{"$f":"IF(A300=\"\",\"\",'1. Checklist & Certification'!$C$11)","v":""},{"$f":"IF(A300=\"\",\"\",'1. Checklist & Certification'!$C$12)","v":""},{"$f":"IF(A300=\"\",\"\",'1. Checklist & Certification'!$B$14)","v":""},{"$f":"IF(A300=\"\",\"\",'1. Checklist & Certification'!$E$14)","v":""},{"$f":"IF(B300=\"\",\"\",'1. Checklist & Certification'!$G$14)","v":""},{"$f":"IF(A300=\"\",\"\",'MHP Family Income & Rent Limits'!$B$3)","v":""},{"$f":"IF(A300=\"\",\"\",'MHP Family Income & Rent Limits'!$J$3)","v":""},{"$f":"IF(A300=\"\",\"\",'MHP Family Income & Rent Limits'!$E$4)","v":""},{"$f":"IF(A300=\"\",\"\",'MHP Family Income & Rent Limits'!$C$7)","v":""},{"$f":"IF(A300=\"\",\"\",'MHP Family Income & Rent Limits'!$F$8)","v":""},{"$f":"IF(A300=\"\",\"\",'1. Checklist & Certification'!$G$4)","v":""},{"$f":"IF(A300=\"\",\"\",'1. Checklist & Certification'!$K$39)","v":""},{"$f":"IF(A300=\"\",\"\",'1. Checklist & Certification'!$K$43)","v":""},{"$f":"IF(A300=\"\",\"\",'1. Checklist & Certification'!$K$45)","v":""},{"$f":"IF(A300=\"\",\"\",'1. Checklist & Certification'!$K$49)","v":""},{"$f":"IF(A300=\"\",\"\",'1. Checklist & Certification'!$K$62)","v":""},{"$f":"IF(A300=\"\",\"\",'1. Checklist & Certification'!$E$66)","v":""},{"$f":"IF(A300=\"\",\"\",'1. Checklist & Certification'!$E$67)","v":""},{"$f":"IF(A300=\"\",\"\",'1. Checklist & Certification'!$E$68)","v":""},{"$f":"IF(A300=\"\",\"\",'1. Checklist & Certification'!$G$66)","v":""},{"$f":"IF(A300=\"\",\"\",'1. Checklist & Certification'!$H$66)","v":""},{"$f":"IF(A300=\"\",\"\",'1. Checklist & Certification'!$I$66)","v":""},{"$f":"IF(A300=\"\",\"\",'1. Checklist & Certification'!$I$67)","v":""},{"$f":"IF(A300=\"\",\"\",'1. Checklist & Certification'!$I$68)","v":""},{"$f":"IF(A300=\"\",\"\",'1. Checklist & Certification'!$B$69)","v":""},{"$f":"IF(A300=\"\",\"\",'1. Checklist & Certification'!$C$69)","v":""},{"$f":"IF(A300=\"\",\"\",'1. Checklist & Certification'!$F$69)","v":""},{"$f":"IF(A300=\"\",\"\",'1. Checklist & Certification'!$G$69)","v":""},{"$f":"IF(A300=\"\",\"\",'1. Checklist & Certification'!$J$69)","v":""},{"$f":"IF(A300=\"\",\"\",'1. Checklist & Certification'!$K$69)","v":""},null,null,{"$f":"IF(AND(OR('1. Checklist & Certification'!$M$16=1,'1. Checklist & Certification'!$M$19=2),AO300>0,B300=\"\",I300>0,AQ300<I300,AV300<>\"Sec 8-Project\"),\"X\",IF(AND(OR('1. Checklist & Certification'!$M$20=4,'1. Checklist & Certification'!$M$21=5,'1. Checklist & Certification'!$M$22=7),AO300>0,B300=\"\",I300>0,K300<I300),\"X\",\"\"))","v":""},{"$f":"IF(A300=\"\",\"\",IF(SUMPRODUCT(-- (ISNUMBER(SEARCH({\"*AHSC*\",\"*FMTW*\",\"*FWHG*\",\"*GHI*\",\"*HHC*\",\"*HLCP*\",\"*HOME*\",\"*LPR*\",\"*MHP*\",\"*NHTF*\",\"*NSP*\",\"*PRP*\",\"*TOD*\",\"*VHHP*\"},'1. Checklist & Certification'!$L$7)))),\"MHP\",\"Legacy\"))","v":""},",,",null,null,null,{"$f":"IF('1. Checklist & Certification'!$M$20=4,\"Both\",IF(OR('1. Checklist & Certification'!$M$15>0,S300=\"CHRP-R\",U300=\"CHRP-R\",W300=\"CHRP-R\",Y300=\"CHRP-R\"),\"Under\",\"No\"))","v":"No"},"No","No",{"$f":"_xlfn.IFS(D300=\"\",\"\",D300=1,'MHP Family Income & Rent Limits'!$E$17,D300=2,'MHP Family Income & Rent Limits'!$F$17,D300=3,'MHP Family Income & Rent Limits'!$G$17,D300=4,'MHP Family Income & Rent Limits'!$H$17,D300=5,'MHP Family Income & Rent Limits'!$I$17,D300=6,'MHP Family Income & Rent Limits'!$J$17,D300=7,'MHP Family Income & Rent Limits'!$K$17,D300=8,'MHP Family Income & Rent Limits'!$L$17)","v":""},"",{"$f":"IF(OR(A300=0,B300=\"X\"),0,MIN(IF(AA300:AD300<>0,AA300:AD300)))","v":0},{"$f":"IF(OR(H300=\"\",I300=\"\"),0,IF(H300*0.3/12>I300,MIN(H300*0.3/12,I300*1.1)+AP300,I300*(1+(VLOOKUP('1. Checklist & Certification'!$F$9,'HLCP-E Rent Change'!$A$1:$D$59,4,FALSE)))+AP300))","v":0}]
[null,null,null,null,null,null,null,null,null,null,null,null,null,null,null,null,null,null,null,null,null,null,null,null,null,null,0,0,0,0,0,0,0,0,{"$f":"IF(OR(A301=0,B301=\"X\"),0,IF(OR(S301=\"FHDP\",S301=\"RHCP-B\",U301=\"FHDP\",U301=\"RHCP-B\",W301=\"FHDP\",W301=\"RHCP-B\",Y301=\"FHDP\",Y301=\"RHCP-B\"),TRUNC((MIN(I301,K301)*(1+'1. Checklist & Certification'!$K$43)+AP301)),0))","v":0},{"$f":"IF(OR(A301=0,B301=\"X\"),0,IF(OR(S301=\"CHRP-R\",S301=\"SERA\",S301=\"SUHRP\",U301=\"CHRP-R\",U301=\"SERA\",U301=\"SUHRP\",W301=\"CHRP-R\",W301=\"SERA\",W301=\"SUHRP\",Y301=\"CHRP-R\",Y301=\"SERA\",Y301=\"SUHRP\"),TRUNC((MIN(I301,K301)*(1+'1. Checklist & Certification'!$K$49))),0))","v":0},{"$f":"IF(OR(A301=0,B301=\"X\"),0,IF(OR(S301=\"CALDAP\",S301=\"DPRLP\",U301=\"CALDAP\",U301=\"DPRLP\",W301=\"CALDAP\",W301=\"DPRLP\",Y301=\"CALDAP\",Y301=\"DPRLP\"),TRUNC(((MIN(I301,K301))*(1+'1. Checklist & Certification'!$G$4))),0))","v":0},0,0,0,{"$f":"IF(OR(A301=0,B301=\"X\"),0,IF(OR(S301=\"PRP\",S301=\"LPR\",U301=\"PRP\",U301=\"LPR\",W301=\"PRP\",W301=\"LPR\",Y301=\"PRP\",Y301=\"LPR\"),MAX(I301+AP301,MIN(IF(AE301:AN301<>0,AE301:AN301))),MIN(IF(AE301:AN301<>0,AE301:AN301))))","v":0},{"$f":"IF(A301=0,0,IF(AND(OR(S301=\"Mgr\",S301=0),OR(U301=\"Mgr\",U301=0),OR(W301=\"Mgr\",W301=0)),0,IF(LEFT($A301,2)=\"B*\",VLOOKUP($E301,'1. Checklist & Certification'!$D$26:$E$32,2),IF(LEFT($A301,2)=\"C*\",VLOOKUP($E301,'1. Checklist & Certification'!$F$26:$G$32,2),IF(LEFT($A301,2)=\"D*\",VLOOKUP($E301,'1. Checklist & Certification'!$H$26:$I$32,2),IF(LEFT($A301,2)=\"E*\",VLOOKUP($E301,'1. Checklist & Certification'!$J$26:$K$32,2),VLOOKUP($E301,'1. Checklist & Certification'!$A$26:$B$32,2)))))))","v":0},0,0,null,null,null,null,"","",0,0,0,null,{"$f":"IF(A301=\"\",\"\",'1. Checklist & Certification'!$K$1)","v":""},{"$f":"IF(A301=\"\",\"\",'1. Checklist & Certification'!$C$62)","v":""},{"$f":"IF(A301=\"\",\"\",'1. Checklist & Certification'!$C$6)","v":""},{"$f":"IF(A301=\"\",\"\",'1. Checklist & Certification'!$G$5)","v":""},{"$f":"IFERROR(IF(A301=\"\",\"\",\n_xlfn.LET(_xlpm.Contract,'1. Checklist & Certification'!$C$7,\n_xlpm.Yr,TEXT(MOD(_xlfn.TEXTBEFORE(_xlpm.Contract,\"-\"),100),\"00\"),\n_xlpm.Program,_xlfn.TEXTAFTER(_xlfn.TEXTBEFORE(_xlpm.Contract,\"-\",2),\"-\"),\n_xlpm.CleanProgram,_xlfn.XLOOKUP(_xlpm.Program,SpellCheck[Input],SpellCheck[Correction],_xlpm.Program),\n_xlpm.Number,TEXT(_xlfn.TEXTAFTER(_xlpm.Contract,\"-\",2),\"0000\"),\n_xlfn.CONCAT(_xlpm.Yr,\"-\",_xlpm.CleanProgram,\"-\",_xlpm.Number))\n),\"\")","v":""},{"$f":"IFERROR(IF(A301=\"\",\"\",\n_xlfn.LET(_xlpm.Contract,'1. Checklist & Certification'!$C$8,\n_xlpm.Yr,TEXT(MOD(_xlfn.TEXTBEFORE(_xlpm.Contract,\"-\"),100),\"00\"),\n_xlpm.Program,_xlfn.TEXTAFTER(_xlfn.TEXTBEFORE(_xlpm.Contract,\"-\",2),\"-\"),\n_xlpm.CleanProgram,_xlfn.XLOOKUP(_xlpm.Program,SpellCheck[Input],SpellCheck[Correction],_xlpm.Program),\n_xlpm.Number,TEXT(_xlfn.TEXTAFTER(_xlpm.Contract,\"-\",2),\"0000\"),\n_xlfn.CONCAT(_xlpm.Yr,\"-\",_xlpm.CleanProgram,\"-\",_xlpm.Number))\n),\"\")","v":""},{"$f":"IFERROR(IF(A301=\"\",\"\",\n_xlfn.LET(_xlpm.Contract,'1. Checklist & Certification'!$F$7,\n_xlpm.Yr,TEXT(MOD(_xlfn.TEXTBEFORE(_xlpm.Contract,\"-\"),100),\"00\"),\n_xlpm.Program,_xlfn.TEXTAFTER(_xlfn.TEXTBEFORE(_xlpm.Contract,\"-\",2),\"-\"),\n_xlpm.CleanProgram,_xlfn.XLOOKUP(_xlpm.Program,SpellCheck[Input],SpellCheck[Correction],_xlpm.Program),\n_xlpm.Number,TEXT(_xlfn.TEXTAFTER(_xlpm.Contract,\"-\",2),\"0000\"),\n_xlfn.CONCAT(_xlpm.Yr,\"-\",_xlpm.CleanProgram,\"-\",_xlpm.Number))\n),\"\")","v":""},{"$f":"IFERROR(IF(A301=\"\",\"\",\n_xlfn.LET(_xlpm.Contract,'1. Checklist & Certification'!$F$8,\n_xlpm.Yr,TEXT(MOD(_xlfn.TEXTBEFORE(_xlpm.Contract,\"-\"),100),\"00\"),\n_xlpm.Program,_xlfn.TEXTAFTER(_xlfn.TEXTBEFORE(_xlpm.Contract,\"-\",2),\"-\"),\n_xlpm.CleanProgram,_xlfn.XLOOKUP(_xlpm.Program,SpellCheck[Input],SpellCheck[Correction],_xlpm.Program),\n_xlpm.Number,TEXT(_xlfn.TEXTAFTER(_xlpm.Contract,\"-\",2),\"0000\"),\n_xlfn.CONCAT(_xlpm.Yr,\"-\",_xlpm.CleanProgram,\"-\",_xlpm.Number))\n),\"\")","v":""},{"$f":"IF(A301=\"\",\"\",'1. Checklist & Certification'!$B$9)","v":""},{"$f":"IF(A301=\"\",\"\",'1. Checklist & Certification'!$F$9)","v":""},{"$f":"IF(A301=\"\",\"\",'1. Checklist & Certification'!$C$10)","v":""},{"$f":"IF(A301=\"\",\"\",'1. Checklist & Certification'!$C$11)","v":""},{"$f":"IF(A301=\"\",\"\",'1. Checklist & Certification'!$C$12)","v":""},{"$f":"IF(A301=\"\",\"\",'1. Checklist & Certification'!$B$14)","v":""},{"$f":"IF(A301=\"\",\"\",'1. Checklist & Certification'!$E$14)","v":""},{"$f":"IF(B301=\"\",\"\",'1. Checklist & Certification'!$G$14)","v":""},{"$f":"IF(A301=\"\",\"\",'MHP Family Income & Rent Limits'!$B$3)","v":""},{"$f":"IF(A301=\"\",\"\",'MHP Family Income & Rent Limits'!$J$3)","v":""},{"$f":"IF(A301=\"\",\"\",'MHP Family Income & Rent Limits'!$E$4)","v":""},{"$f":"IF(A301=\"\",\"\",'MHP Family Income & Rent Limits'!$C$7)","v":""},{"$f":"IF(A301=\"\",\"\",'MHP Family Income & Rent Limits'!$F$8)","v":""},{"$f":"IF(A301=\"\",\"\",'1. Checklist & Certification'!$G$4)","v":""},{"$f":"IF(A301=\"\",\"\",'1. Checklist & Certification'!$K$39)","v":""},{"$f":"IF(A301=\"\",\"\",'1. Checklist & Certification'!$K$43)","v":""},{"$f":"IF(A301=\"\",\"\",'1. Checklist & Certification'!$K$45)","v":""},{"$f":"IF(A301=\"\",\"\",'1. Checklist & Certification'!$K$49)","v":""},{"$f":"IF(A301=\"\",\"\",'1. Checklist & Certification'!$K$62)","v":""},{"$f":"IF(A301=\"\",\"\",'1. Checklist & Certification'!$E$66)","v":""},{"$f":"IF(A301=\"\",\"\",'1. Checklist & Certification'!$E$67)","v":""},{"$f":"IF(A301=\"\",\"\",'1. Checklist & Certification'!$E$68)","v":""},{"$f":"IF(A301=\"\",\"\",'1. Checklist & Certification'!$G$66)","v":""},{"$f":"IF(A301=\"\",\"\",'1. Checklist & Certification'!$H$66)","v":""},{"$f":"IF(A301=\"\",\"\",'1. Checklist & Certification'!$I$66)","v":""},{"$f":"IF(A301=\"\",\"\",'1. Checklist & Certification'!$I$67)","v":""},{"$f":"IF(A301=\"\",\"\",'1. Checklist & Certification'!$I$68)","v":""},{"$f":"IF(A301=\"\",\"\",'1. Checklist & Certification'!$B$69)","v":""},{"$f":"IF(A301=\"\",\"\",'1. Checklist & Certification'!$C$69)","v":""},{"$f":"IF(A301=\"\",\"\",'1. Checklist & Certification'!$F$69)","v":""},{"$f":"IF(A301=\"\",\"\",'1. Checklist & Certification'!$G$69)","v":""},{"$f":"IF(A301=\"\",\"\",'1. Checklist & Certification'!$J$69)","v":""},{"$f":"IF(A301=\"\",\"\",'1. Checklist & Certification'!$K$69)","v":""},null,null,{"$f":"IF(AND(OR('1. Checklist & Certification'!$M$16=1,'1. Checklist & Certification'!$M$19=2),AO301>0,B301=\"\",I301>0,AQ301<I301,AV301<>\"Sec 8-Project\"),\"X\",IF(AND(OR('1. Checklist & Certification'!$M$20=4,'1. Checklist & Certification'!$M$21=5,'1. Checklist & Certification'!$M$22=7),AO301>0,B301=\"\",I301>0,K301<I301),\"X\",\"\"))","v":""},{"$f":"IF(A301=\"\",\"\",IF(SUMPRODUCT(-- (ISNUMBER(SEARCH({\"*AHSC*\",\"*FMTW*\",\"*FWHG*\",\"*GHI*\",\"*HHC*\",\"*HLCP*\",\"*HOME*\",\"*LPR*\",\"*MHP*\",\"*NHTF*\",\"*NSP*\",\"*PRP*\",\"*TOD*\",\"*VHHP*\"},'1. Checklist & Certification'!$L$7)))),\"MHP\",\"Legacy\"))","v":""},",,",null,null,null,{"$f":"IF('1. Checklist & Certification'!$M$20=4,\"Both\",IF(OR('1. Checklist & Certification'!$M$15>0,S301=\"CHRP-R\",U301=\"CHRP-R\",W301=\"CHRP-R\",Y301=\"CHRP-R\"),\"Under\",\"No\"))","v":"No"},"No","No",{"$f":"_xlfn.IFS(D301=\"\",\"\",D301=1,'MHP Family Income & Rent Limits'!$E$17,D301=2,'MHP Family Income & Rent Limits'!$F$17,D301=3,'MHP Family Income & Rent Limits'!$G$17,D301=4,'MHP Family Income & Rent Limits'!$H$17,D301=5,'MHP Family Income & Rent Limits'!$I$17,D301=6,'MHP Family Income & Rent Limits'!$J$17,D301=7,'MHP Family Income & Rent Limits'!$K$17,D301=8,'MHP Family Income & Rent Limits'!$L$17)","v":""},"",{"$f":"IF(OR(A301=0,B301=\"X\"),0,MIN(IF(AA301:AD301<>0,AA301:AD301)))","v":0},{"$f":"IF(OR(H301=\"\",I301=\"\"),0,IF(H301*0.3/12>I301,MIN(H301*0.3/12,I301*1.1)+AP301,I301*(1+(VLOOKUP('1. Checklist & Certification'!$F$9,'HLCP-E Rent Change'!$A$1:$D$59,4,FALSE)))+AP301))","v":0}]
[null,null,null,null,null,null,null,null,null,null,null,null,null,null,null,null,null,null,null,null,null,null,null,null,null,null,0,0,0,0,0,0,0,0,{"$f":"IF(OR(A302=0,B302=\"X\"),0,IF(OR(S302=\"FHDP\",S302=\"RHCP-B\",U302=\"FHDP\",U302=\"RHCP-B\",W302=\"FHDP\",W302=\"RHCP-B\",Y302=\"FHDP\",Y302=\"RHCP-B\"),TRUNC((MIN(I302,K302)*(1+'1. Checklist & Certification'!$K$43)+AP302)),0))","v":0},{"$f":"IF(OR(A302=0,B302=\"X\"),0,IF(OR(S302=\"CHRP-R\",S302=\"SERA\",S302=\"SUHRP\",U302=\"CHRP-R\",U302=\"SERA\",U302=\"SUHRP\",W302=\"CHRP-R\",W302=\"SERA\",W302=\"SUHRP\",Y302=\"CHRP-R\",Y302=\"SERA\",Y302=\"SUHRP\"),TRUNC((MIN(I302,K302)*(1+'1. Checklist & Certification'!$K$49))),0))","v":0},{"$f":"IF(OR(A302=0,B302=\"X\"),0,IF(OR(S302=\"CALDAP\",S302=\"DPRLP\",U302=\"CALDAP\",U302=\"DPRLP\",W302=\"CALDAP\",W302=\"DPRLP\",Y302=\"CALDAP\",Y302=\"DPRLP\"),TRUNC(((MIN(I302,K302))*(1+'1. Checklist & Certification'!$G$4))),0))","v":0},0,0,0,{"$f":"IF(OR(A302=0,B302=\"X\"),0,IF(OR(S302=\"PRP\",S302=\"LPR\",U302=\"PRP\",U302=\"LPR\",W302=\"PRP\",W302=\"LPR\",Y302=\"PRP\",Y302=\"LPR\"),MAX(I302+AP302,MIN(IF(AE302:AN302<>0,AE302:AN302))),MIN(IF(AE302:AN302<>0,AE302:AN302))))","v":0},{"$f":"IF(A302=0,0,IF(AND(OR(S302=\"Mgr\",S302=0),OR(U302=\"Mgr\",U302=0),OR(W302=\"Mgr\",W302=0)),0,IF(LEFT($A302,2)=\"B*\",VLOOKUP($E302,'1. Checklist & Certification'!$D$26:$E$32,2),IF(LEFT($A302,2)=\"C*\",VLOOKUP($E302,'1. Checklist & Certification'!$F$26:$G$32,2),IF(LEFT($A302,2)=\"D*\",VLOOKUP($E302,'1. Checklist & Certification'!$H$26:$I$32,2),IF(LEFT($A302,2)=\"E*\",VLOOKUP($E302,'1. Checklist & Certification'!$J$26:$K$32,2),VLOOKUP($E302,'1. Checklist & Certification'!$A$26:$B$32,2)))))))","v":0},0,0,null,null,null,null,"","",0,0,0,null,{"$f":"IF(A302=\"\",\"\",'1. Checklist & Certification'!$K$1)","v":""},{"$f":"IF(A302=\"\",\"\",'1. Checklist & Certification'!$C$62)","v":""},{"$f":"IF(A302=\"\",\"\",'1. Checklist & Certification'!$C$6)","v":""},{"$f":"IF(A302=\"\",\"\",'1. Checklist & Certification'!$G$5)","v":""},{"$f":"IFERROR(IF(A302=\"\",\"\",\n_xlfn.LET(_xlpm.Contract,'1. Checklist & Certification'!$C$7,\n_xlpm.Yr,TEXT(MOD(_xlfn.TEXTBEFORE(_xlpm.Contract,\"-\"),100),\"00\"),\n_xlpm.Program,_xlfn.TEXTAFTER(_xlfn.TEXTBEFORE(_xlpm.Contract,\"-\",2),\"-\"),\n_xlpm.CleanProgram,_xlfn.XLOOKUP(_xlpm.Program,SpellCheck[Input],SpellCheck[Correction],_xlpm.Program),\n_xlpm.Number,TEXT(_xlfn.TEXTAFTER(_xlpm.Contract,\"-\",2),\"0000\"),\n_xlfn.CONCAT(_xlpm.Yr,\"-\",_xlpm.CleanProgram,\"-\",_xlpm.Number))\n),\"\")","v":""},{"$f":"IFERROR(IF(A302=\"\",\"\",\n_xlfn.LET(_xlpm.Contract,'1. Checklist & Certification'!$C$8,\n_xlpm.Yr,TEXT(MOD(_xlfn.TEXTBEFORE(_xlpm.Contract,\"-\"),100),\"00\"),\n_xlpm.Program,_xlfn.TEXTAFTER(_xlfn.TEXTBEFORE(_xlpm.Contract,\"-\",2),\"-\"),\n_xlpm.CleanProgram,_xlfn.XLOOKUP(_xlpm.Program,SpellCheck[Input],SpellCheck[Correction],_xlpm.Program),\n_xlpm.Number,TEXT(_xlfn.TEXTAFTER(_xlpm.Contract,\"-\",2),\"0000\"),\n_xlfn.CONCAT(_xlpm.Yr,\"-\",_xlpm.CleanProgram,\"-\",_xlpm.Number))\n),\"\")","v":""},{"$f":"IFERROR(IF(A302=\"\",\"\",\n_xlfn.LET(_xlpm.Contract,'1. Checklist & Certification'!$F$7,\n_xlpm.Yr,TEXT(MOD(_xlfn.TEXTBEFORE(_xlpm.Contract,\"-\"),100),\"00\"),\n_xlpm.Program,_xlfn.TEXTAFTER(_xlfn.TEXTBEFORE(_xlpm.Contract,\"-\",2),\"-\"),\n_xlpm.CleanProgram,_xlfn.XLOOKUP(_xlpm.Program,SpellCheck[Input],SpellCheck[Correction],_xlpm.Program),\n_xlpm.Number,TEXT(_xlfn.TEXTAFTER(_xlpm.Contract,\"-\",2),\"0000\"),\n_xlfn.CONCAT(_xlpm.Yr,\"-\",_xlpm.CleanProgram,\"-\",_xlpm.Number))\n),\"\")","v":""},{"$f":"IFERROR(IF(A302=\"\",\"\",\n_xlfn.LET(_xlpm.Contract,'1. Checklist & Certification'!$F$8,\n_xlpm.Yr,TEXT(MOD(_xlfn.TEXTBEFORE(_xlpm.Contract,\"-\"),100),\"00\"),\n_xlpm.Program,_xlfn.TEXTAFTER(_xlfn.TEXTBEFORE(_xlpm.Contract,\"-\",2),\"-\"),\n_xlpm.CleanProgram,_xlfn.XLOOKUP(_xlpm.Program,SpellCheck[Input],SpellCheck[Correction],_xlpm.Program),\n_xlpm.Number,TEXT(_xlfn.TEXTAFTER(_xlpm.Contract,\"-\",2),\"0000\"),\n_xlfn.CONCAT(_xlpm.Yr,\"-\",_xlpm.CleanProgram,\"-\",_xlpm.Number))\n),\"\")","v":""},{"$f":"IF(A302=\"\",\"\",'1. Checklist & Certification'!$B$9)","v":""},{"$f":"IF(A302=\"\",\"\",'1. Checklist & Certification'!$F$9)","v":""},{"$f":"IF(A302=\"\",\"\",'1. Checklist & Certification'!$C$10)","v":""},{"$f":"IF(A302=\"\",\"\",'1. Checklist & Certification'!$C$11)","v":""},{"$f":"IF(A302=\"\",\"\",'1. Checklist & Certification'!$C$12)","v":""},{"$f":"IF(A302=\"\",\"\",'1. Checklist & Certification'!$B$14)","v":""},{"$f":"IF(A302=\"\",\"\",'1. Checklist & Certification'!$E$14)","v":""},{"$f":"IF(B302=\"\",\"\",'1. Checklist & Certification'!$G$14)","v":""},{"$f":"IF(A302=\"\",\"\",'MHP Family Income & Rent Limits'!$B$3)","v":""},{"$f":"IF(A302=\"\",\"\",'MHP Family Income & Rent Limits'!$J$3)","v":""},{"$f":"IF(A302=\"\",\"\",'MHP Family Income & Rent Limits'!$E$4)","v":""},{"$f":"IF(A302=\"\",\"\",'MHP Family Income & Rent Limits'!$C$7)","v":""},{"$f":"IF(A302=\"\",\"\",'MHP Family Income & Rent Limits'!$F$8)","v":""},{"$f":"IF(A302=\"\",\"\",'1. Checklist & Certification'!$G$4)","v":""},{"$f":"IF(A302=\"\",\"\",'1. Checklist & Certification'!$K$39)","v":""},{"$f":"IF(A302=\"\",\"\",'1. Checklist & Certification'!$K$43)","v":""},{"$f":"IF(A302=\"\",\"\",'1. Checklist & Certification'!$K$45)","v":""},{"$f":"IF(A302=\"\",\"\",'1. Checklist & Certification'!$K$49)","v":""},{"$f":"IF(A302=\"\",\"\",'1. Checklist & Certification'!$K$62)","v":""},{"$f":"IF(A302=\"\",\"\",'1. Checklist & Certification'!$E$66)","v":""},{"$f":"IF(A302=\"\",\"\",'1. Checklist & Certification'!$E$67)","v":""},{"$f":"IF(A302=\"\",\"\",'1. Checklist & Certification'!$E$68)","v":""},{"$f":"IF(A302=\"\",\"\",'1. Checklist & Certification'!$G$66)","v":""},{"$f":"IF(A302=\"\",\"\",'1. Checklist & Certification'!$H$66)","v":""},{"$f":"IF(A302=\"\",\"\",'1. Checklist & Certification'!$I$66)","v":""},{"$f":"IF(A302=\"\",\"\",'1. Checklist & Certification'!$I$67)","v":""},{"$f":"IF(A302=\"\",\"\",'1. Checklist & Certification'!$I$68)","v":""},{"$f":"IF(A302=\"\",\"\",'1. Checklist & Certification'!$B$69)","v":""},{"$f":"IF(A302=\"\",\"\",'1. Checklist & Certification'!$C$69)","v":""},{"$f":"IF(A302=\"\",\"\",'1. Checklist & Certification'!$F$69)","v":""},{"$f":"IF(A302=\"\",\"\",'1. Checklist & Certification'!$G$69)","v":""},{"$f":"IF(A302=\"\",\"\",'1. Checklist & Certification'!$J$69)","v":""},{"$f":"IF(A302=\"\",\"\",'1. Checklist & Certification'!$K$69)","v":""},null,null,{"$f":"IF(AND(OR('1. Checklist & Certification'!$M$16=1,'1. Checklist & Certification'!$M$19=2),AO302>0,B302=\"\",I302>0,AQ302<I302,AV302<>\"Sec 8-Project\"),\"X\",IF(AND(OR('1. Checklist & Certification'!$M$20=4,'1. Checklist & Certification'!$M$21=5,'1. Checklist & Certification'!$M$22=7),AO302>0,B302=\"\",I302>0,K302<I302),\"X\",\"\"))","v":""},{"$f":"IF(A302=\"\",\"\",IF(SUMPRODUCT(-- (ISNUMBER(SEARCH({\"*AHSC*\",\"*FMTW*\",\"*FWHG*\",\"*GHI*\",\"*HHC*\",\"*HLCP*\",\"*HOME*\",\"*LPR*\",\"*MHP*\",\"*NHTF*\",\"*NSP*\",\"*PRP*\",\"*TOD*\",\"*VHHP*\"},'1. Checklist & Certification'!$L$7)))),\"MHP\",\"Legacy\"))","v":""},",,",null,null,null,{"$f":"IF('1. Checklist & Certification'!$M$20=4,\"Both\",IF(OR('1. Checklist & Certification'!$M$15>0,S302=\"CHRP-R\",U302=\"CHRP-R\",W302=\"CHRP-R\",Y302=\"CHRP-R\"),\"Under\",\"No\"))","v":"No"},"No","No",{"$f":"_xlfn.IFS(D302=\"\",\"\",D302=1,'MHP Family Income & Rent Limits'!$E$17,D302=2,'MHP Family Income & Rent Limits'!$F$17,D302=3,'MHP Family Income & Rent Limits'!$G$17,D302=4,'MHP Family Income & Rent Limits'!$H$17,D302=5,'MHP Family Income & Rent Limits'!$I$17,D302=6,'MHP Family Income & Rent Limits'!$J$17,D302=7,'MHP Family Income & Rent Limits'!$K$17,D302=8,'MHP Family Income & Rent Limits'!$L$17)","v":""},"",{"$f":"IF(OR(A302=0,B302=\"X\"),0,MIN(IF(AA302:AD302<>0,AA302:AD302)))","v":0},{"$f":"IF(OR(H302=\"\",I302=\"\"),0,IF(H302*0.3/12>I302,MIN(H302*0.3/12,I302*1.1)+AP302,I302*(1+(VLOOKUP('1. Checklist & Certification'!$F$9,'HLCP-E Rent Change'!$A$1:$D$59,4,FALSE)))+AP302))","v":0}]
[null,null,null,null,null,null,null,null,null,null,null,null,null,null,null,null,null,null,null,null,null,null,null,null,null,null,0,0,0,0,0,0,0,0,{"$f":"IF(OR(A303=0,B303=\"X\"),0,IF(OR(S303=\"FHDP\",S303=\"RHCP-B\",U303=\"FHDP\",U303=\"RHCP-B\",W303=\"FHDP\",W303=\"RHCP-B\",Y303=\"FHDP\",Y303=\"RHCP-B\"),TRUNC((MIN(I303,K303)*(1+'1. Checklist & Certification'!$K$43)+AP303)),0))","v":0},{"$f":"IF(OR(A303=0,B303=\"X\"),0,IF(OR(S303=\"CHRP-R\",S303=\"SERA\",S303=\"SUHRP\",U303=\"CHRP-R\",U303=\"SERA\",U303=\"SUHRP\",W303=\"CHRP-R\",W303=\"SERA\",W303=\"SUHRP\",Y303=\"CHRP-R\",Y303=\"SERA\",Y303=\"SUHRP\"),TRUNC((MIN(I303,K303)*(1+'1. Checklist & Certification'!$K$49))),0))","v":0},{"$f":"IF(OR(A303=0,B303=\"X\"),0,IF(OR(S303=\"CALDAP\",S303=\"DPRLP\",U303=\"CALDAP\",U303=\"DPRLP\",W303=\"CALDAP\",W303=\"DPRLP\",Y303=\"CALDAP\",Y303=\"DPRLP\"),TRUNC(((MIN(I303,K303))*(1+'1. Checklist & Certification'!$G$4))),0))","v":0},0,0,0,{"$f":"IF(OR(A303=0,B303=\"X\"),0,IF(OR(S303=\"PRP\",S303=\"LPR\",U303=\"PRP\",U303=\"LPR\",W303=\"PRP\",W303=\"LPR\",Y303=\"PRP\",Y303=\"LPR\"),MAX(I303+AP303,MIN(IF(AE303:AN303<>0,AE303:AN303))),MIN(IF(AE303:AN303<>0,AE303:AN303))))","v":0},{"$f":"IF(A303=0,0,IF(AND(OR(S303=\"Mgr\",S303=0),OR(U303=\"Mgr\",U303=0),OR(W303=\"Mgr\",W303=0)),0,IF(LEFT($A303,2)=\"B*\",VLOOKUP($E303,'1. Checklist & Certification'!$D$26:$E$32,2),IF(LEFT($A303,2)=\"C*\",VLOOKUP($E303,'1. Checklist & Certification'!$F$26:$G$32,2),IF(LEFT($A303,2)=\"D*\",VLOOKUP($E303,'1. Checklist & Certification'!$H$26:$I$32,2),IF(LEFT($A303,2)=\"E*\",VLOOKUP($E303,'1. Checklist & Certification'!$J$26:$K$32,2),VLOOKUP($E303,'1. Checklist & Certification'!$A$26:$B$32,2)))))))","v":0},0,0,null,null,null,null,"","",0,0,0,null,{"$f":"IF(A303=\"\",\"\",'1. Checklist & Certification'!$K$1)","v":""},{"$f":"IF(A303=\"\",\"\",'1. Checklist & Certification'!$C$62)","v":""},{"$f":"IF(A303=\"\",\"\",'1. Checklist & Certification'!$C$6)","v":""},{"$f":"IF(A303=\"\",\"\",'1. Checklist & Certification'!$G$5)","v":""},{"$f":"IFERROR(IF(A303=\"\",\"\",\n_xlfn.LET(_xlpm.Contract,'1. Checklist & Certification'!$C$7,\n_xlpm.Yr,TEXT(MOD(_xlfn.TEXTBEFORE(_xlpm.Contract,\"-\"),100),\"00\"),\n_xlpm.Program,_xlfn.TEXTAFTER(_xlfn.TEXTBEFORE(_xlpm.Contract,\"-\",2),\"-\"),\n_xlpm.CleanProgram,_xlfn.XLOOKUP(_xlpm.Program,SpellCheck[Input],SpellCheck[Correction],_xlpm.Program),\n_xlpm.Number,TEXT(_xlfn.TEXTAFTER(_xlpm.Contract,\"-\",2),\"0000\"),\n_xlfn.CONCAT(_xlpm.Yr,\"-\",_xlpm.CleanProgram,\"-\",_xlpm.Number))\n),\"\")","v":""},{"$f":"IFERROR(IF(A303=\"\",\"\",\n_xlfn.LET(_xlpm.Contract,'1. Checklist & Certification'!$C$8,\n_xlpm.Yr,TEXT(MOD(_xlfn.TEXTBEFORE(_xlpm.Contract,\"-\"),100),\"00\"),\n_xlpm.Program,_xlfn.TEXTAFTER(_xlfn.TEXTBEFORE(_xlpm.Contract,\"-\",2),\"-\"),\n_xlpm.CleanProgram,_xlfn.XLOOKUP(_xlpm.Program,SpellCheck[Input],SpellCheck[Correction],_xlpm.Program),\n_xlpm.Number,TEXT(_xlfn.TEXTAFTER(_xlpm.Contract,\"-\",2),\"0000\"),\n_xlfn.CONCAT(_xlpm.Yr,\"-\",_xlpm.CleanProgram,\"-\",_xlpm.Number))\n),\"\")","v":""},{"$f":"IFERROR(IF(A303=\"\",\"\",\n_xlfn.LET(_xlpm.Contract,'1. Checklist & Certification'!$F$7,\n_xlpm.Yr,TEXT(MOD(_xlfn.TEXTBEFORE(_xlpm.Contract,\"-\"),100),\"00\"),\n_xlpm.Program,_xlfn.TEXTAFTER(_xlfn.TEXTBEFORE(_xlpm.Contract,\"-\",2),\"-\"),\n_xlpm.CleanProgram,_xlfn.XLOOKUP(_xlpm.Program,SpellCheck[Input],SpellCheck[Correction],_xlpm.Program),\n_xlpm.Number,TEXT(_xlfn.TEXTAFTER(_xlpm.Contract,\"-\",2),\"0000\"),\n_xlfn.CONCAT(_xlpm.Yr,\"-\",_xlpm.CleanProgram,\"-\",_xlpm.Number))\n),\"\")","v":""},{"$f":"IFERROR(IF(A303=\"\",\"\",\n_xlfn.LET(_xlpm.Contract,'1. Checklist & Certification'!$F$8,\n_xlpm.Yr,TEXT(MOD(_xlfn.TEXTBEFORE(_xlpm.Contract,\"-\"),100),\"00\"),\n_xlpm.Program,_xlfn.TEXTAFTER(_xlfn.TEXTBEFORE(_xlpm.Contract,\"-\",2),\"-\"),\n_xlpm.CleanProgram,_xlfn.XLOOKUP(_xlpm.Program,SpellCheck[Input],SpellCheck[Correction],_xlpm.Program),\n_xlpm.Number,TEXT(_xlfn.TEXTAFTER(_xlpm.Contract,\"-\",2),\"0000\"),\n_xlfn.CONCAT(_xlpm.Yr,\"-\",_xlpm.CleanProgram,\"-\",_xlpm.Number))\n),\"\")","v":""},{"$f":"IF(A303=\"\",\"\",'1. Checklist & Certification'!$B$9)","v":""},{"$f":"IF(A303=\"\",\"\",'1. Checklist & Certification'!$F$9)","v":""},{"$f":"IF(A303=\"\",\"\",'1. Checklist & Certification'!$C$10)","v":""},{"$f":"IF(A303=\"\",\"\",'1. Checklist & Certification'!$C$11)","v":""},{"$f":"IF(A303=\"\",\"\",'1. Checklist & Certification'!$C$12)","v":""},{"$f":"IF(A303=\"\",\"\",'1. Checklist & Certification'!$B$14)","v":""},{"$f":"IF(A303=\"\",\"\",'1. Checklist & Certification'!$E$14)","v":""},{"$f":"IF(B303=\"\",\"\",'1. Checklist & Certification'!$G$14)","v":""},{"$f":"IF(A303=\"\",\"\",'MHP Family Income & Rent Limits'!$B$3)","v":""},{"$f":"IF(A303=\"\",\"\",'MHP Family Income & Rent Limits'!$J$3)","v":""},{"$f":"IF(A303=\"\",\"\",'MHP Family Income & Rent Limits'!$E$4)","v":""},{"$f":"IF(A303=\"\",\"\",'MHP Family Income & Rent Limits'!$C$7)","v":""},{"$f":"IF(A303=\"\",\"\",'MHP Family Income & Rent Limits'!$F$8)","v":""},{"$f":"IF(A303=\"\",\"\",'1. Checklist & Certification'!$G$4)","v":""},{"$f":"IF(A303=\"\",\"\",'1. Checklist & Certification'!$K$39)","v":""},{"$f":"IF(A303=\"\",\"\",'1. Checklist & Certification'!$K$43)","v":""},{"$f":"IF(A303=\"\",\"\",'1. Checklist & Certification'!$K$45)","v":""},{"$f":"IF(A303=\"\",\"\",'1. Checklist & Certification'!$K$49)","v":""},{"$f":"IF(A303=\"\",\"\",'1. Checklist & Certification'!$K$62)","v":""},{"$f":"IF(A303=\"\",\"\",'1. Checklist & Certification'!$E$66)","v":""},{"$f":"IF(A303=\"\",\"\",'1. Checklist & Certification'!$E$67)","v":""},{"$f":"IF(A303=\"\",\"\",'1. Checklist & Certification'!$E$68)","v":""},{"$f":"IF(A303=\"\",\"\",'1. Checklist & Certification'!$G$66)","v":""},{"$f":"IF(A303=\"\",\"\",'1. Checklist & Certification'!$H$66)","v":""},{"$f":"IF(A303=\"\",\"\",'1. Checklist & Certification'!$I$66)","v":""},{"$f":"IF(A303=\"\",\"\",'1. Checklist & Certification'!$I$67)","v":""},{"$f":"IF(A303=\"\",\"\",'1. Checklist & Certification'!$I$68)","v":""},{"$f":"IF(A303=\"\",\"\",'1. Checklist & Certification'!$B$69)","v":""},{"$f":"IF(A303=\"\",\"\",'1. Checklist & Certification'!$C$69)","v":""},{"$f":"IF(A303=\"\",\"\",'1. Checklist & Certification'!$F$69)","v":""},{"$f":"IF(A303=\"\",\"\",'1. Checklist & Certification'!$G$69)","v":""},{"$f":"IF(A303=\"\",\"\",'1. Checklist & Certification'!$J$69)","v":""},{"$f":"IF(A303=\"\",\"\",'1. Checklist & Certification'!$K$69)","v":""},null,null,{"$f":"IF(AND(OR('1. Checklist & Certification'!$M$16=1,'1. Checklist & Certification'!$M$19=2),AO303>0,B303=\"\",I303>0,AQ303<I303,AV303<>\"Sec 8-Project\"),\"X\",IF(AND(OR('1. Checklist & Certification'!$M$20=4,'1. Checklist & Certification'!$M$21=5,'1. Checklist & Certification'!$M$22=7),AO303>0,B303=\"\",I303>0,K303<I303),\"X\",\"\"))","v":""},{"$f":"IF(A303=\"\",\"\",IF(SUMPRODUCT(-- (ISNUMBER(SEARCH({\"*AHSC*\",\"*FMTW*\",\"*FWHG*\",\"*GHI*\",\"*HHC*\",\"*HLCP*\",\"*HOME*\",\"*LPR*\",\"*MHP*\",\"*NHTF*\",\"*NSP*\",\"*PRP*\",\"*TOD*\",\"*VHHP*\"},'1. Checklist & Certification'!$L$7)))),\"MHP\",\"Legacy\"))","v":""},",,",null,null,null,{"$f":"IF('1. Checklist & Certification'!$M$20=4,\"Both\",IF(OR('1. Checklist & Certification'!$M$15>0,S303=\"CHRP-R\",U303=\"CHRP-R\",W303=\"CHRP-R\",Y303=\"CHRP-R\"),\"Under\",\"No\"))","v":"No"},"No","No",{"$f":"_xlfn.IFS(D303=\"\",\"\",D303=1,'MHP Family Income & Rent Limits'!$E$17,D303=2,'MHP Family Income & Rent Limits'!$F$17,D303=3,'MHP Family Income & Rent Limits'!$G$17,D303=4,'MHP Family Income & Rent Limits'!$H$17,D303=5,'MHP Family Income & Rent Limits'!$I$17,D303=6,'MHP Family Income & Rent Limits'!$J$17,D303=7,'MHP Family Income & Rent Limits'!$K$17,D303=8,'MHP Family Income & Rent Limits'!$L$17)","v":""},"",{"$f":"IF(OR(A303=0,B303=\"X\"),0,MIN(IF(AA303:AD303<>0,AA303:AD303)))","v":0},{"$f":"IF(OR(H303=\"\",I303=\"\"),0,IF(H303*0.3/12>I303,MIN(H303*0.3/12,I303*1.1)+AP303,I303*(1+(VLOOKUP('1. Checklist & Certification'!$F$9,'HLCP-E Rent Change'!$A$1:$D$59,4,FALSE)))+AP303))","v":0}]
[null,null,null,null,null,null,null,null,null,null,null,null,null,null,null,null,null,null,null,null,null,null,null,null,null,null,0,0,0,0,0,0,0,0,{"$f":"IF(OR(A304=0,B304=\"X\"),0,IF(OR(S304=\"FHDP\",S304=\"RHCP-B\",U304=\"FHDP\",U304=\"RHCP-B\",W304=\"FHDP\",W304=\"RHCP-B\",Y304=\"FHDP\",Y304=\"RHCP-B\"),TRUNC((MIN(I304,K304)*(1+'1. Checklist & Certification'!$K$43)+AP304)),0))","v":0},{"$f":"IF(OR(A304=0,B304=\"X\"),0,IF(OR(S304=\"CHRP-R\",S304=\"SERA\",S304=\"SUHRP\",U304=\"CHRP-R\",U304=\"SERA\",U304=\"SUHRP\",W304=\"CHRP-R\",W304=\"SERA\",W304=\"SUHRP\",Y304=\"CHRP-R\",Y304=\"SERA\",Y304=\"SUHRP\"),TRUNC((MIN(I304,K304)*(1+'1. Checklist & Certification'!$K$49))),0))","v":0},{"$f":"IF(OR(A304=0,B304=\"X\"),0,IF(OR(S304=\"CALDAP\",S304=\"DPRLP\",U304=\"CALDAP\",U304=\"DPRLP\",W304=\"CALDAP\",W304=\"DPRLP\",Y304=\"CALDAP\",Y304=\"DPRLP\"),TRUNC(((MIN(I304,K304))*(1+'1. Checklist & Certification'!$G$4))),0))","v":0},0,0,0,{"$f":"IF(OR(A304=0,B304=\"X\"),0,IF(OR(S304=\"PRP\",S304=\"LPR\",U304=\"PRP\",U304=\"LPR\",W304=\"PRP\",W304=\"LPR\",Y304=\"PRP\",Y304=\"LPR\"),MAX(I304+AP304,MIN(IF(AE304:AN304<>0,AE304:AN304))),MIN(IF(AE304:AN304<>0,AE304:AN304))))","v":0},{"$f":"IF(A304=0,0,IF(AND(OR(S304=\"Mgr\",S304=0),OR(U304=\"Mgr\",U304=0),OR(W304=\"Mgr\",W304=0)),0,IF(LEFT($A304,2)=\"B*\",VLOOKUP($E304,'1. Checklist & Certification'!$D$26:$E$32,2),IF(LEFT($A304,2)=\"C*\",VLOOKUP($E304,'1. Checklist & Certification'!$F$26:$G$32,2),IF(LEFT($A304,2)=\"D*\",VLOOKUP($E304,'1. Checklist & Certification'!$H$26:$I$32,2),IF(LEFT($A304,2)=\"E*\",VLOOKUP($E304,'1. Checklist & Certification'!$J$26:$K$32,2),VLOOKUP($E304,'1. Checklist & Certification'!$A$26:$B$32,2)))))))","v":0},0,0,null,null,null,null,"","",0,0,0,null,{"$f":"IF(A304=\"\",\"\",'1. Checklist & Certification'!$K$1)","v":""},{"$f":"IF(A304=\"\",\"\",'1. Checklist & Certification'!$C$62)","v":""},{"$f":"IF(A304=\"\",\"\",'1. Checklist & Certification'!$C$6)","v":""},{"$f":"IF(A304=\"\",\"\",'1. Checklist & Certification'!$G$5)","v":""},{"$f":"IFERROR(IF(A304=\"\",\"\",\n_xlfn.LET(_xlpm.Contract,'1. Checklist & Certification'!$C$7,\n_xlpm.Yr,TEXT(MOD(_xlfn.TEXTBEFORE(_xlpm.Contract,\"-\"),100),\"00\"),\n_xlpm.Program,_xlfn.TEXTAFTER(_xlfn.TEXTBEFORE(_xlpm.Contract,\"-\",2),\"-\"),\n_xlpm.CleanProgram,_xlfn.XLOOKUP(_xlpm.Program,SpellCheck[Input],SpellCheck[Correction],_xlpm.Program),\n_xlpm.Number,TEXT(_xlfn.TEXTAFTER(_xlpm.Contract,\"-\",2),\"0000\"),\n_xlfn.CONCAT(_xlpm.Yr,\"-\",_xlpm.CleanProgram,\"-\",_xlpm.Number))\n),\"\")","v":""},{"$f":"IFERROR(IF(A304=\"\",\"\",\n_xlfn.LET(_xlpm.Contract,'1. Checklist & Certification'!$C$8,\n_xlpm.Yr,TEXT(MOD(_xlfn.TEXTBEFORE(_xlpm.Contract,\"-\"),100),\"00\"),\n_xlpm.Program,_xlfn.TEXTAFTER(_xlfn.TEXTBEFORE(_xlpm.Contract,\"-\",2),\"-\"),\n_xlpm.CleanProgram,_xlfn.XLOOKUP(_xlpm.Program,SpellCheck[Input],SpellCheck[Correction],_xlpm.Program),\n_xlpm.Number,TEXT(_xlfn.TEXTAFTER(_xlpm.Contract,\"-\",2),\"0000\"),\n_xlfn.CONCAT(_xlpm.Yr,\"-\",_xlpm.CleanProgram,\"-\",_xlpm.Number))\n),\"\")","v":""},{"$f":"IFERROR(IF(A304=\"\",\"\",\n_xlfn.LET(_xlpm.Contract,'1. Checklist & Certification'!$F$7,\n_xlpm.Yr,TEXT(MOD(_xlfn.TEXTBEFORE(_xlpm.Contract,\"-\"),100),\"00\"),\n_xlpm.Program,_xlfn.TEXTAFTER(_xlfn.TEXTBEFORE(_xlpm.Contract,\"-\",2),\"-\"),\n_xlpm.CleanProgram,_xlfn.XLOOKUP(_xlpm.Program,SpellCheck[Input],SpellCheck[Correction],_xlpm.Program),\n_xlpm.Number,TEXT(_xlfn.TEXTAFTER(_xlpm.Contract,\"-\",2),\"0000\"),\n_xlfn.CONCAT(_xlpm.Yr,\"-\",_xlpm.CleanProgram,\"-\",_xlpm.Number))\n),\"\")","v":""},{"$f":"IFERROR(IF(A304=\"\",\"\",\n_xlfn.LET(_xlpm.Contract,'1. Checklist & Certification'!$F$8,\n_xlpm.Yr,TEXT(MOD(_xlfn.TEXTBEFORE(_xlpm.Contract,\"-\"),100),\"00\"),\n_xlpm.Program,_xlfn.TEXTAFTER(_xlfn.TEXTBEFORE(_xlpm.Contract,\"-\",2),\"-\"),\n_xlpm.CleanProgram,_xlfn.XLOOKUP(_xlpm.Program,SpellCheck[Input],SpellCheck[Correction],_xlpm.Program),\n_xlpm.Number,TEXT(_xlfn.TEXTAFTER(_xlpm.Contract,\"-\",2),\"0000\"),\n_xlfn.CONCAT(_xlpm.Yr,\"-\",_xlpm.CleanProgram,\"-\",_xlpm.Number))\n),\"\")","v":""},{"$f":"IF(A304=\"\",\"\",'1. Checklist & Certification'!$B$9)","v":""},{"$f":"IF(A304=\"\",\"\",'1. Checklist & Certification'!$F$9)","v":""},{"$f":"IF(A304=\"\",\"\",'1. Checklist & Certification'!$C$10)","v":""},{"$f":"IF(A304=\"\",\"\",'1. Checklist & Certification'!$C$11)","v":""},{"$f":"IF(A304=\"\",\"\",'1. Checklist & Certification'!$C$12)","v":""},{"$f":"IF(A304=\"\",\"\",'1. Checklist & Certification'!$B$14)","v":""},{"$f":"IF(A304=\"\",\"\",'1. Checklist & Certification'!$E$14)","v":""},{"$f":"IF(B304=\"\",\"\",'1. Checklist & Certification'!$G$14)","v":""},{"$f":"IF(A304=\"\",\"\",'MHP Family Income & Rent Limits'!$B$3)","v":""},{"$f":"IF(A304=\"\",\"\",'MHP Family Income & Rent Limits'!$J$3)","v":""},{"$f":"IF(A304=\"\",\"\",'MHP Family Income & Rent Limits'!$E$4)","v":""},{"$f":"IF(A304=\"\",\"\",'MHP Family Income & Rent Limits'!$C$7)","v":""},{"$f":"IF(A304=\"\",\"\",'MHP Family Income & Rent Limits'!$F$8)","v":""},{"$f":"IF(A304=\"\",\"\",'1. Checklist & Certification'!$G$4)","v":""},{"$f":"IF(A304=\"\",\"\",'1. Checklist & Certification'!$K$39)","v":""},{"$f":"IF(A304=\"\",\"\",'1. Checklist & Certification'!$K$43)","v":""},{"$f":"IF(A304=\"\",\"\",'1. Checklist & Certification'!$K$45)","v":""},{"$f":"IF(A304=\"\",\"\",'1. Checklist & Certification'!$K$49)","v":""},{"$f":"IF(A304=\"\",\"\",'1. Checklist & Certification'!$K$62)","v":""},{"$f":"IF(A304=\"\",\"\",'1. Checklist & Certification'!$E$66)","v":""},{"$f":"IF(A304=\"\",\"\",'1. Checklist & Certification'!$E$67)","v":""},{"$f":"IF(A304=\"\",\"\",'1. Checklist & Certification'!$E$68)","v":""},{"$f":"IF(A304=\"\",\"\",'1. Checklist & Certification'!$G$66)","v":""},{"$f":"IF(A304=\"\",\"\",'1. Checklist & Certification'!$H$66)","v":""},{"$f":"IF(A304=\"\",\"\",'1. Checklist & Certification'!$I$66)","v":""},{"$f":"IF(A304=\"\",\"\",'1. Checklist & Certification'!$I$67)","v":""},{"$f":"IF(A304=\"\",\"\",'1. Checklist & Certification'!$I$68)","v":""},{"$f":"IF(A304=\"\",\"\",'1. Checklist & Certification'!$B$69)","v":""},{"$f":"IF(A304=\"\",\"\",'1. Checklist & Certification'!$C$69)","v":""},{"$f":"IF(A304=\"\",\"\",'1. Checklist & Certification'!$F$69)","v":""},{"$f":"IF(A304=\"\",\"\",'1. Checklist & Certification'!$G$69)","v":""},{"$f":"IF(A304=\"\",\"\",'1. Checklist & Certification'!$J$69)","v":""},{"$f":"IF(A304=\"\",\"\",'1. Checklist & Certification'!$K$69)","v":""},null,null,{"$f":"IF(AND(OR('1. Checklist & Certification'!$M$16=1,'1. Checklist & Certification'!$M$19=2),AO304>0,B304=\"\",I304>0,AQ304<I304,AV304<>\"Sec 8-Project\"),\"X\",IF(AND(OR('1. Checklist & Certification'!$M$20=4,'1. Checklist & Certification'!$M$21=5,'1. Checklist & Certification'!$M$22=7),AO304>0,B304=\"\",I304>0,K304<I304),\"X\",\"\"))","v":""},{"$f":"IF(A304=\"\",\"\",IF(SUMPRODUCT(-- (ISNUMBER(SEARCH({\"*AHSC*\",\"*FMTW*\",\"*FWHG*\",\"*GHI*\",\"*HHC*\",\"*HLCP*\",\"*HOME*\",\"*LPR*\",\"*MHP*\",\"*NHTF*\",\"*NSP*\",\"*PRP*\",\"*TOD*\",\"*VHHP*\"},'1. Checklist & Certification'!$L$7)))),\"MHP\",\"Legacy\"))","v":""},",,",null,null,null,{"$f":"IF('1. Checklist & Certification'!$M$20=4,\"Both\",IF(OR('1. Checklist & Certification'!$M$15>0,S304=\"CHRP-R\",U304=\"CHRP-R\",W304=\"CHRP-R\",Y304=\"CHRP-R\"),\"Under\",\"No\"))","v":"No"},"No","No",{"$f":"_xlfn.IFS(D304=\"\",\"\",D304=1,'MHP Family Income & Rent Limits'!$E$17,D304=2,'MHP Family Income & Rent Limits'!$F$17,D304=3,'MHP Family Income & Rent Limits'!$G$17,D304=4,'MHP Family Income & Rent Limits'!$H$17,D304=5,'MHP Family Income & Rent Limits'!$I$17,D304=6,'MHP Family Income & Rent Limits'!$J$17,D304=7,'MHP Family Income & Rent Limits'!$K$17,D304=8,'MHP Family Income & Rent Limits'!$L$17)","v":""},"",{"$f":"IF(OR(A304=0,B304=\"X\"),0,MIN(IF(AA304:AD304<>0,AA304:AD304)))","v":0},{"$f":"IF(OR(H304=\"\",I304=\"\"),0,IF(H304*0.3/12>I304,MIN(H304*0.3/12,I304*1.1)+AP304,I304*(1+(VLOOKUP('1. Checklist & Certification'!$F$9,'HLCP-E Rent Change'!$A$1:$D$59,4,FALSE)))+AP304))","v":0}]
[null,null,null,null,null,null,null,null,null,null,null,null,null,null,null,null,null,null,null,null,null,null,null,null,null,null,0,0,0,0,0,0,0,0,{"$f":"IF(OR(A305=0,B305=\"X\"),0,IF(OR(S305=\"FHDP\",S305=\"RHCP-B\",U305=\"FHDP\",U305=\"RHCP-B\",W305=\"FHDP\",W305=\"RHCP-B\",Y305=\"FHDP\",Y305=\"RHCP-B\"),TRUNC((MIN(I305,K305)*(1+'1. Checklist & Certification'!$K$43)+AP305)),0))","v":0},{"$f":"IF(OR(A305=0,B305=\"X\"),0,IF(OR(S305=\"CHRP-R\",S305=\"SERA\",S305=\"SUHRP\",U305=\"CHRP-R\",U305=\"SERA\",U305=\"SUHRP\",W305=\"CHRP-R\",W305=\"SERA\",W305=\"SUHRP\",Y305=\"CHRP-R\",Y305=\"SERA\",Y305=\"SUHRP\"),TRUNC((MIN(I305,K305)*(1+'1. Checklist & Certification'!$K$49))),0))","v":0},{"$f":"IF(OR(A305=0,B305=\"X\"),0,IF(OR(S305=\"CALDAP\",S305=\"DPRLP\",U305=\"CALDAP\",U305=\"DPRLP\",W305=\"CALDAP\",W305=\"DPRLP\",Y305=\"CALDAP\",Y305=\"DPRLP\"),TRUNC(((MIN(I305,K305))*(1+'1. Checklist & Certification'!$G$4))),0))","v":0},0,0,0,{"$f":"IF(OR(A305=0,B305=\"X\"),0,IF(OR(S305=\"PRP\",S305=\"LPR\",U305=\"PRP\",U305=\"LPR\",W305=\"PRP\",W305=\"LPR\",Y305=\"PRP\",Y305=\"LPR\"),MAX(I305+AP305,MIN(IF(AE305:AN305<>0,AE305:AN305))),MIN(IF(AE305:AN305<>0,AE305:AN305))))","v":0},{"$f":"IF(A305=0,0,IF(AND(OR(S305=\"Mgr\",S305=0),OR(U305=\"Mgr\",U305=0),OR(W305=\"Mgr\",W305=0)),0,IF(LEFT($A305,2)=\"B*\",VLOOKUP($E305,'1. Checklist & Certification'!$D$26:$E$32,2),IF(LEFT($A305,2)=\"C*\",VLOOKUP($E305,'1. Checklist & Certification'!$F$26:$G$32,2),IF(LEFT($A305,2)=\"D*\",VLOOKUP($E305,'1. Checklist & Certification'!$H$26:$I$32,2),IF(LEFT($A305,2)=\"E*\",VLOOKUP($E305,'1. Checklist & Certification'!$J$26:$K$32,2),VLOOKUP($E305,'1. Checklist & Certification'!$A$26:$B$32,2)))))))","v":0},0,0,null,null,null,null,"","",0,0,0,null,{"$f":"IF(A305=\"\",\"\",'1. Checklist & Certification'!$K$1)","v":""},{"$f":"IF(A305=\"\",\"\",'1. Checklist & Certification'!$C$62)","v":""},{"$f":"IF(A305=\"\",\"\",'1. Checklist & Certification'!$C$6)","v":""},{"$f":"IF(A305=\"\",\"\",'1. Checklist & Certification'!$G$5)","v":""},{"$f":"IFERROR(IF(A305=\"\",\"\",\n_xlfn.LET(_xlpm.Contract,'1. Checklist & Certification'!$C$7,\n_xlpm.Yr,TEXT(MOD(_xlfn.TEXTBEFORE(_xlpm.Contract,\"-\"),100),\"00\"),\n_xlpm.Program,_xlfn.TEXTAFTER(_xlfn.TEXTBEFORE(_xlpm.Contract,\"-\",2),\"-\"),\n_xlpm.CleanProgram,_xlfn.XLOOKUP(_xlpm.Program,SpellCheck[Input],SpellCheck[Correction],_xlpm.Program),\n_xlpm.Number,TEXT(_xlfn.TEXTAFTER(_xlpm.Contract,\"-\",2),\"0000\"),\n_xlfn.CONCAT(_xlpm.Yr,\"-\",_xlpm.CleanProgram,\"-\",_xlpm.Number))\n),\"\")","v":""},{"$f":"IFERROR(IF(A305=\"\",\"\",\n_xlfn.LET(_xlpm.Contract,'1. Checklist & Certification'!$C$8,\n_xlpm.Yr,TEXT(MOD(_xlfn.TEXTBEFORE(_xlpm.Contract,\"-\"),100),\"00\"),\n_xlpm.Program,_xlfn.TEXTAFTER(_xlfn.TEXTBEFORE(_xlpm.Contract,\"-\",2),\"-\"),\n_xlpm.CleanProgram,_xlfn.XLOOKUP(_xlpm.Program,SpellCheck[Input],SpellCheck[Correction],_xlpm.Program),\n_xlpm.Number,TEXT(_xlfn.TEXTAFTER(_xlpm.Contract,\"-\",2),\"0000\"),\n_xlfn.CONCAT(_xlpm.Yr,\"-\",_xlpm.CleanProgram,\"-\",_xlpm.Number))\n),\"\")","v":""},{"$f":"IFERROR(IF(A305=\"\",\"\",\n_xlfn.LET(_xlpm.Contract,'1. Checklist & Certification'!$F$7,\n_xlpm.Yr,TEXT(MOD(_xlfn.TEXTBEFORE(_xlpm.Contract,\"-\"),100),\"00\"),\n_xlpm.Program,_xlfn.TEXTAFTER(_xlfn.TEXTBEFORE(_xlpm.Contract,\"-\",2),\"-\"),\n_xlpm.CleanProgram,_xlfn.XLOOKUP(_xlpm.Program,SpellCheck[Input],SpellCheck[Correction],_xlpm.Program),\n_xlpm.Number,TEXT(_xlfn.TEXTAFTER(_xlpm.Contract,\"-\",2),\"0000\"),\n_xlfn.CONCAT(_xlpm.Yr,\"-\",_xlpm.CleanProgram,\"-\",_xlpm.Number))\n),\"\")","v":""},{"$f":"IFERROR(IF(A305=\"\",\"\",\n_xlfn.LET(_xlpm.Contract,'1. Checklist & Certification'!$F$8,\n_xlpm.Yr,TEXT(MOD(_xlfn.TEXTBEFORE(_xlpm.Contract,\"-\"),100),\"00\"),\n_xlpm.Program,_xlfn.TEXTAFTER(_xlfn.TEXTBEFORE(_xlpm.Contract,\"-\",2),\"-\"),\n_xlpm.CleanProgram,_xlfn.XLOOKUP(_xlpm.Program,SpellCheck[Input],SpellCheck[Correction],_xlpm.Program),\n_xlpm.Number,TEXT(_xlfn.TEXTAFTER(_xlpm.Contract,\"-\",2),\"0000\"),\n_xlfn.CONCAT(_xlpm.Yr,\"-\",_xlpm.CleanProgram,\"-\",_xlpm.Number))\n),\"\")","v":""},{"$f":"IF(A305=\"\",\"\",'1. Checklist & Certification'!$B$9)","v":""},{"$f":"IF(A305=\"\",\"\",'1. Checklist & Certification'!$F$9)","v":""},{"$f":"IF(A305=\"\",\"\",'1. Checklist & Certification'!$C$10)","v":""},{"$f":"IF(A305=\"\",\"\",'1. Checklist & Certification'!$C$11)","v":""},{"$f":"IF(A305=\"\",\"\",'1. Checklist & Certification'!$C$12)","v":""},{"$f":"IF(A305=\"\",\"\",'1. Checklist & Certification'!$B$14)","v":""},{"$f":"IF(A305=\"\",\"\",'1. Checklist & Certification'!$E$14)","v":""},{"$f":"IF(B305=\"\",\"\",'1. Checklist & Certification'!$G$14)","v":""},{"$f":"IF(A305=\"\",\"\",'MHP Family Income & Rent Limits'!$B$3)","v":""},{"$f":"IF(A305=\"\",\"\",'MHP Family Income & Rent Limits'!$J$3)","v":""},{"$f":"IF(A305=\"\",\"\",'MHP Family Income & Rent Limits'!$E$4)","v":""},{"$f":"IF(A305=\"\",\"\",'MHP Family Income & Rent Limits'!$C$7)","v":""},{"$f":"IF(A305=\"\",\"\",'MHP Family Income & Rent Limits'!$F$8)","v":""},{"$f":"IF(A305=\"\",\"\",'1. Checklist & Certification'!$G$4)","v":""},{"$f":"IF(A305=\"\",\"\",'1. Checklist & Certification'!$K$39)","v":""},{"$f":"IF(A305=\"\",\"\",'1. Checklist & Certification'!$K$43)","v":""},{"$f":"IF(A305=\"\",\"\",'1. Checklist & Certification'!$K$45)","v":""},{"$f":"IF(A305=\"\",\"\",'1. Checklist & Certification'!$K$49)","v":""},{"$f":"IF(A305=\"\",\"\",'1. Checklist & Certification'!$K$62)","v":""},{"$f":"IF(A305=\"\",\"\",'1. Checklist & Certification'!$E$66)","v":""},{"$f":"IF(A305=\"\",\"\",'1. Checklist & Certification'!$E$67)","v":""},{"$f":"IF(A305=\"\",\"\",'1. Checklist & Certification'!$E$68)","v":""},{"$f":"IF(A305=\"\",\"\",'1. Checklist & Certification'!$G$66)","v":""},{"$f":"IF(A305=\"\",\"\",'1. Checklist & Certification'!$H$66)","v":""},{"$f":"IF(A305=\"\",\"\",'1. Checklist & Certification'!$I$66)","v":""},{"$f":"IF(A305=\"\",\"\",'1. Checklist & Certification'!$I$67)","v":""},{"$f":"IF(A305=\"\",\"\",'1. Checklist & Certification'!$I$68)","v":""},{"$f":"IF(A305=\"\",\"\",'1. Checklist & Certification'!$B$69)","v":""},{"$f":"IF(A305=\"\",\"\",'1. Checklist & Certification'!$C$69)","v":""},{"$f":"IF(A305=\"\",\"\",'1. Checklist & Certification'!$F$69)","v":""},{"$f":"IF(A305=\"\",\"\",'1. Checklist & Certification'!$G$69)","v":""},{"$f":"IF(A305=\"\",\"\",'1. Checklist & Certification'!$J$69)","v":""},{"$f":"IF(A305=\"\",\"\",'1. Checklist & Certification'!$K$69)","v":""},null,null,{"$f":"IF(AND(OR('1. Checklist & Certification'!$M$16=1,'1. Checklist & Certification'!$M$19=2),AO305>0,B305=\"\",I305>0,AQ305<I305,AV305<>\"Sec 8-Project\"),\"X\",IF(AND(OR('1. Checklist & Certification'!$M$20=4,'1. Checklist & Certification'!$M$21=5,'1. Checklist & Certification'!$M$22=7),AO305>0,B305=\"\",I305>0,K305<I305),\"X\",\"\"))","v":""},{"$f":"IF(A305=\"\",\"\",IF(SUMPRODUCT(-- (ISNUMBER(SEARCH({\"*AHSC*\",\"*FMTW*\",\"*FWHG*\",\"*GHI*\",\"*HHC*\",\"*HLCP*\",\"*HOME*\",\"*LPR*\",\"*MHP*\",\"*NHTF*\",\"*NSP*\",\"*PRP*\",\"*TOD*\",\"*VHHP*\"},'1. Checklist & Certification'!$L$7)))),\"MHP\",\"Legacy\"))","v":""},",,",null,null,null,{"$f":"IF('1. Checklist & Certification'!$M$20=4,\"Both\",IF(OR('1. Checklist & Certification'!$M$15>0,S305=\"CHRP-R\",U305=\"CHRP-R\",W305=\"CHRP-R\",Y305=\"CHRP-R\"),\"Under\",\"No\"))","v":"No"},"No","No",{"$f":"_xlfn.IFS(D305=\"\",\"\",D305=1,'MHP Family Income & Rent Limits'!$E$17,D305=2,'MHP Family Income & Rent Limits'!$F$17,D305=3,'MHP Family Income & Rent Limits'!$G$17,D305=4,'MHP Family Income & Rent Limits'!$H$17,D305=5,'MHP Family Income & Rent Limits'!$I$17,D305=6,'MHP Family Income & Rent Limits'!$J$17,D305=7,'MHP Family Income & Rent Limits'!$K$17,D305=8,'MHP Family Income & Rent Limits'!$L$17)","v":""},"",{"$f":"IF(OR(A305=0,B305=\"X\"),0,MIN(IF(AA305:AD305<>0,AA305:AD305)))","v":0},{"$f":"IF(OR(H305=\"\",I305=\"\"),0,IF(H305*0.3/12>I305,MIN(H305*0.3/12,I305*1.1)+AP305,I305*(1+(VLOOKUP('1. Checklist & Certification'!$F$9,'HLCP-E Rent Change'!$A$1:$D$59,4,FALSE)))+AP305))","v":0}]
[null,null,null,null,null,null,null,null,null,null,null,null,null,null,null,null,null,null,null,null,null,null,null,null,null,null,0,0,0,0,0,0,0,0,{"$f":"IF(OR(A306=0,B306=\"X\"),0,IF(OR(S306=\"FHDP\",S306=\"RHCP-B\",U306=\"FHDP\",U306=\"RHCP-B\",W306=\"FHDP\",W306=\"RHCP-B\",Y306=\"FHDP\",Y306=\"RHCP-B\"),TRUNC((MIN(I306,K306)*(1+'1. Checklist & Certification'!$K$43)+AP306)),0))","v":0},{"$f":"IF(OR(A306=0,B306=\"X\"),0,IF(OR(S306=\"CHRP-R\",S306=\"SERA\",S306=\"SUHRP\",U306=\"CHRP-R\",U306=\"SERA\",U306=\"SUHRP\",W306=\"CHRP-R\",W306=\"SERA\",W306=\"SUHRP\",Y306=\"CHRP-R\",Y306=\"SERA\",Y306=\"SUHRP\"),TRUNC((MIN(I306,K306)*(1+'1. Checklist & Certification'!$K$49))),0))","v":0},{"$f":"IF(OR(A306=0,B306=\"X\"),0,IF(OR(S306=\"CALDAP\",S306=\"DPRLP\",U306=\"CALDAP\",U306=\"DPRLP\",W306=\"CALDAP\",W306=\"DPRLP\",Y306=\"CALDAP\",Y306=\"DPRLP\"),TRUNC(((MIN(I306,K306))*(1+'1. Checklist & Certification'!$G$4))),0))","v":0},0,0,0,{"$f":"IF(OR(A306=0,B306=\"X\"),0,IF(OR(S306=\"PRP\",S306=\"LPR\",U306=\"PRP\",U306=\"LPR\",W306=\"PRP\",W306=\"LPR\",Y306=\"PRP\",Y306=\"LPR\"),MAX(I306+AP306,MIN(IF(AE306:AN306<>0,AE306:AN306))),MIN(IF(AE306:AN306<>0,AE306:AN306))))","v":0},{"$f":"IF(A306=0,0,IF(AND(OR(S306=\"Mgr\",S306=0),OR(U306=\"Mgr\",U306=0),OR(W306=\"Mgr\",W306=0)),0,IF(LEFT($A306,2)=\"B*\",VLOOKUP($E306,'1. Checklist & Certification'!$D$26:$E$32,2),IF(LEFT($A306,2)=\"C*\",VLOOKUP($E306,'1. Checklist & Certification'!$F$26:$G$32,2),IF(LEFT($A306,2)=\"D*\",VLOOKUP($E306,'1. Checklist & Certification'!$H$26:$I$32,2),IF(LEFT($A306,2)=\"E*\",VLOOKUP($E306,'1. Checklist & Certification'!$J$26:$K$32,2),VLOOKUP($E306,'1. Checklist & Certification'!$A$26:$B$32,2)))))))","v":0},0,0,null,null,null,null,"","",0,0,0,null,{"$f":"IF(A306=\"\",\"\",'1. Checklist & Certification'!$K$1)","v":""},{"$f":"IF(A306=\"\",\"\",'1. Checklist & Certification'!$C$62)","v":""},{"$f":"IF(A306=\"\",\"\",'1. Checklist & Certification'!$C$6)","v":""},{"$f":"IF(A306=\"\",\"\",'1. Checklist & Certification'!$G$5)","v":""},{"$f":"IFERROR(IF(A306=\"\",\"\",\n_xlfn.LET(_xlpm.Contract,'1. Checklist & Certification'!$C$7,\n_xlpm.Yr,TEXT(MOD(_xlfn.TEXTBEFORE(_xlpm.Contract,\"-\"),100),\"00\"),\n_xlpm.Program,_xlfn.TEXTAFTER(_xlfn.TEXTBEFORE(_xlpm.Contract,\"-\",2),\"-\"),\n_xlpm.CleanProgram,_xlfn.XLOOKUP(_xlpm.Program,SpellCheck[Input],SpellCheck[Correction],_xlpm.Program),\n_xlpm.Number,TEXT(_xlfn.TEXTAFTER(_xlpm.Contract,\"-\",2),\"0000\"),\n_xlfn.CONCAT(_xlpm.Yr,\"-\",_xlpm.CleanProgram,\"-\",_xlpm.Number))\n),\"\")","v":""},{"$f":"IFERROR(IF(A306=\"\",\"\",\n_xlfn.LET(_xlpm.Contract,'1. Checklist & Certification'!$C$8,\n_xlpm.Yr,TEXT(MOD(_xlfn.TEXTBEFORE(_xlpm.Contract,\"-\"),100),\"00\"),\n_xlpm.Program,_xlfn.TEXTAFTER(_xlfn.TEXTBEFORE(_xlpm.Contract,\"-\",2),\"-\"),\n_xlpm.CleanProgram,_xlfn.XLOOKUP(_xlpm.Program,SpellCheck[Input],SpellCheck[Correction],_xlpm.Program),\n_xlpm.Number,TEXT(_xlfn.TEXTAFTER(_xlpm.Contract,\"-\",2),\"0000\"),\n_xlfn.CONCAT(_xlpm.Yr,\"-\",_xlpm.CleanProgram,\"-\",_xlpm.Number))\n),\"\")","v":""},{"$f":"IFERROR(IF(A306=\"\",\"\",\n_xlfn.LET(_xlpm.Contract,'1. Checklist & Certification'!$F$7,\n_xlpm.Yr,TEXT(MOD(_xlfn.TEXTBEFORE(_xlpm.Contract,\"-\"),100),\"00\"),\n_xlpm.Program,_xlfn.TEXTAFTER(_xlfn.TEXTBEFORE(_xlpm.Contract,\"-\",2),\"-\"),\n_xlpm.CleanProgram,_xlfn.XLOOKUP(_xlpm.Program,SpellCheck[Input],SpellCheck[Correction],_xlpm.Program),\n_xlpm.Number,TEXT(_xlfn.TEXTAFTER(_xlpm.Contract,\"-\",2),\"0000\"),\n_xlfn.CONCAT(_xlpm.Yr,\"-\",_xlpm.CleanProgram,\"-\",_xlpm.Number))\n),\"\")","v":""},{"$f":"IFERROR(IF(A306=\"\",\"\",\n_xlfn.LET(_xlpm.Contract,'1. Checklist & Certification'!$F$8,\n_xlpm.Yr,TEXT(MOD(_xlfn.TEXTBEFORE(_xlpm.Contract,\"-\"),100),\"00\"),\n_xlpm.Program,_xlfn.TEXTAFTER(_xlfn.TEXTBEFORE(_xlpm.Contract,\"-\",2),\"-\"),\n_xlpm.CleanProgram,_xlfn.XLOOKUP(_xlpm.Program,SpellCheck[Input],SpellCheck[Correction],_xlpm.Program),\n_xlpm.Number,TEXT(_xlfn.TEXTAFTER(_xlpm.Contract,\"-\",2),\"0000\"),\n_xlfn.CONCAT(_xlpm.Yr,\"-\",_xlpm.CleanProgram,\"-\",_xlpm.Number))\n),\"\")","v":""},{"$f":"IF(A306=\"\",\"\",'1. Checklist & Certification'!$B$9)","v":""},{"$f":"IF(A306=\"\",\"\",'1. Checklist & Certification'!$F$9)","v":""},{"$f":"IF(A306=\"\",\"\",'1. Checklist & Certification'!$C$10)","v":""},{"$f":"IF(A306=\"\",\"\",'1. Checklist & Certification'!$C$11)","v":""},{"$f":"IF(A306=\"\",\"\",'1. Checklist & Certification'!$C$12)","v":""},{"$f":"IF(A306=\"\",\"\",'1. Checklist & Certification'!$B$14)","v":""},{"$f":"IF(A306=\"\",\"\",'1. Checklist & Certification'!$E$14)","v":""},{"$f":"IF(B306=\"\",\"\",'1. Checklist & Certification'!$G$14)","v":""},{"$f":"IF(A306=\"\",\"\",'MHP Family Income & Rent Limits'!$B$3)","v":""},{"$f":"IF(A306=\"\",\"\",'MHP Family Income & Rent Limits'!$J$3)","v":""},{"$f":"IF(A306=\"\",\"\",'MHP Family Income & Rent Limits'!$E$4)","v":""},{"$f":"IF(A306=\"\",\"\",'MHP Family Income & Rent Limits'!$C$7)","v":""},{"$f":"IF(A306=\"\",\"\",'MHP Family Income & Rent Limits'!$F$8)","v":""},{"$f":"IF(A306=\"\",\"\",'1. Checklist & Certification'!$G$4)","v":""},{"$f":"IF(A306=\"\",\"\",'1. Checklist & Certification'!$K$39)","v":""},{"$f":"IF(A306=\"\",\"\",'1. Checklist & Certification'!$K$43)","v":""},{"$f":"IF(A306=\"\",\"\",'1. Checklist & Certification'!$K$45)","v":""},{"$f":"IF(A306=\"\",\"\",'1. Checklist & Certification'!$K$49)","v":""},{"$f":"IF(A306=\"\",\"\",'1. Checklist & Certification'!$K$62)","v":""},{"$f":"IF(A306=\"\",\"\",'1. Checklist & Certification'!$E$66)","v":""},{"$f":"IF(A306=\"\",\"\",'1. Checklist & Certification'!$E$67)","v":""},{"$f":"IF(A306=\"\",\"\",'1. Checklist & Certification'!$E$68)","v":""},{"$f":"IF(A306=\"\",\"\",'1. Checklist & Certification'!$G$66)","v":""},{"$f":"IF(A306=\"\",\"\",'1. Checklist & Certification'!$H$66)","v":""},{"$f":"IF(A306=\"\",\"\",'1. Checklist & Certification'!$I$66)","v":""},{"$f":"IF(A306=\"\",\"\",'1. Checklist & Certification'!$I$67)","v":""},{"$f":"IF(A306=\"\",\"\",'1. Checklist & Certification'!$I$68)","v":""},{"$f":"IF(A306=\"\",\"\",'1. Checklist & Certification'!$B$69)","v":""},{"$f":"IF(A306=\"\",\"\",'1. Checklist & Certification'!$C$69)","v":""},{"$f":"IF(A306=\"\",\"\",'1. Checklist & Certification'!$F$69)","v":""},{"$f":"IF(A306=\"\",\"\",'1. Checklist & Certification'!$G$69)","v":""},{"$f":"IF(A306=\"\",\"\",'1. Checklist & Certification'!$J$69)","v":""},{"$f":"IF(A306=\"\",\"\",'1. Checklist & Certification'!$K$69)","v":""},null,null,{"$f":"IF(AND(OR('1. Checklist & Certification'!$M$16=1,'1. Checklist & Certification'!$M$19=2),AO306>0,B306=\"\",I306>0,AQ306<I306,AV306<>\"Sec 8-Project\"),\"X\",IF(AND(OR('1. Checklist & Certification'!$M$20=4,'1. Checklist & Certification'!$M$21=5,'1. Checklist & Certification'!$M$22=7),AO306>0,B306=\"\",I306>0,K306<I306),\"X\",\"\"))","v":""},{"$f":"IF(A306=\"\",\"\",IF(SUMPRODUCT(-- (ISNUMBER(SEARCH({\"*AHSC*\",\"*FMTW*\",\"*FWHG*\",\"*GHI*\",\"*HHC*\",\"*HLCP*\",\"*HOME*\",\"*LPR*\",\"*MHP*\",\"*NHTF*\",\"*NSP*\",\"*PRP*\",\"*TOD*\",\"*VHHP*\"},'1. Checklist & Certification'!$L$7)))),\"MHP\",\"Legacy\"))","v":""},",,",null,null,null,{"$f":"IF('1. Checklist & Certification'!$M$20=4,\"Both\",IF(OR('1. Checklist & Certification'!$M$15>0,S306=\"CHRP-R\",U306=\"CHRP-R\",W306=\"CHRP-R\",Y306=\"CHRP-R\"),\"Under\",\"No\"))","v":"No"},"No","No",{"$f":"_xlfn.IFS(D306=\"\",\"\",D306=1,'MHP Family Income & Rent Limits'!$E$17,D306=2,'MHP Family Income & Rent Limits'!$F$17,D306=3,'MHP Family Income & Rent Limits'!$G$17,D306=4,'MHP Family Income & Rent Limits'!$H$17,D306=5,'MHP Family Income & Rent Limits'!$I$17,D306=6,'MHP Family Income & Rent Limits'!$J$17,D306=7,'MHP Family Income & Rent Limits'!$K$17,D306=8,'MHP Family Income & Rent Limits'!$L$17)","v":""},"",{"$f":"IF(OR(A306=0,B306=\"X\"),0,MIN(IF(AA306:AD306<>0,AA306:AD306)))","v":0},{"$f":"IF(OR(H306=\"\",I306=\"\"),0,IF(H306*0.3/12>I306,MIN(H306*0.3/12,I306*1.1)+AP306,I306*(1+(VLOOKUP('1. Checklist & Certification'!$F$9,'HLCP-E Rent Change'!$A$1:$D$59,4,FALSE)))+AP306))","v":0}]
[null,null,null,null,null,null,null,null,null,null,null,null,null,null,null,null,null,null,null,null,null,null,null,null,null,null,0,0,0,0,0,0,0,0,{"$f":"IF(OR(A307=0,B307=\"X\"),0,IF(OR(S307=\"FHDP\",S307=\"RHCP-B\",U307=\"FHDP\",U307=\"RHCP-B\",W307=\"FHDP\",W307=\"RHCP-B\",Y307=\"FHDP\",Y307=\"RHCP-B\"),TRUNC((MIN(I307,K307)*(1+'1. Checklist & Certification'!$K$43)+AP307)),0))","v":0},{"$f":"IF(OR(A307=0,B307=\"X\"),0,IF(OR(S307=\"CHRP-R\",S307=\"SERA\",S307=\"SUHRP\",U307=\"CHRP-R\",U307=\"SERA\",U307=\"SUHRP\",W307=\"CHRP-R\",W307=\"SERA\",W307=\"SUHRP\",Y307=\"CHRP-R\",Y307=\"SERA\",Y307=\"SUHRP\"),TRUNC((MIN(I307,K307)*(1+'1. Checklist & Certification'!$K$49))),0))","v":0},{"$f":"IF(OR(A307=0,B307=\"X\"),0,IF(OR(S307=\"CALDAP\",S307=\"DPRLP\",U307=\"CALDAP\",U307=\"DPRLP\",W307=\"CALDAP\",W307=\"DPRLP\",Y307=\"CALDAP\",Y307=\"DPRLP\"),TRUNC(((MIN(I307,K307))*(1+'1. Checklist & Certification'!$G$4))),0))","v":0},0,0,0,{"$f":"IF(OR(A307=0,B307=\"X\"),0,IF(OR(S307=\"PRP\",S307=\"LPR\",U307=\"PRP\",U307=\"LPR\",W307=\"PRP\",W307=\"LPR\",Y307=\"PRP\",Y307=\"LPR\"),MAX(I307+AP307,MIN(IF(AE307:AN307<>0,AE307:AN307))),MIN(IF(AE307:AN307<>0,AE307:AN307))))","v":0},{"$f":"IF(A307=0,0,IF(AND(OR(S307=\"Mgr\",S307=0),OR(U307=\"Mgr\",U307=0),OR(W307=\"Mgr\",W307=0)),0,IF(LEFT($A307,2)=\"B*\",VLOOKUP($E307,'1. Checklist & Certification'!$D$26:$E$32,2),IF(LEFT($A307,2)=\"C*\",VLOOKUP($E307,'1. Checklist & Certification'!$F$26:$G$32,2),IF(LEFT($A307,2)=\"D*\",VLOOKUP($E307,'1. Checklist & Certification'!$H$26:$I$32,2),IF(LEFT($A307,2)=\"E*\",VLOOKUP($E307,'1. Checklist & Certification'!$J$26:$K$32,2),VLOOKUP($E307,'1. Checklist & Certification'!$A$26:$B$32,2)))))))","v":0},0,0,null,null,null,null,"","",0,0,0,null,{"$f":"IF(A307=\"\",\"\",'1. Checklist & Certification'!$K$1)","v":""},{"$f":"IF(A307=\"\",\"\",'1. Checklist & Certification'!$C$62)","v":""},{"$f":"IF(A307=\"\",\"\",'1. Checklist & Certification'!$C$6)","v":""},{"$f":"IF(A307=\"\",\"\",'1. Checklist & Certification'!$G$5)","v":""},{"$f":"IFERROR(IF(A307=\"\",\"\",\n_xlfn.LET(_xlpm.Contract,'1. Checklist & Certification'!$C$7,\n_xlpm.Yr,TEXT(MOD(_xlfn.TEXTBEFORE(_xlpm.Contract,\"-\"),100),\"00\"),\n_xlpm.Program,_xlfn.TEXTAFTER(_xlfn.TEXTBEFORE(_xlpm.Contract,\"-\",2),\"-\"),\n_xlpm.CleanProgram,_xlfn.XLOOKUP(_xlpm.Program,SpellCheck[Input],SpellCheck[Correction],_xlpm.Program),\n_xlpm.Number,TEXT(_xlfn.TEXTAFTER(_xlpm.Contract,\"-\",2),\"0000\"),\n_xlfn.CONCAT(_xlpm.Yr,\"-\",_xlpm.CleanProgram,\"-\",_xlpm.Number))\n),\"\")","v":""},{"$f":"IFERROR(IF(A307=\"\",\"\",\n_xlfn.LET(_xlpm.Contract,'1. Checklist & Certification'!$C$8,\n_xlpm.Yr,TEXT(MOD(_xlfn.TEXTBEFORE(_xlpm.Contract,\"-\"),100),\"00\"),\n_xlpm.Program,_xlfn.TEXTAFTER(_xlfn.TEXTBEFORE(_xlpm.Contract,\"-\",2),\"-\"),\n_xlpm.CleanProgram,_xlfn.XLOOKUP(_xlpm.Program,SpellCheck[Input],SpellCheck[Correction],_xlpm.Program),\n_xlpm.Number,TEXT(_xlfn.TEXTAFTER(_xlpm.Contract,\"-\",2),\"0000\"),\n_xlfn.CONCAT(_xlpm.Yr,\"-\",_xlpm.CleanProgram,\"-\",_xlpm.Number))\n),\"\")","v":""},{"$f":"IFERROR(IF(A307=\"\",\"\",\n_xlfn.LET(_xlpm.Contract,'1. Checklist & Certification'!$F$7,\n_xlpm.Yr,TEXT(MOD(_xlfn.TEXTBEFORE(_xlpm.Contract,\"-\"),100),\"00\"),\n_xlpm.Program,_xlfn.TEXTAFTER(_xlfn.TEXTBEFORE(_xlpm.Contract,\"-\",2),\"-\"),\n_xlpm.CleanProgram,_xlfn.XLOOKUP(_xlpm.Program,SpellCheck[Input],SpellCheck[Correction],_xlpm.Program),\n_xlpm.Number,TEXT(_xlfn.TEXTAFTER(_xlpm.Contract,\"-\",2),\"0000\"),\n_xlfn.CONCAT(_xlpm.Yr,\"-\",_xlpm.CleanProgram,\"-\",_xlpm.Number))\n),\"\")","v":""},{"$f":"IFERROR(IF(A307=\"\",\"\",\n_xlfn.LET(_xlpm.Contract,'1. Checklist & Certification'!$F$8,\n_xlpm.Yr,TEXT(MOD(_xlfn.TEXTBEFORE(_xlpm.Contract,\"-\"),100),\"00\"),\n_xlpm.Program,_xlfn.TEXTAFTER(_xlfn.TEXTBEFORE(_xlpm.Contract,\"-\",2),\"-\"),\n_xlpm.CleanProgram,_xlfn.XLOOKUP(_xlpm.Program,SpellCheck[Input],SpellCheck[Correction],_xlpm.Program),\n_xlpm.Number,TEXT(_xlfn.TEXTAFTER(_xlpm.Contract,\"-\",2),\"0000\"),\n_xlfn.CONCAT(_xlpm.Yr,\"-\",_xlpm.CleanProgram,\"-\",_xlpm.Number))\n),\"\")","v":""},{"$f":"IF(A307=\"\",\"\",'1. Checklist & Certification'!$B$9)","v":""},{"$f":"IF(A307=\"\",\"\",'1. Checklist & Certification'!$F$9)","v":""},{"$f":"IF(A307=\"\",\"\",'1. Checklist & Certification'!$C$10)","v":""},{"$f":"IF(A307=\"\",\"\",'1. Checklist & Certification'!$C$11)","v":""},{"$f":"IF(A307=\"\",\"\",'1. Checklist & Certification'!$C$12)","v":""},{"$f":"IF(A307=\"\",\"\",'1. Checklist & Certification'!$B$14)","v":""},{"$f":"IF(A307=\"\",\"\",'1. Checklist & Certification'!$E$14)","v":""},{"$f":"IF(B307=\"\",\"\",'1. Checklist & Certification'!$G$14)","v":""},{"$f":"IF(A307=\"\",\"\",'MHP Family Income & Rent Limits'!$B$3)","v":""},{"$f":"IF(A307=\"\",\"\",'MHP Family Income & Rent Limits'!$J$3)","v":""},{"$f":"IF(A307=\"\",\"\",'MHP Family Income & Rent Limits'!$E$4)","v":""},{"$f":"IF(A307=\"\",\"\",'MHP Family Income & Rent Limits'!$C$7)","v":""},{"$f":"IF(A307=\"\",\"\",'MHP Family Income & Rent Limits'!$F$8)","v":""},{"$f":"IF(A307=\"\",\"\",'1. Checklist & Certification'!$G$4)","v":""},{"$f":"IF(A307=\"\",\"\",'1. Checklist & Certification'!$K$39)","v":""},{"$f":"IF(A307=\"\",\"\",'1. Checklist & Certification'!$K$43)","v":""},{"$f":"IF(A307=\"\",\"\",'1. Checklist & Certification'!$K$45)","v":""},{"$f":"IF(A307=\"\",\"\",'1. Checklist & Certification'!$K$49)","v":""},{"$f":"IF(A307=\"\",\"\",'1. Checklist & Certification'!$K$62)","v":""},{"$f":"IF(A307=\"\",\"\",'1. Checklist & Certification'!$E$66)","v":""},{"$f":"IF(A307=\"\",\"\",'1. Checklist & Certification'!$E$67)","v":""},{"$f":"IF(A307=\"\",\"\",'1. Checklist & Certification'!$E$68)","v":""},{"$f":"IF(A307=\"\",\"\",'1. Checklist & Certification'!$G$66)","v":""},{"$f":"IF(A307=\"\",\"\",'1. Checklist & Certification'!$H$66)","v":""},{"$f":"IF(A307=\"\",\"\",'1. Checklist & Certification'!$I$66)","v":""},{"$f":"IF(A307=\"\",\"\",'1. Checklist & Certification'!$I$67)","v":""},{"$f":"IF(A307=\"\",\"\",'1. Checklist & Certification'!$I$68)","v":""},{"$f":"IF(A307=\"\",\"\",'1. Checklist & Certification'!$B$69)","v":""},{"$f":"IF(A307=\"\",\"\",'1. Checklist & Certification'!$C$69)","v":""},{"$f":"IF(A307=\"\",\"\",'1. Checklist & Certification'!$F$69)","v":""},{"$f":"IF(A307=\"\",\"\",'1. Checklist & Certification'!$G$69)","v":""},{"$f":"IF(A307=\"\",\"\",'1. Checklist & Certification'!$J$69)","v":""},{"$f":"IF(A307=\"\",\"\",'1. Checklist & Certification'!$K$69)","v":""},null,null,{"$f":"IF(AND(OR('1. Checklist & Certification'!$M$16=1,'1. Checklist & Certification'!$M$19=2),AO307>0,B307=\"\",I307>0,AQ307<I307,AV307<>\"Sec 8-Project\"),\"X\",IF(AND(OR('1. Checklist & Certification'!$M$20=4,'1. Checklist & Certification'!$M$21=5,'1. Checklist & Certification'!$M$22=7),AO307>0,B307=\"\",I307>0,K307<I307),\"X\",\"\"))","v":""},{"$f":"IF(A307=\"\",\"\",IF(SUMPRODUCT(-- (ISNUMBER(SEARCH({\"*AHSC*\",\"*FMTW*\",\"*FWHG*\",\"*GHI*\",\"*HHC*\",\"*HLCP*\",\"*HOME*\",\"*LPR*\",\"*MHP*\",\"*NHTF*\",\"*NSP*\",\"*PRP*\",\"*TOD*\",\"*VHHP*\"},'1. Checklist & Certification'!$L$7)))),\"MHP\",\"Legacy\"))","v":""},",,",null,null,null,{"$f":"IF('1. Checklist & Certification'!$M$20=4,\"Both\",IF(OR('1. Checklist & Certification'!$M$15>0,S307=\"CHRP-R\",U307=\"CHRP-R\",W307=\"CHRP-R\",Y307=\"CHRP-R\"),\"Under\",\"No\"))","v":"No"},"No","No",{"$f":"_xlfn.IFS(D307=\"\",\"\",D307=1,'MHP Family Income & Rent Limits'!$E$17,D307=2,'MHP Family Income & Rent Limits'!$F$17,D307=3,'MHP Family Income & Rent Limits'!$G$17,D307=4,'MHP Family Income & Rent Limits'!$H$17,D307=5,'MHP Family Income & Rent Limits'!$I$17,D307=6,'MHP Family Income & Rent Limits'!$J$17,D307=7,'MHP Family Income & Rent Limits'!$K$17,D307=8,'MHP Family Income & Rent Limits'!$L$17)","v":""},"",{"$f":"IF(OR(A307=0,B307=\"X\"),0,MIN(IF(AA307:AD307<>0,AA307:AD307)))","v":0},{"$f":"IF(OR(H307=\"\",I307=\"\"),0,IF(H307*0.3/12>I307,MIN(H307*0.3/12,I307*1.1)+AP307,I307*(1+(VLOOKUP('1. Checklist & Certification'!$F$9,'HLCP-E Rent Change'!$A$1:$D$59,4,FALSE)))+AP307))","v":0}]
[null,null,null,null,null,null,null,null,null,null,null,null,null,null,null,null,null,null,null,null,null,null,null,null,null,null,0,0,0,0,0,0,0,0,{"$f":"IF(OR(A308=0,B308=\"X\"),0,IF(OR(S308=\"FHDP\",S308=\"RHCP-B\",U308=\"FHDP\",U308=\"RHCP-B\",W308=\"FHDP\",W308=\"RHCP-B\",Y308=\"FHDP\",Y308=\"RHCP-B\"),TRUNC((MIN(I308,K308)*(1+'1. Checklist & Certification'!$K$43)+AP308)),0))","v":0},{"$f":"IF(OR(A308=0,B308=\"X\"),0,IF(OR(S308=\"CHRP-R\",S308=\"SERA\",S308=\"SUHRP\",U308=\"CHRP-R\",U308=\"SERA\",U308=\"SUHRP\",W308=\"CHRP-R\",W308=\"SERA\",W308=\"SUHRP\",Y308=\"CHRP-R\",Y308=\"SERA\",Y308=\"SUHRP\"),TRUNC((MIN(I308,K308)*(1+'1. Checklist & Certification'!$K$49))),0))","v":0},{"$f":"IF(OR(A308=0,B308=\"X\"),0,IF(OR(S308=\"CALDAP\",S308=\"DPRLP\",U308=\"CALDAP\",U308=\"DPRLP\",W308=\"CALDAP\",W308=\"DPRLP\",Y308=\"CALDAP\",Y308=\"DPRLP\"),TRUNC(((MIN(I308,K308))*(1+'1. Checklist & Certification'!$G$4))),0))","v":0},0,0,0,{"$f":"IF(OR(A308=0,B308=\"X\"),0,IF(OR(S308=\"PRP\",S308=\"LPR\",U308=\"PRP\",U308=\"LPR\",W308=\"PRP\",W308=\"LPR\",Y308=\"PRP\",Y308=\"LPR\"),MAX(I308+AP308,MIN(IF(AE308:AN308<>0,AE308:AN308))),MIN(IF(AE308:AN308<>0,AE308:AN308))))","v":0},{"$f":"IF(A308=0,0,IF(AND(OR(S308=\"Mgr\",S308=0),OR(U308=\"Mgr\",U308=0),OR(W308=\"Mgr\",W308=0)),0,IF(LEFT($A308,2)=\"B*\",VLOOKUP($E308,'1. Checklist & Certification'!$D$26:$E$32,2),IF(LEFT($A308,2)=\"C*\",VLOOKUP($E308,'1. Checklist & Certification'!$F$26:$G$32,2),IF(LEFT($A308,2)=\"D*\",VLOOKUP($E308,'1. Checklist & Certification'!$H$26:$I$32,2),IF(LEFT($A308,2)=\"E*\",VLOOKUP($E308,'1. Checklist & Certification'!$J$26:$K$32,2),VLOOKUP($E308,'1. Checklist & Certification'!$A$26:$B$32,2)))))))","v":0},0,0,null,null,null,null,"","",0,0,0,null,{"$f":"IF(A308=\"\",\"\",'1. Checklist & Certification'!$K$1)","v":""},{"$f":"IF(A308=\"\",\"\",'1. Checklist & Certification'!$C$62)","v":""},{"$f":"IF(A308=\"\",\"\",'1. Checklist & Certification'!$C$6)","v":""},{"$f":"IF(A308=\"\",\"\",'1. Checklist & Certification'!$G$5)","v":""},{"$f":"IFERROR(IF(A308=\"\",\"\",\n_xlfn.LET(_xlpm.Contract,'1. Checklist & Certification'!$C$7,\n_xlpm.Yr,TEXT(MOD(_xlfn.TEXTBEFORE(_xlpm.Contract,\"-\"),100),\"00\"),\n_xlpm.Program,_xlfn.TEXTAFTER(_xlfn.TEXTBEFORE(_xlpm.Contract,\"-\",2),\"-\"),\n_xlpm.CleanProgram,_xlfn.XLOOKUP(_xlpm.Program,SpellCheck[Input],SpellCheck[Correction],_xlpm.Program),\n_xlpm.Number,TEXT(_xlfn.TEXTAFTER(_xlpm.Contract,\"-\",2),\"0000\"),\n_xlfn.CONCAT(_xlpm.Yr,\"-\",_xlpm.CleanProgram,\"-\",_xlpm.Number))\n),\"\")","v":""},{"$f":"IFERROR(IF(A308=\"\",\"\",\n_xlfn.LET(_xlpm.Contract,'1. Checklist & Certification'!$C$8,\n_xlpm.Yr,TEXT(MOD(_xlfn.TEXTBEFORE(_xlpm.Contract,\"-\"),100),\"00\"),\n_xlpm.Program,_xlfn.TEXTAFTER(_xlfn.TEXTBEFORE(_xlpm.Contract,\"-\",2),\"-\"),\n_xlpm.CleanProgram,_xlfn.XLOOKUP(_xlpm.Program,SpellCheck[Input],SpellCheck[Correction],_xlpm.Program),\n_xlpm.Number,TEXT(_xlfn.TEXTAFTER(_xlpm.Contract,\"-\",2),\"0000\"),\n_xlfn.CONCAT(_xlpm.Yr,\"-\",_xlpm.CleanProgram,\"-\",_xlpm.Number))\n),\"\")","v":""},{"$f":"IFERROR(IF(A308=\"\",\"\",\n_xlfn.LET(_xlpm.Contract,'1. Checklist & Certification'!$F$7,\n_xlpm.Yr,TEXT(MOD(_xlfn.TEXTBEFORE(_xlpm.Contract,\"-\"),100),\"00\"),\n_xlpm.Program,_xlfn.TEXTAFTER(_xlfn.TEXTBEFORE(_xlpm.Contract,\"-\",2),\"-\"),\n_xlpm.CleanProgram,_xlfn.XLOOKUP(_xlpm.Program,SpellCheck[Input],SpellCheck[Correction],_xlpm.Program),\n_xlpm.Number,TEXT(_xlfn.TEXTAFTER(_xlpm.Contract,\"-\",2),\"0000\"),\n_xlfn.CONCAT(_xlpm.Yr,\"-\",_xlpm.CleanProgram,\"-\",_xlpm.Number))\n),\"\")","v":""},{"$f":"IFERROR(IF(A308=\"\",\"\",\n_xlfn.LET(_xlpm.Contract,'1. Checklist & Certification'!$F$8,\n_xlpm.Yr,TEXT(MOD(_xlfn.TEXTBEFORE(_xlpm.Contract,\"-\"),100),\"00\"),\n_xlpm.Program,_xlfn.TEXTAFTER(_xlfn.TEXTBEFORE(_xlpm.Contract,\"-\",2),\"-\"),\n_xlpm.CleanProgram,_xlfn.XLOOKUP(_xlpm.Program,SpellCheck[Input],SpellCheck[Correction],_xlpm.Program),\n_xlpm.Number,TEXT(_xlfn.TEXTAFTER(_xlpm.Contract,\"-\",2),\"0000\"),\n_xlfn.CONCAT(_xlpm.Yr,\"-\",_xlpm.CleanProgram,\"-\",_xlpm.Number))\n),\"\")","v":""},{"$f":"IF(A308=\"\",\"\",'1. Checklist & Certification'!$B$9)","v":""},{"$f":"IF(A308=\"\",\"\",'1. Checklist & Certification'!$F$9)","v":""},{"$f":"IF(A308=\"\",\"\",'1. Checklist & Certification'!$C$10)","v":""},{"$f":"IF(A308=\"\",\"\",'1. Checklist & Certification'!$C$11)","v":""},{"$f":"IF(A308=\"\",\"\",'1. Checklist & Certification'!$C$12)","v":""},{"$f":"IF(A308=\"\",\"\",'1. Checklist & Certification'!$B$14)","v":""},{"$f":"IF(A308=\"\",\"\",'1. Checklist & Certification'!$E$14)","v":""},{"$f":"IF(B308=\"\",\"\",'1. Checklist & Certification'!$G$14)","v":""},{"$f":"IF(A308=\"\",\"\",'MHP Family Income & Rent Limits'!$B$3)","v":""},{"$f":"IF(A308=\"\",\"\",'MHP Family Income & Rent Limits'!$J$3)","v":""},{"$f":"IF(A308=\"\",\"\",'MHP Family Income & Rent Limits'!$E$4)","v":""},{"$f":"IF(A308=\"\",\"\",'MHP Family Income & Rent Limits'!$C$7)","v":""},{"$f":"IF(A308=\"\",\"\",'MHP Family Income & Rent Limits'!$F$8)","v":""},{"$f":"IF(A308=\"\",\"\",'1. Checklist & Certification'!$G$4)","v":""},{"$f":"IF(A308=\"\",\"\",'1. Checklist & Certification'!$K$39)","v":""},{"$f":"IF(A308=\"\",\"\",'1. Checklist & Certification'!$K$43)","v":""},{"$f":"IF(A308=\"\",\"\",'1. Checklist & Certification'!$K$45)","v":""},{"$f":"IF(A308=\"\",\"\",'1. Checklist & Certification'!$K$49)","v":""},{"$f":"IF(A308=\"\",\"\",'1. Checklist & Certification'!$K$62)","v":""},{"$f":"IF(A308=\"\",\"\",'1. Checklist & Certification'!$E$66)","v":""},{"$f":"IF(A308=\"\",\"\",'1. Checklist & Certification'!$E$67)","v":""},{"$f":"IF(A308=\"\",\"\",'1. Checklist & Certification'!$E$68)","v":""},{"$f":"IF(A308=\"\",\"\",'1. Checklist & Certification'!$G$66)","v":""},{"$f":"IF(A308=\"\",\"\",'1. Checklist & Certification'!$H$66)","v":""},{"$f":"IF(A308=\"\",\"\",'1. Checklist & Certification'!$I$66)","v":""},{"$f":"IF(A308=\"\",\"\",'1. Checklist & Certification'!$I$67)","v":""},{"$f":"IF(A308=\"\",\"\",'1. Checklist & Certification'!$I$68)","v":""},{"$f":"IF(A308=\"\",\"\",'1. Checklist & Certification'!$B$69)","v":""},{"$f":"IF(A308=\"\",\"\",'1. Checklist & Certification'!$C$69)","v":""},{"$f":"IF(A308=\"\",\"\",'1. Checklist & Certification'!$F$69)","v":""},{"$f":"IF(A308=\"\",\"\",'1. Checklist & Certification'!$G$69)","v":""},{"$f":"IF(A308=\"\",\"\",'1. Checklist & Certification'!$J$69)","v":""},{"$f":"IF(A308=\"\",\"\",'1. Checklist & Certification'!$K$69)","v":""},null,null,{"$f":"IF(AND(OR('1. Checklist & Certification'!$M$16=1,'1. Checklist & Certification'!$M$19=2),AO308>0,B308=\"\",I308>0,AQ308<I308,AV308<>\"Sec 8-Project\"),\"X\",IF(AND(OR('1. Checklist & Certification'!$M$20=4,'1. Checklist & Certification'!$M$21=5,'1. Checklist & Certification'!$M$22=7),AO308>0,B308=\"\",I308>0,K308<I308),\"X\",\"\"))","v":""},{"$f":"IF(A308=\"\",\"\",IF(SUMPRODUCT(-- (ISNUMBER(SEARCH({\"*AHSC*\",\"*FMTW*\",\"*FWHG*\",\"*GHI*\",\"*HHC*\",\"*HLCP*\",\"*HOME*\",\"*LPR*\",\"*MHP*\",\"*NHTF*\",\"*NSP*\",\"*PRP*\",\"*TOD*\",\"*VHHP*\"},'1. Checklist & Certification'!$L$7)))),\"MHP\",\"Legacy\"))","v":""},",,",null,null,null,{"$f":"IF('1. Checklist & Certification'!$M$20=4,\"Both\",IF(OR('1. Checklist & Certification'!$M$15>0,S308=\"CHRP-R\",U308=\"CHRP-R\",W308=\"CHRP-R\",Y308=\"CHRP-R\"),\"Under\",\"No\"))","v":"No"},"No","No",{"$f":"_xlfn.IFS(D308=\"\",\"\",D308=1,'MHP Family Income & Rent Limits'!$E$17,D308=2,'MHP Family Income & Rent Limits'!$F$17,D308=3,'MHP Family Income & Rent Limits'!$G$17,D308=4,'MHP Family Income & Rent Limits'!$H$17,D308=5,'MHP Family Income & Rent Limits'!$I$17,D308=6,'MHP Family Income & Rent Limits'!$J$17,D308=7,'MHP Family Income & Rent Limits'!$K$17,D308=8,'MHP Family Income & Rent Limits'!$L$17)","v":""},"",{"$f":"IF(OR(A308=0,B308=\"X\"),0,MIN(IF(AA308:AD308<>0,AA308:AD308)))","v":0},{"$f":"IF(OR(H308=\"\",I308=\"\"),0,IF(H308*0.3/12>I308,MIN(H308*0.3/12,I308*1.1)+AP308,I308*(1+(VLOOKUP('1. Checklist & Certification'!$F$9,'HLCP-E Rent Change'!$A$1:$D$59,4,FALSE)))+AP308))","v":0}]
[null,null,null,null,null,null,null,null,null,null,null,null,null,null,null,null,null,null,null,null,null,null,null,null,null,null,0,0,0,0,0,0,0,0,{"$f":"IF(OR(A309=0,B309=\"X\"),0,IF(OR(S309=\"FHDP\",S309=\"RHCP-B\",U309=\"FHDP\",U309=\"RHCP-B\",W309=\"FHDP\",W309=\"RHCP-B\",Y309=\"FHDP\",Y309=\"RHCP-B\"),TRUNC((MIN(I309,K309)*(1+'1. Checklist & Certification'!$K$43)+AP309)),0))","v":0},{"$f":"IF(OR(A309=0,B309=\"X\"),0,IF(OR(S309=\"CHRP-R\",S309=\"SERA\",S309=\"SUHRP\",U309=\"CHRP-R\",U309=\"SERA\",U309=\"SUHRP\",W309=\"CHRP-R\",W309=\"SERA\",W309=\"SUHRP\",Y309=\"CHRP-R\",Y309=\"SERA\",Y309=\"SUHRP\"),TRUNC((MIN(I309,K309)*(1+'1. Checklist & Certification'!$K$49))),0))","v":0},{"$f":"IF(OR(A309=0,B309=\"X\"),0,IF(OR(S309=\"CALDAP\",S309=\"DPRLP\",U309=\"CALDAP\",U309=\"DPRLP\",W309=\"CALDAP\",W309=\"DPRLP\",Y309=\"CALDAP\",Y309=\"DPRLP\"),TRUNC(((MIN(I309,K309))*(1+'1. Checklist & Certification'!$G$4))),0))","v":0},0,0,0,{"$f":"IF(OR(A309=0,B309=\"X\"),0,IF(OR(S309=\"PRP\",S309=\"LPR\",U309=\"PRP\",U309=\"LPR\",W309=\"PRP\",W309=\"LPR\",Y309=\"PRP\",Y309=\"LPR\"),MAX(I309+AP309,MIN(IF(AE309:AN309<>0,AE309:AN309))),MIN(IF(AE309:AN309<>0,AE309:AN309))))","v":0},{"$f":"IF(A309=0,0,IF(AND(OR(S309=\"Mgr\",S309=0),OR(U309=\"Mgr\",U309=0),OR(W309=\"Mgr\",W309=0)),0,IF(LEFT($A309,2)=\"B*\",VLOOKUP($E309,'1. Checklist & Certification'!$D$26:$E$32,2),IF(LEFT($A309,2)=\"C*\",VLOOKUP($E309,'1. Checklist & Certification'!$F$26:$G$32,2),IF(LEFT($A309,2)=\"D*\",VLOOKUP($E309,'1. Checklist & Certification'!$H$26:$I$32,2),IF(LEFT($A309,2)=\"E*\",VLOOKUP($E309,'1. Checklist & Certification'!$J$26:$K$32,2),VLOOKUP($E309,'1. Checklist & Certification'!$A$26:$B$32,2)))))))","v":0},0,0,null,null,null,null,"","",0,0,0,null,{"$f":"IF(A309=\"\",\"\",'1. Checklist & Certification'!$K$1)","v":""},{"$f":"IF(A309=\"\",\"\",'1. Checklist & Certification'!$C$62)","v":""},{"$f":"IF(A309=\"\",\"\",'1. Checklist & Certification'!$C$6)","v":""},{"$f":"IF(A309=\"\",\"\",'1. Checklist & Certification'!$G$5)","v":""},{"$f":"IFERROR(IF(A309=\"\",\"\",\n_xlfn.LET(_xlpm.Contract,'1. Checklist & Certification'!$C$7,\n_xlpm.Yr,TEXT(MOD(_xlfn.TEXTBEFORE(_xlpm.Contract,\"-\"),100),\"00\"),\n_xlpm.Program,_xlfn.TEXTAFTER(_xlfn.TEXTBEFORE(_xlpm.Contract,\"-\",2),\"-\"),\n_xlpm.CleanProgram,_xlfn.XLOOKUP(_xlpm.Program,SpellCheck[Input],SpellCheck[Correction],_xlpm.Program),\n_xlpm.Number,TEXT(_xlfn.TEXTAFTER(_xlpm.Contract,\"-\",2),\"0000\"),\n_xlfn.CONCAT(_xlpm.Yr,\"-\",_xlpm.CleanProgram,\"-\",_xlpm.Number))\n),\"\")","v":""},{"$f":"IFERROR(IF(A309=\"\",\"\",\n_xlfn.LET(_xlpm.Contract,'1. Checklist & Certification'!$C$8,\n_xlpm.Yr,TEXT(MOD(_xlfn.TEXTBEFORE(_xlpm.Contract,\"-\"),100),\"00\"),\n_xlpm.Program,_xlfn.TEXTAFTER(_xlfn.TEXTBEFORE(_xlpm.Contract,\"-\",2),\"-\"),\n_xlpm.CleanProgram,_xlfn.XLOOKUP(_xlpm.Program,SpellCheck[Input],SpellCheck[Correction],_xlpm.Program),\n_xlpm.Number,TEXT(_xlfn.TEXTAFTER(_xlpm.Contract,\"-\",2),\"0000\"),\n_xlfn.CONCAT(_xlpm.Yr,\"-\",_xlpm.CleanProgram,\"-\",_xlpm.Number))\n),\"\")","v":""},{"$f":"IFERROR(IF(A309=\"\",\"\",\n_xlfn.LET(_xlpm.Contract,'1. Checklist & Certification'!$F$7,\n_xlpm.Yr,TEXT(MOD(_xlfn.TEXTBEFORE(_xlpm.Contract,\"-\"),100),\"00\"),\n_xlpm.Program,_xlfn.TEXTAFTER(_xlfn.TEXTBEFORE(_xlpm.Contract,\"-\",2),\"-\"),\n_xlpm.CleanProgram,_xlfn.XLOOKUP(_xlpm.Program,SpellCheck[Input],SpellCheck[Correction],_xlpm.Program),\n_xlpm.Number,TEXT(_xlfn.TEXTAFTER(_xlpm.Contract,\"-\",2),\"0000\"),\n_xlfn.CONCAT(_xlpm.Yr,\"-\",_xlpm.CleanProgram,\"-\",_xlpm.Number))\n),\"\")","v":""},{"$f":"IFERROR(IF(A309=\"\",\"\",\n_xlfn.LET(_xlpm.Contract,'1. Checklist & Certification'!$F$8,\n_xlpm.Yr,TEXT(MOD(_xlfn.TEXTBEFORE(_xlpm.Contract,\"-\"),100),\"00\"),\n_xlpm.Program,_xlfn.TEXTAFTER(_xlfn.TEXTBEFORE(_xlpm.Contract,\"-\",2),\"-\"),\n_xlpm.CleanProgram,_xlfn.XLOOKUP(_xlpm.Program,SpellCheck[Input],SpellCheck[Correction],_xlpm.Program),\n_xlpm.Number,TEXT(_xlfn.TEXTAFTER(_xlpm.Contract,\"-\",2),\"0000\"),\n_xlfn.CONCAT(_xlpm.Yr,\"-\",_xlpm.CleanProgram,\"-\",_xlpm.Number))\n),\"\")","v":""},{"$f":"IF(A309=\"\",\"\",'1. Checklist & Certification'!$B$9)","v":""},{"$f":"IF(A309=\"\",\"\",'1. Checklist & Certification'!$F$9)","v":""},{"$f":"IF(A309=\"\",\"\",'1. Checklist & Certification'!$C$10)","v":""},{"$f":"IF(A309=\"\",\"\",'1. Checklist & Certification'!$C$11)","v":""},{"$f":"IF(A309=\"\",\"\",'1. Checklist & Certification'!$C$12)","v":""},{"$f":"IF(A309=\"\",\"\",'1. Checklist & Certification'!$B$14)","v":""},{"$f":"IF(A309=\"\",\"\",'1. Checklist & Certification'!$E$14)","v":""},{"$f":"IF(B309=\"\",\"\",'1. Checklist & Certification'!$G$14)","v":""},{"$f":"IF(A309=\"\",\"\",'MHP Family Income & Rent Limits'!$B$3)","v":""},{"$f":"IF(A309=\"\",\"\",'MHP Family Income & Rent Limits'!$J$3)","v":""},{"$f":"IF(A309=\"\",\"\",'MHP Family Income & Rent Limits'!$E$4)","v":""},{"$f":"IF(A309=\"\",\"\",'MHP Family Income & Rent Limits'!$C$7)","v":""},{"$f":"IF(A309=\"\",\"\",'MHP Family Income & Rent Limits'!$F$8)","v":""},{"$f":"IF(A309=\"\",\"\",'1. Checklist & Certification'!$G$4)","v":""},{"$f":"IF(A309=\"\",\"\",'1. Checklist & Certification'!$K$39)","v":""},{"$f":"IF(A309=\"\",\"\",'1. Checklist & Certification'!$K$43)","v":""},{"$f":"IF(A309=\"\",\"\",'1. Checklist & Certification'!$K$45)","v":""},{"$f":"IF(A309=\"\",\"\",'1. Checklist & Certification'!$K$49)","v":""},{"$f":"IF(A309=\"\",\"\",'1. Checklist & Certification'!$K$62)","v":""},{"$f":"IF(A309=\"\",\"\",'1. Checklist & Certification'!$E$66)","v":""},{"$f":"IF(A309=\"\",\"\",'1. Checklist & Certification'!$E$67)","v":""},{"$f":"IF(A309=\"\",\"\",'1. Checklist & Certification'!$E$68)","v":""},{"$f":"IF(A309=\"\",\"\",'1. Checklist & Certification'!$G$66)","v":""},{"$f":"IF(A309=\"\",\"\",'1. Checklist & Certification'!$H$66)","v":""},{"$f":"IF(A309=\"\",\"\",'1. Checklist & Certification'!$I$66)","v":""},{"$f":"IF(A309=\"\",\"\",'1. Checklist & Certification'!$I$67)","v":""},{"$f":"IF(A309=\"\",\"\",'1. Checklist & Certification'!$I$68)","v":""},{"$f":"IF(A309=\"\",\"\",'1. Checklist & Certification'!$B$69)","v":""},{"$f":"IF(A309=\"\",\"\",'1. Checklist & Certification'!$C$69)","v":""},{"$f":"IF(A309=\"\",\"\",'1. Checklist & Certification'!$F$69)","v":""},{"$f":"IF(A309=\"\",\"\",'1. Checklist & Certification'!$G$69)","v":""},{"$f":"IF(A309=\"\",\"\",'1. Checklist & Certification'!$J$69)","v":""},{"$f":"IF(A309=\"\",\"\",'1. Checklist & Certification'!$K$69)","v":""},null,null,{"$f":"IF(AND(OR('1. Checklist & Certification'!$M$16=1,'1. Checklist & Certification'!$M$19=2),AO309>0,B309=\"\",I309>0,AQ309<I309,AV309<>\"Sec 8-Project\"),\"X\",IF(AND(OR('1. Checklist & Certification'!$M$20=4,'1. Checklist & Certification'!$M$21=5,'1. Checklist & Certification'!$M$22=7),AO309>0,B309=\"\",I309>0,K309<I309),\"X\",\"\"))","v":""},{"$f":"IF(A309=\"\",\"\",IF(SUMPRODUCT(-- (ISNUMBER(SEARCH({\"*AHSC*\",\"*FMTW*\",\"*FWHG*\",\"*GHI*\",\"*HHC*\",\"*HLCP*\",\"*HOME*\",\"*LPR*\",\"*MHP*\",\"*NHTF*\",\"*NSP*\",\"*PRP*\",\"*TOD*\",\"*VHHP*\"},'1. Checklist & Certification'!$L$7)))),\"MHP\",\"Legacy\"))","v":""},",,",null,null,null,{"$f":"IF('1. Checklist & Certification'!$M$20=4,\"Both\",IF(OR('1. Checklist & Certification'!$M$15>0,S309=\"CHRP-R\",U309=\"CHRP-R\",W309=\"CHRP-R\",Y309=\"CHRP-R\"),\"Under\",\"No\"))","v":"No"},"No","No",{"$f":"_xlfn.IFS(D309=\"\",\"\",D309=1,'MHP Family Income & Rent Limits'!$E$17,D309=2,'MHP Family Income & Rent Limits'!$F$17,D309=3,'MHP Family Income & Rent Limits'!$G$17,D309=4,'MHP Family Income & Rent Limits'!$H$17,D309=5,'MHP Family Income & Rent Limits'!$I$17,D309=6,'MHP Family Income & Rent Limits'!$J$17,D309=7,'MHP Family Income & Rent Limits'!$K$17,D309=8,'MHP Family Income & Rent Limits'!$L$17)","v":""},"",{"$f":"IF(OR(A309=0,B309=\"X\"),0,MIN(IF(AA309:AD309<>0,AA309:AD309)))","v":0},{"$f":"IF(OR(H309=\"\",I309=\"\"),0,IF(H309*0.3/12>I309,MIN(H309*0.3/12,I309*1.1)+AP309,I309*(1+(VLOOKUP('1. Checklist & Certification'!$F$9,'HLCP-E Rent Change'!$A$1:$D$59,4,FALSE)))+AP309))","v":0}]
[null,null,null,null,null,null,null,null,null,null,null,null,null,null,null,null,null,null,null,null,null,null,null,null,null,null,0,0,0,0,0,0,0,0,{"$f":"IF(OR(A310=0,B310=\"X\"),0,IF(OR(S310=\"FHDP\",S310=\"RHCP-B\",U310=\"FHDP\",U310=\"RHCP-B\",W310=\"FHDP\",W310=\"RHCP-B\",Y310=\"FHDP\",Y310=\"RHCP-B\"),TRUNC((MIN(I310,K310)*(1+'1. Checklist & Certification'!$K$43)+AP310)),0))","v":0},{"$f":"IF(OR(A310=0,B310=\"X\"),0,IF(OR(S310=\"CHRP-R\",S310=\"SERA\",S310=\"SUHRP\",U310=\"CHRP-R\",U310=\"SERA\",U310=\"SUHRP\",W310=\"CHRP-R\",W310=\"SERA\",W310=\"SUHRP\",Y310=\"CHRP-R\",Y310=\"SERA\",Y310=\"SUHRP\"),TRUNC((MIN(I310,K310)*(1+'1. Checklist & Certification'!$K$49))),0))","v":0},{"$f":"IF(OR(A310=0,B310=\"X\"),0,IF(OR(S310=\"CALDAP\",S310=\"DPRLP\",U310=\"CALDAP\",U310=\"DPRLP\",W310=\"CALDAP\",W310=\"DPRLP\",Y310=\"CALDAP\",Y310=\"DPRLP\"),TRUNC(((MIN(I310,K310))*(1+'1. Checklist & Certification'!$G$4))),0))","v":0},0,0,0,{"$f":"IF(OR(A310=0,B310=\"X\"),0,IF(OR(S310=\"PRP\",S310=\"LPR\",U310=\"PRP\",U310=\"LPR\",W310=\"PRP\",W310=\"LPR\",Y310=\"PRP\",Y310=\"LPR\"),MAX(I310+AP310,MIN(IF(AE310:AN310<>0,AE310:AN310))),MIN(IF(AE310:AN310<>0,AE310:AN310))))","v":0},{"$f":"IF(A310=0,0,IF(AND(OR(S310=\"Mgr\",S310=0),OR(U310=\"Mgr\",U310=0),OR(W310=\"Mgr\",W310=0)),0,IF(LEFT($A310,2)=\"B*\",VLOOKUP($E310,'1. Checklist & Certification'!$D$26:$E$32,2),IF(LEFT($A310,2)=\"C*\",VLOOKUP($E310,'1. Checklist & Certification'!$F$26:$G$32,2),IF(LEFT($A310,2)=\"D*\",VLOOKUP($E310,'1. Checklist & Certification'!$H$26:$I$32,2),IF(LEFT($A310,2)=\"E*\",VLOOKUP($E310,'1. Checklist & Certification'!$J$26:$K$32,2),VLOOKUP($E310,'1. Checklist & Certification'!$A$26:$B$32,2)))))))","v":0},0,0,null,null,null,null,"","",0,0,0,null,{"$f":"IF(A310=\"\",\"\",'1. Checklist & Certification'!$K$1)","v":""},{"$f":"IF(A310=\"\",\"\",'1. Checklist & Certification'!$C$62)","v":""},{"$f":"IF(A310=\"\",\"\",'1. Checklist & Certification'!$C$6)","v":""},{"$f":"IF(A310=\"\",\"\",'1. Checklist & Certification'!$G$5)","v":""},{"$f":"IFERROR(IF(A310=\"\",\"\",\n_xlfn.LET(_xlpm.Contract,'1. Checklist & Certification'!$C$7,\n_xlpm.Yr,TEXT(MOD(_xlfn.TEXTBEFORE(_xlpm.Contract,\"-\"),100),\"00\"),\n_xlpm.Program,_xlfn.TEXTAFTER(_xlfn.TEXTBEFORE(_xlpm.Contract,\"-\",2),\"-\"),\n_xlpm.CleanProgram,_xlfn.XLOOKUP(_xlpm.Program,SpellCheck[Input],SpellCheck[Correction],_xlpm.Program),\n_xlpm.Number,TEXT(_xlfn.TEXTAFTER(_xlpm.Contract,\"-\",2),\"0000\"),\n_xlfn.CONCAT(_xlpm.Yr,\"-\",_xlpm.CleanProgram,\"-\",_xlpm.Number))\n),\"\")","v":""},{"$f":"IFERROR(IF(A310=\"\",\"\",\n_xlfn.LET(_xlpm.Contract,'1. Checklist & Certification'!$C$8,\n_xlpm.Yr,TEXT(MOD(_xlfn.TEXTBEFORE(_xlpm.Contract,\"-\"),100),\"00\"),\n_xlpm.Program,_xlfn.TEXTAFTER(_xlfn.TEXTBEFORE(_xlpm.Contract,\"-\",2),\"-\"),\n_xlpm.CleanProgram,_xlfn.XLOOKUP(_xlpm.Program,SpellCheck[Input],SpellCheck[Correction],_xlpm.Program),\n_xlpm.Number,TEXT(_xlfn.TEXTAFTER(_xlpm.Contract,\"-\",2),\"0000\"),\n_xlfn.CONCAT(_xlpm.Yr,\"-\",_xlpm.CleanProgram,\"-\",_xlpm.Number))\n),\"\")","v":""},{"$f":"IFERROR(IF(A310=\"\",\"\",\n_xlfn.LET(_xlpm.Contract,'1. Checklist & Certification'!$F$7,\n_xlpm.Yr,TEXT(MOD(_xlfn.TEXTBEFORE(_xlpm.Contract,\"-\"),100),\"00\"),\n_xlpm.Program,_xlfn.TEXTAFTER(_xlfn.TEXTBEFORE(_xlpm.Contract,\"-\",2),\"-\"),\n_xlpm.CleanProgram,_xlfn.XLOOKUP(_xlpm.Program,SpellCheck[Input],SpellCheck[Correction],_xlpm.Program),\n_xlpm.Number,TEXT(_xlfn.TEXTAFTER(_xlpm.Contract,\"-\",2),\"0000\"),\n_xlfn.CONCAT(_xlpm.Yr,\"-\",_xlpm.CleanProgram,\"-\",_xlpm.Number))\n),\"\")","v":""},{"$f":"IFERROR(IF(A310=\"\",\"\",\n_xlfn.LET(_xlpm.Contract,'1. Checklist & Certification'!$F$8,\n_xlpm.Yr,TEXT(MOD(_xlfn.TEXTBEFORE(_xlpm.Contract,\"-\"),100),\"00\"),\n_xlpm.Program,_xlfn.TEXTAFTER(_xlfn.TEXTBEFORE(_xlpm.Contract,\"-\",2),\"-\"),\n_xlpm.CleanProgram,_xlfn.XLOOKUP(_xlpm.Program,SpellCheck[Input],SpellCheck[Correction],_xlpm.Program),\n_xlpm.Number,TEXT(_xlfn.TEXTAFTER(_xlpm.Contract,\"-\",2),\"0000\"),\n_xlfn.CONCAT(_xlpm.Yr,\"-\",_xlpm.CleanProgram,\"-\",_xlpm.Number))\n),\"\")","v":""},{"$f":"IF(A310=\"\",\"\",'1. Checklist & Certification'!$B$9)","v":""},{"$f":"IF(A310=\"\",\"\",'1. Checklist & Certification'!$F$9)","v":""},{"$f":"IF(A310=\"\",\"\",'1. Checklist & Certification'!$C$10)","v":""},{"$f":"IF(A310=\"\",\"\",'1. Checklist & Certification'!$C$11)","v":""},{"$f":"IF(A310=\"\",\"\",'1. Checklist & Certification'!$C$12)","v":""},{"$f":"IF(A310=\"\",\"\",'1. Checklist & Certification'!$B$14)","v":""},{"$f":"IF(A310=\"\",\"\",'1. Checklist & Certification'!$E$14)","v":""},{"$f":"IF(B310=\"\",\"\",'1. Checklist & Certification'!$G$14)","v":""},{"$f":"IF(A310=\"\",\"\",'MHP Family Income & Rent Limits'!$B$3)","v":""},{"$f":"IF(A310=\"\",\"\",'MHP Family Income & Rent Limits'!$J$3)","v":""},{"$f":"IF(A310=\"\",\"\",'MHP Family Income & Rent Limits'!$E$4)","v":""},{"$f":"IF(A310=\"\",\"\",'MHP Family Income & Rent Limits'!$C$7)","v":""},{"$f":"IF(A310=\"\",\"\",'MHP Family Income & Rent Limits'!$F$8)","v":""},{"$f":"IF(A310=\"\",\"\",'1. Checklist & Certification'!$G$4)","v":""},{"$f":"IF(A310=\"\",\"\",'1. Checklist & Certification'!$K$39)","v":""},{"$f":"IF(A310=\"\",\"\",'1. Checklist & Certification'!$K$43)","v":""},{"$f":"IF(A310=\"\",\"\",'1. Checklist & Certification'!$K$45)","v":""},{"$f":"IF(A310=\"\",\"\",'1. Checklist & Certification'!$K$49)","v":""},{"$f":"IF(A310=\"\",\"\",'1. Checklist & Certification'!$K$62)","v":""},{"$f":"IF(A310=\"\",\"\",'1. Checklist & Certification'!$E$66)","v":""},{"$f":"IF(A310=\"\",\"\",'1. Checklist & Certification'!$E$67)","v":""},{"$f":"IF(A310=\"\",\"\",'1. Checklist & Certification'!$E$68)","v":""},{"$f":"IF(A310=\"\",\"\",'1. Checklist & Certification'!$G$66)","v":""},{"$f":"IF(A310=\"\",\"\",'1. Checklist & Certification'!$H$66)","v":""},{"$f":"IF(A310=\"\",\"\",'1. Checklist & Certification'!$I$66)","v":""},{"$f":"IF(A310=\"\",\"\",'1. Checklist & Certification'!$I$67)","v":""},{"$f":"IF(A310=\"\",\"\",'1. Checklist & Certification'!$I$68)","v":""},{"$f":"IF(A310=\"\",\"\",'1. Checklist & Certification'!$B$69)","v":""},{"$f":"IF(A310=\"\",\"\",'1. Checklist & Certification'!$C$69)","v":""},{"$f":"IF(A310=\"\",\"\",'1. Checklist & Certification'!$F$69)","v":""},{"$f":"IF(A310=\"\",\"\",'1. Checklist & Certification'!$G$69)","v":""},{"$f":"IF(A310=\"\",\"\",'1. Checklist & Certification'!$J$69)","v":""},{"$f":"IF(A310=\"\",\"\",'1. Checklist & Certification'!$K$69)","v":""},null,null,{"$f":"IF(AND(OR('1. Checklist & Certification'!$M$16=1,'1. Checklist & Certification'!$M$19=2),AO310>0,B310=\"\",I310>0,AQ310<I310,AV310<>\"Sec 8-Project\"),\"X\",IF(AND(OR('1. Checklist & Certification'!$M$20=4,'1. Checklist & Certification'!$M$21=5,'1. Checklist & Certification'!$M$22=7),AO310>0,B310=\"\",I310>0,K310<I310),\"X\",\"\"))","v":""},{"$f":"IF(A310=\"\",\"\",IF(SUMPRODUCT(-- (ISNUMBER(SEARCH({\"*AHSC*\",\"*FMTW*\",\"*FWHG*\",\"*GHI*\",\"*HHC*\",\"*HLCP*\",\"*HOME*\",\"*LPR*\",\"*MHP*\",\"*NHTF*\",\"*NSP*\",\"*PRP*\",\"*TOD*\",\"*VHHP*\"},'1. Checklist & Certification'!$L$7)))),\"MHP\",\"Legacy\"))","v":""},",,",null,null,null,{"$f":"IF('1. Checklist & Certification'!$M$20=4,\"Both\",IF(OR('1. Checklist & Certification'!$M$15>0,S310=\"CHRP-R\",U310=\"CHRP-R\",W310=\"CHRP-R\",Y310=\"CHRP-R\"),\"Under\",\"No\"))","v":"No"},"No","No",{"$f":"_xlfn.IFS(D310=\"\",\"\",D310=1,'MHP Family Income & Rent Limits'!$E$17,D310=2,'MHP Family Income & Rent Limits'!$F$17,D310=3,'MHP Family Income & Rent Limits'!$G$17,D310=4,'MHP Family Income & Rent Limits'!$H$17,D310=5,'MHP Family Income & Rent Limits'!$I$17,D310=6,'MHP Family Income & Rent Limits'!$J$17,D310=7,'MHP Family Income & Rent Limits'!$K$17,D310=8,'MHP Family Income & Rent Limits'!$L$17)","v":""},"",{"$f":"IF(OR(A310=0,B310=\"X\"),0,MIN(IF(AA310:AD310<>0,AA310:AD310)))","v":0},{"$f":"IF(OR(H310=\"\",I310=\"\"),0,IF(H310*0.3/12>I310,MIN(H310*0.3/12,I310*1.1)+AP310,I310*(1+(VLOOKUP('1. Checklist & Certification'!$F$9,'HLCP-E Rent Change'!$A$1:$D$59,4,FALSE)))+AP310))","v":0}]
[null,null,null,null,null,null,null,null,null,null,null,null,null,null,null,null,null,null,null,null,null,null,null,null,null,null,0,0,0,0,0,0,0,0,{"$f":"IF(OR(A311=0,B311=\"X\"),0,IF(OR(S311=\"FHDP\",S311=\"RHCP-B\",U311=\"FHDP\",U311=\"RHCP-B\",W311=\"FHDP\",W311=\"RHCP-B\",Y311=\"FHDP\",Y311=\"RHCP-B\"),TRUNC((MIN(I311,K311)*(1+'1. Checklist & Certification'!$K$43)+AP311)),0))","v":0},{"$f":"IF(OR(A311=0,B311=\"X\"),0,IF(OR(S311=\"CHRP-R\",S311=\"SERA\",S311=\"SUHRP\",U311=\"CHRP-R\",U311=\"SERA\",U311=\"SUHRP\",W311=\"CHRP-R\",W311=\"SERA\",W311=\"SUHRP\",Y311=\"CHRP-R\",Y311=\"SERA\",Y311=\"SUHRP\"),TRUNC((MIN(I311,K311)*(1+'1. Checklist & Certification'!$K$49))),0))","v":0},{"$f":"IF(OR(A311=0,B311=\"X\"),0,IF(OR(S311=\"CALDAP\",S311=\"DPRLP\",U311=\"CALDAP\",U311=\"DPRLP\",W311=\"CALDAP\",W311=\"DPRLP\",Y311=\"CALDAP\",Y311=\"DPRLP\"),TRUNC(((MIN(I311,K311))*(1+'1. Checklist & Certification'!$G$4))),0))","v":0},0,0,0,{"$f":"IF(OR(A311=0,B311=\"X\"),0,IF(OR(S311=\"PRP\",S311=\"LPR\",U311=\"PRP\",U311=\"LPR\",W311=\"PRP\",W311=\"LPR\",Y311=\"PRP\",Y311=\"LPR\"),MAX(I311+AP311,MIN(IF(AE311:AN311<>0,AE311:AN311))),MIN(IF(AE311:AN311<>0,AE311:AN311))))","v":0},{"$f":"IF(A311=0,0,IF(AND(OR(S311=\"Mgr\",S311=0),OR(U311=\"Mgr\",U311=0),OR(W311=\"Mgr\",W311=0)),0,IF(LEFT($A311,2)=\"B*\",VLOOKUP($E311,'1. Checklist & Certification'!$D$26:$E$32,2),IF(LEFT($A311,2)=\"C*\",VLOOKUP($E311,'1. Checklist & Certification'!$F$26:$G$32,2),IF(LEFT($A311,2)=\"D*\",VLOOKUP($E311,'1. Checklist & Certification'!$H$26:$I$32,2),IF(LEFT($A311,2)=\"E*\",VLOOKUP($E311,'1. Checklist & Certification'!$J$26:$K$32,2),VLOOKUP($E311,'1. Checklist & Certification'!$A$26:$B$32,2)))))))","v":0},0,0,null,null,null,null,"","",0,0,0,null,{"$f":"IF(A311=\"\",\"\",'1. Checklist & Certification'!$K$1)","v":""},{"$f":"IF(A311=\"\",\"\",'1. Checklist & Certification'!$C$62)","v":""},{"$f":"IF(A311=\"\",\"\",'1. Checklist & Certification'!$C$6)","v":""},{"$f":"IF(A311=\"\",\"\",'1. Checklist & Certification'!$G$5)","v":""},{"$f":"IFERROR(IF(A311=\"\",\"\",\n_xlfn.LET(_xlpm.Contract,'1. Checklist & Certification'!$C$7,\n_xlpm.Yr,TEXT(MOD(_xlfn.TEXTBEFORE(_xlpm.Contract,\"-\"),100),\"00\"),\n_xlpm.Program,_xlfn.TEXTAFTER(_xlfn.TEXTBEFORE(_xlpm.Contract,\"-\",2),\"-\"),\n_xlpm.CleanProgram,_xlfn.XLOOKUP(_xlpm.Program,SpellCheck[Input],SpellCheck[Correction],_xlpm.Program),\n_xlpm.Number,TEXT(_xlfn.TEXTAFTER(_xlpm.Contract,\"-\",2),\"0000\"),\n_xlfn.CONCAT(_xlpm.Yr,\"-\",_xlpm.CleanProgram,\"-\",_xlpm.Number))\n),\"\")","v":""},{"$f":"IFERROR(IF(A311=\"\",\"\",\n_xlfn.LET(_xlpm.Contract,'1. Checklist & Certification'!$C$8,\n_xlpm.Yr,TEXT(MOD(_xlfn.TEXTBEFORE(_xlpm.Contract,\"-\"),100),\"00\"),\n_xlpm.Program,_xlfn.TEXTAFTER(_xlfn.TEXTBEFORE(_xlpm.Contract,\"-\",2),\"-\"),\n_xlpm.CleanProgram,_xlfn.XLOOKUP(_xlpm.Program,SpellCheck[Input],SpellCheck[Correction],_xlpm.Program),\n_xlpm.Number,TEXT(_xlfn.TEXTAFTER(_xlpm.Contract,\"-\",2),\"0000\"),\n_xlfn.CONCAT(_xlpm.Yr,\"-\",_xlpm.CleanProgram,\"-\",_xlpm.Number))\n),\"\")","v":""},{"$f":"IFERROR(IF(A311=\"\",\"\",\n_xlfn.LET(_xlpm.Contract,'1. Checklist & Certification'!$F$7,\n_xlpm.Yr,TEXT(MOD(_xlfn.TEXTBEFORE(_xlpm.Contract,\"-\"),100),\"00\"),\n_xlpm.Program,_xlfn.TEXTAFTER(_xlfn.TEXTBEFORE(_xlpm.Contract,\"-\",2),\"-\"),\n_xlpm.CleanProgram,_xlfn.XLOOKUP(_xlpm.Program,SpellCheck[Input],SpellCheck[Correction],_xlpm.Program),\n_xlpm.Number,TEXT(_xlfn.TEXTAFTER(_xlpm.Contract,\"-\",2),\"0000\"),\n_xlfn.CONCAT(_xlpm.Yr,\"-\",_xlpm.CleanProgram,\"-\",_xlpm.Number))\n),\"\")","v":""},{"$f":"IFERROR(IF(A311=\"\",\"\",\n_xlfn.LET(_xlpm.Contract,'1. Checklist & Certification'!$F$8,\n_xlpm.Yr,TEXT(MOD(_xlfn.TEXTBEFORE(_xlpm.Contract,\"-\"),100),\"00\"),\n_xlpm.Program,_xlfn.TEXTAFTER(_xlfn.TEXTBEFORE(_xlpm.Contract,\"-\",2),\"-\"),\n_xlpm.CleanProgram,_xlfn.XLOOKUP(_xlpm.Program,SpellCheck[Input],SpellCheck[Correction],_xlpm.Program),\n_xlpm.Number,TEXT(_xlfn.TEXTAFTER(_xlpm.Contract,\"-\",2),\"0000\"),\n_xlfn.CONCAT(_xlpm.Yr,\"-\",_xlpm.CleanProgram,\"-\",_xlpm.Number))\n),\"\")","v":""},{"$f":"IF(A311=\"\",\"\",'1. Checklist & Certification'!$B$9)","v":""},{"$f":"IF(A311=\"\",\"\",'1. Checklist & Certification'!$F$9)","v":""},{"$f":"IF(A311=\"\",\"\",'1. Checklist & Certification'!$C$10)","v":""},{"$f":"IF(A311=\"\",\"\",'1. Checklist & Certification'!$C$11)","v":""},{"$f":"IF(A311=\"\",\"\",'1. Checklist & Certification'!$C$12)","v":""},{"$f":"IF(A311=\"\",\"\",'1. Checklist & Certification'!$B$14)","v":""},{"$f":"IF(A311=\"\",\"\",'1. Checklist & Certification'!$E$14)","v":""},{"$f":"IF(B311=\"\",\"\",'1. Checklist & Certification'!$G$14)","v":""},{"$f":"IF(A311=\"\",\"\",'MHP Family Income & Rent Limits'!$B$3)","v":""},{"$f":"IF(A311=\"\",\"\",'MHP Family Income & Rent Limits'!$J$3)","v":""},{"$f":"IF(A311=\"\",\"\",'MHP Family Income & Rent Limits'!$E$4)","v":""},{"$f":"IF(A311=\"\",\"\",'MHP Family Income & Rent Limits'!$C$7)","v":""},{"$f":"IF(A311=\"\",\"\",'MHP Family Income & Rent Limits'!$F$8)","v":""},{"$f":"IF(A311=\"\",\"\",'1. Checklist & Certification'!$G$4)","v":""},{"$f":"IF(A311=\"\",\"\",'1. Checklist & Certification'!$K$39)","v":""},{"$f":"IF(A311=\"\",\"\",'1. Checklist & Certification'!$K$43)","v":""},{"$f":"IF(A311=\"\",\"\",'1. Checklist & Certification'!$K$45)","v":""},{"$f":"IF(A311=\"\",\"\",'1. Checklist & Certification'!$K$49)","v":""},{"$f":"IF(A311=\"\",\"\",'1. Checklist & Certification'!$K$62)","v":""},{"$f":"IF(A311=\"\",\"\",'1. Checklist & Certification'!$E$66)","v":""},{"$f":"IF(A311=\"\",\"\",'1. Checklist & Certification'!$E$67)","v":""},{"$f":"IF(A311=\"\",\"\",'1. Checklist & Certification'!$E$68)","v":""},{"$f":"IF(A311=\"\",\"\",'1. Checklist & Certification'!$G$66)","v":""},{"$f":"IF(A311=\"\",\"\",'1. Checklist & Certification'!$H$66)","v":""},{"$f":"IF(A311=\"\",\"\",'1. Checklist & Certification'!$I$66)","v":""},{"$f":"IF(A311=\"\",\"\",'1. Checklist & Certification'!$I$67)","v":""},{"$f":"IF(A311=\"\",\"\",'1. Checklist & Certification'!$I$68)","v":""},{"$f":"IF(A311=\"\",\"\",'1. Checklist & Certification'!$B$69)","v":""},{"$f":"IF(A311=\"\",\"\",'1. Checklist & Certification'!$C$69)","v":""},{"$f":"IF(A311=\"\",\"\",'1. Checklist & Certification'!$F$69)","v":""},{"$f":"IF(A311=\"\",\"\",'1. Checklist & Certification'!$G$69)","v":""},{"$f":"IF(A311=\"\",\"\",'1. Checklist & Certification'!$J$69)","v":""},{"$f":"IF(A311=\"\",\"\",'1. Checklist & Certification'!$K$69)","v":""},null,null,{"$f":"IF(AND(OR('1. Checklist & Certification'!$M$16=1,'1. Checklist & Certification'!$M$19=2),AO311>0,B311=\"\",I311>0,AQ311<I311,AV311<>\"Sec 8-Project\"),\"X\",IF(AND(OR('1. Checklist & Certification'!$M$20=4,'1. Checklist & Certification'!$M$21=5,'1. Checklist & Certification'!$M$22=7),AO311>0,B311=\"\",I311>0,K311<I311),\"X\",\"\"))","v":""},{"$f":"IF(A311=\"\",\"\",IF(SUMPRODUCT(-- (ISNUMBER(SEARCH({\"*AHSC*\",\"*FMTW*\",\"*FWHG*\",\"*GHI*\",\"*HHC*\",\"*HLCP*\",\"*HOME*\",\"*LPR*\",\"*MHP*\",\"*NHTF*\",\"*NSP*\",\"*PRP*\",\"*TOD*\",\"*VHHP*\"},'1. Checklist & Certification'!$L$7)))),\"MHP\",\"Legacy\"))","v":""},",,",null,null,null,{"$f":"IF('1. Checklist & Certification'!$M$20=4,\"Both\",IF(OR('1. Checklist & Certification'!$M$15>0,S311=\"CHRP-R\",U311=\"CHRP-R\",W311=\"CHRP-R\",Y311=\"CHRP-R\"),\"Under\",\"No\"))","v":"No"},"No","No",{"$f":"_xlfn.IFS(D311=\"\",\"\",D311=1,'MHP Family Income & Rent Limits'!$E$17,D311=2,'MHP Family Income & Rent Limits'!$F$17,D311=3,'MHP Family Income & Rent Limits'!$G$17,D311=4,'MHP Family Income & Rent Limits'!$H$17,D311=5,'MHP Family Income & Rent Limits'!$I$17,D311=6,'MHP Family Income & Rent Limits'!$J$17,D311=7,'MHP Family Income & Rent Limits'!$K$17,D311=8,'MHP Family Income & Rent Limits'!$L$17)","v":""},"",{"$f":"IF(OR(A311=0,B311=\"X\"),0,MIN(IF(AA311:AD311<>0,AA311:AD311)))","v":0},{"$f":"IF(OR(H311=\"\",I311=\"\"),0,IF(H311*0.3/12>I311,MIN(H311*0.3/12,I311*1.1)+AP311,I311*(1+(VLOOKUP('1. Checklist & Certification'!$F$9,'HLCP-E Rent Change'!$A$1:$D$59,4,FALSE)))+AP311))","v":0}]
[null,null,null,null,null,null,null,null,null,null,null,null,null,null,null,null,null,null,null,null,null,null,null,null,null,null,0,0,0,0,0,0,0,0,{"$f":"IF(OR(A312=0,B312=\"X\"),0,IF(OR(S312=\"FHDP\",S312=\"RHCP-B\",U312=\"FHDP\",U312=\"RHCP-B\",W312=\"FHDP\",W312=\"RHCP-B\",Y312=\"FHDP\",Y312=\"RHCP-B\"),TRUNC((MIN(I312,K312)*(1+'1. Checklist & Certification'!$K$43)+AP312)),0))","v":0},{"$f":"IF(OR(A312=0,B312=\"X\"),0,IF(OR(S312=\"CHRP-R\",S312=\"SERA\",S312=\"SUHRP\",U312=\"CHRP-R\",U312=\"SERA\",U312=\"SUHRP\",W312=\"CHRP-R\",W312=\"SERA\",W312=\"SUHRP\",Y312=\"CHRP-R\",Y312=\"SERA\",Y312=\"SUHRP\"),TRUNC((MIN(I312,K312)*(1+'1. Checklist & Certification'!$K$49))),0))","v":0},{"$f":"IF(OR(A312=0,B312=\"X\"),0,IF(OR(S312=\"CALDAP\",S312=\"DPRLP\",U312=\"CALDAP\",U312=\"DPRLP\",W312=\"CALDAP\",W312=\"DPRLP\",Y312=\"CALDAP\",Y312=\"DPRLP\"),TRUNC(((MIN(I312,K312))*(1+'1. Checklist & Certification'!$G$4))),0))","v":0},0,0,0,{"$f":"IF(OR(A312=0,B312=\"X\"),0,IF(OR(S312=\"PRP\",S312=\"LPR\",U312=\"PRP\",U312=\"LPR\",W312=\"PRP\",W312=\"LPR\",Y312=\"PRP\",Y312=\"LPR\"),MAX(I312+AP312,MIN(IF(AE312:AN312<>0,AE312:AN312))),MIN(IF(AE312:AN312<>0,AE312:AN312))))","v":0},{"$f":"IF(A312=0,0,IF(AND(OR(S312=\"Mgr\",S312=0),OR(U312=\"Mgr\",U312=0),OR(W312=\"Mgr\",W312=0)),0,IF(LEFT($A312,2)=\"B*\",VLOOKUP($E312,'1. Checklist & Certification'!$D$26:$E$32,2),IF(LEFT($A312,2)=\"C*\",VLOOKUP($E312,'1. Checklist & Certification'!$F$26:$G$32,2),IF(LEFT($A312,2)=\"D*\",VLOOKUP($E312,'1. Checklist & Certification'!$H$26:$I$32,2),IF(LEFT($A312,2)=\"E*\",VLOOKUP($E312,'1. Checklist & Certification'!$J$26:$K$32,2),VLOOKUP($E312,'1. Checklist & Certification'!$A$26:$B$32,2)))))))","v":0},0,0,null,null,null,null,"","",0,0,0,null,{"$f":"IF(A312=\"\",\"\",'1. Checklist & Certification'!$K$1)","v":""},{"$f":"IF(A312=\"\",\"\",'1. Checklist & Certification'!$C$62)","v":""},{"$f":"IF(A312=\"\",\"\",'1. Checklist & Certification'!$C$6)","v":""},{"$f":"IF(A312=\"\",\"\",'1. Checklist & Certification'!$G$5)","v":""},{"$f":"IFERROR(IF(A312=\"\",\"\",\n_xlfn.LET(_xlpm.Contract,'1. Checklist & Certification'!$C$7,\n_xlpm.Yr,TEXT(MOD(_xlfn.TEXTBEFORE(_xlpm.Contract,\"-\"),100),\"00\"),\n_xlpm.Program,_xlfn.TEXTAFTER(_xlfn.TEXTBEFORE(_xlpm.Contract,\"-\",2),\"-\"),\n_xlpm.CleanProgram,_xlfn.XLOOKUP(_xlpm.Program,SpellCheck[Input],SpellCheck[Correction],_xlpm.Program),\n_xlpm.Number,TEXT(_xlfn.TEXTAFTER(_xlpm.Contract,\"-\",2),\"0000\"),\n_xlfn.CONCAT(_xlpm.Yr,\"-\",_xlpm.CleanProgram,\"-\",_xlpm.Number))\n),\"\")","v":""},{"$f":"IFERROR(IF(A312=\"\",\"\",\n_xlfn.LET(_xlpm.Contract,'1. Checklist & Certification'!$C$8,\n_xlpm.Yr,TEXT(MOD(_xlfn.TEXTBEFORE(_xlpm.Contract,\"-\"),100),\"00\"),\n_xlpm.Program,_xlfn.TEXTAFTER(_xlfn.TEXTBEFORE(_xlpm.Contract,\"-\",2),\"-\"),\n_xlpm.CleanProgram,_xlfn.XLOOKUP(_xlpm.Program,SpellCheck[Input],SpellCheck[Correction],_xlpm.Program),\n_xlpm.Number,TEXT(_xlfn.TEXTAFTER(_xlpm.Contract,\"-\",2),\"0000\"),\n_xlfn.CONCAT(_xlpm.Yr,\"-\",_xlpm.CleanProgram,\"-\",_xlpm.Number))\n),\"\")","v":""},{"$f":"IFERROR(IF(A312=\"\",\"\",\n_xlfn.LET(_xlpm.Contract,'1. Checklist & Certification'!$F$7,\n_xlpm.Yr,TEXT(MOD(_xlfn.TEXTBEFORE(_xlpm.Contract,\"-\"),100),\"00\"),\n_xlpm.Program,_xlfn.TEXTAFTER(_xlfn.TEXTBEFORE(_xlpm.Contract,\"-\",2),\"-\"),\n_xlpm.CleanProgram,_xlfn.XLOOKUP(_xlpm.Program,SpellCheck[Input],SpellCheck[Correction],_xlpm.Program),\n_xlpm.Number,TEXT(_xlfn.TEXTAFTER(_xlpm.Contract,\"-\",2),\"0000\"),\n_xlfn.CONCAT(_xlpm.Yr,\"-\",_xlpm.CleanProgram,\"-\",_xlpm.Number))\n),\"\")","v":""},{"$f":"IFERROR(IF(A312=\"\",\"\",\n_xlfn.LET(_xlpm.Contract,'1. Checklist & Certification'!$F$8,\n_xlpm.Yr,TEXT(MOD(_xlfn.TEXTBEFORE(_xlpm.Contract,\"-\"),100),\"00\"),\n_xlpm.Program,_xlfn.TEXTAFTER(_xlfn.TEXTBEFORE(_xlpm.Contract,\"-\",2),\"-\"),\n_xlpm.CleanProgram,_xlfn.XLOOKUP(_xlpm.Program,SpellCheck[Input],SpellCheck[Correction],_xlpm.Program),\n_xlpm.Number,TEXT(_xlfn.TEXTAFTER(_xlpm.Contract,\"-\",2),\"0000\"),\n_xlfn.CONCAT(_xlpm.Yr,\"-\",_xlpm.CleanProgram,\"-\",_xlpm.Number))\n),\"\")","v":""},{"$f":"IF(A312=\"\",\"\",'1. Checklist & Certification'!$B$9)","v":""},{"$f":"IF(A312=\"\",\"\",'1. Checklist & Certification'!$F$9)","v":""},{"$f":"IF(A312=\"\",\"\",'1. Checklist & Certification'!$C$10)","v":""},{"$f":"IF(A312=\"\",\"\",'1. Checklist & Certification'!$C$11)","v":""},{"$f":"IF(A312=\"\",\"\",'1. Checklist & Certification'!$C$12)","v":""},{"$f":"IF(A312=\"\",\"\",'1. Checklist & Certification'!$B$14)","v":""},{"$f":"IF(A312=\"\",\"\",'1. Checklist & Certification'!$E$14)","v":""},{"$f":"IF(B312=\"\",\"\",'1. Checklist & Certification'!$G$14)","v":""},{"$f":"IF(A312=\"\",\"\",'MHP Family Income & Rent Limits'!$B$3)","v":""},{"$f":"IF(A312=\"\",\"\",'MHP Family Income & Rent Limits'!$J$3)","v":""},{"$f":"IF(A312=\"\",\"\",'MHP Family Income & Rent Limits'!$E$4)","v":""},{"$f":"IF(A312=\"\",\"\",'MHP Family Income & Rent Limits'!$C$7)","v":""},{"$f":"IF(A312=\"\",\"\",'MHP Family Income & Rent Limits'!$F$8)","v":""},{"$f":"IF(A312=\"\",\"\",'1. Checklist & Certification'!$G$4)","v":""},{"$f":"IF(A312=\"\",\"\",'1. Checklist & Certification'!$K$39)","v":""},{"$f":"IF(A312=\"\",\"\",'1. Checklist & Certification'!$K$43)","v":""},{"$f":"IF(A312=\"\",\"\",'1. Checklist & Certification'!$K$45)","v":""},{"$f":"IF(A312=\"\",\"\",'1. Checklist & Certification'!$K$49)","v":""},{"$f":"IF(A312=\"\",\"\",'1. Checklist & Certification'!$K$62)","v":""},{"$f":"IF(A312=\"\",\"\",'1. Checklist & Certification'!$E$66)","v":""},{"$f":"IF(A312=\"\",\"\",'1. Checklist & Certification'!$E$67)","v":""},{"$f":"IF(A312=\"\",\"\",'1. Checklist & Certification'!$E$68)","v":""},{"$f":"IF(A312=\"\",\"\",'1. Checklist & Certification'!$G$66)","v":""},{"$f":"IF(A312=\"\",\"\",'1. Checklist & Certification'!$H$66)","v":""},{"$f":"IF(A312=\"\",\"\",'1. Checklist & Certification'!$I$66)","v":""},{"$f":"IF(A312=\"\",\"\",'1. Checklist & Certification'!$I$67)","v":""},{"$f":"IF(A312=\"\",\"\",'1. Checklist & Certification'!$I$68)","v":""},{"$f":"IF(A312=\"\",\"\",'1. Checklist & Certification'!$B$69)","v":""},{"$f":"IF(A312=\"\",\"\",'1. Checklist & Certification'!$C$69)","v":""},{"$f":"IF(A312=\"\",\"\",'1. Checklist & Certification'!$F$69)","v":""},{"$f":"IF(A312=\"\",\"\",'1. Checklist & Certification'!$G$69)","v":""},{"$f":"IF(A312=\"\",\"\",'1. Checklist & Certification'!$J$69)","v":""},{"$f":"IF(A312=\"\",\"\",'1. Checklist & Certification'!$K$69)","v":""},null,null,{"$f":"IF(AND(OR('1. Checklist & Certification'!$M$16=1,'1. Checklist & Certification'!$M$19=2),AO312>0,B312=\"\",I312>0,AQ312<I312,AV312<>\"Sec 8-Project\"),\"X\",IF(AND(OR('1. Checklist & Certification'!$M$20=4,'1. Checklist & Certification'!$M$21=5,'1. Checklist & Certification'!$M$22=7),AO312>0,B312=\"\",I312>0,K312<I312),\"X\",\"\"))","v":""},{"$f":"IF(A312=\"\",\"\",IF(SUMPRODUCT(-- (ISNUMBER(SEARCH({\"*AHSC*\",\"*FMTW*\",\"*FWHG*\",\"*GHI*\",\"*HHC*\",\"*HLCP*\",\"*HOME*\",\"*LPR*\",\"*MHP*\",\"*NHTF*\",\"*NSP*\",\"*PRP*\",\"*TOD*\",\"*VHHP*\"},'1. Checklist & Certification'!$L$7)))),\"MHP\",\"Legacy\"))","v":""},",,",null,null,null,{"$f":"IF('1. Checklist & Certification'!$M$20=4,\"Both\",IF(OR('1. Checklist & Certification'!$M$15>0,S312=\"CHRP-R\",U312=\"CHRP-R\",W312=\"CHRP-R\",Y312=\"CHRP-R\"),\"Under\",\"No\"))","v":"No"},"No","No",{"$f":"_xlfn.IFS(D312=\"\",\"\",D312=1,'MHP Family Income & Rent Limits'!$E$17,D312=2,'MHP Family Income & Rent Limits'!$F$17,D312=3,'MHP Family Income & Rent Limits'!$G$17,D312=4,'MHP Family Income & Rent Limits'!$H$17,D312=5,'MHP Family Income & Rent Limits'!$I$17,D312=6,'MHP Family Income & Rent Limits'!$J$17,D312=7,'MHP Family Income & Rent Limits'!$K$17,D312=8,'MHP Family Income & Rent Limits'!$L$17)","v":""},"",{"$f":"IF(OR(A312=0,B312=\"X\"),0,MIN(IF(AA312:AD312<>0,AA312:AD312)))","v":0},{"$f":"IF(OR(H312=\"\",I312=\"\"),0,IF(H312*0.3/12>I312,MIN(H312*0.3/12,I312*1.1)+AP312,I312*(1+(VLOOKUP('1. Checklist & Certification'!$F$9,'HLCP-E Rent Change'!$A$1:$D$59,4,FALSE)))+AP312))","v":0}]
[null,null,null,null,null,null,null,null,null,null,null,null,null,null,null,null,null,null,null,null,null,null,null,null,null,null,0,0,0,0,0,0,0,0,{"$f":"IF(OR(A313=0,B313=\"X\"),0,IF(OR(S313=\"FHDP\",S313=\"RHCP-B\",U313=\"FHDP\",U313=\"RHCP-B\",W313=\"FHDP\",W313=\"RHCP-B\",Y313=\"FHDP\",Y313=\"RHCP-B\"),TRUNC((MIN(I313,K313)*(1+'1. Checklist & Certification'!$K$43)+AP313)),0))","v":0},{"$f":"IF(OR(A313=0,B313=\"X\"),0,IF(OR(S313=\"CHRP-R\",S313=\"SERA\",S313=\"SUHRP\",U313=\"CHRP-R\",U313=\"SERA\",U313=\"SUHRP\",W313=\"CHRP-R\",W313=\"SERA\",W313=\"SUHRP\",Y313=\"CHRP-R\",Y313=\"SERA\",Y313=\"SUHRP\"),TRUNC((MIN(I313,K313)*(1+'1. Checklist & Certification'!$K$49))),0))","v":0},{"$f":"IF(OR(A313=0,B313=\"X\"),0,IF(OR(S313=\"CALDAP\",S313=\"DPRLP\",U313=\"CALDAP\",U313=\"DPRLP\",W313=\"CALDAP\",W313=\"DPRLP\",Y313=\"CALDAP\",Y313=\"DPRLP\"),TRUNC(((MIN(I313,K313))*(1+'1. Checklist & Certification'!$G$4))),0))","v":0},0,0,0,{"$f":"IF(OR(A313=0,B313=\"X\"),0,IF(OR(S313=\"PRP\",S313=\"LPR\",U313=\"PRP\",U313=\"LPR\",W313=\"PRP\",W313=\"LPR\",Y313=\"PRP\",Y313=\"LPR\"),MAX(I313+AP313,MIN(IF(AE313:AN313<>0,AE313:AN313))),MIN(IF(AE313:AN313<>0,AE313:AN313))))","v":0},{"$f":"IF(A313=0,0,IF(AND(OR(S313=\"Mgr\",S313=0),OR(U313=\"Mgr\",U313=0),OR(W313=\"Mgr\",W313=0)),0,IF(LEFT($A313,2)=\"B*\",VLOOKUP($E313,'1. Checklist & Certification'!$D$26:$E$32,2),IF(LEFT($A313,2)=\"C*\",VLOOKUP($E313,'1. Checklist & Certification'!$F$26:$G$32,2),IF(LEFT($A313,2)=\"D*\",VLOOKUP($E313,'1. Checklist & Certification'!$H$26:$I$32,2),IF(LEFT($A313,2)=\"E*\",VLOOKUP($E313,'1. Checklist & Certification'!$J$26:$K$32,2),VLOOKUP($E313,'1. Checklist & Certification'!$A$26:$B$32,2)))))))","v":0},0,0,null,null,null,null,"","",0,0,0,null,{"$f":"IF(A313=\"\",\"\",'1. Checklist & Certification'!$K$1)","v":""},{"$f":"IF(A313=\"\",\"\",'1. Checklist & Certification'!$C$62)","v":""},{"$f":"IF(A313=\"\",\"\",'1. Checklist & Certification'!$C$6)","v":""},{"$f":"IF(A313=\"\",\"\",'1. Checklist & Certification'!$G$5)","v":""},{"$f":"IFERROR(IF(A313=\"\",\"\",\n_xlfn.LET(_xlpm.Contract,'1. Checklist & Certification'!$C$7,\n_xlpm.Yr,TEXT(MOD(_xlfn.TEXTBEFORE(_xlpm.Contract,\"-\"),100),\"00\"),\n_xlpm.Program,_xlfn.TEXTAFTER(_xlfn.TEXTBEFORE(_xlpm.Contract,\"-\",2),\"-\"),\n_xlpm.CleanProgram,_xlfn.XLOOKUP(_xlpm.Program,SpellCheck[Input],SpellCheck[Correction],_xlpm.Program),\n_xlpm.Number,TEXT(_xlfn.TEXTAFTER(_xlpm.Contract,\"-\",2),\"0000\"),\n_xlfn.CONCAT(_xlpm.Yr,\"-\",_xlpm.CleanProgram,\"-\",_xlpm.Number))\n),\"\")","v":""},{"$f":"IFERROR(IF(A313=\"\",\"\",\n_xlfn.LET(_xlpm.Contract,'1. Checklist & Certification'!$C$8,\n_xlpm.Yr,TEXT(MOD(_xlfn.TEXTBEFORE(_xlpm.Contract,\"-\"),100),\"00\"),\n_xlpm.Program,_xlfn.TEXTAFTER(_xlfn.TEXTBEFORE(_xlpm.Contract,\"-\",2),\"-\"),\n_xlpm.CleanProgram,_xlfn.XLOOKUP(_xlpm.Program,SpellCheck[Input],SpellCheck[Correction],_xlpm.Program),\n_xlpm.Number,TEXT(_xlfn.TEXTAFTER(_xlpm.Contract,\"-\",2),\"0000\"),\n_xlfn.CONCAT(_xlpm.Yr,\"-\",_xlpm.CleanProgram,\"-\",_xlpm.Number))\n),\"\")","v":""},{"$f":"IFERROR(IF(A313=\"\",\"\",\n_xlfn.LET(_xlpm.Contract,'1. Checklist & Certification'!$F$7,\n_xlpm.Yr,TEXT(MOD(_xlfn.TEXTBEFORE(_xlpm.Contract,\"-\"),100),\"00\"),\n_xlpm.Program,_xlfn.TEXTAFTER(_xlfn.TEXTBEFORE(_xlpm.Contract,\"-\",2),\"-\"),\n_xlpm.CleanProgram,_xlfn.XLOOKUP(_xlpm.Program,SpellCheck[Input],SpellCheck[Correction],_xlpm.Program),\n_xlpm.Number,TEXT(_xlfn.TEXTAFTER(_xlpm.Contract,\"-\",2),\"0000\"),\n_xlfn.CONCAT(_xlpm.Yr,\"-\",_xlpm.CleanProgram,\"-\",_xlpm.Number))\n),\"\")","v":""},{"$f":"IFERROR(IF(A313=\"\",\"\",\n_xlfn.LET(_xlpm.Contract,'1. Checklist & Certification'!$F$8,\n_xlpm.Yr,TEXT(MOD(_xlfn.TEXTBEFORE(_xlpm.Contract,\"-\"),100),\"00\"),\n_xlpm.Program,_xlfn.TEXTAFTER(_xlfn.TEXTBEFORE(_xlpm.Contract,\"-\",2),\"-\"),\n_xlpm.CleanProgram,_xlfn.XLOOKUP(_xlpm.Program,SpellCheck[Input],SpellCheck[Correction],_xlpm.Program),\n_xlpm.Number,TEXT(_xlfn.TEXTAFTER(_xlpm.Contract,\"-\",2),\"0000\"),\n_xlfn.CONCAT(_xlpm.Yr,\"-\",_xlpm.CleanProgram,\"-\",_xlpm.Number))\n),\"\")","v":""},{"$f":"IF(A313=\"\",\"\",'1. Checklist & Certification'!$B$9)","v":""},{"$f":"IF(A313=\"\",\"\",'1. Checklist & Certification'!$F$9)","v":""},{"$f":"IF(A313=\"\",\"\",'1. Checklist & Certification'!$C$10)","v":""},{"$f":"IF(A313=\"\",\"\",'1. Checklist & Certification'!$C$11)","v":""},{"$f":"IF(A313=\"\",\"\",'1. Checklist & Certification'!$C$12)","v":""},{"$f":"IF(A313=\"\",\"\",'1. Checklist & Certification'!$B$14)","v":""},{"$f":"IF(A313=\"\",\"\",'1. Checklist & Certification'!$E$14)","v":""},{"$f":"IF(B313=\"\",\"\",'1. Checklist & Certification'!$G$14)","v":""},{"$f":"IF(A313=\"\",\"\",'MHP Family Income & Rent Limits'!$B$3)","v":""},{"$f":"IF(A313=\"\",\"\",'MHP Family Income & Rent Limits'!$J$3)","v":""},{"$f":"IF(A313=\"\",\"\",'MHP Family Income & Rent Limits'!$E$4)","v":""},{"$f":"IF(A313=\"\",\"\",'MHP Family Income & Rent Limits'!$C$7)","v":""},{"$f":"IF(A313=\"\",\"\",'MHP Family Income & Rent Limits'!$F$8)","v":""},{"$f":"IF(A313=\"\",\"\",'1. Checklist & Certification'!$G$4)","v":""},{"$f":"IF(A313=\"\",\"\",'1. Checklist & Certification'!$K$39)","v":""},{"$f":"IF(A313=\"\",\"\",'1. Checklist & Certification'!$K$43)","v":""},{"$f":"IF(A313=\"\",\"\",'1. Checklist & Certification'!$K$45)","v":""},{"$f":"IF(A313=\"\",\"\",'1. Checklist & Certification'!$K$49)","v":""},{"$f":"IF(A313=\"\",\"\",'1. Checklist & Certification'!$K$62)","v":""},{"$f":"IF(A313=\"\",\"\",'1. Checklist & Certification'!$E$66)","v":""},{"$f":"IF(A313=\"\",\"\",'1. Checklist & Certification'!$E$67)","v":""},{"$f":"IF(A313=\"\",\"\",'1. Checklist & Certification'!$E$68)","v":""},{"$f":"IF(A313=\"\",\"\",'1. Checklist & Certification'!$G$66)","v":""},{"$f":"IF(A313=\"\",\"\",'1. Checklist & Certification'!$H$66)","v":""},{"$f":"IF(A313=\"\",\"\",'1. Checklist & Certification'!$I$66)","v":""},{"$f":"IF(A313=\"\",\"\",'1. Checklist & Certification'!$I$67)","v":""},{"$f":"IF(A313=\"\",\"\",'1. Checklist & Certification'!$I$68)","v":""},{"$f":"IF(A313=\"\",\"\",'1. Checklist & Certification'!$B$69)","v":""},{"$f":"IF(A313=\"\",\"\",'1. Checklist & Certification'!$C$69)","v":""},{"$f":"IF(A313=\"\",\"\",'1. Checklist & Certification'!$F$69)","v":""},{"$f":"IF(A313=\"\",\"\",'1. Checklist & Certification'!$G$69)","v":""},{"$f":"IF(A313=\"\",\"\",'1. Checklist & Certification'!$J$69)","v":""},{"$f":"IF(A313=\"\",\"\",'1. Checklist & Certification'!$K$69)","v":""},null,null,{"$f":"IF(AND(OR('1. Checklist & Certification'!$M$16=1,'1. Checklist & Certification'!$M$19=2),AO313>0,B313=\"\",I313>0,AQ313<I313,AV313<>\"Sec 8-Project\"),\"X\",IF(AND(OR('1. Checklist & Certification'!$M$20=4,'1. Checklist & Certification'!$M$21=5,'1. Checklist & Certification'!$M$22=7),AO313>0,B313=\"\",I313>0,K313<I313),\"X\",\"\"))","v":""},{"$f":"IF(A313=\"\",\"\",IF(SUMPRODUCT(-- (ISNUMBER(SEARCH({\"*AHSC*\",\"*FMTW*\",\"*FWHG*\",\"*GHI*\",\"*HHC*\",\"*HLCP*\",\"*HOME*\",\"*LPR*\",\"*MHP*\",\"*NHTF*\",\"*NSP*\",\"*PRP*\",\"*TOD*\",\"*VHHP*\"},'1. Checklist & Certification'!$L$7)))),\"MHP\",\"Legacy\"))","v":""},",,",null,null,null,{"$f":"IF('1. Checklist & Certification'!$M$20=4,\"Both\",IF(OR('1. Checklist & Certification'!$M$15>0,S313=\"CHRP-R\",U313=\"CHRP-R\",W313=\"CHRP-R\",Y313=\"CHRP-R\"),\"Under\",\"No\"))","v":"No"},"No","No",{"$f":"_xlfn.IFS(D313=\"\",\"\",D313=1,'MHP Family Income & Rent Limits'!$E$17,D313=2,'MHP Family Income & Rent Limits'!$F$17,D313=3,'MHP Family Income & Rent Limits'!$G$17,D313=4,'MHP Family Income & Rent Limits'!$H$17,D313=5,'MHP Family Income & Rent Limits'!$I$17,D313=6,'MHP Family Income & Rent Limits'!$J$17,D313=7,'MHP Family Income & Rent Limits'!$K$17,D313=8,'MHP Family Income & Rent Limits'!$L$17)","v":""},"",{"$f":"IF(OR(A313=0,B313=\"X\"),0,MIN(IF(AA313:AD313<>0,AA313:AD313)))","v":0},{"$f":"IF(OR(H313=\"\",I313=\"\"),0,IF(H313*0.3/12>I313,MIN(H313*0.3/12,I313*1.1)+AP313,I313*(1+(VLOOKUP('1. Checklist & Certification'!$F$9,'HLCP-E Rent Change'!$A$1:$D$59,4,FALSE)))+AP313))","v":0}]
[null,null,null,null,null,null,null,null,null,null,null,null,null,null,null,null,null,null,null,null,null,null,null,null,null,null,0,0,0,0,0,0,0,0,{"$f":"IF(OR(A314=0,B314=\"X\"),0,IF(OR(S314=\"FHDP\",S314=\"RHCP-B\",U314=\"FHDP\",U314=\"RHCP-B\",W314=\"FHDP\",W314=\"RHCP-B\",Y314=\"FHDP\",Y314=\"RHCP-B\"),TRUNC((MIN(I314,K314)*(1+'1. Checklist & Certification'!$K$43)+AP314)),0))","v":0},{"$f":"IF(OR(A314=0,B314=\"X\"),0,IF(OR(S314=\"CHRP-R\",S314=\"SERA\",S314=\"SUHRP\",U314=\"CHRP-R\",U314=\"SERA\",U314=\"SUHRP\",W314=\"CHRP-R\",W314=\"SERA\",W314=\"SUHRP\",Y314=\"CHRP-R\",Y314=\"SERA\",Y314=\"SUHRP\"),TRUNC((MIN(I314,K314)*(1+'1. Checklist & Certification'!$K$49))),0))","v":0},{"$f":"IF(OR(A314=0,B314=\"X\"),0,IF(OR(S314=\"CALDAP\",S314=\"DPRLP\",U314=\"CALDAP\",U314=\"DPRLP\",W314=\"CALDAP\",W314=\"DPRLP\",Y314=\"CALDAP\",Y314=\"DPRLP\"),TRUNC(((MIN(I314,K314))*(1+'1. Checklist & Certification'!$G$4))),0))","v":0},0,0,0,{"$f":"IF(OR(A314=0,B314=\"X\"),0,IF(OR(S314=\"PRP\",S314=\"LPR\",U314=\"PRP\",U314=\"LPR\",W314=\"PRP\",W314=\"LPR\",Y314=\"PRP\",Y314=\"LPR\"),MAX(I314+AP314,MIN(IF(AE314:AN314<>0,AE314:AN314))),MIN(IF(AE314:AN314<>0,AE314:AN314))))","v":0},{"$f":"IF(A314=0,0,IF(AND(OR(S314=\"Mgr\",S314=0),OR(U314=\"Mgr\",U314=0),OR(W314=\"Mgr\",W314=0)),0,IF(LEFT($A314,2)=\"B*\",VLOOKUP($E314,'1. Checklist & Certification'!$D$26:$E$32,2),IF(LEFT($A314,2)=\"C*\",VLOOKUP($E314,'1. Checklist & Certification'!$F$26:$G$32,2),IF(LEFT($A314,2)=\"D*\",VLOOKUP($E314,'1. Checklist & Certification'!$H$26:$I$32,2),IF(LEFT($A314,2)=\"E*\",VLOOKUP($E314,'1. Checklist & Certification'!$J$26:$K$32,2),VLOOKUP($E314,'1. Checklist & Certification'!$A$26:$B$32,2)))))))","v":0},0,0,null,null,null,null,"","",0,0,0,null,{"$f":"IF(A314=\"\",\"\",'1. Checklist & Certification'!$K$1)","v":""},{"$f":"IF(A314=\"\",\"\",'1. Checklist & Certification'!$C$62)","v":""},{"$f":"IF(A314=\"\",\"\",'1. Checklist & Certification'!$C$6)","v":""},{"$f":"IF(A314=\"\",\"\",'1. Checklist & Certification'!$G$5)","v":""},{"$f":"IFERROR(IF(A314=\"\",\"\",\n_xlfn.LET(_xlpm.Contract,'1. Checklist & Certification'!$C$7,\n_xlpm.Yr,TEXT(MOD(_xlfn.TEXTBEFORE(_xlpm.Contract,\"-\"),100),\"00\"),\n_xlpm.Program,_xlfn.TEXTAFTER(_xlfn.TEXTBEFORE(_xlpm.Contract,\"-\",2),\"-\"),\n_xlpm.CleanProgram,_xlfn.XLOOKUP(_xlpm.Program,SpellCheck[Input],SpellCheck[Correction],_xlpm.Program),\n_xlpm.Number,TEXT(_xlfn.TEXTAFTER(_xlpm.Contract,\"-\",2),\"0000\"),\n_xlfn.CONCAT(_xlpm.Yr,\"-\",_xlpm.CleanProgram,\"-\",_xlpm.Number))\n),\"\")","v":""},{"$f":"IFERROR(IF(A314=\"\",\"\",\n_xlfn.LET(_xlpm.Contract,'1. Checklist & Certification'!$C$8,\n_xlpm.Yr,TEXT(MOD(_xlfn.TEXTBEFORE(_xlpm.Contract,\"-\"),100),\"00\"),\n_xlpm.Program,_xlfn.TEXTAFTER(_xlfn.TEXTBEFORE(_xlpm.Contract,\"-\",2),\"-\"),\n_xlpm.CleanProgram,_xlfn.XLOOKUP(_xlpm.Program,SpellCheck[Input],SpellCheck[Correction],_xlpm.Program),\n_xlpm.Number,TEXT(_xlfn.TEXTAFTER(_xlpm.Contract,\"-\",2),\"0000\"),\n_xlfn.CONCAT(_xlpm.Yr,\"-\",_xlpm.CleanProgram,\"-\",_xlpm.Number))\n),\"\")","v":""},{"$f":"IFERROR(IF(A314=\"\",\"\",\n_xlfn.LET(_xlpm.Contract,'1. Checklist & Certification'!$F$7,\n_xlpm.Yr,TEXT(MOD(_xlfn.TEXTBEFORE(_xlpm.Contract,\"-\"),100),\"00\"),\n_xlpm.Program,_xlfn.TEXTAFTER(_xlfn.TEXTBEFORE(_xlpm.Contract,\"-\",2),\"-\"),\n_xlpm.CleanProgram,_xlfn.XLOOKUP(_xlpm.Program,SpellCheck[Input],SpellCheck[Correction],_xlpm.Program),\n_xlpm.Number,TEXT(_xlfn.TEXTAFTER(_xlpm.Contract,\"-\",2),\"0000\"),\n_xlfn.CONCAT(_xlpm.Yr,\"-\",_xlpm.CleanProgram,\"-\",_xlpm.Number))\n),\"\")","v":""},{"$f":"IFERROR(IF(A314=\"\",\"\",\n_xlfn.LET(_xlpm.Contract,'1. Checklist & Certification'!$F$8,\n_xlpm.Yr,TEXT(MOD(_xlfn.TEXTBEFORE(_xlpm.Contract,\"-\"),100),\"00\"),\n_xlpm.Program,_xlfn.TEXTAFTER(_xlfn.TEXTBEFORE(_xlpm.Contract,\"-\",2),\"-\"),\n_xlpm.CleanProgram,_xlfn.XLOOKUP(_xlpm.Program,SpellCheck[Input],SpellCheck[Correction],_xlpm.Program),\n_xlpm.Number,TEXT(_xlfn.TEXTAFTER(_xlpm.Contract,\"-\",2),\"0000\"),\n_xlfn.CONCAT(_xlpm.Yr,\"-\",_xlpm.CleanProgram,\"-\",_xlpm.Number))\n),\"\")","v":""},{"$f":"IF(A314=\"\",\"\",'1. Checklist & Certification'!$B$9)","v":""},{"$f":"IF(A314=\"\",\"\",'1. Checklist & Certification'!$F$9)","v":""},{"$f":"IF(A314=\"\",\"\",'1. Checklist & Certification'!$C$10)","v":""},{"$f":"IF(A314=\"\",\"\",'1. Checklist & Certification'!$C$11)","v":""},{"$f":"IF(A314=\"\",\"\",'1. Checklist & Certification'!$C$12)","v":""},{"$f":"IF(A314=\"\",\"\",'1. Checklist & Certification'!$B$14)","v":""},{"$f":"IF(A314=\"\",\"\",'1. Checklist & Certification'!$E$14)","v":""},{"$f":"IF(B314=\"\",\"\",'1. Checklist & Certification'!$G$14)","v":""},{"$f":"IF(A314=\"\",\"\",'MHP Family Income & Rent Limits'!$B$3)","v":""},{"$f":"IF(A314=\"\",\"\",'MHP Family Income & Rent Limits'!$J$3)","v":""},{"$f":"IF(A314=\"\",\"\",'MHP Family Income & Rent Limits'!$E$4)","v":""},{"$f":"IF(A314=\"\",\"\",'MHP Family Income & Rent Limits'!$C$7)","v":""},{"$f":"IF(A314=\"\",\"\",'MHP Family Income & Rent Limits'!$F$8)","v":""},{"$f":"IF(A314=\"\",\"\",'1. Checklist & Certification'!$G$4)","v":""},{"$f":"IF(A314=\"\",\"\",'1. Checklist & Certification'!$K$39)","v":""},{"$f":"IF(A314=\"\",\"\",'1. Checklist & Certification'!$K$43)","v":""},{"$f":"IF(A314=\"\",\"\",'1. Checklist & Certification'!$K$45)","v":""},{"$f":"IF(A314=\"\",\"\",'1. Checklist & Certification'!$K$49)","v":""},{"$f":"IF(A314=\"\",\"\",'1. Checklist & Certification'!$K$62)","v":""},{"$f":"IF(A314=\"\",\"\",'1. Checklist & Certification'!$E$66)","v":""},{"$f":"IF(A314=\"\",\"\",'1. Checklist & Certification'!$E$67)","v":""},{"$f":"IF(A314=\"\",\"\",'1. Checklist & Certification'!$E$68)","v":""},{"$f":"IF(A314=\"\",\"\",'1. Checklist & Certification'!$G$66)","v":""},{"$f":"IF(A314=\"\",\"\",'1. Checklist & Certification'!$H$66)","v":""},{"$f":"IF(A314=\"\",\"\",'1. Checklist & Certification'!$I$66)","v":""},{"$f":"IF(A314=\"\",\"\",'1. Checklist & Certification'!$I$67)","v":""},{"$f":"IF(A314=\"\",\"\",'1. Checklist & Certification'!$I$68)","v":""},{"$f":"IF(A314=\"\",\"\",'1. Checklist & Certification'!$B$69)","v":""},{"$f":"IF(A314=\"\",\"\",'1. Checklist & Certification'!$C$69)","v":""},{"$f":"IF(A314=\"\",\"\",'1. Checklist & Certification'!$F$69)","v":""},{"$f":"IF(A314=\"\",\"\",'1. Checklist & Certification'!$G$69)","v":""},{"$f":"IF(A314=\"\",\"\",'1. Checklist & Certification'!$J$69)","v":""},{"$f":"IF(A314=\"\",\"\",'1. Checklist & Certification'!$K$69)","v":""},null,null,{"$f":"IF(AND(OR('1. Checklist & Certification'!$M$16=1,'1. Checklist & Certification'!$M$19=2),AO314>0,B314=\"\",I314>0,AQ314<I314,AV314<>\"Sec 8-Project\"),\"X\",IF(AND(OR('1. Checklist & Certification'!$M$20=4,'1. Checklist & Certification'!$M$21=5,'1. Checklist & Certification'!$M$22=7),AO314>0,B314=\"\",I314>0,K314<I314),\"X\",\"\"))","v":""},{"$f":"IF(A314=\"\",\"\",IF(SUMPRODUCT(-- (ISNUMBER(SEARCH({\"*AHSC*\",\"*FMTW*\",\"*FWHG*\",\"*GHI*\",\"*HHC*\",\"*HLCP*\",\"*HOME*\",\"*LPR*\",\"*MHP*\",\"*NHTF*\",\"*NSP*\",\"*PRP*\",\"*TOD*\",\"*VHHP*\"},'1. Checklist & Certification'!$L$7)))),\"MHP\",\"Legacy\"))","v":""},",,",null,null,null,{"$f":"IF('1. Checklist & Certification'!$M$20=4,\"Both\",IF(OR('1. Checklist & Certification'!$M$15>0,S314=\"CHRP-R\",U314=\"CHRP-R\",W314=\"CHRP-R\",Y314=\"CHRP-R\"),\"Under\",\"No\"))","v":"No"},"No","No",{"$f":"_xlfn.IFS(D314=\"\",\"\",D314=1,'MHP Family Income & Rent Limits'!$E$17,D314=2,'MHP Family Income & Rent Limits'!$F$17,D314=3,'MHP Family Income & Rent Limits'!$G$17,D314=4,'MHP Family Income & Rent Limits'!$H$17,D314=5,'MHP Family Income & Rent Limits'!$I$17,D314=6,'MHP Family Income & Rent Limits'!$J$17,D314=7,'MHP Family Income & Rent Limits'!$K$17,D314=8,'MHP Family Income & Rent Limits'!$L$17)","v":""},"",{"$f":"IF(OR(A314=0,B314=\"X\"),0,MIN(IF(AA314:AD314<>0,AA314:AD314)))","v":0},{"$f":"IF(OR(H314=\"\",I314=\"\"),0,IF(H314*0.3/12>I314,MIN(H314*0.3/12,I314*1.1)+AP314,I314*(1+(VLOOKUP('1. Checklist & Certification'!$F$9,'HLCP-E Rent Change'!$A$1:$D$59,4,FALSE)))+AP314))","v":0}]
[null,null,null,null,null,null,null,null,null,null,null,null,null,null,null,null,null,null,null,null,null,null,null,null,null,null,0,0,0,0,0,0,0,0,{"$f":"IF(OR(A315=0,B315=\"X\"),0,IF(OR(S315=\"FHDP\",S315=\"RHCP-B\",U315=\"FHDP\",U315=\"RHCP-B\",W315=\"FHDP\",W315=\"RHCP-B\",Y315=\"FHDP\",Y315=\"RHCP-B\"),TRUNC((MIN(I315,K315)*(1+'1. Checklist & Certification'!$K$43)+AP315)),0))","v":0},{"$f":"IF(OR(A315=0,B315=\"X\"),0,IF(OR(S315=\"CHRP-R\",S315=\"SERA\",S315=\"SUHRP\",U315=\"CHRP-R\",U315=\"SERA\",U315=\"SUHRP\",W315=\"CHRP-R\",W315=\"SERA\",W315=\"SUHRP\",Y315=\"CHRP-R\",Y315=\"SERA\",Y315=\"SUHRP\"),TRUNC((MIN(I315,K315)*(1+'1. Checklist & Certification'!$K$49))),0))","v":0},{"$f":"IF(OR(A315=0,B315=\"X\"),0,IF(OR(S315=\"CALDAP\",S315=\"DPRLP\",U315=\"CALDAP\",U315=\"DPRLP\",W315=\"CALDAP\",W315=\"DPRLP\",Y315=\"CALDAP\",Y315=\"DPRLP\"),TRUNC(((MIN(I315,K315))*(1+'1. Checklist & Certification'!$G$4))),0))","v":0},0,0,0,{"$f":"IF(OR(A315=0,B315=\"X\"),0,IF(OR(S315=\"PRP\",S315=\"LPR\",U315=\"PRP\",U315=\"LPR\",W315=\"PRP\",W315=\"LPR\",Y315=\"PRP\",Y315=\"LPR\"),MAX(I315+AP315,MIN(IF(AE315:AN315<>0,AE315:AN315))),MIN(IF(AE315:AN315<>0,AE315:AN315))))","v":0},{"$f":"IF(A315=0,0,IF(AND(OR(S315=\"Mgr\",S315=0),OR(U315=\"Mgr\",U315=0),OR(W315=\"Mgr\",W315=0)),0,IF(LEFT($A315,2)=\"B*\",VLOOKUP($E315,'1. Checklist & Certification'!$D$26:$E$32,2),IF(LEFT($A315,2)=\"C*\",VLOOKUP($E315,'1. Checklist & Certification'!$F$26:$G$32,2),IF(LEFT($A315,2)=\"D*\",VLOOKUP($E315,'1. Checklist & Certification'!$H$26:$I$32,2),IF(LEFT($A315,2)=\"E*\",VLOOKUP($E315,'1. Checklist & Certification'!$J$26:$K$32,2),VLOOKUP($E315,'1. Checklist & Certification'!$A$26:$B$32,2)))))))","v":0},0,0,null,null,null,null,"","",0,0,0,null,{"$f":"IF(A315=\"\",\"\",'1. Checklist & Certification'!$K$1)","v":""},{"$f":"IF(A315=\"\",\"\",'1. Checklist & Certification'!$C$62)","v":""},{"$f":"IF(A315=\"\",\"\",'1. Checklist & Certification'!$C$6)","v":""},{"$f":"IF(A315=\"\",\"\",'1. Checklist & Certification'!$G$5)","v":""},{"$f":"IFERROR(IF(A315=\"\",\"\",\n_xlfn.LET(_xlpm.Contract,'1. Checklist & Certification'!$C$7,\n_xlpm.Yr,TEXT(MOD(_xlfn.TEXTBEFORE(_xlpm.Contract,\"-\"),100),\"00\"),\n_xlpm.Program,_xlfn.TEXTAFTER(_xlfn.TEXTBEFORE(_xlpm.Contract,\"-\",2),\"-\"),\n_xlpm.CleanProgram,_xlfn.XLOOKUP(_xlpm.Program,SpellCheck[Input],SpellCheck[Correction],_xlpm.Program),\n_xlpm.Number,TEXT(_xlfn.TEXTAFTER(_xlpm.Contract,\"-\",2),\"0000\"),\n_xlfn.CONCAT(_xlpm.Yr,\"-\",_xlpm.CleanProgram,\"-\",_xlpm.Number))\n),\"\")","v":""},{"$f":"IFERROR(IF(A315=\"\",\"\",\n_xlfn.LET(_xlpm.Contract,'1. Checklist & Certification'!$C$8,\n_xlpm.Yr,TEXT(MOD(_xlfn.TEXTBEFORE(_xlpm.Contract,\"-\"),100),\"00\"),\n_xlpm.Program,_xlfn.TEXTAFTER(_xlfn.TEXTBEFORE(_xlpm.Contract,\"-\",2),\"-\"),\n_xlpm.CleanProgram,_xlfn.XLOOKUP(_xlpm.Program,SpellCheck[Input],SpellCheck[Correction],_xlpm.Program),\n_xlpm.Number,TEXT(_xlfn.TEXTAFTER(_xlpm.Contract,\"-\",2),\"0000\"),\n_xlfn.CONCAT(_xlpm.Yr,\"-\",_xlpm.CleanProgram,\"-\",_xlpm.Number))\n),\"\")","v":""},{"$f":"IFERROR(IF(A315=\"\",\"\",\n_xlfn.LET(_xlpm.Contract,'1. Checklist & Certification'!$F$7,\n_xlpm.Yr,TEXT(MOD(_xlfn.TEXTBEFORE(_xlpm.Contract,\"-\"),100),\"00\"),\n_xlpm.Program,_xlfn.TEXTAFTER(_xlfn.TEXTBEFORE(_xlpm.Contract,\"-\",2),\"-\"),\n_xlpm.CleanProgram,_xlfn.XLOOKUP(_xlpm.Program,SpellCheck[Input],SpellCheck[Correction],_xlpm.Program),\n_xlpm.Number,TEXT(_xlfn.TEXTAFTER(_xlpm.Contract,\"-\",2),\"0000\"),\n_xlfn.CONCAT(_xlpm.Yr,\"-\",_xlpm.CleanProgram,\"-\",_xlpm.Number))\n),\"\")","v":""},{"$f":"IFERROR(IF(A315=\"\",\"\",\n_xlfn.LET(_xlpm.Contract,'1. Checklist & Certification'!$F$8,\n_xlpm.Yr,TEXT(MOD(_xlfn.TEXTBEFORE(_xlpm.Contract,\"-\"),100),\"00\"),\n_xlpm.Program,_xlfn.TEXTAFTER(_xlfn.TEXTBEFORE(_xlpm.Contract,\"-\",2),\"-\"),\n_xlpm.CleanProgram,_xlfn.XLOOKUP(_xlpm.Program,SpellCheck[Input],SpellCheck[Correction],_xlpm.Program),\n_xlpm.Number,TEXT(_xlfn.TEXTAFTER(_xlpm.Contract,\"-\",2),\"0000\"),\n_xlfn.CONCAT(_xlpm.Yr,\"-\",_xlpm.CleanProgram,\"-\",_xlpm.Number))\n),\"\")","v":""},{"$f":"IF(A315=\"\",\"\",'1. Checklist & Certification'!$B$9)","v":""},{"$f":"IF(A315=\"\",\"\",'1. Checklist & Certification'!$F$9)","v":""},{"$f":"IF(A315=\"\",\"\",'1. Checklist & Certification'!$C$10)","v":""},{"$f":"IF(A315=\"\",\"\",'1. Checklist & Certification'!$C$11)","v":""},{"$f":"IF(A315=\"\",\"\",'1. Checklist & Certification'!$C$12)","v":""},{"$f":"IF(A315=\"\",\"\",'1. Checklist & Certification'!$B$14)","v":""},{"$f":"IF(A315=\"\",\"\",'1. Checklist & Certification'!$E$14)","v":""},{"$f":"IF(B315=\"\",\"\",'1. Checklist & Certification'!$G$14)","v":""},{"$f":"IF(A315=\"\",\"\",'MHP Family Income & Rent Limits'!$B$3)","v":""},{"$f":"IF(A315=\"\",\"\",'MHP Family Income & Rent Limits'!$J$3)","v":""},{"$f":"IF(A315=\"\",\"\",'MHP Family Income & Rent Limits'!$E$4)","v":""},{"$f":"IF(A315=\"\",\"\",'MHP Family Income & Rent Limits'!$C$7)","v":""},{"$f":"IF(A315=\"\",\"\",'MHP Family Income & Rent Limits'!$F$8)","v":""},{"$f":"IF(A315=\"\",\"\",'1. Checklist & Certification'!$G$4)","v":""},{"$f":"IF(A315=\"\",\"\",'1. Checklist & Certification'!$K$39)","v":""},{"$f":"IF(A315=\"\",\"\",'1. Checklist & Certification'!$K$43)","v":""},{"$f":"IF(A315=\"\",\"\",'1. Checklist & Certification'!$K$45)","v":""},{"$f":"IF(A315=\"\",\"\",'1. Checklist & Certification'!$K$49)","v":""},{"$f":"IF(A315=\"\",\"\",'1. Checklist & Certification'!$K$62)","v":""},{"$f":"IF(A315=\"\",\"\",'1. Checklist & Certification'!$E$66)","v":""},{"$f":"IF(A315=\"\",\"\",'1. Checklist & Certification'!$E$67)","v":""},{"$f":"IF(A315=\"\",\"\",'1. Checklist & Certification'!$E$68)","v":""},{"$f":"IF(A315=\"\",\"\",'1. Checklist & Certification'!$G$66)","v":""},{"$f":"IF(A315=\"\",\"\",'1. Checklist & Certification'!$H$66)","v":""},{"$f":"IF(A315=\"\",\"\",'1. Checklist & Certification'!$I$66)","v":""},{"$f":"IF(A315=\"\",\"\",'1. Checklist & Certification'!$I$67)","v":""},{"$f":"IF(A315=\"\",\"\",'1. Checklist & Certification'!$I$68)","v":""},{"$f":"IF(A315=\"\",\"\",'1. Checklist & Certification'!$B$69)","v":""},{"$f":"IF(A315=\"\",\"\",'1. Checklist & Certification'!$C$69)","v":""},{"$f":"IF(A315=\"\",\"\",'1. Checklist & Certification'!$F$69)","v":""},{"$f":"IF(A315=\"\",\"\",'1. Checklist & Certification'!$G$69)","v":""},{"$f":"IF(A315=\"\",\"\",'1. Checklist & Certification'!$J$69)","v":""},{"$f":"IF(A315=\"\",\"\",'1. Checklist & Certification'!$K$69)","v":""},null,null,{"$f":"IF(AND(OR('1. Checklist & Certification'!$M$16=1,'1. Checklist & Certification'!$M$19=2),AO315>0,B315=\"\",I315>0,AQ315<I315,AV315<>\"Sec 8-Project\"),\"X\",IF(AND(OR('1. Checklist & Certification'!$M$20=4,'1. Checklist & Certification'!$M$21=5,'1. Checklist & Certification'!$M$22=7),AO315>0,B315=\"\",I315>0,K315<I315),\"X\",\"\"))","v":""},{"$f":"IF(A315=\"\",\"\",IF(SUMPRODUCT(-- (ISNUMBER(SEARCH({\"*AHSC*\",\"*FMTW*\",\"*FWHG*\",\"*GHI*\",\"*HHC*\",\"*HLCP*\",\"*HOME*\",\"*LPR*\",\"*MHP*\",\"*NHTF*\",\"*NSP*\",\"*PRP*\",\"*TOD*\",\"*VHHP*\"},'1. Checklist & Certification'!$L$7)))),\"MHP\",\"Legacy\"))","v":""},",,",null,null,null,{"$f":"IF('1. Checklist & Certification'!$M$20=4,\"Both\",IF(OR('1. Checklist & Certification'!$M$15>0,S315=\"CHRP-R\",U315=\"CHRP-R\",W315=\"CHRP-R\",Y315=\"CHRP-R\"),\"Under\",\"No\"))","v":"No"},"No","No",{"$f":"_xlfn.IFS(D315=\"\",\"\",D315=1,'MHP Family Income & Rent Limits'!$E$17,D315=2,'MHP Family Income & Rent Limits'!$F$17,D315=3,'MHP Family Income & Rent Limits'!$G$17,D315=4,'MHP Family Income & Rent Limits'!$H$17,D315=5,'MHP Family Income & Rent Limits'!$I$17,D315=6,'MHP Family Income & Rent Limits'!$J$17,D315=7,'MHP Family Income & Rent Limits'!$K$17,D315=8,'MHP Family Income & Rent Limits'!$L$17)","v":""},"",{"$f":"IF(OR(A315=0,B315=\"X\"),0,MIN(IF(AA315:AD315<>0,AA315:AD315)))","v":0},{"$f":"IF(OR(H315=\"\",I315=\"\"),0,IF(H315*0.3/12>I315,MIN(H315*0.3/12,I315*1.1)+AP315,I315*(1+(VLOOKUP('1. Checklist & Certification'!$F$9,'HLCP-E Rent Change'!$A$1:$D$59,4,FALSE)))+AP315))","v":0}]
[null,null,null,null,null,null,null,null,null,null,null,null,null,null,null,null,null,null,null,null,null,null,null,null,null,null,0,0,0,0,0,0,0,0,{"$f":"IF(OR(A316=0,B316=\"X\"),0,IF(OR(S316=\"FHDP\",S316=\"RHCP-B\",U316=\"FHDP\",U316=\"RHCP-B\",W316=\"FHDP\",W316=\"RHCP-B\",Y316=\"FHDP\",Y316=\"RHCP-B\"),TRUNC((MIN(I316,K316)*(1+'1. Checklist & Certification'!$K$43)+AP316)),0))","v":0},{"$f":"IF(OR(A316=0,B316=\"X\"),0,IF(OR(S316=\"CHRP-R\",S316=\"SERA\",S316=\"SUHRP\",U316=\"CHRP-R\",U316=\"SERA\",U316=\"SUHRP\",W316=\"CHRP-R\",W316=\"SERA\",W316=\"SUHRP\",Y316=\"CHRP-R\",Y316=\"SERA\",Y316=\"SUHRP\"),TRUNC((MIN(I316,K316)*(1+'1. Checklist & Certification'!$K$49))),0))","v":0},{"$f":"IF(OR(A316=0,B316=\"X\"),0,IF(OR(S316=\"CALDAP\",S316=\"DPRLP\",U316=\"CALDAP\",U316=\"DPRLP\",W316=\"CALDAP\",W316=\"DPRLP\",Y316=\"CALDAP\",Y316=\"DPRLP\"),TRUNC(((MIN(I316,K316))*(1+'1. Checklist & Certification'!$G$4))),0))","v":0},0,0,0,{"$f":"IF(OR(A316=0,B316=\"X\"),0,IF(OR(S316=\"PRP\",S316=\"LPR\",U316=\"PRP\",U316=\"LPR\",W316=\"PRP\",W316=\"LPR\",Y316=\"PRP\",Y316=\"LPR\"),MAX(I316+AP316,MIN(IF(AE316:AN316<>0,AE316:AN316))),MIN(IF(AE316:AN316<>0,AE316:AN316))))","v":0},{"$f":"IF(A316=0,0,IF(AND(OR(S316=\"Mgr\",S316=0),OR(U316=\"Mgr\",U316=0),OR(W316=\"Mgr\",W316=0)),0,IF(LEFT($A316,2)=\"B*\",VLOOKUP($E316,'1. Checklist & Certification'!$D$26:$E$32,2),IF(LEFT($A316,2)=\"C*\",VLOOKUP($E316,'1. Checklist & Certification'!$F$26:$G$32,2),IF(LEFT($A316,2)=\"D*\",VLOOKUP($E316,'1. Checklist & Certification'!$H$26:$I$32,2),IF(LEFT($A316,2)=\"E*\",VLOOKUP($E316,'1. Checklist & Certification'!$J$26:$K$32,2),VLOOKUP($E316,'1. Checklist & Certification'!$A$26:$B$32,2)))))))","v":0},0,0,null,null,null,null,"","",0,0,0,null,{"$f":"IF(A316=\"\",\"\",'1. Checklist & Certification'!$K$1)","v":""},{"$f":"IF(A316=\"\",\"\",'1. Checklist & Certification'!$C$62)","v":""},{"$f":"IF(A316=\"\",\"\",'1. Checklist & Certification'!$C$6)","v":""},{"$f":"IF(A316=\"\",\"\",'1. Checklist & Certification'!$G$5)","v":""},{"$f":"IFERROR(IF(A316=\"\",\"\",\n_xlfn.LET(_xlpm.Contract,'1. Checklist & Certification'!$C$7,\n_xlpm.Yr,TEXT(MOD(_xlfn.TEXTBEFORE(_xlpm.Contract,\"-\"),100),\"00\"),\n_xlpm.Program,_xlfn.TEXTAFTER(_xlfn.TEXTBEFORE(_xlpm.Contract,\"-\",2),\"-\"),\n_xlpm.CleanProgram,_xlfn.XLOOKUP(_xlpm.Program,SpellCheck[Input],SpellCheck[Correction],_xlpm.Program),\n_xlpm.Number,TEXT(_xlfn.TEXTAFTER(_xlpm.Contract,\"-\",2),\"0000\"),\n_xlfn.CONCAT(_xlpm.Yr,\"-\",_xlpm.CleanProgram,\"-\",_xlpm.Number))\n),\"\")","v":""},{"$f":"IFERROR(IF(A316=\"\",\"\",\n_xlfn.LET(_xlpm.Contract,'1. Checklist & Certification'!$C$8,\n_xlpm.Yr,TEXT(MOD(_xlfn.TEXTBEFORE(_xlpm.Contract,\"-\"),100),\"00\"),\n_xlpm.Program,_xlfn.TEXTAFTER(_xlfn.TEXTBEFORE(_xlpm.Contract,\"-\",2),\"-\"),\n_xlpm.CleanProgram,_xlfn.XLOOKUP(_xlpm.Program,SpellCheck[Input],SpellCheck[Correction],_xlpm.Program),\n_xlpm.Number,TEXT(_xlfn.TEXTAFTER(_xlpm.Contract,\"-\",2),\"0000\"),\n_xlfn.CONCAT(_xlpm.Yr,\"-\",_xlpm.CleanProgram,\"-\",_xlpm.Number))\n),\"\")","v":""},{"$f":"IFERROR(IF(A316=\"\",\"\",\n_xlfn.LET(_xlpm.Contract,'1. Checklist & Certification'!$F$7,\n_xlpm.Yr,TEXT(MOD(_xlfn.TEXTBEFORE(_xlpm.Contract,\"-\"),100),\"00\"),\n_xlpm.Program,_xlfn.TEXTAFTER(_xlfn.TEXTBEFORE(_xlpm.Contract,\"-\",2),\"-\"),\n_xlpm.CleanProgram,_xlfn.XLOOKUP(_xlpm.Program,SpellCheck[Input],SpellCheck[Correction],_xlpm.Program),\n_xlpm.Number,TEXT(_xlfn.TEXTAFTER(_xlpm.Contract,\"-\",2),\"0000\"),\n_xlfn.CONCAT(_xlpm.Yr,\"-\",_xlpm.CleanProgram,\"-\",_xlpm.Number))\n),\"\")","v":""},{"$f":"IFERROR(IF(A316=\"\",\"\",\n_xlfn.LET(_xlpm.Contract,'1. Checklist & Certification'!$F$8,\n_xlpm.Yr,TEXT(MOD(_xlfn.TEXTBEFORE(_xlpm.Contract,\"-\"),100),\"00\"),\n_xlpm.Program,_xlfn.TEXTAFTER(_xlfn.TEXTBEFORE(_xlpm.Contract,\"-\",2),\"-\"),\n_xlpm.CleanProgram,_xlfn.XLOOKUP(_xlpm.Program,SpellCheck[Input],SpellCheck[Correction],_xlpm.Program),\n_xlpm.Number,TEXT(_xlfn.TEXTAFTER(_xlpm.Contract,\"-\",2),\"0000\"),\n_xlfn.CONCAT(_xlpm.Yr,\"-\",_xlpm.CleanProgram,\"-\",_xlpm.Number))\n),\"\")","v":""},{"$f":"IF(A316=\"\",\"\",'1. Checklist & Certification'!$B$9)","v":""},{"$f":"IF(A316=\"\",\"\",'1. Checklist & Certification'!$F$9)","v":""},{"$f":"IF(A316=\"\",\"\",'1. Checklist & Certification'!$C$10)","v":""},{"$f":"IF(A316=\"\",\"\",'1. Checklist & Certification'!$C$11)","v":""},{"$f":"IF(A316=\"\",\"\",'1. Checklist & Certification'!$C$12)","v":""},{"$f":"IF(A316=\"\",\"\",'1. Checklist & Certification'!$B$14)","v":""},{"$f":"IF(A316=\"\",\"\",'1. Checklist & Certification'!$E$14)","v":""},{"$f":"IF(B316=\"\",\"\",'1. Checklist & Certification'!$G$14)","v":""},{"$f":"IF(A316=\"\",\"\",'MHP Family Income & Rent Limits'!$B$3)","v":""},{"$f":"IF(A316=\"\",\"\",'MHP Family Income & Rent Limits'!$J$3)","v":""},{"$f":"IF(A316=\"\",\"\",'MHP Family Income & Rent Limits'!$E$4)","v":""},{"$f":"IF(A316=\"\",\"\",'MHP Family Income & Rent Limits'!$C$7)","v":""},{"$f":"IF(A316=\"\",\"\",'MHP Family Income & Rent Limits'!$F$8)","v":""},{"$f":"IF(A316=\"\",\"\",'1. Checklist & Certification'!$G$4)","v":""},{"$f":"IF(A316=\"\",\"\",'1. Checklist & Certification'!$K$39)","v":""},{"$f":"IF(A316=\"\",\"\",'1. Checklist & Certification'!$K$43)","v":""},{"$f":"IF(A316=\"\",\"\",'1. Checklist & Certification'!$K$45)","v":""},{"$f":"IF(A316=\"\",\"\",'1. Checklist & Certification'!$K$49)","v":""},{"$f":"IF(A316=\"\",\"\",'1. Checklist & Certification'!$K$62)","v":""},{"$f":"IF(A316=\"\",\"\",'1. Checklist & Certification'!$E$66)","v":""},{"$f":"IF(A316=\"\",\"\",'1. Checklist & Certification'!$E$67)","v":""},{"$f":"IF(A316=\"\",\"\",'1. Checklist & Certification'!$E$68)","v":""},{"$f":"IF(A316=\"\",\"\",'1. Checklist & Certification'!$G$66)","v":""},{"$f":"IF(A316=\"\",\"\",'1. Checklist & Certification'!$H$66)","v":""},{"$f":"IF(A316=\"\",\"\",'1. Checklist & Certification'!$I$66)","v":""},{"$f":"IF(A316=\"\",\"\",'1. Checklist & Certification'!$I$67)","v":""},{"$f":"IF(A316=\"\",\"\",'1. Checklist & Certification'!$I$68)","v":""},{"$f":"IF(A316=\"\",\"\",'1. Checklist & Certification'!$B$69)","v":""},{"$f":"IF(A316=\"\",\"\",'1. Checklist & Certification'!$C$69)","v":""},{"$f":"IF(A316=\"\",\"\",'1. Checklist & Certification'!$F$69)","v":""},{"$f":"IF(A316=\"\",\"\",'1. Checklist & Certification'!$G$69)","v":""},{"$f":"IF(A316=\"\",\"\",'1. Checklist & Certification'!$J$69)","v":""},{"$f":"IF(A316=\"\",\"\",'1. Checklist & Certification'!$K$69)","v":""},null,null,{"$f":"IF(AND(OR('1. Checklist & Certification'!$M$16=1,'1. Checklist & Certification'!$M$19=2),AO316>0,B316=\"\",I316>0,AQ316<I316,AV316<>\"Sec 8-Project\"),\"X\",IF(AND(OR('1. Checklist & Certification'!$M$20=4,'1. Checklist & Certification'!$M$21=5,'1. Checklist & Certification'!$M$22=7),AO316>0,B316=\"\",I316>0,K316<I316),\"X\",\"\"))","v":""},{"$f":"IF(A316=\"\",\"\",IF(SUMPRODUCT(-- (ISNUMBER(SEARCH({\"*AHSC*\",\"*FMTW*\",\"*FWHG*\",\"*GHI*\",\"*HHC*\",\"*HLCP*\",\"*HOME*\",\"*LPR*\",\"*MHP*\",\"*NHTF*\",\"*NSP*\",\"*PRP*\",\"*TOD*\",\"*VHHP*\"},'1. Checklist & Certification'!$L$7)))),\"MHP\",\"Legacy\"))","v":""},",,",null,null,null,{"$f":"IF('1. Checklist & Certification'!$M$20=4,\"Both\",IF(OR('1. Checklist & Certification'!$M$15>0,S316=\"CHRP-R\",U316=\"CHRP-R\",W316=\"CHRP-R\",Y316=\"CHRP-R\"),\"Under\",\"No\"))","v":"No"},"No","No",{"$f":"_xlfn.IFS(D316=\"\",\"\",D316=1,'MHP Family Income & Rent Limits'!$E$17,D316=2,'MHP Family Income & Rent Limits'!$F$17,D316=3,'MHP Family Income & Rent Limits'!$G$17,D316=4,'MHP Family Income & Rent Limits'!$H$17,D316=5,'MHP Family Income & Rent Limits'!$I$17,D316=6,'MHP Family Income & Rent Limits'!$J$17,D316=7,'MHP Family Income & Rent Limits'!$K$17,D316=8,'MHP Family Income & Rent Limits'!$L$17)","v":""},"",{"$f":"IF(OR(A316=0,B316=\"X\"),0,MIN(IF(AA316:AD316<>0,AA316:AD316)))","v":0},{"$f":"IF(OR(H316=\"\",I316=\"\"),0,IF(H316*0.3/12>I316,MIN(H316*0.3/12,I316*1.1)+AP316,I316*(1+(VLOOKUP('1. Checklist & Certification'!$F$9,'HLCP-E Rent Change'!$A$1:$D$59,4,FALSE)))+AP316))","v":0}]
[null,null,null,null,null,null,null,null,null,null,null,null,null,null,null,null,null,null,null,null,null,null,null,null,null,null,0,0,0,0,0,0,0,0,{"$f":"IF(OR(A317=0,B317=\"X\"),0,IF(OR(S317=\"FHDP\",S317=\"RHCP-B\",U317=\"FHDP\",U317=\"RHCP-B\",W317=\"FHDP\",W317=\"RHCP-B\",Y317=\"FHDP\",Y317=\"RHCP-B\"),TRUNC((MIN(I317,K317)*(1+'1. Checklist & Certification'!$K$43)+AP317)),0))","v":0},{"$f":"IF(OR(A317=0,B317=\"X\"),0,IF(OR(S317=\"CHRP-R\",S317=\"SERA\",S317=\"SUHRP\",U317=\"CHRP-R\",U317=\"SERA\",U317=\"SUHRP\",W317=\"CHRP-R\",W317=\"SERA\",W317=\"SUHRP\",Y317=\"CHRP-R\",Y317=\"SERA\",Y317=\"SUHRP\"),TRUNC((MIN(I317,K317)*(1+'1. Checklist & Certification'!$K$49))),0))","v":0},{"$f":"IF(OR(A317=0,B317=\"X\"),0,IF(OR(S317=\"CALDAP\",S317=\"DPRLP\",U317=\"CALDAP\",U317=\"DPRLP\",W317=\"CALDAP\",W317=\"DPRLP\",Y317=\"CALDAP\",Y317=\"DPRLP\"),TRUNC(((MIN(I317,K317))*(1+'1. Checklist & Certification'!$G$4))),0))","v":0},0,0,0,{"$f":"IF(OR(A317=0,B317=\"X\"),0,IF(OR(S317=\"PRP\",S317=\"LPR\",U317=\"PRP\",U317=\"LPR\",W317=\"PRP\",W317=\"LPR\",Y317=\"PRP\",Y317=\"LPR\"),MAX(I317+AP317,MIN(IF(AE317:AN317<>0,AE317:AN317))),MIN(IF(AE317:AN317<>0,AE317:AN317))))","v":0},{"$f":"IF(A317=0,0,IF(AND(OR(S317=\"Mgr\",S317=0),OR(U317=\"Mgr\",U317=0),OR(W317=\"Mgr\",W317=0)),0,IF(LEFT($A317,2)=\"B*\",VLOOKUP($E317,'1. Checklist & Certification'!$D$26:$E$32,2),IF(LEFT($A317,2)=\"C*\",VLOOKUP($E317,'1. Checklist & Certification'!$F$26:$G$32,2),IF(LEFT($A317,2)=\"D*\",VLOOKUP($E317,'1. Checklist & Certification'!$H$26:$I$32,2),IF(LEFT($A317,2)=\"E*\",VLOOKUP($E317,'1. Checklist & Certification'!$J$26:$K$32,2),VLOOKUP($E317,'1. Checklist & Certification'!$A$26:$B$32,2)))))))","v":0},0,0,null,null,null,null,"","",0,0,0,null,{"$f":"IF(A317=\"\",\"\",'1. Checklist & Certification'!$K$1)","v":""},{"$f":"IF(A317=\"\",\"\",'1. Checklist & Certification'!$C$62)","v":""},{"$f":"IF(A317=\"\",\"\",'1. Checklist & Certification'!$C$6)","v":""},{"$f":"IF(A317=\"\",\"\",'1. Checklist & Certification'!$G$5)","v":""},{"$f":"IFERROR(IF(A317=\"\",\"\",\n_xlfn.LET(_xlpm.Contract,'1. Checklist & Certification'!$C$7,\n_xlpm.Yr,TEXT(MOD(_xlfn.TEXTBEFORE(_xlpm.Contract,\"-\"),100),\"00\"),\n_xlpm.Program,_xlfn.TEXTAFTER(_xlfn.TEXTBEFORE(_xlpm.Contract,\"-\",2),\"-\"),\n_xlpm.CleanProgram,_xlfn.XLOOKUP(_xlpm.Program,SpellCheck[Input],SpellCheck[Correction],_xlpm.Program),\n_xlpm.Number,TEXT(_xlfn.TEXTAFTER(_xlpm.Contract,\"-\",2),\"0000\"),\n_xlfn.CONCAT(_xlpm.Yr,\"-\",_xlpm.CleanProgram,\"-\",_xlpm.Number))\n),\"\")","v":""},{"$f":"IFERROR(IF(A317=\"\",\"\",\n_xlfn.LET(_xlpm.Contract,'1. Checklist & Certification'!$C$8,\n_xlpm.Yr,TEXT(MOD(_xlfn.TEXTBEFORE(_xlpm.Contract,\"-\"),100),\"00\"),\n_xlpm.Program,_xlfn.TEXTAFTER(_xlfn.TEXTBEFORE(_xlpm.Contract,\"-\",2),\"-\"),\n_xlpm.CleanProgram,_xlfn.XLOOKUP(_xlpm.Program,SpellCheck[Input],SpellCheck[Correction],_xlpm.Program),\n_xlpm.Number,TEXT(_xlfn.TEXTAFTER(_xlpm.Contract,\"-\",2),\"0000\"),\n_xlfn.CONCAT(_xlpm.Yr,\"-\",_xlpm.CleanProgram,\"-\",_xlpm.Number))\n),\"\")","v":""},{"$f":"IFERROR(IF(A317=\"\",\"\",\n_xlfn.LET(_xlpm.Contract,'1. Checklist & Certification'!$F$7,\n_xlpm.Yr,TEXT(MOD(_xlfn.TEXTBEFORE(_xlpm.Contract,\"-\"),100),\"00\"),\n_xlpm.Program,_xlfn.TEXTAFTER(_xlfn.TEXTBEFORE(_xlpm.Contract,\"-\",2),\"-\"),\n_xlpm.CleanProgram,_xlfn.XLOOKUP(_xlpm.Program,SpellCheck[Input],SpellCheck[Correction],_xlpm.Program),\n_xlpm.Number,TEXT(_xlfn.TEXTAFTER(_xlpm.Contract,\"-\",2),\"0000\"),\n_xlfn.CONCAT(_xlpm.Yr,\"-\",_xlpm.CleanProgram,\"-\",_xlpm.Number))\n),\"\")","v":""},{"$f":"IFERROR(IF(A317=\"\",\"\",\n_xlfn.LET(_xlpm.Contract,'1. Checklist & Certification'!$F$8,\n_xlpm.Yr,TEXT(MOD(_xlfn.TEXTBEFORE(_xlpm.Contract,\"-\"),100),\"00\"),\n_xlpm.Program,_xlfn.TEXTAFTER(_xlfn.TEXTBEFORE(_xlpm.Contract,\"-\",2),\"-\"),\n_xlpm.CleanProgram,_xlfn.XLOOKUP(_xlpm.Program,SpellCheck[Input],SpellCheck[Correction],_xlpm.Program),\n_xlpm.Number,TEXT(_xlfn.TEXTAFTER(_xlpm.Contract,\"-\",2),\"0000\"),\n_xlfn.CONCAT(_xlpm.Yr,\"-\",_xlpm.CleanProgram,\"-\",_xlpm.Number))\n),\"\")","v":""},{"$f":"IF(A317=\"\",\"\",'1. Checklist & Certification'!$B$9)","v":""},{"$f":"IF(A317=\"\",\"\",'1. Checklist & Certification'!$F$9)","v":""},{"$f":"IF(A317=\"\",\"\",'1. Checklist & Certification'!$C$10)","v":""},{"$f":"IF(A317=\"\",\"\",'1. Checklist & Certification'!$C$11)","v":""},{"$f":"IF(A317=\"\",\"\",'1. Checklist & Certification'!$C$12)","v":""},{"$f":"IF(A317=\"\",\"\",'1. Checklist & Certification'!$B$14)","v":""},{"$f":"IF(A317=\"\",\"\",'1. Checklist & Certification'!$E$14)","v":""},{"$f":"IF(B317=\"\",\"\",'1. Checklist & Certification'!$G$14)","v":""},{"$f":"IF(A317=\"\",\"\",'MHP Family Income & Rent Limits'!$B$3)","v":""},{"$f":"IF(A317=\"\",\"\",'MHP Family Income & Rent Limits'!$J$3)","v":""},{"$f":"IF(A317=\"\",\"\",'MHP Family Income & Rent Limits'!$E$4)","v":""},{"$f":"IF(A317=\"\",\"\",'MHP Family Income & Rent Limits'!$C$7)","v":""},{"$f":"IF(A317=\"\",\"\",'MHP Family Income & Rent Limits'!$F$8)","v":""},{"$f":"IF(A317=\"\",\"\",'1. Checklist & Certification'!$G$4)","v":""},{"$f":"IF(A317=\"\",\"\",'1. Checklist & Certification'!$K$39)","v":""},{"$f":"IF(A317=\"\",\"\",'1. Checklist & Certification'!$K$43)","v":""},{"$f":"IF(A317=\"\",\"\",'1. Checklist & Certification'!$K$45)","v":""},{"$f":"IF(A317=\"\",\"\",'1. Checklist & Certification'!$K$49)","v":""},{"$f":"IF(A317=\"\",\"\",'1. Checklist & Certification'!$K$62)","v":""},{"$f":"IF(A317=\"\",\"\",'1. Checklist & Certification'!$E$66)","v":""},{"$f":"IF(A317=\"\",\"\",'1. Checklist & Certification'!$E$67)","v":""},{"$f":"IF(A317=\"\",\"\",'1. Checklist & Certification'!$E$68)","v":""},{"$f":"IF(A317=\"\",\"\",'1. Checklist & Certification'!$G$66)","v":""},{"$f":"IF(A317=\"\",\"\",'1. Checklist & Certification'!$H$66)","v":""},{"$f":"IF(A317=\"\",\"\",'1. Checklist & Certification'!$I$66)","v":""},{"$f":"IF(A317=\"\",\"\",'1. Checklist & Certification'!$I$67)","v":""},{"$f":"IF(A317=\"\",\"\",'1. Checklist & Certification'!$I$68)","v":""},{"$f":"IF(A317=\"\",\"\",'1. Checklist & Certification'!$B$69)","v":""},{"$f":"IF(A317=\"\",\"\",'1. Checklist & Certification'!$C$69)","v":""},{"$f":"IF(A317=\"\",\"\",'1. Checklist & Certification'!$F$69)","v":""},{"$f":"IF(A317=\"\",\"\",'1. Checklist & Certification'!$G$69)","v":""},{"$f":"IF(A317=\"\",\"\",'1. Checklist & Certification'!$J$69)","v":""},{"$f":"IF(A317=\"\",\"\",'1. Checklist & Certification'!$K$69)","v":""},null,null,{"$f":"IF(AND(OR('1. Checklist & Certification'!$M$16=1,'1. Checklist & Certification'!$M$19=2),AO317>0,B317=\"\",I317>0,AQ317<I317,AV317<>\"Sec 8-Project\"),\"X\",IF(AND(OR('1. Checklist & Certification'!$M$20=4,'1. Checklist & Certification'!$M$21=5,'1. Checklist & Certification'!$M$22=7),AO317>0,B317=\"\",I317>0,K317<I317),\"X\",\"\"))","v":""},{"$f":"IF(A317=\"\",\"\",IF(SUMPRODUCT(-- (ISNUMBER(SEARCH({\"*AHSC*\",\"*FMTW*\",\"*FWHG*\",\"*GHI*\",\"*HHC*\",\"*HLCP*\",\"*HOME*\",\"*LPR*\",\"*MHP*\",\"*NHTF*\",\"*NSP*\",\"*PRP*\",\"*TOD*\",\"*VHHP*\"},'1. Checklist & Certification'!$L$7)))),\"MHP\",\"Legacy\"))","v":""},",,",null,null,null,{"$f":"IF('1. Checklist & Certification'!$M$20=4,\"Both\",IF(OR('1. Checklist & Certification'!$M$15>0,S317=\"CHRP-R\",U317=\"CHRP-R\",W317=\"CHRP-R\",Y317=\"CHRP-R\"),\"Under\",\"No\"))","v":"No"},"No","No",{"$f":"_xlfn.IFS(D317=\"\",\"\",D317=1,'MHP Family Income & Rent Limits'!$E$17,D317=2,'MHP Family Income & Rent Limits'!$F$17,D317=3,'MHP Family Income & Rent Limits'!$G$17,D317=4,'MHP Family Income & Rent Limits'!$H$17,D317=5,'MHP Family Income & Rent Limits'!$I$17,D317=6,'MHP Family Income & Rent Limits'!$J$17,D317=7,'MHP Family Income & Rent Limits'!$K$17,D317=8,'MHP Family Income & Rent Limits'!$L$17)","v":""},"",{"$f":"IF(OR(A317=0,B317=\"X\"),0,MIN(IF(AA317:AD317<>0,AA317:AD317)))","v":0},{"$f":"IF(OR(H317=\"\",I317=\"\"),0,IF(H317*0.3/12>I317,MIN(H317*0.3/12,I317*1.1)+AP317,I317*(1+(VLOOKUP('1. Checklist & Certification'!$F$9,'HLCP-E Rent Change'!$A$1:$D$59,4,FALSE)))+AP317))","v":0}]
[null,null,null,null,null,null,null,null,null,null,null,null,null,null,null,null,null,null,null,null,null,null,null,null,null,null,0,0,0,0,0,0,0,0,{"$f":"IF(OR(A318=0,B318=\"X\"),0,IF(OR(S318=\"FHDP\",S318=\"RHCP-B\",U318=\"FHDP\",U318=\"RHCP-B\",W318=\"FHDP\",W318=\"RHCP-B\",Y318=\"FHDP\",Y318=\"RHCP-B\"),TRUNC((MIN(I318,K318)*(1+'1. Checklist & Certification'!$K$43)+AP318)),0))","v":0},{"$f":"IF(OR(A318=0,B318=\"X\"),0,IF(OR(S318=\"CHRP-R\",S318=\"SERA\",S318=\"SUHRP\",U318=\"CHRP-R\",U318=\"SERA\",U318=\"SUHRP\",W318=\"CHRP-R\",W318=\"SERA\",W318=\"SUHRP\",Y318=\"CHRP-R\",Y318=\"SERA\",Y318=\"SUHRP\"),TRUNC((MIN(I318,K318)*(1+'1. Checklist & Certification'!$K$49))),0))","v":0},{"$f":"IF(OR(A318=0,B318=\"X\"),0,IF(OR(S318=\"CALDAP\",S318=\"DPRLP\",U318=\"CALDAP\",U318=\"DPRLP\",W318=\"CALDAP\",W318=\"DPRLP\",Y318=\"CALDAP\",Y318=\"DPRLP\"),TRUNC(((MIN(I318,K318))*(1+'1. Checklist & Certification'!$G$4))),0))","v":0},0,0,0,{"$f":"IF(OR(A318=0,B318=\"X\"),0,IF(OR(S318=\"PRP\",S318=\"LPR\",U318=\"PRP\",U318=\"LPR\",W318=\"PRP\",W318=\"LPR\",Y318=\"PRP\",Y318=\"LPR\"),MAX(I318+AP318,MIN(IF(AE318:AN318<>0,AE318:AN318))),MIN(IF(AE318:AN318<>0,AE318:AN318))))","v":0},{"$f":"IF(A318=0,0,IF(AND(OR(S318=\"Mgr\",S318=0),OR(U318=\"Mgr\",U318=0),OR(W318=\"Mgr\",W318=0)),0,IF(LEFT($A318,2)=\"B*\",VLOOKUP($E318,'1. Checklist & Certification'!$D$26:$E$32,2),IF(LEFT($A318,2)=\"C*\",VLOOKUP($E318,'1. Checklist & Certification'!$F$26:$G$32,2),IF(LEFT($A318,2)=\"D*\",VLOOKUP($E318,'1. Checklist & Certification'!$H$26:$I$32,2),IF(LEFT($A318,2)=\"E*\",VLOOKUP($E318,'1. Checklist & Certification'!$J$26:$K$32,2),VLOOKUP($E318,'1. Checklist & Certification'!$A$26:$B$32,2)))))))","v":0},0,0,null,null,null,null,"","",0,0,0,null,{"$f":"IF(A318=\"\",\"\",'1. Checklist & Certification'!$K$1)","v":""},{"$f":"IF(A318=\"\",\"\",'1. Checklist & Certification'!$C$62)","v":""},{"$f":"IF(A318=\"\",\"\",'1. Checklist & Certification'!$C$6)","v":""},{"$f":"IF(A318=\"\",\"\",'1. Checklist & Certification'!$G$5)","v":""},{"$f":"IFERROR(IF(A318=\"\",\"\",\n_xlfn.LET(_xlpm.Contract,'1. Checklist & Certification'!$C$7,\n_xlpm.Yr,TEXT(MOD(_xlfn.TEXTBEFORE(_xlpm.Contract,\"-\"),100),\"00\"),\n_xlpm.Program,_xlfn.TEXTAFTER(_xlfn.TEXTBEFORE(_xlpm.Contract,\"-\",2),\"-\"),\n_xlpm.CleanProgram,_xlfn.XLOOKUP(_xlpm.Program,SpellCheck[Input],SpellCheck[Correction],_xlpm.Program),\n_xlpm.Number,TEXT(_xlfn.TEXTAFTER(_xlpm.Contract,\"-\",2),\"0000\"),\n_xlfn.CONCAT(_xlpm.Yr,\"-\",_xlpm.CleanProgram,\"-\",_xlpm.Number))\n),\"\")","v":""},{"$f":"IFERROR(IF(A318=\"\",\"\",\n_xlfn.LET(_xlpm.Contract,'1. Checklist & Certification'!$C$8,\n_xlpm.Yr,TEXT(MOD(_xlfn.TEXTBEFORE(_xlpm.Contract,\"-\"),100),\"00\"),\n_xlpm.Program,_xlfn.TEXTAFTER(_xlfn.TEXTBEFORE(_xlpm.Contract,\"-\",2),\"-\"),\n_xlpm.CleanProgram,_xlfn.XLOOKUP(_xlpm.Program,SpellCheck[Input],SpellCheck[Correction],_xlpm.Program),\n_xlpm.Number,TEXT(_xlfn.TEXTAFTER(_xlpm.Contract,\"-\",2),\"0000\"),\n_xlfn.CONCAT(_xlpm.Yr,\"-\",_xlpm.CleanProgram,\"-\",_xlpm.Number))\n),\"\")","v":""},{"$f":"IFERROR(IF(A318=\"\",\"\",\n_xlfn.LET(_xlpm.Contract,'1. Checklist & Certification'!$F$7,\n_xlpm.Yr,TEXT(MOD(_xlfn.TEXTBEFORE(_xlpm.Contract,\"-\"),100),\"00\"),\n_xlpm.Program,_xlfn.TEXTAFTER(_xlfn.TEXTBEFORE(_xlpm.Contract,\"-\",2),\"-\"),\n_xlpm.CleanProgram,_xlfn.XLOOKUP(_xlpm.Program,SpellCheck[Input],SpellCheck[Correction],_xlpm.Program),\n_xlpm.Number,TEXT(_xlfn.TEXTAFTER(_xlpm.Contract,\"-\",2),\"0000\"),\n_xlfn.CONCAT(_xlpm.Yr,\"-\",_xlpm.CleanProgram,\"-\",_xlpm.Number))\n),\"\")","v":""},{"$f":"IFERROR(IF(A318=\"\",\"\",\n_xlfn.LET(_xlpm.Contract,'1. Checklist & Certification'!$F$8,\n_xlpm.Yr,TEXT(MOD(_xlfn.TEXTBEFORE(_xlpm.Contract,\"-\"),100),\"00\"),\n_xlpm.Program,_xlfn.TEXTAFTER(_xlfn.TEXTBEFORE(_xlpm.Contract,\"-\",2),\"-\"),\n_xlpm.CleanProgram,_xlfn.XLOOKUP(_xlpm.Program,SpellCheck[Input],SpellCheck[Correction],_xlpm.Program),\n_xlpm.Number,TEXT(_xlfn.TEXTAFTER(_xlpm.Contract,\"-\",2),\"0000\"),\n_xlfn.CONCAT(_xlpm.Yr,\"-\",_xlpm.CleanProgram,\"-\",_xlpm.Number))\n),\"\")","v":""},{"$f":"IF(A318=\"\",\"\",'1. Checklist & Certification'!$B$9)","v":""},{"$f":"IF(A318=\"\",\"\",'1. Checklist & Certification'!$F$9)","v":""},{"$f":"IF(A318=\"\",\"\",'1. Checklist & Certification'!$C$10)","v":""},{"$f":"IF(A318=\"\",\"\",'1. Checklist & Certification'!$C$11)","v":""},{"$f":"IF(A318=\"\",\"\",'1. Checklist & Certification'!$C$12)","v":""},{"$f":"IF(A318=\"\",\"\",'1. Checklist & Certification'!$B$14)","v":""},{"$f":"IF(A318=\"\",\"\",'1. Checklist & Certification'!$E$14)","v":""},{"$f":"IF(B318=\"\",\"\",'1. Checklist & Certification'!$G$14)","v":""},{"$f":"IF(A318=\"\",\"\",'MHP Family Income & Rent Limits'!$B$3)","v":""},{"$f":"IF(A318=\"\",\"\",'MHP Family Income & Rent Limits'!$J$3)","v":""},{"$f":"IF(A318=\"\",\"\",'MHP Family Income & Rent Limits'!$E$4)","v":""},{"$f":"IF(A318=\"\",\"\",'MHP Family Income & Rent Limits'!$C$7)","v":""},{"$f":"IF(A318=\"\",\"\",'MHP Family Income & Rent Limits'!$F$8)","v":""},{"$f":"IF(A318=\"\",\"\",'1. Checklist & Certification'!$G$4)","v":""},{"$f":"IF(A318=\"\",\"\",'1. Checklist & Certification'!$K$39)","v":""},{"$f":"IF(A318=\"\",\"\",'1. Checklist & Certification'!$K$43)","v":""},{"$f":"IF(A318=\"\",\"\",'1. Checklist & Certification'!$K$45)","v":""},{"$f":"IF(A318=\"\",\"\",'1. Checklist & Certification'!$K$49)","v":""},{"$f":"IF(A318=\"\",\"\",'1. Checklist & Certification'!$K$62)","v":""},{"$f":"IF(A318=\"\",\"\",'1. Checklist & Certification'!$E$66)","v":""},{"$f":"IF(A318=\"\",\"\",'1. Checklist & Certification'!$E$67)","v":""},{"$f":"IF(A318=\"\",\"\",'1. Checklist & Certification'!$E$68)","v":""},{"$f":"IF(A318=\"\",\"\",'1. Checklist & Certification'!$G$66)","v":""},{"$f":"IF(A318=\"\",\"\",'1. Checklist & Certification'!$H$66)","v":""},{"$f":"IF(A318=\"\",\"\",'1. Checklist & Certification'!$I$66)","v":""},{"$f":"IF(A318=\"\",\"\",'1. Checklist & Certification'!$I$67)","v":""},{"$f":"IF(A318=\"\",\"\",'1. Checklist & Certification'!$I$68)","v":""},{"$f":"IF(A318=\"\",\"\",'1. Checklist & Certification'!$B$69)","v":""},{"$f":"IF(A318=\"\",\"\",'1. Checklist & Certification'!$C$69)","v":""},{"$f":"IF(A318=\"\",\"\",'1. Checklist & Certification'!$F$69)","v":""},{"$f":"IF(A318=\"\",\"\",'1. Checklist & Certification'!$G$69)","v":""},{"$f":"IF(A318=\"\",\"\",'1. Checklist & Certification'!$J$69)","v":""},{"$f":"IF(A318=\"\",\"\",'1. Checklist & Certification'!$K$69)","v":""},null,null,{"$f":"IF(AND(OR('1. Checklist & Certification'!$M$16=1,'1. Checklist & Certification'!$M$19=2),AO318>0,B318=\"\",I318>0,AQ318<I318,AV318<>\"Sec 8-Project\"),\"X\",IF(AND(OR('1. Checklist & Certification'!$M$20=4,'1. Checklist & Certification'!$M$21=5,'1. Checklist & Certification'!$M$22=7),AO318>0,B318=\"\",I318>0,K318<I318),\"X\",\"\"))","v":""},{"$f":"IF(A318=\"\",\"\",IF(SUMPRODUCT(-- (ISNUMBER(SEARCH({\"*AHSC*\",\"*FMTW*\",\"*FWHG*\",\"*GHI*\",\"*HHC*\",\"*HLCP*\",\"*HOME*\",\"*LPR*\",\"*MHP*\",\"*NHTF*\",\"*NSP*\",\"*PRP*\",\"*TOD*\",\"*VHHP*\"},'1. Checklist & Certification'!$L$7)))),\"MHP\",\"Legacy\"))","v":""},",,",null,null,null,{"$f":"IF('1. Checklist & Certification'!$M$20=4,\"Both\",IF(OR('1. Checklist & Certification'!$M$15>0,S318=\"CHRP-R\",U318=\"CHRP-R\",W318=\"CHRP-R\",Y318=\"CHRP-R\"),\"Under\",\"No\"))","v":"No"},"No","No",{"$f":"_xlfn.IFS(D318=\"\",\"\",D318=1,'MHP Family Income & Rent Limits'!$E$17,D318=2,'MHP Family Income & Rent Limits'!$F$17,D318=3,'MHP Family Income & Rent Limits'!$G$17,D318=4,'MHP Family Income & Rent Limits'!$H$17,D318=5,'MHP Family Income & Rent Limits'!$I$17,D318=6,'MHP Family Income & Rent Limits'!$J$17,D318=7,'MHP Family Income & Rent Limits'!$K$17,D318=8,'MHP Family Income & Rent Limits'!$L$17)","v":""},"",{"$f":"IF(OR(A318=0,B318=\"X\"),0,MIN(IF(AA318:AD318<>0,AA318:AD318)))","v":0},{"$f":"IF(OR(H318=\"\",I318=\"\"),0,IF(H318*0.3/12>I318,MIN(H318*0.3/12,I318*1.1)+AP318,I318*(1+(VLOOKUP('1. Checklist & Certification'!$F$9,'HLCP-E Rent Change'!$A$1:$D$59,4,FALSE)))+AP318))","v":0}]
[null,null,null,null,null,null,null,null,null,null,null,null,null,null,null,null,null,null,null,null,null,null,null,null,null,null,0,0,0,0,0,0,0,0,{"$f":"IF(OR(A319=0,B319=\"X\"),0,IF(OR(S319=\"FHDP\",S319=\"RHCP-B\",U319=\"FHDP\",U319=\"RHCP-B\",W319=\"FHDP\",W319=\"RHCP-B\",Y319=\"FHDP\",Y319=\"RHCP-B\"),TRUNC((MIN(I319,K319)*(1+'1. Checklist & Certification'!$K$43)+AP319)),0))","v":0},{"$f":"IF(OR(A319=0,B319=\"X\"),0,IF(OR(S319=\"CHRP-R\",S319=\"SERA\",S319=\"SUHRP\",U319=\"CHRP-R\",U319=\"SERA\",U319=\"SUHRP\",W319=\"CHRP-R\",W319=\"SERA\",W319=\"SUHRP\",Y319=\"CHRP-R\",Y319=\"SERA\",Y319=\"SUHRP\"),TRUNC((MIN(I319,K319)*(1+'1. Checklist & Certification'!$K$49))),0))","v":0},{"$f":"IF(OR(A319=0,B319=\"X\"),0,IF(OR(S319=\"CALDAP\",S319=\"DPRLP\",U319=\"CALDAP\",U319=\"DPRLP\",W319=\"CALDAP\",W319=\"DPRLP\",Y319=\"CALDAP\",Y319=\"DPRLP\"),TRUNC(((MIN(I319,K319))*(1+'1. Checklist & Certification'!$G$4))),0))","v":0},0,0,0,{"$f":"IF(OR(A319=0,B319=\"X\"),0,IF(OR(S319=\"PRP\",S319=\"LPR\",U319=\"PRP\",U319=\"LPR\",W319=\"PRP\",W319=\"LPR\",Y319=\"PRP\",Y319=\"LPR\"),MAX(I319+AP319,MIN(IF(AE319:AN319<>0,AE319:AN319))),MIN(IF(AE319:AN319<>0,AE319:AN319))))","v":0},{"$f":"IF(A319=0,0,IF(AND(OR(S319=\"Mgr\",S319=0),OR(U319=\"Mgr\",U319=0),OR(W319=\"Mgr\",W319=0)),0,IF(LEFT($A319,2)=\"B*\",VLOOKUP($E319,'1. Checklist & Certification'!$D$26:$E$32,2),IF(LEFT($A319,2)=\"C*\",VLOOKUP($E319,'1. Checklist & Certification'!$F$26:$G$32,2),IF(LEFT($A319,2)=\"D*\",VLOOKUP($E319,'1. Checklist & Certification'!$H$26:$I$32,2),IF(LEFT($A319,2)=\"E*\",VLOOKUP($E319,'1. Checklist & Certification'!$J$26:$K$32,2),VLOOKUP($E319,'1. Checklist & Certification'!$A$26:$B$32,2)))))))","v":0},0,0,null,null,null,null,"","",0,0,0,null,{"$f":"IF(A319=\"\",\"\",'1. Checklist & Certification'!$K$1)","v":""},{"$f":"IF(A319=\"\",\"\",'1. Checklist & Certification'!$C$62)","v":""},{"$f":"IF(A319=\"\",\"\",'1. Checklist & Certification'!$C$6)","v":""},{"$f":"IF(A319=\"\",\"\",'1. Checklist & Certification'!$G$5)","v":""},{"$f":"IFERROR(IF(A319=\"\",\"\",\n_xlfn.LET(_xlpm.Contract,'1. Checklist & Certification'!$C$7,\n_xlpm.Yr,TEXT(MOD(_xlfn.TEXTBEFORE(_xlpm.Contract,\"-\"),100),\"00\"),\n_xlpm.Program,_xlfn.TEXTAFTER(_xlfn.TEXTBEFORE(_xlpm.Contract,\"-\",2),\"-\"),\n_xlpm.CleanProgram,_xlfn.XLOOKUP(_xlpm.Program,SpellCheck[Input],SpellCheck[Correction],_xlpm.Program),\n_xlpm.Number,TEXT(_xlfn.TEXTAFTER(_xlpm.Contract,\"-\",2),\"0000\"),\n_xlfn.CONCAT(_xlpm.Yr,\"-\",_xlpm.CleanProgram,\"-\",_xlpm.Number))\n),\"\")","v":""},{"$f":"IFERROR(IF(A319=\"\",\"\",\n_xlfn.LET(_xlpm.Contract,'1. Checklist & Certification'!$C$8,\n_xlpm.Yr,TEXT(MOD(_xlfn.TEXTBEFORE(_xlpm.Contract,\"-\"),100),\"00\"),\n_xlpm.Program,_xlfn.TEXTAFTER(_xlfn.TEXTBEFORE(_xlpm.Contract,\"-\",2),\"-\"),\n_xlpm.CleanProgram,_xlfn.XLOOKUP(_xlpm.Program,SpellCheck[Input],SpellCheck[Correction],_xlpm.Program),\n_xlpm.Number,TEXT(_xlfn.TEXTAFTER(_xlpm.Contract,\"-\",2),\"0000\"),\n_xlfn.CONCAT(_xlpm.Yr,\"-\",_xlpm.CleanProgram,\"-\",_xlpm.Number))\n),\"\")","v":""},{"$f":"IFERROR(IF(A319=\"\",\"\",\n_xlfn.LET(_xlpm.Contract,'1. Checklist & Certification'!$F$7,\n_xlpm.Yr,TEXT(MOD(_xlfn.TEXTBEFORE(_xlpm.Contract,\"-\"),100),\"00\"),\n_xlpm.Program,_xlfn.TEXTAFTER(_xlfn.TEXTBEFORE(_xlpm.Contract,\"-\",2),\"-\"),\n_xlpm.CleanProgram,_xlfn.XLOOKUP(_xlpm.Program,SpellCheck[Input],SpellCheck[Correction],_xlpm.Program),\n_xlpm.Number,TEXT(_xlfn.TEXTAFTER(_xlpm.Contract,\"-\",2),\"0000\"),\n_xlfn.CONCAT(_xlpm.Yr,\"-\",_xlpm.CleanProgram,\"-\",_xlpm.Number))\n),\"\")","v":""},{"$f":"IFERROR(IF(A319=\"\",\"\",\n_xlfn.LET(_xlpm.Contract,'1. Checklist & Certification'!$F$8,\n_xlpm.Yr,TEXT(MOD(_xlfn.TEXTBEFORE(_xlpm.Contract,\"-\"),100),\"00\"),\n_xlpm.Program,_xlfn.TEXTAFTER(_xlfn.TEXTBEFORE(_xlpm.Contract,\"-\",2),\"-\"),\n_xlpm.CleanProgram,_xlfn.XLOOKUP(_xlpm.Program,SpellCheck[Input],SpellCheck[Correction],_xlpm.Program),\n_xlpm.Number,TEXT(_xlfn.TEXTAFTER(_xlpm.Contract,\"-\",2),\"0000\"),\n_xlfn.CONCAT(_xlpm.Yr,\"-\",_xlpm.CleanProgram,\"-\",_xlpm.Number))\n),\"\")","v":""},{"$f":"IF(A319=\"\",\"\",'1. Checklist & Certification'!$B$9)","v":""},{"$f":"IF(A319=\"\",\"\",'1. Checklist & Certification'!$F$9)","v":""},{"$f":"IF(A319=\"\",\"\",'1. Checklist & Certification'!$C$10)","v":""},{"$f":"IF(A319=\"\",\"\",'1. Checklist & Certification'!$C$11)","v":""},{"$f":"IF(A319=\"\",\"\",'1. Checklist & Certification'!$C$12)","v":""},{"$f":"IF(A319=\"\",\"\",'1. Checklist & Certification'!$B$14)","v":""},{"$f":"IF(A319=\"\",\"\",'1. Checklist & Certification'!$E$14)","v":""},{"$f":"IF(B319=\"\",\"\",'1. Checklist & Certification'!$G$14)","v":""},{"$f":"IF(A319=\"\",\"\",'MHP Family Income & Rent Limits'!$B$3)","v":""},{"$f":"IF(A319=\"\",\"\",'MHP Family Income & Rent Limits'!$J$3)","v":""},{"$f":"IF(A319=\"\",\"\",'MHP Family Income & Rent Limits'!$E$4)","v":""},{"$f":"IF(A319=\"\",\"\",'MHP Family Income & Rent Limits'!$C$7)","v":""},{"$f":"IF(A319=\"\",\"\",'MHP Family Income & Rent Limits'!$F$8)","v":""},{"$f":"IF(A319=\"\",\"\",'1. Checklist & Certification'!$G$4)","v":""},{"$f":"IF(A319=\"\",\"\",'1. Checklist & Certification'!$K$39)","v":""},{"$f":"IF(A319=\"\",\"\",'1. Checklist & Certification'!$K$43)","v":""},{"$f":"IF(A319=\"\",\"\",'1. Checklist & Certification'!$K$45)","v":""},{"$f":"IF(A319=\"\",\"\",'1. Checklist & Certification'!$K$49)","v":""},{"$f":"IF(A319=\"\",\"\",'1. Checklist & Certification'!$K$62)","v":""},{"$f":"IF(A319=\"\",\"\",'1. Checklist & Certification'!$E$66)","v":""},{"$f":"IF(A319=\"\",\"\",'1. Checklist & Certification'!$E$67)","v":""},{"$f":"IF(A319=\"\",\"\",'1. Checklist & Certification'!$E$68)","v":""},{"$f":"IF(A319=\"\",\"\",'1. Checklist & Certification'!$G$66)","v":""},{"$f":"IF(A319=\"\",\"\",'1. Checklist & Certification'!$H$66)","v":""},{"$f":"IF(A319=\"\",\"\",'1. Checklist & Certification'!$I$66)","v":""},{"$f":"IF(A319=\"\",\"\",'1. Checklist & Certification'!$I$67)","v":""},{"$f":"IF(A319=\"\",\"\",'1. Checklist & Certification'!$I$68)","v":""},{"$f":"IF(A319=\"\",\"\",'1. Checklist & Certification'!$B$69)","v":""},{"$f":"IF(A319=\"\",\"\",'1. Checklist & Certification'!$C$69)","v":""},{"$f":"IF(A319=\"\",\"\",'1. Checklist & Certification'!$F$69)","v":""},{"$f":"IF(A319=\"\",\"\",'1. Checklist & Certification'!$G$69)","v":""},{"$f":"IF(A319=\"\",\"\",'1. Checklist & Certification'!$J$69)","v":""},{"$f":"IF(A319=\"\",\"\",'1. Checklist & Certification'!$K$69)","v":""},null,null,{"$f":"IF(AND(OR('1. Checklist & Certification'!$M$16=1,'1. Checklist & Certification'!$M$19=2),AO319>0,B319=\"\",I319>0,AQ319<I319,AV319<>\"Sec 8-Project\"),\"X\",IF(AND(OR('1. Checklist & Certification'!$M$20=4,'1. Checklist & Certification'!$M$21=5,'1. Checklist & Certification'!$M$22=7),AO319>0,B319=\"\",I319>0,K319<I319),\"X\",\"\"))","v":""},{"$f":"IF(A319=\"\",\"\",IF(SUMPRODUCT(-- (ISNUMBER(SEARCH({\"*AHSC*\",\"*FMTW*\",\"*FWHG*\",\"*GHI*\",\"*HHC*\",\"*HLCP*\",\"*HOME*\",\"*LPR*\",\"*MHP*\",\"*NHTF*\",\"*NSP*\",\"*PRP*\",\"*TOD*\",\"*VHHP*\"},'1. Checklist & Certification'!$L$7)))),\"MHP\",\"Legacy\"))","v":""},",,",null,null,null,{"$f":"IF('1. Checklist & Certification'!$M$20=4,\"Both\",IF(OR('1. Checklist & Certification'!$M$15>0,S319=\"CHRP-R\",U319=\"CHRP-R\",W319=\"CHRP-R\",Y319=\"CHRP-R\"),\"Under\",\"No\"))","v":"No"},"No","No",{"$f":"_xlfn.IFS(D319=\"\",\"\",D319=1,'MHP Family Income & Rent Limits'!$E$17,D319=2,'MHP Family Income & Rent Limits'!$F$17,D319=3,'MHP Family Income & Rent Limits'!$G$17,D319=4,'MHP Family Income & Rent Limits'!$H$17,D319=5,'MHP Family Income & Rent Limits'!$I$17,D319=6,'MHP Family Income & Rent Limits'!$J$17,D319=7,'MHP Family Income & Rent Limits'!$K$17,D319=8,'MHP Family Income & Rent Limits'!$L$17)","v":""},"",{"$f":"IF(OR(A319=0,B319=\"X\"),0,MIN(IF(AA319:AD319<>0,AA319:AD319)))","v":0},{"$f":"IF(OR(H319=\"\",I319=\"\"),0,IF(H319*0.3/12>I319,MIN(H319*0.3/12,I319*1.1)+AP319,I319*(1+(VLOOKUP('1. Checklist & Certification'!$F$9,'HLCP-E Rent Change'!$A$1:$D$59,4,FALSE)))+AP319))","v":0}]
[null,null,null,null,null,null,null,null,null,null,null,null,null,null,null,null,null,null,null,null,null,null,null,null,null,null,0,0,0,0,0,0,0,0,{"$f":"IF(OR(A320=0,B320=\"X\"),0,IF(OR(S320=\"FHDP\",S320=\"RHCP-B\",U320=\"FHDP\",U320=\"RHCP-B\",W320=\"FHDP\",W320=\"RHCP-B\",Y320=\"FHDP\",Y320=\"RHCP-B\"),TRUNC((MIN(I320,K320)*(1+'1. Checklist & Certification'!$K$43)+AP320)),0))","v":0},{"$f":"IF(OR(A320=0,B320=\"X\"),0,IF(OR(S320=\"CHRP-R\",S320=\"SERA\",S320=\"SUHRP\",U320=\"CHRP-R\",U320=\"SERA\",U320=\"SUHRP\",W320=\"CHRP-R\",W320=\"SERA\",W320=\"SUHRP\",Y320=\"CHRP-R\",Y320=\"SERA\",Y320=\"SUHRP\"),TRUNC((MIN(I320,K320)*(1+'1. Checklist & Certification'!$K$49))),0))","v":0},{"$f":"IF(OR(A320=0,B320=\"X\"),0,IF(OR(S320=\"CALDAP\",S320=\"DPRLP\",U320=\"CALDAP\",U320=\"DPRLP\",W320=\"CALDAP\",W320=\"DPRLP\",Y320=\"CALDAP\",Y320=\"DPRLP\"),TRUNC(((MIN(I320,K320))*(1+'1. Checklist & Certification'!$G$4))),0))","v":0},0,0,0,{"$f":"IF(OR(A320=0,B320=\"X\"),0,IF(OR(S320=\"PRP\",S320=\"LPR\",U320=\"PRP\",U320=\"LPR\",W320=\"PRP\",W320=\"LPR\",Y320=\"PRP\",Y320=\"LPR\"),MAX(I320+AP320,MIN(IF(AE320:AN320<>0,AE320:AN320))),MIN(IF(AE320:AN320<>0,AE320:AN320))))","v":0},{"$f":"IF(A320=0,0,IF(AND(OR(S320=\"Mgr\",S320=0),OR(U320=\"Mgr\",U320=0),OR(W320=\"Mgr\",W320=0)),0,IF(LEFT($A320,2)=\"B*\",VLOOKUP($E320,'1. Checklist & Certification'!$D$26:$E$32,2),IF(LEFT($A320,2)=\"C*\",VLOOKUP($E320,'1. Checklist & Certification'!$F$26:$G$32,2),IF(LEFT($A320,2)=\"D*\",VLOOKUP($E320,'1. Checklist & Certification'!$H$26:$I$32,2),IF(LEFT($A320,2)=\"E*\",VLOOKUP($E320,'1. Checklist & Certification'!$J$26:$K$32,2),VLOOKUP($E320,'1. Checklist & Certification'!$A$26:$B$32,2)))))))","v":0},0,0,null,null,null,null,"","",0,0,0,null,{"$f":"IF(A320=\"\",\"\",'1. Checklist & Certification'!$K$1)","v":""},{"$f":"IF(A320=\"\",\"\",'1. Checklist & Certification'!$C$62)","v":""},{"$f":"IF(A320=\"\",\"\",'1. Checklist & Certification'!$C$6)","v":""},{"$f":"IF(A320=\"\",\"\",'1. Checklist & Certification'!$G$5)","v":""},{"$f":"IFERROR(IF(A320=\"\",\"\",\n_xlfn.LET(_xlpm.Contract,'1. Checklist & Certification'!$C$7,\n_xlpm.Yr,TEXT(MOD(_xlfn.TEXTBEFORE(_xlpm.Contract,\"-\"),100),\"00\"),\n_xlpm.Program,_xlfn.TEXTAFTER(_xlfn.TEXTBEFORE(_xlpm.Contract,\"-\",2),\"-\"),\n_xlpm.CleanProgram,_xlfn.XLOOKUP(_xlpm.Program,SpellCheck[Input],SpellCheck[Correction],_xlpm.Program),\n_xlpm.Number,TEXT(_xlfn.TEXTAFTER(_xlpm.Contract,\"-\",2),\"0000\"),\n_xlfn.CONCAT(_xlpm.Yr,\"-\",_xlpm.CleanProgram,\"-\",_xlpm.Number))\n),\"\")","v":""},{"$f":"IFERROR(IF(A320=\"\",\"\",\n_xlfn.LET(_xlpm.Contract,'1. Checklist & Certification'!$C$8,\n_xlpm.Yr,TEXT(MOD(_xlfn.TEXTBEFORE(_xlpm.Contract,\"-\"),100),\"00\"),\n_xlpm.Program,_xlfn.TEXTAFTER(_xlfn.TEXTBEFORE(_xlpm.Contract,\"-\",2),\"-\"),\n_xlpm.CleanProgram,_xlfn.XLOOKUP(_xlpm.Program,SpellCheck[Input],SpellCheck[Correction],_xlpm.Program),\n_xlpm.Number,TEXT(_xlfn.TEXTAFTER(_xlpm.Contract,\"-\",2),\"0000\"),\n_xlfn.CONCAT(_xlpm.Yr,\"-\",_xlpm.CleanProgram,\"-\",_xlpm.Number))\n),\"\")","v":""},{"$f":"IFERROR(IF(A320=\"\",\"\",\n_xlfn.LET(_xlpm.Contract,'1. Checklist & Certification'!$F$7,\n_xlpm.Yr,TEXT(MOD(_xlfn.TEXTBEFORE(_xlpm.Contract,\"-\"),100),\"00\"),\n_xlpm.Program,_xlfn.TEXTAFTER(_xlfn.TEXTBEFORE(_xlpm.Contract,\"-\",2),\"-\"),\n_xlpm.CleanProgram,_xlfn.XLOOKUP(_xlpm.Program,SpellCheck[Input],SpellCheck[Correction],_xlpm.Program),\n_xlpm.Number,TEXT(_xlfn.TEXTAFTER(_xlpm.Contract,\"-\",2),\"0000\"),\n_xlfn.CONCAT(_xlpm.Yr,\"-\",_xlpm.CleanProgram,\"-\",_xlpm.Number))\n),\"\")","v":""},{"$f":"IFERROR(IF(A320=\"\",\"\",\n_xlfn.LET(_xlpm.Contract,'1. Checklist & Certification'!$F$8,\n_xlpm.Yr,TEXT(MOD(_xlfn.TEXTBEFORE(_xlpm.Contract,\"-\"),100),\"00\"),\n_xlpm.Program,_xlfn.TEXTAFTER(_xlfn.TEXTBEFORE(_xlpm.Contract,\"-\",2),\"-\"),\n_xlpm.CleanProgram,_xlfn.XLOOKUP(_xlpm.Program,SpellCheck[Input],SpellCheck[Correction],_xlpm.Program),\n_xlpm.Number,TEXT(_xlfn.TEXTAFTER(_xlpm.Contract,\"-\",2),\"0000\"),\n_xlfn.CONCAT(_xlpm.Yr,\"-\",_xlpm.CleanProgram,\"-\",_xlpm.Number))\n),\"\")","v":""},{"$f":"IF(A320=\"\",\"\",'1. Checklist & Certification'!$B$9)","v":""},{"$f":"IF(A320=\"\",\"\",'1. Checklist & Certification'!$F$9)","v":""},{"$f":"IF(A320=\"\",\"\",'1. Checklist & Certification'!$C$10)","v":""},{"$f":"IF(A320=\"\",\"\",'1. Checklist & Certification'!$C$11)","v":""},{"$f":"IF(A320=\"\",\"\",'1. Checklist & Certification'!$C$12)","v":""},{"$f":"IF(A320=\"\",\"\",'1. Checklist & Certification'!$B$14)","v":""},{"$f":"IF(A320=\"\",\"\",'1. Checklist & Certification'!$E$14)","v":""},{"$f":"IF(B320=\"\",\"\",'1. Checklist & Certification'!$G$14)","v":""},{"$f":"IF(A320=\"\",\"\",'MHP Family Income & Rent Limits'!$B$3)","v":""},{"$f":"IF(A320=\"\",\"\",'MHP Family Income & Rent Limits'!$J$3)","v":""},{"$f":"IF(A320=\"\",\"\",'MHP Family Income & Rent Limits'!$E$4)","v":""},{"$f":"IF(A320=\"\",\"\",'MHP Family Income & Rent Limits'!$C$7)","v":""},{"$f":"IF(A320=\"\",\"\",'MHP Family Income & Rent Limits'!$F$8)","v":""},{"$f":"IF(A320=\"\",\"\",'1. Checklist & Certification'!$G$4)","v":""},{"$f":"IF(A320=\"\",\"\",'1. Checklist & Certification'!$K$39)","v":""},{"$f":"IF(A320=\"\",\"\",'1. Checklist & Certification'!$K$43)","v":""},{"$f":"IF(A320=\"\",\"\",'1. Checklist & Certification'!$K$45)","v":""},{"$f":"IF(A320=\"\",\"\",'1. Checklist & Certification'!$K$49)","v":""},{"$f":"IF(A320=\"\",\"\",'1. Checklist & Certification'!$K$62)","v":""},{"$f":"IF(A320=\"\",\"\",'1. Checklist & Certification'!$E$66)","v":""},{"$f":"IF(A320=\"\",\"\",'1. Checklist & Certification'!$E$67)","v":""},{"$f":"IF(A320=\"\",\"\",'1. Checklist & Certification'!$E$68)","v":""},{"$f":"IF(A320=\"\",\"\",'1. Checklist & Certification'!$G$66)","v":""},{"$f":"IF(A320=\"\",\"\",'1. Checklist & Certification'!$H$66)","v":""},{"$f":"IF(A320=\"\",\"\",'1. Checklist & Certification'!$I$66)","v":""},{"$f":"IF(A320=\"\",\"\",'1. Checklist & Certification'!$I$67)","v":""},{"$f":"IF(A320=\"\",\"\",'1. Checklist & Certification'!$I$68)","v":""},{"$f":"IF(A320=\"\",\"\",'1. Checklist & Certification'!$B$69)","v":""},{"$f":"IF(A320=\"\",\"\",'1. Checklist & Certification'!$C$69)","v":""},{"$f":"IF(A320=\"\",\"\",'1. Checklist & Certification'!$F$69)","v":""},{"$f":"IF(A320=\"\",\"\",'1. Checklist & Certification'!$G$69)","v":""},{"$f":"IF(A320=\"\",\"\",'1. Checklist & Certification'!$J$69)","v":""},{"$f":"IF(A320=\"\",\"\",'1. Checklist & Certification'!$K$69)","v":""},null,null,{"$f":"IF(AND(OR('1. Checklist & Certification'!$M$16=1,'1. Checklist & Certification'!$M$19=2),AO320>0,B320=\"\",I320>0,AQ320<I320,AV320<>\"Sec 8-Project\"),\"X\",IF(AND(OR('1. Checklist & Certification'!$M$20=4,'1. Checklist & Certification'!$M$21=5,'1. Checklist & Certification'!$M$22=7),AO320>0,B320=\"\",I320>0,K320<I320),\"X\",\"\"))","v":""},{"$f":"IF(A320=\"\",\"\",IF(SUMPRODUCT(-- (ISNUMBER(SEARCH({\"*AHSC*\",\"*FMTW*\",\"*FWHG*\",\"*GHI*\",\"*HHC*\",\"*HLCP*\",\"*HOME*\",\"*LPR*\",\"*MHP*\",\"*NHTF*\",\"*NSP*\",\"*PRP*\",\"*TOD*\",\"*VHHP*\"},'1. Checklist & Certification'!$L$7)))),\"MHP\",\"Legacy\"))","v":""},",,",null,null,null,{"$f":"IF('1. Checklist & Certification'!$M$20=4,\"Both\",IF(OR('1. Checklist & Certification'!$M$15>0,S320=\"CHRP-R\",U320=\"CHRP-R\",W320=\"CHRP-R\",Y320=\"CHRP-R\"),\"Under\",\"No\"))","v":"No"},"No","No",{"$f":"_xlfn.IFS(D320=\"\",\"\",D320=1,'MHP Family Income & Rent Limits'!$E$17,D320=2,'MHP Family Income & Rent Limits'!$F$17,D320=3,'MHP Family Income & Rent Limits'!$G$17,D320=4,'MHP Family Income & Rent Limits'!$H$17,D320=5,'MHP Family Income & Rent Limits'!$I$17,D320=6,'MHP Family Income & Rent Limits'!$J$17,D320=7,'MHP Family Income & Rent Limits'!$K$17,D320=8,'MHP Family Income & Rent Limits'!$L$17)","v":""},"",{"$f":"IF(OR(A320=0,B320=\"X\"),0,MIN(IF(AA320:AD320<>0,AA320:AD320)))","v":0},{"$f":"IF(OR(H320=\"\",I320=\"\"),0,IF(H320*0.3/12>I320,MIN(H320*0.3/12,I320*1.1)+AP320,I320*(1+(VLOOKUP('1. Checklist & Certification'!$F$9,'HLCP-E Rent Change'!$A$1:$D$59,4,FALSE)))+AP320))","v":0}]
[null,null,null,null,null,null,null,null,null,null,null,null,null,null,null,null,null,null,null,null,null,null,null,null,null,null,0,0,0,0,0,0,0,0,{"$f":"IF(OR(A321=0,B321=\"X\"),0,IF(OR(S321=\"FHDP\",S321=\"RHCP-B\",U321=\"FHDP\",U321=\"RHCP-B\",W321=\"FHDP\",W321=\"RHCP-B\",Y321=\"FHDP\",Y321=\"RHCP-B\"),TRUNC((MIN(I321,K321)*(1+'1. Checklist & Certification'!$K$43)+AP321)),0))","v":0},{"$f":"IF(OR(A321=0,B321=\"X\"),0,IF(OR(S321=\"CHRP-R\",S321=\"SERA\",S321=\"SUHRP\",U321=\"CHRP-R\",U321=\"SERA\",U321=\"SUHRP\",W321=\"CHRP-R\",W321=\"SERA\",W321=\"SUHRP\",Y321=\"CHRP-R\",Y321=\"SERA\",Y321=\"SUHRP\"),TRUNC((MIN(I321,K321)*(1+'1. Checklist & Certification'!$K$49))),0))","v":0},{"$f":"IF(OR(A321=0,B321=\"X\"),0,IF(OR(S321=\"CALDAP\",S321=\"DPRLP\",U321=\"CALDAP\",U321=\"DPRLP\",W321=\"CALDAP\",W321=\"DPRLP\",Y321=\"CALDAP\",Y321=\"DPRLP\"),TRUNC(((MIN(I321,K321))*(1+'1. Checklist & Certification'!$G$4))),0))","v":0},0,0,0,{"$f":"IF(OR(A321=0,B321=\"X\"),0,IF(OR(S321=\"PRP\",S321=\"LPR\",U321=\"PRP\",U321=\"LPR\",W321=\"PRP\",W321=\"LPR\",Y321=\"PRP\",Y321=\"LPR\"),MAX(I321+AP321,MIN(IF(AE321:AN321<>0,AE321:AN321))),MIN(IF(AE321:AN321<>0,AE321:AN321))))","v":0},{"$f":"IF(A321=0,0,IF(AND(OR(S321=\"Mgr\",S321=0),OR(U321=\"Mgr\",U321=0),OR(W321=\"Mgr\",W321=0)),0,IF(LEFT($A321,2)=\"B*\",VLOOKUP($E321,'1. Checklist & Certification'!$D$26:$E$32,2),IF(LEFT($A321,2)=\"C*\",VLOOKUP($E321,'1. Checklist & Certification'!$F$26:$G$32,2),IF(LEFT($A321,2)=\"D*\",VLOOKUP($E321,'1. Checklist & Certification'!$H$26:$I$32,2),IF(LEFT($A321,2)=\"E*\",VLOOKUP($E321,'1. Checklist & Certification'!$J$26:$K$32,2),VLOOKUP($E321,'1. Checklist & Certification'!$A$26:$B$32,2)))))))","v":0},0,0,null,null,null,null,"","",0,0,0,null,{"$f":"IF(A321=\"\",\"\",'1. Checklist & Certification'!$K$1)","v":""},{"$f":"IF(A321=\"\",\"\",'1. Checklist & Certification'!$C$62)","v":""},{"$f":"IF(A321=\"\",\"\",'1. Checklist & Certification'!$C$6)","v":""},{"$f":"IF(A321=\"\",\"\",'1. Checklist & Certification'!$G$5)","v":""},{"$f":"IFERROR(IF(A321=\"\",\"\",\n_xlfn.LET(_xlpm.Contract,'1. Checklist & Certification'!$C$7,\n_xlpm.Yr,TEXT(MOD(_xlfn.TEXTBEFORE(_xlpm.Contract,\"-\"),100),\"00\"),\n_xlpm.Program,_xlfn.TEXTAFTER(_xlfn.TEXTBEFORE(_xlpm.Contract,\"-\",2),\"-\"),\n_xlpm.CleanProgram,_xlfn.XLOOKUP(_xlpm.Program,SpellCheck[Input],SpellCheck[Correction],_xlpm.Program),\n_xlpm.Number,TEXT(_xlfn.TEXTAFTER(_xlpm.Contract,\"-\",2),\"0000\"),\n_xlfn.CONCAT(_xlpm.Yr,\"-\",_xlpm.CleanProgram,\"-\",_xlpm.Number))\n),\"\")","v":""},{"$f":"IFERROR(IF(A321=\"\",\"\",\n_xlfn.LET(_xlpm.Contract,'1. Checklist & Certification'!$C$8,\n_xlpm.Yr,TEXT(MOD(_xlfn.TEXTBEFORE(_xlpm.Contract,\"-\"),100),\"00\"),\n_xlpm.Program,_xlfn.TEXTAFTER(_xlfn.TEXTBEFORE(_xlpm.Contract,\"-\",2),\"-\"),\n_xlpm.CleanProgram,_xlfn.XLOOKUP(_xlpm.Program,SpellCheck[Input],SpellCheck[Correction],_xlpm.Program),\n_xlpm.Number,TEXT(_xlfn.TEXTAFTER(_xlpm.Contract,\"-\",2),\"0000\"),\n_xlfn.CONCAT(_xlpm.Yr,\"-\",_xlpm.CleanProgram,\"-\",_xlpm.Number))\n),\"\")","v":""},{"$f":"IFERROR(IF(A321=\"\",\"\",\n_xlfn.LET(_xlpm.Contract,'1. Checklist & Certification'!$F$7,\n_xlpm.Yr,TEXT(MOD(_xlfn.TEXTBEFORE(_xlpm.Contract,\"-\"),100),\"00\"),\n_xlpm.Program,_xlfn.TEXTAFTER(_xlfn.TEXTBEFORE(_xlpm.Contract,\"-\",2),\"-\"),\n_xlpm.CleanProgram,_xlfn.XLOOKUP(_xlpm.Program,SpellCheck[Input],SpellCheck[Correction],_xlpm.Program),\n_xlpm.Number,TEXT(_xlfn.TEXTAFTER(_xlpm.Contract,\"-\",2),\"0000\"),\n_xlfn.CONCAT(_xlpm.Yr,\"-\",_xlpm.CleanProgram,\"-\",_xlpm.Number))\n),\"\")","v":""},{"$f":"IFERROR(IF(A321=\"\",\"\",\n_xlfn.LET(_xlpm.Contract,'1. Checklist & Certification'!$F$8,\n_xlpm.Yr,TEXT(MOD(_xlfn.TEXTBEFORE(_xlpm.Contract,\"-\"),100),\"00\"),\n_xlpm.Program,_xlfn.TEXTAFTER(_xlfn.TEXTBEFORE(_xlpm.Contract,\"-\",2),\"-\"),\n_xlpm.CleanProgram,_xlfn.XLOOKUP(_xlpm.Program,SpellCheck[Input],SpellCheck[Correction],_xlpm.Program),\n_xlpm.Number,TEXT(_xlfn.TEXTAFTER(_xlpm.Contract,\"-\",2),\"0000\"),\n_xlfn.CONCAT(_xlpm.Yr,\"-\",_xlpm.CleanProgram,\"-\",_xlpm.Number))\n),\"\")","v":""},{"$f":"IF(A321=\"\",\"\",'1. Checklist & Certification'!$B$9)","v":""},{"$f":"IF(A321=\"\",\"\",'1. Checklist & Certification'!$F$9)","v":""},{"$f":"IF(A321=\"\",\"\",'1. Checklist & Certification'!$C$10)","v":""},{"$f":"IF(A321=\"\",\"\",'1. Checklist & Certification'!$C$11)","v":""},{"$f":"IF(A321=\"\",\"\",'1. Checklist & Certification'!$C$12)","v":""},{"$f":"IF(A321=\"\",\"\",'1. Checklist & Certification'!$B$14)","v":""},{"$f":"IF(A321=\"\",\"\",'1. Checklist & Certification'!$E$14)","v":""},{"$f":"IF(B321=\"\",\"\",'1. Checklist & Certification'!$G$14)","v":""},{"$f":"IF(A321=\"\",\"\",'MHP Family Income & Rent Limits'!$B$3)","v":""},{"$f":"IF(A321=\"\",\"\",'MHP Family Income & Rent Limits'!$J$3)","v":""},{"$f":"IF(A321=\"\",\"\",'MHP Family Income & Rent Limits'!$E$4)","v":""},{"$f":"IF(A321=\"\",\"\",'MHP Family Income & Rent Limits'!$C$7)","v":""},{"$f":"IF(A321=\"\",\"\",'MHP Family Income & Rent Limits'!$F$8)","v":""},{"$f":"IF(A321=\"\",\"\",'1. Checklist & Certification'!$G$4)","v":""},{"$f":"IF(A321=\"\",\"\",'1. Checklist & Certification'!$K$39)","v":""},{"$f":"IF(A321=\"\",\"\",'1. Checklist & Certification'!$K$43)","v":""},{"$f":"IF(A321=\"\",\"\",'1. Checklist & Certification'!$K$45)","v":""},{"$f":"IF(A321=\"\",\"\",'1. Checklist & Certification'!$K$49)","v":""},{"$f":"IF(A321=\"\",\"\",'1. Checklist & Certification'!$K$62)","v":""},{"$f":"IF(A321=\"\",\"\",'1. Checklist & Certification'!$E$66)","v":""},{"$f":"IF(A321=\"\",\"\",'1. Checklist & Certification'!$E$67)","v":""},{"$f":"IF(A321=\"\",\"\",'1. Checklist & Certification'!$E$68)","v":""},{"$f":"IF(A321=\"\",\"\",'1. Checklist & Certification'!$G$66)","v":""},{"$f":"IF(A321=\"\",\"\",'1. Checklist & Certification'!$H$66)","v":""},{"$f":"IF(A321=\"\",\"\",'1. Checklist & Certification'!$I$66)","v":""},{"$f":"IF(A321=\"\",\"\",'1. Checklist & Certification'!$I$67)","v":""},{"$f":"IF(A321=\"\",\"\",'1. Checklist & Certification'!$I$68)","v":""},{"$f":"IF(A321=\"\",\"\",'1. Checklist & Certification'!$B$69)","v":""},{"$f":"IF(A321=\"\",\"\",'1. Checklist & Certification'!$C$69)","v":""},{"$f":"IF(A321=\"\",\"\",'1. Checklist & Certification'!$F$69)","v":""},{"$f":"IF(A321=\"\",\"\",'1. Checklist & Certification'!$G$69)","v":""},{"$f":"IF(A321=\"\",\"\",'1. Checklist & Certification'!$J$69)","v":""},{"$f":"IF(A321=\"\",\"\",'1. Checklist & Certification'!$K$69)","v":""},null,null,{"$f":"IF(AND(OR('1. Checklist & Certification'!$M$16=1,'1. Checklist & Certification'!$M$19=2),AO321>0,B321=\"\",I321>0,AQ321<I321,AV321<>\"Sec 8-Project\"),\"X\",IF(AND(OR('1. Checklist & Certification'!$M$20=4,'1. Checklist & Certification'!$M$21=5,'1. Checklist & Certification'!$M$22=7),AO321>0,B321=\"\",I321>0,K321<I321),\"X\",\"\"))","v":""},{"$f":"IF(A321=\"\",\"\",IF(SUMPRODUCT(-- (ISNUMBER(SEARCH({\"*AHSC*\",\"*FMTW*\",\"*FWHG*\",\"*GHI*\",\"*HHC*\",\"*HLCP*\",\"*HOME*\",\"*LPR*\",\"*MHP*\",\"*NHTF*\",\"*NSP*\",\"*PRP*\",\"*TOD*\",\"*VHHP*\"},'1. Checklist & Certification'!$L$7)))),\"MHP\",\"Legacy\"))","v":""},",,",null,null,null,{"$f":"IF('1. Checklist & Certification'!$M$20=4,\"Both\",IF(OR('1. Checklist & Certification'!$M$15>0,S321=\"CHRP-R\",U321=\"CHRP-R\",W321=\"CHRP-R\",Y321=\"CHRP-R\"),\"Under\",\"No\"))","v":"No"},"No","No",{"$f":"_xlfn.IFS(D321=\"\",\"\",D321=1,'MHP Family Income & Rent Limits'!$E$17,D321=2,'MHP Family Income & Rent Limits'!$F$17,D321=3,'MHP Family Income & Rent Limits'!$G$17,D321=4,'MHP Family Income & Rent Limits'!$H$17,D321=5,'MHP Family Income & Rent Limits'!$I$17,D321=6,'MHP Family Income & Rent Limits'!$J$17,D321=7,'MHP Family Income & Rent Limits'!$K$17,D321=8,'MHP Family Income & Rent Limits'!$L$17)","v":""},"",{"$f":"IF(OR(A321=0,B321=\"X\"),0,MIN(IF(AA321:AD321<>0,AA321:AD321)))","v":0},{"$f":"IF(OR(H321=\"\",I321=\"\"),0,IF(H321*0.3/12>I321,MIN(H321*0.3/12,I321*1.1)+AP321,I321*(1+(VLOOKUP('1. Checklist & Certification'!$F$9,'HLCP-E Rent Change'!$A$1:$D$59,4,FALSE)))+AP321))","v":0}]
[null,null,null,null,null,null,null,null,null,null,null,null,null,null,null,null,null,null,null,null,null,null,null,null,null,null,0,0,0,0,0,0,0,0,{"$f":"IF(OR(A322=0,B322=\"X\"),0,IF(OR(S322=\"FHDP\",S322=\"RHCP-B\",U322=\"FHDP\",U322=\"RHCP-B\",W322=\"FHDP\",W322=\"RHCP-B\",Y322=\"FHDP\",Y322=\"RHCP-B\"),TRUNC((MIN(I322,K322)*(1+'1. Checklist & Certification'!$K$43)+AP322)),0))","v":0},{"$f":"IF(OR(A322=0,B322=\"X\"),0,IF(OR(S322=\"CHRP-R\",S322=\"SERA\",S322=\"SUHRP\",U322=\"CHRP-R\",U322=\"SERA\",U322=\"SUHRP\",W322=\"CHRP-R\",W322=\"SERA\",W322=\"SUHRP\",Y322=\"CHRP-R\",Y322=\"SERA\",Y322=\"SUHRP\"),TRUNC((MIN(I322,K322)*(1+'1. Checklist & Certification'!$K$49))),0))","v":0},{"$f":"IF(OR(A322=0,B322=\"X\"),0,IF(OR(S322=\"CALDAP\",S322=\"DPRLP\",U322=\"CALDAP\",U322=\"DPRLP\",W322=\"CALDAP\",W322=\"DPRLP\",Y322=\"CALDAP\",Y322=\"DPRLP\"),TRUNC(((MIN(I322,K322))*(1+'1. Checklist & Certification'!$G$4))),0))","v":0},0,0,0,{"$f":"IF(OR(A322=0,B322=\"X\"),0,IF(OR(S322=\"PRP\",S322=\"LPR\",U322=\"PRP\",U322=\"LPR\",W322=\"PRP\",W322=\"LPR\",Y322=\"PRP\",Y322=\"LPR\"),MAX(I322+AP322,MIN(IF(AE322:AN322<>0,AE322:AN322))),MIN(IF(AE322:AN322<>0,AE322:AN322))))","v":0},{"$f":"IF(A322=0,0,IF(AND(OR(S322=\"Mgr\",S322=0),OR(U322=\"Mgr\",U322=0),OR(W322=\"Mgr\",W322=0)),0,IF(LEFT($A322,2)=\"B*\",VLOOKUP($E322,'1. Checklist & Certification'!$D$26:$E$32,2),IF(LEFT($A322,2)=\"C*\",VLOOKUP($E322,'1. Checklist & Certification'!$F$26:$G$32,2),IF(LEFT($A322,2)=\"D*\",VLOOKUP($E322,'1. Checklist & Certification'!$H$26:$I$32,2),IF(LEFT($A322,2)=\"E*\",VLOOKUP($E322,'1. Checklist & Certification'!$J$26:$K$32,2),VLOOKUP($E322,'1. Checklist & Certification'!$A$26:$B$32,2)))))))","v":0},0,0,null,null,null,null,"","",0,0,0,null,{"$f":"IF(A322=\"\",\"\",'1. Checklist & Certification'!$K$1)","v":""},{"$f":"IF(A322=\"\",\"\",'1. Checklist & Certification'!$C$62)","v":""},{"$f":"IF(A322=\"\",\"\",'1. Checklist & Certification'!$C$6)","v":""},{"$f":"IF(A322=\"\",\"\",'1. Checklist & Certification'!$G$5)","v":""},{"$f":"IFERROR(IF(A322=\"\",\"\",\n_xlfn.LET(_xlpm.Contract,'1. Checklist & Certification'!$C$7,\n_xlpm.Yr,TEXT(MOD(_xlfn.TEXTBEFORE(_xlpm.Contract,\"-\"),100),\"00\"),\n_xlpm.Program,_xlfn.TEXTAFTER(_xlfn.TEXTBEFORE(_xlpm.Contract,\"-\",2),\"-\"),\n_xlpm.CleanProgram,_xlfn.XLOOKUP(_xlpm.Program,SpellCheck[Input],SpellCheck[Correction],_xlpm.Program),\n_xlpm.Number,TEXT(_xlfn.TEXTAFTER(_xlpm.Contract,\"-\",2),\"0000\"),\n_xlfn.CONCAT(_xlpm.Yr,\"-\",_xlpm.CleanProgram,\"-\",_xlpm.Number))\n),\"\")","v":""},{"$f":"IFERROR(IF(A322=\"\",\"\",\n_xlfn.LET(_xlpm.Contract,'1. Checklist & Certification'!$C$8,\n_xlpm.Yr,TEXT(MOD(_xlfn.TEXTBEFORE(_xlpm.Contract,\"-\"),100),\"00\"),\n_xlpm.Program,_xlfn.TEXTAFTER(_xlfn.TEXTBEFORE(_xlpm.Contract,\"-\",2),\"-\"),\n_xlpm.CleanProgram,_xlfn.XLOOKUP(_xlpm.Program,SpellCheck[Input],SpellCheck[Correction],_xlpm.Program),\n_xlpm.Number,TEXT(_xlfn.TEXTAFTER(_xlpm.Contract,\"-\",2),\"0000\"),\n_xlfn.CONCAT(_xlpm.Yr,\"-\",_xlpm.CleanProgram,\"-\",_xlpm.Number))\n),\"\")","v":""},{"$f":"IFERROR(IF(A322=\"\",\"\",\n_xlfn.LET(_xlpm.Contract,'1. Checklist & Certification'!$F$7,\n_xlpm.Yr,TEXT(MOD(_xlfn.TEXTBEFORE(_xlpm.Contract,\"-\"),100),\"00\"),\n_xlpm.Program,_xlfn.TEXTAFTER(_xlfn.TEXTBEFORE(_xlpm.Contract,\"-\",2),\"-\"),\n_xlpm.CleanProgram,_xlfn.XLOOKUP(_xlpm.Program,SpellCheck[Input],SpellCheck[Correction],_xlpm.Program),\n_xlpm.Number,TEXT(_xlfn.TEXTAFTER(_xlpm.Contract,\"-\",2),\"0000\"),\n_xlfn.CONCAT(_xlpm.Yr,\"-\",_xlpm.CleanProgram,\"-\",_xlpm.Number))\n),\"\")","v":""},{"$f":"IFERROR(IF(A322=\"\",\"\",\n_xlfn.LET(_xlpm.Contract,'1. Checklist & Certification'!$F$8,\n_xlpm.Yr,TEXT(MOD(_xlfn.TEXTBEFORE(_xlpm.Contract,\"-\"),100),\"00\"),\n_xlpm.Program,_xlfn.TEXTAFTER(_xlfn.TEXTBEFORE(_xlpm.Contract,\"-\",2),\"-\"),\n_xlpm.CleanProgram,_xlfn.XLOOKUP(_xlpm.Program,SpellCheck[Input],SpellCheck[Correction],_xlpm.Program),\n_xlpm.Number,TEXT(_xlfn.TEXTAFTER(_xlpm.Contract,\"-\",2),\"0000\"),\n_xlfn.CONCAT(_xlpm.Yr,\"-\",_xlpm.CleanProgram,\"-\",_xlpm.Number))\n),\"\")","v":""},{"$f":"IF(A322=\"\",\"\",'1. Checklist & Certification'!$B$9)","v":""},{"$f":"IF(A322=\"\",\"\",'1. Checklist & Certification'!$F$9)","v":""},{"$f":"IF(A322=\"\",\"\",'1. Checklist & Certification'!$C$10)","v":""},{"$f":"IF(A322=\"\",\"\",'1. Checklist & Certification'!$C$11)","v":""},{"$f":"IF(A322=\"\",\"\",'1. Checklist & Certification'!$C$12)","v":""},{"$f":"IF(A322=\"\",\"\",'1. Checklist & Certification'!$B$14)","v":""},{"$f":"IF(A322=\"\",\"\",'1. Checklist & Certification'!$E$14)","v":""},{"$f":"IF(B322=\"\",\"\",'1. Checklist & Certification'!$G$14)","v":""},{"$f":"IF(A322=\"\",\"\",'MHP Family Income & Rent Limits'!$B$3)","v":""},{"$f":"IF(A322=\"\",\"\",'MHP Family Income & Rent Limits'!$J$3)","v":""},{"$f":"IF(A322=\"\",\"\",'MHP Family Income & Rent Limits'!$E$4)","v":""},{"$f":"IF(A322=\"\",\"\",'MHP Family Income & Rent Limits'!$C$7)","v":""},{"$f":"IF(A322=\"\",\"\",'MHP Family Income & Rent Limits'!$F$8)","v":""},{"$f":"IF(A322=\"\",\"\",'1. Checklist & Certification'!$G$4)","v":""},{"$f":"IF(A322=\"\",\"\",'1. Checklist & Certification'!$K$39)","v":""},{"$f":"IF(A322=\"\",\"\",'1. Checklist & Certification'!$K$43)","v":""},{"$f":"IF(A322=\"\",\"\",'1. Checklist & Certification'!$K$45)","v":""},{"$f":"IF(A322=\"\",\"\",'1. Checklist & Certification'!$K$49)","v":""},{"$f":"IF(A322=\"\",\"\",'1. Checklist & Certification'!$K$62)","v":""},{"$f":"IF(A322=\"\",\"\",'1. Checklist & Certification'!$E$66)","v":""},{"$f":"IF(A322=\"\",\"\",'1. Checklist & Certification'!$E$67)","v":""},{"$f":"IF(A322=\"\",\"\",'1. Checklist & Certification'!$E$68)","v":""},{"$f":"IF(A322=\"\",\"\",'1. Checklist & Certification'!$G$66)","v":""},{"$f":"IF(A322=\"\",\"\",'1. Checklist & Certification'!$H$66)","v":""},{"$f":"IF(A322=\"\",\"\",'1. Checklist & Certification'!$I$66)","v":""},{"$f":"IF(A322=\"\",\"\",'1. Checklist & Certification'!$I$67)","v":""},{"$f":"IF(A322=\"\",\"\",'1. Checklist & Certification'!$I$68)","v":""},{"$f":"IF(A322=\"\",\"\",'1. Checklist & Certification'!$B$69)","v":""},{"$f":"IF(A322=\"\",\"\",'1. Checklist & Certification'!$C$69)","v":""},{"$f":"IF(A322=\"\",\"\",'1. Checklist & Certification'!$F$69)","v":""},{"$f":"IF(A322=\"\",\"\",'1. Checklist & Certification'!$G$69)","v":""},{"$f":"IF(A322=\"\",\"\",'1. Checklist & Certification'!$J$69)","v":""},{"$f":"IF(A322=\"\",\"\",'1. Checklist & Certification'!$K$69)","v":""},null,null,{"$f":"IF(AND(OR('1. Checklist & Certification'!$M$16=1,'1. Checklist & Certification'!$M$19=2),AO322>0,B322=\"\",I322>0,AQ322<I322,AV322<>\"Sec 8-Project\"),\"X\",IF(AND(OR('1. Checklist & Certification'!$M$20=4,'1. Checklist & Certification'!$M$21=5,'1. Checklist & Certification'!$M$22=7),AO322>0,B322=\"\",I322>0,K322<I322),\"X\",\"\"))","v":""},{"$f":"IF(A322=\"\",\"\",IF(SUMPRODUCT(-- (ISNUMBER(SEARCH({\"*AHSC*\",\"*FMTW*\",\"*FWHG*\",\"*GHI*\",\"*HHC*\",\"*HLCP*\",\"*HOME*\",\"*LPR*\",\"*MHP*\",\"*NHTF*\",\"*NSP*\",\"*PRP*\",\"*TOD*\",\"*VHHP*\"},'1. Checklist & Certification'!$L$7)))),\"MHP\",\"Legacy\"))","v":""},",,",null,null,null,{"$f":"IF('1. Checklist & Certification'!$M$20=4,\"Both\",IF(OR('1. Checklist & Certification'!$M$15>0,S322=\"CHRP-R\",U322=\"CHRP-R\",W322=\"CHRP-R\",Y322=\"CHRP-R\"),\"Under\",\"No\"))","v":"No"},"No","No",{"$f":"_xlfn.IFS(D322=\"\",\"\",D322=1,'MHP Family Income & Rent Limits'!$E$17,D322=2,'MHP Family Income & Rent Limits'!$F$17,D322=3,'MHP Family Income & Rent Limits'!$G$17,D322=4,'MHP Family Income & Rent Limits'!$H$17,D322=5,'MHP Family Income & Rent Limits'!$I$17,D322=6,'MHP Family Income & Rent Limits'!$J$17,D322=7,'MHP Family Income & Rent Limits'!$K$17,D322=8,'MHP Family Income & Rent Limits'!$L$17)","v":""},"",{"$f":"IF(OR(A322=0,B322=\"X\"),0,MIN(IF(AA322:AD322<>0,AA322:AD322)))","v":0},{"$f":"IF(OR(H322=\"\",I322=\"\"),0,IF(H322*0.3/12>I322,MIN(H322*0.3/12,I322*1.1)+AP322,I322*(1+(VLOOKUP('1. Checklist & Certification'!$F$9,'HLCP-E Rent Change'!$A$1:$D$59,4,FALSE)))+AP322))","v":0}]
[null,null,null,null,null,null,null,null,null,null,null,null,null,null,null,null,null,null,null,null,null,null,null,null,null,null,0,0,0,0,0,0,0,0,{"$f":"IF(OR(A323=0,B323=\"X\"),0,IF(OR(S323=\"FHDP\",S323=\"RHCP-B\",U323=\"FHDP\",U323=\"RHCP-B\",W323=\"FHDP\",W323=\"RHCP-B\",Y323=\"FHDP\",Y323=\"RHCP-B\"),TRUNC((MIN(I323,K323)*(1+'1. Checklist & Certification'!$K$43)+AP323)),0))","v":0},{"$f":"IF(OR(A323=0,B323=\"X\"),0,IF(OR(S323=\"CHRP-R\",S323=\"SERA\",S323=\"SUHRP\",U323=\"CHRP-R\",U323=\"SERA\",U323=\"SUHRP\",W323=\"CHRP-R\",W323=\"SERA\",W323=\"SUHRP\",Y323=\"CHRP-R\",Y323=\"SERA\",Y323=\"SUHRP\"),TRUNC((MIN(I323,K323)*(1+'1. Checklist & Certification'!$K$49))),0))","v":0},{"$f":"IF(OR(A323=0,B323=\"X\"),0,IF(OR(S323=\"CALDAP\",S323=\"DPRLP\",U323=\"CALDAP\",U323=\"DPRLP\",W323=\"CALDAP\",W323=\"DPRLP\",Y323=\"CALDAP\",Y323=\"DPRLP\"),TRUNC(((MIN(I323,K323))*(1+'1. Checklist & Certification'!$G$4))),0))","v":0},0,0,0,{"$f":"IF(OR(A323=0,B323=\"X\"),0,IF(OR(S323=\"PRP\",S323=\"LPR\",U323=\"PRP\",U323=\"LPR\",W323=\"PRP\",W323=\"LPR\",Y323=\"PRP\",Y323=\"LPR\"),MAX(I323+AP323,MIN(IF(AE323:AN323<>0,AE323:AN323))),MIN(IF(AE323:AN323<>0,AE323:AN323))))","v":0},{"$f":"IF(A323=0,0,IF(AND(OR(S323=\"Mgr\",S323=0),OR(U323=\"Mgr\",U323=0),OR(W323=\"Mgr\",W323=0)),0,IF(LEFT($A323,2)=\"B*\",VLOOKUP($E323,'1. Checklist & Certification'!$D$26:$E$32,2),IF(LEFT($A323,2)=\"C*\",VLOOKUP($E323,'1. Checklist & Certification'!$F$26:$G$32,2),IF(LEFT($A323,2)=\"D*\",VLOOKUP($E323,'1. Checklist & Certification'!$H$26:$I$32,2),IF(LEFT($A323,2)=\"E*\",VLOOKUP($E323,'1. Checklist & Certification'!$J$26:$K$32,2),VLOOKUP($E323,'1. Checklist & Certification'!$A$26:$B$32,2)))))))","v":0},0,0,null,null,null,null,"","",0,0,0,null,{"$f":"IF(A323=\"\",\"\",'1. Checklist & Certification'!$K$1)","v":""},{"$f":"IF(A323=\"\",\"\",'1. Checklist & Certification'!$C$62)","v":""},{"$f":"IF(A323=\"\",\"\",'1. Checklist & Certification'!$C$6)","v":""},{"$f":"IF(A323=\"\",\"\",'1. Checklist & Certification'!$G$5)","v":""},{"$f":"IFERROR(IF(A323=\"\",\"\",\n_xlfn.LET(_xlpm.Contract,'1. Checklist & Certification'!$C$7,\n_xlpm.Yr,TEXT(MOD(_xlfn.TEXTBEFORE(_xlpm.Contract,\"-\"),100),\"00\"),\n_xlpm.Program,_xlfn.TEXTAFTER(_xlfn.TEXTBEFORE(_xlpm.Contract,\"-\",2),\"-\"),\n_xlpm.CleanProgram,_xlfn.XLOOKUP(_xlpm.Program,SpellCheck[Input],SpellCheck[Correction],_xlpm.Program),\n_xlpm.Number,TEXT(_xlfn.TEXTAFTER(_xlpm.Contract,\"-\",2),\"0000\"),\n_xlfn.CONCAT(_xlpm.Yr,\"-\",_xlpm.CleanProgram,\"-\",_xlpm.Number))\n),\"\")","v":""},{"$f":"IFERROR(IF(A323=\"\",\"\",\n_xlfn.LET(_xlpm.Contract,'1. Checklist & Certification'!$C$8,\n_xlpm.Yr,TEXT(MOD(_xlfn.TEXTBEFORE(_xlpm.Contract,\"-\"),100),\"00\"),\n_xlpm.Program,_xlfn.TEXTAFTER(_xlfn.TEXTBEFORE(_xlpm.Contract,\"-\",2),\"-\"),\n_xlpm.CleanProgram,_xlfn.XLOOKUP(_xlpm.Program,SpellCheck[Input],SpellCheck[Correction],_xlpm.Program),\n_xlpm.Number,TEXT(_xlfn.TEXTAFTER(_xlpm.Contract,\"-\",2),\"0000\"),\n_xlfn.CONCAT(_xlpm.Yr,\"-\",_xlpm.CleanProgram,\"-\",_xlpm.Number))\n),\"\")","v":""},{"$f":"IFERROR(IF(A323=\"\",\"\",\n_xlfn.LET(_xlpm.Contract,'1. Checklist & Certification'!$F$7,\n_xlpm.Yr,TEXT(MOD(_xlfn.TEXTBEFORE(_xlpm.Contract,\"-\"),100),\"00\"),\n_xlpm.Program,_xlfn.TEXTAFTER(_xlfn.TEXTBEFORE(_xlpm.Contract,\"-\",2),\"-\"),\n_xlpm.CleanProgram,_xlfn.XLOOKUP(_xlpm.Program,SpellCheck[Input],SpellCheck[Correction],_xlpm.Program),\n_xlpm.Number,TEXT(_xlfn.TEXTAFTER(_xlpm.Contract,\"-\",2),\"0000\"),\n_xlfn.CONCAT(_xlpm.Yr,\"-\",_xlpm.CleanProgram,\"-\",_xlpm.Number))\n),\"\")","v":""},{"$f":"IFERROR(IF(A323=\"\",\"\",\n_xlfn.LET(_xlpm.Contract,'1. Checklist & Certification'!$F$8,\n_xlpm.Yr,TEXT(MOD(_xlfn.TEXTBEFORE(_xlpm.Contract,\"-\"),100),\"00\"),\n_xlpm.Program,_xlfn.TEXTAFTER(_xlfn.TEXTBEFORE(_xlpm.Contract,\"-\",2),\"-\"),\n_xlpm.CleanProgram,_xlfn.XLOOKUP(_xlpm.Program,SpellCheck[Input],SpellCheck[Correction],_xlpm.Program),\n_xlpm.Number,TEXT(_xlfn.TEXTAFTER(_xlpm.Contract,\"-\",2),\"0000\"),\n_xlfn.CONCAT(_xlpm.Yr,\"-\",_xlpm.CleanProgram,\"-\",_xlpm.Number))\n),\"\")","v":""},{"$f":"IF(A323=\"\",\"\",'1. Checklist & Certification'!$B$9)","v":""},{"$f":"IF(A323=\"\",\"\",'1. Checklist & Certification'!$F$9)","v":""},{"$f":"IF(A323=\"\",\"\",'1. Checklist & Certification'!$C$10)","v":""},{"$f":"IF(A323=\"\",\"\",'1. Checklist & Certification'!$C$11)","v":""},{"$f":"IF(A323=\"\",\"\",'1. Checklist & Certification'!$C$12)","v":""},{"$f":"IF(A323=\"\",\"\",'1. Checklist & Certification'!$B$14)","v":""},{"$f":"IF(A323=\"\",\"\",'1. Checklist & Certification'!$E$14)","v":""},{"$f":"IF(B323=\"\",\"\",'1. Checklist & Certification'!$G$14)","v":""},{"$f":"IF(A323=\"\",\"\",'MHP Family Income & Rent Limits'!$B$3)","v":""},{"$f":"IF(A323=\"\",\"\",'MHP Family Income & Rent Limits'!$J$3)","v":""},{"$f":"IF(A323=\"\",\"\",'MHP Family Income & Rent Limits'!$E$4)","v":""},{"$f":"IF(A323=\"\",\"\",'MHP Family Income & Rent Limits'!$C$7)","v":""},{"$f":"IF(A323=\"\",\"\",'MHP Family Income & Rent Limits'!$F$8)","v":""},{"$f":"IF(A323=\"\",\"\",'1. Checklist & Certification'!$G$4)","v":""},{"$f":"IF(A323=\"\",\"\",'1. Checklist & Certification'!$K$39)","v":""},{"$f":"IF(A323=\"\",\"\",'1. Checklist & Certification'!$K$43)","v":""},{"$f":"IF(A323=\"\",\"\",'1. Checklist & Certification'!$K$45)","v":""},{"$f":"IF(A323=\"\",\"\",'1. Checklist & Certification'!$K$49)","v":""},{"$f":"IF(A323=\"\",\"\",'1. Checklist & Certification'!$K$62)","v":""},{"$f":"IF(A323=\"\",\"\",'1. Checklist & Certification'!$E$66)","v":""},{"$f":"IF(A323=\"\",\"\",'1. Checklist & Certification'!$E$67)","v":""},{"$f":"IF(A323=\"\",\"\",'1. Checklist & Certification'!$E$68)","v":""},{"$f":"IF(A323=\"\",\"\",'1. Checklist & Certification'!$G$66)","v":""},{"$f":"IF(A323=\"\",\"\",'1. Checklist & Certification'!$H$66)","v":""},{"$f":"IF(A323=\"\",\"\",'1. Checklist & Certification'!$I$66)","v":""},{"$f":"IF(A323=\"\",\"\",'1. Checklist & Certification'!$I$67)","v":""},{"$f":"IF(A323=\"\",\"\",'1. Checklist & Certification'!$I$68)","v":""},{"$f":"IF(A323=\"\",\"\",'1. Checklist & Certification'!$B$69)","v":""},{"$f":"IF(A323=\"\",\"\",'1. Checklist & Certification'!$C$69)","v":""},{"$f":"IF(A323=\"\",\"\",'1. Checklist & Certification'!$F$69)","v":""},{"$f":"IF(A323=\"\",\"\",'1. Checklist & Certification'!$G$69)","v":""},{"$f":"IF(A323=\"\",\"\",'1. Checklist & Certification'!$J$69)","v":""},{"$f":"IF(A323=\"\",\"\",'1. Checklist & Certification'!$K$69)","v":""},null,null,{"$f":"IF(AND(OR('1. Checklist & Certification'!$M$16=1,'1. Checklist & Certification'!$M$19=2),AO323>0,B323=\"\",I323>0,AQ323<I323,AV323<>\"Sec 8-Project\"),\"X\",IF(AND(OR('1. Checklist & Certification'!$M$20=4,'1. Checklist & Certification'!$M$21=5,'1. Checklist & Certification'!$M$22=7),AO323>0,B323=\"\",I323>0,K323<I323),\"X\",\"\"))","v":""},{"$f":"IF(A323=\"\",\"\",IF(SUMPRODUCT(-- (ISNUMBER(SEARCH({\"*AHSC*\",\"*FMTW*\",\"*FWHG*\",\"*GHI*\",\"*HHC*\",\"*HLCP*\",\"*HOME*\",\"*LPR*\",\"*MHP*\",\"*NHTF*\",\"*NSP*\",\"*PRP*\",\"*TOD*\",\"*VHHP*\"},'1. Checklist & Certification'!$L$7)))),\"MHP\",\"Legacy\"))","v":""},",,",null,null,null,{"$f":"IF('1. Checklist & Certification'!$M$20=4,\"Both\",IF(OR('1. Checklist & Certification'!$M$15>0,S323=\"CHRP-R\",U323=\"CHRP-R\",W323=\"CHRP-R\",Y323=\"CHRP-R\"),\"Under\",\"No\"))","v":"No"},"No","No",{"$f":"_xlfn.IFS(D323=\"\",\"\",D323=1,'MHP Family Income & Rent Limits'!$E$17,D323=2,'MHP Family Income & Rent Limits'!$F$17,D323=3,'MHP Family Income & Rent Limits'!$G$17,D323=4,'MHP Family Income & Rent Limits'!$H$17,D323=5,'MHP Family Income & Rent Limits'!$I$17,D323=6,'MHP Family Income & Rent Limits'!$J$17,D323=7,'MHP Family Income & Rent Limits'!$K$17,D323=8,'MHP Family Income & Rent Limits'!$L$17)","v":""},"",{"$f":"IF(OR(A323=0,B323=\"X\"),0,MIN(IF(AA323:AD323<>0,AA323:AD323)))","v":0},{"$f":"IF(OR(H323=\"\",I323=\"\"),0,IF(H323*0.3/12>I323,MIN(H323*0.3/12,I323*1.1)+AP323,I323*(1+(VLOOKUP('1. Checklist & Certification'!$F$9,'HLCP-E Rent Change'!$A$1:$D$59,4,FALSE)))+AP323))","v":0}]
[null,null,null,null,null,null,null,null,null,null,null,null,null,null,null,null,null,null,null,null,null,null,null,null,null,null,0,0,0,0,0,0,0,0,{"$f":"IF(OR(A324=0,B324=\"X\"),0,IF(OR(S324=\"FHDP\",S324=\"RHCP-B\",U324=\"FHDP\",U324=\"RHCP-B\",W324=\"FHDP\",W324=\"RHCP-B\",Y324=\"FHDP\",Y324=\"RHCP-B\"),TRUNC((MIN(I324,K324)*(1+'1. Checklist & Certification'!$K$43)+AP324)),0))","v":0},{"$f":"IF(OR(A324=0,B324=\"X\"),0,IF(OR(S324=\"CHRP-R\",S324=\"SERA\",S324=\"SUHRP\",U324=\"CHRP-R\",U324=\"SERA\",U324=\"SUHRP\",W324=\"CHRP-R\",W324=\"SERA\",W324=\"SUHRP\",Y324=\"CHRP-R\",Y324=\"SERA\",Y324=\"SUHRP\"),TRUNC((MIN(I324,K324)*(1+'1. Checklist & Certification'!$K$49))),0))","v":0},{"$f":"IF(OR(A324=0,B324=\"X\"),0,IF(OR(S324=\"CALDAP\",S324=\"DPRLP\",U324=\"CALDAP\",U324=\"DPRLP\",W324=\"CALDAP\",W324=\"DPRLP\",Y324=\"CALDAP\",Y324=\"DPRLP\"),TRUNC(((MIN(I324,K324))*(1+'1. Checklist & Certification'!$G$4))),0))","v":0},0,0,0,{"$f":"IF(OR(A324=0,B324=\"X\"),0,IF(OR(S324=\"PRP\",S324=\"LPR\",U324=\"PRP\",U324=\"LPR\",W324=\"PRP\",W324=\"LPR\",Y324=\"PRP\",Y324=\"LPR\"),MAX(I324+AP324,MIN(IF(AE324:AN324<>0,AE324:AN324))),MIN(IF(AE324:AN324<>0,AE324:AN324))))","v":0},{"$f":"IF(A324=0,0,IF(AND(OR(S324=\"Mgr\",S324=0),OR(U324=\"Mgr\",U324=0),OR(W324=\"Mgr\",W324=0)),0,IF(LEFT($A324,2)=\"B*\",VLOOKUP($E324,'1. Checklist & Certification'!$D$26:$E$32,2),IF(LEFT($A324,2)=\"C*\",VLOOKUP($E324,'1. Checklist & Certification'!$F$26:$G$32,2),IF(LEFT($A324,2)=\"D*\",VLOOKUP($E324,'1. Checklist & Certification'!$H$26:$I$32,2),IF(LEFT($A324,2)=\"E*\",VLOOKUP($E324,'1. Checklist & Certification'!$J$26:$K$32,2),VLOOKUP($E324,'1. Checklist & Certification'!$A$26:$B$32,2)))))))","v":0},0,0,null,null,null,null,"","",0,0,0,null,{"$f":"IF(A324=\"\",\"\",'1. Checklist & Certification'!$K$1)","v":""},{"$f":"IF(A324=\"\",\"\",'1. Checklist & Certification'!$C$62)","v":""},{"$f":"IF(A324=\"\",\"\",'1. Checklist & Certification'!$C$6)","v":""},{"$f":"IF(A324=\"\",\"\",'1. Checklist & Certification'!$G$5)","v":""},{"$f":"IFERROR(IF(A324=\"\",\"\",\n_xlfn.LET(_xlpm.Contract,'1. Checklist & Certification'!$C$7,\n_xlpm.Yr,TEXT(MOD(_xlfn.TEXTBEFORE(_xlpm.Contract,\"-\"),100),\"00\"),\n_xlpm.Program,_xlfn.TEXTAFTER(_xlfn.TEXTBEFORE(_xlpm.Contract,\"-\",2),\"-\"),\n_xlpm.CleanProgram,_xlfn.XLOOKUP(_xlpm.Program,SpellCheck[Input],SpellCheck[Correction],_xlpm.Program),\n_xlpm.Number,TEXT(_xlfn.TEXTAFTER(_xlpm.Contract,\"-\",2),\"0000\"),\n_xlfn.CONCAT(_xlpm.Yr,\"-\",_xlpm.CleanProgram,\"-\",_xlpm.Number))\n),\"\")","v":""},{"$f":"IFERROR(IF(A324=\"\",\"\",\n_xlfn.LET(_xlpm.Contract,'1. Checklist & Certification'!$C$8,\n_xlpm.Yr,TEXT(MOD(_xlfn.TEXTBEFORE(_xlpm.Contract,\"-\"),100),\"00\"),\n_xlpm.Program,_xlfn.TEXTAFTER(_xlfn.TEXTBEFORE(_xlpm.Contract,\"-\",2),\"-\"),\n_xlpm.CleanProgram,_xlfn.XLOOKUP(_xlpm.Program,SpellCheck[Input],SpellCheck[Correction],_xlpm.Program),\n_xlpm.Number,TEXT(_xlfn.TEXTAFTER(_xlpm.Contract,\"-\",2),\"0000\"),\n_xlfn.CONCAT(_xlpm.Yr,\"-\",_xlpm.CleanProgram,\"-\",_xlpm.Number))\n),\"\")","v":""},{"$f":"IFERROR(IF(A324=\"\",\"\",\n_xlfn.LET(_xlpm.Contract,'1. Checklist & Certification'!$F$7,\n_xlpm.Yr,TEXT(MOD(_xlfn.TEXTBEFORE(_xlpm.Contract,\"-\"),100),\"00\"),\n_xlpm.Program,_xlfn.TEXTAFTER(_xlfn.TEXTBEFORE(_xlpm.Contract,\"-\",2),\"-\"),\n_xlpm.CleanProgram,_xlfn.XLOOKUP(_xlpm.Program,SpellCheck[Input],SpellCheck[Correction],_xlpm.Program),\n_xlpm.Number,TEXT(_xlfn.TEXTAFTER(_xlpm.Contract,\"-\",2),\"0000\"),\n_xlfn.CONCAT(_xlpm.Yr,\"-\",_xlpm.CleanProgram,\"-\",_xlpm.Number))\n),\"\")","v":""},{"$f":"IFERROR(IF(A324=\"\",\"\",\n_xlfn.LET(_xlpm.Contract,'1. Checklist & Certification'!$F$8,\n_xlpm.Yr,TEXT(MOD(_xlfn.TEXTBEFORE(_xlpm.Contract,\"-\"),100),\"00\"),\n_xlpm.Program,_xlfn.TEXTAFTER(_xlfn.TEXTBEFORE(_xlpm.Contract,\"-\",2),\"-\"),\n_xlpm.CleanProgram,_xlfn.XLOOKUP(_xlpm.Program,SpellCheck[Input],SpellCheck[Correction],_xlpm.Program),\n_xlpm.Number,TEXT(_xlfn.TEXTAFTER(_xlpm.Contract,\"-\",2),\"0000\"),\n_xlfn.CONCAT(_xlpm.Yr,\"-\",_xlpm.CleanProgram,\"-\",_xlpm.Number))\n),\"\")","v":""},{"$f":"IF(A324=\"\",\"\",'1. Checklist & Certification'!$B$9)","v":""},{"$f":"IF(A324=\"\",\"\",'1. Checklist & Certification'!$F$9)","v":""},{"$f":"IF(A324=\"\",\"\",'1. Checklist & Certification'!$C$10)","v":""},{"$f":"IF(A324=\"\",\"\",'1. Checklist & Certification'!$C$11)","v":""},{"$f":"IF(A324=\"\",\"\",'1. Checklist & Certification'!$C$12)","v":""},{"$f":"IF(A324=\"\",\"\",'1. Checklist & Certification'!$B$14)","v":""},{"$f":"IF(A324=\"\",\"\",'1. Checklist & Certification'!$E$14)","v":""},{"$f":"IF(B324=\"\",\"\",'1. Checklist & Certification'!$G$14)","v":""},{"$f":"IF(A324=\"\",\"\",'MHP Family Income & Rent Limits'!$B$3)","v":""},{"$f":"IF(A324=\"\",\"\",'MHP Family Income & Rent Limits'!$J$3)","v":""},{"$f":"IF(A324=\"\",\"\",'MHP Family Income & Rent Limits'!$E$4)","v":""},{"$f":"IF(A324=\"\",\"\",'MHP Family Income & Rent Limits'!$C$7)","v":""},{"$f":"IF(A324=\"\",\"\",'MHP Family Income & Rent Limits'!$F$8)","v":""},{"$f":"IF(A324=\"\",\"\",'1. Checklist & Certification'!$G$4)","v":""},{"$f":"IF(A324=\"\",\"\",'1. Checklist & Certification'!$K$39)","v":""},{"$f":"IF(A324=\"\",\"\",'1. Checklist & Certification'!$K$43)","v":""},{"$f":"IF(A324=\"\",\"\",'1. Checklist & Certification'!$K$45)","v":""},{"$f":"IF(A324=\"\",\"\",'1. Checklist & Certification'!$K$49)","v":""},{"$f":"IF(A324=\"\",\"\",'1. Checklist & Certification'!$K$62)","v":""},{"$f":"IF(A324=\"\",\"\",'1. Checklist & Certification'!$E$66)","v":""},{"$f":"IF(A324=\"\",\"\",'1. Checklist & Certification'!$E$67)","v":""},{"$f":"IF(A324=\"\",\"\",'1. Checklist & Certification'!$E$68)","v":""},{"$f":"IF(A324=\"\",\"\",'1. Checklist & Certification'!$G$66)","v":""},{"$f":"IF(A324=\"\",\"\",'1. Checklist & Certification'!$H$66)","v":""},{"$f":"IF(A324=\"\",\"\",'1. Checklist & Certification'!$I$66)","v":""},{"$f":"IF(A324=\"\",\"\",'1. Checklist & Certification'!$I$67)","v":""},{"$f":"IF(A324=\"\",\"\",'1. Checklist & Certification'!$I$68)","v":""},{"$f":"IF(A324=\"\",\"\",'1. Checklist & Certification'!$B$69)","v":""},{"$f":"IF(A324=\"\",\"\",'1. Checklist & Certification'!$C$69)","v":""},{"$f":"IF(A324=\"\",\"\",'1. Checklist & Certification'!$F$69)","v":""},{"$f":"IF(A324=\"\",\"\",'1. Checklist & Certification'!$G$69)","v":""},{"$f":"IF(A324=\"\",\"\",'1. Checklist & Certification'!$J$69)","v":""},{"$f":"IF(A324=\"\",\"\",'1. Checklist & Certification'!$K$69)","v":""},null,null,{"$f":"IF(AND(OR('1. Checklist & Certification'!$M$16=1,'1. Checklist & Certification'!$M$19=2),AO324>0,B324=\"\",I324>0,AQ324<I324,AV324<>\"Sec 8-Project\"),\"X\",IF(AND(OR('1. Checklist & Certification'!$M$20=4,'1. Checklist & Certification'!$M$21=5,'1. Checklist & Certification'!$M$22=7),AO324>0,B324=\"\",I324>0,K324<I324),\"X\",\"\"))","v":""},{"$f":"IF(A324=\"\",\"\",IF(SUMPRODUCT(-- (ISNUMBER(SEARCH({\"*AHSC*\",\"*FMTW*\",\"*FWHG*\",\"*GHI*\",\"*HHC*\",\"*HLCP*\",\"*HOME*\",\"*LPR*\",\"*MHP*\",\"*NHTF*\",\"*NSP*\",\"*PRP*\",\"*TOD*\",\"*VHHP*\"},'1. Checklist & Certification'!$L$7)))),\"MHP\",\"Legacy\"))","v":""},",,",null,null,null,{"$f":"IF('1. Checklist & Certification'!$M$20=4,\"Both\",IF(OR('1. Checklist & Certification'!$M$15>0,S324=\"CHRP-R\",U324=\"CHRP-R\",W324=\"CHRP-R\",Y324=\"CHRP-R\"),\"Under\",\"No\"))","v":"No"},"No","No",{"$f":"_xlfn.IFS(D324=\"\",\"\",D324=1,'MHP Family Income & Rent Limits'!$E$17,D324=2,'MHP Family Income & Rent Limits'!$F$17,D324=3,'MHP Family Income & Rent Limits'!$G$17,D324=4,'MHP Family Income & Rent Limits'!$H$17,D324=5,'MHP Family Income & Rent Limits'!$I$17,D324=6,'MHP Family Income & Rent Limits'!$J$17,D324=7,'MHP Family Income & Rent Limits'!$K$17,D324=8,'MHP Family Income & Rent Limits'!$L$17)","v":""},"",{"$f":"IF(OR(A324=0,B324=\"X\"),0,MIN(IF(AA324:AD324<>0,AA324:AD324)))","v":0},{"$f":"IF(OR(H324=\"\",I324=\"\"),0,IF(H324*0.3/12>I324,MIN(H324*0.3/12,I324*1.1)+AP324,I324*(1+(VLOOKUP('1. Checklist & Certification'!$F$9,'HLCP-E Rent Change'!$A$1:$D$59,4,FALSE)))+AP324))","v":0}]
[null,null,null,null,null,null,null,null,null,null,null,null,null,null,null,null,null,null,null,null,null,null,null,null,null,null,0,0,0,0,0,0,0,0,{"$f":"IF(OR(A325=0,B325=\"X\"),0,IF(OR(S325=\"FHDP\",S325=\"RHCP-B\",U325=\"FHDP\",U325=\"RHCP-B\",W325=\"FHDP\",W325=\"RHCP-B\",Y325=\"FHDP\",Y325=\"RHCP-B\"),TRUNC((MIN(I325,K325)*(1+'1. Checklist & Certification'!$K$43)+AP325)),0))","v":0},{"$f":"IF(OR(A325=0,B325=\"X\"),0,IF(OR(S325=\"CHRP-R\",S325=\"SERA\",S325=\"SUHRP\",U325=\"CHRP-R\",U325=\"SERA\",U325=\"SUHRP\",W325=\"CHRP-R\",W325=\"SERA\",W325=\"SUHRP\",Y325=\"CHRP-R\",Y325=\"SERA\",Y325=\"SUHRP\"),TRUNC((MIN(I325,K325)*(1+'1. Checklist & Certification'!$K$49))),0))","v":0},{"$f":"IF(OR(A325=0,B325=\"X\"),0,IF(OR(S325=\"CALDAP\",S325=\"DPRLP\",U325=\"CALDAP\",U325=\"DPRLP\",W325=\"CALDAP\",W325=\"DPRLP\",Y325=\"CALDAP\",Y325=\"DPRLP\"),TRUNC(((MIN(I325,K325))*(1+'1. Checklist & Certification'!$G$4))),0))","v":0},0,0,0,{"$f":"IF(OR(A325=0,B325=\"X\"),0,IF(OR(S325=\"PRP\",S325=\"LPR\",U325=\"PRP\",U325=\"LPR\",W325=\"PRP\",W325=\"LPR\",Y325=\"PRP\",Y325=\"LPR\"),MAX(I325+AP325,MIN(IF(AE325:AN325<>0,AE325:AN325))),MIN(IF(AE325:AN325<>0,AE325:AN325))))","v":0},{"$f":"IF(A325=0,0,IF(AND(OR(S325=\"Mgr\",S325=0),OR(U325=\"Mgr\",U325=0),OR(W325=\"Mgr\",W325=0)),0,IF(LEFT($A325,2)=\"B*\",VLOOKUP($E325,'1. Checklist & Certification'!$D$26:$E$32,2),IF(LEFT($A325,2)=\"C*\",VLOOKUP($E325,'1. Checklist & Certification'!$F$26:$G$32,2),IF(LEFT($A325,2)=\"D*\",VLOOKUP($E325,'1. Checklist & Certification'!$H$26:$I$32,2),IF(LEFT($A325,2)=\"E*\",VLOOKUP($E325,'1. Checklist & Certification'!$J$26:$K$32,2),VLOOKUP($E325,'1. Checklist & Certification'!$A$26:$B$32,2)))))))","v":0},0,0,null,null,null,null,"","",0,0,0,null,{"$f":"IF(A325=\"\",\"\",'1. Checklist & Certification'!$K$1)","v":""},{"$f":"IF(A325=\"\",\"\",'1. Checklist & Certification'!$C$62)","v":""},{"$f":"IF(A325=\"\",\"\",'1. Checklist & Certification'!$C$6)","v":""},{"$f":"IF(A325=\"\",\"\",'1. Checklist & Certification'!$G$5)","v":""},{"$f":"IFERROR(IF(A325=\"\",\"\",\n_xlfn.LET(_xlpm.Contract,'1. Checklist & Certification'!$C$7,\n_xlpm.Yr,TEXT(MOD(_xlfn.TEXTBEFORE(_xlpm.Contract,\"-\"),100),\"00\"),\n_xlpm.Program,_xlfn.TEXTAFTER(_xlfn.TEXTBEFORE(_xlpm.Contract,\"-\",2),\"-\"),\n_xlpm.CleanProgram,_xlfn.XLOOKUP(_xlpm.Program,SpellCheck[Input],SpellCheck[Correction],_xlpm.Program),\n_xlpm.Number,TEXT(_xlfn.TEXTAFTER(_xlpm.Contract,\"-\",2),\"0000\"),\n_xlfn.CONCAT(_xlpm.Yr,\"-\",_xlpm.CleanProgram,\"-\",_xlpm.Number))\n),\"\")","v":""},{"$f":"IFERROR(IF(A325=\"\",\"\",\n_xlfn.LET(_xlpm.Contract,'1. Checklist & Certification'!$C$8,\n_xlpm.Yr,TEXT(MOD(_xlfn.TEXTBEFORE(_xlpm.Contract,\"-\"),100),\"00\"),\n_xlpm.Program,_xlfn.TEXTAFTER(_xlfn.TEXTBEFORE(_xlpm.Contract,\"-\",2),\"-\"),\n_xlpm.CleanProgram,_xlfn.XLOOKUP(_xlpm.Program,SpellCheck[Input],SpellCheck[Correction],_xlpm.Program),\n_xlpm.Number,TEXT(_xlfn.TEXTAFTER(_xlpm.Contract,\"-\",2),\"0000\"),\n_xlfn.CONCAT(_xlpm.Yr,\"-\",_xlpm.CleanProgram,\"-\",_xlpm.Number))\n),\"\")","v":""},{"$f":"IFERROR(IF(A325=\"\",\"\",\n_xlfn.LET(_xlpm.Contract,'1. Checklist & Certification'!$F$7,\n_xlpm.Yr,TEXT(MOD(_xlfn.TEXTBEFORE(_xlpm.Contract,\"-\"),100),\"00\"),\n_xlpm.Program,_xlfn.TEXTAFTER(_xlfn.TEXTBEFORE(_xlpm.Contract,\"-\",2),\"-\"),\n_xlpm.CleanProgram,_xlfn.XLOOKUP(_xlpm.Program,SpellCheck[Input],SpellCheck[Correction],_xlpm.Program),\n_xlpm.Number,TEXT(_xlfn.TEXTAFTER(_xlpm.Contract,\"-\",2),\"0000\"),\n_xlfn.CONCAT(_xlpm.Yr,\"-\",_xlpm.CleanProgram,\"-\",_xlpm.Number))\n),\"\")","v":""},{"$f":"IFERROR(IF(A325=\"\",\"\",\n_xlfn.LET(_xlpm.Contract,'1. Checklist & Certification'!$F$8,\n_xlpm.Yr,TEXT(MOD(_xlfn.TEXTBEFORE(_xlpm.Contract,\"-\"),100),\"00\"),\n_xlpm.Program,_xlfn.TEXTAFTER(_xlfn.TEXTBEFORE(_xlpm.Contract,\"-\",2),\"-\"),\n_xlpm.CleanProgram,_xlfn.XLOOKUP(_xlpm.Program,SpellCheck[Input],SpellCheck[Correction],_xlpm.Program),\n_xlpm.Number,TEXT(_xlfn.TEXTAFTER(_xlpm.Contract,\"-\",2),\"0000\"),\n_xlfn.CONCAT(_xlpm.Yr,\"-\",_xlpm.CleanProgram,\"-\",_xlpm.Number))\n),\"\")","v":""},{"$f":"IF(A325=\"\",\"\",'1. Checklist & Certification'!$B$9)","v":""},{"$f":"IF(A325=\"\",\"\",'1. Checklist & Certification'!$F$9)","v":""},{"$f":"IF(A325=\"\",\"\",'1. Checklist & Certification'!$C$10)","v":""},{"$f":"IF(A325=\"\",\"\",'1. Checklist & Certification'!$C$11)","v":""},{"$f":"IF(A325=\"\",\"\",'1. Checklist & Certification'!$C$12)","v":""},{"$f":"IF(A325=\"\",\"\",'1. Checklist & Certification'!$B$14)","v":""},{"$f":"IF(A325=\"\",\"\",'1. Checklist & Certification'!$E$14)","v":""},{"$f":"IF(B325=\"\",\"\",'1. Checklist & Certification'!$G$14)","v":""},{"$f":"IF(A325=\"\",\"\",'MHP Family Income & Rent Limits'!$B$3)","v":""},{"$f":"IF(A325=\"\",\"\",'MHP Family Income & Rent Limits'!$J$3)","v":""},{"$f":"IF(A325=\"\",\"\",'MHP Family Income & Rent Limits'!$E$4)","v":""},{"$f":"IF(A325=\"\",\"\",'MHP Family Income & Rent Limits'!$C$7)","v":""},{"$f":"IF(A325=\"\",\"\",'MHP Family Income & Rent Limits'!$F$8)","v":""},{"$f":"IF(A325=\"\",\"\",'1. Checklist & Certification'!$G$4)","v":""},{"$f":"IF(A325=\"\",\"\",'1. Checklist & Certification'!$K$39)","v":""},{"$f":"IF(A325=\"\",\"\",'1. Checklist & Certification'!$K$43)","v":""},{"$f":"IF(A325=\"\",\"\",'1. Checklist & Certification'!$K$45)","v":""},{"$f":"IF(A325=\"\",\"\",'1. Checklist & Certification'!$K$49)","v":""},{"$f":"IF(A325=\"\",\"\",'1. Checklist & Certification'!$K$62)","v":""},{"$f":"IF(A325=\"\",\"\",'1. Checklist & Certification'!$E$66)","v":""},{"$f":"IF(A325=\"\",\"\",'1. Checklist & Certification'!$E$67)","v":""},{"$f":"IF(A325=\"\",\"\",'1. Checklist & Certification'!$E$68)","v":""},{"$f":"IF(A325=\"\",\"\",'1. Checklist & Certification'!$G$66)","v":""},{"$f":"IF(A325=\"\",\"\",'1. Checklist & Certification'!$H$66)","v":""},{"$f":"IF(A325=\"\",\"\",'1. Checklist & Certification'!$I$66)","v":""},{"$f":"IF(A325=\"\",\"\",'1. Checklist & Certification'!$I$67)","v":""},{"$f":"IF(A325=\"\",\"\",'1. Checklist & Certification'!$I$68)","v":""},{"$f":"IF(A325=\"\",\"\",'1. Checklist & Certification'!$B$69)","v":""},{"$f":"IF(A325=\"\",\"\",'1. Checklist & Certification'!$C$69)","v":""},{"$f":"IF(A325=\"\",\"\",'1. Checklist & Certification'!$F$69)","v":""},{"$f":"IF(A325=\"\",\"\",'1. Checklist & Certification'!$G$69)","v":""},{"$f":"IF(A325=\"\",\"\",'1. Checklist & Certification'!$J$69)","v":""},{"$f":"IF(A325=\"\",\"\",'1. Checklist & Certification'!$K$69)","v":""},null,null,{"$f":"IF(AND(OR('1. Checklist & Certification'!$M$16=1,'1. Checklist & Certification'!$M$19=2),AO325>0,B325=\"\",I325>0,AQ325<I325,AV325<>\"Sec 8-Project\"),\"X\",IF(AND(OR('1. Checklist & Certification'!$M$20=4,'1. Checklist & Certification'!$M$21=5,'1. Checklist & Certification'!$M$22=7),AO325>0,B325=\"\",I325>0,K325<I325),\"X\",\"\"))","v":""},{"$f":"IF(A325=\"\",\"\",IF(SUMPRODUCT(-- (ISNUMBER(SEARCH({\"*AHSC*\",\"*FMTW*\",\"*FWHG*\",\"*GHI*\",\"*HHC*\",\"*HLCP*\",\"*HOME*\",\"*LPR*\",\"*MHP*\",\"*NHTF*\",\"*NSP*\",\"*PRP*\",\"*TOD*\",\"*VHHP*\"},'1. Checklist & Certification'!$L$7)))),\"MHP\",\"Legacy\"))","v":""},",,",null,null,null,{"$f":"IF('1. Checklist & Certification'!$M$20=4,\"Both\",IF(OR('1. Checklist & Certification'!$M$15>0,S325=\"CHRP-R\",U325=\"CHRP-R\",W325=\"CHRP-R\",Y325=\"CHRP-R\"),\"Under\",\"No\"))","v":"No"},"No","No",{"$f":"_xlfn.IFS(D325=\"\",\"\",D325=1,'MHP Family Income & Rent Limits'!$E$17,D325=2,'MHP Family Income & Rent Limits'!$F$17,D325=3,'MHP Family Income & Rent Limits'!$G$17,D325=4,'MHP Family Income & Rent Limits'!$H$17,D325=5,'MHP Family Income & Rent Limits'!$I$17,D325=6,'MHP Family Income & Rent Limits'!$J$17,D325=7,'MHP Family Income & Rent Limits'!$K$17,D325=8,'MHP Family Income & Rent Limits'!$L$17)","v":""},"",{"$f":"IF(OR(A325=0,B325=\"X\"),0,MIN(IF(AA325:AD325<>0,AA325:AD325)))","v":0},{"$f":"IF(OR(H325=\"\",I325=\"\"),0,IF(H325*0.3/12>I325,MIN(H325*0.3/12,I325*1.1)+AP325,I325*(1+(VLOOKUP('1. Checklist & Certification'!$F$9,'HLCP-E Rent Change'!$A$1:$D$59,4,FALSE)))+AP325))","v":0}]
[null,null,null,null,null,null,null,null,null,null,null,null,null,null,null,null,null,null,null,null,null,null,null,null,null,null,0,0,0,0,0,0,0,0,{"$f":"IF(OR(A326=0,B326=\"X\"),0,IF(OR(S326=\"FHDP\",S326=\"RHCP-B\",U326=\"FHDP\",U326=\"RHCP-B\",W326=\"FHDP\",W326=\"RHCP-B\",Y326=\"FHDP\",Y326=\"RHCP-B\"),TRUNC((MIN(I326,K326)*(1+'1. Checklist & Certification'!$K$43)+AP326)),0))","v":0},{"$f":"IF(OR(A326=0,B326=\"X\"),0,IF(OR(S326=\"CHRP-R\",S326=\"SERA\",S326=\"SUHRP\",U326=\"CHRP-R\",U326=\"SERA\",U326=\"SUHRP\",W326=\"CHRP-R\",W326=\"SERA\",W326=\"SUHRP\",Y326=\"CHRP-R\",Y326=\"SERA\",Y326=\"SUHRP\"),TRUNC((MIN(I326,K326)*(1+'1. Checklist & Certification'!$K$49))),0))","v":0},{"$f":"IF(OR(A326=0,B326=\"X\"),0,IF(OR(S326=\"CALDAP\",S326=\"DPRLP\",U326=\"CALDAP\",U326=\"DPRLP\",W326=\"CALDAP\",W326=\"DPRLP\",Y326=\"CALDAP\",Y326=\"DPRLP\"),TRUNC(((MIN(I326,K326))*(1+'1. Checklist & Certification'!$G$4))),0))","v":0},0,0,0,{"$f":"IF(OR(A326=0,B326=\"X\"),0,IF(OR(S326=\"PRP\",S326=\"LPR\",U326=\"PRP\",U326=\"LPR\",W326=\"PRP\",W326=\"LPR\",Y326=\"PRP\",Y326=\"LPR\"),MAX(I326+AP326,MIN(IF(AE326:AN326<>0,AE326:AN326))),MIN(IF(AE326:AN326<>0,AE326:AN326))))","v":0},{"$f":"IF(A326=0,0,IF(AND(OR(S326=\"Mgr\",S326=0),OR(U326=\"Mgr\",U326=0),OR(W326=\"Mgr\",W326=0)),0,IF(LEFT($A326,2)=\"B*\",VLOOKUP($E326,'1. Checklist & Certification'!$D$26:$E$32,2),IF(LEFT($A326,2)=\"C*\",VLOOKUP($E326,'1. Checklist & Certification'!$F$26:$G$32,2),IF(LEFT($A326,2)=\"D*\",VLOOKUP($E326,'1. Checklist & Certification'!$H$26:$I$32,2),IF(LEFT($A326,2)=\"E*\",VLOOKUP($E326,'1. Checklist & Certification'!$J$26:$K$32,2),VLOOKUP($E326,'1. Checklist & Certification'!$A$26:$B$32,2)))))))","v":0},0,0,null,null,null,null,"","",0,0,0,null,{"$f":"IF(A326=\"\",\"\",'1. Checklist & Certification'!$K$1)","v":""},{"$f":"IF(A326=\"\",\"\",'1. Checklist & Certification'!$C$62)","v":""},{"$f":"IF(A326=\"\",\"\",'1. Checklist & Certification'!$C$6)","v":""},{"$f":"IF(A326=\"\",\"\",'1. Checklist & Certification'!$G$5)","v":""},{"$f":"IFERROR(IF(A326=\"\",\"\",\n_xlfn.LET(_xlpm.Contract,'1. Checklist & Certification'!$C$7,\n_xlpm.Yr,TEXT(MOD(_xlfn.TEXTBEFORE(_xlpm.Contract,\"-\"),100),\"00\"),\n_xlpm.Program,_xlfn.TEXTAFTER(_xlfn.TEXTBEFORE(_xlpm.Contract,\"-\",2),\"-\"),\n_xlpm.CleanProgram,_xlfn.XLOOKUP(_xlpm.Program,SpellCheck[Input],SpellCheck[Correction],_xlpm.Program),\n_xlpm.Number,TEXT(_xlfn.TEXTAFTER(_xlpm.Contract,\"-\",2),\"0000\"),\n_xlfn.CONCAT(_xlpm.Yr,\"-\",_xlpm.CleanProgram,\"-\",_xlpm.Number))\n),\"\")","v":""},{"$f":"IFERROR(IF(A326=\"\",\"\",\n_xlfn.LET(_xlpm.Contract,'1. Checklist & Certification'!$C$8,\n_xlpm.Yr,TEXT(MOD(_xlfn.TEXTBEFORE(_xlpm.Contract,\"-\"),100),\"00\"),\n_xlpm.Program,_xlfn.TEXTAFTER(_xlfn.TEXTBEFORE(_xlpm.Contract,\"-\",2),\"-\"),\n_xlpm.CleanProgram,_xlfn.XLOOKUP(_xlpm.Program,SpellCheck[Input],SpellCheck[Correction],_xlpm.Program),\n_xlpm.Number,TEXT(_xlfn.TEXTAFTER(_xlpm.Contract,\"-\",2),\"0000\"),\n_xlfn.CONCAT(_xlpm.Yr,\"-\",_xlpm.CleanProgram,\"-\",_xlpm.Number))\n),\"\")","v":""},{"$f":"IFERROR(IF(A326=\"\",\"\",\n_xlfn.LET(_xlpm.Contract,'1. Checklist & Certification'!$F$7,\n_xlpm.Yr,TEXT(MOD(_xlfn.TEXTBEFORE(_xlpm.Contract,\"-\"),100),\"00\"),\n_xlpm.Program,_xlfn.TEXTAFTER(_xlfn.TEXTBEFORE(_xlpm.Contract,\"-\",2),\"-\"),\n_xlpm.CleanProgram,_xlfn.XLOOKUP(_xlpm.Program,SpellCheck[Input],SpellCheck[Correction],_xlpm.Program),\n_xlpm.Number,TEXT(_xlfn.TEXTAFTER(_xlpm.Contract,\"-\",2),\"0000\"),\n_xlfn.CONCAT(_xlpm.Yr,\"-\",_xlpm.CleanProgram,\"-\",_xlpm.Number))\n),\"\")","v":""},{"$f":"IFERROR(IF(A326=\"\",\"\",\n_xlfn.LET(_xlpm.Contract,'1. Checklist & Certification'!$F$8,\n_xlpm.Yr,TEXT(MOD(_xlfn.TEXTBEFORE(_xlpm.Contract,\"-\"),100),\"00\"),\n_xlpm.Program,_xlfn.TEXTAFTER(_xlfn.TEXTBEFORE(_xlpm.Contract,\"-\",2),\"-\"),\n_xlpm.CleanProgram,_xlfn.XLOOKUP(_xlpm.Program,SpellCheck[Input],SpellCheck[Correction],_xlpm.Program),\n_xlpm.Number,TEXT(_xlfn.TEXTAFTER(_xlpm.Contract,\"-\",2),\"0000\"),\n_xlfn.CONCAT(_xlpm.Yr,\"-\",_xlpm.CleanProgram,\"-\",_xlpm.Number))\n),\"\")","v":""},{"$f":"IF(A326=\"\",\"\",'1. Checklist & Certification'!$B$9)","v":""},{"$f":"IF(A326=\"\",\"\",'1. Checklist & Certification'!$F$9)","v":""},{"$f":"IF(A326=\"\",\"\",'1. Checklist & Certification'!$C$10)","v":""},{"$f":"IF(A326=\"\",\"\",'1. Checklist & Certification'!$C$11)","v":""},{"$f":"IF(A326=\"\",\"\",'1. Checklist & Certification'!$C$12)","v":""},{"$f":"IF(A326=\"\",\"\",'1. Checklist & Certification'!$B$14)","v":""},{"$f":"IF(A326=\"\",\"\",'1. Checklist & Certification'!$E$14)","v":""},{"$f":"IF(B326=\"\",\"\",'1. Checklist & Certification'!$G$14)","v":""},{"$f":"IF(A326=\"\",\"\",'MHP Family Income & Rent Limits'!$B$3)","v":""},{"$f":"IF(A326=\"\",\"\",'MHP Family Income & Rent Limits'!$J$3)","v":""},{"$f":"IF(A326=\"\",\"\",'MHP Family Income & Rent Limits'!$E$4)","v":""},{"$f":"IF(A326=\"\",\"\",'MHP Family Income & Rent Limits'!$C$7)","v":""},{"$f":"IF(A326=\"\",\"\",'MHP Family Income & Rent Limits'!$F$8)","v":""},{"$f":"IF(A326=\"\",\"\",'1. Checklist & Certification'!$G$4)","v":""},{"$f":"IF(A326=\"\",\"\",'1. Checklist & Certification'!$K$39)","v":""},{"$f":"IF(A326=\"\",\"\",'1. Checklist & Certification'!$K$43)","v":""},{"$f":"IF(A326=\"\",\"\",'1. Checklist & Certification'!$K$45)","v":""},{"$f":"IF(A326=\"\",\"\",'1. Checklist & Certification'!$K$49)","v":""},{"$f":"IF(A326=\"\",\"\",'1. Checklist & Certification'!$K$62)","v":""},{"$f":"IF(A326=\"\",\"\",'1. Checklist & Certification'!$E$66)","v":""},{"$f":"IF(A326=\"\",\"\",'1. Checklist & Certification'!$E$67)","v":""},{"$f":"IF(A326=\"\",\"\",'1. Checklist & Certification'!$E$68)","v":""},{"$f":"IF(A326=\"\",\"\",'1. Checklist & Certification'!$G$66)","v":""},{"$f":"IF(A326=\"\",\"\",'1. Checklist & Certification'!$H$66)","v":""},{"$f":"IF(A326=\"\",\"\",'1. Checklist & Certification'!$I$66)","v":""},{"$f":"IF(A326=\"\",\"\",'1. Checklist & Certification'!$I$67)","v":""},{"$f":"IF(A326=\"\",\"\",'1. Checklist & Certification'!$I$68)","v":""},{"$f":"IF(A326=\"\",\"\",'1. Checklist & Certification'!$B$69)","v":""},{"$f":"IF(A326=\"\",\"\",'1. Checklist & Certification'!$C$69)","v":""},{"$f":"IF(A326=\"\",\"\",'1. Checklist & Certification'!$F$69)","v":""},{"$f":"IF(A326=\"\",\"\",'1. Checklist & Certification'!$G$69)","v":""},{"$f":"IF(A326=\"\",\"\",'1. Checklist & Certification'!$J$69)","v":""},{"$f":"IF(A326=\"\",\"\",'1. Checklist & Certification'!$K$69)","v":""},null,null,{"$f":"IF(AND(OR('1. Checklist & Certification'!$M$16=1,'1. Checklist & Certification'!$M$19=2),AO326>0,B326=\"\",I326>0,AQ326<I326,AV326<>\"Sec 8-Project\"),\"X\",IF(AND(OR('1. Checklist & Certification'!$M$20=4,'1. Checklist & Certification'!$M$21=5,'1. Checklist & Certification'!$M$22=7),AO326>0,B326=\"\",I326>0,K326<I326),\"X\",\"\"))","v":""},{"$f":"IF(A326=\"\",\"\",IF(SUMPRODUCT(-- (ISNUMBER(SEARCH({\"*AHSC*\",\"*FMTW*\",\"*FWHG*\",\"*GHI*\",\"*HHC*\",\"*HLCP*\",\"*HOME*\",\"*LPR*\",\"*MHP*\",\"*NHTF*\",\"*NSP*\",\"*PRP*\",\"*TOD*\",\"*VHHP*\"},'1. Checklist & Certification'!$L$7)))),\"MHP\",\"Legacy\"))","v":""},",,",null,null,null,{"$f":"IF('1. Checklist & Certification'!$M$20=4,\"Both\",IF(OR('1. Checklist & Certification'!$M$15>0,S326=\"CHRP-R\",U326=\"CHRP-R\",W326=\"CHRP-R\",Y326=\"CHRP-R\"),\"Under\",\"No\"))","v":"No"},"No","No",{"$f":"_xlfn.IFS(D326=\"\",\"\",D326=1,'MHP Family Income & Rent Limits'!$E$17,D326=2,'MHP Family Income & Rent Limits'!$F$17,D326=3,'MHP Family Income & Rent Limits'!$G$17,D326=4,'MHP Family Income & Rent Limits'!$H$17,D326=5,'MHP Family Income & Rent Limits'!$I$17,D326=6,'MHP Family Income & Rent Limits'!$J$17,D326=7,'MHP Family Income & Rent Limits'!$K$17,D326=8,'MHP Family Income & Rent Limits'!$L$17)","v":""},"",{"$f":"IF(OR(A326=0,B326=\"X\"),0,MIN(IF(AA326:AD326<>0,AA326:AD326)))","v":0},{"$f":"IF(OR(H326=\"\",I326=\"\"),0,IF(H326*0.3/12>I326,MIN(H326*0.3/12,I326*1.1)+AP326,I326*(1+(VLOOKUP('1. Checklist & Certification'!$F$9,'HLCP-E Rent Change'!$A$1:$D$59,4,FALSE)))+AP326))","v":0}]
[null,null,null,null,null,null,null,null,null,null,null,null,null,null,null,null,null,null,null,null,null,null,null,null,null,null,{"$f":"IF(D327=\"Vacant\",\"Vacant\",IF(T327<>0,INDEX(IncomeLimits,MATCH(T327,IncomeLevels,0),MATCH(D327,IncomePersons,0)),0))","v":0},{"$f":"IF(D327=\"Vacant\",\"Vacant\",IF(V327<>0,INDEX(IncomeLimits,MATCH(V327,IncomeLevels,0),MATCH(D327,IncomePersons,0)),0))","v":0},{"$f":"IF(D327=\"Vacant\",\"Vacant\",IF(X327<>0,INDEX(IncomeLimits,MATCH(X327,IncomeLevels,0),MATCH(D327,IncomePersons,0)),0))","v":0},{"$f":"IF(D327=\"Vacant\",\"Vacant\",IF(Z327<>0,INDEX(IncomeLimits,MATCH(Z327,IncomeLevels,0),MATCH(D327,IncomePersons,0)),0))","v":0},{"$f":"IF(OR(T327=\"LI State\",T327=\"VLI State\"),0,IF(T327>1,INDEX(RentLimits,MATCH(T327,RentLevels,0),MATCH(E327,RentPersons,0)),0))","v":0},{"$f":"IF(OR(V327=\"LI State\",V327=\"VLI State\"),0,IF(V327>1,INDEX(RentLimits,MATCH(V327,RentLevels,0),MATCH(E327,RentPersons,0)),0))","v":0},{"$f":"IF(OR(X327=\"LI State\",X327=\"VLI State\"),0,IF(X327>1,INDEX(RentLimits,MATCH(X327,RentLevels,0),MATCH(E327,RentPersons,0)),0))","v":0},{"$f":"IF(OR(Z327=\"LI State\",Z327=\"VLI State\"),0,IF(Z327>1,INDEX(RentLimits,MATCH(Z327,RentLevels,0),MATCH(E327,RentPersons,0)),0))","v":0},{"$f":"IF(OR(A327=0,B327=\"X\"),0,IF(OR(S327=\"FHDP\",S327=\"RHCP-B\",U327=\"FHDP\",U327=\"RHCP-B\",W327=\"FHDP\",W327=\"RHCP-B\",Y327=\"FHDP\",Y327=\"RHCP-B\"),TRUNC((MIN(I327,K327)*(1+'1. Checklist & Certification'!$K$43)+AP327)),0))","v":0},{"$f":"IF(OR(A327=0,B327=\"X\"),0,IF(OR(S327=\"CHRP-R\",S327=\"SERA\",S327=\"SUHRP\",U327=\"CHRP-R\",U327=\"SERA\",U327=\"SUHRP\",W327=\"CHRP-R\",W327=\"SERA\",W327=\"SUHRP\",Y327=\"CHRP-R\",Y327=\"SERA\",Y327=\"SUHRP\"),TRUNC((MIN(I327,K327)*(1+'1. Checklist & Certification'!$K$49))),0))","v":0},{"$f":"IF(OR(A327=0,B327=\"X\"),0,IF(OR(S327=\"CALDAP\",S327=\"DPRLP\",U327=\"CALDAP\",U327=\"DPRLP\",W327=\"CALDAP\",W327=\"DPRLP\",Y327=\"CALDAP\",Y327=\"DPRLP\"),TRUNC(((MIN(I327,K327))*(1+'1. Checklist & Certification'!$G$4))),0))","v":0},{"$f":"IF(D327=\"Vacant\",0,IF(H327=0,0,IF(OR(AND(S327=\"FWHG\",T327=0),AND(U327=\"FWHG\",V327=0),AND(W327=\"FWHG\",X327=0),AND(Y327=\"FWHG\",Z327=0)),TRUNC(H327*0.3/12),IF(OR(S327=\"HLCP-E\",U327=\"HLCP-E\",W327=\"HLCP-E\",Y327=\"HLCP-E\"),DF327,0))))","v":0},0,0,{"$f":"IF(OR(A327=0,B327=\"X\"),0,IF(OR(S327=\"PRP\",S327=\"LPR\",U327=\"PRP\",U327=\"LPR\",W327=\"PRP\",W327=\"LPR\",Y327=\"PRP\",Y327=\"LPR\"),MAX(I327+AP327,MIN(IF(AE327:AN327<>0,AE327:AN327))),MIN(IF(AE327:AN327<>0,AE327:AN327))))","v":0},{"$f":"IF(A327=0,0,IF(AND(OR(S327=\"Mgr\",S327=0),OR(U327=\"Mgr\",U327=0),OR(W327=\"Mgr\",W327=0)),0,IF(LEFT($A327,2)=\"B*\",VLOOKUP($E327,'1. Checklist & Certification'!$D$26:$E$32,2),IF(LEFT($A327,2)=\"C*\",VLOOKUP($E327,'1. Checklist & Certification'!$F$26:$G$32,2),IF(LEFT($A327,2)=\"D*\",VLOOKUP($E327,'1. Checklist & Certification'!$H$26:$I$32,2),IF(LEFT($A327,2)=\"E*\",VLOOKUP($E327,'1. Checklist & Certification'!$J$26:$K$32,2),VLOOKUP($E327,'1. Checklist & Certification'!$A$26:$B$32,2)))))))","v":0},{"$f":"IF(AO327=0,0,ROUND(AO327-AP327,0))","v":0},{"$f":"AS327-I327","v":0},null,null,null,null,{"$f":"IF($CV$5=TRUE,IF(AS327<>0,IF(AV327<>\"Sec 8-Project\",MIN(AQ327,AS327),AS327),\"\"),\"\")","v":""},{"$f":"IF(AW327=\"\",\"\",(I327*J327)+((12-J327)*AW327))","v":""},{"$f":"(I327*J327)+((12-J327)*AS327)","v":0},{"$f":"(AT327*J327)+((12-J327)*AU327)","v":0},0,null,{"$f":"IF(A327=\"\",\"\",'1. Checklist & Certification'!$K$1)","v":""},{"$f":"IF(A327=\"\",\"\",'1. Checklist & Certification'!$C$62)","v":""},{"$f":"IF(A327=\"\",\"\",'1. Checklist & Certification'!$C$6)","v":""},{"$f":"IF(A327=\"\",\"\",'1. Checklist & Certification'!$G$5)","v":""},{"$f":"IFERROR(IF(A327=\"\",\"\",\n_xlfn.LET(_xlpm.Contract,'1. Checklist & Certification'!$C$7,\n_xlpm.Yr,TEXT(MOD(_xlfn.TEXTBEFORE(_xlpm.Contract,\"-\"),100),\"00\"),\n_xlpm.Program,_xlfn.TEXTAFTER(_xlfn.TEXTBEFORE(_xlpm.Contract,\"-\",2),\"-\"),\n_xlpm.CleanProgram,_xlfn.XLOOKUP(_xlpm.Program,SpellCheck[Input],SpellCheck[Correction],_xlpm.Program),\n_xlpm.Number,TEXT(_xlfn.TEXTAFTER(_xlpm.Contract,\"-\",2),\"0000\"),\n_xlfn.CONCAT(_xlpm.Yr,\"-\",_xlpm.CleanProgram,\"-\",_xlpm.Number))\n),\"\")","v":""},{"$f":"IFERROR(IF(A327=\"\",\"\",\n_xlfn.LET(_xlpm.Contract,'1. Checklist & Certification'!$C$8,\n_xlpm.Yr,TEXT(MOD(_xlfn.TEXTBEFORE(_xlpm.Contract,\"-\"),100),\"00\"),\n_xlpm.Program,_xlfn.TEXTAFTER(_xlfn.TEXTBEFORE(_xlpm.Contract,\"-\",2),\"-\"),\n_xlpm.CleanProgram,_xlfn.XLOOKUP(_xlpm.Program,SpellCheck[Input],SpellCheck[Correction],_xlpm.Program),\n_xlpm.Number,TEXT(_xlfn.TEXTAFTER(_xlpm.Contract,\"-\",2),\"0000\"),\n_xlfn.CONCAT(_xlpm.Yr,\"-\",_xlpm.CleanProgram,\"-\",_xlpm.Number))\n),\"\")","v":""},{"$f":"IFERROR(IF(A327=\"\",\"\",\n_xlfn.LET(_xlpm.Contract,'1. Checklist & Certification'!$F$7,\n_xlpm.Yr,TEXT(MOD(_xlfn.TEXTBEFORE(_xlpm.Contract,\"-\"),100),\"00\"),\n_xlpm.Program,_xlfn.TEXTAFTER(_xlfn.TEXTBEFORE(_xlpm.Contract,\"-\",2),\"-\"),\n_xlpm.CleanProgram,_xlfn.XLOOKUP(_xlpm.Program,SpellCheck[Input],SpellCheck[Correction],_xlpm.Program),\n_xlpm.Number,TEXT(_xlfn.TEXTAFTER(_xlpm.Contract,\"-\",2),\"0000\"),\n_xlfn.CONCAT(_xlpm.Yr,\"-\",_xlpm.CleanProgram,\"-\",_xlpm.Number))\n),\"\")","v":""},{"$f":"IFERROR(IF(A327=\"\",\"\",\n_xlfn.LET(_xlpm.Contract,'1. Checklist & Certification'!$F$8,\n_xlpm.Yr,TEXT(MOD(_xlfn.TEXTBEFORE(_xlpm.Contract,\"-\"),100),\"00\"),\n_xlpm.Program,_xlfn.TEXTAFTER(_xlfn.TEXTBEFORE(_xlpm.Contract,\"-\",2),\"-\"),\n_xlpm.CleanProgram,_xlfn.XLOOKUP(_xlpm.Program,SpellCheck[Input],SpellCheck[Correction],_xlpm.Program),\n_xlpm.Number,TEXT(_xlfn.TEXTAFTER(_xlpm.Contract,\"-\",2),\"0000\"),\n_xlfn.CONCAT(_xlpm.Yr,\"-\",_xlpm.CleanProgram,\"-\",_xlpm.Number))\n),\"\")","v":""},{"$f":"IF(A327=\"\",\"\",'1. Checklist & Certification'!$B$9)","v":""},{"$f":"IF(A327=\"\",\"\",'1. Checklist & Certification'!$F$9)","v":""},{"$f":"IF(A327=\"\",\"\",'1. Checklist & Certification'!$C$10)","v":""},{"$f":"IF(A327=\"\",\"\",'1. Checklist & Certification'!$C$11)","v":""},{"$f":"IF(A327=\"\",\"\",'1. Checklist & Certification'!$C$12)","v":""},{"$f":"IF(A327=\"\",\"\",'1. Checklist & Certification'!$B$14)","v":""},{"$f":"IF(A327=\"\",\"\",'1. Checklist & Certification'!$E$14)","v":""},{"$f":"IF(B327=\"\",\"\",'1. Checklist & Certification'!$G$14)","v":""},{"$f":"IF(A327=\"\",\"\",'MHP Family Income & Rent Limits'!$B$3)","v":""},{"$f":"IF(A327=\"\",\"\",'MHP Family Income & Rent Limits'!$J$3)","v":""},{"$f":"IF(A327=\"\",\"\",'MHP Family Income & Rent Limits'!$E$4)","v":""},{"$f":"IF(A327=\"\",\"\",'MHP Family Income & Rent Limits'!$C$7)","v":""},{"$f":"IF(A327=\"\",\"\",'MHP Family Income & Rent Limits'!$F$8)","v":""},{"$f":"IF(A327=\"\",\"\",'1. Checklist & Certification'!$G$4)","v":""},{"$f":"IF(A327=\"\",\"\",'1. Checklist & Certification'!$K$39)","v":""},{"$f":"IF(A327=\"\",\"\",'1. Checklist & Certification'!$K$43)","v":""},{"$f":"IF(A327=\"\",\"\",'1. Checklist & Certification'!$K$45)","v":""},{"$f":"IF(A327=\"\",\"\",'1. Checklist & Certification'!$K$49)","v":""},{"$f":"IF(A327=\"\",\"\",'1. Checklist & Certification'!$K$62)","v":""},{"$f":"IF(A327=\"\",\"\",'1. Checklist & Certification'!$E$66)","v":""},{"$f":"IF(A327=\"\",\"\",'1. Checklist & Certification'!$E$67)","v":""},{"$f":"IF(A327=\"\",\"\",'1. Checklist & Certification'!$E$68)","v":""},{"$f":"IF(A327=\"\",\"\",'1. Checklist & Certification'!$G$66)","v":""},{"$f":"IF(A327=\"\",\"\",'1. Checklist & Certification'!$H$66)","v":""},{"$f":"IF(A327=\"\",\"\",'1. Checklist & Certification'!$I$66)","v":""},{"$f":"IF(A327=\"\",\"\",'1. Checklist & Certification'!$I$67)","v":""},{"$f":"IF(A327=\"\",\"\",'1. Checklist & Certification'!$I$68)","v":""},{"$f":"IF(A327=\"\",\"\",'1. Checklist & Certification'!$B$69)","v":""},{"$f":"IF(A327=\"\",\"\",'1. Checklist & Certification'!$C$69)","v":""},{"$f":"IF(A327=\"\",\"\",'1. Checklist & Certification'!$F$69)","v":""},{"$f":"IF(A327=\"\",\"\",'1. Checklist & Certification'!$G$69)","v":""},{"$f":"IF(A327=\"\",\"\",'1. Checklist & Certification'!$J$69)","v":""},{"$f":"IF(A327=\"\",\"\",'1. Checklist & Certification'!$K$69)","v":""},null,null,{"$f":"IF(AND(OR('1. Checklist & Certification'!$M$16=1,'1. Checklist & Certification'!$M$19=2),AO327>0,B327=\"\",I327>0,AQ327<I327,AV327<>\"Sec 8-Project\"),\"X\",IF(AND(OR('1. Checklist & Certification'!$M$20=4,'1. Checklist & Certification'!$M$21=5,'1. Checklist & Certification'!$M$22=7),AO327>0,B327=\"\",I327>0,K327<I327),\"X\",\"\"))","v":""},{"$f":"IF(A327=\"\",\"\",IF(SUMPRODUCT(-- (ISNUMBER(SEARCH({\"*AHSC*\",\"*FMTW*\",\"*FWHG*\",\"*GHI*\",\"*HHC*\",\"*HLCP*\",\"*HOME*\",\"*LPR*\",\"*MHP*\",\"*NHTF*\",\"*NSP*\",\"*PRP*\",\"*TOD*\",\"*VHHP*\"},'1. Checklist & Certification'!$L$7)))),\"MHP\",\"Legacy\"))","v":""},{"$f":"CONCATENATE(S327,\",\",U327,\",\",W327)","v":",,"},null,null,null,{"$f":"IF('1. Checklist & Certification'!$M$20=4,\"Both\",IF(OR('1. Checklist & Certification'!$M$15>0,S327=\"CHRP-R\",U327=\"CHRP-R\",W327=\"CHRP-R\",Y327=\"CHRP-R\"),\"Under\",\"No\"))","v":"No"},"No","No",{"$f":"_xlfn.IFS(D327=\"\",\"\",D327=1,'MHP Family Income & Rent Limits'!$E$17,D327=2,'MHP Family Income & Rent Limits'!$F$17,D327=3,'MHP Family Income & Rent Limits'!$G$17,D327=4,'MHP Family Income & Rent Limits'!$H$17,D327=5,'MHP Family Income & Rent Limits'!$I$17,D327=6,'MHP Family Income & Rent Limits'!$J$17,D327=7,'MHP Family Income & Rent Limits'!$K$17,D327=8,'MHP Family Income & Rent Limits'!$L$17)","v":""},{"$f":"IF(H327=\"\",\"\",IF(H327<=DC327,0.05,0.1))","v":""},{"$f":"IF(OR(A327=0,B327=\"X\"),0,MIN(IF(AA327:AD327<>0,AA327:AD327)))","v":0},{"$f":"IF(OR(H327=\"\",I327=\"\"),0,IF(H327*0.3/12>I327,MIN(H327*0.3/12,I327*1.1)+AP327,I327*(1+(VLOOKUP('1. Checklist & Certification'!$F$9,'HLCP-E Rent Change'!$A$1:$D$59,4,FALSE)))+AP327))","v":0}]
[null,null,null,null,null,null,null,null,null,null,null,null,null,null,null,null,null,null,null,null,null,null,null,null,null,null,0,0,0,0,0,0,0,0,{"$f":"IF(OR(A328=0,B328=\"X\"),0,IF(OR(S328=\"FHDP\",S328=\"RHCP-B\",U328=\"FHDP\",U328=\"RHCP-B\",W328=\"FHDP\",W328=\"RHCP-B\",Y328=\"FHDP\",Y328=\"RHCP-B\"),TRUNC((MIN(I328,K328)*(1+'1. Checklist & Certification'!$K$43)+AP328)),0))","v":0},{"$f":"IF(OR(A328=0,B328=\"X\"),0,IF(OR(S328=\"CHRP-R\",S328=\"SERA\",S328=\"SUHRP\",U328=\"CHRP-R\",U328=\"SERA\",U328=\"SUHRP\",W328=\"CHRP-R\",W328=\"SERA\",W328=\"SUHRP\",Y328=\"CHRP-R\",Y328=\"SERA\",Y328=\"SUHRP\"),TRUNC((MIN(I328,K328)*(1+'1. Checklist & Certification'!$K$49))),0))","v":0},{"$f":"IF(OR(A328=0,B328=\"X\"),0,IF(OR(S328=\"CALDAP\",S328=\"DPRLP\",U328=\"CALDAP\",U328=\"DPRLP\",W328=\"CALDAP\",W328=\"DPRLP\",Y328=\"CALDAP\",Y328=\"DPRLP\"),TRUNC(((MIN(I328,K328))*(1+'1. Checklist & Certification'!$G$4))),0))","v":0},0,{"$f":"IF(OR(A328=0,B328=\"X\"),0,IF(OR(S328=\"PRP\",S328=\"LPR\",U328=\"PRP\",U328=\"LPR\",W328=\"PRP\",W328=\"LPR\",Y328=\"PRP\",Y328=\"LPR\"),TRUNC(I328*(1+DD328)+AP328),0))","v":0},{"$f":"IF(OR(A328=0,B328=\"X\"),0,IF(OR(S328=\"PRP\",S328=\"LPR\",U328=\"PRP\",U328=\"LPR\",W328=\"PRP\",W328=\"LPR\",Y328=\"PRP\",Y328=\"LPR\"),TRUNC(H328*0.5/12),0))","v":0},{"$f":"IF(OR(A328=0,B328=\"X\"),0,IF(OR(S328=\"PRP\",S328=\"LPR\",U328=\"PRP\",U328=\"LPR\",W328=\"PRP\",W328=\"LPR\",Y328=\"PRP\",Y328=\"LPR\"),MAX(I328+AP328,MIN(IF(AE328:AN328<>0,AE328:AN328))),MIN(IF(AE328:AN328<>0,AE328:AN328))))","v":0},{"$f":"IF(A328=0,0,IF(AND(OR(S328=\"Mgr\",S328=0),OR(U328=\"Mgr\",U328=0),OR(W328=\"Mgr\",W328=0)),0,IF(LEFT($A328,2)=\"B*\",VLOOKUP($E328,'1. Checklist & Certification'!$D$26:$E$32,2),IF(LEFT($A328,2)=\"C*\",VLOOKUP($E328,'1. Checklist & Certification'!$F$26:$G$32,2),IF(LEFT($A328,2)=\"D*\",VLOOKUP($E328,'1. Checklist & Certification'!$H$26:$I$32,2),IF(LEFT($A328,2)=\"E*\",VLOOKUP($E328,'1. Checklist & Certification'!$J$26:$K$32,2),VLOOKUP($E328,'1. Checklist & Certification'!$A$26:$B$32,2)))))))","v":0},0,0,null,null,null,null,"","",0,0,{"$f":"IFERROR((AX328+(AP328*12))/H328,0)","v":0},null,{"$f":"IF(A328=\"\",\"\",'1. Checklist & Certification'!$K$1)","v":""},{"$f":"IF(A328=\"\",\"\",'1. Checklist & Certification'!$C$62)","v":""},{"$f":"IF(A328=\"\",\"\",'1. Checklist & Certification'!$C$6)","v":""},{"$f":"IF(A328=\"\",\"\",'1. Checklist & Certification'!$G$5)","v":""},{"$f":"IFERROR(IF(A328=\"\",\"\",\n_xlfn.LET(_xlpm.Contract,'1. Checklist & Certification'!$C$7,\n_xlpm.Yr,TEXT(MOD(_xlfn.TEXTBEFORE(_xlpm.Contract,\"-\"),100),\"00\"),\n_xlpm.Program,_xlfn.TEXTAFTER(_xlfn.TEXTBEFORE(_xlpm.Contract,\"-\",2),\"-\"),\n_xlpm.CleanProgram,_xlfn.XLOOKUP(_xlpm.Program,SpellCheck[Input],SpellCheck[Correction],_xlpm.Program),\n_xlpm.Number,TEXT(_xlfn.TEXTAFTER(_xlpm.Contract,\"-\",2),\"0000\"),\n_xlfn.CONCAT(_xlpm.Yr,\"-\",_xlpm.CleanProgram,\"-\",_xlpm.Number))\n),\"\")","v":""},{"$f":"IFERROR(IF(A328=\"\",\"\",\n_xlfn.LET(_xlpm.Contract,'1. Checklist & Certification'!$C$8,\n_xlpm.Yr,TEXT(MOD(_xlfn.TEXTBEFORE(_xlpm.Contract,\"-\"),100),\"00\"),\n_xlpm.Program,_xlfn.TEXTAFTER(_xlfn.TEXTBEFORE(_xlpm.Contract,\"-\",2),\"-\"),\n_xlpm.CleanProgram,_xlfn.XLOOKUP(_xlpm.Program,SpellCheck[Input],SpellCheck[Correction],_xlpm.Program),\n_xlpm.Number,TEXT(_xlfn.TEXTAFTER(_xlpm.Contract,\"-\",2),\"0000\"),\n_xlfn.CONCAT(_xlpm.Yr,\"-\",_xlpm.CleanProgram,\"-\",_xlpm.Number))\n),\"\")","v":""},{"$f":"IFERROR(IF(A328=\"\",\"\",\n_xlfn.LET(_xlpm.Contract,'1. Checklist & Certification'!$F$7,\n_xlpm.Yr,TEXT(MOD(_xlfn.TEXTBEFORE(_xlpm.Contract,\"-\"),100),\"00\"),\n_xlpm.Program,_xlfn.TEXTAFTER(_xlfn.TEXTBEFORE(_xlpm.Contract,\"-\",2),\"-\"),\n_xlpm.CleanProgram,_xlfn.XLOOKUP(_xlpm.Program,SpellCheck[Input],SpellCheck[Correction],_xlpm.Program),\n_xlpm.Number,TEXT(_xlfn.TEXTAFTER(_xlpm.Contract,\"-\",2),\"0000\"),\n_xlfn.CONCAT(_xlpm.Yr,\"-\",_xlpm.CleanProgram,\"-\",_xlpm.Number))\n),\"\")","v":""},{"$f":"IFERROR(IF(A328=\"\",\"\",\n_xlfn.LET(_xlpm.Contract,'1. Checklist & Certification'!$F$8,\n_xlpm.Yr,TEXT(MOD(_xlfn.TEXTBEFORE(_xlpm.Contract,\"-\"),100),\"00\"),\n_xlpm.Program,_xlfn.TEXTAFTER(_xlfn.TEXTBEFORE(_xlpm.Contract,\"-\",2),\"-\"),\n_xlpm.CleanProgram,_xlfn.XLOOKUP(_xlpm.Program,SpellCheck[Input],SpellCheck[Correction],_xlpm.Program),\n_xlpm.Number,TEXT(_xlfn.TEXTAFTER(_xlpm.Contract,\"-\",2),\"0000\"),\n_xlfn.CONCAT(_xlpm.Yr,\"-\",_xlpm.CleanProgram,\"-\",_xlpm.Number))\n),\"\")","v":""},{"$f":"IF(A328=\"\",\"\",'1. Checklist & Certification'!$B$9)","v":""},{"$f":"IF(A328=\"\",\"\",'1. Checklist & Certification'!$F$9)","v":""},{"$f":"IF(A328=\"\",\"\",'1. Checklist & Certification'!$C$10)","v":""},{"$f":"IF(A328=\"\",\"\",'1. Checklist & Certification'!$C$11)","v":""},{"$f":"IF(A328=\"\",\"\",'1. Checklist & Certification'!$C$12)","v":""},{"$f":"IF(A328=\"\",\"\",'1. Checklist & Certification'!$B$14)","v":""},{"$f":"IF(A328=\"\",\"\",'1. Checklist & Certification'!$E$14)","v":""},{"$f":"IF(B328=\"\",\"\",'1. Checklist & Certification'!$G$14)","v":""},{"$f":"IF(A328=\"\",\"\",'MHP Family Income & Rent Limits'!$B$3)","v":""},{"$f":"IF(A328=\"\",\"\",'MHP Family Income & Rent Limits'!$J$3)","v":""},{"$f":"IF(A328=\"\",\"\",'MHP Family Income & Rent Limits'!$E$4)","v":""},{"$f":"IF(A328=\"\",\"\",'MHP Family Income & Rent Limits'!$C$7)","v":""},{"$f":"IF(A328=\"\",\"\",'MHP Family Income & Rent Limits'!$F$8)","v":""},{"$f":"IF(A328=\"\",\"\",'1. Checklist & Certification'!$G$4)","v":""},{"$f":"IF(A328=\"\",\"\",'1. Checklist & Certification'!$K$39)","v":""},{"$f":"IF(A328=\"\",\"\",'1. Checklist & Certification'!$K$43)","v":""},{"$f":"IF(A328=\"\",\"\",'1. Checklist & Certification'!$K$45)","v":""},{"$f":"IF(A328=\"\",\"\",'1. Checklist & Certification'!$K$49)","v":""},{"$f":"IF(A328=\"\",\"\",'1. Checklist & Certification'!$K$62)","v":""},{"$f":"IF(A328=\"\",\"\",'1. Checklist & Certification'!$E$66)","v":""},{"$f":"IF(A328=\"\",\"\",'1. Checklist & Certification'!$E$67)","v":""},{"$f":"IF(A328=\"\",\"\",'1. Checklist & Certification'!$E$68)","v":""},{"$f":"IF(A328=\"\",\"\",'1. Checklist & Certification'!$G$66)","v":""},{"$f":"IF(A328=\"\",\"\",'1. Checklist & Certification'!$H$66)","v":""},{"$f":"IF(A328=\"\",\"\",'1. Checklist & Certification'!$I$66)","v":""},{"$f":"IF(A328=\"\",\"\",'1. Checklist & Certification'!$I$67)","v":""},{"$f":"IF(A328=\"\",\"\",'1. Checklist & Certification'!$I$68)","v":""},{"$f":"IF(A328=\"\",\"\",'1. Checklist & Certification'!$B$69)","v":""},{"$f":"IF(A328=\"\",\"\",'1. Checklist & Certification'!$C$69)","v":""},{"$f":"IF(A328=\"\",\"\",'1. Checklist & Certification'!$F$69)","v":""},{"$f":"IF(A328=\"\",\"\",'1. Checklist & Certification'!$G$69)","v":""},{"$f":"IF(A328=\"\",\"\",'1. Checklist & Certification'!$J$69)","v":""},{"$f":"IF(A328=\"\",\"\",'1. Checklist & Certification'!$K$69)","v":""},null,null,{"$f":"IF(AND(OR('1. Checklist & Certification'!$M$16=1,'1. Checklist & Certification'!$M$19=2),AO328>0,B328=\"\",I328>0,AQ328<I328,AV328<>\"Sec 8-Project\"),\"X\",IF(AND(OR('1. Checklist & Certification'!$M$20=4,'1. Checklist & Certification'!$M$21=5,'1. Checklist & Certification'!$M$22=7),AO328>0,B328=\"\",I328>0,K328<I328),\"X\",\"\"))","v":""},{"$f":"IF(A328=\"\",\"\",IF(SUMPRODUCT(-- (ISNUMBER(SEARCH({\"*AHSC*\",\"*FMTW*\",\"*FWHG*\",\"*GHI*\",\"*HHC*\",\"*HLCP*\",\"*HOME*\",\"*LPR*\",\"*MHP*\",\"*NHTF*\",\"*NSP*\",\"*PRP*\",\"*TOD*\",\"*VHHP*\"},'1. Checklist & Certification'!$L$7)))),\"MHP\",\"Legacy\"))","v":""},",,",null,null,null,{"$f":"IF('1. Checklist & Certification'!$M$20=4,\"Both\",IF(OR('1. Checklist & Certification'!$M$15>0,S328=\"CHRP-R\",U328=\"CHRP-R\",W328=\"CHRP-R\",Y328=\"CHRP-R\"),\"Under\",\"No\"))","v":"No"},{"$f":"IF(OR(B328=\"X\",D328=\"Vacant\",D328<1),\"No\",IF(AND(CZ328<>\"No\",D328<VLOOKUP(E328,$CW$7:$CY$13,2)),\"Yes\",\"No\"))","v":"No"},{"$f":"IF(OR(B328=\"X\",D328=\"Vacant\",D328<1),\"No\",IF(AND(CZ328=\"Both\",D328>VLOOKUP(E328,$CW$7:$CY$13,3)),\"Yes\",\"No\"))","v":"No"},{"$f":"_xlfn.IFS(D328=\"\",\"\",D328=1,'MHP Family Income & Rent Limits'!$E$17,D328=2,'MHP Family Income & Rent Limits'!$F$17,D328=3,'MHP Family Income & Rent Limits'!$G$17,D328=4,'MHP Family Income & Rent Limits'!$H$17,D328=5,'MHP Family Income & Rent Limits'!$I$17,D328=6,'MHP Family Income & Rent Limits'!$J$17,D328=7,'MHP Family Income & Rent Limits'!$K$17,D328=8,'MHP Family Income & Rent Limits'!$L$17)","v":""},"",{"$f":"IF(OR(A328=0,B328=\"X\"),0,MIN(IF(AA328:AD328<>0,AA328:AD328)))","v":0},{"$f":"IF(OR(H328=\"\",I328=\"\"),0,IF(H328*0.3/12>I328,MIN(H328*0.3/12,I328*1.1)+AP328,I328*(1+(VLOOKUP('1. Checklist & Certification'!$F$9,'HLCP-E Rent Change'!$A$1:$D$59,4,FALSE)))+AP328))","v":0}]
[null,null,null,null,null,null,null,null,null,null,null,null,null,null,null,null,null,null,null,null,null,null,null,null,null,null,0,0,0,0,0,0,0,0,{"$f":"IF(OR(A329=0,B329=\"X\"),0,IF(OR(S329=\"FHDP\",S329=\"RHCP-B\",U329=\"FHDP\",U329=\"RHCP-B\",W329=\"FHDP\",W329=\"RHCP-B\",Y329=\"FHDP\",Y329=\"RHCP-B\"),TRUNC((MIN(I329,K329)*(1+'1. Checklist & Certification'!$K$43)+AP329)),0))","v":0},{"$f":"IF(OR(A329=0,B329=\"X\"),0,IF(OR(S329=\"CHRP-R\",S329=\"SERA\",S329=\"SUHRP\",U329=\"CHRP-R\",U329=\"SERA\",U329=\"SUHRP\",W329=\"CHRP-R\",W329=\"SERA\",W329=\"SUHRP\",Y329=\"CHRP-R\",Y329=\"SERA\",Y329=\"SUHRP\"),TRUNC((MIN(I329,K329)*(1+'1. Checklist & Certification'!$K$49))),0))","v":0},{"$f":"IF(OR(A329=0,B329=\"X\"),0,IF(OR(S329=\"CALDAP\",S329=\"DPRLP\",U329=\"CALDAP\",U329=\"DPRLP\",W329=\"CALDAP\",W329=\"DPRLP\",Y329=\"CALDAP\",Y329=\"DPRLP\"),TRUNC(((MIN(I329,K329))*(1+'1. Checklist & Certification'!$G$4))),0))","v":0},0,0,0,{"$f":"IF(OR(A329=0,B329=\"X\"),0,IF(OR(S329=\"PRP\",S329=\"LPR\",U329=\"PRP\",U329=\"LPR\",W329=\"PRP\",W329=\"LPR\",Y329=\"PRP\",Y329=\"LPR\"),MAX(I329+AP329,MIN(IF(AE329:AN329<>0,AE329:AN329))),MIN(IF(AE329:AN329<>0,AE329:AN329))))","v":0},{"$f":"IF(A329=0,0,IF(AND(OR(S329=\"Mgr\",S329=0),OR(U329=\"Mgr\",U329=0),OR(W329=\"Mgr\",W329=0)),0,IF(LEFT($A329,2)=\"B*\",VLOOKUP($E329,'1. Checklist & Certification'!$D$26:$E$32,2),IF(LEFT($A329,2)=\"C*\",VLOOKUP($E329,'1. Checklist & Certification'!$F$26:$G$32,2),IF(LEFT($A329,2)=\"D*\",VLOOKUP($E329,'1. Checklist & Certification'!$H$26:$I$32,2),IF(LEFT($A329,2)=\"E*\",VLOOKUP($E329,'1. Checklist & Certification'!$J$26:$K$32,2),VLOOKUP($E329,'1. Checklist & Certification'!$A$26:$B$32,2)))))))","v":0},0,0,null,null,null,null,"","",0,0,0,null,{"$f":"IF(A329=\"\",\"\",'1. Checklist & Certification'!$K$1)","v":""},{"$f":"IF(A329=\"\",\"\",'1. Checklist & Certification'!$C$62)","v":""},{"$f":"IF(A329=\"\",\"\",'1. Checklist & Certification'!$C$6)","v":""},{"$f":"IF(A329=\"\",\"\",'1. Checklist & Certification'!$G$5)","v":""},{"$f":"IFERROR(IF(A329=\"\",\"\",\n_xlfn.LET(_xlpm.Contract,'1. Checklist & Certification'!$C$7,\n_xlpm.Yr,TEXT(MOD(_xlfn.TEXTBEFORE(_xlpm.Contract,\"-\"),100),\"00\"),\n_xlpm.Program,_xlfn.TEXTAFTER(_xlfn.TEXTBEFORE(_xlpm.Contract,\"-\",2),\"-\"),\n_xlpm.CleanProgram,_xlfn.XLOOKUP(_xlpm.Program,SpellCheck[Input],SpellCheck[Correction],_xlpm.Program),\n_xlpm.Number,TEXT(_xlfn.TEXTAFTER(_xlpm.Contract,\"-\",2),\"0000\"),\n_xlfn.CONCAT(_xlpm.Yr,\"-\",_xlpm.CleanProgram,\"-\",_xlpm.Number))\n),\"\")","v":""},{"$f":"IFERROR(IF(A329=\"\",\"\",\n_xlfn.LET(_xlpm.Contract,'1. Checklist & Certification'!$C$8,\n_xlpm.Yr,TEXT(MOD(_xlfn.TEXTBEFORE(_xlpm.Contract,\"-\"),100),\"00\"),\n_xlpm.Program,_xlfn.TEXTAFTER(_xlfn.TEXTBEFORE(_xlpm.Contract,\"-\",2),\"-\"),\n_xlpm.CleanProgram,_xlfn.XLOOKUP(_xlpm.Program,SpellCheck[Input],SpellCheck[Correction],_xlpm.Program),\n_xlpm.Number,TEXT(_xlfn.TEXTAFTER(_xlpm.Contract,\"-\",2),\"0000\"),\n_xlfn.CONCAT(_xlpm.Yr,\"-\",_xlpm.CleanProgram,\"-\",_xlpm.Number))\n),\"\")","v":""},{"$f":"IFERROR(IF(A329=\"\",\"\",\n_xlfn.LET(_xlpm.Contract,'1. Checklist & Certification'!$F$7,\n_xlpm.Yr,TEXT(MOD(_xlfn.TEXTBEFORE(_xlpm.Contract,\"-\"),100),\"00\"),\n_xlpm.Program,_xlfn.TEXTAFTER(_xlfn.TEXTBEFORE(_xlpm.Contract,\"-\",2),\"-\"),\n_xlpm.CleanProgram,_xlfn.XLOOKUP(_xlpm.Program,SpellCheck[Input],SpellCheck[Correction],_xlpm.Program),\n_xlpm.Number,TEXT(_xlfn.TEXTAFTER(_xlpm.Contract,\"-\",2),\"0000\"),\n_xlfn.CONCAT(_xlpm.Yr,\"-\",_xlpm.CleanProgram,\"-\",_xlpm.Number))\n),\"\")","v":""},{"$f":"IFERROR(IF(A329=\"\",\"\",\n_xlfn.LET(_xlpm.Contract,'1. Checklist & Certification'!$F$8,\n_xlpm.Yr,TEXT(MOD(_xlfn.TEXTBEFORE(_xlpm.Contract,\"-\"),100),\"00\"),\n_xlpm.Program,_xlfn.TEXTAFTER(_xlfn.TEXTBEFORE(_xlpm.Contract,\"-\",2),\"-\"),\n_xlpm.CleanProgram,_xlfn.XLOOKUP(_xlpm.Program,SpellCheck[Input],SpellCheck[Correction],_xlpm.Program),\n_xlpm.Number,TEXT(_xlfn.TEXTAFTER(_xlpm.Contract,\"-\",2),\"0000\"),\n_xlfn.CONCAT(_xlpm.Yr,\"-\",_xlpm.CleanProgram,\"-\",_xlpm.Number))\n),\"\")","v":""},{"$f":"IF(A329=\"\",\"\",'1. Checklist & Certification'!$B$9)","v":""},{"$f":"IF(A329=\"\",\"\",'1. Checklist & Certification'!$F$9)","v":""},{"$f":"IF(A329=\"\",\"\",'1. Checklist & Certification'!$C$10)","v":""},{"$f":"IF(A329=\"\",\"\",'1. Checklist & Certification'!$C$11)","v":""},{"$f":"IF(A329=\"\",\"\",'1. Checklist & Certification'!$C$12)","v":""},{"$f":"IF(A329=\"\",\"\",'1. Checklist & Certification'!$B$14)","v":""},{"$f":"IF(A329=\"\",\"\",'1. Checklist & Certification'!$E$14)","v":""},{"$f":"IF(B329=\"\",\"\",'1. Checklist & Certification'!$G$14)","v":""},{"$f":"IF(A329=\"\",\"\",'MHP Family Income & Rent Limits'!$B$3)","v":""},{"$f":"IF(A329=\"\",\"\",'MHP Family Income & Rent Limits'!$J$3)","v":""},{"$f":"IF(A329=\"\",\"\",'MHP Family Income & Rent Limits'!$E$4)","v":""},{"$f":"IF(A329=\"\",\"\",'MHP Family Income & Rent Limits'!$C$7)","v":""},{"$f":"IF(A329=\"\",\"\",'MHP Family Income & Rent Limits'!$F$8)","v":""},{"$f":"IF(A329=\"\",\"\",'1. Checklist & Certification'!$G$4)","v":""},{"$f":"IF(A329=\"\",\"\",'1. Checklist & Certification'!$K$39)","v":""},{"$f":"IF(A329=\"\",\"\",'1. Checklist & Certification'!$K$43)","v":""},{"$f":"IF(A329=\"\",\"\",'1. Checklist & Certification'!$K$45)","v":""},{"$f":"IF(A329=\"\",\"\",'1. Checklist & Certification'!$K$49)","v":""},{"$f":"IF(A329=\"\",\"\",'1. Checklist & Certification'!$K$62)","v":""},{"$f":"IF(A329=\"\",\"\",'1. Checklist & Certification'!$E$66)","v":""},{"$f":"IF(A329=\"\",\"\",'1. Checklist & Certification'!$E$67)","v":""},{"$f":"IF(A329=\"\",\"\",'1. Checklist & Certification'!$E$68)","v":""},{"$f":"IF(A329=\"\",\"\",'1. Checklist & Certification'!$G$66)","v":""},{"$f":"IF(A329=\"\",\"\",'1. Checklist & Certification'!$H$66)","v":""},{"$f":"IF(A329=\"\",\"\",'1. Checklist & Certification'!$I$66)","v":""},{"$f":"IF(A329=\"\",\"\",'1. Checklist & Certification'!$I$67)","v":""},{"$f":"IF(A329=\"\",\"\",'1. Checklist & Certification'!$I$68)","v":""},{"$f":"IF(A329=\"\",\"\",'1. Checklist & Certification'!$B$69)","v":""},{"$f":"IF(A329=\"\",\"\",'1. Checklist & Certification'!$C$69)","v":""},{"$f":"IF(A329=\"\",\"\",'1. Checklist & Certification'!$F$69)","v":""},{"$f":"IF(A329=\"\",\"\",'1. Checklist & Certification'!$G$69)","v":""},{"$f":"IF(A329=\"\",\"\",'1. Checklist & Certification'!$J$69)","v":""},{"$f":"IF(A329=\"\",\"\",'1. Checklist & Certification'!$K$69)","v":""},null,null,{"$f":"IF(AND(OR('1. Checklist & Certification'!$M$16=1,'1. Checklist & Certification'!$M$19=2),AO329>0,B329=\"\",I329>0,AQ329<I329,AV329<>\"Sec 8-Project\"),\"X\",IF(AND(OR('1. Checklist & Certification'!$M$20=4,'1. Checklist & Certification'!$M$21=5,'1. Checklist & Certification'!$M$22=7),AO329>0,B329=\"\",I329>0,K329<I329),\"X\",\"\"))","v":""},{"$f":"IF(A329=\"\",\"\",IF(SUMPRODUCT(-- (ISNUMBER(SEARCH({\"*AHSC*\",\"*FMTW*\",\"*FWHG*\",\"*GHI*\",\"*HHC*\",\"*HLCP*\",\"*HOME*\",\"*LPR*\",\"*MHP*\",\"*NHTF*\",\"*NSP*\",\"*PRP*\",\"*TOD*\",\"*VHHP*\"},'1. Checklist & Certification'!$L$7)))),\"MHP\",\"Legacy\"))","v":""},",,",null,null,null,{"$f":"IF('1. Checklist & Certification'!$M$20=4,\"Both\",IF(OR('1. Checklist & Certification'!$M$15>0,S329=\"CHRP-R\",U329=\"CHRP-R\",W329=\"CHRP-R\",Y329=\"CHRP-R\"),\"Under\",\"No\"))","v":"No"},"No","No",{"$f":"_xlfn.IFS(D329=\"\",\"\",D329=1,'MHP Family Income & Rent Limits'!$E$17,D329=2,'MHP Family Income & Rent Limits'!$F$17,D329=3,'MHP Family Income & Rent Limits'!$G$17,D329=4,'MHP Family Income & Rent Limits'!$H$17,D329=5,'MHP Family Income & Rent Limits'!$I$17,D329=6,'MHP Family Income & Rent Limits'!$J$17,D329=7,'MHP Family Income & Rent Limits'!$K$17,D329=8,'MHP Family Income & Rent Limits'!$L$17)","v":""},"",{"$f":"IF(OR(A329=0,B329=\"X\"),0,MIN(IF(AA329:AD329<>0,AA329:AD329)))","v":0},{"$f":"IF(OR(H329=\"\",I329=\"\"),0,IF(H329*0.3/12>I329,MIN(H329*0.3/12,I329*1.1)+AP329,I329*(1+(VLOOKUP('1. Checklist & Certification'!$F$9,'HLCP-E Rent Change'!$A$1:$D$59,4,FALSE)))+AP329))","v":0}]
[null,null,null,null,null,null,null,null,null,null,null,null,null,null,null,null,null,null,null,null,null,null,null,null,null,null,0,0,0,0,0,0,0,0,{"$f":"IF(OR(A330=0,B330=\"X\"),0,IF(OR(S330=\"FHDP\",S330=\"RHCP-B\",U330=\"FHDP\",U330=\"RHCP-B\",W330=\"FHDP\",W330=\"RHCP-B\",Y330=\"FHDP\",Y330=\"RHCP-B\"),TRUNC((MIN(I330,K330)*(1+'1. Checklist & Certification'!$K$43)+AP330)),0))","v":0},{"$f":"IF(OR(A330=0,B330=\"X\"),0,IF(OR(S330=\"CHRP-R\",S330=\"SERA\",S330=\"SUHRP\",U330=\"CHRP-R\",U330=\"SERA\",U330=\"SUHRP\",W330=\"CHRP-R\",W330=\"SERA\",W330=\"SUHRP\",Y330=\"CHRP-R\",Y330=\"SERA\",Y330=\"SUHRP\"),TRUNC((MIN(I330,K330)*(1+'1. Checklist & Certification'!$K$49))),0))","v":0},{"$f":"IF(OR(A330=0,B330=\"X\"),0,IF(OR(S330=\"CALDAP\",S330=\"DPRLP\",U330=\"CALDAP\",U330=\"DPRLP\",W330=\"CALDAP\",W330=\"DPRLP\",Y330=\"CALDAP\",Y330=\"DPRLP\"),TRUNC(((MIN(I330,K330))*(1+'1. Checklist & Certification'!$G$4))),0))","v":0},0,0,0,{"$f":"IF(OR(A330=0,B330=\"X\"),0,IF(OR(S330=\"PRP\",S330=\"LPR\",U330=\"PRP\",U330=\"LPR\",W330=\"PRP\",W330=\"LPR\",Y330=\"PRP\",Y330=\"LPR\"),MAX(I330+AP330,MIN(IF(AE330:AN330<>0,AE330:AN330))),MIN(IF(AE330:AN330<>0,AE330:AN330))))","v":0},{"$f":"IF(A330=0,0,IF(AND(OR(S330=\"Mgr\",S330=0),OR(U330=\"Mgr\",U330=0),OR(W330=\"Mgr\",W330=0)),0,IF(LEFT($A330,2)=\"B*\",VLOOKUP($E330,'1. Checklist & Certification'!$D$26:$E$32,2),IF(LEFT($A330,2)=\"C*\",VLOOKUP($E330,'1. Checklist & Certification'!$F$26:$G$32,2),IF(LEFT($A330,2)=\"D*\",VLOOKUP($E330,'1. Checklist & Certification'!$H$26:$I$32,2),IF(LEFT($A330,2)=\"E*\",VLOOKUP($E330,'1. Checklist & Certification'!$J$26:$K$32,2),VLOOKUP($E330,'1. Checklist & Certification'!$A$26:$B$32,2)))))))","v":0},0,0,null,null,null,null,"","",0,0,0,null,{"$f":"IF(A330=\"\",\"\",'1. Checklist & Certification'!$K$1)","v":""},{"$f":"IF(A330=\"\",\"\",'1. Checklist & Certification'!$C$62)","v":""},{"$f":"IF(A330=\"\",\"\",'1. Checklist & Certification'!$C$6)","v":""},{"$f":"IF(A330=\"\",\"\",'1. Checklist & Certification'!$G$5)","v":""},{"$f":"IFERROR(IF(A330=\"\",\"\",\n_xlfn.LET(_xlpm.Contract,'1. Checklist & Certification'!$C$7,\n_xlpm.Yr,TEXT(MOD(_xlfn.TEXTBEFORE(_xlpm.Contract,\"-\"),100),\"00\"),\n_xlpm.Program,_xlfn.TEXTAFTER(_xlfn.TEXTBEFORE(_xlpm.Contract,\"-\",2),\"-\"),\n_xlpm.CleanProgram,_xlfn.XLOOKUP(_xlpm.Program,SpellCheck[Input],SpellCheck[Correction],_xlpm.Program),\n_xlpm.Number,TEXT(_xlfn.TEXTAFTER(_xlpm.Contract,\"-\",2),\"0000\"),\n_xlfn.CONCAT(_xlpm.Yr,\"-\",_xlpm.CleanProgram,\"-\",_xlpm.Number))\n),\"\")","v":""},{"$f":"IFERROR(IF(A330=\"\",\"\",\n_xlfn.LET(_xlpm.Contract,'1. Checklist & Certification'!$C$8,\n_xlpm.Yr,TEXT(MOD(_xlfn.TEXTBEFORE(_xlpm.Contract,\"-\"),100),\"00\"),\n_xlpm.Program,_xlfn.TEXTAFTER(_xlfn.TEXTBEFORE(_xlpm.Contract,\"-\",2),\"-\"),\n_xlpm.CleanProgram,_xlfn.XLOOKUP(_xlpm.Program,SpellCheck[Input],SpellCheck[Correction],_xlpm.Program),\n_xlpm.Number,TEXT(_xlfn.TEXTAFTER(_xlpm.Contract,\"-\",2),\"0000\"),\n_xlfn.CONCAT(_xlpm.Yr,\"-\",_xlpm.CleanProgram,\"-\",_xlpm.Number))\n),\"\")","v":""},{"$f":"IFERROR(IF(A330=\"\",\"\",\n_xlfn.LET(_xlpm.Contract,'1. Checklist & Certification'!$F$7,\n_xlpm.Yr,TEXT(MOD(_xlfn.TEXTBEFORE(_xlpm.Contract,\"-\"),100),\"00\"),\n_xlpm.Program,_xlfn.TEXTAFTER(_xlfn.TEXTBEFORE(_xlpm.Contract,\"-\",2),\"-\"),\n_xlpm.CleanProgram,_xlfn.XLOOKUP(_xlpm.Program,SpellCheck[Input],SpellCheck[Correction],_xlpm.Program),\n_xlpm.Number,TEXT(_xlfn.TEXTAFTER(_xlpm.Contract,\"-\",2),\"0000\"),\n_xlfn.CONCAT(_xlpm.Yr,\"-\",_xlpm.CleanProgram,\"-\",_xlpm.Number))\n),\"\")","v":""},{"$f":"IFERROR(IF(A330=\"\",\"\",\n_xlfn.LET(_xlpm.Contract,'1. Checklist & Certification'!$F$8,\n_xlpm.Yr,TEXT(MOD(_xlfn.TEXTBEFORE(_xlpm.Contract,\"-\"),100),\"00\"),\n_xlpm.Program,_xlfn.TEXTAFTER(_xlfn.TEXTBEFORE(_xlpm.Contract,\"-\",2),\"-\"),\n_xlpm.CleanProgram,_xlfn.XLOOKUP(_xlpm.Program,SpellCheck[Input],SpellCheck[Correction],_xlpm.Program),\n_xlpm.Number,TEXT(_xlfn.TEXTAFTER(_xlpm.Contract,\"-\",2),\"0000\"),\n_xlfn.CONCAT(_xlpm.Yr,\"-\",_xlpm.CleanProgram,\"-\",_xlpm.Number))\n),\"\")","v":""},{"$f":"IF(A330=\"\",\"\",'1. Checklist & Certification'!$B$9)","v":""},{"$f":"IF(A330=\"\",\"\",'1. Checklist & Certification'!$F$9)","v":""},{"$f":"IF(A330=\"\",\"\",'1. Checklist & Certification'!$C$10)","v":""},{"$f":"IF(A330=\"\",\"\",'1. Checklist & Certification'!$C$11)","v":""},{"$f":"IF(A330=\"\",\"\",'1. Checklist & Certification'!$C$12)","v":""},{"$f":"IF(A330=\"\",\"\",'1. Checklist & Certification'!$B$14)","v":""},{"$f":"IF(A330=\"\",\"\",'1. Checklist & Certification'!$E$14)","v":""},{"$f":"IF(B330=\"\",\"\",'1. Checklist & Certification'!$G$14)","v":""},{"$f":"IF(A330=\"\",\"\",'MHP Family Income & Rent Limits'!$B$3)","v":""},{"$f":"IF(A330=\"\",\"\",'MHP Family Income & Rent Limits'!$J$3)","v":""},{"$f":"IF(A330=\"\",\"\",'MHP Family Income & Rent Limits'!$E$4)","v":""},{"$f":"IF(A330=\"\",\"\",'MHP Family Income & Rent Limits'!$C$7)","v":""},{"$f":"IF(A330=\"\",\"\",'MHP Family Income & Rent Limits'!$F$8)","v":""},{"$f":"IF(A330=\"\",\"\",'1. Checklist & Certification'!$G$4)","v":""},{"$f":"IF(A330=\"\",\"\",'1. Checklist & Certification'!$K$39)","v":""},{"$f":"IF(A330=\"\",\"\",'1. Checklist & Certification'!$K$43)","v":""},{"$f":"IF(A330=\"\",\"\",'1. Checklist & Certification'!$K$45)","v":""},{"$f":"IF(A330=\"\",\"\",'1. Checklist & Certification'!$K$49)","v":""},{"$f":"IF(A330=\"\",\"\",'1. Checklist & Certification'!$K$62)","v":""},{"$f":"IF(A330=\"\",\"\",'1. Checklist & Certification'!$E$66)","v":""},{"$f":"IF(A330=\"\",\"\",'1. Checklist & Certification'!$E$67)","v":""},{"$f":"IF(A330=\"\",\"\",'1. Checklist & Certification'!$E$68)","v":""},{"$f":"IF(A330=\"\",\"\",'1. Checklist & Certification'!$G$66)","v":""},{"$f":"IF(A330=\"\",\"\",'1. Checklist & Certification'!$H$66)","v":""},{"$f":"IF(A330=\"\",\"\",'1. Checklist & Certification'!$I$66)","v":""},{"$f":"IF(A330=\"\",\"\",'1. Checklist & Certification'!$I$67)","v":""},{"$f":"IF(A330=\"\",\"\",'1. Checklist & Certification'!$I$68)","v":""},{"$f":"IF(A330=\"\",\"\",'1. Checklist & Certification'!$B$69)","v":""},{"$f":"IF(A330=\"\",\"\",'1. Checklist & Certification'!$C$69)","v":""},{"$f":"IF(A330=\"\",\"\",'1. Checklist & Certification'!$F$69)","v":""},{"$f":"IF(A330=\"\",\"\",'1. Checklist & Certification'!$G$69)","v":""},{"$f":"IF(A330=\"\",\"\",'1. Checklist & Certification'!$J$69)","v":""},{"$f":"IF(A330=\"\",\"\",'1. Checklist & Certification'!$K$69)","v":""},null,null,{"$f":"IF(AND(OR('1. Checklist & Certification'!$M$16=1,'1. Checklist & Certification'!$M$19=2),AO330>0,B330=\"\",I330>0,AQ330<I330,AV330<>\"Sec 8-Project\"),\"X\",IF(AND(OR('1. Checklist & Certification'!$M$20=4,'1. Checklist & Certification'!$M$21=5,'1. Checklist & Certification'!$M$22=7),AO330>0,B330=\"\",I330>0,K330<I330),\"X\",\"\"))","v":""},{"$f":"IF(A330=\"\",\"\",IF(SUMPRODUCT(-- (ISNUMBER(SEARCH({\"*AHSC*\",\"*FMTW*\",\"*FWHG*\",\"*GHI*\",\"*HHC*\",\"*HLCP*\",\"*HOME*\",\"*LPR*\",\"*MHP*\",\"*NHTF*\",\"*NSP*\",\"*PRP*\",\"*TOD*\",\"*VHHP*\"},'1. Checklist & Certification'!$L$7)))),\"MHP\",\"Legacy\"))","v":""},",,",null,null,null,{"$f":"IF('1. Checklist & Certification'!$M$20=4,\"Both\",IF(OR('1. Checklist & Certification'!$M$15>0,S330=\"CHRP-R\",U330=\"CHRP-R\",W330=\"CHRP-R\",Y330=\"CHRP-R\"),\"Under\",\"No\"))","v":"No"},"No","No",{"$f":"_xlfn.IFS(D330=\"\",\"\",D330=1,'MHP Family Income & Rent Limits'!$E$17,D330=2,'MHP Family Income & Rent Limits'!$F$17,D330=3,'MHP Family Income & Rent Limits'!$G$17,D330=4,'MHP Family Income & Rent Limits'!$H$17,D330=5,'MHP Family Income & Rent Limits'!$I$17,D330=6,'MHP Family Income & Rent Limits'!$J$17,D330=7,'MHP Family Income & Rent Limits'!$K$17,D330=8,'MHP Family Income & Rent Limits'!$L$17)","v":""},"",{"$f":"IF(OR(A330=0,B330=\"X\"),0,MIN(IF(AA330:AD330<>0,AA330:AD330)))","v":0},{"$f":"IF(OR(H330=\"\",I330=\"\"),0,IF(H330*0.3/12>I330,MIN(H330*0.3/12,I330*1.1)+AP330,I330*(1+(VLOOKUP('1. Checklist & Certification'!$F$9,'HLCP-E Rent Change'!$A$1:$D$59,4,FALSE)))+AP330))","v":0}]
[null,null,null,null,null,null,null,null,null,null,null,null,null,null,null,null,null,null,null,null,null,null,null,null,null,null,0,0,0,0,0,0,0,0,{"$f":"IF(OR(A331=0,B331=\"X\"),0,IF(OR(S331=\"FHDP\",S331=\"RHCP-B\",U331=\"FHDP\",U331=\"RHCP-B\",W331=\"FHDP\",W331=\"RHCP-B\",Y331=\"FHDP\",Y331=\"RHCP-B\"),TRUNC((MIN(I331,K331)*(1+'1. Checklist & Certification'!$K$43)+AP331)),0))","v":0},{"$f":"IF(OR(A331=0,B331=\"X\"),0,IF(OR(S331=\"CHRP-R\",S331=\"SERA\",S331=\"SUHRP\",U331=\"CHRP-R\",U331=\"SERA\",U331=\"SUHRP\",W331=\"CHRP-R\",W331=\"SERA\",W331=\"SUHRP\",Y331=\"CHRP-R\",Y331=\"SERA\",Y331=\"SUHRP\"),TRUNC((MIN(I331,K331)*(1+'1. Checklist & Certification'!$K$49))),0))","v":0},{"$f":"IF(OR(A331=0,B331=\"X\"),0,IF(OR(S331=\"CALDAP\",S331=\"DPRLP\",U331=\"CALDAP\",U331=\"DPRLP\",W331=\"CALDAP\",W331=\"DPRLP\",Y331=\"CALDAP\",Y331=\"DPRLP\"),TRUNC(((MIN(I331,K331))*(1+'1. Checklist & Certification'!$G$4))),0))","v":0},0,0,0,{"$f":"IF(OR(A331=0,B331=\"X\"),0,IF(OR(S331=\"PRP\",S331=\"LPR\",U331=\"PRP\",U331=\"LPR\",W331=\"PRP\",W331=\"LPR\",Y331=\"PRP\",Y331=\"LPR\"),MAX(I331+AP331,MIN(IF(AE331:AN331<>0,AE331:AN331))),MIN(IF(AE331:AN331<>0,AE331:AN331))))","v":0},{"$f":"IF(A331=0,0,IF(AND(OR(S331=\"Mgr\",S331=0),OR(U331=\"Mgr\",U331=0),OR(W331=\"Mgr\",W331=0)),0,IF(LEFT($A331,2)=\"B*\",VLOOKUP($E331,'1. Checklist & Certification'!$D$26:$E$32,2),IF(LEFT($A331,2)=\"C*\",VLOOKUP($E331,'1. Checklist & Certification'!$F$26:$G$32,2),IF(LEFT($A331,2)=\"D*\",VLOOKUP($E331,'1. Checklist & Certification'!$H$26:$I$32,2),IF(LEFT($A331,2)=\"E*\",VLOOKUP($E331,'1. Checklist & Certification'!$J$26:$K$32,2),VLOOKUP($E331,'1. Checklist & Certification'!$A$26:$B$32,2)))))))","v":0},0,0,null,null,null,null,"","",0,0,0,null,{"$f":"IF(A331=\"\",\"\",'1. Checklist & Certification'!$K$1)","v":""},{"$f":"IF(A331=\"\",\"\",'1. Checklist & Certification'!$C$62)","v":""},{"$f":"IF(A331=\"\",\"\",'1. Checklist & Certification'!$C$6)","v":""},{"$f":"IF(A331=\"\",\"\",'1. Checklist & Certification'!$G$5)","v":""},{"$f":"IFERROR(IF(A331=\"\",\"\",\n_xlfn.LET(_xlpm.Contract,'1. Checklist & Certification'!$C$7,\n_xlpm.Yr,TEXT(MOD(_xlfn.TEXTBEFORE(_xlpm.Contract,\"-\"),100),\"00\"),\n_xlpm.Program,_xlfn.TEXTAFTER(_xlfn.TEXTBEFORE(_xlpm.Contract,\"-\",2),\"-\"),\n_xlpm.CleanProgram,_xlfn.XLOOKUP(_xlpm.Program,SpellCheck[Input],SpellCheck[Correction],_xlpm.Program),\n_xlpm.Number,TEXT(_xlfn.TEXTAFTER(_xlpm.Contract,\"-\",2),\"0000\"),\n_xlfn.CONCAT(_xlpm.Yr,\"-\",_xlpm.CleanProgram,\"-\",_xlpm.Number))\n),\"\")","v":""},{"$f":"IFERROR(IF(A331=\"\",\"\",\n_xlfn.LET(_xlpm.Contract,'1. Checklist & Certification'!$C$8,\n_xlpm.Yr,TEXT(MOD(_xlfn.TEXTBEFORE(_xlpm.Contract,\"-\"),100),\"00\"),\n_xlpm.Program,_xlfn.TEXTAFTER(_xlfn.TEXTBEFORE(_xlpm.Contract,\"-\",2),\"-\"),\n_xlpm.CleanProgram,_xlfn.XLOOKUP(_xlpm.Program,SpellCheck[Input],SpellCheck[Correction],_xlpm.Program),\n_xlpm.Number,TEXT(_xlfn.TEXTAFTER(_xlpm.Contract,\"-\",2),\"0000\"),\n_xlfn.CONCAT(_xlpm.Yr,\"-\",_xlpm.CleanProgram,\"-\",_xlpm.Number))\n),\"\")","v":""},{"$f":"IFERROR(IF(A331=\"\",\"\",\n_xlfn.LET(_xlpm.Contract,'1. Checklist & Certification'!$F$7,\n_xlpm.Yr,TEXT(MOD(_xlfn.TEXTBEFORE(_xlpm.Contract,\"-\"),100),\"00\"),\n_xlpm.Program,_xlfn.TEXTAFTER(_xlfn.TEXTBEFORE(_xlpm.Contract,\"-\",2),\"-\"),\n_xlpm.CleanProgram,_xlfn.XLOOKUP(_xlpm.Program,SpellCheck[Input],SpellCheck[Correction],_xlpm.Program),\n_xlpm.Number,TEXT(_xlfn.TEXTAFTER(_xlpm.Contract,\"-\",2),\"0000\"),\n_xlfn.CONCAT(_xlpm.Yr,\"-\",_xlpm.CleanProgram,\"-\",_xlpm.Number))\n),\"\")","v":""},{"$f":"IFERROR(IF(A331=\"\",\"\",\n_xlfn.LET(_xlpm.Contract,'1. Checklist & Certification'!$F$8,\n_xlpm.Yr,TEXT(MOD(_xlfn.TEXTBEFORE(_xlpm.Contract,\"-\"),100),\"00\"),\n_xlpm.Program,_xlfn.TEXTAFTER(_xlfn.TEXTBEFORE(_xlpm.Contract,\"-\",2),\"-\"),\n_xlpm.CleanProgram,_xlfn.XLOOKUP(_xlpm.Program,SpellCheck[Input],SpellCheck[Correction],_xlpm.Program),\n_xlpm.Number,TEXT(_xlfn.TEXTAFTER(_xlpm.Contract,\"-\",2),\"0000\"),\n_xlfn.CONCAT(_xlpm.Yr,\"-\",_xlpm.CleanProgram,\"-\",_xlpm.Number))\n),\"\")","v":""},{"$f":"IF(A331=\"\",\"\",'1. Checklist & Certification'!$B$9)","v":""},{"$f":"IF(A331=\"\",\"\",'1. Checklist & Certification'!$F$9)","v":""},{"$f":"IF(A331=\"\",\"\",'1. Checklist & Certification'!$C$10)","v":""},{"$f":"IF(A331=\"\",\"\",'1. Checklist & Certification'!$C$11)","v":""},{"$f":"IF(A331=\"\",\"\",'1. Checklist & Certification'!$C$12)","v":""},{"$f":"IF(A331=\"\",\"\",'1. Checklist & Certification'!$B$14)","v":""},{"$f":"IF(A331=\"\",\"\",'1. Checklist & Certification'!$E$14)","v":""},{"$f":"IF(B331=\"\",\"\",'1. Checklist & Certification'!$G$14)","v":""},{"$f":"IF(A331=\"\",\"\",'MHP Family Income & Rent Limits'!$B$3)","v":""},{"$f":"IF(A331=\"\",\"\",'MHP Family Income & Rent Limits'!$J$3)","v":""},{"$f":"IF(A331=\"\",\"\",'MHP Family Income & Rent Limits'!$E$4)","v":""},{"$f":"IF(A331=\"\",\"\",'MHP Family Income & Rent Limits'!$C$7)","v":""},{"$f":"IF(A331=\"\",\"\",'MHP Family Income & Rent Limits'!$F$8)","v":""},{"$f":"IF(A331=\"\",\"\",'1. Checklist & Certification'!$G$4)","v":""},{"$f":"IF(A331=\"\",\"\",'1. Checklist & Certification'!$K$39)","v":""},{"$f":"IF(A331=\"\",\"\",'1. Checklist & Certification'!$K$43)","v":""},{"$f":"IF(A331=\"\",\"\",'1. Checklist & Certification'!$K$45)","v":""},{"$f":"IF(A331=\"\",\"\",'1. Checklist & Certification'!$K$49)","v":""},{"$f":"IF(A331=\"\",\"\",'1. Checklist & Certification'!$K$62)","v":""},{"$f":"IF(A331=\"\",\"\",'1. Checklist & Certification'!$E$66)","v":""},{"$f":"IF(A331=\"\",\"\",'1. Checklist & Certification'!$E$67)","v":""},{"$f":"IF(A331=\"\",\"\",'1. Checklist & Certification'!$E$68)","v":""},{"$f":"IF(A331=\"\",\"\",'1. Checklist & Certification'!$G$66)","v":""},{"$f":"IF(A331=\"\",\"\",'1. Checklist & Certification'!$H$66)","v":""},{"$f":"IF(A331=\"\",\"\",'1. Checklist & Certification'!$I$66)","v":""},{"$f":"IF(A331=\"\",\"\",'1. Checklist & Certification'!$I$67)","v":""},{"$f":"IF(A331=\"\",\"\",'1. Checklist & Certification'!$I$68)","v":""},{"$f":"IF(A331=\"\",\"\",'1. Checklist & Certification'!$B$69)","v":""},{"$f":"IF(A331=\"\",\"\",'1. Checklist & Certification'!$C$69)","v":""},{"$f":"IF(A331=\"\",\"\",'1. Checklist & Certification'!$F$69)","v":""},{"$f":"IF(A331=\"\",\"\",'1. Checklist & Certification'!$G$69)","v":""},{"$f":"IF(A331=\"\",\"\",'1. Checklist & Certification'!$J$69)","v":""},{"$f":"IF(A331=\"\",\"\",'1. Checklist & Certification'!$K$69)","v":""},null,null,{"$f":"IF(AND(OR('1. Checklist & Certification'!$M$16=1,'1. Checklist & Certification'!$M$19=2),AO331>0,B331=\"\",I331>0,AQ331<I331,AV331<>\"Sec 8-Project\"),\"X\",IF(AND(OR('1. Checklist & Certification'!$M$20=4,'1. Checklist & Certification'!$M$21=5,'1. Checklist & Certification'!$M$22=7),AO331>0,B331=\"\",I331>0,K331<I331),\"X\",\"\"))","v":""},{"$f":"IF(A331=\"\",\"\",IF(SUMPRODUCT(-- (ISNUMBER(SEARCH({\"*AHSC*\",\"*FMTW*\",\"*FWHG*\",\"*GHI*\",\"*HHC*\",\"*HLCP*\",\"*HOME*\",\"*LPR*\",\"*MHP*\",\"*NHTF*\",\"*NSP*\",\"*PRP*\",\"*TOD*\",\"*VHHP*\"},'1. Checklist & Certification'!$L$7)))),\"MHP\",\"Legacy\"))","v":""},",,",null,null,null,{"$f":"IF('1. Checklist & Certification'!$M$20=4,\"Both\",IF(OR('1. Checklist & Certification'!$M$15>0,S331=\"CHRP-R\",U331=\"CHRP-R\",W331=\"CHRP-R\",Y331=\"CHRP-R\"),\"Under\",\"No\"))","v":"No"},"No","No",{"$f":"_xlfn.IFS(D331=\"\",\"\",D331=1,'MHP Family Income & Rent Limits'!$E$17,D331=2,'MHP Family Income & Rent Limits'!$F$17,D331=3,'MHP Family Income & Rent Limits'!$G$17,D331=4,'MHP Family Income & Rent Limits'!$H$17,D331=5,'MHP Family Income & Rent Limits'!$I$17,D331=6,'MHP Family Income & Rent Limits'!$J$17,D331=7,'MHP Family Income & Rent Limits'!$K$17,D331=8,'MHP Family Income & Rent Limits'!$L$17)","v":""},"",{"$f":"IF(OR(A331=0,B331=\"X\"),0,MIN(IF(AA331:AD331<>0,AA331:AD331)))","v":0},{"$f":"IF(OR(H331=\"\",I331=\"\"),0,IF(H331*0.3/12>I331,MIN(H331*0.3/12,I331*1.1)+AP331,I331*(1+(VLOOKUP('1. Checklist & Certification'!$F$9,'HLCP-E Rent Change'!$A$1:$D$59,4,FALSE)))+AP331))","v":0}]
[null,null,null,null,null,null,null,null,null,null,null,null,null,null,null,null,null,null,null,null,null,null,null,null,null,null,0,0,0,0,0,0,0,0,{"$f":"IF(OR(A332=0,B332=\"X\"),0,IF(OR(S332=\"FHDP\",S332=\"RHCP-B\",U332=\"FHDP\",U332=\"RHCP-B\",W332=\"FHDP\",W332=\"RHCP-B\",Y332=\"FHDP\",Y332=\"RHCP-B\"),TRUNC((MIN(I332,K332)*(1+'1. Checklist & Certification'!$K$43)+AP332)),0))","v":0},{"$f":"IF(OR(A332=0,B332=\"X\"),0,IF(OR(S332=\"CHRP-R\",S332=\"SERA\",S332=\"SUHRP\",U332=\"CHRP-R\",U332=\"SERA\",U332=\"SUHRP\",W332=\"CHRP-R\",W332=\"SERA\",W332=\"SUHRP\",Y332=\"CHRP-R\",Y332=\"SERA\",Y332=\"SUHRP\"),TRUNC((MIN(I332,K332)*(1+'1. Checklist & Certification'!$K$49))),0))","v":0},{"$f":"IF(OR(A332=0,B332=\"X\"),0,IF(OR(S332=\"CALDAP\",S332=\"DPRLP\",U332=\"CALDAP\",U332=\"DPRLP\",W332=\"CALDAP\",W332=\"DPRLP\",Y332=\"CALDAP\",Y332=\"DPRLP\"),TRUNC(((MIN(I332,K332))*(1+'1. Checklist & Certification'!$G$4))),0))","v":0},0,0,0,{"$f":"IF(OR(A332=0,B332=\"X\"),0,IF(OR(S332=\"PRP\",S332=\"LPR\",U332=\"PRP\",U332=\"LPR\",W332=\"PRP\",W332=\"LPR\",Y332=\"PRP\",Y332=\"LPR\"),MAX(I332+AP332,MIN(IF(AE332:AN332<>0,AE332:AN332))),MIN(IF(AE332:AN332<>0,AE332:AN332))))","v":0},{"$f":"IF(A332=0,0,IF(AND(OR(S332=\"Mgr\",S332=0),OR(U332=\"Mgr\",U332=0),OR(W332=\"Mgr\",W332=0)),0,IF(LEFT($A332,2)=\"B*\",VLOOKUP($E332,'1. Checklist & Certification'!$D$26:$E$32,2),IF(LEFT($A332,2)=\"C*\",VLOOKUP($E332,'1. Checklist & Certification'!$F$26:$G$32,2),IF(LEFT($A332,2)=\"D*\",VLOOKUP($E332,'1. Checklist & Certification'!$H$26:$I$32,2),IF(LEFT($A332,2)=\"E*\",VLOOKUP($E332,'1. Checklist & Certification'!$J$26:$K$32,2),VLOOKUP($E332,'1. Checklist & Certification'!$A$26:$B$32,2)))))))","v":0},0,0,null,null,null,null,"","",0,0,0,null,{"$f":"IF(A332=\"\",\"\",'1. Checklist & Certification'!$K$1)","v":""},{"$f":"IF(A332=\"\",\"\",'1. Checklist & Certification'!$C$62)","v":""},{"$f":"IF(A332=\"\",\"\",'1. Checklist & Certification'!$C$6)","v":""},{"$f":"IF(A332=\"\",\"\",'1. Checklist & Certification'!$G$5)","v":""},{"$f":"IFERROR(IF(A332=\"\",\"\",\n_xlfn.LET(_xlpm.Contract,'1. Checklist & Certification'!$C$7,\n_xlpm.Yr,TEXT(MOD(_xlfn.TEXTBEFORE(_xlpm.Contract,\"-\"),100),\"00\"),\n_xlpm.Program,_xlfn.TEXTAFTER(_xlfn.TEXTBEFORE(_xlpm.Contract,\"-\",2),\"-\"),\n_xlpm.CleanProgram,_xlfn.XLOOKUP(_xlpm.Program,SpellCheck[Input],SpellCheck[Correction],_xlpm.Program),\n_xlpm.Number,TEXT(_xlfn.TEXTAFTER(_xlpm.Contract,\"-\",2),\"0000\"),\n_xlfn.CONCAT(_xlpm.Yr,\"-\",_xlpm.CleanProgram,\"-\",_xlpm.Number))\n),\"\")","v":""},{"$f":"IFERROR(IF(A332=\"\",\"\",\n_xlfn.LET(_xlpm.Contract,'1. Checklist & Certification'!$C$8,\n_xlpm.Yr,TEXT(MOD(_xlfn.TEXTBEFORE(_xlpm.Contract,\"-\"),100),\"00\"),\n_xlpm.Program,_xlfn.TEXTAFTER(_xlfn.TEXTBEFORE(_xlpm.Contract,\"-\",2),\"-\"),\n_xlpm.CleanProgram,_xlfn.XLOOKUP(_xlpm.Program,SpellCheck[Input],SpellCheck[Correction],_xlpm.Program),\n_xlpm.Number,TEXT(_xlfn.TEXTAFTER(_xlpm.Contract,\"-\",2),\"0000\"),\n_xlfn.CONCAT(_xlpm.Yr,\"-\",_xlpm.CleanProgram,\"-\",_xlpm.Number))\n),\"\")","v":""},{"$f":"IFERROR(IF(A332=\"\",\"\",\n_xlfn.LET(_xlpm.Contract,'1. Checklist & Certification'!$F$7,\n_xlpm.Yr,TEXT(MOD(_xlfn.TEXTBEFORE(_xlpm.Contract,\"-\"),100),\"00\"),\n_xlpm.Program,_xlfn.TEXTAFTER(_xlfn.TEXTBEFORE(_xlpm.Contract,\"-\",2),\"-\"),\n_xlpm.CleanProgram,_xlfn.XLOOKUP(_xlpm.Program,SpellCheck[Input],SpellCheck[Correction],_xlpm.Program),\n_xlpm.Number,TEXT(_xlfn.TEXTAFTER(_xlpm.Contract,\"-\",2),\"0000\"),\n_xlfn.CONCAT(_xlpm.Yr,\"-\",_xlpm.CleanProgram,\"-\",_xlpm.Number))\n),\"\")","v":""},{"$f":"IFERROR(IF(A332=\"\",\"\",\n_xlfn.LET(_xlpm.Contract,'1. Checklist & Certification'!$F$8,\n_xlpm.Yr,TEXT(MOD(_xlfn.TEXTBEFORE(_xlpm.Contract,\"-\"),100),\"00\"),\n_xlpm.Program,_xlfn.TEXTAFTER(_xlfn.TEXTBEFORE(_xlpm.Contract,\"-\",2),\"-\"),\n_xlpm.CleanProgram,_xlfn.XLOOKUP(_xlpm.Program,SpellCheck[Input],SpellCheck[Correction],_xlpm.Program),\n_xlpm.Number,TEXT(_xlfn.TEXTAFTER(_xlpm.Contract,\"-\",2),\"0000\"),\n_xlfn.CONCAT(_xlpm.Yr,\"-\",_xlpm.CleanProgram,\"-\",_xlpm.Number))\n),\"\")","v":""},{"$f":"IF(A332=\"\",\"\",'1. Checklist & Certification'!$B$9)","v":""},{"$f":"IF(A332=\"\",\"\",'1. Checklist & Certification'!$F$9)","v":""},{"$f":"IF(A332=\"\",\"\",'1. Checklist & Certification'!$C$10)","v":""},{"$f":"IF(A332=\"\",\"\",'1. Checklist & Certification'!$C$11)","v":""},{"$f":"IF(A332=\"\",\"\",'1. Checklist & Certification'!$C$12)","v":""},{"$f":"IF(A332=\"\",\"\",'1. Checklist & Certification'!$B$14)","v":""},{"$f":"IF(A332=\"\",\"\",'1. Checklist & Certification'!$E$14)","v":""},{"$f":"IF(B332=\"\",\"\",'1. Checklist & Certification'!$G$14)","v":""},{"$f":"IF(A332=\"\",\"\",'MHP Family Income & Rent Limits'!$B$3)","v":""},{"$f":"IF(A332=\"\",\"\",'MHP Family Income & Rent Limits'!$J$3)","v":""},{"$f":"IF(A332=\"\",\"\",'MHP Family Income & Rent Limits'!$E$4)","v":""},{"$f":"IF(A332=\"\",\"\",'MHP Family Income & Rent Limits'!$C$7)","v":""},{"$f":"IF(A332=\"\",\"\",'MHP Family Income & Rent Limits'!$F$8)","v":""},{"$f":"IF(A332=\"\",\"\",'1. Checklist & Certification'!$G$4)","v":""},{"$f":"IF(A332=\"\",\"\",'1. Checklist & Certification'!$K$39)","v":""},{"$f":"IF(A332=\"\",\"\",'1. Checklist & Certification'!$K$43)","v":""},{"$f":"IF(A332=\"\",\"\",'1. Checklist & Certification'!$K$45)","v":""},{"$f":"IF(A332=\"\",\"\",'1. Checklist & Certification'!$K$49)","v":""},{"$f":"IF(A332=\"\",\"\",'1. Checklist & Certification'!$K$62)","v":""},{"$f":"IF(A332=\"\",\"\",'1. Checklist & Certification'!$E$66)","v":""},{"$f":"IF(A332=\"\",\"\",'1. Checklist & Certification'!$E$67)","v":""},{"$f":"IF(A332=\"\",\"\",'1. Checklist & Certification'!$E$68)","v":""},{"$f":"IF(A332=\"\",\"\",'1. Checklist & Certification'!$G$66)","v":""},{"$f":"IF(A332=\"\",\"\",'1. Checklist & Certification'!$H$66)","v":""},{"$f":"IF(A332=\"\",\"\",'1. Checklist & Certification'!$I$66)","v":""},{"$f":"IF(A332=\"\",\"\",'1. Checklist & Certification'!$I$67)","v":""},{"$f":"IF(A332=\"\",\"\",'1. Checklist & Certification'!$I$68)","v":""},{"$f":"IF(A332=\"\",\"\",'1. Checklist & Certification'!$B$69)","v":""},{"$f":"IF(A332=\"\",\"\",'1. Checklist & Certification'!$C$69)","v":""},{"$f":"IF(A332=\"\",\"\",'1. Checklist & Certification'!$F$69)","v":""},{"$f":"IF(A332=\"\",\"\",'1. Checklist & Certification'!$G$69)","v":""},{"$f":"IF(A332=\"\",\"\",'1. Checklist & Certification'!$J$69)","v":""},{"$f":"IF(A332=\"\",\"\",'1. Checklist & Certification'!$K$69)","v":""},null,null,{"$f":"IF(AND(OR('1. Checklist & Certification'!$M$16=1,'1. Checklist & Certification'!$M$19=2),AO332>0,B332=\"\",I332>0,AQ332<I332,AV332<>\"Sec 8-Project\"),\"X\",IF(AND(OR('1. Checklist & Certification'!$M$20=4,'1. Checklist & Certification'!$M$21=5,'1. Checklist & Certification'!$M$22=7),AO332>0,B332=\"\",I332>0,K332<I332),\"X\",\"\"))","v":""},{"$f":"IF(A332=\"\",\"\",IF(SUMPRODUCT(-- (ISNUMBER(SEARCH({\"*AHSC*\",\"*FMTW*\",\"*FWHG*\",\"*GHI*\",\"*HHC*\",\"*HLCP*\",\"*HOME*\",\"*LPR*\",\"*MHP*\",\"*NHTF*\",\"*NSP*\",\"*PRP*\",\"*TOD*\",\"*VHHP*\"},'1. Checklist & Certification'!$L$7)))),\"MHP\",\"Legacy\"))","v":""},",,",null,null,null,{"$f":"IF('1. Checklist & Certification'!$M$20=4,\"Both\",IF(OR('1. Checklist & Certification'!$M$15>0,S332=\"CHRP-R\",U332=\"CHRP-R\",W332=\"CHRP-R\",Y332=\"CHRP-R\"),\"Under\",\"No\"))","v":"No"},"No","No",{"$f":"_xlfn.IFS(D332=\"\",\"\",D332=1,'MHP Family Income & Rent Limits'!$E$17,D332=2,'MHP Family Income & Rent Limits'!$F$17,D332=3,'MHP Family Income & Rent Limits'!$G$17,D332=4,'MHP Family Income & Rent Limits'!$H$17,D332=5,'MHP Family Income & Rent Limits'!$I$17,D332=6,'MHP Family Income & Rent Limits'!$J$17,D332=7,'MHP Family Income & Rent Limits'!$K$17,D332=8,'MHP Family Income & Rent Limits'!$L$17)","v":""},"",{"$f":"IF(OR(A332=0,B332=\"X\"),0,MIN(IF(AA332:AD332<>0,AA332:AD332)))","v":0},{"$f":"IF(OR(H332=\"\",I332=\"\"),0,IF(H332*0.3/12>I332,MIN(H332*0.3/12,I332*1.1)+AP332,I332*(1+(VLOOKUP('1. Checklist & Certification'!$F$9,'HLCP-E Rent Change'!$A$1:$D$59,4,FALSE)))+AP332))","v":0}]
[null,null,null,null,null,null,null,null,null,null,null,null,null,null,null,null,null,null,null,null,null,null,null,null,null,null,0,0,0,0,0,0,0,0,{"$f":"IF(OR(A333=0,B333=\"X\"),0,IF(OR(S333=\"FHDP\",S333=\"RHCP-B\",U333=\"FHDP\",U333=\"RHCP-B\",W333=\"FHDP\",W333=\"RHCP-B\",Y333=\"FHDP\",Y333=\"RHCP-B\"),TRUNC((MIN(I333,K333)*(1+'1. Checklist & Certification'!$K$43)+AP333)),0))","v":0},{"$f":"IF(OR(A333=0,B333=\"X\"),0,IF(OR(S333=\"CHRP-R\",S333=\"SERA\",S333=\"SUHRP\",U333=\"CHRP-R\",U333=\"SERA\",U333=\"SUHRP\",W333=\"CHRP-R\",W333=\"SERA\",W333=\"SUHRP\",Y333=\"CHRP-R\",Y333=\"SERA\",Y333=\"SUHRP\"),TRUNC((MIN(I333,K333)*(1+'1. Checklist & Certification'!$K$49))),0))","v":0},{"$f":"IF(OR(A333=0,B333=\"X\"),0,IF(OR(S333=\"CALDAP\",S333=\"DPRLP\",U333=\"CALDAP\",U333=\"DPRLP\",W333=\"CALDAP\",W333=\"DPRLP\",Y333=\"CALDAP\",Y333=\"DPRLP\"),TRUNC(((MIN(I333,K333))*(1+'1. Checklist & Certification'!$G$4))),0))","v":0},0,0,0,{"$f":"IF(OR(A333=0,B333=\"X\"),0,IF(OR(S333=\"PRP\",S333=\"LPR\",U333=\"PRP\",U333=\"LPR\",W333=\"PRP\",W333=\"LPR\",Y333=\"PRP\",Y333=\"LPR\"),MAX(I333+AP333,MIN(IF(AE333:AN333<>0,AE333:AN333))),MIN(IF(AE333:AN333<>0,AE333:AN333))))","v":0},{"$f":"IF(A333=0,0,IF(AND(OR(S333=\"Mgr\",S333=0),OR(U333=\"Mgr\",U333=0),OR(W333=\"Mgr\",W333=0)),0,IF(LEFT($A333,2)=\"B*\",VLOOKUP($E333,'1. Checklist & Certification'!$D$26:$E$32,2),IF(LEFT($A333,2)=\"C*\",VLOOKUP($E333,'1. Checklist & Certification'!$F$26:$G$32,2),IF(LEFT($A333,2)=\"D*\",VLOOKUP($E333,'1. Checklist & Certification'!$H$26:$I$32,2),IF(LEFT($A333,2)=\"E*\",VLOOKUP($E333,'1. Checklist & Certification'!$J$26:$K$32,2),VLOOKUP($E333,'1. Checklist & Certification'!$A$26:$B$32,2)))))))","v":0},0,0,null,null,null,null,"","",0,0,0,null,{"$f":"IF(A333=\"\",\"\",'1. Checklist & Certification'!$K$1)","v":""},{"$f":"IF(A333=\"\",\"\",'1. Checklist & Certification'!$C$62)","v":""},{"$f":"IF(A333=\"\",\"\",'1. Checklist & Certification'!$C$6)","v":""},{"$f":"IF(A333=\"\",\"\",'1. Checklist & Certification'!$G$5)","v":""},{"$f":"IFERROR(IF(A333=\"\",\"\",\n_xlfn.LET(_xlpm.Contract,'1. Checklist & Certification'!$C$7,\n_xlpm.Yr,TEXT(MOD(_xlfn.TEXTBEFORE(_xlpm.Contract,\"-\"),100),\"00\"),\n_xlpm.Program,_xlfn.TEXTAFTER(_xlfn.TEXTBEFORE(_xlpm.Contract,\"-\",2),\"-\"),\n_xlpm.CleanProgram,_xlfn.XLOOKUP(_xlpm.Program,SpellCheck[Input],SpellCheck[Correction],_xlpm.Program),\n_xlpm.Number,TEXT(_xlfn.TEXTAFTER(_xlpm.Contract,\"-\",2),\"0000\"),\n_xlfn.CONCAT(_xlpm.Yr,\"-\",_xlpm.CleanProgram,\"-\",_xlpm.Number))\n),\"\")","v":""},{"$f":"IFERROR(IF(A333=\"\",\"\",\n_xlfn.LET(_xlpm.Contract,'1. Checklist & Certification'!$C$8,\n_xlpm.Yr,TEXT(MOD(_xlfn.TEXTBEFORE(_xlpm.Contract,\"-\"),100),\"00\"),\n_xlpm.Program,_xlfn.TEXTAFTER(_xlfn.TEXTBEFORE(_xlpm.Contract,\"-\",2),\"-\"),\n_xlpm.CleanProgram,_xlfn.XLOOKUP(_xlpm.Program,SpellCheck[Input],SpellCheck[Correction],_xlpm.Program),\n_xlpm.Number,TEXT(_xlfn.TEXTAFTER(_xlpm.Contract,\"-\",2),\"0000\"),\n_xlfn.CONCAT(_xlpm.Yr,\"-\",_xlpm.CleanProgram,\"-\",_xlpm.Number))\n),\"\")","v":""},{"$f":"IFERROR(IF(A333=\"\",\"\",\n_xlfn.LET(_xlpm.Contract,'1. Checklist & Certification'!$F$7,\n_xlpm.Yr,TEXT(MOD(_xlfn.TEXTBEFORE(_xlpm.Contract,\"-\"),100),\"00\"),\n_xlpm.Program,_xlfn.TEXTAFTER(_xlfn.TEXTBEFORE(_xlpm.Contract,\"-\",2),\"-\"),\n_xlpm.CleanProgram,_xlfn.XLOOKUP(_xlpm.Program,SpellCheck[Input],SpellCheck[Correction],_xlpm.Program),\n_xlpm.Number,TEXT(_xlfn.TEXTAFTER(_xlpm.Contract,\"-\",2),\"0000\"),\n_xlfn.CONCAT(_xlpm.Yr,\"-\",_xlpm.CleanProgram,\"-\",_xlpm.Number))\n),\"\")","v":""},{"$f":"IFERROR(IF(A333=\"\",\"\",\n_xlfn.LET(_xlpm.Contract,'1. Checklist & Certification'!$F$8,\n_xlpm.Yr,TEXT(MOD(_xlfn.TEXTBEFORE(_xlpm.Contract,\"-\"),100),\"00\"),\n_xlpm.Program,_xlfn.TEXTAFTER(_xlfn.TEXTBEFORE(_xlpm.Contract,\"-\",2),\"-\"),\n_xlpm.CleanProgram,_xlfn.XLOOKUP(_xlpm.Program,SpellCheck[Input],SpellCheck[Correction],_xlpm.Program),\n_xlpm.Number,TEXT(_xlfn.TEXTAFTER(_xlpm.Contract,\"-\",2),\"0000\"),\n_xlfn.CONCAT(_xlpm.Yr,\"-\",_xlpm.CleanProgram,\"-\",_xlpm.Number))\n),\"\")","v":""},{"$f":"IF(A333=\"\",\"\",'1. Checklist & Certification'!$B$9)","v":""},{"$f":"IF(A333=\"\",\"\",'1. Checklist & Certification'!$F$9)","v":""},{"$f":"IF(A333=\"\",\"\",'1. Checklist & Certification'!$C$10)","v":""},{"$f":"IF(A333=\"\",\"\",'1. Checklist & Certification'!$C$11)","v":""},{"$f":"IF(A333=\"\",\"\",'1. Checklist & Certification'!$C$12)","v":""},{"$f":"IF(A333=\"\",\"\",'1. Checklist & Certification'!$B$14)","v":""},{"$f":"IF(A333=\"\",\"\",'1. Checklist & Certification'!$E$14)","v":""},{"$f":"IF(B333=\"\",\"\",'1. Checklist & Certification'!$G$14)","v":""},{"$f":"IF(A333=\"\",\"\",'MHP Family Income & Rent Limits'!$B$3)","v":""},{"$f":"IF(A333=\"\",\"\",'MHP Family Income & Rent Limits'!$J$3)","v":""},{"$f":"IF(A333=\"\",\"\",'MHP Family Income & Rent Limits'!$E$4)","v":""},{"$f":"IF(A333=\"\",\"\",'MHP Family Income & Rent Limits'!$C$7)","v":""},{"$f":"IF(A333=\"\",\"\",'MHP Family Income & Rent Limits'!$F$8)","v":""},{"$f":"IF(A333=\"\",\"\",'1. Checklist & Certification'!$G$4)","v":""},{"$f":"IF(A333=\"\",\"\",'1. Checklist & Certification'!$K$39)","v":""},{"$f":"IF(A333=\"\",\"\",'1. Checklist & Certification'!$K$43)","v":""},{"$f":"IF(A333=\"\",\"\",'1. Checklist & Certification'!$K$45)","v":""},{"$f":"IF(A333=\"\",\"\",'1. Checklist & Certification'!$K$49)","v":""},{"$f":"IF(A333=\"\",\"\",'1. Checklist & Certification'!$K$62)","v":""},{"$f":"IF(A333=\"\",\"\",'1. Checklist & Certification'!$E$66)","v":""},{"$f":"IF(A333=\"\",\"\",'1. Checklist & Certification'!$E$67)","v":""},{"$f":"IF(A333=\"\",\"\",'1. Checklist & Certification'!$E$68)","v":""},{"$f":"IF(A333=\"\",\"\",'1. Checklist & Certification'!$G$66)","v":""},{"$f":"IF(A333=\"\",\"\",'1. Checklist & Certification'!$H$66)","v":""},{"$f":"IF(A333=\"\",\"\",'1. Checklist & Certification'!$I$66)","v":""},{"$f":"IF(A333=\"\",\"\",'1. Checklist & Certification'!$I$67)","v":""},{"$f":"IF(A333=\"\",\"\",'1. Checklist & Certification'!$I$68)","v":""},{"$f":"IF(A333=\"\",\"\",'1. Checklist & Certification'!$B$69)","v":""},{"$f":"IF(A333=\"\",\"\",'1. Checklist & Certification'!$C$69)","v":""},{"$f":"IF(A333=\"\",\"\",'1. Checklist & Certification'!$F$69)","v":""},{"$f":"IF(A333=\"\",\"\",'1. Checklist & Certification'!$G$69)","v":""},{"$f":"IF(A333=\"\",\"\",'1. Checklist & Certification'!$J$69)","v":""},{"$f":"IF(A333=\"\",\"\",'1. Checklist & Certification'!$K$69)","v":""},null,null,{"$f":"IF(AND(OR('1. Checklist & Certification'!$M$16=1,'1. Checklist & Certification'!$M$19=2),AO333>0,B333=\"\",I333>0,AQ333<I333,AV333<>\"Sec 8-Project\"),\"X\",IF(AND(OR('1. Checklist & Certification'!$M$20=4,'1. Checklist & Certification'!$M$21=5,'1. Checklist & Certification'!$M$22=7),AO333>0,B333=\"\",I333>0,K333<I333),\"X\",\"\"))","v":""},{"$f":"IF(A333=\"\",\"\",IF(SUMPRODUCT(-- (ISNUMBER(SEARCH({\"*AHSC*\",\"*FMTW*\",\"*FWHG*\",\"*GHI*\",\"*HHC*\",\"*HLCP*\",\"*HOME*\",\"*LPR*\",\"*MHP*\",\"*NHTF*\",\"*NSP*\",\"*PRP*\",\"*TOD*\",\"*VHHP*\"},'1. Checklist & Certification'!$L$7)))),\"MHP\",\"Legacy\"))","v":""},",,",null,null,null,{"$f":"IF('1. Checklist & Certification'!$M$20=4,\"Both\",IF(OR('1. Checklist & Certification'!$M$15>0,S333=\"CHRP-R\",U333=\"CHRP-R\",W333=\"CHRP-R\",Y333=\"CHRP-R\"),\"Under\",\"No\"))","v":"No"},"No","No",{"$f":"_xlfn.IFS(D333=\"\",\"\",D333=1,'MHP Family Income & Rent Limits'!$E$17,D333=2,'MHP Family Income & Rent Limits'!$F$17,D333=3,'MHP Family Income & Rent Limits'!$G$17,D333=4,'MHP Family Income & Rent Limits'!$H$17,D333=5,'MHP Family Income & Rent Limits'!$I$17,D333=6,'MHP Family Income & Rent Limits'!$J$17,D333=7,'MHP Family Income & Rent Limits'!$K$17,D333=8,'MHP Family Income & Rent Limits'!$L$17)","v":""},"",{"$f":"IF(OR(A333=0,B333=\"X\"),0,MIN(IF(AA333:AD333<>0,AA333:AD333)))","v":0},{"$f":"IF(OR(H333=\"\",I333=\"\"),0,IF(H333*0.3/12>I333,MIN(H333*0.3/12,I333*1.1)+AP333,I333*(1+(VLOOKUP('1. Checklist & Certification'!$F$9,'HLCP-E Rent Change'!$A$1:$D$59,4,FALSE)))+AP333))","v":0}]
[null,null,null,null,null,null,null,null,null,null,null,null,null,null,null,null,null,null,null,null,null,null,null,null,null,null,0,0,0,0,0,0,0,0,{"$f":"IF(OR(A334=0,B334=\"X\"),0,IF(OR(S334=\"FHDP\",S334=\"RHCP-B\",U334=\"FHDP\",U334=\"RHCP-B\",W334=\"FHDP\",W334=\"RHCP-B\",Y334=\"FHDP\",Y334=\"RHCP-B\"),TRUNC((MIN(I334,K334)*(1+'1. Checklist & Certification'!$K$43)+AP334)),0))","v":0},{"$f":"IF(OR(A334=0,B334=\"X\"),0,IF(OR(S334=\"CHRP-R\",S334=\"SERA\",S334=\"SUHRP\",U334=\"CHRP-R\",U334=\"SERA\",U334=\"SUHRP\",W334=\"CHRP-R\",W334=\"SERA\",W334=\"SUHRP\",Y334=\"CHRP-R\",Y334=\"SERA\",Y334=\"SUHRP\"),TRUNC((MIN(I334,K334)*(1+'1. Checklist & Certification'!$K$49))),0))","v":0},{"$f":"IF(OR(A334=0,B334=\"X\"),0,IF(OR(S334=\"CALDAP\",S334=\"DPRLP\",U334=\"CALDAP\",U334=\"DPRLP\",W334=\"CALDAP\",W334=\"DPRLP\",Y334=\"CALDAP\",Y334=\"DPRLP\"),TRUNC(((MIN(I334,K334))*(1+'1. Checklist & Certification'!$G$4))),0))","v":0},0,0,0,{"$f":"IF(OR(A334=0,B334=\"X\"),0,IF(OR(S334=\"PRP\",S334=\"LPR\",U334=\"PRP\",U334=\"LPR\",W334=\"PRP\",W334=\"LPR\",Y334=\"PRP\",Y334=\"LPR\"),MAX(I334+AP334,MIN(IF(AE334:AN334<>0,AE334:AN334))),MIN(IF(AE334:AN334<>0,AE334:AN334))))","v":0},{"$f":"IF(A334=0,0,IF(AND(OR(S334=\"Mgr\",S334=0),OR(U334=\"Mgr\",U334=0),OR(W334=\"Mgr\",W334=0)),0,IF(LEFT($A334,2)=\"B*\",VLOOKUP($E334,'1. Checklist & Certification'!$D$26:$E$32,2),IF(LEFT($A334,2)=\"C*\",VLOOKUP($E334,'1. Checklist & Certification'!$F$26:$G$32,2),IF(LEFT($A334,2)=\"D*\",VLOOKUP($E334,'1. Checklist & Certification'!$H$26:$I$32,2),IF(LEFT($A334,2)=\"E*\",VLOOKUP($E334,'1. Checklist & Certification'!$J$26:$K$32,2),VLOOKUP($E334,'1. Checklist & Certification'!$A$26:$B$32,2)))))))","v":0},0,0,null,null,null,null,"","",0,0,0,null,{"$f":"IF(A334=\"\",\"\",'1. Checklist & Certification'!$K$1)","v":""},{"$f":"IF(A334=\"\",\"\",'1. Checklist & Certification'!$C$62)","v":""},{"$f":"IF(A334=\"\",\"\",'1. Checklist & Certification'!$C$6)","v":""},{"$f":"IF(A334=\"\",\"\",'1. Checklist & Certification'!$G$5)","v":""},{"$f":"IFERROR(IF(A334=\"\",\"\",\n_xlfn.LET(_xlpm.Contract,'1. Checklist & Certification'!$C$7,\n_xlpm.Yr,TEXT(MOD(_xlfn.TEXTBEFORE(_xlpm.Contract,\"-\"),100),\"00\"),\n_xlpm.Program,_xlfn.TEXTAFTER(_xlfn.TEXTBEFORE(_xlpm.Contract,\"-\",2),\"-\"),\n_xlpm.CleanProgram,_xlfn.XLOOKUP(_xlpm.Program,SpellCheck[Input],SpellCheck[Correction],_xlpm.Program),\n_xlpm.Number,TEXT(_xlfn.TEXTAFTER(_xlpm.Contract,\"-\",2),\"0000\"),\n_xlfn.CONCAT(_xlpm.Yr,\"-\",_xlpm.CleanProgram,\"-\",_xlpm.Number))\n),\"\")","v":""},{"$f":"IFERROR(IF(A334=\"\",\"\",\n_xlfn.LET(_xlpm.Contract,'1. Checklist & Certification'!$C$8,\n_xlpm.Yr,TEXT(MOD(_xlfn.TEXTBEFORE(_xlpm.Contract,\"-\"),100),\"00\"),\n_xlpm.Program,_xlfn.TEXTAFTER(_xlfn.TEXTBEFORE(_xlpm.Contract,\"-\",2),\"-\"),\n_xlpm.CleanProgram,_xlfn.XLOOKUP(_xlpm.Program,SpellCheck[Input],SpellCheck[Correction],_xlpm.Program),\n_xlpm.Number,TEXT(_xlfn.TEXTAFTER(_xlpm.Contract,\"-\",2),\"0000\"),\n_xlfn.CONCAT(_xlpm.Yr,\"-\",_xlpm.CleanProgram,\"-\",_xlpm.Number))\n),\"\")","v":""},{"$f":"IFERROR(IF(A334=\"\",\"\",\n_xlfn.LET(_xlpm.Contract,'1. Checklist & Certification'!$F$7,\n_xlpm.Yr,TEXT(MOD(_xlfn.TEXTBEFORE(_xlpm.Contract,\"-\"),100),\"00\"),\n_xlpm.Program,_xlfn.TEXTAFTER(_xlfn.TEXTBEFORE(_xlpm.Contract,\"-\",2),\"-\"),\n_xlpm.CleanProgram,_xlfn.XLOOKUP(_xlpm.Program,SpellCheck[Input],SpellCheck[Correction],_xlpm.Program),\n_xlpm.Number,TEXT(_xlfn.TEXTAFTER(_xlpm.Contract,\"-\",2),\"0000\"),\n_xlfn.CONCAT(_xlpm.Yr,\"-\",_xlpm.CleanProgram,\"-\",_xlpm.Number))\n),\"\")","v":""},{"$f":"IFERROR(IF(A334=\"\",\"\",\n_xlfn.LET(_xlpm.Contract,'1. Checklist & Certification'!$F$8,\n_xlpm.Yr,TEXT(MOD(_xlfn.TEXTBEFORE(_xlpm.Contract,\"-\"),100),\"00\"),\n_xlpm.Program,_xlfn.TEXTAFTER(_xlfn.TEXTBEFORE(_xlpm.Contract,\"-\",2),\"-\"),\n_xlpm.CleanProgram,_xlfn.XLOOKUP(_xlpm.Program,SpellCheck[Input],SpellCheck[Correction],_xlpm.Program),\n_xlpm.Number,TEXT(_xlfn.TEXTAFTER(_xlpm.Contract,\"-\",2),\"0000\"),\n_xlfn.CONCAT(_xlpm.Yr,\"-\",_xlpm.CleanProgram,\"-\",_xlpm.Number))\n),\"\")","v":""},{"$f":"IF(A334=\"\",\"\",'1. Checklist & Certification'!$B$9)","v":""},{"$f":"IF(A334=\"\",\"\",'1. Checklist & Certification'!$F$9)","v":""},{"$f":"IF(A334=\"\",\"\",'1. Checklist & Certification'!$C$10)","v":""},{"$f":"IF(A334=\"\",\"\",'1. Checklist & Certification'!$C$11)","v":""},{"$f":"IF(A334=\"\",\"\",'1. Checklist & Certification'!$C$12)","v":""},{"$f":"IF(A334=\"\",\"\",'1. Checklist & Certification'!$B$14)","v":""},{"$f":"IF(A334=\"\",\"\",'1. Checklist & Certification'!$E$14)","v":""},{"$f":"IF(B334=\"\",\"\",'1. Checklist & Certification'!$G$14)","v":""},{"$f":"IF(A334=\"\",\"\",'MHP Family Income & Rent Limits'!$B$3)","v":""},{"$f":"IF(A334=\"\",\"\",'MHP Family Income & Rent Limits'!$J$3)","v":""},{"$f":"IF(A334=\"\",\"\",'MHP Family Income & Rent Limits'!$E$4)","v":""},{"$f":"IF(A334=\"\",\"\",'MHP Family Income & Rent Limits'!$C$7)","v":""},{"$f":"IF(A334=\"\",\"\",'MHP Family Income & Rent Limits'!$F$8)","v":""},{"$f":"IF(A334=\"\",\"\",'1. Checklist & Certification'!$G$4)","v":""},{"$f":"IF(A334=\"\",\"\",'1. Checklist & Certification'!$K$39)","v":""},{"$f":"IF(A334=\"\",\"\",'1. Checklist & Certification'!$K$43)","v":""},{"$f":"IF(A334=\"\",\"\",'1. Checklist & Certification'!$K$45)","v":""},{"$f":"IF(A334=\"\",\"\",'1. Checklist & Certification'!$K$49)","v":""},{"$f":"IF(A334=\"\",\"\",'1. Checklist & Certification'!$K$62)","v":""},{"$f":"IF(A334=\"\",\"\",'1. Checklist & Certification'!$E$66)","v":""},{"$f":"IF(A334=\"\",\"\",'1. Checklist & Certification'!$E$67)","v":""},{"$f":"IF(A334=\"\",\"\",'1. Checklist & Certification'!$E$68)","v":""},{"$f":"IF(A334=\"\",\"\",'1. Checklist & Certification'!$G$66)","v":""},{"$f":"IF(A334=\"\",\"\",'1. Checklist & Certification'!$H$66)","v":""},{"$f":"IF(A334=\"\",\"\",'1. Checklist & Certification'!$I$66)","v":""},{"$f":"IF(A334=\"\",\"\",'1. Checklist & Certification'!$I$67)","v":""},{"$f":"IF(A334=\"\",\"\",'1. Checklist & Certification'!$I$68)","v":""},{"$f":"IF(A334=\"\",\"\",'1. Checklist & Certification'!$B$69)","v":""},{"$f":"IF(A334=\"\",\"\",'1. Checklist & Certification'!$C$69)","v":""},{"$f":"IF(A334=\"\",\"\",'1. Checklist & Certification'!$F$69)","v":""},{"$f":"IF(A334=\"\",\"\",'1. Checklist & Certification'!$G$69)","v":""},{"$f":"IF(A334=\"\",\"\",'1. Checklist & Certification'!$J$69)","v":""},{"$f":"IF(A334=\"\",\"\",'1. Checklist & Certification'!$K$69)","v":""},null,null,{"$f":"IF(AND(OR('1. Checklist & Certification'!$M$16=1,'1. Checklist & Certification'!$M$19=2),AO334>0,B334=\"\",I334>0,AQ334<I334,AV334<>\"Sec 8-Project\"),\"X\",IF(AND(OR('1. Checklist & Certification'!$M$20=4,'1. Checklist & Certification'!$M$21=5,'1. Checklist & Certification'!$M$22=7),AO334>0,B334=\"\",I334>0,K334<I334),\"X\",\"\"))","v":""},{"$f":"IF(A334=\"\",\"\",IF(SUMPRODUCT(-- (ISNUMBER(SEARCH({\"*AHSC*\",\"*FMTW*\",\"*FWHG*\",\"*GHI*\",\"*HHC*\",\"*HLCP*\",\"*HOME*\",\"*LPR*\",\"*MHP*\",\"*NHTF*\",\"*NSP*\",\"*PRP*\",\"*TOD*\",\"*VHHP*\"},'1. Checklist & Certification'!$L$7)))),\"MHP\",\"Legacy\"))","v":""},",,",null,null,null,{"$f":"IF('1. Checklist & Certification'!$M$20=4,\"Both\",IF(OR('1. Checklist & Certification'!$M$15>0,S334=\"CHRP-R\",U334=\"CHRP-R\",W334=\"CHRP-R\",Y334=\"CHRP-R\"),\"Under\",\"No\"))","v":"No"},"No","No",{"$f":"_xlfn.IFS(D334=\"\",\"\",D334=1,'MHP Family Income & Rent Limits'!$E$17,D334=2,'MHP Family Income & Rent Limits'!$F$17,D334=3,'MHP Family Income & Rent Limits'!$G$17,D334=4,'MHP Family Income & Rent Limits'!$H$17,D334=5,'MHP Family Income & Rent Limits'!$I$17,D334=6,'MHP Family Income & Rent Limits'!$J$17,D334=7,'MHP Family Income & Rent Limits'!$K$17,D334=8,'MHP Family Income & Rent Limits'!$L$17)","v":""},"",{"$f":"IF(OR(A334=0,B334=\"X\"),0,MIN(IF(AA334:AD334<>0,AA334:AD334)))","v":0},{"$f":"IF(OR(H334=\"\",I334=\"\"),0,IF(H334*0.3/12>I334,MIN(H334*0.3/12,I334*1.1)+AP334,I334*(1+(VLOOKUP('1. Checklist & Certification'!$F$9,'HLCP-E Rent Change'!$A$1:$D$59,4,FALSE)))+AP334))","v":0}]
[null,null,null,null,null,null,null,null,null,null,null,null,null,null,null,null,null,null,null,null,null,null,null,null,null,null,0,0,0,0,0,0,0,0,{"$f":"IF(OR(A335=0,B335=\"X\"),0,IF(OR(S335=\"FHDP\",S335=\"RHCP-B\",U335=\"FHDP\",U335=\"RHCP-B\",W335=\"FHDP\",W335=\"RHCP-B\",Y335=\"FHDP\",Y335=\"RHCP-B\"),TRUNC((MIN(I335,K335)*(1+'1. Checklist & Certification'!$K$43)+AP335)),0))","v":0},{"$f":"IF(OR(A335=0,B335=\"X\"),0,IF(OR(S335=\"CHRP-R\",S335=\"SERA\",S335=\"SUHRP\",U335=\"CHRP-R\",U335=\"SERA\",U335=\"SUHRP\",W335=\"CHRP-R\",W335=\"SERA\",W335=\"SUHRP\",Y335=\"CHRP-R\",Y335=\"SERA\",Y335=\"SUHRP\"),TRUNC((MIN(I335,K335)*(1+'1. Checklist & Certification'!$K$49))),0))","v":0},{"$f":"IF(OR(A335=0,B335=\"X\"),0,IF(OR(S335=\"CALDAP\",S335=\"DPRLP\",U335=\"CALDAP\",U335=\"DPRLP\",W335=\"CALDAP\",W335=\"DPRLP\",Y335=\"CALDAP\",Y335=\"DPRLP\"),TRUNC(((MIN(I335,K335))*(1+'1. Checklist & Certification'!$G$4))),0))","v":0},0,0,0,{"$f":"IF(OR(A335=0,B335=\"X\"),0,IF(OR(S335=\"PRP\",S335=\"LPR\",U335=\"PRP\",U335=\"LPR\",W335=\"PRP\",W335=\"LPR\",Y335=\"PRP\",Y335=\"LPR\"),MAX(I335+AP335,MIN(IF(AE335:AN335<>0,AE335:AN335))),MIN(IF(AE335:AN335<>0,AE335:AN335))))","v":0},{"$f":"IF(A335=0,0,IF(AND(OR(S335=\"Mgr\",S335=0),OR(U335=\"Mgr\",U335=0),OR(W335=\"Mgr\",W335=0)),0,IF(LEFT($A335,2)=\"B*\",VLOOKUP($E335,'1. Checklist & Certification'!$D$26:$E$32,2),IF(LEFT($A335,2)=\"C*\",VLOOKUP($E335,'1. Checklist & Certification'!$F$26:$G$32,2),IF(LEFT($A335,2)=\"D*\",VLOOKUP($E335,'1. Checklist & Certification'!$H$26:$I$32,2),IF(LEFT($A335,2)=\"E*\",VLOOKUP($E335,'1. Checklist & Certification'!$J$26:$K$32,2),VLOOKUP($E335,'1. Checklist & Certification'!$A$26:$B$32,2)))))))","v":0},0,0,null,null,null,null,"","",0,0,0,null,{"$f":"IF(A335=\"\",\"\",'1. Checklist & Certification'!$K$1)","v":""},{"$f":"IF(A335=\"\",\"\",'1. Checklist & Certification'!$C$62)","v":""},{"$f":"IF(A335=\"\",\"\",'1. Checklist & Certification'!$C$6)","v":""},{"$f":"IF(A335=\"\",\"\",'1. Checklist & Certification'!$G$5)","v":""},{"$f":"IFERROR(IF(A335=\"\",\"\",\n_xlfn.LET(_xlpm.Contract,'1. Checklist & Certification'!$C$7,\n_xlpm.Yr,TEXT(MOD(_xlfn.TEXTBEFORE(_xlpm.Contract,\"-\"),100),\"00\"),\n_xlpm.Program,_xlfn.TEXTAFTER(_xlfn.TEXTBEFORE(_xlpm.Contract,\"-\",2),\"-\"),\n_xlpm.CleanProgram,_xlfn.XLOOKUP(_xlpm.Program,SpellCheck[Input],SpellCheck[Correction],_xlpm.Program),\n_xlpm.Number,TEXT(_xlfn.TEXTAFTER(_xlpm.Contract,\"-\",2),\"0000\"),\n_xlfn.CONCAT(_xlpm.Yr,\"-\",_xlpm.CleanProgram,\"-\",_xlpm.Number))\n),\"\")","v":""},{"$f":"IFERROR(IF(A335=\"\",\"\",\n_xlfn.LET(_xlpm.Contract,'1. Checklist & Certification'!$C$8,\n_xlpm.Yr,TEXT(MOD(_xlfn.TEXTBEFORE(_xlpm.Contract,\"-\"),100),\"00\"),\n_xlpm.Program,_xlfn.TEXTAFTER(_xlfn.TEXTBEFORE(_xlpm.Contract,\"-\",2),\"-\"),\n_xlpm.CleanProgram,_xlfn.XLOOKUP(_xlpm.Program,SpellCheck[Input],SpellCheck[Correction],_xlpm.Program),\n_xlpm.Number,TEXT(_xlfn.TEXTAFTER(_xlpm.Contract,\"-\",2),\"0000\"),\n_xlfn.CONCAT(_xlpm.Yr,\"-\",_xlpm.CleanProgram,\"-\",_xlpm.Number))\n),\"\")","v":""},{"$f":"IFERROR(IF(A335=\"\",\"\",\n_xlfn.LET(_xlpm.Contract,'1. Checklist & Certification'!$F$7,\n_xlpm.Yr,TEXT(MOD(_xlfn.TEXTBEFORE(_xlpm.Contract,\"-\"),100),\"00\"),\n_xlpm.Program,_xlfn.TEXTAFTER(_xlfn.TEXTBEFORE(_xlpm.Contract,\"-\",2),\"-\"),\n_xlpm.CleanProgram,_xlfn.XLOOKUP(_xlpm.Program,SpellCheck[Input],SpellCheck[Correction],_xlpm.Program),\n_xlpm.Number,TEXT(_xlfn.TEXTAFTER(_xlpm.Contract,\"-\",2),\"0000\"),\n_xlfn.CONCAT(_xlpm.Yr,\"-\",_xlpm.CleanProgram,\"-\",_xlpm.Number))\n),\"\")","v":""},{"$f":"IFERROR(IF(A335=\"\",\"\",\n_xlfn.LET(_xlpm.Contract,'1. Checklist & Certification'!$F$8,\n_xlpm.Yr,TEXT(MOD(_xlfn.TEXTBEFORE(_xlpm.Contract,\"-\"),100),\"00\"),\n_xlpm.Program,_xlfn.TEXTAFTER(_xlfn.TEXTBEFORE(_xlpm.Contract,\"-\",2),\"-\"),\n_xlpm.CleanProgram,_xlfn.XLOOKUP(_xlpm.Program,SpellCheck[Input],SpellCheck[Correction],_xlpm.Program),\n_xlpm.Number,TEXT(_xlfn.TEXTAFTER(_xlpm.Contract,\"-\",2),\"0000\"),\n_xlfn.CONCAT(_xlpm.Yr,\"-\",_xlpm.CleanProgram,\"-\",_xlpm.Number))\n),\"\")","v":""},{"$f":"IF(A335=\"\",\"\",'1. Checklist & Certification'!$B$9)","v":""},{"$f":"IF(A335=\"\",\"\",'1. Checklist & Certification'!$F$9)","v":""},{"$f":"IF(A335=\"\",\"\",'1. Checklist & Certification'!$C$10)","v":""},{"$f":"IF(A335=\"\",\"\",'1. Checklist & Certification'!$C$11)","v":""},{"$f":"IF(A335=\"\",\"\",'1. Checklist & Certification'!$C$12)","v":""},{"$f":"IF(A335=\"\",\"\",'1. Checklist & Certification'!$B$14)","v":""},{"$f":"IF(A335=\"\",\"\",'1. Checklist & Certification'!$E$14)","v":""},{"$f":"IF(B335=\"\",\"\",'1. Checklist & Certification'!$G$14)","v":""},{"$f":"IF(A335=\"\",\"\",'MHP Family Income & Rent Limits'!$B$3)","v":""},{"$f":"IF(A335=\"\",\"\",'MHP Family Income & Rent Limits'!$J$3)","v":""},{"$f":"IF(A335=\"\",\"\",'MHP Family Income & Rent Limits'!$E$4)","v":""},{"$f":"IF(A335=\"\",\"\",'MHP Family Income & Rent Limits'!$C$7)","v":""},{"$f":"IF(A335=\"\",\"\",'MHP Family Income & Rent Limits'!$F$8)","v":""},{"$f":"IF(A335=\"\",\"\",'1. Checklist & Certification'!$G$4)","v":""},{"$f":"IF(A335=\"\",\"\",'1. Checklist & Certification'!$K$39)","v":""},{"$f":"IF(A335=\"\",\"\",'1. Checklist & Certification'!$K$43)","v":""},{"$f":"IF(A335=\"\",\"\",'1. Checklist & Certification'!$K$45)","v":""},{"$f":"IF(A335=\"\",\"\",'1. Checklist & Certification'!$K$49)","v":""},{"$f":"IF(A335=\"\",\"\",'1. Checklist & Certification'!$K$62)","v":""},{"$f":"IF(A335=\"\",\"\",'1. Checklist & Certification'!$E$66)","v":""},{"$f":"IF(A335=\"\",\"\",'1. Checklist & Certification'!$E$67)","v":""},{"$f":"IF(A335=\"\",\"\",'1. Checklist & Certification'!$E$68)","v":""},{"$f":"IF(A335=\"\",\"\",'1. Checklist & Certification'!$G$66)","v":""},{"$f":"IF(A335=\"\",\"\",'1. Checklist & Certification'!$H$66)","v":""},{"$f":"IF(A335=\"\",\"\",'1. Checklist & Certification'!$I$66)","v":""},{"$f":"IF(A335=\"\",\"\",'1. Checklist & Certification'!$I$67)","v":""},{"$f":"IF(A335=\"\",\"\",'1. Checklist & Certification'!$I$68)","v":""},{"$f":"IF(A335=\"\",\"\",'1. Checklist & Certification'!$B$69)","v":""},{"$f":"IF(A335=\"\",\"\",'1. Checklist & Certification'!$C$69)","v":""},{"$f":"IF(A335=\"\",\"\",'1. Checklist & Certification'!$F$69)","v":""},{"$f":"IF(A335=\"\",\"\",'1. Checklist & Certification'!$G$69)","v":""},{"$f":"IF(A335=\"\",\"\",'1. Checklist & Certification'!$J$69)","v":""},{"$f":"IF(A335=\"\",\"\",'1. Checklist & Certification'!$K$69)","v":""},null,null,{"$f":"IF(AND(OR('1. Checklist & Certification'!$M$16=1,'1. Checklist & Certification'!$M$19=2),AO335>0,B335=\"\",I335>0,AQ335<I335,AV335<>\"Sec 8-Project\"),\"X\",IF(AND(OR('1. Checklist & Certification'!$M$20=4,'1. Checklist & Certification'!$M$21=5,'1. Checklist & Certification'!$M$22=7),AO335>0,B335=\"\",I335>0,K335<I335),\"X\",\"\"))","v":""},{"$f":"IF(A335=\"\",\"\",IF(SUMPRODUCT(-- (ISNUMBER(SEARCH({\"*AHSC*\",\"*FMTW*\",\"*FWHG*\",\"*GHI*\",\"*HHC*\",\"*HLCP*\",\"*HOME*\",\"*LPR*\",\"*MHP*\",\"*NHTF*\",\"*NSP*\",\"*PRP*\",\"*TOD*\",\"*VHHP*\"},'1. Checklist & Certification'!$L$7)))),\"MHP\",\"Legacy\"))","v":""},",,",null,null,null,{"$f":"IF('1. Checklist & Certification'!$M$20=4,\"Both\",IF(OR('1. Checklist & Certification'!$M$15>0,S335=\"CHRP-R\",U335=\"CHRP-R\",W335=\"CHRP-R\",Y335=\"CHRP-R\"),\"Under\",\"No\"))","v":"No"},"No","No",{"$f":"_xlfn.IFS(D335=\"\",\"\",D335=1,'MHP Family Income & Rent Limits'!$E$17,D335=2,'MHP Family Income & Rent Limits'!$F$17,D335=3,'MHP Family Income & Rent Limits'!$G$17,D335=4,'MHP Family Income & Rent Limits'!$H$17,D335=5,'MHP Family Income & Rent Limits'!$I$17,D335=6,'MHP Family Income & Rent Limits'!$J$17,D335=7,'MHP Family Income & Rent Limits'!$K$17,D335=8,'MHP Family Income & Rent Limits'!$L$17)","v":""},"",{"$f":"IF(OR(A335=0,B335=\"X\"),0,MIN(IF(AA335:AD335<>0,AA335:AD335)))","v":0},{"$f":"IF(OR(H335=\"\",I335=\"\"),0,IF(H335*0.3/12>I335,MIN(H335*0.3/12,I335*1.1)+AP335,I335*(1+(VLOOKUP('1. Checklist & Certification'!$F$9,'HLCP-E Rent Change'!$A$1:$D$59,4,FALSE)))+AP335))","v":0}]
[null,null,null,null,null,null,null,null,null,null,null,null,null,null,null,null,null,null,null,null,null,null,null,null,null,null,0,0,0,0,0,0,0,0,{"$f":"IF(OR(A336=0,B336=\"X\"),0,IF(OR(S336=\"FHDP\",S336=\"RHCP-B\",U336=\"FHDP\",U336=\"RHCP-B\",W336=\"FHDP\",W336=\"RHCP-B\",Y336=\"FHDP\",Y336=\"RHCP-B\"),TRUNC((MIN(I336,K336)*(1+'1. Checklist & Certification'!$K$43)+AP336)),0))","v":0},{"$f":"IF(OR(A336=0,B336=\"X\"),0,IF(OR(S336=\"CHRP-R\",S336=\"SERA\",S336=\"SUHRP\",U336=\"CHRP-R\",U336=\"SERA\",U336=\"SUHRP\",W336=\"CHRP-R\",W336=\"SERA\",W336=\"SUHRP\",Y336=\"CHRP-R\",Y336=\"SERA\",Y336=\"SUHRP\"),TRUNC((MIN(I336,K336)*(1+'1. Checklist & Certification'!$K$49))),0))","v":0},{"$f":"IF(OR(A336=0,B336=\"X\"),0,IF(OR(S336=\"CALDAP\",S336=\"DPRLP\",U336=\"CALDAP\",U336=\"DPRLP\",W336=\"CALDAP\",W336=\"DPRLP\",Y336=\"CALDAP\",Y336=\"DPRLP\"),TRUNC(((MIN(I336,K336))*(1+'1. Checklist & Certification'!$G$4))),0))","v":0},0,0,0,{"$f":"IF(OR(A336=0,B336=\"X\"),0,IF(OR(S336=\"PRP\",S336=\"LPR\",U336=\"PRP\",U336=\"LPR\",W336=\"PRP\",W336=\"LPR\",Y336=\"PRP\",Y336=\"LPR\"),MAX(I336+AP336,MIN(IF(AE336:AN336<>0,AE336:AN336))),MIN(IF(AE336:AN336<>0,AE336:AN336))))","v":0},{"$f":"IF(A336=0,0,IF(AND(OR(S336=\"Mgr\",S336=0),OR(U336=\"Mgr\",U336=0),OR(W336=\"Mgr\",W336=0)),0,IF(LEFT($A336,2)=\"B*\",VLOOKUP($E336,'1. Checklist & Certification'!$D$26:$E$32,2),IF(LEFT($A336,2)=\"C*\",VLOOKUP($E336,'1. Checklist & Certification'!$F$26:$G$32,2),IF(LEFT($A336,2)=\"D*\",VLOOKUP($E336,'1. Checklist & Certification'!$H$26:$I$32,2),IF(LEFT($A336,2)=\"E*\",VLOOKUP($E336,'1. Checklist & Certification'!$J$26:$K$32,2),VLOOKUP($E336,'1. Checklist & Certification'!$A$26:$B$32,2)))))))","v":0},0,0,null,null,null,null,"","",0,0,0,null,{"$f":"IF(A336=\"\",\"\",'1. Checklist & Certification'!$K$1)","v":""},{"$f":"IF(A336=\"\",\"\",'1. Checklist & Certification'!$C$62)","v":""},{"$f":"IF(A336=\"\",\"\",'1. Checklist & Certification'!$C$6)","v":""},{"$f":"IF(A336=\"\",\"\",'1. Checklist & Certification'!$G$5)","v":""},{"$f":"IFERROR(IF(A336=\"\",\"\",\n_xlfn.LET(_xlpm.Contract,'1. Checklist & Certification'!$C$7,\n_xlpm.Yr,TEXT(MOD(_xlfn.TEXTBEFORE(_xlpm.Contract,\"-\"),100),\"00\"),\n_xlpm.Program,_xlfn.TEXTAFTER(_xlfn.TEXTBEFORE(_xlpm.Contract,\"-\",2),\"-\"),\n_xlpm.CleanProgram,_xlfn.XLOOKUP(_xlpm.Program,SpellCheck[Input],SpellCheck[Correction],_xlpm.Program),\n_xlpm.Number,TEXT(_xlfn.TEXTAFTER(_xlpm.Contract,\"-\",2),\"0000\"),\n_xlfn.CONCAT(_xlpm.Yr,\"-\",_xlpm.CleanProgram,\"-\",_xlpm.Number))\n),\"\")","v":""},{"$f":"IFERROR(IF(A336=\"\",\"\",\n_xlfn.LET(_xlpm.Contract,'1. Checklist & Certification'!$C$8,\n_xlpm.Yr,TEXT(MOD(_xlfn.TEXTBEFORE(_xlpm.Contract,\"-\"),100),\"00\"),\n_xlpm.Program,_xlfn.TEXTAFTER(_xlfn.TEXTBEFORE(_xlpm.Contract,\"-\",2),\"-\"),\n_xlpm.CleanProgram,_xlfn.XLOOKUP(_xlpm.Program,SpellCheck[Input],SpellCheck[Correction],_xlpm.Program),\n_xlpm.Number,TEXT(_xlfn.TEXTAFTER(_xlpm.Contract,\"-\",2),\"0000\"),\n_xlfn.CONCAT(_xlpm.Yr,\"-\",_xlpm.CleanProgram,\"-\",_xlpm.Number))\n),\"\")","v":""},{"$f":"IFERROR(IF(A336=\"\",\"\",\n_xlfn.LET(_xlpm.Contract,'1. Checklist & Certification'!$F$7,\n_xlpm.Yr,TEXT(MOD(_xlfn.TEXTBEFORE(_xlpm.Contract,\"-\"),100),\"00\"),\n_xlpm.Program,_xlfn.TEXTAFTER(_xlfn.TEXTBEFORE(_xlpm.Contract,\"-\",2),\"-\"),\n_xlpm.CleanProgram,_xlfn.XLOOKUP(_xlpm.Program,SpellCheck[Input],SpellCheck[Correction],_xlpm.Program),\n_xlpm.Number,TEXT(_xlfn.TEXTAFTER(_xlpm.Contract,\"-\",2),\"0000\"),\n_xlfn.CONCAT(_xlpm.Yr,\"-\",_xlpm.CleanProgram,\"-\",_xlpm.Number))\n),\"\")","v":""},{"$f":"IFERROR(IF(A336=\"\",\"\",\n_xlfn.LET(_xlpm.Contract,'1. Checklist & Certification'!$F$8,\n_xlpm.Yr,TEXT(MOD(_xlfn.TEXTBEFORE(_xlpm.Contract,\"-\"),100),\"00\"),\n_xlpm.Program,_xlfn.TEXTAFTER(_xlfn.TEXTBEFORE(_xlpm.Contract,\"-\",2),\"-\"),\n_xlpm.CleanProgram,_xlfn.XLOOKUP(_xlpm.Program,SpellCheck[Input],SpellCheck[Correction],_xlpm.Program),\n_xlpm.Number,TEXT(_xlfn.TEXTAFTER(_xlpm.Contract,\"-\",2),\"0000\"),\n_xlfn.CONCAT(_xlpm.Yr,\"-\",_xlpm.CleanProgram,\"-\",_xlpm.Number))\n),\"\")","v":""},{"$f":"IF(A336=\"\",\"\",'1. Checklist & Certification'!$B$9)","v":""},{"$f":"IF(A336=\"\",\"\",'1. Checklist & Certification'!$F$9)","v":""},{"$f":"IF(A336=\"\",\"\",'1. Checklist & Certification'!$C$10)","v":""},{"$f":"IF(A336=\"\",\"\",'1. Checklist & Certification'!$C$11)","v":""},{"$f":"IF(A336=\"\",\"\",'1. Checklist & Certification'!$C$12)","v":""},{"$f":"IF(A336=\"\",\"\",'1. Checklist & Certification'!$B$14)","v":""},{"$f":"IF(A336=\"\",\"\",'1. Checklist & Certification'!$E$14)","v":""},{"$f":"IF(B336=\"\",\"\",'1. Checklist & Certification'!$G$14)","v":""},{"$f":"IF(A336=\"\",\"\",'MHP Family Income & Rent Limits'!$B$3)","v":""},{"$f":"IF(A336=\"\",\"\",'MHP Family Income & Rent Limits'!$J$3)","v":""},{"$f":"IF(A336=\"\",\"\",'MHP Family Income & Rent Limits'!$E$4)","v":""},{"$f":"IF(A336=\"\",\"\",'MHP Family Income & Rent Limits'!$C$7)","v":""},{"$f":"IF(A336=\"\",\"\",'MHP Family Income & Rent Limits'!$F$8)","v":""},{"$f":"IF(A336=\"\",\"\",'1. Checklist & Certification'!$G$4)","v":""},{"$f":"IF(A336=\"\",\"\",'1. Checklist & Certification'!$K$39)","v":""},{"$f":"IF(A336=\"\",\"\",'1. Checklist & Certification'!$K$43)","v":""},{"$f":"IF(A336=\"\",\"\",'1. Checklist & Certification'!$K$45)","v":""},{"$f":"IF(A336=\"\",\"\",'1. Checklist & Certification'!$K$49)","v":""},{"$f":"IF(A336=\"\",\"\",'1. Checklist & Certification'!$K$62)","v":""},{"$f":"IF(A336=\"\",\"\",'1. Checklist & Certification'!$E$66)","v":""},{"$f":"IF(A336=\"\",\"\",'1. Checklist & Certification'!$E$67)","v":""},{"$f":"IF(A336=\"\",\"\",'1. Checklist & Certification'!$E$68)","v":""},{"$f":"IF(A336=\"\",\"\",'1. Checklist & Certification'!$G$66)","v":""},{"$f":"IF(A336=\"\",\"\",'1. Checklist & Certification'!$H$66)","v":""},{"$f":"IF(A336=\"\",\"\",'1. Checklist & Certification'!$I$66)","v":""},{"$f":"IF(A336=\"\",\"\",'1. Checklist & Certification'!$I$67)","v":""},{"$f":"IF(A336=\"\",\"\",'1. Checklist & Certification'!$I$68)","v":""},{"$f":"IF(A336=\"\",\"\",'1. Checklist & Certification'!$B$69)","v":""},{"$f":"IF(A336=\"\",\"\",'1. Checklist & Certification'!$C$69)","v":""},{"$f":"IF(A336=\"\",\"\",'1. Checklist & Certification'!$F$69)","v":""},{"$f":"IF(A336=\"\",\"\",'1. Checklist & Certification'!$G$69)","v":""},{"$f":"IF(A336=\"\",\"\",'1. Checklist & Certification'!$J$69)","v":""},{"$f":"IF(A336=\"\",\"\",'1. Checklist & Certification'!$K$69)","v":""},null,null,{"$f":"IF(AND(OR('1. Checklist & Certification'!$M$16=1,'1. Checklist & Certification'!$M$19=2),AO336>0,B336=\"\",I336>0,AQ336<I336,AV336<>\"Sec 8-Project\"),\"X\",IF(AND(OR('1. Checklist & Certification'!$M$20=4,'1. Checklist & Certification'!$M$21=5,'1. Checklist & Certification'!$M$22=7),AO336>0,B336=\"\",I336>0,K336<I336),\"X\",\"\"))","v":""},{"$f":"IF(A336=\"\",\"\",IF(SUMPRODUCT(-- (ISNUMBER(SEARCH({\"*AHSC*\",\"*FMTW*\",\"*FWHG*\",\"*GHI*\",\"*HHC*\",\"*HLCP*\",\"*HOME*\",\"*LPR*\",\"*MHP*\",\"*NHTF*\",\"*NSP*\",\"*PRP*\",\"*TOD*\",\"*VHHP*\"},'1. Checklist & Certification'!$L$7)))),\"MHP\",\"Legacy\"))","v":""},",,",null,null,null,{"$f":"IF('1. Checklist & Certification'!$M$20=4,\"Both\",IF(OR('1. Checklist & Certification'!$M$15>0,S336=\"CHRP-R\",U336=\"CHRP-R\",W336=\"CHRP-R\",Y336=\"CHRP-R\"),\"Under\",\"No\"))","v":"No"},"No","No",{"$f":"_xlfn.IFS(D336=\"\",\"\",D336=1,'MHP Family Income & Rent Limits'!$E$17,D336=2,'MHP Family Income & Rent Limits'!$F$17,D336=3,'MHP Family Income & Rent Limits'!$G$17,D336=4,'MHP Family Income & Rent Limits'!$H$17,D336=5,'MHP Family Income & Rent Limits'!$I$17,D336=6,'MHP Family Income & Rent Limits'!$J$17,D336=7,'MHP Family Income & Rent Limits'!$K$17,D336=8,'MHP Family Income & Rent Limits'!$L$17)","v":""},"",{"$f":"IF(OR(A336=0,B336=\"X\"),0,MIN(IF(AA336:AD336<>0,AA336:AD336)))","v":0},{"$f":"IF(OR(H336=\"\",I336=\"\"),0,IF(H336*0.3/12>I336,MIN(H336*0.3/12,I336*1.1)+AP336,I336*(1+(VLOOKUP('1. Checklist & Certification'!$F$9,'HLCP-E Rent Change'!$A$1:$D$59,4,FALSE)))+AP336))","v":0}]
[null,null,null,null,null,null,null,null,null,null,null,null,null,null,null,null,null,null,null,null,null,null,null,null,null,null,0,0,0,0,0,0,0,0,{"$f":"IF(OR(A337=0,B337=\"X\"),0,IF(OR(S337=\"FHDP\",S337=\"RHCP-B\",U337=\"FHDP\",U337=\"RHCP-B\",W337=\"FHDP\",W337=\"RHCP-B\",Y337=\"FHDP\",Y337=\"RHCP-B\"),TRUNC((MIN(I337,K337)*(1+'1. Checklist & Certification'!$K$43)+AP337)),0))","v":0},{"$f":"IF(OR(A337=0,B337=\"X\"),0,IF(OR(S337=\"CHRP-R\",S337=\"SERA\",S337=\"SUHRP\",U337=\"CHRP-R\",U337=\"SERA\",U337=\"SUHRP\",W337=\"CHRP-R\",W337=\"SERA\",W337=\"SUHRP\",Y337=\"CHRP-R\",Y337=\"SERA\",Y337=\"SUHRP\"),TRUNC((MIN(I337,K337)*(1+'1. Checklist & Certification'!$K$49))),0))","v":0},{"$f":"IF(OR(A337=0,B337=\"X\"),0,IF(OR(S337=\"CALDAP\",S337=\"DPRLP\",U337=\"CALDAP\",U337=\"DPRLP\",W337=\"CALDAP\",W337=\"DPRLP\",Y337=\"CALDAP\",Y337=\"DPRLP\"),TRUNC(((MIN(I337,K337))*(1+'1. Checklist & Certification'!$G$4))),0))","v":0},0,0,0,{"$f":"IF(OR(A337=0,B337=\"X\"),0,IF(OR(S337=\"PRP\",S337=\"LPR\",U337=\"PRP\",U337=\"LPR\",W337=\"PRP\",W337=\"LPR\",Y337=\"PRP\",Y337=\"LPR\"),MAX(I337+AP337,MIN(IF(AE337:AN337<>0,AE337:AN337))),MIN(IF(AE337:AN337<>0,AE337:AN337))))","v":0},{"$f":"IF(A337=0,0,IF(AND(OR(S337=\"Mgr\",S337=0),OR(U337=\"Mgr\",U337=0),OR(W337=\"Mgr\",W337=0)),0,IF(LEFT($A337,2)=\"B*\",VLOOKUP($E337,'1. Checklist & Certification'!$D$26:$E$32,2),IF(LEFT($A337,2)=\"C*\",VLOOKUP($E337,'1. Checklist & Certification'!$F$26:$G$32,2),IF(LEFT($A337,2)=\"D*\",VLOOKUP($E337,'1. Checklist & Certification'!$H$26:$I$32,2),IF(LEFT($A337,2)=\"E*\",VLOOKUP($E337,'1. Checklist & Certification'!$J$26:$K$32,2),VLOOKUP($E337,'1. Checklist & Certification'!$A$26:$B$32,2)))))))","v":0},0,0,null,null,null,null,"","",0,0,0,null,{"$f":"IF(A337=\"\",\"\",'1. Checklist & Certification'!$K$1)","v":""},{"$f":"IF(A337=\"\",\"\",'1. Checklist & Certification'!$C$62)","v":""},{"$f":"IF(A337=\"\",\"\",'1. Checklist & Certification'!$C$6)","v":""},{"$f":"IF(A337=\"\",\"\",'1. Checklist & Certification'!$G$5)","v":""},{"$f":"IFERROR(IF(A337=\"\",\"\",\n_xlfn.LET(_xlpm.Contract,'1. Checklist & Certification'!$C$7,\n_xlpm.Yr,TEXT(MOD(_xlfn.TEXTBEFORE(_xlpm.Contract,\"-\"),100),\"00\"),\n_xlpm.Program,_xlfn.TEXTAFTER(_xlfn.TEXTBEFORE(_xlpm.Contract,\"-\",2),\"-\"),\n_xlpm.CleanProgram,_xlfn.XLOOKUP(_xlpm.Program,SpellCheck[Input],SpellCheck[Correction],_xlpm.Program),\n_xlpm.Number,TEXT(_xlfn.TEXTAFTER(_xlpm.Contract,\"-\",2),\"0000\"),\n_xlfn.CONCAT(_xlpm.Yr,\"-\",_xlpm.CleanProgram,\"-\",_xlpm.Number))\n),\"\")","v":""},{"$f":"IFERROR(IF(A337=\"\",\"\",\n_xlfn.LET(_xlpm.Contract,'1. Checklist & Certification'!$C$8,\n_xlpm.Yr,TEXT(MOD(_xlfn.TEXTBEFORE(_xlpm.Contract,\"-\"),100),\"00\"),\n_xlpm.Program,_xlfn.TEXTAFTER(_xlfn.TEXTBEFORE(_xlpm.Contract,\"-\",2),\"-\"),\n_xlpm.CleanProgram,_xlfn.XLOOKUP(_xlpm.Program,SpellCheck[Input],SpellCheck[Correction],_xlpm.Program),\n_xlpm.Number,TEXT(_xlfn.TEXTAFTER(_xlpm.Contract,\"-\",2),\"0000\"),\n_xlfn.CONCAT(_xlpm.Yr,\"-\",_xlpm.CleanProgram,\"-\",_xlpm.Number))\n),\"\")","v":""},{"$f":"IFERROR(IF(A337=\"\",\"\",\n_xlfn.LET(_xlpm.Contract,'1. Checklist & Certification'!$F$7,\n_xlpm.Yr,TEXT(MOD(_xlfn.TEXTBEFORE(_xlpm.Contract,\"-\"),100),\"00\"),\n_xlpm.Program,_xlfn.TEXTAFTER(_xlfn.TEXTBEFORE(_xlpm.Contract,\"-\",2),\"-\"),\n_xlpm.CleanProgram,_xlfn.XLOOKUP(_xlpm.Program,SpellCheck[Input],SpellCheck[Correction],_xlpm.Program),\n_xlpm.Number,TEXT(_xlfn.TEXTAFTER(_xlpm.Contract,\"-\",2),\"0000\"),\n_xlfn.CONCAT(_xlpm.Yr,\"-\",_xlpm.CleanProgram,\"-\",_xlpm.Number))\n),\"\")","v":""},{"$f":"IFERROR(IF(A337=\"\",\"\",\n_xlfn.LET(_xlpm.Contract,'1. Checklist & Certification'!$F$8,\n_xlpm.Yr,TEXT(MOD(_xlfn.TEXTBEFORE(_xlpm.Contract,\"-\"),100),\"00\"),\n_xlpm.Program,_xlfn.TEXTAFTER(_xlfn.TEXTBEFORE(_xlpm.Contract,\"-\",2),\"-\"),\n_xlpm.CleanProgram,_xlfn.XLOOKUP(_xlpm.Program,SpellCheck[Input],SpellCheck[Correction],_xlpm.Program),\n_xlpm.Number,TEXT(_xlfn.TEXTAFTER(_xlpm.Contract,\"-\",2),\"0000\"),\n_xlfn.CONCAT(_xlpm.Yr,\"-\",_xlpm.CleanProgram,\"-\",_xlpm.Number))\n),\"\")","v":""},{"$f":"IF(A337=\"\",\"\",'1. Checklist & Certification'!$B$9)","v":""},{"$f":"IF(A337=\"\",\"\",'1. Checklist & Certification'!$F$9)","v":""},{"$f":"IF(A337=\"\",\"\",'1. Checklist & Certification'!$C$10)","v":""},{"$f":"IF(A337=\"\",\"\",'1. Checklist & Certification'!$C$11)","v":""},{"$f":"IF(A337=\"\",\"\",'1. Checklist & Certification'!$C$12)","v":""},{"$f":"IF(A337=\"\",\"\",'1. Checklist & Certification'!$B$14)","v":""},{"$f":"IF(A337=\"\",\"\",'1. Checklist & Certification'!$E$14)","v":""},{"$f":"IF(B337=\"\",\"\",'1. Checklist & Certification'!$G$14)","v":""},{"$f":"IF(A337=\"\",\"\",'MHP Family Income & Rent Limits'!$B$3)","v":""},{"$f":"IF(A337=\"\",\"\",'MHP Family Income & Rent Limits'!$J$3)","v":""},{"$f":"IF(A337=\"\",\"\",'MHP Family Income & Rent Limits'!$E$4)","v":""},{"$f":"IF(A337=\"\",\"\",'MHP Family Income & Rent Limits'!$C$7)","v":""},{"$f":"IF(A337=\"\",\"\",'MHP Family Income & Rent Limits'!$F$8)","v":""},{"$f":"IF(A337=\"\",\"\",'1. Checklist & Certification'!$G$4)","v":""},{"$f":"IF(A337=\"\",\"\",'1. Checklist & Certification'!$K$39)","v":""},{"$f":"IF(A337=\"\",\"\",'1. Checklist & Certification'!$K$43)","v":""},{"$f":"IF(A337=\"\",\"\",'1. Checklist & Certification'!$K$45)","v":""},{"$f":"IF(A337=\"\",\"\",'1. Checklist & Certification'!$K$49)","v":""},{"$f":"IF(A337=\"\",\"\",'1. Checklist & Certification'!$K$62)","v":""},{"$f":"IF(A337=\"\",\"\",'1. Checklist & Certification'!$E$66)","v":""},{"$f":"IF(A337=\"\",\"\",'1. Checklist & Certification'!$E$67)","v":""},{"$f":"IF(A337=\"\",\"\",'1. Checklist & Certification'!$E$68)","v":""},{"$f":"IF(A337=\"\",\"\",'1. Checklist & Certification'!$G$66)","v":""},{"$f":"IF(A337=\"\",\"\",'1. Checklist & Certification'!$H$66)","v":""},{"$f":"IF(A337=\"\",\"\",'1. Checklist & Certification'!$I$66)","v":""},{"$f":"IF(A337=\"\",\"\",'1. Checklist & Certification'!$I$67)","v":""},{"$f":"IF(A337=\"\",\"\",'1. Checklist & Certification'!$I$68)","v":""},{"$f":"IF(A337=\"\",\"\",'1. Checklist & Certification'!$B$69)","v":""},{"$f":"IF(A337=\"\",\"\",'1. Checklist & Certification'!$C$69)","v":""},{"$f":"IF(A337=\"\",\"\",'1. Checklist & Certification'!$F$69)","v":""},{"$f":"IF(A337=\"\",\"\",'1. Checklist & Certification'!$G$69)","v":""},{"$f":"IF(A337=\"\",\"\",'1. Checklist & Certification'!$J$69)","v":""},{"$f":"IF(A337=\"\",\"\",'1. Checklist & Certification'!$K$69)","v":""},null,null,{"$f":"IF(AND(OR('1. Checklist & Certification'!$M$16=1,'1. Checklist & Certification'!$M$19=2),AO337>0,B337=\"\",I337>0,AQ337<I337,AV337<>\"Sec 8-Project\"),\"X\",IF(AND(OR('1. Checklist & Certification'!$M$20=4,'1. Checklist & Certification'!$M$21=5,'1. Checklist & Certification'!$M$22=7),AO337>0,B337=\"\",I337>0,K337<I337),\"X\",\"\"))","v":""},{"$f":"IF(A337=\"\",\"\",IF(SUMPRODUCT(-- (ISNUMBER(SEARCH({\"*AHSC*\",\"*FMTW*\",\"*FWHG*\",\"*GHI*\",\"*HHC*\",\"*HLCP*\",\"*HOME*\",\"*LPR*\",\"*MHP*\",\"*NHTF*\",\"*NSP*\",\"*PRP*\",\"*TOD*\",\"*VHHP*\"},'1. Checklist & Certification'!$L$7)))),\"MHP\",\"Legacy\"))","v":""},",,",null,null,null,{"$f":"IF('1. Checklist & Certification'!$M$20=4,\"Both\",IF(OR('1. Checklist & Certification'!$M$15>0,S337=\"CHRP-R\",U337=\"CHRP-R\",W337=\"CHRP-R\",Y337=\"CHRP-R\"),\"Under\",\"No\"))","v":"No"},"No","No",{"$f":"_xlfn.IFS(D337=\"\",\"\",D337=1,'MHP Family Income & Rent Limits'!$E$17,D337=2,'MHP Family Income & Rent Limits'!$F$17,D337=3,'MHP Family Income & Rent Limits'!$G$17,D337=4,'MHP Family Income & Rent Limits'!$H$17,D337=5,'MHP Family Income & Rent Limits'!$I$17,D337=6,'MHP Family Income & Rent Limits'!$J$17,D337=7,'MHP Family Income & Rent Limits'!$K$17,D337=8,'MHP Family Income & Rent Limits'!$L$17)","v":""},"",{"$f":"IF(OR(A337=0,B337=\"X\"),0,MIN(IF(AA337:AD337<>0,AA337:AD337)))","v":0},{"$f":"IF(OR(H337=\"\",I337=\"\"),0,IF(H337*0.3/12>I337,MIN(H337*0.3/12,I337*1.1)+AP337,I337*(1+(VLOOKUP('1. Checklist & Certification'!$F$9,'HLCP-E Rent Change'!$A$1:$D$59,4,FALSE)))+AP337))","v":0}]
[null,null,null,null,null,null,null,null,null,null,null,null,null,null,null,null,null,null,null,null,null,null,null,null,null,null,0,0,0,0,0,0,0,0,{"$f":"IF(OR(A338=0,B338=\"X\"),0,IF(OR(S338=\"FHDP\",S338=\"RHCP-B\",U338=\"FHDP\",U338=\"RHCP-B\",W338=\"FHDP\",W338=\"RHCP-B\",Y338=\"FHDP\",Y338=\"RHCP-B\"),TRUNC((MIN(I338,K338)*(1+'1. Checklist & Certification'!$K$43)+AP338)),0))","v":0},{"$f":"IF(OR(A338=0,B338=\"X\"),0,IF(OR(S338=\"CHRP-R\",S338=\"SERA\",S338=\"SUHRP\",U338=\"CHRP-R\",U338=\"SERA\",U338=\"SUHRP\",W338=\"CHRP-R\",W338=\"SERA\",W338=\"SUHRP\",Y338=\"CHRP-R\",Y338=\"SERA\",Y338=\"SUHRP\"),TRUNC((MIN(I338,K338)*(1+'1. Checklist & Certification'!$K$49))),0))","v":0},{"$f":"IF(OR(A338=0,B338=\"X\"),0,IF(OR(S338=\"CALDAP\",S338=\"DPRLP\",U338=\"CALDAP\",U338=\"DPRLP\",W338=\"CALDAP\",W338=\"DPRLP\",Y338=\"CALDAP\",Y338=\"DPRLP\"),TRUNC(((MIN(I338,K338))*(1+'1. Checklist & Certification'!$G$4))),0))","v":0},0,0,0,{"$f":"IF(OR(A338=0,B338=\"X\"),0,IF(OR(S338=\"PRP\",S338=\"LPR\",U338=\"PRP\",U338=\"LPR\",W338=\"PRP\",W338=\"LPR\",Y338=\"PRP\",Y338=\"LPR\"),MAX(I338+AP338,MIN(IF(AE338:AN338<>0,AE338:AN338))),MIN(IF(AE338:AN338<>0,AE338:AN338))))","v":0},{"$f":"IF(A338=0,0,IF(AND(OR(S338=\"Mgr\",S338=0),OR(U338=\"Mgr\",U338=0),OR(W338=\"Mgr\",W338=0)),0,IF(LEFT($A338,2)=\"B*\",VLOOKUP($E338,'1. Checklist & Certification'!$D$26:$E$32,2),IF(LEFT($A338,2)=\"C*\",VLOOKUP($E338,'1. Checklist & Certification'!$F$26:$G$32,2),IF(LEFT($A338,2)=\"D*\",VLOOKUP($E338,'1. Checklist & Certification'!$H$26:$I$32,2),IF(LEFT($A338,2)=\"E*\",VLOOKUP($E338,'1. Checklist & Certification'!$J$26:$K$32,2),VLOOKUP($E338,'1. Checklist & Certification'!$A$26:$B$32,2)))))))","v":0},0,0,null,null,null,null,"","",0,0,0,null,{"$f":"IF(A338=\"\",\"\",'1. Checklist & Certification'!$K$1)","v":""},{"$f":"IF(A338=\"\",\"\",'1. Checklist & Certification'!$C$62)","v":""},{"$f":"IF(A338=\"\",\"\",'1. Checklist & Certification'!$C$6)","v":""},{"$f":"IF(A338=\"\",\"\",'1. Checklist & Certification'!$G$5)","v":""},{"$f":"IFERROR(IF(A338=\"\",\"\",\n_xlfn.LET(_xlpm.Contract,'1. Checklist & Certification'!$C$7,\n_xlpm.Yr,TEXT(MOD(_xlfn.TEXTBEFORE(_xlpm.Contract,\"-\"),100),\"00\"),\n_xlpm.Program,_xlfn.TEXTAFTER(_xlfn.TEXTBEFORE(_xlpm.Contract,\"-\",2),\"-\"),\n_xlpm.CleanProgram,_xlfn.XLOOKUP(_xlpm.Program,SpellCheck[Input],SpellCheck[Correction],_xlpm.Program),\n_xlpm.Number,TEXT(_xlfn.TEXTAFTER(_xlpm.Contract,\"-\",2),\"0000\"),\n_xlfn.CONCAT(_xlpm.Yr,\"-\",_xlpm.CleanProgram,\"-\",_xlpm.Number))\n),\"\")","v":""},{"$f":"IFERROR(IF(A338=\"\",\"\",\n_xlfn.LET(_xlpm.Contract,'1. Checklist & Certification'!$C$8,\n_xlpm.Yr,TEXT(MOD(_xlfn.TEXTBEFORE(_xlpm.Contract,\"-\"),100),\"00\"),\n_xlpm.Program,_xlfn.TEXTAFTER(_xlfn.TEXTBEFORE(_xlpm.Contract,\"-\",2),\"-\"),\n_xlpm.CleanProgram,_xlfn.XLOOKUP(_xlpm.Program,SpellCheck[Input],SpellCheck[Correction],_xlpm.Program),\n_xlpm.Number,TEXT(_xlfn.TEXTAFTER(_xlpm.Contract,\"-\",2),\"0000\"),\n_xlfn.CONCAT(_xlpm.Yr,\"-\",_xlpm.CleanProgram,\"-\",_xlpm.Number))\n),\"\")","v":""},{"$f":"IFERROR(IF(A338=\"\",\"\",\n_xlfn.LET(_xlpm.Contract,'1. Checklist & Certification'!$F$7,\n_xlpm.Yr,TEXT(MOD(_xlfn.TEXTBEFORE(_xlpm.Contract,\"-\"),100),\"00\"),\n_xlpm.Program,_xlfn.TEXTAFTER(_xlfn.TEXTBEFORE(_xlpm.Contract,\"-\",2),\"-\"),\n_xlpm.CleanProgram,_xlfn.XLOOKUP(_xlpm.Program,SpellCheck[Input],SpellCheck[Correction],_xlpm.Program),\n_xlpm.Number,TEXT(_xlfn.TEXTAFTER(_xlpm.Contract,\"-\",2),\"0000\"),\n_xlfn.CONCAT(_xlpm.Yr,\"-\",_xlpm.CleanProgram,\"-\",_xlpm.Number))\n),\"\")","v":""},{"$f":"IFERROR(IF(A338=\"\",\"\",\n_xlfn.LET(_xlpm.Contract,'1. Checklist & Certification'!$F$8,\n_xlpm.Yr,TEXT(MOD(_xlfn.TEXTBEFORE(_xlpm.Contract,\"-\"),100),\"00\"),\n_xlpm.Program,_xlfn.TEXTAFTER(_xlfn.TEXTBEFORE(_xlpm.Contract,\"-\",2),\"-\"),\n_xlpm.CleanProgram,_xlfn.XLOOKUP(_xlpm.Program,SpellCheck[Input],SpellCheck[Correction],_xlpm.Program),\n_xlpm.Number,TEXT(_xlfn.TEXTAFTER(_xlpm.Contract,\"-\",2),\"0000\"),\n_xlfn.CONCAT(_xlpm.Yr,\"-\",_xlpm.CleanProgram,\"-\",_xlpm.Number))\n),\"\")","v":""},{"$f":"IF(A338=\"\",\"\",'1. Checklist & Certification'!$B$9)","v":""},{"$f":"IF(A338=\"\",\"\",'1. Checklist & Certification'!$F$9)","v":""},{"$f":"IF(A338=\"\",\"\",'1. Checklist & Certification'!$C$10)","v":""},{"$f":"IF(A338=\"\",\"\",'1. Checklist & Certification'!$C$11)","v":""},{"$f":"IF(A338=\"\",\"\",'1. Checklist & Certification'!$C$12)","v":""},{"$f":"IF(A338=\"\",\"\",'1. Checklist & Certification'!$B$14)","v":""},{"$f":"IF(A338=\"\",\"\",'1. Checklist & Certification'!$E$14)","v":""},{"$f":"IF(B338=\"\",\"\",'1. Checklist & Certification'!$G$14)","v":""},{"$f":"IF(A338=\"\",\"\",'MHP Family Income & Rent Limits'!$B$3)","v":""},{"$f":"IF(A338=\"\",\"\",'MHP Family Income & Rent Limits'!$J$3)","v":""},{"$f":"IF(A338=\"\",\"\",'MHP Family Income & Rent Limits'!$E$4)","v":""},{"$f":"IF(A338=\"\",\"\",'MHP Family Income & Rent Limits'!$C$7)","v":""},{"$f":"IF(A338=\"\",\"\",'MHP Family Income & Rent Limits'!$F$8)","v":""},{"$f":"IF(A338=\"\",\"\",'1. Checklist & Certification'!$G$4)","v":""},{"$f":"IF(A338=\"\",\"\",'1. Checklist & Certification'!$K$39)","v":""},{"$f":"IF(A338=\"\",\"\",'1. Checklist & Certification'!$K$43)","v":""},{"$f":"IF(A338=\"\",\"\",'1. Checklist & Certification'!$K$45)","v":""},{"$f":"IF(A338=\"\",\"\",'1. Checklist & Certification'!$K$49)","v":""},{"$f":"IF(A338=\"\",\"\",'1. Checklist & Certification'!$K$62)","v":""},{"$f":"IF(A338=\"\",\"\",'1. Checklist & Certification'!$E$66)","v":""},{"$f":"IF(A338=\"\",\"\",'1. Checklist & Certification'!$E$67)","v":""},{"$f":"IF(A338=\"\",\"\",'1. Checklist & Certification'!$E$68)","v":""},{"$f":"IF(A338=\"\",\"\",'1. Checklist & Certification'!$G$66)","v":""},{"$f":"IF(A338=\"\",\"\",'1. Checklist & Certification'!$H$66)","v":""},{"$f":"IF(A338=\"\",\"\",'1. Checklist & Certification'!$I$66)","v":""},{"$f":"IF(A338=\"\",\"\",'1. Checklist & Certification'!$I$67)","v":""},{"$f":"IF(A338=\"\",\"\",'1. Checklist & Certification'!$I$68)","v":""},{"$f":"IF(A338=\"\",\"\",'1. Checklist & Certification'!$B$69)","v":""},{"$f":"IF(A338=\"\",\"\",'1. Checklist & Certification'!$C$69)","v":""},{"$f":"IF(A338=\"\",\"\",'1. Checklist & Certification'!$F$69)","v":""},{"$f":"IF(A338=\"\",\"\",'1. Checklist & Certification'!$G$69)","v":""},{"$f":"IF(A338=\"\",\"\",'1. Checklist & Certification'!$J$69)","v":""},{"$f":"IF(A338=\"\",\"\",'1. Checklist & Certification'!$K$69)","v":""},null,null,{"$f":"IF(AND(OR('1. Checklist & Certification'!$M$16=1,'1. Checklist & Certification'!$M$19=2),AO338>0,B338=\"\",I338>0,AQ338<I338,AV338<>\"Sec 8-Project\"),\"X\",IF(AND(OR('1. Checklist & Certification'!$M$20=4,'1. Checklist & Certification'!$M$21=5,'1. Checklist & Certification'!$M$22=7),AO338>0,B338=\"\",I338>0,K338<I338),\"X\",\"\"))","v":""},{"$f":"IF(A338=\"\",\"\",IF(SUMPRODUCT(-- (ISNUMBER(SEARCH({\"*AHSC*\",\"*FMTW*\",\"*FWHG*\",\"*GHI*\",\"*HHC*\",\"*HLCP*\",\"*HOME*\",\"*LPR*\",\"*MHP*\",\"*NHTF*\",\"*NSP*\",\"*PRP*\",\"*TOD*\",\"*VHHP*\"},'1. Checklist & Certification'!$L$7)))),\"MHP\",\"Legacy\"))","v":""},",,",null,null,null,{"$f":"IF('1. Checklist & Certification'!$M$20=4,\"Both\",IF(OR('1. Checklist & Certification'!$M$15>0,S338=\"CHRP-R\",U338=\"CHRP-R\",W338=\"CHRP-R\",Y338=\"CHRP-R\"),\"Under\",\"No\"))","v":"No"},"No","No",{"$f":"_xlfn.IFS(D338=\"\",\"\",D338=1,'MHP Family Income & Rent Limits'!$E$17,D338=2,'MHP Family Income & Rent Limits'!$F$17,D338=3,'MHP Family Income & Rent Limits'!$G$17,D338=4,'MHP Family Income & Rent Limits'!$H$17,D338=5,'MHP Family Income & Rent Limits'!$I$17,D338=6,'MHP Family Income & Rent Limits'!$J$17,D338=7,'MHP Family Income & Rent Limits'!$K$17,D338=8,'MHP Family Income & Rent Limits'!$L$17)","v":""},"",{"$f":"IF(OR(A338=0,B338=\"X\"),0,MIN(IF(AA338:AD338<>0,AA338:AD338)))","v":0},{"$f":"IF(OR(H338=\"\",I338=\"\"),0,IF(H338*0.3/12>I338,MIN(H338*0.3/12,I338*1.1)+AP338,I338*(1+(VLOOKUP('1. Checklist & Certification'!$F$9,'HLCP-E Rent Change'!$A$1:$D$59,4,FALSE)))+AP338))","v":0}]
[null,null,null,null,null,null,null,null,null,null,null,null,null,null,null,null,null,null,null,null,null,null,null,null,null,null,0,0,0,0,0,0,0,0,{"$f":"IF(OR(A339=0,B339=\"X\"),0,IF(OR(S339=\"FHDP\",S339=\"RHCP-B\",U339=\"FHDP\",U339=\"RHCP-B\",W339=\"FHDP\",W339=\"RHCP-B\",Y339=\"FHDP\",Y339=\"RHCP-B\"),TRUNC((MIN(I339,K339)*(1+'1. Checklist & Certification'!$K$43)+AP339)),0))","v":0},{"$f":"IF(OR(A339=0,B339=\"X\"),0,IF(OR(S339=\"CHRP-R\",S339=\"SERA\",S339=\"SUHRP\",U339=\"CHRP-R\",U339=\"SERA\",U339=\"SUHRP\",W339=\"CHRP-R\",W339=\"SERA\",W339=\"SUHRP\",Y339=\"CHRP-R\",Y339=\"SERA\",Y339=\"SUHRP\"),TRUNC((MIN(I339,K339)*(1+'1. Checklist & Certification'!$K$49))),0))","v":0},{"$f":"IF(OR(A339=0,B339=\"X\"),0,IF(OR(S339=\"CALDAP\",S339=\"DPRLP\",U339=\"CALDAP\",U339=\"DPRLP\",W339=\"CALDAP\",W339=\"DPRLP\",Y339=\"CALDAP\",Y339=\"DPRLP\"),TRUNC(((MIN(I339,K339))*(1+'1. Checklist & Certification'!$G$4))),0))","v":0},0,0,0,{"$f":"IF(OR(A339=0,B339=\"X\"),0,IF(OR(S339=\"PRP\",S339=\"LPR\",U339=\"PRP\",U339=\"LPR\",W339=\"PRP\",W339=\"LPR\",Y339=\"PRP\",Y339=\"LPR\"),MAX(I339+AP339,MIN(IF(AE339:AN339<>0,AE339:AN339))),MIN(IF(AE339:AN339<>0,AE339:AN339))))","v":0},{"$f":"IF(A339=0,0,IF(AND(OR(S339=\"Mgr\",S339=0),OR(U339=\"Mgr\",U339=0),OR(W339=\"Mgr\",W339=0)),0,IF(LEFT($A339,2)=\"B*\",VLOOKUP($E339,'1. Checklist & Certification'!$D$26:$E$32,2),IF(LEFT($A339,2)=\"C*\",VLOOKUP($E339,'1. Checklist & Certification'!$F$26:$G$32,2),IF(LEFT($A339,2)=\"D*\",VLOOKUP($E339,'1. Checklist & Certification'!$H$26:$I$32,2),IF(LEFT($A339,2)=\"E*\",VLOOKUP($E339,'1. Checklist & Certification'!$J$26:$K$32,2),VLOOKUP($E339,'1. Checklist & Certification'!$A$26:$B$32,2)))))))","v":0},0,0,null,null,null,null,"","",0,0,0,null,{"$f":"IF(A339=\"\",\"\",'1. Checklist & Certification'!$K$1)","v":""},{"$f":"IF(A339=\"\",\"\",'1. Checklist & Certification'!$C$62)","v":""},{"$f":"IF(A339=\"\",\"\",'1. Checklist & Certification'!$C$6)","v":""},{"$f":"IF(A339=\"\",\"\",'1. Checklist & Certification'!$G$5)","v":""},{"$f":"IFERROR(IF(A339=\"\",\"\",\n_xlfn.LET(_xlpm.Contract,'1. Checklist & Certification'!$C$7,\n_xlpm.Yr,TEXT(MOD(_xlfn.TEXTBEFORE(_xlpm.Contract,\"-\"),100),\"00\"),\n_xlpm.Program,_xlfn.TEXTAFTER(_xlfn.TEXTBEFORE(_xlpm.Contract,\"-\",2),\"-\"),\n_xlpm.CleanProgram,_xlfn.XLOOKUP(_xlpm.Program,SpellCheck[Input],SpellCheck[Correction],_xlpm.Program),\n_xlpm.Number,TEXT(_xlfn.TEXTAFTER(_xlpm.Contract,\"-\",2),\"0000\"),\n_xlfn.CONCAT(_xlpm.Yr,\"-\",_xlpm.CleanProgram,\"-\",_xlpm.Number))\n),\"\")","v":""},{"$f":"IFERROR(IF(A339=\"\",\"\",\n_xlfn.LET(_xlpm.Contract,'1. Checklist & Certification'!$C$8,\n_xlpm.Yr,TEXT(MOD(_xlfn.TEXTBEFORE(_xlpm.Contract,\"-\"),100),\"00\"),\n_xlpm.Program,_xlfn.TEXTAFTER(_xlfn.TEXTBEFORE(_xlpm.Contract,\"-\",2),\"-\"),\n_xlpm.CleanProgram,_xlfn.XLOOKUP(_xlpm.Program,SpellCheck[Input],SpellCheck[Correction],_xlpm.Program),\n_xlpm.Number,TEXT(_xlfn.TEXTAFTER(_xlpm.Contract,\"-\",2),\"0000\"),\n_xlfn.CONCAT(_xlpm.Yr,\"-\",_xlpm.CleanProgram,\"-\",_xlpm.Number))\n),\"\")","v":""},{"$f":"IFERROR(IF(A339=\"\",\"\",\n_xlfn.LET(_xlpm.Contract,'1. Checklist & Certification'!$F$7,\n_xlpm.Yr,TEXT(MOD(_xlfn.TEXTBEFORE(_xlpm.Contract,\"-\"),100),\"00\"),\n_xlpm.Program,_xlfn.TEXTAFTER(_xlfn.TEXTBEFORE(_xlpm.Contract,\"-\",2),\"-\"),\n_xlpm.CleanProgram,_xlfn.XLOOKUP(_xlpm.Program,SpellCheck[Input],SpellCheck[Correction],_xlpm.Program),\n_xlpm.Number,TEXT(_xlfn.TEXTAFTER(_xlpm.Contract,\"-\",2),\"0000\"),\n_xlfn.CONCAT(_xlpm.Yr,\"-\",_xlpm.CleanProgram,\"-\",_xlpm.Number))\n),\"\")","v":""},{"$f":"IFERROR(IF(A339=\"\",\"\",\n_xlfn.LET(_xlpm.Contract,'1. Checklist & Certification'!$F$8,\n_xlpm.Yr,TEXT(MOD(_xlfn.TEXTBEFORE(_xlpm.Contract,\"-\"),100),\"00\"),\n_xlpm.Program,_xlfn.TEXTAFTER(_xlfn.TEXTBEFORE(_xlpm.Contract,\"-\",2),\"-\"),\n_xlpm.CleanProgram,_xlfn.XLOOKUP(_xlpm.Program,SpellCheck[Input],SpellCheck[Correction],_xlpm.Program),\n_xlpm.Number,TEXT(_xlfn.TEXTAFTER(_xlpm.Contract,\"-\",2),\"0000\"),\n_xlfn.CONCAT(_xlpm.Yr,\"-\",_xlpm.CleanProgram,\"-\",_xlpm.Number))\n),\"\")","v":""},{"$f":"IF(A339=\"\",\"\",'1. Checklist & Certification'!$B$9)","v":""},{"$f":"IF(A339=\"\",\"\",'1. Checklist & Certification'!$F$9)","v":""},{"$f":"IF(A339=\"\",\"\",'1. Checklist & Certification'!$C$10)","v":""},{"$f":"IF(A339=\"\",\"\",'1. Checklist & Certification'!$C$11)","v":""},{"$f":"IF(A339=\"\",\"\",'1. Checklist & Certification'!$C$12)","v":""},{"$f":"IF(A339=\"\",\"\",'1. Checklist & Certification'!$B$14)","v":""},{"$f":"IF(A339=\"\",\"\",'1. Checklist & Certification'!$E$14)","v":""},{"$f":"IF(B339=\"\",\"\",'1. Checklist & Certification'!$G$14)","v":""},{"$f":"IF(A339=\"\",\"\",'MHP Family Income & Rent Limits'!$B$3)","v":""},{"$f":"IF(A339=\"\",\"\",'MHP Family Income & Rent Limits'!$J$3)","v":""},{"$f":"IF(A339=\"\",\"\",'MHP Family Income & Rent Limits'!$E$4)","v":""},{"$f":"IF(A339=\"\",\"\",'MHP Family Income & Rent Limits'!$C$7)","v":""},{"$f":"IF(A339=\"\",\"\",'MHP Family Income & Rent Limits'!$F$8)","v":""},{"$f":"IF(A339=\"\",\"\",'1. Checklist & Certification'!$G$4)","v":""},{"$f":"IF(A339=\"\",\"\",'1. Checklist & Certification'!$K$39)","v":""},{"$f":"IF(A339=\"\",\"\",'1. Checklist & Certification'!$K$43)","v":""},{"$f":"IF(A339=\"\",\"\",'1. Checklist & Certification'!$K$45)","v":""},{"$f":"IF(A339=\"\",\"\",'1. Checklist & Certification'!$K$49)","v":""},{"$f":"IF(A339=\"\",\"\",'1. Checklist & Certification'!$K$62)","v":""},{"$f":"IF(A339=\"\",\"\",'1. Checklist & Certification'!$E$66)","v":""},{"$f":"IF(A339=\"\",\"\",'1. Checklist & Certification'!$E$67)","v":""},{"$f":"IF(A339=\"\",\"\",'1. Checklist & Certification'!$E$68)","v":""},{"$f":"IF(A339=\"\",\"\",'1. Checklist & Certification'!$G$66)","v":""},{"$f":"IF(A339=\"\",\"\",'1. Checklist & Certification'!$H$66)","v":""},{"$f":"IF(A339=\"\",\"\",'1. Checklist & Certification'!$I$66)","v":""},{"$f":"IF(A339=\"\",\"\",'1. Checklist & Certification'!$I$67)","v":""},{"$f":"IF(A339=\"\",\"\",'1. Checklist & Certification'!$I$68)","v":""},{"$f":"IF(A339=\"\",\"\",'1. Checklist & Certification'!$B$69)","v":""},{"$f":"IF(A339=\"\",\"\",'1. Checklist & Certification'!$C$69)","v":""},{"$f":"IF(A339=\"\",\"\",'1. Checklist & Certification'!$F$69)","v":""},{"$f":"IF(A339=\"\",\"\",'1. Checklist & Certification'!$G$69)","v":""},{"$f":"IF(A339=\"\",\"\",'1. Checklist & Certification'!$J$69)","v":""},{"$f":"IF(A339=\"\",\"\",'1. Checklist & Certification'!$K$69)","v":""},null,null,{"$f":"IF(AND(OR('1. Checklist & Certification'!$M$16=1,'1. Checklist & Certification'!$M$19=2),AO339>0,B339=\"\",I339>0,AQ339<I339,AV339<>\"Sec 8-Project\"),\"X\",IF(AND(OR('1. Checklist & Certification'!$M$20=4,'1. Checklist & Certification'!$M$21=5,'1. Checklist & Certification'!$M$22=7),AO339>0,B339=\"\",I339>0,K339<I339),\"X\",\"\"))","v":""},{"$f":"IF(A339=\"\",\"\",IF(SUMPRODUCT(-- (ISNUMBER(SEARCH({\"*AHSC*\",\"*FMTW*\",\"*FWHG*\",\"*GHI*\",\"*HHC*\",\"*HLCP*\",\"*HOME*\",\"*LPR*\",\"*MHP*\",\"*NHTF*\",\"*NSP*\",\"*PRP*\",\"*TOD*\",\"*VHHP*\"},'1. Checklist & Certification'!$L$7)))),\"MHP\",\"Legacy\"))","v":""},",,",null,null,null,{"$f":"IF('1. Checklist & Certification'!$M$20=4,\"Both\",IF(OR('1. Checklist & Certification'!$M$15>0,S339=\"CHRP-R\",U339=\"CHRP-R\",W339=\"CHRP-R\",Y339=\"CHRP-R\"),\"Under\",\"No\"))","v":"No"},"No","No",{"$f":"_xlfn.IFS(D339=\"\",\"\",D339=1,'MHP Family Income & Rent Limits'!$E$17,D339=2,'MHP Family Income & Rent Limits'!$F$17,D339=3,'MHP Family Income & Rent Limits'!$G$17,D339=4,'MHP Family Income & Rent Limits'!$H$17,D339=5,'MHP Family Income & Rent Limits'!$I$17,D339=6,'MHP Family Income & Rent Limits'!$J$17,D339=7,'MHP Family Income & Rent Limits'!$K$17,D339=8,'MHP Family Income & Rent Limits'!$L$17)","v":""},"",{"$f":"IF(OR(A339=0,B339=\"X\"),0,MIN(IF(AA339:AD339<>0,AA339:AD339)))","v":0},{"$f":"IF(OR(H339=\"\",I339=\"\"),0,IF(H339*0.3/12>I339,MIN(H339*0.3/12,I339*1.1)+AP339,I339*(1+(VLOOKUP('1. Checklist & Certification'!$F$9,'HLCP-E Rent Change'!$A$1:$D$59,4,FALSE)))+AP339))","v":0}]
[null,null,null,null,null,null,null,null,null,null,null,null,null,null,null,null,null,null,null,null,null,null,null,null,null,null,0,0,0,0,0,0,0,0,{"$f":"IF(OR(A340=0,B340=\"X\"),0,IF(OR(S340=\"FHDP\",S340=\"RHCP-B\",U340=\"FHDP\",U340=\"RHCP-B\",W340=\"FHDP\",W340=\"RHCP-B\",Y340=\"FHDP\",Y340=\"RHCP-B\"),TRUNC((MIN(I340,K340)*(1+'1. Checklist & Certification'!$K$43)+AP340)),0))","v":0},{"$f":"IF(OR(A340=0,B340=\"X\"),0,IF(OR(S340=\"CHRP-R\",S340=\"SERA\",S340=\"SUHRP\",U340=\"CHRP-R\",U340=\"SERA\",U340=\"SUHRP\",W340=\"CHRP-R\",W340=\"SERA\",W340=\"SUHRP\",Y340=\"CHRP-R\",Y340=\"SERA\",Y340=\"SUHRP\"),TRUNC((MIN(I340,K340)*(1+'1. Checklist & Certification'!$K$49))),0))","v":0},{"$f":"IF(OR(A340=0,B340=\"X\"),0,IF(OR(S340=\"CALDAP\",S340=\"DPRLP\",U340=\"CALDAP\",U340=\"DPRLP\",W340=\"CALDAP\",W340=\"DPRLP\",Y340=\"CALDAP\",Y340=\"DPRLP\"),TRUNC(((MIN(I340,K340))*(1+'1. Checklist & Certification'!$G$4))),0))","v":0},0,0,0,{"$f":"IF(OR(A340=0,B340=\"X\"),0,IF(OR(S340=\"PRP\",S340=\"LPR\",U340=\"PRP\",U340=\"LPR\",W340=\"PRP\",W340=\"LPR\",Y340=\"PRP\",Y340=\"LPR\"),MAX(I340+AP340,MIN(IF(AE340:AN340<>0,AE340:AN340))),MIN(IF(AE340:AN340<>0,AE340:AN340))))","v":0},{"$f":"IF(A340=0,0,IF(AND(OR(S340=\"Mgr\",S340=0),OR(U340=\"Mgr\",U340=0),OR(W340=\"Mgr\",W340=0)),0,IF(LEFT($A340,2)=\"B*\",VLOOKUP($E340,'1. Checklist & Certification'!$D$26:$E$32,2),IF(LEFT($A340,2)=\"C*\",VLOOKUP($E340,'1. Checklist & Certification'!$F$26:$G$32,2),IF(LEFT($A340,2)=\"D*\",VLOOKUP($E340,'1. Checklist & Certification'!$H$26:$I$32,2),IF(LEFT($A340,2)=\"E*\",VLOOKUP($E340,'1. Checklist & Certification'!$J$26:$K$32,2),VLOOKUP($E340,'1. Checklist & Certification'!$A$26:$B$32,2)))))))","v":0},0,0,null,null,null,null,"","",0,0,0,null,{"$f":"IF(A340=\"\",\"\",'1. Checklist & Certification'!$K$1)","v":""},{"$f":"IF(A340=\"\",\"\",'1. Checklist & Certification'!$C$62)","v":""},{"$f":"IF(A340=\"\",\"\",'1. Checklist & Certification'!$C$6)","v":""},{"$f":"IF(A340=\"\",\"\",'1. Checklist & Certification'!$G$5)","v":""},{"$f":"IFERROR(IF(A340=\"\",\"\",\n_xlfn.LET(_xlpm.Contract,'1. Checklist & Certification'!$C$7,\n_xlpm.Yr,TEXT(MOD(_xlfn.TEXTBEFORE(_xlpm.Contract,\"-\"),100),\"00\"),\n_xlpm.Program,_xlfn.TEXTAFTER(_xlfn.TEXTBEFORE(_xlpm.Contract,\"-\",2),\"-\"),\n_xlpm.CleanProgram,_xlfn.XLOOKUP(_xlpm.Program,SpellCheck[Input],SpellCheck[Correction],_xlpm.Program),\n_xlpm.Number,TEXT(_xlfn.TEXTAFTER(_xlpm.Contract,\"-\",2),\"0000\"),\n_xlfn.CONCAT(_xlpm.Yr,\"-\",_xlpm.CleanProgram,\"-\",_xlpm.Number))\n),\"\")","v":""},{"$f":"IFERROR(IF(A340=\"\",\"\",\n_xlfn.LET(_xlpm.Contract,'1. Checklist & Certification'!$C$8,\n_xlpm.Yr,TEXT(MOD(_xlfn.TEXTBEFORE(_xlpm.Contract,\"-\"),100),\"00\"),\n_xlpm.Program,_xlfn.TEXTAFTER(_xlfn.TEXTBEFORE(_xlpm.Contract,\"-\",2),\"-\"),\n_xlpm.CleanProgram,_xlfn.XLOOKUP(_xlpm.Program,SpellCheck[Input],SpellCheck[Correction],_xlpm.Program),\n_xlpm.Number,TEXT(_xlfn.TEXTAFTER(_xlpm.Contract,\"-\",2),\"0000\"),\n_xlfn.CONCAT(_xlpm.Yr,\"-\",_xlpm.CleanProgram,\"-\",_xlpm.Number))\n),\"\")","v":""},{"$f":"IFERROR(IF(A340=\"\",\"\",\n_xlfn.LET(_xlpm.Contract,'1. Checklist & Certification'!$F$7,\n_xlpm.Yr,TEXT(MOD(_xlfn.TEXTBEFORE(_xlpm.Contract,\"-\"),100),\"00\"),\n_xlpm.Program,_xlfn.TEXTAFTER(_xlfn.TEXTBEFORE(_xlpm.Contract,\"-\",2),\"-\"),\n_xlpm.CleanProgram,_xlfn.XLOOKUP(_xlpm.Program,SpellCheck[Input],SpellCheck[Correction],_xlpm.Program),\n_xlpm.Number,TEXT(_xlfn.TEXTAFTER(_xlpm.Contract,\"-\",2),\"0000\"),\n_xlfn.CONCAT(_xlpm.Yr,\"-\",_xlpm.CleanProgram,\"-\",_xlpm.Number))\n),\"\")","v":""},{"$f":"IFERROR(IF(A340=\"\",\"\",\n_xlfn.LET(_xlpm.Contract,'1. Checklist & Certification'!$F$8,\n_xlpm.Yr,TEXT(MOD(_xlfn.TEXTBEFORE(_xlpm.Contract,\"-\"),100),\"00\"),\n_xlpm.Program,_xlfn.TEXTAFTER(_xlfn.TEXTBEFORE(_xlpm.Contract,\"-\",2),\"-\"),\n_xlpm.CleanProgram,_xlfn.XLOOKUP(_xlpm.Program,SpellCheck[Input],SpellCheck[Correction],_xlpm.Program),\n_xlpm.Number,TEXT(_xlfn.TEXTAFTER(_xlpm.Contract,\"-\",2),\"0000\"),\n_xlfn.CONCAT(_xlpm.Yr,\"-\",_xlpm.CleanProgram,\"-\",_xlpm.Number))\n),\"\")","v":""},{"$f":"IF(A340=\"\",\"\",'1. Checklist & Certification'!$B$9)","v":""},{"$f":"IF(A340=\"\",\"\",'1. Checklist & Certification'!$F$9)","v":""},{"$f":"IF(A340=\"\",\"\",'1. Checklist & Certification'!$C$10)","v":""},{"$f":"IF(A340=\"\",\"\",'1. Checklist & Certification'!$C$11)","v":""},{"$f":"IF(A340=\"\",\"\",'1. Checklist & Certification'!$C$12)","v":""},{"$f":"IF(A340=\"\",\"\",'1. Checklist & Certification'!$B$14)","v":""},{"$f":"IF(A340=\"\",\"\",'1. Checklist & Certification'!$E$14)","v":""},{"$f":"IF(B340=\"\",\"\",'1. Checklist & Certification'!$G$14)","v":""},{"$f":"IF(A340=\"\",\"\",'MHP Family Income & Rent Limits'!$B$3)","v":""},{"$f":"IF(A340=\"\",\"\",'MHP Family Income & Rent Limits'!$J$3)","v":""},{"$f":"IF(A340=\"\",\"\",'MHP Family Income & Rent Limits'!$E$4)","v":""},{"$f":"IF(A340=\"\",\"\",'MHP Family Income & Rent Limits'!$C$7)","v":""},{"$f":"IF(A340=\"\",\"\",'MHP Family Income & Rent Limits'!$F$8)","v":""},{"$f":"IF(A340=\"\",\"\",'1. Checklist & Certification'!$G$4)","v":""},{"$f":"IF(A340=\"\",\"\",'1. Checklist & Certification'!$K$39)","v":""},{"$f":"IF(A340=\"\",\"\",'1. Checklist & Certification'!$K$43)","v":""},{"$f":"IF(A340=\"\",\"\",'1. Checklist & Certification'!$K$45)","v":""},{"$f":"IF(A340=\"\",\"\",'1. Checklist & Certification'!$K$49)","v":""},{"$f":"IF(A340=\"\",\"\",'1. Checklist & Certification'!$K$62)","v":""},{"$f":"IF(A340=\"\",\"\",'1. Checklist & Certification'!$E$66)","v":""},{"$f":"IF(A340=\"\",\"\",'1. Checklist & Certification'!$E$67)","v":""},{"$f":"IF(A340=\"\",\"\",'1. Checklist & Certification'!$E$68)","v":""},{"$f":"IF(A340=\"\",\"\",'1. Checklist & Certification'!$G$66)","v":""},{"$f":"IF(A340=\"\",\"\",'1. Checklist & Certification'!$H$66)","v":""},{"$f":"IF(A340=\"\",\"\",'1. Checklist & Certification'!$I$66)","v":""},{"$f":"IF(A340=\"\",\"\",'1. Checklist & Certification'!$I$67)","v":""},{"$f":"IF(A340=\"\",\"\",'1. Checklist & Certification'!$I$68)","v":""},{"$f":"IF(A340=\"\",\"\",'1. Checklist & Certification'!$B$69)","v":""},{"$f":"IF(A340=\"\",\"\",'1. Checklist & Certification'!$C$69)","v":""},{"$f":"IF(A340=\"\",\"\",'1. Checklist & Certification'!$F$69)","v":""},{"$f":"IF(A340=\"\",\"\",'1. Checklist & Certification'!$G$69)","v":""},{"$f":"IF(A340=\"\",\"\",'1. Checklist & Certification'!$J$69)","v":""},{"$f":"IF(A340=\"\",\"\",'1. Checklist & Certification'!$K$69)","v":""},null,null,{"$f":"IF(AND(OR('1. Checklist & Certification'!$M$16=1,'1. Checklist & Certification'!$M$19=2),AO340>0,B340=\"\",I340>0,AQ340<I340,AV340<>\"Sec 8-Project\"),\"X\",IF(AND(OR('1. Checklist & Certification'!$M$20=4,'1. Checklist & Certification'!$M$21=5,'1. Checklist & Certification'!$M$22=7),AO340>0,B340=\"\",I340>0,K340<I340),\"X\",\"\"))","v":""},{"$f":"IF(A340=\"\",\"\",IF(SUMPRODUCT(-- (ISNUMBER(SEARCH({\"*AHSC*\",\"*FMTW*\",\"*FWHG*\",\"*GHI*\",\"*HHC*\",\"*HLCP*\",\"*HOME*\",\"*LPR*\",\"*MHP*\",\"*NHTF*\",\"*NSP*\",\"*PRP*\",\"*TOD*\",\"*VHHP*\"},'1. Checklist & Certification'!$L$7)))),\"MHP\",\"Legacy\"))","v":""},",,",null,null,null,{"$f":"IF('1. Checklist & Certification'!$M$20=4,\"Both\",IF(OR('1. Checklist & Certification'!$M$15>0,S340=\"CHRP-R\",U340=\"CHRP-R\",W340=\"CHRP-R\",Y340=\"CHRP-R\"),\"Under\",\"No\"))","v":"No"},"No","No",{"$f":"_xlfn.IFS(D340=\"\",\"\",D340=1,'MHP Family Income & Rent Limits'!$E$17,D340=2,'MHP Family Income & Rent Limits'!$F$17,D340=3,'MHP Family Income & Rent Limits'!$G$17,D340=4,'MHP Family Income & Rent Limits'!$H$17,D340=5,'MHP Family Income & Rent Limits'!$I$17,D340=6,'MHP Family Income & Rent Limits'!$J$17,D340=7,'MHP Family Income & Rent Limits'!$K$17,D340=8,'MHP Family Income & Rent Limits'!$L$17)","v":""},"",{"$f":"IF(OR(A340=0,B340=\"X\"),0,MIN(IF(AA340:AD340<>0,AA340:AD340)))","v":0},{"$f":"IF(OR(H340=\"\",I340=\"\"),0,IF(H340*0.3/12>I340,MIN(H340*0.3/12,I340*1.1)+AP340,I340*(1+(VLOOKUP('1. Checklist & Certification'!$F$9,'HLCP-E Rent Change'!$A$1:$D$59,4,FALSE)))+AP340))","v":0}]
[null,null,null,null,null,null,null,null,null,null,null,null,null,null,null,null,null,null,null,null,null,null,null,null,null,null,0,0,0,0,0,0,0,0,{"$f":"IF(OR(A341=0,B341=\"X\"),0,IF(OR(S341=\"FHDP\",S341=\"RHCP-B\",U341=\"FHDP\",U341=\"RHCP-B\",W341=\"FHDP\",W341=\"RHCP-B\",Y341=\"FHDP\",Y341=\"RHCP-B\"),TRUNC((MIN(I341,K341)*(1+'1. Checklist & Certification'!$K$43)+AP341)),0))","v":0},{"$f":"IF(OR(A341=0,B341=\"X\"),0,IF(OR(S341=\"CHRP-R\",S341=\"SERA\",S341=\"SUHRP\",U341=\"CHRP-R\",U341=\"SERA\",U341=\"SUHRP\",W341=\"CHRP-R\",W341=\"SERA\",W341=\"SUHRP\",Y341=\"CHRP-R\",Y341=\"SERA\",Y341=\"SUHRP\"),TRUNC((MIN(I341,K341)*(1+'1. Checklist & Certification'!$K$49))),0))","v":0},{"$f":"IF(OR(A341=0,B341=\"X\"),0,IF(OR(S341=\"CALDAP\",S341=\"DPRLP\",U341=\"CALDAP\",U341=\"DPRLP\",W341=\"CALDAP\",W341=\"DPRLP\",Y341=\"CALDAP\",Y341=\"DPRLP\"),TRUNC(((MIN(I341,K341))*(1+'1. Checklist & Certification'!$G$4))),0))","v":0},0,0,0,{"$f":"IF(OR(A341=0,B341=\"X\"),0,IF(OR(S341=\"PRP\",S341=\"LPR\",U341=\"PRP\",U341=\"LPR\",W341=\"PRP\",W341=\"LPR\",Y341=\"PRP\",Y341=\"LPR\"),MAX(I341+AP341,MIN(IF(AE341:AN341<>0,AE341:AN341))),MIN(IF(AE341:AN341<>0,AE341:AN341))))","v":0},{"$f":"IF(A341=0,0,IF(AND(OR(S341=\"Mgr\",S341=0),OR(U341=\"Mgr\",U341=0),OR(W341=\"Mgr\",W341=0)),0,IF(LEFT($A341,2)=\"B*\",VLOOKUP($E341,'1. Checklist & Certification'!$D$26:$E$32,2),IF(LEFT($A341,2)=\"C*\",VLOOKUP($E341,'1. Checklist & Certification'!$F$26:$G$32,2),IF(LEFT($A341,2)=\"D*\",VLOOKUP($E341,'1. Checklist & Certification'!$H$26:$I$32,2),IF(LEFT($A341,2)=\"E*\",VLOOKUP($E341,'1. Checklist & Certification'!$J$26:$K$32,2),VLOOKUP($E341,'1. Checklist & Certification'!$A$26:$B$32,2)))))))","v":0},0,0,null,null,null,null,"","",0,0,0,null,{"$f":"IF(A341=\"\",\"\",'1. Checklist & Certification'!$K$1)","v":""},{"$f":"IF(A341=\"\",\"\",'1. Checklist & Certification'!$C$62)","v":""},{"$f":"IF(A341=\"\",\"\",'1. Checklist & Certification'!$C$6)","v":""},{"$f":"IF(A341=\"\",\"\",'1. Checklist & Certification'!$G$5)","v":""},{"$f":"IFERROR(IF(A341=\"\",\"\",\n_xlfn.LET(_xlpm.Contract,'1. Checklist & Certification'!$C$7,\n_xlpm.Yr,TEXT(MOD(_xlfn.TEXTBEFORE(_xlpm.Contract,\"-\"),100),\"00\"),\n_xlpm.Program,_xlfn.TEXTAFTER(_xlfn.TEXTBEFORE(_xlpm.Contract,\"-\",2),\"-\"),\n_xlpm.CleanProgram,_xlfn.XLOOKUP(_xlpm.Program,SpellCheck[Input],SpellCheck[Correction],_xlpm.Program),\n_xlpm.Number,TEXT(_xlfn.TEXTAFTER(_xlpm.Contract,\"-\",2),\"0000\"),\n_xlfn.CONCAT(_xlpm.Yr,\"-\",_xlpm.CleanProgram,\"-\",_xlpm.Number))\n),\"\")","v":""},{"$f":"IFERROR(IF(A341=\"\",\"\",\n_xlfn.LET(_xlpm.Contract,'1. Checklist & Certification'!$C$8,\n_xlpm.Yr,TEXT(MOD(_xlfn.TEXTBEFORE(_xlpm.Contract,\"-\"),100),\"00\"),\n_xlpm.Program,_xlfn.TEXTAFTER(_xlfn.TEXTBEFORE(_xlpm.Contract,\"-\",2),\"-\"),\n_xlpm.CleanProgram,_xlfn.XLOOKUP(_xlpm.Program,SpellCheck[Input],SpellCheck[Correction],_xlpm.Program),\n_xlpm.Number,TEXT(_xlfn.TEXTAFTER(_xlpm.Contract,\"-\",2),\"0000\"),\n_xlfn.CONCAT(_xlpm.Yr,\"-\",_xlpm.CleanProgram,\"-\",_xlpm.Number))\n),\"\")","v":""},{"$f":"IFERROR(IF(A341=\"\",\"\",\n_xlfn.LET(_xlpm.Contract,'1. Checklist & Certification'!$F$7,\n_xlpm.Yr,TEXT(MOD(_xlfn.TEXTBEFORE(_xlpm.Contract,\"-\"),100),\"00\"),\n_xlpm.Program,_xlfn.TEXTAFTER(_xlfn.TEXTBEFORE(_xlpm.Contract,\"-\",2),\"-\"),\n_xlpm.CleanProgram,_xlfn.XLOOKUP(_xlpm.Program,SpellCheck[Input],SpellCheck[Correction],_xlpm.Program),\n_xlpm.Number,TEXT(_xlfn.TEXTAFTER(_xlpm.Contract,\"-\",2),\"0000\"),\n_xlfn.CONCAT(_xlpm.Yr,\"-\",_xlpm.CleanProgram,\"-\",_xlpm.Number))\n),\"\")","v":""},{"$f":"IFERROR(IF(A341=\"\",\"\",\n_xlfn.LET(_xlpm.Contract,'1. Checklist & Certification'!$F$8,\n_xlpm.Yr,TEXT(MOD(_xlfn.TEXTBEFORE(_xlpm.Contract,\"-\"),100),\"00\"),\n_xlpm.Program,_xlfn.TEXTAFTER(_xlfn.TEXTBEFORE(_xlpm.Contract,\"-\",2),\"-\"),\n_xlpm.CleanProgram,_xlfn.XLOOKUP(_xlpm.Program,SpellCheck[Input],SpellCheck[Correction],_xlpm.Program),\n_xlpm.Number,TEXT(_xlfn.TEXTAFTER(_xlpm.Contract,\"-\",2),\"0000\"),\n_xlfn.CONCAT(_xlpm.Yr,\"-\",_xlpm.CleanProgram,\"-\",_xlpm.Number))\n),\"\")","v":""},{"$f":"IF(A341=\"\",\"\",'1. Checklist & Certification'!$B$9)","v":""},{"$f":"IF(A341=\"\",\"\",'1. Checklist & Certification'!$F$9)","v":""},{"$f":"IF(A341=\"\",\"\",'1. Checklist & Certification'!$C$10)","v":""},{"$f":"IF(A341=\"\",\"\",'1. Checklist & Certification'!$C$11)","v":""},{"$f":"IF(A341=\"\",\"\",'1. Checklist & Certification'!$C$12)","v":""},{"$f":"IF(A341=\"\",\"\",'1. Checklist & Certification'!$B$14)","v":""},{"$f":"IF(A341=\"\",\"\",'1. Checklist & Certification'!$E$14)","v":""},{"$f":"IF(B341=\"\",\"\",'1. Checklist & Certification'!$G$14)","v":""},{"$f":"IF(A341=\"\",\"\",'MHP Family Income & Rent Limits'!$B$3)","v":""},{"$f":"IF(A341=\"\",\"\",'MHP Family Income & Rent Limits'!$J$3)","v":""},{"$f":"IF(A341=\"\",\"\",'MHP Family Income & Rent Limits'!$E$4)","v":""},{"$f":"IF(A341=\"\",\"\",'MHP Family Income & Rent Limits'!$C$7)","v":""},{"$f":"IF(A341=\"\",\"\",'MHP Family Income & Rent Limits'!$F$8)","v":""},{"$f":"IF(A341=\"\",\"\",'1. Checklist & Certification'!$G$4)","v":""},{"$f":"IF(A341=\"\",\"\",'1. Checklist & Certification'!$K$39)","v":""},{"$f":"IF(A341=\"\",\"\",'1. Checklist & Certification'!$K$43)","v":""},{"$f":"IF(A341=\"\",\"\",'1. Checklist & Certification'!$K$45)","v":""},{"$f":"IF(A341=\"\",\"\",'1. Checklist & Certification'!$K$49)","v":""},{"$f":"IF(A341=\"\",\"\",'1. Checklist & Certification'!$K$62)","v":""},{"$f":"IF(A341=\"\",\"\",'1. Checklist & Certification'!$E$66)","v":""},{"$f":"IF(A341=\"\",\"\",'1. Checklist & Certification'!$E$67)","v":""},{"$f":"IF(A341=\"\",\"\",'1. Checklist & Certification'!$E$68)","v":""},{"$f":"IF(A341=\"\",\"\",'1. Checklist & Certification'!$G$66)","v":""},{"$f":"IF(A341=\"\",\"\",'1. Checklist & Certification'!$H$66)","v":""},{"$f":"IF(A341=\"\",\"\",'1. Checklist & Certification'!$I$66)","v":""},{"$f":"IF(A341=\"\",\"\",'1. Checklist & Certification'!$I$67)","v":""},{"$f":"IF(A341=\"\",\"\",'1. Checklist & Certification'!$I$68)","v":""},{"$f":"IF(A341=\"\",\"\",'1. Checklist & Certification'!$B$69)","v":""},{"$f":"IF(A341=\"\",\"\",'1. Checklist & Certification'!$C$69)","v":""},{"$f":"IF(A341=\"\",\"\",'1. Checklist & Certification'!$F$69)","v":""},{"$f":"IF(A341=\"\",\"\",'1. Checklist & Certification'!$G$69)","v":""},{"$f":"IF(A341=\"\",\"\",'1. Checklist & Certification'!$J$69)","v":""},{"$f":"IF(A341=\"\",\"\",'1. Checklist & Certification'!$K$69)","v":""},null,null,{"$f":"IF(AND(OR('1. Checklist & Certification'!$M$16=1,'1. Checklist & Certification'!$M$19=2),AO341>0,B341=\"\",I341>0,AQ341<I341,AV341<>\"Sec 8-Project\"),\"X\",IF(AND(OR('1. Checklist & Certification'!$M$20=4,'1. Checklist & Certification'!$M$21=5,'1. Checklist & Certification'!$M$22=7),AO341>0,B341=\"\",I341>0,K341<I341),\"X\",\"\"))","v":""},{"$f":"IF(A341=\"\",\"\",IF(SUMPRODUCT(-- (ISNUMBER(SEARCH({\"*AHSC*\",\"*FMTW*\",\"*FWHG*\",\"*GHI*\",\"*HHC*\",\"*HLCP*\",\"*HOME*\",\"*LPR*\",\"*MHP*\",\"*NHTF*\",\"*NSP*\",\"*PRP*\",\"*TOD*\",\"*VHHP*\"},'1. Checklist & Certification'!$L$7)))),\"MHP\",\"Legacy\"))","v":""},",,",null,null,null,{"$f":"IF('1. Checklist & Certification'!$M$20=4,\"Both\",IF(OR('1. Checklist & Certification'!$M$15>0,S341=\"CHRP-R\",U341=\"CHRP-R\",W341=\"CHRP-R\",Y341=\"CHRP-R\"),\"Under\",\"No\"))","v":"No"},"No","No",{"$f":"_xlfn.IFS(D341=\"\",\"\",D341=1,'MHP Family Income & Rent Limits'!$E$17,D341=2,'MHP Family Income & Rent Limits'!$F$17,D341=3,'MHP Family Income & Rent Limits'!$G$17,D341=4,'MHP Family Income & Rent Limits'!$H$17,D341=5,'MHP Family Income & Rent Limits'!$I$17,D341=6,'MHP Family Income & Rent Limits'!$J$17,D341=7,'MHP Family Income & Rent Limits'!$K$17,D341=8,'MHP Family Income & Rent Limits'!$L$17)","v":""},"",{"$f":"IF(OR(A341=0,B341=\"X\"),0,MIN(IF(AA341:AD341<>0,AA341:AD341)))","v":0},{"$f":"IF(OR(H341=\"\",I341=\"\"),0,IF(H341*0.3/12>I341,MIN(H341*0.3/12,I341*1.1)+AP341,I341*(1+(VLOOKUP('1. Checklist & Certification'!$F$9,'HLCP-E Rent Change'!$A$1:$D$59,4,FALSE)))+AP341))","v":0}]
[null,null,null,null,null,null,null,null,null,null,null,null,null,null,null,null,null,null,null,null,null,null,null,null,null,null,0,0,0,0,0,0,0,0,{"$f":"IF(OR(A342=0,B342=\"X\"),0,IF(OR(S342=\"FHDP\",S342=\"RHCP-B\",U342=\"FHDP\",U342=\"RHCP-B\",W342=\"FHDP\",W342=\"RHCP-B\",Y342=\"FHDP\",Y342=\"RHCP-B\"),TRUNC((MIN(I342,K342)*(1+'1. Checklist & Certification'!$K$43)+AP342)),0))","v":0},{"$f":"IF(OR(A342=0,B342=\"X\"),0,IF(OR(S342=\"CHRP-R\",S342=\"SERA\",S342=\"SUHRP\",U342=\"CHRP-R\",U342=\"SERA\",U342=\"SUHRP\",W342=\"CHRP-R\",W342=\"SERA\",W342=\"SUHRP\",Y342=\"CHRP-R\",Y342=\"SERA\",Y342=\"SUHRP\"),TRUNC((MIN(I342,K342)*(1+'1. Checklist & Certification'!$K$49))),0))","v":0},{"$f":"IF(OR(A342=0,B342=\"X\"),0,IF(OR(S342=\"CALDAP\",S342=\"DPRLP\",U342=\"CALDAP\",U342=\"DPRLP\",W342=\"CALDAP\",W342=\"DPRLP\",Y342=\"CALDAP\",Y342=\"DPRLP\"),TRUNC(((MIN(I342,K342))*(1+'1. Checklist & Certification'!$G$4))),0))","v":0},0,0,0,{"$f":"IF(OR(A342=0,B342=\"X\"),0,IF(OR(S342=\"PRP\",S342=\"LPR\",U342=\"PRP\",U342=\"LPR\",W342=\"PRP\",W342=\"LPR\",Y342=\"PRP\",Y342=\"LPR\"),MAX(I342+AP342,MIN(IF(AE342:AN342<>0,AE342:AN342))),MIN(IF(AE342:AN342<>0,AE342:AN342))))","v":0},{"$f":"IF(A342=0,0,IF(AND(OR(S342=\"Mgr\",S342=0),OR(U342=\"Mgr\",U342=0),OR(W342=\"Mgr\",W342=0)),0,IF(LEFT($A342,2)=\"B*\",VLOOKUP($E342,'1. Checklist & Certification'!$D$26:$E$32,2),IF(LEFT($A342,2)=\"C*\",VLOOKUP($E342,'1. Checklist & Certification'!$F$26:$G$32,2),IF(LEFT($A342,2)=\"D*\",VLOOKUP($E342,'1. Checklist & Certification'!$H$26:$I$32,2),IF(LEFT($A342,2)=\"E*\",VLOOKUP($E342,'1. Checklist & Certification'!$J$26:$K$32,2),VLOOKUP($E342,'1. Checklist & Certification'!$A$26:$B$32,2)))))))","v":0},0,0,null,null,null,null,"","",0,0,0,null,{"$f":"IF(A342=\"\",\"\",'1. Checklist & Certification'!$K$1)","v":""},{"$f":"IF(A342=\"\",\"\",'1. Checklist & Certification'!$C$62)","v":""},{"$f":"IF(A342=\"\",\"\",'1. Checklist & Certification'!$C$6)","v":""},{"$f":"IF(A342=\"\",\"\",'1. Checklist & Certification'!$G$5)","v":""},{"$f":"IFERROR(IF(A342=\"\",\"\",\n_xlfn.LET(_xlpm.Contract,'1. Checklist & Certification'!$C$7,\n_xlpm.Yr,TEXT(MOD(_xlfn.TEXTBEFORE(_xlpm.Contract,\"-\"),100),\"00\"),\n_xlpm.Program,_xlfn.TEXTAFTER(_xlfn.TEXTBEFORE(_xlpm.Contract,\"-\",2),\"-\"),\n_xlpm.CleanProgram,_xlfn.XLOOKUP(_xlpm.Program,SpellCheck[Input],SpellCheck[Correction],_xlpm.Program),\n_xlpm.Number,TEXT(_xlfn.TEXTAFTER(_xlpm.Contract,\"-\",2),\"0000\"),\n_xlfn.CONCAT(_xlpm.Yr,\"-\",_xlpm.CleanProgram,\"-\",_xlpm.Number))\n),\"\")","v":""},{"$f":"IFERROR(IF(A342=\"\",\"\",\n_xlfn.LET(_xlpm.Contract,'1. Checklist & Certification'!$C$8,\n_xlpm.Yr,TEXT(MOD(_xlfn.TEXTBEFORE(_xlpm.Contract,\"-\"),100),\"00\"),\n_xlpm.Program,_xlfn.TEXTAFTER(_xlfn.TEXTBEFORE(_xlpm.Contract,\"-\",2),\"-\"),\n_xlpm.CleanProgram,_xlfn.XLOOKUP(_xlpm.Program,SpellCheck[Input],SpellCheck[Correction],_xlpm.Program),\n_xlpm.Number,TEXT(_xlfn.TEXTAFTER(_xlpm.Contract,\"-\",2),\"0000\"),\n_xlfn.CONCAT(_xlpm.Yr,\"-\",_xlpm.CleanProgram,\"-\",_xlpm.Number))\n),\"\")","v":""},{"$f":"IFERROR(IF(A342=\"\",\"\",\n_xlfn.LET(_xlpm.Contract,'1. Checklist & Certification'!$F$7,\n_xlpm.Yr,TEXT(MOD(_xlfn.TEXTBEFORE(_xlpm.Contract,\"-\"),100),\"00\"),\n_xlpm.Program,_xlfn.TEXTAFTER(_xlfn.TEXTBEFORE(_xlpm.Contract,\"-\",2),\"-\"),\n_xlpm.CleanProgram,_xlfn.XLOOKUP(_xlpm.Program,SpellCheck[Input],SpellCheck[Correction],_xlpm.Program),\n_xlpm.Number,TEXT(_xlfn.TEXTAFTER(_xlpm.Contract,\"-\",2),\"0000\"),\n_xlfn.CONCAT(_xlpm.Yr,\"-\",_xlpm.CleanProgram,\"-\",_xlpm.Number))\n),\"\")","v":""},{"$f":"IFERROR(IF(A342=\"\",\"\",\n_xlfn.LET(_xlpm.Contract,'1. Checklist & Certification'!$F$8,\n_xlpm.Yr,TEXT(MOD(_xlfn.TEXTBEFORE(_xlpm.Contract,\"-\"),100),\"00\"),\n_xlpm.Program,_xlfn.TEXTAFTER(_xlfn.TEXTBEFORE(_xlpm.Contract,\"-\",2),\"-\"),\n_xlpm.CleanProgram,_xlfn.XLOOKUP(_xlpm.Program,SpellCheck[Input],SpellCheck[Correction],_xlpm.Program),\n_xlpm.Number,TEXT(_xlfn.TEXTAFTER(_xlpm.Contract,\"-\",2),\"0000\"),\n_xlfn.CONCAT(_xlpm.Yr,\"-\",_xlpm.CleanProgram,\"-\",_xlpm.Number))\n),\"\")","v":""},{"$f":"IF(A342=\"\",\"\",'1. Checklist & Certification'!$B$9)","v":""},{"$f":"IF(A342=\"\",\"\",'1. Checklist & Certification'!$F$9)","v":""},{"$f":"IF(A342=\"\",\"\",'1. Checklist & Certification'!$C$10)","v":""},{"$f":"IF(A342=\"\",\"\",'1. Checklist & Certification'!$C$11)","v":""},{"$f":"IF(A342=\"\",\"\",'1. Checklist & Certification'!$C$12)","v":""},{"$f":"IF(A342=\"\",\"\",'1. Checklist & Certification'!$B$14)","v":""},{"$f":"IF(A342=\"\",\"\",'1. Checklist & Certification'!$E$14)","v":""},{"$f":"IF(B342=\"\",\"\",'1. Checklist & Certification'!$G$14)","v":""},{"$f":"IF(A342=\"\",\"\",'MHP Family Income & Rent Limits'!$B$3)","v":""},{"$f":"IF(A342=\"\",\"\",'MHP Family Income & Rent Limits'!$J$3)","v":""},{"$f":"IF(A342=\"\",\"\",'MHP Family Income & Rent Limits'!$E$4)","v":""},{"$f":"IF(A342=\"\",\"\",'MHP Family Income & Rent Limits'!$C$7)","v":""},{"$f":"IF(A342=\"\",\"\",'MHP Family Income & Rent Limits'!$F$8)","v":""},{"$f":"IF(A342=\"\",\"\",'1. Checklist & Certification'!$G$4)","v":""},{"$f":"IF(A342=\"\",\"\",'1. Checklist & Certification'!$K$39)","v":""},{"$f":"IF(A342=\"\",\"\",'1. Checklist & Certification'!$K$43)","v":""},{"$f":"IF(A342=\"\",\"\",'1. Checklist & Certification'!$K$45)","v":""},{"$f":"IF(A342=\"\",\"\",'1. Checklist & Certification'!$K$49)","v":""},{"$f":"IF(A342=\"\",\"\",'1. Checklist & Certification'!$K$62)","v":""},{"$f":"IF(A342=\"\",\"\",'1. Checklist & Certification'!$E$66)","v":""},{"$f":"IF(A342=\"\",\"\",'1. Checklist & Certification'!$E$67)","v":""},{"$f":"IF(A342=\"\",\"\",'1. Checklist & Certification'!$E$68)","v":""},{"$f":"IF(A342=\"\",\"\",'1. Checklist & Certification'!$G$66)","v":""},{"$f":"IF(A342=\"\",\"\",'1. Checklist & Certification'!$H$66)","v":""},{"$f":"IF(A342=\"\",\"\",'1. Checklist & Certification'!$I$66)","v":""},{"$f":"IF(A342=\"\",\"\",'1. Checklist & Certification'!$I$67)","v":""},{"$f":"IF(A342=\"\",\"\",'1. Checklist & Certification'!$I$68)","v":""},{"$f":"IF(A342=\"\",\"\",'1. Checklist & Certification'!$B$69)","v":""},{"$f":"IF(A342=\"\",\"\",'1. Checklist & Certification'!$C$69)","v":""},{"$f":"IF(A342=\"\",\"\",'1. Checklist & Certification'!$F$69)","v":""},{"$f":"IF(A342=\"\",\"\",'1. Checklist & Certification'!$G$69)","v":""},{"$f":"IF(A342=\"\",\"\",'1. Checklist & Certification'!$J$69)","v":""},{"$f":"IF(A342=\"\",\"\",'1. Checklist & Certification'!$K$69)","v":""},null,null,{"$f":"IF(AND(OR('1. Checklist & Certification'!$M$16=1,'1. Checklist & Certification'!$M$19=2),AO342>0,B342=\"\",I342>0,AQ342<I342,AV342<>\"Sec 8-Project\"),\"X\",IF(AND(OR('1. Checklist & Certification'!$M$20=4,'1. Checklist & Certification'!$M$21=5,'1. Checklist & Certification'!$M$22=7),AO342>0,B342=\"\",I342>0,K342<I342),\"X\",\"\"))","v":""},{"$f":"IF(A342=\"\",\"\",IF(SUMPRODUCT(-- (ISNUMBER(SEARCH({\"*AHSC*\",\"*FMTW*\",\"*FWHG*\",\"*GHI*\",\"*HHC*\",\"*HLCP*\",\"*HOME*\",\"*LPR*\",\"*MHP*\",\"*NHTF*\",\"*NSP*\",\"*PRP*\",\"*TOD*\",\"*VHHP*\"},'1. Checklist & Certification'!$L$7)))),\"MHP\",\"Legacy\"))","v":""},",,",null,null,null,{"$f":"IF('1. Checklist & Certification'!$M$20=4,\"Both\",IF(OR('1. Checklist & Certification'!$M$15>0,S342=\"CHRP-R\",U342=\"CHRP-R\",W342=\"CHRP-R\",Y342=\"CHRP-R\"),\"Under\",\"No\"))","v":"No"},"No","No",{"$f":"_xlfn.IFS(D342=\"\",\"\",D342=1,'MHP Family Income & Rent Limits'!$E$17,D342=2,'MHP Family Income & Rent Limits'!$F$17,D342=3,'MHP Family Income & Rent Limits'!$G$17,D342=4,'MHP Family Income & Rent Limits'!$H$17,D342=5,'MHP Family Income & Rent Limits'!$I$17,D342=6,'MHP Family Income & Rent Limits'!$J$17,D342=7,'MHP Family Income & Rent Limits'!$K$17,D342=8,'MHP Family Income & Rent Limits'!$L$17)","v":""},"",{"$f":"IF(OR(A342=0,B342=\"X\"),0,MIN(IF(AA342:AD342<>0,AA342:AD342)))","v":0},{"$f":"IF(OR(H342=\"\",I342=\"\"),0,IF(H342*0.3/12>I342,MIN(H342*0.3/12,I342*1.1)+AP342,I342*(1+(VLOOKUP('1. Checklist & Certification'!$F$9,'HLCP-E Rent Change'!$A$1:$D$59,4,FALSE)))+AP342))","v":0}]
[null,null,null,null,null,null,null,null,null,null,null,null,null,null,null,null,null,null,null,null,null,null,null,null,null,null,0,0,0,0,0,0,0,0,{"$f":"IF(OR(A343=0,B343=\"X\"),0,IF(OR(S343=\"FHDP\",S343=\"RHCP-B\",U343=\"FHDP\",U343=\"RHCP-B\",W343=\"FHDP\",W343=\"RHCP-B\",Y343=\"FHDP\",Y343=\"RHCP-B\"),TRUNC((MIN(I343,K343)*(1+'1. Checklist & Certification'!$K$43)+AP343)),0))","v":0},{"$f":"IF(OR(A343=0,B343=\"X\"),0,IF(OR(S343=\"CHRP-R\",S343=\"SERA\",S343=\"SUHRP\",U343=\"CHRP-R\",U343=\"SERA\",U343=\"SUHRP\",W343=\"CHRP-R\",W343=\"SERA\",W343=\"SUHRP\",Y343=\"CHRP-R\",Y343=\"SERA\",Y343=\"SUHRP\"),TRUNC((MIN(I343,K343)*(1+'1. Checklist & Certification'!$K$49))),0))","v":0},{"$f":"IF(OR(A343=0,B343=\"X\"),0,IF(OR(S343=\"CALDAP\",S343=\"DPRLP\",U343=\"CALDAP\",U343=\"DPRLP\",W343=\"CALDAP\",W343=\"DPRLP\",Y343=\"CALDAP\",Y343=\"DPRLP\"),TRUNC(((MIN(I343,K343))*(1+'1. Checklist & Certification'!$G$4))),0))","v":0},0,0,0,{"$f":"IF(OR(A343=0,B343=\"X\"),0,IF(OR(S343=\"PRP\",S343=\"LPR\",U343=\"PRP\",U343=\"LPR\",W343=\"PRP\",W343=\"LPR\",Y343=\"PRP\",Y343=\"LPR\"),MAX(I343+AP343,MIN(IF(AE343:AN343<>0,AE343:AN343))),MIN(IF(AE343:AN343<>0,AE343:AN343))))","v":0},{"$f":"IF(A343=0,0,IF(AND(OR(S343=\"Mgr\",S343=0),OR(U343=\"Mgr\",U343=0),OR(W343=\"Mgr\",W343=0)),0,IF(LEFT($A343,2)=\"B*\",VLOOKUP($E343,'1. Checklist & Certification'!$D$26:$E$32,2),IF(LEFT($A343,2)=\"C*\",VLOOKUP($E343,'1. Checklist & Certification'!$F$26:$G$32,2),IF(LEFT($A343,2)=\"D*\",VLOOKUP($E343,'1. Checklist & Certification'!$H$26:$I$32,2),IF(LEFT($A343,2)=\"E*\",VLOOKUP($E343,'1. Checklist & Certification'!$J$26:$K$32,2),VLOOKUP($E343,'1. Checklist & Certification'!$A$26:$B$32,2)))))))","v":0},0,0,null,null,null,null,"","",0,0,0,null,{"$f":"IF(A343=\"\",\"\",'1. Checklist & Certification'!$K$1)","v":""},{"$f":"IF(A343=\"\",\"\",'1. Checklist & Certification'!$C$62)","v":""},{"$f":"IF(A343=\"\",\"\",'1. Checklist & Certification'!$C$6)","v":""},{"$f":"IF(A343=\"\",\"\",'1. Checklist & Certification'!$G$5)","v":""},{"$f":"IFERROR(IF(A343=\"\",\"\",\n_xlfn.LET(_xlpm.Contract,'1. Checklist & Certification'!$C$7,\n_xlpm.Yr,TEXT(MOD(_xlfn.TEXTBEFORE(_xlpm.Contract,\"-\"),100),\"00\"),\n_xlpm.Program,_xlfn.TEXTAFTER(_xlfn.TEXTBEFORE(_xlpm.Contract,\"-\",2),\"-\"),\n_xlpm.CleanProgram,_xlfn.XLOOKUP(_xlpm.Program,SpellCheck[Input],SpellCheck[Correction],_xlpm.Program),\n_xlpm.Number,TEXT(_xlfn.TEXTAFTER(_xlpm.Contract,\"-\",2),\"0000\"),\n_xlfn.CONCAT(_xlpm.Yr,\"-\",_xlpm.CleanProgram,\"-\",_xlpm.Number))\n),\"\")","v":""},{"$f":"IFERROR(IF(A343=\"\",\"\",\n_xlfn.LET(_xlpm.Contract,'1. Checklist & Certification'!$C$8,\n_xlpm.Yr,TEXT(MOD(_xlfn.TEXTBEFORE(_xlpm.Contract,\"-\"),100),\"00\"),\n_xlpm.Program,_xlfn.TEXTAFTER(_xlfn.TEXTBEFORE(_xlpm.Contract,\"-\",2),\"-\"),\n_xlpm.CleanProgram,_xlfn.XLOOKUP(_xlpm.Program,SpellCheck[Input],SpellCheck[Correction],_xlpm.Program),\n_xlpm.Number,TEXT(_xlfn.TEXTAFTER(_xlpm.Contract,\"-\",2),\"0000\"),\n_xlfn.CONCAT(_xlpm.Yr,\"-\",_xlpm.CleanProgram,\"-\",_xlpm.Number))\n),\"\")","v":""},{"$f":"IFERROR(IF(A343=\"\",\"\",\n_xlfn.LET(_xlpm.Contract,'1. Checklist & Certification'!$F$7,\n_xlpm.Yr,TEXT(MOD(_xlfn.TEXTBEFORE(_xlpm.Contract,\"-\"),100),\"00\"),\n_xlpm.Program,_xlfn.TEXTAFTER(_xlfn.TEXTBEFORE(_xlpm.Contract,\"-\",2),\"-\"),\n_xlpm.CleanProgram,_xlfn.XLOOKUP(_xlpm.Program,SpellCheck[Input],SpellCheck[Correction],_xlpm.Program),\n_xlpm.Number,TEXT(_xlfn.TEXTAFTER(_xlpm.Contract,\"-\",2),\"0000\"),\n_xlfn.CONCAT(_xlpm.Yr,\"-\",_xlpm.CleanProgram,\"-\",_xlpm.Number))\n),\"\")","v":""},{"$f":"IFERROR(IF(A343=\"\",\"\",\n_xlfn.LET(_xlpm.Contract,'1. Checklist & Certification'!$F$8,\n_xlpm.Yr,TEXT(MOD(_xlfn.TEXTBEFORE(_xlpm.Contract,\"-\"),100),\"00\"),\n_xlpm.Program,_xlfn.TEXTAFTER(_xlfn.TEXTBEFORE(_xlpm.Contract,\"-\",2),\"-\"),\n_xlpm.CleanProgram,_xlfn.XLOOKUP(_xlpm.Program,SpellCheck[Input],SpellCheck[Correction],_xlpm.Program),\n_xlpm.Number,TEXT(_xlfn.TEXTAFTER(_xlpm.Contract,\"-\",2),\"0000\"),\n_xlfn.CONCAT(_xlpm.Yr,\"-\",_xlpm.CleanProgram,\"-\",_xlpm.Number))\n),\"\")","v":""},{"$f":"IF(A343=\"\",\"\",'1. Checklist & Certification'!$B$9)","v":""},{"$f":"IF(A343=\"\",\"\",'1. Checklist & Certification'!$F$9)","v":""},{"$f":"IF(A343=\"\",\"\",'1. Checklist & Certification'!$C$10)","v":""},{"$f":"IF(A343=\"\",\"\",'1. Checklist & Certification'!$C$11)","v":""},{"$f":"IF(A343=\"\",\"\",'1. Checklist & Certification'!$C$12)","v":""},{"$f":"IF(A343=\"\",\"\",'1. Checklist & Certification'!$B$14)","v":""},{"$f":"IF(A343=\"\",\"\",'1. Checklist & Certification'!$E$14)","v":""},{"$f":"IF(B343=\"\",\"\",'1. Checklist & Certification'!$G$14)","v":""},{"$f":"IF(A343=\"\",\"\",'MHP Family Income & Rent Limits'!$B$3)","v":""},{"$f":"IF(A343=\"\",\"\",'MHP Family Income & Rent Limits'!$J$3)","v":""},{"$f":"IF(A343=\"\",\"\",'MHP Family Income & Rent Limits'!$E$4)","v":""},{"$f":"IF(A343=\"\",\"\",'MHP Family Income & Rent Limits'!$C$7)","v":""},{"$f":"IF(A343=\"\",\"\",'MHP Family Income & Rent Limits'!$F$8)","v":""},{"$f":"IF(A343=\"\",\"\",'1. Checklist & Certification'!$G$4)","v":""},{"$f":"IF(A343=\"\",\"\",'1. Checklist & Certification'!$K$39)","v":""},{"$f":"IF(A343=\"\",\"\",'1. Checklist & Certification'!$K$43)","v":""},{"$f":"IF(A343=\"\",\"\",'1. Checklist & Certification'!$K$45)","v":""},{"$f":"IF(A343=\"\",\"\",'1. Checklist & Certification'!$K$49)","v":""},{"$f":"IF(A343=\"\",\"\",'1. Checklist & Certification'!$K$62)","v":""},{"$f":"IF(A343=\"\",\"\",'1. Checklist & Certification'!$E$66)","v":""},{"$f":"IF(A343=\"\",\"\",'1. Checklist & Certification'!$E$67)","v":""},{"$f":"IF(A343=\"\",\"\",'1. Checklist & Certification'!$E$68)","v":""},{"$f":"IF(A343=\"\",\"\",'1. Checklist & Certification'!$G$66)","v":""},{"$f":"IF(A343=\"\",\"\",'1. Checklist & Certification'!$H$66)","v":""},{"$f":"IF(A343=\"\",\"\",'1. Checklist & Certification'!$I$66)","v":""},{"$f":"IF(A343=\"\",\"\",'1. Checklist & Certification'!$I$67)","v":""},{"$f":"IF(A343=\"\",\"\",'1. Checklist & Certification'!$I$68)","v":""},{"$f":"IF(A343=\"\",\"\",'1. Checklist & Certification'!$B$69)","v":""},{"$f":"IF(A343=\"\",\"\",'1. Checklist & Certification'!$C$69)","v":""},{"$f":"IF(A343=\"\",\"\",'1. Checklist & Certification'!$F$69)","v":""},{"$f":"IF(A343=\"\",\"\",'1. Checklist & Certification'!$G$69)","v":""},{"$f":"IF(A343=\"\",\"\",'1. Checklist & Certification'!$J$69)","v":""},{"$f":"IF(A343=\"\",\"\",'1. Checklist & Certification'!$K$69)","v":""},null,null,{"$f":"IF(AND(OR('1. Checklist & Certification'!$M$16=1,'1. Checklist & Certification'!$M$19=2),AO343>0,B343=\"\",I343>0,AQ343<I343,AV343<>\"Sec 8-Project\"),\"X\",IF(AND(OR('1. Checklist & Certification'!$M$20=4,'1. Checklist & Certification'!$M$21=5,'1. Checklist & Certification'!$M$22=7),AO343>0,B343=\"\",I343>0,K343<I343),\"X\",\"\"))","v":""},{"$f":"IF(A343=\"\",\"\",IF(SUMPRODUCT(-- (ISNUMBER(SEARCH({\"*AHSC*\",\"*FMTW*\",\"*FWHG*\",\"*GHI*\",\"*HHC*\",\"*HLCP*\",\"*HOME*\",\"*LPR*\",\"*MHP*\",\"*NHTF*\",\"*NSP*\",\"*PRP*\",\"*TOD*\",\"*VHHP*\"},'1. Checklist & Certification'!$L$7)))),\"MHP\",\"Legacy\"))","v":""},",,",null,null,null,{"$f":"IF('1. Checklist & Certification'!$M$20=4,\"Both\",IF(OR('1. Checklist & Certification'!$M$15>0,S343=\"CHRP-R\",U343=\"CHRP-R\",W343=\"CHRP-R\",Y343=\"CHRP-R\"),\"Under\",\"No\"))","v":"No"},"No","No",{"$f":"_xlfn.IFS(D343=\"\",\"\",D343=1,'MHP Family Income & Rent Limits'!$E$17,D343=2,'MHP Family Income & Rent Limits'!$F$17,D343=3,'MHP Family Income & Rent Limits'!$G$17,D343=4,'MHP Family Income & Rent Limits'!$H$17,D343=5,'MHP Family Income & Rent Limits'!$I$17,D343=6,'MHP Family Income & Rent Limits'!$J$17,D343=7,'MHP Family Income & Rent Limits'!$K$17,D343=8,'MHP Family Income & Rent Limits'!$L$17)","v":""},"",{"$f":"IF(OR(A343=0,B343=\"X\"),0,MIN(IF(AA343:AD343<>0,AA343:AD343)))","v":0},{"$f":"IF(OR(H343=\"\",I343=\"\"),0,IF(H343*0.3/12>I343,MIN(H343*0.3/12,I343*1.1)+AP343,I343*(1+(VLOOKUP('1. Checklist & Certification'!$F$9,'HLCP-E Rent Change'!$A$1:$D$59,4,FALSE)))+AP343))","v":0}]
[null,null,null,null,null,null,null,null,null,null,null,null,null,null,null,null,null,null,null,null,null,null,null,null,null,null,0,0,0,0,0,0,0,0,{"$f":"IF(OR(A344=0,B344=\"X\"),0,IF(OR(S344=\"FHDP\",S344=\"RHCP-B\",U344=\"FHDP\",U344=\"RHCP-B\",W344=\"FHDP\",W344=\"RHCP-B\",Y344=\"FHDP\",Y344=\"RHCP-B\"),TRUNC((MIN(I344,K344)*(1+'1. Checklist & Certification'!$K$43)+AP344)),0))","v":0},{"$f":"IF(OR(A344=0,B344=\"X\"),0,IF(OR(S344=\"CHRP-R\",S344=\"SERA\",S344=\"SUHRP\",U344=\"CHRP-R\",U344=\"SERA\",U344=\"SUHRP\",W344=\"CHRP-R\",W344=\"SERA\",W344=\"SUHRP\",Y344=\"CHRP-R\",Y344=\"SERA\",Y344=\"SUHRP\"),TRUNC((MIN(I344,K344)*(1+'1. Checklist & Certification'!$K$49))),0))","v":0},{"$f":"IF(OR(A344=0,B344=\"X\"),0,IF(OR(S344=\"CALDAP\",S344=\"DPRLP\",U344=\"CALDAP\",U344=\"DPRLP\",W344=\"CALDAP\",W344=\"DPRLP\",Y344=\"CALDAP\",Y344=\"DPRLP\"),TRUNC(((MIN(I344,K344))*(1+'1. Checklist & Certification'!$G$4))),0))","v":0},0,0,0,{"$f":"IF(OR(A344=0,B344=\"X\"),0,IF(OR(S344=\"PRP\",S344=\"LPR\",U344=\"PRP\",U344=\"LPR\",W344=\"PRP\",W344=\"LPR\",Y344=\"PRP\",Y344=\"LPR\"),MAX(I344+AP344,MIN(IF(AE344:AN344<>0,AE344:AN344))),MIN(IF(AE344:AN344<>0,AE344:AN344))))","v":0},{"$f":"IF(A344=0,0,IF(AND(OR(S344=\"Mgr\",S344=0),OR(U344=\"Mgr\",U344=0),OR(W344=\"Mgr\",W344=0)),0,IF(LEFT($A344,2)=\"B*\",VLOOKUP($E344,'1. Checklist & Certification'!$D$26:$E$32,2),IF(LEFT($A344,2)=\"C*\",VLOOKUP($E344,'1. Checklist & Certification'!$F$26:$G$32,2),IF(LEFT($A344,2)=\"D*\",VLOOKUP($E344,'1. Checklist & Certification'!$H$26:$I$32,2),IF(LEFT($A344,2)=\"E*\",VLOOKUP($E344,'1. Checklist & Certification'!$J$26:$K$32,2),VLOOKUP($E344,'1. Checklist & Certification'!$A$26:$B$32,2)))))))","v":0},0,0,null,null,null,null,"","",0,0,0,null,{"$f":"IF(A344=\"\",\"\",'1. Checklist & Certification'!$K$1)","v":""},{"$f":"IF(A344=\"\",\"\",'1. Checklist & Certification'!$C$62)","v":""},{"$f":"IF(A344=\"\",\"\",'1. Checklist & Certification'!$C$6)","v":""},{"$f":"IF(A344=\"\",\"\",'1. Checklist & Certification'!$G$5)","v":""},{"$f":"IFERROR(IF(A344=\"\",\"\",\n_xlfn.LET(_xlpm.Contract,'1. Checklist & Certification'!$C$7,\n_xlpm.Yr,TEXT(MOD(_xlfn.TEXTBEFORE(_xlpm.Contract,\"-\"),100),\"00\"),\n_xlpm.Program,_xlfn.TEXTAFTER(_xlfn.TEXTBEFORE(_xlpm.Contract,\"-\",2),\"-\"),\n_xlpm.CleanProgram,_xlfn.XLOOKUP(_xlpm.Program,SpellCheck[Input],SpellCheck[Correction],_xlpm.Program),\n_xlpm.Number,TEXT(_xlfn.TEXTAFTER(_xlpm.Contract,\"-\",2),\"0000\"),\n_xlfn.CONCAT(_xlpm.Yr,\"-\",_xlpm.CleanProgram,\"-\",_xlpm.Number))\n),\"\")","v":""},{"$f":"IFERROR(IF(A344=\"\",\"\",\n_xlfn.LET(_xlpm.Contract,'1. Checklist & Certification'!$C$8,\n_xlpm.Yr,TEXT(MOD(_xlfn.TEXTBEFORE(_xlpm.Contract,\"-\"),100),\"00\"),\n_xlpm.Program,_xlfn.TEXTAFTER(_xlfn.TEXTBEFORE(_xlpm.Contract,\"-\",2),\"-\"),\n_xlpm.CleanProgram,_xlfn.XLOOKUP(_xlpm.Program,SpellCheck[Input],SpellCheck[Correction],_xlpm.Program),\n_xlpm.Number,TEXT(_xlfn.TEXTAFTER(_xlpm.Contract,\"-\",2),\"0000\"),\n_xlfn.CONCAT(_xlpm.Yr,\"-\",_xlpm.CleanProgram,\"-\",_xlpm.Number))\n),\"\")","v":""},{"$f":"IFERROR(IF(A344=\"\",\"\",\n_xlfn.LET(_xlpm.Contract,'1. Checklist & Certification'!$F$7,\n_xlpm.Yr,TEXT(MOD(_xlfn.TEXTBEFORE(_xlpm.Contract,\"-\"),100),\"00\"),\n_xlpm.Program,_xlfn.TEXTAFTER(_xlfn.TEXTBEFORE(_xlpm.Contract,\"-\",2),\"-\"),\n_xlpm.CleanProgram,_xlfn.XLOOKUP(_xlpm.Program,SpellCheck[Input],SpellCheck[Correction],_xlpm.Program),\n_xlpm.Number,TEXT(_xlfn.TEXTAFTER(_xlpm.Contract,\"-\",2),\"0000\"),\n_xlfn.CONCAT(_xlpm.Yr,\"-\",_xlpm.CleanProgram,\"-\",_xlpm.Number))\n),\"\")","v":""},{"$f":"IFERROR(IF(A344=\"\",\"\",\n_xlfn.LET(_xlpm.Contract,'1. Checklist & Certification'!$F$8,\n_xlpm.Yr,TEXT(MOD(_xlfn.TEXTBEFORE(_xlpm.Contract,\"-\"),100),\"00\"),\n_xlpm.Program,_xlfn.TEXTAFTER(_xlfn.TEXTBEFORE(_xlpm.Contract,\"-\",2),\"-\"),\n_xlpm.CleanProgram,_xlfn.XLOOKUP(_xlpm.Program,SpellCheck[Input],SpellCheck[Correction],_xlpm.Program),\n_xlpm.Number,TEXT(_xlfn.TEXTAFTER(_xlpm.Contract,\"-\",2),\"0000\"),\n_xlfn.CONCAT(_xlpm.Yr,\"-\",_xlpm.CleanProgram,\"-\",_xlpm.Number))\n),\"\")","v":""},{"$f":"IF(A344=\"\",\"\",'1. Checklist & Certification'!$B$9)","v":""},{"$f":"IF(A344=\"\",\"\",'1. Checklist & Certification'!$F$9)","v":""},{"$f":"IF(A344=\"\",\"\",'1. Checklist & Certification'!$C$10)","v":""},{"$f":"IF(A344=\"\",\"\",'1. Checklist & Certification'!$C$11)","v":""},{"$f":"IF(A344=\"\",\"\",'1. Checklist & Certification'!$C$12)","v":""},{"$f":"IF(A344=\"\",\"\",'1. Checklist & Certification'!$B$14)","v":""},{"$f":"IF(A344=\"\",\"\",'1. Checklist & Certification'!$E$14)","v":""},{"$f":"IF(B344=\"\",\"\",'1. Checklist & Certification'!$G$14)","v":""},{"$f":"IF(A344=\"\",\"\",'MHP Family Income & Rent Limits'!$B$3)","v":""},{"$f":"IF(A344=\"\",\"\",'MHP Family Income & Rent Limits'!$J$3)","v":""},{"$f":"IF(A344=\"\",\"\",'MHP Family Income & Rent Limits'!$E$4)","v":""},{"$f":"IF(A344=\"\",\"\",'MHP Family Income & Rent Limits'!$C$7)","v":""},{"$f":"IF(A344=\"\",\"\",'MHP Family Income & Rent Limits'!$F$8)","v":""},{"$f":"IF(A344=\"\",\"\",'1. Checklist & Certification'!$G$4)","v":""},{"$f":"IF(A344=\"\",\"\",'1. Checklist & Certification'!$K$39)","v":""},{"$f":"IF(A344=\"\",\"\",'1. Checklist & Certification'!$K$43)","v":""},{"$f":"IF(A344=\"\",\"\",'1. Checklist & Certification'!$K$45)","v":""},{"$f":"IF(A344=\"\",\"\",'1. Checklist & Certification'!$K$49)","v":""},{"$f":"IF(A344=\"\",\"\",'1. Checklist & Certification'!$K$62)","v":""},{"$f":"IF(A344=\"\",\"\",'1. Checklist & Certification'!$E$66)","v":""},{"$f":"IF(A344=\"\",\"\",'1. Checklist & Certification'!$E$67)","v":""},{"$f":"IF(A344=\"\",\"\",'1. Checklist & Certification'!$E$68)","v":""},{"$f":"IF(A344=\"\",\"\",'1. Checklist & Certification'!$G$66)","v":""},{"$f":"IF(A344=\"\",\"\",'1. Checklist & Certification'!$H$66)","v":""},{"$f":"IF(A344=\"\",\"\",'1. Checklist & Certification'!$I$66)","v":""},{"$f":"IF(A344=\"\",\"\",'1. Checklist & Certification'!$I$67)","v":""},{"$f":"IF(A344=\"\",\"\",'1. Checklist & Certification'!$I$68)","v":""},{"$f":"IF(A344=\"\",\"\",'1. Checklist & Certification'!$B$69)","v":""},{"$f":"IF(A344=\"\",\"\",'1. Checklist & Certification'!$C$69)","v":""},{"$f":"IF(A344=\"\",\"\",'1. Checklist & Certification'!$F$69)","v":""},{"$f":"IF(A344=\"\",\"\",'1. Checklist & Certification'!$G$69)","v":""},{"$f":"IF(A344=\"\",\"\",'1. Checklist & Certification'!$J$69)","v":""},{"$f":"IF(A344=\"\",\"\",'1. Checklist & Certification'!$K$69)","v":""},null,null,{"$f":"IF(AND(OR('1. Checklist & Certification'!$M$16=1,'1. Checklist & Certification'!$M$19=2),AO344>0,B344=\"\",I344>0,AQ344<I344,AV344<>\"Sec 8-Project\"),\"X\",IF(AND(OR('1. Checklist & Certification'!$M$20=4,'1. Checklist & Certification'!$M$21=5,'1. Checklist & Certification'!$M$22=7),AO344>0,B344=\"\",I344>0,K344<I344),\"X\",\"\"))","v":""},{"$f":"IF(A344=\"\",\"\",IF(SUMPRODUCT(-- (ISNUMBER(SEARCH({\"*AHSC*\",\"*FMTW*\",\"*FWHG*\",\"*GHI*\",\"*HHC*\",\"*HLCP*\",\"*HOME*\",\"*LPR*\",\"*MHP*\",\"*NHTF*\",\"*NSP*\",\"*PRP*\",\"*TOD*\",\"*VHHP*\"},'1. Checklist & Certification'!$L$7)))),\"MHP\",\"Legacy\"))","v":""},",,",null,null,null,{"$f":"IF('1. Checklist & Certification'!$M$20=4,\"Both\",IF(OR('1. Checklist & Certification'!$M$15>0,S344=\"CHRP-R\",U344=\"CHRP-R\",W344=\"CHRP-R\",Y344=\"CHRP-R\"),\"Under\",\"No\"))","v":"No"},"No","No",{"$f":"_xlfn.IFS(D344=\"\",\"\",D344=1,'MHP Family Income & Rent Limits'!$E$17,D344=2,'MHP Family Income & Rent Limits'!$F$17,D344=3,'MHP Family Income & Rent Limits'!$G$17,D344=4,'MHP Family Income & Rent Limits'!$H$17,D344=5,'MHP Family Income & Rent Limits'!$I$17,D344=6,'MHP Family Income & Rent Limits'!$J$17,D344=7,'MHP Family Income & Rent Limits'!$K$17,D344=8,'MHP Family Income & Rent Limits'!$L$17)","v":""},"",{"$f":"IF(OR(A344=0,B344=\"X\"),0,MIN(IF(AA344:AD344<>0,AA344:AD344)))","v":0},{"$f":"IF(OR(H344=\"\",I344=\"\"),0,IF(H344*0.3/12>I344,MIN(H344*0.3/12,I344*1.1)+AP344,I344*(1+(VLOOKUP('1. Checklist & Certification'!$F$9,'HLCP-E Rent Change'!$A$1:$D$59,4,FALSE)))+AP344))","v":0}]
[null,null,null,null,null,null,null,null,null,null,null,null,null,null,null,null,null,null,null,null,null,null,null,null,null,null,0,0,0,0,0,0,0,0,{"$f":"IF(OR(A345=0,B345=\"X\"),0,IF(OR(S345=\"FHDP\",S345=\"RHCP-B\",U345=\"FHDP\",U345=\"RHCP-B\",W345=\"FHDP\",W345=\"RHCP-B\",Y345=\"FHDP\",Y345=\"RHCP-B\"),TRUNC((MIN(I345,K345)*(1+'1. Checklist & Certification'!$K$43)+AP345)),0))","v":0},{"$f":"IF(OR(A345=0,B345=\"X\"),0,IF(OR(S345=\"CHRP-R\",S345=\"SERA\",S345=\"SUHRP\",U345=\"CHRP-R\",U345=\"SERA\",U345=\"SUHRP\",W345=\"CHRP-R\",W345=\"SERA\",W345=\"SUHRP\",Y345=\"CHRP-R\",Y345=\"SERA\",Y345=\"SUHRP\"),TRUNC((MIN(I345,K345)*(1+'1. Checklist & Certification'!$K$49))),0))","v":0},{"$f":"IF(OR(A345=0,B345=\"X\"),0,IF(OR(S345=\"CALDAP\",S345=\"DPRLP\",U345=\"CALDAP\",U345=\"DPRLP\",W345=\"CALDAP\",W345=\"DPRLP\",Y345=\"CALDAP\",Y345=\"DPRLP\"),TRUNC(((MIN(I345,K345))*(1+'1. Checklist & Certification'!$G$4))),0))","v":0},0,0,0,{"$f":"IF(OR(A345=0,B345=\"X\"),0,IF(OR(S345=\"PRP\",S345=\"LPR\",U345=\"PRP\",U345=\"LPR\",W345=\"PRP\",W345=\"LPR\",Y345=\"PRP\",Y345=\"LPR\"),MAX(I345+AP345,MIN(IF(AE345:AN345<>0,AE345:AN345))),MIN(IF(AE345:AN345<>0,AE345:AN345))))","v":0},{"$f":"IF(A345=0,0,IF(AND(OR(S345=\"Mgr\",S345=0),OR(U345=\"Mgr\",U345=0),OR(W345=\"Mgr\",W345=0)),0,IF(LEFT($A345,2)=\"B*\",VLOOKUP($E345,'1. Checklist & Certification'!$D$26:$E$32,2),IF(LEFT($A345,2)=\"C*\",VLOOKUP($E345,'1. Checklist & Certification'!$F$26:$G$32,2),IF(LEFT($A345,2)=\"D*\",VLOOKUP($E345,'1. Checklist & Certification'!$H$26:$I$32,2),IF(LEFT($A345,2)=\"E*\",VLOOKUP($E345,'1. Checklist & Certification'!$J$26:$K$32,2),VLOOKUP($E345,'1. Checklist & Certification'!$A$26:$B$32,2)))))))","v":0},0,0,null,null,null,null,"","",0,0,0,null,{"$f":"IF(A345=\"\",\"\",'1. Checklist & Certification'!$K$1)","v":""},{"$f":"IF(A345=\"\",\"\",'1. Checklist & Certification'!$C$62)","v":""},{"$f":"IF(A345=\"\",\"\",'1. Checklist & Certification'!$C$6)","v":""},{"$f":"IF(A345=\"\",\"\",'1. Checklist & Certification'!$G$5)","v":""},{"$f":"IFERROR(IF(A345=\"\",\"\",\n_xlfn.LET(_xlpm.Contract,'1. Checklist & Certification'!$C$7,\n_xlpm.Yr,TEXT(MOD(_xlfn.TEXTBEFORE(_xlpm.Contract,\"-\"),100),\"00\"),\n_xlpm.Program,_xlfn.TEXTAFTER(_xlfn.TEXTBEFORE(_xlpm.Contract,\"-\",2),\"-\"),\n_xlpm.CleanProgram,_xlfn.XLOOKUP(_xlpm.Program,SpellCheck[Input],SpellCheck[Correction],_xlpm.Program),\n_xlpm.Number,TEXT(_xlfn.TEXTAFTER(_xlpm.Contract,\"-\",2),\"0000\"),\n_xlfn.CONCAT(_xlpm.Yr,\"-\",_xlpm.CleanProgram,\"-\",_xlpm.Number))\n),\"\")","v":""},{"$f":"IFERROR(IF(A345=\"\",\"\",\n_xlfn.LET(_xlpm.Contract,'1. Checklist & Certification'!$C$8,\n_xlpm.Yr,TEXT(MOD(_xlfn.TEXTBEFORE(_xlpm.Contract,\"-\"),100),\"00\"),\n_xlpm.Program,_xlfn.TEXTAFTER(_xlfn.TEXTBEFORE(_xlpm.Contract,\"-\",2),\"-\"),\n_xlpm.CleanProgram,_xlfn.XLOOKUP(_xlpm.Program,SpellCheck[Input],SpellCheck[Correction],_xlpm.Program),\n_xlpm.Number,TEXT(_xlfn.TEXTAFTER(_xlpm.Contract,\"-\",2),\"0000\"),\n_xlfn.CONCAT(_xlpm.Yr,\"-\",_xlpm.CleanProgram,\"-\",_xlpm.Number))\n),\"\")","v":""},{"$f":"IFERROR(IF(A345=\"\",\"\",\n_xlfn.LET(_xlpm.Contract,'1. Checklist & Certification'!$F$7,\n_xlpm.Yr,TEXT(MOD(_xlfn.TEXTBEFORE(_xlpm.Contract,\"-\"),100),\"00\"),\n_xlpm.Program,_xlfn.TEXTAFTER(_xlfn.TEXTBEFORE(_xlpm.Contract,\"-\",2),\"-\"),\n_xlpm.CleanProgram,_xlfn.XLOOKUP(_xlpm.Program,SpellCheck[Input],SpellCheck[Correction],_xlpm.Program),\n_xlpm.Number,TEXT(_xlfn.TEXTAFTER(_xlpm.Contract,\"-\",2),\"0000\"),\n_xlfn.CONCAT(_xlpm.Yr,\"-\",_xlpm.CleanProgram,\"-\",_xlpm.Number))\n),\"\")","v":""},{"$f":"IFERROR(IF(A345=\"\",\"\",\n_xlfn.LET(_xlpm.Contract,'1. Checklist & Certification'!$F$8,\n_xlpm.Yr,TEXT(MOD(_xlfn.TEXTBEFORE(_xlpm.Contract,\"-\"),100),\"00\"),\n_xlpm.Program,_xlfn.TEXTAFTER(_xlfn.TEXTBEFORE(_xlpm.Contract,\"-\",2),\"-\"),\n_xlpm.CleanProgram,_xlfn.XLOOKUP(_xlpm.Program,SpellCheck[Input],SpellCheck[Correction],_xlpm.Program),\n_xlpm.Number,TEXT(_xlfn.TEXTAFTER(_xlpm.Contract,\"-\",2),\"0000\"),\n_xlfn.CONCAT(_xlpm.Yr,\"-\",_xlpm.CleanProgram,\"-\",_xlpm.Number))\n),\"\")","v":""},{"$f":"IF(A345=\"\",\"\",'1. Checklist & Certification'!$B$9)","v":""},{"$f":"IF(A345=\"\",\"\",'1. Checklist & Certification'!$F$9)","v":""},{"$f":"IF(A345=\"\",\"\",'1. Checklist & Certification'!$C$10)","v":""},{"$f":"IF(A345=\"\",\"\",'1. Checklist & Certification'!$C$11)","v":""},{"$f":"IF(A345=\"\",\"\",'1. Checklist & Certification'!$C$12)","v":""},{"$f":"IF(A345=\"\",\"\",'1. Checklist & Certification'!$B$14)","v":""},{"$f":"IF(A345=\"\",\"\",'1. Checklist & Certification'!$E$14)","v":""},{"$f":"IF(B345=\"\",\"\",'1. Checklist & Certification'!$G$14)","v":""},{"$f":"IF(A345=\"\",\"\",'MHP Family Income & Rent Limits'!$B$3)","v":""},{"$f":"IF(A345=\"\",\"\",'MHP Family Income & Rent Limits'!$J$3)","v":""},{"$f":"IF(A345=\"\",\"\",'MHP Family Income & Rent Limits'!$E$4)","v":""},{"$f":"IF(A345=\"\",\"\",'MHP Family Income & Rent Limits'!$C$7)","v":""},{"$f":"IF(A345=\"\",\"\",'MHP Family Income & Rent Limits'!$F$8)","v":""},{"$f":"IF(A345=\"\",\"\",'1. Checklist & Certification'!$G$4)","v":""},{"$f":"IF(A345=\"\",\"\",'1. Checklist & Certification'!$K$39)","v":""},{"$f":"IF(A345=\"\",\"\",'1. Checklist & Certification'!$K$43)","v":""},{"$f":"IF(A345=\"\",\"\",'1. Checklist & Certification'!$K$45)","v":""},{"$f":"IF(A345=\"\",\"\",'1. Checklist & Certification'!$K$49)","v":""},{"$f":"IF(A345=\"\",\"\",'1. Checklist & Certification'!$K$62)","v":""},{"$f":"IF(A345=\"\",\"\",'1. Checklist & Certification'!$E$66)","v":""},{"$f":"IF(A345=\"\",\"\",'1. Checklist & Certification'!$E$67)","v":""},{"$f":"IF(A345=\"\",\"\",'1. Checklist & Certification'!$E$68)","v":""},{"$f":"IF(A345=\"\",\"\",'1. Checklist & Certification'!$G$66)","v":""},{"$f":"IF(A345=\"\",\"\",'1. Checklist & Certification'!$H$66)","v":""},{"$f":"IF(A345=\"\",\"\",'1. Checklist & Certification'!$I$66)","v":""},{"$f":"IF(A345=\"\",\"\",'1. Checklist & Certification'!$I$67)","v":""},{"$f":"IF(A345=\"\",\"\",'1. Checklist & Certification'!$I$68)","v":""},{"$f":"IF(A345=\"\",\"\",'1. Checklist & Certification'!$B$69)","v":""},{"$f":"IF(A345=\"\",\"\",'1. Checklist & Certification'!$C$69)","v":""},{"$f":"IF(A345=\"\",\"\",'1. Checklist & Certification'!$F$69)","v":""},{"$f":"IF(A345=\"\",\"\",'1. Checklist & Certification'!$G$69)","v":""},{"$f":"IF(A345=\"\",\"\",'1. Checklist & Certification'!$J$69)","v":""},{"$f":"IF(A345=\"\",\"\",'1. Checklist & Certification'!$K$69)","v":""},null,null,{"$f":"IF(AND(OR('1. Checklist & Certification'!$M$16=1,'1. Checklist & Certification'!$M$19=2),AO345>0,B345=\"\",I345>0,AQ345<I345,AV345<>\"Sec 8-Project\"),\"X\",IF(AND(OR('1. Checklist & Certification'!$M$20=4,'1. Checklist & Certification'!$M$21=5,'1. Checklist & Certification'!$M$22=7),AO345>0,B345=\"\",I345>0,K345<I345),\"X\",\"\"))","v":""},{"$f":"IF(A345=\"\",\"\",IF(SUMPRODUCT(-- (ISNUMBER(SEARCH({\"*AHSC*\",\"*FMTW*\",\"*FWHG*\",\"*GHI*\",\"*HHC*\",\"*HLCP*\",\"*HOME*\",\"*LPR*\",\"*MHP*\",\"*NHTF*\",\"*NSP*\",\"*PRP*\",\"*TOD*\",\"*VHHP*\"},'1. Checklist & Certification'!$L$7)))),\"MHP\",\"Legacy\"))","v":""},",,",null,null,null,{"$f":"IF('1. Checklist & Certification'!$M$20=4,\"Both\",IF(OR('1. Checklist & Certification'!$M$15>0,S345=\"CHRP-R\",U345=\"CHRP-R\",W345=\"CHRP-R\",Y345=\"CHRP-R\"),\"Under\",\"No\"))","v":"No"},"No","No",{"$f":"_xlfn.IFS(D345=\"\",\"\",D345=1,'MHP Family Income & Rent Limits'!$E$17,D345=2,'MHP Family Income & Rent Limits'!$F$17,D345=3,'MHP Family Income & Rent Limits'!$G$17,D345=4,'MHP Family Income & Rent Limits'!$H$17,D345=5,'MHP Family Income & Rent Limits'!$I$17,D345=6,'MHP Family Income & Rent Limits'!$J$17,D345=7,'MHP Family Income & Rent Limits'!$K$17,D345=8,'MHP Family Income & Rent Limits'!$L$17)","v":""},"",{"$f":"IF(OR(A345=0,B345=\"X\"),0,MIN(IF(AA345:AD345<>0,AA345:AD345)))","v":0},{"$f":"IF(OR(H345=\"\",I345=\"\"),0,IF(H345*0.3/12>I345,MIN(H345*0.3/12,I345*1.1)+AP345,I345*(1+(VLOOKUP('1. Checklist & Certification'!$F$9,'HLCP-E Rent Change'!$A$1:$D$59,4,FALSE)))+AP345))","v":0}]
[null,null,null,null,null,null,null,null,null,null,null,null,null,null,null,null,null,null,null,null,null,null,null,null,null,null,0,0,0,0,0,0,0,0,{"$f":"IF(OR(A346=0,B346=\"X\"),0,IF(OR(S346=\"FHDP\",S346=\"RHCP-B\",U346=\"FHDP\",U346=\"RHCP-B\",W346=\"FHDP\",W346=\"RHCP-B\",Y346=\"FHDP\",Y346=\"RHCP-B\"),TRUNC((MIN(I346,K346)*(1+'1. Checklist & Certification'!$K$43)+AP346)),0))","v":0},{"$f":"IF(OR(A346=0,B346=\"X\"),0,IF(OR(S346=\"CHRP-R\",S346=\"SERA\",S346=\"SUHRP\",U346=\"CHRP-R\",U346=\"SERA\",U346=\"SUHRP\",W346=\"CHRP-R\",W346=\"SERA\",W346=\"SUHRP\",Y346=\"CHRP-R\",Y346=\"SERA\",Y346=\"SUHRP\"),TRUNC((MIN(I346,K346)*(1+'1. Checklist & Certification'!$K$49))),0))","v":0},{"$f":"IF(OR(A346=0,B346=\"X\"),0,IF(OR(S346=\"CALDAP\",S346=\"DPRLP\",U346=\"CALDAP\",U346=\"DPRLP\",W346=\"CALDAP\",W346=\"DPRLP\",Y346=\"CALDAP\",Y346=\"DPRLP\"),TRUNC(((MIN(I346,K346))*(1+'1. Checklist & Certification'!$G$4))),0))","v":0},0,0,0,{"$f":"IF(OR(A346=0,B346=\"X\"),0,IF(OR(S346=\"PRP\",S346=\"LPR\",U346=\"PRP\",U346=\"LPR\",W346=\"PRP\",W346=\"LPR\",Y346=\"PRP\",Y346=\"LPR\"),MAX(I346+AP346,MIN(IF(AE346:AN346<>0,AE346:AN346))),MIN(IF(AE346:AN346<>0,AE346:AN346))))","v":0},{"$f":"IF(A346=0,0,IF(AND(OR(S346=\"Mgr\",S346=0),OR(U346=\"Mgr\",U346=0),OR(W346=\"Mgr\",W346=0)),0,IF(LEFT($A346,2)=\"B*\",VLOOKUP($E346,'1. Checklist & Certification'!$D$26:$E$32,2),IF(LEFT($A346,2)=\"C*\",VLOOKUP($E346,'1. Checklist & Certification'!$F$26:$G$32,2),IF(LEFT($A346,2)=\"D*\",VLOOKUP($E346,'1. Checklist & Certification'!$H$26:$I$32,2),IF(LEFT($A346,2)=\"E*\",VLOOKUP($E346,'1. Checklist & Certification'!$J$26:$K$32,2),VLOOKUP($E346,'1. Checklist & Certification'!$A$26:$B$32,2)))))))","v":0},0,0,null,null,null,null,"","",0,0,0,null,{"$f":"IF(A346=\"\",\"\",'1. Checklist & Certification'!$K$1)","v":""},{"$f":"IF(A346=\"\",\"\",'1. Checklist & Certification'!$C$62)","v":""},{"$f":"IF(A346=\"\",\"\",'1. Checklist & Certification'!$C$6)","v":""},{"$f":"IF(A346=\"\",\"\",'1. Checklist & Certification'!$G$5)","v":""},{"$f":"IFERROR(IF(A346=\"\",\"\",\n_xlfn.LET(_xlpm.Contract,'1. Checklist & Certification'!$C$7,\n_xlpm.Yr,TEXT(MOD(_xlfn.TEXTBEFORE(_xlpm.Contract,\"-\"),100),\"00\"),\n_xlpm.Program,_xlfn.TEXTAFTER(_xlfn.TEXTBEFORE(_xlpm.Contract,\"-\",2),\"-\"),\n_xlpm.CleanProgram,_xlfn.XLOOKUP(_xlpm.Program,SpellCheck[Input],SpellCheck[Correction],_xlpm.Program),\n_xlpm.Number,TEXT(_xlfn.TEXTAFTER(_xlpm.Contract,\"-\",2),\"0000\"),\n_xlfn.CONCAT(_xlpm.Yr,\"-\",_xlpm.CleanProgram,\"-\",_xlpm.Number))\n),\"\")","v":""},{"$f":"IFERROR(IF(A346=\"\",\"\",\n_xlfn.LET(_xlpm.Contract,'1. Checklist & Certification'!$C$8,\n_xlpm.Yr,TEXT(MOD(_xlfn.TEXTBEFORE(_xlpm.Contract,\"-\"),100),\"00\"),\n_xlpm.Program,_xlfn.TEXTAFTER(_xlfn.TEXTBEFORE(_xlpm.Contract,\"-\",2),\"-\"),\n_xlpm.CleanProgram,_xlfn.XLOOKUP(_xlpm.Program,SpellCheck[Input],SpellCheck[Correction],_xlpm.Program),\n_xlpm.Number,TEXT(_xlfn.TEXTAFTER(_xlpm.Contract,\"-\",2),\"0000\"),\n_xlfn.CONCAT(_xlpm.Yr,\"-\",_xlpm.CleanProgram,\"-\",_xlpm.Number))\n),\"\")","v":""},{"$f":"IFERROR(IF(A346=\"\",\"\",\n_xlfn.LET(_xlpm.Contract,'1. Checklist & Certification'!$F$7,\n_xlpm.Yr,TEXT(MOD(_xlfn.TEXTBEFORE(_xlpm.Contract,\"-\"),100),\"00\"),\n_xlpm.Program,_xlfn.TEXTAFTER(_xlfn.TEXTBEFORE(_xlpm.Contract,\"-\",2),\"-\"),\n_xlpm.CleanProgram,_xlfn.XLOOKUP(_xlpm.Program,SpellCheck[Input],SpellCheck[Correction],_xlpm.Program),\n_xlpm.Number,TEXT(_xlfn.TEXTAFTER(_xlpm.Contract,\"-\",2),\"0000\"),\n_xlfn.CONCAT(_xlpm.Yr,\"-\",_xlpm.CleanProgram,\"-\",_xlpm.Number))\n),\"\")","v":""},{"$f":"IFERROR(IF(A346=\"\",\"\",\n_xlfn.LET(_xlpm.Contract,'1. Checklist & Certification'!$F$8,\n_xlpm.Yr,TEXT(MOD(_xlfn.TEXTBEFORE(_xlpm.Contract,\"-\"),100),\"00\"),\n_xlpm.Program,_xlfn.TEXTAFTER(_xlfn.TEXTBEFORE(_xlpm.Contract,\"-\",2),\"-\"),\n_xlpm.CleanProgram,_xlfn.XLOOKUP(_xlpm.Program,SpellCheck[Input],SpellCheck[Correction],_xlpm.Program),\n_xlpm.Number,TEXT(_xlfn.TEXTAFTER(_xlpm.Contract,\"-\",2),\"0000\"),\n_xlfn.CONCAT(_xlpm.Yr,\"-\",_xlpm.CleanProgram,\"-\",_xlpm.Number))\n),\"\")","v":""},{"$f":"IF(A346=\"\",\"\",'1. Checklist & Certification'!$B$9)","v":""},{"$f":"IF(A346=\"\",\"\",'1. Checklist & Certification'!$F$9)","v":""},{"$f":"IF(A346=\"\",\"\",'1. Checklist & Certification'!$C$10)","v":""},{"$f":"IF(A346=\"\",\"\",'1. Checklist & Certification'!$C$11)","v":""},{"$f":"IF(A346=\"\",\"\",'1. Checklist & Certification'!$C$12)","v":""},{"$f":"IF(A346=\"\",\"\",'1. Checklist & Certification'!$B$14)","v":""},{"$f":"IF(A346=\"\",\"\",'1. Checklist & Certification'!$E$14)","v":""},{"$f":"IF(B346=\"\",\"\",'1. Checklist & Certification'!$G$14)","v":""},{"$f":"IF(A346=\"\",\"\",'MHP Family Income & Rent Limits'!$B$3)","v":""},{"$f":"IF(A346=\"\",\"\",'MHP Family Income & Rent Limits'!$J$3)","v":""},{"$f":"IF(A346=\"\",\"\",'MHP Family Income & Rent Limits'!$E$4)","v":""},{"$f":"IF(A346=\"\",\"\",'MHP Family Income & Rent Limits'!$C$7)","v":""},{"$f":"IF(A346=\"\",\"\",'MHP Family Income & Rent Limits'!$F$8)","v":""},{"$f":"IF(A346=\"\",\"\",'1. Checklist & Certification'!$G$4)","v":""},{"$f":"IF(A346=\"\",\"\",'1. Checklist & Certification'!$K$39)","v":""},{"$f":"IF(A346=\"\",\"\",'1. Checklist & Certification'!$K$43)","v":""},{"$f":"IF(A346=\"\",\"\",'1. Checklist & Certification'!$K$45)","v":""},{"$f":"IF(A346=\"\",\"\",'1. Checklist & Certification'!$K$49)","v":""},{"$f":"IF(A346=\"\",\"\",'1. Checklist & Certification'!$K$62)","v":""},{"$f":"IF(A346=\"\",\"\",'1. Checklist & Certification'!$E$66)","v":""},{"$f":"IF(A346=\"\",\"\",'1. Checklist & Certification'!$E$67)","v":""},{"$f":"IF(A346=\"\",\"\",'1. Checklist & Certification'!$E$68)","v":""},{"$f":"IF(A346=\"\",\"\",'1. Checklist & Certification'!$G$66)","v":""},{"$f":"IF(A346=\"\",\"\",'1. Checklist & Certification'!$H$66)","v":""},{"$f":"IF(A346=\"\",\"\",'1. Checklist & Certification'!$I$66)","v":""},{"$f":"IF(A346=\"\",\"\",'1. Checklist & Certification'!$I$67)","v":""},{"$f":"IF(A346=\"\",\"\",'1. Checklist & Certification'!$I$68)","v":""},{"$f":"IF(A346=\"\",\"\",'1. Checklist & Certification'!$B$69)","v":""},{"$f":"IF(A346=\"\",\"\",'1. Checklist & Certification'!$C$69)","v":""},{"$f":"IF(A346=\"\",\"\",'1. Checklist & Certification'!$F$69)","v":""},{"$f":"IF(A346=\"\",\"\",'1. Checklist & Certification'!$G$69)","v":""},{"$f":"IF(A346=\"\",\"\",'1. Checklist & Certification'!$J$69)","v":""},{"$f":"IF(A346=\"\",\"\",'1. Checklist & Certification'!$K$69)","v":""},null,null,{"$f":"IF(AND(OR('1. Checklist & Certification'!$M$16=1,'1. Checklist & Certification'!$M$19=2),AO346>0,B346=\"\",I346>0,AQ346<I346,AV346<>\"Sec 8-Project\"),\"X\",IF(AND(OR('1. Checklist & Certification'!$M$20=4,'1. Checklist & Certification'!$M$21=5,'1. Checklist & Certification'!$M$22=7),AO346>0,B346=\"\",I346>0,K346<I346),\"X\",\"\"))","v":""},{"$f":"IF(A346=\"\",\"\",IF(SUMPRODUCT(-- (ISNUMBER(SEARCH({\"*AHSC*\",\"*FMTW*\",\"*FWHG*\",\"*GHI*\",\"*HHC*\",\"*HLCP*\",\"*HOME*\",\"*LPR*\",\"*MHP*\",\"*NHTF*\",\"*NSP*\",\"*PRP*\",\"*TOD*\",\"*VHHP*\"},'1. Checklist & Certification'!$L$7)))),\"MHP\",\"Legacy\"))","v":""},",,",null,null,null,{"$f":"IF('1. Checklist & Certification'!$M$20=4,\"Both\",IF(OR('1. Checklist & Certification'!$M$15>0,S346=\"CHRP-R\",U346=\"CHRP-R\",W346=\"CHRP-R\",Y346=\"CHRP-R\"),\"Under\",\"No\"))","v":"No"},"No","No",{"$f":"_xlfn.IFS(D346=\"\",\"\",D346=1,'MHP Family Income & Rent Limits'!$E$17,D346=2,'MHP Family Income & Rent Limits'!$F$17,D346=3,'MHP Family Income & Rent Limits'!$G$17,D346=4,'MHP Family Income & Rent Limits'!$H$17,D346=5,'MHP Family Income & Rent Limits'!$I$17,D346=6,'MHP Family Income & Rent Limits'!$J$17,D346=7,'MHP Family Income & Rent Limits'!$K$17,D346=8,'MHP Family Income & Rent Limits'!$L$17)","v":""},"",{"$f":"IF(OR(A346=0,B346=\"X\"),0,MIN(IF(AA346:AD346<>0,AA346:AD346)))","v":0},{"$f":"IF(OR(H346=\"\",I346=\"\"),0,IF(H346*0.3/12>I346,MIN(H346*0.3/12,I346*1.1)+AP346,I346*(1+(VLOOKUP('1. Checklist & Certification'!$F$9,'HLCP-E Rent Change'!$A$1:$D$59,4,FALSE)))+AP346))","v":0}]
[null,null,null,null,null,null,null,null,null,null,null,null,null,null,null,null,null,null,null,null,null,null,null,null,null,null,0,0,0,0,0,0,0,0,{"$f":"IF(OR(A347=0,B347=\"X\"),0,IF(OR(S347=\"FHDP\",S347=\"RHCP-B\",U347=\"FHDP\",U347=\"RHCP-B\",W347=\"FHDP\",W347=\"RHCP-B\",Y347=\"FHDP\",Y347=\"RHCP-B\"),TRUNC((MIN(I347,K347)*(1+'1. Checklist & Certification'!$K$43)+AP347)),0))","v":0},{"$f":"IF(OR(A347=0,B347=\"X\"),0,IF(OR(S347=\"CHRP-R\",S347=\"SERA\",S347=\"SUHRP\",U347=\"CHRP-R\",U347=\"SERA\",U347=\"SUHRP\",W347=\"CHRP-R\",W347=\"SERA\",W347=\"SUHRP\",Y347=\"CHRP-R\",Y347=\"SERA\",Y347=\"SUHRP\"),TRUNC((MIN(I347,K347)*(1+'1. Checklist & Certification'!$K$49))),0))","v":0},{"$f":"IF(OR(A347=0,B347=\"X\"),0,IF(OR(S347=\"CALDAP\",S347=\"DPRLP\",U347=\"CALDAP\",U347=\"DPRLP\",W347=\"CALDAP\",W347=\"DPRLP\",Y347=\"CALDAP\",Y347=\"DPRLP\"),TRUNC(((MIN(I347,K347))*(1+'1. Checklist & Certification'!$G$4))),0))","v":0},0,0,0,{"$f":"IF(OR(A347=0,B347=\"X\"),0,IF(OR(S347=\"PRP\",S347=\"LPR\",U347=\"PRP\",U347=\"LPR\",W347=\"PRP\",W347=\"LPR\",Y347=\"PRP\",Y347=\"LPR\"),MAX(I347+AP347,MIN(IF(AE347:AN347<>0,AE347:AN347))),MIN(IF(AE347:AN347<>0,AE347:AN347))))","v":0},{"$f":"IF(A347=0,0,IF(AND(OR(S347=\"Mgr\",S347=0),OR(U347=\"Mgr\",U347=0),OR(W347=\"Mgr\",W347=0)),0,IF(LEFT($A347,2)=\"B*\",VLOOKUP($E347,'1. Checklist & Certification'!$D$26:$E$32,2),IF(LEFT($A347,2)=\"C*\",VLOOKUP($E347,'1. Checklist & Certification'!$F$26:$G$32,2),IF(LEFT($A347,2)=\"D*\",VLOOKUP($E347,'1. Checklist & Certification'!$H$26:$I$32,2),IF(LEFT($A347,2)=\"E*\",VLOOKUP($E347,'1. Checklist & Certification'!$J$26:$K$32,2),VLOOKUP($E347,'1. Checklist & Certification'!$A$26:$B$32,2)))))))","v":0},0,0,null,null,null,null,"","",0,0,0,null,{"$f":"IF(A347=\"\",\"\",'1. Checklist & Certification'!$K$1)","v":""},{"$f":"IF(A347=\"\",\"\",'1. Checklist & Certification'!$C$62)","v":""},{"$f":"IF(A347=\"\",\"\",'1. Checklist & Certification'!$C$6)","v":""},{"$f":"IF(A347=\"\",\"\",'1. Checklist & Certification'!$G$5)","v":""},{"$f":"IFERROR(IF(A347=\"\",\"\",\n_xlfn.LET(_xlpm.Contract,'1. Checklist & Certification'!$C$7,\n_xlpm.Yr,TEXT(MOD(_xlfn.TEXTBEFORE(_xlpm.Contract,\"-\"),100),\"00\"),\n_xlpm.Program,_xlfn.TEXTAFTER(_xlfn.TEXTBEFORE(_xlpm.Contract,\"-\",2),\"-\"),\n_xlpm.CleanProgram,_xlfn.XLOOKUP(_xlpm.Program,SpellCheck[Input],SpellCheck[Correction],_xlpm.Program),\n_xlpm.Number,TEXT(_xlfn.TEXTAFTER(_xlpm.Contract,\"-\",2),\"0000\"),\n_xlfn.CONCAT(_xlpm.Yr,\"-\",_xlpm.CleanProgram,\"-\",_xlpm.Number))\n),\"\")","v":""},{"$f":"IFERROR(IF(A347=\"\",\"\",\n_xlfn.LET(_xlpm.Contract,'1. Checklist & Certification'!$C$8,\n_xlpm.Yr,TEXT(MOD(_xlfn.TEXTBEFORE(_xlpm.Contract,\"-\"),100),\"00\"),\n_xlpm.Program,_xlfn.TEXTAFTER(_xlfn.TEXTBEFORE(_xlpm.Contract,\"-\",2),\"-\"),\n_xlpm.CleanProgram,_xlfn.XLOOKUP(_xlpm.Program,SpellCheck[Input],SpellCheck[Correction],_xlpm.Program),\n_xlpm.Number,TEXT(_xlfn.TEXTAFTER(_xlpm.Contract,\"-\",2),\"0000\"),\n_xlfn.CONCAT(_xlpm.Yr,\"-\",_xlpm.CleanProgram,\"-\",_xlpm.Number))\n),\"\")","v":""},{"$f":"IFERROR(IF(A347=\"\",\"\",\n_xlfn.LET(_xlpm.Contract,'1. Checklist & Certification'!$F$7,\n_xlpm.Yr,TEXT(MOD(_xlfn.TEXTBEFORE(_xlpm.Contract,\"-\"),100),\"00\"),\n_xlpm.Program,_xlfn.TEXTAFTER(_xlfn.TEXTBEFORE(_xlpm.Contract,\"-\",2),\"-\"),\n_xlpm.CleanProgram,_xlfn.XLOOKUP(_xlpm.Program,SpellCheck[Input],SpellCheck[Correction],_xlpm.Program),\n_xlpm.Number,TEXT(_xlfn.TEXTAFTER(_xlpm.Contract,\"-\",2),\"0000\"),\n_xlfn.CONCAT(_xlpm.Yr,\"-\",_xlpm.CleanProgram,\"-\",_xlpm.Number))\n),\"\")","v":""},{"$f":"IFERROR(IF(A347=\"\",\"\",\n_xlfn.LET(_xlpm.Contract,'1. Checklist & Certification'!$F$8,\n_xlpm.Yr,TEXT(MOD(_xlfn.TEXTBEFORE(_xlpm.Contract,\"-\"),100),\"00\"),\n_xlpm.Program,_xlfn.TEXTAFTER(_xlfn.TEXTBEFORE(_xlpm.Contract,\"-\",2),\"-\"),\n_xlpm.CleanProgram,_xlfn.XLOOKUP(_xlpm.Program,SpellCheck[Input],SpellCheck[Correction],_xlpm.Program),\n_xlpm.Number,TEXT(_xlfn.TEXTAFTER(_xlpm.Contract,\"-\",2),\"0000\"),\n_xlfn.CONCAT(_xlpm.Yr,\"-\",_xlpm.CleanProgram,\"-\",_xlpm.Number))\n),\"\")","v":""},{"$f":"IF(A347=\"\",\"\",'1. Checklist & Certification'!$B$9)","v":""},{"$f":"IF(A347=\"\",\"\",'1. Checklist & Certification'!$F$9)","v":""},{"$f":"IF(A347=\"\",\"\",'1. Checklist & Certification'!$C$10)","v":""},{"$f":"IF(A347=\"\",\"\",'1. Checklist & Certification'!$C$11)","v":""},{"$f":"IF(A347=\"\",\"\",'1. Checklist & Certification'!$C$12)","v":""},{"$f":"IF(A347=\"\",\"\",'1. Checklist & Certification'!$B$14)","v":""},{"$f":"IF(A347=\"\",\"\",'1. Checklist & Certification'!$E$14)","v":""},{"$f":"IF(B347=\"\",\"\",'1. Checklist & Certification'!$G$14)","v":""},{"$f":"IF(A347=\"\",\"\",'MHP Family Income & Rent Limits'!$B$3)","v":""},{"$f":"IF(A347=\"\",\"\",'MHP Family Income & Rent Limits'!$J$3)","v":""},{"$f":"IF(A347=\"\",\"\",'MHP Family Income & Rent Limits'!$E$4)","v":""},{"$f":"IF(A347=\"\",\"\",'MHP Family Income & Rent Limits'!$C$7)","v":""},{"$f":"IF(A347=\"\",\"\",'MHP Family Income & Rent Limits'!$F$8)","v":""},{"$f":"IF(A347=\"\",\"\",'1. Checklist & Certification'!$G$4)","v":""},{"$f":"IF(A347=\"\",\"\",'1. Checklist & Certification'!$K$39)","v":""},{"$f":"IF(A347=\"\",\"\",'1. Checklist & Certification'!$K$43)","v":""},{"$f":"IF(A347=\"\",\"\",'1. Checklist & Certification'!$K$45)","v":""},{"$f":"IF(A347=\"\",\"\",'1. Checklist & Certification'!$K$49)","v":""},{"$f":"IF(A347=\"\",\"\",'1. Checklist & Certification'!$K$62)","v":""},{"$f":"IF(A347=\"\",\"\",'1. Checklist & Certification'!$E$66)","v":""},{"$f":"IF(A347=\"\",\"\",'1. Checklist & Certification'!$E$67)","v":""},{"$f":"IF(A347=\"\",\"\",'1. Checklist & Certification'!$E$68)","v":""},{"$f":"IF(A347=\"\",\"\",'1. Checklist & Certification'!$G$66)","v":""},{"$f":"IF(A347=\"\",\"\",'1. Checklist & Certification'!$H$66)","v":""},{"$f":"IF(A347=\"\",\"\",'1. Checklist & Certification'!$I$66)","v":""},{"$f":"IF(A347=\"\",\"\",'1. Checklist & Certification'!$I$67)","v":""},{"$f":"IF(A347=\"\",\"\",'1. Checklist & Certification'!$I$68)","v":""},{"$f":"IF(A347=\"\",\"\",'1. Checklist & Certification'!$B$69)","v":""},{"$f":"IF(A347=\"\",\"\",'1. Checklist & Certification'!$C$69)","v":""},{"$f":"IF(A347=\"\",\"\",'1. Checklist & Certification'!$F$69)","v":""},{"$f":"IF(A347=\"\",\"\",'1. Checklist & Certification'!$G$69)","v":""},{"$f":"IF(A347=\"\",\"\",'1. Checklist & Certification'!$J$69)","v":""},{"$f":"IF(A347=\"\",\"\",'1. Checklist & Certification'!$K$69)","v":""},null,null,{"$f":"IF(AND(OR('1. Checklist & Certification'!$M$16=1,'1. Checklist & Certification'!$M$19=2),AO347>0,B347=\"\",I347>0,AQ347<I347,AV347<>\"Sec 8-Project\"),\"X\",IF(AND(OR('1. Checklist & Certification'!$M$20=4,'1. Checklist & Certification'!$M$21=5,'1. Checklist & Certification'!$M$22=7),AO347>0,B347=\"\",I347>0,K347<I347),\"X\",\"\"))","v":""},{"$f":"IF(A347=\"\",\"\",IF(SUMPRODUCT(-- (ISNUMBER(SEARCH({\"*AHSC*\",\"*FMTW*\",\"*FWHG*\",\"*GHI*\",\"*HHC*\",\"*HLCP*\",\"*HOME*\",\"*LPR*\",\"*MHP*\",\"*NHTF*\",\"*NSP*\",\"*PRP*\",\"*TOD*\",\"*VHHP*\"},'1. Checklist & Certification'!$L$7)))),\"MHP\",\"Legacy\"))","v":""},",,",null,null,null,{"$f":"IF('1. Checklist & Certification'!$M$20=4,\"Both\",IF(OR('1. Checklist & Certification'!$M$15>0,S347=\"CHRP-R\",U347=\"CHRP-R\",W347=\"CHRP-R\",Y347=\"CHRP-R\"),\"Under\",\"No\"))","v":"No"},"No","No",{"$f":"_xlfn.IFS(D347=\"\",\"\",D347=1,'MHP Family Income & Rent Limits'!$E$17,D347=2,'MHP Family Income & Rent Limits'!$F$17,D347=3,'MHP Family Income & Rent Limits'!$G$17,D347=4,'MHP Family Income & Rent Limits'!$H$17,D347=5,'MHP Family Income & Rent Limits'!$I$17,D347=6,'MHP Family Income & Rent Limits'!$J$17,D347=7,'MHP Family Income & Rent Limits'!$K$17,D347=8,'MHP Family Income & Rent Limits'!$L$17)","v":""},"",{"$f":"IF(OR(A347=0,B347=\"X\"),0,MIN(IF(AA347:AD347<>0,AA347:AD347)))","v":0},{"$f":"IF(OR(H347=\"\",I347=\"\"),0,IF(H347*0.3/12>I347,MIN(H347*0.3/12,I347*1.1)+AP347,I347*(1+(VLOOKUP('1. Checklist & Certification'!$F$9,'HLCP-E Rent Change'!$A$1:$D$59,4,FALSE)))+AP347))","v":0}]
[null,null,null,null,null,null,null,null,null,null,null,null,null,null,null,null,null,null,null,null,null,null,null,null,null,null,0,0,0,0,0,0,0,0,{"$f":"IF(OR(A348=0,B348=\"X\"),0,IF(OR(S348=\"FHDP\",S348=\"RHCP-B\",U348=\"FHDP\",U348=\"RHCP-B\",W348=\"FHDP\",W348=\"RHCP-B\",Y348=\"FHDP\",Y348=\"RHCP-B\"),TRUNC((MIN(I348,K348)*(1+'1. Checklist & Certification'!$K$43)+AP348)),0))","v":0},{"$f":"IF(OR(A348=0,B348=\"X\"),0,IF(OR(S348=\"CHRP-R\",S348=\"SERA\",S348=\"SUHRP\",U348=\"CHRP-R\",U348=\"SERA\",U348=\"SUHRP\",W348=\"CHRP-R\",W348=\"SERA\",W348=\"SUHRP\",Y348=\"CHRP-R\",Y348=\"SERA\",Y348=\"SUHRP\"),TRUNC((MIN(I348,K348)*(1+'1. Checklist & Certification'!$K$49))),0))","v":0},{"$f":"IF(OR(A348=0,B348=\"X\"),0,IF(OR(S348=\"CALDAP\",S348=\"DPRLP\",U348=\"CALDAP\",U348=\"DPRLP\",W348=\"CALDAP\",W348=\"DPRLP\",Y348=\"CALDAP\",Y348=\"DPRLP\"),TRUNC(((MIN(I348,K348))*(1+'1. Checklist & Certification'!$G$4))),0))","v":0},0,0,0,{"$f":"IF(OR(A348=0,B348=\"X\"),0,IF(OR(S348=\"PRP\",S348=\"LPR\",U348=\"PRP\",U348=\"LPR\",W348=\"PRP\",W348=\"LPR\",Y348=\"PRP\",Y348=\"LPR\"),MAX(I348+AP348,MIN(IF(AE348:AN348<>0,AE348:AN348))),MIN(IF(AE348:AN348<>0,AE348:AN348))))","v":0},{"$f":"IF(A348=0,0,IF(AND(OR(S348=\"Mgr\",S348=0),OR(U348=\"Mgr\",U348=0),OR(W348=\"Mgr\",W348=0)),0,IF(LEFT($A348,2)=\"B*\",VLOOKUP($E348,'1. Checklist & Certification'!$D$26:$E$32,2),IF(LEFT($A348,2)=\"C*\",VLOOKUP($E348,'1. Checklist & Certification'!$F$26:$G$32,2),IF(LEFT($A348,2)=\"D*\",VLOOKUP($E348,'1. Checklist & Certification'!$H$26:$I$32,2),IF(LEFT($A348,2)=\"E*\",VLOOKUP($E348,'1. Checklist & Certification'!$J$26:$K$32,2),VLOOKUP($E348,'1. Checklist & Certification'!$A$26:$B$32,2)))))))","v":0},0,0,null,null,null,null,"","",0,0,0,null,{"$f":"IF(A348=\"\",\"\",'1. Checklist & Certification'!$K$1)","v":""},{"$f":"IF(A348=\"\",\"\",'1. Checklist & Certification'!$C$62)","v":""},{"$f":"IF(A348=\"\",\"\",'1. Checklist & Certification'!$C$6)","v":""},{"$f":"IF(A348=\"\",\"\",'1. Checklist & Certification'!$G$5)","v":""},{"$f":"IFERROR(IF(A348=\"\",\"\",\n_xlfn.LET(_xlpm.Contract,'1. Checklist & Certification'!$C$7,\n_xlpm.Yr,TEXT(MOD(_xlfn.TEXTBEFORE(_xlpm.Contract,\"-\"),100),\"00\"),\n_xlpm.Program,_xlfn.TEXTAFTER(_xlfn.TEXTBEFORE(_xlpm.Contract,\"-\",2),\"-\"),\n_xlpm.CleanProgram,_xlfn.XLOOKUP(_xlpm.Program,SpellCheck[Input],SpellCheck[Correction],_xlpm.Program),\n_xlpm.Number,TEXT(_xlfn.TEXTAFTER(_xlpm.Contract,\"-\",2),\"0000\"),\n_xlfn.CONCAT(_xlpm.Yr,\"-\",_xlpm.CleanProgram,\"-\",_xlpm.Number))\n),\"\")","v":""},{"$f":"IFERROR(IF(A348=\"\",\"\",\n_xlfn.LET(_xlpm.Contract,'1. Checklist & Certification'!$C$8,\n_xlpm.Yr,TEXT(MOD(_xlfn.TEXTBEFORE(_xlpm.Contract,\"-\"),100),\"00\"),\n_xlpm.Program,_xlfn.TEXTAFTER(_xlfn.TEXTBEFORE(_xlpm.Contract,\"-\",2),\"-\"),\n_xlpm.CleanProgram,_xlfn.XLOOKUP(_xlpm.Program,SpellCheck[Input],SpellCheck[Correction],_xlpm.Program),\n_xlpm.Number,TEXT(_xlfn.TEXTAFTER(_xlpm.Contract,\"-\",2),\"0000\"),\n_xlfn.CONCAT(_xlpm.Yr,\"-\",_xlpm.CleanProgram,\"-\",_xlpm.Number))\n),\"\")","v":""},{"$f":"IFERROR(IF(A348=\"\",\"\",\n_xlfn.LET(_xlpm.Contract,'1. Checklist & Certification'!$F$7,\n_xlpm.Yr,TEXT(MOD(_xlfn.TEXTBEFORE(_xlpm.Contract,\"-\"),100),\"00\"),\n_xlpm.Program,_xlfn.TEXTAFTER(_xlfn.TEXTBEFORE(_xlpm.Contract,\"-\",2),\"-\"),\n_xlpm.CleanProgram,_xlfn.XLOOKUP(_xlpm.Program,SpellCheck[Input],SpellCheck[Correction],_xlpm.Program),\n_xlpm.Number,TEXT(_xlfn.TEXTAFTER(_xlpm.Contract,\"-\",2),\"0000\"),\n_xlfn.CONCAT(_xlpm.Yr,\"-\",_xlpm.CleanProgram,\"-\",_xlpm.Number))\n),\"\")","v":""},{"$f":"IFERROR(IF(A348=\"\",\"\",\n_xlfn.LET(_xlpm.Contract,'1. Checklist & Certification'!$F$8,\n_xlpm.Yr,TEXT(MOD(_xlfn.TEXTBEFORE(_xlpm.Contract,\"-\"),100),\"00\"),\n_xlpm.Program,_xlfn.TEXTAFTER(_xlfn.TEXTBEFORE(_xlpm.Contract,\"-\",2),\"-\"),\n_xlpm.CleanProgram,_xlfn.XLOOKUP(_xlpm.Program,SpellCheck[Input],SpellCheck[Correction],_xlpm.Program),\n_xlpm.Number,TEXT(_xlfn.TEXTAFTER(_xlpm.Contract,\"-\",2),\"0000\"),\n_xlfn.CONCAT(_xlpm.Yr,\"-\",_xlpm.CleanProgram,\"-\",_xlpm.Number))\n),\"\")","v":""},{"$f":"IF(A348=\"\",\"\",'1. Checklist & Certification'!$B$9)","v":""},{"$f":"IF(A348=\"\",\"\",'1. Checklist & Certification'!$F$9)","v":""},{"$f":"IF(A348=\"\",\"\",'1. Checklist & Certification'!$C$10)","v":""},{"$f":"IF(A348=\"\",\"\",'1. Checklist & Certification'!$C$11)","v":""},{"$f":"IF(A348=\"\",\"\",'1. Checklist & Certification'!$C$12)","v":""},{"$f":"IF(A348=\"\",\"\",'1. Checklist & Certification'!$B$14)","v":""},{"$f":"IF(A348=\"\",\"\",'1. Checklist & Certification'!$E$14)","v":""},{"$f":"IF(B348=\"\",\"\",'1. Checklist & Certification'!$G$14)","v":""},{"$f":"IF(A348=\"\",\"\",'MHP Family Income & Rent Limits'!$B$3)","v":""},{"$f":"IF(A348=\"\",\"\",'MHP Family Income & Rent Limits'!$J$3)","v":""},{"$f":"IF(A348=\"\",\"\",'MHP Family Income & Rent Limits'!$E$4)","v":""},{"$f":"IF(A348=\"\",\"\",'MHP Family Income & Rent Limits'!$C$7)","v":""},{"$f":"IF(A348=\"\",\"\",'MHP Family Income & Rent Limits'!$F$8)","v":""},{"$f":"IF(A348=\"\",\"\",'1. Checklist & Certification'!$G$4)","v":""},{"$f":"IF(A348=\"\",\"\",'1. Checklist & Certification'!$K$39)","v":""},{"$f":"IF(A348=\"\",\"\",'1. Checklist & Certification'!$K$43)","v":""},{"$f":"IF(A348=\"\",\"\",'1. Checklist & Certification'!$K$45)","v":""},{"$f":"IF(A348=\"\",\"\",'1. Checklist & Certification'!$K$49)","v":""},{"$f":"IF(A348=\"\",\"\",'1. Checklist & Certification'!$K$62)","v":""},{"$f":"IF(A348=\"\",\"\",'1. Checklist & Certification'!$E$66)","v":""},{"$f":"IF(A348=\"\",\"\",'1. Checklist & Certification'!$E$67)","v":""},{"$f":"IF(A348=\"\",\"\",'1. Checklist & Certification'!$E$68)","v":""},{"$f":"IF(A348=\"\",\"\",'1. Checklist & Certification'!$G$66)","v":""},{"$f":"IF(A348=\"\",\"\",'1. Checklist & Certification'!$H$66)","v":""},{"$f":"IF(A348=\"\",\"\",'1. Checklist & Certification'!$I$66)","v":""},{"$f":"IF(A348=\"\",\"\",'1. Checklist & Certification'!$I$67)","v":""},{"$f":"IF(A348=\"\",\"\",'1. Checklist & Certification'!$I$68)","v":""},{"$f":"IF(A348=\"\",\"\",'1. Checklist & Certification'!$B$69)","v":""},{"$f":"IF(A348=\"\",\"\",'1. Checklist & Certification'!$C$69)","v":""},{"$f":"IF(A348=\"\",\"\",'1. Checklist & Certification'!$F$69)","v":""},{"$f":"IF(A348=\"\",\"\",'1. Checklist & Certification'!$G$69)","v":""},{"$f":"IF(A348=\"\",\"\",'1. Checklist & Certification'!$J$69)","v":""},{"$f":"IF(A348=\"\",\"\",'1. Checklist & Certification'!$K$69)","v":""},null,null,{"$f":"IF(AND(OR('1. Checklist & Certification'!$M$16=1,'1. Checklist & Certification'!$M$19=2),AO348>0,B348=\"\",I348>0,AQ348<I348,AV348<>\"Sec 8-Project\"),\"X\",IF(AND(OR('1. Checklist & Certification'!$M$20=4,'1. Checklist & Certification'!$M$21=5,'1. Checklist & Certification'!$M$22=7),AO348>0,B348=\"\",I348>0,K348<I348),\"X\",\"\"))","v":""},{"$f":"IF(A348=\"\",\"\",IF(SUMPRODUCT(-- (ISNUMBER(SEARCH({\"*AHSC*\",\"*FMTW*\",\"*FWHG*\",\"*GHI*\",\"*HHC*\",\"*HLCP*\",\"*HOME*\",\"*LPR*\",\"*MHP*\",\"*NHTF*\",\"*NSP*\",\"*PRP*\",\"*TOD*\",\"*VHHP*\"},'1. Checklist & Certification'!$L$7)))),\"MHP\",\"Legacy\"))","v":""},",,",null,null,null,{"$f":"IF('1. Checklist & Certification'!$M$20=4,\"Both\",IF(OR('1. Checklist & Certification'!$M$15>0,S348=\"CHRP-R\",U348=\"CHRP-R\",W348=\"CHRP-R\",Y348=\"CHRP-R\"),\"Under\",\"No\"))","v":"No"},"No","No",{"$f":"_xlfn.IFS(D348=\"\",\"\",D348=1,'MHP Family Income & Rent Limits'!$E$17,D348=2,'MHP Family Income & Rent Limits'!$F$17,D348=3,'MHP Family Income & Rent Limits'!$G$17,D348=4,'MHP Family Income & Rent Limits'!$H$17,D348=5,'MHP Family Income & Rent Limits'!$I$17,D348=6,'MHP Family Income & Rent Limits'!$J$17,D348=7,'MHP Family Income & Rent Limits'!$K$17,D348=8,'MHP Family Income & Rent Limits'!$L$17)","v":""},"",{"$f":"IF(OR(A348=0,B348=\"X\"),0,MIN(IF(AA348:AD348<>0,AA348:AD348)))","v":0},{"$f":"IF(OR(H348=\"\",I348=\"\"),0,IF(H348*0.3/12>I348,MIN(H348*0.3/12,I348*1.1)+AP348,I348*(1+(VLOOKUP('1. Checklist & Certification'!$F$9,'HLCP-E Rent Change'!$A$1:$D$59,4,FALSE)))+AP348))","v":0}]
[null,null,null,null,null,null,null,null,null,null,null,null,null,null,null,null,null,null,null,null,null,null,null,null,null,null,0,0,0,0,0,0,0,0,{"$f":"IF(OR(A349=0,B349=\"X\"),0,IF(OR(S349=\"FHDP\",S349=\"RHCP-B\",U349=\"FHDP\",U349=\"RHCP-B\",W349=\"FHDP\",W349=\"RHCP-B\",Y349=\"FHDP\",Y349=\"RHCP-B\"),TRUNC((MIN(I349,K349)*(1+'1. Checklist & Certification'!$K$43)+AP349)),0))","v":0},{"$f":"IF(OR(A349=0,B349=\"X\"),0,IF(OR(S349=\"CHRP-R\",S349=\"SERA\",S349=\"SUHRP\",U349=\"CHRP-R\",U349=\"SERA\",U349=\"SUHRP\",W349=\"CHRP-R\",W349=\"SERA\",W349=\"SUHRP\",Y349=\"CHRP-R\",Y349=\"SERA\",Y349=\"SUHRP\"),TRUNC((MIN(I349,K349)*(1+'1. Checklist & Certification'!$K$49))),0))","v":0},{"$f":"IF(OR(A349=0,B349=\"X\"),0,IF(OR(S349=\"CALDAP\",S349=\"DPRLP\",U349=\"CALDAP\",U349=\"DPRLP\",W349=\"CALDAP\",W349=\"DPRLP\",Y349=\"CALDAP\",Y349=\"DPRLP\"),TRUNC(((MIN(I349,K349))*(1+'1. Checklist & Certification'!$G$4))),0))","v":0},0,0,0,{"$f":"IF(OR(A349=0,B349=\"X\"),0,IF(OR(S349=\"PRP\",S349=\"LPR\",U349=\"PRP\",U349=\"LPR\",W349=\"PRP\",W349=\"LPR\",Y349=\"PRP\",Y349=\"LPR\"),MAX(I349+AP349,MIN(IF(AE349:AN349<>0,AE349:AN349))),MIN(IF(AE349:AN349<>0,AE349:AN349))))","v":0},{"$f":"IF(A349=0,0,IF(AND(OR(S349=\"Mgr\",S349=0),OR(U349=\"Mgr\",U349=0),OR(W349=\"Mgr\",W349=0)),0,IF(LEFT($A349,2)=\"B*\",VLOOKUP($E349,'1. Checklist & Certification'!$D$26:$E$32,2),IF(LEFT($A349,2)=\"C*\",VLOOKUP($E349,'1. Checklist & Certification'!$F$26:$G$32,2),IF(LEFT($A349,2)=\"D*\",VLOOKUP($E349,'1. Checklist & Certification'!$H$26:$I$32,2),IF(LEFT($A349,2)=\"E*\",VLOOKUP($E349,'1. Checklist & Certification'!$J$26:$K$32,2),VLOOKUP($E349,'1. Checklist & Certification'!$A$26:$B$32,2)))))))","v":0},0,0,null,null,null,null,"","",0,0,0,null,{"$f":"IF(A349=\"\",\"\",'1. Checklist & Certification'!$K$1)","v":""},{"$f":"IF(A349=\"\",\"\",'1. Checklist & Certification'!$C$62)","v":""},{"$f":"IF(A349=\"\",\"\",'1. Checklist & Certification'!$C$6)","v":""},{"$f":"IF(A349=\"\",\"\",'1. Checklist & Certification'!$G$5)","v":""},{"$f":"IFERROR(IF(A349=\"\",\"\",\n_xlfn.LET(_xlpm.Contract,'1. Checklist & Certification'!$C$7,\n_xlpm.Yr,TEXT(MOD(_xlfn.TEXTBEFORE(_xlpm.Contract,\"-\"),100),\"00\"),\n_xlpm.Program,_xlfn.TEXTAFTER(_xlfn.TEXTBEFORE(_xlpm.Contract,\"-\",2),\"-\"),\n_xlpm.CleanProgram,_xlfn.XLOOKUP(_xlpm.Program,SpellCheck[Input],SpellCheck[Correction],_xlpm.Program),\n_xlpm.Number,TEXT(_xlfn.TEXTAFTER(_xlpm.Contract,\"-\",2),\"0000\"),\n_xlfn.CONCAT(_xlpm.Yr,\"-\",_xlpm.CleanProgram,\"-\",_xlpm.Number))\n),\"\")","v":""},{"$f":"IFERROR(IF(A349=\"\",\"\",\n_xlfn.LET(_xlpm.Contract,'1. Checklist & Certification'!$C$8,\n_xlpm.Yr,TEXT(MOD(_xlfn.TEXTBEFORE(_xlpm.Contract,\"-\"),100),\"00\"),\n_xlpm.Program,_xlfn.TEXTAFTER(_xlfn.TEXTBEFORE(_xlpm.Contract,\"-\",2),\"-\"),\n_xlpm.CleanProgram,_xlfn.XLOOKUP(_xlpm.Program,SpellCheck[Input],SpellCheck[Correction],_xlpm.Program),\n_xlpm.Number,TEXT(_xlfn.TEXTAFTER(_xlpm.Contract,\"-\",2),\"0000\"),\n_xlfn.CONCAT(_xlpm.Yr,\"-\",_xlpm.CleanProgram,\"-\",_xlpm.Number))\n),\"\")","v":""},{"$f":"IFERROR(IF(A349=\"\",\"\",\n_xlfn.LET(_xlpm.Contract,'1. Checklist & Certification'!$F$7,\n_xlpm.Yr,TEXT(MOD(_xlfn.TEXTBEFORE(_xlpm.Contract,\"-\"),100),\"00\"),\n_xlpm.Program,_xlfn.TEXTAFTER(_xlfn.TEXTBEFORE(_xlpm.Contract,\"-\",2),\"-\"),\n_xlpm.CleanProgram,_xlfn.XLOOKUP(_xlpm.Program,SpellCheck[Input],SpellCheck[Correction],_xlpm.Program),\n_xlpm.Number,TEXT(_xlfn.TEXTAFTER(_xlpm.Contract,\"-\",2),\"0000\"),\n_xlfn.CONCAT(_xlpm.Yr,\"-\",_xlpm.CleanProgram,\"-\",_xlpm.Number))\n),\"\")","v":""},{"$f":"IFERROR(IF(A349=\"\",\"\",\n_xlfn.LET(_xlpm.Contract,'1. Checklist & Certification'!$F$8,\n_xlpm.Yr,TEXT(MOD(_xlfn.TEXTBEFORE(_xlpm.Contract,\"-\"),100),\"00\"),\n_xlpm.Program,_xlfn.TEXTAFTER(_xlfn.TEXTBEFORE(_xlpm.Contract,\"-\",2),\"-\"),\n_xlpm.CleanProgram,_xlfn.XLOOKUP(_xlpm.Program,SpellCheck[Input],SpellCheck[Correction],_xlpm.Program),\n_xlpm.Number,TEXT(_xlfn.TEXTAFTER(_xlpm.Contract,\"-\",2),\"0000\"),\n_xlfn.CONCAT(_xlpm.Yr,\"-\",_xlpm.CleanProgram,\"-\",_xlpm.Number))\n),\"\")","v":""},{"$f":"IF(A349=\"\",\"\",'1. Checklist & Certification'!$B$9)","v":""},{"$f":"IF(A349=\"\",\"\",'1. Checklist & Certification'!$F$9)","v":""},{"$f":"IF(A349=\"\",\"\",'1. Checklist & Certification'!$C$10)","v":""},{"$f":"IF(A349=\"\",\"\",'1. Checklist & Certification'!$C$11)","v":""},{"$f":"IF(A349=\"\",\"\",'1. Checklist & Certification'!$C$12)","v":""},{"$f":"IF(A349=\"\",\"\",'1. Checklist & Certification'!$B$14)","v":""},{"$f":"IF(A349=\"\",\"\",'1. Checklist & Certification'!$E$14)","v":""},{"$f":"IF(B349=\"\",\"\",'1. Checklist & Certification'!$G$14)","v":""},{"$f":"IF(A349=\"\",\"\",'MHP Family Income & Rent Limits'!$B$3)","v":""},{"$f":"IF(A349=\"\",\"\",'MHP Family Income & Rent Limits'!$J$3)","v":""},{"$f":"IF(A349=\"\",\"\",'MHP Family Income & Rent Limits'!$E$4)","v":""},{"$f":"IF(A349=\"\",\"\",'MHP Family Income & Rent Limits'!$C$7)","v":""},{"$f":"IF(A349=\"\",\"\",'MHP Family Income & Rent Limits'!$F$8)","v":""},{"$f":"IF(A349=\"\",\"\",'1. Checklist & Certification'!$G$4)","v":""},{"$f":"IF(A349=\"\",\"\",'1. Checklist & Certification'!$K$39)","v":""},{"$f":"IF(A349=\"\",\"\",'1. Checklist & Certification'!$K$43)","v":""},{"$f":"IF(A349=\"\",\"\",'1. Checklist & Certification'!$K$45)","v":""},{"$f":"IF(A349=\"\",\"\",'1. Checklist & Certification'!$K$49)","v":""},{"$f":"IF(A349=\"\",\"\",'1. Checklist & Certification'!$K$62)","v":""},{"$f":"IF(A349=\"\",\"\",'1. Checklist & Certification'!$E$66)","v":""},{"$f":"IF(A349=\"\",\"\",'1. Checklist & Certification'!$E$67)","v":""},{"$f":"IF(A349=\"\",\"\",'1. Checklist & Certification'!$E$68)","v":""},{"$f":"IF(A349=\"\",\"\",'1. Checklist & Certification'!$G$66)","v":""},{"$f":"IF(A349=\"\",\"\",'1. Checklist & Certification'!$H$66)","v":""},{"$f":"IF(A349=\"\",\"\",'1. Checklist & Certification'!$I$66)","v":""},{"$f":"IF(A349=\"\",\"\",'1. Checklist & Certification'!$I$67)","v":""},{"$f":"IF(A349=\"\",\"\",'1. Checklist & Certification'!$I$68)","v":""},{"$f":"IF(A349=\"\",\"\",'1. Checklist & Certification'!$B$69)","v":""},{"$f":"IF(A349=\"\",\"\",'1. Checklist & Certification'!$C$69)","v":""},{"$f":"IF(A349=\"\",\"\",'1. Checklist & Certification'!$F$69)","v":""},{"$f":"IF(A349=\"\",\"\",'1. Checklist & Certification'!$G$69)","v":""},{"$f":"IF(A349=\"\",\"\",'1. Checklist & Certification'!$J$69)","v":""},{"$f":"IF(A349=\"\",\"\",'1. Checklist & Certification'!$K$69)","v":""},null,null,{"$f":"IF(AND(OR('1. Checklist & Certification'!$M$16=1,'1. Checklist & Certification'!$M$19=2),AO349>0,B349=\"\",I349>0,AQ349<I349,AV349<>\"Sec 8-Project\"),\"X\",IF(AND(OR('1. Checklist & Certification'!$M$20=4,'1. Checklist & Certification'!$M$21=5,'1. Checklist & Certification'!$M$22=7),AO349>0,B349=\"\",I349>0,K349<I349),\"X\",\"\"))","v":""},{"$f":"IF(A349=\"\",\"\",IF(SUMPRODUCT(-- (ISNUMBER(SEARCH({\"*AHSC*\",\"*FMTW*\",\"*FWHG*\",\"*GHI*\",\"*HHC*\",\"*HLCP*\",\"*HOME*\",\"*LPR*\",\"*MHP*\",\"*NHTF*\",\"*NSP*\",\"*PRP*\",\"*TOD*\",\"*VHHP*\"},'1. Checklist & Certification'!$L$7)))),\"MHP\",\"Legacy\"))","v":""},",,",null,null,null,{"$f":"IF('1. Checklist & Certification'!$M$20=4,\"Both\",IF(OR('1. Checklist & Certification'!$M$15>0,S349=\"CHRP-R\",U349=\"CHRP-R\",W349=\"CHRP-R\",Y349=\"CHRP-R\"),\"Under\",\"No\"))","v":"No"},"No","No",{"$f":"_xlfn.IFS(D349=\"\",\"\",D349=1,'MHP Family Income & Rent Limits'!$E$17,D349=2,'MHP Family Income & Rent Limits'!$F$17,D349=3,'MHP Family Income & Rent Limits'!$G$17,D349=4,'MHP Family Income & Rent Limits'!$H$17,D349=5,'MHP Family Income & Rent Limits'!$I$17,D349=6,'MHP Family Income & Rent Limits'!$J$17,D349=7,'MHP Family Income & Rent Limits'!$K$17,D349=8,'MHP Family Income & Rent Limits'!$L$17)","v":""},"",{"$f":"IF(OR(A349=0,B349=\"X\"),0,MIN(IF(AA349:AD349<>0,AA349:AD349)))","v":0},{"$f":"IF(OR(H349=\"\",I349=\"\"),0,IF(H349*0.3/12>I349,MIN(H349*0.3/12,I349*1.1)+AP349,I349*(1+(VLOOKUP('1. Checklist & Certification'!$F$9,'HLCP-E Rent Change'!$A$1:$D$59,4,FALSE)))+AP349))","v":0}]
[null,null,null,null,null,null,null,null,null,null,null,null,null,null,null,null,null,null,null,null,null,null,null,null,null,null,0,0,0,0,0,0,0,0,{"$f":"IF(OR(A350=0,B350=\"X\"),0,IF(OR(S350=\"FHDP\",S350=\"RHCP-B\",U350=\"FHDP\",U350=\"RHCP-B\",W350=\"FHDP\",W350=\"RHCP-B\",Y350=\"FHDP\",Y350=\"RHCP-B\"),TRUNC((MIN(I350,K350)*(1+'1. Checklist & Certification'!$K$43)+AP350)),0))","v":0},{"$f":"IF(OR(A350=0,B350=\"X\"),0,IF(OR(S350=\"CHRP-R\",S350=\"SERA\",S350=\"SUHRP\",U350=\"CHRP-R\",U350=\"SERA\",U350=\"SUHRP\",W350=\"CHRP-R\",W350=\"SERA\",W350=\"SUHRP\",Y350=\"CHRP-R\",Y350=\"SERA\",Y350=\"SUHRP\"),TRUNC((MIN(I350,K350)*(1+'1. Checklist & Certification'!$K$49))),0))","v":0},{"$f":"IF(OR(A350=0,B350=\"X\"),0,IF(OR(S350=\"CALDAP\",S350=\"DPRLP\",U350=\"CALDAP\",U350=\"DPRLP\",W350=\"CALDAP\",W350=\"DPRLP\",Y350=\"CALDAP\",Y350=\"DPRLP\"),TRUNC(((MIN(I350,K350))*(1+'1. Checklist & Certification'!$G$4))),0))","v":0},0,0,0,{"$f":"IF(OR(A350=0,B350=\"X\"),0,IF(OR(S350=\"PRP\",S350=\"LPR\",U350=\"PRP\",U350=\"LPR\",W350=\"PRP\",W350=\"LPR\",Y350=\"PRP\",Y350=\"LPR\"),MAX(I350+AP350,MIN(IF(AE350:AN350<>0,AE350:AN350))),MIN(IF(AE350:AN350<>0,AE350:AN350))))","v":0},{"$f":"IF(A350=0,0,IF(AND(OR(S350=\"Mgr\",S350=0),OR(U350=\"Mgr\",U350=0),OR(W350=\"Mgr\",W350=0)),0,IF(LEFT($A350,2)=\"B*\",VLOOKUP($E350,'1. Checklist & Certification'!$D$26:$E$32,2),IF(LEFT($A350,2)=\"C*\",VLOOKUP($E350,'1. Checklist & Certification'!$F$26:$G$32,2),IF(LEFT($A350,2)=\"D*\",VLOOKUP($E350,'1. Checklist & Certification'!$H$26:$I$32,2),IF(LEFT($A350,2)=\"E*\",VLOOKUP($E350,'1. Checklist & Certification'!$J$26:$K$32,2),VLOOKUP($E350,'1. Checklist & Certification'!$A$26:$B$32,2)))))))","v":0},0,0,null,null,null,null,"","",0,0,0,null,{"$f":"IF(A350=\"\",\"\",'1. Checklist & Certification'!$K$1)","v":""},{"$f":"IF(A350=\"\",\"\",'1. Checklist & Certification'!$C$62)","v":""},{"$f":"IF(A350=\"\",\"\",'1. Checklist & Certification'!$C$6)","v":""},{"$f":"IF(A350=\"\",\"\",'1. Checklist & Certification'!$G$5)","v":""},{"$f":"IFERROR(IF(A350=\"\",\"\",\n_xlfn.LET(_xlpm.Contract,'1. Checklist & Certification'!$C$7,\n_xlpm.Yr,TEXT(MOD(_xlfn.TEXTBEFORE(_xlpm.Contract,\"-\"),100),\"00\"),\n_xlpm.Program,_xlfn.TEXTAFTER(_xlfn.TEXTBEFORE(_xlpm.Contract,\"-\",2),\"-\"),\n_xlpm.CleanProgram,_xlfn.XLOOKUP(_xlpm.Program,SpellCheck[Input],SpellCheck[Correction],_xlpm.Program),\n_xlpm.Number,TEXT(_xlfn.TEXTAFTER(_xlpm.Contract,\"-\",2),\"0000\"),\n_xlfn.CONCAT(_xlpm.Yr,\"-\",_xlpm.CleanProgram,\"-\",_xlpm.Number))\n),\"\")","v":""},{"$f":"IFERROR(IF(A350=\"\",\"\",\n_xlfn.LET(_xlpm.Contract,'1. Checklist & Certification'!$C$8,\n_xlpm.Yr,TEXT(MOD(_xlfn.TEXTBEFORE(_xlpm.Contract,\"-\"),100),\"00\"),\n_xlpm.Program,_xlfn.TEXTAFTER(_xlfn.TEXTBEFORE(_xlpm.Contract,\"-\",2),\"-\"),\n_xlpm.CleanProgram,_xlfn.XLOOKUP(_xlpm.Program,SpellCheck[Input],SpellCheck[Correction],_xlpm.Program),\n_xlpm.Number,TEXT(_xlfn.TEXTAFTER(_xlpm.Contract,\"-\",2),\"0000\"),\n_xlfn.CONCAT(_xlpm.Yr,\"-\",_xlpm.CleanProgram,\"-\",_xlpm.Number))\n),\"\")","v":""},{"$f":"IFERROR(IF(A350=\"\",\"\",\n_xlfn.LET(_xlpm.Contract,'1. Checklist & Certification'!$F$7,\n_xlpm.Yr,TEXT(MOD(_xlfn.TEXTBEFORE(_xlpm.Contract,\"-\"),100),\"00\"),\n_xlpm.Program,_xlfn.TEXTAFTER(_xlfn.TEXTBEFORE(_xlpm.Contract,\"-\",2),\"-\"),\n_xlpm.CleanProgram,_xlfn.XLOOKUP(_xlpm.Program,SpellCheck[Input],SpellCheck[Correction],_xlpm.Program),\n_xlpm.Number,TEXT(_xlfn.TEXTAFTER(_xlpm.Contract,\"-\",2),\"0000\"),\n_xlfn.CONCAT(_xlpm.Yr,\"-\",_xlpm.CleanProgram,\"-\",_xlpm.Number))\n),\"\")","v":""},{"$f":"IFERROR(IF(A350=\"\",\"\",\n_xlfn.LET(_xlpm.Contract,'1. Checklist & Certification'!$F$8,\n_xlpm.Yr,TEXT(MOD(_xlfn.TEXTBEFORE(_xlpm.Contract,\"-\"),100),\"00\"),\n_xlpm.Program,_xlfn.TEXTAFTER(_xlfn.TEXTBEFORE(_xlpm.Contract,\"-\",2),\"-\"),\n_xlpm.CleanProgram,_xlfn.XLOOKUP(_xlpm.Program,SpellCheck[Input],SpellCheck[Correction],_xlpm.Program),\n_xlpm.Number,TEXT(_xlfn.TEXTAFTER(_xlpm.Contract,\"-\",2),\"0000\"),\n_xlfn.CONCAT(_xlpm.Yr,\"-\",_xlpm.CleanProgram,\"-\",_xlpm.Number))\n),\"\")","v":""},{"$f":"IF(A350=\"\",\"\",'1. Checklist & Certification'!$B$9)","v":""},{"$f":"IF(A350=\"\",\"\",'1. Checklist & Certification'!$F$9)","v":""},{"$f":"IF(A350=\"\",\"\",'1. Checklist & Certification'!$C$10)","v":""},{"$f":"IF(A350=\"\",\"\",'1. Checklist & Certification'!$C$11)","v":""},{"$f":"IF(A350=\"\",\"\",'1. Checklist & Certification'!$C$12)","v":""},{"$f":"IF(A350=\"\",\"\",'1. Checklist & Certification'!$B$14)","v":""},{"$f":"IF(A350=\"\",\"\",'1. Checklist & Certification'!$E$14)","v":""},{"$f":"IF(B350=\"\",\"\",'1. Checklist & Certification'!$G$14)","v":""},{"$f":"IF(A350=\"\",\"\",'MHP Family Income & Rent Limits'!$B$3)","v":""},{"$f":"IF(A350=\"\",\"\",'MHP Family Income & Rent Limits'!$J$3)","v":""},{"$f":"IF(A350=\"\",\"\",'MHP Family Income & Rent Limits'!$E$4)","v":""},{"$f":"IF(A350=\"\",\"\",'MHP Family Income & Rent Limits'!$C$7)","v":""},{"$f":"IF(A350=\"\",\"\",'MHP Family Income & Rent Limits'!$F$8)","v":""},{"$f":"IF(A350=\"\",\"\",'1. Checklist & Certification'!$G$4)","v":""},{"$f":"IF(A350=\"\",\"\",'1. Checklist & Certification'!$K$39)","v":""},{"$f":"IF(A350=\"\",\"\",'1. Checklist & Certification'!$K$43)","v":""},{"$f":"IF(A350=\"\",\"\",'1. Checklist & Certification'!$K$45)","v":""},{"$f":"IF(A350=\"\",\"\",'1. Checklist & Certification'!$K$49)","v":""},{"$f":"IF(A350=\"\",\"\",'1. Checklist & Certification'!$K$62)","v":""},{"$f":"IF(A350=\"\",\"\",'1. Checklist & Certification'!$E$66)","v":""},{"$f":"IF(A350=\"\",\"\",'1. Checklist & Certification'!$E$67)","v":""},{"$f":"IF(A350=\"\",\"\",'1. Checklist & Certification'!$E$68)","v":""},{"$f":"IF(A350=\"\",\"\",'1. Checklist & Certification'!$G$66)","v":""},{"$f":"IF(A350=\"\",\"\",'1. Checklist & Certification'!$H$66)","v":""},{"$f":"IF(A350=\"\",\"\",'1. Checklist & Certification'!$I$66)","v":""},{"$f":"IF(A350=\"\",\"\",'1. Checklist & Certification'!$I$67)","v":""},{"$f":"IF(A350=\"\",\"\",'1. Checklist & Certification'!$I$68)","v":""},{"$f":"IF(A350=\"\",\"\",'1. Checklist & Certification'!$B$69)","v":""},{"$f":"IF(A350=\"\",\"\",'1. Checklist & Certification'!$C$69)","v":""},{"$f":"IF(A350=\"\",\"\",'1. Checklist & Certification'!$F$69)","v":""},{"$f":"IF(A350=\"\",\"\",'1. Checklist & Certification'!$G$69)","v":""},{"$f":"IF(A350=\"\",\"\",'1. Checklist & Certification'!$J$69)","v":""},{"$f":"IF(A350=\"\",\"\",'1. Checklist & Certification'!$K$69)","v":""},null,null,{"$f":"IF(AND(OR('1. Checklist & Certification'!$M$16=1,'1. Checklist & Certification'!$M$19=2),AO350>0,B350=\"\",I350>0,AQ350<I350,AV350<>\"Sec 8-Project\"),\"X\",IF(AND(OR('1. Checklist & Certification'!$M$20=4,'1. Checklist & Certification'!$M$21=5,'1. Checklist & Certification'!$M$22=7),AO350>0,B350=\"\",I350>0,K350<I350),\"X\",\"\"))","v":""},{"$f":"IF(A350=\"\",\"\",IF(SUMPRODUCT(-- (ISNUMBER(SEARCH({\"*AHSC*\",\"*FMTW*\",\"*FWHG*\",\"*GHI*\",\"*HHC*\",\"*HLCP*\",\"*HOME*\",\"*LPR*\",\"*MHP*\",\"*NHTF*\",\"*NSP*\",\"*PRP*\",\"*TOD*\",\"*VHHP*\"},'1. Checklist & Certification'!$L$7)))),\"MHP\",\"Legacy\"))","v":""},",,",null,null,null,{"$f":"IF('1. Checklist & Certification'!$M$20=4,\"Both\",IF(OR('1. Checklist & Certification'!$M$15>0,S350=\"CHRP-R\",U350=\"CHRP-R\",W350=\"CHRP-R\",Y350=\"CHRP-R\"),\"Under\",\"No\"))","v":"No"},"No","No",{"$f":"_xlfn.IFS(D350=\"\",\"\",D350=1,'MHP Family Income & Rent Limits'!$E$17,D350=2,'MHP Family Income & Rent Limits'!$F$17,D350=3,'MHP Family Income & Rent Limits'!$G$17,D350=4,'MHP Family Income & Rent Limits'!$H$17,D350=5,'MHP Family Income & Rent Limits'!$I$17,D350=6,'MHP Family Income & Rent Limits'!$J$17,D350=7,'MHP Family Income & Rent Limits'!$K$17,D350=8,'MHP Family Income & Rent Limits'!$L$17)","v":""},"",{"$f":"IF(OR(A350=0,B350=\"X\"),0,MIN(IF(AA350:AD350<>0,AA350:AD350)))","v":0},{"$f":"IF(OR(H350=\"\",I350=\"\"),0,IF(H350*0.3/12>I350,MIN(H350*0.3/12,I350*1.1)+AP350,I350*(1+(VLOOKUP('1. Checklist & Certification'!$F$9,'HLCP-E Rent Change'!$A$1:$D$59,4,FALSE)))+AP350))","v":0}]
[null,null,null,null,null,null,null,null,null,null,null,null,null,null,null,null,null,null,null,null,null,null,null,null,null,null,0,0,0,0,0,0,0,0,{"$f":"IF(OR(A351=0,B351=\"X\"),0,IF(OR(S351=\"FHDP\",S351=\"RHCP-B\",U351=\"FHDP\",U351=\"RHCP-B\",W351=\"FHDP\",W351=\"RHCP-B\",Y351=\"FHDP\",Y351=\"RHCP-B\"),TRUNC((MIN(I351,K351)*(1+'1. Checklist & Certification'!$K$43)+AP351)),0))","v":0},{"$f":"IF(OR(A351=0,B351=\"X\"),0,IF(OR(S351=\"CHRP-R\",S351=\"SERA\",S351=\"SUHRP\",U351=\"CHRP-R\",U351=\"SERA\",U351=\"SUHRP\",W351=\"CHRP-R\",W351=\"SERA\",W351=\"SUHRP\",Y351=\"CHRP-R\",Y351=\"SERA\",Y351=\"SUHRP\"),TRUNC((MIN(I351,K351)*(1+'1. Checklist & Certification'!$K$49))),0))","v":0},{"$f":"IF(OR(A351=0,B351=\"X\"),0,IF(OR(S351=\"CALDAP\",S351=\"DPRLP\",U351=\"CALDAP\",U351=\"DPRLP\",W351=\"CALDAP\",W351=\"DPRLP\",Y351=\"CALDAP\",Y351=\"DPRLP\"),TRUNC(((MIN(I351,K351))*(1+'1. Checklist & Certification'!$G$4))),0))","v":0},0,0,0,{"$f":"IF(OR(A351=0,B351=\"X\"),0,IF(OR(S351=\"PRP\",S351=\"LPR\",U351=\"PRP\",U351=\"LPR\",W351=\"PRP\",W351=\"LPR\",Y351=\"PRP\",Y351=\"LPR\"),MAX(I351+AP351,MIN(IF(AE351:AN351<>0,AE351:AN351))),MIN(IF(AE351:AN351<>0,AE351:AN351))))","v":0},{"$f":"IF(A351=0,0,IF(AND(OR(S351=\"Mgr\",S351=0),OR(U351=\"Mgr\",U351=0),OR(W351=\"Mgr\",W351=0)),0,IF(LEFT($A351,2)=\"B*\",VLOOKUP($E351,'1. Checklist & Certification'!$D$26:$E$32,2),IF(LEFT($A351,2)=\"C*\",VLOOKUP($E351,'1. Checklist & Certification'!$F$26:$G$32,2),IF(LEFT($A351,2)=\"D*\",VLOOKUP($E351,'1. Checklist & Certification'!$H$26:$I$32,2),IF(LEFT($A351,2)=\"E*\",VLOOKUP($E351,'1. Checklist & Certification'!$J$26:$K$32,2),VLOOKUP($E351,'1. Checklist & Certification'!$A$26:$B$32,2)))))))","v":0},0,0,null,null,null,null,"","",0,0,0,null,{"$f":"IF(A351=\"\",\"\",'1. Checklist & Certification'!$K$1)","v":""},{"$f":"IF(A351=\"\",\"\",'1. Checklist & Certification'!$C$62)","v":""},{"$f":"IF(A351=\"\",\"\",'1. Checklist & Certification'!$C$6)","v":""},{"$f":"IF(A351=\"\",\"\",'1. Checklist & Certification'!$G$5)","v":""},{"$f":"IFERROR(IF(A351=\"\",\"\",\n_xlfn.LET(_xlpm.Contract,'1. Checklist & Certification'!$C$7,\n_xlpm.Yr,TEXT(MOD(_xlfn.TEXTBEFORE(_xlpm.Contract,\"-\"),100),\"00\"),\n_xlpm.Program,_xlfn.TEXTAFTER(_xlfn.TEXTBEFORE(_xlpm.Contract,\"-\",2),\"-\"),\n_xlpm.CleanProgram,_xlfn.XLOOKUP(_xlpm.Program,SpellCheck[Input],SpellCheck[Correction],_xlpm.Program),\n_xlpm.Number,TEXT(_xlfn.TEXTAFTER(_xlpm.Contract,\"-\",2),\"0000\"),\n_xlfn.CONCAT(_xlpm.Yr,\"-\",_xlpm.CleanProgram,\"-\",_xlpm.Number))\n),\"\")","v":""},{"$f":"IFERROR(IF(A351=\"\",\"\",\n_xlfn.LET(_xlpm.Contract,'1. Checklist & Certification'!$C$8,\n_xlpm.Yr,TEXT(MOD(_xlfn.TEXTBEFORE(_xlpm.Contract,\"-\"),100),\"00\"),\n_xlpm.Program,_xlfn.TEXTAFTER(_xlfn.TEXTBEFORE(_xlpm.Contract,\"-\",2),\"-\"),\n_xlpm.CleanProgram,_xlfn.XLOOKUP(_xlpm.Program,SpellCheck[Input],SpellCheck[Correction],_xlpm.Program),\n_xlpm.Number,TEXT(_xlfn.TEXTAFTER(_xlpm.Contract,\"-\",2),\"0000\"),\n_xlfn.CONCAT(_xlpm.Yr,\"-\",_xlpm.CleanProgram,\"-\",_xlpm.Number))\n),\"\")","v":""},{"$f":"IFERROR(IF(A351=\"\",\"\",\n_xlfn.LET(_xlpm.Contract,'1. Checklist & Certification'!$F$7,\n_xlpm.Yr,TEXT(MOD(_xlfn.TEXTBEFORE(_xlpm.Contract,\"-\"),100),\"00\"),\n_xlpm.Program,_xlfn.TEXTAFTER(_xlfn.TEXTBEFORE(_xlpm.Contract,\"-\",2),\"-\"),\n_xlpm.CleanProgram,_xlfn.XLOOKUP(_xlpm.Program,SpellCheck[Input],SpellCheck[Correction],_xlpm.Program),\n_xlpm.Number,TEXT(_xlfn.TEXTAFTER(_xlpm.Contract,\"-\",2),\"0000\"),\n_xlfn.CONCAT(_xlpm.Yr,\"-\",_xlpm.CleanProgram,\"-\",_xlpm.Number))\n),\"\")","v":""},{"$f":"IFERROR(IF(A351=\"\",\"\",\n_xlfn.LET(_xlpm.Contract,'1. Checklist & Certification'!$F$8,\n_xlpm.Yr,TEXT(MOD(_xlfn.TEXTBEFORE(_xlpm.Contract,\"-\"),100),\"00\"),\n_xlpm.Program,_xlfn.TEXTAFTER(_xlfn.TEXTBEFORE(_xlpm.Contract,\"-\",2),\"-\"),\n_xlpm.CleanProgram,_xlfn.XLOOKUP(_xlpm.Program,SpellCheck[Input],SpellCheck[Correction],_xlpm.Program),\n_xlpm.Number,TEXT(_xlfn.TEXTAFTER(_xlpm.Contract,\"-\",2),\"0000\"),\n_xlfn.CONCAT(_xlpm.Yr,\"-\",_xlpm.CleanProgram,\"-\",_xlpm.Number))\n),\"\")","v":""},{"$f":"IF(A351=\"\",\"\",'1. Checklist & Certification'!$B$9)","v":""},{"$f":"IF(A351=\"\",\"\",'1. Checklist & Certification'!$F$9)","v":""},{"$f":"IF(A351=\"\",\"\",'1. Checklist & Certification'!$C$10)","v":""},{"$f":"IF(A351=\"\",\"\",'1. Checklist & Certification'!$C$11)","v":""},{"$f":"IF(A351=\"\",\"\",'1. Checklist & Certification'!$C$12)","v":""},{"$f":"IF(A351=\"\",\"\",'1. Checklist & Certification'!$B$14)","v":""},{"$f":"IF(A351=\"\",\"\",'1. Checklist & Certification'!$E$14)","v":""},{"$f":"IF(B351=\"\",\"\",'1. Checklist & Certification'!$G$14)","v":""},{"$f":"IF(A351=\"\",\"\",'MHP Family Income & Rent Limits'!$B$3)","v":""},{"$f":"IF(A351=\"\",\"\",'MHP Family Income & Rent Limits'!$J$3)","v":""},{"$f":"IF(A351=\"\",\"\",'MHP Family Income & Rent Limits'!$E$4)","v":""},{"$f":"IF(A351=\"\",\"\",'MHP Family Income & Rent Limits'!$C$7)","v":""},{"$f":"IF(A351=\"\",\"\",'MHP Family Income & Rent Limits'!$F$8)","v":""},{"$f":"IF(A351=\"\",\"\",'1. Checklist & Certification'!$G$4)","v":""},{"$f":"IF(A351=\"\",\"\",'1. Checklist & Certification'!$K$39)","v":""},{"$f":"IF(A351=\"\",\"\",'1. Checklist & Certification'!$K$43)","v":""},{"$f":"IF(A351=\"\",\"\",'1. Checklist & Certification'!$K$45)","v":""},{"$f":"IF(A351=\"\",\"\",'1. Checklist & Certification'!$K$49)","v":""},{"$f":"IF(A351=\"\",\"\",'1. Checklist & Certification'!$K$62)","v":""},{"$f":"IF(A351=\"\",\"\",'1. Checklist & Certification'!$E$66)","v":""},{"$f":"IF(A351=\"\",\"\",'1. Checklist & Certification'!$E$67)","v":""},{"$f":"IF(A351=\"\",\"\",'1. Checklist & Certification'!$E$68)","v":""},{"$f":"IF(A351=\"\",\"\",'1. Checklist & Certification'!$G$66)","v":""},{"$f":"IF(A351=\"\",\"\",'1. Checklist & Certification'!$H$66)","v":""},{"$f":"IF(A351=\"\",\"\",'1. Checklist & Certification'!$I$66)","v":""},{"$f":"IF(A351=\"\",\"\",'1. Checklist & Certification'!$I$67)","v":""},{"$f":"IF(A351=\"\",\"\",'1. Checklist & Certification'!$I$68)","v":""},{"$f":"IF(A351=\"\",\"\",'1. Checklist & Certification'!$B$69)","v":""},{"$f":"IF(A351=\"\",\"\",'1. Checklist & Certification'!$C$69)","v":""},{"$f":"IF(A351=\"\",\"\",'1. Checklist & Certification'!$F$69)","v":""},{"$f":"IF(A351=\"\",\"\",'1. Checklist & Certification'!$G$69)","v":""},{"$f":"IF(A351=\"\",\"\",'1. Checklist & Certification'!$J$69)","v":""},{"$f":"IF(A351=\"\",\"\",'1. Checklist & Certification'!$K$69)","v":""},null,null,{"$f":"IF(AND(OR('1. Checklist & Certification'!$M$16=1,'1. Checklist & Certification'!$M$19=2),AO351>0,B351=\"\",I351>0,AQ351<I351,AV351<>\"Sec 8-Project\"),\"X\",IF(AND(OR('1. Checklist & Certification'!$M$20=4,'1. Checklist & Certification'!$M$21=5,'1. Checklist & Certification'!$M$22=7),AO351>0,B351=\"\",I351>0,K351<I351),\"X\",\"\"))","v":""},{"$f":"IF(A351=\"\",\"\",IF(SUMPRODUCT(-- (ISNUMBER(SEARCH({\"*AHSC*\",\"*FMTW*\",\"*FWHG*\",\"*GHI*\",\"*HHC*\",\"*HLCP*\",\"*HOME*\",\"*LPR*\",\"*MHP*\",\"*NHTF*\",\"*NSP*\",\"*PRP*\",\"*TOD*\",\"*VHHP*\"},'1. Checklist & Certification'!$L$7)))),\"MHP\",\"Legacy\"))","v":""},",,",null,null,null,{"$f":"IF('1. Checklist & Certification'!$M$20=4,\"Both\",IF(OR('1. Checklist & Certification'!$M$15>0,S351=\"CHRP-R\",U351=\"CHRP-R\",W351=\"CHRP-R\",Y351=\"CHRP-R\"),\"Under\",\"No\"))","v":"No"},"No","No",{"$f":"_xlfn.IFS(D351=\"\",\"\",D351=1,'MHP Family Income & Rent Limits'!$E$17,D351=2,'MHP Family Income & Rent Limits'!$F$17,D351=3,'MHP Family Income & Rent Limits'!$G$17,D351=4,'MHP Family Income & Rent Limits'!$H$17,D351=5,'MHP Family Income & Rent Limits'!$I$17,D351=6,'MHP Family Income & Rent Limits'!$J$17,D351=7,'MHP Family Income & Rent Limits'!$K$17,D351=8,'MHP Family Income & Rent Limits'!$L$17)","v":""},"",{"$f":"IF(OR(A351=0,B351=\"X\"),0,MIN(IF(AA351:AD351<>0,AA351:AD351)))","v":0},{"$f":"IF(OR(H351=\"\",I351=\"\"),0,IF(H351*0.3/12>I351,MIN(H351*0.3/12,I351*1.1)+AP351,I351*(1+(VLOOKUP('1. Checklist & Certification'!$F$9,'HLCP-E Rent Change'!$A$1:$D$59,4,FALSE)))+AP351))","v":0}]
[null,null,null,null,null,null,null,null,null,null,null,null,null,null,null,null,null,null,null,null,null,null,null,null,null,null,0,0,0,0,0,0,0,0,{"$f":"IF(OR(A352=0,B352=\"X\"),0,IF(OR(S352=\"FHDP\",S352=\"RHCP-B\",U352=\"FHDP\",U352=\"RHCP-B\",W352=\"FHDP\",W352=\"RHCP-B\",Y352=\"FHDP\",Y352=\"RHCP-B\"),TRUNC((MIN(I352,K352)*(1+'1. Checklist & Certification'!$K$43)+AP352)),0))","v":0},{"$f":"IF(OR(A352=0,B352=\"X\"),0,IF(OR(S352=\"CHRP-R\",S352=\"SERA\",S352=\"SUHRP\",U352=\"CHRP-R\",U352=\"SERA\",U352=\"SUHRP\",W352=\"CHRP-R\",W352=\"SERA\",W352=\"SUHRP\",Y352=\"CHRP-R\",Y352=\"SERA\",Y352=\"SUHRP\"),TRUNC((MIN(I352,K352)*(1+'1. Checklist & Certification'!$K$49))),0))","v":0},{"$f":"IF(OR(A352=0,B352=\"X\"),0,IF(OR(S352=\"CALDAP\",S352=\"DPRLP\",U352=\"CALDAP\",U352=\"DPRLP\",W352=\"CALDAP\",W352=\"DPRLP\",Y352=\"CALDAP\",Y352=\"DPRLP\"),TRUNC(((MIN(I352,K352))*(1+'1. Checklist & Certification'!$G$4))),0))","v":0},0,0,0,{"$f":"IF(OR(A352=0,B352=\"X\"),0,IF(OR(S352=\"PRP\",S352=\"LPR\",U352=\"PRP\",U352=\"LPR\",W352=\"PRP\",W352=\"LPR\",Y352=\"PRP\",Y352=\"LPR\"),MAX(I352+AP352,MIN(IF(AE352:AN352<>0,AE352:AN352))),MIN(IF(AE352:AN352<>0,AE352:AN352))))","v":0},{"$f":"IF(A352=0,0,IF(AND(OR(S352=\"Mgr\",S352=0),OR(U352=\"Mgr\",U352=0),OR(W352=\"Mgr\",W352=0)),0,IF(LEFT($A352,2)=\"B*\",VLOOKUP($E352,'1. Checklist & Certification'!$D$26:$E$32,2),IF(LEFT($A352,2)=\"C*\",VLOOKUP($E352,'1. Checklist & Certification'!$F$26:$G$32,2),IF(LEFT($A352,2)=\"D*\",VLOOKUP($E352,'1. Checklist & Certification'!$H$26:$I$32,2),IF(LEFT($A352,2)=\"E*\",VLOOKUP($E352,'1. Checklist & Certification'!$J$26:$K$32,2),VLOOKUP($E352,'1. Checklist & Certification'!$A$26:$B$32,2)))))))","v":0},0,0,null,null,null,null,"","",0,0,0,null,{"$f":"IF(A352=\"\",\"\",'1. Checklist & Certification'!$K$1)","v":""},{"$f":"IF(A352=\"\",\"\",'1. Checklist & Certification'!$C$62)","v":""},{"$f":"IF(A352=\"\",\"\",'1. Checklist & Certification'!$C$6)","v":""},{"$f":"IF(A352=\"\",\"\",'1. Checklist & Certification'!$G$5)","v":""},{"$f":"IFERROR(IF(A352=\"\",\"\",\n_xlfn.LET(_xlpm.Contract,'1. Checklist & Certification'!$C$7,\n_xlpm.Yr,TEXT(MOD(_xlfn.TEXTBEFORE(_xlpm.Contract,\"-\"),100),\"00\"),\n_xlpm.Program,_xlfn.TEXTAFTER(_xlfn.TEXTBEFORE(_xlpm.Contract,\"-\",2),\"-\"),\n_xlpm.CleanProgram,_xlfn.XLOOKUP(_xlpm.Program,SpellCheck[Input],SpellCheck[Correction],_xlpm.Program),\n_xlpm.Number,TEXT(_xlfn.TEXTAFTER(_xlpm.Contract,\"-\",2),\"0000\"),\n_xlfn.CONCAT(_xlpm.Yr,\"-\",_xlpm.CleanProgram,\"-\",_xlpm.Number))\n),\"\")","v":""},{"$f":"IFERROR(IF(A352=\"\",\"\",\n_xlfn.LET(_xlpm.Contract,'1. Checklist & Certification'!$C$8,\n_xlpm.Yr,TEXT(MOD(_xlfn.TEXTBEFORE(_xlpm.Contract,\"-\"),100),\"00\"),\n_xlpm.Program,_xlfn.TEXTAFTER(_xlfn.TEXTBEFORE(_xlpm.Contract,\"-\",2),\"-\"),\n_xlpm.CleanProgram,_xlfn.XLOOKUP(_xlpm.Program,SpellCheck[Input],SpellCheck[Correction],_xlpm.Program),\n_xlpm.Number,TEXT(_xlfn.TEXTAFTER(_xlpm.Contract,\"-\",2),\"0000\"),\n_xlfn.CONCAT(_xlpm.Yr,\"-\",_xlpm.CleanProgram,\"-\",_xlpm.Number))\n),\"\")","v":""},{"$f":"IFERROR(IF(A352=\"\",\"\",\n_xlfn.LET(_xlpm.Contract,'1. Checklist & Certification'!$F$7,\n_xlpm.Yr,TEXT(MOD(_xlfn.TEXTBEFORE(_xlpm.Contract,\"-\"),100),\"00\"),\n_xlpm.Program,_xlfn.TEXTAFTER(_xlfn.TEXTBEFORE(_xlpm.Contract,\"-\",2),\"-\"),\n_xlpm.CleanProgram,_xlfn.XLOOKUP(_xlpm.Program,SpellCheck[Input],SpellCheck[Correction],_xlpm.Program),\n_xlpm.Number,TEXT(_xlfn.TEXTAFTER(_xlpm.Contract,\"-\",2),\"0000\"),\n_xlfn.CONCAT(_xlpm.Yr,\"-\",_xlpm.CleanProgram,\"-\",_xlpm.Number))\n),\"\")","v":""},{"$f":"IFERROR(IF(A352=\"\",\"\",\n_xlfn.LET(_xlpm.Contract,'1. Checklist & Certification'!$F$8,\n_xlpm.Yr,TEXT(MOD(_xlfn.TEXTBEFORE(_xlpm.Contract,\"-\"),100),\"00\"),\n_xlpm.Program,_xlfn.TEXTAFTER(_xlfn.TEXTBEFORE(_xlpm.Contract,\"-\",2),\"-\"),\n_xlpm.CleanProgram,_xlfn.XLOOKUP(_xlpm.Program,SpellCheck[Input],SpellCheck[Correction],_xlpm.Program),\n_xlpm.Number,TEXT(_xlfn.TEXTAFTER(_xlpm.Contract,\"-\",2),\"0000\"),\n_xlfn.CONCAT(_xlpm.Yr,\"-\",_xlpm.CleanProgram,\"-\",_xlpm.Number))\n),\"\")","v":""},{"$f":"IF(A352=\"\",\"\",'1. Checklist & Certification'!$B$9)","v":""},{"$f":"IF(A352=\"\",\"\",'1. Checklist & Certification'!$F$9)","v":""},{"$f":"IF(A352=\"\",\"\",'1. Checklist & Certification'!$C$10)","v":""},{"$f":"IF(A352=\"\",\"\",'1. Checklist & Certification'!$C$11)","v":""},{"$f":"IF(A352=\"\",\"\",'1. Checklist & Certification'!$C$12)","v":""},{"$f":"IF(A352=\"\",\"\",'1. Checklist & Certification'!$B$14)","v":""},{"$f":"IF(A352=\"\",\"\",'1. Checklist & Certification'!$E$14)","v":""},{"$f":"IF(B352=\"\",\"\",'1. Checklist & Certification'!$G$14)","v":""},{"$f":"IF(A352=\"\",\"\",'MHP Family Income & Rent Limits'!$B$3)","v":""},{"$f":"IF(A352=\"\",\"\",'MHP Family Income & Rent Limits'!$J$3)","v":""},{"$f":"IF(A352=\"\",\"\",'MHP Family Income & Rent Limits'!$E$4)","v":""},{"$f":"IF(A352=\"\",\"\",'MHP Family Income & Rent Limits'!$C$7)","v":""},{"$f":"IF(A352=\"\",\"\",'MHP Family Income & Rent Limits'!$F$8)","v":""},{"$f":"IF(A352=\"\",\"\",'1. Checklist & Certification'!$G$4)","v":""},{"$f":"IF(A352=\"\",\"\",'1. Checklist & Certification'!$K$39)","v":""},{"$f":"IF(A352=\"\",\"\",'1. Checklist & Certification'!$K$43)","v":""},{"$f":"IF(A352=\"\",\"\",'1. Checklist & Certification'!$K$45)","v":""},{"$f":"IF(A352=\"\",\"\",'1. Checklist & Certification'!$K$49)","v":""},{"$f":"IF(A352=\"\",\"\",'1. Checklist & Certification'!$K$62)","v":""},{"$f":"IF(A352=\"\",\"\",'1. Checklist & Certification'!$E$66)","v":""},{"$f":"IF(A352=\"\",\"\",'1. Checklist & Certification'!$E$67)","v":""},{"$f":"IF(A352=\"\",\"\",'1. Checklist & Certification'!$E$68)","v":""},{"$f":"IF(A352=\"\",\"\",'1. Checklist & Certification'!$G$66)","v":""},{"$f":"IF(A352=\"\",\"\",'1. Checklist & Certification'!$H$66)","v":""},{"$f":"IF(A352=\"\",\"\",'1. Checklist & Certification'!$I$66)","v":""},{"$f":"IF(A352=\"\",\"\",'1. Checklist & Certification'!$I$67)","v":""},{"$f":"IF(A352=\"\",\"\",'1. Checklist & Certification'!$I$68)","v":""},{"$f":"IF(A352=\"\",\"\",'1. Checklist & Certification'!$B$69)","v":""},{"$f":"IF(A352=\"\",\"\",'1. Checklist & Certification'!$C$69)","v":""},{"$f":"IF(A352=\"\",\"\",'1. Checklist & Certification'!$F$69)","v":""},{"$f":"IF(A352=\"\",\"\",'1. Checklist & Certification'!$G$69)","v":""},{"$f":"IF(A352=\"\",\"\",'1. Checklist & Certification'!$J$69)","v":""},{"$f":"IF(A352=\"\",\"\",'1. Checklist & Certification'!$K$69)","v":""},null,null,{"$f":"IF(AND(OR('1. Checklist & Certification'!$M$16=1,'1. Checklist & Certification'!$M$19=2),AO352>0,B352=\"\",I352>0,AQ352<I352,AV352<>\"Sec 8-Project\"),\"X\",IF(AND(OR('1. Checklist & Certification'!$M$20=4,'1. Checklist & Certification'!$M$21=5,'1. Checklist & Certification'!$M$22=7),AO352>0,B352=\"\",I352>0,K352<I352),\"X\",\"\"))","v":""},{"$f":"IF(A352=\"\",\"\",IF(SUMPRODUCT(-- (ISNUMBER(SEARCH({\"*AHSC*\",\"*FMTW*\",\"*FWHG*\",\"*GHI*\",\"*HHC*\",\"*HLCP*\",\"*HOME*\",\"*LPR*\",\"*MHP*\",\"*NHTF*\",\"*NSP*\",\"*PRP*\",\"*TOD*\",\"*VHHP*\"},'1. Checklist & Certification'!$L$7)))),\"MHP\",\"Legacy\"))","v":""},",,",null,null,null,{"$f":"IF('1. Checklist & Certification'!$M$20=4,\"Both\",IF(OR('1. Checklist & Certification'!$M$15>0,S352=\"CHRP-R\",U352=\"CHRP-R\",W352=\"CHRP-R\",Y352=\"CHRP-R\"),\"Under\",\"No\"))","v":"No"},"No","No",{"$f":"_xlfn.IFS(D352=\"\",\"\",D352=1,'MHP Family Income & Rent Limits'!$E$17,D352=2,'MHP Family Income & Rent Limits'!$F$17,D352=3,'MHP Family Income & Rent Limits'!$G$17,D352=4,'MHP Family Income & Rent Limits'!$H$17,D352=5,'MHP Family Income & Rent Limits'!$I$17,D352=6,'MHP Family Income & Rent Limits'!$J$17,D352=7,'MHP Family Income & Rent Limits'!$K$17,D352=8,'MHP Family Income & Rent Limits'!$L$17)","v":""},"",{"$f":"IF(OR(A352=0,B352=\"X\"),0,MIN(IF(AA352:AD352<>0,AA352:AD352)))","v":0},{"$f":"IF(OR(H352=\"\",I352=\"\"),0,IF(H352*0.3/12>I352,MIN(H352*0.3/12,I352*1.1)+AP352,I352*(1+(VLOOKUP('1. Checklist & Certification'!$F$9,'HLCP-E Rent Change'!$A$1:$D$59,4,FALSE)))+AP352))","v":0}]
[null,null,null,null,null,null,null,null,null,null,null,null,null,null,null,null,null,null,null,null,null,null,null,null,null,null,0,0,0,0,0,0,0,0,{"$f":"IF(OR(A353=0,B353=\"X\"),0,IF(OR(S353=\"FHDP\",S353=\"RHCP-B\",U353=\"FHDP\",U353=\"RHCP-B\",W353=\"FHDP\",W353=\"RHCP-B\",Y353=\"FHDP\",Y353=\"RHCP-B\"),TRUNC((MIN(I353,K353)*(1+'1. Checklist & Certification'!$K$43)+AP353)),0))","v":0},{"$f":"IF(OR(A353=0,B353=\"X\"),0,IF(OR(S353=\"CHRP-R\",S353=\"SERA\",S353=\"SUHRP\",U353=\"CHRP-R\",U353=\"SERA\",U353=\"SUHRP\",W353=\"CHRP-R\",W353=\"SERA\",W353=\"SUHRP\",Y353=\"CHRP-R\",Y353=\"SERA\",Y353=\"SUHRP\"),TRUNC((MIN(I353,K353)*(1+'1. Checklist & Certification'!$K$49))),0))","v":0},{"$f":"IF(OR(A353=0,B353=\"X\"),0,IF(OR(S353=\"CALDAP\",S353=\"DPRLP\",U353=\"CALDAP\",U353=\"DPRLP\",W353=\"CALDAP\",W353=\"DPRLP\",Y353=\"CALDAP\",Y353=\"DPRLP\"),TRUNC(((MIN(I353,K353))*(1+'1. Checklist & Certification'!$G$4))),0))","v":0},0,0,0,{"$f":"IF(OR(A353=0,B353=\"X\"),0,IF(OR(S353=\"PRP\",S353=\"LPR\",U353=\"PRP\",U353=\"LPR\",W353=\"PRP\",W353=\"LPR\",Y353=\"PRP\",Y353=\"LPR\"),MAX(I353+AP353,MIN(IF(AE353:AN353<>0,AE353:AN353))),MIN(IF(AE353:AN353<>0,AE353:AN353))))","v":0},{"$f":"IF(A353=0,0,IF(AND(OR(S353=\"Mgr\",S353=0),OR(U353=\"Mgr\",U353=0),OR(W353=\"Mgr\",W353=0)),0,IF(LEFT($A353,2)=\"B*\",VLOOKUP($E353,'1. Checklist & Certification'!$D$26:$E$32,2),IF(LEFT($A353,2)=\"C*\",VLOOKUP($E353,'1. Checklist & Certification'!$F$26:$G$32,2),IF(LEFT($A353,2)=\"D*\",VLOOKUP($E353,'1. Checklist & Certification'!$H$26:$I$32,2),IF(LEFT($A353,2)=\"E*\",VLOOKUP($E353,'1. Checklist & Certification'!$J$26:$K$32,2),VLOOKUP($E353,'1. Checklist & Certification'!$A$26:$B$32,2)))))))","v":0},0,0,null,null,null,null,"","",0,0,0,null,{"$f":"IF(A353=\"\",\"\",'1. Checklist & Certification'!$K$1)","v":""},{"$f":"IF(A353=\"\",\"\",'1. Checklist & Certification'!$C$62)","v":""},{"$f":"IF(A353=\"\",\"\",'1. Checklist & Certification'!$C$6)","v":""},{"$f":"IF(A353=\"\",\"\",'1. Checklist & Certification'!$G$5)","v":""},{"$f":"IFERROR(IF(A353=\"\",\"\",\n_xlfn.LET(_xlpm.Contract,'1. Checklist & Certification'!$C$7,\n_xlpm.Yr,TEXT(MOD(_xlfn.TEXTBEFORE(_xlpm.Contract,\"-\"),100),\"00\"),\n_xlpm.Program,_xlfn.TEXTAFTER(_xlfn.TEXTBEFORE(_xlpm.Contract,\"-\",2),\"-\"),\n_xlpm.CleanProgram,_xlfn.XLOOKUP(_xlpm.Program,SpellCheck[Input],SpellCheck[Correction],_xlpm.Program),\n_xlpm.Number,TEXT(_xlfn.TEXTAFTER(_xlpm.Contract,\"-\",2),\"0000\"),\n_xlfn.CONCAT(_xlpm.Yr,\"-\",_xlpm.CleanProgram,\"-\",_xlpm.Number))\n),\"\")","v":""},{"$f":"IFERROR(IF(A353=\"\",\"\",\n_xlfn.LET(_xlpm.Contract,'1. Checklist & Certification'!$C$8,\n_xlpm.Yr,TEXT(MOD(_xlfn.TEXTBEFORE(_xlpm.Contract,\"-\"),100),\"00\"),\n_xlpm.Program,_xlfn.TEXTAFTER(_xlfn.TEXTBEFORE(_xlpm.Contract,\"-\",2),\"-\"),\n_xlpm.CleanProgram,_xlfn.XLOOKUP(_xlpm.Program,SpellCheck[Input],SpellCheck[Correction],_xlpm.Program),\n_xlpm.Number,TEXT(_xlfn.TEXTAFTER(_xlpm.Contract,\"-\",2),\"0000\"),\n_xlfn.CONCAT(_xlpm.Yr,\"-\",_xlpm.CleanProgram,\"-\",_xlpm.Number))\n),\"\")","v":""},{"$f":"IFERROR(IF(A353=\"\",\"\",\n_xlfn.LET(_xlpm.Contract,'1. Checklist & Certification'!$F$7,\n_xlpm.Yr,TEXT(MOD(_xlfn.TEXTBEFORE(_xlpm.Contract,\"-\"),100),\"00\"),\n_xlpm.Program,_xlfn.TEXTAFTER(_xlfn.TEXTBEFORE(_xlpm.Contract,\"-\",2),\"-\"),\n_xlpm.CleanProgram,_xlfn.XLOOKUP(_xlpm.Program,SpellCheck[Input],SpellCheck[Correction],_xlpm.Program),\n_xlpm.Number,TEXT(_xlfn.TEXTAFTER(_xlpm.Contract,\"-\",2),\"0000\"),\n_xlfn.CONCAT(_xlpm.Yr,\"-\",_xlpm.CleanProgram,\"-\",_xlpm.Number))\n),\"\")","v":""},{"$f":"IFERROR(IF(A353=\"\",\"\",\n_xlfn.LET(_xlpm.Contract,'1. Checklist & Certification'!$F$8,\n_xlpm.Yr,TEXT(MOD(_xlfn.TEXTBEFORE(_xlpm.Contract,\"-\"),100),\"00\"),\n_xlpm.Program,_xlfn.TEXTAFTER(_xlfn.TEXTBEFORE(_xlpm.Contract,\"-\",2),\"-\"),\n_xlpm.CleanProgram,_xlfn.XLOOKUP(_xlpm.Program,SpellCheck[Input],SpellCheck[Correction],_xlpm.Program),\n_xlpm.Number,TEXT(_xlfn.TEXTAFTER(_xlpm.Contract,\"-\",2),\"0000\"),\n_xlfn.CONCAT(_xlpm.Yr,\"-\",_xlpm.CleanProgram,\"-\",_xlpm.Number))\n),\"\")","v":""},{"$f":"IF(A353=\"\",\"\",'1. Checklist & Certification'!$B$9)","v":""},{"$f":"IF(A353=\"\",\"\",'1. Checklist & Certification'!$F$9)","v":""},{"$f":"IF(A353=\"\",\"\",'1. Checklist & Certification'!$C$10)","v":""},{"$f":"IF(A353=\"\",\"\",'1. Checklist & Certification'!$C$11)","v":""},{"$f":"IF(A353=\"\",\"\",'1. Checklist & Certification'!$C$12)","v":""},{"$f":"IF(A353=\"\",\"\",'1. Checklist & Certification'!$B$14)","v":""},{"$f":"IF(A353=\"\",\"\",'1. Checklist & Certification'!$E$14)","v":""},{"$f":"IF(B353=\"\",\"\",'1. Checklist & Certification'!$G$14)","v":""},{"$f":"IF(A353=\"\",\"\",'MHP Family Income & Rent Limits'!$B$3)","v":""},{"$f":"IF(A353=\"\",\"\",'MHP Family Income & Rent Limits'!$J$3)","v":""},{"$f":"IF(A353=\"\",\"\",'MHP Family Income & Rent Limits'!$E$4)","v":""},{"$f":"IF(A353=\"\",\"\",'MHP Family Income & Rent Limits'!$C$7)","v":""},{"$f":"IF(A353=\"\",\"\",'MHP Family Income & Rent Limits'!$F$8)","v":""},{"$f":"IF(A353=\"\",\"\",'1. Checklist & Certification'!$G$4)","v":""},{"$f":"IF(A353=\"\",\"\",'1. Checklist & Certification'!$K$39)","v":""},{"$f":"IF(A353=\"\",\"\",'1. Checklist & Certification'!$K$43)","v":""},{"$f":"IF(A353=\"\",\"\",'1. Checklist & Certification'!$K$45)","v":""},{"$f":"IF(A353=\"\",\"\",'1. Checklist & Certification'!$K$49)","v":""},{"$f":"IF(A353=\"\",\"\",'1. Checklist & Certification'!$K$62)","v":""},{"$f":"IF(A353=\"\",\"\",'1. Checklist & Certification'!$E$66)","v":""},{"$f":"IF(A353=\"\",\"\",'1. Checklist & Certification'!$E$67)","v":""},{"$f":"IF(A353=\"\",\"\",'1. Checklist & Certification'!$E$68)","v":""},{"$f":"IF(A353=\"\",\"\",'1. Checklist & Certification'!$G$66)","v":""},{"$f":"IF(A353=\"\",\"\",'1. Checklist & Certification'!$H$66)","v":""},{"$f":"IF(A353=\"\",\"\",'1. Checklist & Certification'!$I$66)","v":""},{"$f":"IF(A353=\"\",\"\",'1. Checklist & Certification'!$I$67)","v":""},{"$f":"IF(A353=\"\",\"\",'1. Checklist & Certification'!$I$68)","v":""},{"$f":"IF(A353=\"\",\"\",'1. Checklist & Certification'!$B$69)","v":""},{"$f":"IF(A353=\"\",\"\",'1. Checklist & Certification'!$C$69)","v":""},{"$f":"IF(A353=\"\",\"\",'1. Checklist & Certification'!$F$69)","v":""},{"$f":"IF(A353=\"\",\"\",'1. Checklist & Certification'!$G$69)","v":""},{"$f":"IF(A353=\"\",\"\",'1. Checklist & Certification'!$J$69)","v":""},{"$f":"IF(A353=\"\",\"\",'1. Checklist & Certification'!$K$69)","v":""},null,null,{"$f":"IF(AND(OR('1. Checklist & Certification'!$M$16=1,'1. Checklist & Certification'!$M$19=2),AO353>0,B353=\"\",I353>0,AQ353<I353,AV353<>\"Sec 8-Project\"),\"X\",IF(AND(OR('1. Checklist & Certification'!$M$20=4,'1. Checklist & Certification'!$M$21=5,'1. Checklist & Certification'!$M$22=7),AO353>0,B353=\"\",I353>0,K353<I353),\"X\",\"\"))","v":""},{"$f":"IF(A353=\"\",\"\",IF(SUMPRODUCT(-- (ISNUMBER(SEARCH({\"*AHSC*\",\"*FMTW*\",\"*FWHG*\",\"*GHI*\",\"*HHC*\",\"*HLCP*\",\"*HOME*\",\"*LPR*\",\"*MHP*\",\"*NHTF*\",\"*NSP*\",\"*PRP*\",\"*TOD*\",\"*VHHP*\"},'1. Checklist & Certification'!$L$7)))),\"MHP\",\"Legacy\"))","v":""},",,",null,null,null,{"$f":"IF('1. Checklist & Certification'!$M$20=4,\"Both\",IF(OR('1. Checklist & Certification'!$M$15>0,S353=\"CHRP-R\",U353=\"CHRP-R\",W353=\"CHRP-R\",Y353=\"CHRP-R\"),\"Under\",\"No\"))","v":"No"},"No","No",{"$f":"_xlfn.IFS(D353=\"\",\"\",D353=1,'MHP Family Income & Rent Limits'!$E$17,D353=2,'MHP Family Income & Rent Limits'!$F$17,D353=3,'MHP Family Income & Rent Limits'!$G$17,D353=4,'MHP Family Income & Rent Limits'!$H$17,D353=5,'MHP Family Income & Rent Limits'!$I$17,D353=6,'MHP Family Income & Rent Limits'!$J$17,D353=7,'MHP Family Income & Rent Limits'!$K$17,D353=8,'MHP Family Income & Rent Limits'!$L$17)","v":""},"",{"$f":"IF(OR(A353=0,B353=\"X\"),0,MIN(IF(AA353:AD353<>0,AA353:AD353)))","v":0},{"$f":"IF(OR(H353=\"\",I353=\"\"),0,IF(H353*0.3/12>I353,MIN(H353*0.3/12,I353*1.1)+AP353,I353*(1+(VLOOKUP('1. Checklist & Certification'!$F$9,'HLCP-E Rent Change'!$A$1:$D$59,4,FALSE)))+AP353))","v":0}]
[null,null,null,null,null,null,null,null,null,null,null,null,null,null,null,null,null,null,null,null,null,null,null,null,null,null,0,0,0,0,0,0,0,0,{"$f":"IF(OR(A354=0,B354=\"X\"),0,IF(OR(S354=\"FHDP\",S354=\"RHCP-B\",U354=\"FHDP\",U354=\"RHCP-B\",W354=\"FHDP\",W354=\"RHCP-B\",Y354=\"FHDP\",Y354=\"RHCP-B\"),TRUNC((MIN(I354,K354)*(1+'1. Checklist & Certification'!$K$43)+AP354)),0))","v":0},{"$f":"IF(OR(A354=0,B354=\"X\"),0,IF(OR(S354=\"CHRP-R\",S354=\"SERA\",S354=\"SUHRP\",U354=\"CHRP-R\",U354=\"SERA\",U354=\"SUHRP\",W354=\"CHRP-R\",W354=\"SERA\",W354=\"SUHRP\",Y354=\"CHRP-R\",Y354=\"SERA\",Y354=\"SUHRP\"),TRUNC((MIN(I354,K354)*(1+'1. Checklist & Certification'!$K$49))),0))","v":0},{"$f":"IF(OR(A354=0,B354=\"X\"),0,IF(OR(S354=\"CALDAP\",S354=\"DPRLP\",U354=\"CALDAP\",U354=\"DPRLP\",W354=\"CALDAP\",W354=\"DPRLP\",Y354=\"CALDAP\",Y354=\"DPRLP\"),TRUNC(((MIN(I354,K354))*(1+'1. Checklist & Certification'!$G$4))),0))","v":0},0,0,0,{"$f":"IF(OR(A354=0,B354=\"X\"),0,IF(OR(S354=\"PRP\",S354=\"LPR\",U354=\"PRP\",U354=\"LPR\",W354=\"PRP\",W354=\"LPR\",Y354=\"PRP\",Y354=\"LPR\"),MAX(I354+AP354,MIN(IF(AE354:AN354<>0,AE354:AN354))),MIN(IF(AE354:AN354<>0,AE354:AN354))))","v":0},{"$f":"IF(A354=0,0,IF(AND(OR(S354=\"Mgr\",S354=0),OR(U354=\"Mgr\",U354=0),OR(W354=\"Mgr\",W354=0)),0,IF(LEFT($A354,2)=\"B*\",VLOOKUP($E354,'1. Checklist & Certification'!$D$26:$E$32,2),IF(LEFT($A354,2)=\"C*\",VLOOKUP($E354,'1. Checklist & Certification'!$F$26:$G$32,2),IF(LEFT($A354,2)=\"D*\",VLOOKUP($E354,'1. Checklist & Certification'!$H$26:$I$32,2),IF(LEFT($A354,2)=\"E*\",VLOOKUP($E354,'1. Checklist & Certification'!$J$26:$K$32,2),VLOOKUP($E354,'1. Checklist & Certification'!$A$26:$B$32,2)))))))","v":0},0,0,null,null,null,null,"","",0,0,0,null,{"$f":"IF(A354=\"\",\"\",'1. Checklist & Certification'!$K$1)","v":""},{"$f":"IF(A354=\"\",\"\",'1. Checklist & Certification'!$C$62)","v":""},{"$f":"IF(A354=\"\",\"\",'1. Checklist & Certification'!$C$6)","v":""},{"$f":"IF(A354=\"\",\"\",'1. Checklist & Certification'!$G$5)","v":""},{"$f":"IFERROR(IF(A354=\"\",\"\",\n_xlfn.LET(_xlpm.Contract,'1. Checklist & Certification'!$C$7,\n_xlpm.Yr,TEXT(MOD(_xlfn.TEXTBEFORE(_xlpm.Contract,\"-\"),100),\"00\"),\n_xlpm.Program,_xlfn.TEXTAFTER(_xlfn.TEXTBEFORE(_xlpm.Contract,\"-\",2),\"-\"),\n_xlpm.CleanProgram,_xlfn.XLOOKUP(_xlpm.Program,SpellCheck[Input],SpellCheck[Correction],_xlpm.Program),\n_xlpm.Number,TEXT(_xlfn.TEXTAFTER(_xlpm.Contract,\"-\",2),\"0000\"),\n_xlfn.CONCAT(_xlpm.Yr,\"-\",_xlpm.CleanProgram,\"-\",_xlpm.Number))\n),\"\")","v":""},{"$f":"IFERROR(IF(A354=\"\",\"\",\n_xlfn.LET(_xlpm.Contract,'1. Checklist & Certification'!$C$8,\n_xlpm.Yr,TEXT(MOD(_xlfn.TEXTBEFORE(_xlpm.Contract,\"-\"),100),\"00\"),\n_xlpm.Program,_xlfn.TEXTAFTER(_xlfn.TEXTBEFORE(_xlpm.Contract,\"-\",2),\"-\"),\n_xlpm.CleanProgram,_xlfn.XLOOKUP(_xlpm.Program,SpellCheck[Input],SpellCheck[Correction],_xlpm.Program),\n_xlpm.Number,TEXT(_xlfn.TEXTAFTER(_xlpm.Contract,\"-\",2),\"0000\"),\n_xlfn.CONCAT(_xlpm.Yr,\"-\",_xlpm.CleanProgram,\"-\",_xlpm.Number))\n),\"\")","v":""},{"$f":"IFERROR(IF(A354=\"\",\"\",\n_xlfn.LET(_xlpm.Contract,'1. Checklist & Certification'!$F$7,\n_xlpm.Yr,TEXT(MOD(_xlfn.TEXTBEFORE(_xlpm.Contract,\"-\"),100),\"00\"),\n_xlpm.Program,_xlfn.TEXTAFTER(_xlfn.TEXTBEFORE(_xlpm.Contract,\"-\",2),\"-\"),\n_xlpm.CleanProgram,_xlfn.XLOOKUP(_xlpm.Program,SpellCheck[Input],SpellCheck[Correction],_xlpm.Program),\n_xlpm.Number,TEXT(_xlfn.TEXTAFTER(_xlpm.Contract,\"-\",2),\"0000\"),\n_xlfn.CONCAT(_xlpm.Yr,\"-\",_xlpm.CleanProgram,\"-\",_xlpm.Number))\n),\"\")","v":""},{"$f":"IFERROR(IF(A354=\"\",\"\",\n_xlfn.LET(_xlpm.Contract,'1. Checklist & Certification'!$F$8,\n_xlpm.Yr,TEXT(MOD(_xlfn.TEXTBEFORE(_xlpm.Contract,\"-\"),100),\"00\"),\n_xlpm.Program,_xlfn.TEXTAFTER(_xlfn.TEXTBEFORE(_xlpm.Contract,\"-\",2),\"-\"),\n_xlpm.CleanProgram,_xlfn.XLOOKUP(_xlpm.Program,SpellCheck[Input],SpellCheck[Correction],_xlpm.Program),\n_xlpm.Number,TEXT(_xlfn.TEXTAFTER(_xlpm.Contract,\"-\",2),\"0000\"),\n_xlfn.CONCAT(_xlpm.Yr,\"-\",_xlpm.CleanProgram,\"-\",_xlpm.Number))\n),\"\")","v":""},{"$f":"IF(A354=\"\",\"\",'1. Checklist & Certification'!$B$9)","v":""},{"$f":"IF(A354=\"\",\"\",'1. Checklist & Certification'!$F$9)","v":""},{"$f":"IF(A354=\"\",\"\",'1. Checklist & Certification'!$C$10)","v":""},{"$f":"IF(A354=\"\",\"\",'1. Checklist & Certification'!$C$11)","v":""},{"$f":"IF(A354=\"\",\"\",'1. Checklist & Certification'!$C$12)","v":""},{"$f":"IF(A354=\"\",\"\",'1. Checklist & Certification'!$B$14)","v":""},{"$f":"IF(A354=\"\",\"\",'1. Checklist & Certification'!$E$14)","v":""},{"$f":"IF(B354=\"\",\"\",'1. Checklist & Certification'!$G$14)","v":""},{"$f":"IF(A354=\"\",\"\",'MHP Family Income & Rent Limits'!$B$3)","v":""},{"$f":"IF(A354=\"\",\"\",'MHP Family Income & Rent Limits'!$J$3)","v":""},{"$f":"IF(A354=\"\",\"\",'MHP Family Income & Rent Limits'!$E$4)","v":""},{"$f":"IF(A354=\"\",\"\",'MHP Family Income & Rent Limits'!$C$7)","v":""},{"$f":"IF(A354=\"\",\"\",'MHP Family Income & Rent Limits'!$F$8)","v":""},{"$f":"IF(A354=\"\",\"\",'1. Checklist & Certification'!$G$4)","v":""},{"$f":"IF(A354=\"\",\"\",'1. Checklist & Certification'!$K$39)","v":""},{"$f":"IF(A354=\"\",\"\",'1. Checklist & Certification'!$K$43)","v":""},{"$f":"IF(A354=\"\",\"\",'1. Checklist & Certification'!$K$45)","v":""},{"$f":"IF(A354=\"\",\"\",'1. Checklist & Certification'!$K$49)","v":""},{"$f":"IF(A354=\"\",\"\",'1. Checklist & Certification'!$K$62)","v":""},{"$f":"IF(A354=\"\",\"\",'1. Checklist & Certification'!$E$66)","v":""},{"$f":"IF(A354=\"\",\"\",'1. Checklist & Certification'!$E$67)","v":""},{"$f":"IF(A354=\"\",\"\",'1. Checklist & Certification'!$E$68)","v":""},{"$f":"IF(A354=\"\",\"\",'1. Checklist & Certification'!$G$66)","v":""},{"$f":"IF(A354=\"\",\"\",'1. Checklist & Certification'!$H$66)","v":""},{"$f":"IF(A354=\"\",\"\",'1. Checklist & Certification'!$I$66)","v":""},{"$f":"IF(A354=\"\",\"\",'1. Checklist & Certification'!$I$67)","v":""},{"$f":"IF(A354=\"\",\"\",'1. Checklist & Certification'!$I$68)","v":""},{"$f":"IF(A354=\"\",\"\",'1. Checklist & Certification'!$B$69)","v":""},{"$f":"IF(A354=\"\",\"\",'1. Checklist & Certification'!$C$69)","v":""},{"$f":"IF(A354=\"\",\"\",'1. Checklist & Certification'!$F$69)","v":""},{"$f":"IF(A354=\"\",\"\",'1. Checklist & Certification'!$G$69)","v":""},{"$f":"IF(A354=\"\",\"\",'1. Checklist & Certification'!$J$69)","v":""},{"$f":"IF(A354=\"\",\"\",'1. Checklist & Certification'!$K$69)","v":""},null,null,{"$f":"IF(AND(OR('1. Checklist & Certification'!$M$16=1,'1. Checklist & Certification'!$M$19=2),AO354>0,B354=\"\",I354>0,AQ354<I354,AV354<>\"Sec 8-Project\"),\"X\",IF(AND(OR('1. Checklist & Certification'!$M$20=4,'1. Checklist & Certification'!$M$21=5,'1. Checklist & Certification'!$M$22=7),AO354>0,B354=\"\",I354>0,K354<I354),\"X\",\"\"))","v":""},{"$f":"IF(A354=\"\",\"\",IF(SUMPRODUCT(-- (ISNUMBER(SEARCH({\"*AHSC*\",\"*FMTW*\",\"*FWHG*\",\"*GHI*\",\"*HHC*\",\"*HLCP*\",\"*HOME*\",\"*LPR*\",\"*MHP*\",\"*NHTF*\",\"*NSP*\",\"*PRP*\",\"*TOD*\",\"*VHHP*\"},'1. Checklist & Certification'!$L$7)))),\"MHP\",\"Legacy\"))","v":""},",,",null,null,null,{"$f":"IF('1. Checklist & Certification'!$M$20=4,\"Both\",IF(OR('1. Checklist & Certification'!$M$15>0,S354=\"CHRP-R\",U354=\"CHRP-R\",W354=\"CHRP-R\",Y354=\"CHRP-R\"),\"Under\",\"No\"))","v":"No"},"No","No",{"$f":"_xlfn.IFS(D354=\"\",\"\",D354=1,'MHP Family Income & Rent Limits'!$E$17,D354=2,'MHP Family Income & Rent Limits'!$F$17,D354=3,'MHP Family Income & Rent Limits'!$G$17,D354=4,'MHP Family Income & Rent Limits'!$H$17,D354=5,'MHP Family Income & Rent Limits'!$I$17,D354=6,'MHP Family Income & Rent Limits'!$J$17,D354=7,'MHP Family Income & Rent Limits'!$K$17,D354=8,'MHP Family Income & Rent Limits'!$L$17)","v":""},"",{"$f":"IF(OR(A354=0,B354=\"X\"),0,MIN(IF(AA354:AD354<>0,AA354:AD354)))","v":0},{"$f":"IF(OR(H354=\"\",I354=\"\"),0,IF(H354*0.3/12>I354,MIN(H354*0.3/12,I354*1.1)+AP354,I354*(1+(VLOOKUP('1. Checklist & Certification'!$F$9,'HLCP-E Rent Change'!$A$1:$D$59,4,FALSE)))+AP354))","v":0}]
[null,null,null,null,null,null,null,null,null,null,null,null,null,null,null,null,null,null,null,null,null,null,null,null,null,null,0,0,0,0,0,0,0,0,{"$f":"IF(OR(A355=0,B355=\"X\"),0,IF(OR(S355=\"FHDP\",S355=\"RHCP-B\",U355=\"FHDP\",U355=\"RHCP-B\",W355=\"FHDP\",W355=\"RHCP-B\",Y355=\"FHDP\",Y355=\"RHCP-B\"),TRUNC((MIN(I355,K355)*(1+'1. Checklist & Certification'!$K$43)+AP355)),0))","v":0},{"$f":"IF(OR(A355=0,B355=\"X\"),0,IF(OR(S355=\"CHRP-R\",S355=\"SERA\",S355=\"SUHRP\",U355=\"CHRP-R\",U355=\"SERA\",U355=\"SUHRP\",W355=\"CHRP-R\",W355=\"SERA\",W355=\"SUHRP\",Y355=\"CHRP-R\",Y355=\"SERA\",Y355=\"SUHRP\"),TRUNC((MIN(I355,K355)*(1+'1. Checklist & Certification'!$K$49))),0))","v":0},{"$f":"IF(OR(A355=0,B355=\"X\"),0,IF(OR(S355=\"CALDAP\",S355=\"DPRLP\",U355=\"CALDAP\",U355=\"DPRLP\",W355=\"CALDAP\",W355=\"DPRLP\",Y355=\"CALDAP\",Y355=\"DPRLP\"),TRUNC(((MIN(I355,K355))*(1+'1. Checklist & Certification'!$G$4))),0))","v":0},0,0,0,{"$f":"IF(OR(A355=0,B355=\"X\"),0,IF(OR(S355=\"PRP\",S355=\"LPR\",U355=\"PRP\",U355=\"LPR\",W355=\"PRP\",W355=\"LPR\",Y355=\"PRP\",Y355=\"LPR\"),MAX(I355+AP355,MIN(IF(AE355:AN355<>0,AE355:AN355))),MIN(IF(AE355:AN355<>0,AE355:AN355))))","v":0},{"$f":"IF(A355=0,0,IF(AND(OR(S355=\"Mgr\",S355=0),OR(U355=\"Mgr\",U355=0),OR(W355=\"Mgr\",W355=0)),0,IF(LEFT($A355,2)=\"B*\",VLOOKUP($E355,'1. Checklist & Certification'!$D$26:$E$32,2),IF(LEFT($A355,2)=\"C*\",VLOOKUP($E355,'1. Checklist & Certification'!$F$26:$G$32,2),IF(LEFT($A355,2)=\"D*\",VLOOKUP($E355,'1. Checklist & Certification'!$H$26:$I$32,2),IF(LEFT($A355,2)=\"E*\",VLOOKUP($E355,'1. Checklist & Certification'!$J$26:$K$32,2),VLOOKUP($E355,'1. Checklist & Certification'!$A$26:$B$32,2)))))))","v":0},0,0,null,null,null,null,"","",0,0,0,null,{"$f":"IF(A355=\"\",\"\",'1. Checklist & Certification'!$K$1)","v":""},{"$f":"IF(A355=\"\",\"\",'1. Checklist & Certification'!$C$62)","v":""},{"$f":"IF(A355=\"\",\"\",'1. Checklist & Certification'!$C$6)","v":""},{"$f":"IF(A355=\"\",\"\",'1. Checklist & Certification'!$G$5)","v":""},{"$f":"IFERROR(IF(A355=\"\",\"\",\n_xlfn.LET(_xlpm.Contract,'1. Checklist & Certification'!$C$7,\n_xlpm.Yr,TEXT(MOD(_xlfn.TEXTBEFORE(_xlpm.Contract,\"-\"),100),\"00\"),\n_xlpm.Program,_xlfn.TEXTAFTER(_xlfn.TEXTBEFORE(_xlpm.Contract,\"-\",2),\"-\"),\n_xlpm.CleanProgram,_xlfn.XLOOKUP(_xlpm.Program,SpellCheck[Input],SpellCheck[Correction],_xlpm.Program),\n_xlpm.Number,TEXT(_xlfn.TEXTAFTER(_xlpm.Contract,\"-\",2),\"0000\"),\n_xlfn.CONCAT(_xlpm.Yr,\"-\",_xlpm.CleanProgram,\"-\",_xlpm.Number))\n),\"\")","v":""},{"$f":"IFERROR(IF(A355=\"\",\"\",\n_xlfn.LET(_xlpm.Contract,'1. Checklist & Certification'!$C$8,\n_xlpm.Yr,TEXT(MOD(_xlfn.TEXTBEFORE(_xlpm.Contract,\"-\"),100),\"00\"),\n_xlpm.Program,_xlfn.TEXTAFTER(_xlfn.TEXTBEFORE(_xlpm.Contract,\"-\",2),\"-\"),\n_xlpm.CleanProgram,_xlfn.XLOOKUP(_xlpm.Program,SpellCheck[Input],SpellCheck[Correction],_xlpm.Program),\n_xlpm.Number,TEXT(_xlfn.TEXTAFTER(_xlpm.Contract,\"-\",2),\"0000\"),\n_xlfn.CONCAT(_xlpm.Yr,\"-\",_xlpm.CleanProgram,\"-\",_xlpm.Number))\n),\"\")","v":""},{"$f":"IFERROR(IF(A355=\"\",\"\",\n_xlfn.LET(_xlpm.Contract,'1. Checklist & Certification'!$F$7,\n_xlpm.Yr,TEXT(MOD(_xlfn.TEXTBEFORE(_xlpm.Contract,\"-\"),100),\"00\"),\n_xlpm.Program,_xlfn.TEXTAFTER(_xlfn.TEXTBEFORE(_xlpm.Contract,\"-\",2),\"-\"),\n_xlpm.CleanProgram,_xlfn.XLOOKUP(_xlpm.Program,SpellCheck[Input],SpellCheck[Correction],_xlpm.Program),\n_xlpm.Number,TEXT(_xlfn.TEXTAFTER(_xlpm.Contract,\"-\",2),\"0000\"),\n_xlfn.CONCAT(_xlpm.Yr,\"-\",_xlpm.CleanProgram,\"-\",_xlpm.Number))\n),\"\")","v":""},{"$f":"IFERROR(IF(A355=\"\",\"\",\n_xlfn.LET(_xlpm.Contract,'1. Checklist & Certification'!$F$8,\n_xlpm.Yr,TEXT(MOD(_xlfn.TEXTBEFORE(_xlpm.Contract,\"-\"),100),\"00\"),\n_xlpm.Program,_xlfn.TEXTAFTER(_xlfn.TEXTBEFORE(_xlpm.Contract,\"-\",2),\"-\"),\n_xlpm.CleanProgram,_xlfn.XLOOKUP(_xlpm.Program,SpellCheck[Input],SpellCheck[Correction],_xlpm.Program),\n_xlpm.Number,TEXT(_xlfn.TEXTAFTER(_xlpm.Contract,\"-\",2),\"0000\"),\n_xlfn.CONCAT(_xlpm.Yr,\"-\",_xlpm.CleanProgram,\"-\",_xlpm.Number))\n),\"\")","v":""},{"$f":"IF(A355=\"\",\"\",'1. Checklist & Certification'!$B$9)","v":""},{"$f":"IF(A355=\"\",\"\",'1. Checklist & Certification'!$F$9)","v":""},{"$f":"IF(A355=\"\",\"\",'1. Checklist & Certification'!$C$10)","v":""},{"$f":"IF(A355=\"\",\"\",'1. Checklist & Certification'!$C$11)","v":""},{"$f":"IF(A355=\"\",\"\",'1. Checklist & Certification'!$C$12)","v":""},{"$f":"IF(A355=\"\",\"\",'1. Checklist & Certification'!$B$14)","v":""},{"$f":"IF(A355=\"\",\"\",'1. Checklist & Certification'!$E$14)","v":""},{"$f":"IF(B355=\"\",\"\",'1. Checklist & Certification'!$G$14)","v":""},{"$f":"IF(A355=\"\",\"\",'MHP Family Income & Rent Limits'!$B$3)","v":""},{"$f":"IF(A355=\"\",\"\",'MHP Family Income & Rent Limits'!$J$3)","v":""},{"$f":"IF(A355=\"\",\"\",'MHP Family Income & Rent Limits'!$E$4)","v":""},{"$f":"IF(A355=\"\",\"\",'MHP Family Income & Rent Limits'!$C$7)","v":""},{"$f":"IF(A355=\"\",\"\",'MHP Family Income & Rent Limits'!$F$8)","v":""},{"$f":"IF(A355=\"\",\"\",'1. Checklist & Certification'!$G$4)","v":""},{"$f":"IF(A355=\"\",\"\",'1. Checklist & Certification'!$K$39)","v":""},{"$f":"IF(A355=\"\",\"\",'1. Checklist & Certification'!$K$43)","v":""},{"$f":"IF(A355=\"\",\"\",'1. Checklist & Certification'!$K$45)","v":""},{"$f":"IF(A355=\"\",\"\",'1. Checklist & Certification'!$K$49)","v":""},{"$f":"IF(A355=\"\",\"\",'1. Checklist & Certification'!$K$62)","v":""},{"$f":"IF(A355=\"\",\"\",'1. Checklist & Certification'!$E$66)","v":""},{"$f":"IF(A355=\"\",\"\",'1. Checklist & Certification'!$E$67)","v":""},{"$f":"IF(A355=\"\",\"\",'1. Checklist & Certification'!$E$68)","v":""},{"$f":"IF(A355=\"\",\"\",'1. Checklist & Certification'!$G$66)","v":""},{"$f":"IF(A355=\"\",\"\",'1. Checklist & Certification'!$H$66)","v":""},{"$f":"IF(A355=\"\",\"\",'1. Checklist & Certification'!$I$66)","v":""},{"$f":"IF(A355=\"\",\"\",'1. Checklist & Certification'!$I$67)","v":""},{"$f":"IF(A355=\"\",\"\",'1. Checklist & Certification'!$I$68)","v":""},{"$f":"IF(A355=\"\",\"\",'1. Checklist & Certification'!$B$69)","v":""},{"$f":"IF(A355=\"\",\"\",'1. Checklist & Certification'!$C$69)","v":""},{"$f":"IF(A355=\"\",\"\",'1. Checklist & Certification'!$F$69)","v":""},{"$f":"IF(A355=\"\",\"\",'1. Checklist & Certification'!$G$69)","v":""},{"$f":"IF(A355=\"\",\"\",'1. Checklist & Certification'!$J$69)","v":""},{"$f":"IF(A355=\"\",\"\",'1. Checklist & Certification'!$K$69)","v":""},null,null,{"$f":"IF(AND(OR('1. Checklist & Certification'!$M$16=1,'1. Checklist & Certification'!$M$19=2),AO355>0,B355=\"\",I355>0,AQ355<I355,AV355<>\"Sec 8-Project\"),\"X\",IF(AND(OR('1. Checklist & Certification'!$M$20=4,'1. Checklist & Certification'!$M$21=5,'1. Checklist & Certification'!$M$22=7),AO355>0,B355=\"\",I355>0,K355<I355),\"X\",\"\"))","v":""},{"$f":"IF(A355=\"\",\"\",IF(SUMPRODUCT(-- (ISNUMBER(SEARCH({\"*AHSC*\",\"*FMTW*\",\"*FWHG*\",\"*GHI*\",\"*HHC*\",\"*HLCP*\",\"*HOME*\",\"*LPR*\",\"*MHP*\",\"*NHTF*\",\"*NSP*\",\"*PRP*\",\"*TOD*\",\"*VHHP*\"},'1. Checklist & Certification'!$L$7)))),\"MHP\",\"Legacy\"))","v":""},",,",null,null,null,{"$f":"IF('1. Checklist & Certification'!$M$20=4,\"Both\",IF(OR('1. Checklist & Certification'!$M$15>0,S355=\"CHRP-R\",U355=\"CHRP-R\",W355=\"CHRP-R\",Y355=\"CHRP-R\"),\"Under\",\"No\"))","v":"No"},"No","No",{"$f":"_xlfn.IFS(D355=\"\",\"\",D355=1,'MHP Family Income & Rent Limits'!$E$17,D355=2,'MHP Family Income & Rent Limits'!$F$17,D355=3,'MHP Family Income & Rent Limits'!$G$17,D355=4,'MHP Family Income & Rent Limits'!$H$17,D355=5,'MHP Family Income & Rent Limits'!$I$17,D355=6,'MHP Family Income & Rent Limits'!$J$17,D355=7,'MHP Family Income & Rent Limits'!$K$17,D355=8,'MHP Family Income & Rent Limits'!$L$17)","v":""},"",{"$f":"IF(OR(A355=0,B355=\"X\"),0,MIN(IF(AA355:AD355<>0,AA355:AD355)))","v":0},{"$f":"IF(OR(H355=\"\",I355=\"\"),0,IF(H355*0.3/12>I355,MIN(H355*0.3/12,I355*1.1)+AP355,I355*(1+(VLOOKUP('1. Checklist & Certification'!$F$9,'HLCP-E Rent Change'!$A$1:$D$59,4,FALSE)))+AP355))","v":0}]
[null,null,null,null,null,null,null,null,null,null,null,null,null,null,null,null,null,null,null,null,null,null,null,null,null,null,0,0,0,0,0,0,0,0,{"$f":"IF(OR(A356=0,B356=\"X\"),0,IF(OR(S356=\"FHDP\",S356=\"RHCP-B\",U356=\"FHDP\",U356=\"RHCP-B\",W356=\"FHDP\",W356=\"RHCP-B\",Y356=\"FHDP\",Y356=\"RHCP-B\"),TRUNC((MIN(I356,K356)*(1+'1. Checklist & Certification'!$K$43)+AP356)),0))","v":0},{"$f":"IF(OR(A356=0,B356=\"X\"),0,IF(OR(S356=\"CHRP-R\",S356=\"SERA\",S356=\"SUHRP\",U356=\"CHRP-R\",U356=\"SERA\",U356=\"SUHRP\",W356=\"CHRP-R\",W356=\"SERA\",W356=\"SUHRP\",Y356=\"CHRP-R\",Y356=\"SERA\",Y356=\"SUHRP\"),TRUNC((MIN(I356,K356)*(1+'1. Checklist & Certification'!$K$49))),0))","v":0},{"$f":"IF(OR(A356=0,B356=\"X\"),0,IF(OR(S356=\"CALDAP\",S356=\"DPRLP\",U356=\"CALDAP\",U356=\"DPRLP\",W356=\"CALDAP\",W356=\"DPRLP\",Y356=\"CALDAP\",Y356=\"DPRLP\"),TRUNC(((MIN(I356,K356))*(1+'1. Checklist & Certification'!$G$4))),0))","v":0},0,0,0,{"$f":"IF(OR(A356=0,B356=\"X\"),0,IF(OR(S356=\"PRP\",S356=\"LPR\",U356=\"PRP\",U356=\"LPR\",W356=\"PRP\",W356=\"LPR\",Y356=\"PRP\",Y356=\"LPR\"),MAX(I356+AP356,MIN(IF(AE356:AN356<>0,AE356:AN356))),MIN(IF(AE356:AN356<>0,AE356:AN356))))","v":0},{"$f":"IF(A356=0,0,IF(AND(OR(S356=\"Mgr\",S356=0),OR(U356=\"Mgr\",U356=0),OR(W356=\"Mgr\",W356=0)),0,IF(LEFT($A356,2)=\"B*\",VLOOKUP($E356,'1. Checklist & Certification'!$D$26:$E$32,2),IF(LEFT($A356,2)=\"C*\",VLOOKUP($E356,'1. Checklist & Certification'!$F$26:$G$32,2),IF(LEFT($A356,2)=\"D*\",VLOOKUP($E356,'1. Checklist & Certification'!$H$26:$I$32,2),IF(LEFT($A356,2)=\"E*\",VLOOKUP($E356,'1. Checklist & Certification'!$J$26:$K$32,2),VLOOKUP($E356,'1. Checklist & Certification'!$A$26:$B$32,2)))))))","v":0},0,0,null,null,null,null,"","",0,0,0,null,{"$f":"IF(A356=\"\",\"\",'1. Checklist & Certification'!$K$1)","v":""},{"$f":"IF(A356=\"\",\"\",'1. Checklist & Certification'!$C$62)","v":""},{"$f":"IF(A356=\"\",\"\",'1. Checklist & Certification'!$C$6)","v":""},{"$f":"IF(A356=\"\",\"\",'1. Checklist & Certification'!$G$5)","v":""},{"$f":"IFERROR(IF(A356=\"\",\"\",\n_xlfn.LET(_xlpm.Contract,'1. Checklist & Certification'!$C$7,\n_xlpm.Yr,TEXT(MOD(_xlfn.TEXTBEFORE(_xlpm.Contract,\"-\"),100),\"00\"),\n_xlpm.Program,_xlfn.TEXTAFTER(_xlfn.TEXTBEFORE(_xlpm.Contract,\"-\",2),\"-\"),\n_xlpm.CleanProgram,_xlfn.XLOOKUP(_xlpm.Program,SpellCheck[Input],SpellCheck[Correction],_xlpm.Program),\n_xlpm.Number,TEXT(_xlfn.TEXTAFTER(_xlpm.Contract,\"-\",2),\"0000\"),\n_xlfn.CONCAT(_xlpm.Yr,\"-\",_xlpm.CleanProgram,\"-\",_xlpm.Number))\n),\"\")","v":""},{"$f":"IFERROR(IF(A356=\"\",\"\",\n_xlfn.LET(_xlpm.Contract,'1. Checklist & Certification'!$C$8,\n_xlpm.Yr,TEXT(MOD(_xlfn.TEXTBEFORE(_xlpm.Contract,\"-\"),100),\"00\"),\n_xlpm.Program,_xlfn.TEXTAFTER(_xlfn.TEXTBEFORE(_xlpm.Contract,\"-\",2),\"-\"),\n_xlpm.CleanProgram,_xlfn.XLOOKUP(_xlpm.Program,SpellCheck[Input],SpellCheck[Correction],_xlpm.Program),\n_xlpm.Number,TEXT(_xlfn.TEXTAFTER(_xlpm.Contract,\"-\",2),\"0000\"),\n_xlfn.CONCAT(_xlpm.Yr,\"-\",_xlpm.CleanProgram,\"-\",_xlpm.Number))\n),\"\")","v":""},{"$f":"IFERROR(IF(A356=\"\",\"\",\n_xlfn.LET(_xlpm.Contract,'1. Checklist & Certification'!$F$7,\n_xlpm.Yr,TEXT(MOD(_xlfn.TEXTBEFORE(_xlpm.Contract,\"-\"),100),\"00\"),\n_xlpm.Program,_xlfn.TEXTAFTER(_xlfn.TEXTBEFORE(_xlpm.Contract,\"-\",2),\"-\"),\n_xlpm.CleanProgram,_xlfn.XLOOKUP(_xlpm.Program,SpellCheck[Input],SpellCheck[Correction],_xlpm.Program),\n_xlpm.Number,TEXT(_xlfn.TEXTAFTER(_xlpm.Contract,\"-\",2),\"0000\"),\n_xlfn.CONCAT(_xlpm.Yr,\"-\",_xlpm.CleanProgram,\"-\",_xlpm.Number))\n),\"\")","v":""},{"$f":"IFERROR(IF(A356=\"\",\"\",\n_xlfn.LET(_xlpm.Contract,'1. Checklist & Certification'!$F$8,\n_xlpm.Yr,TEXT(MOD(_xlfn.TEXTBEFORE(_xlpm.Contract,\"-\"),100),\"00\"),\n_xlpm.Program,_xlfn.TEXTAFTER(_xlfn.TEXTBEFORE(_xlpm.Contract,\"-\",2),\"-\"),\n_xlpm.CleanProgram,_xlfn.XLOOKUP(_xlpm.Program,SpellCheck[Input],SpellCheck[Correction],_xlpm.Program),\n_xlpm.Number,TEXT(_xlfn.TEXTAFTER(_xlpm.Contract,\"-\",2),\"0000\"),\n_xlfn.CONCAT(_xlpm.Yr,\"-\",_xlpm.CleanProgram,\"-\",_xlpm.Number))\n),\"\")","v":""},{"$f":"IF(A356=\"\",\"\",'1. Checklist & Certification'!$B$9)","v":""},{"$f":"IF(A356=\"\",\"\",'1. Checklist & Certification'!$F$9)","v":""},{"$f":"IF(A356=\"\",\"\",'1. Checklist & Certification'!$C$10)","v":""},{"$f":"IF(A356=\"\",\"\",'1. Checklist & Certification'!$C$11)","v":""},{"$f":"IF(A356=\"\",\"\",'1. Checklist & Certification'!$C$12)","v":""},{"$f":"IF(A356=\"\",\"\",'1. Checklist & Certification'!$B$14)","v":""},{"$f":"IF(A356=\"\",\"\",'1. Checklist & Certification'!$E$14)","v":""},{"$f":"IF(B356=\"\",\"\",'1. Checklist & Certification'!$G$14)","v":""},{"$f":"IF(A356=\"\",\"\",'MHP Family Income & Rent Limits'!$B$3)","v":""},{"$f":"IF(A356=\"\",\"\",'MHP Family Income & Rent Limits'!$J$3)","v":""},{"$f":"IF(A356=\"\",\"\",'MHP Family Income & Rent Limits'!$E$4)","v":""},{"$f":"IF(A356=\"\",\"\",'MHP Family Income & Rent Limits'!$C$7)","v":""},{"$f":"IF(A356=\"\",\"\",'MHP Family Income & Rent Limits'!$F$8)","v":""},{"$f":"IF(A356=\"\",\"\",'1. Checklist & Certification'!$G$4)","v":""},{"$f":"IF(A356=\"\",\"\",'1. Checklist & Certification'!$K$39)","v":""},{"$f":"IF(A356=\"\",\"\",'1. Checklist & Certification'!$K$43)","v":""},{"$f":"IF(A356=\"\",\"\",'1. Checklist & Certification'!$K$45)","v":""},{"$f":"IF(A356=\"\",\"\",'1. Checklist & Certification'!$K$49)","v":""},{"$f":"IF(A356=\"\",\"\",'1. Checklist & Certification'!$K$62)","v":""},{"$f":"IF(A356=\"\",\"\",'1. Checklist & Certification'!$E$66)","v":""},{"$f":"IF(A356=\"\",\"\",'1. Checklist & Certification'!$E$67)","v":""},{"$f":"IF(A356=\"\",\"\",'1. Checklist & Certification'!$E$68)","v":""},{"$f":"IF(A356=\"\",\"\",'1. Checklist & Certification'!$G$66)","v":""},{"$f":"IF(A356=\"\",\"\",'1. Checklist & Certification'!$H$66)","v":""},{"$f":"IF(A356=\"\",\"\",'1. Checklist & Certification'!$I$66)","v":""},{"$f":"IF(A356=\"\",\"\",'1. Checklist & Certification'!$I$67)","v":""},{"$f":"IF(A356=\"\",\"\",'1. Checklist & Certification'!$I$68)","v":""},{"$f":"IF(A356=\"\",\"\",'1. Checklist & Certification'!$B$69)","v":""},{"$f":"IF(A356=\"\",\"\",'1. Checklist & Certification'!$C$69)","v":""},{"$f":"IF(A356=\"\",\"\",'1. Checklist & Certification'!$F$69)","v":""},{"$f":"IF(A356=\"\",\"\",'1. Checklist & Certification'!$G$69)","v":""},{"$f":"IF(A356=\"\",\"\",'1. Checklist & Certification'!$J$69)","v":""},{"$f":"IF(A356=\"\",\"\",'1. Checklist & Certification'!$K$69)","v":""},null,null,{"$f":"IF(AND(OR('1. Checklist & Certification'!$M$16=1,'1. Checklist & Certification'!$M$19=2),AO356>0,B356=\"\",I356>0,AQ356<I356,AV356<>\"Sec 8-Project\"),\"X\",IF(AND(OR('1. Checklist & Certification'!$M$20=4,'1. Checklist & Certification'!$M$21=5,'1. Checklist & Certification'!$M$22=7),AO356>0,B356=\"\",I356>0,K356<I356),\"X\",\"\"))","v":""},{"$f":"IF(A356=\"\",\"\",IF(SUMPRODUCT(-- (ISNUMBER(SEARCH({\"*AHSC*\",\"*FMTW*\",\"*FWHG*\",\"*GHI*\",\"*HHC*\",\"*HLCP*\",\"*HOME*\",\"*LPR*\",\"*MHP*\",\"*NHTF*\",\"*NSP*\",\"*PRP*\",\"*TOD*\",\"*VHHP*\"},'1. Checklist & Certification'!$L$7)))),\"MHP\",\"Legacy\"))","v":""},",,",null,null,null,{"$f":"IF('1. Checklist & Certification'!$M$20=4,\"Both\",IF(OR('1. Checklist & Certification'!$M$15>0,S356=\"CHRP-R\",U356=\"CHRP-R\",W356=\"CHRP-R\",Y356=\"CHRP-R\"),\"Under\",\"No\"))","v":"No"},"No","No",{"$f":"_xlfn.IFS(D356=\"\",\"\",D356=1,'MHP Family Income & Rent Limits'!$E$17,D356=2,'MHP Family Income & Rent Limits'!$F$17,D356=3,'MHP Family Income & Rent Limits'!$G$17,D356=4,'MHP Family Income & Rent Limits'!$H$17,D356=5,'MHP Family Income & Rent Limits'!$I$17,D356=6,'MHP Family Income & Rent Limits'!$J$17,D356=7,'MHP Family Income & Rent Limits'!$K$17,D356=8,'MHP Family Income & Rent Limits'!$L$17)","v":""},"",{"$f":"IF(OR(A356=0,B356=\"X\"),0,MIN(IF(AA356:AD356<>0,AA356:AD356)))","v":0},{"$f":"IF(OR(H356=\"\",I356=\"\"),0,IF(H356*0.3/12>I356,MIN(H356*0.3/12,I356*1.1)+AP356,I356*(1+(VLOOKUP('1. Checklist & Certification'!$F$9,'HLCP-E Rent Change'!$A$1:$D$59,4,FALSE)))+AP356))","v":0}]
[null,null,null,null,null,null,null,null,null,null,null,null,null,null,null,null,null,null,null,null,null,null,null,null,null,null,0,0,0,0,0,0,0,0,{"$f":"IF(OR(A357=0,B357=\"X\"),0,IF(OR(S357=\"FHDP\",S357=\"RHCP-B\",U357=\"FHDP\",U357=\"RHCP-B\",W357=\"FHDP\",W357=\"RHCP-B\",Y357=\"FHDP\",Y357=\"RHCP-B\"),TRUNC((MIN(I357,K357)*(1+'1. Checklist & Certification'!$K$43)+AP357)),0))","v":0},{"$f":"IF(OR(A357=0,B357=\"X\"),0,IF(OR(S357=\"CHRP-R\",S357=\"SERA\",S357=\"SUHRP\",U357=\"CHRP-R\",U357=\"SERA\",U357=\"SUHRP\",W357=\"CHRP-R\",W357=\"SERA\",W357=\"SUHRP\",Y357=\"CHRP-R\",Y357=\"SERA\",Y357=\"SUHRP\"),TRUNC((MIN(I357,K357)*(1+'1. Checklist & Certification'!$K$49))),0))","v":0},{"$f":"IF(OR(A357=0,B357=\"X\"),0,IF(OR(S357=\"CALDAP\",S357=\"DPRLP\",U357=\"CALDAP\",U357=\"DPRLP\",W357=\"CALDAP\",W357=\"DPRLP\",Y357=\"CALDAP\",Y357=\"DPRLP\"),TRUNC(((MIN(I357,K357))*(1+'1. Checklist & Certification'!$G$4))),0))","v":0},0,0,0,{"$f":"IF(OR(A357=0,B357=\"X\"),0,IF(OR(S357=\"PRP\",S357=\"LPR\",U357=\"PRP\",U357=\"LPR\",W357=\"PRP\",W357=\"LPR\",Y357=\"PRP\",Y357=\"LPR\"),MAX(I357+AP357,MIN(IF(AE357:AN357<>0,AE357:AN357))),MIN(IF(AE357:AN357<>0,AE357:AN357))))","v":0},{"$f":"IF(A357=0,0,IF(AND(OR(S357=\"Mgr\",S357=0),OR(U357=\"Mgr\",U357=0),OR(W357=\"Mgr\",W357=0)),0,IF(LEFT($A357,2)=\"B*\",VLOOKUP($E357,'1. Checklist & Certification'!$D$26:$E$32,2),IF(LEFT($A357,2)=\"C*\",VLOOKUP($E357,'1. Checklist & Certification'!$F$26:$G$32,2),IF(LEFT($A357,2)=\"D*\",VLOOKUP($E357,'1. Checklist & Certification'!$H$26:$I$32,2),IF(LEFT($A357,2)=\"E*\",VLOOKUP($E357,'1. Checklist & Certification'!$J$26:$K$32,2),VLOOKUP($E357,'1. Checklist & Certification'!$A$26:$B$32,2)))))))","v":0},0,0,null,null,null,null,"","",0,0,0,null,{"$f":"IF(A357=\"\",\"\",'1. Checklist & Certification'!$K$1)","v":""},{"$f":"IF(A357=\"\",\"\",'1. Checklist & Certification'!$C$62)","v":""},{"$f":"IF(A357=\"\",\"\",'1. Checklist & Certification'!$C$6)","v":""},{"$f":"IF(A357=\"\",\"\",'1. Checklist & Certification'!$G$5)","v":""},{"$f":"IFERROR(IF(A357=\"\",\"\",\n_xlfn.LET(_xlpm.Contract,'1. Checklist & Certification'!$C$7,\n_xlpm.Yr,TEXT(MOD(_xlfn.TEXTBEFORE(_xlpm.Contract,\"-\"),100),\"00\"),\n_xlpm.Program,_xlfn.TEXTAFTER(_xlfn.TEXTBEFORE(_xlpm.Contract,\"-\",2),\"-\"),\n_xlpm.CleanProgram,_xlfn.XLOOKUP(_xlpm.Program,SpellCheck[Input],SpellCheck[Correction],_xlpm.Program),\n_xlpm.Number,TEXT(_xlfn.TEXTAFTER(_xlpm.Contract,\"-\",2),\"0000\"),\n_xlfn.CONCAT(_xlpm.Yr,\"-\",_xlpm.CleanProgram,\"-\",_xlpm.Number))\n),\"\")","v":""},{"$f":"IFERROR(IF(A357=\"\",\"\",\n_xlfn.LET(_xlpm.Contract,'1. Checklist & Certification'!$C$8,\n_xlpm.Yr,TEXT(MOD(_xlfn.TEXTBEFORE(_xlpm.Contract,\"-\"),100),\"00\"),\n_xlpm.Program,_xlfn.TEXTAFTER(_xlfn.TEXTBEFORE(_xlpm.Contract,\"-\",2),\"-\"),\n_xlpm.CleanProgram,_xlfn.XLOOKUP(_xlpm.Program,SpellCheck[Input],SpellCheck[Correction],_xlpm.Program),\n_xlpm.Number,TEXT(_xlfn.TEXTAFTER(_xlpm.Contract,\"-\",2),\"0000\"),\n_xlfn.CONCAT(_xlpm.Yr,\"-\",_xlpm.CleanProgram,\"-\",_xlpm.Number))\n),\"\")","v":""},{"$f":"IFERROR(IF(A357=\"\",\"\",\n_xlfn.LET(_xlpm.Contract,'1. Checklist & Certification'!$F$7,\n_xlpm.Yr,TEXT(MOD(_xlfn.TEXTBEFORE(_xlpm.Contract,\"-\"),100),\"00\"),\n_xlpm.Program,_xlfn.TEXTAFTER(_xlfn.TEXTBEFORE(_xlpm.Contract,\"-\",2),\"-\"),\n_xlpm.CleanProgram,_xlfn.XLOOKUP(_xlpm.Program,SpellCheck[Input],SpellCheck[Correction],_xlpm.Program),\n_xlpm.Number,TEXT(_xlfn.TEXTAFTER(_xlpm.Contract,\"-\",2),\"0000\"),\n_xlfn.CONCAT(_xlpm.Yr,\"-\",_xlpm.CleanProgram,\"-\",_xlpm.Number))\n),\"\")","v":""},{"$f":"IFERROR(IF(A357=\"\",\"\",\n_xlfn.LET(_xlpm.Contract,'1. Checklist & Certification'!$F$8,\n_xlpm.Yr,TEXT(MOD(_xlfn.TEXTBEFORE(_xlpm.Contract,\"-\"),100),\"00\"),\n_xlpm.Program,_xlfn.TEXTAFTER(_xlfn.TEXTBEFORE(_xlpm.Contract,\"-\",2),\"-\"),\n_xlpm.CleanProgram,_xlfn.XLOOKUP(_xlpm.Program,SpellCheck[Input],SpellCheck[Correction],_xlpm.Program),\n_xlpm.Number,TEXT(_xlfn.TEXTAFTER(_xlpm.Contract,\"-\",2),\"0000\"),\n_xlfn.CONCAT(_xlpm.Yr,\"-\",_xlpm.CleanProgram,\"-\",_xlpm.Number))\n),\"\")","v":""},{"$f":"IF(A357=\"\",\"\",'1. Checklist & Certification'!$B$9)","v":""},{"$f":"IF(A357=\"\",\"\",'1. Checklist & Certification'!$F$9)","v":""},{"$f":"IF(A357=\"\",\"\",'1. Checklist & Certification'!$C$10)","v":""},{"$f":"IF(A357=\"\",\"\",'1. Checklist & Certification'!$C$11)","v":""},{"$f":"IF(A357=\"\",\"\",'1. Checklist & Certification'!$C$12)","v":""},{"$f":"IF(A357=\"\",\"\",'1. Checklist & Certification'!$B$14)","v":""},{"$f":"IF(A357=\"\",\"\",'1. Checklist & Certification'!$E$14)","v":""},{"$f":"IF(B357=\"\",\"\",'1. Checklist & Certification'!$G$14)","v":""},{"$f":"IF(A357=\"\",\"\",'MHP Family Income & Rent Limits'!$B$3)","v":""},{"$f":"IF(A357=\"\",\"\",'MHP Family Income & Rent Limits'!$J$3)","v":""},{"$f":"IF(A357=\"\",\"\",'MHP Family Income & Rent Limits'!$E$4)","v":""},{"$f":"IF(A357=\"\",\"\",'MHP Family Income & Rent Limits'!$C$7)","v":""},{"$f":"IF(A357=\"\",\"\",'MHP Family Income & Rent Limits'!$F$8)","v":""},{"$f":"IF(A357=\"\",\"\",'1. Checklist & Certification'!$G$4)","v":""},{"$f":"IF(A357=\"\",\"\",'1. Checklist & Certification'!$K$39)","v":""},{"$f":"IF(A357=\"\",\"\",'1. Checklist & Certification'!$K$43)","v":""},{"$f":"IF(A357=\"\",\"\",'1. Checklist & Certification'!$K$45)","v":""},{"$f":"IF(A357=\"\",\"\",'1. Checklist & Certification'!$K$49)","v":""},{"$f":"IF(A357=\"\",\"\",'1. Checklist & Certification'!$K$62)","v":""},{"$f":"IF(A357=\"\",\"\",'1. Checklist & Certification'!$E$66)","v":""},{"$f":"IF(A357=\"\",\"\",'1. Checklist & Certification'!$E$67)","v":""},{"$f":"IF(A357=\"\",\"\",'1. Checklist & Certification'!$E$68)","v":""},{"$f":"IF(A357=\"\",\"\",'1. Checklist & Certification'!$G$66)","v":""},{"$f":"IF(A357=\"\",\"\",'1. Checklist & Certification'!$H$66)","v":""},{"$f":"IF(A357=\"\",\"\",'1. Checklist & Certification'!$I$66)","v":""},{"$f":"IF(A357=\"\",\"\",'1. Checklist & Certification'!$I$67)","v":""},{"$f":"IF(A357=\"\",\"\",'1. Checklist & Certification'!$I$68)","v":""},{"$f":"IF(A357=\"\",\"\",'1. Checklist & Certification'!$B$69)","v":""},{"$f":"IF(A357=\"\",\"\",'1. Checklist & Certification'!$C$69)","v":""},{"$f":"IF(A357=\"\",\"\",'1. Checklist & Certification'!$F$69)","v":""},{"$f":"IF(A357=\"\",\"\",'1. Checklist & Certification'!$G$69)","v":""},{"$f":"IF(A357=\"\",\"\",'1. Checklist & Certification'!$J$69)","v":""},{"$f":"IF(A357=\"\",\"\",'1. Checklist & Certification'!$K$69)","v":""},null,null,{"$f":"IF(AND(OR('1. Checklist & Certification'!$M$16=1,'1. Checklist & Certification'!$M$19=2),AO357>0,B357=\"\",I357>0,AQ357<I357,AV357<>\"Sec 8-Project\"),\"X\",IF(AND(OR('1. Checklist & Certification'!$M$20=4,'1. Checklist & Certification'!$M$21=5,'1. Checklist & Certification'!$M$22=7),AO357>0,B357=\"\",I357>0,K357<I357),\"X\",\"\"))","v":""},{"$f":"IF(A357=\"\",\"\",IF(SUMPRODUCT(-- (ISNUMBER(SEARCH({\"*AHSC*\",\"*FMTW*\",\"*FWHG*\",\"*GHI*\",\"*HHC*\",\"*HLCP*\",\"*HOME*\",\"*LPR*\",\"*MHP*\",\"*NHTF*\",\"*NSP*\",\"*PRP*\",\"*TOD*\",\"*VHHP*\"},'1. Checklist & Certification'!$L$7)))),\"MHP\",\"Legacy\"))","v":""},",,",null,null,null,{"$f":"IF('1. Checklist & Certification'!$M$20=4,\"Both\",IF(OR('1. Checklist & Certification'!$M$15>0,S357=\"CHRP-R\",U357=\"CHRP-R\",W357=\"CHRP-R\",Y357=\"CHRP-R\"),\"Under\",\"No\"))","v":"No"},"No","No",{"$f":"_xlfn.IFS(D357=\"\",\"\",D357=1,'MHP Family Income & Rent Limits'!$E$17,D357=2,'MHP Family Income & Rent Limits'!$F$17,D357=3,'MHP Family Income & Rent Limits'!$G$17,D357=4,'MHP Family Income & Rent Limits'!$H$17,D357=5,'MHP Family Income & Rent Limits'!$I$17,D357=6,'MHP Family Income & Rent Limits'!$J$17,D357=7,'MHP Family Income & Rent Limits'!$K$17,D357=8,'MHP Family Income & Rent Limits'!$L$17)","v":""},"",{"$f":"IF(OR(A357=0,B357=\"X\"),0,MIN(IF(AA357:AD357<>0,AA357:AD357)))","v":0},{"$f":"IF(OR(H357=\"\",I357=\"\"),0,IF(H357*0.3/12>I357,MIN(H357*0.3/12,I357*1.1)+AP357,I357*(1+(VLOOKUP('1. Checklist & Certification'!$F$9,'HLCP-E Rent Change'!$A$1:$D$59,4,FALSE)))+AP357))","v":0}]
[null,null,null,null,null,null,null,null,null,null,null,null,null,null,null,null,null,null,null,null,null,null,null,null,null,null,0,0,0,0,0,0,0,0,{"$f":"IF(OR(A358=0,B358=\"X\"),0,IF(OR(S358=\"FHDP\",S358=\"RHCP-B\",U358=\"FHDP\",U358=\"RHCP-B\",W358=\"FHDP\",W358=\"RHCP-B\",Y358=\"FHDP\",Y358=\"RHCP-B\"),TRUNC((MIN(I358,K358)*(1+'1. Checklist & Certification'!$K$43)+AP358)),0))","v":0},{"$f":"IF(OR(A358=0,B358=\"X\"),0,IF(OR(S358=\"CHRP-R\",S358=\"SERA\",S358=\"SUHRP\",U358=\"CHRP-R\",U358=\"SERA\",U358=\"SUHRP\",W358=\"CHRP-R\",W358=\"SERA\",W358=\"SUHRP\",Y358=\"CHRP-R\",Y358=\"SERA\",Y358=\"SUHRP\"),TRUNC((MIN(I358,K358)*(1+'1. Checklist & Certification'!$K$49))),0))","v":0},{"$f":"IF(OR(A358=0,B358=\"X\"),0,IF(OR(S358=\"CALDAP\",S358=\"DPRLP\",U358=\"CALDAP\",U358=\"DPRLP\",W358=\"CALDAP\",W358=\"DPRLP\",Y358=\"CALDAP\",Y358=\"DPRLP\"),TRUNC(((MIN(I358,K358))*(1+'1. Checklist & Certification'!$G$4))),0))","v":0},0,0,0,{"$f":"IF(OR(A358=0,B358=\"X\"),0,IF(OR(S358=\"PRP\",S358=\"LPR\",U358=\"PRP\",U358=\"LPR\",W358=\"PRP\",W358=\"LPR\",Y358=\"PRP\",Y358=\"LPR\"),MAX(I358+AP358,MIN(IF(AE358:AN358<>0,AE358:AN358))),MIN(IF(AE358:AN358<>0,AE358:AN358))))","v":0},{"$f":"IF(A358=0,0,IF(AND(OR(S358=\"Mgr\",S358=0),OR(U358=\"Mgr\",U358=0),OR(W358=\"Mgr\",W358=0)),0,IF(LEFT($A358,2)=\"B*\",VLOOKUP($E358,'1. Checklist & Certification'!$D$26:$E$32,2),IF(LEFT($A358,2)=\"C*\",VLOOKUP($E358,'1. Checklist & Certification'!$F$26:$G$32,2),IF(LEFT($A358,2)=\"D*\",VLOOKUP($E358,'1. Checklist & Certification'!$H$26:$I$32,2),IF(LEFT($A358,2)=\"E*\",VLOOKUP($E358,'1. Checklist & Certification'!$J$26:$K$32,2),VLOOKUP($E358,'1. Checklist & Certification'!$A$26:$B$32,2)))))))","v":0},0,0,null,null,null,null,"","",0,0,0,null,{"$f":"IF(A358=\"\",\"\",'1. Checklist & Certification'!$K$1)","v":""},{"$f":"IF(A358=\"\",\"\",'1. Checklist & Certification'!$C$62)","v":""},{"$f":"IF(A358=\"\",\"\",'1. Checklist & Certification'!$C$6)","v":""},{"$f":"IF(A358=\"\",\"\",'1. Checklist & Certification'!$G$5)","v":""},{"$f":"IFERROR(IF(A358=\"\",\"\",\n_xlfn.LET(_xlpm.Contract,'1. Checklist & Certification'!$C$7,\n_xlpm.Yr,TEXT(MOD(_xlfn.TEXTBEFORE(_xlpm.Contract,\"-\"),100),\"00\"),\n_xlpm.Program,_xlfn.TEXTAFTER(_xlfn.TEXTBEFORE(_xlpm.Contract,\"-\",2),\"-\"),\n_xlpm.CleanProgram,_xlfn.XLOOKUP(_xlpm.Program,SpellCheck[Input],SpellCheck[Correction],_xlpm.Program),\n_xlpm.Number,TEXT(_xlfn.TEXTAFTER(_xlpm.Contract,\"-\",2),\"0000\"),\n_xlfn.CONCAT(_xlpm.Yr,\"-\",_xlpm.CleanProgram,\"-\",_xlpm.Number))\n),\"\")","v":""},{"$f":"IFERROR(IF(A358=\"\",\"\",\n_xlfn.LET(_xlpm.Contract,'1. Checklist & Certification'!$C$8,\n_xlpm.Yr,TEXT(MOD(_xlfn.TEXTBEFORE(_xlpm.Contract,\"-\"),100),\"00\"),\n_xlpm.Program,_xlfn.TEXTAFTER(_xlfn.TEXTBEFORE(_xlpm.Contract,\"-\",2),\"-\"),\n_xlpm.CleanProgram,_xlfn.XLOOKUP(_xlpm.Program,SpellCheck[Input],SpellCheck[Correction],_xlpm.Program),\n_xlpm.Number,TEXT(_xlfn.TEXTAFTER(_xlpm.Contract,\"-\",2),\"0000\"),\n_xlfn.CONCAT(_xlpm.Yr,\"-\",_xlpm.CleanProgram,\"-\",_xlpm.Number))\n),\"\")","v":""},{"$f":"IFERROR(IF(A358=\"\",\"\",\n_xlfn.LET(_xlpm.Contract,'1. Checklist & Certification'!$F$7,\n_xlpm.Yr,TEXT(MOD(_xlfn.TEXTBEFORE(_xlpm.Contract,\"-\"),100),\"00\"),\n_xlpm.Program,_xlfn.TEXTAFTER(_xlfn.TEXTBEFORE(_xlpm.Contract,\"-\",2),\"-\"),\n_xlpm.CleanProgram,_xlfn.XLOOKUP(_xlpm.Program,SpellCheck[Input],SpellCheck[Correction],_xlpm.Program),\n_xlpm.Number,TEXT(_xlfn.TEXTAFTER(_xlpm.Contract,\"-\",2),\"0000\"),\n_xlfn.CONCAT(_xlpm.Yr,\"-\",_xlpm.CleanProgram,\"-\",_xlpm.Number))\n),\"\")","v":""},{"$f":"IFERROR(IF(A358=\"\",\"\",\n_xlfn.LET(_xlpm.Contract,'1. Checklist & Certification'!$F$8,\n_xlpm.Yr,TEXT(MOD(_xlfn.TEXTBEFORE(_xlpm.Contract,\"-\"),100),\"00\"),\n_xlpm.Program,_xlfn.TEXTAFTER(_xlfn.TEXTBEFORE(_xlpm.Contract,\"-\",2),\"-\"),\n_xlpm.CleanProgram,_xlfn.XLOOKUP(_xlpm.Program,SpellCheck[Input],SpellCheck[Correction],_xlpm.Program),\n_xlpm.Number,TEXT(_xlfn.TEXTAFTER(_xlpm.Contract,\"-\",2),\"0000\"),\n_xlfn.CONCAT(_xlpm.Yr,\"-\",_xlpm.CleanProgram,\"-\",_xlpm.Number))\n),\"\")","v":""},{"$f":"IF(A358=\"\",\"\",'1. Checklist & Certification'!$B$9)","v":""},{"$f":"IF(A358=\"\",\"\",'1. Checklist & Certification'!$F$9)","v":""},{"$f":"IF(A358=\"\",\"\",'1. Checklist & Certification'!$C$10)","v":""},{"$f":"IF(A358=\"\",\"\",'1. Checklist & Certification'!$C$11)","v":""},{"$f":"IF(A358=\"\",\"\",'1. Checklist & Certification'!$C$12)","v":""},{"$f":"IF(A358=\"\",\"\",'1. Checklist & Certification'!$B$14)","v":""},{"$f":"IF(A358=\"\",\"\",'1. Checklist & Certification'!$E$14)","v":""},{"$f":"IF(B358=\"\",\"\",'1. Checklist & Certification'!$G$14)","v":""},{"$f":"IF(A358=\"\",\"\",'MHP Family Income & Rent Limits'!$B$3)","v":""},{"$f":"IF(A358=\"\",\"\",'MHP Family Income & Rent Limits'!$J$3)","v":""},{"$f":"IF(A358=\"\",\"\",'MHP Family Income & Rent Limits'!$E$4)","v":""},{"$f":"IF(A358=\"\",\"\",'MHP Family Income & Rent Limits'!$C$7)","v":""},{"$f":"IF(A358=\"\",\"\",'MHP Family Income & Rent Limits'!$F$8)","v":""},{"$f":"IF(A358=\"\",\"\",'1. Checklist & Certification'!$G$4)","v":""},{"$f":"IF(A358=\"\",\"\",'1. Checklist & Certification'!$K$39)","v":""},{"$f":"IF(A358=\"\",\"\",'1. Checklist & Certification'!$K$43)","v":""},{"$f":"IF(A358=\"\",\"\",'1. Checklist & Certification'!$K$45)","v":""},{"$f":"IF(A358=\"\",\"\",'1. Checklist & Certification'!$K$49)","v":""},{"$f":"IF(A358=\"\",\"\",'1. Checklist & Certification'!$K$62)","v":""},{"$f":"IF(A358=\"\",\"\",'1. Checklist & Certification'!$E$66)","v":""},{"$f":"IF(A358=\"\",\"\",'1. Checklist & Certification'!$E$67)","v":""},{"$f":"IF(A358=\"\",\"\",'1. Checklist & Certification'!$E$68)","v":""},{"$f":"IF(A358=\"\",\"\",'1. Checklist & Certification'!$G$66)","v":""},{"$f":"IF(A358=\"\",\"\",'1. Checklist & Certification'!$H$66)","v":""},{"$f":"IF(A358=\"\",\"\",'1. Checklist & Certification'!$I$66)","v":""},{"$f":"IF(A358=\"\",\"\",'1. Checklist & Certification'!$I$67)","v":""},{"$f":"IF(A358=\"\",\"\",'1. Checklist & Certification'!$I$68)","v":""},{"$f":"IF(A358=\"\",\"\",'1. Checklist & Certification'!$B$69)","v":""},{"$f":"IF(A358=\"\",\"\",'1. Checklist & Certification'!$C$69)","v":""},{"$f":"IF(A358=\"\",\"\",'1. Checklist & Certification'!$F$69)","v":""},{"$f":"IF(A358=\"\",\"\",'1. Checklist & Certification'!$G$69)","v":""},{"$f":"IF(A358=\"\",\"\",'1. Checklist & Certification'!$J$69)","v":""},{"$f":"IF(A358=\"\",\"\",'1. Checklist & Certification'!$K$69)","v":""},null,null,{"$f":"IF(AND(OR('1. Checklist & Certification'!$M$16=1,'1. Checklist & Certification'!$M$19=2),AO358>0,B358=\"\",I358>0,AQ358<I358,AV358<>\"Sec 8-Project\"),\"X\",IF(AND(OR('1. Checklist & Certification'!$M$20=4,'1. Checklist & Certification'!$M$21=5,'1. Checklist & Certification'!$M$22=7),AO358>0,B358=\"\",I358>0,K358<I358),\"X\",\"\"))","v":""},{"$f":"IF(A358=\"\",\"\",IF(SUMPRODUCT(-- (ISNUMBER(SEARCH({\"*AHSC*\",\"*FMTW*\",\"*FWHG*\",\"*GHI*\",\"*HHC*\",\"*HLCP*\",\"*HOME*\",\"*LPR*\",\"*MHP*\",\"*NHTF*\",\"*NSP*\",\"*PRP*\",\"*TOD*\",\"*VHHP*\"},'1. Checklist & Certification'!$L$7)))),\"MHP\",\"Legacy\"))","v":""},",,",null,null,null,{"$f":"IF('1. Checklist & Certification'!$M$20=4,\"Both\",IF(OR('1. Checklist & Certification'!$M$15>0,S358=\"CHRP-R\",U358=\"CHRP-R\",W358=\"CHRP-R\",Y358=\"CHRP-R\"),\"Under\",\"No\"))","v":"No"},"No","No",{"$f":"_xlfn.IFS(D358=\"\",\"\",D358=1,'MHP Family Income & Rent Limits'!$E$17,D358=2,'MHP Family Income & Rent Limits'!$F$17,D358=3,'MHP Family Income & Rent Limits'!$G$17,D358=4,'MHP Family Income & Rent Limits'!$H$17,D358=5,'MHP Family Income & Rent Limits'!$I$17,D358=6,'MHP Family Income & Rent Limits'!$J$17,D358=7,'MHP Family Income & Rent Limits'!$K$17,D358=8,'MHP Family Income & Rent Limits'!$L$17)","v":""},"",{"$f":"IF(OR(A358=0,B358=\"X\"),0,MIN(IF(AA358:AD358<>0,AA358:AD358)))","v":0},{"$f":"IF(OR(H358=\"\",I358=\"\"),0,IF(H358*0.3/12>I358,MIN(H358*0.3/12,I358*1.1)+AP358,I358*(1+(VLOOKUP('1. Checklist & Certification'!$F$9,'HLCP-E Rent Change'!$A$1:$D$59,4,FALSE)))+AP358))","v":0}]
[null,null,null,null,null,null,null,null,null,null,null,null,null,null,null,null,null,null,null,null,null,null,null,null,null,null,0,0,0,0,0,0,0,0,{"$f":"IF(OR(A359=0,B359=\"X\"),0,IF(OR(S359=\"FHDP\",S359=\"RHCP-B\",U359=\"FHDP\",U359=\"RHCP-B\",W359=\"FHDP\",W359=\"RHCP-B\",Y359=\"FHDP\",Y359=\"RHCP-B\"),TRUNC((MIN(I359,K359)*(1+'1. Checklist & Certification'!$K$43)+AP359)),0))","v":0},{"$f":"IF(OR(A359=0,B359=\"X\"),0,IF(OR(S359=\"CHRP-R\",S359=\"SERA\",S359=\"SUHRP\",U359=\"CHRP-R\",U359=\"SERA\",U359=\"SUHRP\",W359=\"CHRP-R\",W359=\"SERA\",W359=\"SUHRP\",Y359=\"CHRP-R\",Y359=\"SERA\",Y359=\"SUHRP\"),TRUNC((MIN(I359,K359)*(1+'1. Checklist & Certification'!$K$49))),0))","v":0},{"$f":"IF(OR(A359=0,B359=\"X\"),0,IF(OR(S359=\"CALDAP\",S359=\"DPRLP\",U359=\"CALDAP\",U359=\"DPRLP\",W359=\"CALDAP\",W359=\"DPRLP\",Y359=\"CALDAP\",Y359=\"DPRLP\"),TRUNC(((MIN(I359,K359))*(1+'1. Checklist & Certification'!$G$4))),0))","v":0},0,0,0,{"$f":"IF(OR(A359=0,B359=\"X\"),0,IF(OR(S359=\"PRP\",S359=\"LPR\",U359=\"PRP\",U359=\"LPR\",W359=\"PRP\",W359=\"LPR\",Y359=\"PRP\",Y359=\"LPR\"),MAX(I359+AP359,MIN(IF(AE359:AN359<>0,AE359:AN359))),MIN(IF(AE359:AN359<>0,AE359:AN359))))","v":0},{"$f":"IF(A359=0,0,IF(AND(OR(S359=\"Mgr\",S359=0),OR(U359=\"Mgr\",U359=0),OR(W359=\"Mgr\",W359=0)),0,IF(LEFT($A359,2)=\"B*\",VLOOKUP($E359,'1. Checklist & Certification'!$D$26:$E$32,2),IF(LEFT($A359,2)=\"C*\",VLOOKUP($E359,'1. Checklist & Certification'!$F$26:$G$32,2),IF(LEFT($A359,2)=\"D*\",VLOOKUP($E359,'1. Checklist & Certification'!$H$26:$I$32,2),IF(LEFT($A359,2)=\"E*\",VLOOKUP($E359,'1. Checklist & Certification'!$J$26:$K$32,2),VLOOKUP($E359,'1. Checklist & Certification'!$A$26:$B$32,2)))))))","v":0},0,0,null,null,null,null,"","",0,0,0,null,{"$f":"IF(A359=\"\",\"\",'1. Checklist & Certification'!$K$1)","v":""},{"$f":"IF(A359=\"\",\"\",'1. Checklist & Certification'!$C$62)","v":""},{"$f":"IF(A359=\"\",\"\",'1. Checklist & Certification'!$C$6)","v":""},{"$f":"IF(A359=\"\",\"\",'1. Checklist & Certification'!$G$5)","v":""},{"$f":"IFERROR(IF(A359=\"\",\"\",\n_xlfn.LET(_xlpm.Contract,'1. Checklist & Certification'!$C$7,\n_xlpm.Yr,TEXT(MOD(_xlfn.TEXTBEFORE(_xlpm.Contract,\"-\"),100),\"00\"),\n_xlpm.Program,_xlfn.TEXTAFTER(_xlfn.TEXTBEFORE(_xlpm.Contract,\"-\",2),\"-\"),\n_xlpm.CleanProgram,_xlfn.XLOOKUP(_xlpm.Program,SpellCheck[Input],SpellCheck[Correction],_xlpm.Program),\n_xlpm.Number,TEXT(_xlfn.TEXTAFTER(_xlpm.Contract,\"-\",2),\"0000\"),\n_xlfn.CONCAT(_xlpm.Yr,\"-\",_xlpm.CleanProgram,\"-\",_xlpm.Number))\n),\"\")","v":""},{"$f":"IFERROR(IF(A359=\"\",\"\",\n_xlfn.LET(_xlpm.Contract,'1. Checklist & Certification'!$C$8,\n_xlpm.Yr,TEXT(MOD(_xlfn.TEXTBEFORE(_xlpm.Contract,\"-\"),100),\"00\"),\n_xlpm.Program,_xlfn.TEXTAFTER(_xlfn.TEXTBEFORE(_xlpm.Contract,\"-\",2),\"-\"),\n_xlpm.CleanProgram,_xlfn.XLOOKUP(_xlpm.Program,SpellCheck[Input],SpellCheck[Correction],_xlpm.Program),\n_xlpm.Number,TEXT(_xlfn.TEXTAFTER(_xlpm.Contract,\"-\",2),\"0000\"),\n_xlfn.CONCAT(_xlpm.Yr,\"-\",_xlpm.CleanProgram,\"-\",_xlpm.Number))\n),\"\")","v":""},{"$f":"IFERROR(IF(A359=\"\",\"\",\n_xlfn.LET(_xlpm.Contract,'1. Checklist & Certification'!$F$7,\n_xlpm.Yr,TEXT(MOD(_xlfn.TEXTBEFORE(_xlpm.Contract,\"-\"),100),\"00\"),\n_xlpm.Program,_xlfn.TEXTAFTER(_xlfn.TEXTBEFORE(_xlpm.Contract,\"-\",2),\"-\"),\n_xlpm.CleanProgram,_xlfn.XLOOKUP(_xlpm.Program,SpellCheck[Input],SpellCheck[Correction],_xlpm.Program),\n_xlpm.Number,TEXT(_xlfn.TEXTAFTER(_xlpm.Contract,\"-\",2),\"0000\"),\n_xlfn.CONCAT(_xlpm.Yr,\"-\",_xlpm.CleanProgram,\"-\",_xlpm.Number))\n),\"\")","v":""},{"$f":"IFERROR(IF(A359=\"\",\"\",\n_xlfn.LET(_xlpm.Contract,'1. Checklist & Certification'!$F$8,\n_xlpm.Yr,TEXT(MOD(_xlfn.TEXTBEFORE(_xlpm.Contract,\"-\"),100),\"00\"),\n_xlpm.Program,_xlfn.TEXTAFTER(_xlfn.TEXTBEFORE(_xlpm.Contract,\"-\",2),\"-\"),\n_xlpm.CleanProgram,_xlfn.XLOOKUP(_xlpm.Program,SpellCheck[Input],SpellCheck[Correction],_xlpm.Program),\n_xlpm.Number,TEXT(_xlfn.TEXTAFTER(_xlpm.Contract,\"-\",2),\"0000\"),\n_xlfn.CONCAT(_xlpm.Yr,\"-\",_xlpm.CleanProgram,\"-\",_xlpm.Number))\n),\"\")","v":""},{"$f":"IF(A359=\"\",\"\",'1. Checklist & Certification'!$B$9)","v":""},{"$f":"IF(A359=\"\",\"\",'1. Checklist & Certification'!$F$9)","v":""},{"$f":"IF(A359=\"\",\"\",'1. Checklist & Certification'!$C$10)","v":""},{"$f":"IF(A359=\"\",\"\",'1. Checklist & Certification'!$C$11)","v":""},{"$f":"IF(A359=\"\",\"\",'1. Checklist & Certification'!$C$12)","v":""},{"$f":"IF(A359=\"\",\"\",'1. Checklist & Certification'!$B$14)","v":""},{"$f":"IF(A359=\"\",\"\",'1. Checklist & Certification'!$E$14)","v":""},{"$f":"IF(B359=\"\",\"\",'1. Checklist & Certification'!$G$14)","v":""},{"$f":"IF(A359=\"\",\"\",'MHP Family Income & Rent Limits'!$B$3)","v":""},{"$f":"IF(A359=\"\",\"\",'MHP Family Income & Rent Limits'!$J$3)","v":""},{"$f":"IF(A359=\"\",\"\",'MHP Family Income & Rent Limits'!$E$4)","v":""},{"$f":"IF(A359=\"\",\"\",'MHP Family Income & Rent Limits'!$C$7)","v":""},{"$f":"IF(A359=\"\",\"\",'MHP Family Income & Rent Limits'!$F$8)","v":""},{"$f":"IF(A359=\"\",\"\",'1. Checklist & Certification'!$G$4)","v":""},{"$f":"IF(A359=\"\",\"\",'1. Checklist & Certification'!$K$39)","v":""},{"$f":"IF(A359=\"\",\"\",'1. Checklist & Certification'!$K$43)","v":""},{"$f":"IF(A359=\"\",\"\",'1. Checklist & Certification'!$K$45)","v":""},{"$f":"IF(A359=\"\",\"\",'1. Checklist & Certification'!$K$49)","v":""},{"$f":"IF(A359=\"\",\"\",'1. Checklist & Certification'!$K$62)","v":""},{"$f":"IF(A359=\"\",\"\",'1. Checklist & Certification'!$E$66)","v":""},{"$f":"IF(A359=\"\",\"\",'1. Checklist & Certification'!$E$67)","v":""},{"$f":"IF(A359=\"\",\"\",'1. Checklist & Certification'!$E$68)","v":""},{"$f":"IF(A359=\"\",\"\",'1. Checklist & Certification'!$G$66)","v":""},{"$f":"IF(A359=\"\",\"\",'1. Checklist & Certification'!$H$66)","v":""},{"$f":"IF(A359=\"\",\"\",'1. Checklist & Certification'!$I$66)","v":""},{"$f":"IF(A359=\"\",\"\",'1. Checklist & Certification'!$I$67)","v":""},{"$f":"IF(A359=\"\",\"\",'1. Checklist & Certification'!$I$68)","v":""},{"$f":"IF(A359=\"\",\"\",'1. Checklist & Certification'!$B$69)","v":""},{"$f":"IF(A359=\"\",\"\",'1. Checklist & Certification'!$C$69)","v":""},{"$f":"IF(A359=\"\",\"\",'1. Checklist & Certification'!$F$69)","v":""},{"$f":"IF(A359=\"\",\"\",'1. Checklist & Certification'!$G$69)","v":""},{"$f":"IF(A359=\"\",\"\",'1. Checklist & Certification'!$J$69)","v":""},{"$f":"IF(A359=\"\",\"\",'1. Checklist & Certification'!$K$69)","v":""},null,null,{"$f":"IF(AND(OR('1. Checklist & Certification'!$M$16=1,'1. Checklist & Certification'!$M$19=2),AO359>0,B359=\"\",I359>0,AQ359<I359,AV359<>\"Sec 8-Project\"),\"X\",IF(AND(OR('1. Checklist & Certification'!$M$20=4,'1. Checklist & Certification'!$M$21=5,'1. Checklist & Certification'!$M$22=7),AO359>0,B359=\"\",I359>0,K359<I359),\"X\",\"\"))","v":""},{"$f":"IF(A359=\"\",\"\",IF(SUMPRODUCT(-- (ISNUMBER(SEARCH({\"*AHSC*\",\"*FMTW*\",\"*FWHG*\",\"*GHI*\",\"*HHC*\",\"*HLCP*\",\"*HOME*\",\"*LPR*\",\"*MHP*\",\"*NHTF*\",\"*NSP*\",\"*PRP*\",\"*TOD*\",\"*VHHP*\"},'1. Checklist & Certification'!$L$7)))),\"MHP\",\"Legacy\"))","v":""},",,",null,null,null,{"$f":"IF('1. Checklist & Certification'!$M$20=4,\"Both\",IF(OR('1. Checklist & Certification'!$M$15>0,S359=\"CHRP-R\",U359=\"CHRP-R\",W359=\"CHRP-R\",Y359=\"CHRP-R\"),\"Under\",\"No\"))","v":"No"},"No","No",{"$f":"_xlfn.IFS(D359=\"\",\"\",D359=1,'MHP Family Income & Rent Limits'!$E$17,D359=2,'MHP Family Income & Rent Limits'!$F$17,D359=3,'MHP Family Income & Rent Limits'!$G$17,D359=4,'MHP Family Income & Rent Limits'!$H$17,D359=5,'MHP Family Income & Rent Limits'!$I$17,D359=6,'MHP Family Income & Rent Limits'!$J$17,D359=7,'MHP Family Income & Rent Limits'!$K$17,D359=8,'MHP Family Income & Rent Limits'!$L$17)","v":""},"",{"$f":"IF(OR(A359=0,B359=\"X\"),0,MIN(IF(AA359:AD359<>0,AA359:AD359)))","v":0},{"$f":"IF(OR(H359=\"\",I359=\"\"),0,IF(H359*0.3/12>I359,MIN(H359*0.3/12,I359*1.1)+AP359,I359*(1+(VLOOKUP('1. Checklist & Certification'!$F$9,'HLCP-E Rent Change'!$A$1:$D$59,4,FALSE)))+AP359))","v":0}]
[null,null,null,null,null,null,null,null,null,null,null,null,null,null,null,null,null,null,null,null,null,null,null,null,null,null,0,0,0,0,0,0,0,0,{"$f":"IF(OR(A360=0,B360=\"X\"),0,IF(OR(S360=\"FHDP\",S360=\"RHCP-B\",U360=\"FHDP\",U360=\"RHCP-B\",W360=\"FHDP\",W360=\"RHCP-B\",Y360=\"FHDP\",Y360=\"RHCP-B\"),TRUNC((MIN(I360,K360)*(1+'1. Checklist & Certification'!$K$43)+AP360)),0))","v":0},{"$f":"IF(OR(A360=0,B360=\"X\"),0,IF(OR(S360=\"CHRP-R\",S360=\"SERA\",S360=\"SUHRP\",U360=\"CHRP-R\",U360=\"SERA\",U360=\"SUHRP\",W360=\"CHRP-R\",W360=\"SERA\",W360=\"SUHRP\",Y360=\"CHRP-R\",Y360=\"SERA\",Y360=\"SUHRP\"),TRUNC((MIN(I360,K360)*(1+'1. Checklist & Certification'!$K$49))),0))","v":0},{"$f":"IF(OR(A360=0,B360=\"X\"),0,IF(OR(S360=\"CALDAP\",S360=\"DPRLP\",U360=\"CALDAP\",U360=\"DPRLP\",W360=\"CALDAP\",W360=\"DPRLP\",Y360=\"CALDAP\",Y360=\"DPRLP\"),TRUNC(((MIN(I360,K360))*(1+'1. Checklist & Certification'!$G$4))),0))","v":0},0,0,0,{"$f":"IF(OR(A360=0,B360=\"X\"),0,IF(OR(S360=\"PRP\",S360=\"LPR\",U360=\"PRP\",U360=\"LPR\",W360=\"PRP\",W360=\"LPR\",Y360=\"PRP\",Y360=\"LPR\"),MAX(I360+AP360,MIN(IF(AE360:AN360<>0,AE360:AN360))),MIN(IF(AE360:AN360<>0,AE360:AN360))))","v":0},{"$f":"IF(A360=0,0,IF(AND(OR(S360=\"Mgr\",S360=0),OR(U360=\"Mgr\",U360=0),OR(W360=\"Mgr\",W360=0)),0,IF(LEFT($A360,2)=\"B*\",VLOOKUP($E360,'1. Checklist & Certification'!$D$26:$E$32,2),IF(LEFT($A360,2)=\"C*\",VLOOKUP($E360,'1. Checklist & Certification'!$F$26:$G$32,2),IF(LEFT($A360,2)=\"D*\",VLOOKUP($E360,'1. Checklist & Certification'!$H$26:$I$32,2),IF(LEFT($A360,2)=\"E*\",VLOOKUP($E360,'1. Checklist & Certification'!$J$26:$K$32,2),VLOOKUP($E360,'1. Checklist & Certification'!$A$26:$B$32,2)))))))","v":0},0,0,null,null,null,null,"","",0,0,0,null,{"$f":"IF(A360=\"\",\"\",'1. Checklist & Certification'!$K$1)","v":""},{"$f":"IF(A360=\"\",\"\",'1. Checklist & Certification'!$C$62)","v":""},{"$f":"IF(A360=\"\",\"\",'1. Checklist & Certification'!$C$6)","v":""},{"$f":"IF(A360=\"\",\"\",'1. Checklist & Certification'!$G$5)","v":""},{"$f":"IFERROR(IF(A360=\"\",\"\",\n_xlfn.LET(_xlpm.Contract,'1. Checklist & Certification'!$C$7,\n_xlpm.Yr,TEXT(MOD(_xlfn.TEXTBEFORE(_xlpm.Contract,\"-\"),100),\"00\"),\n_xlpm.Program,_xlfn.TEXTAFTER(_xlfn.TEXTBEFORE(_xlpm.Contract,\"-\",2),\"-\"),\n_xlpm.CleanProgram,_xlfn.XLOOKUP(_xlpm.Program,SpellCheck[Input],SpellCheck[Correction],_xlpm.Program),\n_xlpm.Number,TEXT(_xlfn.TEXTAFTER(_xlpm.Contract,\"-\",2),\"0000\"),\n_xlfn.CONCAT(_xlpm.Yr,\"-\",_xlpm.CleanProgram,\"-\",_xlpm.Number))\n),\"\")","v":""},{"$f":"IFERROR(IF(A360=\"\",\"\",\n_xlfn.LET(_xlpm.Contract,'1. Checklist & Certification'!$C$8,\n_xlpm.Yr,TEXT(MOD(_xlfn.TEXTBEFORE(_xlpm.Contract,\"-\"),100),\"00\"),\n_xlpm.Program,_xlfn.TEXTAFTER(_xlfn.TEXTBEFORE(_xlpm.Contract,\"-\",2),\"-\"),\n_xlpm.CleanProgram,_xlfn.XLOOKUP(_xlpm.Program,SpellCheck[Input],SpellCheck[Correction],_xlpm.Program),\n_xlpm.Number,TEXT(_xlfn.TEXTAFTER(_xlpm.Contract,\"-\",2),\"0000\"),\n_xlfn.CONCAT(_xlpm.Yr,\"-\",_xlpm.CleanProgram,\"-\",_xlpm.Number))\n),\"\")","v":""},{"$f":"IFERROR(IF(A360=\"\",\"\",\n_xlfn.LET(_xlpm.Contract,'1. Checklist & Certification'!$F$7,\n_xlpm.Yr,TEXT(MOD(_xlfn.TEXTBEFORE(_xlpm.Contract,\"-\"),100),\"00\"),\n_xlpm.Program,_xlfn.TEXTAFTER(_xlfn.TEXTBEFORE(_xlpm.Contract,\"-\",2),\"-\"),\n_xlpm.CleanProgram,_xlfn.XLOOKUP(_xlpm.Program,SpellCheck[Input],SpellCheck[Correction],_xlpm.Program),\n_xlpm.Number,TEXT(_xlfn.TEXTAFTER(_xlpm.Contract,\"-\",2),\"0000\"),\n_xlfn.CONCAT(_xlpm.Yr,\"-\",_xlpm.CleanProgram,\"-\",_xlpm.Number))\n),\"\")","v":""},{"$f":"IFERROR(IF(A360=\"\",\"\",\n_xlfn.LET(_xlpm.Contract,'1. Checklist & Certification'!$F$8,\n_xlpm.Yr,TEXT(MOD(_xlfn.TEXTBEFORE(_xlpm.Contract,\"-\"),100),\"00\"),\n_xlpm.Program,_xlfn.TEXTAFTER(_xlfn.TEXTBEFORE(_xlpm.Contract,\"-\",2),\"-\"),\n_xlpm.CleanProgram,_xlfn.XLOOKUP(_xlpm.Program,SpellCheck[Input],SpellCheck[Correction],_xlpm.Program),\n_xlpm.Number,TEXT(_xlfn.TEXTAFTER(_xlpm.Contract,\"-\",2),\"0000\"),\n_xlfn.CONCAT(_xlpm.Yr,\"-\",_xlpm.CleanProgram,\"-\",_xlpm.Number))\n),\"\")","v":""},{"$f":"IF(A360=\"\",\"\",'1. Checklist & Certification'!$B$9)","v":""},{"$f":"IF(A360=\"\",\"\",'1. Checklist & Certification'!$F$9)","v":""},{"$f":"IF(A360=\"\",\"\",'1. Checklist & Certification'!$C$10)","v":""},{"$f":"IF(A360=\"\",\"\",'1. Checklist & Certification'!$C$11)","v":""},{"$f":"IF(A360=\"\",\"\",'1. Checklist & Certification'!$C$12)","v":""},{"$f":"IF(A360=\"\",\"\",'1. Checklist & Certification'!$B$14)","v":""},{"$f":"IF(A360=\"\",\"\",'1. Checklist & Certification'!$E$14)","v":""},{"$f":"IF(B360=\"\",\"\",'1. Checklist & Certification'!$G$14)","v":""},{"$f":"IF(A360=\"\",\"\",'MHP Family Income & Rent Limits'!$B$3)","v":""},{"$f":"IF(A360=\"\",\"\",'MHP Family Income & Rent Limits'!$J$3)","v":""},{"$f":"IF(A360=\"\",\"\",'MHP Family Income & Rent Limits'!$E$4)","v":""},{"$f":"IF(A360=\"\",\"\",'MHP Family Income & Rent Limits'!$C$7)","v":""},{"$f":"IF(A360=\"\",\"\",'MHP Family Income & Rent Limits'!$F$8)","v":""},{"$f":"IF(A360=\"\",\"\",'1. Checklist & Certification'!$G$4)","v":""},{"$f":"IF(A360=\"\",\"\",'1. Checklist & Certification'!$K$39)","v":""},{"$f":"IF(A360=\"\",\"\",'1. Checklist & Certification'!$K$43)","v":""},{"$f":"IF(A360=\"\",\"\",'1. Checklist & Certification'!$K$45)","v":""},{"$f":"IF(A360=\"\",\"\",'1. Checklist & Certification'!$K$49)","v":""},{"$f":"IF(A360=\"\",\"\",'1. Checklist & Certification'!$K$62)","v":""},{"$f":"IF(A360=\"\",\"\",'1. Checklist & Certification'!$E$66)","v":""},{"$f":"IF(A360=\"\",\"\",'1. Checklist & Certification'!$E$67)","v":""},{"$f":"IF(A360=\"\",\"\",'1. Checklist & Certification'!$E$68)","v":""},{"$f":"IF(A360=\"\",\"\",'1. Checklist & Certification'!$G$66)","v":""},{"$f":"IF(A360=\"\",\"\",'1. Checklist & Certification'!$H$66)","v":""},{"$f":"IF(A360=\"\",\"\",'1. Checklist & Certification'!$I$66)","v":""},{"$f":"IF(A360=\"\",\"\",'1. Checklist & Certification'!$I$67)","v":""},{"$f":"IF(A360=\"\",\"\",'1. Checklist & Certification'!$I$68)","v":""},{"$f":"IF(A360=\"\",\"\",'1. Checklist & Certification'!$B$69)","v":""},{"$f":"IF(A360=\"\",\"\",'1. Checklist & Certification'!$C$69)","v":""},{"$f":"IF(A360=\"\",\"\",'1. Checklist & Certification'!$F$69)","v":""},{"$f":"IF(A360=\"\",\"\",'1. Checklist & Certification'!$G$69)","v":""},{"$f":"IF(A360=\"\",\"\",'1. Checklist & Certification'!$J$69)","v":""},{"$f":"IF(A360=\"\",\"\",'1. Checklist & Certification'!$K$69)","v":""},null,null,{"$f":"IF(AND(OR('1. Checklist & Certification'!$M$16=1,'1. Checklist & Certification'!$M$19=2),AO360>0,B360=\"\",I360>0,AQ360<I360,AV360<>\"Sec 8-Project\"),\"X\",IF(AND(OR('1. Checklist & Certification'!$M$20=4,'1. Checklist & Certification'!$M$21=5,'1. Checklist & Certification'!$M$22=7),AO360>0,B360=\"\",I360>0,K360<I360),\"X\",\"\"))","v":""},{"$f":"IF(A360=\"\",\"\",IF(SUMPRODUCT(-- (ISNUMBER(SEARCH({\"*AHSC*\",\"*FMTW*\",\"*FWHG*\",\"*GHI*\",\"*HHC*\",\"*HLCP*\",\"*HOME*\",\"*LPR*\",\"*MHP*\",\"*NHTF*\",\"*NSP*\",\"*PRP*\",\"*TOD*\",\"*VHHP*\"},'1. Checklist & Certification'!$L$7)))),\"MHP\",\"Legacy\"))","v":""},",,",null,null,null,{"$f":"IF('1. Checklist & Certification'!$M$20=4,\"Both\",IF(OR('1. Checklist & Certification'!$M$15>0,S360=\"CHRP-R\",U360=\"CHRP-R\",W360=\"CHRP-R\",Y360=\"CHRP-R\"),\"Under\",\"No\"))","v":"No"},"No","No",{"$f":"_xlfn.IFS(D360=\"\",\"\",D360=1,'MHP Family Income & Rent Limits'!$E$17,D360=2,'MHP Family Income & Rent Limits'!$F$17,D360=3,'MHP Family Income & Rent Limits'!$G$17,D360=4,'MHP Family Income & Rent Limits'!$H$17,D360=5,'MHP Family Income & Rent Limits'!$I$17,D360=6,'MHP Family Income & Rent Limits'!$J$17,D360=7,'MHP Family Income & Rent Limits'!$K$17,D360=8,'MHP Family Income & Rent Limits'!$L$17)","v":""},"",{"$f":"IF(OR(A360=0,B360=\"X\"),0,MIN(IF(AA360:AD360<>0,AA360:AD360)))","v":0},{"$f":"IF(OR(H360=\"\",I360=\"\"),0,IF(H360*0.3/12>I360,MIN(H360*0.3/12,I360*1.1)+AP360,I360*(1+(VLOOKUP('1. Checklist & Certification'!$F$9,'HLCP-E Rent Change'!$A$1:$D$59,4,FALSE)))+AP360))","v":0}]
[null,null,null,null,null,null,null,null,null,null,null,null,null,null,null,null,null,null,null,null,null,null,null,null,null,null,0,0,0,0,0,0,0,0,{"$f":"IF(OR(A361=0,B361=\"X\"),0,IF(OR(S361=\"FHDP\",S361=\"RHCP-B\",U361=\"FHDP\",U361=\"RHCP-B\",W361=\"FHDP\",W361=\"RHCP-B\",Y361=\"FHDP\",Y361=\"RHCP-B\"),TRUNC((MIN(I361,K361)*(1+'1. Checklist & Certification'!$K$43)+AP361)),0))","v":0},{"$f":"IF(OR(A361=0,B361=\"X\"),0,IF(OR(S361=\"CHRP-R\",S361=\"SERA\",S361=\"SUHRP\",U361=\"CHRP-R\",U361=\"SERA\",U361=\"SUHRP\",W361=\"CHRP-R\",W361=\"SERA\",W361=\"SUHRP\",Y361=\"CHRP-R\",Y361=\"SERA\",Y361=\"SUHRP\"),TRUNC((MIN(I361,K361)*(1+'1. Checklist & Certification'!$K$49))),0))","v":0},{"$f":"IF(OR(A361=0,B361=\"X\"),0,IF(OR(S361=\"CALDAP\",S361=\"DPRLP\",U361=\"CALDAP\",U361=\"DPRLP\",W361=\"CALDAP\",W361=\"DPRLP\",Y361=\"CALDAP\",Y361=\"DPRLP\"),TRUNC(((MIN(I361,K361))*(1+'1. Checklist & Certification'!$G$4))),0))","v":0},0,0,0,{"$f":"IF(OR(A361=0,B361=\"X\"),0,IF(OR(S361=\"PRP\",S361=\"LPR\",U361=\"PRP\",U361=\"LPR\",W361=\"PRP\",W361=\"LPR\",Y361=\"PRP\",Y361=\"LPR\"),MAX(I361+AP361,MIN(IF(AE361:AN361<>0,AE361:AN361))),MIN(IF(AE361:AN361<>0,AE361:AN361))))","v":0},{"$f":"IF(A361=0,0,IF(AND(OR(S361=\"Mgr\",S361=0),OR(U361=\"Mgr\",U361=0),OR(W361=\"Mgr\",W361=0)),0,IF(LEFT($A361,2)=\"B*\",VLOOKUP($E361,'1. Checklist & Certification'!$D$26:$E$32,2),IF(LEFT($A361,2)=\"C*\",VLOOKUP($E361,'1. Checklist & Certification'!$F$26:$G$32,2),IF(LEFT($A361,2)=\"D*\",VLOOKUP($E361,'1. Checklist & Certification'!$H$26:$I$32,2),IF(LEFT($A361,2)=\"E*\",VLOOKUP($E361,'1. Checklist & Certification'!$J$26:$K$32,2),VLOOKUP($E361,'1. Checklist & Certification'!$A$26:$B$32,2)))))))","v":0},0,0,null,null,null,null,"","",0,0,0,null,{"$f":"IF(A361=\"\",\"\",'1. Checklist & Certification'!$K$1)","v":""},{"$f":"IF(A361=\"\",\"\",'1. Checklist & Certification'!$C$62)","v":""},{"$f":"IF(A361=\"\",\"\",'1. Checklist & Certification'!$C$6)","v":""},{"$f":"IF(A361=\"\",\"\",'1. Checklist & Certification'!$G$5)","v":""},{"$f":"IFERROR(IF(A361=\"\",\"\",\n_xlfn.LET(_xlpm.Contract,'1. Checklist & Certification'!$C$7,\n_xlpm.Yr,TEXT(MOD(_xlfn.TEXTBEFORE(_xlpm.Contract,\"-\"),100),\"00\"),\n_xlpm.Program,_xlfn.TEXTAFTER(_xlfn.TEXTBEFORE(_xlpm.Contract,\"-\",2),\"-\"),\n_xlpm.CleanProgram,_xlfn.XLOOKUP(_xlpm.Program,SpellCheck[Input],SpellCheck[Correction],_xlpm.Program),\n_xlpm.Number,TEXT(_xlfn.TEXTAFTER(_xlpm.Contract,\"-\",2),\"0000\"),\n_xlfn.CONCAT(_xlpm.Yr,\"-\",_xlpm.CleanProgram,\"-\",_xlpm.Number))\n),\"\")","v":""},{"$f":"IFERROR(IF(A361=\"\",\"\",\n_xlfn.LET(_xlpm.Contract,'1. Checklist & Certification'!$C$8,\n_xlpm.Yr,TEXT(MOD(_xlfn.TEXTBEFORE(_xlpm.Contract,\"-\"),100),\"00\"),\n_xlpm.Program,_xlfn.TEXTAFTER(_xlfn.TEXTBEFORE(_xlpm.Contract,\"-\",2),\"-\"),\n_xlpm.CleanProgram,_xlfn.XLOOKUP(_xlpm.Program,SpellCheck[Input],SpellCheck[Correction],_xlpm.Program),\n_xlpm.Number,TEXT(_xlfn.TEXTAFTER(_xlpm.Contract,\"-\",2),\"0000\"),\n_xlfn.CONCAT(_xlpm.Yr,\"-\",_xlpm.CleanProgram,\"-\",_xlpm.Number))\n),\"\")","v":""},{"$f":"IFERROR(IF(A361=\"\",\"\",\n_xlfn.LET(_xlpm.Contract,'1. Checklist & Certification'!$F$7,\n_xlpm.Yr,TEXT(MOD(_xlfn.TEXTBEFORE(_xlpm.Contract,\"-\"),100),\"00\"),\n_xlpm.Program,_xlfn.TEXTAFTER(_xlfn.TEXTBEFORE(_xlpm.Contract,\"-\",2),\"-\"),\n_xlpm.CleanProgram,_xlfn.XLOOKUP(_xlpm.Program,SpellCheck[Input],SpellCheck[Correction],_xlpm.Program),\n_xlpm.Number,TEXT(_xlfn.TEXTAFTER(_xlpm.Contract,\"-\",2),\"0000\"),\n_xlfn.CONCAT(_xlpm.Yr,\"-\",_xlpm.CleanProgram,\"-\",_xlpm.Number))\n),\"\")","v":""},{"$f":"IFERROR(IF(A361=\"\",\"\",\n_xlfn.LET(_xlpm.Contract,'1. Checklist & Certification'!$F$8,\n_xlpm.Yr,TEXT(MOD(_xlfn.TEXTBEFORE(_xlpm.Contract,\"-\"),100),\"00\"),\n_xlpm.Program,_xlfn.TEXTAFTER(_xlfn.TEXTBEFORE(_xlpm.Contract,\"-\",2),\"-\"),\n_xlpm.CleanProgram,_xlfn.XLOOKUP(_xlpm.Program,SpellCheck[Input],SpellCheck[Correction],_xlpm.Program),\n_xlpm.Number,TEXT(_xlfn.TEXTAFTER(_xlpm.Contract,\"-\",2),\"0000\"),\n_xlfn.CONCAT(_xlpm.Yr,\"-\",_xlpm.CleanProgram,\"-\",_xlpm.Number))\n),\"\")","v":""},{"$f":"IF(A361=\"\",\"\",'1. Checklist & Certification'!$B$9)","v":""},{"$f":"IF(A361=\"\",\"\",'1. Checklist & Certification'!$F$9)","v":""},{"$f":"IF(A361=\"\",\"\",'1. Checklist & Certification'!$C$10)","v":""},{"$f":"IF(A361=\"\",\"\",'1. Checklist & Certification'!$C$11)","v":""},{"$f":"IF(A361=\"\",\"\",'1. Checklist & Certification'!$C$12)","v":""},{"$f":"IF(A361=\"\",\"\",'1. Checklist & Certification'!$B$14)","v":""},{"$f":"IF(A361=\"\",\"\",'1. Checklist & Certification'!$E$14)","v":""},{"$f":"IF(B361=\"\",\"\",'1. Checklist & Certification'!$G$14)","v":""},{"$f":"IF(A361=\"\",\"\",'MHP Family Income & Rent Limits'!$B$3)","v":""},{"$f":"IF(A361=\"\",\"\",'MHP Family Income & Rent Limits'!$J$3)","v":""},{"$f":"IF(A361=\"\",\"\",'MHP Family Income & Rent Limits'!$E$4)","v":""},{"$f":"IF(A361=\"\",\"\",'MHP Family Income & Rent Limits'!$C$7)","v":""},{"$f":"IF(A361=\"\",\"\",'MHP Family Income & Rent Limits'!$F$8)","v":""},{"$f":"IF(A361=\"\",\"\",'1. Checklist & Certification'!$G$4)","v":""},{"$f":"IF(A361=\"\",\"\",'1. Checklist & Certification'!$K$39)","v":""},{"$f":"IF(A361=\"\",\"\",'1. Checklist & Certification'!$K$43)","v":""},{"$f":"IF(A361=\"\",\"\",'1. Checklist & Certification'!$K$45)","v":""},{"$f":"IF(A361=\"\",\"\",'1. Checklist & Certification'!$K$49)","v":""},{"$f":"IF(A361=\"\",\"\",'1. Checklist & Certification'!$K$62)","v":""},{"$f":"IF(A361=\"\",\"\",'1. Checklist & Certification'!$E$66)","v":""},{"$f":"IF(A361=\"\",\"\",'1. Checklist & Certification'!$E$67)","v":""},{"$f":"IF(A361=\"\",\"\",'1. Checklist & Certification'!$E$68)","v":""},{"$f":"IF(A361=\"\",\"\",'1. Checklist & Certification'!$G$66)","v":""},{"$f":"IF(A361=\"\",\"\",'1. Checklist & Certification'!$H$66)","v":""},{"$f":"IF(A361=\"\",\"\",'1. Checklist & Certification'!$I$66)","v":""},{"$f":"IF(A361=\"\",\"\",'1. Checklist & Certification'!$I$67)","v":""},{"$f":"IF(A361=\"\",\"\",'1. Checklist & Certification'!$I$68)","v":""},{"$f":"IF(A361=\"\",\"\",'1. Checklist & Certification'!$B$69)","v":""},{"$f":"IF(A361=\"\",\"\",'1. Checklist & Certification'!$C$69)","v":""},{"$f":"IF(A361=\"\",\"\",'1. Checklist & Certification'!$F$69)","v":""},{"$f":"IF(A361=\"\",\"\",'1. Checklist & Certification'!$G$69)","v":""},{"$f":"IF(A361=\"\",\"\",'1. Checklist & Certification'!$J$69)","v":""},{"$f":"IF(A361=\"\",\"\",'1. Checklist & Certification'!$K$69)","v":""},null,null,{"$f":"IF(AND(OR('1. Checklist & Certification'!$M$16=1,'1. Checklist & Certification'!$M$19=2),AO361>0,B361=\"\",I361>0,AQ361<I361,AV361<>\"Sec 8-Project\"),\"X\",IF(AND(OR('1. Checklist & Certification'!$M$20=4,'1. Checklist & Certification'!$M$21=5,'1. Checklist & Certification'!$M$22=7),AO361>0,B361=\"\",I361>0,K361<I361),\"X\",\"\"))","v":""},{"$f":"IF(A361=\"\",\"\",IF(SUMPRODUCT(-- (ISNUMBER(SEARCH({\"*AHSC*\",\"*FMTW*\",\"*FWHG*\",\"*GHI*\",\"*HHC*\",\"*HLCP*\",\"*HOME*\",\"*LPR*\",\"*MHP*\",\"*NHTF*\",\"*NSP*\",\"*PRP*\",\"*TOD*\",\"*VHHP*\"},'1. Checklist & Certification'!$L$7)))),\"MHP\",\"Legacy\"))","v":""},",,",null,null,null,{"$f":"IF('1. Checklist & Certification'!$M$20=4,\"Both\",IF(OR('1. Checklist & Certification'!$M$15>0,S361=\"CHRP-R\",U361=\"CHRP-R\",W361=\"CHRP-R\",Y361=\"CHRP-R\"),\"Under\",\"No\"))","v":"No"},"No","No",{"$f":"_xlfn.IFS(D361=\"\",\"\",D361=1,'MHP Family Income & Rent Limits'!$E$17,D361=2,'MHP Family Income & Rent Limits'!$F$17,D361=3,'MHP Family Income & Rent Limits'!$G$17,D361=4,'MHP Family Income & Rent Limits'!$H$17,D361=5,'MHP Family Income & Rent Limits'!$I$17,D361=6,'MHP Family Income & Rent Limits'!$J$17,D361=7,'MHP Family Income & Rent Limits'!$K$17,D361=8,'MHP Family Income & Rent Limits'!$L$17)","v":""},"",{"$f":"IF(OR(A361=0,B361=\"X\"),0,MIN(IF(AA361:AD361<>0,AA361:AD361)))","v":0},{"$f":"IF(OR(H361=\"\",I361=\"\"),0,IF(H361*0.3/12>I361,MIN(H361*0.3/12,I361*1.1)+AP361,I361*(1+(VLOOKUP('1. Checklist & Certification'!$F$9,'HLCP-E Rent Change'!$A$1:$D$59,4,FALSE)))+AP361))","v":0}]
[null,null,null,null,null,null,null,null,null,null,null,null,null,null,null,null,null,null,null,null,null,null,null,null,null,null,0,0,0,0,0,0,0,0,{"$f":"IF(OR(A362=0,B362=\"X\"),0,IF(OR(S362=\"FHDP\",S362=\"RHCP-B\",U362=\"FHDP\",U362=\"RHCP-B\",W362=\"FHDP\",W362=\"RHCP-B\",Y362=\"FHDP\",Y362=\"RHCP-B\"),TRUNC((MIN(I362,K362)*(1+'1. Checklist & Certification'!$K$43)+AP362)),0))","v":0},{"$f":"IF(OR(A362=0,B362=\"X\"),0,IF(OR(S362=\"CHRP-R\",S362=\"SERA\",S362=\"SUHRP\",U362=\"CHRP-R\",U362=\"SERA\",U362=\"SUHRP\",W362=\"CHRP-R\",W362=\"SERA\",W362=\"SUHRP\",Y362=\"CHRP-R\",Y362=\"SERA\",Y362=\"SUHRP\"),TRUNC((MIN(I362,K362)*(1+'1. Checklist & Certification'!$K$49))),0))","v":0},{"$f":"IF(OR(A362=0,B362=\"X\"),0,IF(OR(S362=\"CALDAP\",S362=\"DPRLP\",U362=\"CALDAP\",U362=\"DPRLP\",W362=\"CALDAP\",W362=\"DPRLP\",Y362=\"CALDAP\",Y362=\"DPRLP\"),TRUNC(((MIN(I362,K362))*(1+'1. Checklist & Certification'!$G$4))),0))","v":0},0,0,0,{"$f":"IF(OR(A362=0,B362=\"X\"),0,IF(OR(S362=\"PRP\",S362=\"LPR\",U362=\"PRP\",U362=\"LPR\",W362=\"PRP\",W362=\"LPR\",Y362=\"PRP\",Y362=\"LPR\"),MAX(I362+AP362,MIN(IF(AE362:AN362<>0,AE362:AN362))),MIN(IF(AE362:AN362<>0,AE362:AN362))))","v":0},{"$f":"IF(A362=0,0,IF(AND(OR(S362=\"Mgr\",S362=0),OR(U362=\"Mgr\",U362=0),OR(W362=\"Mgr\",W362=0)),0,IF(LEFT($A362,2)=\"B*\",VLOOKUP($E362,'1. Checklist & Certification'!$D$26:$E$32,2),IF(LEFT($A362,2)=\"C*\",VLOOKUP($E362,'1. Checklist & Certification'!$F$26:$G$32,2),IF(LEFT($A362,2)=\"D*\",VLOOKUP($E362,'1. Checklist & Certification'!$H$26:$I$32,2),IF(LEFT($A362,2)=\"E*\",VLOOKUP($E362,'1. Checklist & Certification'!$J$26:$K$32,2),VLOOKUP($E362,'1. Checklist & Certification'!$A$26:$B$32,2)))))))","v":0},0,0,null,null,null,null,"","",0,0,0,null,{"$f":"IF(A362=\"\",\"\",'1. Checklist & Certification'!$K$1)","v":""},{"$f":"IF(A362=\"\",\"\",'1. Checklist & Certification'!$C$62)","v":""},{"$f":"IF(A362=\"\",\"\",'1. Checklist & Certification'!$C$6)","v":""},{"$f":"IF(A362=\"\",\"\",'1. Checklist & Certification'!$G$5)","v":""},{"$f":"IFERROR(IF(A362=\"\",\"\",\n_xlfn.LET(_xlpm.Contract,'1. Checklist & Certification'!$C$7,\n_xlpm.Yr,TEXT(MOD(_xlfn.TEXTBEFORE(_xlpm.Contract,\"-\"),100),\"00\"),\n_xlpm.Program,_xlfn.TEXTAFTER(_xlfn.TEXTBEFORE(_xlpm.Contract,\"-\",2),\"-\"),\n_xlpm.CleanProgram,_xlfn.XLOOKUP(_xlpm.Program,SpellCheck[Input],SpellCheck[Correction],_xlpm.Program),\n_xlpm.Number,TEXT(_xlfn.TEXTAFTER(_xlpm.Contract,\"-\",2),\"0000\"),\n_xlfn.CONCAT(_xlpm.Yr,\"-\",_xlpm.CleanProgram,\"-\",_xlpm.Number))\n),\"\")","v":""},{"$f":"IFERROR(IF(A362=\"\",\"\",\n_xlfn.LET(_xlpm.Contract,'1. Checklist & Certification'!$C$8,\n_xlpm.Yr,TEXT(MOD(_xlfn.TEXTBEFORE(_xlpm.Contract,\"-\"),100),\"00\"),\n_xlpm.Program,_xlfn.TEXTAFTER(_xlfn.TEXTBEFORE(_xlpm.Contract,\"-\",2),\"-\"),\n_xlpm.CleanProgram,_xlfn.XLOOKUP(_xlpm.Program,SpellCheck[Input],SpellCheck[Correction],_xlpm.Program),\n_xlpm.Number,TEXT(_xlfn.TEXTAFTER(_xlpm.Contract,\"-\",2),\"0000\"),\n_xlfn.CONCAT(_xlpm.Yr,\"-\",_xlpm.CleanProgram,\"-\",_xlpm.Number))\n),\"\")","v":""},{"$f":"IFERROR(IF(A362=\"\",\"\",\n_xlfn.LET(_xlpm.Contract,'1. Checklist & Certification'!$F$7,\n_xlpm.Yr,TEXT(MOD(_xlfn.TEXTBEFORE(_xlpm.Contract,\"-\"),100),\"00\"),\n_xlpm.Program,_xlfn.TEXTAFTER(_xlfn.TEXTBEFORE(_xlpm.Contract,\"-\",2),\"-\"),\n_xlpm.CleanProgram,_xlfn.XLOOKUP(_xlpm.Program,SpellCheck[Input],SpellCheck[Correction],_xlpm.Program),\n_xlpm.Number,TEXT(_xlfn.TEXTAFTER(_xlpm.Contract,\"-\",2),\"0000\"),\n_xlfn.CONCAT(_xlpm.Yr,\"-\",_xlpm.CleanProgram,\"-\",_xlpm.Number))\n),\"\")","v":""},{"$f":"IFERROR(IF(A362=\"\",\"\",\n_xlfn.LET(_xlpm.Contract,'1. Checklist & Certification'!$F$8,\n_xlpm.Yr,TEXT(MOD(_xlfn.TEXTBEFORE(_xlpm.Contract,\"-\"),100),\"00\"),\n_xlpm.Program,_xlfn.TEXTAFTER(_xlfn.TEXTBEFORE(_xlpm.Contract,\"-\",2),\"-\"),\n_xlpm.CleanProgram,_xlfn.XLOOKUP(_xlpm.Program,SpellCheck[Input],SpellCheck[Correction],_xlpm.Program),\n_xlpm.Number,TEXT(_xlfn.TEXTAFTER(_xlpm.Contract,\"-\",2),\"0000\"),\n_xlfn.CONCAT(_xlpm.Yr,\"-\",_xlpm.CleanProgram,\"-\",_xlpm.Number))\n),\"\")","v":""},{"$f":"IF(A362=\"\",\"\",'1. Checklist & Certification'!$B$9)","v":""},{"$f":"IF(A362=\"\",\"\",'1. Checklist & Certification'!$F$9)","v":""},{"$f":"IF(A362=\"\",\"\",'1. Checklist & Certification'!$C$10)","v":""},{"$f":"IF(A362=\"\",\"\",'1. Checklist & Certification'!$C$11)","v":""},{"$f":"IF(A362=\"\",\"\",'1. Checklist & Certification'!$C$12)","v":""},{"$f":"IF(A362=\"\",\"\",'1. Checklist & Certification'!$B$14)","v":""},{"$f":"IF(A362=\"\",\"\",'1. Checklist & Certification'!$E$14)","v":""},{"$f":"IF(B362=\"\",\"\",'1. Checklist & Certification'!$G$14)","v":""},{"$f":"IF(A362=\"\",\"\",'MHP Family Income & Rent Limits'!$B$3)","v":""},{"$f":"IF(A362=\"\",\"\",'MHP Family Income & Rent Limits'!$J$3)","v":""},{"$f":"IF(A362=\"\",\"\",'MHP Family Income & Rent Limits'!$E$4)","v":""},{"$f":"IF(A362=\"\",\"\",'MHP Family Income & Rent Limits'!$C$7)","v":""},{"$f":"IF(A362=\"\",\"\",'MHP Family Income & Rent Limits'!$F$8)","v":""},{"$f":"IF(A362=\"\",\"\",'1. Checklist & Certification'!$G$4)","v":""},{"$f":"IF(A362=\"\",\"\",'1. Checklist & Certification'!$K$39)","v":""},{"$f":"IF(A362=\"\",\"\",'1. Checklist & Certification'!$K$43)","v":""},{"$f":"IF(A362=\"\",\"\",'1. Checklist & Certification'!$K$45)","v":""},{"$f":"IF(A362=\"\",\"\",'1. Checklist & Certification'!$K$49)","v":""},{"$f":"IF(A362=\"\",\"\",'1. Checklist & Certification'!$K$62)","v":""},{"$f":"IF(A362=\"\",\"\",'1. Checklist & Certification'!$E$66)","v":""},{"$f":"IF(A362=\"\",\"\",'1. Checklist & Certification'!$E$67)","v":""},{"$f":"IF(A362=\"\",\"\",'1. Checklist & Certification'!$E$68)","v":""},{"$f":"IF(A362=\"\",\"\",'1. Checklist & Certification'!$G$66)","v":""},{"$f":"IF(A362=\"\",\"\",'1. Checklist & Certification'!$H$66)","v":""},{"$f":"IF(A362=\"\",\"\",'1. Checklist & Certification'!$I$66)","v":""},{"$f":"IF(A362=\"\",\"\",'1. Checklist & Certification'!$I$67)","v":""},{"$f":"IF(A362=\"\",\"\",'1. Checklist & Certification'!$I$68)","v":""},{"$f":"IF(A362=\"\",\"\",'1. Checklist & Certification'!$B$69)","v":""},{"$f":"IF(A362=\"\",\"\",'1. Checklist & Certification'!$C$69)","v":""},{"$f":"IF(A362=\"\",\"\",'1. Checklist & Certification'!$F$69)","v":""},{"$f":"IF(A362=\"\",\"\",'1. Checklist & Certification'!$G$69)","v":""},{"$f":"IF(A362=\"\",\"\",'1. Checklist & Certification'!$J$69)","v":""},{"$f":"IF(A362=\"\",\"\",'1. Checklist & Certification'!$K$69)","v":""},null,null,{"$f":"IF(AND(OR('1. Checklist & Certification'!$M$16=1,'1. Checklist & Certification'!$M$19=2),AO362>0,B362=\"\",I362>0,AQ362<I362,AV362<>\"Sec 8-Project\"),\"X\",IF(AND(OR('1. Checklist & Certification'!$M$20=4,'1. Checklist & Certification'!$M$21=5,'1. Checklist & Certification'!$M$22=7),AO362>0,B362=\"\",I362>0,K362<I362),\"X\",\"\"))","v":""},{"$f":"IF(A362=\"\",\"\",IF(SUMPRODUCT(-- (ISNUMBER(SEARCH({\"*AHSC*\",\"*FMTW*\",\"*FWHG*\",\"*GHI*\",\"*HHC*\",\"*HLCP*\",\"*HOME*\",\"*LPR*\",\"*MHP*\",\"*NHTF*\",\"*NSP*\",\"*PRP*\",\"*TOD*\",\"*VHHP*\"},'1. Checklist & Certification'!$L$7)))),\"MHP\",\"Legacy\"))","v":""},",,",null,null,null,{"$f":"IF('1. Checklist & Certification'!$M$20=4,\"Both\",IF(OR('1. Checklist & Certification'!$M$15>0,S362=\"CHRP-R\",U362=\"CHRP-R\",W362=\"CHRP-R\",Y362=\"CHRP-R\"),\"Under\",\"No\"))","v":"No"},"No","No",{"$f":"_xlfn.IFS(D362=\"\",\"\",D362=1,'MHP Family Income & Rent Limits'!$E$17,D362=2,'MHP Family Income & Rent Limits'!$F$17,D362=3,'MHP Family Income & Rent Limits'!$G$17,D362=4,'MHP Family Income & Rent Limits'!$H$17,D362=5,'MHP Family Income & Rent Limits'!$I$17,D362=6,'MHP Family Income & Rent Limits'!$J$17,D362=7,'MHP Family Income & Rent Limits'!$K$17,D362=8,'MHP Family Income & Rent Limits'!$L$17)","v":""},"",{"$f":"IF(OR(A362=0,B362=\"X\"),0,MIN(IF(AA362:AD362<>0,AA362:AD362)))","v":0},{"$f":"IF(OR(H362=\"\",I362=\"\"),0,IF(H362*0.3/12>I362,MIN(H362*0.3/12,I362*1.1)+AP362,I362*(1+(VLOOKUP('1. Checklist & Certification'!$F$9,'HLCP-E Rent Change'!$A$1:$D$59,4,FALSE)))+AP362))","v":0}]
[null,null,null,null,null,null,null,null,null,null,null,null,null,null,null,null,null,null,null,null,null,null,null,null,null,null,0,0,0,0,0,0,0,0,{"$f":"IF(OR(A363=0,B363=\"X\"),0,IF(OR(S363=\"FHDP\",S363=\"RHCP-B\",U363=\"FHDP\",U363=\"RHCP-B\",W363=\"FHDP\",W363=\"RHCP-B\",Y363=\"FHDP\",Y363=\"RHCP-B\"),TRUNC((MIN(I363,K363)*(1+'1. Checklist & Certification'!$K$43)+AP363)),0))","v":0},{"$f":"IF(OR(A363=0,B363=\"X\"),0,IF(OR(S363=\"CHRP-R\",S363=\"SERA\",S363=\"SUHRP\",U363=\"CHRP-R\",U363=\"SERA\",U363=\"SUHRP\",W363=\"CHRP-R\",W363=\"SERA\",W363=\"SUHRP\",Y363=\"CHRP-R\",Y363=\"SERA\",Y363=\"SUHRP\"),TRUNC((MIN(I363,K363)*(1+'1. Checklist & Certification'!$K$49))),0))","v":0},{"$f":"IF(OR(A363=0,B363=\"X\"),0,IF(OR(S363=\"CALDAP\",S363=\"DPRLP\",U363=\"CALDAP\",U363=\"DPRLP\",W363=\"CALDAP\",W363=\"DPRLP\",Y363=\"CALDAP\",Y363=\"DPRLP\"),TRUNC(((MIN(I363,K363))*(1+'1. Checklist & Certification'!$G$4))),0))","v":0},0,0,0,{"$f":"IF(OR(A363=0,B363=\"X\"),0,IF(OR(S363=\"PRP\",S363=\"LPR\",U363=\"PRP\",U363=\"LPR\",W363=\"PRP\",W363=\"LPR\",Y363=\"PRP\",Y363=\"LPR\"),MAX(I363+AP363,MIN(IF(AE363:AN363<>0,AE363:AN363))),MIN(IF(AE363:AN363<>0,AE363:AN363))))","v":0},{"$f":"IF(A363=0,0,IF(AND(OR(S363=\"Mgr\",S363=0),OR(U363=\"Mgr\",U363=0),OR(W363=\"Mgr\",W363=0)),0,IF(LEFT($A363,2)=\"B*\",VLOOKUP($E363,'1. Checklist & Certification'!$D$26:$E$32,2),IF(LEFT($A363,2)=\"C*\",VLOOKUP($E363,'1. Checklist & Certification'!$F$26:$G$32,2),IF(LEFT($A363,2)=\"D*\",VLOOKUP($E363,'1. Checklist & Certification'!$H$26:$I$32,2),IF(LEFT($A363,2)=\"E*\",VLOOKUP($E363,'1. Checklist & Certification'!$J$26:$K$32,2),VLOOKUP($E363,'1. Checklist & Certification'!$A$26:$B$32,2)))))))","v":0},0,0,null,null,null,null,"","",0,0,0,null,{"$f":"IF(A363=\"\",\"\",'1. Checklist & Certification'!$K$1)","v":""},{"$f":"IF(A363=\"\",\"\",'1. Checklist & Certification'!$C$62)","v":""},{"$f":"IF(A363=\"\",\"\",'1. Checklist & Certification'!$C$6)","v":""},{"$f":"IF(A363=\"\",\"\",'1. Checklist & Certification'!$G$5)","v":""},{"$f":"IFERROR(IF(A363=\"\",\"\",\n_xlfn.LET(_xlpm.Contract,'1. Checklist & Certification'!$C$7,\n_xlpm.Yr,TEXT(MOD(_xlfn.TEXTBEFORE(_xlpm.Contract,\"-\"),100),\"00\"),\n_xlpm.Program,_xlfn.TEXTAFTER(_xlfn.TEXTBEFORE(_xlpm.Contract,\"-\",2),\"-\"),\n_xlpm.CleanProgram,_xlfn.XLOOKUP(_xlpm.Program,SpellCheck[Input],SpellCheck[Correction],_xlpm.Program),\n_xlpm.Number,TEXT(_xlfn.TEXTAFTER(_xlpm.Contract,\"-\",2),\"0000\"),\n_xlfn.CONCAT(_xlpm.Yr,\"-\",_xlpm.CleanProgram,\"-\",_xlpm.Number))\n),\"\")","v":""},{"$f":"IFERROR(IF(A363=\"\",\"\",\n_xlfn.LET(_xlpm.Contract,'1. Checklist & Certification'!$C$8,\n_xlpm.Yr,TEXT(MOD(_xlfn.TEXTBEFORE(_xlpm.Contract,\"-\"),100),\"00\"),\n_xlpm.Program,_xlfn.TEXTAFTER(_xlfn.TEXTBEFORE(_xlpm.Contract,\"-\",2),\"-\"),\n_xlpm.CleanProgram,_xlfn.XLOOKUP(_xlpm.Program,SpellCheck[Input],SpellCheck[Correction],_xlpm.Program),\n_xlpm.Number,TEXT(_xlfn.TEXTAFTER(_xlpm.Contract,\"-\",2),\"0000\"),\n_xlfn.CONCAT(_xlpm.Yr,\"-\",_xlpm.CleanProgram,\"-\",_xlpm.Number))\n),\"\")","v":""},{"$f":"IFERROR(IF(A363=\"\",\"\",\n_xlfn.LET(_xlpm.Contract,'1. Checklist & Certification'!$F$7,\n_xlpm.Yr,TEXT(MOD(_xlfn.TEXTBEFORE(_xlpm.Contract,\"-\"),100),\"00\"),\n_xlpm.Program,_xlfn.TEXTAFTER(_xlfn.TEXTBEFORE(_xlpm.Contract,\"-\",2),\"-\"),\n_xlpm.CleanProgram,_xlfn.XLOOKUP(_xlpm.Program,SpellCheck[Input],SpellCheck[Correction],_xlpm.Program),\n_xlpm.Number,TEXT(_xlfn.TEXTAFTER(_xlpm.Contract,\"-\",2),\"0000\"),\n_xlfn.CONCAT(_xlpm.Yr,\"-\",_xlpm.CleanProgram,\"-\",_xlpm.Number))\n),\"\")","v":""},{"$f":"IFERROR(IF(A363=\"\",\"\",\n_xlfn.LET(_xlpm.Contract,'1. Checklist & Certification'!$F$8,\n_xlpm.Yr,TEXT(MOD(_xlfn.TEXTBEFORE(_xlpm.Contract,\"-\"),100),\"00\"),\n_xlpm.Program,_xlfn.TEXTAFTER(_xlfn.TEXTBEFORE(_xlpm.Contract,\"-\",2),\"-\"),\n_xlpm.CleanProgram,_xlfn.XLOOKUP(_xlpm.Program,SpellCheck[Input],SpellCheck[Correction],_xlpm.Program),\n_xlpm.Number,TEXT(_xlfn.TEXTAFTER(_xlpm.Contract,\"-\",2),\"0000\"),\n_xlfn.CONCAT(_xlpm.Yr,\"-\",_xlpm.CleanProgram,\"-\",_xlpm.Number))\n),\"\")","v":""},{"$f":"IF(A363=\"\",\"\",'1. Checklist & Certification'!$B$9)","v":""},{"$f":"IF(A363=\"\",\"\",'1. Checklist & Certification'!$F$9)","v":""},{"$f":"IF(A363=\"\",\"\",'1. Checklist & Certification'!$C$10)","v":""},{"$f":"IF(A363=\"\",\"\",'1. Checklist & Certification'!$C$11)","v":""},{"$f":"IF(A363=\"\",\"\",'1. Checklist & Certification'!$C$12)","v":""},{"$f":"IF(A363=\"\",\"\",'1. Checklist & Certification'!$B$14)","v":""},{"$f":"IF(A363=\"\",\"\",'1. Checklist & Certification'!$E$14)","v":""},{"$f":"IF(B363=\"\",\"\",'1. Checklist & Certification'!$G$14)","v":""},{"$f":"IF(A363=\"\",\"\",'MHP Family Income & Rent Limits'!$B$3)","v":""},{"$f":"IF(A363=\"\",\"\",'MHP Family Income & Rent Limits'!$J$3)","v":""},{"$f":"IF(A363=\"\",\"\",'MHP Family Income & Rent Limits'!$E$4)","v":""},{"$f":"IF(A363=\"\",\"\",'MHP Family Income & Rent Limits'!$C$7)","v":""},{"$f":"IF(A363=\"\",\"\",'MHP Family Income & Rent Limits'!$F$8)","v":""},{"$f":"IF(A363=\"\",\"\",'1. Checklist & Certification'!$G$4)","v":""},{"$f":"IF(A363=\"\",\"\",'1. Checklist & Certification'!$K$39)","v":""},{"$f":"IF(A363=\"\",\"\",'1. Checklist & Certification'!$K$43)","v":""},{"$f":"IF(A363=\"\",\"\",'1. Checklist & Certification'!$K$45)","v":""},{"$f":"IF(A363=\"\",\"\",'1. Checklist & Certification'!$K$49)","v":""},{"$f":"IF(A363=\"\",\"\",'1. Checklist & Certification'!$K$62)","v":""},{"$f":"IF(A363=\"\",\"\",'1. Checklist & Certification'!$E$66)","v":""},{"$f":"IF(A363=\"\",\"\",'1. Checklist & Certification'!$E$67)","v":""},{"$f":"IF(A363=\"\",\"\",'1. Checklist & Certification'!$E$68)","v":""},{"$f":"IF(A363=\"\",\"\",'1. Checklist & Certification'!$G$66)","v":""},{"$f":"IF(A363=\"\",\"\",'1. Checklist & Certification'!$H$66)","v":""},{"$f":"IF(A363=\"\",\"\",'1. Checklist & Certification'!$I$66)","v":""},{"$f":"IF(A363=\"\",\"\",'1. Checklist & Certification'!$I$67)","v":""},{"$f":"IF(A363=\"\",\"\",'1. Checklist & Certification'!$I$68)","v":""},{"$f":"IF(A363=\"\",\"\",'1. Checklist & Certification'!$B$69)","v":""},{"$f":"IF(A363=\"\",\"\",'1. Checklist & Certification'!$C$69)","v":""},{"$f":"IF(A363=\"\",\"\",'1. Checklist & Certification'!$F$69)","v":""},{"$f":"IF(A363=\"\",\"\",'1. Checklist & Certification'!$G$69)","v":""},{"$f":"IF(A363=\"\",\"\",'1. Checklist & Certification'!$J$69)","v":""},{"$f":"IF(A363=\"\",\"\",'1. Checklist & Certification'!$K$69)","v":""},null,null,{"$f":"IF(AND(OR('1. Checklist & Certification'!$M$16=1,'1. Checklist & Certification'!$M$19=2),AO363>0,B363=\"\",I363>0,AQ363<I363,AV363<>\"Sec 8-Project\"),\"X\",IF(AND(OR('1. Checklist & Certification'!$M$20=4,'1. Checklist & Certification'!$M$21=5,'1. Checklist & Certification'!$M$22=7),AO363>0,B363=\"\",I363>0,K363<I363),\"X\",\"\"))","v":""},{"$f":"IF(A363=\"\",\"\",IF(SUMPRODUCT(-- (ISNUMBER(SEARCH({\"*AHSC*\",\"*FMTW*\",\"*FWHG*\",\"*GHI*\",\"*HHC*\",\"*HLCP*\",\"*HOME*\",\"*LPR*\",\"*MHP*\",\"*NHTF*\",\"*NSP*\",\"*PRP*\",\"*TOD*\",\"*VHHP*\"},'1. Checklist & Certification'!$L$7)))),\"MHP\",\"Legacy\"))","v":""},",,",null,null,null,{"$f":"IF('1. Checklist & Certification'!$M$20=4,\"Both\",IF(OR('1. Checklist & Certification'!$M$15>0,S363=\"CHRP-R\",U363=\"CHRP-R\",W363=\"CHRP-R\",Y363=\"CHRP-R\"),\"Under\",\"No\"))","v":"No"},"No","No",{"$f":"_xlfn.IFS(D363=\"\",\"\",D363=1,'MHP Family Income & Rent Limits'!$E$17,D363=2,'MHP Family Income & Rent Limits'!$F$17,D363=3,'MHP Family Income & Rent Limits'!$G$17,D363=4,'MHP Family Income & Rent Limits'!$H$17,D363=5,'MHP Family Income & Rent Limits'!$I$17,D363=6,'MHP Family Income & Rent Limits'!$J$17,D363=7,'MHP Family Income & Rent Limits'!$K$17,D363=8,'MHP Family Income & Rent Limits'!$L$17)","v":""},"",{"$f":"IF(OR(A363=0,B363=\"X\"),0,MIN(IF(AA363:AD363<>0,AA363:AD363)))","v":0},{"$f":"IF(OR(H363=\"\",I363=\"\"),0,IF(H363*0.3/12>I363,MIN(H363*0.3/12,I363*1.1)+AP363,I363*(1+(VLOOKUP('1. Checklist & Certification'!$F$9,'HLCP-E Rent Change'!$A$1:$D$59,4,FALSE)))+AP363))","v":0}]
[null,null,null,null,null,null,null,null,null,null,null,null,null,null,null,null,null,null,null,null,null,null,null,null,null,null,0,0,0,0,0,0,0,0,{"$f":"IF(OR(A364=0,B364=\"X\"),0,IF(OR(S364=\"FHDP\",S364=\"RHCP-B\",U364=\"FHDP\",U364=\"RHCP-B\",W364=\"FHDP\",W364=\"RHCP-B\",Y364=\"FHDP\",Y364=\"RHCP-B\"),TRUNC((MIN(I364,K364)*(1+'1. Checklist & Certification'!$K$43)+AP364)),0))","v":0},{"$f":"IF(OR(A364=0,B364=\"X\"),0,IF(OR(S364=\"CHRP-R\",S364=\"SERA\",S364=\"SUHRP\",U364=\"CHRP-R\",U364=\"SERA\",U364=\"SUHRP\",W364=\"CHRP-R\",W364=\"SERA\",W364=\"SUHRP\",Y364=\"CHRP-R\",Y364=\"SERA\",Y364=\"SUHRP\"),TRUNC((MIN(I364,K364)*(1+'1. Checklist & Certification'!$K$49))),0))","v":0},{"$f":"IF(OR(A364=0,B364=\"X\"),0,IF(OR(S364=\"CALDAP\",S364=\"DPRLP\",U364=\"CALDAP\",U364=\"DPRLP\",W364=\"CALDAP\",W364=\"DPRLP\",Y364=\"CALDAP\",Y364=\"DPRLP\"),TRUNC(((MIN(I364,K364))*(1+'1. Checklist & Certification'!$G$4))),0))","v":0},0,0,0,{"$f":"IF(OR(A364=0,B364=\"X\"),0,IF(OR(S364=\"PRP\",S364=\"LPR\",U364=\"PRP\",U364=\"LPR\",W364=\"PRP\",W364=\"LPR\",Y364=\"PRP\",Y364=\"LPR\"),MAX(I364+AP364,MIN(IF(AE364:AN364<>0,AE364:AN364))),MIN(IF(AE364:AN364<>0,AE364:AN364))))","v":0},{"$f":"IF(A364=0,0,IF(AND(OR(S364=\"Mgr\",S364=0),OR(U364=\"Mgr\",U364=0),OR(W364=\"Mgr\",W364=0)),0,IF(LEFT($A364,2)=\"B*\",VLOOKUP($E364,'1. Checklist & Certification'!$D$26:$E$32,2),IF(LEFT($A364,2)=\"C*\",VLOOKUP($E364,'1. Checklist & Certification'!$F$26:$G$32,2),IF(LEFT($A364,2)=\"D*\",VLOOKUP($E364,'1. Checklist & Certification'!$H$26:$I$32,2),IF(LEFT($A364,2)=\"E*\",VLOOKUP($E364,'1. Checklist & Certification'!$J$26:$K$32,2),VLOOKUP($E364,'1. Checklist & Certification'!$A$26:$B$32,2)))))))","v":0},0,0,null,null,null,null,"","",0,0,0,null,{"$f":"IF(A364=\"\",\"\",'1. Checklist & Certification'!$K$1)","v":""},{"$f":"IF(A364=\"\",\"\",'1. Checklist & Certification'!$C$62)","v":""},{"$f":"IF(A364=\"\",\"\",'1. Checklist & Certification'!$C$6)","v":""},{"$f":"IF(A364=\"\",\"\",'1. Checklist & Certification'!$G$5)","v":""},{"$f":"IFERROR(IF(A364=\"\",\"\",\n_xlfn.LET(_xlpm.Contract,'1. Checklist & Certification'!$C$7,\n_xlpm.Yr,TEXT(MOD(_xlfn.TEXTBEFORE(_xlpm.Contract,\"-\"),100),\"00\"),\n_xlpm.Program,_xlfn.TEXTAFTER(_xlfn.TEXTBEFORE(_xlpm.Contract,\"-\",2),\"-\"),\n_xlpm.CleanProgram,_xlfn.XLOOKUP(_xlpm.Program,SpellCheck[Input],SpellCheck[Correction],_xlpm.Program),\n_xlpm.Number,TEXT(_xlfn.TEXTAFTER(_xlpm.Contract,\"-\",2),\"0000\"),\n_xlfn.CONCAT(_xlpm.Yr,\"-\",_xlpm.CleanProgram,\"-\",_xlpm.Number))\n),\"\")","v":""},{"$f":"IFERROR(IF(A364=\"\",\"\",\n_xlfn.LET(_xlpm.Contract,'1. Checklist & Certification'!$C$8,\n_xlpm.Yr,TEXT(MOD(_xlfn.TEXTBEFORE(_xlpm.Contract,\"-\"),100),\"00\"),\n_xlpm.Program,_xlfn.TEXTAFTER(_xlfn.TEXTBEFORE(_xlpm.Contract,\"-\",2),\"-\"),\n_xlpm.CleanProgram,_xlfn.XLOOKUP(_xlpm.Program,SpellCheck[Input],SpellCheck[Correction],_xlpm.Program),\n_xlpm.Number,TEXT(_xlfn.TEXTAFTER(_xlpm.Contract,\"-\",2),\"0000\"),\n_xlfn.CONCAT(_xlpm.Yr,\"-\",_xlpm.CleanProgram,\"-\",_xlpm.Number))\n),\"\")","v":""},{"$f":"IFERROR(IF(A364=\"\",\"\",\n_xlfn.LET(_xlpm.Contract,'1. Checklist & Certification'!$F$7,\n_xlpm.Yr,TEXT(MOD(_xlfn.TEXTBEFORE(_xlpm.Contract,\"-\"),100),\"00\"),\n_xlpm.Program,_xlfn.TEXTAFTER(_xlfn.TEXTBEFORE(_xlpm.Contract,\"-\",2),\"-\"),\n_xlpm.CleanProgram,_xlfn.XLOOKUP(_xlpm.Program,SpellCheck[Input],SpellCheck[Correction],_xlpm.Program),\n_xlpm.Number,TEXT(_xlfn.TEXTAFTER(_xlpm.Contract,\"-\",2),\"0000\"),\n_xlfn.CONCAT(_xlpm.Yr,\"-\",_xlpm.CleanProgram,\"-\",_xlpm.Number))\n),\"\")","v":""},{"$f":"IFERROR(IF(A364=\"\",\"\",\n_xlfn.LET(_xlpm.Contract,'1. Checklist & Certification'!$F$8,\n_xlpm.Yr,TEXT(MOD(_xlfn.TEXTBEFORE(_xlpm.Contract,\"-\"),100),\"00\"),\n_xlpm.Program,_xlfn.TEXTAFTER(_xlfn.TEXTBEFORE(_xlpm.Contract,\"-\",2),\"-\"),\n_xlpm.CleanProgram,_xlfn.XLOOKUP(_xlpm.Program,SpellCheck[Input],SpellCheck[Correction],_xlpm.Program),\n_xlpm.Number,TEXT(_xlfn.TEXTAFTER(_xlpm.Contract,\"-\",2),\"0000\"),\n_xlfn.CONCAT(_xlpm.Yr,\"-\",_xlpm.CleanProgram,\"-\",_xlpm.Number))\n),\"\")","v":""},{"$f":"IF(A364=\"\",\"\",'1. Checklist & Certification'!$B$9)","v":""},{"$f":"IF(A364=\"\",\"\",'1. Checklist & Certification'!$F$9)","v":""},{"$f":"IF(A364=\"\",\"\",'1. Checklist & Certification'!$C$10)","v":""},{"$f":"IF(A364=\"\",\"\",'1. Checklist & Certification'!$C$11)","v":""},{"$f":"IF(A364=\"\",\"\",'1. Checklist & Certification'!$C$12)","v":""},{"$f":"IF(A364=\"\",\"\",'1. Checklist & Certification'!$B$14)","v":""},{"$f":"IF(A364=\"\",\"\",'1. Checklist & Certification'!$E$14)","v":""},{"$f":"IF(B364=\"\",\"\",'1. Checklist & Certification'!$G$14)","v":""},{"$f":"IF(A364=\"\",\"\",'MHP Family Income & Rent Limits'!$B$3)","v":""},{"$f":"IF(A364=\"\",\"\",'MHP Family Income & Rent Limits'!$J$3)","v":""},{"$f":"IF(A364=\"\",\"\",'MHP Family Income & Rent Limits'!$E$4)","v":""},{"$f":"IF(A364=\"\",\"\",'MHP Family Income & Rent Limits'!$C$7)","v":""},{"$f":"IF(A364=\"\",\"\",'MHP Family Income & Rent Limits'!$F$8)","v":""},{"$f":"IF(A364=\"\",\"\",'1. Checklist & Certification'!$G$4)","v":""},{"$f":"IF(A364=\"\",\"\",'1. Checklist & Certification'!$K$39)","v":""},{"$f":"IF(A364=\"\",\"\",'1. Checklist & Certification'!$K$43)","v":""},{"$f":"IF(A364=\"\",\"\",'1. Checklist & Certification'!$K$45)","v":""},{"$f":"IF(A364=\"\",\"\",'1. Checklist & Certification'!$K$49)","v":""},{"$f":"IF(A364=\"\",\"\",'1. Checklist & Certification'!$K$62)","v":""},{"$f":"IF(A364=\"\",\"\",'1. Checklist & Certification'!$E$66)","v":""},{"$f":"IF(A364=\"\",\"\",'1. Checklist & Certification'!$E$67)","v":""},{"$f":"IF(A364=\"\",\"\",'1. Checklist & Certification'!$E$68)","v":""},{"$f":"IF(A364=\"\",\"\",'1. Checklist & Certification'!$G$66)","v":""},{"$f":"IF(A364=\"\",\"\",'1. Checklist & Certification'!$H$66)","v":""},{"$f":"IF(A364=\"\",\"\",'1. Checklist & Certification'!$I$66)","v":""},{"$f":"IF(A364=\"\",\"\",'1. Checklist & Certification'!$I$67)","v":""},{"$f":"IF(A364=\"\",\"\",'1. Checklist & Certification'!$I$68)","v":""},{"$f":"IF(A364=\"\",\"\",'1. Checklist & Certification'!$B$69)","v":""},{"$f":"IF(A364=\"\",\"\",'1. Checklist & Certification'!$C$69)","v":""},{"$f":"IF(A364=\"\",\"\",'1. Checklist & Certification'!$F$69)","v":""},{"$f":"IF(A364=\"\",\"\",'1. Checklist & Certification'!$G$69)","v":""},{"$f":"IF(A364=\"\",\"\",'1. Checklist & Certification'!$J$69)","v":""},{"$f":"IF(A364=\"\",\"\",'1. Checklist & Certification'!$K$69)","v":""},null,null,{"$f":"IF(AND(OR('1. Checklist & Certification'!$M$16=1,'1. Checklist & Certification'!$M$19=2),AO364>0,B364=\"\",I364>0,AQ364<I364,AV364<>\"Sec 8-Project\"),\"X\",IF(AND(OR('1. Checklist & Certification'!$M$20=4,'1. Checklist & Certification'!$M$21=5,'1. Checklist & Certification'!$M$22=7),AO364>0,B364=\"\",I364>0,K364<I364),\"X\",\"\"))","v":""},{"$f":"IF(A364=\"\",\"\",IF(SUMPRODUCT(-- (ISNUMBER(SEARCH({\"*AHSC*\",\"*FMTW*\",\"*FWHG*\",\"*GHI*\",\"*HHC*\",\"*HLCP*\",\"*HOME*\",\"*LPR*\",\"*MHP*\",\"*NHTF*\",\"*NSP*\",\"*PRP*\",\"*TOD*\",\"*VHHP*\"},'1. Checklist & Certification'!$L$7)))),\"MHP\",\"Legacy\"))","v":""},",,",null,null,null,{"$f":"IF('1. Checklist & Certification'!$M$20=4,\"Both\",IF(OR('1. Checklist & Certification'!$M$15>0,S364=\"CHRP-R\",U364=\"CHRP-R\",W364=\"CHRP-R\",Y364=\"CHRP-R\"),\"Under\",\"No\"))","v":"No"},"No","No",{"$f":"_xlfn.IFS(D364=\"\",\"\",D364=1,'MHP Family Income & Rent Limits'!$E$17,D364=2,'MHP Family Income & Rent Limits'!$F$17,D364=3,'MHP Family Income & Rent Limits'!$G$17,D364=4,'MHP Family Income & Rent Limits'!$H$17,D364=5,'MHP Family Income & Rent Limits'!$I$17,D364=6,'MHP Family Income & Rent Limits'!$J$17,D364=7,'MHP Family Income & Rent Limits'!$K$17,D364=8,'MHP Family Income & Rent Limits'!$L$17)","v":""},"",{"$f":"IF(OR(A364=0,B364=\"X\"),0,MIN(IF(AA364:AD364<>0,AA364:AD364)))","v":0},{"$f":"IF(OR(H364=\"\",I364=\"\"),0,IF(H364*0.3/12>I364,MIN(H364*0.3/12,I364*1.1)+AP364,I364*(1+(VLOOKUP('1. Checklist & Certification'!$F$9,'HLCP-E Rent Change'!$A$1:$D$59,4,FALSE)))+AP364))","v":0}]
[null,null,null,null,null,null,null,null,null,null,null,null,null,null,null,null,null,null,null,null,null,null,null,null,null,null,0,0,0,0,0,0,0,0,{"$f":"IF(OR(A365=0,B365=\"X\"),0,IF(OR(S365=\"FHDP\",S365=\"RHCP-B\",U365=\"FHDP\",U365=\"RHCP-B\",W365=\"FHDP\",W365=\"RHCP-B\",Y365=\"FHDP\",Y365=\"RHCP-B\"),TRUNC((MIN(I365,K365)*(1+'1. Checklist & Certification'!$K$43)+AP365)),0))","v":0},{"$f":"IF(OR(A365=0,B365=\"X\"),0,IF(OR(S365=\"CHRP-R\",S365=\"SERA\",S365=\"SUHRP\",U365=\"CHRP-R\",U365=\"SERA\",U365=\"SUHRP\",W365=\"CHRP-R\",W365=\"SERA\",W365=\"SUHRP\",Y365=\"CHRP-R\",Y365=\"SERA\",Y365=\"SUHRP\"),TRUNC((MIN(I365,K365)*(1+'1. Checklist & Certification'!$K$49))),0))","v":0},{"$f":"IF(OR(A365=0,B365=\"X\"),0,IF(OR(S365=\"CALDAP\",S365=\"DPRLP\",U365=\"CALDAP\",U365=\"DPRLP\",W365=\"CALDAP\",W365=\"DPRLP\",Y365=\"CALDAP\",Y365=\"DPRLP\"),TRUNC(((MIN(I365,K365))*(1+'1. Checklist & Certification'!$G$4))),0))","v":0},0,0,0,{"$f":"IF(OR(A365=0,B365=\"X\"),0,IF(OR(S365=\"PRP\",S365=\"LPR\",U365=\"PRP\",U365=\"LPR\",W365=\"PRP\",W365=\"LPR\",Y365=\"PRP\",Y365=\"LPR\"),MAX(I365+AP365,MIN(IF(AE365:AN365<>0,AE365:AN365))),MIN(IF(AE365:AN365<>0,AE365:AN365))))","v":0},{"$f":"IF(A365=0,0,IF(AND(OR(S365=\"Mgr\",S365=0),OR(U365=\"Mgr\",U365=0),OR(W365=\"Mgr\",W365=0)),0,IF(LEFT($A365,2)=\"B*\",VLOOKUP($E365,'1. Checklist & Certification'!$D$26:$E$32,2),IF(LEFT($A365,2)=\"C*\",VLOOKUP($E365,'1. Checklist & Certification'!$F$26:$G$32,2),IF(LEFT($A365,2)=\"D*\",VLOOKUP($E365,'1. Checklist & Certification'!$H$26:$I$32,2),IF(LEFT($A365,2)=\"E*\",VLOOKUP($E365,'1. Checklist & Certification'!$J$26:$K$32,2),VLOOKUP($E365,'1. Checklist & Certification'!$A$26:$B$32,2)))))))","v":0},0,0,null,null,null,null,"","",0,0,0,null,{"$f":"IF(A365=\"\",\"\",'1. Checklist & Certification'!$K$1)","v":""},{"$f":"IF(A365=\"\",\"\",'1. Checklist & Certification'!$C$62)","v":""},{"$f":"IF(A365=\"\",\"\",'1. Checklist & Certification'!$C$6)","v":""},{"$f":"IF(A365=\"\",\"\",'1. Checklist & Certification'!$G$5)","v":""},{"$f":"IFERROR(IF(A365=\"\",\"\",\n_xlfn.LET(_xlpm.Contract,'1. Checklist & Certification'!$C$7,\n_xlpm.Yr,TEXT(MOD(_xlfn.TEXTBEFORE(_xlpm.Contract,\"-\"),100),\"00\"),\n_xlpm.Program,_xlfn.TEXTAFTER(_xlfn.TEXTBEFORE(_xlpm.Contract,\"-\",2),\"-\"),\n_xlpm.CleanProgram,_xlfn.XLOOKUP(_xlpm.Program,SpellCheck[Input],SpellCheck[Correction],_xlpm.Program),\n_xlpm.Number,TEXT(_xlfn.TEXTAFTER(_xlpm.Contract,\"-\",2),\"0000\"),\n_xlfn.CONCAT(_xlpm.Yr,\"-\",_xlpm.CleanProgram,\"-\",_xlpm.Number))\n),\"\")","v":""},{"$f":"IFERROR(IF(A365=\"\",\"\",\n_xlfn.LET(_xlpm.Contract,'1. Checklist & Certification'!$C$8,\n_xlpm.Yr,TEXT(MOD(_xlfn.TEXTBEFORE(_xlpm.Contract,\"-\"),100),\"00\"),\n_xlpm.Program,_xlfn.TEXTAFTER(_xlfn.TEXTBEFORE(_xlpm.Contract,\"-\",2),\"-\"),\n_xlpm.CleanProgram,_xlfn.XLOOKUP(_xlpm.Program,SpellCheck[Input],SpellCheck[Correction],_xlpm.Program),\n_xlpm.Number,TEXT(_xlfn.TEXTAFTER(_xlpm.Contract,\"-\",2),\"0000\"),\n_xlfn.CONCAT(_xlpm.Yr,\"-\",_xlpm.CleanProgram,\"-\",_xlpm.Number))\n),\"\")","v":""},{"$f":"IFERROR(IF(A365=\"\",\"\",\n_xlfn.LET(_xlpm.Contract,'1. Checklist & Certification'!$F$7,\n_xlpm.Yr,TEXT(MOD(_xlfn.TEXTBEFORE(_xlpm.Contract,\"-\"),100),\"00\"),\n_xlpm.Program,_xlfn.TEXTAFTER(_xlfn.TEXTBEFORE(_xlpm.Contract,\"-\",2),\"-\"),\n_xlpm.CleanProgram,_xlfn.XLOOKUP(_xlpm.Program,SpellCheck[Input],SpellCheck[Correction],_xlpm.Program),\n_xlpm.Number,TEXT(_xlfn.TEXTAFTER(_xlpm.Contract,\"-\",2),\"0000\"),\n_xlfn.CONCAT(_xlpm.Yr,\"-\",_xlpm.CleanProgram,\"-\",_xlpm.Number))\n),\"\")","v":""},{"$f":"IFERROR(IF(A365=\"\",\"\",\n_xlfn.LET(_xlpm.Contract,'1. Checklist & Certification'!$F$8,\n_xlpm.Yr,TEXT(MOD(_xlfn.TEXTBEFORE(_xlpm.Contract,\"-\"),100),\"00\"),\n_xlpm.Program,_xlfn.TEXTAFTER(_xlfn.TEXTBEFORE(_xlpm.Contract,\"-\",2),\"-\"),\n_xlpm.CleanProgram,_xlfn.XLOOKUP(_xlpm.Program,SpellCheck[Input],SpellCheck[Correction],_xlpm.Program),\n_xlpm.Number,TEXT(_xlfn.TEXTAFTER(_xlpm.Contract,\"-\",2),\"0000\"),\n_xlfn.CONCAT(_xlpm.Yr,\"-\",_xlpm.CleanProgram,\"-\",_xlpm.Number))\n),\"\")","v":""},{"$f":"IF(A365=\"\",\"\",'1. Checklist & Certification'!$B$9)","v":""},{"$f":"IF(A365=\"\",\"\",'1. Checklist & Certification'!$F$9)","v":""},{"$f":"IF(A365=\"\",\"\",'1. Checklist & Certification'!$C$10)","v":""},{"$f":"IF(A365=\"\",\"\",'1. Checklist & Certification'!$C$11)","v":""},{"$f":"IF(A365=\"\",\"\",'1. Checklist & Certification'!$C$12)","v":""},{"$f":"IF(A365=\"\",\"\",'1. Checklist & Certification'!$B$14)","v":""},{"$f":"IF(A365=\"\",\"\",'1. Checklist & Certification'!$E$14)","v":""},{"$f":"IF(B365=\"\",\"\",'1. Checklist & Certification'!$G$14)","v":""},{"$f":"IF(A365=\"\",\"\",'MHP Family Income & Rent Limits'!$B$3)","v":""},{"$f":"IF(A365=\"\",\"\",'MHP Family Income & Rent Limits'!$J$3)","v":""},{"$f":"IF(A365=\"\",\"\",'MHP Family Income & Rent Limits'!$E$4)","v":""},{"$f":"IF(A365=\"\",\"\",'MHP Family Income & Rent Limits'!$C$7)","v":""},{"$f":"IF(A365=\"\",\"\",'MHP Family Income & Rent Limits'!$F$8)","v":""},{"$f":"IF(A365=\"\",\"\",'1. Checklist & Certification'!$G$4)","v":""},{"$f":"IF(A365=\"\",\"\",'1. Checklist & Certification'!$K$39)","v":""},{"$f":"IF(A365=\"\",\"\",'1. Checklist & Certification'!$K$43)","v":""},{"$f":"IF(A365=\"\",\"\",'1. Checklist & Certification'!$K$45)","v":""},{"$f":"IF(A365=\"\",\"\",'1. Checklist & Certification'!$K$49)","v":""},{"$f":"IF(A365=\"\",\"\",'1. Checklist & Certification'!$K$62)","v":""},{"$f":"IF(A365=\"\",\"\",'1. Checklist & Certification'!$E$66)","v":""},{"$f":"IF(A365=\"\",\"\",'1. Checklist & Certification'!$E$67)","v":""},{"$f":"IF(A365=\"\",\"\",'1. Checklist & Certification'!$E$68)","v":""},{"$f":"IF(A365=\"\",\"\",'1. Checklist & Certification'!$G$66)","v":""},{"$f":"IF(A365=\"\",\"\",'1. Checklist & Certification'!$H$66)","v":""},{"$f":"IF(A365=\"\",\"\",'1. Checklist & Certification'!$I$66)","v":""},{"$f":"IF(A365=\"\",\"\",'1. Checklist & Certification'!$I$67)","v":""},{"$f":"IF(A365=\"\",\"\",'1. Checklist & Certification'!$I$68)","v":""},{"$f":"IF(A365=\"\",\"\",'1. Checklist & Certification'!$B$69)","v":""},{"$f":"IF(A365=\"\",\"\",'1. Checklist & Certification'!$C$69)","v":""},{"$f":"IF(A365=\"\",\"\",'1. Checklist & Certification'!$F$69)","v":""},{"$f":"IF(A365=\"\",\"\",'1. Checklist & Certification'!$G$69)","v":""},{"$f":"IF(A365=\"\",\"\",'1. Checklist & Certification'!$J$69)","v":""},{"$f":"IF(A365=\"\",\"\",'1. Checklist & Certification'!$K$69)","v":""},null,null,{"$f":"IF(AND(OR('1. Checklist & Certification'!$M$16=1,'1. Checklist & Certification'!$M$19=2),AO365>0,B365=\"\",I365>0,AQ365<I365,AV365<>\"Sec 8-Project\"),\"X\",IF(AND(OR('1. Checklist & Certification'!$M$20=4,'1. Checklist & Certification'!$M$21=5,'1. Checklist & Certification'!$M$22=7),AO365>0,B365=\"\",I365>0,K365<I365),\"X\",\"\"))","v":""},{"$f":"IF(A365=\"\",\"\",IF(SUMPRODUCT(-- (ISNUMBER(SEARCH({\"*AHSC*\",\"*FMTW*\",\"*FWHG*\",\"*GHI*\",\"*HHC*\",\"*HLCP*\",\"*HOME*\",\"*LPR*\",\"*MHP*\",\"*NHTF*\",\"*NSP*\",\"*PRP*\",\"*TOD*\",\"*VHHP*\"},'1. Checklist & Certification'!$L$7)))),\"MHP\",\"Legacy\"))","v":""},",,",null,null,null,{"$f":"IF('1. Checklist & Certification'!$M$20=4,\"Both\",IF(OR('1. Checklist & Certification'!$M$15>0,S365=\"CHRP-R\",U365=\"CHRP-R\",W365=\"CHRP-R\",Y365=\"CHRP-R\"),\"Under\",\"No\"))","v":"No"},"No","No",{"$f":"_xlfn.IFS(D365=\"\",\"\",D365=1,'MHP Family Income & Rent Limits'!$E$17,D365=2,'MHP Family Income & Rent Limits'!$F$17,D365=3,'MHP Family Income & Rent Limits'!$G$17,D365=4,'MHP Family Income & Rent Limits'!$H$17,D365=5,'MHP Family Income & Rent Limits'!$I$17,D365=6,'MHP Family Income & Rent Limits'!$J$17,D365=7,'MHP Family Income & Rent Limits'!$K$17,D365=8,'MHP Family Income & Rent Limits'!$L$17)","v":""},"",{"$f":"IF(OR(A365=0,B365=\"X\"),0,MIN(IF(AA365:AD365<>0,AA365:AD365)))","v":0},{"$f":"IF(OR(H365=\"\",I365=\"\"),0,IF(H365*0.3/12>I365,MIN(H365*0.3/12,I365*1.1)+AP365,I365*(1+(VLOOKUP('1. Checklist & Certification'!$F$9,'HLCP-E Rent Change'!$A$1:$D$59,4,FALSE)))+AP365))","v":0}]
[null,null,null,null,null,null,null,null,null,null,null,null,null,null,null,null,null,null,null,null,null,null,null,null,null,null,0,0,0,0,0,0,0,0,{"$f":"IF(OR(A366=0,B366=\"X\"),0,IF(OR(S366=\"FHDP\",S366=\"RHCP-B\",U366=\"FHDP\",U366=\"RHCP-B\",W366=\"FHDP\",W366=\"RHCP-B\",Y366=\"FHDP\",Y366=\"RHCP-B\"),TRUNC((MIN(I366,K366)*(1+'1. Checklist & Certification'!$K$43)+AP366)),0))","v":0},{"$f":"IF(OR(A366=0,B366=\"X\"),0,IF(OR(S366=\"CHRP-R\",S366=\"SERA\",S366=\"SUHRP\",U366=\"CHRP-R\",U366=\"SERA\",U366=\"SUHRP\",W366=\"CHRP-R\",W366=\"SERA\",W366=\"SUHRP\",Y366=\"CHRP-R\",Y366=\"SERA\",Y366=\"SUHRP\"),TRUNC((MIN(I366,K366)*(1+'1. Checklist & Certification'!$K$49))),0))","v":0},{"$f":"IF(OR(A366=0,B366=\"X\"),0,IF(OR(S366=\"CALDAP\",S366=\"DPRLP\",U366=\"CALDAP\",U366=\"DPRLP\",W366=\"CALDAP\",W366=\"DPRLP\",Y366=\"CALDAP\",Y366=\"DPRLP\"),TRUNC(((MIN(I366,K366))*(1+'1. Checklist & Certification'!$G$4))),0))","v":0},0,0,0,{"$f":"IF(OR(A366=0,B366=\"X\"),0,IF(OR(S366=\"PRP\",S366=\"LPR\",U366=\"PRP\",U366=\"LPR\",W366=\"PRP\",W366=\"LPR\",Y366=\"PRP\",Y366=\"LPR\"),MAX(I366+AP366,MIN(IF(AE366:AN366<>0,AE366:AN366))),MIN(IF(AE366:AN366<>0,AE366:AN366))))","v":0},{"$f":"IF(A366=0,0,IF(AND(OR(S366=\"Mgr\",S366=0),OR(U366=\"Mgr\",U366=0),OR(W366=\"Mgr\",W366=0)),0,IF(LEFT($A366,2)=\"B*\",VLOOKUP($E366,'1. Checklist & Certification'!$D$26:$E$32,2),IF(LEFT($A366,2)=\"C*\",VLOOKUP($E366,'1. Checklist & Certification'!$F$26:$G$32,2),IF(LEFT($A366,2)=\"D*\",VLOOKUP($E366,'1. Checklist & Certification'!$H$26:$I$32,2),IF(LEFT($A366,2)=\"E*\",VLOOKUP($E366,'1. Checklist & Certification'!$J$26:$K$32,2),VLOOKUP($E366,'1. Checklist & Certification'!$A$26:$B$32,2)))))))","v":0},0,0,null,null,null,null,"","",0,0,0,null,{"$f":"IF(A366=\"\",\"\",'1. Checklist & Certification'!$K$1)","v":""},{"$f":"IF(A366=\"\",\"\",'1. Checklist & Certification'!$C$62)","v":""},{"$f":"IF(A366=\"\",\"\",'1. Checklist & Certification'!$C$6)","v":""},{"$f":"IF(A366=\"\",\"\",'1. Checklist & Certification'!$G$5)","v":""},{"$f":"IFERROR(IF(A366=\"\",\"\",\n_xlfn.LET(_xlpm.Contract,'1. Checklist & Certification'!$C$7,\n_xlpm.Yr,TEXT(MOD(_xlfn.TEXTBEFORE(_xlpm.Contract,\"-\"),100),\"00\"),\n_xlpm.Program,_xlfn.TEXTAFTER(_xlfn.TEXTBEFORE(_xlpm.Contract,\"-\",2),\"-\"),\n_xlpm.CleanProgram,_xlfn.XLOOKUP(_xlpm.Program,SpellCheck[Input],SpellCheck[Correction],_xlpm.Program),\n_xlpm.Number,TEXT(_xlfn.TEXTAFTER(_xlpm.Contract,\"-\",2),\"0000\"),\n_xlfn.CONCAT(_xlpm.Yr,\"-\",_xlpm.CleanProgram,\"-\",_xlpm.Number))\n),\"\")","v":""},{"$f":"IFERROR(IF(A366=\"\",\"\",\n_xlfn.LET(_xlpm.Contract,'1. Checklist & Certification'!$C$8,\n_xlpm.Yr,TEXT(MOD(_xlfn.TEXTBEFORE(_xlpm.Contract,\"-\"),100),\"00\"),\n_xlpm.Program,_xlfn.TEXTAFTER(_xlfn.TEXTBEFORE(_xlpm.Contract,\"-\",2),\"-\"),\n_xlpm.CleanProgram,_xlfn.XLOOKUP(_xlpm.Program,SpellCheck[Input],SpellCheck[Correction],_xlpm.Program),\n_xlpm.Number,TEXT(_xlfn.TEXTAFTER(_xlpm.Contract,\"-\",2),\"0000\"),\n_xlfn.CONCAT(_xlpm.Yr,\"-\",_xlpm.CleanProgram,\"-\",_xlpm.Number))\n),\"\")","v":""},{"$f":"IFERROR(IF(A366=\"\",\"\",\n_xlfn.LET(_xlpm.Contract,'1. Checklist & Certification'!$F$7,\n_xlpm.Yr,TEXT(MOD(_xlfn.TEXTBEFORE(_xlpm.Contract,\"-\"),100),\"00\"),\n_xlpm.Program,_xlfn.TEXTAFTER(_xlfn.TEXTBEFORE(_xlpm.Contract,\"-\",2),\"-\"),\n_xlpm.CleanProgram,_xlfn.XLOOKUP(_xlpm.Program,SpellCheck[Input],SpellCheck[Correction],_xlpm.Program),\n_xlpm.Number,TEXT(_xlfn.TEXTAFTER(_xlpm.Contract,\"-\",2),\"0000\"),\n_xlfn.CONCAT(_xlpm.Yr,\"-\",_xlpm.CleanProgram,\"-\",_xlpm.Number))\n),\"\")","v":""},{"$f":"IFERROR(IF(A366=\"\",\"\",\n_xlfn.LET(_xlpm.Contract,'1. Checklist & Certification'!$F$8,\n_xlpm.Yr,TEXT(MOD(_xlfn.TEXTBEFORE(_xlpm.Contract,\"-\"),100),\"00\"),\n_xlpm.Program,_xlfn.TEXTAFTER(_xlfn.TEXTBEFORE(_xlpm.Contract,\"-\",2),\"-\"),\n_xlpm.CleanProgram,_xlfn.XLOOKUP(_xlpm.Program,SpellCheck[Input],SpellCheck[Correction],_xlpm.Program),\n_xlpm.Number,TEXT(_xlfn.TEXTAFTER(_xlpm.Contract,\"-\",2),\"0000\"),\n_xlfn.CONCAT(_xlpm.Yr,\"-\",_xlpm.CleanProgram,\"-\",_xlpm.Number))\n),\"\")","v":""},{"$f":"IF(A366=\"\",\"\",'1. Checklist & Certification'!$B$9)","v":""},{"$f":"IF(A366=\"\",\"\",'1. Checklist & Certification'!$F$9)","v":""},{"$f":"IF(A366=\"\",\"\",'1. Checklist & Certification'!$C$10)","v":""},{"$f":"IF(A366=\"\",\"\",'1. Checklist & Certification'!$C$11)","v":""},{"$f":"IF(A366=\"\",\"\",'1. Checklist & Certification'!$C$12)","v":""},{"$f":"IF(A366=\"\",\"\",'1. Checklist & Certification'!$B$14)","v":""},{"$f":"IF(A366=\"\",\"\",'1. Checklist & Certification'!$E$14)","v":""},{"$f":"IF(B366=\"\",\"\",'1. Checklist & Certification'!$G$14)","v":""},{"$f":"IF(A366=\"\",\"\",'MHP Family Income & Rent Limits'!$B$3)","v":""},{"$f":"IF(A366=\"\",\"\",'MHP Family Income & Rent Limits'!$J$3)","v":""},{"$f":"IF(A366=\"\",\"\",'MHP Family Income & Rent Limits'!$E$4)","v":""},{"$f":"IF(A366=\"\",\"\",'MHP Family Income & Rent Limits'!$C$7)","v":""},{"$f":"IF(A366=\"\",\"\",'MHP Family Income & Rent Limits'!$F$8)","v":""},{"$f":"IF(A366=\"\",\"\",'1. Checklist & Certification'!$G$4)","v":""},{"$f":"IF(A366=\"\",\"\",'1. Checklist & Certification'!$K$39)","v":""},{"$f":"IF(A366=\"\",\"\",'1. Checklist & Certification'!$K$43)","v":""},{"$f":"IF(A366=\"\",\"\",'1. Checklist & Certification'!$K$45)","v":""},{"$f":"IF(A366=\"\",\"\",'1. Checklist & Certification'!$K$49)","v":""},{"$f":"IF(A366=\"\",\"\",'1. Checklist & Certification'!$K$62)","v":""},{"$f":"IF(A366=\"\",\"\",'1. Checklist & Certification'!$E$66)","v":""},{"$f":"IF(A366=\"\",\"\",'1. Checklist & Certification'!$E$67)","v":""},{"$f":"IF(A366=\"\",\"\",'1. Checklist & Certification'!$E$68)","v":""},{"$f":"IF(A366=\"\",\"\",'1. Checklist & Certification'!$G$66)","v":""},{"$f":"IF(A366=\"\",\"\",'1. Checklist & Certification'!$H$66)","v":""},{"$f":"IF(A366=\"\",\"\",'1. Checklist & Certification'!$I$66)","v":""},{"$f":"IF(A366=\"\",\"\",'1. Checklist & Certification'!$I$67)","v":""},{"$f":"IF(A366=\"\",\"\",'1. Checklist & Certification'!$I$68)","v":""},{"$f":"IF(A366=\"\",\"\",'1. Checklist & Certification'!$B$69)","v":""},{"$f":"IF(A366=\"\",\"\",'1. Checklist & Certification'!$C$69)","v":""},{"$f":"IF(A366=\"\",\"\",'1. Checklist & Certification'!$F$69)","v":""},{"$f":"IF(A366=\"\",\"\",'1. Checklist & Certification'!$G$69)","v":""},{"$f":"IF(A366=\"\",\"\",'1. Checklist & Certification'!$J$69)","v":""},{"$f":"IF(A366=\"\",\"\",'1. Checklist & Certification'!$K$69)","v":""},null,null,{"$f":"IF(AND(OR('1. Checklist & Certification'!$M$16=1,'1. Checklist & Certification'!$M$19=2),AO366>0,B366=\"\",I366>0,AQ366<I366,AV366<>\"Sec 8-Project\"),\"X\",IF(AND(OR('1. Checklist & Certification'!$M$20=4,'1. Checklist & Certification'!$M$21=5,'1. Checklist & Certification'!$M$22=7),AO366>0,B366=\"\",I366>0,K366<I366),\"X\",\"\"))","v":""},{"$f":"IF(A366=\"\",\"\",IF(SUMPRODUCT(-- (ISNUMBER(SEARCH({\"*AHSC*\",\"*FMTW*\",\"*FWHG*\",\"*GHI*\",\"*HHC*\",\"*HLCP*\",\"*HOME*\",\"*LPR*\",\"*MHP*\",\"*NHTF*\",\"*NSP*\",\"*PRP*\",\"*TOD*\",\"*VHHP*\"},'1. Checklist & Certification'!$L$7)))),\"MHP\",\"Legacy\"))","v":""},",,",null,null,null,{"$f":"IF('1. Checklist & Certification'!$M$20=4,\"Both\",IF(OR('1. Checklist & Certification'!$M$15>0,S366=\"CHRP-R\",U366=\"CHRP-R\",W366=\"CHRP-R\",Y366=\"CHRP-R\"),\"Under\",\"No\"))","v":"No"},"No","No",{"$f":"_xlfn.IFS(D366=\"\",\"\",D366=1,'MHP Family Income & Rent Limits'!$E$17,D366=2,'MHP Family Income & Rent Limits'!$F$17,D366=3,'MHP Family Income & Rent Limits'!$G$17,D366=4,'MHP Family Income & Rent Limits'!$H$17,D366=5,'MHP Family Income & Rent Limits'!$I$17,D366=6,'MHP Family Income & Rent Limits'!$J$17,D366=7,'MHP Family Income & Rent Limits'!$K$17,D366=8,'MHP Family Income & Rent Limits'!$L$17)","v":""},"",{"$f":"IF(OR(A366=0,B366=\"X\"),0,MIN(IF(AA366:AD366<>0,AA366:AD366)))","v":0},{"$f":"IF(OR(H366=\"\",I366=\"\"),0,IF(H366*0.3/12>I366,MIN(H366*0.3/12,I366*1.1)+AP366,I366*(1+(VLOOKUP('1. Checklist & Certification'!$F$9,'HLCP-E Rent Change'!$A$1:$D$59,4,FALSE)))+AP366))","v":0}]
[null,null,null,null,null,null,null,null,null,null,null,null,null,null,null,null,null,null,null,null,null,null,null,null,null,null,0,0,0,0,0,0,0,0,{"$f":"IF(OR(A367=0,B367=\"X\"),0,IF(OR(S367=\"FHDP\",S367=\"RHCP-B\",U367=\"FHDP\",U367=\"RHCP-B\",W367=\"FHDP\",W367=\"RHCP-B\",Y367=\"FHDP\",Y367=\"RHCP-B\"),TRUNC((MIN(I367,K367)*(1+'1. Checklist & Certification'!$K$43)+AP367)),0))","v":0},{"$f":"IF(OR(A367=0,B367=\"X\"),0,IF(OR(S367=\"CHRP-R\",S367=\"SERA\",S367=\"SUHRP\",U367=\"CHRP-R\",U367=\"SERA\",U367=\"SUHRP\",W367=\"CHRP-R\",W367=\"SERA\",W367=\"SUHRP\",Y367=\"CHRP-R\",Y367=\"SERA\",Y367=\"SUHRP\"),TRUNC((MIN(I367,K367)*(1+'1. Checklist & Certification'!$K$49))),0))","v":0},{"$f":"IF(OR(A367=0,B367=\"X\"),0,IF(OR(S367=\"CALDAP\",S367=\"DPRLP\",U367=\"CALDAP\",U367=\"DPRLP\",W367=\"CALDAP\",W367=\"DPRLP\",Y367=\"CALDAP\",Y367=\"DPRLP\"),TRUNC(((MIN(I367,K367))*(1+'1. Checklist & Certification'!$G$4))),0))","v":0},0,0,0,{"$f":"IF(OR(A367=0,B367=\"X\"),0,IF(OR(S367=\"PRP\",S367=\"LPR\",U367=\"PRP\",U367=\"LPR\",W367=\"PRP\",W367=\"LPR\",Y367=\"PRP\",Y367=\"LPR\"),MAX(I367+AP367,MIN(IF(AE367:AN367<>0,AE367:AN367))),MIN(IF(AE367:AN367<>0,AE367:AN367))))","v":0},{"$f":"IF(A367=0,0,IF(AND(OR(S367=\"Mgr\",S367=0),OR(U367=\"Mgr\",U367=0),OR(W367=\"Mgr\",W367=0)),0,IF(LEFT($A367,2)=\"B*\",VLOOKUP($E367,'1. Checklist & Certification'!$D$26:$E$32,2),IF(LEFT($A367,2)=\"C*\",VLOOKUP($E367,'1. Checklist & Certification'!$F$26:$G$32,2),IF(LEFT($A367,2)=\"D*\",VLOOKUP($E367,'1. Checklist & Certification'!$H$26:$I$32,2),IF(LEFT($A367,2)=\"E*\",VLOOKUP($E367,'1. Checklist & Certification'!$J$26:$K$32,2),VLOOKUP($E367,'1. Checklist & Certification'!$A$26:$B$32,2)))))))","v":0},0,0,null,null,null,null,"","",0,0,0,null,{"$f":"IF(A367=\"\",\"\",'1. Checklist & Certification'!$K$1)","v":""},{"$f":"IF(A367=\"\",\"\",'1. Checklist & Certification'!$C$62)","v":""},{"$f":"IF(A367=\"\",\"\",'1. Checklist & Certification'!$C$6)","v":""},{"$f":"IF(A367=\"\",\"\",'1. Checklist & Certification'!$G$5)","v":""},{"$f":"IFERROR(IF(A367=\"\",\"\",\n_xlfn.LET(_xlpm.Contract,'1. Checklist & Certification'!$C$7,\n_xlpm.Yr,TEXT(MOD(_xlfn.TEXTBEFORE(_xlpm.Contract,\"-\"),100),\"00\"),\n_xlpm.Program,_xlfn.TEXTAFTER(_xlfn.TEXTBEFORE(_xlpm.Contract,\"-\",2),\"-\"),\n_xlpm.CleanProgram,_xlfn.XLOOKUP(_xlpm.Program,SpellCheck[Input],SpellCheck[Correction],_xlpm.Program),\n_xlpm.Number,TEXT(_xlfn.TEXTAFTER(_xlpm.Contract,\"-\",2),\"0000\"),\n_xlfn.CONCAT(_xlpm.Yr,\"-\",_xlpm.CleanProgram,\"-\",_xlpm.Number))\n),\"\")","v":""},{"$f":"IFERROR(IF(A367=\"\",\"\",\n_xlfn.LET(_xlpm.Contract,'1. Checklist & Certification'!$C$8,\n_xlpm.Yr,TEXT(MOD(_xlfn.TEXTBEFORE(_xlpm.Contract,\"-\"),100),\"00\"),\n_xlpm.Program,_xlfn.TEXTAFTER(_xlfn.TEXTBEFORE(_xlpm.Contract,\"-\",2),\"-\"),\n_xlpm.CleanProgram,_xlfn.XLOOKUP(_xlpm.Program,SpellCheck[Input],SpellCheck[Correction],_xlpm.Program),\n_xlpm.Number,TEXT(_xlfn.TEXTAFTER(_xlpm.Contract,\"-\",2),\"0000\"),\n_xlfn.CONCAT(_xlpm.Yr,\"-\",_xlpm.CleanProgram,\"-\",_xlpm.Number))\n),\"\")","v":""},{"$f":"IFERROR(IF(A367=\"\",\"\",\n_xlfn.LET(_xlpm.Contract,'1. Checklist & Certification'!$F$7,\n_xlpm.Yr,TEXT(MOD(_xlfn.TEXTBEFORE(_xlpm.Contract,\"-\"),100),\"00\"),\n_xlpm.Program,_xlfn.TEXTAFTER(_xlfn.TEXTBEFORE(_xlpm.Contract,\"-\",2),\"-\"),\n_xlpm.CleanProgram,_xlfn.XLOOKUP(_xlpm.Program,SpellCheck[Input],SpellCheck[Correction],_xlpm.Program),\n_xlpm.Number,TEXT(_xlfn.TEXTAFTER(_xlpm.Contract,\"-\",2),\"0000\"),\n_xlfn.CONCAT(_xlpm.Yr,\"-\",_xlpm.CleanProgram,\"-\",_xlpm.Number))\n),\"\")","v":""},{"$f":"IFERROR(IF(A367=\"\",\"\",\n_xlfn.LET(_xlpm.Contract,'1. Checklist & Certification'!$F$8,\n_xlpm.Yr,TEXT(MOD(_xlfn.TEXTBEFORE(_xlpm.Contract,\"-\"),100),\"00\"),\n_xlpm.Program,_xlfn.TEXTAFTER(_xlfn.TEXTBEFORE(_xlpm.Contract,\"-\",2),\"-\"),\n_xlpm.CleanProgram,_xlfn.XLOOKUP(_xlpm.Program,SpellCheck[Input],SpellCheck[Correction],_xlpm.Program),\n_xlpm.Number,TEXT(_xlfn.TEXTAFTER(_xlpm.Contract,\"-\",2),\"0000\"),\n_xlfn.CONCAT(_xlpm.Yr,\"-\",_xlpm.CleanProgram,\"-\",_xlpm.Number))\n),\"\")","v":""},{"$f":"IF(A367=\"\",\"\",'1. Checklist & Certification'!$B$9)","v":""},{"$f":"IF(A367=\"\",\"\",'1. Checklist & Certification'!$F$9)","v":""},{"$f":"IF(A367=\"\",\"\",'1. Checklist & Certification'!$C$10)","v":""},{"$f":"IF(A367=\"\",\"\",'1. Checklist & Certification'!$C$11)","v":""},{"$f":"IF(A367=\"\",\"\",'1. Checklist & Certification'!$C$12)","v":""},{"$f":"IF(A367=\"\",\"\",'1. Checklist & Certification'!$B$14)","v":""},{"$f":"IF(A367=\"\",\"\",'1. Checklist & Certification'!$E$14)","v":""},{"$f":"IF(B367=\"\",\"\",'1. Checklist & Certification'!$G$14)","v":""},{"$f":"IF(A367=\"\",\"\",'MHP Family Income & Rent Limits'!$B$3)","v":""},{"$f":"IF(A367=\"\",\"\",'MHP Family Income & Rent Limits'!$J$3)","v":""},{"$f":"IF(A367=\"\",\"\",'MHP Family Income & Rent Limits'!$E$4)","v":""},{"$f":"IF(A367=\"\",\"\",'MHP Family Income & Rent Limits'!$C$7)","v":""},{"$f":"IF(A367=\"\",\"\",'MHP Family Income & Rent Limits'!$F$8)","v":""},{"$f":"IF(A367=\"\",\"\",'1. Checklist & Certification'!$G$4)","v":""},{"$f":"IF(A367=\"\",\"\",'1. Checklist & Certification'!$K$39)","v":""},{"$f":"IF(A367=\"\",\"\",'1. Checklist & Certification'!$K$43)","v":""},{"$f":"IF(A367=\"\",\"\",'1. Checklist & Certification'!$K$45)","v":""},{"$f":"IF(A367=\"\",\"\",'1. Checklist & Certification'!$K$49)","v":""},{"$f":"IF(A367=\"\",\"\",'1. Checklist & Certification'!$K$62)","v":""},{"$f":"IF(A367=\"\",\"\",'1. Checklist & Certification'!$E$66)","v":""},{"$f":"IF(A367=\"\",\"\",'1. Checklist & Certification'!$E$67)","v":""},{"$f":"IF(A367=\"\",\"\",'1. Checklist & Certification'!$E$68)","v":""},{"$f":"IF(A367=\"\",\"\",'1. Checklist & Certification'!$G$66)","v":""},{"$f":"IF(A367=\"\",\"\",'1. Checklist & Certification'!$H$66)","v":""},{"$f":"IF(A367=\"\",\"\",'1. Checklist & Certification'!$I$66)","v":""},{"$f":"IF(A367=\"\",\"\",'1. Checklist & Certification'!$I$67)","v":""},{"$f":"IF(A367=\"\",\"\",'1. Checklist & Certification'!$I$68)","v":""},{"$f":"IF(A367=\"\",\"\",'1. Checklist & Certification'!$B$69)","v":""},{"$f":"IF(A367=\"\",\"\",'1. Checklist & Certification'!$C$69)","v":""},{"$f":"IF(A367=\"\",\"\",'1. Checklist & Certification'!$F$69)","v":""},{"$f":"IF(A367=\"\",\"\",'1. Checklist & Certification'!$G$69)","v":""},{"$f":"IF(A367=\"\",\"\",'1. Checklist & Certification'!$J$69)","v":""},{"$f":"IF(A367=\"\",\"\",'1. Checklist & Certification'!$K$69)","v":""},null,null,{"$f":"IF(AND(OR('1. Checklist & Certification'!$M$16=1,'1. Checklist & Certification'!$M$19=2),AO367>0,B367=\"\",I367>0,AQ367<I367,AV367<>\"Sec 8-Project\"),\"X\",IF(AND(OR('1. Checklist & Certification'!$M$20=4,'1. Checklist & Certification'!$M$21=5,'1. Checklist & Certification'!$M$22=7),AO367>0,B367=\"\",I367>0,K367<I367),\"X\",\"\"))","v":""},{"$f":"IF(A367=\"\",\"\",IF(SUMPRODUCT(-- (ISNUMBER(SEARCH({\"*AHSC*\",\"*FMTW*\",\"*FWHG*\",\"*GHI*\",\"*HHC*\",\"*HLCP*\",\"*HOME*\",\"*LPR*\",\"*MHP*\",\"*NHTF*\",\"*NSP*\",\"*PRP*\",\"*TOD*\",\"*VHHP*\"},'1. Checklist & Certification'!$L$7)))),\"MHP\",\"Legacy\"))","v":""},",,",null,null,null,{"$f":"IF('1. Checklist & Certification'!$M$20=4,\"Both\",IF(OR('1. Checklist & Certification'!$M$15>0,S367=\"CHRP-R\",U367=\"CHRP-R\",W367=\"CHRP-R\",Y367=\"CHRP-R\"),\"Under\",\"No\"))","v":"No"},"No","No",{"$f":"_xlfn.IFS(D367=\"\",\"\",D367=1,'MHP Family Income & Rent Limits'!$E$17,D367=2,'MHP Family Income & Rent Limits'!$F$17,D367=3,'MHP Family Income & Rent Limits'!$G$17,D367=4,'MHP Family Income & Rent Limits'!$H$17,D367=5,'MHP Family Income & Rent Limits'!$I$17,D367=6,'MHP Family Income & Rent Limits'!$J$17,D367=7,'MHP Family Income & Rent Limits'!$K$17,D367=8,'MHP Family Income & Rent Limits'!$L$17)","v":""},"",{"$f":"IF(OR(A367=0,B367=\"X\"),0,MIN(IF(AA367:AD367<>0,AA367:AD367)))","v":0},{"$f":"IF(OR(H367=\"\",I367=\"\"),0,IF(H367*0.3/12>I367,MIN(H367*0.3/12,I367*1.1)+AP367,I367*(1+(VLOOKUP('1. Checklist & Certification'!$F$9,'HLCP-E Rent Change'!$A$1:$D$59,4,FALSE)))+AP367))","v":0}]
[null,null,null,null,null,null,null,null,null,null,null,null,null,null,null,null,null,null,null,null,null,null,null,null,null,null,0,0,0,0,0,0,0,0,{"$f":"IF(OR(A368=0,B368=\"X\"),0,IF(OR(S368=\"FHDP\",S368=\"RHCP-B\",U368=\"FHDP\",U368=\"RHCP-B\",W368=\"FHDP\",W368=\"RHCP-B\",Y368=\"FHDP\",Y368=\"RHCP-B\"),TRUNC((MIN(I368,K368)*(1+'1. Checklist & Certification'!$K$43)+AP368)),0))","v":0},{"$f":"IF(OR(A368=0,B368=\"X\"),0,IF(OR(S368=\"CHRP-R\",S368=\"SERA\",S368=\"SUHRP\",U368=\"CHRP-R\",U368=\"SERA\",U368=\"SUHRP\",W368=\"CHRP-R\",W368=\"SERA\",W368=\"SUHRP\",Y368=\"CHRP-R\",Y368=\"SERA\",Y368=\"SUHRP\"),TRUNC((MIN(I368,K368)*(1+'1. Checklist & Certification'!$K$49))),0))","v":0},{"$f":"IF(OR(A368=0,B368=\"X\"),0,IF(OR(S368=\"CALDAP\",S368=\"DPRLP\",U368=\"CALDAP\",U368=\"DPRLP\",W368=\"CALDAP\",W368=\"DPRLP\",Y368=\"CALDAP\",Y368=\"DPRLP\"),TRUNC(((MIN(I368,K368))*(1+'1. Checklist & Certification'!$G$4))),0))","v":0},0,0,0,{"$f":"IF(OR(A368=0,B368=\"X\"),0,IF(OR(S368=\"PRP\",S368=\"LPR\",U368=\"PRP\",U368=\"LPR\",W368=\"PRP\",W368=\"LPR\",Y368=\"PRP\",Y368=\"LPR\"),MAX(I368+AP368,MIN(IF(AE368:AN368<>0,AE368:AN368))),MIN(IF(AE368:AN368<>0,AE368:AN368))))","v":0},{"$f":"IF(A368=0,0,IF(AND(OR(S368=\"Mgr\",S368=0),OR(U368=\"Mgr\",U368=0),OR(W368=\"Mgr\",W368=0)),0,IF(LEFT($A368,2)=\"B*\",VLOOKUP($E368,'1. Checklist & Certification'!$D$26:$E$32,2),IF(LEFT($A368,2)=\"C*\",VLOOKUP($E368,'1. Checklist & Certification'!$F$26:$G$32,2),IF(LEFT($A368,2)=\"D*\",VLOOKUP($E368,'1. Checklist & Certification'!$H$26:$I$32,2),IF(LEFT($A368,2)=\"E*\",VLOOKUP($E368,'1. Checklist & Certification'!$J$26:$K$32,2),VLOOKUP($E368,'1. Checklist & Certification'!$A$26:$B$32,2)))))))","v":0},0,0,null,null,null,null,"","",0,0,0,null,{"$f":"IF(A368=\"\",\"\",'1. Checklist & Certification'!$K$1)","v":""},{"$f":"IF(A368=\"\",\"\",'1. Checklist & Certification'!$C$62)","v":""},{"$f":"IF(A368=\"\",\"\",'1. Checklist & Certification'!$C$6)","v":""},{"$f":"IF(A368=\"\",\"\",'1. Checklist & Certification'!$G$5)","v":""},{"$f":"IFERROR(IF(A368=\"\",\"\",\n_xlfn.LET(_xlpm.Contract,'1. Checklist & Certification'!$C$7,\n_xlpm.Yr,TEXT(MOD(_xlfn.TEXTBEFORE(_xlpm.Contract,\"-\"),100),\"00\"),\n_xlpm.Program,_xlfn.TEXTAFTER(_xlfn.TEXTBEFORE(_xlpm.Contract,\"-\",2),\"-\"),\n_xlpm.CleanProgram,_xlfn.XLOOKUP(_xlpm.Program,SpellCheck[Input],SpellCheck[Correction],_xlpm.Program),\n_xlpm.Number,TEXT(_xlfn.TEXTAFTER(_xlpm.Contract,\"-\",2),\"0000\"),\n_xlfn.CONCAT(_xlpm.Yr,\"-\",_xlpm.CleanProgram,\"-\",_xlpm.Number))\n),\"\")","v":""},{"$f":"IFERROR(IF(A368=\"\",\"\",\n_xlfn.LET(_xlpm.Contract,'1. Checklist & Certification'!$C$8,\n_xlpm.Yr,TEXT(MOD(_xlfn.TEXTBEFORE(_xlpm.Contract,\"-\"),100),\"00\"),\n_xlpm.Program,_xlfn.TEXTAFTER(_xlfn.TEXTBEFORE(_xlpm.Contract,\"-\",2),\"-\"),\n_xlpm.CleanProgram,_xlfn.XLOOKUP(_xlpm.Program,SpellCheck[Input],SpellCheck[Correction],_xlpm.Program),\n_xlpm.Number,TEXT(_xlfn.TEXTAFTER(_xlpm.Contract,\"-\",2),\"0000\"),\n_xlfn.CONCAT(_xlpm.Yr,\"-\",_xlpm.CleanProgram,\"-\",_xlpm.Number))\n),\"\")","v":""},{"$f":"IFERROR(IF(A368=\"\",\"\",\n_xlfn.LET(_xlpm.Contract,'1. Checklist & Certification'!$F$7,\n_xlpm.Yr,TEXT(MOD(_xlfn.TEXTBEFORE(_xlpm.Contract,\"-\"),100),\"00\"),\n_xlpm.Program,_xlfn.TEXTAFTER(_xlfn.TEXTBEFORE(_xlpm.Contract,\"-\",2),\"-\"),\n_xlpm.CleanProgram,_xlfn.XLOOKUP(_xlpm.Program,SpellCheck[Input],SpellCheck[Correction],_xlpm.Program),\n_xlpm.Number,TEXT(_xlfn.TEXTAFTER(_xlpm.Contract,\"-\",2),\"0000\"),\n_xlfn.CONCAT(_xlpm.Yr,\"-\",_xlpm.CleanProgram,\"-\",_xlpm.Number))\n),\"\")","v":""},{"$f":"IFERROR(IF(A368=\"\",\"\",\n_xlfn.LET(_xlpm.Contract,'1. Checklist & Certification'!$F$8,\n_xlpm.Yr,TEXT(MOD(_xlfn.TEXTBEFORE(_xlpm.Contract,\"-\"),100),\"00\"),\n_xlpm.Program,_xlfn.TEXTAFTER(_xlfn.TEXTBEFORE(_xlpm.Contract,\"-\",2),\"-\"),\n_xlpm.CleanProgram,_xlfn.XLOOKUP(_xlpm.Program,SpellCheck[Input],SpellCheck[Correction],_xlpm.Program),\n_xlpm.Number,TEXT(_xlfn.TEXTAFTER(_xlpm.Contract,\"-\",2),\"0000\"),\n_xlfn.CONCAT(_xlpm.Yr,\"-\",_xlpm.CleanProgram,\"-\",_xlpm.Number))\n),\"\")","v":""},{"$f":"IF(A368=\"\",\"\",'1. Checklist & Certification'!$B$9)","v":""},{"$f":"IF(A368=\"\",\"\",'1. Checklist & Certification'!$F$9)","v":""},{"$f":"IF(A368=\"\",\"\",'1. Checklist & Certification'!$C$10)","v":""},{"$f":"IF(A368=\"\",\"\",'1. Checklist & Certification'!$C$11)","v":""},{"$f":"IF(A368=\"\",\"\",'1. Checklist & Certification'!$C$12)","v":""},{"$f":"IF(A368=\"\",\"\",'1. Checklist & Certification'!$B$14)","v":""},{"$f":"IF(A368=\"\",\"\",'1. Checklist & Certification'!$E$14)","v":""},{"$f":"IF(B368=\"\",\"\",'1. Checklist & Certification'!$G$14)","v":""},{"$f":"IF(A368=\"\",\"\",'MHP Family Income & Rent Limits'!$B$3)","v":""},{"$f":"IF(A368=\"\",\"\",'MHP Family Income & Rent Limits'!$J$3)","v":""},{"$f":"IF(A368=\"\",\"\",'MHP Family Income & Rent Limits'!$E$4)","v":""},{"$f":"IF(A368=\"\",\"\",'MHP Family Income & Rent Limits'!$C$7)","v":""},{"$f":"IF(A368=\"\",\"\",'MHP Family Income & Rent Limits'!$F$8)","v":""},{"$f":"IF(A368=\"\",\"\",'1. Checklist & Certification'!$G$4)","v":""},{"$f":"IF(A368=\"\",\"\",'1. Checklist & Certification'!$K$39)","v":""},{"$f":"IF(A368=\"\",\"\",'1. Checklist & Certification'!$K$43)","v":""},{"$f":"IF(A368=\"\",\"\",'1. Checklist & Certification'!$K$45)","v":""},{"$f":"IF(A368=\"\",\"\",'1. Checklist & Certification'!$K$49)","v":""},{"$f":"IF(A368=\"\",\"\",'1. Checklist & Certification'!$K$62)","v":""},{"$f":"IF(A368=\"\",\"\",'1. Checklist & Certification'!$E$66)","v":""},{"$f":"IF(A368=\"\",\"\",'1. Checklist & Certification'!$E$67)","v":""},{"$f":"IF(A368=\"\",\"\",'1. Checklist & Certification'!$E$68)","v":""},{"$f":"IF(A368=\"\",\"\",'1. Checklist & Certification'!$G$66)","v":""},{"$f":"IF(A368=\"\",\"\",'1. Checklist & Certification'!$H$66)","v":""},{"$f":"IF(A368=\"\",\"\",'1. Checklist & Certification'!$I$66)","v":""},{"$f":"IF(A368=\"\",\"\",'1. Checklist & Certification'!$I$67)","v":""},{"$f":"IF(A368=\"\",\"\",'1. Checklist & Certification'!$I$68)","v":""},{"$f":"IF(A368=\"\",\"\",'1. Checklist & Certification'!$B$69)","v":""},{"$f":"IF(A368=\"\",\"\",'1. Checklist & Certification'!$C$69)","v":""},{"$f":"IF(A368=\"\",\"\",'1. Checklist & Certification'!$F$69)","v":""},{"$f":"IF(A368=\"\",\"\",'1. Checklist & Certification'!$G$69)","v":""},{"$f":"IF(A368=\"\",\"\",'1. Checklist & Certification'!$J$69)","v":""},{"$f":"IF(A368=\"\",\"\",'1. Checklist & Certification'!$K$69)","v":""},null,null,{"$f":"IF(AND(OR('1. Checklist & Certification'!$M$16=1,'1. Checklist & Certification'!$M$19=2),AO368>0,B368=\"\",I368>0,AQ368<I368,AV368<>\"Sec 8-Project\"),\"X\",IF(AND(OR('1. Checklist & Certification'!$M$20=4,'1. Checklist & Certification'!$M$21=5,'1. Checklist & Certification'!$M$22=7),AO368>0,B368=\"\",I368>0,K368<I368),\"X\",\"\"))","v":""},{"$f":"IF(A368=\"\",\"\",IF(SUMPRODUCT(-- (ISNUMBER(SEARCH({\"*AHSC*\",\"*FMTW*\",\"*FWHG*\",\"*GHI*\",\"*HHC*\",\"*HLCP*\",\"*HOME*\",\"*LPR*\",\"*MHP*\",\"*NHTF*\",\"*NSP*\",\"*PRP*\",\"*TOD*\",\"*VHHP*\"},'1. Checklist & Certification'!$L$7)))),\"MHP\",\"Legacy\"))","v":""},",,",null,null,null,{"$f":"IF('1. Checklist & Certification'!$M$20=4,\"Both\",IF(OR('1. Checklist & Certification'!$M$15>0,S368=\"CHRP-R\",U368=\"CHRP-R\",W368=\"CHRP-R\",Y368=\"CHRP-R\"),\"Under\",\"No\"))","v":"No"},"No","No",{"$f":"_xlfn.IFS(D368=\"\",\"\",D368=1,'MHP Family Income & Rent Limits'!$E$17,D368=2,'MHP Family Income & Rent Limits'!$F$17,D368=3,'MHP Family Income & Rent Limits'!$G$17,D368=4,'MHP Family Income & Rent Limits'!$H$17,D368=5,'MHP Family Income & Rent Limits'!$I$17,D368=6,'MHP Family Income & Rent Limits'!$J$17,D368=7,'MHP Family Income & Rent Limits'!$K$17,D368=8,'MHP Family Income & Rent Limits'!$L$17)","v":""},"",{"$f":"IF(OR(A368=0,B368=\"X\"),0,MIN(IF(AA368:AD368<>0,AA368:AD368)))","v":0},{"$f":"IF(OR(H368=\"\",I368=\"\"),0,IF(H368*0.3/12>I368,MIN(H368*0.3/12,I368*1.1)+AP368,I368*(1+(VLOOKUP('1. Checklist & Certification'!$F$9,'HLCP-E Rent Change'!$A$1:$D$59,4,FALSE)))+AP368))","v":0}]
[null,null,null,null,null,null,null,null,null,null,null,null,null,null,null,null,null,null,null,null,null,null,null,null,null,null,0,0,0,0,0,0,0,0,{"$f":"IF(OR(A369=0,B369=\"X\"),0,IF(OR(S369=\"FHDP\",S369=\"RHCP-B\",U369=\"FHDP\",U369=\"RHCP-B\",W369=\"FHDP\",W369=\"RHCP-B\",Y369=\"FHDP\",Y369=\"RHCP-B\"),TRUNC((MIN(I369,K369)*(1+'1. Checklist & Certification'!$K$43)+AP369)),0))","v":0},{"$f":"IF(OR(A369=0,B369=\"X\"),0,IF(OR(S369=\"CHRP-R\",S369=\"SERA\",S369=\"SUHRP\",U369=\"CHRP-R\",U369=\"SERA\",U369=\"SUHRP\",W369=\"CHRP-R\",W369=\"SERA\",W369=\"SUHRP\",Y369=\"CHRP-R\",Y369=\"SERA\",Y369=\"SUHRP\"),TRUNC((MIN(I369,K369)*(1+'1. Checklist & Certification'!$K$49))),0))","v":0},{"$f":"IF(OR(A369=0,B369=\"X\"),0,IF(OR(S369=\"CALDAP\",S369=\"DPRLP\",U369=\"CALDAP\",U369=\"DPRLP\",W369=\"CALDAP\",W369=\"DPRLP\",Y369=\"CALDAP\",Y369=\"DPRLP\"),TRUNC(((MIN(I369,K369))*(1+'1. Checklist & Certification'!$G$4))),0))","v":0},0,0,0,{"$f":"IF(OR(A369=0,B369=\"X\"),0,IF(OR(S369=\"PRP\",S369=\"LPR\",U369=\"PRP\",U369=\"LPR\",W369=\"PRP\",W369=\"LPR\",Y369=\"PRP\",Y369=\"LPR\"),MAX(I369+AP369,MIN(IF(AE369:AN369<>0,AE369:AN369))),MIN(IF(AE369:AN369<>0,AE369:AN369))))","v":0},{"$f":"IF(A369=0,0,IF(AND(OR(S369=\"Mgr\",S369=0),OR(U369=\"Mgr\",U369=0),OR(W369=\"Mgr\",W369=0)),0,IF(LEFT($A369,2)=\"B*\",VLOOKUP($E369,'1. Checklist & Certification'!$D$26:$E$32,2),IF(LEFT($A369,2)=\"C*\",VLOOKUP($E369,'1. Checklist & Certification'!$F$26:$G$32,2),IF(LEFT($A369,2)=\"D*\",VLOOKUP($E369,'1. Checklist & Certification'!$H$26:$I$32,2),IF(LEFT($A369,2)=\"E*\",VLOOKUP($E369,'1. Checklist & Certification'!$J$26:$K$32,2),VLOOKUP($E369,'1. Checklist & Certification'!$A$26:$B$32,2)))))))","v":0},0,0,null,null,null,null,"","",0,0,0,null,{"$f":"IF(A369=\"\",\"\",'1. Checklist & Certification'!$K$1)","v":""},{"$f":"IF(A369=\"\",\"\",'1. Checklist & Certification'!$C$62)","v":""},{"$f":"IF(A369=\"\",\"\",'1. Checklist & Certification'!$C$6)","v":""},{"$f":"IF(A369=\"\",\"\",'1. Checklist & Certification'!$G$5)","v":""},{"$f":"IFERROR(IF(A369=\"\",\"\",\n_xlfn.LET(_xlpm.Contract,'1. Checklist & Certification'!$C$7,\n_xlpm.Yr,TEXT(MOD(_xlfn.TEXTBEFORE(_xlpm.Contract,\"-\"),100),\"00\"),\n_xlpm.Program,_xlfn.TEXTAFTER(_xlfn.TEXTBEFORE(_xlpm.Contract,\"-\",2),\"-\"),\n_xlpm.CleanProgram,_xlfn.XLOOKUP(_xlpm.Program,SpellCheck[Input],SpellCheck[Correction],_xlpm.Program),\n_xlpm.Number,TEXT(_xlfn.TEXTAFTER(_xlpm.Contract,\"-\",2),\"0000\"),\n_xlfn.CONCAT(_xlpm.Yr,\"-\",_xlpm.CleanProgram,\"-\",_xlpm.Number))\n),\"\")","v":""},{"$f":"IFERROR(IF(A369=\"\",\"\",\n_xlfn.LET(_xlpm.Contract,'1. Checklist & Certification'!$C$8,\n_xlpm.Yr,TEXT(MOD(_xlfn.TEXTBEFORE(_xlpm.Contract,\"-\"),100),\"00\"),\n_xlpm.Program,_xlfn.TEXTAFTER(_xlfn.TEXTBEFORE(_xlpm.Contract,\"-\",2),\"-\"),\n_xlpm.CleanProgram,_xlfn.XLOOKUP(_xlpm.Program,SpellCheck[Input],SpellCheck[Correction],_xlpm.Program),\n_xlpm.Number,TEXT(_xlfn.TEXTAFTER(_xlpm.Contract,\"-\",2),\"0000\"),\n_xlfn.CONCAT(_xlpm.Yr,\"-\",_xlpm.CleanProgram,\"-\",_xlpm.Number))\n),\"\")","v":""},{"$f":"IFERROR(IF(A369=\"\",\"\",\n_xlfn.LET(_xlpm.Contract,'1. Checklist & Certification'!$F$7,\n_xlpm.Yr,TEXT(MOD(_xlfn.TEXTBEFORE(_xlpm.Contract,\"-\"),100),\"00\"),\n_xlpm.Program,_xlfn.TEXTAFTER(_xlfn.TEXTBEFORE(_xlpm.Contract,\"-\",2),\"-\"),\n_xlpm.CleanProgram,_xlfn.XLOOKUP(_xlpm.Program,SpellCheck[Input],SpellCheck[Correction],_xlpm.Program),\n_xlpm.Number,TEXT(_xlfn.TEXTAFTER(_xlpm.Contract,\"-\",2),\"0000\"),\n_xlfn.CONCAT(_xlpm.Yr,\"-\",_xlpm.CleanProgram,\"-\",_xlpm.Number))\n),\"\")","v":""},{"$f":"IFERROR(IF(A369=\"\",\"\",\n_xlfn.LET(_xlpm.Contract,'1. Checklist & Certification'!$F$8,\n_xlpm.Yr,TEXT(MOD(_xlfn.TEXTBEFORE(_xlpm.Contract,\"-\"),100),\"00\"),\n_xlpm.Program,_xlfn.TEXTAFTER(_xlfn.TEXTBEFORE(_xlpm.Contract,\"-\",2),\"-\"),\n_xlpm.CleanProgram,_xlfn.XLOOKUP(_xlpm.Program,SpellCheck[Input],SpellCheck[Correction],_xlpm.Program),\n_xlpm.Number,TEXT(_xlfn.TEXTAFTER(_xlpm.Contract,\"-\",2),\"0000\"),\n_xlfn.CONCAT(_xlpm.Yr,\"-\",_xlpm.CleanProgram,\"-\",_xlpm.Number))\n),\"\")","v":""},{"$f":"IF(A369=\"\",\"\",'1. Checklist & Certification'!$B$9)","v":""},{"$f":"IF(A369=\"\",\"\",'1. Checklist & Certification'!$F$9)","v":""},{"$f":"IF(A369=\"\",\"\",'1. Checklist & Certification'!$C$10)","v":""},{"$f":"IF(A369=\"\",\"\",'1. Checklist & Certification'!$C$11)","v":""},{"$f":"IF(A369=\"\",\"\",'1. Checklist & Certification'!$C$12)","v":""},{"$f":"IF(A369=\"\",\"\",'1. Checklist & Certification'!$B$14)","v":""},{"$f":"IF(A369=\"\",\"\",'1. Checklist & Certification'!$E$14)","v":""},{"$f":"IF(B369=\"\",\"\",'1. Checklist & Certification'!$G$14)","v":""},{"$f":"IF(A369=\"\",\"\",'MHP Family Income & Rent Limits'!$B$3)","v":""},{"$f":"IF(A369=\"\",\"\",'MHP Family Income & Rent Limits'!$J$3)","v":""},{"$f":"IF(A369=\"\",\"\",'MHP Family Income & Rent Limits'!$E$4)","v":""},{"$f":"IF(A369=\"\",\"\",'MHP Family Income & Rent Limits'!$C$7)","v":""},{"$f":"IF(A369=\"\",\"\",'MHP Family Income & Rent Limits'!$F$8)","v":""},{"$f":"IF(A369=\"\",\"\",'1. Checklist & Certification'!$G$4)","v":""},{"$f":"IF(A369=\"\",\"\",'1. Checklist & Certification'!$K$39)","v":""},{"$f":"IF(A369=\"\",\"\",'1. Checklist & Certification'!$K$43)","v":""},{"$f":"IF(A369=\"\",\"\",'1. Checklist & Certification'!$K$45)","v":""},{"$f":"IF(A369=\"\",\"\",'1. Checklist & Certification'!$K$49)","v":""},{"$f":"IF(A369=\"\",\"\",'1. Checklist & Certification'!$K$62)","v":""},{"$f":"IF(A369=\"\",\"\",'1. Checklist & Certification'!$E$66)","v":""},{"$f":"IF(A369=\"\",\"\",'1. Checklist & Certification'!$E$67)","v":""},{"$f":"IF(A369=\"\",\"\",'1. Checklist & Certification'!$E$68)","v":""},{"$f":"IF(A369=\"\",\"\",'1. Checklist & Certification'!$G$66)","v":""},{"$f":"IF(A369=\"\",\"\",'1. Checklist & Certification'!$H$66)","v":""},{"$f":"IF(A369=\"\",\"\",'1. Checklist & Certification'!$I$66)","v":""},{"$f":"IF(A369=\"\",\"\",'1. Checklist & Certification'!$I$67)","v":""},{"$f":"IF(A369=\"\",\"\",'1. Checklist & Certification'!$I$68)","v":""},{"$f":"IF(A369=\"\",\"\",'1. Checklist & Certification'!$B$69)","v":""},{"$f":"IF(A369=\"\",\"\",'1. Checklist & Certification'!$C$69)","v":""},{"$f":"IF(A369=\"\",\"\",'1. Checklist & Certification'!$F$69)","v":""},{"$f":"IF(A369=\"\",\"\",'1. Checklist & Certification'!$G$69)","v":""},{"$f":"IF(A369=\"\",\"\",'1. Checklist & Certification'!$J$69)","v":""},{"$f":"IF(A369=\"\",\"\",'1. Checklist & Certification'!$K$69)","v":""},null,null,{"$f":"IF(AND(OR('1. Checklist & Certification'!$M$16=1,'1. Checklist & Certification'!$M$19=2),AO369>0,B369=\"\",I369>0,AQ369<I369,AV369<>\"Sec 8-Project\"),\"X\",IF(AND(OR('1. Checklist & Certification'!$M$20=4,'1. Checklist & Certification'!$M$21=5,'1. Checklist & Certification'!$M$22=7),AO369>0,B369=\"\",I369>0,K369<I369),\"X\",\"\"))","v":""},{"$f":"IF(A369=\"\",\"\",IF(SUMPRODUCT(-- (ISNUMBER(SEARCH({\"*AHSC*\",\"*FMTW*\",\"*FWHG*\",\"*GHI*\",\"*HHC*\",\"*HLCP*\",\"*HOME*\",\"*LPR*\",\"*MHP*\",\"*NHTF*\",\"*NSP*\",\"*PRP*\",\"*TOD*\",\"*VHHP*\"},'1. Checklist & Certification'!$L$7)))),\"MHP\",\"Legacy\"))","v":""},",,",null,null,null,{"$f":"IF('1. Checklist & Certification'!$M$20=4,\"Both\",IF(OR('1. Checklist & Certification'!$M$15>0,S369=\"CHRP-R\",U369=\"CHRP-R\",W369=\"CHRP-R\",Y369=\"CHRP-R\"),\"Under\",\"No\"))","v":"No"},"No","No",{"$f":"_xlfn.IFS(D369=\"\",\"\",D369=1,'MHP Family Income & Rent Limits'!$E$17,D369=2,'MHP Family Income & Rent Limits'!$F$17,D369=3,'MHP Family Income & Rent Limits'!$G$17,D369=4,'MHP Family Income & Rent Limits'!$H$17,D369=5,'MHP Family Income & Rent Limits'!$I$17,D369=6,'MHP Family Income & Rent Limits'!$J$17,D369=7,'MHP Family Income & Rent Limits'!$K$17,D369=8,'MHP Family Income & Rent Limits'!$L$17)","v":""},"",{"$f":"IF(OR(A369=0,B369=\"X\"),0,MIN(IF(AA369:AD369<>0,AA369:AD369)))","v":0},{"$f":"IF(OR(H369=\"\",I369=\"\"),0,IF(H369*0.3/12>I369,MIN(H369*0.3/12,I369*1.1)+AP369,I369*(1+(VLOOKUP('1. Checklist & Certification'!$F$9,'HLCP-E Rent Change'!$A$1:$D$59,4,FALSE)))+AP369))","v":0}]
[null,null,null,null,null,null,null,null,null,null,null,null,null,null,null,null,null,null,null,null,null,null,null,null,null,null,0,0,0,0,0,0,0,0,{"$f":"IF(OR(A370=0,B370=\"X\"),0,IF(OR(S370=\"FHDP\",S370=\"RHCP-B\",U370=\"FHDP\",U370=\"RHCP-B\",W370=\"FHDP\",W370=\"RHCP-B\",Y370=\"FHDP\",Y370=\"RHCP-B\"),TRUNC((MIN(I370,K370)*(1+'1. Checklist & Certification'!$K$43)+AP370)),0))","v":0},{"$f":"IF(OR(A370=0,B370=\"X\"),0,IF(OR(S370=\"CHRP-R\",S370=\"SERA\",S370=\"SUHRP\",U370=\"CHRP-R\",U370=\"SERA\",U370=\"SUHRP\",W370=\"CHRP-R\",W370=\"SERA\",W370=\"SUHRP\",Y370=\"CHRP-R\",Y370=\"SERA\",Y370=\"SUHRP\"),TRUNC((MIN(I370,K370)*(1+'1. Checklist & Certification'!$K$49))),0))","v":0},{"$f":"IF(OR(A370=0,B370=\"X\"),0,IF(OR(S370=\"CALDAP\",S370=\"DPRLP\",U370=\"CALDAP\",U370=\"DPRLP\",W370=\"CALDAP\",W370=\"DPRLP\",Y370=\"CALDAP\",Y370=\"DPRLP\"),TRUNC(((MIN(I370,K370))*(1+'1. Checklist & Certification'!$G$4))),0))","v":0},0,0,0,{"$f":"IF(OR(A370=0,B370=\"X\"),0,IF(OR(S370=\"PRP\",S370=\"LPR\",U370=\"PRP\",U370=\"LPR\",W370=\"PRP\",W370=\"LPR\",Y370=\"PRP\",Y370=\"LPR\"),MAX(I370+AP370,MIN(IF(AE370:AN370<>0,AE370:AN370))),MIN(IF(AE370:AN370<>0,AE370:AN370))))","v":0},{"$f":"IF(A370=0,0,IF(AND(OR(S370=\"Mgr\",S370=0),OR(U370=\"Mgr\",U370=0),OR(W370=\"Mgr\",W370=0)),0,IF(LEFT($A370,2)=\"B*\",VLOOKUP($E370,'1. Checklist & Certification'!$D$26:$E$32,2),IF(LEFT($A370,2)=\"C*\",VLOOKUP($E370,'1. Checklist & Certification'!$F$26:$G$32,2),IF(LEFT($A370,2)=\"D*\",VLOOKUP($E370,'1. Checklist & Certification'!$H$26:$I$32,2),IF(LEFT($A370,2)=\"E*\",VLOOKUP($E370,'1. Checklist & Certification'!$J$26:$K$32,2),VLOOKUP($E370,'1. Checklist & Certification'!$A$26:$B$32,2)))))))","v":0},0,0,null,null,null,null,"","",0,0,0,null,{"$f":"IF(A370=\"\",\"\",'1. Checklist & Certification'!$K$1)","v":""},{"$f":"IF(A370=\"\",\"\",'1. Checklist & Certification'!$C$62)","v":""},{"$f":"IF(A370=\"\",\"\",'1. Checklist & Certification'!$C$6)","v":""},{"$f":"IF(A370=\"\",\"\",'1. Checklist & Certification'!$G$5)","v":""},{"$f":"IFERROR(IF(A370=\"\",\"\",\n_xlfn.LET(_xlpm.Contract,'1. Checklist & Certification'!$C$7,\n_xlpm.Yr,TEXT(MOD(_xlfn.TEXTBEFORE(_xlpm.Contract,\"-\"),100),\"00\"),\n_xlpm.Program,_xlfn.TEXTAFTER(_xlfn.TEXTBEFORE(_xlpm.Contract,\"-\",2),\"-\"),\n_xlpm.CleanProgram,_xlfn.XLOOKUP(_xlpm.Program,SpellCheck[Input],SpellCheck[Correction],_xlpm.Program),\n_xlpm.Number,TEXT(_xlfn.TEXTAFTER(_xlpm.Contract,\"-\",2),\"0000\"),\n_xlfn.CONCAT(_xlpm.Yr,\"-\",_xlpm.CleanProgram,\"-\",_xlpm.Number))\n),\"\")","v":""},{"$f":"IFERROR(IF(A370=\"\",\"\",\n_xlfn.LET(_xlpm.Contract,'1. Checklist & Certification'!$C$8,\n_xlpm.Yr,TEXT(MOD(_xlfn.TEXTBEFORE(_xlpm.Contract,\"-\"),100),\"00\"),\n_xlpm.Program,_xlfn.TEXTAFTER(_xlfn.TEXTBEFORE(_xlpm.Contract,\"-\",2),\"-\"),\n_xlpm.CleanProgram,_xlfn.XLOOKUP(_xlpm.Program,SpellCheck[Input],SpellCheck[Correction],_xlpm.Program),\n_xlpm.Number,TEXT(_xlfn.TEXTAFTER(_xlpm.Contract,\"-\",2),\"0000\"),\n_xlfn.CONCAT(_xlpm.Yr,\"-\",_xlpm.CleanProgram,\"-\",_xlpm.Number))\n),\"\")","v":""},{"$f":"IFERROR(IF(A370=\"\",\"\",\n_xlfn.LET(_xlpm.Contract,'1. Checklist & Certification'!$F$7,\n_xlpm.Yr,TEXT(MOD(_xlfn.TEXTBEFORE(_xlpm.Contract,\"-\"),100),\"00\"),\n_xlpm.Program,_xlfn.TEXTAFTER(_xlfn.TEXTBEFORE(_xlpm.Contract,\"-\",2),\"-\"),\n_xlpm.CleanProgram,_xlfn.XLOOKUP(_xlpm.Program,SpellCheck[Input],SpellCheck[Correction],_xlpm.Program),\n_xlpm.Number,TEXT(_xlfn.TEXTAFTER(_xlpm.Contract,\"-\",2),\"0000\"),\n_xlfn.CONCAT(_xlpm.Yr,\"-\",_xlpm.CleanProgram,\"-\",_xlpm.Number))\n),\"\")","v":""},{"$f":"IFERROR(IF(A370=\"\",\"\",\n_xlfn.LET(_xlpm.Contract,'1. Checklist & Certification'!$F$8,\n_xlpm.Yr,TEXT(MOD(_xlfn.TEXTBEFORE(_xlpm.Contract,\"-\"),100),\"00\"),\n_xlpm.Program,_xlfn.TEXTAFTER(_xlfn.TEXTBEFORE(_xlpm.Contract,\"-\",2),\"-\"),\n_xlpm.CleanProgram,_xlfn.XLOOKUP(_xlpm.Program,SpellCheck[Input],SpellCheck[Correction],_xlpm.Program),\n_xlpm.Number,TEXT(_xlfn.TEXTAFTER(_xlpm.Contract,\"-\",2),\"0000\"),\n_xlfn.CONCAT(_xlpm.Yr,\"-\",_xlpm.CleanProgram,\"-\",_xlpm.Number))\n),\"\")","v":""},{"$f":"IF(A370=\"\",\"\",'1. Checklist & Certification'!$B$9)","v":""},{"$f":"IF(A370=\"\",\"\",'1. Checklist & Certification'!$F$9)","v":""},{"$f":"IF(A370=\"\",\"\",'1. Checklist & Certification'!$C$10)","v":""},{"$f":"IF(A370=\"\",\"\",'1. Checklist & Certification'!$C$11)","v":""},{"$f":"IF(A370=\"\",\"\",'1. Checklist & Certification'!$C$12)","v":""},{"$f":"IF(A370=\"\",\"\",'1. Checklist & Certification'!$B$14)","v":""},{"$f":"IF(A370=\"\",\"\",'1. Checklist & Certification'!$E$14)","v":""},{"$f":"IF(B370=\"\",\"\",'1. Checklist & Certification'!$G$14)","v":""},{"$f":"IF(A370=\"\",\"\",'MHP Family Income & Rent Limits'!$B$3)","v":""},{"$f":"IF(A370=\"\",\"\",'MHP Family Income & Rent Limits'!$J$3)","v":""},{"$f":"IF(A370=\"\",\"\",'MHP Family Income & Rent Limits'!$E$4)","v":""},{"$f":"IF(A370=\"\",\"\",'MHP Family Income & Rent Limits'!$C$7)","v":""},{"$f":"IF(A370=\"\",\"\",'MHP Family Income & Rent Limits'!$F$8)","v":""},{"$f":"IF(A370=\"\",\"\",'1. Checklist & Certification'!$G$4)","v":""},{"$f":"IF(A370=\"\",\"\",'1. Checklist & Certification'!$K$39)","v":""},{"$f":"IF(A370=\"\",\"\",'1. Checklist & Certification'!$K$43)","v":""},{"$f":"IF(A370=\"\",\"\",'1. Checklist & Certification'!$K$45)","v":""},{"$f":"IF(A370=\"\",\"\",'1. Checklist & Certification'!$K$49)","v":""},{"$f":"IF(A370=\"\",\"\",'1. Checklist & Certification'!$K$62)","v":""},{"$f":"IF(A370=\"\",\"\",'1. Checklist & Certification'!$E$66)","v":""},{"$f":"IF(A370=\"\",\"\",'1. Checklist & Certification'!$E$67)","v":""},{"$f":"IF(A370=\"\",\"\",'1. Checklist & Certification'!$E$68)","v":""},{"$f":"IF(A370=\"\",\"\",'1. Checklist & Certification'!$G$66)","v":""},{"$f":"IF(A370=\"\",\"\",'1. Checklist & Certification'!$H$66)","v":""},{"$f":"IF(A370=\"\",\"\",'1. Checklist & Certification'!$I$66)","v":""},{"$f":"IF(A370=\"\",\"\",'1. Checklist & Certification'!$I$67)","v":""},{"$f":"IF(A370=\"\",\"\",'1. Checklist & Certification'!$I$68)","v":""},{"$f":"IF(A370=\"\",\"\",'1. Checklist & Certification'!$B$69)","v":""},{"$f":"IF(A370=\"\",\"\",'1. Checklist & Certification'!$C$69)","v":""},{"$f":"IF(A370=\"\",\"\",'1. Checklist & Certification'!$F$69)","v":""},{"$f":"IF(A370=\"\",\"\",'1. Checklist & Certification'!$G$69)","v":""},{"$f":"IF(A370=\"\",\"\",'1. Checklist & Certification'!$J$69)","v":""},{"$f":"IF(A370=\"\",\"\",'1. Checklist & Certification'!$K$69)","v":""},null,null,{"$f":"IF(AND(OR('1. Checklist & Certification'!$M$16=1,'1. Checklist & Certification'!$M$19=2),AO370>0,B370=\"\",I370>0,AQ370<I370,AV370<>\"Sec 8-Project\"),\"X\",IF(AND(OR('1. Checklist & Certification'!$M$20=4,'1. Checklist & Certification'!$M$21=5,'1. Checklist & Certification'!$M$22=7),AO370>0,B370=\"\",I370>0,K370<I370),\"X\",\"\"))","v":""},{"$f":"IF(A370=\"\",\"\",IF(SUMPRODUCT(-- (ISNUMBER(SEARCH({\"*AHSC*\",\"*FMTW*\",\"*FWHG*\",\"*GHI*\",\"*HHC*\",\"*HLCP*\",\"*HOME*\",\"*LPR*\",\"*MHP*\",\"*NHTF*\",\"*NSP*\",\"*PRP*\",\"*TOD*\",\"*VHHP*\"},'1. Checklist & Certification'!$L$7)))),\"MHP\",\"Legacy\"))","v":""},",,",null,null,null,{"$f":"IF('1. Checklist & Certification'!$M$20=4,\"Both\",IF(OR('1. Checklist & Certification'!$M$15>0,S370=\"CHRP-R\",U370=\"CHRP-R\",W370=\"CHRP-R\",Y370=\"CHRP-R\"),\"Under\",\"No\"))","v":"No"},"No","No",{"$f":"_xlfn.IFS(D370=\"\",\"\",D370=1,'MHP Family Income & Rent Limits'!$E$17,D370=2,'MHP Family Income & Rent Limits'!$F$17,D370=3,'MHP Family Income & Rent Limits'!$G$17,D370=4,'MHP Family Income & Rent Limits'!$H$17,D370=5,'MHP Family Income & Rent Limits'!$I$17,D370=6,'MHP Family Income & Rent Limits'!$J$17,D370=7,'MHP Family Income & Rent Limits'!$K$17,D370=8,'MHP Family Income & Rent Limits'!$L$17)","v":""},"",{"$f":"IF(OR(A370=0,B370=\"X\"),0,MIN(IF(AA370:AD370<>0,AA370:AD370)))","v":0},{"$f":"IF(OR(H370=\"\",I370=\"\"),0,IF(H370*0.3/12>I370,MIN(H370*0.3/12,I370*1.1)+AP370,I370*(1+(VLOOKUP('1. Checklist & Certification'!$F$9,'HLCP-E Rent Change'!$A$1:$D$59,4,FALSE)))+AP370))","v":0}]
[null,null,null,null,null,null,null,null,null,null,null,null,null,null,null,null,null,null,null,null,null,null,null,null,null,null,0,0,0,0,0,0,0,0,{"$f":"IF(OR(A371=0,B371=\"X\"),0,IF(OR(S371=\"FHDP\",S371=\"RHCP-B\",U371=\"FHDP\",U371=\"RHCP-B\",W371=\"FHDP\",W371=\"RHCP-B\",Y371=\"FHDP\",Y371=\"RHCP-B\"),TRUNC((MIN(I371,K371)*(1+'1. Checklist & Certification'!$K$43)+AP371)),0))","v":0},{"$f":"IF(OR(A371=0,B371=\"X\"),0,IF(OR(S371=\"CHRP-R\",S371=\"SERA\",S371=\"SUHRP\",U371=\"CHRP-R\",U371=\"SERA\",U371=\"SUHRP\",W371=\"CHRP-R\",W371=\"SERA\",W371=\"SUHRP\",Y371=\"CHRP-R\",Y371=\"SERA\",Y371=\"SUHRP\"),TRUNC((MIN(I371,K371)*(1+'1. Checklist & Certification'!$K$49))),0))","v":0},{"$f":"IF(OR(A371=0,B371=\"X\"),0,IF(OR(S371=\"CALDAP\",S371=\"DPRLP\",U371=\"CALDAP\",U371=\"DPRLP\",W371=\"CALDAP\",W371=\"DPRLP\",Y371=\"CALDAP\",Y371=\"DPRLP\"),TRUNC(((MIN(I371,K371))*(1+'1. Checklist & Certification'!$G$4))),0))","v":0},0,0,0,{"$f":"IF(OR(A371=0,B371=\"X\"),0,IF(OR(S371=\"PRP\",S371=\"LPR\",U371=\"PRP\",U371=\"LPR\",W371=\"PRP\",W371=\"LPR\",Y371=\"PRP\",Y371=\"LPR\"),MAX(I371+AP371,MIN(IF(AE371:AN371<>0,AE371:AN371))),MIN(IF(AE371:AN371<>0,AE371:AN371))))","v":0},{"$f":"IF(A371=0,0,IF(AND(OR(S371=\"Mgr\",S371=0),OR(U371=\"Mgr\",U371=0),OR(W371=\"Mgr\",W371=0)),0,IF(LEFT($A371,2)=\"B*\",VLOOKUP($E371,'1. Checklist & Certification'!$D$26:$E$32,2),IF(LEFT($A371,2)=\"C*\",VLOOKUP($E371,'1. Checklist & Certification'!$F$26:$G$32,2),IF(LEFT($A371,2)=\"D*\",VLOOKUP($E371,'1. Checklist & Certification'!$H$26:$I$32,2),IF(LEFT($A371,2)=\"E*\",VLOOKUP($E371,'1. Checklist & Certification'!$J$26:$K$32,2),VLOOKUP($E371,'1. Checklist & Certification'!$A$26:$B$32,2)))))))","v":0},0,0,null,null,null,null,"","",0,0,0,null,{"$f":"IF(A371=\"\",\"\",'1. Checklist & Certification'!$K$1)","v":""},{"$f":"IF(A371=\"\",\"\",'1. Checklist & Certification'!$C$62)","v":""},{"$f":"IF(A371=\"\",\"\",'1. Checklist & Certification'!$C$6)","v":""},{"$f":"IF(A371=\"\",\"\",'1. Checklist & Certification'!$G$5)","v":""},{"$f":"IFERROR(IF(A371=\"\",\"\",\n_xlfn.LET(_xlpm.Contract,'1. Checklist & Certification'!$C$7,\n_xlpm.Yr,TEXT(MOD(_xlfn.TEXTBEFORE(_xlpm.Contract,\"-\"),100),\"00\"),\n_xlpm.Program,_xlfn.TEXTAFTER(_xlfn.TEXTBEFORE(_xlpm.Contract,\"-\",2),\"-\"),\n_xlpm.CleanProgram,_xlfn.XLOOKUP(_xlpm.Program,SpellCheck[Input],SpellCheck[Correction],_xlpm.Program),\n_xlpm.Number,TEXT(_xlfn.TEXTAFTER(_xlpm.Contract,\"-\",2),\"0000\"),\n_xlfn.CONCAT(_xlpm.Yr,\"-\",_xlpm.CleanProgram,\"-\",_xlpm.Number))\n),\"\")","v":""},{"$f":"IFERROR(IF(A371=\"\",\"\",\n_xlfn.LET(_xlpm.Contract,'1. Checklist & Certification'!$C$8,\n_xlpm.Yr,TEXT(MOD(_xlfn.TEXTBEFORE(_xlpm.Contract,\"-\"),100),\"00\"),\n_xlpm.Program,_xlfn.TEXTAFTER(_xlfn.TEXTBEFORE(_xlpm.Contract,\"-\",2),\"-\"),\n_xlpm.CleanProgram,_xlfn.XLOOKUP(_xlpm.Program,SpellCheck[Input],SpellCheck[Correction],_xlpm.Program),\n_xlpm.Number,TEXT(_xlfn.TEXTAFTER(_xlpm.Contract,\"-\",2),\"0000\"),\n_xlfn.CONCAT(_xlpm.Yr,\"-\",_xlpm.CleanProgram,\"-\",_xlpm.Number))\n),\"\")","v":""},{"$f":"IFERROR(IF(A371=\"\",\"\",\n_xlfn.LET(_xlpm.Contract,'1. Checklist & Certification'!$F$7,\n_xlpm.Yr,TEXT(MOD(_xlfn.TEXTBEFORE(_xlpm.Contract,\"-\"),100),\"00\"),\n_xlpm.Program,_xlfn.TEXTAFTER(_xlfn.TEXTBEFORE(_xlpm.Contract,\"-\",2),\"-\"),\n_xlpm.CleanProgram,_xlfn.XLOOKUP(_xlpm.Program,SpellCheck[Input],SpellCheck[Correction],_xlpm.Program),\n_xlpm.Number,TEXT(_xlfn.TEXTAFTER(_xlpm.Contract,\"-\",2),\"0000\"),\n_xlfn.CONCAT(_xlpm.Yr,\"-\",_xlpm.CleanProgram,\"-\",_xlpm.Number))\n),\"\")","v":""},{"$f":"IFERROR(IF(A371=\"\",\"\",\n_xlfn.LET(_xlpm.Contract,'1. Checklist & Certification'!$F$8,\n_xlpm.Yr,TEXT(MOD(_xlfn.TEXTBEFORE(_xlpm.Contract,\"-\"),100),\"00\"),\n_xlpm.Program,_xlfn.TEXTAFTER(_xlfn.TEXTBEFORE(_xlpm.Contract,\"-\",2),\"-\"),\n_xlpm.CleanProgram,_xlfn.XLOOKUP(_xlpm.Program,SpellCheck[Input],SpellCheck[Correction],_xlpm.Program),\n_xlpm.Number,TEXT(_xlfn.TEXTAFTER(_xlpm.Contract,\"-\",2),\"0000\"),\n_xlfn.CONCAT(_xlpm.Yr,\"-\",_xlpm.CleanProgram,\"-\",_xlpm.Number))\n),\"\")","v":""},{"$f":"IF(A371=\"\",\"\",'1. Checklist & Certification'!$B$9)","v":""},{"$f":"IF(A371=\"\",\"\",'1. Checklist & Certification'!$F$9)","v":""},{"$f":"IF(A371=\"\",\"\",'1. Checklist & Certification'!$C$10)","v":""},{"$f":"IF(A371=\"\",\"\",'1. Checklist & Certification'!$C$11)","v":""},{"$f":"IF(A371=\"\",\"\",'1. Checklist & Certification'!$C$12)","v":""},{"$f":"IF(A371=\"\",\"\",'1. Checklist & Certification'!$B$14)","v":""},{"$f":"IF(A371=\"\",\"\",'1. Checklist & Certification'!$E$14)","v":""},{"$f":"IF(B371=\"\",\"\",'1. Checklist & Certification'!$G$14)","v":""},{"$f":"IF(A371=\"\",\"\",'MHP Family Income & Rent Limits'!$B$3)","v":""},{"$f":"IF(A371=\"\",\"\",'MHP Family Income & Rent Limits'!$J$3)","v":""},{"$f":"IF(A371=\"\",\"\",'MHP Family Income & Rent Limits'!$E$4)","v":""},{"$f":"IF(A371=\"\",\"\",'MHP Family Income & Rent Limits'!$C$7)","v":""},{"$f":"IF(A371=\"\",\"\",'MHP Family Income & Rent Limits'!$F$8)","v":""},{"$f":"IF(A371=\"\",\"\",'1. Checklist & Certification'!$G$4)","v":""},{"$f":"IF(A371=\"\",\"\",'1. Checklist & Certification'!$K$39)","v":""},{"$f":"IF(A371=\"\",\"\",'1. Checklist & Certification'!$K$43)","v":""},{"$f":"IF(A371=\"\",\"\",'1. Checklist & Certification'!$K$45)","v":""},{"$f":"IF(A371=\"\",\"\",'1. Checklist & Certification'!$K$49)","v":""},{"$f":"IF(A371=\"\",\"\",'1. Checklist & Certification'!$K$62)","v":""},{"$f":"IF(A371=\"\",\"\",'1. Checklist & Certification'!$E$66)","v":""},{"$f":"IF(A371=\"\",\"\",'1. Checklist & Certification'!$E$67)","v":""},{"$f":"IF(A371=\"\",\"\",'1. Checklist & Certification'!$E$68)","v":""},{"$f":"IF(A371=\"\",\"\",'1. Checklist & Certification'!$G$66)","v":""},{"$f":"IF(A371=\"\",\"\",'1. Checklist & Certification'!$H$66)","v":""},{"$f":"IF(A371=\"\",\"\",'1. Checklist & Certification'!$I$66)","v":""},{"$f":"IF(A371=\"\",\"\",'1. Checklist & Certification'!$I$67)","v":""},{"$f":"IF(A371=\"\",\"\",'1. Checklist & Certification'!$I$68)","v":""},{"$f":"IF(A371=\"\",\"\",'1. Checklist & Certification'!$B$69)","v":""},{"$f":"IF(A371=\"\",\"\",'1. Checklist & Certification'!$C$69)","v":""},{"$f":"IF(A371=\"\",\"\",'1. Checklist & Certification'!$F$69)","v":""},{"$f":"IF(A371=\"\",\"\",'1. Checklist & Certification'!$G$69)","v":""},{"$f":"IF(A371=\"\",\"\",'1. Checklist & Certification'!$J$69)","v":""},{"$f":"IF(A371=\"\",\"\",'1. Checklist & Certification'!$K$69)","v":""},null,null,{"$f":"IF(AND(OR('1. Checklist & Certification'!$M$16=1,'1. Checklist & Certification'!$M$19=2),AO371>0,B371=\"\",I371>0,AQ371<I371,AV371<>\"Sec 8-Project\"),\"X\",IF(AND(OR('1. Checklist & Certification'!$M$20=4,'1. Checklist & Certification'!$M$21=5,'1. Checklist & Certification'!$M$22=7),AO371>0,B371=\"\",I371>0,K371<I371),\"X\",\"\"))","v":""},{"$f":"IF(A371=\"\",\"\",IF(SUMPRODUCT(-- (ISNUMBER(SEARCH({\"*AHSC*\",\"*FMTW*\",\"*FWHG*\",\"*GHI*\",\"*HHC*\",\"*HLCP*\",\"*HOME*\",\"*LPR*\",\"*MHP*\",\"*NHTF*\",\"*NSP*\",\"*PRP*\",\"*TOD*\",\"*VHHP*\"},'1. Checklist & Certification'!$L$7)))),\"MHP\",\"Legacy\"))","v":""},",,",null,null,null,{"$f":"IF('1. Checklist & Certification'!$M$20=4,\"Both\",IF(OR('1. Checklist & Certification'!$M$15>0,S371=\"CHRP-R\",U371=\"CHRP-R\",W371=\"CHRP-R\",Y371=\"CHRP-R\"),\"Under\",\"No\"))","v":"No"},"No","No",{"$f":"_xlfn.IFS(D371=\"\",\"\",D371=1,'MHP Family Income & Rent Limits'!$E$17,D371=2,'MHP Family Income & Rent Limits'!$F$17,D371=3,'MHP Family Income & Rent Limits'!$G$17,D371=4,'MHP Family Income & Rent Limits'!$H$17,D371=5,'MHP Family Income & Rent Limits'!$I$17,D371=6,'MHP Family Income & Rent Limits'!$J$17,D371=7,'MHP Family Income & Rent Limits'!$K$17,D371=8,'MHP Family Income & Rent Limits'!$L$17)","v":""},"",{"$f":"IF(OR(A371=0,B371=\"X\"),0,MIN(IF(AA371:AD371<>0,AA371:AD371)))","v":0},{"$f":"IF(OR(H371=\"\",I371=\"\"),0,IF(H371*0.3/12>I371,MIN(H371*0.3/12,I371*1.1)+AP371,I371*(1+(VLOOKUP('1. Checklist & Certification'!$F$9,'HLCP-E Rent Change'!$A$1:$D$59,4,FALSE)))+AP371))","v":0}]
[null,null,null,null,null,null,null,null,null,null,null,null,null,null,null,null,null,null,null,null,null,null,null,null,null,null,0,0,0,0,0,0,0,0,{"$f":"IF(OR(A372=0,B372=\"X\"),0,IF(OR(S372=\"FHDP\",S372=\"RHCP-B\",U372=\"FHDP\",U372=\"RHCP-B\",W372=\"FHDP\",W372=\"RHCP-B\",Y372=\"FHDP\",Y372=\"RHCP-B\"),TRUNC((MIN(I372,K372)*(1+'1. Checklist & Certification'!$K$43)+AP372)),0))","v":0},{"$f":"IF(OR(A372=0,B372=\"X\"),0,IF(OR(S372=\"CHRP-R\",S372=\"SERA\",S372=\"SUHRP\",U372=\"CHRP-R\",U372=\"SERA\",U372=\"SUHRP\",W372=\"CHRP-R\",W372=\"SERA\",W372=\"SUHRP\",Y372=\"CHRP-R\",Y372=\"SERA\",Y372=\"SUHRP\"),TRUNC((MIN(I372,K372)*(1+'1. Checklist & Certification'!$K$49))),0))","v":0},{"$f":"IF(OR(A372=0,B372=\"X\"),0,IF(OR(S372=\"CALDAP\",S372=\"DPRLP\",U372=\"CALDAP\",U372=\"DPRLP\",W372=\"CALDAP\",W372=\"DPRLP\",Y372=\"CALDAP\",Y372=\"DPRLP\"),TRUNC(((MIN(I372,K372))*(1+'1. Checklist & Certification'!$G$4))),0))","v":0},0,0,0,{"$f":"IF(OR(A372=0,B372=\"X\"),0,IF(OR(S372=\"PRP\",S372=\"LPR\",U372=\"PRP\",U372=\"LPR\",W372=\"PRP\",W372=\"LPR\",Y372=\"PRP\",Y372=\"LPR\"),MAX(I372+AP372,MIN(IF(AE372:AN372<>0,AE372:AN372))),MIN(IF(AE372:AN372<>0,AE372:AN372))))","v":0},{"$f":"IF(A372=0,0,IF(AND(OR(S372=\"Mgr\",S372=0),OR(U372=\"Mgr\",U372=0),OR(W372=\"Mgr\",W372=0)),0,IF(LEFT($A372,2)=\"B*\",VLOOKUP($E372,'1. Checklist & Certification'!$D$26:$E$32,2),IF(LEFT($A372,2)=\"C*\",VLOOKUP($E372,'1. Checklist & Certification'!$F$26:$G$32,2),IF(LEFT($A372,2)=\"D*\",VLOOKUP($E372,'1. Checklist & Certification'!$H$26:$I$32,2),IF(LEFT($A372,2)=\"E*\",VLOOKUP($E372,'1. Checklist & Certification'!$J$26:$K$32,2),VLOOKUP($E372,'1. Checklist & Certification'!$A$26:$B$32,2)))))))","v":0},0,0,null,null,null,null,"","",0,0,0,null,{"$f":"IF(A372=\"\",\"\",'1. Checklist & Certification'!$K$1)","v":""},{"$f":"IF(A372=\"\",\"\",'1. Checklist & Certification'!$C$62)","v":""},{"$f":"IF(A372=\"\",\"\",'1. Checklist & Certification'!$C$6)","v":""},{"$f":"IF(A372=\"\",\"\",'1. Checklist & Certification'!$G$5)","v":""},{"$f":"IFERROR(IF(A372=\"\",\"\",\n_xlfn.LET(_xlpm.Contract,'1. Checklist & Certification'!$C$7,\n_xlpm.Yr,TEXT(MOD(_xlfn.TEXTBEFORE(_xlpm.Contract,\"-\"),100),\"00\"),\n_xlpm.Program,_xlfn.TEXTAFTER(_xlfn.TEXTBEFORE(_xlpm.Contract,\"-\",2),\"-\"),\n_xlpm.CleanProgram,_xlfn.XLOOKUP(_xlpm.Program,SpellCheck[Input],SpellCheck[Correction],_xlpm.Program),\n_xlpm.Number,TEXT(_xlfn.TEXTAFTER(_xlpm.Contract,\"-\",2),\"0000\"),\n_xlfn.CONCAT(_xlpm.Yr,\"-\",_xlpm.CleanProgram,\"-\",_xlpm.Number))\n),\"\")","v":""},{"$f":"IFERROR(IF(A372=\"\",\"\",\n_xlfn.LET(_xlpm.Contract,'1. Checklist & Certification'!$C$8,\n_xlpm.Yr,TEXT(MOD(_xlfn.TEXTBEFORE(_xlpm.Contract,\"-\"),100),\"00\"),\n_xlpm.Program,_xlfn.TEXTAFTER(_xlfn.TEXTBEFORE(_xlpm.Contract,\"-\",2),\"-\"),\n_xlpm.CleanProgram,_xlfn.XLOOKUP(_xlpm.Program,SpellCheck[Input],SpellCheck[Correction],_xlpm.Program),\n_xlpm.Number,TEXT(_xlfn.TEXTAFTER(_xlpm.Contract,\"-\",2),\"0000\"),\n_xlfn.CONCAT(_xlpm.Yr,\"-\",_xlpm.CleanProgram,\"-\",_xlpm.Number))\n),\"\")","v":""},{"$f":"IFERROR(IF(A372=\"\",\"\",\n_xlfn.LET(_xlpm.Contract,'1. Checklist & Certification'!$F$7,\n_xlpm.Yr,TEXT(MOD(_xlfn.TEXTBEFORE(_xlpm.Contract,\"-\"),100),\"00\"),\n_xlpm.Program,_xlfn.TEXTAFTER(_xlfn.TEXTBEFORE(_xlpm.Contract,\"-\",2),\"-\"),\n_xlpm.CleanProgram,_xlfn.XLOOKUP(_xlpm.Program,SpellCheck[Input],SpellCheck[Correction],_xlpm.Program),\n_xlpm.Number,TEXT(_xlfn.TEXTAFTER(_xlpm.Contract,\"-\",2),\"0000\"),\n_xlfn.CONCAT(_xlpm.Yr,\"-\",_xlpm.CleanProgram,\"-\",_xlpm.Number))\n),\"\")","v":""},{"$f":"IFERROR(IF(A372=\"\",\"\",\n_xlfn.LET(_xlpm.Contract,'1. Checklist & Certification'!$F$8,\n_xlpm.Yr,TEXT(MOD(_xlfn.TEXTBEFORE(_xlpm.Contract,\"-\"),100),\"00\"),\n_xlpm.Program,_xlfn.TEXTAFTER(_xlfn.TEXTBEFORE(_xlpm.Contract,\"-\",2),\"-\"),\n_xlpm.CleanProgram,_xlfn.XLOOKUP(_xlpm.Program,SpellCheck[Input],SpellCheck[Correction],_xlpm.Program),\n_xlpm.Number,TEXT(_xlfn.TEXTAFTER(_xlpm.Contract,\"-\",2),\"0000\"),\n_xlfn.CONCAT(_xlpm.Yr,\"-\",_xlpm.CleanProgram,\"-\",_xlpm.Number))\n),\"\")","v":""},{"$f":"IF(A372=\"\",\"\",'1. Checklist & Certification'!$B$9)","v":""},{"$f":"IF(A372=\"\",\"\",'1. Checklist & Certification'!$F$9)","v":""},{"$f":"IF(A372=\"\",\"\",'1. Checklist & Certification'!$C$10)","v":""},{"$f":"IF(A372=\"\",\"\",'1. Checklist & Certification'!$C$11)","v":""},{"$f":"IF(A372=\"\",\"\",'1. Checklist & Certification'!$C$12)","v":""},{"$f":"IF(A372=\"\",\"\",'1. Checklist & Certification'!$B$14)","v":""},{"$f":"IF(A372=\"\",\"\",'1. Checklist & Certification'!$E$14)","v":""},{"$f":"IF(B372=\"\",\"\",'1. Checklist & Certification'!$G$14)","v":""},{"$f":"IF(A372=\"\",\"\",'MHP Family Income & Rent Limits'!$B$3)","v":""},{"$f":"IF(A372=\"\",\"\",'MHP Family Income & Rent Limits'!$J$3)","v":""},{"$f":"IF(A372=\"\",\"\",'MHP Family Income & Rent Limits'!$E$4)","v":""},{"$f":"IF(A372=\"\",\"\",'MHP Family Income & Rent Limits'!$C$7)","v":""},{"$f":"IF(A372=\"\",\"\",'MHP Family Income & Rent Limits'!$F$8)","v":""},{"$f":"IF(A372=\"\",\"\",'1. Checklist & Certification'!$G$4)","v":""},{"$f":"IF(A372=\"\",\"\",'1. Checklist & Certification'!$K$39)","v":""},{"$f":"IF(A372=\"\",\"\",'1. Checklist & Certification'!$K$43)","v":""},{"$f":"IF(A372=\"\",\"\",'1. Checklist & Certification'!$K$45)","v":""},{"$f":"IF(A372=\"\",\"\",'1. Checklist & Certification'!$K$49)","v":""},{"$f":"IF(A372=\"\",\"\",'1. Checklist & Certification'!$K$62)","v":""},{"$f":"IF(A372=\"\",\"\",'1. Checklist & Certification'!$E$66)","v":""},{"$f":"IF(A372=\"\",\"\",'1. Checklist & Certification'!$E$67)","v":""},{"$f":"IF(A372=\"\",\"\",'1. Checklist & Certification'!$E$68)","v":""},{"$f":"IF(A372=\"\",\"\",'1. Checklist & Certification'!$G$66)","v":""},{"$f":"IF(A372=\"\",\"\",'1. Checklist & Certification'!$H$66)","v":""},{"$f":"IF(A372=\"\",\"\",'1. Checklist & Certification'!$I$66)","v":""},{"$f":"IF(A372=\"\",\"\",'1. Checklist & Certification'!$I$67)","v":""},{"$f":"IF(A372=\"\",\"\",'1. Checklist & Certification'!$I$68)","v":""},{"$f":"IF(A372=\"\",\"\",'1. Checklist & Certification'!$B$69)","v":""},{"$f":"IF(A372=\"\",\"\",'1. Checklist & Certification'!$C$69)","v":""},{"$f":"IF(A372=\"\",\"\",'1. Checklist & Certification'!$F$69)","v":""},{"$f":"IF(A372=\"\",\"\",'1. Checklist & Certification'!$G$69)","v":""},{"$f":"IF(A372=\"\",\"\",'1. Checklist & Certification'!$J$69)","v":""},{"$f":"IF(A372=\"\",\"\",'1. Checklist & Certification'!$K$69)","v":""},null,null,{"$f":"IF(AND(OR('1. Checklist & Certification'!$M$16=1,'1. Checklist & Certification'!$M$19=2),AO372>0,B372=\"\",I372>0,AQ372<I372,AV372<>\"Sec 8-Project\"),\"X\",IF(AND(OR('1. Checklist & Certification'!$M$20=4,'1. Checklist & Certification'!$M$21=5,'1. Checklist & Certification'!$M$22=7),AO372>0,B372=\"\",I372>0,K372<I372),\"X\",\"\"))","v":""},{"$f":"IF(A372=\"\",\"\",IF(SUMPRODUCT(-- (ISNUMBER(SEARCH({\"*AHSC*\",\"*FMTW*\",\"*FWHG*\",\"*GHI*\",\"*HHC*\",\"*HLCP*\",\"*HOME*\",\"*LPR*\",\"*MHP*\",\"*NHTF*\",\"*NSP*\",\"*PRP*\",\"*TOD*\",\"*VHHP*\"},'1. Checklist & Certification'!$L$7)))),\"MHP\",\"Legacy\"))","v":""},",,",null,null,null,{"$f":"IF('1. Checklist & Certification'!$M$20=4,\"Both\",IF(OR('1. Checklist & Certification'!$M$15>0,S372=\"CHRP-R\",U372=\"CHRP-R\",W372=\"CHRP-R\",Y372=\"CHRP-R\"),\"Under\",\"No\"))","v":"No"},"No","No",{"$f":"_xlfn.IFS(D372=\"\",\"\",D372=1,'MHP Family Income & Rent Limits'!$E$17,D372=2,'MHP Family Income & Rent Limits'!$F$17,D372=3,'MHP Family Income & Rent Limits'!$G$17,D372=4,'MHP Family Income & Rent Limits'!$H$17,D372=5,'MHP Family Income & Rent Limits'!$I$17,D372=6,'MHP Family Income & Rent Limits'!$J$17,D372=7,'MHP Family Income & Rent Limits'!$K$17,D372=8,'MHP Family Income & Rent Limits'!$L$17)","v":""},"",{"$f":"IF(OR(A372=0,B372=\"X\"),0,MIN(IF(AA372:AD372<>0,AA372:AD372)))","v":0},{"$f":"IF(OR(H372=\"\",I372=\"\"),0,IF(H372*0.3/12>I372,MIN(H372*0.3/12,I372*1.1)+AP372,I372*(1+(VLOOKUP('1. Checklist & Certification'!$F$9,'HLCP-E Rent Change'!$A$1:$D$59,4,FALSE)))+AP372))","v":0}]
[null,null,null,null,null,null,null,null,null,null,null,null,null,null,null,null,null,null,null,null,null,null,null,null,null,null,0,0,0,0,0,0,0,0,{"$f":"IF(OR(A373=0,B373=\"X\"),0,IF(OR(S373=\"FHDP\",S373=\"RHCP-B\",U373=\"FHDP\",U373=\"RHCP-B\",W373=\"FHDP\",W373=\"RHCP-B\",Y373=\"FHDP\",Y373=\"RHCP-B\"),TRUNC((MIN(I373,K373)*(1+'1. Checklist & Certification'!$K$43)+AP373)),0))","v":0},{"$f":"IF(OR(A373=0,B373=\"X\"),0,IF(OR(S373=\"CHRP-R\",S373=\"SERA\",S373=\"SUHRP\",U373=\"CHRP-R\",U373=\"SERA\",U373=\"SUHRP\",W373=\"CHRP-R\",W373=\"SERA\",W373=\"SUHRP\",Y373=\"CHRP-R\",Y373=\"SERA\",Y373=\"SUHRP\"),TRUNC((MIN(I373,K373)*(1+'1. Checklist & Certification'!$K$49))),0))","v":0},{"$f":"IF(OR(A373=0,B373=\"X\"),0,IF(OR(S373=\"CALDAP\",S373=\"DPRLP\",U373=\"CALDAP\",U373=\"DPRLP\",W373=\"CALDAP\",W373=\"DPRLP\",Y373=\"CALDAP\",Y373=\"DPRLP\"),TRUNC(((MIN(I373,K373))*(1+'1. Checklist & Certification'!$G$4))),0))","v":0},0,0,0,{"$f":"IF(OR(A373=0,B373=\"X\"),0,IF(OR(S373=\"PRP\",S373=\"LPR\",U373=\"PRP\",U373=\"LPR\",W373=\"PRP\",W373=\"LPR\",Y373=\"PRP\",Y373=\"LPR\"),MAX(I373+AP373,MIN(IF(AE373:AN373<>0,AE373:AN373))),MIN(IF(AE373:AN373<>0,AE373:AN373))))","v":0},{"$f":"IF(A373=0,0,IF(AND(OR(S373=\"Mgr\",S373=0),OR(U373=\"Mgr\",U373=0),OR(W373=\"Mgr\",W373=0)),0,IF(LEFT($A373,2)=\"B*\",VLOOKUP($E373,'1. Checklist & Certification'!$D$26:$E$32,2),IF(LEFT($A373,2)=\"C*\",VLOOKUP($E373,'1. Checklist & Certification'!$F$26:$G$32,2),IF(LEFT($A373,2)=\"D*\",VLOOKUP($E373,'1. Checklist & Certification'!$H$26:$I$32,2),IF(LEFT($A373,2)=\"E*\",VLOOKUP($E373,'1. Checklist & Certification'!$J$26:$K$32,2),VLOOKUP($E373,'1. Checklist & Certification'!$A$26:$B$32,2)))))))","v":0},0,0,null,null,null,null,"","",0,0,0,null,{"$f":"IF(A373=\"\",\"\",'1. Checklist & Certification'!$K$1)","v":""},{"$f":"IF(A373=\"\",\"\",'1. Checklist & Certification'!$C$62)","v":""},{"$f":"IF(A373=\"\",\"\",'1. Checklist & Certification'!$C$6)","v":""},{"$f":"IF(A373=\"\",\"\",'1. Checklist & Certification'!$G$5)","v":""},{"$f":"IFERROR(IF(A373=\"\",\"\",\n_xlfn.LET(_xlpm.Contract,'1. Checklist & Certification'!$C$7,\n_xlpm.Yr,TEXT(MOD(_xlfn.TEXTBEFORE(_xlpm.Contract,\"-\"),100),\"00\"),\n_xlpm.Program,_xlfn.TEXTAFTER(_xlfn.TEXTBEFORE(_xlpm.Contract,\"-\",2),\"-\"),\n_xlpm.CleanProgram,_xlfn.XLOOKUP(_xlpm.Program,SpellCheck[Input],SpellCheck[Correction],_xlpm.Program),\n_xlpm.Number,TEXT(_xlfn.TEXTAFTER(_xlpm.Contract,\"-\",2),\"0000\"),\n_xlfn.CONCAT(_xlpm.Yr,\"-\",_xlpm.CleanProgram,\"-\",_xlpm.Number))\n),\"\")","v":""},{"$f":"IFERROR(IF(A373=\"\",\"\",\n_xlfn.LET(_xlpm.Contract,'1. Checklist & Certification'!$C$8,\n_xlpm.Yr,TEXT(MOD(_xlfn.TEXTBEFORE(_xlpm.Contract,\"-\"),100),\"00\"),\n_xlpm.Program,_xlfn.TEXTAFTER(_xlfn.TEXTBEFORE(_xlpm.Contract,\"-\",2),\"-\"),\n_xlpm.CleanProgram,_xlfn.XLOOKUP(_xlpm.Program,SpellCheck[Input],SpellCheck[Correction],_xlpm.Program),\n_xlpm.Number,TEXT(_xlfn.TEXTAFTER(_xlpm.Contract,\"-\",2),\"0000\"),\n_xlfn.CONCAT(_xlpm.Yr,\"-\",_xlpm.CleanProgram,\"-\",_xlpm.Number))\n),\"\")","v":""},{"$f":"IFERROR(IF(A373=\"\",\"\",\n_xlfn.LET(_xlpm.Contract,'1. Checklist & Certification'!$F$7,\n_xlpm.Yr,TEXT(MOD(_xlfn.TEXTBEFORE(_xlpm.Contract,\"-\"),100),\"00\"),\n_xlpm.Program,_xlfn.TEXTAFTER(_xlfn.TEXTBEFORE(_xlpm.Contract,\"-\",2),\"-\"),\n_xlpm.CleanProgram,_xlfn.XLOOKUP(_xlpm.Program,SpellCheck[Input],SpellCheck[Correction],_xlpm.Program),\n_xlpm.Number,TEXT(_xlfn.TEXTAFTER(_xlpm.Contract,\"-\",2),\"0000\"),\n_xlfn.CONCAT(_xlpm.Yr,\"-\",_xlpm.CleanProgram,\"-\",_xlpm.Number))\n),\"\")","v":""},{"$f":"IFERROR(IF(A373=\"\",\"\",\n_xlfn.LET(_xlpm.Contract,'1. Checklist & Certification'!$F$8,\n_xlpm.Yr,TEXT(MOD(_xlfn.TEXTBEFORE(_xlpm.Contract,\"-\"),100),\"00\"),\n_xlpm.Program,_xlfn.TEXTAFTER(_xlfn.TEXTBEFORE(_xlpm.Contract,\"-\",2),\"-\"),\n_xlpm.CleanProgram,_xlfn.XLOOKUP(_xlpm.Program,SpellCheck[Input],SpellCheck[Correction],_xlpm.Program),\n_xlpm.Number,TEXT(_xlfn.TEXTAFTER(_xlpm.Contract,\"-\",2),\"0000\"),\n_xlfn.CONCAT(_xlpm.Yr,\"-\",_xlpm.CleanProgram,\"-\",_xlpm.Number))\n),\"\")","v":""},{"$f":"IF(A373=\"\",\"\",'1. Checklist & Certification'!$B$9)","v":""},{"$f":"IF(A373=\"\",\"\",'1. Checklist & Certification'!$F$9)","v":""},{"$f":"IF(A373=\"\",\"\",'1. Checklist & Certification'!$C$10)","v":""},{"$f":"IF(A373=\"\",\"\",'1. Checklist & Certification'!$C$11)","v":""},{"$f":"IF(A373=\"\",\"\",'1. Checklist & Certification'!$C$12)","v":""},{"$f":"IF(A373=\"\",\"\",'1. Checklist & Certification'!$B$14)","v":""},{"$f":"IF(A373=\"\",\"\",'1. Checklist & Certification'!$E$14)","v":""},{"$f":"IF(B373=\"\",\"\",'1. Checklist & Certification'!$G$14)","v":""},{"$f":"IF(A373=\"\",\"\",'MHP Family Income & Rent Limits'!$B$3)","v":""},{"$f":"IF(A373=\"\",\"\",'MHP Family Income & Rent Limits'!$J$3)","v":""},{"$f":"IF(A373=\"\",\"\",'MHP Family Income & Rent Limits'!$E$4)","v":""},{"$f":"IF(A373=\"\",\"\",'MHP Family Income & Rent Limits'!$C$7)","v":""},{"$f":"IF(A373=\"\",\"\",'MHP Family Income & Rent Limits'!$F$8)","v":""},{"$f":"IF(A373=\"\",\"\",'1. Checklist & Certification'!$G$4)","v":""},{"$f":"IF(A373=\"\",\"\",'1. Checklist & Certification'!$K$39)","v":""},{"$f":"IF(A373=\"\",\"\",'1. Checklist & Certification'!$K$43)","v":""},{"$f":"IF(A373=\"\",\"\",'1. Checklist & Certification'!$K$45)","v":""},{"$f":"IF(A373=\"\",\"\",'1. Checklist & Certification'!$K$49)","v":""},{"$f":"IF(A373=\"\",\"\",'1. Checklist & Certification'!$K$62)","v":""},{"$f":"IF(A373=\"\",\"\",'1. Checklist & Certification'!$E$66)","v":""},{"$f":"IF(A373=\"\",\"\",'1. Checklist & Certification'!$E$67)","v":""},{"$f":"IF(A373=\"\",\"\",'1. Checklist & Certification'!$E$68)","v":""},{"$f":"IF(A373=\"\",\"\",'1. Checklist & Certification'!$G$66)","v":""},{"$f":"IF(A373=\"\",\"\",'1. Checklist & Certification'!$H$66)","v":""},{"$f":"IF(A373=\"\",\"\",'1. Checklist & Certification'!$I$66)","v":""},{"$f":"IF(A373=\"\",\"\",'1. Checklist & Certification'!$I$67)","v":""},{"$f":"IF(A373=\"\",\"\",'1. Checklist & Certification'!$I$68)","v":""},{"$f":"IF(A373=\"\",\"\",'1. Checklist & Certification'!$B$69)","v":""},{"$f":"IF(A373=\"\",\"\",'1. Checklist & Certification'!$C$69)","v":""},{"$f":"IF(A373=\"\",\"\",'1. Checklist & Certification'!$F$69)","v":""},{"$f":"IF(A373=\"\",\"\",'1. Checklist & Certification'!$G$69)","v":""},{"$f":"IF(A373=\"\",\"\",'1. Checklist & Certification'!$J$69)","v":""},{"$f":"IF(A373=\"\",\"\",'1. Checklist & Certification'!$K$69)","v":""},null,null,{"$f":"IF(AND(OR('1. Checklist & Certification'!$M$16=1,'1. Checklist & Certification'!$M$19=2),AO373>0,B373=\"\",I373>0,AQ373<I373,AV373<>\"Sec 8-Project\"),\"X\",IF(AND(OR('1. Checklist & Certification'!$M$20=4,'1. Checklist & Certification'!$M$21=5,'1. Checklist & Certification'!$M$22=7),AO373>0,B373=\"\",I373>0,K373<I373),\"X\",\"\"))","v":""},{"$f":"IF(A373=\"\",\"\",IF(SUMPRODUCT(-- (ISNUMBER(SEARCH({\"*AHSC*\",\"*FMTW*\",\"*FWHG*\",\"*GHI*\",\"*HHC*\",\"*HLCP*\",\"*HOME*\",\"*LPR*\",\"*MHP*\",\"*NHTF*\",\"*NSP*\",\"*PRP*\",\"*TOD*\",\"*VHHP*\"},'1. Checklist & Certification'!$L$7)))),\"MHP\",\"Legacy\"))","v":""},",,",null,null,null,{"$f":"IF('1. Checklist & Certification'!$M$20=4,\"Both\",IF(OR('1. Checklist & Certification'!$M$15>0,S373=\"CHRP-R\",U373=\"CHRP-R\",W373=\"CHRP-R\",Y373=\"CHRP-R\"),\"Under\",\"No\"))","v":"No"},"No","No",{"$f":"_xlfn.IFS(D373=\"\",\"\",D373=1,'MHP Family Income & Rent Limits'!$E$17,D373=2,'MHP Family Income & Rent Limits'!$F$17,D373=3,'MHP Family Income & Rent Limits'!$G$17,D373=4,'MHP Family Income & Rent Limits'!$H$17,D373=5,'MHP Family Income & Rent Limits'!$I$17,D373=6,'MHP Family Income & Rent Limits'!$J$17,D373=7,'MHP Family Income & Rent Limits'!$K$17,D373=8,'MHP Family Income & Rent Limits'!$L$17)","v":""},"",{"$f":"IF(OR(A373=0,B373=\"X\"),0,MIN(IF(AA373:AD373<>0,AA373:AD373)))","v":0},{"$f":"IF(OR(H373=\"\",I373=\"\"),0,IF(H373*0.3/12>I373,MIN(H373*0.3/12,I373*1.1)+AP373,I373*(1+(VLOOKUP('1. Checklist & Certification'!$F$9,'HLCP-E Rent Change'!$A$1:$D$59,4,FALSE)))+AP373))","v":0}]
[null,null,null,null,null,null,null,null,null,null,null,null,null,null,null,null,null,null,null,null,null,null,null,null,null,null,0,0,0,0,0,0,0,0,{"$f":"IF(OR(A374=0,B374=\"X\"),0,IF(OR(S374=\"FHDP\",S374=\"RHCP-B\",U374=\"FHDP\",U374=\"RHCP-B\",W374=\"FHDP\",W374=\"RHCP-B\",Y374=\"FHDP\",Y374=\"RHCP-B\"),TRUNC((MIN(I374,K374)*(1+'1. Checklist & Certification'!$K$43)+AP374)),0))","v":0},{"$f":"IF(OR(A374=0,B374=\"X\"),0,IF(OR(S374=\"CHRP-R\",S374=\"SERA\",S374=\"SUHRP\",U374=\"CHRP-R\",U374=\"SERA\",U374=\"SUHRP\",W374=\"CHRP-R\",W374=\"SERA\",W374=\"SUHRP\",Y374=\"CHRP-R\",Y374=\"SERA\",Y374=\"SUHRP\"),TRUNC((MIN(I374,K374)*(1+'1. Checklist & Certification'!$K$49))),0))","v":0},{"$f":"IF(OR(A374=0,B374=\"X\"),0,IF(OR(S374=\"CALDAP\",S374=\"DPRLP\",U374=\"CALDAP\",U374=\"DPRLP\",W374=\"CALDAP\",W374=\"DPRLP\",Y374=\"CALDAP\",Y374=\"DPRLP\"),TRUNC(((MIN(I374,K374))*(1+'1. Checklist & Certification'!$G$4))),0))","v":0},0,0,0,{"$f":"IF(OR(A374=0,B374=\"X\"),0,IF(OR(S374=\"PRP\",S374=\"LPR\",U374=\"PRP\",U374=\"LPR\",W374=\"PRP\",W374=\"LPR\",Y374=\"PRP\",Y374=\"LPR\"),MAX(I374+AP374,MIN(IF(AE374:AN374<>0,AE374:AN374))),MIN(IF(AE374:AN374<>0,AE374:AN374))))","v":0},{"$f":"IF(A374=0,0,IF(AND(OR(S374=\"Mgr\",S374=0),OR(U374=\"Mgr\",U374=0),OR(W374=\"Mgr\",W374=0)),0,IF(LEFT($A374,2)=\"B*\",VLOOKUP($E374,'1. Checklist & Certification'!$D$26:$E$32,2),IF(LEFT($A374,2)=\"C*\",VLOOKUP($E374,'1. Checklist & Certification'!$F$26:$G$32,2),IF(LEFT($A374,2)=\"D*\",VLOOKUP($E374,'1. Checklist & Certification'!$H$26:$I$32,2),IF(LEFT($A374,2)=\"E*\",VLOOKUP($E374,'1. Checklist & Certification'!$J$26:$K$32,2),VLOOKUP($E374,'1. Checklist & Certification'!$A$26:$B$32,2)))))))","v":0},0,0,null,null,null,null,"","",0,0,0,null,{"$f":"IF(A374=\"\",\"\",'1. Checklist & Certification'!$K$1)","v":""},{"$f":"IF(A374=\"\",\"\",'1. Checklist & Certification'!$C$62)","v":""},{"$f":"IF(A374=\"\",\"\",'1. Checklist & Certification'!$C$6)","v":""},{"$f":"IF(A374=\"\",\"\",'1. Checklist & Certification'!$G$5)","v":""},{"$f":"IFERROR(IF(A374=\"\",\"\",\n_xlfn.LET(_xlpm.Contract,'1. Checklist & Certification'!$C$7,\n_xlpm.Yr,TEXT(MOD(_xlfn.TEXTBEFORE(_xlpm.Contract,\"-\"),100),\"00\"),\n_xlpm.Program,_xlfn.TEXTAFTER(_xlfn.TEXTBEFORE(_xlpm.Contract,\"-\",2),\"-\"),\n_xlpm.CleanProgram,_xlfn.XLOOKUP(_xlpm.Program,SpellCheck[Input],SpellCheck[Correction],_xlpm.Program),\n_xlpm.Number,TEXT(_xlfn.TEXTAFTER(_xlpm.Contract,\"-\",2),\"0000\"),\n_xlfn.CONCAT(_xlpm.Yr,\"-\",_xlpm.CleanProgram,\"-\",_xlpm.Number))\n),\"\")","v":""},{"$f":"IFERROR(IF(A374=\"\",\"\",\n_xlfn.LET(_xlpm.Contract,'1. Checklist & Certification'!$C$8,\n_xlpm.Yr,TEXT(MOD(_xlfn.TEXTBEFORE(_xlpm.Contract,\"-\"),100),\"00\"),\n_xlpm.Program,_xlfn.TEXTAFTER(_xlfn.TEXTBEFORE(_xlpm.Contract,\"-\",2),\"-\"),\n_xlpm.CleanProgram,_xlfn.XLOOKUP(_xlpm.Program,SpellCheck[Input],SpellCheck[Correction],_xlpm.Program),\n_xlpm.Number,TEXT(_xlfn.TEXTAFTER(_xlpm.Contract,\"-\",2),\"0000\"),\n_xlfn.CONCAT(_xlpm.Yr,\"-\",_xlpm.CleanProgram,\"-\",_xlpm.Number))\n),\"\")","v":""},{"$f":"IFERROR(IF(A374=\"\",\"\",\n_xlfn.LET(_xlpm.Contract,'1. Checklist & Certification'!$F$7,\n_xlpm.Yr,TEXT(MOD(_xlfn.TEXTBEFORE(_xlpm.Contract,\"-\"),100),\"00\"),\n_xlpm.Program,_xlfn.TEXTAFTER(_xlfn.TEXTBEFORE(_xlpm.Contract,\"-\",2),\"-\"),\n_xlpm.CleanProgram,_xlfn.XLOOKUP(_xlpm.Program,SpellCheck[Input],SpellCheck[Correction],_xlpm.Program),\n_xlpm.Number,TEXT(_xlfn.TEXTAFTER(_xlpm.Contract,\"-\",2),\"0000\"),\n_xlfn.CONCAT(_xlpm.Yr,\"-\",_xlpm.CleanProgram,\"-\",_xlpm.Number))\n),\"\")","v":""},{"$f":"IFERROR(IF(A374=\"\",\"\",\n_xlfn.LET(_xlpm.Contract,'1. Checklist & Certification'!$F$8,\n_xlpm.Yr,TEXT(MOD(_xlfn.TEXTBEFORE(_xlpm.Contract,\"-\"),100),\"00\"),\n_xlpm.Program,_xlfn.TEXTAFTER(_xlfn.TEXTBEFORE(_xlpm.Contract,\"-\",2),\"-\"),\n_xlpm.CleanProgram,_xlfn.XLOOKUP(_xlpm.Program,SpellCheck[Input],SpellCheck[Correction],_xlpm.Program),\n_xlpm.Number,TEXT(_xlfn.TEXTAFTER(_xlpm.Contract,\"-\",2),\"0000\"),\n_xlfn.CONCAT(_xlpm.Yr,\"-\",_xlpm.CleanProgram,\"-\",_xlpm.Number))\n),\"\")","v":""},{"$f":"IF(A374=\"\",\"\",'1. Checklist & Certification'!$B$9)","v":""},{"$f":"IF(A374=\"\",\"\",'1. Checklist & Certification'!$F$9)","v":""},{"$f":"IF(A374=\"\",\"\",'1. Checklist & Certification'!$C$10)","v":""},{"$f":"IF(A374=\"\",\"\",'1. Checklist & Certification'!$C$11)","v":""},{"$f":"IF(A374=\"\",\"\",'1. Checklist & Certification'!$C$12)","v":""},{"$f":"IF(A374=\"\",\"\",'1. Checklist & Certification'!$B$14)","v":""},{"$f":"IF(A374=\"\",\"\",'1. Checklist & Certification'!$E$14)","v":""},{"$f":"IF(B374=\"\",\"\",'1. Checklist & Certification'!$G$14)","v":""},{"$f":"IF(A374=\"\",\"\",'MHP Family Income & Rent Limits'!$B$3)","v":""},{"$f":"IF(A374=\"\",\"\",'MHP Family Income & Rent Limits'!$J$3)","v":""},{"$f":"IF(A374=\"\",\"\",'MHP Family Income & Rent Limits'!$E$4)","v":""},{"$f":"IF(A374=\"\",\"\",'MHP Family Income & Rent Limits'!$C$7)","v":""},{"$f":"IF(A374=\"\",\"\",'MHP Family Income & Rent Limits'!$F$8)","v":""},{"$f":"IF(A374=\"\",\"\",'1. Checklist & Certification'!$G$4)","v":""},{"$f":"IF(A374=\"\",\"\",'1. Checklist & Certification'!$K$39)","v":""},{"$f":"IF(A374=\"\",\"\",'1. Checklist & Certification'!$K$43)","v":""},{"$f":"IF(A374=\"\",\"\",'1. Checklist & Certification'!$K$45)","v":""},{"$f":"IF(A374=\"\",\"\",'1. Checklist & Certification'!$K$49)","v":""},{"$f":"IF(A374=\"\",\"\",'1. Checklist & Certification'!$K$62)","v":""},{"$f":"IF(A374=\"\",\"\",'1. Checklist & Certification'!$E$66)","v":""},{"$f":"IF(A374=\"\",\"\",'1. Checklist & Certification'!$E$67)","v":""},{"$f":"IF(A374=\"\",\"\",'1. Checklist & Certification'!$E$68)","v":""},{"$f":"IF(A374=\"\",\"\",'1. Checklist & Certification'!$G$66)","v":""},{"$f":"IF(A374=\"\",\"\",'1. Checklist & Certification'!$H$66)","v":""},{"$f":"IF(A374=\"\",\"\",'1. Checklist & Certification'!$I$66)","v":""},{"$f":"IF(A374=\"\",\"\",'1. Checklist & Certification'!$I$67)","v":""},{"$f":"IF(A374=\"\",\"\",'1. Checklist & Certification'!$I$68)","v":""},{"$f":"IF(A374=\"\",\"\",'1. Checklist & Certification'!$B$69)","v":""},{"$f":"IF(A374=\"\",\"\",'1. Checklist & Certification'!$C$69)","v":""},{"$f":"IF(A374=\"\",\"\",'1. Checklist & Certification'!$F$69)","v":""},{"$f":"IF(A374=\"\",\"\",'1. Checklist & Certification'!$G$69)","v":""},{"$f":"IF(A374=\"\",\"\",'1. Checklist & Certification'!$J$69)","v":""},{"$f":"IF(A374=\"\",\"\",'1. Checklist & Certification'!$K$69)","v":""},null,null,{"$f":"IF(AND(OR('1. Checklist & Certification'!$M$16=1,'1. Checklist & Certification'!$M$19=2),AO374>0,B374=\"\",I374>0,AQ374<I374,AV374<>\"Sec 8-Project\"),\"X\",IF(AND(OR('1. Checklist & Certification'!$M$20=4,'1. Checklist & Certification'!$M$21=5,'1. Checklist & Certification'!$M$22=7),AO374>0,B374=\"\",I374>0,K374<I374),\"X\",\"\"))","v":""},{"$f":"IF(A374=\"\",\"\",IF(SUMPRODUCT(-- (ISNUMBER(SEARCH({\"*AHSC*\",\"*FMTW*\",\"*FWHG*\",\"*GHI*\",\"*HHC*\",\"*HLCP*\",\"*HOME*\",\"*LPR*\",\"*MHP*\",\"*NHTF*\",\"*NSP*\",\"*PRP*\",\"*TOD*\",\"*VHHP*\"},'1. Checklist & Certification'!$L$7)))),\"MHP\",\"Legacy\"))","v":""},",,",null,null,null,{"$f":"IF('1. Checklist & Certification'!$M$20=4,\"Both\",IF(OR('1. Checklist & Certification'!$M$15>0,S374=\"CHRP-R\",U374=\"CHRP-R\",W374=\"CHRP-R\",Y374=\"CHRP-R\"),\"Under\",\"No\"))","v":"No"},"No","No",{"$f":"_xlfn.IFS(D374=\"\",\"\",D374=1,'MHP Family Income & Rent Limits'!$E$17,D374=2,'MHP Family Income & Rent Limits'!$F$17,D374=3,'MHP Family Income & Rent Limits'!$G$17,D374=4,'MHP Family Income & Rent Limits'!$H$17,D374=5,'MHP Family Income & Rent Limits'!$I$17,D374=6,'MHP Family Income & Rent Limits'!$J$17,D374=7,'MHP Family Income & Rent Limits'!$K$17,D374=8,'MHP Family Income & Rent Limits'!$L$17)","v":""},"",{"$f":"IF(OR(A374=0,B374=\"X\"),0,MIN(IF(AA374:AD374<>0,AA374:AD374)))","v":0},{"$f":"IF(OR(H374=\"\",I374=\"\"),0,IF(H374*0.3/12>I374,MIN(H374*0.3/12,I374*1.1)+AP374,I374*(1+(VLOOKUP('1. Checklist & Certification'!$F$9,'HLCP-E Rent Change'!$A$1:$D$59,4,FALSE)))+AP374))","v":0}]
[null,null,null,null,null,null,null,null,null,null,null,null,null,null,null,null,null,null,null,null,null,null,null,null,null,null,0,0,0,0,0,0,0,0,{"$f":"IF(OR(A375=0,B375=\"X\"),0,IF(OR(S375=\"FHDP\",S375=\"RHCP-B\",U375=\"FHDP\",U375=\"RHCP-B\",W375=\"FHDP\",W375=\"RHCP-B\",Y375=\"FHDP\",Y375=\"RHCP-B\"),TRUNC((MIN(I375,K375)*(1+'1. Checklist & Certification'!$K$43)+AP375)),0))","v":0},{"$f":"IF(OR(A375=0,B375=\"X\"),0,IF(OR(S375=\"CHRP-R\",S375=\"SERA\",S375=\"SUHRP\",U375=\"CHRP-R\",U375=\"SERA\",U375=\"SUHRP\",W375=\"CHRP-R\",W375=\"SERA\",W375=\"SUHRP\",Y375=\"CHRP-R\",Y375=\"SERA\",Y375=\"SUHRP\"),TRUNC((MIN(I375,K375)*(1+'1. Checklist & Certification'!$K$49))),0))","v":0},{"$f":"IF(OR(A375=0,B375=\"X\"),0,IF(OR(S375=\"CALDAP\",S375=\"DPRLP\",U375=\"CALDAP\",U375=\"DPRLP\",W375=\"CALDAP\",W375=\"DPRLP\",Y375=\"CALDAP\",Y375=\"DPRLP\"),TRUNC(((MIN(I375,K375))*(1+'1. Checklist & Certification'!$G$4))),0))","v":0},0,0,0,{"$f":"IF(OR(A375=0,B375=\"X\"),0,IF(OR(S375=\"PRP\",S375=\"LPR\",U375=\"PRP\",U375=\"LPR\",W375=\"PRP\",W375=\"LPR\",Y375=\"PRP\",Y375=\"LPR\"),MAX(I375+AP375,MIN(IF(AE375:AN375<>0,AE375:AN375))),MIN(IF(AE375:AN375<>0,AE375:AN375))))","v":0},{"$f":"IF(A375=0,0,IF(AND(OR(S375=\"Mgr\",S375=0),OR(U375=\"Mgr\",U375=0),OR(W375=\"Mgr\",W375=0)),0,IF(LEFT($A375,2)=\"B*\",VLOOKUP($E375,'1. Checklist & Certification'!$D$26:$E$32,2),IF(LEFT($A375,2)=\"C*\",VLOOKUP($E375,'1. Checklist & Certification'!$F$26:$G$32,2),IF(LEFT($A375,2)=\"D*\",VLOOKUP($E375,'1. Checklist & Certification'!$H$26:$I$32,2),IF(LEFT($A375,2)=\"E*\",VLOOKUP($E375,'1. Checklist & Certification'!$J$26:$K$32,2),VLOOKUP($E375,'1. Checklist & Certification'!$A$26:$B$32,2)))))))","v":0},0,0,null,null,null,null,"","",0,0,0,null,{"$f":"IF(A375=\"\",\"\",'1. Checklist & Certification'!$K$1)","v":""},{"$f":"IF(A375=\"\",\"\",'1. Checklist & Certification'!$C$62)","v":""},{"$f":"IF(A375=\"\",\"\",'1. Checklist & Certification'!$C$6)","v":""},{"$f":"IF(A375=\"\",\"\",'1. Checklist & Certification'!$G$5)","v":""},{"$f":"IFERROR(IF(A375=\"\",\"\",\n_xlfn.LET(_xlpm.Contract,'1. Checklist & Certification'!$C$7,\n_xlpm.Yr,TEXT(MOD(_xlfn.TEXTBEFORE(_xlpm.Contract,\"-\"),100),\"00\"),\n_xlpm.Program,_xlfn.TEXTAFTER(_xlfn.TEXTBEFORE(_xlpm.Contract,\"-\",2),\"-\"),\n_xlpm.CleanProgram,_xlfn.XLOOKUP(_xlpm.Program,SpellCheck[Input],SpellCheck[Correction],_xlpm.Program),\n_xlpm.Number,TEXT(_xlfn.TEXTAFTER(_xlpm.Contract,\"-\",2),\"0000\"),\n_xlfn.CONCAT(_xlpm.Yr,\"-\",_xlpm.CleanProgram,\"-\",_xlpm.Number))\n),\"\")","v":""},{"$f":"IFERROR(IF(A375=\"\",\"\",\n_xlfn.LET(_xlpm.Contract,'1. Checklist & Certification'!$C$8,\n_xlpm.Yr,TEXT(MOD(_xlfn.TEXTBEFORE(_xlpm.Contract,\"-\"),100),\"00\"),\n_xlpm.Program,_xlfn.TEXTAFTER(_xlfn.TEXTBEFORE(_xlpm.Contract,\"-\",2),\"-\"),\n_xlpm.CleanProgram,_xlfn.XLOOKUP(_xlpm.Program,SpellCheck[Input],SpellCheck[Correction],_xlpm.Program),\n_xlpm.Number,TEXT(_xlfn.TEXTAFTER(_xlpm.Contract,\"-\",2),\"0000\"),\n_xlfn.CONCAT(_xlpm.Yr,\"-\",_xlpm.CleanProgram,\"-\",_xlpm.Number))\n),\"\")","v":""},{"$f":"IFERROR(IF(A375=\"\",\"\",\n_xlfn.LET(_xlpm.Contract,'1. Checklist & Certification'!$F$7,\n_xlpm.Yr,TEXT(MOD(_xlfn.TEXTBEFORE(_xlpm.Contract,\"-\"),100),\"00\"),\n_xlpm.Program,_xlfn.TEXTAFTER(_xlfn.TEXTBEFORE(_xlpm.Contract,\"-\",2),\"-\"),\n_xlpm.CleanProgram,_xlfn.XLOOKUP(_xlpm.Program,SpellCheck[Input],SpellCheck[Correction],_xlpm.Program),\n_xlpm.Number,TEXT(_xlfn.TEXTAFTER(_xlpm.Contract,\"-\",2),\"0000\"),\n_xlfn.CONCAT(_xlpm.Yr,\"-\",_xlpm.CleanProgram,\"-\",_xlpm.Number))\n),\"\")","v":""},{"$f":"IFERROR(IF(A375=\"\",\"\",\n_xlfn.LET(_xlpm.Contract,'1. Checklist & Certification'!$F$8,\n_xlpm.Yr,TEXT(MOD(_xlfn.TEXTBEFORE(_xlpm.Contract,\"-\"),100),\"00\"),\n_xlpm.Program,_xlfn.TEXTAFTER(_xlfn.TEXTBEFORE(_xlpm.Contract,\"-\",2),\"-\"),\n_xlpm.CleanProgram,_xlfn.XLOOKUP(_xlpm.Program,SpellCheck[Input],SpellCheck[Correction],_xlpm.Program),\n_xlpm.Number,TEXT(_xlfn.TEXTAFTER(_xlpm.Contract,\"-\",2),\"0000\"),\n_xlfn.CONCAT(_xlpm.Yr,\"-\",_xlpm.CleanProgram,\"-\",_xlpm.Number))\n),\"\")","v":""},{"$f":"IF(A375=\"\",\"\",'1. Checklist & Certification'!$B$9)","v":""},{"$f":"IF(A375=\"\",\"\",'1. Checklist & Certification'!$F$9)","v":""},{"$f":"IF(A375=\"\",\"\",'1. Checklist & Certification'!$C$10)","v":""},{"$f":"IF(A375=\"\",\"\",'1. Checklist & Certification'!$C$11)","v":""},{"$f":"IF(A375=\"\",\"\",'1. Checklist & Certification'!$C$12)","v":""},{"$f":"IF(A375=\"\",\"\",'1. Checklist & Certification'!$B$14)","v":""},{"$f":"IF(A375=\"\",\"\",'1. Checklist & Certification'!$E$14)","v":""},{"$f":"IF(B375=\"\",\"\",'1. Checklist & Certification'!$G$14)","v":""},{"$f":"IF(A375=\"\",\"\",'MHP Family Income & Rent Limits'!$B$3)","v":""},{"$f":"IF(A375=\"\",\"\",'MHP Family Income & Rent Limits'!$J$3)","v":""},{"$f":"IF(A375=\"\",\"\",'MHP Family Income & Rent Limits'!$E$4)","v":""},{"$f":"IF(A375=\"\",\"\",'MHP Family Income & Rent Limits'!$C$7)","v":""},{"$f":"IF(A375=\"\",\"\",'MHP Family Income & Rent Limits'!$F$8)","v":""},{"$f":"IF(A375=\"\",\"\",'1. Checklist & Certification'!$G$4)","v":""},{"$f":"IF(A375=\"\",\"\",'1. Checklist & Certification'!$K$39)","v":""},{"$f":"IF(A375=\"\",\"\",'1. Checklist & Certification'!$K$43)","v":""},{"$f":"IF(A375=\"\",\"\",'1. Checklist & Certification'!$K$45)","v":""},{"$f":"IF(A375=\"\",\"\",'1. Checklist & Certification'!$K$49)","v":""},{"$f":"IF(A375=\"\",\"\",'1. Checklist & Certification'!$K$62)","v":""},{"$f":"IF(A375=\"\",\"\",'1. Checklist & Certification'!$E$66)","v":""},{"$f":"IF(A375=\"\",\"\",'1. Checklist & Certification'!$E$67)","v":""},{"$f":"IF(A375=\"\",\"\",'1. Checklist & Certification'!$E$68)","v":""},{"$f":"IF(A375=\"\",\"\",'1. Checklist & Certification'!$G$66)","v":""},{"$f":"IF(A375=\"\",\"\",'1. Checklist & Certification'!$H$66)","v":""},{"$f":"IF(A375=\"\",\"\",'1. Checklist & Certification'!$I$66)","v":""},{"$f":"IF(A375=\"\",\"\",'1. Checklist & Certification'!$I$67)","v":""},{"$f":"IF(A375=\"\",\"\",'1. Checklist & Certification'!$I$68)","v":""},{"$f":"IF(A375=\"\",\"\",'1. Checklist & Certification'!$B$69)","v":""},{"$f":"IF(A375=\"\",\"\",'1. Checklist & Certification'!$C$69)","v":""},{"$f":"IF(A375=\"\",\"\",'1. Checklist & Certification'!$F$69)","v":""},{"$f":"IF(A375=\"\",\"\",'1. Checklist & Certification'!$G$69)","v":""},{"$f":"IF(A375=\"\",\"\",'1. Checklist & Certification'!$J$69)","v":""},{"$f":"IF(A375=\"\",\"\",'1. Checklist & Certification'!$K$69)","v":""},null,null,{"$f":"IF(AND(OR('1. Checklist & Certification'!$M$16=1,'1. Checklist & Certification'!$M$19=2),AO375>0,B375=\"\",I375>0,AQ375<I375,AV375<>\"Sec 8-Project\"),\"X\",IF(AND(OR('1. Checklist & Certification'!$M$20=4,'1. Checklist & Certification'!$M$21=5,'1. Checklist & Certification'!$M$22=7),AO375>0,B375=\"\",I375>0,K375<I375),\"X\",\"\"))","v":""},{"$f":"IF(A375=\"\",\"\",IF(SUMPRODUCT(-- (ISNUMBER(SEARCH({\"*AHSC*\",\"*FMTW*\",\"*FWHG*\",\"*GHI*\",\"*HHC*\",\"*HLCP*\",\"*HOME*\",\"*LPR*\",\"*MHP*\",\"*NHTF*\",\"*NSP*\",\"*PRP*\",\"*TOD*\",\"*VHHP*\"},'1. Checklist & Certification'!$L$7)))),\"MHP\",\"Legacy\"))","v":""},",,",null,null,null,{"$f":"IF('1. Checklist & Certification'!$M$20=4,\"Both\",IF(OR('1. Checklist & Certification'!$M$15>0,S375=\"CHRP-R\",U375=\"CHRP-R\",W375=\"CHRP-R\",Y375=\"CHRP-R\"),\"Under\",\"No\"))","v":"No"},"No","No",{"$f":"_xlfn.IFS(D375=\"\",\"\",D375=1,'MHP Family Income & Rent Limits'!$E$17,D375=2,'MHP Family Income & Rent Limits'!$F$17,D375=3,'MHP Family Income & Rent Limits'!$G$17,D375=4,'MHP Family Income & Rent Limits'!$H$17,D375=5,'MHP Family Income & Rent Limits'!$I$17,D375=6,'MHP Family Income & Rent Limits'!$J$17,D375=7,'MHP Family Income & Rent Limits'!$K$17,D375=8,'MHP Family Income & Rent Limits'!$L$17)","v":""},"",{"$f":"IF(OR(A375=0,B375=\"X\"),0,MIN(IF(AA375:AD375<>0,AA375:AD375)))","v":0},{"$f":"IF(OR(H375=\"\",I375=\"\"),0,IF(H375*0.3/12>I375,MIN(H375*0.3/12,I375*1.1)+AP375,I375*(1+(VLOOKUP('1. Checklist & Certification'!$F$9,'HLCP-E Rent Change'!$A$1:$D$59,4,FALSE)))+AP375))","v":0}]
[null,null,null,null,null,null,null,null,null,null,null,null,null,null,null,null,null,null,null,null,null,null,null,null,null,null,0,0,0,0,0,0,0,0,{"$f":"IF(OR(A376=0,B376=\"X\"),0,IF(OR(S376=\"FHDP\",S376=\"RHCP-B\",U376=\"FHDP\",U376=\"RHCP-B\",W376=\"FHDP\",W376=\"RHCP-B\",Y376=\"FHDP\",Y376=\"RHCP-B\"),TRUNC((MIN(I376,K376)*(1+'1. Checklist & Certification'!$K$43)+AP376)),0))","v":0},{"$f":"IF(OR(A376=0,B376=\"X\"),0,IF(OR(S376=\"CHRP-R\",S376=\"SERA\",S376=\"SUHRP\",U376=\"CHRP-R\",U376=\"SERA\",U376=\"SUHRP\",W376=\"CHRP-R\",W376=\"SERA\",W376=\"SUHRP\",Y376=\"CHRP-R\",Y376=\"SERA\",Y376=\"SUHRP\"),TRUNC((MIN(I376,K376)*(1+'1. Checklist & Certification'!$K$49))),0))","v":0},{"$f":"IF(OR(A376=0,B376=\"X\"),0,IF(OR(S376=\"CALDAP\",S376=\"DPRLP\",U376=\"CALDAP\",U376=\"DPRLP\",W376=\"CALDAP\",W376=\"DPRLP\",Y376=\"CALDAP\",Y376=\"DPRLP\"),TRUNC(((MIN(I376,K376))*(1+'1. Checklist & Certification'!$G$4))),0))","v":0},0,0,0,{"$f":"IF(OR(A376=0,B376=\"X\"),0,IF(OR(S376=\"PRP\",S376=\"LPR\",U376=\"PRP\",U376=\"LPR\",W376=\"PRP\",W376=\"LPR\",Y376=\"PRP\",Y376=\"LPR\"),MAX(I376+AP376,MIN(IF(AE376:AN376<>0,AE376:AN376))),MIN(IF(AE376:AN376<>0,AE376:AN376))))","v":0},{"$f":"IF(A376=0,0,IF(AND(OR(S376=\"Mgr\",S376=0),OR(U376=\"Mgr\",U376=0),OR(W376=\"Mgr\",W376=0)),0,IF(LEFT($A376,2)=\"B*\",VLOOKUP($E376,'1. Checklist & Certification'!$D$26:$E$32,2),IF(LEFT($A376,2)=\"C*\",VLOOKUP($E376,'1. Checklist & Certification'!$F$26:$G$32,2),IF(LEFT($A376,2)=\"D*\",VLOOKUP($E376,'1. Checklist & Certification'!$H$26:$I$32,2),IF(LEFT($A376,2)=\"E*\",VLOOKUP($E376,'1. Checklist & Certification'!$J$26:$K$32,2),VLOOKUP($E376,'1. Checklist & Certification'!$A$26:$B$32,2)))))))","v":0},0,0,null,null,null,null,"","",0,0,0,null,{"$f":"IF(A376=\"\",\"\",'1. Checklist & Certification'!$K$1)","v":""},{"$f":"IF(A376=\"\",\"\",'1. Checklist & Certification'!$C$62)","v":""},{"$f":"IF(A376=\"\",\"\",'1. Checklist & Certification'!$C$6)","v":""},{"$f":"IF(A376=\"\",\"\",'1. Checklist & Certification'!$G$5)","v":""},{"$f":"IFERROR(IF(A376=\"\",\"\",\n_xlfn.LET(_xlpm.Contract,'1. Checklist & Certification'!$C$7,\n_xlpm.Yr,TEXT(MOD(_xlfn.TEXTBEFORE(_xlpm.Contract,\"-\"),100),\"00\"),\n_xlpm.Program,_xlfn.TEXTAFTER(_xlfn.TEXTBEFORE(_xlpm.Contract,\"-\",2),\"-\"),\n_xlpm.CleanProgram,_xlfn.XLOOKUP(_xlpm.Program,SpellCheck[Input],SpellCheck[Correction],_xlpm.Program),\n_xlpm.Number,TEXT(_xlfn.TEXTAFTER(_xlpm.Contract,\"-\",2),\"0000\"),\n_xlfn.CONCAT(_xlpm.Yr,\"-\",_xlpm.CleanProgram,\"-\",_xlpm.Number))\n),\"\")","v":""},{"$f":"IFERROR(IF(A376=\"\",\"\",\n_xlfn.LET(_xlpm.Contract,'1. Checklist & Certification'!$C$8,\n_xlpm.Yr,TEXT(MOD(_xlfn.TEXTBEFORE(_xlpm.Contract,\"-\"),100),\"00\"),\n_xlpm.Program,_xlfn.TEXTAFTER(_xlfn.TEXTBEFORE(_xlpm.Contract,\"-\",2),\"-\"),\n_xlpm.CleanProgram,_xlfn.XLOOKUP(_xlpm.Program,SpellCheck[Input],SpellCheck[Correction],_xlpm.Program),\n_xlpm.Number,TEXT(_xlfn.TEXTAFTER(_xlpm.Contract,\"-\",2),\"0000\"),\n_xlfn.CONCAT(_xlpm.Yr,\"-\",_xlpm.CleanProgram,\"-\",_xlpm.Number))\n),\"\")","v":""},{"$f":"IFERROR(IF(A376=\"\",\"\",\n_xlfn.LET(_xlpm.Contract,'1. Checklist & Certification'!$F$7,\n_xlpm.Yr,TEXT(MOD(_xlfn.TEXTBEFORE(_xlpm.Contract,\"-\"),100),\"00\"),\n_xlpm.Program,_xlfn.TEXTAFTER(_xlfn.TEXTBEFORE(_xlpm.Contract,\"-\",2),\"-\"),\n_xlpm.CleanProgram,_xlfn.XLOOKUP(_xlpm.Program,SpellCheck[Input],SpellCheck[Correction],_xlpm.Program),\n_xlpm.Number,TEXT(_xlfn.TEXTAFTER(_xlpm.Contract,\"-\",2),\"0000\"),\n_xlfn.CONCAT(_xlpm.Yr,\"-\",_xlpm.CleanProgram,\"-\",_xlpm.Number))\n),\"\")","v":""},{"$f":"IFERROR(IF(A376=\"\",\"\",\n_xlfn.LET(_xlpm.Contract,'1. Checklist & Certification'!$F$8,\n_xlpm.Yr,TEXT(MOD(_xlfn.TEXTBEFORE(_xlpm.Contract,\"-\"),100),\"00\"),\n_xlpm.Program,_xlfn.TEXTAFTER(_xlfn.TEXTBEFORE(_xlpm.Contract,\"-\",2),\"-\"),\n_xlpm.CleanProgram,_xlfn.XLOOKUP(_xlpm.Program,SpellCheck[Input],SpellCheck[Correction],_xlpm.Program),\n_xlpm.Number,TEXT(_xlfn.TEXTAFTER(_xlpm.Contract,\"-\",2),\"0000\"),\n_xlfn.CONCAT(_xlpm.Yr,\"-\",_xlpm.CleanProgram,\"-\",_xlpm.Number))\n),\"\")","v":""},{"$f":"IF(A376=\"\",\"\",'1. Checklist & Certification'!$B$9)","v":""},{"$f":"IF(A376=\"\",\"\",'1. Checklist & Certification'!$F$9)","v":""},{"$f":"IF(A376=\"\",\"\",'1. Checklist & Certification'!$C$10)","v":""},{"$f":"IF(A376=\"\",\"\",'1. Checklist & Certification'!$C$11)","v":""},{"$f":"IF(A376=\"\",\"\",'1. Checklist & Certification'!$C$12)","v":""},{"$f":"IF(A376=\"\",\"\",'1. Checklist & Certification'!$B$14)","v":""},{"$f":"IF(A376=\"\",\"\",'1. Checklist & Certification'!$E$14)","v":""},{"$f":"IF(B376=\"\",\"\",'1. Checklist & Certification'!$G$14)","v":""},{"$f":"IF(A376=\"\",\"\",'MHP Family Income & Rent Limits'!$B$3)","v":""},{"$f":"IF(A376=\"\",\"\",'MHP Family Income & Rent Limits'!$J$3)","v":""},{"$f":"IF(A376=\"\",\"\",'MHP Family Income & Rent Limits'!$E$4)","v":""},{"$f":"IF(A376=\"\",\"\",'MHP Family Income & Rent Limits'!$C$7)","v":""},{"$f":"IF(A376=\"\",\"\",'MHP Family Income & Rent Limits'!$F$8)","v":""},{"$f":"IF(A376=\"\",\"\",'1. Checklist & Certification'!$G$4)","v":""},{"$f":"IF(A376=\"\",\"\",'1. Checklist & Certification'!$K$39)","v":""},{"$f":"IF(A376=\"\",\"\",'1. Checklist & Certification'!$K$43)","v":""},{"$f":"IF(A376=\"\",\"\",'1. Checklist & Certification'!$K$45)","v":""},{"$f":"IF(A376=\"\",\"\",'1. Checklist & Certification'!$K$49)","v":""},{"$f":"IF(A376=\"\",\"\",'1. Checklist & Certification'!$K$62)","v":""},{"$f":"IF(A376=\"\",\"\",'1. Checklist & Certification'!$E$66)","v":""},{"$f":"IF(A376=\"\",\"\",'1. Checklist & Certification'!$E$67)","v":""},{"$f":"IF(A376=\"\",\"\",'1. Checklist & Certification'!$E$68)","v":""},{"$f":"IF(A376=\"\",\"\",'1. Checklist & Certification'!$G$66)","v":""},{"$f":"IF(A376=\"\",\"\",'1. Checklist & Certification'!$H$66)","v":""},{"$f":"IF(A376=\"\",\"\",'1. Checklist & Certification'!$I$66)","v":""},{"$f":"IF(A376=\"\",\"\",'1. Checklist & Certification'!$I$67)","v":""},{"$f":"IF(A376=\"\",\"\",'1. Checklist & Certification'!$I$68)","v":""},{"$f":"IF(A376=\"\",\"\",'1. Checklist & Certification'!$B$69)","v":""},{"$f":"IF(A376=\"\",\"\",'1. Checklist & Certification'!$C$69)","v":""},{"$f":"IF(A376=\"\",\"\",'1. Checklist & Certification'!$F$69)","v":""},{"$f":"IF(A376=\"\",\"\",'1. Checklist & Certification'!$G$69)","v":""},{"$f":"IF(A376=\"\",\"\",'1. Checklist & Certification'!$J$69)","v":""},{"$f":"IF(A376=\"\",\"\",'1. Checklist & Certification'!$K$69)","v":""},null,null,{"$f":"IF(AND(OR('1. Checklist & Certification'!$M$16=1,'1. Checklist & Certification'!$M$19=2),AO376>0,B376=\"\",I376>0,AQ376<I376,AV376<>\"Sec 8-Project\"),\"X\",IF(AND(OR('1. Checklist & Certification'!$M$20=4,'1. Checklist & Certification'!$M$21=5,'1. Checklist & Certification'!$M$22=7),AO376>0,B376=\"\",I376>0,K376<I376),\"X\",\"\"))","v":""},{"$f":"IF(A376=\"\",\"\",IF(SUMPRODUCT(-- (ISNUMBER(SEARCH({\"*AHSC*\",\"*FMTW*\",\"*FWHG*\",\"*GHI*\",\"*HHC*\",\"*HLCP*\",\"*HOME*\",\"*LPR*\",\"*MHP*\",\"*NHTF*\",\"*NSP*\",\"*PRP*\",\"*TOD*\",\"*VHHP*\"},'1. Checklist & Certification'!$L$7)))),\"MHP\",\"Legacy\"))","v":""},",,",null,null,null,{"$f":"IF('1. Checklist & Certification'!$M$20=4,\"Both\",IF(OR('1. Checklist & Certification'!$M$15>0,S376=\"CHRP-R\",U376=\"CHRP-R\",W376=\"CHRP-R\",Y376=\"CHRP-R\"),\"Under\",\"No\"))","v":"No"},"No","No",{"$f":"_xlfn.IFS(D376=\"\",\"\",D376=1,'MHP Family Income & Rent Limits'!$E$17,D376=2,'MHP Family Income & Rent Limits'!$F$17,D376=3,'MHP Family Income & Rent Limits'!$G$17,D376=4,'MHP Family Income & Rent Limits'!$H$17,D376=5,'MHP Family Income & Rent Limits'!$I$17,D376=6,'MHP Family Income & Rent Limits'!$J$17,D376=7,'MHP Family Income & Rent Limits'!$K$17,D376=8,'MHP Family Income & Rent Limits'!$L$17)","v":""},"",{"$f":"IF(OR(A376=0,B376=\"X\"),0,MIN(IF(AA376:AD376<>0,AA376:AD376)))","v":0},{"$f":"IF(OR(H376=\"\",I376=\"\"),0,IF(H376*0.3/12>I376,MIN(H376*0.3/12,I376*1.1)+AP376,I376*(1+(VLOOKUP('1. Checklist & Certification'!$F$9,'HLCP-E Rent Change'!$A$1:$D$59,4,FALSE)))+AP376))","v":0}]
[null,null,null,null,null,null,null,null,null,null,null,null,null,null,null,null,null,null,null,null,null,null,null,null,null,null,0,0,0,0,0,0,0,0,{"$f":"IF(OR(A377=0,B377=\"X\"),0,IF(OR(S377=\"FHDP\",S377=\"RHCP-B\",U377=\"FHDP\",U377=\"RHCP-B\",W377=\"FHDP\",W377=\"RHCP-B\",Y377=\"FHDP\",Y377=\"RHCP-B\"),TRUNC((MIN(I377,K377)*(1+'1. Checklist & Certification'!$K$43)+AP377)),0))","v":0},{"$f":"IF(OR(A377=0,B377=\"X\"),0,IF(OR(S377=\"CHRP-R\",S377=\"SERA\",S377=\"SUHRP\",U377=\"CHRP-R\",U377=\"SERA\",U377=\"SUHRP\",W377=\"CHRP-R\",W377=\"SERA\",W377=\"SUHRP\",Y377=\"CHRP-R\",Y377=\"SERA\",Y377=\"SUHRP\"),TRUNC((MIN(I377,K377)*(1+'1. Checklist & Certification'!$K$49))),0))","v":0},{"$f":"IF(OR(A377=0,B377=\"X\"),0,IF(OR(S377=\"CALDAP\",S377=\"DPRLP\",U377=\"CALDAP\",U377=\"DPRLP\",W377=\"CALDAP\",W377=\"DPRLP\",Y377=\"CALDAP\",Y377=\"DPRLP\"),TRUNC(((MIN(I377,K377))*(1+'1. Checklist & Certification'!$G$4))),0))","v":0},0,0,0,{"$f":"IF(OR(A377=0,B377=\"X\"),0,IF(OR(S377=\"PRP\",S377=\"LPR\",U377=\"PRP\",U377=\"LPR\",W377=\"PRP\",W377=\"LPR\",Y377=\"PRP\",Y377=\"LPR\"),MAX(I377+AP377,MIN(IF(AE377:AN377<>0,AE377:AN377))),MIN(IF(AE377:AN377<>0,AE377:AN377))))","v":0},{"$f":"IF(A377=0,0,IF(AND(OR(S377=\"Mgr\",S377=0),OR(U377=\"Mgr\",U377=0),OR(W377=\"Mgr\",W377=0)),0,IF(LEFT($A377,2)=\"B*\",VLOOKUP($E377,'1. Checklist & Certification'!$D$26:$E$32,2),IF(LEFT($A377,2)=\"C*\",VLOOKUP($E377,'1. Checklist & Certification'!$F$26:$G$32,2),IF(LEFT($A377,2)=\"D*\",VLOOKUP($E377,'1. Checklist & Certification'!$H$26:$I$32,2),IF(LEFT($A377,2)=\"E*\",VLOOKUP($E377,'1. Checklist & Certification'!$J$26:$K$32,2),VLOOKUP($E377,'1. Checklist & Certification'!$A$26:$B$32,2)))))))","v":0},0,0,null,null,null,null,"","",0,0,0,null,{"$f":"IF(A377=\"\",\"\",'1. Checklist & Certification'!$K$1)","v":""},{"$f":"IF(A377=\"\",\"\",'1. Checklist & Certification'!$C$62)","v":""},{"$f":"IF(A377=\"\",\"\",'1. Checklist & Certification'!$C$6)","v":""},{"$f":"IF(A377=\"\",\"\",'1. Checklist & Certification'!$G$5)","v":""},{"$f":"IFERROR(IF(A377=\"\",\"\",\n_xlfn.LET(_xlpm.Contract,'1. Checklist & Certification'!$C$7,\n_xlpm.Yr,TEXT(MOD(_xlfn.TEXTBEFORE(_xlpm.Contract,\"-\"),100),\"00\"),\n_xlpm.Program,_xlfn.TEXTAFTER(_xlfn.TEXTBEFORE(_xlpm.Contract,\"-\",2),\"-\"),\n_xlpm.CleanProgram,_xlfn.XLOOKUP(_xlpm.Program,SpellCheck[Input],SpellCheck[Correction],_xlpm.Program),\n_xlpm.Number,TEXT(_xlfn.TEXTAFTER(_xlpm.Contract,\"-\",2),\"0000\"),\n_xlfn.CONCAT(_xlpm.Yr,\"-\",_xlpm.CleanProgram,\"-\",_xlpm.Number))\n),\"\")","v":""},{"$f":"IFERROR(IF(A377=\"\",\"\",\n_xlfn.LET(_xlpm.Contract,'1. Checklist & Certification'!$C$8,\n_xlpm.Yr,TEXT(MOD(_xlfn.TEXTBEFORE(_xlpm.Contract,\"-\"),100),\"00\"),\n_xlpm.Program,_xlfn.TEXTAFTER(_xlfn.TEXTBEFORE(_xlpm.Contract,\"-\",2),\"-\"),\n_xlpm.CleanProgram,_xlfn.XLOOKUP(_xlpm.Program,SpellCheck[Input],SpellCheck[Correction],_xlpm.Program),\n_xlpm.Number,TEXT(_xlfn.TEXTAFTER(_xlpm.Contract,\"-\",2),\"0000\"),\n_xlfn.CONCAT(_xlpm.Yr,\"-\",_xlpm.CleanProgram,\"-\",_xlpm.Number))\n),\"\")","v":""},{"$f":"IFERROR(IF(A377=\"\",\"\",\n_xlfn.LET(_xlpm.Contract,'1. Checklist & Certification'!$F$7,\n_xlpm.Yr,TEXT(MOD(_xlfn.TEXTBEFORE(_xlpm.Contract,\"-\"),100),\"00\"),\n_xlpm.Program,_xlfn.TEXTAFTER(_xlfn.TEXTBEFORE(_xlpm.Contract,\"-\",2),\"-\"),\n_xlpm.CleanProgram,_xlfn.XLOOKUP(_xlpm.Program,SpellCheck[Input],SpellCheck[Correction],_xlpm.Program),\n_xlpm.Number,TEXT(_xlfn.TEXTAFTER(_xlpm.Contract,\"-\",2),\"0000\"),\n_xlfn.CONCAT(_xlpm.Yr,\"-\",_xlpm.CleanProgram,\"-\",_xlpm.Number))\n),\"\")","v":""},{"$f":"IFERROR(IF(A377=\"\",\"\",\n_xlfn.LET(_xlpm.Contract,'1. Checklist & Certification'!$F$8,\n_xlpm.Yr,TEXT(MOD(_xlfn.TEXTBEFORE(_xlpm.Contract,\"-\"),100),\"00\"),\n_xlpm.Program,_xlfn.TEXTAFTER(_xlfn.TEXTBEFORE(_xlpm.Contract,\"-\",2),\"-\"),\n_xlpm.CleanProgram,_xlfn.XLOOKUP(_xlpm.Program,SpellCheck[Input],SpellCheck[Correction],_xlpm.Program),\n_xlpm.Number,TEXT(_xlfn.TEXTAFTER(_xlpm.Contract,\"-\",2),\"0000\"),\n_xlfn.CONCAT(_xlpm.Yr,\"-\",_xlpm.CleanProgram,\"-\",_xlpm.Number))\n),\"\")","v":""},{"$f":"IF(A377=\"\",\"\",'1. Checklist & Certification'!$B$9)","v":""},{"$f":"IF(A377=\"\",\"\",'1. Checklist & Certification'!$F$9)","v":""},{"$f":"IF(A377=\"\",\"\",'1. Checklist & Certification'!$C$10)","v":""},{"$f":"IF(A377=\"\",\"\",'1. Checklist & Certification'!$C$11)","v":""},{"$f":"IF(A377=\"\",\"\",'1. Checklist & Certification'!$C$12)","v":""},{"$f":"IF(A377=\"\",\"\",'1. Checklist & Certification'!$B$14)","v":""},{"$f":"IF(A377=\"\",\"\",'1. Checklist & Certification'!$E$14)","v":""},{"$f":"IF(B377=\"\",\"\",'1. Checklist & Certification'!$G$14)","v":""},{"$f":"IF(A377=\"\",\"\",'MHP Family Income & Rent Limits'!$B$3)","v":""},{"$f":"IF(A377=\"\",\"\",'MHP Family Income & Rent Limits'!$J$3)","v":""},{"$f":"IF(A377=\"\",\"\",'MHP Family Income & Rent Limits'!$E$4)","v":""},{"$f":"IF(A377=\"\",\"\",'MHP Family Income & Rent Limits'!$C$7)","v":""},{"$f":"IF(A377=\"\",\"\",'MHP Family Income & Rent Limits'!$F$8)","v":""},{"$f":"IF(A377=\"\",\"\",'1. Checklist & Certification'!$G$4)","v":""},{"$f":"IF(A377=\"\",\"\",'1. Checklist & Certification'!$K$39)","v":""},{"$f":"IF(A377=\"\",\"\",'1. Checklist & Certification'!$K$43)","v":""},{"$f":"IF(A377=\"\",\"\",'1. Checklist & Certification'!$K$45)","v":""},{"$f":"IF(A377=\"\",\"\",'1. Checklist & Certification'!$K$49)","v":""},{"$f":"IF(A377=\"\",\"\",'1. Checklist & Certification'!$K$62)","v":""},{"$f":"IF(A377=\"\",\"\",'1. Checklist & Certification'!$E$66)","v":""},{"$f":"IF(A377=\"\",\"\",'1. Checklist & Certification'!$E$67)","v":""},{"$f":"IF(A377=\"\",\"\",'1. Checklist & Certification'!$E$68)","v":""},{"$f":"IF(A377=\"\",\"\",'1. Checklist & Certification'!$G$66)","v":""},{"$f":"IF(A377=\"\",\"\",'1. Checklist & Certification'!$H$66)","v":""},{"$f":"IF(A377=\"\",\"\",'1. Checklist & Certification'!$I$66)","v":""},{"$f":"IF(A377=\"\",\"\",'1. Checklist & Certification'!$I$67)","v":""},{"$f":"IF(A377=\"\",\"\",'1. Checklist & Certification'!$I$68)","v":""},{"$f":"IF(A377=\"\",\"\",'1. Checklist & Certification'!$B$69)","v":""},{"$f":"IF(A377=\"\",\"\",'1. Checklist & Certification'!$C$69)","v":""},{"$f":"IF(A377=\"\",\"\",'1. Checklist & Certification'!$F$69)","v":""},{"$f":"IF(A377=\"\",\"\",'1. Checklist & Certification'!$G$69)","v":""},{"$f":"IF(A377=\"\",\"\",'1. Checklist & Certification'!$J$69)","v":""},{"$f":"IF(A377=\"\",\"\",'1. Checklist & Certification'!$K$69)","v":""},null,null,{"$f":"IF(AND(OR('1. Checklist & Certification'!$M$16=1,'1. Checklist & Certification'!$M$19=2),AO377>0,B377=\"\",I377>0,AQ377<I377,AV377<>\"Sec 8-Project\"),\"X\",IF(AND(OR('1. Checklist & Certification'!$M$20=4,'1. Checklist & Certification'!$M$21=5,'1. Checklist & Certification'!$M$22=7),AO377>0,B377=\"\",I377>0,K377<I377),\"X\",\"\"))","v":""},{"$f":"IF(A377=\"\",\"\",IF(SUMPRODUCT(-- (ISNUMBER(SEARCH({\"*AHSC*\",\"*FMTW*\",\"*FWHG*\",\"*GHI*\",\"*HHC*\",\"*HLCP*\",\"*HOME*\",\"*LPR*\",\"*MHP*\",\"*NHTF*\",\"*NSP*\",\"*PRP*\",\"*TOD*\",\"*VHHP*\"},'1. Checklist & Certification'!$L$7)))),\"MHP\",\"Legacy\"))","v":""},",,",null,null,null,{"$f":"IF('1. Checklist & Certification'!$M$20=4,\"Both\",IF(OR('1. Checklist & Certification'!$M$15>0,S377=\"CHRP-R\",U377=\"CHRP-R\",W377=\"CHRP-R\",Y377=\"CHRP-R\"),\"Under\",\"No\"))","v":"No"},"No","No",{"$f":"_xlfn.IFS(D377=\"\",\"\",D377=1,'MHP Family Income & Rent Limits'!$E$17,D377=2,'MHP Family Income & Rent Limits'!$F$17,D377=3,'MHP Family Income & Rent Limits'!$G$17,D377=4,'MHP Family Income & Rent Limits'!$H$17,D377=5,'MHP Family Income & Rent Limits'!$I$17,D377=6,'MHP Family Income & Rent Limits'!$J$17,D377=7,'MHP Family Income & Rent Limits'!$K$17,D377=8,'MHP Family Income & Rent Limits'!$L$17)","v":""},"",{"$f":"IF(OR(A377=0,B377=\"X\"),0,MIN(IF(AA377:AD377<>0,AA377:AD377)))","v":0},{"$f":"IF(OR(H377=\"\",I377=\"\"),0,IF(H377*0.3/12>I377,MIN(H377*0.3/12,I377*1.1)+AP377,I377*(1+(VLOOKUP('1. Checklist & Certification'!$F$9,'HLCP-E Rent Change'!$A$1:$D$59,4,FALSE)))+AP377))","v":0}]
[null,null,null,null,null,null,null,null,null,null,null,null,null,null,null,null,null,null,null,null,null,null,null,null,null,null,0,0,0,0,0,0,0,0,{"$f":"IF(OR(A378=0,B378=\"X\"),0,IF(OR(S378=\"FHDP\",S378=\"RHCP-B\",U378=\"FHDP\",U378=\"RHCP-B\",W378=\"FHDP\",W378=\"RHCP-B\",Y378=\"FHDP\",Y378=\"RHCP-B\"),TRUNC((MIN(I378,K378)*(1+'1. Checklist & Certification'!$K$43)+AP378)),0))","v":0},{"$f":"IF(OR(A378=0,B378=\"X\"),0,IF(OR(S378=\"CHRP-R\",S378=\"SERA\",S378=\"SUHRP\",U378=\"CHRP-R\",U378=\"SERA\",U378=\"SUHRP\",W378=\"CHRP-R\",W378=\"SERA\",W378=\"SUHRP\",Y378=\"CHRP-R\",Y378=\"SERA\",Y378=\"SUHRP\"),TRUNC((MIN(I378,K378)*(1+'1. Checklist & Certification'!$K$49))),0))","v":0},{"$f":"IF(OR(A378=0,B378=\"X\"),0,IF(OR(S378=\"CALDAP\",S378=\"DPRLP\",U378=\"CALDAP\",U378=\"DPRLP\",W378=\"CALDAP\",W378=\"DPRLP\",Y378=\"CALDAP\",Y378=\"DPRLP\"),TRUNC(((MIN(I378,K378))*(1+'1. Checklist & Certification'!$G$4))),0))","v":0},0,0,0,{"$f":"IF(OR(A378=0,B378=\"X\"),0,IF(OR(S378=\"PRP\",S378=\"LPR\",U378=\"PRP\",U378=\"LPR\",W378=\"PRP\",W378=\"LPR\",Y378=\"PRP\",Y378=\"LPR\"),MAX(I378+AP378,MIN(IF(AE378:AN378<>0,AE378:AN378))),MIN(IF(AE378:AN378<>0,AE378:AN378))))","v":0},{"$f":"IF(A378=0,0,IF(AND(OR(S378=\"Mgr\",S378=0),OR(U378=\"Mgr\",U378=0),OR(W378=\"Mgr\",W378=0)),0,IF(LEFT($A378,2)=\"B*\",VLOOKUP($E378,'1. Checklist & Certification'!$D$26:$E$32,2),IF(LEFT($A378,2)=\"C*\",VLOOKUP($E378,'1. Checklist & Certification'!$F$26:$G$32,2),IF(LEFT($A378,2)=\"D*\",VLOOKUP($E378,'1. Checklist & Certification'!$H$26:$I$32,2),IF(LEFT($A378,2)=\"E*\",VLOOKUP($E378,'1. Checklist & Certification'!$J$26:$K$32,2),VLOOKUP($E378,'1. Checklist & Certification'!$A$26:$B$32,2)))))))","v":0},0,0,null,null,null,null,"","",0,0,0,null,{"$f":"IF(A378=\"\",\"\",'1. Checklist & Certification'!$K$1)","v":""},{"$f":"IF(A378=\"\",\"\",'1. Checklist & Certification'!$C$62)","v":""},{"$f":"IF(A378=\"\",\"\",'1. Checklist & Certification'!$C$6)","v":""},{"$f":"IF(A378=\"\",\"\",'1. Checklist & Certification'!$G$5)","v":""},{"$f":"IFERROR(IF(A378=\"\",\"\",\n_xlfn.LET(_xlpm.Contract,'1. Checklist & Certification'!$C$7,\n_xlpm.Yr,TEXT(MOD(_xlfn.TEXTBEFORE(_xlpm.Contract,\"-\"),100),\"00\"),\n_xlpm.Program,_xlfn.TEXTAFTER(_xlfn.TEXTBEFORE(_xlpm.Contract,\"-\",2),\"-\"),\n_xlpm.CleanProgram,_xlfn.XLOOKUP(_xlpm.Program,SpellCheck[Input],SpellCheck[Correction],_xlpm.Program),\n_xlpm.Number,TEXT(_xlfn.TEXTAFTER(_xlpm.Contract,\"-\",2),\"0000\"),\n_xlfn.CONCAT(_xlpm.Yr,\"-\",_xlpm.CleanProgram,\"-\",_xlpm.Number))\n),\"\")","v":""},{"$f":"IFERROR(IF(A378=\"\",\"\",\n_xlfn.LET(_xlpm.Contract,'1. Checklist & Certification'!$C$8,\n_xlpm.Yr,TEXT(MOD(_xlfn.TEXTBEFORE(_xlpm.Contract,\"-\"),100),\"00\"),\n_xlpm.Program,_xlfn.TEXTAFTER(_xlfn.TEXTBEFORE(_xlpm.Contract,\"-\",2),\"-\"),\n_xlpm.CleanProgram,_xlfn.XLOOKUP(_xlpm.Program,SpellCheck[Input],SpellCheck[Correction],_xlpm.Program),\n_xlpm.Number,TEXT(_xlfn.TEXTAFTER(_xlpm.Contract,\"-\",2),\"0000\"),\n_xlfn.CONCAT(_xlpm.Yr,\"-\",_xlpm.CleanProgram,\"-\",_xlpm.Number))\n),\"\")","v":""},{"$f":"IFERROR(IF(A378=\"\",\"\",\n_xlfn.LET(_xlpm.Contract,'1. Checklist & Certification'!$F$7,\n_xlpm.Yr,TEXT(MOD(_xlfn.TEXTBEFORE(_xlpm.Contract,\"-\"),100),\"00\"),\n_xlpm.Program,_xlfn.TEXTAFTER(_xlfn.TEXTBEFORE(_xlpm.Contract,\"-\",2),\"-\"),\n_xlpm.CleanProgram,_xlfn.XLOOKUP(_xlpm.Program,SpellCheck[Input],SpellCheck[Correction],_xlpm.Program),\n_xlpm.Number,TEXT(_xlfn.TEXTAFTER(_xlpm.Contract,\"-\",2),\"0000\"),\n_xlfn.CONCAT(_xlpm.Yr,\"-\",_xlpm.CleanProgram,\"-\",_xlpm.Number))\n),\"\")","v":""},{"$f":"IFERROR(IF(A378=\"\",\"\",\n_xlfn.LET(_xlpm.Contract,'1. Checklist & Certification'!$F$8,\n_xlpm.Yr,TEXT(MOD(_xlfn.TEXTBEFORE(_xlpm.Contract,\"-\"),100),\"00\"),\n_xlpm.Program,_xlfn.TEXTAFTER(_xlfn.TEXTBEFORE(_xlpm.Contract,\"-\",2),\"-\"),\n_xlpm.CleanProgram,_xlfn.XLOOKUP(_xlpm.Program,SpellCheck[Input],SpellCheck[Correction],_xlpm.Program),\n_xlpm.Number,TEXT(_xlfn.TEXTAFTER(_xlpm.Contract,\"-\",2),\"0000\"),\n_xlfn.CONCAT(_xlpm.Yr,\"-\",_xlpm.CleanProgram,\"-\",_xlpm.Number))\n),\"\")","v":""},{"$f":"IF(A378=\"\",\"\",'1. Checklist & Certification'!$B$9)","v":""},{"$f":"IF(A378=\"\",\"\",'1. Checklist & Certification'!$F$9)","v":""},{"$f":"IF(A378=\"\",\"\",'1. Checklist & Certification'!$C$10)","v":""},{"$f":"IF(A378=\"\",\"\",'1. Checklist & Certification'!$C$11)","v":""},{"$f":"IF(A378=\"\",\"\",'1. Checklist & Certification'!$C$12)","v":""},{"$f":"IF(A378=\"\",\"\",'1. Checklist & Certification'!$B$14)","v":""},{"$f":"IF(A378=\"\",\"\",'1. Checklist & Certification'!$E$14)","v":""},{"$f":"IF(B378=\"\",\"\",'1. Checklist & Certification'!$G$14)","v":""},{"$f":"IF(A378=\"\",\"\",'MHP Family Income & Rent Limits'!$B$3)","v":""},{"$f":"IF(A378=\"\",\"\",'MHP Family Income & Rent Limits'!$J$3)","v":""},{"$f":"IF(A378=\"\",\"\",'MHP Family Income & Rent Limits'!$E$4)","v":""},{"$f":"IF(A378=\"\",\"\",'MHP Family Income & Rent Limits'!$C$7)","v":""},{"$f":"IF(A378=\"\",\"\",'MHP Family Income & Rent Limits'!$F$8)","v":""},{"$f":"IF(A378=\"\",\"\",'1. Checklist & Certification'!$G$4)","v":""},{"$f":"IF(A378=\"\",\"\",'1. Checklist & Certification'!$K$39)","v":""},{"$f":"IF(A378=\"\",\"\",'1. Checklist & Certification'!$K$43)","v":""},{"$f":"IF(A378=\"\",\"\",'1. Checklist & Certification'!$K$45)","v":""},{"$f":"IF(A378=\"\",\"\",'1. Checklist & Certification'!$K$49)","v":""},{"$f":"IF(A378=\"\",\"\",'1. Checklist & Certification'!$K$62)","v":""},{"$f":"IF(A378=\"\",\"\",'1. Checklist & Certification'!$E$66)","v":""},{"$f":"IF(A378=\"\",\"\",'1. Checklist & Certification'!$E$67)","v":""},{"$f":"IF(A378=\"\",\"\",'1. Checklist & Certification'!$E$68)","v":""},{"$f":"IF(A378=\"\",\"\",'1. Checklist & Certification'!$G$66)","v":""},{"$f":"IF(A378=\"\",\"\",'1. Checklist & Certification'!$H$66)","v":""},{"$f":"IF(A378=\"\",\"\",'1. Checklist & Certification'!$I$66)","v":""},{"$f":"IF(A378=\"\",\"\",'1. Checklist & Certification'!$I$67)","v":""},{"$f":"IF(A378=\"\",\"\",'1. Checklist & Certification'!$I$68)","v":""},{"$f":"IF(A378=\"\",\"\",'1. Checklist & Certification'!$B$69)","v":""},{"$f":"IF(A378=\"\",\"\",'1. Checklist & Certification'!$C$69)","v":""},{"$f":"IF(A378=\"\",\"\",'1. Checklist & Certification'!$F$69)","v":""},{"$f":"IF(A378=\"\",\"\",'1. Checklist & Certification'!$G$69)","v":""},{"$f":"IF(A378=\"\",\"\",'1. Checklist & Certification'!$J$69)","v":""},{"$f":"IF(A378=\"\",\"\",'1. Checklist & Certification'!$K$69)","v":""},null,null,{"$f":"IF(AND(OR('1. Checklist & Certification'!$M$16=1,'1. Checklist & Certification'!$M$19=2),AO378>0,B378=\"\",I378>0,AQ378<I378,AV378<>\"Sec 8-Project\"),\"X\",IF(AND(OR('1. Checklist & Certification'!$M$20=4,'1. Checklist & Certification'!$M$21=5,'1. Checklist & Certification'!$M$22=7),AO378>0,B378=\"\",I378>0,K378<I378),\"X\",\"\"))","v":""},{"$f":"IF(A378=\"\",\"\",IF(SUMPRODUCT(-- (ISNUMBER(SEARCH({\"*AHSC*\",\"*FMTW*\",\"*FWHG*\",\"*GHI*\",\"*HHC*\",\"*HLCP*\",\"*HOME*\",\"*LPR*\",\"*MHP*\",\"*NHTF*\",\"*NSP*\",\"*PRP*\",\"*TOD*\",\"*VHHP*\"},'1. Checklist & Certification'!$L$7)))),\"MHP\",\"Legacy\"))","v":""},",,",null,null,null,{"$f":"IF('1. Checklist & Certification'!$M$20=4,\"Both\",IF(OR('1. Checklist & Certification'!$M$15>0,S378=\"CHRP-R\",U378=\"CHRP-R\",W378=\"CHRP-R\",Y378=\"CHRP-R\"),\"Under\",\"No\"))","v":"No"},"No","No",{"$f":"_xlfn.IFS(D378=\"\",\"\",D378=1,'MHP Family Income & Rent Limits'!$E$17,D378=2,'MHP Family Income & Rent Limits'!$F$17,D378=3,'MHP Family Income & Rent Limits'!$G$17,D378=4,'MHP Family Income & Rent Limits'!$H$17,D378=5,'MHP Family Income & Rent Limits'!$I$17,D378=6,'MHP Family Income & Rent Limits'!$J$17,D378=7,'MHP Family Income & Rent Limits'!$K$17,D378=8,'MHP Family Income & Rent Limits'!$L$17)","v":""},"",{"$f":"IF(OR(A378=0,B378=\"X\"),0,MIN(IF(AA378:AD378<>0,AA378:AD378)))","v":0},{"$f":"IF(OR(H378=\"\",I378=\"\"),0,IF(H378*0.3/12>I378,MIN(H378*0.3/12,I378*1.1)+AP378,I378*(1+(VLOOKUP('1. Checklist & Certification'!$F$9,'HLCP-E Rent Change'!$A$1:$D$59,4,FALSE)))+AP378))","v":0}]
[null,null,null,null,null,null,null,null,null,null,null,null,null,null,null,null,null,null,null,null,null,null,null,null,null,null,0,0,0,0,0,0,0,0,{"$f":"IF(OR(A379=0,B379=\"X\"),0,IF(OR(S379=\"FHDP\",S379=\"RHCP-B\",U379=\"FHDP\",U379=\"RHCP-B\",W379=\"FHDP\",W379=\"RHCP-B\",Y379=\"FHDP\",Y379=\"RHCP-B\"),TRUNC((MIN(I379,K379)*(1+'1. Checklist & Certification'!$K$43)+AP379)),0))","v":0},{"$f":"IF(OR(A379=0,B379=\"X\"),0,IF(OR(S379=\"CHRP-R\",S379=\"SERA\",S379=\"SUHRP\",U379=\"CHRP-R\",U379=\"SERA\",U379=\"SUHRP\",W379=\"CHRP-R\",W379=\"SERA\",W379=\"SUHRP\",Y379=\"CHRP-R\",Y379=\"SERA\",Y379=\"SUHRP\"),TRUNC((MIN(I379,K379)*(1+'1. Checklist & Certification'!$K$49))),0))","v":0},{"$f":"IF(OR(A379=0,B379=\"X\"),0,IF(OR(S379=\"CALDAP\",S379=\"DPRLP\",U379=\"CALDAP\",U379=\"DPRLP\",W379=\"CALDAP\",W379=\"DPRLP\",Y379=\"CALDAP\",Y379=\"DPRLP\"),TRUNC(((MIN(I379,K379))*(1+'1. Checklist & Certification'!$G$4))),0))","v":0},0,0,0,{"$f":"IF(OR(A379=0,B379=\"X\"),0,IF(OR(S379=\"PRP\",S379=\"LPR\",U379=\"PRP\",U379=\"LPR\",W379=\"PRP\",W379=\"LPR\",Y379=\"PRP\",Y379=\"LPR\"),MAX(I379+AP379,MIN(IF(AE379:AN379<>0,AE379:AN379))),MIN(IF(AE379:AN379<>0,AE379:AN379))))","v":0},{"$f":"IF(A379=0,0,IF(AND(OR(S379=\"Mgr\",S379=0),OR(U379=\"Mgr\",U379=0),OR(W379=\"Mgr\",W379=0)),0,IF(LEFT($A379,2)=\"B*\",VLOOKUP($E379,'1. Checklist & Certification'!$D$26:$E$32,2),IF(LEFT($A379,2)=\"C*\",VLOOKUP($E379,'1. Checklist & Certification'!$F$26:$G$32,2),IF(LEFT($A379,2)=\"D*\",VLOOKUP($E379,'1. Checklist & Certification'!$H$26:$I$32,2),IF(LEFT($A379,2)=\"E*\",VLOOKUP($E379,'1. Checklist & Certification'!$J$26:$K$32,2),VLOOKUP($E379,'1. Checklist & Certification'!$A$26:$B$32,2)))))))","v":0},0,0,null,null,null,null,"","",0,0,0,null,{"$f":"IF(A379=\"\",\"\",'1. Checklist & Certification'!$K$1)","v":""},{"$f":"IF(A379=\"\",\"\",'1. Checklist & Certification'!$C$62)","v":""},{"$f":"IF(A379=\"\",\"\",'1. Checklist & Certification'!$C$6)","v":""},{"$f":"IF(A379=\"\",\"\",'1. Checklist & Certification'!$G$5)","v":""},{"$f":"IFERROR(IF(A379=\"\",\"\",\n_xlfn.LET(_xlpm.Contract,'1. Checklist & Certification'!$C$7,\n_xlpm.Yr,TEXT(MOD(_xlfn.TEXTBEFORE(_xlpm.Contract,\"-\"),100),\"00\"),\n_xlpm.Program,_xlfn.TEXTAFTER(_xlfn.TEXTBEFORE(_xlpm.Contract,\"-\",2),\"-\"),\n_xlpm.CleanProgram,_xlfn.XLOOKUP(_xlpm.Program,SpellCheck[Input],SpellCheck[Correction],_xlpm.Program),\n_xlpm.Number,TEXT(_xlfn.TEXTAFTER(_xlpm.Contract,\"-\",2),\"0000\"),\n_xlfn.CONCAT(_xlpm.Yr,\"-\",_xlpm.CleanProgram,\"-\",_xlpm.Number))\n),\"\")","v":""},{"$f":"IFERROR(IF(A379=\"\",\"\",\n_xlfn.LET(_xlpm.Contract,'1. Checklist & Certification'!$C$8,\n_xlpm.Yr,TEXT(MOD(_xlfn.TEXTBEFORE(_xlpm.Contract,\"-\"),100),\"00\"),\n_xlpm.Program,_xlfn.TEXTAFTER(_xlfn.TEXTBEFORE(_xlpm.Contract,\"-\",2),\"-\"),\n_xlpm.CleanProgram,_xlfn.XLOOKUP(_xlpm.Program,SpellCheck[Input],SpellCheck[Correction],_xlpm.Program),\n_xlpm.Number,TEXT(_xlfn.TEXTAFTER(_xlpm.Contract,\"-\",2),\"0000\"),\n_xlfn.CONCAT(_xlpm.Yr,\"-\",_xlpm.CleanProgram,\"-\",_xlpm.Number))\n),\"\")","v":""},{"$f":"IFERROR(IF(A379=\"\",\"\",\n_xlfn.LET(_xlpm.Contract,'1. Checklist & Certification'!$F$7,\n_xlpm.Yr,TEXT(MOD(_xlfn.TEXTBEFORE(_xlpm.Contract,\"-\"),100),\"00\"),\n_xlpm.Program,_xlfn.TEXTAFTER(_xlfn.TEXTBEFORE(_xlpm.Contract,\"-\",2),\"-\"),\n_xlpm.CleanProgram,_xlfn.XLOOKUP(_xlpm.Program,SpellCheck[Input],SpellCheck[Correction],_xlpm.Program),\n_xlpm.Number,TEXT(_xlfn.TEXTAFTER(_xlpm.Contract,\"-\",2),\"0000\"),\n_xlfn.CONCAT(_xlpm.Yr,\"-\",_xlpm.CleanProgram,\"-\",_xlpm.Number))\n),\"\")","v":""},{"$f":"IFERROR(IF(A379=\"\",\"\",\n_xlfn.LET(_xlpm.Contract,'1. Checklist & Certification'!$F$8,\n_xlpm.Yr,TEXT(MOD(_xlfn.TEXTBEFORE(_xlpm.Contract,\"-\"),100),\"00\"),\n_xlpm.Program,_xlfn.TEXTAFTER(_xlfn.TEXTBEFORE(_xlpm.Contract,\"-\",2),\"-\"),\n_xlpm.CleanProgram,_xlfn.XLOOKUP(_xlpm.Program,SpellCheck[Input],SpellCheck[Correction],_xlpm.Program),\n_xlpm.Number,TEXT(_xlfn.TEXTAFTER(_xlpm.Contract,\"-\",2),\"0000\"),\n_xlfn.CONCAT(_xlpm.Yr,\"-\",_xlpm.CleanProgram,\"-\",_xlpm.Number))\n),\"\")","v":""},{"$f":"IF(A379=\"\",\"\",'1. Checklist & Certification'!$B$9)","v":""},{"$f":"IF(A379=\"\",\"\",'1. Checklist & Certification'!$F$9)","v":""},{"$f":"IF(A379=\"\",\"\",'1. Checklist & Certification'!$C$10)","v":""},{"$f":"IF(A379=\"\",\"\",'1. Checklist & Certification'!$C$11)","v":""},{"$f":"IF(A379=\"\",\"\",'1. Checklist & Certification'!$C$12)","v":""},{"$f":"IF(A379=\"\",\"\",'1. Checklist & Certification'!$B$14)","v":""},{"$f":"IF(A379=\"\",\"\",'1. Checklist & Certification'!$E$14)","v":""},{"$f":"IF(B379=\"\",\"\",'1. Checklist & Certification'!$G$14)","v":""},{"$f":"IF(A379=\"\",\"\",'MHP Family Income & Rent Limits'!$B$3)","v":""},{"$f":"IF(A379=\"\",\"\",'MHP Family Income & Rent Limits'!$J$3)","v":""},{"$f":"IF(A379=\"\",\"\",'MHP Family Income & Rent Limits'!$E$4)","v":""},{"$f":"IF(A379=\"\",\"\",'MHP Family Income & Rent Limits'!$C$7)","v":""},{"$f":"IF(A379=\"\",\"\",'MHP Family Income & Rent Limits'!$F$8)","v":""},{"$f":"IF(A379=\"\",\"\",'1. Checklist & Certification'!$G$4)","v":""},{"$f":"IF(A379=\"\",\"\",'1. Checklist & Certification'!$K$39)","v":""},{"$f":"IF(A379=\"\",\"\",'1. Checklist & Certification'!$K$43)","v":""},{"$f":"IF(A379=\"\",\"\",'1. Checklist & Certification'!$K$45)","v":""},{"$f":"IF(A379=\"\",\"\",'1. Checklist & Certification'!$K$49)","v":""},{"$f":"IF(A379=\"\",\"\",'1. Checklist & Certification'!$K$62)","v":""},{"$f":"IF(A379=\"\",\"\",'1. Checklist & Certification'!$E$66)","v":""},{"$f":"IF(A379=\"\",\"\",'1. Checklist & Certification'!$E$67)","v":""},{"$f":"IF(A379=\"\",\"\",'1. Checklist & Certification'!$E$68)","v":""},{"$f":"IF(A379=\"\",\"\",'1. Checklist & Certification'!$G$66)","v":""},{"$f":"IF(A379=\"\",\"\",'1. Checklist & Certification'!$H$66)","v":""},{"$f":"IF(A379=\"\",\"\",'1. Checklist & Certification'!$I$66)","v":""},{"$f":"IF(A379=\"\",\"\",'1. Checklist & Certification'!$I$67)","v":""},{"$f":"IF(A379=\"\",\"\",'1. Checklist & Certification'!$I$68)","v":""},{"$f":"IF(A379=\"\",\"\",'1. Checklist & Certification'!$B$69)","v":""},{"$f":"IF(A379=\"\",\"\",'1. Checklist & Certification'!$C$69)","v":""},{"$f":"IF(A379=\"\",\"\",'1. Checklist & Certification'!$F$69)","v":""},{"$f":"IF(A379=\"\",\"\",'1. Checklist & Certification'!$G$69)","v":""},{"$f":"IF(A379=\"\",\"\",'1. Checklist & Certification'!$J$69)","v":""},{"$f":"IF(A379=\"\",\"\",'1. Checklist & Certification'!$K$69)","v":""},null,null,{"$f":"IF(AND(OR('1. Checklist & Certification'!$M$16=1,'1. Checklist & Certification'!$M$19=2),AO379>0,B379=\"\",I379>0,AQ379<I379,AV379<>\"Sec 8-Project\"),\"X\",IF(AND(OR('1. Checklist & Certification'!$M$20=4,'1. Checklist & Certification'!$M$21=5,'1. Checklist & Certification'!$M$22=7),AO379>0,B379=\"\",I379>0,K379<I379),\"X\",\"\"))","v":""},{"$f":"IF(A379=\"\",\"\",IF(SUMPRODUCT(-- (ISNUMBER(SEARCH({\"*AHSC*\",\"*FMTW*\",\"*FWHG*\",\"*GHI*\",\"*HHC*\",\"*HLCP*\",\"*HOME*\",\"*LPR*\",\"*MHP*\",\"*NHTF*\",\"*NSP*\",\"*PRP*\",\"*TOD*\",\"*VHHP*\"},'1. Checklist & Certification'!$L$7)))),\"MHP\",\"Legacy\"))","v":""},",,",null,null,null,{"$f":"IF('1. Checklist & Certification'!$M$20=4,\"Both\",IF(OR('1. Checklist & Certification'!$M$15>0,S379=\"CHRP-R\",U379=\"CHRP-R\",W379=\"CHRP-R\",Y379=\"CHRP-R\"),\"Under\",\"No\"))","v":"No"},"No","No",{"$f":"_xlfn.IFS(D379=\"\",\"\",D379=1,'MHP Family Income & Rent Limits'!$E$17,D379=2,'MHP Family Income & Rent Limits'!$F$17,D379=3,'MHP Family Income & Rent Limits'!$G$17,D379=4,'MHP Family Income & Rent Limits'!$H$17,D379=5,'MHP Family Income & Rent Limits'!$I$17,D379=6,'MHP Family Income & Rent Limits'!$J$17,D379=7,'MHP Family Income & Rent Limits'!$K$17,D379=8,'MHP Family Income & Rent Limits'!$L$17)","v":""},"",{"$f":"IF(OR(A379=0,B379=\"X\"),0,MIN(IF(AA379:AD379<>0,AA379:AD379)))","v":0},{"$f":"IF(OR(H379=\"\",I379=\"\"),0,IF(H379*0.3/12>I379,MIN(H379*0.3/12,I379*1.1)+AP379,I379*(1+(VLOOKUP('1. Checklist & Certification'!$F$9,'HLCP-E Rent Change'!$A$1:$D$59,4,FALSE)))+AP379))","v":0}]
[null,null,null,null,null,null,null,null,null,null,null,null,null,null,null,null,null,null,null,null,null,null,null,null,null,null,0,0,0,0,0,0,0,0,{"$f":"IF(OR(A380=0,B380=\"X\"),0,IF(OR(S380=\"FHDP\",S380=\"RHCP-B\",U380=\"FHDP\",U380=\"RHCP-B\",W380=\"FHDP\",W380=\"RHCP-B\",Y380=\"FHDP\",Y380=\"RHCP-B\"),TRUNC((MIN(I380,K380)*(1+'1. Checklist & Certification'!$K$43)+AP380)),0))","v":0},{"$f":"IF(OR(A380=0,B380=\"X\"),0,IF(OR(S380=\"CHRP-R\",S380=\"SERA\",S380=\"SUHRP\",U380=\"CHRP-R\",U380=\"SERA\",U380=\"SUHRP\",W380=\"CHRP-R\",W380=\"SERA\",W380=\"SUHRP\",Y380=\"CHRP-R\",Y380=\"SERA\",Y380=\"SUHRP\"),TRUNC((MIN(I380,K380)*(1+'1. Checklist & Certification'!$K$49))),0))","v":0},{"$f":"IF(OR(A380=0,B380=\"X\"),0,IF(OR(S380=\"CALDAP\",S380=\"DPRLP\",U380=\"CALDAP\",U380=\"DPRLP\",W380=\"CALDAP\",W380=\"DPRLP\",Y380=\"CALDAP\",Y380=\"DPRLP\"),TRUNC(((MIN(I380,K380))*(1+'1. Checklist & Certification'!$G$4))),0))","v":0},0,0,0,{"$f":"IF(OR(A380=0,B380=\"X\"),0,IF(OR(S380=\"PRP\",S380=\"LPR\",U380=\"PRP\",U380=\"LPR\",W380=\"PRP\",W380=\"LPR\",Y380=\"PRP\",Y380=\"LPR\"),MAX(I380+AP380,MIN(IF(AE380:AN380<>0,AE380:AN380))),MIN(IF(AE380:AN380<>0,AE380:AN380))))","v":0},{"$f":"IF(A380=0,0,IF(AND(OR(S380=\"Mgr\",S380=0),OR(U380=\"Mgr\",U380=0),OR(W380=\"Mgr\",W380=0)),0,IF(LEFT($A380,2)=\"B*\",VLOOKUP($E380,'1. Checklist & Certification'!$D$26:$E$32,2),IF(LEFT($A380,2)=\"C*\",VLOOKUP($E380,'1. Checklist & Certification'!$F$26:$G$32,2),IF(LEFT($A380,2)=\"D*\",VLOOKUP($E380,'1. Checklist & Certification'!$H$26:$I$32,2),IF(LEFT($A380,2)=\"E*\",VLOOKUP($E380,'1. Checklist & Certification'!$J$26:$K$32,2),VLOOKUP($E380,'1. Checklist & Certification'!$A$26:$B$32,2)))))))","v":0},0,0,null,null,null,null,"","",0,0,0,null,{"$f":"IF(A380=\"\",\"\",'1. Checklist & Certification'!$K$1)","v":""},{"$f":"IF(A380=\"\",\"\",'1. Checklist & Certification'!$C$62)","v":""},{"$f":"IF(A380=\"\",\"\",'1. Checklist & Certification'!$C$6)","v":""},{"$f":"IF(A380=\"\",\"\",'1. Checklist & Certification'!$G$5)","v":""},{"$f":"IFERROR(IF(A380=\"\",\"\",\n_xlfn.LET(_xlpm.Contract,'1. Checklist & Certification'!$C$7,\n_xlpm.Yr,TEXT(MOD(_xlfn.TEXTBEFORE(_xlpm.Contract,\"-\"),100),\"00\"),\n_xlpm.Program,_xlfn.TEXTAFTER(_xlfn.TEXTBEFORE(_xlpm.Contract,\"-\",2),\"-\"),\n_xlpm.CleanProgram,_xlfn.XLOOKUP(_xlpm.Program,SpellCheck[Input],SpellCheck[Correction],_xlpm.Program),\n_xlpm.Number,TEXT(_xlfn.TEXTAFTER(_xlpm.Contract,\"-\",2),\"0000\"),\n_xlfn.CONCAT(_xlpm.Yr,\"-\",_xlpm.CleanProgram,\"-\",_xlpm.Number))\n),\"\")","v":""},{"$f":"IFERROR(IF(A380=\"\",\"\",\n_xlfn.LET(_xlpm.Contract,'1. Checklist & Certification'!$C$8,\n_xlpm.Yr,TEXT(MOD(_xlfn.TEXTBEFORE(_xlpm.Contract,\"-\"),100),\"00\"),\n_xlpm.Program,_xlfn.TEXTAFTER(_xlfn.TEXTBEFORE(_xlpm.Contract,\"-\",2),\"-\"),\n_xlpm.CleanProgram,_xlfn.XLOOKUP(_xlpm.Program,SpellCheck[Input],SpellCheck[Correction],_xlpm.Program),\n_xlpm.Number,TEXT(_xlfn.TEXTAFTER(_xlpm.Contract,\"-\",2),\"0000\"),\n_xlfn.CONCAT(_xlpm.Yr,\"-\",_xlpm.CleanProgram,\"-\",_xlpm.Number))\n),\"\")","v":""},{"$f":"IFERROR(IF(A380=\"\",\"\",\n_xlfn.LET(_xlpm.Contract,'1. Checklist & Certification'!$F$7,\n_xlpm.Yr,TEXT(MOD(_xlfn.TEXTBEFORE(_xlpm.Contract,\"-\"),100),\"00\"),\n_xlpm.Program,_xlfn.TEXTAFTER(_xlfn.TEXTBEFORE(_xlpm.Contract,\"-\",2),\"-\"),\n_xlpm.CleanProgram,_xlfn.XLOOKUP(_xlpm.Program,SpellCheck[Input],SpellCheck[Correction],_xlpm.Program),\n_xlpm.Number,TEXT(_xlfn.TEXTAFTER(_xlpm.Contract,\"-\",2),\"0000\"),\n_xlfn.CONCAT(_xlpm.Yr,\"-\",_xlpm.CleanProgram,\"-\",_xlpm.Number))\n),\"\")","v":""},{"$f":"IFERROR(IF(A380=\"\",\"\",\n_xlfn.LET(_xlpm.Contract,'1. Checklist & Certification'!$F$8,\n_xlpm.Yr,TEXT(MOD(_xlfn.TEXTBEFORE(_xlpm.Contract,\"-\"),100),\"00\"),\n_xlpm.Program,_xlfn.TEXTAFTER(_xlfn.TEXTBEFORE(_xlpm.Contract,\"-\",2),\"-\"),\n_xlpm.CleanProgram,_xlfn.XLOOKUP(_xlpm.Program,SpellCheck[Input],SpellCheck[Correction],_xlpm.Program),\n_xlpm.Number,TEXT(_xlfn.TEXTAFTER(_xlpm.Contract,\"-\",2),\"0000\"),\n_xlfn.CONCAT(_xlpm.Yr,\"-\",_xlpm.CleanProgram,\"-\",_xlpm.Number))\n),\"\")","v":""},{"$f":"IF(A380=\"\",\"\",'1. Checklist & Certification'!$B$9)","v":""},{"$f":"IF(A380=\"\",\"\",'1. Checklist & Certification'!$F$9)","v":""},{"$f":"IF(A380=\"\",\"\",'1. Checklist & Certification'!$C$10)","v":""},{"$f":"IF(A380=\"\",\"\",'1. Checklist & Certification'!$C$11)","v":""},{"$f":"IF(A380=\"\",\"\",'1. Checklist & Certification'!$C$12)","v":""},{"$f":"IF(A380=\"\",\"\",'1. Checklist & Certification'!$B$14)","v":""},{"$f":"IF(A380=\"\",\"\",'1. Checklist & Certification'!$E$14)","v":""},{"$f":"IF(B380=\"\",\"\",'1. Checklist & Certification'!$G$14)","v":""},{"$f":"IF(A380=\"\",\"\",'MHP Family Income & Rent Limits'!$B$3)","v":""},{"$f":"IF(A380=\"\",\"\",'MHP Family Income & Rent Limits'!$J$3)","v":""},{"$f":"IF(A380=\"\",\"\",'MHP Family Income & Rent Limits'!$E$4)","v":""},{"$f":"IF(A380=\"\",\"\",'MHP Family Income & Rent Limits'!$C$7)","v":""},{"$f":"IF(A380=\"\",\"\",'MHP Family Income & Rent Limits'!$F$8)","v":""},{"$f":"IF(A380=\"\",\"\",'1. Checklist & Certification'!$G$4)","v":""},{"$f":"IF(A380=\"\",\"\",'1. Checklist & Certification'!$K$39)","v":""},{"$f":"IF(A380=\"\",\"\",'1. Checklist & Certification'!$K$43)","v":""},{"$f":"IF(A380=\"\",\"\",'1. Checklist & Certification'!$K$45)","v":""},{"$f":"IF(A380=\"\",\"\",'1. Checklist & Certification'!$K$49)","v":""},{"$f":"IF(A380=\"\",\"\",'1. Checklist & Certification'!$K$62)","v":""},{"$f":"IF(A380=\"\",\"\",'1. Checklist & Certification'!$E$66)","v":""},{"$f":"IF(A380=\"\",\"\",'1. Checklist & Certification'!$E$67)","v":""},{"$f":"IF(A380=\"\",\"\",'1. Checklist & Certification'!$E$68)","v":""},{"$f":"IF(A380=\"\",\"\",'1. Checklist & Certification'!$G$66)","v":""},{"$f":"IF(A380=\"\",\"\",'1. Checklist & Certification'!$H$66)","v":""},{"$f":"IF(A380=\"\",\"\",'1. Checklist & Certification'!$I$66)","v":""},{"$f":"IF(A380=\"\",\"\",'1. Checklist & Certification'!$I$67)","v":""},{"$f":"IF(A380=\"\",\"\",'1. Checklist & Certification'!$I$68)","v":""},{"$f":"IF(A380=\"\",\"\",'1. Checklist & Certification'!$B$69)","v":""},{"$f":"IF(A380=\"\",\"\",'1. Checklist & Certification'!$C$69)","v":""},{"$f":"IF(A380=\"\",\"\",'1. Checklist & Certification'!$F$69)","v":""},{"$f":"IF(A380=\"\",\"\",'1. Checklist & Certification'!$G$69)","v":""},{"$f":"IF(A380=\"\",\"\",'1. Checklist & Certification'!$J$69)","v":""},{"$f":"IF(A380=\"\",\"\",'1. Checklist & Certification'!$K$69)","v":""},null,null,{"$f":"IF(AND(OR('1. Checklist & Certification'!$M$16=1,'1. Checklist & Certification'!$M$19=2),AO380>0,B380=\"\",I380>0,AQ380<I380,AV380<>\"Sec 8-Project\"),\"X\",IF(AND(OR('1. Checklist & Certification'!$M$20=4,'1. Checklist & Certification'!$M$21=5,'1. Checklist & Certification'!$M$22=7),AO380>0,B380=\"\",I380>0,K380<I380),\"X\",\"\"))","v":""},{"$f":"IF(A380=\"\",\"\",IF(SUMPRODUCT(-- (ISNUMBER(SEARCH({\"*AHSC*\",\"*FMTW*\",\"*FWHG*\",\"*GHI*\",\"*HHC*\",\"*HLCP*\",\"*HOME*\",\"*LPR*\",\"*MHP*\",\"*NHTF*\",\"*NSP*\",\"*PRP*\",\"*TOD*\",\"*VHHP*\"},'1. Checklist & Certification'!$L$7)))),\"MHP\",\"Legacy\"))","v":""},",,",null,null,null,{"$f":"IF('1. Checklist & Certification'!$M$20=4,\"Both\",IF(OR('1. Checklist & Certification'!$M$15>0,S380=\"CHRP-R\",U380=\"CHRP-R\",W380=\"CHRP-R\",Y380=\"CHRP-R\"),\"Under\",\"No\"))","v":"No"},"No","No",{"$f":"_xlfn.IFS(D380=\"\",\"\",D380=1,'MHP Family Income & Rent Limits'!$E$17,D380=2,'MHP Family Income & Rent Limits'!$F$17,D380=3,'MHP Family Income & Rent Limits'!$G$17,D380=4,'MHP Family Income & Rent Limits'!$H$17,D380=5,'MHP Family Income & Rent Limits'!$I$17,D380=6,'MHP Family Income & Rent Limits'!$J$17,D380=7,'MHP Family Income & Rent Limits'!$K$17,D380=8,'MHP Family Income & Rent Limits'!$L$17)","v":""},"",{"$f":"IF(OR(A380=0,B380=\"X\"),0,MIN(IF(AA380:AD380<>0,AA380:AD380)))","v":0},{"$f":"IF(OR(H380=\"\",I380=\"\"),0,IF(H380*0.3/12>I380,MIN(H380*0.3/12,I380*1.1)+AP380,I380*(1+(VLOOKUP('1. Checklist & Certification'!$F$9,'HLCP-E Rent Change'!$A$1:$D$59,4,FALSE)))+AP380))","v":0}]
[null,null,null,null,null,null,null,null,null,null,null,null,null,null,null,null,null,null,null,null,null,null,null,null,null,null,0,0,0,0,0,0,0,0,{"$f":"IF(OR(A381=0,B381=\"X\"),0,IF(OR(S381=\"FHDP\",S381=\"RHCP-B\",U381=\"FHDP\",U381=\"RHCP-B\",W381=\"FHDP\",W381=\"RHCP-B\",Y381=\"FHDP\",Y381=\"RHCP-B\"),TRUNC((MIN(I381,K381)*(1+'1. Checklist & Certification'!$K$43)+AP381)),0))","v":0},{"$f":"IF(OR(A381=0,B381=\"X\"),0,IF(OR(S381=\"CHRP-R\",S381=\"SERA\",S381=\"SUHRP\",U381=\"CHRP-R\",U381=\"SERA\",U381=\"SUHRP\",W381=\"CHRP-R\",W381=\"SERA\",W381=\"SUHRP\",Y381=\"CHRP-R\",Y381=\"SERA\",Y381=\"SUHRP\"),TRUNC((MIN(I381,K381)*(1+'1. Checklist & Certification'!$K$49))),0))","v":0},{"$f":"IF(OR(A381=0,B381=\"X\"),0,IF(OR(S381=\"CALDAP\",S381=\"DPRLP\",U381=\"CALDAP\",U381=\"DPRLP\",W381=\"CALDAP\",W381=\"DPRLP\",Y381=\"CALDAP\",Y381=\"DPRLP\"),TRUNC(((MIN(I381,K381))*(1+'1. Checklist & Certification'!$G$4))),0))","v":0},0,0,0,{"$f":"IF(OR(A381=0,B381=\"X\"),0,IF(OR(S381=\"PRP\",S381=\"LPR\",U381=\"PRP\",U381=\"LPR\",W381=\"PRP\",W381=\"LPR\",Y381=\"PRP\",Y381=\"LPR\"),MAX(I381+AP381,MIN(IF(AE381:AN381<>0,AE381:AN381))),MIN(IF(AE381:AN381<>0,AE381:AN381))))","v":0},{"$f":"IF(A381=0,0,IF(AND(OR(S381=\"Mgr\",S381=0),OR(U381=\"Mgr\",U381=0),OR(W381=\"Mgr\",W381=0)),0,IF(LEFT($A381,2)=\"B*\",VLOOKUP($E381,'1. Checklist & Certification'!$D$26:$E$32,2),IF(LEFT($A381,2)=\"C*\",VLOOKUP($E381,'1. Checklist & Certification'!$F$26:$G$32,2),IF(LEFT($A381,2)=\"D*\",VLOOKUP($E381,'1. Checklist & Certification'!$H$26:$I$32,2),IF(LEFT($A381,2)=\"E*\",VLOOKUP($E381,'1. Checklist & Certification'!$J$26:$K$32,2),VLOOKUP($E381,'1. Checklist & Certification'!$A$26:$B$32,2)))))))","v":0},0,0,null,null,null,null,"","",0,0,0,null,{"$f":"IF(A381=\"\",\"\",'1. Checklist & Certification'!$K$1)","v":""},{"$f":"IF(A381=\"\",\"\",'1. Checklist & Certification'!$C$62)","v":""},{"$f":"IF(A381=\"\",\"\",'1. Checklist & Certification'!$C$6)","v":""},{"$f":"IF(A381=\"\",\"\",'1. Checklist & Certification'!$G$5)","v":""},{"$f":"IFERROR(IF(A381=\"\",\"\",\n_xlfn.LET(_xlpm.Contract,'1. Checklist & Certification'!$C$7,\n_xlpm.Yr,TEXT(MOD(_xlfn.TEXTBEFORE(_xlpm.Contract,\"-\"),100),\"00\"),\n_xlpm.Program,_xlfn.TEXTAFTER(_xlfn.TEXTBEFORE(_xlpm.Contract,\"-\",2),\"-\"),\n_xlpm.CleanProgram,_xlfn.XLOOKUP(_xlpm.Program,SpellCheck[Input],SpellCheck[Correction],_xlpm.Program),\n_xlpm.Number,TEXT(_xlfn.TEXTAFTER(_xlpm.Contract,\"-\",2),\"0000\"),\n_xlfn.CONCAT(_xlpm.Yr,\"-\",_xlpm.CleanProgram,\"-\",_xlpm.Number))\n),\"\")","v":""},{"$f":"IFERROR(IF(A381=\"\",\"\",\n_xlfn.LET(_xlpm.Contract,'1. Checklist & Certification'!$C$8,\n_xlpm.Yr,TEXT(MOD(_xlfn.TEXTBEFORE(_xlpm.Contract,\"-\"),100),\"00\"),\n_xlpm.Program,_xlfn.TEXTAFTER(_xlfn.TEXTBEFORE(_xlpm.Contract,\"-\",2),\"-\"),\n_xlpm.CleanProgram,_xlfn.XLOOKUP(_xlpm.Program,SpellCheck[Input],SpellCheck[Correction],_xlpm.Program),\n_xlpm.Number,TEXT(_xlfn.TEXTAFTER(_xlpm.Contract,\"-\",2),\"0000\"),\n_xlfn.CONCAT(_xlpm.Yr,\"-\",_xlpm.CleanProgram,\"-\",_xlpm.Number))\n),\"\")","v":""},{"$f":"IFERROR(IF(A381=\"\",\"\",\n_xlfn.LET(_xlpm.Contract,'1. Checklist & Certification'!$F$7,\n_xlpm.Yr,TEXT(MOD(_xlfn.TEXTBEFORE(_xlpm.Contract,\"-\"),100),\"00\"),\n_xlpm.Program,_xlfn.TEXTAFTER(_xlfn.TEXTBEFORE(_xlpm.Contract,\"-\",2),\"-\"),\n_xlpm.CleanProgram,_xlfn.XLOOKUP(_xlpm.Program,SpellCheck[Input],SpellCheck[Correction],_xlpm.Program),\n_xlpm.Number,TEXT(_xlfn.TEXTAFTER(_xlpm.Contract,\"-\",2),\"0000\"),\n_xlfn.CONCAT(_xlpm.Yr,\"-\",_xlpm.CleanProgram,\"-\",_xlpm.Number))\n),\"\")","v":""},{"$f":"IFERROR(IF(A381=\"\",\"\",\n_xlfn.LET(_xlpm.Contract,'1. Checklist & Certification'!$F$8,\n_xlpm.Yr,TEXT(MOD(_xlfn.TEXTBEFORE(_xlpm.Contract,\"-\"),100),\"00\"),\n_xlpm.Program,_xlfn.TEXTAFTER(_xlfn.TEXTBEFORE(_xlpm.Contract,\"-\",2),\"-\"),\n_xlpm.CleanProgram,_xlfn.XLOOKUP(_xlpm.Program,SpellCheck[Input],SpellCheck[Correction],_xlpm.Program),\n_xlpm.Number,TEXT(_xlfn.TEXTAFTER(_xlpm.Contract,\"-\",2),\"0000\"),\n_xlfn.CONCAT(_xlpm.Yr,\"-\",_xlpm.CleanProgram,\"-\",_xlpm.Number))\n),\"\")","v":""},{"$f":"IF(A381=\"\",\"\",'1. Checklist & Certification'!$B$9)","v":""},{"$f":"IF(A381=\"\",\"\",'1. Checklist & Certification'!$F$9)","v":""},{"$f":"IF(A381=\"\",\"\",'1. Checklist & Certification'!$C$10)","v":""},{"$f":"IF(A381=\"\",\"\",'1. Checklist & Certification'!$C$11)","v":""},{"$f":"IF(A381=\"\",\"\",'1. Checklist & Certification'!$C$12)","v":""},{"$f":"IF(A381=\"\",\"\",'1. Checklist & Certification'!$B$14)","v":""},{"$f":"IF(A381=\"\",\"\",'1. Checklist & Certification'!$E$14)","v":""},{"$f":"IF(B381=\"\",\"\",'1. Checklist & Certification'!$G$14)","v":""},{"$f":"IF(A381=\"\",\"\",'MHP Family Income & Rent Limits'!$B$3)","v":""},{"$f":"IF(A381=\"\",\"\",'MHP Family Income & Rent Limits'!$J$3)","v":""},{"$f":"IF(A381=\"\",\"\",'MHP Family Income & Rent Limits'!$E$4)","v":""},{"$f":"IF(A381=\"\",\"\",'MHP Family Income & Rent Limits'!$C$7)","v":""},{"$f":"IF(A381=\"\",\"\",'MHP Family Income & Rent Limits'!$F$8)","v":""},{"$f":"IF(A381=\"\",\"\",'1. Checklist & Certification'!$G$4)","v":""},{"$f":"IF(A381=\"\",\"\",'1. Checklist & Certification'!$K$39)","v":""},{"$f":"IF(A381=\"\",\"\",'1. Checklist & Certification'!$K$43)","v":""},{"$f":"IF(A381=\"\",\"\",'1. Checklist & Certification'!$K$45)","v":""},{"$f":"IF(A381=\"\",\"\",'1. Checklist & Certification'!$K$49)","v":""},{"$f":"IF(A381=\"\",\"\",'1. Checklist & Certification'!$K$62)","v":""},{"$f":"IF(A381=\"\",\"\",'1. Checklist & Certification'!$E$66)","v":""},{"$f":"IF(A381=\"\",\"\",'1. Checklist & Certification'!$E$67)","v":""},{"$f":"IF(A381=\"\",\"\",'1. Checklist & Certification'!$E$68)","v":""},{"$f":"IF(A381=\"\",\"\",'1. Checklist & Certification'!$G$66)","v":""},{"$f":"IF(A381=\"\",\"\",'1. Checklist & Certification'!$H$66)","v":""},{"$f":"IF(A381=\"\",\"\",'1. Checklist & Certification'!$I$66)","v":""},{"$f":"IF(A381=\"\",\"\",'1. Checklist & Certification'!$I$67)","v":""},{"$f":"IF(A381=\"\",\"\",'1. Checklist & Certification'!$I$68)","v":""},{"$f":"IF(A381=\"\",\"\",'1. Checklist & Certification'!$B$69)","v":""},{"$f":"IF(A381=\"\",\"\",'1. Checklist & Certification'!$C$69)","v":""},{"$f":"IF(A381=\"\",\"\",'1. Checklist & Certification'!$F$69)","v":""},{"$f":"IF(A381=\"\",\"\",'1. Checklist & Certification'!$G$69)","v":""},{"$f":"IF(A381=\"\",\"\",'1. Checklist & Certification'!$J$69)","v":""},{"$f":"IF(A381=\"\",\"\",'1. Checklist & Certification'!$K$69)","v":""},null,null,{"$f":"IF(AND(OR('1. Checklist & Certification'!$M$16=1,'1. Checklist & Certification'!$M$19=2),AO381>0,B381=\"\",I381>0,AQ381<I381,AV381<>\"Sec 8-Project\"),\"X\",IF(AND(OR('1. Checklist & Certification'!$M$20=4,'1. Checklist & Certification'!$M$21=5,'1. Checklist & Certification'!$M$22=7),AO381>0,B381=\"\",I381>0,K381<I381),\"X\",\"\"))","v":""},{"$f":"IF(A381=\"\",\"\",IF(SUMPRODUCT(-- (ISNUMBER(SEARCH({\"*AHSC*\",\"*FMTW*\",\"*FWHG*\",\"*GHI*\",\"*HHC*\",\"*HLCP*\",\"*HOME*\",\"*LPR*\",\"*MHP*\",\"*NHTF*\",\"*NSP*\",\"*PRP*\",\"*TOD*\",\"*VHHP*\"},'1. Checklist & Certification'!$L$7)))),\"MHP\",\"Legacy\"))","v":""},",,",null,null,null,{"$f":"IF('1. Checklist & Certification'!$M$20=4,\"Both\",IF(OR('1. Checklist & Certification'!$M$15>0,S381=\"CHRP-R\",U381=\"CHRP-R\",W381=\"CHRP-R\",Y381=\"CHRP-R\"),\"Under\",\"No\"))","v":"No"},"No","No",{"$f":"_xlfn.IFS(D381=\"\",\"\",D381=1,'MHP Family Income & Rent Limits'!$E$17,D381=2,'MHP Family Income & Rent Limits'!$F$17,D381=3,'MHP Family Income & Rent Limits'!$G$17,D381=4,'MHP Family Income & Rent Limits'!$H$17,D381=5,'MHP Family Income & Rent Limits'!$I$17,D381=6,'MHP Family Income & Rent Limits'!$J$17,D381=7,'MHP Family Income & Rent Limits'!$K$17,D381=8,'MHP Family Income & Rent Limits'!$L$17)","v":""},"",{"$f":"IF(OR(A381=0,B381=\"X\"),0,MIN(IF(AA381:AD381<>0,AA381:AD381)))","v":0},{"$f":"IF(OR(H381=\"\",I381=\"\"),0,IF(H381*0.3/12>I381,MIN(H381*0.3/12,I381*1.1)+AP381,I381*(1+(VLOOKUP('1. Checklist & Certification'!$F$9,'HLCP-E Rent Change'!$A$1:$D$59,4,FALSE)))+AP381))","v":0}]
[null,null,null,null,null,null,null,null,null,null,null,null,null,null,null,null,null,null,null,null,null,null,null,null,null,null,0,0,0,0,0,0,0,0,{"$f":"IF(OR(A382=0,B382=\"X\"),0,IF(OR(S382=\"FHDP\",S382=\"RHCP-B\",U382=\"FHDP\",U382=\"RHCP-B\",W382=\"FHDP\",W382=\"RHCP-B\",Y382=\"FHDP\",Y382=\"RHCP-B\"),TRUNC((MIN(I382,K382)*(1+'1. Checklist & Certification'!$K$43)+AP382)),0))","v":0},{"$f":"IF(OR(A382=0,B382=\"X\"),0,IF(OR(S382=\"CHRP-R\",S382=\"SERA\",S382=\"SUHRP\",U382=\"CHRP-R\",U382=\"SERA\",U382=\"SUHRP\",W382=\"CHRP-R\",W382=\"SERA\",W382=\"SUHRP\",Y382=\"CHRP-R\",Y382=\"SERA\",Y382=\"SUHRP\"),TRUNC((MIN(I382,K382)*(1+'1. Checklist & Certification'!$K$49))),0))","v":0},{"$f":"IF(OR(A382=0,B382=\"X\"),0,IF(OR(S382=\"CALDAP\",S382=\"DPRLP\",U382=\"CALDAP\",U382=\"DPRLP\",W382=\"CALDAP\",W382=\"DPRLP\",Y382=\"CALDAP\",Y382=\"DPRLP\"),TRUNC(((MIN(I382,K382))*(1+'1. Checklist & Certification'!$G$4))),0))","v":0},0,0,0,{"$f":"IF(OR(A382=0,B382=\"X\"),0,IF(OR(S382=\"PRP\",S382=\"LPR\",U382=\"PRP\",U382=\"LPR\",W382=\"PRP\",W382=\"LPR\",Y382=\"PRP\",Y382=\"LPR\"),MAX(I382+AP382,MIN(IF(AE382:AN382<>0,AE382:AN382))),MIN(IF(AE382:AN382<>0,AE382:AN382))))","v":0},{"$f":"IF(A382=0,0,IF(AND(OR(S382=\"Mgr\",S382=0),OR(U382=\"Mgr\",U382=0),OR(W382=\"Mgr\",W382=0)),0,IF(LEFT($A382,2)=\"B*\",VLOOKUP($E382,'1. Checklist & Certification'!$D$26:$E$32,2),IF(LEFT($A382,2)=\"C*\",VLOOKUP($E382,'1. Checklist & Certification'!$F$26:$G$32,2),IF(LEFT($A382,2)=\"D*\",VLOOKUP($E382,'1. Checklist & Certification'!$H$26:$I$32,2),IF(LEFT($A382,2)=\"E*\",VLOOKUP($E382,'1. Checklist & Certification'!$J$26:$K$32,2),VLOOKUP($E382,'1. Checklist & Certification'!$A$26:$B$32,2)))))))","v":0},0,0,null,null,null,null,"","",0,0,0,null,{"$f":"IF(A382=\"\",\"\",'1. Checklist & Certification'!$K$1)","v":""},{"$f":"IF(A382=\"\",\"\",'1. Checklist & Certification'!$C$62)","v":""},{"$f":"IF(A382=\"\",\"\",'1. Checklist & Certification'!$C$6)","v":""},{"$f":"IF(A382=\"\",\"\",'1. Checklist & Certification'!$G$5)","v":""},{"$f":"IFERROR(IF(A382=\"\",\"\",\n_xlfn.LET(_xlpm.Contract,'1. Checklist & Certification'!$C$7,\n_xlpm.Yr,TEXT(MOD(_xlfn.TEXTBEFORE(_xlpm.Contract,\"-\"),100),\"00\"),\n_xlpm.Program,_xlfn.TEXTAFTER(_xlfn.TEXTBEFORE(_xlpm.Contract,\"-\",2),\"-\"),\n_xlpm.CleanProgram,_xlfn.XLOOKUP(_xlpm.Program,SpellCheck[Input],SpellCheck[Correction],_xlpm.Program),\n_xlpm.Number,TEXT(_xlfn.TEXTAFTER(_xlpm.Contract,\"-\",2),\"0000\"),\n_xlfn.CONCAT(_xlpm.Yr,\"-\",_xlpm.CleanProgram,\"-\",_xlpm.Number))\n),\"\")","v":""},{"$f":"IFERROR(IF(A382=\"\",\"\",\n_xlfn.LET(_xlpm.Contract,'1. Checklist & Certification'!$C$8,\n_xlpm.Yr,TEXT(MOD(_xlfn.TEXTBEFORE(_xlpm.Contract,\"-\"),100),\"00\"),\n_xlpm.Program,_xlfn.TEXTAFTER(_xlfn.TEXTBEFORE(_xlpm.Contract,\"-\",2),\"-\"),\n_xlpm.CleanProgram,_xlfn.XLOOKUP(_xlpm.Program,SpellCheck[Input],SpellCheck[Correction],_xlpm.Program),\n_xlpm.Number,TEXT(_xlfn.TEXTAFTER(_xlpm.Contract,\"-\",2),\"0000\"),\n_xlfn.CONCAT(_xlpm.Yr,\"-\",_xlpm.CleanProgram,\"-\",_xlpm.Number))\n),\"\")","v":""},{"$f":"IFERROR(IF(A382=\"\",\"\",\n_xlfn.LET(_xlpm.Contract,'1. Checklist & Certification'!$F$7,\n_xlpm.Yr,TEXT(MOD(_xlfn.TEXTBEFORE(_xlpm.Contract,\"-\"),100),\"00\"),\n_xlpm.Program,_xlfn.TEXTAFTER(_xlfn.TEXTBEFORE(_xlpm.Contract,\"-\",2),\"-\"),\n_xlpm.CleanProgram,_xlfn.XLOOKUP(_xlpm.Program,SpellCheck[Input],SpellCheck[Correction],_xlpm.Program),\n_xlpm.Number,TEXT(_xlfn.TEXTAFTER(_xlpm.Contract,\"-\",2),\"0000\"),\n_xlfn.CONCAT(_xlpm.Yr,\"-\",_xlpm.CleanProgram,\"-\",_xlpm.Number))\n),\"\")","v":""},{"$f":"IFERROR(IF(A382=\"\",\"\",\n_xlfn.LET(_xlpm.Contract,'1. Checklist & Certification'!$F$8,\n_xlpm.Yr,TEXT(MOD(_xlfn.TEXTBEFORE(_xlpm.Contract,\"-\"),100),\"00\"),\n_xlpm.Program,_xlfn.TEXTAFTER(_xlfn.TEXTBEFORE(_xlpm.Contract,\"-\",2),\"-\"),\n_xlpm.CleanProgram,_xlfn.XLOOKUP(_xlpm.Program,SpellCheck[Input],SpellCheck[Correction],_xlpm.Program),\n_xlpm.Number,TEXT(_xlfn.TEXTAFTER(_xlpm.Contract,\"-\",2),\"0000\"),\n_xlfn.CONCAT(_xlpm.Yr,\"-\",_xlpm.CleanProgram,\"-\",_xlpm.Number))\n),\"\")","v":""},{"$f":"IF(A382=\"\",\"\",'1. Checklist & Certification'!$B$9)","v":""},{"$f":"IF(A382=\"\",\"\",'1. Checklist & Certification'!$F$9)","v":""},{"$f":"IF(A382=\"\",\"\",'1. Checklist & Certification'!$C$10)","v":""},{"$f":"IF(A382=\"\",\"\",'1. Checklist & Certification'!$C$11)","v":""},{"$f":"IF(A382=\"\",\"\",'1. Checklist & Certification'!$C$12)","v":""},{"$f":"IF(A382=\"\",\"\",'1. Checklist & Certification'!$B$14)","v":""},{"$f":"IF(A382=\"\",\"\",'1. Checklist & Certification'!$E$14)","v":""},{"$f":"IF(B382=\"\",\"\",'1. Checklist & Certification'!$G$14)","v":""},{"$f":"IF(A382=\"\",\"\",'MHP Family Income & Rent Limits'!$B$3)","v":""},{"$f":"IF(A382=\"\",\"\",'MHP Family Income & Rent Limits'!$J$3)","v":""},{"$f":"IF(A382=\"\",\"\",'MHP Family Income & Rent Limits'!$E$4)","v":""},{"$f":"IF(A382=\"\",\"\",'MHP Family Income & Rent Limits'!$C$7)","v":""},{"$f":"IF(A382=\"\",\"\",'MHP Family Income & Rent Limits'!$F$8)","v":""},{"$f":"IF(A382=\"\",\"\",'1. Checklist & Certification'!$G$4)","v":""},{"$f":"IF(A382=\"\",\"\",'1. Checklist & Certification'!$K$39)","v":""},{"$f":"IF(A382=\"\",\"\",'1. Checklist & Certification'!$K$43)","v":""},{"$f":"IF(A382=\"\",\"\",'1. Checklist & Certification'!$K$45)","v":""},{"$f":"IF(A382=\"\",\"\",'1. Checklist & Certification'!$K$49)","v":""},{"$f":"IF(A382=\"\",\"\",'1. Checklist & Certification'!$K$62)","v":""},{"$f":"IF(A382=\"\",\"\",'1. Checklist & Certification'!$E$66)","v":""},{"$f":"IF(A382=\"\",\"\",'1. Checklist & Certification'!$E$67)","v":""},{"$f":"IF(A382=\"\",\"\",'1. Checklist & Certification'!$E$68)","v":""},{"$f":"IF(A382=\"\",\"\",'1. Checklist & Certification'!$G$66)","v":""},{"$f":"IF(A382=\"\",\"\",'1. Checklist & Certification'!$H$66)","v":""},{"$f":"IF(A382=\"\",\"\",'1. Checklist & Certification'!$I$66)","v":""},{"$f":"IF(A382=\"\",\"\",'1. Checklist & Certification'!$I$67)","v":""},{"$f":"IF(A382=\"\",\"\",'1. Checklist & Certification'!$I$68)","v":""},{"$f":"IF(A382=\"\",\"\",'1. Checklist & Certification'!$B$69)","v":""},{"$f":"IF(A382=\"\",\"\",'1. Checklist & Certification'!$C$69)","v":""},{"$f":"IF(A382=\"\",\"\",'1. Checklist & Certification'!$F$69)","v":""},{"$f":"IF(A382=\"\",\"\",'1. Checklist & Certification'!$G$69)","v":""},{"$f":"IF(A382=\"\",\"\",'1. Checklist & Certification'!$J$69)","v":""},{"$f":"IF(A382=\"\",\"\",'1. Checklist & Certification'!$K$69)","v":""},null,null,{"$f":"IF(AND(OR('1. Checklist & Certification'!$M$16=1,'1. Checklist & Certification'!$M$19=2),AO382>0,B382=\"\",I382>0,AQ382<I382,AV382<>\"Sec 8-Project\"),\"X\",IF(AND(OR('1. Checklist & Certification'!$M$20=4,'1. Checklist & Certification'!$M$21=5,'1. Checklist & Certification'!$M$22=7),AO382>0,B382=\"\",I382>0,K382<I382),\"X\",\"\"))","v":""},{"$f":"IF(A382=\"\",\"\",IF(SUMPRODUCT(-- (ISNUMBER(SEARCH({\"*AHSC*\",\"*FMTW*\",\"*FWHG*\",\"*GHI*\",\"*HHC*\",\"*HLCP*\",\"*HOME*\",\"*LPR*\",\"*MHP*\",\"*NHTF*\",\"*NSP*\",\"*PRP*\",\"*TOD*\",\"*VHHP*\"},'1. Checklist & Certification'!$L$7)))),\"MHP\",\"Legacy\"))","v":""},",,",null,null,null,{"$f":"IF('1. Checklist & Certification'!$M$20=4,\"Both\",IF(OR('1. Checklist & Certification'!$M$15>0,S382=\"CHRP-R\",U382=\"CHRP-R\",W382=\"CHRP-R\",Y382=\"CHRP-R\"),\"Under\",\"No\"))","v":"No"},"No","No",{"$f":"_xlfn.IFS(D382=\"\",\"\",D382=1,'MHP Family Income & Rent Limits'!$E$17,D382=2,'MHP Family Income & Rent Limits'!$F$17,D382=3,'MHP Family Income & Rent Limits'!$G$17,D382=4,'MHP Family Income & Rent Limits'!$H$17,D382=5,'MHP Family Income & Rent Limits'!$I$17,D382=6,'MHP Family Income & Rent Limits'!$J$17,D382=7,'MHP Family Income & Rent Limits'!$K$17,D382=8,'MHP Family Income & Rent Limits'!$L$17)","v":""},"",{"$f":"IF(OR(A382=0,B382=\"X\"),0,MIN(IF(AA382:AD382<>0,AA382:AD382)))","v":0},{"$f":"IF(OR(H382=\"\",I382=\"\"),0,IF(H382*0.3/12>I382,MIN(H382*0.3/12,I382*1.1)+AP382,I382*(1+(VLOOKUP('1. Checklist & Certification'!$F$9,'HLCP-E Rent Change'!$A$1:$D$59,4,FALSE)))+AP382))","v":0}]
[null,null,null,null,null,null,null,null,null,null,null,null,null,null,null,null,null,null,null,null,null,null,null,null,null,null,0,0,0,0,0,0,0,0,{"$f":"IF(OR(A383=0,B383=\"X\"),0,IF(OR(S383=\"FHDP\",S383=\"RHCP-B\",U383=\"FHDP\",U383=\"RHCP-B\",W383=\"FHDP\",W383=\"RHCP-B\",Y383=\"FHDP\",Y383=\"RHCP-B\"),TRUNC((MIN(I383,K383)*(1+'1. Checklist & Certification'!$K$43)+AP383)),0))","v":0},{"$f":"IF(OR(A383=0,B383=\"X\"),0,IF(OR(S383=\"CHRP-R\",S383=\"SERA\",S383=\"SUHRP\",U383=\"CHRP-R\",U383=\"SERA\",U383=\"SUHRP\",W383=\"CHRP-R\",W383=\"SERA\",W383=\"SUHRP\",Y383=\"CHRP-R\",Y383=\"SERA\",Y383=\"SUHRP\"),TRUNC((MIN(I383,K383)*(1+'1. Checklist & Certification'!$K$49))),0))","v":0},{"$f":"IF(OR(A383=0,B383=\"X\"),0,IF(OR(S383=\"CALDAP\",S383=\"DPRLP\",U383=\"CALDAP\",U383=\"DPRLP\",W383=\"CALDAP\",W383=\"DPRLP\",Y383=\"CALDAP\",Y383=\"DPRLP\"),TRUNC(((MIN(I383,K383))*(1+'1. Checklist & Certification'!$G$4))),0))","v":0},0,0,0,{"$f":"IF(OR(A383=0,B383=\"X\"),0,IF(OR(S383=\"PRP\",S383=\"LPR\",U383=\"PRP\",U383=\"LPR\",W383=\"PRP\",W383=\"LPR\",Y383=\"PRP\",Y383=\"LPR\"),MAX(I383+AP383,MIN(IF(AE383:AN383<>0,AE383:AN383))),MIN(IF(AE383:AN383<>0,AE383:AN383))))","v":0},{"$f":"IF(A383=0,0,IF(AND(OR(S383=\"Mgr\",S383=0),OR(U383=\"Mgr\",U383=0),OR(W383=\"Mgr\",W383=0)),0,IF(LEFT($A383,2)=\"B*\",VLOOKUP($E383,'1. Checklist & Certification'!$D$26:$E$32,2),IF(LEFT($A383,2)=\"C*\",VLOOKUP($E383,'1. Checklist & Certification'!$F$26:$G$32,2),IF(LEFT($A383,2)=\"D*\",VLOOKUP($E383,'1. Checklist & Certification'!$H$26:$I$32,2),IF(LEFT($A383,2)=\"E*\",VLOOKUP($E383,'1. Checklist & Certification'!$J$26:$K$32,2),VLOOKUP($E383,'1. Checklist & Certification'!$A$26:$B$32,2)))))))","v":0},0,0,null,null,null,null,"","",0,0,0,null,{"$f":"IF(A383=\"\",\"\",'1. Checklist & Certification'!$K$1)","v":""},{"$f":"IF(A383=\"\",\"\",'1. Checklist & Certification'!$C$62)","v":""},{"$f":"IF(A383=\"\",\"\",'1. Checklist & Certification'!$C$6)","v":""},{"$f":"IF(A383=\"\",\"\",'1. Checklist & Certification'!$G$5)","v":""},{"$f":"IFERROR(IF(A383=\"\",\"\",\n_xlfn.LET(_xlpm.Contract,'1. Checklist & Certification'!$C$7,\n_xlpm.Yr,TEXT(MOD(_xlfn.TEXTBEFORE(_xlpm.Contract,\"-\"),100),\"00\"),\n_xlpm.Program,_xlfn.TEXTAFTER(_xlfn.TEXTBEFORE(_xlpm.Contract,\"-\",2),\"-\"),\n_xlpm.CleanProgram,_xlfn.XLOOKUP(_xlpm.Program,SpellCheck[Input],SpellCheck[Correction],_xlpm.Program),\n_xlpm.Number,TEXT(_xlfn.TEXTAFTER(_xlpm.Contract,\"-\",2),\"0000\"),\n_xlfn.CONCAT(_xlpm.Yr,\"-\",_xlpm.CleanProgram,\"-\",_xlpm.Number))\n),\"\")","v":""},{"$f":"IFERROR(IF(A383=\"\",\"\",\n_xlfn.LET(_xlpm.Contract,'1. Checklist & Certification'!$C$8,\n_xlpm.Yr,TEXT(MOD(_xlfn.TEXTBEFORE(_xlpm.Contract,\"-\"),100),\"00\"),\n_xlpm.Program,_xlfn.TEXTAFTER(_xlfn.TEXTBEFORE(_xlpm.Contract,\"-\",2),\"-\"),\n_xlpm.CleanProgram,_xlfn.XLOOKUP(_xlpm.Program,SpellCheck[Input],SpellCheck[Correction],_xlpm.Program),\n_xlpm.Number,TEXT(_xlfn.TEXTAFTER(_xlpm.Contract,\"-\",2),\"0000\"),\n_xlfn.CONCAT(_xlpm.Yr,\"-\",_xlpm.CleanProgram,\"-\",_xlpm.Number))\n),\"\")","v":""},{"$f":"IFERROR(IF(A383=\"\",\"\",\n_xlfn.LET(_xlpm.Contract,'1. Checklist & Certification'!$F$7,\n_xlpm.Yr,TEXT(MOD(_xlfn.TEXTBEFORE(_xlpm.Contract,\"-\"),100),\"00\"),\n_xlpm.Program,_xlfn.TEXTAFTER(_xlfn.TEXTBEFORE(_xlpm.Contract,\"-\",2),\"-\"),\n_xlpm.CleanProgram,_xlfn.XLOOKUP(_xlpm.Program,SpellCheck[Input],SpellCheck[Correction],_xlpm.Program),\n_xlpm.Number,TEXT(_xlfn.TEXTAFTER(_xlpm.Contract,\"-\",2),\"0000\"),\n_xlfn.CONCAT(_xlpm.Yr,\"-\",_xlpm.CleanProgram,\"-\",_xlpm.Number))\n),\"\")","v":""},{"$f":"IFERROR(IF(A383=\"\",\"\",\n_xlfn.LET(_xlpm.Contract,'1. Checklist & Certification'!$F$8,\n_xlpm.Yr,TEXT(MOD(_xlfn.TEXTBEFORE(_xlpm.Contract,\"-\"),100),\"00\"),\n_xlpm.Program,_xlfn.TEXTAFTER(_xlfn.TEXTBEFORE(_xlpm.Contract,\"-\",2),\"-\"),\n_xlpm.CleanProgram,_xlfn.XLOOKUP(_xlpm.Program,SpellCheck[Input],SpellCheck[Correction],_xlpm.Program),\n_xlpm.Number,TEXT(_xlfn.TEXTAFTER(_xlpm.Contract,\"-\",2),\"0000\"),\n_xlfn.CONCAT(_xlpm.Yr,\"-\",_xlpm.CleanProgram,\"-\",_xlpm.Number))\n),\"\")","v":""},{"$f":"IF(A383=\"\",\"\",'1. Checklist & Certification'!$B$9)","v":""},{"$f":"IF(A383=\"\",\"\",'1. Checklist & Certification'!$F$9)","v":""},{"$f":"IF(A383=\"\",\"\",'1. Checklist & Certification'!$C$10)","v":""},{"$f":"IF(A383=\"\",\"\",'1. Checklist & Certification'!$C$11)","v":""},{"$f":"IF(A383=\"\",\"\",'1. Checklist & Certification'!$C$12)","v":""},{"$f":"IF(A383=\"\",\"\",'1. Checklist & Certification'!$B$14)","v":""},{"$f":"IF(A383=\"\",\"\",'1. Checklist & Certification'!$E$14)","v":""},{"$f":"IF(B383=\"\",\"\",'1. Checklist & Certification'!$G$14)","v":""},{"$f":"IF(A383=\"\",\"\",'MHP Family Income & Rent Limits'!$B$3)","v":""},{"$f":"IF(A383=\"\",\"\",'MHP Family Income & Rent Limits'!$J$3)","v":""},{"$f":"IF(A383=\"\",\"\",'MHP Family Income & Rent Limits'!$E$4)","v":""},{"$f":"IF(A383=\"\",\"\",'MHP Family Income & Rent Limits'!$C$7)","v":""},{"$f":"IF(A383=\"\",\"\",'MHP Family Income & Rent Limits'!$F$8)","v":""},{"$f":"IF(A383=\"\",\"\",'1. Checklist & Certification'!$G$4)","v":""},{"$f":"IF(A383=\"\",\"\",'1. Checklist & Certification'!$K$39)","v":""},{"$f":"IF(A383=\"\",\"\",'1. Checklist & Certification'!$K$43)","v":""},{"$f":"IF(A383=\"\",\"\",'1. Checklist & Certification'!$K$45)","v":""},{"$f":"IF(A383=\"\",\"\",'1. Checklist & Certification'!$K$49)","v":""},{"$f":"IF(A383=\"\",\"\",'1. Checklist & Certification'!$K$62)","v":""},{"$f":"IF(A383=\"\",\"\",'1. Checklist & Certification'!$E$66)","v":""},{"$f":"IF(A383=\"\",\"\",'1. Checklist & Certification'!$E$67)","v":""},{"$f":"IF(A383=\"\",\"\",'1. Checklist & Certification'!$E$68)","v":""},{"$f":"IF(A383=\"\",\"\",'1. Checklist & Certification'!$G$66)","v":""},{"$f":"IF(A383=\"\",\"\",'1. Checklist & Certification'!$H$66)","v":""},{"$f":"IF(A383=\"\",\"\",'1. Checklist & Certification'!$I$66)","v":""},{"$f":"IF(A383=\"\",\"\",'1. Checklist & Certification'!$I$67)","v":""},{"$f":"IF(A383=\"\",\"\",'1. Checklist & Certification'!$I$68)","v":""},{"$f":"IF(A383=\"\",\"\",'1. Checklist & Certification'!$B$69)","v":""},{"$f":"IF(A383=\"\",\"\",'1. Checklist & Certification'!$C$69)","v":""},{"$f":"IF(A383=\"\",\"\",'1. Checklist & Certification'!$F$69)","v":""},{"$f":"IF(A383=\"\",\"\",'1. Checklist & Certification'!$G$69)","v":""},{"$f":"IF(A383=\"\",\"\",'1. Checklist & Certification'!$J$69)","v":""},{"$f":"IF(A383=\"\",\"\",'1. Checklist & Certification'!$K$69)","v":""},null,null,{"$f":"IF(AND(OR('1. Checklist & Certification'!$M$16=1,'1. Checklist & Certification'!$M$19=2),AO383>0,B383=\"\",I383>0,AQ383<I383,AV383<>\"Sec 8-Project\"),\"X\",IF(AND(OR('1. Checklist & Certification'!$M$20=4,'1. Checklist & Certification'!$M$21=5,'1. Checklist & Certification'!$M$22=7),AO383>0,B383=\"\",I383>0,K383<I383),\"X\",\"\"))","v":""},{"$f":"IF(A383=\"\",\"\",IF(SUMPRODUCT(-- (ISNUMBER(SEARCH({\"*AHSC*\",\"*FMTW*\",\"*FWHG*\",\"*GHI*\",\"*HHC*\",\"*HLCP*\",\"*HOME*\",\"*LPR*\",\"*MHP*\",\"*NHTF*\",\"*NSP*\",\"*PRP*\",\"*TOD*\",\"*VHHP*\"},'1. Checklist & Certification'!$L$7)))),\"MHP\",\"Legacy\"))","v":""},",,",null,null,null,{"$f":"IF('1. Checklist & Certification'!$M$20=4,\"Both\",IF(OR('1. Checklist & Certification'!$M$15>0,S383=\"CHRP-R\",U383=\"CHRP-R\",W383=\"CHRP-R\",Y383=\"CHRP-R\"),\"Under\",\"No\"))","v":"No"},"No","No",{"$f":"_xlfn.IFS(D383=\"\",\"\",D383=1,'MHP Family Income & Rent Limits'!$E$17,D383=2,'MHP Family Income & Rent Limits'!$F$17,D383=3,'MHP Family Income & Rent Limits'!$G$17,D383=4,'MHP Family Income & Rent Limits'!$H$17,D383=5,'MHP Family Income & Rent Limits'!$I$17,D383=6,'MHP Family Income & Rent Limits'!$J$17,D383=7,'MHP Family Income & Rent Limits'!$K$17,D383=8,'MHP Family Income & Rent Limits'!$L$17)","v":""},"",{"$f":"IF(OR(A383=0,B383=\"X\"),0,MIN(IF(AA383:AD383<>0,AA383:AD383)))","v":0},{"$f":"IF(OR(H383=\"\",I383=\"\"),0,IF(H383*0.3/12>I383,MIN(H383*0.3/12,I383*1.1)+AP383,I383*(1+(VLOOKUP('1. Checklist & Certification'!$F$9,'HLCP-E Rent Change'!$A$1:$D$59,4,FALSE)))+AP383))","v":0}]
[null,null,null,null,null,null,null,null,null,null,null,null,null,null,null,null,null,null,null,null,null,null,null,null,null,null,0,0,0,0,0,0,0,0,{"$f":"IF(OR(A384=0,B384=\"X\"),0,IF(OR(S384=\"FHDP\",S384=\"RHCP-B\",U384=\"FHDP\",U384=\"RHCP-B\",W384=\"FHDP\",W384=\"RHCP-B\",Y384=\"FHDP\",Y384=\"RHCP-B\"),TRUNC((MIN(I384,K384)*(1+'1. Checklist & Certification'!$K$43)+AP384)),0))","v":0},{"$f":"IF(OR(A384=0,B384=\"X\"),0,IF(OR(S384=\"CHRP-R\",S384=\"SERA\",S384=\"SUHRP\",U384=\"CHRP-R\",U384=\"SERA\",U384=\"SUHRP\",W384=\"CHRP-R\",W384=\"SERA\",W384=\"SUHRP\",Y384=\"CHRP-R\",Y384=\"SERA\",Y384=\"SUHRP\"),TRUNC((MIN(I384,K384)*(1+'1. Checklist & Certification'!$K$49))),0))","v":0},{"$f":"IF(OR(A384=0,B384=\"X\"),0,IF(OR(S384=\"CALDAP\",S384=\"DPRLP\",U384=\"CALDAP\",U384=\"DPRLP\",W384=\"CALDAP\",W384=\"DPRLP\",Y384=\"CALDAP\",Y384=\"DPRLP\"),TRUNC(((MIN(I384,K384))*(1+'1. Checklist & Certification'!$G$4))),0))","v":0},0,0,0,{"$f":"IF(OR(A384=0,B384=\"X\"),0,IF(OR(S384=\"PRP\",S384=\"LPR\",U384=\"PRP\",U384=\"LPR\",W384=\"PRP\",W384=\"LPR\",Y384=\"PRP\",Y384=\"LPR\"),MAX(I384+AP384,MIN(IF(AE384:AN384<>0,AE384:AN384))),MIN(IF(AE384:AN384<>0,AE384:AN384))))","v":0},{"$f":"IF(A384=0,0,IF(AND(OR(S384=\"Mgr\",S384=0),OR(U384=\"Mgr\",U384=0),OR(W384=\"Mgr\",W384=0)),0,IF(LEFT($A384,2)=\"B*\",VLOOKUP($E384,'1. Checklist & Certification'!$D$26:$E$32,2),IF(LEFT($A384,2)=\"C*\",VLOOKUP($E384,'1. Checklist & Certification'!$F$26:$G$32,2),IF(LEFT($A384,2)=\"D*\",VLOOKUP($E384,'1. Checklist & Certification'!$H$26:$I$32,2),IF(LEFT($A384,2)=\"E*\",VLOOKUP($E384,'1. Checklist & Certification'!$J$26:$K$32,2),VLOOKUP($E384,'1. Checklist & Certification'!$A$26:$B$32,2)))))))","v":0},0,0,null,null,null,null,"","",0,0,0,null,{"$f":"IF(A384=\"\",\"\",'1. Checklist & Certification'!$K$1)","v":""},{"$f":"IF(A384=\"\",\"\",'1. Checklist & Certification'!$C$62)","v":""},{"$f":"IF(A384=\"\",\"\",'1. Checklist & Certification'!$C$6)","v":""},{"$f":"IF(A384=\"\",\"\",'1. Checklist & Certification'!$G$5)","v":""},{"$f":"IFERROR(IF(A384=\"\",\"\",\n_xlfn.LET(_xlpm.Contract,'1. Checklist & Certification'!$C$7,\n_xlpm.Yr,TEXT(MOD(_xlfn.TEXTBEFORE(_xlpm.Contract,\"-\"),100),\"00\"),\n_xlpm.Program,_xlfn.TEXTAFTER(_xlfn.TEXTBEFORE(_xlpm.Contract,\"-\",2),\"-\"),\n_xlpm.CleanProgram,_xlfn.XLOOKUP(_xlpm.Program,SpellCheck[Input],SpellCheck[Correction],_xlpm.Program),\n_xlpm.Number,TEXT(_xlfn.TEXTAFTER(_xlpm.Contract,\"-\",2),\"0000\"),\n_xlfn.CONCAT(_xlpm.Yr,\"-\",_xlpm.CleanProgram,\"-\",_xlpm.Number))\n),\"\")","v":""},{"$f":"IFERROR(IF(A384=\"\",\"\",\n_xlfn.LET(_xlpm.Contract,'1. Checklist & Certification'!$C$8,\n_xlpm.Yr,TEXT(MOD(_xlfn.TEXTBEFORE(_xlpm.Contract,\"-\"),100),\"00\"),\n_xlpm.Program,_xlfn.TEXTAFTER(_xlfn.TEXTBEFORE(_xlpm.Contract,\"-\",2),\"-\"),\n_xlpm.CleanProgram,_xlfn.XLOOKUP(_xlpm.Program,SpellCheck[Input],SpellCheck[Correction],_xlpm.Program),\n_xlpm.Number,TEXT(_xlfn.TEXTAFTER(_xlpm.Contract,\"-\",2),\"0000\"),\n_xlfn.CONCAT(_xlpm.Yr,\"-\",_xlpm.CleanProgram,\"-\",_xlpm.Number))\n),\"\")","v":""},{"$f":"IFERROR(IF(A384=\"\",\"\",\n_xlfn.LET(_xlpm.Contract,'1. Checklist & Certification'!$F$7,\n_xlpm.Yr,TEXT(MOD(_xlfn.TEXTBEFORE(_xlpm.Contract,\"-\"),100),\"00\"),\n_xlpm.Program,_xlfn.TEXTAFTER(_xlfn.TEXTBEFORE(_xlpm.Contract,\"-\",2),\"-\"),\n_xlpm.CleanProgram,_xlfn.XLOOKUP(_xlpm.Program,SpellCheck[Input],SpellCheck[Correction],_xlpm.Program),\n_xlpm.Number,TEXT(_xlfn.TEXTAFTER(_xlpm.Contract,\"-\",2),\"0000\"),\n_xlfn.CONCAT(_xlpm.Yr,\"-\",_xlpm.CleanProgram,\"-\",_xlpm.Number))\n),\"\")","v":""},{"$f":"IFERROR(IF(A384=\"\",\"\",\n_xlfn.LET(_xlpm.Contract,'1. Checklist & Certification'!$F$8,\n_xlpm.Yr,TEXT(MOD(_xlfn.TEXTBEFORE(_xlpm.Contract,\"-\"),100),\"00\"),\n_xlpm.Program,_xlfn.TEXTAFTER(_xlfn.TEXTBEFORE(_xlpm.Contract,\"-\",2),\"-\"),\n_xlpm.CleanProgram,_xlfn.XLOOKUP(_xlpm.Program,SpellCheck[Input],SpellCheck[Correction],_xlpm.Program),\n_xlpm.Number,TEXT(_xlfn.TEXTAFTER(_xlpm.Contract,\"-\",2),\"0000\"),\n_xlfn.CONCAT(_xlpm.Yr,\"-\",_xlpm.CleanProgram,\"-\",_xlpm.Number))\n),\"\")","v":""},{"$f":"IF(A384=\"\",\"\",'1. Checklist & Certification'!$B$9)","v":""},{"$f":"IF(A384=\"\",\"\",'1. Checklist & Certification'!$F$9)","v":""},{"$f":"IF(A384=\"\",\"\",'1. Checklist & Certification'!$C$10)","v":""},{"$f":"IF(A384=\"\",\"\",'1. Checklist & Certification'!$C$11)","v":""},{"$f":"IF(A384=\"\",\"\",'1. Checklist & Certification'!$C$12)","v":""},{"$f":"IF(A384=\"\",\"\",'1. Checklist & Certification'!$B$14)","v":""},{"$f":"IF(A384=\"\",\"\",'1. Checklist & Certification'!$E$14)","v":""},{"$f":"IF(B384=\"\",\"\",'1. Checklist & Certification'!$G$14)","v":""},{"$f":"IF(A384=\"\",\"\",'MHP Family Income & Rent Limits'!$B$3)","v":""},{"$f":"IF(A384=\"\",\"\",'MHP Family Income & Rent Limits'!$J$3)","v":""},{"$f":"IF(A384=\"\",\"\",'MHP Family Income & Rent Limits'!$E$4)","v":""},{"$f":"IF(A384=\"\",\"\",'MHP Family Income & Rent Limits'!$C$7)","v":""},{"$f":"IF(A384=\"\",\"\",'MHP Family Income & Rent Limits'!$F$8)","v":""},{"$f":"IF(A384=\"\",\"\",'1. Checklist & Certification'!$G$4)","v":""},{"$f":"IF(A384=\"\",\"\",'1. Checklist & Certification'!$K$39)","v":""},{"$f":"IF(A384=\"\",\"\",'1. Checklist & Certification'!$K$43)","v":""},{"$f":"IF(A384=\"\",\"\",'1. Checklist & Certification'!$K$45)","v":""},{"$f":"IF(A384=\"\",\"\",'1. Checklist & Certification'!$K$49)","v":""},{"$f":"IF(A384=\"\",\"\",'1. Checklist & Certification'!$K$62)","v":""},{"$f":"IF(A384=\"\",\"\",'1. Checklist & Certification'!$E$66)","v":""},{"$f":"IF(A384=\"\",\"\",'1. Checklist & Certification'!$E$67)","v":""},{"$f":"IF(A384=\"\",\"\",'1. Checklist & Certification'!$E$68)","v":""},{"$f":"IF(A384=\"\",\"\",'1. Checklist & Certification'!$G$66)","v":""},{"$f":"IF(A384=\"\",\"\",'1. Checklist & Certification'!$H$66)","v":""},{"$f":"IF(A384=\"\",\"\",'1. Checklist & Certification'!$I$66)","v":""},{"$f":"IF(A384=\"\",\"\",'1. Checklist & Certification'!$I$67)","v":""},{"$f":"IF(A384=\"\",\"\",'1. Checklist & Certification'!$I$68)","v":""},{"$f":"IF(A384=\"\",\"\",'1. Checklist & Certification'!$B$69)","v":""},{"$f":"IF(A384=\"\",\"\",'1. Checklist & Certification'!$C$69)","v":""},{"$f":"IF(A384=\"\",\"\",'1. Checklist & Certification'!$F$69)","v":""},{"$f":"IF(A384=\"\",\"\",'1. Checklist & Certification'!$G$69)","v":""},{"$f":"IF(A384=\"\",\"\",'1. Checklist & Certification'!$J$69)","v":""},{"$f":"IF(A384=\"\",\"\",'1. Checklist & Certification'!$K$69)","v":""},null,null,{"$f":"IF(AND(OR('1. Checklist & Certification'!$M$16=1,'1. Checklist & Certification'!$M$19=2),AO384>0,B384=\"\",I384>0,AQ384<I384,AV384<>\"Sec 8-Project\"),\"X\",IF(AND(OR('1. Checklist & Certification'!$M$20=4,'1. Checklist & Certification'!$M$21=5,'1. Checklist & Certification'!$M$22=7),AO384>0,B384=\"\",I384>0,K384<I384),\"X\",\"\"))","v":""},{"$f":"IF(A384=\"\",\"\",IF(SUMPRODUCT(-- (ISNUMBER(SEARCH({\"*AHSC*\",\"*FMTW*\",\"*FWHG*\",\"*GHI*\",\"*HHC*\",\"*HLCP*\",\"*HOME*\",\"*LPR*\",\"*MHP*\",\"*NHTF*\",\"*NSP*\",\"*PRP*\",\"*TOD*\",\"*VHHP*\"},'1. Checklist & Certification'!$L$7)))),\"MHP\",\"Legacy\"))","v":""},",,",null,null,null,{"$f":"IF('1. Checklist & Certification'!$M$20=4,\"Both\",IF(OR('1. Checklist & Certification'!$M$15>0,S384=\"CHRP-R\",U384=\"CHRP-R\",W384=\"CHRP-R\",Y384=\"CHRP-R\"),\"Under\",\"No\"))","v":"No"},"No","No",{"$f":"_xlfn.IFS(D384=\"\",\"\",D384=1,'MHP Family Income & Rent Limits'!$E$17,D384=2,'MHP Family Income & Rent Limits'!$F$17,D384=3,'MHP Family Income & Rent Limits'!$G$17,D384=4,'MHP Family Income & Rent Limits'!$H$17,D384=5,'MHP Family Income & Rent Limits'!$I$17,D384=6,'MHP Family Income & Rent Limits'!$J$17,D384=7,'MHP Family Income & Rent Limits'!$K$17,D384=8,'MHP Family Income & Rent Limits'!$L$17)","v":""},"",{"$f":"IF(OR(A384=0,B384=\"X\"),0,MIN(IF(AA384:AD384<>0,AA384:AD384)))","v":0},{"$f":"IF(OR(H384=\"\",I384=\"\"),0,IF(H384*0.3/12>I384,MIN(H384*0.3/12,I384*1.1)+AP384,I384*(1+(VLOOKUP('1. Checklist & Certification'!$F$9,'HLCP-E Rent Change'!$A$1:$D$59,4,FALSE)))+AP384))","v":0}]
[null,null,null,null,null,null,null,null,null,null,null,null,null,null,null,null,null,null,null,null,null,null,null,null,null,null,0,0,0,0,0,0,0,0,{"$f":"IF(OR(A385=0,B385=\"X\"),0,IF(OR(S385=\"FHDP\",S385=\"RHCP-B\",U385=\"FHDP\",U385=\"RHCP-B\",W385=\"FHDP\",W385=\"RHCP-B\",Y385=\"FHDP\",Y385=\"RHCP-B\"),TRUNC((MIN(I385,K385)*(1+'1. Checklist & Certification'!$K$43)+AP385)),0))","v":0},{"$f":"IF(OR(A385=0,B385=\"X\"),0,IF(OR(S385=\"CHRP-R\",S385=\"SERA\",S385=\"SUHRP\",U385=\"CHRP-R\",U385=\"SERA\",U385=\"SUHRP\",W385=\"CHRP-R\",W385=\"SERA\",W385=\"SUHRP\",Y385=\"CHRP-R\",Y385=\"SERA\",Y385=\"SUHRP\"),TRUNC((MIN(I385,K385)*(1+'1. Checklist & Certification'!$K$49))),0))","v":0},{"$f":"IF(OR(A385=0,B385=\"X\"),0,IF(OR(S385=\"CALDAP\",S385=\"DPRLP\",U385=\"CALDAP\",U385=\"DPRLP\",W385=\"CALDAP\",W385=\"DPRLP\",Y385=\"CALDAP\",Y385=\"DPRLP\"),TRUNC(((MIN(I385,K385))*(1+'1. Checklist & Certification'!$G$4))),0))","v":0},0,0,0,{"$f":"IF(OR(A385=0,B385=\"X\"),0,IF(OR(S385=\"PRP\",S385=\"LPR\",U385=\"PRP\",U385=\"LPR\",W385=\"PRP\",W385=\"LPR\",Y385=\"PRP\",Y385=\"LPR\"),MAX(I385+AP385,MIN(IF(AE385:AN385<>0,AE385:AN385))),MIN(IF(AE385:AN385<>0,AE385:AN385))))","v":0},{"$f":"IF(A385=0,0,IF(AND(OR(S385=\"Mgr\",S385=0),OR(U385=\"Mgr\",U385=0),OR(W385=\"Mgr\",W385=0)),0,IF(LEFT($A385,2)=\"B*\",VLOOKUP($E385,'1. Checklist & Certification'!$D$26:$E$32,2),IF(LEFT($A385,2)=\"C*\",VLOOKUP($E385,'1. Checklist & Certification'!$F$26:$G$32,2),IF(LEFT($A385,2)=\"D*\",VLOOKUP($E385,'1. Checklist & Certification'!$H$26:$I$32,2),IF(LEFT($A385,2)=\"E*\",VLOOKUP($E385,'1. Checklist & Certification'!$J$26:$K$32,2),VLOOKUP($E385,'1. Checklist & Certification'!$A$26:$B$32,2)))))))","v":0},0,0,null,null,null,null,"","",0,0,0,null,{"$f":"IF(A385=\"\",\"\",'1. Checklist & Certification'!$K$1)","v":""},{"$f":"IF(A385=\"\",\"\",'1. Checklist & Certification'!$C$62)","v":""},{"$f":"IF(A385=\"\",\"\",'1. Checklist & Certification'!$C$6)","v":""},{"$f":"IF(A385=\"\",\"\",'1. Checklist & Certification'!$G$5)","v":""},{"$f":"IFERROR(IF(A385=\"\",\"\",\n_xlfn.LET(_xlpm.Contract,'1. Checklist & Certification'!$C$7,\n_xlpm.Yr,TEXT(MOD(_xlfn.TEXTBEFORE(_xlpm.Contract,\"-\"),100),\"00\"),\n_xlpm.Program,_xlfn.TEXTAFTER(_xlfn.TEXTBEFORE(_xlpm.Contract,\"-\",2),\"-\"),\n_xlpm.CleanProgram,_xlfn.XLOOKUP(_xlpm.Program,SpellCheck[Input],SpellCheck[Correction],_xlpm.Program),\n_xlpm.Number,TEXT(_xlfn.TEXTAFTER(_xlpm.Contract,\"-\",2),\"0000\"),\n_xlfn.CONCAT(_xlpm.Yr,\"-\",_xlpm.CleanProgram,\"-\",_xlpm.Number))\n),\"\")","v":""},{"$f":"IFERROR(IF(A385=\"\",\"\",\n_xlfn.LET(_xlpm.Contract,'1. Checklist & Certification'!$C$8,\n_xlpm.Yr,TEXT(MOD(_xlfn.TEXTBEFORE(_xlpm.Contract,\"-\"),100),\"00\"),\n_xlpm.Program,_xlfn.TEXTAFTER(_xlfn.TEXTBEFORE(_xlpm.Contract,\"-\",2),\"-\"),\n_xlpm.CleanProgram,_xlfn.XLOOKUP(_xlpm.Program,SpellCheck[Input],SpellCheck[Correction],_xlpm.Program),\n_xlpm.Number,TEXT(_xlfn.TEXTAFTER(_xlpm.Contract,\"-\",2),\"0000\"),\n_xlfn.CONCAT(_xlpm.Yr,\"-\",_xlpm.CleanProgram,\"-\",_xlpm.Number))\n),\"\")","v":""},{"$f":"IFERROR(IF(A385=\"\",\"\",\n_xlfn.LET(_xlpm.Contract,'1. Checklist & Certification'!$F$7,\n_xlpm.Yr,TEXT(MOD(_xlfn.TEXTBEFORE(_xlpm.Contract,\"-\"),100),\"00\"),\n_xlpm.Program,_xlfn.TEXTAFTER(_xlfn.TEXTBEFORE(_xlpm.Contract,\"-\",2),\"-\"),\n_xlpm.CleanProgram,_xlfn.XLOOKUP(_xlpm.Program,SpellCheck[Input],SpellCheck[Correction],_xlpm.Program),\n_xlpm.Number,TEXT(_xlfn.TEXTAFTER(_xlpm.Contract,\"-\",2),\"0000\"),\n_xlfn.CONCAT(_xlpm.Yr,\"-\",_xlpm.CleanProgram,\"-\",_xlpm.Number))\n),\"\")","v":""},{"$f":"IFERROR(IF(A385=\"\",\"\",\n_xlfn.LET(_xlpm.Contract,'1. Checklist & Certification'!$F$8,\n_xlpm.Yr,TEXT(MOD(_xlfn.TEXTBEFORE(_xlpm.Contract,\"-\"),100),\"00\"),\n_xlpm.Program,_xlfn.TEXTAFTER(_xlfn.TEXTBEFORE(_xlpm.Contract,\"-\",2),\"-\"),\n_xlpm.CleanProgram,_xlfn.XLOOKUP(_xlpm.Program,SpellCheck[Input],SpellCheck[Correction],_xlpm.Program),\n_xlpm.Number,TEXT(_xlfn.TEXTAFTER(_xlpm.Contract,\"-\",2),\"0000\"),\n_xlfn.CONCAT(_xlpm.Yr,\"-\",_xlpm.CleanProgram,\"-\",_xlpm.Number))\n),\"\")","v":""},{"$f":"IF(A385=\"\",\"\",'1. Checklist & Certification'!$B$9)","v":""},{"$f":"IF(A385=\"\",\"\",'1. Checklist & Certification'!$F$9)","v":""},{"$f":"IF(A385=\"\",\"\",'1. Checklist & Certification'!$C$10)","v":""},{"$f":"IF(A385=\"\",\"\",'1. Checklist & Certification'!$C$11)","v":""},{"$f":"IF(A385=\"\",\"\",'1. Checklist & Certification'!$C$12)","v":""},{"$f":"IF(A385=\"\",\"\",'1. Checklist & Certification'!$B$14)","v":""},{"$f":"IF(A385=\"\",\"\",'1. Checklist & Certification'!$E$14)","v":""},{"$f":"IF(B385=\"\",\"\",'1. Checklist & Certification'!$G$14)","v":""},{"$f":"IF(A385=\"\",\"\",'MHP Family Income & Rent Limits'!$B$3)","v":""},{"$f":"IF(A385=\"\",\"\",'MHP Family Income & Rent Limits'!$J$3)","v":""},{"$f":"IF(A385=\"\",\"\",'MHP Family Income & Rent Limits'!$E$4)","v":""},{"$f":"IF(A385=\"\",\"\",'MHP Family Income & Rent Limits'!$C$7)","v":""},{"$f":"IF(A385=\"\",\"\",'MHP Family Income & Rent Limits'!$F$8)","v":""},{"$f":"IF(A385=\"\",\"\",'1. Checklist & Certification'!$G$4)","v":""},{"$f":"IF(A385=\"\",\"\",'1. Checklist & Certification'!$K$39)","v":""},{"$f":"IF(A385=\"\",\"\",'1. Checklist & Certification'!$K$43)","v":""},{"$f":"IF(A385=\"\",\"\",'1. Checklist & Certification'!$K$45)","v":""},{"$f":"IF(A385=\"\",\"\",'1. Checklist & Certification'!$K$49)","v":""},{"$f":"IF(A385=\"\",\"\",'1. Checklist & Certification'!$K$62)","v":""},{"$f":"IF(A385=\"\",\"\",'1. Checklist & Certification'!$E$66)","v":""},{"$f":"IF(A385=\"\",\"\",'1. Checklist & Certification'!$E$67)","v":""},{"$f":"IF(A385=\"\",\"\",'1. Checklist & Certification'!$E$68)","v":""},{"$f":"IF(A385=\"\",\"\",'1. Checklist & Certification'!$G$66)","v":""},{"$f":"IF(A385=\"\",\"\",'1. Checklist & Certification'!$H$66)","v":""},{"$f":"IF(A385=\"\",\"\",'1. Checklist & Certification'!$I$66)","v":""},{"$f":"IF(A385=\"\",\"\",'1. Checklist & Certification'!$I$67)","v":""},{"$f":"IF(A385=\"\",\"\",'1. Checklist & Certification'!$I$68)","v":""},{"$f":"IF(A385=\"\",\"\",'1. Checklist & Certification'!$B$69)","v":""},{"$f":"IF(A385=\"\",\"\",'1. Checklist & Certification'!$C$69)","v":""},{"$f":"IF(A385=\"\",\"\",'1. Checklist & Certification'!$F$69)","v":""},{"$f":"IF(A385=\"\",\"\",'1. Checklist & Certification'!$G$69)","v":""},{"$f":"IF(A385=\"\",\"\",'1. Checklist & Certification'!$J$69)","v":""},{"$f":"IF(A385=\"\",\"\",'1. Checklist & Certification'!$K$69)","v":""},null,null,{"$f":"IF(AND(OR('1. Checklist & Certification'!$M$16=1,'1. Checklist & Certification'!$M$19=2),AO385>0,B385=\"\",I385>0,AQ385<I385,AV385<>\"Sec 8-Project\"),\"X\",IF(AND(OR('1. Checklist & Certification'!$M$20=4,'1. Checklist & Certification'!$M$21=5,'1. Checklist & Certification'!$M$22=7),AO385>0,B385=\"\",I385>0,K385<I385),\"X\",\"\"))","v":""},{"$f":"IF(A385=\"\",\"\",IF(SUMPRODUCT(-- (ISNUMBER(SEARCH({\"*AHSC*\",\"*FMTW*\",\"*FWHG*\",\"*GHI*\",\"*HHC*\",\"*HLCP*\",\"*HOME*\",\"*LPR*\",\"*MHP*\",\"*NHTF*\",\"*NSP*\",\"*PRP*\",\"*TOD*\",\"*VHHP*\"},'1. Checklist & Certification'!$L$7)))),\"MHP\",\"Legacy\"))","v":""},",,",null,null,null,{"$f":"IF('1. Checklist & Certification'!$M$20=4,\"Both\",IF(OR('1. Checklist & Certification'!$M$15>0,S385=\"CHRP-R\",U385=\"CHRP-R\",W385=\"CHRP-R\",Y385=\"CHRP-R\"),\"Under\",\"No\"))","v":"No"},"No","No",{"$f":"_xlfn.IFS(D385=\"\",\"\",D385=1,'MHP Family Income & Rent Limits'!$E$17,D385=2,'MHP Family Income & Rent Limits'!$F$17,D385=3,'MHP Family Income & Rent Limits'!$G$17,D385=4,'MHP Family Income & Rent Limits'!$H$17,D385=5,'MHP Family Income & Rent Limits'!$I$17,D385=6,'MHP Family Income & Rent Limits'!$J$17,D385=7,'MHP Family Income & Rent Limits'!$K$17,D385=8,'MHP Family Income & Rent Limits'!$L$17)","v":""},"",{"$f":"IF(OR(A385=0,B385=\"X\"),0,MIN(IF(AA385:AD385<>0,AA385:AD385)))","v":0},{"$f":"IF(OR(H385=\"\",I385=\"\"),0,IF(H385*0.3/12>I385,MIN(H385*0.3/12,I385*1.1)+AP385,I385*(1+(VLOOKUP('1. Checklist & Certification'!$F$9,'HLCP-E Rent Change'!$A$1:$D$59,4,FALSE)))+AP385))","v":0}]
[null,null,null,null,null,null,null,null,null,null,null,null,null,null,null,null,null,null,null,null,null,null,null,null,null,null,0,0,0,0,0,0,0,0,{"$f":"IF(OR(A386=0,B386=\"X\"),0,IF(OR(S386=\"FHDP\",S386=\"RHCP-B\",U386=\"FHDP\",U386=\"RHCP-B\",W386=\"FHDP\",W386=\"RHCP-B\",Y386=\"FHDP\",Y386=\"RHCP-B\"),TRUNC((MIN(I386,K386)*(1+'1. Checklist & Certification'!$K$43)+AP386)),0))","v":0},{"$f":"IF(OR(A386=0,B386=\"X\"),0,IF(OR(S386=\"CHRP-R\",S386=\"SERA\",S386=\"SUHRP\",U386=\"CHRP-R\",U386=\"SERA\",U386=\"SUHRP\",W386=\"CHRP-R\",W386=\"SERA\",W386=\"SUHRP\",Y386=\"CHRP-R\",Y386=\"SERA\",Y386=\"SUHRP\"),TRUNC((MIN(I386,K386)*(1+'1. Checklist & Certification'!$K$49))),0))","v":0},{"$f":"IF(OR(A386=0,B386=\"X\"),0,IF(OR(S386=\"CALDAP\",S386=\"DPRLP\",U386=\"CALDAP\",U386=\"DPRLP\",W386=\"CALDAP\",W386=\"DPRLP\",Y386=\"CALDAP\",Y386=\"DPRLP\"),TRUNC(((MIN(I386,K386))*(1+'1. Checklist & Certification'!$G$4))),0))","v":0},0,0,0,{"$f":"IF(OR(A386=0,B386=\"X\"),0,IF(OR(S386=\"PRP\",S386=\"LPR\",U386=\"PRP\",U386=\"LPR\",W386=\"PRP\",W386=\"LPR\",Y386=\"PRP\",Y386=\"LPR\"),MAX(I386+AP386,MIN(IF(AE386:AN386<>0,AE386:AN386))),MIN(IF(AE386:AN386<>0,AE386:AN386))))","v":0},{"$f":"IF(A386=0,0,IF(AND(OR(S386=\"Mgr\",S386=0),OR(U386=\"Mgr\",U386=0),OR(W386=\"Mgr\",W386=0)),0,IF(LEFT($A386,2)=\"B*\",VLOOKUP($E386,'1. Checklist & Certification'!$D$26:$E$32,2),IF(LEFT($A386,2)=\"C*\",VLOOKUP($E386,'1. Checklist & Certification'!$F$26:$G$32,2),IF(LEFT($A386,2)=\"D*\",VLOOKUP($E386,'1. Checklist & Certification'!$H$26:$I$32,2),IF(LEFT($A386,2)=\"E*\",VLOOKUP($E386,'1. Checklist & Certification'!$J$26:$K$32,2),VLOOKUP($E386,'1. Checklist & Certification'!$A$26:$B$32,2)))))))","v":0},0,0,null,null,null,null,"","",0,0,0,null,{"$f":"IF(A386=\"\",\"\",'1. Checklist & Certification'!$K$1)","v":""},{"$f":"IF(A386=\"\",\"\",'1. Checklist & Certification'!$C$62)","v":""},{"$f":"IF(A386=\"\",\"\",'1. Checklist & Certification'!$C$6)","v":""},{"$f":"IF(A386=\"\",\"\",'1. Checklist & Certification'!$G$5)","v":""},{"$f":"IFERROR(IF(A386=\"\",\"\",\n_xlfn.LET(_xlpm.Contract,'1. Checklist & Certification'!$C$7,\n_xlpm.Yr,TEXT(MOD(_xlfn.TEXTBEFORE(_xlpm.Contract,\"-\"),100),\"00\"),\n_xlpm.Program,_xlfn.TEXTAFTER(_xlfn.TEXTBEFORE(_xlpm.Contract,\"-\",2),\"-\"),\n_xlpm.CleanProgram,_xlfn.XLOOKUP(_xlpm.Program,SpellCheck[Input],SpellCheck[Correction],_xlpm.Program),\n_xlpm.Number,TEXT(_xlfn.TEXTAFTER(_xlpm.Contract,\"-\",2),\"0000\"),\n_xlfn.CONCAT(_xlpm.Yr,\"-\",_xlpm.CleanProgram,\"-\",_xlpm.Number))\n),\"\")","v":""},{"$f":"IFERROR(IF(A386=\"\",\"\",\n_xlfn.LET(_xlpm.Contract,'1. Checklist & Certification'!$C$8,\n_xlpm.Yr,TEXT(MOD(_xlfn.TEXTBEFORE(_xlpm.Contract,\"-\"),100),\"00\"),\n_xlpm.Program,_xlfn.TEXTAFTER(_xlfn.TEXTBEFORE(_xlpm.Contract,\"-\",2),\"-\"),\n_xlpm.CleanProgram,_xlfn.XLOOKUP(_xlpm.Program,SpellCheck[Input],SpellCheck[Correction],_xlpm.Program),\n_xlpm.Number,TEXT(_xlfn.TEXTAFTER(_xlpm.Contract,\"-\",2),\"0000\"),\n_xlfn.CONCAT(_xlpm.Yr,\"-\",_xlpm.CleanProgram,\"-\",_xlpm.Number))\n),\"\")","v":""},{"$f":"IFERROR(IF(A386=\"\",\"\",\n_xlfn.LET(_xlpm.Contract,'1. Checklist & Certification'!$F$7,\n_xlpm.Yr,TEXT(MOD(_xlfn.TEXTBEFORE(_xlpm.Contract,\"-\"),100),\"00\"),\n_xlpm.Program,_xlfn.TEXTAFTER(_xlfn.TEXTBEFORE(_xlpm.Contract,\"-\",2),\"-\"),\n_xlpm.CleanProgram,_xlfn.XLOOKUP(_xlpm.Program,SpellCheck[Input],SpellCheck[Correction],_xlpm.Program),\n_xlpm.Number,TEXT(_xlfn.TEXTAFTER(_xlpm.Contract,\"-\",2),\"0000\"),\n_xlfn.CONCAT(_xlpm.Yr,\"-\",_xlpm.CleanProgram,\"-\",_xlpm.Number))\n),\"\")","v":""},{"$f":"IFERROR(IF(A386=\"\",\"\",\n_xlfn.LET(_xlpm.Contract,'1. Checklist & Certification'!$F$8,\n_xlpm.Yr,TEXT(MOD(_xlfn.TEXTBEFORE(_xlpm.Contract,\"-\"),100),\"00\"),\n_xlpm.Program,_xlfn.TEXTAFTER(_xlfn.TEXTBEFORE(_xlpm.Contract,\"-\",2),\"-\"),\n_xlpm.CleanProgram,_xlfn.XLOOKUP(_xlpm.Program,SpellCheck[Input],SpellCheck[Correction],_xlpm.Program),\n_xlpm.Number,TEXT(_xlfn.TEXTAFTER(_xlpm.Contract,\"-\",2),\"0000\"),\n_xlfn.CONCAT(_xlpm.Yr,\"-\",_xlpm.CleanProgram,\"-\",_xlpm.Number))\n),\"\")","v":""},{"$f":"IF(A386=\"\",\"\",'1. Checklist & Certification'!$B$9)","v":""},{"$f":"IF(A386=\"\",\"\",'1. Checklist & Certification'!$F$9)","v":""},{"$f":"IF(A386=\"\",\"\",'1. Checklist & Certification'!$C$10)","v":""},{"$f":"IF(A386=\"\",\"\",'1. Checklist & Certification'!$C$11)","v":""},{"$f":"IF(A386=\"\",\"\",'1. Checklist & Certification'!$C$12)","v":""},{"$f":"IF(A386=\"\",\"\",'1. Checklist & Certification'!$B$14)","v":""},{"$f":"IF(A386=\"\",\"\",'1. Checklist & Certification'!$E$14)","v":""},{"$f":"IF(B386=\"\",\"\",'1. Checklist & Certification'!$G$14)","v":""},{"$f":"IF(A386=\"\",\"\",'MHP Family Income & Rent Limits'!$B$3)","v":""},{"$f":"IF(A386=\"\",\"\",'MHP Family Income & Rent Limits'!$J$3)","v":""},{"$f":"IF(A386=\"\",\"\",'MHP Family Income & Rent Limits'!$E$4)","v":""},{"$f":"IF(A386=\"\",\"\",'MHP Family Income & Rent Limits'!$C$7)","v":""},{"$f":"IF(A386=\"\",\"\",'MHP Family Income & Rent Limits'!$F$8)","v":""},{"$f":"IF(A386=\"\",\"\",'1. Checklist & Certification'!$G$4)","v":""},{"$f":"IF(A386=\"\",\"\",'1. Checklist & Certification'!$K$39)","v":""},{"$f":"IF(A386=\"\",\"\",'1. Checklist & Certification'!$K$43)","v":""},{"$f":"IF(A386=\"\",\"\",'1. Checklist & Certification'!$K$45)","v":""},{"$f":"IF(A386=\"\",\"\",'1. Checklist & Certification'!$K$49)","v":""},{"$f":"IF(A386=\"\",\"\",'1. Checklist & Certification'!$K$62)","v":""},{"$f":"IF(A386=\"\",\"\",'1. Checklist & Certification'!$E$66)","v":""},{"$f":"IF(A386=\"\",\"\",'1. Checklist & Certification'!$E$67)","v":""},{"$f":"IF(A386=\"\",\"\",'1. Checklist & Certification'!$E$68)","v":""},{"$f":"IF(A386=\"\",\"\",'1. Checklist & Certification'!$G$66)","v":""},{"$f":"IF(A386=\"\",\"\",'1. Checklist & Certification'!$H$66)","v":""},{"$f":"IF(A386=\"\",\"\",'1. Checklist & Certification'!$I$66)","v":""},{"$f":"IF(A386=\"\",\"\",'1. Checklist & Certification'!$I$67)","v":""},{"$f":"IF(A386=\"\",\"\",'1. Checklist & Certification'!$I$68)","v":""},{"$f":"IF(A386=\"\",\"\",'1. Checklist & Certification'!$B$69)","v":""},{"$f":"IF(A386=\"\",\"\",'1. Checklist & Certification'!$C$69)","v":""},{"$f":"IF(A386=\"\",\"\",'1. Checklist & Certification'!$F$69)","v":""},{"$f":"IF(A386=\"\",\"\",'1. Checklist & Certification'!$G$69)","v":""},{"$f":"IF(A386=\"\",\"\",'1. Checklist & Certification'!$J$69)","v":""},{"$f":"IF(A386=\"\",\"\",'1. Checklist & Certification'!$K$69)","v":""},null,null,{"$f":"IF(AND(OR('1. Checklist & Certification'!$M$16=1,'1. Checklist & Certification'!$M$19=2),AO386>0,B386=\"\",I386>0,AQ386<I386,AV386<>\"Sec 8-Project\"),\"X\",IF(AND(OR('1. Checklist & Certification'!$M$20=4,'1. Checklist & Certification'!$M$21=5,'1. Checklist & Certification'!$M$22=7),AO386>0,B386=\"\",I386>0,K386<I386),\"X\",\"\"))","v":""},{"$f":"IF(A386=\"\",\"\",IF(SUMPRODUCT(-- (ISNUMBER(SEARCH({\"*AHSC*\",\"*FMTW*\",\"*FWHG*\",\"*GHI*\",\"*HHC*\",\"*HLCP*\",\"*HOME*\",\"*LPR*\",\"*MHP*\",\"*NHTF*\",\"*NSP*\",\"*PRP*\",\"*TOD*\",\"*VHHP*\"},'1. Checklist & Certification'!$L$7)))),\"MHP\",\"Legacy\"))","v":""},",,",null,null,null,{"$f":"IF('1. Checklist & Certification'!$M$20=4,\"Both\",IF(OR('1. Checklist & Certification'!$M$15>0,S386=\"CHRP-R\",U386=\"CHRP-R\",W386=\"CHRP-R\",Y386=\"CHRP-R\"),\"Under\",\"No\"))","v":"No"},"No","No",{"$f":"_xlfn.IFS(D386=\"\",\"\",D386=1,'MHP Family Income & Rent Limits'!$E$17,D386=2,'MHP Family Income & Rent Limits'!$F$17,D386=3,'MHP Family Income & Rent Limits'!$G$17,D386=4,'MHP Family Income & Rent Limits'!$H$17,D386=5,'MHP Family Income & Rent Limits'!$I$17,D386=6,'MHP Family Income & Rent Limits'!$J$17,D386=7,'MHP Family Income & Rent Limits'!$K$17,D386=8,'MHP Family Income & Rent Limits'!$L$17)","v":""},"",{"$f":"IF(OR(A386=0,B386=\"X\"),0,MIN(IF(AA386:AD386<>0,AA386:AD386)))","v":0},{"$f":"IF(OR(H386=\"\",I386=\"\"),0,IF(H386*0.3/12>I386,MIN(H386*0.3/12,I386*1.1)+AP386,I386*(1+(VLOOKUP('1. Checklist & Certification'!$F$9,'HLCP-E Rent Change'!$A$1:$D$59,4,FALSE)))+AP386))","v":0}]
[null,null,null,null,null,null,null,null,null,null,null,null,null,null,null,null,null,null,null,null,null,null,null,null,null,null,0,0,0,0,0,0,0,0,{"$f":"IF(OR(A387=0,B387=\"X\"),0,IF(OR(S387=\"FHDP\",S387=\"RHCP-B\",U387=\"FHDP\",U387=\"RHCP-B\",W387=\"FHDP\",W387=\"RHCP-B\",Y387=\"FHDP\",Y387=\"RHCP-B\"),TRUNC((MIN(I387,K387)*(1+'1. Checklist & Certification'!$K$43)+AP387)),0))","v":0},{"$f":"IF(OR(A387=0,B387=\"X\"),0,IF(OR(S387=\"CHRP-R\",S387=\"SERA\",S387=\"SUHRP\",U387=\"CHRP-R\",U387=\"SERA\",U387=\"SUHRP\",W387=\"CHRP-R\",W387=\"SERA\",W387=\"SUHRP\",Y387=\"CHRP-R\",Y387=\"SERA\",Y387=\"SUHRP\"),TRUNC((MIN(I387,K387)*(1+'1. Checklist & Certification'!$K$49))),0))","v":0},{"$f":"IF(OR(A387=0,B387=\"X\"),0,IF(OR(S387=\"CALDAP\",S387=\"DPRLP\",U387=\"CALDAP\",U387=\"DPRLP\",W387=\"CALDAP\",W387=\"DPRLP\",Y387=\"CALDAP\",Y387=\"DPRLP\"),TRUNC(((MIN(I387,K387))*(1+'1. Checklist & Certification'!$G$4))),0))","v":0},0,0,0,{"$f":"IF(OR(A387=0,B387=\"X\"),0,IF(OR(S387=\"PRP\",S387=\"LPR\",U387=\"PRP\",U387=\"LPR\",W387=\"PRP\",W387=\"LPR\",Y387=\"PRP\",Y387=\"LPR\"),MAX(I387+AP387,MIN(IF(AE387:AN387<>0,AE387:AN387))),MIN(IF(AE387:AN387<>0,AE387:AN387))))","v":0},{"$f":"IF(A387=0,0,IF(AND(OR(S387=\"Mgr\",S387=0),OR(U387=\"Mgr\",U387=0),OR(W387=\"Mgr\",W387=0)),0,IF(LEFT($A387,2)=\"B*\",VLOOKUP($E387,'1. Checklist & Certification'!$D$26:$E$32,2),IF(LEFT($A387,2)=\"C*\",VLOOKUP($E387,'1. Checklist & Certification'!$F$26:$G$32,2),IF(LEFT($A387,2)=\"D*\",VLOOKUP($E387,'1. Checklist & Certification'!$H$26:$I$32,2),IF(LEFT($A387,2)=\"E*\",VLOOKUP($E387,'1. Checklist & Certification'!$J$26:$K$32,2),VLOOKUP($E387,'1. Checklist & Certification'!$A$26:$B$32,2)))))))","v":0},0,0,null,null,null,null,"","",0,0,0,null,{"$f":"IF(A387=\"\",\"\",'1. Checklist & Certification'!$K$1)","v":""},{"$f":"IF(A387=\"\",\"\",'1. Checklist & Certification'!$C$62)","v":""},{"$f":"IF(A387=\"\",\"\",'1. Checklist & Certification'!$C$6)","v":""},{"$f":"IF(A387=\"\",\"\",'1. Checklist & Certification'!$G$5)","v":""},{"$f":"IFERROR(IF(A387=\"\",\"\",\n_xlfn.LET(_xlpm.Contract,'1. Checklist & Certification'!$C$7,\n_xlpm.Yr,TEXT(MOD(_xlfn.TEXTBEFORE(_xlpm.Contract,\"-\"),100),\"00\"),\n_xlpm.Program,_xlfn.TEXTAFTER(_xlfn.TEXTBEFORE(_xlpm.Contract,\"-\",2),\"-\"),\n_xlpm.CleanProgram,_xlfn.XLOOKUP(_xlpm.Program,SpellCheck[Input],SpellCheck[Correction],_xlpm.Program),\n_xlpm.Number,TEXT(_xlfn.TEXTAFTER(_xlpm.Contract,\"-\",2),\"0000\"),\n_xlfn.CONCAT(_xlpm.Yr,\"-\",_xlpm.CleanProgram,\"-\",_xlpm.Number))\n),\"\")","v":""},{"$f":"IFERROR(IF(A387=\"\",\"\",\n_xlfn.LET(_xlpm.Contract,'1. Checklist & Certification'!$C$8,\n_xlpm.Yr,TEXT(MOD(_xlfn.TEXTBEFORE(_xlpm.Contract,\"-\"),100),\"00\"),\n_xlpm.Program,_xlfn.TEXTAFTER(_xlfn.TEXTBEFORE(_xlpm.Contract,\"-\",2),\"-\"),\n_xlpm.CleanProgram,_xlfn.XLOOKUP(_xlpm.Program,SpellCheck[Input],SpellCheck[Correction],_xlpm.Program),\n_xlpm.Number,TEXT(_xlfn.TEXTAFTER(_xlpm.Contract,\"-\",2),\"0000\"),\n_xlfn.CONCAT(_xlpm.Yr,\"-\",_xlpm.CleanProgram,\"-\",_xlpm.Number))\n),\"\")","v":""},{"$f":"IFERROR(IF(A387=\"\",\"\",\n_xlfn.LET(_xlpm.Contract,'1. Checklist & Certification'!$F$7,\n_xlpm.Yr,TEXT(MOD(_xlfn.TEXTBEFORE(_xlpm.Contract,\"-\"),100),\"00\"),\n_xlpm.Program,_xlfn.TEXTAFTER(_xlfn.TEXTBEFORE(_xlpm.Contract,\"-\",2),\"-\"),\n_xlpm.CleanProgram,_xlfn.XLOOKUP(_xlpm.Program,SpellCheck[Input],SpellCheck[Correction],_xlpm.Program),\n_xlpm.Number,TEXT(_xlfn.TEXTAFTER(_xlpm.Contract,\"-\",2),\"0000\"),\n_xlfn.CONCAT(_xlpm.Yr,\"-\",_xlpm.CleanProgram,\"-\",_xlpm.Number))\n),\"\")","v":""},{"$f":"IFERROR(IF(A387=\"\",\"\",\n_xlfn.LET(_xlpm.Contract,'1. Checklist & Certification'!$F$8,\n_xlpm.Yr,TEXT(MOD(_xlfn.TEXTBEFORE(_xlpm.Contract,\"-\"),100),\"00\"),\n_xlpm.Program,_xlfn.TEXTAFTER(_xlfn.TEXTBEFORE(_xlpm.Contract,\"-\",2),\"-\"),\n_xlpm.CleanProgram,_xlfn.XLOOKUP(_xlpm.Program,SpellCheck[Input],SpellCheck[Correction],_xlpm.Program),\n_xlpm.Number,TEXT(_xlfn.TEXTAFTER(_xlpm.Contract,\"-\",2),\"0000\"),\n_xlfn.CONCAT(_xlpm.Yr,\"-\",_xlpm.CleanProgram,\"-\",_xlpm.Number))\n),\"\")","v":""},{"$f":"IF(A387=\"\",\"\",'1. Checklist & Certification'!$B$9)","v":""},{"$f":"IF(A387=\"\",\"\",'1. Checklist & Certification'!$F$9)","v":""},{"$f":"IF(A387=\"\",\"\",'1. Checklist & Certification'!$C$10)","v":""},{"$f":"IF(A387=\"\",\"\",'1. Checklist & Certification'!$C$11)","v":""},{"$f":"IF(A387=\"\",\"\",'1. Checklist & Certification'!$C$12)","v":""},{"$f":"IF(A387=\"\",\"\",'1. Checklist & Certification'!$B$14)","v":""},{"$f":"IF(A387=\"\",\"\",'1. Checklist & Certification'!$E$14)","v":""},{"$f":"IF(B387=\"\",\"\",'1. Checklist & Certification'!$G$14)","v":""},{"$f":"IF(A387=\"\",\"\",'MHP Family Income & Rent Limits'!$B$3)","v":""},{"$f":"IF(A387=\"\",\"\",'MHP Family Income & Rent Limits'!$J$3)","v":""},{"$f":"IF(A387=\"\",\"\",'MHP Family Income & Rent Limits'!$E$4)","v":""},{"$f":"IF(A387=\"\",\"\",'MHP Family Income & Rent Limits'!$C$7)","v":""},{"$f":"IF(A387=\"\",\"\",'MHP Family Income & Rent Limits'!$F$8)","v":""},{"$f":"IF(A387=\"\",\"\",'1. Checklist & Certification'!$G$4)","v":""},{"$f":"IF(A387=\"\",\"\",'1. Checklist & Certification'!$K$39)","v":""},{"$f":"IF(A387=\"\",\"\",'1. Checklist & Certification'!$K$43)","v":""},{"$f":"IF(A387=\"\",\"\",'1. Checklist & Certification'!$K$45)","v":""},{"$f":"IF(A387=\"\",\"\",'1. Checklist & Certification'!$K$49)","v":""},{"$f":"IF(A387=\"\",\"\",'1. Checklist & Certification'!$K$62)","v":""},{"$f":"IF(A387=\"\",\"\",'1. Checklist & Certification'!$E$66)","v":""},{"$f":"IF(A387=\"\",\"\",'1. Checklist & Certification'!$E$67)","v":""},{"$f":"IF(A387=\"\",\"\",'1. Checklist & Certification'!$E$68)","v":""},{"$f":"IF(A387=\"\",\"\",'1. Checklist & Certification'!$G$66)","v":""},{"$f":"IF(A387=\"\",\"\",'1. Checklist & Certification'!$H$66)","v":""},{"$f":"IF(A387=\"\",\"\",'1. Checklist & Certification'!$I$66)","v":""},{"$f":"IF(A387=\"\",\"\",'1. Checklist & Certification'!$I$67)","v":""},{"$f":"IF(A387=\"\",\"\",'1. Checklist & Certification'!$I$68)","v":""},{"$f":"IF(A387=\"\",\"\",'1. Checklist & Certification'!$B$69)","v":""},{"$f":"IF(A387=\"\",\"\",'1. Checklist & Certification'!$C$69)","v":""},{"$f":"IF(A387=\"\",\"\",'1. Checklist & Certification'!$F$69)","v":""},{"$f":"IF(A387=\"\",\"\",'1. Checklist & Certification'!$G$69)","v":""},{"$f":"IF(A387=\"\",\"\",'1. Checklist & Certification'!$J$69)","v":""},{"$f":"IF(A387=\"\",\"\",'1. Checklist & Certification'!$K$69)","v":""},null,null,{"$f":"IF(AND(OR('1. Checklist & Certification'!$M$16=1,'1. Checklist & Certification'!$M$19=2),AO387>0,B387=\"\",I387>0,AQ387<I387,AV387<>\"Sec 8-Project\"),\"X\",IF(AND(OR('1. Checklist & Certification'!$M$20=4,'1. Checklist & Certification'!$M$21=5,'1. Checklist & Certification'!$M$22=7),AO387>0,B387=\"\",I387>0,K387<I387),\"X\",\"\"))","v":""},{"$f":"IF(A387=\"\",\"\",IF(SUMPRODUCT(-- (ISNUMBER(SEARCH({\"*AHSC*\",\"*FMTW*\",\"*FWHG*\",\"*GHI*\",\"*HHC*\",\"*HLCP*\",\"*HOME*\",\"*LPR*\",\"*MHP*\",\"*NHTF*\",\"*NSP*\",\"*PRP*\",\"*TOD*\",\"*VHHP*\"},'1. Checklist & Certification'!$L$7)))),\"MHP\",\"Legacy\"))","v":""},",,",null,null,null,{"$f":"IF('1. Checklist & Certification'!$M$20=4,\"Both\",IF(OR('1. Checklist & Certification'!$M$15>0,S387=\"CHRP-R\",U387=\"CHRP-R\",W387=\"CHRP-R\",Y387=\"CHRP-R\"),\"Under\",\"No\"))","v":"No"},"No","No",{"$f":"_xlfn.IFS(D387=\"\",\"\",D387=1,'MHP Family Income & Rent Limits'!$E$17,D387=2,'MHP Family Income & Rent Limits'!$F$17,D387=3,'MHP Family Income & Rent Limits'!$G$17,D387=4,'MHP Family Income & Rent Limits'!$H$17,D387=5,'MHP Family Income & Rent Limits'!$I$17,D387=6,'MHP Family Income & Rent Limits'!$J$17,D387=7,'MHP Family Income & Rent Limits'!$K$17,D387=8,'MHP Family Income & Rent Limits'!$L$17)","v":""},"",{"$f":"IF(OR(A387=0,B387=\"X\"),0,MIN(IF(AA387:AD387<>0,AA387:AD387)))","v":0},{"$f":"IF(OR(H387=\"\",I387=\"\"),0,IF(H387*0.3/12>I387,MIN(H387*0.3/12,I387*1.1)+AP387,I387*(1+(VLOOKUP('1. Checklist & Certification'!$F$9,'HLCP-E Rent Change'!$A$1:$D$59,4,FALSE)))+AP387))","v":0}]
[null,null,null,null,null,null,null,null,null,null,null,null,null,null,null,null,null,null,null,null,null,null,null,null,null,null,0,0,0,0,0,0,0,0,{"$f":"IF(OR(A388=0,B388=\"X\"),0,IF(OR(S388=\"FHDP\",S388=\"RHCP-B\",U388=\"FHDP\",U388=\"RHCP-B\",W388=\"FHDP\",W388=\"RHCP-B\",Y388=\"FHDP\",Y388=\"RHCP-B\"),TRUNC((MIN(I388,K388)*(1+'1. Checklist & Certification'!$K$43)+AP388)),0))","v":0},{"$f":"IF(OR(A388=0,B388=\"X\"),0,IF(OR(S388=\"CHRP-R\",S388=\"SERA\",S388=\"SUHRP\",U388=\"CHRP-R\",U388=\"SERA\",U388=\"SUHRP\",W388=\"CHRP-R\",W388=\"SERA\",W388=\"SUHRP\",Y388=\"CHRP-R\",Y388=\"SERA\",Y388=\"SUHRP\"),TRUNC((MIN(I388,K388)*(1+'1. Checklist & Certification'!$K$49))),0))","v":0},{"$f":"IF(OR(A388=0,B388=\"X\"),0,IF(OR(S388=\"CALDAP\",S388=\"DPRLP\",U388=\"CALDAP\",U388=\"DPRLP\",W388=\"CALDAP\",W388=\"DPRLP\",Y388=\"CALDAP\",Y388=\"DPRLP\"),TRUNC(((MIN(I388,K388))*(1+'1. Checklist & Certification'!$G$4))),0))","v":0},0,0,0,{"$f":"IF(OR(A388=0,B388=\"X\"),0,IF(OR(S388=\"PRP\",S388=\"LPR\",U388=\"PRP\",U388=\"LPR\",W388=\"PRP\",W388=\"LPR\",Y388=\"PRP\",Y388=\"LPR\"),MAX(I388+AP388,MIN(IF(AE388:AN388<>0,AE388:AN388))),MIN(IF(AE388:AN388<>0,AE388:AN388))))","v":0},{"$f":"IF(A388=0,0,IF(AND(OR(S388=\"Mgr\",S388=0),OR(U388=\"Mgr\",U388=0),OR(W388=\"Mgr\",W388=0)),0,IF(LEFT($A388,2)=\"B*\",VLOOKUP($E388,'1. Checklist & Certification'!$D$26:$E$32,2),IF(LEFT($A388,2)=\"C*\",VLOOKUP($E388,'1. Checklist & Certification'!$F$26:$G$32,2),IF(LEFT($A388,2)=\"D*\",VLOOKUP($E388,'1. Checklist & Certification'!$H$26:$I$32,2),IF(LEFT($A388,2)=\"E*\",VLOOKUP($E388,'1. Checklist & Certification'!$J$26:$K$32,2),VLOOKUP($E388,'1. Checklist & Certification'!$A$26:$B$32,2)))))))","v":0},0,0,null,null,null,null,"","",0,0,0,null,{"$f":"IF(A388=\"\",\"\",'1. Checklist & Certification'!$K$1)","v":""},{"$f":"IF(A388=\"\",\"\",'1. Checklist & Certification'!$C$62)","v":""},{"$f":"IF(A388=\"\",\"\",'1. Checklist & Certification'!$C$6)","v":""},{"$f":"IF(A388=\"\",\"\",'1. Checklist & Certification'!$G$5)","v":""},{"$f":"IFERROR(IF(A388=\"\",\"\",\n_xlfn.LET(_xlpm.Contract,'1. Checklist & Certification'!$C$7,\n_xlpm.Yr,TEXT(MOD(_xlfn.TEXTBEFORE(_xlpm.Contract,\"-\"),100),\"00\"),\n_xlpm.Program,_xlfn.TEXTAFTER(_xlfn.TEXTBEFORE(_xlpm.Contract,\"-\",2),\"-\"),\n_xlpm.CleanProgram,_xlfn.XLOOKUP(_xlpm.Program,SpellCheck[Input],SpellCheck[Correction],_xlpm.Program),\n_xlpm.Number,TEXT(_xlfn.TEXTAFTER(_xlpm.Contract,\"-\",2),\"0000\"),\n_xlfn.CONCAT(_xlpm.Yr,\"-\",_xlpm.CleanProgram,\"-\",_xlpm.Number))\n),\"\")","v":""},{"$f":"IFERROR(IF(A388=\"\",\"\",\n_xlfn.LET(_xlpm.Contract,'1. Checklist & Certification'!$C$8,\n_xlpm.Yr,TEXT(MOD(_xlfn.TEXTBEFORE(_xlpm.Contract,\"-\"),100),\"00\"),\n_xlpm.Program,_xlfn.TEXTAFTER(_xlfn.TEXTBEFORE(_xlpm.Contract,\"-\",2),\"-\"),\n_xlpm.CleanProgram,_xlfn.XLOOKUP(_xlpm.Program,SpellCheck[Input],SpellCheck[Correction],_xlpm.Program),\n_xlpm.Number,TEXT(_xlfn.TEXTAFTER(_xlpm.Contract,\"-\",2),\"0000\"),\n_xlfn.CONCAT(_xlpm.Yr,\"-\",_xlpm.CleanProgram,\"-\",_xlpm.Number))\n),\"\")","v":""},{"$f":"IFERROR(IF(A388=\"\",\"\",\n_xlfn.LET(_xlpm.Contract,'1. Checklist & Certification'!$F$7,\n_xlpm.Yr,TEXT(MOD(_xlfn.TEXTBEFORE(_xlpm.Contract,\"-\"),100),\"00\"),\n_xlpm.Program,_xlfn.TEXTAFTER(_xlfn.TEXTBEFORE(_xlpm.Contract,\"-\",2),\"-\"),\n_xlpm.CleanProgram,_xlfn.XLOOKUP(_xlpm.Program,SpellCheck[Input],SpellCheck[Correction],_xlpm.Program),\n_xlpm.Number,TEXT(_xlfn.TEXTAFTER(_xlpm.Contract,\"-\",2),\"0000\"),\n_xlfn.CONCAT(_xlpm.Yr,\"-\",_xlpm.CleanProgram,\"-\",_xlpm.Number))\n),\"\")","v":""},{"$f":"IFERROR(IF(A388=\"\",\"\",\n_xlfn.LET(_xlpm.Contract,'1. Checklist & Certification'!$F$8,\n_xlpm.Yr,TEXT(MOD(_xlfn.TEXTBEFORE(_xlpm.Contract,\"-\"),100),\"00\"),\n_xlpm.Program,_xlfn.TEXTAFTER(_xlfn.TEXTBEFORE(_xlpm.Contract,\"-\",2),\"-\"),\n_xlpm.CleanProgram,_xlfn.XLOOKUP(_xlpm.Program,SpellCheck[Input],SpellCheck[Correction],_xlpm.Program),\n_xlpm.Number,TEXT(_xlfn.TEXTAFTER(_xlpm.Contract,\"-\",2),\"0000\"),\n_xlfn.CONCAT(_xlpm.Yr,\"-\",_xlpm.CleanProgram,\"-\",_xlpm.Number))\n),\"\")","v":""},{"$f":"IF(A388=\"\",\"\",'1. Checklist & Certification'!$B$9)","v":""},{"$f":"IF(A388=\"\",\"\",'1. Checklist & Certification'!$F$9)","v":""},{"$f":"IF(A388=\"\",\"\",'1. Checklist & Certification'!$C$10)","v":""},{"$f":"IF(A388=\"\",\"\",'1. Checklist & Certification'!$C$11)","v":""},{"$f":"IF(A388=\"\",\"\",'1. Checklist & Certification'!$C$12)","v":""},{"$f":"IF(A388=\"\",\"\",'1. Checklist & Certification'!$B$14)","v":""},{"$f":"IF(A388=\"\",\"\",'1. Checklist & Certification'!$E$14)","v":""},{"$f":"IF(B388=\"\",\"\",'1. Checklist & Certification'!$G$14)","v":""},{"$f":"IF(A388=\"\",\"\",'MHP Family Income & Rent Limits'!$B$3)","v":""},{"$f":"IF(A388=\"\",\"\",'MHP Family Income & Rent Limits'!$J$3)","v":""},{"$f":"IF(A388=\"\",\"\",'MHP Family Income & Rent Limits'!$E$4)","v":""},{"$f":"IF(A388=\"\",\"\",'MHP Family Income & Rent Limits'!$C$7)","v":""},{"$f":"IF(A388=\"\",\"\",'MHP Family Income & Rent Limits'!$F$8)","v":""},{"$f":"IF(A388=\"\",\"\",'1. Checklist & Certification'!$G$4)","v":""},{"$f":"IF(A388=\"\",\"\",'1. Checklist & Certification'!$K$39)","v":""},{"$f":"IF(A388=\"\",\"\",'1. Checklist & Certification'!$K$43)","v":""},{"$f":"IF(A388=\"\",\"\",'1. Checklist & Certification'!$K$45)","v":""},{"$f":"IF(A388=\"\",\"\",'1. Checklist & Certification'!$K$49)","v":""},{"$f":"IF(A388=\"\",\"\",'1. Checklist & Certification'!$K$62)","v":""},{"$f":"IF(A388=\"\",\"\",'1. Checklist & Certification'!$E$66)","v":""},{"$f":"IF(A388=\"\",\"\",'1. Checklist & Certification'!$E$67)","v":""},{"$f":"IF(A388=\"\",\"\",'1. Checklist & Certification'!$E$68)","v":""},{"$f":"IF(A388=\"\",\"\",'1. Checklist & Certification'!$G$66)","v":""},{"$f":"IF(A388=\"\",\"\",'1. Checklist & Certification'!$H$66)","v":""},{"$f":"IF(A388=\"\",\"\",'1. Checklist & Certification'!$I$66)","v":""},{"$f":"IF(A388=\"\",\"\",'1. Checklist & Certification'!$I$67)","v":""},{"$f":"IF(A388=\"\",\"\",'1. Checklist & Certification'!$I$68)","v":""},{"$f":"IF(A388=\"\",\"\",'1. Checklist & Certification'!$B$69)","v":""},{"$f":"IF(A388=\"\",\"\",'1. Checklist & Certification'!$C$69)","v":""},{"$f":"IF(A388=\"\",\"\",'1. Checklist & Certification'!$F$69)","v":""},{"$f":"IF(A388=\"\",\"\",'1. Checklist & Certification'!$G$69)","v":""},{"$f":"IF(A388=\"\",\"\",'1. Checklist & Certification'!$J$69)","v":""},{"$f":"IF(A388=\"\",\"\",'1. Checklist & Certification'!$K$69)","v":""},null,null,{"$f":"IF(AND(OR('1. Checklist & Certification'!$M$16=1,'1. Checklist & Certification'!$M$19=2),AO388>0,B388=\"\",I388>0,AQ388<I388,AV388<>\"Sec 8-Project\"),\"X\",IF(AND(OR('1. Checklist & Certification'!$M$20=4,'1. Checklist & Certification'!$M$21=5,'1. Checklist & Certification'!$M$22=7),AO388>0,B388=\"\",I388>0,K388<I388),\"X\",\"\"))","v":""},{"$f":"IF(A388=\"\",\"\",IF(SUMPRODUCT(-- (ISNUMBER(SEARCH({\"*AHSC*\",\"*FMTW*\",\"*FWHG*\",\"*GHI*\",\"*HHC*\",\"*HLCP*\",\"*HOME*\",\"*LPR*\",\"*MHP*\",\"*NHTF*\",\"*NSP*\",\"*PRP*\",\"*TOD*\",\"*VHHP*\"},'1. Checklist & Certification'!$L$7)))),\"MHP\",\"Legacy\"))","v":""},",,",null,null,null,{"$f":"IF('1. Checklist & Certification'!$M$20=4,\"Both\",IF(OR('1. Checklist & Certification'!$M$15>0,S388=\"CHRP-R\",U388=\"CHRP-R\",W388=\"CHRP-R\",Y388=\"CHRP-R\"),\"Under\",\"No\"))","v":"No"},"No","No",{"$f":"_xlfn.IFS(D388=\"\",\"\",D388=1,'MHP Family Income & Rent Limits'!$E$17,D388=2,'MHP Family Income & Rent Limits'!$F$17,D388=3,'MHP Family Income & Rent Limits'!$G$17,D388=4,'MHP Family Income & Rent Limits'!$H$17,D388=5,'MHP Family Income & Rent Limits'!$I$17,D388=6,'MHP Family Income & Rent Limits'!$J$17,D388=7,'MHP Family Income & Rent Limits'!$K$17,D388=8,'MHP Family Income & Rent Limits'!$L$17)","v":""},"",{"$f":"IF(OR(A388=0,B388=\"X\"),0,MIN(IF(AA388:AD388<>0,AA388:AD388)))","v":0},{"$f":"IF(OR(H388=\"\",I388=\"\"),0,IF(H388*0.3/12>I388,MIN(H388*0.3/12,I388*1.1)+AP388,I388*(1+(VLOOKUP('1. Checklist & Certification'!$F$9,'HLCP-E Rent Change'!$A$1:$D$59,4,FALSE)))+AP388))","v":0}]
[null,null,null,null,null,null,null,null,null,null,null,null,null,null,null,null,null,null,null,null,null,null,null,null,null,null,0,0,0,0,0,0,0,0,{"$f":"IF(OR(A389=0,B389=\"X\"),0,IF(OR(S389=\"FHDP\",S389=\"RHCP-B\",U389=\"FHDP\",U389=\"RHCP-B\",W389=\"FHDP\",W389=\"RHCP-B\",Y389=\"FHDP\",Y389=\"RHCP-B\"),TRUNC((MIN(I389,K389)*(1+'1. Checklist & Certification'!$K$43)+AP389)),0))","v":0},{"$f":"IF(OR(A389=0,B389=\"X\"),0,IF(OR(S389=\"CHRP-R\",S389=\"SERA\",S389=\"SUHRP\",U389=\"CHRP-R\",U389=\"SERA\",U389=\"SUHRP\",W389=\"CHRP-R\",W389=\"SERA\",W389=\"SUHRP\",Y389=\"CHRP-R\",Y389=\"SERA\",Y389=\"SUHRP\"),TRUNC((MIN(I389,K389)*(1+'1. Checklist & Certification'!$K$49))),0))","v":0},{"$f":"IF(OR(A389=0,B389=\"X\"),0,IF(OR(S389=\"CALDAP\",S389=\"DPRLP\",U389=\"CALDAP\",U389=\"DPRLP\",W389=\"CALDAP\",W389=\"DPRLP\",Y389=\"CALDAP\",Y389=\"DPRLP\"),TRUNC(((MIN(I389,K389))*(1+'1. Checklist & Certification'!$G$4))),0))","v":0},0,0,0,{"$f":"IF(OR(A389=0,B389=\"X\"),0,IF(OR(S389=\"PRP\",S389=\"LPR\",U389=\"PRP\",U389=\"LPR\",W389=\"PRP\",W389=\"LPR\",Y389=\"PRP\",Y389=\"LPR\"),MAX(I389+AP389,MIN(IF(AE389:AN389<>0,AE389:AN389))),MIN(IF(AE389:AN389<>0,AE389:AN389))))","v":0},{"$f":"IF(A389=0,0,IF(AND(OR(S389=\"Mgr\",S389=0),OR(U389=\"Mgr\",U389=0),OR(W389=\"Mgr\",W389=0)),0,IF(LEFT($A389,2)=\"B*\",VLOOKUP($E389,'1. Checklist & Certification'!$D$26:$E$32,2),IF(LEFT($A389,2)=\"C*\",VLOOKUP($E389,'1. Checklist & Certification'!$F$26:$G$32,2),IF(LEFT($A389,2)=\"D*\",VLOOKUP($E389,'1. Checklist & Certification'!$H$26:$I$32,2),IF(LEFT($A389,2)=\"E*\",VLOOKUP($E389,'1. Checklist & Certification'!$J$26:$K$32,2),VLOOKUP($E389,'1. Checklist & Certification'!$A$26:$B$32,2)))))))","v":0},0,0,null,null,null,null,"","",0,0,0,null,{"$f":"IF(A389=\"\",\"\",'1. Checklist & Certification'!$K$1)","v":""},{"$f":"IF(A389=\"\",\"\",'1. Checklist & Certification'!$C$62)","v":""},{"$f":"IF(A389=\"\",\"\",'1. Checklist & Certification'!$C$6)","v":""},{"$f":"IF(A389=\"\",\"\",'1. Checklist & Certification'!$G$5)","v":""},{"$f":"IFERROR(IF(A389=\"\",\"\",\n_xlfn.LET(_xlpm.Contract,'1. Checklist & Certification'!$C$7,\n_xlpm.Yr,TEXT(MOD(_xlfn.TEXTBEFORE(_xlpm.Contract,\"-\"),100),\"00\"),\n_xlpm.Program,_xlfn.TEXTAFTER(_xlfn.TEXTBEFORE(_xlpm.Contract,\"-\",2),\"-\"),\n_xlpm.CleanProgram,_xlfn.XLOOKUP(_xlpm.Program,SpellCheck[Input],SpellCheck[Correction],_xlpm.Program),\n_xlpm.Number,TEXT(_xlfn.TEXTAFTER(_xlpm.Contract,\"-\",2),\"0000\"),\n_xlfn.CONCAT(_xlpm.Yr,\"-\",_xlpm.CleanProgram,\"-\",_xlpm.Number))\n),\"\")","v":""},{"$f":"IFERROR(IF(A389=\"\",\"\",\n_xlfn.LET(_xlpm.Contract,'1. Checklist & Certification'!$C$8,\n_xlpm.Yr,TEXT(MOD(_xlfn.TEXTBEFORE(_xlpm.Contract,\"-\"),100),\"00\"),\n_xlpm.Program,_xlfn.TEXTAFTER(_xlfn.TEXTBEFORE(_xlpm.Contract,\"-\",2),\"-\"),\n_xlpm.CleanProgram,_xlfn.XLOOKUP(_xlpm.Program,SpellCheck[Input],SpellCheck[Correction],_xlpm.Program),\n_xlpm.Number,TEXT(_xlfn.TEXTAFTER(_xlpm.Contract,\"-\",2),\"0000\"),\n_xlfn.CONCAT(_xlpm.Yr,\"-\",_xlpm.CleanProgram,\"-\",_xlpm.Number))\n),\"\")","v":""},{"$f":"IFERROR(IF(A389=\"\",\"\",\n_xlfn.LET(_xlpm.Contract,'1. Checklist & Certification'!$F$7,\n_xlpm.Yr,TEXT(MOD(_xlfn.TEXTBEFORE(_xlpm.Contract,\"-\"),100),\"00\"),\n_xlpm.Program,_xlfn.TEXTAFTER(_xlfn.TEXTBEFORE(_xlpm.Contract,\"-\",2),\"-\"),\n_xlpm.CleanProgram,_xlfn.XLOOKUP(_xlpm.Program,SpellCheck[Input],SpellCheck[Correction],_xlpm.Program),\n_xlpm.Number,TEXT(_xlfn.TEXTAFTER(_xlpm.Contract,\"-\",2),\"0000\"),\n_xlfn.CONCAT(_xlpm.Yr,\"-\",_xlpm.CleanProgram,\"-\",_xlpm.Number))\n),\"\")","v":""},{"$f":"IFERROR(IF(A389=\"\",\"\",\n_xlfn.LET(_xlpm.Contract,'1. Checklist & Certification'!$F$8,\n_xlpm.Yr,TEXT(MOD(_xlfn.TEXTBEFORE(_xlpm.Contract,\"-\"),100),\"00\"),\n_xlpm.Program,_xlfn.TEXTAFTER(_xlfn.TEXTBEFORE(_xlpm.Contract,\"-\",2),\"-\"),\n_xlpm.CleanProgram,_xlfn.XLOOKUP(_xlpm.Program,SpellCheck[Input],SpellCheck[Correction],_xlpm.Program),\n_xlpm.Number,TEXT(_xlfn.TEXTAFTER(_xlpm.Contract,\"-\",2),\"0000\"),\n_xlfn.CONCAT(_xlpm.Yr,\"-\",_xlpm.CleanProgram,\"-\",_xlpm.Number))\n),\"\")","v":""},{"$f":"IF(A389=\"\",\"\",'1. Checklist & Certification'!$B$9)","v":""},{"$f":"IF(A389=\"\",\"\",'1. Checklist & Certification'!$F$9)","v":""},{"$f":"IF(A389=\"\",\"\",'1. Checklist & Certification'!$C$10)","v":""},{"$f":"IF(A389=\"\",\"\",'1. Checklist & Certification'!$C$11)","v":""},{"$f":"IF(A389=\"\",\"\",'1. Checklist & Certification'!$C$12)","v":""},{"$f":"IF(A389=\"\",\"\",'1. Checklist & Certification'!$B$14)","v":""},{"$f":"IF(A389=\"\",\"\",'1. Checklist & Certification'!$E$14)","v":""},{"$f":"IF(B389=\"\",\"\",'1. Checklist & Certification'!$G$14)","v":""},{"$f":"IF(A389=\"\",\"\",'MHP Family Income & Rent Limits'!$B$3)","v":""},{"$f":"IF(A389=\"\",\"\",'MHP Family Income & Rent Limits'!$J$3)","v":""},{"$f":"IF(A389=\"\",\"\",'MHP Family Income & Rent Limits'!$E$4)","v":""},{"$f":"IF(A389=\"\",\"\",'MHP Family Income & Rent Limits'!$C$7)","v":""},{"$f":"IF(A389=\"\",\"\",'MHP Family Income & Rent Limits'!$F$8)","v":""},{"$f":"IF(A389=\"\",\"\",'1. Checklist & Certification'!$G$4)","v":""},{"$f":"IF(A389=\"\",\"\",'1. Checklist & Certification'!$K$39)","v":""},{"$f":"IF(A389=\"\",\"\",'1. Checklist & Certification'!$K$43)","v":""},{"$f":"IF(A389=\"\",\"\",'1. Checklist & Certification'!$K$45)","v":""},{"$f":"IF(A389=\"\",\"\",'1. Checklist & Certification'!$K$49)","v":""},{"$f":"IF(A389=\"\",\"\",'1. Checklist & Certification'!$K$62)","v":""},{"$f":"IF(A389=\"\",\"\",'1. Checklist & Certification'!$E$66)","v":""},{"$f":"IF(A389=\"\",\"\",'1. Checklist & Certification'!$E$67)","v":""},{"$f":"IF(A389=\"\",\"\",'1. Checklist & Certification'!$E$68)","v":""},{"$f":"IF(A389=\"\",\"\",'1. Checklist & Certification'!$G$66)","v":""},{"$f":"IF(A389=\"\",\"\",'1. Checklist & Certification'!$H$66)","v":""},{"$f":"IF(A389=\"\",\"\",'1. Checklist & Certification'!$I$66)","v":""},{"$f":"IF(A389=\"\",\"\",'1. Checklist & Certification'!$I$67)","v":""},{"$f":"IF(A389=\"\",\"\",'1. Checklist & Certification'!$I$68)","v":""},{"$f":"IF(A389=\"\",\"\",'1. Checklist & Certification'!$B$69)","v":""},{"$f":"IF(A389=\"\",\"\",'1. Checklist & Certification'!$C$69)","v":""},{"$f":"IF(A389=\"\",\"\",'1. Checklist & Certification'!$F$69)","v":""},{"$f":"IF(A389=\"\",\"\",'1. Checklist & Certification'!$G$69)","v":""},{"$f":"IF(A389=\"\",\"\",'1. Checklist & Certification'!$J$69)","v":""},{"$f":"IF(A389=\"\",\"\",'1. Checklist & Certification'!$K$69)","v":""},null,null,{"$f":"IF(AND(OR('1. Checklist & Certification'!$M$16=1,'1. Checklist & Certification'!$M$19=2),AO389>0,B389=\"\",I389>0,AQ389<I389,AV389<>\"Sec 8-Project\"),\"X\",IF(AND(OR('1. Checklist & Certification'!$M$20=4,'1. Checklist & Certification'!$M$21=5,'1. Checklist & Certification'!$M$22=7),AO389>0,B389=\"\",I389>0,K389<I389),\"X\",\"\"))","v":""},{"$f":"IF(A389=\"\",\"\",IF(SUMPRODUCT(-- (ISNUMBER(SEARCH({\"*AHSC*\",\"*FMTW*\",\"*FWHG*\",\"*GHI*\",\"*HHC*\",\"*HLCP*\",\"*HOME*\",\"*LPR*\",\"*MHP*\",\"*NHTF*\",\"*NSP*\",\"*PRP*\",\"*TOD*\",\"*VHHP*\"},'1. Checklist & Certification'!$L$7)))),\"MHP\",\"Legacy\"))","v":""},",,",null,null,null,{"$f":"IF('1. Checklist & Certification'!$M$20=4,\"Both\",IF(OR('1. Checklist & Certification'!$M$15>0,S389=\"CHRP-R\",U389=\"CHRP-R\",W389=\"CHRP-R\",Y389=\"CHRP-R\"),\"Under\",\"No\"))","v":"No"},"No","No",{"$f":"_xlfn.IFS(D389=\"\",\"\",D389=1,'MHP Family Income & Rent Limits'!$E$17,D389=2,'MHP Family Income & Rent Limits'!$F$17,D389=3,'MHP Family Income & Rent Limits'!$G$17,D389=4,'MHP Family Income & Rent Limits'!$H$17,D389=5,'MHP Family Income & Rent Limits'!$I$17,D389=6,'MHP Family Income & Rent Limits'!$J$17,D389=7,'MHP Family Income & Rent Limits'!$K$17,D389=8,'MHP Family Income & Rent Limits'!$L$17)","v":""},"",{"$f":"IF(OR(A389=0,B389=\"X\"),0,MIN(IF(AA389:AD389<>0,AA389:AD389)))","v":0},{"$f":"IF(OR(H389=\"\",I389=\"\"),0,IF(H389*0.3/12>I389,MIN(H389*0.3/12,I389*1.1)+AP389,I389*(1+(VLOOKUP('1. Checklist & Certification'!$F$9,'HLCP-E Rent Change'!$A$1:$D$59,4,FALSE)))+AP389))","v":0}]
[null,null,null,null,null,null,null,null,null,null,null,null,null,null,null,null,null,null,null,null,null,null,null,null,null,null,0,0,0,0,0,0,0,0,{"$f":"IF(OR(A390=0,B390=\"X\"),0,IF(OR(S390=\"FHDP\",S390=\"RHCP-B\",U390=\"FHDP\",U390=\"RHCP-B\",W390=\"FHDP\",W390=\"RHCP-B\",Y390=\"FHDP\",Y390=\"RHCP-B\"),TRUNC((MIN(I390,K390)*(1+'1. Checklist & Certification'!$K$43)+AP390)),0))","v":0},{"$f":"IF(OR(A390=0,B390=\"X\"),0,IF(OR(S390=\"CHRP-R\",S390=\"SERA\",S390=\"SUHRP\",U390=\"CHRP-R\",U390=\"SERA\",U390=\"SUHRP\",W390=\"CHRP-R\",W390=\"SERA\",W390=\"SUHRP\",Y390=\"CHRP-R\",Y390=\"SERA\",Y390=\"SUHRP\"),TRUNC((MIN(I390,K390)*(1+'1. Checklist & Certification'!$K$49))),0))","v":0},{"$f":"IF(OR(A390=0,B390=\"X\"),0,IF(OR(S390=\"CALDAP\",S390=\"DPRLP\",U390=\"CALDAP\",U390=\"DPRLP\",W390=\"CALDAP\",W390=\"DPRLP\",Y390=\"CALDAP\",Y390=\"DPRLP\"),TRUNC(((MIN(I390,K390))*(1+'1. Checklist & Certification'!$G$4))),0))","v":0},0,0,0,{"$f":"IF(OR(A390=0,B390=\"X\"),0,IF(OR(S390=\"PRP\",S390=\"LPR\",U390=\"PRP\",U390=\"LPR\",W390=\"PRP\",W390=\"LPR\",Y390=\"PRP\",Y390=\"LPR\"),MAX(I390+AP390,MIN(IF(AE390:AN390<>0,AE390:AN390))),MIN(IF(AE390:AN390<>0,AE390:AN390))))","v":0},{"$f":"IF(A390=0,0,IF(AND(OR(S390=\"Mgr\",S390=0),OR(U390=\"Mgr\",U390=0),OR(W390=\"Mgr\",W390=0)),0,IF(LEFT($A390,2)=\"B*\",VLOOKUP($E390,'1. Checklist & Certification'!$D$26:$E$32,2),IF(LEFT($A390,2)=\"C*\",VLOOKUP($E390,'1. Checklist & Certification'!$F$26:$G$32,2),IF(LEFT($A390,2)=\"D*\",VLOOKUP($E390,'1. Checklist & Certification'!$H$26:$I$32,2),IF(LEFT($A390,2)=\"E*\",VLOOKUP($E390,'1. Checklist & Certification'!$J$26:$K$32,2),VLOOKUP($E390,'1. Checklist & Certification'!$A$26:$B$32,2)))))))","v":0},0,0,null,null,null,null,"","",0,0,0,null,{"$f":"IF(A390=\"\",\"\",'1. Checklist & Certification'!$K$1)","v":""},{"$f":"IF(A390=\"\",\"\",'1. Checklist & Certification'!$C$62)","v":""},{"$f":"IF(A390=\"\",\"\",'1. Checklist & Certification'!$C$6)","v":""},{"$f":"IF(A390=\"\",\"\",'1. Checklist & Certification'!$G$5)","v":""},{"$f":"IFERROR(IF(A390=\"\",\"\",\n_xlfn.LET(_xlpm.Contract,'1. Checklist & Certification'!$C$7,\n_xlpm.Yr,TEXT(MOD(_xlfn.TEXTBEFORE(_xlpm.Contract,\"-\"),100),\"00\"),\n_xlpm.Program,_xlfn.TEXTAFTER(_xlfn.TEXTBEFORE(_xlpm.Contract,\"-\",2),\"-\"),\n_xlpm.CleanProgram,_xlfn.XLOOKUP(_xlpm.Program,SpellCheck[Input],SpellCheck[Correction],_xlpm.Program),\n_xlpm.Number,TEXT(_xlfn.TEXTAFTER(_xlpm.Contract,\"-\",2),\"0000\"),\n_xlfn.CONCAT(_xlpm.Yr,\"-\",_xlpm.CleanProgram,\"-\",_xlpm.Number))\n),\"\")","v":""},{"$f":"IFERROR(IF(A390=\"\",\"\",\n_xlfn.LET(_xlpm.Contract,'1. Checklist & Certification'!$C$8,\n_xlpm.Yr,TEXT(MOD(_xlfn.TEXTBEFORE(_xlpm.Contract,\"-\"),100),\"00\"),\n_xlpm.Program,_xlfn.TEXTAFTER(_xlfn.TEXTBEFORE(_xlpm.Contract,\"-\",2),\"-\"),\n_xlpm.CleanProgram,_xlfn.XLOOKUP(_xlpm.Program,SpellCheck[Input],SpellCheck[Correction],_xlpm.Program),\n_xlpm.Number,TEXT(_xlfn.TEXTAFTER(_xlpm.Contract,\"-\",2),\"0000\"),\n_xlfn.CONCAT(_xlpm.Yr,\"-\",_xlpm.CleanProgram,\"-\",_xlpm.Number))\n),\"\")","v":""},{"$f":"IFERROR(IF(A390=\"\",\"\",\n_xlfn.LET(_xlpm.Contract,'1. Checklist & Certification'!$F$7,\n_xlpm.Yr,TEXT(MOD(_xlfn.TEXTBEFORE(_xlpm.Contract,\"-\"),100),\"00\"),\n_xlpm.Program,_xlfn.TEXTAFTER(_xlfn.TEXTBEFORE(_xlpm.Contract,\"-\",2),\"-\"),\n_xlpm.CleanProgram,_xlfn.XLOOKUP(_xlpm.Program,SpellCheck[Input],SpellCheck[Correction],_xlpm.Program),\n_xlpm.Number,TEXT(_xlfn.TEXTAFTER(_xlpm.Contract,\"-\",2),\"0000\"),\n_xlfn.CONCAT(_xlpm.Yr,\"-\",_xlpm.CleanProgram,\"-\",_xlpm.Number))\n),\"\")","v":""},{"$f":"IFERROR(IF(A390=\"\",\"\",\n_xlfn.LET(_xlpm.Contract,'1. Checklist & Certification'!$F$8,\n_xlpm.Yr,TEXT(MOD(_xlfn.TEXTBEFORE(_xlpm.Contract,\"-\"),100),\"00\"),\n_xlpm.Program,_xlfn.TEXTAFTER(_xlfn.TEXTBEFORE(_xlpm.Contract,\"-\",2),\"-\"),\n_xlpm.CleanProgram,_xlfn.XLOOKUP(_xlpm.Program,SpellCheck[Input],SpellCheck[Correction],_xlpm.Program),\n_xlpm.Number,TEXT(_xlfn.TEXTAFTER(_xlpm.Contract,\"-\",2),\"0000\"),\n_xlfn.CONCAT(_xlpm.Yr,\"-\",_xlpm.CleanProgram,\"-\",_xlpm.Number))\n),\"\")","v":""},{"$f":"IF(A390=\"\",\"\",'1. Checklist & Certification'!$B$9)","v":""},{"$f":"IF(A390=\"\",\"\",'1. Checklist & Certification'!$F$9)","v":""},{"$f":"IF(A390=\"\",\"\",'1. Checklist & Certification'!$C$10)","v":""},{"$f":"IF(A390=\"\",\"\",'1. Checklist & Certification'!$C$11)","v":""},{"$f":"IF(A390=\"\",\"\",'1. Checklist & Certification'!$C$12)","v":""},{"$f":"IF(A390=\"\",\"\",'1. Checklist & Certification'!$B$14)","v":""},{"$f":"IF(A390=\"\",\"\",'1. Checklist & Certification'!$E$14)","v":""},{"$f":"IF(B390=\"\",\"\",'1. Checklist & Certification'!$G$14)","v":""},{"$f":"IF(A390=\"\",\"\",'MHP Family Income & Rent Limits'!$B$3)","v":""},{"$f":"IF(A390=\"\",\"\",'MHP Family Income & Rent Limits'!$J$3)","v":""},{"$f":"IF(A390=\"\",\"\",'MHP Family Income & Rent Limits'!$E$4)","v":""},{"$f":"IF(A390=\"\",\"\",'MHP Family Income & Rent Limits'!$C$7)","v":""},{"$f":"IF(A390=\"\",\"\",'MHP Family Income & Rent Limits'!$F$8)","v":""},{"$f":"IF(A390=\"\",\"\",'1. Checklist & Certification'!$G$4)","v":""},{"$f":"IF(A390=\"\",\"\",'1. Checklist & Certification'!$K$39)","v":""},{"$f":"IF(A390=\"\",\"\",'1. Checklist & Certification'!$K$43)","v":""},{"$f":"IF(A390=\"\",\"\",'1. Checklist & Certification'!$K$45)","v":""},{"$f":"IF(A390=\"\",\"\",'1. Checklist & Certification'!$K$49)","v":""},{"$f":"IF(A390=\"\",\"\",'1. Checklist & Certification'!$K$62)","v":""},{"$f":"IF(A390=\"\",\"\",'1. Checklist & Certification'!$E$66)","v":""},{"$f":"IF(A390=\"\",\"\",'1. Checklist & Certification'!$E$67)","v":""},{"$f":"IF(A390=\"\",\"\",'1. Checklist & Certification'!$E$68)","v":""},{"$f":"IF(A390=\"\",\"\",'1. Checklist & Certification'!$G$66)","v":""},{"$f":"IF(A390=\"\",\"\",'1. Checklist & Certification'!$H$66)","v":""},{"$f":"IF(A390=\"\",\"\",'1. Checklist & Certification'!$I$66)","v":""},{"$f":"IF(A390=\"\",\"\",'1. Checklist & Certification'!$I$67)","v":""},{"$f":"IF(A390=\"\",\"\",'1. Checklist & Certification'!$I$68)","v":""},{"$f":"IF(A390=\"\",\"\",'1. Checklist & Certification'!$B$69)","v":""},{"$f":"IF(A390=\"\",\"\",'1. Checklist & Certification'!$C$69)","v":""},{"$f":"IF(A390=\"\",\"\",'1. Checklist & Certification'!$F$69)","v":""},{"$f":"IF(A390=\"\",\"\",'1. Checklist & Certification'!$G$69)","v":""},{"$f":"IF(A390=\"\",\"\",'1. Checklist & Certification'!$J$69)","v":""},{"$f":"IF(A390=\"\",\"\",'1. Checklist & Certification'!$K$69)","v":""},null,null,{"$f":"IF(AND(OR('1. Checklist & Certification'!$M$16=1,'1. Checklist & Certification'!$M$19=2),AO390>0,B390=\"\",I390>0,AQ390<I390,AV390<>\"Sec 8-Project\"),\"X\",IF(AND(OR('1. Checklist & Certification'!$M$20=4,'1. Checklist & Certification'!$M$21=5,'1. Checklist & Certification'!$M$22=7),AO390>0,B390=\"\",I390>0,K390<I390),\"X\",\"\"))","v":""},{"$f":"IF(A390=\"\",\"\",IF(SUMPRODUCT(-- (ISNUMBER(SEARCH({\"*AHSC*\",\"*FMTW*\",\"*FWHG*\",\"*GHI*\",\"*HHC*\",\"*HLCP*\",\"*HOME*\",\"*LPR*\",\"*MHP*\",\"*NHTF*\",\"*NSP*\",\"*PRP*\",\"*TOD*\",\"*VHHP*\"},'1. Checklist & Certification'!$L$7)))),\"MHP\",\"Legacy\"))","v":""},",,",null,null,null,{"$f":"IF('1. Checklist & Certification'!$M$20=4,\"Both\",IF(OR('1. Checklist & Certification'!$M$15>0,S390=\"CHRP-R\",U390=\"CHRP-R\",W390=\"CHRP-R\",Y390=\"CHRP-R\"),\"Under\",\"No\"))","v":"No"},"No","No",{"$f":"_xlfn.IFS(D390=\"\",\"\",D390=1,'MHP Family Income & Rent Limits'!$E$17,D390=2,'MHP Family Income & Rent Limits'!$F$17,D390=3,'MHP Family Income & Rent Limits'!$G$17,D390=4,'MHP Family Income & Rent Limits'!$H$17,D390=5,'MHP Family Income & Rent Limits'!$I$17,D390=6,'MHP Family Income & Rent Limits'!$J$17,D390=7,'MHP Family Income & Rent Limits'!$K$17,D390=8,'MHP Family Income & Rent Limits'!$L$17)","v":""},"",{"$f":"IF(OR(A390=0,B390=\"X\"),0,MIN(IF(AA390:AD390<>0,AA390:AD390)))","v":0},{"$f":"IF(OR(H390=\"\",I390=\"\"),0,IF(H390*0.3/12>I390,MIN(H390*0.3/12,I390*1.1)+AP390,I390*(1+(VLOOKUP('1. Checklist & Certification'!$F$9,'HLCP-E Rent Change'!$A$1:$D$59,4,FALSE)))+AP390))","v":0}]
[null,null,null,null,null,null,null,null,null,null,null,null,null,null,null,null,null,null,null,null,null,null,null,null,null,null,{"$f":"IF(D391=\"Vacant\",\"Vacant\",IF(T391<>0,INDEX(IncomeLimits,MATCH(T391,IncomeLevels,0),MATCH(D391,IncomePersons,0)),0))","v":0},{"$f":"IF(D391=\"Vacant\",\"Vacant\",IF(V391<>0,INDEX(IncomeLimits,MATCH(V391,IncomeLevels,0),MATCH(D391,IncomePersons,0)),0))","v":0},{"$f":"IF(D391=\"Vacant\",\"Vacant\",IF(X391<>0,INDEX(IncomeLimits,MATCH(X391,IncomeLevels,0),MATCH(D391,IncomePersons,0)),0))","v":0},{"$f":"IF(D391=\"Vacant\",\"Vacant\",IF(Z391<>0,INDEX(IncomeLimits,MATCH(Z391,IncomeLevels,0),MATCH(D391,IncomePersons,0)),0))","v":0},{"$f":"IF(OR(T391=\"LI State\",T391=\"VLI State\"),0,IF(T391>1,INDEX(RentLimits,MATCH(T391,RentLevels,0),MATCH(E391,RentPersons,0)),0))","v":0},{"$f":"IF(OR(V391=\"LI State\",V391=\"VLI State\"),0,IF(V391>1,INDEX(RentLimits,MATCH(V391,RentLevels,0),MATCH(E391,RentPersons,0)),0))","v":0},{"$f":"IF(OR(X391=\"LI State\",X391=\"VLI State\"),0,IF(X391>1,INDEX(RentLimits,MATCH(X391,RentLevels,0),MATCH(E391,RentPersons,0)),0))","v":0},{"$f":"IF(OR(Z391=\"LI State\",Z391=\"VLI State\"),0,IF(Z391>1,INDEX(RentLimits,MATCH(Z391,RentLevels,0),MATCH(E391,RentPersons,0)),0))","v":0},{"$f":"IF(OR(A391=0,B391=\"X\"),0,IF(OR(S391=\"FHDP\",S391=\"RHCP-B\",U391=\"FHDP\",U391=\"RHCP-B\",W391=\"FHDP\",W391=\"RHCP-B\",Y391=\"FHDP\",Y391=\"RHCP-B\"),TRUNC((MIN(I391,K391)*(1+'1. Checklist & Certification'!$K$43)+AP391)),0))","v":0},{"$f":"IF(OR(A391=0,B391=\"X\"),0,IF(OR(S391=\"CHRP-R\",S391=\"SERA\",S391=\"SUHRP\",U391=\"CHRP-R\",U391=\"SERA\",U391=\"SUHRP\",W391=\"CHRP-R\",W391=\"SERA\",W391=\"SUHRP\",Y391=\"CHRP-R\",Y391=\"SERA\",Y391=\"SUHRP\"),TRUNC((MIN(I391,K391)*(1+'1. Checklist & Certification'!$K$49))),0))","v":0},{"$f":"IF(OR(A391=0,B391=\"X\"),0,IF(OR(S391=\"CALDAP\",S391=\"DPRLP\",U391=\"CALDAP\",U391=\"DPRLP\",W391=\"CALDAP\",W391=\"DPRLP\",Y391=\"CALDAP\",Y391=\"DPRLP\"),TRUNC(((MIN(I391,K391))*(1+'1. Checklist & Certification'!$G$4))),0))","v":0},{"$f":"IF(D391=\"Vacant\",0,IF(H391=0,0,IF(OR(AND(S391=\"FWHG\",T391=0),AND(U391=\"FWHG\",V391=0),AND(W391=\"FWHG\",X391=0),AND(Y391=\"FWHG\",Z391=0)),TRUNC(H391*0.3/12),IF(OR(S391=\"HLCP-E\",U391=\"HLCP-E\",W391=\"HLCP-E\",Y391=\"HLCP-E\"),DF391,0))))","v":0},0,0,{"$f":"IF(OR(A391=0,B391=\"X\"),0,IF(OR(S391=\"PRP\",S391=\"LPR\",U391=\"PRP\",U391=\"LPR\",W391=\"PRP\",W391=\"LPR\",Y391=\"PRP\",Y391=\"LPR\"),MAX(I391+AP391,MIN(IF(AE391:AN391<>0,AE391:AN391))),MIN(IF(AE391:AN391<>0,AE391:AN391))))","v":0},{"$f":"IF(A391=0,0,IF(AND(OR(S391=\"Mgr\",S391=0),OR(U391=\"Mgr\",U391=0),OR(W391=\"Mgr\",W391=0)),0,IF(LEFT($A391,2)=\"B*\",VLOOKUP($E391,'1. Checklist & Certification'!$D$26:$E$32,2),IF(LEFT($A391,2)=\"C*\",VLOOKUP($E391,'1. Checklist & Certification'!$F$26:$G$32,2),IF(LEFT($A391,2)=\"D*\",VLOOKUP($E391,'1. Checklist & Certification'!$H$26:$I$32,2),IF(LEFT($A391,2)=\"E*\",VLOOKUP($E391,'1. Checklist & Certification'!$J$26:$K$32,2),VLOOKUP($E391,'1. Checklist & Certification'!$A$26:$B$32,2)))))))","v":0},{"$f":"IF(AO391=0,0,ROUND(AO391-AP391,0))","v":0},{"$f":"AS391-I391","v":0},null,null,null,null,{"$f":"IF($CV$5=TRUE,IF(AS391<>0,IF(AV391<>\"Sec 8-Project\",MIN(AQ391,AS391),AS391),\"\"),\"\")","v":""},{"$f":"IF(AW391=\"\",\"\",(I391*J391)+((12-J391)*AW391))","v":""},{"$f":"(I391*J391)+((12-J391)*AS391)","v":0},{"$f":"(AT391*J391)+((12-J391)*AU391)","v":0},0,null,{"$f":"IF(A391=\"\",\"\",'1. Checklist & Certification'!$K$1)","v":""},{"$f":"IF(A391=\"\",\"\",'1. Checklist & Certification'!$C$62)","v":""},{"$f":"IF(A391=\"\",\"\",'1. Checklist & Certification'!$C$6)","v":""},{"$f":"IF(A391=\"\",\"\",'1. Checklist & Certification'!$G$5)","v":""},{"$f":"IFERROR(IF(A391=\"\",\"\",\n_xlfn.LET(_xlpm.Contract,'1. Checklist & Certification'!$C$7,\n_xlpm.Yr,TEXT(MOD(_xlfn.TEXTBEFORE(_xlpm.Contract,\"-\"),100),\"00\"),\n_xlpm.Program,_xlfn.TEXTAFTER(_xlfn.TEXTBEFORE(_xlpm.Contract,\"-\",2),\"-\"),\n_xlpm.CleanProgram,_xlfn.XLOOKUP(_xlpm.Program,SpellCheck[Input],SpellCheck[Correction],_xlpm.Program),\n_xlpm.Number,TEXT(_xlfn.TEXTAFTER(_xlpm.Contract,\"-\",2),\"0000\"),\n_xlfn.CONCAT(_xlpm.Yr,\"-\",_xlpm.CleanProgram,\"-\",_xlpm.Number))\n),\"\")","v":""},{"$f":"IFERROR(IF(A391=\"\",\"\",\n_xlfn.LET(_xlpm.Contract,'1. Checklist & Certification'!$C$8,\n_xlpm.Yr,TEXT(MOD(_xlfn.TEXTBEFORE(_xlpm.Contract,\"-\"),100),\"00\"),\n_xlpm.Program,_xlfn.TEXTAFTER(_xlfn.TEXTBEFORE(_xlpm.Contract,\"-\",2),\"-\"),\n_xlpm.CleanProgram,_xlfn.XLOOKUP(_xlpm.Program,SpellCheck[Input],SpellCheck[Correction],_xlpm.Program),\n_xlpm.Number,TEXT(_xlfn.TEXTAFTER(_xlpm.Contract,\"-\",2),\"0000\"),\n_xlfn.CONCAT(_xlpm.Yr,\"-\",_xlpm.CleanProgram,\"-\",_xlpm.Number))\n),\"\")","v":""},{"$f":"IFERROR(IF(A391=\"\",\"\",\n_xlfn.LET(_xlpm.Contract,'1. Checklist & Certification'!$F$7,\n_xlpm.Yr,TEXT(MOD(_xlfn.TEXTBEFORE(_xlpm.Contract,\"-\"),100),\"00\"),\n_xlpm.Program,_xlfn.TEXTAFTER(_xlfn.TEXTBEFORE(_xlpm.Contract,\"-\",2),\"-\"),\n_xlpm.CleanProgram,_xlfn.XLOOKUP(_xlpm.Program,SpellCheck[Input],SpellCheck[Correction],_xlpm.Program),\n_xlpm.Number,TEXT(_xlfn.TEXTAFTER(_xlpm.Contract,\"-\",2),\"0000\"),\n_xlfn.CONCAT(_xlpm.Yr,\"-\",_xlpm.CleanProgram,\"-\",_xlpm.Number))\n),\"\")","v":""},{"$f":"IFERROR(IF(A391=\"\",\"\",\n_xlfn.LET(_xlpm.Contract,'1. Checklist & Certification'!$F$8,\n_xlpm.Yr,TEXT(MOD(_xlfn.TEXTBEFORE(_xlpm.Contract,\"-\"),100),\"00\"),\n_xlpm.Program,_xlfn.TEXTAFTER(_xlfn.TEXTBEFORE(_xlpm.Contract,\"-\",2),\"-\"),\n_xlpm.CleanProgram,_xlfn.XLOOKUP(_xlpm.Program,SpellCheck[Input],SpellCheck[Correction],_xlpm.Program),\n_xlpm.Number,TEXT(_xlfn.TEXTAFTER(_xlpm.Contract,\"-\",2),\"0000\"),\n_xlfn.CONCAT(_xlpm.Yr,\"-\",_xlpm.CleanProgram,\"-\",_xlpm.Number))\n),\"\")","v":""},{"$f":"IF(A391=\"\",\"\",'1. Checklist & Certification'!$B$9)","v":""},{"$f":"IF(A391=\"\",\"\",'1. Checklist & Certification'!$F$9)","v":""},{"$f":"IF(A391=\"\",\"\",'1. Checklist & Certification'!$C$10)","v":""},{"$f":"IF(A391=\"\",\"\",'1. Checklist & Certification'!$C$11)","v":""},{"$f":"IF(A391=\"\",\"\",'1. Checklist & Certification'!$C$12)","v":""},{"$f":"IF(A391=\"\",\"\",'1. Checklist & Certification'!$B$14)","v":""},{"$f":"IF(A391=\"\",\"\",'1. Checklist & Certification'!$E$14)","v":""},{"$f":"IF(B391=\"\",\"\",'1. Checklist & Certification'!$G$14)","v":""},{"$f":"IF(A391=\"\",\"\",'MHP Family Income & Rent Limits'!$B$3)","v":""},{"$f":"IF(A391=\"\",\"\",'MHP Family Income & Rent Limits'!$J$3)","v":""},{"$f":"IF(A391=\"\",\"\",'MHP Family Income & Rent Limits'!$E$4)","v":""},{"$f":"IF(A391=\"\",\"\",'MHP Family Income & Rent Limits'!$C$7)","v":""},{"$f":"IF(A391=\"\",\"\",'MHP Family Income & Rent Limits'!$F$8)","v":""},{"$f":"IF(A391=\"\",\"\",'1. Checklist & Certification'!$G$4)","v":""},{"$f":"IF(A391=\"\",\"\",'1. Checklist & Certification'!$K$39)","v":""},{"$f":"IF(A391=\"\",\"\",'1. Checklist & Certification'!$K$43)","v":""},{"$f":"IF(A391=\"\",\"\",'1. Checklist & Certification'!$K$45)","v":""},{"$f":"IF(A391=\"\",\"\",'1. Checklist & Certification'!$K$49)","v":""},{"$f":"IF(A391=\"\",\"\",'1. Checklist & Certification'!$K$62)","v":""},{"$f":"IF(A391=\"\",\"\",'1. Checklist & Certification'!$E$66)","v":""},{"$f":"IF(A391=\"\",\"\",'1. Checklist & Certification'!$E$67)","v":""},{"$f":"IF(A391=\"\",\"\",'1. Checklist & Certification'!$E$68)","v":""},{"$f":"IF(A391=\"\",\"\",'1. Checklist & Certification'!$G$66)","v":""},{"$f":"IF(A391=\"\",\"\",'1. Checklist & Certification'!$H$66)","v":""},{"$f":"IF(A391=\"\",\"\",'1. Checklist & Certification'!$I$66)","v":""},{"$f":"IF(A391=\"\",\"\",'1. Checklist & Certification'!$I$67)","v":""},{"$f":"IF(A391=\"\",\"\",'1. Checklist & Certification'!$I$68)","v":""},{"$f":"IF(A391=\"\",\"\",'1. Checklist & Certification'!$B$69)","v":""},{"$f":"IF(A391=\"\",\"\",'1. Checklist & Certification'!$C$69)","v":""},{"$f":"IF(A391=\"\",\"\",'1. Checklist & Certification'!$F$69)","v":""},{"$f":"IF(A391=\"\",\"\",'1. Checklist & Certification'!$G$69)","v":""},{"$f":"IF(A391=\"\",\"\",'1. Checklist & Certification'!$J$69)","v":""},{"$f":"IF(A391=\"\",\"\",'1. Checklist & Certification'!$K$69)","v":""},null,null,{"$f":"IF(AND(OR('1. Checklist & Certification'!$M$16=1,'1. Checklist & Certification'!$M$19=2),AO391>0,B391=\"\",I391>0,AQ391<I391,AV391<>\"Sec 8-Project\"),\"X\",IF(AND(OR('1. Checklist & Certification'!$M$20=4,'1. Checklist & Certification'!$M$21=5,'1. Checklist & Certification'!$M$22=7),AO391>0,B391=\"\",I391>0,K391<I391),\"X\",\"\"))","v":""},{"$f":"IF(A391=\"\",\"\",IF(SUMPRODUCT(-- (ISNUMBER(SEARCH({\"*AHSC*\",\"*FMTW*\",\"*FWHG*\",\"*GHI*\",\"*HHC*\",\"*HLCP*\",\"*HOME*\",\"*LPR*\",\"*MHP*\",\"*NHTF*\",\"*NSP*\",\"*PRP*\",\"*TOD*\",\"*VHHP*\"},'1. Checklist & Certification'!$L$7)))),\"MHP\",\"Legacy\"))","v":""},{"$f":"CONCATENATE(S391,\",\",U391,\",\",W391)","v":",,"},null,null,null,{"$f":"IF('1. Checklist & Certification'!$M$20=4,\"Both\",IF(OR('1. Checklist & Certification'!$M$15>0,S391=\"CHRP-R\",U391=\"CHRP-R\",W391=\"CHRP-R\",Y391=\"CHRP-R\"),\"Under\",\"No\"))","v":"No"},"No","No",{"$f":"_xlfn.IFS(D391=\"\",\"\",D391=1,'MHP Family Income & Rent Limits'!$E$17,D391=2,'MHP Family Income & Rent Limits'!$F$17,D391=3,'MHP Family Income & Rent Limits'!$G$17,D391=4,'MHP Family Income & Rent Limits'!$H$17,D391=5,'MHP Family Income & Rent Limits'!$I$17,D391=6,'MHP Family Income & Rent Limits'!$J$17,D391=7,'MHP Family Income & Rent Limits'!$K$17,D391=8,'MHP Family Income & Rent Limits'!$L$17)","v":""},{"$f":"IF(H391=\"\",\"\",IF(H391<=DC391,0.05,0.1))","v":""},{"$f":"IF(OR(A391=0,B391=\"X\"),0,MIN(IF(AA391:AD391<>0,AA391:AD391)))","v":0},{"$f":"IF(OR(H391=\"\",I391=\"\"),0,IF(H391*0.3/12>I391,MIN(H391*0.3/12,I391*1.1)+AP391,I391*(1+(VLOOKUP('1. Checklist & Certification'!$F$9,'HLCP-E Rent Change'!$A$1:$D$59,4,FALSE)))+AP391))","v":0}]
[null,null,null,null,null,null,null,null,null,null,null,null,null,null,null,null,null,null,null,null,null,null,null,null,null,null,0,0,0,0,0,0,0,0,{"$f":"IF(OR(A392=0,B392=\"X\"),0,IF(OR(S392=\"FHDP\",S392=\"RHCP-B\",U392=\"FHDP\",U392=\"RHCP-B\",W392=\"FHDP\",W392=\"RHCP-B\",Y392=\"FHDP\",Y392=\"RHCP-B\"),TRUNC((MIN(I392,K392)*(1+'1. Checklist & Certification'!$K$43)+AP392)),0))","v":0},{"$f":"IF(OR(A392=0,B392=\"X\"),0,IF(OR(S392=\"CHRP-R\",S392=\"SERA\",S392=\"SUHRP\",U392=\"CHRP-R\",U392=\"SERA\",U392=\"SUHRP\",W392=\"CHRP-R\",W392=\"SERA\",W392=\"SUHRP\",Y392=\"CHRP-R\",Y392=\"SERA\",Y392=\"SUHRP\"),TRUNC((MIN(I392,K392)*(1+'1. Checklist & Certification'!$K$49))),0))","v":0},{"$f":"IF(OR(A392=0,B392=\"X\"),0,IF(OR(S392=\"CALDAP\",S392=\"DPRLP\",U392=\"CALDAP\",U392=\"DPRLP\",W392=\"CALDAP\",W392=\"DPRLP\",Y392=\"CALDAP\",Y392=\"DPRLP\"),TRUNC(((MIN(I392,K392))*(1+'1. Checklist & Certification'!$G$4))),0))","v":0},0,{"$f":"IF(OR(A392=0,B392=\"X\"),0,IF(OR(S392=\"PRP\",S392=\"LPR\",U392=\"PRP\",U392=\"LPR\",W392=\"PRP\",W392=\"LPR\",Y392=\"PRP\",Y392=\"LPR\"),TRUNC(I392*(1+DD392)+AP392),0))","v":0},{"$f":"IF(OR(A392=0,B392=\"X\"),0,IF(OR(S392=\"PRP\",S392=\"LPR\",U392=\"PRP\",U392=\"LPR\",W392=\"PRP\",W392=\"LPR\",Y392=\"PRP\",Y392=\"LPR\"),TRUNC(H392*0.5/12),0))","v":0},{"$f":"IF(OR(A392=0,B392=\"X\"),0,IF(OR(S392=\"PRP\",S392=\"LPR\",U392=\"PRP\",U392=\"LPR\",W392=\"PRP\",W392=\"LPR\",Y392=\"PRP\",Y392=\"LPR\"),MAX(I392+AP392,MIN(IF(AE392:AN392<>0,AE392:AN392))),MIN(IF(AE392:AN392<>0,AE392:AN392))))","v":0},{"$f":"IF(A392=0,0,IF(AND(OR(S392=\"Mgr\",S392=0),OR(U392=\"Mgr\",U392=0),OR(W392=\"Mgr\",W392=0)),0,IF(LEFT($A392,2)=\"B*\",VLOOKUP($E392,'1. Checklist & Certification'!$D$26:$E$32,2),IF(LEFT($A392,2)=\"C*\",VLOOKUP($E392,'1. Checklist & Certification'!$F$26:$G$32,2),IF(LEFT($A392,2)=\"D*\",VLOOKUP($E392,'1. Checklist & Certification'!$H$26:$I$32,2),IF(LEFT($A392,2)=\"E*\",VLOOKUP($E392,'1. Checklist & Certification'!$J$26:$K$32,2),VLOOKUP($E392,'1. Checklist & Certification'!$A$26:$B$32,2)))))))","v":0},0,0,null,null,null,null,"","",0,0,{"$f":"IFERROR((AX392+(AP392*12))/H392,0)","v":0},null,{"$f":"IF(A392=\"\",\"\",'1. Checklist & Certification'!$K$1)","v":""},{"$f":"IF(A392=\"\",\"\",'1. Checklist & Certification'!$C$62)","v":""},{"$f":"IF(A392=\"\",\"\",'1. Checklist & Certification'!$C$6)","v":""},{"$f":"IF(A392=\"\",\"\",'1. Checklist & Certification'!$G$5)","v":""},{"$f":"IFERROR(IF(A392=\"\",\"\",\n_xlfn.LET(_xlpm.Contract,'1. Checklist & Certification'!$C$7,\n_xlpm.Yr,TEXT(MOD(_xlfn.TEXTBEFORE(_xlpm.Contract,\"-\"),100),\"00\"),\n_xlpm.Program,_xlfn.TEXTAFTER(_xlfn.TEXTBEFORE(_xlpm.Contract,\"-\",2),\"-\"),\n_xlpm.CleanProgram,_xlfn.XLOOKUP(_xlpm.Program,SpellCheck[Input],SpellCheck[Correction],_xlpm.Program),\n_xlpm.Number,TEXT(_xlfn.TEXTAFTER(_xlpm.Contract,\"-\",2),\"0000\"),\n_xlfn.CONCAT(_xlpm.Yr,\"-\",_xlpm.CleanProgram,\"-\",_xlpm.Number))\n),\"\")","v":""},{"$f":"IFERROR(IF(A392=\"\",\"\",\n_xlfn.LET(_xlpm.Contract,'1. Checklist & Certification'!$C$8,\n_xlpm.Yr,TEXT(MOD(_xlfn.TEXTBEFORE(_xlpm.Contract,\"-\"),100),\"00\"),\n_xlpm.Program,_xlfn.TEXTAFTER(_xlfn.TEXTBEFORE(_xlpm.Contract,\"-\",2),\"-\"),\n_xlpm.CleanProgram,_xlfn.XLOOKUP(_xlpm.Program,SpellCheck[Input],SpellCheck[Correction],_xlpm.Program),\n_xlpm.Number,TEXT(_xlfn.TEXTAFTER(_xlpm.Contract,\"-\",2),\"0000\"),\n_xlfn.CONCAT(_xlpm.Yr,\"-\",_xlpm.CleanProgram,\"-\",_xlpm.Number))\n),\"\")","v":""},{"$f":"IFERROR(IF(A392=\"\",\"\",\n_xlfn.LET(_xlpm.Contract,'1. Checklist & Certification'!$F$7,\n_xlpm.Yr,TEXT(MOD(_xlfn.TEXTBEFORE(_xlpm.Contract,\"-\"),100),\"00\"),\n_xlpm.Program,_xlfn.TEXTAFTER(_xlfn.TEXTBEFORE(_xlpm.Contract,\"-\",2),\"-\"),\n_xlpm.CleanProgram,_xlfn.XLOOKUP(_xlpm.Program,SpellCheck[Input],SpellCheck[Correction],_xlpm.Program),\n_xlpm.Number,TEXT(_xlfn.TEXTAFTER(_xlpm.Contract,\"-\",2),\"0000\"),\n_xlfn.CONCAT(_xlpm.Yr,\"-\",_xlpm.CleanProgram,\"-\",_xlpm.Number))\n),\"\")","v":""},{"$f":"IFERROR(IF(A392=\"\",\"\",\n_xlfn.LET(_xlpm.Contract,'1. Checklist & Certification'!$F$8,\n_xlpm.Yr,TEXT(MOD(_xlfn.TEXTBEFORE(_xlpm.Contract,\"-\"),100),\"00\"),\n_xlpm.Program,_xlfn.TEXTAFTER(_xlfn.TEXTBEFORE(_xlpm.Contract,\"-\",2),\"-\"),\n_xlpm.CleanProgram,_xlfn.XLOOKUP(_xlpm.Program,SpellCheck[Input],SpellCheck[Correction],_xlpm.Program),\n_xlpm.Number,TEXT(_xlfn.TEXTAFTER(_xlpm.Contract,\"-\",2),\"0000\"),\n_xlfn.CONCAT(_xlpm.Yr,\"-\",_xlpm.CleanProgram,\"-\",_xlpm.Number))\n),\"\")","v":""},{"$f":"IF(A392=\"\",\"\",'1. Checklist & Certification'!$B$9)","v":""},{"$f":"IF(A392=\"\",\"\",'1. Checklist & Certification'!$F$9)","v":""},{"$f":"IF(A392=\"\",\"\",'1. Checklist & Certification'!$C$10)","v":""},{"$f":"IF(A392=\"\",\"\",'1. Checklist & Certification'!$C$11)","v":""},{"$f":"IF(A392=\"\",\"\",'1. Checklist & Certification'!$C$12)","v":""},{"$f":"IF(A392=\"\",\"\",'1. Checklist & Certification'!$B$14)","v":""},{"$f":"IF(A392=\"\",\"\",'1. Checklist & Certification'!$E$14)","v":""},{"$f":"IF(B392=\"\",\"\",'1. Checklist & Certification'!$G$14)","v":""},{"$f":"IF(A392=\"\",\"\",'MHP Family Income & Rent Limits'!$B$3)","v":""},{"$f":"IF(A392=\"\",\"\",'MHP Family Income & Rent Limits'!$J$3)","v":""},{"$f":"IF(A392=\"\",\"\",'MHP Family Income & Rent Limits'!$E$4)","v":""},{"$f":"IF(A392=\"\",\"\",'MHP Family Income & Rent Limits'!$C$7)","v":""},{"$f":"IF(A392=\"\",\"\",'MHP Family Income & Rent Limits'!$F$8)","v":""},{"$f":"IF(A392=\"\",\"\",'1. Checklist & Certification'!$G$4)","v":""},{"$f":"IF(A392=\"\",\"\",'1. Checklist & Certification'!$K$39)","v":""},{"$f":"IF(A392=\"\",\"\",'1. Checklist & Certification'!$K$43)","v":""},{"$f":"IF(A392=\"\",\"\",'1. Checklist & Certification'!$K$45)","v":""},{"$f":"IF(A392=\"\",\"\",'1. Checklist & Certification'!$K$49)","v":""},{"$f":"IF(A392=\"\",\"\",'1. Checklist & Certification'!$K$62)","v":""},{"$f":"IF(A392=\"\",\"\",'1. Checklist & Certification'!$E$66)","v":""},{"$f":"IF(A392=\"\",\"\",'1. Checklist & Certification'!$E$67)","v":""},{"$f":"IF(A392=\"\",\"\",'1. Checklist & Certification'!$E$68)","v":""},{"$f":"IF(A392=\"\",\"\",'1. Checklist & Certification'!$G$66)","v":""},{"$f":"IF(A392=\"\",\"\",'1. Checklist & Certification'!$H$66)","v":""},{"$f":"IF(A392=\"\",\"\",'1. Checklist & Certification'!$I$66)","v":""},{"$f":"IF(A392=\"\",\"\",'1. Checklist & Certification'!$I$67)","v":""},{"$f":"IF(A392=\"\",\"\",'1. Checklist & Certification'!$I$68)","v":""},{"$f":"IF(A392=\"\",\"\",'1. Checklist & Certification'!$B$69)","v":""},{"$f":"IF(A392=\"\",\"\",'1. Checklist & Certification'!$C$69)","v":""},{"$f":"IF(A392=\"\",\"\",'1. Checklist & Certification'!$F$69)","v":""},{"$f":"IF(A392=\"\",\"\",'1. Checklist & Certification'!$G$69)","v":""},{"$f":"IF(A392=\"\",\"\",'1. Checklist & Certification'!$J$69)","v":""},{"$f":"IF(A392=\"\",\"\",'1. Checklist & Certification'!$K$69)","v":""},null,null,{"$f":"IF(AND(OR('1. Checklist & Certification'!$M$16=1,'1. Checklist & Certification'!$M$19=2),AO392>0,B392=\"\",I392>0,AQ392<I392,AV392<>\"Sec 8-Project\"),\"X\",IF(AND(OR('1. Checklist & Certification'!$M$20=4,'1. Checklist & Certification'!$M$21=5,'1. Checklist & Certification'!$M$22=7),AO392>0,B392=\"\",I392>0,K392<I392),\"X\",\"\"))","v":""},{"$f":"IF(A392=\"\",\"\",IF(SUMPRODUCT(-- (ISNUMBER(SEARCH({\"*AHSC*\",\"*FMTW*\",\"*FWHG*\",\"*GHI*\",\"*HHC*\",\"*HLCP*\",\"*HOME*\",\"*LPR*\",\"*MHP*\",\"*NHTF*\",\"*NSP*\",\"*PRP*\",\"*TOD*\",\"*VHHP*\"},'1. Checklist & Certification'!$L$7)))),\"MHP\",\"Legacy\"))","v":""},",,",null,null,null,{"$f":"IF('1. Checklist & Certification'!$M$20=4,\"Both\",IF(OR('1. Checklist & Certification'!$M$15>0,S392=\"CHRP-R\",U392=\"CHRP-R\",W392=\"CHRP-R\",Y392=\"CHRP-R\"),\"Under\",\"No\"))","v":"No"},{"$f":"IF(OR(B392=\"X\",D392=\"Vacant\",D392<1),\"No\",IF(AND(CZ392<>\"No\",D392<VLOOKUP(E392,$CW$7:$CY$13,2)),\"Yes\",\"No\"))","v":"No"},{"$f":"IF(OR(B392=\"X\",D392=\"Vacant\",D392<1),\"No\",IF(AND(CZ392=\"Both\",D392>VLOOKUP(E392,$CW$7:$CY$13,3)),\"Yes\",\"No\"))","v":"No"},{"$f":"_xlfn.IFS(D392=\"\",\"\",D392=1,'MHP Family Income & Rent Limits'!$E$17,D392=2,'MHP Family Income & Rent Limits'!$F$17,D392=3,'MHP Family Income & Rent Limits'!$G$17,D392=4,'MHP Family Income & Rent Limits'!$H$17,D392=5,'MHP Family Income & Rent Limits'!$I$17,D392=6,'MHP Family Income & Rent Limits'!$J$17,D392=7,'MHP Family Income & Rent Limits'!$K$17,D392=8,'MHP Family Income & Rent Limits'!$L$17)","v":""},"",{"$f":"IF(OR(A392=0,B392=\"X\"),0,MIN(IF(AA392:AD392<>0,AA392:AD392)))","v":0},{"$f":"IF(OR(H392=\"\",I392=\"\"),0,IF(H392*0.3/12>I392,MIN(H392*0.3/12,I392*1.1)+AP392,I392*(1+(VLOOKUP('1. Checklist & Certification'!$F$9,'HLCP-E Rent Change'!$A$1:$D$59,4,FALSE)))+AP392))","v":0}]
[null,null,null,null,null,null,null,null,null,null,null,null,null,null,null,null,null,null,null,null,null,null,null,null,null,null,0,0,0,0,0,0,0,0,{"$f":"IF(OR(A393=0,B393=\"X\"),0,IF(OR(S393=\"FHDP\",S393=\"RHCP-B\",U393=\"FHDP\",U393=\"RHCP-B\",W393=\"FHDP\",W393=\"RHCP-B\",Y393=\"FHDP\",Y393=\"RHCP-B\"),TRUNC((MIN(I393,K393)*(1+'1. Checklist & Certification'!$K$43)+AP393)),0))","v":0},{"$f":"IF(OR(A393=0,B393=\"X\"),0,IF(OR(S393=\"CHRP-R\",S393=\"SERA\",S393=\"SUHRP\",U393=\"CHRP-R\",U393=\"SERA\",U393=\"SUHRP\",W393=\"CHRP-R\",W393=\"SERA\",W393=\"SUHRP\",Y393=\"CHRP-R\",Y393=\"SERA\",Y393=\"SUHRP\"),TRUNC((MIN(I393,K393)*(1+'1. Checklist & Certification'!$K$49))),0))","v":0},{"$f":"IF(OR(A393=0,B393=\"X\"),0,IF(OR(S393=\"CALDAP\",S393=\"DPRLP\",U393=\"CALDAP\",U393=\"DPRLP\",W393=\"CALDAP\",W393=\"DPRLP\",Y393=\"CALDAP\",Y393=\"DPRLP\"),TRUNC(((MIN(I393,K393))*(1+'1. Checklist & Certification'!$G$4))),0))","v":0},0,0,0,{"$f":"IF(OR(A393=0,B393=\"X\"),0,IF(OR(S393=\"PRP\",S393=\"LPR\",U393=\"PRP\",U393=\"LPR\",W393=\"PRP\",W393=\"LPR\",Y393=\"PRP\",Y393=\"LPR\"),MAX(I393+AP393,MIN(IF(AE393:AN393<>0,AE393:AN393))),MIN(IF(AE393:AN393<>0,AE393:AN393))))","v":0},{"$f":"IF(A393=0,0,IF(AND(OR(S393=\"Mgr\",S393=0),OR(U393=\"Mgr\",U393=0),OR(W393=\"Mgr\",W393=0)),0,IF(LEFT($A393,2)=\"B*\",VLOOKUP($E393,'1. Checklist & Certification'!$D$26:$E$32,2),IF(LEFT($A393,2)=\"C*\",VLOOKUP($E393,'1. Checklist & Certification'!$F$26:$G$32,2),IF(LEFT($A393,2)=\"D*\",VLOOKUP($E393,'1. Checklist & Certification'!$H$26:$I$32,2),IF(LEFT($A393,2)=\"E*\",VLOOKUP($E393,'1. Checklist & Certification'!$J$26:$K$32,2),VLOOKUP($E393,'1. Checklist & Certification'!$A$26:$B$32,2)))))))","v":0},0,0,null,null,null,null,"","",0,0,0,null,{"$f":"IF(A393=\"\",\"\",'1. Checklist & Certification'!$K$1)","v":""},{"$f":"IF(A393=\"\",\"\",'1. Checklist & Certification'!$C$62)","v":""},{"$f":"IF(A393=\"\",\"\",'1. Checklist & Certification'!$C$6)","v":""},{"$f":"IF(A393=\"\",\"\",'1. Checklist & Certification'!$G$5)","v":""},{"$f":"IFERROR(IF(A393=\"\",\"\",\n_xlfn.LET(_xlpm.Contract,'1. Checklist & Certification'!$C$7,\n_xlpm.Yr,TEXT(MOD(_xlfn.TEXTBEFORE(_xlpm.Contract,\"-\"),100),\"00\"),\n_xlpm.Program,_xlfn.TEXTAFTER(_xlfn.TEXTBEFORE(_xlpm.Contract,\"-\",2),\"-\"),\n_xlpm.CleanProgram,_xlfn.XLOOKUP(_xlpm.Program,SpellCheck[Input],SpellCheck[Correction],_xlpm.Program),\n_xlpm.Number,TEXT(_xlfn.TEXTAFTER(_xlpm.Contract,\"-\",2),\"0000\"),\n_xlfn.CONCAT(_xlpm.Yr,\"-\",_xlpm.CleanProgram,\"-\",_xlpm.Number))\n),\"\")","v":""},{"$f":"IFERROR(IF(A393=\"\",\"\",\n_xlfn.LET(_xlpm.Contract,'1. Checklist & Certification'!$C$8,\n_xlpm.Yr,TEXT(MOD(_xlfn.TEXTBEFORE(_xlpm.Contract,\"-\"),100),\"00\"),\n_xlpm.Program,_xlfn.TEXTAFTER(_xlfn.TEXTBEFORE(_xlpm.Contract,\"-\",2),\"-\"),\n_xlpm.CleanProgram,_xlfn.XLOOKUP(_xlpm.Program,SpellCheck[Input],SpellCheck[Correction],_xlpm.Program),\n_xlpm.Number,TEXT(_xlfn.TEXTAFTER(_xlpm.Contract,\"-\",2),\"0000\"),\n_xlfn.CONCAT(_xlpm.Yr,\"-\",_xlpm.CleanProgram,\"-\",_xlpm.Number))\n),\"\")","v":""},{"$f":"IFERROR(IF(A393=\"\",\"\",\n_xlfn.LET(_xlpm.Contract,'1. Checklist & Certification'!$F$7,\n_xlpm.Yr,TEXT(MOD(_xlfn.TEXTBEFORE(_xlpm.Contract,\"-\"),100),\"00\"),\n_xlpm.Program,_xlfn.TEXTAFTER(_xlfn.TEXTBEFORE(_xlpm.Contract,\"-\",2),\"-\"),\n_xlpm.CleanProgram,_xlfn.XLOOKUP(_xlpm.Program,SpellCheck[Input],SpellCheck[Correction],_xlpm.Program),\n_xlpm.Number,TEXT(_xlfn.TEXTAFTER(_xlpm.Contract,\"-\",2),\"0000\"),\n_xlfn.CONCAT(_xlpm.Yr,\"-\",_xlpm.CleanProgram,\"-\",_xlpm.Number))\n),\"\")","v":""},{"$f":"IFERROR(IF(A393=\"\",\"\",\n_xlfn.LET(_xlpm.Contract,'1. Checklist & Certification'!$F$8,\n_xlpm.Yr,TEXT(MOD(_xlfn.TEXTBEFORE(_xlpm.Contract,\"-\"),100),\"00\"),\n_xlpm.Program,_xlfn.TEXTAFTER(_xlfn.TEXTBEFORE(_xlpm.Contract,\"-\",2),\"-\"),\n_xlpm.CleanProgram,_xlfn.XLOOKUP(_xlpm.Program,SpellCheck[Input],SpellCheck[Correction],_xlpm.Program),\n_xlpm.Number,TEXT(_xlfn.TEXTAFTER(_xlpm.Contract,\"-\",2),\"0000\"),\n_xlfn.CONCAT(_xlpm.Yr,\"-\",_xlpm.CleanProgram,\"-\",_xlpm.Number))\n),\"\")","v":""},{"$f":"IF(A393=\"\",\"\",'1. Checklist & Certification'!$B$9)","v":""},{"$f":"IF(A393=\"\",\"\",'1. Checklist & Certification'!$F$9)","v":""},{"$f":"IF(A393=\"\",\"\",'1. Checklist & Certification'!$C$10)","v":""},{"$f":"IF(A393=\"\",\"\",'1. Checklist & Certification'!$C$11)","v":""},{"$f":"IF(A393=\"\",\"\",'1. Checklist & Certification'!$C$12)","v":""},{"$f":"IF(A393=\"\",\"\",'1. Checklist & Certification'!$B$14)","v":""},{"$f":"IF(A393=\"\",\"\",'1. Checklist & Certification'!$E$14)","v":""},{"$f":"IF(B393=\"\",\"\",'1. Checklist & Certification'!$G$14)","v":""},{"$f":"IF(A393=\"\",\"\",'MHP Family Income & Rent Limits'!$B$3)","v":""},{"$f":"IF(A393=\"\",\"\",'MHP Family Income & Rent Limits'!$J$3)","v":""},{"$f":"IF(A393=\"\",\"\",'MHP Family Income & Rent Limits'!$E$4)","v":""},{"$f":"IF(A393=\"\",\"\",'MHP Family Income & Rent Limits'!$C$7)","v":""},{"$f":"IF(A393=\"\",\"\",'MHP Family Income & Rent Limits'!$F$8)","v":""},{"$f":"IF(A393=\"\",\"\",'1. Checklist & Certification'!$G$4)","v":""},{"$f":"IF(A393=\"\",\"\",'1. Checklist & Certification'!$K$39)","v":""},{"$f":"IF(A393=\"\",\"\",'1. Checklist & Certification'!$K$43)","v":""},{"$f":"IF(A393=\"\",\"\",'1. Checklist & Certification'!$K$45)","v":""},{"$f":"IF(A393=\"\",\"\",'1. Checklist & Certification'!$K$49)","v":""},{"$f":"IF(A393=\"\",\"\",'1. Checklist & Certification'!$K$62)","v":""},{"$f":"IF(A393=\"\",\"\",'1. Checklist & Certification'!$E$66)","v":""},{"$f":"IF(A393=\"\",\"\",'1. Checklist & Certification'!$E$67)","v":""},{"$f":"IF(A393=\"\",\"\",'1. Checklist & Certification'!$E$68)","v":""},{"$f":"IF(A393=\"\",\"\",'1. Checklist & Certification'!$G$66)","v":""},{"$f":"IF(A393=\"\",\"\",'1. Checklist & Certification'!$H$66)","v":""},{"$f":"IF(A393=\"\",\"\",'1. Checklist & Certification'!$I$66)","v":""},{"$f":"IF(A393=\"\",\"\",'1. Checklist & Certification'!$I$67)","v":""},{"$f":"IF(A393=\"\",\"\",'1. Checklist & Certification'!$I$68)","v":""},{"$f":"IF(A393=\"\",\"\",'1. Checklist & Certification'!$B$69)","v":""},{"$f":"IF(A393=\"\",\"\",'1. Checklist & Certification'!$C$69)","v":""},{"$f":"IF(A393=\"\",\"\",'1. Checklist & Certification'!$F$69)","v":""},{"$f":"IF(A393=\"\",\"\",'1. Checklist & Certification'!$G$69)","v":""},{"$f":"IF(A393=\"\",\"\",'1. Checklist & Certification'!$J$69)","v":""},{"$f":"IF(A393=\"\",\"\",'1. Checklist & Certification'!$K$69)","v":""},null,null,{"$f":"IF(AND(OR('1. Checklist & Certification'!$M$16=1,'1. Checklist & Certification'!$M$19=2),AO393>0,B393=\"\",I393>0,AQ393<I393,AV393<>\"Sec 8-Project\"),\"X\",IF(AND(OR('1. Checklist & Certification'!$M$20=4,'1. Checklist & Certification'!$M$21=5,'1. Checklist & Certification'!$M$22=7),AO393>0,B393=\"\",I393>0,K393<I393),\"X\",\"\"))","v":""},{"$f":"IF(A393=\"\",\"\",IF(SUMPRODUCT(-- (ISNUMBER(SEARCH({\"*AHSC*\",\"*FMTW*\",\"*FWHG*\",\"*GHI*\",\"*HHC*\",\"*HLCP*\",\"*HOME*\",\"*LPR*\",\"*MHP*\",\"*NHTF*\",\"*NSP*\",\"*PRP*\",\"*TOD*\",\"*VHHP*\"},'1. Checklist & Certification'!$L$7)))),\"MHP\",\"Legacy\"))","v":""},",,",null,null,null,{"$f":"IF('1. Checklist & Certification'!$M$20=4,\"Both\",IF(OR('1. Checklist & Certification'!$M$15>0,S393=\"CHRP-R\",U393=\"CHRP-R\",W393=\"CHRP-R\",Y393=\"CHRP-R\"),\"Under\",\"No\"))","v":"No"},"No","No",{"$f":"_xlfn.IFS(D393=\"\",\"\",D393=1,'MHP Family Income & Rent Limits'!$E$17,D393=2,'MHP Family Income & Rent Limits'!$F$17,D393=3,'MHP Family Income & Rent Limits'!$G$17,D393=4,'MHP Family Income & Rent Limits'!$H$17,D393=5,'MHP Family Income & Rent Limits'!$I$17,D393=6,'MHP Family Income & Rent Limits'!$J$17,D393=7,'MHP Family Income & Rent Limits'!$K$17,D393=8,'MHP Family Income & Rent Limits'!$L$17)","v":""},"",{"$f":"IF(OR(A393=0,B393=\"X\"),0,MIN(IF(AA393:AD393<>0,AA393:AD393)))","v":0},{"$f":"IF(OR(H393=\"\",I393=\"\"),0,IF(H393*0.3/12>I393,MIN(H393*0.3/12,I393*1.1)+AP393,I393*(1+(VLOOKUP('1. Checklist & Certification'!$F$9,'HLCP-E Rent Change'!$A$1:$D$59,4,FALSE)))+AP393))","v":0}]
[null,null,null,null,null,null,null,null,null,null,null,null,null,null,null,null,null,null,null,null,null,null,null,null,null,null,0,0,0,0,0,0,0,0,{"$f":"IF(OR(A394=0,B394=\"X\"),0,IF(OR(S394=\"FHDP\",S394=\"RHCP-B\",U394=\"FHDP\",U394=\"RHCP-B\",W394=\"FHDP\",W394=\"RHCP-B\",Y394=\"FHDP\",Y394=\"RHCP-B\"),TRUNC((MIN(I394,K394)*(1+'1. Checklist & Certification'!$K$43)+AP394)),0))","v":0},{"$f":"IF(OR(A394=0,B394=\"X\"),0,IF(OR(S394=\"CHRP-R\",S394=\"SERA\",S394=\"SUHRP\",U394=\"CHRP-R\",U394=\"SERA\",U394=\"SUHRP\",W394=\"CHRP-R\",W394=\"SERA\",W394=\"SUHRP\",Y394=\"CHRP-R\",Y394=\"SERA\",Y394=\"SUHRP\"),TRUNC((MIN(I394,K394)*(1+'1. Checklist & Certification'!$K$49))),0))","v":0},{"$f":"IF(OR(A394=0,B394=\"X\"),0,IF(OR(S394=\"CALDAP\",S394=\"DPRLP\",U394=\"CALDAP\",U394=\"DPRLP\",W394=\"CALDAP\",W394=\"DPRLP\",Y394=\"CALDAP\",Y394=\"DPRLP\"),TRUNC(((MIN(I394,K394))*(1+'1. Checklist & Certification'!$G$4))),0))","v":0},0,0,0,{"$f":"IF(OR(A394=0,B394=\"X\"),0,IF(OR(S394=\"PRP\",S394=\"LPR\",U394=\"PRP\",U394=\"LPR\",W394=\"PRP\",W394=\"LPR\",Y394=\"PRP\",Y394=\"LPR\"),MAX(I394+AP394,MIN(IF(AE394:AN394<>0,AE394:AN394))),MIN(IF(AE394:AN394<>0,AE394:AN394))))","v":0},{"$f":"IF(A394=0,0,IF(AND(OR(S394=\"Mgr\",S394=0),OR(U394=\"Mgr\",U394=0),OR(W394=\"Mgr\",W394=0)),0,IF(LEFT($A394,2)=\"B*\",VLOOKUP($E394,'1. Checklist & Certification'!$D$26:$E$32,2),IF(LEFT($A394,2)=\"C*\",VLOOKUP($E394,'1. Checklist & Certification'!$F$26:$G$32,2),IF(LEFT($A394,2)=\"D*\",VLOOKUP($E394,'1. Checklist & Certification'!$H$26:$I$32,2),IF(LEFT($A394,2)=\"E*\",VLOOKUP($E394,'1. Checklist & Certification'!$J$26:$K$32,2),VLOOKUP($E394,'1. Checklist & Certification'!$A$26:$B$32,2)))))))","v":0},0,0,null,null,null,null,"","",0,0,0,null,{"$f":"IF(A394=\"\",\"\",'1. Checklist & Certification'!$K$1)","v":""},{"$f":"IF(A394=\"\",\"\",'1. Checklist & Certification'!$C$62)","v":""},{"$f":"IF(A394=\"\",\"\",'1. Checklist & Certification'!$C$6)","v":""},{"$f":"IF(A394=\"\",\"\",'1. Checklist & Certification'!$G$5)","v":""},{"$f":"IFERROR(IF(A394=\"\",\"\",\n_xlfn.LET(_xlpm.Contract,'1. Checklist & Certification'!$C$7,\n_xlpm.Yr,TEXT(MOD(_xlfn.TEXTBEFORE(_xlpm.Contract,\"-\"),100),\"00\"),\n_xlpm.Program,_xlfn.TEXTAFTER(_xlfn.TEXTBEFORE(_xlpm.Contract,\"-\",2),\"-\"),\n_xlpm.CleanProgram,_xlfn.XLOOKUP(_xlpm.Program,SpellCheck[Input],SpellCheck[Correction],_xlpm.Program),\n_xlpm.Number,TEXT(_xlfn.TEXTAFTER(_xlpm.Contract,\"-\",2),\"0000\"),\n_xlfn.CONCAT(_xlpm.Yr,\"-\",_xlpm.CleanProgram,\"-\",_xlpm.Number))\n),\"\")","v":""},{"$f":"IFERROR(IF(A394=\"\",\"\",\n_xlfn.LET(_xlpm.Contract,'1. Checklist & Certification'!$C$8,\n_xlpm.Yr,TEXT(MOD(_xlfn.TEXTBEFORE(_xlpm.Contract,\"-\"),100),\"00\"),\n_xlpm.Program,_xlfn.TEXTAFTER(_xlfn.TEXTBEFORE(_xlpm.Contract,\"-\",2),\"-\"),\n_xlpm.CleanProgram,_xlfn.XLOOKUP(_xlpm.Program,SpellCheck[Input],SpellCheck[Correction],_xlpm.Program),\n_xlpm.Number,TEXT(_xlfn.TEXTAFTER(_xlpm.Contract,\"-\",2),\"0000\"),\n_xlfn.CONCAT(_xlpm.Yr,\"-\",_xlpm.CleanProgram,\"-\",_xlpm.Number))\n),\"\")","v":""},{"$f":"IFERROR(IF(A394=\"\",\"\",\n_xlfn.LET(_xlpm.Contract,'1. Checklist & Certification'!$F$7,\n_xlpm.Yr,TEXT(MOD(_xlfn.TEXTBEFORE(_xlpm.Contract,\"-\"),100),\"00\"),\n_xlpm.Program,_xlfn.TEXTAFTER(_xlfn.TEXTBEFORE(_xlpm.Contract,\"-\",2),\"-\"),\n_xlpm.CleanProgram,_xlfn.XLOOKUP(_xlpm.Program,SpellCheck[Input],SpellCheck[Correction],_xlpm.Program),\n_xlpm.Number,TEXT(_xlfn.TEXTAFTER(_xlpm.Contract,\"-\",2),\"0000\"),\n_xlfn.CONCAT(_xlpm.Yr,\"-\",_xlpm.CleanProgram,\"-\",_xlpm.Number))\n),\"\")","v":""},{"$f":"IFERROR(IF(A394=\"\",\"\",\n_xlfn.LET(_xlpm.Contract,'1. Checklist & Certification'!$F$8,\n_xlpm.Yr,TEXT(MOD(_xlfn.TEXTBEFORE(_xlpm.Contract,\"-\"),100),\"00\"),\n_xlpm.Program,_xlfn.TEXTAFTER(_xlfn.TEXTBEFORE(_xlpm.Contract,\"-\",2),\"-\"),\n_xlpm.CleanProgram,_xlfn.XLOOKUP(_xlpm.Program,SpellCheck[Input],SpellCheck[Correction],_xlpm.Program),\n_xlpm.Number,TEXT(_xlfn.TEXTAFTER(_xlpm.Contract,\"-\",2),\"0000\"),\n_xlfn.CONCAT(_xlpm.Yr,\"-\",_xlpm.CleanProgram,\"-\",_xlpm.Number))\n),\"\")","v":""},{"$f":"IF(A394=\"\",\"\",'1. Checklist & Certification'!$B$9)","v":""},{"$f":"IF(A394=\"\",\"\",'1. Checklist & Certification'!$F$9)","v":""},{"$f":"IF(A394=\"\",\"\",'1. Checklist & Certification'!$C$10)","v":""},{"$f":"IF(A394=\"\",\"\",'1. Checklist & Certification'!$C$11)","v":""},{"$f":"IF(A394=\"\",\"\",'1. Checklist & Certification'!$C$12)","v":""},{"$f":"IF(A394=\"\",\"\",'1. Checklist & Certification'!$B$14)","v":""},{"$f":"IF(A394=\"\",\"\",'1. Checklist & Certification'!$E$14)","v":""},{"$f":"IF(B394=\"\",\"\",'1. Checklist & Certification'!$G$14)","v":""},{"$f":"IF(A394=\"\",\"\",'MHP Family Income & Rent Limits'!$B$3)","v":""},{"$f":"IF(A394=\"\",\"\",'MHP Family Income & Rent Limits'!$J$3)","v":""},{"$f":"IF(A394=\"\",\"\",'MHP Family Income & Rent Limits'!$E$4)","v":""},{"$f":"IF(A394=\"\",\"\",'MHP Family Income & Rent Limits'!$C$7)","v":""},{"$f":"IF(A394=\"\",\"\",'MHP Family Income & Rent Limits'!$F$8)","v":""},{"$f":"IF(A394=\"\",\"\",'1. Checklist & Certification'!$G$4)","v":""},{"$f":"IF(A394=\"\",\"\",'1. Checklist & Certification'!$K$39)","v":""},{"$f":"IF(A394=\"\",\"\",'1. Checklist & Certification'!$K$43)","v":""},{"$f":"IF(A394=\"\",\"\",'1. Checklist & Certification'!$K$45)","v":""},{"$f":"IF(A394=\"\",\"\",'1. Checklist & Certification'!$K$49)","v":""},{"$f":"IF(A394=\"\",\"\",'1. Checklist & Certification'!$K$62)","v":""},{"$f":"IF(A394=\"\",\"\",'1. Checklist & Certification'!$E$66)","v":""},{"$f":"IF(A394=\"\",\"\",'1. Checklist & Certification'!$E$67)","v":""},{"$f":"IF(A394=\"\",\"\",'1. Checklist & Certification'!$E$68)","v":""},{"$f":"IF(A394=\"\",\"\",'1. Checklist & Certification'!$G$66)","v":""},{"$f":"IF(A394=\"\",\"\",'1. Checklist & Certification'!$H$66)","v":""},{"$f":"IF(A394=\"\",\"\",'1. Checklist & Certification'!$I$66)","v":""},{"$f":"IF(A394=\"\",\"\",'1. Checklist & Certification'!$I$67)","v":""},{"$f":"IF(A394=\"\",\"\",'1. Checklist & Certification'!$I$68)","v":""},{"$f":"IF(A394=\"\",\"\",'1. Checklist & Certification'!$B$69)","v":""},{"$f":"IF(A394=\"\",\"\",'1. Checklist & Certification'!$C$69)","v":""},{"$f":"IF(A394=\"\",\"\",'1. Checklist & Certification'!$F$69)","v":""},{"$f":"IF(A394=\"\",\"\",'1. Checklist & Certification'!$G$69)","v":""},{"$f":"IF(A394=\"\",\"\",'1. Checklist & Certification'!$J$69)","v":""},{"$f":"IF(A394=\"\",\"\",'1. Checklist & Certification'!$K$69)","v":""},null,null,{"$f":"IF(AND(OR('1. Checklist & Certification'!$M$16=1,'1. Checklist & Certification'!$M$19=2),AO394>0,B394=\"\",I394>0,AQ394<I394,AV394<>\"Sec 8-Project\"),\"X\",IF(AND(OR('1. Checklist & Certification'!$M$20=4,'1. Checklist & Certification'!$M$21=5,'1. Checklist & Certification'!$M$22=7),AO394>0,B394=\"\",I394>0,K394<I394),\"X\",\"\"))","v":""},{"$f":"IF(A394=\"\",\"\",IF(SUMPRODUCT(-- (ISNUMBER(SEARCH({\"*AHSC*\",\"*FMTW*\",\"*FWHG*\",\"*GHI*\",\"*HHC*\",\"*HLCP*\",\"*HOME*\",\"*LPR*\",\"*MHP*\",\"*NHTF*\",\"*NSP*\",\"*PRP*\",\"*TOD*\",\"*VHHP*\"},'1. Checklist & Certification'!$L$7)))),\"MHP\",\"Legacy\"))","v":""},",,",null,null,null,{"$f":"IF('1. Checklist & Certification'!$M$20=4,\"Both\",IF(OR('1. Checklist & Certification'!$M$15>0,S394=\"CHRP-R\",U394=\"CHRP-R\",W394=\"CHRP-R\",Y394=\"CHRP-R\"),\"Under\",\"No\"))","v":"No"},"No","No",{"$f":"_xlfn.IFS(D394=\"\",\"\",D394=1,'MHP Family Income & Rent Limits'!$E$17,D394=2,'MHP Family Income & Rent Limits'!$F$17,D394=3,'MHP Family Income & Rent Limits'!$G$17,D394=4,'MHP Family Income & Rent Limits'!$H$17,D394=5,'MHP Family Income & Rent Limits'!$I$17,D394=6,'MHP Family Income & Rent Limits'!$J$17,D394=7,'MHP Family Income & Rent Limits'!$K$17,D394=8,'MHP Family Income & Rent Limits'!$L$17)","v":""},"",{"$f":"IF(OR(A394=0,B394=\"X\"),0,MIN(IF(AA394:AD394<>0,AA394:AD394)))","v":0},{"$f":"IF(OR(H394=\"\",I394=\"\"),0,IF(H394*0.3/12>I394,MIN(H394*0.3/12,I394*1.1)+AP394,I394*(1+(VLOOKUP('1. Checklist & Certification'!$F$9,'HLCP-E Rent Change'!$A$1:$D$59,4,FALSE)))+AP394))","v":0}]
[null,null,null,null,null,null,null,null,null,null,null,null,null,null,null,null,null,null,null,null,null,null,null,null,null,null,0,0,0,0,0,0,0,0,{"$f":"IF(OR(A395=0,B395=\"X\"),0,IF(OR(S395=\"FHDP\",S395=\"RHCP-B\",U395=\"FHDP\",U395=\"RHCP-B\",W395=\"FHDP\",W395=\"RHCP-B\",Y395=\"FHDP\",Y395=\"RHCP-B\"),TRUNC((MIN(I395,K395)*(1+'1. Checklist & Certification'!$K$43)+AP395)),0))","v":0},{"$f":"IF(OR(A395=0,B395=\"X\"),0,IF(OR(S395=\"CHRP-R\",S395=\"SERA\",S395=\"SUHRP\",U395=\"CHRP-R\",U395=\"SERA\",U395=\"SUHRP\",W395=\"CHRP-R\",W395=\"SERA\",W395=\"SUHRP\",Y395=\"CHRP-R\",Y395=\"SERA\",Y395=\"SUHRP\"),TRUNC((MIN(I395,K395)*(1+'1. Checklist & Certification'!$K$49))),0))","v":0},{"$f":"IF(OR(A395=0,B395=\"X\"),0,IF(OR(S395=\"CALDAP\",S395=\"DPRLP\",U395=\"CALDAP\",U395=\"DPRLP\",W395=\"CALDAP\",W395=\"DPRLP\",Y395=\"CALDAP\",Y395=\"DPRLP\"),TRUNC(((MIN(I395,K395))*(1+'1. Checklist & Certification'!$G$4))),0))","v":0},0,0,0,{"$f":"IF(OR(A395=0,B395=\"X\"),0,IF(OR(S395=\"PRP\",S395=\"LPR\",U395=\"PRP\",U395=\"LPR\",W395=\"PRP\",W395=\"LPR\",Y395=\"PRP\",Y395=\"LPR\"),MAX(I395+AP395,MIN(IF(AE395:AN395<>0,AE395:AN395))),MIN(IF(AE395:AN395<>0,AE395:AN395))))","v":0},{"$f":"IF(A395=0,0,IF(AND(OR(S395=\"Mgr\",S395=0),OR(U395=\"Mgr\",U395=0),OR(W395=\"Mgr\",W395=0)),0,IF(LEFT($A395,2)=\"B*\",VLOOKUP($E395,'1. Checklist & Certification'!$D$26:$E$32,2),IF(LEFT($A395,2)=\"C*\",VLOOKUP($E395,'1. Checklist & Certification'!$F$26:$G$32,2),IF(LEFT($A395,2)=\"D*\",VLOOKUP($E395,'1. Checklist & Certification'!$H$26:$I$32,2),IF(LEFT($A395,2)=\"E*\",VLOOKUP($E395,'1. Checklist & Certification'!$J$26:$K$32,2),VLOOKUP($E395,'1. Checklist & Certification'!$A$26:$B$32,2)))))))","v":0},0,0,null,null,null,null,"","",0,0,0,null,{"$f":"IF(A395=\"\",\"\",'1. Checklist & Certification'!$K$1)","v":""},{"$f":"IF(A395=\"\",\"\",'1. Checklist & Certification'!$C$62)","v":""},{"$f":"IF(A395=\"\",\"\",'1. Checklist & Certification'!$C$6)","v":""},{"$f":"IF(A395=\"\",\"\",'1. Checklist & Certification'!$G$5)","v":""},{"$f":"IFERROR(IF(A395=\"\",\"\",\n_xlfn.LET(_xlpm.Contract,'1. Checklist & Certification'!$C$7,\n_xlpm.Yr,TEXT(MOD(_xlfn.TEXTBEFORE(_xlpm.Contract,\"-\"),100),\"00\"),\n_xlpm.Program,_xlfn.TEXTAFTER(_xlfn.TEXTBEFORE(_xlpm.Contract,\"-\",2),\"-\"),\n_xlpm.CleanProgram,_xlfn.XLOOKUP(_xlpm.Program,SpellCheck[Input],SpellCheck[Correction],_xlpm.Program),\n_xlpm.Number,TEXT(_xlfn.TEXTAFTER(_xlpm.Contract,\"-\",2),\"0000\"),\n_xlfn.CONCAT(_xlpm.Yr,\"-\",_xlpm.CleanProgram,\"-\",_xlpm.Number))\n),\"\")","v":""},{"$f":"IFERROR(IF(A395=\"\",\"\",\n_xlfn.LET(_xlpm.Contract,'1. Checklist & Certification'!$C$8,\n_xlpm.Yr,TEXT(MOD(_xlfn.TEXTBEFORE(_xlpm.Contract,\"-\"),100),\"00\"),\n_xlpm.Program,_xlfn.TEXTAFTER(_xlfn.TEXTBEFORE(_xlpm.Contract,\"-\",2),\"-\"),\n_xlpm.CleanProgram,_xlfn.XLOOKUP(_xlpm.Program,SpellCheck[Input],SpellCheck[Correction],_xlpm.Program),\n_xlpm.Number,TEXT(_xlfn.TEXTAFTER(_xlpm.Contract,\"-\",2),\"0000\"),\n_xlfn.CONCAT(_xlpm.Yr,\"-\",_xlpm.CleanProgram,\"-\",_xlpm.Number))\n),\"\")","v":""},{"$f":"IFERROR(IF(A395=\"\",\"\",\n_xlfn.LET(_xlpm.Contract,'1. Checklist & Certification'!$F$7,\n_xlpm.Yr,TEXT(MOD(_xlfn.TEXTBEFORE(_xlpm.Contract,\"-\"),100),\"00\"),\n_xlpm.Program,_xlfn.TEXTAFTER(_xlfn.TEXTBEFORE(_xlpm.Contract,\"-\",2),\"-\"),\n_xlpm.CleanProgram,_xlfn.XLOOKUP(_xlpm.Program,SpellCheck[Input],SpellCheck[Correction],_xlpm.Program),\n_xlpm.Number,TEXT(_xlfn.TEXTAFTER(_xlpm.Contract,\"-\",2),\"0000\"),\n_xlfn.CONCAT(_xlpm.Yr,\"-\",_xlpm.CleanProgram,\"-\",_xlpm.Number))\n),\"\")","v":""},{"$f":"IFERROR(IF(A395=\"\",\"\",\n_xlfn.LET(_xlpm.Contract,'1. Checklist & Certification'!$F$8,\n_xlpm.Yr,TEXT(MOD(_xlfn.TEXTBEFORE(_xlpm.Contract,\"-\"),100),\"00\"),\n_xlpm.Program,_xlfn.TEXTAFTER(_xlfn.TEXTBEFORE(_xlpm.Contract,\"-\",2),\"-\"),\n_xlpm.CleanProgram,_xlfn.XLOOKUP(_xlpm.Program,SpellCheck[Input],SpellCheck[Correction],_xlpm.Program),\n_xlpm.Number,TEXT(_xlfn.TEXTAFTER(_xlpm.Contract,\"-\",2),\"0000\"),\n_xlfn.CONCAT(_xlpm.Yr,\"-\",_xlpm.CleanProgram,\"-\",_xlpm.Number))\n),\"\")","v":""},{"$f":"IF(A395=\"\",\"\",'1. Checklist & Certification'!$B$9)","v":""},{"$f":"IF(A395=\"\",\"\",'1. Checklist & Certification'!$F$9)","v":""},{"$f":"IF(A395=\"\",\"\",'1. Checklist & Certification'!$C$10)","v":""},{"$f":"IF(A395=\"\",\"\",'1. Checklist & Certification'!$C$11)","v":""},{"$f":"IF(A395=\"\",\"\",'1. Checklist & Certification'!$C$12)","v":""},{"$f":"IF(A395=\"\",\"\",'1. Checklist & Certification'!$B$14)","v":""},{"$f":"IF(A395=\"\",\"\",'1. Checklist & Certification'!$E$14)","v":""},{"$f":"IF(B395=\"\",\"\",'1. Checklist & Certification'!$G$14)","v":""},{"$f":"IF(A395=\"\",\"\",'MHP Family Income & Rent Limits'!$B$3)","v":""},{"$f":"IF(A395=\"\",\"\",'MHP Family Income & Rent Limits'!$J$3)","v":""},{"$f":"IF(A395=\"\",\"\",'MHP Family Income & Rent Limits'!$E$4)","v":""},{"$f":"IF(A395=\"\",\"\",'MHP Family Income & Rent Limits'!$C$7)","v":""},{"$f":"IF(A395=\"\",\"\",'MHP Family Income & Rent Limits'!$F$8)","v":""},{"$f":"IF(A395=\"\",\"\",'1. Checklist & Certification'!$G$4)","v":""},{"$f":"IF(A395=\"\",\"\",'1. Checklist & Certification'!$K$39)","v":""},{"$f":"IF(A395=\"\",\"\",'1. Checklist & Certification'!$K$43)","v":""},{"$f":"IF(A395=\"\",\"\",'1. Checklist & Certification'!$K$45)","v":""},{"$f":"IF(A395=\"\",\"\",'1. Checklist & Certification'!$K$49)","v":""},{"$f":"IF(A395=\"\",\"\",'1. Checklist & Certification'!$K$62)","v":""},{"$f":"IF(A395=\"\",\"\",'1. Checklist & Certification'!$E$66)","v":""},{"$f":"IF(A395=\"\",\"\",'1. Checklist & Certification'!$E$67)","v":""},{"$f":"IF(A395=\"\",\"\",'1. Checklist & Certification'!$E$68)","v":""},{"$f":"IF(A395=\"\",\"\",'1. Checklist & Certification'!$G$66)","v":""},{"$f":"IF(A395=\"\",\"\",'1. Checklist & Certification'!$H$66)","v":""},{"$f":"IF(A395=\"\",\"\",'1. Checklist & Certification'!$I$66)","v":""},{"$f":"IF(A395=\"\",\"\",'1. Checklist & Certification'!$I$67)","v":""},{"$f":"IF(A395=\"\",\"\",'1. Checklist & Certification'!$I$68)","v":""},{"$f":"IF(A395=\"\",\"\",'1. Checklist & Certification'!$B$69)","v":""},{"$f":"IF(A395=\"\",\"\",'1. Checklist & Certification'!$C$69)","v":""},{"$f":"IF(A395=\"\",\"\",'1. Checklist & Certification'!$F$69)","v":""},{"$f":"IF(A395=\"\",\"\",'1. Checklist & Certification'!$G$69)","v":""},{"$f":"IF(A395=\"\",\"\",'1. Checklist & Certification'!$J$69)","v":""},{"$f":"IF(A395=\"\",\"\",'1. Checklist & Certification'!$K$69)","v":""},null,null,{"$f":"IF(AND(OR('1. Checklist & Certification'!$M$16=1,'1. Checklist & Certification'!$M$19=2),AO395>0,B395=\"\",I395>0,AQ395<I395,AV395<>\"Sec 8-Project\"),\"X\",IF(AND(OR('1. Checklist & Certification'!$M$20=4,'1. Checklist & Certification'!$M$21=5,'1. Checklist & Certification'!$M$22=7),AO395>0,B395=\"\",I395>0,K395<I395),\"X\",\"\"))","v":""},{"$f":"IF(A395=\"\",\"\",IF(SUMPRODUCT(-- (ISNUMBER(SEARCH({\"*AHSC*\",\"*FMTW*\",\"*FWHG*\",\"*GHI*\",\"*HHC*\",\"*HLCP*\",\"*HOME*\",\"*LPR*\",\"*MHP*\",\"*NHTF*\",\"*NSP*\",\"*PRP*\",\"*TOD*\",\"*VHHP*\"},'1. Checklist & Certification'!$L$7)))),\"MHP\",\"Legacy\"))","v":""},",,",null,null,null,{"$f":"IF('1. Checklist & Certification'!$M$20=4,\"Both\",IF(OR('1. Checklist & Certification'!$M$15>0,S395=\"CHRP-R\",U395=\"CHRP-R\",W395=\"CHRP-R\",Y395=\"CHRP-R\"),\"Under\",\"No\"))","v":"No"},"No","No",{"$f":"_xlfn.IFS(D395=\"\",\"\",D395=1,'MHP Family Income & Rent Limits'!$E$17,D395=2,'MHP Family Income & Rent Limits'!$F$17,D395=3,'MHP Family Income & Rent Limits'!$G$17,D395=4,'MHP Family Income & Rent Limits'!$H$17,D395=5,'MHP Family Income & Rent Limits'!$I$17,D395=6,'MHP Family Income & Rent Limits'!$J$17,D395=7,'MHP Family Income & Rent Limits'!$K$17,D395=8,'MHP Family Income & Rent Limits'!$L$17)","v":""},"",{"$f":"IF(OR(A395=0,B395=\"X\"),0,MIN(IF(AA395:AD395<>0,AA395:AD395)))","v":0},{"$f":"IF(OR(H395=\"\",I395=\"\"),0,IF(H395*0.3/12>I395,MIN(H395*0.3/12,I395*1.1)+AP395,I395*(1+(VLOOKUP('1. Checklist & Certification'!$F$9,'HLCP-E Rent Change'!$A$1:$D$59,4,FALSE)))+AP395))","v":0}]
[null,null,null,null,null,null,null,null,null,null,null,null,null,null,null,null,null,null,null,null,null,null,null,null,null,null,0,0,0,0,0,0,0,0,{"$f":"IF(OR(A396=0,B396=\"X\"),0,IF(OR(S396=\"FHDP\",S396=\"RHCP-B\",U396=\"FHDP\",U396=\"RHCP-B\",W396=\"FHDP\",W396=\"RHCP-B\",Y396=\"FHDP\",Y396=\"RHCP-B\"),TRUNC((MIN(I396,K396)*(1+'1. Checklist & Certification'!$K$43)+AP396)),0))","v":0},{"$f":"IF(OR(A396=0,B396=\"X\"),0,IF(OR(S396=\"CHRP-R\",S396=\"SERA\",S396=\"SUHRP\",U396=\"CHRP-R\",U396=\"SERA\",U396=\"SUHRP\",W396=\"CHRP-R\",W396=\"SERA\",W396=\"SUHRP\",Y396=\"CHRP-R\",Y396=\"SERA\",Y396=\"SUHRP\"),TRUNC((MIN(I396,K396)*(1+'1. Checklist & Certification'!$K$49))),0))","v":0},{"$f":"IF(OR(A396=0,B396=\"X\"),0,IF(OR(S396=\"CALDAP\",S396=\"DPRLP\",U396=\"CALDAP\",U396=\"DPRLP\",W396=\"CALDAP\",W396=\"DPRLP\",Y396=\"CALDAP\",Y396=\"DPRLP\"),TRUNC(((MIN(I396,K396))*(1+'1. Checklist & Certification'!$G$4))),0))","v":0},0,0,0,{"$f":"IF(OR(A396=0,B396=\"X\"),0,IF(OR(S396=\"PRP\",S396=\"LPR\",U396=\"PRP\",U396=\"LPR\",W396=\"PRP\",W396=\"LPR\",Y396=\"PRP\",Y396=\"LPR\"),MAX(I396+AP396,MIN(IF(AE396:AN396<>0,AE396:AN396))),MIN(IF(AE396:AN396<>0,AE396:AN396))))","v":0},{"$f":"IF(A396=0,0,IF(AND(OR(S396=\"Mgr\",S396=0),OR(U396=\"Mgr\",U396=0),OR(W396=\"Mgr\",W396=0)),0,IF(LEFT($A396,2)=\"B*\",VLOOKUP($E396,'1. Checklist & Certification'!$D$26:$E$32,2),IF(LEFT($A396,2)=\"C*\",VLOOKUP($E396,'1. Checklist & Certification'!$F$26:$G$32,2),IF(LEFT($A396,2)=\"D*\",VLOOKUP($E396,'1. Checklist & Certification'!$H$26:$I$32,2),IF(LEFT($A396,2)=\"E*\",VLOOKUP($E396,'1. Checklist & Certification'!$J$26:$K$32,2),VLOOKUP($E396,'1. Checklist & Certification'!$A$26:$B$32,2)))))))","v":0},0,0,null,null,null,null,"","",0,0,0,null,{"$f":"IF(A396=\"\",\"\",'1. Checklist & Certification'!$K$1)","v":""},{"$f":"IF(A396=\"\",\"\",'1. Checklist & Certification'!$C$62)","v":""},{"$f":"IF(A396=\"\",\"\",'1. Checklist & Certification'!$C$6)","v":""},{"$f":"IF(A396=\"\",\"\",'1. Checklist & Certification'!$G$5)","v":""},{"$f":"IFERROR(IF(A396=\"\",\"\",\n_xlfn.LET(_xlpm.Contract,'1. Checklist & Certification'!$C$7,\n_xlpm.Yr,TEXT(MOD(_xlfn.TEXTBEFORE(_xlpm.Contract,\"-\"),100),\"00\"),\n_xlpm.Program,_xlfn.TEXTAFTER(_xlfn.TEXTBEFORE(_xlpm.Contract,\"-\",2),\"-\"),\n_xlpm.CleanProgram,_xlfn.XLOOKUP(_xlpm.Program,SpellCheck[Input],SpellCheck[Correction],_xlpm.Program),\n_xlpm.Number,TEXT(_xlfn.TEXTAFTER(_xlpm.Contract,\"-\",2),\"0000\"),\n_xlfn.CONCAT(_xlpm.Yr,\"-\",_xlpm.CleanProgram,\"-\",_xlpm.Number))\n),\"\")","v":""},{"$f":"IFERROR(IF(A396=\"\",\"\",\n_xlfn.LET(_xlpm.Contract,'1. Checklist & Certification'!$C$8,\n_xlpm.Yr,TEXT(MOD(_xlfn.TEXTBEFORE(_xlpm.Contract,\"-\"),100),\"00\"),\n_xlpm.Program,_xlfn.TEXTAFTER(_xlfn.TEXTBEFORE(_xlpm.Contract,\"-\",2),\"-\"),\n_xlpm.CleanProgram,_xlfn.XLOOKUP(_xlpm.Program,SpellCheck[Input],SpellCheck[Correction],_xlpm.Program),\n_xlpm.Number,TEXT(_xlfn.TEXTAFTER(_xlpm.Contract,\"-\",2),\"0000\"),\n_xlfn.CONCAT(_xlpm.Yr,\"-\",_xlpm.CleanProgram,\"-\",_xlpm.Number))\n),\"\")","v":""},{"$f":"IFERROR(IF(A396=\"\",\"\",\n_xlfn.LET(_xlpm.Contract,'1. Checklist & Certification'!$F$7,\n_xlpm.Yr,TEXT(MOD(_xlfn.TEXTBEFORE(_xlpm.Contract,\"-\"),100),\"00\"),\n_xlpm.Program,_xlfn.TEXTAFTER(_xlfn.TEXTBEFORE(_xlpm.Contract,\"-\",2),\"-\"),\n_xlpm.CleanProgram,_xlfn.XLOOKUP(_xlpm.Program,SpellCheck[Input],SpellCheck[Correction],_xlpm.Program),\n_xlpm.Number,TEXT(_xlfn.TEXTAFTER(_xlpm.Contract,\"-\",2),\"0000\"),\n_xlfn.CONCAT(_xlpm.Yr,\"-\",_xlpm.CleanProgram,\"-\",_xlpm.Number))\n),\"\")","v":""},{"$f":"IFERROR(IF(A396=\"\",\"\",\n_xlfn.LET(_xlpm.Contract,'1. Checklist & Certification'!$F$8,\n_xlpm.Yr,TEXT(MOD(_xlfn.TEXTBEFORE(_xlpm.Contract,\"-\"),100),\"00\"),\n_xlpm.Program,_xlfn.TEXTAFTER(_xlfn.TEXTBEFORE(_xlpm.Contract,\"-\",2),\"-\"),\n_xlpm.CleanProgram,_xlfn.XLOOKUP(_xlpm.Program,SpellCheck[Input],SpellCheck[Correction],_xlpm.Program),\n_xlpm.Number,TEXT(_xlfn.TEXTAFTER(_xlpm.Contract,\"-\",2),\"0000\"),\n_xlfn.CONCAT(_xlpm.Yr,\"-\",_xlpm.CleanProgram,\"-\",_xlpm.Number))\n),\"\")","v":""},{"$f":"IF(A396=\"\",\"\",'1. Checklist & Certification'!$B$9)","v":""},{"$f":"IF(A396=\"\",\"\",'1. Checklist & Certification'!$F$9)","v":""},{"$f":"IF(A396=\"\",\"\",'1. Checklist & Certification'!$C$10)","v":""},{"$f":"IF(A396=\"\",\"\",'1. Checklist & Certification'!$C$11)","v":""},{"$f":"IF(A396=\"\",\"\",'1. Checklist & Certification'!$C$12)","v":""},{"$f":"IF(A396=\"\",\"\",'1. Checklist & Certification'!$B$14)","v":""},{"$f":"IF(A396=\"\",\"\",'1. Checklist & Certification'!$E$14)","v":""},{"$f":"IF(B396=\"\",\"\",'1. Checklist & Certification'!$G$14)","v":""},{"$f":"IF(A396=\"\",\"\",'MHP Family Income & Rent Limits'!$B$3)","v":""},{"$f":"IF(A396=\"\",\"\",'MHP Family Income & Rent Limits'!$J$3)","v":""},{"$f":"IF(A396=\"\",\"\",'MHP Family Income & Rent Limits'!$E$4)","v":""},{"$f":"IF(A396=\"\",\"\",'MHP Family Income & Rent Limits'!$C$7)","v":""},{"$f":"IF(A396=\"\",\"\",'MHP Family Income & Rent Limits'!$F$8)","v":""},{"$f":"IF(A396=\"\",\"\",'1. Checklist & Certification'!$G$4)","v":""},{"$f":"IF(A396=\"\",\"\",'1. Checklist & Certification'!$K$39)","v":""},{"$f":"IF(A396=\"\",\"\",'1. Checklist & Certification'!$K$43)","v":""},{"$f":"IF(A396=\"\",\"\",'1. Checklist & Certification'!$K$45)","v":""},{"$f":"IF(A396=\"\",\"\",'1. Checklist & Certification'!$K$49)","v":""},{"$f":"IF(A396=\"\",\"\",'1. Checklist & Certification'!$K$62)","v":""},{"$f":"IF(A396=\"\",\"\",'1. Checklist & Certification'!$E$66)","v":""},{"$f":"IF(A396=\"\",\"\",'1. Checklist & Certification'!$E$67)","v":""},{"$f":"IF(A396=\"\",\"\",'1. Checklist & Certification'!$E$68)","v":""},{"$f":"IF(A396=\"\",\"\",'1. Checklist & Certification'!$G$66)","v":""},{"$f":"IF(A396=\"\",\"\",'1. Checklist & Certification'!$H$66)","v":""},{"$f":"IF(A396=\"\",\"\",'1. Checklist & Certification'!$I$66)","v":""},{"$f":"IF(A396=\"\",\"\",'1. Checklist & Certification'!$I$67)","v":""},{"$f":"IF(A396=\"\",\"\",'1. Checklist & Certification'!$I$68)","v":""},{"$f":"IF(A396=\"\",\"\",'1. Checklist & Certification'!$B$69)","v":""},{"$f":"IF(A396=\"\",\"\",'1. Checklist & Certification'!$C$69)","v":""},{"$f":"IF(A396=\"\",\"\",'1. Checklist & Certification'!$F$69)","v":""},{"$f":"IF(A396=\"\",\"\",'1. Checklist & Certification'!$G$69)","v":""},{"$f":"IF(A396=\"\",\"\",'1. Checklist & Certification'!$J$69)","v":""},{"$f":"IF(A396=\"\",\"\",'1. Checklist & Certification'!$K$69)","v":""},null,null,{"$f":"IF(AND(OR('1. Checklist & Certification'!$M$16=1,'1. Checklist & Certification'!$M$19=2),AO396>0,B396=\"\",I396>0,AQ396<I396,AV396<>\"Sec 8-Project\"),\"X\",IF(AND(OR('1. Checklist & Certification'!$M$20=4,'1. Checklist & Certification'!$M$21=5,'1. Checklist & Certification'!$M$22=7),AO396>0,B396=\"\",I396>0,K396<I396),\"X\",\"\"))","v":""},{"$f":"IF(A396=\"\",\"\",IF(SUMPRODUCT(-- (ISNUMBER(SEARCH({\"*AHSC*\",\"*FMTW*\",\"*FWHG*\",\"*GHI*\",\"*HHC*\",\"*HLCP*\",\"*HOME*\",\"*LPR*\",\"*MHP*\",\"*NHTF*\",\"*NSP*\",\"*PRP*\",\"*TOD*\",\"*VHHP*\"},'1. Checklist & Certification'!$L$7)))),\"MHP\",\"Legacy\"))","v":""},",,",null,null,null,{"$f":"IF('1. Checklist & Certification'!$M$20=4,\"Both\",IF(OR('1. Checklist & Certification'!$M$15>0,S396=\"CHRP-R\",U396=\"CHRP-R\",W396=\"CHRP-R\",Y396=\"CHRP-R\"),\"Under\",\"No\"))","v":"No"},"No","No",{"$f":"_xlfn.IFS(D396=\"\",\"\",D396=1,'MHP Family Income & Rent Limits'!$E$17,D396=2,'MHP Family Income & Rent Limits'!$F$17,D396=3,'MHP Family Income & Rent Limits'!$G$17,D396=4,'MHP Family Income & Rent Limits'!$H$17,D396=5,'MHP Family Income & Rent Limits'!$I$17,D396=6,'MHP Family Income & Rent Limits'!$J$17,D396=7,'MHP Family Income & Rent Limits'!$K$17,D396=8,'MHP Family Income & Rent Limits'!$L$17)","v":""},"",{"$f":"IF(OR(A396=0,B396=\"X\"),0,MIN(IF(AA396:AD396<>0,AA396:AD396)))","v":0},{"$f":"IF(OR(H396=\"\",I396=\"\"),0,IF(H396*0.3/12>I396,MIN(H396*0.3/12,I396*1.1)+AP396,I396*(1+(VLOOKUP('1. Checklist & Certification'!$F$9,'HLCP-E Rent Change'!$A$1:$D$59,4,FALSE)))+AP396))","v":0}]
[null,null,null,null,null,null,null,null,null,null,null,null,null,null,null,null,null,null,null,null,null,null,null,null,null,null,0,0,0,0,0,0,0,0,{"$f":"IF(OR(A397=0,B397=\"X\"),0,IF(OR(S397=\"FHDP\",S397=\"RHCP-B\",U397=\"FHDP\",U397=\"RHCP-B\",W397=\"FHDP\",W397=\"RHCP-B\",Y397=\"FHDP\",Y397=\"RHCP-B\"),TRUNC((MIN(I397,K397)*(1+'1. Checklist & Certification'!$K$43)+AP397)),0))","v":0},{"$f":"IF(OR(A397=0,B397=\"X\"),0,IF(OR(S397=\"CHRP-R\",S397=\"SERA\",S397=\"SUHRP\",U397=\"CHRP-R\",U397=\"SERA\",U397=\"SUHRP\",W397=\"CHRP-R\",W397=\"SERA\",W397=\"SUHRP\",Y397=\"CHRP-R\",Y397=\"SERA\",Y397=\"SUHRP\"),TRUNC((MIN(I397,K397)*(1+'1. Checklist & Certification'!$K$49))),0))","v":0},{"$f":"IF(OR(A397=0,B397=\"X\"),0,IF(OR(S397=\"CALDAP\",S397=\"DPRLP\",U397=\"CALDAP\",U397=\"DPRLP\",W397=\"CALDAP\",W397=\"DPRLP\",Y397=\"CALDAP\",Y397=\"DPRLP\"),TRUNC(((MIN(I397,K397))*(1+'1. Checklist & Certification'!$G$4))),0))","v":0},0,0,0,{"$f":"IF(OR(A397=0,B397=\"X\"),0,IF(OR(S397=\"PRP\",S397=\"LPR\",U397=\"PRP\",U397=\"LPR\",W397=\"PRP\",W397=\"LPR\",Y397=\"PRP\",Y397=\"LPR\"),MAX(I397+AP397,MIN(IF(AE397:AN397<>0,AE397:AN397))),MIN(IF(AE397:AN397<>0,AE397:AN397))))","v":0},{"$f":"IF(A397=0,0,IF(AND(OR(S397=\"Mgr\",S397=0),OR(U397=\"Mgr\",U397=0),OR(W397=\"Mgr\",W397=0)),0,IF(LEFT($A397,2)=\"B*\",VLOOKUP($E397,'1. Checklist & Certification'!$D$26:$E$32,2),IF(LEFT($A397,2)=\"C*\",VLOOKUP($E397,'1. Checklist & Certification'!$F$26:$G$32,2),IF(LEFT($A397,2)=\"D*\",VLOOKUP($E397,'1. Checklist & Certification'!$H$26:$I$32,2),IF(LEFT($A397,2)=\"E*\",VLOOKUP($E397,'1. Checklist & Certification'!$J$26:$K$32,2),VLOOKUP($E397,'1. Checklist & Certification'!$A$26:$B$32,2)))))))","v":0},0,0,null,null,null,null,"","",0,0,0,null,{"$f":"IF(A397=\"\",\"\",'1. Checklist & Certification'!$K$1)","v":""},{"$f":"IF(A397=\"\",\"\",'1. Checklist & Certification'!$C$62)","v":""},{"$f":"IF(A397=\"\",\"\",'1. Checklist & Certification'!$C$6)","v":""},{"$f":"IF(A397=\"\",\"\",'1. Checklist & Certification'!$G$5)","v":""},{"$f":"IFERROR(IF(A397=\"\",\"\",\n_xlfn.LET(_xlpm.Contract,'1. Checklist & Certification'!$C$7,\n_xlpm.Yr,TEXT(MOD(_xlfn.TEXTBEFORE(_xlpm.Contract,\"-\"),100),\"00\"),\n_xlpm.Program,_xlfn.TEXTAFTER(_xlfn.TEXTBEFORE(_xlpm.Contract,\"-\",2),\"-\"),\n_xlpm.CleanProgram,_xlfn.XLOOKUP(_xlpm.Program,SpellCheck[Input],SpellCheck[Correction],_xlpm.Program),\n_xlpm.Number,TEXT(_xlfn.TEXTAFTER(_xlpm.Contract,\"-\",2),\"0000\"),\n_xlfn.CONCAT(_xlpm.Yr,\"-\",_xlpm.CleanProgram,\"-\",_xlpm.Number))\n),\"\")","v":""},{"$f":"IFERROR(IF(A397=\"\",\"\",\n_xlfn.LET(_xlpm.Contract,'1. Checklist & Certification'!$C$8,\n_xlpm.Yr,TEXT(MOD(_xlfn.TEXTBEFORE(_xlpm.Contract,\"-\"),100),\"00\"),\n_xlpm.Program,_xlfn.TEXTAFTER(_xlfn.TEXTBEFORE(_xlpm.Contract,\"-\",2),\"-\"),\n_xlpm.CleanProgram,_xlfn.XLOOKUP(_xlpm.Program,SpellCheck[Input],SpellCheck[Correction],_xlpm.Program),\n_xlpm.Number,TEXT(_xlfn.TEXTAFTER(_xlpm.Contract,\"-\",2),\"0000\"),\n_xlfn.CONCAT(_xlpm.Yr,\"-\",_xlpm.CleanProgram,\"-\",_xlpm.Number))\n),\"\")","v":""},{"$f":"IFERROR(IF(A397=\"\",\"\",\n_xlfn.LET(_xlpm.Contract,'1. Checklist & Certification'!$F$7,\n_xlpm.Yr,TEXT(MOD(_xlfn.TEXTBEFORE(_xlpm.Contract,\"-\"),100),\"00\"),\n_xlpm.Program,_xlfn.TEXTAFTER(_xlfn.TEXTBEFORE(_xlpm.Contract,\"-\",2),\"-\"),\n_xlpm.CleanProgram,_xlfn.XLOOKUP(_xlpm.Program,SpellCheck[Input],SpellCheck[Correction],_xlpm.Program),\n_xlpm.Number,TEXT(_xlfn.TEXTAFTER(_xlpm.Contract,\"-\",2),\"0000\"),\n_xlfn.CONCAT(_xlpm.Yr,\"-\",_xlpm.CleanProgram,\"-\",_xlpm.Number))\n),\"\")","v":""},{"$f":"IFERROR(IF(A397=\"\",\"\",\n_xlfn.LET(_xlpm.Contract,'1. Checklist & Certification'!$F$8,\n_xlpm.Yr,TEXT(MOD(_xlfn.TEXTBEFORE(_xlpm.Contract,\"-\"),100),\"00\"),\n_xlpm.Program,_xlfn.TEXTAFTER(_xlfn.TEXTBEFORE(_xlpm.Contract,\"-\",2),\"-\"),\n_xlpm.CleanProgram,_xlfn.XLOOKUP(_xlpm.Program,SpellCheck[Input],SpellCheck[Correction],_xlpm.Program),\n_xlpm.Number,TEXT(_xlfn.TEXTAFTER(_xlpm.Contract,\"-\",2),\"0000\"),\n_xlfn.CONCAT(_xlpm.Yr,\"-\",_xlpm.CleanProgram,\"-\",_xlpm.Number))\n),\"\")","v":""},{"$f":"IF(A397=\"\",\"\",'1. Checklist & Certification'!$B$9)","v":""},{"$f":"IF(A397=\"\",\"\",'1. Checklist & Certification'!$F$9)","v":""},{"$f":"IF(A397=\"\",\"\",'1. Checklist & Certification'!$C$10)","v":""},{"$f":"IF(A397=\"\",\"\",'1. Checklist & Certification'!$C$11)","v":""},{"$f":"IF(A397=\"\",\"\",'1. Checklist & Certification'!$C$12)","v":""},{"$f":"IF(A397=\"\",\"\",'1. Checklist & Certification'!$B$14)","v":""},{"$f":"IF(A397=\"\",\"\",'1. Checklist & Certification'!$E$14)","v":""},{"$f":"IF(B397=\"\",\"\",'1. Checklist & Certification'!$G$14)","v":""},{"$f":"IF(A397=\"\",\"\",'MHP Family Income & Rent Limits'!$B$3)","v":""},{"$f":"IF(A397=\"\",\"\",'MHP Family Income & Rent Limits'!$J$3)","v":""},{"$f":"IF(A397=\"\",\"\",'MHP Family Income & Rent Limits'!$E$4)","v":""},{"$f":"IF(A397=\"\",\"\",'MHP Family Income & Rent Limits'!$C$7)","v":""},{"$f":"IF(A397=\"\",\"\",'MHP Family Income & Rent Limits'!$F$8)","v":""},{"$f":"IF(A397=\"\",\"\",'1. Checklist & Certification'!$G$4)","v":""},{"$f":"IF(A397=\"\",\"\",'1. Checklist & Certification'!$K$39)","v":""},{"$f":"IF(A397=\"\",\"\",'1. Checklist & Certification'!$K$43)","v":""},{"$f":"IF(A397=\"\",\"\",'1. Checklist & Certification'!$K$45)","v":""},{"$f":"IF(A397=\"\",\"\",'1. Checklist & Certification'!$K$49)","v":""},{"$f":"IF(A397=\"\",\"\",'1. Checklist & Certification'!$K$62)","v":""},{"$f":"IF(A397=\"\",\"\",'1. Checklist & Certification'!$E$66)","v":""},{"$f":"IF(A397=\"\",\"\",'1. Checklist & Certification'!$E$67)","v":""},{"$f":"IF(A397=\"\",\"\",'1. Checklist & Certification'!$E$68)","v":""},{"$f":"IF(A397=\"\",\"\",'1. Checklist & Certification'!$G$66)","v":""},{"$f":"IF(A397=\"\",\"\",'1. Checklist & Certification'!$H$66)","v":""},{"$f":"IF(A397=\"\",\"\",'1. Checklist & Certification'!$I$66)","v":""},{"$f":"IF(A397=\"\",\"\",'1. Checklist & Certification'!$I$67)","v":""},{"$f":"IF(A397=\"\",\"\",'1. Checklist & Certification'!$I$68)","v":""},{"$f":"IF(A397=\"\",\"\",'1. Checklist & Certification'!$B$69)","v":""},{"$f":"IF(A397=\"\",\"\",'1. Checklist & Certification'!$C$69)","v":""},{"$f":"IF(A397=\"\",\"\",'1. Checklist & Certification'!$F$69)","v":""},{"$f":"IF(A397=\"\",\"\",'1. Checklist & Certification'!$G$69)","v":""},{"$f":"IF(A397=\"\",\"\",'1. Checklist & Certification'!$J$69)","v":""},{"$f":"IF(A397=\"\",\"\",'1. Checklist & Certification'!$K$69)","v":""},null,null,{"$f":"IF(AND(OR('1. Checklist & Certification'!$M$16=1,'1. Checklist & Certification'!$M$19=2),AO397>0,B397=\"\",I397>0,AQ397<I397,AV397<>\"Sec 8-Project\"),\"X\",IF(AND(OR('1. Checklist & Certification'!$M$20=4,'1. Checklist & Certification'!$M$21=5,'1. Checklist & Certification'!$M$22=7),AO397>0,B397=\"\",I397>0,K397<I397),\"X\",\"\"))","v":""},{"$f":"IF(A397=\"\",\"\",IF(SUMPRODUCT(-- (ISNUMBER(SEARCH({\"*AHSC*\",\"*FMTW*\",\"*FWHG*\",\"*GHI*\",\"*HHC*\",\"*HLCP*\",\"*HOME*\",\"*LPR*\",\"*MHP*\",\"*NHTF*\",\"*NSP*\",\"*PRP*\",\"*TOD*\",\"*VHHP*\"},'1. Checklist & Certification'!$L$7)))),\"MHP\",\"Legacy\"))","v":""},",,",null,null,null,{"$f":"IF('1. Checklist & Certification'!$M$20=4,\"Both\",IF(OR('1. Checklist & Certification'!$M$15>0,S397=\"CHRP-R\",U397=\"CHRP-R\",W397=\"CHRP-R\",Y397=\"CHRP-R\"),\"Under\",\"No\"))","v":"No"},"No","No",{"$f":"_xlfn.IFS(D397=\"\",\"\",D397=1,'MHP Family Income & Rent Limits'!$E$17,D397=2,'MHP Family Income & Rent Limits'!$F$17,D397=3,'MHP Family Income & Rent Limits'!$G$17,D397=4,'MHP Family Income & Rent Limits'!$H$17,D397=5,'MHP Family Income & Rent Limits'!$I$17,D397=6,'MHP Family Income & Rent Limits'!$J$17,D397=7,'MHP Family Income & Rent Limits'!$K$17,D397=8,'MHP Family Income & Rent Limits'!$L$17)","v":""},"",{"$f":"IF(OR(A397=0,B397=\"X\"),0,MIN(IF(AA397:AD397<>0,AA397:AD397)))","v":0},{"$f":"IF(OR(H397=\"\",I397=\"\"),0,IF(H397*0.3/12>I397,MIN(H397*0.3/12,I397*1.1)+AP397,I397*(1+(VLOOKUP('1. Checklist & Certification'!$F$9,'HLCP-E Rent Change'!$A$1:$D$59,4,FALSE)))+AP397))","v":0}]
[null,null,null,null,null,null,null,null,null,null,null,null,null,null,null,null,null,null,null,null,null,null,null,null,null,null,0,0,0,0,0,0,0,0,{"$f":"IF(OR(A398=0,B398=\"X\"),0,IF(OR(S398=\"FHDP\",S398=\"RHCP-B\",U398=\"FHDP\",U398=\"RHCP-B\",W398=\"FHDP\",W398=\"RHCP-B\",Y398=\"FHDP\",Y398=\"RHCP-B\"),TRUNC((MIN(I398,K398)*(1+'1. Checklist & Certification'!$K$43)+AP398)),0))","v":0},{"$f":"IF(OR(A398=0,B398=\"X\"),0,IF(OR(S398=\"CHRP-R\",S398=\"SERA\",S398=\"SUHRP\",U398=\"CHRP-R\",U398=\"SERA\",U398=\"SUHRP\",W398=\"CHRP-R\",W398=\"SERA\",W398=\"SUHRP\",Y398=\"CHRP-R\",Y398=\"SERA\",Y398=\"SUHRP\"),TRUNC((MIN(I398,K398)*(1+'1. Checklist & Certification'!$K$49))),0))","v":0},{"$f":"IF(OR(A398=0,B398=\"X\"),0,IF(OR(S398=\"CALDAP\",S398=\"DPRLP\",U398=\"CALDAP\",U398=\"DPRLP\",W398=\"CALDAP\",W398=\"DPRLP\",Y398=\"CALDAP\",Y398=\"DPRLP\"),TRUNC(((MIN(I398,K398))*(1+'1. Checklist & Certification'!$G$4))),0))","v":0},0,0,0,{"$f":"IF(OR(A398=0,B398=\"X\"),0,IF(OR(S398=\"PRP\",S398=\"LPR\",U398=\"PRP\",U398=\"LPR\",W398=\"PRP\",W398=\"LPR\",Y398=\"PRP\",Y398=\"LPR\"),MAX(I398+AP398,MIN(IF(AE398:AN398<>0,AE398:AN398))),MIN(IF(AE398:AN398<>0,AE398:AN398))))","v":0},{"$f":"IF(A398=0,0,IF(AND(OR(S398=\"Mgr\",S398=0),OR(U398=\"Mgr\",U398=0),OR(W398=\"Mgr\",W398=0)),0,IF(LEFT($A398,2)=\"B*\",VLOOKUP($E398,'1. Checklist & Certification'!$D$26:$E$32,2),IF(LEFT($A398,2)=\"C*\",VLOOKUP($E398,'1. Checklist & Certification'!$F$26:$G$32,2),IF(LEFT($A398,2)=\"D*\",VLOOKUP($E398,'1. Checklist & Certification'!$H$26:$I$32,2),IF(LEFT($A398,2)=\"E*\",VLOOKUP($E398,'1. Checklist & Certification'!$J$26:$K$32,2),VLOOKUP($E398,'1. Checklist & Certification'!$A$26:$B$32,2)))))))","v":0},0,0,null,null,null,null,"","",0,0,0,null,{"$f":"IF(A398=\"\",\"\",'1. Checklist & Certification'!$K$1)","v":""},{"$f":"IF(A398=\"\",\"\",'1. Checklist & Certification'!$C$62)","v":""},{"$f":"IF(A398=\"\",\"\",'1. Checklist & Certification'!$C$6)","v":""},{"$f":"IF(A398=\"\",\"\",'1. Checklist & Certification'!$G$5)","v":""},{"$f":"IFERROR(IF(A398=\"\",\"\",\n_xlfn.LET(_xlpm.Contract,'1. Checklist & Certification'!$C$7,\n_xlpm.Yr,TEXT(MOD(_xlfn.TEXTBEFORE(_xlpm.Contract,\"-\"),100),\"00\"),\n_xlpm.Program,_xlfn.TEXTAFTER(_xlfn.TEXTBEFORE(_xlpm.Contract,\"-\",2),\"-\"),\n_xlpm.CleanProgram,_xlfn.XLOOKUP(_xlpm.Program,SpellCheck[Input],SpellCheck[Correction],_xlpm.Program),\n_xlpm.Number,TEXT(_xlfn.TEXTAFTER(_xlpm.Contract,\"-\",2),\"0000\"),\n_xlfn.CONCAT(_xlpm.Yr,\"-\",_xlpm.CleanProgram,\"-\",_xlpm.Number))\n),\"\")","v":""},{"$f":"IFERROR(IF(A398=\"\",\"\",\n_xlfn.LET(_xlpm.Contract,'1. Checklist & Certification'!$C$8,\n_xlpm.Yr,TEXT(MOD(_xlfn.TEXTBEFORE(_xlpm.Contract,\"-\"),100),\"00\"),\n_xlpm.Program,_xlfn.TEXTAFTER(_xlfn.TEXTBEFORE(_xlpm.Contract,\"-\",2),\"-\"),\n_xlpm.CleanProgram,_xlfn.XLOOKUP(_xlpm.Program,SpellCheck[Input],SpellCheck[Correction],_xlpm.Program),\n_xlpm.Number,TEXT(_xlfn.TEXTAFTER(_xlpm.Contract,\"-\",2),\"0000\"),\n_xlfn.CONCAT(_xlpm.Yr,\"-\",_xlpm.CleanProgram,\"-\",_xlpm.Number))\n),\"\")","v":""},{"$f":"IFERROR(IF(A398=\"\",\"\",\n_xlfn.LET(_xlpm.Contract,'1. Checklist & Certification'!$F$7,\n_xlpm.Yr,TEXT(MOD(_xlfn.TEXTBEFORE(_xlpm.Contract,\"-\"),100),\"00\"),\n_xlpm.Program,_xlfn.TEXTAFTER(_xlfn.TEXTBEFORE(_xlpm.Contract,\"-\",2),\"-\"),\n_xlpm.CleanProgram,_xlfn.XLOOKUP(_xlpm.Program,SpellCheck[Input],SpellCheck[Correction],_xlpm.Program),\n_xlpm.Number,TEXT(_xlfn.TEXTAFTER(_xlpm.Contract,\"-\",2),\"0000\"),\n_xlfn.CONCAT(_xlpm.Yr,\"-\",_xlpm.CleanProgram,\"-\",_xlpm.Number))\n),\"\")","v":""},{"$f":"IFERROR(IF(A398=\"\",\"\",\n_xlfn.LET(_xlpm.Contract,'1. Checklist & Certification'!$F$8,\n_xlpm.Yr,TEXT(MOD(_xlfn.TEXTBEFORE(_xlpm.Contract,\"-\"),100),\"00\"),\n_xlpm.Program,_xlfn.TEXTAFTER(_xlfn.TEXTBEFORE(_xlpm.Contract,\"-\",2),\"-\"),\n_xlpm.CleanProgram,_xlfn.XLOOKUP(_xlpm.Program,SpellCheck[Input],SpellCheck[Correction],_xlpm.Program),\n_xlpm.Number,TEXT(_xlfn.TEXTAFTER(_xlpm.Contract,\"-\",2),\"0000\"),\n_xlfn.CONCAT(_xlpm.Yr,\"-\",_xlpm.CleanProgram,\"-\",_xlpm.Number))\n),\"\")","v":""},{"$f":"IF(A398=\"\",\"\",'1. Checklist & Certification'!$B$9)","v":""},{"$f":"IF(A398=\"\",\"\",'1. Checklist & Certification'!$F$9)","v":""},{"$f":"IF(A398=\"\",\"\",'1. Checklist & Certification'!$C$10)","v":""},{"$f":"IF(A398=\"\",\"\",'1. Checklist & Certification'!$C$11)","v":""},{"$f":"IF(A398=\"\",\"\",'1. Checklist & Certification'!$C$12)","v":""},{"$f":"IF(A398=\"\",\"\",'1. Checklist & Certification'!$B$14)","v":""},{"$f":"IF(A398=\"\",\"\",'1. Checklist & Certification'!$E$14)","v":""},{"$f":"IF(B398=\"\",\"\",'1. Checklist & Certification'!$G$14)","v":""},{"$f":"IF(A398=\"\",\"\",'MHP Family Income & Rent Limits'!$B$3)","v":""},{"$f":"IF(A398=\"\",\"\",'MHP Family Income & Rent Limits'!$J$3)","v":""},{"$f":"IF(A398=\"\",\"\",'MHP Family Income & Rent Limits'!$E$4)","v":""},{"$f":"IF(A398=\"\",\"\",'MHP Family Income & Rent Limits'!$C$7)","v":""},{"$f":"IF(A398=\"\",\"\",'MHP Family Income & Rent Limits'!$F$8)","v":""},{"$f":"IF(A398=\"\",\"\",'1. Checklist & Certification'!$G$4)","v":""},{"$f":"IF(A398=\"\",\"\",'1. Checklist & Certification'!$K$39)","v":""},{"$f":"IF(A398=\"\",\"\",'1. Checklist & Certification'!$K$43)","v":""},{"$f":"IF(A398=\"\",\"\",'1. Checklist & Certification'!$K$45)","v":""},{"$f":"IF(A398=\"\",\"\",'1. Checklist & Certification'!$K$49)","v":""},{"$f":"IF(A398=\"\",\"\",'1. Checklist & Certification'!$K$62)","v":""},{"$f":"IF(A398=\"\",\"\",'1. Checklist & Certification'!$E$66)","v":""},{"$f":"IF(A398=\"\",\"\",'1. Checklist & Certification'!$E$67)","v":""},{"$f":"IF(A398=\"\",\"\",'1. Checklist & Certification'!$E$68)","v":""},{"$f":"IF(A398=\"\",\"\",'1. Checklist & Certification'!$G$66)","v":""},{"$f":"IF(A398=\"\",\"\",'1. Checklist & Certification'!$H$66)","v":""},{"$f":"IF(A398=\"\",\"\",'1. Checklist & Certification'!$I$66)","v":""},{"$f":"IF(A398=\"\",\"\",'1. Checklist & Certification'!$I$67)","v":""},{"$f":"IF(A398=\"\",\"\",'1. Checklist & Certification'!$I$68)","v":""},{"$f":"IF(A398=\"\",\"\",'1. Checklist & Certification'!$B$69)","v":""},{"$f":"IF(A398=\"\",\"\",'1. Checklist & Certification'!$C$69)","v":""},{"$f":"IF(A398=\"\",\"\",'1. Checklist & Certification'!$F$69)","v":""},{"$f":"IF(A398=\"\",\"\",'1. Checklist & Certification'!$G$69)","v":""},{"$f":"IF(A398=\"\",\"\",'1. Checklist & Certification'!$J$69)","v":""},{"$f":"IF(A398=\"\",\"\",'1. Checklist & Certification'!$K$69)","v":""},null,null,{"$f":"IF(AND(OR('1. Checklist & Certification'!$M$16=1,'1. Checklist & Certification'!$M$19=2),AO398>0,B398=\"\",I398>0,AQ398<I398,AV398<>\"Sec 8-Project\"),\"X\",IF(AND(OR('1. Checklist & Certification'!$M$20=4,'1. Checklist & Certification'!$M$21=5,'1. Checklist & Certification'!$M$22=7),AO398>0,B398=\"\",I398>0,K398<I398),\"X\",\"\"))","v":""},{"$f":"IF(A398=\"\",\"\",IF(SUMPRODUCT(-- (ISNUMBER(SEARCH({\"*AHSC*\",\"*FMTW*\",\"*FWHG*\",\"*GHI*\",\"*HHC*\",\"*HLCP*\",\"*HOME*\",\"*LPR*\",\"*MHP*\",\"*NHTF*\",\"*NSP*\",\"*PRP*\",\"*TOD*\",\"*VHHP*\"},'1. Checklist & Certification'!$L$7)))),\"MHP\",\"Legacy\"))","v":""},",,",null,null,null,{"$f":"IF('1. Checklist & Certification'!$M$20=4,\"Both\",IF(OR('1. Checklist & Certification'!$M$15>0,S398=\"CHRP-R\",U398=\"CHRP-R\",W398=\"CHRP-R\",Y398=\"CHRP-R\"),\"Under\",\"No\"))","v":"No"},"No","No",{"$f":"_xlfn.IFS(D398=\"\",\"\",D398=1,'MHP Family Income & Rent Limits'!$E$17,D398=2,'MHP Family Income & Rent Limits'!$F$17,D398=3,'MHP Family Income & Rent Limits'!$G$17,D398=4,'MHP Family Income & Rent Limits'!$H$17,D398=5,'MHP Family Income & Rent Limits'!$I$17,D398=6,'MHP Family Income & Rent Limits'!$J$17,D398=7,'MHP Family Income & Rent Limits'!$K$17,D398=8,'MHP Family Income & Rent Limits'!$L$17)","v":""},"",{"$f":"IF(OR(A398=0,B398=\"X\"),0,MIN(IF(AA398:AD398<>0,AA398:AD398)))","v":0},{"$f":"IF(OR(H398=\"\",I398=\"\"),0,IF(H398*0.3/12>I398,MIN(H398*0.3/12,I398*1.1)+AP398,I398*(1+(VLOOKUP('1. Checklist & Certification'!$F$9,'HLCP-E Rent Change'!$A$1:$D$59,4,FALSE)))+AP398))","v":0}]
[null,null,null,null,null,null,null,null,null,null,null,null,null,null,null,null,null,null,null,null,null,null,null,null,null,null,0,0,0,0,0,0,0,0,{"$f":"IF(OR(A399=0,B399=\"X\"),0,IF(OR(S399=\"FHDP\",S399=\"RHCP-B\",U399=\"FHDP\",U399=\"RHCP-B\",W399=\"FHDP\",W399=\"RHCP-B\",Y399=\"FHDP\",Y399=\"RHCP-B\"),TRUNC((MIN(I399,K399)*(1+'1. Checklist & Certification'!$K$43)+AP399)),0))","v":0},{"$f":"IF(OR(A399=0,B399=\"X\"),0,IF(OR(S399=\"CHRP-R\",S399=\"SERA\",S399=\"SUHRP\",U399=\"CHRP-R\",U399=\"SERA\",U399=\"SUHRP\",W399=\"CHRP-R\",W399=\"SERA\",W399=\"SUHRP\",Y399=\"CHRP-R\",Y399=\"SERA\",Y399=\"SUHRP\"),TRUNC((MIN(I399,K399)*(1+'1. Checklist & Certification'!$K$49))),0))","v":0},{"$f":"IF(OR(A399=0,B399=\"X\"),0,IF(OR(S399=\"CALDAP\",S399=\"DPRLP\",U399=\"CALDAP\",U399=\"DPRLP\",W399=\"CALDAP\",W399=\"DPRLP\",Y399=\"CALDAP\",Y399=\"DPRLP\"),TRUNC(((MIN(I399,K399))*(1+'1. Checklist & Certification'!$G$4))),0))","v":0},0,0,0,{"$f":"IF(OR(A399=0,B399=\"X\"),0,IF(OR(S399=\"PRP\",S399=\"LPR\",U399=\"PRP\",U399=\"LPR\",W399=\"PRP\",W399=\"LPR\",Y399=\"PRP\",Y399=\"LPR\"),MAX(I399+AP399,MIN(IF(AE399:AN399<>0,AE399:AN399))),MIN(IF(AE399:AN399<>0,AE399:AN399))))","v":0},{"$f":"IF(A399=0,0,IF(AND(OR(S399=\"Mgr\",S399=0),OR(U399=\"Mgr\",U399=0),OR(W399=\"Mgr\",W399=0)),0,IF(LEFT($A399,2)=\"B*\",VLOOKUP($E399,'1. Checklist & Certification'!$D$26:$E$32,2),IF(LEFT($A399,2)=\"C*\",VLOOKUP($E399,'1. Checklist & Certification'!$F$26:$G$32,2),IF(LEFT($A399,2)=\"D*\",VLOOKUP($E399,'1. Checklist & Certification'!$H$26:$I$32,2),IF(LEFT($A399,2)=\"E*\",VLOOKUP($E399,'1. Checklist & Certification'!$J$26:$K$32,2),VLOOKUP($E399,'1. Checklist & Certification'!$A$26:$B$32,2)))))))","v":0},0,0,null,null,null,null,"","",0,0,0,null,{"$f":"IF(A399=\"\",\"\",'1. Checklist & Certification'!$K$1)","v":""},{"$f":"IF(A399=\"\",\"\",'1. Checklist & Certification'!$C$62)","v":""},{"$f":"IF(A399=\"\",\"\",'1. Checklist & Certification'!$C$6)","v":""},{"$f":"IF(A399=\"\",\"\",'1. Checklist & Certification'!$G$5)","v":""},{"$f":"IFERROR(IF(A399=\"\",\"\",\n_xlfn.LET(_xlpm.Contract,'1. Checklist & Certification'!$C$7,\n_xlpm.Yr,TEXT(MOD(_xlfn.TEXTBEFORE(_xlpm.Contract,\"-\"),100),\"00\"),\n_xlpm.Program,_xlfn.TEXTAFTER(_xlfn.TEXTBEFORE(_xlpm.Contract,\"-\",2),\"-\"),\n_xlpm.CleanProgram,_xlfn.XLOOKUP(_xlpm.Program,SpellCheck[Input],SpellCheck[Correction],_xlpm.Program),\n_xlpm.Number,TEXT(_xlfn.TEXTAFTER(_xlpm.Contract,\"-\",2),\"0000\"),\n_xlfn.CONCAT(_xlpm.Yr,\"-\",_xlpm.CleanProgram,\"-\",_xlpm.Number))\n),\"\")","v":""},{"$f":"IFERROR(IF(A399=\"\",\"\",\n_xlfn.LET(_xlpm.Contract,'1. Checklist & Certification'!$C$8,\n_xlpm.Yr,TEXT(MOD(_xlfn.TEXTBEFORE(_xlpm.Contract,\"-\"),100),\"00\"),\n_xlpm.Program,_xlfn.TEXTAFTER(_xlfn.TEXTBEFORE(_xlpm.Contract,\"-\",2),\"-\"),\n_xlpm.CleanProgram,_xlfn.XLOOKUP(_xlpm.Program,SpellCheck[Input],SpellCheck[Correction],_xlpm.Program),\n_xlpm.Number,TEXT(_xlfn.TEXTAFTER(_xlpm.Contract,\"-\",2),\"0000\"),\n_xlfn.CONCAT(_xlpm.Yr,\"-\",_xlpm.CleanProgram,\"-\",_xlpm.Number))\n),\"\")","v":""},{"$f":"IFERROR(IF(A399=\"\",\"\",\n_xlfn.LET(_xlpm.Contract,'1. Checklist & Certification'!$F$7,\n_xlpm.Yr,TEXT(MOD(_xlfn.TEXTBEFORE(_xlpm.Contract,\"-\"),100),\"00\"),\n_xlpm.Program,_xlfn.TEXTAFTER(_xlfn.TEXTBEFORE(_xlpm.Contract,\"-\",2),\"-\"),\n_xlpm.CleanProgram,_xlfn.XLOOKUP(_xlpm.Program,SpellCheck[Input],SpellCheck[Correction],_xlpm.Program),\n_xlpm.Number,TEXT(_xlfn.TEXTAFTER(_xlpm.Contract,\"-\",2),\"0000\"),\n_xlfn.CONCAT(_xlpm.Yr,\"-\",_xlpm.CleanProgram,\"-\",_xlpm.Number))\n),\"\")","v":""},{"$f":"IFERROR(IF(A399=\"\",\"\",\n_xlfn.LET(_xlpm.Contract,'1. Checklist & Certification'!$F$8,\n_xlpm.Yr,TEXT(MOD(_xlfn.TEXTBEFORE(_xlpm.Contract,\"-\"),100),\"00\"),\n_xlpm.Program,_xlfn.TEXTAFTER(_xlfn.TEXTBEFORE(_xlpm.Contract,\"-\",2),\"-\"),\n_xlpm.CleanProgram,_xlfn.XLOOKUP(_xlpm.Program,SpellCheck[Input],SpellCheck[Correction],_xlpm.Program),\n_xlpm.Number,TEXT(_xlfn.TEXTAFTER(_xlpm.Contract,\"-\",2),\"0000\"),\n_xlfn.CONCAT(_xlpm.Yr,\"-\",_xlpm.CleanProgram,\"-\",_xlpm.Number))\n),\"\")","v":""},{"$f":"IF(A399=\"\",\"\",'1. Checklist & Certification'!$B$9)","v":""},{"$f":"IF(A399=\"\",\"\",'1. Checklist & Certification'!$F$9)","v":""},{"$f":"IF(A399=\"\",\"\",'1. Checklist & Certification'!$C$10)","v":""},{"$f":"IF(A399=\"\",\"\",'1. Checklist & Certification'!$C$11)","v":""},{"$f":"IF(A399=\"\",\"\",'1. Checklist & Certification'!$C$12)","v":""},{"$f":"IF(A399=\"\",\"\",'1. Checklist & Certification'!$B$14)","v":""},{"$f":"IF(A399=\"\",\"\",'1. Checklist & Certification'!$E$14)","v":""},{"$f":"IF(B399=\"\",\"\",'1. Checklist & Certification'!$G$14)","v":""},{"$f":"IF(A399=\"\",\"\",'MHP Family Income & Rent Limits'!$B$3)","v":""},{"$f":"IF(A399=\"\",\"\",'MHP Family Income & Rent Limits'!$J$3)","v":""},{"$f":"IF(A399=\"\",\"\",'MHP Family Income & Rent Limits'!$E$4)","v":""},{"$f":"IF(A399=\"\",\"\",'MHP Family Income & Rent Limits'!$C$7)","v":""},{"$f":"IF(A399=\"\",\"\",'MHP Family Income & Rent Limits'!$F$8)","v":""},{"$f":"IF(A399=\"\",\"\",'1. Checklist & Certification'!$G$4)","v":""},{"$f":"IF(A399=\"\",\"\",'1. Checklist & Certification'!$K$39)","v":""},{"$f":"IF(A399=\"\",\"\",'1. Checklist & Certification'!$K$43)","v":""},{"$f":"IF(A399=\"\",\"\",'1. Checklist & Certification'!$K$45)","v":""},{"$f":"IF(A399=\"\",\"\",'1. Checklist & Certification'!$K$49)","v":""},{"$f":"IF(A399=\"\",\"\",'1. Checklist & Certification'!$K$62)","v":""},{"$f":"IF(A399=\"\",\"\",'1. Checklist & Certification'!$E$66)","v":""},{"$f":"IF(A399=\"\",\"\",'1. Checklist & Certification'!$E$67)","v":""},{"$f":"IF(A399=\"\",\"\",'1. Checklist & Certification'!$E$68)","v":""},{"$f":"IF(A399=\"\",\"\",'1. Checklist & Certification'!$G$66)","v":""},{"$f":"IF(A399=\"\",\"\",'1. Checklist & Certification'!$H$66)","v":""},{"$f":"IF(A399=\"\",\"\",'1. Checklist & Certification'!$I$66)","v":""},{"$f":"IF(A399=\"\",\"\",'1. Checklist & Certification'!$I$67)","v":""},{"$f":"IF(A399=\"\",\"\",'1. Checklist & Certification'!$I$68)","v":""},{"$f":"IF(A399=\"\",\"\",'1. Checklist & Certification'!$B$69)","v":""},{"$f":"IF(A399=\"\",\"\",'1. Checklist & Certification'!$C$69)","v":""},{"$f":"IF(A399=\"\",\"\",'1. Checklist & Certification'!$F$69)","v":""},{"$f":"IF(A399=\"\",\"\",'1. Checklist & Certification'!$G$69)","v":""},{"$f":"IF(A399=\"\",\"\",'1. Checklist & Certification'!$J$69)","v":""},{"$f":"IF(A399=\"\",\"\",'1. Checklist & Certification'!$K$69)","v":""},null,null,{"$f":"IF(AND(OR('1. Checklist & Certification'!$M$16=1,'1. Checklist & Certification'!$M$19=2),AO399>0,B399=\"\",I399>0,AQ399<I399,AV399<>\"Sec 8-Project\"),\"X\",IF(AND(OR('1. Checklist & Certification'!$M$20=4,'1. Checklist & Certification'!$M$21=5,'1. Checklist & Certification'!$M$22=7),AO399>0,B399=\"\",I399>0,K399<I399),\"X\",\"\"))","v":""},{"$f":"IF(A399=\"\",\"\",IF(SUMPRODUCT(-- (ISNUMBER(SEARCH({\"*AHSC*\",\"*FMTW*\",\"*FWHG*\",\"*GHI*\",\"*HHC*\",\"*HLCP*\",\"*HOME*\",\"*LPR*\",\"*MHP*\",\"*NHTF*\",\"*NSP*\",\"*PRP*\",\"*TOD*\",\"*VHHP*\"},'1. Checklist & Certification'!$L$7)))),\"MHP\",\"Legacy\"))","v":""},",,",null,null,null,{"$f":"IF('1. Checklist & Certification'!$M$20=4,\"Both\",IF(OR('1. Checklist & Certification'!$M$15>0,S399=\"CHRP-R\",U399=\"CHRP-R\",W399=\"CHRP-R\",Y399=\"CHRP-R\"),\"Under\",\"No\"))","v":"No"},"No","No",{"$f":"_xlfn.IFS(D399=\"\",\"\",D399=1,'MHP Family Income & Rent Limits'!$E$17,D399=2,'MHP Family Income & Rent Limits'!$F$17,D399=3,'MHP Family Income & Rent Limits'!$G$17,D399=4,'MHP Family Income & Rent Limits'!$H$17,D399=5,'MHP Family Income & Rent Limits'!$I$17,D399=6,'MHP Family Income & Rent Limits'!$J$17,D399=7,'MHP Family Income & Rent Limits'!$K$17,D399=8,'MHP Family Income & Rent Limits'!$L$17)","v":""},"",{"$f":"IF(OR(A399=0,B399=\"X\"),0,MIN(IF(AA399:AD399<>0,AA399:AD399)))","v":0},{"$f":"IF(OR(H399=\"\",I399=\"\"),0,IF(H399*0.3/12>I399,MIN(H399*0.3/12,I399*1.1)+AP399,I399*(1+(VLOOKUP('1. Checklist & Certification'!$F$9,'HLCP-E Rent Change'!$A$1:$D$59,4,FALSE)))+AP399))","v":0}]
[{"$f":"COUNTA(A7:A399)","v":0},{"$f":"COUNTA(B7:B399)","v":0},null,{"$f":"SUM(D7:D399)","v":0},{"$f":"COUNTA(E7:E399)","v":0},null,null,"Mo. Totals",{"$f":"SUM(I7:I399)","v":0},null,null,{"$f":"COUNTA(L7:L399)","v":0},0,{"$f":"COUNTA(N7:N399)","v":0},0,0,0,null,0,0,0,0,0,0,{"$f":"COUNTA(Y7:Y399)","v":0},0,null,null,null,null,null,null,null,null,null,null,null,null,null,null,null,{"$f":"SUM(AP7:AP399)","v":0},null,0,0,{"$f":"SUM(AT7:AT399)","v":0},{"$f":"SUM(AU7:AU399)","v":0},null,0,null,null,{"$f":"((SUMIF('2. Assisted & Restricted Units'!AV7:AV399,\"Other-Project\",'2. Assisted & Restricted Units'!AZ7:AZ399)+(SUMIF('2. Assisted & Restricted Units'!AV7:AV399,\"VASH-Project\",'2. Assisted & Restricted Units'!AZ7:AZ399)+(SUMIF('2. Assisted & Restricted Units'!AV7:AV399,\"Sec 8-Project\",'2. Assisted & Restricted Units'!AZ7:AZ399)+(SUMIF('2. Assisted & Restricted Units'!AV7:AV399,\"Sec 811-Project\",'2. Assisted & Restricted Units'!AZ7:AZ399)+(SUMIF('2. Assisted & Restricted Units'!AV7:AV399,\"Sec 202-Project\",'2. Assisted & Restricted Units'!AZ7:AZ399)))))))","v":0},"Total Project Based Subsidy Revenue"]
["Totals",null,null,null,null,null,null,null,null,null,"Annual Totals",null,null,null,null,null,null,null,null,null,null,{"$f":"V400","v":0},null,{"$f":"X400","v":0},null,{"$f":"Z400","v":0},null,null,null,null,null,null,null,null,null,null,null,null,null,null,null,null,null,null,null,null,null,null,null,{"$f":"SUM(AX7:AX399)","v":0},{"$f":"SUM(AY7:AY399)","v":0},{"$f":"SUM(AZ7:AZ399)","v":0},"Total Tenant Assistance Payment Revenue"]

{"sheet":"MTSP Limits","index":5,"n_rows":1219,"n_cols":19,"rows_kept":1219,"cut":false,"hidden":true,"merged":[]}
[null,"County","Year","1 Person","2 Person","3 Person","4 Person","5 Person","6 Person","7 Person","8 Person","HERA 1 Person","HERA 2 Person","HERA 3 Person","HERA 4 Person","HERA 5 Person","HERA 6 Person","HERA 7 Person","HERA 8 Person"]
["Alameda3/8/06 - 3/19/07","Alameda","3/8/06 - 3/19/07",29350,33500,37700,41900,45250,48600,51950,55300]
["Alpine3/8/06 - 3/19/07","Alpine","3/8/06 - 3/19/07",22600,25850,29050,32300,34900,37450,40050,42650]
["Amador3/8/06 - 3/19/07","Amador","3/8/06 - 3/19/07",21950,25100,28200,31350,33850,36350,38850,41400]
["Butte3/8/06 - 3/19/07","Butte","3/8/06 - 3/19/07",17800,20300,22850,25400,27450,29450,31500,33550]
["Calaveras3/8/06 - 3/19/07","Calaveras","3/8/06 - 3/19/07",20350,23250,26150,29050,31350,33700,36000,38350]
["Colusa3/8/06 - 3/19/07","Colusa","3/8/06 - 3/19/07",17800,20300,22850,25400,27450,29450,31500,33550]
["Contra Costa3/8/06 - 3/19/07","Contra Costa","3/8/06 - 3/19/07",29350,33500,37700,41900,45250,48600,51950,55300]
["Del Norte3/8/06 - 3/19/07","Del Norte","3/8/06 - 3/19/07",17800,20300,22850,25400,27450,29450,31500,33550]
["El Dorado3/8/06 - 3/19/07","El Dorado","3/8/06 - 3/19/07",22900,26150,29450,32700,35300,37950,40550,43150]
["Fresno3/8/06 - 3/19/07","Fresno","3/8/06 - 3/19/07",17800,20300,22850,25400,27450,29450,31500,33550]
["Glenn3/8/06 - 3/19/07","Glenn","3/8/06 - 3/19/07",17800,20300,22850,25400,27450,29450,31500,33550]
["Humboldt3/8/06 - 3/19/07","Humboldt","3/8/06 - 3/19/07",17800,20300,22850,25400,27450,29450,31500,33550]
["Imperial3/8/06 - 3/19/07","Imperial","3/8/06 - 3/19/07",17800,20300,22850,25400,27450,29450,31500,33550]
["Inyo3/8/06 - 3/19/07","Inyo","3/8/06 - 3/19/07",19100,21850,24550,27300,29500,31650,33850,36050]
["Kern3/8/06 - 3/19/07","Kern","3/8/06 - 3/19/07",17800,20300,22850,25400,27450,29450,31500,33550]
["Kings3/8/06 - 3/19/07","Kings","3/8/06 - 3/19/07",17800,20300,22850,25400,27450,29450,31500,33550]
["Lake3/8/06 - 3/19/07","Lake","3/8/06 - 3/19/07",17800,20300,22850,25400,27450,29450,31500,33550]
["Lassen3/8/06 - 3/19/07","Lassen","3/8/06 - 3/19/07",18400,21000,23650,26250,28350,30450,32550,34650]
["Los Angeles3/8/06 - 3/19/07","Los Angeles","3/8/06 - 3/19/07",24250,27700,31200,34650,37400,40200,42950,45750]
["Madera3/8/06 - 3/19/07","Madera","3/8/06 - 3/19/07",17800,20300,22850,25400,27450,29450,31500,33550]
["Marin3/8/06 - 3/19/07","Marin","3/8/06 - 3/19/07",39600,45250,50900,56550,61050,65600,70100,74650]
["Mariposa3/8/06 - 3/19/07","Mariposa","3/8/06 - 3/19/07",17950,20500,23100,25650,27700,29750,31800,33850]
["Mendocino3/8/06 - 3/19/07","Mendocino","3/8/06 - 3/19/07",17900,20450,23000,25550,27600,29650,31700,33750]
["Merced3/8/06 - 3/19/07","Merced","3/8/06 - 3/19/07",17800,20300,22850,25400,27450,29450,31500,33550]
["Modoc3/8/06 - 3/19/07","Modoc","3/8/06 - 3/19/07",17800,20300,22850,25400,27450,29450,31500,33550]
["Mono3/8/06 - 3/19/07","Mono","3/8/06 - 3/19/07",21750,24850,27950,31050,33550,36000,38500,41000]
["Monterey3/8/06 - 3/19/07","Monterey","3/8/06 - 3/19/07",21800,24900,28050,31150,33650,36150,38650,41100]
["Napa3/8/06 - 3/19/07","Napa","3/8/06 - 3/19/07",26250,30000,33750,37500,40500,43500,46500,49500]
["Nevada3/8/06 - 3/19/07","Nevada","3/8/06 - 3/19/07",22450,25700,28900,32100,34650,37250,39800,42350]
["Orange3/8/06 - 3/19/07","Orange","3/8/06 - 3/19/07",28400,32450,36500,40550,43800,47050,50300,53550]
["Placer3/8/06 - 3/19/07","Placer","3/8/06 - 3/19/07",22900,26150,29450,32700,35300,37950,40550,43150]
["Plumas3/8/06 - 3/19/07","Plumas","3/8/06 - 3/19/07",19550,22350,25150,27950,30200,32400,34650,36900]
["Riverside3/8/06 - 3/19/07","Riverside","3/8/06 - 3/19/07",20150,23000,25900,28750,31050,33350,35650,37950]
["Sacramento3/8/06 - 3/19/07","Sacramento","3/8/06 - 3/19/07",22900,26150,29450,32700,35300,37950,40550,43150]
["San Benito3/8/06 - 3/19/07","San Benito","3/8/06 - 3/19/07",25950,29650,33350,37050,40000,43000,45950,48900]
["San Bernardino3/8/06 - 3/19/07","San Bernardino","3/8/06 - 3/19/07",20150,23000,25900,28750,31050,33350,35650,37950]
["San Diego3/8/06 - 3/19/07","San Diego","3/8/06 - 3/19/07",24150,27600,31050,34500,37250,40000,42800,45550]
["San Francisco3/8/06 - 3/19/07","San Francisco","3/8/06 - 3/19/07",39600,45250,50900,56550,61050,65600,70100,74650]
["San Joaquin3/8/06 - 3/19/07","San Joaquin","3/8/06 - 3/19/07",20000,22850,25700,28550,30850,33100,35400,37700]
["San Luis Obispo3/8/06 - 3/19/07","San Luis Obispo","3/8/06 - 3/19/07",22350,25500,28700,31900,34450,37000,39550,42100]
["San Mateo3/8/06 - 3/19/07","San Mateo","3/8/06 - 3/19/07",39600,45250,50900,56550,61050,65600,70100,74650]
["Santa Barbara3/8/06 - 3/19/07","Santa Barbara","3/8/06 - 3/19/07",23050,26300,29600,32900,35550,38150,40800,43450]
["Santa Clara3/8/06 - 3/19/07","Santa Clara","3/8/06 - 3/19/07",37150,42450,47750,53050,57300,61550,65800,70050]
["Santa Cruz3/8/06 - 3/19/07","Santa Cruz","3/8/06 - 3/19/07",27500,31400,35350,39250,42400,45550,48650,51800]
["Shasta3/8/06 - 3/19/07","Shasta","3/8/06 - 3/19/07",17800,20300,22850,25400,27450,29450,31500,33550]
["Sierra3/8/06 - 3/19/07","Sierra","3/8/06 - 3/19/07",17800,20300,22850,25400,27450,29450,31500,33550]
["Siskiyou3/8/06 - 3/19/07","Siskiyou","3/8/06 - 3/19/07",17800,20300,22850,25400,27450,29450,31500,33550]
["Solano3/8/06 - 3/19/07","Solano","3/8/06 - 3/19/07",25900,29600,33300,37000,39950,42900,45900,48850]
["Sonoma3/8/06 - 3/19/07","Sonoma","3/8/06 - 3/19/07",26300,30050,33800,37550,40550,43550,46550,49550]
["Stanislaus3/8/06 - 3/19/07","Stanislaus","3/8/06 - 3/19/07",19050,21750,24500,27200,29400,31550,33750,35900]
["Sutter3/8/06 - 3/19/07","Sutter","3/8/06 - 3/19/07",17800,20300,22850,25400,27450,29450,31500,33550]
["Tehama3/8/06 - 3/19/07","Tehama","3/8/06 - 3/19/07",17800,20300,22850,25400,27450,29450,31500,33550]
["Trinity3/8/06 - 3/19/07","Trinity","3/8/06 - 3/19/07",17800,20300,22850,25400,27450,29450,31500,33550]
["Tulare3/8/06 - 3/19/07","Tulare","3/8/06 - 3/19/07",17800,20300,22850,25400,27450,29450,31500,33550]
["Tuolumne3/8/06 - 3/19/07","Tuolumne","3/8/06 - 3/19/07",18950,21700,24400,27100,29250,31450,33600,35750]
["Ventura3/8/06 - 3/19/07","Ventura","3/8/06 - 3/19/07",28200,32250,36250,40300,43500,46750,49950,53200]
["Yolo3/8/06 - 3/19/07","Yolo","3/8/06 - 3/19/07",21650,24750,27850,30950,33450,35900,38400,40850]
["Yuba3/8/06 - 3/19/07","Yuba","3/8/06 - 3/19/07",17800,20300,22850,25400,27450,29450,31500,33550]
["Alameda3/20/07 - 2/12/08","Alameda","3/20/07 - 2/12/08",29350,33500,37700,41900,45250,48600,51950,55300]
["Alpine3/20/07 - 2/12/08","Alpine","3/20/07 - 2/12/08",23050,26300,29600,32900,35550,38150,40800,43450]
["Amador3/20/07 - 2/12/08","Amador","3/20/07 - 2/12/08",22300,25500,28650,31850,34400,36950,39500,39500]
["Butte3/20/07 - 2/12/08","Butte","3/20/07 - 2/12/08",18200,20800,23400,26000,28100,30150,32250,34300]
["Calaveras3/20/07 - 2/12/08","Calaveras","3/20/07 - 2/12/08",20600,23550,26500,29450,31800,34150,36500,38850]
["Colusa3/20/07 - 2/12/08","Colusa","3/20/07 - 2/12/08",18050,20600,23200,25750,27800,29850,31950,34000]
["Contra Costa3/20/07 - 2/12/08","Contra Costa","3/20/07 - 2/12/08",29350,33500,37700,41900,45250,48600,51950,55300]
["Del Norte3/20/07 - 2/12/08","Del Norte","3/20/07 - 2/12/08",18050,20600,23200,25750,27800,29850,31950,34000]
["El Dorado3/20/07 - 2/12/08","El Dorado","3/20/07 - 2/12/08",23500,26900,30250,33600,36300,39000,41650,44350]
["Fresno3/20/07 - 2/12/08","Fresno","3/20/07 - 2/12/08",18050,20600,23200,25750,27800,29850,31950,34000]
["Glenn3/20/07 - 2/12/08","Glenn","3/20/07 - 2/12/08",18050,20600,23200,25750,27800,29850,31950,34000]
["Humboldt3/20/07 - 2/12/08","Humboldt","3/20/07 - 2/12/08",18050,20600,23200,25750,27800,29850,31950,34000]
["Imperial3/20/07 - 2/12/08","Imperial","3/20/07 - 2/12/08",18050,20600,23200,25750,27800,29850,31950,34000]
["Inyo3/20/07 - 2/12/08","Inyo","3/20/07 - 2/12/08",19250,22000,24750,27500,29700,31900,34100,36300]
["Kern3/20/07 - 2/12/08","Kern","3/20/07 - 2/12/08",18050,20600,23200,25750,27800,29850,31950,34000]
["Kings3/20/07 - 2/12/08","Kings","3/20/07 - 2/12/08",18050,20600,23200,25750,27800,29850,31950,34000]
["Lake3/20/07 - 2/12/08","Lake","3/20/07 - 2/12/08",18050,20600,23200,25750,27800,29850,31950,34000]
["Lassen3/20/07 - 2/12/08","Lassen","3/20/07 - 2/12/08",18600,21300,23950,26600,28750,30850,33000,35100]
["Los Angeles3/20/07 - 2/12/08","Los Angeles","3/20/07 - 2/12/08",25900,29600,33300,37000,39950,42900,45900,48850]
["Madera3/20/07 - 2/12/08","Madera","3/20/07 - 2/12/08",18050,20600,23200,25750,27800,29850,31950,34000]
["Marin3/20/07 - 2/12/08","Marin","3/20/07 - 2/12/08",39600,45250,50900,56550,61050,65600,70100,74650]
["Mariposa3/20/07 - 2/12/08","Mariposa","3/20/07 - 2/12/08",18150,20700,23300,25900,27950,30050,32100,34200]
["Mendocino3/20/07 - 2/12/08","Mendocino","3/20/07 - 2/12/08",18050,20600,23200,25750,27800,29850,31950,34000]
["Merced3/20/07 - 2/12/08","Merced","3/20/07 - 2/12/08",18050,20600,23200,25750,27800,29850,31950,34000]
["Modoc3/20/07 - 2/12/08","Modoc","3/20/07 - 2/12/08",18050,20600,23200,25750,27800,29850,31950,34000]
["Mono3/20/07 - 2/12/08","Mono","3/20/07 - 2/12/08",22450,25700,28900,32100,34650,37250,39800,42350]
["Monterey3/20/07 - 2/12/08","Monterey","3/20/07 - 2/12/08",22600,25800,29050,32250,34850,37400,40000,42550]
["Napa3/20/07 - 2/12/08","Napa","3/20/07 - 2/12/08",26550,30300,34100,37900,40950,43950,47000,50050]
["Nevada3/20/07 - 2/12/08","Nevada","3/20/07 - 2/12/08",22800,26050,29300,32550,35150,37750,40350,42950]
["Orange3/20/07 - 2/12/08","Orange","3/20/07 - 2/12/08",30300,34650,38950,43300,46750,50250,53700,57150]
["Placer3/20/07 - 2/12/08","Placer","3/20/07 - 2/12/08",23500,26900,30250,33600,36300,39000,41650,44350]
["Plumas3/20/07 - 2/12/08","Plumas","3/20/07 - 2/12/08",19800,22650,25450,28300,30550,32850,35100,37350]
["Riverside3/20/07 - 2/12/08","Riverside","3/20/07 - 2/12/08",20700,23700,26650,29600,31950,34350,36700,39050]
["Sacramento3/20/07 - 2/12/08","Sacramento","3/20/07 - 2/12/08",23500,26900,30250,33600,36300,39000,41650,44350]
["San Benito3/20/07 - 2/12/08","San Benito","3/20/07 - 2/12/08",26150,29900,33600,37350,40350,43350,46300,49300]
["San Bernardino3/20/07 - 2/12/08","San Bernardino","3/20/07 - 2/12/08",20700,23700,26650,29600,31950,34350,36700,39050]
["San Diego3/20/07 - 2/12/08","San Diego","3/20/07 - 2/12/08",24550,28100,31600,35100,37900,40700,43500,46350]
["San Francisco3/20/07 - 2/12/08","San Francisco","3/20/07 - 2/12/08",39600,45250,50900,56550,61050,65600,70100,74650]
["San Joaquin3/20/07 - 2/12/08","San Joaquin","3/20/07 - 2/12/08",21100,24100,27150,30150,32550,34950,37400,39800]
["San Luis Obispo3/20/07 - 2/12/08","San Luis Obispo","3/20/07 - 2/12/08",22450,25700,28900,32100,34650,37250,39800,42350]
["San Mateo3/20/07 - 2/12/08","San Mateo","3/20/07 - 2/12/08",39600,45250,50900,56550,61050,65600,70100,74650]
["Santa Barbara3/20/07 - 2/12/08","Santa Barbara","3/20/07 - 2/12/08",23500,26850,30200,33550,36250,38900,41600,44300]
["Santa Clara3/20/07 - 2/12/08","Santa Clara","3/20/07 - 2/12/08",37150,42450,47750,53050,57300,61550,65800,70050]
["Santa Cruz3/20/07 - 2/12/08","Santa Cruz","3/20/07 - 2/12/08",28450,32500,36600,40650,43900,47150,50400,53650]
["Shasta3/20/07 - 2/12/08","Shasta","3/20/07 - 2/12/08",18450,21100,23700,26350,28450,30550,32650,34800]
["Sierra3/20/07 - 2/12/08","Sierra","3/20/07 - 2/12/08",18050,20600,23200,25750,27800,29850,31950,34000]
["Siskiyou3/20/07 - 2/12/08","Siskiyou","3/20/07 - 2/12/08",18050,20600,23200,25750,27800,29850,31950,34000]
["Solano3/20/07 - 2/12/08","Solano","3/20/07 - 2/12/08",26400,30150,33950,37700,40700,43750,46750,49750]
["Sonoma3/20/07 - 2/12/08","Sonoma","3/20/07 - 2/12/08",26300,30050,33800,37550,40550,43550,46550,49550]
["Stanislaus3/20/07 - 2/12/08","Stanislaus","3/20/07 - 2/12/08",19600,22400,25200,28000,30250,32500,34700,36950]
["Sutter3/20/07 - 2/12/08","Sutter","3/20/07 - 2/12/08",18100,20700,23250,25850,27900,30000,32050,34100]
["Tehama3/20/07 - 2/12/08","Tehama","3/20/07 - 2/12/08",18050,20600,23200,25750,27800,29850,31950,34000]
["Trinity3/20/07 - 2/12/08","Trinity","3/20/07 - 2/12/08",18050,20600,23200,25750,27800,29850,31950,34000]
["Tulare3/20/07 - 2/12/08","Tulare","3/20/07 - 2/12/08",18050,20600,23200,25750,27800,29850,31950,34000]
["Tuolumne3/20/07 - 2/12/08","Tuolumne","3/20/07 - 2/12/08",19250,22000,24750,27500,29700,31900,34100,36300]
["Ventura3/20/07 - 2/12/08","Ventura","3/20/07 - 2/12/08",30000,34300,38550,42850,46300,49700,53150,56550]
["Yolo3/20/07 - 2/12/08","Yolo","3/20/07 - 2/12/08",23000,26300,29550,32850,35500,38100,40750,43350]
["Yuba3/20/07 - 2/12/08","Yuba","3/20/07 - 2/12/08",18100,20700,23250,25850,27900,30000,32050,34100]
["Alameda2/13/08 - 3/18/09","Alameda","2/13/08 - 3/18/09",30150,34450,38750,43050,46500,49950,53400,56850]
["Alpine2/13/08 - 3/18/09","Alpine","2/13/08 - 3/18/09",24300,27750,31250,34700,37500,40250,43050,45800]
["Amador2/13/08 - 3/18/09","Amador","2/13/08 - 3/18/09",23350,26700,30000,33350,36000,38700,41350,44000]
["Butte2/13/08 - 3/18/09","Butte","2/13/08 - 3/18/09",19100,21800,24550,27250,29450,31600,33800,35950]
["Calaveras2/13/08 - 3/18/09","Calaveras","2/13/08 - 3/18/09",21500,24550,27650,30700,33150,35600,38050,40500]
["Colusa2/13/08 - 3/18/09","Colusa","2/13/08 - 3/18/09",18850,21500,24200,26900,29050,31200,33350,35500]
["Contra Costa2/13/08 - 3/18/09","Contra Costa","2/13/08 - 3/18/09",30150,34450,38750,43050,46500,49950,53400,56850]
["Del Norte2/13/08 - 3/18/09","Del Norte","2/13/08 - 3/18/09",18850,21500,24200,26900,29050,31200,33350,35500]
["El Dorado2/13/08 - 3/18/09","El Dorado","2/13/08 - 3/18/09",24850,28400,31950,35500,38350,41200,44000,46850]
["Fresno2/13/08 - 3/18/09","Fresno","2/13/08 - 3/18/09",18850,21500,24200,26900,29050,31200,33350,35500]
["Glenn2/13/08 - 3/18/09","Glenn","2/13/08 - 3/18/09",18850,21500,24200,26900,29050,31200,33350,35500]
["Humboldt2/13/08 - 3/18/09","Humboldt","2/13/08 - 3/18/09",18850,21500,24200,26900,29050,31200,33350,35500]
["Imperial2/13/08 - 3/18/09","Imperial","2/13/08 - 3/18/09",18850,21500,24200,26900,29050,31200,33350,35500]
["Inyo2/13/08 - 3/18/09","Inyo","2/13/08 - 3/18/09",20150,23000,25900,28750,31050,33350,35650,37950]
["Kern2/13/08 - 3/18/09","Kern","2/13/08 - 3/18/09",18850,21500,24200,26900,29050,31200,33350,35500]
["Kings2/13/08 - 3/18/09","Kings","2/13/08 - 3/18/09",18850,21500,24200,26900,29050,31200,33350,35500]
["Lake2/13/08 - 3/18/09","Lake","2/13/08 - 3/18/09",18850,21500,24200,26900,29050,31200,33350,35500]
["Lassen2/13/08 - 3/18/09","Lassen","2/13/08 - 3/18/09",19450,22250,25000,27800,30000,32250,34450,36700]
["Los Angeles2/13/08 - 3/18/09","Los Angeles","2/13/08 - 3/18/09",26550,30300,34100,37900,40950,43950,47000,50050]
["Madera2/13/08 - 3/18/09","Madera","2/13/08 - 3/18/09",18850,21500,24200,26900,29050,31200,33350,35500]
["Marin2/13/08 - 3/18/09","Marin","2/13/08 - 3/18/09",39600,45250,50900,56550,61050,65600,70100,74650]
["Mariposa2/13/08 - 3/18/09","Mariposa","2/13/08 - 3/18/09",18900,21600,24300,27000,29150,31300,33500,35650]
["Mendocino2/13/08 - 3/18/09","Mendocino","2/13/08 - 3/18/09",18850,21500,24200,26900,29050,31200,33350,35500]
["Merced2/13/08 - 3/18/09","Merced","2/13/08 - 3/18/09",18850,21500,24200,26900,29050,31200,33350,35500]
["Modoc2/13/08 - 3/18/09","Modoc","2/13/08 - 3/18/09",18850,21500,24200,26900,29050,31200,33350,35500]
["Mono2/13/08 - 3/18/09","Mono","2/13/08 - 3/18/09",23050,26350,29650,32950,35600,38200,40850,43500]
["Monterey2/13/08 - 3/18/09","Monterey","2/13/08 - 3/18/09",22700,25900,29150,32400,35000,37600,40200,42750]
["Napa2/13/08 - 3/18/09","Napa","2/13/08 - 3/18/09",27850,31850,35800,39800,43000,46150,49350,52550]
["Nevada2/13/08 - 3/18/09","Nevada","2/13/08 - 3/18/09",22800,26050,29300,32550,35150,37750,40350,42950]
["Orange2/13/08 - 3/18/09","Orange","2/13/08 - 3/18/09",32550,37200,41850,46500,50200,53950,57650,61400]
["Placer2/13/08 - 3/18/09","Placer","2/13/08 - 3/18/09",24850,28400,31950,35500,38350,41200,44000,46850]
["Plumas2/13/08 - 3/18/09","Plumas","2/13/08 - 3/18/09",20700,23650,26600,29550,31900,34300,36650,39000]
["Riverside2/13/08 - 3/18/09","Riverside","2/13/08 - 3/18/09",23300,26650,29950,33300,35950,38650,41300,43950]
["Sacramento2/13/08 - 3/18/09","Sacramento","2/13/08 - 3/18/09",24850,28400,31950,35500,38350,41200,44000,46850]
["San Benito2/13/08 - 3/18/09","San Benito","2/13/08 - 3/18/09",27300,31200,35100,39000,42100,45250,48350,51500]
["San Bernardino2/13/08 - 3/18/09","San Bernardino","2/13/08 - 3/18/09",23300,26650,29950,33300,35950,38650,41300,43950]
["San Diego2/13/08 - 3/18/09","San Diego","2/13/08 - 3/18/09",27650,31600,35550,39500,42650,45800,49000,52150]
["San Francisco2/13/08 - 3/18/09","San Francisco","2/13/08 - 3/18/09",39600,45250,50900,56550,61050,65600,70100,74650]
["San Joaquin2/13/08 - 3/18/09","San Joaquin","2/13/08 - 3/18/09",21450,24500,27600,30650,33100,35550,38000,40450]
["San Luis Obispo2/13/08 - 3/18/09","San Luis Obispo","2/13/08 - 3/18/09",23450,26800,30150,33500,36200,38850,41550,44200]
["San Mateo2/13/08 - 3/18/09","San Mateo","2/13/08 - 3/18/09",39600,45250,50900,56550,61050,65600,70100,74650]
["Santa Barbara2/13/08 - 3/18/09","Santa Barbara","2/13/08 - 3/18/09",27250,31100,35000,38900,42000,45100,48250,51350]
["Santa Clara2/13/08 - 3/18/09","Santa Clara","2/13/08 - 3/18/09",37150,42450,47750,53050,57300,61550,65800,70050]
["Santa Cruz2/13/08 - 3/18/09","Santa Cruz","2/13/08 - 3/18/09",30450,34800,39150,43500,47000,50450,53950,57400]
["Shasta2/13/08 - 3/18/09","Shasta","2/13/08 - 3/18/09",18850,21500,24200,26900,29050,31200,33350,35500]
["Sierra2/13/08 - 3/18/09","Sierra","2/13/08 - 3/18/09",19750,22550,25400,28200,30450,32700,34950,37200]
["Siskiyou2/13/08 - 3/18/09","Siskiyou","2/13/08 - 3/18/09",18850,21500,24200,26900,29050,31200,33350,35500]
["Solano2/13/08 - 3/18/09","Solano","2/13/08 - 3/18/09",26400,30150,33950,37700,40700,43750,46750,49750]
["Sonoma2/13/08 - 3/18/09","Sonoma","2/13/08 - 3/18/09",27250,31100,35000,38900,42000,45100,48250,51350]
["Stanislaus2/13/08 - 3/18/09","Stanislaus","2/13/08 - 3/18/09",19800,22600,25450,28250,30500,32750,35050,37300]
["Sutter2/13/08 - 3/18/09","Sutter","2/13/08 - 3/18/09",18850,21500,24200,26900,29050,31200,33350,35500]
["Tehama2/13/08 - 3/18/09","Tehama","2/13/08 - 3/18/09",18850,21500,24200,26900,29050,31200,33350,35500]
["Trinity2/13/08 - 3/18/09","Trinity","2/13/08 - 3/18/09",18850,21500,24200,26900,29050,31200,33350,35500]
["Tulare2/13/08 - 3/18/09","Tulare","2/13/08 - 3/18/09",18850,21500,24200,26900,29050,31200,33350,35500]
["Tuolumne2/13/08 - 3/18/09","Tuolumne","2/13/08 - 3/18/09",20150,23000,25900,28750,31050,33350,35650,37950]
["Ventura2/13/08 - 3/18/09","Ventura","2/13/08 - 3/18/09",30000,34300,38550,42850,46300,49700,53150,56550]
["Yolo2/13/08 - 3/18/09","Yolo","2/13/08 - 3/18/09",24850,28400,31950,35500,38350,41200,44000,46850]
["Yuba2/13/08 - 3/18/09","Yuba","2/13/08 - 3/18/09",18850,21500,24200,26900,29050,31200,33350,35500]
["AlamedaBefore 1/1/09","Alameda","Before 1/1/09",31250,35700,40200,44650,48200,51800,55350,58950]
["AlpineBefore 1/1/09","Alpine","Before 1/1/09",24300,27750,31250,34700,37500,40250,43050,45800]
["AmadorBefore 1/1/09","Amador","Before 1/1/09",23800,27200,30600,34000,36700,39450,42150,44900]
["ButteBefore 1/1/09","Butte","Before 1/1/09",19550,22300,25100,27900,30150,32350,34600,36850]
["CalaverasBefore 1/1/09","Calaveras","Before 1/1/09",22100,25250,28400,31550,34050,36600,39100,41650]
["ColusaBefore 1/1/09","Colusa","Before 1/1/09",19550,22300,25100,27900,30150,32350,34600,36850]
["Contra CostaBefore 1/1/09","Contra Costa","Before 1/1/09",31250,35700,40200,44650,48200,51800,55350,58950]
["Del NorteBefore 1/1/09","Del Norte","Before 1/1/09",19550,22300,25100,27900,30150,32350,34600,36850]
["El DoradoBefore 1/1/09","El Dorado","Before 1/1/09",25500,29100,32750,36400,39300,42200,45150,48050]
["FresnoBefore 1/1/09","Fresno","Before 1/1/09",19550,22300,25100,27900,30150,32350,34600,36850]
["GlennBefore 1/1/09","Glenn","Before 1/1/09",19550,22300,25100,27900,30150,32350,34600,36850]
["HumboldtBefore 1/1/09","Humboldt","Before 1/1/09",19550,22300,25100,27900,30150,32350,34600,36850]
["ImperialBefore 1/1/09","Imperial","Before 1/1/09",19550,22300,25100,27900,30150,32350,34600,36850]
["InyoBefore 1/1/09","Inyo","Before 1/1/09",20900,23900,26850,29850,32250,34650,37000,39400]
["KernBefore 1/1/09","Kern","Before 1/1/09",19550,22300,25100,27900,30150,32350,34600,36850]
["KingsBefore 1/1/09","Kings","Before 1/1/09",19550,22300,25100,27900,30150,32350,34600,36850]
["LakeBefore 1/1/09","Lake","Before 1/1/09",19550,22300,25100,27900,30150,32350,34600,36850]
["LassenBefore 1/1/09","Lassen","Before 1/1/09",20150,23050,25900,28800,31100,33400,35700,38000]
["Los AngelesBefore 1/1/09","Los Angeles","Before 1/1/09",27750,31700,35700,39650,42800,46000,49150,52350]
["MaderaBefore 1/1/09","Madera","Before 1/1/09",19550,22300,25100,27900,30150,32350,34600,36850]
["MarinBefore 1/1/09","Marin","Before 1/1/09",39600,45250,50900,56550,61050,65600,70100,74650,78350,89550,100750,111900,120900,129850,138800,147750]
["MariposaBefore 1/1/09","Mariposa","Before 1/1/09",19800,22650,25450,28300,30550,32850,35100,37350]
["MendocinoBefore 1/1/09","Mendocino","Before 1/1/09",19550,22300,25100,27900,30150,32350,34600,36850]
["MercedBefore 1/1/09","Merced","Before 1/1/09",19550,22300,25100,27900,30150,32350,34600,36850]
["ModocBefore 1/1/09","Modoc","Before 1/1/09",19550,22300,25100,27900,30150,32350,34600,36850]
["MonoBefore 1/1/09","Mono","Before 1/1/09",23450,26800,30150,33500,36200,38850,41550,44200]
["MontereyBefore 1/1/09","Monterey","Before 1/1/09",23550,26900,30300,33650,36350,39050,41750,44400]
["NapaBefore 1/1/09","Napa","Before 1/1/09",28650,32700,36800,40900,44150,47450,50700,54000]
["NevadaBefore 1/1/09","Nevada","Before 1/1/09",24200,27650,31100,34550,37300,40100,42850,45600,39650,45300,50950,56600,61150,65700,70200,74750]
["OrangeBefore 1/1/09","Orange","Before 1/1/09",32550,37200,41850,46500,50200,53950,57650,61400]
["PlacerBefore 1/1/09","Placer","Before 1/1/09",25500,29100,32750,36400,39300,42200,45150,48050]
["PlumasBefore 1/1/09","Plumas","Before 1/1/09",21400,24500,27550,30600,33050,35500,37950,40400]
["RiversideBefore 1/1/09","Riverside","Before 1/1/09",23300,26650,29950,33300,35950,38650,41300,43950]
["SacramentoBefore 1/1/09","Sacramento","Before 1/1/09",25500,29100,32750,36400,39300,42200,45150,48050]
["San BenitoBefore 1/1/09","San Benito","Before 1/1/09",28150,32150,36200,40200,43400,46650,49850,53050]
["San BernardinoBefore 1/1/09","San Bernardino","Before 1/1/09",23300,26650,29950,33300,35950,38650,41300,43950]
["San DiegoBefore 1/1/09","San Diego","Before 1/1/09",28900,33050,37150,41300,44600,47900,51200,54500]
["San FranciscoBefore 1/1/09","San Francisco","Before 1/1/09",39600,45250,50900,56550,61050,65600,70100,74650,78350,89550,100750,111900,120900,129850,138800,147750]
["San JoaquinBefore 1/1/09","San Joaquin","Before 1/1/09",22250,25450,28600,31800,34350,36900,39450,42000]
["San Luis ObispoBefore 1/1/09","San Luis Obispo","Before 1/1/09",24800,28300,31850,35400,38250,41050,43900,46750]
["San MateoBefore 1/1/09","San Mateo","Before 1/1/09",39600,45250,50900,56550,61050,65600,70100,74650,78350,89550,100750,111900,120900,129850,138800,147750]
["Santa BarbaraBefore 1/1/09","Santa Barbara","Before 1/1/09",27250,31100,35000,38900,42000,45100,48250,51350]
["Santa ClaraBefore 1/1/09","Santa Clara","Before 1/1/09",37150,42450,47750,53050,57300,61550,65800,70050,70000,80000,90000,99950,107950,115950,123950,131950]
["Santa CruzBefore 1/1/09","Santa Cruz","Before 1/1/09",32450,37100,41700,46350,50050,53750,57450,61200]
["ShastaBefore 1/1/09","Shasta","Before 1/1/09",19550,22300,25100,27900,30150,32350,34600,36850]
["SierraBefore 1/1/09","Sierra","Before 1/1/09",20650,23600,26550,29500,31850,34200,36600,38950]
["SiskiyouBefore 1/1/09","Siskiyou","Before 1/1/09",19550,22300,25100,27900,30150,32350,34600,36850]
["SolanoBefore 1/1/09","Solano","Before 1/1/09",27800,31750,35750,39700,42900,46050,49250,52400]
["SonomaBefore 1/1/09","Sonoma","Before 1/1/09",28050,32100,36100,40100,43300,46500,49700,52950]
["StanislausBefore 1/1/09","Stanislaus","Before 1/1/09",20850,23850,26800,29800,32200,34550,36950,39350]
["SutterBefore 1/1/09","Sutter","Before 1/1/09",19550,22300,25100,27900,30150,32350,34600,36850]
["TehamaBefore 1/1/09","Tehama","Before 1/1/09",19550,22300,25100,27900,30150,32350,34600,36850]
["TrinityBefore 1/1/09","Trinity","Before 1/1/09",19550,22300,25100,27900,30150,32350,34600,36850]
["TulareBefore 1/1/09","Tulare","Before 1/1/09",19550,22300,25100,27900,30150,32350,34600,36850]
["TuolumneBefore 1/1/09","Tuolumne","Before 1/1/09",20400,23300,26250,29150,31500,33800,36150,38500]
["VenturaBefore 1/1/09","Ventura","Before 1/1/09",30650,35000,39400,43750,47250,50750,54250,57750]
["YoloBefore 1/1/09","Yolo","Before 1/1/09",25400,29050,32650,36300,39200,42100,45000,47900]
["YubaBefore 1/1/09","Yuba","Before 1/1/09",19550,22300,25100,27900,30150,32350,34600,36850]
["Alameda1/1/09 - 5/13/10","Alameda","1/1/09 - 5/13/10",31250,35700,40200,44650,48200,51800,55350,58950]
["Alpine1/1/09 - 5/13/10","Alpine","1/1/09 - 5/13/10",24300,27750,31250,34700,37500,40250,43050,45800]
["Amador1/1/09 - 5/13/10","Amador","1/1/09 - 5/13/10",23800,27200,30600,34000,36700,39450,42150,44900]
["Butte1/1/09 - 5/13/10","Butte","1/1/09 - 5/13/10",19550,22300,25100,27900,30150,32350,34600,36850]
["Calaveras1/1/09 - 5/13/10","Calaveras","1/1/09 - 5/13/10",22100,25250,28400,31550,34050,36600,39100,41650]
["Colusa1/1/09 - 5/13/10","Colusa","1/1/09 - 5/13/10",19550,22300,25100,27900,30150,32350,34600,36850]
["Contra Costa1/1/09 - 5/13/10","Contra Costa","1/1/09 - 5/13/10",31250,35700,40200,44650,48200,51800,55350,58950]
["Del Norte1/1/09 - 5/13/10","Del Norte","1/1/09 - 5/13/10",19550,22300,25100,27900,30150,32350,34600,36850]
["El Dorado1/1/09 - 5/13/10","El Dorado","1/1/09 - 5/13/10",25500,29100,32750,36400,39300,42200,45150,48050]
["Fresno1/1/09 - 5/13/10","Fresno","1/1/09 - 5/13/10",19550,22300,25100,27900,30150,32350,34600,36850]
["Glenn1/1/09 - 5/13/10","Glenn","1/1/09 - 5/13/10",19550,22300,25100,27900,30150,32350,34600,36850]
["Humboldt1/1/09 - 5/13/10","Humboldt","1/1/09 - 5/13/10",19550,22300,25100,27900,30150,32350,34600,36850]
["Imperial1/1/09 - 5/13/10","Imperial","1/1/09 - 5/13/10",19550,22300,25100,27900,30150,32350,34600,36850]
["Inyo1/1/09 - 5/13/10","Inyo","1/1/09 - 5/13/10",20900,23900,26850,29850,32250,34650,37000,39400]
["Kern1/1/09 - 5/13/10","Kern","1/1/09 - 5/13/10",19550,22300,25100,27900,30150,32350,34600,36850]
["Kings1/1/09 - 5/13/10","Kings","1/1/09 - 5/13/10",19550,22300,25100,27900,30150,32350,34600,36850]
["Lake1/1/09 - 5/13/10","Lake","1/1/09 - 5/13/10",19550,22300,25100,27900,30150,32350,34600,36850]
["Lassen1/1/09 - 5/13/10","Lassen","1/1/09 - 5/13/10",20150,23050,25900,28800,31100,33400,35700,38000]
["Los Angeles1/1/09 - 5/13/10","Los Angeles","1/1/09 - 5/13/10",27750,31700,35700,39650,42800,46000,49150,52350]
["Madera1/1/09 - 5/13/10","Madera","1/1/09 - 5/13/10",19550,22300,25100,27900,30150,32350,34600,36850]
["Marin1/1/09 - 5/13/10","Marin","1/1/09 - 5/13/10",39600,45250,50900,56550,61050,65600,70100,74650]
["Mariposa1/1/09 - 5/13/10","Mariposa","1/1/09 - 5/13/10",19800,22650,25450,28300,30550,32850,35100,37350]
["Mendocino1/1/09 - 5/13/10","Mendocino","1/1/09 - 5/13/10",19550,22300,25100,27900,30150,32350,34600,36850]
["Merced1/1/09 - 5/13/10","Merced","1/1/09 - 5/13/10",19550,22300,25100,27900,30150,32350,34600,36850]
["Modoc1/1/09 - 5/13/10","Modoc","1/1/09 - 5/13/10",19550,22300,25100,27900,30150,32350,34600,36850]
["Mono1/1/09 - 5/13/10","Mono","1/1/09 - 5/13/10",23450,26800,30150,33500,36200,38850,41550,44200]
["Monterey1/1/09 - 5/13/10","Monterey","1/1/09 - 5/13/10",23550,26900,30300,33650,36350,39050,41750,44400]
["Napa1/1/09 - 5/13/10","Napa","1/1/09 - 5/13/10",28650,32700,36800,40900,44150,47450,50700,54000]
["Nevada1/1/09 - 5/13/10","Nevada","1/1/09 - 5/13/10",24200,27650,31100,34550,37300,40100,42850,45600]
["Orange1/1/09 - 5/13/10","Orange","1/1/09 - 5/13/10",32550,37200,41850,46500,50200,53950,57650,61400]
["Placer1/1/09 - 5/13/10","Placer","1/1/09 - 5/13/10",25500,29100,32750,36400,39300,42200,45150,48050]
["Plumas1/1/09 - 5/13/10","Plumas","1/1/09 - 5/13/10",21400,24500,27550,30600,33050,35500,37950,40400]
["Riverside1/1/09 - 5/13/10","Riverside","1/1/09 - 5/13/10",23300,26650,29950,33300,35950,38650,41300,43950]
["Sacramento1/1/09 - 5/13/10","Sacramento","1/1/09 - 5/13/10",25500,29100,32750,36400,39300,42200,45150,48050]
["San Benito1/1/09 - 5/13/10","San Benito","1/1/09 - 5/13/10",28150,32150,36200,40200,43400,46650,49850,53050]
["San Bernardino1/1/09 - 5/13/10","San Bernardino","1/1/09 - 5/13/10",23300,26650,29950,33300,35950,38650,41300,43950]
["San Diego1/1/09 - 5/13/10","San Diego","1/1/09 - 5/13/10",28900,33050,37150,41300,44600,47900,51200,54500]
["San Francisco1/1/09 - 5/13/10","San Francisco","1/1/09 - 5/13/10",39600,45250,50900,56550,61050,65600,70100,74650]
["San Joaquin1/1/09 - 5/13/10","San Joaquin","1/1/09 - 5/13/10",22250,25450,28600,31800,34350,36900,39450,42000]
["San Luis Obispo1/1/09 - 5/13/10","San Luis Obispo","1/1/09 - 5/13/10",24800,28300,31850,35400,38250,41050,43900,46750]
["San Mateo1/1/09 - 5/13/10","San Mateo","1/1/09 - 5/13/10",39600,45250,50900,56550,61050,65600,70100,74650]
["Santa Barbara1/1/09 - 5/13/10","Santa Barbara","1/1/09 - 5/13/10",27250,31100,35000,38900,42000,45100,48250,51350]
["Santa Clara1/1/09 - 5/13/10","Santa Clara","1/1/09 - 5/13/10",37150,42450,47750,53050,57300,61550,65800,70050]
["Santa Cruz1/1/09 - 5/13/10","Santa Cruz","1/1/09 - 5/13/10",32450,37100,41700,46350,50050,53750,57450,61200]
["Shasta1/1/09 - 5/13/10","Shasta","1/1/09 - 5/13/10",19550,22300,25100,27900,30150,32350,34600,36850]
["Sierra1/1/09 - 5/13/10","Sierra","1/1/09 - 5/13/10",20650,23600,26550,29500,31850,34200,36600,38950]
["Siskiyou1/1/09 - 5/13/10","Siskiyou","1/1/09 - 5/13/10",19550,22300,25100,27900,30150,32350,34600,36850]
["Solano1/1/09 - 5/13/10","Solano","1/1/09 - 5/13/10",27800,31750,35750,39700,42900,46050,49250,52400]
["Sonoma1/1/09 - 5/13/10","Sonoma","1/1/09 - 5/13/10",28050,32100,36100,40100,43300,46500,49700,52950]
["Stanislaus1/1/09 - 5/13/10","Stanislaus","1/1/09 - 5/13/10",20850,23850,26800,29800,32200,34550,36950,39350]
["Sutter1/1/09 - 5/13/10","Sutter","1/1/09 - 5/13/10",19550,22300,25100,27900,30150,32350,34600,36850]
["Tehama1/1/09 - 5/13/10","Tehama","1/1/09 - 5/13/10",19550,22300,25100,27900,30150,32350,34600,36850]
["Trinity1/1/09 - 5/13/10","Trinity","1/1/09 - 5/13/10",19550,22300,25100,27900,30150,32350,34600,36850]
["Tulare1/1/09 - 5/13/10","Tulare","1/1/09 - 5/13/10",19550,22300,25100,27900,30150,32350,34600,36850]
["Tuolumne1/1/09 - 5/13/10","Tuolumne","1/1/09 - 5/13/10",20400,23300,26250,29150,31500,33800,36150,38500]
["Ventura1/1/09 - 5/13/10","Ventura","1/1/09 - 5/13/10",30650,35000,39400,43750,47250,50750,54250,57750]
["Yolo1/1/09 - 5/13/10","Yolo","1/1/09 - 5/13/10",25400,29050,32650,36300,39200,42100,45000,47900]
["Yuba1/1/09 - 5/13/10","Yuba","1/1/09 - 5/13/10",19550,22300,25100,27900,30150,32350,34600,36850]
["Alameda3/19/09 - 5/13/10","Alameda","3/19/09 - 5/13/10",31250,35700,40200,44650,48200,51800,55350,58950]
["Alpine3/19/09 - 5/13/10","Alpine","3/19/09 - 5/13/10",24300,27750,31250,34700,37500,40250,43050,45800]
["Amador3/19/09 - 5/13/10","Amador","3/19/09 - 5/13/10",23800,27200,30600,34000,36700,39450,42150,44900]
["Butte3/19/09 - 5/13/10","Butte","3/19/09 - 5/13/10",19550,22300,25100,27900,30150,32350,34600,36850]
["Calaveras3/19/09 - 5/13/10","Calaveras","3/19/09 - 5/13/10",22100,25250,28400,31550,34050,36600,39100,41650]
["Colusa3/19/09 - 5/13/10","Colusa","3/19/09 - 5/13/10",19550,22300,25100,27900,30150,32350,34600,36850]
["Contra Costa3/19/09 - 5/13/10","Contra Costa","3/19/09 - 5/13/10",31250,35700,40200,44650,48200,51800,55350,58950]
["Del Norte3/19/09 - 5/13/10","Del Norte","3/19/09 - 5/13/10",19550,22300,25100,27900,30150,32350,34600,36850]
["El Dorado3/19/09 - 5/13/10","El Dorado","3/19/09 - 5/13/10",25500,29100,32750,36400,39300,42200,45150,48050]
["Fresno3/19/09 - 5/13/10","Fresno","3/19/09 - 5/13/10",19550,22300,25100,27900,30150,32350,34600,36850]
["Glenn3/19/09 - 5/13/10","Glenn","3/19/09 - 5/13/10",19550,22300,25100,27900,30150,32350,34600,36850]
["Humboldt3/19/09 - 5/13/10","Humboldt","3/19/09 - 5/13/10",19550,22300,25100,27900,30150,32350,34600,36850]
["Imperial3/19/09 - 5/13/10","Imperial","3/19/09 - 5/13/10",19550,22300,25100,27900,30150,32350,34600,36850]
["Inyo3/19/09 - 5/13/10","Inyo","3/19/09 - 5/13/10",20900,23900,26850,29850,32250,34650,37000,39400]
["Kern3/19/09 - 5/13/10","Kern","3/19/09 - 5/13/10",19550,22300,25100,27900,30150,32350,34600,36850]
["Kings3/19/09 - 5/13/10","Kings","3/19/09 - 5/13/10",19550,22300,25100,27900,30150,32350,34600,36850]
["Lake3/19/09 - 5/13/10","Lake","3/19/09 - 5/13/10",19550,22300,25100,27900,30150,32350,34600,36850]
["Lassen3/19/09 - 5/13/10","Lassen","3/19/09 - 5/13/10",20150,23050,25900,28800,31100,33400,35700,38000]
["Los Angeles3/19/09 - 5/13/10","Los Angeles","3/19/09 - 5/13/10",27750,31700,35700,39650,42800,46000,49150,52350]
["Madera3/19/09 - 5/13/10","Madera","3/19/09 - 5/13/10",19550,22300,25100,27900,30150,32350,34600,36850]
["Marin3/19/09 - 5/13/10","Marin","3/19/09 - 5/13/10",39600,45250,50900,56550,61050,65600,70100,74650]
["Mariposa3/19/09 - 5/13/10","Mariposa","3/19/09 - 5/13/10",19800,22650,25450,28300,30550,32850,35100,37350]
["Mendocino3/19/09 - 5/13/10","Mendocino","3/19/09 - 5/13/10",19550,22300,25100,27900,30150,32350,34600,36850]
["Merced3/19/09 - 5/13/10","Merced","3/19/09 - 5/13/10",19550,22300,25100,27900,30150,32350,34600,36850]
["Modoc3/19/09 - 5/13/10","Modoc","3/19/09 - 5/13/10",19550,22300,25100,27900,30150,32350,34600,36850]
["Mono3/19/09 - 5/13/10","Mono","3/19/09 - 5/13/10",23450,26800,30150,33500,36200,38850,41550,44200]
["Monterey3/19/09 - 5/13/10","Monterey","3/19/09 - 5/13/10",23550,26900,30300,33650,36350,39050,41750,44400]
["Napa3/19/09 - 5/13/10","Napa","3/19/09 - 5/13/10",28650,32700,36800,40900,44150,47450,50700,54000]
["Nevada3/19/09 - 5/13/10","Nevada","3/19/09 - 5/13/10",24200,27650,31100,34550,37300,40100,42850,45600]
["Orange3/19/09 - 5/13/10","Orange","3/19/09 - 5/13/10",32550,37200,41850,46500,50200,53950,57650,61400]
["Placer3/19/09 - 5/13/10","Placer","3/19/09 - 5/13/10",25500,29100,32750,36400,39300,42200,45150,48050]
["Plumas3/19/09 - 5/13/10","Plumas","3/19/09 - 5/13/10",21400,24500,27550,30600,33050,35500,37950,40400]
["Riverside3/19/09 - 5/13/10","Riverside","3/19/09 - 5/13/10",23300,26650,29950,33300,35950,38650,41300,43950]
["Sacramento3/19/09 - 5/13/10","Sacramento","3/19/09 - 5/13/10",25500,29100,32750,36400,39300,42200,45150,48050]
["San Benito3/19/09 - 5/13/10","San Benito","3/19/09 - 5/13/10",28150,32150,36200,40200,43400,46650,49850,53050]
["San Bernardino3/19/09 - 5/13/10","San Bernardino","3/19/09 - 5/13/10",23300,26650,29950,33300,35950,38650,41300,43950]
["San Diego3/19/09 - 5/13/10","San Diego","3/19/09 - 5/13/10",28900,33050,37150,41300,44600,47900,51200,54500]
["San Francisco3/19/09 - 5/13/10","San Francisco","3/19/09 - 5/13/10",39600,45250,50900,56550,61050,65600,70100,74650]
["San Joaquin3/19/09 - 5/13/10","San Joaquin","3/19/09 - 5/13/10",22250,25450,28600,31800,34350,36900,39450,42000]
["San Luis Obispo3/19/09 - 5/13/10","San Luis Obispo","3/19/09 - 5/13/10",24800,28300,31850,35400,38250,41050,43900,46750]
["San Mateo3/19/09 - 5/13/10","San Mateo","3/19/09 - 5/13/10",39600,45250,50900,56550,61050,65600,70100,74650]
["Santa Barbara3/19/09 - 5/13/10","Santa Barbara","3/19/09 - 5/13/10",27250,31100,35000,38900,42000,45100,48250,51350]
["Santa Clara3/19/09 - 5/13/10","Santa Clara","3/19/09 - 5/13/10",37150,42450,47750,53050,57300,61550,65800,70050]
["Santa Cruz3/19/09 - 5/13/10","Santa Cruz","3/19/09 - 5/13/10",32450,37100,41700,46350,50050,53750,57450,61200]
["Shasta3/19/09 - 5/13/10","Shasta","3/19/09 - 5/13/10",19550,22300,25100,27900,30150,32350,34600,36850]
["Sierra3/19/09 - 5/13/10","Sierra","3/19/09 - 5/13/10",20650,23600,26550,29500,31850,34200,36600,38950]
["Siskiyou3/19/09 - 5/13/10","Siskiyou","3/19/09 - 5/13/10",19550,22300,25100,27900,30150,32350,34600,36850]
["Solano3/19/09 - 5/13/10","Solano","3/19/09 - 5/13/10",27800,31750,35750,39700,42900,46050,49250,52400]
["Sonoma3/19/09 - 5/13/10","Sonoma","3/19/09 - 5/13/10",28050,32100,36100,40100,43300,46500,49700,52950]
["Stanislaus3/19/09 - 5/13/10","Stanislaus","3/19/09 - 5/13/10",20850,23850,26800,29800,32200,34550,36950,39350]
["Sutter3/19/09 - 5/13/10","Sutter","3/19/09 - 5/13/10",19550,22300,25100,27900,30150,32350,34600,36850]
["Tehama3/19/09 - 5/13/10","Tehama","3/19/09 - 5/13/10",19550,22300,25100,27900,30150,32350,34600,36850]
["Trinity3/19/09 - 5/13/10","Trinity","3/19/09 - 5/13/10",19550,22300,25100,27900,30150,32350,34600,36850]
["Tulare3/19/09 - 5/13/10","Tulare","3/19/09 - 5/13/10",19550,22300,25100,27900,30150,32350,34600,36850]
["Tuolumne3/19/09 - 5/13/10","Tuolumne","3/19/09 - 5/13/10",20400,23300,26250,29150,31500,33800,36150,38500]
["Ventura3/19/09 - 5/13/10","Ventura","3/19/09 - 5/13/10",30650,35000,39400,43750,47250,50750,54250,57750]
["Yolo3/19/09 - 5/13/10","Yolo","3/19/09 - 5/13/10",25400,29050,32650,36300,39200,42100,45000,47900]
["Yuba3/19/09 - 5/13/10","Yuba","3/19/09 - 5/13/10",19550,22300,25100,27900,30150,32350,34600,36850]
["Alameda5/14/10 - 5/30/11","Alameda","5/14/10 - 5/30/11",31650,36150,40650,45150,48800,52400,56000,59600]
["Alpine5/14/10 - 5/30/11","Alpine","5/14/10 - 5/30/11",23600,26950,30300,33650,36350,39050,41750,44450]
["Amador5/14/10 - 5/30/11","Amador","5/14/10 - 5/30/11",23800,27200,30600,33950,36700,39400,42100,44850]
["Butte5/14/10 - 5/30/11","Butte","5/14/10 - 5/30/11",19750,22550,25350,28150,30450,32700,34950,37200]
["Calaveras5/14/10 - 5/30/11","Calaveras","5/14/10 - 5/30/11",22550,25800,29000,32200,34800,37400,39950,42550]
["Colusa5/14/10 - 5/30/11","Colusa","5/14/10 - 5/30/11",19750,22550,25350,28150,30450,32700,34950,37200]
["Contra Costa5/14/10 - 5/30/11","Contra Costa","5/14/10 - 5/30/11",31650,36150,40650,45150,48800,52400,56000,59600]
["Del Norte5/14/10 - 5/30/11","Del Norte","5/14/10 - 5/30/11",19750,22550,25350,28150,30450,32700,34950,37200]
["El Dorado5/14/10 - 5/30/11","El Dorado","5/14/10 - 5/30/11",25600,29250,32900,36550,39500,42400,45350,48250]
["Fresno5/14/10 - 5/30/11","Fresno","5/14/10 - 5/30/11",19750,22550,25350,28150,30450,32700,34950,37200]
["Glenn5/14/10 - 5/30/11","Glenn","5/14/10 - 5/30/11",19750,22550,25350,28150,30450,32700,34950,37200]
["Humboldt5/14/10 - 5/30/11","Humboldt","5/14/10 - 5/30/11",19750,22550,25350,28150,30450,32700,34950,37200]
["Imperial5/14/10 - 5/30/11","Imperial","5/14/10 - 5/30/11",19750,22550,25350,28150,30450,32700,34950,37200]
["Inyo5/14/10 - 5/30/11","Inyo","5/14/10 - 5/30/11",21100,24100,27100,30100,32550,34950,37350,39750]
["Kern5/14/10 - 5/30/11","Kern","5/14/10 - 5/30/11",19750,22550,25350,28150,30450,32700,34950,37200]
["Kings5/14/10 - 5/30/11","Kings","5/14/10 - 5/30/11",19750,22550,25350,28150,30450,32700,34950,37200]
["Lake5/14/10 - 5/30/11","Lake","5/14/10 - 5/30/11",19750,22550,25350,28150,30450,32700,34950,37200]
["Lassen5/14/10 - 5/30/11","Lassen","5/14/10 - 5/30/11",20350,23250,26150,29050,31400,33700,36050,38350]
["Los Angeles5/14/10 - 5/30/11","Los Angeles","5/14/10 - 5/30/11",29000,33150,37300,41400,44750,48050,51350,54650]
["Madera5/14/10 - 5/30/11","Madera","5/14/10 - 5/30/11",19750,22550,25350,28150,30450,32700,34950,37200]
["Marin5/14/10 - 5/30/11","Marin","5/14/10 - 5/30/11",37650,43000,48400,53750,58050,62350,66650,70950]
["Mariposa5/14/10 - 5/30/11","Mariposa","5/14/10 - 5/30/11",20000,22850,25700,28550,30850,33150,35450,37700]
["Mendocino5/14/10 - 5/30/11","Mendocino","5/14/10 - 5/30/11",19800,22600,25450,28250,30550,32800,35050,37300]
["Merced5/14/10 - 5/30/11","Merced","5/14/10 - 5/30/11",19750,22550,25350,28150,30450,32700,34950,37200]
["Modoc5/14/10 - 5/30/11","Modoc","5/14/10 - 5/30/11",19750,22550,25350,28150,30450,32700,34950,37200]
["Mono5/14/10 - 5/30/11","Mono","5/14/10 - 5/30/11",23750,27150,30550,33900,36650,39350,42050,44750]
["Monterey5/14/10 - 5/30/11","Monterey","5/14/10 - 5/30/11",23150,26450,29750,33050,35700,38350,41000,43650]
["Napa5/14/10 - 5/30/11","Napa","5/14/10 - 5/30/11",28650,32750,36850,40900,44200,47450,50750,54000]
["Nevada5/14/10 - 5/30/11","Nevada","5/14/10 - 5/30/11",24250,27700,31150,34600,37400,40150,42950,45700]
["Orange5/14/10 - 5/30/11","Orange","5/14/10 - 5/30/11",32550,37200,41850,46450,50200,53900,57600,61350]
["Placer5/14/10 - 5/30/11","Placer","5/14/10 - 5/30/11",25600,29250,32900,36550,39500,42400,45350,48250]
["Plumas5/14/10 - 5/30/11","Plumas","5/14/10 - 5/30/11",21700,24800,27900,31000,33500,36000,38450,40950]
["Riverside5/14/10 - 5/30/11","Riverside","5/14/10 - 5/30/11",22750,26000,29250,32500,35100,37700,40300,42900]
["Sacramento5/14/10 - 5/30/11","Sacramento","5/14/10 - 5/30/11",25600,29250,32900,36550,39500,42400,45350,48250]
["San Benito5/14/10 - 5/30/11","San Benito","5/14/10 - 5/30/11",28400,32450,36500,40550,43800,47050,50300,53550]
["San Bernardino5/14/10 - 5/30/11","San Bernardino","5/14/10 - 5/30/11",22750,26000,29250,32500,35100,37700,40300,42900]
["San Diego5/14/10 - 5/30/11","San Diego","5/14/10 - 5/30/11",27500,31400,35350,39250,42400,45550,48700,51850]
["San Francisco5/14/10 - 5/30/11","San Francisco","5/14/10 - 5/30/11",37650,43000,48400,53750,58050,62350,66650,70950]
["San Joaquin5/14/10 - 5/30/11","San Joaquin","5/14/10 - 5/30/11",22100,25250,28400,31550,34100,36600,39150,41650]
["San Luis Obispo5/14/10 - 5/30/11","San Luis Obispo","5/14/10 - 5/30/11",25400,29000,32650,36250,39150,42050,44950,47850]
["San Mateo5/14/10 - 5/30/11","San Mateo","5/14/10 - 5/30/11",37650,43000,48400,53750,58050,62350,66650,70950]
["Santa Barbara5/14/10 - 5/30/11","Santa Barbara","5/14/10 - 5/30/11",25900,29600,33300,37000,40000,42950,45900,48850]
["Santa Clara5/14/10 - 5/30/11","Santa Clara","5/14/10 - 5/30/11",36250,41400,46600,51750,55900,60050,64200,68350]
["Santa Cruz5/14/10 - 5/30/11","Santa Cruz","5/14/10 - 5/30/11",33800,38600,43450,48250,52150,56000,59850,63700]
["Shasta5/14/10 - 5/30/11","Shasta","5/14/10 - 5/30/11",19750,22550,25350,28150,30450,32700,34950,37200]
["Sierra5/14/10 - 5/30/11","Sierra","5/14/10 - 5/30/11",21350,24400,27450,30450,32900,35350,37800,40200]
["Siskiyou5/14/10 - 5/30/11","Siskiyou","5/14/10 - 5/30/11",19750,22550,25350,28150,30450,32700,34950,37200]
["Solano5/14/10 - 5/30/11","Solano","5/14/10 - 5/30/11",27750,31700,35650,39600,42800,45950,49150,52300]
["Sonoma5/14/10 - 5/30/11","Sonoma","5/14/10 - 5/30/11",28150,32200,36200,40200,43450,46650,49850,53100]
["Stanislaus5/14/10 - 5/30/11","Stanislaus","5/14/10 - 5/30/11",20850,23800,26800,29750,32150,34550,36900,39300]
["Sutter5/14/10 - 5/30/11","Sutter","5/14/10 - 5/30/11",19750,22550,25350,28150,30450,32700,34950,37200]
["Tehama5/14/10 - 5/30/11","Tehama","5/14/10 - 5/30/11",19750,22550,25350,28150,30450,32700,34950,37200]
["Trinity5/14/10 - 5/30/11","Trinity","5/14/10 - 5/30/11",19750,22550,25350,28150,30450,32700,34950,37200]
["Tulare5/14/10 - 5/30/11","Tulare","5/14/10 - 5/30/11",19750,22550,25350,28150,30450,32700,34950,37200]
["Tuolumne5/14/10 - 5/30/11","Tuolumne","5/14/10 - 5/30/11",20900,23900,26900,29850,32250,34650,37050,39450]
["Ventura5/14/10 - 5/30/11","Ventura","5/14/10 - 5/30/11",30350,34700,39050,43350,46850,50300,53800,57250]
["Yolo5/14/10 - 5/30/11","Yolo","5/14/10 - 5/30/11",25400,29000,32650,36250,39150,42050,44950,47850]
["Yuba5/14/10 - 5/30/11","Yuba","5/14/10 - 5/30/11",19750,22550,25350,28150,30450,32700,34950,37200]
["Alameda5/31/11 - 11/30/11","Alameda","5/31/11 - 11/30/11",32350,36950,41550,46150,49850,53550,57250,60950]
["Alpine5/31/11 - 11/30/11","Alpine","5/31/11 - 11/30/11",24750,28250,31800,35300,38150,40950,43800,46600]
["Amador5/31/11 - 11/30/11","Amador","5/31/11 - 11/30/11",23400,26750,30100,33400,36100,38750,41450,44100]
["Butte5/31/11 - 11/30/11","Butte","5/31/11 - 11/30/11",20300,23200,26100,28950,31300,33600,35900,38250]
["Calaveras5/31/11 - 11/30/11","Calaveras","5/31/11 - 11/30/11",23700,27050,30450,33800,36550,39250,41950,44650]
["Colusa5/31/11 - 11/30/11","Colusa","5/31/11 - 11/30/11",20050,22900,25750,28600,30900,33200,35500,37800]
["Contra Costa5/31/11 - 11/30/11","Contra Costa","5/31/11 - 11/30/11",32350,36950,41550,46150,49850,53550,57250,60950]
["Del Norte5/31/11 - 11/30/11","Del Norte","5/31/11 - 11/30/11",20050,22900,25750,28600,30900,33200,35500,37800]
["El Dorado5/31/11 - 11/30/11","El Dorado","5/31/11 - 11/30/11",26300,30050,33800,37550,40600,43600,46600,49600]
["Fresno5/31/11 - 11/30/11","Fresno","5/31/11 - 11/30/11",20050,22900,25750,28600,30900,33200,35500,37800]
["Glenn5/31/11 - 11/30/11","Glenn","5/31/11 - 11/30/11",20050,22900,25750,28600,30900,33200,35500,37800]
["Humboldt5/31/11 - 11/30/11","Humboldt","5/31/11 - 11/30/11",20050,22900,25750,28600,30900,33200,35500,37800]
["Imperial5/31/11 - 11/30/11","Imperial","5/31/11 - 11/30/11",20050,22900,25750,28600,30900,33200,35500,37800]
["Inyo5/31/11 - 11/30/11","Inyo","5/31/11 - 11/30/11",22150,25300,28450,31600,34150,36700,39200,41750]
["Kern5/31/11 - 11/30/11","Kern","5/31/11 - 11/30/11",20050,22900,25750,28600,30900,33200,35500,37800]
["Kings5/31/11 - 11/30/11","Kings","5/31/11 - 11/30/11",20050,22900,25750,28600,30900,33200,35500,37800]
["Lake5/31/11 - 11/30/11","Lake","5/31/11 - 11/30/11",20050,22900,25750,28600,30900,33200,35500,37800]
["Lassen5/31/11 - 11/30/11","Lassen","5/31/11 - 11/30/11",21350,24400,27450,30450,32900,35350,37800,40200]
["Los Angeles5/31/11 - 11/30/11","Los Angeles","5/31/11 - 11/30/11",29900,34200,38450,42700,46150,49550,52950,56400]
["Madera5/31/11 - 11/30/11","Madera","5/31/11 - 11/30/11",20050,22900,25750,28600,30900,33200,35500,37800]
["Marin5/31/11 - 11/30/11","Marin","5/31/11 - 11/30/11",37400,42750,48100,53400,57700,61950,66250,70500]
["Mariposa5/31/11 - 11/30/11","Mariposa","5/31/11 - 11/30/11",20550,23500,26450,29350,31700,34050,36400,38750]
["Mendocino5/31/11 - 11/30/11","Mendocino","5/31/11 - 11/30/11",20300,23200,26100,28950,31300,33600,35900,38250]
["Merced5/31/11 - 11/30/11","Merced","5/31/11 - 11/30/11",20050,22900,25750,28600,30900,33200,35500,37800]
["Modoc5/31/11 - 11/30/11","Modoc","5/31/11 - 11/30/11",20050,22900,25750,28600,30900,33200,35500,37800]
["Mono5/31/11 - 11/30/11","Mono","5/31/11 - 11/30/11",24900,28450,32000,35550,38400,41250,44100,46950]
["Monterey5/31/11 - 11/30/11","Monterey","5/31/11 - 11/30/11",23750,27150,30550,33900,36650,39350,42050,44750]
["Napa5/31/11 - 11/30/11","Napa","5/31/11 - 11/30/11",29750,34000,38250,42500,45900,49300,52700,56100]
["Nevada5/31/11 - 11/30/11","Nevada","5/31/11 - 11/30/11",25100,28650,32250,35800,38700,41550,44400,47300]
["Orange5/31/11 - 11/30/11","Orange","5/31/11 - 11/30/11",32350,36950,41550,46150,49850,53550,57250,60950]
["Placer5/31/11 - 11/30/11","Placer","5/31/11 - 11/30/11",26300,30050,33800,37550,40600,43600,46600,49600]
["Plumas5/31/11 - 11/30/11","Plumas","5/31/11 - 11/30/11",20650,23600,26550,29450,31850,34200,36550,38900]
["Riverside5/31/11 - 11/30/11","Riverside","5/31/11 - 11/30/11",23350,26700,30050,33350,36050,38700,41400,44050]
["Sacramento5/31/11 - 11/30/11","Sacramento","5/31/11 - 11/30/11",26300,30050,33800,37550,40600,43600,46600,49600]
["San Benito5/31/11 - 11/30/11","San Benito","5/31/11 - 11/30/11",27450,31350,35250,39150,42300,45450,48550,51700]
["San Bernardino5/31/11 - 11/30/11","San Bernardino","5/31/11 - 11/30/11",23350,26700,30050,33350,36050,38700,41400,44050]
["San Diego5/31/11 - 11/30/11","San Diego","5/31/11 - 11/30/11",28700,32800,36900,40950,44250,47550,50800,54100]
["San Francisco5/31/11 - 11/30/11","San Francisco","5/31/11 - 11/30/11",37400,42750,48100,53400,57700,61950,66250,70500]
["San Joaquin5/31/11 - 11/30/11","San Joaquin","5/31/11 - 11/30/11",22900,26200,29450,32700,35350,37950,40550,43200]
["San Luis Obispo5/31/11 - 11/30/11","San Luis Obispo","5/31/11 - 11/30/11",26050,29800,33500,37200,40200,43200,46150,49150]
["San Mateo5/31/11 - 11/30/11","San Mateo","5/31/11 - 11/30/11",37400,42750,48100,53400,57700,61950,66250,70500]
["Santa Barbara5/31/11 - 11/30/11","Santa Barbara","5/31/11 - 11/30/11",25350,28950,32550,36150,39050,41950,44850,47750]
["Santa Clara5/31/11 - 11/30/11","Santa Clara","5/31/11 - 11/30/11",36300,41450,46650,51800,55950,60100,64250,68400]
["Santa Cruz5/31/11 - 11/30/11","Santa Cruz","5/31/11 - 11/30/11",35300,40350,45400,50400,54450,58500,62500,66550]
["Shasta5/31/11 - 11/30/11","Shasta","5/31/11 - 11/30/11",20400,23300,26200,29100,31450,33800,36100,38450]
["Sierra5/31/11 - 11/30/11","Sierra","5/31/11 - 11/30/11",22400,25600,28800,31950,34550,37100,39650,42200]
["Siskiyou5/31/11 - 11/30/11","Siskiyou","5/31/11 - 11/30/11",20050,22900,25750,28600,30900,33200,35500,37800]
["Solano5/31/11 - 11/30/11","Solano","5/31/11 - 11/30/11",28550,32600,36700,40750,44050,47300,50550,53800]
["Sonoma5/31/11 - 11/30/11","Sonoma","5/31/11 - 11/30/11",28550,32600,36700,40750,44050,47300,50550,53800]
["Stanislaus5/31/11 - 11/30/11","Stanislaus","5/31/11 - 11/30/11",21400,24450,27500,30550,33000,35450,37900,40350]
["Sutter5/31/11 - 11/30/11","Sutter","5/31/11 - 11/30/11",20550,23450,26400,29300,31650,34000,36350,38700]
["Tehama5/31/11 - 11/30/11","Tehama","5/31/11 - 11/30/11",20050,22900,25750,28600,30900,33200,35500,37800]
["Trinity5/31/11 - 11/30/11","Trinity","5/31/11 - 11/30/11",20050,22900,25750,28600,30900,33200,35500,37800]
["Tulare5/31/11 - 11/30/11","Tulare","5/31/11 - 11/30/11",20050,22900,25750,28600,30900,33200,35500,37800]
["Tuolumne5/31/11 - 11/30/11","Tuolumne","5/31/11 - 11/30/11",21950,25050,28200,31300,33850,36350,38850,41350]
["Ventura5/31/11 - 11/30/11","Ventura","5/31/11 - 11/30/11",31150,35600,40050,44500,48100,51650,55200,58750]
["Yolo5/31/11 - 11/30/11","Yolo","5/31/11 - 11/30/11",26550,30350,34150,37900,40950,44000,47000,50050]
["Yuba5/31/11 - 11/30/11","Yuba","5/31/11 - 11/30/11",20550,23450,26400,29300,31650,34000,36350,38700]
["Alameda12/1/11 - 12/3/12","Alameda","12/1/11 - 12/3/12",32750,37400,42100,46750,50500,54250,58000,61750]
["Alpine12/1/11 - 12/3/12","Alpine","12/1/11 - 12/3/12",25950,29650,33350,37050,40050,43000,45950,48950]
["Amador12/1/11 - 12/3/12","Amador","12/1/11 - 12/3/12",23700,27100,30500,33850,36600,39300,42000,44700]
["Butte12/1/11 - 12/3/12","Butte","12/1/11 - 12/3/12",20550,23500,26450,29350,31700,34050,36400,38750]
["Calaveras12/1/11 - 12/3/12","Calaveras","12/1/11 - 12/3/12",24400,27900,31400,34850,37650,40450,43250,46050]
["Colusa12/1/11 - 12/3/12","Colusa","12/1/11 - 12/3/12",20300,23200,26100,28950,31300,33600,35900,38250]
["Contra Costa12/1/11 - 12/3/12","Contra Costa","12/1/11 - 12/3/12",32750,37400,42100,46750,50500,54250,58000,61750]
["Del Norte12/1/11 - 12/3/12","Del Norte","12/1/11 - 12/3/12",20300,23200,26100,28950,31300,33600,35900,38250]
["El Dorado12/1/11 - 12/3/12","El Dorado","12/1/11 - 12/3/12",26650,30450,34250,38050,41100,44150,47200,50250]
["Fresno12/1/11 - 12/3/12","Fresno","12/1/11 - 12/3/12",20300,23200,26100,28950,31300,33600,35900,38250]
["Glenn12/1/11 - 12/3/12","Glenn","12/1/11 - 12/3/12",20300,23200,26100,28950,31300,33600,35900,38250]
["Humboldt12/1/11 - 12/3/12","Humboldt","12/1/11 - 12/3/12",20300,23200,26100,28950,31300,33600,35900,38250]
["Imperial12/1/11 - 12/3/12","Imperial","12/1/11 - 12/3/12",20300,23200,26100,28950,31300,33600,35900,38250]
["Inyo12/1/11 - 12/3/12","Inyo","12/1/11 - 12/3/12",22950,26200,29500,32750,35400,38000,40650,43250]
["Kern12/1/11 - 12/3/12","Kern","12/1/11 - 12/3/12",20300,23200,26100,28950,31300,33600,35900,38250]
["Kings12/1/11 - 12/3/12","Kings","12/1/11 - 12/3/12",20300,23200,26100,28950,31300,33600,35900,38250]
["Lake12/1/11 - 12/3/12","Lake","12/1/11 - 12/3/12",20300,23200,26100,28950,31300,33600,35900,38250]
["Lassen12/1/11 - 12/3/12","Lassen","12/1/11 - 12/3/12",21600,24700,27800,30850,33350,35800,38300,40750]
["Los Angeles12/1/11 - 12/3/12","Los Angeles","12/1/11 - 12/3/12",29550,33750,37950,42150,45550,48900,52300,55650]
["Madera12/1/11 - 12/3/12","Madera","12/1/11 - 12/3/12",20300,23200,26100,28950,31300,33600,35900,38250]
["Marin12/1/11 - 12/3/12","Marin","12/1/11 - 12/3/12",38850,44400,49950,55500,59950,64400,68850,73300]
["Mariposa12/1/11 - 12/3/12","Mariposa","12/1/11 - 12/3/12",20850,23800,26800,29750,32150,34550,36900,39300]
["Mendocino12/1/11 - 12/3/12","Mendocino","12/1/11 - 12/3/12",20300,23200,26100,28950,31300,33600,35900,38250]
["Merced12/1/11 - 12/3/12","Merced","12/1/11 - 12/3/12",20300,23200,26100,28950,31300,33600,35900,38250]
["Modoc12/1/11 - 12/3/12","Modoc","12/1/11 - 12/3/12",20300,23200,26100,28950,31300,33600,35900,38250]
["Mono12/1/11 - 12/3/12","Mono","12/1/11 - 12/3/12",26150,29850,33600,37300,40300,43300,46300,49250]
["Monterey12/1/11 - 12/3/12","Monterey","12/1/11 - 12/3/12",24250,27700,31150,34600,37400,40150,42950,45700]
["Napa12/1/11 - 12/3/12","Napa","12/1/11 - 12/3/12",30150,34450,38750,43050,46500,49950,53400,56850]
["Nevada12/1/11 - 12/3/12","Nevada","12/1/11 - 12/3/12",25450,29050,32700,36300,39250,42150,45050,47950]
["Orange12/1/11 - 12/3/12","Orange","12/1/11 - 12/3/12",33750,38550,43350,48150,52050,55900,59750,63600]
["Placer12/1/11 - 12/3/12","Placer","12/1/11 - 12/3/12",26650,30450,34250,38050,41100,44150,47200,50250]
["Plumas12/1/11 - 12/3/12","Plumas","12/1/11 - 12/3/12",20300,23200,26100,28950,31300,33600,35900,38250]
["Riverside12/1/11 - 12/3/12","Riverside","12/1/11 - 12/3/12",23450,26800,30150,33500,36200,38900,41550,44250]
["Sacramento12/1/11 - 12/3/12","Sacramento","12/1/11 - 12/3/12",26650,30450,34250,38050,41100,44150,47200,50250]
["San Benito12/1/11 - 12/3/12","San Benito","12/1/11 - 12/3/12",27800,31750,35700,39650,42850,46000,49200,52350]
["San Bernardino12/1/11 - 12/3/12","San Bernardino","12/1/11 - 12/3/12",23450,26800,30150,33500,36200,38900,41550,44250]
["San Diego12/1/11 - 12/3/12","San Diego","12/1/11 - 12/3/12",28150,32150,36150,40150,43400,46600,49800,53000]
["San Francisco12/1/11 - 12/3/12","San Francisco","12/1/11 - 12/3/12",38850,44400,49950,55500,59950,64400,68850,73300]
["San Joaquin12/1/11 - 12/3/12","San Joaquin","12/1/11 - 12/3/12",23250,26550,29850,33150,35850,38500,41150,43800]
["San Luis Obispo12/1/11 - 12/3/12","San Luis Obispo","12/1/11 - 12/3/12",26400,30200,33950,37700,40750,43750,46750,49800]
["San Mateo12/1/11 - 12/3/12","San Mateo","12/1/11 - 12/3/12",38850,44400,49950,55500,59950,64400,68850,73300]
["Santa Barbara12/1/11 - 12/3/12","Santa Barbara","12/1/11 - 12/3/12",26600,30400,34200,37950,41000,44050,47100,50100]
["Santa Clara12/1/11 - 12/3/12","Santa Clara","12/1/11 - 12/3/12",36750,42000,47250,52500,56700,60900,65100,69300]
["Santa Cruz12/1/11 - 12/3/12","Santa Cruz","12/1/11 - 12/3/12",33550,38350,43150,47900,51750,55600,59400,63250]
["Shasta12/1/11 - 12/3/12","Shasta","12/1/11 - 12/3/12",20650,23600,26550,29500,31900,34250,36600,38950]
["Sierra12/1/11 - 12/3/12","Sierra","12/1/11 - 12/3/12",23450,26800,30150,33500,36200,38900,41550,44250]
["Siskiyou12/1/11 - 12/3/12","Siskiyou","12/1/11 - 12/3/12",20300,23200,26100,28950,31300,33600,35900,38250]
["Solano12/1/11 - 12/3/12","Solano","12/1/11 - 12/3/12",28950,33050,37200,41300,44650,47950,51250,54550]
["Sonoma12/1/11 - 12/3/12","Sonoma","12/1/11 - 12/3/12",28950,33050,37200,41300,44650,47950,51250,54550]
["Stanislaus12/1/11 - 12/3/12","Stanislaus","12/1/11 - 12/3/12",21700,24800,27900,31000,33500,36000,38450,40950]
["Sutter12/1/11 - 12/3/12","Sutter","12/1/11 - 12/3/12",20800,23800,26750,29700,32100,34500,36850,39250]
["Tehama12/1/11 - 12/3/12","Tehama","12/1/11 - 12/3/12",20300,23200,26100,28950,31300,33600,35900,38250]
["Trinity12/1/11 - 12/3/12","Trinity","12/1/11 - 12/3/12",20300,23200,26100,28950,31300,33600,35900,38250]
["Tulare12/1/11 - 12/3/12","Tulare","12/1/11 - 12/3/12",20300,23200,26100,28950,31300,33600,35900,38250]
["Tuolumne12/1/11 - 12/3/12","Tuolumne","12/1/11 - 12/3/12",23000,26300,29600,32850,35500,38150,40750,43400]
["Ventura12/1/11 - 12/3/12","Ventura","12/1/11 - 12/3/12",31300,35750,40200,44650,48250,51800,55400,58950]
["Yolo12/1/11 - 12/3/12","Yolo","12/1/11 - 12/3/12",26950,30800,34650,38450,41550,44650,47700,50800]
["Yuba12/1/11 - 12/3/12","Yuba","12/1/11 - 12/3/12",20800,23800,26750,29700,32100,34500,36850,39250]
["Alameda12/4/12 - 12/17/13","Alameda","12/4/12 - 12/17/13",31250,35700,40150,44600,48200,51750,55350,58900]
["Alpine12/4/12 - 12/17/13","Alpine","12/4/12 - 12/17/13",27250,31150,35050,38900,42050,45150,48250,51350]
["Amador12/4/12 - 12/17/13","Amador","12/4/12 - 12/17/13",24250,27700,31150,34600,37400,40150,42950,45700]
["Butte12/4/12 - 12/17/13","Butte","12/4/12 - 12/17/13",20100,22950,25800,28650,30950,33250,35550,37850]
["Calaveras12/4/12 - 12/17/13","Calaveras","12/4/12 - 12/17/13",24400,27900,31400,34850,37650,40450,43250,46050]
["Colusa12/4/12 - 12/17/13","Colusa","12/4/12 - 12/17/13",20100,22950,25800,28650,30950,33250,35550,37850]
["Contra Costa12/4/12 - 12/17/13","Contra Costa","12/4/12 - 12/17/13",31250,35700,40150,44600,48200,51750,55350,58900]
["Del Norte12/4/12 - 12/17/13","Del Norte","12/4/12 - 12/17/13",20100,22950,25800,28650,30950,33250,35550,37850]
["El Dorado12/4/12 - 12/17/13","El Dorado","12/4/12 - 12/17/13",25350,28950,32550,36150,39050,41950,44850,47750]
["Fresno12/4/12 - 12/17/13","Fresno","12/4/12 - 12/17/13",20100,22950,25800,28650,30950,33250,35550,37850]
["Glenn12/4/12 - 12/17/13","Glenn","12/4/12 - 12/17/13",20100,22950,25800,28650,30950,33250,35550,37850]
["Humboldt12/4/12 - 12/17/13","Humboldt","12/4/12 - 12/17/13",20100,22950,25800,28650,30950,33250,35550,37850]
["Imperial12/4/12 - 12/17/13","Imperial","12/4/12 - 12/17/13",20100,22950,25800,28650,30950,33250,35550,37850]
["Inyo12/4/12 - 12/17/13","Inyo","12/4/12 - 12/17/13",23050,26350,29650,32900,35550,38200,40800,43450]
["Kern12/4/12 - 12/17/13","Kern","12/4/12 - 12/17/13",20100,22950,25800,28650,30950,33250,35550,37850]
["Kings12/4/12 - 12/17/13","Kings","12/4/12 - 12/17/13",20100,22950,25800,28650,30950,33250,35550,37850]
["Lake12/4/12 - 12/17/13","Lake","12/4/12 - 12/17/13",20100,22950,25800,28650,30950,33250,35550,37850]
["Lassen12/4/12 - 12/17/13","Lassen","12/4/12 - 12/17/13",22650,25900,29150,32350,34950,37550,40150,42750]
["Los Angeles12/4/12 - 12/17/13","Los Angeles","12/4/12 - 12/17/13",29000,33150,37300,41400,44750,48050,51350,54650]
["Madera12/4/12 - 12/17/13","Madera","12/4/12 - 12/17/13",20100,22950,25800,28650,30950,33250,35550,37850]
["Marin12/4/12 - 12/17/13","Marin","12/4/12 - 12/17/13",36950,42200,47500,52750,57000,61200,65450,69650]
["Mariposa12/4/12 - 12/17/13","Mariposa","12/4/12 - 12/17/13",21500,24550,27600,30650,33150,35600,38050,40500]
["Mendocino12/4/12 - 12/17/13","Mendocino","12/4/12 - 12/17/13",20200,23050,25950,28800,31150,33450,35750,38050]
["Merced12/4/12 - 12/17/13","Merced","12/4/12 - 12/17/13",20100,22950,25800,28650,30950,33250,35550,37850]
["Modoc12/4/12 - 12/17/13","Modoc","12/4/12 - 12/17/13",20100,22950,25800,28650,30950,33250,35550,37850]
["Mono12/4/12 - 12/17/13","Mono","12/4/12 - 12/17/13",27450,31350,35250,39150,42300,45450,48550,51700]
["Monterey12/4/12 - 12/17/13","Monterey","12/4/12 - 12/17/13",25000,28550,32100,35650,38550,41400,44250,47100]
["Napa12/4/12 - 12/17/13","Napa","12/4/12 - 12/17/13",28650,32750,36850,40900,44200,47450,50750,54000]
["Nevada12/4/12 - 12/17/13","Nevada","12/4/12 - 12/17/13",24150,27600,31050,34500,37300,40050,42800,45550]
["Orange12/4/12 - 12/17/13","Orange","12/4/12 - 12/17/13",32050,36600,41200,45750,49450,53100,56750,60400]
["Placer12/4/12 - 12/17/13","Placer","12/4/12 - 12/17/13",25350,28950,32550,36150,39050,41950,44850,47750]
["Plumas12/4/12 - 12/17/13","Plumas","12/4/12 - 12/17/13",20200,23050,25950,28800,31150,33450,35750,38050]
["Riverside12/4/12 - 12/17/13","Riverside","12/4/12 - 12/17/13",22300,25500,28700,31850,34400,36950,39500,42050]
["Sacramento12/4/12 - 12/17/13","Sacramento","12/4/12 - 12/17/13",25350,28950,32550,36150,39050,41950,44850,47750]
["San Benito12/4/12 - 12/17/13","San Benito","12/4/12 - 12/17/13",27950,31950,35950,39900,43100,46300,49500,52700]
["San Bernardino12/4/12 - 12/17/13","San Bernardino","12/4/12 - 12/17/13",22300,25500,28700,31850,34400,36950,39500,42050]
["San Diego12/4/12 - 12/17/13","San Diego","12/4/12 - 12/17/13",28250,32250,36300,40300,43550,46750,50000,53200]
["San Francisco12/4/12 - 12/17/13","San Francisco","12/4/12 - 12/17/13",36950,42200,47500,52750,57000,61200,65450,69650]
["San Joaquin12/4/12 - 12/17/13","San Joaquin","12/4/12 - 12/17/13",22050,25200,28350,31500,34050,36550,39100,41600]
["San Luis Obispo12/4/12 - 12/17/13","San Luis Obispo","12/4/12 - 12/17/13",25100,28700,32300,35850,38750,41600,44500,47350]
["San Mateo12/4/12 - 12/17/13","San Mateo","12/4/12 - 12/17/13",36950,42200,47500,52750,57000,61200,65450,69650]
["Santa Barbara12/4/12 - 12/17/13","Santa Barbara","12/4/12 - 12/17/13",27900,31850,35850,39800,43000,46200,49400,52550]
["Santa Clara12/4/12 - 12/17/13","Santa Clara","12/4/12 - 12/17/13",35500,40550,45600,50650,54750,58800,62850,66900]
["Santa Cruz12/4/12 - 12/17/13","Santa Cruz","12/4/12 - 12/17/13",32400,37000,41650,46250,49950,53650,57350,61050]
["Shasta12/4/12 - 12/17/13","Shasta","12/4/12 - 12/17/13",20100,22950,25800,28650,30950,33250,35550,37850]
["Sierra12/4/12 - 12/17/13","Sierra","12/4/12 - 12/17/13",24650,28150,31650,35150,38000,40800,43600,46400]
["Siskiyou12/4/12 - 12/17/13","Siskiyou","12/4/12 - 12/17/13",20100,22950,25800,28650,30950,33250,35550,37850]
["Solano12/4/12 - 12/17/13","Solano","12/4/12 - 12/17/13",27600,31550,35500,39400,42600,45750,48900,52050]
["Sonoma12/4/12 - 12/17/13","Sonoma","12/4/12 - 12/17/13",27500,31400,35350,39250,42400,45550,48700,51850]
["Stanislaus12/4/12 - 12/17/13","Stanislaus","12/4/12 - 12/17/13",20650,23600,26550,29450,31850,34200,36550,38900]
["Sutter12/4/12 - 12/17/13","Sutter","12/4/12 - 12/17/13",20100,22950,25800,28650,30950,33250,35550,37850]
["Tehama12/4/12 - 12/17/13","Tehama","12/4/12 - 12/17/13",20100,22950,25800,28650,30950,33250,35550,37850]
["Trinity12/4/12 - 12/17/13","Trinity","12/4/12 - 12/17/13",20100,22950,25800,28650,30950,33250,35550,37850]
["Tulare12/4/12 - 12/17/13","Tulare","12/4/12 - 12/17/13",20100,22950,25800,28650,30950,33250,35550,37850]
["Tuolumne12/4/12 - 12/17/13","Tuolumne","12/4/12 - 12/17/13",23250,26600,29900,33200,35900,38550,41200,43850]
["Ventura12/4/12 - 12/17/13","Ventura","12/4/12 - 12/17/13",30600,35000,39350,43700,47200,50700,54200,57700]
["Yolo12/4/12 - 12/17/13","Yolo","12/4/12 - 12/17/13",26250,30000,33750,37500,40500,43500,46500,49500]
["Yuba12/4/12 - 12/17/13","Yuba","12/4/12 - 12/17/13",20100,22950,25800,28650,30950,33250,35550,37850]
["Alameda12/18/13 - 3/5/15","Alameda","12/18/13 - 3/5/15",32200,36800,41400,46000,49700,53400,57050,60750]
["Alpine12/18/13 - 3/5/15","Alpine","12/18/13 - 3/5/15",28600,32650,36750,40800,44100,47350,50600,53900]
["Amador12/18/13 - 3/5/15","Amador","12/18/13 - 3/5/15",25350,28950,32550,36150,39050,41950,44850,47750]
["Butte12/18/13 - 3/5/15","Butte","12/18/13 - 3/5/15",19150,21900,24650,27350,29550,31750,33950,36150]
["Calaveras12/18/13 - 3/5/15","Calaveras","12/18/13 - 3/5/15",24500,28000,31500,35000,37800,40600,43400,46200]
["Colusa12/18/13 - 3/5/15","Colusa","12/18/13 - 3/5/15",20100,22950,25800,28650,30950,33250,35550,37850]
["Contra Costa12/18/13 - 3/5/15","Contra Costa","12/18/13 - 3/5/15",32200,36800,41400,46000,49700,53400,57050,60750]
["Del Norte12/18/13 - 3/5/15","Del Norte","12/18/13 - 3/5/15",19150,21900,24650,27350,29550,31750,33950,36150]
["El Dorado12/18/13 - 3/5/15","El Dorado","12/18/13 - 3/5/15",24050,27500,30950,34350,37100,39850,42600,45350]
["Fresno12/18/13 - 3/5/15","Fresno","12/18/13 - 3/5/15",19150,21900,24650,27350,29550,31750,33950,36150]
["Glenn12/18/13 - 3/5/15","Glenn","12/18/13 - 3/5/15",19150,21900,24650,27350,29550,31750,33950,36150]
["Humboldt12/18/13 - 3/5/15","Humboldt","12/18/13 - 3/5/15",20150,23000,25900,28750,31050,33350,35650,37950]
["Imperial12/18/13 - 3/5/15","Imperial","12/18/13 - 3/5/15",19150,21900,24650,27350,29550,31750,33950,36150]
["Inyo12/18/13 - 3/5/15","Inyo","12/18/13 - 3/5/15",24150,27600,31050,34500,37300,40050,42800,45550]
["Kern12/18/13 - 3/5/15","Kern","12/18/13 - 3/5/15",19150,21900,24650,27350,29550,31750,33950,36150]
["Kings12/18/13 - 3/5/15","Kings","12/18/13 - 3/5/15",19150,21900,24650,27350,29550,31750,33950,36150]
["Lake12/18/13 - 3/5/15","Lake","12/18/13 - 3/5/15",19150,21900,24650,27350,29550,31750,33950,36150]
["Lassen12/18/13 - 3/5/15","Lassen","12/18/13 - 3/5/15",23800,27200,30600,33950,36700,39400,42100,44850]
["Los Angeles12/18/13 - 3/5/15","Los Angeles","12/18/13 - 3/5/15",28550,32600,36700,40750,44050,47300,50550,53800]
["Madera12/18/13 - 3/5/15","Madera","12/18/13 - 3/5/15",19150,21900,24650,27350,29550,31750,33950,36150]
["Marin12/18/13 - 3/5/15","Marin","12/18/13 - 3/5/15",38750,44300,49850,55350,59800,64250,68650,73100]
["Mariposa12/18/13 - 3/5/15","Mariposa","12/18/13 - 3/5/15",21250,24250,27300,30300,32750,35150,37600,40000]
["Mendocino12/18/13 - 3/5/15","Mendocino","12/18/13 - 3/5/15",19200,21950,24700,27400,29600,31800,34000,36200]
["Merced12/18/13 - 3/5/15","Merced","12/18/13 - 3/5/15",19150,21900,24650,27350,29550,31750,33950,36150]
["Modoc12/18/13 - 3/5/15","Modoc","12/18/13 - 3/5/15",19150,21900,24650,27350,29550,31750,33950,36150]
["Mono12/18/13 - 3/5/15","Mono","12/18/13 - 3/5/15",28450,32500,36550,40600,43850,47100,50350,53600]
["Monterey12/18/13 - 3/5/15","Monterey","12/18/13 - 3/5/15",25200,28800,32400,35950,38850,41750,44600,47500]
["Napa12/18/13 - 3/5/15","Napa","12/18/13 - 3/5/15",28850,33000,37100,41200,44500,47800,51100,54400]
["Nevada12/18/13 - 3/5/15","Nevada","12/18/13 - 3/5/15",25350,29000,32600,36200,39100,42000,44900,47800]
["Orange12/18/13 - 3/5/15","Orange","12/18/13 - 3/5/15",31650,36150,40650,45150,48800,52400,56000,59600]
["Placer12/18/13 - 3/5/15","Placer","12/18/13 - 3/5/15",24050,27500,30950,34350,37100,39850,42600,45350]
["Plumas12/18/13 - 3/5/15","Plumas","12/18/13 - 3/5/15",19400,22150,24900,27650,29900,32100,34300,36500]
["Riverside12/18/13 - 3/5/15","Riverside","12/18/13 - 3/5/15",21250,24300,27350,30350,32800,35250,37650,40100]
["Sacramento12/18/13 - 3/5/15","Sacramento","12/18/13 - 3/5/15",24050,27500,30950,34350,37100,39850,42600,45350]
["San Benito12/18/13 - 3/5/15","San Benito","12/18/13 - 3/5/15",26650,30450,34250,38050,41100,44150,47200,50250]
["San Bernardino12/18/13 - 3/5/15","San Bernardino","12/18/13 - 3/5/15",21250,24300,27350,30350,32800,35250,37650,40100]
["San Diego12/18/13 - 3/5/15","San Diego","12/18/13 - 3/5/15",27650,31600,35550,39450,42650,45800,48950,52100]
["San Francisco12/18/13 - 3/5/15","San Francisco","12/18/13 - 3/5/15",38750,44300,49850,55350,59800,64250,68650,73100]
["San Joaquin12/18/13 - 3/5/15","San Joaquin","12/18/13 - 3/5/15",21000,24000,27000,29950,32350,34750,37150,39550]
["San Luis Obispo12/18/13 - 3/5/15","San Luis Obispo","12/18/13 - 3/5/15",26350,30100,33850,37600,40650,43650,46650,49650]
["San Mateo12/18/13 - 3/5/15","San Mateo","12/18/13 - 3/5/15",38750,44300,49850,55350,59800,64250,68650,73100]
["Santa Barbara12/18/13 - 3/5/15","Santa Barbara","12/18/13 - 3/5/15",26500,30300,34100,37850,40900,43950,46950,50000]
["Santa Clara12/18/13 - 3/5/15","Santa Clara","12/18/13 - 3/5/15",35700,40800,45900,50950,55050,59150,63200,67300]
["Santa Cruz12/18/13 - 3/5/15","Santa Cruz","12/18/13 - 3/5/15",32600,37250,41900,46550,50300,54000,57750,61450]
["Shasta12/18/13 - 3/5/15","Shasta","12/18/13 - 3/5/15",19200,21950,24700,27400,29600,31800,34000,36200]
["Sierra12/18/13 - 3/5/15","Sierra","12/18/13 - 3/5/15",23400,26750,30100,33400,36100,38750,41450,44100]
["Siskiyou12/18/13 - 3/5/15","Siskiyou","12/18/13 - 3/5/15",19150,21900,24650,27350,29550,31750,33950,36150]
["Solano12/18/13 - 3/5/15","Solano","12/18/13 - 3/5/15",26850,30700,34550,38350,41450,44500,47600,50650]
["Sonoma12/18/13 - 3/5/15","Sonoma","12/18/13 - 3/5/15",26950,30800,34650,38450,41550,44650,47700,50800]
["Stanislaus12/18/13 - 3/5/15","Stanislaus","12/18/13 - 3/5/15",19600,22400,25200,28000,30250,32500,34750,37000]
["Sutter12/18/13 - 3/5/15","Sutter","12/18/13 - 3/5/15",19150,21900,24650,27350,29550,31750,33950,36150]
["Tehama12/18/13 - 3/5/15","Tehama","12/18/13 - 3/5/15",19150,21900,24650,27350,29550,31750,33950,36150]
["Trinity12/18/13 - 3/5/15","Trinity","12/18/13 - 3/5/15",19250,22000,24750,27500,29700,31900,34100,36300]
["Tulare12/18/13 - 3/5/15","Tulare","12/18/13 - 3/5/15",19150,21900,24650,27350,29550,31750,33950,36150]
["Tuolumne12/18/13 - 3/5/15","Tuolumne","12/18/13 - 3/5/15",22100,25250,28400,31550,34100,36600,39150,41650]
["Ventura12/18/13 - 3/5/15","Ventura","12/18/13 - 3/5/15",31050,35500,39950,44350,47900,51450,55000,58550]
["Yolo12/18/13 - 3/5/15","Yolo","12/18/13 - 3/5/15",25900,29600,33300,36950,39950,42900,45850,48800]
["Yuba12/18/13 - 3/5/15","Yuba","12/18/13 - 3/5/15",19150,21900,24650,27350,29550,31750,33950,36150]
["Alameda3/6/15 - 3/27/16","Alameda","3/6/15 - 3/27/16",32550,37200,41850,46450,50200,53900,57600,61350]
["Alpine3/6/15 - 3/27/16","Alpine","3/6/15 - 3/27/16",30250,34600,38900,43200,46700,50150,53600,57050]
["Amador3/6/15 - 3/27/16","Amador","3/6/15 - 3/27/16",24050,27500,30950,34350,37100,39850,42600,45350]
["Butte3/6/15 - 3/27/16","Butte","3/6/15 - 3/27/16",19950,22800,25650,28450,30750,33050,35300,37600]
["Calaveras3/6/15 - 3/27/16","Calaveras","3/6/15 - 3/27/16",24600,28100,31600,35100,37950,40750,43550,46350]
["Colusa3/6/15 - 3/27/16","Colusa","3/6/15 - 3/27/16",20550,23500,26450,29350,31700,34050,36400,38750]
["Contra Costa3/6/15 - 3/27/16","Contra Costa","3/6/15 - 3/27/16",32550,37200,41850,46450,50200,53900,57600,61350]
["Del Norte3/6/15 - 3/27/16","Del Norte","3/6/15 - 3/27/16",19950,22800,25650,28450,30750,33050,35300,37600]
["El Dorado3/6/15 - 3/27/16","El Dorado","3/6/15 - 3/27/16",25050,28600,32200,35750,38650,41500,44350,47200]
["Fresno3/6/15 - 3/27/16","Fresno","3/6/15 - 3/27/16",19950,22800,25650,28450,30750,33050,35300,37600]
["Glenn3/6/15 - 3/27/16","Glenn","3/6/15 - 3/27/16",19950,22800,25650,28450,30750,33050,35300,37600]
["Humboldt3/6/15 - 3/27/16","Humboldt","3/6/15 - 3/27/16",19950,22800,25650,28450,30750,33050,35300,37600]
["Imperial3/6/15 - 3/27/16","Imperial","3/6/15 - 3/27/16",19950,22800,25650,28450,30750,33050,35300,37600]
["Inyo3/6/15 - 3/27/16","Inyo","3/6/15 - 3/27/16",25050,28600,32200,35750,38650,41500,44350,47200]
["Kern3/6/15 - 3/27/16","Kern","3/6/15 - 3/27/16",19950,22800,25650,28450,30750,33050,35300,37600]
["Kings3/6/15 - 3/27/16","Kings","3/6/15 - 3/27/16",19950,22800,25650,28450,30750,33050,35300,37600]
["Lake3/6/15 - 3/27/16","Lake","3/6/15 - 3/27/16",19950,22800,25650,28450,30750,33050,35300,37600]
["Lassen3/6/15 - 3/27/16","Lassen","3/6/15 - 3/27/16",24300,27800,31250,34700,37500,40300,43050,45850]
["Los Angeles3/6/15 - 3/27/16","Los Angeles","3/6/15 - 3/27/16",29050,33200,37350,41500,44850,48150,51500,54800]
["Madera3/6/15 - 3/27/16","Madera","3/6/15 - 3/27/16",19950,22800,25650,28450,30750,33050,35300,37600]
["Marin3/6/15 - 3/27/16","Marin","3/6/15 - 3/27/16",41050,46900,52750,58600,63300,68000,72700,77400]
["Mariposa3/6/15 - 3/27/16","Mariposa","3/6/15 - 3/27/16",21700,24800,27900,30950,33450,35950,38400,40900]
["Mendocino3/6/15 - 3/27/16","Mendocino","3/6/15 - 3/27/16",20300,23200,26100,29000,31350,33650,36000,38300]
["Merced3/6/15 - 3/27/16","Merced","3/6/15 - 3/27/16",19950,22800,25650,28450,30750,33050,35300,37600]
["Modoc3/6/15 - 3/27/16","Modoc","3/6/15 - 3/27/16",19950,22800,25650,28450,30750,33050,35300,37600]
["Mono3/6/15 - 3/27/16","Mono","3/6/15 - 3/27/16",27050,30900,34750,38600,41700,44800,47900,51000]
["Monterey3/6/15 - 3/27/16","Monterey","3/6/15 - 3/27/16",25400,29000,32650,36250,39150,42050,44950,47850]
["Napa3/6/15 - 3/27/16","Napa","3/6/15 - 3/27/16",30600,34950,39300,43650,47150,50650,54150,57650]
["Nevada3/6/15 - 3/27/16","Nevada","3/6/15 - 3/27/16",26850,30700,34550,38350,41450,44500,47600,50650]
["Orange3/6/15 - 3/27/16","Orange","3/6/15 - 3/27/16",32800,37500,42200,46850,50600,54350,58100,61850]
["Placer3/6/15 - 3/27/16","Placer","3/6/15 - 3/27/16",25050,28600,32200,35750,38650,41500,44350,47200]
["Plumas3/6/15 - 3/27/16","Plumas","3/6/15 - 3/27/16",19950,22800,25650,28450,30750,33050,35300,37600]
["Riverside3/6/15 - 3/27/16","Riverside","3/6/15 - 3/27/16",21750,24850,27950,31050,33550,36050,38550,41000]
["Sacramento3/6/15 - 3/27/16","Sacramento","3/6/15 - 3/27/16",25050,28600,32200,35750,38650,41500,44350,47200]
["San Benito3/6/15 - 3/27/16","San Benito","3/6/15 - 3/27/16",26100,29800,33550,37250,40250,43250,46200,49200]
["San Bernardino3/6/15 - 3/27/16","San Bernardino","3/6/15 - 3/27/16",21750,24850,27950,31050,33550,36050,38550,41000]
["San Diego3/6/15 - 3/27/16","San Diego","3/6/15 - 3/27/16",28350,32400,36450,40500,43750,47000,50250,53500]
["San Francisco3/6/15 - 3/27/16","San Francisco","3/6/15 - 3/27/16",41050,46900,52750,58600,63300,68000,72700,77400]
["San Joaquin3/6/15 - 3/27/16","San Joaquin","3/6/15 - 3/27/16",20900,23850,26850,29800,32200,34600,37000,39350]
["San Luis Obispo3/6/15 - 3/27/16","San Luis Obispo","3/6/15 - 3/27/16",27000,30850,34700,38550,41650,44750,47850,50900]
["San Mateo3/6/15 - 3/27/16","San Mateo","3/6/15 - 3/27/16",41050,46900,52750,58600,63300,68000,72700,77400]
["Santa Barbara3/6/15 - 3/27/16","Santa Barbara","3/6/15 - 3/27/16",28100,32100,36100,40100,43350,46550,49750,52950]
["Santa Clara3/6/15 - 3/27/16","Santa Clara","3/6/15 - 3/27/16",37250,42550,47850,53150,57450,61700,65950,70200]
["Santa Cruz3/6/15 - 3/27/16","Santa Cruz","3/6/15 - 3/27/16",34550,39450,44400,49300,53250,57200,61150,65100]
["Shasta3/6/15 - 3/27/16","Shasta","3/6/15 - 3/27/16",19950,22800,25650,28450,30750,33050,35300,37600]
["Sierra3/6/15 - 3/27/16","Sierra","3/6/15 - 3/27/16",22250,25400,28600,31750,34300,36850,39400,41950]
["Siskiyou3/6/15 - 3/27/16","Siskiyou","3/6/15 - 3/27/16",19950,22800,25650,28450,30750,33050,35300,37600]
["Solano3/6/15 - 3/27/16","Solano","3/6/15 - 3/27/16",26100,29800,33550,37250,40250,43250,46200,49200]
["Sonoma3/6/15 - 3/27/16","Sonoma","3/6/15 - 3/27/16",28000,32000,36000,39950,43150,46350,49550,52750]
["Stanislaus3/6/15 - 3/27/16","Stanislaus","3/6/15 - 3/27/16",19950,22800,25650,28450,30750,33050,35300,37600]
["Sutter3/6/15 - 3/27/16","Sutter","3/6/15 - 3/27/16",19950,22800,25650,28450,30750,33050,35300,37600]
["Tehama3/6/15 - 3/27/16","Tehama","3/6/15 - 3/27/16",19950,22800,25650,28450,30750,33050,35300,37600]
["Trinity3/6/15 - 3/27/16","Trinity","3/6/15 - 3/27/16",19950,22800,25650,28450,30750,33050,35300,37600]
["Tulare3/6/15 - 3/27/16","Tulare","3/6/15 - 3/27/16",19950,22800,25650,28450,30750,33050,35300,37600]
["Tuolumne3/6/15 - 3/27/16","Tuolumne","3/6/15 - 3/27/16",22300,25450,28650,31800,34350,36900,39450,42000]
["Ventura3/6/15 - 3/27/16","Ventura","3/6/15 - 3/27/16",31750,36250,40800,45300,48950,52550,56200,59800]
["Yolo3/6/15 - 3/27/16","Yolo","3/6/15 - 3/27/16",25300,28900,32500,36100,39000,41900,44800,47700]
["Yuba3/6/15 - 3/27/16","Yuba","3/6/15 - 3/27/16",19950,22800,25650,28450,30750,33050,35300,37600]
["Alameda3/28/16 - 4/13/17","Alameda","3/28/16 - 4/13/17",34150,39000,43900,48750,52650,56550,60450,64350]
["Alpine3/28/16 - 4/13/17","Alpine","3/28/16 - 4/13/17",28750,32850,36950,41050,44350,47650,50950,54200]
["Amador3/28/16 - 4/13/17","Amador","3/28/16 - 4/13/17",24650,28200,31700,35200,38050,40850,43650,46500]
["Butte3/28/16 - 4/13/17","Butte","3/28/16 - 4/13/17",20650,23600,26550,29450,31850,34200,36550,38900]
["Calaveras3/28/16 - 4/13/17","Calaveras","3/28/16 - 4/13/17",24600,28100,31600,35100,37950,40750,43550,46350]
["Colusa3/28/16 - 4/13/17","Colusa","3/28/16 - 4/13/17",20650,23600,26550,29450,31850,34200,36550,38900]
["Contra Costa3/28/16 - 4/13/17","Contra Costa","3/28/16 - 4/13/17",34150,39000,43900,48750,52650,56550,60450,64350]
["Del Norte3/28/16 - 4/13/17","Del Norte","3/28/16 - 4/13/17",20650,23600,26550,29450,31850,34200,36550,38900]
["El Dorado3/28/16 - 4/13/17","El Dorado","3/28/16 - 4/13/17",24300,27800,31250,34700,37500,40300,43050,45850]
["Fresno3/28/16 - 4/13/17","Fresno","3/28/16 - 4/13/17",20650,23600,26550,29450,31850,34200,36550,38900]
["Glenn3/28/16 - 4/13/17","Glenn","3/28/16 - 4/13/17",20650,23600,26550,29450,31850,34200,36550,38900]
["Humboldt3/28/16 - 4/13/17","Humboldt","3/28/16 - 4/13/17",20650,23600,26550,29450,31850,34200,36550,38900]
["Imperial3/28/16 - 4/13/17","Imperial","3/28/16 - 4/13/17",20650,23600,26550,29450,31850,34200,36550,38900]
["Inyo3/28/16 - 4/13/17","Inyo","3/28/16 - 4/13/17",25200,28800,32400,36000,38900,41800,44650,47550]
["Kern3/28/16 - 4/13/17","Kern","3/28/16 - 4/13/17",20650,23600,26550,29450,31850,34200,36550,38900]
["Kings3/28/16 - 4/13/17","Kings","3/28/16 - 4/13/17",20650,23600,26550,29450,31850,34200,36550,38900]
["Lake3/28/16 - 4/13/17","Lake","3/28/16 - 4/13/17",20650,23600,26550,29450,31850,34200,36550,38900]
["Lassen3/28/16 - 4/13/17","Lassen","3/28/16 - 4/13/17",23600,26950,30300,33650,36350,39050,41750,44450]
["Los Angeles3/28/16 - 4/13/17","Los Angeles","3/28/16 - 4/13/17",30400,34750,39100,43400,46900,50350,53850,57300]
["Madera3/28/16 - 4/13/17","Madera","3/28/16 - 4/13/17",20650,23600,26550,29450,31850,34200,36550,38900]
["Marin3/28/16 - 4/13/17","Marin","3/28/16 - 4/13/17",43050,49200,55350,61500,66450,71350,76300,81200]
["Mariposa3/28/16 - 4/13/17","Mariposa","3/28/16 - 4/13/17",22400,25600,28800,31950,34550,37100,39650,42200]
["Mendocino3/28/16 - 4/13/17","Mendocino","3/28/16 - 4/13/17",21350,24400,27450,30450,32900,35350,37800,40200]
["Merced3/28/16 - 4/13/17","Merced","3/28/16 - 4/13/17",20650,23600,26550,29450,31850,34200,36550,38900]
["Modoc3/28/16 - 4/13/17","Modoc","3/28/16 - 4/13/17",20650,23600,26550,29450,31850,34200,36550,38900]
["Mono3/28/16 - 4/13/17","Mono","3/28/16 - 4/13/17",25950,29650,33350,37050,40050,43000,45950,48950]
["Monterey3/28/16 - 4/13/17","Monterey","3/28/16 - 4/13/17",26650,30450,34250,38050,41100,44150,47200,50250]
["Napa3/28/16 - 4/13/17","Napa","3/28/16 - 4/13/17",30600,35000,39350,43700,47200,50700,54200,57700]
["Nevada3/28/16 - 4/13/17","Nevada","3/28/16 - 4/13/17",25550,29200,32850,36450,39400,42300,45200,48150]
["Orange3/28/16 - 4/13/17","Orange","3/28/16 - 4/13/17",34150,39000,43900,48750,52650,56550,60450,64350]
["Placer3/28/16 - 4/13/17","Placer","3/28/16 - 4/13/17",24300,27800,31250,34700,37500,40300,43050,45850]
["Plumas3/28/16 - 4/13/17","Plumas","3/28/16 - 4/13/17",20650,23600,26550,29450,31850,34200,36550,38900]
["Riverside3/28/16 - 4/13/17","Riverside","3/28/16 - 4/13/17",22400,25600,28800,31950,34550,37100,39650,42200]
["Sacramento3/28/16 - 4/13/17","Sacramento","3/28/16 - 4/13/17",24300,27800,31250,34700,37500,40300,43050,45850]
["San Benito3/28/16 - 4/13/17","San Benito","3/28/16 - 4/13/17",27400,31300,35200,39100,42250,45400,48500,51650]
["San Bernardino3/28/16 - 4/13/17","San Bernardino","3/28/16 - 4/13/17",22400,25600,28800,31950,34550,37100,39650,42200]
["San Diego3/28/16 - 4/13/17","San Diego","3/28/16 - 4/13/17",29750,34000,38250,42500,45900,49300,52700,56100]
["San Francisco3/28/16 - 4/13/17","San Francisco","3/28/16 - 4/13/17",43050,49200,55350,61500,66450,71350,76300,81200]
["San Joaquin3/28/16 - 4/13/17","San Joaquin","3/28/16 - 4/13/17",20650,23600,26550,29450,31850,34200,36550,38900]
["San Luis Obispo3/28/16 - 4/13/17","San Luis Obispo","3/28/16 - 4/13/17",26750,30600,34400,38200,41300,44350,47400,50450]
["San Mateo3/28/16 - 4/13/17","San Mateo","3/28/16 - 4/13/17",43050,49200,55350,61500,66450,71350,76300,81200]
["Santa Barbara3/28/16 - 4/13/17","Santa Barbara","3/28/16 - 4/13/17",29500,33700,37900,42100,45500,48850,52250,55600]
["Santa Clara3/28/16 - 4/13/17","Santa Clara","3/28/16 - 4/13/17",39100,44650,50250,55800,60300,64750,69200,73700]
["Santa Cruz3/28/16 - 4/13/17","Santa Cruz","3/28/16 - 4/13/17",32800,37500,42200,46850,50600,54350,58100,61850]
["Shasta3/28/16 - 4/13/17","Shasta","3/28/16 - 4/13/17",20650,23600,26550,29450,31850,34200,36550,38900]
["Sierra3/28/16 - 4/13/17","Sierra","3/28/16 - 4/13/17",23350,26650,30000,33300,36000,38650,41300,44000]
["Siskiyou3/28/16 - 4/13/17","Siskiyou","3/28/16 - 4/13/17",20650,23600,26550,29450,31850,34200,36550,38900]
["Solano3/28/16 - 4/13/17","Solano","3/28/16 - 4/13/17",27200,31050,34950,38800,41950,45050,48150,51250]
["Sonoma3/28/16 - 4/13/17","Sonoma","3/28/16 - 4/13/17",28850,33000,37100,41200,44500,47800,51100,54400]
["Stanislaus3/28/16 - 4/13/17","Stanislaus","3/28/16 - 4/13/17",20650,23600,26550,29450,31850,34200,36550,38900]
["Sutter3/28/16 - 4/13/17","Sutter","3/28/16 - 4/13/17",20650,23600,26550,29450,31850,34200,36550,38900]
["Tehama3/28/16 - 4/13/17","Tehama","3/28/16 - 4/13/17",20650,23600,26550,29450,31850,34200,36550,38900]
["Trinity3/28/16 - 4/13/17","Trinity","3/28/16 - 4/13/17",20650,23600,26550,29450,31850,34200,36550,38900]
["Tulare3/28/16 - 4/13/17","Tulare","3/28/16 - 4/13/17",20650,23600,26550,29450,31850,34200,36550,38900]
["Tuolumne3/28/16 - 4/13/17","Tuolumne","3/28/16 - 4/13/17",21250,24300,27350,30350,32800,35250,37650,40100]
["Ventura3/28/16 - 4/13/17","Ventura","3/28/16 - 4/13/17",32700,37400,42050,46700,50450,54200,57950,61650]
["Yolo3/28/16 - 4/13/17","Yolo","3/28/16 - 4/13/17",25950,29650,33350,37050,40050,43000,45950,48950]
["Yuba3/28/16 - 4/13/17","Yuba","3/28/16 - 4/13/17",20650,23600,26550,29450,31850,34200,36550,38900]
["Alameda4/14/17 - 3/31/18","Alameda","4/14/17 - 3/31/18",36550,41750,46950,52150,56350,60500,64700,68850]
["Alpine4/14/17 - 3/31/18","Alpine","4/14/17 - 3/31/18",27300,31200,35100,39000,42150,45250,48400,51500]
["Amador4/14/17 - 3/31/18","Amador","4/14/17 - 3/31/18",24850,28400,31950,35450,38300,41150,44000,46800]
["Butte4/14/17 - 3/31/18","Butte","4/14/17 - 3/31/18",21950,25050,28200,31300,33850,36350,38850,41350]
["Calaveras4/14/17 - 3/31/18","Calaveras","4/14/17 - 3/31/18",24250,27700,31150,34600,37400,40150,42950,45700]
["Colusa4/14/17 - 3/31/18","Colusa","4/14/17 - 3/31/18",21000,24000,27000,29950,32350,34750,37150,39550]
["Contra Costa4/14/17 - 3/31/18","Contra Costa","4/14/17 - 3/31/18",36550,41750,46950,52150,56350,60500,64700,68850]
["Del Norte4/14/17 - 3/31/18","Del Norte","4/14/17 - 3/31/18",21000,24000,27000,29950,32350,34750,37150,39550]
["El Dorado4/14/17 - 3/31/18","El Dorado","4/14/17 - 3/31/18",26000,29700,33400,37100,40100,43050,46050,49000]
["Fresno4/14/17 - 3/31/18","Fresno","4/14/17 - 3/31/18",21000,24000,27000,29950,32350,34750,37150,39550]
["Glenn4/14/17 - 3/31/18","Glenn","4/14/17 - 3/31/18",21000,24000,27000,29950,32350,34750,37150,39550]
["Humboldt4/14/17 - 3/31/18","Humboldt","4/14/17 - 3/31/18",21000,24000,27000,29950,32350,34750,37150,39550]
["Imperial4/14/17 - 3/31/18","Imperial","4/14/17 - 3/31/18",21000,24000,27000,29950,32350,34750,37150,39550]
["Inyo4/14/17 - 3/31/18","Inyo","4/14/17 - 3/31/18",24950,28500,32050,35600,38450,41300,44150,47000]
["Kern4/14/17 - 3/31/18","Kern","4/14/17 - 3/31/18",21000,24000,27000,29950,32350,34750,37150,39550]
["Kings4/14/17 - 3/31/18","Kings","4/14/17 - 3/31/18",21000,24000,27000,29950,32350,34750,37150,39550]
["Lake4/14/17 - 3/31/18","Lake","4/14/17 - 3/31/18",21000,24000,27000,29950,32350,34750,37150,39550]
["Lassen4/14/17 - 3/31/18","Lassen","4/14/17 - 3/31/18",24100,27550,31000,34400,37200,39950,42700,45450]
["Los Angeles4/14/17 - 3/31/18","Los Angeles","4/14/17 - 3/31/18",31550,36050,40550,45050,48700,52300,55900,59500]
["Madera4/14/17 - 3/31/18","Madera","4/14/17 - 3/31/18",21000,24000,27000,29950,32350,34750,37150,39550]
["Marin4/14/17 - 3/31/18","Marin","4/14/17 - 3/31/18",46100,52650,59250,65800,71100,76350,81600,86900]
["Mariposa4/14/17 - 3/31/18","Mariposa","4/14/17 - 3/31/18",22950,26200,29500,32750,35400,38000,40650,43250]
["Mendocino4/14/17 - 3/31/18","Mendocino","4/14/17 - 3/31/18",21050,24050,27050,30050,32500,34900,37300,39700]
["Merced4/14/17 - 3/31/18","Merced","4/14/17 - 3/31/18",21000,24000,27000,29950,32350,34750,37150,39550]
["Modoc4/14/17 - 3/31/18","Modoc","4/14/17 - 3/31/18",21000,24000,27000,29950,32350,34750,37150,39550]
["Mono4/14/17 - 3/31/18","Mono","4/14/17 - 3/31/18",26550,30350,34150,37900,40950,44000,47000,50050]
["Monterey4/14/17 - 3/31/18","Monterey","4/14/17 - 3/31/18",28500,32600,36650,40700,44000,47250,50500,53750]
["Napa4/14/17 - 3/31/18","Napa","4/14/17 - 3/31/18",32600,37250,41900,46550,50300,54000,57750,61450]
["Nevada4/14/17 - 3/31/18","Nevada","4/14/17 - 3/31/18",26750,30550,34350,38150,41250,44300,47350,50400]
["Orange4/14/17 - 3/31/18","Orange","4/14/17 - 3/31/18",36550,41750,46950,52150,56350,60500,64700,68850]
["Placer4/14/17 - 3/31/18","Placer","4/14/17 - 3/31/18",26000,29700,33400,37100,40100,43050,46050,49000]
["Plumas4/14/17 - 3/31/18","Plumas","4/14/17 - 3/31/18",21950,25050,28200,31300,33850,36350,38850,41350]
["Riverside4/14/17 - 3/31/18","Riverside","4/14/17 - 3/31/18",22600,25800,29050,32250,34850,37450,40000,42600]
["Sacramento4/14/17 - 3/31/18","Sacramento","4/14/17 - 3/31/18",26000,29700,33400,37100,40100,43050,46050,49000]
["San Benito4/14/17 - 3/31/18","San Benito","4/14/17 - 3/31/18",29300,33450,37650,41800,45150,48500,51850,55200]
["San Bernardino4/14/17 - 3/31/18","San Bernardino","4/14/17 - 3/31/18",22600,25800,29050,32250,34850,37450,40000,42600]
["San Diego4/14/17 - 3/31/18","San Diego","4/14/17 - 3/31/18",31850,36400,40950,45450,49100,52750,56400,60000]
["San Francisco4/14/17 - 3/31/18","San Francisco","4/14/17 - 3/31/18",46100,52650,59250,65800,71100,76350,81600,86900]
["San Joaquin4/14/17 - 3/31/18","San Joaquin","4/14/17 - 3/31/18",21400,24450,27500,30550,33000,35450,37900,40350]
["San Luis Obispo4/14/17 - 3/31/18","San Luis Obispo","4/14/17 - 3/31/18",28600,32700,36800,40850,44150,47400,50700,53950]
["San Mateo4/14/17 - 3/31/18","San Mateo","4/14/17 - 3/31/18",46100,52650,59250,65800,71100,76350,81600,86900]
["Santa Barbara4/14/17 - 3/31/18","Santa Barbara","4/14/17 - 3/31/18",31500,36000,40500,45000,48600,52200,55800,59400]
["Santa Clara4/14/17 - 3/31/18","Santa Clara","4/14/17 - 3/31/18",41800,47800,53750,59700,64500,69300,74050,78850]
["Santa Cruz4/14/17 - 3/31/18","Santa Cruz","4/14/17 - 3/31/18",35100,40100,45100,50100,54150,58150,62150,66150]
["Shasta4/14/17 - 3/31/18","Shasta","4/14/17 - 3/31/18",21650,24750,27850,30900,33400,35850,38350,40800]
["Sierra4/14/17 - 3/31/18","Sierra","4/14/17 - 3/31/18",23500,26850,30200,33550,36250,38950,41650,44300]
["Siskiyou4/14/17 - 3/31/18","Siskiyou","4/14/17 - 3/31/18",21000,24000,27000,29950,32350,34750,37150,39550]
["Solano4/14/17 - 3/31/18","Solano","4/14/17 - 3/31/18",28150,32200,36200,40200,43450,46650,49850,53100]
["Sonoma4/14/17 - 3/31/18","Sonoma","4/14/17 - 3/31/18",30850,35250,39650,44050,47600,51100,54650,58150]
["Stanislaus4/14/17 - 3/31/18","Stanislaus","4/14/17 - 3/31/18",21000,24000,27000,29950,32350,34750,37150,39550]
["Sutter4/14/17 - 3/31/18","Sutter","4/14/17 - 3/31/18",21000,24000,27000,29950,32350,34750,37150,39550]
["Tehama4/14/17 - 3/31/18","Tehama","4/14/17 - 3/31/18",21000,24000,27000,29950,32350,34750,37150,39550]
["Trinity4/14/17 - 3/31/18","Trinity","4/14/17 - 3/31/18",21000,24000,27000,29950,32350,34750,37150,39550]
["Tulare4/14/17 - 3/31/18","Tulare","4/14/17 - 3/31/18",21000,24000,27000,29950,32350,34750,37150,39550]
["Tuolumne4/14/17 - 3/31/18","Tuolumne","4/14/17 - 3/31/18",21100,24100,27100,30100,32550,34950,37350,39750]
["Ventura4/14/17 - 3/31/18","Ventura","4/14/17 - 3/31/18",35000,40000,45000,49950,53950,57950,61950,65950]
["Yolo4/14/17 - 3/31/18","Yolo","4/14/17 - 3/31/18",26150,29900,33650,37350,40350,43350,46350,49350]
["Yuba4/14/17 - 3/31/18","Yuba","4/14/17 - 3/31/18",21000,24000,27000,29950,32350,34750,37150,39550]
["Alameda4/1/18 - 4/23/19","Alameda","4/1/18 - 4/23/19",40700,46500,52300,58100,62750,67400,72050,76700]
["Alpine4/1/18 - 4/23/19","Alpine","4/1/18 - 4/23/19",27250,31150,35050,38900,42050,45150,48250,51350]
["Amador4/1/18 - 4/23/19","Amador","4/1/18 - 4/23/19",25800,29450,33150,36800,39750,42700,45650,48600]
["Butte4/1/18 - 4/23/19","Butte","4/1/18 - 4/23/19",21200,24200,27250,30250,32700,35100,37550,39950]
["Calaveras4/1/18 - 4/23/19","Calaveras","4/1/18 - 4/23/19",25350,28950,32550,36150,39050,41950,44850,47750]
["Colusa4/1/18 - 4/23/19","Colusa","4/1/18 - 4/23/19",20900,23900,26900,29850,32250,34650,37050,39450]
["Contra Costa4/1/18 - 4/23/19","Contra Costa","4/1/18 - 4/23/19",40700,46500,52300,58100,62750,67400,72050,76700]
["Del Norte4/1/18 - 4/23/19","Del Norte","4/1/18 - 4/23/19",20900,23900,26900,29850,32250,34650,37050,39450]
["El Dorado4/1/18 - 4/23/19","El Dorado","4/1/18 - 4/23/19",28050,32050,36050,40050,43300,46500,49700,52900]
["Fresno4/1/18 - 4/23/19","Fresno","4/1/18 - 4/23/19",20900,23900,26900,29850,32250,34650,37050,39450]
["Glenn4/1/18 - 4/23/19","Glenn","4/1/18 - 4/23/19",20900,23900,26900,29850,32250,34650,37050,39450]
["Humboldt4/1/18 - 4/23/19","Humboldt","4/1/18 - 4/23/19",20900,23900,26900,29850,32250,34650,37050,39450]
["Imperial4/1/18 - 4/23/19","Imperial","4/1/18 - 4/23/19",20900,23900,26900,29850,32250,34650,37050,39450]
["Inyo4/1/18 - 4/23/19","Inyo","4/1/18 - 4/23/19",24900,28450,32000,35550,38400,41250,44100,46950]
["Kern4/1/18 - 4/23/19","Kern","4/1/18 - 4/23/19",20900,23900,26900,29850,32250,34650,37050,39450]
["Kings4/1/18 - 4/23/19","Kings","4/1/18 - 4/23/19",20900,23900,26900,29850,32250,34650,37050,39450]
["Lake4/1/18 - 4/23/19","Lake","4/1/18 - 4/23/19",20900,23900,26900,29850,32250,34650,37050,39450]
["Lassen4/1/18 - 4/23/19","Lassen","4/1/18 - 4/23/19",23800,27200,30600,34000,36750,39450,42200,44900]
["Los Angeles4/1/18 - 4/23/19","Los Angeles","4/1/18 - 4/23/19",33950,38800,43650,48450,52350,56250,60100,64000]
["Madera4/1/18 - 4/23/19","Madera","4/1/18 - 4/23/19",20900,23900,26900,29850,32250,34650,37050,39450]
["Marin4/1/18 - 4/23/19","Marin","4/1/18 - 4/23/19",51350,58650,66000,73300,79200,85050,90900,96800]
["Mariposa4/1/18 - 4/23/19","Mariposa","4/1/18 - 4/23/19",22500,25700,28900,32100,34700,37250,39850,42400]
["Mendocino4/1/18 - 4/23/19","Mendocino","4/1/18 - 4/23/19",21250,24250,27300,30300,32750,35150,37600,40000]
["Merced4/1/18 - 4/23/19","Merced","4/1/18 - 4/23/19",20900,23900,26900,29850,32250,34650,37050,39450]
["Modoc4/1/18 - 4/23/19","Modoc","4/1/18 - 4/23/19",20900,23900,26900,29850,32250,34650,37050,39450]
["Mono4/1/18 - 4/23/19","Mono","4/1/18 - 4/23/19",27150,31000,34900,38750,41850,44950,48050,51150]
["Monterey4/1/18 - 4/23/19","Monterey","4/1/18 - 4/23/19",29250,33400,37600,41750,45100,48450,51800,55150]
["Napa4/1/18 - 4/23/19","Napa","4/1/18 - 4/23/19",32150,36750,41350,45900,49600,53250,56950,60600]
["Nevada4/1/18 - 4/23/19","Nevada","4/1/18 - 4/23/19",25400,29000,32650,36250,39150,42050,44950,47850]
["Orange4/1/18 - 4/23/19","Orange","4/1/18 - 4/23/19",38300,43750,49200,54650,59050,63400,67800,72150]
["Placer4/1/18 - 4/23/19","Placer","4/1/18 - 4/23/19",28050,32050,36050,40050,43300,46500,49700,52900]
["Plumas4/1/18 - 4/23/19","Plumas","4/1/18 - 4/23/19",22200,25350,28500,31650,34200,36750,39250,41800]
["Riverside4/1/18 - 4/23/19","Riverside","4/1/18 - 4/23/19",23600,27000,30350,33700,36400,39100,41800,44500]
["Sacramento4/1/18 - 4/23/19","Sacramento","4/1/18 - 4/23/19",28050,32050,36050,40050,43300,46500,49700,52900]
["San Benito4/1/18 - 4/23/19","San Benito","4/1/18 - 4/23/19",32600,37250,41900,46550,50300,54000,57750,61450]
["San Bernardino4/1/18 - 4/23/19","San Bernardino","4/1/18 - 4/23/19",23600,27000,30350,33700,36400,39100,41800,44500]
["San Diego4/1/18 - 4/23/19","San Diego","4/1/18 - 4/23/19",34100,38950,43800,48650,52550,56450,60350,64250]
["San Francisco4/1/18 - 4/23/19","San Francisco","4/1/18 - 4/23/19",51350,58650,66000,73300,79200,85050,90900,96800]
["San Joaquin4/1/18 - 4/23/19","San Joaquin","4/1/18 - 4/23/19",22300,25500,28700,31850,34400,36950,39500,42050]
["San Luis Obispo4/1/18 - 4/23/19","San Luis Obispo","4/1/18 - 4/23/19",29150,33300,37450,41600,44950,48300,51600,54950]
["San Mateo4/1/18 - 4/23/19","San Mateo","4/1/18 - 4/23/19",51350,58650,66000,73300,79200,85050,90900,96800]
["Santa Barbara4/1/18 - 4/23/19","Santa Barbara","4/1/18 - 4/23/19",35150,40150,45150,50150,54200,58200,62200,66200]
["Santa Clara4/1/18 - 4/23/19","Santa Clara","4/1/18 - 4/23/19",46550,53200,59850,66500,71850,77150,82500,87800]
["Santa Cruz4/1/18 - 4/23/19","Santa Cruz","4/1/18 - 4/23/19",39100,44650,50250,55800,60300,64750,69200,73700]
["Shasta4/1/18 - 4/23/19","Shasta","4/1/18 - 4/23/19",21500,24600,27650,30700,33200,35650,38100,40550]
["Sierra4/1/18 - 4/23/19","Sierra","4/1/18 - 4/23/19",24300,27800,31250,34700,37500,40300,43050,45850]
["Siskiyou4/1/18 - 4/23/19","Siskiyou","4/1/18 - 4/23/19",20900,23900,26900,29850,32250,34650,37050,39450]
["Solano4/1/18 - 4/23/19","Solano","4/1/18 - 4/23/19",29300,33500,37700,41850,45200,48550,51900,55250]
["Sonoma4/1/18 - 4/23/19","Sonoma","4/1/18 - 4/23/19",34400,39300,44200,49100,53050,57000,60900,64850]
["Stanislaus4/1/18 - 4/23/19","Stanislaus","4/1/18 - 4/23/19",21250,24300,27350,30350,32800,35250,37650,40100]
["Sutter4/1/18 - 4/23/19","Sutter","4/1/18 - 4/23/19",21000,24000,27000,30000,32400,34800,37200,39600]
["Tehama4/1/18 - 4/23/19","Tehama","4/1/18 - 4/23/19",20900,23900,26900,29850,32250,34650,37050,39450]
["Trinity4/1/18 - 4/23/19","Trinity","4/1/18 - 4/23/19",20900,23900,26900,29850,32250,34650,37050,39450]
["Tulare4/1/18 - 4/23/19","Tulare","4/1/18 - 4/23/19",20900,23900,26900,29850,32250,34650,37050,39450]
["Tuolumne4/1/18 - 4/23/19","Tuolumne","4/1/18 - 4/23/19",22150,25300,28450,31600,34150,36700,39200,41750]
["Ventura4/1/18 - 4/23/19","Ventura","4/1/18 - 4/23/19",35500,40600,45650,50700,54800,58850,62900,66950]
["Yolo4/1/18 - 4/23/19","Yolo","4/1/18 - 4/23/19",29150,33300,37450,41600,44950,48300,51600,54950]
["Yuba4/1/18 - 4/23/19","Yuba","4/1/18 - 4/23/19",21000,24000,27000,30000,32400,34800,37200,39600]
["Alameda4/24/19 - 3/31/20","Alameda","4/24/19 - 3/31/20",43400,49600,55800,61950,66950,71900,76850,81800]
["Alpine4/24/19 - 3/31/20","Alpine","4/24/19 - 3/31/20",28050,32050,36050,40050,43300,46500,49700,52900]
["Amador4/24/19 - 3/31/20","Amador","4/24/19 - 3/31/20",25550,29200,32850,36500,39450,42350,45300,48200]
["Butte4/24/19 - 3/31/20","Butte","4/24/19 - 3/31/20",23300,26600,29950,33250,35950,38600,41250,43900]
["Calaveras4/24/19 - 3/31/20","Calaveras","4/24/19 - 3/31/20",26400,30150,33900,37650,40700,43700,46700,49700]
["Colusa4/24/19 - 3/31/20","Colusa","4/24/19 - 3/31/20",22700,25950,29200,32400,35000,37600,40200,42800]
["Contra Costa4/24/19 - 3/31/20","Contra Costa","4/24/19 - 3/31/20",43400,49600,55800,61950,66950,71900,76850,81800]
["Del Norte4/24/19 - 3/31/20","Del Norte","4/24/19 - 3/31/20",22700,25950,29200,32400,35000,37600,40200,42800]
["El Dorado4/24/19 - 3/31/20","El Dorado","4/24/19 - 3/31/20",29300,33450,37650,41800,45150,48500,51850,55200]
["Fresno4/24/19 - 3/31/20","Fresno","4/24/19 - 3/31/20",22700,25950,29200,32400,35000,37600,40200,42800]
["Glenn4/24/19 - 3/31/20","Glenn","4/24/19 - 3/31/20",22700,25950,29200,32400,35000,37600,40200,42800]
["Humboldt4/24/19 - 3/31/20","Humboldt","4/24/19 - 3/31/20",22700,25950,29200,32400,35000,37600,40200,42800]
["Imperial4/24/19 - 3/31/20","Imperial","4/24/19 - 3/31/20",22700,25950,29200,32400,35000,37600,40200,42800]
["Inyo4/24/19 - 3/31/20","Inyo","4/24/19 - 3/31/20",25450,29100,32750,36350,39300,42200,45100,48000]
["Kern4/24/19 - 3/31/20","Kern","4/24/19 - 3/31/20",22700,25950,29200,32400,35000,37600,40200,42800]
["Kings4/24/19 - 3/31/20","Kings","4/24/19 - 3/31/20",22700,25950,29200,32400,35000,37600,40200,42800]
["Lake4/24/19 - 3/31/20","Lake","4/24/19 - 3/31/20",22700,25950,29200,32400,35000,37600,40200,42800]
["Lassen4/24/19 - 3/31/20","Lassen","4/24/19 - 3/31/20",23950,27350,30750,34150,36900,39650,42350,45100]
["Los Angeles4/24/19 - 3/31/20","Los Angeles","4/24/19 - 3/31/20",36550,41800,47000,52200,56400,60600,64750,68950]
["Madera4/24/19 - 3/31/20","Madera","4/24/19 - 3/31/20",22700,25950,29200,32400,35000,37600,40200,42800]
["Marin4/24/19 - 3/31/20","Marin","4/24/19 - 3/31/20",56450,64500,72550,80600,87050,93500,99950,106400]
["Mariposa4/24/19 - 3/31/20","Mariposa","4/24/19 - 3/31/20",22700,25950,29200,32400,35000,37600,40200,42800]
["Mendocino4/24/19 - 3/31/20","Mendocino","4/24/19 - 3/31/20",22700,25950,29200,32400,35000,37600,40200,42800]
["Merced4/24/19 - 3/31/20","Merced","4/24/19 - 3/31/20",22700,25950,29200,32400,35000,37600,40200,42800]
["Modoc4/24/19 - 3/31/20","Modoc","4/24/19 - 3/31/20",22700,25950,29200,32400,35000,37600,40200,42800]
["Mono4/24/19 - 3/31/20","Mono","4/24/19 - 3/31/20",27300,31200,35100,38950,42100,45200,48300,51450]
["Monterey4/24/19 - 3/31/20","Monterey","4/24/19 - 3/31/20",31450,35950,40450,44900,48500,52100,55700,59300]
["Napa4/24/19 - 3/31/20","Napa","4/24/19 - 3/31/20",35150,40200,45200,50200,54250,58250,62250,66300]
["Nevada4/24/19 - 3/31/20","Nevada","4/24/19 - 3/31/20",27900,31900,35900,39850,43050,46250,49450,52650]
["Orange4/24/19 - 3/31/20","Orange","4/24/19 - 3/31/20",41550,47500,53450,59350,64100,68850,73600,78350]
["Placer4/24/19 - 3/31/20","Placer","4/24/19 - 3/31/20",29300,33450,37650,41800,45150,48500,51850,55200]
["Plumas4/24/19 - 3/31/20","Plumas","4/24/19 - 3/31/20",24400,27850,31350,34800,37600,40400,43200,45950]
["Riverside4/24/19 - 3/31/20","Riverside","4/24/19 - 3/31/20",25150,28750,32350,35900,38800,41650,44550,47400]
["Sacramento4/24/19 - 3/31/20","Sacramento","4/24/19 - 3/31/20",29300,33450,37650,41800,45150,48500,51850,55200]
["San Benito4/24/19 - 3/31/20","San Benito","4/24/19 - 3/31/20",35700,40800,45900,51000,55100,59200,63250,67350]
["San Bernardino4/24/19 - 3/31/20","San Bernardino","4/24/19 - 3/31/20",25150,28750,32350,35900,38800,41650,44550,47400]
["San Diego4/24/19 - 3/31/20","San Diego","4/24/19 - 3/31/20",37450,42800,48150,53500,57800,62100,66350,70650]
["San Francisco4/24/19 - 3/31/20","San Francisco","4/24/19 - 3/31/20",56450,64500,72550,80600,87050,93500,99950,106400]
["San Joaquin4/24/19 - 3/31/20","San Joaquin","4/24/19 - 3/31/20",24500,28000,31500,35000,37800,40600,43400,46200]
["San Luis Obispo4/24/19 - 3/31/20","San Luis Obispo","4/24/19 - 3/31/20",31500,36000,40500,44950,48550,52150,55750,59350]
["San Mateo4/24/19 - 3/31/20","San Mateo","4/24/19 - 3/31/20",56450,64500,72550,80600,87050,93500,99950,106400]
["Santa Barbara4/24/19 - 3/31/20","Santa Barbara","4/24/19 - 3/31/20",38650,44150,49650,55150,59600,64000,68400,72800]
["Santa Clara4/24/19 - 3/31/20","Santa Clara","4/24/19 - 3/31/20",51250,58550,65850,73150,79050,84900,90750,96600]
["Santa Cruz4/24/19 - 3/31/20","Santa Cruz","4/24/19 - 3/31/20",42950,49100,55250,61350,66300,71200,76100,81000]
["Shasta4/24/19 - 3/31/20","Shasta","4/24/19 - 3/31/20",22700,25950,29200,32400,35000,37600,40200,42800]
["Sierra4/24/19 - 3/31/20","Sierra","4/24/19 - 3/31/20",26400,30200,33950,37700,40750,43750,46750,49800]
["Siskiyou4/24/19 - 3/31/20","Siskiyou","4/24/19 - 3/31/20",22700,25950,29200,32400,35000,37600,40200,42800]
["Solano4/24/19 - 3/31/20","Solano","4/24/19 - 3/31/20",30000,34300,38600,42850,46300,49750,53150,56600]
["Sonoma4/24/19 - 3/31/20","Sonoma","4/24/19 - 3/31/20",37800,43200,48600,54000,58350,62650,67000,71300]
["Stanislaus4/24/19 - 3/31/20","Stanislaus","4/24/19 - 3/31/20",22700,25950,29200,32400,35000,37600,40200,42800]
["Sutter4/24/19 - 3/31/20","Sutter","4/24/19 - 3/31/20",22700,25950,29200,32400,35000,37600,40200,42800]
["Tehama4/24/19 - 3/31/20","Tehama","4/24/19 - 3/31/20",22700,25950,29200,32400,35000,37600,40200,42800]
["Trinity4/24/19 - 3/31/20","Trinity","4/24/19 - 3/31/20",22700,25950,29200,32400,35000,37600,40200,42800]
["Tulare4/24/19 - 3/31/20","Tulare","4/24/19 - 3/31/20",22700,25950,29200,32400,35000,37600,40200,42800]
["Tuolumne4/24/19 - 3/31/20","Tuolumne","4/24/19 - 3/31/20",23000,26300,29600,32850,35500,38150,40750,43400]
["Ventura4/24/19 - 3/31/20","Ventura","4/24/19 - 3/31/20",36650,41850,47100,52300,56500,60700,64900,69050]
["Yolo4/24/19 - 3/31/20","Yolo","4/24/19 - 3/31/20",30800,35200,39600,43950,47500,51000,54500,58050]
["Yuba4/24/19 - 3/31/20","Yuba","4/24/19 - 3/31/20",22700,25950,29200,32400,35000,37600,40200,42800]
["Alameda4/1/20 - 3/31/21","Alameda","4/1/20 - 3/31/21",45700,52200,58750,65250,70500,75700,80950,86150]
["Alpine4/1/20 - 3/31/21","Alpine","4/1/20 - 3/31/21",29150,33300,37450,41600,44950,48300,51600,54950]
["Amador4/1/20 - 3/31/21","Amador","4/1/20 - 3/31/21",27550,31500,35450,39350,42500,45650,48800,51950]
["Butte4/1/20 - 3/31/21","Butte","4/1/20 - 3/31/21",24750,28300,31850,35350,38200,41050,43850,46700]
["Calaveras4/1/20 - 3/31/21","Calaveras","4/1/20 - 3/31/21",28150,32200,36200,40200,43450,46650,49850,53100]
["Colusa4/1/20 - 3/31/21","Colusa","4/1/20 - 3/31/21",24500,28000,31500,34950,37750,40550,43350,46150]
["Contra Costa4/1/20 - 3/31/21","Contra Costa","4/1/20 - 3/31/21",45700,52200,58750,65250,70500,75700,80950,86150]
["Del Norte4/1/20 - 3/31/21","Del Norte","4/1/20 - 3/31/21",24500,28000,31500,34950,37750,40550,43350,46150]
["El Dorado4/1/20 - 3/31/21","El Dorado","4/1/20 - 3/31/21",30250,34550,38850,43150,46650,50100,53550,57000]
["Fresno4/1/20 - 3/31/21","Fresno","4/1/20 - 3/31/21",24500,28000,31500,34950,37750,40550,43350,46150]
["Glenn4/1/20 - 3/31/21","Glenn","4/1/20 - 3/31/21",24500,28000,31500,34950,37750,40550,43350,46150]
["Humboldt4/1/20 - 3/31/21","Humboldt","4/1/20 - 3/31/21",24500,28000,31500,34950,37750,40550,43350,46150]
["Imperial4/1/20 - 3/31/21","Imperial","4/1/20 - 3/31/21",24500,28000,31500,34950,37750,40550,43350,46150]
["Inyo4/1/20 - 3/31/21","Inyo","4/1/20 - 3/31/21",26300,30050,33800,37550,40600,43600,46600,49600]
["Kern4/1/20 - 3/31/21","Kern","4/1/20 - 3/31/21",24500,28000,31500,34950,37750,40550,43350,46150]
["Kings4/1/20 - 3/31/21","Kings","4/1/20 - 3/31/21",24500,28000,31500,34950,37750,40550,43350,46150]
["Lake4/1/20 - 3/31/21","Lake","4/1/20 - 3/31/21",24500,28000,31500,34950,37750,40550,43350,46150]
["Lassen4/1/20 - 3/31/21","Lassen","4/1/20 - 3/31/21",24750,28300,31850,35350,38200,41050,43850,46700]
["Los Angeles4/1/20 - 3/31/21","Los Angeles","4/1/20 - 3/31/21",39450,45050,50700,56300,60850,65350,69850,74350]
["Madera4/1/20 - 3/31/21","Madera","4/1/20 - 3/31/21",24500,28000,31500,34950,37750,40550,43350,46150]
["Marin4/1/20 - 3/31/21","Marin","4/1/20 - 3/31/21",60900,69600,78300,87000,94000,100950,107900,114850]
["Mariposa4/1/20 - 3/31/21","Mariposa","4/1/20 - 3/31/21",24500,28000,31500,34950,37750,40550,43350,46150]
["Mendocino4/1/20 - 3/31/21","Mendocino","4/1/20 - 3/31/21",24500,28000,31500,34950,37750,40550,43350,46150]
["Merced4/1/20 - 3/31/21","Merced","4/1/20 - 3/31/21",24500,28000,31500,34950,37750,40550,43350,46150]
["Modoc4/1/20 - 3/31/21","Modoc","4/1/20 - 3/31/21",24500,28000,31500,34950,37750,40550,43350,46150]
["Mono4/1/20 - 3/31/21","Mono","4/1/20 - 3/31/21",28350,32400,36450,40450,43700,46950,50200,53400]
["Monterey4/1/20 - 3/31/21","Monterey","4/1/20 - 3/31/21",33950,38800,43650,48450,52350,56250,60100,64000]
["Napa4/1/20 - 3/31/21","Napa","4/1/20 - 3/31/21",37950,43350,48750,54150,58500,62850,67150,71500]
["Nevada4/1/20 - 3/31/21","Nevada","4/1/20 - 3/31/21",30100,34400,38700,43000,46450,49900,53350,56800]
["Orange4/1/20 - 3/31/21","Orange","4/1/20 - 3/31/21",44850,51250,57650,64050,69200,74300,79450,84550]
["Placer4/1/20 - 3/31/21","Placer","4/1/20 - 3/31/21",30250,34550,38850,43150,46650,50100,53550,57000]
["Plumas4/1/20 - 3/31/21","Plumas","4/1/20 - 3/31/21",25300,28900,32500,36100,39000,41900,44800,47700]
["Riverside4/1/20 - 3/31/21","Riverside","4/1/20 - 3/31/21",26400,30150,33900,37650,40700,43700,46700,49700]
["Sacramento4/1/20 - 3/31/21","Sacramento","4/1/20 - 3/31/21",30250,34550,38850,43150,46650,50100,53550,57000]
["San Benito4/1/20 - 3/31/21","San Benito","4/1/20 - 3/31/21",34900,39900,44900,49850,53850,57850,61850,65850]
["San Bernardino4/1/20 - 3/31/21","San Bernardino","4/1/20 - 3/31/21",26400,30150,33900,37650,40700,43700,46700,49700]
["San Diego4/1/20 - 3/31/21","San Diego","4/1/20 - 3/31/21",40450,46200,52000,57750,62400,67000,71650,76250]
["San Francisco4/1/20 - 3/31/21","San Francisco","4/1/20 - 3/31/21",60900,69600,78300,87000,94000,100950,107900,114850]
["San Joaquin4/1/20 - 3/31/21","San Joaquin","4/1/20 - 3/31/21",26250,30000,33750,37500,40500,43500,46500,49500]
["San Luis Obispo4/1/20 - 3/31/21","San Luis Obispo","4/1/20 - 3/31/21",33950,38800,43650,48500,52400,56300,60150,64050]
["San Mateo4/1/20 - 3/31/21","San Mateo","4/1/20 - 3/31/21",60900,69600,78300,87000,94000,100950,107900,114850]
["Santa Barbara4/1/20 - 3/31/21","Santa Barbara","4/1/20 - 3/31/21",41650,47600,53550,59500,64300,69050,73800,78550]
["Santa Clara4/1/20 - 3/31/21","Santa Clara","4/1/20 - 3/31/21",55300,63200,71100,78950,85300,91600,97900,104250]
["Santa Cruz4/1/20 - 3/31/21","Santa Cruz","4/1/20 - 3/31/21",46350,53000,59600,66200,71500,76800,82100,87400]
["Shasta4/1/20 - 3/31/21","Shasta","4/1/20 - 3/31/21",24500,28000,31500,34950,37750,40550,43350,46150]
["Sierra4/1/20 - 3/31/21","Sierra","4/1/20 - 3/31/21",28200,32200,36250,40250,43500,46700,49950,53150]
["Siskiyou4/1/20 - 3/31/21","Siskiyou","4/1/20 - 3/31/21",24500,28000,31500,34950,37750,40550,43350,46150]
["Solano4/1/20 - 3/31/21","Solano","4/1/20 - 3/31/21",32400,37000,41650,46250,49950,53650,57350,61050]
["Sonoma4/1/20 - 3/31/21","Sonoma","4/1/20 - 3/31/21",39800,45450,51150,56800,61350,65900,70450,75000]
["Stanislaus4/1/20 - 3/31/21","Stanislaus","4/1/20 - 3/31/21",24500,28000,31500,34950,37750,40550,43350,46150]
["Sutter4/1/20 - 3/31/21","Sutter","4/1/20 - 3/31/21",24500,28000,31500,34950,37750,40550,43350,46150]
["Tehama4/1/20 - 3/31/21","Tehama","4/1/20 - 3/31/21",24500,28000,31500,34950,37750,40550,43350,46150]
["Trinity4/1/20 - 3/31/21","Trinity","4/1/20 - 3/31/21",24500,28000,31500,34950,37750,40550,43350,46150]
["Tulare4/1/20 - 3/31/21","Tulare","4/1/20 - 3/31/21",24500,28000,31500,34950,37750,40550,43350,46150]
["Tuolumne4/1/20 - 3/31/21","Tuolumne","4/1/20 - 3/31/21",24850,28400,31950,35450,38300,41150,44000,46800]
["Ventura4/1/20 - 3/31/21","Ventura","4/1/20 - 3/31/21",39550,45200,50850,56450,61000,65500,70000,74550]
["Yolo4/1/20 - 3/31/21","Yolo","4/1/20 - 3/31/21",32400,37000,41650,46250,49950,53650,57350,61050]
["Yuba4/1/20 - 3/31/21","Yuba","4/1/20 - 3/31/21",24500,28000,31500,34950,37750,40550,43350,46150]
["Alameda4/1/21 - 4/17/22","Alameda","4/1/21 - 4/17/22",47950,54800,61650,68500,74000,79500,84950,90450]
["Alpine4/1/21 - 4/17/22","Alpine","4/1/21 - 4/17/22",28450,32500,36550,40600,43850,47100,50350,53600]
["Amador4/1/21 - 4/17/22","Amador","4/1/21 - 4/17/22",27300,31200,35100,38950,42100,45200,48300,51450]
["Butte4/1/21 - 4/17/22","Butte","4/1/21 - 4/17/22",24400,27900,31400,34850,37650,40450,43250,46050]
["Calaveras4/1/21 - 4/17/22","Calaveras","4/1/21 - 4/17/22",28600,32700,36800,40850,44150,47400,50700,53950]
["Colusa4/1/21 - 4/17/22","Colusa","4/1/21 - 4/17/22",24400,27900,31400,34850,37650,40450,43250,46050]
["Contra Costa4/1/21 - 4/17/22","Contra Costa","4/1/21 - 4/17/22",47950,54800,61650,68500,74000,79500,84950,90450]
["Del Norte4/1/21 - 4/17/22","Del Norte","4/1/21 - 4/17/22",24400,27900,31400,34850,37650,40450,43250,46050]
["El Dorado4/1/21 - 4/17/22","El Dorado","4/1/21 - 4/17/22",31750,36250,40800,45300,48950,52550,56200,59800]
["Fresno4/1/21 - 4/17/22","Fresno","4/1/21 - 4/17/22",24400,27900,31400,34850,37650,40450,43250,46050]
["Glenn4/1/21 - 4/17/22","Glenn","4/1/21 - 4/17/22",24400,27900,31400,34850,37650,40450,43250,46050]
["Humboldt4/1/21 - 4/17/22","Humboldt","4/1/21 - 4/17/22",24400,27900,31400,34850,37650,40450,43250,46050]
["Imperial4/1/21 - 4/17/22","Imperial","4/1/21 - 4/17/22",24400,27900,31400,34850,37650,40450,43250,46050]
["Inyo4/1/21 - 4/17/22","Inyo","4/1/21 - 4/17/22",25950,29650,33350,37050,40050,43000,45950,48950]
["Kern4/1/21 - 4/17/22","Kern","4/1/21 - 4/17/22",24400,27900,31400,34850,37650,40450,43250,46050]
["Kings4/1/21 - 4/17/22","Kings","4/1/21 - 4/17/22",24400,27900,31400,34850,37650,40450,43250,46050]
["Lake4/1/21 - 4/17/22","Lake","4/1/21 - 4/17/22",24400,27900,31400,34850,37650,40450,43250,46050]
["Lassen4/1/21 - 4/17/22","Lassen","4/1/21 - 4/17/22",25300,28900,32500,36100,39000,41900,44800,47700]
["Los Angeles4/1/21 - 4/17/22","Los Angeles","4/1/21 - 4/17/22",41400,47300,53200,59100,63850,68600,73300,78050]
["Madera4/1/21 - 4/17/22","Madera","4/1/21 - 4/17/22",24400,27900,31400,34850,37650,40450,43250,46050]
["Marin4/1/21 - 4/17/22","Marin","4/1/21 - 4/17/22",63950,73100,82250,91350,98700,106000,113300,120600]
["Mariposa4/1/21 - 4/17/22","Mariposa","4/1/21 - 4/17/22",24400,27900,31400,34850,37650,40450,43250,46050]
["Mendocino4/1/21 - 4/17/22","Mendocino","4/1/21 - 4/17/22",25350,28950,32550,36150,39050,41950,44850,47750]
["Merced4/1/21 - 4/17/22","Merced","4/1/21 - 4/17/22",24400,27900,31400,34850,37650,40450,43250,46050]
["Modoc4/1/21 - 4/17/22","Modoc","4/1/21 - 4/17/22",24400,27900,31400,34850,37650,40450,43250,46050]
["Mono4/1/21 - 4/17/22","Mono","4/1/21 - 4/17/22",27650,31600,35550,39450,42650,45800,48950,52100]
["Monterey4/1/21 - 4/17/22","Monterey","4/1/21 - 4/17/22",35600,40700,45800,50850,54950,59000,63100,67150]
["Napa4/1/21 - 4/17/22","Napa","4/1/21 - 4/17/22",39800,45500,51200,56850,61400,65950,70500,75050]
["Nevada4/1/21 - 4/17/22","Nevada","4/1/21 - 4/17/22",31450,35950,40450,44900,48500,52100,55700,59300]
["Orange4/1/21 - 4/17/22","Orange","4/1/21 - 4/17/22",47100,53800,60550,67250,72650,78050,83400,88800]
["Placer4/1/21 - 4/17/22","Placer","4/1/21 - 4/17/22",31750,36250,40800,45300,48950,52550,56200,59800]
["Plumas4/1/21 - 4/17/22","Plumas","4/1/21 - 4/17/22",25600,29250,32900,36550,39500,42400,45350,48250]
["Riverside4/1/21 - 4/17/22","Riverside","4/1/21 - 4/17/22",27650,31600,35550,39500,42700,45850,49000,52150]
["Sacramento4/1/21 - 4/17/22","Sacramento","4/1/21 - 4/17/22",31750,36250,40800,45300,48950,52550,56200,59800]
["San Benito4/1/21 - 4/17/22","San Benito","4/1/21 - 4/17/22",34200,39050,43950,48800,52750,56650,60550,64450]
["San Bernardino4/1/21 - 4/17/22","San Bernardino","4/1/21 - 4/17/22",27650,31600,35550,39500,42700,45850,49000,52150]
["San Diego4/1/21 - 4/17/22","San Diego","4/1/21 - 4/17/22",42450,48500,54550,60600,65450,70300,75150,80000]
["San Francisco4/1/21 - 4/17/22","San Francisco","4/1/21 - 4/17/22",63950,73100,82250,91350,98700,106000,113300,120600]
["San Joaquin4/1/21 - 4/17/22","San Joaquin","4/1/21 - 4/17/22",25900,29600,33300,37000,40000,42950,45900,48850]
["San Luis Obispo4/1/21 - 4/17/22","San Luis Obispo","4/1/21 - 4/17/22",34250,39150,44050,48900,52850,56750,60650,64550]
["San Mateo4/1/21 - 4/17/22","San Mateo","4/1/21 - 4/17/22",63950,73100,82250,91350,98700,106000,113300,120600]
["Santa Barbara4/1/21 - 4/17/22","Santa Barbara","4/1/21 - 4/17/22",43750,50000,56250,62450,67450,72450,77450,82450]
["Santa Clara4/1/21 - 4/17/22","Santa Clara","4/1/21 - 4/17/22",58000,66300,74600,82850,89500,96150,102750,109400]
["Santa Cruz4/1/21 - 4/17/22","Santa Cruz","4/1/21 - 4/17/22",48650,55600,62550,69500,75100,80650,86200,91750]
["Shasta4/1/21 - 4/17/22","Shasta","4/1/21 - 4/17/22",24850,28400,31950,35500,38350,41200,44050,46900]
["Sierra4/1/21 - 4/17/22","Sierra","4/1/21 - 4/17/22",29600,33800,38050,42250,45650,49050,52400,55800]
["Siskiyou4/1/21 - 4/17/22","Siskiyou","4/1/21 - 4/17/22",24400,27900,31400,34850,37650,40450,43250,46050]
["Solano4/1/21 - 4/17/22","Solano","4/1/21 - 4/17/22",34000,38850,43700,48550,52450,56350,60250,64100]
["Sonoma4/1/21 - 4/17/22","Sonoma","4/1/21 - 4/17/22",40750,46550,52350,58150,62850,67500,72150,76800]
["Stanislaus4/1/21 - 4/17/22","Stanislaus","4/1/21 - 4/17/22",25000,28550,32100,35650,38550,41400,44250,47100]
["Sutter4/1/21 - 4/17/22","Sutter","4/1/21 - 4/17/22",24400,27900,31400,34850,37650,40450,43250,46050]
["Tehama4/1/21 - 4/17/22","Tehama","4/1/21 - 4/17/22",24400,27900,31400,34850,37650,40450,43250,46050]
["Trinity4/1/21 - 4/17/22","Trinity","4/1/21 - 4/17/22",24400,27900,31400,34850,37650,40450,43250,46050]
["Tulare4/1/21 - 4/17/22","Tulare","4/1/21 - 4/17/22",24400,27900,31400,34850,37650,40450,43250,46050]
["Tuolumne4/1/21 - 4/17/22","Tuolumne","4/1/21 - 4/17/22",26050,29800,33500,37200,40200,43200,46150,49150]
["Ventura4/1/21 - 4/17/22","Ventura","4/1/21 - 4/17/22",39250,44850,50450,56050,60550,65050,69550,74000]
["Yolo4/1/21 - 4/17/22","Yolo","4/1/21 - 4/17/22",31050,35450,39900,44300,47850,51400,54950,58500]
["Yuba4/1/21 - 4/17/22","Yuba","4/1/21 - 4/17/22",24400,27900,31400,34850,37650,40450,43250,46050]
["Alameda4/18/22 - 5/14/23","Alameda","4/18/22 - 5/14/23",50000,57150,64300,71400,77150,82850,88550,94250]
["Alpine4/18/22 - 5/14/23","Alpine","4/18/22 - 5/14/23",31800,36350,40900,45400,49050,52700,56300,59950]
["Amador4/18/22 - 5/14/23","Amador","4/18/22 - 5/14/23",30350,34650,39000,43300,46800,50250,53700,57200]
["Butte4/18/22 - 5/14/23","Butte","4/18/22 - 5/14/23",27300,31200,35100,38950,42100,45200,48300,51450]
["Calaveras4/18/22 - 5/14/23","Calaveras","4/18/22 - 5/14/23",31500,36000,40500,45000,48600,52200,55800,59400]
["Colusa4/18/22 - 5/14/23","Colusa","4/18/22 - 5/14/23",27300,31200,35100,38950,42100,45200,48300,51450]
["Contra Costa4/18/22 - 5/14/23","Contra Costa","4/18/22 - 5/14/23",50000,57150,64300,71400,77150,82850,88550,94250]
["Del Norte4/18/22 - 5/14/23","Del Norte","4/18/22 - 5/14/23",27300,31200,35100,38950,42100,45200,48300,51450]
["El Dorado4/18/22 - 5/14/23","El Dorado","4/18/22 - 5/14/23",35500,40550,45600,50650,54750,58800,62850,66900]
["Fresno4/18/22 - 5/14/23","Fresno","4/18/22 - 5/14/23",27300,31200,35100,38950,42100,45200,48300,51450]
["Glenn4/18/22 - 5/14/23","Glenn","4/18/22 - 5/14/23",27300,31200,35100,38950,42100,45200,48300,51450]
["Humboldt4/18/22 - 5/14/23","Humboldt","4/18/22 - 5/14/23",27300,31200,35100,38950,42100,45200,48300,51450]
["Imperial4/18/22 - 5/14/23","Imperial","4/18/22 - 5/14/23",27300,31200,35100,38950,42100,45200,48300,51450]
["Inyo4/18/22 - 5/14/23","Inyo","4/18/22 - 5/14/23",28950,33100,37250,41350,44700,48000,51300,54600]
["Kern4/18/22 - 5/14/23","Kern","4/18/22 - 5/14/23",27300,31200,35100,38950,42100,45200,48300,51450]
["Kings4/18/22 - 5/14/23","Kings","4/18/22 - 5/14/23",27300,31200,35100,38950,42100,45200,48300,51450]
["Lake4/18/22 - 5/14/23","Lake","4/18/22 - 5/14/23",27300,31200,35100,38950,42100,45200,48300,51450]
["Lassen4/18/22 - 5/14/23","Lassen","4/18/22 - 5/14/23",28150,32150,36150,40150,43400,46600,49800,53000]
["Los Angeles4/18/22 - 5/14/23","Los Angeles","4/18/22 - 5/14/23",41700,47650,53600,59550,64350,69100,73850,78650]
["Madera4/18/22 - 5/14/23","Madera","4/18/22 - 5/14/23",27300,31200,35100,38950,42100,45200,48300,51450]
["Marin4/18/22 - 5/14/23","Marin","4/18/22 - 5/14/23",65250,74600,83900,93200,100700,108150,115600,123050]
["Mariposa4/18/22 - 5/14/23","Mariposa","4/18/22 - 5/14/23",27300,31200,35100,38950,42100,45200,48300,51450]
["Mendocino4/18/22 - 5/14/23","Mendocino","4/18/22 - 5/14/23",28150,32150,36150,40150,43400,46600,49800,53000]
["Merced4/18/22 - 5/14/23","Merced","4/18/22 - 5/14/23",27300,31200,35100,38950,42100,45200,48300,51450]
["Modoc4/18/22 - 5/14/23","Modoc","4/18/22 - 5/14/23",27300,31200,35100,38950,42100,45200,48300,51450]
["Mono4/18/22 - 5/14/23","Mono","4/18/22 - 5/14/23",28150,32150,36150,40150,43400,46600,49800,53000]
["Monterey4/18/22 - 5/14/23","Monterey","4/18/22 - 5/14/23",39800,45500,51200,56850,61400,65950,70500,75050]
["Napa4/18/22 - 5/14/23","Napa","4/18/22 - 5/14/23",44150,50450,56750,63050,68100,73150,78200,83250]
["Nevada4/18/22 - 5/14/23","Nevada","4/18/22 - 5/14/23",34450,39400,44300,49200,53150,57100,61050,64950]
["Orange4/18/22 - 5/14/23","Orange","4/18/22 - 5/14/23",47450,54200,61000,67750,73200,78600,84050,89450]
["Placer4/18/22 - 5/14/23","Placer","4/18/22 - 5/14/23",35500,40550,45600,50650,54750,58800,62850,66900]
["Plumas4/18/22 - 5/14/23","Plumas","4/18/22 - 5/14/23",28600,32700,36800,40850,44150,47400,50700,53950]
["Riverside4/18/22 - 5/14/23","Riverside","4/18/22 - 5/14/23",30800,35200,39600,44000,47550,51050,54600,58100]
["Sacramento4/18/22 - 5/14/23","Sacramento","4/18/22 - 5/14/23",35500,40550,45600,50650,54750,58800,62850,66900]
["San Benito4/18/22 - 5/14/23","San Benito","4/18/22 - 5/14/23",36800,42050,47300,52550,56800,61000,65200,69400]
["San Bernardino4/18/22 - 5/14/23","San Bernardino","4/18/22 - 5/14/23",30800,35200,39600,44000,47550,51050,54600,58100]
["San Diego4/18/22 - 5/14/23","San Diego","4/18/22 - 5/14/23",45550,52050,58550,65050,70300,75500,80700,85900]
["San Francisco4/18/22 - 5/14/23","San Francisco","4/18/22 - 5/14/23",65250,74600,83900,93200,100700,108150,115600,123050]
["San Joaquin4/18/22 - 5/14/23","San Joaquin","4/18/22 - 5/14/23",29000,33150,37300,41400,44750,48050,51350,54650]
["San Luis Obispo4/18/22 - 5/14/23","San Luis Obispo","4/18/22 - 5/14/23",38300,43800,49250,54700,59100,63500,67850,72250]
["San Mateo4/18/22 - 5/14/23","San Mateo","4/18/22 - 5/14/23",65250,74600,83900,93200,100700,108150,115600,123050]
["Santa Barbara4/18/22 - 5/14/23","Santa Barbara","4/18/22 - 5/14/23",48900,55900,62900,69850,75450,81050,86650,92250]
["Santa Clara4/18/22 - 5/14/23","Santa Clara","4/18/22 - 5/14/23",59000,67400,75850,84250,91000,97750,104500,111250]
["Santa Cruz4/18/22 - 5/14/23","Santa Cruz","4/18/22 - 5/14/23",54450,62200,70000,77750,84000,90200,96450,102650]
["Shasta4/18/22 - 5/14/23","Shasta","4/18/22 - 5/14/23",27800,31800,35750,39700,42900,46100,49250,52450]
["Sierra4/18/22 - 5/14/23","Sierra","4/18/22 - 5/14/23",31500,36000,40500,45000,48600,52200,55800,59400]
["Siskiyou4/18/22 - 5/14/23","Siskiyou","4/18/22 - 5/14/23",27300,31200,35100,38950,42100,45200,48300,51450]
["Solano4/18/22 - 5/14/23","Solano","4/18/22 - 5/14/23",38050,43450,48900,54300,58650,63000,67350,71700]
["Sonoma4/18/22 - 5/14/23","Sonoma","4/18/22 - 5/14/23",41600,47550,53500,59400,64200,68950,73700,78450]
["Stanislaus4/18/22 - 5/14/23","Stanislaus","4/18/22 - 5/14/23",27900,31900,35900,39850,43050,46250,49450,52650]
["Sutter4/18/22 - 5/14/23","Sutter","4/18/22 - 5/14/23",27300,31200,35100,38950,42100,45200,48300,51450]
["Tehama4/18/22 - 5/14/23","Tehama","4/18/22 - 5/14/23",27300,31200,35100,38950,42100,45200,48300,51450]
["Trinity4/18/22 - 5/14/23","Trinity","4/18/22 - 5/14/23",27300,31200,35100,38950,42100,45200,48300,51450]
["Tulare4/18/22 - 5/14/23","Tulare","4/18/22 - 5/14/23",27300,31200,35100,38950,42100,45200,48300,51450]
["Tuolumne4/18/22 - 5/14/23","Tuolumne","4/18/22 - 5/14/23",29150,33300,37450,41600,44950,48300,51600,54950]
["Ventura4/18/22 - 5/14/23","Ventura","4/18/22 - 5/14/23",43900,50200,56450,62700,67750,72750,77750,82800]
["Yolo4/18/22 - 5/14/23","Yolo","4/18/22 - 5/14/23",34700,39650,44600,49550,53550,57500,61450,65450]
["Yuba4/18/22 - 5/14/23","Yuba","4/18/22 - 5/14/23",27300,31200,35100,38950,42100,45200,48300,51450]
[{"$f":"B1104&C1104","v":"Alameda5/15/23 - 3/31/24"},"Alameda","5/15/23 - 3/31/24",51800,59200,66600,73950,79900,85800,91700,97650]
["Alpine5/15/23 - 3/31/24","Alpine","5/15/23 - 3/31/24",33650,38450,43250,48050,51900,55750,59600,63450]
["Amador5/15/23 - 3/31/24","Amador","5/15/23 - 3/31/24",32100,36700,41300,45850,49550,53200,56900,60550]
["Butte5/15/23 - 3/31/24","Butte","5/15/23 - 3/31/24",28900,33000,37150,41250,44550,47850,51150,54450]
["Calaveras5/15/23 - 3/31/24","Calaveras","5/15/23 - 3/31/24",33400,38150,42900,47650,51500,55300,59100,62900]
["Colusa5/15/23 - 3/31/24","Colusa","5/15/23 - 3/31/24",28900,33000,37150,41250,44550,47850,51150,54450]
["Contra Costa5/15/23 - 3/31/24","Contra Costa","5/15/23 - 3/31/24",51800,59200,66600,73950,79900,85800,91700,97650]
["Del Norte5/15/23 - 3/31/24","Del Norte","5/15/23 - 3/31/24",28900,33000,37150,41250,44550,47850,51150,54450]
["El Dorado5/15/23 - 3/31/24","El Dorado","5/15/23 - 3/31/24",37550,42900,48250,53600,57900,62200,66500,70800]
["Fresno5/15/23 - 3/31/24","Fresno","5/15/23 - 3/31/24",28900,33000,37150,41250,44550,47850,51150,54450]
["Glenn5/15/23 - 3/31/24","Glenn","5/15/23 - 3/31/24",28900,33000,37150,41250,44550,47850,51150,54450]
["Humboldt5/15/23 - 3/31/24","Humboldt","5/15/23 - 3/31/24",28900,33000,37150,41250,44550,47850,51150,54450]
["Imperial5/15/23 - 3/31/24","Imperial","5/15/23 - 3/31/24",28900,33000,37150,41250,44550,47850,51150,54450]
["Inyo5/15/23 - 3/31/24","Inyo","5/15/23 - 3/31/24",29900,34200,38450,42700,46150,49550,52950,56400]
["Kern5/15/23 - 3/31/24","Kern","5/15/23 - 3/31/24",28900,33000,37150,41250,44550,47850,51150,54450]
["Kings5/15/23 - 3/31/24","Kings","5/15/23 - 3/31/24",28900,33000,37150,41250,44550,47850,51150,54450]
["Lake5/15/23 - 3/31/24","Lake","5/15/23 - 3/31/24",28900,33000,37150,41250,44550,47850,51150,54450]
["Lassen5/15/23 - 3/31/24","Lassen","5/15/23 - 3/31/24",29350,33550,37750,41900,45300,48650,52000,55350]
["Los Angeles5/15/23 - 3/31/24","Los Angeles","5/15/23 - 3/31/24",44150,50450,56750,63050,68100,73150,78200,83250]
["Madera5/15/23 - 3/31/24","Madera","5/15/23 - 3/31/24",28900,33000,37150,41250,44550,47850,51150,54450]
["Marin5/15/23 - 3/31/24","Marin","5/15/23 - 3/31/24",65050,74350,83650,92900,100350,107800,115200,122650]
["Mariposa5/15/23 - 3/31/24","Mariposa","5/15/23 - 3/31/24",28900,33000,37150,41250,44550,47850,51150,54450]
["Mendocino5/15/23 - 3/31/24","Mendocino","5/15/23 - 3/31/24",29750,34000,38250,42500,45900,49300,52700,56100]
["Merced5/15/23 - 3/31/24","Merced","5/15/23 - 3/31/24",28900,33000,37150,41250,44550,47850,51150,54450]
["Modoc5/15/23 - 3/31/24","Modoc","5/15/23 - 3/31/24",28900,33000,37150,41250,44550,47850,51150,54450]
["Mono5/15/23 - 3/31/24","Mono","5/15/23 - 3/31/24",29750,34000,38250,42500,45900,49300,52700,56100]
["Monterey5/15/23 - 3/31/24","Monterey","5/15/23 - 3/31/24",42150,48200,54200,60200,65050,69850,74650,79500]
["Napa5/15/23 - 3/31/24","Napa","5/15/23 - 3/31/24",46750,53400,60100,66750,72100,77450,82800,88150]
["Nevada5/15/23 - 3/31/24","Nevada","5/15/23 - 3/31/24",36500,41700,46900,52100,56300,60450,64650,68800]
["Orange5/15/23 - 3/31/24","Orange","5/15/23 - 3/31/24",50250,57400,64600,71750,77500,83250,89000,94750]
["Placer5/15/23 - 3/31/24","Placer","5/15/23 - 3/31/24",37550,42900,48250,53600,57900,62200,66500,70800]
["Plumas5/15/23 - 3/31/24","Plumas","5/15/23 - 3/31/24",29350,33550,37750,41900,45300,48650,52000,55350]
["Riverside5/15/23 - 3/31/24","Riverside","5/15/23 - 3/31/24",32650,37300,41950,46600,50350,54100,57800,61550]
["Sacramento5/15/23 - 3/31/24","Sacramento","5/15/23 - 3/31/24",37550,42900,48250,53600,57900,62200,66500,70800]
["San Benito5/15/23 - 3/31/24","San Benito","5/15/23 - 3/31/24",39000,44550,50100,55650,60150,64600,69050,73500]
["San Bernardino5/15/23 - 3/31/24","San Bernardino","5/15/23 - 3/31/24",32650,37300,41950,46600,50350,54100,57800,61550]
["San Diego5/15/23 - 3/31/24","San Diego","5/15/23 - 3/31/24",48250,55150,62050,68900,74450,79950,85450,90950]
["San Francisco5/15/23 - 3/31/24","San Francisco","5/15/23 - 3/31/24",65050,74350,83650,92900,100350,107800,115200,122650]
["San Joaquin5/15/23 - 3/31/24","San Joaquin","5/15/23 - 3/31/24",30700,35100,39500,43850,47400,50900,54400,57900]
["San Luis Obispo5/15/23 - 3/31/24","San Luis Obispo","5/15/23 - 3/31/24",40550,46350,52150,57900,62550,67200,71800,76450]
["San Mateo5/15/23 - 3/31/24","San Mateo","5/15/23 - 3/31/24",65050,74350,83650,92900,100350,107800,115200,122650]
["Santa Barbara5/15/23 - 3/31/24","Santa Barbara","5/15/23 - 3/31/24",51800,59200,66600,73950,79900,85800,91700,97650]
["Santa Clara5/15/23 - 3/31/24","Santa Clara","5/15/23 - 3/31/24",62450,71400,80300,89200,96350,103500,110650,117750]
["Santa Cruz5/15/23 - 3/31/24","Santa Cruz","5/15/23 - 3/31/24",57650,65900,74150,82350,88950,95550,102150,108750]
["Shasta5/15/23 - 3/31/24","Shasta","5/15/23 - 3/31/24",29400,33600,37800,42000,45400,48750,52100,55450]
["Sierra5/15/23 - 3/31/24","Sierra","5/15/23 - 3/31/24",29950,34200,38500,42750,46200,49600,53050,56450]
["Siskiyou5/15/23 - 3/31/24","Siskiyou","5/15/23 - 3/31/24",28900,33000,37150,41250,44550,47850,51150,54450]
["Solano5/15/23 - 3/31/24","Solano","5/15/23 - 3/31/24",40050,45800,51500,57200,61800,66400,70950,75550]
["Sonoma5/15/23 - 3/31/24","Sonoma","5/15/23 - 3/31/24",44050,50350,56650,62900,67950,73000,78000,83050]
["Stanislaus5/15/23 - 3/31/24","Stanislaus","5/15/23 - 3/31/24",29550,33800,38000,42200,45600,49000,52350,55750]
["Sutter5/15/23 - 3/31/24","Sutter","5/15/23 - 3/31/24",28900,33000,37150,41250,44550,47850,51150,54450]
["Tehama5/15/23 - 3/31/24","Tehama","5/15/23 - 3/31/24",28900,33000,37150,41250,44550,47850,51150,54450]
["Trinity5/15/23 - 3/31/24","Trinity","5/15/23 - 3/31/24",28900,33000,37150,41250,44550,47850,51150,54450]
["Tulare5/15/23 - 3/31/24","Tulare","5/15/23 - 3/31/24",28900,33000,37150,41250,44550,47850,51150,54450]
["Tuolumne5/15/23 - 3/31/24","Tuolumne","5/15/23 - 3/31/24",30850,35250,39650,44050,47600,51100,54650,58150]
["Ventura5/15/23 - 3/31/24","Ventura","5/15/23 - 3/31/24",46500,53150,59800,66400,71750,77050,82350,87650]
["Yolo5/15/23 - 3/31/24","Yolo","5/15/23 - 3/31/24",36750,42000,47250,52450,56650,60850,65050,69250]
["Yuba5/15/23 - 3/31/24","Yuba","5/15/23 - 3/31/24",28900,33000,37150,41250,44550,47850,51150,54450]
[{"$f":"B1162&C1162","v":"AlamedaOn or after 4/1/24"},"Alameda","On or after 4/1/24",54500,62300,70100,77850,84100,90350,96550,102800]
["AlpineOn or after 4/1/24","Alpine","On or after 4/1/24",37000,42250,47550,52850,57050,61300,65550,69750]
["AmadorOn or after 4/1/24","Amador","On or after 4/1/24",35300,40350,45400,50400,54450,58500,62500,66550]
["ButteOn or after 4/1/24","Butte","On or after 4/1/24",31750,36300,40850,45350,49000,52600,56250,59850]
["CalaverasOn or after 4/1/24","Calaveras","On or after 4/1/24",33150,37850,42600,47300,51100,54900,58700,62450]
["ColusaOn or after 4/1/24","Colusa","On or after 4/1/24",30800,35200,39600,43950,47500,51000,54500,58050]
["Contra CostaOn or after 4/1/24","Contra Costa","On or after 4/1/24",54500,62300,70100,77850,84100,90350,96550,102800]
["Del NorteOn or after 4/1/24","Del Norte","On or after 4/1/24",30800,35200,39600,43950,47500,51000,54500,58050]
["El DoradoOn or after 4/1/24","El Dorado","On or after 4/1/24",41300,47150,53050,58950,63650,68400,73100,77850]
["FresnoOn or after 4/1/24","Fresno","On or after 4/1/24",30800,35200,39600,43950,47500,51000,54500,58050]
["GlennOn or after 4/1/24","Glenn","On or after 4/1/24",30800,35200,39600,43950,47500,51000,54500,58050]
["HumboldtOn or after 4/1/24","Humboldt","On or after 4/1/24",30950,35350,39750,44150,47700,51250,54750,58300]
["ImperialOn or after 4/1/24","Imperial","On or after 4/1/24",30800,35200,39600,43950,47500,51000,54500,58050]
["InyoOn or after 4/1/24","Inyo","On or after 4/1/24",30800,35200,39600,43950,47500,51000,54500,58050]
["KernOn or after 4/1/24","Kern","On or after 4/1/24",30800,35200,39600,43950,47500,51000,54500,58050]
["KingsOn or after 4/1/24","Kings","On or after 4/1/24",30800,35200,39600,43950,47500,51000,54500,58050]
["LakeOn or after 4/1/24","Lake","On or after 4/1/24",30800,35200,39600,43950,47500,51000,54500,58050]
["LassenOn or after 4/1/24","Lassen","On or after 4/1/24",30800,35200,39600,43950,47500,51000,54500,58050]
["Los AngelesOn or after 4/1/24","Los Angeles","On or after 4/1/24",48550,55450,62400,69350,74900,80450,86000,91550]
["MaderaOn or after 4/1/24","Madera","On or after 4/1/24",30800,35200,39600,43950,47500,51000,54500,58050]
["MarinOn or after 4/1/24","Marin","On or after 4/1/24",68550,78350,88150,97900,105750,113600,121400,129250]
["MariposaOn or after 4/1/24","Mariposa","On or after 4/1/24",30800,35200,39600,43950,47500,51000,54500,58050]
["MendocinoOn or after 4/1/24","Mendocino","On or after 4/1/24",31650,36200,40700,45200,48850,52450,56050,59700]
["MercedOn or after 4/1/24","Merced","On or after 4/1/24",30800,35200,39600,43950,47500,51000,54500,58050]
["ModocOn or after 4/1/24","Modoc","On or after 4/1/24",30800,35200,39600,43950,47500,51000,54500,58050]
["MonoOn or after 4/1/24","Mono","On or after 4/1/24",32700,37400,42050,46750,50450,54200,57950,61700]
["MontereyOn or after 4/1/24","Monterey","On or after 4/1/24",46350,53000,59600,66200,71500,76800,82100,87400]
["NapaOn or after 4/1/24","Napa","On or after 4/1/24",51400,58700,66100,73400,79300,85150,91050,96900]
["NevadaOn or after 4/1/24","Nevada","On or after 4/1/24",36500,41700,46900,52100,56300,60450,64650,68800]
["OrangeOn or after 4/1/24","Orange","On or after 4/1/24",55250,63100,71050,78900,85250,91550,97850,104150]
["PlacerOn or after 4/1/24","Placer","On or after 4/1/24",41300,47150,53050,58950,63650,68400,73100,77850]
["PlumasOn or after 4/1/24","Plumas","On or after 4/1/24",32250,36850,41450,46050,49750,53450,57150,60800]
["RiversideOn or after 4/1/24","Riverside","On or after 4/1/24",35900,41000,46100,51250,55350,59450,63550,67650]
["SacramentoOn or after 4/1/24","Sacramento","On or after 4/1/24",41300,47150,53050,58950,63650,68400,73100,77850]
["San BenitoOn or after 4/1/24","San Benito","On or after 4/1/24",42850,49000,55100,61200,66100,71000,75900,80800]
["San BernardinoOn or after 4/1/24","San Bernardino","On or after 4/1/24",35900,41000,46100,51250,55350,59450,63550,67650]
["San DiegoOn or after 4/1/24","San Diego","On or after 4/1/24",53050,60600,68200,75750,81850,87900,93950,100000]
["San FranciscoOn or after 4/1/24","San Francisco","On or after 4/1/24",68550,78350,88150,97900,105750,113600,121400,129250]
["San JoaquinOn or after 4/1/24","San Joaquin","On or after 4/1/24",33750,38600,43400,48200,52100,55950,59800,63650]
["San Luis ObispoOn or after 4/1/24","San Luis Obispo","On or after 4/1/24",44600,50950,57300,63650,68750,73850,78950,84050]
["San MateoOn or after 4/1/24","San Mateo","On or after 4/1/24",68550,78350,88150,97900,105750,113600,121400,129250]
["Santa BarbaraOn or after 4/1/24","Santa Barbara","On or after 4/1/24",56950,65050,73200,81300,87850,94350,100850,107350]
["Santa ClaraOn or after 4/1/24","Santa Clara","On or after 4/1/24",64550,73750,82950,92150,99550,106900,114300,121650]
["Santa CruzOn or after 4/1/24","Santa Cruz","On or after 4/1/24",63400,72450,81500,90550,97800,105050,112300,119550]
["ShastaOn or after 4/1/24","Shasta","On or after 4/1/24",31200,35650,40100,44550,48150,51700,55250,58850]
["SierraOn or after 4/1/24","Sierra","On or after 4/1/24",30800,35200,39600,43950,47500,51000,54500,58050]
["SiskiyouOn or after 4/1/24","Siskiyou","On or after 4/1/24",30800,35200,39600,43950,47500,51000,54500,58050]
["SolanoOn or after 4/1/24","Solano","On or after 4/1/24",44050,50350,56650,62900,67950,73000,78000,83050]
["SonomaOn or after 4/1/24","Sonoma","On or after 4/1/24",48450,55350,62250,69150,74700,80250,85750,91300]
["StanislausOn or after 4/1/24","Stanislaus","On or after 4/1/24",31900,36450,41000,45550,49200,52850,56500,60150]
["SutterOn or after 4/1/24","Sutter","On or after 4/1/24",30800,35200,39600,43950,47500,51000,54500,58050]
["TehamaOn or after 4/1/24","Tehama","On or after 4/1/24",30800,35200,39600,43950,47500,51000,54500,58050]
["TrinityOn or after 4/1/24","Trinity","On or after 4/1/24",30800,35200,39600,43950,47500,51000,54500,58050]
["TulareOn or after 4/1/24","Tulare","On or after 4/1/24",30800,35200,39600,43950,47500,51000,54500,58050]
["TuolumneOn or after 4/1/24","Tuolumne","On or after 4/1/24",33900,38750,43600,48450,52350,56200,60100,63950]
["VenturaOn or after 4/1/24","Ventura","On or after 4/1/24",49250,56300,63350,70350,76000,81650,87250,92900]
["YoloOn or after 4/1/24","Yolo","On or after 4/1/24",40400,46150,51900,57650,62300,66900,71500,76100]
["YubaOn or after 4/1/24","Yuba","On or after 4/1/24",30800,35200,39600,43950,47500,51000,54500,58050]

{"sheet":"HOME & NHTF LIMITS","index":6,"n_rows":59,"n_cols":46,"rows_kept":59,"cut":false,"hidden":true,"merged":[]}
["2024 HOME & NHTF","lim50_24p1","lim50_24p2","lim50_24p3","lim50_24p4","lim50_24p5","lim50_24p6","lim50_24p7","lim50_24p8","Lim80_24p1","Lim80_24p2","Lim80_24p3","Lim80_24p4","Lim80_24p5","Lim80_24p6","Lim80_24p7","Lim80_24p8","lowrent_0","lowrent_1","lowrent_2","lowrent_3","lowrent_4","lowrent_5","lowrent_6","highrent_0","highrent_1","highrent_2","highrent_3","highrent_4","highrent_5","highrent_6","lim30_PG_24p1","lim30_PG_24p2","lim30_PG_24p3","lim30_PG_24p4","lim30_PG_24p5","lim30_PG_24p6","lim30_PG_24p7","lim30_PG_24p8","HTFRent_0","HTFRent_1","HTFRent_2","HTFRent_3","HTFRent_4","HTFRent_5","HTFRent_6"]
["Alameda",54500,62300,70100,77850,84100,90350,96550,102800,84600,96650,108750,120800,130500,140150,149800,159500,1362,1460,1752,2024,2258,2491,2724,1699,1821,2187,2519,2790,3060,3329,32700,37400,42050,46700,50450,54200,57950,61650,817,876,1051,1214,1355,1495,1634]
["Alpine",37000,42250,47550,52850,57050,61300,65550,69750,59200,67650,76100,84550,91350,98100,104850,111650,911,990,1188,1373,1532,1691,1849,911,1005,1321,1752,1935,2117,2299,22200,25400,28550,31700,36580,41960,47340,52720,555,595,713,847,1049,1250,1436]
["Amador",35300,40350,45400,50400,54450,58500,62500,66550,56450,64550,72600,80650,87150,93600,100050,106500,882,945,1135,1310,1462,1613,1764,1126,1135,1347,1669,1843,2015,2187,21200,24200,27250,31200,36580,41960,47340,52720,530,567,681,847,1049,1250,1436]
["Butte",31750,36300,40850,45350,49000,52600,56250,59850,50750,58000,65250,72500,78300,84100,89900,95700,793,850,1021,1179,1315,1451,1587,1013,1086,1306,1499,1653,1805,1957,19050,21800,25820,31200,36580,41960,47340,52720,476,510,645,847,1049,1250,1436]
["Calaveras",33150,37850,42600,47300,51100,54900,58700,62450,53000,60600,68150,75700,81800,87850,93900,99950,835,894,1072,1239,1382,1525,1667,1049,1055,1309,1577,1740,1901,2062,19900,22750,25820,31200,36580,41960,47340,52720,497,533,645,847,1049,1250,1436]
["Colusa",30800,35200,39600,43950,47500,51000,54500,58050,49250,56250,63300,70300,75950,81550,87200,92800,770,825,990,1143,1275,1406,1538,823,829,1089,1452,1525,1747,1894,18450,21100,25820,31200,36580,41960,47340,52720,461,494,645,847,1049,1250,1436]
["Contra Costa",54500,62300,70100,77850,84100,90350,96550,102800,84600,96650,108750,120800,130500,140150,149800,159500,1362,1460,1752,2024,2258,2491,2724,1699,1821,2187,2519,2790,3060,3329,32700,37400,42050,46700,50450,54200,57950,61650,817,876,1051,1214,1355,1495,1634]
["Del Norte",30800,35200,39600,43950,47500,51000,54500,58050,49250,56250,63300,70300,75950,81550,87200,92800,770,825,990,1143,1275,1406,1538,791,970,1147,1452,1600,1747,1894,18450,21100,25820,31200,36580,41960,47340,52720,461,494,645,847,1049,1250,1436]
["El Dorado",41300,47150,53050,58950,63650,68400,73100,77850,66050,75450,84900,94300,101850,109400,116950,124500,1032,1105,1326,1532,1710,1886,2063,1323,1418,1703,1959,2166,2371,2577,24750,28300,31850,35350,38200,41960,47340,52720,618,663,796,919,1049,1250,1436]
["Fresno",30800,35200,39600,43950,47500,51000,54500,58050,49250,56250,63300,70300,75950,81550,87200,92800,770,825,990,1143,1275,1406,1538,981,1053,1264,1452,1600,1747,1894,18450,21100,25820,31200,36580,41960,47340,52720,461,494,645,847,1049,1250,1436]
["Glenn",30800,35200,39600,43950,47500,51000,54500,58050,49250,56250,63300,70300,75950,81550,87200,92800,770,825,990,1143,1275,1406,1538,771,866,1138,1452,1600,1747,1894,18450,21100,25820,31200,36580,41960,47340,52720,461,494,645,847,1049,1250,1436]
["Humboldt",30950,35350,39750,44150,47700,51250,54750,58300,49500,56550,63600,70650,76350,82000,87650,93300,773,828,993,1148,1281,1413,1545,950,1032,1271,1459,1608,1756,1903,18550,21200,25820,31200,36580,41960,47340,52720,463,496,645,847,1049,1250,1436]
["Imperial",30800,35200,39600,43950,47500,51000,54500,58050,49250,56250,63300,70300,75950,81550,87200,92800,770,825,990,1143,1275,1406,1538,872,1001,1264,1452,1600,1747,1894,18450,21100,25820,31200,36580,41960,47340,52720,461,494,645,847,1049,1250,1436]
["Inyo",30800,35200,39600,43950,47500,51000,54500,58050,49250,56250,63300,70300,75950,81550,87200,92800,770,825,990,1143,1275,1406,1538,924,1053,1264,1452,1600,1747,1894,18450,21100,25820,31200,36580,41960,47340,52720,461,494,645,847,1049,1250,1436]
["Kern",30800,35200,39600,43950,47500,51000,54500,58050,49250,56250,63300,70300,75950,81550,87200,92800,770,825,990,1143,1275,1406,1538,960,967,1258,1452,1600,1747,1894,18450,21100,25820,31200,36580,41960,47340,52720,461,494,645,847,1049,1250,1436]
["Kings",30800,35200,39600,43950,47500,51000,54500,58050,49250,56250,63300,70300,75950,81550,87200,92800,770,825,990,1143,1275,1406,1538,981,1053,1264,1452,1600,1747,1894,18450,21100,25820,31200,36580,41960,47340,52720,461,494,645,847,1049,1250,1436]
["Lake",30800,35200,39600,43950,47500,51000,54500,58050,49250,56250,63300,70300,75950,81550,87200,92800,770,825,990,1143,1275,1406,1538,928,964,1264,1452,1600,1747,1894,18450,21100,25820,31200,36580,41960,47340,52720,461,494,645,847,1049,1250,1436]
["Lassen",30800,35200,39600,43950,47500,51000,54500,58050,49250,56250,63300,70300,75950,81550,87200,92800,760,825,990,1143,1275,1406,1538,760,853,1121,1452,1600,1747,1894,18450,21100,25820,31200,36580,41960,47340,52720,461,494,645,847,1049,1250,1436]
["Los Angeles",48550,55450,62400,69350,74900,80450,86000,91550,77700,88800,99900,110950,119850,128750,137600,146500,1213,1300,1560,1803,2011,2219,2427,1559,1671,2007,2310,2558,2803,3049,29150,33300,37450,41600,44950,48300,51600,54950,728,780,936,1081,1207,1331,1456]
["Madera",30800,35200,39600,43950,47500,51000,54500,58050,49250,56250,63300,70300,75950,81550,87200,92800,770,825,990,1143,1275,1406,1538,981,1053,1264,1452,1600,1747,1894,18450,21100,25820,31200,36580,41960,47340,52720,461,494,645,847,1049,1250,1436]
["Marin",68550,78350,88150,97900,105750,113600,121400,129250,109700,125350,141000,156650,169200,181750,194250,206800,1713,1836,2203,2545,2840,3133,3426,2208,2366,2842,3275,3634,3991,4348,41150,47000,52900,58750,63450,68150,72850,77550,1028,1101,1322,1527,1703,1880,2056]
["Mariposa",30800,35200,39600,43950,47500,51000,54500,58050,49250,56250,63300,70300,75950,81550,87200,92800,770,825,990,1143,1275,1406,1538,891,1010,1218,1452,1600,1747,1894,18450,21100,25820,31200,36580,41960,47340,52720,461,494,645,847,1049,1250,1436]
["Mendocino",31650,36200,40700,45200,48850,52450,56050,59700,50650,57850,65100,72300,78100,83900,89700,95450,791,848,1017,1175,1311,1446,1582,1009,1082,1301,1494,1646,1798,1950,19000,21700,25820,31200,36580,41960,47340,52720,475,508,645,847,1049,1250,1436]
["Merced",30800,35200,39600,43950,47500,51000,54500,58050,49250,56250,63300,70300,75950,81550,87200,92800,770,825,990,1143,1275,1406,1538,981,1053,1264,1452,1600,1747,1894,18450,21100,25820,31200,36580,41960,47340,52720,461,494,645,847,1049,1250,1436]
["Modoc",30800,35200,39600,43950,47500,51000,54500,58050,49250,56250,63300,70300,75950,81550,87200,92800,660,802,958,1143,1275,1406,1538,660,802,958,1158,1572,1747,1894,18450,21100,25820,31200,36580,41960,47340,52720,461,494,645,847,1049,1250,1436]
["Mono",32700,37400,42050,46750,50450,54200,57950,61700,52350,59800,67300,74800,80750,86750,92750,98750,817,876,1051,1215,1355,1495,1636,1000,1121,1347,1547,1706,1864,2022,19650,22450,25820,31200,36580,41960,47340,52720,491,526,645,847,1049,1250,1436]
["Monterey",46350,53000,59600,66200,71500,76800,82100,87400,74150,84800,95400,105950,114450,122950,131400,139900,1158,1241,1490,1721,1920,2118,2317,1486,1594,1914,2204,2439,2672,2906,27800,31800,35750,39700,42900,46100,49250,52720,695,745,893,1032,1152,1271,1436]
["Napa",51400,58700,66100,73400,79300,85150,91050,96900,82150,93900,105650,117350,126750,136150,145550,154900,1285,1376,1652,1908,2128,2349,2569,1650,1769,2126,2447,2710,2971,3233,30850,35250,39650,44050,47600,51100,54650,58150,771,826,991,1145,1277,1410,1541]
["Nevada",36500,41700,46900,52100,56300,60450,64650,68800,58350,66700,75050,83350,90050,96700,103400,110050,912,977,1172,1355,1511,1668,1823,1166,1217,1503,1728,1908,2087,2265,21900,25000,28150,31250,36580,41960,47340,52720,547,586,703,847,1049,1250,1436]
["Orange",55250,63100,71050,78900,85250,91550,97850,104150,88400,101000,113650,126250,136350,146450,156550,166650,1381,1479,1776,2051,2288,2525,2761,1826,1958,2352,2708,3001,3293,3585,33150,37900,42650,47350,51150,54950,58750,62550,828,888,1066,1231,1373,1516,1657]
["Placer",41300,47150,53050,58950,63650,68400,73100,77850,66050,75450,84900,94300,101850,109400,116950,124500,1032,1105,1326,1532,1710,1886,2063,1323,1418,1703,1959,2166,2371,2577,24750,28300,31850,35350,38200,41960,47340,52720,618,663,796,919,1049,1250,1436]
["Plumas",32250,36850,41450,46050,49750,53450,57150,60800,51600,59000,66350,73700,79600,85500,91400,97300,803,863,1036,1197,1336,1474,1611,803,887,1165,1522,1679,1834,1989,19400,22150,25820,31200,36580,41960,47340,52720,485,519,645,847,1049,1250,1436]
["Riverside",35900,41000,46100,51250,55350,59450,63550,67650,57400,65600,73800,82000,88600,95150,101650,108250,897,961,1152,1332,1486,1640,1793,1148,1231,1478,1699,1876,2051,2227,21550,24600,27700,31200,36580,41960,47340,52720,538,576,692,847,1049,1250,1436]
["Sacramento",41300,47150,53050,58950,63650,68400,73100,77850,66050,75450,84900,94300,101850,109400,116950,124500,1032,1105,1326,1532,1710,1886,2063,1323,1418,1703,1959,2166,2371,2577,24750,28300,31850,35350,38200,41960,47340,52720,618,663,796,919,1049,1250,1436]
["San Benito",42850,49000,55100,61200,66100,71000,75900,80800,68550,78350,88150,97950,105800,113600,121450,129300,1071,1148,1377,1591,1775,1958,2142,1373,1472,1768,2035,2250,2464,2678,25700,29400,33050,36700,39650,42600,47340,52720,642,688,826,954,1065,1250,1436]
["San Bernardino",35900,41000,46100,51250,55350,59450,63550,67650,57400,65600,73800,82000,88600,95150,101650,108250,897,961,1152,1332,1486,1640,1793,1148,1231,1478,1699,1876,2051,2227,21550,24600,27700,31200,36580,41960,47340,52720,538,576,692,847,1049,1250,1436]
["San Diego",53050,60600,68200,75750,81850,87900,93950,100000,84900,97000,109150,121250,130950,140650,150350,160050,1326,1420,1705,1970,2197,2424,2651,1779,1907,2291,2638,2923,3207,3490,31850,36400,40950,45450,49100,52750,56400,60000,796,853,1023,1181,1318,1455,1590]
["San Francisco",68550,78350,88150,97900,105750,113600,121400,129250,109700,125350,141000,156650,169200,181750,194250,206800,1713,1836,2203,2545,2840,3133,3426,2208,2366,2842,3275,3634,3991,4348,41150,47000,52900,58750,63450,68150,72850,77550,1028,1101,1322,1527,1703,1880,2056]
["San Joaquin",33750,38600,43400,48200,52100,55950,59800,63650,54000,61700,69400,77100,83300,89450,95600,101800,843,904,1085,1253,1398,1543,1687,1078,1156,1388,1595,1760,1923,2087,20250,23150,26050,31200,36580,41960,47340,52720,506,542,651,847,1049,1250,1436]
["San Luis Obispo",44600,50950,57300,63650,68750,73850,78950,84050,71350,81550,91700,101900,110100,118250,126350,134500,1115,1194,1432,1655,1846,2037,2227,1429,1532,1841,2118,2343,2567,2790,26750,30600,34400,38200,41300,44350,47400,52720,668,716,860,993,1108,1250,1436]
["San Mateo",68550,78350,88150,97900,105750,113600,121400,129250,109700,125350,141000,156650,169200,181750,194250,206800,1713,1836,2203,2545,2840,3133,3426,2208,2366,2842,3275,3634,3991,4348,41150,47000,52900,58750,63450,68150,72850,77550,1028,1101,1322,1527,1703,1880,2056]
["Santa Barbara",56950,65050,73200,81300,87850,94350,100850,107350,91200,104250,117300,130350,140800,151250,161600,172050,1423,1525,1830,2114,2358,2602,2845,1911,2049,2462,2835,3144,3450,3756,34200,39050,43950,48800,52750,56650,60550,64450,855,915,1098,1269,1416,1562,1708]
["Santa Clara",64550,73750,82950,92150,99550,106900,114300,121650,102300,116900,131500,146100,157800,169500,181200,192900,1613,1728,2073,2396,2672,2949,3225,2058,2206,2649,3052,3385,3717,4049,38750,44250,49800,55300,59750,64150,68600,73000,968,1037,1245,1438,1603,1770,1935]
["Santa Cruz",63400,72450,81500,90550,97800,105050,112300,119550,101750,116250,130750,145300,156950,168550,180200,191800,1585,1698,2037,2354,2626,2898,3169,2188,2345,2816,3245,3600,3954,4308,38050,43500,48950,54350,58700,63050,67400,71750,951,1019,1223,1413,1576,1739,1902]
["Shasta",31200,35650,40100,44550,48150,51700,55250,58850,49950,57050,64200,71300,77050,82750,88450,94150,780,835,1002,1158,1292,1426,1559,994,1066,1282,1472,1623,1771,1921,18750,21400,25820,31200,36580,41960,47340,52720,468,501,645,847,1049,1250,1436]
["Sierra",30800,35200,39600,43950,47500,51000,54500,58050,49250,56250,63300,70300,75950,81550,87200,92800,787,843,1012,1170,1305,1440,1575,911,1005,1294,1487,1640,1791,1942,18450,21100,25820,31200,36580,41960,47340,52720,461,494,645,847,1049,1250,1436]
["Siskiyou",30800,35200,39600,43950,47500,51000,54500,58050,49250,56250,63300,70300,75950,81550,87200,92800,770,825,990,1143,1275,1406,1538,838,843,1089,1452,1600,1747,1894,18450,21100,25820,31200,36580,41960,47340,52720,461,494,645,847,1049,1250,1436]
["Solano",44050,50350,56650,62900,67950,73000,78000,83050,70450,80500,90550,100650,108700,116750,124850,132850,1101,1180,1416,1635,1825,2013,2201,1411,1513,1818,2092,2314,2535,2755,26450,30200,34000,37750,40800,43800,47340,52720,661,708,850,981,1095,1250,1436]
["Sonoma",48450,55350,62250,69150,74700,80250,85750,91300,77500,88600,99650,110700,119600,128450,137300,146150,1211,1297,1556,1798,2006,2213,2420,1554,1666,2002,2304,2550,2796,3041,29050,33200,37350,41500,44850,48150,51500,54800,726,778,933,1079,1203,1328,1452]
["Stanislaus",31900,36450,41000,45550,49200,52850,56500,60150,51050,58350,65650,72900,78750,84600,90400,96250,797,854,1025,1184,1321,1458,1594,1016,1091,1311,1505,1660,1813,1966,19150,21900,25820,31200,36580,41960,47340,52720,478,513,645,847,1049,1250,1436]
["Sutter",30800,35200,39600,43950,47500,51000,54500,58050,49250,56250,63300,70300,75950,81550,87200,92800,770,825,990,1143,1275,1406,1538,981,1053,1264,1452,1600,1747,1894,18450,21100,25820,31200,36580,41960,47340,52720,461,494,645,847,1049,1250,1436]
["Tehama",30800,35200,39600,43950,47500,51000,54500,58050,49250,56250,63300,70300,75950,81550,87200,92800,770,825,990,1143,1275,1406,1538,844,948,1245,1452,1600,1747,1894,18450,21100,25820,31200,36580,41960,47340,52720,461,494,645,847,1049,1250,1436]
["Trinity",30800,35200,39600,43950,47500,51000,54500,58050,49250,56250,63300,70300,75950,81550,87200,92800,710,784,990,1143,1275,1406,1538,710,784,1030,1451,1600,1747,1894,18450,21100,25820,31200,36580,41960,47340,52720,461,494,645,847,1049,1250,1436]
["Tulare",30800,35200,39600,43950,47500,51000,54500,58050,49250,56250,63300,70300,75950,81550,87200,92800,770,825,990,1143,1275,1406,1538,977,989,1264,1452,1600,1747,1894,18450,21100,25820,31200,36580,41960,47340,52720,461,494,645,847,1049,1250,1436]
["Tuolumne",33900,38750,43600,48450,52350,56200,60100,63950,54250,62000,69750,77450,83650,89850,96050,102250,847,908,1090,1260,1405,1550,1695,919,1032,1356,1604,1770,1935,2099,20350,23250,26150,31200,36580,41960,47340,52720,508,545,653,847,1049,1250,1436]
["Ventura",49250,56300,63350,70350,76000,81650,87250,92900,78800,90050,101300,112550,121600,130600,139600,148600,1231,1319,1583,1829,2041,2251,2462,1581,1696,2037,2344,2595,2845,3095,29550,33800,38000,42200,45600,49000,52350,55750,738,791,950,1097,1225,1351,1477]
["Yolo",40400,46150,51900,57650,62300,66900,71500,76100,64600,73800,83050,92250,99650,107050,114400,121800,1010,1081,1297,1499,1672,1845,2017,1293,1386,1666,1915,2116,2317,2517,24250,27700,31150,34600,37400,41960,47340,52720,606,649,778,900,1049,1250,1436]
["Yuba",30800,35200,39600,43950,47500,51000,54500,58050,49250,56250,63300,70300,75950,81550,87200,92800,770,825,990,1143,1275,1406,1538,981,1053,1264,1452,1600,1747,1894,18450,21100,25820,31200,36580,41960,47340,52720,461,494,645,847,1049,1250,1436]

{"sheet":"State Limits","index":7,"n_rows":59,"n_cols":17,"rows_kept":59,"cut":false,"hidden":true,"merged":[]}
["2024 HCD Official State Income Limits","l50_1","l50_2","l50_3","l50_4","l50_5","l50_6","l50_7","l50_8","l80_1","l80_2","l80_3","l80_4","l80_5","l80_6","l80_7","l80_8"]
["Alameda",{"$f":"OFFSET('State Limits raw data'!$C$7,(ROW()-2)*7,0)","v":54500},{"$f":"OFFSET('State Limits raw data'!$D$7,(ROW()-2)*7,0)","v":62300},{"$f":"OFFSET('State Limits raw data'!$E$7,(ROW()-2)*7,0)","v":70100},{"$f":"OFFSET('State Limits raw data'!$F$7,(ROW()-2)*7,0)","v":77850},{"$f":"OFFSET('State Limits raw data'!$G$7,(ROW()-2)*7,0)","v":84100},{"$f":"OFFSET('State Limits raw data'!$H$7,(ROW()-2)*7,0)","v":90350},{"$f":"OFFSET('State Limits raw data'!$I$7,(ROW()-2)*7,0)","v":96550},{"$f":"OFFSET('State Limits raw data'!$J$7,(ROW()-2)*7,0)","v":102800},{"$f":"OFFSET('State Limits raw data'!$C$8,(ROW()-2)*7,0)","v":84600},{"$f":"OFFSET('State Limits raw data'!$D$8,(ROW()-2)*7,0)","v":96650},{"$f":"OFFSET('State Limits raw data'!$E$8,(ROW()-2)*7,0)","v":108750},{"$f":"OFFSET('State Limits raw data'!$F$8,(ROW()-2)*7,0)","v":120800},{"$f":"OFFSET('State Limits raw data'!$G$8,(ROW()-2)*7,0)","v":130500},{"$f":"OFFSET('State Limits raw data'!$H$8,(ROW()-2)*7,0)","v":140150},{"$f":"OFFSET('State Limits raw data'!$I$8,(ROW()-2)*7,0)","v":149800},{"$f":"OFFSET('State Limits raw data'!$J$8,(ROW()-2)*7,0)","v":159500}]
["Alpine",{"$f":"OFFSET('State Limits raw data'!$C$7,(ROW()-2)*7,0)","v":37000},{"$f":"OFFSET('State Limits raw data'!$D$7,(ROW()-2)*7,0)","v":42250},{"$f":"OFFSET('State Limits raw data'!$E$7,(ROW()-2)*7,0)","v":47550},{"$f":"OFFSET('State Limits raw data'!$F$7,(ROW()-2)*7,0)","v":52850},{"$f":"OFFSET('State Limits raw data'!$G$7,(ROW()-2)*7,0)","v":57050},{"$f":"OFFSET('State Limits raw data'!$H$7,(ROW()-2)*7,0)","v":61300},{"$f":"OFFSET('State Limits raw data'!$I$7,(ROW()-2)*7,0)","v":65550},{"$f":"OFFSET('State Limits raw data'!$J$7,(ROW()-2)*7,0)","v":69750},{"$f":"OFFSET('State Limits raw data'!$C$8,(ROW()-2)*7,0)","v":59200},{"$f":"OFFSET('State Limits raw data'!$D$8,(ROW()-2)*7,0)","v":67650},{"$f":"OFFSET('State Limits raw data'!$E$8,(ROW()-2)*7,0)","v":76100},{"$f":"OFFSET('State Limits raw data'!$F$8,(ROW()-2)*7,0)","v":84550},{"$f":"OFFSET('State Limits raw data'!$G$8,(ROW()-2)*7,0)","v":91350},{"$f":"OFFSET('State Limits raw data'!$H$8,(ROW()-2)*7,0)","v":98100},{"$f":"OFFSET('State Limits raw data'!$I$8,(ROW()-2)*7,0)","v":104850},{"$f":"OFFSET('State Limits raw data'!$J$8,(ROW()-2)*7,0)","v":111650}]
["Amador",{"$f":"OFFSET('State Limits raw data'!$C$7,(ROW()-2)*7,0)","v":35300},{"$f":"OFFSET('State Limits raw data'!$D$7,(ROW()-2)*7,0)","v":40350},{"$f":"OFFSET('State Limits raw data'!$E$7,(ROW()-2)*7,0)","v":45400},{"$f":"OFFSET('State Limits raw data'!$F$7,(ROW()-2)*7,0)","v":50400},{"$f":"OFFSET('State Limits raw data'!$G$7,(ROW()-2)*7,0)","v":54450},{"$f":"OFFSET('State Limits raw data'!$H$7,(ROW()-2)*7,0)","v":58500},{"$f":"OFFSET('State Limits raw data'!$I$7,(ROW()-2)*7,0)","v":62500},{"$f":"OFFSET('State Limits raw data'!$J$7,(ROW()-2)*7,0)","v":66550},{"$f":"OFFSET('State Limits raw data'!$C$8,(ROW()-2)*7,0)","v":56450},{"$f":"OFFSET('State Limits raw data'!$D$8,(ROW()-2)*7,0)","v":64550},{"$f":"OFFSET('State Limits raw data'!$E$8,(ROW()-2)*7,0)","v":72600},{"$f":"OFFSET('State Limits raw data'!$F$8,(ROW()-2)*7,0)","v":80650},{"$f":"OFFSET('State Limits raw data'!$G$8,(ROW()-2)*7,0)","v":87150},{"$f":"OFFSET('State Limits raw data'!$H$8,(ROW()-2)*7,0)","v":93600},{"$f":"OFFSET('State Limits raw data'!$I$8,(ROW()-2)*7,0)","v":100050},{"$f":"OFFSET('State Limits raw data'!$J$8,(ROW()-2)*7,0)","v":106500}]
["Butte",{"$f":"OFFSET('State Limits raw data'!$C$7,(ROW()-2)*7,0)","v":31750},{"$f":"OFFSET('State Limits raw data'!$D$7,(ROW()-2)*7,0)","v":36300},{"$f":"OFFSET('State Limits raw data'!$E$7,(ROW()-2)*7,0)","v":40850},{"$f":"OFFSET('State Limits raw data'!$F$7,(ROW()-2)*7,0)","v":45350},{"$f":"OFFSET('State Limits raw data'!$G$7,(ROW()-2)*7,0)","v":49000},{"$f":"OFFSET('State Limits raw data'!$H$7,(ROW()-2)*7,0)","v":52600},{"$f":"OFFSET('State Limits raw data'!$I$7,(ROW()-2)*7,0)","v":56250},{"$f":"OFFSET('State Limits raw data'!$J$7,(ROW()-2)*7,0)","v":59850},{"$f":"OFFSET('State Limits raw data'!$C$8,(ROW()-2)*7,0)","v":50750},{"$f":"OFFSET('State Limits raw data'!$D$8,(ROW()-2)*7,0)","v":58000},{"$f":"OFFSET('State Limits raw data'!$E$8,(ROW()-2)*7,0)","v":65250},{"$f":"OFFSET('State Limits raw data'!$F$8,(ROW()-2)*7,0)","v":72500},{"$f":"OFFSET('State Limits raw data'!$G$8,(ROW()-2)*7,0)","v":78300},{"$f":"OFFSET('State Limits raw data'!$H$8,(ROW()-2)*7,0)","v":84100},{"$f":"OFFSET('State Limits raw data'!$I$8,(ROW()-2)*7,0)","v":89900},{"$f":"OFFSET('State Limits raw data'!$J$8,(ROW()-2)*7,0)","v":95700}]
["Calaveras",{"$f":"OFFSET('State Limits raw data'!$C$7,(ROW()-2)*7,0)","v":33400},{"$f":"OFFSET('State Limits raw data'!$D$7,(ROW()-2)*7,0)","v":38150},{"$f":"OFFSET('State Limits raw data'!$E$7,(ROW()-2)*7,0)","v":42900},{"$f":"OFFSET('State Limits raw data'!$F$7,(ROW()-2)*7,0)","v":47650},{"$f":"OFFSET('State Limits raw data'!$G$7,(ROW()-2)*7,0)","v":51500},{"$f":"OFFSET('State Limits raw data'!$H$7,(ROW()-2)*7,0)","v":55300},{"$f":"OFFSET('State Limits raw data'!$I$7,(ROW()-2)*7,0)","v":59100},{"$f":"OFFSET('State Limits raw data'!$J$7,(ROW()-2)*7,0)","v":62900},{"$f":"OFFSET('State Limits raw data'!$C$8,(ROW()-2)*7,0)","v":53400},{"$f":"OFFSET('State Limits raw data'!$D$8,(ROW()-2)*7,0)","v":61000},{"$f":"OFFSET('State Limits raw data'!$E$8,(ROW()-2)*7,0)","v":68650},{"$f":"OFFSET('State Limits raw data'!$F$8,(ROW()-2)*7,0)","v":76250},{"$f":"OFFSET('State Limits raw data'!$G$8,(ROW()-2)*7,0)","v":82350},{"$f":"OFFSET('State Limits raw data'!$H$8,(ROW()-2)*7,0)","v":88450},{"$f":"OFFSET('State Limits raw data'!$I$8,(ROW()-2)*7,0)","v":94550},{"$f":"OFFSET('State Limits raw data'!$J$8,(ROW()-2)*7,0)","v":100650}]
["Colusa",{"$f":"OFFSET('State Limits raw data'!$C$7,(ROW()-2)*7,0)","v":30800},{"$f":"OFFSET('State Limits raw data'!$D$7,(ROW()-2)*7,0)","v":35200},{"$f":"OFFSET('State Limits raw data'!$E$7,(ROW()-2)*7,0)","v":39600},{"$f":"OFFSET('State Limits raw data'!$F$7,(ROW()-2)*7,0)","v":43950},{"$f":"OFFSET('State Limits raw data'!$G$7,(ROW()-2)*7,0)","v":47500},{"$f":"OFFSET('State Limits raw data'!$H$7,(ROW()-2)*7,0)","v":51000},{"$f":"OFFSET('State Limits raw data'!$I$7,(ROW()-2)*7,0)","v":54500},{"$f":"OFFSET('State Limits raw data'!$J$7,(ROW()-2)*7,0)","v":58050},{"$f":"OFFSET('State Limits raw data'!$C$8,(ROW()-2)*7,0)","v":49250},{"$f":"OFFSET('State Limits raw data'!$D$8,(ROW()-2)*7,0)","v":56250},{"$f":"OFFSET('State Limits raw data'!$E$8,(ROW()-2)*7,0)","v":63300},{"$f":"OFFSET('State Limits raw data'!$F$8,(ROW()-2)*7,0)","v":70300},{"$f":"OFFSET('State Limits raw data'!$G$8,(ROW()-2)*7,0)","v":75950},{"$f":"OFFSET('State Limits raw data'!$H$8,(ROW()-2)*7,0)","v":81550},{"$f":"OFFSET('State Limits raw data'!$I$8,(ROW()-2)*7,0)","v":87200},{"$f":"OFFSET('State Limits raw data'!$J$8,(ROW()-2)*7,0)","v":92800}]
["Contra Costa",{"$f":"OFFSET('State Limits raw data'!$C$7,(ROW()-2)*7,0)","v":54500},{"$f":"OFFSET('State Limits raw data'!$D$7,(ROW()-2)*7,0)","v":62300},{"$f":"OFFSET('State Limits raw data'!$E$7,(ROW()-2)*7,0)","v":70100},{"$f":"OFFSET('State Limits raw data'!$F$7,(ROW()-2)*7,0)","v":77850},{"$f":"OFFSET('State Limits raw data'!$G$7,(ROW()-2)*7,0)","v":84100},{"$f":"OFFSET('State Limits raw data'!$H$7,(ROW()-2)*7,0)","v":90350},{"$f":"OFFSET('State Limits raw data'!$I$7,(ROW()-2)*7,0)","v":96550},{"$f":"OFFSET('State Limits raw data'!$J$7,(ROW()-2)*7,0)","v":102800},{"$f":"OFFSET('State Limits raw data'!$C$8,(ROW()-2)*7,0)","v":84600},{"$f":"OFFSET('State Limits raw data'!$D$8,(ROW()-2)*7,0)","v":96650},{"$f":"OFFSET('State Limits raw data'!$E$8,(ROW()-2)*7,0)","v":108750},{"$f":"OFFSET('State Limits raw data'!$F$8,(ROW()-2)*7,0)","v":120800},{"$f":"OFFSET('State Limits raw data'!$G$8,(ROW()-2)*7,0)","v":130500},{"$f":"OFFSET('State Limits raw data'!$H$8,(ROW()-2)*7,0)","v":140150},{"$f":"OFFSET('State Limits raw data'!$I$8,(ROW()-2)*7,0)","v":149800},{"$f":"OFFSET('State Limits raw data'!$J$8,(ROW()-2)*7,0)","v":159500}]
["Del Norte",{"$f":"OFFSET('State Limits raw data'!$C$7,(ROW()-2)*7,0)","v":30800},{"$f":"OFFSET('State Limits raw data'!$D$7,(ROW()-2)*7,0)","v":35200},{"$f":"OFFSET('State Limits raw data'!$E$7,(ROW()-2)*7,0)","v":39600},{"$f":"OFFSET('State Limits raw data'!$F$7,(ROW()-2)*7,0)","v":43950},{"$f":"OFFSET('State Limits raw data'!$G$7,(ROW()-2)*7,0)","v":47500},{"$f":"OFFSET('State Limits raw data'!$H$7,(ROW()-2)*7,0)","v":51000},{"$f":"OFFSET('State Limits raw data'!$I$7,(ROW()-2)*7,0)","v":54500},{"$f":"OFFSET('State Limits raw data'!$J$7,(ROW()-2)*7,0)","v":58050},{"$f":"OFFSET('State Limits raw data'!$C$8,(ROW()-2)*7,0)","v":49250},{"$f":"OFFSET('State Limits raw data'!$D$8,(ROW()-2)*7,0)","v":56250},{"$f":"OFFSET('State Limits raw data'!$E$8,(ROW()-2)*7,0)","v":63300},{"$f":"OFFSET('State Limits raw data'!$F$8,(ROW()-2)*7,0)","v":70300},{"$f":"OFFSET('State Limits raw data'!$G$8,(ROW()-2)*7,0)","v":75950},{"$f":"OFFSET('State Limits raw data'!$H$8,(ROW()-2)*7,0)","v":81550},{"$f":"OFFSET('State Limits raw data'!$I$8,(ROW()-2)*7,0)","v":87200},{"$f":"OFFSET('State Limits raw data'!$J$8,(ROW()-2)*7,0)","v":92800}]
["El Dorado",{"$f":"OFFSET('State Limits raw data'!$C$7,(ROW()-2)*7,0)","v":41300},{"$f":"OFFSET('State Limits raw data'!$D$7,(ROW()-2)*7,0)","v":47150},{"$f":"OFFSET('State Limits raw data'!$E$7,(ROW()-2)*7,0)","v":53050},{"$f":"OFFSET('State Limits raw data'!$F$7,(ROW()-2)*7,0)","v":58950},{"$f":"OFFSET('State Limits raw data'!$G$7,(ROW()-2)*7,0)","v":63650},{"$f":"OFFSET('State Limits raw data'!$H$7,(ROW()-2)*7,0)","v":68400},{"$f":"OFFSET('State Limits raw data'!$I$7,(ROW()-2)*7,0)","v":73100},{"$f":"OFFSET('State Limits raw data'!$J$7,(ROW()-2)*7,0)","v":77850},{"$f":"OFFSET('State Limits raw data'!$C$8,(ROW()-2)*7,0)","v":66050},{"$f":"OFFSET('State Limits raw data'!$D$8,(ROW()-2)*7,0)","v":75450},{"$f":"OFFSET('State Limits raw data'!$E$8,(ROW()-2)*7,0)","v":84900},{"$f":"OFFSET('State Limits raw data'!$F$8,(ROW()-2)*7,0)","v":94300},{"$f":"OFFSET('State Limits raw data'!$G$8,(ROW()-2)*7,0)","v":101850},{"$f":"OFFSET('State Limits raw data'!$H$8,(ROW()-2)*7,0)","v":109400},{"$f":"OFFSET('State Limits raw data'!$I$8,(ROW()-2)*7,0)","v":116950},{"$f":"OFFSET('State Limits raw data'!$J$8,(ROW()-2)*7,0)","v":124500}]
["Fresno",{"$f":"OFFSET('State Limits raw data'!$C$7,(ROW()-2)*7,0)","v":30800},{"$f":"OFFSET('State Limits raw data'!$D$7,(ROW()-2)*7,0)","v":35200},{"$f":"OFFSET('State Limits raw data'!$E$7,(ROW()-2)*7,0)","v":39600},{"$f":"OFFSET('State Limits raw data'!$F$7,(ROW()-2)*7,0)","v":43950},{"$f":"OFFSET('State Limits raw data'!$G$7,(ROW()-2)*7,0)","v":47500},{"$f":"OFFSET('State Limits raw data'!$H$7,(ROW()-2)*7,0)","v":51000},{"$f":"OFFSET('State Limits raw data'!$I$7,(ROW()-2)*7,0)","v":54500},{"$f":"OFFSET('State Limits raw data'!$J$7,(ROW()-2)*7,0)","v":58050},{"$f":"OFFSET('State Limits raw data'!$C$8,(ROW()-2)*7,0)","v":49250},{"$f":"OFFSET('State Limits raw data'!$D$8,(ROW()-2)*7,0)","v":56250},{"$f":"OFFSET('State Limits raw data'!$E$8,(ROW()-2)*7,0)","v":63300},{"$f":"OFFSET('State Limits raw data'!$F$8,(ROW()-2)*7,0)","v":70300},{"$f":"OFFSET('State Limits raw data'!$G$8,(ROW()-2)*7,0)","v":75950},{"$f":"OFFSET('State Limits raw data'!$H$8,(ROW()-2)*7,0)","v":81550},{"$f":"OFFSET('State Limits raw data'!$I$8,(ROW()-2)*7,0)","v":87200},{"$f":"OFFSET('State Limits raw data'!$J$8,(ROW()-2)*7,0)","v":92800}]
["Glenn",{"$f":"OFFSET('State Limits raw data'!$C$7,(ROW()-2)*7,0)","v":30800},{"$f":"OFFSET('State Limits raw data'!$D$7,(ROW()-2)*7,0)","v":35200},{"$f":"OFFSET('State Limits raw data'!$E$7,(ROW()-2)*7,0)","v":39600},{"$f":"OFFSET('State Limits raw data'!$F$7,(ROW()-2)*7,0)","v":43950},{"$f":"OFFSET('State Limits raw data'!$G$7,(ROW()-2)*7,0)","v":47500},{"$f":"OFFSET('State Limits raw data'!$H$7,(ROW()-2)*7,0)","v":51000},{"$f":"OFFSET('State Limits raw data'!$I$7,(ROW()-2)*7,0)","v":54500},{"$f":"OFFSET('State Limits raw data'!$J$7,(ROW()-2)*7,0)","v":58050},{"$f":"OFFSET('State Limits raw data'!$C$8,(ROW()-2)*7,0)","v":49250},{"$f":"OFFSET('State Limits raw data'!$D$8,(ROW()-2)*7,0)","v":56250},{"$f":"OFFSET('State Limits raw data'!$E$8,(ROW()-2)*7,0)","v":63300},{"$f":"OFFSET('State Limits raw data'!$F$8,(ROW()-2)*7,0)","v":70300},{"$f":"OFFSET('State Limits raw data'!$G$8,(ROW()-2)*7,0)","v":75950},{"$f":"OFFSET('State Limits raw data'!$H$8,(ROW()-2)*7,0)","v":81550},{"$f":"OFFSET('State Limits raw data'!$I$8,(ROW()-2)*7,0)","v":87200},{"$f":"OFFSET('State Limits raw data'!$J$8,(ROW()-2)*7,0)","v":92800}]
["Humboldt",{"$f":"OFFSET('State Limits raw data'!$C$7,(ROW()-2)*7,0)","v":30950},{"$f":"OFFSET('State Limits raw data'!$D$7,(ROW()-2)*7,0)","v":35350},{"$f":"OFFSET('State Limits raw data'!$E$7,(ROW()-2)*7,0)","v":39750},{"$f":"OFFSET('State Limits raw data'!$F$7,(ROW()-2)*7,0)","v":44150},{"$f":"OFFSET('State Limits raw data'!$G$7,(ROW()-2)*7,0)","v":47700},{"$f":"OFFSET('State Limits raw data'!$H$7,(ROW()-2)*7,0)","v":51250},{"$f":"OFFSET('State Limits raw data'!$I$7,(ROW()-2)*7,0)","v":54750},{"$f":"OFFSET('State Limits raw data'!$J$7,(ROW()-2)*7,0)","v":58300},{"$f":"OFFSET('State Limits raw data'!$C$8,(ROW()-2)*7,0)","v":49500},{"$f":"OFFSET('State Limits raw data'!$D$8,(ROW()-2)*7,0)","v":56550},{"$f":"OFFSET('State Limits raw data'!$E$8,(ROW()-2)*7,0)","v":63600},{"$f":"OFFSET('State Limits raw data'!$F$8,(ROW()-2)*7,0)","v":70650},{"$f":"OFFSET('State Limits raw data'!$G$8,(ROW()-2)*7,0)","v":76350},{"$f":"OFFSET('State Limits raw data'!$H$8,(ROW()-2)*7,0)","v":82000},{"$f":"OFFSET('State Limits raw data'!$I$8,(ROW()-2)*7,0)","v":87650},{"$f":"OFFSET('State Limits raw data'!$J$8,(ROW()-2)*7,0)","v":93300}]
["Imperial",{"$f":"OFFSET('State Limits raw data'!$C$7,(ROW()-2)*7,0)","v":30800},{"$f":"OFFSET('State Limits raw data'!$D$7,(ROW()-2)*7,0)","v":35200},{"$f":"OFFSET('State Limits raw data'!$E$7,(ROW()-2)*7,0)","v":39600},{"$f":"OFFSET('State Limits raw data'!$F$7,(ROW()-2)*7,0)","v":43950},{"$f":"OFFSET('State Limits raw data'!$G$7,(ROW()-2)*7,0)","v":47500},{"$f":"OFFSET('State Limits raw data'!$H$7,(ROW()-2)*7,0)","v":51000},{"$f":"OFFSET('State Limits raw data'!$I$7,(ROW()-2)*7,0)","v":54500},{"$f":"OFFSET('State Limits raw data'!$J$7,(ROW()-2)*7,0)","v":58050},{"$f":"OFFSET('State Limits raw data'!$C$8,(ROW()-2)*7,0)","v":49250},{"$f":"OFFSET('State Limits raw data'!$D$8,(ROW()-2)*7,0)","v":56250},{"$f":"OFFSET('State Limits raw data'!$E$8,(ROW()-2)*7,0)","v":63300},{"$f":"OFFSET('State Limits raw data'!$F$8,(ROW()-2)*7,0)","v":70300},{"$f":"OFFSET('State Limits raw data'!$G$8,(ROW()-2)*7,0)","v":75950},{"$f":"OFFSET('State Limits raw data'!$H$8,(ROW()-2)*7,0)","v":81550},{"$f":"OFFSET('State Limits raw data'!$I$8,(ROW()-2)*7,0)","v":87200},{"$f":"OFFSET('State Limits raw data'!$J$8,(ROW()-2)*7,0)","v":92800}]
["Inyo",{"$f":"OFFSET('State Limits raw data'!$C$7,(ROW()-2)*7,0)","v":30800},{"$f":"OFFSET('State Limits raw data'!$D$7,(ROW()-2)*7,0)","v":35200},{"$f":"OFFSET('State Limits raw data'!$E$7,(ROW()-2)*7,0)","v":39600},{"$f":"OFFSET('State Limits raw data'!$F$7,(ROW()-2)*7,0)","v":43950},{"$f":"OFFSET('State Limits raw data'!$G$7,(ROW()-2)*7,0)","v":47500},{"$f":"OFFSET('State Limits raw data'!$H$7,(ROW()-2)*7,0)","v":51000},{"$f":"OFFSET('State Limits raw data'!$I$7,(ROW()-2)*7,0)","v":54500},{"$f":"OFFSET('State Limits raw data'!$J$7,(ROW()-2)*7,0)","v":58050},{"$f":"OFFSET('State Limits raw data'!$C$8,(ROW()-2)*7,0)","v":49250},{"$f":"OFFSET('State Limits raw data'!$D$8,(ROW()-2)*7,0)","v":56250},{"$f":"OFFSET('State Limits raw data'!$E$8,(ROW()-2)*7,0)","v":63300},{"$f":"OFFSET('State Limits raw data'!$F$8,(ROW()-2)*7,0)","v":70300},{"$f":"OFFSET('State Limits raw data'!$G$8,(ROW()-2)*7,0)","v":75950},{"$f":"OFFSET('State Limits raw data'!$H$8,(ROW()-2)*7,0)","v":81550},{"$f":"OFFSET('State Limits raw data'!$I$8,(ROW()-2)*7,0)","v":87200},{"$f":"OFFSET('State Limits raw data'!$J$8,(ROW()-2)*7,0)","v":92800}]
["Kern",{"$f":"OFFSET('State Limits raw data'!$C$7,(ROW()-2)*7,0)","v":30800},{"$f":"OFFSET('State Limits raw data'!$D$7,(ROW()-2)*7,0)","v":35200},{"$f":"OFFSET('State Limits raw data'!$E$7,(ROW()-2)*7,0)","v":39600},{"$f":"OFFSET('State Limits raw data'!$F$7,(ROW()-2)*7,0)","v":43950},{"$f":"OFFSET('State Limits raw data'!$G$7,(ROW()-2)*7,0)","v":47500},{"$f":"OFFSET('State Limits raw data'!$H$7,(ROW()-2)*7,0)","v":51000},{"$f":"OFFSET('State Limits raw data'!$I$7,(ROW()-2)*7,0)","v":54500},{"$f":"OFFSET('State Limits raw data'!$J$7,(ROW()-2)*7,0)","v":58050},{"$f":"OFFSET('State Limits raw data'!$C$8,(ROW()-2)*7,0)","v":49250},{"$f":"OFFSET('State Limits raw data'!$D$8,(ROW()-2)*7,0)","v":56250},{"$f":"OFFSET('State Limits raw data'!$E$8,(ROW()-2)*7,0)","v":63300},{"$f":"OFFSET('State Limits raw data'!$F$8,(ROW()-2)*7,0)","v":70300},{"$f":"OFFSET('State Limits raw data'!$G$8,(ROW()-2)*7,0)","v":75950},{"$f":"OFFSET('State Limits raw data'!$H$8,(ROW()-2)*7,0)","v":81550},{"$f":"OFFSET('State Limits raw data'!$I$8,(ROW()-2)*7,0)","v":87200},{"$f":"OFFSET('State Limits raw data'!$J$8,(ROW()-2)*7,0)","v":92800}]
["Kings",{"$f":"OFFSET('State Limits raw data'!$C$7,(ROW()-2)*7,0)","v":30800},{"$f":"OFFSET('State Limits raw data'!$D$7,(ROW()-2)*7,0)","v":35200},{"$f":"OFFSET('State Limits raw data'!$E$7,(ROW()-2)*7,0)","v":39600},{"$f":"OFFSET('State Limits raw data'!$F$7,(ROW()-2)*7,0)","v":43950},{"$f":"OFFSET('State Limits raw data'!$G$7,(ROW()-2)*7,0)","v":47500},{"$f":"OFFSET('State Limits raw data'!$H$7,(ROW()-2)*7,0)","v":51000},{"$f":"OFFSET('State Limits raw data'!$I$7,(ROW()-2)*7,0)","v":54500},{"$f":"OFFSET('State Limits raw data'!$J$7,(ROW()-2)*7,0)","v":58050},{"$f":"OFFSET('State Limits raw data'!$C$8,(ROW()-2)*7,0)","v":49250},{"$f":"OFFSET('State Limits raw data'!$D$8,(ROW()-2)*7,0)","v":56250},{"$f":"OFFSET('State Limits raw data'!$E$8,(ROW()-2)*7,0)","v":63300},{"$f":"OFFSET('State Limits raw data'!$F$8,(ROW()-2)*7,0)","v":70300},{"$f":"OFFSET('State Limits raw data'!$G$8,(ROW()-2)*7,0)","v":75950},{"$f":"OFFSET('State Limits raw data'!$H$8,(ROW()-2)*7,0)","v":81550},{"$f":"OFFSET('State Limits raw data'!$I$8,(ROW()-2)*7,0)","v":87200},{"$f":"OFFSET('State Limits raw data'!$J$8,(ROW()-2)*7,0)","v":92800}]
["Lake",{"$f":"OFFSET('State Limits raw data'!$C$7,(ROW()-2)*7,0)","v":30800},{"$f":"OFFSET('State Limits raw data'!$D$7,(ROW()-2)*7,0)","v":35200},{"$f":"OFFSET('State Limits raw data'!$E$7,(ROW()-2)*7,0)","v":39600},{"$f":"OFFSET('State Limits raw data'!$F$7,(ROW()-2)*7,0)","v":43950},{"$f":"OFFSET('State Limits raw data'!$G$7,(ROW()-2)*7,0)","v":47500},{"$f":"OFFSET('State Limits raw data'!$H$7,(ROW()-2)*7,0)","v":51000},{"$f":"OFFSET('State Limits raw data'!$I$7,(ROW()-2)*7,0)","v":54500},{"$f":"OFFSET('State Limits raw data'!$J$7,(ROW()-2)*7,0)","v":58050},{"$f":"OFFSET('State Limits raw data'!$C$8,(ROW()-2)*7,0)","v":49250},{"$f":"OFFSET('State Limits raw data'!$D$8,(ROW()-2)*7,0)","v":56250},{"$f":"OFFSET('State Limits raw data'!$E$8,(ROW()-2)*7,0)","v":63300},{"$f":"OFFSET('State Limits raw data'!$F$8,(ROW()-2)*7,0)","v":70300},{"$f":"OFFSET('State Limits raw data'!$G$8,(ROW()-2)*7,0)","v":75950},{"$f":"OFFSET('State Limits raw data'!$H$8,(ROW()-2)*7,0)","v":81550},{"$f":"OFFSET('State Limits raw data'!$I$8,(ROW()-2)*7,0)","v":87200},{"$f":"OFFSET('State Limits raw data'!$J$8,(ROW()-2)*7,0)","v":92800}]
["Lassen",{"$f":"OFFSET('State Limits raw data'!$C$7,(ROW()-2)*7,0)","v":30800},{"$f":"OFFSET('State Limits raw data'!$D$7,(ROW()-2)*7,0)","v":35200},{"$f":"OFFSET('State Limits raw data'!$E$7,(ROW()-2)*7,0)","v":39600},{"$f":"OFFSET('State Limits raw data'!$F$7,(ROW()-2)*7,0)","v":43950},{"$f":"OFFSET('State Limits raw data'!$G$7,(ROW()-2)*7,0)","v":47500},{"$f":"OFFSET('State Limits raw data'!$H$7,(ROW()-2)*7,0)","v":51000},{"$f":"OFFSET('State Limits raw data'!$I$7,(ROW()-2)*7,0)","v":54500},{"$f":"OFFSET('State Limits raw data'!$J$7,(ROW()-2)*7,0)","v":58050},{"$f":"OFFSET('State Limits raw data'!$C$8,(ROW()-2)*7,0)","v":49250},{"$f":"OFFSET('State Limits raw data'!$D$8,(ROW()-2)*7,0)","v":56250},{"$f":"OFFSET('State Limits raw data'!$E$8,(ROW()-2)*7,0)","v":63300},{"$f":"OFFSET('State Limits raw data'!$F$8,(ROW()-2)*7,0)","v":70300},{"$f":"OFFSET('State Limits raw data'!$G$8,(ROW()-2)*7,0)","v":75950},{"$f":"OFFSET('State Limits raw data'!$H$8,(ROW()-2)*7,0)","v":81550},{"$f":"OFFSET('State Limits raw data'!$I$8,(ROW()-2)*7,0)","v":87200},{"$f":"OFFSET('State Limits raw data'!$J$8,(ROW()-2)*7,0)","v":92800}]
["Los Angeles",{"$f":"OFFSET('State Limits raw data'!$C$7,(ROW()-2)*7,0)","v":48550},{"$f":"OFFSET('State Limits raw data'!$D$7,(ROW()-2)*7,0)","v":55450},{"$f":"OFFSET('State Limits raw data'!$E$7,(ROW()-2)*7,0)","v":62400},{"$f":"OFFSET('State Limits raw data'!$F$7,(ROW()-2)*7,0)","v":69350},{"$f":"OFFSET('State Limits raw data'!$G$7,(ROW()-2)*7,0)","v":74900},{"$f":"OFFSET('State Limits raw data'!$H$7,(ROW()-2)*7,0)","v":80450},{"$f":"OFFSET('State Limits raw data'!$I$7,(ROW()-2)*7,0)","v":86000},{"$f":"OFFSET('State Limits raw data'!$J$7,(ROW()-2)*7,0)","v":91550},{"$f":"OFFSET('State Limits raw data'!$C$8,(ROW()-2)*7,0)","v":77700},{"$f":"OFFSET('State Limits raw data'!$D$8,(ROW()-2)*7,0)","v":88800},{"$f":"OFFSET('State Limits raw data'!$E$8,(ROW()-2)*7,0)","v":99900},{"$f":"OFFSET('State Limits raw data'!$F$8,(ROW()-2)*7,0)","v":110950},{"$f":"OFFSET('State Limits raw data'!$G$8,(ROW()-2)*7,0)","v":119850},{"$f":"OFFSET('State Limits raw data'!$H$8,(ROW()-2)*7,0)","v":128750},{"$f":"OFFSET('State Limits raw data'!$I$8,(ROW()-2)*7,0)","v":137600},{"$f":"OFFSET('State Limits raw data'!$J$8,(ROW()-2)*7,0)","v":146500}]
["Madera",{"$f":"OFFSET('State Limits raw data'!$C$7,(ROW()-2)*7,0)","v":30800},{"$f":"OFFSET('State Limits raw data'!$D$7,(ROW()-2)*7,0)","v":35200},{"$f":"OFFSET('State Limits raw data'!$E$7,(ROW()-2)*7,0)","v":39600},{"$f":"OFFSET('State Limits raw data'!$F$7,(ROW()-2)*7,0)","v":43950},{"$f":"OFFSET('State Limits raw data'!$G$7,(ROW()-2)*7,0)","v":47500},{"$f":"OFFSET('State Limits raw data'!$H$7,(ROW()-2)*7,0)","v":51000},{"$f":"OFFSET('State Limits raw data'!$I$7,(ROW()-2)*7,0)","v":54500},{"$f":"OFFSET('State Limits raw data'!$J$7,(ROW()-2)*7,0)","v":58050},{"$f":"OFFSET('State Limits raw data'!$C$8,(ROW()-2)*7,0)","v":49250},{"$f":"OFFSET('State Limits raw data'!$D$8,(ROW()-2)*7,0)","v":56250},{"$f":"OFFSET('State Limits raw data'!$E$8,(ROW()-2)*7,0)","v":63300},{"$f":"OFFSET('State Limits raw data'!$F$8,(ROW()-2)*7,0)","v":70300},{"$f":"OFFSET('State Limits raw data'!$G$8,(ROW()-2)*7,0)","v":75950},{"$f":"OFFSET('State Limits raw data'!$H$8,(ROW()-2)*7,0)","v":81550},{"$f":"OFFSET('State Limits raw data'!$I$8,(ROW()-2)*7,0)","v":87200},{"$f":"OFFSET('State Limits raw data'!$J$8,(ROW()-2)*7,0)","v":92800}]
["Marin",{"$f":"OFFSET('State Limits raw data'!$C$7,(ROW()-2)*7,0)","v":68550},{"$f":"OFFSET('State Limits raw data'!$D$7,(ROW()-2)*7,0)","v":78350},{"$f":"OFFSET('State Limits raw data'!$E$7,(ROW()-2)*7,0)","v":88150},{"$f":"OFFSET('State Limits raw data'!$F$7,(ROW()-2)*7,0)","v":97900},{"$f":"OFFSET('State Limits raw data'!$G$7,(ROW()-2)*7,0)","v":105750},{"$f":"OFFSET('State Limits raw data'!$H$7,(ROW()-2)*7,0)","v":113600},{"$f":"OFFSET('State Limits raw data'!$I$7,(ROW()-2)*7,0)","v":121400},{"$f":"OFFSET('State Limits raw data'!$J$7,(ROW()-2)*7,0)","v":129250},{"$f":"OFFSET('State Limits raw data'!$C$8,(ROW()-2)*7,0)","v":109700},{"$f":"OFFSET('State Limits raw data'!$D$8,(ROW()-2)*7,0)","v":125350},{"$f":"OFFSET('State Limits raw data'!$E$8,(ROW()-2)*7,0)","v":141000},{"$f":"OFFSET('State Limits raw data'!$F$8,(ROW()-2)*7,0)","v":156650},{"$f":"OFFSET('State Limits raw data'!$G$8,(ROW()-2)*7,0)","v":169200},{"$f":"OFFSET('State Limits raw data'!$H$8,(ROW()-2)*7,0)","v":181750},{"$f":"OFFSET('State Limits raw data'!$I$8,(ROW()-2)*7,0)","v":194250},{"$f":"OFFSET('State Limits raw data'!$J$8,(ROW()-2)*7,0)","v":206800}]
["Mariposa",{"$f":"OFFSET('State Limits raw data'!$C$7,(ROW()-2)*7,0)","v":30800},{"$f":"OFFSET('State Limits raw data'!$D$7,(ROW()-2)*7,0)","v":35200},{"$f":"OFFSET('State Limits raw data'!$E$7,(ROW()-2)*7,0)","v":39600},{"$f":"OFFSET('State Limits raw data'!$F$7,(ROW()-2)*7,0)","v":43950},{"$f":"OFFSET('State Limits raw data'!$G$7,(ROW()-2)*7,0)","v":47500},{"$f":"OFFSET('State Limits raw data'!$H$7,(ROW()-2)*7,0)","v":51000},{"$f":"OFFSET('State Limits raw data'!$I$7,(ROW()-2)*7,0)","v":54500},{"$f":"OFFSET('State Limits raw data'!$J$7,(ROW()-2)*7,0)","v":58050},{"$f":"OFFSET('State Limits raw data'!$C$8,(ROW()-2)*7,0)","v":49250},{"$f":"OFFSET('State Limits raw data'!$D$8,(ROW()-2)*7,0)","v":56250},{"$f":"OFFSET('State Limits raw data'!$E$8,(ROW()-2)*7,0)","v":63300},{"$f":"OFFSET('State Limits raw data'!$F$8,(ROW()-2)*7,0)","v":70300},{"$f":"OFFSET('State Limits raw data'!$G$8,(ROW()-2)*7,0)","v":75950},{"$f":"OFFSET('State Limits raw data'!$H$8,(ROW()-2)*7,0)","v":81550},{"$f":"OFFSET('State Limits raw data'!$I$8,(ROW()-2)*7,0)","v":87200},{"$f":"OFFSET('State Limits raw data'!$J$8,(ROW()-2)*7,0)","v":92800}]
["Mendocino",{"$f":"OFFSET('State Limits raw data'!$C$7,(ROW()-2)*7,0)","v":31650},{"$f":"OFFSET('State Limits raw data'!$D$7,(ROW()-2)*7,0)","v":36200},{"$f":"OFFSET('State Limits raw data'!$E$7,(ROW()-2)*7,0)","v":40700},{"$f":"OFFSET('State Limits raw data'!$F$7,(ROW()-2)*7,0)","v":45200},{"$f":"OFFSET('State Limits raw data'!$G$7,(ROW()-2)*7,0)","v":48850},{"$f":"OFFSET('State Limits raw data'!$H$7,(ROW()-2)*7,0)","v":52450},{"$f":"OFFSET('State Limits raw data'!$I$7,(ROW()-2)*7,0)","v":56050},{"$f":"OFFSET('State Limits raw data'!$J$7,(ROW()-2)*7,0)","v":59700},{"$f":"OFFSET('State Limits raw data'!$C$8,(ROW()-2)*7,0)","v":50650},{"$f":"OFFSET('State Limits raw data'!$D$8,(ROW()-2)*7,0)","v":57850},{"$f":"OFFSET('State Limits raw data'!$E$8,(ROW()-2)*7,0)","v":65100},{"$f":"OFFSET('State Limits raw data'!$F$8,(ROW()-2)*7,0)","v":72300},{"$f":"OFFSET('State Limits raw data'!$G$8,(ROW()-2)*7,0)","v":78100},{"$f":"OFFSET('State Limits raw data'!$H$8,(ROW()-2)*7,0)","v":83900},{"$f":"OFFSET('State Limits raw data'!$I$8,(ROW()-2)*7,0)","v":89700},{"$f":"OFFSET('State Limits raw data'!$J$8,(ROW()-2)*7,0)","v":95450}]
["Merced",{"$f":"OFFSET('State Limits raw data'!$C$7,(ROW()-2)*7,0)","v":30800},{"$f":"OFFSET('State Limits raw data'!$D$7,(ROW()-2)*7,0)","v":35200},{"$f":"OFFSET('State Limits raw data'!$E$7,(ROW()-2)*7,0)","v":39600},{"$f":"OFFSET('State Limits raw data'!$F$7,(ROW()-2)*7,0)","v":43950},{"$f":"OFFSET('State Limits raw data'!$G$7,(ROW()-2)*7,0)","v":47500},{"$f":"OFFSET('State Limits raw data'!$H$7,(ROW()-2)*7,0)","v":51000},{"$f":"OFFSET('State Limits raw data'!$I$7,(ROW()-2)*7,0)","v":54500},{"$f":"OFFSET('State Limits raw data'!$J$7,(ROW()-2)*7,0)","v":58050},{"$f":"OFFSET('State Limits raw data'!$C$8,(ROW()-2)*7,0)","v":49250},{"$f":"OFFSET('State Limits raw data'!$D$8,(ROW()-2)*7,0)","v":56250},{"$f":"OFFSET('State Limits raw data'!$E$8,(ROW()-2)*7,0)","v":63300},{"$f":"OFFSET('State Limits raw data'!$F$8,(ROW()-2)*7,0)","v":70300},{"$f":"OFFSET('State Limits raw data'!$G$8,(ROW()-2)*7,0)","v":75950},{"$f":"OFFSET('State Limits raw data'!$H$8,(ROW()-2)*7,0)","v":81550},{"$f":"OFFSET('State Limits raw data'!$I$8,(ROW()-2)*7,0)","v":87200},{"$f":"OFFSET('State Limits raw data'!$J$8,(ROW()-2)*7,0)","v":92800}]
["Modoc",{"$f":"OFFSET('State Limits raw data'!$C$7,(ROW()-2)*7,0)","v":30800},{"$f":"OFFSET('State Limits raw data'!$D$7,(ROW()-2)*7,0)","v":35200},{"$f":"OFFSET('State Limits raw data'!$E$7,(ROW()-2)*7,0)","v":39600},{"$f":"OFFSET('State Limits raw data'!$F$7,(ROW()-2)*7,0)","v":43950},{"$f":"OFFSET('State Limits raw data'!$G$7,(ROW()-2)*7,0)","v":47500},{"$f":"OFFSET('State Limits raw data'!$H$7,(ROW()-2)*7,0)","v":51000},{"$f":"OFFSET('State Limits raw data'!$I$7,(ROW()-2)*7,0)","v":54500},{"$f":"OFFSET('State Limits raw data'!$J$7,(ROW()-2)*7,0)","v":58050},{"$f":"OFFSET('State Limits raw data'!$C$8,(ROW()-2)*7,0)","v":49250},{"$f":"OFFSET('State Limits raw data'!$D$8,(ROW()-2)*7,0)","v":56250},{"$f":"OFFSET('State Limits raw data'!$E$8,(ROW()-2)*7,0)","v":63300},{"$f":"OFFSET('State Limits raw data'!$F$8,(ROW()-2)*7,0)","v":70300},{"$f":"OFFSET('State Limits raw data'!$G$8,(ROW()-2)*7,0)","v":75950},{"$f":"OFFSET('State Limits raw data'!$H$8,(ROW()-2)*7,0)","v":81550},{"$f":"OFFSET('State Limits raw data'!$I$8,(ROW()-2)*7,0)","v":87200},{"$f":"OFFSET('State Limits raw data'!$J$8,(ROW()-2)*7,0)","v":92800}]
["Mono",{"$f":"OFFSET('State Limits raw data'!$C$7,(ROW()-2)*7,0)","v":32700},{"$f":"OFFSET('State Limits raw data'!$D$7,(ROW()-2)*7,0)","v":37400},{"$f":"OFFSET('State Limits raw data'!$E$7,(ROW()-2)*7,0)","v":42050},{"$f":"OFFSET('State Limits raw data'!$F$7,(ROW()-2)*7,0)","v":46750},{"$f":"OFFSET('State Limits raw data'!$G$7,(ROW()-2)*7,0)","v":50450},{"$f":"OFFSET('State Limits raw data'!$H$7,(ROW()-2)*7,0)","v":54200},{"$f":"OFFSET('State Limits raw data'!$I$7,(ROW()-2)*7,0)","v":57950},{"$f":"OFFSET('State Limits raw data'!$J$7,(ROW()-2)*7,0)","v":61700},{"$f":"OFFSET('State Limits raw data'!$C$8,(ROW()-2)*7,0)","v":52350},{"$f":"OFFSET('State Limits raw data'!$D$8,(ROW()-2)*7,0)","v":59800},{"$f":"OFFSET('State Limits raw data'!$E$8,(ROW()-2)*7,0)","v":67300},{"$f":"OFFSET('State Limits raw data'!$F$8,(ROW()-2)*7,0)","v":74800},{"$f":"OFFSET('State Limits raw data'!$G$8,(ROW()-2)*7,0)","v":80750},{"$f":"OFFSET('State Limits raw data'!$H$8,(ROW()-2)*7,0)","v":86750},{"$f":"OFFSET('State Limits raw data'!$I$8,(ROW()-2)*7,0)","v":92750},{"$f":"OFFSET('State Limits raw data'!$J$8,(ROW()-2)*7,0)","v":98750}]
["Monterey",{"$f":"OFFSET('State Limits raw data'!$C$7,(ROW()-2)*7,0)","v":46350},{"$f":"OFFSET('State Limits raw data'!$D$7,(ROW()-2)*7,0)","v":53000},{"$f":"OFFSET('State Limits raw data'!$E$7,(ROW()-2)*7,0)","v":59600},{"$f":"OFFSET('State Limits raw data'!$F$7,(ROW()-2)*7,0)","v":66200},{"$f":"OFFSET('State Limits raw data'!$G$7,(ROW()-2)*7,0)","v":71500},{"$f":"OFFSET('State Limits raw data'!$H$7,(ROW()-2)*7,0)","v":76800},{"$f":"OFFSET('State Limits raw data'!$I$7,(ROW()-2)*7,0)","v":82100},{"$f":"OFFSET('State Limits raw data'!$J$7,(ROW()-2)*7,0)","v":87400},{"$f":"OFFSET('State Limits raw data'!$C$8,(ROW()-2)*7,0)","v":74150},{"$f":"OFFSET('State Limits raw data'!$D$8,(ROW()-2)*7,0)","v":84800},{"$f":"OFFSET('State Limits raw data'!$E$8,(ROW()-2)*7,0)","v":95400},{"$f":"OFFSET('State Limits raw data'!$F$8,(ROW()-2)*7,0)","v":105950},{"$f":"OFFSET('State Limits raw data'!$G$8,(ROW()-2)*7,0)","v":114450},{"$f":"OFFSET('State Limits raw data'!$H$8,(ROW()-2)*7,0)","v":122950},{"$f":"OFFSET('State Limits raw data'!$I$8,(ROW()-2)*7,0)","v":131400},{"$f":"OFFSET('State Limits raw data'!$J$8,(ROW()-2)*7,0)","v":139900}]
["Napa",{"$f":"OFFSET('State Limits raw data'!$C$7,(ROW()-2)*7,0)","v":51400},{"$f":"OFFSET('State Limits raw data'!$D$7,(ROW()-2)*7,0)","v":58700},{"$f":"OFFSET('State Limits raw data'!$E$7,(ROW()-2)*7,0)","v":66100},{"$f":"OFFSET('State Limits raw data'!$F$7,(ROW()-2)*7,0)","v":73400},{"$f":"OFFSET('State Limits raw data'!$G$7,(ROW()-2)*7,0)","v":79300},{"$f":"OFFSET('State Limits raw data'!$H$7,(ROW()-2)*7,0)","v":85150},{"$f":"OFFSET('State Limits raw data'!$I$7,(ROW()-2)*7,0)","v":91050},{"$f":"OFFSET('State Limits raw data'!$J$7,(ROW()-2)*7,0)","v":96900},{"$f":"OFFSET('State Limits raw data'!$C$8,(ROW()-2)*7,0)","v":82150},{"$f":"OFFSET('State Limits raw data'!$D$8,(ROW()-2)*7,0)","v":93900},{"$f":"OFFSET('State Limits raw data'!$E$8,(ROW()-2)*7,0)","v":105650},{"$f":"OFFSET('State Limits raw data'!$F$8,(ROW()-2)*7,0)","v":117350},{"$f":"OFFSET('State Limits raw data'!$G$8,(ROW()-2)*7,0)","v":126750},{"$f":"OFFSET('State Limits raw data'!$H$8,(ROW()-2)*7,0)","v":136150},{"$f":"OFFSET('State Limits raw data'!$I$8,(ROW()-2)*7,0)","v":145550},{"$f":"OFFSET('State Limits raw data'!$J$8,(ROW()-2)*7,0)","v":154900}]
["Nevada",{"$f":"OFFSET('State Limits raw data'!$C$7,(ROW()-2)*7,0)","v":36500},{"$f":"OFFSET('State Limits raw data'!$D$7,(ROW()-2)*7,0)","v":41700},{"$f":"OFFSET('State Limits raw data'!$E$7,(ROW()-2)*7,0)","v":46900},{"$f":"OFFSET('State Limits raw data'!$F$7,(ROW()-2)*7,0)","v":52100},{"$f":"OFFSET('State Limits raw data'!$G$7,(ROW()-2)*7,0)","v":56300},{"$f":"OFFSET('State Limits raw data'!$H$7,(ROW()-2)*7,0)","v":60450},{"$f":"OFFSET('State Limits raw data'!$I$7,(ROW()-2)*7,0)","v":64650},{"$f":"OFFSET('State Limits raw data'!$J$7,(ROW()-2)*7,0)","v":68800},{"$f":"OFFSET('State Limits raw data'!$C$8,(ROW()-2)*7,0)","v":58350},{"$f":"OFFSET('State Limits raw data'!$D$8,(ROW()-2)*7,0)","v":66700},{"$f":"OFFSET('State Limits raw data'!$E$8,(ROW()-2)*7,0)","v":75050},{"$f":"OFFSET('State Limits raw data'!$F$8,(ROW()-2)*7,0)","v":83350},{"$f":"OFFSET('State Limits raw data'!$G$8,(ROW()-2)*7,0)","v":90050},{"$f":"OFFSET('State Limits raw data'!$H$8,(ROW()-2)*7,0)","v":96700},{"$f":"OFFSET('State Limits raw data'!$I$8,(ROW()-2)*7,0)","v":103400},{"$f":"OFFSET('State Limits raw data'!$J$8,(ROW()-2)*7,0)","v":110050}]
["Orange",{"$f":"OFFSET('State Limits raw data'!$C$7,(ROW()-2)*7,0)","v":55250},{"$f":"OFFSET('State Limits raw data'!$D$7,(ROW()-2)*7,0)","v":63100},{"$f":"OFFSET('State Limits raw data'!$E$7,(ROW()-2)*7,0)","v":71050},{"$f":"OFFSET('State Limits raw data'!$F$7,(ROW()-2)*7,0)","v":78900},{"$f":"OFFSET('State Limits raw data'!$G$7,(ROW()-2)*7,0)","v":85250},{"$f":"OFFSET('State Limits raw data'!$H$7,(ROW()-2)*7,0)","v":91550},{"$f":"OFFSET('State Limits raw data'!$I$7,(ROW()-2)*7,0)","v":97850},{"$f":"OFFSET('State Limits raw data'!$J$7,(ROW()-2)*7,0)","v":104150},{"$f":"OFFSET('State Limits raw data'!$C$8,(ROW()-2)*7,0)","v":88400},{"$f":"OFFSET('State Limits raw data'!$D$8,(ROW()-2)*7,0)","v":101000},{"$f":"OFFSET('State Limits raw data'!$E$8,(ROW()-2)*7,0)","v":113650},{"$f":"OFFSET('State Limits raw data'!$F$8,(ROW()-2)*7,0)","v":126250},{"$f":"OFFSET('State Limits raw data'!$G$8,(ROW()-2)*7,0)","v":136350},{"$f":"OFFSET('State Limits raw data'!$H$8,(ROW()-2)*7,0)","v":146450},{"$f":"OFFSET('State Limits raw data'!$I$8,(ROW()-2)*7,0)","v":156550},{"$f":"OFFSET('State Limits raw data'!$J$8,(ROW()-2)*7,0)","v":166650}]
["Placer",{"$f":"OFFSET('State Limits raw data'!$C$7,(ROW()-2)*7,0)","v":41300},{"$f":"OFFSET('State Limits raw data'!$D$7,(ROW()-2)*7,0)","v":47150},{"$f":"OFFSET('State Limits raw data'!$E$7,(ROW()-2)*7,0)","v":53050},{"$f":"OFFSET('State Limits raw data'!$F$7,(ROW()-2)*7,0)","v":58950},{"$f":"OFFSET('State Limits raw data'!$G$7,(ROW()-2)*7,0)","v":63650},{"$f":"OFFSET('State Limits raw data'!$H$7,(ROW()-2)*7,0)","v":68400},{"$f":"OFFSET('State Limits raw data'!$I$7,(ROW()-2)*7,0)","v":73100},{"$f":"OFFSET('State Limits raw data'!$J$7,(ROW()-2)*7,0)","v":77850},{"$f":"OFFSET('State Limits raw data'!$C$8,(ROW()-2)*7,0)","v":66050},{"$f":"OFFSET('State Limits raw data'!$D$8,(ROW()-2)*7,0)","v":75450},{"$f":"OFFSET('State Limits raw data'!$E$8,(ROW()-2)*7,0)","v":84900},{"$f":"OFFSET('State Limits raw data'!$F$8,(ROW()-2)*7,0)","v":94300},{"$f":"OFFSET('State Limits raw data'!$G$8,(ROW()-2)*7,0)","v":101850},{"$f":"OFFSET('State Limits raw data'!$H$8,(ROW()-2)*7,0)","v":109400},{"$f":"OFFSET('State Limits raw data'!$I$8,(ROW()-2)*7,0)","v":116950},{"$f":"OFFSET('State Limits raw data'!$J$8,(ROW()-2)*7,0)","v":124500}]
["Plumas",{"$f":"OFFSET('State Limits raw data'!$C$7,(ROW()-2)*7,0)","v":32250},{"$f":"OFFSET('State Limits raw data'!$D$7,(ROW()-2)*7,0)","v":36850},{"$f":"OFFSET('State Limits raw data'!$E$7,(ROW()-2)*7,0)","v":41450},{"$f":"OFFSET('State Limits raw data'!$F$7,(ROW()-2)*7,0)","v":46050},{"$f":"OFFSET('State Limits raw data'!$G$7,(ROW()-2)*7,0)","v":49750},{"$f":"OFFSET('State Limits raw data'!$H$7,(ROW()-2)*7,0)","v":53450},{"$f":"OFFSET('State Limits raw data'!$I$7,(ROW()-2)*7,0)","v":57150},{"$f":"OFFSET('State Limits raw data'!$J$7,(ROW()-2)*7,0)","v":60800},{"$f":"OFFSET('State Limits raw data'!$C$8,(ROW()-2)*7,0)","v":51600},{"$f":"OFFSET('State Limits raw data'!$D$8,(ROW()-2)*7,0)","v":59000},{"$f":"OFFSET('State Limits raw data'!$E$8,(ROW()-2)*7,0)","v":66350},{"$f":"OFFSET('State Limits raw data'!$F$8,(ROW()-2)*7,0)","v":73700},{"$f":"OFFSET('State Limits raw data'!$G$8,(ROW()-2)*7,0)","v":79600},{"$f":"OFFSET('State Limits raw data'!$H$8,(ROW()-2)*7,0)","v":85500},{"$f":"OFFSET('State Limits raw data'!$I$8,(ROW()-2)*7,0)","v":91400},{"$f":"OFFSET('State Limits raw data'!$J$8,(ROW()-2)*7,0)","v":97300}]
["Riverside",{"$f":"OFFSET('State Limits raw data'!$C$7,(ROW()-2)*7,0)","v":35900},{"$f":"OFFSET('State Limits raw data'!$D$7,(ROW()-2)*7,0)","v":41000},{"$f":"OFFSET('State Limits raw data'!$E$7,(ROW()-2)*7,0)","v":46100},{"$f":"OFFSET('State Limits raw data'!$F$7,(ROW()-2)*7,0)","v":51250},{"$f":"OFFSET('State Limits raw data'!$G$7,(ROW()-2)*7,0)","v":55350},{"$f":"OFFSET('State Limits raw data'!$H$7,(ROW()-2)*7,0)","v":59450},{"$f":"OFFSET('State Limits raw data'!$I$7,(ROW()-2)*7,0)","v":63550},{"$f":"OFFSET('State Limits raw data'!$J$7,(ROW()-2)*7,0)","v":67650},{"$f":"OFFSET('State Limits raw data'!$C$8,(ROW()-2)*7,0)","v":57400},{"$f":"OFFSET('State Limits raw data'!$D$8,(ROW()-2)*7,0)","v":65600},{"$f":"OFFSET('State Limits raw data'!$E$8,(ROW()-2)*7,0)","v":73800},{"$f":"OFFSET('State Limits raw data'!$F$8,(ROW()-2)*7,0)","v":82000},{"$f":"OFFSET('State Limits raw data'!$G$8,(ROW()-2)*7,0)","v":88600},{"$f":"OFFSET('State Limits raw data'!$H$8,(ROW()-2)*7,0)","v":95150},{"$f":"OFFSET('State Limits raw data'!$I$8,(ROW()-2)*7,0)","v":101650},{"$f":"OFFSET('State Limits raw data'!$J$8,(ROW()-2)*7,0)","v":108250}]
["Sacramento",{"$f":"OFFSET('State Limits raw data'!$C$7,(ROW()-2)*7,0)","v":41300},{"$f":"OFFSET('State Limits raw data'!$D$7,(ROW()-2)*7,0)","v":47150},{"$f":"OFFSET('State Limits raw data'!$E$7,(ROW()-2)*7,0)","v":53050},{"$f":"OFFSET('State Limits raw data'!$F$7,(ROW()-2)*7,0)","v":58950},{"$f":"OFFSET('State Limits raw data'!$G$7,(ROW()-2)*7,0)","v":63650},{"$f":"OFFSET('State Limits raw data'!$H$7,(ROW()-2)*7,0)","v":68400},{"$f":"OFFSET('State Limits raw data'!$I$7,(ROW()-2)*7,0)","v":73100},{"$f":"OFFSET('State Limits raw data'!$J$7,(ROW()-2)*7,0)","v":77850},{"$f":"OFFSET('State Limits raw data'!$C$8,(ROW()-2)*7,0)","v":66050},{"$f":"OFFSET('State Limits raw data'!$D$8,(ROW()-2)*7,0)","v":75450},{"$f":"OFFSET('State Limits raw data'!$E$8,(ROW()-2)*7,0)","v":84900},{"$f":"OFFSET('State Limits raw data'!$F$8,(ROW()-2)*7,0)","v":94300},{"$f":"OFFSET('State Limits raw data'!$G$8,(ROW()-2)*7,0)","v":101850},{"$f":"OFFSET('State Limits raw data'!$H$8,(ROW()-2)*7,0)","v":109400},{"$f":"OFFSET('State Limits raw data'!$I$8,(ROW()-2)*7,0)","v":116950},{"$f":"OFFSET('State Limits raw data'!$J$8,(ROW()-2)*7,0)","v":124500}]
["San Benito",{"$f":"OFFSET('State Limits raw data'!$C$7,(ROW()-2)*7,0)","v":42850},{"$f":"OFFSET('State Limits raw data'!$D$7,(ROW()-2)*7,0)","v":49000},{"$f":"OFFSET('State Limits raw data'!$E$7,(ROW()-2)*7,0)","v":55100},{"$f":"OFFSET('State Limits raw data'!$F$7,(ROW()-2)*7,0)","v":61200},{"$f":"OFFSET('State Limits raw data'!$G$7,(ROW()-2)*7,0)","v":66100},{"$f":"OFFSET('State Limits raw data'!$H$7,(ROW()-2)*7,0)","v":71000},{"$f":"OFFSET('State Limits raw data'!$I$7,(ROW()-2)*7,0)","v":75900},{"$f":"OFFSET('State Limits raw data'!$J$7,(ROW()-2)*7,0)","v":80800},{"$f":"OFFSET('State Limits raw data'!$C$8,(ROW()-2)*7,0)","v":68550},{"$f":"OFFSET('State Limits raw data'!$D$8,(ROW()-2)*7,0)","v":78350},{"$f":"OFFSET('State Limits raw data'!$E$8,(ROW()-2)*7,0)","v":88150},{"$f":"OFFSET('State Limits raw data'!$F$8,(ROW()-2)*7,0)","v":97950},{"$f":"OFFSET('State Limits raw data'!$G$8,(ROW()-2)*7,0)","v":105800},{"$f":"OFFSET('State Limits raw data'!$H$8,(ROW()-2)*7,0)","v":113600},{"$f":"OFFSET('State Limits raw data'!$I$8,(ROW()-2)*7,0)","v":121450},{"$f":"OFFSET('State Limits raw data'!$J$8,(ROW()-2)*7,0)","v":129300}]
["San Bernardino",{"$f":"OFFSET('State Limits raw data'!$C$7,(ROW()-2)*7,0)","v":35900},{"$f":"OFFSET('State Limits raw data'!$D$7,(ROW()-2)*7,0)","v":41000},{"$f":"OFFSET('State Limits raw data'!$E$7,(ROW()-2)*7,0)","v":46100},{"$f":"OFFSET('State Limits raw data'!$F$7,(ROW()-2)*7,0)","v":51250},{"$f":"OFFSET('State Limits raw data'!$G$7,(ROW()-2)*7,0)","v":55350},{"$f":"OFFSET('State Limits raw data'!$H$7,(ROW()-2)*7,0)","v":59450},{"$f":"OFFSET('State Limits raw data'!$I$7,(ROW()-2)*7,0)","v":63550},{"$f":"OFFSET('State Limits raw data'!$J$7,(ROW()-2)*7,0)","v":67650},{"$f":"OFFSET('State Limits raw data'!$C$8,(ROW()-2)*7,0)","v":57400},{"$f":"OFFSET('State Limits raw data'!$D$8,(ROW()-2)*7,0)","v":65600},{"$f":"OFFSET('State Limits raw data'!$E$8,(ROW()-2)*7,0)","v":73800},{"$f":"OFFSET('State Limits raw data'!$F$8,(ROW()-2)*7,0)","v":82000},{"$f":"OFFSET('State Limits raw data'!$G$8,(ROW()-2)*7,0)","v":88600},{"$f":"OFFSET('State Limits raw data'!$H$8,(ROW()-2)*7,0)","v":95150},{"$f":"OFFSET('State Limits raw data'!$I$8,(ROW()-2)*7,0)","v":101650},{"$f":"OFFSET('State Limits raw data'!$J$8,(ROW()-2)*7,0)","v":108250}]
["San Diego",{"$f":"OFFSET('State Limits raw data'!$C$7,(ROW()-2)*7,0)","v":53050},{"$f":"OFFSET('State Limits raw data'!$D$7,(ROW()-2)*7,0)","v":60600},{"$f":"OFFSET('State Limits raw data'!$E$7,(ROW()-2)*7,0)","v":68200},{"$f":"OFFSET('State Limits raw data'!$F$7,(ROW()-2)*7,0)","v":75750},{"$f":"OFFSET('State Limits raw data'!$G$7,(ROW()-2)*7,0)","v":81850},{"$f":"OFFSET('State Limits raw data'!$H$7,(ROW()-2)*7,0)","v":87900},{"$f":"OFFSET('State Limits raw data'!$I$7,(ROW()-2)*7,0)","v":93950},{"$f":"OFFSET('State Limits raw data'!$J$7,(ROW()-2)*7,0)","v":100000},{"$f":"OFFSET('State Limits raw data'!$C$8,(ROW()-2)*7,0)","v":84900},{"$f":"OFFSET('State Limits raw data'!$D$8,(ROW()-2)*7,0)","v":97000},{"$f":"OFFSET('State Limits raw data'!$E$8,(ROW()-2)*7,0)","v":109150},{"$f":"OFFSET('State Limits raw data'!$F$8,(ROW()-2)*7,0)","v":121250},{"$f":"OFFSET('State Limits raw data'!$G$8,(ROW()-2)*7,0)","v":130950},{"$f":"OFFSET('State Limits raw data'!$H$8,(ROW()-2)*7,0)","v":140650},{"$f":"OFFSET('State Limits raw data'!$I$8,(ROW()-2)*7,0)","v":150350},{"$f":"OFFSET('State Limits raw data'!$J$8,(ROW()-2)*7,0)","v":160050}]
["San Francisco",{"$f":"OFFSET('State Limits raw data'!$C$7,(ROW()-2)*7,0)","v":68550},{"$f":"OFFSET('State Limits raw data'!$D$7,(ROW()-2)*7,0)","v":78350},{"$f":"OFFSET('State Limits raw data'!$E$7,(ROW()-2)*7,0)","v":88150},{"$f":"OFFSET('State Limits raw data'!$F$7,(ROW()-2)*7,0)","v":97900},{"$f":"OFFSET('State Limits raw data'!$G$7,(ROW()-2)*7,0)","v":105750},{"$f":"OFFSET('State Limits raw data'!$H$7,(ROW()-2)*7,0)","v":113600},{"$f":"OFFSET('State Limits raw data'!$I$7,(ROW()-2)*7,0)","v":121400},{"$f":"OFFSET('State Limits raw data'!$J$7,(ROW()-2)*7,0)","v":129250},{"$f":"OFFSET('State Limits raw data'!$C$8,(ROW()-2)*7,0)","v":109700},{"$f":"OFFSET('State Limits raw data'!$D$8,(ROW()-2)*7,0)","v":125350},{"$f":"OFFSET('State Limits raw data'!$E$8,(ROW()-2)*7,0)","v":141000},{"$f":"OFFSET('State Limits raw data'!$F$8,(ROW()-2)*7,0)","v":156650},{"$f":"OFFSET('State Limits raw data'!$G$8,(ROW()-2)*7,0)","v":169200},{"$f":"OFFSET('State Limits raw data'!$H$8,(ROW()-2)*7,0)","v":181750},{"$f":"OFFSET('State Limits raw data'!$I$8,(ROW()-2)*7,0)","v":194250},{"$f":"OFFSET('State Limits raw data'!$J$8,(ROW()-2)*7,0)","v":206800}]
["San Joaquin",{"$f":"OFFSET('State Limits raw data'!$C$7,(ROW()-2)*7,0)","v":33750},{"$f":"OFFSET('State Limits raw data'!$D$7,(ROW()-2)*7,0)","v":38600},{"$f":"OFFSET('State Limits raw data'!$E$7,(ROW()-2)*7,0)","v":43400},{"$f":"OFFSET('State Limits raw data'!$F$7,(ROW()-2)*7,0)","v":48200},{"$f":"OFFSET('State Limits raw data'!$G$7,(ROW()-2)*7,0)","v":52100},{"$f":"OFFSET('State Limits raw data'!$H$7,(ROW()-2)*7,0)","v":55950},{"$f":"OFFSET('State Limits raw data'!$I$7,(ROW()-2)*7,0)","v":59800},{"$f":"OFFSET('State Limits raw data'!$J$7,(ROW()-2)*7,0)","v":63650},{"$f":"OFFSET('State Limits raw data'!$C$8,(ROW()-2)*7,0)","v":54000},{"$f":"OFFSET('State Limits raw data'!$D$8,(ROW()-2)*7,0)","v":61700},{"$f":"OFFSET('State Limits raw data'!$E$8,(ROW()-2)*7,0)","v":69400},{"$f":"OFFSET('State Limits raw data'!$F$8,(ROW()-2)*7,0)","v":77100},{"$f":"OFFSET('State Limits raw data'!$G$8,(ROW()-2)*7,0)","v":83300},{"$f":"OFFSET('State Limits raw data'!$H$8,(ROW()-2)*7,0)","v":89450},{"$f":"OFFSET('State Limits raw data'!$I$8,(ROW()-2)*7,0)","v":95600},{"$f":"OFFSET('State Limits raw data'!$J$8,(ROW()-2)*7,0)","v":101800}]
["San Luis Obispo",{"$f":"OFFSET('State Limits raw data'!$C$7,(ROW()-2)*7,0)","v":44600},{"$f":"OFFSET('State Limits raw data'!$D$7,(ROW()-2)*7,0)","v":50950},{"$f":"OFFSET('State Limits raw data'!$E$7,(ROW()-2)*7,0)","v":57300},{"$f":"OFFSET('State Limits raw data'!$F$7,(ROW()-2)*7,0)","v":63650},{"$f":"OFFSET('State Limits raw data'!$G$7,(ROW()-2)*7,0)","v":68750},{"$f":"OFFSET('State Limits raw data'!$H$7,(ROW()-2)*7,0)","v":73850},{"$f":"OFFSET('State Limits raw data'!$I$7,(ROW()-2)*7,0)","v":78950},{"$f":"OFFSET('State Limits raw data'!$J$7,(ROW()-2)*7,0)","v":84050},{"$f":"OFFSET('State Limits raw data'!$C$8,(ROW()-2)*7,0)","v":71350},{"$f":"OFFSET('State Limits raw data'!$D$8,(ROW()-2)*7,0)","v":81550},{"$f":"OFFSET('State Limits raw data'!$E$8,(ROW()-2)*7,0)","v":91700},{"$f":"OFFSET('State Limits raw data'!$F$8,(ROW()-2)*7,0)","v":101900},{"$f":"OFFSET('State Limits raw data'!$G$8,(ROW()-2)*7,0)","v":110100},{"$f":"OFFSET('State Limits raw data'!$H$8,(ROW()-2)*7,0)","v":118250},{"$f":"OFFSET('State Limits raw data'!$I$8,(ROW()-2)*7,0)","v":126350},{"$f":"OFFSET('State Limits raw data'!$J$8,(ROW()-2)*7,0)","v":134500}]
["San Mateo",{"$f":"OFFSET('State Limits raw data'!$C$7,(ROW()-2)*7,0)","v":68550},{"$f":"OFFSET('State Limits raw data'!$D$7,(ROW()-2)*7,0)","v":78350},{"$f":"OFFSET('State Limits raw data'!$E$7,(ROW()-2)*7,0)","v":88150},{"$f":"OFFSET('State Limits raw data'!$F$7,(ROW()-2)*7,0)","v":97900},{"$f":"OFFSET('State Limits raw data'!$G$7,(ROW()-2)*7,0)","v":105750},{"$f":"OFFSET('State Limits raw data'!$H$7,(ROW()-2)*7,0)","v":113600},{"$f":"OFFSET('State Limits raw data'!$I$7,(ROW()-2)*7,0)","v":121400},{"$f":"OFFSET('State Limits raw data'!$J$7,(ROW()-2)*7,0)","v":129250},{"$f":"OFFSET('State Limits raw data'!$C$8,(ROW()-2)*7,0)","v":109700},{"$f":"OFFSET('State Limits raw data'!$D$8,(ROW()-2)*7,0)","v":125350},{"$f":"OFFSET('State Limits raw data'!$E$8,(ROW()-2)*7,0)","v":141000},{"$f":"OFFSET('State Limits raw data'!$F$8,(ROW()-2)*7,0)","v":156650},{"$f":"OFFSET('State Limits raw data'!$G$8,(ROW()-2)*7,0)","v":169200},{"$f":"OFFSET('State Limits raw data'!$H$8,(ROW()-2)*7,0)","v":181750},{"$f":"OFFSET('State Limits raw data'!$I$8,(ROW()-2)*7,0)","v":194250},{"$f":"OFFSET('State Limits raw data'!$J$8,(ROW()-2)*7,0)","v":206800}]
["Santa Barbara",{"$f":"OFFSET('State Limits raw data'!$C$7,(ROW()-2)*7,0)","v":56950},{"$f":"OFFSET('State Limits raw data'!$D$7,(ROW()-2)*7,0)","v":65050},{"$f":"OFFSET('State Limits raw data'!$E$7,(ROW()-2)*7,0)","v":73200},{"$f":"OFFSET('State Limits raw data'!$F$7,(ROW()-2)*7,0)","v":81300},{"$f":"OFFSET('State Limits raw data'!$G$7,(ROW()-2)*7,0)","v":87850},{"$f":"OFFSET('State Limits raw data'!$H$7,(ROW()-2)*7,0)","v":94350},{"$f":"OFFSET('State Limits raw data'!$I$7,(ROW()-2)*7,0)","v":100850},{"$f":"OFFSET('State Limits raw data'!$J$7,(ROW()-2)*7,0)","v":107350},{"$f":"OFFSET('State Limits raw data'!$C$8,(ROW()-2)*7,0)","v":91200},{"$f":"OFFSET('State Limits raw data'!$D$8,(ROW()-2)*7,0)","v":104250},{"$f":"OFFSET('State Limits raw data'!$E$8,(ROW()-2)*7,0)","v":117300},{"$f":"OFFSET('State Limits raw data'!$F$8,(ROW()-2)*7,0)","v":130350},{"$f":"OFFSET('State Limits raw data'!$G$8,(ROW()-2)*7,0)","v":140800},{"$f":"OFFSET('State Limits raw data'!$H$8,(ROW()-2)*7,0)","v":151250},{"$f":"OFFSET('State Limits raw data'!$I$8,(ROW()-2)*7,0)","v":161600},{"$f":"OFFSET('State Limits raw data'!$J$8,(ROW()-2)*7,0)","v":172050}]
["Santa Clara",{"$f":"OFFSET('State Limits raw data'!$C$7,(ROW()-2)*7,0)","v":64550},{"$f":"OFFSET('State Limits raw data'!$D$7,(ROW()-2)*7,0)","v":73750},{"$f":"OFFSET('State Limits raw data'!$E$7,(ROW()-2)*7,0)","v":82950},{"$f":"OFFSET('State Limits raw data'!$F$7,(ROW()-2)*7,0)","v":92150},{"$f":"OFFSET('State Limits raw data'!$G$7,(ROW()-2)*7,0)","v":99550},{"$f":"OFFSET('State Limits raw data'!$H$7,(ROW()-2)*7,0)","v":106900},{"$f":"OFFSET('State Limits raw data'!$I$7,(ROW()-2)*7,0)","v":114300},{"$f":"OFFSET('State Limits raw data'!$J$7,(ROW()-2)*7,0)","v":121650},{"$f":"OFFSET('State Limits raw data'!$C$8,(ROW()-2)*7,0)","v":102300},{"$f":"OFFSET('State Limits raw data'!$D$8,(ROW()-2)*7,0)","v":116900},{"$f":"OFFSET('State Limits raw data'!$E$8,(ROW()-2)*7,0)","v":131500},{"$f":"OFFSET('State Limits raw data'!$F$8,(ROW()-2)*7,0)","v":146100},{"$f":"OFFSET('State Limits raw data'!$G$8,(ROW()-2)*7,0)","v":157800},{"$f":"OFFSET('State Limits raw data'!$H$8,(ROW()-2)*7,0)","v":169500},{"$f":"OFFSET('State Limits raw data'!$I$8,(ROW()-2)*7,0)","v":181200},{"$f":"OFFSET('State Limits raw data'!$J$8,(ROW()-2)*7,0)","v":192900}]
["Santa Cruz",{"$f":"OFFSET('State Limits raw data'!$C$7,(ROW()-2)*7,0)","v":63400},{"$f":"OFFSET('State Limits raw data'!$D$7,(ROW()-2)*7,0)","v":72450},{"$f":"OFFSET('State Limits raw data'!$E$7,(ROW()-2)*7,0)","v":81500},{"$f":"OFFSET('State Limits raw data'!$F$7,(ROW()-2)*7,0)","v":90550},{"$f":"OFFSET('State Limits raw data'!$G$7,(ROW()-2)*7,0)","v":97800},{"$f":"OFFSET('State Limits raw data'!$H$7,(ROW()-2)*7,0)","v":105050},{"$f":"OFFSET('State Limits raw data'!$I$7,(ROW()-2)*7,0)","v":112300},{"$f":"OFFSET('State Limits raw data'!$J$7,(ROW()-2)*7,0)","v":119550},{"$f":"OFFSET('State Limits raw data'!$C$8,(ROW()-2)*7,0)","v":101750},{"$f":"OFFSET('State Limits raw data'!$D$8,(ROW()-2)*7,0)","v":116250},{"$f":"OFFSET('State Limits raw data'!$E$8,(ROW()-2)*7,0)","v":130750},{"$f":"OFFSET('State Limits raw data'!$F$8,(ROW()-2)*7,0)","v":145300},{"$f":"OFFSET('State Limits raw data'!$G$8,(ROW()-2)*7,0)","v":156950},{"$f":"OFFSET('State Limits raw data'!$H$8,(ROW()-2)*7,0)","v":168550},{"$f":"OFFSET('State Limits raw data'!$I$8,(ROW()-2)*7,0)","v":180200},{"$f":"OFFSET('State Limits raw data'!$J$8,(ROW()-2)*7,0)","v":191800}]
["Shasta",{"$f":"OFFSET('State Limits raw data'!$C$7,(ROW()-2)*7,0)","v":31200},{"$f":"OFFSET('State Limits raw data'!$D$7,(ROW()-2)*7,0)","v":35650},{"$f":"OFFSET('State Limits raw data'!$E$7,(ROW()-2)*7,0)","v":40100},{"$f":"OFFSET('State Limits raw data'!$F$7,(ROW()-2)*7,0)","v":44550},{"$f":"OFFSET('State Limits raw data'!$G$7,(ROW()-2)*7,0)","v":48150},{"$f":"OFFSET('State Limits raw data'!$H$7,(ROW()-2)*7,0)","v":51700},{"$f":"OFFSET('State Limits raw data'!$I$7,(ROW()-2)*7,0)","v":55250},{"$f":"OFFSET('State Limits raw data'!$J$7,(ROW()-2)*7,0)","v":58850},{"$f":"OFFSET('State Limits raw data'!$C$8,(ROW()-2)*7,0)","v":49950},{"$f":"OFFSET('State Limits raw data'!$D$8,(ROW()-2)*7,0)","v":57050},{"$f":"OFFSET('State Limits raw data'!$E$8,(ROW()-2)*7,0)","v":64200},{"$f":"OFFSET('State Limits raw data'!$F$8,(ROW()-2)*7,0)","v":71300},{"$f":"OFFSET('State Limits raw data'!$G$8,(ROW()-2)*7,0)","v":77050},{"$f":"OFFSET('State Limits raw data'!$H$8,(ROW()-2)*7,0)","v":82750},{"$f":"OFFSET('State Limits raw data'!$I$8,(ROW()-2)*7,0)","v":88450},{"$f":"OFFSET('State Limits raw data'!$J$8,(ROW()-2)*7,0)","v":94150}]
["Sierra",{"$f":"OFFSET('State Limits raw data'!$C$7,(ROW()-2)*7,0)","v":31500},{"$f":"OFFSET('State Limits raw data'!$D$7,(ROW()-2)*7,0)","v":36000},{"$f":"OFFSET('State Limits raw data'!$E$7,(ROW()-2)*7,0)","v":40500},{"$f":"OFFSET('State Limits raw data'!$F$7,(ROW()-2)*7,0)","v":45000},{"$f":"OFFSET('State Limits raw data'!$G$7,(ROW()-2)*7,0)","v":48600},{"$f":"OFFSET('State Limits raw data'!$H$7,(ROW()-2)*7,0)","v":52200},{"$f":"OFFSET('State Limits raw data'!$I$7,(ROW()-2)*7,0)","v":55800},{"$f":"OFFSET('State Limits raw data'!$J$7,(ROW()-2)*7,0)","v":59400},{"$f":"OFFSET('State Limits raw data'!$C$8,(ROW()-2)*7,0)","v":50400},{"$f":"OFFSET('State Limits raw data'!$D$8,(ROW()-2)*7,0)","v":57600},{"$f":"OFFSET('State Limits raw data'!$E$8,(ROW()-2)*7,0)","v":64800},{"$f":"OFFSET('State Limits raw data'!$F$8,(ROW()-2)*7,0)","v":72000},{"$f":"OFFSET('State Limits raw data'!$G$8,(ROW()-2)*7,0)","v":77800},{"$f":"OFFSET('State Limits raw data'!$H$8,(ROW()-2)*7,0)","v":83550},{"$f":"OFFSET('State Limits raw data'!$I$8,(ROW()-2)*7,0)","v":89300},{"$f":"OFFSET('State Limits raw data'!$J$8,(ROW()-2)*7,0)","v":95050}]
["Siskiyou",{"$f":"OFFSET('State Limits raw data'!$C$7,(ROW()-2)*7,0)","v":30800},{"$f":"OFFSET('State Limits raw data'!$D$7,(ROW()-2)*7,0)","v":35200},{"$f":"OFFSET('State Limits raw data'!$E$7,(ROW()-2)*7,0)","v":39600},{"$f":"OFFSET('State Limits raw data'!$F$7,(ROW()-2)*7,0)","v":43950},{"$f":"OFFSET('State Limits raw data'!$G$7,(ROW()-2)*7,0)","v":47500},{"$f":"OFFSET('State Limits raw data'!$H$7,(ROW()-2)*7,0)","v":51000},{"$f":"OFFSET('State Limits raw data'!$I$7,(ROW()-2)*7,0)","v":54500},{"$f":"OFFSET('State Limits raw data'!$J$7,(ROW()-2)*7,0)","v":58050},{"$f":"OFFSET('State Limits raw data'!$C$8,(ROW()-2)*7,0)","v":49250},{"$f":"OFFSET('State Limits raw data'!$D$8,(ROW()-2)*7,0)","v":56250},{"$f":"OFFSET('State Limits raw data'!$E$8,(ROW()-2)*7,0)","v":63300},{"$f":"OFFSET('State Limits raw data'!$F$8,(ROW()-2)*7,0)","v":70300},{"$f":"OFFSET('State Limits raw data'!$G$8,(ROW()-2)*7,0)","v":75950},{"$f":"OFFSET('State Limits raw data'!$H$8,(ROW()-2)*7,0)","v":81550},{"$f":"OFFSET('State Limits raw data'!$I$8,(ROW()-2)*7,0)","v":87200},{"$f":"OFFSET('State Limits raw data'!$J$8,(ROW()-2)*7,0)","v":92800}]
["Solano",{"$f":"OFFSET('State Limits raw data'!$C$7,(ROW()-2)*7,0)","v":44050},{"$f":"OFFSET('State Limits raw data'!$D$7,(ROW()-2)*7,0)","v":50350},{"$f":"OFFSET('State Limits raw data'!$E$7,(ROW()-2)*7,0)","v":56650},{"$f":"OFFSET('State Limits raw data'!$F$7,(ROW()-2)*7,0)","v":62900},{"$f":"OFFSET('State Limits raw data'!$G$7,(ROW()-2)*7,0)","v":67950},{"$f":"OFFSET('State Limits raw data'!$H$7,(ROW()-2)*7,0)","v":73000},{"$f":"OFFSET('State Limits raw data'!$I$7,(ROW()-2)*7,0)","v":78000},{"$f":"OFFSET('State Limits raw data'!$J$7,(ROW()-2)*7,0)","v":83050},{"$f":"OFFSET('State Limits raw data'!$C$8,(ROW()-2)*7,0)","v":70450},{"$f":"OFFSET('State Limits raw data'!$D$8,(ROW()-2)*7,0)","v":80500},{"$f":"OFFSET('State Limits raw data'!$E$8,(ROW()-2)*7,0)","v":90550},{"$f":"OFFSET('State Limits raw data'!$F$8,(ROW()-2)*7,0)","v":100650},{"$f":"OFFSET('State Limits raw data'!$G$8,(ROW()-2)*7,0)","v":108700},{"$f":"OFFSET('State Limits raw data'!$H$8,(ROW()-2)*7,0)","v":116750},{"$f":"OFFSET('State Limits raw data'!$I$8,(ROW()-2)*7,0)","v":124850},{"$f":"OFFSET('State Limits raw data'!$J$8,(ROW()-2)*7,0)","v":132850}]
["Sonoma",{"$f":"OFFSET('State Limits raw data'!$C$7,(ROW()-2)*7,0)","v":48450},{"$f":"OFFSET('State Limits raw data'!$D$7,(ROW()-2)*7,0)","v":55350},{"$f":"OFFSET('State Limits raw data'!$E$7,(ROW()-2)*7,0)","v":62250},{"$f":"OFFSET('State Limits raw data'!$F$7,(ROW()-2)*7,0)","v":69150},{"$f":"OFFSET('State Limits raw data'!$G$7,(ROW()-2)*7,0)","v":74700},{"$f":"OFFSET('State Limits raw data'!$H$7,(ROW()-2)*7,0)","v":80250},{"$f":"OFFSET('State Limits raw data'!$I$7,(ROW()-2)*7,0)","v":85750},{"$f":"OFFSET('State Limits raw data'!$J$7,(ROW()-2)*7,0)","v":91300},{"$f":"OFFSET('State Limits raw data'!$C$8,(ROW()-2)*7,0)","v":77500},{"$f":"OFFSET('State Limits raw data'!$D$8,(ROW()-2)*7,0)","v":88600},{"$f":"OFFSET('State Limits raw data'!$E$8,(ROW()-2)*7,0)","v":99650},{"$f":"OFFSET('State Limits raw data'!$F$8,(ROW()-2)*7,0)","v":110700},{"$f":"OFFSET('State Limits raw data'!$G$8,(ROW()-2)*7,0)","v":119600},{"$f":"OFFSET('State Limits raw data'!$H$8,(ROW()-2)*7,0)","v":128450},{"$f":"OFFSET('State Limits raw data'!$I$8,(ROW()-2)*7,0)","v":137300},{"$f":"OFFSET('State Limits raw data'!$J$8,(ROW()-2)*7,0)","v":146150}]
["Stanislaus",{"$f":"OFFSET('State Limits raw data'!$C$7,(ROW()-2)*7,0)","v":31900},{"$f":"OFFSET('State Limits raw data'!$D$7,(ROW()-2)*7,0)","v":36450},{"$f":"OFFSET('State Limits raw data'!$E$7,(ROW()-2)*7,0)","v":41000},{"$f":"OFFSET('State Limits raw data'!$F$7,(ROW()-2)*7,0)","v":45550},{"$f":"OFFSET('State Limits raw data'!$G$7,(ROW()-2)*7,0)","v":49200},{"$f":"OFFSET('State Limits raw data'!$H$7,(ROW()-2)*7,0)","v":52850},{"$f":"OFFSET('State Limits raw data'!$I$7,(ROW()-2)*7,0)","v":56500},{"$f":"OFFSET('State Limits raw data'!$J$7,(ROW()-2)*7,0)","v":60150},{"$f":"OFFSET('State Limits raw data'!$C$8,(ROW()-2)*7,0)","v":51050},{"$f":"OFFSET('State Limits raw data'!$D$8,(ROW()-2)*7,0)","v":58350},{"$f":"OFFSET('State Limits raw data'!$E$8,(ROW()-2)*7,0)","v":65650},{"$f":"OFFSET('State Limits raw data'!$F$8,(ROW()-2)*7,0)","v":72900},{"$f":"OFFSET('State Limits raw data'!$G$8,(ROW()-2)*7,0)","v":78750},{"$f":"OFFSET('State Limits raw data'!$H$8,(ROW()-2)*7,0)","v":84600},{"$f":"OFFSET('State Limits raw data'!$I$8,(ROW()-2)*7,0)","v":90400},{"$f":"OFFSET('State Limits raw data'!$J$8,(ROW()-2)*7,0)","v":96250}]
["Sutter",{"$f":"OFFSET('State Limits raw data'!$C$7,(ROW()-2)*7,0)","v":30800},{"$f":"OFFSET('State Limits raw data'!$D$7,(ROW()-2)*7,0)","v":35200},{"$f":"OFFSET('State Limits raw data'!$E$7,(ROW()-2)*7,0)","v":39600},{"$f":"OFFSET('State Limits raw data'!$F$7,(ROW()-2)*7,0)","v":43950},{"$f":"OFFSET('State Limits raw data'!$G$7,(ROW()-2)*7,0)","v":47500},{"$f":"OFFSET('State Limits raw data'!$H$7,(ROW()-2)*7,0)","v":51000},{"$f":"OFFSET('State Limits raw data'!$I$7,(ROW()-2)*7,0)","v":54500},{"$f":"OFFSET('State Limits raw data'!$J$7,(ROW()-2)*7,0)","v":58050},{"$f":"OFFSET('State Limits raw data'!$C$8,(ROW()-2)*7,0)","v":49250},{"$f":"OFFSET('State Limits raw data'!$D$8,(ROW()-2)*7,0)","v":56250},{"$f":"OFFSET('State Limits raw data'!$E$8,(ROW()-2)*7,0)","v":63300},{"$f":"OFFSET('State Limits raw data'!$F$8,(ROW()-2)*7,0)","v":70300},{"$f":"OFFSET('State Limits raw data'!$G$8,(ROW()-2)*7,0)","v":75950},{"$f":"OFFSET('State Limits raw data'!$H$8,(ROW()-2)*7,0)","v":81550},{"$f":"OFFSET('State Limits raw data'!$I$8,(ROW()-2)*7,0)","v":87200},{"$f":"OFFSET('State Limits raw data'!$J$8,(ROW()-2)*7,0)","v":92800}]
["Tehama",{"$f":"OFFSET('State Limits raw data'!$C$7,(ROW()-2)*7,0)","v":30800},{"$f":"OFFSET('State Limits raw data'!$D$7,(ROW()-2)*7,0)","v":35200},{"$f":"OFFSET('State Limits raw data'!$E$7,(ROW()-2)*7,0)","v":39600},{"$f":"OFFSET('State Limits raw data'!$F$7,(ROW()-2)*7,0)","v":43950},{"$f":"OFFSET('State Limits raw data'!$G$7,(ROW()-2)*7,0)","v":47500},{"$f":"OFFSET('State Limits raw data'!$H$7,(ROW()-2)*7,0)","v":51000},{"$f":"OFFSET('State Limits raw data'!$I$7,(ROW()-2)*7,0)","v":54500},{"$f":"OFFSET('State Limits raw data'!$J$7,(ROW()-2)*7,0)","v":58050},{"$f":"OFFSET('State Limits raw data'!$C$8,(ROW()-2)*7,0)","v":49250},{"$f":"OFFSET('State Limits raw data'!$D$8,(ROW()-2)*7,0)","v":56250},{"$f":"OFFSET('State Limits raw data'!$E$8,(ROW()-2)*7,0)","v":63300},{"$f":"OFFSET('State Limits raw data'!$F$8,(ROW()-2)*7,0)","v":70300},{"$f":"OFFSET('State Limits raw data'!$G$8,(ROW()-2)*7,0)","v":75950},{"$f":"OFFSET('State Limits raw data'!$H$8,(ROW()-2)*7,0)","v":81550},{"$f":"OFFSET('State Limits raw data'!$I$8,(ROW()-2)*7,0)","v":87200},{"$f":"OFFSET('State Limits raw data'!$J$8,(ROW()-2)*7,0)","v":92800}]
["Trinity",{"$f":"OFFSET('State Limits raw data'!$C$7,(ROW()-2)*7,0)","v":30800},{"$f":"OFFSET('State Limits raw data'!$D$7,(ROW()-2)*7,0)","v":35200},{"$f":"OFFSET('State Limits raw data'!$E$7,(ROW()-2)*7,0)","v":39600},{"$f":"OFFSET('State Limits raw data'!$F$7,(ROW()-2)*7,0)","v":43950},{"$f":"OFFSET('State Limits raw data'!$G$7,(ROW()-2)*7,0)","v":47500},{"$f":"OFFSET('State Limits raw data'!$H$7,(ROW()-2)*7,0)","v":51000},{"$f":"OFFSET('State Limits raw data'!$I$7,(ROW()-2)*7,0)","v":54500},{"$f":"OFFSET('State Limits raw data'!$J$7,(ROW()-2)*7,0)","v":58050},{"$f":"OFFSET('State Limits raw data'!$C$8,(ROW()-2)*7,0)","v":49250},{"$f":"OFFSET('State Limits raw data'!$D$8,(ROW()-2)*7,0)","v":56250},{"$f":"OFFSET('State Limits raw data'!$E$8,(ROW()-2)*7,0)","v":63300},{"$f":"OFFSET('State Limits raw data'!$F$8,(ROW()-2)*7,0)","v":70300},{"$f":"OFFSET('State Limits raw data'!$G$8,(ROW()-2)*7,0)","v":75950},{"$f":"OFFSET('State Limits raw data'!$H$8,(ROW()-2)*7,0)","v":81550},{"$f":"OFFSET('State Limits raw data'!$I$8,(ROW()-2)*7,0)","v":87200},{"$f":"OFFSET('State Limits raw data'!$J$8,(ROW()-2)*7,0)","v":92800}]
["Tulare",{"$f":"OFFSET('State Limits raw data'!$C$7,(ROW()-2)*7,0)","v":30800},{"$f":"OFFSET('State Limits raw data'!$D$7,(ROW()-2)*7,0)","v":35200},{"$f":"OFFSET('State Limits raw data'!$E$7,(ROW()-2)*7,0)","v":39600},{"$f":"OFFSET('State Limits raw data'!$F$7,(ROW()-2)*7,0)","v":43950},{"$f":"OFFSET('State Limits raw data'!$G$7,(ROW()-2)*7,0)","v":47500},{"$f":"OFFSET('State Limits raw data'!$H$7,(ROW()-2)*7,0)","v":51000},{"$f":"OFFSET('State Limits raw data'!$I$7,(ROW()-2)*7,0)","v":54500},{"$f":"OFFSET('State Limits raw data'!$J$7,(ROW()-2)*7,0)","v":58050},{"$f":"OFFSET('State Limits raw data'!$C$8,(ROW()-2)*7,0)","v":49250},{"$f":"OFFSET('State Limits raw data'!$D$8,(ROW()-2)*7,0)","v":56250},{"$f":"OFFSET('State Limits raw data'!$E$8,(ROW()-2)*7,0)","v":63300},{"$f":"OFFSET('State Limits raw data'!$F$8,(ROW()-2)*7,0)","v":70300},{"$f":"OFFSET('State Limits raw data'!$G$8,(ROW()-2)*7,0)","v":75950},{"$f":"OFFSET('State Limits raw data'!$H$8,(ROW()-2)*7,0)","v":81550},{"$f":"OFFSET('State Limits raw data'!$I$8,(ROW()-2)*7,0)","v":87200},{"$f":"OFFSET('State Limits raw data'!$J$8,(ROW()-2)*7,0)","v":92800}]
["Tuolumne",{"$f":"OFFSET('State Limits raw data'!$C$7,(ROW()-2)*7,0)","v":33900},{"$f":"OFFSET('State Limits raw data'!$D$7,(ROW()-2)*7,0)","v":38750},{"$f":"OFFSET('State Limits raw data'!$E$7,(ROW()-2)*7,0)","v":43600},{"$f":"OFFSET('State Limits raw data'!$F$7,(ROW()-2)*7,0)","v":48450},{"$f":"OFFSET('State Limits raw data'!$G$7,(ROW()-2)*7,0)","v":52350},{"$f":"OFFSET('State Limits raw data'!$H$7,(ROW()-2)*7,0)","v":56200},{"$f":"OFFSET('State Limits raw data'!$I$7,(ROW()-2)*7,0)","v":60100},{"$f":"OFFSET('State Limits raw data'!$J$7,(ROW()-2)*7,0)","v":63950},{"$f":"OFFSET('State Limits raw data'!$C$8,(ROW()-2)*7,0)","v":54250},{"$f":"OFFSET('State Limits raw data'!$D$8,(ROW()-2)*7,0)","v":62000},{"$f":"OFFSET('State Limits raw data'!$E$8,(ROW()-2)*7,0)","v":69750},{"$f":"OFFSET('State Limits raw data'!$F$8,(ROW()-2)*7,0)","v":77450},{"$f":"OFFSET('State Limits raw data'!$G$8,(ROW()-2)*7,0)","v":83650},{"$f":"OFFSET('State Limits raw data'!$H$8,(ROW()-2)*7,0)","v":89850},{"$f":"OFFSET('State Limits raw data'!$I$8,(ROW()-2)*7,0)","v":96050},{"$f":"OFFSET('State Limits raw data'!$J$8,(ROW()-2)*7,0)","v":102250}]
["Ventura",{"$f":"OFFSET('State Limits raw data'!$C$7,(ROW()-2)*7,0)","v":49250},{"$f":"OFFSET('State Limits raw data'!$D$7,(ROW()-2)*7,0)","v":56300},{"$f":"OFFSET('State Limits raw data'!$E$7,(ROW()-2)*7,0)","v":63350},{"$f":"OFFSET('State Limits raw data'!$F$7,(ROW()-2)*7,0)","v":70350},{"$f":"OFFSET('State Limits raw data'!$G$7,(ROW()-2)*7,0)","v":76000},{"$f":"OFFSET('State Limits raw data'!$H$7,(ROW()-2)*7,0)","v":81650},{"$f":"OFFSET('State Limits raw data'!$I$7,(ROW()-2)*7,0)","v":87250},{"$f":"OFFSET('State Limits raw data'!$J$7,(ROW()-2)*7,0)","v":92900},{"$f":"OFFSET('State Limits raw data'!$C$8,(ROW()-2)*7,0)","v":78800},{"$f":"OFFSET('State Limits raw data'!$D$8,(ROW()-2)*7,0)","v":90050},{"$f":"OFFSET('State Limits raw data'!$E$8,(ROW()-2)*7,0)","v":101300},{"$f":"OFFSET('State Limits raw data'!$F$8,(ROW()-2)*7,0)","v":112550},{"$f":"OFFSET('State Limits raw data'!$G$8,(ROW()-2)*7,0)","v":121600},{"$f":"OFFSET('State Limits raw data'!$H$8,(ROW()-2)*7,0)","v":130600},{"$f":"OFFSET('State Limits raw data'!$I$8,(ROW()-2)*7,0)","v":139600},{"$f":"OFFSET('State Limits raw data'!$J$8,(ROW()-2)*7,0)","v":148600}]
["Yolo",{"$f":"OFFSET('State Limits raw data'!$C$7,(ROW()-2)*7,0)","v":40400},{"$f":"OFFSET('State Limits raw data'!$D$7,(ROW()-2)*7,0)","v":46150},{"$f":"OFFSET('State Limits raw data'!$E$7,(ROW()-2)*7,0)","v":51900},{"$f":"OFFSET('State Limits raw data'!$F$7,(ROW()-2)*7,0)","v":57650},{"$f":"OFFSET('State Limits raw data'!$G$7,(ROW()-2)*7,0)","v":62300},{"$f":"OFFSET('State Limits raw data'!$H$7,(ROW()-2)*7,0)","v":66900},{"$f":"OFFSET('State Limits raw data'!$I$7,(ROW()-2)*7,0)","v":71500},{"$f":"OFFSET('State Limits raw data'!$J$7,(ROW()-2)*7,0)","v":76100},{"$f":"OFFSET('State Limits raw data'!$C$8,(ROW()-2)*7,0)","v":64600},{"$f":"OFFSET('State Limits raw data'!$D$8,(ROW()-2)*7,0)","v":73800},{"$f":"OFFSET('State Limits raw data'!$E$8,(ROW()-2)*7,0)","v":83050},{"$f":"OFFSET('State Limits raw data'!$F$8,(ROW()-2)*7,0)","v":92250},{"$f":"OFFSET('State Limits raw data'!$G$8,(ROW()-2)*7,0)","v":99650},{"$f":"OFFSET('State Limits raw data'!$H$8,(ROW()-2)*7,0)","v":107050},{"$f":"OFFSET('State Limits raw data'!$I$8,(ROW()-2)*7,0)","v":114400},{"$f":"OFFSET('State Limits raw data'!$J$8,(ROW()-2)*7,0)","v":121800}]
["Yuba",{"$f":"OFFSET('State Limits raw data'!$C$7,(ROW()-2)*7,0)","v":30800},{"$f":"OFFSET('State Limits raw data'!$D$7,(ROW()-2)*7,0)","v":35200},{"$f":"OFFSET('State Limits raw data'!$E$7,(ROW()-2)*7,0)","v":39600},{"$f":"OFFSET('State Limits raw data'!$F$7,(ROW()-2)*7,0)","v":43950},{"$f":"OFFSET('State Limits raw data'!$G$7,(ROW()-2)*7,0)","v":47500},{"$f":"OFFSET('State Limits raw data'!$H$7,(ROW()-2)*7,0)","v":51000},{"$f":"OFFSET('State Limits raw data'!$I$7,(ROW()-2)*7,0)","v":54500},{"$f":"OFFSET('State Limits raw data'!$J$7,(ROW()-2)*7,0)","v":58050},{"$f":"OFFSET('State Limits raw data'!$C$8,(ROW()-2)*7,0)","v":49250},{"$f":"OFFSET('State Limits raw data'!$D$8,(ROW()-2)*7,0)","v":56250},{"$f":"OFFSET('State Limits raw data'!$E$8,(ROW()-2)*7,0)","v":63300},{"$f":"OFFSET('State Limits raw data'!$F$8,(ROW()-2)*7,0)","v":70300},{"$f":"OFFSET('State Limits raw data'!$G$8,(ROW()-2)*7,0)","v":75950},{"$f":"OFFSET('State Limits raw data'!$H$8,(ROW()-2)*7,0)","v":81550},{"$f":"OFFSET('State Limits raw data'!$I$8,(ROW()-2)*7,0)","v":87200},{"$f":"OFFSET('State Limits raw data'!$J$8,(ROW()-2)*7,0)","v":92800}]

{"sheet":"2a. PRP Perm Close","index":8,"n_rows":401,"n_cols":68,"rows_kept":401,"cut":false,"hidden":true,"merged":[[3,0,3,7],[4,0,4,5]]}
[]
["2a. DOF Perm Close Data",null,null,null,{"$f":"'1. Checklist & Certification'!K1","v":"2024-09-04"}]
[]
["Hide unused rows below by clicking down arrow in cell A6 and unchecking (Blanks) box."]
[{"$f":"CONCATENATE('1. Checklist & Certification'!C6&\" (\"&'1. Checklist & Certification'!B14&\")\")","v":" (2025)"},null,null,null,null,null,{"$f":"IF('1. Checklist & Certification'!C7=\"\",\"\",'1. Checklist & Certification'!C7)","v":""},null,{"$f":"IF('1. Checklist & Certification'!$B$14=\"\",\"\",'1. Checklist & Certification'!$B$14)","v":2025}]
["Unit Number (include Manager units)","Manager Unit","Number of Persons in Household","Unit Size/ Number of Bedrooms\nGhocc = Group Home Occupancy; SRO or Studio, use 0","Annual Household Income (Certified)","AMI Level based on Household Income","HCD RA #1 Targeted Income Level AMI","Current Monthly Tenant Rent","Current Monthly Utility Allowance","Current Monthly Rent Subsidy","Total Gross Rent (includes UA)","Project or Rental Based Rent Subsidy Source","Elderly/Senior","Veteran","Agricultural Worker","Accessible Unit Type\n(all units must indicate)","Occupant Accessibility Utilization (identify if  occupants include a person with disabilities needing the accessible features)","If Occupany Accessibility Utilization is \"No\", is there a Transfer Agreement to move household into a non-accessible unit","SRI Rev Date","Rep Name","App Date","Project Name","# of RAs","HCD RA #1","HCD RA #2","HCD RA #3","HCD RA #4","City","County","Sponsor","Sponsor #2","Mngmt Agent","Fiscal Year","Rpt Period","Total Units","Tax Credit","PIS Date","PIS Doc","RF Date","RF Doc","CALDAP, DPRLP CPI","RHCP-B, FHDP CPI","RHCP-B, FHDP Rent Factor","CHRP, SUHRP, DDS, SERA CPI","CHRP, SUHRP, DDS, SERA Rent Factor","Apprvd Asst Rent","Apprvd UnAsst Rent","Apprvd Total Rent","Proj Sub Asst","Ten Sub Asst","Ten Pymt Asst","Ten Pymt UnAsst","Total Ten Pymt ",null,"15% AMI","20% AMI","25% AMI","30% AMI","35% AMI","40% AMI","45% AMI","50% AMI","55% AMI","60% AMI","65% AMI","70% AMI","75% AMI","80% AMI"]
[{"$f":"IF('2. Assisted & Restricted Units'!A7=\"\",\"\",'2. Assisted & Restricted Units'!A7)","v":""},{"$f":"IF('2. Assisted & Restricted Units'!B7=\"\",\"\",'2. Assisted & Restricted Units'!B7)","v":""},{"$f":"IF('2. Assisted & Restricted Units'!D7=\"\",\"\",'2. Assisted & Restricted Units'!D7)","v":""},{"$f":"IF('2. Assisted & Restricted Units'!E7=\"\",\"\",'2. Assisted & Restricted Units'!E7)","v":""},{"$f":"IF('2. Assisted & Restricted Units'!H7=\"\",\"\",'2. Assisted & Restricted Units'!H7)","v":""},{"$f":"_xlfn.IFS(E7=\"\",\"\",E7>BO7,$BP$6,E7>BN7,$BO$6,E7>BM7,$BN$6,E7>BL7,$BM$6,E7>BK7,$BL$6,E7>BJ7,$BK$6,E7>BI7,$BJ$6,E7>BH7,$BI$6,E7>BG7,$BH$6,E7>BF7,$BG$6,E7>BE7,$BF$6,E7>BD7,$BE$6,E7>BC7,$BD$6,E7>=0,$BC$6)","v":""},{"$f":"IF('2. Assisted & Restricted Units'!T7=\"\",\"\",'2. Assisted & Restricted Units'!T7)","v":""},{"$f":"IF('2. Assisted & Restricted Units'!I7=\"\",\"\",'2. Assisted & Restricted Units'!I7)","v":""},{"$f":"IF('2. Assisted & Restricted Units'!AP7=\"\",\"\",'2. Assisted & Restricted Units'!AP7)","v":0},{"$f":"IF('2. Assisted & Restricted Units'!AT7=\"\",\"\",'2. Assisted & Restricted Units'!AT7)","v":""},{"$f":"SUM(H7:J7)","v":0},{"$f":"IF('2. Assisted & Restricted Units'!AV7=\"\",\"\",'2. Assisted & Restricted Units'!AV7)","v":""},{"$f":"IF('2. Assisted & Restricted Units'!L7=\"\",\"\",'2. Assisted & Restricted Units'!L7)","v":""},{"$f":"IF('2. Assisted & Restricted Units'!M7=\"\",\"\",'2. Assisted & Restricted Units'!M7)","v":""},{"$f":"IF('2. Assisted & Restricted Units'!O7=\"\",\"\",'2. Assisted & Restricted Units'!O7)","v":""},{"$f":"IF('2. Assisted & Restricted Units'!P7=\"\",\"\",'2. Assisted & Restricted Units'!P7)","v":""},{"$f":"IF('2. Assisted & Restricted Units'!Q7=\"\",\"\",'2. Assisted & Restricted Units'!Q7)","v":""},{"$f":"IF('2. Assisted & Restricted Units'!R7=\"\",\"\",'2. Assisted & Restricted Units'!R7)","v":""},{"$f":"IF(A7=\"\",\"\",'1. Checklist & Certification'!$K$1)","v":""},{"$f":"IF(A7=\"\",\"\",'1. Checklist & Certification'!$C$62)","v":""},{"$f":"IF(A7=\"\",\"\",'1. Checklist & Certification'!$K$62)","v":""},{"$f":"IF(A7=\"\",\"\",'1. Checklist & Certification'!$C$6)","v":""},{"$f":"IF(A7=\"\",\"\",'1. Checklist & Certification'!$G$4)","v":""},{"$f":"IF(A7=\"\",\"\",'1. Checklist & Certification'!$C$7)","v":""},{"$f":"IF(A7=\"\",\"\",'1. Checklist & Certification'!$C$8)","v":""},{"$f":"IF(A7=\"\",\"\",'1. Checklist & Certification'!$F$7)","v":""},{"$f":"IF(A7=\"\",\"\",'1. Checklist & Certification'!$F$8)","v":""},{"$f":"IF(A7=\"\",\"\",'1. Checklist & Certification'!$B$9)","v":""},{"$f":"IF(A7=\"\",\"\",'1. Checklist & Certification'!$F$9)","v":""},{"$f":"IF(A7=\"\",\"\",'1. Checklist & Certification'!$C$10)","v":""},{"$f":"IF(A7=\"\",\"\",'1. Checklist & Certification'!$C$11)","v":""},{"$f":"IF(A7=\"\",\"\",'1. Checklist & Certification'!$C$12)","v":""},{"$f":"IF(A7=\"\",\"\",'1. Checklist & Certification'!$B$14)","v":""},{"$f":"IF(A7=\"\",\"\",'1. Checklist & Certification'!$E$14)","v":""},{"$f":"IF(B7=\"\",\"\",'1. Checklist & Certification'!$G$14)","v":""},{"$f":"IF(A7=\"\",\"\",'MHP Family Income & Rent Limits'!$B$3)","v":""},{"$f":"IF(A7=\"\",\"\",'MHP Family Income & Rent Limits'!$J$3)","v":""},{"$f":"IF(A7=\"\",\"\",'MHP Family Income & Rent Limits'!$E$4)","v":""},{"$f":"IF(A7=\"\",\"\",'MHP Family Income & Rent Limits'!$C$7)","v":""},{"$f":"IF(A7=\"\",\"\",'MHP Family Income & Rent Limits'!$F$8)","v":""},{"$f":"IF(A7=\"\",\"\",'1. Checklist & Certification'!$G$4)","v":""},{"$f":"IF(A7=\"\",\"\",'1. Checklist & Certification'!$K$39)","v":""},{"$f":"IF(A7=\"\",\"\",'1. Checklist & Certification'!$K$43)","v":""},{"$f":"IF(A7=\"\",\"\",'1. Checklist & Certification'!$K$45)","v":""},{"$f":"IF(A7=\"\",\"\",'1. Checklist & Certification'!$K$49)","v":""},{"$f":"IF(A7=\"\",\"\",'1. Checklist & Certification'!$E$66)","v":""},{"$f":"IF(A7=\"\",\"\",'1. Checklist & Certification'!$E$67)","v":""},{"$f":"IF(A7=\"\",\"\",'1. Checklist & Certification'!$E$68)","v":""},{"$f":"IF(A7=\"\",\"\",'1. Checklist & Certification'!$G$66)","v":""},{"$f":"IF(A7=\"\",\"\",'1. Checklist & Certification'!$H$66)","v":""},{"$f":"IF(A7=\"\",\"\",'1. Checklist & Certification'!$I$66)","v":""},{"$f":"IF(A7=\"\",\"\",'1. Checklist & Certification'!$I$67)","v":""},{"$f":"IF(A7=\"\",\"\",'1. Checklist & Certification'!$I$68)","v":""},null,{"$f":"IF(C7=\"\",\"\",HLOOKUP(C7,'MHP Family Income & Rent Limits'!$E$12:$L$26,2,FALSE))","v":""},{"$f":"IF(C7=\"\",\"\",HLOOKUP(C7,'MHP Family Income & Rent Limits'!$E$12:$L$26,3,FALSE))","v":""},{"$f":"IF(C7=\"\",\"\",HLOOKUP(C7,'MHP Family Income & Rent Limits'!$E$12:$L$26,4,FALSE))","v":""},{"$f":"IF(C7=\"\",\"\",HLOOKUP(C7,'MHP Family Income & Rent Limits'!$E$12:$L$26,5,FALSE))","v":""},{"$f":"IF(C7=\"\",\"\",HLOOKUP(C7,'MHP Family Income & Rent Limits'!$E$12:$L$26,6,FALSE))","v":""},{"$f":"IF(C7=\"\",\"\",HLOOKUP(C7,'MHP Family Income & Rent Limits'!$E$12:$L$26,7,FALSE))","v":""},{"$f":"IF(C7=\"\",\"\",HLOOKUP(C7,'MHP Family Income & Rent Limits'!$E$12:$L$26,8,FALSE))","v":""},{"$f":"IF(C7=\"\",\"\",HLOOKUP(C7,'MHP Family Income & Rent Limits'!$E$12:$L$26,9,FALSE))","v":""},{"$f":"IF(C7=\"\",\"\",HLOOKUP(C7,'MHP Family Income & Rent Limits'!$E$12:$L$26,10,FALSE))","v":""},{"$f":"IF(C7=\"\",\"\",HLOOKUP(C7,'MHP Family Income & Rent Limits'!$E$12:$L$26,11,FALSE))","v":""},{"$f":"IF(C7=\"\",\"\",HLOOKUP(C7,'MHP Family Income & Rent Limits'!$E$12:$L$26,12,FALSE))","v":""},{"$f":"IF(C7=\"\",\"\",HLOOKUP(C7,'MHP Family Income & Rent Limits'!$E$12:$L$26,13,FALSE))","v":""},{"$f":"IF(C7=\"\",\"\",HLOOKUP(C7,'MHP Family Income & Rent Limits'!$E$12:$L$26,14,FALSE))","v":""},{"$f":"IF(C7=\"\",\"\",HLOOKUP(C7,'MHP Family Income & Rent Limits'!$E$12:$L$26,15,FALSE))","v":""}]
[{"$f":"IF('2. Assisted & Restricted Units'!A8=\"\",\"\",'2. Assisted & Restricted Units'!A8)","v":""},{"$f":"IF('2. Assisted & Restricted Units'!B8=\"\",\"\",'2. Assisted & Restricted Units'!B8)","v":""},{"$f":"IF('2. Assisted & Restricted Units'!D8=\"\",\"\",'2. Assisted & Restricted Units'!D8)","v":""},{"$f":"IF('2. Assisted & Restricted Units'!E8=\"\",\"\",'2. Assisted & Restricted Units'!E8)","v":""},{"$f":"IF('2. Assisted & Restricted Units'!H8=\"\",\"\",'2. Assisted & Restricted Units'!H8)","v":""},{"$f":"_xlfn.IFS(E8=\"\",\"\",E8>BO8,$BP$6,E8>BN8,$BO$6,E8>BM8,$BN$6,E8>BL8,$BM$6,E8>BK8,$BL$6,E8>BJ8,$BK$6,E8>BI8,$BJ$6,E8>BH8,$BI$6,E8>BG8,$BH$6,E8>BF8,$BG$6,E8>BE8,$BF$6,E8>BD8,$BE$6,E8>BC8,$BD$6,E8>=0,$BC$6)","v":""},{"$f":"IF('2. Assisted & Restricted Units'!T8=\"\",\"\",'2. Assisted & Restricted Units'!T8)","v":""},{"$f":"IF('2. Assisted & Restricted Units'!I8=\"\",\"\",'2. Assisted & Restricted Units'!I8)","v":""},{"$f":"IF('2. Assisted & Restricted Units'!AP8=\"\",\"\",'2. Assisted & Restricted Units'!AP8)","v":0},{"$f":"IF('2. Assisted & Restricted Units'!AT8=\"\",\"\",'2. Assisted & Restricted Units'!AT8)","v":""},{"$f":"SUM(H8:J8)","v":0},{"$f":"IF('2. Assisted & Restricted Units'!AV8=\"\",\"\",'2. Assisted & Restricted Units'!AV8)","v":""},{"$f":"IF('2. Assisted & Restricted Units'!L8=\"\",\"\",'2. Assisted & Restricted Units'!L8)","v":""},{"$f":"IF('2. Assisted & Restricted Units'!M8=\"\",\"\",'2. Assisted & Restricted Units'!M8)","v":""},{"$f":"IF('2. Assisted & Restricted Units'!O8=\"\",\"\",'2. Assisted & Restricted Units'!O8)","v":""},{"$f":"IF('2. Assisted & Restricted Units'!P8=\"\",\"\",'2. Assisted & Restricted Units'!P8)","v":""},{"$f":"IF('2. Assisted & Restricted Units'!Q8=\"\",\"\",'2. Assisted & Restricted Units'!Q8)","v":""},{"$f":"IF('2. Assisted & Restricted Units'!R8=\"\",\"\",'2. Assisted & Restricted Units'!R8)","v":""},{"$f":"IF(A8=\"\",\"\",'1. Checklist & Certification'!$K$1)","v":""},{"$f":"IF(A8=\"\",\"\",'1. Checklist & Certification'!$C$62)","v":""},{"$f":"IF(A8=\"\",\"\",'1. Checklist & Certification'!$K$62)","v":""},{"$f":"IF(A8=\"\",\"\",'1. Checklist & Certification'!$C$6)","v":""},{"$f":"IF(A8=\"\",\"\",'1. Checklist & Certification'!$G$4)","v":""},{"$f":"IF(A8=\"\",\"\",'1. Checklist & Certification'!$C$7)","v":""},{"$f":"IF(A8=\"\",\"\",'1. Checklist & Certification'!$C$8)","v":""},{"$f":"IF(A8=\"\",\"\",'1. Checklist & Certification'!$F$7)","v":""},{"$f":"IF(A8=\"\",\"\",'1. Checklist & Certification'!$F$8)","v":""},{"$f":"IF(A8=\"\",\"\",'1. Checklist & Certification'!$B$9)","v":""},{"$f":"IF(A8=\"\",\"\",'1. Checklist & Certification'!$F$9)","v":""},{"$f":"IF(A8=\"\",\"\",'1. Checklist & Certification'!$C$10)","v":""},{"$f":"IF(A8=\"\",\"\",'1. Checklist & Certification'!$C$11)","v":""},{"$f":"IF(A8=\"\",\"\",'1. Checklist & Certification'!$C$12)","v":""},{"$f":"IF(A8=\"\",\"\",'1. Checklist & Certification'!$B$14)","v":""},{"$f":"IF(A8=\"\",\"\",'1. Checklist & Certification'!$E$14)","v":""},{"$f":"IF(B8=\"\",\"\",'1. Checklist & Certification'!$G$14)","v":""},{"$f":"IF(A8=\"\",\"\",'MHP Family Income & Rent Limits'!$B$3)","v":""},{"$f":"IF(A8=\"\",\"\",'MHP Family Income & Rent Limits'!$J$3)","v":""},{"$f":"IF(A8=\"\",\"\",'MHP Family Income & Rent Limits'!$E$4)","v":""},{"$f":"IF(A8=\"\",\"\",'MHP Family Income & Rent Limits'!$C$7)","v":""},{"$f":"IF(A8=\"\",\"\",'MHP Family Income & Rent Limits'!$F$8)","v":""},{"$f":"IF(A8=\"\",\"\",'1. Checklist & Certification'!$G$4)","v":""},{"$f":"IF(A8=\"\",\"\",'1. Checklist & Certification'!$K$39)","v":""},{"$f":"IF(A8=\"\",\"\",'1. Checklist & Certification'!$K$43)","v":""},{"$f":"IF(A8=\"\",\"\",'1. Checklist & Certification'!$K$45)","v":""},{"$f":"IF(A8=\"\",\"\",'1. Checklist & Certification'!$K$49)","v":""},{"$f":"IF(A8=\"\",\"\",'1. Checklist & Certification'!$E$66)","v":""},{"$f":"IF(A8=\"\",\"\",'1. Checklist & Certification'!$E$67)","v":""},{"$f":"IF(A8=\"\",\"\",'1. Checklist & Certification'!$E$68)","v":""},{"$f":"IF(A8=\"\",\"\",'1. Checklist & Certification'!$G$66)","v":""},{"$f":"IF(A8=\"\",\"\",'1. Checklist & Certification'!$H$66)","v":""},{"$f":"IF(A8=\"\",\"\",'1. Checklist & Certification'!$I$66)","v":""},{"$f":"IF(A8=\"\",\"\",'1. Checklist & Certification'!$I$67)","v":""},{"$f":"IF(A8=\"\",\"\",'1. Checklist & Certification'!$I$68)","v":""},null,{"$f":"IF(C8=\"\",\"\",HLOOKUP(C8,'MHP Family Income & Rent Limits'!$E$12:$L$26,2,FALSE))","v":""},{"$f":"IF(C8=\"\",\"\",HLOOKUP(C8,'MHP Family Income & Rent Limits'!$E$12:$L$26,3,FALSE))","v":""},{"$f":"IF(C8=\"\",\"\",HLOOKUP(C8,'MHP Family Income & Rent Limits'!$E$12:$L$26,4,FALSE))","v":""},{"$f":"IF(C8=\"\",\"\",HLOOKUP(C8,'MHP Family Income & Rent Limits'!$E$12:$L$26,5,FALSE))","v":""},{"$f":"IF(C8=\"\",\"\",HLOOKUP(C8,'MHP Family Income & Rent Limits'!$E$12:$L$26,6,FALSE))","v":""},{"$f":"IF(C8=\"\",\"\",HLOOKUP(C8,'MHP Family Income & Rent Limits'!$E$12:$L$26,7,FALSE))","v":""},{"$f":"IF(C8=\"\",\"\",HLOOKUP(C8,'MHP Family Income & Rent Limits'!$E$12:$L$26,8,FALSE))","v":""},{"$f":"IF(C8=\"\",\"\",HLOOKUP(C8,'MHP Family Income & Rent Limits'!$E$12:$L$26,9,FALSE))","v":""},{"$f":"IF(C8=\"\",\"\",HLOOKUP(C8,'MHP Family Income & Rent Limits'!$E$12:$L$26,10,FALSE))","v":""},{"$f":"IF(C8=\"\",\"\",HLOOKUP(C8,'MHP Family Income & Rent Limits'!$E$12:$L$26,11,FALSE))","v":""},{"$f":"IF(C8=\"\",\"\",HLOOKUP(C8,'MHP Family Income & Rent Limits'!$E$12:$L$26,12,FALSE))","v":""},{"$f":"IF(C8=\"\",\"\",HLOOKUP(C8,'MHP Family Income & Rent Limits'!$E$12:$L$26,13,FALSE))","v":""},{"$f":"IF(C8=\"\",\"\",HLOOKUP(C8,'MHP Family Income & Rent Limits'!$E$12:$L$26,14,FALSE))","v":""},{"$f":"IF(C8=\"\",\"\",HLOOKUP(C8,'MHP Family Income & Rent Limits'!$E$12:$L$26,15,FALSE))","v":""}]
[{"$f":"IF('2. Assisted & Restricted Units'!A9=\"\",\"\",'2. Assisted & Restricted Units'!A9)","v":""},{"$f":"IF('2. Assisted & Restricted Units'!B9=\"\",\"\",'2. Assisted & Restricted Units'!B9)","v":""},{"$f":"IF('2. Assisted & Restricted Units'!D9=\"\",\"\",'2. Assisted & Restricted Units'!D9)","v":""},{"$f":"IF('2. Assisted & Restricted Units'!E9=\"\",\"\",'2. Assisted & Restricted Units'!E9)","v":""},{"$f":"IF('2. Assisted & Restricted Units'!H9=\"\",\"\",'2. Assisted & Restricted Units'!H9)","v":""},{"$f":"_xlfn.IFS(E9=\"\",\"\",E9>BO9,$BP$6,E9>BN9,$BO$6,E9>BM9,$BN$6,E9>BL9,$BM$6,E9>BK9,$BL$6,E9>BJ9,$BK$6,E9>BI9,$BJ$6,E9>BH9,$BI$6,E9>BG9,$BH$6,E9>BF9,$BG$6,E9>BE9,$BF$6,E9>BD9,$BE$6,E9>BC9,$BD$6,E9>=0,$BC$6)","v":""},{"$f":"IF('2. Assisted & Restricted Units'!T9=\"\",\"\",'2. Assisted & Restricted Units'!T9)","v":""},{"$f":"IF('2. Assisted & Restricted Units'!I9=\"\",\"\",'2. Assisted & Restricted Units'!I9)","v":""},{"$f":"IF('2. Assisted & Restricted Units'!AP9=\"\",\"\",'2. Assisted & Restricted Units'!AP9)","v":0},{"$f":"IF('2. Assisted & Restricted Units'!AT9=\"\",\"\",'2. Assisted & Restricted Units'!AT9)","v":""},0,{"$f":"IF('2. Assisted & Restricted Units'!AV9=\"\",\"\",'2. Assisted & Restricted Units'!AV9)","v":""},{"$f":"IF('2. Assisted & Restricted Units'!L9=\"\",\"\",'2. Assisted & Restricted Units'!L9)","v":""},{"$f":"IF('2. Assisted & Restricted Units'!M9=\"\",\"\",'2. Assisted & Restricted Units'!M9)","v":""},{"$f":"IF('2. Assisted & Restricted Units'!O9=\"\",\"\",'2. Assisted & Restricted Units'!O9)","v":""},{"$f":"IF('2. Assisted & Restricted Units'!P9=\"\",\"\",'2. Assisted & Restricted Units'!P9)","v":""},{"$f":"IF('2. Assisted & Restricted Units'!Q9=\"\",\"\",'2. Assisted & Restricted Units'!Q9)","v":""},{"$f":"IF('2. Assisted & Restricted Units'!R9=\"\",\"\",'2. Assisted & Restricted Units'!R9)","v":""},{"$f":"IF(A9=\"\",\"\",'1. Checklist & Certification'!$K$1)","v":""},{"$f":"IF(A9=\"\",\"\",'1. Checklist & Certification'!$C$62)","v":""},{"$f":"IF(A9=\"\",\"\",'1. Checklist & Certification'!$K$62)","v":""},{"$f":"IF(A9=\"\",\"\",'1. Checklist & Certification'!$C$6)","v":""},{"$f":"IF(A9=\"\",\"\",'1. Checklist & Certification'!$G$4)","v":""},{"$f":"IF(A9=\"\",\"\",'1. Checklist & Certification'!$C$7)","v":""},{"$f":"IF(A9=\"\",\"\",'1. Checklist & Certification'!$C$8)","v":""},{"$f":"IF(A9=\"\",\"\",'1. Checklist & Certification'!$F$7)","v":""},{"$f":"IF(A9=\"\",\"\",'1. Checklist & Certification'!$F$8)","v":""},{"$f":"IF(A9=\"\",\"\",'1. Checklist & Certification'!$B$9)","v":""},{"$f":"IF(A9=\"\",\"\",'1. Checklist & Certification'!$F$9)","v":""},{"$f":"IF(A9=\"\",\"\",'1. Checklist & Certification'!$C$10)","v":""},{"$f":"IF(A9=\"\",\"\",'1. Checklist & Certification'!$C$11)","v":""},{"$f":"IF(A9=\"\",\"\",'1. Checklist & Certification'!$C$12)","v":""},{"$f":"IF(A9=\"\",\"\",'1. Checklist & Certification'!$B$14)","v":""},{"$f":"IF(A9=\"\",\"\",'1. Checklist & Certification'!$E$14)","v":""},{"$f":"IF(B9=\"\",\"\",'1. Checklist & Certification'!$G$14)","v":""},{"$f":"IF(A9=\"\",\"\",'MHP Family Income & Rent Limits'!$B$3)","v":""},{"$f":"IF(A9=\"\",\"\",'MHP Family Income & Rent Limits'!$J$3)","v":""},{"$f":"IF(A9=\"\",\"\",'MHP Family Income & Rent Limits'!$E$4)","v":""},{"$f":"IF(A9=\"\",\"\",'MHP Family Income & Rent Limits'!$C$7)","v":""},{"$f":"IF(A9=\"\",\"\",'MHP Family Income & Rent Limits'!$F$8)","v":""},{"$f":"IF(A9=\"\",\"\",'1. Checklist & Certification'!$G$4)","v":""},{"$f":"IF(A9=\"\",\"\",'1. Checklist & Certification'!$K$39)","v":""},{"$f":"IF(A9=\"\",\"\",'1. Checklist & Certification'!$K$43)","v":""},{"$f":"IF(A9=\"\",\"\",'1. Checklist & Certification'!$K$45)","v":""},{"$f":"IF(A9=\"\",\"\",'1. Checklist & Certification'!$K$49)","v":""},{"$f":"IF(A9=\"\",\"\",'1. Checklist & Certification'!$E$66)","v":""},{"$f":"IF(A9=\"\",\"\",'1. Checklist & Certification'!$E$67)","v":""},{"$f":"IF(A9=\"\",\"\",'1. Checklist & Certification'!$E$68)","v":""},{"$f":"IF(A9=\"\",\"\",'1. Checklist & Certification'!$G$66)","v":""},{"$f":"IF(A9=\"\",\"\",'1. Checklist & Certification'!$H$66)","v":""},{"$f":"IF(A9=\"\",\"\",'1. Checklist & Certification'!$I$66)","v":""},{"$f":"IF(A9=\"\",\"\",'1. Checklist & Certification'!$I$67)","v":""},{"$f":"IF(A9=\"\",\"\",'1. Checklist & Certification'!$I$68)","v":""},null,{"$f":"IF(C9=\"\",\"\",HLOOKUP(C9,'MHP Family Income & Rent Limits'!$E$12:$L$26,2,FALSE))","v":""},{"$f":"IF(C9=\"\",\"\",HLOOKUP(C9,'MHP Family Income & Rent Limits'!$E$12:$L$26,3,FALSE))","v":""},{"$f":"IF(C9=\"\",\"\",HLOOKUP(C9,'MHP Family Income & Rent Limits'!$E$12:$L$26,4,FALSE))","v":""},{"$f":"IF(C9=\"\",\"\",HLOOKUP(C9,'MHP Family Income & Rent Limits'!$E$12:$L$26,5,FALSE))","v":""},{"$f":"IF(C9=\"\",\"\",HLOOKUP(C9,'MHP Family Income & Rent Limits'!$E$12:$L$26,6,FALSE))","v":""},{"$f":"IF(C9=\"\",\"\",HLOOKUP(C9,'MHP Family Income & Rent Limits'!$E$12:$L$26,7,FALSE))","v":""},{"$f":"IF(C9=\"\",\"\",HLOOKUP(C9,'MHP Family Income & Rent Limits'!$E$12:$L$26,8,FALSE))","v":""},{"$f":"IF(C9=\"\",\"\",HLOOKUP(C9,'MHP Family Income & Rent Limits'!$E$12:$L$26,9,FALSE))","v":""},{"$f":"IF(C9=\"\",\"\",HLOOKUP(C9,'MHP Family Income & Rent Limits'!$E$12:$L$26,10,FALSE))","v":""},{"$f":"IF(C9=\"\",\"\",HLOOKUP(C9,'MHP Family Income & Rent Limits'!$E$12:$L$26,11,FALSE))","v":""},{"$f":"IF(C9=\"\",\"\",HLOOKUP(C9,'MHP Family Income & Rent Limits'!$E$12:$L$26,12,FALSE))","v":""},{"$f":"IF(C9=\"\",\"\",HLOOKUP(C9,'MHP Family Income & Rent Limits'!$E$12:$L$26,13,FALSE))","v":""},{"$f":"IF(C9=\"\",\"\",HLOOKUP(C9,'MHP Family Income & Rent Limits'!$E$12:$L$26,14,FALSE))","v":""},{"$f":"IF(C9=\"\",\"\",HLOOKUP(C9,'MHP Family Income & Rent Limits'!$E$12:$L$26,15,FALSE))","v":""}]
[{"$f":"IF('2. Assisted & Restricted Units'!A10=\"\",\"\",'2. Assisted & Restricted Units'!A10)","v":""},{"$f":"IF('2. Assisted & Restricted Units'!B10=\"\",\"\",'2. Assisted & Restricted Units'!B10)","v":""},{"$f":"IF('2. Assisted & Restricted Units'!D10=\"\",\"\",'2. Assisted & Restricted Units'!D10)","v":""},{"$f":"IF('2. Assisted & Restricted Units'!E10=\"\",\"\",'2. Assisted & Restricted Units'!E10)","v":""},{"$f":"IF('2. Assisted & Restricted Units'!H10=\"\",\"\",'2. Assisted & Restricted Units'!H10)","v":""},{"$f":"_xlfn.IFS(E10=\"\",\"\",E10>BO10,$BP$6,E10>BN10,$BO$6,E10>BM10,$BN$6,E10>BL10,$BM$6,E10>BK10,$BL$6,E10>BJ10,$BK$6,E10>BI10,$BJ$6,E10>BH10,$BI$6,E10>BG10,$BH$6,E10>BF10,$BG$6,E10>BE10,$BF$6,E10>BD10,$BE$6,E10>BC10,$BD$6,E10>=0,$BC$6)","v":""},{"$f":"IF('2. Assisted & Restricted Units'!T10=\"\",\"\",'2. Assisted & Restricted Units'!T10)","v":""},{"$f":"IF('2. Assisted & Restricted Units'!I10=\"\",\"\",'2. Assisted & Restricted Units'!I10)","v":""},{"$f":"IF('2. Assisted & Restricted Units'!AP10=\"\",\"\",'2. Assisted & Restricted Units'!AP10)","v":0},{"$f":"IF('2. Assisted & Restricted Units'!AT10=\"\",\"\",'2. Assisted & Restricted Units'!AT10)","v":""},0,{"$f":"IF('2. Assisted & Restricted Units'!AV10=\"\",\"\",'2. Assisted & Restricted Units'!AV10)","v":""},{"$f":"IF('2. Assisted & Restricted Units'!L10=\"\",\"\",'2. Assisted & Restricted Units'!L10)","v":""},{"$f":"IF('2. Assisted & Restricted Units'!M10=\"\",\"\",'2. Assisted & Restricted Units'!M10)","v":""},{"$f":"IF('2. Assisted & Restricted Units'!O10=\"\",\"\",'2. Assisted & Restricted Units'!O10)","v":""},{"$f":"IF('2. Assisted & Restricted Units'!P10=\"\",\"\",'2. Assisted & Restricted Units'!P10)","v":""},{"$f":"IF('2. Assisted & Restricted Units'!Q10=\"\",\"\",'2. Assisted & Restricted Units'!Q10)","v":""},{"$f":"IF('2. Assisted & Restricted Units'!R10=\"\",\"\",'2. Assisted & Restricted Units'!R10)","v":""},{"$f":"IF(A10=\"\",\"\",'1. Checklist & Certification'!$K$1)","v":""},{"$f":"IF(A10=\"\",\"\",'1. Checklist & Certification'!$C$62)","v":""},{"$f":"IF(A10=\"\",\"\",'1. Checklist & Certification'!$K$62)","v":""},{"$f":"IF(A10=\"\",\"\",'1. Checklist & Certification'!$C$6)","v":""},{"$f":"IF(A10=\"\",\"\",'1. Checklist & Certification'!$G$4)","v":""},{"$f":"IF(A10=\"\",\"\",'1. Checklist & Certification'!$C$7)","v":""},{"$f":"IF(A10=\"\",\"\",'1. Checklist & Certification'!$C$8)","v":""},{"$f":"IF(A10=\"\",\"\",'1. Checklist & Certification'!$F$7)","v":""},{"$f":"IF(A10=\"\",\"\",'1. Checklist & Certification'!$F$8)","v":""},{"$f":"IF(A10=\"\",\"\",'1. Checklist & Certification'!$B$9)","v":""},{"$f":"IF(A10=\"\",\"\",'1. Checklist & Certification'!$F$9)","v":""},{"$f":"IF(A10=\"\",\"\",'1. Checklist & Certification'!$C$10)","v":""},{"$f":"IF(A10=\"\",\"\",'1. Checklist & Certification'!$C$11)","v":""},{"$f":"IF(A10=\"\",\"\",'1. Checklist & Certification'!$C$12)","v":""},{"$f":"IF(A10=\"\",\"\",'1. Checklist & Certification'!$B$14)","v":""},{"$f":"IF(A10=\"\",\"\",'1. Checklist & Certification'!$E$14)","v":""},{"$f":"IF(B10=\"\",\"\",'1. Checklist & Certification'!$G$14)","v":""},{"$f":"IF(A10=\"\",\"\",'MHP Family Income & Rent Limits'!$B$3)","v":""},{"$f":"IF(A10=\"\",\"\",'MHP Family Income & Rent Limits'!$J$3)","v":""},{"$f":"IF(A10=\"\",\"\",'MHP Family Income & Rent Limits'!$E$4)","v":""},{"$f":"IF(A10=\"\",\"\",'MHP Family Income & Rent Limits'!$C$7)","v":""},{"$f":"IF(A10=\"\",\"\",'MHP Family Income & Rent Limits'!$F$8)","v":""},{"$f":"IF(A10=\"\",\"\",'1. Checklist & Certification'!$G$4)","v":""},{"$f":"IF(A10=\"\",\"\",'1. Checklist & Certification'!$K$39)","v":""},{"$f":"IF(A10=\"\",\"\",'1. Checklist & Certification'!$K$43)","v":""},{"$f":"IF(A10=\"\",\"\",'1. Checklist & Certification'!$K$45)","v":""},{"$f":"IF(A10=\"\",\"\",'1. Checklist & Certification'!$K$49)","v":""},{"$f":"IF(A10=\"\",\"\",'1. Checklist & Certification'!$E$66)","v":""},{"$f":"IF(A10=\"\",\"\",'1. Checklist & Certification'!$E$67)","v":""},{"$f":"IF(A10=\"\",\"\",'1. Checklist & Certification'!$E$68)","v":""},{"$f":"IF(A10=\"\",\"\",'1. Checklist & Certification'!$G$66)","v":""},{"$f":"IF(A10=\"\",\"\",'1. Checklist & Certification'!$H$66)","v":""},{"$f":"IF(A10=\"\",\"\",'1. Checklist & Certification'!$I$66)","v":""},{"$f":"IF(A10=\"\",\"\",'1. Checklist & Certification'!$I$67)","v":""},{"$f":"IF(A10=\"\",\"\",'1. Checklist & Certification'!$I$68)","v":""},null,{"$f":"IF(C10=\"\",\"\",HLOOKUP(C10,'MHP Family Income & Rent Limits'!$E$12:$L$26,2,FALSE))","v":""},{"$f":"IF(C10=\"\",\"\",HLOOKUP(C10,'MHP Family Income & Rent Limits'!$E$12:$L$26,3,FALSE))","v":""},{"$f":"IF(C10=\"\",\"\",HLOOKUP(C10,'MHP Family Income & Rent Limits'!$E$12:$L$26,4,FALSE))","v":""},{"$f":"IF(C10=\"\",\"\",HLOOKUP(C10,'MHP Family Income & Rent Limits'!$E$12:$L$26,5,FALSE))","v":""},{"$f":"IF(C10=\"\",\"\",HLOOKUP(C10,'MHP Family Income & Rent Limits'!$E$12:$L$26,6,FALSE))","v":""},{"$f":"IF(C10=\"\",\"\",HLOOKUP(C10,'MHP Family Income & Rent Limits'!$E$12:$L$26,7,FALSE))","v":""},{"$f":"IF(C10=\"\",\"\",HLOOKUP(C10,'MHP Family Income & Rent Limits'!$E$12:$L$26,8,FALSE))","v":""},{"$f":"IF(C10=\"\",\"\",HLOOKUP(C10,'MHP Family Income & Rent Limits'!$E$12:$L$26,9,FALSE))","v":""},{"$f":"IF(C10=\"\",\"\",HLOOKUP(C10,'MHP Family Income & Rent Limits'!$E$12:$L$26,10,FALSE))","v":""},{"$f":"IF(C10=\"\",\"\",HLOOKUP(C10,'MHP Family Income & Rent Limits'!$E$12:$L$26,11,FALSE))","v":""},{"$f":"IF(C10=\"\",\"\",HLOOKUP(C10,'MHP Family Income & Rent Limits'!$E$12:$L$26,12,FALSE))","v":""},{"$f":"IF(C10=\"\",\"\",HLOOKUP(C10,'MHP Family Income & Rent Limits'!$E$12:$L$26,13,FALSE))","v":""},{"$f":"IF(C10=\"\",\"\",HLOOKUP(C10,'MHP Family Income & Rent Limits'!$E$12:$L$26,14,FALSE))","v":""},{"$f":"IF(C10=\"\",\"\",HLOOKUP(C10,'MHP Family Income & Rent Limits'!$E$12:$L$26,15,FALSE))","v":""}]
[{"$f":"IF('2. Assisted & Restricted Units'!A11=\"\",\"\",'2. Assisted & Restricted Units'!A11)","v":""},{"$f":"IF('2. Assisted & Restricted Units'!B11=\"\",\"\",'2. Assisted & Restricted Units'!B11)","v":""},{"$f":"IF('2. Assisted & Restricted Units'!D11=\"\",\"\",'2. Assisted & Restricted Units'!D11)","v":""},{"$f":"IF('2. Assisted & Restricted Units'!E11=\"\",\"\",'2. Assisted & Restricted Units'!E11)","v":""},{"$f":"IF('2. Assisted & Restricted Units'!H11=\"\",\"\",'2. Assisted & Restricted Units'!H11)","v":""},{"$f":"_xlfn.IFS(E11=\"\",\"\",E11>BO11,$BP$6,E11>BN11,$BO$6,E11>BM11,$BN$6,E11>BL11,$BM$6,E11>BK11,$BL$6,E11>BJ11,$BK$6,E11>BI11,$BJ$6,E11>BH11,$BI$6,E11>BG11,$BH$6,E11>BF11,$BG$6,E11>BE11,$BF$6,E11>BD11,$BE$6,E11>BC11,$BD$6,E11>=0,$BC$6)","v":""},{"$f":"IF('2. Assisted & Restricted Units'!T11=\"\",\"\",'2. Assisted & Restricted Units'!T11)","v":""},{"$f":"IF('2. Assisted & Restricted Units'!I11=\"\",\"\",'2. Assisted & Restricted Units'!I11)","v":""},{"$f":"IF('2. Assisted & Restricted Units'!AP11=\"\",\"\",'2. Assisted & Restricted Units'!AP11)","v":0},{"$f":"IF('2. Assisted & Restricted Units'!AT11=\"\",\"\",'2. Assisted & Restricted Units'!AT11)","v":""},0,{"$f":"IF('2. Assisted & Restricted Units'!AV11=\"\",\"\",'2. Assisted & Restricted Units'!AV11)","v":""},{"$f":"IF('2. Assisted & Restricted Units'!L11=\"\",\"\",'2. Assisted & Restricted Units'!L11)","v":""},{"$f":"IF('2. Assisted & Restricted Units'!M11=\"\",\"\",'2. Assisted & Restricted Units'!M11)","v":""},{"$f":"IF('2. Assisted & Restricted Units'!O11=\"\",\"\",'2. Assisted & Restricted Units'!O11)","v":""},{"$f":"IF('2. Assisted & Restricted Units'!P11=\"\",\"\",'2. Assisted & Restricted Units'!P11)","v":""},{"$f":"IF('2. Assisted & Restricted Units'!Q11=\"\",\"\",'2. Assisted & Restricted Units'!Q11)","v":""},{"$f":"IF('2. Assisted & Restricted Units'!R11=\"\",\"\",'2. Assisted & Restricted Units'!R11)","v":""},{"$f":"IF(A11=\"\",\"\",'1. Checklist & Certification'!$K$1)","v":""},{"$f":"IF(A11=\"\",\"\",'1. Checklist & Certification'!$C$62)","v":""},{"$f":"IF(A11=\"\",\"\",'1. Checklist & Certification'!$K$62)","v":""},{"$f":"IF(A11=\"\",\"\",'1. Checklist & Certification'!$C$6)","v":""},{"$f":"IF(A11=\"\",\"\",'1. Checklist & Certification'!$G$4)","v":""},{"$f":"IF(A11=\"\",\"\",'1. Checklist & Certification'!$C$7)","v":""},{"$f":"IF(A11=\"\",\"\",'1. Checklist & Certification'!$C$8)","v":""},{"$f":"IF(A11=\"\",\"\",'1. Checklist & Certification'!$F$7)","v":""},{"$f":"IF(A11=\"\",\"\",'1. Checklist & Certification'!$F$8)","v":""},{"$f":"IF(A11=\"\",\"\",'1. Checklist & Certification'!$B$9)","v":""},{"$f":"IF(A11=\"\",\"\",'1. Checklist & Certification'!$F$9)","v":""},{"$f":"IF(A11=\"\",\"\",'1. Checklist & Certification'!$C$10)","v":""},{"$f":"IF(A11=\"\",\"\",'1. Checklist & Certification'!$C$11)","v":""},{"$f":"IF(A11=\"\",\"\",'1. Checklist & Certification'!$C$12)","v":""},{"$f":"IF(A11=\"\",\"\",'1. Checklist & Certification'!$B$14)","v":""},{"$f":"IF(A11=\"\",\"\",'1. Checklist & Certification'!$E$14)","v":""},{"$f":"IF(B11=\"\",\"\",'1. Checklist & Certification'!$G$14)","v":""},{"$f":"IF(A11=\"\",\"\",'MHP Family Income & Rent Limits'!$B$3)","v":""},{"$f":"IF(A11=\"\",\"\",'MHP Family Income & Rent Limits'!$J$3)","v":""},{"$f":"IF(A11=\"\",\"\",'MHP Family Income & Rent Limits'!$E$4)","v":""},{"$f":"IF(A11=\"\",\"\",'MHP Family Income & Rent Limits'!$C$7)","v":""},{"$f":"IF(A11=\"\",\"\",'MHP Family Income & Rent Limits'!$F$8)","v":""},{"$f":"IF(A11=\"\",\"\",'1. Checklist & Certification'!$G$4)","v":""},{"$f":"IF(A11=\"\",\"\",'1. Checklist & Certification'!$K$39)","v":""},{"$f":"IF(A11=\"\",\"\",'1. Checklist & Certification'!$K$43)","v":""},{"$f":"IF(A11=\"\",\"\",'1. Checklist & Certification'!$K$45)","v":""},{"$f":"IF(A11=\"\",\"\",'1. Checklist & Certification'!$K$49)","v":""},{"$f":"IF(A11=\"\",\"\",'1. Checklist & Certification'!$E$66)","v":""},{"$f":"IF(A11=\"\",\"\",'1. Checklist & Certification'!$E$67)","v":""},{"$f":"IF(A11=\"\",\"\",'1. Checklist & Certification'!$E$68)","v":""},{"$f":"IF(A11=\"\",\"\",'1. Checklist & Certification'!$G$66)","v":""},{"$f":"IF(A11=\"\",\"\",'1. Checklist & Certification'!$H$66)","v":""},{"$f":"IF(A11=\"\",\"\",'1. Checklist & Certification'!$I$66)","v":""},{"$f":"IF(A11=\"\",\"\",'1. Checklist & Certification'!$I$67)","v":""},{"$f":"IF(A11=\"\",\"\",'1. Checklist & Certification'!$I$68)","v":""},null,{"$f":"IF(C11=\"\",\"\",HLOOKUP(C11,'MHP Family Income & Rent Limits'!$E$12:$L$26,2,FALSE))","v":""},{"$f":"IF(C11=\"\",\"\",HLOOKUP(C11,'MHP Family Income & Rent Limits'!$E$12:$L$26,3,FALSE))","v":""},{"$f":"IF(C11=\"\",\"\",HLOOKUP(C11,'MHP Family Income & Rent Limits'!$E$12:$L$26,4,FALSE))","v":""},{"$f":"IF(C11=\"\",\"\",HLOOKUP(C11,'MHP Family Income & Rent Limits'!$E$12:$L$26,5,FALSE))","v":""},{"$f":"IF(C11=\"\",\"\",HLOOKUP(C11,'MHP Family Income & Rent Limits'!$E$12:$L$26,6,FALSE))","v":""},{"$f":"IF(C11=\"\",\"\",HLOOKUP(C11,'MHP Family Income & Rent Limits'!$E$12:$L$26,7,FALSE))","v":""},{"$f":"IF(C11=\"\",\"\",HLOOKUP(C11,'MHP Family Income & Rent Limits'!$E$12:$L$26,8,FALSE))","v":""},{"$f":"IF(C11=\"\",\"\",HLOOKUP(C11,'MHP Family Income & Rent Limits'!$E$12:$L$26,9,FALSE))","v":""},{"$f":"IF(C11=\"\",\"\",HLOOKUP(C11,'MHP Family Income & Rent Limits'!$E$12:$L$26,10,FALSE))","v":""},{"$f":"IF(C11=\"\",\"\",HLOOKUP(C11,'MHP Family Income & Rent Limits'!$E$12:$L$26,11,FALSE))","v":""},{"$f":"IF(C11=\"\",\"\",HLOOKUP(C11,'MHP Family Income & Rent Limits'!$E$12:$L$26,12,FALSE))","v":""},{"$f":"IF(C11=\"\",\"\",HLOOKUP(C11,'MHP Family Income & Rent Limits'!$E$12:$L$26,13,FALSE))","v":""},{"$f":"IF(C11=\"\",\"\",HLOOKUP(C11,'MHP Family Income & Rent Limits'!$E$12:$L$26,14,FALSE))","v":""},{"$f":"IF(C11=\"\",\"\",HLOOKUP(C11,'MHP Family Income & Rent Limits'!$E$12:$L$26,15,FALSE))","v":""}]
[{"$f":"IF('2. Assisted & Restricted Units'!A12=\"\",\"\",'2. Assisted & Restricted Units'!A12)","v":""},{"$f":"IF('2. Assisted & Restricted Units'!B12=\"\",\"\",'2. Assisted & Restricted Units'!B12)","v":""},{"$f":"IF('2. Assisted & Restricted Units'!D12=\"\",\"\",'2. Assisted & Restricted Units'!D12)","v":""},{"$f":"IF('2. Assisted & Restricted Units'!E12=\"\",\"\",'2. Assisted & Restricted Units'!E12)","v":""},{"$f":"IF('2. Assisted & Restricted Units'!H12=\"\",\"\",'2. Assisted & Restricted Units'!H12)","v":""},{"$f":"_xlfn.IFS(E12=\"\",\"\",E12>BO12,$BP$6,E12>BN12,$BO$6,E12>BM12,$BN$6,E12>BL12,$BM$6,E12>BK12,$BL$6,E12>BJ12,$BK$6,E12>BI12,$BJ$6,E12>BH12,$BI$6,E12>BG12,$BH$6,E12>BF12,$BG$6,E12>BE12,$BF$6,E12>BD12,$BE$6,E12>BC12,$BD$6,E12>=0,$BC$6)","v":""},{"$f":"IF('2. Assisted & Restricted Units'!T12=\"\",\"\",'2. Assisted & Restricted Units'!T12)","v":""},{"$f":"IF('2. Assisted & Restricted Units'!I12=\"\",\"\",'2. Assisted & Restricted Units'!I12)","v":""},{"$f":"IF('2. Assisted & Restricted Units'!AP12=\"\",\"\",'2. Assisted & Restricted Units'!AP12)","v":0},{"$f":"IF('2. Assisted & Restricted Units'!AT12=\"\",\"\",'2. Assisted & Restricted Units'!AT12)","v":""},0,{"$f":"IF('2. Assisted & Restricted Units'!AV12=\"\",\"\",'2. Assisted & Restricted Units'!AV12)","v":""},{"$f":"IF('2. Assisted & Restricted Units'!L12=\"\",\"\",'2. Assisted & Restricted Units'!L12)","v":""},{"$f":"IF('2. Assisted & Restricted Units'!M12=\"\",\"\",'2. Assisted & Restricted Units'!M12)","v":""},{"$f":"IF('2. Assisted & Restricted Units'!O12=\"\",\"\",'2. Assisted & Restricted Units'!O12)","v":""},{"$f":"IF('2. Assisted & Restricted Units'!P12=\"\",\"\",'2. Assisted & Restricted Units'!P12)","v":""},{"$f":"IF('2. Assisted & Restricted Units'!Q12=\"\",\"\",'2. Assisted & Restricted Units'!Q12)","v":""},{"$f":"IF('2. Assisted & Restricted Units'!R12=\"\",\"\",'2. Assisted & Restricted Units'!R12)","v":""},{"$f":"IF(A12=\"\",\"\",'1. Checklist & Certification'!$K$1)","v":""},{"$f":"IF(A12=\"\",\"\",'1. Checklist & Certification'!$C$62)","v":""},{"$f":"IF(A12=\"\",\"\",'1. Checklist & Certification'!$K$62)","v":""},{"$f":"IF(A12=\"\",\"\",'1. Checklist & Certification'!$C$6)","v":""},{"$f":"IF(A12=\"\",\"\",'1. Checklist & Certification'!$G$4)","v":""},{"$f":"IF(A12=\"\",\"\",'1. Checklist & Certification'!$C$7)","v":""},{"$f":"IF(A12=\"\",\"\",'1. Checklist & Certification'!$C$8)","v":""},{"$f":"IF(A12=\"\",\"\",'1. Checklist & Certification'!$F$7)","v":""},{"$f":"IF(A12=\"\",\"\",'1. Checklist & Certification'!$F$8)","v":""},{"$f":"IF(A12=\"\",\"\",'1. Checklist & Certification'!$B$9)","v":""},{"$f":"IF(A12=\"\",\"\",'1. Checklist & Certification'!$F$9)","v":""},{"$f":"IF(A12=\"\",\"\",'1. Checklist & Certification'!$C$10)","v":""},{"$f":"IF(A12=\"\",\"\",'1. Checklist & Certification'!$C$11)","v":""},{"$f":"IF(A12=\"\",\"\",'1. Checklist & Certification'!$C$12)","v":""},{"$f":"IF(A12=\"\",\"\",'1. Checklist & Certification'!$B$14)","v":""},{"$f":"IF(A12=\"\",\"\",'1. Checklist & Certification'!$E$14)","v":""},{"$f":"IF(B12=\"\",\"\",'1. Checklist & Certification'!$G$14)","v":""},{"$f":"IF(A12=\"\",\"\",'MHP Family Income & Rent Limits'!$B$3)","v":""},{"$f":"IF(A12=\"\",\"\",'MHP Family Income & Rent Limits'!$J$3)","v":""},{"$f":"IF(A12=\"\",\"\",'MHP Family Income & Rent Limits'!$E$4)","v":""},{"$f":"IF(A12=\"\",\"\",'MHP Family Income & Rent Limits'!$C$7)","v":""},{"$f":"IF(A12=\"\",\"\",'MHP Family Income & Rent Limits'!$F$8)","v":""},{"$f":"IF(A12=\"\",\"\",'1. Checklist & Certification'!$G$4)","v":""},{"$f":"IF(A12=\"\",\"\",'1. Checklist & Certification'!$K$39)","v":""},{"$f":"IF(A12=\"\",\"\",'1. Checklist & Certification'!$K$43)","v":""},{"$f":"IF(A12=\"\",\"\",'1. Checklist & Certification'!$K$45)","v":""},{"$f":"IF(A12=\"\",\"\",'1. Checklist & Certification'!$K$49)","v":""},{"$f":"IF(A12=\"\",\"\",'1. Checklist & Certification'!$E$66)","v":""},{"$f":"IF(A12=\"\",\"\",'1. Checklist & Certification'!$E$67)","v":""},{"$f":"IF(A12=\"\",\"\",'1. Checklist & Certification'!$E$68)","v":""},{"$f":"IF(A12=\"\",\"\",'1. Checklist & Certification'!$G$66)","v":""},{"$f":"IF(A12=\"\",\"\",'1. Checklist & Certification'!$H$66)","v":""},{"$f":"IF(A12=\"\",\"\",'1. Checklist & Certification'!$I$66)","v":""},{"$f":"IF(A12=\"\",\"\",'1. Checklist & Certification'!$I$67)","v":""},{"$f":"IF(A12=\"\",\"\",'1. Checklist & Certification'!$I$68)","v":""},null,{"$f":"IF(C12=\"\",\"\",HLOOKUP(C12,'MHP Family Income & Rent Limits'!$E$12:$L$26,2,FALSE))","v":""},{"$f":"IF(C12=\"\",\"\",HLOOKUP(C12,'MHP Family Income & Rent Limits'!$E$12:$L$26,3,FALSE))","v":""},{"$f":"IF(C12=\"\",\"\",HLOOKUP(C12,'MHP Family Income & Rent Limits'!$E$12:$L$26,4,FALSE))","v":""},{"$f":"IF(C12=\"\",\"\",HLOOKUP(C12,'MHP Family Income & Rent Limits'!$E$12:$L$26,5,FALSE))","v":""},{"$f":"IF(C12=\"\",\"\",HLOOKUP(C12,'MHP Family Income & Rent Limits'!$E$12:$L$26,6,FALSE))","v":""},{"$f":"IF(C12=\"\",\"\",HLOOKUP(C12,'MHP Family Income & Rent Limits'!$E$12:$L$26,7,FALSE))","v":""},{"$f":"IF(C12=\"\",\"\",HLOOKUP(C12,'MHP Family Income & Rent Limits'!$E$12:$L$26,8,FALSE))","v":""},{"$f":"IF(C12=\"\",\"\",HLOOKUP(C12,'MHP Family Income & Rent Limits'!$E$12:$L$26,9,FALSE))","v":""},{"$f":"IF(C12=\"\",\"\",HLOOKUP(C12,'MHP Family Income & Rent Limits'!$E$12:$L$26,10,FALSE))","v":""},{"$f":"IF(C12=\"\",\"\",HLOOKUP(C12,'MHP Family Income & Rent Limits'!$E$12:$L$26,11,FALSE))","v":""},{"$f":"IF(C12=\"\",\"\",HLOOKUP(C12,'MHP Family Income & Rent Limits'!$E$12:$L$26,12,FALSE))","v":""},{"$f":"IF(C12=\"\",\"\",HLOOKUP(C12,'MHP Family Income & Rent Limits'!$E$12:$L$26,13,FALSE))","v":""},{"$f":"IF(C12=\"\",\"\",HLOOKUP(C12,'MHP Family Income & Rent Limits'!$E$12:$L$26,14,FALSE))","v":""},{"$f":"IF(C12=\"\",\"\",HLOOKUP(C12,'MHP Family Income & Rent Limits'!$E$12:$L$26,15,FALSE))","v":""}]
[{"$f":"IF('2. Assisted & Restricted Units'!A13=\"\",\"\",'2. Assisted & Restricted Units'!A13)","v":""},{"$f":"IF('2. Assisted & Restricted Units'!B13=\"\",\"\",'2. Assisted & Restricted Units'!B13)","v":""},{"$f":"IF('2. Assisted & Restricted Units'!D13=\"\",\"\",'2. Assisted & Restricted Units'!D13)","v":""},{"$f":"IF('2. Assisted & Restricted Units'!E13=\"\",\"\",'2. Assisted & Restricted Units'!E13)","v":""},{"$f":"IF('2. Assisted & Restricted Units'!H13=\"\",\"\",'2. Assisted & Restricted Units'!H13)","v":""},{"$f":"_xlfn.IFS(E13=\"\",\"\",E13>BO13,$BP$6,E13>BN13,$BO$6,E13>BM13,$BN$6,E13>BL13,$BM$6,E13>BK13,$BL$6,E13>BJ13,$BK$6,E13>BI13,$BJ$6,E13>BH13,$BI$6,E13>BG13,$BH$6,E13>BF13,$BG$6,E13>BE13,$BF$6,E13>BD13,$BE$6,E13>BC13,$BD$6,E13>=0,$BC$6)","v":""},{"$f":"IF('2. Assisted & Restricted Units'!T13=\"\",\"\",'2. Assisted & Restricted Units'!T13)","v":""},{"$f":"IF('2. Assisted & Restricted Units'!I13=\"\",\"\",'2. Assisted & Restricted Units'!I13)","v":""},{"$f":"IF('2. Assisted & Restricted Units'!AP13=\"\",\"\",'2. Assisted & Restricted Units'!AP13)","v":0},{"$f":"IF('2. Assisted & Restricted Units'!AT13=\"\",\"\",'2. Assisted & Restricted Units'!AT13)","v":""},0,{"$f":"IF('2. Assisted & Restricted Units'!AV13=\"\",\"\",'2. Assisted & Restricted Units'!AV13)","v":""},{"$f":"IF('2. Assisted & Restricted Units'!L13=\"\",\"\",'2. Assisted & Restricted Units'!L13)","v":""},{"$f":"IF('2. Assisted & Restricted Units'!M13=\"\",\"\",'2. Assisted & Restricted Units'!M13)","v":""},{"$f":"IF('2. Assisted & Restricted Units'!O13=\"\",\"\",'2. Assisted & Restricted Units'!O13)","v":""},{"$f":"IF('2. Assisted & Restricted Units'!P13=\"\",\"\",'2. Assisted & Restricted Units'!P13)","v":""},{"$f":"IF('2. Assisted & Restricted Units'!Q13=\"\",\"\",'2. Assisted & Restricted Units'!Q13)","v":""},{"$f":"IF('2. Assisted & Restricted Units'!R13=\"\",\"\",'2. Assisted & Restricted Units'!R13)","v":""},{"$f":"IF(A13=\"\",\"\",'1. Checklist & Certification'!$K$1)","v":""},{"$f":"IF(A13=\"\",\"\",'1. Checklist & Certification'!$C$62)","v":""},{"$f":"IF(A13=\"\",\"\",'1. Checklist & Certification'!$K$62)","v":""},{"$f":"IF(A13=\"\",\"\",'1. Checklist & Certification'!$C$6)","v":""},{"$f":"IF(A13=\"\",\"\",'1. Checklist & Certification'!$G$4)","v":""},{"$f":"IF(A13=\"\",\"\",'1. Checklist & Certification'!$C$7)","v":""},{"$f":"IF(A13=\"\",\"\",'1. Checklist & Certification'!$C$8)","v":""},{"$f":"IF(A13=\"\",\"\",'1. Checklist & Certification'!$F$7)","v":""},{"$f":"IF(A13=\"\",\"\",'1. Checklist & Certification'!$F$8)","v":""},{"$f":"IF(A13=\"\",\"\",'1. Checklist & Certification'!$B$9)","v":""},{"$f":"IF(A13=\"\",\"\",'1. Checklist & Certification'!$F$9)","v":""},{"$f":"IF(A13=\"\",\"\",'1. Checklist & Certification'!$C$10)","v":""},{"$f":"IF(A13=\"\",\"\",'1. Checklist & Certification'!$C$11)","v":""},{"$f":"IF(A13=\"\",\"\",'1. Checklist & Certification'!$C$12)","v":""},{"$f":"IF(A13=\"\",\"\",'1. Checklist & Certification'!$B$14)","v":""},{"$f":"IF(A13=\"\",\"\",'1. Checklist & Certification'!$E$14)","v":""},{"$f":"IF(B13=\"\",\"\",'1. Checklist & Certification'!$G$14)","v":""},{"$f":"IF(A13=\"\",\"\",'MHP Family Income & Rent Limits'!$B$3)","v":""},{"$f":"IF(A13=\"\",\"\",'MHP Family Income & Rent Limits'!$J$3)","v":""},{"$f":"IF(A13=\"\",\"\",'MHP Family Income & Rent Limits'!$E$4)","v":""},{"$f":"IF(A13=\"\",\"\",'MHP Family Income & Rent Limits'!$C$7)","v":""},{"$f":"IF(A13=\"\",\"\",'MHP Family Income & Rent Limits'!$F$8)","v":""},{"$f":"IF(A13=\"\",\"\",'1. Checklist & Certification'!$G$4)","v":""},{"$f":"IF(A13=\"\",\"\",'1. Checklist & Certification'!$K$39)","v":""},{"$f":"IF(A13=\"\",\"\",'1. Checklist & Certification'!$K$43)","v":""},{"$f":"IF(A13=\"\",\"\",'1. Checklist & Certification'!$K$45)","v":""},{"$f":"IF(A13=\"\",\"\",'1. Checklist & Certification'!$K$49)","v":""},{"$f":"IF(A13=\"\",\"\",'1. Checklist & Certification'!$E$66)","v":""},{"$f":"IF(A13=\"\",\"\",'1. Checklist & Certification'!$E$67)","v":""},{"$f":"IF(A13=\"\",\"\",'1. Checklist & Certification'!$E$68)","v":""},{"$f":"IF(A13=\"\",\"\",'1. Checklist & Certification'!$G$66)","v":""},{"$f":"IF(A13=\"\",\"\",'1. Checklist & Certification'!$H$66)","v":""},{"$f":"IF(A13=\"\",\"\",'1. Checklist & Certification'!$I$66)","v":""},{"$f":"IF(A13=\"\",\"\",'1. Checklist & Certification'!$I$67)","v":""},{"$f":"IF(A13=\"\",\"\",'1. Checklist & Certification'!$I$68)","v":""},null,{"$f":"IF(C13=\"\",\"\",HLOOKUP(C13,'MHP Family Income & Rent Limits'!$E$12:$L$26,2,FALSE))","v":""},{"$f":"IF(C13=\"\",\"\",HLOOKUP(C13,'MHP Family Income & Rent Limits'!$E$12:$L$26,3,FALSE))","v":""},{"$f":"IF(C13=\"\",\"\",HLOOKUP(C13,'MHP Family Income & Rent Limits'!$E$12:$L$26,4,FALSE))","v":""},{"$f":"IF(C13=\"\",\"\",HLOOKUP(C13,'MHP Family Income & Rent Limits'!$E$12:$L$26,5,FALSE))","v":""},{"$f":"IF(C13=\"\",\"\",HLOOKUP(C13,'MHP Family Income & Rent Limits'!$E$12:$L$26,6,FALSE))","v":""},{"$f":"IF(C13=\"\",\"\",HLOOKUP(C13,'MHP Family Income & Rent Limits'!$E$12:$L$26,7,FALSE))","v":""},{"$f":"IF(C13=\"\",\"\",HLOOKUP(C13,'MHP Family Income & Rent Limits'!$E$12:$L$26,8,FALSE))","v":""},{"$f":"IF(C13=\"\",\"\",HLOOKUP(C13,'MHP Family Income & Rent Limits'!$E$12:$L$26,9,FALSE))","v":""},{"$f":"IF(C13=\"\",\"\",HLOOKUP(C13,'MHP Family Income & Rent Limits'!$E$12:$L$26,10,FALSE))","v":""},{"$f":"IF(C13=\"\",\"\",HLOOKUP(C13,'MHP Family Income & Rent Limits'!$E$12:$L$26,11,FALSE))","v":""},{"$f":"IF(C13=\"\",\"\",HLOOKUP(C13,'MHP Family Income & Rent Limits'!$E$12:$L$26,12,FALSE))","v":""},{"$f":"IF(C13=\"\",\"\",HLOOKUP(C13,'MHP Family Income & Rent Limits'!$E$12:$L$26,13,FALSE))","v":""},{"$f":"IF(C13=\"\",\"\",HLOOKUP(C13,'MHP Family Income & Rent Limits'!$E$12:$L$26,14,FALSE))","v":""},{"$f":"IF(C13=\"\",\"\",HLOOKUP(C13,'MHP Family Income & Rent Limits'!$E$12:$L$26,15,FALSE))","v":""}]
[{"$f":"IF('2. Assisted & Restricted Units'!A14=\"\",\"\",'2. Assisted & Restricted Units'!A14)","v":""},{"$f":"IF('2. Assisted & Restricted Units'!B14=\"\",\"\",'2. Assisted & Restricted Units'!B14)","v":""},{"$f":"IF('2. Assisted & Restricted Units'!D14=\"\",\"\",'2. Assisted & Restricted Units'!D14)","v":""},{"$f":"IF('2. Assisted & Restricted Units'!E14=\"\",\"\",'2. Assisted & Restricted Units'!E14)","v":""},{"$f":"IF('2. Assisted & Restricted Units'!H14=\"\",\"\",'2. Assisted & Restricted Units'!H14)","v":""},{"$f":"_xlfn.IFS(E14=\"\",\"\",E14>BO14,$BP$6,E14>BN14,$BO$6,E14>BM14,$BN$6,E14>BL14,$BM$6,E14>BK14,$BL$6,E14>BJ14,$BK$6,E14>BI14,$BJ$6,E14>BH14,$BI$6,E14>BG14,$BH$6,E14>BF14,$BG$6,E14>BE14,$BF$6,E14>BD14,$BE$6,E14>BC14,$BD$6,E14>=0,$BC$6)","v":""},{"$f":"IF('2. Assisted & Restricted Units'!T14=\"\",\"\",'2. Assisted & Restricted Units'!T14)","v":""},{"$f":"IF('2. Assisted & Restricted Units'!I14=\"\",\"\",'2. Assisted & Restricted Units'!I14)","v":""},{"$f":"IF('2. Assisted & Restricted Units'!AP14=\"\",\"\",'2. Assisted & Restricted Units'!AP14)","v":0},{"$f":"IF('2. Assisted & Restricted Units'!AT14=\"\",\"\",'2. Assisted & Restricted Units'!AT14)","v":""},0,{"$f":"IF('2. Assisted & Restricted Units'!AV14=\"\",\"\",'2. Assisted & Restricted Units'!AV14)","v":""},{"$f":"IF('2. Assisted & Restricted Units'!L14=\"\",\"\",'2. Assisted & Restricted Units'!L14)","v":""},{"$f":"IF('2. Assisted & Restricted Units'!M14=\"\",\"\",'2. Assisted & Restricted Units'!M14)","v":""},{"$f":"IF('2. Assisted & Restricted Units'!O14=\"\",\"\",'2. Assisted & Restricted Units'!O14)","v":""},{"$f":"IF('2. Assisted & Restricted Units'!P14=\"\",\"\",'2. Assisted & Restricted Units'!P14)","v":""},{"$f":"IF('2. Assisted & Restricted Units'!Q14=\"\",\"\",'2. Assisted & Restricted Units'!Q14)","v":""},{"$f":"IF('2. Assisted & Restricted Units'!R14=\"\",\"\",'2. Assisted & Restricted Units'!R14)","v":""},{"$f":"IF(A14=\"\",\"\",'1. Checklist & Certification'!$K$1)","v":""},{"$f":"IF(A14=\"\",\"\",'1. Checklist & Certification'!$C$62)","v":""},{"$f":"IF(A14=\"\",\"\",'1. Checklist & Certification'!$K$62)","v":""},{"$f":"IF(A14=\"\",\"\",'1. Checklist & Certification'!$C$6)","v":""},{"$f":"IF(A14=\"\",\"\",'1. Checklist & Certification'!$G$4)","v":""},{"$f":"IF(A14=\"\",\"\",'1. Checklist & Certification'!$C$7)","v":""},{"$f":"IF(A14=\"\",\"\",'1. Checklist & Certification'!$C$8)","v":""},{"$f":"IF(A14=\"\",\"\",'1. Checklist & Certification'!$F$7)","v":""},{"$f":"IF(A14=\"\",\"\",'1. Checklist & Certification'!$F$8)","v":""},{"$f":"IF(A14=\"\",\"\",'1. Checklist & Certification'!$B$9)","v":""},{"$f":"IF(A14=\"\",\"\",'1. Checklist & Certification'!$F$9)","v":""},{"$f":"IF(A14=\"\",\"\",'1. Checklist & Certification'!$C$10)","v":""},{"$f":"IF(A14=\"\",\"\",'1. Checklist & Certification'!$C$11)","v":""},{"$f":"IF(A14=\"\",\"\",'1. Checklist & Certification'!$C$12)","v":""},{"$f":"IF(A14=\"\",\"\",'1. Checklist & Certification'!$B$14)","v":""},{"$f":"IF(A14=\"\",\"\",'1. Checklist & Certification'!$E$14)","v":""},{"$f":"IF(B14=\"\",\"\",'1. Checklist & Certification'!$G$14)","v":""},{"$f":"IF(A14=\"\",\"\",'MHP Family Income & Rent Limits'!$B$3)","v":""},{"$f":"IF(A14=\"\",\"\",'MHP Family Income & Rent Limits'!$J$3)","v":""},{"$f":"IF(A14=\"\",\"\",'MHP Family Income & Rent Limits'!$E$4)","v":""},{"$f":"IF(A14=\"\",\"\",'MHP Family Income & Rent Limits'!$C$7)","v":""},{"$f":"IF(A14=\"\",\"\",'MHP Family Income & Rent Limits'!$F$8)","v":""},{"$f":"IF(A14=\"\",\"\",'1. Checklist & Certification'!$G$4)","v":""},{"$f":"IF(A14=\"\",\"\",'1. Checklist & Certification'!$K$39)","v":""},{"$f":"IF(A14=\"\",\"\",'1. Checklist & Certification'!$K$43)","v":""},{"$f":"IF(A14=\"\",\"\",'1. Checklist & Certification'!$K$45)","v":""},{"$f":"IF(A14=\"\",\"\",'1. Checklist & Certification'!$K$49)","v":""},{"$f":"IF(A14=\"\",\"\",'1. Checklist & Certification'!$E$66)","v":""},{"$f":"IF(A14=\"\",\"\",'1. Checklist & Certification'!$E$67)","v":""},{"$f":"IF(A14=\"\",\"\",'1. Checklist & Certification'!$E$68)","v":""},{"$f":"IF(A14=\"\",\"\",'1. Checklist & Certification'!$G$66)","v":""},{"$f":"IF(A14=\"\",\"\",'1. Checklist & Certification'!$H$66)","v":""},{"$f":"IF(A14=\"\",\"\",'1. Checklist & Certification'!$I$66)","v":""},{"$f":"IF(A14=\"\",\"\",'1. Checklist & Certification'!$I$67)","v":""},{"$f":"IF(A14=\"\",\"\",'1. Checklist & Certification'!$I$68)","v":""},null,{"$f":"IF(C14=\"\",\"\",HLOOKUP(C14,'MHP Family Income & Rent Limits'!$E$12:$L$26,2,FALSE))","v":""},{"$f":"IF(C14=\"\",\"\",HLOOKUP(C14,'MHP Family Income & Rent Limits'!$E$12:$L$26,3,FALSE))","v":""},{"$f":"IF(C14=\"\",\"\",HLOOKUP(C14,'MHP Family Income & Rent Limits'!$E$12:$L$26,4,FALSE))","v":""},{"$f":"IF(C14=\"\",\"\",HLOOKUP(C14,'MHP Family Income & Rent Limits'!$E$12:$L$26,5,FALSE))","v":""},{"$f":"IF(C14=\"\",\"\",HLOOKUP(C14,'MHP Family Income & Rent Limits'!$E$12:$L$26,6,FALSE))","v":""},{"$f":"IF(C14=\"\",\"\",HLOOKUP(C14,'MHP Family Income & Rent Limits'!$E$12:$L$26,7,FALSE))","v":""},{"$f":"IF(C14=\"\",\"\",HLOOKUP(C14,'MHP Family Income & Rent Limits'!$E$12:$L$26,8,FALSE))","v":""},{"$f":"IF(C14=\"\",\"\",HLOOKUP(C14,'MHP Family Income & Rent Limits'!$E$12:$L$26,9,FALSE))","v":""},{"$f":"IF(C14=\"\",\"\",HLOOKUP(C14,'MHP Family Income & Rent Limits'!$E$12:$L$26,10,FALSE))","v":""},{"$f":"IF(C14=\"\",\"\",HLOOKUP(C14,'MHP Family Income & Rent Limits'!$E$12:$L$26,11,FALSE))","v":""},{"$f":"IF(C14=\"\",\"\",HLOOKUP(C14,'MHP Family Income & Rent Limits'!$E$12:$L$26,12,FALSE))","v":""},{"$f":"IF(C14=\"\",\"\",HLOOKUP(C14,'MHP Family Income & Rent Limits'!$E$12:$L$26,13,FALSE))","v":""},{"$f":"IF(C14=\"\",\"\",HLOOKUP(C14,'MHP Family Income & Rent Limits'!$E$12:$L$26,14,FALSE))","v":""},{"$f":"IF(C14=\"\",\"\",HLOOKUP(C14,'MHP Family Income & Rent Limits'!$E$12:$L$26,15,FALSE))","v":""}]
[{"$f":"IF('2. Assisted & Restricted Units'!A15=\"\",\"\",'2. Assisted & Restricted Units'!A15)","v":""},{"$f":"IF('2. Assisted & Restricted Units'!B15=\"\",\"\",'2. Assisted & Restricted Units'!B15)","v":""},{"$f":"IF('2. Assisted & Restricted Units'!D15=\"\",\"\",'2. Assisted & Restricted Units'!D15)","v":""},{"$f":"IF('2. Assisted & Restricted Units'!E15=\"\",\"\",'2. Assisted & Restricted Units'!E15)","v":""},{"$f":"IF('2. Assisted & Restricted Units'!H15=\"\",\"\",'2. Assisted & Restricted Units'!H15)","v":""},{"$f":"_xlfn.IFS(E15=\"\",\"\",E15>BO15,$BP$6,E15>BN15,$BO$6,E15>BM15,$BN$6,E15>BL15,$BM$6,E15>BK15,$BL$6,E15>BJ15,$BK$6,E15>BI15,$BJ$6,E15>BH15,$BI$6,E15>BG15,$BH$6,E15>BF15,$BG$6,E15>BE15,$BF$6,E15>BD15,$BE$6,E15>BC15,$BD$6,E15>=0,$BC$6)","v":""},{"$f":"IF('2. Assisted & Restricted Units'!T15=\"\",\"\",'2. Assisted & Restricted Units'!T15)","v":""},{"$f":"IF('2. Assisted & Restricted Units'!I15=\"\",\"\",'2. Assisted & Restricted Units'!I15)","v":""},{"$f":"IF('2. Assisted & Restricted Units'!AP15=\"\",\"\",'2. Assisted & Restricted Units'!AP15)","v":0},{"$f":"IF('2. Assisted & Restricted Units'!AT15=\"\",\"\",'2. Assisted & Restricted Units'!AT15)","v":""},0,{"$f":"IF('2. Assisted & Restricted Units'!AV15=\"\",\"\",'2. Assisted & Restricted Units'!AV15)","v":""},{"$f":"IF('2. Assisted & Restricted Units'!L15=\"\",\"\",'2. Assisted & Restricted Units'!L15)","v":""},{"$f":"IF('2. Assisted & Restricted Units'!M15=\"\",\"\",'2. Assisted & Restricted Units'!M15)","v":""},{"$f":"IF('2. Assisted & Restricted Units'!O15=\"\",\"\",'2. Assisted & Restricted Units'!O15)","v":""},{"$f":"IF('2. Assisted & Restricted Units'!P15=\"\",\"\",'2. Assisted & Restricted Units'!P15)","v":""},{"$f":"IF('2. Assisted & Restricted Units'!Q15=\"\",\"\",'2. Assisted & Restricted Units'!Q15)","v":""},{"$f":"IF('2. Assisted & Restricted Units'!R15=\"\",\"\",'2. Assisted & Restricted Units'!R15)","v":""},{"$f":"IF(A15=\"\",\"\",'1. Checklist & Certification'!$K$1)","v":""},{"$f":"IF(A15=\"\",\"\",'1. Checklist & Certification'!$C$62)","v":""},{"$f":"IF(A15=\"\",\"\",'1. Checklist & Certification'!$K$62)","v":""},{"$f":"IF(A15=\"\",\"\",'1. Checklist & Certification'!$C$6)","v":""},{"$f":"IF(A15=\"\",\"\",'1. Checklist & Certification'!$G$4)","v":""},{"$f":"IF(A15=\"\",\"\",'1. Checklist & Certification'!$C$7)","v":""},{"$f":"IF(A15=\"\",\"\",'1. Checklist & Certification'!$C$8)","v":""},{"$f":"IF(A15=\"\",\"\",'1. Checklist & Certification'!$F$7)","v":""},{"$f":"IF(A15=\"\",\"\",'1. Checklist & Certification'!$F$8)","v":""},{"$f":"IF(A15=\"\",\"\",'1. Checklist & Certification'!$B$9)","v":""},{"$f":"IF(A15=\"\",\"\",'1. Checklist & Certification'!$F$9)","v":""},{"$f":"IF(A15=\"\",\"\",'1. Checklist & Certification'!$C$10)","v":""},{"$f":"IF(A15=\"\",\"\",'1. Checklist & Certification'!$C$11)","v":""},{"$f":"IF(A15=\"\",\"\",'1. Checklist & Certification'!$C$12)","v":""},{"$f":"IF(A15=\"\",\"\",'1. Checklist & Certification'!$B$14)","v":""},{"$f":"IF(A15=\"\",\"\",'1. Checklist & Certification'!$E$14)","v":""},{"$f":"IF(B15=\"\",\"\",'1. Checklist & Certification'!$G$14)","v":""},{"$f":"IF(A15=\"\",\"\",'MHP Family Income & Rent Limits'!$B$3)","v":""},{"$f":"IF(A15=\"\",\"\",'MHP Family Income & Rent Limits'!$J$3)","v":""},{"$f":"IF(A15=\"\",\"\",'MHP Family Income & Rent Limits'!$E$4)","v":""},{"$f":"IF(A15=\"\",\"\",'MHP Family Income & Rent Limits'!$C$7)","v":""},{"$f":"IF(A15=\"\",\"\",'MHP Family Income & Rent Limits'!$F$8)","v":""},{"$f":"IF(A15=\"\",\"\",'1. Checklist & Certification'!$G$4)","v":""},{"$f":"IF(A15=\"\",\"\",'1. Checklist & Certification'!$K$39)","v":""},{"$f":"IF(A15=\"\",\"\",'1. Checklist & Certification'!$K$43)","v":""},{"$f":"IF(A15=\"\",\"\",'1. Checklist & Certification'!$K$45)","v":""},{"$f":"IF(A15=\"\",\"\",'1. Checklist & Certification'!$K$49)","v":""},{"$f":"IF(A15=\"\",\"\",'1. Checklist & Certification'!$E$66)","v":""},{"$f":"IF(A15=\"\",\"\",'1. Checklist & Certification'!$E$67)","v":""},{"$f":"IF(A15=\"\",\"\",'1. Checklist & Certification'!$E$68)","v":""},{"$f":"IF(A15=\"\",\"\",'1. Checklist & Certification'!$G$66)","v":""},{"$f":"IF(A15=\"\",\"\",'1. Checklist & Certification'!$H$66)","v":""},{"$f":"IF(A15=\"\",\"\",'1. Checklist & Certification'!$I$66)","v":""},{"$f":"IF(A15=\"\",\"\",'1. Checklist & Certification'!$I$67)","v":""},{"$f":"IF(A15=\"\",\"\",'1. Checklist & Certification'!$I$68)","v":""},null,{"$f":"IF(C15=\"\",\"\",HLOOKUP(C15,'MHP Family Income & Rent Limits'!$E$12:$L$26,2,FALSE))","v":""},{"$f":"IF(C15=\"\",\"\",HLOOKUP(C15,'MHP Family Income & Rent Limits'!$E$12:$L$26,3,FALSE))","v":""},{"$f":"IF(C15=\"\",\"\",HLOOKUP(C15,'MHP Family Income & Rent Limits'!$E$12:$L$26,4,FALSE))","v":""},{"$f":"IF(C15=\"\",\"\",HLOOKUP(C15,'MHP Family Income & Rent Limits'!$E$12:$L$26,5,FALSE))","v":""},{"$f":"IF(C15=\"\",\"\",HLOOKUP(C15,'MHP Family Income & Rent Limits'!$E$12:$L$26,6,FALSE))","v":""},{"$f":"IF(C15=\"\",\"\",HLOOKUP(C15,'MHP Family Income & Rent Limits'!$E$12:$L$26,7,FALSE))","v":""},{"$f":"IF(C15=\"\",\"\",HLOOKUP(C15,'MHP Family Income & Rent Limits'!$E$12:$L$26,8,FALSE))","v":""},{"$f":"IF(C15=\"\",\"\",HLOOKUP(C15,'MHP Family Income & Rent Limits'!$E$12:$L$26,9,FALSE))","v":""},{"$f":"IF(C15=\"\",\"\",HLOOKUP(C15,'MHP Family Income & Rent Limits'!$E$12:$L$26,10,FALSE))","v":""},{"$f":"IF(C15=\"\",\"\",HLOOKUP(C15,'MHP Family Income & Rent Limits'!$E$12:$L$26,11,FALSE))","v":""},{"$f":"IF(C15=\"\",\"\",HLOOKUP(C15,'MHP Family Income & Rent Limits'!$E$12:$L$26,12,FALSE))","v":""},{"$f":"IF(C15=\"\",\"\",HLOOKUP(C15,'MHP Family Income & Rent Limits'!$E$12:$L$26,13,FALSE))","v":""},{"$f":"IF(C15=\"\",\"\",HLOOKUP(C15,'MHP Family Income & Rent Limits'!$E$12:$L$26,14,FALSE))","v":""},{"$f":"IF(C15=\"\",\"\",HLOOKUP(C15,'MHP Family Income & Rent Limits'!$E$12:$L$26,15,FALSE))","v":""}]
[{"$f":"IF('2. Assisted & Restricted Units'!A16=\"\",\"\",'2. Assisted & Restricted Units'!A16)","v":""},{"$f":"IF('2. Assisted & Restricted Units'!B16=\"\",\"\",'2. Assisted & Restricted Units'!B16)","v":""},{"$f":"IF('2. Assisted & Restricted Units'!D16=\"\",\"\",'2. Assisted & Restricted Units'!D16)","v":""},{"$f":"IF('2. Assisted & Restricted Units'!E16=\"\",\"\",'2. Assisted & Restricted Units'!E16)","v":""},{"$f":"IF('2. Assisted & Restricted Units'!H16=\"\",\"\",'2. Assisted & Restricted Units'!H16)","v":""},{"$f":"_xlfn.IFS(E16=\"\",\"\",E16>BO16,$BP$6,E16>BN16,$BO$6,E16>BM16,$BN$6,E16>BL16,$BM$6,E16>BK16,$BL$6,E16>BJ16,$BK$6,E16>BI16,$BJ$6,E16>BH16,$BI$6,E16>BG16,$BH$6,E16>BF16,$BG$6,E16>BE16,$BF$6,E16>BD16,$BE$6,E16>BC16,$BD$6,E16>=0,$BC$6)","v":""},{"$f":"IF('2. Assisted & Restricted Units'!T16=\"\",\"\",'2. Assisted & Restricted Units'!T16)","v":""},{"$f":"IF('2. Assisted & Restricted Units'!I16=\"\",\"\",'2. Assisted & Restricted Units'!I16)","v":""},{"$f":"IF('2. Assisted & Restricted Units'!AP16=\"\",\"\",'2. Assisted & Restricted Units'!AP16)","v":0},{"$f":"IF('2. Assisted & Restricted Units'!AT16=\"\",\"\",'2. Assisted & Restricted Units'!AT16)","v":""},0,{"$f":"IF('2. Assisted & Restricted Units'!AV16=\"\",\"\",'2. Assisted & Restricted Units'!AV16)","v":""},{"$f":"IF('2. Assisted & Restricted Units'!L16=\"\",\"\",'2. Assisted & Restricted Units'!L16)","v":""},{"$f":"IF('2. Assisted & Restricted Units'!M16=\"\",\"\",'2. Assisted & Restricted Units'!M16)","v":""},{"$f":"IF('2. Assisted & Restricted Units'!O16=\"\",\"\",'2. Assisted & Restricted Units'!O16)","v":""},{"$f":"IF('2. Assisted & Restricted Units'!P16=\"\",\"\",'2. Assisted & Restricted Units'!P16)","v":""},{"$f":"IF('2. Assisted & Restricted Units'!Q16=\"\",\"\",'2. Assisted & Restricted Units'!Q16)","v":""},{"$f":"IF('2. Assisted & Restricted Units'!R16=\"\",\"\",'2. Assisted & Restricted Units'!R16)","v":""},{"$f":"IF(A16=\"\",\"\",'1. Checklist & Certification'!$K$1)","v":""},{"$f":"IF(A16=\"\",\"\",'1. Checklist & Certification'!$C$62)","v":""},{"$f":"IF(A16=\"\",\"\",'1. Checklist & Certification'!$K$62)","v":""},{"$f":"IF(A16=\"\",\"\",'1. Checklist & Certification'!$C$6)","v":""},{"$f":"IF(A16=\"\",\"\",'1. Checklist & Certification'!$G$4)","v":""},{"$f":"IF(A16=\"\",\"\",'1. Checklist & Certification'!$C$7)","v":""},{"$f":"IF(A16=\"\",\"\",'1. Checklist & Certification'!$C$8)","v":""},{"$f":"IF(A16=\"\",\"\",'1. Checklist & Certification'!$F$7)","v":""},{"$f":"IF(A16=\"\",\"\",'1. Checklist & Certification'!$F$8)","v":""},{"$f":"IF(A16=\"\",\"\",'1. Checklist & Certification'!$B$9)","v":""},{"$f":"IF(A16=\"\",\"\",'1. Checklist & Certification'!$F$9)","v":""},{"$f":"IF(A16=\"\",\"\",'1. Checklist & Certification'!$C$10)","v":""},{"$f":"IF(A16=\"\",\"\",'1. Checklist & Certification'!$C$11)","v":""},{"$f":"IF(A16=\"\",\"\",'1. Checklist & Certification'!$C$12)","v":""},{"$f":"IF(A16=\"\",\"\",'1. Checklist & Certification'!$B$14)","v":""},{"$f":"IF(A16=\"\",\"\",'1. Checklist & Certification'!$E$14)","v":""},{"$f":"IF(B16=\"\",\"\",'1. Checklist & Certification'!$G$14)","v":""},{"$f":"IF(A16=\"\",\"\",'MHP Family Income & Rent Limits'!$B$3)","v":""},{"$f":"IF(A16=\"\",\"\",'MHP Family Income & Rent Limits'!$J$3)","v":""},{"$f":"IF(A16=\"\",\"\",'MHP Family Income & Rent Limits'!$E$4)","v":""},{"$f":"IF(A16=\"\",\"\",'MHP Family Income & Rent Limits'!$C$7)","v":""},{"$f":"IF(A16=\"\",\"\",'MHP Family Income & Rent Limits'!$F$8)","v":""},{"$f":"IF(A16=\"\",\"\",'1. Checklist & Certification'!$G$4)","v":""},{"$f":"IF(A16=\"\",\"\",'1. Checklist & Certification'!$K$39)","v":""},{"$f":"IF(A16=\"\",\"\",'1. Checklist & Certification'!$K$43)","v":""},{"$f":"IF(A16=\"\",\"\",'1. Checklist & Certification'!$K$45)","v":""},{"$f":"IF(A16=\"\",\"\",'1. Checklist & Certification'!$K$49)","v":""},{"$f":"IF(A16=\"\",\"\",'1. Checklist & Certification'!$E$66)","v":""},{"$f":"IF(A16=\"\",\"\",'1. Checklist & Certification'!$E$67)","v":""},{"$f":"IF(A16=\"\",\"\",'1. Checklist & Certification'!$E$68)","v":""},{"$f":"IF(A16=\"\",\"\",'1. Checklist & Certification'!$G$66)","v":""},{"$f":"IF(A16=\"\",\"\",'1. Checklist & Certification'!$H$66)","v":""},{"$f":"IF(A16=\"\",\"\",'1. Checklist & Certification'!$I$66)","v":""},{"$f":"IF(A16=\"\",\"\",'1. Checklist & Certification'!$I$67)","v":""},{"$f":"IF(A16=\"\",\"\",'1. Checklist & Certification'!$I$68)","v":""},null,{"$f":"IF(C16=\"\",\"\",HLOOKUP(C16,'MHP Family Income & Rent Limits'!$E$12:$L$26,2,FALSE))","v":""},{"$f":"IF(C16=\"\",\"\",HLOOKUP(C16,'MHP Family Income & Rent Limits'!$E$12:$L$26,3,FALSE))","v":""},{"$f":"IF(C16=\"\",\"\",HLOOKUP(C16,'MHP Family Income & Rent Limits'!$E$12:$L$26,4,FALSE))","v":""},{"$f":"IF(C16=\"\",\"\",HLOOKUP(C16,'MHP Family Income & Rent Limits'!$E$12:$L$26,5,FALSE))","v":""},{"$f":"IF(C16=\"\",\"\",HLOOKUP(C16,'MHP Family Income & Rent Limits'!$E$12:$L$26,6,FALSE))","v":""},{"$f":"IF(C16=\"\",\"\",HLOOKUP(C16,'MHP Family Income & Rent Limits'!$E$12:$L$26,7,FALSE))","v":""},{"$f":"IF(C16=\"\",\"\",HLOOKUP(C16,'MHP Family Income & Rent Limits'!$E$12:$L$26,8,FALSE))","v":""},{"$f":"IF(C16=\"\",\"\",HLOOKUP(C16,'MHP Family Income & Rent Limits'!$E$12:$L$26,9,FALSE))","v":""},{"$f":"IF(C16=\"\",\"\",HLOOKUP(C16,'MHP Family Income & Rent Limits'!$E$12:$L$26,10,FALSE))","v":""},{"$f":"IF(C16=\"\",\"\",HLOOKUP(C16,'MHP Family Income & Rent Limits'!$E$12:$L$26,11,FALSE))","v":""},{"$f":"IF(C16=\"\",\"\",HLOOKUP(C16,'MHP Family Income & Rent Limits'!$E$12:$L$26,12,FALSE))","v":""},{"$f":"IF(C16=\"\",\"\",HLOOKUP(C16,'MHP Family Income & Rent Limits'!$E$12:$L$26,13,FALSE))","v":""},{"$f":"IF(C16=\"\",\"\",HLOOKUP(C16,'MHP Family Income & Rent Limits'!$E$12:$L$26,14,FALSE))","v":""},{"$f":"IF(C16=\"\",\"\",HLOOKUP(C16,'MHP Family Income & Rent Limits'!$E$12:$L$26,15,FALSE))","v":""}]
[{"$f":"IF('2. Assisted & Restricted Units'!A17=\"\",\"\",'2. Assisted & Restricted Units'!A17)","v":""},{"$f":"IF('2. Assisted & Restricted Units'!B17=\"\",\"\",'2. Assisted & Restricted Units'!B17)","v":""},{"$f":"IF('2. Assisted & Restricted Units'!D17=\"\",\"\",'2. Assisted & Restricted Units'!D17)","v":""},{"$f":"IF('2. Assisted & Restricted Units'!E17=\"\",\"\",'2. Assisted & Restricted Units'!E17)","v":""},{"$f":"IF('2. Assisted & Restricted Units'!H17=\"\",\"\",'2. Assisted & Restricted Units'!H17)","v":""},{"$f":"_xlfn.IFS(E17=\"\",\"\",E17>BO17,$BP$6,E17>BN17,$BO$6,E17>BM17,$BN$6,E17>BL17,$BM$6,E17>BK17,$BL$6,E17>BJ17,$BK$6,E17>BI17,$BJ$6,E17>BH17,$BI$6,E17>BG17,$BH$6,E17>BF17,$BG$6,E17>BE17,$BF$6,E17>BD17,$BE$6,E17>BC17,$BD$6,E17>=0,$BC$6)","v":""},{"$f":"IF('2. Assisted & Restricted Units'!T17=\"\",\"\",'2. Assisted & Restricted Units'!T17)","v":""},{"$f":"IF('2. Assisted & Restricted Units'!I17=\"\",\"\",'2. Assisted & Restricted Units'!I17)","v":""},{"$f":"IF('2. Assisted & Restricted Units'!AP17=\"\",\"\",'2. Assisted & Restricted Units'!AP17)","v":0},{"$f":"IF('2. Assisted & Restricted Units'!AT17=\"\",\"\",'2. Assisted & Restricted Units'!AT17)","v":""},0,{"$f":"IF('2. Assisted & Restricted Units'!AV17=\"\",\"\",'2. Assisted & Restricted Units'!AV17)","v":""},{"$f":"IF('2. Assisted & Restricted Units'!L17=\"\",\"\",'2. Assisted & Restricted Units'!L17)","v":""},{"$f":"IF('2. Assisted & Restricted Units'!M17=\"\",\"\",'2. Assisted & Restricted Units'!M17)","v":""},{"$f":"IF('2. Assisted & Restricted Units'!O17=\"\",\"\",'2. Assisted & Restricted Units'!O17)","v":""},{"$f":"IF('2. Assisted & Restricted Units'!P17=\"\",\"\",'2. Assisted & Restricted Units'!P17)","v":""},{"$f":"IF('2. Assisted & Restricted Units'!Q17=\"\",\"\",'2. Assisted & Restricted Units'!Q17)","v":""},{"$f":"IF('2. Assisted & Restricted Units'!R17=\"\",\"\",'2. Assisted & Restricted Units'!R17)","v":""},{"$f":"IF(A17=\"\",\"\",'1. Checklist & Certification'!$K$1)","v":""},{"$f":"IF(A17=\"\",\"\",'1. Checklist & Certification'!$C$62)","v":""},{"$f":"IF(A17=\"\",\"\",'1. Checklist & Certification'!$K$62)","v":""},{"$f":"IF(A17=\"\",\"\",'1. Checklist & Certification'!$C$6)","v":""},{"$f":"IF(A17=\"\",\"\",'1. Checklist & Certification'!$G$4)","v":""},{"$f":"IF(A17=\"\",\"\",'1. Checklist & Certification'!$C$7)","v":""},{"$f":"IF(A17=\"\",\"\",'1. Checklist & Certification'!$C$8)","v":""},{"$f":"IF(A17=\"\",\"\",'1. Checklist & Certification'!$F$7)","v":""},{"$f":"IF(A17=\"\",\"\",'1. Checklist & Certification'!$F$8)","v":""},{"$f":"IF(A17=\"\",\"\",'1. Checklist & Certification'!$B$9)","v":""},{"$f":"IF(A17=\"\",\"\",'1. Checklist & Certification'!$F$9)","v":""},{"$f":"IF(A17=\"\",\"\",'1. Checklist & Certification'!$C$10)","v":""},{"$f":"IF(A17=\"\",\"\",'1. Checklist & Certification'!$C$11)","v":""},{"$f":"IF(A17=\"\",\"\",'1. Checklist & Certification'!$C$12)","v":""},{"$f":"IF(A17=\"\",\"\",'1. Checklist & Certification'!$B$14)","v":""},{"$f":"IF(A17=\"\",\"\",'1. Checklist & Certification'!$E$14)","v":""},{"$f":"IF(B17=\"\",\"\",'1. Checklist & Certification'!$G$14)","v":""},{"$f":"IF(A17=\"\",\"\",'MHP Family Income & Rent Limits'!$B$3)","v":""},{"$f":"IF(A17=\"\",\"\",'MHP Family Income & Rent Limits'!$J$3)","v":""},{"$f":"IF(A17=\"\",\"\",'MHP Family Income & Rent Limits'!$E$4)","v":""},{"$f":"IF(A17=\"\",\"\",'MHP Family Income & Rent Limits'!$C$7)","v":""},{"$f":"IF(A17=\"\",\"\",'MHP Family Income & Rent Limits'!$F$8)","v":""},{"$f":"IF(A17=\"\",\"\",'1. Checklist & Certification'!$G$4)","v":""},{"$f":"IF(A17=\"\",\"\",'1. Checklist & Certification'!$K$39)","v":""},{"$f":"IF(A17=\"\",\"\",'1. Checklist & Certification'!$K$43)","v":""},{"$f":"IF(A17=\"\",\"\",'1. Checklist & Certification'!$K$45)","v":""},{"$f":"IF(A17=\"\",\"\",'1. Checklist & Certification'!$K$49)","v":""},{"$f":"IF(A17=\"\",\"\",'1. Checklist & Certification'!$E$66)","v":""},{"$f":"IF(A17=\"\",\"\",'1. Checklist & Certification'!$E$67)","v":""},{"$f":"IF(A17=\"\",\"\",'1. Checklist & Certification'!$E$68)","v":""},{"$f":"IF(A17=\"\",\"\",'1. Checklist & Certification'!$G$66)","v":""},{"$f":"IF(A17=\"\",\"\",'1. Checklist & Certification'!$H$66)","v":""},{"$f":"IF(A17=\"\",\"\",'1. Checklist & Certification'!$I$66)","v":""},{"$f":"IF(A17=\"\",\"\",'1. Checklist & Certification'!$I$67)","v":""},{"$f":"IF(A17=\"\",\"\",'1. Checklist & Certification'!$I$68)","v":""},null,{"$f":"IF(C17=\"\",\"\",HLOOKUP(C17,'MHP Family Income & Rent Limits'!$E$12:$L$26,2,FALSE))","v":""},{"$f":"IF(C17=\"\",\"\",HLOOKUP(C17,'MHP Family Income & Rent Limits'!$E$12:$L$26,3,FALSE))","v":""},{"$f":"IF(C17=\"\",\"\",HLOOKUP(C17,'MHP Family Income & Rent Limits'!$E$12:$L$26,4,FALSE))","v":""},{"$f":"IF(C17=\"\",\"\",HLOOKUP(C17,'MHP Family Income & Rent Limits'!$E$12:$L$26,5,FALSE))","v":""},{"$f":"IF(C17=\"\",\"\",HLOOKUP(C17,'MHP Family Income & Rent Limits'!$E$12:$L$26,6,FALSE))","v":""},{"$f":"IF(C17=\"\",\"\",HLOOKUP(C17,'MHP Family Income & Rent Limits'!$E$12:$L$26,7,FALSE))","v":""},{"$f":"IF(C17=\"\",\"\",HLOOKUP(C17,'MHP Family Income & Rent Limits'!$E$12:$L$26,8,FALSE))","v":""},{"$f":"IF(C17=\"\",\"\",HLOOKUP(C17,'MHP Family Income & Rent Limits'!$E$12:$L$26,9,FALSE))","v":""},{"$f":"IF(C17=\"\",\"\",HLOOKUP(C17,'MHP Family Income & Rent Limits'!$E$12:$L$26,10,FALSE))","v":""},{"$f":"IF(C17=\"\",\"\",HLOOKUP(C17,'MHP Family Income & Rent Limits'!$E$12:$L$26,11,FALSE))","v":""},{"$f":"IF(C17=\"\",\"\",HLOOKUP(C17,'MHP Family Income & Rent Limits'!$E$12:$L$26,12,FALSE))","v":""},{"$f":"IF(C17=\"\",\"\",HLOOKUP(C17,'MHP Family Income & Rent Limits'!$E$12:$L$26,13,FALSE))","v":""},{"$f":"IF(C17=\"\",\"\",HLOOKUP(C17,'MHP Family Income & Rent Limits'!$E$12:$L$26,14,FALSE))","v":""},{"$f":"IF(C17=\"\",\"\",HLOOKUP(C17,'MHP Family Income & Rent Limits'!$E$12:$L$26,15,FALSE))","v":""}]
[{"$f":"IF('2. Assisted & Restricted Units'!A18=\"\",\"\",'2. Assisted & Restricted Units'!A18)","v":""},{"$f":"IF('2. Assisted & Restricted Units'!B18=\"\",\"\",'2. Assisted & Restricted Units'!B18)","v":""},{"$f":"IF('2. Assisted & Restricted Units'!D18=\"\",\"\",'2. Assisted & Restricted Units'!D18)","v":""},{"$f":"IF('2. Assisted & Restricted Units'!E18=\"\",\"\",'2. Assisted & Restricted Units'!E18)","v":""},{"$f":"IF('2. Assisted & Restricted Units'!H18=\"\",\"\",'2. Assisted & Restricted Units'!H18)","v":""},{"$f":"_xlfn.IFS(E18=\"\",\"\",E18>BO18,$BP$6,E18>BN18,$BO$6,E18>BM18,$BN$6,E18>BL18,$BM$6,E18>BK18,$BL$6,E18>BJ18,$BK$6,E18>BI18,$BJ$6,E18>BH18,$BI$6,E18>BG18,$BH$6,E18>BF18,$BG$6,E18>BE18,$BF$6,E18>BD18,$BE$6,E18>BC18,$BD$6,E18>=0,$BC$6)","v":""},{"$f":"IF('2. Assisted & Restricted Units'!T18=\"\",\"\",'2. Assisted & Restricted Units'!T18)","v":""},{"$f":"IF('2. Assisted & Restricted Units'!I18=\"\",\"\",'2. Assisted & Restricted Units'!I18)","v":""},{"$f":"IF('2. Assisted & Restricted Units'!AP18=\"\",\"\",'2. Assisted & Restricted Units'!AP18)","v":0},{"$f":"IF('2. Assisted & Restricted Units'!AT18=\"\",\"\",'2. Assisted & Restricted Units'!AT18)","v":""},0,{"$f":"IF('2. Assisted & Restricted Units'!AV18=\"\",\"\",'2. Assisted & Restricted Units'!AV18)","v":""},{"$f":"IF('2. Assisted & Restricted Units'!L18=\"\",\"\",'2. Assisted & Restricted Units'!L18)","v":""},{"$f":"IF('2. Assisted & Restricted Units'!M18=\"\",\"\",'2. Assisted & Restricted Units'!M18)","v":""},{"$f":"IF('2. Assisted & Restricted Units'!O18=\"\",\"\",'2. Assisted & Restricted Units'!O18)","v":""},{"$f":"IF('2. Assisted & Restricted Units'!P18=\"\",\"\",'2. Assisted & Restricted Units'!P18)","v":""},{"$f":"IF('2. Assisted & Restricted Units'!Q18=\"\",\"\",'2. Assisted & Restricted Units'!Q18)","v":""},{"$f":"IF('2. Assisted & Restricted Units'!R18=\"\",\"\",'2. Assisted & Restricted Units'!R18)","v":""},{"$f":"IF(A18=\"\",\"\",'1. Checklist & Certification'!$K$1)","v":""},{"$f":"IF(A18=\"\",\"\",'1. Checklist & Certification'!$C$62)","v":""},{"$f":"IF(A18=\"\",\"\",'1. Checklist & Certification'!$K$62)","v":""},{"$f":"IF(A18=\"\",\"\",'1. Checklist & Certification'!$C$6)","v":""},{"$f":"IF(A18=\"\",\"\",'1. Checklist & Certification'!$G$4)","v":""},{"$f":"IF(A18=\"\",\"\",'1. Checklist & Certification'!$C$7)","v":""},{"$f":"IF(A18=\"\",\"\",'1. Checklist & Certification'!$C$8)","v":""},{"$f":"IF(A18=\"\",\"\",'1. Checklist & Certification'!$F$7)","v":""},{"$f":"IF(A18=\"\",\"\",'1. Checklist & Certification'!$F$8)","v":""},{"$f":"IF(A18=\"\",\"\",'1. Checklist & Certification'!$B$9)","v":""},{"$f":"IF(A18=\"\",\"\",'1. Checklist & Certification'!$F$9)","v":""},{"$f":"IF(A18=\"\",\"\",'1. Checklist & Certification'!$C$10)","v":""},{"$f":"IF(A18=\"\",\"\",'1. Checklist & Certification'!$C$11)","v":""},{"$f":"IF(A18=\"\",\"\",'1. Checklist & Certification'!$C$12)","v":""},{"$f":"IF(A18=\"\",\"\",'1. Checklist & Certification'!$B$14)","v":""},{"$f":"IF(A18=\"\",\"\",'1. Checklist & Certification'!$E$14)","v":""},{"$f":"IF(B18=\"\",\"\",'1. Checklist & Certification'!$G$14)","v":""},{"$f":"IF(A18=\"\",\"\",'MHP Family Income & Rent Limits'!$B$3)","v":""},{"$f":"IF(A18=\"\",\"\",'MHP Family Income & Rent Limits'!$J$3)","v":""},{"$f":"IF(A18=\"\",\"\",'MHP Family Income & Rent Limits'!$E$4)","v":""},{"$f":"IF(A18=\"\",\"\",'MHP Family Income & Rent Limits'!$C$7)","v":""},{"$f":"IF(A18=\"\",\"\",'MHP Family Income & Rent Limits'!$F$8)","v":""},{"$f":"IF(A18=\"\",\"\",'1. Checklist & Certification'!$G$4)","v":""},{"$f":"IF(A18=\"\",\"\",'1. Checklist & Certification'!$K$39)","v":""},{"$f":"IF(A18=\"\",\"\",'1. Checklist & Certification'!$K$43)","v":""},{"$f":"IF(A18=\"\",\"\",'1. Checklist & Certification'!$K$45)","v":""},{"$f":"IF(A18=\"\",\"\",'1. Checklist & Certification'!$K$49)","v":""},{"$f":"IF(A18=\"\",\"\",'1. Checklist & Certification'!$E$66)","v":""},{"$f":"IF(A18=\"\",\"\",'1. Checklist & Certification'!$E$67)","v":""},{"$f":"IF(A18=\"\",\"\",'1. Checklist & Certification'!$E$68)","v":""},{"$f":"IF(A18=\"\",\"\",'1. Checklist & Certification'!$G$66)","v":""},{"$f":"IF(A18=\"\",\"\",'1. Checklist & Certification'!$H$66)","v":""},{"$f":"IF(A18=\"\",\"\",'1. Checklist & Certification'!$I$66)","v":""},{"$f":"IF(A18=\"\",\"\",'1. Checklist & Certification'!$I$67)","v":""},{"$f":"IF(A18=\"\",\"\",'1. Checklist & Certification'!$I$68)","v":""},null,{"$f":"IF(C18=\"\",\"\",HLOOKUP(C18,'MHP Family Income & Rent Limits'!$E$12:$L$26,2,FALSE))","v":""},{"$f":"IF(C18=\"\",\"\",HLOOKUP(C18,'MHP Family Income & Rent Limits'!$E$12:$L$26,3,FALSE))","v":""},{"$f":"IF(C18=\"\",\"\",HLOOKUP(C18,'MHP Family Income & Rent Limits'!$E$12:$L$26,4,FALSE))","v":""},{"$f":"IF(C18=\"\",\"\",HLOOKUP(C18,'MHP Family Income & Rent Limits'!$E$12:$L$26,5,FALSE))","v":""},{"$f":"IF(C18=\"\",\"\",HLOOKUP(C18,'MHP Family Income & Rent Limits'!$E$12:$L$26,6,FALSE))","v":""},{"$f":"IF(C18=\"\",\"\",HLOOKUP(C18,'MHP Family Income & Rent Limits'!$E$12:$L$26,7,FALSE))","v":""},{"$f":"IF(C18=\"\",\"\",HLOOKUP(C18,'MHP Family Income & Rent Limits'!$E$12:$L$26,8,FALSE))","v":""},{"$f":"IF(C18=\"\",\"\",HLOOKUP(C18,'MHP Family Income & Rent Limits'!$E$12:$L$26,9,FALSE))","v":""},{"$f":"IF(C18=\"\",\"\",HLOOKUP(C18,'MHP Family Income & Rent Limits'!$E$12:$L$26,10,FALSE))","v":""},{"$f":"IF(C18=\"\",\"\",HLOOKUP(C18,'MHP Family Income & Rent Limits'!$E$12:$L$26,11,FALSE))","v":""},{"$f":"IF(C18=\"\",\"\",HLOOKUP(C18,'MHP Family Income & Rent Limits'!$E$12:$L$26,12,FALSE))","v":""},{"$f":"IF(C18=\"\",\"\",HLOOKUP(C18,'MHP Family Income & Rent Limits'!$E$12:$L$26,13,FALSE))","v":""},{"$f":"IF(C18=\"\",\"\",HLOOKUP(C18,'MHP Family Income & Rent Limits'!$E$12:$L$26,14,FALSE))","v":""},{"$f":"IF(C18=\"\",\"\",HLOOKUP(C18,'MHP Family Income & Rent Limits'!$E$12:$L$26,15,FALSE))","v":""}]
[{"$f":"IF('2. Assisted & Restricted Units'!A19=\"\",\"\",'2. Assisted & Restricted Units'!A19)","v":""},{"$f":"IF('2. Assisted & Restricted Units'!B19=\"\",\"\",'2. Assisted & Restricted Units'!B19)","v":""},{"$f":"IF('2. Assisted & Restricted Units'!D19=\"\",\"\",'2. Assisted & Restricted Units'!D19)","v":""},{"$f":"IF('2. Assisted & Restricted Units'!E19=\"\",\"\",'2. Assisted & Restricted Units'!E19)","v":""},{"$f":"IF('2. Assisted & Restricted Units'!H19=\"\",\"\",'2. Assisted & Restricted Units'!H19)","v":""},{"$f":"_xlfn.IFS(E19=\"\",\"\",E19>BO19,$BP$6,E19>BN19,$BO$6,E19>BM19,$BN$6,E19>BL19,$BM$6,E19>BK19,$BL$6,E19>BJ19,$BK$6,E19>BI19,$BJ$6,E19>BH19,$BI$6,E19>BG19,$BH$6,E19>BF19,$BG$6,E19>BE19,$BF$6,E19>BD19,$BE$6,E19>BC19,$BD$6,E19>=0,$BC$6)","v":""},{"$f":"IF('2. Assisted & Restricted Units'!T19=\"\",\"\",'2. Assisted & Restricted Units'!T19)","v":""},{"$f":"IF('2. Assisted & Restricted Units'!I19=\"\",\"\",'2. Assisted & Restricted Units'!I19)","v":""},{"$f":"IF('2. Assisted & Restricted Units'!AP19=\"\",\"\",'2. Assisted & Restricted Units'!AP19)","v":0},{"$f":"IF('2. Assisted & Restricted Units'!AT19=\"\",\"\",'2. Assisted & Restricted Units'!AT19)","v":""},0,{"$f":"IF('2. Assisted & Restricted Units'!AV19=\"\",\"\",'2. Assisted & Restricted Units'!AV19)","v":""},{"$f":"IF('2. Assisted & Restricted Units'!L19=\"\",\"\",'2. Assisted & Restricted Units'!L19)","v":""},{"$f":"IF('2. Assisted & Restricted Units'!M19=\"\",\"\",'2. Assisted & Restricted Units'!M19)","v":""},{"$f":"IF('2. Assisted & Restricted Units'!O19=\"\",\"\",'2. Assisted & Restricted Units'!O19)","v":""},{"$f":"IF('2. Assisted & Restricted Units'!P19=\"\",\"\",'2. Assisted & Restricted Units'!P19)","v":""},{"$f":"IF('2. Assisted & Restricted Units'!Q19=\"\",\"\",'2. Assisted & Restricted Units'!Q19)","v":""},{"$f":"IF('2. Assisted & Restricted Units'!R19=\"\",\"\",'2. Assisted & Restricted Units'!R19)","v":""},{"$f":"IF(A19=\"\",\"\",'1. Checklist & Certification'!$K$1)","v":""},{"$f":"IF(A19=\"\",\"\",'1. Checklist & Certification'!$C$62)","v":""},{"$f":"IF(A19=\"\",\"\",'1. Checklist & Certification'!$K$62)","v":""},{"$f":"IF(A19=\"\",\"\",'1. Checklist & Certification'!$C$6)","v":""},{"$f":"IF(A19=\"\",\"\",'1. Checklist & Certification'!$G$4)","v":""},{"$f":"IF(A19=\"\",\"\",'1. Checklist & Certification'!$C$7)","v":""},{"$f":"IF(A19=\"\",\"\",'1. Checklist & Certification'!$C$8)","v":""},{"$f":"IF(A19=\"\",\"\",'1. Checklist & Certification'!$F$7)","v":""},{"$f":"IF(A19=\"\",\"\",'1. Checklist & Certification'!$F$8)","v":""},{"$f":"IF(A19=\"\",\"\",'1. Checklist & Certification'!$B$9)","v":""},{"$f":"IF(A19=\"\",\"\",'1. Checklist & Certification'!$F$9)","v":""},{"$f":"IF(A19=\"\",\"\",'1. Checklist & Certification'!$C$10)","v":""},{"$f":"IF(A19=\"\",\"\",'1. Checklist & Certification'!$C$11)","v":""},{"$f":"IF(A19=\"\",\"\",'1. Checklist & Certification'!$C$12)","v":""},{"$f":"IF(A19=\"\",\"\",'1. Checklist & Certification'!$B$14)","v":""},{"$f":"IF(A19=\"\",\"\",'1. Checklist & Certification'!$E$14)","v":""},{"$f":"IF(B19=\"\",\"\",'1. Checklist & Certification'!$G$14)","v":""},{"$f":"IF(A19=\"\",\"\",'MHP Family Income & Rent Limits'!$B$3)","v":""},{"$f":"IF(A19=\"\",\"\",'MHP Family Income & Rent Limits'!$J$3)","v":""},{"$f":"IF(A19=\"\",\"\",'MHP Family Income & Rent Limits'!$E$4)","v":""},{"$f":"IF(A19=\"\",\"\",'MHP Family Income & Rent Limits'!$C$7)","v":""},{"$f":"IF(A19=\"\",\"\",'MHP Family Income & Rent Limits'!$F$8)","v":""},{"$f":"IF(A19=\"\",\"\",'1. Checklist & Certification'!$G$4)","v":""},{"$f":"IF(A19=\"\",\"\",'1. Checklist & Certification'!$K$39)","v":""},{"$f":"IF(A19=\"\",\"\",'1. Checklist & Certification'!$K$43)","v":""},{"$f":"IF(A19=\"\",\"\",'1. Checklist & Certification'!$K$45)","v":""},{"$f":"IF(A19=\"\",\"\",'1. Checklist & Certification'!$K$49)","v":""},{"$f":"IF(A19=\"\",\"\",'1. Checklist & Certification'!$E$66)","v":""},{"$f":"IF(A19=\"\",\"\",'1. Checklist & Certification'!$E$67)","v":""},{"$f":"IF(A19=\"\",\"\",'1. Checklist & Certification'!$E$68)","v":""},{"$f":"IF(A19=\"\",\"\",'1. Checklist & Certification'!$G$66)","v":""},{"$f":"IF(A19=\"\",\"\",'1. Checklist & Certification'!$H$66)","v":""},{"$f":"IF(A19=\"\",\"\",'1. Checklist & Certification'!$I$66)","v":""},{"$f":"IF(A19=\"\",\"\",'1. Checklist & Certification'!$I$67)","v":""},{"$f":"IF(A19=\"\",\"\",'1. Checklist & Certification'!$I$68)","v":""},null,{"$f":"IF(C19=\"\",\"\",HLOOKUP(C19,'MHP Family Income & Rent Limits'!$E$12:$L$26,2,FALSE))","v":""},{"$f":"IF(C19=\"\",\"\",HLOOKUP(C19,'MHP Family Income & Rent Limits'!$E$12:$L$26,3,FALSE))","v":""},{"$f":"IF(C19=\"\",\"\",HLOOKUP(C19,'MHP Family Income & Rent Limits'!$E$12:$L$26,4,FALSE))","v":""},{"$f":"IF(C19=\"\",\"\",HLOOKUP(C19,'MHP Family Income & Rent Limits'!$E$12:$L$26,5,FALSE))","v":""},{"$f":"IF(C19=\"\",\"\",HLOOKUP(C19,'MHP Family Income & Rent Limits'!$E$12:$L$26,6,FALSE))","v":""},{"$f":"IF(C19=\"\",\"\",HLOOKUP(C19,'MHP Family Income & Rent Limits'!$E$12:$L$26,7,FALSE))","v":""},{"$f":"IF(C19=\"\",\"\",HLOOKUP(C19,'MHP Family Income & Rent Limits'!$E$12:$L$26,8,FALSE))","v":""},{"$f":"IF(C19=\"\",\"\",HLOOKUP(C19,'MHP Family Income & Rent Limits'!$E$12:$L$26,9,FALSE))","v":""},{"$f":"IF(C19=\"\",\"\",HLOOKUP(C19,'MHP Family Income & Rent Limits'!$E$12:$L$26,10,FALSE))","v":""},{"$f":"IF(C19=\"\",\"\",HLOOKUP(C19,'MHP Family Income & Rent Limits'!$E$12:$L$26,11,FALSE))","v":""},{"$f":"IF(C19=\"\",\"\",HLOOKUP(C19,'MHP Family Income & Rent Limits'!$E$12:$L$26,12,FALSE))","v":""},{"$f":"IF(C19=\"\",\"\",HLOOKUP(C19,'MHP Family Income & Rent Limits'!$E$12:$L$26,13,FALSE))","v":""},{"$f":"IF(C19=\"\",\"\",HLOOKUP(C19,'MHP Family Income & Rent Limits'!$E$12:$L$26,14,FALSE))","v":""},{"$f":"IF(C19=\"\",\"\",HLOOKUP(C19,'MHP Family Income & Rent Limits'!$E$12:$L$26,15,FALSE))","v":""}]
[{"$f":"IF('2. Assisted & Restricted Units'!A20=\"\",\"\",'2. Assisted & Restricted Units'!A20)","v":""},{"$f":"IF('2. Assisted & Restricted Units'!B20=\"\",\"\",'2. Assisted & Restricted Units'!B20)","v":""},{"$f":"IF('2. Assisted & Restricted Units'!D20=\"\",\"\",'2. Assisted & Restricted Units'!D20)","v":""},{"$f":"IF('2. Assisted & Restricted Units'!E20=\"\",\"\",'2. Assisted & Restricted Units'!E20)","v":""},{"$f":"IF('2. Assisted & Restricted Units'!H20=\"\",\"\",'2. Assisted & Restricted Units'!H20)","v":""},{"$f":"_xlfn.IFS(E20=\"\",\"\",E20>BO20,$BP$6,E20>BN20,$BO$6,E20>BM20,$BN$6,E20>BL20,$BM$6,E20>BK20,$BL$6,E20>BJ20,$BK$6,E20>BI20,$BJ$6,E20>BH20,$BI$6,E20>BG20,$BH$6,E20>BF20,$BG$6,E20>BE20,$BF$6,E20>BD20,$BE$6,E20>BC20,$BD$6,E20>=0,$BC$6)","v":""},{"$f":"IF('2. Assisted & Restricted Units'!T20=\"\",\"\",'2. Assisted & Restricted Units'!T20)","v":""},{"$f":"IF('2. Assisted & Restricted Units'!I20=\"\",\"\",'2. Assisted & Restricted Units'!I20)","v":""},{"$f":"IF('2. Assisted & Restricted Units'!AP20=\"\",\"\",'2. Assisted & Restricted Units'!AP20)","v":0},{"$f":"IF('2. Assisted & Restricted Units'!AT20=\"\",\"\",'2. Assisted & Restricted Units'!AT20)","v":""},0,{"$f":"IF('2. Assisted & Restricted Units'!AV20=\"\",\"\",'2. Assisted & Restricted Units'!AV20)","v":""},{"$f":"IF('2. Assisted & Restricted Units'!L20=\"\",\"\",'2. Assisted & Restricted Units'!L20)","v":""},{"$f":"IF('2. Assisted & Restricted Units'!M20=\"\",\"\",'2. Assisted & Restricted Units'!M20)","v":""},{"$f":"IF('2. Assisted & Restricted Units'!O20=\"\",\"\",'2. Assisted & Restricted Units'!O20)","v":""},{"$f":"IF('2. Assisted & Restricted Units'!P20=\"\",\"\",'2. Assisted & Restricted Units'!P20)","v":""},{"$f":"IF('2. Assisted & Restricted Units'!Q20=\"\",\"\",'2. Assisted & Restricted Units'!Q20)","v":""},{"$f":"IF('2. Assisted & Restricted Units'!R20=\"\",\"\",'2. Assisted & Restricted Units'!R20)","v":""},{"$f":"IF(A20=\"\",\"\",'1. Checklist & Certification'!$K$1)","v":""},{"$f":"IF(A20=\"\",\"\",'1. Checklist & Certification'!$C$62)","v":""},{"$f":"IF(A20=\"\",\"\",'1. Checklist & Certification'!$K$62)","v":""},{"$f":"IF(A20=\"\",\"\",'1. Checklist & Certification'!$C$6)","v":""},{"$f":"IF(A20=\"\",\"\",'1. Checklist & Certification'!$G$4)","v":""},{"$f":"IF(A20=\"\",\"\",'1. Checklist & Certification'!$C$7)","v":""},{"$f":"IF(A20=\"\",\"\",'1. Checklist & Certification'!$C$8)","v":""},{"$f":"IF(A20=\"\",\"\",'1. Checklist & Certification'!$F$7)","v":""},{"$f":"IF(A20=\"\",\"\",'1. Checklist & Certification'!$F$8)","v":""},{"$f":"IF(A20=\"\",\"\",'1. Checklist & Certification'!$B$9)","v":""},{"$f":"IF(A20=\"\",\"\",'1. Checklist & Certification'!$F$9)","v":""},{"$f":"IF(A20=\"\",\"\",'1. Checklist & Certification'!$C$10)","v":""},{"$f":"IF(A20=\"\",\"\",'1. Checklist & Certification'!$C$11)","v":""},{"$f":"IF(A20=\"\",\"\",'1. Checklist & Certification'!$C$12)","v":""},{"$f":"IF(A20=\"\",\"\",'1. Checklist & Certification'!$B$14)","v":""},{"$f":"IF(A20=\"\",\"\",'1. Checklist & Certification'!$E$14)","v":""},{"$f":"IF(B20=\"\",\"\",'1. Checklist & Certification'!$G$14)","v":""},{"$f":"IF(A20=\"\",\"\",'MHP Family Income & Rent Limits'!$B$3)","v":""},{"$f":"IF(A20=\"\",\"\",'MHP Family Income & Rent Limits'!$J$3)","v":""},{"$f":"IF(A20=\"\",\"\",'MHP Family Income & Rent Limits'!$E$4)","v":""},{"$f":"IF(A20=\"\",\"\",'MHP Family Income & Rent Limits'!$C$7)","v":""},{"$f":"IF(A20=\"\",\"\",'MHP Family Income & Rent Limits'!$F$8)","v":""},{"$f":"IF(A20=\"\",\"\",'1. Checklist & Certification'!$G$4)","v":""},{"$f":"IF(A20=\"\",\"\",'1. Checklist & Certification'!$K$39)","v":""},{"$f":"IF(A20=\"\",\"\",'1. Checklist & Certification'!$K$43)","v":""},{"$f":"IF(A20=\"\",\"\",'1. Checklist & Certification'!$K$45)","v":""},{"$f":"IF(A20=\"\",\"\",'1. Checklist & Certification'!$K$49)","v":""},{"$f":"IF(A20=\"\",\"\",'1. Checklist & Certification'!$E$66)","v":""},{"$f":"IF(A20=\"\",\"\",'1. Checklist & Certification'!$E$67)","v":""},{"$f":"IF(A20=\"\",\"\",'1. Checklist & Certification'!$E$68)","v":""},{"$f":"IF(A20=\"\",\"\",'1. Checklist & Certification'!$G$66)","v":""},{"$f":"IF(A20=\"\",\"\",'1. Checklist & Certification'!$H$66)","v":""},{"$f":"IF(A20=\"\",\"\",'1. Checklist & Certification'!$I$66)","v":""},{"$f":"IF(A20=\"\",\"\",'1. Checklist & Certification'!$I$67)","v":""},{"$f":"IF(A20=\"\",\"\",'1. Checklist & Certification'!$I$68)","v":""},null,{"$f":"IF(C20=\"\",\"\",HLOOKUP(C20,'MHP Family Income & Rent Limits'!$E$12:$L$26,2,FALSE))","v":""},{"$f":"IF(C20=\"\",\"\",HLOOKUP(C20,'MHP Family Income & Rent Limits'!$E$12:$L$26,3,FALSE))","v":""},{"$f":"IF(C20=\"\",\"\",HLOOKUP(C20,'MHP Family Income & Rent Limits'!$E$12:$L$26,4,FALSE))","v":""},{"$f":"IF(C20=\"\",\"\",HLOOKUP(C20,'MHP Family Income & Rent Limits'!$E$12:$L$26,5,FALSE))","v":""},{"$f":"IF(C20=\"\",\"\",HLOOKUP(C20,'MHP Family Income & Rent Limits'!$E$12:$L$26,6,FALSE))","v":""},{"$f":"IF(C20=\"\",\"\",HLOOKUP(C20,'MHP Family Income & Rent Limits'!$E$12:$L$26,7,FALSE))","v":""},{"$f":"IF(C20=\"\",\"\",HLOOKUP(C20,'MHP Family Income & Rent Limits'!$E$12:$L$26,8,FALSE))","v":""},{"$f":"IF(C20=\"\",\"\",HLOOKUP(C20,'MHP Family Income & Rent Limits'!$E$12:$L$26,9,FALSE))","v":""},{"$f":"IF(C20=\"\",\"\",HLOOKUP(C20,'MHP Family Income & Rent Limits'!$E$12:$L$26,10,FALSE))","v":""},{"$f":"IF(C20=\"\",\"\",HLOOKUP(C20,'MHP Family Income & Rent Limits'!$E$12:$L$26,11,FALSE))","v":""},{"$f":"IF(C20=\"\",\"\",HLOOKUP(C20,'MHP Family Income & Rent Limits'!$E$12:$L$26,12,FALSE))","v":""},{"$f":"IF(C20=\"\",\"\",HLOOKUP(C20,'MHP Family Income & Rent Limits'!$E$12:$L$26,13,FALSE))","v":""},{"$f":"IF(C20=\"\",\"\",HLOOKUP(C20,'MHP Family Income & Rent Limits'!$E$12:$L$26,14,FALSE))","v":""},{"$f":"IF(C20=\"\",\"\",HLOOKUP(C20,'MHP Family Income & Rent Limits'!$E$12:$L$26,15,FALSE))","v":""}]
[{"$f":"IF('2. Assisted & Restricted Units'!A21=\"\",\"\",'2. Assisted & Restricted Units'!A21)","v":""},{"$f":"IF('2. Assisted & Restricted Units'!B21=\"\",\"\",'2. Assisted & Restricted Units'!B21)","v":""},{"$f":"IF('2. Assisted & Restricted Units'!D21=\"\",\"\",'2. Assisted & Restricted Units'!D21)","v":""},{"$f":"IF('2. Assisted & Restricted Units'!E21=\"\",\"\",'2. Assisted & Restricted Units'!E21)","v":""},{"$f":"IF('2. Assisted & Restricted Units'!H21=\"\",\"\",'2. Assisted & Restricted Units'!H21)","v":""},{"$f":"_xlfn.IFS(E21=\"\",\"\",E21>BO21,$BP$6,E21>BN21,$BO$6,E21>BM21,$BN$6,E21>BL21,$BM$6,E21>BK21,$BL$6,E21>BJ21,$BK$6,E21>BI21,$BJ$6,E21>BH21,$BI$6,E21>BG21,$BH$6,E21>BF21,$BG$6,E21>BE21,$BF$6,E21>BD21,$BE$6,E21>BC21,$BD$6,E21>=0,$BC$6)","v":""},{"$f":"IF('2. Assisted & Restricted Units'!T21=\"\",\"\",'2. Assisted & Restricted Units'!T21)","v":""},{"$f":"IF('2. Assisted & Restricted Units'!I21=\"\",\"\",'2. Assisted & Restricted Units'!I21)","v":""},{"$f":"IF('2. Assisted & Restricted Units'!AP21=\"\",\"\",'2. Assisted & Restricted Units'!AP21)","v":0},{"$f":"IF('2. Assisted & Restricted Units'!AT21=\"\",\"\",'2. Assisted & Restricted Units'!AT21)","v":""},0,{"$f":"IF('2. Assisted & Restricted Units'!AV21=\"\",\"\",'2. Assisted & Restricted Units'!AV21)","v":""},{"$f":"IF('2. Assisted & Restricted Units'!L21=\"\",\"\",'2. Assisted & Restricted Units'!L21)","v":""},{"$f":"IF('2. Assisted & Restricted Units'!M21=\"\",\"\",'2. Assisted & Restricted Units'!M21)","v":""},{"$f":"IF('2. Assisted & Restricted Units'!O21=\"\",\"\",'2. Assisted & Restricted Units'!O21)","v":""},{"$f":"IF('2. Assisted & Restricted Units'!P21=\"\",\"\",'2. Assisted & Restricted Units'!P21)","v":""},{"$f":"IF('2. Assisted & Restricted Units'!Q21=\"\",\"\",'2. Assisted & Restricted Units'!Q21)","v":""},{"$f":"IF('2. Assisted & Restricted Units'!R21=\"\",\"\",'2. Assisted & Restricted Units'!R21)","v":""},{"$f":"IF(A21=\"\",\"\",'1. Checklist & Certification'!$K$1)","v":""},{"$f":"IF(A21=\"\",\"\",'1. Checklist & Certification'!$C$62)","v":""},{"$f":"IF(A21=\"\",\"\",'1. Checklist & Certification'!$K$62)","v":""},{"$f":"IF(A21=\"\",\"\",'1. Checklist & Certification'!$C$6)","v":""},{"$f":"IF(A21=\"\",\"\",'1. Checklist & Certification'!$G$4)","v":""},{"$f":"IF(A21=\"\",\"\",'1. Checklist & Certification'!$C$7)","v":""},{"$f":"IF(A21=\"\",\"\",'1. Checklist & Certification'!$C$8)","v":""},{"$f":"IF(A21=\"\",\"\",'1. Checklist & Certification'!$F$7)","v":""},{"$f":"IF(A21=\"\",\"\",'1. Checklist & Certification'!$F$8)","v":""},{"$f":"IF(A21=\"\",\"\",'1. Checklist & Certification'!$B$9)","v":""},{"$f":"IF(A21=\"\",\"\",'1. Checklist & Certification'!$F$9)","v":""},{"$f":"IF(A21=\"\",\"\",'1. Checklist & Certification'!$C$10)","v":""},{"$f":"IF(A21=\"\",\"\",'1. Checklist & Certification'!$C$11)","v":""},{"$f":"IF(A21=\"\",\"\",'1. Checklist & Certification'!$C$12)","v":""},{"$f":"IF(A21=\"\",\"\",'1. Checklist & Certification'!$B$14)","v":""},{"$f":"IF(A21=\"\",\"\",'1. Checklist & Certification'!$E$14)","v":""},{"$f":"IF(B21=\"\",\"\",'1. Checklist & Certification'!$G$14)","v":""},{"$f":"IF(A21=\"\",\"\",'MHP Family Income & Rent Limits'!$B$3)","v":""},{"$f":"IF(A21=\"\",\"\",'MHP Family Income & Rent Limits'!$J$3)","v":""},{"$f":"IF(A21=\"\",\"\",'MHP Family Income & Rent Limits'!$E$4)","v":""},{"$f":"IF(A21=\"\",\"\",'MHP Family Income & Rent Limits'!$C$7)","v":""},{"$f":"IF(A21=\"\",\"\",'MHP Family Income & Rent Limits'!$F$8)","v":""},{"$f":"IF(A21=\"\",\"\",'1. Checklist & Certification'!$G$4)","v":""},{"$f":"IF(A21=\"\",\"\",'1. Checklist & Certification'!$K$39)","v":""},{"$f":"IF(A21=\"\",\"\",'1. Checklist & Certification'!$K$43)","v":""},{"$f":"IF(A21=\"\",\"\",'1. Checklist & Certification'!$K$45)","v":""},{"$f":"IF(A21=\"\",\"\",'1. Checklist & Certification'!$K$49)","v":""},{"$f":"IF(A21=\"\",\"\",'1. Checklist & Certification'!$E$66)","v":""},{"$f":"IF(A21=\"\",\"\",'1. Checklist & Certification'!$E$67)","v":""},{"$f":"IF(A21=\"\",\"\",'1. Checklist & Certification'!$E$68)","v":""},{"$f":"IF(A21=\"\",\"\",'1. Checklist & Certification'!$G$66)","v":""},{"$f":"IF(A21=\"\",\"\",'1. Checklist & Certification'!$H$66)","v":""},{"$f":"IF(A21=\"\",\"\",'1. Checklist & Certification'!$I$66)","v":""},{"$f":"IF(A21=\"\",\"\",'1. Checklist & Certification'!$I$67)","v":""},{"$f":"IF(A21=\"\",\"\",'1. Checklist & Certification'!$I$68)","v":""},null,{"$f":"IF(C21=\"\",\"\",HLOOKUP(C21,'MHP Family Income & Rent Limits'!$E$12:$L$26,2,FALSE))","v":""},{"$f":"IF(C21=\"\",\"\",HLOOKUP(C21,'MHP Family Income & Rent Limits'!$E$12:$L$26,3,FALSE))","v":""},{"$f":"IF(C21=\"\",\"\",HLOOKUP(C21,'MHP Family Income & Rent Limits'!$E$12:$L$26,4,FALSE))","v":""},{"$f":"IF(C21=\"\",\"\",HLOOKUP(C21,'MHP Family Income & Rent Limits'!$E$12:$L$26,5,FALSE))","v":""},{"$f":"IF(C21=\"\",\"\",HLOOKUP(C21,'MHP Family Income & Rent Limits'!$E$12:$L$26,6,FALSE))","v":""},{"$f":"IF(C21=\"\",\"\",HLOOKUP(C21,'MHP Family Income & Rent Limits'!$E$12:$L$26,7,FALSE))","v":""},{"$f":"IF(C21=\"\",\"\",HLOOKUP(C21,'MHP Family Income & Rent Limits'!$E$12:$L$26,8,FALSE))","v":""},{"$f":"IF(C21=\"\",\"\",HLOOKUP(C21,'MHP Family Income & Rent Limits'!$E$12:$L$26,9,FALSE))","v":""},{"$f":"IF(C21=\"\",\"\",HLOOKUP(C21,'MHP Family Income & Rent Limits'!$E$12:$L$26,10,FALSE))","v":""},{"$f":"IF(C21=\"\",\"\",HLOOKUP(C21,'MHP Family Income & Rent Limits'!$E$12:$L$26,11,FALSE))","v":""},{"$f":"IF(C21=\"\",\"\",HLOOKUP(C21,'MHP Family Income & Rent Limits'!$E$12:$L$26,12,FALSE))","v":""},{"$f":"IF(C21=\"\",\"\",HLOOKUP(C21,'MHP Family Income & Rent Limits'!$E$12:$L$26,13,FALSE))","v":""},{"$f":"IF(C21=\"\",\"\",HLOOKUP(C21,'MHP Family Income & Rent Limits'!$E$12:$L$26,14,FALSE))","v":""},{"$f":"IF(C21=\"\",\"\",HLOOKUP(C21,'MHP Family Income & Rent Limits'!$E$12:$L$26,15,FALSE))","v":""}]
[{"$f":"IF('2. Assisted & Restricted Units'!A22=\"\",\"\",'2. Assisted & Restricted Units'!A22)","v":""},{"$f":"IF('2. Assisted & Restricted Units'!B22=\"\",\"\",'2. Assisted & Restricted Units'!B22)","v":""},{"$f":"IF('2. Assisted & Restricted Units'!D22=\"\",\"\",'2. Assisted & Restricted Units'!D22)","v":""},{"$f":"IF('2. Assisted & Restricted Units'!E22=\"\",\"\",'2. Assisted & Restricted Units'!E22)","v":""},{"$f":"IF('2. Assisted & Restricted Units'!H22=\"\",\"\",'2. Assisted & Restricted Units'!H22)","v":""},{"$f":"_xlfn.IFS(E22=\"\",\"\",E22>BO22,$BP$6,E22>BN22,$BO$6,E22>BM22,$BN$6,E22>BL22,$BM$6,E22>BK22,$BL$6,E22>BJ22,$BK$6,E22>BI22,$BJ$6,E22>BH22,$BI$6,E22>BG22,$BH$6,E22>BF22,$BG$6,E22>BE22,$BF$6,E22>BD22,$BE$6,E22>BC22,$BD$6,E22>=0,$BC$6)","v":""},{"$f":"IF('2. Assisted & Restricted Units'!T22=\"\",\"\",'2. Assisted & Restricted Units'!T22)","v":""},{"$f":"IF('2. Assisted & Restricted Units'!I22=\"\",\"\",'2. Assisted & Restricted Units'!I22)","v":""},{"$f":"IF('2. Assisted & Restricted Units'!AP22=\"\",\"\",'2. Assisted & Restricted Units'!AP22)","v":0},{"$f":"IF('2. Assisted & Restricted Units'!AT22=\"\",\"\",'2. Assisted & Restricted Units'!AT22)","v":""},0,{"$f":"IF('2. Assisted & Restricted Units'!AV22=\"\",\"\",'2. Assisted & Restricted Units'!AV22)","v":""},{"$f":"IF('2. Assisted & Restricted Units'!L22=\"\",\"\",'2. Assisted & Restricted Units'!L22)","v":""},{"$f":"IF('2. Assisted & Restricted Units'!M22=\"\",\"\",'2. Assisted & Restricted Units'!M22)","v":""},{"$f":"IF('2. Assisted & Restricted Units'!O22=\"\",\"\",'2. Assisted & Restricted Units'!O22)","v":""},{"$f":"IF('2. Assisted & Restricted Units'!P22=\"\",\"\",'2. Assisted & Restricted Units'!P22)","v":""},{"$f":"IF('2. Assisted & Restricted Units'!Q22=\"\",\"\",'2. Assisted & Restricted Units'!Q22)","v":""},{"$f":"IF('2. Assisted & Restricted Units'!R22=\"\",\"\",'2. Assisted & Restricted Units'!R22)","v":""},{"$f":"IF(A22=\"\",\"\",'1. Checklist & Certification'!$K$1)","v":""},{"$f":"IF(A22=\"\",\"\",'1. Checklist & Certification'!$C$62)","v":""},{"$f":"IF(A22=\"\",\"\",'1. Checklist & Certification'!$K$62)","v":""},{"$f":"IF(A22=\"\",\"\",'1. Checklist & Certification'!$C$6)","v":""},{"$f":"IF(A22=\"\",\"\",'1. Checklist & Certification'!$G$4)","v":""},{"$f":"IF(A22=\"\",\"\",'1. Checklist & Certification'!$C$7)","v":""},{"$f":"IF(A22=\"\",\"\",'1. Checklist & Certification'!$C$8)","v":""},{"$f":"IF(A22=\"\",\"\",'1. Checklist & Certification'!$F$7)","v":""},{"$f":"IF(A22=\"\",\"\",'1. Checklist & Certification'!$F$8)","v":""},{"$f":"IF(A22=\"\",\"\",'1. Checklist & Certification'!$B$9)","v":""},{"$f":"IF(A22=\"\",\"\",'1. Checklist & Certification'!$F$9)","v":""},{"$f":"IF(A22=\"\",\"\",'1. Checklist & Certification'!$C$10)","v":""},{"$f":"IF(A22=\"\",\"\",'1. Checklist & Certification'!$C$11)","v":""},{"$f":"IF(A22=\"\",\"\",'1. Checklist & Certification'!$C$12)","v":""},{"$f":"IF(A22=\"\",\"\",'1. Checklist & Certification'!$B$14)","v":""},{"$f":"IF(A22=\"\",\"\",'1. Checklist & Certification'!$E$14)","v":""},{"$f":"IF(B22=\"\",\"\",'1. Checklist & Certification'!$G$14)","v":""},{"$f":"IF(A22=\"\",\"\",'MHP Family Income & Rent Limits'!$B$3)","v":""},{"$f":"IF(A22=\"\",\"\",'MHP Family Income & Rent Limits'!$J$3)","v":""},{"$f":"IF(A22=\"\",\"\",'MHP Family Income & Rent Limits'!$E$4)","v":""},{"$f":"IF(A22=\"\",\"\",'MHP Family Income & Rent Limits'!$C$7)","v":""},{"$f":"IF(A22=\"\",\"\",'MHP Family Income & Rent Limits'!$F$8)","v":""},{"$f":"IF(A22=\"\",\"\",'1. Checklist & Certification'!$G$4)","v":""},{"$f":"IF(A22=\"\",\"\",'1. Checklist & Certification'!$K$39)","v":""},{"$f":"IF(A22=\"\",\"\",'1. Checklist & Certification'!$K$43)","v":""},{"$f":"IF(A22=\"\",\"\",'1. Checklist & Certification'!$K$45)","v":""},{"$f":"IF(A22=\"\",\"\",'1. Checklist & Certification'!$K$49)","v":""},{"$f":"IF(A22=\"\",\"\",'1. Checklist & Certification'!$E$66)","v":""},{"$f":"IF(A22=\"\",\"\",'1. Checklist & Certification'!$E$67)","v":""},{"$f":"IF(A22=\"\",\"\",'1. Checklist & Certification'!$E$68)","v":""},{"$f":"IF(A22=\"\",\"\",'1. Checklist & Certification'!$G$66)","v":""},{"$f":"IF(A22=\"\",\"\",'1. Checklist & Certification'!$H$66)","v":""},{"$f":"IF(A22=\"\",\"\",'1. Checklist & Certification'!$I$66)","v":""},{"$f":"IF(A22=\"\",\"\",'1. Checklist & Certification'!$I$67)","v":""},{"$f":"IF(A22=\"\",\"\",'1. Checklist & Certification'!$I$68)","v":""},null,{"$f":"IF(C22=\"\",\"\",HLOOKUP(C22,'MHP Family Income & Rent Limits'!$E$12:$L$26,2,FALSE))","v":""},{"$f":"IF(C22=\"\",\"\",HLOOKUP(C22,'MHP Family Income & Rent Limits'!$E$12:$L$26,3,FALSE))","v":""},{"$f":"IF(C22=\"\",\"\",HLOOKUP(C22,'MHP Family Income & Rent Limits'!$E$12:$L$26,4,FALSE))","v":""},{"$f":"IF(C22=\"\",\"\",HLOOKUP(C22,'MHP Family Income & Rent Limits'!$E$12:$L$26,5,FALSE))","v":""},{"$f":"IF(C22=\"\",\"\",HLOOKUP(C22,'MHP Family Income & Rent Limits'!$E$12:$L$26,6,FALSE))","v":""},{"$f":"IF(C22=\"\",\"\",HLOOKUP(C22,'MHP Family Income & Rent Limits'!$E$12:$L$26,7,FALSE))","v":""},{"$f":"IF(C22=\"\",\"\",HLOOKUP(C22,'MHP Family Income & Rent Limits'!$E$12:$L$26,8,FALSE))","v":""},{"$f":"IF(C22=\"\",\"\",HLOOKUP(C22,'MHP Family Income & Rent Limits'!$E$12:$L$26,9,FALSE))","v":""},{"$f":"IF(C22=\"\",\"\",HLOOKUP(C22,'MHP Family Income & Rent Limits'!$E$12:$L$26,10,FALSE))","v":""},{"$f":"IF(C22=\"\",\"\",HLOOKUP(C22,'MHP Family Income & Rent Limits'!$E$12:$L$26,11,FALSE))","v":""},{"$f":"IF(C22=\"\",\"\",HLOOKUP(C22,'MHP Family Income & Rent Limits'!$E$12:$L$26,12,FALSE))","v":""},{"$f":"IF(C22=\"\",\"\",HLOOKUP(C22,'MHP Family Income & Rent Limits'!$E$12:$L$26,13,FALSE))","v":""},{"$f":"IF(C22=\"\",\"\",HLOOKUP(C22,'MHP Family Income & Rent Limits'!$E$12:$L$26,14,FALSE))","v":""},{"$f":"IF(C22=\"\",\"\",HLOOKUP(C22,'MHP Family Income & Rent Limits'!$E$12:$L$26,15,FALSE))","v":""}]
[{"$f":"IF('2. Assisted & Restricted Units'!A23=\"\",\"\",'2. Assisted & Restricted Units'!A23)","v":""},{"$f":"IF('2. Assisted & Restricted Units'!B23=\"\",\"\",'2. Assisted & Restricted Units'!B23)","v":""},{"$f":"IF('2. Assisted & Restricted Units'!D23=\"\",\"\",'2. Assisted & Restricted Units'!D23)","v":""},{"$f":"IF('2. Assisted & Restricted Units'!E23=\"\",\"\",'2. Assisted & Restricted Units'!E23)","v":""},{"$f":"IF('2. Assisted & Restricted Units'!H23=\"\",\"\",'2. Assisted & Restricted Units'!H23)","v":""},{"$f":"_xlfn.IFS(E23=\"\",\"\",E23>BO23,$BP$6,E23>BN23,$BO$6,E23>BM23,$BN$6,E23>BL23,$BM$6,E23>BK23,$BL$6,E23>BJ23,$BK$6,E23>BI23,$BJ$6,E23>BH23,$BI$6,E23>BG23,$BH$6,E23>BF23,$BG$6,E23>BE23,$BF$6,E23>BD23,$BE$6,E23>BC23,$BD$6,E23>=0,$BC$6)","v":""},{"$f":"IF('2. Assisted & Restricted Units'!T23=\"\",\"\",'2. Assisted & Restricted Units'!T23)","v":""},{"$f":"IF('2. Assisted & Restricted Units'!I23=\"\",\"\",'2. Assisted & Restricted Units'!I23)","v":""},{"$f":"IF('2. Assisted & Restricted Units'!AP23=\"\",\"\",'2. Assisted & Restricted Units'!AP23)","v":0},{"$f":"IF('2. Assisted & Restricted Units'!AT23=\"\",\"\",'2. Assisted & Restricted Units'!AT23)","v":""},0,{"$f":"IF('2. Assisted & Restricted Units'!AV23=\"\",\"\",'2. Assisted & Restricted Units'!AV23)","v":""},{"$f":"IF('2. Assisted & Restricted Units'!L23=\"\",\"\",'2. Assisted & Restricted Units'!L23)","v":""},{"$f":"IF('2. Assisted & Restricted Units'!M23=\"\",\"\",'2. Assisted & Restricted Units'!M23)","v":""},{"$f":"IF('2. Assisted & Restricted Units'!O23=\"\",\"\",'2. Assisted & Restricted Units'!O23)","v":""},{"$f":"IF('2. Assisted & Restricted Units'!P23=\"\",\"\",'2. Assisted & Restricted Units'!P23)","v":""},{"$f":"IF('2. Assisted & Restricted Units'!Q23=\"\",\"\",'2. Assisted & Restricted Units'!Q23)","v":""},{"$f":"IF('2. Assisted & Restricted Units'!R23=\"\",\"\",'2. Assisted & Restricted Units'!R23)","v":""},{"$f":"IF(A23=\"\",\"\",'1. Checklist & Certification'!$K$1)","v":""},{"$f":"IF(A23=\"\",\"\",'1. Checklist & Certification'!$C$62)","v":""},{"$f":"IF(A23=\"\",\"\",'1. Checklist & Certification'!$K$62)","v":""},{"$f":"IF(A23=\"\",\"\",'1. Checklist & Certification'!$C$6)","v":""},{"$f":"IF(A23=\"\",\"\",'1. Checklist & Certification'!$G$4)","v":""},{"$f":"IF(A23=\"\",\"\",'1. Checklist & Certification'!$C$7)","v":""},{"$f":"IF(A23=\"\",\"\",'1. Checklist & Certification'!$C$8)","v":""},{"$f":"IF(A23=\"\",\"\",'1. Checklist & Certification'!$F$7)","v":""},{"$f":"IF(A23=\"\",\"\",'1. Checklist & Certification'!$F$8)","v":""},{"$f":"IF(A23=\"\",\"\",'1. Checklist & Certification'!$B$9)","v":""},{"$f":"IF(A23=\"\",\"\",'1. Checklist & Certification'!$F$9)","v":""},{"$f":"IF(A23=\"\",\"\",'1. Checklist & Certification'!$C$10)","v":""},{"$f":"IF(A23=\"\",\"\",'1. Checklist & Certification'!$C$11)","v":""},{"$f":"IF(A23=\"\",\"\",'1. Checklist & Certification'!$C$12)","v":""},{"$f":"IF(A23=\"\",\"\",'1. Checklist & Certification'!$B$14)","v":""},{"$f":"IF(A23=\"\",\"\",'1. Checklist & Certification'!$E$14)","v":""},{"$f":"IF(B23=\"\",\"\",'1. Checklist & Certification'!$G$14)","v":""},{"$f":"IF(A23=\"\",\"\",'MHP Family Income & Rent Limits'!$B$3)","v":""},{"$f":"IF(A23=\"\",\"\",'MHP Family Income & Rent Limits'!$J$3)","v":""},{"$f":"IF(A23=\"\",\"\",'MHP Family Income & Rent Limits'!$E$4)","v":""},{"$f":"IF(A23=\"\",\"\",'MHP Family Income & Rent Limits'!$C$7)","v":""},{"$f":"IF(A23=\"\",\"\",'MHP Family Income & Rent Limits'!$F$8)","v":""},{"$f":"IF(A23=\"\",\"\",'1. Checklist & Certification'!$G$4)","v":""},{"$f":"IF(A23=\"\",\"\",'1. Checklist & Certification'!$K$39)","v":""},{"$f":"IF(A23=\"\",\"\",'1. Checklist & Certification'!$K$43)","v":""},{"$f":"IF(A23=\"\",\"\",'1. Checklist & Certification'!$K$45)","v":""},{"$f":"IF(A23=\"\",\"\",'1. Checklist & Certification'!$K$49)","v":""},{"$f":"IF(A23=\"\",\"\",'1. Checklist & Certification'!$E$66)","v":""},{"$f":"IF(A23=\"\",\"\",'1. Checklist & Certification'!$E$67)","v":""},{"$f":"IF(A23=\"\",\"\",'1. Checklist & Certification'!$E$68)","v":""},{"$f":"IF(A23=\"\",\"\",'1. Checklist & Certification'!$G$66)","v":""},{"$f":"IF(A23=\"\",\"\",'1. Checklist & Certification'!$H$66)","v":""},{"$f":"IF(A23=\"\",\"\",'1. Checklist & Certification'!$I$66)","v":""},{"$f":"IF(A23=\"\",\"\",'1. Checklist & Certification'!$I$67)","v":""},{"$f":"IF(A23=\"\",\"\",'1. Checklist & Certification'!$I$68)","v":""},null,{"$f":"IF(C23=\"\",\"\",HLOOKUP(C23,'MHP Family Income & Rent Limits'!$E$12:$L$26,2,FALSE))","v":""},{"$f":"IF(C23=\"\",\"\",HLOOKUP(C23,'MHP Family Income & Rent Limits'!$E$12:$L$26,3,FALSE))","v":""},{"$f":"IF(C23=\"\",\"\",HLOOKUP(C23,'MHP Family Income & Rent Limits'!$E$12:$L$26,4,FALSE))","v":""},{"$f":"IF(C23=\"\",\"\",HLOOKUP(C23,'MHP Family Income & Rent Limits'!$E$12:$L$26,5,FALSE))","v":""},{"$f":"IF(C23=\"\",\"\",HLOOKUP(C23,'MHP Family Income & Rent Limits'!$E$12:$L$26,6,FALSE))","v":""},{"$f":"IF(C23=\"\",\"\",HLOOKUP(C23,'MHP Family Income & Rent Limits'!$E$12:$L$26,7,FALSE))","v":""},{"$f":"IF(C23=\"\",\"\",HLOOKUP(C23,'MHP Family Income & Rent Limits'!$E$12:$L$26,8,FALSE))","v":""},{"$f":"IF(C23=\"\",\"\",HLOOKUP(C23,'MHP Family Income & Rent Limits'!$E$12:$L$26,9,FALSE))","v":""},{"$f":"IF(C23=\"\",\"\",HLOOKUP(C23,'MHP Family Income & Rent Limits'!$E$12:$L$26,10,FALSE))","v":""},{"$f":"IF(C23=\"\",\"\",HLOOKUP(C23,'MHP Family Income & Rent Limits'!$E$12:$L$26,11,FALSE))","v":""},{"$f":"IF(C23=\"\",\"\",HLOOKUP(C23,'MHP Family Income & Rent Limits'!$E$12:$L$26,12,FALSE))","v":""},{"$f":"IF(C23=\"\",\"\",HLOOKUP(C23,'MHP Family Income & Rent Limits'!$E$12:$L$26,13,FALSE))","v":""},{"$f":"IF(C23=\"\",\"\",HLOOKUP(C23,'MHP Family Income & Rent Limits'!$E$12:$L$26,14,FALSE))","v":""},{"$f":"IF(C23=\"\",\"\",HLOOKUP(C23,'MHP Family Income & Rent Limits'!$E$12:$L$26,15,FALSE))","v":""}]
[{"$f":"IF('2. Assisted & Restricted Units'!A24=\"\",\"\",'2. Assisted & Restricted Units'!A24)","v":""},{"$f":"IF('2. Assisted & Restricted Units'!B24=\"\",\"\",'2. Assisted & Restricted Units'!B24)","v":""},{"$f":"IF('2. Assisted & Restricted Units'!D24=\"\",\"\",'2. Assisted & Restricted Units'!D24)","v":""},{"$f":"IF('2. Assisted & Restricted Units'!E24=\"\",\"\",'2. Assisted & Restricted Units'!E24)","v":""},{"$f":"IF('2. Assisted & Restricted Units'!H24=\"\",\"\",'2. Assisted & Restricted Units'!H24)","v":""},{"$f":"_xlfn.IFS(E24=\"\",\"\",E24>BO24,$BP$6,E24>BN24,$BO$6,E24>BM24,$BN$6,E24>BL24,$BM$6,E24>BK24,$BL$6,E24>BJ24,$BK$6,E24>BI24,$BJ$6,E24>BH24,$BI$6,E24>BG24,$BH$6,E24>BF24,$BG$6,E24>BE24,$BF$6,E24>BD24,$BE$6,E24>BC24,$BD$6,E24>=0,$BC$6)","v":""},{"$f":"IF('2. Assisted & Restricted Units'!T24=\"\",\"\",'2. Assisted & Restricted Units'!T24)","v":""},{"$f":"IF('2. Assisted & Restricted Units'!I24=\"\",\"\",'2. Assisted & Restricted Units'!I24)","v":""},{"$f":"IF('2. Assisted & Restricted Units'!AP24=\"\",\"\",'2. Assisted & Restricted Units'!AP24)","v":0},{"$f":"IF('2. Assisted & Restricted Units'!AT24=\"\",\"\",'2. Assisted & Restricted Units'!AT24)","v":""},0,{"$f":"IF('2. Assisted & Restricted Units'!AV24=\"\",\"\",'2. Assisted & Restricted Units'!AV24)","v":""},{"$f":"IF('2. Assisted & Restricted Units'!L24=\"\",\"\",'2. Assisted & Restricted Units'!L24)","v":""},{"$f":"IF('2. Assisted & Restricted Units'!M24=\"\",\"\",'2. Assisted & Restricted Units'!M24)","v":""},{"$f":"IF('2. Assisted & Restricted Units'!O24=\"\",\"\",'2. Assisted & Restricted Units'!O24)","v":""},{"$f":"IF('2. Assisted & Restricted Units'!P24=\"\",\"\",'2. Assisted & Restricted Units'!P24)","v":""},{"$f":"IF('2. Assisted & Restricted Units'!Q24=\"\",\"\",'2. Assisted & Restricted Units'!Q24)","v":""},{"$f":"IF('2. Assisted & Restricted Units'!R24=\"\",\"\",'2. Assisted & Restricted Units'!R24)","v":""},{"$f":"IF(A24=\"\",\"\",'1. Checklist & Certification'!$K$1)","v":""},{"$f":"IF(A24=\"\",\"\",'1. Checklist & Certification'!$C$62)","v":""},{"$f":"IF(A24=\"\",\"\",'1. Checklist & Certification'!$K$62)","v":""},{"$f":"IF(A24=\"\",\"\",'1. Checklist & Certification'!$C$6)","v":""},{"$f":"IF(A24=\"\",\"\",'1. Checklist & Certification'!$G$4)","v":""},{"$f":"IF(A24=\"\",\"\",'1. Checklist & Certification'!$C$7)","v":""},{"$f":"IF(A24=\"\",\"\",'1. Checklist & Certification'!$C$8)","v":""},{"$f":"IF(A24=\"\",\"\",'1. Checklist & Certification'!$F$7)","v":""},{"$f":"IF(A24=\"\",\"\",'1. Checklist & Certification'!$F$8)","v":""},{"$f":"IF(A24=\"\",\"\",'1. Checklist & Certification'!$B$9)","v":""},{"$f":"IF(A24=\"\",\"\",'1. Checklist & Certification'!$F$9)","v":""},{"$f":"IF(A24=\"\",\"\",'1. Checklist & Certification'!$C$10)","v":""},{"$f":"IF(A24=\"\",\"\",'1. Checklist & Certification'!$C$11)","v":""},{"$f":"IF(A24=\"\",\"\",'1. Checklist & Certification'!$C$12)","v":""},{"$f":"IF(A24=\"\",\"\",'1. Checklist & Certification'!$B$14)","v":""},{"$f":"IF(A24=\"\",\"\",'1. Checklist & Certification'!$E$14)","v":""},{"$f":"IF(B24=\"\",\"\",'1. Checklist & Certification'!$G$14)","v":""},{"$f":"IF(A24=\"\",\"\",'MHP Family Income & Rent Limits'!$B$3)","v":""},{"$f":"IF(A24=\"\",\"\",'MHP Family Income & Rent Limits'!$J$3)","v":""},{"$f":"IF(A24=\"\",\"\",'MHP Family Income & Rent Limits'!$E$4)","v":""},{"$f":"IF(A24=\"\",\"\",'MHP Family Income & Rent Limits'!$C$7)","v":""},{"$f":"IF(A24=\"\",\"\",'MHP Family Income & Rent Limits'!$F$8)","v":""},{"$f":"IF(A24=\"\",\"\",'1. Checklist & Certification'!$G$4)","v":""},{"$f":"IF(A24=\"\",\"\",'1. Checklist & Certification'!$K$39)","v":""},{"$f":"IF(A24=\"\",\"\",'1. Checklist & Certification'!$K$43)","v":""},{"$f":"IF(A24=\"\",\"\",'1. Checklist & Certification'!$K$45)","v":""},{"$f":"IF(A24=\"\",\"\",'1. Checklist & Certification'!$K$49)","v":""},{"$f":"IF(A24=\"\",\"\",'1. Checklist & Certification'!$E$66)","v":""},{"$f":"IF(A24=\"\",\"\",'1. Checklist & Certification'!$E$67)","v":""},{"$f":"IF(A24=\"\",\"\",'1. Checklist & Certification'!$E$68)","v":""},{"$f":"IF(A24=\"\",\"\",'1. Checklist & Certification'!$G$66)","v":""},{"$f":"IF(A24=\"\",\"\",'1. Checklist & Certification'!$H$66)","v":""},{"$f":"IF(A24=\"\",\"\",'1. Checklist & Certification'!$I$66)","v":""},{"$f":"IF(A24=\"\",\"\",'1. Checklist & Certification'!$I$67)","v":""},{"$f":"IF(A24=\"\",\"\",'1. Checklist & Certification'!$I$68)","v":""},null,{"$f":"IF(C24=\"\",\"\",HLOOKUP(C24,'MHP Family Income & Rent Limits'!$E$12:$L$26,2,FALSE))","v":""},{"$f":"IF(C24=\"\",\"\",HLOOKUP(C24,'MHP Family Income & Rent Limits'!$E$12:$L$26,3,FALSE))","v":""},{"$f":"IF(C24=\"\",\"\",HLOOKUP(C24,'MHP Family Income & Rent Limits'!$E$12:$L$26,4,FALSE))","v":""},{"$f":"IF(C24=\"\",\"\",HLOOKUP(C24,'MHP Family Income & Rent Limits'!$E$12:$L$26,5,FALSE))","v":""},{"$f":"IF(C24=\"\",\"\",HLOOKUP(C24,'MHP Family Income & Rent Limits'!$E$12:$L$26,6,FALSE))","v":""},{"$f":"IF(C24=\"\",\"\",HLOOKUP(C24,'MHP Family Income & Rent Limits'!$E$12:$L$26,7,FALSE))","v":""},{"$f":"IF(C24=\"\",\"\",HLOOKUP(C24,'MHP Family Income & Rent Limits'!$E$12:$L$26,8,FALSE))","v":""},{"$f":"IF(C24=\"\",\"\",HLOOKUP(C24,'MHP Family Income & Rent Limits'!$E$12:$L$26,9,FALSE))","v":""},{"$f":"IF(C24=\"\",\"\",HLOOKUP(C24,'MHP Family Income & Rent Limits'!$E$12:$L$26,10,FALSE))","v":""},{"$f":"IF(C24=\"\",\"\",HLOOKUP(C24,'MHP Family Income & Rent Limits'!$E$12:$L$26,11,FALSE))","v":""},{"$f":"IF(C24=\"\",\"\",HLOOKUP(C24,'MHP Family Income & Rent Limits'!$E$12:$L$26,12,FALSE))","v":""},{"$f":"IF(C24=\"\",\"\",HLOOKUP(C24,'MHP Family Income & Rent Limits'!$E$12:$L$26,13,FALSE))","v":""},{"$f":"IF(C24=\"\",\"\",HLOOKUP(C24,'MHP Family Income & Rent Limits'!$E$12:$L$26,14,FALSE))","v":""},{"$f":"IF(C24=\"\",\"\",HLOOKUP(C24,'MHP Family Income & Rent Limits'!$E$12:$L$26,15,FALSE))","v":""}]
[{"$f":"IF('2. Assisted & Restricted Units'!A25=\"\",\"\",'2. Assisted & Restricted Units'!A25)","v":""},{"$f":"IF('2. Assisted & Restricted Units'!B25=\"\",\"\",'2. Assisted & Restricted Units'!B25)","v":""},{"$f":"IF('2. Assisted & Restricted Units'!D25=\"\",\"\",'2. Assisted & Restricted Units'!D25)","v":""},{"$f":"IF('2. Assisted & Restricted Units'!E25=\"\",\"\",'2. Assisted & Restricted Units'!E25)","v":""},{"$f":"IF('2. Assisted & Restricted Units'!H25=\"\",\"\",'2. Assisted & Restricted Units'!H25)","v":""},{"$f":"_xlfn.IFS(E25=\"\",\"\",E25>BO25,$BP$6,E25>BN25,$BO$6,E25>BM25,$BN$6,E25>BL25,$BM$6,E25>BK25,$BL$6,E25>BJ25,$BK$6,E25>BI25,$BJ$6,E25>BH25,$BI$6,E25>BG25,$BH$6,E25>BF25,$BG$6,E25>BE25,$BF$6,E25>BD25,$BE$6,E25>BC25,$BD$6,E25>=0,$BC$6)","v":""},{"$f":"IF('2. Assisted & Restricted Units'!T25=\"\",\"\",'2. Assisted & Restricted Units'!T25)","v":""},{"$f":"IF('2. Assisted & Restricted Units'!I25=\"\",\"\",'2. Assisted & Restricted Units'!I25)","v":""},{"$f":"IF('2. Assisted & Restricted Units'!AP25=\"\",\"\",'2. Assisted & Restricted Units'!AP25)","v":0},{"$f":"IF('2. Assisted & Restricted Units'!AT25=\"\",\"\",'2. Assisted & Restricted Units'!AT25)","v":""},0,{"$f":"IF('2. Assisted & Restricted Units'!AV25=\"\",\"\",'2. Assisted & Restricted Units'!AV25)","v":""},{"$f":"IF('2. Assisted & Restricted Units'!L25=\"\",\"\",'2. Assisted & Restricted Units'!L25)","v":""},{"$f":"IF('2. Assisted & Restricted Units'!M25=\"\",\"\",'2. Assisted & Restricted Units'!M25)","v":""},{"$f":"IF('2. Assisted & Restricted Units'!O25=\"\",\"\",'2. Assisted & Restricted Units'!O25)","v":""},{"$f":"IF('2. Assisted & Restricted Units'!P25=\"\",\"\",'2. Assisted & Restricted Units'!P25)","v":""},{"$f":"IF('2. Assisted & Restricted Units'!Q25=\"\",\"\",'2. Assisted & Restricted Units'!Q25)","v":""},{"$f":"IF('2. Assisted & Restricted Units'!R25=\"\",\"\",'2. Assisted & Restricted Units'!R25)","v":""},{"$f":"IF(A25=\"\",\"\",'1. Checklist & Certification'!$K$1)","v":""},{"$f":"IF(A25=\"\",\"\",'1. Checklist & Certification'!$C$62)","v":""},{"$f":"IF(A25=\"\",\"\",'1. Checklist & Certification'!$K$62)","v":""},{"$f":"IF(A25=\"\",\"\",'1. Checklist & Certification'!$C$6)","v":""},{"$f":"IF(A25=\"\",\"\",'1. Checklist & Certification'!$G$4)","v":""},{"$f":"IF(A25=\"\",\"\",'1. Checklist & Certification'!$C$7)","v":""},{"$f":"IF(A25=\"\",\"\",'1. Checklist & Certification'!$C$8)","v":""},{"$f":"IF(A25=\"\",\"\",'1. Checklist & Certification'!$F$7)","v":""},{"$f":"IF(A25=\"\",\"\",'1. Checklist & Certification'!$F$8)","v":""},{"$f":"IF(A25=\"\",\"\",'1. Checklist & Certification'!$B$9)","v":""},{"$f":"IF(A25=\"\",\"\",'1. Checklist & Certification'!$F$9)","v":""},{"$f":"IF(A25=\"\",\"\",'1. Checklist & Certification'!$C$10)","v":""},{"$f":"IF(A25=\"\",\"\",'1. Checklist & Certification'!$C$11)","v":""},{"$f":"IF(A25=\"\",\"\",'1. Checklist & Certification'!$C$12)","v":""},{"$f":"IF(A25=\"\",\"\",'1. Checklist & Certification'!$B$14)","v":""},{"$f":"IF(A25=\"\",\"\",'1. Checklist & Certification'!$E$14)","v":""},{"$f":"IF(B25=\"\",\"\",'1. Checklist & Certification'!$G$14)","v":""},{"$f":"IF(A25=\"\",\"\",'MHP Family Income & Rent Limits'!$B$3)","v":""},{"$f":"IF(A25=\"\",\"\",'MHP Family Income & Rent Limits'!$J$3)","v":""},{"$f":"IF(A25=\"\",\"\",'MHP Family Income & Rent Limits'!$E$4)","v":""},{"$f":"IF(A25=\"\",\"\",'MHP Family Income & Rent Limits'!$C$7)","v":""},{"$f":"IF(A25=\"\",\"\",'MHP Family Income & Rent Limits'!$F$8)","v":""},{"$f":"IF(A25=\"\",\"\",'1. Checklist & Certification'!$G$4)","v":""},{"$f":"IF(A25=\"\",\"\",'1. Checklist & Certification'!$K$39)","v":""},{"$f":"IF(A25=\"\",\"\",'1. Checklist & Certification'!$K$43)","v":""},{"$f":"IF(A25=\"\",\"\",'1. Checklist & Certification'!$K$45)","v":""},{"$f":"IF(A25=\"\",\"\",'1. Checklist & Certification'!$K$49)","v":""},{"$f":"IF(A25=\"\",\"\",'1. Checklist & Certification'!$E$66)","v":""},{"$f":"IF(A25=\"\",\"\",'1. Checklist & Certification'!$E$67)","v":""},{"$f":"IF(A25=\"\",\"\",'1. Checklist & Certification'!$E$68)","v":""},{"$f":"IF(A25=\"\",\"\",'1. Checklist & Certification'!$G$66)","v":""},{"$f":"IF(A25=\"\",\"\",'1. Checklist & Certification'!$H$66)","v":""},{"$f":"IF(A25=\"\",\"\",'1. Checklist & Certification'!$I$66)","v":""},{"$f":"IF(A25=\"\",\"\",'1. Checklist & Certification'!$I$67)","v":""},{"$f":"IF(A25=\"\",\"\",'1. Checklist & Certification'!$I$68)","v":""},null,{"$f":"IF(C25=\"\",\"\",HLOOKUP(C25,'MHP Family Income & Rent Limits'!$E$12:$L$26,2,FALSE))","v":""},{"$f":"IF(C25=\"\",\"\",HLOOKUP(C25,'MHP Family Income & Rent Limits'!$E$12:$L$26,3,FALSE))","v":""},{"$f":"IF(C25=\"\",\"\",HLOOKUP(C25,'MHP Family Income & Rent Limits'!$E$12:$L$26,4,FALSE))","v":""},{"$f":"IF(C25=\"\",\"\",HLOOKUP(C25,'MHP Family Income & Rent Limits'!$E$12:$L$26,5,FALSE))","v":""},{"$f":"IF(C25=\"\",\"\",HLOOKUP(C25,'MHP Family Income & Rent Limits'!$E$12:$L$26,6,FALSE))","v":""},{"$f":"IF(C25=\"\",\"\",HLOOKUP(C25,'MHP Family Income & Rent Limits'!$E$12:$L$26,7,FALSE))","v":""},{"$f":"IF(C25=\"\",\"\",HLOOKUP(C25,'MHP Family Income & Rent Limits'!$E$12:$L$26,8,FALSE))","v":""},{"$f":"IF(C25=\"\",\"\",HLOOKUP(C25,'MHP Family Income & Rent Limits'!$E$12:$L$26,9,FALSE))","v":""},{"$f":"IF(C25=\"\",\"\",HLOOKUP(C25,'MHP Family Income & Rent Limits'!$E$12:$L$26,10,FALSE))","v":""},{"$f":"IF(C25=\"\",\"\",HLOOKUP(C25,'MHP Family Income & Rent Limits'!$E$12:$L$26,11,FALSE))","v":""},{"$f":"IF(C25=\"\",\"\",HLOOKUP(C25,'MHP Family Income & Rent Limits'!$E$12:$L$26,12,FALSE))","v":""},{"$f":"IF(C25=\"\",\"\",HLOOKUP(C25,'MHP Family Income & Rent Limits'!$E$12:$L$26,13,FALSE))","v":""},{"$f":"IF(C25=\"\",\"\",HLOOKUP(C25,'MHP Family Income & Rent Limits'!$E$12:$L$26,14,FALSE))","v":""},{"$f":"IF(C25=\"\",\"\",HLOOKUP(C25,'MHP Family Income & Rent Limits'!$E$12:$L$26,15,FALSE))","v":""}]
[{"$f":"IF('2. Assisted & Restricted Units'!A26=\"\",\"\",'2. Assisted & Restricted Units'!A26)","v":""},{"$f":"IF('2. Assisted & Restricted Units'!B26=\"\",\"\",'2. Assisted & Restricted Units'!B26)","v":""},{"$f":"IF('2. Assisted & Restricted Units'!D26=\"\",\"\",'2. Assisted & Restricted Units'!D26)","v":""},{"$f":"IF('2. Assisted & Restricted Units'!E26=\"\",\"\",'2. Assisted & Restricted Units'!E26)","v":""},{"$f":"IF('2. Assisted & Restricted Units'!H26=\"\",\"\",'2. Assisted & Restricted Units'!H26)","v":""},{"$f":"_xlfn.IFS(E26=\"\",\"\",E26>BO26,$BP$6,E26>BN26,$BO$6,E26>BM26,$BN$6,E26>BL26,$BM$6,E26>BK26,$BL$6,E26>BJ26,$BK$6,E26>BI26,$BJ$6,E26>BH26,$BI$6,E26>BG26,$BH$6,E26>BF26,$BG$6,E26>BE26,$BF$6,E26>BD26,$BE$6,E26>BC26,$BD$6,E26>=0,$BC$6)","v":""},{"$f":"IF('2. Assisted & Restricted Units'!T26=\"\",\"\",'2. Assisted & Restricted Units'!T26)","v":""},{"$f":"IF('2. Assisted & Restricted Units'!I26=\"\",\"\",'2. Assisted & Restricted Units'!I26)","v":""},{"$f":"IF('2. Assisted & Restricted Units'!AP26=\"\",\"\",'2. Assisted & Restricted Units'!AP26)","v":0},{"$f":"IF('2. Assisted & Restricted Units'!AT26=\"\",\"\",'2. Assisted & Restricted Units'!AT26)","v":""},0,{"$f":"IF('2. Assisted & Restricted Units'!AV26=\"\",\"\",'2. Assisted & Restricted Units'!AV26)","v":""},{"$f":"IF('2. Assisted & Restricted Units'!L26=\"\",\"\",'2. Assisted & Restricted Units'!L26)","v":""},{"$f":"IF('2. Assisted & Restricted Units'!M26=\"\",\"\",'2. Assisted & Restricted Units'!M26)","v":""},{"$f":"IF('2. Assisted & Restricted Units'!O26=\"\",\"\",'2. Assisted & Restricted Units'!O26)","v":""},{"$f":"IF('2. Assisted & Restricted Units'!P26=\"\",\"\",'2. Assisted & Restricted Units'!P26)","v":""},{"$f":"IF('2. Assisted & Restricted Units'!Q26=\"\",\"\",'2. Assisted & Restricted Units'!Q26)","v":""},{"$f":"IF('2. Assisted & Restricted Units'!R26=\"\",\"\",'2. Assisted & Restricted Units'!R26)","v":""},{"$f":"IF(A26=\"\",\"\",'1. Checklist & Certification'!$K$1)","v":""},{"$f":"IF(A26=\"\",\"\",'1. Checklist & Certification'!$C$62)","v":""},{"$f":"IF(A26=\"\",\"\",'1. Checklist & Certification'!$K$62)","v":""},{"$f":"IF(A26=\"\",\"\",'1. Checklist & Certification'!$C$6)","v":""},{"$f":"IF(A26=\"\",\"\",'1. Checklist & Certification'!$G$4)","v":""},{"$f":"IF(A26=\"\",\"\",'1. Checklist & Certification'!$C$7)","v":""},{"$f":"IF(A26=\"\",\"\",'1. Checklist & Certification'!$C$8)","v":""},{"$f":"IF(A26=\"\",\"\",'1. Checklist & Certification'!$F$7)","v":""},{"$f":"IF(A26=\"\",\"\",'1. Checklist & Certification'!$F$8)","v":""},{"$f":"IF(A26=\"\",\"\",'1. Checklist & Certification'!$B$9)","v":""},{"$f":"IF(A26=\"\",\"\",'1. Checklist & Certification'!$F$9)","v":""},{"$f":"IF(A26=\"\",\"\",'1. Checklist & Certification'!$C$10)","v":""},{"$f":"IF(A26=\"\",\"\",'1. Checklist & Certification'!$C$11)","v":""},{"$f":"IF(A26=\"\",\"\",'1. Checklist & Certification'!$C$12)","v":""},{"$f":"IF(A26=\"\",\"\",'1. Checklist & Certification'!$B$14)","v":""},{"$f":"IF(A26=\"\",\"\",'1. Checklist & Certification'!$E$14)","v":""},{"$f":"IF(B26=\"\",\"\",'1. Checklist & Certification'!$G$14)","v":""},{"$f":"IF(A26=\"\",\"\",'MHP Family Income & Rent Limits'!$B$3)","v":""},{"$f":"IF(A26=\"\",\"\",'MHP Family Income & Rent Limits'!$J$3)","v":""},{"$f":"IF(A26=\"\",\"\",'MHP Family Income & Rent Limits'!$E$4)","v":""},{"$f":"IF(A26=\"\",\"\",'MHP Family Income & Rent Limits'!$C$7)","v":""},{"$f":"IF(A26=\"\",\"\",'MHP Family Income & Rent Limits'!$F$8)","v":""},{"$f":"IF(A26=\"\",\"\",'1. Checklist & Certification'!$G$4)","v":""},{"$f":"IF(A26=\"\",\"\",'1. Checklist & Certification'!$K$39)","v":""},{"$f":"IF(A26=\"\",\"\",'1. Checklist & Certification'!$K$43)","v":""},{"$f":"IF(A26=\"\",\"\",'1. Checklist & Certification'!$K$45)","v":""},{"$f":"IF(A26=\"\",\"\",'1. Checklist & Certification'!$K$49)","v":""},{"$f":"IF(A26=\"\",\"\",'1. Checklist & Certification'!$E$66)","v":""},{"$f":"IF(A26=\"\",\"\",'1. Checklist & Certification'!$E$67)","v":""},{"$f":"IF(A26=\"\",\"\",'1. Checklist & Certification'!$E$68)","v":""},{"$f":"IF(A26=\"\",\"\",'1. Checklist & Certification'!$G$66)","v":""},{"$f":"IF(A26=\"\",\"\",'1. Checklist & Certification'!$H$66)","v":""},{"$f":"IF(A26=\"\",\"\",'1. Checklist & Certification'!$I$66)","v":""},{"$f":"IF(A26=\"\",\"\",'1. Checklist & Certification'!$I$67)","v":""},{"$f":"IF(A26=\"\",\"\",'1. Checklist & Certification'!$I$68)","v":""},null,{"$f":"IF(C26=\"\",\"\",HLOOKUP(C26,'MHP Family Income & Rent Limits'!$E$12:$L$26,2,FALSE))","v":""},{"$f":"IF(C26=\"\",\"\",HLOOKUP(C26,'MHP Family Income & Rent Limits'!$E$12:$L$26,3,FALSE))","v":""},{"$f":"IF(C26=\"\",\"\",HLOOKUP(C26,'MHP Family Income & Rent Limits'!$E$12:$L$26,4,FALSE))","v":""},{"$f":"IF(C26=\"\",\"\",HLOOKUP(C26,'MHP Family Income & Rent Limits'!$E$12:$L$26,5,FALSE))","v":""},{"$f":"IF(C26=\"\",\"\",HLOOKUP(C26,'MHP Family Income & Rent Limits'!$E$12:$L$26,6,FALSE))","v":""},{"$f":"IF(C26=\"\",\"\",HLOOKUP(C26,'MHP Family Income & Rent Limits'!$E$12:$L$26,7,FALSE))","v":""},{"$f":"IF(C26=\"\",\"\",HLOOKUP(C26,'MHP Family Income & Rent Limits'!$E$12:$L$26,8,FALSE))","v":""},{"$f":"IF(C26=\"\",\"\",HLOOKUP(C26,'MHP Family Income & Rent Limits'!$E$12:$L$26,9,FALSE))","v":""},{"$f":"IF(C26=\"\",\"\",HLOOKUP(C26,'MHP Family Income & Rent Limits'!$E$12:$L$26,10,FALSE))","v":""},{"$f":"IF(C26=\"\",\"\",HLOOKUP(C26,'MHP Family Income & Rent Limits'!$E$12:$L$26,11,FALSE))","v":""},{"$f":"IF(C26=\"\",\"\",HLOOKUP(C26,'MHP Family Income & Rent Limits'!$E$12:$L$26,12,FALSE))","v":""},{"$f":"IF(C26=\"\",\"\",HLOOKUP(C26,'MHP Family Income & Rent Limits'!$E$12:$L$26,13,FALSE))","v":""},{"$f":"IF(C26=\"\",\"\",HLOOKUP(C26,'MHP Family Income & Rent Limits'!$E$12:$L$26,14,FALSE))","v":""},{"$f":"IF(C26=\"\",\"\",HLOOKUP(C26,'MHP Family Income & Rent Limits'!$E$12:$L$26,15,FALSE))","v":""}]
[{"$f":"IF('2. Assisted & Restricted Units'!A27=\"\",\"\",'2. Assisted & Restricted Units'!A27)","v":""},{"$f":"IF('2. Assisted & Restricted Units'!B27=\"\",\"\",'2. Assisted & Restricted Units'!B27)","v":""},{"$f":"IF('2. Assisted & Restricted Units'!D27=\"\",\"\",'2. Assisted & Restricted Units'!D27)","v":""},{"$f":"IF('2. Assisted & Restricted Units'!E27=\"\",\"\",'2. Assisted & Restricted Units'!E27)","v":""},{"$f":"IF('2. Assisted & Restricted Units'!H27=\"\",\"\",'2. Assisted & Restricted Units'!H27)","v":""},{"$f":"_xlfn.IFS(E27=\"\",\"\",E27>BO27,$BP$6,E27>BN27,$BO$6,E27>BM27,$BN$6,E27>BL27,$BM$6,E27>BK27,$BL$6,E27>BJ27,$BK$6,E27>BI27,$BJ$6,E27>BH27,$BI$6,E27>BG27,$BH$6,E27>BF27,$BG$6,E27>BE27,$BF$6,E27>BD27,$BE$6,E27>BC27,$BD$6,E27>=0,$BC$6)","v":""},{"$f":"IF('2. Assisted & Restricted Units'!T27=\"\",\"\",'2. Assisted & Restricted Units'!T27)","v":""},{"$f":"IF('2. Assisted & Restricted Units'!I27=\"\",\"\",'2. Assisted & Restricted Units'!I27)","v":""},{"$f":"IF('2. Assisted & Restricted Units'!AP27=\"\",\"\",'2. Assisted & Restricted Units'!AP27)","v":0},{"$f":"IF('2. Assisted & Restricted Units'!AT27=\"\",\"\",'2. Assisted & Restricted Units'!AT27)","v":""},0,{"$f":"IF('2. Assisted & Restricted Units'!AV27=\"\",\"\",'2. Assisted & Restricted Units'!AV27)","v":""},{"$f":"IF('2. Assisted & Restricted Units'!L27=\"\",\"\",'2. Assisted & Restricted Units'!L27)","v":""},{"$f":"IF('2. Assisted & Restricted Units'!M27=\"\",\"\",'2. Assisted & Restricted Units'!M27)","v":""},{"$f":"IF('2. Assisted & Restricted Units'!O27=\"\",\"\",'2. Assisted & Restricted Units'!O27)","v":""},{"$f":"IF('2. Assisted & Restricted Units'!P27=\"\",\"\",'2. Assisted & Restricted Units'!P27)","v":""},{"$f":"IF('2. Assisted & Restricted Units'!Q27=\"\",\"\",'2. Assisted & Restricted Units'!Q27)","v":""},{"$f":"IF('2. Assisted & Restricted Units'!R27=\"\",\"\",'2. Assisted & Restricted Units'!R27)","v":""},{"$f":"IF(A27=\"\",\"\",'1. Checklist & Certification'!$K$1)","v":""},{"$f":"IF(A27=\"\",\"\",'1. Checklist & Certification'!$C$62)","v":""},{"$f":"IF(A27=\"\",\"\",'1. Checklist & Certification'!$K$62)","v":""},{"$f":"IF(A27=\"\",\"\",'1. Checklist & Certification'!$C$6)","v":""},{"$f":"IF(A27=\"\",\"\",'1. Checklist & Certification'!$G$4)","v":""},{"$f":"IF(A27=\"\",\"\",'1. Checklist & Certification'!$C$7)","v":""},{"$f":"IF(A27=\"\",\"\",'1. Checklist & Certification'!$C$8)","v":""},{"$f":"IF(A27=\"\",\"\",'1. Checklist & Certification'!$F$7)","v":""},{"$f":"IF(A27=\"\",\"\",'1. Checklist & Certification'!$F$8)","v":""},{"$f":"IF(A27=\"\",\"\",'1. Checklist & Certification'!$B$9)","v":""},{"$f":"IF(A27=\"\",\"\",'1. Checklist & Certification'!$F$9)","v":""},{"$f":"IF(A27=\"\",\"\",'1. Checklist & Certification'!$C$10)","v":""},{"$f":"IF(A27=\"\",\"\",'1. Checklist & Certification'!$C$11)","v":""},{"$f":"IF(A27=\"\",\"\",'1. Checklist & Certification'!$C$12)","v":""},{"$f":"IF(A27=\"\",\"\",'1. Checklist & Certification'!$B$14)","v":""},{"$f":"IF(A27=\"\",\"\",'1. Checklist & Certification'!$E$14)","v":""},{"$f":"IF(B27=\"\",\"\",'1. Checklist & Certification'!$G$14)","v":""},{"$f":"IF(A27=\"\",\"\",'MHP Family Income & Rent Limits'!$B$3)","v":""},{"$f":"IF(A27=\"\",\"\",'MHP Family Income & Rent Limits'!$J$3)","v":""},{"$f":"IF(A27=\"\",\"\",'MHP Family Income & Rent Limits'!$E$4)","v":""},{"$f":"IF(A27=\"\",\"\",'MHP Family Income & Rent Limits'!$C$7)","v":""},{"$f":"IF(A27=\"\",\"\",'MHP Family Income & Rent Limits'!$F$8)","v":""},{"$f":"IF(A27=\"\",\"\",'1. Checklist & Certification'!$G$4)","v":""},{"$f":"IF(A27=\"\",\"\",'1. Checklist & Certification'!$K$39)","v":""},{"$f":"IF(A27=\"\",\"\",'1. Checklist & Certification'!$K$43)","v":""},{"$f":"IF(A27=\"\",\"\",'1. Checklist & Certification'!$K$45)","v":""},{"$f":"IF(A27=\"\",\"\",'1. Checklist & Certification'!$K$49)","v":""},{"$f":"IF(A27=\"\",\"\",'1. Checklist & Certification'!$E$66)","v":""},{"$f":"IF(A27=\"\",\"\",'1. Checklist & Certification'!$E$67)","v":""},{"$f":"IF(A27=\"\",\"\",'1. Checklist & Certification'!$E$68)","v":""},{"$f":"IF(A27=\"\",\"\",'1. Checklist & Certification'!$G$66)","v":""},{"$f":"IF(A27=\"\",\"\",'1. Checklist & Certification'!$H$66)","v":""},{"$f":"IF(A27=\"\",\"\",'1. Checklist & Certification'!$I$66)","v":""},{"$f":"IF(A27=\"\",\"\",'1. Checklist & Certification'!$I$67)","v":""},{"$f":"IF(A27=\"\",\"\",'1. Checklist & Certification'!$I$68)","v":""},null,{"$f":"IF(C27=\"\",\"\",HLOOKUP(C27,'MHP Family Income & Rent Limits'!$E$12:$L$26,2,FALSE))","v":""},{"$f":"IF(C27=\"\",\"\",HLOOKUP(C27,'MHP Family Income & Rent Limits'!$E$12:$L$26,3,FALSE))","v":""},{"$f":"IF(C27=\"\",\"\",HLOOKUP(C27,'MHP Family Income & Rent Limits'!$E$12:$L$26,4,FALSE))","v":""},{"$f":"IF(C27=\"\",\"\",HLOOKUP(C27,'MHP Family Income & Rent Limits'!$E$12:$L$26,5,FALSE))","v":""},{"$f":"IF(C27=\"\",\"\",HLOOKUP(C27,'MHP Family Income & Rent Limits'!$E$12:$L$26,6,FALSE))","v":""},{"$f":"IF(C27=\"\",\"\",HLOOKUP(C27,'MHP Family Income & Rent Limits'!$E$12:$L$26,7,FALSE))","v":""},{"$f":"IF(C27=\"\",\"\",HLOOKUP(C27,'MHP Family Income & Rent Limits'!$E$12:$L$26,8,FALSE))","v":""},{"$f":"IF(C27=\"\",\"\",HLOOKUP(C27,'MHP Family Income & Rent Limits'!$E$12:$L$26,9,FALSE))","v":""},{"$f":"IF(C27=\"\",\"\",HLOOKUP(C27,'MHP Family Income & Rent Limits'!$E$12:$L$26,10,FALSE))","v":""},{"$f":"IF(C27=\"\",\"\",HLOOKUP(C27,'MHP Family Income & Rent Limits'!$E$12:$L$26,11,FALSE))","v":""},{"$f":"IF(C27=\"\",\"\",HLOOKUP(C27,'MHP Family Income & Rent Limits'!$E$12:$L$26,12,FALSE))","v":""},{"$f":"IF(C27=\"\",\"\",HLOOKUP(C27,'MHP Family Income & Rent Limits'!$E$12:$L$26,13,FALSE))","v":""},{"$f":"IF(C27=\"\",\"\",HLOOKUP(C27,'MHP Family Income & Rent Limits'!$E$12:$L$26,14,FALSE))","v":""},{"$f":"IF(C27=\"\",\"\",HLOOKUP(C27,'MHP Family Income & Rent Limits'!$E$12:$L$26,15,FALSE))","v":""}]
[{"$f":"IF('2. Assisted & Restricted Units'!A28=\"\",\"\",'2. Assisted & Restricted Units'!A28)","v":""},{"$f":"IF('2. Assisted & Restricted Units'!B28=\"\",\"\",'2. Assisted & Restricted Units'!B28)","v":""},{"$f":"IF('2. Assisted & Restricted Units'!D28=\"\",\"\",'2. Assisted & Restricted Units'!D28)","v":""},{"$f":"IF('2. Assisted & Restricted Units'!E28=\"\",\"\",'2. Assisted & Restricted Units'!E28)","v":""},{"$f":"IF('2. Assisted & Restricted Units'!H28=\"\",\"\",'2. Assisted & Restricted Units'!H28)","v":""},{"$f":"_xlfn.IFS(E28=\"\",\"\",E28>BO28,$BP$6,E28>BN28,$BO$6,E28>BM28,$BN$6,E28>BL28,$BM$6,E28>BK28,$BL$6,E28>BJ28,$BK$6,E28>BI28,$BJ$6,E28>BH28,$BI$6,E28>BG28,$BH$6,E28>BF28,$BG$6,E28>BE28,$BF$6,E28>BD28,$BE$6,E28>BC28,$BD$6,E28>=0,$BC$6)","v":""},{"$f":"IF('2. Assisted & Restricted Units'!T28=\"\",\"\",'2. Assisted & Restricted Units'!T28)","v":""},{"$f":"IF('2. Assisted & Restricted Units'!I28=\"\",\"\",'2. Assisted & Restricted Units'!I28)","v":""},{"$f":"IF('2. Assisted & Restricted Units'!AP28=\"\",\"\",'2. Assisted & Restricted Units'!AP28)","v":0},{"$f":"IF('2. Assisted & Restricted Units'!AT28=\"\",\"\",'2. Assisted & Restricted Units'!AT28)","v":""},0,{"$f":"IF('2. Assisted & Restricted Units'!AV28=\"\",\"\",'2. Assisted & Restricted Units'!AV28)","v":""},{"$f":"IF('2. Assisted & Restricted Units'!L28=\"\",\"\",'2. Assisted & Restricted Units'!L28)","v":""},{"$f":"IF('2. Assisted & Restricted Units'!M28=\"\",\"\",'2. Assisted & Restricted Units'!M28)","v":""},{"$f":"IF('2. Assisted & Restricted Units'!O28=\"\",\"\",'2. Assisted & Restricted Units'!O28)","v":""},{"$f":"IF('2. Assisted & Restricted Units'!P28=\"\",\"\",'2. Assisted & Restricted Units'!P28)","v":""},{"$f":"IF('2. Assisted & Restricted Units'!Q28=\"\",\"\",'2. Assisted & Restricted Units'!Q28)","v":""},{"$f":"IF('2. Assisted & Restricted Units'!R28=\"\",\"\",'2. Assisted & Restricted Units'!R28)","v":""},{"$f":"IF(A28=\"\",\"\",'1. Checklist & Certification'!$K$1)","v":""},{"$f":"IF(A28=\"\",\"\",'1. Checklist & Certification'!$C$62)","v":""},{"$f":"IF(A28=\"\",\"\",'1. Checklist & Certification'!$K$62)","v":""},{"$f":"IF(A28=\"\",\"\",'1. Checklist & Certification'!$C$6)","v":""},{"$f":"IF(A28=\"\",\"\",'1. Checklist & Certification'!$G$4)","v":""},{"$f":"IF(A28=\"\",\"\",'1. Checklist & Certification'!$C$7)","v":""},{"$f":"IF(A28=\"\",\"\",'1. Checklist & Certification'!$C$8)","v":""},{"$f":"IF(A28=\"\",\"\",'1. Checklist & Certification'!$F$7)","v":""},{"$f":"IF(A28=\"\",\"\",'1. Checklist & Certification'!$F$8)","v":""},{"$f":"IF(A28=\"\",\"\",'1. Checklist & Certification'!$B$9)","v":""},{"$f":"IF(A28=\"\",\"\",'1. Checklist & Certification'!$F$9)","v":""},{"$f":"IF(A28=\"\",\"\",'1. Checklist & Certification'!$C$10)","v":""},{"$f":"IF(A28=\"\",\"\",'1. Checklist & Certification'!$C$11)","v":""},{"$f":"IF(A28=\"\",\"\",'1. Checklist & Certification'!$C$12)","v":""},{"$f":"IF(A28=\"\",\"\",'1. Checklist & Certification'!$B$14)","v":""},{"$f":"IF(A28=\"\",\"\",'1. Checklist & Certification'!$E$14)","v":""},{"$f":"IF(B28=\"\",\"\",'1. Checklist & Certification'!$G$14)","v":""},{"$f":"IF(A28=\"\",\"\",'MHP Family Income & Rent Limits'!$B$3)","v":""},{"$f":"IF(A28=\"\",\"\",'MHP Family Income & Rent Limits'!$J$3)","v":""},{"$f":"IF(A28=\"\",\"\",'MHP Family Income & Rent Limits'!$E$4)","v":""},{"$f":"IF(A28=\"\",\"\",'MHP Family Income & Rent Limits'!$C$7)","v":""},{"$f":"IF(A28=\"\",\"\",'MHP Family Income & Rent Limits'!$F$8)","v":""},{"$f":"IF(A28=\"\",\"\",'1. Checklist & Certification'!$G$4)","v":""},{"$f":"IF(A28=\"\",\"\",'1. Checklist & Certification'!$K$39)","v":""},{"$f":"IF(A28=\"\",\"\",'1. Checklist & Certification'!$K$43)","v":""},{"$f":"IF(A28=\"\",\"\",'1. Checklist & Certification'!$K$45)","v":""},{"$f":"IF(A28=\"\",\"\",'1. Checklist & Certification'!$K$49)","v":""},{"$f":"IF(A28=\"\",\"\",'1. Checklist & Certification'!$E$66)","v":""},{"$f":"IF(A28=\"\",\"\",'1. Checklist & Certification'!$E$67)","v":""},{"$f":"IF(A28=\"\",\"\",'1. Checklist & Certification'!$E$68)","v":""},{"$f":"IF(A28=\"\",\"\",'1. Checklist & Certification'!$G$66)","v":""},{"$f":"IF(A28=\"\",\"\",'1. Checklist & Certification'!$H$66)","v":""},{"$f":"IF(A28=\"\",\"\",'1. Checklist & Certification'!$I$66)","v":""},{"$f":"IF(A28=\"\",\"\",'1. Checklist & Certification'!$I$67)","v":""},{"$f":"IF(A28=\"\",\"\",'1. Checklist & Certification'!$I$68)","v":""},null,{"$f":"IF(C28=\"\",\"\",HLOOKUP(C28,'MHP Family Income & Rent Limits'!$E$12:$L$26,2,FALSE))","v":""},{"$f":"IF(C28=\"\",\"\",HLOOKUP(C28,'MHP Family Income & Rent Limits'!$E$12:$L$26,3,FALSE))","v":""},{"$f":"IF(C28=\"\",\"\",HLOOKUP(C28,'MHP Family Income & Rent Limits'!$E$12:$L$26,4,FALSE))","v":""},{"$f":"IF(C28=\"\",\"\",HLOOKUP(C28,'MHP Family Income & Rent Limits'!$E$12:$L$26,5,FALSE))","v":""},{"$f":"IF(C28=\"\",\"\",HLOOKUP(C28,'MHP Family Income & Rent Limits'!$E$12:$L$26,6,FALSE))","v":""},{"$f":"IF(C28=\"\",\"\",HLOOKUP(C28,'MHP Family Income & Rent Limits'!$E$12:$L$26,7,FALSE))","v":""},{"$f":"IF(C28=\"\",\"\",HLOOKUP(C28,'MHP Family Income & Rent Limits'!$E$12:$L$26,8,FALSE))","v":""},{"$f":"IF(C28=\"\",\"\",HLOOKUP(C28,'MHP Family Income & Rent Limits'!$E$12:$L$26,9,FALSE))","v":""},{"$f":"IF(C28=\"\",\"\",HLOOKUP(C28,'MHP Family Income & Rent Limits'!$E$12:$L$26,10,FALSE))","v":""},{"$f":"IF(C28=\"\",\"\",HLOOKUP(C28,'MHP Family Income & Rent Limits'!$E$12:$L$26,11,FALSE))","v":""},{"$f":"IF(C28=\"\",\"\",HLOOKUP(C28,'MHP Family Income & Rent Limits'!$E$12:$L$26,12,FALSE))","v":""},{"$f":"IF(C28=\"\",\"\",HLOOKUP(C28,'MHP Family Income & Rent Limits'!$E$12:$L$26,13,FALSE))","v":""},{"$f":"IF(C28=\"\",\"\",HLOOKUP(C28,'MHP Family Income & Rent Limits'!$E$12:$L$26,14,FALSE))","v":""},{"$f":"IF(C28=\"\",\"\",HLOOKUP(C28,'MHP Family Income & Rent Limits'!$E$12:$L$26,15,FALSE))","v":""}]
[{"$f":"IF('2. Assisted & Restricted Units'!A29=\"\",\"\",'2. Assisted & Restricted Units'!A29)","v":""},{"$f":"IF('2. Assisted & Restricted Units'!B29=\"\",\"\",'2. Assisted & Restricted Units'!B29)","v":""},{"$f":"IF('2. Assisted & Restricted Units'!D29=\"\",\"\",'2. Assisted & Restricted Units'!D29)","v":""},{"$f":"IF('2. Assisted & Restricted Units'!E29=\"\",\"\",'2. Assisted & Restricted Units'!E29)","v":""},{"$f":"IF('2. Assisted & Restricted Units'!H29=\"\",\"\",'2. Assisted & Restricted Units'!H29)","v":""},{"$f":"_xlfn.IFS(E29=\"\",\"\",E29>BO29,$BP$6,E29>BN29,$BO$6,E29>BM29,$BN$6,E29>BL29,$BM$6,E29>BK29,$BL$6,E29>BJ29,$BK$6,E29>BI29,$BJ$6,E29>BH29,$BI$6,E29>BG29,$BH$6,E29>BF29,$BG$6,E29>BE29,$BF$6,E29>BD29,$BE$6,E29>BC29,$BD$6,E29>=0,$BC$6)","v":""},{"$f":"IF('2. Assisted & Restricted Units'!T29=\"\",\"\",'2. Assisted & Restricted Units'!T29)","v":""},{"$f":"IF('2. Assisted & Restricted Units'!I29=\"\",\"\",'2. Assisted & Restricted Units'!I29)","v":""},{"$f":"IF('2. Assisted & Restricted Units'!AP29=\"\",\"\",'2. Assisted & Restricted Units'!AP29)","v":0},{"$f":"IF('2. Assisted & Restricted Units'!AT29=\"\",\"\",'2. Assisted & Restricted Units'!AT29)","v":""},0,{"$f":"IF('2. Assisted & Restricted Units'!AV29=\"\",\"\",'2. Assisted & Restricted Units'!AV29)","v":""},{"$f":"IF('2. Assisted & Restricted Units'!L29=\"\",\"\",'2. Assisted & Restricted Units'!L29)","v":""},{"$f":"IF('2. Assisted & Restricted Units'!M29=\"\",\"\",'2. Assisted & Restricted Units'!M29)","v":""},{"$f":"IF('2. Assisted & Restricted Units'!O29=\"\",\"\",'2. Assisted & Restricted Units'!O29)","v":""},{"$f":"IF('2. Assisted & Restricted Units'!P29=\"\",\"\",'2. Assisted & Restricted Units'!P29)","v":""},{"$f":"IF('2. Assisted & Restricted Units'!Q29=\"\",\"\",'2. Assisted & Restricted Units'!Q29)","v":""},{"$f":"IF('2. Assisted & Restricted Units'!R29=\"\",\"\",'2. Assisted & Restricted Units'!R29)","v":""},{"$f":"IF(A29=\"\",\"\",'1. Checklist & Certification'!$K$1)","v":""},{"$f":"IF(A29=\"\",\"\",'1. Checklist & Certification'!$C$62)","v":""},{"$f":"IF(A29=\"\",\"\",'1. Checklist & Certification'!$K$62)","v":""},{"$f":"IF(A29=\"\",\"\",'1. Checklist & Certification'!$C$6)","v":""},{"$f":"IF(A29=\"\",\"\",'1. Checklist & Certification'!$G$4)","v":""},{"$f":"IF(A29=\"\",\"\",'1. Checklist & Certification'!$C$7)","v":""},{"$f":"IF(A29=\"\",\"\",'1. Checklist & Certification'!$C$8)","v":""},{"$f":"IF(A29=\"\",\"\",'1. Checklist & Certification'!$F$7)","v":""},{"$f":"IF(A29=\"\",\"\",'1. Checklist & Certification'!$F$8)","v":""},{"$f":"IF(A29=\"\",\"\",'1. Checklist & Certification'!$B$9)","v":""},{"$f":"IF(A29=\"\",\"\",'1. Checklist & Certification'!$F$9)","v":""},{"$f":"IF(A29=\"\",\"\",'1. Checklist & Certification'!$C$10)","v":""},{"$f":"IF(A29=\"\",\"\",'1. Checklist & Certification'!$C$11)","v":""},{"$f":"IF(A29=\"\",\"\",'1. Checklist & Certification'!$C$12)","v":""},{"$f":"IF(A29=\"\",\"\",'1. Checklist & Certification'!$B$14)","v":""},{"$f":"IF(A29=\"\",\"\",'1. Checklist & Certification'!$E$14)","v":""},{"$f":"IF(B29=\"\",\"\",'1. Checklist & Certification'!$G$14)","v":""},{"$f":"IF(A29=\"\",\"\",'MHP Family Income & Rent Limits'!$B$3)","v":""},{"$f":"IF(A29=\"\",\"\",'MHP Family Income & Rent Limits'!$J$3)","v":""},{"$f":"IF(A29=\"\",\"\",'MHP Family Income & Rent Limits'!$E$4)","v":""},{"$f":"IF(A29=\"\",\"\",'MHP Family Income & Rent Limits'!$C$7)","v":""},{"$f":"IF(A29=\"\",\"\",'MHP Family Income & Rent Limits'!$F$8)","v":""},{"$f":"IF(A29=\"\",\"\",'1. Checklist & Certification'!$G$4)","v":""},{"$f":"IF(A29=\"\",\"\",'1. Checklist & Certification'!$K$39)","v":""},{"$f":"IF(A29=\"\",\"\",'1. Checklist & Certification'!$K$43)","v":""},{"$f":"IF(A29=\"\",\"\",'1. Checklist & Certification'!$K$45)","v":""},{"$f":"IF(A29=\"\",\"\",'1. Checklist & Certification'!$K$49)","v":""},{"$f":"IF(A29=\"\",\"\",'1. Checklist & Certification'!$E$66)","v":""},{"$f":"IF(A29=\"\",\"\",'1. Checklist & Certification'!$E$67)","v":""},{"$f":"IF(A29=\"\",\"\",'1. Checklist & Certification'!$E$68)","v":""},{"$f":"IF(A29=\"\",\"\",'1. Checklist & Certification'!$G$66)","v":""},{"$f":"IF(A29=\"\",\"\",'1. Checklist & Certification'!$H$66)","v":""},{"$f":"IF(A29=\"\",\"\",'1. Checklist & Certification'!$I$66)","v":""},{"$f":"IF(A29=\"\",\"\",'1. Checklist & Certification'!$I$67)","v":""},{"$f":"IF(A29=\"\",\"\",'1. Checklist & Certification'!$I$68)","v":""},null,{"$f":"IF(C29=\"\",\"\",HLOOKUP(C29,'MHP Family Income & Rent Limits'!$E$12:$L$26,2,FALSE))","v":""},{"$f":"IF(C29=\"\",\"\",HLOOKUP(C29,'MHP Family Income & Rent Limits'!$E$12:$L$26,3,FALSE))","v":""},{"$f":"IF(C29=\"\",\"\",HLOOKUP(C29,'MHP Family Income & Rent Limits'!$E$12:$L$26,4,FALSE))","v":""},{"$f":"IF(C29=\"\",\"\",HLOOKUP(C29,'MHP Family Income & Rent Limits'!$E$12:$L$26,5,FALSE))","v":""},{"$f":"IF(C29=\"\",\"\",HLOOKUP(C29,'MHP Family Income & Rent Limits'!$E$12:$L$26,6,FALSE))","v":""},{"$f":"IF(C29=\"\",\"\",HLOOKUP(C29,'MHP Family Income & Rent Limits'!$E$12:$L$26,7,FALSE))","v":""},{"$f":"IF(C29=\"\",\"\",HLOOKUP(C29,'MHP Family Income & Rent Limits'!$E$12:$L$26,8,FALSE))","v":""},{"$f":"IF(C29=\"\",\"\",HLOOKUP(C29,'MHP Family Income & Rent Limits'!$E$12:$L$26,9,FALSE))","v":""},{"$f":"IF(C29=\"\",\"\",HLOOKUP(C29,'MHP Family Income & Rent Limits'!$E$12:$L$26,10,FALSE))","v":""},{"$f":"IF(C29=\"\",\"\",HLOOKUP(C29,'MHP Family Income & Rent Limits'!$E$12:$L$26,11,FALSE))","v":""},{"$f":"IF(C29=\"\",\"\",HLOOKUP(C29,'MHP Family Income & Rent Limits'!$E$12:$L$26,12,FALSE))","v":""},{"$f":"IF(C29=\"\",\"\",HLOOKUP(C29,'MHP Family Income & Rent Limits'!$E$12:$L$26,13,FALSE))","v":""},{"$f":"IF(C29=\"\",\"\",HLOOKUP(C29,'MHP Family Income & Rent Limits'!$E$12:$L$26,14,FALSE))","v":""},{"$f":"IF(C29=\"\",\"\",HLOOKUP(C29,'MHP Family Income & Rent Limits'!$E$12:$L$26,15,FALSE))","v":""}]
[{"$f":"IF('2. Assisted & Restricted Units'!A30=\"\",\"\",'2. Assisted & Restricted Units'!A30)","v":""},{"$f":"IF('2. Assisted & Restricted Units'!B30=\"\",\"\",'2. Assisted & Restricted Units'!B30)","v":""},{"$f":"IF('2. Assisted & Restricted Units'!D30=\"\",\"\",'2. Assisted & Restricted Units'!D30)","v":""},{"$f":"IF('2. Assisted & Restricted Units'!E30=\"\",\"\",'2. Assisted & Restricted Units'!E30)","v":""},{"$f":"IF('2. Assisted & Restricted Units'!H30=\"\",\"\",'2. Assisted & Restricted Units'!H30)","v":""},{"$f":"_xlfn.IFS(E30=\"\",\"\",E30>BO30,$BP$6,E30>BN30,$BO$6,E30>BM30,$BN$6,E30>BL30,$BM$6,E30>BK30,$BL$6,E30>BJ30,$BK$6,E30>BI30,$BJ$6,E30>BH30,$BI$6,E30>BG30,$BH$6,E30>BF30,$BG$6,E30>BE30,$BF$6,E30>BD30,$BE$6,E30>BC30,$BD$6,E30>=0,$BC$6)","v":""},{"$f":"IF('2. Assisted & Restricted Units'!T30=\"\",\"\",'2. Assisted & Restricted Units'!T30)","v":""},{"$f":"IF('2. Assisted & Restricted Units'!I30=\"\",\"\",'2. Assisted & Restricted Units'!I30)","v":""},{"$f":"IF('2. Assisted & Restricted Units'!AP30=\"\",\"\",'2. Assisted & Restricted Units'!AP30)","v":0},{"$f":"IF('2. Assisted & Restricted Units'!AT30=\"\",\"\",'2. Assisted & Restricted Units'!AT30)","v":""},0,{"$f":"IF('2. Assisted & Restricted Units'!AV30=\"\",\"\",'2. Assisted & Restricted Units'!AV30)","v":""},{"$f":"IF('2. Assisted & Restricted Units'!L30=\"\",\"\",'2. Assisted & Restricted Units'!L30)","v":""},{"$f":"IF('2. Assisted & Restricted Units'!M30=\"\",\"\",'2. Assisted & Restricted Units'!M30)","v":""},{"$f":"IF('2. Assisted & Restricted Units'!O30=\"\",\"\",'2. Assisted & Restricted Units'!O30)","v":""},{"$f":"IF('2. Assisted & Restricted Units'!P30=\"\",\"\",'2. Assisted & Restricted Units'!P30)","v":""},{"$f":"IF('2. Assisted & Restricted Units'!Q30=\"\",\"\",'2. Assisted & Restricted Units'!Q30)","v":""},{"$f":"IF('2. Assisted & Restricted Units'!R30=\"\",\"\",'2. Assisted & Restricted Units'!R30)","v":""},{"$f":"IF(A30=\"\",\"\",'1. Checklist & Certification'!$K$1)","v":""},{"$f":"IF(A30=\"\",\"\",'1. Checklist & Certification'!$C$62)","v":""},{"$f":"IF(A30=\"\",\"\",'1. Checklist & Certification'!$K$62)","v":""},{"$f":"IF(A30=\"\",\"\",'1. Checklist & Certification'!$C$6)","v":""},{"$f":"IF(A30=\"\",\"\",'1. Checklist & Certification'!$G$4)","v":""},{"$f":"IF(A30=\"\",\"\",'1. Checklist & Certification'!$C$7)","v":""},{"$f":"IF(A30=\"\",\"\",'1. Checklist & Certification'!$C$8)","v":""},{"$f":"IF(A30=\"\",\"\",'1. Checklist & Certification'!$F$7)","v":""},{"$f":"IF(A30=\"\",\"\",'1. Checklist & Certification'!$F$8)","v":""},{"$f":"IF(A30=\"\",\"\",'1. Checklist & Certification'!$B$9)","v":""},{"$f":"IF(A30=\"\",\"\",'1. Checklist & Certification'!$F$9)","v":""},{"$f":"IF(A30=\"\",\"\",'1. Checklist & Certification'!$C$10)","v":""},{"$f":"IF(A30=\"\",\"\",'1. Checklist & Certification'!$C$11)","v":""},{"$f":"IF(A30=\"\",\"\",'1. Checklist & Certification'!$C$12)","v":""},{"$f":"IF(A30=\"\",\"\",'1. Checklist & Certification'!$B$14)","v":""},{"$f":"IF(A30=\"\",\"\",'1. Checklist & Certification'!$E$14)","v":""},{"$f":"IF(B30=\"\",\"\",'1. Checklist & Certification'!$G$14)","v":""},{"$f":"IF(A30=\"\",\"\",'MHP Family Income & Rent Limits'!$B$3)","v":""},{"$f":"IF(A30=\"\",\"\",'MHP Family Income & Rent Limits'!$J$3)","v":""},{"$f":"IF(A30=\"\",\"\",'MHP Family Income & Rent Limits'!$E$4)","v":""},{"$f":"IF(A30=\"\",\"\",'MHP Family Income & Rent Limits'!$C$7)","v":""},{"$f":"IF(A30=\"\",\"\",'MHP Family Income & Rent Limits'!$F$8)","v":""},{"$f":"IF(A30=\"\",\"\",'1. Checklist & Certification'!$G$4)","v":""},{"$f":"IF(A30=\"\",\"\",'1. Checklist & Certification'!$K$39)","v":""},{"$f":"IF(A30=\"\",\"\",'1. Checklist & Certification'!$K$43)","v":""},{"$f":"IF(A30=\"\",\"\",'1. Checklist & Certification'!$K$45)","v":""},{"$f":"IF(A30=\"\",\"\",'1. Checklist & Certification'!$K$49)","v":""},{"$f":"IF(A30=\"\",\"\",'1. Checklist & Certification'!$E$66)","v":""},{"$f":"IF(A30=\"\",\"\",'1. Checklist & Certification'!$E$67)","v":""},{"$f":"IF(A30=\"\",\"\",'1. Checklist & Certification'!$E$68)","v":""},{"$f":"IF(A30=\"\",\"\",'1. Checklist & Certification'!$G$66)","v":""},{"$f":"IF(A30=\"\",\"\",'1. Checklist & Certification'!$H$66)","v":""},{"$f":"IF(A30=\"\",\"\",'1. Checklist & Certification'!$I$66)","v":""},{"$f":"IF(A30=\"\",\"\",'1. Checklist & Certification'!$I$67)","v":""},{"$f":"IF(A30=\"\",\"\",'1. Checklist & Certification'!$I$68)","v":""},null,{"$f":"IF(C30=\"\",\"\",HLOOKUP(C30,'MHP Family Income & Rent Limits'!$E$12:$L$26,2,FALSE))","v":""},{"$f":"IF(C30=\"\",\"\",HLOOKUP(C30,'MHP Family Income & Rent Limits'!$E$12:$L$26,3,FALSE))","v":""},{"$f":"IF(C30=\"\",\"\",HLOOKUP(C30,'MHP Family Income & Rent Limits'!$E$12:$L$26,4,FALSE))","v":""},{"$f":"IF(C30=\"\",\"\",HLOOKUP(C30,'MHP Family Income & Rent Limits'!$E$12:$L$26,5,FALSE))","v":""},{"$f":"IF(C30=\"\",\"\",HLOOKUP(C30,'MHP Family Income & Rent Limits'!$E$12:$L$26,6,FALSE))","v":""},{"$f":"IF(C30=\"\",\"\",HLOOKUP(C30,'MHP Family Income & Rent Limits'!$E$12:$L$26,7,FALSE))","v":""},{"$f":"IF(C30=\"\",\"\",HLOOKUP(C30,'MHP Family Income & Rent Limits'!$E$12:$L$26,8,FALSE))","v":""},{"$f":"IF(C30=\"\",\"\",HLOOKUP(C30,'MHP Family Income & Rent Limits'!$E$12:$L$26,9,FALSE))","v":""},{"$f":"IF(C30=\"\",\"\",HLOOKUP(C30,'MHP Family Income & Rent Limits'!$E$12:$L$26,10,FALSE))","v":""},{"$f":"IF(C30=\"\",\"\",HLOOKUP(C30,'MHP Family Income & Rent Limits'!$E$12:$L$26,11,FALSE))","v":""},{"$f":"IF(C30=\"\",\"\",HLOOKUP(C30,'MHP Family Income & Rent Limits'!$E$12:$L$26,12,FALSE))","v":""},{"$f":"IF(C30=\"\",\"\",HLOOKUP(C30,'MHP Family Income & Rent Limits'!$E$12:$L$26,13,FALSE))","v":""},{"$f":"IF(C30=\"\",\"\",HLOOKUP(C30,'MHP Family Income & Rent Limits'!$E$12:$L$26,14,FALSE))","v":""},{"$f":"IF(C30=\"\",\"\",HLOOKUP(C30,'MHP Family Income & Rent Limits'!$E$12:$L$26,15,FALSE))","v":""}]
[{"$f":"IF('2. Assisted & Restricted Units'!A31=\"\",\"\",'2. Assisted & Restricted Units'!A31)","v":""},{"$f":"IF('2. Assisted & Restricted Units'!B31=\"\",\"\",'2. Assisted & Restricted Units'!B31)","v":""},{"$f":"IF('2. Assisted & Restricted Units'!D31=\"\",\"\",'2. Assisted & Restricted Units'!D31)","v":""},{"$f":"IF('2. Assisted & Restricted Units'!E31=\"\",\"\",'2. Assisted & Restricted Units'!E31)","v":""},{"$f":"IF('2. Assisted & Restricted Units'!H31=\"\",\"\",'2. Assisted & Restricted Units'!H31)","v":""},{"$f":"_xlfn.IFS(E31=\"\",\"\",E31>BO31,$BP$6,E31>BN31,$BO$6,E31>BM31,$BN$6,E31>BL31,$BM$6,E31>BK31,$BL$6,E31>BJ31,$BK$6,E31>BI31,$BJ$6,E31>BH31,$BI$6,E31>BG31,$BH$6,E31>BF31,$BG$6,E31>BE31,$BF$6,E31>BD31,$BE$6,E31>BC31,$BD$6,E31>=0,$BC$6)","v":""},{"$f":"IF('2. Assisted & Restricted Units'!T31=\"\",\"\",'2. Assisted & Restricted Units'!T31)","v":""},{"$f":"IF('2. Assisted & Restricted Units'!I31=\"\",\"\",'2. Assisted & Restricted Units'!I31)","v":""},{"$f":"IF('2. Assisted & Restricted Units'!AP31=\"\",\"\",'2. Assisted & Restricted Units'!AP31)","v":0},{"$f":"IF('2. Assisted & Restricted Units'!AT31=\"\",\"\",'2. Assisted & Restricted Units'!AT31)","v":""},0,{"$f":"IF('2. Assisted & Restricted Units'!AV31=\"\",\"\",'2. Assisted & Restricted Units'!AV31)","v":""},{"$f":"IF('2. Assisted & Restricted Units'!L31=\"\",\"\",'2. Assisted & Restricted Units'!L31)","v":""},{"$f":"IF('2. Assisted & Restricted Units'!M31=\"\",\"\",'2. Assisted & Restricted Units'!M31)","v":""},{"$f":"IF('2. Assisted & Restricted Units'!O31=\"\",\"\",'2. Assisted & Restricted Units'!O31)","v":""},{"$f":"IF('2. Assisted & Restricted Units'!P31=\"\",\"\",'2. Assisted & Restricted Units'!P31)","v":""},{"$f":"IF('2. Assisted & Restricted Units'!Q31=\"\",\"\",'2. Assisted & Restricted Units'!Q31)","v":""},{"$f":"IF('2. Assisted & Restricted Units'!R31=\"\",\"\",'2. Assisted & Restricted Units'!R31)","v":""},{"$f":"IF(A31=\"\",\"\",'1. Checklist & Certification'!$K$1)","v":""},{"$f":"IF(A31=\"\",\"\",'1. Checklist & Certification'!$C$62)","v":""},{"$f":"IF(A31=\"\",\"\",'1. Checklist & Certification'!$K$62)","v":""},{"$f":"IF(A31=\"\",\"\",'1. Checklist & Certification'!$C$6)","v":""},{"$f":"IF(A31=\"\",\"\",'1. Checklist & Certification'!$G$4)","v":""},{"$f":"IF(A31=\"\",\"\",'1. Checklist & Certification'!$C$7)","v":""},{"$f":"IF(A31=\"\",\"\",'1. Checklist & Certification'!$C$8)","v":""},{"$f":"IF(A31=\"\",\"\",'1. Checklist & Certification'!$F$7)","v":""},{"$f":"IF(A31=\"\",\"\",'1. Checklist & Certification'!$F$8)","v":""},{"$f":"IF(A31=\"\",\"\",'1. Checklist & Certification'!$B$9)","v":""},{"$f":"IF(A31=\"\",\"\",'1. Checklist & Certification'!$F$9)","v":""},{"$f":"IF(A31=\"\",\"\",'1. Checklist & Certification'!$C$10)","v":""},{"$f":"IF(A31=\"\",\"\",'1. Checklist & Certification'!$C$11)","v":""},{"$f":"IF(A31=\"\",\"\",'1. Checklist & Certification'!$C$12)","v":""},{"$f":"IF(A31=\"\",\"\",'1. Checklist & Certification'!$B$14)","v":""},{"$f":"IF(A31=\"\",\"\",'1. Checklist & Certification'!$E$14)","v":""},{"$f":"IF(B31=\"\",\"\",'1. Checklist & Certification'!$G$14)","v":""},{"$f":"IF(A31=\"\",\"\",'MHP Family Income & Rent Limits'!$B$3)","v":""},{"$f":"IF(A31=\"\",\"\",'MHP Family Income & Rent Limits'!$J$3)","v":""},{"$f":"IF(A31=\"\",\"\",'MHP Family Income & Rent Limits'!$E$4)","v":""},{"$f":"IF(A31=\"\",\"\",'MHP Family Income & Rent Limits'!$C$7)","v":""},{"$f":"IF(A31=\"\",\"\",'MHP Family Income & Rent Limits'!$F$8)","v":""},{"$f":"IF(A31=\"\",\"\",'1. Checklist & Certification'!$G$4)","v":""},{"$f":"IF(A31=\"\",\"\",'1. Checklist & Certification'!$K$39)","v":""},{"$f":"IF(A31=\"\",\"\",'1. Checklist & Certification'!$K$43)","v":""},{"$f":"IF(A31=\"\",\"\",'1. Checklist & Certification'!$K$45)","v":""},{"$f":"IF(A31=\"\",\"\",'1. Checklist & Certification'!$K$49)","v":""},{"$f":"IF(A31=\"\",\"\",'1. Checklist & Certification'!$E$66)","v":""},{"$f":"IF(A31=\"\",\"\",'1. Checklist & Certification'!$E$67)","v":""},{"$f":"IF(A31=\"\",\"\",'1. Checklist & Certification'!$E$68)","v":""},{"$f":"IF(A31=\"\",\"\",'1. Checklist & Certification'!$G$66)","v":""},{"$f":"IF(A31=\"\",\"\",'1. Checklist & Certification'!$H$66)","v":""},{"$f":"IF(A31=\"\",\"\",'1. Checklist & Certification'!$I$66)","v":""},{"$f":"IF(A31=\"\",\"\",'1. Checklist & Certification'!$I$67)","v":""},{"$f":"IF(A31=\"\",\"\",'1. Checklist & Certification'!$I$68)","v":""},null,{"$f":"IF(C31=\"\",\"\",HLOOKUP(C31,'MHP Family Income & Rent Limits'!$E$12:$L$26,2,FALSE))","v":""},{"$f":"IF(C31=\"\",\"\",HLOOKUP(C31,'MHP Family Income & Rent Limits'!$E$12:$L$26,3,FALSE))","v":""},{"$f":"IF(C31=\"\",\"\",HLOOKUP(C31,'MHP Family Income & Rent Limits'!$E$12:$L$26,4,FALSE))","v":""},{"$f":"IF(C31=\"\",\"\",HLOOKUP(C31,'MHP Family Income & Rent Limits'!$E$12:$L$26,5,FALSE))","v":""},{"$f":"IF(C31=\"\",\"\",HLOOKUP(C31,'MHP Family Income & Rent Limits'!$E$12:$L$26,6,FALSE))","v":""},{"$f":"IF(C31=\"\",\"\",HLOOKUP(C31,'MHP Family Income & Rent Limits'!$E$12:$L$26,7,FALSE))","v":""},{"$f":"IF(C31=\"\",\"\",HLOOKUP(C31,'MHP Family Income & Rent Limits'!$E$12:$L$26,8,FALSE))","v":""},{"$f":"IF(C31=\"\",\"\",HLOOKUP(C31,'MHP Family Income & Rent Limits'!$E$12:$L$26,9,FALSE))","v":""},{"$f":"IF(C31=\"\",\"\",HLOOKUP(C31,'MHP Family Income & Rent Limits'!$E$12:$L$26,10,FALSE))","v":""},{"$f":"IF(C31=\"\",\"\",HLOOKUP(C31,'MHP Family Income & Rent Limits'!$E$12:$L$26,11,FALSE))","v":""},{"$f":"IF(C31=\"\",\"\",HLOOKUP(C31,'MHP Family Income & Rent Limits'!$E$12:$L$26,12,FALSE))","v":""},{"$f":"IF(C31=\"\",\"\",HLOOKUP(C31,'MHP Family Income & Rent Limits'!$E$12:$L$26,13,FALSE))","v":""},{"$f":"IF(C31=\"\",\"\",HLOOKUP(C31,'MHP Family Income & Rent Limits'!$E$12:$L$26,14,FALSE))","v":""},{"$f":"IF(C31=\"\",\"\",HLOOKUP(C31,'MHP Family Income & Rent Limits'!$E$12:$L$26,15,FALSE))","v":""}]
[{"$f":"IF('2. Assisted & Restricted Units'!A32=\"\",\"\",'2. Assisted & Restricted Units'!A32)","v":""},{"$f":"IF('2. Assisted & Restricted Units'!B32=\"\",\"\",'2. Assisted & Restricted Units'!B32)","v":""},{"$f":"IF('2. Assisted & Restricted Units'!D32=\"\",\"\",'2. Assisted & Restricted Units'!D32)","v":""},{"$f":"IF('2. Assisted & Restricted Units'!E32=\"\",\"\",'2. Assisted & Restricted Units'!E32)","v":""},{"$f":"IF('2. Assisted & Restricted Units'!H32=\"\",\"\",'2. Assisted & Restricted Units'!H32)","v":""},{"$f":"_xlfn.IFS(E32=\"\",\"\",E32>BO32,$BP$6,E32>BN32,$BO$6,E32>BM32,$BN$6,E32>BL32,$BM$6,E32>BK32,$BL$6,E32>BJ32,$BK$6,E32>BI32,$BJ$6,E32>BH32,$BI$6,E32>BG32,$BH$6,E32>BF32,$BG$6,E32>BE32,$BF$6,E32>BD32,$BE$6,E32>BC32,$BD$6,E32>=0,$BC$6)","v":""},{"$f":"IF('2. Assisted & Restricted Units'!T32=\"\",\"\",'2. Assisted & Restricted Units'!T32)","v":""},{"$f":"IF('2. Assisted & Restricted Units'!I32=\"\",\"\",'2. Assisted & Restricted Units'!I32)","v":""},{"$f":"IF('2. Assisted & Restricted Units'!AP32=\"\",\"\",'2. Assisted & Restricted Units'!AP32)","v":0},{"$f":"IF('2. Assisted & Restricted Units'!AT32=\"\",\"\",'2. Assisted & Restricted Units'!AT32)","v":""},0,{"$f":"IF('2. Assisted & Restricted Units'!AV32=\"\",\"\",'2. Assisted & Restricted Units'!AV32)","v":""},{"$f":"IF('2. Assisted & Restricted Units'!L32=\"\",\"\",'2. Assisted & Restricted Units'!L32)","v":""},{"$f":"IF('2. Assisted & Restricted Units'!M32=\"\",\"\",'2. Assisted & Restricted Units'!M32)","v":""},{"$f":"IF('2. Assisted & Restricted Units'!O32=\"\",\"\",'2. Assisted & Restricted Units'!O32)","v":""},{"$f":"IF('2. Assisted & Restricted Units'!P32=\"\",\"\",'2. Assisted & Restricted Units'!P32)","v":""},{"$f":"IF('2. Assisted & Restricted Units'!Q32=\"\",\"\",'2. Assisted & Restricted Units'!Q32)","v":""},{"$f":"IF('2. Assisted & Restricted Units'!R32=\"\",\"\",'2. Assisted & Restricted Units'!R32)","v":""},{"$f":"IF(A32=\"\",\"\",'1. Checklist & Certification'!$K$1)","v":""},{"$f":"IF(A32=\"\",\"\",'1. Checklist & Certification'!$C$62)","v":""},{"$f":"IF(A32=\"\",\"\",'1. Checklist & Certification'!$K$62)","v":""},{"$f":"IF(A32=\"\",\"\",'1. Checklist & Certification'!$C$6)","v":""},{"$f":"IF(A32=\"\",\"\",'1. Checklist & Certification'!$G$4)","v":""},{"$f":"IF(A32=\"\",\"\",'1. Checklist & Certification'!$C$7)","v":""},{"$f":"IF(A32=\"\",\"\",'1. Checklist & Certification'!$C$8)","v":""},{"$f":"IF(A32=\"\",\"\",'1. Checklist & Certification'!$F$7)","v":""},{"$f":"IF(A32=\"\",\"\",'1. Checklist & Certification'!$F$8)","v":""},{"$f":"IF(A32=\"\",\"\",'1. Checklist & Certification'!$B$9)","v":""},{"$f":"IF(A32=\"\",\"\",'1. Checklist & Certification'!$F$9)","v":""},{"$f":"IF(A32=\"\",\"\",'1. Checklist & Certification'!$C$10)","v":""},{"$f":"IF(A32=\"\",\"\",'1. Checklist & Certification'!$C$11)","v":""},{"$f":"IF(A32=\"\",\"\",'1. Checklist & Certification'!$C$12)","v":""},{"$f":"IF(A32=\"\",\"\",'1. Checklist & Certification'!$B$14)","v":""},{"$f":"IF(A32=\"\",\"\",'1. Checklist & Certification'!$E$14)","v":""},{"$f":"IF(B32=\"\",\"\",'1. Checklist & Certification'!$G$14)","v":""},{"$f":"IF(A32=\"\",\"\",'MHP Family Income & Rent Limits'!$B$3)","v":""},{"$f":"IF(A32=\"\",\"\",'MHP Family Income & Rent Limits'!$J$3)","v":""},{"$f":"IF(A32=\"\",\"\",'MHP Family Income & Rent Limits'!$E$4)","v":""},{"$f":"IF(A32=\"\",\"\",'MHP Family Income & Rent Limits'!$C$7)","v":""},{"$f":"IF(A32=\"\",\"\",'MHP Family Income & Rent Limits'!$F$8)","v":""},{"$f":"IF(A32=\"\",\"\",'1. Checklist & Certification'!$G$4)","v":""},{"$f":"IF(A32=\"\",\"\",'1. Checklist & Certification'!$K$39)","v":""},{"$f":"IF(A32=\"\",\"\",'1. Checklist & Certification'!$K$43)","v":""},{"$f":"IF(A32=\"\",\"\",'1. Checklist & Certification'!$K$45)","v":""},{"$f":"IF(A32=\"\",\"\",'1. Checklist & Certification'!$K$49)","v":""},{"$f":"IF(A32=\"\",\"\",'1. Checklist & Certification'!$E$66)","v":""},{"$f":"IF(A32=\"\",\"\",'1. Checklist & Certification'!$E$67)","v":""},{"$f":"IF(A32=\"\",\"\",'1. Checklist & Certification'!$E$68)","v":""},{"$f":"IF(A32=\"\",\"\",'1. Checklist & Certification'!$G$66)","v":""},{"$f":"IF(A32=\"\",\"\",'1. Checklist & Certification'!$H$66)","v":""},{"$f":"IF(A32=\"\",\"\",'1. Checklist & Certification'!$I$66)","v":""},{"$f":"IF(A32=\"\",\"\",'1. Checklist & Certification'!$I$67)","v":""},{"$f":"IF(A32=\"\",\"\",'1. Checklist & Certification'!$I$68)","v":""},null,{"$f":"IF(C32=\"\",\"\",HLOOKUP(C32,'MHP Family Income & Rent Limits'!$E$12:$L$26,2,FALSE))","v":""},{"$f":"IF(C32=\"\",\"\",HLOOKUP(C32,'MHP Family Income & Rent Limits'!$E$12:$L$26,3,FALSE))","v":""},{"$f":"IF(C32=\"\",\"\",HLOOKUP(C32,'MHP Family Income & Rent Limits'!$E$12:$L$26,4,FALSE))","v":""},{"$f":"IF(C32=\"\",\"\",HLOOKUP(C32,'MHP Family Income & Rent Limits'!$E$12:$L$26,5,FALSE))","v":""},{"$f":"IF(C32=\"\",\"\",HLOOKUP(C32,'MHP Family Income & Rent Limits'!$E$12:$L$26,6,FALSE))","v":""},{"$f":"IF(C32=\"\",\"\",HLOOKUP(C32,'MHP Family Income & Rent Limits'!$E$12:$L$26,7,FALSE))","v":""},{"$f":"IF(C32=\"\",\"\",HLOOKUP(C32,'MHP Family Income & Rent Limits'!$E$12:$L$26,8,FALSE))","v":""},{"$f":"IF(C32=\"\",\"\",HLOOKUP(C32,'MHP Family Income & Rent Limits'!$E$12:$L$26,9,FALSE))","v":""},{"$f":"IF(C32=\"\",\"\",HLOOKUP(C32,'MHP Family Income & Rent Limits'!$E$12:$L$26,10,FALSE))","v":""},{"$f":"IF(C32=\"\",\"\",HLOOKUP(C32,'MHP Family Income & Rent Limits'!$E$12:$L$26,11,FALSE))","v":""},{"$f":"IF(C32=\"\",\"\",HLOOKUP(C32,'MHP Family Income & Rent Limits'!$E$12:$L$26,12,FALSE))","v":""},{"$f":"IF(C32=\"\",\"\",HLOOKUP(C32,'MHP Family Income & Rent Limits'!$E$12:$L$26,13,FALSE))","v":""},{"$f":"IF(C32=\"\",\"\",HLOOKUP(C32,'MHP Family Income & Rent Limits'!$E$12:$L$26,14,FALSE))","v":""},{"$f":"IF(C32=\"\",\"\",HLOOKUP(C32,'MHP Family Income & Rent Limits'!$E$12:$L$26,15,FALSE))","v":""}]
[{"$f":"IF('2. Assisted & Restricted Units'!A33=\"\",\"\",'2. Assisted & Restricted Units'!A33)","v":""},{"$f":"IF('2. Assisted & Restricted Units'!B33=\"\",\"\",'2. Assisted & Restricted Units'!B33)","v":""},{"$f":"IF('2. Assisted & Restricted Units'!D33=\"\",\"\",'2. Assisted & Restricted Units'!D33)","v":""},{"$f":"IF('2. Assisted & Restricted Units'!E33=\"\",\"\",'2. Assisted & Restricted Units'!E33)","v":""},{"$f":"IF('2. Assisted & Restricted Units'!H33=\"\",\"\",'2. Assisted & Restricted Units'!H33)","v":""},{"$f":"_xlfn.IFS(E33=\"\",\"\",E33>BO33,$BP$6,E33>BN33,$BO$6,E33>BM33,$BN$6,E33>BL33,$BM$6,E33>BK33,$BL$6,E33>BJ33,$BK$6,E33>BI33,$BJ$6,E33>BH33,$BI$6,E33>BG33,$BH$6,E33>BF33,$BG$6,E33>BE33,$BF$6,E33>BD33,$BE$6,E33>BC33,$BD$6,E33>=0,$BC$6)","v":""},{"$f":"IF('2. Assisted & Restricted Units'!T33=\"\",\"\",'2. Assisted & Restricted Units'!T33)","v":""},{"$f":"IF('2. Assisted & Restricted Units'!I33=\"\",\"\",'2. Assisted & Restricted Units'!I33)","v":""},{"$f":"IF('2. Assisted & Restricted Units'!AP33=\"\",\"\",'2. Assisted & Restricted Units'!AP33)","v":0},{"$f":"IF('2. Assisted & Restricted Units'!AT33=\"\",\"\",'2. Assisted & Restricted Units'!AT33)","v":""},0,{"$f":"IF('2. Assisted & Restricted Units'!AV33=\"\",\"\",'2. Assisted & Restricted Units'!AV33)","v":""},{"$f":"IF('2. Assisted & Restricted Units'!L33=\"\",\"\",'2. Assisted & Restricted Units'!L33)","v":""},{"$f":"IF('2. Assisted & Restricted Units'!M33=\"\",\"\",'2. Assisted & Restricted Units'!M33)","v":""},{"$f":"IF('2. Assisted & Restricted Units'!O33=\"\",\"\",'2. Assisted & Restricted Units'!O33)","v":""},{"$f":"IF('2. Assisted & Restricted Units'!P33=\"\",\"\",'2. Assisted & Restricted Units'!P33)","v":""},{"$f":"IF('2. Assisted & Restricted Units'!Q33=\"\",\"\",'2. Assisted & Restricted Units'!Q33)","v":""},{"$f":"IF('2. Assisted & Restricted Units'!R33=\"\",\"\",'2. Assisted & Restricted Units'!R33)","v":""},{"$f":"IF(A33=\"\",\"\",'1. Checklist & Certification'!$K$1)","v":""},{"$f":"IF(A33=\"\",\"\",'1. Checklist & Certification'!$C$62)","v":""},{"$f":"IF(A33=\"\",\"\",'1. Checklist & Certification'!$K$62)","v":""},{"$f":"IF(A33=\"\",\"\",'1. Checklist & Certification'!$C$6)","v":""},{"$f":"IF(A33=\"\",\"\",'1. Checklist & Certification'!$G$4)","v":""},{"$f":"IF(A33=\"\",\"\",'1. Checklist & Certification'!$C$7)","v":""},{"$f":"IF(A33=\"\",\"\",'1. Checklist & Certification'!$C$8)","v":""},{"$f":"IF(A33=\"\",\"\",'1. Checklist & Certification'!$F$7)","v":""},{"$f":"IF(A33=\"\",\"\",'1. Checklist & Certification'!$F$8)","v":""},{"$f":"IF(A33=\"\",\"\",'1. Checklist & Certification'!$B$9)","v":""},{"$f":"IF(A33=\"\",\"\",'1. Checklist & Certification'!$F$9)","v":""},{"$f":"IF(A33=\"\",\"\",'1. Checklist & Certification'!$C$10)","v":""},{"$f":"IF(A33=\"\",\"\",'1. Checklist & Certification'!$C$11)","v":""},{"$f":"IF(A33=\"\",\"\",'1. Checklist & Certification'!$C$12)","v":""},{"$f":"IF(A33=\"\",\"\",'1. Checklist & Certification'!$B$14)","v":""},{"$f":"IF(A33=\"\",\"\",'1. Checklist & Certification'!$E$14)","v":""},{"$f":"IF(B33=\"\",\"\",'1. Checklist & Certification'!$G$14)","v":""},{"$f":"IF(A33=\"\",\"\",'MHP Family Income & Rent Limits'!$B$3)","v":""},{"$f":"IF(A33=\"\",\"\",'MHP Family Income & Rent Limits'!$J$3)","v":""},{"$f":"IF(A33=\"\",\"\",'MHP Family Income & Rent Limits'!$E$4)","v":""},{"$f":"IF(A33=\"\",\"\",'MHP Family Income & Rent Limits'!$C$7)","v":""},{"$f":"IF(A33=\"\",\"\",'MHP Family Income & Rent Limits'!$F$8)","v":""},{"$f":"IF(A33=\"\",\"\",'1. Checklist & Certification'!$G$4)","v":""},{"$f":"IF(A33=\"\",\"\",'1. Checklist & Certification'!$K$39)","v":""},{"$f":"IF(A33=\"\",\"\",'1. Checklist & Certification'!$K$43)","v":""},{"$f":"IF(A33=\"\",\"\",'1. Checklist & Certification'!$K$45)","v":""},{"$f":"IF(A33=\"\",\"\",'1. Checklist & Certification'!$K$49)","v":""},{"$f":"IF(A33=\"\",\"\",'1. Checklist & Certification'!$E$66)","v":""},{"$f":"IF(A33=\"\",\"\",'1. Checklist & Certification'!$E$67)","v":""},{"$f":"IF(A33=\"\",\"\",'1. Checklist & Certification'!$E$68)","v":""},{"$f":"IF(A33=\"\",\"\",'1. Checklist & Certification'!$G$66)","v":""},{"$f":"IF(A33=\"\",\"\",'1. Checklist & Certification'!$H$66)","v":""},{"$f":"IF(A33=\"\",\"\",'1. Checklist & Certification'!$I$66)","v":""},{"$f":"IF(A33=\"\",\"\",'1. Checklist & Certification'!$I$67)","v":""},{"$f":"IF(A33=\"\",\"\",'1. Checklist & Certification'!$I$68)","v":""},null,{"$f":"IF(C33=\"\",\"\",HLOOKUP(C33,'MHP Family Income & Rent Limits'!$E$12:$L$26,2,FALSE))","v":""},{"$f":"IF(C33=\"\",\"\",HLOOKUP(C33,'MHP Family Income & Rent Limits'!$E$12:$L$26,3,FALSE))","v":""},{"$f":"IF(C33=\"\",\"\",HLOOKUP(C33,'MHP Family Income & Rent Limits'!$E$12:$L$26,4,FALSE))","v":""},{"$f":"IF(C33=\"\",\"\",HLOOKUP(C33,'MHP Family Income & Rent Limits'!$E$12:$L$26,5,FALSE))","v":""},{"$f":"IF(C33=\"\",\"\",HLOOKUP(C33,'MHP Family Income & Rent Limits'!$E$12:$L$26,6,FALSE))","v":""},{"$f":"IF(C33=\"\",\"\",HLOOKUP(C33,'MHP Family Income & Rent Limits'!$E$12:$L$26,7,FALSE))","v":""},{"$f":"IF(C33=\"\",\"\",HLOOKUP(C33,'MHP Family Income & Rent Limits'!$E$12:$L$26,8,FALSE))","v":""},{"$f":"IF(C33=\"\",\"\",HLOOKUP(C33,'MHP Family Income & Rent Limits'!$E$12:$L$26,9,FALSE))","v":""},{"$f":"IF(C33=\"\",\"\",HLOOKUP(C33,'MHP Family Income & Rent Limits'!$E$12:$L$26,10,FALSE))","v":""},{"$f":"IF(C33=\"\",\"\",HLOOKUP(C33,'MHP Family Income & Rent Limits'!$E$12:$L$26,11,FALSE))","v":""},{"$f":"IF(C33=\"\",\"\",HLOOKUP(C33,'MHP Family Income & Rent Limits'!$E$12:$L$26,12,FALSE))","v":""},{"$f":"IF(C33=\"\",\"\",HLOOKUP(C33,'MHP Family Income & Rent Limits'!$E$12:$L$26,13,FALSE))","v":""},{"$f":"IF(C33=\"\",\"\",HLOOKUP(C33,'MHP Family Income & Rent Limits'!$E$12:$L$26,14,FALSE))","v":""},{"$f":"IF(C33=\"\",\"\",HLOOKUP(C33,'MHP Family Income & Rent Limits'!$E$12:$L$26,15,FALSE))","v":""}]
[{"$f":"IF('2. Assisted & Restricted Units'!A34=\"\",\"\",'2. Assisted & Restricted Units'!A34)","v":""},{"$f":"IF('2. Assisted & Restricted Units'!B34=\"\",\"\",'2. Assisted & Restricted Units'!B34)","v":""},{"$f":"IF('2. Assisted & Restricted Units'!D34=\"\",\"\",'2. Assisted & Restricted Units'!D34)","v":""},{"$f":"IF('2. Assisted & Restricted Units'!E34=\"\",\"\",'2. Assisted & Restricted Units'!E34)","v":""},{"$f":"IF('2. Assisted & Restricted Units'!H34=\"\",\"\",'2. Assisted & Restricted Units'!H34)","v":""},{"$f":"_xlfn.IFS(E34=\"\",\"\",E34>BO34,$BP$6,E34>BN34,$BO$6,E34>BM34,$BN$6,E34>BL34,$BM$6,E34>BK34,$BL$6,E34>BJ34,$BK$6,E34>BI34,$BJ$6,E34>BH34,$BI$6,E34>BG34,$BH$6,E34>BF34,$BG$6,E34>BE34,$BF$6,E34>BD34,$BE$6,E34>BC34,$BD$6,E34>=0,$BC$6)","v":""},{"$f":"IF('2. Assisted & Restricted Units'!T34=\"\",\"\",'2. Assisted & Restricted Units'!T34)","v":""},{"$f":"IF('2. Assisted & Restricted Units'!I34=\"\",\"\",'2. Assisted & Restricted Units'!I34)","v":""},{"$f":"IF('2. Assisted & Restricted Units'!AP34=\"\",\"\",'2. Assisted & Restricted Units'!AP34)","v":0},{"$f":"IF('2. Assisted & Restricted Units'!AT34=\"\",\"\",'2. Assisted & Restricted Units'!AT34)","v":""},0,{"$f":"IF('2. Assisted & Restricted Units'!AV34=\"\",\"\",'2. Assisted & Restricted Units'!AV34)","v":""},{"$f":"IF('2. Assisted & Restricted Units'!L34=\"\",\"\",'2. Assisted & Restricted Units'!L34)","v":""},{"$f":"IF('2. Assisted & Restricted Units'!M34=\"\",\"\",'2. Assisted & Restricted Units'!M34)","v":""},{"$f":"IF('2. Assisted & Restricted Units'!O34=\"\",\"\",'2. Assisted & Restricted Units'!O34)","v":""},{"$f":"IF('2. Assisted & Restricted Units'!P34=\"\",\"\",'2. Assisted & Restricted Units'!P34)","v":""},{"$f":"IF('2. Assisted & Restricted Units'!Q34=\"\",\"\",'2. Assisted & Restricted Units'!Q34)","v":""},{"$f":"IF('2. Assisted & Restricted Units'!R34=\"\",\"\",'2. Assisted & Restricted Units'!R34)","v":""},{"$f":"IF(A34=\"\",\"\",'1. Checklist & Certification'!$K$1)","v":""},{"$f":"IF(A34=\"\",\"\",'1. Checklist & Certification'!$C$62)","v":""},{"$f":"IF(A34=\"\",\"\",'1. Checklist & Certification'!$K$62)","v":""},{"$f":"IF(A34=\"\",\"\",'1. Checklist & Certification'!$C$6)","v":""},{"$f":"IF(A34=\"\",\"\",'1. Checklist & Certification'!$G$4)","v":""},{"$f":"IF(A34=\"\",\"\",'1. Checklist & Certification'!$C$7)","v":""},{"$f":"IF(A34=\"\",\"\",'1. Checklist & Certification'!$C$8)","v":""},{"$f":"IF(A34=\"\",\"\",'1. Checklist & Certification'!$F$7)","v":""},{"$f":"IF(A34=\"\",\"\",'1. Checklist & Certification'!$F$8)","v":""},{"$f":"IF(A34=\"\",\"\",'1. Checklist & Certification'!$B$9)","v":""},{"$f":"IF(A34=\"\",\"\",'1. Checklist & Certification'!$F$9)","v":""},{"$f":"IF(A34=\"\",\"\",'1. Checklist & Certification'!$C$10)","v":""},{"$f":"IF(A34=\"\",\"\",'1. Checklist & Certification'!$C$11)","v":""},{"$f":"IF(A34=\"\",\"\",'1. Checklist & Certification'!$C$12)","v":""},{"$f":"IF(A34=\"\",\"\",'1. Checklist & Certification'!$B$14)","v":""},{"$f":"IF(A34=\"\",\"\",'1. Checklist & Certification'!$E$14)","v":""},{"$f":"IF(B34=\"\",\"\",'1. Checklist & Certification'!$G$14)","v":""},{"$f":"IF(A34=\"\",\"\",'MHP Family Income & Rent Limits'!$B$3)","v":""},{"$f":"IF(A34=\"\",\"\",'MHP Family Income & Rent Limits'!$J$3)","v":""},{"$f":"IF(A34=\"\",\"\",'MHP Family Income & Rent Limits'!$E$4)","v":""},{"$f":"IF(A34=\"\",\"\",'MHP Family Income & Rent Limits'!$C$7)","v":""},{"$f":"IF(A34=\"\",\"\",'MHP Family Income & Rent Limits'!$F$8)","v":""},{"$f":"IF(A34=\"\",\"\",'1. Checklist & Certification'!$G$4)","v":""},{"$f":"IF(A34=\"\",\"\",'1. Checklist & Certification'!$K$39)","v":""},{"$f":"IF(A34=\"\",\"\",'1. Checklist & Certification'!$K$43)","v":""},{"$f":"IF(A34=\"\",\"\",'1. Checklist & Certification'!$K$45)","v":""},{"$f":"IF(A34=\"\",\"\",'1. Checklist & Certification'!$K$49)","v":""},{"$f":"IF(A34=\"\",\"\",'1. Checklist & Certification'!$E$66)","v":""},{"$f":"IF(A34=\"\",\"\",'1. Checklist & Certification'!$E$67)","v":""},{"$f":"IF(A34=\"\",\"\",'1. Checklist & Certification'!$E$68)","v":""},{"$f":"IF(A34=\"\",\"\",'1. Checklist & Certification'!$G$66)","v":""},{"$f":"IF(A34=\"\",\"\",'1. Checklist & Certification'!$H$66)","v":""},{"$f":"IF(A34=\"\",\"\",'1. Checklist & Certification'!$I$66)","v":""},{"$f":"IF(A34=\"\",\"\",'1. Checklist & Certification'!$I$67)","v":""},{"$f":"IF(A34=\"\",\"\",'1. Checklist & Certification'!$I$68)","v":""},null,{"$f":"IF(C34=\"\",\"\",HLOOKUP(C34,'MHP Family Income & Rent Limits'!$E$12:$L$26,2,FALSE))","v":""},{"$f":"IF(C34=\"\",\"\",HLOOKUP(C34,'MHP Family Income & Rent Limits'!$E$12:$L$26,3,FALSE))","v":""},{"$f":"IF(C34=\"\",\"\",HLOOKUP(C34,'MHP Family Income & Rent Limits'!$E$12:$L$26,4,FALSE))","v":""},{"$f":"IF(C34=\"\",\"\",HLOOKUP(C34,'MHP Family Income & Rent Limits'!$E$12:$L$26,5,FALSE))","v":""},{"$f":"IF(C34=\"\",\"\",HLOOKUP(C34,'MHP Family Income & Rent Limits'!$E$12:$L$26,6,FALSE))","v":""},{"$f":"IF(C34=\"\",\"\",HLOOKUP(C34,'MHP Family Income & Rent Limits'!$E$12:$L$26,7,FALSE))","v":""},{"$f":"IF(C34=\"\",\"\",HLOOKUP(C34,'MHP Family Income & Rent Limits'!$E$12:$L$26,8,FALSE))","v":""},{"$f":"IF(C34=\"\",\"\",HLOOKUP(C34,'MHP Family Income & Rent Limits'!$E$12:$L$26,9,FALSE))","v":""},{"$f":"IF(C34=\"\",\"\",HLOOKUP(C34,'MHP Family Income & Rent Limits'!$E$12:$L$26,10,FALSE))","v":""},{"$f":"IF(C34=\"\",\"\",HLOOKUP(C34,'MHP Family Income & Rent Limits'!$E$12:$L$26,11,FALSE))","v":""},{"$f":"IF(C34=\"\",\"\",HLOOKUP(C34,'MHP Family Income & Rent Limits'!$E$12:$L$26,12,FALSE))","v":""},{"$f":"IF(C34=\"\",\"\",HLOOKUP(C34,'MHP Family Income & Rent Limits'!$E$12:$L$26,13,FALSE))","v":""},{"$f":"IF(C34=\"\",\"\",HLOOKUP(C34,'MHP Family Income & Rent Limits'!$E$12:$L$26,14,FALSE))","v":""},{"$f":"IF(C34=\"\",\"\",HLOOKUP(C34,'MHP Family Income & Rent Limits'!$E$12:$L$26,15,FALSE))","v":""}]
[{"$f":"IF('2. Assisted & Restricted Units'!A35=\"\",\"\",'2. Assisted & Restricted Units'!A35)","v":""},{"$f":"IF('2. Assisted & Restricted Units'!B35=\"\",\"\",'2. Assisted & Restricted Units'!B35)","v":""},{"$f":"IF('2. Assisted & Restricted Units'!D35=\"\",\"\",'2. Assisted & Restricted Units'!D35)","v":""},{"$f":"IF('2. Assisted & Restricted Units'!E35=\"\",\"\",'2. Assisted & Restricted Units'!E35)","v":""},{"$f":"IF('2. Assisted & Restricted Units'!H35=\"\",\"\",'2. Assisted & Restricted Units'!H35)","v":""},{"$f":"_xlfn.IFS(E35=\"\",\"\",E35>BO35,$BP$6,E35>BN35,$BO$6,E35>BM35,$BN$6,E35>BL35,$BM$6,E35>BK35,$BL$6,E35>BJ35,$BK$6,E35>BI35,$BJ$6,E35>BH35,$BI$6,E35>BG35,$BH$6,E35>BF35,$BG$6,E35>BE35,$BF$6,E35>BD35,$BE$6,E35>BC35,$BD$6,E35>=0,$BC$6)","v":""},{"$f":"IF('2. Assisted & Restricted Units'!T35=\"\",\"\",'2. Assisted & Restricted Units'!T35)","v":""},{"$f":"IF('2. Assisted & Restricted Units'!I35=\"\",\"\",'2. Assisted & Restricted Units'!I35)","v":""},{"$f":"IF('2. Assisted & Restricted Units'!AP35=\"\",\"\",'2. Assisted & Restricted Units'!AP35)","v":0},{"$f":"IF('2. Assisted & Restricted Units'!AT35=\"\",\"\",'2. Assisted & Restricted Units'!AT35)","v":""},0,{"$f":"IF('2. Assisted & Restricted Units'!AV35=\"\",\"\",'2. Assisted & Restricted Units'!AV35)","v":""},{"$f":"IF('2. Assisted & Restricted Units'!L35=\"\",\"\",'2. Assisted & Restricted Units'!L35)","v":""},{"$f":"IF('2. Assisted & Restricted Units'!M35=\"\",\"\",'2. Assisted & Restricted Units'!M35)","v":""},{"$f":"IF('2. Assisted & Restricted Units'!O35=\"\",\"\",'2. Assisted & Restricted Units'!O35)","v":""},{"$f":"IF('2. Assisted & Restricted Units'!P35=\"\",\"\",'2. Assisted & Restricted Units'!P35)","v":""},{"$f":"IF('2. Assisted & Restricted Units'!Q35=\"\",\"\",'2. Assisted & Restricted Units'!Q35)","v":""},{"$f":"IF('2. Assisted & Restricted Units'!R35=\"\",\"\",'2. Assisted & Restricted Units'!R35)","v":""},{"$f":"IF(A35=\"\",\"\",'1. Checklist & Certification'!$K$1)","v":""},{"$f":"IF(A35=\"\",\"\",'1. Checklist & Certification'!$C$62)","v":""},{"$f":"IF(A35=\"\",\"\",'1. Checklist & Certification'!$K$62)","v":""},{"$f":"IF(A35=\"\",\"\",'1. Checklist & Certification'!$C$6)","v":""},{"$f":"IF(A35=\"\",\"\",'1. Checklist & Certification'!$G$4)","v":""},{"$f":"IF(A35=\"\",\"\",'1. Checklist & Certification'!$C$7)","v":""},{"$f":"IF(A35=\"\",\"\",'1. Checklist & Certification'!$C$8)","v":""},{"$f":"IF(A35=\"\",\"\",'1. Checklist & Certification'!$F$7)","v":""},{"$f":"IF(A35=\"\",\"\",'1. Checklist & Certification'!$F$8)","v":""},{"$f":"IF(A35=\"\",\"\",'1. Checklist & Certification'!$B$9)","v":""},{"$f":"IF(A35=\"\",\"\",'1. Checklist & Certification'!$F$9)","v":""},{"$f":"IF(A35=\"\",\"\",'1. Checklist & Certification'!$C$10)","v":""},{"$f":"IF(A35=\"\",\"\",'1. Checklist & Certification'!$C$11)","v":""},{"$f":"IF(A35=\"\",\"\",'1. Checklist & Certification'!$C$12)","v":""},{"$f":"IF(A35=\"\",\"\",'1. Checklist & Certification'!$B$14)","v":""},{"$f":"IF(A35=\"\",\"\",'1. Checklist & Certification'!$E$14)","v":""},{"$f":"IF(B35=\"\",\"\",'1. Checklist & Certification'!$G$14)","v":""},{"$f":"IF(A35=\"\",\"\",'MHP Family Income & Rent Limits'!$B$3)","v":""},{"$f":"IF(A35=\"\",\"\",'MHP Family Income & Rent Limits'!$J$3)","v":""},{"$f":"IF(A35=\"\",\"\",'MHP Family Income & Rent Limits'!$E$4)","v":""},{"$f":"IF(A35=\"\",\"\",'MHP Family Income & Rent Limits'!$C$7)","v":""},{"$f":"IF(A35=\"\",\"\",'MHP Family Income & Rent Limits'!$F$8)","v":""},{"$f":"IF(A35=\"\",\"\",'1. Checklist & Certification'!$G$4)","v":""},{"$f":"IF(A35=\"\",\"\",'1. Checklist & Certification'!$K$39)","v":""},{"$f":"IF(A35=\"\",\"\",'1. Checklist & Certification'!$K$43)","v":""},{"$f":"IF(A35=\"\",\"\",'1. Checklist & Certification'!$K$45)","v":""},{"$f":"IF(A35=\"\",\"\",'1. Checklist & Certification'!$K$49)","v":""},{"$f":"IF(A35=\"\",\"\",'1. Checklist & Certification'!$E$66)","v":""},{"$f":"IF(A35=\"\",\"\",'1. Checklist & Certification'!$E$67)","v":""},{"$f":"IF(A35=\"\",\"\",'1. Checklist & Certification'!$E$68)","v":""},{"$f":"IF(A35=\"\",\"\",'1. Checklist & Certification'!$G$66)","v":""},{"$f":"IF(A35=\"\",\"\",'1. Checklist & Certification'!$H$66)","v":""},{"$f":"IF(A35=\"\",\"\",'1. Checklist & Certification'!$I$66)","v":""},{"$f":"IF(A35=\"\",\"\",'1. Checklist & Certification'!$I$67)","v":""},{"$f":"IF(A35=\"\",\"\",'1. Checklist & Certification'!$I$68)","v":""},null,{"$f":"IF(C35=\"\",\"\",HLOOKUP(C35,'MHP Family Income & Rent Limits'!$E$12:$L$26,2,FALSE))","v":""},{"$f":"IF(C35=\"\",\"\",HLOOKUP(C35,'MHP Family Income & Rent Limits'!$E$12:$L$26,3,FALSE))","v":""},{"$f":"IF(C35=\"\",\"\",HLOOKUP(C35,'MHP Family Income & Rent Limits'!$E$12:$L$26,4,FALSE))","v":""},{"$f":"IF(C35=\"\",\"\",HLOOKUP(C35,'MHP Family Income & Rent Limits'!$E$12:$L$26,5,FALSE))","v":""},{"$f":"IF(C35=\"\",\"\",HLOOKUP(C35,'MHP Family Income & Rent Limits'!$E$12:$L$26,6,FALSE))","v":""},{"$f":"IF(C35=\"\",\"\",HLOOKUP(C35,'MHP Family Income & Rent Limits'!$E$12:$L$26,7,FALSE))","v":""},{"$f":"IF(C35=\"\",\"\",HLOOKUP(C35,'MHP Family Income & Rent Limits'!$E$12:$L$26,8,FALSE))","v":""},{"$f":"IF(C35=\"\",\"\",HLOOKUP(C35,'MHP Family Income & Rent Limits'!$E$12:$L$26,9,FALSE))","v":""},{"$f":"IF(C35=\"\",\"\",HLOOKUP(C35,'MHP Family Income & Rent Limits'!$E$12:$L$26,10,FALSE))","v":""},{"$f":"IF(C35=\"\",\"\",HLOOKUP(C35,'MHP Family Income & Rent Limits'!$E$12:$L$26,11,FALSE))","v":""},{"$f":"IF(C35=\"\",\"\",HLOOKUP(C35,'MHP Family Income & Rent Limits'!$E$12:$L$26,12,FALSE))","v":""},{"$f":"IF(C35=\"\",\"\",HLOOKUP(C35,'MHP Family Income & Rent Limits'!$E$12:$L$26,13,FALSE))","v":""},{"$f":"IF(C35=\"\",\"\",HLOOKUP(C35,'MHP Family Income & Rent Limits'!$E$12:$L$26,14,FALSE))","v":""},{"$f":"IF(C35=\"\",\"\",HLOOKUP(C35,'MHP Family Income & Rent Limits'!$E$12:$L$26,15,FALSE))","v":""}]
[{"$f":"IF('2. Assisted & Restricted Units'!A36=\"\",\"\",'2. Assisted & Restricted Units'!A36)","v":""},{"$f":"IF('2. Assisted & Restricted Units'!B36=\"\",\"\",'2. Assisted & Restricted Units'!B36)","v":""},{"$f":"IF('2. Assisted & Restricted Units'!D36=\"\",\"\",'2. Assisted & Restricted Units'!D36)","v":""},{"$f":"IF('2. Assisted & Restricted Units'!E36=\"\",\"\",'2. Assisted & Restricted Units'!E36)","v":""},{"$f":"IF('2. Assisted & Restricted Units'!H36=\"\",\"\",'2. Assisted & Restricted Units'!H36)","v":""},{"$f":"_xlfn.IFS(E36=\"\",\"\",E36>BO36,$BP$6,E36>BN36,$BO$6,E36>BM36,$BN$6,E36>BL36,$BM$6,E36>BK36,$BL$6,E36>BJ36,$BK$6,E36>BI36,$BJ$6,E36>BH36,$BI$6,E36>BG36,$BH$6,E36>BF36,$BG$6,E36>BE36,$BF$6,E36>BD36,$BE$6,E36>BC36,$BD$6,E36>=0,$BC$6)","v":""},{"$f":"IF('2. Assisted & Restricted Units'!T36=\"\",\"\",'2. Assisted & Restricted Units'!T36)","v":""},{"$f":"IF('2. Assisted & Restricted Units'!I36=\"\",\"\",'2. Assisted & Restricted Units'!I36)","v":""},{"$f":"IF('2. Assisted & Restricted Units'!AP36=\"\",\"\",'2. Assisted & Restricted Units'!AP36)","v":0},{"$f":"IF('2. Assisted & Restricted Units'!AT36=\"\",\"\",'2. Assisted & Restricted Units'!AT36)","v":""},0,{"$f":"IF('2. Assisted & Restricted Units'!AV36=\"\",\"\",'2. Assisted & Restricted Units'!AV36)","v":""},{"$f":"IF('2. Assisted & Restricted Units'!L36=\"\",\"\",'2. Assisted & Restricted Units'!L36)","v":""},{"$f":"IF('2. Assisted & Restricted Units'!M36=\"\",\"\",'2. Assisted & Restricted Units'!M36)","v":""},{"$f":"IF('2. Assisted & Restricted Units'!O36=\"\",\"\",'2. Assisted & Restricted Units'!O36)","v":""},{"$f":"IF('2. Assisted & Restricted Units'!P36=\"\",\"\",'2. Assisted & Restricted Units'!P36)","v":""},{"$f":"IF('2. Assisted & Restricted Units'!Q36=\"\",\"\",'2. Assisted & Restricted Units'!Q36)","v":""},{"$f":"IF('2. Assisted & Restricted Units'!R36=\"\",\"\",'2. Assisted & Restricted Units'!R36)","v":""},{"$f":"IF(A36=\"\",\"\",'1. Checklist & Certification'!$K$1)","v":""},{"$f":"IF(A36=\"\",\"\",'1. Checklist & Certification'!$C$62)","v":""},{"$f":"IF(A36=\"\",\"\",'1. Checklist & Certification'!$K$62)","v":""},{"$f":"IF(A36=\"\",\"\",'1. Checklist & Certification'!$C$6)","v":""},{"$f":"IF(A36=\"\",\"\",'1. Checklist & Certification'!$G$4)","v":""},{"$f":"IF(A36=\"\",\"\",'1. Checklist & Certification'!$C$7)","v":""},{"$f":"IF(A36=\"\",\"\",'1. Checklist & Certification'!$C$8)","v":""},{"$f":"IF(A36=\"\",\"\",'1. Checklist & Certification'!$F$7)","v":""},{"$f":"IF(A36=\"\",\"\",'1. Checklist & Certification'!$F$8)","v":""},{"$f":"IF(A36=\"\",\"\",'1. Checklist & Certification'!$B$9)","v":""},{"$f":"IF(A36=\"\",\"\",'1. Checklist & Certification'!$F$9)","v":""},{"$f":"IF(A36=\"\",\"\",'1. Checklist & Certification'!$C$10)","v":""},{"$f":"IF(A36=\"\",\"\",'1. Checklist & Certification'!$C$11)","v":""},{"$f":"IF(A36=\"\",\"\",'1. Checklist & Certification'!$C$12)","v":""},{"$f":"IF(A36=\"\",\"\",'1. Checklist & Certification'!$B$14)","v":""},{"$f":"IF(A36=\"\",\"\",'1. Checklist & Certification'!$E$14)","v":""},{"$f":"IF(B36=\"\",\"\",'1. Checklist & Certification'!$G$14)","v":""},{"$f":"IF(A36=\"\",\"\",'MHP Family Income & Rent Limits'!$B$3)","v":""},{"$f":"IF(A36=\"\",\"\",'MHP Family Income & Rent Limits'!$J$3)","v":""},{"$f":"IF(A36=\"\",\"\",'MHP Family Income & Rent Limits'!$E$4)","v":""},{"$f":"IF(A36=\"\",\"\",'MHP Family Income & Rent Limits'!$C$7)","v":""},{"$f":"IF(A36=\"\",\"\",'MHP Family Income & Rent Limits'!$F$8)","v":""},{"$f":"IF(A36=\"\",\"\",'1. Checklist & Certification'!$G$4)","v":""},{"$f":"IF(A36=\"\",\"\",'1. Checklist & Certification'!$K$39)","v":""},{"$f":"IF(A36=\"\",\"\",'1. Checklist & Certification'!$K$43)","v":""},{"$f":"IF(A36=\"\",\"\",'1. Checklist & Certification'!$K$45)","v":""},{"$f":"IF(A36=\"\",\"\",'1. Checklist & Certification'!$K$49)","v":""},{"$f":"IF(A36=\"\",\"\",'1. Checklist & Certification'!$E$66)","v":""},{"$f":"IF(A36=\"\",\"\",'1. Checklist & Certification'!$E$67)","v":""},{"$f":"IF(A36=\"\",\"\",'1. Checklist & Certification'!$E$68)","v":""},{"$f":"IF(A36=\"\",\"\",'1. Checklist & Certification'!$G$66)","v":""},{"$f":"IF(A36=\"\",\"\",'1. Checklist & Certification'!$H$66)","v":""},{"$f":"IF(A36=\"\",\"\",'1. Checklist & Certification'!$I$66)","v":""},{"$f":"IF(A36=\"\",\"\",'1. Checklist & Certification'!$I$67)","v":""},{"$f":"IF(A36=\"\",\"\",'1. Checklist & Certification'!$I$68)","v":""},null,{"$f":"IF(C36=\"\",\"\",HLOOKUP(C36,'MHP Family Income & Rent Limits'!$E$12:$L$26,2,FALSE))","v":""},{"$f":"IF(C36=\"\",\"\",HLOOKUP(C36,'MHP Family Income & Rent Limits'!$E$12:$L$26,3,FALSE))","v":""},{"$f":"IF(C36=\"\",\"\",HLOOKUP(C36,'MHP Family Income & Rent Limits'!$E$12:$L$26,4,FALSE))","v":""},{"$f":"IF(C36=\"\",\"\",HLOOKUP(C36,'MHP Family Income & Rent Limits'!$E$12:$L$26,5,FALSE))","v":""},{"$f":"IF(C36=\"\",\"\",HLOOKUP(C36,'MHP Family Income & Rent Limits'!$E$12:$L$26,6,FALSE))","v":""},{"$f":"IF(C36=\"\",\"\",HLOOKUP(C36,'MHP Family Income & Rent Limits'!$E$12:$L$26,7,FALSE))","v":""},{"$f":"IF(C36=\"\",\"\",HLOOKUP(C36,'MHP Family Income & Rent Limits'!$E$12:$L$26,8,FALSE))","v":""},{"$f":"IF(C36=\"\",\"\",HLOOKUP(C36,'MHP Family Income & Rent Limits'!$E$12:$L$26,9,FALSE))","v":""},{"$f":"IF(C36=\"\",\"\",HLOOKUP(C36,'MHP Family Income & Rent Limits'!$E$12:$L$26,10,FALSE))","v":""},{"$f":"IF(C36=\"\",\"\",HLOOKUP(C36,'MHP Family Income & Rent Limits'!$E$12:$L$26,11,FALSE))","v":""},{"$f":"IF(C36=\"\",\"\",HLOOKUP(C36,'MHP Family Income & Rent Limits'!$E$12:$L$26,12,FALSE))","v":""},{"$f":"IF(C36=\"\",\"\",HLOOKUP(C36,'MHP Family Income & Rent Limits'!$E$12:$L$26,13,FALSE))","v":""},{"$f":"IF(C36=\"\",\"\",HLOOKUP(C36,'MHP Family Income & Rent Limits'!$E$12:$L$26,14,FALSE))","v":""},{"$f":"IF(C36=\"\",\"\",HLOOKUP(C36,'MHP Family Income & Rent Limits'!$E$12:$L$26,15,FALSE))","v":""}]
[{"$f":"IF('2. Assisted & Restricted Units'!A37=\"\",\"\",'2. Assisted & Restricted Units'!A37)","v":""},{"$f":"IF('2. Assisted & Restricted Units'!B37=\"\",\"\",'2. Assisted & Restricted Units'!B37)","v":""},{"$f":"IF('2. Assisted & Restricted Units'!D37=\"\",\"\",'2. Assisted & Restricted Units'!D37)","v":""},{"$f":"IF('2. Assisted & Restricted Units'!E37=\"\",\"\",'2. Assisted & Restricted Units'!E37)","v":""},{"$f":"IF('2. Assisted & Restricted Units'!H37=\"\",\"\",'2. Assisted & Restricted Units'!H37)","v":""},{"$f":"_xlfn.IFS(E37=\"\",\"\",E37>BO37,$BP$6,E37>BN37,$BO$6,E37>BM37,$BN$6,E37>BL37,$BM$6,E37>BK37,$BL$6,E37>BJ37,$BK$6,E37>BI37,$BJ$6,E37>BH37,$BI$6,E37>BG37,$BH$6,E37>BF37,$BG$6,E37>BE37,$BF$6,E37>BD37,$BE$6,E37>BC37,$BD$6,E37>=0,$BC$6)","v":""},{"$f":"IF('2. Assisted & Restricted Units'!T37=\"\",\"\",'2. Assisted & Restricted Units'!T37)","v":""},{"$f":"IF('2. Assisted & Restricted Units'!I37=\"\",\"\",'2. Assisted & Restricted Units'!I37)","v":""},{"$f":"IF('2. Assisted & Restricted Units'!AP37=\"\",\"\",'2. Assisted & Restricted Units'!AP37)","v":0},{"$f":"IF('2. Assisted & Restricted Units'!AT37=\"\",\"\",'2. Assisted & Restricted Units'!AT37)","v":""},0,{"$f":"IF('2. Assisted & Restricted Units'!AV37=\"\",\"\",'2. Assisted & Restricted Units'!AV37)","v":""},{"$f":"IF('2. Assisted & Restricted Units'!L37=\"\",\"\",'2. Assisted & Restricted Units'!L37)","v":""},{"$f":"IF('2. Assisted & Restricted Units'!M37=\"\",\"\",'2. Assisted & Restricted Units'!M37)","v":""},{"$f":"IF('2. Assisted & Restricted Units'!O37=\"\",\"\",'2. Assisted & Restricted Units'!O37)","v":""},{"$f":"IF('2. Assisted & Restricted Units'!P37=\"\",\"\",'2. Assisted & Restricted Units'!P37)","v":""},{"$f":"IF('2. Assisted & Restricted Units'!Q37=\"\",\"\",'2. Assisted & Restricted Units'!Q37)","v":""},{"$f":"IF('2. Assisted & Restricted Units'!R37=\"\",\"\",'2. Assisted & Restricted Units'!R37)","v":""},{"$f":"IF(A37=\"\",\"\",'1. Checklist & Certification'!$K$1)","v":""},{"$f":"IF(A37=\"\",\"\",'1. Checklist & Certification'!$C$62)","v":""},{"$f":"IF(A37=\"\",\"\",'1. Checklist & Certification'!$K$62)","v":""},{"$f":"IF(A37=\"\",\"\",'1. Checklist & Certification'!$C$6)","v":""},{"$f":"IF(A37=\"\",\"\",'1. Checklist & Certification'!$G$4)","v":""},{"$f":"IF(A37=\"\",\"\",'1. Checklist & Certification'!$C$7)","v":""},{"$f":"IF(A37=\"\",\"\",'1. Checklist & Certification'!$C$8)","v":""},{"$f":"IF(A37=\"\",\"\",'1. Checklist & Certification'!$F$7)","v":""},{"$f":"IF(A37=\"\",\"\",'1. Checklist & Certification'!$F$8)","v":""},{"$f":"IF(A37=\"\",\"\",'1. Checklist & Certification'!$B$9)","v":""},{"$f":"IF(A37=\"\",\"\",'1. Checklist & Certification'!$F$9)","v":""},{"$f":"IF(A37=\"\",\"\",'1. Checklist & Certification'!$C$10)","v":""},{"$f":"IF(A37=\"\",\"\",'1. Checklist & Certification'!$C$11)","v":""},{"$f":"IF(A37=\"\",\"\",'1. Checklist & Certification'!$C$12)","v":""},{"$f":"IF(A37=\"\",\"\",'1. Checklist & Certification'!$B$14)","v":""},{"$f":"IF(A37=\"\",\"\",'1. Checklist & Certification'!$E$14)","v":""},{"$f":"IF(B37=\"\",\"\",'1. Checklist & Certification'!$G$14)","v":""},{"$f":"IF(A37=\"\",\"\",'MHP Family Income & Rent Limits'!$B$3)","v":""},{"$f":"IF(A37=\"\",\"\",'MHP Family Income & Rent Limits'!$J$3)","v":""},{"$f":"IF(A37=\"\",\"\",'MHP Family Income & Rent Limits'!$E$4)","v":""},{"$f":"IF(A37=\"\",\"\",'MHP Family Income & Rent Limits'!$C$7)","v":""},{"$f":"IF(A37=\"\",\"\",'MHP Family Income & Rent Limits'!$F$8)","v":""},{"$f":"IF(A37=\"\",\"\",'1. Checklist & Certification'!$G$4)","v":""},{"$f":"IF(A37=\"\",\"\",'1. Checklist & Certification'!$K$39)","v":""},{"$f":"IF(A37=\"\",\"\",'1. Checklist & Certification'!$K$43)","v":""},{"$f":"IF(A37=\"\",\"\",'1. Checklist & Certification'!$K$45)","v":""},{"$f":"IF(A37=\"\",\"\",'1. Checklist & Certification'!$K$49)","v":""},{"$f":"IF(A37=\"\",\"\",'1. Checklist & Certification'!$E$66)","v":""},{"$f":"IF(A37=\"\",\"\",'1. Checklist & Certification'!$E$67)","v":""},{"$f":"IF(A37=\"\",\"\",'1. Checklist & Certification'!$E$68)","v":""},{"$f":"IF(A37=\"\",\"\",'1. Checklist & Certification'!$G$66)","v":""},{"$f":"IF(A37=\"\",\"\",'1. Checklist & Certification'!$H$66)","v":""},{"$f":"IF(A37=\"\",\"\",'1. Checklist & Certification'!$I$66)","v":""},{"$f":"IF(A37=\"\",\"\",'1. Checklist & Certification'!$I$67)","v":""},{"$f":"IF(A37=\"\",\"\",'1. Checklist & Certification'!$I$68)","v":""},null,{"$f":"IF(C37=\"\",\"\",HLOOKUP(C37,'MHP Family Income & Rent Limits'!$E$12:$L$26,2,FALSE))","v":""},{"$f":"IF(C37=\"\",\"\",HLOOKUP(C37,'MHP Family Income & Rent Limits'!$E$12:$L$26,3,FALSE))","v":""},{"$f":"IF(C37=\"\",\"\",HLOOKUP(C37,'MHP Family Income & Rent Limits'!$E$12:$L$26,4,FALSE))","v":""},{"$f":"IF(C37=\"\",\"\",HLOOKUP(C37,'MHP Family Income & Rent Limits'!$E$12:$L$26,5,FALSE))","v":""},{"$f":"IF(C37=\"\",\"\",HLOOKUP(C37,'MHP Family Income & Rent Limits'!$E$12:$L$26,6,FALSE))","v":""},{"$f":"IF(C37=\"\",\"\",HLOOKUP(C37,'MHP Family Income & Rent Limits'!$E$12:$L$26,7,FALSE))","v":""},{"$f":"IF(C37=\"\",\"\",HLOOKUP(C37,'MHP Family Income & Rent Limits'!$E$12:$L$26,8,FALSE))","v":""},{"$f":"IF(C37=\"\",\"\",HLOOKUP(C37,'MHP Family Income & Rent Limits'!$E$12:$L$26,9,FALSE))","v":""},{"$f":"IF(C37=\"\",\"\",HLOOKUP(C37,'MHP Family Income & Rent Limits'!$E$12:$L$26,10,FALSE))","v":""},{"$f":"IF(C37=\"\",\"\",HLOOKUP(C37,'MHP Family Income & Rent Limits'!$E$12:$L$26,11,FALSE))","v":""},{"$f":"IF(C37=\"\",\"\",HLOOKUP(C37,'MHP Family Income & Rent Limits'!$E$12:$L$26,12,FALSE))","v":""},{"$f":"IF(C37=\"\",\"\",HLOOKUP(C37,'MHP Family Income & Rent Limits'!$E$12:$L$26,13,FALSE))","v":""},{"$f":"IF(C37=\"\",\"\",HLOOKUP(C37,'MHP Family Income & Rent Limits'!$E$12:$L$26,14,FALSE))","v":""},{"$f":"IF(C37=\"\",\"\",HLOOKUP(C37,'MHP Family Income & Rent Limits'!$E$12:$L$26,15,FALSE))","v":""}]
[{"$f":"IF('2. Assisted & Restricted Units'!A38=\"\",\"\",'2. Assisted & Restricted Units'!A38)","v":""},{"$f":"IF('2. Assisted & Restricted Units'!B38=\"\",\"\",'2. Assisted & Restricted Units'!B38)","v":""},{"$f":"IF('2. Assisted & Restricted Units'!D38=\"\",\"\",'2. Assisted & Restricted Units'!D38)","v":""},{"$f":"IF('2. Assisted & Restricted Units'!E38=\"\",\"\",'2. Assisted & Restricted Units'!E38)","v":""},{"$f":"IF('2. Assisted & Restricted Units'!H38=\"\",\"\",'2. Assisted & Restricted Units'!H38)","v":""},{"$f":"_xlfn.IFS(E38=\"\",\"\",E38>BO38,$BP$6,E38>BN38,$BO$6,E38>BM38,$BN$6,E38>BL38,$BM$6,E38>BK38,$BL$6,E38>BJ38,$BK$6,E38>BI38,$BJ$6,E38>BH38,$BI$6,E38>BG38,$BH$6,E38>BF38,$BG$6,E38>BE38,$BF$6,E38>BD38,$BE$6,E38>BC38,$BD$6,E38>=0,$BC$6)","v":""},{"$f":"IF('2. Assisted & Restricted Units'!T38=\"\",\"\",'2. Assisted & Restricted Units'!T38)","v":""},{"$f":"IF('2. Assisted & Restricted Units'!I38=\"\",\"\",'2. Assisted & Restricted Units'!I38)","v":""},{"$f":"IF('2. Assisted & Restricted Units'!AP38=\"\",\"\",'2. Assisted & Restricted Units'!AP38)","v":0},{"$f":"IF('2. Assisted & Restricted Units'!AT38=\"\",\"\",'2. Assisted & Restricted Units'!AT38)","v":""},0,{"$f":"IF('2. Assisted & Restricted Units'!AV38=\"\",\"\",'2. Assisted & Restricted Units'!AV38)","v":""},{"$f":"IF('2. Assisted & Restricted Units'!L38=\"\",\"\",'2. Assisted & Restricted Units'!L38)","v":""},{"$f":"IF('2. Assisted & Restricted Units'!M38=\"\",\"\",'2. Assisted & Restricted Units'!M38)","v":""},{"$f":"IF('2. Assisted & Restricted Units'!O38=\"\",\"\",'2. Assisted & Restricted Units'!O38)","v":""},{"$f":"IF('2. Assisted & Restricted Units'!P38=\"\",\"\",'2. Assisted & Restricted Units'!P38)","v":""},{"$f":"IF('2. Assisted & Restricted Units'!Q38=\"\",\"\",'2. Assisted & Restricted Units'!Q38)","v":""},{"$f":"IF('2. Assisted & Restricted Units'!R38=\"\",\"\",'2. Assisted & Restricted Units'!R38)","v":""},{"$f":"IF(A38=\"\",\"\",'1. Checklist & Certification'!$K$1)","v":""},{"$f":"IF(A38=\"\",\"\",'1. Checklist & Certification'!$C$62)","v":""},{"$f":"IF(A38=\"\",\"\",'1. Checklist & Certification'!$K$62)","v":""},{"$f":"IF(A38=\"\",\"\",'1. Checklist & Certification'!$C$6)","v":""},{"$f":"IF(A38=\"\",\"\",'1. Checklist & Certification'!$G$4)","v":""},{"$f":"IF(A38=\"\",\"\",'1. Checklist & Certification'!$C$7)","v":""},{"$f":"IF(A38=\"\",\"\",'1. Checklist & Certification'!$C$8)","v":""},{"$f":"IF(A38=\"\",\"\",'1. Checklist & Certification'!$F$7)","v":""},{"$f":"IF(A38=\"\",\"\",'1. Checklist & Certification'!$F$8)","v":""},{"$f":"IF(A38=\"\",\"\",'1. Checklist & Certification'!$B$9)","v":""},{"$f":"IF(A38=\"\",\"\",'1. Checklist & Certification'!$F$9)","v":""},{"$f":"IF(A38=\"\",\"\",'1. Checklist & Certification'!$C$10)","v":""},{"$f":"IF(A38=\"\",\"\",'1. Checklist & Certification'!$C$11)","v":""},{"$f":"IF(A38=\"\",\"\",'1. Checklist & Certification'!$C$12)","v":""},{"$f":"IF(A38=\"\",\"\",'1. Checklist & Certification'!$B$14)","v":""},{"$f":"IF(A38=\"\",\"\",'1. Checklist & Certification'!$E$14)","v":""},{"$f":"IF(B38=\"\",\"\",'1. Checklist & Certification'!$G$14)","v":""},{"$f":"IF(A38=\"\",\"\",'MHP Family Income & Rent Limits'!$B$3)","v":""},{"$f":"IF(A38=\"\",\"\",'MHP Family Income & Rent Limits'!$J$3)","v":""},{"$f":"IF(A38=\"\",\"\",'MHP Family Income & Rent Limits'!$E$4)","v":""},{"$f":"IF(A38=\"\",\"\",'MHP Family Income & Rent Limits'!$C$7)","v":""},{"$f":"IF(A38=\"\",\"\",'MHP Family Income & Rent Limits'!$F$8)","v":""},{"$f":"IF(A38=\"\",\"\",'1. Checklist & Certification'!$G$4)","v":""},{"$f":"IF(A38=\"\",\"\",'1. Checklist & Certification'!$K$39)","v":""},{"$f":"IF(A38=\"\",\"\",'1. Checklist & Certification'!$K$43)","v":""},{"$f":"IF(A38=\"\",\"\",'1. Checklist & Certification'!$K$45)","v":""},{"$f":"IF(A38=\"\",\"\",'1. Checklist & Certification'!$K$49)","v":""},{"$f":"IF(A38=\"\",\"\",'1. Checklist & Certification'!$E$66)","v":""},{"$f":"IF(A38=\"\",\"\",'1. Checklist & Certification'!$E$67)","v":""},{"$f":"IF(A38=\"\",\"\",'1. Checklist & Certification'!$E$68)","v":""},{"$f":"IF(A38=\"\",\"\",'1. Checklist & Certification'!$G$66)","v":""},{"$f":"IF(A38=\"\",\"\",'1. Checklist & Certification'!$H$66)","v":""},{"$f":"IF(A38=\"\",\"\",'1. Checklist & Certification'!$I$66)","v":""},{"$f":"IF(A38=\"\",\"\",'1. Checklist & Certification'!$I$67)","v":""},{"$f":"IF(A38=\"\",\"\",'1. Checklist & Certification'!$I$68)","v":""},null,{"$f":"IF(C38=\"\",\"\",HLOOKUP(C38,'MHP Family Income & Rent Limits'!$E$12:$L$26,2,FALSE))","v":""},{"$f":"IF(C38=\"\",\"\",HLOOKUP(C38,'MHP Family Income & Rent Limits'!$E$12:$L$26,3,FALSE))","v":""},{"$f":"IF(C38=\"\",\"\",HLOOKUP(C38,'MHP Family Income & Rent Limits'!$E$12:$L$26,4,FALSE))","v":""},{"$f":"IF(C38=\"\",\"\",HLOOKUP(C38,'MHP Family Income & Rent Limits'!$E$12:$L$26,5,FALSE))","v":""},{"$f":"IF(C38=\"\",\"\",HLOOKUP(C38,'MHP Family Income & Rent Limits'!$E$12:$L$26,6,FALSE))","v":""},{"$f":"IF(C38=\"\",\"\",HLOOKUP(C38,'MHP Family Income & Rent Limits'!$E$12:$L$26,7,FALSE))","v":""},{"$f":"IF(C38=\"\",\"\",HLOOKUP(C38,'MHP Family Income & Rent Limits'!$E$12:$L$26,8,FALSE))","v":""},{"$f":"IF(C38=\"\",\"\",HLOOKUP(C38,'MHP Family Income & Rent Limits'!$E$12:$L$26,9,FALSE))","v":""},{"$f":"IF(C38=\"\",\"\",HLOOKUP(C38,'MHP Family Income & Rent Limits'!$E$12:$L$26,10,FALSE))","v":""},{"$f":"IF(C38=\"\",\"\",HLOOKUP(C38,'MHP Family Income & Rent Limits'!$E$12:$L$26,11,FALSE))","v":""},{"$f":"IF(C38=\"\",\"\",HLOOKUP(C38,'MHP Family Income & Rent Limits'!$E$12:$L$26,12,FALSE))","v":""},{"$f":"IF(C38=\"\",\"\",HLOOKUP(C38,'MHP Family Income & Rent Limits'!$E$12:$L$26,13,FALSE))","v":""},{"$f":"IF(C38=\"\",\"\",HLOOKUP(C38,'MHP Family Income & Rent Limits'!$E$12:$L$26,14,FALSE))","v":""},{"$f":"IF(C38=\"\",\"\",HLOOKUP(C38,'MHP Family Income & Rent Limits'!$E$12:$L$26,15,FALSE))","v":""}]
[{"$f":"IF('2. Assisted & Restricted Units'!A39=\"\",\"\",'2. Assisted & Restricted Units'!A39)","v":""},{"$f":"IF('2. Assisted & Restricted Units'!B39=\"\",\"\",'2. Assisted & Restricted Units'!B39)","v":""},{"$f":"IF('2. Assisted & Restricted Units'!D39=\"\",\"\",'2. Assisted & Restricted Units'!D39)","v":""},{"$f":"IF('2. Assisted & Restricted Units'!E39=\"\",\"\",'2. Assisted & Restricted Units'!E39)","v":""},{"$f":"IF('2. Assisted & Restricted Units'!H39=\"\",\"\",'2. Assisted & Restricted Units'!H39)","v":""},{"$f":"_xlfn.IFS(E39=\"\",\"\",E39>BO39,$BP$6,E39>BN39,$BO$6,E39>BM39,$BN$6,E39>BL39,$BM$6,E39>BK39,$BL$6,E39>BJ39,$BK$6,E39>BI39,$BJ$6,E39>BH39,$BI$6,E39>BG39,$BH$6,E39>BF39,$BG$6,E39>BE39,$BF$6,E39>BD39,$BE$6,E39>BC39,$BD$6,E39>=0,$BC$6)","v":""},{"$f":"IF('2. Assisted & Restricted Units'!T39=\"\",\"\",'2. Assisted & Restricted Units'!T39)","v":""},{"$f":"IF('2. Assisted & Restricted Units'!I39=\"\",\"\",'2. Assisted & Restricted Units'!I39)","v":""},{"$f":"IF('2. Assisted & Restricted Units'!AP39=\"\",\"\",'2. Assisted & Restricted Units'!AP39)","v":0},{"$f":"IF('2. Assisted & Restricted Units'!AT39=\"\",\"\",'2. Assisted & Restricted Units'!AT39)","v":""},0,{"$f":"IF('2. Assisted & Restricted Units'!AV39=\"\",\"\",'2. Assisted & Restricted Units'!AV39)","v":""},{"$f":"IF('2. Assisted & Restricted Units'!L39=\"\",\"\",'2. Assisted & Restricted Units'!L39)","v":""},{"$f":"IF('2. Assisted & Restricted Units'!M39=\"\",\"\",'2. Assisted & Restricted Units'!M39)","v":""},{"$f":"IF('2. Assisted & Restricted Units'!O39=\"\",\"\",'2. Assisted & Restricted Units'!O39)","v":""},{"$f":"IF('2. Assisted & Restricted Units'!P39=\"\",\"\",'2. Assisted & Restricted Units'!P39)","v":""},{"$f":"IF('2. Assisted & Restricted Units'!Q39=\"\",\"\",'2. Assisted & Restricted Units'!Q39)","v":""},{"$f":"IF('2. Assisted & Restricted Units'!R39=\"\",\"\",'2. Assisted & Restricted Units'!R39)","v":""},{"$f":"IF(A39=\"\",\"\",'1. Checklist & Certification'!$K$1)","v":""},{"$f":"IF(A39=\"\",\"\",'1. Checklist & Certification'!$C$62)","v":""},{"$f":"IF(A39=\"\",\"\",'1. Checklist & Certification'!$K$62)","v":""},{"$f":"IF(A39=\"\",\"\",'1. Checklist & Certification'!$C$6)","v":""},{"$f":"IF(A39=\"\",\"\",'1. Checklist & Certification'!$G$4)","v":""},{"$f":"IF(A39=\"\",\"\",'1. Checklist & Certification'!$C$7)","v":""},{"$f":"IF(A39=\"\",\"\",'1. Checklist & Certification'!$C$8)","v":""},{"$f":"IF(A39=\"\",\"\",'1. Checklist & Certification'!$F$7)","v":""},{"$f":"IF(A39=\"\",\"\",'1. Checklist & Certification'!$F$8)","v":""},{"$f":"IF(A39=\"\",\"\",'1. Checklist & Certification'!$B$9)","v":""},{"$f":"IF(A39=\"\",\"\",'1. Checklist & Certification'!$F$9)","v":""},{"$f":"IF(A39=\"\",\"\",'1. Checklist & Certification'!$C$10)","v":""},{"$f":"IF(A39=\"\",\"\",'1. Checklist & Certification'!$C$11)","v":""},{"$f":"IF(A39=\"\",\"\",'1. Checklist & Certification'!$C$12)","v":""},{"$f":"IF(A39=\"\",\"\",'1. Checklist & Certification'!$B$14)","v":""},{"$f":"IF(A39=\"\",\"\",'1. Checklist & Certification'!$E$14)","v":""},{"$f":"IF(B39=\"\",\"\",'1. Checklist & Certification'!$G$14)","v":""},{"$f":"IF(A39=\"\",\"\",'MHP Family Income & Rent Limits'!$B$3)","v":""},{"$f":"IF(A39=\"\",\"\",'MHP Family Income & Rent Limits'!$J$3)","v":""},{"$f":"IF(A39=\"\",\"\",'MHP Family Income & Rent Limits'!$E$4)","v":""},{"$f":"IF(A39=\"\",\"\",'MHP Family Income & Rent Limits'!$C$7)","v":""},{"$f":"IF(A39=\"\",\"\",'MHP Family Income & Rent Limits'!$F$8)","v":""},{"$f":"IF(A39=\"\",\"\",'1. Checklist & Certification'!$G$4)","v":""},{"$f":"IF(A39=\"\",\"\",'1. Checklist & Certification'!$K$39)","v":""},{"$f":"IF(A39=\"\",\"\",'1. Checklist & Certification'!$K$43)","v":""},{"$f":"IF(A39=\"\",\"\",'1. Checklist & Certification'!$K$45)","v":""},{"$f":"IF(A39=\"\",\"\",'1. Checklist & Certification'!$K$49)","v":""},{"$f":"IF(A39=\"\",\"\",'1. Checklist & Certification'!$E$66)","v":""},{"$f":"IF(A39=\"\",\"\",'1. Checklist & Certification'!$E$67)","v":""},{"$f":"IF(A39=\"\",\"\",'1. Checklist & Certification'!$E$68)","v":""},{"$f":"IF(A39=\"\",\"\",'1. Checklist & Certification'!$G$66)","v":""},{"$f":"IF(A39=\"\",\"\",'1. Checklist & Certification'!$H$66)","v":""},{"$f":"IF(A39=\"\",\"\",'1. Checklist & Certification'!$I$66)","v":""},{"$f":"IF(A39=\"\",\"\",'1. Checklist & Certification'!$I$67)","v":""},{"$f":"IF(A39=\"\",\"\",'1. Checklist & Certification'!$I$68)","v":""},null,{"$f":"IF(C39=\"\",\"\",HLOOKUP(C39,'MHP Family Income & Rent Limits'!$E$12:$L$26,2,FALSE))","v":""},{"$f":"IF(C39=\"\",\"\",HLOOKUP(C39,'MHP Family Income & Rent Limits'!$E$12:$L$26,3,FALSE))","v":""},{"$f":"IF(C39=\"\",\"\",HLOOKUP(C39,'MHP Family Income & Rent Limits'!$E$12:$L$26,4,FALSE))","v":""},{"$f":"IF(C39=\"\",\"\",HLOOKUP(C39,'MHP Family Income & Rent Limits'!$E$12:$L$26,5,FALSE))","v":""},{"$f":"IF(C39=\"\",\"\",HLOOKUP(C39,'MHP Family Income & Rent Limits'!$E$12:$L$26,6,FALSE))","v":""},{"$f":"IF(C39=\"\",\"\",HLOOKUP(C39,'MHP Family Income & Rent Limits'!$E$12:$L$26,7,FALSE))","v":""},{"$f":"IF(C39=\"\",\"\",HLOOKUP(C39,'MHP Family Income & Rent Limits'!$E$12:$L$26,8,FALSE))","v":""},{"$f":"IF(C39=\"\",\"\",HLOOKUP(C39,'MHP Family Income & Rent Limits'!$E$12:$L$26,9,FALSE))","v":""},{"$f":"IF(C39=\"\",\"\",HLOOKUP(C39,'MHP Family Income & Rent Limits'!$E$12:$L$26,10,FALSE))","v":""},{"$f":"IF(C39=\"\",\"\",HLOOKUP(C39,'MHP Family Income & Rent Limits'!$E$12:$L$26,11,FALSE))","v":""},{"$f":"IF(C39=\"\",\"\",HLOOKUP(C39,'MHP Family Income & Rent Limits'!$E$12:$L$26,12,FALSE))","v":""},{"$f":"IF(C39=\"\",\"\",HLOOKUP(C39,'MHP Family Income & Rent Limits'!$E$12:$L$26,13,FALSE))","v":""},{"$f":"IF(C39=\"\",\"\",HLOOKUP(C39,'MHP Family Income & Rent Limits'!$E$12:$L$26,14,FALSE))","v":""},{"$f":"IF(C39=\"\",\"\",HLOOKUP(C39,'MHP Family Income & Rent Limits'!$E$12:$L$26,15,FALSE))","v":""}]
[{"$f":"IF('2. Assisted & Restricted Units'!A40=\"\",\"\",'2. Assisted & Restricted Units'!A40)","v":""},{"$f":"IF('2. Assisted & Restricted Units'!B40=\"\",\"\",'2. Assisted & Restricted Units'!B40)","v":""},{"$f":"IF('2. Assisted & Restricted Units'!D40=\"\",\"\",'2. Assisted & Restricted Units'!D40)","v":""},{"$f":"IF('2. Assisted & Restricted Units'!E40=\"\",\"\",'2. Assisted & Restricted Units'!E40)","v":""},{"$f":"IF('2. Assisted & Restricted Units'!H40=\"\",\"\",'2. Assisted & Restricted Units'!H40)","v":""},{"$f":"_xlfn.IFS(E40=\"\",\"\",E40>BO40,$BP$6,E40>BN40,$BO$6,E40>BM40,$BN$6,E40>BL40,$BM$6,E40>BK40,$BL$6,E40>BJ40,$BK$6,E40>BI40,$BJ$6,E40>BH40,$BI$6,E40>BG40,$BH$6,E40>BF40,$BG$6,E40>BE40,$BF$6,E40>BD40,$BE$6,E40>BC40,$BD$6,E40>=0,$BC$6)","v":""},{"$f":"IF('2. Assisted & Restricted Units'!T40=\"\",\"\",'2. Assisted & Restricted Units'!T40)","v":""},{"$f":"IF('2. Assisted & Restricted Units'!I40=\"\",\"\",'2. Assisted & Restricted Units'!I40)","v":""},{"$f":"IF('2. Assisted & Restricted Units'!AP40=\"\",\"\",'2. Assisted & Restricted Units'!AP40)","v":0},{"$f":"IF('2. Assisted & Restricted Units'!AT40=\"\",\"\",'2. Assisted & Restricted Units'!AT40)","v":""},0,{"$f":"IF('2. Assisted & Restricted Units'!AV40=\"\",\"\",'2. Assisted & Restricted Units'!AV40)","v":""},{"$f":"IF('2. Assisted & Restricted Units'!L40=\"\",\"\",'2. Assisted & Restricted Units'!L40)","v":""},{"$f":"IF('2. Assisted & Restricted Units'!M40=\"\",\"\",'2. Assisted & Restricted Units'!M40)","v":""},{"$f":"IF('2. Assisted & Restricted Units'!O40=\"\",\"\",'2. Assisted & Restricted Units'!O40)","v":""},{"$f":"IF('2. Assisted & Restricted Units'!P40=\"\",\"\",'2. Assisted & Restricted Units'!P40)","v":""},{"$f":"IF('2. Assisted & Restricted Units'!Q40=\"\",\"\",'2. Assisted & Restricted Units'!Q40)","v":""},{"$f":"IF('2. Assisted & Restricted Units'!R40=\"\",\"\",'2. Assisted & Restricted Units'!R40)","v":""},{"$f":"IF(A40=\"\",\"\",'1. Checklist & Certification'!$K$1)","v":""},{"$f":"IF(A40=\"\",\"\",'1. Checklist & Certification'!$C$62)","v":""},{"$f":"IF(A40=\"\",\"\",'1. Checklist & Certification'!$K$62)","v":""},{"$f":"IF(A40=\"\",\"\",'1. Checklist & Certification'!$C$6)","v":""},{"$f":"IF(A40=\"\",\"\",'1. Checklist & Certification'!$G$4)","v":""},{"$f":"IF(A40=\"\",\"\",'1. Checklist & Certification'!$C$7)","v":""},{"$f":"IF(A40=\"\",\"\",'1. Checklist & Certification'!$C$8)","v":""},{"$f":"IF(A40=\"\",\"\",'1. Checklist & Certification'!$F$7)","v":""},{"$f":"IF(A40=\"\",\"\",'1. Checklist & Certification'!$F$8)","v":""},{"$f":"IF(A40=\"\",\"\",'1. Checklist & Certification'!$B$9)","v":""},{"$f":"IF(A40=\"\",\"\",'1. Checklist & Certification'!$F$9)","v":""},{"$f":"IF(A40=\"\",\"\",'1. Checklist & Certification'!$C$10)","v":""},{"$f":"IF(A40=\"\",\"\",'1. Checklist & Certification'!$C$11)","v":""},{"$f":"IF(A40=\"\",\"\",'1. Checklist & Certification'!$C$12)","v":""},{"$f":"IF(A40=\"\",\"\",'1. Checklist & Certification'!$B$14)","v":""},{"$f":"IF(A40=\"\",\"\",'1. Checklist & Certification'!$E$14)","v":""},{"$f":"IF(B40=\"\",\"\",'1. Checklist & Certification'!$G$14)","v":""},{"$f":"IF(A40=\"\",\"\",'MHP Family Income & Rent Limits'!$B$3)","v":""},{"$f":"IF(A40=\"\",\"\",'MHP Family Income & Rent Limits'!$J$3)","v":""},{"$f":"IF(A40=\"\",\"\",'MHP Family Income & Rent Limits'!$E$4)","v":""},{"$f":"IF(A40=\"\",\"\",'MHP Family Income & Rent Limits'!$C$7)","v":""},{"$f":"IF(A40=\"\",\"\",'MHP Family Income & Rent Limits'!$F$8)","v":""},{"$f":"IF(A40=\"\",\"\",'1. Checklist & Certification'!$G$4)","v":""},{"$f":"IF(A40=\"\",\"\",'1. Checklist & Certification'!$K$39)","v":""},{"$f":"IF(A40=\"\",\"\",'1. Checklist & Certification'!$K$43)","v":""},{"$f":"IF(A40=\"\",\"\",'1. Checklist & Certification'!$K$45)","v":""},{"$f":"IF(A40=\"\",\"\",'1. Checklist & Certification'!$K$49)","v":""},{"$f":"IF(A40=\"\",\"\",'1. Checklist & Certification'!$E$66)","v":""},{"$f":"IF(A40=\"\",\"\",'1. Checklist & Certification'!$E$67)","v":""},{"$f":"IF(A40=\"\",\"\",'1. Checklist & Certification'!$E$68)","v":""},{"$f":"IF(A40=\"\",\"\",'1. Checklist & Certification'!$G$66)","v":""},{"$f":"IF(A40=\"\",\"\",'1. Checklist & Certification'!$H$66)","v":""},{"$f":"IF(A40=\"\",\"\",'1. Checklist & Certification'!$I$66)","v":""},{"$f":"IF(A40=\"\",\"\",'1. Checklist & Certification'!$I$67)","v":""},{"$f":"IF(A40=\"\",\"\",'1. Checklist & Certification'!$I$68)","v":""},null,{"$f":"IF(C40=\"\",\"\",HLOOKUP(C40,'MHP Family Income & Rent Limits'!$E$12:$L$26,2,FALSE))","v":""},{"$f":"IF(C40=\"\",\"\",HLOOKUP(C40,'MHP Family Income & Rent Limits'!$E$12:$L$26,3,FALSE))","v":""},{"$f":"IF(C40=\"\",\"\",HLOOKUP(C40,'MHP Family Income & Rent Limits'!$E$12:$L$26,4,FALSE))","v":""},{"$f":"IF(C40=\"\",\"\",HLOOKUP(C40,'MHP Family Income & Rent Limits'!$E$12:$L$26,5,FALSE))","v":""},{"$f":"IF(C40=\"\",\"\",HLOOKUP(C40,'MHP Family Income & Rent Limits'!$E$12:$L$26,6,FALSE))","v":""},{"$f":"IF(C40=\"\",\"\",HLOOKUP(C40,'MHP Family Income & Rent Limits'!$E$12:$L$26,7,FALSE))","v":""},{"$f":"IF(C40=\"\",\"\",HLOOKUP(C40,'MHP Family Income & Rent Limits'!$E$12:$L$26,8,FALSE))","v":""},{"$f":"IF(C40=\"\",\"\",HLOOKUP(C40,'MHP Family Income & Rent Limits'!$E$12:$L$26,9,FALSE))","v":""},{"$f":"IF(C40=\"\",\"\",HLOOKUP(C40,'MHP Family Income & Rent Limits'!$E$12:$L$26,10,FALSE))","v":""},{"$f":"IF(C40=\"\",\"\",HLOOKUP(C40,'MHP Family Income & Rent Limits'!$E$12:$L$26,11,FALSE))","v":""},{"$f":"IF(C40=\"\",\"\",HLOOKUP(C40,'MHP Family Income & Rent Limits'!$E$12:$L$26,12,FALSE))","v":""},{"$f":"IF(C40=\"\",\"\",HLOOKUP(C40,'MHP Family Income & Rent Limits'!$E$12:$L$26,13,FALSE))","v":""},{"$f":"IF(C40=\"\",\"\",HLOOKUP(C40,'MHP Family Income & Rent Limits'!$E$12:$L$26,14,FALSE))","v":""},{"$f":"IF(C40=\"\",\"\",HLOOKUP(C40,'MHP Family Income & Rent Limits'!$E$12:$L$26,15,FALSE))","v":""}]
[{"$f":"IF('2. Assisted & Restricted Units'!A41=\"\",\"\",'2. Assisted & Restricted Units'!A41)","v":""},{"$f":"IF('2. Assisted & Restricted Units'!B41=\"\",\"\",'2. Assisted & Restricted Units'!B41)","v":""},{"$f":"IF('2. Assisted & Restricted Units'!D41=\"\",\"\",'2. Assisted & Restricted Units'!D41)","v":""},{"$f":"IF('2. Assisted & Restricted Units'!E41=\"\",\"\",'2. Assisted & Restricted Units'!E41)","v":""},{"$f":"IF('2. Assisted & Restricted Units'!H41=\"\",\"\",'2. Assisted & Restricted Units'!H41)","v":""},{"$f":"_xlfn.IFS(E41=\"\",\"\",E41>BO41,$BP$6,E41>BN41,$BO$6,E41>BM41,$BN$6,E41>BL41,$BM$6,E41>BK41,$BL$6,E41>BJ41,$BK$6,E41>BI41,$BJ$6,E41>BH41,$BI$6,E41>BG41,$BH$6,E41>BF41,$BG$6,E41>BE41,$BF$6,E41>BD41,$BE$6,E41>BC41,$BD$6,E41>=0,$BC$6)","v":""},{"$f":"IF('2. Assisted & Restricted Units'!T41=\"\",\"\",'2. Assisted & Restricted Units'!T41)","v":""},{"$f":"IF('2. Assisted & Restricted Units'!I41=\"\",\"\",'2. Assisted & Restricted Units'!I41)","v":""},{"$f":"IF('2. Assisted & Restricted Units'!AP41=\"\",\"\",'2. Assisted & Restricted Units'!AP41)","v":0},{"$f":"IF('2. Assisted & Restricted Units'!AT41=\"\",\"\",'2. Assisted & Restricted Units'!AT41)","v":""},0,{"$f":"IF('2. Assisted & Restricted Units'!AV41=\"\",\"\",'2. Assisted & Restricted Units'!AV41)","v":""},{"$f":"IF('2. Assisted & Restricted Units'!L41=\"\",\"\",'2. Assisted & Restricted Units'!L41)","v":""},{"$f":"IF('2. Assisted & Restricted Units'!M41=\"\",\"\",'2. Assisted & Restricted Units'!M41)","v":""},{"$f":"IF('2. Assisted & Restricted Units'!O41=\"\",\"\",'2. Assisted & Restricted Units'!O41)","v":""},{"$f":"IF('2. Assisted & Restricted Units'!P41=\"\",\"\",'2. Assisted & Restricted Units'!P41)","v":""},{"$f":"IF('2. Assisted & Restricted Units'!Q41=\"\",\"\",'2. Assisted & Restricted Units'!Q41)","v":""},{"$f":"IF('2. Assisted & Restricted Units'!R41=\"\",\"\",'2. Assisted & Restricted Units'!R41)","v":""},{"$f":"IF(A41=\"\",\"\",'1. Checklist & Certification'!$K$1)","v":""},{"$f":"IF(A41=\"\",\"\",'1. Checklist & Certification'!$C$62)","v":""},{"$f":"IF(A41=\"\",\"\",'1. Checklist & Certification'!$K$62)","v":""},{"$f":"IF(A41=\"\",\"\",'1. Checklist & Certification'!$C$6)","v":""},{"$f":"IF(A41=\"\",\"\",'1. Checklist & Certification'!$G$4)","v":""},{"$f":"IF(A41=\"\",\"\",'1. Checklist & Certification'!$C$7)","v":""},{"$f":"IF(A41=\"\",\"\",'1. Checklist & Certification'!$C$8)","v":""},{"$f":"IF(A41=\"\",\"\",'1. Checklist & Certification'!$F$7)","v":""},{"$f":"IF(A41=\"\",\"\",'1. Checklist & Certification'!$F$8)","v":""},{"$f":"IF(A41=\"\",\"\",'1. Checklist & Certification'!$B$9)","v":""},{"$f":"IF(A41=\"\",\"\",'1. Checklist & Certification'!$F$9)","v":""},{"$f":"IF(A41=\"\",\"\",'1. Checklist & Certification'!$C$10)","v":""},{"$f":"IF(A41=\"\",\"\",'1. Checklist & Certification'!$C$11)","v":""},{"$f":"IF(A41=\"\",\"\",'1. Checklist & Certification'!$C$12)","v":""},{"$f":"IF(A41=\"\",\"\",'1. Checklist & Certification'!$B$14)","v":""},{"$f":"IF(A41=\"\",\"\",'1. Checklist & Certification'!$E$14)","v":""},{"$f":"IF(B41=\"\",\"\",'1. Checklist & Certification'!$G$14)","v":""},{"$f":"IF(A41=\"\",\"\",'MHP Family Income & Rent Limits'!$B$3)","v":""},{"$f":"IF(A41=\"\",\"\",'MHP Family Income & Rent Limits'!$J$3)","v":""},{"$f":"IF(A41=\"\",\"\",'MHP Family Income & Rent Limits'!$E$4)","v":""},{"$f":"IF(A41=\"\",\"\",'MHP Family Income & Rent Limits'!$C$7)","v":""},{"$f":"IF(A41=\"\",\"\",'MHP Family Income & Rent Limits'!$F$8)","v":""},{"$f":"IF(A41=\"\",\"\",'1. Checklist & Certification'!$G$4)","v":""},{"$f":"IF(A41=\"\",\"\",'1. Checklist & Certification'!$K$39)","v":""},{"$f":"IF(A41=\"\",\"\",'1. Checklist & Certification'!$K$43)","v":""},{"$f":"IF(A41=\"\",\"\",'1. Checklist & Certification'!$K$45)","v":""},{"$f":"IF(A41=\"\",\"\",'1. Checklist & Certification'!$K$49)","v":""},{"$f":"IF(A41=\"\",\"\",'1. Checklist & Certification'!$E$66)","v":""},{"$f":"IF(A41=\"\",\"\",'1. Checklist & Certification'!$E$67)","v":""},{"$f":"IF(A41=\"\",\"\",'1. Checklist & Certification'!$E$68)","v":""},{"$f":"IF(A41=\"\",\"\",'1. Checklist & Certification'!$G$66)","v":""},{"$f":"IF(A41=\"\",\"\",'1. Checklist & Certification'!$H$66)","v":""},{"$f":"IF(A41=\"\",\"\",'1. Checklist & Certification'!$I$66)","v":""},{"$f":"IF(A41=\"\",\"\",'1. Checklist & Certification'!$I$67)","v":""},{"$f":"IF(A41=\"\",\"\",'1. Checklist & Certification'!$I$68)","v":""},null,{"$f":"IF(C41=\"\",\"\",HLOOKUP(C41,'MHP Family Income & Rent Limits'!$E$12:$L$26,2,FALSE))","v":""},{"$f":"IF(C41=\"\",\"\",HLOOKUP(C41,'MHP Family Income & Rent Limits'!$E$12:$L$26,3,FALSE))","v":""},{"$f":"IF(C41=\"\",\"\",HLOOKUP(C41,'MHP Family Income & Rent Limits'!$E$12:$L$26,4,FALSE))","v":""},{"$f":"IF(C41=\"\",\"\",HLOOKUP(C41,'MHP Family Income & Rent Limits'!$E$12:$L$26,5,FALSE))","v":""},{"$f":"IF(C41=\"\",\"\",HLOOKUP(C41,'MHP Family Income & Rent Limits'!$E$12:$L$26,6,FALSE))","v":""},{"$f":"IF(C41=\"\",\"\",HLOOKUP(C41,'MHP Family Income & Rent Limits'!$E$12:$L$26,7,FALSE))","v":""},{"$f":"IF(C41=\"\",\"\",HLOOKUP(C41,'MHP Family Income & Rent Limits'!$E$12:$L$26,8,FALSE))","v":""},{"$f":"IF(C41=\"\",\"\",HLOOKUP(C41,'MHP Family Income & Rent Limits'!$E$12:$L$26,9,FALSE))","v":""},{"$f":"IF(C41=\"\",\"\",HLOOKUP(C41,'MHP Family Income & Rent Limits'!$E$12:$L$26,10,FALSE))","v":""},{"$f":"IF(C41=\"\",\"\",HLOOKUP(C41,'MHP Family Income & Rent Limits'!$E$12:$L$26,11,FALSE))","v":""},{"$f":"IF(C41=\"\",\"\",HLOOKUP(C41,'MHP Family Income & Rent Limits'!$E$12:$L$26,12,FALSE))","v":""},{"$f":"IF(C41=\"\",\"\",HLOOKUP(C41,'MHP Family Income & Rent Limits'!$E$12:$L$26,13,FALSE))","v":""},{"$f":"IF(C41=\"\",\"\",HLOOKUP(C41,'MHP Family Income & Rent Limits'!$E$12:$L$26,14,FALSE))","v":""},{"$f":"IF(C41=\"\",\"\",HLOOKUP(C41,'MHP Family Income & Rent Limits'!$E$12:$L$26,15,FALSE))","v":""}]
[{"$f":"IF('2. Assisted & Restricted Units'!A42=\"\",\"\",'2. Assisted & Restricted Units'!A42)","v":""},{"$f":"IF('2. Assisted & Restricted Units'!B42=\"\",\"\",'2. Assisted & Restricted Units'!B42)","v":""},{"$f":"IF('2. Assisted & Restricted Units'!D42=\"\",\"\",'2. Assisted & Restricted Units'!D42)","v":""},{"$f":"IF('2. Assisted & Restricted Units'!E42=\"\",\"\",'2. Assisted & Restricted Units'!E42)","v":""},{"$f":"IF('2. Assisted & Restricted Units'!H42=\"\",\"\",'2. Assisted & Restricted Units'!H42)","v":""},{"$f":"_xlfn.IFS(E42=\"\",\"\",E42>BO42,$BP$6,E42>BN42,$BO$6,E42>BM42,$BN$6,E42>BL42,$BM$6,E42>BK42,$BL$6,E42>BJ42,$BK$6,E42>BI42,$BJ$6,E42>BH42,$BI$6,E42>BG42,$BH$6,E42>BF42,$BG$6,E42>BE42,$BF$6,E42>BD42,$BE$6,E42>BC42,$BD$6,E42>=0,$BC$6)","v":""},{"$f":"IF('2. Assisted & Restricted Units'!T42=\"\",\"\",'2. Assisted & Restricted Units'!T42)","v":""},{"$f":"IF('2. Assisted & Restricted Units'!I42=\"\",\"\",'2. Assisted & Restricted Units'!I42)","v":""},{"$f":"IF('2. Assisted & Restricted Units'!AP42=\"\",\"\",'2. Assisted & Restricted Units'!AP42)","v":0},{"$f":"IF('2. Assisted & Restricted Units'!AT42=\"\",\"\",'2. Assisted & Restricted Units'!AT42)","v":""},0,{"$f":"IF('2. Assisted & Restricted Units'!AV42=\"\",\"\",'2. Assisted & Restricted Units'!AV42)","v":""},{"$f":"IF('2. Assisted & Restricted Units'!L42=\"\",\"\",'2. Assisted & Restricted Units'!L42)","v":""},{"$f":"IF('2. Assisted & Restricted Units'!M42=\"\",\"\",'2. Assisted & Restricted Units'!M42)","v":""},{"$f":"IF('2. Assisted & Restricted Units'!O42=\"\",\"\",'2. Assisted & Restricted Units'!O42)","v":""},{"$f":"IF('2. Assisted & Restricted Units'!P42=\"\",\"\",'2. Assisted & Restricted Units'!P42)","v":""},{"$f":"IF('2. Assisted & Restricted Units'!Q42=\"\",\"\",'2. Assisted & Restricted Units'!Q42)","v":""},{"$f":"IF('2. Assisted & Restricted Units'!R42=\"\",\"\",'2. Assisted & Restricted Units'!R42)","v":""},{"$f":"IF(A42=\"\",\"\",'1. Checklist & Certification'!$K$1)","v":""},{"$f":"IF(A42=\"\",\"\",'1. Checklist & Certification'!$C$62)","v":""},{"$f":"IF(A42=\"\",\"\",'1. Checklist & Certification'!$K$62)","v":""},{"$f":"IF(A42=\"\",\"\",'1. Checklist & Certification'!$C$6)","v":""},{"$f":"IF(A42=\"\",\"\",'1. Checklist & Certification'!$G$4)","v":""},{"$f":"IF(A42=\"\",\"\",'1. Checklist & Certification'!$C$7)","v":""},{"$f":"IF(A42=\"\",\"\",'1. Checklist & Certification'!$C$8)","v":""},{"$f":"IF(A42=\"\",\"\",'1. Checklist & Certification'!$F$7)","v":""},{"$f":"IF(A42=\"\",\"\",'1. Checklist & Certification'!$F$8)","v":""},{"$f":"IF(A42=\"\",\"\",'1. Checklist & Certification'!$B$9)","v":""},{"$f":"IF(A42=\"\",\"\",'1. Checklist & Certification'!$F$9)","v":""},{"$f":"IF(A42=\"\",\"\",'1. Checklist & Certification'!$C$10)","v":""},{"$f":"IF(A42=\"\",\"\",'1. Checklist & Certification'!$C$11)","v":""},{"$f":"IF(A42=\"\",\"\",'1. Checklist & Certification'!$C$12)","v":""},{"$f":"IF(A42=\"\",\"\",'1. Checklist & Certification'!$B$14)","v":""},{"$f":"IF(A42=\"\",\"\",'1. Checklist & Certification'!$E$14)","v":""},{"$f":"IF(B42=\"\",\"\",'1. Checklist & Certification'!$G$14)","v":""},{"$f":"IF(A42=\"\",\"\",'MHP Family Income & Rent Limits'!$B$3)","v":""},{"$f":"IF(A42=\"\",\"\",'MHP Family Income & Rent Limits'!$J$3)","v":""},{"$f":"IF(A42=\"\",\"\",'MHP Family Income & Rent Limits'!$E$4)","v":""},{"$f":"IF(A42=\"\",\"\",'MHP Family Income & Rent Limits'!$C$7)","v":""},{"$f":"IF(A42=\"\",\"\",'MHP Family Income & Rent Limits'!$F$8)","v":""},{"$f":"IF(A42=\"\",\"\",'1. Checklist & Certification'!$G$4)","v":""},{"$f":"IF(A42=\"\",\"\",'1. Checklist & Certification'!$K$39)","v":""},{"$f":"IF(A42=\"\",\"\",'1. Checklist & Certification'!$K$43)","v":""},{"$f":"IF(A42=\"\",\"\",'1. Checklist & Certification'!$K$45)","v":""},{"$f":"IF(A42=\"\",\"\",'1. Checklist & Certification'!$K$49)","v":""},{"$f":"IF(A42=\"\",\"\",'1. Checklist & Certification'!$E$66)","v":""},{"$f":"IF(A42=\"\",\"\",'1. Checklist & Certification'!$E$67)","v":""},{"$f":"IF(A42=\"\",\"\",'1. Checklist & Certification'!$E$68)","v":""},{"$f":"IF(A42=\"\",\"\",'1. Checklist & Certification'!$G$66)","v":""},{"$f":"IF(A42=\"\",\"\",'1. Checklist & Certification'!$H$66)","v":""},{"$f":"IF(A42=\"\",\"\",'1. Checklist & Certification'!$I$66)","v":""},{"$f":"IF(A42=\"\",\"\",'1. Checklist & Certification'!$I$67)","v":""},{"$f":"IF(A42=\"\",\"\",'1. Checklist & Certification'!$I$68)","v":""},null,{"$f":"IF(C42=\"\",\"\",HLOOKUP(C42,'MHP Family Income & Rent Limits'!$E$12:$L$26,2,FALSE))","v":""},{"$f":"IF(C42=\"\",\"\",HLOOKUP(C42,'MHP Family Income & Rent Limits'!$E$12:$L$26,3,FALSE))","v":""},{"$f":"IF(C42=\"\",\"\",HLOOKUP(C42,'MHP Family Income & Rent Limits'!$E$12:$L$26,4,FALSE))","v":""},{"$f":"IF(C42=\"\",\"\",HLOOKUP(C42,'MHP Family Income & Rent Limits'!$E$12:$L$26,5,FALSE))","v":""},{"$f":"IF(C42=\"\",\"\",HLOOKUP(C42,'MHP Family Income & Rent Limits'!$E$12:$L$26,6,FALSE))","v":""},{"$f":"IF(C42=\"\",\"\",HLOOKUP(C42,'MHP Family Income & Rent Limits'!$E$12:$L$26,7,FALSE))","v":""},{"$f":"IF(C42=\"\",\"\",HLOOKUP(C42,'MHP Family Income & Rent Limits'!$E$12:$L$26,8,FALSE))","v":""},{"$f":"IF(C42=\"\",\"\",HLOOKUP(C42,'MHP Family Income & Rent Limits'!$E$12:$L$26,9,FALSE))","v":""},{"$f":"IF(C42=\"\",\"\",HLOOKUP(C42,'MHP Family Income & Rent Limits'!$E$12:$L$26,10,FALSE))","v":""},{"$f":"IF(C42=\"\",\"\",HLOOKUP(C42,'MHP Family Income & Rent Limits'!$E$12:$L$26,11,FALSE))","v":""},{"$f":"IF(C42=\"\",\"\",HLOOKUP(C42,'MHP Family Income & Rent Limits'!$E$12:$L$26,12,FALSE))","v":""},{"$f":"IF(C42=\"\",\"\",HLOOKUP(C42,'MHP Family Income & Rent Limits'!$E$12:$L$26,13,FALSE))","v":""},{"$f":"IF(C42=\"\",\"\",HLOOKUP(C42,'MHP Family Income & Rent Limits'!$E$12:$L$26,14,FALSE))","v":""},{"$f":"IF(C42=\"\",\"\",HLOOKUP(C42,'MHP Family Income & Rent Limits'!$E$12:$L$26,15,FALSE))","v":""}]
[{"$f":"IF('2. Assisted & Restricted Units'!A43=\"\",\"\",'2. Assisted & Restricted Units'!A43)","v":""},{"$f":"IF('2. Assisted & Restricted Units'!B43=\"\",\"\",'2. Assisted & Restricted Units'!B43)","v":""},{"$f":"IF('2. Assisted & Restricted Units'!D43=\"\",\"\",'2. Assisted & Restricted Units'!D43)","v":""},{"$f":"IF('2. Assisted & Restricted Units'!E43=\"\",\"\",'2. Assisted & Restricted Units'!E43)","v":""},{"$f":"IF('2. Assisted & Restricted Units'!H43=\"\",\"\",'2. Assisted & Restricted Units'!H43)","v":""},{"$f":"_xlfn.IFS(E43=\"\",\"\",E43>BO43,$BP$6,E43>BN43,$BO$6,E43>BM43,$BN$6,E43>BL43,$BM$6,E43>BK43,$BL$6,E43>BJ43,$BK$6,E43>BI43,$BJ$6,E43>BH43,$BI$6,E43>BG43,$BH$6,E43>BF43,$BG$6,E43>BE43,$BF$6,E43>BD43,$BE$6,E43>BC43,$BD$6,E43>=0,$BC$6)","v":""},{"$f":"IF('2. Assisted & Restricted Units'!T43=\"\",\"\",'2. Assisted & Restricted Units'!T43)","v":""},{"$f":"IF('2. Assisted & Restricted Units'!I43=\"\",\"\",'2. Assisted & Restricted Units'!I43)","v":""},{"$f":"IF('2. Assisted & Restricted Units'!AP43=\"\",\"\",'2. Assisted & Restricted Units'!AP43)","v":0},{"$f":"IF('2. Assisted & Restricted Units'!AT43=\"\",\"\",'2. Assisted & Restricted Units'!AT43)","v":""},0,{"$f":"IF('2. Assisted & Restricted Units'!AV43=\"\",\"\",'2. Assisted & Restricted Units'!AV43)","v":""},{"$f":"IF('2. Assisted & Restricted Units'!L43=\"\",\"\",'2. Assisted & Restricted Units'!L43)","v":""},{"$f":"IF('2. Assisted & Restricted Units'!M43=\"\",\"\",'2. Assisted & Restricted Units'!M43)","v":""},{"$f":"IF('2. Assisted & Restricted Units'!O43=\"\",\"\",'2. Assisted & Restricted Units'!O43)","v":""},{"$f":"IF('2. Assisted & Restricted Units'!P43=\"\",\"\",'2. Assisted & Restricted Units'!P43)","v":""},{"$f":"IF('2. Assisted & Restricted Units'!Q43=\"\",\"\",'2. Assisted & Restricted Units'!Q43)","v":""},{"$f":"IF('2. Assisted & Restricted Units'!R43=\"\",\"\",'2. Assisted & Restricted Units'!R43)","v":""},{"$f":"IF(A43=\"\",\"\",'1. Checklist & Certification'!$K$1)","v":""},{"$f":"IF(A43=\"\",\"\",'1. Checklist & Certification'!$C$62)","v":""},{"$f":"IF(A43=\"\",\"\",'1. Checklist & Certification'!$K$62)","v":""},{"$f":"IF(A43=\"\",\"\",'1. Checklist & Certification'!$C$6)","v":""},{"$f":"IF(A43=\"\",\"\",'1. Checklist & Certification'!$G$4)","v":""},{"$f":"IF(A43=\"\",\"\",'1. Checklist & Certification'!$C$7)","v":""},{"$f":"IF(A43=\"\",\"\",'1. Checklist & Certification'!$C$8)","v":""},{"$f":"IF(A43=\"\",\"\",'1. Checklist & Certification'!$F$7)","v":""},{"$f":"IF(A43=\"\",\"\",'1. Checklist & Certification'!$F$8)","v":""},{"$f":"IF(A43=\"\",\"\",'1. Checklist & Certification'!$B$9)","v":""},{"$f":"IF(A43=\"\",\"\",'1. Checklist & Certification'!$F$9)","v":""},{"$f":"IF(A43=\"\",\"\",'1. Checklist & Certification'!$C$10)","v":""},{"$f":"IF(A43=\"\",\"\",'1. Checklist & Certification'!$C$11)","v":""},{"$f":"IF(A43=\"\",\"\",'1. Checklist & Certification'!$C$12)","v":""},{"$f":"IF(A43=\"\",\"\",'1. Checklist & Certification'!$B$14)","v":""},{"$f":"IF(A43=\"\",\"\",'1. Checklist & Certification'!$E$14)","v":""},{"$f":"IF(B43=\"\",\"\",'1. Checklist & Certification'!$G$14)","v":""},{"$f":"IF(A43=\"\",\"\",'MHP Family Income & Rent Limits'!$B$3)","v":""},{"$f":"IF(A43=\"\",\"\",'MHP Family Income & Rent Limits'!$J$3)","v":""},{"$f":"IF(A43=\"\",\"\",'MHP Family Income & Rent Limits'!$E$4)","v":""},{"$f":"IF(A43=\"\",\"\",'MHP Family Income & Rent Limits'!$C$7)","v":""},{"$f":"IF(A43=\"\",\"\",'MHP Family Income & Rent Limits'!$F$8)","v":""},{"$f":"IF(A43=\"\",\"\",'1. Checklist & Certification'!$G$4)","v":""},{"$f":"IF(A43=\"\",\"\",'1. Checklist & Certification'!$K$39)","v":""},{"$f":"IF(A43=\"\",\"\",'1. Checklist & Certification'!$K$43)","v":""},{"$f":"IF(A43=\"\",\"\",'1. Checklist & Certification'!$K$45)","v":""},{"$f":"IF(A43=\"\",\"\",'1. Checklist & Certification'!$K$49)","v":""},{"$f":"IF(A43=\"\",\"\",'1. Checklist & Certification'!$E$66)","v":""},{"$f":"IF(A43=\"\",\"\",'1. Checklist & Certification'!$E$67)","v":""},{"$f":"IF(A43=\"\",\"\",'1. Checklist & Certification'!$E$68)","v":""},{"$f":"IF(A43=\"\",\"\",'1. Checklist & Certification'!$G$66)","v":""},{"$f":"IF(A43=\"\",\"\",'1. Checklist & Certification'!$H$66)","v":""},{"$f":"IF(A43=\"\",\"\",'1. Checklist & Certification'!$I$66)","v":""},{"$f":"IF(A43=\"\",\"\",'1. Checklist & Certification'!$I$67)","v":""},{"$f":"IF(A43=\"\",\"\",'1. Checklist & Certification'!$I$68)","v":""},null,{"$f":"IF(C43=\"\",\"\",HLOOKUP(C43,'MHP Family Income & Rent Limits'!$E$12:$L$26,2,FALSE))","v":""},{"$f":"IF(C43=\"\",\"\",HLOOKUP(C43,'MHP Family Income & Rent Limits'!$E$12:$L$26,3,FALSE))","v":""},{"$f":"IF(C43=\"\",\"\",HLOOKUP(C43,'MHP Family Income & Rent Limits'!$E$12:$L$26,4,FALSE))","v":""},{"$f":"IF(C43=\"\",\"\",HLOOKUP(C43,'MHP Family Income & Rent Limits'!$E$12:$L$26,5,FALSE))","v":""},{"$f":"IF(C43=\"\",\"\",HLOOKUP(C43,'MHP Family Income & Rent Limits'!$E$12:$L$26,6,FALSE))","v":""},{"$f":"IF(C43=\"\",\"\",HLOOKUP(C43,'MHP Family Income & Rent Limits'!$E$12:$L$26,7,FALSE))","v":""},{"$f":"IF(C43=\"\",\"\",HLOOKUP(C43,'MHP Family Income & Rent Limits'!$E$12:$L$26,8,FALSE))","v":""},{"$f":"IF(C43=\"\",\"\",HLOOKUP(C43,'MHP Family Income & Rent Limits'!$E$12:$L$26,9,FALSE))","v":""},{"$f":"IF(C43=\"\",\"\",HLOOKUP(C43,'MHP Family Income & Rent Limits'!$E$12:$L$26,10,FALSE))","v":""},{"$f":"IF(C43=\"\",\"\",HLOOKUP(C43,'MHP Family Income & Rent Limits'!$E$12:$L$26,11,FALSE))","v":""},{"$f":"IF(C43=\"\",\"\",HLOOKUP(C43,'MHP Family Income & Rent Limits'!$E$12:$L$26,12,FALSE))","v":""},{"$f":"IF(C43=\"\",\"\",HLOOKUP(C43,'MHP Family Income & Rent Limits'!$E$12:$L$26,13,FALSE))","v":""},{"$f":"IF(C43=\"\",\"\",HLOOKUP(C43,'MHP Family Income & Rent Limits'!$E$12:$L$26,14,FALSE))","v":""},{"$f":"IF(C43=\"\",\"\",HLOOKUP(C43,'MHP Family Income & Rent Limits'!$E$12:$L$26,15,FALSE))","v":""}]
[{"$f":"IF('2. Assisted & Restricted Units'!A44=\"\",\"\",'2. Assisted & Restricted Units'!A44)","v":""},{"$f":"IF('2. Assisted & Restricted Units'!B44=\"\",\"\",'2. Assisted & Restricted Units'!B44)","v":""},{"$f":"IF('2. Assisted & Restricted Units'!D44=\"\",\"\",'2. Assisted & Restricted Units'!D44)","v":""},{"$f":"IF('2. Assisted & Restricted Units'!E44=\"\",\"\",'2. Assisted & Restricted Units'!E44)","v":""},{"$f":"IF('2. Assisted & Restricted Units'!H44=\"\",\"\",'2. Assisted & Restricted Units'!H44)","v":""},{"$f":"_xlfn.IFS(E44=\"\",\"\",E44>BO44,$BP$6,E44>BN44,$BO$6,E44>BM44,$BN$6,E44>BL44,$BM$6,E44>BK44,$BL$6,E44>BJ44,$BK$6,E44>BI44,$BJ$6,E44>BH44,$BI$6,E44>BG44,$BH$6,E44>BF44,$BG$6,E44>BE44,$BF$6,E44>BD44,$BE$6,E44>BC44,$BD$6,E44>=0,$BC$6)","v":""},{"$f":"IF('2. Assisted & Restricted Units'!T44=\"\",\"\",'2. Assisted & Restricted Units'!T44)","v":""},{"$f":"IF('2. Assisted & Restricted Units'!I44=\"\",\"\",'2. Assisted & Restricted Units'!I44)","v":""},{"$f":"IF('2. Assisted & Restricted Units'!AP44=\"\",\"\",'2. Assisted & Restricted Units'!AP44)","v":0},{"$f":"IF('2. Assisted & Restricted Units'!AT44=\"\",\"\",'2. Assisted & Restricted Units'!AT44)","v":""},0,{"$f":"IF('2. Assisted & Restricted Units'!AV44=\"\",\"\",'2. Assisted & Restricted Units'!AV44)","v":""},{"$f":"IF('2. Assisted & Restricted Units'!L44=\"\",\"\",'2. Assisted & Restricted Units'!L44)","v":""},{"$f":"IF('2. Assisted & Restricted Units'!M44=\"\",\"\",'2. Assisted & Restricted Units'!M44)","v":""},{"$f":"IF('2. Assisted & Restricted Units'!O44=\"\",\"\",'2. Assisted & Restricted Units'!O44)","v":""},{"$f":"IF('2. Assisted & Restricted Units'!P44=\"\",\"\",'2. Assisted & Restricted Units'!P44)","v":""},{"$f":"IF('2. Assisted & Restricted Units'!Q44=\"\",\"\",'2. Assisted & Restricted Units'!Q44)","v":""},{"$f":"IF('2. Assisted & Restricted Units'!R44=\"\",\"\",'2. Assisted & Restricted Units'!R44)","v":""},{"$f":"IF(A44=\"\",\"\",'1. Checklist & Certification'!$K$1)","v":""},{"$f":"IF(A44=\"\",\"\",'1. Checklist & Certification'!$C$62)","v":""},{"$f":"IF(A44=\"\",\"\",'1. Checklist & Certification'!$K$62)","v":""},{"$f":"IF(A44=\"\",\"\",'1. Checklist & Certification'!$C$6)","v":""},{"$f":"IF(A44=\"\",\"\",'1. Checklist & Certification'!$G$4)","v":""},{"$f":"IF(A44=\"\",\"\",'1. Checklist & Certification'!$C$7)","v":""},{"$f":"IF(A44=\"\",\"\",'1. Checklist & Certification'!$C$8)","v":""},{"$f":"IF(A44=\"\",\"\",'1. Checklist & Certification'!$F$7)","v":""},{"$f":"IF(A44=\"\",\"\",'1. Checklist & Certification'!$F$8)","v":""},{"$f":"IF(A44=\"\",\"\",'1. Checklist & Certification'!$B$9)","v":""},{"$f":"IF(A44=\"\",\"\",'1. Checklist & Certification'!$F$9)","v":""},{"$f":"IF(A44=\"\",\"\",'1. Checklist & Certification'!$C$10)","v":""},{"$f":"IF(A44=\"\",\"\",'1. Checklist & Certification'!$C$11)","v":""},{"$f":"IF(A44=\"\",\"\",'1. Checklist & Certification'!$C$12)","v":""},{"$f":"IF(A44=\"\",\"\",'1. Checklist & Certification'!$B$14)","v":""},{"$f":"IF(A44=\"\",\"\",'1. Checklist & Certification'!$E$14)","v":""},{"$f":"IF(B44=\"\",\"\",'1. Checklist & Certification'!$G$14)","v":""},{"$f":"IF(A44=\"\",\"\",'MHP Family Income & Rent Limits'!$B$3)","v":""},{"$f":"IF(A44=\"\",\"\",'MHP Family Income & Rent Limits'!$J$3)","v":""},{"$f":"IF(A44=\"\",\"\",'MHP Family Income & Rent Limits'!$E$4)","v":""},{"$f":"IF(A44=\"\",\"\",'MHP Family Income & Rent Limits'!$C$7)","v":""},{"$f":"IF(A44=\"\",\"\",'MHP Family Income & Rent Limits'!$F$8)","v":""},{"$f":"IF(A44=\"\",\"\",'1. Checklist & Certification'!$G$4)","v":""},{"$f":"IF(A44=\"\",\"\",'1. Checklist & Certification'!$K$39)","v":""},{"$f":"IF(A44=\"\",\"\",'1. Checklist & Certification'!$K$43)","v":""},{"$f":"IF(A44=\"\",\"\",'1. Checklist & Certification'!$K$45)","v":""},{"$f":"IF(A44=\"\",\"\",'1. Checklist & Certification'!$K$49)","v":""},{"$f":"IF(A44=\"\",\"\",'1. Checklist & Certification'!$E$66)","v":""},{"$f":"IF(A44=\"\",\"\",'1. Checklist & Certification'!$E$67)","v":""},{"$f":"IF(A44=\"\",\"\",'1. Checklist & Certification'!$E$68)","v":""},{"$f":"IF(A44=\"\",\"\",'1. Checklist & Certification'!$G$66)","v":""},{"$f":"IF(A44=\"\",\"\",'1. Checklist & Certification'!$H$66)","v":""},{"$f":"IF(A44=\"\",\"\",'1. Checklist & Certification'!$I$66)","v":""},{"$f":"IF(A44=\"\",\"\",'1. Checklist & Certification'!$I$67)","v":""},{"$f":"IF(A44=\"\",\"\",'1. Checklist & Certification'!$I$68)","v":""},null,{"$f":"IF(C44=\"\",\"\",HLOOKUP(C44,'MHP Family Income & Rent Limits'!$E$12:$L$26,2,FALSE))","v":""},{"$f":"IF(C44=\"\",\"\",HLOOKUP(C44,'MHP Family Income & Rent Limits'!$E$12:$L$26,3,FALSE))","v":""},{"$f":"IF(C44=\"\",\"\",HLOOKUP(C44,'MHP Family Income & Rent Limits'!$E$12:$L$26,4,FALSE))","v":""},{"$f":"IF(C44=\"\",\"\",HLOOKUP(C44,'MHP Family Income & Rent Limits'!$E$12:$L$26,5,FALSE))","v":""},{"$f":"IF(C44=\"\",\"\",HLOOKUP(C44,'MHP Family Income & Rent Limits'!$E$12:$L$26,6,FALSE))","v":""},{"$f":"IF(C44=\"\",\"\",HLOOKUP(C44,'MHP Family Income & Rent Limits'!$E$12:$L$26,7,FALSE))","v":""},{"$f":"IF(C44=\"\",\"\",HLOOKUP(C44,'MHP Family Income & Rent Limits'!$E$12:$L$26,8,FALSE))","v":""},{"$f":"IF(C44=\"\",\"\",HLOOKUP(C44,'MHP Family Income & Rent Limits'!$E$12:$L$26,9,FALSE))","v":""},{"$f":"IF(C44=\"\",\"\",HLOOKUP(C44,'MHP Family Income & Rent Limits'!$E$12:$L$26,10,FALSE))","v":""},{"$f":"IF(C44=\"\",\"\",HLOOKUP(C44,'MHP Family Income & Rent Limits'!$E$12:$L$26,11,FALSE))","v":""},{"$f":"IF(C44=\"\",\"\",HLOOKUP(C44,'MHP Family Income & Rent Limits'!$E$12:$L$26,12,FALSE))","v":""},{"$f":"IF(C44=\"\",\"\",HLOOKUP(C44,'MHP Family Income & Rent Limits'!$E$12:$L$26,13,FALSE))","v":""},{"$f":"IF(C44=\"\",\"\",HLOOKUP(C44,'MHP Family Income & Rent Limits'!$E$12:$L$26,14,FALSE))","v":""},{"$f":"IF(C44=\"\",\"\",HLOOKUP(C44,'MHP Family Income & Rent Limits'!$E$12:$L$26,15,FALSE))","v":""}]
[{"$f":"IF('2. Assisted & Restricted Units'!A45=\"\",\"\",'2. Assisted & Restricted Units'!A45)","v":""},{"$f":"IF('2. Assisted & Restricted Units'!B45=\"\",\"\",'2. Assisted & Restricted Units'!B45)","v":""},{"$f":"IF('2. Assisted & Restricted Units'!D45=\"\",\"\",'2. Assisted & Restricted Units'!D45)","v":""},{"$f":"IF('2. Assisted & Restricted Units'!E45=\"\",\"\",'2. Assisted & Restricted Units'!E45)","v":""},{"$f":"IF('2. Assisted & Restricted Units'!H45=\"\",\"\",'2. Assisted & Restricted Units'!H45)","v":""},{"$f":"_xlfn.IFS(E45=\"\",\"\",E45>BO45,$BP$6,E45>BN45,$BO$6,E45>BM45,$BN$6,E45>BL45,$BM$6,E45>BK45,$BL$6,E45>BJ45,$BK$6,E45>BI45,$BJ$6,E45>BH45,$BI$6,E45>BG45,$BH$6,E45>BF45,$BG$6,E45>BE45,$BF$6,E45>BD45,$BE$6,E45>BC45,$BD$6,E45>=0,$BC$6)","v":""},{"$f":"IF('2. Assisted & Restricted Units'!T45=\"\",\"\",'2. Assisted & Restricted Units'!T45)","v":""},{"$f":"IF('2. Assisted & Restricted Units'!I45=\"\",\"\",'2. Assisted & Restricted Units'!I45)","v":""},{"$f":"IF('2. Assisted & Restricted Units'!AP45=\"\",\"\",'2. Assisted & Restricted Units'!AP45)","v":0},{"$f":"IF('2. Assisted & Restricted Units'!AT45=\"\",\"\",'2. Assisted & Restricted Units'!AT45)","v":""},0,{"$f":"IF('2. Assisted & Restricted Units'!AV45=\"\",\"\",'2. Assisted & Restricted Units'!AV45)","v":""},{"$f":"IF('2. Assisted & Restricted Units'!L45=\"\",\"\",'2. Assisted & Restricted Units'!L45)","v":""},{"$f":"IF('2. Assisted & Restricted Units'!M45=\"\",\"\",'2. Assisted & Restricted Units'!M45)","v":""},{"$f":"IF('2. Assisted & Restricted Units'!O45=\"\",\"\",'2. Assisted & Restricted Units'!O45)","v":""},{"$f":"IF('2. Assisted & Restricted Units'!P45=\"\",\"\",'2. Assisted & Restricted Units'!P45)","v":""},{"$f":"IF('2. Assisted & Restricted Units'!Q45=\"\",\"\",'2. Assisted & Restricted Units'!Q45)","v":""},{"$f":"IF('2. Assisted & Restricted Units'!R45=\"\",\"\",'2. Assisted & Restricted Units'!R45)","v":""},{"$f":"IF(A45=\"\",\"\",'1. Checklist & Certification'!$K$1)","v":""},{"$f":"IF(A45=\"\",\"\",'1. Checklist & Certification'!$C$62)","v":""},{"$f":"IF(A45=\"\",\"\",'1. Checklist & Certification'!$K$62)","v":""},{"$f":"IF(A45=\"\",\"\",'1. Checklist & Certification'!$C$6)","v":""},{"$f":"IF(A45=\"\",\"\",'1. Checklist & Certification'!$G$4)","v":""},{"$f":"IF(A45=\"\",\"\",'1. Checklist & Certification'!$C$7)","v":""},{"$f":"IF(A45=\"\",\"\",'1. Checklist & Certification'!$C$8)","v":""},{"$f":"IF(A45=\"\",\"\",'1. Checklist & Certification'!$F$7)","v":""},{"$f":"IF(A45=\"\",\"\",'1. Checklist & Certification'!$F$8)","v":""},{"$f":"IF(A45=\"\",\"\",'1. Checklist & Certification'!$B$9)","v":""},{"$f":"IF(A45=\"\",\"\",'1. Checklist & Certification'!$F$9)","v":""},{"$f":"IF(A45=\"\",\"\",'1. Checklist & Certification'!$C$10)","v":""},{"$f":"IF(A45=\"\",\"\",'1. Checklist & Certification'!$C$11)","v":""},{"$f":"IF(A45=\"\",\"\",'1. Checklist & Certification'!$C$12)","v":""},{"$f":"IF(A45=\"\",\"\",'1. Checklist & Certification'!$B$14)","v":""},{"$f":"IF(A45=\"\",\"\",'1. Checklist & Certification'!$E$14)","v":""},{"$f":"IF(B45=\"\",\"\",'1. Checklist & Certification'!$G$14)","v":""},{"$f":"IF(A45=\"\",\"\",'MHP Family Income & Rent Limits'!$B$3)","v":""},{"$f":"IF(A45=\"\",\"\",'MHP Family Income & Rent Limits'!$J$3)","v":""},{"$f":"IF(A45=\"\",\"\",'MHP Family Income & Rent Limits'!$E$4)","v":""},{"$f":"IF(A45=\"\",\"\",'MHP Family Income & Rent Limits'!$C$7)","v":""},{"$f":"IF(A45=\"\",\"\",'MHP Family Income & Rent Limits'!$F$8)","v":""},{"$f":"IF(A45=\"\",\"\",'1. Checklist & Certification'!$G$4)","v":""},{"$f":"IF(A45=\"\",\"\",'1. Checklist & Certification'!$K$39)","v":""},{"$f":"IF(A45=\"\",\"\",'1. Checklist & Certification'!$K$43)","v":""},{"$f":"IF(A45=\"\",\"\",'1. Checklist & Certification'!$K$45)","v":""},{"$f":"IF(A45=\"\",\"\",'1. Checklist & Certification'!$K$49)","v":""},{"$f":"IF(A45=\"\",\"\",'1. Checklist & Certification'!$E$66)","v":""},{"$f":"IF(A45=\"\",\"\",'1. Checklist & Certification'!$E$67)","v":""},{"$f":"IF(A45=\"\",\"\",'1. Checklist & Certification'!$E$68)","v":""},{"$f":"IF(A45=\"\",\"\",'1. Checklist & Certification'!$G$66)","v":""},{"$f":"IF(A45=\"\",\"\",'1. Checklist & Certification'!$H$66)","v":""},{"$f":"IF(A45=\"\",\"\",'1. Checklist & Certification'!$I$66)","v":""},{"$f":"IF(A45=\"\",\"\",'1. Checklist & Certification'!$I$67)","v":""},{"$f":"IF(A45=\"\",\"\",'1. Checklist & Certification'!$I$68)","v":""},null,{"$f":"IF(C45=\"\",\"\",HLOOKUP(C45,'MHP Family Income & Rent Limits'!$E$12:$L$26,2,FALSE))","v":""},{"$f":"IF(C45=\"\",\"\",HLOOKUP(C45,'MHP Family Income & Rent Limits'!$E$12:$L$26,3,FALSE))","v":""},{"$f":"IF(C45=\"\",\"\",HLOOKUP(C45,'MHP Family Income & Rent Limits'!$E$12:$L$26,4,FALSE))","v":""},{"$f":"IF(C45=\"\",\"\",HLOOKUP(C45,'MHP Family Income & Rent Limits'!$E$12:$L$26,5,FALSE))","v":""},{"$f":"IF(C45=\"\",\"\",HLOOKUP(C45,'MHP Family Income & Rent Limits'!$E$12:$L$26,6,FALSE))","v":""},{"$f":"IF(C45=\"\",\"\",HLOOKUP(C45,'MHP Family Income & Rent Limits'!$E$12:$L$26,7,FALSE))","v":""},{"$f":"IF(C45=\"\",\"\",HLOOKUP(C45,'MHP Family Income & Rent Limits'!$E$12:$L$26,8,FALSE))","v":""},{"$f":"IF(C45=\"\",\"\",HLOOKUP(C45,'MHP Family Income & Rent Limits'!$E$12:$L$26,9,FALSE))","v":""},{"$f":"IF(C45=\"\",\"\",HLOOKUP(C45,'MHP Family Income & Rent Limits'!$E$12:$L$26,10,FALSE))","v":""},{"$f":"IF(C45=\"\",\"\",HLOOKUP(C45,'MHP Family Income & Rent Limits'!$E$12:$L$26,11,FALSE))","v":""},{"$f":"IF(C45=\"\",\"\",HLOOKUP(C45,'MHP Family Income & Rent Limits'!$E$12:$L$26,12,FALSE))","v":""},{"$f":"IF(C45=\"\",\"\",HLOOKUP(C45,'MHP Family Income & Rent Limits'!$E$12:$L$26,13,FALSE))","v":""},{"$f":"IF(C45=\"\",\"\",HLOOKUP(C45,'MHP Family Income & Rent Limits'!$E$12:$L$26,14,FALSE))","v":""},{"$f":"IF(C45=\"\",\"\",HLOOKUP(C45,'MHP Family Income & Rent Limits'!$E$12:$L$26,15,FALSE))","v":""}]
[{"$f":"IF('2. Assisted & Restricted Units'!A46=\"\",\"\",'2. Assisted & Restricted Units'!A46)","v":""},{"$f":"IF('2. Assisted & Restricted Units'!B46=\"\",\"\",'2. Assisted & Restricted Units'!B46)","v":""},{"$f":"IF('2. Assisted & Restricted Units'!D46=\"\",\"\",'2. Assisted & Restricted Units'!D46)","v":""},{"$f":"IF('2. Assisted & Restricted Units'!E46=\"\",\"\",'2. Assisted & Restricted Units'!E46)","v":""},{"$f":"IF('2. Assisted & Restricted Units'!H46=\"\",\"\",'2. Assisted & Restricted Units'!H46)","v":""},{"$f":"_xlfn.IFS(E46=\"\",\"\",E46>BO46,$BP$6,E46>BN46,$BO$6,E46>BM46,$BN$6,E46>BL46,$BM$6,E46>BK46,$BL$6,E46>BJ46,$BK$6,E46>BI46,$BJ$6,E46>BH46,$BI$6,E46>BG46,$BH$6,E46>BF46,$BG$6,E46>BE46,$BF$6,E46>BD46,$BE$6,E46>BC46,$BD$6,E46>=0,$BC$6)","v":""},{"$f":"IF('2. Assisted & Restricted Units'!T46=\"\",\"\",'2. Assisted & Restricted Units'!T46)","v":""},{"$f":"IF('2. Assisted & Restricted Units'!I46=\"\",\"\",'2. Assisted & Restricted Units'!I46)","v":""},{"$f":"IF('2. Assisted & Restricted Units'!AP46=\"\",\"\",'2. Assisted & Restricted Units'!AP46)","v":0},{"$f":"IF('2. Assisted & Restricted Units'!AT46=\"\",\"\",'2. Assisted & Restricted Units'!AT46)","v":""},0,{"$f":"IF('2. Assisted & Restricted Units'!AV46=\"\",\"\",'2. Assisted & Restricted Units'!AV46)","v":""},{"$f":"IF('2. Assisted & Restricted Units'!L46=\"\",\"\",'2. Assisted & Restricted Units'!L46)","v":""},{"$f":"IF('2. Assisted & Restricted Units'!M46=\"\",\"\",'2. Assisted & Restricted Units'!M46)","v":""},{"$f":"IF('2. Assisted & Restricted Units'!O46=\"\",\"\",'2. Assisted & Restricted Units'!O46)","v":""},{"$f":"IF('2. Assisted & Restricted Units'!P46=\"\",\"\",'2. Assisted & Restricted Units'!P46)","v":""},{"$f":"IF('2. Assisted & Restricted Units'!Q46=\"\",\"\",'2. Assisted & Restricted Units'!Q46)","v":""},{"$f":"IF('2. Assisted & Restricted Units'!R46=\"\",\"\",'2. Assisted & Restricted Units'!R46)","v":""},{"$f":"IF(A46=\"\",\"\",'1. Checklist & Certification'!$K$1)","v":""},{"$f":"IF(A46=\"\",\"\",'1. Checklist & Certification'!$C$62)","v":""},{"$f":"IF(A46=\"\",\"\",'1. Checklist & Certification'!$K$62)","v":""},{"$f":"IF(A46=\"\",\"\",'1. Checklist & Certification'!$C$6)","v":""},{"$f":"IF(A46=\"\",\"\",'1. Checklist & Certification'!$G$4)","v":""},{"$f":"IF(A46=\"\",\"\",'1. Checklist & Certification'!$C$7)","v":""},{"$f":"IF(A46=\"\",\"\",'1. Checklist & Certification'!$C$8)","v":""},{"$f":"IF(A46=\"\",\"\",'1. Checklist & Certification'!$F$7)","v":""},{"$f":"IF(A46=\"\",\"\",'1. Checklist & Certification'!$F$8)","v":""},{"$f":"IF(A46=\"\",\"\",'1. Checklist & Certification'!$B$9)","v":""},{"$f":"IF(A46=\"\",\"\",'1. Checklist & Certification'!$F$9)","v":""},{"$f":"IF(A46=\"\",\"\",'1. Checklist & Certification'!$C$10)","v":""},{"$f":"IF(A46=\"\",\"\",'1. Checklist & Certification'!$C$11)","v":""},{"$f":"IF(A46=\"\",\"\",'1. Checklist & Certification'!$C$12)","v":""},{"$f":"IF(A46=\"\",\"\",'1. Checklist & Certification'!$B$14)","v":""},{"$f":"IF(A46=\"\",\"\",'1. Checklist & Certification'!$E$14)","v":""},{"$f":"IF(B46=\"\",\"\",'1. Checklist & Certification'!$G$14)","v":""},{"$f":"IF(A46=\"\",\"\",'MHP Family Income & Rent Limits'!$B$3)","v":""},{"$f":"IF(A46=\"\",\"\",'MHP Family Income & Rent Limits'!$J$3)","v":""},{"$f":"IF(A46=\"\",\"\",'MHP Family Income & Rent Limits'!$E$4)","v":""},{"$f":"IF(A46=\"\",\"\",'MHP Family Income & Rent Limits'!$C$7)","v":""},{"$f":"IF(A46=\"\",\"\",'MHP Family Income & Rent Limits'!$F$8)","v":""},{"$f":"IF(A46=\"\",\"\",'1. Checklist & Certification'!$G$4)","v":""},{"$f":"IF(A46=\"\",\"\",'1. Checklist & Certification'!$K$39)","v":""},{"$f":"IF(A46=\"\",\"\",'1. Checklist & Certification'!$K$43)","v":""},{"$f":"IF(A46=\"\",\"\",'1. Checklist & Certification'!$K$45)","v":""},{"$f":"IF(A46=\"\",\"\",'1. Checklist & Certification'!$K$49)","v":""},{"$f":"IF(A46=\"\",\"\",'1. Checklist & Certification'!$E$66)","v":""},{"$f":"IF(A46=\"\",\"\",'1. Checklist & Certification'!$E$67)","v":""},{"$f":"IF(A46=\"\",\"\",'1. Checklist & Certification'!$E$68)","v":""},{"$f":"IF(A46=\"\",\"\",'1. Checklist & Certification'!$G$66)","v":""},{"$f":"IF(A46=\"\",\"\",'1. Checklist & Certification'!$H$66)","v":""},{"$f":"IF(A46=\"\",\"\",'1. Checklist & Certification'!$I$66)","v":""},{"$f":"IF(A46=\"\",\"\",'1. Checklist & Certification'!$I$67)","v":""},{"$f":"IF(A46=\"\",\"\",'1. Checklist & Certification'!$I$68)","v":""},null,{"$f":"IF(C46=\"\",\"\",HLOOKUP(C46,'MHP Family Income & Rent Limits'!$E$12:$L$26,2,FALSE))","v":""},{"$f":"IF(C46=\"\",\"\",HLOOKUP(C46,'MHP Family Income & Rent Limits'!$E$12:$L$26,3,FALSE))","v":""},{"$f":"IF(C46=\"\",\"\",HLOOKUP(C46,'MHP Family Income & Rent Limits'!$E$12:$L$26,4,FALSE))","v":""},{"$f":"IF(C46=\"\",\"\",HLOOKUP(C46,'MHP Family Income & Rent Limits'!$E$12:$L$26,5,FALSE))","v":""},{"$f":"IF(C46=\"\",\"\",HLOOKUP(C46,'MHP Family Income & Rent Limits'!$E$12:$L$26,6,FALSE))","v":""},{"$f":"IF(C46=\"\",\"\",HLOOKUP(C46,'MHP Family Income & Rent Limits'!$E$12:$L$26,7,FALSE))","v":""},{"$f":"IF(C46=\"\",\"\",HLOOKUP(C46,'MHP Family Income & Rent Limits'!$E$12:$L$26,8,FALSE))","v":""},{"$f":"IF(C46=\"\",\"\",HLOOKUP(C46,'MHP Family Income & Rent Limits'!$E$12:$L$26,9,FALSE))","v":""},{"$f":"IF(C46=\"\",\"\",HLOOKUP(C46,'MHP Family Income & Rent Limits'!$E$12:$L$26,10,FALSE))","v":""},{"$f":"IF(C46=\"\",\"\",HLOOKUP(C46,'MHP Family Income & Rent Limits'!$E$12:$L$26,11,FALSE))","v":""},{"$f":"IF(C46=\"\",\"\",HLOOKUP(C46,'MHP Family Income & Rent Limits'!$E$12:$L$26,12,FALSE))","v":""},{"$f":"IF(C46=\"\",\"\",HLOOKUP(C46,'MHP Family Income & Rent Limits'!$E$12:$L$26,13,FALSE))","v":""},{"$f":"IF(C46=\"\",\"\",HLOOKUP(C46,'MHP Family Income & Rent Limits'!$E$12:$L$26,14,FALSE))","v":""},{"$f":"IF(C46=\"\",\"\",HLOOKUP(C46,'MHP Family Income & Rent Limits'!$E$12:$L$26,15,FALSE))","v":""}]
[{"$f":"IF('2. Assisted & Restricted Units'!A47=\"\",\"\",'2. Assisted & Restricted Units'!A47)","v":""},{"$f":"IF('2. Assisted & Restricted Units'!B47=\"\",\"\",'2. Assisted & Restricted Units'!B47)","v":""},{"$f":"IF('2. Assisted & Restricted Units'!D47=\"\",\"\",'2. Assisted & Restricted Units'!D47)","v":""},{"$f":"IF('2. Assisted & Restricted Units'!E47=\"\",\"\",'2. Assisted & Restricted Units'!E47)","v":""},{"$f":"IF('2. Assisted & Restricted Units'!H47=\"\",\"\",'2. Assisted & Restricted Units'!H47)","v":""},{"$f":"_xlfn.IFS(E47=\"\",\"\",E47>BO47,$BP$6,E47>BN47,$BO$6,E47>BM47,$BN$6,E47>BL47,$BM$6,E47>BK47,$BL$6,E47>BJ47,$BK$6,E47>BI47,$BJ$6,E47>BH47,$BI$6,E47>BG47,$BH$6,E47>BF47,$BG$6,E47>BE47,$BF$6,E47>BD47,$BE$6,E47>BC47,$BD$6,E47>=0,$BC$6)","v":""},{"$f":"IF('2. Assisted & Restricted Units'!T47=\"\",\"\",'2. Assisted & Restricted Units'!T47)","v":""},{"$f":"IF('2. Assisted & Restricted Units'!I47=\"\",\"\",'2. Assisted & Restricted Units'!I47)","v":""},{"$f":"IF('2. Assisted & Restricted Units'!AP47=\"\",\"\",'2. Assisted & Restricted Units'!AP47)","v":0},{"$f":"IF('2. Assisted & Restricted Units'!AT47=\"\",\"\",'2. Assisted & Restricted Units'!AT47)","v":""},0,{"$f":"IF('2. Assisted & Restricted Units'!AV47=\"\",\"\",'2. Assisted & Restricted Units'!AV47)","v":""},{"$f":"IF('2. Assisted & Restricted Units'!L47=\"\",\"\",'2. Assisted & Restricted Units'!L47)","v":""},{"$f":"IF('2. Assisted & Restricted Units'!M47=\"\",\"\",'2. Assisted & Restricted Units'!M47)","v":""},{"$f":"IF('2. Assisted & Restricted Units'!O47=\"\",\"\",'2. Assisted & Restricted Units'!O47)","v":""},{"$f":"IF('2. Assisted & Restricted Units'!P47=\"\",\"\",'2. Assisted & Restricted Units'!P47)","v":""},{"$f":"IF('2. Assisted & Restricted Units'!Q47=\"\",\"\",'2. Assisted & Restricted Units'!Q47)","v":""},{"$f":"IF('2. Assisted & Restricted Units'!R47=\"\",\"\",'2. Assisted & Restricted Units'!R47)","v":""},{"$f":"IF(A47=\"\",\"\",'1. Checklist & Certification'!$K$1)","v":""},{"$f":"IF(A47=\"\",\"\",'1. Checklist & Certification'!$C$62)","v":""},{"$f":"IF(A47=\"\",\"\",'1. Checklist & Certification'!$K$62)","v":""},{"$f":"IF(A47=\"\",\"\",'1. Checklist & Certification'!$C$6)","v":""},{"$f":"IF(A47=\"\",\"\",'1. Checklist & Certification'!$G$4)","v":""},{"$f":"IF(A47=\"\",\"\",'1. Checklist & Certification'!$C$7)","v":""},{"$f":"IF(A47=\"\",\"\",'1. Checklist & Certification'!$C$8)","v":""},{"$f":"IF(A47=\"\",\"\",'1. Checklist & Certification'!$F$7)","v":""},{"$f":"IF(A47=\"\",\"\",'1. Checklist & Certification'!$F$8)","v":""},{"$f":"IF(A47=\"\",\"\",'1. Checklist & Certification'!$B$9)","v":""},{"$f":"IF(A47=\"\",\"\",'1. Checklist & Certification'!$F$9)","v":""},{"$f":"IF(A47=\"\",\"\",'1. Checklist & Certification'!$C$10)","v":""},{"$f":"IF(A47=\"\",\"\",'1. Checklist & Certification'!$C$11)","v":""},{"$f":"IF(A47=\"\",\"\",'1. Checklist & Certification'!$C$12)","v":""},{"$f":"IF(A47=\"\",\"\",'1. Checklist & Certification'!$B$14)","v":""},{"$f":"IF(A47=\"\",\"\",'1. Checklist & Certification'!$E$14)","v":""},{"$f":"IF(B47=\"\",\"\",'1. Checklist & Certification'!$G$14)","v":""},{"$f":"IF(A47=\"\",\"\",'MHP Family Income & Rent Limits'!$B$3)","v":""},{"$f":"IF(A47=\"\",\"\",'MHP Family Income & Rent Limits'!$J$3)","v":""},{"$f":"IF(A47=\"\",\"\",'MHP Family Income & Rent Limits'!$E$4)","v":""},{"$f":"IF(A47=\"\",\"\",'MHP Family Income & Rent Limits'!$C$7)","v":""},{"$f":"IF(A47=\"\",\"\",'MHP Family Income & Rent Limits'!$F$8)","v":""},{"$f":"IF(A47=\"\",\"\",'1. Checklist & Certification'!$G$4)","v":""},{"$f":"IF(A47=\"\",\"\",'1. Checklist & Certification'!$K$39)","v":""},{"$f":"IF(A47=\"\",\"\",'1. Checklist & Certification'!$K$43)","v":""},{"$f":"IF(A47=\"\",\"\",'1. Checklist & Certification'!$K$45)","v":""},{"$f":"IF(A47=\"\",\"\",'1. Checklist & Certification'!$K$49)","v":""},{"$f":"IF(A47=\"\",\"\",'1. Checklist & Certification'!$E$66)","v":""},{"$f":"IF(A47=\"\",\"\",'1. Checklist & Certification'!$E$67)","v":""},{"$f":"IF(A47=\"\",\"\",'1. Checklist & Certification'!$E$68)","v":""},{"$f":"IF(A47=\"\",\"\",'1. Checklist & Certification'!$G$66)","v":""},{"$f":"IF(A47=\"\",\"\",'1. Checklist & Certification'!$H$66)","v":""},{"$f":"IF(A47=\"\",\"\",'1. Checklist & Certification'!$I$66)","v":""},{"$f":"IF(A47=\"\",\"\",'1. Checklist & Certification'!$I$67)","v":""},{"$f":"IF(A47=\"\",\"\",'1. Checklist & Certification'!$I$68)","v":""},null,{"$f":"IF(C47=\"\",\"\",HLOOKUP(C47,'MHP Family Income & Rent Limits'!$E$12:$L$26,2,FALSE))","v":""},{"$f":"IF(C47=\"\",\"\",HLOOKUP(C47,'MHP Family Income & Rent Limits'!$E$12:$L$26,3,FALSE))","v":""},{"$f":"IF(C47=\"\",\"\",HLOOKUP(C47,'MHP Family Income & Rent Limits'!$E$12:$L$26,4,FALSE))","v":""},{"$f":"IF(C47=\"\",\"\",HLOOKUP(C47,'MHP Family Income & Rent Limits'!$E$12:$L$26,5,FALSE))","v":""},{"$f":"IF(C47=\"\",\"\",HLOOKUP(C47,'MHP Family Income & Rent Limits'!$E$12:$L$26,6,FALSE))","v":""},{"$f":"IF(C47=\"\",\"\",HLOOKUP(C47,'MHP Family Income & Rent Limits'!$E$12:$L$26,7,FALSE))","v":""},{"$f":"IF(C47=\"\",\"\",HLOOKUP(C47,'MHP Family Income & Rent Limits'!$E$12:$L$26,8,FALSE))","v":""},{"$f":"IF(C47=\"\",\"\",HLOOKUP(C47,'MHP Family Income & Rent Limits'!$E$12:$L$26,9,FALSE))","v":""},{"$f":"IF(C47=\"\",\"\",HLOOKUP(C47,'MHP Family Income & Rent Limits'!$E$12:$L$26,10,FALSE))","v":""},{"$f":"IF(C47=\"\",\"\",HLOOKUP(C47,'MHP Family Income & Rent Limits'!$E$12:$L$26,11,FALSE))","v":""},{"$f":"IF(C47=\"\",\"\",HLOOKUP(C47,'MHP Family Income & Rent Limits'!$E$12:$L$26,12,FALSE))","v":""},{"$f":"IF(C47=\"\",\"\",HLOOKUP(C47,'MHP Family Income & Rent Limits'!$E$12:$L$26,13,FALSE))","v":""},{"$f":"IF(C47=\"\",\"\",HLOOKUP(C47,'MHP Family Income & Rent Limits'!$E$12:$L$26,14,FALSE))","v":""},{"$f":"IF(C47=\"\",\"\",HLOOKUP(C47,'MHP Family Income & Rent Limits'!$E$12:$L$26,15,FALSE))","v":""}]
[{"$f":"IF('2. Assisted & Restricted Units'!A48=\"\",\"\",'2. Assisted & Restricted Units'!A48)","v":""},{"$f":"IF('2. Assisted & Restricted Units'!B48=\"\",\"\",'2. Assisted & Restricted Units'!B48)","v":""},{"$f":"IF('2. Assisted & Restricted Units'!D48=\"\",\"\",'2. Assisted & Restricted Units'!D48)","v":""},{"$f":"IF('2. Assisted & Restricted Units'!E48=\"\",\"\",'2. Assisted & Restricted Units'!E48)","v":""},{"$f":"IF('2. Assisted & Restricted Units'!H48=\"\",\"\",'2. Assisted & Restricted Units'!H48)","v":""},{"$f":"_xlfn.IFS(E48=\"\",\"\",E48>BO48,$BP$6,E48>BN48,$BO$6,E48>BM48,$BN$6,E48>BL48,$BM$6,E48>BK48,$BL$6,E48>BJ48,$BK$6,E48>BI48,$BJ$6,E48>BH48,$BI$6,E48>BG48,$BH$6,E48>BF48,$BG$6,E48>BE48,$BF$6,E48>BD48,$BE$6,E48>BC48,$BD$6,E48>=0,$BC$6)","v":""},{"$f":"IF('2. Assisted & Restricted Units'!T48=\"\",\"\",'2. Assisted & Restricted Units'!T48)","v":""},{"$f":"IF('2. Assisted & Restricted Units'!I48=\"\",\"\",'2. Assisted & Restricted Units'!I48)","v":""},{"$f":"IF('2. Assisted & Restricted Units'!AP48=\"\",\"\",'2. Assisted & Restricted Units'!AP48)","v":0},{"$f":"IF('2. Assisted & Restricted Units'!AT48=\"\",\"\",'2. Assisted & Restricted Units'!AT48)","v":""},0,{"$f":"IF('2. Assisted & Restricted Units'!AV48=\"\",\"\",'2. Assisted & Restricted Units'!AV48)","v":""},{"$f":"IF('2. Assisted & Restricted Units'!L48=\"\",\"\",'2. Assisted & Restricted Units'!L48)","v":""},{"$f":"IF('2. Assisted & Restricted Units'!M48=\"\",\"\",'2. Assisted & Restricted Units'!M48)","v":""},{"$f":"IF('2. Assisted & Restricted Units'!O48=\"\",\"\",'2. Assisted & Restricted Units'!O48)","v":""},{"$f":"IF('2. Assisted & Restricted Units'!P48=\"\",\"\",'2. Assisted & Restricted Units'!P48)","v":""},{"$f":"IF('2. Assisted & Restricted Units'!Q48=\"\",\"\",'2. Assisted & Restricted Units'!Q48)","v":""},{"$f":"IF('2. Assisted & Restricted Units'!R48=\"\",\"\",'2. Assisted & Restricted Units'!R48)","v":""},{"$f":"IF(A48=\"\",\"\",'1. Checklist & Certification'!$K$1)","v":""},{"$f":"IF(A48=\"\",\"\",'1. Checklist & Certification'!$C$62)","v":""},{"$f":"IF(A48=\"\",\"\",'1. Checklist & Certification'!$K$62)","v":""},{"$f":"IF(A48=\"\",\"\",'1. Checklist & Certification'!$C$6)","v":""},{"$f":"IF(A48=\"\",\"\",'1. Checklist & Certification'!$G$4)","v":""},{"$f":"IF(A48=\"\",\"\",'1. Checklist & Certification'!$C$7)","v":""},{"$f":"IF(A48=\"\",\"\",'1. Checklist & Certification'!$C$8)","v":""},{"$f":"IF(A48=\"\",\"\",'1. Checklist & Certification'!$F$7)","v":""},{"$f":"IF(A48=\"\",\"\",'1. Checklist & Certification'!$F$8)","v":""},{"$f":"IF(A48=\"\",\"\",'1. Checklist & Certification'!$B$9)","v":""},{"$f":"IF(A48=\"\",\"\",'1. Checklist & Certification'!$F$9)","v":""},{"$f":"IF(A48=\"\",\"\",'1. Checklist & Certification'!$C$10)","v":""},{"$f":"IF(A48=\"\",\"\",'1. Checklist & Certification'!$C$11)","v":""},{"$f":"IF(A48=\"\",\"\",'1. Checklist & Certification'!$C$12)","v":""},{"$f":"IF(A48=\"\",\"\",'1. Checklist & Certification'!$B$14)","v":""},{"$f":"IF(A48=\"\",\"\",'1. Checklist & Certification'!$E$14)","v":""},{"$f":"IF(B48=\"\",\"\",'1. Checklist & Certification'!$G$14)","v":""},{"$f":"IF(A48=\"\",\"\",'MHP Family Income & Rent Limits'!$B$3)","v":""},{"$f":"IF(A48=\"\",\"\",'MHP Family Income & Rent Limits'!$J$3)","v":""},{"$f":"IF(A48=\"\",\"\",'MHP Family Income & Rent Limits'!$E$4)","v":""},{"$f":"IF(A48=\"\",\"\",'MHP Family Income & Rent Limits'!$C$7)","v":""},{"$f":"IF(A48=\"\",\"\",'MHP Family Income & Rent Limits'!$F$8)","v":""},{"$f":"IF(A48=\"\",\"\",'1. Checklist & Certification'!$G$4)","v":""},{"$f":"IF(A48=\"\",\"\",'1. Checklist & Certification'!$K$39)","v":""},{"$f":"IF(A48=\"\",\"\",'1. Checklist & Certification'!$K$43)","v":""},{"$f":"IF(A48=\"\",\"\",'1. Checklist & Certification'!$K$45)","v":""},{"$f":"IF(A48=\"\",\"\",'1. Checklist & Certification'!$K$49)","v":""},{"$f":"IF(A48=\"\",\"\",'1. Checklist & Certification'!$E$66)","v":""},{"$f":"IF(A48=\"\",\"\",'1. Checklist & Certification'!$E$67)","v":""},{"$f":"IF(A48=\"\",\"\",'1. Checklist & Certification'!$E$68)","v":""},{"$f":"IF(A48=\"\",\"\",'1. Checklist & Certification'!$G$66)","v":""},{"$f":"IF(A48=\"\",\"\",'1. Checklist & Certification'!$H$66)","v":""},{"$f":"IF(A48=\"\",\"\",'1. Checklist & Certification'!$I$66)","v":""},{"$f":"IF(A48=\"\",\"\",'1. Checklist & Certification'!$I$67)","v":""},{"$f":"IF(A48=\"\",\"\",'1. Checklist & Certification'!$I$68)","v":""},null,{"$f":"IF(C48=\"\",\"\",HLOOKUP(C48,'MHP Family Income & Rent Limits'!$E$12:$L$26,2,FALSE))","v":""},{"$f":"IF(C48=\"\",\"\",HLOOKUP(C48,'MHP Family Income & Rent Limits'!$E$12:$L$26,3,FALSE))","v":""},{"$f":"IF(C48=\"\",\"\",HLOOKUP(C48,'MHP Family Income & Rent Limits'!$E$12:$L$26,4,FALSE))","v":""},{"$f":"IF(C48=\"\",\"\",HLOOKUP(C48,'MHP Family Income & Rent Limits'!$E$12:$L$26,5,FALSE))","v":""},{"$f":"IF(C48=\"\",\"\",HLOOKUP(C48,'MHP Family Income & Rent Limits'!$E$12:$L$26,6,FALSE))","v":""},{"$f":"IF(C48=\"\",\"\",HLOOKUP(C48,'MHP Family Income & Rent Limits'!$E$12:$L$26,7,FALSE))","v":""},{"$f":"IF(C48=\"\",\"\",HLOOKUP(C48,'MHP Family Income & Rent Limits'!$E$12:$L$26,8,FALSE))","v":""},{"$f":"IF(C48=\"\",\"\",HLOOKUP(C48,'MHP Family Income & Rent Limits'!$E$12:$L$26,9,FALSE))","v":""},{"$f":"IF(C48=\"\",\"\",HLOOKUP(C48,'MHP Family Income & Rent Limits'!$E$12:$L$26,10,FALSE))","v":""},{"$f":"IF(C48=\"\",\"\",HLOOKUP(C48,'MHP Family Income & Rent Limits'!$E$12:$L$26,11,FALSE))","v":""},{"$f":"IF(C48=\"\",\"\",HLOOKUP(C48,'MHP Family Income & Rent Limits'!$E$12:$L$26,12,FALSE))","v":""},{"$f":"IF(C48=\"\",\"\",HLOOKUP(C48,'MHP Family Income & Rent Limits'!$E$12:$L$26,13,FALSE))","v":""},{"$f":"IF(C48=\"\",\"\",HLOOKUP(C48,'MHP Family Income & Rent Limits'!$E$12:$L$26,14,FALSE))","v":""},{"$f":"IF(C48=\"\",\"\",HLOOKUP(C48,'MHP Family Income & Rent Limits'!$E$12:$L$26,15,FALSE))","v":""}]
[{"$f":"IF('2. Assisted & Restricted Units'!A49=\"\",\"\",'2. Assisted & Restricted Units'!A49)","v":""},{"$f":"IF('2. Assisted & Restricted Units'!B49=\"\",\"\",'2. Assisted & Restricted Units'!B49)","v":""},{"$f":"IF('2. Assisted & Restricted Units'!D49=\"\",\"\",'2. Assisted & Restricted Units'!D49)","v":""},{"$f":"IF('2. Assisted & Restricted Units'!E49=\"\",\"\",'2. Assisted & Restricted Units'!E49)","v":""},{"$f":"IF('2. Assisted & Restricted Units'!H49=\"\",\"\",'2. Assisted & Restricted Units'!H49)","v":""},{"$f":"_xlfn.IFS(E49=\"\",\"\",E49>BO49,$BP$6,E49>BN49,$BO$6,E49>BM49,$BN$6,E49>BL49,$BM$6,E49>BK49,$BL$6,E49>BJ49,$BK$6,E49>BI49,$BJ$6,E49>BH49,$BI$6,E49>BG49,$BH$6,E49>BF49,$BG$6,E49>BE49,$BF$6,E49>BD49,$BE$6,E49>BC49,$BD$6,E49>=0,$BC$6)","v":""},{"$f":"IF('2. Assisted & Restricted Units'!T49=\"\",\"\",'2. Assisted & Restricted Units'!T49)","v":""},{"$f":"IF('2. Assisted & Restricted Units'!I49=\"\",\"\",'2. Assisted & Restricted Units'!I49)","v":""},{"$f":"IF('2. Assisted & Restricted Units'!AP49=\"\",\"\",'2. Assisted & Restricted Units'!AP49)","v":0},{"$f":"IF('2. Assisted & Restricted Units'!AT49=\"\",\"\",'2. Assisted & Restricted Units'!AT49)","v":""},0,{"$f":"IF('2. Assisted & Restricted Units'!AV49=\"\",\"\",'2. Assisted & Restricted Units'!AV49)","v":""},{"$f":"IF('2. Assisted & Restricted Units'!L49=\"\",\"\",'2. Assisted & Restricted Units'!L49)","v":""},{"$f":"IF('2. Assisted & Restricted Units'!M49=\"\",\"\",'2. Assisted & Restricted Units'!M49)","v":""},{"$f":"IF('2. Assisted & Restricted Units'!O49=\"\",\"\",'2. Assisted & Restricted Units'!O49)","v":""},{"$f":"IF('2. Assisted & Restricted Units'!P49=\"\",\"\",'2. Assisted & Restricted Units'!P49)","v":""},{"$f":"IF('2. Assisted & Restricted Units'!Q49=\"\",\"\",'2. Assisted & Restricted Units'!Q49)","v":""},{"$f":"IF('2. Assisted & Restricted Units'!R49=\"\",\"\",'2. Assisted & Restricted Units'!R49)","v":""},{"$f":"IF(A49=\"\",\"\",'1. Checklist & Certification'!$K$1)","v":""},{"$f":"IF(A49=\"\",\"\",'1. Checklist & Certification'!$C$62)","v":""},{"$f":"IF(A49=\"\",\"\",'1. Checklist & Certification'!$K$62)","v":""},{"$f":"IF(A49=\"\",\"\",'1. Checklist & Certification'!$C$6)","v":""},{"$f":"IF(A49=\"\",\"\",'1. Checklist & Certification'!$G$4)","v":""},{"$f":"IF(A49=\"\",\"\",'1. Checklist & Certification'!$C$7)","v":""},{"$f":"IF(A49=\"\",\"\",'1. Checklist & Certification'!$C$8)","v":""},{"$f":"IF(A49=\"\",\"\",'1. Checklist & Certification'!$F$7)","v":""},{"$f":"IF(A49=\"\",\"\",'1. Checklist & Certification'!$F$8)","v":""},{"$f":"IF(A49=\"\",\"\",'1. Checklist & Certification'!$B$9)","v":""},{"$f":"IF(A49=\"\",\"\",'1. Checklist & Certification'!$F$9)","v":""},{"$f":"IF(A49=\"\",\"\",'1. Checklist & Certification'!$C$10)","v":""},{"$f":"IF(A49=\"\",\"\",'1. Checklist & Certification'!$C$11)","v":""},{"$f":"IF(A49=\"\",\"\",'1. Checklist & Certification'!$C$12)","v":""},{"$f":"IF(A49=\"\",\"\",'1. Checklist & Certification'!$B$14)","v":""},{"$f":"IF(A49=\"\",\"\",'1. Checklist & Certification'!$E$14)","v":""},{"$f":"IF(B49=\"\",\"\",'1. Checklist & Certification'!$G$14)","v":""},{"$f":"IF(A49=\"\",\"\",'MHP Family Income & Rent Limits'!$B$3)","v":""},{"$f":"IF(A49=\"\",\"\",'MHP Family Income & Rent Limits'!$J$3)","v":""},{"$f":"IF(A49=\"\",\"\",'MHP Family Income & Rent Limits'!$E$4)","v":""},{"$f":"IF(A49=\"\",\"\",'MHP Family Income & Rent Limits'!$C$7)","v":""},{"$f":"IF(A49=\"\",\"\",'MHP Family Income & Rent Limits'!$F$8)","v":""},{"$f":"IF(A49=\"\",\"\",'1. Checklist & Certification'!$G$4)","v":""},{"$f":"IF(A49=\"\",\"\",'1. Checklist & Certification'!$K$39)","v":""},{"$f":"IF(A49=\"\",\"\",'1. Checklist & Certification'!$K$43)","v":""},{"$f":"IF(A49=\"\",\"\",'1. Checklist & Certification'!$K$45)","v":""},{"$f":"IF(A49=\"\",\"\",'1. Checklist & Certification'!$K$49)","v":""},{"$f":"IF(A49=\"\",\"\",'1. Checklist & Certification'!$E$66)","v":""},{"$f":"IF(A49=\"\",\"\",'1. Checklist & Certification'!$E$67)","v":""},{"$f":"IF(A49=\"\",\"\",'1. Checklist & Certification'!$E$68)","v":""},{"$f":"IF(A49=\"\",\"\",'1. Checklist & Certification'!$G$66)","v":""},{"$f":"IF(A49=\"\",\"\",'1. Checklist & Certification'!$H$66)","v":""},{"$f":"IF(A49=\"\",\"\",'1. Checklist & Certification'!$I$66)","v":""},{"$f":"IF(A49=\"\",\"\",'1. Checklist & Certification'!$I$67)","v":""},{"$f":"IF(A49=\"\",\"\",'1. Checklist & Certification'!$I$68)","v":""},null,{"$f":"IF(C49=\"\",\"\",HLOOKUP(C49,'MHP Family Income & Rent Limits'!$E$12:$L$26,2,FALSE))","v":""},{"$f":"IF(C49=\"\",\"\",HLOOKUP(C49,'MHP Family Income & Rent Limits'!$E$12:$L$26,3,FALSE))","v":""},{"$f":"IF(C49=\"\",\"\",HLOOKUP(C49,'MHP Family Income & Rent Limits'!$E$12:$L$26,4,FALSE))","v":""},{"$f":"IF(C49=\"\",\"\",HLOOKUP(C49,'MHP Family Income & Rent Limits'!$E$12:$L$26,5,FALSE))","v":""},{"$f":"IF(C49=\"\",\"\",HLOOKUP(C49,'MHP Family Income & Rent Limits'!$E$12:$L$26,6,FALSE))","v":""},{"$f":"IF(C49=\"\",\"\",HLOOKUP(C49,'MHP Family Income & Rent Limits'!$E$12:$L$26,7,FALSE))","v":""},{"$f":"IF(C49=\"\",\"\",HLOOKUP(C49,'MHP Family Income & Rent Limits'!$E$12:$L$26,8,FALSE))","v":""},{"$f":"IF(C49=\"\",\"\",HLOOKUP(C49,'MHP Family Income & Rent Limits'!$E$12:$L$26,9,FALSE))","v":""},{"$f":"IF(C49=\"\",\"\",HLOOKUP(C49,'MHP Family Income & Rent Limits'!$E$12:$L$26,10,FALSE))","v":""},{"$f":"IF(C49=\"\",\"\",HLOOKUP(C49,'MHP Family Income & Rent Limits'!$E$12:$L$26,11,FALSE))","v":""},{"$f":"IF(C49=\"\",\"\",HLOOKUP(C49,'MHP Family Income & Rent Limits'!$E$12:$L$26,12,FALSE))","v":""},{"$f":"IF(C49=\"\",\"\",HLOOKUP(C49,'MHP Family Income & Rent Limits'!$E$12:$L$26,13,FALSE))","v":""},{"$f":"IF(C49=\"\",\"\",HLOOKUP(C49,'MHP Family Income & Rent Limits'!$E$12:$L$26,14,FALSE))","v":""},{"$f":"IF(C49=\"\",\"\",HLOOKUP(C49,'MHP Family Income & Rent Limits'!$E$12:$L$26,15,FALSE))","v":""}]
[{"$f":"IF('2. Assisted & Restricted Units'!A50=\"\",\"\",'2. Assisted & Restricted Units'!A50)","v":""},{"$f":"IF('2. Assisted & Restricted Units'!B50=\"\",\"\",'2. Assisted & Restricted Units'!B50)","v":""},{"$f":"IF('2. Assisted & Restricted Units'!D50=\"\",\"\",'2. Assisted & Restricted Units'!D50)","v":""},{"$f":"IF('2. Assisted & Restricted Units'!E50=\"\",\"\",'2. Assisted & Restricted Units'!E50)","v":""},{"$f":"IF('2. Assisted & Restricted Units'!H50=\"\",\"\",'2. Assisted & Restricted Units'!H50)","v":""},{"$f":"_xlfn.IFS(E50=\"\",\"\",E50>BO50,$BP$6,E50>BN50,$BO$6,E50>BM50,$BN$6,E50>BL50,$BM$6,E50>BK50,$BL$6,E50>BJ50,$BK$6,E50>BI50,$BJ$6,E50>BH50,$BI$6,E50>BG50,$BH$6,E50>BF50,$BG$6,E50>BE50,$BF$6,E50>BD50,$BE$6,E50>BC50,$BD$6,E50>=0,$BC$6)","v":""},{"$f":"IF('2. Assisted & Restricted Units'!T50=\"\",\"\",'2. Assisted & Restricted Units'!T50)","v":""},{"$f":"IF('2. Assisted & Restricted Units'!I50=\"\",\"\",'2. Assisted & Restricted Units'!I50)","v":""},{"$f":"IF('2. Assisted & Restricted Units'!AP50=\"\",\"\",'2. Assisted & Restricted Units'!AP50)","v":0},{"$f":"IF('2. Assisted & Restricted Units'!AT50=\"\",\"\",'2. Assisted & Restricted Units'!AT50)","v":""},0,{"$f":"IF('2. Assisted & Restricted Units'!AV50=\"\",\"\",'2. Assisted & Restricted Units'!AV50)","v":""},{"$f":"IF('2. Assisted & Restricted Units'!L50=\"\",\"\",'2. Assisted & Restricted Units'!L50)","v":""},{"$f":"IF('2. Assisted & Restricted Units'!M50=\"\",\"\",'2. Assisted & Restricted Units'!M50)","v":""},{"$f":"IF('2. Assisted & Restricted Units'!O50=\"\",\"\",'2. Assisted & Restricted Units'!O50)","v":""},{"$f":"IF('2. Assisted & Restricted Units'!P50=\"\",\"\",'2. Assisted & Restricted Units'!P50)","v":""},{"$f":"IF('2. Assisted & Restricted Units'!Q50=\"\",\"\",'2. Assisted & Restricted Units'!Q50)","v":""},{"$f":"IF('2. Assisted & Restricted Units'!R50=\"\",\"\",'2. Assisted & Restricted Units'!R50)","v":""},{"$f":"IF(A50=\"\",\"\",'1. Checklist & Certification'!$K$1)","v":""},{"$f":"IF(A50=\"\",\"\",'1. Checklist & Certification'!$C$62)","v":""},{"$f":"IF(A50=\"\",\"\",'1. Checklist & Certification'!$K$62)","v":""},{"$f":"IF(A50=\"\",\"\",'1. Checklist & Certification'!$C$6)","v":""},{"$f":"IF(A50=\"\",\"\",'1. Checklist & Certification'!$G$4)","v":""},{"$f":"IF(A50=\"\",\"\",'1. Checklist & Certification'!$C$7)","v":""},{"$f":"IF(A50=\"\",\"\",'1. Checklist & Certification'!$C$8)","v":""},{"$f":"IF(A50=\"\",\"\",'1. Checklist & Certification'!$F$7)","v":""},{"$f":"IF(A50=\"\",\"\",'1. Checklist & Certification'!$F$8)","v":""},{"$f":"IF(A50=\"\",\"\",'1. Checklist & Certification'!$B$9)","v":""},{"$f":"IF(A50=\"\",\"\",'1. Checklist & Certification'!$F$9)","v":""},{"$f":"IF(A50=\"\",\"\",'1. Checklist & Certification'!$C$10)","v":""},{"$f":"IF(A50=\"\",\"\",'1. Checklist & Certification'!$C$11)","v":""},{"$f":"IF(A50=\"\",\"\",'1. Checklist & Certification'!$C$12)","v":""},{"$f":"IF(A50=\"\",\"\",'1. Checklist & Certification'!$B$14)","v":""},{"$f":"IF(A50=\"\",\"\",'1. Checklist & Certification'!$E$14)","v":""},{"$f":"IF(B50=\"\",\"\",'1. Checklist & Certification'!$G$14)","v":""},{"$f":"IF(A50=\"\",\"\",'MHP Family Income & Rent Limits'!$B$3)","v":""},{"$f":"IF(A50=\"\",\"\",'MHP Family Income & Rent Limits'!$J$3)","v":""},{"$f":"IF(A50=\"\",\"\",'MHP Family Income & Rent Limits'!$E$4)","v":""},{"$f":"IF(A50=\"\",\"\",'MHP Family Income & Rent Limits'!$C$7)","v":""},{"$f":"IF(A50=\"\",\"\",'MHP Family Income & Rent Limits'!$F$8)","v":""},{"$f":"IF(A50=\"\",\"\",'1. Checklist & Certification'!$G$4)","v":""},{"$f":"IF(A50=\"\",\"\",'1. Checklist & Certification'!$K$39)","v":""},{"$f":"IF(A50=\"\",\"\",'1. Checklist & Certification'!$K$43)","v":""},{"$f":"IF(A50=\"\",\"\",'1. Checklist & Certification'!$K$45)","v":""},{"$f":"IF(A50=\"\",\"\",'1. Checklist & Certification'!$K$49)","v":""},{"$f":"IF(A50=\"\",\"\",'1. Checklist & Certification'!$E$66)","v":""},{"$f":"IF(A50=\"\",\"\",'1. Checklist & Certification'!$E$67)","v":""},{"$f":"IF(A50=\"\",\"\",'1. Checklist & Certification'!$E$68)","v":""},{"$f":"IF(A50=\"\",\"\",'1. Checklist & Certification'!$G$66)","v":""},{"$f":"IF(A50=\"\",\"\",'1. Checklist & Certification'!$H$66)","v":""},{"$f":"IF(A50=\"\",\"\",'1. Checklist & Certification'!$I$66)","v":""},{"$f":"IF(A50=\"\",\"\",'1. Checklist & Certification'!$I$67)","v":""},{"$f":"IF(A50=\"\",\"\",'1. Checklist & Certification'!$I$68)","v":""},null,{"$f":"IF(C50=\"\",\"\",HLOOKUP(C50,'MHP Family Income & Rent Limits'!$E$12:$L$26,2,FALSE))","v":""},{"$f":"IF(C50=\"\",\"\",HLOOKUP(C50,'MHP Family Income & Rent Limits'!$E$12:$L$26,3,FALSE))","v":""},{"$f":"IF(C50=\"\",\"\",HLOOKUP(C50,'MHP Family Income & Rent Limits'!$E$12:$L$26,4,FALSE))","v":""},{"$f":"IF(C50=\"\",\"\",HLOOKUP(C50,'MHP Family Income & Rent Limits'!$E$12:$L$26,5,FALSE))","v":""},{"$f":"IF(C50=\"\",\"\",HLOOKUP(C50,'MHP Family Income & Rent Limits'!$E$12:$L$26,6,FALSE))","v":""},{"$f":"IF(C50=\"\",\"\",HLOOKUP(C50,'MHP Family Income & Rent Limits'!$E$12:$L$26,7,FALSE))","v":""},{"$f":"IF(C50=\"\",\"\",HLOOKUP(C50,'MHP Family Income & Rent Limits'!$E$12:$L$26,8,FALSE))","v":""},{"$f":"IF(C50=\"\",\"\",HLOOKUP(C50,'MHP Family Income & Rent Limits'!$E$12:$L$26,9,FALSE))","v":""},{"$f":"IF(C50=\"\",\"\",HLOOKUP(C50,'MHP Family Income & Rent Limits'!$E$12:$L$26,10,FALSE))","v":""},{"$f":"IF(C50=\"\",\"\",HLOOKUP(C50,'MHP Family Income & Rent Limits'!$E$12:$L$26,11,FALSE))","v":""},{"$f":"IF(C50=\"\",\"\",HLOOKUP(C50,'MHP Family Income & Rent Limits'!$E$12:$L$26,12,FALSE))","v":""},{"$f":"IF(C50=\"\",\"\",HLOOKUP(C50,'MHP Family Income & Rent Limits'!$E$12:$L$26,13,FALSE))","v":""},{"$f":"IF(C50=\"\",\"\",HLOOKUP(C50,'MHP Family Income & Rent Limits'!$E$12:$L$26,14,FALSE))","v":""},{"$f":"IF(C50=\"\",\"\",HLOOKUP(C50,'MHP Family Income & Rent Limits'!$E$12:$L$26,15,FALSE))","v":""}]
[{"$f":"IF('2. Assisted & Restricted Units'!A51=\"\",\"\",'2. Assisted & Restricted Units'!A51)","v":""},{"$f":"IF('2. Assisted & Restricted Units'!B51=\"\",\"\",'2. Assisted & Restricted Units'!B51)","v":""},{"$f":"IF('2. Assisted & Restricted Units'!D51=\"\",\"\",'2. Assisted & Restricted Units'!D51)","v":""},{"$f":"IF('2. Assisted & Restricted Units'!E51=\"\",\"\",'2. Assisted & Restricted Units'!E51)","v":""},{"$f":"IF('2. Assisted & Restricted Units'!H51=\"\",\"\",'2. Assisted & Restricted Units'!H51)","v":""},{"$f":"_xlfn.IFS(E51=\"\",\"\",E51>BO51,$BP$6,E51>BN51,$BO$6,E51>BM51,$BN$6,E51>BL51,$BM$6,E51>BK51,$BL$6,E51>BJ51,$BK$6,E51>BI51,$BJ$6,E51>BH51,$BI$6,E51>BG51,$BH$6,E51>BF51,$BG$6,E51>BE51,$BF$6,E51>BD51,$BE$6,E51>BC51,$BD$6,E51>=0,$BC$6)","v":""},{"$f":"IF('2. Assisted & Restricted Units'!T51=\"\",\"\",'2. Assisted & Restricted Units'!T51)","v":""},{"$f":"IF('2. Assisted & Restricted Units'!I51=\"\",\"\",'2. Assisted & Restricted Units'!I51)","v":""},{"$f":"IF('2. Assisted & Restricted Units'!AP51=\"\",\"\",'2. Assisted & Restricted Units'!AP51)","v":0},{"$f":"IF('2. Assisted & Restricted Units'!AT51=\"\",\"\",'2. Assisted & Restricted Units'!AT51)","v":""},0,{"$f":"IF('2. Assisted & Restricted Units'!AV51=\"\",\"\",'2. Assisted & Restricted Units'!AV51)","v":""},{"$f":"IF('2. Assisted & Restricted Units'!L51=\"\",\"\",'2. Assisted & Restricted Units'!L51)","v":""},{"$f":"IF('2. Assisted & Restricted Units'!M51=\"\",\"\",'2. Assisted & Restricted Units'!M51)","v":""},{"$f":"IF('2. Assisted & Restricted Units'!O51=\"\",\"\",'2. Assisted & Restricted Units'!O51)","v":""},{"$f":"IF('2. Assisted & Restricted Units'!P51=\"\",\"\",'2. Assisted & Restricted Units'!P51)","v":""},{"$f":"IF('2. Assisted & Restricted Units'!Q51=\"\",\"\",'2. Assisted & Restricted Units'!Q51)","v":""},{"$f":"IF('2. Assisted & Restricted Units'!R51=\"\",\"\",'2. Assisted & Restricted Units'!R51)","v":""},{"$f":"IF(A51=\"\",\"\",'1. Checklist & Certification'!$K$1)","v":""},{"$f":"IF(A51=\"\",\"\",'1. Checklist & Certification'!$C$62)","v":""},{"$f":"IF(A51=\"\",\"\",'1. Checklist & Certification'!$K$62)","v":""},{"$f":"IF(A51=\"\",\"\",'1. Checklist & Certification'!$C$6)","v":""},{"$f":"IF(A51=\"\",\"\",'1. Checklist & Certification'!$G$4)","v":""},{"$f":"IF(A51=\"\",\"\",'1. Checklist & Certification'!$C$7)","v":""},{"$f":"IF(A51=\"\",\"\",'1. Checklist & Certification'!$C$8)","v":""},{"$f":"IF(A51=\"\",\"\",'1. Checklist & Certification'!$F$7)","v":""},{"$f":"IF(A51=\"\",\"\",'1. Checklist & Certification'!$F$8)","v":""},{"$f":"IF(A51=\"\",\"\",'1. Checklist & Certification'!$B$9)","v":""},{"$f":"IF(A51=\"\",\"\",'1. Checklist & Certification'!$F$9)","v":""},{"$f":"IF(A51=\"\",\"\",'1. Checklist & Certification'!$C$10)","v":""},{"$f":"IF(A51=\"\",\"\",'1. Checklist & Certification'!$C$11)","v":""},{"$f":"IF(A51=\"\",\"\",'1. Checklist & Certification'!$C$12)","v":""},{"$f":"IF(A51=\"\",\"\",'1. Checklist & Certification'!$B$14)","v":""},{"$f":"IF(A51=\"\",\"\",'1. Checklist & Certification'!$E$14)","v":""},{"$f":"IF(B51=\"\",\"\",'1. Checklist & Certification'!$G$14)","v":""},{"$f":"IF(A51=\"\",\"\",'MHP Family Income & Rent Limits'!$B$3)","v":""},{"$f":"IF(A51=\"\",\"\",'MHP Family Income & Rent Limits'!$J$3)","v":""},{"$f":"IF(A51=\"\",\"\",'MHP Family Income & Rent Limits'!$E$4)","v":""},{"$f":"IF(A51=\"\",\"\",'MHP Family Income & Rent Limits'!$C$7)","v":""},{"$f":"IF(A51=\"\",\"\",'MHP Family Income & Rent Limits'!$F$8)","v":""},{"$f":"IF(A51=\"\",\"\",'1. Checklist & Certification'!$G$4)","v":""},{"$f":"IF(A51=\"\",\"\",'1. Checklist & Certification'!$K$39)","v":""},{"$f":"IF(A51=\"\",\"\",'1. Checklist & Certification'!$K$43)","v":""},{"$f":"IF(A51=\"\",\"\",'1. Checklist & Certification'!$K$45)","v":""},{"$f":"IF(A51=\"\",\"\",'1. Checklist & Certification'!$K$49)","v":""},{"$f":"IF(A51=\"\",\"\",'1. Checklist & Certification'!$E$66)","v":""},{"$f":"IF(A51=\"\",\"\",'1. Checklist & Certification'!$E$67)","v":""},{"$f":"IF(A51=\"\",\"\",'1. Checklist & Certification'!$E$68)","v":""},{"$f":"IF(A51=\"\",\"\",'1. Checklist & Certification'!$G$66)","v":""},{"$f":"IF(A51=\"\",\"\",'1. Checklist & Certification'!$H$66)","v":""},{"$f":"IF(A51=\"\",\"\",'1. Checklist & Certification'!$I$66)","v":""},{"$f":"IF(A51=\"\",\"\",'1. Checklist & Certification'!$I$67)","v":""},{"$f":"IF(A51=\"\",\"\",'1. Checklist & Certification'!$I$68)","v":""},null,{"$f":"IF(C51=\"\",\"\",HLOOKUP(C51,'MHP Family Income & Rent Limits'!$E$12:$L$26,2,FALSE))","v":""},{"$f":"IF(C51=\"\",\"\",HLOOKUP(C51,'MHP Family Income & Rent Limits'!$E$12:$L$26,3,FALSE))","v":""},{"$f":"IF(C51=\"\",\"\",HLOOKUP(C51,'MHP Family Income & Rent Limits'!$E$12:$L$26,4,FALSE))","v":""},{"$f":"IF(C51=\"\",\"\",HLOOKUP(C51,'MHP Family Income & Rent Limits'!$E$12:$L$26,5,FALSE))","v":""},{"$f":"IF(C51=\"\",\"\",HLOOKUP(C51,'MHP Family Income & Rent Limits'!$E$12:$L$26,6,FALSE))","v":""},{"$f":"IF(C51=\"\",\"\",HLOOKUP(C51,'MHP Family Income & Rent Limits'!$E$12:$L$26,7,FALSE))","v":""},{"$f":"IF(C51=\"\",\"\",HLOOKUP(C51,'MHP Family Income & Rent Limits'!$E$12:$L$26,8,FALSE))","v":""},{"$f":"IF(C51=\"\",\"\",HLOOKUP(C51,'MHP Family Income & Rent Limits'!$E$12:$L$26,9,FALSE))","v":""},{"$f":"IF(C51=\"\",\"\",HLOOKUP(C51,'MHP Family Income & Rent Limits'!$E$12:$L$26,10,FALSE))","v":""},{"$f":"IF(C51=\"\",\"\",HLOOKUP(C51,'MHP Family Income & Rent Limits'!$E$12:$L$26,11,FALSE))","v":""},{"$f":"IF(C51=\"\",\"\",HLOOKUP(C51,'MHP Family Income & Rent Limits'!$E$12:$L$26,12,FALSE))","v":""},{"$f":"IF(C51=\"\",\"\",HLOOKUP(C51,'MHP Family Income & Rent Limits'!$E$12:$L$26,13,FALSE))","v":""},{"$f":"IF(C51=\"\",\"\",HLOOKUP(C51,'MHP Family Income & Rent Limits'!$E$12:$L$26,14,FALSE))","v":""},{"$f":"IF(C51=\"\",\"\",HLOOKUP(C51,'MHP Family Income & Rent Limits'!$E$12:$L$26,15,FALSE))","v":""}]
[{"$f":"IF('2. Assisted & Restricted Units'!A52=\"\",\"\",'2. Assisted & Restricted Units'!A52)","v":""},{"$f":"IF('2. Assisted & Restricted Units'!B52=\"\",\"\",'2. Assisted & Restricted Units'!B52)","v":""},{"$f":"IF('2. Assisted & Restricted Units'!D52=\"\",\"\",'2. Assisted & Restricted Units'!D52)","v":""},{"$f":"IF('2. Assisted & Restricted Units'!E52=\"\",\"\",'2. Assisted & Restricted Units'!E52)","v":""},{"$f":"IF('2. Assisted & Restricted Units'!H52=\"\",\"\",'2. Assisted & Restricted Units'!H52)","v":""},{"$f":"_xlfn.IFS(E52=\"\",\"\",E52>BO52,$BP$6,E52>BN52,$BO$6,E52>BM52,$BN$6,E52>BL52,$BM$6,E52>BK52,$BL$6,E52>BJ52,$BK$6,E52>BI52,$BJ$6,E52>BH52,$BI$6,E52>BG52,$BH$6,E52>BF52,$BG$6,E52>BE52,$BF$6,E52>BD52,$BE$6,E52>BC52,$BD$6,E52>=0,$BC$6)","v":""},{"$f":"IF('2. Assisted & Restricted Units'!T52=\"\",\"\",'2. Assisted & Restricted Units'!T52)","v":""},{"$f":"IF('2. Assisted & Restricted Units'!I52=\"\",\"\",'2. Assisted & Restricted Units'!I52)","v":""},{"$f":"IF('2. Assisted & Restricted Units'!AP52=\"\",\"\",'2. Assisted & Restricted Units'!AP52)","v":0},{"$f":"IF('2. Assisted & Restricted Units'!AT52=\"\",\"\",'2. Assisted & Restricted Units'!AT52)","v":""},0,{"$f":"IF('2. Assisted & Restricted Units'!AV52=\"\",\"\",'2. Assisted & Restricted Units'!AV52)","v":""},{"$f":"IF('2. Assisted & Restricted Units'!L52=\"\",\"\",'2. Assisted & Restricted Units'!L52)","v":""},{"$f":"IF('2. Assisted & Restricted Units'!M52=\"\",\"\",'2. Assisted & Restricted Units'!M52)","v":""},{"$f":"IF('2. Assisted & Restricted Units'!O52=\"\",\"\",'2. Assisted & Restricted Units'!O52)","v":""},{"$f":"IF('2. Assisted & Restricted Units'!P52=\"\",\"\",'2. Assisted & Restricted Units'!P52)","v":""},{"$f":"IF('2. Assisted & Restricted Units'!Q52=\"\",\"\",'2. Assisted & Restricted Units'!Q52)","v":""},{"$f":"IF('2. Assisted & Restricted Units'!R52=\"\",\"\",'2. Assisted & Restricted Units'!R52)","v":""},{"$f":"IF(A52=\"\",\"\",'1. Checklist & Certification'!$K$1)","v":""},{"$f":"IF(A52=\"\",\"\",'1. Checklist & Certification'!$C$62)","v":""},{"$f":"IF(A52=\"\",\"\",'1. Checklist & Certification'!$K$62)","v":""},{"$f":"IF(A52=\"\",\"\",'1. Checklist & Certification'!$C$6)","v":""},{"$f":"IF(A52=\"\",\"\",'1. Checklist & Certification'!$G$4)","v":""},{"$f":"IF(A52=\"\",\"\",'1. Checklist & Certification'!$C$7)","v":""},{"$f":"IF(A52=\"\",\"\",'1. Checklist & Certification'!$C$8)","v":""},{"$f":"IF(A52=\"\",\"\",'1. Checklist & Certification'!$F$7)","v":""},{"$f":"IF(A52=\"\",\"\",'1. Checklist & Certification'!$F$8)","v":""},{"$f":"IF(A52=\"\",\"\",'1. Checklist & Certification'!$B$9)","v":""},{"$f":"IF(A52=\"\",\"\",'1. Checklist & Certification'!$F$9)","v":""},{"$f":"IF(A52=\"\",\"\",'1. Checklist & Certification'!$C$10)","v":""},{"$f":"IF(A52=\"\",\"\",'1. Checklist & Certification'!$C$11)","v":""},{"$f":"IF(A52=\"\",\"\",'1. Checklist & Certification'!$C$12)","v":""},{"$f":"IF(A52=\"\",\"\",'1. Checklist & Certification'!$B$14)","v":""},{"$f":"IF(A52=\"\",\"\",'1. Checklist & Certification'!$E$14)","v":""},{"$f":"IF(B52=\"\",\"\",'1. Checklist & Certification'!$G$14)","v":""},{"$f":"IF(A52=\"\",\"\",'MHP Family Income & Rent Limits'!$B$3)","v":""},{"$f":"IF(A52=\"\",\"\",'MHP Family Income & Rent Limits'!$J$3)","v":""},{"$f":"IF(A52=\"\",\"\",'MHP Family Income & Rent Limits'!$E$4)","v":""},{"$f":"IF(A52=\"\",\"\",'MHP Family Income & Rent Limits'!$C$7)","v":""},{"$f":"IF(A52=\"\",\"\",'MHP Family Income & Rent Limits'!$F$8)","v":""},{"$f":"IF(A52=\"\",\"\",'1. Checklist & Certification'!$G$4)","v":""},{"$f":"IF(A52=\"\",\"\",'1. Checklist & Certification'!$K$39)","v":""},{"$f":"IF(A52=\"\",\"\",'1. Checklist & Certification'!$K$43)","v":""},{"$f":"IF(A52=\"\",\"\",'1. Checklist & Certification'!$K$45)","v":""},{"$f":"IF(A52=\"\",\"\",'1. Checklist & Certification'!$K$49)","v":""},{"$f":"IF(A52=\"\",\"\",'1. Checklist & Certification'!$E$66)","v":""},{"$f":"IF(A52=\"\",\"\",'1. Checklist & Certification'!$E$67)","v":""},{"$f":"IF(A52=\"\",\"\",'1. Checklist & Certification'!$E$68)","v":""},{"$f":"IF(A52=\"\",\"\",'1. Checklist & Certification'!$G$66)","v":""},{"$f":"IF(A52=\"\",\"\",'1. Checklist & Certification'!$H$66)","v":""},{"$f":"IF(A52=\"\",\"\",'1. Checklist & Certification'!$I$66)","v":""},{"$f":"IF(A52=\"\",\"\",'1. Checklist & Certification'!$I$67)","v":""},{"$f":"IF(A52=\"\",\"\",'1. Checklist & Certification'!$I$68)","v":""},null,{"$f":"IF(C52=\"\",\"\",HLOOKUP(C52,'MHP Family Income & Rent Limits'!$E$12:$L$26,2,FALSE))","v":""},{"$f":"IF(C52=\"\",\"\",HLOOKUP(C52,'MHP Family Income & Rent Limits'!$E$12:$L$26,3,FALSE))","v":""},{"$f":"IF(C52=\"\",\"\",HLOOKUP(C52,'MHP Family Income & Rent Limits'!$E$12:$L$26,4,FALSE))","v":""},{"$f":"IF(C52=\"\",\"\",HLOOKUP(C52,'MHP Family Income & Rent Limits'!$E$12:$L$26,5,FALSE))","v":""},{"$f":"IF(C52=\"\",\"\",HLOOKUP(C52,'MHP Family Income & Rent Limits'!$E$12:$L$26,6,FALSE))","v":""},{"$f":"IF(C52=\"\",\"\",HLOOKUP(C52,'MHP Family Income & Rent Limits'!$E$12:$L$26,7,FALSE))","v":""},{"$f":"IF(C52=\"\",\"\",HLOOKUP(C52,'MHP Family Income & Rent Limits'!$E$12:$L$26,8,FALSE))","v":""},{"$f":"IF(C52=\"\",\"\",HLOOKUP(C52,'MHP Family Income & Rent Limits'!$E$12:$L$26,9,FALSE))","v":""},{"$f":"IF(C52=\"\",\"\",HLOOKUP(C52,'MHP Family Income & Rent Limits'!$E$12:$L$26,10,FALSE))","v":""},{"$f":"IF(C52=\"\",\"\",HLOOKUP(C52,'MHP Family Income & Rent Limits'!$E$12:$L$26,11,FALSE))","v":""},{"$f":"IF(C52=\"\",\"\",HLOOKUP(C52,'MHP Family Income & Rent Limits'!$E$12:$L$26,12,FALSE))","v":""},{"$f":"IF(C52=\"\",\"\",HLOOKUP(C52,'MHP Family Income & Rent Limits'!$E$12:$L$26,13,FALSE))","v":""},{"$f":"IF(C52=\"\",\"\",HLOOKUP(C52,'MHP Family Income & Rent Limits'!$E$12:$L$26,14,FALSE))","v":""},{"$f":"IF(C52=\"\",\"\",HLOOKUP(C52,'MHP Family Income & Rent Limits'!$E$12:$L$26,15,FALSE))","v":""}]
[{"$f":"IF('2. Assisted & Restricted Units'!A53=\"\",\"\",'2. Assisted & Restricted Units'!A53)","v":""},{"$f":"IF('2. Assisted & Restricted Units'!B53=\"\",\"\",'2. Assisted & Restricted Units'!B53)","v":""},{"$f":"IF('2. Assisted & Restricted Units'!D53=\"\",\"\",'2. Assisted & Restricted Units'!D53)","v":""},{"$f":"IF('2. Assisted & Restricted Units'!E53=\"\",\"\",'2. Assisted & Restricted Units'!E53)","v":""},{"$f":"IF('2. Assisted & Restricted Units'!H53=\"\",\"\",'2. Assisted & Restricted Units'!H53)","v":""},{"$f":"_xlfn.IFS(E53=\"\",\"\",E53>BO53,$BP$6,E53>BN53,$BO$6,E53>BM53,$BN$6,E53>BL53,$BM$6,E53>BK53,$BL$6,E53>BJ53,$BK$6,E53>BI53,$BJ$6,E53>BH53,$BI$6,E53>BG53,$BH$6,E53>BF53,$BG$6,E53>BE53,$BF$6,E53>BD53,$BE$6,E53>BC53,$BD$6,E53>=0,$BC$6)","v":""},{"$f":"IF('2. Assisted & Restricted Units'!T53=\"\",\"\",'2. Assisted & Restricted Units'!T53)","v":""},{"$f":"IF('2. Assisted & Restricted Units'!I53=\"\",\"\",'2. Assisted & Restricted Units'!I53)","v":""},{"$f":"IF('2. Assisted & Restricted Units'!AP53=\"\",\"\",'2. Assisted & Restricted Units'!AP53)","v":0},{"$f":"IF('2. Assisted & Restricted Units'!AT53=\"\",\"\",'2. Assisted & Restricted Units'!AT53)","v":""},0,{"$f":"IF('2. Assisted & Restricted Units'!AV53=\"\",\"\",'2. Assisted & Restricted Units'!AV53)","v":""},{"$f":"IF('2. Assisted & Restricted Units'!L53=\"\",\"\",'2. Assisted & Restricted Units'!L53)","v":""},{"$f":"IF('2. Assisted & Restricted Units'!M53=\"\",\"\",'2. Assisted & Restricted Units'!M53)","v":""},{"$f":"IF('2. Assisted & Restricted Units'!O53=\"\",\"\",'2. Assisted & Restricted Units'!O53)","v":""},{"$f":"IF('2. Assisted & Restricted Units'!P53=\"\",\"\",'2. Assisted & Restricted Units'!P53)","v":""},{"$f":"IF('2. Assisted & Restricted Units'!Q53=\"\",\"\",'2. Assisted & Restricted Units'!Q53)","v":""},{"$f":"IF('2. Assisted & Restricted Units'!R53=\"\",\"\",'2. Assisted & Restricted Units'!R53)","v":""},{"$f":"IF(A53=\"\",\"\",'1. Checklist & Certification'!$K$1)","v":""},{"$f":"IF(A53=\"\",\"\",'1. Checklist & Certification'!$C$62)","v":""},{"$f":"IF(A53=\"\",\"\",'1. Checklist & Certification'!$K$62)","v":""},{"$f":"IF(A53=\"\",\"\",'1. Checklist & Certification'!$C$6)","v":""},{"$f":"IF(A53=\"\",\"\",'1. Checklist & Certification'!$G$4)","v":""},{"$f":"IF(A53=\"\",\"\",'1. Checklist & Certification'!$C$7)","v":""},{"$f":"IF(A53=\"\",\"\",'1. Checklist & Certification'!$C$8)","v":""},{"$f":"IF(A53=\"\",\"\",'1. Checklist & Certification'!$F$7)","v":""},{"$f":"IF(A53=\"\",\"\",'1. Checklist & Certification'!$F$8)","v":""},{"$f":"IF(A53=\"\",\"\",'1. Checklist & Certification'!$B$9)","v":""},{"$f":"IF(A53=\"\",\"\",'1. Checklist & Certification'!$F$9)","v":""},{"$f":"IF(A53=\"\",\"\",'1. Checklist & Certification'!$C$10)","v":""},{"$f":"IF(A53=\"\",\"\",'1. Checklist & Certification'!$C$11)","v":""},{"$f":"IF(A53=\"\",\"\",'1. Checklist & Certification'!$C$12)","v":""},{"$f":"IF(A53=\"\",\"\",'1. Checklist & Certification'!$B$14)","v":""},{"$f":"IF(A53=\"\",\"\",'1. Checklist & Certification'!$E$14)","v":""},{"$f":"IF(B53=\"\",\"\",'1. Checklist & Certification'!$G$14)","v":""},{"$f":"IF(A53=\"\",\"\",'MHP Family Income & Rent Limits'!$B$3)","v":""},{"$f":"IF(A53=\"\",\"\",'MHP Family Income & Rent Limits'!$J$3)","v":""},{"$f":"IF(A53=\"\",\"\",'MHP Family Income & Rent Limits'!$E$4)","v":""},{"$f":"IF(A53=\"\",\"\",'MHP Family Income & Rent Limits'!$C$7)","v":""},{"$f":"IF(A53=\"\",\"\",'MHP Family Income & Rent Limits'!$F$8)","v":""},{"$f":"IF(A53=\"\",\"\",'1. Checklist & Certification'!$G$4)","v":""},{"$f":"IF(A53=\"\",\"\",'1. Checklist & Certification'!$K$39)","v":""},{"$f":"IF(A53=\"\",\"\",'1. Checklist & Certification'!$K$43)","v":""},{"$f":"IF(A53=\"\",\"\",'1. Checklist & Certification'!$K$45)","v":""},{"$f":"IF(A53=\"\",\"\",'1. Checklist & Certification'!$K$49)","v":""},{"$f":"IF(A53=\"\",\"\",'1. Checklist & Certification'!$E$66)","v":""},{"$f":"IF(A53=\"\",\"\",'1. Checklist & Certification'!$E$67)","v":""},{"$f":"IF(A53=\"\",\"\",'1. Checklist & Certification'!$E$68)","v":""},{"$f":"IF(A53=\"\",\"\",'1. Checklist & Certification'!$G$66)","v":""},{"$f":"IF(A53=\"\",\"\",'1. Checklist & Certification'!$H$66)","v":""},{"$f":"IF(A53=\"\",\"\",'1. Checklist & Certification'!$I$66)","v":""},{"$f":"IF(A53=\"\",\"\",'1. Checklist & Certification'!$I$67)","v":""},{"$f":"IF(A53=\"\",\"\",'1. Checklist & Certification'!$I$68)","v":""},null,{"$f":"IF(C53=\"\",\"\",HLOOKUP(C53,'MHP Family Income & Rent Limits'!$E$12:$L$26,2,FALSE))","v":""},{"$f":"IF(C53=\"\",\"\",HLOOKUP(C53,'MHP Family Income & Rent Limits'!$E$12:$L$26,3,FALSE))","v":""},{"$f":"IF(C53=\"\",\"\",HLOOKUP(C53,'MHP Family Income & Rent Limits'!$E$12:$L$26,4,FALSE))","v":""},{"$f":"IF(C53=\"\",\"\",HLOOKUP(C53,'MHP Family Income & Rent Limits'!$E$12:$L$26,5,FALSE))","v":""},{"$f":"IF(C53=\"\",\"\",HLOOKUP(C53,'MHP Family Income & Rent Limits'!$E$12:$L$26,6,FALSE))","v":""},{"$f":"IF(C53=\"\",\"\",HLOOKUP(C53,'MHP Family Income & Rent Limits'!$E$12:$L$26,7,FALSE))","v":""},{"$f":"IF(C53=\"\",\"\",HLOOKUP(C53,'MHP Family Income & Rent Limits'!$E$12:$L$26,8,FALSE))","v":""},{"$f":"IF(C53=\"\",\"\",HLOOKUP(C53,'MHP Family Income & Rent Limits'!$E$12:$L$26,9,FALSE))","v":""},{"$f":"IF(C53=\"\",\"\",HLOOKUP(C53,'MHP Family Income & Rent Limits'!$E$12:$L$26,10,FALSE))","v":""},{"$f":"IF(C53=\"\",\"\",HLOOKUP(C53,'MHP Family Income & Rent Limits'!$E$12:$L$26,11,FALSE))","v":""},{"$f":"IF(C53=\"\",\"\",HLOOKUP(C53,'MHP Family Income & Rent Limits'!$E$12:$L$26,12,FALSE))","v":""},{"$f":"IF(C53=\"\",\"\",HLOOKUP(C53,'MHP Family Income & Rent Limits'!$E$12:$L$26,13,FALSE))","v":""},{"$f":"IF(C53=\"\",\"\",HLOOKUP(C53,'MHP Family Income & Rent Limits'!$E$12:$L$26,14,FALSE))","v":""},{"$f":"IF(C53=\"\",\"\",HLOOKUP(C53,'MHP Family Income & Rent Limits'!$E$12:$L$26,15,FALSE))","v":""}]
[{"$f":"IF('2. Assisted & Restricted Units'!A54=\"\",\"\",'2. Assisted & Restricted Units'!A54)","v":""},{"$f":"IF('2. Assisted & Restricted Units'!B54=\"\",\"\",'2. Assisted & Restricted Units'!B54)","v":""},{"$f":"IF('2. Assisted & Restricted Units'!D54=\"\",\"\",'2. Assisted & Restricted Units'!D54)","v":""},{"$f":"IF('2. Assisted & Restricted Units'!E54=\"\",\"\",'2. Assisted & Restricted Units'!E54)","v":""},{"$f":"IF('2. Assisted & Restricted Units'!H54=\"\",\"\",'2. Assisted & Restricted Units'!H54)","v":""},{"$f":"_xlfn.IFS(E54=\"\",\"\",E54>BO54,$BP$6,E54>BN54,$BO$6,E54>BM54,$BN$6,E54>BL54,$BM$6,E54>BK54,$BL$6,E54>BJ54,$BK$6,E54>BI54,$BJ$6,E54>BH54,$BI$6,E54>BG54,$BH$6,E54>BF54,$BG$6,E54>BE54,$BF$6,E54>BD54,$BE$6,E54>BC54,$BD$6,E54>=0,$BC$6)","v":""},{"$f":"IF('2. Assisted & Restricted Units'!T54=\"\",\"\",'2. Assisted & Restricted Units'!T54)","v":""},{"$f":"IF('2. Assisted & Restricted Units'!I54=\"\",\"\",'2. Assisted & Restricted Units'!I54)","v":""},{"$f":"IF('2. Assisted & Restricted Units'!AP54=\"\",\"\",'2. Assisted & Restricted Units'!AP54)","v":0},{"$f":"IF('2. Assisted & Restricted Units'!AT54=\"\",\"\",'2. Assisted & Restricted Units'!AT54)","v":""},0,{"$f":"IF('2. Assisted & Restricted Units'!AV54=\"\",\"\",'2. Assisted & Restricted Units'!AV54)","v":""},{"$f":"IF('2. Assisted & Restricted Units'!L54=\"\",\"\",'2. Assisted & Restricted Units'!L54)","v":""},{"$f":"IF('2. Assisted & Restricted Units'!M54=\"\",\"\",'2. Assisted & Restricted Units'!M54)","v":""},{"$f":"IF('2. Assisted & Restricted Units'!O54=\"\",\"\",'2. Assisted & Restricted Units'!O54)","v":""},{"$f":"IF('2. Assisted & Restricted Units'!P54=\"\",\"\",'2. Assisted & Restricted Units'!P54)","v":""},{"$f":"IF('2. Assisted & Restricted Units'!Q54=\"\",\"\",'2. Assisted & Restricted Units'!Q54)","v":""},{"$f":"IF('2. Assisted & Restricted Units'!R54=\"\",\"\",'2. Assisted & Restricted Units'!R54)","v":""},{"$f":"IF(A54=\"\",\"\",'1. Checklist & Certification'!$K$1)","v":""},{"$f":"IF(A54=\"\",\"\",'1. Checklist & Certification'!$C$62)","v":""},{"$f":"IF(A54=\"\",\"\",'1. Checklist & Certification'!$K$62)","v":""},{"$f":"IF(A54=\"\",\"\",'1. Checklist & Certification'!$C$6)","v":""},{"$f":"IF(A54=\"\",\"\",'1. Checklist & Certification'!$G$4)","v":""},{"$f":"IF(A54=\"\",\"\",'1. Checklist & Certification'!$C$7)","v":""},{"$f":"IF(A54=\"\",\"\",'1. Checklist & Certification'!$C$8)","v":""},{"$f":"IF(A54=\"\",\"\",'1. Checklist & Certification'!$F$7)","v":""},{"$f":"IF(A54=\"\",\"\",'1. Checklist & Certification'!$F$8)","v":""},{"$f":"IF(A54=\"\",\"\",'1. Checklist & Certification'!$B$9)","v":""},{"$f":"IF(A54=\"\",\"\",'1. Checklist & Certification'!$F$9)","v":""},{"$f":"IF(A54=\"\",\"\",'1. Checklist & Certification'!$C$10)","v":""},{"$f":"IF(A54=\"\",\"\",'1. Checklist & Certification'!$C$11)","v":""},{"$f":"IF(A54=\"\",\"\",'1. Checklist & Certification'!$C$12)","v":""},{"$f":"IF(A54=\"\",\"\",'1. Checklist & Certification'!$B$14)","v":""},{"$f":"IF(A54=\"\",\"\",'1. Checklist & Certification'!$E$14)","v":""},{"$f":"IF(B54=\"\",\"\",'1. Checklist & Certification'!$G$14)","v":""},{"$f":"IF(A54=\"\",\"\",'MHP Family Income & Rent Limits'!$B$3)","v":""},{"$f":"IF(A54=\"\",\"\",'MHP Family Income & Rent Limits'!$J$3)","v":""},{"$f":"IF(A54=\"\",\"\",'MHP Family Income & Rent Limits'!$E$4)","v":""},{"$f":"IF(A54=\"\",\"\",'MHP Family Income & Rent Limits'!$C$7)","v":""},{"$f":"IF(A54=\"\",\"\",'MHP Family Income & Rent Limits'!$F$8)","v":""},{"$f":"IF(A54=\"\",\"\",'1. Checklist & Certification'!$G$4)","v":""},{"$f":"IF(A54=\"\",\"\",'1. Checklist & Certification'!$K$39)","v":""},{"$f":"IF(A54=\"\",\"\",'1. Checklist & Certification'!$K$43)","v":""},{"$f":"IF(A54=\"\",\"\",'1. Checklist & Certification'!$K$45)","v":""},{"$f":"IF(A54=\"\",\"\",'1. Checklist & Certification'!$K$49)","v":""},{"$f":"IF(A54=\"\",\"\",'1. Checklist & Certification'!$E$66)","v":""},{"$f":"IF(A54=\"\",\"\",'1. Checklist & Certification'!$E$67)","v":""},{"$f":"IF(A54=\"\",\"\",'1. Checklist & Certification'!$E$68)","v":""},{"$f":"IF(A54=\"\",\"\",'1. Checklist & Certification'!$G$66)","v":""},{"$f":"IF(A54=\"\",\"\",'1. Checklist & Certification'!$H$66)","v":""},{"$f":"IF(A54=\"\",\"\",'1. Checklist & Certification'!$I$66)","v":""},{"$f":"IF(A54=\"\",\"\",'1. Checklist & Certification'!$I$67)","v":""},{"$f":"IF(A54=\"\",\"\",'1. Checklist & Certification'!$I$68)","v":""},null,{"$f":"IF(C54=\"\",\"\",HLOOKUP(C54,'MHP Family Income & Rent Limits'!$E$12:$L$26,2,FALSE))","v":""},{"$f":"IF(C54=\"\",\"\",HLOOKUP(C54,'MHP Family Income & Rent Limits'!$E$12:$L$26,3,FALSE))","v":""},{"$f":"IF(C54=\"\",\"\",HLOOKUP(C54,'MHP Family Income & Rent Limits'!$E$12:$L$26,4,FALSE))","v":""},{"$f":"IF(C54=\"\",\"\",HLOOKUP(C54,'MHP Family Income & Rent Limits'!$E$12:$L$26,5,FALSE))","v":""},{"$f":"IF(C54=\"\",\"\",HLOOKUP(C54,'MHP Family Income & Rent Limits'!$E$12:$L$26,6,FALSE))","v":""},{"$f":"IF(C54=\"\",\"\",HLOOKUP(C54,'MHP Family Income & Rent Limits'!$E$12:$L$26,7,FALSE))","v":""},{"$f":"IF(C54=\"\",\"\",HLOOKUP(C54,'MHP Family Income & Rent Limits'!$E$12:$L$26,8,FALSE))","v":""},{"$f":"IF(C54=\"\",\"\",HLOOKUP(C54,'MHP Family Income & Rent Limits'!$E$12:$L$26,9,FALSE))","v":""},{"$f":"IF(C54=\"\",\"\",HLOOKUP(C54,'MHP Family Income & Rent Limits'!$E$12:$L$26,10,FALSE))","v":""},{"$f":"IF(C54=\"\",\"\",HLOOKUP(C54,'MHP Family Income & Rent Limits'!$E$12:$L$26,11,FALSE))","v":""},{"$f":"IF(C54=\"\",\"\",HLOOKUP(C54,'MHP Family Income & Rent Limits'!$E$12:$L$26,12,FALSE))","v":""},{"$f":"IF(C54=\"\",\"\",HLOOKUP(C54,'MHP Family Income & Rent Limits'!$E$12:$L$26,13,FALSE))","v":""},{"$f":"IF(C54=\"\",\"\",HLOOKUP(C54,'MHP Family Income & Rent Limits'!$E$12:$L$26,14,FALSE))","v":""},{"$f":"IF(C54=\"\",\"\",HLOOKUP(C54,'MHP Family Income & Rent Limits'!$E$12:$L$26,15,FALSE))","v":""}]
[{"$f":"IF('2. Assisted & Restricted Units'!A55=\"\",\"\",'2. Assisted & Restricted Units'!A55)","v":""},{"$f":"IF('2. Assisted & Restricted Units'!B55=\"\",\"\",'2. Assisted & Restricted Units'!B55)","v":""},{"$f":"IF('2. Assisted & Restricted Units'!D55=\"\",\"\",'2. Assisted & Restricted Units'!D55)","v":""},{"$f":"IF('2. Assisted & Restricted Units'!E55=\"\",\"\",'2. Assisted & Restricted Units'!E55)","v":""},{"$f":"IF('2. Assisted & Restricted Units'!H55=\"\",\"\",'2. Assisted & Restricted Units'!H55)","v":""},{"$f":"_xlfn.IFS(E55=\"\",\"\",E55>BO55,$BP$6,E55>BN55,$BO$6,E55>BM55,$BN$6,E55>BL55,$BM$6,E55>BK55,$BL$6,E55>BJ55,$BK$6,E55>BI55,$BJ$6,E55>BH55,$BI$6,E55>BG55,$BH$6,E55>BF55,$BG$6,E55>BE55,$BF$6,E55>BD55,$BE$6,E55>BC55,$BD$6,E55>=0,$BC$6)","v":""},{"$f":"IF('2. Assisted & Restricted Units'!T55=\"\",\"\",'2. Assisted & Restricted Units'!T55)","v":""},{"$f":"IF('2. Assisted & Restricted Units'!I55=\"\",\"\",'2. Assisted & Restricted Units'!I55)","v":""},{"$f":"IF('2. Assisted & Restricted Units'!AP55=\"\",\"\",'2. Assisted & Restricted Units'!AP55)","v":0},{"$f":"IF('2. Assisted & Restricted Units'!AT55=\"\",\"\",'2. Assisted & Restricted Units'!AT55)","v":""},0,{"$f":"IF('2. Assisted & Restricted Units'!AV55=\"\",\"\",'2. Assisted & Restricted Units'!AV55)","v":""},{"$f":"IF('2. Assisted & Restricted Units'!L55=\"\",\"\",'2. Assisted & Restricted Units'!L55)","v":""},{"$f":"IF('2. Assisted & Restricted Units'!M55=\"\",\"\",'2. Assisted & Restricted Units'!M55)","v":""},{"$f":"IF('2. Assisted & Restricted Units'!O55=\"\",\"\",'2. Assisted & Restricted Units'!O55)","v":""},{"$f":"IF('2. Assisted & Restricted Units'!P55=\"\",\"\",'2. Assisted & Restricted Units'!P55)","v":""},{"$f":"IF('2. Assisted & Restricted Units'!Q55=\"\",\"\",'2. Assisted & Restricted Units'!Q55)","v":""},{"$f":"IF('2. Assisted & Restricted Units'!R55=\"\",\"\",'2. Assisted & Restricted Units'!R55)","v":""},{"$f":"IF(A55=\"\",\"\",'1. Checklist & Certification'!$K$1)","v":""},{"$f":"IF(A55=\"\",\"\",'1. Checklist & Certification'!$C$62)","v":""},{"$f":"IF(A55=\"\",\"\",'1. Checklist & Certification'!$K$62)","v":""},{"$f":"IF(A55=\"\",\"\",'1. Checklist & Certification'!$C$6)","v":""},{"$f":"IF(A55=\"\",\"\",'1. Checklist & Certification'!$G$4)","v":""},{"$f":"IF(A55=\"\",\"\",'1. Checklist & Certification'!$C$7)","v":""},{"$f":"IF(A55=\"\",\"\",'1. Checklist & Certification'!$C$8)","v":""},{"$f":"IF(A55=\"\",\"\",'1. Checklist & Certification'!$F$7)","v":""},{"$f":"IF(A55=\"\",\"\",'1. Checklist & Certification'!$F$8)","v":""},{"$f":"IF(A55=\"\",\"\",'1. Checklist & Certification'!$B$9)","v":""},{"$f":"IF(A55=\"\",\"\",'1. Checklist & Certification'!$F$9)","v":""},{"$f":"IF(A55=\"\",\"\",'1. Checklist & Certification'!$C$10)","v":""},{"$f":"IF(A55=\"\",\"\",'1. Checklist & Certification'!$C$11)","v":""},{"$f":"IF(A55=\"\",\"\",'1. Checklist & Certification'!$C$12)","v":""},{"$f":"IF(A55=\"\",\"\",'1. Checklist & Certification'!$B$14)","v":""},{"$f":"IF(A55=\"\",\"\",'1. Checklist & Certification'!$E$14)","v":""},{"$f":"IF(B55=\"\",\"\",'1. Checklist & Certification'!$G$14)","v":""},{"$f":"IF(A55=\"\",\"\",'MHP Family Income & Rent Limits'!$B$3)","v":""},{"$f":"IF(A55=\"\",\"\",'MHP Family Income & Rent Limits'!$J$3)","v":""},{"$f":"IF(A55=\"\",\"\",'MHP Family Income & Rent Limits'!$E$4)","v":""},{"$f":"IF(A55=\"\",\"\",'MHP Family Income & Rent Limits'!$C$7)","v":""},{"$f":"IF(A55=\"\",\"\",'MHP Family Income & Rent Limits'!$F$8)","v":""},{"$f":"IF(A55=\"\",\"\",'1. Checklist & Certification'!$G$4)","v":""},{"$f":"IF(A55=\"\",\"\",'1. Checklist & Certification'!$K$39)","v":""},{"$f":"IF(A55=\"\",\"\",'1. Checklist & Certification'!$K$43)","v":""},{"$f":"IF(A55=\"\",\"\",'1. Checklist & Certification'!$K$45)","v":""},{"$f":"IF(A55=\"\",\"\",'1. Checklist & Certification'!$K$49)","v":""},{"$f":"IF(A55=\"\",\"\",'1. Checklist & Certification'!$E$66)","v":""},{"$f":"IF(A55=\"\",\"\",'1. Checklist & Certification'!$E$67)","v":""},{"$f":"IF(A55=\"\",\"\",'1. Checklist & Certification'!$E$68)","v":""},{"$f":"IF(A55=\"\",\"\",'1. Checklist & Certification'!$G$66)","v":""},{"$f":"IF(A55=\"\",\"\",'1. Checklist & Certification'!$H$66)","v":""},{"$f":"IF(A55=\"\",\"\",'1. Checklist & Certification'!$I$66)","v":""},{"$f":"IF(A55=\"\",\"\",'1. Checklist & Certification'!$I$67)","v":""},{"$f":"IF(A55=\"\",\"\",'1. Checklist & Certification'!$I$68)","v":""},null,{"$f":"IF(C55=\"\",\"\",HLOOKUP(C55,'MHP Family Income & Rent Limits'!$E$12:$L$26,2,FALSE))","v":""},{"$f":"IF(C55=\"\",\"\",HLOOKUP(C55,'MHP Family Income & Rent Limits'!$E$12:$L$26,3,FALSE))","v":""},{"$f":"IF(C55=\"\",\"\",HLOOKUP(C55,'MHP Family Income & Rent Limits'!$E$12:$L$26,4,FALSE))","v":""},{"$f":"IF(C55=\"\",\"\",HLOOKUP(C55,'MHP Family Income & Rent Limits'!$E$12:$L$26,5,FALSE))","v":""},{"$f":"IF(C55=\"\",\"\",HLOOKUP(C55,'MHP Family Income & Rent Limits'!$E$12:$L$26,6,FALSE))","v":""},{"$f":"IF(C55=\"\",\"\",HLOOKUP(C55,'MHP Family Income & Rent Limits'!$E$12:$L$26,7,FALSE))","v":""},{"$f":"IF(C55=\"\",\"\",HLOOKUP(C55,'MHP Family Income & Rent Limits'!$E$12:$L$26,8,FALSE))","v":""},{"$f":"IF(C55=\"\",\"\",HLOOKUP(C55,'MHP Family Income & Rent Limits'!$E$12:$L$26,9,FALSE))","v":""},{"$f":"IF(C55=\"\",\"\",HLOOKUP(C55,'MHP Family Income & Rent Limits'!$E$12:$L$26,10,FALSE))","v":""},{"$f":"IF(C55=\"\",\"\",HLOOKUP(C55,'MHP Family Income & Rent Limits'!$E$12:$L$26,11,FALSE))","v":""},{"$f":"IF(C55=\"\",\"\",HLOOKUP(C55,'MHP Family Income & Rent Limits'!$E$12:$L$26,12,FALSE))","v":""},{"$f":"IF(C55=\"\",\"\",HLOOKUP(C55,'MHP Family Income & Rent Limits'!$E$12:$L$26,13,FALSE))","v":""},{"$f":"IF(C55=\"\",\"\",HLOOKUP(C55,'MHP Family Income & Rent Limits'!$E$12:$L$26,14,FALSE))","v":""},{"$f":"IF(C55=\"\",\"\",HLOOKUP(C55,'MHP Family Income & Rent Limits'!$E$12:$L$26,15,FALSE))","v":""}]
[{"$f":"IF('2. Assisted & Restricted Units'!A56=\"\",\"\",'2. Assisted & Restricted Units'!A56)","v":""},{"$f":"IF('2. Assisted & Restricted Units'!B56=\"\",\"\",'2. Assisted & Restricted Units'!B56)","v":""},{"$f":"IF('2. Assisted & Restricted Units'!D56=\"\",\"\",'2. Assisted & Restricted Units'!D56)","v":""},{"$f":"IF('2. Assisted & Restricted Units'!E56=\"\",\"\",'2. Assisted & Restricted Units'!E56)","v":""},{"$f":"IF('2. Assisted & Restricted Units'!H56=\"\",\"\",'2. Assisted & Restricted Units'!H56)","v":""},{"$f":"_xlfn.IFS(E56=\"\",\"\",E56>BO56,$BP$6,E56>BN56,$BO$6,E56>BM56,$BN$6,E56>BL56,$BM$6,E56>BK56,$BL$6,E56>BJ56,$BK$6,E56>BI56,$BJ$6,E56>BH56,$BI$6,E56>BG56,$BH$6,E56>BF56,$BG$6,E56>BE56,$BF$6,E56>BD56,$BE$6,E56>BC56,$BD$6,E56>=0,$BC$6)","v":""},{"$f":"IF('2. Assisted & Restricted Units'!T56=\"\",\"\",'2. Assisted & Restricted Units'!T56)","v":""},{"$f":"IF('2. Assisted & Restricted Units'!I56=\"\",\"\",'2. Assisted & Restricted Units'!I56)","v":""},{"$f":"IF('2. Assisted & Restricted Units'!AP56=\"\",\"\",'2. Assisted & Restricted Units'!AP56)","v":0},{"$f":"IF('2. Assisted & Restricted Units'!AT56=\"\",\"\",'2. Assisted & Restricted Units'!AT56)","v":""},0,{"$f":"IF('2. Assisted & Restricted Units'!AV56=\"\",\"\",'2. Assisted & Restricted Units'!AV56)","v":""},{"$f":"IF('2. Assisted & Restricted Units'!L56=\"\",\"\",'2. Assisted & Restricted Units'!L56)","v":""},{"$f":"IF('2. Assisted & Restricted Units'!M56=\"\",\"\",'2. Assisted & Restricted Units'!M56)","v":""},{"$f":"IF('2. Assisted & Restricted Units'!O56=\"\",\"\",'2. Assisted & Restricted Units'!O56)","v":""},{"$f":"IF('2. Assisted & Restricted Units'!P56=\"\",\"\",'2. Assisted & Restricted Units'!P56)","v":""},{"$f":"IF('2. Assisted & Restricted Units'!Q56=\"\",\"\",'2. Assisted & Restricted Units'!Q56)","v":""},{"$f":"IF('2. Assisted & Restricted Units'!R56=\"\",\"\",'2. Assisted & Restricted Units'!R56)","v":""},{"$f":"IF(A56=\"\",\"\",'1. Checklist & Certification'!$K$1)","v":""},{"$f":"IF(A56=\"\",\"\",'1. Checklist & Certification'!$C$62)","v":""},{"$f":"IF(A56=\"\",\"\",'1. Checklist & Certification'!$K$62)","v":""},{"$f":"IF(A56=\"\",\"\",'1. Checklist & Certification'!$C$6)","v":""},{"$f":"IF(A56=\"\",\"\",'1. Checklist & Certification'!$G$4)","v":""},{"$f":"IF(A56=\"\",\"\",'1. Checklist & Certification'!$C$7)","v":""},{"$f":"IF(A56=\"\",\"\",'1. Checklist & Certification'!$C$8)","v":""},{"$f":"IF(A56=\"\",\"\",'1. Checklist & Certification'!$F$7)","v":""},{"$f":"IF(A56=\"\",\"\",'1. Checklist & Certification'!$F$8)","v":""},{"$f":"IF(A56=\"\",\"\",'1. Checklist & Certification'!$B$9)","v":""},{"$f":"IF(A56=\"\",\"\",'1. Checklist & Certification'!$F$9)","v":""},{"$f":"IF(A56=\"\",\"\",'1. Checklist & Certification'!$C$10)","v":""},{"$f":"IF(A56=\"\",\"\",'1. Checklist & Certification'!$C$11)","v":""},{"$f":"IF(A56=\"\",\"\",'1. Checklist & Certification'!$C$12)","v":""},{"$f":"IF(A56=\"\",\"\",'1. Checklist & Certification'!$B$14)","v":""},{"$f":"IF(A56=\"\",\"\",'1. Checklist & Certification'!$E$14)","v":""},{"$f":"IF(B56=\"\",\"\",'1. Checklist & Certification'!$G$14)","v":""},{"$f":"IF(A56=\"\",\"\",'MHP Family Income & Rent Limits'!$B$3)","v":""},{"$f":"IF(A56=\"\",\"\",'MHP Family Income & Rent Limits'!$J$3)","v":""},{"$f":"IF(A56=\"\",\"\",'MHP Family Income & Rent Limits'!$E$4)","v":""},{"$f":"IF(A56=\"\",\"\",'MHP Family Income & Rent Limits'!$C$7)","v":""},{"$f":"IF(A56=\"\",\"\",'MHP Family Income & Rent Limits'!$F$8)","v":""},{"$f":"IF(A56=\"\",\"\",'1. Checklist & Certification'!$G$4)","v":""},{"$f":"IF(A56=\"\",\"\",'1. Checklist & Certification'!$K$39)","v":""},{"$f":"IF(A56=\"\",\"\",'1. Checklist & Certification'!$K$43)","v":""},{"$f":"IF(A56=\"\",\"\",'1. Checklist & Certification'!$K$45)","v":""},{"$f":"IF(A56=\"\",\"\",'1. Checklist & Certification'!$K$49)","v":""},{"$f":"IF(A56=\"\",\"\",'1. Checklist & Certification'!$E$66)","v":""},{"$f":"IF(A56=\"\",\"\",'1. Checklist & Certification'!$E$67)","v":""},{"$f":"IF(A56=\"\",\"\",'1. Checklist & Certification'!$E$68)","v":""},{"$f":"IF(A56=\"\",\"\",'1. Checklist & Certification'!$G$66)","v":""},{"$f":"IF(A56=\"\",\"\",'1. Checklist & Certification'!$H$66)","v":""},{"$f":"IF(A56=\"\",\"\",'1. Checklist & Certification'!$I$66)","v":""},{"$f":"IF(A56=\"\",\"\",'1. Checklist & Certification'!$I$67)","v":""},{"$f":"IF(A56=\"\",\"\",'1. Checklist & Certification'!$I$68)","v":""},null,{"$f":"IF(C56=\"\",\"\",HLOOKUP(C56,'MHP Family Income & Rent Limits'!$E$12:$L$26,2,FALSE))","v":""},{"$f":"IF(C56=\"\",\"\",HLOOKUP(C56,'MHP Family Income & Rent Limits'!$E$12:$L$26,3,FALSE))","v":""},{"$f":"IF(C56=\"\",\"\",HLOOKUP(C56,'MHP Family Income & Rent Limits'!$E$12:$L$26,4,FALSE))","v":""},{"$f":"IF(C56=\"\",\"\",HLOOKUP(C56,'MHP Family Income & Rent Limits'!$E$12:$L$26,5,FALSE))","v":""},{"$f":"IF(C56=\"\",\"\",HLOOKUP(C56,'MHP Family Income & Rent Limits'!$E$12:$L$26,6,FALSE))","v":""},{"$f":"IF(C56=\"\",\"\",HLOOKUP(C56,'MHP Family Income & Rent Limits'!$E$12:$L$26,7,FALSE))","v":""},{"$f":"IF(C56=\"\",\"\",HLOOKUP(C56,'MHP Family Income & Rent Limits'!$E$12:$L$26,8,FALSE))","v":""},{"$f":"IF(C56=\"\",\"\",HLOOKUP(C56,'MHP Family Income & Rent Limits'!$E$12:$L$26,9,FALSE))","v":""},{"$f":"IF(C56=\"\",\"\",HLOOKUP(C56,'MHP Family Income & Rent Limits'!$E$12:$L$26,10,FALSE))","v":""},{"$f":"IF(C56=\"\",\"\",HLOOKUP(C56,'MHP Family Income & Rent Limits'!$E$12:$L$26,11,FALSE))","v":""},{"$f":"IF(C56=\"\",\"\",HLOOKUP(C56,'MHP Family Income & Rent Limits'!$E$12:$L$26,12,FALSE))","v":""},{"$f":"IF(C56=\"\",\"\",HLOOKUP(C56,'MHP Family Income & Rent Limits'!$E$12:$L$26,13,FALSE))","v":""},{"$f":"IF(C56=\"\",\"\",HLOOKUP(C56,'MHP Family Income & Rent Limits'!$E$12:$L$26,14,FALSE))","v":""},{"$f":"IF(C56=\"\",\"\",HLOOKUP(C56,'MHP Family Income & Rent Limits'!$E$12:$L$26,15,FALSE))","v":""}]
[{"$f":"IF('2. Assisted & Restricted Units'!A57=\"\",\"\",'2. Assisted & Restricted Units'!A57)","v":""},{"$f":"IF('2. Assisted & Restricted Units'!B57=\"\",\"\",'2. Assisted & Restricted Units'!B57)","v":""},{"$f":"IF('2. Assisted & Restricted Units'!D57=\"\",\"\",'2. Assisted & Restricted Units'!D57)","v":""},{"$f":"IF('2. Assisted & Restricted Units'!E57=\"\",\"\",'2. Assisted & Restricted Units'!E57)","v":""},{"$f":"IF('2. Assisted & Restricted Units'!H57=\"\",\"\",'2. Assisted & Restricted Units'!H57)","v":""},{"$f":"_xlfn.IFS(E57=\"\",\"\",E57>BO57,$BP$6,E57>BN57,$BO$6,E57>BM57,$BN$6,E57>BL57,$BM$6,E57>BK57,$BL$6,E57>BJ57,$BK$6,E57>BI57,$BJ$6,E57>BH57,$BI$6,E57>BG57,$BH$6,E57>BF57,$BG$6,E57>BE57,$BF$6,E57>BD57,$BE$6,E57>BC57,$BD$6,E57>=0,$BC$6)","v":""},{"$f":"IF('2. Assisted & Restricted Units'!T57=\"\",\"\",'2. Assisted & Restricted Units'!T57)","v":""},{"$f":"IF('2. Assisted & Restricted Units'!I57=\"\",\"\",'2. Assisted & Restricted Units'!I57)","v":""},{"$f":"IF('2. Assisted & Restricted Units'!AP57=\"\",\"\",'2. Assisted & Restricted Units'!AP57)","v":0},{"$f":"IF('2. Assisted & Restricted Units'!AT57=\"\",\"\",'2. Assisted & Restricted Units'!AT57)","v":""},0,{"$f":"IF('2. Assisted & Restricted Units'!AV57=\"\",\"\",'2. Assisted & Restricted Units'!AV57)","v":""},{"$f":"IF('2. Assisted & Restricted Units'!L57=\"\",\"\",'2. Assisted & Restricted Units'!L57)","v":""},{"$f":"IF('2. Assisted & Restricted Units'!M57=\"\",\"\",'2. Assisted & Restricted Units'!M57)","v":""},{"$f":"IF('2. Assisted & Restricted Units'!O57=\"\",\"\",'2. Assisted & Restricted Units'!O57)","v":""},{"$f":"IF('2. Assisted & Restricted Units'!P57=\"\",\"\",'2. Assisted & Restricted Units'!P57)","v":""},{"$f":"IF('2. Assisted & Restricted Units'!Q57=\"\",\"\",'2. Assisted & Restricted Units'!Q57)","v":""},{"$f":"IF('2. Assisted & Restricted Units'!R57=\"\",\"\",'2. Assisted & Restricted Units'!R57)","v":""},{"$f":"IF(A57=\"\",\"\",'1. Checklist & Certification'!$K$1)","v":""},{"$f":"IF(A57=\"\",\"\",'1. Checklist & Certification'!$C$62)","v":""},{"$f":"IF(A57=\"\",\"\",'1. Checklist & Certification'!$K$62)","v":""},{"$f":"IF(A57=\"\",\"\",'1. Checklist & Certification'!$C$6)","v":""},{"$f":"IF(A57=\"\",\"\",'1. Checklist & Certification'!$G$4)","v":""},{"$f":"IF(A57=\"\",\"\",'1. Checklist & Certification'!$C$7)","v":""},{"$f":"IF(A57=\"\",\"\",'1. Checklist & Certification'!$C$8)","v":""},{"$f":"IF(A57=\"\",\"\",'1. Checklist & Certification'!$F$7)","v":""},{"$f":"IF(A57=\"\",\"\",'1. Checklist & Certification'!$F$8)","v":""},{"$f":"IF(A57=\"\",\"\",'1. Checklist & Certification'!$B$9)","v":""},{"$f":"IF(A57=\"\",\"\",'1. Checklist & Certification'!$F$9)","v":""},{"$f":"IF(A57=\"\",\"\",'1. Checklist & Certification'!$C$10)","v":""},{"$f":"IF(A57=\"\",\"\",'1. Checklist & Certification'!$C$11)","v":""},{"$f":"IF(A57=\"\",\"\",'1. Checklist & Certification'!$C$12)","v":""},{"$f":"IF(A57=\"\",\"\",'1. Checklist & Certification'!$B$14)","v":""},{"$f":"IF(A57=\"\",\"\",'1. Checklist & Certification'!$E$14)","v":""},{"$f":"IF(B57=\"\",\"\",'1. Checklist & Certification'!$G$14)","v":""},{"$f":"IF(A57=\"\",\"\",'MHP Family Income & Rent Limits'!$B$3)","v":""},{"$f":"IF(A57=\"\",\"\",'MHP Family Income & Rent Limits'!$J$3)","v":""},{"$f":"IF(A57=\"\",\"\",'MHP Family Income & Rent Limits'!$E$4)","v":""},{"$f":"IF(A57=\"\",\"\",'MHP Family Income & Rent Limits'!$C$7)","v":""},{"$f":"IF(A57=\"\",\"\",'MHP Family Income & Rent Limits'!$F$8)","v":""},{"$f":"IF(A57=\"\",\"\",'1. Checklist & Certification'!$G$4)","v":""},{"$f":"IF(A57=\"\",\"\",'1. Checklist & Certification'!$K$39)","v":""},{"$f":"IF(A57=\"\",\"\",'1. Checklist & Certification'!$K$43)","v":""},{"$f":"IF(A57=\"\",\"\",'1. Checklist & Certification'!$K$45)","v":""},{"$f":"IF(A57=\"\",\"\",'1. Checklist & Certification'!$K$49)","v":""},{"$f":"IF(A57=\"\",\"\",'1. Checklist & Certification'!$E$66)","v":""},{"$f":"IF(A57=\"\",\"\",'1. Checklist & Certification'!$E$67)","v":""},{"$f":"IF(A57=\"\",\"\",'1. Checklist & Certification'!$E$68)","v":""},{"$f":"IF(A57=\"\",\"\",'1. Checklist & Certification'!$G$66)","v":""},{"$f":"IF(A57=\"\",\"\",'1. Checklist & Certification'!$H$66)","v":""},{"$f":"IF(A57=\"\",\"\",'1. Checklist & Certification'!$I$66)","v":""},{"$f":"IF(A57=\"\",\"\",'1. Checklist & Certification'!$I$67)","v":""},{"$f":"IF(A57=\"\",\"\",'1. Checklist & Certification'!$I$68)","v":""},null,{"$f":"IF(C57=\"\",\"\",HLOOKUP(C57,'MHP Family Income & Rent Limits'!$E$12:$L$26,2,FALSE))","v":""},{"$f":"IF(C57=\"\",\"\",HLOOKUP(C57,'MHP Family Income & Rent Limits'!$E$12:$L$26,3,FALSE))","v":""},{"$f":"IF(C57=\"\",\"\",HLOOKUP(C57,'MHP Family Income & Rent Limits'!$E$12:$L$26,4,FALSE))","v":""},{"$f":"IF(C57=\"\",\"\",HLOOKUP(C57,'MHP Family Income & Rent Limits'!$E$12:$L$26,5,FALSE))","v":""},{"$f":"IF(C57=\"\",\"\",HLOOKUP(C57,'MHP Family Income & Rent Limits'!$E$12:$L$26,6,FALSE))","v":""},{"$f":"IF(C57=\"\",\"\",HLOOKUP(C57,'MHP Family Income & Rent Limits'!$E$12:$L$26,7,FALSE))","v":""},{"$f":"IF(C57=\"\",\"\",HLOOKUP(C57,'MHP Family Income & Rent Limits'!$E$12:$L$26,8,FALSE))","v":""},{"$f":"IF(C57=\"\",\"\",HLOOKUP(C57,'MHP Family Income & Rent Limits'!$E$12:$L$26,9,FALSE))","v":""},{"$f":"IF(C57=\"\",\"\",HLOOKUP(C57,'MHP Family Income & Rent Limits'!$E$12:$L$26,10,FALSE))","v":""},{"$f":"IF(C57=\"\",\"\",HLOOKUP(C57,'MHP Family Income & Rent Limits'!$E$12:$L$26,11,FALSE))","v":""},{"$f":"IF(C57=\"\",\"\",HLOOKUP(C57,'MHP Family Income & Rent Limits'!$E$12:$L$26,12,FALSE))","v":""},{"$f":"IF(C57=\"\",\"\",HLOOKUP(C57,'MHP Family Income & Rent Limits'!$E$12:$L$26,13,FALSE))","v":""},{"$f":"IF(C57=\"\",\"\",HLOOKUP(C57,'MHP Family Income & Rent Limits'!$E$12:$L$26,14,FALSE))","v":""},{"$f":"IF(C57=\"\",\"\",HLOOKUP(C57,'MHP Family Income & Rent Limits'!$E$12:$L$26,15,FALSE))","v":""}]
[{"$f":"IF('2. Assisted & Restricted Units'!A58=\"\",\"\",'2. Assisted & Restricted Units'!A58)","v":""},{"$f":"IF('2. Assisted & Restricted Units'!B58=\"\",\"\",'2. Assisted & Restricted Units'!B58)","v":""},{"$f":"IF('2. Assisted & Restricted Units'!D58=\"\",\"\",'2. Assisted & Restricted Units'!D58)","v":""},{"$f":"IF('2. Assisted & Restricted Units'!E58=\"\",\"\",'2. Assisted & Restricted Units'!E58)","v":""},{"$f":"IF('2. Assisted & Restricted Units'!H58=\"\",\"\",'2. Assisted & Restricted Units'!H58)","v":""},{"$f":"_xlfn.IFS(E58=\"\",\"\",E58>BO58,$BP$6,E58>BN58,$BO$6,E58>BM58,$BN$6,E58>BL58,$BM$6,E58>BK58,$BL$6,E58>BJ58,$BK$6,E58>BI58,$BJ$6,E58>BH58,$BI$6,E58>BG58,$BH$6,E58>BF58,$BG$6,E58>BE58,$BF$6,E58>BD58,$BE$6,E58>BC58,$BD$6,E58>=0,$BC$6)","v":""},{"$f":"IF('2. Assisted & Restricted Units'!T58=\"\",\"\",'2. Assisted & Restricted Units'!T58)","v":""},{"$f":"IF('2. Assisted & Restricted Units'!I58=\"\",\"\",'2. Assisted & Restricted Units'!I58)","v":""},{"$f":"IF('2. Assisted & Restricted Units'!AP58=\"\",\"\",'2. Assisted & Restricted Units'!AP58)","v":0},{"$f":"IF('2. Assisted & Restricted Units'!AT58=\"\",\"\",'2. Assisted & Restricted Units'!AT58)","v":""},0,{"$f":"IF('2. Assisted & Restricted Units'!AV58=\"\",\"\",'2. Assisted & Restricted Units'!AV58)","v":""},{"$f":"IF('2. Assisted & Restricted Units'!L58=\"\",\"\",'2. Assisted & Restricted Units'!L58)","v":""},{"$f":"IF('2. Assisted & Restricted Units'!M58=\"\",\"\",'2. Assisted & Restricted Units'!M58)","v":""},{"$f":"IF('2. Assisted & Restricted Units'!O58=\"\",\"\",'2. Assisted & Restricted Units'!O58)","v":""},{"$f":"IF('2. Assisted & Restricted Units'!P58=\"\",\"\",'2. Assisted & Restricted Units'!P58)","v":""},{"$f":"IF('2. Assisted & Restricted Units'!Q58=\"\",\"\",'2. Assisted & Restricted Units'!Q58)","v":""},{"$f":"IF('2. Assisted & Restricted Units'!R58=\"\",\"\",'2. Assisted & Restricted Units'!R58)","v":""},{"$f":"IF(A58=\"\",\"\",'1. Checklist & Certification'!$K$1)","v":""},{"$f":"IF(A58=\"\",\"\",'1. Checklist & Certification'!$C$62)","v":""},{"$f":"IF(A58=\"\",\"\",'1. Checklist & Certification'!$K$62)","v":""},{"$f":"IF(A58=\"\",\"\",'1. Checklist & Certification'!$C$6)","v":""},{"$f":"IF(A58=\"\",\"\",'1. Checklist & Certification'!$G$4)","v":""},{"$f":"IF(A58=\"\",\"\",'1. Checklist & Certification'!$C$7)","v":""},{"$f":"IF(A58=\"\",\"\",'1. Checklist & Certification'!$C$8)","v":""},{"$f":"IF(A58=\"\",\"\",'1. Checklist & Certification'!$F$7)","v":""},{"$f":"IF(A58=\"\",\"\",'1. Checklist & Certification'!$F$8)","v":""},{"$f":"IF(A58=\"\",\"\",'1. Checklist & Certification'!$B$9)","v":""},{"$f":"IF(A58=\"\",\"\",'1. Checklist & Certification'!$F$9)","v":""},{"$f":"IF(A58=\"\",\"\",'1. Checklist & Certification'!$C$10)","v":""},{"$f":"IF(A58=\"\",\"\",'1. Checklist & Certification'!$C$11)","v":""},{"$f":"IF(A58=\"\",\"\",'1. Checklist & Certification'!$C$12)","v":""},{"$f":"IF(A58=\"\",\"\",'1. Checklist & Certification'!$B$14)","v":""},{"$f":"IF(A58=\"\",\"\",'1. Checklist & Certification'!$E$14)","v":""},{"$f":"IF(B58=\"\",\"\",'1. Checklist & Certification'!$G$14)","v":""},{"$f":"IF(A58=\"\",\"\",'MHP Family Income & Rent Limits'!$B$3)","v":""},{"$f":"IF(A58=\"\",\"\",'MHP Family Income & Rent Limits'!$J$3)","v":""},{"$f":"IF(A58=\"\",\"\",'MHP Family Income & Rent Limits'!$E$4)","v":""},{"$f":"IF(A58=\"\",\"\",'MHP Family Income & Rent Limits'!$C$7)","v":""},{"$f":"IF(A58=\"\",\"\",'MHP Family Income & Rent Limits'!$F$8)","v":""},{"$f":"IF(A58=\"\",\"\",'1. Checklist & Certification'!$G$4)","v":""},{"$f":"IF(A58=\"\",\"\",'1. Checklist & Certification'!$K$39)","v":""},{"$f":"IF(A58=\"\",\"\",'1. Checklist & Certification'!$K$43)","v":""},{"$f":"IF(A58=\"\",\"\",'1. Checklist & Certification'!$K$45)","v":""},{"$f":"IF(A58=\"\",\"\",'1. Checklist & Certification'!$K$49)","v":""},{"$f":"IF(A58=\"\",\"\",'1. Checklist & Certification'!$E$66)","v":""},{"$f":"IF(A58=\"\",\"\",'1. Checklist & Certification'!$E$67)","v":""},{"$f":"IF(A58=\"\",\"\",'1. Checklist & Certification'!$E$68)","v":""},{"$f":"IF(A58=\"\",\"\",'1. Checklist & Certification'!$G$66)","v":""},{"$f":"IF(A58=\"\",\"\",'1. Checklist & Certification'!$H$66)","v":""},{"$f":"IF(A58=\"\",\"\",'1. Checklist & Certification'!$I$66)","v":""},{"$f":"IF(A58=\"\",\"\",'1. Checklist & Certification'!$I$67)","v":""},{"$f":"IF(A58=\"\",\"\",'1. Checklist & Certification'!$I$68)","v":""},null,{"$f":"IF(C58=\"\",\"\",HLOOKUP(C58,'MHP Family Income & Rent Limits'!$E$12:$L$26,2,FALSE))","v":""},{"$f":"IF(C58=\"\",\"\",HLOOKUP(C58,'MHP Family Income & Rent Limits'!$E$12:$L$26,3,FALSE))","v":""},{"$f":"IF(C58=\"\",\"\",HLOOKUP(C58,'MHP Family Income & Rent Limits'!$E$12:$L$26,4,FALSE))","v":""},{"$f":"IF(C58=\"\",\"\",HLOOKUP(C58,'MHP Family Income & Rent Limits'!$E$12:$L$26,5,FALSE))","v":""},{"$f":"IF(C58=\"\",\"\",HLOOKUP(C58,'MHP Family Income & Rent Limits'!$E$12:$L$26,6,FALSE))","v":""},{"$f":"IF(C58=\"\",\"\",HLOOKUP(C58,'MHP Family Income & Rent Limits'!$E$12:$L$26,7,FALSE))","v":""},{"$f":"IF(C58=\"\",\"\",HLOOKUP(C58,'MHP Family Income & Rent Limits'!$E$12:$L$26,8,FALSE))","v":""},{"$f":"IF(C58=\"\",\"\",HLOOKUP(C58,'MHP Family Income & Rent Limits'!$E$12:$L$26,9,FALSE))","v":""},{"$f":"IF(C58=\"\",\"\",HLOOKUP(C58,'MHP Family Income & Rent Limits'!$E$12:$L$26,10,FALSE))","v":""},{"$f":"IF(C58=\"\",\"\",HLOOKUP(C58,'MHP Family Income & Rent Limits'!$E$12:$L$26,11,FALSE))","v":""},{"$f":"IF(C58=\"\",\"\",HLOOKUP(C58,'MHP Family Income & Rent Limits'!$E$12:$L$26,12,FALSE))","v":""},{"$f":"IF(C58=\"\",\"\",HLOOKUP(C58,'MHP Family Income & Rent Limits'!$E$12:$L$26,13,FALSE))","v":""},{"$f":"IF(C58=\"\",\"\",HLOOKUP(C58,'MHP Family Income & Rent Limits'!$E$12:$L$26,14,FALSE))","v":""},{"$f":"IF(C58=\"\",\"\",HLOOKUP(C58,'MHP Family Income & Rent Limits'!$E$12:$L$26,15,FALSE))","v":""}]
[{"$f":"IF('2. Assisted & Restricted Units'!A59=\"\",\"\",'2. Assisted & Restricted Units'!A59)","v":""},{"$f":"IF('2. Assisted & Restricted Units'!B59=\"\",\"\",'2. Assisted & Restricted Units'!B59)","v":""},{"$f":"IF('2. Assisted & Restricted Units'!D59=\"\",\"\",'2. Assisted & Restricted Units'!D59)","v":""},{"$f":"IF('2. Assisted & Restricted Units'!E59=\"\",\"\",'2. Assisted & Restricted Units'!E59)","v":""},{"$f":"IF('2. Assisted & Restricted Units'!H59=\"\",\"\",'2. Assisted & Restricted Units'!H59)","v":""},{"$f":"_xlfn.IFS(E59=\"\",\"\",E59>BO59,$BP$6,E59>BN59,$BO$6,E59>BM59,$BN$6,E59>BL59,$BM$6,E59>BK59,$BL$6,E59>BJ59,$BK$6,E59>BI59,$BJ$6,E59>BH59,$BI$6,E59>BG59,$BH$6,E59>BF59,$BG$6,E59>BE59,$BF$6,E59>BD59,$BE$6,E59>BC59,$BD$6,E59>=0,$BC$6)","v":""},{"$f":"IF('2. Assisted & Restricted Units'!T59=\"\",\"\",'2. Assisted & Restricted Units'!T59)","v":""},{"$f":"IF('2. Assisted & Restricted Units'!I59=\"\",\"\",'2. Assisted & Restricted Units'!I59)","v":""},{"$f":"IF('2. Assisted & Restricted Units'!AP59=\"\",\"\",'2. Assisted & Restricted Units'!AP59)","v":0},{"$f":"IF('2. Assisted & Restricted Units'!AT59=\"\",\"\",'2. Assisted & Restricted Units'!AT59)","v":""},0,{"$f":"IF('2. Assisted & Restricted Units'!AV59=\"\",\"\",'2. Assisted & Restricted Units'!AV59)","v":""},{"$f":"IF('2. Assisted & Restricted Units'!L59=\"\",\"\",'2. Assisted & Restricted Units'!L59)","v":""},{"$f":"IF('2. Assisted & Restricted Units'!M59=\"\",\"\",'2. Assisted & Restricted Units'!M59)","v":""},{"$f":"IF('2. Assisted & Restricted Units'!O59=\"\",\"\",'2. Assisted & Restricted Units'!O59)","v":""},{"$f":"IF('2. Assisted & Restricted Units'!P59=\"\",\"\",'2. Assisted & Restricted Units'!P59)","v":""},{"$f":"IF('2. Assisted & Restricted Units'!Q59=\"\",\"\",'2. Assisted & Restricted Units'!Q59)","v":""},{"$f":"IF('2. Assisted & Restricted Units'!R59=\"\",\"\",'2. Assisted & Restricted Units'!R59)","v":""},{"$f":"IF(A59=\"\",\"\",'1. Checklist & Certification'!$K$1)","v":""},{"$f":"IF(A59=\"\",\"\",'1. Checklist & Certification'!$C$62)","v":""},{"$f":"IF(A59=\"\",\"\",'1. Checklist & Certification'!$K$62)","v":""},{"$f":"IF(A59=\"\",\"\",'1. Checklist & Certification'!$C$6)","v":""},{"$f":"IF(A59=\"\",\"\",'1. Checklist & Certification'!$G$4)","v":""},{"$f":"IF(A59=\"\",\"\",'1. Checklist & Certification'!$C$7)","v":""},{"$f":"IF(A59=\"\",\"\",'1. Checklist & Certification'!$C$8)","v":""},{"$f":"IF(A59=\"\",\"\",'1. Checklist & Certification'!$F$7)","v":""},{"$f":"IF(A59=\"\",\"\",'1. Checklist & Certification'!$F$8)","v":""},{"$f":"IF(A59=\"\",\"\",'1. Checklist & Certification'!$B$9)","v":""},{"$f":"IF(A59=\"\",\"\",'1. Checklist & Certification'!$F$9)","v":""},{"$f":"IF(A59=\"\",\"\",'1. Checklist & Certification'!$C$10)","v":""},{"$f":"IF(A59=\"\",\"\",'1. Checklist & Certification'!$C$11)","v":""},{"$f":"IF(A59=\"\",\"\",'1. Checklist & Certification'!$C$12)","v":""},{"$f":"IF(A59=\"\",\"\",'1. Checklist & Certification'!$B$14)","v":""},{"$f":"IF(A59=\"\",\"\",'1. Checklist & Certification'!$E$14)","v":""},{"$f":"IF(B59=\"\",\"\",'1. Checklist & Certification'!$G$14)","v":""},{"$f":"IF(A59=\"\",\"\",'MHP Family Income & Rent Limits'!$B$3)","v":""},{"$f":"IF(A59=\"\",\"\",'MHP Family Income & Rent Limits'!$J$3)","v":""},{"$f":"IF(A59=\"\",\"\",'MHP Family Income & Rent Limits'!$E$4)","v":""},{"$f":"IF(A59=\"\",\"\",'MHP Family Income & Rent Limits'!$C$7)","v":""},{"$f":"IF(A59=\"\",\"\",'MHP Family Income & Rent Limits'!$F$8)","v":""},{"$f":"IF(A59=\"\",\"\",'1. Checklist & Certification'!$G$4)","v":""},{"$f":"IF(A59=\"\",\"\",'1. Checklist & Certification'!$K$39)","v":""},{"$f":"IF(A59=\"\",\"\",'1. Checklist & Certification'!$K$43)","v":""},{"$f":"IF(A59=\"\",\"\",'1. Checklist & Certification'!$K$45)","v":""},{"$f":"IF(A59=\"\",\"\",'1. Checklist & Certification'!$K$49)","v":""},{"$f":"IF(A59=\"\",\"\",'1. Checklist & Certification'!$E$66)","v":""},{"$f":"IF(A59=\"\",\"\",'1. Checklist & Certification'!$E$67)","v":""},{"$f":"IF(A59=\"\",\"\",'1. Checklist & Certification'!$E$68)","v":""},{"$f":"IF(A59=\"\",\"\",'1. Checklist & Certification'!$G$66)","v":""},{"$f":"IF(A59=\"\",\"\",'1. Checklist & Certification'!$H$66)","v":""},{"$f":"IF(A59=\"\",\"\",'1. Checklist & Certification'!$I$66)","v":""},{"$f":"IF(A59=\"\",\"\",'1. Checklist & Certification'!$I$67)","v":""},{"$f":"IF(A59=\"\",\"\",'1. Checklist & Certification'!$I$68)","v":""},null,{"$f":"IF(C59=\"\",\"\",HLOOKUP(C59,'MHP Family Income & Rent Limits'!$E$12:$L$26,2,FALSE))","v":""},{"$f":"IF(C59=\"\",\"\",HLOOKUP(C59,'MHP Family Income & Rent Limits'!$E$12:$L$26,3,FALSE))","v":""},{"$f":"IF(C59=\"\",\"\",HLOOKUP(C59,'MHP Family Income & Rent Limits'!$E$12:$L$26,4,FALSE))","v":""},{"$f":"IF(C59=\"\",\"\",HLOOKUP(C59,'MHP Family Income & Rent Limits'!$E$12:$L$26,5,FALSE))","v":""},{"$f":"IF(C59=\"\",\"\",HLOOKUP(C59,'MHP Family Income & Rent Limits'!$E$12:$L$26,6,FALSE))","v":""},{"$f":"IF(C59=\"\",\"\",HLOOKUP(C59,'MHP Family Income & Rent Limits'!$E$12:$L$26,7,FALSE))","v":""},{"$f":"IF(C59=\"\",\"\",HLOOKUP(C59,'MHP Family Income & Rent Limits'!$E$12:$L$26,8,FALSE))","v":""},{"$f":"IF(C59=\"\",\"\",HLOOKUP(C59,'MHP Family Income & Rent Limits'!$E$12:$L$26,9,FALSE))","v":""},{"$f":"IF(C59=\"\",\"\",HLOOKUP(C59,'MHP Family Income & Rent Limits'!$E$12:$L$26,10,FALSE))","v":""},{"$f":"IF(C59=\"\",\"\",HLOOKUP(C59,'MHP Family Income & Rent Limits'!$E$12:$L$26,11,FALSE))","v":""},{"$f":"IF(C59=\"\",\"\",HLOOKUP(C59,'MHP Family Income & Rent Limits'!$E$12:$L$26,12,FALSE))","v":""},{"$f":"IF(C59=\"\",\"\",HLOOKUP(C59,'MHP Family Income & Rent Limits'!$E$12:$L$26,13,FALSE))","v":""},{"$f":"IF(C59=\"\",\"\",HLOOKUP(C59,'MHP Family Income & Rent Limits'!$E$12:$L$26,14,FALSE))","v":""},{"$f":"IF(C59=\"\",\"\",HLOOKUP(C59,'MHP Family Income & Rent Limits'!$E$12:$L$26,15,FALSE))","v":""}]
[{"$f":"IF('2. Assisted & Restricted Units'!A60=\"\",\"\",'2. Assisted & Restricted Units'!A60)","v":""},{"$f":"IF('2. Assisted & Restricted Units'!B60=\"\",\"\",'2. Assisted & Restricted Units'!B60)","v":""},{"$f":"IF('2. Assisted & Restricted Units'!D60=\"\",\"\",'2. Assisted & Restricted Units'!D60)","v":""},{"$f":"IF('2. Assisted & Restricted Units'!E60=\"\",\"\",'2. Assisted & Restricted Units'!E60)","v":""},{"$f":"IF('2. Assisted & Restricted Units'!H60=\"\",\"\",'2. Assisted & Restricted Units'!H60)","v":""},{"$f":"_xlfn.IFS(E60=\"\",\"\",E60>BO60,$BP$6,E60>BN60,$BO$6,E60>BM60,$BN$6,E60>BL60,$BM$6,E60>BK60,$BL$6,E60>BJ60,$BK$6,E60>BI60,$BJ$6,E60>BH60,$BI$6,E60>BG60,$BH$6,E60>BF60,$BG$6,E60>BE60,$BF$6,E60>BD60,$BE$6,E60>BC60,$BD$6,E60>=0,$BC$6)","v":""},{"$f":"IF('2. Assisted & Restricted Units'!T60=\"\",\"\",'2. Assisted & Restricted Units'!T60)","v":""},{"$f":"IF('2. Assisted & Restricted Units'!I60=\"\",\"\",'2. Assisted & Restricted Units'!I60)","v":""},{"$f":"IF('2. Assisted & Restricted Units'!AP60=\"\",\"\",'2. Assisted & Restricted Units'!AP60)","v":0},{"$f":"IF('2. Assisted & Restricted Units'!AT60=\"\",\"\",'2. Assisted & Restricted Units'!AT60)","v":""},0,{"$f":"IF('2. Assisted & Restricted Units'!AV60=\"\",\"\",'2. Assisted & Restricted Units'!AV60)","v":""},{"$f":"IF('2. Assisted & Restricted Units'!L60=\"\",\"\",'2. Assisted & Restricted Units'!L60)","v":""},{"$f":"IF('2. Assisted & Restricted Units'!M60=\"\",\"\",'2. Assisted & Restricted Units'!M60)","v":""},{"$f":"IF('2. Assisted & Restricted Units'!O60=\"\",\"\",'2. Assisted & Restricted Units'!O60)","v":""},{"$f":"IF('2. Assisted & Restricted Units'!P60=\"\",\"\",'2. Assisted & Restricted Units'!P60)","v":""},{"$f":"IF('2. Assisted & Restricted Units'!Q60=\"\",\"\",'2. Assisted & Restricted Units'!Q60)","v":""},{"$f":"IF('2. Assisted & Restricted Units'!R60=\"\",\"\",'2. Assisted & Restricted Units'!R60)","v":""},{"$f":"IF(A60=\"\",\"\",'1. Checklist & Certification'!$K$1)","v":""},{"$f":"IF(A60=\"\",\"\",'1. Checklist & Certification'!$C$62)","v":""},{"$f":"IF(A60=\"\",\"\",'1. Checklist & Certification'!$K$62)","v":""},{"$f":"IF(A60=\"\",\"\",'1. Checklist & Certification'!$C$6)","v":""},{"$f":"IF(A60=\"\",\"\",'1. Checklist & Certification'!$G$4)","v":""},{"$f":"IF(A60=\"\",\"\",'1. Checklist & Certification'!$C$7)","v":""},{"$f":"IF(A60=\"\",\"\",'1. Checklist & Certification'!$C$8)","v":""},{"$f":"IF(A60=\"\",\"\",'1. Checklist & Certification'!$F$7)","v":""},{"$f":"IF(A60=\"\",\"\",'1. Checklist & Certification'!$F$8)","v":""},{"$f":"IF(A60=\"\",\"\",'1. Checklist & Certification'!$B$9)","v":""},{"$f":"IF(A60=\"\",\"\",'1. Checklist & Certification'!$F$9)","v":""},{"$f":"IF(A60=\"\",\"\",'1. Checklist & Certification'!$C$10)","v":""},{"$f":"IF(A60=\"\",\"\",'1. Checklist & Certification'!$C$11)","v":""},{"$f":"IF(A60=\"\",\"\",'1. Checklist & Certification'!$C$12)","v":""},{"$f":"IF(A60=\"\",\"\",'1. Checklist & Certification'!$B$14)","v":""},{"$f":"IF(A60=\"\",\"\",'1. Checklist & Certification'!$E$14)","v":""},{"$f":"IF(B60=\"\",\"\",'1. Checklist & Certification'!$G$14)","v":""},{"$f":"IF(A60=\"\",\"\",'MHP Family Income & Rent Limits'!$B$3)","v":""},{"$f":"IF(A60=\"\",\"\",'MHP Family Income & Rent Limits'!$J$3)","v":""},{"$f":"IF(A60=\"\",\"\",'MHP Family Income & Rent Limits'!$E$4)","v":""},{"$f":"IF(A60=\"\",\"\",'MHP Family Income & Rent Limits'!$C$7)","v":""},{"$f":"IF(A60=\"\",\"\",'MHP Family Income & Rent Limits'!$F$8)","v":""},{"$f":"IF(A60=\"\",\"\",'1. Checklist & Certification'!$G$4)","v":""},{"$f":"IF(A60=\"\",\"\",'1. Checklist & Certification'!$K$39)","v":""},{"$f":"IF(A60=\"\",\"\",'1. Checklist & Certification'!$K$43)","v":""},{"$f":"IF(A60=\"\",\"\",'1. Checklist & Certification'!$K$45)","v":""},{"$f":"IF(A60=\"\",\"\",'1. Checklist & Certification'!$K$49)","v":""},{"$f":"IF(A60=\"\",\"\",'1. Checklist & Certification'!$E$66)","v":""},{"$f":"IF(A60=\"\",\"\",'1. Checklist & Certification'!$E$67)","v":""},{"$f":"IF(A60=\"\",\"\",'1. Checklist & Certification'!$E$68)","v":""},{"$f":"IF(A60=\"\",\"\",'1. Checklist & Certification'!$G$66)","v":""},{"$f":"IF(A60=\"\",\"\",'1. Checklist & Certification'!$H$66)","v":""},{"$f":"IF(A60=\"\",\"\",'1. Checklist & Certification'!$I$66)","v":""},{"$f":"IF(A60=\"\",\"\",'1. Checklist & Certification'!$I$67)","v":""},{"$f":"IF(A60=\"\",\"\",'1. Checklist & Certification'!$I$68)","v":""},null,{"$f":"IF(C60=\"\",\"\",HLOOKUP(C60,'MHP Family Income & Rent Limits'!$E$12:$L$26,2,FALSE))","v":""},{"$f":"IF(C60=\"\",\"\",HLOOKUP(C60,'MHP Family Income & Rent Limits'!$E$12:$L$26,3,FALSE))","v":""},{"$f":"IF(C60=\"\",\"\",HLOOKUP(C60,'MHP Family Income & Rent Limits'!$E$12:$L$26,4,FALSE))","v":""},{"$f":"IF(C60=\"\",\"\",HLOOKUP(C60,'MHP Family Income & Rent Limits'!$E$12:$L$26,5,FALSE))","v":""},{"$f":"IF(C60=\"\",\"\",HLOOKUP(C60,'MHP Family Income & Rent Limits'!$E$12:$L$26,6,FALSE))","v":""},{"$f":"IF(C60=\"\",\"\",HLOOKUP(C60,'MHP Family Income & Rent Limits'!$E$12:$L$26,7,FALSE))","v":""},{"$f":"IF(C60=\"\",\"\",HLOOKUP(C60,'MHP Family Income & Rent Limits'!$E$12:$L$26,8,FALSE))","v":""},{"$f":"IF(C60=\"\",\"\",HLOOKUP(C60,'MHP Family Income & Rent Limits'!$E$12:$L$26,9,FALSE))","v":""},{"$f":"IF(C60=\"\",\"\",HLOOKUP(C60,'MHP Family Income & Rent Limits'!$E$12:$L$26,10,FALSE))","v":""},{"$f":"IF(C60=\"\",\"\",HLOOKUP(C60,'MHP Family Income & Rent Limits'!$E$12:$L$26,11,FALSE))","v":""},{"$f":"IF(C60=\"\",\"\",HLOOKUP(C60,'MHP Family Income & Rent Limits'!$E$12:$L$26,12,FALSE))","v":""},{"$f":"IF(C60=\"\",\"\",HLOOKUP(C60,'MHP Family Income & Rent Limits'!$E$12:$L$26,13,FALSE))","v":""},{"$f":"IF(C60=\"\",\"\",HLOOKUP(C60,'MHP Family Income & Rent Limits'!$E$12:$L$26,14,FALSE))","v":""},{"$f":"IF(C60=\"\",\"\",HLOOKUP(C60,'MHP Family Income & Rent Limits'!$E$12:$L$26,15,FALSE))","v":""}]
[{"$f":"IF('2. Assisted & Restricted Units'!A61=\"\",\"\",'2. Assisted & Restricted Units'!A61)","v":""},{"$f":"IF('2. Assisted & Restricted Units'!B61=\"\",\"\",'2. Assisted & Restricted Units'!B61)","v":""},{"$f":"IF('2. Assisted & Restricted Units'!D61=\"\",\"\",'2. Assisted & Restricted Units'!D61)","v":""},{"$f":"IF('2. Assisted & Restricted Units'!E61=\"\",\"\",'2. Assisted & Restricted Units'!E61)","v":""},{"$f":"IF('2. Assisted & Restricted Units'!H61=\"\",\"\",'2. Assisted & Restricted Units'!H61)","v":""},{"$f":"_xlfn.IFS(E61=\"\",\"\",E61>BO61,$BP$6,E61>BN61,$BO$6,E61>BM61,$BN$6,E61>BL61,$BM$6,E61>BK61,$BL$6,E61>BJ61,$BK$6,E61>BI61,$BJ$6,E61>BH61,$BI$6,E61>BG61,$BH$6,E61>BF61,$BG$6,E61>BE61,$BF$6,E61>BD61,$BE$6,E61>BC61,$BD$6,E61>=0,$BC$6)","v":""},{"$f":"IF('2. Assisted & Restricted Units'!T61=\"\",\"\",'2. Assisted & Restricted Units'!T61)","v":""},{"$f":"IF('2. Assisted & Restricted Units'!I61=\"\",\"\",'2. Assisted & Restricted Units'!I61)","v":""},{"$f":"IF('2. Assisted & Restricted Units'!AP61=\"\",\"\",'2. Assisted & Restricted Units'!AP61)","v":0},{"$f":"IF('2. Assisted & Restricted Units'!AT61=\"\",\"\",'2. Assisted & Restricted Units'!AT61)","v":""},0,{"$f":"IF('2. Assisted & Restricted Units'!AV61=\"\",\"\",'2. Assisted & Restricted Units'!AV61)","v":""},{"$f":"IF('2. Assisted & Restricted Units'!L61=\"\",\"\",'2. Assisted & Restricted Units'!L61)","v":""},{"$f":"IF('2. Assisted & Restricted Units'!M61=\"\",\"\",'2. Assisted & Restricted Units'!M61)","v":""},{"$f":"IF('2. Assisted & Restricted Units'!O61=\"\",\"\",'2. Assisted & Restricted Units'!O61)","v":""},{"$f":"IF('2. Assisted & Restricted Units'!P61=\"\",\"\",'2. Assisted & Restricted Units'!P61)","v":""},{"$f":"IF('2. Assisted & Restricted Units'!Q61=\"\",\"\",'2. Assisted & Restricted Units'!Q61)","v":""},{"$f":"IF('2. Assisted & Restricted Units'!R61=\"\",\"\",'2. Assisted & Restricted Units'!R61)","v":""},{"$f":"IF(A61=\"\",\"\",'1. Checklist & Certification'!$K$1)","v":""},{"$f":"IF(A61=\"\",\"\",'1. Checklist & Certification'!$C$62)","v":""},{"$f":"IF(A61=\"\",\"\",'1. Checklist & Certification'!$K$62)","v":""},{"$f":"IF(A61=\"\",\"\",'1. Checklist & Certification'!$C$6)","v":""},{"$f":"IF(A61=\"\",\"\",'1. Checklist & Certification'!$G$4)","v":""},{"$f":"IF(A61=\"\",\"\",'1. Checklist & Certification'!$C$7)","v":""},{"$f":"IF(A61=\"\",\"\",'1. Checklist & Certification'!$C$8)","v":""},{"$f":"IF(A61=\"\",\"\",'1. Checklist & Certification'!$F$7)","v":""},{"$f":"IF(A61=\"\",\"\",'1. Checklist & Certification'!$F$8)","v":""},{"$f":"IF(A61=\"\",\"\",'1. Checklist & Certification'!$B$9)","v":""},{"$f":"IF(A61=\"\",\"\",'1. Checklist & Certification'!$F$9)","v":""},{"$f":"IF(A61=\"\",\"\",'1. Checklist & Certification'!$C$10)","v":""},{"$f":"IF(A61=\"\",\"\",'1. Checklist & Certification'!$C$11)","v":""},{"$f":"IF(A61=\"\",\"\",'1. Checklist & Certification'!$C$12)","v":""},{"$f":"IF(A61=\"\",\"\",'1. Checklist & Certification'!$B$14)","v":""},{"$f":"IF(A61=\"\",\"\",'1. Checklist & Certification'!$E$14)","v":""},{"$f":"IF(B61=\"\",\"\",'1. Checklist & Certification'!$G$14)","v":""},{"$f":"IF(A61=\"\",\"\",'MHP Family Income & Rent Limits'!$B$3)","v":""},{"$f":"IF(A61=\"\",\"\",'MHP Family Income & Rent Limits'!$J$3)","v":""},{"$f":"IF(A61=\"\",\"\",'MHP Family Income & Rent Limits'!$E$4)","v":""},{"$f":"IF(A61=\"\",\"\",'MHP Family Income & Rent Limits'!$C$7)","v":""},{"$f":"IF(A61=\"\",\"\",'MHP Family Income & Rent Limits'!$F$8)","v":""},{"$f":"IF(A61=\"\",\"\",'1. Checklist & Certification'!$G$4)","v":""},{"$f":"IF(A61=\"\",\"\",'1. Checklist & Certification'!$K$39)","v":""},{"$f":"IF(A61=\"\",\"\",'1. Checklist & Certification'!$K$43)","v":""},{"$f":"IF(A61=\"\",\"\",'1. Checklist & Certification'!$K$45)","v":""},{"$f":"IF(A61=\"\",\"\",'1. Checklist & Certification'!$K$49)","v":""},{"$f":"IF(A61=\"\",\"\",'1. Checklist & Certification'!$E$66)","v":""},{"$f":"IF(A61=\"\",\"\",'1. Checklist & Certification'!$E$67)","v":""},{"$f":"IF(A61=\"\",\"\",'1. Checklist & Certification'!$E$68)","v":""},{"$f":"IF(A61=\"\",\"\",'1. Checklist & Certification'!$G$66)","v":""},{"$f":"IF(A61=\"\",\"\",'1. Checklist & Certification'!$H$66)","v":""},{"$f":"IF(A61=\"\",\"\",'1. Checklist & Certification'!$I$66)","v":""},{"$f":"IF(A61=\"\",\"\",'1. Checklist & Certification'!$I$67)","v":""},{"$f":"IF(A61=\"\",\"\",'1. Checklist & Certification'!$I$68)","v":""},null,{"$f":"IF(C61=\"\",\"\",HLOOKUP(C61,'MHP Family Income & Rent Limits'!$E$12:$L$26,2,FALSE))","v":""},{"$f":"IF(C61=\"\",\"\",HLOOKUP(C61,'MHP Family Income & Rent Limits'!$E$12:$L$26,3,FALSE))","v":""},{"$f":"IF(C61=\"\",\"\",HLOOKUP(C61,'MHP Family Income & Rent Limits'!$E$12:$L$26,4,FALSE))","v":""},{"$f":"IF(C61=\"\",\"\",HLOOKUP(C61,'MHP Family Income & Rent Limits'!$E$12:$L$26,5,FALSE))","v":""},{"$f":"IF(C61=\"\",\"\",HLOOKUP(C61,'MHP Family Income & Rent Limits'!$E$12:$L$26,6,FALSE))","v":""},{"$f":"IF(C61=\"\",\"\",HLOOKUP(C61,'MHP Family Income & Rent Limits'!$E$12:$L$26,7,FALSE))","v":""},{"$f":"IF(C61=\"\",\"\",HLOOKUP(C61,'MHP Family Income & Rent Limits'!$E$12:$L$26,8,FALSE))","v":""},{"$f":"IF(C61=\"\",\"\",HLOOKUP(C61,'MHP Family Income & Rent Limits'!$E$12:$L$26,9,FALSE))","v":""},{"$f":"IF(C61=\"\",\"\",HLOOKUP(C61,'MHP Family Income & Rent Limits'!$E$12:$L$26,10,FALSE))","v":""},{"$f":"IF(C61=\"\",\"\",HLOOKUP(C61,'MHP Family Income & Rent Limits'!$E$12:$L$26,11,FALSE))","v":""},{"$f":"IF(C61=\"\",\"\",HLOOKUP(C61,'MHP Family Income & Rent Limits'!$E$12:$L$26,12,FALSE))","v":""},{"$f":"IF(C61=\"\",\"\",HLOOKUP(C61,'MHP Family Income & Rent Limits'!$E$12:$L$26,13,FALSE))","v":""},{"$f":"IF(C61=\"\",\"\",HLOOKUP(C61,'MHP Family Income & Rent Limits'!$E$12:$L$26,14,FALSE))","v":""},{"$f":"IF(C61=\"\",\"\",HLOOKUP(C61,'MHP Family Income & Rent Limits'!$E$12:$L$26,15,FALSE))","v":""}]
[{"$f":"IF('2. Assisted & Restricted Units'!A62=\"\",\"\",'2. Assisted & Restricted Units'!A62)","v":""},{"$f":"IF('2. Assisted & Restricted Units'!B62=\"\",\"\",'2. Assisted & Restricted Units'!B62)","v":""},{"$f":"IF('2. Assisted & Restricted Units'!D62=\"\",\"\",'2. Assisted & Restricted Units'!D62)","v":""},{"$f":"IF('2. Assisted & Restricted Units'!E62=\"\",\"\",'2. Assisted & Restricted Units'!E62)","v":""},{"$f":"IF('2. Assisted & Restricted Units'!H62=\"\",\"\",'2. Assisted & Restricted Units'!H62)","v":""},{"$f":"_xlfn.IFS(E62=\"\",\"\",E62>BO62,$BP$6,E62>BN62,$BO$6,E62>BM62,$BN$6,E62>BL62,$BM$6,E62>BK62,$BL$6,E62>BJ62,$BK$6,E62>BI62,$BJ$6,E62>BH62,$BI$6,E62>BG62,$BH$6,E62>BF62,$BG$6,E62>BE62,$BF$6,E62>BD62,$BE$6,E62>BC62,$BD$6,E62>=0,$BC$6)","v":""},{"$f":"IF('2. Assisted & Restricted Units'!T62=\"\",\"\",'2. Assisted & Restricted Units'!T62)","v":""},{"$f":"IF('2. Assisted & Restricted Units'!I62=\"\",\"\",'2. Assisted & Restricted Units'!I62)","v":""},{"$f":"IF('2. Assisted & Restricted Units'!AP62=\"\",\"\",'2. Assisted & Restricted Units'!AP62)","v":0},{"$f":"IF('2. Assisted & Restricted Units'!AT62=\"\",\"\",'2. Assisted & Restricted Units'!AT62)","v":""},0,{"$f":"IF('2. Assisted & Restricted Units'!AV62=\"\",\"\",'2. Assisted & Restricted Units'!AV62)","v":""},{"$f":"IF('2. Assisted & Restricted Units'!L62=\"\",\"\",'2. Assisted & Restricted Units'!L62)","v":""},{"$f":"IF('2. Assisted & Restricted Units'!M62=\"\",\"\",'2. Assisted & Restricted Units'!M62)","v":""},{"$f":"IF('2. Assisted & Restricted Units'!O62=\"\",\"\",'2. Assisted & Restricted Units'!O62)","v":""},{"$f":"IF('2. Assisted & Restricted Units'!P62=\"\",\"\",'2. Assisted & Restricted Units'!P62)","v":""},{"$f":"IF('2. Assisted & Restricted Units'!Q62=\"\",\"\",'2. Assisted & Restricted Units'!Q62)","v":""},{"$f":"IF('2. Assisted & Restricted Units'!R62=\"\",\"\",'2. Assisted & Restricted Units'!R62)","v":""},{"$f":"IF(A62=\"\",\"\",'1. Checklist & Certification'!$K$1)","v":""},{"$f":"IF(A62=\"\",\"\",'1. Checklist & Certification'!$C$62)","v":""},{"$f":"IF(A62=\"\",\"\",'1. Checklist & Certification'!$K$62)","v":""},{"$f":"IF(A62=\"\",\"\",'1. Checklist & Certification'!$C$6)","v":""},{"$f":"IF(A62=\"\",\"\",'1. Checklist & Certification'!$G$4)","v":""},{"$f":"IF(A62=\"\",\"\",'1. Checklist & Certification'!$C$7)","v":""},{"$f":"IF(A62=\"\",\"\",'1. Checklist & Certification'!$C$8)","v":""},{"$f":"IF(A62=\"\",\"\",'1. Checklist & Certification'!$F$7)","v":""},{"$f":"IF(A62=\"\",\"\",'1. Checklist & Certification'!$F$8)","v":""},{"$f":"IF(A62=\"\",\"\",'1. Checklist & Certification'!$B$9)","v":""},{"$f":"IF(A62=\"\",\"\",'1. Checklist & Certification'!$F$9)","v":""},{"$f":"IF(A62=\"\",\"\",'1. Checklist & Certification'!$C$10)","v":""},{"$f":"IF(A62=\"\",\"\",'1. Checklist & Certification'!$C$11)","v":""},{"$f":"IF(A62=\"\",\"\",'1. Checklist & Certification'!$C$12)","v":""},{"$f":"IF(A62=\"\",\"\",'1. Checklist & Certification'!$B$14)","v":""},{"$f":"IF(A62=\"\",\"\",'1. Checklist & Certification'!$E$14)","v":""},{"$f":"IF(B62=\"\",\"\",'1. Checklist & Certification'!$G$14)","v":""},{"$f":"IF(A62=\"\",\"\",'MHP Family Income & Rent Limits'!$B$3)","v":""},{"$f":"IF(A62=\"\",\"\",'MHP Family Income & Rent Limits'!$J$3)","v":""},{"$f":"IF(A62=\"\",\"\",'MHP Family Income & Rent Limits'!$E$4)","v":""},{"$f":"IF(A62=\"\",\"\",'MHP Family Income & Rent Limits'!$C$7)","v":""},{"$f":"IF(A62=\"\",\"\",'MHP Family Income & Rent Limits'!$F$8)","v":""},{"$f":"IF(A62=\"\",\"\",'1. Checklist & Certification'!$G$4)","v":""},{"$f":"IF(A62=\"\",\"\",'1. Checklist & Certification'!$K$39)","v":""},{"$f":"IF(A62=\"\",\"\",'1. Checklist & Certification'!$K$43)","v":""},{"$f":"IF(A62=\"\",\"\",'1. Checklist & Certification'!$K$45)","v":""},{"$f":"IF(A62=\"\",\"\",'1. Checklist & Certification'!$K$49)","v":""},{"$f":"IF(A62=\"\",\"\",'1. Checklist & Certification'!$E$66)","v":""},{"$f":"IF(A62=\"\",\"\",'1. Checklist & Certification'!$E$67)","v":""},{"$f":"IF(A62=\"\",\"\",'1. Checklist & Certification'!$E$68)","v":""},{"$f":"IF(A62=\"\",\"\",'1. Checklist & Certification'!$G$66)","v":""},{"$f":"IF(A62=\"\",\"\",'1. Checklist & Certification'!$H$66)","v":""},{"$f":"IF(A62=\"\",\"\",'1. Checklist & Certification'!$I$66)","v":""},{"$f":"IF(A62=\"\",\"\",'1. Checklist & Certification'!$I$67)","v":""},{"$f":"IF(A62=\"\",\"\",'1. Checklist & Certification'!$I$68)","v":""},null,{"$f":"IF(C62=\"\",\"\",HLOOKUP(C62,'MHP Family Income & Rent Limits'!$E$12:$L$26,2,FALSE))","v":""},{"$f":"IF(C62=\"\",\"\",HLOOKUP(C62,'MHP Family Income & Rent Limits'!$E$12:$L$26,3,FALSE))","v":""},{"$f":"IF(C62=\"\",\"\",HLOOKUP(C62,'MHP Family Income & Rent Limits'!$E$12:$L$26,4,FALSE))","v":""},{"$f":"IF(C62=\"\",\"\",HLOOKUP(C62,'MHP Family Income & Rent Limits'!$E$12:$L$26,5,FALSE))","v":""},{"$f":"IF(C62=\"\",\"\",HLOOKUP(C62,'MHP Family Income & Rent Limits'!$E$12:$L$26,6,FALSE))","v":""},{"$f":"IF(C62=\"\",\"\",HLOOKUP(C62,'MHP Family Income & Rent Limits'!$E$12:$L$26,7,FALSE))","v":""},{"$f":"IF(C62=\"\",\"\",HLOOKUP(C62,'MHP Family Income & Rent Limits'!$E$12:$L$26,8,FALSE))","v":""},{"$f":"IF(C62=\"\",\"\",HLOOKUP(C62,'MHP Family Income & Rent Limits'!$E$12:$L$26,9,FALSE))","v":""},{"$f":"IF(C62=\"\",\"\",HLOOKUP(C62,'MHP Family Income & Rent Limits'!$E$12:$L$26,10,FALSE))","v":""},{"$f":"IF(C62=\"\",\"\",HLOOKUP(C62,'MHP Family Income & Rent Limits'!$E$12:$L$26,11,FALSE))","v":""},{"$f":"IF(C62=\"\",\"\",HLOOKUP(C62,'MHP Family Income & Rent Limits'!$E$12:$L$26,12,FALSE))","v":""},{"$f":"IF(C62=\"\",\"\",HLOOKUP(C62,'MHP Family Income & Rent Limits'!$E$12:$L$26,13,FALSE))","v":""},{"$f":"IF(C62=\"\",\"\",HLOOKUP(C62,'MHP Family Income & Rent Limits'!$E$12:$L$26,14,FALSE))","v":""},{"$f":"IF(C62=\"\",\"\",HLOOKUP(C62,'MHP Family Income & Rent Limits'!$E$12:$L$26,15,FALSE))","v":""}]
[{"$f":"IF('2. Assisted & Restricted Units'!A63=\"\",\"\",'2. Assisted & Restricted Units'!A63)","v":""},{"$f":"IF('2. Assisted & Restricted Units'!B63=\"\",\"\",'2. Assisted & Restricted Units'!B63)","v":""},{"$f":"IF('2. Assisted & Restricted Units'!D63=\"\",\"\",'2. Assisted & Restricted Units'!D63)","v":""},{"$f":"IF('2. Assisted & Restricted Units'!E63=\"\",\"\",'2. Assisted & Restricted Units'!E63)","v":""},{"$f":"IF('2. Assisted & Restricted Units'!H63=\"\",\"\",'2. Assisted & Restricted Units'!H63)","v":""},{"$f":"_xlfn.IFS(E63=\"\",\"\",E63>BO63,$BP$6,E63>BN63,$BO$6,E63>BM63,$BN$6,E63>BL63,$BM$6,E63>BK63,$BL$6,E63>BJ63,$BK$6,E63>BI63,$BJ$6,E63>BH63,$BI$6,E63>BG63,$BH$6,E63>BF63,$BG$6,E63>BE63,$BF$6,E63>BD63,$BE$6,E63>BC63,$BD$6,E63>=0,$BC$6)","v":""},{"$f":"IF('2. Assisted & Restricted Units'!T63=\"\",\"\",'2. Assisted & Restricted Units'!T63)","v":""},{"$f":"IF('2. Assisted & Restricted Units'!I63=\"\",\"\",'2. Assisted & Restricted Units'!I63)","v":""},{"$f":"IF('2. Assisted & Restricted Units'!AP63=\"\",\"\",'2. Assisted & Restricted Units'!AP63)","v":0},{"$f":"IF('2. Assisted & Restricted Units'!AT63=\"\",\"\",'2. Assisted & Restricted Units'!AT63)","v":""},0,{"$f":"IF('2. Assisted & Restricted Units'!AV63=\"\",\"\",'2. Assisted & Restricted Units'!AV63)","v":""},{"$f":"IF('2. Assisted & Restricted Units'!L63=\"\",\"\",'2. Assisted & Restricted Units'!L63)","v":""},{"$f":"IF('2. Assisted & Restricted Units'!M63=\"\",\"\",'2. Assisted & Restricted Units'!M63)","v":""},{"$f":"IF('2. Assisted & Restricted Units'!O63=\"\",\"\",'2. Assisted & Restricted Units'!O63)","v":""},{"$f":"IF('2. Assisted & Restricted Units'!P63=\"\",\"\",'2. Assisted & Restricted Units'!P63)","v":""},{"$f":"IF('2. Assisted & Restricted Units'!Q63=\"\",\"\",'2. Assisted & Restricted Units'!Q63)","v":""},{"$f":"IF('2. Assisted & Restricted Units'!R63=\"\",\"\",'2. Assisted & Restricted Units'!R63)","v":""},{"$f":"IF(A63=\"\",\"\",'1. Checklist & Certification'!$K$1)","v":""},{"$f":"IF(A63=\"\",\"\",'1. Checklist & Certification'!$C$62)","v":""},{"$f":"IF(A63=\"\",\"\",'1. Checklist & Certification'!$K$62)","v":""},{"$f":"IF(A63=\"\",\"\",'1. Checklist & Certification'!$C$6)","v":""},{"$f":"IF(A63=\"\",\"\",'1. Checklist & Certification'!$G$4)","v":""},{"$f":"IF(A63=\"\",\"\",'1. Checklist & Certification'!$C$7)","v":""},{"$f":"IF(A63=\"\",\"\",'1. Checklist & Certification'!$C$8)","v":""},{"$f":"IF(A63=\"\",\"\",'1. Checklist & Certification'!$F$7)","v":""},{"$f":"IF(A63=\"\",\"\",'1. Checklist & Certification'!$F$8)","v":""},{"$f":"IF(A63=\"\",\"\",'1. Checklist & Certification'!$B$9)","v":""},{"$f":"IF(A63=\"\",\"\",'1. Checklist & Certification'!$F$9)","v":""},{"$f":"IF(A63=\"\",\"\",'1. Checklist & Certification'!$C$10)","v":""},{"$f":"IF(A63=\"\",\"\",'1. Checklist & Certification'!$C$11)","v":""},{"$f":"IF(A63=\"\",\"\",'1. Checklist & Certification'!$C$12)","v":""},{"$f":"IF(A63=\"\",\"\",'1. Checklist & Certification'!$B$14)","v":""},{"$f":"IF(A63=\"\",\"\",'1. Checklist & Certification'!$E$14)","v":""},{"$f":"IF(B63=\"\",\"\",'1. Checklist & Certification'!$G$14)","v":""},{"$f":"IF(A63=\"\",\"\",'MHP Family Income & Rent Limits'!$B$3)","v":""},{"$f":"IF(A63=\"\",\"\",'MHP Family Income & Rent Limits'!$J$3)","v":""},{"$f":"IF(A63=\"\",\"\",'MHP Family Income & Rent Limits'!$E$4)","v":""},{"$f":"IF(A63=\"\",\"\",'MHP Family Income & Rent Limits'!$C$7)","v":""},{"$f":"IF(A63=\"\",\"\",'MHP Family Income & Rent Limits'!$F$8)","v":""},{"$f":"IF(A63=\"\",\"\",'1. Checklist & Certification'!$G$4)","v":""},{"$f":"IF(A63=\"\",\"\",'1. Checklist & Certification'!$K$39)","v":""},{"$f":"IF(A63=\"\",\"\",'1. Checklist & Certification'!$K$43)","v":""},{"$f":"IF(A63=\"\",\"\",'1. Checklist & Certification'!$K$45)","v":""},{"$f":"IF(A63=\"\",\"\",'1. Checklist & Certification'!$K$49)","v":""},{"$f":"IF(A63=\"\",\"\",'1. Checklist & Certification'!$E$66)","v":""},{"$f":"IF(A63=\"\",\"\",'1. Checklist & Certification'!$E$67)","v":""},{"$f":"IF(A63=\"\",\"\",'1. Checklist & Certification'!$E$68)","v":""},{"$f":"IF(A63=\"\",\"\",'1. Checklist & Certification'!$G$66)","v":""},{"$f":"IF(A63=\"\",\"\",'1. Checklist & Certification'!$H$66)","v":""},{"$f":"IF(A63=\"\",\"\",'1. Checklist & Certification'!$I$66)","v":""},{"$f":"IF(A63=\"\",\"\",'1. Checklist & Certification'!$I$67)","v":""},{"$f":"IF(A63=\"\",\"\",'1. Checklist & Certification'!$I$68)","v":""},null,{"$f":"IF(C63=\"\",\"\",HLOOKUP(C63,'MHP Family Income & Rent Limits'!$E$12:$L$26,2,FALSE))","v":""},{"$f":"IF(C63=\"\",\"\",HLOOKUP(C63,'MHP Family Income & Rent Limits'!$E$12:$L$26,3,FALSE))","v":""},{"$f":"IF(C63=\"\",\"\",HLOOKUP(C63,'MHP Family Income & Rent Limits'!$E$12:$L$26,4,FALSE))","v":""},{"$f":"IF(C63=\"\",\"\",HLOOKUP(C63,'MHP Family Income & Rent Limits'!$E$12:$L$26,5,FALSE))","v":""},{"$f":"IF(C63=\"\",\"\",HLOOKUP(C63,'MHP Family Income & Rent Limits'!$E$12:$L$26,6,FALSE))","v":""},{"$f":"IF(C63=\"\",\"\",HLOOKUP(C63,'MHP Family Income & Rent Limits'!$E$12:$L$26,7,FALSE))","v":""},{"$f":"IF(C63=\"\",\"\",HLOOKUP(C63,'MHP Family Income & Rent Limits'!$E$12:$L$26,8,FALSE))","v":""},{"$f":"IF(C63=\"\",\"\",HLOOKUP(C63,'MHP Family Income & Rent Limits'!$E$12:$L$26,9,FALSE))","v":""},{"$f":"IF(C63=\"\",\"\",HLOOKUP(C63,'MHP Family Income & Rent Limits'!$E$12:$L$26,10,FALSE))","v":""},{"$f":"IF(C63=\"\",\"\",HLOOKUP(C63,'MHP Family Income & Rent Limits'!$E$12:$L$26,11,FALSE))","v":""},{"$f":"IF(C63=\"\",\"\",HLOOKUP(C63,'MHP Family Income & Rent Limits'!$E$12:$L$26,12,FALSE))","v":""},{"$f":"IF(C63=\"\",\"\",HLOOKUP(C63,'MHP Family Income & Rent Limits'!$E$12:$L$26,13,FALSE))","v":""},{"$f":"IF(C63=\"\",\"\",HLOOKUP(C63,'MHP Family Income & Rent Limits'!$E$12:$L$26,14,FALSE))","v":""},{"$f":"IF(C63=\"\",\"\",HLOOKUP(C63,'MHP Family Income & Rent Limits'!$E$12:$L$26,15,FALSE))","v":""}]
[{"$f":"IF('2. Assisted & Restricted Units'!A64=\"\",\"\",'2. Assisted & Restricted Units'!A64)","v":""},{"$f":"IF('2. Assisted & Restricted Units'!B64=\"\",\"\",'2. Assisted & Restricted Units'!B64)","v":""},{"$f":"IF('2. Assisted & Restricted Units'!D64=\"\",\"\",'2. Assisted & Restricted Units'!D64)","v":""},{"$f":"IF('2. Assisted & Restricted Units'!E64=\"\",\"\",'2. Assisted & Restricted Units'!E64)","v":""},{"$f":"IF('2. Assisted & Restricted Units'!H64=\"\",\"\",'2. Assisted & Restricted Units'!H64)","v":""},{"$f":"_xlfn.IFS(E64=\"\",\"\",E64>BO64,$BP$6,E64>BN64,$BO$6,E64>BM64,$BN$6,E64>BL64,$BM$6,E64>BK64,$BL$6,E64>BJ64,$BK$6,E64>BI64,$BJ$6,E64>BH64,$BI$6,E64>BG64,$BH$6,E64>BF64,$BG$6,E64>BE64,$BF$6,E64>BD64,$BE$6,E64>BC64,$BD$6,E64>=0,$BC$6)","v":""},{"$f":"IF('2. Assisted & Restricted Units'!T64=\"\",\"\",'2. Assisted & Restricted Units'!T64)","v":""},{"$f":"IF('2. Assisted & Restricted Units'!I64=\"\",\"\",'2. Assisted & Restricted Units'!I64)","v":""},{"$f":"IF('2. Assisted & Restricted Units'!AP64=\"\",\"\",'2. Assisted & Restricted Units'!AP64)","v":0},{"$f":"IF('2. Assisted & Restricted Units'!AT64=\"\",\"\",'2. Assisted & Restricted Units'!AT64)","v":""},0,{"$f":"IF('2. Assisted & Restricted Units'!AV64=\"\",\"\",'2. Assisted & Restricted Units'!AV64)","v":""},{"$f":"IF('2. Assisted & Restricted Units'!L64=\"\",\"\",'2. Assisted & Restricted Units'!L64)","v":""},{"$f":"IF('2. Assisted & Restricted Units'!M64=\"\",\"\",'2. Assisted & Restricted Units'!M64)","v":""},{"$f":"IF('2. Assisted & Restricted Units'!O64=\"\",\"\",'2. Assisted & Restricted Units'!O64)","v":""},{"$f":"IF('2. Assisted & Restricted Units'!P64=\"\",\"\",'2. Assisted & Restricted Units'!P64)","v":""},{"$f":"IF('2. Assisted & Restricted Units'!Q64=\"\",\"\",'2. Assisted & Restricted Units'!Q64)","v":""},{"$f":"IF('2. Assisted & Restricted Units'!R64=\"\",\"\",'2. Assisted & Restricted Units'!R64)","v":""},{"$f":"IF(A64=\"\",\"\",'1. Checklist & Certification'!$K$1)","v":""},{"$f":"IF(A64=\"\",\"\",'1. Checklist & Certification'!$C$62)","v":""},{"$f":"IF(A64=\"\",\"\",'1. Checklist & Certification'!$K$62)","v":""},{"$f":"IF(A64=\"\",\"\",'1. Checklist & Certification'!$C$6)","v":""},{"$f":"IF(A64=\"\",\"\",'1. Checklist & Certification'!$G$4)","v":""},{"$f":"IF(A64=\"\",\"\",'1. Checklist & Certification'!$C$7)","v":""},{"$f":"IF(A64=\"\",\"\",'1. Checklist & Certification'!$C$8)","v":""},{"$f":"IF(A64=\"\",\"\",'1. Checklist & Certification'!$F$7)","v":""},{"$f":"IF(A64=\"\",\"\",'1. Checklist & Certification'!$F$8)","v":""},{"$f":"IF(A64=\"\",\"\",'1. Checklist & Certification'!$B$9)","v":""},{"$f":"IF(A64=\"\",\"\",'1. Checklist & Certification'!$F$9)","v":""},{"$f":"IF(A64=\"\",\"\",'1. Checklist & Certification'!$C$10)","v":""},{"$f":"IF(A64=\"\",\"\",'1. Checklist & Certification'!$C$11)","v":""},{"$f":"IF(A64=\"\",\"\",'1. Checklist & Certification'!$C$12)","v":""},{"$f":"IF(A64=\"\",\"\",'1. Checklist & Certification'!$B$14)","v":""},{"$f":"IF(A64=\"\",\"\",'1. Checklist & Certification'!$E$14)","v":""},{"$f":"IF(B64=\"\",\"\",'1. Checklist & Certification'!$G$14)","v":""},{"$f":"IF(A64=\"\",\"\",'MHP Family Income & Rent Limits'!$B$3)","v":""},{"$f":"IF(A64=\"\",\"\",'MHP Family Income & Rent Limits'!$J$3)","v":""},{"$f":"IF(A64=\"\",\"\",'MHP Family Income & Rent Limits'!$E$4)","v":""},{"$f":"IF(A64=\"\",\"\",'MHP Family Income & Rent Limits'!$C$7)","v":""},{"$f":"IF(A64=\"\",\"\",'MHP Family Income & Rent Limits'!$F$8)","v":""},{"$f":"IF(A64=\"\",\"\",'1. Checklist & Certification'!$G$4)","v":""},{"$f":"IF(A64=\"\",\"\",'1. Checklist & Certification'!$K$39)","v":""},{"$f":"IF(A64=\"\",\"\",'1. Checklist & Certification'!$K$43)","v":""},{"$f":"IF(A64=\"\",\"\",'1. Checklist & Certification'!$K$45)","v":""},{"$f":"IF(A64=\"\",\"\",'1. Checklist & Certification'!$K$49)","v":""},{"$f":"IF(A64=\"\",\"\",'1. Checklist & Certification'!$E$66)","v":""},{"$f":"IF(A64=\"\",\"\",'1. Checklist & Certification'!$E$67)","v":""},{"$f":"IF(A64=\"\",\"\",'1. Checklist & Certification'!$E$68)","v":""},{"$f":"IF(A64=\"\",\"\",'1. Checklist & Certification'!$G$66)","v":""},{"$f":"IF(A64=\"\",\"\",'1. Checklist & Certification'!$H$66)","v":""},{"$f":"IF(A64=\"\",\"\",'1. Checklist & Certification'!$I$66)","v":""},{"$f":"IF(A64=\"\",\"\",'1. Checklist & Certification'!$I$67)","v":""},{"$f":"IF(A64=\"\",\"\",'1. Checklist & Certification'!$I$68)","v":""},null,{"$f":"IF(C64=\"\",\"\",HLOOKUP(C64,'MHP Family Income & Rent Limits'!$E$12:$L$26,2,FALSE))","v":""},{"$f":"IF(C64=\"\",\"\",HLOOKUP(C64,'MHP Family Income & Rent Limits'!$E$12:$L$26,3,FALSE))","v":""},{"$f":"IF(C64=\"\",\"\",HLOOKUP(C64,'MHP Family Income & Rent Limits'!$E$12:$L$26,4,FALSE))","v":""},{"$f":"IF(C64=\"\",\"\",HLOOKUP(C64,'MHP Family Income & Rent Limits'!$E$12:$L$26,5,FALSE))","v":""},{"$f":"IF(C64=\"\",\"\",HLOOKUP(C64,'MHP Family Income & Rent Limits'!$E$12:$L$26,6,FALSE))","v":""},{"$f":"IF(C64=\"\",\"\",HLOOKUP(C64,'MHP Family Income & Rent Limits'!$E$12:$L$26,7,FALSE))","v":""},{"$f":"IF(C64=\"\",\"\",HLOOKUP(C64,'MHP Family Income & Rent Limits'!$E$12:$L$26,8,FALSE))","v":""},{"$f":"IF(C64=\"\",\"\",HLOOKUP(C64,'MHP Family Income & Rent Limits'!$E$12:$L$26,9,FALSE))","v":""},{"$f":"IF(C64=\"\",\"\",HLOOKUP(C64,'MHP Family Income & Rent Limits'!$E$12:$L$26,10,FALSE))","v":""},{"$f":"IF(C64=\"\",\"\",HLOOKUP(C64,'MHP Family Income & Rent Limits'!$E$12:$L$26,11,FALSE))","v":""},{"$f":"IF(C64=\"\",\"\",HLOOKUP(C64,'MHP Family Income & Rent Limits'!$E$12:$L$26,12,FALSE))","v":""},{"$f":"IF(C64=\"\",\"\",HLOOKUP(C64,'MHP Family Income & Rent Limits'!$E$12:$L$26,13,FALSE))","v":""},{"$f":"IF(C64=\"\",\"\",HLOOKUP(C64,'MHP Family Income & Rent Limits'!$E$12:$L$26,14,FALSE))","v":""},{"$f":"IF(C64=\"\",\"\",HLOOKUP(C64,'MHP Family Income & Rent Limits'!$E$12:$L$26,15,FALSE))","v":""}]
[{"$f":"IF('2. Assisted & Restricted Units'!A65=\"\",\"\",'2. Assisted & Restricted Units'!A65)","v":""},{"$f":"IF('2. Assisted & Restricted Units'!B65=\"\",\"\",'2. Assisted & Restricted Units'!B65)","v":""},{"$f":"IF('2. Assisted & Restricted Units'!D65=\"\",\"\",'2. Assisted & Restricted Units'!D65)","v":""},{"$f":"IF('2. Assisted & Restricted Units'!E65=\"\",\"\",'2. Assisted & Restricted Units'!E65)","v":""},{"$f":"IF('2. Assisted & Restricted Units'!H65=\"\",\"\",'2. Assisted & Restricted Units'!H65)","v":""},{"$f":"_xlfn.IFS(E65=\"\",\"\",E65>BO65,$BP$6,E65>BN65,$BO$6,E65>BM65,$BN$6,E65>BL65,$BM$6,E65>BK65,$BL$6,E65>BJ65,$BK$6,E65>BI65,$BJ$6,E65>BH65,$BI$6,E65>BG65,$BH$6,E65>BF65,$BG$6,E65>BE65,$BF$6,E65>BD65,$BE$6,E65>BC65,$BD$6,E65>=0,$BC$6)","v":""},{"$f":"IF('2. Assisted & Restricted Units'!T65=\"\",\"\",'2. Assisted & Restricted Units'!T65)","v":""},{"$f":"IF('2. Assisted & Restricted Units'!I65=\"\",\"\",'2. Assisted & Restricted Units'!I65)","v":""},{"$f":"IF('2. Assisted & Restricted Units'!AP65=\"\",\"\",'2. Assisted & Restricted Units'!AP65)","v":0},{"$f":"IF('2. Assisted & Restricted Units'!AT65=\"\",\"\",'2. Assisted & Restricted Units'!AT65)","v":""},0,{"$f":"IF('2. Assisted & Restricted Units'!AV65=\"\",\"\",'2. Assisted & Restricted Units'!AV65)","v":""},{"$f":"IF('2. Assisted & Restricted Units'!L65=\"\",\"\",'2. Assisted & Restricted Units'!L65)","v":""},{"$f":"IF('2. Assisted & Restricted Units'!M65=\"\",\"\",'2. Assisted & Restricted Units'!M65)","v":""},{"$f":"IF('2. Assisted & Restricted Units'!O65=\"\",\"\",'2. Assisted & Restricted Units'!O65)","v":""},{"$f":"IF('2. Assisted & Restricted Units'!P65=\"\",\"\",'2. Assisted & Restricted Units'!P65)","v":""},{"$f":"IF('2. Assisted & Restricted Units'!Q65=\"\",\"\",'2. Assisted & Restricted Units'!Q65)","v":""},{"$f":"IF('2. Assisted & Restricted Units'!R65=\"\",\"\",'2. Assisted & Restricted Units'!R65)","v":""},{"$f":"IF(A65=\"\",\"\",'1. Checklist & Certification'!$K$1)","v":""},{"$f":"IF(A65=\"\",\"\",'1. Checklist & Certification'!$C$62)","v":""},{"$f":"IF(A65=\"\",\"\",'1. Checklist & Certification'!$K$62)","v":""},{"$f":"IF(A65=\"\",\"\",'1. Checklist & Certification'!$C$6)","v":""},{"$f":"IF(A65=\"\",\"\",'1. Checklist & Certification'!$G$4)","v":""},{"$f":"IF(A65=\"\",\"\",'1. Checklist & Certification'!$C$7)","v":""},{"$f":"IF(A65=\"\",\"\",'1. Checklist & Certification'!$C$8)","v":""},{"$f":"IF(A65=\"\",\"\",'1. Checklist & Certification'!$F$7)","v":""},{"$f":"IF(A65=\"\",\"\",'1. Checklist & Certification'!$F$8)","v":""},{"$f":"IF(A65=\"\",\"\",'1. Checklist & Certification'!$B$9)","v":""},{"$f":"IF(A65=\"\",\"\",'1. Checklist & Certification'!$F$9)","v":""},{"$f":"IF(A65=\"\",\"\",'1. Checklist & Certification'!$C$10)","v":""},{"$f":"IF(A65=\"\",\"\",'1. Checklist & Certification'!$C$11)","v":""},{"$f":"IF(A65=\"\",\"\",'1. Checklist & Certification'!$C$12)","v":""},{"$f":"IF(A65=\"\",\"\",'1. Checklist & Certification'!$B$14)","v":""},{"$f":"IF(A65=\"\",\"\",'1. Checklist & Certification'!$E$14)","v":""},{"$f":"IF(B65=\"\",\"\",'1. Checklist & Certification'!$G$14)","v":""},{"$f":"IF(A65=\"\",\"\",'MHP Family Income & Rent Limits'!$B$3)","v":""},{"$f":"IF(A65=\"\",\"\",'MHP Family Income & Rent Limits'!$J$3)","v":""},{"$f":"IF(A65=\"\",\"\",'MHP Family Income & Rent Limits'!$E$4)","v":""},{"$f":"IF(A65=\"\",\"\",'MHP Family Income & Rent Limits'!$C$7)","v":""},{"$f":"IF(A65=\"\",\"\",'MHP Family Income & Rent Limits'!$F$8)","v":""},{"$f":"IF(A65=\"\",\"\",'1. Checklist & Certification'!$G$4)","v":""},{"$f":"IF(A65=\"\",\"\",'1. Checklist & Certification'!$K$39)","v":""},{"$f":"IF(A65=\"\",\"\",'1. Checklist & Certification'!$K$43)","v":""},{"$f":"IF(A65=\"\",\"\",'1. Checklist & Certification'!$K$45)","v":""},{"$f":"IF(A65=\"\",\"\",'1. Checklist & Certification'!$K$49)","v":""},{"$f":"IF(A65=\"\",\"\",'1. Checklist & Certification'!$E$66)","v":""},{"$f":"IF(A65=\"\",\"\",'1. Checklist & Certification'!$E$67)","v":""},{"$f":"IF(A65=\"\",\"\",'1. Checklist & Certification'!$E$68)","v":""},{"$f":"IF(A65=\"\",\"\",'1. Checklist & Certification'!$G$66)","v":""},{"$f":"IF(A65=\"\",\"\",'1. Checklist & Certification'!$H$66)","v":""},{"$f":"IF(A65=\"\",\"\",'1. Checklist & Certification'!$I$66)","v":""},{"$f":"IF(A65=\"\",\"\",'1. Checklist & Certification'!$I$67)","v":""},{"$f":"IF(A65=\"\",\"\",'1. Checklist & Certification'!$I$68)","v":""},null,{"$f":"IF(C65=\"\",\"\",HLOOKUP(C65,'MHP Family Income & Rent Limits'!$E$12:$L$26,2,FALSE))","v":""},{"$f":"IF(C65=\"\",\"\",HLOOKUP(C65,'MHP Family Income & Rent Limits'!$E$12:$L$26,3,FALSE))","v":""},{"$f":"IF(C65=\"\",\"\",HLOOKUP(C65,'MHP Family Income & Rent Limits'!$E$12:$L$26,4,FALSE))","v":""},{"$f":"IF(C65=\"\",\"\",HLOOKUP(C65,'MHP Family Income & Rent Limits'!$E$12:$L$26,5,FALSE))","v":""},{"$f":"IF(C65=\"\",\"\",HLOOKUP(C65,'MHP Family Income & Rent Limits'!$E$12:$L$26,6,FALSE))","v":""},{"$f":"IF(C65=\"\",\"\",HLOOKUP(C65,'MHP Family Income & Rent Limits'!$E$12:$L$26,7,FALSE))","v":""},{"$f":"IF(C65=\"\",\"\",HLOOKUP(C65,'MHP Family Income & Rent Limits'!$E$12:$L$26,8,FALSE))","v":""},{"$f":"IF(C65=\"\",\"\",HLOOKUP(C65,'MHP Family Income & Rent Limits'!$E$12:$L$26,9,FALSE))","v":""},{"$f":"IF(C65=\"\",\"\",HLOOKUP(C65,'MHP Family Income & Rent Limits'!$E$12:$L$26,10,FALSE))","v":""},{"$f":"IF(C65=\"\",\"\",HLOOKUP(C65,'MHP Family Income & Rent Limits'!$E$12:$L$26,11,FALSE))","v":""},{"$f":"IF(C65=\"\",\"\",HLOOKUP(C65,'MHP Family Income & Rent Limits'!$E$12:$L$26,12,FALSE))","v":""},{"$f":"IF(C65=\"\",\"\",HLOOKUP(C65,'MHP Family Income & Rent Limits'!$E$12:$L$26,13,FALSE))","v":""},{"$f":"IF(C65=\"\",\"\",HLOOKUP(C65,'MHP Family Income & Rent Limits'!$E$12:$L$26,14,FALSE))","v":""},{"$f":"IF(C65=\"\",\"\",HLOOKUP(C65,'MHP Family Income & Rent Limits'!$E$12:$L$26,15,FALSE))","v":""}]
[{"$f":"IF('2. Assisted & Restricted Units'!A66=\"\",\"\",'2. Assisted & Restricted Units'!A66)","v":""},{"$f":"IF('2. Assisted & Restricted Units'!B66=\"\",\"\",'2. Assisted & Restricted Units'!B66)","v":""},{"$f":"IF('2. Assisted & Restricted Units'!D66=\"\",\"\",'2. Assisted & Restricted Units'!D66)","v":""},{"$f":"IF('2. Assisted & Restricted Units'!E66=\"\",\"\",'2. Assisted & Restricted Units'!E66)","v":""},{"$f":"IF('2. Assisted & Restricted Units'!H66=\"\",\"\",'2. Assisted & Restricted Units'!H66)","v":""},{"$f":"_xlfn.IFS(E66=\"\",\"\",E66>BO66,$BP$6,E66>BN66,$BO$6,E66>BM66,$BN$6,E66>BL66,$BM$6,E66>BK66,$BL$6,E66>BJ66,$BK$6,E66>BI66,$BJ$6,E66>BH66,$BI$6,E66>BG66,$BH$6,E66>BF66,$BG$6,E66>BE66,$BF$6,E66>BD66,$BE$6,E66>BC66,$BD$6,E66>=0,$BC$6)","v":""},{"$f":"IF('2. Assisted & Restricted Units'!T66=\"\",\"\",'2. Assisted & Restricted Units'!T66)","v":""},{"$f":"IF('2. Assisted & Restricted Units'!I66=\"\",\"\",'2. Assisted & Restricted Units'!I66)","v":""},{"$f":"IF('2. Assisted & Restricted Units'!AP66=\"\",\"\",'2. Assisted & Restricted Units'!AP66)","v":0},{"$f":"IF('2. Assisted & Restricted Units'!AT66=\"\",\"\",'2. Assisted & Restricted Units'!AT66)","v":""},0,{"$f":"IF('2. Assisted & Restricted Units'!AV66=\"\",\"\",'2. Assisted & Restricted Units'!AV66)","v":""},{"$f":"IF('2. Assisted & Restricted Units'!L66=\"\",\"\",'2. Assisted & Restricted Units'!L66)","v":""},{"$f":"IF('2. Assisted & Restricted Units'!M66=\"\",\"\",'2. Assisted & Restricted Units'!M66)","v":""},{"$f":"IF('2. Assisted & Restricted Units'!O66=\"\",\"\",'2. Assisted & Restricted Units'!O66)","v":""},{"$f":"IF('2. Assisted & Restricted Units'!P66=\"\",\"\",'2. Assisted & Restricted Units'!P66)","v":""},{"$f":"IF('2. Assisted & Restricted Units'!Q66=\"\",\"\",'2. Assisted & Restricted Units'!Q66)","v":""},{"$f":"IF('2. Assisted & Restricted Units'!R66=\"\",\"\",'2. Assisted & Restricted Units'!R66)","v":""},{"$f":"IF(A66=\"\",\"\",'1. Checklist & Certification'!$K$1)","v":""},{"$f":"IF(A66=\"\",\"\",'1. Checklist & Certification'!$C$62)","v":""},{"$f":"IF(A66=\"\",\"\",'1. Checklist & Certification'!$K$62)","v":""},{"$f":"IF(A66=\"\",\"\",'1. Checklist & Certification'!$C$6)","v":""},{"$f":"IF(A66=\"\",\"\",'1. Checklist & Certification'!$G$4)","v":""},{"$f":"IF(A66=\"\",\"\",'1. Checklist & Certification'!$C$7)","v":""},{"$f":"IF(A66=\"\",\"\",'1. Checklist & Certification'!$C$8)","v":""},{"$f":"IF(A66=\"\",\"\",'1. Checklist & Certification'!$F$7)","v":""},{"$f":"IF(A66=\"\",\"\",'1. Checklist & Certification'!$F$8)","v":""},{"$f":"IF(A66=\"\",\"\",'1. Checklist & Certification'!$B$9)","v":""},{"$f":"IF(A66=\"\",\"\",'1. Checklist & Certification'!$F$9)","v":""},{"$f":"IF(A66=\"\",\"\",'1. Checklist & Certification'!$C$10)","v":""},{"$f":"IF(A66=\"\",\"\",'1. Checklist & Certification'!$C$11)","v":""},{"$f":"IF(A66=\"\",\"\",'1. Checklist & Certification'!$C$12)","v":""},{"$f":"IF(A66=\"\",\"\",'1. Checklist & Certification'!$B$14)","v":""},{"$f":"IF(A66=\"\",\"\",'1. Checklist & Certification'!$E$14)","v":""},{"$f":"IF(B66=\"\",\"\",'1. Checklist & Certification'!$G$14)","v":""},{"$f":"IF(A66=\"\",\"\",'MHP Family Income & Rent Limits'!$B$3)","v":""},{"$f":"IF(A66=\"\",\"\",'MHP Family Income & Rent Limits'!$J$3)","v":""},{"$f":"IF(A66=\"\",\"\",'MHP Family Income & Rent Limits'!$E$4)","v":""},{"$f":"IF(A66=\"\",\"\",'MHP Family Income & Rent Limits'!$C$7)","v":""},{"$f":"IF(A66=\"\",\"\",'MHP Family Income & Rent Limits'!$F$8)","v":""},{"$f":"IF(A66=\"\",\"\",'1. Checklist & Certification'!$G$4)","v":""},{"$f":"IF(A66=\"\",\"\",'1. Checklist & Certification'!$K$39)","v":""},{"$f":"IF(A66=\"\",\"\",'1. Checklist & Certification'!$K$43)","v":""},{"$f":"IF(A66=\"\",\"\",'1. Checklist & Certification'!$K$45)","v":""},{"$f":"IF(A66=\"\",\"\",'1. Checklist & Certification'!$K$49)","v":""},{"$f":"IF(A66=\"\",\"\",'1. Checklist & Certification'!$E$66)","v":""},{"$f":"IF(A66=\"\",\"\",'1. Checklist & Certification'!$E$67)","v":""},{"$f":"IF(A66=\"\",\"\",'1. Checklist & Certification'!$E$68)","v":""},{"$f":"IF(A66=\"\",\"\",'1. Checklist & Certification'!$G$66)","v":""},{"$f":"IF(A66=\"\",\"\",'1. Checklist & Certification'!$H$66)","v":""},{"$f":"IF(A66=\"\",\"\",'1. Checklist & Certification'!$I$66)","v":""},{"$f":"IF(A66=\"\",\"\",'1. Checklist & Certification'!$I$67)","v":""},{"$f":"IF(A66=\"\",\"\",'1. Checklist & Certification'!$I$68)","v":""},null,{"$f":"IF(C66=\"\",\"\",HLOOKUP(C66,'MHP Family Income & Rent Limits'!$E$12:$L$26,2,FALSE))","v":""},{"$f":"IF(C66=\"\",\"\",HLOOKUP(C66,'MHP Family Income & Rent Limits'!$E$12:$L$26,3,FALSE))","v":""},{"$f":"IF(C66=\"\",\"\",HLOOKUP(C66,'MHP Family Income & Rent Limits'!$E$12:$L$26,4,FALSE))","v":""},{"$f":"IF(C66=\"\",\"\",HLOOKUP(C66,'MHP Family Income & Rent Limits'!$E$12:$L$26,5,FALSE))","v":""},{"$f":"IF(C66=\"\",\"\",HLOOKUP(C66,'MHP Family Income & Rent Limits'!$E$12:$L$26,6,FALSE))","v":""},{"$f":"IF(C66=\"\",\"\",HLOOKUP(C66,'MHP Family Income & Rent Limits'!$E$12:$L$26,7,FALSE))","v":""},{"$f":"IF(C66=\"\",\"\",HLOOKUP(C66,'MHP Family Income & Rent Limits'!$E$12:$L$26,8,FALSE))","v":""},{"$f":"IF(C66=\"\",\"\",HLOOKUP(C66,'MHP Family Income & Rent Limits'!$E$12:$L$26,9,FALSE))","v":""},{"$f":"IF(C66=\"\",\"\",HLOOKUP(C66,'MHP Family Income & Rent Limits'!$E$12:$L$26,10,FALSE))","v":""},{"$f":"IF(C66=\"\",\"\",HLOOKUP(C66,'MHP Family Income & Rent Limits'!$E$12:$L$26,11,FALSE))","v":""},{"$f":"IF(C66=\"\",\"\",HLOOKUP(C66,'MHP Family Income & Rent Limits'!$E$12:$L$26,12,FALSE))","v":""},{"$f":"IF(C66=\"\",\"\",HLOOKUP(C66,'MHP Family Income & Rent Limits'!$E$12:$L$26,13,FALSE))","v":""},{"$f":"IF(C66=\"\",\"\",HLOOKUP(C66,'MHP Family Income & Rent Limits'!$E$12:$L$26,14,FALSE))","v":""},{"$f":"IF(C66=\"\",\"\",HLOOKUP(C66,'MHP Family Income & Rent Limits'!$E$12:$L$26,15,FALSE))","v":""}]
[{"$f":"IF('2. Assisted & Restricted Units'!A67=\"\",\"\",'2. Assisted & Restricted Units'!A67)","v":""},{"$f":"IF('2. Assisted & Restricted Units'!B67=\"\",\"\",'2. Assisted & Restricted Units'!B67)","v":""},{"$f":"IF('2. Assisted & Restricted Units'!D67=\"\",\"\",'2. Assisted & Restricted Units'!D67)","v":""},{"$f":"IF('2. Assisted & Restricted Units'!E67=\"\",\"\",'2. Assisted & Restricted Units'!E67)","v":""},{"$f":"IF('2. Assisted & Restricted Units'!H67=\"\",\"\",'2. Assisted & Restricted Units'!H67)","v":""},{"$f":"_xlfn.IFS(E67=\"\",\"\",E67>BO67,$BP$6,E67>BN67,$BO$6,E67>BM67,$BN$6,E67>BL67,$BM$6,E67>BK67,$BL$6,E67>BJ67,$BK$6,E67>BI67,$BJ$6,E67>BH67,$BI$6,E67>BG67,$BH$6,E67>BF67,$BG$6,E67>BE67,$BF$6,E67>BD67,$BE$6,E67>BC67,$BD$6,E67>=0,$BC$6)","v":""},{"$f":"IF('2. Assisted & Restricted Units'!T67=\"\",\"\",'2. Assisted & Restricted Units'!T67)","v":""},{"$f":"IF('2. Assisted & Restricted Units'!I67=\"\",\"\",'2. Assisted & Restricted Units'!I67)","v":""},{"$f":"IF('2. Assisted & Restricted Units'!AP67=\"\",\"\",'2. Assisted & Restricted Units'!AP67)","v":0},{"$f":"IF('2. Assisted & Restricted Units'!AT67=\"\",\"\",'2. Assisted & Restricted Units'!AT67)","v":""},0,{"$f":"IF('2. Assisted & Restricted Units'!AV67=\"\",\"\",'2. Assisted & Restricted Units'!AV67)","v":""},{"$f":"IF('2. Assisted & Restricted Units'!L67=\"\",\"\",'2. Assisted & Restricted Units'!L67)","v":""},{"$f":"IF('2. Assisted & Restricted Units'!M67=\"\",\"\",'2. Assisted & Restricted Units'!M67)","v":""},{"$f":"IF('2. Assisted & Restricted Units'!O67=\"\",\"\",'2. Assisted & Restricted Units'!O67)","v":""},{"$f":"IF('2. Assisted & Restricted Units'!P67=\"\",\"\",'2. Assisted & Restricted Units'!P67)","v":""},{"$f":"IF('2. Assisted & Restricted Units'!Q67=\"\",\"\",'2. Assisted & Restricted Units'!Q67)","v":""},{"$f":"IF('2. Assisted & Restricted Units'!R67=\"\",\"\",'2. Assisted & Restricted Units'!R67)","v":""},{"$f":"IF(A67=\"\",\"\",'1. Checklist & Certification'!$K$1)","v":""},{"$f":"IF(A67=\"\",\"\",'1. Checklist & Certification'!$C$62)","v":""},{"$f":"IF(A67=\"\",\"\",'1. Checklist & Certification'!$K$62)","v":""},{"$f":"IF(A67=\"\",\"\",'1. Checklist & Certification'!$C$6)","v":""},{"$f":"IF(A67=\"\",\"\",'1. Checklist & Certification'!$G$4)","v":""},{"$f":"IF(A67=\"\",\"\",'1. Checklist & Certification'!$C$7)","v":""},{"$f":"IF(A67=\"\",\"\",'1. Checklist & Certification'!$C$8)","v":""},{"$f":"IF(A67=\"\",\"\",'1. Checklist & Certification'!$F$7)","v":""},{"$f":"IF(A67=\"\",\"\",'1. Checklist & Certification'!$F$8)","v":""},{"$f":"IF(A67=\"\",\"\",'1. Checklist & Certification'!$B$9)","v":""},{"$f":"IF(A67=\"\",\"\",'1. Checklist & Certification'!$F$9)","v":""},{"$f":"IF(A67=\"\",\"\",'1. Checklist & Certification'!$C$10)","v":""},{"$f":"IF(A67=\"\",\"\",'1. Checklist & Certification'!$C$11)","v":""},{"$f":"IF(A67=\"\",\"\",'1. Checklist & Certification'!$C$12)","v":""},{"$f":"IF(A67=\"\",\"\",'1. Checklist & Certification'!$B$14)","v":""},{"$f":"IF(A67=\"\",\"\",'1. Checklist & Certification'!$E$14)","v":""},{"$f":"IF(B67=\"\",\"\",'1. Checklist & Certification'!$G$14)","v":""},{"$f":"IF(A67=\"\",\"\",'MHP Family Income & Rent Limits'!$B$3)","v":""},{"$f":"IF(A67=\"\",\"\",'MHP Family Income & Rent Limits'!$J$3)","v":""},{"$f":"IF(A67=\"\",\"\",'MHP Family Income & Rent Limits'!$E$4)","v":""},{"$f":"IF(A67=\"\",\"\",'MHP Family Income & Rent Limits'!$C$7)","v":""},{"$f":"IF(A67=\"\",\"\",'MHP Family Income & Rent Limits'!$F$8)","v":""},{"$f":"IF(A67=\"\",\"\",'1. Checklist & Certification'!$G$4)","v":""},{"$f":"IF(A67=\"\",\"\",'1. Checklist & Certification'!$K$39)","v":""},{"$f":"IF(A67=\"\",\"\",'1. Checklist & Certification'!$K$43)","v":""},{"$f":"IF(A67=\"\",\"\",'1. Checklist & Certification'!$K$45)","v":""},{"$f":"IF(A67=\"\",\"\",'1. Checklist & Certification'!$K$49)","v":""},{"$f":"IF(A67=\"\",\"\",'1. Checklist & Certification'!$E$66)","v":""},{"$f":"IF(A67=\"\",\"\",'1. Checklist & Certification'!$E$67)","v":""},{"$f":"IF(A67=\"\",\"\",'1. Checklist & Certification'!$E$68)","v":""},{"$f":"IF(A67=\"\",\"\",'1. Checklist & Certification'!$G$66)","v":""},{"$f":"IF(A67=\"\",\"\",'1. Checklist & Certification'!$H$66)","v":""},{"$f":"IF(A67=\"\",\"\",'1. Checklist & Certification'!$I$66)","v":""},{"$f":"IF(A67=\"\",\"\",'1. Checklist & Certification'!$I$67)","v":""},{"$f":"IF(A67=\"\",\"\",'1. Checklist & Certification'!$I$68)","v":""},null,{"$f":"IF(C67=\"\",\"\",HLOOKUP(C67,'MHP Family Income & Rent Limits'!$E$12:$L$26,2,FALSE))","v":""},{"$f":"IF(C67=\"\",\"\",HLOOKUP(C67,'MHP Family Income & Rent Limits'!$E$12:$L$26,3,FALSE))","v":""},{"$f":"IF(C67=\"\",\"\",HLOOKUP(C67,'MHP Family Income & Rent Limits'!$E$12:$L$26,4,FALSE))","v":""},{"$f":"IF(C67=\"\",\"\",HLOOKUP(C67,'MHP Family Income & Rent Limits'!$E$12:$L$26,5,FALSE))","v":""},{"$f":"IF(C67=\"\",\"\",HLOOKUP(C67,'MHP Family Income & Rent Limits'!$E$12:$L$26,6,FALSE))","v":""},{"$f":"IF(C67=\"\",\"\",HLOOKUP(C67,'MHP Family Income & Rent Limits'!$E$12:$L$26,7,FALSE))","v":""},{"$f":"IF(C67=\"\",\"\",HLOOKUP(C67,'MHP Family Income & Rent Limits'!$E$12:$L$26,8,FALSE))","v":""},{"$f":"IF(C67=\"\",\"\",HLOOKUP(C67,'MHP Family Income & Rent Limits'!$E$12:$L$26,9,FALSE))","v":""},{"$f":"IF(C67=\"\",\"\",HLOOKUP(C67,'MHP Family Income & Rent Limits'!$E$12:$L$26,10,FALSE))","v":""},{"$f":"IF(C67=\"\",\"\",HLOOKUP(C67,'MHP Family Income & Rent Limits'!$E$12:$L$26,11,FALSE))","v":""},{"$f":"IF(C67=\"\",\"\",HLOOKUP(C67,'MHP Family Income & Rent Limits'!$E$12:$L$26,12,FALSE))","v":""},{"$f":"IF(C67=\"\",\"\",HLOOKUP(C67,'MHP Family Income & Rent Limits'!$E$12:$L$26,13,FALSE))","v":""},{"$f":"IF(C67=\"\",\"\",HLOOKUP(C67,'MHP Family Income & Rent Limits'!$E$12:$L$26,14,FALSE))","v":""},{"$f":"IF(C67=\"\",\"\",HLOOKUP(C67,'MHP Family Income & Rent Limits'!$E$12:$L$26,15,FALSE))","v":""}]
[{"$f":"IF('2. Assisted & Restricted Units'!A68=\"\",\"\",'2. Assisted & Restricted Units'!A68)","v":""},{"$f":"IF('2. Assisted & Restricted Units'!B68=\"\",\"\",'2. Assisted & Restricted Units'!B68)","v":""},{"$f":"IF('2. Assisted & Restricted Units'!D68=\"\",\"\",'2. Assisted & Restricted Units'!D68)","v":""},{"$f":"IF('2. Assisted & Restricted Units'!E68=\"\",\"\",'2. Assisted & Restricted Units'!E68)","v":""},{"$f":"IF('2. Assisted & Restricted Units'!H68=\"\",\"\",'2. Assisted & Restricted Units'!H68)","v":""},{"$f":"_xlfn.IFS(E68=\"\",\"\",E68>BO68,$BP$6,E68>BN68,$BO$6,E68>BM68,$BN$6,E68>BL68,$BM$6,E68>BK68,$BL$6,E68>BJ68,$BK$6,E68>BI68,$BJ$6,E68>BH68,$BI$6,E68>BG68,$BH$6,E68>BF68,$BG$6,E68>BE68,$BF$6,E68>BD68,$BE$6,E68>BC68,$BD$6,E68>=0,$BC$6)","v":""},{"$f":"IF('2. Assisted & Restricted Units'!T68=\"\",\"\",'2. Assisted & Restricted Units'!T68)","v":""},{"$f":"IF('2. Assisted & Restricted Units'!I68=\"\",\"\",'2. Assisted & Restricted Units'!I68)","v":""},{"$f":"IF('2. Assisted & Restricted Units'!AP68=\"\",\"\",'2. Assisted & Restricted Units'!AP68)","v":0},{"$f":"IF('2. Assisted & Restricted Units'!AT68=\"\",\"\",'2. Assisted & Restricted Units'!AT68)","v":""},0,{"$f":"IF('2. Assisted & Restricted Units'!AV68=\"\",\"\",'2. Assisted & Restricted Units'!AV68)","v":""},{"$f":"IF('2. Assisted & Restricted Units'!L68=\"\",\"\",'2. Assisted & Restricted Units'!L68)","v":""},{"$f":"IF('2. Assisted & Restricted Units'!M68=\"\",\"\",'2. Assisted & Restricted Units'!M68)","v":""},{"$f":"IF('2. Assisted & Restricted Units'!O68=\"\",\"\",'2. Assisted & Restricted Units'!O68)","v":""},{"$f":"IF('2. Assisted & Restricted Units'!P68=\"\",\"\",'2. Assisted & Restricted Units'!P68)","v":""},{"$f":"IF('2. Assisted & Restricted Units'!Q68=\"\",\"\",'2. Assisted & Restricted Units'!Q68)","v":""},{"$f":"IF('2. Assisted & Restricted Units'!R68=\"\",\"\",'2. Assisted & Restricted Units'!R68)","v":""},{"$f":"IF(A68=\"\",\"\",'1. Checklist & Certification'!$K$1)","v":""},{"$f":"IF(A68=\"\",\"\",'1. Checklist & Certification'!$C$62)","v":""},{"$f":"IF(A68=\"\",\"\",'1. Checklist & Certification'!$K$62)","v":""},{"$f":"IF(A68=\"\",\"\",'1. Checklist & Certification'!$C$6)","v":""},{"$f":"IF(A68=\"\",\"\",'1. Checklist & Certification'!$G$4)","v":""},{"$f":"IF(A68=\"\",\"\",'1. Checklist & Certification'!$C$7)","v":""},{"$f":"IF(A68=\"\",\"\",'1. Checklist & Certification'!$C$8)","v":""},{"$f":"IF(A68=\"\",\"\",'1. Checklist & Certification'!$F$7)","v":""},{"$f":"IF(A68=\"\",\"\",'1. Checklist & Certification'!$F$8)","v":""},{"$f":"IF(A68=\"\",\"\",'1. Checklist & Certification'!$B$9)","v":""},{"$f":"IF(A68=\"\",\"\",'1. Checklist & Certification'!$F$9)","v":""},{"$f":"IF(A68=\"\",\"\",'1. Checklist & Certification'!$C$10)","v":""},{"$f":"IF(A68=\"\",\"\",'1. Checklist & Certification'!$C$11)","v":""},{"$f":"IF(A68=\"\",\"\",'1. Checklist & Certification'!$C$12)","v":""},{"$f":"IF(A68=\"\",\"\",'1. Checklist & Certification'!$B$14)","v":""},{"$f":"IF(A68=\"\",\"\",'1. Checklist & Certification'!$E$14)","v":""},{"$f":"IF(B68=\"\",\"\",'1. Checklist & Certification'!$G$14)","v":""},{"$f":"IF(A68=\"\",\"\",'MHP Family Income & Rent Limits'!$B$3)","v":""},{"$f":"IF(A68=\"\",\"\",'MHP Family Income & Rent Limits'!$J$3)","v":""},{"$f":"IF(A68=\"\",\"\",'MHP Family Income & Rent Limits'!$E$4)","v":""},{"$f":"IF(A68=\"\",\"\",'MHP Family Income & Rent Limits'!$C$7)","v":""},{"$f":"IF(A68=\"\",\"\",'MHP Family Income & Rent Limits'!$F$8)","v":""},{"$f":"IF(A68=\"\",\"\",'1. Checklist & Certification'!$G$4)","v":""},{"$f":"IF(A68=\"\",\"\",'1. Checklist & Certification'!$K$39)","v":""},{"$f":"IF(A68=\"\",\"\",'1. Checklist & Certification'!$K$43)","v":""},{"$f":"IF(A68=\"\",\"\",'1. Checklist & Certification'!$K$45)","v":""},{"$f":"IF(A68=\"\",\"\",'1. Checklist & Certification'!$K$49)","v":""},{"$f":"IF(A68=\"\",\"\",'1. Checklist & Certification'!$E$66)","v":""},{"$f":"IF(A68=\"\",\"\",'1. Checklist & Certification'!$E$67)","v":""},{"$f":"IF(A68=\"\",\"\",'1. Checklist & Certification'!$E$68)","v":""},{"$f":"IF(A68=\"\",\"\",'1. Checklist & Certification'!$G$66)","v":""},{"$f":"IF(A68=\"\",\"\",'1. Checklist & Certification'!$H$66)","v":""},{"$f":"IF(A68=\"\",\"\",'1. Checklist & Certification'!$I$66)","v":""},{"$f":"IF(A68=\"\",\"\",'1. Checklist & Certification'!$I$67)","v":""},{"$f":"IF(A68=\"\",\"\",'1. Checklist & Certification'!$I$68)","v":""},null,{"$f":"IF(C68=\"\",\"\",HLOOKUP(C68,'MHP Family Income & Rent Limits'!$E$12:$L$26,2,FALSE))","v":""},{"$f":"IF(C68=\"\",\"\",HLOOKUP(C68,'MHP Family Income & Rent Limits'!$E$12:$L$26,3,FALSE))","v":""},{"$f":"IF(C68=\"\",\"\",HLOOKUP(C68,'MHP Family Income & Rent Limits'!$E$12:$L$26,4,FALSE))","v":""},{"$f":"IF(C68=\"\",\"\",HLOOKUP(C68,'MHP Family Income & Rent Limits'!$E$12:$L$26,5,FALSE))","v":""},{"$f":"IF(C68=\"\",\"\",HLOOKUP(C68,'MHP Family Income & Rent Limits'!$E$12:$L$26,6,FALSE))","v":""},{"$f":"IF(C68=\"\",\"\",HLOOKUP(C68,'MHP Family Income & Rent Limits'!$E$12:$L$26,7,FALSE))","v":""},{"$f":"IF(C68=\"\",\"\",HLOOKUP(C68,'MHP Family Income & Rent Limits'!$E$12:$L$26,8,FALSE))","v":""},{"$f":"IF(C68=\"\",\"\",HLOOKUP(C68,'MHP Family Income & Rent Limits'!$E$12:$L$26,9,FALSE))","v":""},{"$f":"IF(C68=\"\",\"\",HLOOKUP(C68,'MHP Family Income & Rent Limits'!$E$12:$L$26,10,FALSE))","v":""},{"$f":"IF(C68=\"\",\"\",HLOOKUP(C68,'MHP Family Income & Rent Limits'!$E$12:$L$26,11,FALSE))","v":""},{"$f":"IF(C68=\"\",\"\",HLOOKUP(C68,'MHP Family Income & Rent Limits'!$E$12:$L$26,12,FALSE))","v":""},{"$f":"IF(C68=\"\",\"\",HLOOKUP(C68,'MHP Family Income & Rent Limits'!$E$12:$L$26,13,FALSE))","v":""},{"$f":"IF(C68=\"\",\"\",HLOOKUP(C68,'MHP Family Income & Rent Limits'!$E$12:$L$26,14,FALSE))","v":""},{"$f":"IF(C68=\"\",\"\",HLOOKUP(C68,'MHP Family Income & Rent Limits'!$E$12:$L$26,15,FALSE))","v":""}]
[{"$f":"IF('2. Assisted & Restricted Units'!A69=\"\",\"\",'2. Assisted & Restricted Units'!A69)","v":""},{"$f":"IF('2. Assisted & Restricted Units'!B69=\"\",\"\",'2. Assisted & Restricted Units'!B69)","v":""},{"$f":"IF('2. Assisted & Restricted Units'!D69=\"\",\"\",'2. Assisted & Restricted Units'!D69)","v":""},{"$f":"IF('2. Assisted & Restricted Units'!E69=\"\",\"\",'2. Assisted & Restricted Units'!E69)","v":""},{"$f":"IF('2. Assisted & Restricted Units'!H69=\"\",\"\",'2. Assisted & Restricted Units'!H69)","v":""},{"$f":"_xlfn.IFS(E69=\"\",\"\",E69>BO69,$BP$6,E69>BN69,$BO$6,E69>BM69,$BN$6,E69>BL69,$BM$6,E69>BK69,$BL$6,E69>BJ69,$BK$6,E69>BI69,$BJ$6,E69>BH69,$BI$6,E69>BG69,$BH$6,E69>BF69,$BG$6,E69>BE69,$BF$6,E69>BD69,$BE$6,E69>BC69,$BD$6,E69>=0,$BC$6)","v":""},{"$f":"IF('2. Assisted & Restricted Units'!T69=\"\",\"\",'2. Assisted & Restricted Units'!T69)","v":""},{"$f":"IF('2. Assisted & Restricted Units'!I69=\"\",\"\",'2. Assisted & Restricted Units'!I69)","v":""},{"$f":"IF('2. Assisted & Restricted Units'!AP69=\"\",\"\",'2. Assisted & Restricted Units'!AP69)","v":0},{"$f":"IF('2. Assisted & Restricted Units'!AT69=\"\",\"\",'2. Assisted & Restricted Units'!AT69)","v":""},0,{"$f":"IF('2. Assisted & Restricted Units'!AV69=\"\",\"\",'2. Assisted & Restricted Units'!AV69)","v":""},{"$f":"IF('2. Assisted & Restricted Units'!L69=\"\",\"\",'2. Assisted & Restricted Units'!L69)","v":""},{"$f":"IF('2. Assisted & Restricted Units'!M69=\"\",\"\",'2. Assisted & Restricted Units'!M69)","v":""},{"$f":"IF('2. Assisted & Restricted Units'!O69=\"\",\"\",'2. Assisted & Restricted Units'!O69)","v":""},{"$f":"IF('2. Assisted & Restricted Units'!P69=\"\",\"\",'2. Assisted & Restricted Units'!P69)","v":""},{"$f":"IF('2. Assisted & Restricted Units'!Q69=\"\",\"\",'2. Assisted & Restricted Units'!Q69)","v":""},{"$f":"IF('2. Assisted & Restricted Units'!R69=\"\",\"\",'2. Assisted & Restricted Units'!R69)","v":""},{"$f":"IF(A69=\"\",\"\",'1. Checklist & Certification'!$K$1)","v":""},{"$f":"IF(A69=\"\",\"\",'1. Checklist & Certification'!$C$62)","v":""},{"$f":"IF(A69=\"\",\"\",'1. Checklist & Certification'!$K$62)","v":""},{"$f":"IF(A69=\"\",\"\",'1. Checklist & Certification'!$C$6)","v":""},{"$f":"IF(A69=\"\",\"\",'1. Checklist & Certification'!$G$4)","v":""},{"$f":"IF(A69=\"\",\"\",'1. Checklist & Certification'!$C$7)","v":""},{"$f":"IF(A69=\"\",\"\",'1. Checklist & Certification'!$C$8)","v":""},{"$f":"IF(A69=\"\",\"\",'1. Checklist & Certification'!$F$7)","v":""},{"$f":"IF(A69=\"\",\"\",'1. Checklist & Certification'!$F$8)","v":""},{"$f":"IF(A69=\"\",\"\",'1. Checklist & Certification'!$B$9)","v":""},{"$f":"IF(A69=\"\",\"\",'1. Checklist & Certification'!$F$9)","v":""},{"$f":"IF(A69=\"\",\"\",'1. Checklist & Certification'!$C$10)","v":""},{"$f":"IF(A69=\"\",\"\",'1. Checklist & Certification'!$C$11)","v":""},{"$f":"IF(A69=\"\",\"\",'1. Checklist & Certification'!$C$12)","v":""},{"$f":"IF(A69=\"\",\"\",'1. Checklist & Certification'!$B$14)","v":""},{"$f":"IF(A69=\"\",\"\",'1. Checklist & Certification'!$E$14)","v":""},{"$f":"IF(B69=\"\",\"\",'1. Checklist & Certification'!$G$14)","v":""},{"$f":"IF(A69=\"\",\"\",'MHP Family Income & Rent Limits'!$B$3)","v":""},{"$f":"IF(A69=\"\",\"\",'MHP Family Income & Rent Limits'!$J$3)","v":""},{"$f":"IF(A69=\"\",\"\",'MHP Family Income & Rent Limits'!$E$4)","v":""},{"$f":"IF(A69=\"\",\"\",'MHP Family Income & Rent Limits'!$C$7)","v":""},{"$f":"IF(A69=\"\",\"\",'MHP Family Income & Rent Limits'!$F$8)","v":""},{"$f":"IF(A69=\"\",\"\",'1. Checklist & Certification'!$G$4)","v":""},{"$f":"IF(A69=\"\",\"\",'1. Checklist & Certification'!$K$39)","v":""},{"$f":"IF(A69=\"\",\"\",'1. Checklist & Certification'!$K$43)","v":""},{"$f":"IF(A69=\"\",\"\",'1. Checklist & Certification'!$K$45)","v":""},{"$f":"IF(A69=\"\",\"\",'1. Checklist & Certification'!$K$49)","v":""},{"$f":"IF(A69=\"\",\"\",'1. Checklist & Certification'!$E$66)","v":""},{"$f":"IF(A69=\"\",\"\",'1. Checklist & Certification'!$E$67)","v":""},{"$f":"IF(A69=\"\",\"\",'1. Checklist & Certification'!$E$68)","v":""},{"$f":"IF(A69=\"\",\"\",'1. Checklist & Certification'!$G$66)","v":""},{"$f":"IF(A69=\"\",\"\",'1. Checklist & Certification'!$H$66)","v":""},{"$f":"IF(A69=\"\",\"\",'1. Checklist & Certification'!$I$66)","v":""},{"$f":"IF(A69=\"\",\"\",'1. Checklist & Certification'!$I$67)","v":""},{"$f":"IF(A69=\"\",\"\",'1. Checklist & Certification'!$I$68)","v":""},null,{"$f":"IF(C69=\"\",\"\",HLOOKUP(C69,'MHP Family Income & Rent Limits'!$E$12:$L$26,2,FALSE))","v":""},{"$f":"IF(C69=\"\",\"\",HLOOKUP(C69,'MHP Family Income & Rent Limits'!$E$12:$L$26,3,FALSE))","v":""},{"$f":"IF(C69=\"\",\"\",HLOOKUP(C69,'MHP Family Income & Rent Limits'!$E$12:$L$26,4,FALSE))","v":""},{"$f":"IF(C69=\"\",\"\",HLOOKUP(C69,'MHP Family Income & Rent Limits'!$E$12:$L$26,5,FALSE))","v":""},{"$f":"IF(C69=\"\",\"\",HLOOKUP(C69,'MHP Family Income & Rent Limits'!$E$12:$L$26,6,FALSE))","v":""},{"$f":"IF(C69=\"\",\"\",HLOOKUP(C69,'MHP Family Income & Rent Limits'!$E$12:$L$26,7,FALSE))","v":""},{"$f":"IF(C69=\"\",\"\",HLOOKUP(C69,'MHP Family Income & Rent Limits'!$E$12:$L$26,8,FALSE))","v":""},{"$f":"IF(C69=\"\",\"\",HLOOKUP(C69,'MHP Family Income & Rent Limits'!$E$12:$L$26,9,FALSE))","v":""},{"$f":"IF(C69=\"\",\"\",HLOOKUP(C69,'MHP Family Income & Rent Limits'!$E$12:$L$26,10,FALSE))","v":""},{"$f":"IF(C69=\"\",\"\",HLOOKUP(C69,'MHP Family Income & Rent Limits'!$E$12:$L$26,11,FALSE))","v":""},{"$f":"IF(C69=\"\",\"\",HLOOKUP(C69,'MHP Family Income & Rent Limits'!$E$12:$L$26,12,FALSE))","v":""},{"$f":"IF(C69=\"\",\"\",HLOOKUP(C69,'MHP Family Income & Rent Limits'!$E$12:$L$26,13,FALSE))","v":""},{"$f":"IF(C69=\"\",\"\",HLOOKUP(C69,'MHP Family Income & Rent Limits'!$E$12:$L$26,14,FALSE))","v":""},{"$f":"IF(C69=\"\",\"\",HLOOKUP(C69,'MHP Family Income & Rent Limits'!$E$12:$L$26,15,FALSE))","v":""}]
[{"$f":"IF('2. Assisted & Restricted Units'!A70=\"\",\"\",'2. Assisted & Restricted Units'!A70)","v":""},{"$f":"IF('2. Assisted & Restricted Units'!B70=\"\",\"\",'2. Assisted & Restricted Units'!B70)","v":""},{"$f":"IF('2. Assisted & Restricted Units'!D70=\"\",\"\",'2. Assisted & Restricted Units'!D70)","v":""},{"$f":"IF('2. Assisted & Restricted Units'!E70=\"\",\"\",'2. Assisted & Restricted Units'!E70)","v":""},{"$f":"IF('2. Assisted & Restricted Units'!H70=\"\",\"\",'2. Assisted & Restricted Units'!H70)","v":""},{"$f":"_xlfn.IFS(E70=\"\",\"\",E70>BO70,$BP$6,E70>BN70,$BO$6,E70>BM70,$BN$6,E70>BL70,$BM$6,E70>BK70,$BL$6,E70>BJ70,$BK$6,E70>BI70,$BJ$6,E70>BH70,$BI$6,E70>BG70,$BH$6,E70>BF70,$BG$6,E70>BE70,$BF$6,E70>BD70,$BE$6,E70>BC70,$BD$6,E70>=0,$BC$6)","v":""},{"$f":"IF('2. Assisted & Restricted Units'!T70=\"\",\"\",'2. Assisted & Restricted Units'!T70)","v":""},{"$f":"IF('2. Assisted & Restricted Units'!I70=\"\",\"\",'2. Assisted & Restricted Units'!I70)","v":""},{"$f":"IF('2. Assisted & Restricted Units'!AP70=\"\",\"\",'2. Assisted & Restricted Units'!AP70)","v":0},{"$f":"IF('2. Assisted & Restricted Units'!AT70=\"\",\"\",'2. Assisted & Restricted Units'!AT70)","v":""},0,{"$f":"IF('2. Assisted & Restricted Units'!AV70=\"\",\"\",'2. Assisted & Restricted Units'!AV70)","v":""},{"$f":"IF('2. Assisted & Restricted Units'!L70=\"\",\"\",'2. Assisted & Restricted Units'!L70)","v":""},{"$f":"IF('2. Assisted & Restricted Units'!M70=\"\",\"\",'2. Assisted & Restricted Units'!M70)","v":""},{"$f":"IF('2. Assisted & Restricted Units'!O70=\"\",\"\",'2. Assisted & Restricted Units'!O70)","v":""},{"$f":"IF('2. Assisted & Restricted Units'!P70=\"\",\"\",'2. Assisted & Restricted Units'!P70)","v":""},{"$f":"IF('2. Assisted & Restricted Units'!Q70=\"\",\"\",'2. Assisted & Restricted Units'!Q70)","v":""},{"$f":"IF('2. Assisted & Restricted Units'!R70=\"\",\"\",'2. Assisted & Restricted Units'!R70)","v":""},{"$f":"IF(A70=\"\",\"\",'1. Checklist & Certification'!$K$1)","v":""},{"$f":"IF(A70=\"\",\"\",'1. Checklist & Certification'!$C$62)","v":""},{"$f":"IF(A70=\"\",\"\",'1. Checklist & Certification'!$K$62)","v":""},{"$f":"IF(A70=\"\",\"\",'1. Checklist & Certification'!$C$6)","v":""},{"$f":"IF(A70=\"\",\"\",'1. Checklist & Certification'!$G$4)","v":""},{"$f":"IF(A70=\"\",\"\",'1. Checklist & Certification'!$C$7)","v":""},{"$f":"IF(A70=\"\",\"\",'1. Checklist & Certification'!$C$8)","v":""},{"$f":"IF(A70=\"\",\"\",'1. Checklist & Certification'!$F$7)","v":""},{"$f":"IF(A70=\"\",\"\",'1. Checklist & Certification'!$F$8)","v":""},{"$f":"IF(A70=\"\",\"\",'1. Checklist & Certification'!$B$9)","v":""},{"$f":"IF(A70=\"\",\"\",'1. Checklist & Certification'!$F$9)","v":""},{"$f":"IF(A70=\"\",\"\",'1. Checklist & Certification'!$C$10)","v":""},{"$f":"IF(A70=\"\",\"\",'1. Checklist & Certification'!$C$11)","v":""},{"$f":"IF(A70=\"\",\"\",'1. Checklist & Certification'!$C$12)","v":""},{"$f":"IF(A70=\"\",\"\",'1. Checklist & Certification'!$B$14)","v":""},{"$f":"IF(A70=\"\",\"\",'1. Checklist & Certification'!$E$14)","v":""},{"$f":"IF(B70=\"\",\"\",'1. Checklist & Certification'!$G$14)","v":""},{"$f":"IF(A70=\"\",\"\",'MHP Family Income & Rent Limits'!$B$3)","v":""},{"$f":"IF(A70=\"\",\"\",'MHP Family Income & Rent Limits'!$J$3)","v":""},{"$f":"IF(A70=\"\",\"\",'MHP Family Income & Rent Limits'!$E$4)","v":""},{"$f":"IF(A70=\"\",\"\",'MHP Family Income & Rent Limits'!$C$7)","v":""},{"$f":"IF(A70=\"\",\"\",'MHP Family Income & Rent Limits'!$F$8)","v":""},{"$f":"IF(A70=\"\",\"\",'1. Checklist & Certification'!$G$4)","v":""},{"$f":"IF(A70=\"\",\"\",'1. Checklist & Certification'!$K$39)","v":""},{"$f":"IF(A70=\"\",\"\",'1. Checklist & Certification'!$K$43)","v":""},{"$f":"IF(A70=\"\",\"\",'1. Checklist & Certification'!$K$45)","v":""},{"$f":"IF(A70=\"\",\"\",'1. Checklist & Certification'!$K$49)","v":""},{"$f":"IF(A70=\"\",\"\",'1. Checklist & Certification'!$E$66)","v":""},{"$f":"IF(A70=\"\",\"\",'1. Checklist & Certification'!$E$67)","v":""},{"$f":"IF(A70=\"\",\"\",'1. Checklist & Certification'!$E$68)","v":""},{"$f":"IF(A70=\"\",\"\",'1. Checklist & Certification'!$G$66)","v":""},{"$f":"IF(A70=\"\",\"\",'1. Checklist & Certification'!$H$66)","v":""},{"$f":"IF(A70=\"\",\"\",'1. Checklist & Certification'!$I$66)","v":""},{"$f":"IF(A70=\"\",\"\",'1. Checklist & Certification'!$I$67)","v":""},{"$f":"IF(A70=\"\",\"\",'1. Checklist & Certification'!$I$68)","v":""},null,{"$f":"IF(C70=\"\",\"\",HLOOKUP(C70,'MHP Family Income & Rent Limits'!$E$12:$L$26,2,FALSE))","v":""},{"$f":"IF(C70=\"\",\"\",HLOOKUP(C70,'MHP Family Income & Rent Limits'!$E$12:$L$26,3,FALSE))","v":""},{"$f":"IF(C70=\"\",\"\",HLOOKUP(C70,'MHP Family Income & Rent Limits'!$E$12:$L$26,4,FALSE))","v":""},{"$f":"IF(C70=\"\",\"\",HLOOKUP(C70,'MHP Family Income & Rent Limits'!$E$12:$L$26,5,FALSE))","v":""},{"$f":"IF(C70=\"\",\"\",HLOOKUP(C70,'MHP Family Income & Rent Limits'!$E$12:$L$26,6,FALSE))","v":""},{"$f":"IF(C70=\"\",\"\",HLOOKUP(C70,'MHP Family Income & Rent Limits'!$E$12:$L$26,7,FALSE))","v":""},{"$f":"IF(C70=\"\",\"\",HLOOKUP(C70,'MHP Family Income & Rent Limits'!$E$12:$L$26,8,FALSE))","v":""},{"$f":"IF(C70=\"\",\"\",HLOOKUP(C70,'MHP Family Income & Rent Limits'!$E$12:$L$26,9,FALSE))","v":""},{"$f":"IF(C70=\"\",\"\",HLOOKUP(C70,'MHP Family Income & Rent Limits'!$E$12:$L$26,10,FALSE))","v":""},{"$f":"IF(C70=\"\",\"\",HLOOKUP(C70,'MHP Family Income & Rent Limits'!$E$12:$L$26,11,FALSE))","v":""},{"$f":"IF(C70=\"\",\"\",HLOOKUP(C70,'MHP Family Income & Rent Limits'!$E$12:$L$26,12,FALSE))","v":""},{"$f":"IF(C70=\"\",\"\",HLOOKUP(C70,'MHP Family Income & Rent Limits'!$E$12:$L$26,13,FALSE))","v":""},{"$f":"IF(C70=\"\",\"\",HLOOKUP(C70,'MHP Family Income & Rent Limits'!$E$12:$L$26,14,FALSE))","v":""},{"$f":"IF(C70=\"\",\"\",HLOOKUP(C70,'MHP Family Income & Rent Limits'!$E$12:$L$26,15,FALSE))","v":""}]
[{"$f":"IF('2. Assisted & Restricted Units'!A71=\"\",\"\",'2. Assisted & Restricted Units'!A71)","v":""},{"$f":"IF('2. Assisted & Restricted Units'!B71=\"\",\"\",'2. Assisted & Restricted Units'!B71)","v":""},{"$f":"IF('2. Assisted & Restricted Units'!D71=\"\",\"\",'2. Assisted & Restricted Units'!D71)","v":""},{"$f":"IF('2. Assisted & Restricted Units'!E71=\"\",\"\",'2. Assisted & Restricted Units'!E71)","v":""},{"$f":"IF('2. Assisted & Restricted Units'!H71=\"\",\"\",'2. Assisted & Restricted Units'!H71)","v":""},{"$f":"_xlfn.IFS(E71=\"\",\"\",E71>BO71,$BP$6,E71>BN71,$BO$6,E71>BM71,$BN$6,E71>BL71,$BM$6,E71>BK71,$BL$6,E71>BJ71,$BK$6,E71>BI71,$BJ$6,E71>BH71,$BI$6,E71>BG71,$BH$6,E71>BF71,$BG$6,E71>BE71,$BF$6,E71>BD71,$BE$6,E71>BC71,$BD$6,E71>=0,$BC$6)","v":""},{"$f":"IF('2. Assisted & Restricted Units'!T71=\"\",\"\",'2. Assisted & Restricted Units'!T71)","v":""},{"$f":"IF('2. Assisted & Restricted Units'!I71=\"\",\"\",'2. Assisted & Restricted Units'!I71)","v":""},{"$f":"IF('2. Assisted & Restricted Units'!AP71=\"\",\"\",'2. Assisted & Restricted Units'!AP71)","v":0},{"$f":"IF('2. Assisted & Restricted Units'!AT71=\"\",\"\",'2. Assisted & Restricted Units'!AT71)","v":""},0,{"$f":"IF('2. Assisted & Restricted Units'!AV71=\"\",\"\",'2. Assisted & Restricted Units'!AV71)","v":""},{"$f":"IF('2. Assisted & Restricted Units'!L71=\"\",\"\",'2. Assisted & Restricted Units'!L71)","v":""},{"$f":"IF('2. Assisted & Restricted Units'!M71=\"\",\"\",'2. Assisted & Restricted Units'!M71)","v":""},{"$f":"IF('2. Assisted & Restricted Units'!O71=\"\",\"\",'2. Assisted & Restricted Units'!O71)","v":""},{"$f":"IF('2. Assisted & Restricted Units'!P71=\"\",\"\",'2. Assisted & Restricted Units'!P71)","v":""},{"$f":"IF('2. Assisted & Restricted Units'!Q71=\"\",\"\",'2. Assisted & Restricted Units'!Q71)","v":""},{"$f":"IF('2. Assisted & Restricted Units'!R71=\"\",\"\",'2. Assisted & Restricted Units'!R71)","v":""},{"$f":"IF(A71=\"\",\"\",'1. Checklist & Certification'!$K$1)","v":""},{"$f":"IF(A71=\"\",\"\",'1. Checklist & Certification'!$C$62)","v":""},{"$f":"IF(A71=\"\",\"\",'1. Checklist & Certification'!$K$62)","v":""},{"$f":"IF(A71=\"\",\"\",'1. Checklist & Certification'!$C$6)","v":""},{"$f":"IF(A71=\"\",\"\",'1. Checklist & Certification'!$G$4)","v":""},{"$f":"IF(A71=\"\",\"\",'1. Checklist & Certification'!$C$7)","v":""},{"$f":"IF(A71=\"\",\"\",'1. Checklist & Certification'!$C$8)","v":""},{"$f":"IF(A71=\"\",\"\",'1. Checklist & Certification'!$F$7)","v":""},{"$f":"IF(A71=\"\",\"\",'1. Checklist & Certification'!$F$8)","v":""},{"$f":"IF(A71=\"\",\"\",'1. Checklist & Certification'!$B$9)","v":""},{"$f":"IF(A71=\"\",\"\",'1. Checklist & Certification'!$F$9)","v":""},{"$f":"IF(A71=\"\",\"\",'1. Checklist & Certification'!$C$10)","v":""},{"$f":"IF(A71=\"\",\"\",'1. Checklist & Certification'!$C$11)","v":""},{"$f":"IF(A71=\"\",\"\",'1. Checklist & Certification'!$C$12)","v":""},{"$f":"IF(A71=\"\",\"\",'1. Checklist & Certification'!$B$14)","v":""},{"$f":"IF(A71=\"\",\"\",'1. Checklist & Certification'!$E$14)","v":""},{"$f":"IF(B71=\"\",\"\",'1. Checklist & Certification'!$G$14)","v":""},{"$f":"IF(A71=\"\",\"\",'MHP Family Income & Rent Limits'!$B$3)","v":""},{"$f":"IF(A71=\"\",\"\",'MHP Family Income & Rent Limits'!$J$3)","v":""},{"$f":"IF(A71=\"\",\"\",'MHP Family Income & Rent Limits'!$E$4)","v":""},{"$f":"IF(A71=\"\",\"\",'MHP Family Income & Rent Limits'!$C$7)","v":""},{"$f":"IF(A71=\"\",\"\",'MHP Family Income & Rent Limits'!$F$8)","v":""},{"$f":"IF(A71=\"\",\"\",'1. Checklist & Certification'!$G$4)","v":""},{"$f":"IF(A71=\"\",\"\",'1. Checklist & Certification'!$K$39)","v":""},{"$f":"IF(A71=\"\",\"\",'1. Checklist & Certification'!$K$43)","v":""},{"$f":"IF(A71=\"\",\"\",'1. Checklist & Certification'!$K$45)","v":""},{"$f":"IF(A71=\"\",\"\",'1. Checklist & Certification'!$K$49)","v":""},{"$f":"IF(A71=\"\",\"\",'1. Checklist & Certification'!$E$66)","v":""},{"$f":"IF(A71=\"\",\"\",'1. Checklist & Certification'!$E$67)","v":""},{"$f":"IF(A71=\"\",\"\",'1. Checklist & Certification'!$E$68)","v":""},{"$f":"IF(A71=\"\",\"\",'1. Checklist & Certification'!$G$66)","v":""},{"$f":"IF(A71=\"\",\"\",'1. Checklist & Certification'!$H$66)","v":""},{"$f":"IF(A71=\"\",\"\",'1. Checklist & Certification'!$I$66)","v":""},{"$f":"IF(A71=\"\",\"\",'1. Checklist & Certification'!$I$67)","v":""},{"$f":"IF(A71=\"\",\"\",'1. Checklist & Certification'!$I$68)","v":""},null,{"$f":"IF(C71=\"\",\"\",HLOOKUP(C71,'MHP Family Income & Rent Limits'!$E$12:$L$26,2,FALSE))","v":""},{"$f":"IF(C71=\"\",\"\",HLOOKUP(C71,'MHP Family Income & Rent Limits'!$E$12:$L$26,3,FALSE))","v":""},{"$f":"IF(C71=\"\",\"\",HLOOKUP(C71,'MHP Family Income & Rent Limits'!$E$12:$L$26,4,FALSE))","v":""},{"$f":"IF(C71=\"\",\"\",HLOOKUP(C71,'MHP Family Income & Rent Limits'!$E$12:$L$26,5,FALSE))","v":""},{"$f":"IF(C71=\"\",\"\",HLOOKUP(C71,'MHP Family Income & Rent Limits'!$E$12:$L$26,6,FALSE))","v":""},{"$f":"IF(C71=\"\",\"\",HLOOKUP(C71,'MHP Family Income & Rent Limits'!$E$12:$L$26,7,FALSE))","v":""},{"$f":"IF(C71=\"\",\"\",HLOOKUP(C71,'MHP Family Income & Rent Limits'!$E$12:$L$26,8,FALSE))","v":""},{"$f":"IF(C71=\"\",\"\",HLOOKUP(C71,'MHP Family Income & Rent Limits'!$E$12:$L$26,9,FALSE))","v":""},{"$f":"IF(C71=\"\",\"\",HLOOKUP(C71,'MHP Family Income & Rent Limits'!$E$12:$L$26,10,FALSE))","v":""},{"$f":"IF(C71=\"\",\"\",HLOOKUP(C71,'MHP Family Income & Rent Limits'!$E$12:$L$26,11,FALSE))","v":""},{"$f":"IF(C71=\"\",\"\",HLOOKUP(C71,'MHP Family Income & Rent Limits'!$E$12:$L$26,12,FALSE))","v":""},{"$f":"IF(C71=\"\",\"\",HLOOKUP(C71,'MHP Family Income & Rent Limits'!$E$12:$L$26,13,FALSE))","v":""},{"$f":"IF(C71=\"\",\"\",HLOOKUP(C71,'MHP Family Income & Rent Limits'!$E$12:$L$26,14,FALSE))","v":""},{"$f":"IF(C71=\"\",\"\",HLOOKUP(C71,'MHP Family Income & Rent Limits'!$E$12:$L$26,15,FALSE))","v":""}]
[{"$f":"IF('2. Assisted & Restricted Units'!A72=\"\",\"\",'2. Assisted & Restricted Units'!A72)","v":""},{"$f":"IF('2. Assisted & Restricted Units'!B72=\"\",\"\",'2. Assisted & Restricted Units'!B72)","v":""},{"$f":"IF('2. Assisted & Restricted Units'!D72=\"\",\"\",'2. Assisted & Restricted Units'!D72)","v":""},{"$f":"IF('2. Assisted & Restricted Units'!E72=\"\",\"\",'2. Assisted & Restricted Units'!E72)","v":""},{"$f":"IF('2. Assisted & Restricted Units'!H72=\"\",\"\",'2. Assisted & Restricted Units'!H72)","v":""},{"$f":"_xlfn.IFS(E72=\"\",\"\",E72>BO72,$BP$6,E72>BN72,$BO$6,E72>BM72,$BN$6,E72>BL72,$BM$6,E72>BK72,$BL$6,E72>BJ72,$BK$6,E72>BI72,$BJ$6,E72>BH72,$BI$6,E72>BG72,$BH$6,E72>BF72,$BG$6,E72>BE72,$BF$6,E72>BD72,$BE$6,E72>BC72,$BD$6,E72>=0,$BC$6)","v":""},{"$f":"IF('2. Assisted & Restricted Units'!T72=\"\",\"\",'2. Assisted & Restricted Units'!T72)","v":""},{"$f":"IF('2. Assisted & Restricted Units'!I72=\"\",\"\",'2. Assisted & Restricted Units'!I72)","v":""},{"$f":"IF('2. Assisted & Restricted Units'!AP72=\"\",\"\",'2. Assisted & Restricted Units'!AP72)","v":0},{"$f":"IF('2. Assisted & Restricted Units'!AT72=\"\",\"\",'2. Assisted & Restricted Units'!AT72)","v":""},{"$f":"SUM(H72:J72)","v":0},{"$f":"IF('2. Assisted & Restricted Units'!AV72=\"\",\"\",'2. Assisted & Restricted Units'!AV72)","v":""},{"$f":"IF('2. Assisted & Restricted Units'!L72=\"\",\"\",'2. Assisted & Restricted Units'!L72)","v":""},{"$f":"IF('2. Assisted & Restricted Units'!M72=\"\",\"\",'2. Assisted & Restricted Units'!M72)","v":""},{"$f":"IF('2. Assisted & Restricted Units'!O72=\"\",\"\",'2. Assisted & Restricted Units'!O72)","v":""},{"$f":"IF('2. Assisted & Restricted Units'!P72=\"\",\"\",'2. Assisted & Restricted Units'!P72)","v":""},{"$f":"IF('2. Assisted & Restricted Units'!Q72=\"\",\"\",'2. Assisted & Restricted Units'!Q72)","v":""},{"$f":"IF('2. Assisted & Restricted Units'!R72=\"\",\"\",'2. Assisted & Restricted Units'!R72)","v":""},{"$f":"IF(A72=\"\",\"\",'1. Checklist & Certification'!$K$1)","v":""},{"$f":"IF(A72=\"\",\"\",'1. Checklist & Certification'!$C$62)","v":""},{"$f":"IF(A72=\"\",\"\",'1. Checklist & Certification'!$K$62)","v":""},{"$f":"IF(A72=\"\",\"\",'1. Checklist & Certification'!$C$6)","v":""},{"$f":"IF(A72=\"\",\"\",'1. Checklist & Certification'!$G$4)","v":""},{"$f":"IF(A72=\"\",\"\",'1. Checklist & Certification'!$C$7)","v":""},{"$f":"IF(A72=\"\",\"\",'1. Checklist & Certification'!$C$8)","v":""},{"$f":"IF(A72=\"\",\"\",'1. Checklist & Certification'!$F$7)","v":""},{"$f":"IF(A72=\"\",\"\",'1. Checklist & Certification'!$F$8)","v":""},{"$f":"IF(A72=\"\",\"\",'1. Checklist & Certification'!$B$9)","v":""},{"$f":"IF(A72=\"\",\"\",'1. Checklist & Certification'!$F$9)","v":""},{"$f":"IF(A72=\"\",\"\",'1. Checklist & Certification'!$C$10)","v":""},{"$f":"IF(A72=\"\",\"\",'1. Checklist & Certification'!$C$11)","v":""},{"$f":"IF(A72=\"\",\"\",'1. Checklist & Certification'!$C$12)","v":""},{"$f":"IF(A72=\"\",\"\",'1. Checklist & Certification'!$B$14)","v":""},{"$f":"IF(A72=\"\",\"\",'1. Checklist & Certification'!$E$14)","v":""},{"$f":"IF(B72=\"\",\"\",'1. Checklist & Certification'!$G$14)","v":""},{"$f":"IF(A72=\"\",\"\",'MHP Family Income & Rent Limits'!$B$3)","v":""},{"$f":"IF(A72=\"\",\"\",'MHP Family Income & Rent Limits'!$J$3)","v":""},{"$f":"IF(A72=\"\",\"\",'MHP Family Income & Rent Limits'!$E$4)","v":""},{"$f":"IF(A72=\"\",\"\",'MHP Family Income & Rent Limits'!$C$7)","v":""},{"$f":"IF(A72=\"\",\"\",'MHP Family Income & Rent Limits'!$F$8)","v":""},{"$f":"IF(A72=\"\",\"\",'1. Checklist & Certification'!$G$4)","v":""},{"$f":"IF(A72=\"\",\"\",'1. Checklist & Certification'!$K$39)","v":""},{"$f":"IF(A72=\"\",\"\",'1. Checklist & Certification'!$K$43)","v":""},{"$f":"IF(A72=\"\",\"\",'1. Checklist & Certification'!$K$45)","v":""},{"$f":"IF(A72=\"\",\"\",'1. Checklist & Certification'!$K$49)","v":""},{"$f":"IF(A72=\"\",\"\",'1. Checklist & Certification'!$E$66)","v":""},{"$f":"IF(A72=\"\",\"\",'1. Checklist & Certification'!$E$67)","v":""},{"$f":"IF(A72=\"\",\"\",'1. Checklist & Certification'!$E$68)","v":""},{"$f":"IF(A72=\"\",\"\",'1. Checklist & Certification'!$G$66)","v":""},{"$f":"IF(A72=\"\",\"\",'1. Checklist & Certification'!$H$66)","v":""},{"$f":"IF(A72=\"\",\"\",'1. Checklist & Certification'!$I$66)","v":""},{"$f":"IF(A72=\"\",\"\",'1. Checklist & Certification'!$I$67)","v":""},{"$f":"IF(A72=\"\",\"\",'1. Checklist & Certification'!$I$68)","v":""},null,{"$f":"IF(C72=\"\",\"\",HLOOKUP(C72,'MHP Family Income & Rent Limits'!$E$12:$L$26,2,FALSE))","v":""},{"$f":"IF(C72=\"\",\"\",HLOOKUP(C72,'MHP Family Income & Rent Limits'!$E$12:$L$26,3,FALSE))","v":""},{"$f":"IF(C72=\"\",\"\",HLOOKUP(C72,'MHP Family Income & Rent Limits'!$E$12:$L$26,4,FALSE))","v":""},{"$f":"IF(C72=\"\",\"\",HLOOKUP(C72,'MHP Family Income & Rent Limits'!$E$12:$L$26,5,FALSE))","v":""},{"$f":"IF(C72=\"\",\"\",HLOOKUP(C72,'MHP Family Income & Rent Limits'!$E$12:$L$26,6,FALSE))","v":""},{"$f":"IF(C72=\"\",\"\",HLOOKUP(C72,'MHP Family Income & Rent Limits'!$E$12:$L$26,7,FALSE))","v":""},{"$f":"IF(C72=\"\",\"\",HLOOKUP(C72,'MHP Family Income & Rent Limits'!$E$12:$L$26,8,FALSE))","v":""},{"$f":"IF(C72=\"\",\"\",HLOOKUP(C72,'MHP Family Income & Rent Limits'!$E$12:$L$26,9,FALSE))","v":""},{"$f":"IF(C72=\"\",\"\",HLOOKUP(C72,'MHP Family Income & Rent Limits'!$E$12:$L$26,10,FALSE))","v":""},{"$f":"IF(C72=\"\",\"\",HLOOKUP(C72,'MHP Family Income & Rent Limits'!$E$12:$L$26,11,FALSE))","v":""},{"$f":"IF(C72=\"\",\"\",HLOOKUP(C72,'MHP Family Income & Rent Limits'!$E$12:$L$26,12,FALSE))","v":""},{"$f":"IF(C72=\"\",\"\",HLOOKUP(C72,'MHP Family Income & Rent Limits'!$E$12:$L$26,13,FALSE))","v":""},{"$f":"IF(C72=\"\",\"\",HLOOKUP(C72,'MHP Family Income & Rent Limits'!$E$12:$L$26,14,FALSE))","v":""},{"$f":"IF(C72=\"\",\"\",HLOOKUP(C72,'MHP Family Income & Rent Limits'!$E$12:$L$26,15,FALSE))","v":""}]
[{"$f":"IF('2. Assisted & Restricted Units'!A73=\"\",\"\",'2. Assisted & Restricted Units'!A73)","v":""},{"$f":"IF('2. Assisted & Restricted Units'!B73=\"\",\"\",'2. Assisted & Restricted Units'!B73)","v":""},{"$f":"IF('2. Assisted & Restricted Units'!D73=\"\",\"\",'2. Assisted & Restricted Units'!D73)","v":""},{"$f":"IF('2. Assisted & Restricted Units'!E73=\"\",\"\",'2. Assisted & Restricted Units'!E73)","v":""},{"$f":"IF('2. Assisted & Restricted Units'!H73=\"\",\"\",'2. Assisted & Restricted Units'!H73)","v":""},{"$f":"_xlfn.IFS(E73=\"\",\"\",E73>BO73,$BP$6,E73>BN73,$BO$6,E73>BM73,$BN$6,E73>BL73,$BM$6,E73>BK73,$BL$6,E73>BJ73,$BK$6,E73>BI73,$BJ$6,E73>BH73,$BI$6,E73>BG73,$BH$6,E73>BF73,$BG$6,E73>BE73,$BF$6,E73>BD73,$BE$6,E73>BC73,$BD$6,E73>=0,$BC$6)","v":""},{"$f":"IF('2. Assisted & Restricted Units'!T73=\"\",\"\",'2. Assisted & Restricted Units'!T73)","v":""},{"$f":"IF('2. Assisted & Restricted Units'!I73=\"\",\"\",'2. Assisted & Restricted Units'!I73)","v":""},{"$f":"IF('2. Assisted & Restricted Units'!AP73=\"\",\"\",'2. Assisted & Restricted Units'!AP73)","v":0},{"$f":"IF('2. Assisted & Restricted Units'!AT73=\"\",\"\",'2. Assisted & Restricted Units'!AT73)","v":""},0,{"$f":"IF('2. Assisted & Restricted Units'!AV73=\"\",\"\",'2. Assisted & Restricted Units'!AV73)","v":""},{"$f":"IF('2. Assisted & Restricted Units'!L73=\"\",\"\",'2. Assisted & Restricted Units'!L73)","v":""},{"$f":"IF('2. Assisted & Restricted Units'!M73=\"\",\"\",'2. Assisted & Restricted Units'!M73)","v":""},{"$f":"IF('2. Assisted & Restricted Units'!O73=\"\",\"\",'2. Assisted & Restricted Units'!O73)","v":""},{"$f":"IF('2. Assisted & Restricted Units'!P73=\"\",\"\",'2. Assisted & Restricted Units'!P73)","v":""},{"$f":"IF('2. Assisted & Restricted Units'!Q73=\"\",\"\",'2. Assisted & Restricted Units'!Q73)","v":""},{"$f":"IF('2. Assisted & Restricted Units'!R73=\"\",\"\",'2. Assisted & Restricted Units'!R73)","v":""},{"$f":"IF(A73=\"\",\"\",'1. Checklist & Certification'!$K$1)","v":""},{"$f":"IF(A73=\"\",\"\",'1. Checklist & Certification'!$C$62)","v":""},{"$f":"IF(A73=\"\",\"\",'1. Checklist & Certification'!$K$62)","v":""},{"$f":"IF(A73=\"\",\"\",'1. Checklist & Certification'!$C$6)","v":""},{"$f":"IF(A73=\"\",\"\",'1. Checklist & Certification'!$G$4)","v":""},{"$f":"IF(A73=\"\",\"\",'1. Checklist & Certification'!$C$7)","v":""},{"$f":"IF(A73=\"\",\"\",'1. Checklist & Certification'!$C$8)","v":""},{"$f":"IF(A73=\"\",\"\",'1. Checklist & Certification'!$F$7)","v":""},{"$f":"IF(A73=\"\",\"\",'1. Checklist & Certification'!$F$8)","v":""},{"$f":"IF(A73=\"\",\"\",'1. Checklist & Certification'!$B$9)","v":""},{"$f":"IF(A73=\"\",\"\",'1. Checklist & Certification'!$F$9)","v":""},{"$f":"IF(A73=\"\",\"\",'1. Checklist & Certification'!$C$10)","v":""},{"$f":"IF(A73=\"\",\"\",'1. Checklist & Certification'!$C$11)","v":""},{"$f":"IF(A73=\"\",\"\",'1. Checklist & Certification'!$C$12)","v":""},{"$f":"IF(A73=\"\",\"\",'1. Checklist & Certification'!$B$14)","v":""},{"$f":"IF(A73=\"\",\"\",'1. Checklist & Certification'!$E$14)","v":""},{"$f":"IF(B73=\"\",\"\",'1. Checklist & Certification'!$G$14)","v":""},{"$f":"IF(A73=\"\",\"\",'MHP Family Income & Rent Limits'!$B$3)","v":""},{"$f":"IF(A73=\"\",\"\",'MHP Family Income & Rent Limits'!$J$3)","v":""},{"$f":"IF(A73=\"\",\"\",'MHP Family Income & Rent Limits'!$E$4)","v":""},{"$f":"IF(A73=\"\",\"\",'MHP Family Income & Rent Limits'!$C$7)","v":""},{"$f":"IF(A73=\"\",\"\",'MHP Family Income & Rent Limits'!$F$8)","v":""},{"$f":"IF(A73=\"\",\"\",'1. Checklist & Certification'!$G$4)","v":""},{"$f":"IF(A73=\"\",\"\",'1. Checklist & Certification'!$K$39)","v":""},{"$f":"IF(A73=\"\",\"\",'1. Checklist & Certification'!$K$43)","v":""},{"$f":"IF(A73=\"\",\"\",'1. Checklist & Certification'!$K$45)","v":""},{"$f":"IF(A73=\"\",\"\",'1. Checklist & Certification'!$K$49)","v":""},{"$f":"IF(A73=\"\",\"\",'1. Checklist & Certification'!$E$66)","v":""},{"$f":"IF(A73=\"\",\"\",'1. Checklist & Certification'!$E$67)","v":""},{"$f":"IF(A73=\"\",\"\",'1. Checklist & Certification'!$E$68)","v":""},{"$f":"IF(A73=\"\",\"\",'1. Checklist & Certification'!$G$66)","v":""},{"$f":"IF(A73=\"\",\"\",'1. Checklist & Certification'!$H$66)","v":""},{"$f":"IF(A73=\"\",\"\",'1. Checklist & Certification'!$I$66)","v":""},{"$f":"IF(A73=\"\",\"\",'1. Checklist & Certification'!$I$67)","v":""},{"$f":"IF(A73=\"\",\"\",'1. Checklist & Certification'!$I$68)","v":""},null,{"$f":"IF(C73=\"\",\"\",HLOOKUP(C73,'MHP Family Income & Rent Limits'!$E$12:$L$26,2,FALSE))","v":""},{"$f":"IF(C73=\"\",\"\",HLOOKUP(C73,'MHP Family Income & Rent Limits'!$E$12:$L$26,3,FALSE))","v":""},{"$f":"IF(C73=\"\",\"\",HLOOKUP(C73,'MHP Family Income & Rent Limits'!$E$12:$L$26,4,FALSE))","v":""},{"$f":"IF(C73=\"\",\"\",HLOOKUP(C73,'MHP Family Income & Rent Limits'!$E$12:$L$26,5,FALSE))","v":""},{"$f":"IF(C73=\"\",\"\",HLOOKUP(C73,'MHP Family Income & Rent Limits'!$E$12:$L$26,6,FALSE))","v":""},{"$f":"IF(C73=\"\",\"\",HLOOKUP(C73,'MHP Family Income & Rent Limits'!$E$12:$L$26,7,FALSE))","v":""},{"$f":"IF(C73=\"\",\"\",HLOOKUP(C73,'MHP Family Income & Rent Limits'!$E$12:$L$26,8,FALSE))","v":""},{"$f":"IF(C73=\"\",\"\",HLOOKUP(C73,'MHP Family Income & Rent Limits'!$E$12:$L$26,9,FALSE))","v":""},{"$f":"IF(C73=\"\",\"\",HLOOKUP(C73,'MHP Family Income & Rent Limits'!$E$12:$L$26,10,FALSE))","v":""},{"$f":"IF(C73=\"\",\"\",HLOOKUP(C73,'MHP Family Income & Rent Limits'!$E$12:$L$26,11,FALSE))","v":""},{"$f":"IF(C73=\"\",\"\",HLOOKUP(C73,'MHP Family Income & Rent Limits'!$E$12:$L$26,12,FALSE))","v":""},{"$f":"IF(C73=\"\",\"\",HLOOKUP(C73,'MHP Family Income & Rent Limits'!$E$12:$L$26,13,FALSE))","v":""},{"$f":"IF(C73=\"\",\"\",HLOOKUP(C73,'MHP Family Income & Rent Limits'!$E$12:$L$26,14,FALSE))","v":""},{"$f":"IF(C73=\"\",\"\",HLOOKUP(C73,'MHP Family Income & Rent Limits'!$E$12:$L$26,15,FALSE))","v":""}]
[{"$f":"IF('2. Assisted & Restricted Units'!A74=\"\",\"\",'2. Assisted & Restricted Units'!A74)","v":""},{"$f":"IF('2. Assisted & Restricted Units'!B74=\"\",\"\",'2. Assisted & Restricted Units'!B74)","v":""},{"$f":"IF('2. Assisted & Restricted Units'!D74=\"\",\"\",'2. Assisted & Restricted Units'!D74)","v":""},{"$f":"IF('2. Assisted & Restricted Units'!E74=\"\",\"\",'2. Assisted & Restricted Units'!E74)","v":""},{"$f":"IF('2. Assisted & Restricted Units'!H74=\"\",\"\",'2. Assisted & Restricted Units'!H74)","v":""},{"$f":"_xlfn.IFS(E74=\"\",\"\",E74>BO74,$BP$6,E74>BN74,$BO$6,E74>BM74,$BN$6,E74>BL74,$BM$6,E74>BK74,$BL$6,E74>BJ74,$BK$6,E74>BI74,$BJ$6,E74>BH74,$BI$6,E74>BG74,$BH$6,E74>BF74,$BG$6,E74>BE74,$BF$6,E74>BD74,$BE$6,E74>BC74,$BD$6,E74>=0,$BC$6)","v":""},{"$f":"IF('2. Assisted & Restricted Units'!T74=\"\",\"\",'2. Assisted & Restricted Units'!T74)","v":""},{"$f":"IF('2. Assisted & Restricted Units'!I74=\"\",\"\",'2. Assisted & Restricted Units'!I74)","v":""},{"$f":"IF('2. Assisted & Restricted Units'!AP74=\"\",\"\",'2. Assisted & Restricted Units'!AP74)","v":0},{"$f":"IF('2. Assisted & Restricted Units'!AT74=\"\",\"\",'2. Assisted & Restricted Units'!AT74)","v":""},0,{"$f":"IF('2. Assisted & Restricted Units'!AV74=\"\",\"\",'2. Assisted & Restricted Units'!AV74)","v":""},{"$f":"IF('2. Assisted & Restricted Units'!L74=\"\",\"\",'2. Assisted & Restricted Units'!L74)","v":""},{"$f":"IF('2. Assisted & Restricted Units'!M74=\"\",\"\",'2. Assisted & Restricted Units'!M74)","v":""},{"$f":"IF('2. Assisted & Restricted Units'!O74=\"\",\"\",'2. Assisted & Restricted Units'!O74)","v":""},{"$f":"IF('2. Assisted & Restricted Units'!P74=\"\",\"\",'2. Assisted & Restricted Units'!P74)","v":""},{"$f":"IF('2. Assisted & Restricted Units'!Q74=\"\",\"\",'2. Assisted & Restricted Units'!Q74)","v":""},{"$f":"IF('2. Assisted & Restricted Units'!R74=\"\",\"\",'2. Assisted & Restricted Units'!R74)","v":""},{"$f":"IF(A74=\"\",\"\",'1. Checklist & Certification'!$K$1)","v":""},{"$f":"IF(A74=\"\",\"\",'1. Checklist & Certification'!$C$62)","v":""},{"$f":"IF(A74=\"\",\"\",'1. Checklist & Certification'!$K$62)","v":""},{"$f":"IF(A74=\"\",\"\",'1. Checklist & Certification'!$C$6)","v":""},{"$f":"IF(A74=\"\",\"\",'1. Checklist & Certification'!$G$4)","v":""},{"$f":"IF(A74=\"\",\"\",'1. Checklist & Certification'!$C$7)","v":""},{"$f":"IF(A74=\"\",\"\",'1. Checklist & Certification'!$C$8)","v":""},{"$f":"IF(A74=\"\",\"\",'1. Checklist & Certification'!$F$7)","v":""},{"$f":"IF(A74=\"\",\"\",'1. Checklist & Certification'!$F$8)","v":""},{"$f":"IF(A74=\"\",\"\",'1. Checklist & Certification'!$B$9)","v":""},{"$f":"IF(A74=\"\",\"\",'1. Checklist & Certification'!$F$9)","v":""},{"$f":"IF(A74=\"\",\"\",'1. Checklist & Certification'!$C$10)","v":""},{"$f":"IF(A74=\"\",\"\",'1. Checklist & Certification'!$C$11)","v":""},{"$f":"IF(A74=\"\",\"\",'1. Checklist & Certification'!$C$12)","v":""},{"$f":"IF(A74=\"\",\"\",'1. Checklist & Certification'!$B$14)","v":""},{"$f":"IF(A74=\"\",\"\",'1. Checklist & Certification'!$E$14)","v":""},{"$f":"IF(B74=\"\",\"\",'1. Checklist & Certification'!$G$14)","v":""},{"$f":"IF(A74=\"\",\"\",'MHP Family Income & Rent Limits'!$B$3)","v":""},{"$f":"IF(A74=\"\",\"\",'MHP Family Income & Rent Limits'!$J$3)","v":""},{"$f":"IF(A74=\"\",\"\",'MHP Family Income & Rent Limits'!$E$4)","v":""},{"$f":"IF(A74=\"\",\"\",'MHP Family Income & Rent Limits'!$C$7)","v":""},{"$f":"IF(A74=\"\",\"\",'MHP Family Income & Rent Limits'!$F$8)","v":""},{"$f":"IF(A74=\"\",\"\",'1. Checklist & Certification'!$G$4)","v":""},{"$f":"IF(A74=\"\",\"\",'1. Checklist & Certification'!$K$39)","v":""},{"$f":"IF(A74=\"\",\"\",'1. Checklist & Certification'!$K$43)","v":""},{"$f":"IF(A74=\"\",\"\",'1. Checklist & Certification'!$K$45)","v":""},{"$f":"IF(A74=\"\",\"\",'1. Checklist & Certification'!$K$49)","v":""},{"$f":"IF(A74=\"\",\"\",'1. Checklist & Certification'!$E$66)","v":""},{"$f":"IF(A74=\"\",\"\",'1. Checklist & Certification'!$E$67)","v":""},{"$f":"IF(A74=\"\",\"\",'1. Checklist & Certification'!$E$68)","v":""},{"$f":"IF(A74=\"\",\"\",'1. Checklist & Certification'!$G$66)","v":""},{"$f":"IF(A74=\"\",\"\",'1. Checklist & Certification'!$H$66)","v":""},{"$f":"IF(A74=\"\",\"\",'1. Checklist & Certification'!$I$66)","v":""},{"$f":"IF(A74=\"\",\"\",'1. Checklist & Certification'!$I$67)","v":""},{"$f":"IF(A74=\"\",\"\",'1. Checklist & Certification'!$I$68)","v":""},null,{"$f":"IF(C74=\"\",\"\",HLOOKUP(C74,'MHP Family Income & Rent Limits'!$E$12:$L$26,2,FALSE))","v":""},{"$f":"IF(C74=\"\",\"\",HLOOKUP(C74,'MHP Family Income & Rent Limits'!$E$12:$L$26,3,FALSE))","v":""},{"$f":"IF(C74=\"\",\"\",HLOOKUP(C74,'MHP Family Income & Rent Limits'!$E$12:$L$26,4,FALSE))","v":""},{"$f":"IF(C74=\"\",\"\",HLOOKUP(C74,'MHP Family Income & Rent Limits'!$E$12:$L$26,5,FALSE))","v":""},{"$f":"IF(C74=\"\",\"\",HLOOKUP(C74,'MHP Family Income & Rent Limits'!$E$12:$L$26,6,FALSE))","v":""},{"$f":"IF(C74=\"\",\"\",HLOOKUP(C74,'MHP Family Income & Rent Limits'!$E$12:$L$26,7,FALSE))","v":""},{"$f":"IF(C74=\"\",\"\",HLOOKUP(C74,'MHP Family Income & Rent Limits'!$E$12:$L$26,8,FALSE))","v":""},{"$f":"IF(C74=\"\",\"\",HLOOKUP(C74,'MHP Family Income & Rent Limits'!$E$12:$L$26,9,FALSE))","v":""},{"$f":"IF(C74=\"\",\"\",HLOOKUP(C74,'MHP Family Income & Rent Limits'!$E$12:$L$26,10,FALSE))","v":""},{"$f":"IF(C74=\"\",\"\",HLOOKUP(C74,'MHP Family Income & Rent Limits'!$E$12:$L$26,11,FALSE))","v":""},{"$f":"IF(C74=\"\",\"\",HLOOKUP(C74,'MHP Family Income & Rent Limits'!$E$12:$L$26,12,FALSE))","v":""},{"$f":"IF(C74=\"\",\"\",HLOOKUP(C74,'MHP Family Income & Rent Limits'!$E$12:$L$26,13,FALSE))","v":""},{"$f":"IF(C74=\"\",\"\",HLOOKUP(C74,'MHP Family Income & Rent Limits'!$E$12:$L$26,14,FALSE))","v":""},{"$f":"IF(C74=\"\",\"\",HLOOKUP(C74,'MHP Family Income & Rent Limits'!$E$12:$L$26,15,FALSE))","v":""}]
[{"$f":"IF('2. Assisted & Restricted Units'!A75=\"\",\"\",'2. Assisted & Restricted Units'!A75)","v":""},{"$f":"IF('2. Assisted & Restricted Units'!B75=\"\",\"\",'2. Assisted & Restricted Units'!B75)","v":""},{"$f":"IF('2. Assisted & Restricted Units'!D75=\"\",\"\",'2. Assisted & Restricted Units'!D75)","v":""},{"$f":"IF('2. Assisted & Restricted Units'!E75=\"\",\"\",'2. Assisted & Restricted Units'!E75)","v":""},{"$f":"IF('2. Assisted & Restricted Units'!H75=\"\",\"\",'2. Assisted & Restricted Units'!H75)","v":""},{"$f":"_xlfn.IFS(E75=\"\",\"\",E75>BO75,$BP$6,E75>BN75,$BO$6,E75>BM75,$BN$6,E75>BL75,$BM$6,E75>BK75,$BL$6,E75>BJ75,$BK$6,E75>BI75,$BJ$6,E75>BH75,$BI$6,E75>BG75,$BH$6,E75>BF75,$BG$6,E75>BE75,$BF$6,E75>BD75,$BE$6,E75>BC75,$BD$6,E75>=0,$BC$6)","v":""},{"$f":"IF('2. Assisted & Restricted Units'!T75=\"\",\"\",'2. Assisted & Restricted Units'!T75)","v":""},{"$f":"IF('2. Assisted & Restricted Units'!I75=\"\",\"\",'2. Assisted & Restricted Units'!I75)","v":""},{"$f":"IF('2. Assisted & Restricted Units'!AP75=\"\",\"\",'2. Assisted & Restricted Units'!AP75)","v":0},{"$f":"IF('2. Assisted & Restricted Units'!AT75=\"\",\"\",'2. Assisted & Restricted Units'!AT75)","v":""},0,{"$f":"IF('2. Assisted & Restricted Units'!AV75=\"\",\"\",'2. Assisted & Restricted Units'!AV75)","v":""},{"$f":"IF('2. Assisted & Restricted Units'!L75=\"\",\"\",'2. Assisted & Restricted Units'!L75)","v":""},{"$f":"IF('2. Assisted & Restricted Units'!M75=\"\",\"\",'2. Assisted & Restricted Units'!M75)","v":""},{"$f":"IF('2. Assisted & Restricted Units'!O75=\"\",\"\",'2. Assisted & Restricted Units'!O75)","v":""},{"$f":"IF('2. Assisted & Restricted Units'!P75=\"\",\"\",'2. Assisted & Restricted Units'!P75)","v":""},{"$f":"IF('2. Assisted & Restricted Units'!Q75=\"\",\"\",'2. Assisted & Restricted Units'!Q75)","v":""},{"$f":"IF('2. Assisted & Restricted Units'!R75=\"\",\"\",'2. Assisted & Restricted Units'!R75)","v":""},{"$f":"IF(A75=\"\",\"\",'1. Checklist & Certification'!$K$1)","v":""},{"$f":"IF(A75=\"\",\"\",'1. Checklist & Certification'!$C$62)","v":""},{"$f":"IF(A75=\"\",\"\",'1. Checklist & Certification'!$K$62)","v":""},{"$f":"IF(A75=\"\",\"\",'1. Checklist & Certification'!$C$6)","v":""},{"$f":"IF(A75=\"\",\"\",'1. Checklist & Certification'!$G$4)","v":""},{"$f":"IF(A75=\"\",\"\",'1. Checklist & Certification'!$C$7)","v":""},{"$f":"IF(A75=\"\",\"\",'1. Checklist & Certification'!$C$8)","v":""},{"$f":"IF(A75=\"\",\"\",'1. Checklist & Certification'!$F$7)","v":""},{"$f":"IF(A75=\"\",\"\",'1. Checklist & Certification'!$F$8)","v":""},{"$f":"IF(A75=\"\",\"\",'1. Checklist & Certification'!$B$9)","v":""},{"$f":"IF(A75=\"\",\"\",'1. Checklist & Certification'!$F$9)","v":""},{"$f":"IF(A75=\"\",\"\",'1. Checklist & Certification'!$C$10)","v":""},{"$f":"IF(A75=\"\",\"\",'1. Checklist & Certification'!$C$11)","v":""},{"$f":"IF(A75=\"\",\"\",'1. Checklist & Certification'!$C$12)","v":""},{"$f":"IF(A75=\"\",\"\",'1. Checklist & Certification'!$B$14)","v":""},{"$f":"IF(A75=\"\",\"\",'1. Checklist & Certification'!$E$14)","v":""},{"$f":"IF(B75=\"\",\"\",'1. Checklist & Certification'!$G$14)","v":""},{"$f":"IF(A75=\"\",\"\",'MHP Family Income & Rent Limits'!$B$3)","v":""},{"$f":"IF(A75=\"\",\"\",'MHP Family Income & Rent Limits'!$J$3)","v":""},{"$f":"IF(A75=\"\",\"\",'MHP Family Income & Rent Limits'!$E$4)","v":""},{"$f":"IF(A75=\"\",\"\",'MHP Family Income & Rent Limits'!$C$7)","v":""},{"$f":"IF(A75=\"\",\"\",'MHP Family Income & Rent Limits'!$F$8)","v":""},{"$f":"IF(A75=\"\",\"\",'1. Checklist & Certification'!$G$4)","v":""},{"$f":"IF(A75=\"\",\"\",'1. Checklist & Certification'!$K$39)","v":""},{"$f":"IF(A75=\"\",\"\",'1. Checklist & Certification'!$K$43)","v":""},{"$f":"IF(A75=\"\",\"\",'1. Checklist & Certification'!$K$45)","v":""},{"$f":"IF(A75=\"\",\"\",'1. Checklist & Certification'!$K$49)","v":""},{"$f":"IF(A75=\"\",\"\",'1. Checklist & Certification'!$E$66)","v":""},{"$f":"IF(A75=\"\",\"\",'1. Checklist & Certification'!$E$67)","v":""},{"$f":"IF(A75=\"\",\"\",'1. Checklist & Certification'!$E$68)","v":""},{"$f":"IF(A75=\"\",\"\",'1. Checklist & Certification'!$G$66)","v":""},{"$f":"IF(A75=\"\",\"\",'1. Checklist & Certification'!$H$66)","v":""},{"$f":"IF(A75=\"\",\"\",'1. Checklist & Certification'!$I$66)","v":""},{"$f":"IF(A75=\"\",\"\",'1. Checklist & Certification'!$I$67)","v":""},{"$f":"IF(A75=\"\",\"\",'1. Checklist & Certification'!$I$68)","v":""},null,{"$f":"IF(C75=\"\",\"\",HLOOKUP(C75,'MHP Family Income & Rent Limits'!$E$12:$L$26,2,FALSE))","v":""},{"$f":"IF(C75=\"\",\"\",HLOOKUP(C75,'MHP Family Income & Rent Limits'!$E$12:$L$26,3,FALSE))","v":""},{"$f":"IF(C75=\"\",\"\",HLOOKUP(C75,'MHP Family Income & Rent Limits'!$E$12:$L$26,4,FALSE))","v":""},{"$f":"IF(C75=\"\",\"\",HLOOKUP(C75,'MHP Family Income & Rent Limits'!$E$12:$L$26,5,FALSE))","v":""},{"$f":"IF(C75=\"\",\"\",HLOOKUP(C75,'MHP Family Income & Rent Limits'!$E$12:$L$26,6,FALSE))","v":""},{"$f":"IF(C75=\"\",\"\",HLOOKUP(C75,'MHP Family Income & Rent Limits'!$E$12:$L$26,7,FALSE))","v":""},{"$f":"IF(C75=\"\",\"\",HLOOKUP(C75,'MHP Family Income & Rent Limits'!$E$12:$L$26,8,FALSE))","v":""},{"$f":"IF(C75=\"\",\"\",HLOOKUP(C75,'MHP Family Income & Rent Limits'!$E$12:$L$26,9,FALSE))","v":""},{"$f":"IF(C75=\"\",\"\",HLOOKUP(C75,'MHP Family Income & Rent Limits'!$E$12:$L$26,10,FALSE))","v":""},{"$f":"IF(C75=\"\",\"\",HLOOKUP(C75,'MHP Family Income & Rent Limits'!$E$12:$L$26,11,FALSE))","v":""},{"$f":"IF(C75=\"\",\"\",HLOOKUP(C75,'MHP Family Income & Rent Limits'!$E$12:$L$26,12,FALSE))","v":""},{"$f":"IF(C75=\"\",\"\",HLOOKUP(C75,'MHP Family Income & Rent Limits'!$E$12:$L$26,13,FALSE))","v":""},{"$f":"IF(C75=\"\",\"\",HLOOKUP(C75,'MHP Family Income & Rent Limits'!$E$12:$L$26,14,FALSE))","v":""},{"$f":"IF(C75=\"\",\"\",HLOOKUP(C75,'MHP Family Income & Rent Limits'!$E$12:$L$26,15,FALSE))","v":""}]
[{"$f":"IF('2. Assisted & Restricted Units'!A76=\"\",\"\",'2. Assisted & Restricted Units'!A76)","v":""},{"$f":"IF('2. Assisted & Restricted Units'!B76=\"\",\"\",'2. Assisted & Restricted Units'!B76)","v":""},{"$f":"IF('2. Assisted & Restricted Units'!D76=\"\",\"\",'2. Assisted & Restricted Units'!D76)","v":""},{"$f":"IF('2. Assisted & Restricted Units'!E76=\"\",\"\",'2. Assisted & Restricted Units'!E76)","v":""},{"$f":"IF('2. Assisted & Restricted Units'!H76=\"\",\"\",'2. Assisted & Restricted Units'!H76)","v":""},{"$f":"_xlfn.IFS(E76=\"\",\"\",E76>BO76,$BP$6,E76>BN76,$BO$6,E76>BM76,$BN$6,E76>BL76,$BM$6,E76>BK76,$BL$6,E76>BJ76,$BK$6,E76>BI76,$BJ$6,E76>BH76,$BI$6,E76>BG76,$BH$6,E76>BF76,$BG$6,E76>BE76,$BF$6,E76>BD76,$BE$6,E76>BC76,$BD$6,E76>=0,$BC$6)","v":""},{"$f":"IF('2. Assisted & Restricted Units'!T76=\"\",\"\",'2. Assisted & Restricted Units'!T76)","v":""},{"$f":"IF('2. Assisted & Restricted Units'!I76=\"\",\"\",'2. Assisted & Restricted Units'!I76)","v":""},{"$f":"IF('2. Assisted & Restricted Units'!AP76=\"\",\"\",'2. Assisted & Restricted Units'!AP76)","v":0},{"$f":"IF('2. Assisted & Restricted Units'!AT76=\"\",\"\",'2. Assisted & Restricted Units'!AT76)","v":""},0,{"$f":"IF('2. Assisted & Restricted Units'!AV76=\"\",\"\",'2. Assisted & Restricted Units'!AV76)","v":""},{"$f":"IF('2. Assisted & Restricted Units'!L76=\"\",\"\",'2. Assisted & Restricted Units'!L76)","v":""},{"$f":"IF('2. Assisted & Restricted Units'!M76=\"\",\"\",'2. Assisted & Restricted Units'!M76)","v":""},{"$f":"IF('2. Assisted & Restricted Units'!O76=\"\",\"\",'2. Assisted & Restricted Units'!O76)","v":""},{"$f":"IF('2. Assisted & Restricted Units'!P76=\"\",\"\",'2. Assisted & Restricted Units'!P76)","v":""},{"$f":"IF('2. Assisted & Restricted Units'!Q76=\"\",\"\",'2. Assisted & Restricted Units'!Q76)","v":""},{"$f":"IF('2. Assisted & Restricted Units'!R76=\"\",\"\",'2. Assisted & Restricted Units'!R76)","v":""},{"$f":"IF(A76=\"\",\"\",'1. Checklist & Certification'!$K$1)","v":""},{"$f":"IF(A76=\"\",\"\",'1. Checklist & Certification'!$C$62)","v":""},{"$f":"IF(A76=\"\",\"\",'1. Checklist & Certification'!$K$62)","v":""},{"$f":"IF(A76=\"\",\"\",'1. Checklist & Certification'!$C$6)","v":""},{"$f":"IF(A76=\"\",\"\",'1. Checklist & Certification'!$G$4)","v":""},{"$f":"IF(A76=\"\",\"\",'1. Checklist & Certification'!$C$7)","v":""},{"$f":"IF(A76=\"\",\"\",'1. Checklist & Certification'!$C$8)","v":""},{"$f":"IF(A76=\"\",\"\",'1. Checklist & Certification'!$F$7)","v":""},{"$f":"IF(A76=\"\",\"\",'1. Checklist & Certification'!$F$8)","v":""},{"$f":"IF(A76=\"\",\"\",'1. Checklist & Certification'!$B$9)","v":""},{"$f":"IF(A76=\"\",\"\",'1. Checklist & Certification'!$F$9)","v":""},{"$f":"IF(A76=\"\",\"\",'1. Checklist & Certification'!$C$10)","v":""},{"$f":"IF(A76=\"\",\"\",'1. Checklist & Certification'!$C$11)","v":""},{"$f":"IF(A76=\"\",\"\",'1. Checklist & Certification'!$C$12)","v":""},{"$f":"IF(A76=\"\",\"\",'1. Checklist & Certification'!$B$14)","v":""},{"$f":"IF(A76=\"\",\"\",'1. Checklist & Certification'!$E$14)","v":""},{"$f":"IF(B76=\"\",\"\",'1. Checklist & Certification'!$G$14)","v":""},{"$f":"IF(A76=\"\",\"\",'MHP Family Income & Rent Limits'!$B$3)","v":""},{"$f":"IF(A76=\"\",\"\",'MHP Family Income & Rent Limits'!$J$3)","v":""},{"$f":"IF(A76=\"\",\"\",'MHP Family Income & Rent Limits'!$E$4)","v":""},{"$f":"IF(A76=\"\",\"\",'MHP Family Income & Rent Limits'!$C$7)","v":""},{"$f":"IF(A76=\"\",\"\",'MHP Family Income & Rent Limits'!$F$8)","v":""},{"$f":"IF(A76=\"\",\"\",'1. Checklist & Certification'!$G$4)","v":""},{"$f":"IF(A76=\"\",\"\",'1. Checklist & Certification'!$K$39)","v":""},{"$f":"IF(A76=\"\",\"\",'1. Checklist & Certification'!$K$43)","v":""},{"$f":"IF(A76=\"\",\"\",'1. Checklist & Certification'!$K$45)","v":""},{"$f":"IF(A76=\"\",\"\",'1. Checklist & Certification'!$K$49)","v":""},{"$f":"IF(A76=\"\",\"\",'1. Checklist & Certification'!$E$66)","v":""},{"$f":"IF(A76=\"\",\"\",'1. Checklist & Certification'!$E$67)","v":""},{"$f":"IF(A76=\"\",\"\",'1. Checklist & Certification'!$E$68)","v":""},{"$f":"IF(A76=\"\",\"\",'1. Checklist & Certification'!$G$66)","v":""},{"$f":"IF(A76=\"\",\"\",'1. Checklist & Certification'!$H$66)","v":""},{"$f":"IF(A76=\"\",\"\",'1. Checklist & Certification'!$I$66)","v":""},{"$f":"IF(A76=\"\",\"\",'1. Checklist & Certification'!$I$67)","v":""},{"$f":"IF(A76=\"\",\"\",'1. Checklist & Certification'!$I$68)","v":""},null,{"$f":"IF(C76=\"\",\"\",HLOOKUP(C76,'MHP Family Income & Rent Limits'!$E$12:$L$26,2,FALSE))","v":""},{"$f":"IF(C76=\"\",\"\",HLOOKUP(C76,'MHP Family Income & Rent Limits'!$E$12:$L$26,3,FALSE))","v":""},{"$f":"IF(C76=\"\",\"\",HLOOKUP(C76,'MHP Family Income & Rent Limits'!$E$12:$L$26,4,FALSE))","v":""},{"$f":"IF(C76=\"\",\"\",HLOOKUP(C76,'MHP Family Income & Rent Limits'!$E$12:$L$26,5,FALSE))","v":""},{"$f":"IF(C76=\"\",\"\",HLOOKUP(C76,'MHP Family Income & Rent Limits'!$E$12:$L$26,6,FALSE))","v":""},{"$f":"IF(C76=\"\",\"\",HLOOKUP(C76,'MHP Family Income & Rent Limits'!$E$12:$L$26,7,FALSE))","v":""},{"$f":"IF(C76=\"\",\"\",HLOOKUP(C76,'MHP Family Income & Rent Limits'!$E$12:$L$26,8,FALSE))","v":""},{"$f":"IF(C76=\"\",\"\",HLOOKUP(C76,'MHP Family Income & Rent Limits'!$E$12:$L$26,9,FALSE))","v":""},{"$f":"IF(C76=\"\",\"\",HLOOKUP(C76,'MHP Family Income & Rent Limits'!$E$12:$L$26,10,FALSE))","v":""},{"$f":"IF(C76=\"\",\"\",HLOOKUP(C76,'MHP Family Income & Rent Limits'!$E$12:$L$26,11,FALSE))","v":""},{"$f":"IF(C76=\"\",\"\",HLOOKUP(C76,'MHP Family Income & Rent Limits'!$E$12:$L$26,12,FALSE))","v":""},{"$f":"IF(C76=\"\",\"\",HLOOKUP(C76,'MHP Family Income & Rent Limits'!$E$12:$L$26,13,FALSE))","v":""},{"$f":"IF(C76=\"\",\"\",HLOOKUP(C76,'MHP Family Income & Rent Limits'!$E$12:$L$26,14,FALSE))","v":""},{"$f":"IF(C76=\"\",\"\",HLOOKUP(C76,'MHP Family Income & Rent Limits'!$E$12:$L$26,15,FALSE))","v":""}]
[{"$f":"IF('2. Assisted & Restricted Units'!A77=\"\",\"\",'2. Assisted & Restricted Units'!A77)","v":""},{"$f":"IF('2. Assisted & Restricted Units'!B77=\"\",\"\",'2. Assisted & Restricted Units'!B77)","v":""},{"$f":"IF('2. Assisted & Restricted Units'!D77=\"\",\"\",'2. Assisted & Restricted Units'!D77)","v":""},{"$f":"IF('2. Assisted & Restricted Units'!E77=\"\",\"\",'2. Assisted & Restricted Units'!E77)","v":""},{"$f":"IF('2. Assisted & Restricted Units'!H77=\"\",\"\",'2. Assisted & Restricted Units'!H77)","v":""},{"$f":"_xlfn.IFS(E77=\"\",\"\",E77>BO77,$BP$6,E77>BN77,$BO$6,E77>BM77,$BN$6,E77>BL77,$BM$6,E77>BK77,$BL$6,E77>BJ77,$BK$6,E77>BI77,$BJ$6,E77>BH77,$BI$6,E77>BG77,$BH$6,E77>BF77,$BG$6,E77>BE77,$BF$6,E77>BD77,$BE$6,E77>BC77,$BD$6,E77>=0,$BC$6)","v":""},{"$f":"IF('2. Assisted & Restricted Units'!T77=\"\",\"\",'2. Assisted & Restricted Units'!T77)","v":""},{"$f":"IF('2. Assisted & Restricted Units'!I77=\"\",\"\",'2. Assisted & Restricted Units'!I77)","v":""},{"$f":"IF('2. Assisted & Restricted Units'!AP77=\"\",\"\",'2. Assisted & Restricted Units'!AP77)","v":0},{"$f":"IF('2. Assisted & Restricted Units'!AT77=\"\",\"\",'2. Assisted & Restricted Units'!AT77)","v":""},0,{"$f":"IF('2. Assisted & Restricted Units'!AV77=\"\",\"\",'2. Assisted & Restricted Units'!AV77)","v":""},{"$f":"IF('2. Assisted & Restricted Units'!L77=\"\",\"\",'2. Assisted & Restricted Units'!L77)","v":""},{"$f":"IF('2. Assisted & Restricted Units'!M77=\"\",\"\",'2. Assisted & Restricted Units'!M77)","v":""},{"$f":"IF('2. Assisted & Restricted Units'!O77=\"\",\"\",'2. Assisted & Restricted Units'!O77)","v":""},{"$f":"IF('2. Assisted & Restricted Units'!P77=\"\",\"\",'2. Assisted & Restricted Units'!P77)","v":""},{"$f":"IF('2. Assisted & Restricted Units'!Q77=\"\",\"\",'2. Assisted & Restricted Units'!Q77)","v":""},{"$f":"IF('2. Assisted & Restricted Units'!R77=\"\",\"\",'2. Assisted & Restricted Units'!R77)","v":""},{"$f":"IF(A77=\"\",\"\",'1. Checklist & Certification'!$K$1)","v":""},{"$f":"IF(A77=\"\",\"\",'1. Checklist & Certification'!$C$62)","v":""},{"$f":"IF(A77=\"\",\"\",'1. Checklist & Certification'!$K$62)","v":""},{"$f":"IF(A77=\"\",\"\",'1. Checklist & Certification'!$C$6)","v":""},{"$f":"IF(A77=\"\",\"\",'1. Checklist & Certification'!$G$4)","v":""},{"$f":"IF(A77=\"\",\"\",'1. Checklist & Certification'!$C$7)","v":""},{"$f":"IF(A77=\"\",\"\",'1. Checklist & Certification'!$C$8)","v":""},{"$f":"IF(A77=\"\",\"\",'1. Checklist & Certification'!$F$7)","v":""},{"$f":"IF(A77=\"\",\"\",'1. Checklist & Certification'!$F$8)","v":""},{"$f":"IF(A77=\"\",\"\",'1. Checklist & Certification'!$B$9)","v":""},{"$f":"IF(A77=\"\",\"\",'1. Checklist & Certification'!$F$9)","v":""},{"$f":"IF(A77=\"\",\"\",'1. Checklist & Certification'!$C$10)","v":""},{"$f":"IF(A77=\"\",\"\",'1. Checklist & Certification'!$C$11)","v":""},{"$f":"IF(A77=\"\",\"\",'1. Checklist & Certification'!$C$12)","v":""},{"$f":"IF(A77=\"\",\"\",'1. Checklist & Certification'!$B$14)","v":""},{"$f":"IF(A77=\"\",\"\",'1. Checklist & Certification'!$E$14)","v":""},{"$f":"IF(B77=\"\",\"\",'1. Checklist & Certification'!$G$14)","v":""},{"$f":"IF(A77=\"\",\"\",'MHP Family Income & Rent Limits'!$B$3)","v":""},{"$f":"IF(A77=\"\",\"\",'MHP Family Income & Rent Limits'!$J$3)","v":""},{"$f":"IF(A77=\"\",\"\",'MHP Family Income & Rent Limits'!$E$4)","v":""},{"$f":"IF(A77=\"\",\"\",'MHP Family Income & Rent Limits'!$C$7)","v":""},{"$f":"IF(A77=\"\",\"\",'MHP Family Income & Rent Limits'!$F$8)","v":""},{"$f":"IF(A77=\"\",\"\",'1. Checklist & Certification'!$G$4)","v":""},{"$f":"IF(A77=\"\",\"\",'1. Checklist & Certification'!$K$39)","v":""},{"$f":"IF(A77=\"\",\"\",'1. Checklist & Certification'!$K$43)","v":""},{"$f":"IF(A77=\"\",\"\",'1. Checklist & Certification'!$K$45)","v":""},{"$f":"IF(A77=\"\",\"\",'1. Checklist & Certification'!$K$49)","v":""},{"$f":"IF(A77=\"\",\"\",'1. Checklist & Certification'!$E$66)","v":""},{"$f":"IF(A77=\"\",\"\",'1. Checklist & Certification'!$E$67)","v":""},{"$f":"IF(A77=\"\",\"\",'1. Checklist & Certification'!$E$68)","v":""},{"$f":"IF(A77=\"\",\"\",'1. Checklist & Certification'!$G$66)","v":""},{"$f":"IF(A77=\"\",\"\",'1. Checklist & Certification'!$H$66)","v":""},{"$f":"IF(A77=\"\",\"\",'1. Checklist & Certification'!$I$66)","v":""},{"$f":"IF(A77=\"\",\"\",'1. Checklist & Certification'!$I$67)","v":""},{"$f":"IF(A77=\"\",\"\",'1. Checklist & Certification'!$I$68)","v":""},null,{"$f":"IF(C77=\"\",\"\",HLOOKUP(C77,'MHP Family Income & Rent Limits'!$E$12:$L$26,2,FALSE))","v":""},{"$f":"IF(C77=\"\",\"\",HLOOKUP(C77,'MHP Family Income & Rent Limits'!$E$12:$L$26,3,FALSE))","v":""},{"$f":"IF(C77=\"\",\"\",HLOOKUP(C77,'MHP Family Income & Rent Limits'!$E$12:$L$26,4,FALSE))","v":""},{"$f":"IF(C77=\"\",\"\",HLOOKUP(C77,'MHP Family Income & Rent Limits'!$E$12:$L$26,5,FALSE))","v":""},{"$f":"IF(C77=\"\",\"\",HLOOKUP(C77,'MHP Family Income & Rent Limits'!$E$12:$L$26,6,FALSE))","v":""},{"$f":"IF(C77=\"\",\"\",HLOOKUP(C77,'MHP Family Income & Rent Limits'!$E$12:$L$26,7,FALSE))","v":""},{"$f":"IF(C77=\"\",\"\",HLOOKUP(C77,'MHP Family Income & Rent Limits'!$E$12:$L$26,8,FALSE))","v":""},{"$f":"IF(C77=\"\",\"\",HLOOKUP(C77,'MHP Family Income & Rent Limits'!$E$12:$L$26,9,FALSE))","v":""},{"$f":"IF(C77=\"\",\"\",HLOOKUP(C77,'MHP Family Income & Rent Limits'!$E$12:$L$26,10,FALSE))","v":""},{"$f":"IF(C77=\"\",\"\",HLOOKUP(C77,'MHP Family Income & Rent Limits'!$E$12:$L$26,11,FALSE))","v":""},{"$f":"IF(C77=\"\",\"\",HLOOKUP(C77,'MHP Family Income & Rent Limits'!$E$12:$L$26,12,FALSE))","v":""},{"$f":"IF(C77=\"\",\"\",HLOOKUP(C77,'MHP Family Income & Rent Limits'!$E$12:$L$26,13,FALSE))","v":""},{"$f":"IF(C77=\"\",\"\",HLOOKUP(C77,'MHP Family Income & Rent Limits'!$E$12:$L$26,14,FALSE))","v":""},{"$f":"IF(C77=\"\",\"\",HLOOKUP(C77,'MHP Family Income & Rent Limits'!$E$12:$L$26,15,FALSE))","v":""}]
[{"$f":"IF('2. Assisted & Restricted Units'!A78=\"\",\"\",'2. Assisted & Restricted Units'!A78)","v":""},{"$f":"IF('2. Assisted & Restricted Units'!B78=\"\",\"\",'2. Assisted & Restricted Units'!B78)","v":""},{"$f":"IF('2. Assisted & Restricted Units'!D78=\"\",\"\",'2. Assisted & Restricted Units'!D78)","v":""},{"$f":"IF('2. Assisted & Restricted Units'!E78=\"\",\"\",'2. Assisted & Restricted Units'!E78)","v":""},{"$f":"IF('2. Assisted & Restricted Units'!H78=\"\",\"\",'2. Assisted & Restricted Units'!H78)","v":""},{"$f":"_xlfn.IFS(E78=\"\",\"\",E78>BO78,$BP$6,E78>BN78,$BO$6,E78>BM78,$BN$6,E78>BL78,$BM$6,E78>BK78,$BL$6,E78>BJ78,$BK$6,E78>BI78,$BJ$6,E78>BH78,$BI$6,E78>BG78,$BH$6,E78>BF78,$BG$6,E78>BE78,$BF$6,E78>BD78,$BE$6,E78>BC78,$BD$6,E78>=0,$BC$6)","v":""},{"$f":"IF('2. Assisted & Restricted Units'!T78=\"\",\"\",'2. Assisted & Restricted Units'!T78)","v":""},{"$f":"IF('2. Assisted & Restricted Units'!I78=\"\",\"\",'2. Assisted & Restricted Units'!I78)","v":""},{"$f":"IF('2. Assisted & Restricted Units'!AP78=\"\",\"\",'2. Assisted & Restricted Units'!AP78)","v":0},{"$f":"IF('2. Assisted & Restricted Units'!AT78=\"\",\"\",'2. Assisted & Restricted Units'!AT78)","v":""},0,{"$f":"IF('2. Assisted & Restricted Units'!AV78=\"\",\"\",'2. Assisted & Restricted Units'!AV78)","v":""},{"$f":"IF('2. Assisted & Restricted Units'!L78=\"\",\"\",'2. Assisted & Restricted Units'!L78)","v":""},{"$f":"IF('2. Assisted & Restricted Units'!M78=\"\",\"\",'2. Assisted & Restricted Units'!M78)","v":""},{"$f":"IF('2. Assisted & Restricted Units'!O78=\"\",\"\",'2. Assisted & Restricted Units'!O78)","v":""},{"$f":"IF('2. Assisted & Restricted Units'!P78=\"\",\"\",'2. Assisted & Restricted Units'!P78)","v":""},{"$f":"IF('2. Assisted & Restricted Units'!Q78=\"\",\"\",'2. Assisted & Restricted Units'!Q78)","v":""},{"$f":"IF('2. Assisted & Restricted Units'!R78=\"\",\"\",'2. Assisted & Restricted Units'!R78)","v":""},{"$f":"IF(A78=\"\",\"\",'1. Checklist & Certification'!$K$1)","v":""},{"$f":"IF(A78=\"\",\"\",'1. Checklist & Certification'!$C$62)","v":""},{"$f":"IF(A78=\"\",\"\",'1. Checklist & Certification'!$K$62)","v":""},{"$f":"IF(A78=\"\",\"\",'1. Checklist & Certification'!$C$6)","v":""},{"$f":"IF(A78=\"\",\"\",'1. Checklist & Certification'!$G$4)","v":""},{"$f":"IF(A78=\"\",\"\",'1. Checklist & Certification'!$C$7)","v":""},{"$f":"IF(A78=\"\",\"\",'1. Checklist & Certification'!$C$8)","v":""},{"$f":"IF(A78=\"\",\"\",'1. Checklist & Certification'!$F$7)","v":""},{"$f":"IF(A78=\"\",\"\",'1. Checklist & Certification'!$F$8)","v":""},{"$f":"IF(A78=\"\",\"\",'1. Checklist & Certification'!$B$9)","v":""},{"$f":"IF(A78=\"\",\"\",'1. Checklist & Certification'!$F$9)","v":""},{"$f":"IF(A78=\"\",\"\",'1. Checklist & Certification'!$C$10)","v":""},{"$f":"IF(A78=\"\",\"\",'1. Checklist & Certification'!$C$11)","v":""},{"$f":"IF(A78=\"\",\"\",'1. Checklist & Certification'!$C$12)","v":""},{"$f":"IF(A78=\"\",\"\",'1. Checklist & Certification'!$B$14)","v":""},{"$f":"IF(A78=\"\",\"\",'1. Checklist & Certification'!$E$14)","v":""},{"$f":"IF(B78=\"\",\"\",'1. Checklist & Certification'!$G$14)","v":""},{"$f":"IF(A78=\"\",\"\",'MHP Family Income & Rent Limits'!$B$3)","v":""},{"$f":"IF(A78=\"\",\"\",'MHP Family Income & Rent Limits'!$J$3)","v":""},{"$f":"IF(A78=\"\",\"\",'MHP Family Income & Rent Limits'!$E$4)","v":""},{"$f":"IF(A78=\"\",\"\",'MHP Family Income & Rent Limits'!$C$7)","v":""},{"$f":"IF(A78=\"\",\"\",'MHP Family Income & Rent Limits'!$F$8)","v":""},{"$f":"IF(A78=\"\",\"\",'1. Checklist & Certification'!$G$4)","v":""},{"$f":"IF(A78=\"\",\"\",'1. Checklist & Certification'!$K$39)","v":""},{"$f":"IF(A78=\"\",\"\",'1. Checklist & Certification'!$K$43)","v":""},{"$f":"IF(A78=\"\",\"\",'1. Checklist & Certification'!$K$45)","v":""},{"$f":"IF(A78=\"\",\"\",'1. Checklist & Certification'!$K$49)","v":""},{"$f":"IF(A78=\"\",\"\",'1. Checklist & Certification'!$E$66)","v":""},{"$f":"IF(A78=\"\",\"\",'1. Checklist & Certification'!$E$67)","v":""},{"$f":"IF(A78=\"\",\"\",'1. Checklist & Certification'!$E$68)","v":""},{"$f":"IF(A78=\"\",\"\",'1. Checklist & Certification'!$G$66)","v":""},{"$f":"IF(A78=\"\",\"\",'1. Checklist & Certification'!$H$66)","v":""},{"$f":"IF(A78=\"\",\"\",'1. Checklist & Certification'!$I$66)","v":""},{"$f":"IF(A78=\"\",\"\",'1. Checklist & Certification'!$I$67)","v":""},{"$f":"IF(A78=\"\",\"\",'1. Checklist & Certification'!$I$68)","v":""},null,{"$f":"IF(C78=\"\",\"\",HLOOKUP(C78,'MHP Family Income & Rent Limits'!$E$12:$L$26,2,FALSE))","v":""},{"$f":"IF(C78=\"\",\"\",HLOOKUP(C78,'MHP Family Income & Rent Limits'!$E$12:$L$26,3,FALSE))","v":""},{"$f":"IF(C78=\"\",\"\",HLOOKUP(C78,'MHP Family Income & Rent Limits'!$E$12:$L$26,4,FALSE))","v":""},{"$f":"IF(C78=\"\",\"\",HLOOKUP(C78,'MHP Family Income & Rent Limits'!$E$12:$L$26,5,FALSE))","v":""},{"$f":"IF(C78=\"\",\"\",HLOOKUP(C78,'MHP Family Income & Rent Limits'!$E$12:$L$26,6,FALSE))","v":""},{"$f":"IF(C78=\"\",\"\",HLOOKUP(C78,'MHP Family Income & Rent Limits'!$E$12:$L$26,7,FALSE))","v":""},{"$f":"IF(C78=\"\",\"\",HLOOKUP(C78,'MHP Family Income & Rent Limits'!$E$12:$L$26,8,FALSE))","v":""},{"$f":"IF(C78=\"\",\"\",HLOOKUP(C78,'MHP Family Income & Rent Limits'!$E$12:$L$26,9,FALSE))","v":""},{"$f":"IF(C78=\"\",\"\",HLOOKUP(C78,'MHP Family Income & Rent Limits'!$E$12:$L$26,10,FALSE))","v":""},{"$f":"IF(C78=\"\",\"\",HLOOKUP(C78,'MHP Family Income & Rent Limits'!$E$12:$L$26,11,FALSE))","v":""},{"$f":"IF(C78=\"\",\"\",HLOOKUP(C78,'MHP Family Income & Rent Limits'!$E$12:$L$26,12,FALSE))","v":""},{"$f":"IF(C78=\"\",\"\",HLOOKUP(C78,'MHP Family Income & Rent Limits'!$E$12:$L$26,13,FALSE))","v":""},{"$f":"IF(C78=\"\",\"\",HLOOKUP(C78,'MHP Family Income & Rent Limits'!$E$12:$L$26,14,FALSE))","v":""},{"$f":"IF(C78=\"\",\"\",HLOOKUP(C78,'MHP Family Income & Rent Limits'!$E$12:$L$26,15,FALSE))","v":""}]
[{"$f":"IF('2. Assisted & Restricted Units'!A79=\"\",\"\",'2. Assisted & Restricted Units'!A79)","v":""},{"$f":"IF('2. Assisted & Restricted Units'!B79=\"\",\"\",'2. Assisted & Restricted Units'!B79)","v":""},{"$f":"IF('2. Assisted & Restricted Units'!D79=\"\",\"\",'2. Assisted & Restricted Units'!D79)","v":""},{"$f":"IF('2. Assisted & Restricted Units'!E79=\"\",\"\",'2. Assisted & Restricted Units'!E79)","v":""},{"$f":"IF('2. Assisted & Restricted Units'!H79=\"\",\"\",'2. Assisted & Restricted Units'!H79)","v":""},{"$f":"_xlfn.IFS(E79=\"\",\"\",E79>BO79,$BP$6,E79>BN79,$BO$6,E79>BM79,$BN$6,E79>BL79,$BM$6,E79>BK79,$BL$6,E79>BJ79,$BK$6,E79>BI79,$BJ$6,E79>BH79,$BI$6,E79>BG79,$BH$6,E79>BF79,$BG$6,E79>BE79,$BF$6,E79>BD79,$BE$6,E79>BC79,$BD$6,E79>=0,$BC$6)","v":""},{"$f":"IF('2. Assisted & Restricted Units'!T79=\"\",\"\",'2. Assisted & Restricted Units'!T79)","v":""},{"$f":"IF('2. Assisted & Restricted Units'!I79=\"\",\"\",'2. Assisted & Restricted Units'!I79)","v":""},{"$f":"IF('2. Assisted & Restricted Units'!AP79=\"\",\"\",'2. Assisted & Restricted Units'!AP79)","v":0},{"$f":"IF('2. Assisted & Restricted Units'!AT79=\"\",\"\",'2. Assisted & Restricted Units'!AT79)","v":""},0,{"$f":"IF('2. Assisted & Restricted Units'!AV79=\"\",\"\",'2. Assisted & Restricted Units'!AV79)","v":""},{"$f":"IF('2. Assisted & Restricted Units'!L79=\"\",\"\",'2. Assisted & Restricted Units'!L79)","v":""},{"$f":"IF('2. Assisted & Restricted Units'!M79=\"\",\"\",'2. Assisted & Restricted Units'!M79)","v":""},{"$f":"IF('2. Assisted & Restricted Units'!O79=\"\",\"\",'2. Assisted & Restricted Units'!O79)","v":""},{"$f":"IF('2. Assisted & Restricted Units'!P79=\"\",\"\",'2. Assisted & Restricted Units'!P79)","v":""},{"$f":"IF('2. Assisted & Restricted Units'!Q79=\"\",\"\",'2. Assisted & Restricted Units'!Q79)","v":""},{"$f":"IF('2. Assisted & Restricted Units'!R79=\"\",\"\",'2. Assisted & Restricted Units'!R79)","v":""},{"$f":"IF(A79=\"\",\"\",'1. Checklist & Certification'!$K$1)","v":""},{"$f":"IF(A79=\"\",\"\",'1. Checklist & Certification'!$C$62)","v":""},{"$f":"IF(A79=\"\",\"\",'1. Checklist & Certification'!$K$62)","v":""},{"$f":"IF(A79=\"\",\"\",'1. Checklist & Certification'!$C$6)","v":""},{"$f":"IF(A79=\"\",\"\",'1. Checklist & Certification'!$G$4)","v":""},{"$f":"IF(A79=\"\",\"\",'1. Checklist & Certification'!$C$7)","v":""},{"$f":"IF(A79=\"\",\"\",'1. Checklist & Certification'!$C$8)","v":""},{"$f":"IF(A79=\"\",\"\",'1. Checklist & Certification'!$F$7)","v":""},{"$f":"IF(A79=\"\",\"\",'1. Checklist & Certification'!$F$8)","v":""},{"$f":"IF(A79=\"\",\"\",'1. Checklist & Certification'!$B$9)","v":""},{"$f":"IF(A79=\"\",\"\",'1. Checklist & Certification'!$F$9)","v":""},{"$f":"IF(A79=\"\",\"\",'1. Checklist & Certification'!$C$10)","v":""},{"$f":"IF(A79=\"\",\"\",'1. Checklist & Certification'!$C$11)","v":""},{"$f":"IF(A79=\"\",\"\",'1. Checklist & Certification'!$C$12)","v":""},{"$f":"IF(A79=\"\",\"\",'1. Checklist & Certification'!$B$14)","v":""},{"$f":"IF(A79=\"\",\"\",'1. Checklist & Certification'!$E$14)","v":""},{"$f":"IF(B79=\"\",\"\",'1. Checklist & Certification'!$G$14)","v":""},{"$f":"IF(A79=\"\",\"\",'MHP Family Income & Rent Limits'!$B$3)","v":""},{"$f":"IF(A79=\"\",\"\",'MHP Family Income & Rent Limits'!$J$3)","v":""},{"$f":"IF(A79=\"\",\"\",'MHP Family Income & Rent Limits'!$E$4)","v":""},{"$f":"IF(A79=\"\",\"\",'MHP Family Income & Rent Limits'!$C$7)","v":""},{"$f":"IF(A79=\"\",\"\",'MHP Family Income & Rent Limits'!$F$8)","v":""},{"$f":"IF(A79=\"\",\"\",'1. Checklist & Certification'!$G$4)","v":""},{"$f":"IF(A79=\"\",\"\",'1. Checklist & Certification'!$K$39)","v":""},{"$f":"IF(A79=\"\",\"\",'1. Checklist & Certification'!$K$43)","v":""},{"$f":"IF(A79=\"\",\"\",'1. Checklist & Certification'!$K$45)","v":""},{"$f":"IF(A79=\"\",\"\",'1. Checklist & Certification'!$K$49)","v":""},{"$f":"IF(A79=\"\",\"\",'1. Checklist & Certification'!$E$66)","v":""},{"$f":"IF(A79=\"\",\"\",'1. Checklist & Certification'!$E$67)","v":""},{"$f":"IF(A79=\"\",\"\",'1. Checklist & Certification'!$E$68)","v":""},{"$f":"IF(A79=\"\",\"\",'1. Checklist & Certification'!$G$66)","v":""},{"$f":"IF(A79=\"\",\"\",'1. Checklist & Certification'!$H$66)","v":""},{"$f":"IF(A79=\"\",\"\",'1. Checklist & Certification'!$I$66)","v":""},{"$f":"IF(A79=\"\",\"\",'1. Checklist & Certification'!$I$67)","v":""},{"$f":"IF(A79=\"\",\"\",'1. Checklist & Certification'!$I$68)","v":""},null,{"$f":"IF(C79=\"\",\"\",HLOOKUP(C79,'MHP Family Income & Rent Limits'!$E$12:$L$26,2,FALSE))","v":""},{"$f":"IF(C79=\"\",\"\",HLOOKUP(C79,'MHP Family Income & Rent Limits'!$E$12:$L$26,3,FALSE))","v":""},{"$f":"IF(C79=\"\",\"\",HLOOKUP(C79,'MHP Family Income & Rent Limits'!$E$12:$L$26,4,FALSE))","v":""},{"$f":"IF(C79=\"\",\"\",HLOOKUP(C79,'MHP Family Income & Rent Limits'!$E$12:$L$26,5,FALSE))","v":""},{"$f":"IF(C79=\"\",\"\",HLOOKUP(C79,'MHP Family Income & Rent Limits'!$E$12:$L$26,6,FALSE))","v":""},{"$f":"IF(C79=\"\",\"\",HLOOKUP(C79,'MHP Family Income & Rent Limits'!$E$12:$L$26,7,FALSE))","v":""},{"$f":"IF(C79=\"\",\"\",HLOOKUP(C79,'MHP Family Income & Rent Limits'!$E$12:$L$26,8,FALSE))","v":""},{"$f":"IF(C79=\"\",\"\",HLOOKUP(C79,'MHP Family Income & Rent Limits'!$E$12:$L$26,9,FALSE))","v":""},{"$f":"IF(C79=\"\",\"\",HLOOKUP(C79,'MHP Family Income & Rent Limits'!$E$12:$L$26,10,FALSE))","v":""},{"$f":"IF(C79=\"\",\"\",HLOOKUP(C79,'MHP Family Income & Rent Limits'!$E$12:$L$26,11,FALSE))","v":""},{"$f":"IF(C79=\"\",\"\",HLOOKUP(C79,'MHP Family Income & Rent Limits'!$E$12:$L$26,12,FALSE))","v":""},{"$f":"IF(C79=\"\",\"\",HLOOKUP(C79,'MHP Family Income & Rent Limits'!$E$12:$L$26,13,FALSE))","v":""},{"$f":"IF(C79=\"\",\"\",HLOOKUP(C79,'MHP Family Income & Rent Limits'!$E$12:$L$26,14,FALSE))","v":""},{"$f":"IF(C79=\"\",\"\",HLOOKUP(C79,'MHP Family Income & Rent Limits'!$E$12:$L$26,15,FALSE))","v":""}]
[{"$f":"IF('2. Assisted & Restricted Units'!A80=\"\",\"\",'2. Assisted & Restricted Units'!A80)","v":""},{"$f":"IF('2. Assisted & Restricted Units'!B80=\"\",\"\",'2. Assisted & Restricted Units'!B80)","v":""},{"$f":"IF('2. Assisted & Restricted Units'!D80=\"\",\"\",'2. Assisted & Restricted Units'!D80)","v":""},{"$f":"IF('2. Assisted & Restricted Units'!E80=\"\",\"\",'2. Assisted & Restricted Units'!E80)","v":""},{"$f":"IF('2. Assisted & Restricted Units'!H80=\"\",\"\",'2. Assisted & Restricted Units'!H80)","v":""},{"$f":"_xlfn.IFS(E80=\"\",\"\",E80>BO80,$BP$6,E80>BN80,$BO$6,E80>BM80,$BN$6,E80>BL80,$BM$6,E80>BK80,$BL$6,E80>BJ80,$BK$6,E80>BI80,$BJ$6,E80>BH80,$BI$6,E80>BG80,$BH$6,E80>BF80,$BG$6,E80>BE80,$BF$6,E80>BD80,$BE$6,E80>BC80,$BD$6,E80>=0,$BC$6)","v":""},{"$f":"IF('2. Assisted & Restricted Units'!T80=\"\",\"\",'2. Assisted & Restricted Units'!T80)","v":""},{"$f":"IF('2. Assisted & Restricted Units'!I80=\"\",\"\",'2. Assisted & Restricted Units'!I80)","v":""},{"$f":"IF('2. Assisted & Restricted Units'!AP80=\"\",\"\",'2. Assisted & Restricted Units'!AP80)","v":0},{"$f":"IF('2. Assisted & Restricted Units'!AT80=\"\",\"\",'2. Assisted & Restricted Units'!AT80)","v":""},0,{"$f":"IF('2. Assisted & Restricted Units'!AV80=\"\",\"\",'2. Assisted & Restricted Units'!AV80)","v":""},{"$f":"IF('2. Assisted & Restricted Units'!L80=\"\",\"\",'2. Assisted & Restricted Units'!L80)","v":""},{"$f":"IF('2. Assisted & Restricted Units'!M80=\"\",\"\",'2. Assisted & Restricted Units'!M80)","v":""},{"$f":"IF('2. Assisted & Restricted Units'!O80=\"\",\"\",'2. Assisted & Restricted Units'!O80)","v":""},{"$f":"IF('2. Assisted & Restricted Units'!P80=\"\",\"\",'2. Assisted & Restricted Units'!P80)","v":""},{"$f":"IF('2. Assisted & Restricted Units'!Q80=\"\",\"\",'2. Assisted & Restricted Units'!Q80)","v":""},{"$f":"IF('2. Assisted & Restricted Units'!R80=\"\",\"\",'2. Assisted & Restricted Units'!R80)","v":""},{"$f":"IF(A80=\"\",\"\",'1. Checklist & Certification'!$K$1)","v":""},{"$f":"IF(A80=\"\",\"\",'1. Checklist & Certification'!$C$62)","v":""},{"$f":"IF(A80=\"\",\"\",'1. Checklist & Certification'!$K$62)","v":""},{"$f":"IF(A80=\"\",\"\",'1. Checklist & Certification'!$C$6)","v":""},{"$f":"IF(A80=\"\",\"\",'1. Checklist & Certification'!$G$4)","v":""},{"$f":"IF(A80=\"\",\"\",'1. Checklist & Certification'!$C$7)","v":""},{"$f":"IF(A80=\"\",\"\",'1. Checklist & Certification'!$C$8)","v":""},{"$f":"IF(A80=\"\",\"\",'1. Checklist & Certification'!$F$7)","v":""},{"$f":"IF(A80=\"\",\"\",'1. Checklist & Certification'!$F$8)","v":""},{"$f":"IF(A80=\"\",\"\",'1. Checklist & Certification'!$B$9)","v":""},{"$f":"IF(A80=\"\",\"\",'1. Checklist & Certification'!$F$9)","v":""},{"$f":"IF(A80=\"\",\"\",'1. Checklist & Certification'!$C$10)","v":""},{"$f":"IF(A80=\"\",\"\",'1. Checklist & Certification'!$C$11)","v":""},{"$f":"IF(A80=\"\",\"\",'1. Checklist & Certification'!$C$12)","v":""},{"$f":"IF(A80=\"\",\"\",'1. Checklist & Certification'!$B$14)","v":""},{"$f":"IF(A80=\"\",\"\",'1. Checklist & Certification'!$E$14)","v":""},{"$f":"IF(B80=\"\",\"\",'1. Checklist & Certification'!$G$14)","v":""},{"$f":"IF(A80=\"\",\"\",'MHP Family Income & Rent Limits'!$B$3)","v":""},{"$f":"IF(A80=\"\",\"\",'MHP Family Income & Rent Limits'!$J$3)","v":""},{"$f":"IF(A80=\"\",\"\",'MHP Family Income & Rent Limits'!$E$4)","v":""},{"$f":"IF(A80=\"\",\"\",'MHP Family Income & Rent Limits'!$C$7)","v":""},{"$f":"IF(A80=\"\",\"\",'MHP Family Income & Rent Limits'!$F$8)","v":""},{"$f":"IF(A80=\"\",\"\",'1. Checklist & Certification'!$G$4)","v":""},{"$f":"IF(A80=\"\",\"\",'1. Checklist & Certification'!$K$39)","v":""},{"$f":"IF(A80=\"\",\"\",'1. Checklist & Certification'!$K$43)","v":""},{"$f":"IF(A80=\"\",\"\",'1. Checklist & Certification'!$K$45)","v":""},{"$f":"IF(A80=\"\",\"\",'1. Checklist & Certification'!$K$49)","v":""},{"$f":"IF(A80=\"\",\"\",'1. Checklist & Certification'!$E$66)","v":""},{"$f":"IF(A80=\"\",\"\",'1. Checklist & Certification'!$E$67)","v":""},{"$f":"IF(A80=\"\",\"\",'1. Checklist & Certification'!$E$68)","v":""},{"$f":"IF(A80=\"\",\"\",'1. Checklist & Certification'!$G$66)","v":""},{"$f":"IF(A80=\"\",\"\",'1. Checklist & Certification'!$H$66)","v":""},{"$f":"IF(A80=\"\",\"\",'1. Checklist & Certification'!$I$66)","v":""},{"$f":"IF(A80=\"\",\"\",'1. Checklist & Certification'!$I$67)","v":""},{"$f":"IF(A80=\"\",\"\",'1. Checklist & Certification'!$I$68)","v":""},null,{"$f":"IF(C80=\"\",\"\",HLOOKUP(C80,'MHP Family Income & Rent Limits'!$E$12:$L$26,2,FALSE))","v":""},{"$f":"IF(C80=\"\",\"\",HLOOKUP(C80,'MHP Family Income & Rent Limits'!$E$12:$L$26,3,FALSE))","v":""},{"$f":"IF(C80=\"\",\"\",HLOOKUP(C80,'MHP Family Income & Rent Limits'!$E$12:$L$26,4,FALSE))","v":""},{"$f":"IF(C80=\"\",\"\",HLOOKUP(C80,'MHP Family Income & Rent Limits'!$E$12:$L$26,5,FALSE))","v":""},{"$f":"IF(C80=\"\",\"\",HLOOKUP(C80,'MHP Family Income & Rent Limits'!$E$12:$L$26,6,FALSE))","v":""},{"$f":"IF(C80=\"\",\"\",HLOOKUP(C80,'MHP Family Income & Rent Limits'!$E$12:$L$26,7,FALSE))","v":""},{"$f":"IF(C80=\"\",\"\",HLOOKUP(C80,'MHP Family Income & Rent Limits'!$E$12:$L$26,8,FALSE))","v":""},{"$f":"IF(C80=\"\",\"\",HLOOKUP(C80,'MHP Family Income & Rent Limits'!$E$12:$L$26,9,FALSE))","v":""},{"$f":"IF(C80=\"\",\"\",HLOOKUP(C80,'MHP Family Income & Rent Limits'!$E$12:$L$26,10,FALSE))","v":""},{"$f":"IF(C80=\"\",\"\",HLOOKUP(C80,'MHP Family Income & Rent Limits'!$E$12:$L$26,11,FALSE))","v":""},{"$f":"IF(C80=\"\",\"\",HLOOKUP(C80,'MHP Family Income & Rent Limits'!$E$12:$L$26,12,FALSE))","v":""},{"$f":"IF(C80=\"\",\"\",HLOOKUP(C80,'MHP Family Income & Rent Limits'!$E$12:$L$26,13,FALSE))","v":""},{"$f":"IF(C80=\"\",\"\",HLOOKUP(C80,'MHP Family Income & Rent Limits'!$E$12:$L$26,14,FALSE))","v":""},{"$f":"IF(C80=\"\",\"\",HLOOKUP(C80,'MHP Family Income & Rent Limits'!$E$12:$L$26,15,FALSE))","v":""}]
[{"$f":"IF('2. Assisted & Restricted Units'!A81=\"\",\"\",'2. Assisted & Restricted Units'!A81)","v":""},{"$f":"IF('2. Assisted & Restricted Units'!B81=\"\",\"\",'2. Assisted & Restricted Units'!B81)","v":""},{"$f":"IF('2. Assisted & Restricted Units'!D81=\"\",\"\",'2. Assisted & Restricted Units'!D81)","v":""},{"$f":"IF('2. Assisted & Restricted Units'!E81=\"\",\"\",'2. Assisted & Restricted Units'!E81)","v":""},{"$f":"IF('2. Assisted & Restricted Units'!H81=\"\",\"\",'2. Assisted & Restricted Units'!H81)","v":""},{"$f":"_xlfn.IFS(E81=\"\",\"\",E81>BO81,$BP$6,E81>BN81,$BO$6,E81>BM81,$BN$6,E81>BL81,$BM$6,E81>BK81,$BL$6,E81>BJ81,$BK$6,E81>BI81,$BJ$6,E81>BH81,$BI$6,E81>BG81,$BH$6,E81>BF81,$BG$6,E81>BE81,$BF$6,E81>BD81,$BE$6,E81>BC81,$BD$6,E81>=0,$BC$6)","v":""},{"$f":"IF('2. Assisted & Restricted Units'!T81=\"\",\"\",'2. Assisted & Restricted Units'!T81)","v":""},{"$f":"IF('2. Assisted & Restricted Units'!I81=\"\",\"\",'2. Assisted & Restricted Units'!I81)","v":""},{"$f":"IF('2. Assisted & Restricted Units'!AP81=\"\",\"\",'2. Assisted & Restricted Units'!AP81)","v":0},{"$f":"IF('2. Assisted & Restricted Units'!AT81=\"\",\"\",'2. Assisted & Restricted Units'!AT81)","v":""},0,{"$f":"IF('2. Assisted & Restricted Units'!AV81=\"\",\"\",'2. Assisted & Restricted Units'!AV81)","v":""},{"$f":"IF('2. Assisted & Restricted Units'!L81=\"\",\"\",'2. Assisted & Restricted Units'!L81)","v":""},{"$f":"IF('2. Assisted & Restricted Units'!M81=\"\",\"\",'2. Assisted & Restricted Units'!M81)","v":""},{"$f":"IF('2. Assisted & Restricted Units'!O81=\"\",\"\",'2. Assisted & Restricted Units'!O81)","v":""},{"$f":"IF('2. Assisted & Restricted Units'!P81=\"\",\"\",'2. Assisted & Restricted Units'!P81)","v":""},{"$f":"IF('2. Assisted & Restricted Units'!Q81=\"\",\"\",'2. Assisted & Restricted Units'!Q81)","v":""},{"$f":"IF('2. Assisted & Restricted Units'!R81=\"\",\"\",'2. Assisted & Restricted Units'!R81)","v":""},{"$f":"IF(A81=\"\",\"\",'1. Checklist & Certification'!$K$1)","v":""},{"$f":"IF(A81=\"\",\"\",'1. Checklist & Certification'!$C$62)","v":""},{"$f":"IF(A81=\"\",\"\",'1. Checklist & Certification'!$K$62)","v":""},{"$f":"IF(A81=\"\",\"\",'1. Checklist & Certification'!$C$6)","v":""},{"$f":"IF(A81=\"\",\"\",'1. Checklist & Certification'!$G$4)","v":""},{"$f":"IF(A81=\"\",\"\",'1. Checklist & Certification'!$C$7)","v":""},{"$f":"IF(A81=\"\",\"\",'1. Checklist & Certification'!$C$8)","v":""},{"$f":"IF(A81=\"\",\"\",'1. Checklist & Certification'!$F$7)","v":""},{"$f":"IF(A81=\"\",\"\",'1. Checklist & Certification'!$F$8)","v":""},{"$f":"IF(A81=\"\",\"\",'1. Checklist & Certification'!$B$9)","v":""},{"$f":"IF(A81=\"\",\"\",'1. Checklist & Certification'!$F$9)","v":""},{"$f":"IF(A81=\"\",\"\",'1. Checklist & Certification'!$C$10)","v":""},{"$f":"IF(A81=\"\",\"\",'1. Checklist & Certification'!$C$11)","v":""},{"$f":"IF(A81=\"\",\"\",'1. Checklist & Certification'!$C$12)","v":""},{"$f":"IF(A81=\"\",\"\",'1. Checklist & Certification'!$B$14)","v":""},{"$f":"IF(A81=\"\",\"\",'1. Checklist & Certification'!$E$14)","v":""},{"$f":"IF(B81=\"\",\"\",'1. Checklist & Certification'!$G$14)","v":""},{"$f":"IF(A81=\"\",\"\",'MHP Family Income & Rent Limits'!$B$3)","v":""},{"$f":"IF(A81=\"\",\"\",'MHP Family Income & Rent Limits'!$J$3)","v":""},{"$f":"IF(A81=\"\",\"\",'MHP Family Income & Rent Limits'!$E$4)","v":""},{"$f":"IF(A81=\"\",\"\",'MHP Family Income & Rent Limits'!$C$7)","v":""},{"$f":"IF(A81=\"\",\"\",'MHP Family Income & Rent Limits'!$F$8)","v":""},{"$f":"IF(A81=\"\",\"\",'1. Checklist & Certification'!$G$4)","v":""},{"$f":"IF(A81=\"\",\"\",'1. Checklist & Certification'!$K$39)","v":""},{"$f":"IF(A81=\"\",\"\",'1. Checklist & Certification'!$K$43)","v":""},{"$f":"IF(A81=\"\",\"\",'1. Checklist & Certification'!$K$45)","v":""},{"$f":"IF(A81=\"\",\"\",'1. Checklist & Certification'!$K$49)","v":""},{"$f":"IF(A81=\"\",\"\",'1. Checklist & Certification'!$E$66)","v":""},{"$f":"IF(A81=\"\",\"\",'1. Checklist & Certification'!$E$67)","v":""},{"$f":"IF(A81=\"\",\"\",'1. Checklist & Certification'!$E$68)","v":""},{"$f":"IF(A81=\"\",\"\",'1. Checklist & Certification'!$G$66)","v":""},{"$f":"IF(A81=\"\",\"\",'1. Checklist & Certification'!$H$66)","v":""},{"$f":"IF(A81=\"\",\"\",'1. Checklist & Certification'!$I$66)","v":""},{"$f":"IF(A81=\"\",\"\",'1. Checklist & Certification'!$I$67)","v":""},{"$f":"IF(A81=\"\",\"\",'1. Checklist & Certification'!$I$68)","v":""},null,{"$f":"IF(C81=\"\",\"\",HLOOKUP(C81,'MHP Family Income & Rent Limits'!$E$12:$L$26,2,FALSE))","v":""},{"$f":"IF(C81=\"\",\"\",HLOOKUP(C81,'MHP Family Income & Rent Limits'!$E$12:$L$26,3,FALSE))","v":""},{"$f":"IF(C81=\"\",\"\",HLOOKUP(C81,'MHP Family Income & Rent Limits'!$E$12:$L$26,4,FALSE))","v":""},{"$f":"IF(C81=\"\",\"\",HLOOKUP(C81,'MHP Family Income & Rent Limits'!$E$12:$L$26,5,FALSE))","v":""},{"$f":"IF(C81=\"\",\"\",HLOOKUP(C81,'MHP Family Income & Rent Limits'!$E$12:$L$26,6,FALSE))","v":""},{"$f":"IF(C81=\"\",\"\",HLOOKUP(C81,'MHP Family Income & Rent Limits'!$E$12:$L$26,7,FALSE))","v":""},{"$f":"IF(C81=\"\",\"\",HLOOKUP(C81,'MHP Family Income & Rent Limits'!$E$12:$L$26,8,FALSE))","v":""},{"$f":"IF(C81=\"\",\"\",HLOOKUP(C81,'MHP Family Income & Rent Limits'!$E$12:$L$26,9,FALSE))","v":""},{"$f":"IF(C81=\"\",\"\",HLOOKUP(C81,'MHP Family Income & Rent Limits'!$E$12:$L$26,10,FALSE))","v":""},{"$f":"IF(C81=\"\",\"\",HLOOKUP(C81,'MHP Family Income & Rent Limits'!$E$12:$L$26,11,FALSE))","v":""},{"$f":"IF(C81=\"\",\"\",HLOOKUP(C81,'MHP Family Income & Rent Limits'!$E$12:$L$26,12,FALSE))","v":""},{"$f":"IF(C81=\"\",\"\",HLOOKUP(C81,'MHP Family Income & Rent Limits'!$E$12:$L$26,13,FALSE))","v":""},{"$f":"IF(C81=\"\",\"\",HLOOKUP(C81,'MHP Family Income & Rent Limits'!$E$12:$L$26,14,FALSE))","v":""},{"$f":"IF(C81=\"\",\"\",HLOOKUP(C81,'MHP Family Income & Rent Limits'!$E$12:$L$26,15,FALSE))","v":""}]
[{"$f":"IF('2. Assisted & Restricted Units'!A82=\"\",\"\",'2. Assisted & Restricted Units'!A82)","v":""},{"$f":"IF('2. Assisted & Restricted Units'!B82=\"\",\"\",'2. Assisted & Restricted Units'!B82)","v":""},{"$f":"IF('2. Assisted & Restricted Units'!D82=\"\",\"\",'2. Assisted & Restricted Units'!D82)","v":""},{"$f":"IF('2. Assisted & Restricted Units'!E82=\"\",\"\",'2. Assisted & Restricted Units'!E82)","v":""},{"$f":"IF('2. Assisted & Restricted Units'!H82=\"\",\"\",'2. Assisted & Restricted Units'!H82)","v":""},{"$f":"_xlfn.IFS(E82=\"\",\"\",E82>BO82,$BP$6,E82>BN82,$BO$6,E82>BM82,$BN$6,E82>BL82,$BM$6,E82>BK82,$BL$6,E82>BJ82,$BK$6,E82>BI82,$BJ$6,E82>BH82,$BI$6,E82>BG82,$BH$6,E82>BF82,$BG$6,E82>BE82,$BF$6,E82>BD82,$BE$6,E82>BC82,$BD$6,E82>=0,$BC$6)","v":""},{"$f":"IF('2. Assisted & Restricted Units'!T82=\"\",\"\",'2. Assisted & Restricted Units'!T82)","v":""},{"$f":"IF('2. Assisted & Restricted Units'!I82=\"\",\"\",'2. Assisted & Restricted Units'!I82)","v":""},{"$f":"IF('2. Assisted & Restricted Units'!AP82=\"\",\"\",'2. Assisted & Restricted Units'!AP82)","v":0},{"$f":"IF('2. Assisted & Restricted Units'!AT82=\"\",\"\",'2. Assisted & Restricted Units'!AT82)","v":""},0,{"$f":"IF('2. Assisted & Restricted Units'!AV82=\"\",\"\",'2. Assisted & Restricted Units'!AV82)","v":""},{"$f":"IF('2. Assisted & Restricted Units'!L82=\"\",\"\",'2. Assisted & Restricted Units'!L82)","v":""},{"$f":"IF('2. Assisted & Restricted Units'!M82=\"\",\"\",'2. Assisted & Restricted Units'!M82)","v":""},{"$f":"IF('2. Assisted & Restricted Units'!O82=\"\",\"\",'2. Assisted & Restricted Units'!O82)","v":""},{"$f":"IF('2. Assisted & Restricted Units'!P82=\"\",\"\",'2. Assisted & Restricted Units'!P82)","v":""},{"$f":"IF('2. Assisted & Restricted Units'!Q82=\"\",\"\",'2. Assisted & Restricted Units'!Q82)","v":""},{"$f":"IF('2. Assisted & Restricted Units'!R82=\"\",\"\",'2. Assisted & Restricted Units'!R82)","v":""},{"$f":"IF(A82=\"\",\"\",'1. Checklist & Certification'!$K$1)","v":""},{"$f":"IF(A82=\"\",\"\",'1. Checklist & Certification'!$C$62)","v":""},{"$f":"IF(A82=\"\",\"\",'1. Checklist & Certification'!$K$62)","v":""},{"$f":"IF(A82=\"\",\"\",'1. Checklist & Certification'!$C$6)","v":""},{"$f":"IF(A82=\"\",\"\",'1. Checklist & Certification'!$G$4)","v":""},{"$f":"IF(A82=\"\",\"\",'1. Checklist & Certification'!$C$7)","v":""},{"$f":"IF(A82=\"\",\"\",'1. Checklist & Certification'!$C$8)","v":""},{"$f":"IF(A82=\"\",\"\",'1. Checklist & Certification'!$F$7)","v":""},{"$f":"IF(A82=\"\",\"\",'1. Checklist & Certification'!$F$8)","v":""},{"$f":"IF(A82=\"\",\"\",'1. Checklist & Certification'!$B$9)","v":""},{"$f":"IF(A82=\"\",\"\",'1. Checklist & Certification'!$F$9)","v":""},{"$f":"IF(A82=\"\",\"\",'1. Checklist & Certification'!$C$10)","v":""},{"$f":"IF(A82=\"\",\"\",'1. Checklist & Certification'!$C$11)","v":""},{"$f":"IF(A82=\"\",\"\",'1. Checklist & Certification'!$C$12)","v":""},{"$f":"IF(A82=\"\",\"\",'1. Checklist & Certification'!$B$14)","v":""},{"$f":"IF(A82=\"\",\"\",'1. Checklist & Certification'!$E$14)","v":""},{"$f":"IF(B82=\"\",\"\",'1. Checklist & Certification'!$G$14)","v":""},{"$f":"IF(A82=\"\",\"\",'MHP Family Income & Rent Limits'!$B$3)","v":""},{"$f":"IF(A82=\"\",\"\",'MHP Family Income & Rent Limits'!$J$3)","v":""},{"$f":"IF(A82=\"\",\"\",'MHP Family Income & Rent Limits'!$E$4)","v":""},{"$f":"IF(A82=\"\",\"\",'MHP Family Income & Rent Limits'!$C$7)","v":""},{"$f":"IF(A82=\"\",\"\",'MHP Family Income & Rent Limits'!$F$8)","v":""},{"$f":"IF(A82=\"\",\"\",'1. Checklist & Certification'!$G$4)","v":""},{"$f":"IF(A82=\"\",\"\",'1. Checklist & Certification'!$K$39)","v":""},{"$f":"IF(A82=\"\",\"\",'1. Checklist & Certification'!$K$43)","v":""},{"$f":"IF(A82=\"\",\"\",'1. Checklist & Certification'!$K$45)","v":""},{"$f":"IF(A82=\"\",\"\",'1. Checklist & Certification'!$K$49)","v":""},{"$f":"IF(A82=\"\",\"\",'1. Checklist & Certification'!$E$66)","v":""},{"$f":"IF(A82=\"\",\"\",'1. Checklist & Certification'!$E$67)","v":""},{"$f":"IF(A82=\"\",\"\",'1. Checklist & Certification'!$E$68)","v":""},{"$f":"IF(A82=\"\",\"\",'1. Checklist & Certification'!$G$66)","v":""},{"$f":"IF(A82=\"\",\"\",'1. Checklist & Certification'!$H$66)","v":""},{"$f":"IF(A82=\"\",\"\",'1. Checklist & Certification'!$I$66)","v":""},{"$f":"IF(A82=\"\",\"\",'1. Checklist & Certification'!$I$67)","v":""},{"$f":"IF(A82=\"\",\"\",'1. Checklist & Certification'!$I$68)","v":""},null,{"$f":"IF(C82=\"\",\"\",HLOOKUP(C82,'MHP Family Income & Rent Limits'!$E$12:$L$26,2,FALSE))","v":""},{"$f":"IF(C82=\"\",\"\",HLOOKUP(C82,'MHP Family Income & Rent Limits'!$E$12:$L$26,3,FALSE))","v":""},{"$f":"IF(C82=\"\",\"\",HLOOKUP(C82,'MHP Family Income & Rent Limits'!$E$12:$L$26,4,FALSE))","v":""},{"$f":"IF(C82=\"\",\"\",HLOOKUP(C82,'MHP Family Income & Rent Limits'!$E$12:$L$26,5,FALSE))","v":""},{"$f":"IF(C82=\"\",\"\",HLOOKUP(C82,'MHP Family Income & Rent Limits'!$E$12:$L$26,6,FALSE))","v":""},{"$f":"IF(C82=\"\",\"\",HLOOKUP(C82,'MHP Family Income & Rent Limits'!$E$12:$L$26,7,FALSE))","v":""},{"$f":"IF(C82=\"\",\"\",HLOOKUP(C82,'MHP Family Income & Rent Limits'!$E$12:$L$26,8,FALSE))","v":""},{"$f":"IF(C82=\"\",\"\",HLOOKUP(C82,'MHP Family Income & Rent Limits'!$E$12:$L$26,9,FALSE))","v":""},{"$f":"IF(C82=\"\",\"\",HLOOKUP(C82,'MHP Family Income & Rent Limits'!$E$12:$L$26,10,FALSE))","v":""},{"$f":"IF(C82=\"\",\"\",HLOOKUP(C82,'MHP Family Income & Rent Limits'!$E$12:$L$26,11,FALSE))","v":""},{"$f":"IF(C82=\"\",\"\",HLOOKUP(C82,'MHP Family Income & Rent Limits'!$E$12:$L$26,12,FALSE))","v":""},{"$f":"IF(C82=\"\",\"\",HLOOKUP(C82,'MHP Family Income & Rent Limits'!$E$12:$L$26,13,FALSE))","v":""},{"$f":"IF(C82=\"\",\"\",HLOOKUP(C82,'MHP Family Income & Rent Limits'!$E$12:$L$26,14,FALSE))","v":""},{"$f":"IF(C82=\"\",\"\",HLOOKUP(C82,'MHP Family Income & Rent Limits'!$E$12:$L$26,15,FALSE))","v":""}]
[{"$f":"IF('2. Assisted & Restricted Units'!A83=\"\",\"\",'2. Assisted & Restricted Units'!A83)","v":""},{"$f":"IF('2. Assisted & Restricted Units'!B83=\"\",\"\",'2. Assisted & Restricted Units'!B83)","v":""},{"$f":"IF('2. Assisted & Restricted Units'!D83=\"\",\"\",'2. Assisted & Restricted Units'!D83)","v":""},{"$f":"IF('2. Assisted & Restricted Units'!E83=\"\",\"\",'2. Assisted & Restricted Units'!E83)","v":""},{"$f":"IF('2. Assisted & Restricted Units'!H83=\"\",\"\",'2. Assisted & Restricted Units'!H83)","v":""},{"$f":"_xlfn.IFS(E83=\"\",\"\",E83>BO83,$BP$6,E83>BN83,$BO$6,E83>BM83,$BN$6,E83>BL83,$BM$6,E83>BK83,$BL$6,E83>BJ83,$BK$6,E83>BI83,$BJ$6,E83>BH83,$BI$6,E83>BG83,$BH$6,E83>BF83,$BG$6,E83>BE83,$BF$6,E83>BD83,$BE$6,E83>BC83,$BD$6,E83>=0,$BC$6)","v":""},{"$f":"IF('2. Assisted & Restricted Units'!T83=\"\",\"\",'2. Assisted & Restricted Units'!T83)","v":""},{"$f":"IF('2. Assisted & Restricted Units'!I83=\"\",\"\",'2. Assisted & Restricted Units'!I83)","v":""},{"$f":"IF('2. Assisted & Restricted Units'!AP83=\"\",\"\",'2. Assisted & Restricted Units'!AP83)","v":0},{"$f":"IF('2. Assisted & Restricted Units'!AT83=\"\",\"\",'2. Assisted & Restricted Units'!AT83)","v":""},0,{"$f":"IF('2. Assisted & Restricted Units'!AV83=\"\",\"\",'2. Assisted & Restricted Units'!AV83)","v":""},{"$f":"IF('2. Assisted & Restricted Units'!L83=\"\",\"\",'2. Assisted & Restricted Units'!L83)","v":""},{"$f":"IF('2. Assisted & Restricted Units'!M83=\"\",\"\",'2. Assisted & Restricted Units'!M83)","v":""},{"$f":"IF('2. Assisted & Restricted Units'!O83=\"\",\"\",'2. Assisted & Restricted Units'!O83)","v":""},{"$f":"IF('2. Assisted & Restricted Units'!P83=\"\",\"\",'2. Assisted & Restricted Units'!P83)","v":""},{"$f":"IF('2. Assisted & Restricted Units'!Q83=\"\",\"\",'2. Assisted & Restricted Units'!Q83)","v":""},{"$f":"IF('2. Assisted & Restricted Units'!R83=\"\",\"\",'2. Assisted & Restricted Units'!R83)","v":""},{"$f":"IF(A83=\"\",\"\",'1. Checklist & Certification'!$K$1)","v":""},{"$f":"IF(A83=\"\",\"\",'1. Checklist & Certification'!$C$62)","v":""},{"$f":"IF(A83=\"\",\"\",'1. Checklist & Certification'!$K$62)","v":""},{"$f":"IF(A83=\"\",\"\",'1. Checklist & Certification'!$C$6)","v":""},{"$f":"IF(A83=\"\",\"\",'1. Checklist & Certification'!$G$4)","v":""},{"$f":"IF(A83=\"\",\"\",'1. Checklist & Certification'!$C$7)","v":""},{"$f":"IF(A83=\"\",\"\",'1. Checklist & Certification'!$C$8)","v":""},{"$f":"IF(A83=\"\",\"\",'1. Checklist & Certification'!$F$7)","v":""},{"$f":"IF(A83=\"\",\"\",'1. Checklist & Certification'!$F$8)","v":""},{"$f":"IF(A83=\"\",\"\",'1. Checklist & Certification'!$B$9)","v":""},{"$f":"IF(A83=\"\",\"\",'1. Checklist & Certification'!$F$9)","v":""},{"$f":"IF(A83=\"\",\"\",'1. Checklist & Certification'!$C$10)","v":""},{"$f":"IF(A83=\"\",\"\",'1. Checklist & Certification'!$C$11)","v":""},{"$f":"IF(A83=\"\",\"\",'1. Checklist & Certification'!$C$12)","v":""},{"$f":"IF(A83=\"\",\"\",'1. Checklist & Certification'!$B$14)","v":""},{"$f":"IF(A83=\"\",\"\",'1. Checklist & Certification'!$E$14)","v":""},{"$f":"IF(B83=\"\",\"\",'1. Checklist & Certification'!$G$14)","v":""},{"$f":"IF(A83=\"\",\"\",'MHP Family Income & Rent Limits'!$B$3)","v":""},{"$f":"IF(A83=\"\",\"\",'MHP Family Income & Rent Limits'!$J$3)","v":""},{"$f":"IF(A83=\"\",\"\",'MHP Family Income & Rent Limits'!$E$4)","v":""},{"$f":"IF(A83=\"\",\"\",'MHP Family Income & Rent Limits'!$C$7)","v":""},{"$f":"IF(A83=\"\",\"\",'MHP Family Income & Rent Limits'!$F$8)","v":""},{"$f":"IF(A83=\"\",\"\",'1. Checklist & Certification'!$G$4)","v":""},{"$f":"IF(A83=\"\",\"\",'1. Checklist & Certification'!$K$39)","v":""},{"$f":"IF(A83=\"\",\"\",'1. Checklist & Certification'!$K$43)","v":""},{"$f":"IF(A83=\"\",\"\",'1. Checklist & Certification'!$K$45)","v":""},{"$f":"IF(A83=\"\",\"\",'1. Checklist & Certification'!$K$49)","v":""},{"$f":"IF(A83=\"\",\"\",'1. Checklist & Certification'!$E$66)","v":""},{"$f":"IF(A83=\"\",\"\",'1. Checklist & Certification'!$E$67)","v":""},{"$f":"IF(A83=\"\",\"\",'1. Checklist & Certification'!$E$68)","v":""},{"$f":"IF(A83=\"\",\"\",'1. Checklist & Certification'!$G$66)","v":""},{"$f":"IF(A83=\"\",\"\",'1. Checklist & Certification'!$H$66)","v":""},{"$f":"IF(A83=\"\",\"\",'1. Checklist & Certification'!$I$66)","v":""},{"$f":"IF(A83=\"\",\"\",'1. Checklist & Certification'!$I$67)","v":""},{"$f":"IF(A83=\"\",\"\",'1. Checklist & Certification'!$I$68)","v":""},null,{"$f":"IF(C83=\"\",\"\",HLOOKUP(C83,'MHP Family Income & Rent Limits'!$E$12:$L$26,2,FALSE))","v":""},{"$f":"IF(C83=\"\",\"\",HLOOKUP(C83,'MHP Family Income & Rent Limits'!$E$12:$L$26,3,FALSE))","v":""},{"$f":"IF(C83=\"\",\"\",HLOOKUP(C83,'MHP Family Income & Rent Limits'!$E$12:$L$26,4,FALSE))","v":""},{"$f":"IF(C83=\"\",\"\",HLOOKUP(C83,'MHP Family Income & Rent Limits'!$E$12:$L$26,5,FALSE))","v":""},{"$f":"IF(C83=\"\",\"\",HLOOKUP(C83,'MHP Family Income & Rent Limits'!$E$12:$L$26,6,FALSE))","v":""},{"$f":"IF(C83=\"\",\"\",HLOOKUP(C83,'MHP Family Income & Rent Limits'!$E$12:$L$26,7,FALSE))","v":""},{"$f":"IF(C83=\"\",\"\",HLOOKUP(C83,'MHP Family Income & Rent Limits'!$E$12:$L$26,8,FALSE))","v":""},{"$f":"IF(C83=\"\",\"\",HLOOKUP(C83,'MHP Family Income & Rent Limits'!$E$12:$L$26,9,FALSE))","v":""},{"$f":"IF(C83=\"\",\"\",HLOOKUP(C83,'MHP Family Income & Rent Limits'!$E$12:$L$26,10,FALSE))","v":""},{"$f":"IF(C83=\"\",\"\",HLOOKUP(C83,'MHP Family Income & Rent Limits'!$E$12:$L$26,11,FALSE))","v":""},{"$f":"IF(C83=\"\",\"\",HLOOKUP(C83,'MHP Family Income & Rent Limits'!$E$12:$L$26,12,FALSE))","v":""},{"$f":"IF(C83=\"\",\"\",HLOOKUP(C83,'MHP Family Income & Rent Limits'!$E$12:$L$26,13,FALSE))","v":""},{"$f":"IF(C83=\"\",\"\",HLOOKUP(C83,'MHP Family Income & Rent Limits'!$E$12:$L$26,14,FALSE))","v":""},{"$f":"IF(C83=\"\",\"\",HLOOKUP(C83,'MHP Family Income & Rent Limits'!$E$12:$L$26,15,FALSE))","v":""}]
[{"$f":"IF('2. Assisted & Restricted Units'!A84=\"\",\"\",'2. Assisted & Restricted Units'!A84)","v":""},{"$f":"IF('2. Assisted & Restricted Units'!B84=\"\",\"\",'2. Assisted & Restricted Units'!B84)","v":""},{"$f":"IF('2. Assisted & Restricted Units'!D84=\"\",\"\",'2. Assisted & Restricted Units'!D84)","v":""},{"$f":"IF('2. Assisted & Restricted Units'!E84=\"\",\"\",'2. Assisted & Restricted Units'!E84)","v":""},{"$f":"IF('2. Assisted & Restricted Units'!H84=\"\",\"\",'2. Assisted & Restricted Units'!H84)","v":""},{"$f":"_xlfn.IFS(E84=\"\",\"\",E84>BO84,$BP$6,E84>BN84,$BO$6,E84>BM84,$BN$6,E84>BL84,$BM$6,E84>BK84,$BL$6,E84>BJ84,$BK$6,E84>BI84,$BJ$6,E84>BH84,$BI$6,E84>BG84,$BH$6,E84>BF84,$BG$6,E84>BE84,$BF$6,E84>BD84,$BE$6,E84>BC84,$BD$6,E84>=0,$BC$6)","v":""},{"$f":"IF('2. Assisted & Restricted Units'!T84=\"\",\"\",'2. Assisted & Restricted Units'!T84)","v":""},{"$f":"IF('2. Assisted & Restricted Units'!I84=\"\",\"\",'2. Assisted & Restricted Units'!I84)","v":""},{"$f":"IF('2. Assisted & Restricted Units'!AP84=\"\",\"\",'2. Assisted & Restricted Units'!AP84)","v":0},{"$f":"IF('2. Assisted & Restricted Units'!AT84=\"\",\"\",'2. Assisted & Restricted Units'!AT84)","v":""},0,{"$f":"IF('2. Assisted & Restricted Units'!AV84=\"\",\"\",'2. Assisted & Restricted Units'!AV84)","v":""},{"$f":"IF('2. Assisted & Restricted Units'!L84=\"\",\"\",'2. Assisted & Restricted Units'!L84)","v":""},{"$f":"IF('2. Assisted & Restricted Units'!M84=\"\",\"\",'2. Assisted & Restricted Units'!M84)","v":""},{"$f":"IF('2. Assisted & Restricted Units'!O84=\"\",\"\",'2. Assisted & Restricted Units'!O84)","v":""},{"$f":"IF('2. Assisted & Restricted Units'!P84=\"\",\"\",'2. Assisted & Restricted Units'!P84)","v":""},{"$f":"IF('2. Assisted & Restricted Units'!Q84=\"\",\"\",'2. Assisted & Restricted Units'!Q84)","v":""},{"$f":"IF('2. Assisted & Restricted Units'!R84=\"\",\"\",'2. Assisted & Restricted Units'!R84)","v":""},{"$f":"IF(A84=\"\",\"\",'1. Checklist & Certification'!$K$1)","v":""},{"$f":"IF(A84=\"\",\"\",'1. Checklist & Certification'!$C$62)","v":""},{"$f":"IF(A84=\"\",\"\",'1. Checklist & Certification'!$K$62)","v":""},{"$f":"IF(A84=\"\",\"\",'1. Checklist & Certification'!$C$6)","v":""},{"$f":"IF(A84=\"\",\"\",'1. Checklist & Certification'!$G$4)","v":""},{"$f":"IF(A84=\"\",\"\",'1. Checklist & Certification'!$C$7)","v":""},{"$f":"IF(A84=\"\",\"\",'1. Checklist & Certification'!$C$8)","v":""},{"$f":"IF(A84=\"\",\"\",'1. Checklist & Certification'!$F$7)","v":""},{"$f":"IF(A84=\"\",\"\",'1. Checklist & Certification'!$F$8)","v":""},{"$f":"IF(A84=\"\",\"\",'1. Checklist & Certification'!$B$9)","v":""},{"$f":"IF(A84=\"\",\"\",'1. Checklist & Certification'!$F$9)","v":""},{"$f":"IF(A84=\"\",\"\",'1. Checklist & Certification'!$C$10)","v":""},{"$f":"IF(A84=\"\",\"\",'1. Checklist & Certification'!$C$11)","v":""},{"$f":"IF(A84=\"\",\"\",'1. Checklist & Certification'!$C$12)","v":""},{"$f":"IF(A84=\"\",\"\",'1. Checklist & Certification'!$B$14)","v":""},{"$f":"IF(A84=\"\",\"\",'1. Checklist & Certification'!$E$14)","v":""},{"$f":"IF(B84=\"\",\"\",'1. Checklist & Certification'!$G$14)","v":""},{"$f":"IF(A84=\"\",\"\",'MHP Family Income & Rent Limits'!$B$3)","v":""},{"$f":"IF(A84=\"\",\"\",'MHP Family Income & Rent Limits'!$J$3)","v":""},{"$f":"IF(A84=\"\",\"\",'MHP Family Income & Rent Limits'!$E$4)","v":""},{"$f":"IF(A84=\"\",\"\",'MHP Family Income & Rent Limits'!$C$7)","v":""},{"$f":"IF(A84=\"\",\"\",'MHP Family Income & Rent Limits'!$F$8)","v":""},{"$f":"IF(A84=\"\",\"\",'1. Checklist & Certification'!$G$4)","v":""},{"$f":"IF(A84=\"\",\"\",'1. Checklist & Certification'!$K$39)","v":""},{"$f":"IF(A84=\"\",\"\",'1. Checklist & Certification'!$K$43)","v":""},{"$f":"IF(A84=\"\",\"\",'1. Checklist & Certification'!$K$45)","v":""},{"$f":"IF(A84=\"\",\"\",'1. Checklist & Certification'!$K$49)","v":""},{"$f":"IF(A84=\"\",\"\",'1. Checklist & Certification'!$E$66)","v":""},{"$f":"IF(A84=\"\",\"\",'1. Checklist & Certification'!$E$67)","v":""},{"$f":"IF(A84=\"\",\"\",'1. Checklist & Certification'!$E$68)","v":""},{"$f":"IF(A84=\"\",\"\",'1. Checklist & Certification'!$G$66)","v":""},{"$f":"IF(A84=\"\",\"\",'1. Checklist & Certification'!$H$66)","v":""},{"$f":"IF(A84=\"\",\"\",'1. Checklist & Certification'!$I$66)","v":""},{"$f":"IF(A84=\"\",\"\",'1. Checklist & Certification'!$I$67)","v":""},{"$f":"IF(A84=\"\",\"\",'1. Checklist & Certification'!$I$68)","v":""},null,{"$f":"IF(C84=\"\",\"\",HLOOKUP(C84,'MHP Family Income & Rent Limits'!$E$12:$L$26,2,FALSE))","v":""},{"$f":"IF(C84=\"\",\"\",HLOOKUP(C84,'MHP Family Income & Rent Limits'!$E$12:$L$26,3,FALSE))","v":""},{"$f":"IF(C84=\"\",\"\",HLOOKUP(C84,'MHP Family Income & Rent Limits'!$E$12:$L$26,4,FALSE))","v":""},{"$f":"IF(C84=\"\",\"\",HLOOKUP(C84,'MHP Family Income & Rent Limits'!$E$12:$L$26,5,FALSE))","v":""},{"$f":"IF(C84=\"\",\"\",HLOOKUP(C84,'MHP Family Income & Rent Limits'!$E$12:$L$26,6,FALSE))","v":""},{"$f":"IF(C84=\"\",\"\",HLOOKUP(C84,'MHP Family Income & Rent Limits'!$E$12:$L$26,7,FALSE))","v":""},{"$f":"IF(C84=\"\",\"\",HLOOKUP(C84,'MHP Family Income & Rent Limits'!$E$12:$L$26,8,FALSE))","v":""},{"$f":"IF(C84=\"\",\"\",HLOOKUP(C84,'MHP Family Income & Rent Limits'!$E$12:$L$26,9,FALSE))","v":""},{"$f":"IF(C84=\"\",\"\",HLOOKUP(C84,'MHP Family Income & Rent Limits'!$E$12:$L$26,10,FALSE))","v":""},{"$f":"IF(C84=\"\",\"\",HLOOKUP(C84,'MHP Family Income & Rent Limits'!$E$12:$L$26,11,FALSE))","v":""},{"$f":"IF(C84=\"\",\"\",HLOOKUP(C84,'MHP Family Income & Rent Limits'!$E$12:$L$26,12,FALSE))","v":""},{"$f":"IF(C84=\"\",\"\",HLOOKUP(C84,'MHP Family Income & Rent Limits'!$E$12:$L$26,13,FALSE))","v":""},{"$f":"IF(C84=\"\",\"\",HLOOKUP(C84,'MHP Family Income & Rent Limits'!$E$12:$L$26,14,FALSE))","v":""},{"$f":"IF(C84=\"\",\"\",HLOOKUP(C84,'MHP Family Income & Rent Limits'!$E$12:$L$26,15,FALSE))","v":""}]
[{"$f":"IF('2. Assisted & Restricted Units'!A85=\"\",\"\",'2. Assisted & Restricted Units'!A85)","v":""},{"$f":"IF('2. Assisted & Restricted Units'!B85=\"\",\"\",'2. Assisted & Restricted Units'!B85)","v":""},{"$f":"IF('2. Assisted & Restricted Units'!D85=\"\",\"\",'2. Assisted & Restricted Units'!D85)","v":""},{"$f":"IF('2. Assisted & Restricted Units'!E85=\"\",\"\",'2. Assisted & Restricted Units'!E85)","v":""},{"$f":"IF('2. Assisted & Restricted Units'!H85=\"\",\"\",'2. Assisted & Restricted Units'!H85)","v":""},{"$f":"_xlfn.IFS(E85=\"\",\"\",E85>BO85,$BP$6,E85>BN85,$BO$6,E85>BM85,$BN$6,E85>BL85,$BM$6,E85>BK85,$BL$6,E85>BJ85,$BK$6,E85>BI85,$BJ$6,E85>BH85,$BI$6,E85>BG85,$BH$6,E85>BF85,$BG$6,E85>BE85,$BF$6,E85>BD85,$BE$6,E85>BC85,$BD$6,E85>=0,$BC$6)","v":""},{"$f":"IF('2. Assisted & Restricted Units'!T85=\"\",\"\",'2. Assisted & Restricted Units'!T85)","v":""},{"$f":"IF('2. Assisted & Restricted Units'!I85=\"\",\"\",'2. Assisted & Restricted Units'!I85)","v":""},{"$f":"IF('2. Assisted & Restricted Units'!AP85=\"\",\"\",'2. Assisted & Restricted Units'!AP85)","v":0},{"$f":"IF('2. Assisted & Restricted Units'!AT85=\"\",\"\",'2. Assisted & Restricted Units'!AT85)","v":""},0,{"$f":"IF('2. Assisted & Restricted Units'!AV85=\"\",\"\",'2. Assisted & Restricted Units'!AV85)","v":""},{"$f":"IF('2. Assisted & Restricted Units'!L85=\"\",\"\",'2. Assisted & Restricted Units'!L85)","v":""},{"$f":"IF('2. Assisted & Restricted Units'!M85=\"\",\"\",'2. Assisted & Restricted Units'!M85)","v":""},{"$f":"IF('2. Assisted & Restricted Units'!O85=\"\",\"\",'2. Assisted & Restricted Units'!O85)","v":""},{"$f":"IF('2. Assisted & Restricted Units'!P85=\"\",\"\",'2. Assisted & Restricted Units'!P85)","v":""},{"$f":"IF('2. Assisted & Restricted Units'!Q85=\"\",\"\",'2. Assisted & Restricted Units'!Q85)","v":""},{"$f":"IF('2. Assisted & Restricted Units'!R85=\"\",\"\",'2. Assisted & Restricted Units'!R85)","v":""},{"$f":"IF(A85=\"\",\"\",'1. Checklist & Certification'!$K$1)","v":""},{"$f":"IF(A85=\"\",\"\",'1. Checklist & Certification'!$C$62)","v":""},{"$f":"IF(A85=\"\",\"\",'1. Checklist & Certification'!$K$62)","v":""},{"$f":"IF(A85=\"\",\"\",'1. Checklist & Certification'!$C$6)","v":""},{"$f":"IF(A85=\"\",\"\",'1. Checklist & Certification'!$G$4)","v":""},{"$f":"IF(A85=\"\",\"\",'1. Checklist & Certification'!$C$7)","v":""},{"$f":"IF(A85=\"\",\"\",'1. Checklist & Certification'!$C$8)","v":""},{"$f":"IF(A85=\"\",\"\",'1. Checklist & Certification'!$F$7)","v":""},{"$f":"IF(A85=\"\",\"\",'1. Checklist & Certification'!$F$8)","v":""},{"$f":"IF(A85=\"\",\"\",'1. Checklist & Certification'!$B$9)","v":""},{"$f":"IF(A85=\"\",\"\",'1. Checklist & Certification'!$F$9)","v":""},{"$f":"IF(A85=\"\",\"\",'1. Checklist & Certification'!$C$10)","v":""},{"$f":"IF(A85=\"\",\"\",'1. Checklist & Certification'!$C$11)","v":""},{"$f":"IF(A85=\"\",\"\",'1. Checklist & Certification'!$C$12)","v":""},{"$f":"IF(A85=\"\",\"\",'1. Checklist & Certification'!$B$14)","v":""},{"$f":"IF(A85=\"\",\"\",'1. Checklist & Certification'!$E$14)","v":""},{"$f":"IF(B85=\"\",\"\",'1. Checklist & Certification'!$G$14)","v":""},{"$f":"IF(A85=\"\",\"\",'MHP Family Income & Rent Limits'!$B$3)","v":""},{"$f":"IF(A85=\"\",\"\",'MHP Family Income & Rent Limits'!$J$3)","v":""},{"$f":"IF(A85=\"\",\"\",'MHP Family Income & Rent Limits'!$E$4)","v":""},{"$f":"IF(A85=\"\",\"\",'MHP Family Income & Rent Limits'!$C$7)","v":""},{"$f":"IF(A85=\"\",\"\",'MHP Family Income & Rent Limits'!$F$8)","v":""},{"$f":"IF(A85=\"\",\"\",'1. Checklist & Certification'!$G$4)","v":""},{"$f":"IF(A85=\"\",\"\",'1. Checklist & Certification'!$K$39)","v":""},{"$f":"IF(A85=\"\",\"\",'1. Checklist & Certification'!$K$43)","v":""},{"$f":"IF(A85=\"\",\"\",'1. Checklist & Certification'!$K$45)","v":""},{"$f":"IF(A85=\"\",\"\",'1. Checklist & Certification'!$K$49)","v":""},{"$f":"IF(A85=\"\",\"\",'1. Checklist & Certification'!$E$66)","v":""},{"$f":"IF(A85=\"\",\"\",'1. Checklist & Certification'!$E$67)","v":""},{"$f":"IF(A85=\"\",\"\",'1. Checklist & Certification'!$E$68)","v":""},{"$f":"IF(A85=\"\",\"\",'1. Checklist & Certification'!$G$66)","v":""},{"$f":"IF(A85=\"\",\"\",'1. Checklist & Certification'!$H$66)","v":""},{"$f":"IF(A85=\"\",\"\",'1. Checklist & Certification'!$I$66)","v":""},{"$f":"IF(A85=\"\",\"\",'1. Checklist & Certification'!$I$67)","v":""},{"$f":"IF(A85=\"\",\"\",'1. Checklist & Certification'!$I$68)","v":""},null,{"$f":"IF(C85=\"\",\"\",HLOOKUP(C85,'MHP Family Income & Rent Limits'!$E$12:$L$26,2,FALSE))","v":""},{"$f":"IF(C85=\"\",\"\",HLOOKUP(C85,'MHP Family Income & Rent Limits'!$E$12:$L$26,3,FALSE))","v":""},{"$f":"IF(C85=\"\",\"\",HLOOKUP(C85,'MHP Family Income & Rent Limits'!$E$12:$L$26,4,FALSE))","v":""},{"$f":"IF(C85=\"\",\"\",HLOOKUP(C85,'MHP Family Income & Rent Limits'!$E$12:$L$26,5,FALSE))","v":""},{"$f":"IF(C85=\"\",\"\",HLOOKUP(C85,'MHP Family Income & Rent Limits'!$E$12:$L$26,6,FALSE))","v":""},{"$f":"IF(C85=\"\",\"\",HLOOKUP(C85,'MHP Family Income & Rent Limits'!$E$12:$L$26,7,FALSE))","v":""},{"$f":"IF(C85=\"\",\"\",HLOOKUP(C85,'MHP Family Income & Rent Limits'!$E$12:$L$26,8,FALSE))","v":""},{"$f":"IF(C85=\"\",\"\",HLOOKUP(C85,'MHP Family Income & Rent Limits'!$E$12:$L$26,9,FALSE))","v":""},{"$f":"IF(C85=\"\",\"\",HLOOKUP(C85,'MHP Family Income & Rent Limits'!$E$12:$L$26,10,FALSE))","v":""},{"$f":"IF(C85=\"\",\"\",HLOOKUP(C85,'MHP Family Income & Rent Limits'!$E$12:$L$26,11,FALSE))","v":""},{"$f":"IF(C85=\"\",\"\",HLOOKUP(C85,'MHP Family Income & Rent Limits'!$E$12:$L$26,12,FALSE))","v":""},{"$f":"IF(C85=\"\",\"\",HLOOKUP(C85,'MHP Family Income & Rent Limits'!$E$12:$L$26,13,FALSE))","v":""},{"$f":"IF(C85=\"\",\"\",HLOOKUP(C85,'MHP Family Income & Rent Limits'!$E$12:$L$26,14,FALSE))","v":""},{"$f":"IF(C85=\"\",\"\",HLOOKUP(C85,'MHP Family Income & Rent Limits'!$E$12:$L$26,15,FALSE))","v":""}]
[{"$f":"IF('2. Assisted & Restricted Units'!A86=\"\",\"\",'2. Assisted & Restricted Units'!A86)","v":""},{"$f":"IF('2. Assisted & Restricted Units'!B86=\"\",\"\",'2. Assisted & Restricted Units'!B86)","v":""},{"$f":"IF('2. Assisted & Restricted Units'!D86=\"\",\"\",'2. Assisted & Restricted Units'!D86)","v":""},{"$f":"IF('2. Assisted & Restricted Units'!E86=\"\",\"\",'2. Assisted & Restricted Units'!E86)","v":""},{"$f":"IF('2. Assisted & Restricted Units'!H86=\"\",\"\",'2. Assisted & Restricted Units'!H86)","v":""},{"$f":"_xlfn.IFS(E86=\"\",\"\",E86>BO86,$BP$6,E86>BN86,$BO$6,E86>BM86,$BN$6,E86>BL86,$BM$6,E86>BK86,$BL$6,E86>BJ86,$BK$6,E86>BI86,$BJ$6,E86>BH86,$BI$6,E86>BG86,$BH$6,E86>BF86,$BG$6,E86>BE86,$BF$6,E86>BD86,$BE$6,E86>BC86,$BD$6,E86>=0,$BC$6)","v":""},{"$f":"IF('2. Assisted & Restricted Units'!T86=\"\",\"\",'2. Assisted & Restricted Units'!T86)","v":""},{"$f":"IF('2. Assisted & Restricted Units'!I86=\"\",\"\",'2. Assisted & Restricted Units'!I86)","v":""},{"$f":"IF('2. Assisted & Restricted Units'!AP86=\"\",\"\",'2. Assisted & Restricted Units'!AP86)","v":0},{"$f":"IF('2. Assisted & Restricted Units'!AT86=\"\",\"\",'2. Assisted & Restricted Units'!AT86)","v":""},0,{"$f":"IF('2. Assisted & Restricted Units'!AV86=\"\",\"\",'2. Assisted & Restricted Units'!AV86)","v":""},{"$f":"IF('2. Assisted & Restricted Units'!L86=\"\",\"\",'2. Assisted & Restricted Units'!L86)","v":""},{"$f":"IF('2. Assisted & Restricted Units'!M86=\"\",\"\",'2. Assisted & Restricted Units'!M86)","v":""},{"$f":"IF('2. Assisted & Restricted Units'!O86=\"\",\"\",'2. Assisted & Restricted Units'!O86)","v":""},{"$f":"IF('2. Assisted & Restricted Units'!P86=\"\",\"\",'2. Assisted & Restricted Units'!P86)","v":""},{"$f":"IF('2. Assisted & Restricted Units'!Q86=\"\",\"\",'2. Assisted & Restricted Units'!Q86)","v":""},{"$f":"IF('2. Assisted & Restricted Units'!R86=\"\",\"\",'2. Assisted & Restricted Units'!R86)","v":""},{"$f":"IF(A86=\"\",\"\",'1. Checklist & Certification'!$K$1)","v":""},{"$f":"IF(A86=\"\",\"\",'1. Checklist & Certification'!$C$62)","v":""},{"$f":"IF(A86=\"\",\"\",'1. Checklist & Certification'!$K$62)","v":""},{"$f":"IF(A86=\"\",\"\",'1. Checklist & Certification'!$C$6)","v":""},{"$f":"IF(A86=\"\",\"\",'1. Checklist & Certification'!$G$4)","v":""},{"$f":"IF(A86=\"\",\"\",'1. Checklist & Certification'!$C$7)","v":""},{"$f":"IF(A86=\"\",\"\",'1. Checklist & Certification'!$C$8)","v":""},{"$f":"IF(A86=\"\",\"\",'1. Checklist & Certification'!$F$7)","v":""},{"$f":"IF(A86=\"\",\"\",'1. Checklist & Certification'!$F$8)","v":""},{"$f":"IF(A86=\"\",\"\",'1. Checklist & Certification'!$B$9)","v":""},{"$f":"IF(A86=\"\",\"\",'1. Checklist & Certification'!$F$9)","v":""},{"$f":"IF(A86=\"\",\"\",'1. Checklist & Certification'!$C$10)","v":""},{"$f":"IF(A86=\"\",\"\",'1. Checklist & Certification'!$C$11)","v":""},{"$f":"IF(A86=\"\",\"\",'1. Checklist & Certification'!$C$12)","v":""},{"$f":"IF(A86=\"\",\"\",'1. Checklist & Certification'!$B$14)","v":""},{"$f":"IF(A86=\"\",\"\",'1. Checklist & Certification'!$E$14)","v":""},{"$f":"IF(B86=\"\",\"\",'1. Checklist & Certification'!$G$14)","v":""},{"$f":"IF(A86=\"\",\"\",'MHP Family Income & Rent Limits'!$B$3)","v":""},{"$f":"IF(A86=\"\",\"\",'MHP Family Income & Rent Limits'!$J$3)","v":""},{"$f":"IF(A86=\"\",\"\",'MHP Family Income & Rent Limits'!$E$4)","v":""},{"$f":"IF(A86=\"\",\"\",'MHP Family Income & Rent Limits'!$C$7)","v":""},{"$f":"IF(A86=\"\",\"\",'MHP Family Income & Rent Limits'!$F$8)","v":""},{"$f":"IF(A86=\"\",\"\",'1. Checklist & Certification'!$G$4)","v":""},{"$f":"IF(A86=\"\",\"\",'1. Checklist & Certification'!$K$39)","v":""},{"$f":"IF(A86=\"\",\"\",'1. Checklist & Certification'!$K$43)","v":""},{"$f":"IF(A86=\"\",\"\",'1. Checklist & Certification'!$K$45)","v":""},{"$f":"IF(A86=\"\",\"\",'1. Checklist & Certification'!$K$49)","v":""},{"$f":"IF(A86=\"\",\"\",'1. Checklist & Certification'!$E$66)","v":""},{"$f":"IF(A86=\"\",\"\",'1. Checklist & Certification'!$E$67)","v":""},{"$f":"IF(A86=\"\",\"\",'1. Checklist & Certification'!$E$68)","v":""},{"$f":"IF(A86=\"\",\"\",'1. Checklist & Certification'!$G$66)","v":""},{"$f":"IF(A86=\"\",\"\",'1. Checklist & Certification'!$H$66)","v":""},{"$f":"IF(A86=\"\",\"\",'1. Checklist & Certification'!$I$66)","v":""},{"$f":"IF(A86=\"\",\"\",'1. Checklist & Certification'!$I$67)","v":""},{"$f":"IF(A86=\"\",\"\",'1. Checklist & Certification'!$I$68)","v":""},null,{"$f":"IF(C86=\"\",\"\",HLOOKUP(C86,'MHP Family Income & Rent Limits'!$E$12:$L$26,2,FALSE))","v":""},{"$f":"IF(C86=\"\",\"\",HLOOKUP(C86,'MHP Family Income & Rent Limits'!$E$12:$L$26,3,FALSE))","v":""},{"$f":"IF(C86=\"\",\"\",HLOOKUP(C86,'MHP Family Income & Rent Limits'!$E$12:$L$26,4,FALSE))","v":""},{"$f":"IF(C86=\"\",\"\",HLOOKUP(C86,'MHP Family Income & Rent Limits'!$E$12:$L$26,5,FALSE))","v":""},{"$f":"IF(C86=\"\",\"\",HLOOKUP(C86,'MHP Family Income & Rent Limits'!$E$12:$L$26,6,FALSE))","v":""},{"$f":"IF(C86=\"\",\"\",HLOOKUP(C86,'MHP Family Income & Rent Limits'!$E$12:$L$26,7,FALSE))","v":""},{"$f":"IF(C86=\"\",\"\",HLOOKUP(C86,'MHP Family Income & Rent Limits'!$E$12:$L$26,8,FALSE))","v":""},{"$f":"IF(C86=\"\",\"\",HLOOKUP(C86,'MHP Family Income & Rent Limits'!$E$12:$L$26,9,FALSE))","v":""},{"$f":"IF(C86=\"\",\"\",HLOOKUP(C86,'MHP Family Income & Rent Limits'!$E$12:$L$26,10,FALSE))","v":""},{"$f":"IF(C86=\"\",\"\",HLOOKUP(C86,'MHP Family Income & Rent Limits'!$E$12:$L$26,11,FALSE))","v":""},{"$f":"IF(C86=\"\",\"\",HLOOKUP(C86,'MHP Family Income & Rent Limits'!$E$12:$L$26,12,FALSE))","v":""},{"$f":"IF(C86=\"\",\"\",HLOOKUP(C86,'MHP Family Income & Rent Limits'!$E$12:$L$26,13,FALSE))","v":""},{"$f":"IF(C86=\"\",\"\",HLOOKUP(C86,'MHP Family Income & Rent Limits'!$E$12:$L$26,14,FALSE))","v":""},{"$f":"IF(C86=\"\",\"\",HLOOKUP(C86,'MHP Family Income & Rent Limits'!$E$12:$L$26,15,FALSE))","v":""}]
[{"$f":"IF('2. Assisted & Restricted Units'!A87=\"\",\"\",'2. Assisted & Restricted Units'!A87)","v":""},{"$f":"IF('2. Assisted & Restricted Units'!B87=\"\",\"\",'2. Assisted & Restricted Units'!B87)","v":""},{"$f":"IF('2. Assisted & Restricted Units'!D87=\"\",\"\",'2. Assisted & Restricted Units'!D87)","v":""},{"$f":"IF('2. Assisted & Restricted Units'!E87=\"\",\"\",'2. Assisted & Restricted Units'!E87)","v":""},{"$f":"IF('2. Assisted & Restricted Units'!H87=\"\",\"\",'2. Assisted & Restricted Units'!H87)","v":""},{"$f":"_xlfn.IFS(E87=\"\",\"\",E87>BO87,$BP$6,E87>BN87,$BO$6,E87>BM87,$BN$6,E87>BL87,$BM$6,E87>BK87,$BL$6,E87>BJ87,$BK$6,E87>BI87,$BJ$6,E87>BH87,$BI$6,E87>BG87,$BH$6,E87>BF87,$BG$6,E87>BE87,$BF$6,E87>BD87,$BE$6,E87>BC87,$BD$6,E87>=0,$BC$6)","v":""},{"$f":"IF('2. Assisted & Restricted Units'!T87=\"\",\"\",'2. Assisted & Restricted Units'!T87)","v":""},{"$f":"IF('2. Assisted & Restricted Units'!I87=\"\",\"\",'2. Assisted & Restricted Units'!I87)","v":""},{"$f":"IF('2. Assisted & Restricted Units'!AP87=\"\",\"\",'2. Assisted & Restricted Units'!AP87)","v":0},{"$f":"IF('2. Assisted & Restricted Units'!AT87=\"\",\"\",'2. Assisted & Restricted Units'!AT87)","v":""},0,{"$f":"IF('2. Assisted & Restricted Units'!AV87=\"\",\"\",'2. Assisted & Restricted Units'!AV87)","v":""},{"$f":"IF('2. Assisted & Restricted Units'!L87=\"\",\"\",'2. Assisted & Restricted Units'!L87)","v":""},{"$f":"IF('2. Assisted & Restricted Units'!M87=\"\",\"\",'2. Assisted & Restricted Units'!M87)","v":""},{"$f":"IF('2. Assisted & Restricted Units'!O87=\"\",\"\",'2. Assisted & Restricted Units'!O87)","v":""},{"$f":"IF('2. Assisted & Restricted Units'!P87=\"\",\"\",'2. Assisted & Restricted Units'!P87)","v":""},{"$f":"IF('2. Assisted & Restricted Units'!Q87=\"\",\"\",'2. Assisted & Restricted Units'!Q87)","v":""},{"$f":"IF('2. Assisted & Restricted Units'!R87=\"\",\"\",'2. Assisted & Restricted Units'!R87)","v":""},{"$f":"IF(A87=\"\",\"\",'1. Checklist & Certification'!$K$1)","v":""},{"$f":"IF(A87=\"\",\"\",'1. Checklist & Certification'!$C$62)","v":""},{"$f":"IF(A87=\"\",\"\",'1. Checklist & Certification'!$K$62)","v":""},{"$f":"IF(A87=\"\",\"\",'1. Checklist & Certification'!$C$6)","v":""},{"$f":"IF(A87=\"\",\"\",'1. Checklist & Certification'!$G$4)","v":""},{"$f":"IF(A87=\"\",\"\",'1. Checklist & Certification'!$C$7)","v":""},{"$f":"IF(A87=\"\",\"\",'1. Checklist & Certification'!$C$8)","v":""},{"$f":"IF(A87=\"\",\"\",'1. Checklist & Certification'!$F$7)","v":""},{"$f":"IF(A87=\"\",\"\",'1. Checklist & Certification'!$F$8)","v":""},{"$f":"IF(A87=\"\",\"\",'1. Checklist & Certification'!$B$9)","v":""},{"$f":"IF(A87=\"\",\"\",'1. Checklist & Certification'!$F$9)","v":""},{"$f":"IF(A87=\"\",\"\",'1. Checklist & Certification'!$C$10)","v":""},{"$f":"IF(A87=\"\",\"\",'1. Checklist & Certification'!$C$11)","v":""},{"$f":"IF(A87=\"\",\"\",'1. Checklist & Certification'!$C$12)","v":""},{"$f":"IF(A87=\"\",\"\",'1. Checklist & Certification'!$B$14)","v":""},{"$f":"IF(A87=\"\",\"\",'1. Checklist & Certification'!$E$14)","v":""},{"$f":"IF(B87=\"\",\"\",'1. Checklist & Certification'!$G$14)","v":""},{"$f":"IF(A87=\"\",\"\",'MHP Family Income & Rent Limits'!$B$3)","v":""},{"$f":"IF(A87=\"\",\"\",'MHP Family Income & Rent Limits'!$J$3)","v":""},{"$f":"IF(A87=\"\",\"\",'MHP Family Income & Rent Limits'!$E$4)","v":""},{"$f":"IF(A87=\"\",\"\",'MHP Family Income & Rent Limits'!$C$7)","v":""},{"$f":"IF(A87=\"\",\"\",'MHP Family Income & Rent Limits'!$F$8)","v":""},{"$f":"IF(A87=\"\",\"\",'1. Checklist & Certification'!$G$4)","v":""},{"$f":"IF(A87=\"\",\"\",'1. Checklist & Certification'!$K$39)","v":""},{"$f":"IF(A87=\"\",\"\",'1. Checklist & Certification'!$K$43)","v":""},{"$f":"IF(A87=\"\",\"\",'1. Checklist & Certification'!$K$45)","v":""},{"$f":"IF(A87=\"\",\"\",'1. Checklist & Certification'!$K$49)","v":""},{"$f":"IF(A87=\"\",\"\",'1. Checklist & Certification'!$E$66)","v":""},{"$f":"IF(A87=\"\",\"\",'1. Checklist & Certification'!$E$67)","v":""},{"$f":"IF(A87=\"\",\"\",'1. Checklist & Certification'!$E$68)","v":""},{"$f":"IF(A87=\"\",\"\",'1. Checklist & Certification'!$G$66)","v":""},{"$f":"IF(A87=\"\",\"\",'1. Checklist & Certification'!$H$66)","v":""},{"$f":"IF(A87=\"\",\"\",'1. Checklist & Certification'!$I$66)","v":""},{"$f":"IF(A87=\"\",\"\",'1. Checklist & Certification'!$I$67)","v":""},{"$f":"IF(A87=\"\",\"\",'1. Checklist & Certification'!$I$68)","v":""},null,{"$f":"IF(C87=\"\",\"\",HLOOKUP(C87,'MHP Family Income & Rent Limits'!$E$12:$L$26,2,FALSE))","v":""},{"$f":"IF(C87=\"\",\"\",HLOOKUP(C87,'MHP Family Income & Rent Limits'!$E$12:$L$26,3,FALSE))","v":""},{"$f":"IF(C87=\"\",\"\",HLOOKUP(C87,'MHP Family Income & Rent Limits'!$E$12:$L$26,4,FALSE))","v":""},{"$f":"IF(C87=\"\",\"\",HLOOKUP(C87,'MHP Family Income & Rent Limits'!$E$12:$L$26,5,FALSE))","v":""},{"$f":"IF(C87=\"\",\"\",HLOOKUP(C87,'MHP Family Income & Rent Limits'!$E$12:$L$26,6,FALSE))","v":""},{"$f":"IF(C87=\"\",\"\",HLOOKUP(C87,'MHP Family Income & Rent Limits'!$E$12:$L$26,7,FALSE))","v":""},{"$f":"IF(C87=\"\",\"\",HLOOKUP(C87,'MHP Family Income & Rent Limits'!$E$12:$L$26,8,FALSE))","v":""},{"$f":"IF(C87=\"\",\"\",HLOOKUP(C87,'MHP Family Income & Rent Limits'!$E$12:$L$26,9,FALSE))","v":""},{"$f":"IF(C87=\"\",\"\",HLOOKUP(C87,'MHP Family Income & Rent Limits'!$E$12:$L$26,10,FALSE))","v":""},{"$f":"IF(C87=\"\",\"\",HLOOKUP(C87,'MHP Family Income & Rent Limits'!$E$12:$L$26,11,FALSE))","v":""},{"$f":"IF(C87=\"\",\"\",HLOOKUP(C87,'MHP Family Income & Rent Limits'!$E$12:$L$26,12,FALSE))","v":""},{"$f":"IF(C87=\"\",\"\",HLOOKUP(C87,'MHP Family Income & Rent Limits'!$E$12:$L$26,13,FALSE))","v":""},{"$f":"IF(C87=\"\",\"\",HLOOKUP(C87,'MHP Family Income & Rent Limits'!$E$12:$L$26,14,FALSE))","v":""},{"$f":"IF(C87=\"\",\"\",HLOOKUP(C87,'MHP Family Income & Rent Limits'!$E$12:$L$26,15,FALSE))","v":""}]
[{"$f":"IF('2. Assisted & Restricted Units'!A88=\"\",\"\",'2. Assisted & Restricted Units'!A88)","v":""},{"$f":"IF('2. Assisted & Restricted Units'!B88=\"\",\"\",'2. Assisted & Restricted Units'!B88)","v":""},{"$f":"IF('2. Assisted & Restricted Units'!D88=\"\",\"\",'2. Assisted & Restricted Units'!D88)","v":""},{"$f":"IF('2. Assisted & Restricted Units'!E88=\"\",\"\",'2. Assisted & Restricted Units'!E88)","v":""},{"$f":"IF('2. Assisted & Restricted Units'!H88=\"\",\"\",'2. Assisted & Restricted Units'!H88)","v":""},{"$f":"_xlfn.IFS(E88=\"\",\"\",E88>BO88,$BP$6,E88>BN88,$BO$6,E88>BM88,$BN$6,E88>BL88,$BM$6,E88>BK88,$BL$6,E88>BJ88,$BK$6,E88>BI88,$BJ$6,E88>BH88,$BI$6,E88>BG88,$BH$6,E88>BF88,$BG$6,E88>BE88,$BF$6,E88>BD88,$BE$6,E88>BC88,$BD$6,E88>=0,$BC$6)","v":""},{"$f":"IF('2. Assisted & Restricted Units'!T88=\"\",\"\",'2. Assisted & Restricted Units'!T88)","v":""},{"$f":"IF('2. Assisted & Restricted Units'!I88=\"\",\"\",'2. Assisted & Restricted Units'!I88)","v":""},{"$f":"IF('2. Assisted & Restricted Units'!AP88=\"\",\"\",'2. Assisted & Restricted Units'!AP88)","v":0},{"$f":"IF('2. Assisted & Restricted Units'!AT88=\"\",\"\",'2. Assisted & Restricted Units'!AT88)","v":""},0,{"$f":"IF('2. Assisted & Restricted Units'!AV88=\"\",\"\",'2. Assisted & Restricted Units'!AV88)","v":""},{"$f":"IF('2. Assisted & Restricted Units'!L88=\"\",\"\",'2. Assisted & Restricted Units'!L88)","v":""},{"$f":"IF('2. Assisted & Restricted Units'!M88=\"\",\"\",'2. Assisted & Restricted Units'!M88)","v":""},{"$f":"IF('2. Assisted & Restricted Units'!O88=\"\",\"\",'2. Assisted & Restricted Units'!O88)","v":""},{"$f":"IF('2. Assisted & Restricted Units'!P88=\"\",\"\",'2. Assisted & Restricted Units'!P88)","v":""},{"$f":"IF('2. Assisted & Restricted Units'!Q88=\"\",\"\",'2. Assisted & Restricted Units'!Q88)","v":""},{"$f":"IF('2. Assisted & Restricted Units'!R88=\"\",\"\",'2. Assisted & Restricted Units'!R88)","v":""},{"$f":"IF(A88=\"\",\"\",'1. Checklist & Certification'!$K$1)","v":""},{"$f":"IF(A88=\"\",\"\",'1. Checklist & Certification'!$C$62)","v":""},{"$f":"IF(A88=\"\",\"\",'1. Checklist & Certification'!$K$62)","v":""},{"$f":"IF(A88=\"\",\"\",'1. Checklist & Certification'!$C$6)","v":""},{"$f":"IF(A88=\"\",\"\",'1. Checklist & Certification'!$G$4)","v":""},{"$f":"IF(A88=\"\",\"\",'1. Checklist & Certification'!$C$7)","v":""},{"$f":"IF(A88=\"\",\"\",'1. Checklist & Certification'!$C$8)","v":""},{"$f":"IF(A88=\"\",\"\",'1. Checklist & Certification'!$F$7)","v":""},{"$f":"IF(A88=\"\",\"\",'1. Checklist & Certification'!$F$8)","v":""},{"$f":"IF(A88=\"\",\"\",'1. Checklist & Certification'!$B$9)","v":""},{"$f":"IF(A88=\"\",\"\",'1. Checklist & Certification'!$F$9)","v":""},{"$f":"IF(A88=\"\",\"\",'1. Checklist & Certification'!$C$10)","v":""},{"$f":"IF(A88=\"\",\"\",'1. Checklist & Certification'!$C$11)","v":""},{"$f":"IF(A88=\"\",\"\",'1. Checklist & Certification'!$C$12)","v":""},{"$f":"IF(A88=\"\",\"\",'1. Checklist & Certification'!$B$14)","v":""},{"$f":"IF(A88=\"\",\"\",'1. Checklist & Certification'!$E$14)","v":""},{"$f":"IF(B88=\"\",\"\",'1. Checklist & Certification'!$G$14)","v":""},{"$f":"IF(A88=\"\",\"\",'MHP Family Income & Rent Limits'!$B$3)","v":""},{"$f":"IF(A88=\"\",\"\",'MHP Family Income & Rent Limits'!$J$3)","v":""},{"$f":"IF(A88=\"\",\"\",'MHP Family Income & Rent Limits'!$E$4)","v":""},{"$f":"IF(A88=\"\",\"\",'MHP Family Income & Rent Limits'!$C$7)","v":""},{"$f":"IF(A88=\"\",\"\",'MHP Family Income & Rent Limits'!$F$8)","v":""},{"$f":"IF(A88=\"\",\"\",'1. Checklist & Certification'!$G$4)","v":""},{"$f":"IF(A88=\"\",\"\",'1. Checklist & Certification'!$K$39)","v":""},{"$f":"IF(A88=\"\",\"\",'1. Checklist & Certification'!$K$43)","v":""},{"$f":"IF(A88=\"\",\"\",'1. Checklist & Certification'!$K$45)","v":""},{"$f":"IF(A88=\"\",\"\",'1. Checklist & Certification'!$K$49)","v":""},{"$f":"IF(A88=\"\",\"\",'1. Checklist & Certification'!$E$66)","v":""},{"$f":"IF(A88=\"\",\"\",'1. Checklist & Certification'!$E$67)","v":""},{"$f":"IF(A88=\"\",\"\",'1. Checklist & Certification'!$E$68)","v":""},{"$f":"IF(A88=\"\",\"\",'1. Checklist & Certification'!$G$66)","v":""},{"$f":"IF(A88=\"\",\"\",'1. Checklist & Certification'!$H$66)","v":""},{"$f":"IF(A88=\"\",\"\",'1. Checklist & Certification'!$I$66)","v":""},{"$f":"IF(A88=\"\",\"\",'1. Checklist & Certification'!$I$67)","v":""},{"$f":"IF(A88=\"\",\"\",'1. Checklist & Certification'!$I$68)","v":""},null,{"$f":"IF(C88=\"\",\"\",HLOOKUP(C88,'MHP Family Income & Rent Limits'!$E$12:$L$26,2,FALSE))","v":""},{"$f":"IF(C88=\"\",\"\",HLOOKUP(C88,'MHP Family Income & Rent Limits'!$E$12:$L$26,3,FALSE))","v":""},{"$f":"IF(C88=\"\",\"\",HLOOKUP(C88,'MHP Family Income & Rent Limits'!$E$12:$L$26,4,FALSE))","v":""},{"$f":"IF(C88=\"\",\"\",HLOOKUP(C88,'MHP Family Income & Rent Limits'!$E$12:$L$26,5,FALSE))","v":""},{"$f":"IF(C88=\"\",\"\",HLOOKUP(C88,'MHP Family Income & Rent Limits'!$E$12:$L$26,6,FALSE))","v":""},{"$f":"IF(C88=\"\",\"\",HLOOKUP(C88,'MHP Family Income & Rent Limits'!$E$12:$L$26,7,FALSE))","v":""},{"$f":"IF(C88=\"\",\"\",HLOOKUP(C88,'MHP Family Income & Rent Limits'!$E$12:$L$26,8,FALSE))","v":""},{"$f":"IF(C88=\"\",\"\",HLOOKUP(C88,'MHP Family Income & Rent Limits'!$E$12:$L$26,9,FALSE))","v":""},{"$f":"IF(C88=\"\",\"\",HLOOKUP(C88,'MHP Family Income & Rent Limits'!$E$12:$L$26,10,FALSE))","v":""},{"$f":"IF(C88=\"\",\"\",HLOOKUP(C88,'MHP Family Income & Rent Limits'!$E$12:$L$26,11,FALSE))","v":""},{"$f":"IF(C88=\"\",\"\",HLOOKUP(C88,'MHP Family Income & Rent Limits'!$E$12:$L$26,12,FALSE))","v":""},{"$f":"IF(C88=\"\",\"\",HLOOKUP(C88,'MHP Family Income & Rent Limits'!$E$12:$L$26,13,FALSE))","v":""},{"$f":"IF(C88=\"\",\"\",HLOOKUP(C88,'MHP Family Income & Rent Limits'!$E$12:$L$26,14,FALSE))","v":""},{"$f":"IF(C88=\"\",\"\",HLOOKUP(C88,'MHP Family Income & Rent Limits'!$E$12:$L$26,15,FALSE))","v":""}]
[{"$f":"IF('2. Assisted & Restricted Units'!A89=\"\",\"\",'2. Assisted & Restricted Units'!A89)","v":""},{"$f":"IF('2. Assisted & Restricted Units'!B89=\"\",\"\",'2. Assisted & Restricted Units'!B89)","v":""},{"$f":"IF('2. Assisted & Restricted Units'!D89=\"\",\"\",'2. Assisted & Restricted Units'!D89)","v":""},{"$f":"IF('2. Assisted & Restricted Units'!E89=\"\",\"\",'2. Assisted & Restricted Units'!E89)","v":""},{"$f":"IF('2. Assisted & Restricted Units'!H89=\"\",\"\",'2. Assisted & Restricted Units'!H89)","v":""},{"$f":"_xlfn.IFS(E89=\"\",\"\",E89>BO89,$BP$6,E89>BN89,$BO$6,E89>BM89,$BN$6,E89>BL89,$BM$6,E89>BK89,$BL$6,E89>BJ89,$BK$6,E89>BI89,$BJ$6,E89>BH89,$BI$6,E89>BG89,$BH$6,E89>BF89,$BG$6,E89>BE89,$BF$6,E89>BD89,$BE$6,E89>BC89,$BD$6,E89>=0,$BC$6)","v":""},{"$f":"IF('2. Assisted & Restricted Units'!T89=\"\",\"\",'2. Assisted & Restricted Units'!T89)","v":""},{"$f":"IF('2. Assisted & Restricted Units'!I89=\"\",\"\",'2. Assisted & Restricted Units'!I89)","v":""},{"$f":"IF('2. Assisted & Restricted Units'!AP89=\"\",\"\",'2. Assisted & Restricted Units'!AP89)","v":0},{"$f":"IF('2. Assisted & Restricted Units'!AT89=\"\",\"\",'2. Assisted & Restricted Units'!AT89)","v":""},0,{"$f":"IF('2. Assisted & Restricted Units'!AV89=\"\",\"\",'2. Assisted & Restricted Units'!AV89)","v":""},{"$f":"IF('2. Assisted & Restricted Units'!L89=\"\",\"\",'2. Assisted & Restricted Units'!L89)","v":""},{"$f":"IF('2. Assisted & Restricted Units'!M89=\"\",\"\",'2. Assisted & Restricted Units'!M89)","v":""},{"$f":"IF('2. Assisted & Restricted Units'!O89=\"\",\"\",'2. Assisted & Restricted Units'!O89)","v":""},{"$f":"IF('2. Assisted & Restricted Units'!P89=\"\",\"\",'2. Assisted & Restricted Units'!P89)","v":""},{"$f":"IF('2. Assisted & Restricted Units'!Q89=\"\",\"\",'2. Assisted & Restricted Units'!Q89)","v":""},{"$f":"IF('2. Assisted & Restricted Units'!R89=\"\",\"\",'2. Assisted & Restricted Units'!R89)","v":""},{"$f":"IF(A89=\"\",\"\",'1. Checklist & Certification'!$K$1)","v":""},{"$f":"IF(A89=\"\",\"\",'1. Checklist & Certification'!$C$62)","v":""},{"$f":"IF(A89=\"\",\"\",'1. Checklist & Certification'!$K$62)","v":""},{"$f":"IF(A89=\"\",\"\",'1. Checklist & Certification'!$C$6)","v":""},{"$f":"IF(A89=\"\",\"\",'1. Checklist & Certification'!$G$4)","v":""},{"$f":"IF(A89=\"\",\"\",'1. Checklist & Certification'!$C$7)","v":""},{"$f":"IF(A89=\"\",\"\",'1. Checklist & Certification'!$C$8)","v":""},{"$f":"IF(A89=\"\",\"\",'1. Checklist & Certification'!$F$7)","v":""},{"$f":"IF(A89=\"\",\"\",'1. Checklist & Certification'!$F$8)","v":""},{"$f":"IF(A89=\"\",\"\",'1. Checklist & Certification'!$B$9)","v":""},{"$f":"IF(A89=\"\",\"\",'1. Checklist & Certification'!$F$9)","v":""},{"$f":"IF(A89=\"\",\"\",'1. Checklist & Certification'!$C$10)","v":""},{"$f":"IF(A89=\"\",\"\",'1. Checklist & Certification'!$C$11)","v":""},{"$f":"IF(A89=\"\",\"\",'1. Checklist & Certification'!$C$12)","v":""},{"$f":"IF(A89=\"\",\"\",'1. Checklist & Certification'!$B$14)","v":""},{"$f":"IF(A89=\"\",\"\",'1. Checklist & Certification'!$E$14)","v":""},{"$f":"IF(B89=\"\",\"\",'1. Checklist & Certification'!$G$14)","v":""},{"$f":"IF(A89=\"\",\"\",'MHP Family Income & Rent Limits'!$B$3)","v":""},{"$f":"IF(A89=\"\",\"\",'MHP Family Income & Rent Limits'!$J$3)","v":""},{"$f":"IF(A89=\"\",\"\",'MHP Family Income & Rent Limits'!$E$4)","v":""},{"$f":"IF(A89=\"\",\"\",'MHP Family Income & Rent Limits'!$C$7)","v":""},{"$f":"IF(A89=\"\",\"\",'MHP Family Income & Rent Limits'!$F$8)","v":""},{"$f":"IF(A89=\"\",\"\",'1. Checklist & Certification'!$G$4)","v":""},{"$f":"IF(A89=\"\",\"\",'1. Checklist & Certification'!$K$39)","v":""},{"$f":"IF(A89=\"\",\"\",'1. Checklist & Certification'!$K$43)","v":""},{"$f":"IF(A89=\"\",\"\",'1. Checklist & Certification'!$K$45)","v":""},{"$f":"IF(A89=\"\",\"\",'1. Checklist & Certification'!$K$49)","v":""},{"$f":"IF(A89=\"\",\"\",'1. Checklist & Certification'!$E$66)","v":""},{"$f":"IF(A89=\"\",\"\",'1. Checklist & Certification'!$E$67)","v":""},{"$f":"IF(A89=\"\",\"\",'1. Checklist & Certification'!$E$68)","v":""},{"$f":"IF(A89=\"\",\"\",'1. Checklist & Certification'!$G$66)","v":""},{"$f":"IF(A89=\"\",\"\",'1. Checklist & Certification'!$H$66)","v":""},{"$f":"IF(A89=\"\",\"\",'1. Checklist & Certification'!$I$66)","v":""},{"$f":"IF(A89=\"\",\"\",'1. Checklist & Certification'!$I$67)","v":""},{"$f":"IF(A89=\"\",\"\",'1. Checklist & Certification'!$I$68)","v":""},null,{"$f":"IF(C89=\"\",\"\",HLOOKUP(C89,'MHP Family Income & Rent Limits'!$E$12:$L$26,2,FALSE))","v":""},{"$f":"IF(C89=\"\",\"\",HLOOKUP(C89,'MHP Family Income & Rent Limits'!$E$12:$L$26,3,FALSE))","v":""},{"$f":"IF(C89=\"\",\"\",HLOOKUP(C89,'MHP Family Income & Rent Limits'!$E$12:$L$26,4,FALSE))","v":""},{"$f":"IF(C89=\"\",\"\",HLOOKUP(C89,'MHP Family Income & Rent Limits'!$E$12:$L$26,5,FALSE))","v":""},{"$f":"IF(C89=\"\",\"\",HLOOKUP(C89,'MHP Family Income & Rent Limits'!$E$12:$L$26,6,FALSE))","v":""},{"$f":"IF(C89=\"\",\"\",HLOOKUP(C89,'MHP Family Income & Rent Limits'!$E$12:$L$26,7,FALSE))","v":""},{"$f":"IF(C89=\"\",\"\",HLOOKUP(C89,'MHP Family Income & Rent Limits'!$E$12:$L$26,8,FALSE))","v":""},{"$f":"IF(C89=\"\",\"\",HLOOKUP(C89,'MHP Family Income & Rent Limits'!$E$12:$L$26,9,FALSE))","v":""},{"$f":"IF(C89=\"\",\"\",HLOOKUP(C89,'MHP Family Income & Rent Limits'!$E$12:$L$26,10,FALSE))","v":""},{"$f":"IF(C89=\"\",\"\",HLOOKUP(C89,'MHP Family Income & Rent Limits'!$E$12:$L$26,11,FALSE))","v":""},{"$f":"IF(C89=\"\",\"\",HLOOKUP(C89,'MHP Family Income & Rent Limits'!$E$12:$L$26,12,FALSE))","v":""},{"$f":"IF(C89=\"\",\"\",HLOOKUP(C89,'MHP Family Income & Rent Limits'!$E$12:$L$26,13,FALSE))","v":""},{"$f":"IF(C89=\"\",\"\",HLOOKUP(C89,'MHP Family Income & Rent Limits'!$E$12:$L$26,14,FALSE))","v":""},{"$f":"IF(C89=\"\",\"\",HLOOKUP(C89,'MHP Family Income & Rent Limits'!$E$12:$L$26,15,FALSE))","v":""}]
[{"$f":"IF('2. Assisted & Restricted Units'!A90=\"\",\"\",'2. Assisted & Restricted Units'!A90)","v":""},{"$f":"IF('2. Assisted & Restricted Units'!B90=\"\",\"\",'2. Assisted & Restricted Units'!B90)","v":""},{"$f":"IF('2. Assisted & Restricted Units'!D90=\"\",\"\",'2. Assisted & Restricted Units'!D90)","v":""},{"$f":"IF('2. Assisted & Restricted Units'!E90=\"\",\"\",'2. Assisted & Restricted Units'!E90)","v":""},{"$f":"IF('2. Assisted & Restricted Units'!H90=\"\",\"\",'2. Assisted & Restricted Units'!H90)","v":""},{"$f":"_xlfn.IFS(E90=\"\",\"\",E90>BO90,$BP$6,E90>BN90,$BO$6,E90>BM90,$BN$6,E90>BL90,$BM$6,E90>BK90,$BL$6,E90>BJ90,$BK$6,E90>BI90,$BJ$6,E90>BH90,$BI$6,E90>BG90,$BH$6,E90>BF90,$BG$6,E90>BE90,$BF$6,E90>BD90,$BE$6,E90>BC90,$BD$6,E90>=0,$BC$6)","v":""},{"$f":"IF('2. Assisted & Restricted Units'!T90=\"\",\"\",'2. Assisted & Restricted Units'!T90)","v":""},{"$f":"IF('2. Assisted & Restricted Units'!I90=\"\",\"\",'2. Assisted & Restricted Units'!I90)","v":""},{"$f":"IF('2. Assisted & Restricted Units'!AP90=\"\",\"\",'2. Assisted & Restricted Units'!AP90)","v":0},{"$f":"IF('2. Assisted & Restricted Units'!AT90=\"\",\"\",'2. Assisted & Restricted Units'!AT90)","v":""},0,{"$f":"IF('2. Assisted & Restricted Units'!AV90=\"\",\"\",'2. Assisted & Restricted Units'!AV90)","v":""},{"$f":"IF('2. Assisted & Restricted Units'!L90=\"\",\"\",'2. Assisted & Restricted Units'!L90)","v":""},{"$f":"IF('2. Assisted & Restricted Units'!M90=\"\",\"\",'2. Assisted & Restricted Units'!M90)","v":""},{"$f":"IF('2. Assisted & Restricted Units'!O90=\"\",\"\",'2. Assisted & Restricted Units'!O90)","v":""},{"$f":"IF('2. Assisted & Restricted Units'!P90=\"\",\"\",'2. Assisted & Restricted Units'!P90)","v":""},{"$f":"IF('2. Assisted & Restricted Units'!Q90=\"\",\"\",'2. Assisted & Restricted Units'!Q90)","v":""},{"$f":"IF('2. Assisted & Restricted Units'!R90=\"\",\"\",'2. Assisted & Restricted Units'!R90)","v":""},{"$f":"IF(A90=\"\",\"\",'1. Checklist & Certification'!$K$1)","v":""},{"$f":"IF(A90=\"\",\"\",'1. Checklist & Certification'!$C$62)","v":""},{"$f":"IF(A90=\"\",\"\",'1. Checklist & Certification'!$K$62)","v":""},{"$f":"IF(A90=\"\",\"\",'1. Checklist & Certification'!$C$6)","v":""},{"$f":"IF(A90=\"\",\"\",'1. Checklist & Certification'!$G$4)","v":""},{"$f":"IF(A90=\"\",\"\",'1. Checklist & Certification'!$C$7)","v":""},{"$f":"IF(A90=\"\",\"\",'1. Checklist & Certification'!$C$8)","v":""},{"$f":"IF(A90=\"\",\"\",'1. Checklist & Certification'!$F$7)","v":""},{"$f":"IF(A90=\"\",\"\",'1. Checklist & Certification'!$F$8)","v":""},{"$f":"IF(A90=\"\",\"\",'1. Checklist & Certification'!$B$9)","v":""},{"$f":"IF(A90=\"\",\"\",'1. Checklist & Certification'!$F$9)","v":""},{"$f":"IF(A90=\"\",\"\",'1. Checklist & Certification'!$C$10)","v":""},{"$f":"IF(A90=\"\",\"\",'1. Checklist & Certification'!$C$11)","v":""},{"$f":"IF(A90=\"\",\"\",'1. Checklist & Certification'!$C$12)","v":""},{"$f":"IF(A90=\"\",\"\",'1. Checklist & Certification'!$B$14)","v":""},{"$f":"IF(A90=\"\",\"\",'1. Checklist & Certification'!$E$14)","v":""},{"$f":"IF(B90=\"\",\"\",'1. Checklist & Certification'!$G$14)","v":""},{"$f":"IF(A90=\"\",\"\",'MHP Family Income & Rent Limits'!$B$3)","v":""},{"$f":"IF(A90=\"\",\"\",'MHP Family Income & Rent Limits'!$J$3)","v":""},{"$f":"IF(A90=\"\",\"\",'MHP Family Income & Rent Limits'!$E$4)","v":""},{"$f":"IF(A90=\"\",\"\",'MHP Family Income & Rent Limits'!$C$7)","v":""},{"$f":"IF(A90=\"\",\"\",'MHP Family Income & Rent Limits'!$F$8)","v":""},{"$f":"IF(A90=\"\",\"\",'1. Checklist & Certification'!$G$4)","v":""},{"$f":"IF(A90=\"\",\"\",'1. Checklist & Certification'!$K$39)","v":""},{"$f":"IF(A90=\"\",\"\",'1. Checklist & Certification'!$K$43)","v":""},{"$f":"IF(A90=\"\",\"\",'1. Checklist & Certification'!$K$45)","v":""},{"$f":"IF(A90=\"\",\"\",'1. Checklist & Certification'!$K$49)","v":""},{"$f":"IF(A90=\"\",\"\",'1. Checklist & Certification'!$E$66)","v":""},{"$f":"IF(A90=\"\",\"\",'1. Checklist & Certification'!$E$67)","v":""},{"$f":"IF(A90=\"\",\"\",'1. Checklist & Certification'!$E$68)","v":""},{"$f":"IF(A90=\"\",\"\",'1. Checklist & Certification'!$G$66)","v":""},{"$f":"IF(A90=\"\",\"\",'1. Checklist & Certification'!$H$66)","v":""},{"$f":"IF(A90=\"\",\"\",'1. Checklist & Certification'!$I$66)","v":""},{"$f":"IF(A90=\"\",\"\",'1. Checklist & Certification'!$I$67)","v":""},{"$f":"IF(A90=\"\",\"\",'1. Checklist & Certification'!$I$68)","v":""},null,{"$f":"IF(C90=\"\",\"\",HLOOKUP(C90,'MHP Family Income & Rent Limits'!$E$12:$L$26,2,FALSE))","v":""},{"$f":"IF(C90=\"\",\"\",HLOOKUP(C90,'MHP Family Income & Rent Limits'!$E$12:$L$26,3,FALSE))","v":""},{"$f":"IF(C90=\"\",\"\",HLOOKUP(C90,'MHP Family Income & Rent Limits'!$E$12:$L$26,4,FALSE))","v":""},{"$f":"IF(C90=\"\",\"\",HLOOKUP(C90,'MHP Family Income & Rent Limits'!$E$12:$L$26,5,FALSE))","v":""},{"$f":"IF(C90=\"\",\"\",HLOOKUP(C90,'MHP Family Income & Rent Limits'!$E$12:$L$26,6,FALSE))","v":""},{"$f":"IF(C90=\"\",\"\",HLOOKUP(C90,'MHP Family Income & Rent Limits'!$E$12:$L$26,7,FALSE))","v":""},{"$f":"IF(C90=\"\",\"\",HLOOKUP(C90,'MHP Family Income & Rent Limits'!$E$12:$L$26,8,FALSE))","v":""},{"$f":"IF(C90=\"\",\"\",HLOOKUP(C90,'MHP Family Income & Rent Limits'!$E$12:$L$26,9,FALSE))","v":""},{"$f":"IF(C90=\"\",\"\",HLOOKUP(C90,'MHP Family Income & Rent Limits'!$E$12:$L$26,10,FALSE))","v":""},{"$f":"IF(C90=\"\",\"\",HLOOKUP(C90,'MHP Family Income & Rent Limits'!$E$12:$L$26,11,FALSE))","v":""},{"$f":"IF(C90=\"\",\"\",HLOOKUP(C90,'MHP Family Income & Rent Limits'!$E$12:$L$26,12,FALSE))","v":""},{"$f":"IF(C90=\"\",\"\",HLOOKUP(C90,'MHP Family Income & Rent Limits'!$E$12:$L$26,13,FALSE))","v":""},{"$f":"IF(C90=\"\",\"\",HLOOKUP(C90,'MHP Family Income & Rent Limits'!$E$12:$L$26,14,FALSE))","v":""},{"$f":"IF(C90=\"\",\"\",HLOOKUP(C90,'MHP Family Income & Rent Limits'!$E$12:$L$26,15,FALSE))","v":""}]
[{"$f":"IF('2. Assisted & Restricted Units'!A91=\"\",\"\",'2. Assisted & Restricted Units'!A91)","v":""},{"$f":"IF('2. Assisted & Restricted Units'!B91=\"\",\"\",'2. Assisted & Restricted Units'!B91)","v":""},{"$f":"IF('2. Assisted & Restricted Units'!D91=\"\",\"\",'2. Assisted & Restricted Units'!D91)","v":""},{"$f":"IF('2. Assisted & Restricted Units'!E91=\"\",\"\",'2. Assisted & Restricted Units'!E91)","v":""},{"$f":"IF('2. Assisted & Restricted Units'!H91=\"\",\"\",'2. Assisted & Restricted Units'!H91)","v":""},{"$f":"_xlfn.IFS(E91=\"\",\"\",E91>BO91,$BP$6,E91>BN91,$BO$6,E91>BM91,$BN$6,E91>BL91,$BM$6,E91>BK91,$BL$6,E91>BJ91,$BK$6,E91>BI91,$BJ$6,E91>BH91,$BI$6,E91>BG91,$BH$6,E91>BF91,$BG$6,E91>BE91,$BF$6,E91>BD91,$BE$6,E91>BC91,$BD$6,E91>=0,$BC$6)","v":""},{"$f":"IF('2. Assisted & Restricted Units'!T91=\"\",\"\",'2. Assisted & Restricted Units'!T91)","v":""},{"$f":"IF('2. Assisted & Restricted Units'!I91=\"\",\"\",'2. Assisted & Restricted Units'!I91)","v":""},{"$f":"IF('2. Assisted & Restricted Units'!AP91=\"\",\"\",'2. Assisted & Restricted Units'!AP91)","v":0},{"$f":"IF('2. Assisted & Restricted Units'!AT91=\"\",\"\",'2. Assisted & Restricted Units'!AT91)","v":""},0,{"$f":"IF('2. Assisted & Restricted Units'!AV91=\"\",\"\",'2. Assisted & Restricted Units'!AV91)","v":""},{"$f":"IF('2. Assisted & Restricted Units'!L91=\"\",\"\",'2. Assisted & Restricted Units'!L91)","v":""},{"$f":"IF('2. Assisted & Restricted Units'!M91=\"\",\"\",'2. Assisted & Restricted Units'!M91)","v":""},{"$f":"IF('2. Assisted & Restricted Units'!O91=\"\",\"\",'2. Assisted & Restricted Units'!O91)","v":""},{"$f":"IF('2. Assisted & Restricted Units'!P91=\"\",\"\",'2. Assisted & Restricted Units'!P91)","v":""},{"$f":"IF('2. Assisted & Restricted Units'!Q91=\"\",\"\",'2. Assisted & Restricted Units'!Q91)","v":""},{"$f":"IF('2. Assisted & Restricted Units'!R91=\"\",\"\",'2. Assisted & Restricted Units'!R91)","v":""},{"$f":"IF(A91=\"\",\"\",'1. Checklist & Certification'!$K$1)","v":""},{"$f":"IF(A91=\"\",\"\",'1. Checklist & Certification'!$C$62)","v":""},{"$f":"IF(A91=\"\",\"\",'1. Checklist & Certification'!$K$62)","v":""},{"$f":"IF(A91=\"\",\"\",'1. Checklist & Certification'!$C$6)","v":""},{"$f":"IF(A91=\"\",\"\",'1. Checklist & Certification'!$G$4)","v":""},{"$f":"IF(A91=\"\",\"\",'1. Checklist & Certification'!$C$7)","v":""},{"$f":"IF(A91=\"\",\"\",'1. Checklist & Certification'!$C$8)","v":""},{"$f":"IF(A91=\"\",\"\",'1. Checklist & Certification'!$F$7)","v":""},{"$f":"IF(A91=\"\",\"\",'1. Checklist & Certification'!$F$8)","v":""},{"$f":"IF(A91=\"\",\"\",'1. Checklist & Certification'!$B$9)","v":""},{"$f":"IF(A91=\"\",\"\",'1. Checklist & Certification'!$F$9)","v":""},{"$f":"IF(A91=\"\",\"\",'1. Checklist & Certification'!$C$10)","v":""},{"$f":"IF(A91=\"\",\"\",'1. Checklist & Certification'!$C$11)","v":""},{"$f":"IF(A91=\"\",\"\",'1. Checklist & Certification'!$C$12)","v":""},{"$f":"IF(A91=\"\",\"\",'1. Checklist & Certification'!$B$14)","v":""},{"$f":"IF(A91=\"\",\"\",'1. Checklist & Certification'!$E$14)","v":""},{"$f":"IF(B91=\"\",\"\",'1. Checklist & Certification'!$G$14)","v":""},{"$f":"IF(A91=\"\",\"\",'MHP Family Income & Rent Limits'!$B$3)","v":""},{"$f":"IF(A91=\"\",\"\",'MHP Family Income & Rent Limits'!$J$3)","v":""},{"$f":"IF(A91=\"\",\"\",'MHP Family Income & Rent Limits'!$E$4)","v":""},{"$f":"IF(A91=\"\",\"\",'MHP Family Income & Rent Limits'!$C$7)","v":""},{"$f":"IF(A91=\"\",\"\",'MHP Family Income & Rent Limits'!$F$8)","v":""},{"$f":"IF(A91=\"\",\"\",'1. Checklist & Certification'!$G$4)","v":""},{"$f":"IF(A91=\"\",\"\",'1. Checklist & Certification'!$K$39)","v":""},{"$f":"IF(A91=\"\",\"\",'1. Checklist & Certification'!$K$43)","v":""},{"$f":"IF(A91=\"\",\"\",'1. Checklist & Certification'!$K$45)","v":""},{"$f":"IF(A91=\"\",\"\",'1. Checklist & Certification'!$K$49)","v":""},{"$f":"IF(A91=\"\",\"\",'1. Checklist & Certification'!$E$66)","v":""},{"$f":"IF(A91=\"\",\"\",'1. Checklist & Certification'!$E$67)","v":""},{"$f":"IF(A91=\"\",\"\",'1. Checklist & Certification'!$E$68)","v":""},{"$f":"IF(A91=\"\",\"\",'1. Checklist & Certification'!$G$66)","v":""},{"$f":"IF(A91=\"\",\"\",'1. Checklist & Certification'!$H$66)","v":""},{"$f":"IF(A91=\"\",\"\",'1. Checklist & Certification'!$I$66)","v":""},{"$f":"IF(A91=\"\",\"\",'1. Checklist & Certification'!$I$67)","v":""},{"$f":"IF(A91=\"\",\"\",'1. Checklist & Certification'!$I$68)","v":""},null,{"$f":"IF(C91=\"\",\"\",HLOOKUP(C91,'MHP Family Income & Rent Limits'!$E$12:$L$26,2,FALSE))","v":""},{"$f":"IF(C91=\"\",\"\",HLOOKUP(C91,'MHP Family Income & Rent Limits'!$E$12:$L$26,3,FALSE))","v":""},{"$f":"IF(C91=\"\",\"\",HLOOKUP(C91,'MHP Family Income & Rent Limits'!$E$12:$L$26,4,FALSE))","v":""},{"$f":"IF(C91=\"\",\"\",HLOOKUP(C91,'MHP Family Income & Rent Limits'!$E$12:$L$26,5,FALSE))","v":""},{"$f":"IF(C91=\"\",\"\",HLOOKUP(C91,'MHP Family Income & Rent Limits'!$E$12:$L$26,6,FALSE))","v":""},{"$f":"IF(C91=\"\",\"\",HLOOKUP(C91,'MHP Family Income & Rent Limits'!$E$12:$L$26,7,FALSE))","v":""},{"$f":"IF(C91=\"\",\"\",HLOOKUP(C91,'MHP Family Income & Rent Limits'!$E$12:$L$26,8,FALSE))","v":""},{"$f":"IF(C91=\"\",\"\",HLOOKUP(C91,'MHP Family Income & Rent Limits'!$E$12:$L$26,9,FALSE))","v":""},{"$f":"IF(C91=\"\",\"\",HLOOKUP(C91,'MHP Family Income & Rent Limits'!$E$12:$L$26,10,FALSE))","v":""},{"$f":"IF(C91=\"\",\"\",HLOOKUP(C91,'MHP Family Income & Rent Limits'!$E$12:$L$26,11,FALSE))","v":""},{"$f":"IF(C91=\"\",\"\",HLOOKUP(C91,'MHP Family Income & Rent Limits'!$E$12:$L$26,12,FALSE))","v":""},{"$f":"IF(C91=\"\",\"\",HLOOKUP(C91,'MHP Family Income & Rent Limits'!$E$12:$L$26,13,FALSE))","v":""},{"$f":"IF(C91=\"\",\"\",HLOOKUP(C91,'MHP Family Income & Rent Limits'!$E$12:$L$26,14,FALSE))","v":""},{"$f":"IF(C91=\"\",\"\",HLOOKUP(C91,'MHP Family Income & Rent Limits'!$E$12:$L$26,15,FALSE))","v":""}]
[{"$f":"IF('2. Assisted & Restricted Units'!A92=\"\",\"\",'2. Assisted & Restricted Units'!A92)","v":""},{"$f":"IF('2. Assisted & Restricted Units'!B92=\"\",\"\",'2. Assisted & Restricted Units'!B92)","v":""},{"$f":"IF('2. Assisted & Restricted Units'!D92=\"\",\"\",'2. Assisted & Restricted Units'!D92)","v":""},{"$f":"IF('2. Assisted & Restricted Units'!E92=\"\",\"\",'2. Assisted & Restricted Units'!E92)","v":""},{"$f":"IF('2. Assisted & Restricted Units'!H92=\"\",\"\",'2. Assisted & Restricted Units'!H92)","v":""},{"$f":"_xlfn.IFS(E92=\"\",\"\",E92>BO92,$BP$6,E92>BN92,$BO$6,E92>BM92,$BN$6,E92>BL92,$BM$6,E92>BK92,$BL$6,E92>BJ92,$BK$6,E92>BI92,$BJ$6,E92>BH92,$BI$6,E92>BG92,$BH$6,E92>BF92,$BG$6,E92>BE92,$BF$6,E92>BD92,$BE$6,E92>BC92,$BD$6,E92>=0,$BC$6)","v":""},{"$f":"IF('2. Assisted & Restricted Units'!T92=\"\",\"\",'2. Assisted & Restricted Units'!T92)","v":""},{"$f":"IF('2. Assisted & Restricted Units'!I92=\"\",\"\",'2. Assisted & Restricted Units'!I92)","v":""},{"$f":"IF('2. Assisted & Restricted Units'!AP92=\"\",\"\",'2. Assisted & Restricted Units'!AP92)","v":0},{"$f":"IF('2. Assisted & Restricted Units'!AT92=\"\",\"\",'2. Assisted & Restricted Units'!AT92)","v":""},0,{"$f":"IF('2. Assisted & Restricted Units'!AV92=\"\",\"\",'2. Assisted & Restricted Units'!AV92)","v":""},{"$f":"IF('2. Assisted & Restricted Units'!L92=\"\",\"\",'2. Assisted & Restricted Units'!L92)","v":""},{"$f":"IF('2. Assisted & Restricted Units'!M92=\"\",\"\",'2. Assisted & Restricted Units'!M92)","v":""},{"$f":"IF('2. Assisted & Restricted Units'!O92=\"\",\"\",'2. Assisted & Restricted Units'!O92)","v":""},{"$f":"IF('2. Assisted & Restricted Units'!P92=\"\",\"\",'2. Assisted & Restricted Units'!P92)","v":""},{"$f":"IF('2. Assisted & Restricted Units'!Q92=\"\",\"\",'2. Assisted & Restricted Units'!Q92)","v":""},{"$f":"IF('2. Assisted & Restricted Units'!R92=\"\",\"\",'2. Assisted & Restricted Units'!R92)","v":""},{"$f":"IF(A92=\"\",\"\",'1. Checklist & Certification'!$K$1)","v":""},{"$f":"IF(A92=\"\",\"\",'1. Checklist & Certification'!$C$62)","v":""},{"$f":"IF(A92=\"\",\"\",'1. Checklist & Certification'!$K$62)","v":""},{"$f":"IF(A92=\"\",\"\",'1. Checklist & Certification'!$C$6)","v":""},{"$f":"IF(A92=\"\",\"\",'1. Checklist & Certification'!$G$4)","v":""},{"$f":"IF(A92=\"\",\"\",'1. Checklist & Certification'!$C$7)","v":""},{"$f":"IF(A92=\"\",\"\",'1. Checklist & Certification'!$C$8)","v":""},{"$f":"IF(A92=\"\",\"\",'1. Checklist & Certification'!$F$7)","v":""},{"$f":"IF(A92=\"\",\"\",'1. Checklist & Certification'!$F$8)","v":""},{"$f":"IF(A92=\"\",\"\",'1. Checklist & Certification'!$B$9)","v":""},{"$f":"IF(A92=\"\",\"\",'1. Checklist & Certification'!$F$9)","v":""},{"$f":"IF(A92=\"\",\"\",'1. Checklist & Certification'!$C$10)","v":""},{"$f":"IF(A92=\"\",\"\",'1. Checklist & Certification'!$C$11)","v":""},{"$f":"IF(A92=\"\",\"\",'1. Checklist & Certification'!$C$12)","v":""},{"$f":"IF(A92=\"\",\"\",'1. Checklist & Certification'!$B$14)","v":""},{"$f":"IF(A92=\"\",\"\",'1. Checklist & Certification'!$E$14)","v":""},{"$f":"IF(B92=\"\",\"\",'1. Checklist & Certification'!$G$14)","v":""},{"$f":"IF(A92=\"\",\"\",'MHP Family Income & Rent Limits'!$B$3)","v":""},{"$f":"IF(A92=\"\",\"\",'MHP Family Income & Rent Limits'!$J$3)","v":""},{"$f":"IF(A92=\"\",\"\",'MHP Family Income & Rent Limits'!$E$4)","v":""},{"$f":"IF(A92=\"\",\"\",'MHP Family Income & Rent Limits'!$C$7)","v":""},{"$f":"IF(A92=\"\",\"\",'MHP Family Income & Rent Limits'!$F$8)","v":""},{"$f":"IF(A92=\"\",\"\",'1. Checklist & Certification'!$G$4)","v":""},{"$f":"IF(A92=\"\",\"\",'1. Checklist & Certification'!$K$39)","v":""},{"$f":"IF(A92=\"\",\"\",'1. Checklist & Certification'!$K$43)","v":""},{"$f":"IF(A92=\"\",\"\",'1. Checklist & Certification'!$K$45)","v":""},{"$f":"IF(A92=\"\",\"\",'1. Checklist & Certification'!$K$49)","v":""},{"$f":"IF(A92=\"\",\"\",'1. Checklist & Certification'!$E$66)","v":""},{"$f":"IF(A92=\"\",\"\",'1. Checklist & Certification'!$E$67)","v":""},{"$f":"IF(A92=\"\",\"\",'1. Checklist & Certification'!$E$68)","v":""},{"$f":"IF(A92=\"\",\"\",'1. Checklist & Certification'!$G$66)","v":""},{"$f":"IF(A92=\"\",\"\",'1. Checklist & Certification'!$H$66)","v":""},{"$f":"IF(A92=\"\",\"\",'1. Checklist & Certification'!$I$66)","v":""},{"$f":"IF(A92=\"\",\"\",'1. Checklist & Certification'!$I$67)","v":""},{"$f":"IF(A92=\"\",\"\",'1. Checklist & Certification'!$I$68)","v":""},null,{"$f":"IF(C92=\"\",\"\",HLOOKUP(C92,'MHP Family Income & Rent Limits'!$E$12:$L$26,2,FALSE))","v":""},{"$f":"IF(C92=\"\",\"\",HLOOKUP(C92,'MHP Family Income & Rent Limits'!$E$12:$L$26,3,FALSE))","v":""},{"$f":"IF(C92=\"\",\"\",HLOOKUP(C92,'MHP Family Income & Rent Limits'!$E$12:$L$26,4,FALSE))","v":""},{"$f":"IF(C92=\"\",\"\",HLOOKUP(C92,'MHP Family Income & Rent Limits'!$E$12:$L$26,5,FALSE))","v":""},{"$f":"IF(C92=\"\",\"\",HLOOKUP(C92,'MHP Family Income & Rent Limits'!$E$12:$L$26,6,FALSE))","v":""},{"$f":"IF(C92=\"\",\"\",HLOOKUP(C92,'MHP Family Income & Rent Limits'!$E$12:$L$26,7,FALSE))","v":""},{"$f":"IF(C92=\"\",\"\",HLOOKUP(C92,'MHP Family Income & Rent Limits'!$E$12:$L$26,8,FALSE))","v":""},{"$f":"IF(C92=\"\",\"\",HLOOKUP(C92,'MHP Family Income & Rent Limits'!$E$12:$L$26,9,FALSE))","v":""},{"$f":"IF(C92=\"\",\"\",HLOOKUP(C92,'MHP Family Income & Rent Limits'!$E$12:$L$26,10,FALSE))","v":""},{"$f":"IF(C92=\"\",\"\",HLOOKUP(C92,'MHP Family Income & Rent Limits'!$E$12:$L$26,11,FALSE))","v":""},{"$f":"IF(C92=\"\",\"\",HLOOKUP(C92,'MHP Family Income & Rent Limits'!$E$12:$L$26,12,FALSE))","v":""},{"$f":"IF(C92=\"\",\"\",HLOOKUP(C92,'MHP Family Income & Rent Limits'!$E$12:$L$26,13,FALSE))","v":""},{"$f":"IF(C92=\"\",\"\",HLOOKUP(C92,'MHP Family Income & Rent Limits'!$E$12:$L$26,14,FALSE))","v":""},{"$f":"IF(C92=\"\",\"\",HLOOKUP(C92,'MHP Family Income & Rent Limits'!$E$12:$L$26,15,FALSE))","v":""}]
[{"$f":"IF('2. Assisted & Restricted Units'!A93=\"\",\"\",'2. Assisted & Restricted Units'!A93)","v":""},{"$f":"IF('2. Assisted & Restricted Units'!B93=\"\",\"\",'2. Assisted & Restricted Units'!B93)","v":""},{"$f":"IF('2. Assisted & Restricted Units'!D93=\"\",\"\",'2. Assisted & Restricted Units'!D93)","v":""},{"$f":"IF('2. Assisted & Restricted Units'!E93=\"\",\"\",'2. Assisted & Restricted Units'!E93)","v":""},{"$f":"IF('2. Assisted & Restricted Units'!H93=\"\",\"\",'2. Assisted & Restricted Units'!H93)","v":""},{"$f":"_xlfn.IFS(E93=\"\",\"\",E93>BO93,$BP$6,E93>BN93,$BO$6,E93>BM93,$BN$6,E93>BL93,$BM$6,E93>BK93,$BL$6,E93>BJ93,$BK$6,E93>BI93,$BJ$6,E93>BH93,$BI$6,E93>BG93,$BH$6,E93>BF93,$BG$6,E93>BE93,$BF$6,E93>BD93,$BE$6,E93>BC93,$BD$6,E93>=0,$BC$6)","v":""},{"$f":"IF('2. Assisted & Restricted Units'!T93=\"\",\"\",'2. Assisted & Restricted Units'!T93)","v":""},{"$f":"IF('2. Assisted & Restricted Units'!I93=\"\",\"\",'2. Assisted & Restricted Units'!I93)","v":""},{"$f":"IF('2. Assisted & Restricted Units'!AP93=\"\",\"\",'2. Assisted & Restricted Units'!AP93)","v":0},{"$f":"IF('2. Assisted & Restricted Units'!AT93=\"\",\"\",'2. Assisted & Restricted Units'!AT93)","v":""},0,{"$f":"IF('2. Assisted & Restricted Units'!AV93=\"\",\"\",'2. Assisted & Restricted Units'!AV93)","v":""},{"$f":"IF('2. Assisted & Restricted Units'!L93=\"\",\"\",'2. Assisted & Restricted Units'!L93)","v":""},{"$f":"IF('2. Assisted & Restricted Units'!M93=\"\",\"\",'2. Assisted & Restricted Units'!M93)","v":""},{"$f":"IF('2. Assisted & Restricted Units'!O93=\"\",\"\",'2. Assisted & Restricted Units'!O93)","v":""},{"$f":"IF('2. Assisted & Restricted Units'!P93=\"\",\"\",'2. Assisted & Restricted Units'!P93)","v":""},{"$f":"IF('2. Assisted & Restricted Units'!Q93=\"\",\"\",'2. Assisted & Restricted Units'!Q93)","v":""},{"$f":"IF('2. Assisted & Restricted Units'!R93=\"\",\"\",'2. Assisted & Restricted Units'!R93)","v":""},{"$f":"IF(A93=\"\",\"\",'1. Checklist & Certification'!$K$1)","v":""},{"$f":"IF(A93=\"\",\"\",'1. Checklist & Certification'!$C$62)","v":""},{"$f":"IF(A93=\"\",\"\",'1. Checklist & Certification'!$K$62)","v":""},{"$f":"IF(A93=\"\",\"\",'1. Checklist & Certification'!$C$6)","v":""},{"$f":"IF(A93=\"\",\"\",'1. Checklist & Certification'!$G$4)","v":""},{"$f":"IF(A93=\"\",\"\",'1. Checklist & Certification'!$C$7)","v":""},{"$f":"IF(A93=\"\",\"\",'1. Checklist & Certification'!$C$8)","v":""},{"$f":"IF(A93=\"\",\"\",'1. Checklist & Certification'!$F$7)","v":""},{"$f":"IF(A93=\"\",\"\",'1. Checklist & Certification'!$F$8)","v":""},{"$f":"IF(A93=\"\",\"\",'1. Checklist & Certification'!$B$9)","v":""},{"$f":"IF(A93=\"\",\"\",'1. Checklist & Certification'!$F$9)","v":""},{"$f":"IF(A93=\"\",\"\",'1. Checklist & Certification'!$C$10)","v":""},{"$f":"IF(A93=\"\",\"\",'1. Checklist & Certification'!$C$11)","v":""},{"$f":"IF(A93=\"\",\"\",'1. Checklist & Certification'!$C$12)","v":""},{"$f":"IF(A93=\"\",\"\",'1. Checklist & Certification'!$B$14)","v":""},{"$f":"IF(A93=\"\",\"\",'1. Checklist & Certification'!$E$14)","v":""},{"$f":"IF(B93=\"\",\"\",'1. Checklist & Certification'!$G$14)","v":""},{"$f":"IF(A93=\"\",\"\",'MHP Family Income & Rent Limits'!$B$3)","v":""},{"$f":"IF(A93=\"\",\"\",'MHP Family Income & Rent Limits'!$J$3)","v":""},{"$f":"IF(A93=\"\",\"\",'MHP Family Income & Rent Limits'!$E$4)","v":""},{"$f":"IF(A93=\"\",\"\",'MHP Family Income & Rent Limits'!$C$7)","v":""},{"$f":"IF(A93=\"\",\"\",'MHP Family Income & Rent Limits'!$F$8)","v":""},{"$f":"IF(A93=\"\",\"\",'1. Checklist & Certification'!$G$4)","v":""},{"$f":"IF(A93=\"\",\"\",'1. Checklist & Certification'!$K$39)","v":""},{"$f":"IF(A93=\"\",\"\",'1. Checklist & Certification'!$K$43)","v":""},{"$f":"IF(A93=\"\",\"\",'1. Checklist & Certification'!$K$45)","v":""},{"$f":"IF(A93=\"\",\"\",'1. Checklist & Certification'!$K$49)","v":""},{"$f":"IF(A93=\"\",\"\",'1. Checklist & Certification'!$E$66)","v":""},{"$f":"IF(A93=\"\",\"\",'1. Checklist & Certification'!$E$67)","v":""},{"$f":"IF(A93=\"\",\"\",'1. Checklist & Certification'!$E$68)","v":""},{"$f":"IF(A93=\"\",\"\",'1. Checklist & Certification'!$G$66)","v":""},{"$f":"IF(A93=\"\",\"\",'1. Checklist & Certification'!$H$66)","v":""},{"$f":"IF(A93=\"\",\"\",'1. Checklist & Certification'!$I$66)","v":""},{"$f":"IF(A93=\"\",\"\",'1. Checklist & Certification'!$I$67)","v":""},{"$f":"IF(A93=\"\",\"\",'1. Checklist & Certification'!$I$68)","v":""},null,{"$f":"IF(C93=\"\",\"\",HLOOKUP(C93,'MHP Family Income & Rent Limits'!$E$12:$L$26,2,FALSE))","v":""},{"$f":"IF(C93=\"\",\"\",HLOOKUP(C93,'MHP Family Income & Rent Limits'!$E$12:$L$26,3,FALSE))","v":""},{"$f":"IF(C93=\"\",\"\",HLOOKUP(C93,'MHP Family Income & Rent Limits'!$E$12:$L$26,4,FALSE))","v":""},{"$f":"IF(C93=\"\",\"\",HLOOKUP(C93,'MHP Family Income & Rent Limits'!$E$12:$L$26,5,FALSE))","v":""},{"$f":"IF(C93=\"\",\"\",HLOOKUP(C93,'MHP Family Income & Rent Limits'!$E$12:$L$26,6,FALSE))","v":""},{"$f":"IF(C93=\"\",\"\",HLOOKUP(C93,'MHP Family Income & Rent Limits'!$E$12:$L$26,7,FALSE))","v":""},{"$f":"IF(C93=\"\",\"\",HLOOKUP(C93,'MHP Family Income & Rent Limits'!$E$12:$L$26,8,FALSE))","v":""},{"$f":"IF(C93=\"\",\"\",HLOOKUP(C93,'MHP Family Income & Rent Limits'!$E$12:$L$26,9,FALSE))","v":""},{"$f":"IF(C93=\"\",\"\",HLOOKUP(C93,'MHP Family Income & Rent Limits'!$E$12:$L$26,10,FALSE))","v":""},{"$f":"IF(C93=\"\",\"\",HLOOKUP(C93,'MHP Family Income & Rent Limits'!$E$12:$L$26,11,FALSE))","v":""},{"$f":"IF(C93=\"\",\"\",HLOOKUP(C93,'MHP Family Income & Rent Limits'!$E$12:$L$26,12,FALSE))","v":""},{"$f":"IF(C93=\"\",\"\",HLOOKUP(C93,'MHP Family Income & Rent Limits'!$E$12:$L$26,13,FALSE))","v":""},{"$f":"IF(C93=\"\",\"\",HLOOKUP(C93,'MHP Family Income & Rent Limits'!$E$12:$L$26,14,FALSE))","v":""},{"$f":"IF(C93=\"\",\"\",HLOOKUP(C93,'MHP Family Income & Rent Limits'!$E$12:$L$26,15,FALSE))","v":""}]
[{"$f":"IF('2. Assisted & Restricted Units'!A94=\"\",\"\",'2. Assisted & Restricted Units'!A94)","v":""},{"$f":"IF('2. Assisted & Restricted Units'!B94=\"\",\"\",'2. Assisted & Restricted Units'!B94)","v":""},{"$f":"IF('2. Assisted & Restricted Units'!D94=\"\",\"\",'2. Assisted & Restricted Units'!D94)","v":""},{"$f":"IF('2. Assisted & Restricted Units'!E94=\"\",\"\",'2. Assisted & Restricted Units'!E94)","v":""},{"$f":"IF('2. Assisted & Restricted Units'!H94=\"\",\"\",'2. Assisted & Restricted Units'!H94)","v":""},{"$f":"_xlfn.IFS(E94=\"\",\"\",E94>BO94,$BP$6,E94>BN94,$BO$6,E94>BM94,$BN$6,E94>BL94,$BM$6,E94>BK94,$BL$6,E94>BJ94,$BK$6,E94>BI94,$BJ$6,E94>BH94,$BI$6,E94>BG94,$BH$6,E94>BF94,$BG$6,E94>BE94,$BF$6,E94>BD94,$BE$6,E94>BC94,$BD$6,E94>=0,$BC$6)","v":""},{"$f":"IF('2. Assisted & Restricted Units'!T94=\"\",\"\",'2. Assisted & Restricted Units'!T94)","v":""},{"$f":"IF('2. Assisted & Restricted Units'!I94=\"\",\"\",'2. Assisted & Restricted Units'!I94)","v":""},{"$f":"IF('2. Assisted & Restricted Units'!AP94=\"\",\"\",'2. Assisted & Restricted Units'!AP94)","v":0},{"$f":"IF('2. Assisted & Restricted Units'!AT94=\"\",\"\",'2. Assisted & Restricted Units'!AT94)","v":""},0,{"$f":"IF('2. Assisted & Restricted Units'!AV94=\"\",\"\",'2. Assisted & Restricted Units'!AV94)","v":""},{"$f":"IF('2. Assisted & Restricted Units'!L94=\"\",\"\",'2. Assisted & Restricted Units'!L94)","v":""},{"$f":"IF('2. Assisted & Restricted Units'!M94=\"\",\"\",'2. Assisted & Restricted Units'!M94)","v":""},{"$f":"IF('2. Assisted & Restricted Units'!O94=\"\",\"\",'2. Assisted & Restricted Units'!O94)","v":""},{"$f":"IF('2. Assisted & Restricted Units'!P94=\"\",\"\",'2. Assisted & Restricted Units'!P94)","v":""},{"$f":"IF('2. Assisted & Restricted Units'!Q94=\"\",\"\",'2. Assisted & Restricted Units'!Q94)","v":""},{"$f":"IF('2. Assisted & Restricted Units'!R94=\"\",\"\",'2. Assisted & Restricted Units'!R94)","v":""},{"$f":"IF(A94=\"\",\"\",'1. Checklist & Certification'!$K$1)","v":""},{"$f":"IF(A94=\"\",\"\",'1. Checklist & Certification'!$C$62)","v":""},{"$f":"IF(A94=\"\",\"\",'1. Checklist & Certification'!$K$62)","v":""},{"$f":"IF(A94=\"\",\"\",'1. Checklist & Certification'!$C$6)","v":""},{"$f":"IF(A94=\"\",\"\",'1. Checklist & Certification'!$G$4)","v":""},{"$f":"IF(A94=\"\",\"\",'1. Checklist & Certification'!$C$7)","v":""},{"$f":"IF(A94=\"\",\"\",'1. Checklist & Certification'!$C$8)","v":""},{"$f":"IF(A94=\"\",\"\",'1. Checklist & Certification'!$F$7)","v":""},{"$f":"IF(A94=\"\",\"\",'1. Checklist & Certification'!$F$8)","v":""},{"$f":"IF(A94=\"\",\"\",'1. Checklist & Certification'!$B$9)","v":""},{"$f":"IF(A94=\"\",\"\",'1. Checklist & Certification'!$F$9)","v":""},{"$f":"IF(A94=\"\",\"\",'1. Checklist & Certification'!$C$10)","v":""},{"$f":"IF(A94=\"\",\"\",'1. Checklist & Certification'!$C$11)","v":""},{"$f":"IF(A94=\"\",\"\",'1. Checklist & Certification'!$C$12)","v":""},{"$f":"IF(A94=\"\",\"\",'1. Checklist & Certification'!$B$14)","v":""},{"$f":"IF(A94=\"\",\"\",'1. Checklist & Certification'!$E$14)","v":""},{"$f":"IF(B94=\"\",\"\",'1. Checklist & Certification'!$G$14)","v":""},{"$f":"IF(A94=\"\",\"\",'MHP Family Income & Rent Limits'!$B$3)","v":""},{"$f":"IF(A94=\"\",\"\",'MHP Family Income & Rent Limits'!$J$3)","v":""},{"$f":"IF(A94=\"\",\"\",'MHP Family Income & Rent Limits'!$E$4)","v":""},{"$f":"IF(A94=\"\",\"\",'MHP Family Income & Rent Limits'!$C$7)","v":""},{"$f":"IF(A94=\"\",\"\",'MHP Family Income & Rent Limits'!$F$8)","v":""},{"$f":"IF(A94=\"\",\"\",'1. Checklist & Certification'!$G$4)","v":""},{"$f":"IF(A94=\"\",\"\",'1. Checklist & Certification'!$K$39)","v":""},{"$f":"IF(A94=\"\",\"\",'1. Checklist & Certification'!$K$43)","v":""},{"$f":"IF(A94=\"\",\"\",'1. Checklist & Certification'!$K$45)","v":""},{"$f":"IF(A94=\"\",\"\",'1. Checklist & Certification'!$K$49)","v":""},{"$f":"IF(A94=\"\",\"\",'1. Checklist & Certification'!$E$66)","v":""},{"$f":"IF(A94=\"\",\"\",'1. Checklist & Certification'!$E$67)","v":""},{"$f":"IF(A94=\"\",\"\",'1. Checklist & Certification'!$E$68)","v":""},{"$f":"IF(A94=\"\",\"\",'1. Checklist & Certification'!$G$66)","v":""},{"$f":"IF(A94=\"\",\"\",'1. Checklist & Certification'!$H$66)","v":""},{"$f":"IF(A94=\"\",\"\",'1. Checklist & Certification'!$I$66)","v":""},{"$f":"IF(A94=\"\",\"\",'1. Checklist & Certification'!$I$67)","v":""},{"$f":"IF(A94=\"\",\"\",'1. Checklist & Certification'!$I$68)","v":""},null,{"$f":"IF(C94=\"\",\"\",HLOOKUP(C94,'MHP Family Income & Rent Limits'!$E$12:$L$26,2,FALSE))","v":""},{"$f":"IF(C94=\"\",\"\",HLOOKUP(C94,'MHP Family Income & Rent Limits'!$E$12:$L$26,3,FALSE))","v":""},{"$f":"IF(C94=\"\",\"\",HLOOKUP(C94,'MHP Family Income & Rent Limits'!$E$12:$L$26,4,FALSE))","v":""},{"$f":"IF(C94=\"\",\"\",HLOOKUP(C94,'MHP Family Income & Rent Limits'!$E$12:$L$26,5,FALSE))","v":""},{"$f":"IF(C94=\"\",\"\",HLOOKUP(C94,'MHP Family Income & Rent Limits'!$E$12:$L$26,6,FALSE))","v":""},{"$f":"IF(C94=\"\",\"\",HLOOKUP(C94,'MHP Family Income & Rent Limits'!$E$12:$L$26,7,FALSE))","v":""},{"$f":"IF(C94=\"\",\"\",HLOOKUP(C94,'MHP Family Income & Rent Limits'!$E$12:$L$26,8,FALSE))","v":""},{"$f":"IF(C94=\"\",\"\",HLOOKUP(C94,'MHP Family Income & Rent Limits'!$E$12:$L$26,9,FALSE))","v":""},{"$f":"IF(C94=\"\",\"\",HLOOKUP(C94,'MHP Family Income & Rent Limits'!$E$12:$L$26,10,FALSE))","v":""},{"$f":"IF(C94=\"\",\"\",HLOOKUP(C94,'MHP Family Income & Rent Limits'!$E$12:$L$26,11,FALSE))","v":""},{"$f":"IF(C94=\"\",\"\",HLOOKUP(C94,'MHP Family Income & Rent Limits'!$E$12:$L$26,12,FALSE))","v":""},{"$f":"IF(C94=\"\",\"\",HLOOKUP(C94,'MHP Family Income & Rent Limits'!$E$12:$L$26,13,FALSE))","v":""},{"$f":"IF(C94=\"\",\"\",HLOOKUP(C94,'MHP Family Income & Rent Limits'!$E$12:$L$26,14,FALSE))","v":""},{"$f":"IF(C94=\"\",\"\",HLOOKUP(C94,'MHP Family Income & Rent Limits'!$E$12:$L$26,15,FALSE))","v":""}]
[{"$f":"IF('2. Assisted & Restricted Units'!A95=\"\",\"\",'2. Assisted & Restricted Units'!A95)","v":""},{"$f":"IF('2. Assisted & Restricted Units'!B95=\"\",\"\",'2. Assisted & Restricted Units'!B95)","v":""},{"$f":"IF('2. Assisted & Restricted Units'!D95=\"\",\"\",'2. Assisted & Restricted Units'!D95)","v":""},{"$f":"IF('2. Assisted & Restricted Units'!E95=\"\",\"\",'2. Assisted & Restricted Units'!E95)","v":""},{"$f":"IF('2. Assisted & Restricted Units'!H95=\"\",\"\",'2. Assisted & Restricted Units'!H95)","v":""},{"$f":"_xlfn.IFS(E95=\"\",\"\",E95>BO95,$BP$6,E95>BN95,$BO$6,E95>BM95,$BN$6,E95>BL95,$BM$6,E95>BK95,$BL$6,E95>BJ95,$BK$6,E95>BI95,$BJ$6,E95>BH95,$BI$6,E95>BG95,$BH$6,E95>BF95,$BG$6,E95>BE95,$BF$6,E95>BD95,$BE$6,E95>BC95,$BD$6,E95>=0,$BC$6)","v":""},{"$f":"IF('2. Assisted & Restricted Units'!T95=\"\",\"\",'2. Assisted & Restricted Units'!T95)","v":""},{"$f":"IF('2. Assisted & Restricted Units'!I95=\"\",\"\",'2. Assisted & Restricted Units'!I95)","v":""},{"$f":"IF('2. Assisted & Restricted Units'!AP95=\"\",\"\",'2. Assisted & Restricted Units'!AP95)","v":0},{"$f":"IF('2. Assisted & Restricted Units'!AT95=\"\",\"\",'2. Assisted & Restricted Units'!AT95)","v":""},0,{"$f":"IF('2. Assisted & Restricted Units'!AV95=\"\",\"\",'2. Assisted & Restricted Units'!AV95)","v":""},{"$f":"IF('2. Assisted & Restricted Units'!L95=\"\",\"\",'2. Assisted & Restricted Units'!L95)","v":""},{"$f":"IF('2. Assisted & Restricted Units'!M95=\"\",\"\",'2. Assisted & Restricted Units'!M95)","v":""},{"$f":"IF('2. Assisted & Restricted Units'!O95=\"\",\"\",'2. Assisted & Restricted Units'!O95)","v":""},{"$f":"IF('2. Assisted & Restricted Units'!P95=\"\",\"\",'2. Assisted & Restricted Units'!P95)","v":""},{"$f":"IF('2. Assisted & Restricted Units'!Q95=\"\",\"\",'2. Assisted & Restricted Units'!Q95)","v":""},{"$f":"IF('2. Assisted & Restricted Units'!R95=\"\",\"\",'2. Assisted & Restricted Units'!R95)","v":""},{"$f":"IF(A95=\"\",\"\",'1. Checklist & Certification'!$K$1)","v":""},{"$f":"IF(A95=\"\",\"\",'1. Checklist & Certification'!$C$62)","v":""},{"$f":"IF(A95=\"\",\"\",'1. Checklist & Certification'!$K$62)","v":""},{"$f":"IF(A95=\"\",\"\",'1. Checklist & Certification'!$C$6)","v":""},{"$f":"IF(A95=\"\",\"\",'1. Checklist & Certification'!$G$4)","v":""},{"$f":"IF(A95=\"\",\"\",'1. Checklist & Certification'!$C$7)","v":""},{"$f":"IF(A95=\"\",\"\",'1. Checklist & Certification'!$C$8)","v":""},{"$f":"IF(A95=\"\",\"\",'1. Checklist & Certification'!$F$7)","v":""},{"$f":"IF(A95=\"\",\"\",'1. Checklist & Certification'!$F$8)","v":""},{"$f":"IF(A95=\"\",\"\",'1. Checklist & Certification'!$B$9)","v":""},{"$f":"IF(A95=\"\",\"\",'1. Checklist & Certification'!$F$9)","v":""},{"$f":"IF(A95=\"\",\"\",'1. Checklist & Certification'!$C$10)","v":""},{"$f":"IF(A95=\"\",\"\",'1. Checklist & Certification'!$C$11)","v":""},{"$f":"IF(A95=\"\",\"\",'1. Checklist & Certification'!$C$12)","v":""},{"$f":"IF(A95=\"\",\"\",'1. Checklist & Certification'!$B$14)","v":""},{"$f":"IF(A95=\"\",\"\",'1. Checklist & Certification'!$E$14)","v":""},{"$f":"IF(B95=\"\",\"\",'1. Checklist & Certification'!$G$14)","v":""},{"$f":"IF(A95=\"\",\"\",'MHP Family Income & Rent Limits'!$B$3)","v":""},{"$f":"IF(A95=\"\",\"\",'MHP Family Income & Rent Limits'!$J$3)","v":""},{"$f":"IF(A95=\"\",\"\",'MHP Family Income & Rent Limits'!$E$4)","v":""},{"$f":"IF(A95=\"\",\"\",'MHP Family Income & Rent Limits'!$C$7)","v":""},{"$f":"IF(A95=\"\",\"\",'MHP Family Income & Rent Limits'!$F$8)","v":""},{"$f":"IF(A95=\"\",\"\",'1. Checklist & Certification'!$G$4)","v":""},{"$f":"IF(A95=\"\",\"\",'1. Checklist & Certification'!$K$39)","v":""},{"$f":"IF(A95=\"\",\"\",'1. Checklist & Certification'!$K$43)","v":""},{"$f":"IF(A95=\"\",\"\",'1. Checklist & Certification'!$K$45)","v":""},{"$f":"IF(A95=\"\",\"\",'1. Checklist & Certification'!$K$49)","v":""},{"$f":"IF(A95=\"\",\"\",'1. Checklist & Certification'!$E$66)","v":""},{"$f":"IF(A95=\"\",\"\",'1. Checklist & Certification'!$E$67)","v":""},{"$f":"IF(A95=\"\",\"\",'1. Checklist & Certification'!$E$68)","v":""},{"$f":"IF(A95=\"\",\"\",'1. Checklist & Certification'!$G$66)","v":""},{"$f":"IF(A95=\"\",\"\",'1. Checklist & Certification'!$H$66)","v":""},{"$f":"IF(A95=\"\",\"\",'1. Checklist & Certification'!$I$66)","v":""},{"$f":"IF(A95=\"\",\"\",'1. Checklist & Certification'!$I$67)","v":""},{"$f":"IF(A95=\"\",\"\",'1. Checklist & Certification'!$I$68)","v":""},null,{"$f":"IF(C95=\"\",\"\",HLOOKUP(C95,'MHP Family Income & Rent Limits'!$E$12:$L$26,2,FALSE))","v":""},{"$f":"IF(C95=\"\",\"\",HLOOKUP(C95,'MHP Family Income & Rent Limits'!$E$12:$L$26,3,FALSE))","v":""},{"$f":"IF(C95=\"\",\"\",HLOOKUP(C95,'MHP Family Income & Rent Limits'!$E$12:$L$26,4,FALSE))","v":""},{"$f":"IF(C95=\"\",\"\",HLOOKUP(C95,'MHP Family Income & Rent Limits'!$E$12:$L$26,5,FALSE))","v":""},{"$f":"IF(C95=\"\",\"\",HLOOKUP(C95,'MHP Family Income & Rent Limits'!$E$12:$L$26,6,FALSE))","v":""},{"$f":"IF(C95=\"\",\"\",HLOOKUP(C95,'MHP Family Income & Rent Limits'!$E$12:$L$26,7,FALSE))","v":""},{"$f":"IF(C95=\"\",\"\",HLOOKUP(C95,'MHP Family Income & Rent Limits'!$E$12:$L$26,8,FALSE))","v":""},{"$f":"IF(C95=\"\",\"\",HLOOKUP(C95,'MHP Family Income & Rent Limits'!$E$12:$L$26,9,FALSE))","v":""},{"$f":"IF(C95=\"\",\"\",HLOOKUP(C95,'MHP Family Income & Rent Limits'!$E$12:$L$26,10,FALSE))","v":""},{"$f":"IF(C95=\"\",\"\",HLOOKUP(C95,'MHP Family Income & Rent Limits'!$E$12:$L$26,11,FALSE))","v":""},{"$f":"IF(C95=\"\",\"\",HLOOKUP(C95,'MHP Family Income & Rent Limits'!$E$12:$L$26,12,FALSE))","v":""},{"$f":"IF(C95=\"\",\"\",HLOOKUP(C95,'MHP Family Income & Rent Limits'!$E$12:$L$26,13,FALSE))","v":""},{"$f":"IF(C95=\"\",\"\",HLOOKUP(C95,'MHP Family Income & Rent Limits'!$E$12:$L$26,14,FALSE))","v":""},{"$f":"IF(C95=\"\",\"\",HLOOKUP(C95,'MHP Family Income & Rent Limits'!$E$12:$L$26,15,FALSE))","v":""}]
[{"$f":"IF('2. Assisted & Restricted Units'!A96=\"\",\"\",'2. Assisted & Restricted Units'!A96)","v":""},{"$f":"IF('2. Assisted & Restricted Units'!B96=\"\",\"\",'2. Assisted & Restricted Units'!B96)","v":""},{"$f":"IF('2. Assisted & Restricted Units'!D96=\"\",\"\",'2. Assisted & Restricted Units'!D96)","v":""},{"$f":"IF('2. Assisted & Restricted Units'!E96=\"\",\"\",'2. Assisted & Restricted Units'!E96)","v":""},{"$f":"IF('2. Assisted & Restricted Units'!H96=\"\",\"\",'2. Assisted & Restricted Units'!H96)","v":""},{"$f":"_xlfn.IFS(E96=\"\",\"\",E96>BO96,$BP$6,E96>BN96,$BO$6,E96>BM96,$BN$6,E96>BL96,$BM$6,E96>BK96,$BL$6,E96>BJ96,$BK$6,E96>BI96,$BJ$6,E96>BH96,$BI$6,E96>BG96,$BH$6,E96>BF96,$BG$6,E96>BE96,$BF$6,E96>BD96,$BE$6,E96>BC96,$BD$6,E96>=0,$BC$6)","v":""},{"$f":"IF('2. Assisted & Restricted Units'!T96=\"\",\"\",'2. Assisted & Restricted Units'!T96)","v":""},{"$f":"IF('2. Assisted & Restricted Units'!I96=\"\",\"\",'2. Assisted & Restricted Units'!I96)","v":""},{"$f":"IF('2. Assisted & Restricted Units'!AP96=\"\",\"\",'2. Assisted & Restricted Units'!AP96)","v":0},{"$f":"IF('2. Assisted & Restricted Units'!AT96=\"\",\"\",'2. Assisted & Restricted Units'!AT96)","v":""},0,{"$f":"IF('2. Assisted & Restricted Units'!AV96=\"\",\"\",'2. Assisted & Restricted Units'!AV96)","v":""},{"$f":"IF('2. Assisted & Restricted Units'!L96=\"\",\"\",'2. Assisted & Restricted Units'!L96)","v":""},{"$f":"IF('2. Assisted & Restricted Units'!M96=\"\",\"\",'2. Assisted & Restricted Units'!M96)","v":""},{"$f":"IF('2. Assisted & Restricted Units'!O96=\"\",\"\",'2. Assisted & Restricted Units'!O96)","v":""},{"$f":"IF('2. Assisted & Restricted Units'!P96=\"\",\"\",'2. Assisted & Restricted Units'!P96)","v":""},{"$f":"IF('2. Assisted & Restricted Units'!Q96=\"\",\"\",'2. Assisted & Restricted Units'!Q96)","v":""},{"$f":"IF('2. Assisted & Restricted Units'!R96=\"\",\"\",'2. Assisted & Restricted Units'!R96)","v":""},{"$f":"IF(A96=\"\",\"\",'1. Checklist & Certification'!$K$1)","v":""},{"$f":"IF(A96=\"\",\"\",'1. Checklist & Certification'!$C$62)","v":""},{"$f":"IF(A96=\"\",\"\",'1. Checklist & Certification'!$K$62)","v":""},{"$f":"IF(A96=\"\",\"\",'1. Checklist & Certification'!$C$6)","v":""},{"$f":"IF(A96=\"\",\"\",'1. Checklist & Certification'!$G$4)","v":""},{"$f":"IF(A96=\"\",\"\",'1. Checklist & Certification'!$C$7)","v":""},{"$f":"IF(A96=\"\",\"\",'1. Checklist & Certification'!$C$8)","v":""},{"$f":"IF(A96=\"\",\"\",'1. Checklist & Certification'!$F$7)","v":""},{"$f":"IF(A96=\"\",\"\",'1. Checklist & Certification'!$F$8)","v":""},{"$f":"IF(A96=\"\",\"\",'1. Checklist & Certification'!$B$9)","v":""},{"$f":"IF(A96=\"\",\"\",'1. Checklist & Certification'!$F$9)","v":""},{"$f":"IF(A96=\"\",\"\",'1. Checklist & Certification'!$C$10)","v":""},{"$f":"IF(A96=\"\",\"\",'1. Checklist & Certification'!$C$11)","v":""},{"$f":"IF(A96=\"\",\"\",'1. Checklist & Certification'!$C$12)","v":""},{"$f":"IF(A96=\"\",\"\",'1. Checklist & Certification'!$B$14)","v":""},{"$f":"IF(A96=\"\",\"\",'1. Checklist & Certification'!$E$14)","v":""},{"$f":"IF(B96=\"\",\"\",'1. Checklist & Certification'!$G$14)","v":""},{"$f":"IF(A96=\"\",\"\",'MHP Family Income & Rent Limits'!$B$3)","v":""},{"$f":"IF(A96=\"\",\"\",'MHP Family Income & Rent Limits'!$J$3)","v":""},{"$f":"IF(A96=\"\",\"\",'MHP Family Income & Rent Limits'!$E$4)","v":""},{"$f":"IF(A96=\"\",\"\",'MHP Family Income & Rent Limits'!$C$7)","v":""},{"$f":"IF(A96=\"\",\"\",'MHP Family Income & Rent Limits'!$F$8)","v":""},{"$f":"IF(A96=\"\",\"\",'1. Checklist & Certification'!$G$4)","v":""},{"$f":"IF(A96=\"\",\"\",'1. Checklist & Certification'!$K$39)","v":""},{"$f":"IF(A96=\"\",\"\",'1. Checklist & Certification'!$K$43)","v":""},{"$f":"IF(A96=\"\",\"\",'1. Checklist & Certification'!$K$45)","v":""},{"$f":"IF(A96=\"\",\"\",'1. Checklist & Certification'!$K$49)","v":""},{"$f":"IF(A96=\"\",\"\",'1. Checklist & Certification'!$E$66)","v":""},{"$f":"IF(A96=\"\",\"\",'1. Checklist & Certification'!$E$67)","v":""},{"$f":"IF(A96=\"\",\"\",'1. Checklist & Certification'!$E$68)","v":""},{"$f":"IF(A96=\"\",\"\",'1. Checklist & Certification'!$G$66)","v":""},{"$f":"IF(A96=\"\",\"\",'1. Checklist & Certification'!$H$66)","v":""},{"$f":"IF(A96=\"\",\"\",'1. Checklist & Certification'!$I$66)","v":""},{"$f":"IF(A96=\"\",\"\",'1. Checklist & Certification'!$I$67)","v":""},{"$f":"IF(A96=\"\",\"\",'1. Checklist & Certification'!$I$68)","v":""},null,{"$f":"IF(C96=\"\",\"\",HLOOKUP(C96,'MHP Family Income & Rent Limits'!$E$12:$L$26,2,FALSE))","v":""},{"$f":"IF(C96=\"\",\"\",HLOOKUP(C96,'MHP Family Income & Rent Limits'!$E$12:$L$26,3,FALSE))","v":""},{"$f":"IF(C96=\"\",\"\",HLOOKUP(C96,'MHP Family Income & Rent Limits'!$E$12:$L$26,4,FALSE))","v":""},{"$f":"IF(C96=\"\",\"\",HLOOKUP(C96,'MHP Family Income & Rent Limits'!$E$12:$L$26,5,FALSE))","v":""},{"$f":"IF(C96=\"\",\"\",HLOOKUP(C96,'MHP Family Income & Rent Limits'!$E$12:$L$26,6,FALSE))","v":""},{"$f":"IF(C96=\"\",\"\",HLOOKUP(C96,'MHP Family Income & Rent Limits'!$E$12:$L$26,7,FALSE))","v":""},{"$f":"IF(C96=\"\",\"\",HLOOKUP(C96,'MHP Family Income & Rent Limits'!$E$12:$L$26,8,FALSE))","v":""},{"$f":"IF(C96=\"\",\"\",HLOOKUP(C96,'MHP Family Income & Rent Limits'!$E$12:$L$26,9,FALSE))","v":""},{"$f":"IF(C96=\"\",\"\",HLOOKUP(C96,'MHP Family Income & Rent Limits'!$E$12:$L$26,10,FALSE))","v":""},{"$f":"IF(C96=\"\",\"\",HLOOKUP(C96,'MHP Family Income & Rent Limits'!$E$12:$L$26,11,FALSE))","v":""},{"$f":"IF(C96=\"\",\"\",HLOOKUP(C96,'MHP Family Income & Rent Limits'!$E$12:$L$26,12,FALSE))","v":""},{"$f":"IF(C96=\"\",\"\",HLOOKUP(C96,'MHP Family Income & Rent Limits'!$E$12:$L$26,13,FALSE))","v":""},{"$f":"IF(C96=\"\",\"\",HLOOKUP(C96,'MHP Family Income & Rent Limits'!$E$12:$L$26,14,FALSE))","v":""},{"$f":"IF(C96=\"\",\"\",HLOOKUP(C96,'MHP Family Income & Rent Limits'!$E$12:$L$26,15,FALSE))","v":""}]
[{"$f":"IF('2. Assisted & Restricted Units'!A97=\"\",\"\",'2. Assisted & Restricted Units'!A97)","v":""},{"$f":"IF('2. Assisted & Restricted Units'!B97=\"\",\"\",'2. Assisted & Restricted Units'!B97)","v":""},{"$f":"IF('2. Assisted & Restricted Units'!D97=\"\",\"\",'2. Assisted & Restricted Units'!D97)","v":""},{"$f":"IF('2. Assisted & Restricted Units'!E97=\"\",\"\",'2. Assisted & Restricted Units'!E97)","v":""},{"$f":"IF('2. Assisted & Restricted Units'!H97=\"\",\"\",'2. Assisted & Restricted Units'!H97)","v":""},{"$f":"_xlfn.IFS(E97=\"\",\"\",E97>BO97,$BP$6,E97>BN97,$BO$6,E97>BM97,$BN$6,E97>BL97,$BM$6,E97>BK97,$BL$6,E97>BJ97,$BK$6,E97>BI97,$BJ$6,E97>BH97,$BI$6,E97>BG97,$BH$6,E97>BF97,$BG$6,E97>BE97,$BF$6,E97>BD97,$BE$6,E97>BC97,$BD$6,E97>=0,$BC$6)","v":""},{"$f":"IF('2. Assisted & Restricted Units'!T97=\"\",\"\",'2. Assisted & Restricted Units'!T97)","v":""},{"$f":"IF('2. Assisted & Restricted Units'!I97=\"\",\"\",'2. Assisted & Restricted Units'!I97)","v":""},{"$f":"IF('2. Assisted & Restricted Units'!AP97=\"\",\"\",'2. Assisted & Restricted Units'!AP97)","v":0},{"$f":"IF('2. Assisted & Restricted Units'!AT97=\"\",\"\",'2. Assisted & Restricted Units'!AT97)","v":""},0,{"$f":"IF('2. Assisted & Restricted Units'!AV97=\"\",\"\",'2. Assisted & Restricted Units'!AV97)","v":""},{"$f":"IF('2. Assisted & Restricted Units'!L97=\"\",\"\",'2. Assisted & Restricted Units'!L97)","v":""},{"$f":"IF('2. Assisted & Restricted Units'!M97=\"\",\"\",'2. Assisted & Restricted Units'!M97)","v":""},{"$f":"IF('2. Assisted & Restricted Units'!O97=\"\",\"\",'2. Assisted & Restricted Units'!O97)","v":""},{"$f":"IF('2. Assisted & Restricted Units'!P97=\"\",\"\",'2. Assisted & Restricted Units'!P97)","v":""},{"$f":"IF('2. Assisted & Restricted Units'!Q97=\"\",\"\",'2. Assisted & Restricted Units'!Q97)","v":""},{"$f":"IF('2. Assisted & Restricted Units'!R97=\"\",\"\",'2. Assisted & Restricted Units'!R97)","v":""},{"$f":"IF(A97=\"\",\"\",'1. Checklist & Certification'!$K$1)","v":""},{"$f":"IF(A97=\"\",\"\",'1. Checklist & Certification'!$C$62)","v":""},{"$f":"IF(A97=\"\",\"\",'1. Checklist & Certification'!$K$62)","v":""},{"$f":"IF(A97=\"\",\"\",'1. Checklist & Certification'!$C$6)","v":""},{"$f":"IF(A97=\"\",\"\",'1. Checklist & Certification'!$G$4)","v":""},{"$f":"IF(A97=\"\",\"\",'1. Checklist & Certification'!$C$7)","v":""},{"$f":"IF(A97=\"\",\"\",'1. Checklist & Certification'!$C$8)","v":""},{"$f":"IF(A97=\"\",\"\",'1. Checklist & Certification'!$F$7)","v":""},{"$f":"IF(A97=\"\",\"\",'1. Checklist & Certification'!$F$8)","v":""},{"$f":"IF(A97=\"\",\"\",'1. Checklist & Certification'!$B$9)","v":""},{"$f":"IF(A97=\"\",\"\",'1. Checklist & Certification'!$F$9)","v":""},{"$f":"IF(A97=\"\",\"\",'1. Checklist & Certification'!$C$10)","v":""},{"$f":"IF(A97=\"\",\"\",'1. Checklist & Certification'!$C$11)","v":""},{"$f":"IF(A97=\"\",\"\",'1. Checklist & Certification'!$C$12)","v":""},{"$f":"IF(A97=\"\",\"\",'1. Checklist & Certification'!$B$14)","v":""},{"$f":"IF(A97=\"\",\"\",'1. Checklist & Certification'!$E$14)","v":""},{"$f":"IF(B97=\"\",\"\",'1. Checklist & Certification'!$G$14)","v":""},{"$f":"IF(A97=\"\",\"\",'MHP Family Income & Rent Limits'!$B$3)","v":""},{"$f":"IF(A97=\"\",\"\",'MHP Family Income & Rent Limits'!$J$3)","v":""},{"$f":"IF(A97=\"\",\"\",'MHP Family Income & Rent Limits'!$E$4)","v":""},{"$f":"IF(A97=\"\",\"\",'MHP Family Income & Rent Limits'!$C$7)","v":""},{"$f":"IF(A97=\"\",\"\",'MHP Family Income & Rent Limits'!$F$8)","v":""},{"$f":"IF(A97=\"\",\"\",'1. Checklist & Certification'!$G$4)","v":""},{"$f":"IF(A97=\"\",\"\",'1. Checklist & Certification'!$K$39)","v":""},{"$f":"IF(A97=\"\",\"\",'1. Checklist & Certification'!$K$43)","v":""},{"$f":"IF(A97=\"\",\"\",'1. Checklist & Certification'!$K$45)","v":""},{"$f":"IF(A97=\"\",\"\",'1. Checklist & Certification'!$K$49)","v":""},{"$f":"IF(A97=\"\",\"\",'1. Checklist & Certification'!$E$66)","v":""},{"$f":"IF(A97=\"\",\"\",'1. Checklist & Certification'!$E$67)","v":""},{"$f":"IF(A97=\"\",\"\",'1. Checklist & Certification'!$E$68)","v":""},{"$f":"IF(A97=\"\",\"\",'1. Checklist & Certification'!$G$66)","v":""},{"$f":"IF(A97=\"\",\"\",'1. Checklist & Certification'!$H$66)","v":""},{"$f":"IF(A97=\"\",\"\",'1. Checklist & Certification'!$I$66)","v":""},{"$f":"IF(A97=\"\",\"\",'1. Checklist & Certification'!$I$67)","v":""},{"$f":"IF(A97=\"\",\"\",'1. Checklist & Certification'!$I$68)","v":""},null,{"$f":"IF(C97=\"\",\"\",HLOOKUP(C97,'MHP Family Income & Rent Limits'!$E$12:$L$26,2,FALSE))","v":""},{"$f":"IF(C97=\"\",\"\",HLOOKUP(C97,'MHP Family Income & Rent Limits'!$E$12:$L$26,3,FALSE))","v":""},{"$f":"IF(C97=\"\",\"\",HLOOKUP(C97,'MHP Family Income & Rent Limits'!$E$12:$L$26,4,FALSE))","v":""},{"$f":"IF(C97=\"\",\"\",HLOOKUP(C97,'MHP Family Income & Rent Limits'!$E$12:$L$26,5,FALSE))","v":""},{"$f":"IF(C97=\"\",\"\",HLOOKUP(C97,'MHP Family Income & Rent Limits'!$E$12:$L$26,6,FALSE))","v":""},{"$f":"IF(C97=\"\",\"\",HLOOKUP(C97,'MHP Family Income & Rent Limits'!$E$12:$L$26,7,FALSE))","v":""},{"$f":"IF(C97=\"\",\"\",HLOOKUP(C97,'MHP Family Income & Rent Limits'!$E$12:$L$26,8,FALSE))","v":""},{"$f":"IF(C97=\"\",\"\",HLOOKUP(C97,'MHP Family Income & Rent Limits'!$E$12:$L$26,9,FALSE))","v":""},{"$f":"IF(C97=\"\",\"\",HLOOKUP(C97,'MHP Family Income & Rent Limits'!$E$12:$L$26,10,FALSE))","v":""},{"$f":"IF(C97=\"\",\"\",HLOOKUP(C97,'MHP Family Income & Rent Limits'!$E$12:$L$26,11,FALSE))","v":""},{"$f":"IF(C97=\"\",\"\",HLOOKUP(C97,'MHP Family Income & Rent Limits'!$E$12:$L$26,12,FALSE))","v":""},{"$f":"IF(C97=\"\",\"\",HLOOKUP(C97,'MHP Family Income & Rent Limits'!$E$12:$L$26,13,FALSE))","v":""},{"$f":"IF(C97=\"\",\"\",HLOOKUP(C97,'MHP Family Income & Rent Limits'!$E$12:$L$26,14,FALSE))","v":""},{"$f":"IF(C97=\"\",\"\",HLOOKUP(C97,'MHP Family Income & Rent Limits'!$E$12:$L$26,15,FALSE))","v":""}]
[{"$f":"IF('2. Assisted & Restricted Units'!A98=\"\",\"\",'2. Assisted & Restricted Units'!A98)","v":""},{"$f":"IF('2. Assisted & Restricted Units'!B98=\"\",\"\",'2. Assisted & Restricted Units'!B98)","v":""},{"$f":"IF('2. Assisted & Restricted Units'!D98=\"\",\"\",'2. Assisted & Restricted Units'!D98)","v":""},{"$f":"IF('2. Assisted & Restricted Units'!E98=\"\",\"\",'2. Assisted & Restricted Units'!E98)","v":""},{"$f":"IF('2. Assisted & Restricted Units'!H98=\"\",\"\",'2. Assisted & Restricted Units'!H98)","v":""},{"$f":"_xlfn.IFS(E98=\"\",\"\",E98>BO98,$BP$6,E98>BN98,$BO$6,E98>BM98,$BN$6,E98>BL98,$BM$6,E98>BK98,$BL$6,E98>BJ98,$BK$6,E98>BI98,$BJ$6,E98>BH98,$BI$6,E98>BG98,$BH$6,E98>BF98,$BG$6,E98>BE98,$BF$6,E98>BD98,$BE$6,E98>BC98,$BD$6,E98>=0,$BC$6)","v":""},{"$f":"IF('2. Assisted & Restricted Units'!T98=\"\",\"\",'2. Assisted & Restricted Units'!T98)","v":""},{"$f":"IF('2. Assisted & Restricted Units'!I98=\"\",\"\",'2. Assisted & Restricted Units'!I98)","v":""},{"$f":"IF('2. Assisted & Restricted Units'!AP98=\"\",\"\",'2. Assisted & Restricted Units'!AP98)","v":0},{"$f":"IF('2. Assisted & Restricted Units'!AT98=\"\",\"\",'2. Assisted & Restricted Units'!AT98)","v":""},0,{"$f":"IF('2. Assisted & Restricted Units'!AV98=\"\",\"\",'2. Assisted & Restricted Units'!AV98)","v":""},{"$f":"IF('2. Assisted & Restricted Units'!L98=\"\",\"\",'2. Assisted & Restricted Units'!L98)","v":""},{"$f":"IF('2. Assisted & Restricted Units'!M98=\"\",\"\",'2. Assisted & Restricted Units'!M98)","v":""},{"$f":"IF('2. Assisted & Restricted Units'!O98=\"\",\"\",'2. Assisted & Restricted Units'!O98)","v":""},{"$f":"IF('2. Assisted & Restricted Units'!P98=\"\",\"\",'2. Assisted & Restricted Units'!P98)","v":""},{"$f":"IF('2. Assisted & Restricted Units'!Q98=\"\",\"\",'2. Assisted & Restricted Units'!Q98)","v":""},{"$f":"IF('2. Assisted & Restricted Units'!R98=\"\",\"\",'2. Assisted & Restricted Units'!R98)","v":""},{"$f":"IF(A98=\"\",\"\",'1. Checklist & Certification'!$K$1)","v":""},{"$f":"IF(A98=\"\",\"\",'1. Checklist & Certification'!$C$62)","v":""},{"$f":"IF(A98=\"\",\"\",'1. Checklist & Certification'!$K$62)","v":""},{"$f":"IF(A98=\"\",\"\",'1. Checklist & Certification'!$C$6)","v":""},{"$f":"IF(A98=\"\",\"\",'1. Checklist & Certification'!$G$4)","v":""},{"$f":"IF(A98=\"\",\"\",'1. Checklist & Certification'!$C$7)","v":""},{"$f":"IF(A98=\"\",\"\",'1. Checklist & Certification'!$C$8)","v":""},{"$f":"IF(A98=\"\",\"\",'1. Checklist & Certification'!$F$7)","v":""},{"$f":"IF(A98=\"\",\"\",'1. Checklist & Certification'!$F$8)","v":""},{"$f":"IF(A98=\"\",\"\",'1. Checklist & Certification'!$B$9)","v":""},{"$f":"IF(A98=\"\",\"\",'1. Checklist & Certification'!$F$9)","v":""},{"$f":"IF(A98=\"\",\"\",'1. Checklist & Certification'!$C$10)","v":""},{"$f":"IF(A98=\"\",\"\",'1. Checklist & Certification'!$C$11)","v":""},{"$f":"IF(A98=\"\",\"\",'1. Checklist & Certification'!$C$12)","v":""},{"$f":"IF(A98=\"\",\"\",'1. Checklist & Certification'!$B$14)","v":""},{"$f":"IF(A98=\"\",\"\",'1. Checklist & Certification'!$E$14)","v":""},{"$f":"IF(B98=\"\",\"\",'1. Checklist & Certification'!$G$14)","v":""},{"$f":"IF(A98=\"\",\"\",'MHP Family Income & Rent Limits'!$B$3)","v":""},{"$f":"IF(A98=\"\",\"\",'MHP Family Income & Rent Limits'!$J$3)","v":""},{"$f":"IF(A98=\"\",\"\",'MHP Family Income & Rent Limits'!$E$4)","v":""},{"$f":"IF(A98=\"\",\"\",'MHP Family Income & Rent Limits'!$C$7)","v":""},{"$f":"IF(A98=\"\",\"\",'MHP Family Income & Rent Limits'!$F$8)","v":""},{"$f":"IF(A98=\"\",\"\",'1. Checklist & Certification'!$G$4)","v":""},{"$f":"IF(A98=\"\",\"\",'1. Checklist & Certification'!$K$39)","v":""},{"$f":"IF(A98=\"\",\"\",'1. Checklist & Certification'!$K$43)","v":""},{"$f":"IF(A98=\"\",\"\",'1. Checklist & Certification'!$K$45)","v":""},{"$f":"IF(A98=\"\",\"\",'1. Checklist & Certification'!$K$49)","v":""},{"$f":"IF(A98=\"\",\"\",'1. Checklist & Certification'!$E$66)","v":""},{"$f":"IF(A98=\"\",\"\",'1. Checklist & Certification'!$E$67)","v":""},{"$f":"IF(A98=\"\",\"\",'1. Checklist & Certification'!$E$68)","v":""},{"$f":"IF(A98=\"\",\"\",'1. Checklist & Certification'!$G$66)","v":""},{"$f":"IF(A98=\"\",\"\",'1. Checklist & Certification'!$H$66)","v":""},{"$f":"IF(A98=\"\",\"\",'1. Checklist & Certification'!$I$66)","v":""},{"$f":"IF(A98=\"\",\"\",'1. Checklist & Certification'!$I$67)","v":""},{"$f":"IF(A98=\"\",\"\",'1. Checklist & Certification'!$I$68)","v":""},null,{"$f":"IF(C98=\"\",\"\",HLOOKUP(C98,'MHP Family Income & Rent Limits'!$E$12:$L$26,2,FALSE))","v":""},{"$f":"IF(C98=\"\",\"\",HLOOKUP(C98,'MHP Family Income & Rent Limits'!$E$12:$L$26,3,FALSE))","v":""},{"$f":"IF(C98=\"\",\"\",HLOOKUP(C98,'MHP Family Income & Rent Limits'!$E$12:$L$26,4,FALSE))","v":""},{"$f":"IF(C98=\"\",\"\",HLOOKUP(C98,'MHP Family Income & Rent Limits'!$E$12:$L$26,5,FALSE))","v":""},{"$f":"IF(C98=\"\",\"\",HLOOKUP(C98,'MHP Family Income & Rent Limits'!$E$12:$L$26,6,FALSE))","v":""},{"$f":"IF(C98=\"\",\"\",HLOOKUP(C98,'MHP Family Income & Rent Limits'!$E$12:$L$26,7,FALSE))","v":""},{"$f":"IF(C98=\"\",\"\",HLOOKUP(C98,'MHP Family Income & Rent Limits'!$E$12:$L$26,8,FALSE))","v":""},{"$f":"IF(C98=\"\",\"\",HLOOKUP(C98,'MHP Family Income & Rent Limits'!$E$12:$L$26,9,FALSE))","v":""},{"$f":"IF(C98=\"\",\"\",HLOOKUP(C98,'MHP Family Income & Rent Limits'!$E$12:$L$26,10,FALSE))","v":""},{"$f":"IF(C98=\"\",\"\",HLOOKUP(C98,'MHP Family Income & Rent Limits'!$E$12:$L$26,11,FALSE))","v":""},{"$f":"IF(C98=\"\",\"\",HLOOKUP(C98,'MHP Family Income & Rent Limits'!$E$12:$L$26,12,FALSE))","v":""},{"$f":"IF(C98=\"\",\"\",HLOOKUP(C98,'MHP Family Income & Rent Limits'!$E$12:$L$26,13,FALSE))","v":""},{"$f":"IF(C98=\"\",\"\",HLOOKUP(C98,'MHP Family Income & Rent Limits'!$E$12:$L$26,14,FALSE))","v":""},{"$f":"IF(C98=\"\",\"\",HLOOKUP(C98,'MHP Family Income & Rent Limits'!$E$12:$L$26,15,FALSE))","v":""}]
[{"$f":"IF('2. Assisted & Restricted Units'!A99=\"\",\"\",'2. Assisted & Restricted Units'!A99)","v":""},{"$f":"IF('2. Assisted & Restricted Units'!B99=\"\",\"\",'2. Assisted & Restricted Units'!B99)","v":""},{"$f":"IF('2. Assisted & Restricted Units'!D99=\"\",\"\",'2. Assisted & Restricted Units'!D99)","v":""},{"$f":"IF('2. Assisted & Restricted Units'!E99=\"\",\"\",'2. Assisted & Restricted Units'!E99)","v":""},{"$f":"IF('2. Assisted & Restricted Units'!H99=\"\",\"\",'2. Assisted & Restricted Units'!H99)","v":""},{"$f":"_xlfn.IFS(E99=\"\",\"\",E99>BO99,$BP$6,E99>BN99,$BO$6,E99>BM99,$BN$6,E99>BL99,$BM$6,E99>BK99,$BL$6,E99>BJ99,$BK$6,E99>BI99,$BJ$6,E99>BH99,$BI$6,E99>BG99,$BH$6,E99>BF99,$BG$6,E99>BE99,$BF$6,E99>BD99,$BE$6,E99>BC99,$BD$6,E99>=0,$BC$6)","v":""},{"$f":"IF('2. Assisted & Restricted Units'!T99=\"\",\"\",'2. Assisted & Restricted Units'!T99)","v":""},{"$f":"IF('2. Assisted & Restricted Units'!I99=\"\",\"\",'2. Assisted & Restricted Units'!I99)","v":""},{"$f":"IF('2. Assisted & Restricted Units'!AP99=\"\",\"\",'2. Assisted & Restricted Units'!AP99)","v":0},{"$f":"IF('2. Assisted & Restricted Units'!AT99=\"\",\"\",'2. Assisted & Restricted Units'!AT99)","v":""},0,{"$f":"IF('2. Assisted & Restricted Units'!AV99=\"\",\"\",'2. Assisted & Restricted Units'!AV99)","v":""},{"$f":"IF('2. Assisted & Restricted Units'!L99=\"\",\"\",'2. Assisted & Restricted Units'!L99)","v":""},{"$f":"IF('2. Assisted & Restricted Units'!M99=\"\",\"\",'2. Assisted & Restricted Units'!M99)","v":""},{"$f":"IF('2. Assisted & Restricted Units'!O99=\"\",\"\",'2. Assisted & Restricted Units'!O99)","v":""},{"$f":"IF('2. Assisted & Restricted Units'!P99=\"\",\"\",'2. Assisted & Restricted Units'!P99)","v":""},{"$f":"IF('2. Assisted & Restricted Units'!Q99=\"\",\"\",'2. Assisted & Restricted Units'!Q99)","v":""},{"$f":"IF('2. Assisted & Restricted Units'!R99=\"\",\"\",'2. Assisted & Restricted Units'!R99)","v":""},{"$f":"IF(A99=\"\",\"\",'1. Checklist & Certification'!$K$1)","v":""},{"$f":"IF(A99=\"\",\"\",'1. Checklist & Certification'!$C$62)","v":""},{"$f":"IF(A99=\"\",\"\",'1. Checklist & Certification'!$K$62)","v":""},{"$f":"IF(A99=\"\",\"\",'1. Checklist & Certification'!$C$6)","v":""},{"$f":"IF(A99=\"\",\"\",'1. Checklist & Certification'!$G$4)","v":""},{"$f":"IF(A99=\"\",\"\",'1. Checklist & Certification'!$C$7)","v":""},{"$f":"IF(A99=\"\",\"\",'1. Checklist & Certification'!$C$8)","v":""},{"$f":"IF(A99=\"\",\"\",'1. Checklist & Certification'!$F$7)","v":""},{"$f":"IF(A99=\"\",\"\",'1. Checklist & Certification'!$F$8)","v":""},{"$f":"IF(A99=\"\",\"\",'1. Checklist & Certification'!$B$9)","v":""},{"$f":"IF(A99=\"\",\"\",'1. Checklist & Certification'!$F$9)","v":""},{"$f":"IF(A99=\"\",\"\",'1. Checklist & Certification'!$C$10)","v":""},{"$f":"IF(A99=\"\",\"\",'1. Checklist & Certification'!$C$11)","v":""},{"$f":"IF(A99=\"\",\"\",'1. Checklist & Certification'!$C$12)","v":""},{"$f":"IF(A99=\"\",\"\",'1. Checklist & Certification'!$B$14)","v":""},{"$f":"IF(A99=\"\",\"\",'1. Checklist & Certification'!$E$14)","v":""},{"$f":"IF(B99=\"\",\"\",'1. Checklist & Certification'!$G$14)","v":""},{"$f":"IF(A99=\"\",\"\",'MHP Family Income & Rent Limits'!$B$3)","v":""},{"$f":"IF(A99=\"\",\"\",'MHP Family Income & Rent Limits'!$J$3)","v":""},{"$f":"IF(A99=\"\",\"\",'MHP Family Income & Rent Limits'!$E$4)","v":""},{"$f":"IF(A99=\"\",\"\",'MHP Family Income & Rent Limits'!$C$7)","v":""},{"$f":"IF(A99=\"\",\"\",'MHP Family Income & Rent Limits'!$F$8)","v":""},{"$f":"IF(A99=\"\",\"\",'1. Checklist & Certification'!$G$4)","v":""},{"$f":"IF(A99=\"\",\"\",'1. Checklist & Certification'!$K$39)","v":""},{"$f":"IF(A99=\"\",\"\",'1. Checklist & Certification'!$K$43)","v":""},{"$f":"IF(A99=\"\",\"\",'1. Checklist & Certification'!$K$45)","v":""},{"$f":"IF(A99=\"\",\"\",'1. Checklist & Certification'!$K$49)","v":""},{"$f":"IF(A99=\"\",\"\",'1. Checklist & Certification'!$E$66)","v":""},{"$f":"IF(A99=\"\",\"\",'1. Checklist & Certification'!$E$67)","v":""},{"$f":"IF(A99=\"\",\"\",'1. Checklist & Certification'!$E$68)","v":""},{"$f":"IF(A99=\"\",\"\",'1. Checklist & Certification'!$G$66)","v":""},{"$f":"IF(A99=\"\",\"\",'1. Checklist & Certification'!$H$66)","v":""},{"$f":"IF(A99=\"\",\"\",'1. Checklist & Certification'!$I$66)","v":""},{"$f":"IF(A99=\"\",\"\",'1. Checklist & Certification'!$I$67)","v":""},{"$f":"IF(A99=\"\",\"\",'1. Checklist & Certification'!$I$68)","v":""},null,{"$f":"IF(C99=\"\",\"\",HLOOKUP(C99,'MHP Family Income & Rent Limits'!$E$12:$L$26,2,FALSE))","v":""},{"$f":"IF(C99=\"\",\"\",HLOOKUP(C99,'MHP Family Income & Rent Limits'!$E$12:$L$26,3,FALSE))","v":""},{"$f":"IF(C99=\"\",\"\",HLOOKUP(C99,'MHP Family Income & Rent Limits'!$E$12:$L$26,4,FALSE))","v":""},{"$f":"IF(C99=\"\",\"\",HLOOKUP(C99,'MHP Family Income & Rent Limits'!$E$12:$L$26,5,FALSE))","v":""},{"$f":"IF(C99=\"\",\"\",HLOOKUP(C99,'MHP Family Income & Rent Limits'!$E$12:$L$26,6,FALSE))","v":""},{"$f":"IF(C99=\"\",\"\",HLOOKUP(C99,'MHP Family Income & Rent Limits'!$E$12:$L$26,7,FALSE))","v":""},{"$f":"IF(C99=\"\",\"\",HLOOKUP(C99,'MHP Family Income & Rent Limits'!$E$12:$L$26,8,FALSE))","v":""},{"$f":"IF(C99=\"\",\"\",HLOOKUP(C99,'MHP Family Income & Rent Limits'!$E$12:$L$26,9,FALSE))","v":""},{"$f":"IF(C99=\"\",\"\",HLOOKUP(C99,'MHP Family Income & Rent Limits'!$E$12:$L$26,10,FALSE))","v":""},{"$f":"IF(C99=\"\",\"\",HLOOKUP(C99,'MHP Family Income & Rent Limits'!$E$12:$L$26,11,FALSE))","v":""},{"$f":"IF(C99=\"\",\"\",HLOOKUP(C99,'MHP Family Income & Rent Limits'!$E$12:$L$26,12,FALSE))","v":""},{"$f":"IF(C99=\"\",\"\",HLOOKUP(C99,'MHP Family Income & Rent Limits'!$E$12:$L$26,13,FALSE))","v":""},{"$f":"IF(C99=\"\",\"\",HLOOKUP(C99,'MHP Family Income & Rent Limits'!$E$12:$L$26,14,FALSE))","v":""},{"$f":"IF(C99=\"\",\"\",HLOOKUP(C99,'MHP Family Income & Rent Limits'!$E$12:$L$26,15,FALSE))","v":""}]
[{"$f":"IF('2. Assisted & Restricted Units'!A100=\"\",\"\",'2. Assisted & Restricted Units'!A100)","v":""},{"$f":"IF('2. Assisted & Restricted Units'!B100=\"\",\"\",'2. Assisted & Restricted Units'!B100)","v":""},{"$f":"IF('2. Assisted & Restricted Units'!D100=\"\",\"\",'2. Assisted & Restricted Units'!D100)","v":""},{"$f":"IF('2. Assisted & Restricted Units'!E100=\"\",\"\",'2. Assisted & Restricted Units'!E100)","v":""},{"$f":"IF('2. Assisted & Restricted Units'!H100=\"\",\"\",'2. Assisted & Restricted Units'!H100)","v":""},{"$f":"_xlfn.IFS(E100=\"\",\"\",E100>BO100,$BP$6,E100>BN100,$BO$6,E100>BM100,$BN$6,E100>BL100,$BM$6,E100>BK100,$BL$6,E100>BJ100,$BK$6,E100>BI100,$BJ$6,E100>BH100,$BI$6,E100>BG100,$BH$6,E100>BF100,$BG$6,E100>BE100,$BF$6,E100>BD100,$BE$6,E100>BC100,$BD$6,E100>=0,$BC$6)","v":""},{"$f":"IF('2. Assisted & Restricted Units'!T100=\"\",\"\",'2. Assisted & Restricted Units'!T100)","v":""},{"$f":"IF('2. Assisted & Restricted Units'!I100=\"\",\"\",'2. Assisted & Restricted Units'!I100)","v":""},{"$f":"IF('2. Assisted & Restricted Units'!AP100=\"\",\"\",'2. Assisted & Restricted Units'!AP100)","v":0},{"$f":"IF('2. Assisted & Restricted Units'!AT100=\"\",\"\",'2. Assisted & Restricted Units'!AT100)","v":""},0,{"$f":"IF('2. Assisted & Restricted Units'!AV100=\"\",\"\",'2. Assisted & Restricted Units'!AV100)","v":""},{"$f":"IF('2. Assisted & Restricted Units'!L100=\"\",\"\",'2. Assisted & Restricted Units'!L100)","v":""},{"$f":"IF('2. Assisted & Restricted Units'!M100=\"\",\"\",'2. Assisted & Restricted Units'!M100)","v":""},{"$f":"IF('2. Assisted & Restricted Units'!O100=\"\",\"\",'2. Assisted & Restricted Units'!O100)","v":""},{"$f":"IF('2. Assisted & Restricted Units'!P100=\"\",\"\",'2. Assisted & Restricted Units'!P100)","v":""},{"$f":"IF('2. Assisted & Restricted Units'!Q100=\"\",\"\",'2. Assisted & Restricted Units'!Q100)","v":""},{"$f":"IF('2. Assisted & Restricted Units'!R100=\"\",\"\",'2. Assisted & Restricted Units'!R100)","v":""},{"$f":"IF(A100=\"\",\"\",'1. Checklist & Certification'!$K$1)","v":""},{"$f":"IF(A100=\"\",\"\",'1. Checklist & Certification'!$C$62)","v":""},{"$f":"IF(A100=\"\",\"\",'1. Checklist & Certification'!$K$62)","v":""},{"$f":"IF(A100=\"\",\"\",'1. Checklist & Certification'!$C$6)","v":""},{"$f":"IF(A100=\"\",\"\",'1. Checklist & Certification'!$G$4)","v":""},{"$f":"IF(A100=\"\",\"\",'1. Checklist & Certification'!$C$7)","v":""},{"$f":"IF(A100=\"\",\"\",'1. Checklist & Certification'!$C$8)","v":""},{"$f":"IF(A100=\"\",\"\",'1. Checklist & Certification'!$F$7)","v":""},{"$f":"IF(A100=\"\",\"\",'1. Checklist & Certification'!$F$8)","v":""},{"$f":"IF(A100=\"\",\"\",'1. Checklist & Certification'!$B$9)","v":""},{"$f":"IF(A100=\"\",\"\",'1. Checklist & Certification'!$F$9)","v":""},{"$f":"IF(A100=\"\",\"\",'1. Checklist & Certification'!$C$10)","v":""},{"$f":"IF(A100=\"\",\"\",'1. Checklist & Certification'!$C$11)","v":""},{"$f":"IF(A100=\"\",\"\",'1. Checklist & Certification'!$C$12)","v":""},{"$f":"IF(A100=\"\",\"\",'1. Checklist & Certification'!$B$14)","v":""},{"$f":"IF(A100=\"\",\"\",'1. Checklist & Certification'!$E$14)","v":""},{"$f":"IF(B100=\"\",\"\",'1. Checklist & Certification'!$G$14)","v":""},{"$f":"IF(A100=\"\",\"\",'MHP Family Income & Rent Limits'!$B$3)","v":""},{"$f":"IF(A100=\"\",\"\",'MHP Family Income & Rent Limits'!$J$3)","v":""},{"$f":"IF(A100=\"\",\"\",'MHP Family Income & Rent Limits'!$E$4)","v":""},{"$f":"IF(A100=\"\",\"\",'MHP Family Income & Rent Limits'!$C$7)","v":""},{"$f":"IF(A100=\"\",\"\",'MHP Family Income & Rent Limits'!$F$8)","v":""},{"$f":"IF(A100=\"\",\"\",'1. Checklist & Certification'!$G$4)","v":""},{"$f":"IF(A100=\"\",\"\",'1. Checklist & Certification'!$K$39)","v":""},{"$f":"IF(A100=\"\",\"\",'1. Checklist & Certification'!$K$43)","v":""},{"$f":"IF(A100=\"\",\"\",'1. Checklist & Certification'!$K$45)","v":""},{"$f":"IF(A100=\"\",\"\",'1. Checklist & Certification'!$K$49)","v":""},{"$f":"IF(A100=\"\",\"\",'1. Checklist & Certification'!$E$66)","v":""},{"$f":"IF(A100=\"\",\"\",'1. Checklist & Certification'!$E$67)","v":""},{"$f":"IF(A100=\"\",\"\",'1. Checklist & Certification'!$E$68)","v":""},{"$f":"IF(A100=\"\",\"\",'1. Checklist & Certification'!$G$66)","v":""},{"$f":"IF(A100=\"\",\"\",'1. Checklist & Certification'!$H$66)","v":""},{"$f":"IF(A100=\"\",\"\",'1. Checklist & Certification'!$I$66)","v":""},{"$f":"IF(A100=\"\",\"\",'1. Checklist & Certification'!$I$67)","v":""},{"$f":"IF(A100=\"\",\"\",'1. Checklist & Certification'!$I$68)","v":""},null,{"$f":"IF(C100=\"\",\"\",HLOOKUP(C100,'MHP Family Income & Rent Limits'!$E$12:$L$26,2,FALSE))","v":""},{"$f":"IF(C100=\"\",\"\",HLOOKUP(C100,'MHP Family Income & Rent Limits'!$E$12:$L$26,3,FALSE))","v":""},{"$f":"IF(C100=\"\",\"\",HLOOKUP(C100,'MHP Family Income & Rent Limits'!$E$12:$L$26,4,FALSE))","v":""},{"$f":"IF(C100=\"\",\"\",HLOOKUP(C100,'MHP Family Income & Rent Limits'!$E$12:$L$26,5,FALSE))","v":""},{"$f":"IF(C100=\"\",\"\",HLOOKUP(C100,'MHP Family Income & Rent Limits'!$E$12:$L$26,6,FALSE))","v":""},{"$f":"IF(C100=\"\",\"\",HLOOKUP(C100,'MHP Family Income & Rent Limits'!$E$12:$L$26,7,FALSE))","v":""},{"$f":"IF(C100=\"\",\"\",HLOOKUP(C100,'MHP Family Income & Rent Limits'!$E$12:$L$26,8,FALSE))","v":""},{"$f":"IF(C100=\"\",\"\",HLOOKUP(C100,'MHP Family Income & Rent Limits'!$E$12:$L$26,9,FALSE))","v":""},{"$f":"IF(C100=\"\",\"\",HLOOKUP(C100,'MHP Family Income & Rent Limits'!$E$12:$L$26,10,FALSE))","v":""},{"$f":"IF(C100=\"\",\"\",HLOOKUP(C100,'MHP Family Income & Rent Limits'!$E$12:$L$26,11,FALSE))","v":""},{"$f":"IF(C100=\"\",\"\",HLOOKUP(C100,'MHP Family Income & Rent Limits'!$E$12:$L$26,12,FALSE))","v":""},{"$f":"IF(C100=\"\",\"\",HLOOKUP(C100,'MHP Family Income & Rent Limits'!$E$12:$L$26,13,FALSE))","v":""},{"$f":"IF(C100=\"\",\"\",HLOOKUP(C100,'MHP Family Income & Rent Limits'!$E$12:$L$26,14,FALSE))","v":""},{"$f":"IF(C100=\"\",\"\",HLOOKUP(C100,'MHP Family Income & Rent Limits'!$E$12:$L$26,15,FALSE))","v":""}]
[{"$f":"IF('2. Assisted & Restricted Units'!A101=\"\",\"\",'2. Assisted & Restricted Units'!A101)","v":""},{"$f":"IF('2. Assisted & Restricted Units'!B101=\"\",\"\",'2. Assisted & Restricted Units'!B101)","v":""},{"$f":"IF('2. Assisted & Restricted Units'!D101=\"\",\"\",'2. Assisted & Restricted Units'!D101)","v":""},{"$f":"IF('2. Assisted & Restricted Units'!E101=\"\",\"\",'2. Assisted & Restricted Units'!E101)","v":""},{"$f":"IF('2. Assisted & Restricted Units'!H101=\"\",\"\",'2. Assisted & Restricted Units'!H101)","v":""},{"$f":"_xlfn.IFS(E101=\"\",\"\",E101>BO101,$BP$6,E101>BN101,$BO$6,E101>BM101,$BN$6,E101>BL101,$BM$6,E101>BK101,$BL$6,E101>BJ101,$BK$6,E101>BI101,$BJ$6,E101>BH101,$BI$6,E101>BG101,$BH$6,E101>BF101,$BG$6,E101>BE101,$BF$6,E101>BD101,$BE$6,E101>BC101,$BD$6,E101>=0,$BC$6)","v":""},{"$f":"IF('2. Assisted & Restricted Units'!T101=\"\",\"\",'2. Assisted & Restricted Units'!T101)","v":""},{"$f":"IF('2. Assisted & Restricted Units'!I101=\"\",\"\",'2. Assisted & Restricted Units'!I101)","v":""},{"$f":"IF('2. Assisted & Restricted Units'!AP101=\"\",\"\",'2. Assisted & Restricted Units'!AP101)","v":0},{"$f":"IF('2. Assisted & Restricted Units'!AT101=\"\",\"\",'2. Assisted & Restricted Units'!AT101)","v":""},0,{"$f":"IF('2. Assisted & Restricted Units'!AV101=\"\",\"\",'2. Assisted & Restricted Units'!AV101)","v":""},{"$f":"IF('2. Assisted & Restricted Units'!L101=\"\",\"\",'2. Assisted & Restricted Units'!L101)","v":""},{"$f":"IF('2. Assisted & Restricted Units'!M101=\"\",\"\",'2. Assisted & Restricted Units'!M101)","v":""},{"$f":"IF('2. Assisted & Restricted Units'!O101=\"\",\"\",'2. Assisted & Restricted Units'!O101)","v":""},{"$f":"IF('2. Assisted & Restricted Units'!P101=\"\",\"\",'2. Assisted & Restricted Units'!P101)","v":""},{"$f":"IF('2. Assisted & Restricted Units'!Q101=\"\",\"\",'2. Assisted & Restricted Units'!Q101)","v":""},{"$f":"IF('2. Assisted & Restricted Units'!R101=\"\",\"\",'2. Assisted & Restricted Units'!R101)","v":""},{"$f":"IF(A101=\"\",\"\",'1. Checklist & Certification'!$K$1)","v":""},{"$f":"IF(A101=\"\",\"\",'1. Checklist & Certification'!$C$62)","v":""},{"$f":"IF(A101=\"\",\"\",'1. Checklist & Certification'!$K$62)","v":""},{"$f":"IF(A101=\"\",\"\",'1. Checklist & Certification'!$C$6)","v":""},{"$f":"IF(A101=\"\",\"\",'1. Checklist & Certification'!$G$4)","v":""},{"$f":"IF(A101=\"\",\"\",'1. Checklist & Certification'!$C$7)","v":""},{"$f":"IF(A101=\"\",\"\",'1. Checklist & Certification'!$C$8)","v":""},{"$f":"IF(A101=\"\",\"\",'1. Checklist & Certification'!$F$7)","v":""},{"$f":"IF(A101=\"\",\"\",'1. Checklist & Certification'!$F$8)","v":""},{"$f":"IF(A101=\"\",\"\",'1. Checklist & Certification'!$B$9)","v":""},{"$f":"IF(A101=\"\",\"\",'1. Checklist & Certification'!$F$9)","v":""},{"$f":"IF(A101=\"\",\"\",'1. Checklist & Certification'!$C$10)","v":""},{"$f":"IF(A101=\"\",\"\",'1. Checklist & Certification'!$C$11)","v":""},{"$f":"IF(A101=\"\",\"\",'1. Checklist & Certification'!$C$12)","v":""},{"$f":"IF(A101=\"\",\"\",'1. Checklist & Certification'!$B$14)","v":""},{"$f":"IF(A101=\"\",\"\",'1. Checklist & Certification'!$E$14)","v":""},{"$f":"IF(B101=\"\",\"\",'1. Checklist & Certification'!$G$14)","v":""},{"$f":"IF(A101=\"\",\"\",'MHP Family Income & Rent Limits'!$B$3)","v":""},{"$f":"IF(A101=\"\",\"\",'MHP Family Income & Rent Limits'!$J$3)","v":""},{"$f":"IF(A101=\"\",\"\",'MHP Family Income & Rent Limits'!$E$4)","v":""},{"$f":"IF(A101=\"\",\"\",'MHP Family Income & Rent Limits'!$C$7)","v":""},{"$f":"IF(A101=\"\",\"\",'MHP Family Income & Rent Limits'!$F$8)","v":""},{"$f":"IF(A101=\"\",\"\",'1. Checklist & Certification'!$G$4)","v":""},{"$f":"IF(A101=\"\",\"\",'1. Checklist & Certification'!$K$39)","v":""},{"$f":"IF(A101=\"\",\"\",'1. Checklist & Certification'!$K$43)","v":""},{"$f":"IF(A101=\"\",\"\",'1. Checklist & Certification'!$K$45)","v":""},{"$f":"IF(A101=\"\",\"\",'1. Checklist & Certification'!$K$49)","v":""},{"$f":"IF(A101=\"\",\"\",'1. Checklist & Certification'!$E$66)","v":""},{"$f":"IF(A101=\"\",\"\",'1. Checklist & Certification'!$E$67)","v":""},{"$f":"IF(A101=\"\",\"\",'1. Checklist & Certification'!$E$68)","v":""},{"$f":"IF(A101=\"\",\"\",'1. Checklist & Certification'!$G$66)","v":""},{"$f":"IF(A101=\"\",\"\",'1. Checklist & Certification'!$H$66)","v":""},{"$f":"IF(A101=\"\",\"\",'1. Checklist & Certification'!$I$66)","v":""},{"$f":"IF(A101=\"\",\"\",'1. Checklist & Certification'!$I$67)","v":""},{"$f":"IF(A101=\"\",\"\",'1. Checklist & Certification'!$I$68)","v":""},null,{"$f":"IF(C101=\"\",\"\",HLOOKUP(C101,'MHP Family Income & Rent Limits'!$E$12:$L$26,2,FALSE))","v":""},{"$f":"IF(C101=\"\",\"\",HLOOKUP(C101,'MHP Family Income & Rent Limits'!$E$12:$L$26,3,FALSE))","v":""},{"$f":"IF(C101=\"\",\"\",HLOOKUP(C101,'MHP Family Income & Rent Limits'!$E$12:$L$26,4,FALSE))","v":""},{"$f":"IF(C101=\"\",\"\",HLOOKUP(C101,'MHP Family Income & Rent Limits'!$E$12:$L$26,5,FALSE))","v":""},{"$f":"IF(C101=\"\",\"\",HLOOKUP(C101,'MHP Family Income & Rent Limits'!$E$12:$L$26,6,FALSE))","v":""},{"$f":"IF(C101=\"\",\"\",HLOOKUP(C101,'MHP Family Income & Rent Limits'!$E$12:$L$26,7,FALSE))","v":""},{"$f":"IF(C101=\"\",\"\",HLOOKUP(C101,'MHP Family Income & Rent Limits'!$E$12:$L$26,8,FALSE))","v":""},{"$f":"IF(C101=\"\",\"\",HLOOKUP(C101,'MHP Family Income & Rent Limits'!$E$12:$L$26,9,FALSE))","v":""},{"$f":"IF(C101=\"\",\"\",HLOOKUP(C101,'MHP Family Income & Rent Limits'!$E$12:$L$26,10,FALSE))","v":""},{"$f":"IF(C101=\"\",\"\",HLOOKUP(C101,'MHP Family Income & Rent Limits'!$E$12:$L$26,11,FALSE))","v":""},{"$f":"IF(C101=\"\",\"\",HLOOKUP(C101,'MHP Family Income & Rent Limits'!$E$12:$L$26,12,FALSE))","v":""},{"$f":"IF(C101=\"\",\"\",HLOOKUP(C101,'MHP Family Income & Rent Limits'!$E$12:$L$26,13,FALSE))","v":""},{"$f":"IF(C101=\"\",\"\",HLOOKUP(C101,'MHP Family Income & Rent Limits'!$E$12:$L$26,14,FALSE))","v":""},{"$f":"IF(C101=\"\",\"\",HLOOKUP(C101,'MHP Family Income & Rent Limits'!$E$12:$L$26,15,FALSE))","v":""}]
[{"$f":"IF('2. Assisted & Restricted Units'!A102=\"\",\"\",'2. Assisted & Restricted Units'!A102)","v":""},{"$f":"IF('2. Assisted & Restricted Units'!B102=\"\",\"\",'2. Assisted & Restricted Units'!B102)","v":""},{"$f":"IF('2. Assisted & Restricted Units'!D102=\"\",\"\",'2. Assisted & Restricted Units'!D102)","v":""},{"$f":"IF('2. Assisted & Restricted Units'!E102=\"\",\"\",'2. Assisted & Restricted Units'!E102)","v":""},{"$f":"IF('2. Assisted & Restricted Units'!H102=\"\",\"\",'2. Assisted & Restricted Units'!H102)","v":""},{"$f":"_xlfn.IFS(E102=\"\",\"\",E102>BO102,$BP$6,E102>BN102,$BO$6,E102>BM102,$BN$6,E102>BL102,$BM$6,E102>BK102,$BL$6,E102>BJ102,$BK$6,E102>BI102,$BJ$6,E102>BH102,$BI$6,E102>BG102,$BH$6,E102>BF102,$BG$6,E102>BE102,$BF$6,E102>BD102,$BE$6,E102>BC102,$BD$6,E102>=0,$BC$6)","v":""},{"$f":"IF('2. Assisted & Restricted Units'!T102=\"\",\"\",'2. Assisted & Restricted Units'!T102)","v":""},{"$f":"IF('2. Assisted & Restricted Units'!I102=\"\",\"\",'2. Assisted & Restricted Units'!I102)","v":""},{"$f":"IF('2. Assisted & Restricted Units'!AP102=\"\",\"\",'2. Assisted & Restricted Units'!AP102)","v":0},{"$f":"IF('2. Assisted & Restricted Units'!AT102=\"\",\"\",'2. Assisted & Restricted Units'!AT102)","v":""},0,{"$f":"IF('2. Assisted & Restricted Units'!AV102=\"\",\"\",'2. Assisted & Restricted Units'!AV102)","v":""},{"$f":"IF('2. Assisted & Restricted Units'!L102=\"\",\"\",'2. Assisted & Restricted Units'!L102)","v":""},{"$f":"IF('2. Assisted & Restricted Units'!M102=\"\",\"\",'2. Assisted & Restricted Units'!M102)","v":""},{"$f":"IF('2. Assisted & Restricted Units'!O102=\"\",\"\",'2. Assisted & Restricted Units'!O102)","v":""},{"$f":"IF('2. Assisted & Restricted Units'!P102=\"\",\"\",'2. Assisted & Restricted Units'!P102)","v":""},{"$f":"IF('2. Assisted & Restricted Units'!Q102=\"\",\"\",'2. Assisted & Restricted Units'!Q102)","v":""},{"$f":"IF('2. Assisted & Restricted Units'!R102=\"\",\"\",'2. Assisted & Restricted Units'!R102)","v":""},{"$f":"IF(A102=\"\",\"\",'1. Checklist & Certification'!$K$1)","v":""},{"$f":"IF(A102=\"\",\"\",'1. Checklist & Certification'!$C$62)","v":""},{"$f":"IF(A102=\"\",\"\",'1. Checklist & Certification'!$K$62)","v":""},{"$f":"IF(A102=\"\",\"\",'1. Checklist & Certification'!$C$6)","v":""},{"$f":"IF(A102=\"\",\"\",'1. Checklist & Certification'!$G$4)","v":""},{"$f":"IF(A102=\"\",\"\",'1. Checklist & Certification'!$C$7)","v":""},{"$f":"IF(A102=\"\",\"\",'1. Checklist & Certification'!$C$8)","v":""},{"$f":"IF(A102=\"\",\"\",'1. Checklist & Certification'!$F$7)","v":""},{"$f":"IF(A102=\"\",\"\",'1. Checklist & Certification'!$F$8)","v":""},{"$f":"IF(A102=\"\",\"\",'1. Checklist & Certification'!$B$9)","v":""},{"$f":"IF(A102=\"\",\"\",'1. Checklist & Certification'!$F$9)","v":""},{"$f":"IF(A102=\"\",\"\",'1. Checklist & Certification'!$C$10)","v":""},{"$f":"IF(A102=\"\",\"\",'1. Checklist & Certification'!$C$11)","v":""},{"$f":"IF(A102=\"\",\"\",'1. Checklist & Certification'!$C$12)","v":""},{"$f":"IF(A102=\"\",\"\",'1. Checklist & Certification'!$B$14)","v":""},{"$f":"IF(A102=\"\",\"\",'1. Checklist & Certification'!$E$14)","v":""},{"$f":"IF(B102=\"\",\"\",'1. Checklist & Certification'!$G$14)","v":""},{"$f":"IF(A102=\"\",\"\",'MHP Family Income & Rent Limits'!$B$3)","v":""},{"$f":"IF(A102=\"\",\"\",'MHP Family Income & Rent Limits'!$J$3)","v":""},{"$f":"IF(A102=\"\",\"\",'MHP Family Income & Rent Limits'!$E$4)","v":""},{"$f":"IF(A102=\"\",\"\",'MHP Family Income & Rent Limits'!$C$7)","v":""},{"$f":"IF(A102=\"\",\"\",'MHP Family Income & Rent Limits'!$F$8)","v":""},{"$f":"IF(A102=\"\",\"\",'1. Checklist & Certification'!$G$4)","v":""},{"$f":"IF(A102=\"\",\"\",'1. Checklist & Certification'!$K$39)","v":""},{"$f":"IF(A102=\"\",\"\",'1. Checklist & Certification'!$K$43)","v":""},{"$f":"IF(A102=\"\",\"\",'1. Checklist & Certification'!$K$45)","v":""},{"$f":"IF(A102=\"\",\"\",'1. Checklist & Certification'!$K$49)","v":""},{"$f":"IF(A102=\"\",\"\",'1. Checklist & Certification'!$E$66)","v":""},{"$f":"IF(A102=\"\",\"\",'1. Checklist & Certification'!$E$67)","v":""},{"$f":"IF(A102=\"\",\"\",'1. Checklist & Certification'!$E$68)","v":""},{"$f":"IF(A102=\"\",\"\",'1. Checklist & Certification'!$G$66)","v":""},{"$f":"IF(A102=\"\",\"\",'1. Checklist & Certification'!$H$66)","v":""},{"$f":"IF(A102=\"\",\"\",'1. Checklist & Certification'!$I$66)","v":""},{"$f":"IF(A102=\"\",\"\",'1. Checklist & Certification'!$I$67)","v":""},{"$f":"IF(A102=\"\",\"\",'1. Checklist & Certification'!$I$68)","v":""},null,{"$f":"IF(C102=\"\",\"\",HLOOKUP(C102,'MHP Family Income & Rent Limits'!$E$12:$L$26,2,FALSE))","v":""},{"$f":"IF(C102=\"\",\"\",HLOOKUP(C102,'MHP Family Income & Rent Limits'!$E$12:$L$26,3,FALSE))","v":""},{"$f":"IF(C102=\"\",\"\",HLOOKUP(C102,'MHP Family Income & Rent Limits'!$E$12:$L$26,4,FALSE))","v":""},{"$f":"IF(C102=\"\",\"\",HLOOKUP(C102,'MHP Family Income & Rent Limits'!$E$12:$L$26,5,FALSE))","v":""},{"$f":"IF(C102=\"\",\"\",HLOOKUP(C102,'MHP Family Income & Rent Limits'!$E$12:$L$26,6,FALSE))","v":""},{"$f":"IF(C102=\"\",\"\",HLOOKUP(C102,'MHP Family Income & Rent Limits'!$E$12:$L$26,7,FALSE))","v":""},{"$f":"IF(C102=\"\",\"\",HLOOKUP(C102,'MHP Family Income & Rent Limits'!$E$12:$L$26,8,FALSE))","v":""},{"$f":"IF(C102=\"\",\"\",HLOOKUP(C102,'MHP Family Income & Rent Limits'!$E$12:$L$26,9,FALSE))","v":""},{"$f":"IF(C102=\"\",\"\",HLOOKUP(C102,'MHP Family Income & Rent Limits'!$E$12:$L$26,10,FALSE))","v":""},{"$f":"IF(C102=\"\",\"\",HLOOKUP(C102,'MHP Family Income & Rent Limits'!$E$12:$L$26,11,FALSE))","v":""},{"$f":"IF(C102=\"\",\"\",HLOOKUP(C102,'MHP Family Income & Rent Limits'!$E$12:$L$26,12,FALSE))","v":""},{"$f":"IF(C102=\"\",\"\",HLOOKUP(C102,'MHP Family Income & Rent Limits'!$E$12:$L$26,13,FALSE))","v":""},{"$f":"IF(C102=\"\",\"\",HLOOKUP(C102,'MHP Family Income & Rent Limits'!$E$12:$L$26,14,FALSE))","v":""},{"$f":"IF(C102=\"\",\"\",HLOOKUP(C102,'MHP Family Income & Rent Limits'!$E$12:$L$26,15,FALSE))","v":""}]
[{"$f":"IF('2. Assisted & Restricted Units'!A103=\"\",\"\",'2. Assisted & Restricted Units'!A103)","v":""},{"$f":"IF('2. Assisted & Restricted Units'!B103=\"\",\"\",'2. Assisted & Restricted Units'!B103)","v":""},{"$f":"IF('2. Assisted & Restricted Units'!D103=\"\",\"\",'2. Assisted & Restricted Units'!D103)","v":""},{"$f":"IF('2. Assisted & Restricted Units'!E103=\"\",\"\",'2. Assisted & Restricted Units'!E103)","v":""},{"$f":"IF('2. Assisted & Restricted Units'!H103=\"\",\"\",'2. Assisted & Restricted Units'!H103)","v":""},{"$f":"_xlfn.IFS(E103=\"\",\"\",E103>BO103,$BP$6,E103>BN103,$BO$6,E103>BM103,$BN$6,E103>BL103,$BM$6,E103>BK103,$BL$6,E103>BJ103,$BK$6,E103>BI103,$BJ$6,E103>BH103,$BI$6,E103>BG103,$BH$6,E103>BF103,$BG$6,E103>BE103,$BF$6,E103>BD103,$BE$6,E103>BC103,$BD$6,E103>=0,$BC$6)","v":""},{"$f":"IF('2. Assisted & Restricted Units'!T103=\"\",\"\",'2. Assisted & Restricted Units'!T103)","v":""},{"$f":"IF('2. Assisted & Restricted Units'!I103=\"\",\"\",'2. Assisted & Restricted Units'!I103)","v":""},{"$f":"IF('2. Assisted & Restricted Units'!AP103=\"\",\"\",'2. Assisted & Restricted Units'!AP103)","v":0},{"$f":"IF('2. Assisted & Restricted Units'!AT103=\"\",\"\",'2. Assisted & Restricted Units'!AT103)","v":""},0,{"$f":"IF('2. Assisted & Restricted Units'!AV103=\"\",\"\",'2. Assisted & Restricted Units'!AV103)","v":""},{"$f":"IF('2. Assisted & Restricted Units'!L103=\"\",\"\",'2. Assisted & Restricted Units'!L103)","v":""},{"$f":"IF('2. Assisted & Restricted Units'!M103=\"\",\"\",'2. Assisted & Restricted Units'!M103)","v":""},{"$f":"IF('2. Assisted & Restricted Units'!O103=\"\",\"\",'2. Assisted & Restricted Units'!O103)","v":""},{"$f":"IF('2. Assisted & Restricted Units'!P103=\"\",\"\",'2. Assisted & Restricted Units'!P103)","v":""},{"$f":"IF('2. Assisted & Restricted Units'!Q103=\"\",\"\",'2. Assisted & Restricted Units'!Q103)","v":""},{"$f":"IF('2. Assisted & Restricted Units'!R103=\"\",\"\",'2. Assisted & Restricted Units'!R103)","v":""},{"$f":"IF(A103=\"\",\"\",'1. Checklist & Certification'!$K$1)","v":""},{"$f":"IF(A103=\"\",\"\",'1. Checklist & Certification'!$C$62)","v":""},{"$f":"IF(A103=\"\",\"\",'1. Checklist & Certification'!$K$62)","v":""},{"$f":"IF(A103=\"\",\"\",'1. Checklist & Certification'!$C$6)","v":""},{"$f":"IF(A103=\"\",\"\",'1. Checklist & Certification'!$G$4)","v":""},{"$f":"IF(A103=\"\",\"\",'1. Checklist & Certification'!$C$7)","v":""},{"$f":"IF(A103=\"\",\"\",'1. Checklist & Certification'!$C$8)","v":""},{"$f":"IF(A103=\"\",\"\",'1. Checklist & Certification'!$F$7)","v":""},{"$f":"IF(A103=\"\",\"\",'1. Checklist & Certification'!$F$8)","v":""},{"$f":"IF(A103=\"\",\"\",'1. Checklist & Certification'!$B$9)","v":""},{"$f":"IF(A103=\"\",\"\",'1. Checklist & Certification'!$F$9)","v":""},{"$f":"IF(A103=\"\",\"\",'1. Checklist & Certification'!$C$10)","v":""},{"$f":"IF(A103=\"\",\"\",'1. Checklist & Certification'!$C$11)","v":""},{"$f":"IF(A103=\"\",\"\",'1. Checklist & Certification'!$C$12)","v":""},{"$f":"IF(A103=\"\",\"\",'1. Checklist & Certification'!$B$14)","v":""},{"$f":"IF(A103=\"\",\"\",'1. Checklist & Certification'!$E$14)","v":""},{"$f":"IF(B103=\"\",\"\",'1. Checklist & Certification'!$G$14)","v":""},{"$f":"IF(A103=\"\",\"\",'MHP Family Income & Rent Limits'!$B$3)","v":""},{"$f":"IF(A103=\"\",\"\",'MHP Family Income & Rent Limits'!$J$3)","v":""},{"$f":"IF(A103=\"\",\"\",'MHP Family Income & Rent Limits'!$E$4)","v":""},{"$f":"IF(A103=\"\",\"\",'MHP Family Income & Rent Limits'!$C$7)","v":""},{"$f":"IF(A103=\"\",\"\",'MHP Family Income & Rent Limits'!$F$8)","v":""},{"$f":"IF(A103=\"\",\"\",'1. Checklist & Certification'!$G$4)","v":""},{"$f":"IF(A103=\"\",\"\",'1. Checklist & Certification'!$K$39)","v":""},{"$f":"IF(A103=\"\",\"\",'1. Checklist & Certification'!$K$43)","v":""},{"$f":"IF(A103=\"\",\"\",'1. Checklist & Certification'!$K$45)","v":""},{"$f":"IF(A103=\"\",\"\",'1. Checklist & Certification'!$K$49)","v":""},{"$f":"IF(A103=\"\",\"\",'1. Checklist & Certification'!$E$66)","v":""},{"$f":"IF(A103=\"\",\"\",'1. Checklist & Certification'!$E$67)","v":""},{"$f":"IF(A103=\"\",\"\",'1. Checklist & Certification'!$E$68)","v":""},{"$f":"IF(A103=\"\",\"\",'1. Checklist & Certification'!$G$66)","v":""},{"$f":"IF(A103=\"\",\"\",'1. Checklist & Certification'!$H$66)","v":""},{"$f":"IF(A103=\"\",\"\",'1. Checklist & Certification'!$I$66)","v":""},{"$f":"IF(A103=\"\",\"\",'1. Checklist & Certification'!$I$67)","v":""},{"$f":"IF(A103=\"\",\"\",'1. Checklist & Certification'!$I$68)","v":""},null,{"$f":"IF(C103=\"\",\"\",HLOOKUP(C103,'MHP Family Income & Rent Limits'!$E$12:$L$26,2,FALSE))","v":""},{"$f":"IF(C103=\"\",\"\",HLOOKUP(C103,'MHP Family Income & Rent Limits'!$E$12:$L$26,3,FALSE))","v":""},{"$f":"IF(C103=\"\",\"\",HLOOKUP(C103,'MHP Family Income & Rent Limits'!$E$12:$L$26,4,FALSE))","v":""},{"$f":"IF(C103=\"\",\"\",HLOOKUP(C103,'MHP Family Income & Rent Limits'!$E$12:$L$26,5,FALSE))","v":""},{"$f":"IF(C103=\"\",\"\",HLOOKUP(C103,'MHP Family Income & Rent Limits'!$E$12:$L$26,6,FALSE))","v":""},{"$f":"IF(C103=\"\",\"\",HLOOKUP(C103,'MHP Family Income & Rent Limits'!$E$12:$L$26,7,FALSE))","v":""},{"$f":"IF(C103=\"\",\"\",HLOOKUP(C103,'MHP Family Income & Rent Limits'!$E$12:$L$26,8,FALSE))","v":""},{"$f":"IF(C103=\"\",\"\",HLOOKUP(C103,'MHP Family Income & Rent Limits'!$E$12:$L$26,9,FALSE))","v":""},{"$f":"IF(C103=\"\",\"\",HLOOKUP(C103,'MHP Family Income & Rent Limits'!$E$12:$L$26,10,FALSE))","v":""},{"$f":"IF(C103=\"\",\"\",HLOOKUP(C103,'MHP Family Income & Rent Limits'!$E$12:$L$26,11,FALSE))","v":""},{"$f":"IF(C103=\"\",\"\",HLOOKUP(C103,'MHP Family Income & Rent Limits'!$E$12:$L$26,12,FALSE))","v":""},{"$f":"IF(C103=\"\",\"\",HLOOKUP(C103,'MHP Family Income & Rent Limits'!$E$12:$L$26,13,FALSE))","v":""},{"$f":"IF(C103=\"\",\"\",HLOOKUP(C103,'MHP Family Income & Rent Limits'!$E$12:$L$26,14,FALSE))","v":""},{"$f":"IF(C103=\"\",\"\",HLOOKUP(C103,'MHP Family Income & Rent Limits'!$E$12:$L$26,15,FALSE))","v":""}]
[{"$f":"IF('2. Assisted & Restricted Units'!A104=\"\",\"\",'2. Assisted & Restricted Units'!A104)","v":""},{"$f":"IF('2. Assisted & Restricted Units'!B104=\"\",\"\",'2. Assisted & Restricted Units'!B104)","v":""},{"$f":"IF('2. Assisted & Restricted Units'!D104=\"\",\"\",'2. Assisted & Restricted Units'!D104)","v":""},{"$f":"IF('2. Assisted & Restricted Units'!E104=\"\",\"\",'2. Assisted & Restricted Units'!E104)","v":""},{"$f":"IF('2. Assisted & Restricted Units'!H104=\"\",\"\",'2. Assisted & Restricted Units'!H104)","v":""},{"$f":"_xlfn.IFS(E104=\"\",\"\",E104>BO104,$BP$6,E104>BN104,$BO$6,E104>BM104,$BN$6,E104>BL104,$BM$6,E104>BK104,$BL$6,E104>BJ104,$BK$6,E104>BI104,$BJ$6,E104>BH104,$BI$6,E104>BG104,$BH$6,E104>BF104,$BG$6,E104>BE104,$BF$6,E104>BD104,$BE$6,E104>BC104,$BD$6,E104>=0,$BC$6)","v":""},{"$f":"IF('2. Assisted & Restricted Units'!T104=\"\",\"\",'2. Assisted & Restricted Units'!T104)","v":""},{"$f":"IF('2. Assisted & Restricted Units'!I104=\"\",\"\",'2. Assisted & Restricted Units'!I104)","v":""},{"$f":"IF('2. Assisted & Restricted Units'!AP104=\"\",\"\",'2. Assisted & Restricted Units'!AP104)","v":0},{"$f":"IF('2. Assisted & Restricted Units'!AT104=\"\",\"\",'2. Assisted & Restricted Units'!AT104)","v":""},0,{"$f":"IF('2. Assisted & Restricted Units'!AV104=\"\",\"\",'2. Assisted & Restricted Units'!AV104)","v":""},{"$f":"IF('2. Assisted & Restricted Units'!L104=\"\",\"\",'2. Assisted & Restricted Units'!L104)","v":""},{"$f":"IF('2. Assisted & Restricted Units'!M104=\"\",\"\",'2. Assisted & Restricted Units'!M104)","v":""},{"$f":"IF('2. Assisted & Restricted Units'!O104=\"\",\"\",'2. Assisted & Restricted Units'!O104)","v":""},{"$f":"IF('2. Assisted & Restricted Units'!P104=\"\",\"\",'2. Assisted & Restricted Units'!P104)","v":""},{"$f":"IF('2. Assisted & Restricted Units'!Q104=\"\",\"\",'2. Assisted & Restricted Units'!Q104)","v":""},{"$f":"IF('2. Assisted & Restricted Units'!R104=\"\",\"\",'2. Assisted & Restricted Units'!R104)","v":""},{"$f":"IF(A104=\"\",\"\",'1. Checklist & Certification'!$K$1)","v":""},{"$f":"IF(A104=\"\",\"\",'1. Checklist & Certification'!$C$62)","v":""},{"$f":"IF(A104=\"\",\"\",'1. Checklist & Certification'!$K$62)","v":""},{"$f":"IF(A104=\"\",\"\",'1. Checklist & Certification'!$C$6)","v":""},{"$f":"IF(A104=\"\",\"\",'1. Checklist & Certification'!$G$4)","v":""},{"$f":"IF(A104=\"\",\"\",'1. Checklist & Certification'!$C$7)","v":""},{"$f":"IF(A104=\"\",\"\",'1. Checklist & Certification'!$C$8)","v":""},{"$f":"IF(A104=\"\",\"\",'1. Checklist & Certification'!$F$7)","v":""},{"$f":"IF(A104=\"\",\"\",'1. Checklist & Certification'!$F$8)","v":""},{"$f":"IF(A104=\"\",\"\",'1. Checklist & Certification'!$B$9)","v":""},{"$f":"IF(A104=\"\",\"\",'1. Checklist & Certification'!$F$9)","v":""},{"$f":"IF(A104=\"\",\"\",'1. Checklist & Certification'!$C$10)","v":""},{"$f":"IF(A104=\"\",\"\",'1. Checklist & Certification'!$C$11)","v":""},{"$f":"IF(A104=\"\",\"\",'1. Checklist & Certification'!$C$12)","v":""},{"$f":"IF(A104=\"\",\"\",'1. Checklist & Certification'!$B$14)","v":""},{"$f":"IF(A104=\"\",\"\",'1. Checklist & Certification'!$E$14)","v":""},{"$f":"IF(B104=\"\",\"\",'1. Checklist & Certification'!$G$14)","v":""},{"$f":"IF(A104=\"\",\"\",'MHP Family Income & Rent Limits'!$B$3)","v":""},{"$f":"IF(A104=\"\",\"\",'MHP Family Income & Rent Limits'!$J$3)","v":""},{"$f":"IF(A104=\"\",\"\",'MHP Family Income & Rent Limits'!$E$4)","v":""},{"$f":"IF(A104=\"\",\"\",'MHP Family Income & Rent Limits'!$C$7)","v":""},{"$f":"IF(A104=\"\",\"\",'MHP Family Income & Rent Limits'!$F$8)","v":""},{"$f":"IF(A104=\"\",\"\",'1. Checklist & Certification'!$G$4)","v":""},{"$f":"IF(A104=\"\",\"\",'1. Checklist & Certification'!$K$39)","v":""},{"$f":"IF(A104=\"\",\"\",'1. Checklist & Certification'!$K$43)","v":""},{"$f":"IF(A104=\"\",\"\",'1. Checklist & Certification'!$K$45)","v":""},{"$f":"IF(A104=\"\",\"\",'1. Checklist & Certification'!$K$49)","v":""},{"$f":"IF(A104=\"\",\"\",'1. Checklist & Certification'!$E$66)","v":""},{"$f":"IF(A104=\"\",\"\",'1. Checklist & Certification'!$E$67)","v":""},{"$f":"IF(A104=\"\",\"\",'1. Checklist & Certification'!$E$68)","v":""},{"$f":"IF(A104=\"\",\"\",'1. Checklist & Certification'!$G$66)","v":""},{"$f":"IF(A104=\"\",\"\",'1. Checklist & Certification'!$H$66)","v":""},{"$f":"IF(A104=\"\",\"\",'1. Checklist & Certification'!$I$66)","v":""},{"$f":"IF(A104=\"\",\"\",'1. Checklist & Certification'!$I$67)","v":""},{"$f":"IF(A104=\"\",\"\",'1. Checklist & Certification'!$I$68)","v":""},null,{"$f":"IF(C104=\"\",\"\",HLOOKUP(C104,'MHP Family Income & Rent Limits'!$E$12:$L$26,2,FALSE))","v":""},{"$f":"IF(C104=\"\",\"\",HLOOKUP(C104,'MHP Family Income & Rent Limits'!$E$12:$L$26,3,FALSE))","v":""},{"$f":"IF(C104=\"\",\"\",HLOOKUP(C104,'MHP Family Income & Rent Limits'!$E$12:$L$26,4,FALSE))","v":""},{"$f":"IF(C104=\"\",\"\",HLOOKUP(C104,'MHP Family Income & Rent Limits'!$E$12:$L$26,5,FALSE))","v":""},{"$f":"IF(C104=\"\",\"\",HLOOKUP(C104,'MHP Family Income & Rent Limits'!$E$12:$L$26,6,FALSE))","v":""},{"$f":"IF(C104=\"\",\"\",HLOOKUP(C104,'MHP Family Income & Rent Limits'!$E$12:$L$26,7,FALSE))","v":""},{"$f":"IF(C104=\"\",\"\",HLOOKUP(C104,'MHP Family Income & Rent Limits'!$E$12:$L$26,8,FALSE))","v":""},{"$f":"IF(C104=\"\",\"\",HLOOKUP(C104,'MHP Family Income & Rent Limits'!$E$12:$L$26,9,FALSE))","v":""},{"$f":"IF(C104=\"\",\"\",HLOOKUP(C104,'MHP Family Income & Rent Limits'!$E$12:$L$26,10,FALSE))","v":""},{"$f":"IF(C104=\"\",\"\",HLOOKUP(C104,'MHP Family Income & Rent Limits'!$E$12:$L$26,11,FALSE))","v":""},{"$f":"IF(C104=\"\",\"\",HLOOKUP(C104,'MHP Family Income & Rent Limits'!$E$12:$L$26,12,FALSE))","v":""},{"$f":"IF(C104=\"\",\"\",HLOOKUP(C104,'MHP Family Income & Rent Limits'!$E$12:$L$26,13,FALSE))","v":""},{"$f":"IF(C104=\"\",\"\",HLOOKUP(C104,'MHP Family Income & Rent Limits'!$E$12:$L$26,14,FALSE))","v":""},{"$f":"IF(C104=\"\",\"\",HLOOKUP(C104,'MHP Family Income & Rent Limits'!$E$12:$L$26,15,FALSE))","v":""}]
[{"$f":"IF('2. Assisted & Restricted Units'!A105=\"\",\"\",'2. Assisted & Restricted Units'!A105)","v":""},{"$f":"IF('2. Assisted & Restricted Units'!B105=\"\",\"\",'2. Assisted & Restricted Units'!B105)","v":""},{"$f":"IF('2. Assisted & Restricted Units'!D105=\"\",\"\",'2. Assisted & Restricted Units'!D105)","v":""},{"$f":"IF('2. Assisted & Restricted Units'!E105=\"\",\"\",'2. Assisted & Restricted Units'!E105)","v":""},{"$f":"IF('2. Assisted & Restricted Units'!H105=\"\",\"\",'2. Assisted & Restricted Units'!H105)","v":""},{"$f":"_xlfn.IFS(E105=\"\",\"\",E105>BO105,$BP$6,E105>BN105,$BO$6,E105>BM105,$BN$6,E105>BL105,$BM$6,E105>BK105,$BL$6,E105>BJ105,$BK$6,E105>BI105,$BJ$6,E105>BH105,$BI$6,E105>BG105,$BH$6,E105>BF105,$BG$6,E105>BE105,$BF$6,E105>BD105,$BE$6,E105>BC105,$BD$6,E105>=0,$BC$6)","v":""},{"$f":"IF('2. Assisted & Restricted Units'!T105=\"\",\"\",'2. Assisted & Restricted Units'!T105)","v":""},{"$f":"IF('2. Assisted & Restricted Units'!I105=\"\",\"\",'2. Assisted & Restricted Units'!I105)","v":""},{"$f":"IF('2. Assisted & Restricted Units'!AP105=\"\",\"\",'2. Assisted & Restricted Units'!AP105)","v":0},{"$f":"IF('2. Assisted & Restricted Units'!AT105=\"\",\"\",'2. Assisted & Restricted Units'!AT105)","v":""},0,{"$f":"IF('2. Assisted & Restricted Units'!AV105=\"\",\"\",'2. Assisted & Restricted Units'!AV105)","v":""},{"$f":"IF('2. Assisted & Restricted Units'!L105=\"\",\"\",'2. Assisted & Restricted Units'!L105)","v":""},{"$f":"IF('2. Assisted & Restricted Units'!M105=\"\",\"\",'2. Assisted & Restricted Units'!M105)","v":""},{"$f":"IF('2. Assisted & Restricted Units'!O105=\"\",\"\",'2. Assisted & Restricted Units'!O105)","v":""},{"$f":"IF('2. Assisted & Restricted Units'!P105=\"\",\"\",'2. Assisted & Restricted Units'!P105)","v":""},{"$f":"IF('2. Assisted & Restricted Units'!Q105=\"\",\"\",'2. Assisted & Restricted Units'!Q105)","v":""},{"$f":"IF('2. Assisted & Restricted Units'!R105=\"\",\"\",'2. Assisted & Restricted Units'!R105)","v":""},{"$f":"IF(A105=\"\",\"\",'1. Checklist & Certification'!$K$1)","v":""},{"$f":"IF(A105=\"\",\"\",'1. Checklist & Certification'!$C$62)","v":""},{"$f":"IF(A105=\"\",\"\",'1. Checklist & Certification'!$K$62)","v":""},{"$f":"IF(A105=\"\",\"\",'1. Checklist & Certification'!$C$6)","v":""},{"$f":"IF(A105=\"\",\"\",'1. Checklist & Certification'!$G$4)","v":""},{"$f":"IF(A105=\"\",\"\",'1. Checklist & Certification'!$C$7)","v":""},{"$f":"IF(A105=\"\",\"\",'1. Checklist & Certification'!$C$8)","v":""},{"$f":"IF(A105=\"\",\"\",'1. Checklist & Certification'!$F$7)","v":""},{"$f":"IF(A105=\"\",\"\",'1. Checklist & Certification'!$F$8)","v":""},{"$f":"IF(A105=\"\",\"\",'1. Checklist & Certification'!$B$9)","v":""},{"$f":"IF(A105=\"\",\"\",'1. Checklist & Certification'!$F$9)","v":""},{"$f":"IF(A105=\"\",\"\",'1. Checklist & Certification'!$C$10)","v":""},{"$f":"IF(A105=\"\",\"\",'1. Checklist & Certification'!$C$11)","v":""},{"$f":"IF(A105=\"\",\"\",'1. Checklist & Certification'!$C$12)","v":""},{"$f":"IF(A105=\"\",\"\",'1. Checklist & Certification'!$B$14)","v":""},{"$f":"IF(A105=\"\",\"\",'1. Checklist & Certification'!$E$14)","v":""},{"$f":"IF(B105=\"\",\"\",'1. Checklist & Certification'!$G$14)","v":""},{"$f":"IF(A105=\"\",\"\",'MHP Family Income & Rent Limits'!$B$3)","v":""},{"$f":"IF(A105=\"\",\"\",'MHP Family Income & Rent Limits'!$J$3)","v":""},{"$f":"IF(A105=\"\",\"\",'MHP Family Income & Rent Limits'!$E$4)","v":""},{"$f":"IF(A105=\"\",\"\",'MHP Family Income & Rent Limits'!$C$7)","v":""},{"$f":"IF(A105=\"\",\"\",'MHP Family Income & Rent Limits'!$F$8)","v":""},{"$f":"IF(A105=\"\",\"\",'1. Checklist & Certification'!$G$4)","v":""},{"$f":"IF(A105=\"\",\"\",'1. Checklist & Certification'!$K$39)","v":""},{"$f":"IF(A105=\"\",\"\",'1. Checklist & Certification'!$K$43)","v":""},{"$f":"IF(A105=\"\",\"\",'1. Checklist & Certification'!$K$45)","v":""},{"$f":"IF(A105=\"\",\"\",'1. Checklist & Certification'!$K$49)","v":""},{"$f":"IF(A105=\"\",\"\",'1. Checklist & Certification'!$E$66)","v":""},{"$f":"IF(A105=\"\",\"\",'1. Checklist & Certification'!$E$67)","v":""},{"$f":"IF(A105=\"\",\"\",'1. Checklist & Certification'!$E$68)","v":""},{"$f":"IF(A105=\"\",\"\",'1. Checklist & Certification'!$G$66)","v":""},{"$f":"IF(A105=\"\",\"\",'1. Checklist & Certification'!$H$66)","v":""},{"$f":"IF(A105=\"\",\"\",'1. Checklist & Certification'!$I$66)","v":""},{"$f":"IF(A105=\"\",\"\",'1. Checklist & Certification'!$I$67)","v":""},{"$f":"IF(A105=\"\",\"\",'1. Checklist & Certification'!$I$68)","v":""},null,{"$f":"IF(C105=\"\",\"\",HLOOKUP(C105,'MHP Family Income & Rent Limits'!$E$12:$L$26,2,FALSE))","v":""},{"$f":"IF(C105=\"\",\"\",HLOOKUP(C105,'MHP Family Income & Rent Limits'!$E$12:$L$26,3,FALSE))","v":""},{"$f":"IF(C105=\"\",\"\",HLOOKUP(C105,'MHP Family Income & Rent Limits'!$E$12:$L$26,4,FALSE))","v":""},{"$f":"IF(C105=\"\",\"\",HLOOKUP(C105,'MHP Family Income & Rent Limits'!$E$12:$L$26,5,FALSE))","v":""},{"$f":"IF(C105=\"\",\"\",HLOOKUP(C105,'MHP Family Income & Rent Limits'!$E$12:$L$26,6,FALSE))","v":""},{"$f":"IF(C105=\"\",\"\",HLOOKUP(C105,'MHP Family Income & Rent Limits'!$E$12:$L$26,7,FALSE))","v":""},{"$f":"IF(C105=\"\",\"\",HLOOKUP(C105,'MHP Family Income & Rent Limits'!$E$12:$L$26,8,FALSE))","v":""},{"$f":"IF(C105=\"\",\"\",HLOOKUP(C105,'MHP Family Income & Rent Limits'!$E$12:$L$26,9,FALSE))","v":""},{"$f":"IF(C105=\"\",\"\",HLOOKUP(C105,'MHP Family Income & Rent Limits'!$E$12:$L$26,10,FALSE))","v":""},{"$f":"IF(C105=\"\",\"\",HLOOKUP(C105,'MHP Family Income & Rent Limits'!$E$12:$L$26,11,FALSE))","v":""},{"$f":"IF(C105=\"\",\"\",HLOOKUP(C105,'MHP Family Income & Rent Limits'!$E$12:$L$26,12,FALSE))","v":""},{"$f":"IF(C105=\"\",\"\",HLOOKUP(C105,'MHP Family Income & Rent Limits'!$E$12:$L$26,13,FALSE))","v":""},{"$f":"IF(C105=\"\",\"\",HLOOKUP(C105,'MHP Family Income & Rent Limits'!$E$12:$L$26,14,FALSE))","v":""},{"$f":"IF(C105=\"\",\"\",HLOOKUP(C105,'MHP Family Income & Rent Limits'!$E$12:$L$26,15,FALSE))","v":""}]
[{"$f":"IF('2. Assisted & Restricted Units'!A106=\"\",\"\",'2. Assisted & Restricted Units'!A106)","v":""},{"$f":"IF('2. Assisted & Restricted Units'!B106=\"\",\"\",'2. Assisted & Restricted Units'!B106)","v":""},{"$f":"IF('2. Assisted & Restricted Units'!D106=\"\",\"\",'2. Assisted & Restricted Units'!D106)","v":""},{"$f":"IF('2. Assisted & Restricted Units'!E106=\"\",\"\",'2. Assisted & Restricted Units'!E106)","v":""},{"$f":"IF('2. Assisted & Restricted Units'!H106=\"\",\"\",'2. Assisted & Restricted Units'!H106)","v":""},{"$f":"_xlfn.IFS(E106=\"\",\"\",E106>BO106,$BP$6,E106>BN106,$BO$6,E106>BM106,$BN$6,E106>BL106,$BM$6,E106>BK106,$BL$6,E106>BJ106,$BK$6,E106>BI106,$BJ$6,E106>BH106,$BI$6,E106>BG106,$BH$6,E106>BF106,$BG$6,E106>BE106,$BF$6,E106>BD106,$BE$6,E106>BC106,$BD$6,E106>=0,$BC$6)","v":""},{"$f":"IF('2. Assisted & Restricted Units'!T106=\"\",\"\",'2. Assisted & Restricted Units'!T106)","v":""},{"$f":"IF('2. Assisted & Restricted Units'!I106=\"\",\"\",'2. Assisted & Restricted Units'!I106)","v":""},{"$f":"IF('2. Assisted & Restricted Units'!AP106=\"\",\"\",'2. Assisted & Restricted Units'!AP106)","v":0},{"$f":"IF('2. Assisted & Restricted Units'!AT106=\"\",\"\",'2. Assisted & Restricted Units'!AT106)","v":""},0,{"$f":"IF('2. Assisted & Restricted Units'!AV106=\"\",\"\",'2. Assisted & Restricted Units'!AV106)","v":""},{"$f":"IF('2. Assisted & Restricted Units'!L106=\"\",\"\",'2. Assisted & Restricted Units'!L106)","v":""},{"$f":"IF('2. Assisted & Restricted Units'!M106=\"\",\"\",'2. Assisted & Restricted Units'!M106)","v":""},{"$f":"IF('2. Assisted & Restricted Units'!O106=\"\",\"\",'2. Assisted & Restricted Units'!O106)","v":""},{"$f":"IF('2. Assisted & Restricted Units'!P106=\"\",\"\",'2. Assisted & Restricted Units'!P106)","v":""},{"$f":"IF('2. Assisted & Restricted Units'!Q106=\"\",\"\",'2. Assisted & Restricted Units'!Q106)","v":""},{"$f":"IF('2. Assisted & Restricted Units'!R106=\"\",\"\",'2. Assisted & Restricted Units'!R106)","v":""},{"$f":"IF(A106=\"\",\"\",'1. Checklist & Certification'!$K$1)","v":""},{"$f":"IF(A106=\"\",\"\",'1. Checklist & Certification'!$C$62)","v":""},{"$f":"IF(A106=\"\",\"\",'1. Checklist & Certification'!$K$62)","v":""},{"$f":"IF(A106=\"\",\"\",'1. Checklist & Certification'!$C$6)","v":""},{"$f":"IF(A106=\"\",\"\",'1. Checklist & Certification'!$G$4)","v":""},{"$f":"IF(A106=\"\",\"\",'1. Checklist & Certification'!$C$7)","v":""},{"$f":"IF(A106=\"\",\"\",'1. Checklist & Certification'!$C$8)","v":""},{"$f":"IF(A106=\"\",\"\",'1. Checklist & Certification'!$F$7)","v":""},{"$f":"IF(A106=\"\",\"\",'1. Checklist & Certification'!$F$8)","v":""},{"$f":"IF(A106=\"\",\"\",'1. Checklist & Certification'!$B$9)","v":""},{"$f":"IF(A106=\"\",\"\",'1. Checklist & Certification'!$F$9)","v":""},{"$f":"IF(A106=\"\",\"\",'1. Checklist & Certification'!$C$10)","v":""},{"$f":"IF(A106=\"\",\"\",'1. Checklist & Certification'!$C$11)","v":""},{"$f":"IF(A106=\"\",\"\",'1. Checklist & Certification'!$C$12)","v":""},{"$f":"IF(A106=\"\",\"\",'1. Checklist & Certification'!$B$14)","v":""},{"$f":"IF(A106=\"\",\"\",'1. Checklist & Certification'!$E$14)","v":""},{"$f":"IF(B106=\"\",\"\",'1. Checklist & Certification'!$G$14)","v":""},{"$f":"IF(A106=\"\",\"\",'MHP Family Income & Rent Limits'!$B$3)","v":""},{"$f":"IF(A106=\"\",\"\",'MHP Family Income & Rent Limits'!$J$3)","v":""},{"$f":"IF(A106=\"\",\"\",'MHP Family Income & Rent Limits'!$E$4)","v":""},{"$f":"IF(A106=\"\",\"\",'MHP Family Income & Rent Limits'!$C$7)","v":""},{"$f":"IF(A106=\"\",\"\",'MHP Family Income & Rent Limits'!$F$8)","v":""},{"$f":"IF(A106=\"\",\"\",'1. Checklist & Certification'!$G$4)","v":""},{"$f":"IF(A106=\"\",\"\",'1. Checklist & Certification'!$K$39)","v":""},{"$f":"IF(A106=\"\",\"\",'1. Checklist & Certification'!$K$43)","v":""},{"$f":"IF(A106=\"\",\"\",'1. Checklist & Certification'!$K$45)","v":""},{"$f":"IF(A106=\"\",\"\",'1. Checklist & Certification'!$K$49)","v":""},{"$f":"IF(A106=\"\",\"\",'1. Checklist & Certification'!$E$66)","v":""},{"$f":"IF(A106=\"\",\"\",'1. Checklist & Certification'!$E$67)","v":""},{"$f":"IF(A106=\"\",\"\",'1. Checklist & Certification'!$E$68)","v":""},{"$f":"IF(A106=\"\",\"\",'1. Checklist & Certification'!$G$66)","v":""},{"$f":"IF(A106=\"\",\"\",'1. Checklist & Certification'!$H$66)","v":""},{"$f":"IF(A106=\"\",\"\",'1. Checklist & Certification'!$I$66)","v":""},{"$f":"IF(A106=\"\",\"\",'1. Checklist & Certification'!$I$67)","v":""},{"$f":"IF(A106=\"\",\"\",'1. Checklist & Certification'!$I$68)","v":""},null,{"$f":"IF(C106=\"\",\"\",HLOOKUP(C106,'MHP Family Income & Rent Limits'!$E$12:$L$26,2,FALSE))","v":""},{"$f":"IF(C106=\"\",\"\",HLOOKUP(C106,'MHP Family Income & Rent Limits'!$E$12:$L$26,3,FALSE))","v":""},{"$f":"IF(C106=\"\",\"\",HLOOKUP(C106,'MHP Family Income & Rent Limits'!$E$12:$L$26,4,FALSE))","v":""},{"$f":"IF(C106=\"\",\"\",HLOOKUP(C106,'MHP Family Income & Rent Limits'!$E$12:$L$26,5,FALSE))","v":""},{"$f":"IF(C106=\"\",\"\",HLOOKUP(C106,'MHP Family Income & Rent Limits'!$E$12:$L$26,6,FALSE))","v":""},{"$f":"IF(C106=\"\",\"\",HLOOKUP(C106,'MHP Family Income & Rent Limits'!$E$12:$L$26,7,FALSE))","v":""},{"$f":"IF(C106=\"\",\"\",HLOOKUP(C106,'MHP Family Income & Rent Limits'!$E$12:$L$26,8,FALSE))","v":""},{"$f":"IF(C106=\"\",\"\",HLOOKUP(C106,'MHP Family Income & Rent Limits'!$E$12:$L$26,9,FALSE))","v":""},{"$f":"IF(C106=\"\",\"\",HLOOKUP(C106,'MHP Family Income & Rent Limits'!$E$12:$L$26,10,FALSE))","v":""},{"$f":"IF(C106=\"\",\"\",HLOOKUP(C106,'MHP Family Income & Rent Limits'!$E$12:$L$26,11,FALSE))","v":""},{"$f":"IF(C106=\"\",\"\",HLOOKUP(C106,'MHP Family Income & Rent Limits'!$E$12:$L$26,12,FALSE))","v":""},{"$f":"IF(C106=\"\",\"\",HLOOKUP(C106,'MHP Family Income & Rent Limits'!$E$12:$L$26,13,FALSE))","v":""},{"$f":"IF(C106=\"\",\"\",HLOOKUP(C106,'MHP Family Income & Rent Limits'!$E$12:$L$26,14,FALSE))","v":""},{"$f":"IF(C106=\"\",\"\",HLOOKUP(C106,'MHP Family Income & Rent Limits'!$E$12:$L$26,15,FALSE))","v":""}]
[{"$f":"IF('2. Assisted & Restricted Units'!A107=\"\",\"\",'2. Assisted & Restricted Units'!A107)","v":""},{"$f":"IF('2. Assisted & Restricted Units'!B107=\"\",\"\",'2. Assisted & Restricted Units'!B107)","v":""},{"$f":"IF('2. Assisted & Restricted Units'!D107=\"\",\"\",'2. Assisted & Restricted Units'!D107)","v":""},{"$f":"IF('2. Assisted & Restricted Units'!E107=\"\",\"\",'2. Assisted & Restricted Units'!E107)","v":""},{"$f":"IF('2. Assisted & Restricted Units'!H107=\"\",\"\",'2. Assisted & Restricted Units'!H107)","v":""},{"$f":"_xlfn.IFS(E107=\"\",\"\",E107>BO107,$BP$6,E107>BN107,$BO$6,E107>BM107,$BN$6,E107>BL107,$BM$6,E107>BK107,$BL$6,E107>BJ107,$BK$6,E107>BI107,$BJ$6,E107>BH107,$BI$6,E107>BG107,$BH$6,E107>BF107,$BG$6,E107>BE107,$BF$6,E107>BD107,$BE$6,E107>BC107,$BD$6,E107>=0,$BC$6)","v":""},{"$f":"IF('2. Assisted & Restricted Units'!T107=\"\",\"\",'2. Assisted & Restricted Units'!T107)","v":""},{"$f":"IF('2. Assisted & Restricted Units'!I107=\"\",\"\",'2. Assisted & Restricted Units'!I107)","v":""},{"$f":"IF('2. Assisted & Restricted Units'!AP107=\"\",\"\",'2. Assisted & Restricted Units'!AP107)","v":0},{"$f":"IF('2. Assisted & Restricted Units'!AT107=\"\",\"\",'2. Assisted & Restricted Units'!AT107)","v":""},0,{"$f":"IF('2. Assisted & Restricted Units'!AV107=\"\",\"\",'2. Assisted & Restricted Units'!AV107)","v":""},{"$f":"IF('2. Assisted & Restricted Units'!L107=\"\",\"\",'2. Assisted & Restricted Units'!L107)","v":""},{"$f":"IF('2. Assisted & Restricted Units'!M107=\"\",\"\",'2. Assisted & Restricted Units'!M107)","v":""},{"$f":"IF('2. Assisted & Restricted Units'!O107=\"\",\"\",'2. Assisted & Restricted Units'!O107)","v":""},{"$f":"IF('2. Assisted & Restricted Units'!P107=\"\",\"\",'2. Assisted & Restricted Units'!P107)","v":""},{"$f":"IF('2. Assisted & Restricted Units'!Q107=\"\",\"\",'2. Assisted & Restricted Units'!Q107)","v":""},{"$f":"IF('2. Assisted & Restricted Units'!R107=\"\",\"\",'2. Assisted & Restricted Units'!R107)","v":""},{"$f":"IF(A107=\"\",\"\",'1. Checklist & Certification'!$K$1)","v":""},{"$f":"IF(A107=\"\",\"\",'1. Checklist & Certification'!$C$62)","v":""},{"$f":"IF(A107=\"\",\"\",'1. Checklist & Certification'!$K$62)","v":""},{"$f":"IF(A107=\"\",\"\",'1. Checklist & Certification'!$C$6)","v":""},{"$f":"IF(A107=\"\",\"\",'1. Checklist & Certification'!$G$4)","v":""},{"$f":"IF(A107=\"\",\"\",'1. Checklist & Certification'!$C$7)","v":""},{"$f":"IF(A107=\"\",\"\",'1. Checklist & Certification'!$C$8)","v":""},{"$f":"IF(A107=\"\",\"\",'1. Checklist & Certification'!$F$7)","v":""},{"$f":"IF(A107=\"\",\"\",'1. Checklist & Certification'!$F$8)","v":""},{"$f":"IF(A107=\"\",\"\",'1. Checklist & Certification'!$B$9)","v":""},{"$f":"IF(A107=\"\",\"\",'1. Checklist & Certification'!$F$9)","v":""},{"$f":"IF(A107=\"\",\"\",'1. Checklist & Certification'!$C$10)","v":""},{"$f":"IF(A107=\"\",\"\",'1. Checklist & Certification'!$C$11)","v":""},{"$f":"IF(A107=\"\",\"\",'1. Checklist & Certification'!$C$12)","v":""},{"$f":"IF(A107=\"\",\"\",'1. Checklist & Certification'!$B$14)","v":""},{"$f":"IF(A107=\"\",\"\",'1. Checklist & Certification'!$E$14)","v":""},{"$f":"IF(B107=\"\",\"\",'1. Checklist & Certification'!$G$14)","v":""},{"$f":"IF(A107=\"\",\"\",'MHP Family Income & Rent Limits'!$B$3)","v":""},{"$f":"IF(A107=\"\",\"\",'MHP Family Income & Rent Limits'!$J$3)","v":""},{"$f":"IF(A107=\"\",\"\",'MHP Family Income & Rent Limits'!$E$4)","v":""},{"$f":"IF(A107=\"\",\"\",'MHP Family Income & Rent Limits'!$C$7)","v":""},{"$f":"IF(A107=\"\",\"\",'MHP Family Income & Rent Limits'!$F$8)","v":""},{"$f":"IF(A107=\"\",\"\",'1. Checklist & Certification'!$G$4)","v":""},{"$f":"IF(A107=\"\",\"\",'1. Checklist & Certification'!$K$39)","v":""},{"$f":"IF(A107=\"\",\"\",'1. Checklist & Certification'!$K$43)","v":""},{"$f":"IF(A107=\"\",\"\",'1. Checklist & Certification'!$K$45)","v":""},{"$f":"IF(A107=\"\",\"\",'1. Checklist & Certification'!$K$49)","v":""},{"$f":"IF(A107=\"\",\"\",'1. Checklist & Certification'!$E$66)","v":""},{"$f":"IF(A107=\"\",\"\",'1. Checklist & Certification'!$E$67)","v":""},{"$f":"IF(A107=\"\",\"\",'1. Checklist & Certification'!$E$68)","v":""},{"$f":"IF(A107=\"\",\"\",'1. Checklist & Certification'!$G$66)","v":""},{"$f":"IF(A107=\"\",\"\",'1. Checklist & Certification'!$H$66)","v":""},{"$f":"IF(A107=\"\",\"\",'1. Checklist & Certification'!$I$66)","v":""},{"$f":"IF(A107=\"\",\"\",'1. Checklist & Certification'!$I$67)","v":""},{"$f":"IF(A107=\"\",\"\",'1. Checklist & Certification'!$I$68)","v":""},null,{"$f":"IF(C107=\"\",\"\",HLOOKUP(C107,'MHP Family Income & Rent Limits'!$E$12:$L$26,2,FALSE))","v":""},{"$f":"IF(C107=\"\",\"\",HLOOKUP(C107,'MHP Family Income & Rent Limits'!$E$12:$L$26,3,FALSE))","v":""},{"$f":"IF(C107=\"\",\"\",HLOOKUP(C107,'MHP Family Income & Rent Limits'!$E$12:$L$26,4,FALSE))","v":""},{"$f":"IF(C107=\"\",\"\",HLOOKUP(C107,'MHP Family Income & Rent Limits'!$E$12:$L$26,5,FALSE))","v":""},{"$f":"IF(C107=\"\",\"\",HLOOKUP(C107,'MHP Family Income & Rent Limits'!$E$12:$L$26,6,FALSE))","v":""},{"$f":"IF(C107=\"\",\"\",HLOOKUP(C107,'MHP Family Income & Rent Limits'!$E$12:$L$26,7,FALSE))","v":""},{"$f":"IF(C107=\"\",\"\",HLOOKUP(C107,'MHP Family Income & Rent Limits'!$E$12:$L$26,8,FALSE))","v":""},{"$f":"IF(C107=\"\",\"\",HLOOKUP(C107,'MHP Family Income & Rent Limits'!$E$12:$L$26,9,FALSE))","v":""},{"$f":"IF(C107=\"\",\"\",HLOOKUP(C107,'MHP Family Income & Rent Limits'!$E$12:$L$26,10,FALSE))","v":""},{"$f":"IF(C107=\"\",\"\",HLOOKUP(C107,'MHP Family Income & Rent Limits'!$E$12:$L$26,11,FALSE))","v":""},{"$f":"IF(C107=\"\",\"\",HLOOKUP(C107,'MHP Family Income & Rent Limits'!$E$12:$L$26,12,FALSE))","v":""},{"$f":"IF(C107=\"\",\"\",HLOOKUP(C107,'MHP Family Income & Rent Limits'!$E$12:$L$26,13,FALSE))","v":""},{"$f":"IF(C107=\"\",\"\",HLOOKUP(C107,'MHP Family Income & Rent Limits'!$E$12:$L$26,14,FALSE))","v":""},{"$f":"IF(C107=\"\",\"\",HLOOKUP(C107,'MHP Family Income & Rent Limits'!$E$12:$L$26,15,FALSE))","v":""}]
[{"$f":"IF('2. Assisted & Restricted Units'!A108=\"\",\"\",'2. Assisted & Restricted Units'!A108)","v":""},{"$f":"IF('2. Assisted & Restricted Units'!B108=\"\",\"\",'2. Assisted & Restricted Units'!B108)","v":""},{"$f":"IF('2. Assisted & Restricted Units'!D108=\"\",\"\",'2. Assisted & Restricted Units'!D108)","v":""},{"$f":"IF('2. Assisted & Restricted Units'!E108=\"\",\"\",'2. Assisted & Restricted Units'!E108)","v":""},{"$f":"IF('2. Assisted & Restricted Units'!H108=\"\",\"\",'2. Assisted & Restricted Units'!H108)","v":""},{"$f":"_xlfn.IFS(E108=\"\",\"\",E108>BO108,$BP$6,E108>BN108,$BO$6,E108>BM108,$BN$6,E108>BL108,$BM$6,E108>BK108,$BL$6,E108>BJ108,$BK$6,E108>BI108,$BJ$6,E108>BH108,$BI$6,E108>BG108,$BH$6,E108>BF108,$BG$6,E108>BE108,$BF$6,E108>BD108,$BE$6,E108>BC108,$BD$6,E108>=0,$BC$6)","v":""},{"$f":"IF('2. Assisted & Restricted Units'!T108=\"\",\"\",'2. Assisted & Restricted Units'!T108)","v":""},{"$f":"IF('2. Assisted & Restricted Units'!I108=\"\",\"\",'2. Assisted & Restricted Units'!I108)","v":""},{"$f":"IF('2. Assisted & Restricted Units'!AP108=\"\",\"\",'2. Assisted & Restricted Units'!AP108)","v":0},{"$f":"IF('2. Assisted & Restricted Units'!AT108=\"\",\"\",'2. Assisted & Restricted Units'!AT108)","v":""},0,{"$f":"IF('2. Assisted & Restricted Units'!AV108=\"\",\"\",'2. Assisted & Restricted Units'!AV108)","v":""},{"$f":"IF('2. Assisted & Restricted Units'!L108=\"\",\"\",'2. Assisted & Restricted Units'!L108)","v":""},{"$f":"IF('2. Assisted & Restricted Units'!M108=\"\",\"\",'2. Assisted & Restricted Units'!M108)","v":""},{"$f":"IF('2. Assisted & Restricted Units'!O108=\"\",\"\",'2. Assisted & Restricted Units'!O108)","v":""},{"$f":"IF('2. Assisted & Restricted Units'!P108=\"\",\"\",'2. Assisted & Restricted Units'!P108)","v":""},{"$f":"IF('2. Assisted & Restricted Units'!Q108=\"\",\"\",'2. Assisted & Restricted Units'!Q108)","v":""},{"$f":"IF('2. Assisted & Restricted Units'!R108=\"\",\"\",'2. Assisted & Restricted Units'!R108)","v":""},{"$f":"IF(A108=\"\",\"\",'1. Checklist & Certification'!$K$1)","v":""},{"$f":"IF(A108=\"\",\"\",'1. Checklist & Certification'!$C$62)","v":""},{"$f":"IF(A108=\"\",\"\",'1. Checklist & Certification'!$K$62)","v":""},{"$f":"IF(A108=\"\",\"\",'1. Checklist & Certification'!$C$6)","v":""},{"$f":"IF(A108=\"\",\"\",'1. Checklist & Certification'!$G$4)","v":""},{"$f":"IF(A108=\"\",\"\",'1. Checklist & Certification'!$C$7)","v":""},{"$f":"IF(A108=\"\",\"\",'1. Checklist & Certification'!$C$8)","v":""},{"$f":"IF(A108=\"\",\"\",'1. Checklist & Certification'!$F$7)","v":""},{"$f":"IF(A108=\"\",\"\",'1. Checklist & Certification'!$F$8)","v":""},{"$f":"IF(A108=\"\",\"\",'1. Checklist & Certification'!$B$9)","v":""},{"$f":"IF(A108=\"\",\"\",'1. Checklist & Certification'!$F$9)","v":""},{"$f":"IF(A108=\"\",\"\",'1. Checklist & Certification'!$C$10)","v":""},{"$f":"IF(A108=\"\",\"\",'1. Checklist & Certification'!$C$11)","v":""},{"$f":"IF(A108=\"\",\"\",'1. Checklist & Certification'!$C$12)","v":""},{"$f":"IF(A108=\"\",\"\",'1. Checklist & Certification'!$B$14)","v":""},{"$f":"IF(A108=\"\",\"\",'1. Checklist & Certification'!$E$14)","v":""},{"$f":"IF(B108=\"\",\"\",'1. Checklist & Certification'!$G$14)","v":""},{"$f":"IF(A108=\"\",\"\",'MHP Family Income & Rent Limits'!$B$3)","v":""},{"$f":"IF(A108=\"\",\"\",'MHP Family Income & Rent Limits'!$J$3)","v":""},{"$f":"IF(A108=\"\",\"\",'MHP Family Income & Rent Limits'!$E$4)","v":""},{"$f":"IF(A108=\"\",\"\",'MHP Family Income & Rent Limits'!$C$7)","v":""},{"$f":"IF(A108=\"\",\"\",'MHP Family Income & Rent Limits'!$F$8)","v":""},{"$f":"IF(A108=\"\",\"\",'1. Checklist & Certification'!$G$4)","v":""},{"$f":"IF(A108=\"\",\"\",'1. Checklist & Certification'!$K$39)","v":""},{"$f":"IF(A108=\"\",\"\",'1. Checklist & Certification'!$K$43)","v":""},{"$f":"IF(A108=\"\",\"\",'1. Checklist & Certification'!$K$45)","v":""},{"$f":"IF(A108=\"\",\"\",'1. Checklist & Certification'!$K$49)","v":""},{"$f":"IF(A108=\"\",\"\",'1. Checklist & Certification'!$E$66)","v":""},{"$f":"IF(A108=\"\",\"\",'1. Checklist & Certification'!$E$67)","v":""},{"$f":"IF(A108=\"\",\"\",'1. Checklist & Certification'!$E$68)","v":""},{"$f":"IF(A108=\"\",\"\",'1. Checklist & Certification'!$G$66)","v":""},{"$f":"IF(A108=\"\",\"\",'1. Checklist & Certification'!$H$66)","v":""},{"$f":"IF(A108=\"\",\"\",'1. Checklist & Certification'!$I$66)","v":""},{"$f":"IF(A108=\"\",\"\",'1. Checklist & Certification'!$I$67)","v":""},{"$f":"IF(A108=\"\",\"\",'1. Checklist & Certification'!$I$68)","v":""},null,{"$f":"IF(C108=\"\",\"\",HLOOKUP(C108,'MHP Family Income & Rent Limits'!$E$12:$L$26,2,FALSE))","v":""},{"$f":"IF(C108=\"\",\"\",HLOOKUP(C108,'MHP Family Income & Rent Limits'!$E$12:$L$26,3,FALSE))","v":""},{"$f":"IF(C108=\"\",\"\",HLOOKUP(C108,'MHP Family Income & Rent Limits'!$E$12:$L$26,4,FALSE))","v":""},{"$f":"IF(C108=\"\",\"\",HLOOKUP(C108,'MHP Family Income & Rent Limits'!$E$12:$L$26,5,FALSE))","v":""},{"$f":"IF(C108=\"\",\"\",HLOOKUP(C108,'MHP Family Income & Rent Limits'!$E$12:$L$26,6,FALSE))","v":""},{"$f":"IF(C108=\"\",\"\",HLOOKUP(C108,'MHP Family Income & Rent Limits'!$E$12:$L$26,7,FALSE))","v":""},{"$f":"IF(C108=\"\",\"\",HLOOKUP(C108,'MHP Family Income & Rent Limits'!$E$12:$L$26,8,FALSE))","v":""},{"$f":"IF(C108=\"\",\"\",HLOOKUP(C108,'MHP Family Income & Rent Limits'!$E$12:$L$26,9,FALSE))","v":""},{"$f":"IF(C108=\"\",\"\",HLOOKUP(C108,'MHP Family Income & Rent Limits'!$E$12:$L$26,10,FALSE))","v":""},{"$f":"IF(C108=\"\",\"\",HLOOKUP(C108,'MHP Family Income & Rent Limits'!$E$12:$L$26,11,FALSE))","v":""},{"$f":"IF(C108=\"\",\"\",HLOOKUP(C108,'MHP Family Income & Rent Limits'!$E$12:$L$26,12,FALSE))","v":""},{"$f":"IF(C108=\"\",\"\",HLOOKUP(C108,'MHP Family Income & Rent Limits'!$E$12:$L$26,13,FALSE))","v":""},{"$f":"IF(C108=\"\",\"\",HLOOKUP(C108,'MHP Family Income & Rent Limits'!$E$12:$L$26,14,FALSE))","v":""},{"$f":"IF(C108=\"\",\"\",HLOOKUP(C108,'MHP Family Income & Rent Limits'!$E$12:$L$26,15,FALSE))","v":""}]
[{"$f":"IF('2. Assisted & Restricted Units'!A109=\"\",\"\",'2. Assisted & Restricted Units'!A109)","v":""},{"$f":"IF('2. Assisted & Restricted Units'!B109=\"\",\"\",'2. Assisted & Restricted Units'!B109)","v":""},{"$f":"IF('2. Assisted & Restricted Units'!D109=\"\",\"\",'2. Assisted & Restricted Units'!D109)","v":""},{"$f":"IF('2. Assisted & Restricted Units'!E109=\"\",\"\",'2. Assisted & Restricted Units'!E109)","v":""},{"$f":"IF('2. Assisted & Restricted Units'!H109=\"\",\"\",'2. Assisted & Restricted Units'!H109)","v":""},{"$f":"_xlfn.IFS(E109=\"\",\"\",E109>BO109,$BP$6,E109>BN109,$BO$6,E109>BM109,$BN$6,E109>BL109,$BM$6,E109>BK109,$BL$6,E109>BJ109,$BK$6,E109>BI109,$BJ$6,E109>BH109,$BI$6,E109>BG109,$BH$6,E109>BF109,$BG$6,E109>BE109,$BF$6,E109>BD109,$BE$6,E109>BC109,$BD$6,E109>=0,$BC$6)","v":""},{"$f":"IF('2. Assisted & Restricted Units'!T109=\"\",\"\",'2. Assisted & Restricted Units'!T109)","v":""},{"$f":"IF('2. Assisted & Restricted Units'!I109=\"\",\"\",'2. Assisted & Restricted Units'!I109)","v":""},{"$f":"IF('2. Assisted & Restricted Units'!AP109=\"\",\"\",'2. Assisted & Restricted Units'!AP109)","v":0},{"$f":"IF('2. Assisted & Restricted Units'!AT109=\"\",\"\",'2. Assisted & Restricted Units'!AT109)","v":""},0,{"$f":"IF('2. Assisted & Restricted Units'!AV109=\"\",\"\",'2. Assisted & Restricted Units'!AV109)","v":""},{"$f":"IF('2. Assisted & Restricted Units'!L109=\"\",\"\",'2. Assisted & Restricted Units'!L109)","v":""},{"$f":"IF('2. Assisted & Restricted Units'!M109=\"\",\"\",'2. Assisted & Restricted Units'!M109)","v":""},{"$f":"IF('2. Assisted & Restricted Units'!O109=\"\",\"\",'2. Assisted & Restricted Units'!O109)","v":""},{"$f":"IF('2. Assisted & Restricted Units'!P109=\"\",\"\",'2. Assisted & Restricted Units'!P109)","v":""},{"$f":"IF('2. Assisted & Restricted Units'!Q109=\"\",\"\",'2. Assisted & Restricted Units'!Q109)","v":""},{"$f":"IF('2. Assisted & Restricted Units'!R109=\"\",\"\",'2. Assisted & Restricted Units'!R109)","v":""},{"$f":"IF(A109=\"\",\"\",'1. Checklist & Certification'!$K$1)","v":""},{"$f":"IF(A109=\"\",\"\",'1. Checklist & Certification'!$C$62)","v":""},{"$f":"IF(A109=\"\",\"\",'1. Checklist & Certification'!$K$62)","v":""},{"$f":"IF(A109=\"\",\"\",'1. Checklist & Certification'!$C$6)","v":""},{"$f":"IF(A109=\"\",\"\",'1. Checklist & Certification'!$G$4)","v":""},{"$f":"IF(A109=\"\",\"\",'1. Checklist & Certification'!$C$7)","v":""},{"$f":"IF(A109=\"\",\"\",'1. Checklist & Certification'!$C$8)","v":""},{"$f":"IF(A109=\"\",\"\",'1. Checklist & Certification'!$F$7)","v":""},{"$f":"IF(A109=\"\",\"\",'1. Checklist & Certification'!$F$8)","v":""},{"$f":"IF(A109=\"\",\"\",'1. Checklist & Certification'!$B$9)","v":""},{"$f":"IF(A109=\"\",\"\",'1. Checklist & Certification'!$F$9)","v":""},{"$f":"IF(A109=\"\",\"\",'1. Checklist & Certification'!$C$10)","v":""},{"$f":"IF(A109=\"\",\"\",'1. Checklist & Certification'!$C$11)","v":""},{"$f":"IF(A109=\"\",\"\",'1. Checklist & Certification'!$C$12)","v":""},{"$f":"IF(A109=\"\",\"\",'1. Checklist & Certification'!$B$14)","v":""},{"$f":"IF(A109=\"\",\"\",'1. Checklist & Certification'!$E$14)","v":""},{"$f":"IF(B109=\"\",\"\",'1. Checklist & Certification'!$G$14)","v":""},{"$f":"IF(A109=\"\",\"\",'MHP Family Income & Rent Limits'!$B$3)","v":""},{"$f":"IF(A109=\"\",\"\",'MHP Family Income & Rent Limits'!$J$3)","v":""},{"$f":"IF(A109=\"\",\"\",'MHP Family Income & Rent Limits'!$E$4)","v":""},{"$f":"IF(A109=\"\",\"\",'MHP Family Income & Rent Limits'!$C$7)","v":""},{"$f":"IF(A109=\"\",\"\",'MHP Family Income & Rent Limits'!$F$8)","v":""},{"$f":"IF(A109=\"\",\"\",'1. Checklist & Certification'!$G$4)","v":""},{"$f":"IF(A109=\"\",\"\",'1. Checklist & Certification'!$K$39)","v":""},{"$f":"IF(A109=\"\",\"\",'1. Checklist & Certification'!$K$43)","v":""},{"$f":"IF(A109=\"\",\"\",'1. Checklist & Certification'!$K$45)","v":""},{"$f":"IF(A109=\"\",\"\",'1. Checklist & Certification'!$K$49)","v":""},{"$f":"IF(A109=\"\",\"\",'1. Checklist & Certification'!$E$66)","v":""},{"$f":"IF(A109=\"\",\"\",'1. Checklist & Certification'!$E$67)","v":""},{"$f":"IF(A109=\"\",\"\",'1. Checklist & Certification'!$E$68)","v":""},{"$f":"IF(A109=\"\",\"\",'1. Checklist & Certification'!$G$66)","v":""},{"$f":"IF(A109=\"\",\"\",'1. Checklist & Certification'!$H$66)","v":""},{"$f":"IF(A109=\"\",\"\",'1. Checklist & Certification'!$I$66)","v":""},{"$f":"IF(A109=\"\",\"\",'1. Checklist & Certification'!$I$67)","v":""},{"$f":"IF(A109=\"\",\"\",'1. Checklist & Certification'!$I$68)","v":""},null,{"$f":"IF(C109=\"\",\"\",HLOOKUP(C109,'MHP Family Income & Rent Limits'!$E$12:$L$26,2,FALSE))","v":""},{"$f":"IF(C109=\"\",\"\",HLOOKUP(C109,'MHP Family Income & Rent Limits'!$E$12:$L$26,3,FALSE))","v":""},{"$f":"IF(C109=\"\",\"\",HLOOKUP(C109,'MHP Family Income & Rent Limits'!$E$12:$L$26,4,FALSE))","v":""},{"$f":"IF(C109=\"\",\"\",HLOOKUP(C109,'MHP Family Income & Rent Limits'!$E$12:$L$26,5,FALSE))","v":""},{"$f":"IF(C109=\"\",\"\",HLOOKUP(C109,'MHP Family Income & Rent Limits'!$E$12:$L$26,6,FALSE))","v":""},{"$f":"IF(C109=\"\",\"\",HLOOKUP(C109,'MHP Family Income & Rent Limits'!$E$12:$L$26,7,FALSE))","v":""},{"$f":"IF(C109=\"\",\"\",HLOOKUP(C109,'MHP Family Income & Rent Limits'!$E$12:$L$26,8,FALSE))","v":""},{"$f":"IF(C109=\"\",\"\",HLOOKUP(C109,'MHP Family Income & Rent Limits'!$E$12:$L$26,9,FALSE))","v":""},{"$f":"IF(C109=\"\",\"\",HLOOKUP(C109,'MHP Family Income & Rent Limits'!$E$12:$L$26,10,FALSE))","v":""},{"$f":"IF(C109=\"\",\"\",HLOOKUP(C109,'MHP Family Income & Rent Limits'!$E$12:$L$26,11,FALSE))","v":""},{"$f":"IF(C109=\"\",\"\",HLOOKUP(C109,'MHP Family Income & Rent Limits'!$E$12:$L$26,12,FALSE))","v":""},{"$f":"IF(C109=\"\",\"\",HLOOKUP(C109,'MHP Family Income & Rent Limits'!$E$12:$L$26,13,FALSE))","v":""},{"$f":"IF(C109=\"\",\"\",HLOOKUP(C109,'MHP Family Income & Rent Limits'!$E$12:$L$26,14,FALSE))","v":""},{"$f":"IF(C109=\"\",\"\",HLOOKUP(C109,'MHP Family Income & Rent Limits'!$E$12:$L$26,15,FALSE))","v":""}]
[{"$f":"IF('2. Assisted & Restricted Units'!A110=\"\",\"\",'2. Assisted & Restricted Units'!A110)","v":""},{"$f":"IF('2. Assisted & Restricted Units'!B110=\"\",\"\",'2. Assisted & Restricted Units'!B110)","v":""},{"$f":"IF('2. Assisted & Restricted Units'!D110=\"\",\"\",'2. Assisted & Restricted Units'!D110)","v":""},{"$f":"IF('2. Assisted & Restricted Units'!E110=\"\",\"\",'2. Assisted & Restricted Units'!E110)","v":""},{"$f":"IF('2. Assisted & Restricted Units'!H110=\"\",\"\",'2. Assisted & Restricted Units'!H110)","v":""},{"$f":"_xlfn.IFS(E110=\"\",\"\",E110>BO110,$BP$6,E110>BN110,$BO$6,E110>BM110,$BN$6,E110>BL110,$BM$6,E110>BK110,$BL$6,E110>BJ110,$BK$6,E110>BI110,$BJ$6,E110>BH110,$BI$6,E110>BG110,$BH$6,E110>BF110,$BG$6,E110>BE110,$BF$6,E110>BD110,$BE$6,E110>BC110,$BD$6,E110>=0,$BC$6)","v":""},{"$f":"IF('2. Assisted & Restricted Units'!T110=\"\",\"\",'2. Assisted & Restricted Units'!T110)","v":""},{"$f":"IF('2. Assisted & Restricted Units'!I110=\"\",\"\",'2. Assisted & Restricted Units'!I110)","v":""},{"$f":"IF('2. Assisted & Restricted Units'!AP110=\"\",\"\",'2. Assisted & Restricted Units'!AP110)","v":0},{"$f":"IF('2. Assisted & Restricted Units'!AT110=\"\",\"\",'2. Assisted & Restricted Units'!AT110)","v":""},0,{"$f":"IF('2. Assisted & Restricted Units'!AV110=\"\",\"\",'2. Assisted & Restricted Units'!AV110)","v":""},{"$f":"IF('2. Assisted & Restricted Units'!L110=\"\",\"\",'2. Assisted & Restricted Units'!L110)","v":""},{"$f":"IF('2. Assisted & Restricted Units'!M110=\"\",\"\",'2. Assisted & Restricted Units'!M110)","v":""},{"$f":"IF('2. Assisted & Restricted Units'!O110=\"\",\"\",'2. Assisted & Restricted Units'!O110)","v":""},{"$f":"IF('2. Assisted & Restricted Units'!P110=\"\",\"\",'2. Assisted & Restricted Units'!P110)","v":""},{"$f":"IF('2. Assisted & Restricted Units'!Q110=\"\",\"\",'2. Assisted & Restricted Units'!Q110)","v":""},{"$f":"IF('2. Assisted & Restricted Units'!R110=\"\",\"\",'2. Assisted & Restricted Units'!R110)","v":""},{"$f":"IF(A110=\"\",\"\",'1. Checklist & Certification'!$K$1)","v":""},{"$f":"IF(A110=\"\",\"\",'1. Checklist & Certification'!$C$62)","v":""},{"$f":"IF(A110=\"\",\"\",'1. Checklist & Certification'!$K$62)","v":""},{"$f":"IF(A110=\"\",\"\",'1. Checklist & Certification'!$C$6)","v":""},{"$f":"IF(A110=\"\",\"\",'1. Checklist & Certification'!$G$4)","v":""},{"$f":"IF(A110=\"\",\"\",'1. Checklist & Certification'!$C$7)","v":""},{"$f":"IF(A110=\"\",\"\",'1. Checklist & Certification'!$C$8)","v":""},{"$f":"IF(A110=\"\",\"\",'1. Checklist & Certification'!$F$7)","v":""},{"$f":"IF(A110=\"\",\"\",'1. Checklist & Certification'!$F$8)","v":""},{"$f":"IF(A110=\"\",\"\",'1. Checklist & Certification'!$B$9)","v":""},{"$f":"IF(A110=\"\",\"\",'1. Checklist & Certification'!$F$9)","v":""},{"$f":"IF(A110=\"\",\"\",'1. Checklist & Certification'!$C$10)","v":""},{"$f":"IF(A110=\"\",\"\",'1. Checklist & Certification'!$C$11)","v":""},{"$f":"IF(A110=\"\",\"\",'1. Checklist & Certification'!$C$12)","v":""},{"$f":"IF(A110=\"\",\"\",'1. Checklist & Certification'!$B$14)","v":""},{"$f":"IF(A110=\"\",\"\",'1. Checklist & Certification'!$E$14)","v":""},{"$f":"IF(B110=\"\",\"\",'1. Checklist & Certification'!$G$14)","v":""},{"$f":"IF(A110=\"\",\"\",'MHP Family Income & Rent Limits'!$B$3)","v":""},{"$f":"IF(A110=\"\",\"\",'MHP Family Income & Rent Limits'!$J$3)","v":""},{"$f":"IF(A110=\"\",\"\",'MHP Family Income & Rent Limits'!$E$4)","v":""},{"$f":"IF(A110=\"\",\"\",'MHP Family Income & Rent Limits'!$C$7)","v":""},{"$f":"IF(A110=\"\",\"\",'MHP Family Income & Rent Limits'!$F$8)","v":""},{"$f":"IF(A110=\"\",\"\",'1. Checklist & Certification'!$G$4)","v":""},{"$f":"IF(A110=\"\",\"\",'1. Checklist & Certification'!$K$39)","v":""},{"$f":"IF(A110=\"\",\"\",'1. Checklist & Certification'!$K$43)","v":""},{"$f":"IF(A110=\"\",\"\",'1. Checklist & Certification'!$K$45)","v":""},{"$f":"IF(A110=\"\",\"\",'1. Checklist & Certification'!$K$49)","v":""},{"$f":"IF(A110=\"\",\"\",'1. Checklist & Certification'!$E$66)","v":""},{"$f":"IF(A110=\"\",\"\",'1. Checklist & Certification'!$E$67)","v":""},{"$f":"IF(A110=\"\",\"\",'1. Checklist & Certification'!$E$68)","v":""},{"$f":"IF(A110=\"\",\"\",'1. Checklist & Certification'!$G$66)","v":""},{"$f":"IF(A110=\"\",\"\",'1. Checklist & Certification'!$H$66)","v":""},{"$f":"IF(A110=\"\",\"\",'1. Checklist & Certification'!$I$66)","v":""},{"$f":"IF(A110=\"\",\"\",'1. Checklist & Certification'!$I$67)","v":""},{"$f":"IF(A110=\"\",\"\",'1. Checklist & Certification'!$I$68)","v":""},null,{"$f":"IF(C110=\"\",\"\",HLOOKUP(C110,'MHP Family Income & Rent Limits'!$E$12:$L$26,2,FALSE))","v":""},{"$f":"IF(C110=\"\",\"\",HLOOKUP(C110,'MHP Family Income & Rent Limits'!$E$12:$L$26,3,FALSE))","v":""},{"$f":"IF(C110=\"\",\"\",HLOOKUP(C110,'MHP Family Income & Rent Limits'!$E$12:$L$26,4,FALSE))","v":""},{"$f":"IF(C110=\"\",\"\",HLOOKUP(C110,'MHP Family Income & Rent Limits'!$E$12:$L$26,5,FALSE))","v":""},{"$f":"IF(C110=\"\",\"\",HLOOKUP(C110,'MHP Family Income & Rent Limits'!$E$12:$L$26,6,FALSE))","v":""},{"$f":"IF(C110=\"\",\"\",HLOOKUP(C110,'MHP Family Income & Rent Limits'!$E$12:$L$26,7,FALSE))","v":""},{"$f":"IF(C110=\"\",\"\",HLOOKUP(C110,'MHP Family Income & Rent Limits'!$E$12:$L$26,8,FALSE))","v":""},{"$f":"IF(C110=\"\",\"\",HLOOKUP(C110,'MHP Family Income & Rent Limits'!$E$12:$L$26,9,FALSE))","v":""},{"$f":"IF(C110=\"\",\"\",HLOOKUP(C110,'MHP Family Income & Rent Limits'!$E$12:$L$26,10,FALSE))","v":""},{"$f":"IF(C110=\"\",\"\",HLOOKUP(C110,'MHP Family Income & Rent Limits'!$E$12:$L$26,11,FALSE))","v":""},{"$f":"IF(C110=\"\",\"\",HLOOKUP(C110,'MHP Family Income & Rent Limits'!$E$12:$L$26,12,FALSE))","v":""},{"$f":"IF(C110=\"\",\"\",HLOOKUP(C110,'MHP Family Income & Rent Limits'!$E$12:$L$26,13,FALSE))","v":""},{"$f":"IF(C110=\"\",\"\",HLOOKUP(C110,'MHP Family Income & Rent Limits'!$E$12:$L$26,14,FALSE))","v":""},{"$f":"IF(C110=\"\",\"\",HLOOKUP(C110,'MHP Family Income & Rent Limits'!$E$12:$L$26,15,FALSE))","v":""}]
[{"$f":"IF('2. Assisted & Restricted Units'!A111=\"\",\"\",'2. Assisted & Restricted Units'!A111)","v":""},{"$f":"IF('2. Assisted & Restricted Units'!B111=\"\",\"\",'2. Assisted & Restricted Units'!B111)","v":""},{"$f":"IF('2. Assisted & Restricted Units'!D111=\"\",\"\",'2. Assisted & Restricted Units'!D111)","v":""},{"$f":"IF('2. Assisted & Restricted Units'!E111=\"\",\"\",'2. Assisted & Restricted Units'!E111)","v":""},{"$f":"IF('2. Assisted & Restricted Units'!H111=\"\",\"\",'2. Assisted & Restricted Units'!H111)","v":""},{"$f":"_xlfn.IFS(E111=\"\",\"\",E111>BO111,$BP$6,E111>BN111,$BO$6,E111>BM111,$BN$6,E111>BL111,$BM$6,E111>BK111,$BL$6,E111>BJ111,$BK$6,E111>BI111,$BJ$6,E111>BH111,$BI$6,E111>BG111,$BH$6,E111>BF111,$BG$6,E111>BE111,$BF$6,E111>BD111,$BE$6,E111>BC111,$BD$6,E111>=0,$BC$6)","v":""},{"$f":"IF('2. Assisted & Restricted Units'!T111=\"\",\"\",'2. Assisted & Restricted Units'!T111)","v":""},{"$f":"IF('2. Assisted & Restricted Units'!I111=\"\",\"\",'2. Assisted & Restricted Units'!I111)","v":""},{"$f":"IF('2. Assisted & Restricted Units'!AP111=\"\",\"\",'2. Assisted & Restricted Units'!AP111)","v":0},{"$f":"IF('2. Assisted & Restricted Units'!AT111=\"\",\"\",'2. Assisted & Restricted Units'!AT111)","v":""},0,{"$f":"IF('2. Assisted & Restricted Units'!AV111=\"\",\"\",'2. Assisted & Restricted Units'!AV111)","v":""},{"$f":"IF('2. Assisted & Restricted Units'!L111=\"\",\"\",'2. Assisted & Restricted Units'!L111)","v":""},{"$f":"IF('2. Assisted & Restricted Units'!M111=\"\",\"\",'2. Assisted & Restricted Units'!M111)","v":""},{"$f":"IF('2. Assisted & Restricted Units'!O111=\"\",\"\",'2. Assisted & Restricted Units'!O111)","v":""},{"$f":"IF('2. Assisted & Restricted Units'!P111=\"\",\"\",'2. Assisted & Restricted Units'!P111)","v":""},{"$f":"IF('2. Assisted & Restricted Units'!Q111=\"\",\"\",'2. Assisted & Restricted Units'!Q111)","v":""},{"$f":"IF('2. Assisted & Restricted Units'!R111=\"\",\"\",'2. Assisted & Restricted Units'!R111)","v":""},{"$f":"IF(A111=\"\",\"\",'1. Checklist & Certification'!$K$1)","v":""},{"$f":"IF(A111=\"\",\"\",'1. Checklist & Certification'!$C$62)","v":""},{"$f":"IF(A111=\"\",\"\",'1. Checklist & Certification'!$K$62)","v":""},{"$f":"IF(A111=\"\",\"\",'1. Checklist & Certification'!$C$6)","v":""},{"$f":"IF(A111=\"\",\"\",'1. Checklist & Certification'!$G$4)","v":""},{"$f":"IF(A111=\"\",\"\",'1. Checklist & Certification'!$C$7)","v":""},{"$f":"IF(A111=\"\",\"\",'1. Checklist & Certification'!$C$8)","v":""},{"$f":"IF(A111=\"\",\"\",'1. Checklist & Certification'!$F$7)","v":""},{"$f":"IF(A111=\"\",\"\",'1. Checklist & Certification'!$F$8)","v":""},{"$f":"IF(A111=\"\",\"\",'1. Checklist & Certification'!$B$9)","v":""},{"$f":"IF(A111=\"\",\"\",'1. Checklist & Certification'!$F$9)","v":""},{"$f":"IF(A111=\"\",\"\",'1. Checklist & Certification'!$C$10)","v":""},{"$f":"IF(A111=\"\",\"\",'1. Checklist & Certification'!$C$11)","v":""},{"$f":"IF(A111=\"\",\"\",'1. Checklist & Certification'!$C$12)","v":""},{"$f":"IF(A111=\"\",\"\",'1. Checklist & Certification'!$B$14)","v":""},{"$f":"IF(A111=\"\",\"\",'1. Checklist & Certification'!$E$14)","v":""},{"$f":"IF(B111=\"\",\"\",'1. Checklist & Certification'!$G$14)","v":""},{"$f":"IF(A111=\"\",\"\",'MHP Family Income & Rent Limits'!$B$3)","v":""},{"$f":"IF(A111=\"\",\"\",'MHP Family Income & Rent Limits'!$J$3)","v":""},{"$f":"IF(A111=\"\",\"\",'MHP Family Income & Rent Limits'!$E$4)","v":""},{"$f":"IF(A111=\"\",\"\",'MHP Family Income & Rent Limits'!$C$7)","v":""},{"$f":"IF(A111=\"\",\"\",'MHP Family Income & Rent Limits'!$F$8)","v":""},{"$f":"IF(A111=\"\",\"\",'1. Checklist & Certification'!$G$4)","v":""},{"$f":"IF(A111=\"\",\"\",'1. Checklist & Certification'!$K$39)","v":""},{"$f":"IF(A111=\"\",\"\",'1. Checklist & Certification'!$K$43)","v":""},{"$f":"IF(A111=\"\",\"\",'1. Checklist & Certification'!$K$45)","v":""},{"$f":"IF(A111=\"\",\"\",'1. Checklist & Certification'!$K$49)","v":""},{"$f":"IF(A111=\"\",\"\",'1. Checklist & Certification'!$E$66)","v":""},{"$f":"IF(A111=\"\",\"\",'1. Checklist & Certification'!$E$67)","v":""},{"$f":"IF(A111=\"\",\"\",'1. Checklist & Certification'!$E$68)","v":""},{"$f":"IF(A111=\"\",\"\",'1. Checklist & Certification'!$G$66)","v":""},{"$f":"IF(A111=\"\",\"\",'1. Checklist & Certification'!$H$66)","v":""},{"$f":"IF(A111=\"\",\"\",'1. Checklist & Certification'!$I$66)","v":""},{"$f":"IF(A111=\"\",\"\",'1. Checklist & Certification'!$I$67)","v":""},{"$f":"IF(A111=\"\",\"\",'1. Checklist & Certification'!$I$68)","v":""},null,{"$f":"IF(C111=\"\",\"\",HLOOKUP(C111,'MHP Family Income & Rent Limits'!$E$12:$L$26,2,FALSE))","v":""},{"$f":"IF(C111=\"\",\"\",HLOOKUP(C111,'MHP Family Income & Rent Limits'!$E$12:$L$26,3,FALSE))","v":""},{"$f":"IF(C111=\"\",\"\",HLOOKUP(C111,'MHP Family Income & Rent Limits'!$E$12:$L$26,4,FALSE))","v":""},{"$f":"IF(C111=\"\",\"\",HLOOKUP(C111,'MHP Family Income & Rent Limits'!$E$12:$L$26,5,FALSE))","v":""},{"$f":"IF(C111=\"\",\"\",HLOOKUP(C111,'MHP Family Income & Rent Limits'!$E$12:$L$26,6,FALSE))","v":""},{"$f":"IF(C111=\"\",\"\",HLOOKUP(C111,'MHP Family Income & Rent Limits'!$E$12:$L$26,7,FALSE))","v":""},{"$f":"IF(C111=\"\",\"\",HLOOKUP(C111,'MHP Family Income & Rent Limits'!$E$12:$L$26,8,FALSE))","v":""},{"$f":"IF(C111=\"\",\"\",HLOOKUP(C111,'MHP Family Income & Rent Limits'!$E$12:$L$26,9,FALSE))","v":""},{"$f":"IF(C111=\"\",\"\",HLOOKUP(C111,'MHP Family Income & Rent Limits'!$E$12:$L$26,10,FALSE))","v":""},{"$f":"IF(C111=\"\",\"\",HLOOKUP(C111,'MHP Family Income & Rent Limits'!$E$12:$L$26,11,FALSE))","v":""},{"$f":"IF(C111=\"\",\"\",HLOOKUP(C111,'MHP Family Income & Rent Limits'!$E$12:$L$26,12,FALSE))","v":""},{"$f":"IF(C111=\"\",\"\",HLOOKUP(C111,'MHP Family Income & Rent Limits'!$E$12:$L$26,13,FALSE))","v":""},{"$f":"IF(C111=\"\",\"\",HLOOKUP(C111,'MHP Family Income & Rent Limits'!$E$12:$L$26,14,FALSE))","v":""},{"$f":"IF(C111=\"\",\"\",HLOOKUP(C111,'MHP Family Income & Rent Limits'!$E$12:$L$26,15,FALSE))","v":""}]
[{"$f":"IF('2. Assisted & Restricted Units'!A112=\"\",\"\",'2. Assisted & Restricted Units'!A112)","v":""},{"$f":"IF('2. Assisted & Restricted Units'!B112=\"\",\"\",'2. Assisted & Restricted Units'!B112)","v":""},{"$f":"IF('2. Assisted & Restricted Units'!D112=\"\",\"\",'2. Assisted & Restricted Units'!D112)","v":""},{"$f":"IF('2. Assisted & Restricted Units'!E112=\"\",\"\",'2. Assisted & Restricted Units'!E112)","v":""},{"$f":"IF('2. Assisted & Restricted Units'!H112=\"\",\"\",'2. Assisted & Restricted Units'!H112)","v":""},{"$f":"_xlfn.IFS(E112=\"\",\"\",E112>BO112,$BP$6,E112>BN112,$BO$6,E112>BM112,$BN$6,E112>BL112,$BM$6,E112>BK112,$BL$6,E112>BJ112,$BK$6,E112>BI112,$BJ$6,E112>BH112,$BI$6,E112>BG112,$BH$6,E112>BF112,$BG$6,E112>BE112,$BF$6,E112>BD112,$BE$6,E112>BC112,$BD$6,E112>=0,$BC$6)","v":""},{"$f":"IF('2. Assisted & Restricted Units'!T112=\"\",\"\",'2. Assisted & Restricted Units'!T112)","v":""},{"$f":"IF('2. Assisted & Restricted Units'!I112=\"\",\"\",'2. Assisted & Restricted Units'!I112)","v":""},{"$f":"IF('2. Assisted & Restricted Units'!AP112=\"\",\"\",'2. Assisted & Restricted Units'!AP112)","v":0},{"$f":"IF('2. Assisted & Restricted Units'!AT112=\"\",\"\",'2. Assisted & Restricted Units'!AT112)","v":""},0,{"$f":"IF('2. Assisted & Restricted Units'!AV112=\"\",\"\",'2. Assisted & Restricted Units'!AV112)","v":""},{"$f":"IF('2. Assisted & Restricted Units'!L112=\"\",\"\",'2. Assisted & Restricted Units'!L112)","v":""},{"$f":"IF('2. Assisted & Restricted Units'!M112=\"\",\"\",'2. Assisted & Restricted Units'!M112)","v":""},{"$f":"IF('2. Assisted & Restricted Units'!O112=\"\",\"\",'2. Assisted & Restricted Units'!O112)","v":""},{"$f":"IF('2. Assisted & Restricted Units'!P112=\"\",\"\",'2. Assisted & Restricted Units'!P112)","v":""},{"$f":"IF('2. Assisted & Restricted Units'!Q112=\"\",\"\",'2. Assisted & Restricted Units'!Q112)","v":""},{"$f":"IF('2. Assisted & Restricted Units'!R112=\"\",\"\",'2. Assisted & Restricted Units'!R112)","v":""},{"$f":"IF(A112=\"\",\"\",'1. Checklist & Certification'!$K$1)","v":""},{"$f":"IF(A112=\"\",\"\",'1. Checklist & Certification'!$C$62)","v":""},{"$f":"IF(A112=\"\",\"\",'1. Checklist & Certification'!$K$62)","v":""},{"$f":"IF(A112=\"\",\"\",'1. Checklist & Certification'!$C$6)","v":""},{"$f":"IF(A112=\"\",\"\",'1. Checklist & Certification'!$G$4)","v":""},{"$f":"IF(A112=\"\",\"\",'1. Checklist & Certification'!$C$7)","v":""},{"$f":"IF(A112=\"\",\"\",'1. Checklist & Certification'!$C$8)","v":""},{"$f":"IF(A112=\"\",\"\",'1. Checklist & Certification'!$F$7)","v":""},{"$f":"IF(A112=\"\",\"\",'1. Checklist & Certification'!$F$8)","v":""},{"$f":"IF(A112=\"\",\"\",'1. Checklist & Certification'!$B$9)","v":""},{"$f":"IF(A112=\"\",\"\",'1. Checklist & Certification'!$F$9)","v":""},{"$f":"IF(A112=\"\",\"\",'1. Checklist & Certification'!$C$10)","v":""},{"$f":"IF(A112=\"\",\"\",'1. Checklist & Certification'!$C$11)","v":""},{"$f":"IF(A112=\"\",\"\",'1. Checklist & Certification'!$C$12)","v":""},{"$f":"IF(A112=\"\",\"\",'1. Checklist & Certification'!$B$14)","v":""},{"$f":"IF(A112=\"\",\"\",'1. Checklist & Certification'!$E$14)","v":""},{"$f":"IF(B112=\"\",\"\",'1. Checklist & Certification'!$G$14)","v":""},{"$f":"IF(A112=\"\",\"\",'MHP Family Income & Rent Limits'!$B$3)","v":""},{"$f":"IF(A112=\"\",\"\",'MHP Family Income & Rent Limits'!$J$3)","v":""},{"$f":"IF(A112=\"\",\"\",'MHP Family Income & Rent Limits'!$E$4)","v":""},{"$f":"IF(A112=\"\",\"\",'MHP Family Income & Rent Limits'!$C$7)","v":""},{"$f":"IF(A112=\"\",\"\",'MHP Family Income & Rent Limits'!$F$8)","v":""},{"$f":"IF(A112=\"\",\"\",'1. Checklist & Certification'!$G$4)","v":""},{"$f":"IF(A112=\"\",\"\",'1. Checklist & Certification'!$K$39)","v":""},{"$f":"IF(A112=\"\",\"\",'1. Checklist & Certification'!$K$43)","v":""},{"$f":"IF(A112=\"\",\"\",'1. Checklist & Certification'!$K$45)","v":""},{"$f":"IF(A112=\"\",\"\",'1. Checklist & Certification'!$K$49)","v":""},{"$f":"IF(A112=\"\",\"\",'1. Checklist & Certification'!$E$66)","v":""},{"$f":"IF(A112=\"\",\"\",'1. Checklist & Certification'!$E$67)","v":""},{"$f":"IF(A112=\"\",\"\",'1. Checklist & Certification'!$E$68)","v":""},{"$f":"IF(A112=\"\",\"\",'1. Checklist & Certification'!$G$66)","v":""},{"$f":"IF(A112=\"\",\"\",'1. Checklist & Certification'!$H$66)","v":""},{"$f":"IF(A112=\"\",\"\",'1. Checklist & Certification'!$I$66)","v":""},{"$f":"IF(A112=\"\",\"\",'1. Checklist & Certification'!$I$67)","v":""},{"$f":"IF(A112=\"\",\"\",'1. Checklist & Certification'!$I$68)","v":""},null,{"$f":"IF(C112=\"\",\"\",HLOOKUP(C112,'MHP Family Income & Rent Limits'!$E$12:$L$26,2,FALSE))","v":""},{"$f":"IF(C112=\"\",\"\",HLOOKUP(C112,'MHP Family Income & Rent Limits'!$E$12:$L$26,3,FALSE))","v":""},{"$f":"IF(C112=\"\",\"\",HLOOKUP(C112,'MHP Family Income & Rent Limits'!$E$12:$L$26,4,FALSE))","v":""},{"$f":"IF(C112=\"\",\"\",HLOOKUP(C112,'MHP Family Income & Rent Limits'!$E$12:$L$26,5,FALSE))","v":""},{"$f":"IF(C112=\"\",\"\",HLOOKUP(C112,'MHP Family Income & Rent Limits'!$E$12:$L$26,6,FALSE))","v":""},{"$f":"IF(C112=\"\",\"\",HLOOKUP(C112,'MHP Family Income & Rent Limits'!$E$12:$L$26,7,FALSE))","v":""},{"$f":"IF(C112=\"\",\"\",HLOOKUP(C112,'MHP Family Income & Rent Limits'!$E$12:$L$26,8,FALSE))","v":""},{"$f":"IF(C112=\"\",\"\",HLOOKUP(C112,'MHP Family Income & Rent Limits'!$E$12:$L$26,9,FALSE))","v":""},{"$f":"IF(C112=\"\",\"\",HLOOKUP(C112,'MHP Family Income & Rent Limits'!$E$12:$L$26,10,FALSE))","v":""},{"$f":"IF(C112=\"\",\"\",HLOOKUP(C112,'MHP Family Income & Rent Limits'!$E$12:$L$26,11,FALSE))","v":""},{"$f":"IF(C112=\"\",\"\",HLOOKUP(C112,'MHP Family Income & Rent Limits'!$E$12:$L$26,12,FALSE))","v":""},{"$f":"IF(C112=\"\",\"\",HLOOKUP(C112,'MHP Family Income & Rent Limits'!$E$12:$L$26,13,FALSE))","v":""},{"$f":"IF(C112=\"\",\"\",HLOOKUP(C112,'MHP Family Income & Rent Limits'!$E$12:$L$26,14,FALSE))","v":""},{"$f":"IF(C112=\"\",\"\",HLOOKUP(C112,'MHP Family Income & Rent Limits'!$E$12:$L$26,15,FALSE))","v":""}]
[{"$f":"IF('2. Assisted & Restricted Units'!A113=\"\",\"\",'2. Assisted & Restricted Units'!A113)","v":""},{"$f":"IF('2. Assisted & Restricted Units'!B113=\"\",\"\",'2. Assisted & Restricted Units'!B113)","v":""},{"$f":"IF('2. Assisted & Restricted Units'!D113=\"\",\"\",'2. Assisted & Restricted Units'!D113)","v":""},{"$f":"IF('2. Assisted & Restricted Units'!E113=\"\",\"\",'2. Assisted & Restricted Units'!E113)","v":""},{"$f":"IF('2. Assisted & Restricted Units'!H113=\"\",\"\",'2. Assisted & Restricted Units'!H113)","v":""},{"$f":"_xlfn.IFS(E113=\"\",\"\",E113>BO113,$BP$6,E113>BN113,$BO$6,E113>BM113,$BN$6,E113>BL113,$BM$6,E113>BK113,$BL$6,E113>BJ113,$BK$6,E113>BI113,$BJ$6,E113>BH113,$BI$6,E113>BG113,$BH$6,E113>BF113,$BG$6,E113>BE113,$BF$6,E113>BD113,$BE$6,E113>BC113,$BD$6,E113>=0,$BC$6)","v":""},{"$f":"IF('2. Assisted & Restricted Units'!T113=\"\",\"\",'2. Assisted & Restricted Units'!T113)","v":""},{"$f":"IF('2. Assisted & Restricted Units'!I113=\"\",\"\",'2. Assisted & Restricted Units'!I113)","v":""},{"$f":"IF('2. Assisted & Restricted Units'!AP113=\"\",\"\",'2. Assisted & Restricted Units'!AP113)","v":0},{"$f":"IF('2. Assisted & Restricted Units'!AT113=\"\",\"\",'2. Assisted & Restricted Units'!AT113)","v":""},0,{"$f":"IF('2. Assisted & Restricted Units'!AV113=\"\",\"\",'2. Assisted & Restricted Units'!AV113)","v":""},{"$f":"IF('2. Assisted & Restricted Units'!L113=\"\",\"\",'2. Assisted & Restricted Units'!L113)","v":""},{"$f":"IF('2. Assisted & Restricted Units'!M113=\"\",\"\",'2. Assisted & Restricted Units'!M113)","v":""},{"$f":"IF('2. Assisted & Restricted Units'!O113=\"\",\"\",'2. Assisted & Restricted Units'!O113)","v":""},{"$f":"IF('2. Assisted & Restricted Units'!P113=\"\",\"\",'2. Assisted & Restricted Units'!P113)","v":""},{"$f":"IF('2. Assisted & Restricted Units'!Q113=\"\",\"\",'2. Assisted & Restricted Units'!Q113)","v":""},{"$f":"IF('2. Assisted & Restricted Units'!R113=\"\",\"\",'2. Assisted & Restricted Units'!R113)","v":""},{"$f":"IF(A113=\"\",\"\",'1. Checklist & Certification'!$K$1)","v":""},{"$f":"IF(A113=\"\",\"\",'1. Checklist & Certification'!$C$62)","v":""},{"$f":"IF(A113=\"\",\"\",'1. Checklist & Certification'!$K$62)","v":""},{"$f":"IF(A113=\"\",\"\",'1. Checklist & Certification'!$C$6)","v":""},{"$f":"IF(A113=\"\",\"\",'1. Checklist & Certification'!$G$4)","v":""},{"$f":"IF(A113=\"\",\"\",'1. Checklist & Certification'!$C$7)","v":""},{"$f":"IF(A113=\"\",\"\",'1. Checklist & Certification'!$C$8)","v":""},{"$f":"IF(A113=\"\",\"\",'1. Checklist & Certification'!$F$7)","v":""},{"$f":"IF(A113=\"\",\"\",'1. Checklist & Certification'!$F$8)","v":""},{"$f":"IF(A113=\"\",\"\",'1. Checklist & Certification'!$B$9)","v":""},{"$f":"IF(A113=\"\",\"\",'1. Checklist & Certification'!$F$9)","v":""},{"$f":"IF(A113=\"\",\"\",'1. Checklist & Certification'!$C$10)","v":""},{"$f":"IF(A113=\"\",\"\",'1. Checklist & Certification'!$C$11)","v":""},{"$f":"IF(A113=\"\",\"\",'1. Checklist & Certification'!$C$12)","v":""},{"$f":"IF(A113=\"\",\"\",'1. Checklist & Certification'!$B$14)","v":""},{"$f":"IF(A113=\"\",\"\",'1. Checklist & Certification'!$E$14)","v":""},{"$f":"IF(B113=\"\",\"\",'1. Checklist & Certification'!$G$14)","v":""},{"$f":"IF(A113=\"\",\"\",'MHP Family Income & Rent Limits'!$B$3)","v":""},{"$f":"IF(A113=\"\",\"\",'MHP Family Income & Rent Limits'!$J$3)","v":""},{"$f":"IF(A113=\"\",\"\",'MHP Family Income & Rent Limits'!$E$4)","v":""},{"$f":"IF(A113=\"\",\"\",'MHP Family Income & Rent Limits'!$C$7)","v":""},{"$f":"IF(A113=\"\",\"\",'MHP Family Income & Rent Limits'!$F$8)","v":""},{"$f":"IF(A113=\"\",\"\",'1. Checklist & Certification'!$G$4)","v":""},{"$f":"IF(A113=\"\",\"\",'1. Checklist & Certification'!$K$39)","v":""},{"$f":"IF(A113=\"\",\"\",'1. Checklist & Certification'!$K$43)","v":""},{"$f":"IF(A113=\"\",\"\",'1. Checklist & Certification'!$K$45)","v":""},{"$f":"IF(A113=\"\",\"\",'1. Checklist & Certification'!$K$49)","v":""},{"$f":"IF(A113=\"\",\"\",'1. Checklist & Certification'!$E$66)","v":""},{"$f":"IF(A113=\"\",\"\",'1. Checklist & Certification'!$E$67)","v":""},{"$f":"IF(A113=\"\",\"\",'1. Checklist & Certification'!$E$68)","v":""},{"$f":"IF(A113=\"\",\"\",'1. Checklist & Certification'!$G$66)","v":""},{"$f":"IF(A113=\"\",\"\",'1. Checklist & Certification'!$H$66)","v":""},{"$f":"IF(A113=\"\",\"\",'1. Checklist & Certification'!$I$66)","v":""},{"$f":"IF(A113=\"\",\"\",'1. Checklist & Certification'!$I$67)","v":""},{"$f":"IF(A113=\"\",\"\",'1. Checklist & Certification'!$I$68)","v":""},null,{"$f":"IF(C113=\"\",\"\",HLOOKUP(C113,'MHP Family Income & Rent Limits'!$E$12:$L$26,2,FALSE))","v":""},{"$f":"IF(C113=\"\",\"\",HLOOKUP(C113,'MHP Family Income & Rent Limits'!$E$12:$L$26,3,FALSE))","v":""},{"$f":"IF(C113=\"\",\"\",HLOOKUP(C113,'MHP Family Income & Rent Limits'!$E$12:$L$26,4,FALSE))","v":""},{"$f":"IF(C113=\"\",\"\",HLOOKUP(C113,'MHP Family Income & Rent Limits'!$E$12:$L$26,5,FALSE))","v":""},{"$f":"IF(C113=\"\",\"\",HLOOKUP(C113,'MHP Family Income & Rent Limits'!$E$12:$L$26,6,FALSE))","v":""},{"$f":"IF(C113=\"\",\"\",HLOOKUP(C113,'MHP Family Income & Rent Limits'!$E$12:$L$26,7,FALSE))","v":""},{"$f":"IF(C113=\"\",\"\",HLOOKUP(C113,'MHP Family Income & Rent Limits'!$E$12:$L$26,8,FALSE))","v":""},{"$f":"IF(C113=\"\",\"\",HLOOKUP(C113,'MHP Family Income & Rent Limits'!$E$12:$L$26,9,FALSE))","v":""},{"$f":"IF(C113=\"\",\"\",HLOOKUP(C113,'MHP Family Income & Rent Limits'!$E$12:$L$26,10,FALSE))","v":""},{"$f":"IF(C113=\"\",\"\",HLOOKUP(C113,'MHP Family Income & Rent Limits'!$E$12:$L$26,11,FALSE))","v":""},{"$f":"IF(C113=\"\",\"\",HLOOKUP(C113,'MHP Family Income & Rent Limits'!$E$12:$L$26,12,FALSE))","v":""},{"$f":"IF(C113=\"\",\"\",HLOOKUP(C113,'MHP Family Income & Rent Limits'!$E$12:$L$26,13,FALSE))","v":""},{"$f":"IF(C113=\"\",\"\",HLOOKUP(C113,'MHP Family Income & Rent Limits'!$E$12:$L$26,14,FALSE))","v":""},{"$f":"IF(C113=\"\",\"\",HLOOKUP(C113,'MHP Family Income & Rent Limits'!$E$12:$L$26,15,FALSE))","v":""}]
[{"$f":"IF('2. Assisted & Restricted Units'!A114=\"\",\"\",'2. Assisted & Restricted Units'!A114)","v":""},{"$f":"IF('2. Assisted & Restricted Units'!B114=\"\",\"\",'2. Assisted & Restricted Units'!B114)","v":""},{"$f":"IF('2. Assisted & Restricted Units'!D114=\"\",\"\",'2. Assisted & Restricted Units'!D114)","v":""},{"$f":"IF('2. Assisted & Restricted Units'!E114=\"\",\"\",'2. Assisted & Restricted Units'!E114)","v":""},{"$f":"IF('2. Assisted & Restricted Units'!H114=\"\",\"\",'2. Assisted & Restricted Units'!H114)","v":""},{"$f":"_xlfn.IFS(E114=\"\",\"\",E114>BO114,$BP$6,E114>BN114,$BO$6,E114>BM114,$BN$6,E114>BL114,$BM$6,E114>BK114,$BL$6,E114>BJ114,$BK$6,E114>BI114,$BJ$6,E114>BH114,$BI$6,E114>BG114,$BH$6,E114>BF114,$BG$6,E114>BE114,$BF$6,E114>BD114,$BE$6,E114>BC114,$BD$6,E114>=0,$BC$6)","v":""},{"$f":"IF('2. Assisted & Restricted Units'!T114=\"\",\"\",'2. Assisted & Restricted Units'!T114)","v":""},{"$f":"IF('2. Assisted & Restricted Units'!I114=\"\",\"\",'2. Assisted & Restricted Units'!I114)","v":""},{"$f":"IF('2. Assisted & Restricted Units'!AP114=\"\",\"\",'2. Assisted & Restricted Units'!AP114)","v":0},{"$f":"IF('2. Assisted & Restricted Units'!AT114=\"\",\"\",'2. Assisted & Restricted Units'!AT114)","v":""},0,{"$f":"IF('2. Assisted & Restricted Units'!AV114=\"\",\"\",'2. Assisted & Restricted Units'!AV114)","v":""},{"$f":"IF('2. Assisted & Restricted Units'!L114=\"\",\"\",'2. Assisted & Restricted Units'!L114)","v":""},{"$f":"IF('2. Assisted & Restricted Units'!M114=\"\",\"\",'2. Assisted & Restricted Units'!M114)","v":""},{"$f":"IF('2. Assisted & Restricted Units'!O114=\"\",\"\",'2. Assisted & Restricted Units'!O114)","v":""},{"$f":"IF('2. Assisted & Restricted Units'!P114=\"\",\"\",'2. Assisted & Restricted Units'!P114)","v":""},{"$f":"IF('2. Assisted & Restricted Units'!Q114=\"\",\"\",'2. Assisted & Restricted Units'!Q114)","v":""},{"$f":"IF('2. Assisted & Restricted Units'!R114=\"\",\"\",'2. Assisted & Restricted Units'!R114)","v":""},{"$f":"IF(A114=\"\",\"\",'1. Checklist & Certification'!$K$1)","v":""},{"$f":"IF(A114=\"\",\"\",'1. Checklist & Certification'!$C$62)","v":""},{"$f":"IF(A114=\"\",\"\",'1. Checklist & Certification'!$K$62)","v":""},{"$f":"IF(A114=\"\",\"\",'1. Checklist & Certification'!$C$6)","v":""},{"$f":"IF(A114=\"\",\"\",'1. Checklist & Certification'!$G$4)","v":""},{"$f":"IF(A114=\"\",\"\",'1. Checklist & Certification'!$C$7)","v":""},{"$f":"IF(A114=\"\",\"\",'1. Checklist & Certification'!$C$8)","v":""},{"$f":"IF(A114=\"\",\"\",'1. Checklist & Certification'!$F$7)","v":""},{"$f":"IF(A114=\"\",\"\",'1. Checklist & Certification'!$F$8)","v":""},{"$f":"IF(A114=\"\",\"\",'1. Checklist & Certification'!$B$9)","v":""},{"$f":"IF(A114=\"\",\"\",'1. Checklist & Certification'!$F$9)","v":""},{"$f":"IF(A114=\"\",\"\",'1. Checklist & Certification'!$C$10)","v":""},{"$f":"IF(A114=\"\",\"\",'1. Checklist & Certification'!$C$11)","v":""},{"$f":"IF(A114=\"\",\"\",'1. Checklist & Certification'!$C$12)","v":""},{"$f":"IF(A114=\"\",\"\",'1. Checklist & Certification'!$B$14)","v":""},{"$f":"IF(A114=\"\",\"\",'1. Checklist & Certification'!$E$14)","v":""},{"$f":"IF(B114=\"\",\"\",'1. Checklist & Certification'!$G$14)","v":""},{"$f":"IF(A114=\"\",\"\",'MHP Family Income & Rent Limits'!$B$3)","v":""},{"$f":"IF(A114=\"\",\"\",'MHP Family Income & Rent Limits'!$J$3)","v":""},{"$f":"IF(A114=\"\",\"\",'MHP Family Income & Rent Limits'!$E$4)","v":""},{"$f":"IF(A114=\"\",\"\",'MHP Family Income & Rent Limits'!$C$7)","v":""},{"$f":"IF(A114=\"\",\"\",'MHP Family Income & Rent Limits'!$F$8)","v":""},{"$f":"IF(A114=\"\",\"\",'1. Checklist & Certification'!$G$4)","v":""},{"$f":"IF(A114=\"\",\"\",'1. Checklist & Certification'!$K$39)","v":""},{"$f":"IF(A114=\"\",\"\",'1. Checklist & Certification'!$K$43)","v":""},{"$f":"IF(A114=\"\",\"\",'1. Checklist & Certification'!$K$45)","v":""},{"$f":"IF(A114=\"\",\"\",'1. Checklist & Certification'!$K$49)","v":""},{"$f":"IF(A114=\"\",\"\",'1. Checklist & Certification'!$E$66)","v":""},{"$f":"IF(A114=\"\",\"\",'1. Checklist & Certification'!$E$67)","v":""},{"$f":"IF(A114=\"\",\"\",'1. Checklist & Certification'!$E$68)","v":""},{"$f":"IF(A114=\"\",\"\",'1. Checklist & Certification'!$G$66)","v":""},{"$f":"IF(A114=\"\",\"\",'1. Checklist & Certification'!$H$66)","v":""},{"$f":"IF(A114=\"\",\"\",'1. Checklist & Certification'!$I$66)","v":""},{"$f":"IF(A114=\"\",\"\",'1. Checklist & Certification'!$I$67)","v":""},{"$f":"IF(A114=\"\",\"\",'1. Checklist & Certification'!$I$68)","v":""},null,{"$f":"IF(C114=\"\",\"\",HLOOKUP(C114,'MHP Family Income & Rent Limits'!$E$12:$L$26,2,FALSE))","v":""},{"$f":"IF(C114=\"\",\"\",HLOOKUP(C114,'MHP Family Income & Rent Limits'!$E$12:$L$26,3,FALSE))","v":""},{"$f":"IF(C114=\"\",\"\",HLOOKUP(C114,'MHP Family Income & Rent Limits'!$E$12:$L$26,4,FALSE))","v":""},{"$f":"IF(C114=\"\",\"\",HLOOKUP(C114,'MHP Family Income & Rent Limits'!$E$12:$L$26,5,FALSE))","v":""},{"$f":"IF(C114=\"\",\"\",HLOOKUP(C114,'MHP Family Income & Rent Limits'!$E$12:$L$26,6,FALSE))","v":""},{"$f":"IF(C114=\"\",\"\",HLOOKUP(C114,'MHP Family Income & Rent Limits'!$E$12:$L$26,7,FALSE))","v":""},{"$f":"IF(C114=\"\",\"\",HLOOKUP(C114,'MHP Family Income & Rent Limits'!$E$12:$L$26,8,FALSE))","v":""},{"$f":"IF(C114=\"\",\"\",HLOOKUP(C114,'MHP Family Income & Rent Limits'!$E$12:$L$26,9,FALSE))","v":""},{"$f":"IF(C114=\"\",\"\",HLOOKUP(C114,'MHP Family Income & Rent Limits'!$E$12:$L$26,10,FALSE))","v":""},{"$f":"IF(C114=\"\",\"\",HLOOKUP(C114,'MHP Family Income & Rent Limits'!$E$12:$L$26,11,FALSE))","v":""},{"$f":"IF(C114=\"\",\"\",HLOOKUP(C114,'MHP Family Income & Rent Limits'!$E$12:$L$26,12,FALSE))","v":""},{"$f":"IF(C114=\"\",\"\",HLOOKUP(C114,'MHP Family Income & Rent Limits'!$E$12:$L$26,13,FALSE))","v":""},{"$f":"IF(C114=\"\",\"\",HLOOKUP(C114,'MHP Family Income & Rent Limits'!$E$12:$L$26,14,FALSE))","v":""},{"$f":"IF(C114=\"\",\"\",HLOOKUP(C114,'MHP Family Income & Rent Limits'!$E$12:$L$26,15,FALSE))","v":""}]
[{"$f":"IF('2. Assisted & Restricted Units'!A115=\"\",\"\",'2. Assisted & Restricted Units'!A115)","v":""},{"$f":"IF('2. Assisted & Restricted Units'!B115=\"\",\"\",'2. Assisted & Restricted Units'!B115)","v":""},{"$f":"IF('2. Assisted & Restricted Units'!D115=\"\",\"\",'2. Assisted & Restricted Units'!D115)","v":""},{"$f":"IF('2. Assisted & Restricted Units'!E115=\"\",\"\",'2. Assisted & Restricted Units'!E115)","v":""},{"$f":"IF('2. Assisted & Restricted Units'!H115=\"\",\"\",'2. Assisted & Restricted Units'!H115)","v":""},{"$f":"_xlfn.IFS(E115=\"\",\"\",E115>BO115,$BP$6,E115>BN115,$BO$6,E115>BM115,$BN$6,E115>BL115,$BM$6,E115>BK115,$BL$6,E115>BJ115,$BK$6,E115>BI115,$BJ$6,E115>BH115,$BI$6,E115>BG115,$BH$6,E115>BF115,$BG$6,E115>BE115,$BF$6,E115>BD115,$BE$6,E115>BC115,$BD$6,E115>=0,$BC$6)","v":""},{"$f":"IF('2. Assisted & Restricted Units'!T115=\"\",\"\",'2. Assisted & Restricted Units'!T115)","v":""},{"$f":"IF('2. Assisted & Restricted Units'!I115=\"\",\"\",'2. Assisted & Restricted Units'!I115)","v":""},{"$f":"IF('2. Assisted & Restricted Units'!AP115=\"\",\"\",'2. Assisted & Restricted Units'!AP115)","v":0},{"$f":"IF('2. Assisted & Restricted Units'!AT115=\"\",\"\",'2. Assisted & Restricted Units'!AT115)","v":""},0,{"$f":"IF('2. Assisted & Restricted Units'!AV115=\"\",\"\",'2. Assisted & Restricted Units'!AV115)","v":""},{"$f":"IF('2. Assisted & Restricted Units'!L115=\"\",\"\",'2. Assisted & Restricted Units'!L115)","v":""},{"$f":"IF('2. Assisted & Restricted Units'!M115=\"\",\"\",'2. Assisted & Restricted Units'!M115)","v":""},{"$f":"IF('2. Assisted & Restricted Units'!O115=\"\",\"\",'2. Assisted & Restricted Units'!O115)","v":""},{"$f":"IF('2. Assisted & Restricted Units'!P115=\"\",\"\",'2. Assisted & Restricted Units'!P115)","v":""},{"$f":"IF('2. Assisted & Restricted Units'!Q115=\"\",\"\",'2. Assisted & Restricted Units'!Q115)","v":""},{"$f":"IF('2. Assisted & Restricted Units'!R115=\"\",\"\",'2. Assisted & Restricted Units'!R115)","v":""},{"$f":"IF(A115=\"\",\"\",'1. Checklist & Certification'!$K$1)","v":""},{"$f":"IF(A115=\"\",\"\",'1. Checklist & Certification'!$C$62)","v":""},{"$f":"IF(A115=\"\",\"\",'1. Checklist & Certification'!$K$62)","v":""},{"$f":"IF(A115=\"\",\"\",'1. Checklist & Certification'!$C$6)","v":""},{"$f":"IF(A115=\"\",\"\",'1. Checklist & Certification'!$G$4)","v":""},{"$f":"IF(A115=\"\",\"\",'1. Checklist & Certification'!$C$7)","v":""},{"$f":"IF(A115=\"\",\"\",'1. Checklist & Certification'!$C$8)","v":""},{"$f":"IF(A115=\"\",\"\",'1. Checklist & Certification'!$F$7)","v":""},{"$f":"IF(A115=\"\",\"\",'1. Checklist & Certification'!$F$8)","v":""},{"$f":"IF(A115=\"\",\"\",'1. Checklist & Certification'!$B$9)","v":""},{"$f":"IF(A115=\"\",\"\",'1. Checklist & Certification'!$F$9)","v":""},{"$f":"IF(A115=\"\",\"\",'1. Checklist & Certification'!$C$10)","v":""},{"$f":"IF(A115=\"\",\"\",'1. Checklist & Certification'!$C$11)","v":""},{"$f":"IF(A115=\"\",\"\",'1. Checklist & Certification'!$C$12)","v":""},{"$f":"IF(A115=\"\",\"\",'1. Checklist & Certification'!$B$14)","v":""},{"$f":"IF(A115=\"\",\"\",'1. Checklist & Certification'!$E$14)","v":""},{"$f":"IF(B115=\"\",\"\",'1. Checklist & Certification'!$G$14)","v":""},{"$f":"IF(A115=\"\",\"\",'MHP Family Income & Rent Limits'!$B$3)","v":""},{"$f":"IF(A115=\"\",\"\",'MHP Family Income & Rent Limits'!$J$3)","v":""},{"$f":"IF(A115=\"\",\"\",'MHP Family Income & Rent Limits'!$E$4)","v":""},{"$f":"IF(A115=\"\",\"\",'MHP Family Income & Rent Limits'!$C$7)","v":""},{"$f":"IF(A115=\"\",\"\",'MHP Family Income & Rent Limits'!$F$8)","v":""},{"$f":"IF(A115=\"\",\"\",'1. Checklist & Certification'!$G$4)","v":""},{"$f":"IF(A115=\"\",\"\",'1. Checklist & Certification'!$K$39)","v":""},{"$f":"IF(A115=\"\",\"\",'1. Checklist & Certification'!$K$43)","v":""},{"$f":"IF(A115=\"\",\"\",'1. Checklist & Certification'!$K$45)","v":""},{"$f":"IF(A115=\"\",\"\",'1. Checklist & Certification'!$K$49)","v":""},{"$f":"IF(A115=\"\",\"\",'1. Checklist & Certification'!$E$66)","v":""},{"$f":"IF(A115=\"\",\"\",'1. Checklist & Certification'!$E$67)","v":""},{"$f":"IF(A115=\"\",\"\",'1. Checklist & Certification'!$E$68)","v":""},{"$f":"IF(A115=\"\",\"\",'1. Checklist & Certification'!$G$66)","v":""},{"$f":"IF(A115=\"\",\"\",'1. Checklist & Certification'!$H$66)","v":""},{"$f":"IF(A115=\"\",\"\",'1. Checklist & Certification'!$I$66)","v":""},{"$f":"IF(A115=\"\",\"\",'1. Checklist & Certification'!$I$67)","v":""},{"$f":"IF(A115=\"\",\"\",'1. Checklist & Certification'!$I$68)","v":""},null,{"$f":"IF(C115=\"\",\"\",HLOOKUP(C115,'MHP Family Income & Rent Limits'!$E$12:$L$26,2,FALSE))","v":""},{"$f":"IF(C115=\"\",\"\",HLOOKUP(C115,'MHP Family Income & Rent Limits'!$E$12:$L$26,3,FALSE))","v":""},{"$f":"IF(C115=\"\",\"\",HLOOKUP(C115,'MHP Family Income & Rent Limits'!$E$12:$L$26,4,FALSE))","v":""},{"$f":"IF(C115=\"\",\"\",HLOOKUP(C115,'MHP Family Income & Rent Limits'!$E$12:$L$26,5,FALSE))","v":""},{"$f":"IF(C115=\"\",\"\",HLOOKUP(C115,'MHP Family Income & Rent Limits'!$E$12:$L$26,6,FALSE))","v":""},{"$f":"IF(C115=\"\",\"\",HLOOKUP(C115,'MHP Family Income & Rent Limits'!$E$12:$L$26,7,FALSE))","v":""},{"$f":"IF(C115=\"\",\"\",HLOOKUP(C115,'MHP Family Income & Rent Limits'!$E$12:$L$26,8,FALSE))","v":""},{"$f":"IF(C115=\"\",\"\",HLOOKUP(C115,'MHP Family Income & Rent Limits'!$E$12:$L$26,9,FALSE))","v":""},{"$f":"IF(C115=\"\",\"\",HLOOKUP(C115,'MHP Family Income & Rent Limits'!$E$12:$L$26,10,FALSE))","v":""},{"$f":"IF(C115=\"\",\"\",HLOOKUP(C115,'MHP Family Income & Rent Limits'!$E$12:$L$26,11,FALSE))","v":""},{"$f":"IF(C115=\"\",\"\",HLOOKUP(C115,'MHP Family Income & Rent Limits'!$E$12:$L$26,12,FALSE))","v":""},{"$f":"IF(C115=\"\",\"\",HLOOKUP(C115,'MHP Family Income & Rent Limits'!$E$12:$L$26,13,FALSE))","v":""},{"$f":"IF(C115=\"\",\"\",HLOOKUP(C115,'MHP Family Income & Rent Limits'!$E$12:$L$26,14,FALSE))","v":""},{"$f":"IF(C115=\"\",\"\",HLOOKUP(C115,'MHP Family Income & Rent Limits'!$E$12:$L$26,15,FALSE))","v":""}]
[{"$f":"IF('2. Assisted & Restricted Units'!A116=\"\",\"\",'2. Assisted & Restricted Units'!A116)","v":""},{"$f":"IF('2. Assisted & Restricted Units'!B116=\"\",\"\",'2. Assisted & Restricted Units'!B116)","v":""},{"$f":"IF('2. Assisted & Restricted Units'!D116=\"\",\"\",'2. Assisted & Restricted Units'!D116)","v":""},{"$f":"IF('2. Assisted & Restricted Units'!E116=\"\",\"\",'2. Assisted & Restricted Units'!E116)","v":""},{"$f":"IF('2. Assisted & Restricted Units'!H116=\"\",\"\",'2. Assisted & Restricted Units'!H116)","v":""},{"$f":"_xlfn.IFS(E116=\"\",\"\",E116>BO116,$BP$6,E116>BN116,$BO$6,E116>BM116,$BN$6,E116>BL116,$BM$6,E116>BK116,$BL$6,E116>BJ116,$BK$6,E116>BI116,$BJ$6,E116>BH116,$BI$6,E116>BG116,$BH$6,E116>BF116,$BG$6,E116>BE116,$BF$6,E116>BD116,$BE$6,E116>BC116,$BD$6,E116>=0,$BC$6)","v":""},{"$f":"IF('2. Assisted & Restricted Units'!T116=\"\",\"\",'2. Assisted & Restricted Units'!T116)","v":""},{"$f":"IF('2. Assisted & Restricted Units'!I116=\"\",\"\",'2. Assisted & Restricted Units'!I116)","v":""},{"$f":"IF('2. Assisted & Restricted Units'!AP116=\"\",\"\",'2. Assisted & Restricted Units'!AP116)","v":0},{"$f":"IF('2. Assisted & Restricted Units'!AT116=\"\",\"\",'2. Assisted & Restricted Units'!AT116)","v":""},0,{"$f":"IF('2. Assisted & Restricted Units'!AV116=\"\",\"\",'2. Assisted & Restricted Units'!AV116)","v":""},{"$f":"IF('2. Assisted & Restricted Units'!L116=\"\",\"\",'2. Assisted & Restricted Units'!L116)","v":""},{"$f":"IF('2. Assisted & Restricted Units'!M116=\"\",\"\",'2. Assisted & Restricted Units'!M116)","v":""},{"$f":"IF('2. Assisted & Restricted Units'!O116=\"\",\"\",'2. Assisted & Restricted Units'!O116)","v":""},{"$f":"IF('2. Assisted & Restricted Units'!P116=\"\",\"\",'2. Assisted & Restricted Units'!P116)","v":""},{"$f":"IF('2. Assisted & Restricted Units'!Q116=\"\",\"\",'2. Assisted & Restricted Units'!Q116)","v":""},{"$f":"IF('2. Assisted & Restricted Units'!R116=\"\",\"\",'2. Assisted & Restricted Units'!R116)","v":""},{"$f":"IF(A116=\"\",\"\",'1. Checklist & Certification'!$K$1)","v":""},{"$f":"IF(A116=\"\",\"\",'1. Checklist & Certification'!$C$62)","v":""},{"$f":"IF(A116=\"\",\"\",'1. Checklist & Certification'!$K$62)","v":""},{"$f":"IF(A116=\"\",\"\",'1. Checklist & Certification'!$C$6)","v":""},{"$f":"IF(A116=\"\",\"\",'1. Checklist & Certification'!$G$4)","v":""},{"$f":"IF(A116=\"\",\"\",'1. Checklist & Certification'!$C$7)","v":""},{"$f":"IF(A116=\"\",\"\",'1. Checklist & Certification'!$C$8)","v":""},{"$f":"IF(A116=\"\",\"\",'1. Checklist & Certification'!$F$7)","v":""},{"$f":"IF(A116=\"\",\"\",'1. Checklist & Certification'!$F$8)","v":""},{"$f":"IF(A116=\"\",\"\",'1. Checklist & Certification'!$B$9)","v":""},{"$f":"IF(A116=\"\",\"\",'1. Checklist & Certification'!$F$9)","v":""},{"$f":"IF(A116=\"\",\"\",'1. Checklist & Certification'!$C$10)","v":""},{"$f":"IF(A116=\"\",\"\",'1. Checklist & Certification'!$C$11)","v":""},{"$f":"IF(A116=\"\",\"\",'1. Checklist & Certification'!$C$12)","v":""},{"$f":"IF(A116=\"\",\"\",'1. Checklist & Certification'!$B$14)","v":""},{"$f":"IF(A116=\"\",\"\",'1. Checklist & Certification'!$E$14)","v":""},{"$f":"IF(B116=\"\",\"\",'1. Checklist & Certification'!$G$14)","v":""},{"$f":"IF(A116=\"\",\"\",'MHP Family Income & Rent Limits'!$B$3)","v":""},{"$f":"IF(A116=\"\",\"\",'MHP Family Income & Rent Limits'!$J$3)","v":""},{"$f":"IF(A116=\"\",\"\",'MHP Family Income & Rent Limits'!$E$4)","v":""},{"$f":"IF(A116=\"\",\"\",'MHP Family Income & Rent Limits'!$C$7)","v":""},{"$f":"IF(A116=\"\",\"\",'MHP Family Income & Rent Limits'!$F$8)","v":""},{"$f":"IF(A116=\"\",\"\",'1. Checklist & Certification'!$G$4)","v":""},{"$f":"IF(A116=\"\",\"\",'1. Checklist & Certification'!$K$39)","v":""},{"$f":"IF(A116=\"\",\"\",'1. Checklist & Certification'!$K$43)","v":""},{"$f":"IF(A116=\"\",\"\",'1. Checklist & Certification'!$K$45)","v":""},{"$f":"IF(A116=\"\",\"\",'1. Checklist & Certification'!$K$49)","v":""},{"$f":"IF(A116=\"\",\"\",'1. Checklist & Certification'!$E$66)","v":""},{"$f":"IF(A116=\"\",\"\",'1. Checklist & Certification'!$E$67)","v":""},{"$f":"IF(A116=\"\",\"\",'1. Checklist & Certification'!$E$68)","v":""},{"$f":"IF(A116=\"\",\"\",'1. Checklist & Certification'!$G$66)","v":""},{"$f":"IF(A116=\"\",\"\",'1. Checklist & Certification'!$H$66)","v":""},{"$f":"IF(A116=\"\",\"\",'1. Checklist & Certification'!$I$66)","v":""},{"$f":"IF(A116=\"\",\"\",'1. Checklist & Certification'!$I$67)","v":""},{"$f":"IF(A116=\"\",\"\",'1. Checklist & Certification'!$I$68)","v":""},null,{"$f":"IF(C116=\"\",\"\",HLOOKUP(C116,'MHP Family Income & Rent Limits'!$E$12:$L$26,2,FALSE))","v":""},{"$f":"IF(C116=\"\",\"\",HLOOKUP(C116,'MHP Family Income & Rent Limits'!$E$12:$L$26,3,FALSE))","v":""},{"$f":"IF(C116=\"\",\"\",HLOOKUP(C116,'MHP Family Income & Rent Limits'!$E$12:$L$26,4,FALSE))","v":""},{"$f":"IF(C116=\"\",\"\",HLOOKUP(C116,'MHP Family Income & Rent Limits'!$E$12:$L$26,5,FALSE))","v":""},{"$f":"IF(C116=\"\",\"\",HLOOKUP(C116,'MHP Family Income & Rent Limits'!$E$12:$L$26,6,FALSE))","v":""},{"$f":"IF(C116=\"\",\"\",HLOOKUP(C116,'MHP Family Income & Rent Limits'!$E$12:$L$26,7,FALSE))","v":""},{"$f":"IF(C116=\"\",\"\",HLOOKUP(C116,'MHP Family Income & Rent Limits'!$E$12:$L$26,8,FALSE))","v":""},{"$f":"IF(C116=\"\",\"\",HLOOKUP(C116,'MHP Family Income & Rent Limits'!$E$12:$L$26,9,FALSE))","v":""},{"$f":"IF(C116=\"\",\"\",HLOOKUP(C116,'MHP Family Income & Rent Limits'!$E$12:$L$26,10,FALSE))","v":""},{"$f":"IF(C116=\"\",\"\",HLOOKUP(C116,'MHP Family Income & Rent Limits'!$E$12:$L$26,11,FALSE))","v":""},{"$f":"IF(C116=\"\",\"\",HLOOKUP(C116,'MHP Family Income & Rent Limits'!$E$12:$L$26,12,FALSE))","v":""},{"$f":"IF(C116=\"\",\"\",HLOOKUP(C116,'MHP Family Income & Rent Limits'!$E$12:$L$26,13,FALSE))","v":""},{"$f":"IF(C116=\"\",\"\",HLOOKUP(C116,'MHP Family Income & Rent Limits'!$E$12:$L$26,14,FALSE))","v":""},{"$f":"IF(C116=\"\",\"\",HLOOKUP(C116,'MHP Family Income & Rent Limits'!$E$12:$L$26,15,FALSE))","v":""}]
[{"$f":"IF('2. Assisted & Restricted Units'!A117=\"\",\"\",'2. Assisted & Restricted Units'!A117)","v":""},{"$f":"IF('2. Assisted & Restricted Units'!B117=\"\",\"\",'2. Assisted & Restricted Units'!B117)","v":""},{"$f":"IF('2. Assisted & Restricted Units'!D117=\"\",\"\",'2. Assisted & Restricted Units'!D117)","v":""},{"$f":"IF('2. Assisted & Restricted Units'!E117=\"\",\"\",'2. Assisted & Restricted Units'!E117)","v":""},{"$f":"IF('2. Assisted & Restricted Units'!H117=\"\",\"\",'2. Assisted & Restricted Units'!H117)","v":""},{"$f":"_xlfn.IFS(E117=\"\",\"\",E117>BO117,$BP$6,E117>BN117,$BO$6,E117>BM117,$BN$6,E117>BL117,$BM$6,E117>BK117,$BL$6,E117>BJ117,$BK$6,E117>BI117,$BJ$6,E117>BH117,$BI$6,E117>BG117,$BH$6,E117>BF117,$BG$6,E117>BE117,$BF$6,E117>BD117,$BE$6,E117>BC117,$BD$6,E117>=0,$BC$6)","v":""},{"$f":"IF('2. Assisted & Restricted Units'!T117=\"\",\"\",'2. Assisted & Restricted Units'!T117)","v":""},{"$f":"IF('2. Assisted & Restricted Units'!I117=\"\",\"\",'2. Assisted & Restricted Units'!I117)","v":""},{"$f":"IF('2. Assisted & Restricted Units'!AP117=\"\",\"\",'2. Assisted & Restricted Units'!AP117)","v":0},{"$f":"IF('2. Assisted & Restricted Units'!AT117=\"\",\"\",'2. Assisted & Restricted Units'!AT117)","v":""},0,{"$f":"IF('2. Assisted & Restricted Units'!AV117=\"\",\"\",'2. Assisted & Restricted Units'!AV117)","v":""},{"$f":"IF('2. Assisted & Restricted Units'!L117=\"\",\"\",'2. Assisted & Restricted Units'!L117)","v":""},{"$f":"IF('2. Assisted & Restricted Units'!M117=\"\",\"\",'2. Assisted & Restricted Units'!M117)","v":""},{"$f":"IF('2. Assisted & Restricted Units'!O117=\"\",\"\",'2. Assisted & Restricted Units'!O117)","v":""},{"$f":"IF('2. Assisted & Restricted Units'!P117=\"\",\"\",'2. Assisted & Restricted Units'!P117)","v":""},{"$f":"IF('2. Assisted & Restricted Units'!Q117=\"\",\"\",'2. Assisted & Restricted Units'!Q117)","v":""},{"$f":"IF('2. Assisted & Restricted Units'!R117=\"\",\"\",'2. Assisted & Restricted Units'!R117)","v":""},{"$f":"IF(A117=\"\",\"\",'1. Checklist & Certification'!$K$1)","v":""},{"$f":"IF(A117=\"\",\"\",'1. Checklist & Certification'!$C$62)","v":""},{"$f":"IF(A117=\"\",\"\",'1. Checklist & Certification'!$K$62)","v":""},{"$f":"IF(A117=\"\",\"\",'1. Checklist & Certification'!$C$6)","v":""},{"$f":"IF(A117=\"\",\"\",'1. Checklist & Certification'!$G$4)","v":""},{"$f":"IF(A117=\"\",\"\",'1. Checklist & Certification'!$C$7)","v":""},{"$f":"IF(A117=\"\",\"\",'1. Checklist & Certification'!$C$8)","v":""},{"$f":"IF(A117=\"\",\"\",'1. Checklist & Certification'!$F$7)","v":""},{"$f":"IF(A117=\"\",\"\",'1. Checklist & Certification'!$F$8)","v":""},{"$f":"IF(A117=\"\",\"\",'1. Checklist & Certification'!$B$9)","v":""},{"$f":"IF(A117=\"\",\"\",'1. Checklist & Certification'!$F$9)","v":""},{"$f":"IF(A117=\"\",\"\",'1. Checklist & Certification'!$C$10)","v":""},{"$f":"IF(A117=\"\",\"\",'1. Checklist & Certification'!$C$11)","v":""},{"$f":"IF(A117=\"\",\"\",'1. Checklist & Certification'!$C$12)","v":""},{"$f":"IF(A117=\"\",\"\",'1. Checklist & Certification'!$B$14)","v":""},{"$f":"IF(A117=\"\",\"\",'1. Checklist & Certification'!$E$14)","v":""},{"$f":"IF(B117=\"\",\"\",'1. Checklist & Certification'!$G$14)","v":""},{"$f":"IF(A117=\"\",\"\",'MHP Family Income & Rent Limits'!$B$3)","v":""},{"$f":"IF(A117=\"\",\"\",'MHP Family Income & Rent Limits'!$J$3)","v":""},{"$f":"IF(A117=\"\",\"\",'MHP Family Income & Rent Limits'!$E$4)","v":""},{"$f":"IF(A117=\"\",\"\",'MHP Family Income & Rent Limits'!$C$7)","v":""},{"$f":"IF(A117=\"\",\"\",'MHP Family Income & Rent Limits'!$F$8)","v":""},{"$f":"IF(A117=\"\",\"\",'1. Checklist & Certification'!$G$4)","v":""},{"$f":"IF(A117=\"\",\"\",'1. Checklist & Certification'!$K$39)","v":""},{"$f":"IF(A117=\"\",\"\",'1. Checklist & Certification'!$K$43)","v":""},{"$f":"IF(A117=\"\",\"\",'1. Checklist & Certification'!$K$45)","v":""},{"$f":"IF(A117=\"\",\"\",'1. Checklist & Certification'!$K$49)","v":""},{"$f":"IF(A117=\"\",\"\",'1. Checklist & Certification'!$E$66)","v":""},{"$f":"IF(A117=\"\",\"\",'1. Checklist & Certification'!$E$67)","v":""},{"$f":"IF(A117=\"\",\"\",'1. Checklist & Certification'!$E$68)","v":""},{"$f":"IF(A117=\"\",\"\",'1. Checklist & Certification'!$G$66)","v":""},{"$f":"IF(A117=\"\",\"\",'1. Checklist & Certification'!$H$66)","v":""},{"$f":"IF(A117=\"\",\"\",'1. Checklist & Certification'!$I$66)","v":""},{"$f":"IF(A117=\"\",\"\",'1. Checklist & Certification'!$I$67)","v":""},{"$f":"IF(A117=\"\",\"\",'1. Checklist & Certification'!$I$68)","v":""},null,{"$f":"IF(C117=\"\",\"\",HLOOKUP(C117,'MHP Family Income & Rent Limits'!$E$12:$L$26,2,FALSE))","v":""},{"$f":"IF(C117=\"\",\"\",HLOOKUP(C117,'MHP Family Income & Rent Limits'!$E$12:$L$26,3,FALSE))","v":""},{"$f":"IF(C117=\"\",\"\",HLOOKUP(C117,'MHP Family Income & Rent Limits'!$E$12:$L$26,4,FALSE))","v":""},{"$f":"IF(C117=\"\",\"\",HLOOKUP(C117,'MHP Family Income & Rent Limits'!$E$12:$L$26,5,FALSE))","v":""},{"$f":"IF(C117=\"\",\"\",HLOOKUP(C117,'MHP Family Income & Rent Limits'!$E$12:$L$26,6,FALSE))","v":""},{"$f":"IF(C117=\"\",\"\",HLOOKUP(C117,'MHP Family Income & Rent Limits'!$E$12:$L$26,7,FALSE))","v":""},{"$f":"IF(C117=\"\",\"\",HLOOKUP(C117,'MHP Family Income & Rent Limits'!$E$12:$L$26,8,FALSE))","v":""},{"$f":"IF(C117=\"\",\"\",HLOOKUP(C117,'MHP Family Income & Rent Limits'!$E$12:$L$26,9,FALSE))","v":""},{"$f":"IF(C117=\"\",\"\",HLOOKUP(C117,'MHP Family Income & Rent Limits'!$E$12:$L$26,10,FALSE))","v":""},{"$f":"IF(C117=\"\",\"\",HLOOKUP(C117,'MHP Family Income & Rent Limits'!$E$12:$L$26,11,FALSE))","v":""},{"$f":"IF(C117=\"\",\"\",HLOOKUP(C117,'MHP Family Income & Rent Limits'!$E$12:$L$26,12,FALSE))","v":""},{"$f":"IF(C117=\"\",\"\",HLOOKUP(C117,'MHP Family Income & Rent Limits'!$E$12:$L$26,13,FALSE))","v":""},{"$f":"IF(C117=\"\",\"\",HLOOKUP(C117,'MHP Family Income & Rent Limits'!$E$12:$L$26,14,FALSE))","v":""},{"$f":"IF(C117=\"\",\"\",HLOOKUP(C117,'MHP Family Income & Rent Limits'!$E$12:$L$26,15,FALSE))","v":""}]
[{"$f":"IF('2. Assisted & Restricted Units'!A118=\"\",\"\",'2. Assisted & Restricted Units'!A118)","v":""},{"$f":"IF('2. Assisted & Restricted Units'!B118=\"\",\"\",'2. Assisted & Restricted Units'!B118)","v":""},{"$f":"IF('2. Assisted & Restricted Units'!D118=\"\",\"\",'2. Assisted & Restricted Units'!D118)","v":""},{"$f":"IF('2. Assisted & Restricted Units'!E118=\"\",\"\",'2. Assisted & Restricted Units'!E118)","v":""},{"$f":"IF('2. Assisted & Restricted Units'!H118=\"\",\"\",'2. Assisted & Restricted Units'!H118)","v":""},{"$f":"_xlfn.IFS(E118=\"\",\"\",E118>BO118,$BP$6,E118>BN118,$BO$6,E118>BM118,$BN$6,E118>BL118,$BM$6,E118>BK118,$BL$6,E118>BJ118,$BK$6,E118>BI118,$BJ$6,E118>BH118,$BI$6,E118>BG118,$BH$6,E118>BF118,$BG$6,E118>BE118,$BF$6,E118>BD118,$BE$6,E118>BC118,$BD$6,E118>=0,$BC$6)","v":""},{"$f":"IF('2. Assisted & Restricted Units'!T118=\"\",\"\",'2. Assisted & Restricted Units'!T118)","v":""},{"$f":"IF('2. Assisted & Restricted Units'!I118=\"\",\"\",'2. Assisted & Restricted Units'!I118)","v":""},{"$f":"IF('2. Assisted & Restricted Units'!AP118=\"\",\"\",'2. Assisted & Restricted Units'!AP118)","v":0},{"$f":"IF('2. Assisted & Restricted Units'!AT118=\"\",\"\",'2. Assisted & Restricted Units'!AT118)","v":""},0,{"$f":"IF('2. Assisted & Restricted Units'!AV118=\"\",\"\",'2. Assisted & Restricted Units'!AV118)","v":""},{"$f":"IF('2. Assisted & Restricted Units'!L118=\"\",\"\",'2. Assisted & Restricted Units'!L118)","v":""},{"$f":"IF('2. Assisted & Restricted Units'!M118=\"\",\"\",'2. Assisted & Restricted Units'!M118)","v":""},{"$f":"IF('2. Assisted & Restricted Units'!O118=\"\",\"\",'2. Assisted & Restricted Units'!O118)","v":""},{"$f":"IF('2. Assisted & Restricted Units'!P118=\"\",\"\",'2. Assisted & Restricted Units'!P118)","v":""},{"$f":"IF('2. Assisted & Restricted Units'!Q118=\"\",\"\",'2. Assisted & Restricted Units'!Q118)","v":""},{"$f":"IF('2. Assisted & Restricted Units'!R118=\"\",\"\",'2. Assisted & Restricted Units'!R118)","v":""},{"$f":"IF(A118=\"\",\"\",'1. Checklist & Certification'!$K$1)","v":""},{"$f":"IF(A118=\"\",\"\",'1. Checklist & Certification'!$C$62)","v":""},{"$f":"IF(A118=\"\",\"\",'1. Checklist & Certification'!$K$62)","v":""},{"$f":"IF(A118=\"\",\"\",'1. Checklist & Certification'!$C$6)","v":""},{"$f":"IF(A118=\"\",\"\",'1. Checklist & Certification'!$G$4)","v":""},{"$f":"IF(A118=\"\",\"\",'1. Checklist & Certification'!$C$7)","v":""},{"$f":"IF(A118=\"\",\"\",'1. Checklist & Certification'!$C$8)","v":""},{"$f":"IF(A118=\"\",\"\",'1. Checklist & Certification'!$F$7)","v":""},{"$f":"IF(A118=\"\",\"\",'1. Checklist & Certification'!$F$8)","v":""},{"$f":"IF(A118=\"\",\"\",'1. Checklist & Certification'!$B$9)","v":""},{"$f":"IF(A118=\"\",\"\",'1. Checklist & Certification'!$F$9)","v":""},{"$f":"IF(A118=\"\",\"\",'1. Checklist & Certification'!$C$10)","v":""},{"$f":"IF(A118=\"\",\"\",'1. Checklist & Certification'!$C$11)","v":""},{"$f":"IF(A118=\"\",\"\",'1. Checklist & Certification'!$C$12)","v":""},{"$f":"IF(A118=\"\",\"\",'1. Checklist & Certification'!$B$14)","v":""},{"$f":"IF(A118=\"\",\"\",'1. Checklist & Certification'!$E$14)","v":""},{"$f":"IF(B118=\"\",\"\",'1. Checklist & Certification'!$G$14)","v":""},{"$f":"IF(A118=\"\",\"\",'MHP Family Income & Rent Limits'!$B$3)","v":""},{"$f":"IF(A118=\"\",\"\",'MHP Family Income & Rent Limits'!$J$3)","v":""},{"$f":"IF(A118=\"\",\"\",'MHP Family Income & Rent Limits'!$E$4)","v":""},{"$f":"IF(A118=\"\",\"\",'MHP Family Income & Rent Limits'!$C$7)","v":""},{"$f":"IF(A118=\"\",\"\",'MHP Family Income & Rent Limits'!$F$8)","v":""},{"$f":"IF(A118=\"\",\"\",'1. Checklist & Certification'!$G$4)","v":""},{"$f":"IF(A118=\"\",\"\",'1. Checklist & Certification'!$K$39)","v":""},{"$f":"IF(A118=\"\",\"\",'1. Checklist & Certification'!$K$43)","v":""},{"$f":"IF(A118=\"\",\"\",'1. Checklist & Certification'!$K$45)","v":""},{"$f":"IF(A118=\"\",\"\",'1. Checklist & Certification'!$K$49)","v":""},{"$f":"IF(A118=\"\",\"\",'1. Checklist & Certification'!$E$66)","v":""},{"$f":"IF(A118=\"\",\"\",'1. Checklist & Certification'!$E$67)","v":""},{"$f":"IF(A118=\"\",\"\",'1. Checklist & Certification'!$E$68)","v":""},{"$f":"IF(A118=\"\",\"\",'1. Checklist & Certification'!$G$66)","v":""},{"$f":"IF(A118=\"\",\"\",'1. Checklist & Certification'!$H$66)","v":""},{"$f":"IF(A118=\"\",\"\",'1. Checklist & Certification'!$I$66)","v":""},{"$f":"IF(A118=\"\",\"\",'1. Checklist & Certification'!$I$67)","v":""},{"$f":"IF(A118=\"\",\"\",'1. Checklist & Certification'!$I$68)","v":""},null,{"$f":"IF(C118=\"\",\"\",HLOOKUP(C118,'MHP Family Income & Rent Limits'!$E$12:$L$26,2,FALSE))","v":""},{"$f":"IF(C118=\"\",\"\",HLOOKUP(C118,'MHP Family Income & Rent Limits'!$E$12:$L$26,3,FALSE))","v":""},{"$f":"IF(C118=\"\",\"\",HLOOKUP(C118,'MHP Family Income & Rent Limits'!$E$12:$L$26,4,FALSE))","v":""},{"$f":"IF(C118=\"\",\"\",HLOOKUP(C118,'MHP Family Income & Rent Limits'!$E$12:$L$26,5,FALSE))","v":""},{"$f":"IF(C118=\"\",\"\",HLOOKUP(C118,'MHP Family Income & Rent Limits'!$E$12:$L$26,6,FALSE))","v":""},{"$f":"IF(C118=\"\",\"\",HLOOKUP(C118,'MHP Family Income & Rent Limits'!$E$12:$L$26,7,FALSE))","v":""},{"$f":"IF(C118=\"\",\"\",HLOOKUP(C118,'MHP Family Income & Rent Limits'!$E$12:$L$26,8,FALSE))","v":""},{"$f":"IF(C118=\"\",\"\",HLOOKUP(C118,'MHP Family Income & Rent Limits'!$E$12:$L$26,9,FALSE))","v":""},{"$f":"IF(C118=\"\",\"\",HLOOKUP(C118,'MHP Family Income & Rent Limits'!$E$12:$L$26,10,FALSE))","v":""},{"$f":"IF(C118=\"\",\"\",HLOOKUP(C118,'MHP Family Income & Rent Limits'!$E$12:$L$26,11,FALSE))","v":""},{"$f":"IF(C118=\"\",\"\",HLOOKUP(C118,'MHP Family Income & Rent Limits'!$E$12:$L$26,12,FALSE))","v":""},{"$f":"IF(C118=\"\",\"\",HLOOKUP(C118,'MHP Family Income & Rent Limits'!$E$12:$L$26,13,FALSE))","v":""},{"$f":"IF(C118=\"\",\"\",HLOOKUP(C118,'MHP Family Income & Rent Limits'!$E$12:$L$26,14,FALSE))","v":""},{"$f":"IF(C118=\"\",\"\",HLOOKUP(C118,'MHP Family Income & Rent Limits'!$E$12:$L$26,15,FALSE))","v":""}]
[{"$f":"IF('2. Assisted & Restricted Units'!A119=\"\",\"\",'2. Assisted & Restricted Units'!A119)","v":""},{"$f":"IF('2. Assisted & Restricted Units'!B119=\"\",\"\",'2. Assisted & Restricted Units'!B119)","v":""},{"$f":"IF('2. Assisted & Restricted Units'!D119=\"\",\"\",'2. Assisted & Restricted Units'!D119)","v":""},{"$f":"IF('2. Assisted & Restricted Units'!E119=\"\",\"\",'2. Assisted & Restricted Units'!E119)","v":""},{"$f":"IF('2. Assisted & Restricted Units'!H119=\"\",\"\",'2. Assisted & Restricted Units'!H119)","v":""},{"$f":"_xlfn.IFS(E119=\"\",\"\",E119>BO119,$BP$6,E119>BN119,$BO$6,E119>BM119,$BN$6,E119>BL119,$BM$6,E119>BK119,$BL$6,E119>BJ119,$BK$6,E119>BI119,$BJ$6,E119>BH119,$BI$6,E119>BG119,$BH$6,E119>BF119,$BG$6,E119>BE119,$BF$6,E119>BD119,$BE$6,E119>BC119,$BD$6,E119>=0,$BC$6)","v":""},{"$f":"IF('2. Assisted & Restricted Units'!T119=\"\",\"\",'2. Assisted & Restricted Units'!T119)","v":""},{"$f":"IF('2. Assisted & Restricted Units'!I119=\"\",\"\",'2. Assisted & Restricted Units'!I119)","v":""},{"$f":"IF('2. Assisted & Restricted Units'!AP119=\"\",\"\",'2. Assisted & Restricted Units'!AP119)","v":0},{"$f":"IF('2. Assisted & Restricted Units'!AT119=\"\",\"\",'2. Assisted & Restricted Units'!AT119)","v":""},0,{"$f":"IF('2. Assisted & Restricted Units'!AV119=\"\",\"\",'2. Assisted & Restricted Units'!AV119)","v":""},{"$f":"IF('2. Assisted & Restricted Units'!L119=\"\",\"\",'2. Assisted & Restricted Units'!L119)","v":""},{"$f":"IF('2. Assisted & Restricted Units'!M119=\"\",\"\",'2. Assisted & Restricted Units'!M119)","v":""},{"$f":"IF('2. Assisted & Restricted Units'!O119=\"\",\"\",'2. Assisted & Restricted Units'!O119)","v":""},{"$f":"IF('2. Assisted & Restricted Units'!P119=\"\",\"\",'2. Assisted & Restricted Units'!P119)","v":""},{"$f":"IF('2. Assisted & Restricted Units'!Q119=\"\",\"\",'2. Assisted & Restricted Units'!Q119)","v":""},{"$f":"IF('2. Assisted & Restricted Units'!R119=\"\",\"\",'2. Assisted & Restricted Units'!R119)","v":""},{"$f":"IF(A119=\"\",\"\",'1. Checklist & Certification'!$K$1)","v":""},{"$f":"IF(A119=\"\",\"\",'1. Checklist & Certification'!$C$62)","v":""},{"$f":"IF(A119=\"\",\"\",'1. Checklist & Certification'!$K$62)","v":""},{"$f":"IF(A119=\"\",\"\",'1. Checklist & Certification'!$C$6)","v":""},{"$f":"IF(A119=\"\",\"\",'1. Checklist & Certification'!$G$4)","v":""},{"$f":"IF(A119=\"\",\"\",'1. Checklist & Certification'!$C$7)","v":""},{"$f":"IF(A119=\"\",\"\",'1. Checklist & Certification'!$C$8)","v":""},{"$f":"IF(A119=\"\",\"\",'1. Checklist & Certification'!$F$7)","v":""},{"$f":"IF(A119=\"\",\"\",'1. Checklist & Certification'!$F$8)","v":""},{"$f":"IF(A119=\"\",\"\",'1. Checklist & Certification'!$B$9)","v":""},{"$f":"IF(A119=\"\",\"\",'1. Checklist & Certification'!$F$9)","v":""},{"$f":"IF(A119=\"\",\"\",'1. Checklist & Certification'!$C$10)","v":""},{"$f":"IF(A119=\"\",\"\",'1. Checklist & Certification'!$C$11)","v":""},{"$f":"IF(A119=\"\",\"\",'1. Checklist & Certification'!$C$12)","v":""},{"$f":"IF(A119=\"\",\"\",'1. Checklist & Certification'!$B$14)","v":""},{"$f":"IF(A119=\"\",\"\",'1. Checklist & Certification'!$E$14)","v":""},{"$f":"IF(B119=\"\",\"\",'1. Checklist & Certification'!$G$14)","v":""},{"$f":"IF(A119=\"\",\"\",'MHP Family Income & Rent Limits'!$B$3)","v":""},{"$f":"IF(A119=\"\",\"\",'MHP Family Income & Rent Limits'!$J$3)","v":""},{"$f":"IF(A119=\"\",\"\",'MHP Family Income & Rent Limits'!$E$4)","v":""},{"$f":"IF(A119=\"\",\"\",'MHP Family Income & Rent Limits'!$C$7)","v":""},{"$f":"IF(A119=\"\",\"\",'MHP Family Income & Rent Limits'!$F$8)","v":""},{"$f":"IF(A119=\"\",\"\",'1. Checklist & Certification'!$G$4)","v":""},{"$f":"IF(A119=\"\",\"\",'1. Checklist & Certification'!$K$39)","v":""},{"$f":"IF(A119=\"\",\"\",'1. Checklist & Certification'!$K$43)","v":""},{"$f":"IF(A119=\"\",\"\",'1. Checklist & Certification'!$K$45)","v":""},{"$f":"IF(A119=\"\",\"\",'1. Checklist & Certification'!$K$49)","v":""},{"$f":"IF(A119=\"\",\"\",'1. Checklist & Certification'!$E$66)","v":""},{"$f":"IF(A119=\"\",\"\",'1. Checklist & Certification'!$E$67)","v":""},{"$f":"IF(A119=\"\",\"\",'1. Checklist & Certification'!$E$68)","v":""},{"$f":"IF(A119=\"\",\"\",'1. Checklist & Certification'!$G$66)","v":""},{"$f":"IF(A119=\"\",\"\",'1. Checklist & Certification'!$H$66)","v":""},{"$f":"IF(A119=\"\",\"\",'1. Checklist & Certification'!$I$66)","v":""},{"$f":"IF(A119=\"\",\"\",'1. Checklist & Certification'!$I$67)","v":""},{"$f":"IF(A119=\"\",\"\",'1. Checklist & Certification'!$I$68)","v":""},null,{"$f":"IF(C119=\"\",\"\",HLOOKUP(C119,'MHP Family Income & Rent Limits'!$E$12:$L$26,2,FALSE))","v":""},{"$f":"IF(C119=\"\",\"\",HLOOKUP(C119,'MHP Family Income & Rent Limits'!$E$12:$L$26,3,FALSE))","v":""},{"$f":"IF(C119=\"\",\"\",HLOOKUP(C119,'MHP Family Income & Rent Limits'!$E$12:$L$26,4,FALSE))","v":""},{"$f":"IF(C119=\"\",\"\",HLOOKUP(C119,'MHP Family Income & Rent Limits'!$E$12:$L$26,5,FALSE))","v":""},{"$f":"IF(C119=\"\",\"\",HLOOKUP(C119,'MHP Family Income & Rent Limits'!$E$12:$L$26,6,FALSE))","v":""},{"$f":"IF(C119=\"\",\"\",HLOOKUP(C119,'MHP Family Income & Rent Limits'!$E$12:$L$26,7,FALSE))","v":""},{"$f":"IF(C119=\"\",\"\",HLOOKUP(C119,'MHP Family Income & Rent Limits'!$E$12:$L$26,8,FALSE))","v":""},{"$f":"IF(C119=\"\",\"\",HLOOKUP(C119,'MHP Family Income & Rent Limits'!$E$12:$L$26,9,FALSE))","v":""},{"$f":"IF(C119=\"\",\"\",HLOOKUP(C119,'MHP Family Income & Rent Limits'!$E$12:$L$26,10,FALSE))","v":""},{"$f":"IF(C119=\"\",\"\",HLOOKUP(C119,'MHP Family Income & Rent Limits'!$E$12:$L$26,11,FALSE))","v":""},{"$f":"IF(C119=\"\",\"\",HLOOKUP(C119,'MHP Family Income & Rent Limits'!$E$12:$L$26,12,FALSE))","v":""},{"$f":"IF(C119=\"\",\"\",HLOOKUP(C119,'MHP Family Income & Rent Limits'!$E$12:$L$26,13,FALSE))","v":""},{"$f":"IF(C119=\"\",\"\",HLOOKUP(C119,'MHP Family Income & Rent Limits'!$E$12:$L$26,14,FALSE))","v":""},{"$f":"IF(C119=\"\",\"\",HLOOKUP(C119,'MHP Family Income & Rent Limits'!$E$12:$L$26,15,FALSE))","v":""}]
[{"$f":"IF('2. Assisted & Restricted Units'!A120=\"\",\"\",'2. Assisted & Restricted Units'!A120)","v":""},{"$f":"IF('2. Assisted & Restricted Units'!B120=\"\",\"\",'2. Assisted & Restricted Units'!B120)","v":""},{"$f":"IF('2. Assisted & Restricted Units'!D120=\"\",\"\",'2. Assisted & Restricted Units'!D120)","v":""},{"$f":"IF('2. Assisted & Restricted Units'!E120=\"\",\"\",'2. Assisted & Restricted Units'!E120)","v":""},{"$f":"IF('2. Assisted & Restricted Units'!H120=\"\",\"\",'2. Assisted & Restricted Units'!H120)","v":""},{"$f":"_xlfn.IFS(E120=\"\",\"\",E120>BO120,$BP$6,E120>BN120,$BO$6,E120>BM120,$BN$6,E120>BL120,$BM$6,E120>BK120,$BL$6,E120>BJ120,$BK$6,E120>BI120,$BJ$6,E120>BH120,$BI$6,E120>BG120,$BH$6,E120>BF120,$BG$6,E120>BE120,$BF$6,E120>BD120,$BE$6,E120>BC120,$BD$6,E120>=0,$BC$6)","v":""},{"$f":"IF('2. Assisted & Restricted Units'!T120=\"\",\"\",'2. Assisted & Restricted Units'!T120)","v":""},{"$f":"IF('2. Assisted & Restricted Units'!I120=\"\",\"\",'2. Assisted & Restricted Units'!I120)","v":""},{"$f":"IF('2. Assisted & Restricted Units'!AP120=\"\",\"\",'2. Assisted & Restricted Units'!AP120)","v":0},{"$f":"IF('2. Assisted & Restricted Units'!AT120=\"\",\"\",'2. Assisted & Restricted Units'!AT120)","v":""},0,{"$f":"IF('2. Assisted & Restricted Units'!AV120=\"\",\"\",'2. Assisted & Restricted Units'!AV120)","v":""},{"$f":"IF('2. Assisted & Restricted Units'!L120=\"\",\"\",'2. Assisted & Restricted Units'!L120)","v":""},{"$f":"IF('2. Assisted & Restricted Units'!M120=\"\",\"\",'2. Assisted & Restricted Units'!M120)","v":""},{"$f":"IF('2. Assisted & Restricted Units'!O120=\"\",\"\",'2. Assisted & Restricted Units'!O120)","v":""},{"$f":"IF('2. Assisted & Restricted Units'!P120=\"\",\"\",'2. Assisted & Restricted Units'!P120)","v":""},{"$f":"IF('2. Assisted & Restricted Units'!Q120=\"\",\"\",'2. Assisted & Restricted Units'!Q120)","v":""},{"$f":"IF('2. Assisted & Restricted Units'!R120=\"\",\"\",'2. Assisted & Restricted Units'!R120)","v":""},{"$f":"IF(A120=\"\",\"\",'1. Checklist & Certification'!$K$1)","v":""},{"$f":"IF(A120=\"\",\"\",'1. Checklist & Certification'!$C$62)","v":""},{"$f":"IF(A120=\"\",\"\",'1. Checklist & Certification'!$K$62)","v":""},{"$f":"IF(A120=\"\",\"\",'1. Checklist & Certification'!$C$6)","v":""},{"$f":"IF(A120=\"\",\"\",'1. Checklist & Certification'!$G$4)","v":""},{"$f":"IF(A120=\"\",\"\",'1. Checklist & Certification'!$C$7)","v":""},{"$f":"IF(A120=\"\",\"\",'1. Checklist & Certification'!$C$8)","v":""},{"$f":"IF(A120=\"\",\"\",'1. Checklist & Certification'!$F$7)","v":""},{"$f":"IF(A120=\"\",\"\",'1. Checklist & Certification'!$F$8)","v":""},{"$f":"IF(A120=\"\",\"\",'1. Checklist & Certification'!$B$9)","v":""},{"$f":"IF(A120=\"\",\"\",'1. Checklist & Certification'!$F$9)","v":""},{"$f":"IF(A120=\"\",\"\",'1. Checklist & Certification'!$C$10)","v":""},{"$f":"IF(A120=\"\",\"\",'1. Checklist & Certification'!$C$11)","v":""},{"$f":"IF(A120=\"\",\"\",'1. Checklist & Certification'!$C$12)","v":""},{"$f":"IF(A120=\"\",\"\",'1. Checklist & Certification'!$B$14)","v":""},{"$f":"IF(A120=\"\",\"\",'1. Checklist & Certification'!$E$14)","v":""},{"$f":"IF(B120=\"\",\"\",'1. Checklist & Certification'!$G$14)","v":""},{"$f":"IF(A120=\"\",\"\",'MHP Family Income & Rent Limits'!$B$3)","v":""},{"$f":"IF(A120=\"\",\"\",'MHP Family Income & Rent Limits'!$J$3)","v":""},{"$f":"IF(A120=\"\",\"\",'MHP Family Income & Rent Limits'!$E$4)","v":""},{"$f":"IF(A120=\"\",\"\",'MHP Family Income & Rent Limits'!$C$7)","v":""},{"$f":"IF(A120=\"\",\"\",'MHP Family Income & Rent Limits'!$F$8)","v":""},{"$f":"IF(A120=\"\",\"\",'1. Checklist & Certification'!$G$4)","v":""},{"$f":"IF(A120=\"\",\"\",'1. Checklist & Certification'!$K$39)","v":""},{"$f":"IF(A120=\"\",\"\",'1. Checklist & Certification'!$K$43)","v":""},{"$f":"IF(A120=\"\",\"\",'1. Checklist & Certification'!$K$45)","v":""},{"$f":"IF(A120=\"\",\"\",'1. Checklist & Certification'!$K$49)","v":""},{"$f":"IF(A120=\"\",\"\",'1. Checklist & Certification'!$E$66)","v":""},{"$f":"IF(A120=\"\",\"\",'1. Checklist & Certification'!$E$67)","v":""},{"$f":"IF(A120=\"\",\"\",'1. Checklist & Certification'!$E$68)","v":""},{"$f":"IF(A120=\"\",\"\",'1. Checklist & Certification'!$G$66)","v":""},{"$f":"IF(A120=\"\",\"\",'1. Checklist & Certification'!$H$66)","v":""},{"$f":"IF(A120=\"\",\"\",'1. Checklist & Certification'!$I$66)","v":""},{"$f":"IF(A120=\"\",\"\",'1. Checklist & Certification'!$I$67)","v":""},{"$f":"IF(A120=\"\",\"\",'1. Checklist & Certification'!$I$68)","v":""},null,{"$f":"IF(C120=\"\",\"\",HLOOKUP(C120,'MHP Family Income & Rent Limits'!$E$12:$L$26,2,FALSE))","v":""},{"$f":"IF(C120=\"\",\"\",HLOOKUP(C120,'MHP Family Income & Rent Limits'!$E$12:$L$26,3,FALSE))","v":""},{"$f":"IF(C120=\"\",\"\",HLOOKUP(C120,'MHP Family Income & Rent Limits'!$E$12:$L$26,4,FALSE))","v":""},{"$f":"IF(C120=\"\",\"\",HLOOKUP(C120,'MHP Family Income & Rent Limits'!$E$12:$L$26,5,FALSE))","v":""},{"$f":"IF(C120=\"\",\"\",HLOOKUP(C120,'MHP Family Income & Rent Limits'!$E$12:$L$26,6,FALSE))","v":""},{"$f":"IF(C120=\"\",\"\",HLOOKUP(C120,'MHP Family Income & Rent Limits'!$E$12:$L$26,7,FALSE))","v":""},{"$f":"IF(C120=\"\",\"\",HLOOKUP(C120,'MHP Family Income & Rent Limits'!$E$12:$L$26,8,FALSE))","v":""},{"$f":"IF(C120=\"\",\"\",HLOOKUP(C120,'MHP Family Income & Rent Limits'!$E$12:$L$26,9,FALSE))","v":""},{"$f":"IF(C120=\"\",\"\",HLOOKUP(C120,'MHP Family Income & Rent Limits'!$E$12:$L$26,10,FALSE))","v":""},{"$f":"IF(C120=\"\",\"\",HLOOKUP(C120,'MHP Family Income & Rent Limits'!$E$12:$L$26,11,FALSE))","v":""},{"$f":"IF(C120=\"\",\"\",HLOOKUP(C120,'MHP Family Income & Rent Limits'!$E$12:$L$26,12,FALSE))","v":""},{"$f":"IF(C120=\"\",\"\",HLOOKUP(C120,'MHP Family Income & Rent Limits'!$E$12:$L$26,13,FALSE))","v":""},{"$f":"IF(C120=\"\",\"\",HLOOKUP(C120,'MHP Family Income & Rent Limits'!$E$12:$L$26,14,FALSE))","v":""},{"$f":"IF(C120=\"\",\"\",HLOOKUP(C120,'MHP Family Income & Rent Limits'!$E$12:$L$26,15,FALSE))","v":""}]
[{"$f":"IF('2. Assisted & Restricted Units'!A121=\"\",\"\",'2. Assisted & Restricted Units'!A121)","v":""},{"$f":"IF('2. Assisted & Restricted Units'!B121=\"\",\"\",'2. Assisted & Restricted Units'!B121)","v":""},{"$f":"IF('2. Assisted & Restricted Units'!D121=\"\",\"\",'2. Assisted & Restricted Units'!D121)","v":""},{"$f":"IF('2. Assisted & Restricted Units'!E121=\"\",\"\",'2. Assisted & Restricted Units'!E121)","v":""},{"$f":"IF('2. Assisted & Restricted Units'!H121=\"\",\"\",'2. Assisted & Restricted Units'!H121)","v":""},{"$f":"_xlfn.IFS(E121=\"\",\"\",E121>BO121,$BP$6,E121>BN121,$BO$6,E121>BM121,$BN$6,E121>BL121,$BM$6,E121>BK121,$BL$6,E121>BJ121,$BK$6,E121>BI121,$BJ$6,E121>BH121,$BI$6,E121>BG121,$BH$6,E121>BF121,$BG$6,E121>BE121,$BF$6,E121>BD121,$BE$6,E121>BC121,$BD$6,E121>=0,$BC$6)","v":""},{"$f":"IF('2. Assisted & Restricted Units'!T121=\"\",\"\",'2. Assisted & Restricted Units'!T121)","v":""},{"$f":"IF('2. Assisted & Restricted Units'!I121=\"\",\"\",'2. Assisted & Restricted Units'!I121)","v":""},{"$f":"IF('2. Assisted & Restricted Units'!AP121=\"\",\"\",'2. Assisted & Restricted Units'!AP121)","v":0},{"$f":"IF('2. Assisted & Restricted Units'!AT121=\"\",\"\",'2. Assisted & Restricted Units'!AT121)","v":""},0,{"$f":"IF('2. Assisted & Restricted Units'!AV121=\"\",\"\",'2. Assisted & Restricted Units'!AV121)","v":""},{"$f":"IF('2. Assisted & Restricted Units'!L121=\"\",\"\",'2. Assisted & Restricted Units'!L121)","v":""},{"$f":"IF('2. Assisted & Restricted Units'!M121=\"\",\"\",'2. Assisted & Restricted Units'!M121)","v":""},{"$f":"IF('2. Assisted & Restricted Units'!O121=\"\",\"\",'2. Assisted & Restricted Units'!O121)","v":""},{"$f":"IF('2. Assisted & Restricted Units'!P121=\"\",\"\",'2. Assisted & Restricted Units'!P121)","v":""},{"$f":"IF('2. Assisted & Restricted Units'!Q121=\"\",\"\",'2. Assisted & Restricted Units'!Q121)","v":""},{"$f":"IF('2. Assisted & Restricted Units'!R121=\"\",\"\",'2. Assisted & Restricted Units'!R121)","v":""},{"$f":"IF(A121=\"\",\"\",'1. Checklist & Certification'!$K$1)","v":""},{"$f":"IF(A121=\"\",\"\",'1. Checklist & Certification'!$C$62)","v":""},{"$f":"IF(A121=\"\",\"\",'1. Checklist & Certification'!$K$62)","v":""},{"$f":"IF(A121=\"\",\"\",'1. Checklist & Certification'!$C$6)","v":""},{"$f":"IF(A121=\"\",\"\",'1. Checklist & Certification'!$G$4)","v":""},{"$f":"IF(A121=\"\",\"\",'1. Checklist & Certification'!$C$7)","v":""},{"$f":"IF(A121=\"\",\"\",'1. Checklist & Certification'!$C$8)","v":""},{"$f":"IF(A121=\"\",\"\",'1. Checklist & Certification'!$F$7)","v":""},{"$f":"IF(A121=\"\",\"\",'1. Checklist & Certification'!$F$8)","v":""},{"$f":"IF(A121=\"\",\"\",'1. Checklist & Certification'!$B$9)","v":""},{"$f":"IF(A121=\"\",\"\",'1. Checklist & Certification'!$F$9)","v":""},{"$f":"IF(A121=\"\",\"\",'1. Checklist & Certification'!$C$10)","v":""},{"$f":"IF(A121=\"\",\"\",'1. Checklist & Certification'!$C$11)","v":""},{"$f":"IF(A121=\"\",\"\",'1. Checklist & Certification'!$C$12)","v":""},{"$f":"IF(A121=\"\",\"\",'1. Checklist & Certification'!$B$14)","v":""},{"$f":"IF(A121=\"\",\"\",'1. Checklist & Certification'!$E$14)","v":""},{"$f":"IF(B121=\"\",\"\",'1. Checklist & Certification'!$G$14)","v":""},{"$f":"IF(A121=\"\",\"\",'MHP Family Income & Rent Limits'!$B$3)","v":""},{"$f":"IF(A121=\"\",\"\",'MHP Family Income & Rent Limits'!$J$3)","v":""},{"$f":"IF(A121=\"\",\"\",'MHP Family Income & Rent Limits'!$E$4)","v":""},{"$f":"IF(A121=\"\",\"\",'MHP Family Income & Rent Limits'!$C$7)","v":""},{"$f":"IF(A121=\"\",\"\",'MHP Family Income & Rent Limits'!$F$8)","v":""},{"$f":"IF(A121=\"\",\"\",'1. Checklist & Certification'!$G$4)","v":""},{"$f":"IF(A121=\"\",\"\",'1. Checklist & Certification'!$K$39)","v":""},{"$f":"IF(A121=\"\",\"\",'1. Checklist & Certification'!$K$43)","v":""},{"$f":"IF(A121=\"\",\"\",'1. Checklist & Certification'!$K$45)","v":""},{"$f":"IF(A121=\"\",\"\",'1. Checklist & Certification'!$K$49)","v":""},{"$f":"IF(A121=\"\",\"\",'1. Checklist & Certification'!$E$66)","v":""},{"$f":"IF(A121=\"\",\"\",'1. Checklist & Certification'!$E$67)","v":""},{"$f":"IF(A121=\"\",\"\",'1. Checklist & Certification'!$E$68)","v":""},{"$f":"IF(A121=\"\",\"\",'1. Checklist & Certification'!$G$66)","v":""},{"$f":"IF(A121=\"\",\"\",'1. Checklist & Certification'!$H$66)","v":""},{"$f":"IF(A121=\"\",\"\",'1. Checklist & Certification'!$I$66)","v":""},{"$f":"IF(A121=\"\",\"\",'1. Checklist & Certification'!$I$67)","v":""},{"$f":"IF(A121=\"\",\"\",'1. Checklist & Certification'!$I$68)","v":""},null,{"$f":"IF(C121=\"\",\"\",HLOOKUP(C121,'MHP Family Income & Rent Limits'!$E$12:$L$26,2,FALSE))","v":""},{"$f":"IF(C121=\"\",\"\",HLOOKUP(C121,'MHP Family Income & Rent Limits'!$E$12:$L$26,3,FALSE))","v":""},{"$f":"IF(C121=\"\",\"\",HLOOKUP(C121,'MHP Family Income & Rent Limits'!$E$12:$L$26,4,FALSE))","v":""},{"$f":"IF(C121=\"\",\"\",HLOOKUP(C121,'MHP Family Income & Rent Limits'!$E$12:$L$26,5,FALSE))","v":""},{"$f":"IF(C121=\"\",\"\",HLOOKUP(C121,'MHP Family Income & Rent Limits'!$E$12:$L$26,6,FALSE))","v":""},{"$f":"IF(C121=\"\",\"\",HLOOKUP(C121,'MHP Family Income & Rent Limits'!$E$12:$L$26,7,FALSE))","v":""},{"$f":"IF(C121=\"\",\"\",HLOOKUP(C121,'MHP Family Income & Rent Limits'!$E$12:$L$26,8,FALSE))","v":""},{"$f":"IF(C121=\"\",\"\",HLOOKUP(C121,'MHP Family Income & Rent Limits'!$E$12:$L$26,9,FALSE))","v":""},{"$f":"IF(C121=\"\",\"\",HLOOKUP(C121,'MHP Family Income & Rent Limits'!$E$12:$L$26,10,FALSE))","v":""},{"$f":"IF(C121=\"\",\"\",HLOOKUP(C121,'MHP Family Income & Rent Limits'!$E$12:$L$26,11,FALSE))","v":""},{"$f":"IF(C121=\"\",\"\",HLOOKUP(C121,'MHP Family Income & Rent Limits'!$E$12:$L$26,12,FALSE))","v":""},{"$f":"IF(C121=\"\",\"\",HLOOKUP(C121,'MHP Family Income & Rent Limits'!$E$12:$L$26,13,FALSE))","v":""},{"$f":"IF(C121=\"\",\"\",HLOOKUP(C121,'MHP Family Income & Rent Limits'!$E$12:$L$26,14,FALSE))","v":""},{"$f":"IF(C121=\"\",\"\",HLOOKUP(C121,'MHP Family Income & Rent Limits'!$E$12:$L$26,15,FALSE))","v":""}]
[{"$f":"IF('2. Assisted & Restricted Units'!A122=\"\",\"\",'2. Assisted & Restricted Units'!A122)","v":""},{"$f":"IF('2. Assisted & Restricted Units'!B122=\"\",\"\",'2. Assisted & Restricted Units'!B122)","v":""},{"$f":"IF('2. Assisted & Restricted Units'!D122=\"\",\"\",'2. Assisted & Restricted Units'!D122)","v":""},{"$f":"IF('2. Assisted & Restricted Units'!E122=\"\",\"\",'2. Assisted & Restricted Units'!E122)","v":""},{"$f":"IF('2. Assisted & Restricted Units'!H122=\"\",\"\",'2. Assisted & Restricted Units'!H122)","v":""},{"$f":"_xlfn.IFS(E122=\"\",\"\",E122>BO122,$BP$6,E122>BN122,$BO$6,E122>BM122,$BN$6,E122>BL122,$BM$6,E122>BK122,$BL$6,E122>BJ122,$BK$6,E122>BI122,$BJ$6,E122>BH122,$BI$6,E122>BG122,$BH$6,E122>BF122,$BG$6,E122>BE122,$BF$6,E122>BD122,$BE$6,E122>BC122,$BD$6,E122>=0,$BC$6)","v":""},{"$f":"IF('2. Assisted & Restricted Units'!T122=\"\",\"\",'2. Assisted & Restricted Units'!T122)","v":""},{"$f":"IF('2. Assisted & Restricted Units'!I122=\"\",\"\",'2. Assisted & Restricted Units'!I122)","v":""},{"$f":"IF('2. Assisted & Restricted Units'!AP122=\"\",\"\",'2. Assisted & Restricted Units'!AP122)","v":0},{"$f":"IF('2. Assisted & Restricted Units'!AT122=\"\",\"\",'2. Assisted & Restricted Units'!AT122)","v":""},0,{"$f":"IF('2. Assisted & Restricted Units'!AV122=\"\",\"\",'2. Assisted & Restricted Units'!AV122)","v":""},{"$f":"IF('2. Assisted & Restricted Units'!L122=\"\",\"\",'2. Assisted & Restricted Units'!L122)","v":""},{"$f":"IF('2. Assisted & Restricted Units'!M122=\"\",\"\",'2. Assisted & Restricted Units'!M122)","v":""},{"$f":"IF('2. Assisted & Restricted Units'!O122=\"\",\"\",'2. Assisted & Restricted Units'!O122)","v":""},{"$f":"IF('2. Assisted & Restricted Units'!P122=\"\",\"\",'2. Assisted & Restricted Units'!P122)","v":""},{"$f":"IF('2. Assisted & Restricted Units'!Q122=\"\",\"\",'2. Assisted & Restricted Units'!Q122)","v":""},{"$f":"IF('2. Assisted & Restricted Units'!R122=\"\",\"\",'2. Assisted & Restricted Units'!R122)","v":""},{"$f":"IF(A122=\"\",\"\",'1. Checklist & Certification'!$K$1)","v":""},{"$f":"IF(A122=\"\",\"\",'1. Checklist & Certification'!$C$62)","v":""},{"$f":"IF(A122=\"\",\"\",'1. Checklist & Certification'!$K$62)","v":""},{"$f":"IF(A122=\"\",\"\",'1. Checklist & Certification'!$C$6)","v":""},{"$f":"IF(A122=\"\",\"\",'1. Checklist & Certification'!$G$4)","v":""},{"$f":"IF(A122=\"\",\"\",'1. Checklist & Certification'!$C$7)","v":""},{"$f":"IF(A122=\"\",\"\",'1. Checklist & Certification'!$C$8)","v":""},{"$f":"IF(A122=\"\",\"\",'1. Checklist & Certification'!$F$7)","v":""},{"$f":"IF(A122=\"\",\"\",'1. Checklist & Certification'!$F$8)","v":""},{"$f":"IF(A122=\"\",\"\",'1. Checklist & Certification'!$B$9)","v":""},{"$f":"IF(A122=\"\",\"\",'1. Checklist & Certification'!$F$9)","v":""},{"$f":"IF(A122=\"\",\"\",'1. Checklist & Certification'!$C$10)","v":""},{"$f":"IF(A122=\"\",\"\",'1. Checklist & Certification'!$C$11)","v":""},{"$f":"IF(A122=\"\",\"\",'1. Checklist & Certification'!$C$12)","v":""},{"$f":"IF(A122=\"\",\"\",'1. Checklist & Certification'!$B$14)","v":""},{"$f":"IF(A122=\"\",\"\",'1. Checklist & Certification'!$E$14)","v":""},{"$f":"IF(B122=\"\",\"\",'1. Checklist & Certification'!$G$14)","v":""},{"$f":"IF(A122=\"\",\"\",'MHP Family Income & Rent Limits'!$B$3)","v":""},{"$f":"IF(A122=\"\",\"\",'MHP Family Income & Rent Limits'!$J$3)","v":""},{"$f":"IF(A122=\"\",\"\",'MHP Family Income & Rent Limits'!$E$4)","v":""},{"$f":"IF(A122=\"\",\"\",'MHP Family Income & Rent Limits'!$C$7)","v":""},{"$f":"IF(A122=\"\",\"\",'MHP Family Income & Rent Limits'!$F$8)","v":""},{"$f":"IF(A122=\"\",\"\",'1. Checklist & Certification'!$G$4)","v":""},{"$f":"IF(A122=\"\",\"\",'1. Checklist & Certification'!$K$39)","v":""},{"$f":"IF(A122=\"\",\"\",'1. Checklist & Certification'!$K$43)","v":""},{"$f":"IF(A122=\"\",\"\",'1. Checklist & Certification'!$K$45)","v":""},{"$f":"IF(A122=\"\",\"\",'1. Checklist & Certification'!$K$49)","v":""},{"$f":"IF(A122=\"\",\"\",'1. Checklist & Certification'!$E$66)","v":""},{"$f":"IF(A122=\"\",\"\",'1. Checklist & Certification'!$E$67)","v":""},{"$f":"IF(A122=\"\",\"\",'1. Checklist & Certification'!$E$68)","v":""},{"$f":"IF(A122=\"\",\"\",'1. Checklist & Certification'!$G$66)","v":""},{"$f":"IF(A122=\"\",\"\",'1. Checklist & Certification'!$H$66)","v":""},{"$f":"IF(A122=\"\",\"\",'1. Checklist & Certification'!$I$66)","v":""},{"$f":"IF(A122=\"\",\"\",'1. Checklist & Certification'!$I$67)","v":""},{"$f":"IF(A122=\"\",\"\",'1. Checklist & Certification'!$I$68)","v":""},null,{"$f":"IF(C122=\"\",\"\",HLOOKUP(C122,'MHP Family Income & Rent Limits'!$E$12:$L$26,2,FALSE))","v":""},{"$f":"IF(C122=\"\",\"\",HLOOKUP(C122,'MHP Family Income & Rent Limits'!$E$12:$L$26,3,FALSE))","v":""},{"$f":"IF(C122=\"\",\"\",HLOOKUP(C122,'MHP Family Income & Rent Limits'!$E$12:$L$26,4,FALSE))","v":""},{"$f":"IF(C122=\"\",\"\",HLOOKUP(C122,'MHP Family Income & Rent Limits'!$E$12:$L$26,5,FALSE))","v":""},{"$f":"IF(C122=\"\",\"\",HLOOKUP(C122,'MHP Family Income & Rent Limits'!$E$12:$L$26,6,FALSE))","v":""},{"$f":"IF(C122=\"\",\"\",HLOOKUP(C122,'MHP Family Income & Rent Limits'!$E$12:$L$26,7,FALSE))","v":""},{"$f":"IF(C122=\"\",\"\",HLOOKUP(C122,'MHP Family Income & Rent Limits'!$E$12:$L$26,8,FALSE))","v":""},{"$f":"IF(C122=\"\",\"\",HLOOKUP(C122,'MHP Family Income & Rent Limits'!$E$12:$L$26,9,FALSE))","v":""},{"$f":"IF(C122=\"\",\"\",HLOOKUP(C122,'MHP Family Income & Rent Limits'!$E$12:$L$26,10,FALSE))","v":""},{"$f":"IF(C122=\"\",\"\",HLOOKUP(C122,'MHP Family Income & Rent Limits'!$E$12:$L$26,11,FALSE))","v":""},{"$f":"IF(C122=\"\",\"\",HLOOKUP(C122,'MHP Family Income & Rent Limits'!$E$12:$L$26,12,FALSE))","v":""},{"$f":"IF(C122=\"\",\"\",HLOOKUP(C122,'MHP Family Income & Rent Limits'!$E$12:$L$26,13,FALSE))","v":""},{"$f":"IF(C122=\"\",\"\",HLOOKUP(C122,'MHP Family Income & Rent Limits'!$E$12:$L$26,14,FALSE))","v":""},{"$f":"IF(C122=\"\",\"\",HLOOKUP(C122,'MHP Family Income & Rent Limits'!$E$12:$L$26,15,FALSE))","v":""}]
[{"$f":"IF('2. Assisted & Restricted Units'!A123=\"\",\"\",'2. Assisted & Restricted Units'!A123)","v":""},{"$f":"IF('2. Assisted & Restricted Units'!B123=\"\",\"\",'2. Assisted & Restricted Units'!B123)","v":""},{"$f":"IF('2. Assisted & Restricted Units'!D123=\"\",\"\",'2. Assisted & Restricted Units'!D123)","v":""},{"$f":"IF('2. Assisted & Restricted Units'!E123=\"\",\"\",'2. Assisted & Restricted Units'!E123)","v":""},{"$f":"IF('2. Assisted & Restricted Units'!H123=\"\",\"\",'2. Assisted & Restricted Units'!H123)","v":""},{"$f":"_xlfn.IFS(E123=\"\",\"\",E123>BO123,$BP$6,E123>BN123,$BO$6,E123>BM123,$BN$6,E123>BL123,$BM$6,E123>BK123,$BL$6,E123>BJ123,$BK$6,E123>BI123,$BJ$6,E123>BH123,$BI$6,E123>BG123,$BH$6,E123>BF123,$BG$6,E123>BE123,$BF$6,E123>BD123,$BE$6,E123>BC123,$BD$6,E123>=0,$BC$6)","v":""},{"$f":"IF('2. Assisted & Restricted Units'!T123=\"\",\"\",'2. Assisted & Restricted Units'!T123)","v":""},{"$f":"IF('2. Assisted & Restricted Units'!I123=\"\",\"\",'2. Assisted & Restricted Units'!I123)","v":""},{"$f":"IF('2. Assisted & Restricted Units'!AP123=\"\",\"\",'2. Assisted & Restricted Units'!AP123)","v":0},{"$f":"IF('2. Assisted & Restricted Units'!AT123=\"\",\"\",'2. Assisted & Restricted Units'!AT123)","v":""},0,{"$f":"IF('2. Assisted & Restricted Units'!AV123=\"\",\"\",'2. Assisted & Restricted Units'!AV123)","v":""},{"$f":"IF('2. Assisted & Restricted Units'!L123=\"\",\"\",'2. Assisted & Restricted Units'!L123)","v":""},{"$f":"IF('2. Assisted & Restricted Units'!M123=\"\",\"\",'2. Assisted & Restricted Units'!M123)","v":""},{"$f":"IF('2. Assisted & Restricted Units'!O123=\"\",\"\",'2. Assisted & Restricted Units'!O123)","v":""},{"$f":"IF('2. Assisted & Restricted Units'!P123=\"\",\"\",'2. Assisted & Restricted Units'!P123)","v":""},{"$f":"IF('2. Assisted & Restricted Units'!Q123=\"\",\"\",'2. Assisted & Restricted Units'!Q123)","v":""},{"$f":"IF('2. Assisted & Restricted Units'!R123=\"\",\"\",'2. Assisted & Restricted Units'!R123)","v":""},{"$f":"IF(A123=\"\",\"\",'1. Checklist & Certification'!$K$1)","v":""},{"$f":"IF(A123=\"\",\"\",'1. Checklist & Certification'!$C$62)","v":""},{"$f":"IF(A123=\"\",\"\",'1. Checklist & Certification'!$K$62)","v":""},{"$f":"IF(A123=\"\",\"\",'1. Checklist & Certification'!$C$6)","v":""},{"$f":"IF(A123=\"\",\"\",'1. Checklist & Certification'!$G$4)","v":""},{"$f":"IF(A123=\"\",\"\",'1. Checklist & Certification'!$C$7)","v":""},{"$f":"IF(A123=\"\",\"\",'1. Checklist & Certification'!$C$8)","v":""},{"$f":"IF(A123=\"\",\"\",'1. Checklist & Certification'!$F$7)","v":""},{"$f":"IF(A123=\"\",\"\",'1. Checklist & Certification'!$F$8)","v":""},{"$f":"IF(A123=\"\",\"\",'1. Checklist & Certification'!$B$9)","v":""},{"$f":"IF(A123=\"\",\"\",'1. Checklist & Certification'!$F$9)","v":""},{"$f":"IF(A123=\"\",\"\",'1. Checklist & Certification'!$C$10)","v":""},{"$f":"IF(A123=\"\",\"\",'1. Checklist & Certification'!$C$11)","v":""},{"$f":"IF(A123=\"\",\"\",'1. Checklist & Certification'!$C$12)","v":""},{"$f":"IF(A123=\"\",\"\",'1. Checklist & Certification'!$B$14)","v":""},{"$f":"IF(A123=\"\",\"\",'1. Checklist & Certification'!$E$14)","v":""},{"$f":"IF(B123=\"\",\"\",'1. Checklist & Certification'!$G$14)","v":""},{"$f":"IF(A123=\"\",\"\",'MHP Family Income & Rent Limits'!$B$3)","v":""},{"$f":"IF(A123=\"\",\"\",'MHP Family Income & Rent Limits'!$J$3)","v":""},{"$f":"IF(A123=\"\",\"\",'MHP Family Income & Rent Limits'!$E$4)","v":""},{"$f":"IF(A123=\"\",\"\",'MHP Family Income & Rent Limits'!$C$7)","v":""},{"$f":"IF(A123=\"\",\"\",'MHP Family Income & Rent Limits'!$F$8)","v":""},{"$f":"IF(A123=\"\",\"\",'1. Checklist & Certification'!$G$4)","v":""},{"$f":"IF(A123=\"\",\"\",'1. Checklist & Certification'!$K$39)","v":""},{"$f":"IF(A123=\"\",\"\",'1. Checklist & Certification'!$K$43)","v":""},{"$f":"IF(A123=\"\",\"\",'1. Checklist & Certification'!$K$45)","v":""},{"$f":"IF(A123=\"\",\"\",'1. Checklist & Certification'!$K$49)","v":""},{"$f":"IF(A123=\"\",\"\",'1. Checklist & Certification'!$E$66)","v":""},{"$f":"IF(A123=\"\",\"\",'1. Checklist & Certification'!$E$67)","v":""},{"$f":"IF(A123=\"\",\"\",'1. Checklist & Certification'!$E$68)","v":""},{"$f":"IF(A123=\"\",\"\",'1. Checklist & Certification'!$G$66)","v":""},{"$f":"IF(A123=\"\",\"\",'1. Checklist & Certification'!$H$66)","v":""},{"$f":"IF(A123=\"\",\"\",'1. Checklist & Certification'!$I$66)","v":""},{"$f":"IF(A123=\"\",\"\",'1. Checklist & Certification'!$I$67)","v":""},{"$f":"IF(A123=\"\",\"\",'1. Checklist & Certification'!$I$68)","v":""},null,{"$f":"IF(C123=\"\",\"\",HLOOKUP(C123,'MHP Family Income & Rent Limits'!$E$12:$L$26,2,FALSE))","v":""},{"$f":"IF(C123=\"\",\"\",HLOOKUP(C123,'MHP Family Income & Rent Limits'!$E$12:$L$26,3,FALSE))","v":""},{"$f":"IF(C123=\"\",\"\",HLOOKUP(C123,'MHP Family Income & Rent Limits'!$E$12:$L$26,4,FALSE))","v":""},{"$f":"IF(C123=\"\",\"\",HLOOKUP(C123,'MHP Family Income & Rent Limits'!$E$12:$L$26,5,FALSE))","v":""},{"$f":"IF(C123=\"\",\"\",HLOOKUP(C123,'MHP Family Income & Rent Limits'!$E$12:$L$26,6,FALSE))","v":""},{"$f":"IF(C123=\"\",\"\",HLOOKUP(C123,'MHP Family Income & Rent Limits'!$E$12:$L$26,7,FALSE))","v":""},{"$f":"IF(C123=\"\",\"\",HLOOKUP(C123,'MHP Family Income & Rent Limits'!$E$12:$L$26,8,FALSE))","v":""},{"$f":"IF(C123=\"\",\"\",HLOOKUP(C123,'MHP Family Income & Rent Limits'!$E$12:$L$26,9,FALSE))","v":""},{"$f":"IF(C123=\"\",\"\",HLOOKUP(C123,'MHP Family Income & Rent Limits'!$E$12:$L$26,10,FALSE))","v":""},{"$f":"IF(C123=\"\",\"\",HLOOKUP(C123,'MHP Family Income & Rent Limits'!$E$12:$L$26,11,FALSE))","v":""},{"$f":"IF(C123=\"\",\"\",HLOOKUP(C123,'MHP Family Income & Rent Limits'!$E$12:$L$26,12,FALSE))","v":""},{"$f":"IF(C123=\"\",\"\",HLOOKUP(C123,'MHP Family Income & Rent Limits'!$E$12:$L$26,13,FALSE))","v":""},{"$f":"IF(C123=\"\",\"\",HLOOKUP(C123,'MHP Family Income & Rent Limits'!$E$12:$L$26,14,FALSE))","v":""},{"$f":"IF(C123=\"\",\"\",HLOOKUP(C123,'MHP Family Income & Rent Limits'!$E$12:$L$26,15,FALSE))","v":""}]
[{"$f":"IF('2. Assisted & Restricted Units'!A124=\"\",\"\",'2. Assisted & Restricted Units'!A124)","v":""},{"$f":"IF('2. Assisted & Restricted Units'!B124=\"\",\"\",'2. Assisted & Restricted Units'!B124)","v":""},{"$f":"IF('2. Assisted & Restricted Units'!D124=\"\",\"\",'2. Assisted & Restricted Units'!D124)","v":""},{"$f":"IF('2. Assisted & Restricted Units'!E124=\"\",\"\",'2. Assisted & Restricted Units'!E124)","v":""},{"$f":"IF('2. Assisted & Restricted Units'!H124=\"\",\"\",'2. Assisted & Restricted Units'!H124)","v":""},{"$f":"_xlfn.IFS(E124=\"\",\"\",E124>BO124,$BP$6,E124>BN124,$BO$6,E124>BM124,$BN$6,E124>BL124,$BM$6,E124>BK124,$BL$6,E124>BJ124,$BK$6,E124>BI124,$BJ$6,E124>BH124,$BI$6,E124>BG124,$BH$6,E124>BF124,$BG$6,E124>BE124,$BF$6,E124>BD124,$BE$6,E124>BC124,$BD$6,E124>=0,$BC$6)","v":""},{"$f":"IF('2. Assisted & Restricted Units'!T124=\"\",\"\",'2. Assisted & Restricted Units'!T124)","v":""},{"$f":"IF('2. Assisted & Restricted Units'!I124=\"\",\"\",'2. Assisted & Restricted Units'!I124)","v":""},{"$f":"IF('2. Assisted & Restricted Units'!AP124=\"\",\"\",'2. Assisted & Restricted Units'!AP124)","v":0},{"$f":"IF('2. Assisted & Restricted Units'!AT124=\"\",\"\",'2. Assisted & Restricted Units'!AT124)","v":""},0,{"$f":"IF('2. Assisted & Restricted Units'!AV124=\"\",\"\",'2. Assisted & Restricted Units'!AV124)","v":""},{"$f":"IF('2. Assisted & Restricted Units'!L124=\"\",\"\",'2. Assisted & Restricted Units'!L124)","v":""},{"$f":"IF('2. Assisted & Restricted Units'!M124=\"\",\"\",'2. Assisted & Restricted Units'!M124)","v":""},{"$f":"IF('2. Assisted & Restricted Units'!O124=\"\",\"\",'2. Assisted & Restricted Units'!O124)","v":""},{"$f":"IF('2. Assisted & Restricted Units'!P124=\"\",\"\",'2. Assisted & Restricted Units'!P124)","v":""},{"$f":"IF('2. Assisted & Restricted Units'!Q124=\"\",\"\",'2. Assisted & Restricted Units'!Q124)","v":""},{"$f":"IF('2. Assisted & Restricted Units'!R124=\"\",\"\",'2. Assisted & Restricted Units'!R124)","v":""},{"$f":"IF(A124=\"\",\"\",'1. Checklist & Certification'!$K$1)","v":""},{"$f":"IF(A124=\"\",\"\",'1. Checklist & Certification'!$C$62)","v":""},{"$f":"IF(A124=\"\",\"\",'1. Checklist & Certification'!$K$62)","v":""},{"$f":"IF(A124=\"\",\"\",'1. Checklist & Certification'!$C$6)","v":""},{"$f":"IF(A124=\"\",\"\",'1. Checklist & Certification'!$G$4)","v":""},{"$f":"IF(A124=\"\",\"\",'1. Checklist & Certification'!$C$7)","v":""},{"$f":"IF(A124=\"\",\"\",'1. Checklist & Certification'!$C$8)","v":""},{"$f":"IF(A124=\"\",\"\",'1. Checklist & Certification'!$F$7)","v":""},{"$f":"IF(A124=\"\",\"\",'1. Checklist & Certification'!$F$8)","v":""},{"$f":"IF(A124=\"\",\"\",'1. Checklist & Certification'!$B$9)","v":""},{"$f":"IF(A124=\"\",\"\",'1. Checklist & Certification'!$F$9)","v":""},{"$f":"IF(A124=\"\",\"\",'1. Checklist & Certification'!$C$10)","v":""},{"$f":"IF(A124=\"\",\"\",'1. Checklist & Certification'!$C$11)","v":""},{"$f":"IF(A124=\"\",\"\",'1. Checklist & Certification'!$C$12)","v":""},{"$f":"IF(A124=\"\",\"\",'1. Checklist & Certification'!$B$14)","v":""},{"$f":"IF(A124=\"\",\"\",'1. Checklist & Certification'!$E$14)","v":""},{"$f":"IF(B124=\"\",\"\",'1. Checklist & Certification'!$G$14)","v":""},{"$f":"IF(A124=\"\",\"\",'MHP Family Income & Rent Limits'!$B$3)","v":""},{"$f":"IF(A124=\"\",\"\",'MHP Family Income & Rent Limits'!$J$3)","v":""},{"$f":"IF(A124=\"\",\"\",'MHP Family Income & Rent Limits'!$E$4)","v":""},{"$f":"IF(A124=\"\",\"\",'MHP Family Income & Rent Limits'!$C$7)","v":""},{"$f":"IF(A124=\"\",\"\",'MHP Family Income & Rent Limits'!$F$8)","v":""},{"$f":"IF(A124=\"\",\"\",'1. Checklist & Certification'!$G$4)","v":""},{"$f":"IF(A124=\"\",\"\",'1. Checklist & Certification'!$K$39)","v":""},{"$f":"IF(A124=\"\",\"\",'1. Checklist & Certification'!$K$43)","v":""},{"$f":"IF(A124=\"\",\"\",'1. Checklist & Certification'!$K$45)","v":""},{"$f":"IF(A124=\"\",\"\",'1. Checklist & Certification'!$K$49)","v":""},{"$f":"IF(A124=\"\",\"\",'1. Checklist & Certification'!$E$66)","v":""},{"$f":"IF(A124=\"\",\"\",'1. Checklist & Certification'!$E$67)","v":""},{"$f":"IF(A124=\"\",\"\",'1. Checklist & Certification'!$E$68)","v":""},{"$f":"IF(A124=\"\",\"\",'1. Checklist & Certification'!$G$66)","v":""},{"$f":"IF(A124=\"\",\"\",'1. Checklist & Certification'!$H$66)","v":""},{"$f":"IF(A124=\"\",\"\",'1. Checklist & Certification'!$I$66)","v":""},{"$f":"IF(A124=\"\",\"\",'1. Checklist & Certification'!$I$67)","v":""},{"$f":"IF(A124=\"\",\"\",'1. Checklist & Certification'!$I$68)","v":""},null,{"$f":"IF(C124=\"\",\"\",HLOOKUP(C124,'MHP Family Income & Rent Limits'!$E$12:$L$26,2,FALSE))","v":""},{"$f":"IF(C124=\"\",\"\",HLOOKUP(C124,'MHP Family Income & Rent Limits'!$E$12:$L$26,3,FALSE))","v":""},{"$f":"IF(C124=\"\",\"\",HLOOKUP(C124,'MHP Family Income & Rent Limits'!$E$12:$L$26,4,FALSE))","v":""},{"$f":"IF(C124=\"\",\"\",HLOOKUP(C124,'MHP Family Income & Rent Limits'!$E$12:$L$26,5,FALSE))","v":""},{"$f":"IF(C124=\"\",\"\",HLOOKUP(C124,'MHP Family Income & Rent Limits'!$E$12:$L$26,6,FALSE))","v":""},{"$f":"IF(C124=\"\",\"\",HLOOKUP(C124,'MHP Family Income & Rent Limits'!$E$12:$L$26,7,FALSE))","v":""},{"$f":"IF(C124=\"\",\"\",HLOOKUP(C124,'MHP Family Income & Rent Limits'!$E$12:$L$26,8,FALSE))","v":""},{"$f":"IF(C124=\"\",\"\",HLOOKUP(C124,'MHP Family Income & Rent Limits'!$E$12:$L$26,9,FALSE))","v":""},{"$f":"IF(C124=\"\",\"\",HLOOKUP(C124,'MHP Family Income & Rent Limits'!$E$12:$L$26,10,FALSE))","v":""},{"$f":"IF(C124=\"\",\"\",HLOOKUP(C124,'MHP Family Income & Rent Limits'!$E$12:$L$26,11,FALSE))","v":""},{"$f":"IF(C124=\"\",\"\",HLOOKUP(C124,'MHP Family Income & Rent Limits'!$E$12:$L$26,12,FALSE))","v":""},{"$f":"IF(C124=\"\",\"\",HLOOKUP(C124,'MHP Family Income & Rent Limits'!$E$12:$L$26,13,FALSE))","v":""},{"$f":"IF(C124=\"\",\"\",HLOOKUP(C124,'MHP Family Income & Rent Limits'!$E$12:$L$26,14,FALSE))","v":""},{"$f":"IF(C124=\"\",\"\",HLOOKUP(C124,'MHP Family Income & Rent Limits'!$E$12:$L$26,15,FALSE))","v":""}]
[{"$f":"IF('2. Assisted & Restricted Units'!A125=\"\",\"\",'2. Assisted & Restricted Units'!A125)","v":""},{"$f":"IF('2. Assisted & Restricted Units'!B125=\"\",\"\",'2. Assisted & Restricted Units'!B125)","v":""},{"$f":"IF('2. Assisted & Restricted Units'!D125=\"\",\"\",'2. Assisted & Restricted Units'!D125)","v":""},{"$f":"IF('2. Assisted & Restricted Units'!E125=\"\",\"\",'2. Assisted & Restricted Units'!E125)","v":""},{"$f":"IF('2. Assisted & Restricted Units'!H125=\"\",\"\",'2. Assisted & Restricted Units'!H125)","v":""},{"$f":"_xlfn.IFS(E125=\"\",\"\",E125>BO125,$BP$6,E125>BN125,$BO$6,E125>BM125,$BN$6,E125>BL125,$BM$6,E125>BK125,$BL$6,E125>BJ125,$BK$6,E125>BI125,$BJ$6,E125>BH125,$BI$6,E125>BG125,$BH$6,E125>BF125,$BG$6,E125>BE125,$BF$6,E125>BD125,$BE$6,E125>BC125,$BD$6,E125>=0,$BC$6)","v":""},{"$f":"IF('2. Assisted & Restricted Units'!T125=\"\",\"\",'2. Assisted & Restricted Units'!T125)","v":""},{"$f":"IF('2. Assisted & Restricted Units'!I125=\"\",\"\",'2. Assisted & Restricted Units'!I125)","v":""},{"$f":"IF('2. Assisted & Restricted Units'!AP125=\"\",\"\",'2. Assisted & Restricted Units'!AP125)","v":0},{"$f":"IF('2. Assisted & Restricted Units'!AT125=\"\",\"\",'2. Assisted & Restricted Units'!AT125)","v":""},0,{"$f":"IF('2. Assisted & Restricted Units'!AV125=\"\",\"\",'2. Assisted & Restricted Units'!AV125)","v":""},{"$f":"IF('2. Assisted & Restricted Units'!L125=\"\",\"\",'2. Assisted & Restricted Units'!L125)","v":""},{"$f":"IF('2. Assisted & Restricted Units'!M125=\"\",\"\",'2. Assisted & Restricted Units'!M125)","v":""},{"$f":"IF('2. Assisted & Restricted Units'!O125=\"\",\"\",'2. Assisted & Restricted Units'!O125)","v":""},{"$f":"IF('2. Assisted & Restricted Units'!P125=\"\",\"\",'2. Assisted & Restricted Units'!P125)","v":""},{"$f":"IF('2. Assisted & Restricted Units'!Q125=\"\",\"\",'2. Assisted & Restricted Units'!Q125)","v":""},{"$f":"IF('2. Assisted & Restricted Units'!R125=\"\",\"\",'2. Assisted & Restricted Units'!R125)","v":""},{"$f":"IF(A125=\"\",\"\",'1. Checklist & Certification'!$K$1)","v":""},{"$f":"IF(A125=\"\",\"\",'1. Checklist & Certification'!$C$62)","v":""},{"$f":"IF(A125=\"\",\"\",'1. Checklist & Certification'!$K$62)","v":""},{"$f":"IF(A125=\"\",\"\",'1. Checklist & Certification'!$C$6)","v":""},{"$f":"IF(A125=\"\",\"\",'1. Checklist & Certification'!$G$4)","v":""},{"$f":"IF(A125=\"\",\"\",'1. Checklist & Certification'!$C$7)","v":""},{"$f":"IF(A125=\"\",\"\",'1. Checklist & Certification'!$C$8)","v":""},{"$f":"IF(A125=\"\",\"\",'1. Checklist & Certification'!$F$7)","v":""},{"$f":"IF(A125=\"\",\"\",'1. Checklist & Certification'!$F$8)","v":""},{"$f":"IF(A125=\"\",\"\",'1. Checklist & Certification'!$B$9)","v":""},{"$f":"IF(A125=\"\",\"\",'1. Checklist & Certification'!$F$9)","v":""},{"$f":"IF(A125=\"\",\"\",'1. Checklist & Certification'!$C$10)","v":""},{"$f":"IF(A125=\"\",\"\",'1. Checklist & Certification'!$C$11)","v":""},{"$f":"IF(A125=\"\",\"\",'1. Checklist & Certification'!$C$12)","v":""},{"$f":"IF(A125=\"\",\"\",'1. Checklist & Certification'!$B$14)","v":""},{"$f":"IF(A125=\"\",\"\",'1. Checklist & Certification'!$E$14)","v":""},{"$f":"IF(B125=\"\",\"\",'1. Checklist & Certification'!$G$14)","v":""},{"$f":"IF(A125=\"\",\"\",'MHP Family Income & Rent Limits'!$B$3)","v":""},{"$f":"IF(A125=\"\",\"\",'MHP Family Income & Rent Limits'!$J$3)","v":""},{"$f":"IF(A125=\"\",\"\",'MHP Family Income & Rent Limits'!$E$4)","v":""},{"$f":"IF(A125=\"\",\"\",'MHP Family Income & Rent Limits'!$C$7)","v":""},{"$f":"IF(A125=\"\",\"\",'MHP Family Income & Rent Limits'!$F$8)","v":""},{"$f":"IF(A125=\"\",\"\",'1. Checklist & Certification'!$G$4)","v":""},{"$f":"IF(A125=\"\",\"\",'1. Checklist & Certification'!$K$39)","v":""},{"$f":"IF(A125=\"\",\"\",'1. Checklist & Certification'!$K$43)","v":""},{"$f":"IF(A125=\"\",\"\",'1. Checklist & Certification'!$K$45)","v":""},{"$f":"IF(A125=\"\",\"\",'1. Checklist & Certification'!$K$49)","v":""},{"$f":"IF(A125=\"\",\"\",'1. Checklist & Certification'!$E$66)","v":""},{"$f":"IF(A125=\"\",\"\",'1. Checklist & Certification'!$E$67)","v":""},{"$f":"IF(A125=\"\",\"\",'1. Checklist & Certification'!$E$68)","v":""},{"$f":"IF(A125=\"\",\"\",'1. Checklist & Certification'!$G$66)","v":""},{"$f":"IF(A125=\"\",\"\",'1. Checklist & Certification'!$H$66)","v":""},{"$f":"IF(A125=\"\",\"\",'1. Checklist & Certification'!$I$66)","v":""},{"$f":"IF(A125=\"\",\"\",'1. Checklist & Certification'!$I$67)","v":""},{"$f":"IF(A125=\"\",\"\",'1. Checklist & Certification'!$I$68)","v":""},null,{"$f":"IF(C125=\"\",\"\",HLOOKUP(C125,'MHP Family Income & Rent Limits'!$E$12:$L$26,2,FALSE))","v":""},{"$f":"IF(C125=\"\",\"\",HLOOKUP(C125,'MHP Family Income & Rent Limits'!$E$12:$L$26,3,FALSE))","v":""},{"$f":"IF(C125=\"\",\"\",HLOOKUP(C125,'MHP Family Income & Rent Limits'!$E$12:$L$26,4,FALSE))","v":""},{"$f":"IF(C125=\"\",\"\",HLOOKUP(C125,'MHP Family Income & Rent Limits'!$E$12:$L$26,5,FALSE))","v":""},{"$f":"IF(C125=\"\",\"\",HLOOKUP(C125,'MHP Family Income & Rent Limits'!$E$12:$L$26,6,FALSE))","v":""},{"$f":"IF(C125=\"\",\"\",HLOOKUP(C125,'MHP Family Income & Rent Limits'!$E$12:$L$26,7,FALSE))","v":""},{"$f":"IF(C125=\"\",\"\",HLOOKUP(C125,'MHP Family Income & Rent Limits'!$E$12:$L$26,8,FALSE))","v":""},{"$f":"IF(C125=\"\",\"\",HLOOKUP(C125,'MHP Family Income & Rent Limits'!$E$12:$L$26,9,FALSE))","v":""},{"$f":"IF(C125=\"\",\"\",HLOOKUP(C125,'MHP Family Income & Rent Limits'!$E$12:$L$26,10,FALSE))","v":""},{"$f":"IF(C125=\"\",\"\",HLOOKUP(C125,'MHP Family Income & Rent Limits'!$E$12:$L$26,11,FALSE))","v":""},{"$f":"IF(C125=\"\",\"\",HLOOKUP(C125,'MHP Family Income & Rent Limits'!$E$12:$L$26,12,FALSE))","v":""},{"$f":"IF(C125=\"\",\"\",HLOOKUP(C125,'MHP Family Income & Rent Limits'!$E$12:$L$26,13,FALSE))","v":""},{"$f":"IF(C125=\"\",\"\",HLOOKUP(C125,'MHP Family Income & Rent Limits'!$E$12:$L$26,14,FALSE))","v":""},{"$f":"IF(C125=\"\",\"\",HLOOKUP(C125,'MHP Family Income & Rent Limits'!$E$12:$L$26,15,FALSE))","v":""}]
[{"$f":"IF('2. Assisted & Restricted Units'!A126=\"\",\"\",'2. Assisted & Restricted Units'!A126)","v":""},{"$f":"IF('2. Assisted & Restricted Units'!B126=\"\",\"\",'2. Assisted & Restricted Units'!B126)","v":""},{"$f":"IF('2. Assisted & Restricted Units'!D126=\"\",\"\",'2. Assisted & Restricted Units'!D126)","v":""},{"$f":"IF('2. Assisted & Restricted Units'!E126=\"\",\"\",'2. Assisted & Restricted Units'!E126)","v":""},{"$f":"IF('2. Assisted & Restricted Units'!H126=\"\",\"\",'2. Assisted & Restricted Units'!H126)","v":""},{"$f":"_xlfn.IFS(E126=\"\",\"\",E126>BO126,$BP$6,E126>BN126,$BO$6,E126>BM126,$BN$6,E126>BL126,$BM$6,E126>BK126,$BL$6,E126>BJ126,$BK$6,E126>BI126,$BJ$6,E126>BH126,$BI$6,E126>BG126,$BH$6,E126>BF126,$BG$6,E126>BE126,$BF$6,E126>BD126,$BE$6,E126>BC126,$BD$6,E126>=0,$BC$6)","v":""},{"$f":"IF('2. Assisted & Restricted Units'!T126=\"\",\"\",'2. Assisted & Restricted Units'!T126)","v":""},{"$f":"IF('2. Assisted & Restricted Units'!I126=\"\",\"\",'2. Assisted & Restricted Units'!I126)","v":""},{"$f":"IF('2. Assisted & Restricted Units'!AP126=\"\",\"\",'2. Assisted & Restricted Units'!AP126)","v":0},{"$f":"IF('2. Assisted & Restricted Units'!AT126=\"\",\"\",'2. Assisted & Restricted Units'!AT126)","v":""},0,{"$f":"IF('2. Assisted & Restricted Units'!AV126=\"\",\"\",'2. Assisted & Restricted Units'!AV126)","v":""},{"$f":"IF('2. Assisted & Restricted Units'!L126=\"\",\"\",'2. Assisted & Restricted Units'!L126)","v":""},{"$f":"IF('2. Assisted & Restricted Units'!M126=\"\",\"\",'2. Assisted & Restricted Units'!M126)","v":""},{"$f":"IF('2. Assisted & Restricted Units'!O126=\"\",\"\",'2. Assisted & Restricted Units'!O126)","v":""},{"$f":"IF('2. Assisted & Restricted Units'!P126=\"\",\"\",'2. Assisted & Restricted Units'!P126)","v":""},{"$f":"IF('2. Assisted & Restricted Units'!Q126=\"\",\"\",'2. Assisted & Restricted Units'!Q126)","v":""},{"$f":"IF('2. Assisted & Restricted Units'!R126=\"\",\"\",'2. Assisted & Restricted Units'!R126)","v":""},{"$f":"IF(A126=\"\",\"\",'1. Checklist & Certification'!$K$1)","v":""},{"$f":"IF(A126=\"\",\"\",'1. Checklist & Certification'!$C$62)","v":""},{"$f":"IF(A126=\"\",\"\",'1. Checklist & Certification'!$K$62)","v":""},{"$f":"IF(A126=\"\",\"\",'1. Checklist & Certification'!$C$6)","v":""},{"$f":"IF(A126=\"\",\"\",'1. Checklist & Certification'!$G$4)","v":""},{"$f":"IF(A126=\"\",\"\",'1. Checklist & Certification'!$C$7)","v":""},{"$f":"IF(A126=\"\",\"\",'1. Checklist & Certification'!$C$8)","v":""},{"$f":"IF(A126=\"\",\"\",'1. Checklist & Certification'!$F$7)","v":""},{"$f":"IF(A126=\"\",\"\",'1. Checklist & Certification'!$F$8)","v":""},{"$f":"IF(A126=\"\",\"\",'1. Checklist & Certification'!$B$9)","v":""},{"$f":"IF(A126=\"\",\"\",'1. Checklist & Certification'!$F$9)","v":""},{"$f":"IF(A126=\"\",\"\",'1. Checklist & Certification'!$C$10)","v":""},{"$f":"IF(A126=\"\",\"\",'1. Checklist & Certification'!$C$11)","v":""},{"$f":"IF(A126=\"\",\"\",'1. Checklist & Certification'!$C$12)","v":""},{"$f":"IF(A126=\"\",\"\",'1. Checklist & Certification'!$B$14)","v":""},{"$f":"IF(A126=\"\",\"\",'1. Checklist & Certification'!$E$14)","v":""},{"$f":"IF(B126=\"\",\"\",'1. Checklist & Certification'!$G$14)","v":""},{"$f":"IF(A126=\"\",\"\",'MHP Family Income & Rent Limits'!$B$3)","v":""},{"$f":"IF(A126=\"\",\"\",'MHP Family Income & Rent Limits'!$J$3)","v":""},{"$f":"IF(A126=\"\",\"\",'MHP Family Income & Rent Limits'!$E$4)","v":""},{"$f":"IF(A126=\"\",\"\",'MHP Family Income & Rent Limits'!$C$7)","v":""},{"$f":"IF(A126=\"\",\"\",'MHP Family Income & Rent Limits'!$F$8)","v":""},{"$f":"IF(A126=\"\",\"\",'1. Checklist & Certification'!$G$4)","v":""},{"$f":"IF(A126=\"\",\"\",'1. Checklist & Certification'!$K$39)","v":""},{"$f":"IF(A126=\"\",\"\",'1. Checklist & Certification'!$K$43)","v":""},{"$f":"IF(A126=\"\",\"\",'1. Checklist & Certification'!$K$45)","v":""},{"$f":"IF(A126=\"\",\"\",'1. Checklist & Certification'!$K$49)","v":""},{"$f":"IF(A126=\"\",\"\",'1. Checklist & Certification'!$E$66)","v":""},{"$f":"IF(A126=\"\",\"\",'1. Checklist & Certification'!$E$67)","v":""},{"$f":"IF(A126=\"\",\"\",'1. Checklist & Certification'!$E$68)","v":""},{"$f":"IF(A126=\"\",\"\",'1. Checklist & Certification'!$G$66)","v":""},{"$f":"IF(A126=\"\",\"\",'1. Checklist & Certification'!$H$66)","v":""},{"$f":"IF(A126=\"\",\"\",'1. Checklist & Certification'!$I$66)","v":""},{"$f":"IF(A126=\"\",\"\",'1. Checklist & Certification'!$I$67)","v":""},{"$f":"IF(A126=\"\",\"\",'1. Checklist & Certification'!$I$68)","v":""},null,{"$f":"IF(C126=\"\",\"\",HLOOKUP(C126,'MHP Family Income & Rent Limits'!$E$12:$L$26,2,FALSE))","v":""},{"$f":"IF(C126=\"\",\"\",HLOOKUP(C126,'MHP Family Income & Rent Limits'!$E$12:$L$26,3,FALSE))","v":""},{"$f":"IF(C126=\"\",\"\",HLOOKUP(C126,'MHP Family Income & Rent Limits'!$E$12:$L$26,4,FALSE))","v":""},{"$f":"IF(C126=\"\",\"\",HLOOKUP(C126,'MHP Family Income & Rent Limits'!$E$12:$L$26,5,FALSE))","v":""},{"$f":"IF(C126=\"\",\"\",HLOOKUP(C126,'MHP Family Income & Rent Limits'!$E$12:$L$26,6,FALSE))","v":""},{"$f":"IF(C126=\"\",\"\",HLOOKUP(C126,'MHP Family Income & Rent Limits'!$E$12:$L$26,7,FALSE))","v":""},{"$f":"IF(C126=\"\",\"\",HLOOKUP(C126,'MHP Family Income & Rent Limits'!$E$12:$L$26,8,FALSE))","v":""},{"$f":"IF(C126=\"\",\"\",HLOOKUP(C126,'MHP Family Income & Rent Limits'!$E$12:$L$26,9,FALSE))","v":""},{"$f":"IF(C126=\"\",\"\",HLOOKUP(C126,'MHP Family Income & Rent Limits'!$E$12:$L$26,10,FALSE))","v":""},{"$f":"IF(C126=\"\",\"\",HLOOKUP(C126,'MHP Family Income & Rent Limits'!$E$12:$L$26,11,FALSE))","v":""},{"$f":"IF(C126=\"\",\"\",HLOOKUP(C126,'MHP Family Income & Rent Limits'!$E$12:$L$26,12,FALSE))","v":""},{"$f":"IF(C126=\"\",\"\",HLOOKUP(C126,'MHP Family Income & Rent Limits'!$E$12:$L$26,13,FALSE))","v":""},{"$f":"IF(C126=\"\",\"\",HLOOKUP(C126,'MHP Family Income & Rent Limits'!$E$12:$L$26,14,FALSE))","v":""},{"$f":"IF(C126=\"\",\"\",HLOOKUP(C126,'MHP Family Income & Rent Limits'!$E$12:$L$26,15,FALSE))","v":""}]
[{"$f":"IF('2. Assisted & Restricted Units'!A127=\"\",\"\",'2. Assisted & Restricted Units'!A127)","v":""},{"$f":"IF('2. Assisted & Restricted Units'!B127=\"\",\"\",'2. Assisted & Restricted Units'!B127)","v":""},{"$f":"IF('2. Assisted & Restricted Units'!D127=\"\",\"\",'2. Assisted & Restricted Units'!D127)","v":""},{"$f":"IF('2. Assisted & Restricted Units'!E127=\"\",\"\",'2. Assisted & Restricted Units'!E127)","v":""},{"$f":"IF('2. Assisted & Restricted Units'!H127=\"\",\"\",'2. Assisted & Restricted Units'!H127)","v":""},{"$f":"_xlfn.IFS(E127=\"\",\"\",E127>BO127,$BP$6,E127>BN127,$BO$6,E127>BM127,$BN$6,E127>BL127,$BM$6,E127>BK127,$BL$6,E127>BJ127,$BK$6,E127>BI127,$BJ$6,E127>BH127,$BI$6,E127>BG127,$BH$6,E127>BF127,$BG$6,E127>BE127,$BF$6,E127>BD127,$BE$6,E127>BC127,$BD$6,E127>=0,$BC$6)","v":""},{"$f":"IF('2. Assisted & Restricted Units'!T127=\"\",\"\",'2. Assisted & Restricted Units'!T127)","v":""},{"$f":"IF('2. Assisted & Restricted Units'!I127=\"\",\"\",'2. Assisted & Restricted Units'!I127)","v":""},{"$f":"IF('2. Assisted & Restricted Units'!AP127=\"\",\"\",'2. Assisted & Restricted Units'!AP127)","v":0},{"$f":"IF('2. Assisted & Restricted Units'!AT127=\"\",\"\",'2. Assisted & Restricted Units'!AT127)","v":""},0,{"$f":"IF('2. Assisted & Restricted Units'!AV127=\"\",\"\",'2. Assisted & Restricted Units'!AV127)","v":""},{"$f":"IF('2. Assisted & Restricted Units'!L127=\"\",\"\",'2. Assisted & Restricted Units'!L127)","v":""},{"$f":"IF('2. Assisted & Restricted Units'!M127=\"\",\"\",'2. Assisted & Restricted Units'!M127)","v":""},{"$f":"IF('2. Assisted & Restricted Units'!O127=\"\",\"\",'2. Assisted & Restricted Units'!O127)","v":""},{"$f":"IF('2. Assisted & Restricted Units'!P127=\"\",\"\",'2. Assisted & Restricted Units'!P127)","v":""},{"$f":"IF('2. Assisted & Restricted Units'!Q127=\"\",\"\",'2. Assisted & Restricted Units'!Q127)","v":""},{"$f":"IF('2. Assisted & Restricted Units'!R127=\"\",\"\",'2. Assisted & Restricted Units'!R127)","v":""},{"$f":"IF(A127=\"\",\"\",'1. Checklist & Certification'!$K$1)","v":""},{"$f":"IF(A127=\"\",\"\",'1. Checklist & Certification'!$C$62)","v":""},{"$f":"IF(A127=\"\",\"\",'1. Checklist & Certification'!$K$62)","v":""},{"$f":"IF(A127=\"\",\"\",'1. Checklist & Certification'!$C$6)","v":""},{"$f":"IF(A127=\"\",\"\",'1. Checklist & Certification'!$G$4)","v":""},{"$f":"IF(A127=\"\",\"\",'1. Checklist & Certification'!$C$7)","v":""},{"$f":"IF(A127=\"\",\"\",'1. Checklist & Certification'!$C$8)","v":""},{"$f":"IF(A127=\"\",\"\",'1. Checklist & Certification'!$F$7)","v":""},{"$f":"IF(A127=\"\",\"\",'1. Checklist & Certification'!$F$8)","v":""},{"$f":"IF(A127=\"\",\"\",'1. Checklist & Certification'!$B$9)","v":""},{"$f":"IF(A127=\"\",\"\",'1. Checklist & Certification'!$F$9)","v":""},{"$f":"IF(A127=\"\",\"\",'1. Checklist & Certification'!$C$10)","v":""},{"$f":"IF(A127=\"\",\"\",'1. Checklist & Certification'!$C$11)","v":""},{"$f":"IF(A127=\"\",\"\",'1. Checklist & Certification'!$C$12)","v":""},{"$f":"IF(A127=\"\",\"\",'1. Checklist & Certification'!$B$14)","v":""},{"$f":"IF(A127=\"\",\"\",'1. Checklist & Certification'!$E$14)","v":""},{"$f":"IF(B127=\"\",\"\",'1. Checklist & Certification'!$G$14)","v":""},{"$f":"IF(A127=\"\",\"\",'MHP Family Income & Rent Limits'!$B$3)","v":""},{"$f":"IF(A127=\"\",\"\",'MHP Family Income & Rent Limits'!$J$3)","v":""},{"$f":"IF(A127=\"\",\"\",'MHP Family Income & Rent Limits'!$E$4)","v":""},{"$f":"IF(A127=\"\",\"\",'MHP Family Income & Rent Limits'!$C$7)","v":""},{"$f":"IF(A127=\"\",\"\",'MHP Family Income & Rent Limits'!$F$8)","v":""},{"$f":"IF(A127=\"\",\"\",'1. Checklist & Certification'!$G$4)","v":""},{"$f":"IF(A127=\"\",\"\",'1. Checklist & Certification'!$K$39)","v":""},{"$f":"IF(A127=\"\",\"\",'1. Checklist & Certification'!$K$43)","v":""},{"$f":"IF(A127=\"\",\"\",'1. Checklist & Certification'!$K$45)","v":""},{"$f":"IF(A127=\"\",\"\",'1. Checklist & Certification'!$K$49)","v":""},{"$f":"IF(A127=\"\",\"\",'1. Checklist & Certification'!$E$66)","v":""},{"$f":"IF(A127=\"\",\"\",'1. Checklist & Certification'!$E$67)","v":""},{"$f":"IF(A127=\"\",\"\",'1. Checklist & Certification'!$E$68)","v":""},{"$f":"IF(A127=\"\",\"\",'1. Checklist & Certification'!$G$66)","v":""},{"$f":"IF(A127=\"\",\"\",'1. Checklist & Certification'!$H$66)","v":""},{"$f":"IF(A127=\"\",\"\",'1. Checklist & Certification'!$I$66)","v":""},{"$f":"IF(A127=\"\",\"\",'1. Checklist & Certification'!$I$67)","v":""},{"$f":"IF(A127=\"\",\"\",'1. Checklist & Certification'!$I$68)","v":""},null,{"$f":"IF(C127=\"\",\"\",HLOOKUP(C127,'MHP Family Income & Rent Limits'!$E$12:$L$26,2,FALSE))","v":""},{"$f":"IF(C127=\"\",\"\",HLOOKUP(C127,'MHP Family Income & Rent Limits'!$E$12:$L$26,3,FALSE))","v":""},{"$f":"IF(C127=\"\",\"\",HLOOKUP(C127,'MHP Family Income & Rent Limits'!$E$12:$L$26,4,FALSE))","v":""},{"$f":"IF(C127=\"\",\"\",HLOOKUP(C127,'MHP Family Income & Rent Limits'!$E$12:$L$26,5,FALSE))","v":""},{"$f":"IF(C127=\"\",\"\",HLOOKUP(C127,'MHP Family Income & Rent Limits'!$E$12:$L$26,6,FALSE))","v":""},{"$f":"IF(C127=\"\",\"\",HLOOKUP(C127,'MHP Family Income & Rent Limits'!$E$12:$L$26,7,FALSE))","v":""},{"$f":"IF(C127=\"\",\"\",HLOOKUP(C127,'MHP Family Income & Rent Limits'!$E$12:$L$26,8,FALSE))","v":""},{"$f":"IF(C127=\"\",\"\",HLOOKUP(C127,'MHP Family Income & Rent Limits'!$E$12:$L$26,9,FALSE))","v":""},{"$f":"IF(C127=\"\",\"\",HLOOKUP(C127,'MHP Family Income & Rent Limits'!$E$12:$L$26,10,FALSE))","v":""},{"$f":"IF(C127=\"\",\"\",HLOOKUP(C127,'MHP Family Income & Rent Limits'!$E$12:$L$26,11,FALSE))","v":""},{"$f":"IF(C127=\"\",\"\",HLOOKUP(C127,'MHP Family Income & Rent Limits'!$E$12:$L$26,12,FALSE))","v":""},{"$f":"IF(C127=\"\",\"\",HLOOKUP(C127,'MHP Family Income & Rent Limits'!$E$12:$L$26,13,FALSE))","v":""},{"$f":"IF(C127=\"\",\"\",HLOOKUP(C127,'MHP Family Income & Rent Limits'!$E$12:$L$26,14,FALSE))","v":""},{"$f":"IF(C127=\"\",\"\",HLOOKUP(C127,'MHP Family Income & Rent Limits'!$E$12:$L$26,15,FALSE))","v":""}]
[{"$f":"IF('2. Assisted & Restricted Units'!A128=\"\",\"\",'2. Assisted & Restricted Units'!A128)","v":""},{"$f":"IF('2. Assisted & Restricted Units'!B128=\"\",\"\",'2. Assisted & Restricted Units'!B128)","v":""},{"$f":"IF('2. Assisted & Restricted Units'!D128=\"\",\"\",'2. Assisted & Restricted Units'!D128)","v":""},{"$f":"IF('2. Assisted & Restricted Units'!E128=\"\",\"\",'2. Assisted & Restricted Units'!E128)","v":""},{"$f":"IF('2. Assisted & Restricted Units'!H128=\"\",\"\",'2. Assisted & Restricted Units'!H128)","v":""},{"$f":"_xlfn.IFS(E128=\"\",\"\",E128>BO128,$BP$6,E128>BN128,$BO$6,E128>BM128,$BN$6,E128>BL128,$BM$6,E128>BK128,$BL$6,E128>BJ128,$BK$6,E128>BI128,$BJ$6,E128>BH128,$BI$6,E128>BG128,$BH$6,E128>BF128,$BG$6,E128>BE128,$BF$6,E128>BD128,$BE$6,E128>BC128,$BD$6,E128>=0,$BC$6)","v":""},{"$f":"IF('2. Assisted & Restricted Units'!T128=\"\",\"\",'2. Assisted & Restricted Units'!T128)","v":""},{"$f":"IF('2. Assisted & Restricted Units'!I128=\"\",\"\",'2. Assisted & Restricted Units'!I128)","v":""},{"$f":"IF('2. Assisted & Restricted Units'!AP128=\"\",\"\",'2. Assisted & Restricted Units'!AP128)","v":0},{"$f":"IF('2. Assisted & Restricted Units'!AT128=\"\",\"\",'2. Assisted & Restricted Units'!AT128)","v":""},0,{"$f":"IF('2. Assisted & Restricted Units'!AV128=\"\",\"\",'2. Assisted & Restricted Units'!AV128)","v":""},{"$f":"IF('2. Assisted & Restricted Units'!L128=\"\",\"\",'2. Assisted & Restricted Units'!L128)","v":""},{"$f":"IF('2. Assisted & Restricted Units'!M128=\"\",\"\",'2. Assisted & Restricted Units'!M128)","v":""},{"$f":"IF('2. Assisted & Restricted Units'!O128=\"\",\"\",'2. Assisted & Restricted Units'!O128)","v":""},{"$f":"IF('2. Assisted & Restricted Units'!P128=\"\",\"\",'2. Assisted & Restricted Units'!P128)","v":""},{"$f":"IF('2. Assisted & Restricted Units'!Q128=\"\",\"\",'2. Assisted & Restricted Units'!Q128)","v":""},{"$f":"IF('2. Assisted & Restricted Units'!R128=\"\",\"\",'2. Assisted & Restricted Units'!R128)","v":""},{"$f":"IF(A128=\"\",\"\",'1. Checklist & Certification'!$K$1)","v":""},{"$f":"IF(A128=\"\",\"\",'1. Checklist & Certification'!$C$62)","v":""},{"$f":"IF(A128=\"\",\"\",'1. Checklist & Certification'!$K$62)","v":""},{"$f":"IF(A128=\"\",\"\",'1. Checklist & Certification'!$C$6)","v":""},{"$f":"IF(A128=\"\",\"\",'1. Checklist & Certification'!$G$4)","v":""},{"$f":"IF(A128=\"\",\"\",'1. Checklist & Certification'!$C$7)","v":""},{"$f":"IF(A128=\"\",\"\",'1. Checklist & Certification'!$C$8)","v":""},{"$f":"IF(A128=\"\",\"\",'1. Checklist & Certification'!$F$7)","v":""},{"$f":"IF(A128=\"\",\"\",'1. Checklist & Certification'!$F$8)","v":""},{"$f":"IF(A128=\"\",\"\",'1. Checklist & Certification'!$B$9)","v":""},{"$f":"IF(A128=\"\",\"\",'1. Checklist & Certification'!$F$9)","v":""},{"$f":"IF(A128=\"\",\"\",'1. Checklist & Certification'!$C$10)","v":""},{"$f":"IF(A128=\"\",\"\",'1. Checklist & Certification'!$C$11)","v":""},{"$f":"IF(A128=\"\",\"\",'1. Checklist & Certification'!$C$12)","v":""},{"$f":"IF(A128=\"\",\"\",'1. Checklist & Certification'!$B$14)","v":""},{"$f":"IF(A128=\"\",\"\",'1. Checklist & Certification'!$E$14)","v":""},{"$f":"IF(B128=\"\",\"\",'1. Checklist & Certification'!$G$14)","v":""},{"$f":"IF(A128=\"\",\"\",'MHP Family Income & Rent Limits'!$B$3)","v":""},{"$f":"IF(A128=\"\",\"\",'MHP Family Income & Rent Limits'!$J$3)","v":""},{"$f":"IF(A128=\"\",\"\",'MHP Family Income & Rent Limits'!$E$4)","v":""},{"$f":"IF(A128=\"\",\"\",'MHP Family Income & Rent Limits'!$C$7)","v":""},{"$f":"IF(A128=\"\",\"\",'MHP Family Income & Rent Limits'!$F$8)","v":""},{"$f":"IF(A128=\"\",\"\",'1. Checklist & Certification'!$G$4)","v":""},{"$f":"IF(A128=\"\",\"\",'1. Checklist & Certification'!$K$39)","v":""},{"$f":"IF(A128=\"\",\"\",'1. Checklist & Certification'!$K$43)","v":""},{"$f":"IF(A128=\"\",\"\",'1. Checklist & Certification'!$K$45)","v":""},{"$f":"IF(A128=\"\",\"\",'1. Checklist & Certification'!$K$49)","v":""},{"$f":"IF(A128=\"\",\"\",'1. Checklist & Certification'!$E$66)","v":""},{"$f":"IF(A128=\"\",\"\",'1. Checklist & Certification'!$E$67)","v":""},{"$f":"IF(A128=\"\",\"\",'1. Checklist & Certification'!$E$68)","v":""},{"$f":"IF(A128=\"\",\"\",'1. Checklist & Certification'!$G$66)","v":""},{"$f":"IF(A128=\"\",\"\",'1. Checklist & Certification'!$H$66)","v":""},{"$f":"IF(A128=\"\",\"\",'1. Checklist & Certification'!$I$66)","v":""},{"$f":"IF(A128=\"\",\"\",'1. Checklist & Certification'!$I$67)","v":""},{"$f":"IF(A128=\"\",\"\",'1. Checklist & Certification'!$I$68)","v":""},null,{"$f":"IF(C128=\"\",\"\",HLOOKUP(C128,'MHP Family Income & Rent Limits'!$E$12:$L$26,2,FALSE))","v":""},{"$f":"IF(C128=\"\",\"\",HLOOKUP(C128,'MHP Family Income & Rent Limits'!$E$12:$L$26,3,FALSE))","v":""},{"$f":"IF(C128=\"\",\"\",HLOOKUP(C128,'MHP Family Income & Rent Limits'!$E$12:$L$26,4,FALSE))","v":""},{"$f":"IF(C128=\"\",\"\",HLOOKUP(C128,'MHP Family Income & Rent Limits'!$E$12:$L$26,5,FALSE))","v":""},{"$f":"IF(C128=\"\",\"\",HLOOKUP(C128,'MHP Family Income & Rent Limits'!$E$12:$L$26,6,FALSE))","v":""},{"$f":"IF(C128=\"\",\"\",HLOOKUP(C128,'MHP Family Income & Rent Limits'!$E$12:$L$26,7,FALSE))","v":""},{"$f":"IF(C128=\"\",\"\",HLOOKUP(C128,'MHP Family Income & Rent Limits'!$E$12:$L$26,8,FALSE))","v":""},{"$f":"IF(C128=\"\",\"\",HLOOKUP(C128,'MHP Family Income & Rent Limits'!$E$12:$L$26,9,FALSE))","v":""},{"$f":"IF(C128=\"\",\"\",HLOOKUP(C128,'MHP Family Income & Rent Limits'!$E$12:$L$26,10,FALSE))","v":""},{"$f":"IF(C128=\"\",\"\",HLOOKUP(C128,'MHP Family Income & Rent Limits'!$E$12:$L$26,11,FALSE))","v":""},{"$f":"IF(C128=\"\",\"\",HLOOKUP(C128,'MHP Family Income & Rent Limits'!$E$12:$L$26,12,FALSE))","v":""},{"$f":"IF(C128=\"\",\"\",HLOOKUP(C128,'MHP Family Income & Rent Limits'!$E$12:$L$26,13,FALSE))","v":""},{"$f":"IF(C128=\"\",\"\",HLOOKUP(C128,'MHP Family Income & Rent Limits'!$E$12:$L$26,14,FALSE))","v":""},{"$f":"IF(C128=\"\",\"\",HLOOKUP(C128,'MHP Family Income & Rent Limits'!$E$12:$L$26,15,FALSE))","v":""}]
[{"$f":"IF('2. Assisted & Restricted Units'!A129=\"\",\"\",'2. Assisted & Restricted Units'!A129)","v":""},{"$f":"IF('2. Assisted & Restricted Units'!B129=\"\",\"\",'2. Assisted & Restricted Units'!B129)","v":""},{"$f":"IF('2. Assisted & Restricted Units'!D129=\"\",\"\",'2. Assisted & Restricted Units'!D129)","v":""},{"$f":"IF('2. Assisted & Restricted Units'!E129=\"\",\"\",'2. Assisted & Restricted Units'!E129)","v":""},{"$f":"IF('2. Assisted & Restricted Units'!H129=\"\",\"\",'2. Assisted & Restricted Units'!H129)","v":""},{"$f":"_xlfn.IFS(E129=\"\",\"\",E129>BO129,$BP$6,E129>BN129,$BO$6,E129>BM129,$BN$6,E129>BL129,$BM$6,E129>BK129,$BL$6,E129>BJ129,$BK$6,E129>BI129,$BJ$6,E129>BH129,$BI$6,E129>BG129,$BH$6,E129>BF129,$BG$6,E129>BE129,$BF$6,E129>BD129,$BE$6,E129>BC129,$BD$6,E129>=0,$BC$6)","v":""},{"$f":"IF('2. Assisted & Restricted Units'!T129=\"\",\"\",'2. Assisted & Restricted Units'!T129)","v":""},{"$f":"IF('2. Assisted & Restricted Units'!I129=\"\",\"\",'2. Assisted & Restricted Units'!I129)","v":""},{"$f":"IF('2. Assisted & Restricted Units'!AP129=\"\",\"\",'2. Assisted & Restricted Units'!AP129)","v":0},{"$f":"IF('2. Assisted & Restricted Units'!AT129=\"\",\"\",'2. Assisted & Restricted Units'!AT129)","v":""},0,{"$f":"IF('2. Assisted & Restricted Units'!AV129=\"\",\"\",'2. Assisted & Restricted Units'!AV129)","v":""},{"$f":"IF('2. Assisted & Restricted Units'!L129=\"\",\"\",'2. Assisted & Restricted Units'!L129)","v":""},{"$f":"IF('2. Assisted & Restricted Units'!M129=\"\",\"\",'2. Assisted & Restricted Units'!M129)","v":""},{"$f":"IF('2. Assisted & Restricted Units'!O129=\"\",\"\",'2. Assisted & Restricted Units'!O129)","v":""},{"$f":"IF('2. Assisted & Restricted Units'!P129=\"\",\"\",'2. Assisted & Restricted Units'!P129)","v":""},{"$f":"IF('2. Assisted & Restricted Units'!Q129=\"\",\"\",'2. Assisted & Restricted Units'!Q129)","v":""},{"$f":"IF('2. Assisted & Restricted Units'!R129=\"\",\"\",'2. Assisted & Restricted Units'!R129)","v":""},{"$f":"IF(A129=\"\",\"\",'1. Checklist & Certification'!$K$1)","v":""},{"$f":"IF(A129=\"\",\"\",'1. Checklist & Certification'!$C$62)","v":""},{"$f":"IF(A129=\"\",\"\",'1. Checklist & Certification'!$K$62)","v":""},{"$f":"IF(A129=\"\",\"\",'1. Checklist & Certification'!$C$6)","v":""},{"$f":"IF(A129=\"\",\"\",'1. Checklist & Certification'!$G$4)","v":""},{"$f":"IF(A129=\"\",\"\",'1. Checklist & Certification'!$C$7)","v":""},{"$f":"IF(A129=\"\",\"\",'1. Checklist & Certification'!$C$8)","v":""},{"$f":"IF(A129=\"\",\"\",'1. Checklist & Certification'!$F$7)","v":""},{"$f":"IF(A129=\"\",\"\",'1. Checklist & Certification'!$F$8)","v":""},{"$f":"IF(A129=\"\",\"\",'1. Checklist & Certification'!$B$9)","v":""},{"$f":"IF(A129=\"\",\"\",'1. Checklist & Certification'!$F$9)","v":""},{"$f":"IF(A129=\"\",\"\",'1. Checklist & Certification'!$C$10)","v":""},{"$f":"IF(A129=\"\",\"\",'1. Checklist & Certification'!$C$11)","v":""},{"$f":"IF(A129=\"\",\"\",'1. Checklist & Certification'!$C$12)","v":""},{"$f":"IF(A129=\"\",\"\",'1. Checklist & Certification'!$B$14)","v":""},{"$f":"IF(A129=\"\",\"\",'1. Checklist & Certification'!$E$14)","v":""},{"$f":"IF(B129=\"\",\"\",'1. Checklist & Certification'!$G$14)","v":""},{"$f":"IF(A129=\"\",\"\",'MHP Family Income & Rent Limits'!$B$3)","v":""},{"$f":"IF(A129=\"\",\"\",'MHP Family Income & Rent Limits'!$J$3)","v":""},{"$f":"IF(A129=\"\",\"\",'MHP Family Income & Rent Limits'!$E$4)","v":""},{"$f":"IF(A129=\"\",\"\",'MHP Family Income & Rent Limits'!$C$7)","v":""},{"$f":"IF(A129=\"\",\"\",'MHP Family Income & Rent Limits'!$F$8)","v":""},{"$f":"IF(A129=\"\",\"\",'1. Checklist & Certification'!$G$4)","v":""},{"$f":"IF(A129=\"\",\"\",'1. Checklist & Certification'!$K$39)","v":""},{"$f":"IF(A129=\"\",\"\",'1. Checklist & Certification'!$K$43)","v":""},{"$f":"IF(A129=\"\",\"\",'1. Checklist & Certification'!$K$45)","v":""},{"$f":"IF(A129=\"\",\"\",'1. Checklist & Certification'!$K$49)","v":""},{"$f":"IF(A129=\"\",\"\",'1. Checklist & Certification'!$E$66)","v":""},{"$f":"IF(A129=\"\",\"\",'1. Checklist & Certification'!$E$67)","v":""},{"$f":"IF(A129=\"\",\"\",'1. Checklist & Certification'!$E$68)","v":""},{"$f":"IF(A129=\"\",\"\",'1. Checklist & Certification'!$G$66)","v":""},{"$f":"IF(A129=\"\",\"\",'1. Checklist & Certification'!$H$66)","v":""},{"$f":"IF(A129=\"\",\"\",'1. Checklist & Certification'!$I$66)","v":""},{"$f":"IF(A129=\"\",\"\",'1. Checklist & Certification'!$I$67)","v":""},{"$f":"IF(A129=\"\",\"\",'1. Checklist & Certification'!$I$68)","v":""},null,{"$f":"IF(C129=\"\",\"\",HLOOKUP(C129,'MHP Family Income & Rent Limits'!$E$12:$L$26,2,FALSE))","v":""},{"$f":"IF(C129=\"\",\"\",HLOOKUP(C129,'MHP Family Income & Rent Limits'!$E$12:$L$26,3,FALSE))","v":""},{"$f":"IF(C129=\"\",\"\",HLOOKUP(C129,'MHP Family Income & Rent Limits'!$E$12:$L$26,4,FALSE))","v":""},{"$f":"IF(C129=\"\",\"\",HLOOKUP(C129,'MHP Family Income & Rent Limits'!$E$12:$L$26,5,FALSE))","v":""},{"$f":"IF(C129=\"\",\"\",HLOOKUP(C129,'MHP Family Income & Rent Limits'!$E$12:$L$26,6,FALSE))","v":""},{"$f":"IF(C129=\"\",\"\",HLOOKUP(C129,'MHP Family Income & Rent Limits'!$E$12:$L$26,7,FALSE))","v":""},{"$f":"IF(C129=\"\",\"\",HLOOKUP(C129,'MHP Family Income & Rent Limits'!$E$12:$L$26,8,FALSE))","v":""},{"$f":"IF(C129=\"\",\"\",HLOOKUP(C129,'MHP Family Income & Rent Limits'!$E$12:$L$26,9,FALSE))","v":""},{"$f":"IF(C129=\"\",\"\",HLOOKUP(C129,'MHP Family Income & Rent Limits'!$E$12:$L$26,10,FALSE))","v":""},{"$f":"IF(C129=\"\",\"\",HLOOKUP(C129,'MHP Family Income & Rent Limits'!$E$12:$L$26,11,FALSE))","v":""},{"$f":"IF(C129=\"\",\"\",HLOOKUP(C129,'MHP Family Income & Rent Limits'!$E$12:$L$26,12,FALSE))","v":""},{"$f":"IF(C129=\"\",\"\",HLOOKUP(C129,'MHP Family Income & Rent Limits'!$E$12:$L$26,13,FALSE))","v":""},{"$f":"IF(C129=\"\",\"\",HLOOKUP(C129,'MHP Family Income & Rent Limits'!$E$12:$L$26,14,FALSE))","v":""},{"$f":"IF(C129=\"\",\"\",HLOOKUP(C129,'MHP Family Income & Rent Limits'!$E$12:$L$26,15,FALSE))","v":""}]
[{"$f":"IF('2. Assisted & Restricted Units'!A130=\"\",\"\",'2. Assisted & Restricted Units'!A130)","v":""},{"$f":"IF('2. Assisted & Restricted Units'!B130=\"\",\"\",'2. Assisted & Restricted Units'!B130)","v":""},{"$f":"IF('2. Assisted & Restricted Units'!D130=\"\",\"\",'2. Assisted & Restricted Units'!D130)","v":""},{"$f":"IF('2. Assisted & Restricted Units'!E130=\"\",\"\",'2. Assisted & Restricted Units'!E130)","v":""},{"$f":"IF('2. Assisted & Restricted Units'!H130=\"\",\"\",'2. Assisted & Restricted Units'!H130)","v":""},{"$f":"_xlfn.IFS(E130=\"\",\"\",E130>BO130,$BP$6,E130>BN130,$BO$6,E130>BM130,$BN$6,E130>BL130,$BM$6,E130>BK130,$BL$6,E130>BJ130,$BK$6,E130>BI130,$BJ$6,E130>BH130,$BI$6,E130>BG130,$BH$6,E130>BF130,$BG$6,E130>BE130,$BF$6,E130>BD130,$BE$6,E130>BC130,$BD$6,E130>=0,$BC$6)","v":""},{"$f":"IF('2. Assisted & Restricted Units'!T130=\"\",\"\",'2. Assisted & Restricted Units'!T130)","v":""},{"$f":"IF('2. Assisted & Restricted Units'!I130=\"\",\"\",'2. Assisted & Restricted Units'!I130)","v":""},{"$f":"IF('2. Assisted & Restricted Units'!AP130=\"\",\"\",'2. Assisted & Restricted Units'!AP130)","v":0},{"$f":"IF('2. Assisted & Restricted Units'!AT130=\"\",\"\",'2. Assisted & Restricted Units'!AT130)","v":""},0,{"$f":"IF('2. Assisted & Restricted Units'!AV130=\"\",\"\",'2. Assisted & Restricted Units'!AV130)","v":""},{"$f":"IF('2. Assisted & Restricted Units'!L130=\"\",\"\",'2. Assisted & Restricted Units'!L130)","v":""},{"$f":"IF('2. Assisted & Restricted Units'!M130=\"\",\"\",'2. Assisted & Restricted Units'!M130)","v":""},{"$f":"IF('2. Assisted & Restricted Units'!O130=\"\",\"\",'2. Assisted & Restricted Units'!O130)","v":""},{"$f":"IF('2. Assisted & Restricted Units'!P130=\"\",\"\",'2. Assisted & Restricted Units'!P130)","v":""},{"$f":"IF('2. Assisted & Restricted Units'!Q130=\"\",\"\",'2. Assisted & Restricted Units'!Q130)","v":""},{"$f":"IF('2. Assisted & Restricted Units'!R130=\"\",\"\",'2. Assisted & Restricted Units'!R130)","v":""},{"$f":"IF(A130=\"\",\"\",'1. Checklist & Certification'!$K$1)","v":""},{"$f":"IF(A130=\"\",\"\",'1. Checklist & Certification'!$C$62)","v":""},{"$f":"IF(A130=\"\",\"\",'1. Checklist & Certification'!$K$62)","v":""},{"$f":"IF(A130=\"\",\"\",'1. Checklist & Certification'!$C$6)","v":""},{"$f":"IF(A130=\"\",\"\",'1. Checklist & Certification'!$G$4)","v":""},{"$f":"IF(A130=\"\",\"\",'1. Checklist & Certification'!$C$7)","v":""},{"$f":"IF(A130=\"\",\"\",'1. Checklist & Certification'!$C$8)","v":""},{"$f":"IF(A130=\"\",\"\",'1. Checklist & Certification'!$F$7)","v":""},{"$f":"IF(A130=\"\",\"\",'1. Checklist & Certification'!$F$8)","v":""},{"$f":"IF(A130=\"\",\"\",'1. Checklist & Certification'!$B$9)","v":""},{"$f":"IF(A130=\"\",\"\",'1. Checklist & Certification'!$F$9)","v":""},{"$f":"IF(A130=\"\",\"\",'1. Checklist & Certification'!$C$10)","v":""},{"$f":"IF(A130=\"\",\"\",'1. Checklist & Certification'!$C$11)","v":""},{"$f":"IF(A130=\"\",\"\",'1. Checklist & Certification'!$C$12)","v":""},{"$f":"IF(A130=\"\",\"\",'1. Checklist & Certification'!$B$14)","v":""},{"$f":"IF(A130=\"\",\"\",'1. Checklist & Certification'!$E$14)","v":""},{"$f":"IF(B130=\"\",\"\",'1. Checklist & Certification'!$G$14)","v":""},{"$f":"IF(A130=\"\",\"\",'MHP Family Income & Rent Limits'!$B$3)","v":""},{"$f":"IF(A130=\"\",\"\",'MHP Family Income & Rent Limits'!$J$3)","v":""},{"$f":"IF(A130=\"\",\"\",'MHP Family Income & Rent Limits'!$E$4)","v":""},{"$f":"IF(A130=\"\",\"\",'MHP Family Income & Rent Limits'!$C$7)","v":""},{"$f":"IF(A130=\"\",\"\",'MHP Family Income & Rent Limits'!$F$8)","v":""},{"$f":"IF(A130=\"\",\"\",'1. Checklist & Certification'!$G$4)","v":""},{"$f":"IF(A130=\"\",\"\",'1. Checklist & Certification'!$K$39)","v":""},{"$f":"IF(A130=\"\",\"\",'1. Checklist & Certification'!$K$43)","v":""},{"$f":"IF(A130=\"\",\"\",'1. Checklist & Certification'!$K$45)","v":""},{"$f":"IF(A130=\"\",\"\",'1. Checklist & Certification'!$K$49)","v":""},{"$f":"IF(A130=\"\",\"\",'1. Checklist & Certification'!$E$66)","v":""},{"$f":"IF(A130=\"\",\"\",'1. Checklist & Certification'!$E$67)","v":""},{"$f":"IF(A130=\"\",\"\",'1. Checklist & Certification'!$E$68)","v":""},{"$f":"IF(A130=\"\",\"\",'1. Checklist & Certification'!$G$66)","v":""},{"$f":"IF(A130=\"\",\"\",'1. Checklist & Certification'!$H$66)","v":""},{"$f":"IF(A130=\"\",\"\",'1. Checklist & Certification'!$I$66)","v":""},{"$f":"IF(A130=\"\",\"\",'1. Checklist & Certification'!$I$67)","v":""},{"$f":"IF(A130=\"\",\"\",'1. Checklist & Certification'!$I$68)","v":""},null,{"$f":"IF(C130=\"\",\"\",HLOOKUP(C130,'MHP Family Income & Rent Limits'!$E$12:$L$26,2,FALSE))","v":""},{"$f":"IF(C130=\"\",\"\",HLOOKUP(C130,'MHP Family Income & Rent Limits'!$E$12:$L$26,3,FALSE))","v":""},{"$f":"IF(C130=\"\",\"\",HLOOKUP(C130,'MHP Family Income & Rent Limits'!$E$12:$L$26,4,FALSE))","v":""},{"$f":"IF(C130=\"\",\"\",HLOOKUP(C130,'MHP Family Income & Rent Limits'!$E$12:$L$26,5,FALSE))","v":""},{"$f":"IF(C130=\"\",\"\",HLOOKUP(C130,'MHP Family Income & Rent Limits'!$E$12:$L$26,6,FALSE))","v":""},{"$f":"IF(C130=\"\",\"\",HLOOKUP(C130,'MHP Family Income & Rent Limits'!$E$12:$L$26,7,FALSE))","v":""},{"$f":"IF(C130=\"\",\"\",HLOOKUP(C130,'MHP Family Income & Rent Limits'!$E$12:$L$26,8,FALSE))","v":""},{"$f":"IF(C130=\"\",\"\",HLOOKUP(C130,'MHP Family Income & Rent Limits'!$E$12:$L$26,9,FALSE))","v":""},{"$f":"IF(C130=\"\",\"\",HLOOKUP(C130,'MHP Family Income & Rent Limits'!$E$12:$L$26,10,FALSE))","v":""},{"$f":"IF(C130=\"\",\"\",HLOOKUP(C130,'MHP Family Income & Rent Limits'!$E$12:$L$26,11,FALSE))","v":""},{"$f":"IF(C130=\"\",\"\",HLOOKUP(C130,'MHP Family Income & Rent Limits'!$E$12:$L$26,12,FALSE))","v":""},{"$f":"IF(C130=\"\",\"\",HLOOKUP(C130,'MHP Family Income & Rent Limits'!$E$12:$L$26,13,FALSE))","v":""},{"$f":"IF(C130=\"\",\"\",HLOOKUP(C130,'MHP Family Income & Rent Limits'!$E$12:$L$26,14,FALSE))","v":""},{"$f":"IF(C130=\"\",\"\",HLOOKUP(C130,'MHP Family Income & Rent Limits'!$E$12:$L$26,15,FALSE))","v":""}]
[{"$f":"IF('2. Assisted & Restricted Units'!A131=\"\",\"\",'2. Assisted & Restricted Units'!A131)","v":""},{"$f":"IF('2. Assisted & Restricted Units'!B131=\"\",\"\",'2. Assisted & Restricted Units'!B131)","v":""},{"$f":"IF('2. Assisted & Restricted Units'!D131=\"\",\"\",'2. Assisted & Restricted Units'!D131)","v":""},{"$f":"IF('2. Assisted & Restricted Units'!E131=\"\",\"\",'2. Assisted & Restricted Units'!E131)","v":""},{"$f":"IF('2. Assisted & Restricted Units'!H131=\"\",\"\",'2. Assisted & Restricted Units'!H131)","v":""},{"$f":"_xlfn.IFS(E131=\"\",\"\",E131>BO131,$BP$6,E131>BN131,$BO$6,E131>BM131,$BN$6,E131>BL131,$BM$6,E131>BK131,$BL$6,E131>BJ131,$BK$6,E131>BI131,$BJ$6,E131>BH131,$BI$6,E131>BG131,$BH$6,E131>BF131,$BG$6,E131>BE131,$BF$6,E131>BD131,$BE$6,E131>BC131,$BD$6,E131>=0,$BC$6)","v":""},{"$f":"IF('2. Assisted & Restricted Units'!T131=\"\",\"\",'2. Assisted & Restricted Units'!T131)","v":""},{"$f":"IF('2. Assisted & Restricted Units'!I131=\"\",\"\",'2. Assisted & Restricted Units'!I131)","v":""},{"$f":"IF('2. Assisted & Restricted Units'!AP131=\"\",\"\",'2. Assisted & Restricted Units'!AP131)","v":0},{"$f":"IF('2. Assisted & Restricted Units'!AT131=\"\",\"\",'2. Assisted & Restricted Units'!AT131)","v":""},0,{"$f":"IF('2. Assisted & Restricted Units'!AV131=\"\",\"\",'2. Assisted & Restricted Units'!AV131)","v":""},{"$f":"IF('2. Assisted & Restricted Units'!L131=\"\",\"\",'2. Assisted & Restricted Units'!L131)","v":""},{"$f":"IF('2. Assisted & Restricted Units'!M131=\"\",\"\",'2. Assisted & Restricted Units'!M131)","v":""},{"$f":"IF('2. Assisted & Restricted Units'!O131=\"\",\"\",'2. Assisted & Restricted Units'!O131)","v":""},{"$f":"IF('2. Assisted & Restricted Units'!P131=\"\",\"\",'2. Assisted & Restricted Units'!P131)","v":""},{"$f":"IF('2. Assisted & Restricted Units'!Q131=\"\",\"\",'2. Assisted & Restricted Units'!Q131)","v":""},{"$f":"IF('2. Assisted & Restricted Units'!R131=\"\",\"\",'2. Assisted & Restricted Units'!R131)","v":""},{"$f":"IF(A131=\"\",\"\",'1. Checklist & Certification'!$K$1)","v":""},{"$f":"IF(A131=\"\",\"\",'1. Checklist & Certification'!$C$62)","v":""},{"$f":"IF(A131=\"\",\"\",'1. Checklist & Certification'!$K$62)","v":""},{"$f":"IF(A131=\"\",\"\",'1. Checklist & Certification'!$C$6)","v":""},{"$f":"IF(A131=\"\",\"\",'1. Checklist & Certification'!$G$4)","v":""},{"$f":"IF(A131=\"\",\"\",'1. Checklist & Certification'!$C$7)","v":""},{"$f":"IF(A131=\"\",\"\",'1. Checklist & Certification'!$C$8)","v":""},{"$f":"IF(A131=\"\",\"\",'1. Checklist & Certification'!$F$7)","v":""},{"$f":"IF(A131=\"\",\"\",'1. Checklist & Certification'!$F$8)","v":""},{"$f":"IF(A131=\"\",\"\",'1. Checklist & Certification'!$B$9)","v":""},{"$f":"IF(A131=\"\",\"\",'1. Checklist & Certification'!$F$9)","v":""},{"$f":"IF(A131=\"\",\"\",'1. Checklist & Certification'!$C$10)","v":""},{"$f":"IF(A131=\"\",\"\",'1. Checklist & Certification'!$C$11)","v":""},{"$f":"IF(A131=\"\",\"\",'1. Checklist & Certification'!$C$12)","v":""},{"$f":"IF(A131=\"\",\"\",'1. Checklist & Certification'!$B$14)","v":""},{"$f":"IF(A131=\"\",\"\",'1. Checklist & Certification'!$E$14)","v":""},{"$f":"IF(B131=\"\",\"\",'1. Checklist & Certification'!$G$14)","v":""},{"$f":"IF(A131=\"\",\"\",'MHP Family Income & Rent Limits'!$B$3)","v":""},{"$f":"IF(A131=\"\",\"\",'MHP Family Income & Rent Limits'!$J$3)","v":""},{"$f":"IF(A131=\"\",\"\",'MHP Family Income & Rent Limits'!$E$4)","v":""},{"$f":"IF(A131=\"\",\"\",'MHP Family Income & Rent Limits'!$C$7)","v":""},{"$f":"IF(A131=\"\",\"\",'MHP Family Income & Rent Limits'!$F$8)","v":""},{"$f":"IF(A131=\"\",\"\",'1. Checklist & Certification'!$G$4)","v":""},{"$f":"IF(A131=\"\",\"\",'1. Checklist & Certification'!$K$39)","v":""},{"$f":"IF(A131=\"\",\"\",'1. Checklist & Certification'!$K$43)","v":""},{"$f":"IF(A131=\"\",\"\",'1. Checklist & Certification'!$K$45)","v":""},{"$f":"IF(A131=\"\",\"\",'1. Checklist & Certification'!$K$49)","v":""},{"$f":"IF(A131=\"\",\"\",'1. Checklist & Certification'!$E$66)","v":""},{"$f":"IF(A131=\"\",\"\",'1. Checklist & Certification'!$E$67)","v":""},{"$f":"IF(A131=\"\",\"\",'1. Checklist & Certification'!$E$68)","v":""},{"$f":"IF(A131=\"\",\"\",'1. Checklist & Certification'!$G$66)","v":""},{"$f":"IF(A131=\"\",\"\",'1. Checklist & Certification'!$H$66)","v":""},{"$f":"IF(A131=\"\",\"\",'1. Checklist & Certification'!$I$66)","v":""},{"$f":"IF(A131=\"\",\"\",'1. Checklist & Certification'!$I$67)","v":""},{"$f":"IF(A131=\"\",\"\",'1. Checklist & Certification'!$I$68)","v":""},null,{"$f":"IF(C131=\"\",\"\",HLOOKUP(C131,'MHP Family Income & Rent Limits'!$E$12:$L$26,2,FALSE))","v":""},{"$f":"IF(C131=\"\",\"\",HLOOKUP(C131,'MHP Family Income & Rent Limits'!$E$12:$L$26,3,FALSE))","v":""},{"$f":"IF(C131=\"\",\"\",HLOOKUP(C131,'MHP Family Income & Rent Limits'!$E$12:$L$26,4,FALSE))","v":""},{"$f":"IF(C131=\"\",\"\",HLOOKUP(C131,'MHP Family Income & Rent Limits'!$E$12:$L$26,5,FALSE))","v":""},{"$f":"IF(C131=\"\",\"\",HLOOKUP(C131,'MHP Family Income & Rent Limits'!$E$12:$L$26,6,FALSE))","v":""},{"$f":"IF(C131=\"\",\"\",HLOOKUP(C131,'MHP Family Income & Rent Limits'!$E$12:$L$26,7,FALSE))","v":""},{"$f":"IF(C131=\"\",\"\",HLOOKUP(C131,'MHP Family Income & Rent Limits'!$E$12:$L$26,8,FALSE))","v":""},{"$f":"IF(C131=\"\",\"\",HLOOKUP(C131,'MHP Family Income & Rent Limits'!$E$12:$L$26,9,FALSE))","v":""},{"$f":"IF(C131=\"\",\"\",HLOOKUP(C131,'MHP Family Income & Rent Limits'!$E$12:$L$26,10,FALSE))","v":""},{"$f":"IF(C131=\"\",\"\",HLOOKUP(C131,'MHP Family Income & Rent Limits'!$E$12:$L$26,11,FALSE))","v":""},{"$f":"IF(C131=\"\",\"\",HLOOKUP(C131,'MHP Family Income & Rent Limits'!$E$12:$L$26,12,FALSE))","v":""},{"$f":"IF(C131=\"\",\"\",HLOOKUP(C131,'MHP Family Income & Rent Limits'!$E$12:$L$26,13,FALSE))","v":""},{"$f":"IF(C131=\"\",\"\",HLOOKUP(C131,'MHP Family Income & Rent Limits'!$E$12:$L$26,14,FALSE))","v":""},{"$f":"IF(C131=\"\",\"\",HLOOKUP(C131,'MHP Family Income & Rent Limits'!$E$12:$L$26,15,FALSE))","v":""}]
[{"$f":"IF('2. Assisted & Restricted Units'!A132=\"\",\"\",'2. Assisted & Restricted Units'!A132)","v":""},{"$f":"IF('2. Assisted & Restricted Units'!B132=\"\",\"\",'2. Assisted & Restricted Units'!B132)","v":""},{"$f":"IF('2. Assisted & Restricted Units'!D132=\"\",\"\",'2. Assisted & Restricted Units'!D132)","v":""},{"$f":"IF('2. Assisted & Restricted Units'!E132=\"\",\"\",'2. Assisted & Restricted Units'!E132)","v":""},{"$f":"IF('2. Assisted & Restricted Units'!H132=\"\",\"\",'2. Assisted & Restricted Units'!H132)","v":""},{"$f":"_xlfn.IFS(E132=\"\",\"\",E132>BO132,$BP$6,E132>BN132,$BO$6,E132>BM132,$BN$6,E132>BL132,$BM$6,E132>BK132,$BL$6,E132>BJ132,$BK$6,E132>BI132,$BJ$6,E132>BH132,$BI$6,E132>BG132,$BH$6,E132>BF132,$BG$6,E132>BE132,$BF$6,E132>BD132,$BE$6,E132>BC132,$BD$6,E132>=0,$BC$6)","v":""},{"$f":"IF('2. Assisted & Restricted Units'!T132=\"\",\"\",'2. Assisted & Restricted Units'!T132)","v":""},{"$f":"IF('2. Assisted & Restricted Units'!I132=\"\",\"\",'2. Assisted & Restricted Units'!I132)","v":""},{"$f":"IF('2. Assisted & Restricted Units'!AP132=\"\",\"\",'2. Assisted & Restricted Units'!AP132)","v":0},{"$f":"IF('2. Assisted & Restricted Units'!AT132=\"\",\"\",'2. Assisted & Restricted Units'!AT132)","v":""},0,{"$f":"IF('2. Assisted & Restricted Units'!AV132=\"\",\"\",'2. Assisted & Restricted Units'!AV132)","v":""},{"$f":"IF('2. Assisted & Restricted Units'!L132=\"\",\"\",'2. Assisted & Restricted Units'!L132)","v":""},{"$f":"IF('2. Assisted & Restricted Units'!M132=\"\",\"\",'2. Assisted & Restricted Units'!M132)","v":""},{"$f":"IF('2. Assisted & Restricted Units'!O132=\"\",\"\",'2. Assisted & Restricted Units'!O132)","v":""},{"$f":"IF('2. Assisted & Restricted Units'!P132=\"\",\"\",'2. Assisted & Restricted Units'!P132)","v":""},{"$f":"IF('2. Assisted & Restricted Units'!Q132=\"\",\"\",'2. Assisted & Restricted Units'!Q132)","v":""},{"$f":"IF('2. Assisted & Restricted Units'!R132=\"\",\"\",'2. Assisted & Restricted Units'!R132)","v":""},{"$f":"IF(A132=\"\",\"\",'1. Checklist & Certification'!$K$1)","v":""},{"$f":"IF(A132=\"\",\"\",'1. Checklist & Certification'!$C$62)","v":""},{"$f":"IF(A132=\"\",\"\",'1. Checklist & Certification'!$K$62)","v":""},{"$f":"IF(A132=\"\",\"\",'1. Checklist & Certification'!$C$6)","v":""},{"$f":"IF(A132=\"\",\"\",'1. Checklist & Certification'!$G$4)","v":""},{"$f":"IF(A132=\"\",\"\",'1. Checklist & Certification'!$C$7)","v":""},{"$f":"IF(A132=\"\",\"\",'1. Checklist & Certification'!$C$8)","v":""},{"$f":"IF(A132=\"\",\"\",'1. Checklist & Certification'!$F$7)","v":""},{"$f":"IF(A132=\"\",\"\",'1. Checklist & Certification'!$F$8)","v":""},{"$f":"IF(A132=\"\",\"\",'1. Checklist & Certification'!$B$9)","v":""},{"$f":"IF(A132=\"\",\"\",'1. Checklist & Certification'!$F$9)","v":""},{"$f":"IF(A132=\"\",\"\",'1. Checklist & Certification'!$C$10)","v":""},{"$f":"IF(A132=\"\",\"\",'1. Checklist & Certification'!$C$11)","v":""},{"$f":"IF(A132=\"\",\"\",'1. Checklist & Certification'!$C$12)","v":""},{"$f":"IF(A132=\"\",\"\",'1. Checklist & Certification'!$B$14)","v":""},{"$f":"IF(A132=\"\",\"\",'1. Checklist & Certification'!$E$14)","v":""},{"$f":"IF(B132=\"\",\"\",'1. Checklist & Certification'!$G$14)","v":""},{"$f":"IF(A132=\"\",\"\",'MHP Family Income & Rent Limits'!$B$3)","v":""},{"$f":"IF(A132=\"\",\"\",'MHP Family Income & Rent Limits'!$J$3)","v":""},{"$f":"IF(A132=\"\",\"\",'MHP Family Income & Rent Limits'!$E$4)","v":""},{"$f":"IF(A132=\"\",\"\",'MHP Family Income & Rent Limits'!$C$7)","v":""},{"$f":"IF(A132=\"\",\"\",'MHP Family Income & Rent Limits'!$F$8)","v":""},{"$f":"IF(A132=\"\",\"\",'1. Checklist & Certification'!$G$4)","v":""},{"$f":"IF(A132=\"\",\"\",'1. Checklist & Certification'!$K$39)","v":""},{"$f":"IF(A132=\"\",\"\",'1. Checklist & Certification'!$K$43)","v":""},{"$f":"IF(A132=\"\",\"\",'1. Checklist & Certification'!$K$45)","v":""},{"$f":"IF(A132=\"\",\"\",'1. Checklist & Certification'!$K$49)","v":""},{"$f":"IF(A132=\"\",\"\",'1. Checklist & Certification'!$E$66)","v":""},{"$f":"IF(A132=\"\",\"\",'1. Checklist & Certification'!$E$67)","v":""},{"$f":"IF(A132=\"\",\"\",'1. Checklist & Certification'!$E$68)","v":""},{"$f":"IF(A132=\"\",\"\",'1. Checklist & Certification'!$G$66)","v":""},{"$f":"IF(A132=\"\",\"\",'1. Checklist & Certification'!$H$66)","v":""},{"$f":"IF(A132=\"\",\"\",'1. Checklist & Certification'!$I$66)","v":""},{"$f":"IF(A132=\"\",\"\",'1. Checklist & Certification'!$I$67)","v":""},{"$f":"IF(A132=\"\",\"\",'1. Checklist & Certification'!$I$68)","v":""},null,{"$f":"IF(C132=\"\",\"\",HLOOKUP(C132,'MHP Family Income & Rent Limits'!$E$12:$L$26,2,FALSE))","v":""},{"$f":"IF(C132=\"\",\"\",HLOOKUP(C132,'MHP Family Income & Rent Limits'!$E$12:$L$26,3,FALSE))","v":""},{"$f":"IF(C132=\"\",\"\",HLOOKUP(C132,'MHP Family Income & Rent Limits'!$E$12:$L$26,4,FALSE))","v":""},{"$f":"IF(C132=\"\",\"\",HLOOKUP(C132,'MHP Family Income & Rent Limits'!$E$12:$L$26,5,FALSE))","v":""},{"$f":"IF(C132=\"\",\"\",HLOOKUP(C132,'MHP Family Income & Rent Limits'!$E$12:$L$26,6,FALSE))","v":""},{"$f":"IF(C132=\"\",\"\",HLOOKUP(C132,'MHP Family Income & Rent Limits'!$E$12:$L$26,7,FALSE))","v":""},{"$f":"IF(C132=\"\",\"\",HLOOKUP(C132,'MHP Family Income & Rent Limits'!$E$12:$L$26,8,FALSE))","v":""},{"$f":"IF(C132=\"\",\"\",HLOOKUP(C132,'MHP Family Income & Rent Limits'!$E$12:$L$26,9,FALSE))","v":""},{"$f":"IF(C132=\"\",\"\",HLOOKUP(C132,'MHP Family Income & Rent Limits'!$E$12:$L$26,10,FALSE))","v":""},{"$f":"IF(C132=\"\",\"\",HLOOKUP(C132,'MHP Family Income & Rent Limits'!$E$12:$L$26,11,FALSE))","v":""},{"$f":"IF(C132=\"\",\"\",HLOOKUP(C132,'MHP Family Income & Rent Limits'!$E$12:$L$26,12,FALSE))","v":""},{"$f":"IF(C132=\"\",\"\",HLOOKUP(C132,'MHP Family Income & Rent Limits'!$E$12:$L$26,13,FALSE))","v":""},{"$f":"IF(C132=\"\",\"\",HLOOKUP(C132,'MHP Family Income & Rent Limits'!$E$12:$L$26,14,FALSE))","v":""},{"$f":"IF(C132=\"\",\"\",HLOOKUP(C132,'MHP Family Income & Rent Limits'!$E$12:$L$26,15,FALSE))","v":""}]
[{"$f":"IF('2. Assisted & Restricted Units'!A133=\"\",\"\",'2. Assisted & Restricted Units'!A133)","v":""},{"$f":"IF('2. Assisted & Restricted Units'!B133=\"\",\"\",'2. Assisted & Restricted Units'!B133)","v":""},{"$f":"IF('2. Assisted & Restricted Units'!D133=\"\",\"\",'2. Assisted & Restricted Units'!D133)","v":""},{"$f":"IF('2. Assisted & Restricted Units'!E133=\"\",\"\",'2. Assisted & Restricted Units'!E133)","v":""},{"$f":"IF('2. Assisted & Restricted Units'!H133=\"\",\"\",'2. Assisted & Restricted Units'!H133)","v":""},{"$f":"_xlfn.IFS(E133=\"\",\"\",E133>BO133,$BP$6,E133>BN133,$BO$6,E133>BM133,$BN$6,E133>BL133,$BM$6,E133>BK133,$BL$6,E133>BJ133,$BK$6,E133>BI133,$BJ$6,E133>BH133,$BI$6,E133>BG133,$BH$6,E133>BF133,$BG$6,E133>BE133,$BF$6,E133>BD133,$BE$6,E133>BC133,$BD$6,E133>=0,$BC$6)","v":""},{"$f":"IF('2. Assisted & Restricted Units'!T133=\"\",\"\",'2. Assisted & Restricted Units'!T133)","v":""},{"$f":"IF('2. Assisted & Restricted Units'!I133=\"\",\"\",'2. Assisted & Restricted Units'!I133)","v":""},{"$f":"IF('2. Assisted & Restricted Units'!AP133=\"\",\"\",'2. Assisted & Restricted Units'!AP133)","v":0},{"$f":"IF('2. Assisted & Restricted Units'!AT133=\"\",\"\",'2. Assisted & Restricted Units'!AT133)","v":""},0,{"$f":"IF('2. Assisted & Restricted Units'!AV133=\"\",\"\",'2. Assisted & Restricted Units'!AV133)","v":""},{"$f":"IF('2. Assisted & Restricted Units'!L133=\"\",\"\",'2. Assisted & Restricted Units'!L133)","v":""},{"$f":"IF('2. Assisted & Restricted Units'!M133=\"\",\"\",'2. Assisted & Restricted Units'!M133)","v":""},{"$f":"IF('2. Assisted & Restricted Units'!O133=\"\",\"\",'2. Assisted & Restricted Units'!O133)","v":""},{"$f":"IF('2. Assisted & Restricted Units'!P133=\"\",\"\",'2. Assisted & Restricted Units'!P133)","v":""},{"$f":"IF('2. Assisted & Restricted Units'!Q133=\"\",\"\",'2. Assisted & Restricted Units'!Q133)","v":""},{"$f":"IF('2. Assisted & Restricted Units'!R133=\"\",\"\",'2. Assisted & Restricted Units'!R133)","v":""},{"$f":"IF(A133=\"\",\"\",'1. Checklist & Certification'!$K$1)","v":""},{"$f":"IF(A133=\"\",\"\",'1. Checklist & Certification'!$C$62)","v":""},{"$f":"IF(A133=\"\",\"\",'1. Checklist & Certification'!$K$62)","v":""},{"$f":"IF(A133=\"\",\"\",'1. Checklist & Certification'!$C$6)","v":""},{"$f":"IF(A133=\"\",\"\",'1. Checklist & Certification'!$G$4)","v":""},{"$f":"IF(A133=\"\",\"\",'1. Checklist & Certification'!$C$7)","v":""},{"$f":"IF(A133=\"\",\"\",'1. Checklist & Certification'!$C$8)","v":""},{"$f":"IF(A133=\"\",\"\",'1. Checklist & Certification'!$F$7)","v":""},{"$f":"IF(A133=\"\",\"\",'1. Checklist & Certification'!$F$8)","v":""},{"$f":"IF(A133=\"\",\"\",'1. Checklist & Certification'!$B$9)","v":""},{"$f":"IF(A133=\"\",\"\",'1. Checklist & Certification'!$F$9)","v":""},{"$f":"IF(A133=\"\",\"\",'1. Checklist & Certification'!$C$10)","v":""},{"$f":"IF(A133=\"\",\"\",'1. Checklist & Certification'!$C$11)","v":""},{"$f":"IF(A133=\"\",\"\",'1. Checklist & Certification'!$C$12)","v":""},{"$f":"IF(A133=\"\",\"\",'1. Checklist & Certification'!$B$14)","v":""},{"$f":"IF(A133=\"\",\"\",'1. Checklist & Certification'!$E$14)","v":""},{"$f":"IF(B133=\"\",\"\",'1. Checklist & Certification'!$G$14)","v":""},{"$f":"IF(A133=\"\",\"\",'MHP Family Income & Rent Limits'!$B$3)","v":""},{"$f":"IF(A133=\"\",\"\",'MHP Family Income & Rent Limits'!$J$3)","v":""},{"$f":"IF(A133=\"\",\"\",'MHP Family Income & Rent Limits'!$E$4)","v":""},{"$f":"IF(A133=\"\",\"\",'MHP Family Income & Rent Limits'!$C$7)","v":""},{"$f":"IF(A133=\"\",\"\",'MHP Family Income & Rent Limits'!$F$8)","v":""},{"$f":"IF(A133=\"\",\"\",'1. Checklist & Certification'!$G$4)","v":""},{"$f":"IF(A133=\"\",\"\",'1. Checklist & Certification'!$K$39)","v":""},{"$f":"IF(A133=\"\",\"\",'1. Checklist & Certification'!$K$43)","v":""},{"$f":"IF(A133=\"\",\"\",'1. Checklist & Certification'!$K$45)","v":""},{"$f":"IF(A133=\"\",\"\",'1. Checklist & Certification'!$K$49)","v":""},{"$f":"IF(A133=\"\",\"\",'1. Checklist & Certification'!$E$66)","v":""},{"$f":"IF(A133=\"\",\"\",'1. Checklist & Certification'!$E$67)","v":""},{"$f":"IF(A133=\"\",\"\",'1. Checklist & Certification'!$E$68)","v":""},{"$f":"IF(A133=\"\",\"\",'1. Checklist & Certification'!$G$66)","v":""},{"$f":"IF(A133=\"\",\"\",'1. Checklist & Certification'!$H$66)","v":""},{"$f":"IF(A133=\"\",\"\",'1. Checklist & Certification'!$I$66)","v":""},{"$f":"IF(A133=\"\",\"\",'1. Checklist & Certification'!$I$67)","v":""},{"$f":"IF(A133=\"\",\"\",'1. Checklist & Certification'!$I$68)","v":""},null,{"$f":"IF(C133=\"\",\"\",HLOOKUP(C133,'MHP Family Income & Rent Limits'!$E$12:$L$26,2,FALSE))","v":""},{"$f":"IF(C133=\"\",\"\",HLOOKUP(C133,'MHP Family Income & Rent Limits'!$E$12:$L$26,3,FALSE))","v":""},{"$f":"IF(C133=\"\",\"\",HLOOKUP(C133,'MHP Family Income & Rent Limits'!$E$12:$L$26,4,FALSE))","v":""},{"$f":"IF(C133=\"\",\"\",HLOOKUP(C133,'MHP Family Income & Rent Limits'!$E$12:$L$26,5,FALSE))","v":""},{"$f":"IF(C133=\"\",\"\",HLOOKUP(C133,'MHP Family Income & Rent Limits'!$E$12:$L$26,6,FALSE))","v":""},{"$f":"IF(C133=\"\",\"\",HLOOKUP(C133,'MHP Family Income & Rent Limits'!$E$12:$L$26,7,FALSE))","v":""},{"$f":"IF(C133=\"\",\"\",HLOOKUP(C133,'MHP Family Income & Rent Limits'!$E$12:$L$26,8,FALSE))","v":""},{"$f":"IF(C133=\"\",\"\",HLOOKUP(C133,'MHP Family Income & Rent Limits'!$E$12:$L$26,9,FALSE))","v":""},{"$f":"IF(C133=\"\",\"\",HLOOKUP(C133,'MHP Family Income & Rent Limits'!$E$12:$L$26,10,FALSE))","v":""},{"$f":"IF(C133=\"\",\"\",HLOOKUP(C133,'MHP Family Income & Rent Limits'!$E$12:$L$26,11,FALSE))","v":""},{"$f":"IF(C133=\"\",\"\",HLOOKUP(C133,'MHP Family Income & Rent Limits'!$E$12:$L$26,12,FALSE))","v":""},{"$f":"IF(C133=\"\",\"\",HLOOKUP(C133,'MHP Family Income & Rent Limits'!$E$12:$L$26,13,FALSE))","v":""},{"$f":"IF(C133=\"\",\"\",HLOOKUP(C133,'MHP Family Income & Rent Limits'!$E$12:$L$26,14,FALSE))","v":""},{"$f":"IF(C133=\"\",\"\",HLOOKUP(C133,'MHP Family Income & Rent Limits'!$E$12:$L$26,15,FALSE))","v":""}]
[{"$f":"IF('2. Assisted & Restricted Units'!A134=\"\",\"\",'2. Assisted & Restricted Units'!A134)","v":""},{"$f":"IF('2. Assisted & Restricted Units'!B134=\"\",\"\",'2. Assisted & Restricted Units'!B134)","v":""},{"$f":"IF('2. Assisted & Restricted Units'!D134=\"\",\"\",'2. Assisted & Restricted Units'!D134)","v":""},{"$f":"IF('2. Assisted & Restricted Units'!E134=\"\",\"\",'2. Assisted & Restricted Units'!E134)","v":""},{"$f":"IF('2. Assisted & Restricted Units'!H134=\"\",\"\",'2. Assisted & Restricted Units'!H134)","v":""},{"$f":"_xlfn.IFS(E134=\"\",\"\",E134>BO134,$BP$6,E134>BN134,$BO$6,E134>BM134,$BN$6,E134>BL134,$BM$6,E134>BK134,$BL$6,E134>BJ134,$BK$6,E134>BI134,$BJ$6,E134>BH134,$BI$6,E134>BG134,$BH$6,E134>BF134,$BG$6,E134>BE134,$BF$6,E134>BD134,$BE$6,E134>BC134,$BD$6,E134>=0,$BC$6)","v":""},{"$f":"IF('2. Assisted & Restricted Units'!T134=\"\",\"\",'2. Assisted & Restricted Units'!T134)","v":""},{"$f":"IF('2. Assisted & Restricted Units'!I134=\"\",\"\",'2. Assisted & Restricted Units'!I134)","v":""},{"$f":"IF('2. Assisted & Restricted Units'!AP134=\"\",\"\",'2. Assisted & Restricted Units'!AP134)","v":0},{"$f":"IF('2. Assisted & Restricted Units'!AT134=\"\",\"\",'2. Assisted & Restricted Units'!AT134)","v":""},0,{"$f":"IF('2. Assisted & Restricted Units'!AV134=\"\",\"\",'2. Assisted & Restricted Units'!AV134)","v":""},{"$f":"IF('2. Assisted & Restricted Units'!L134=\"\",\"\",'2. Assisted & Restricted Units'!L134)","v":""},{"$f":"IF('2. Assisted & Restricted Units'!M134=\"\",\"\",'2. Assisted & Restricted Units'!M134)","v":""},{"$f":"IF('2. Assisted & Restricted Units'!O134=\"\",\"\",'2. Assisted & Restricted Units'!O134)","v":""},{"$f":"IF('2. Assisted & Restricted Units'!P134=\"\",\"\",'2. Assisted & Restricted Units'!P134)","v":""},{"$f":"IF('2. Assisted & Restricted Units'!Q134=\"\",\"\",'2. Assisted & Restricted Units'!Q134)","v":""},{"$f":"IF('2. Assisted & Restricted Units'!R134=\"\",\"\",'2. Assisted & Restricted Units'!R134)","v":""},{"$f":"IF(A134=\"\",\"\",'1. Checklist & Certification'!$K$1)","v":""},{"$f":"IF(A134=\"\",\"\",'1. Checklist & Certification'!$C$62)","v":""},{"$f":"IF(A134=\"\",\"\",'1. Checklist & Certification'!$K$62)","v":""},{"$f":"IF(A134=\"\",\"\",'1. Checklist & Certification'!$C$6)","v":""},{"$f":"IF(A134=\"\",\"\",'1. Checklist & Certification'!$G$4)","v":""},{"$f":"IF(A134=\"\",\"\",'1. Checklist & Certification'!$C$7)","v":""},{"$f":"IF(A134=\"\",\"\",'1. Checklist & Certification'!$C$8)","v":""},{"$f":"IF(A134=\"\",\"\",'1. Checklist & Certification'!$F$7)","v":""},{"$f":"IF(A134=\"\",\"\",'1. Checklist & Certification'!$F$8)","v":""},{"$f":"IF(A134=\"\",\"\",'1. Checklist & Certification'!$B$9)","v":""},{"$f":"IF(A134=\"\",\"\",'1. Checklist & Certification'!$F$9)","v":""},{"$f":"IF(A134=\"\",\"\",'1. Checklist & Certification'!$C$10)","v":""},{"$f":"IF(A134=\"\",\"\",'1. Checklist & Certification'!$C$11)","v":""},{"$f":"IF(A134=\"\",\"\",'1. Checklist & Certification'!$C$12)","v":""},{"$f":"IF(A134=\"\",\"\",'1. Checklist & Certification'!$B$14)","v":""},{"$f":"IF(A134=\"\",\"\",'1. Checklist & Certification'!$E$14)","v":""},{"$f":"IF(B134=\"\",\"\",'1. Checklist & Certification'!$G$14)","v":""},{"$f":"IF(A134=\"\",\"\",'MHP Family Income & Rent Limits'!$B$3)","v":""},{"$f":"IF(A134=\"\",\"\",'MHP Family Income & Rent Limits'!$J$3)","v":""},{"$f":"IF(A134=\"\",\"\",'MHP Family Income & Rent Limits'!$E$4)","v":""},{"$f":"IF(A134=\"\",\"\",'MHP Family Income & Rent Limits'!$C$7)","v":""},{"$f":"IF(A134=\"\",\"\",'MHP Family Income & Rent Limits'!$F$8)","v":""},{"$f":"IF(A134=\"\",\"\",'1. Checklist & Certification'!$G$4)","v":""},{"$f":"IF(A134=\"\",\"\",'1. Checklist & Certification'!$K$39)","v":""},{"$f":"IF(A134=\"\",\"\",'1. Checklist & Certification'!$K$43)","v":""},{"$f":"IF(A134=\"\",\"\",'1. Checklist & Certification'!$K$45)","v":""},{"$f":"IF(A134=\"\",\"\",'1. Checklist & Certification'!$K$49)","v":""},{"$f":"IF(A134=\"\",\"\",'1. Checklist & Certification'!$E$66)","v":""},{"$f":"IF(A134=\"\",\"\",'1. Checklist & Certification'!$E$67)","v":""},{"$f":"IF(A134=\"\",\"\",'1. Checklist & Certification'!$E$68)","v":""},{"$f":"IF(A134=\"\",\"\",'1. Checklist & Certification'!$G$66)","v":""},{"$f":"IF(A134=\"\",\"\",'1. Checklist & Certification'!$H$66)","v":""},{"$f":"IF(A134=\"\",\"\",'1. Checklist & Certification'!$I$66)","v":""},{"$f":"IF(A134=\"\",\"\",'1. Checklist & Certification'!$I$67)","v":""},{"$f":"IF(A134=\"\",\"\",'1. Checklist & Certification'!$I$68)","v":""},null,{"$f":"IF(C134=\"\",\"\",HLOOKUP(C134,'MHP Family Income & Rent Limits'!$E$12:$L$26,2,FALSE))","v":""},{"$f":"IF(C134=\"\",\"\",HLOOKUP(C134,'MHP Family Income & Rent Limits'!$E$12:$L$26,3,FALSE))","v":""},{"$f":"IF(C134=\"\",\"\",HLOOKUP(C134,'MHP Family Income & Rent Limits'!$E$12:$L$26,4,FALSE))","v":""},{"$f":"IF(C134=\"\",\"\",HLOOKUP(C134,'MHP Family Income & Rent Limits'!$E$12:$L$26,5,FALSE))","v":""},{"$f":"IF(C134=\"\",\"\",HLOOKUP(C134,'MHP Family Income & Rent Limits'!$E$12:$L$26,6,FALSE))","v":""},{"$f":"IF(C134=\"\",\"\",HLOOKUP(C134,'MHP Family Income & Rent Limits'!$E$12:$L$26,7,FALSE))","v":""},{"$f":"IF(C134=\"\",\"\",HLOOKUP(C134,'MHP Family Income & Rent Limits'!$E$12:$L$26,8,FALSE))","v":""},{"$f":"IF(C134=\"\",\"\",HLOOKUP(C134,'MHP Family Income & Rent Limits'!$E$12:$L$26,9,FALSE))","v":""},{"$f":"IF(C134=\"\",\"\",HLOOKUP(C134,'MHP Family Income & Rent Limits'!$E$12:$L$26,10,FALSE))","v":""},{"$f":"IF(C134=\"\",\"\",HLOOKUP(C134,'MHP Family Income & Rent Limits'!$E$12:$L$26,11,FALSE))","v":""},{"$f":"IF(C134=\"\",\"\",HLOOKUP(C134,'MHP Family Income & Rent Limits'!$E$12:$L$26,12,FALSE))","v":""},{"$f":"IF(C134=\"\",\"\",HLOOKUP(C134,'MHP Family Income & Rent Limits'!$E$12:$L$26,13,FALSE))","v":""},{"$f":"IF(C134=\"\",\"\",HLOOKUP(C134,'MHP Family Income & Rent Limits'!$E$12:$L$26,14,FALSE))","v":""},{"$f":"IF(C134=\"\",\"\",HLOOKUP(C134,'MHP Family Income & Rent Limits'!$E$12:$L$26,15,FALSE))","v":""}]
[{"$f":"IF('2. Assisted & Restricted Units'!A135=\"\",\"\",'2. Assisted & Restricted Units'!A135)","v":""},{"$f":"IF('2. Assisted & Restricted Units'!B135=\"\",\"\",'2. Assisted & Restricted Units'!B135)","v":""},{"$f":"IF('2. Assisted & Restricted Units'!D135=\"\",\"\",'2. Assisted & Restricted Units'!D135)","v":""},{"$f":"IF('2. Assisted & Restricted Units'!E135=\"\",\"\",'2. Assisted & Restricted Units'!E135)","v":""},{"$f":"IF('2. Assisted & Restricted Units'!H135=\"\",\"\",'2. Assisted & Restricted Units'!H135)","v":""},{"$f":"_xlfn.IFS(E135=\"\",\"\",E135>BO135,$BP$6,E135>BN135,$BO$6,E135>BM135,$BN$6,E135>BL135,$BM$6,E135>BK135,$BL$6,E135>BJ135,$BK$6,E135>BI135,$BJ$6,E135>BH135,$BI$6,E135>BG135,$BH$6,E135>BF135,$BG$6,E135>BE135,$BF$6,E135>BD135,$BE$6,E135>BC135,$BD$6,E135>=0,$BC$6)","v":""},{"$f":"IF('2. Assisted & Restricted Units'!T135=\"\",\"\",'2. Assisted & Restricted Units'!T135)","v":""},{"$f":"IF('2. Assisted & Restricted Units'!I135=\"\",\"\",'2. Assisted & Restricted Units'!I135)","v":""},{"$f":"IF('2. Assisted & Restricted Units'!AP135=\"\",\"\",'2. Assisted & Restricted Units'!AP135)","v":0},{"$f":"IF('2. Assisted & Restricted Units'!AT135=\"\",\"\",'2. Assisted & Restricted Units'!AT135)","v":""},0,{"$f":"IF('2. Assisted & Restricted Units'!AV135=\"\",\"\",'2. Assisted & Restricted Units'!AV135)","v":""},{"$f":"IF('2. Assisted & Restricted Units'!L135=\"\",\"\",'2. Assisted & Restricted Units'!L135)","v":""},{"$f":"IF('2. Assisted & Restricted Units'!M135=\"\",\"\",'2. Assisted & Restricted Units'!M135)","v":""},{"$f":"IF('2. Assisted & Restricted Units'!O135=\"\",\"\",'2. Assisted & Restricted Units'!O135)","v":""},{"$f":"IF('2. Assisted & Restricted Units'!P135=\"\",\"\",'2. Assisted & Restricted Units'!P135)","v":""},{"$f":"IF('2. Assisted & Restricted Units'!Q135=\"\",\"\",'2. Assisted & Restricted Units'!Q135)","v":""},{"$f":"IF('2. Assisted & Restricted Units'!R135=\"\",\"\",'2. Assisted & Restricted Units'!R135)","v":""},{"$f":"IF(A135=\"\",\"\",'1. Checklist & Certification'!$K$1)","v":""},{"$f":"IF(A135=\"\",\"\",'1. Checklist & Certification'!$C$62)","v":""},{"$f":"IF(A135=\"\",\"\",'1. Checklist & Certification'!$K$62)","v":""},{"$f":"IF(A135=\"\",\"\",'1. Checklist & Certification'!$C$6)","v":""},{"$f":"IF(A135=\"\",\"\",'1. Checklist & Certification'!$G$4)","v":""},{"$f":"IF(A135=\"\",\"\",'1. Checklist & Certification'!$C$7)","v":""},{"$f":"IF(A135=\"\",\"\",'1. Checklist & Certification'!$C$8)","v":""},{"$f":"IF(A135=\"\",\"\",'1. Checklist & Certification'!$F$7)","v":""},{"$f":"IF(A135=\"\",\"\",'1. Checklist & Certification'!$F$8)","v":""},{"$f":"IF(A135=\"\",\"\",'1. Checklist & Certification'!$B$9)","v":""},{"$f":"IF(A135=\"\",\"\",'1. Checklist & Certification'!$F$9)","v":""},{"$f":"IF(A135=\"\",\"\",'1. Checklist & Certification'!$C$10)","v":""},{"$f":"IF(A135=\"\",\"\",'1. Checklist & Certification'!$C$11)","v":""},{"$f":"IF(A135=\"\",\"\",'1. Checklist & Certification'!$C$12)","v":""},{"$f":"IF(A135=\"\",\"\",'1. Checklist & Certification'!$B$14)","v":""},{"$f":"IF(A135=\"\",\"\",'1. Checklist & Certification'!$E$14)","v":""},{"$f":"IF(B135=\"\",\"\",'1. Checklist & Certification'!$G$14)","v":""},{"$f":"IF(A135=\"\",\"\",'MHP Family Income & Rent Limits'!$B$3)","v":""},{"$f":"IF(A135=\"\",\"\",'MHP Family Income & Rent Limits'!$J$3)","v":""},{"$f":"IF(A135=\"\",\"\",'MHP Family Income & Rent Limits'!$E$4)","v":""},{"$f":"IF(A135=\"\",\"\",'MHP Family Income & Rent Limits'!$C$7)","v":""},{"$f":"IF(A135=\"\",\"\",'MHP Family Income & Rent Limits'!$F$8)","v":""},{"$f":"IF(A135=\"\",\"\",'1. Checklist & Certification'!$G$4)","v":""},{"$f":"IF(A135=\"\",\"\",'1. Checklist & Certification'!$K$39)","v":""},{"$f":"IF(A135=\"\",\"\",'1. Checklist & Certification'!$K$43)","v":""},{"$f":"IF(A135=\"\",\"\",'1. Checklist & Certification'!$K$45)","v":""},{"$f":"IF(A135=\"\",\"\",'1. Checklist & Certification'!$K$49)","v":""},{"$f":"IF(A135=\"\",\"\",'1. Checklist & Certification'!$E$66)","v":""},{"$f":"IF(A135=\"\",\"\",'1. Checklist & Certification'!$E$67)","v":""},{"$f":"IF(A135=\"\",\"\",'1. Checklist & Certification'!$E$68)","v":""},{"$f":"IF(A135=\"\",\"\",'1. Checklist & Certification'!$G$66)","v":""},{"$f":"IF(A135=\"\",\"\",'1. Checklist & Certification'!$H$66)","v":""},{"$f":"IF(A135=\"\",\"\",'1. Checklist & Certification'!$I$66)","v":""},{"$f":"IF(A135=\"\",\"\",'1. Checklist & Certification'!$I$67)","v":""},{"$f":"IF(A135=\"\",\"\",'1. Checklist & Certification'!$I$68)","v":""},null,{"$f":"IF(C135=\"\",\"\",HLOOKUP(C135,'MHP Family Income & Rent Limits'!$E$12:$L$26,2,FALSE))","v":""},{"$f":"IF(C135=\"\",\"\",HLOOKUP(C135,'MHP Family Income & Rent Limits'!$E$12:$L$26,3,FALSE))","v":""},{"$f":"IF(C135=\"\",\"\",HLOOKUP(C135,'MHP Family Income & Rent Limits'!$E$12:$L$26,4,FALSE))","v":""},{"$f":"IF(C135=\"\",\"\",HLOOKUP(C135,'MHP Family Income & Rent Limits'!$E$12:$L$26,5,FALSE))","v":""},{"$f":"IF(C135=\"\",\"\",HLOOKUP(C135,'MHP Family Income & Rent Limits'!$E$12:$L$26,6,FALSE))","v":""},{"$f":"IF(C135=\"\",\"\",HLOOKUP(C135,'MHP Family Income & Rent Limits'!$E$12:$L$26,7,FALSE))","v":""},{"$f":"IF(C135=\"\",\"\",HLOOKUP(C135,'MHP Family Income & Rent Limits'!$E$12:$L$26,8,FALSE))","v":""},{"$f":"IF(C135=\"\",\"\",HLOOKUP(C135,'MHP Family Income & Rent Limits'!$E$12:$L$26,9,FALSE))","v":""},{"$f":"IF(C135=\"\",\"\",HLOOKUP(C135,'MHP Family Income & Rent Limits'!$E$12:$L$26,10,FALSE))","v":""},{"$f":"IF(C135=\"\",\"\",HLOOKUP(C135,'MHP Family Income & Rent Limits'!$E$12:$L$26,11,FALSE))","v":""},{"$f":"IF(C135=\"\",\"\",HLOOKUP(C135,'MHP Family Income & Rent Limits'!$E$12:$L$26,12,FALSE))","v":""},{"$f":"IF(C135=\"\",\"\",HLOOKUP(C135,'MHP Family Income & Rent Limits'!$E$12:$L$26,13,FALSE))","v":""},{"$f":"IF(C135=\"\",\"\",HLOOKUP(C135,'MHP Family Income & Rent Limits'!$E$12:$L$26,14,FALSE))","v":""},{"$f":"IF(C135=\"\",\"\",HLOOKUP(C135,'MHP Family Income & Rent Limits'!$E$12:$L$26,15,FALSE))","v":""}]
[{"$f":"IF('2. Assisted & Restricted Units'!A136=\"\",\"\",'2. Assisted & Restricted Units'!A136)","v":""},{"$f":"IF('2. Assisted & Restricted Units'!B136=\"\",\"\",'2. Assisted & Restricted Units'!B136)","v":""},{"$f":"IF('2. Assisted & Restricted Units'!D136=\"\",\"\",'2. Assisted & Restricted Units'!D136)","v":""},{"$f":"IF('2. Assisted & Restricted Units'!E136=\"\",\"\",'2. Assisted & Restricted Units'!E136)","v":""},{"$f":"IF('2. Assisted & Restricted Units'!H136=\"\",\"\",'2. Assisted & Restricted Units'!H136)","v":""},{"$f":"_xlfn.IFS(E136=\"\",\"\",E136>BO136,$BP$6,E136>BN136,$BO$6,E136>BM136,$BN$6,E136>BL136,$BM$6,E136>BK136,$BL$6,E136>BJ136,$BK$6,E136>BI136,$BJ$6,E136>BH136,$BI$6,E136>BG136,$BH$6,E136>BF136,$BG$6,E136>BE136,$BF$6,E136>BD136,$BE$6,E136>BC136,$BD$6,E136>=0,$BC$6)","v":""},{"$f":"IF('2. Assisted & Restricted Units'!T136=\"\",\"\",'2. Assisted & Restricted Units'!T136)","v":""},{"$f":"IF('2. Assisted & Restricted Units'!I136=\"\",\"\",'2. Assisted & Restricted Units'!I136)","v":""},{"$f":"IF('2. Assisted & Restricted Units'!AP136=\"\",\"\",'2. Assisted & Restricted Units'!AP136)","v":0},{"$f":"IF('2. Assisted & Restricted Units'!AT136=\"\",\"\",'2. Assisted & Restricted Units'!AT136)","v":""},{"$f":"SUM(H136:J136)","v":0},{"$f":"IF('2. Assisted & Restricted Units'!AV136=\"\",\"\",'2. Assisted & Restricted Units'!AV136)","v":""},{"$f":"IF('2. Assisted & Restricted Units'!L136=\"\",\"\",'2. Assisted & Restricted Units'!L136)","v":""},{"$f":"IF('2. Assisted & Restricted Units'!M136=\"\",\"\",'2. Assisted & Restricted Units'!M136)","v":""},{"$f":"IF('2. Assisted & Restricted Units'!O136=\"\",\"\",'2. Assisted & Restricted Units'!O136)","v":""},{"$f":"IF('2. Assisted & Restricted Units'!P136=\"\",\"\",'2. Assisted & Restricted Units'!P136)","v":""},{"$f":"IF('2. Assisted & Restricted Units'!Q136=\"\",\"\",'2. Assisted & Restricted Units'!Q136)","v":""},{"$f":"IF('2. Assisted & Restricted Units'!R136=\"\",\"\",'2. Assisted & Restricted Units'!R136)","v":""},{"$f":"IF(A136=\"\",\"\",'1. Checklist & Certification'!$K$1)","v":""},{"$f":"IF(A136=\"\",\"\",'1. Checklist & Certification'!$C$62)","v":""},{"$f":"IF(A136=\"\",\"\",'1. Checklist & Certification'!$K$62)","v":""},{"$f":"IF(A136=\"\",\"\",'1. Checklist & Certification'!$C$6)","v":""},{"$f":"IF(A136=\"\",\"\",'1. Checklist & Certification'!$G$4)","v":""},{"$f":"IF(A136=\"\",\"\",'1. Checklist & Certification'!$C$7)","v":""},{"$f":"IF(A136=\"\",\"\",'1. Checklist & Certification'!$C$8)","v":""},{"$f":"IF(A136=\"\",\"\",'1. Checklist & Certification'!$F$7)","v":""},{"$f":"IF(A136=\"\",\"\",'1. Checklist & Certification'!$F$8)","v":""},{"$f":"IF(A136=\"\",\"\",'1. Checklist & Certification'!$B$9)","v":""},{"$f":"IF(A136=\"\",\"\",'1. Checklist & Certification'!$F$9)","v":""},{"$f":"IF(A136=\"\",\"\",'1. Checklist & Certification'!$C$10)","v":""},{"$f":"IF(A136=\"\",\"\",'1. Checklist & Certification'!$C$11)","v":""},{"$f":"IF(A136=\"\",\"\",'1. Checklist & Certification'!$C$12)","v":""},{"$f":"IF(A136=\"\",\"\",'1. Checklist & Certification'!$B$14)","v":""},{"$f":"IF(A136=\"\",\"\",'1. Checklist & Certification'!$E$14)","v":""},{"$f":"IF(B136=\"\",\"\",'1. Checklist & Certification'!$G$14)","v":""},{"$f":"IF(A136=\"\",\"\",'MHP Family Income & Rent Limits'!$B$3)","v":""},{"$f":"IF(A136=\"\",\"\",'MHP Family Income & Rent Limits'!$J$3)","v":""},{"$f":"IF(A136=\"\",\"\",'MHP Family Income & Rent Limits'!$E$4)","v":""},{"$f":"IF(A136=\"\",\"\",'MHP Family Income & Rent Limits'!$C$7)","v":""},{"$f":"IF(A136=\"\",\"\",'MHP Family Income & Rent Limits'!$F$8)","v":""},{"$f":"IF(A136=\"\",\"\",'1. Checklist & Certification'!$G$4)","v":""},{"$f":"IF(A136=\"\",\"\",'1. Checklist & Certification'!$K$39)","v":""},{"$f":"IF(A136=\"\",\"\",'1. Checklist & Certification'!$K$43)","v":""},{"$f":"IF(A136=\"\",\"\",'1. Checklist & Certification'!$K$45)","v":""},{"$f":"IF(A136=\"\",\"\",'1. Checklist & Certification'!$K$49)","v":""},{"$f":"IF(A136=\"\",\"\",'1. Checklist & Certification'!$E$66)","v":""},{"$f":"IF(A136=\"\",\"\",'1. Checklist & Certification'!$E$67)","v":""},{"$f":"IF(A136=\"\",\"\",'1. Checklist & Certification'!$E$68)","v":""},{"$f":"IF(A136=\"\",\"\",'1. Checklist & Certification'!$G$66)","v":""},{"$f":"IF(A136=\"\",\"\",'1. Checklist & Certification'!$H$66)","v":""},{"$f":"IF(A136=\"\",\"\",'1. Checklist & Certification'!$I$66)","v":""},{"$f":"IF(A136=\"\",\"\",'1. Checklist & Certification'!$I$67)","v":""},{"$f":"IF(A136=\"\",\"\",'1. Checklist & Certification'!$I$68)","v":""},null,{"$f":"IF(C136=\"\",\"\",HLOOKUP(C136,'MHP Family Income & Rent Limits'!$E$12:$L$26,2,FALSE))","v":""},{"$f":"IF(C136=\"\",\"\",HLOOKUP(C136,'MHP Family Income & Rent Limits'!$E$12:$L$26,3,FALSE))","v":""},{"$f":"IF(C136=\"\",\"\",HLOOKUP(C136,'MHP Family Income & Rent Limits'!$E$12:$L$26,4,FALSE))","v":""},{"$f":"IF(C136=\"\",\"\",HLOOKUP(C136,'MHP Family Income & Rent Limits'!$E$12:$L$26,5,FALSE))","v":""},{"$f":"IF(C136=\"\",\"\",HLOOKUP(C136,'MHP Family Income & Rent Limits'!$E$12:$L$26,6,FALSE))","v":""},{"$f":"IF(C136=\"\",\"\",HLOOKUP(C136,'MHP Family Income & Rent Limits'!$E$12:$L$26,7,FALSE))","v":""},{"$f":"IF(C136=\"\",\"\",HLOOKUP(C136,'MHP Family Income & Rent Limits'!$E$12:$L$26,8,FALSE))","v":""},{"$f":"IF(C136=\"\",\"\",HLOOKUP(C136,'MHP Family Income & Rent Limits'!$E$12:$L$26,9,FALSE))","v":""},{"$f":"IF(C136=\"\",\"\",HLOOKUP(C136,'MHP Family Income & Rent Limits'!$E$12:$L$26,10,FALSE))","v":""},{"$f":"IF(C136=\"\",\"\",HLOOKUP(C136,'MHP Family Income & Rent Limits'!$E$12:$L$26,11,FALSE))","v":""},{"$f":"IF(C136=\"\",\"\",HLOOKUP(C136,'MHP Family Income & Rent Limits'!$E$12:$L$26,12,FALSE))","v":""},{"$f":"IF(C136=\"\",\"\",HLOOKUP(C136,'MHP Family Income & Rent Limits'!$E$12:$L$26,13,FALSE))","v":""},{"$f":"IF(C136=\"\",\"\",HLOOKUP(C136,'MHP Family Income & Rent Limits'!$E$12:$L$26,14,FALSE))","v":""},{"$f":"IF(C136=\"\",\"\",HLOOKUP(C136,'MHP Family Income & Rent Limits'!$E$12:$L$26,15,FALSE))","v":""}]
[{"$f":"IF('2. Assisted & Restricted Units'!A137=\"\",\"\",'2. Assisted & Restricted Units'!A137)","v":""},{"$f":"IF('2. Assisted & Restricted Units'!B137=\"\",\"\",'2. Assisted & Restricted Units'!B137)","v":""},{"$f":"IF('2. Assisted & Restricted Units'!D137=\"\",\"\",'2. Assisted & Restricted Units'!D137)","v":""},{"$f":"IF('2. Assisted & Restricted Units'!E137=\"\",\"\",'2. Assisted & Restricted Units'!E137)","v":""},{"$f":"IF('2. Assisted & Restricted Units'!H137=\"\",\"\",'2. Assisted & Restricted Units'!H137)","v":""},{"$f":"_xlfn.IFS(E137=\"\",\"\",E137>BO137,$BP$6,E137>BN137,$BO$6,E137>BM137,$BN$6,E137>BL137,$BM$6,E137>BK137,$BL$6,E137>BJ137,$BK$6,E137>BI137,$BJ$6,E137>BH137,$BI$6,E137>BG137,$BH$6,E137>BF137,$BG$6,E137>BE137,$BF$6,E137>BD137,$BE$6,E137>BC137,$BD$6,E137>=0,$BC$6)","v":""},{"$f":"IF('2. Assisted & Restricted Units'!T137=\"\",\"\",'2. Assisted & Restricted Units'!T137)","v":""},{"$f":"IF('2. Assisted & Restricted Units'!I137=\"\",\"\",'2. Assisted & Restricted Units'!I137)","v":""},{"$f":"IF('2. Assisted & Restricted Units'!AP137=\"\",\"\",'2. Assisted & Restricted Units'!AP137)","v":0},{"$f":"IF('2. Assisted & Restricted Units'!AT137=\"\",\"\",'2. Assisted & Restricted Units'!AT137)","v":""},0,{"$f":"IF('2. Assisted & Restricted Units'!AV137=\"\",\"\",'2. Assisted & Restricted Units'!AV137)","v":""},{"$f":"IF('2. Assisted & Restricted Units'!L137=\"\",\"\",'2. Assisted & Restricted Units'!L137)","v":""},{"$f":"IF('2. Assisted & Restricted Units'!M137=\"\",\"\",'2. Assisted & Restricted Units'!M137)","v":""},{"$f":"IF('2. Assisted & Restricted Units'!O137=\"\",\"\",'2. Assisted & Restricted Units'!O137)","v":""},{"$f":"IF('2. Assisted & Restricted Units'!P137=\"\",\"\",'2. Assisted & Restricted Units'!P137)","v":""},{"$f":"IF('2. Assisted & Restricted Units'!Q137=\"\",\"\",'2. Assisted & Restricted Units'!Q137)","v":""},{"$f":"IF('2. Assisted & Restricted Units'!R137=\"\",\"\",'2. Assisted & Restricted Units'!R137)","v":""},{"$f":"IF(A137=\"\",\"\",'1. Checklist & Certification'!$K$1)","v":""},{"$f":"IF(A137=\"\",\"\",'1. Checklist & Certification'!$C$62)","v":""},{"$f":"IF(A137=\"\",\"\",'1. Checklist & Certification'!$K$62)","v":""},{"$f":"IF(A137=\"\",\"\",'1. Checklist & Certification'!$C$6)","v":""},{"$f":"IF(A137=\"\",\"\",'1. Checklist & Certification'!$G$4)","v":""},{"$f":"IF(A137=\"\",\"\",'1. Checklist & Certification'!$C$7)","v":""},{"$f":"IF(A137=\"\",\"\",'1. Checklist & Certification'!$C$8)","v":""},{"$f":"IF(A137=\"\",\"\",'1. Checklist & Certification'!$F$7)","v":""},{"$f":"IF(A137=\"\",\"\",'1. Checklist & Certification'!$F$8)","v":""},{"$f":"IF(A137=\"\",\"\",'1. Checklist & Certification'!$B$9)","v":""},{"$f":"IF(A137=\"\",\"\",'1. Checklist & Certification'!$F$9)","v":""},{"$f":"IF(A137=\"\",\"\",'1. Checklist & Certification'!$C$10)","v":""},{"$f":"IF(A137=\"\",\"\",'1. Checklist & Certification'!$C$11)","v":""},{"$f":"IF(A137=\"\",\"\",'1. Checklist & Certification'!$C$12)","v":""},{"$f":"IF(A137=\"\",\"\",'1. Checklist & Certification'!$B$14)","v":""},{"$f":"IF(A137=\"\",\"\",'1. Checklist & Certification'!$E$14)","v":""},{"$f":"IF(B137=\"\",\"\",'1. Checklist & Certification'!$G$14)","v":""},{"$f":"IF(A137=\"\",\"\",'MHP Family Income & Rent Limits'!$B$3)","v":""},{"$f":"IF(A137=\"\",\"\",'MHP Family Income & Rent Limits'!$J$3)","v":""},{"$f":"IF(A137=\"\",\"\",'MHP Family Income & Rent Limits'!$E$4)","v":""},{"$f":"IF(A137=\"\",\"\",'MHP Family Income & Rent Limits'!$C$7)","v":""},{"$f":"IF(A137=\"\",\"\",'MHP Family Income & Rent Limits'!$F$8)","v":""},{"$f":"IF(A137=\"\",\"\",'1. Checklist & Certification'!$G$4)","v":""},{"$f":"IF(A137=\"\",\"\",'1. Checklist & Certification'!$K$39)","v":""},{"$f":"IF(A137=\"\",\"\",'1. Checklist & Certification'!$K$43)","v":""},{"$f":"IF(A137=\"\",\"\",'1. Checklist & Certification'!$K$45)","v":""},{"$f":"IF(A137=\"\",\"\",'1. Checklist & Certification'!$K$49)","v":""},{"$f":"IF(A137=\"\",\"\",'1. Checklist & Certification'!$E$66)","v":""},{"$f":"IF(A137=\"\",\"\",'1. Checklist & Certification'!$E$67)","v":""},{"$f":"IF(A137=\"\",\"\",'1. Checklist & Certification'!$E$68)","v":""},{"$f":"IF(A137=\"\",\"\",'1. Checklist & Certification'!$G$66)","v":""},{"$f":"IF(A137=\"\",\"\",'1. Checklist & Certification'!$H$66)","v":""},{"$f":"IF(A137=\"\",\"\",'1. Checklist & Certification'!$I$66)","v":""},{"$f":"IF(A137=\"\",\"\",'1. Checklist & Certification'!$I$67)","v":""},{"$f":"IF(A137=\"\",\"\",'1. Checklist & Certification'!$I$68)","v":""},null,{"$f":"IF(C137=\"\",\"\",HLOOKUP(C137,'MHP Family Income & Rent Limits'!$E$12:$L$26,2,FALSE))","v":""},{"$f":"IF(C137=\"\",\"\",HLOOKUP(C137,'MHP Family Income & Rent Limits'!$E$12:$L$26,3,FALSE))","v":""},{"$f":"IF(C137=\"\",\"\",HLOOKUP(C137,'MHP Family Income & Rent Limits'!$E$12:$L$26,4,FALSE))","v":""},{"$f":"IF(C137=\"\",\"\",HLOOKUP(C137,'MHP Family Income & Rent Limits'!$E$12:$L$26,5,FALSE))","v":""},{"$f":"IF(C137=\"\",\"\",HLOOKUP(C137,'MHP Family Income & Rent Limits'!$E$12:$L$26,6,FALSE))","v":""},{"$f":"IF(C137=\"\",\"\",HLOOKUP(C137,'MHP Family Income & Rent Limits'!$E$12:$L$26,7,FALSE))","v":""},{"$f":"IF(C137=\"\",\"\",HLOOKUP(C137,'MHP Family Income & Rent Limits'!$E$12:$L$26,8,FALSE))","v":""},{"$f":"IF(C137=\"\",\"\",HLOOKUP(C137,'MHP Family Income & Rent Limits'!$E$12:$L$26,9,FALSE))","v":""},{"$f":"IF(C137=\"\",\"\",HLOOKUP(C137,'MHP Family Income & Rent Limits'!$E$12:$L$26,10,FALSE))","v":""},{"$f":"IF(C137=\"\",\"\",HLOOKUP(C137,'MHP Family Income & Rent Limits'!$E$12:$L$26,11,FALSE))","v":""},{"$f":"IF(C137=\"\",\"\",HLOOKUP(C137,'MHP Family Income & Rent Limits'!$E$12:$L$26,12,FALSE))","v":""},{"$f":"IF(C137=\"\",\"\",HLOOKUP(C137,'MHP Family Income & Rent Limits'!$E$12:$L$26,13,FALSE))","v":""},{"$f":"IF(C137=\"\",\"\",HLOOKUP(C137,'MHP Family Income & Rent Limits'!$E$12:$L$26,14,FALSE))","v":""},{"$f":"IF(C137=\"\",\"\",HLOOKUP(C137,'MHP Family Income & Rent Limits'!$E$12:$L$26,15,FALSE))","v":""}]
[{"$f":"IF('2. Assisted & Restricted Units'!A138=\"\",\"\",'2. Assisted & Restricted Units'!A138)","v":""},{"$f":"IF('2. Assisted & Restricted Units'!B138=\"\",\"\",'2. Assisted & Restricted Units'!B138)","v":""},{"$f":"IF('2. Assisted & Restricted Units'!D138=\"\",\"\",'2. Assisted & Restricted Units'!D138)","v":""},{"$f":"IF('2. Assisted & Restricted Units'!E138=\"\",\"\",'2. Assisted & Restricted Units'!E138)","v":""},{"$f":"IF('2. Assisted & Restricted Units'!H138=\"\",\"\",'2. Assisted & Restricted Units'!H138)","v":""},{"$f":"_xlfn.IFS(E138=\"\",\"\",E138>BO138,$BP$6,E138>BN138,$BO$6,E138>BM138,$BN$6,E138>BL138,$BM$6,E138>BK138,$BL$6,E138>BJ138,$BK$6,E138>BI138,$BJ$6,E138>BH138,$BI$6,E138>BG138,$BH$6,E138>BF138,$BG$6,E138>BE138,$BF$6,E138>BD138,$BE$6,E138>BC138,$BD$6,E138>=0,$BC$6)","v":""},{"$f":"IF('2. Assisted & Restricted Units'!T138=\"\",\"\",'2. Assisted & Restricted Units'!T138)","v":""},{"$f":"IF('2. Assisted & Restricted Units'!I138=\"\",\"\",'2. Assisted & Restricted Units'!I138)","v":""},{"$f":"IF('2. Assisted & Restricted Units'!AP138=\"\",\"\",'2. Assisted & Restricted Units'!AP138)","v":0},{"$f":"IF('2. Assisted & Restricted Units'!AT138=\"\",\"\",'2. Assisted & Restricted Units'!AT138)","v":""},0,{"$f":"IF('2. Assisted & Restricted Units'!AV138=\"\",\"\",'2. Assisted & Restricted Units'!AV138)","v":""},{"$f":"IF('2. Assisted & Restricted Units'!L138=\"\",\"\",'2. Assisted & Restricted Units'!L138)","v":""},{"$f":"IF('2. Assisted & Restricted Units'!M138=\"\",\"\",'2. Assisted & Restricted Units'!M138)","v":""},{"$f":"IF('2. Assisted & Restricted Units'!O138=\"\",\"\",'2. Assisted & Restricted Units'!O138)","v":""},{"$f":"IF('2. Assisted & Restricted Units'!P138=\"\",\"\",'2. Assisted & Restricted Units'!P138)","v":""},{"$f":"IF('2. Assisted & Restricted Units'!Q138=\"\",\"\",'2. Assisted & Restricted Units'!Q138)","v":""},{"$f":"IF('2. Assisted & Restricted Units'!R138=\"\",\"\",'2. Assisted & Restricted Units'!R138)","v":""},{"$f":"IF(A138=\"\",\"\",'1. Checklist & Certification'!$K$1)","v":""},{"$f":"IF(A138=\"\",\"\",'1. Checklist & Certification'!$C$62)","v":""},{"$f":"IF(A138=\"\",\"\",'1. Checklist & Certification'!$K$62)","v":""},{"$f":"IF(A138=\"\",\"\",'1. Checklist & Certification'!$C$6)","v":""},{"$f":"IF(A138=\"\",\"\",'1. Checklist & Certification'!$G$4)","v":""},{"$f":"IF(A138=\"\",\"\",'1. Checklist & Certification'!$C$7)","v":""},{"$f":"IF(A138=\"\",\"\",'1. Checklist & Certification'!$C$8)","v":""},{"$f":"IF(A138=\"\",\"\",'1. Checklist & Certification'!$F$7)","v":""},{"$f":"IF(A138=\"\",\"\",'1. Checklist & Certification'!$F$8)","v":""},{"$f":"IF(A138=\"\",\"\",'1. Checklist & Certification'!$B$9)","v":""},{"$f":"IF(A138=\"\",\"\",'1. Checklist & Certification'!$F$9)","v":""},{"$f":"IF(A138=\"\",\"\",'1. Checklist & Certification'!$C$10)","v":""},{"$f":"IF(A138=\"\",\"\",'1. Checklist & Certification'!$C$11)","v":""},{"$f":"IF(A138=\"\",\"\",'1. Checklist & Certification'!$C$12)","v":""},{"$f":"IF(A138=\"\",\"\",'1. Checklist & Certification'!$B$14)","v":""},{"$f":"IF(A138=\"\",\"\",'1. Checklist & Certification'!$E$14)","v":""},{"$f":"IF(B138=\"\",\"\",'1. Checklist & Certification'!$G$14)","v":""},{"$f":"IF(A138=\"\",\"\",'MHP Family Income & Rent Limits'!$B$3)","v":""},{"$f":"IF(A138=\"\",\"\",'MHP Family Income & Rent Limits'!$J$3)","v":""},{"$f":"IF(A138=\"\",\"\",'MHP Family Income & Rent Limits'!$E$4)","v":""},{"$f":"IF(A138=\"\",\"\",'MHP Family Income & Rent Limits'!$C$7)","v":""},{"$f":"IF(A138=\"\",\"\",'MHP Family Income & Rent Limits'!$F$8)","v":""},{"$f":"IF(A138=\"\",\"\",'1. Checklist & Certification'!$G$4)","v":""},{"$f":"IF(A138=\"\",\"\",'1. Checklist & Certification'!$K$39)","v":""},{"$f":"IF(A138=\"\",\"\",'1. Checklist & Certification'!$K$43)","v":""},{"$f":"IF(A138=\"\",\"\",'1. Checklist & Certification'!$K$45)","v":""},{"$f":"IF(A138=\"\",\"\",'1. Checklist & Certification'!$K$49)","v":""},{"$f":"IF(A138=\"\",\"\",'1. Checklist & Certification'!$E$66)","v":""},{"$f":"IF(A138=\"\",\"\",'1. Checklist & Certification'!$E$67)","v":""},{"$f":"IF(A138=\"\",\"\",'1. Checklist & Certification'!$E$68)","v":""},{"$f":"IF(A138=\"\",\"\",'1. Checklist & Certification'!$G$66)","v":""},{"$f":"IF(A138=\"\",\"\",'1. Checklist & Certification'!$H$66)","v":""},{"$f":"IF(A138=\"\",\"\",'1. Checklist & Certification'!$I$66)","v":""},{"$f":"IF(A138=\"\",\"\",'1. Checklist & Certification'!$I$67)","v":""},{"$f":"IF(A138=\"\",\"\",'1. Checklist & Certification'!$I$68)","v":""},null,{"$f":"IF(C138=\"\",\"\",HLOOKUP(C138,'MHP Family Income & Rent Limits'!$E$12:$L$26,2,FALSE))","v":""},{"$f":"IF(C138=\"\",\"\",HLOOKUP(C138,'MHP Family Income & Rent Limits'!$E$12:$L$26,3,FALSE))","v":""},{"$f":"IF(C138=\"\",\"\",HLOOKUP(C138,'MHP Family Income & Rent Limits'!$E$12:$L$26,4,FALSE))","v":""},{"$f":"IF(C138=\"\",\"\",HLOOKUP(C138,'MHP Family Income & Rent Limits'!$E$12:$L$26,5,FALSE))","v":""},{"$f":"IF(C138=\"\",\"\",HLOOKUP(C138,'MHP Family Income & Rent Limits'!$E$12:$L$26,6,FALSE))","v":""},{"$f":"IF(C138=\"\",\"\",HLOOKUP(C138,'MHP Family Income & Rent Limits'!$E$12:$L$26,7,FALSE))","v":""},{"$f":"IF(C138=\"\",\"\",HLOOKUP(C138,'MHP Family Income & Rent Limits'!$E$12:$L$26,8,FALSE))","v":""},{"$f":"IF(C138=\"\",\"\",HLOOKUP(C138,'MHP Family Income & Rent Limits'!$E$12:$L$26,9,FALSE))","v":""},{"$f":"IF(C138=\"\",\"\",HLOOKUP(C138,'MHP Family Income & Rent Limits'!$E$12:$L$26,10,FALSE))","v":""},{"$f":"IF(C138=\"\",\"\",HLOOKUP(C138,'MHP Family Income & Rent Limits'!$E$12:$L$26,11,FALSE))","v":""},{"$f":"IF(C138=\"\",\"\",HLOOKUP(C138,'MHP Family Income & Rent Limits'!$E$12:$L$26,12,FALSE))","v":""},{"$f":"IF(C138=\"\",\"\",HLOOKUP(C138,'MHP Family Income & Rent Limits'!$E$12:$L$26,13,FALSE))","v":""},{"$f":"IF(C138=\"\",\"\",HLOOKUP(C138,'MHP Family Income & Rent Limits'!$E$12:$L$26,14,FALSE))","v":""},{"$f":"IF(C138=\"\",\"\",HLOOKUP(C138,'MHP Family Income & Rent Limits'!$E$12:$L$26,15,FALSE))","v":""}]
[{"$f":"IF('2. Assisted & Restricted Units'!A139=\"\",\"\",'2. Assisted & Restricted Units'!A139)","v":""},{"$f":"IF('2. Assisted & Restricted Units'!B139=\"\",\"\",'2. Assisted & Restricted Units'!B139)","v":""},{"$f":"IF('2. Assisted & Restricted Units'!D139=\"\",\"\",'2. Assisted & Restricted Units'!D139)","v":""},{"$f":"IF('2. Assisted & Restricted Units'!E139=\"\",\"\",'2. Assisted & Restricted Units'!E139)","v":""},{"$f":"IF('2. Assisted & Restricted Units'!H139=\"\",\"\",'2. Assisted & Restricted Units'!H139)","v":""},{"$f":"_xlfn.IFS(E139=\"\",\"\",E139>BO139,$BP$6,E139>BN139,$BO$6,E139>BM139,$BN$6,E139>BL139,$BM$6,E139>BK139,$BL$6,E139>BJ139,$BK$6,E139>BI139,$BJ$6,E139>BH139,$BI$6,E139>BG139,$BH$6,E139>BF139,$BG$6,E139>BE139,$BF$6,E139>BD139,$BE$6,E139>BC139,$BD$6,E139>=0,$BC$6)","v":""},{"$f":"IF('2. Assisted & Restricted Units'!T139=\"\",\"\",'2. Assisted & Restricted Units'!T139)","v":""},{"$f":"IF('2. Assisted & Restricted Units'!I139=\"\",\"\",'2. Assisted & Restricted Units'!I139)","v":""},{"$f":"IF('2. Assisted & Restricted Units'!AP139=\"\",\"\",'2. Assisted & Restricted Units'!AP139)","v":0},{"$f":"IF('2. Assisted & Restricted Units'!AT139=\"\",\"\",'2. Assisted & Restricted Units'!AT139)","v":""},0,{"$f":"IF('2. Assisted & Restricted Units'!AV139=\"\",\"\",'2. Assisted & Restricted Units'!AV139)","v":""},{"$f":"IF('2. Assisted & Restricted Units'!L139=\"\",\"\",'2. Assisted & Restricted Units'!L139)","v":""},{"$f":"IF('2. Assisted & Restricted Units'!M139=\"\",\"\",'2. Assisted & Restricted Units'!M139)","v":""},{"$f":"IF('2. Assisted & Restricted Units'!O139=\"\",\"\",'2. Assisted & Restricted Units'!O139)","v":""},{"$f":"IF('2. Assisted & Restricted Units'!P139=\"\",\"\",'2. Assisted & Restricted Units'!P139)","v":""},{"$f":"IF('2. Assisted & Restricted Units'!Q139=\"\",\"\",'2. Assisted & Restricted Units'!Q139)","v":""},{"$f":"IF('2. Assisted & Restricted Units'!R139=\"\",\"\",'2. Assisted & Restricted Units'!R139)","v":""},{"$f":"IF(A139=\"\",\"\",'1. Checklist & Certification'!$K$1)","v":""},{"$f":"IF(A139=\"\",\"\",'1. Checklist & Certification'!$C$62)","v":""},{"$f":"IF(A139=\"\",\"\",'1. Checklist & Certification'!$K$62)","v":""},{"$f":"IF(A139=\"\",\"\",'1. Checklist & Certification'!$C$6)","v":""},{"$f":"IF(A139=\"\",\"\",'1. Checklist & Certification'!$G$4)","v":""},{"$f":"IF(A139=\"\",\"\",'1. Checklist & Certification'!$C$7)","v":""},{"$f":"IF(A139=\"\",\"\",'1. Checklist & Certification'!$C$8)","v":""},{"$f":"IF(A139=\"\",\"\",'1. Checklist & Certification'!$F$7)","v":""},{"$f":"IF(A139=\"\",\"\",'1. Checklist & Certification'!$F$8)","v":""},{"$f":"IF(A139=\"\",\"\",'1. Checklist & Certification'!$B$9)","v":""},{"$f":"IF(A139=\"\",\"\",'1. Checklist & Certification'!$F$9)","v":""},{"$f":"IF(A139=\"\",\"\",'1. Checklist & Certification'!$C$10)","v":""},{"$f":"IF(A139=\"\",\"\",'1. Checklist & Certification'!$C$11)","v":""},{"$f":"IF(A139=\"\",\"\",'1. Checklist & Certification'!$C$12)","v":""},{"$f":"IF(A139=\"\",\"\",'1. Checklist & Certification'!$B$14)","v":""},{"$f":"IF(A139=\"\",\"\",'1. Checklist & Certification'!$E$14)","v":""},{"$f":"IF(B139=\"\",\"\",'1. Checklist & Certification'!$G$14)","v":""},{"$f":"IF(A139=\"\",\"\",'MHP Family Income & Rent Limits'!$B$3)","v":""},{"$f":"IF(A139=\"\",\"\",'MHP Family Income & Rent Limits'!$J$3)","v":""},{"$f":"IF(A139=\"\",\"\",'MHP Family Income & Rent Limits'!$E$4)","v":""},{"$f":"IF(A139=\"\",\"\",'MHP Family Income & Rent Limits'!$C$7)","v":""},{"$f":"IF(A139=\"\",\"\",'MHP Family Income & Rent Limits'!$F$8)","v":""},{"$f":"IF(A139=\"\",\"\",'1. Checklist & Certification'!$G$4)","v":""},{"$f":"IF(A139=\"\",\"\",'1. Checklist & Certification'!$K$39)","v":""},{"$f":"IF(A139=\"\",\"\",'1. Checklist & Certification'!$K$43)","v":""},{"$f":"IF(A139=\"\",\"\",'1. Checklist & Certification'!$K$45)","v":""},{"$f":"IF(A139=\"\",\"\",'1. Checklist & Certification'!$K$49)","v":""},{"$f":"IF(A139=\"\",\"\",'1. Checklist & Certification'!$E$66)","v":""},{"$f":"IF(A139=\"\",\"\",'1. Checklist & Certification'!$E$67)","v":""},{"$f":"IF(A139=\"\",\"\",'1. Checklist & Certification'!$E$68)","v":""},{"$f":"IF(A139=\"\",\"\",'1. Checklist & Certification'!$G$66)","v":""},{"$f":"IF(A139=\"\",\"\",'1. Checklist & Certification'!$H$66)","v":""},{"$f":"IF(A139=\"\",\"\",'1. Checklist & Certification'!$I$66)","v":""},{"$f":"IF(A139=\"\",\"\",'1. Checklist & Certification'!$I$67)","v":""},{"$f":"IF(A139=\"\",\"\",'1. Checklist & Certification'!$I$68)","v":""},null,{"$f":"IF(C139=\"\",\"\",HLOOKUP(C139,'MHP Family Income & Rent Limits'!$E$12:$L$26,2,FALSE))","v":""},{"$f":"IF(C139=\"\",\"\",HLOOKUP(C139,'MHP Family Income & Rent Limits'!$E$12:$L$26,3,FALSE))","v":""},{"$f":"IF(C139=\"\",\"\",HLOOKUP(C139,'MHP Family Income & Rent Limits'!$E$12:$L$26,4,FALSE))","v":""},{"$f":"IF(C139=\"\",\"\",HLOOKUP(C139,'MHP Family Income & Rent Limits'!$E$12:$L$26,5,FALSE))","v":""},{"$f":"IF(C139=\"\",\"\",HLOOKUP(C139,'MHP Family Income & Rent Limits'!$E$12:$L$26,6,FALSE))","v":""},{"$f":"IF(C139=\"\",\"\",HLOOKUP(C139,'MHP Family Income & Rent Limits'!$E$12:$L$26,7,FALSE))","v":""},{"$f":"IF(C139=\"\",\"\",HLOOKUP(C139,'MHP Family Income & Rent Limits'!$E$12:$L$26,8,FALSE))","v":""},{"$f":"IF(C139=\"\",\"\",HLOOKUP(C139,'MHP Family Income & Rent Limits'!$E$12:$L$26,9,FALSE))","v":""},{"$f":"IF(C139=\"\",\"\",HLOOKUP(C139,'MHP Family Income & Rent Limits'!$E$12:$L$26,10,FALSE))","v":""},{"$f":"IF(C139=\"\",\"\",HLOOKUP(C139,'MHP Family Income & Rent Limits'!$E$12:$L$26,11,FALSE))","v":""},{"$f":"IF(C139=\"\",\"\",HLOOKUP(C139,'MHP Family Income & Rent Limits'!$E$12:$L$26,12,FALSE))","v":""},{"$f":"IF(C139=\"\",\"\",HLOOKUP(C139,'MHP Family Income & Rent Limits'!$E$12:$L$26,13,FALSE))","v":""},{"$f":"IF(C139=\"\",\"\",HLOOKUP(C139,'MHP Family Income & Rent Limits'!$E$12:$L$26,14,FALSE))","v":""},{"$f":"IF(C139=\"\",\"\",HLOOKUP(C139,'MHP Family Income & Rent Limits'!$E$12:$L$26,15,FALSE))","v":""}]
[{"$f":"IF('2. Assisted & Restricted Units'!A140=\"\",\"\",'2. Assisted & Restricted Units'!A140)","v":""},{"$f":"IF('2. Assisted & Restricted Units'!B140=\"\",\"\",'2. Assisted & Restricted Units'!B140)","v":""},{"$f":"IF('2. Assisted & Restricted Units'!D140=\"\",\"\",'2. Assisted & Restricted Units'!D140)","v":""},{"$f":"IF('2. Assisted & Restricted Units'!E140=\"\",\"\",'2. Assisted & Restricted Units'!E140)","v":""},{"$f":"IF('2. Assisted & Restricted Units'!H140=\"\",\"\",'2. Assisted & Restricted Units'!H140)","v":""},{"$f":"_xlfn.IFS(E140=\"\",\"\",E140>BO140,$BP$6,E140>BN140,$BO$6,E140>BM140,$BN$6,E140>BL140,$BM$6,E140>BK140,$BL$6,E140>BJ140,$BK$6,E140>BI140,$BJ$6,E140>BH140,$BI$6,E140>BG140,$BH$6,E140>BF140,$BG$6,E140>BE140,$BF$6,E140>BD140,$BE$6,E140>BC140,$BD$6,E140>=0,$BC$6)","v":""},{"$f":"IF('2. Assisted & Restricted Units'!T140=\"\",\"\",'2. Assisted & Restricted Units'!T140)","v":""},{"$f":"IF('2. Assisted & Restricted Units'!I140=\"\",\"\",'2. Assisted & Restricted Units'!I140)","v":""},{"$f":"IF('2. Assisted & Restricted Units'!AP140=\"\",\"\",'2. Assisted & Restricted Units'!AP140)","v":0},{"$f":"IF('2. Assisted & Restricted Units'!AT140=\"\",\"\",'2. Assisted & Restricted Units'!AT140)","v":""},0,{"$f":"IF('2. Assisted & Restricted Units'!AV140=\"\",\"\",'2. Assisted & Restricted Units'!AV140)","v":""},{"$f":"IF('2. Assisted & Restricted Units'!L140=\"\",\"\",'2. Assisted & Restricted Units'!L140)","v":""},{"$f":"IF('2. Assisted & Restricted Units'!M140=\"\",\"\",'2. Assisted & Restricted Units'!M140)","v":""},{"$f":"IF('2. Assisted & Restricted Units'!O140=\"\",\"\",'2. Assisted & Restricted Units'!O140)","v":""},{"$f":"IF('2. Assisted & Restricted Units'!P140=\"\",\"\",'2. Assisted & Restricted Units'!P140)","v":""},{"$f":"IF('2. Assisted & Restricted Units'!Q140=\"\",\"\",'2. Assisted & Restricted Units'!Q140)","v":""},{"$f":"IF('2. Assisted & Restricted Units'!R140=\"\",\"\",'2. Assisted & Restricted Units'!R140)","v":""},{"$f":"IF(A140=\"\",\"\",'1. Checklist & Certification'!$K$1)","v":""},{"$f":"IF(A140=\"\",\"\",'1. Checklist & Certification'!$C$62)","v":""},{"$f":"IF(A140=\"\",\"\",'1. Checklist & Certification'!$K$62)","v":""},{"$f":"IF(A140=\"\",\"\",'1. Checklist & Certification'!$C$6)","v":""},{"$f":"IF(A140=\"\",\"\",'1. Checklist & Certification'!$G$4)","v":""},{"$f":"IF(A140=\"\",\"\",'1. Checklist & Certification'!$C$7)","v":""},{"$f":"IF(A140=\"\",\"\",'1. Checklist & Certification'!$C$8)","v":""},{"$f":"IF(A140=\"\",\"\",'1. Checklist & Certification'!$F$7)","v":""},{"$f":"IF(A140=\"\",\"\",'1. Checklist & Certification'!$F$8)","v":""},{"$f":"IF(A140=\"\",\"\",'1. Checklist & Certification'!$B$9)","v":""},{"$f":"IF(A140=\"\",\"\",'1. Checklist & Certification'!$F$9)","v":""},{"$f":"IF(A140=\"\",\"\",'1. Checklist & Certification'!$C$10)","v":""},{"$f":"IF(A140=\"\",\"\",'1. Checklist & Certification'!$C$11)","v":""},{"$f":"IF(A140=\"\",\"\",'1. Checklist & Certification'!$C$12)","v":""},{"$f":"IF(A140=\"\",\"\",'1. Checklist & Certification'!$B$14)","v":""},{"$f":"IF(A140=\"\",\"\",'1. Checklist & Certification'!$E$14)","v":""},{"$f":"IF(B140=\"\",\"\",'1. Checklist & Certification'!$G$14)","v":""},{"$f":"IF(A140=\"\",\"\",'MHP Family Income & Rent Limits'!$B$3)","v":""},{"$f":"IF(A140=\"\",\"\",'MHP Family Income & Rent Limits'!$J$3)","v":""},{"$f":"IF(A140=\"\",\"\",'MHP Family Income & Rent Limits'!$E$4)","v":""},{"$f":"IF(A140=\"\",\"\",'MHP Family Income & Rent Limits'!$C$7)","v":""},{"$f":"IF(A140=\"\",\"\",'MHP Family Income & Rent Limits'!$F$8)","v":""},{"$f":"IF(A140=\"\",\"\",'1. Checklist & Certification'!$G$4)","v":""},{"$f":"IF(A140=\"\",\"\",'1. Checklist & Certification'!$K$39)","v":""},{"$f":"IF(A140=\"\",\"\",'1. Checklist & Certification'!$K$43)","v":""},{"$f":"IF(A140=\"\",\"\",'1. Checklist & Certification'!$K$45)","v":""},{"$f":"IF(A140=\"\",\"\",'1. Checklist & Certification'!$K$49)","v":""},{"$f":"IF(A140=\"\",\"\",'1. Checklist & Certification'!$E$66)","v":""},{"$f":"IF(A140=\"\",\"\",'1. Checklist & Certification'!$E$67)","v":""},{"$f":"IF(A140=\"\",\"\",'1. Checklist & Certification'!$E$68)","v":""},{"$f":"IF(A140=\"\",\"\",'1. Checklist & Certification'!$G$66)","v":""},{"$f":"IF(A140=\"\",\"\",'1. Checklist & Certification'!$H$66)","v":""},{"$f":"IF(A140=\"\",\"\",'1. Checklist & Certification'!$I$66)","v":""},{"$f":"IF(A140=\"\",\"\",'1. Checklist & Certification'!$I$67)","v":""},{"$f":"IF(A140=\"\",\"\",'1. Checklist & Certification'!$I$68)","v":""},null,{"$f":"IF(C140=\"\",\"\",HLOOKUP(C140,'MHP Family Income & Rent Limits'!$E$12:$L$26,2,FALSE))","v":""},{"$f":"IF(C140=\"\",\"\",HLOOKUP(C140,'MHP Family Income & Rent Limits'!$E$12:$L$26,3,FALSE))","v":""},{"$f":"IF(C140=\"\",\"\",HLOOKUP(C140,'MHP Family Income & Rent Limits'!$E$12:$L$26,4,FALSE))","v":""},{"$f":"IF(C140=\"\",\"\",HLOOKUP(C140,'MHP Family Income & Rent Limits'!$E$12:$L$26,5,FALSE))","v":""},{"$f":"IF(C140=\"\",\"\",HLOOKUP(C140,'MHP Family Income & Rent Limits'!$E$12:$L$26,6,FALSE))","v":""},{"$f":"IF(C140=\"\",\"\",HLOOKUP(C140,'MHP Family Income & Rent Limits'!$E$12:$L$26,7,FALSE))","v":""},{"$f":"IF(C140=\"\",\"\",HLOOKUP(C140,'MHP Family Income & Rent Limits'!$E$12:$L$26,8,FALSE))","v":""},{"$f":"IF(C140=\"\",\"\",HLOOKUP(C140,'MHP Family Income & Rent Limits'!$E$12:$L$26,9,FALSE))","v":""},{"$f":"IF(C140=\"\",\"\",HLOOKUP(C140,'MHP Family Income & Rent Limits'!$E$12:$L$26,10,FALSE))","v":""},{"$f":"IF(C140=\"\",\"\",HLOOKUP(C140,'MHP Family Income & Rent Limits'!$E$12:$L$26,11,FALSE))","v":""},{"$f":"IF(C140=\"\",\"\",HLOOKUP(C140,'MHP Family Income & Rent Limits'!$E$12:$L$26,12,FALSE))","v":""},{"$f":"IF(C140=\"\",\"\",HLOOKUP(C140,'MHP Family Income & Rent Limits'!$E$12:$L$26,13,FALSE))","v":""},{"$f":"IF(C140=\"\",\"\",HLOOKUP(C140,'MHP Family Income & Rent Limits'!$E$12:$L$26,14,FALSE))","v":""},{"$f":"IF(C140=\"\",\"\",HLOOKUP(C140,'MHP Family Income & Rent Limits'!$E$12:$L$26,15,FALSE))","v":""}]
[{"$f":"IF('2. Assisted & Restricted Units'!A141=\"\",\"\",'2. Assisted & Restricted Units'!A141)","v":""},{"$f":"IF('2. Assisted & Restricted Units'!B141=\"\",\"\",'2. Assisted & Restricted Units'!B141)","v":""},{"$f":"IF('2. Assisted & Restricted Units'!D141=\"\",\"\",'2. Assisted & Restricted Units'!D141)","v":""},{"$f":"IF('2. Assisted & Restricted Units'!E141=\"\",\"\",'2. Assisted & Restricted Units'!E141)","v":""},{"$f":"IF('2. Assisted & Restricted Units'!H141=\"\",\"\",'2. Assisted & Restricted Units'!H141)","v":""},{"$f":"_xlfn.IFS(E141=\"\",\"\",E141>BO141,$BP$6,E141>BN141,$BO$6,E141>BM141,$BN$6,E141>BL141,$BM$6,E141>BK141,$BL$6,E141>BJ141,$BK$6,E141>BI141,$BJ$6,E141>BH141,$BI$6,E141>BG141,$BH$6,E141>BF141,$BG$6,E141>BE141,$BF$6,E141>BD141,$BE$6,E141>BC141,$BD$6,E141>=0,$BC$6)","v":""},{"$f":"IF('2. Assisted & Restricted Units'!T141=\"\",\"\",'2. Assisted & Restricted Units'!T141)","v":""},{"$f":"IF('2. Assisted & Restricted Units'!I141=\"\",\"\",'2. Assisted & Restricted Units'!I141)","v":""},{"$f":"IF('2. Assisted & Restricted Units'!AP141=\"\",\"\",'2. Assisted & Restricted Units'!AP141)","v":0},{"$f":"IF('2. Assisted & Restricted Units'!AT141=\"\",\"\",'2. Assisted & Restricted Units'!AT141)","v":""},0,{"$f":"IF('2. Assisted & Restricted Units'!AV141=\"\",\"\",'2. Assisted & Restricted Units'!AV141)","v":""},{"$f":"IF('2. Assisted & Restricted Units'!L141=\"\",\"\",'2. Assisted & Restricted Units'!L141)","v":""},{"$f":"IF('2. Assisted & Restricted Units'!M141=\"\",\"\",'2. Assisted & Restricted Units'!M141)","v":""},{"$f":"IF('2. Assisted & Restricted Units'!O141=\"\",\"\",'2. Assisted & Restricted Units'!O141)","v":""},{"$f":"IF('2. Assisted & Restricted Units'!P141=\"\",\"\",'2. Assisted & Restricted Units'!P141)","v":""},{"$f":"IF('2. Assisted & Restricted Units'!Q141=\"\",\"\",'2. Assisted & Restricted Units'!Q141)","v":""},{"$f":"IF('2. Assisted & Restricted Units'!R141=\"\",\"\",'2. Assisted & Restricted Units'!R141)","v":""},{"$f":"IF(A141=\"\",\"\",'1. Checklist & Certification'!$K$1)","v":""},{"$f":"IF(A141=\"\",\"\",'1. Checklist & Certification'!$C$62)","v":""},{"$f":"IF(A141=\"\",\"\",'1. Checklist & Certification'!$K$62)","v":""},{"$f":"IF(A141=\"\",\"\",'1. Checklist & Certification'!$C$6)","v":""},{"$f":"IF(A141=\"\",\"\",'1. Checklist & Certification'!$G$4)","v":""},{"$f":"IF(A141=\"\",\"\",'1. Checklist & Certification'!$C$7)","v":""},{"$f":"IF(A141=\"\",\"\",'1. Checklist & Certification'!$C$8)","v":""},{"$f":"IF(A141=\"\",\"\",'1. Checklist & Certification'!$F$7)","v":""},{"$f":"IF(A141=\"\",\"\",'1. Checklist & Certification'!$F$8)","v":""},{"$f":"IF(A141=\"\",\"\",'1. Checklist & Certification'!$B$9)","v":""},{"$f":"IF(A141=\"\",\"\",'1. Checklist & Certification'!$F$9)","v":""},{"$f":"IF(A141=\"\",\"\",'1. Checklist & Certification'!$C$10)","v":""},{"$f":"IF(A141=\"\",\"\",'1. Checklist & Certification'!$C$11)","v":""},{"$f":"IF(A141=\"\",\"\",'1. Checklist & Certification'!$C$12)","v":""},{"$f":"IF(A141=\"\",\"\",'1. Checklist & Certification'!$B$14)","v":""},{"$f":"IF(A141=\"\",\"\",'1. Checklist & Certification'!$E$14)","v":""},{"$f":"IF(B141=\"\",\"\",'1. Checklist & Certification'!$G$14)","v":""},{"$f":"IF(A141=\"\",\"\",'MHP Family Income & Rent Limits'!$B$3)","v":""},{"$f":"IF(A141=\"\",\"\",'MHP Family Income & Rent Limits'!$J$3)","v":""},{"$f":"IF(A141=\"\",\"\",'MHP Family Income & Rent Limits'!$E$4)","v":""},{"$f":"IF(A141=\"\",\"\",'MHP Family Income & Rent Limits'!$C$7)","v":""},{"$f":"IF(A141=\"\",\"\",'MHP Family Income & Rent Limits'!$F$8)","v":""},{"$f":"IF(A141=\"\",\"\",'1. Checklist & Certification'!$G$4)","v":""},{"$f":"IF(A141=\"\",\"\",'1. Checklist & Certification'!$K$39)","v":""},{"$f":"IF(A141=\"\",\"\",'1. Checklist & Certification'!$K$43)","v":""},{"$f":"IF(A141=\"\",\"\",'1. Checklist & Certification'!$K$45)","v":""},{"$f":"IF(A141=\"\",\"\",'1. Checklist & Certification'!$K$49)","v":""},{"$f":"IF(A141=\"\",\"\",'1. Checklist & Certification'!$E$66)","v":""},{"$f":"IF(A141=\"\",\"\",'1. Checklist & Certification'!$E$67)","v":""},{"$f":"IF(A141=\"\",\"\",'1. Checklist & Certification'!$E$68)","v":""},{"$f":"IF(A141=\"\",\"\",'1. Checklist & Certification'!$G$66)","v":""},{"$f":"IF(A141=\"\",\"\",'1. Checklist & Certification'!$H$66)","v":""},{"$f":"IF(A141=\"\",\"\",'1. Checklist & Certification'!$I$66)","v":""},{"$f":"IF(A141=\"\",\"\",'1. Checklist & Certification'!$I$67)","v":""},{"$f":"IF(A141=\"\",\"\",'1. Checklist & Certification'!$I$68)","v":""},null,{"$f":"IF(C141=\"\",\"\",HLOOKUP(C141,'MHP Family Income & Rent Limits'!$E$12:$L$26,2,FALSE))","v":""},{"$f":"IF(C141=\"\",\"\",HLOOKUP(C141,'MHP Family Income & Rent Limits'!$E$12:$L$26,3,FALSE))","v":""},{"$f":"IF(C141=\"\",\"\",HLOOKUP(C141,'MHP Family Income & Rent Limits'!$E$12:$L$26,4,FALSE))","v":""},{"$f":"IF(C141=\"\",\"\",HLOOKUP(C141,'MHP Family Income & Rent Limits'!$E$12:$L$26,5,FALSE))","v":""},{"$f":"IF(C141=\"\",\"\",HLOOKUP(C141,'MHP Family Income & Rent Limits'!$E$12:$L$26,6,FALSE))","v":""},{"$f":"IF(C141=\"\",\"\",HLOOKUP(C141,'MHP Family Income & Rent Limits'!$E$12:$L$26,7,FALSE))","v":""},{"$f":"IF(C141=\"\",\"\",HLOOKUP(C141,'MHP Family Income & Rent Limits'!$E$12:$L$26,8,FALSE))","v":""},{"$f":"IF(C141=\"\",\"\",HLOOKUP(C141,'MHP Family Income & Rent Limits'!$E$12:$L$26,9,FALSE))","v":""},{"$f":"IF(C141=\"\",\"\",HLOOKUP(C141,'MHP Family Income & Rent Limits'!$E$12:$L$26,10,FALSE))","v":""},{"$f":"IF(C141=\"\",\"\",HLOOKUP(C141,'MHP Family Income & Rent Limits'!$E$12:$L$26,11,FALSE))","v":""},{"$f":"IF(C141=\"\",\"\",HLOOKUP(C141,'MHP Family Income & Rent Limits'!$E$12:$L$26,12,FALSE))","v":""},{"$f":"IF(C141=\"\",\"\",HLOOKUP(C141,'MHP Family Income & Rent Limits'!$E$12:$L$26,13,FALSE))","v":""},{"$f":"IF(C141=\"\",\"\",HLOOKUP(C141,'MHP Family Income & Rent Limits'!$E$12:$L$26,14,FALSE))","v":""},{"$f":"IF(C141=\"\",\"\",HLOOKUP(C141,'MHP Family Income & Rent Limits'!$E$12:$L$26,15,FALSE))","v":""}]
[{"$f":"IF('2. Assisted & Restricted Units'!A142=\"\",\"\",'2. Assisted & Restricted Units'!A142)","v":""},{"$f":"IF('2. Assisted & Restricted Units'!B142=\"\",\"\",'2. Assisted & Restricted Units'!B142)","v":""},{"$f":"IF('2. Assisted & Restricted Units'!D142=\"\",\"\",'2. Assisted & Restricted Units'!D142)","v":""},{"$f":"IF('2. Assisted & Restricted Units'!E142=\"\",\"\",'2. Assisted & Restricted Units'!E142)","v":""},{"$f":"IF('2. Assisted & Restricted Units'!H142=\"\",\"\",'2. Assisted & Restricted Units'!H142)","v":""},{"$f":"_xlfn.IFS(E142=\"\",\"\",E142>BO142,$BP$6,E142>BN142,$BO$6,E142>BM142,$BN$6,E142>BL142,$BM$6,E142>BK142,$BL$6,E142>BJ142,$BK$6,E142>BI142,$BJ$6,E142>BH142,$BI$6,E142>BG142,$BH$6,E142>BF142,$BG$6,E142>BE142,$BF$6,E142>BD142,$BE$6,E142>BC142,$BD$6,E142>=0,$BC$6)","v":""},{"$f":"IF('2. Assisted & Restricted Units'!T142=\"\",\"\",'2. Assisted & Restricted Units'!T142)","v":""},{"$f":"IF('2. Assisted & Restricted Units'!I142=\"\",\"\",'2. Assisted & Restricted Units'!I142)","v":""},{"$f":"IF('2. Assisted & Restricted Units'!AP142=\"\",\"\",'2. Assisted & Restricted Units'!AP142)","v":0},{"$f":"IF('2. Assisted & Restricted Units'!AT142=\"\",\"\",'2. Assisted & Restricted Units'!AT142)","v":""},0,{"$f":"IF('2. Assisted & Restricted Units'!AV142=\"\",\"\",'2. Assisted & Restricted Units'!AV142)","v":""},{"$f":"IF('2. Assisted & Restricted Units'!L142=\"\",\"\",'2. Assisted & Restricted Units'!L142)","v":""},{"$f":"IF('2. Assisted & Restricted Units'!M142=\"\",\"\",'2. Assisted & Restricted Units'!M142)","v":""},{"$f":"IF('2. Assisted & Restricted Units'!O142=\"\",\"\",'2. Assisted & Restricted Units'!O142)","v":""},{"$f":"IF('2. Assisted & Restricted Units'!P142=\"\",\"\",'2. Assisted & Restricted Units'!P142)","v":""},{"$f":"IF('2. Assisted & Restricted Units'!Q142=\"\",\"\",'2. Assisted & Restricted Units'!Q142)","v":""},{"$f":"IF('2. Assisted & Restricted Units'!R142=\"\",\"\",'2. Assisted & Restricted Units'!R142)","v":""},{"$f":"IF(A142=\"\",\"\",'1. Checklist & Certification'!$K$1)","v":""},{"$f":"IF(A142=\"\",\"\",'1. Checklist & Certification'!$C$62)","v":""},{"$f":"IF(A142=\"\",\"\",'1. Checklist & Certification'!$K$62)","v":""},{"$f":"IF(A142=\"\",\"\",'1. Checklist & Certification'!$C$6)","v":""},{"$f":"IF(A142=\"\",\"\",'1. Checklist & Certification'!$G$4)","v":""},{"$f":"IF(A142=\"\",\"\",'1. Checklist & Certification'!$C$7)","v":""},{"$f":"IF(A142=\"\",\"\",'1. Checklist & Certification'!$C$8)","v":""},{"$f":"IF(A142=\"\",\"\",'1. Checklist & Certification'!$F$7)","v":""},{"$f":"IF(A142=\"\",\"\",'1. Checklist & Certification'!$F$8)","v":""},{"$f":"IF(A142=\"\",\"\",'1. Checklist & Certification'!$B$9)","v":""},{"$f":"IF(A142=\"\",\"\",'1. Checklist & Certification'!$F$9)","v":""},{"$f":"IF(A142=\"\",\"\",'1. Checklist & Certification'!$C$10)","v":""},{"$f":"IF(A142=\"\",\"\",'1. Checklist & Certification'!$C$11)","v":""},{"$f":"IF(A142=\"\",\"\",'1. Checklist & Certification'!$C$12)","v":""},{"$f":"IF(A142=\"\",\"\",'1. Checklist & Certification'!$B$14)","v":""},{"$f":"IF(A142=\"\",\"\",'1. Checklist & Certification'!$E$14)","v":""},{"$f":"IF(B142=\"\",\"\",'1. Checklist & Certification'!$G$14)","v":""},{"$f":"IF(A142=\"\",\"\",'MHP Family Income & Rent Limits'!$B$3)","v":""},{"$f":"IF(A142=\"\",\"\",'MHP Family Income & Rent Limits'!$J$3)","v":""},{"$f":"IF(A142=\"\",\"\",'MHP Family Income & Rent Limits'!$E$4)","v":""},{"$f":"IF(A142=\"\",\"\",'MHP Family Income & Rent Limits'!$C$7)","v":""},{"$f":"IF(A142=\"\",\"\",'MHP Family Income & Rent Limits'!$F$8)","v":""},{"$f":"IF(A142=\"\",\"\",'1. Checklist & Certification'!$G$4)","v":""},{"$f":"IF(A142=\"\",\"\",'1. Checklist & Certification'!$K$39)","v":""},{"$f":"IF(A142=\"\",\"\",'1. Checklist & Certification'!$K$43)","v":""},{"$f":"IF(A142=\"\",\"\",'1. Checklist & Certification'!$K$45)","v":""},{"$f":"IF(A142=\"\",\"\",'1. Checklist & Certification'!$K$49)","v":""},{"$f":"IF(A142=\"\",\"\",'1. Checklist & Certification'!$E$66)","v":""},{"$f":"IF(A142=\"\",\"\",'1. Checklist & Certification'!$E$67)","v":""},{"$f":"IF(A142=\"\",\"\",'1. Checklist & Certification'!$E$68)","v":""},{"$f":"IF(A142=\"\",\"\",'1. Checklist & Certification'!$G$66)","v":""},{"$f":"IF(A142=\"\",\"\",'1. Checklist & Certification'!$H$66)","v":""},{"$f":"IF(A142=\"\",\"\",'1. Checklist & Certification'!$I$66)","v":""},{"$f":"IF(A142=\"\",\"\",'1. Checklist & Certification'!$I$67)","v":""},{"$f":"IF(A142=\"\",\"\",'1. Checklist & Certification'!$I$68)","v":""},null,{"$f":"IF(C142=\"\",\"\",HLOOKUP(C142,'MHP Family Income & Rent Limits'!$E$12:$L$26,2,FALSE))","v":""},{"$f":"IF(C142=\"\",\"\",HLOOKUP(C142,'MHP Family Income & Rent Limits'!$E$12:$L$26,3,FALSE))","v":""},{"$f":"IF(C142=\"\",\"\",HLOOKUP(C142,'MHP Family Income & Rent Limits'!$E$12:$L$26,4,FALSE))","v":""},{"$f":"IF(C142=\"\",\"\",HLOOKUP(C142,'MHP Family Income & Rent Limits'!$E$12:$L$26,5,FALSE))","v":""},{"$f":"IF(C142=\"\",\"\",HLOOKUP(C142,'MHP Family Income & Rent Limits'!$E$12:$L$26,6,FALSE))","v":""},{"$f":"IF(C142=\"\",\"\",HLOOKUP(C142,'MHP Family Income & Rent Limits'!$E$12:$L$26,7,FALSE))","v":""},{"$f":"IF(C142=\"\",\"\",HLOOKUP(C142,'MHP Family Income & Rent Limits'!$E$12:$L$26,8,FALSE))","v":""},{"$f":"IF(C142=\"\",\"\",HLOOKUP(C142,'MHP Family Income & Rent Limits'!$E$12:$L$26,9,FALSE))","v":""},{"$f":"IF(C142=\"\",\"\",HLOOKUP(C142,'MHP Family Income & Rent Limits'!$E$12:$L$26,10,FALSE))","v":""},{"$f":"IF(C142=\"\",\"\",HLOOKUP(C142,'MHP Family Income & Rent Limits'!$E$12:$L$26,11,FALSE))","v":""},{"$f":"IF(C142=\"\",\"\",HLOOKUP(C142,'MHP Family Income & Rent Limits'!$E$12:$L$26,12,FALSE))","v":""},{"$f":"IF(C142=\"\",\"\",HLOOKUP(C142,'MHP Family Income & Rent Limits'!$E$12:$L$26,13,FALSE))","v":""},{"$f":"IF(C142=\"\",\"\",HLOOKUP(C142,'MHP Family Income & Rent Limits'!$E$12:$L$26,14,FALSE))","v":""},{"$f":"IF(C142=\"\",\"\",HLOOKUP(C142,'MHP Family Income & Rent Limits'!$E$12:$L$26,15,FALSE))","v":""}]
[{"$f":"IF('2. Assisted & Restricted Units'!A143=\"\",\"\",'2. Assisted & Restricted Units'!A143)","v":""},{"$f":"IF('2. Assisted & Restricted Units'!B143=\"\",\"\",'2. Assisted & Restricted Units'!B143)","v":""},{"$f":"IF('2. Assisted & Restricted Units'!D143=\"\",\"\",'2. Assisted & Restricted Units'!D143)","v":""},{"$f":"IF('2. Assisted & Restricted Units'!E143=\"\",\"\",'2. Assisted & Restricted Units'!E143)","v":""},{"$f":"IF('2. Assisted & Restricted Units'!H143=\"\",\"\",'2. Assisted & Restricted Units'!H143)","v":""},{"$f":"_xlfn.IFS(E143=\"\",\"\",E143>BO143,$BP$6,E143>BN143,$BO$6,E143>BM143,$BN$6,E143>BL143,$BM$6,E143>BK143,$BL$6,E143>BJ143,$BK$6,E143>BI143,$BJ$6,E143>BH143,$BI$6,E143>BG143,$BH$6,E143>BF143,$BG$6,E143>BE143,$BF$6,E143>BD143,$BE$6,E143>BC143,$BD$6,E143>=0,$BC$6)","v":""},{"$f":"IF('2. Assisted & Restricted Units'!T143=\"\",\"\",'2. Assisted & Restricted Units'!T143)","v":""},{"$f":"IF('2. Assisted & Restricted Units'!I143=\"\",\"\",'2. Assisted & Restricted Units'!I143)","v":""},{"$f":"IF('2. Assisted & Restricted Units'!AP143=\"\",\"\",'2. Assisted & Restricted Units'!AP143)","v":0},{"$f":"IF('2. Assisted & Restricted Units'!AT143=\"\",\"\",'2. Assisted & Restricted Units'!AT143)","v":""},0,{"$f":"IF('2. Assisted & Restricted Units'!AV143=\"\",\"\",'2. Assisted & Restricted Units'!AV143)","v":""},{"$f":"IF('2. Assisted & Restricted Units'!L143=\"\",\"\",'2. Assisted & Restricted Units'!L143)","v":""},{"$f":"IF('2. Assisted & Restricted Units'!M143=\"\",\"\",'2. Assisted & Restricted Units'!M143)","v":""},{"$f":"IF('2. Assisted & Restricted Units'!O143=\"\",\"\",'2. Assisted & Restricted Units'!O143)","v":""},{"$f":"IF('2. Assisted & Restricted Units'!P143=\"\",\"\",'2. Assisted & Restricted Units'!P143)","v":""},{"$f":"IF('2. Assisted & Restricted Units'!Q143=\"\",\"\",'2. Assisted & Restricted Units'!Q143)","v":""},{"$f":"IF('2. Assisted & Restricted Units'!R143=\"\",\"\",'2. Assisted & Restricted Units'!R143)","v":""},{"$f":"IF(A143=\"\",\"\",'1. Checklist & Certification'!$K$1)","v":""},{"$f":"IF(A143=\"\",\"\",'1. Checklist & Certification'!$C$62)","v":""},{"$f":"IF(A143=\"\",\"\",'1. Checklist & Certification'!$K$62)","v":""},{"$f":"IF(A143=\"\",\"\",'1. Checklist & Certification'!$C$6)","v":""},{"$f":"IF(A143=\"\",\"\",'1. Checklist & Certification'!$G$4)","v":""},{"$f":"IF(A143=\"\",\"\",'1. Checklist & Certification'!$C$7)","v":""},{"$f":"IF(A143=\"\",\"\",'1. Checklist & Certification'!$C$8)","v":""},{"$f":"IF(A143=\"\",\"\",'1. Checklist & Certification'!$F$7)","v":""},{"$f":"IF(A143=\"\",\"\",'1. Checklist & Certification'!$F$8)","v":""},{"$f":"IF(A143=\"\",\"\",'1. Checklist & Certification'!$B$9)","v":""},{"$f":"IF(A143=\"\",\"\",'1. Checklist & Certification'!$F$9)","v":""},{"$f":"IF(A143=\"\",\"\",'1. Checklist & Certification'!$C$10)","v":""},{"$f":"IF(A143=\"\",\"\",'1. Checklist & Certification'!$C$11)","v":""},{"$f":"IF(A143=\"\",\"\",'1. Checklist & Certification'!$C$12)","v":""},{"$f":"IF(A143=\"\",\"\",'1. Checklist & Certification'!$B$14)","v":""},{"$f":"IF(A143=\"\",\"\",'1. Checklist & Certification'!$E$14)","v":""},{"$f":"IF(B143=\"\",\"\",'1. Checklist & Certification'!$G$14)","v":""},{"$f":"IF(A143=\"\",\"\",'MHP Family Income & Rent Limits'!$B$3)","v":""},{"$f":"IF(A143=\"\",\"\",'MHP Family Income & Rent Limits'!$J$3)","v":""},{"$f":"IF(A143=\"\",\"\",'MHP Family Income & Rent Limits'!$E$4)","v":""},{"$f":"IF(A143=\"\",\"\",'MHP Family Income & Rent Limits'!$C$7)","v":""},{"$f":"IF(A143=\"\",\"\",'MHP Family Income & Rent Limits'!$F$8)","v":""},{"$f":"IF(A143=\"\",\"\",'1. Checklist & Certification'!$G$4)","v":""},{"$f":"IF(A143=\"\",\"\",'1. Checklist & Certification'!$K$39)","v":""},{"$f":"IF(A143=\"\",\"\",'1. Checklist & Certification'!$K$43)","v":""},{"$f":"IF(A143=\"\",\"\",'1. Checklist & Certification'!$K$45)","v":""},{"$f":"IF(A143=\"\",\"\",'1. Checklist & Certification'!$K$49)","v":""},{"$f":"IF(A143=\"\",\"\",'1. Checklist & Certification'!$E$66)","v":""},{"$f":"IF(A143=\"\",\"\",'1. Checklist & Certification'!$E$67)","v":""},{"$f":"IF(A143=\"\",\"\",'1. Checklist & Certification'!$E$68)","v":""},{"$f":"IF(A143=\"\",\"\",'1. Checklist & Certification'!$G$66)","v":""},{"$f":"IF(A143=\"\",\"\",'1. Checklist & Certification'!$H$66)","v":""},{"$f":"IF(A143=\"\",\"\",'1. Checklist & Certification'!$I$66)","v":""},{"$f":"IF(A143=\"\",\"\",'1. Checklist & Certification'!$I$67)","v":""},{"$f":"IF(A143=\"\",\"\",'1. Checklist & Certification'!$I$68)","v":""},null,{"$f":"IF(C143=\"\",\"\",HLOOKUP(C143,'MHP Family Income & Rent Limits'!$E$12:$L$26,2,FALSE))","v":""},{"$f":"IF(C143=\"\",\"\",HLOOKUP(C143,'MHP Family Income & Rent Limits'!$E$12:$L$26,3,FALSE))","v":""},{"$f":"IF(C143=\"\",\"\",HLOOKUP(C143,'MHP Family Income & Rent Limits'!$E$12:$L$26,4,FALSE))","v":""},{"$f":"IF(C143=\"\",\"\",HLOOKUP(C143,'MHP Family Income & Rent Limits'!$E$12:$L$26,5,FALSE))","v":""},{"$f":"IF(C143=\"\",\"\",HLOOKUP(C143,'MHP Family Income & Rent Limits'!$E$12:$L$26,6,FALSE))","v":""},{"$f":"IF(C143=\"\",\"\",HLOOKUP(C143,'MHP Family Income & Rent Limits'!$E$12:$L$26,7,FALSE))","v":""},{"$f":"IF(C143=\"\",\"\",HLOOKUP(C143,'MHP Family Income & Rent Limits'!$E$12:$L$26,8,FALSE))","v":""},{"$f":"IF(C143=\"\",\"\",HLOOKUP(C143,'MHP Family Income & Rent Limits'!$E$12:$L$26,9,FALSE))","v":""},{"$f":"IF(C143=\"\",\"\",HLOOKUP(C143,'MHP Family Income & Rent Limits'!$E$12:$L$26,10,FALSE))","v":""},{"$f":"IF(C143=\"\",\"\",HLOOKUP(C143,'MHP Family Income & Rent Limits'!$E$12:$L$26,11,FALSE))","v":""},{"$f":"IF(C143=\"\",\"\",HLOOKUP(C143,'MHP Family Income & Rent Limits'!$E$12:$L$26,12,FALSE))","v":""},{"$f":"IF(C143=\"\",\"\",HLOOKUP(C143,'MHP Family Income & Rent Limits'!$E$12:$L$26,13,FALSE))","v":""},{"$f":"IF(C143=\"\",\"\",HLOOKUP(C143,'MHP Family Income & Rent Limits'!$E$12:$L$26,14,FALSE))","v":""},{"$f":"IF(C143=\"\",\"\",HLOOKUP(C143,'MHP Family Income & Rent Limits'!$E$12:$L$26,15,FALSE))","v":""}]
[{"$f":"IF('2. Assisted & Restricted Units'!A144=\"\",\"\",'2. Assisted & Restricted Units'!A144)","v":""},{"$f":"IF('2. Assisted & Restricted Units'!B144=\"\",\"\",'2. Assisted & Restricted Units'!B144)","v":""},{"$f":"IF('2. Assisted & Restricted Units'!D144=\"\",\"\",'2. Assisted & Restricted Units'!D144)","v":""},{"$f":"IF('2. Assisted & Restricted Units'!E144=\"\",\"\",'2. Assisted & Restricted Units'!E144)","v":""},{"$f":"IF('2. Assisted & Restricted Units'!H144=\"\",\"\",'2. Assisted & Restricted Units'!H144)","v":""},{"$f":"_xlfn.IFS(E144=\"\",\"\",E144>BO144,$BP$6,E144>BN144,$BO$6,E144>BM144,$BN$6,E144>BL144,$BM$6,E144>BK144,$BL$6,E144>BJ144,$BK$6,E144>BI144,$BJ$6,E144>BH144,$BI$6,E144>BG144,$BH$6,E144>BF144,$BG$6,E144>BE144,$BF$6,E144>BD144,$BE$6,E144>BC144,$BD$6,E144>=0,$BC$6)","v":""},{"$f":"IF('2. Assisted & Restricted Units'!T144=\"\",\"\",'2. Assisted & Restricted Units'!T144)","v":""},{"$f":"IF('2. Assisted & Restricted Units'!I144=\"\",\"\",'2. Assisted & Restricted Units'!I144)","v":""},{"$f":"IF('2. Assisted & Restricted Units'!AP144=\"\",\"\",'2. Assisted & Restricted Units'!AP144)","v":0},{"$f":"IF('2. Assisted & Restricted Units'!AT144=\"\",\"\",'2. Assisted & Restricted Units'!AT144)","v":""},0,{"$f":"IF('2. Assisted & Restricted Units'!AV144=\"\",\"\",'2. Assisted & Restricted Units'!AV144)","v":""},{"$f":"IF('2. Assisted & Restricted Units'!L144=\"\",\"\",'2. Assisted & Restricted Units'!L144)","v":""},{"$f":"IF('2. Assisted & Restricted Units'!M144=\"\",\"\",'2. Assisted & Restricted Units'!M144)","v":""},{"$f":"IF('2. Assisted & Restricted Units'!O144=\"\",\"\",'2. Assisted & Restricted Units'!O144)","v":""},{"$f":"IF('2. Assisted & Restricted Units'!P144=\"\",\"\",'2. Assisted & Restricted Units'!P144)","v":""},{"$f":"IF('2. Assisted & Restricted Units'!Q144=\"\",\"\",'2. Assisted & Restricted Units'!Q144)","v":""},{"$f":"IF('2. Assisted & Restricted Units'!R144=\"\",\"\",'2. Assisted & Restricted Units'!R144)","v":""},{"$f":"IF(A144=\"\",\"\",'1. Checklist & Certification'!$K$1)","v":""},{"$f":"IF(A144=\"\",\"\",'1. Checklist & Certification'!$C$62)","v":""},{"$f":"IF(A144=\"\",\"\",'1. Checklist & Certification'!$K$62)","v":""},{"$f":"IF(A144=\"\",\"\",'1. Checklist & Certification'!$C$6)","v":""},{"$f":"IF(A144=\"\",\"\",'1. Checklist & Certification'!$G$4)","v":""},{"$f":"IF(A144=\"\",\"\",'1. Checklist & Certification'!$C$7)","v":""},{"$f":"IF(A144=\"\",\"\",'1. Checklist & Certification'!$C$8)","v":""},{"$f":"IF(A144=\"\",\"\",'1. Checklist & Certification'!$F$7)","v":""},{"$f":"IF(A144=\"\",\"\",'1. Checklist & Certification'!$F$8)","v":""},{"$f":"IF(A144=\"\",\"\",'1. Checklist & Certification'!$B$9)","v":""},{"$f":"IF(A144=\"\",\"\",'1. Checklist & Certification'!$F$9)","v":""},{"$f":"IF(A144=\"\",\"\",'1. Checklist & Certification'!$C$10)","v":""},{"$f":"IF(A144=\"\",\"\",'1. Checklist & Certification'!$C$11)","v":""},{"$f":"IF(A144=\"\",\"\",'1. Checklist & Certification'!$C$12)","v":""},{"$f":"IF(A144=\"\",\"\",'1. Checklist & Certification'!$B$14)","v":""},{"$f":"IF(A144=\"\",\"\",'1. Checklist & Certification'!$E$14)","v":""},{"$f":"IF(B144=\"\",\"\",'1. Checklist & Certification'!$G$14)","v":""},{"$f":"IF(A144=\"\",\"\",'MHP Family Income & Rent Limits'!$B$3)","v":""},{"$f":"IF(A144=\"\",\"\",'MHP Family Income & Rent Limits'!$J$3)","v":""},{"$f":"IF(A144=\"\",\"\",'MHP Family Income & Rent Limits'!$E$4)","v":""},{"$f":"IF(A144=\"\",\"\",'MHP Family Income & Rent Limits'!$C$7)","v":""},{"$f":"IF(A144=\"\",\"\",'MHP Family Income & Rent Limits'!$F$8)","v":""},{"$f":"IF(A144=\"\",\"\",'1. Checklist & Certification'!$G$4)","v":""},{"$f":"IF(A144=\"\",\"\",'1. Checklist & Certification'!$K$39)","v":""},{"$f":"IF(A144=\"\",\"\",'1. Checklist & Certification'!$K$43)","v":""},{"$f":"IF(A144=\"\",\"\",'1. Checklist & Certification'!$K$45)","v":""},{"$f":"IF(A144=\"\",\"\",'1. Checklist & Certification'!$K$49)","v":""},{"$f":"IF(A144=\"\",\"\",'1. Checklist & Certification'!$E$66)","v":""},{"$f":"IF(A144=\"\",\"\",'1. Checklist & Certification'!$E$67)","v":""},{"$f":"IF(A144=\"\",\"\",'1. Checklist & Certification'!$E$68)","v":""},{"$f":"IF(A144=\"\",\"\",'1. Checklist & Certification'!$G$66)","v":""},{"$f":"IF(A144=\"\",\"\",'1. Checklist & Certification'!$H$66)","v":""},{"$f":"IF(A144=\"\",\"\",'1. Checklist & Certification'!$I$66)","v":""},{"$f":"IF(A144=\"\",\"\",'1. Checklist & Certification'!$I$67)","v":""},{"$f":"IF(A144=\"\",\"\",'1. Checklist & Certification'!$I$68)","v":""},null,{"$f":"IF(C144=\"\",\"\",HLOOKUP(C144,'MHP Family Income & Rent Limits'!$E$12:$L$26,2,FALSE))","v":""},{"$f":"IF(C144=\"\",\"\",HLOOKUP(C144,'MHP Family Income & Rent Limits'!$E$12:$L$26,3,FALSE))","v":""},{"$f":"IF(C144=\"\",\"\",HLOOKUP(C144,'MHP Family Income & Rent Limits'!$E$12:$L$26,4,FALSE))","v":""},{"$f":"IF(C144=\"\",\"\",HLOOKUP(C144,'MHP Family Income & Rent Limits'!$E$12:$L$26,5,FALSE))","v":""},{"$f":"IF(C144=\"\",\"\",HLOOKUP(C144,'MHP Family Income & Rent Limits'!$E$12:$L$26,6,FALSE))","v":""},{"$f":"IF(C144=\"\",\"\",HLOOKUP(C144,'MHP Family Income & Rent Limits'!$E$12:$L$26,7,FALSE))","v":""},{"$f":"IF(C144=\"\",\"\",HLOOKUP(C144,'MHP Family Income & Rent Limits'!$E$12:$L$26,8,FALSE))","v":""},{"$f":"IF(C144=\"\",\"\",HLOOKUP(C144,'MHP Family Income & Rent Limits'!$E$12:$L$26,9,FALSE))","v":""},{"$f":"IF(C144=\"\",\"\",HLOOKUP(C144,'MHP Family Income & Rent Limits'!$E$12:$L$26,10,FALSE))","v":""},{"$f":"IF(C144=\"\",\"\",HLOOKUP(C144,'MHP Family Income & Rent Limits'!$E$12:$L$26,11,FALSE))","v":""},{"$f":"IF(C144=\"\",\"\",HLOOKUP(C144,'MHP Family Income & Rent Limits'!$E$12:$L$26,12,FALSE))","v":""},{"$f":"IF(C144=\"\",\"\",HLOOKUP(C144,'MHP Family Income & Rent Limits'!$E$12:$L$26,13,FALSE))","v":""},{"$f":"IF(C144=\"\",\"\",HLOOKUP(C144,'MHP Family Income & Rent Limits'!$E$12:$L$26,14,FALSE))","v":""},{"$f":"IF(C144=\"\",\"\",HLOOKUP(C144,'MHP Family Income & Rent Limits'!$E$12:$L$26,15,FALSE))","v":""}]
[{"$f":"IF('2. Assisted & Restricted Units'!A145=\"\",\"\",'2. Assisted & Restricted Units'!A145)","v":""},{"$f":"IF('2. Assisted & Restricted Units'!B145=\"\",\"\",'2. Assisted & Restricted Units'!B145)","v":""},{"$f":"IF('2. Assisted & Restricted Units'!D145=\"\",\"\",'2. Assisted & Restricted Units'!D145)","v":""},{"$f":"IF('2. Assisted & Restricted Units'!E145=\"\",\"\",'2. Assisted & Restricted Units'!E145)","v":""},{"$f":"IF('2. Assisted & Restricted Units'!H145=\"\",\"\",'2. Assisted & Restricted Units'!H145)","v":""},{"$f":"_xlfn.IFS(E145=\"\",\"\",E145>BO145,$BP$6,E145>BN145,$BO$6,E145>BM145,$BN$6,E145>BL145,$BM$6,E145>BK145,$BL$6,E145>BJ145,$BK$6,E145>BI145,$BJ$6,E145>BH145,$BI$6,E145>BG145,$BH$6,E145>BF145,$BG$6,E145>BE145,$BF$6,E145>BD145,$BE$6,E145>BC145,$BD$6,E145>=0,$BC$6)","v":""},{"$f":"IF('2. Assisted & Restricted Units'!T145=\"\",\"\",'2. Assisted & Restricted Units'!T145)","v":""},{"$f":"IF('2. Assisted & Restricted Units'!I145=\"\",\"\",'2. Assisted & Restricted Units'!I145)","v":""},{"$f":"IF('2. Assisted & Restricted Units'!AP145=\"\",\"\",'2. Assisted & Restricted Units'!AP145)","v":0},{"$f":"IF('2. Assisted & Restricted Units'!AT145=\"\",\"\",'2. Assisted & Restricted Units'!AT145)","v":""},0,{"$f":"IF('2. Assisted & Restricted Units'!AV145=\"\",\"\",'2. Assisted & Restricted Units'!AV145)","v":""},{"$f":"IF('2. Assisted & Restricted Units'!L145=\"\",\"\",'2. Assisted & Restricted Units'!L145)","v":""},{"$f":"IF('2. Assisted & Restricted Units'!M145=\"\",\"\",'2. Assisted & Restricted Units'!M145)","v":""},{"$f":"IF('2. Assisted & Restricted Units'!O145=\"\",\"\",'2. Assisted & Restricted Units'!O145)","v":""},{"$f":"IF('2. Assisted & Restricted Units'!P145=\"\",\"\",'2. Assisted & Restricted Units'!P145)","v":""},{"$f":"IF('2. Assisted & Restricted Units'!Q145=\"\",\"\",'2. Assisted & Restricted Units'!Q145)","v":""},{"$f":"IF('2. Assisted & Restricted Units'!R145=\"\",\"\",'2. Assisted & Restricted Units'!R145)","v":""},{"$f":"IF(A145=\"\",\"\",'1. Checklist & Certification'!$K$1)","v":""},{"$f":"IF(A145=\"\",\"\",'1. Checklist & Certification'!$C$62)","v":""},{"$f":"IF(A145=\"\",\"\",'1. Checklist & Certification'!$K$62)","v":""},{"$f":"IF(A145=\"\",\"\",'1. Checklist & Certification'!$C$6)","v":""},{"$f":"IF(A145=\"\",\"\",'1. Checklist & Certification'!$G$4)","v":""},{"$f":"IF(A145=\"\",\"\",'1. Checklist & Certification'!$C$7)","v":""},{"$f":"IF(A145=\"\",\"\",'1. Checklist & Certification'!$C$8)","v":""},{"$f":"IF(A145=\"\",\"\",'1. Checklist & Certification'!$F$7)","v":""},{"$f":"IF(A145=\"\",\"\",'1. Checklist & Certification'!$F$8)","v":""},{"$f":"IF(A145=\"\",\"\",'1. Checklist & Certification'!$B$9)","v":""},{"$f":"IF(A145=\"\",\"\",'1. Checklist & Certification'!$F$9)","v":""},{"$f":"IF(A145=\"\",\"\",'1. Checklist & Certification'!$C$10)","v":""},{"$f":"IF(A145=\"\",\"\",'1. Checklist & Certification'!$C$11)","v":""},{"$f":"IF(A145=\"\",\"\",'1. Checklist & Certification'!$C$12)","v":""},{"$f":"IF(A145=\"\",\"\",'1. Checklist & Certification'!$B$14)","v":""},{"$f":"IF(A145=\"\",\"\",'1. Checklist & Certification'!$E$14)","v":""},{"$f":"IF(B145=\"\",\"\",'1. Checklist & Certification'!$G$14)","v":""},{"$f":"IF(A145=\"\",\"\",'MHP Family Income & Rent Limits'!$B$3)","v":""},{"$f":"IF(A145=\"\",\"\",'MHP Family Income & Rent Limits'!$J$3)","v":""},{"$f":"IF(A145=\"\",\"\",'MHP Family Income & Rent Limits'!$E$4)","v":""},{"$f":"IF(A145=\"\",\"\",'MHP Family Income & Rent Limits'!$C$7)","v":""},{"$f":"IF(A145=\"\",\"\",'MHP Family Income & Rent Limits'!$F$8)","v":""},{"$f":"IF(A145=\"\",\"\",'1. Checklist & Certification'!$G$4)","v":""},{"$f":"IF(A145=\"\",\"\",'1. Checklist & Certification'!$K$39)","v":""},{"$f":"IF(A145=\"\",\"\",'1. Checklist & Certification'!$K$43)","v":""},{"$f":"IF(A145=\"\",\"\",'1. Checklist & Certification'!$K$45)","v":""},{"$f":"IF(A145=\"\",\"\",'1. Checklist & Certification'!$K$49)","v":""},{"$f":"IF(A145=\"\",\"\",'1. Checklist & Certification'!$E$66)","v":""},{"$f":"IF(A145=\"\",\"\",'1. Checklist & Certification'!$E$67)","v":""},{"$f":"IF(A145=\"\",\"\",'1. Checklist & Certification'!$E$68)","v":""},{"$f":"IF(A145=\"\",\"\",'1. Checklist & Certification'!$G$66)","v":""},{"$f":"IF(A145=\"\",\"\",'1. Checklist & Certification'!$H$66)","v":""},{"$f":"IF(A145=\"\",\"\",'1. Checklist & Certification'!$I$66)","v":""},{"$f":"IF(A145=\"\",\"\",'1. Checklist & Certification'!$I$67)","v":""},{"$f":"IF(A145=\"\",\"\",'1. Checklist & Certification'!$I$68)","v":""},null,{"$f":"IF(C145=\"\",\"\",HLOOKUP(C145,'MHP Family Income & Rent Limits'!$E$12:$L$26,2,FALSE))","v":""},{"$f":"IF(C145=\"\",\"\",HLOOKUP(C145,'MHP Family Income & Rent Limits'!$E$12:$L$26,3,FALSE))","v":""},{"$f":"IF(C145=\"\",\"\",HLOOKUP(C145,'MHP Family Income & Rent Limits'!$E$12:$L$26,4,FALSE))","v":""},{"$f":"IF(C145=\"\",\"\",HLOOKUP(C145,'MHP Family Income & Rent Limits'!$E$12:$L$26,5,FALSE))","v":""},{"$f":"IF(C145=\"\",\"\",HLOOKUP(C145,'MHP Family Income & Rent Limits'!$E$12:$L$26,6,FALSE))","v":""},{"$f":"IF(C145=\"\",\"\",HLOOKUP(C145,'MHP Family Income & Rent Limits'!$E$12:$L$26,7,FALSE))","v":""},{"$f":"IF(C145=\"\",\"\",HLOOKUP(C145,'MHP Family Income & Rent Limits'!$E$12:$L$26,8,FALSE))","v":""},{"$f":"IF(C145=\"\",\"\",HLOOKUP(C145,'MHP Family Income & Rent Limits'!$E$12:$L$26,9,FALSE))","v":""},{"$f":"IF(C145=\"\",\"\",HLOOKUP(C145,'MHP Family Income & Rent Limits'!$E$12:$L$26,10,FALSE))","v":""},{"$f":"IF(C145=\"\",\"\",HLOOKUP(C145,'MHP Family Income & Rent Limits'!$E$12:$L$26,11,FALSE))","v":""},{"$f":"IF(C145=\"\",\"\",HLOOKUP(C145,'MHP Family Income & Rent Limits'!$E$12:$L$26,12,FALSE))","v":""},{"$f":"IF(C145=\"\",\"\",HLOOKUP(C145,'MHP Family Income & Rent Limits'!$E$12:$L$26,13,FALSE))","v":""},{"$f":"IF(C145=\"\",\"\",HLOOKUP(C145,'MHP Family Income & Rent Limits'!$E$12:$L$26,14,FALSE))","v":""},{"$f":"IF(C145=\"\",\"\",HLOOKUP(C145,'MHP Family Income & Rent Limits'!$E$12:$L$26,15,FALSE))","v":""}]
[{"$f":"IF('2. Assisted & Restricted Units'!A146=\"\",\"\",'2. Assisted & Restricted Units'!A146)","v":""},{"$f":"IF('2. Assisted & Restricted Units'!B146=\"\",\"\",'2. Assisted & Restricted Units'!B146)","v":""},{"$f":"IF('2. Assisted & Restricted Units'!D146=\"\",\"\",'2. Assisted & Restricted Units'!D146)","v":""},{"$f":"IF('2. Assisted & Restricted Units'!E146=\"\",\"\",'2. Assisted & Restricted Units'!E146)","v":""},{"$f":"IF('2. Assisted & Restricted Units'!H146=\"\",\"\",'2. Assisted & Restricted Units'!H146)","v":""},{"$f":"_xlfn.IFS(E146=\"\",\"\",E146>BO146,$BP$6,E146>BN146,$BO$6,E146>BM146,$BN$6,E146>BL146,$BM$6,E146>BK146,$BL$6,E146>BJ146,$BK$6,E146>BI146,$BJ$6,E146>BH146,$BI$6,E146>BG146,$BH$6,E146>BF146,$BG$6,E146>BE146,$BF$6,E146>BD146,$BE$6,E146>BC146,$BD$6,E146>=0,$BC$6)","v":""},{"$f":"IF('2. Assisted & Restricted Units'!T146=\"\",\"\",'2. Assisted & Restricted Units'!T146)","v":""},{"$f":"IF('2. Assisted & Restricted Units'!I146=\"\",\"\",'2. Assisted & Restricted Units'!I146)","v":""},{"$f":"IF('2. Assisted & Restricted Units'!AP146=\"\",\"\",'2. Assisted & Restricted Units'!AP146)","v":0},{"$f":"IF('2. Assisted & Restricted Units'!AT146=\"\",\"\",'2. Assisted & Restricted Units'!AT146)","v":""},0,{"$f":"IF('2. Assisted & Restricted Units'!AV146=\"\",\"\",'2. Assisted & Restricted Units'!AV146)","v":""},{"$f":"IF('2. Assisted & Restricted Units'!L146=\"\",\"\",'2. Assisted & Restricted Units'!L146)","v":""},{"$f":"IF('2. Assisted & Restricted Units'!M146=\"\",\"\",'2. Assisted & Restricted Units'!M146)","v":""},{"$f":"IF('2. Assisted & Restricted Units'!O146=\"\",\"\",'2. Assisted & Restricted Units'!O146)","v":""},{"$f":"IF('2. Assisted & Restricted Units'!P146=\"\",\"\",'2. Assisted & Restricted Units'!P146)","v":""},{"$f":"IF('2. Assisted & Restricted Units'!Q146=\"\",\"\",'2. Assisted & Restricted Units'!Q146)","v":""},{"$f":"IF('2. Assisted & Restricted Units'!R146=\"\",\"\",'2. Assisted & Restricted Units'!R146)","v":""},{"$f":"IF(A146=\"\",\"\",'1. Checklist & Certification'!$K$1)","v":""},{"$f":"IF(A146=\"\",\"\",'1. Checklist & Certification'!$C$62)","v":""},{"$f":"IF(A146=\"\",\"\",'1. Checklist & Certification'!$K$62)","v":""},{"$f":"IF(A146=\"\",\"\",'1. Checklist & Certification'!$C$6)","v":""},{"$f":"IF(A146=\"\",\"\",'1. Checklist & Certification'!$G$4)","v":""},{"$f":"IF(A146=\"\",\"\",'1. Checklist & Certification'!$C$7)","v":""},{"$f":"IF(A146=\"\",\"\",'1. Checklist & Certification'!$C$8)","v":""},{"$f":"IF(A146=\"\",\"\",'1. Checklist & Certification'!$F$7)","v":""},{"$f":"IF(A146=\"\",\"\",'1. Checklist & Certification'!$F$8)","v":""},{"$f":"IF(A146=\"\",\"\",'1. Checklist & Certification'!$B$9)","v":""},{"$f":"IF(A146=\"\",\"\",'1. Checklist & Certification'!$F$9)","v":""},{"$f":"IF(A146=\"\",\"\",'1. Checklist & Certification'!$C$10)","v":""},{"$f":"IF(A146=\"\",\"\",'1. Checklist & Certification'!$C$11)","v":""},{"$f":"IF(A146=\"\",\"\",'1. Checklist & Certification'!$C$12)","v":""},{"$f":"IF(A146=\"\",\"\",'1. Checklist & Certification'!$B$14)","v":""},{"$f":"IF(A146=\"\",\"\",'1. Checklist & Certification'!$E$14)","v":""},{"$f":"IF(B146=\"\",\"\",'1. Checklist & Certification'!$G$14)","v":""},{"$f":"IF(A146=\"\",\"\",'MHP Family Income & Rent Limits'!$B$3)","v":""},{"$f":"IF(A146=\"\",\"\",'MHP Family Income & Rent Limits'!$J$3)","v":""},{"$f":"IF(A146=\"\",\"\",'MHP Family Income & Rent Limits'!$E$4)","v":""},{"$f":"IF(A146=\"\",\"\",'MHP Family Income & Rent Limits'!$C$7)","v":""},{"$f":"IF(A146=\"\",\"\",'MHP Family Income & Rent Limits'!$F$8)","v":""},{"$f":"IF(A146=\"\",\"\",'1. Checklist & Certification'!$G$4)","v":""},{"$f":"IF(A146=\"\",\"\",'1. Checklist & Certification'!$K$39)","v":""},{"$f":"IF(A146=\"\",\"\",'1. Checklist & Certification'!$K$43)","v":""},{"$f":"IF(A146=\"\",\"\",'1. Checklist & Certification'!$K$45)","v":""},{"$f":"IF(A146=\"\",\"\",'1. Checklist & Certification'!$K$49)","v":""},{"$f":"IF(A146=\"\",\"\",'1. Checklist & Certification'!$E$66)","v":""},{"$f":"IF(A146=\"\",\"\",'1. Checklist & Certification'!$E$67)","v":""},{"$f":"IF(A146=\"\",\"\",'1. Checklist & Certification'!$E$68)","v":""},{"$f":"IF(A146=\"\",\"\",'1. Checklist & Certification'!$G$66)","v":""},{"$f":"IF(A146=\"\",\"\",'1. Checklist & Certification'!$H$66)","v":""},{"$f":"IF(A146=\"\",\"\",'1. Checklist & Certification'!$I$66)","v":""},{"$f":"IF(A146=\"\",\"\",'1. Checklist & Certification'!$I$67)","v":""},{"$f":"IF(A146=\"\",\"\",'1. Checklist & Certification'!$I$68)","v":""},null,{"$f":"IF(C146=\"\",\"\",HLOOKUP(C146,'MHP Family Income & Rent Limits'!$E$12:$L$26,2,FALSE))","v":""},{"$f":"IF(C146=\"\",\"\",HLOOKUP(C146,'MHP Family Income & Rent Limits'!$E$12:$L$26,3,FALSE))","v":""},{"$f":"IF(C146=\"\",\"\",HLOOKUP(C146,'MHP Family Income & Rent Limits'!$E$12:$L$26,4,FALSE))","v":""},{"$f":"IF(C146=\"\",\"\",HLOOKUP(C146,'MHP Family Income & Rent Limits'!$E$12:$L$26,5,FALSE))","v":""},{"$f":"IF(C146=\"\",\"\",HLOOKUP(C146,'MHP Family Income & Rent Limits'!$E$12:$L$26,6,FALSE))","v":""},{"$f":"IF(C146=\"\",\"\",HLOOKUP(C146,'MHP Family Income & Rent Limits'!$E$12:$L$26,7,FALSE))","v":""},{"$f":"IF(C146=\"\",\"\",HLOOKUP(C146,'MHP Family Income & Rent Limits'!$E$12:$L$26,8,FALSE))","v":""},{"$f":"IF(C146=\"\",\"\",HLOOKUP(C146,'MHP Family Income & Rent Limits'!$E$12:$L$26,9,FALSE))","v":""},{"$f":"IF(C146=\"\",\"\",HLOOKUP(C146,'MHP Family Income & Rent Limits'!$E$12:$L$26,10,FALSE))","v":""},{"$f":"IF(C146=\"\",\"\",HLOOKUP(C146,'MHP Family Income & Rent Limits'!$E$12:$L$26,11,FALSE))","v":""},{"$f":"IF(C146=\"\",\"\",HLOOKUP(C146,'MHP Family Income & Rent Limits'!$E$12:$L$26,12,FALSE))","v":""},{"$f":"IF(C146=\"\",\"\",HLOOKUP(C146,'MHP Family Income & Rent Limits'!$E$12:$L$26,13,FALSE))","v":""},{"$f":"IF(C146=\"\",\"\",HLOOKUP(C146,'MHP Family Income & Rent Limits'!$E$12:$L$26,14,FALSE))","v":""},{"$f":"IF(C146=\"\",\"\",HLOOKUP(C146,'MHP Family Income & Rent Limits'!$E$12:$L$26,15,FALSE))","v":""}]
[{"$f":"IF('2. Assisted & Restricted Units'!A147=\"\",\"\",'2. Assisted & Restricted Units'!A147)","v":""},{"$f":"IF('2. Assisted & Restricted Units'!B147=\"\",\"\",'2. Assisted & Restricted Units'!B147)","v":""},{"$f":"IF('2. Assisted & Restricted Units'!D147=\"\",\"\",'2. Assisted & Restricted Units'!D147)","v":""},{"$f":"IF('2. Assisted & Restricted Units'!E147=\"\",\"\",'2. Assisted & Restricted Units'!E147)","v":""},{"$f":"IF('2. Assisted & Restricted Units'!H147=\"\",\"\",'2. Assisted & Restricted Units'!H147)","v":""},{"$f":"_xlfn.IFS(E147=\"\",\"\",E147>BO147,$BP$6,E147>BN147,$BO$6,E147>BM147,$BN$6,E147>BL147,$BM$6,E147>BK147,$BL$6,E147>BJ147,$BK$6,E147>BI147,$BJ$6,E147>BH147,$BI$6,E147>BG147,$BH$6,E147>BF147,$BG$6,E147>BE147,$BF$6,E147>BD147,$BE$6,E147>BC147,$BD$6,E147>=0,$BC$6)","v":""},{"$f":"IF('2. Assisted & Restricted Units'!T147=\"\",\"\",'2. Assisted & Restricted Units'!T147)","v":""},{"$f":"IF('2. Assisted & Restricted Units'!I147=\"\",\"\",'2. Assisted & Restricted Units'!I147)","v":""},{"$f":"IF('2. Assisted & Restricted Units'!AP147=\"\",\"\",'2. Assisted & Restricted Units'!AP147)","v":0},{"$f":"IF('2. Assisted & Restricted Units'!AT147=\"\",\"\",'2. Assisted & Restricted Units'!AT147)","v":""},0,{"$f":"IF('2. Assisted & Restricted Units'!AV147=\"\",\"\",'2. Assisted & Restricted Units'!AV147)","v":""},{"$f":"IF('2. Assisted & Restricted Units'!L147=\"\",\"\",'2. Assisted & Restricted Units'!L147)","v":""},{"$f":"IF('2. Assisted & Restricted Units'!M147=\"\",\"\",'2. Assisted & Restricted Units'!M147)","v":""},{"$f":"IF('2. Assisted & Restricted Units'!O147=\"\",\"\",'2. Assisted & Restricted Units'!O147)","v":""},{"$f":"IF('2. Assisted & Restricted Units'!P147=\"\",\"\",'2. Assisted & Restricted Units'!P147)","v":""},{"$f":"IF('2. Assisted & Restricted Units'!Q147=\"\",\"\",'2. Assisted & Restricted Units'!Q147)","v":""},{"$f":"IF('2. Assisted & Restricted Units'!R147=\"\",\"\",'2. Assisted & Restricted Units'!R147)","v":""},{"$f":"IF(A147=\"\",\"\",'1. Checklist & Certification'!$K$1)","v":""},{"$f":"IF(A147=\"\",\"\",'1. Checklist & Certification'!$C$62)","v":""},{"$f":"IF(A147=\"\",\"\",'1. Checklist & Certification'!$K$62)","v":""},{"$f":"IF(A147=\"\",\"\",'1. Checklist & Certification'!$C$6)","v":""},{"$f":"IF(A147=\"\",\"\",'1. Checklist & Certification'!$G$4)","v":""},{"$f":"IF(A147=\"\",\"\",'1. Checklist & Certification'!$C$7)","v":""},{"$f":"IF(A147=\"\",\"\",'1. Checklist & Certification'!$C$8)","v":""},{"$f":"IF(A147=\"\",\"\",'1. Checklist & Certification'!$F$7)","v":""},{"$f":"IF(A147=\"\",\"\",'1. Checklist & Certification'!$F$8)","v":""},{"$f":"IF(A147=\"\",\"\",'1. Checklist & Certification'!$B$9)","v":""},{"$f":"IF(A147=\"\",\"\",'1. Checklist & Certification'!$F$9)","v":""},{"$f":"IF(A147=\"\",\"\",'1. Checklist & Certification'!$C$10)","v":""},{"$f":"IF(A147=\"\",\"\",'1. Checklist & Certification'!$C$11)","v":""},{"$f":"IF(A147=\"\",\"\",'1. Checklist & Certification'!$C$12)","v":""},{"$f":"IF(A147=\"\",\"\",'1. Checklist & Certification'!$B$14)","v":""},{"$f":"IF(A147=\"\",\"\",'1. Checklist & Certification'!$E$14)","v":""},{"$f":"IF(B147=\"\",\"\",'1. Checklist & Certification'!$G$14)","v":""},{"$f":"IF(A147=\"\",\"\",'MHP Family Income & Rent Limits'!$B$3)","v":""},{"$f":"IF(A147=\"\",\"\",'MHP Family Income & Rent Limits'!$J$3)","v":""},{"$f":"IF(A147=\"\",\"\",'MHP Family Income & Rent Limits'!$E$4)","v":""},{"$f":"IF(A147=\"\",\"\",'MHP Family Income & Rent Limits'!$C$7)","v":""},{"$f":"IF(A147=\"\",\"\",'MHP Family Income & Rent Limits'!$F$8)","v":""},{"$f":"IF(A147=\"\",\"\",'1. Checklist & Certification'!$G$4)","v":""},{"$f":"IF(A147=\"\",\"\",'1. Checklist & Certification'!$K$39)","v":""},{"$f":"IF(A147=\"\",\"\",'1. Checklist & Certification'!$K$43)","v":""},{"$f":"IF(A147=\"\",\"\",'1. Checklist & Certification'!$K$45)","v":""},{"$f":"IF(A147=\"\",\"\",'1. Checklist & Certification'!$K$49)","v":""},{"$f":"IF(A147=\"\",\"\",'1. Checklist & Certification'!$E$66)","v":""},{"$f":"IF(A147=\"\",\"\",'1. Checklist & Certification'!$E$67)","v":""},{"$f":"IF(A147=\"\",\"\",'1. Checklist & Certification'!$E$68)","v":""},{"$f":"IF(A147=\"\",\"\",'1. Checklist & Certification'!$G$66)","v":""},{"$f":"IF(A147=\"\",\"\",'1. Checklist & Certification'!$H$66)","v":""},{"$f":"IF(A147=\"\",\"\",'1. Checklist & Certification'!$I$66)","v":""},{"$f":"IF(A147=\"\",\"\",'1. Checklist & Certification'!$I$67)","v":""},{"$f":"IF(A147=\"\",\"\",'1. Checklist & Certification'!$I$68)","v":""},null,{"$f":"IF(C147=\"\",\"\",HLOOKUP(C147,'MHP Family Income & Rent Limits'!$E$12:$L$26,2,FALSE))","v":""},{"$f":"IF(C147=\"\",\"\",HLOOKUP(C147,'MHP Family Income & Rent Limits'!$E$12:$L$26,3,FALSE))","v":""},{"$f":"IF(C147=\"\",\"\",HLOOKUP(C147,'MHP Family Income & Rent Limits'!$E$12:$L$26,4,FALSE))","v":""},{"$f":"IF(C147=\"\",\"\",HLOOKUP(C147,'MHP Family Income & Rent Limits'!$E$12:$L$26,5,FALSE))","v":""},{"$f":"IF(C147=\"\",\"\",HLOOKUP(C147,'MHP Family Income & Rent Limits'!$E$12:$L$26,6,FALSE))","v":""},{"$f":"IF(C147=\"\",\"\",HLOOKUP(C147,'MHP Family Income & Rent Limits'!$E$12:$L$26,7,FALSE))","v":""},{"$f":"IF(C147=\"\",\"\",HLOOKUP(C147,'MHP Family Income & Rent Limits'!$E$12:$L$26,8,FALSE))","v":""},{"$f":"IF(C147=\"\",\"\",HLOOKUP(C147,'MHP Family Income & Rent Limits'!$E$12:$L$26,9,FALSE))","v":""},{"$f":"IF(C147=\"\",\"\",HLOOKUP(C147,'MHP Family Income & Rent Limits'!$E$12:$L$26,10,FALSE))","v":""},{"$f":"IF(C147=\"\",\"\",HLOOKUP(C147,'MHP Family Income & Rent Limits'!$E$12:$L$26,11,FALSE))","v":""},{"$f":"IF(C147=\"\",\"\",HLOOKUP(C147,'MHP Family Income & Rent Limits'!$E$12:$L$26,12,FALSE))","v":""},{"$f":"IF(C147=\"\",\"\",HLOOKUP(C147,'MHP Family Income & Rent Limits'!$E$12:$L$26,13,FALSE))","v":""},{"$f":"IF(C147=\"\",\"\",HLOOKUP(C147,'MHP Family Income & Rent Limits'!$E$12:$L$26,14,FALSE))","v":""},{"$f":"IF(C147=\"\",\"\",HLOOKUP(C147,'MHP Family Income & Rent Limits'!$E$12:$L$26,15,FALSE))","v":""}]
[{"$f":"IF('2. Assisted & Restricted Units'!A148=\"\",\"\",'2. Assisted & Restricted Units'!A148)","v":""},{"$f":"IF('2. Assisted & Restricted Units'!B148=\"\",\"\",'2. Assisted & Restricted Units'!B148)","v":""},{"$f":"IF('2. Assisted & Restricted Units'!D148=\"\",\"\",'2. Assisted & Restricted Units'!D148)","v":""},{"$f":"IF('2. Assisted & Restricted Units'!E148=\"\",\"\",'2. Assisted & Restricted Units'!E148)","v":""},{"$f":"IF('2. Assisted & Restricted Units'!H148=\"\",\"\",'2. Assisted & Restricted Units'!H148)","v":""},{"$f":"_xlfn.IFS(E148=\"\",\"\",E148>BO148,$BP$6,E148>BN148,$BO$6,E148>BM148,$BN$6,E148>BL148,$BM$6,E148>BK148,$BL$6,E148>BJ148,$BK$6,E148>BI148,$BJ$6,E148>BH148,$BI$6,E148>BG148,$BH$6,E148>BF148,$BG$6,E148>BE148,$BF$6,E148>BD148,$BE$6,E148>BC148,$BD$6,E148>=0,$BC$6)","v":""},{"$f":"IF('2. Assisted & Restricted Units'!T148=\"\",\"\",'2. Assisted & Restricted Units'!T148)","v":""},{"$f":"IF('2. Assisted & Restricted Units'!I148=\"\",\"\",'2. Assisted & Restricted Units'!I148)","v":""},{"$f":"IF('2. Assisted & Restricted Units'!AP148=\"\",\"\",'2. Assisted & Restricted Units'!AP148)","v":0},{"$f":"IF('2. Assisted & Restricted Units'!AT148=\"\",\"\",'2. Assisted & Restricted Units'!AT148)","v":""},0,{"$f":"IF('2. Assisted & Restricted Units'!AV148=\"\",\"\",'2. Assisted & Restricted Units'!AV148)","v":""},{"$f":"IF('2. Assisted & Restricted Units'!L148=\"\",\"\",'2. Assisted & Restricted Units'!L148)","v":""},{"$f":"IF('2. Assisted & Restricted Units'!M148=\"\",\"\",'2. Assisted & Restricted Units'!M148)","v":""},{"$f":"IF('2. Assisted & Restricted Units'!O148=\"\",\"\",'2. Assisted & Restricted Units'!O148)","v":""},{"$f":"IF('2. Assisted & Restricted Units'!P148=\"\",\"\",'2. Assisted & Restricted Units'!P148)","v":""},{"$f":"IF('2. Assisted & Restricted Units'!Q148=\"\",\"\",'2. Assisted & Restricted Units'!Q148)","v":""},{"$f":"IF('2. Assisted & Restricted Units'!R148=\"\",\"\",'2. Assisted & Restricted Units'!R148)","v":""},{"$f":"IF(A148=\"\",\"\",'1. Checklist & Certification'!$K$1)","v":""},{"$f":"IF(A148=\"\",\"\",'1. Checklist & Certification'!$C$62)","v":""},{"$f":"IF(A148=\"\",\"\",'1. Checklist & Certification'!$K$62)","v":""},{"$f":"IF(A148=\"\",\"\",'1. Checklist & Certification'!$C$6)","v":""},{"$f":"IF(A148=\"\",\"\",'1. Checklist & Certification'!$G$4)","v":""},{"$f":"IF(A148=\"\",\"\",'1. Checklist & Certification'!$C$7)","v":""},{"$f":"IF(A148=\"\",\"\",'1. Checklist & Certification'!$C$8)","v":""},{"$f":"IF(A148=\"\",\"\",'1. Checklist & Certification'!$F$7)","v":""},{"$f":"IF(A148=\"\",\"\",'1. Checklist & Certification'!$F$8)","v":""},{"$f":"IF(A148=\"\",\"\",'1. Checklist & Certification'!$B$9)","v":""},{"$f":"IF(A148=\"\",\"\",'1. Checklist & Certification'!$F$9)","v":""},{"$f":"IF(A148=\"\",\"\",'1. Checklist & Certification'!$C$10)","v":""},{"$f":"IF(A148=\"\",\"\",'1. Checklist & Certification'!$C$11)","v":""},{"$f":"IF(A148=\"\",\"\",'1. Checklist & Certification'!$C$12)","v":""},{"$f":"IF(A148=\"\",\"\",'1. Checklist & Certification'!$B$14)","v":""},{"$f":"IF(A148=\"\",\"\",'1. Checklist & Certification'!$E$14)","v":""},{"$f":"IF(B148=\"\",\"\",'1. Checklist & Certification'!$G$14)","v":""},{"$f":"IF(A148=\"\",\"\",'MHP Family Income & Rent Limits'!$B$3)","v":""},{"$f":"IF(A148=\"\",\"\",'MHP Family Income & Rent Limits'!$J$3)","v":""},{"$f":"IF(A148=\"\",\"\",'MHP Family Income & Rent Limits'!$E$4)","v":""},{"$f":"IF(A148=\"\",\"\",'MHP Family Income & Rent Limits'!$C$7)","v":""},{"$f":"IF(A148=\"\",\"\",'MHP Family Income & Rent Limits'!$F$8)","v":""},{"$f":"IF(A148=\"\",\"\",'1. Checklist & Certification'!$G$4)","v":""},{"$f":"IF(A148=\"\",\"\",'1. Checklist & Certification'!$K$39)","v":""},{"$f":"IF(A148=\"\",\"\",'1. Checklist & Certification'!$K$43)","v":""},{"$f":"IF(A148=\"\",\"\",'1. Checklist & Certification'!$K$45)","v":""},{"$f":"IF(A148=\"\",\"\",'1. Checklist & Certification'!$K$49)","v":""},{"$f":"IF(A148=\"\",\"\",'1. Checklist & Certification'!$E$66)","v":""},{"$f":"IF(A148=\"\",\"\",'1. Checklist & Certification'!$E$67)","v":""},{"$f":"IF(A148=\"\",\"\",'1. Checklist & Certification'!$E$68)","v":""},{"$f":"IF(A148=\"\",\"\",'1. Checklist & Certification'!$G$66)","v":""},{"$f":"IF(A148=\"\",\"\",'1. Checklist & Certification'!$H$66)","v":""},{"$f":"IF(A148=\"\",\"\",'1. Checklist & Certification'!$I$66)","v":""},{"$f":"IF(A148=\"\",\"\",'1. Checklist & Certification'!$I$67)","v":""},{"$f":"IF(A148=\"\",\"\",'1. Checklist & Certification'!$I$68)","v":""},null,{"$f":"IF(C148=\"\",\"\",HLOOKUP(C148,'MHP Family Income & Rent Limits'!$E$12:$L$26,2,FALSE))","v":""},{"$f":"IF(C148=\"\",\"\",HLOOKUP(C148,'MHP Family Income & Rent Limits'!$E$12:$L$26,3,FALSE))","v":""},{"$f":"IF(C148=\"\",\"\",HLOOKUP(C148,'MHP Family Income & Rent Limits'!$E$12:$L$26,4,FALSE))","v":""},{"$f":"IF(C148=\"\",\"\",HLOOKUP(C148,'MHP Family Income & Rent Limits'!$E$12:$L$26,5,FALSE))","v":""},{"$f":"IF(C148=\"\",\"\",HLOOKUP(C148,'MHP Family Income & Rent Limits'!$E$12:$L$26,6,FALSE))","v":""},{"$f":"IF(C148=\"\",\"\",HLOOKUP(C148,'MHP Family Income & Rent Limits'!$E$12:$L$26,7,FALSE))","v":""},{"$f":"IF(C148=\"\",\"\",HLOOKUP(C148,'MHP Family Income & Rent Limits'!$E$12:$L$26,8,FALSE))","v":""},{"$f":"IF(C148=\"\",\"\",HLOOKUP(C148,'MHP Family Income & Rent Limits'!$E$12:$L$26,9,FALSE))","v":""},{"$f":"IF(C148=\"\",\"\",HLOOKUP(C148,'MHP Family Income & Rent Limits'!$E$12:$L$26,10,FALSE))","v":""},{"$f":"IF(C148=\"\",\"\",HLOOKUP(C148,'MHP Family Income & Rent Limits'!$E$12:$L$26,11,FALSE))","v":""},{"$f":"IF(C148=\"\",\"\",HLOOKUP(C148,'MHP Family Income & Rent Limits'!$E$12:$L$26,12,FALSE))","v":""},{"$f":"IF(C148=\"\",\"\",HLOOKUP(C148,'MHP Family Income & Rent Limits'!$E$12:$L$26,13,FALSE))","v":""},{"$f":"IF(C148=\"\",\"\",HLOOKUP(C148,'MHP Family Income & Rent Limits'!$E$12:$L$26,14,FALSE))","v":""},{"$f":"IF(C148=\"\",\"\",HLOOKUP(C148,'MHP Family Income & Rent Limits'!$E$12:$L$26,15,FALSE))","v":""}]
[{"$f":"IF('2. Assisted & Restricted Units'!A149=\"\",\"\",'2. Assisted & Restricted Units'!A149)","v":""},{"$f":"IF('2. Assisted & Restricted Units'!B149=\"\",\"\",'2. Assisted & Restricted Units'!B149)","v":""},{"$f":"IF('2. Assisted & Restricted Units'!D149=\"\",\"\",'2. Assisted & Restricted Units'!D149)","v":""},{"$f":"IF('2. Assisted & Restricted Units'!E149=\"\",\"\",'2. Assisted & Restricted Units'!E149)","v":""},{"$f":"IF('2. Assisted & Restricted Units'!H149=\"\",\"\",'2. Assisted & Restricted Units'!H149)","v":""},{"$f":"_xlfn.IFS(E149=\"\",\"\",E149>BO149,$BP$6,E149>BN149,$BO$6,E149>BM149,$BN$6,E149>BL149,$BM$6,E149>BK149,$BL$6,E149>BJ149,$BK$6,E149>BI149,$BJ$6,E149>BH149,$BI$6,E149>BG149,$BH$6,E149>BF149,$BG$6,E149>BE149,$BF$6,E149>BD149,$BE$6,E149>BC149,$BD$6,E149>=0,$BC$6)","v":""},{"$f":"IF('2. Assisted & Restricted Units'!T149=\"\",\"\",'2. Assisted & Restricted Units'!T149)","v":""},{"$f":"IF('2. Assisted & Restricted Units'!I149=\"\",\"\",'2. Assisted & Restricted Units'!I149)","v":""},{"$f":"IF('2. Assisted & Restricted Units'!AP149=\"\",\"\",'2. Assisted & Restricted Units'!AP149)","v":0},{"$f":"IF('2. Assisted & Restricted Units'!AT149=\"\",\"\",'2. Assisted & Restricted Units'!AT149)","v":""},0,{"$f":"IF('2. Assisted & Restricted Units'!AV149=\"\",\"\",'2. Assisted & Restricted Units'!AV149)","v":""},{"$f":"IF('2. Assisted & Restricted Units'!L149=\"\",\"\",'2. Assisted & Restricted Units'!L149)","v":""},{"$f":"IF('2. Assisted & Restricted Units'!M149=\"\",\"\",'2. Assisted & Restricted Units'!M149)","v":""},{"$f":"IF('2. Assisted & Restricted Units'!O149=\"\",\"\",'2. Assisted & Restricted Units'!O149)","v":""},{"$f":"IF('2. Assisted & Restricted Units'!P149=\"\",\"\",'2. Assisted & Restricted Units'!P149)","v":""},{"$f":"IF('2. Assisted & Restricted Units'!Q149=\"\",\"\",'2. Assisted & Restricted Units'!Q149)","v":""},{"$f":"IF('2. Assisted & Restricted Units'!R149=\"\",\"\",'2. Assisted & Restricted Units'!R149)","v":""},{"$f":"IF(A149=\"\",\"\",'1. Checklist & Certification'!$K$1)","v":""},{"$f":"IF(A149=\"\",\"\",'1. Checklist & Certification'!$C$62)","v":""},{"$f":"IF(A149=\"\",\"\",'1. Checklist & Certification'!$K$62)","v":""},{"$f":"IF(A149=\"\",\"\",'1. Checklist & Certification'!$C$6)","v":""},{"$f":"IF(A149=\"\",\"\",'1. Checklist & Certification'!$G$4)","v":""},{"$f":"IF(A149=\"\",\"\",'1. Checklist & Certification'!$C$7)","v":""},{"$f":"IF(A149=\"\",\"\",'1. Checklist & Certification'!$C$8)","v":""},{"$f":"IF(A149=\"\",\"\",'1. Checklist & Certification'!$F$7)","v":""},{"$f":"IF(A149=\"\",\"\",'1. Checklist & Certification'!$F$8)","v":""},{"$f":"IF(A149=\"\",\"\",'1. Checklist & Certification'!$B$9)","v":""},{"$f":"IF(A149=\"\",\"\",'1. Checklist & Certification'!$F$9)","v":""},{"$f":"IF(A149=\"\",\"\",'1. Checklist & Certification'!$C$10)","v":""},{"$f":"IF(A149=\"\",\"\",'1. Checklist & Certification'!$C$11)","v":""},{"$f":"IF(A149=\"\",\"\",'1. Checklist & Certification'!$C$12)","v":""},{"$f":"IF(A149=\"\",\"\",'1. Checklist & Certification'!$B$14)","v":""},{"$f":"IF(A149=\"\",\"\",'1. Checklist & Certification'!$E$14)","v":""},{"$f":"IF(B149=\"\",\"\",'1. Checklist & Certification'!$G$14)","v":""},{"$f":"IF(A149=\"\",\"\",'MHP Family Income & Rent Limits'!$B$3)","v":""},{"$f":"IF(A149=\"\",\"\",'MHP Family Income & Rent Limits'!$J$3)","v":""},{"$f":"IF(A149=\"\",\"\",'MHP Family Income & Rent Limits'!$E$4)","v":""},{"$f":"IF(A149=\"\",\"\",'MHP Family Income & Rent Limits'!$C$7)","v":""},{"$f":"IF(A149=\"\",\"\",'MHP Family Income & Rent Limits'!$F$8)","v":""},{"$f":"IF(A149=\"\",\"\",'1. Checklist & Certification'!$G$4)","v":""},{"$f":"IF(A149=\"\",\"\",'1. Checklist & Certification'!$K$39)","v":""},{"$f":"IF(A149=\"\",\"\",'1. Checklist & Certification'!$K$43)","v":""},{"$f":"IF(A149=\"\",\"\",'1. Checklist & Certification'!$K$45)","v":""},{"$f":"IF(A149=\"\",\"\",'1. Checklist & Certification'!$K$49)","v":""},{"$f":"IF(A149=\"\",\"\",'1. Checklist & Certification'!$E$66)","v":""},{"$f":"IF(A149=\"\",\"\",'1. Checklist & Certification'!$E$67)","v":""},{"$f":"IF(A149=\"\",\"\",'1. Checklist & Certification'!$E$68)","v":""},{"$f":"IF(A149=\"\",\"\",'1. Checklist & Certification'!$G$66)","v":""},{"$f":"IF(A149=\"\",\"\",'1. Checklist & Certification'!$H$66)","v":""},{"$f":"IF(A149=\"\",\"\",'1. Checklist & Certification'!$I$66)","v":""},{"$f":"IF(A149=\"\",\"\",'1. Checklist & Certification'!$I$67)","v":""},{"$f":"IF(A149=\"\",\"\",'1. Checklist & Certification'!$I$68)","v":""},null,{"$f":"IF(C149=\"\",\"\",HLOOKUP(C149,'MHP Family Income & Rent Limits'!$E$12:$L$26,2,FALSE))","v":""},{"$f":"IF(C149=\"\",\"\",HLOOKUP(C149,'MHP Family Income & Rent Limits'!$E$12:$L$26,3,FALSE))","v":""},{"$f":"IF(C149=\"\",\"\",HLOOKUP(C149,'MHP Family Income & Rent Limits'!$E$12:$L$26,4,FALSE))","v":""},{"$f":"IF(C149=\"\",\"\",HLOOKUP(C149,'MHP Family Income & Rent Limits'!$E$12:$L$26,5,FALSE))","v":""},{"$f":"IF(C149=\"\",\"\",HLOOKUP(C149,'MHP Family Income & Rent Limits'!$E$12:$L$26,6,FALSE))","v":""},{"$f":"IF(C149=\"\",\"\",HLOOKUP(C149,'MHP Family Income & Rent Limits'!$E$12:$L$26,7,FALSE))","v":""},{"$f":"IF(C149=\"\",\"\",HLOOKUP(C149,'MHP Family Income & Rent Limits'!$E$12:$L$26,8,FALSE))","v":""},{"$f":"IF(C149=\"\",\"\",HLOOKUP(C149,'MHP Family Income & Rent Limits'!$E$12:$L$26,9,FALSE))","v":""},{"$f":"IF(C149=\"\",\"\",HLOOKUP(C149,'MHP Family Income & Rent Limits'!$E$12:$L$26,10,FALSE))","v":""},{"$f":"IF(C149=\"\",\"\",HLOOKUP(C149,'MHP Family Income & Rent Limits'!$E$12:$L$26,11,FALSE))","v":""},{"$f":"IF(C149=\"\",\"\",HLOOKUP(C149,'MHP Family Income & Rent Limits'!$E$12:$L$26,12,FALSE))","v":""},{"$f":"IF(C149=\"\",\"\",HLOOKUP(C149,'MHP Family Income & Rent Limits'!$E$12:$L$26,13,FALSE))","v":""},{"$f":"IF(C149=\"\",\"\",HLOOKUP(C149,'MHP Family Income & Rent Limits'!$E$12:$L$26,14,FALSE))","v":""},{"$f":"IF(C149=\"\",\"\",HLOOKUP(C149,'MHP Family Income & Rent Limits'!$E$12:$L$26,15,FALSE))","v":""}]
[{"$f":"IF('2. Assisted & Restricted Units'!A150=\"\",\"\",'2. Assisted & Restricted Units'!A150)","v":""},{"$f":"IF('2. Assisted & Restricted Units'!B150=\"\",\"\",'2. Assisted & Restricted Units'!B150)","v":""},{"$f":"IF('2. Assisted & Restricted Units'!D150=\"\",\"\",'2. Assisted & Restricted Units'!D150)","v":""},{"$f":"IF('2. Assisted & Restricted Units'!E150=\"\",\"\",'2. Assisted & Restricted Units'!E150)","v":""},{"$f":"IF('2. Assisted & Restricted Units'!H150=\"\",\"\",'2. Assisted & Restricted Units'!H150)","v":""},{"$f":"_xlfn.IFS(E150=\"\",\"\",E150>BO150,$BP$6,E150>BN150,$BO$6,E150>BM150,$BN$6,E150>BL150,$BM$6,E150>BK150,$BL$6,E150>BJ150,$BK$6,E150>BI150,$BJ$6,E150>BH150,$BI$6,E150>BG150,$BH$6,E150>BF150,$BG$6,E150>BE150,$BF$6,E150>BD150,$BE$6,E150>BC150,$BD$6,E150>=0,$BC$6)","v":""},{"$f":"IF('2. Assisted & Restricted Units'!T150=\"\",\"\",'2. Assisted & Restricted Units'!T150)","v":""},{"$f":"IF('2. Assisted & Restricted Units'!I150=\"\",\"\",'2. Assisted & Restricted Units'!I150)","v":""},{"$f":"IF('2. Assisted & Restricted Units'!AP150=\"\",\"\",'2. Assisted & Restricted Units'!AP150)","v":0},{"$f":"IF('2. Assisted & Restricted Units'!AT150=\"\",\"\",'2. Assisted & Restricted Units'!AT150)","v":""},0,{"$f":"IF('2. Assisted & Restricted Units'!AV150=\"\",\"\",'2. Assisted & Restricted Units'!AV150)","v":""},{"$f":"IF('2. Assisted & Restricted Units'!L150=\"\",\"\",'2. Assisted & Restricted Units'!L150)","v":""},{"$f":"IF('2. Assisted & Restricted Units'!M150=\"\",\"\",'2. Assisted & Restricted Units'!M150)","v":""},{"$f":"IF('2. Assisted & Restricted Units'!O150=\"\",\"\",'2. Assisted & Restricted Units'!O150)","v":""},{"$f":"IF('2. Assisted & Restricted Units'!P150=\"\",\"\",'2. Assisted & Restricted Units'!P150)","v":""},{"$f":"IF('2. Assisted & Restricted Units'!Q150=\"\",\"\",'2. Assisted & Restricted Units'!Q150)","v":""},{"$f":"IF('2. Assisted & Restricted Units'!R150=\"\",\"\",'2. Assisted & Restricted Units'!R150)","v":""},{"$f":"IF(A150=\"\",\"\",'1. Checklist & Certification'!$K$1)","v":""},{"$f":"IF(A150=\"\",\"\",'1. Checklist & Certification'!$C$62)","v":""},{"$f":"IF(A150=\"\",\"\",'1. Checklist & Certification'!$K$62)","v":""},{"$f":"IF(A150=\"\",\"\",'1. Checklist & Certification'!$C$6)","v":""},{"$f":"IF(A150=\"\",\"\",'1. Checklist & Certification'!$G$4)","v":""},{"$f":"IF(A150=\"\",\"\",'1. Checklist & Certification'!$C$7)","v":""},{"$f":"IF(A150=\"\",\"\",'1. Checklist & Certification'!$C$8)","v":""},{"$f":"IF(A150=\"\",\"\",'1. Checklist & Certification'!$F$7)","v":""},{"$f":"IF(A150=\"\",\"\",'1. Checklist & Certification'!$F$8)","v":""},{"$f":"IF(A150=\"\",\"\",'1. Checklist & Certification'!$B$9)","v":""},{"$f":"IF(A150=\"\",\"\",'1. Checklist & Certification'!$F$9)","v":""},{"$f":"IF(A150=\"\",\"\",'1. Checklist & Certification'!$C$10)","v":""},{"$f":"IF(A150=\"\",\"\",'1. Checklist & Certification'!$C$11)","v":""},{"$f":"IF(A150=\"\",\"\",'1. Checklist & Certification'!$C$12)","v":""},{"$f":"IF(A150=\"\",\"\",'1. Checklist & Certification'!$B$14)","v":""},{"$f":"IF(A150=\"\",\"\",'1. Checklist & Certification'!$E$14)","v":""},{"$f":"IF(B150=\"\",\"\",'1. Checklist & Certification'!$G$14)","v":""},{"$f":"IF(A150=\"\",\"\",'MHP Family Income & Rent Limits'!$B$3)","v":""},{"$f":"IF(A150=\"\",\"\",'MHP Family Income & Rent Limits'!$J$3)","v":""},{"$f":"IF(A150=\"\",\"\",'MHP Family Income & Rent Limits'!$E$4)","v":""},{"$f":"IF(A150=\"\",\"\",'MHP Family Income & Rent Limits'!$C$7)","v":""},{"$f":"IF(A150=\"\",\"\",'MHP Family Income & Rent Limits'!$F$8)","v":""},{"$f":"IF(A150=\"\",\"\",'1. Checklist & Certification'!$G$4)","v":""},{"$f":"IF(A150=\"\",\"\",'1. Checklist & Certification'!$K$39)","v":""},{"$f":"IF(A150=\"\",\"\",'1. Checklist & Certification'!$K$43)","v":""},{"$f":"IF(A150=\"\",\"\",'1. Checklist & Certification'!$K$45)","v":""},{"$f":"IF(A150=\"\",\"\",'1. Checklist & Certification'!$K$49)","v":""},{"$f":"IF(A150=\"\",\"\",'1. Checklist & Certification'!$E$66)","v":""},{"$f":"IF(A150=\"\",\"\",'1. Checklist & Certification'!$E$67)","v":""},{"$f":"IF(A150=\"\",\"\",'1. Checklist & Certification'!$E$68)","v":""},{"$f":"IF(A150=\"\",\"\",'1. Checklist & Certification'!$G$66)","v":""},{"$f":"IF(A150=\"\",\"\",'1. Checklist & Certification'!$H$66)","v":""},{"$f":"IF(A150=\"\",\"\",'1. Checklist & Certification'!$I$66)","v":""},{"$f":"IF(A150=\"\",\"\",'1. Checklist & Certification'!$I$67)","v":""},{"$f":"IF(A150=\"\",\"\",'1. Checklist & Certification'!$I$68)","v":""},null,{"$f":"IF(C150=\"\",\"\",HLOOKUP(C150,'MHP Family Income & Rent Limits'!$E$12:$L$26,2,FALSE))","v":""},{"$f":"IF(C150=\"\",\"\",HLOOKUP(C150,'MHP Family Income & Rent Limits'!$E$12:$L$26,3,FALSE))","v":""},{"$f":"IF(C150=\"\",\"\",HLOOKUP(C150,'MHP Family Income & Rent Limits'!$E$12:$L$26,4,FALSE))","v":""},{"$f":"IF(C150=\"\",\"\",HLOOKUP(C150,'MHP Family Income & Rent Limits'!$E$12:$L$26,5,FALSE))","v":""},{"$f":"IF(C150=\"\",\"\",HLOOKUP(C150,'MHP Family Income & Rent Limits'!$E$12:$L$26,6,FALSE))","v":""},{"$f":"IF(C150=\"\",\"\",HLOOKUP(C150,'MHP Family Income & Rent Limits'!$E$12:$L$26,7,FALSE))","v":""},{"$f":"IF(C150=\"\",\"\",HLOOKUP(C150,'MHP Family Income & Rent Limits'!$E$12:$L$26,8,FALSE))","v":""},{"$f":"IF(C150=\"\",\"\",HLOOKUP(C150,'MHP Family Income & Rent Limits'!$E$12:$L$26,9,FALSE))","v":""},{"$f":"IF(C150=\"\",\"\",HLOOKUP(C150,'MHP Family Income & Rent Limits'!$E$12:$L$26,10,FALSE))","v":""},{"$f":"IF(C150=\"\",\"\",HLOOKUP(C150,'MHP Family Income & Rent Limits'!$E$12:$L$26,11,FALSE))","v":""},{"$f":"IF(C150=\"\",\"\",HLOOKUP(C150,'MHP Family Income & Rent Limits'!$E$12:$L$26,12,FALSE))","v":""},{"$f":"IF(C150=\"\",\"\",HLOOKUP(C150,'MHP Family Income & Rent Limits'!$E$12:$L$26,13,FALSE))","v":""},{"$f":"IF(C150=\"\",\"\",HLOOKUP(C150,'MHP Family Income & Rent Limits'!$E$12:$L$26,14,FALSE))","v":""},{"$f":"IF(C150=\"\",\"\",HLOOKUP(C150,'MHP Family Income & Rent Limits'!$E$12:$L$26,15,FALSE))","v":""}]
[{"$f":"IF('2. Assisted & Restricted Units'!A151=\"\",\"\",'2. Assisted & Restricted Units'!A151)","v":""},{"$f":"IF('2. Assisted & Restricted Units'!B151=\"\",\"\",'2. Assisted & Restricted Units'!B151)","v":""},{"$f":"IF('2. Assisted & Restricted Units'!D151=\"\",\"\",'2. Assisted & Restricted Units'!D151)","v":""},{"$f":"IF('2. Assisted & Restricted Units'!E151=\"\",\"\",'2. Assisted & Restricted Units'!E151)","v":""},{"$f":"IF('2. Assisted & Restricted Units'!H151=\"\",\"\",'2. Assisted & Restricted Units'!H151)","v":""},{"$f":"_xlfn.IFS(E151=\"\",\"\",E151>BO151,$BP$6,E151>BN151,$BO$6,E151>BM151,$BN$6,E151>BL151,$BM$6,E151>BK151,$BL$6,E151>BJ151,$BK$6,E151>BI151,$BJ$6,E151>BH151,$BI$6,E151>BG151,$BH$6,E151>BF151,$BG$6,E151>BE151,$BF$6,E151>BD151,$BE$6,E151>BC151,$BD$6,E151>=0,$BC$6)","v":""},{"$f":"IF('2. Assisted & Restricted Units'!T151=\"\",\"\",'2. Assisted & Restricted Units'!T151)","v":""},{"$f":"IF('2. Assisted & Restricted Units'!I151=\"\",\"\",'2. Assisted & Restricted Units'!I151)","v":""},{"$f":"IF('2. Assisted & Restricted Units'!AP151=\"\",\"\",'2. Assisted & Restricted Units'!AP151)","v":0},{"$f":"IF('2. Assisted & Restricted Units'!AT151=\"\",\"\",'2. Assisted & Restricted Units'!AT151)","v":""},0,{"$f":"IF('2. Assisted & Restricted Units'!AV151=\"\",\"\",'2. Assisted & Restricted Units'!AV151)","v":""},{"$f":"IF('2. Assisted & Restricted Units'!L151=\"\",\"\",'2. Assisted & Restricted Units'!L151)","v":""},{"$f":"IF('2. Assisted & Restricted Units'!M151=\"\",\"\",'2. Assisted & Restricted Units'!M151)","v":""},{"$f":"IF('2. Assisted & Restricted Units'!O151=\"\",\"\",'2. Assisted & Restricted Units'!O151)","v":""},{"$f":"IF('2. Assisted & Restricted Units'!P151=\"\",\"\",'2. Assisted & Restricted Units'!P151)","v":""},{"$f":"IF('2. Assisted & Restricted Units'!Q151=\"\",\"\",'2. Assisted & Restricted Units'!Q151)","v":""},{"$f":"IF('2. Assisted & Restricted Units'!R151=\"\",\"\",'2. Assisted & Restricted Units'!R151)","v":""},{"$f":"IF(A151=\"\",\"\",'1. Checklist & Certification'!$K$1)","v":""},{"$f":"IF(A151=\"\",\"\",'1. Checklist & Certification'!$C$62)","v":""},{"$f":"IF(A151=\"\",\"\",'1. Checklist & Certification'!$K$62)","v":""},{"$f":"IF(A151=\"\",\"\",'1. Checklist & Certification'!$C$6)","v":""},{"$f":"IF(A151=\"\",\"\",'1. Checklist & Certification'!$G$4)","v":""},{"$f":"IF(A151=\"\",\"\",'1. Checklist & Certification'!$C$7)","v":""},{"$f":"IF(A151=\"\",\"\",'1. Checklist & Certification'!$C$8)","v":""},{"$f":"IF(A151=\"\",\"\",'1. Checklist & Certification'!$F$7)","v":""},{"$f":"IF(A151=\"\",\"\",'1. Checklist & Certification'!$F$8)","v":""},{"$f":"IF(A151=\"\",\"\",'1. Checklist & Certification'!$B$9)","v":""},{"$f":"IF(A151=\"\",\"\",'1. Checklist & Certification'!$F$9)","v":""},{"$f":"IF(A151=\"\",\"\",'1. Checklist & Certification'!$C$10)","v":""},{"$f":"IF(A151=\"\",\"\",'1. Checklist & Certification'!$C$11)","v":""},{"$f":"IF(A151=\"\",\"\",'1. Checklist & Certification'!$C$12)","v":""},{"$f":"IF(A151=\"\",\"\",'1. Checklist & Certification'!$B$14)","v":""},{"$f":"IF(A151=\"\",\"\",'1. Checklist & Certification'!$E$14)","v":""},{"$f":"IF(B151=\"\",\"\",'1. Checklist & Certification'!$G$14)","v":""},{"$f":"IF(A151=\"\",\"\",'MHP Family Income & Rent Limits'!$B$3)","v":""},{"$f":"IF(A151=\"\",\"\",'MHP Family Income & Rent Limits'!$J$3)","v":""},{"$f":"IF(A151=\"\",\"\",'MHP Family Income & Rent Limits'!$E$4)","v":""},{"$f":"IF(A151=\"\",\"\",'MHP Family Income & Rent Limits'!$C$7)","v":""},{"$f":"IF(A151=\"\",\"\",'MHP Family Income & Rent Limits'!$F$8)","v":""},{"$f":"IF(A151=\"\",\"\",'1. Checklist & Certification'!$G$4)","v":""},{"$f":"IF(A151=\"\",\"\",'1. Checklist & Certification'!$K$39)","v":""},{"$f":"IF(A151=\"\",\"\",'1. Checklist & Certification'!$K$43)","v":""},{"$f":"IF(A151=\"\",\"\",'1. Checklist & Certification'!$K$45)","v":""},{"$f":"IF(A151=\"\",\"\",'1. Checklist & Certification'!$K$49)","v":""},{"$f":"IF(A151=\"\",\"\",'1. Checklist & Certification'!$E$66)","v":""},{"$f":"IF(A151=\"\",\"\",'1. Checklist & Certification'!$E$67)","v":""},{"$f":"IF(A151=\"\",\"\",'1. Checklist & Certification'!$E$68)","v":""},{"$f":"IF(A151=\"\",\"\",'1. Checklist & Certification'!$G$66)","v":""},{"$f":"IF(A151=\"\",\"\",'1. Checklist & Certification'!$H$66)","v":""},{"$f":"IF(A151=\"\",\"\",'1. Checklist & Certification'!$I$66)","v":""},{"$f":"IF(A151=\"\",\"\",'1. Checklist & Certification'!$I$67)","v":""},{"$f":"IF(A151=\"\",\"\",'1. Checklist & Certification'!$I$68)","v":""},null,{"$f":"IF(C151=\"\",\"\",HLOOKUP(C151,'MHP Family Income & Rent Limits'!$E$12:$L$26,2,FALSE))","v":""},{"$f":"IF(C151=\"\",\"\",HLOOKUP(C151,'MHP Family Income & Rent Limits'!$E$12:$L$26,3,FALSE))","v":""},{"$f":"IF(C151=\"\",\"\",HLOOKUP(C151,'MHP Family Income & Rent Limits'!$E$12:$L$26,4,FALSE))","v":""},{"$f":"IF(C151=\"\",\"\",HLOOKUP(C151,'MHP Family Income & Rent Limits'!$E$12:$L$26,5,FALSE))","v":""},{"$f":"IF(C151=\"\",\"\",HLOOKUP(C151,'MHP Family Income & Rent Limits'!$E$12:$L$26,6,FALSE))","v":""},{"$f":"IF(C151=\"\",\"\",HLOOKUP(C151,'MHP Family Income & Rent Limits'!$E$12:$L$26,7,FALSE))","v":""},{"$f":"IF(C151=\"\",\"\",HLOOKUP(C151,'MHP Family Income & Rent Limits'!$E$12:$L$26,8,FALSE))","v":""},{"$f":"IF(C151=\"\",\"\",HLOOKUP(C151,'MHP Family Income & Rent Limits'!$E$12:$L$26,9,FALSE))","v":""},{"$f":"IF(C151=\"\",\"\",HLOOKUP(C151,'MHP Family Income & Rent Limits'!$E$12:$L$26,10,FALSE))","v":""},{"$f":"IF(C151=\"\",\"\",HLOOKUP(C151,'MHP Family Income & Rent Limits'!$E$12:$L$26,11,FALSE))","v":""},{"$f":"IF(C151=\"\",\"\",HLOOKUP(C151,'MHP Family Income & Rent Limits'!$E$12:$L$26,12,FALSE))","v":""},{"$f":"IF(C151=\"\",\"\",HLOOKUP(C151,'MHP Family Income & Rent Limits'!$E$12:$L$26,13,FALSE))","v":""},{"$f":"IF(C151=\"\",\"\",HLOOKUP(C151,'MHP Family Income & Rent Limits'!$E$12:$L$26,14,FALSE))","v":""},{"$f":"IF(C151=\"\",\"\",HLOOKUP(C151,'MHP Family Income & Rent Limits'!$E$12:$L$26,15,FALSE))","v":""}]
[{"$f":"IF('2. Assisted & Restricted Units'!A152=\"\",\"\",'2. Assisted & Restricted Units'!A152)","v":""},{"$f":"IF('2. Assisted & Restricted Units'!B152=\"\",\"\",'2. Assisted & Restricted Units'!B152)","v":""},{"$f":"IF('2. Assisted & Restricted Units'!D152=\"\",\"\",'2. Assisted & Restricted Units'!D152)","v":""},{"$f":"IF('2. Assisted & Restricted Units'!E152=\"\",\"\",'2. Assisted & Restricted Units'!E152)","v":""},{"$f":"IF('2. Assisted & Restricted Units'!H152=\"\",\"\",'2. Assisted & Restricted Units'!H152)","v":""},{"$f":"_xlfn.IFS(E152=\"\",\"\",E152>BO152,$BP$6,E152>BN152,$BO$6,E152>BM152,$BN$6,E152>BL152,$BM$6,E152>BK152,$BL$6,E152>BJ152,$BK$6,E152>BI152,$BJ$6,E152>BH152,$BI$6,E152>BG152,$BH$6,E152>BF152,$BG$6,E152>BE152,$BF$6,E152>BD152,$BE$6,E152>BC152,$BD$6,E152>=0,$BC$6)","v":""},{"$f":"IF('2. Assisted & Restricted Units'!T152=\"\",\"\",'2. Assisted & Restricted Units'!T152)","v":""},{"$f":"IF('2. Assisted & Restricted Units'!I152=\"\",\"\",'2. Assisted & Restricted Units'!I152)","v":""},{"$f":"IF('2. Assisted & Restricted Units'!AP152=\"\",\"\",'2. Assisted & Restricted Units'!AP152)","v":0},{"$f":"IF('2. Assisted & Restricted Units'!AT152=\"\",\"\",'2. Assisted & Restricted Units'!AT152)","v":""},0,{"$f":"IF('2. Assisted & Restricted Units'!AV152=\"\",\"\",'2. Assisted & Restricted Units'!AV152)","v":""},{"$f":"IF('2. Assisted & Restricted Units'!L152=\"\",\"\",'2. Assisted & Restricted Units'!L152)","v":""},{"$f":"IF('2. Assisted & Restricted Units'!M152=\"\",\"\",'2. Assisted & Restricted Units'!M152)","v":""},{"$f":"IF('2. Assisted & Restricted Units'!O152=\"\",\"\",'2. Assisted & Restricted Units'!O152)","v":""},{"$f":"IF('2. Assisted & Restricted Units'!P152=\"\",\"\",'2. Assisted & Restricted Units'!P152)","v":""},{"$f":"IF('2. Assisted & Restricted Units'!Q152=\"\",\"\",'2. Assisted & Restricted Units'!Q152)","v":""},{"$f":"IF('2. Assisted & Restricted Units'!R152=\"\",\"\",'2. Assisted & Restricted Units'!R152)","v":""},{"$f":"IF(A152=\"\",\"\",'1. Checklist & Certification'!$K$1)","v":""},{"$f":"IF(A152=\"\",\"\",'1. Checklist & Certification'!$C$62)","v":""},{"$f":"IF(A152=\"\",\"\",'1. Checklist & Certification'!$K$62)","v":""},{"$f":"IF(A152=\"\",\"\",'1. Checklist & Certification'!$C$6)","v":""},{"$f":"IF(A152=\"\",\"\",'1. Checklist & Certification'!$G$4)","v":""},{"$f":"IF(A152=\"\",\"\",'1. Checklist & Certification'!$C$7)","v":""},{"$f":"IF(A152=\"\",\"\",'1. Checklist & Certification'!$C$8)","v":""},{"$f":"IF(A152=\"\",\"\",'1. Checklist & Certification'!$F$7)","v":""},{"$f":"IF(A152=\"\",\"\",'1. Checklist & Certification'!$F$8)","v":""},{"$f":"IF(A152=\"\",\"\",'1. Checklist & Certification'!$B$9)","v":""},{"$f":"IF(A152=\"\",\"\",'1. Checklist & Certification'!$F$9)","v":""},{"$f":"IF(A152=\"\",\"\",'1. Checklist & Certification'!$C$10)","v":""},{"$f":"IF(A152=\"\",\"\",'1. Checklist & Certification'!$C$11)","v":""},{"$f":"IF(A152=\"\",\"\",'1. Checklist & Certification'!$C$12)","v":""},{"$f":"IF(A152=\"\",\"\",'1. Checklist & Certification'!$B$14)","v":""},{"$f":"IF(A152=\"\",\"\",'1. Checklist & Certification'!$E$14)","v":""},{"$f":"IF(B152=\"\",\"\",'1. Checklist & Certification'!$G$14)","v":""},{"$f":"IF(A152=\"\",\"\",'MHP Family Income & Rent Limits'!$B$3)","v":""},{"$f":"IF(A152=\"\",\"\",'MHP Family Income & Rent Limits'!$J$3)","v":""},{"$f":"IF(A152=\"\",\"\",'MHP Family Income & Rent Limits'!$E$4)","v":""},{"$f":"IF(A152=\"\",\"\",'MHP Family Income & Rent Limits'!$C$7)","v":""},{"$f":"IF(A152=\"\",\"\",'MHP Family Income & Rent Limits'!$F$8)","v":""},{"$f":"IF(A152=\"\",\"\",'1. Checklist & Certification'!$G$4)","v":""},{"$f":"IF(A152=\"\",\"\",'1. Checklist & Certification'!$K$39)","v":""},{"$f":"IF(A152=\"\",\"\",'1. Checklist & Certification'!$K$43)","v":""},{"$f":"IF(A152=\"\",\"\",'1. Checklist & Certification'!$K$45)","v":""},{"$f":"IF(A152=\"\",\"\",'1. Checklist & Certification'!$K$49)","v":""},{"$f":"IF(A152=\"\",\"\",'1. Checklist & Certification'!$E$66)","v":""},{"$f":"IF(A152=\"\",\"\",'1. Checklist & Certification'!$E$67)","v":""},{"$f":"IF(A152=\"\",\"\",'1. Checklist & Certification'!$E$68)","v":""},{"$f":"IF(A152=\"\",\"\",'1. Checklist & Certification'!$G$66)","v":""},{"$f":"IF(A152=\"\",\"\",'1. Checklist & Certification'!$H$66)","v":""},{"$f":"IF(A152=\"\",\"\",'1. Checklist & Certification'!$I$66)","v":""},{"$f":"IF(A152=\"\",\"\",'1. Checklist & Certification'!$I$67)","v":""},{"$f":"IF(A152=\"\",\"\",'1. Checklist & Certification'!$I$68)","v":""},null,{"$f":"IF(C152=\"\",\"\",HLOOKUP(C152,'MHP Family Income & Rent Limits'!$E$12:$L$26,2,FALSE))","v":""},{"$f":"IF(C152=\"\",\"\",HLOOKUP(C152,'MHP Family Income & Rent Limits'!$E$12:$L$26,3,FALSE))","v":""},{"$f":"IF(C152=\"\",\"\",HLOOKUP(C152,'MHP Family Income & Rent Limits'!$E$12:$L$26,4,FALSE))","v":""},{"$f":"IF(C152=\"\",\"\",HLOOKUP(C152,'MHP Family Income & Rent Limits'!$E$12:$L$26,5,FALSE))","v":""},{"$f":"IF(C152=\"\",\"\",HLOOKUP(C152,'MHP Family Income & Rent Limits'!$E$12:$L$26,6,FALSE))","v":""},{"$f":"IF(C152=\"\",\"\",HLOOKUP(C152,'MHP Family Income & Rent Limits'!$E$12:$L$26,7,FALSE))","v":""},{"$f":"IF(C152=\"\",\"\",HLOOKUP(C152,'MHP Family Income & Rent Limits'!$E$12:$L$26,8,FALSE))","v":""},{"$f":"IF(C152=\"\",\"\",HLOOKUP(C152,'MHP Family Income & Rent Limits'!$E$12:$L$26,9,FALSE))","v":""},{"$f":"IF(C152=\"\",\"\",HLOOKUP(C152,'MHP Family Income & Rent Limits'!$E$12:$L$26,10,FALSE))","v":""},{"$f":"IF(C152=\"\",\"\",HLOOKUP(C152,'MHP Family Income & Rent Limits'!$E$12:$L$26,11,FALSE))","v":""},{"$f":"IF(C152=\"\",\"\",HLOOKUP(C152,'MHP Family Income & Rent Limits'!$E$12:$L$26,12,FALSE))","v":""},{"$f":"IF(C152=\"\",\"\",HLOOKUP(C152,'MHP Family Income & Rent Limits'!$E$12:$L$26,13,FALSE))","v":""},{"$f":"IF(C152=\"\",\"\",HLOOKUP(C152,'MHP Family Income & Rent Limits'!$E$12:$L$26,14,FALSE))","v":""},{"$f":"IF(C152=\"\",\"\",HLOOKUP(C152,'MHP Family Income & Rent Limits'!$E$12:$L$26,15,FALSE))","v":""}]
[{"$f":"IF('2. Assisted & Restricted Units'!A153=\"\",\"\",'2. Assisted & Restricted Units'!A153)","v":""},{"$f":"IF('2. Assisted & Restricted Units'!B153=\"\",\"\",'2. Assisted & Restricted Units'!B153)","v":""},{"$f":"IF('2. Assisted & Restricted Units'!D153=\"\",\"\",'2. Assisted & Restricted Units'!D153)","v":""},{"$f":"IF('2. Assisted & Restricted Units'!E153=\"\",\"\",'2. Assisted & Restricted Units'!E153)","v":""},{"$f":"IF('2. Assisted & Restricted Units'!H153=\"\",\"\",'2. Assisted & Restricted Units'!H153)","v":""},{"$f":"_xlfn.IFS(E153=\"\",\"\",E153>BO153,$BP$6,E153>BN153,$BO$6,E153>BM153,$BN$6,E153>BL153,$BM$6,E153>BK153,$BL$6,E153>BJ153,$BK$6,E153>BI153,$BJ$6,E153>BH153,$BI$6,E153>BG153,$BH$6,E153>BF153,$BG$6,E153>BE153,$BF$6,E153>BD153,$BE$6,E153>BC153,$BD$6,E153>=0,$BC$6)","v":""},{"$f":"IF('2. Assisted & Restricted Units'!T153=\"\",\"\",'2. Assisted & Restricted Units'!T153)","v":""},{"$f":"IF('2. Assisted & Restricted Units'!I153=\"\",\"\",'2. Assisted & Restricted Units'!I153)","v":""},{"$f":"IF('2. Assisted & Restricted Units'!AP153=\"\",\"\",'2. Assisted & Restricted Units'!AP153)","v":0},{"$f":"IF('2. Assisted & Restricted Units'!AT153=\"\",\"\",'2. Assisted & Restricted Units'!AT153)","v":""},0,{"$f":"IF('2. Assisted & Restricted Units'!AV153=\"\",\"\",'2. Assisted & Restricted Units'!AV153)","v":""},{"$f":"IF('2. Assisted & Restricted Units'!L153=\"\",\"\",'2. Assisted & Restricted Units'!L153)","v":""},{"$f":"IF('2. Assisted & Restricted Units'!M153=\"\",\"\",'2. Assisted & Restricted Units'!M153)","v":""},{"$f":"IF('2. Assisted & Restricted Units'!O153=\"\",\"\",'2. Assisted & Restricted Units'!O153)","v":""},{"$f":"IF('2. Assisted & Restricted Units'!P153=\"\",\"\",'2. Assisted & Restricted Units'!P153)","v":""},{"$f":"IF('2. Assisted & Restricted Units'!Q153=\"\",\"\",'2. Assisted & Restricted Units'!Q153)","v":""},{"$f":"IF('2. Assisted & Restricted Units'!R153=\"\",\"\",'2. Assisted & Restricted Units'!R153)","v":""},{"$f":"IF(A153=\"\",\"\",'1. Checklist & Certification'!$K$1)","v":""},{"$f":"IF(A153=\"\",\"\",'1. Checklist & Certification'!$C$62)","v":""},{"$f":"IF(A153=\"\",\"\",'1. Checklist & Certification'!$K$62)","v":""},{"$f":"IF(A153=\"\",\"\",'1. Checklist & Certification'!$C$6)","v":""},{"$f":"IF(A153=\"\",\"\",'1. Checklist & Certification'!$G$4)","v":""},{"$f":"IF(A153=\"\",\"\",'1. Checklist & Certification'!$C$7)","v":""},{"$f":"IF(A153=\"\",\"\",'1. Checklist & Certification'!$C$8)","v":""},{"$f":"IF(A153=\"\",\"\",'1. Checklist & Certification'!$F$7)","v":""},{"$f":"IF(A153=\"\",\"\",'1. Checklist & Certification'!$F$8)","v":""},{"$f":"IF(A153=\"\",\"\",'1. Checklist & Certification'!$B$9)","v":""},{"$f":"IF(A153=\"\",\"\",'1. Checklist & Certification'!$F$9)","v":""},{"$f":"IF(A153=\"\",\"\",'1. Checklist & Certification'!$C$10)","v":""},{"$f":"IF(A153=\"\",\"\",'1. Checklist & Certification'!$C$11)","v":""},{"$f":"IF(A153=\"\",\"\",'1. Checklist & Certification'!$C$12)","v":""},{"$f":"IF(A153=\"\",\"\",'1. Checklist & Certification'!$B$14)","v":""},{"$f":"IF(A153=\"\",\"\",'1. Checklist & Certification'!$E$14)","v":""},{"$f":"IF(B153=\"\",\"\",'1. Checklist & Certification'!$G$14)","v":""},{"$f":"IF(A153=\"\",\"\",'MHP Family Income & Rent Limits'!$B$3)","v":""},{"$f":"IF(A153=\"\",\"\",'MHP Family Income & Rent Limits'!$J$3)","v":""},{"$f":"IF(A153=\"\",\"\",'MHP Family Income & Rent Limits'!$E$4)","v":""},{"$f":"IF(A153=\"\",\"\",'MHP Family Income & Rent Limits'!$C$7)","v":""},{"$f":"IF(A153=\"\",\"\",'MHP Family Income & Rent Limits'!$F$8)","v":""},{"$f":"IF(A153=\"\",\"\",'1. Checklist & Certification'!$G$4)","v":""},{"$f":"IF(A153=\"\",\"\",'1. Checklist & Certification'!$K$39)","v":""},{"$f":"IF(A153=\"\",\"\",'1. Checklist & Certification'!$K$43)","v":""},{"$f":"IF(A153=\"\",\"\",'1. Checklist & Certification'!$K$45)","v":""},{"$f":"IF(A153=\"\",\"\",'1. Checklist & Certification'!$K$49)","v":""},{"$f":"IF(A153=\"\",\"\",'1. Checklist & Certification'!$E$66)","v":""},{"$f":"IF(A153=\"\",\"\",'1. Checklist & Certification'!$E$67)","v":""},{"$f":"IF(A153=\"\",\"\",'1. Checklist & Certification'!$E$68)","v":""},{"$f":"IF(A153=\"\",\"\",'1. Checklist & Certification'!$G$66)","v":""},{"$f":"IF(A153=\"\",\"\",'1. Checklist & Certification'!$H$66)","v":""},{"$f":"IF(A153=\"\",\"\",'1. Checklist & Certification'!$I$66)","v":""},{"$f":"IF(A153=\"\",\"\",'1. Checklist & Certification'!$I$67)","v":""},{"$f":"IF(A153=\"\",\"\",'1. Checklist & Certification'!$I$68)","v":""},null,{"$f":"IF(C153=\"\",\"\",HLOOKUP(C153,'MHP Family Income & Rent Limits'!$E$12:$L$26,2,FALSE))","v":""},{"$f":"IF(C153=\"\",\"\",HLOOKUP(C153,'MHP Family Income & Rent Limits'!$E$12:$L$26,3,FALSE))","v":""},{"$f":"IF(C153=\"\",\"\",HLOOKUP(C153,'MHP Family Income & Rent Limits'!$E$12:$L$26,4,FALSE))","v":""},{"$f":"IF(C153=\"\",\"\",HLOOKUP(C153,'MHP Family Income & Rent Limits'!$E$12:$L$26,5,FALSE))","v":""},{"$f":"IF(C153=\"\",\"\",HLOOKUP(C153,'MHP Family Income & Rent Limits'!$E$12:$L$26,6,FALSE))","v":""},{"$f":"IF(C153=\"\",\"\",HLOOKUP(C153,'MHP Family Income & Rent Limits'!$E$12:$L$26,7,FALSE))","v":""},{"$f":"IF(C153=\"\",\"\",HLOOKUP(C153,'MHP Family Income & Rent Limits'!$E$12:$L$26,8,FALSE))","v":""},{"$f":"IF(C153=\"\",\"\",HLOOKUP(C153,'MHP Family Income & Rent Limits'!$E$12:$L$26,9,FALSE))","v":""},{"$f":"IF(C153=\"\",\"\",HLOOKUP(C153,'MHP Family Income & Rent Limits'!$E$12:$L$26,10,FALSE))","v":""},{"$f":"IF(C153=\"\",\"\",HLOOKUP(C153,'MHP Family Income & Rent Limits'!$E$12:$L$26,11,FALSE))","v":""},{"$f":"IF(C153=\"\",\"\",HLOOKUP(C153,'MHP Family Income & Rent Limits'!$E$12:$L$26,12,FALSE))","v":""},{"$f":"IF(C153=\"\",\"\",HLOOKUP(C153,'MHP Family Income & Rent Limits'!$E$12:$L$26,13,FALSE))","v":""},{"$f":"IF(C153=\"\",\"\",HLOOKUP(C153,'MHP Family Income & Rent Limits'!$E$12:$L$26,14,FALSE))","v":""},{"$f":"IF(C153=\"\",\"\",HLOOKUP(C153,'MHP Family Income & Rent Limits'!$E$12:$L$26,15,FALSE))","v":""}]
[{"$f":"IF('2. Assisted & Restricted Units'!A154=\"\",\"\",'2. Assisted & Restricted Units'!A154)","v":""},{"$f":"IF('2. Assisted & Restricted Units'!B154=\"\",\"\",'2. Assisted & Restricted Units'!B154)","v":""},{"$f":"IF('2. Assisted & Restricted Units'!D154=\"\",\"\",'2. Assisted & Restricted Units'!D154)","v":""},{"$f":"IF('2. Assisted & Restricted Units'!E154=\"\",\"\",'2. Assisted & Restricted Units'!E154)","v":""},{"$f":"IF('2. Assisted & Restricted Units'!H154=\"\",\"\",'2. Assisted & Restricted Units'!H154)","v":""},{"$f":"_xlfn.IFS(E154=\"\",\"\",E154>BO154,$BP$6,E154>BN154,$BO$6,E154>BM154,$BN$6,E154>BL154,$BM$6,E154>BK154,$BL$6,E154>BJ154,$BK$6,E154>BI154,$BJ$6,E154>BH154,$BI$6,E154>BG154,$BH$6,E154>BF154,$BG$6,E154>BE154,$BF$6,E154>BD154,$BE$6,E154>BC154,$BD$6,E154>=0,$BC$6)","v":""},{"$f":"IF('2. Assisted & Restricted Units'!T154=\"\",\"\",'2. Assisted & Restricted Units'!T154)","v":""},{"$f":"IF('2. Assisted & Restricted Units'!I154=\"\",\"\",'2. Assisted & Restricted Units'!I154)","v":""},{"$f":"IF('2. Assisted & Restricted Units'!AP154=\"\",\"\",'2. Assisted & Restricted Units'!AP154)","v":0},{"$f":"IF('2. Assisted & Restricted Units'!AT154=\"\",\"\",'2. Assisted & Restricted Units'!AT154)","v":""},0,{"$f":"IF('2. Assisted & Restricted Units'!AV154=\"\",\"\",'2. Assisted & Restricted Units'!AV154)","v":""},{"$f":"IF('2. Assisted & Restricted Units'!L154=\"\",\"\",'2. Assisted & Restricted Units'!L154)","v":""},{"$f":"IF('2. Assisted & Restricted Units'!M154=\"\",\"\",'2. Assisted & Restricted Units'!M154)","v":""},{"$f":"IF('2. Assisted & Restricted Units'!O154=\"\",\"\",'2. Assisted & Restricted Units'!O154)","v":""},{"$f":"IF('2. Assisted & Restricted Units'!P154=\"\",\"\",'2. Assisted & Restricted Units'!P154)","v":""},{"$f":"IF('2. Assisted & Restricted Units'!Q154=\"\",\"\",'2. Assisted & Restricted Units'!Q154)","v":""},{"$f":"IF('2. Assisted & Restricted Units'!R154=\"\",\"\",'2. Assisted & Restricted Units'!R154)","v":""},{"$f":"IF(A154=\"\",\"\",'1. Checklist & Certification'!$K$1)","v":""},{"$f":"IF(A154=\"\",\"\",'1. Checklist & Certification'!$C$62)","v":""},{"$f":"IF(A154=\"\",\"\",'1. Checklist & Certification'!$K$62)","v":""},{"$f":"IF(A154=\"\",\"\",'1. Checklist & Certification'!$C$6)","v":""},{"$f":"IF(A154=\"\",\"\",'1. Checklist & Certification'!$G$4)","v":""},{"$f":"IF(A154=\"\",\"\",'1. Checklist & Certification'!$C$7)","v":""},{"$f":"IF(A154=\"\",\"\",'1. Checklist & Certification'!$C$8)","v":""},{"$f":"IF(A154=\"\",\"\",'1. Checklist & Certification'!$F$7)","v":""},{"$f":"IF(A154=\"\",\"\",'1. Checklist & Certification'!$F$8)","v":""},{"$f":"IF(A154=\"\",\"\",'1. Checklist & Certification'!$B$9)","v":""},{"$f":"IF(A154=\"\",\"\",'1. Checklist & Certification'!$F$9)","v":""},{"$f":"IF(A154=\"\",\"\",'1. Checklist & Certification'!$C$10)","v":""},{"$f":"IF(A154=\"\",\"\",'1. Checklist & Certification'!$C$11)","v":""},{"$f":"IF(A154=\"\",\"\",'1. Checklist & Certification'!$C$12)","v":""},{"$f":"IF(A154=\"\",\"\",'1. Checklist & Certification'!$B$14)","v":""},{"$f":"IF(A154=\"\",\"\",'1. Checklist & Certification'!$E$14)","v":""},{"$f":"IF(B154=\"\",\"\",'1. Checklist & Certification'!$G$14)","v":""},{"$f":"IF(A154=\"\",\"\",'MHP Family Income & Rent Limits'!$B$3)","v":""},{"$f":"IF(A154=\"\",\"\",'MHP Family Income & Rent Limits'!$J$3)","v":""},{"$f":"IF(A154=\"\",\"\",'MHP Family Income & Rent Limits'!$E$4)","v":""},{"$f":"IF(A154=\"\",\"\",'MHP Family Income & Rent Limits'!$C$7)","v":""},{"$f":"IF(A154=\"\",\"\",'MHP Family Income & Rent Limits'!$F$8)","v":""},{"$f":"IF(A154=\"\",\"\",'1. Checklist & Certification'!$G$4)","v":""},{"$f":"IF(A154=\"\",\"\",'1. Checklist & Certification'!$K$39)","v":""},{"$f":"IF(A154=\"\",\"\",'1. Checklist & Certification'!$K$43)","v":""},{"$f":"IF(A154=\"\",\"\",'1. Checklist & Certification'!$K$45)","v":""},{"$f":"IF(A154=\"\",\"\",'1. Checklist & Certification'!$K$49)","v":""},{"$f":"IF(A154=\"\",\"\",'1. Checklist & Certification'!$E$66)","v":""},{"$f":"IF(A154=\"\",\"\",'1. Checklist & Certification'!$E$67)","v":""},{"$f":"IF(A154=\"\",\"\",'1. Checklist & Certification'!$E$68)","v":""},{"$f":"IF(A154=\"\",\"\",'1. Checklist & Certification'!$G$66)","v":""},{"$f":"IF(A154=\"\",\"\",'1. Checklist & Certification'!$H$66)","v":""},{"$f":"IF(A154=\"\",\"\",'1. Checklist & Certification'!$I$66)","v":""},{"$f":"IF(A154=\"\",\"\",'1. Checklist & Certification'!$I$67)","v":""},{"$f":"IF(A154=\"\",\"\",'1. Checklist & Certification'!$I$68)","v":""},null,{"$f":"IF(C154=\"\",\"\",HLOOKUP(C154,'MHP Family Income & Rent Limits'!$E$12:$L$26,2,FALSE))","v":""},{"$f":"IF(C154=\"\",\"\",HLOOKUP(C154,'MHP Family Income & Rent Limits'!$E$12:$L$26,3,FALSE))","v":""},{"$f":"IF(C154=\"\",\"\",HLOOKUP(C154,'MHP Family Income & Rent Limits'!$E$12:$L$26,4,FALSE))","v":""},{"$f":"IF(C154=\"\",\"\",HLOOKUP(C154,'MHP Family Income & Rent Limits'!$E$12:$L$26,5,FALSE))","v":""},{"$f":"IF(C154=\"\",\"\",HLOOKUP(C154,'MHP Family Income & Rent Limits'!$E$12:$L$26,6,FALSE))","v":""},{"$f":"IF(C154=\"\",\"\",HLOOKUP(C154,'MHP Family Income & Rent Limits'!$E$12:$L$26,7,FALSE))","v":""},{"$f":"IF(C154=\"\",\"\",HLOOKUP(C154,'MHP Family Income & Rent Limits'!$E$12:$L$26,8,FALSE))","v":""},{"$f":"IF(C154=\"\",\"\",HLOOKUP(C154,'MHP Family Income & Rent Limits'!$E$12:$L$26,9,FALSE))","v":""},{"$f":"IF(C154=\"\",\"\",HLOOKUP(C154,'MHP Family Income & Rent Limits'!$E$12:$L$26,10,FALSE))","v":""},{"$f":"IF(C154=\"\",\"\",HLOOKUP(C154,'MHP Family Income & Rent Limits'!$E$12:$L$26,11,FALSE))","v":""},{"$f":"IF(C154=\"\",\"\",HLOOKUP(C154,'MHP Family Income & Rent Limits'!$E$12:$L$26,12,FALSE))","v":""},{"$f":"IF(C154=\"\",\"\",HLOOKUP(C154,'MHP Family Income & Rent Limits'!$E$12:$L$26,13,FALSE))","v":""},{"$f":"IF(C154=\"\",\"\",HLOOKUP(C154,'MHP Family Income & Rent Limits'!$E$12:$L$26,14,FALSE))","v":""},{"$f":"IF(C154=\"\",\"\",HLOOKUP(C154,'MHP Family Income & Rent Limits'!$E$12:$L$26,15,FALSE))","v":""}]
[{"$f":"IF('2. Assisted & Restricted Units'!A155=\"\",\"\",'2. Assisted & Restricted Units'!A155)","v":""},{"$f":"IF('2. Assisted & Restricted Units'!B155=\"\",\"\",'2. Assisted & Restricted Units'!B155)","v":""},{"$f":"IF('2. Assisted & Restricted Units'!D155=\"\",\"\",'2. Assisted & Restricted Units'!D155)","v":""},{"$f":"IF('2. Assisted & Restricted Units'!E155=\"\",\"\",'2. Assisted & Restricted Units'!E155)","v":""},{"$f":"IF('2. Assisted & Restricted Units'!H155=\"\",\"\",'2. Assisted & Restricted Units'!H155)","v":""},{"$f":"_xlfn.IFS(E155=\"\",\"\",E155>BO155,$BP$6,E155>BN155,$BO$6,E155>BM155,$BN$6,E155>BL155,$BM$6,E155>BK155,$BL$6,E155>BJ155,$BK$6,E155>BI155,$BJ$6,E155>BH155,$BI$6,E155>BG155,$BH$6,E155>BF155,$BG$6,E155>BE155,$BF$6,E155>BD155,$BE$6,E155>BC155,$BD$6,E155>=0,$BC$6)","v":""},{"$f":"IF('2. Assisted & Restricted Units'!T155=\"\",\"\",'2. Assisted & Restricted Units'!T155)","v":""},{"$f":"IF('2. Assisted & Restricted Units'!I155=\"\",\"\",'2. Assisted & Restricted Units'!I155)","v":""},{"$f":"IF('2. Assisted & Restricted Units'!AP155=\"\",\"\",'2. Assisted & Restricted Units'!AP155)","v":0},{"$f":"IF('2. Assisted & Restricted Units'!AT155=\"\",\"\",'2. Assisted & Restricted Units'!AT155)","v":""},0,{"$f":"IF('2. Assisted & Restricted Units'!AV155=\"\",\"\",'2. Assisted & Restricted Units'!AV155)","v":""},{"$f":"IF('2. Assisted & Restricted Units'!L155=\"\",\"\",'2. Assisted & Restricted Units'!L155)","v":""},{"$f":"IF('2. Assisted & Restricted Units'!M155=\"\",\"\",'2. Assisted & Restricted Units'!M155)","v":""},{"$f":"IF('2. Assisted & Restricted Units'!O155=\"\",\"\",'2. Assisted & Restricted Units'!O155)","v":""},{"$f":"IF('2. Assisted & Restricted Units'!P155=\"\",\"\",'2. Assisted & Restricted Units'!P155)","v":""},{"$f":"IF('2. Assisted & Restricted Units'!Q155=\"\",\"\",'2. Assisted & Restricted Units'!Q155)","v":""},{"$f":"IF('2. Assisted & Restricted Units'!R155=\"\",\"\",'2. Assisted & Restricted Units'!R155)","v":""},{"$f":"IF(A155=\"\",\"\",'1. Checklist & Certification'!$K$1)","v":""},{"$f":"IF(A155=\"\",\"\",'1. Checklist & Certification'!$C$62)","v":""},{"$f":"IF(A155=\"\",\"\",'1. Checklist & Certification'!$K$62)","v":""},{"$f":"IF(A155=\"\",\"\",'1. Checklist & Certification'!$C$6)","v":""},{"$f":"IF(A155=\"\",\"\",'1. Checklist & Certification'!$G$4)","v":""},{"$f":"IF(A155=\"\",\"\",'1. Checklist & Certification'!$C$7)","v":""},{"$f":"IF(A155=\"\",\"\",'1. Checklist & Certification'!$C$8)","v":""},{"$f":"IF(A155=\"\",\"\",'1. Checklist & Certification'!$F$7)","v":""},{"$f":"IF(A155=\"\",\"\",'1. Checklist & Certification'!$F$8)","v":""},{"$f":"IF(A155=\"\",\"\",'1. Checklist & Certification'!$B$9)","v":""},{"$f":"IF(A155=\"\",\"\",'1. Checklist & Certification'!$F$9)","v":""},{"$f":"IF(A155=\"\",\"\",'1. Checklist & Certification'!$C$10)","v":""},{"$f":"IF(A155=\"\",\"\",'1. Checklist & Certification'!$C$11)","v":""},{"$f":"IF(A155=\"\",\"\",'1. Checklist & Certification'!$C$12)","v":""},{"$f":"IF(A155=\"\",\"\",'1. Checklist & Certification'!$B$14)","v":""},{"$f":"IF(A155=\"\",\"\",'1. Checklist & Certification'!$E$14)","v":""},{"$f":"IF(B155=\"\",\"\",'1. Checklist & Certification'!$G$14)","v":""},{"$f":"IF(A155=\"\",\"\",'MHP Family Income & Rent Limits'!$B$3)","v":""},{"$f":"IF(A155=\"\",\"\",'MHP Family Income & Rent Limits'!$J$3)","v":""},{"$f":"IF(A155=\"\",\"\",'MHP Family Income & Rent Limits'!$E$4)","v":""},{"$f":"IF(A155=\"\",\"\",'MHP Family Income & Rent Limits'!$C$7)","v":""},{"$f":"IF(A155=\"\",\"\",'MHP Family Income & Rent Limits'!$F$8)","v":""},{"$f":"IF(A155=\"\",\"\",'1. Checklist & Certification'!$G$4)","v":""},{"$f":"IF(A155=\"\",\"\",'1. Checklist & Certification'!$K$39)","v":""},{"$f":"IF(A155=\"\",\"\",'1. Checklist & Certification'!$K$43)","v":""},{"$f":"IF(A155=\"\",\"\",'1. Checklist & Certification'!$K$45)","v":""},{"$f":"IF(A155=\"\",\"\",'1. Checklist & Certification'!$K$49)","v":""},{"$f":"IF(A155=\"\",\"\",'1. Checklist & Certification'!$E$66)","v":""},{"$f":"IF(A155=\"\",\"\",'1. Checklist & Certification'!$E$67)","v":""},{"$f":"IF(A155=\"\",\"\",'1. Checklist & Certification'!$E$68)","v":""},{"$f":"IF(A155=\"\",\"\",'1. Checklist & Certification'!$G$66)","v":""},{"$f":"IF(A155=\"\",\"\",'1. Checklist & Certification'!$H$66)","v":""},{"$f":"IF(A155=\"\",\"\",'1. Checklist & Certification'!$I$66)","v":""},{"$f":"IF(A155=\"\",\"\",'1. Checklist & Certification'!$I$67)","v":""},{"$f":"IF(A155=\"\",\"\",'1. Checklist & Certification'!$I$68)","v":""},null,{"$f":"IF(C155=\"\",\"\",HLOOKUP(C155,'MHP Family Income & Rent Limits'!$E$12:$L$26,2,FALSE))","v":""},{"$f":"IF(C155=\"\",\"\",HLOOKUP(C155,'MHP Family Income & Rent Limits'!$E$12:$L$26,3,FALSE))","v":""},{"$f":"IF(C155=\"\",\"\",HLOOKUP(C155,'MHP Family Income & Rent Limits'!$E$12:$L$26,4,FALSE))","v":""},{"$f":"IF(C155=\"\",\"\",HLOOKUP(C155,'MHP Family Income & Rent Limits'!$E$12:$L$26,5,FALSE))","v":""},{"$f":"IF(C155=\"\",\"\",HLOOKUP(C155,'MHP Family Income & Rent Limits'!$E$12:$L$26,6,FALSE))","v":""},{"$f":"IF(C155=\"\",\"\",HLOOKUP(C155,'MHP Family Income & Rent Limits'!$E$12:$L$26,7,FALSE))","v":""},{"$f":"IF(C155=\"\",\"\",HLOOKUP(C155,'MHP Family Income & Rent Limits'!$E$12:$L$26,8,FALSE))","v":""},{"$f":"IF(C155=\"\",\"\",HLOOKUP(C155,'MHP Family Income & Rent Limits'!$E$12:$L$26,9,FALSE))","v":""},{"$f":"IF(C155=\"\",\"\",HLOOKUP(C155,'MHP Family Income & Rent Limits'!$E$12:$L$26,10,FALSE))","v":""},{"$f":"IF(C155=\"\",\"\",HLOOKUP(C155,'MHP Family Income & Rent Limits'!$E$12:$L$26,11,FALSE))","v":""},{"$f":"IF(C155=\"\",\"\",HLOOKUP(C155,'MHP Family Income & Rent Limits'!$E$12:$L$26,12,FALSE))","v":""},{"$f":"IF(C155=\"\",\"\",HLOOKUP(C155,'MHP Family Income & Rent Limits'!$E$12:$L$26,13,FALSE))","v":""},{"$f":"IF(C155=\"\",\"\",HLOOKUP(C155,'MHP Family Income & Rent Limits'!$E$12:$L$26,14,FALSE))","v":""},{"$f":"IF(C155=\"\",\"\",HLOOKUP(C155,'MHP Family Income & Rent Limits'!$E$12:$L$26,15,FALSE))","v":""}]
[{"$f":"IF('2. Assisted & Restricted Units'!A156=\"\",\"\",'2. Assisted & Restricted Units'!A156)","v":""},{"$f":"IF('2. Assisted & Restricted Units'!B156=\"\",\"\",'2. Assisted & Restricted Units'!B156)","v":""},{"$f":"IF('2. Assisted & Restricted Units'!D156=\"\",\"\",'2. Assisted & Restricted Units'!D156)","v":""},{"$f":"IF('2. Assisted & Restricted Units'!E156=\"\",\"\",'2. Assisted & Restricted Units'!E156)","v":""},{"$f":"IF('2. Assisted & Restricted Units'!H156=\"\",\"\",'2. Assisted & Restricted Units'!H156)","v":""},{"$f":"_xlfn.IFS(E156=\"\",\"\",E156>BO156,$BP$6,E156>BN156,$BO$6,E156>BM156,$BN$6,E156>BL156,$BM$6,E156>BK156,$BL$6,E156>BJ156,$BK$6,E156>BI156,$BJ$6,E156>BH156,$BI$6,E156>BG156,$BH$6,E156>BF156,$BG$6,E156>BE156,$BF$6,E156>BD156,$BE$6,E156>BC156,$BD$6,E156>=0,$BC$6)","v":""},{"$f":"IF('2. Assisted & Restricted Units'!T156=\"\",\"\",'2. Assisted & Restricted Units'!T156)","v":""},{"$f":"IF('2. Assisted & Restricted Units'!I156=\"\",\"\",'2. Assisted & Restricted Units'!I156)","v":""},{"$f":"IF('2. Assisted & Restricted Units'!AP156=\"\",\"\",'2. Assisted & Restricted Units'!AP156)","v":0},{"$f":"IF('2. Assisted & Restricted Units'!AT156=\"\",\"\",'2. Assisted & Restricted Units'!AT156)","v":""},0,{"$f":"IF('2. Assisted & Restricted Units'!AV156=\"\",\"\",'2. Assisted & Restricted Units'!AV156)","v":""},{"$f":"IF('2. Assisted & Restricted Units'!L156=\"\",\"\",'2. Assisted & Restricted Units'!L156)","v":""},{"$f":"IF('2. Assisted & Restricted Units'!M156=\"\",\"\",'2. Assisted & Restricted Units'!M156)","v":""},{"$f":"IF('2. Assisted & Restricted Units'!O156=\"\",\"\",'2. Assisted & Restricted Units'!O156)","v":""},{"$f":"IF('2. Assisted & Restricted Units'!P156=\"\",\"\",'2. Assisted & Restricted Units'!P156)","v":""},{"$f":"IF('2. Assisted & Restricted Units'!Q156=\"\",\"\",'2. Assisted & Restricted Units'!Q156)","v":""},{"$f":"IF('2. Assisted & Restricted Units'!R156=\"\",\"\",'2. Assisted & Restricted Units'!R156)","v":""},{"$f":"IF(A156=\"\",\"\",'1. Checklist & Certification'!$K$1)","v":""},{"$f":"IF(A156=\"\",\"\",'1. Checklist & Certification'!$C$62)","v":""},{"$f":"IF(A156=\"\",\"\",'1. Checklist & Certification'!$K$62)","v":""},{"$f":"IF(A156=\"\",\"\",'1. Checklist & Certification'!$C$6)","v":""},{"$f":"IF(A156=\"\",\"\",'1. Checklist & Certification'!$G$4)","v":""},{"$f":"IF(A156=\"\",\"\",'1. Checklist & Certification'!$C$7)","v":""},{"$f":"IF(A156=\"\",\"\",'1. Checklist & Certification'!$C$8)","v":""},{"$f":"IF(A156=\"\",\"\",'1. Checklist & Certification'!$F$7)","v":""},{"$f":"IF(A156=\"\",\"\",'1. Checklist & Certification'!$F$8)","v":""},{"$f":"IF(A156=\"\",\"\",'1. Checklist & Certification'!$B$9)","v":""},{"$f":"IF(A156=\"\",\"\",'1. Checklist & Certification'!$F$9)","v":""},{"$f":"IF(A156=\"\",\"\",'1. Checklist & Certification'!$C$10)","v":""},{"$f":"IF(A156=\"\",\"\",'1. Checklist & Certification'!$C$11)","v":""},{"$f":"IF(A156=\"\",\"\",'1. Checklist & Certification'!$C$12)","v":""},{"$f":"IF(A156=\"\",\"\",'1. Checklist & Certification'!$B$14)","v":""},{"$f":"IF(A156=\"\",\"\",'1. Checklist & Certification'!$E$14)","v":""},{"$f":"IF(B156=\"\",\"\",'1. Checklist & Certification'!$G$14)","v":""},{"$f":"IF(A156=\"\",\"\",'MHP Family Income & Rent Limits'!$B$3)","v":""},{"$f":"IF(A156=\"\",\"\",'MHP Family Income & Rent Limits'!$J$3)","v":""},{"$f":"IF(A156=\"\",\"\",'MHP Family Income & Rent Limits'!$E$4)","v":""},{"$f":"IF(A156=\"\",\"\",'MHP Family Income & Rent Limits'!$C$7)","v":""},{"$f":"IF(A156=\"\",\"\",'MHP Family Income & Rent Limits'!$F$8)","v":""},{"$f":"IF(A156=\"\",\"\",'1. Checklist & Certification'!$G$4)","v":""},{"$f":"IF(A156=\"\",\"\",'1. Checklist & Certification'!$K$39)","v":""},{"$f":"IF(A156=\"\",\"\",'1. Checklist & Certification'!$K$43)","v":""},{"$f":"IF(A156=\"\",\"\",'1. Checklist & Certification'!$K$45)","v":""},{"$f":"IF(A156=\"\",\"\",'1. Checklist & Certification'!$K$49)","v":""},{"$f":"IF(A156=\"\",\"\",'1. Checklist & Certification'!$E$66)","v":""},{"$f":"IF(A156=\"\",\"\",'1. Checklist & Certification'!$E$67)","v":""},{"$f":"IF(A156=\"\",\"\",'1. Checklist & Certification'!$E$68)","v":""},{"$f":"IF(A156=\"\",\"\",'1. Checklist & Certification'!$G$66)","v":""},{"$f":"IF(A156=\"\",\"\",'1. Checklist & Certification'!$H$66)","v":""},{"$f":"IF(A156=\"\",\"\",'1. Checklist & Certification'!$I$66)","v":""},{"$f":"IF(A156=\"\",\"\",'1. Checklist & Certification'!$I$67)","v":""},{"$f":"IF(A156=\"\",\"\",'1. Checklist & Certification'!$I$68)","v":""},null,{"$f":"IF(C156=\"\",\"\",HLOOKUP(C156,'MHP Family Income & Rent Limits'!$E$12:$L$26,2,FALSE))","v":""},{"$f":"IF(C156=\"\",\"\",HLOOKUP(C156,'MHP Family Income & Rent Limits'!$E$12:$L$26,3,FALSE))","v":""},{"$f":"IF(C156=\"\",\"\",HLOOKUP(C156,'MHP Family Income & Rent Limits'!$E$12:$L$26,4,FALSE))","v":""},{"$f":"IF(C156=\"\",\"\",HLOOKUP(C156,'MHP Family Income & Rent Limits'!$E$12:$L$26,5,FALSE))","v":""},{"$f":"IF(C156=\"\",\"\",HLOOKUP(C156,'MHP Family Income & Rent Limits'!$E$12:$L$26,6,FALSE))","v":""},{"$f":"IF(C156=\"\",\"\",HLOOKUP(C156,'MHP Family Income & Rent Limits'!$E$12:$L$26,7,FALSE))","v":""},{"$f":"IF(C156=\"\",\"\",HLOOKUP(C156,'MHP Family Income & Rent Limits'!$E$12:$L$26,8,FALSE))","v":""},{"$f":"IF(C156=\"\",\"\",HLOOKUP(C156,'MHP Family Income & Rent Limits'!$E$12:$L$26,9,FALSE))","v":""},{"$f":"IF(C156=\"\",\"\",HLOOKUP(C156,'MHP Family Income & Rent Limits'!$E$12:$L$26,10,FALSE))","v":""},{"$f":"IF(C156=\"\",\"\",HLOOKUP(C156,'MHP Family Income & Rent Limits'!$E$12:$L$26,11,FALSE))","v":""},{"$f":"IF(C156=\"\",\"\",HLOOKUP(C156,'MHP Family Income & Rent Limits'!$E$12:$L$26,12,FALSE))","v":""},{"$f":"IF(C156=\"\",\"\",HLOOKUP(C156,'MHP Family Income & Rent Limits'!$E$12:$L$26,13,FALSE))","v":""},{"$f":"IF(C156=\"\",\"\",HLOOKUP(C156,'MHP Family Income & Rent Limits'!$E$12:$L$26,14,FALSE))","v":""},{"$f":"IF(C156=\"\",\"\",HLOOKUP(C156,'MHP Family Income & Rent Limits'!$E$12:$L$26,15,FALSE))","v":""}]
[{"$f":"IF('2. Assisted & Restricted Units'!A157=\"\",\"\",'2. Assisted & Restricted Units'!A157)","v":""},{"$f":"IF('2. Assisted & Restricted Units'!B157=\"\",\"\",'2. Assisted & Restricted Units'!B157)","v":""},{"$f":"IF('2. Assisted & Restricted Units'!D157=\"\",\"\",'2. Assisted & Restricted Units'!D157)","v":""},{"$f":"IF('2. Assisted & Restricted Units'!E157=\"\",\"\",'2. Assisted & Restricted Units'!E157)","v":""},{"$f":"IF('2. Assisted & Restricted Units'!H157=\"\",\"\",'2. Assisted & Restricted Units'!H157)","v":""},{"$f":"_xlfn.IFS(E157=\"\",\"\",E157>BO157,$BP$6,E157>BN157,$BO$6,E157>BM157,$BN$6,E157>BL157,$BM$6,E157>BK157,$BL$6,E157>BJ157,$BK$6,E157>BI157,$BJ$6,E157>BH157,$BI$6,E157>BG157,$BH$6,E157>BF157,$BG$6,E157>BE157,$BF$6,E157>BD157,$BE$6,E157>BC157,$BD$6,E157>=0,$BC$6)","v":""},{"$f":"IF('2. Assisted & Restricted Units'!T157=\"\",\"\",'2. Assisted & Restricted Units'!T157)","v":""},{"$f":"IF('2. Assisted & Restricted Units'!I157=\"\",\"\",'2. Assisted & Restricted Units'!I157)","v":""},{"$f":"IF('2. Assisted & Restricted Units'!AP157=\"\",\"\",'2. Assisted & Restricted Units'!AP157)","v":0},{"$f":"IF('2. Assisted & Restricted Units'!AT157=\"\",\"\",'2. Assisted & Restricted Units'!AT157)","v":""},0,{"$f":"IF('2. Assisted & Restricted Units'!AV157=\"\",\"\",'2. Assisted & Restricted Units'!AV157)","v":""},{"$f":"IF('2. Assisted & Restricted Units'!L157=\"\",\"\",'2. Assisted & Restricted Units'!L157)","v":""},{"$f":"IF('2. Assisted & Restricted Units'!M157=\"\",\"\",'2. Assisted & Restricted Units'!M157)","v":""},{"$f":"IF('2. Assisted & Restricted Units'!O157=\"\",\"\",'2. Assisted & Restricted Units'!O157)","v":""},{"$f":"IF('2. Assisted & Restricted Units'!P157=\"\",\"\",'2. Assisted & Restricted Units'!P157)","v":""},{"$f":"IF('2. Assisted & Restricted Units'!Q157=\"\",\"\",'2. Assisted & Restricted Units'!Q157)","v":""},{"$f":"IF('2. Assisted & Restricted Units'!R157=\"\",\"\",'2. Assisted & Restricted Units'!R157)","v":""},{"$f":"IF(A157=\"\",\"\",'1. Checklist & Certification'!$K$1)","v":""},{"$f":"IF(A157=\"\",\"\",'1. Checklist & Certification'!$C$62)","v":""},{"$f":"IF(A157=\"\",\"\",'1. Checklist & Certification'!$K$62)","v":""},{"$f":"IF(A157=\"\",\"\",'1. Checklist & Certification'!$C$6)","v":""},{"$f":"IF(A157=\"\",\"\",'1. Checklist & Certification'!$G$4)","v":""},{"$f":"IF(A157=\"\",\"\",'1. Checklist & Certification'!$C$7)","v":""},{"$f":"IF(A157=\"\",\"\",'1. Checklist & Certification'!$C$8)","v":""},{"$f":"IF(A157=\"\",\"\",'1. Checklist & Certification'!$F$7)","v":""},{"$f":"IF(A157=\"\",\"\",'1. Checklist & Certification'!$F$8)","v":""},{"$f":"IF(A157=\"\",\"\",'1. Checklist & Certification'!$B$9)","v":""},{"$f":"IF(A157=\"\",\"\",'1. Checklist & Certification'!$F$9)","v":""},{"$f":"IF(A157=\"\",\"\",'1. Checklist & Certification'!$C$10)","v":""},{"$f":"IF(A157=\"\",\"\",'1. Checklist & Certification'!$C$11)","v":""},{"$f":"IF(A157=\"\",\"\",'1. Checklist & Certification'!$C$12)","v":""},{"$f":"IF(A157=\"\",\"\",'1. Checklist & Certification'!$B$14)","v":""},{"$f":"IF(A157=\"\",\"\",'1. Checklist & Certification'!$E$14)","v":""},{"$f":"IF(B157=\"\",\"\",'1. Checklist & Certification'!$G$14)","v":""},{"$f":"IF(A157=\"\",\"\",'MHP Family Income & Rent Limits'!$B$3)","v":""},{"$f":"IF(A157=\"\",\"\",'MHP Family Income & Rent Limits'!$J$3)","v":""},{"$f":"IF(A157=\"\",\"\",'MHP Family Income & Rent Limits'!$E$4)","v":""},{"$f":"IF(A157=\"\",\"\",'MHP Family Income & Rent Limits'!$C$7)","v":""},{"$f":"IF(A157=\"\",\"\",'MHP Family Income & Rent Limits'!$F$8)","v":""},{"$f":"IF(A157=\"\",\"\",'1. Checklist & Certification'!$G$4)","v":""},{"$f":"IF(A157=\"\",\"\",'1. Checklist & Certification'!$K$39)","v":""},{"$f":"IF(A157=\"\",\"\",'1. Checklist & Certification'!$K$43)","v":""},{"$f":"IF(A157=\"\",\"\",'1. Checklist & Certification'!$K$45)","v":""},{"$f":"IF(A157=\"\",\"\",'1. Checklist & Certification'!$K$49)","v":""},{"$f":"IF(A157=\"\",\"\",'1. Checklist & Certification'!$E$66)","v":""},{"$f":"IF(A157=\"\",\"\",'1. Checklist & Certification'!$E$67)","v":""},{"$f":"IF(A157=\"\",\"\",'1. Checklist & Certification'!$E$68)","v":""},{"$f":"IF(A157=\"\",\"\",'1. Checklist & Certification'!$G$66)","v":""},{"$f":"IF(A157=\"\",\"\",'1. Checklist & Certification'!$H$66)","v":""},{"$f":"IF(A157=\"\",\"\",'1. Checklist & Certification'!$I$66)","v":""},{"$f":"IF(A157=\"\",\"\",'1. Checklist & Certification'!$I$67)","v":""},{"$f":"IF(A157=\"\",\"\",'1. Checklist & Certification'!$I$68)","v":""},null,{"$f":"IF(C157=\"\",\"\",HLOOKUP(C157,'MHP Family Income & Rent Limits'!$E$12:$L$26,2,FALSE))","v":""},{"$f":"IF(C157=\"\",\"\",HLOOKUP(C157,'MHP Family Income & Rent Limits'!$E$12:$L$26,3,FALSE))","v":""},{"$f":"IF(C157=\"\",\"\",HLOOKUP(C157,'MHP Family Income & Rent Limits'!$E$12:$L$26,4,FALSE))","v":""},{"$f":"IF(C157=\"\",\"\",HLOOKUP(C157,'MHP Family Income & Rent Limits'!$E$12:$L$26,5,FALSE))","v":""},{"$f":"IF(C157=\"\",\"\",HLOOKUP(C157,'MHP Family Income & Rent Limits'!$E$12:$L$26,6,FALSE))","v":""},{"$f":"IF(C157=\"\",\"\",HLOOKUP(C157,'MHP Family Income & Rent Limits'!$E$12:$L$26,7,FALSE))","v":""},{"$f":"IF(C157=\"\",\"\",HLOOKUP(C157,'MHP Family Income & Rent Limits'!$E$12:$L$26,8,FALSE))","v":""},{"$f":"IF(C157=\"\",\"\",HLOOKUP(C157,'MHP Family Income & Rent Limits'!$E$12:$L$26,9,FALSE))","v":""},{"$f":"IF(C157=\"\",\"\",HLOOKUP(C157,'MHP Family Income & Rent Limits'!$E$12:$L$26,10,FALSE))","v":""},{"$f":"IF(C157=\"\",\"\",HLOOKUP(C157,'MHP Family Income & Rent Limits'!$E$12:$L$26,11,FALSE))","v":""},{"$f":"IF(C157=\"\",\"\",HLOOKUP(C157,'MHP Family Income & Rent Limits'!$E$12:$L$26,12,FALSE))","v":""},{"$f":"IF(C157=\"\",\"\",HLOOKUP(C157,'MHP Family Income & Rent Limits'!$E$12:$L$26,13,FALSE))","v":""},{"$f":"IF(C157=\"\",\"\",HLOOKUP(C157,'MHP Family Income & Rent Limits'!$E$12:$L$26,14,FALSE))","v":""},{"$f":"IF(C157=\"\",\"\",HLOOKUP(C157,'MHP Family Income & Rent Limits'!$E$12:$L$26,15,FALSE))","v":""}]
[{"$f":"IF('2. Assisted & Restricted Units'!A158=\"\",\"\",'2. Assisted & Restricted Units'!A158)","v":""},{"$f":"IF('2. Assisted & Restricted Units'!B158=\"\",\"\",'2. Assisted & Restricted Units'!B158)","v":""},{"$f":"IF('2. Assisted & Restricted Units'!D158=\"\",\"\",'2. Assisted & Restricted Units'!D158)","v":""},{"$f":"IF('2. Assisted & Restricted Units'!E158=\"\",\"\",'2. Assisted & Restricted Units'!E158)","v":""},{"$f":"IF('2. Assisted & Restricted Units'!H158=\"\",\"\",'2. Assisted & Restricted Units'!H158)","v":""},{"$f":"_xlfn.IFS(E158=\"\",\"\",E158>BO158,$BP$6,E158>BN158,$BO$6,E158>BM158,$BN$6,E158>BL158,$BM$6,E158>BK158,$BL$6,E158>BJ158,$BK$6,E158>BI158,$BJ$6,E158>BH158,$BI$6,E158>BG158,$BH$6,E158>BF158,$BG$6,E158>BE158,$BF$6,E158>BD158,$BE$6,E158>BC158,$BD$6,E158>=0,$BC$6)","v":""},{"$f":"IF('2. Assisted & Restricted Units'!T158=\"\",\"\",'2. Assisted & Restricted Units'!T158)","v":""},{"$f":"IF('2. Assisted & Restricted Units'!I158=\"\",\"\",'2. Assisted & Restricted Units'!I158)","v":""},{"$f":"IF('2. Assisted & Restricted Units'!AP158=\"\",\"\",'2. Assisted & Restricted Units'!AP158)","v":0},{"$f":"IF('2. Assisted & Restricted Units'!AT158=\"\",\"\",'2. Assisted & Restricted Units'!AT158)","v":""},0,{"$f":"IF('2. Assisted & Restricted Units'!AV158=\"\",\"\",'2. Assisted & Restricted Units'!AV158)","v":""},{"$f":"IF('2. Assisted & Restricted Units'!L158=\"\",\"\",'2. Assisted & Restricted Units'!L158)","v":""},{"$f":"IF('2. Assisted & Restricted Units'!M158=\"\",\"\",'2. Assisted & Restricted Units'!M158)","v":""},{"$f":"IF('2. Assisted & Restricted Units'!O158=\"\",\"\",'2. Assisted & Restricted Units'!O158)","v":""},{"$f":"IF('2. Assisted & Restricted Units'!P158=\"\",\"\",'2. Assisted & Restricted Units'!P158)","v":""},{"$f":"IF('2. Assisted & Restricted Units'!Q158=\"\",\"\",'2. Assisted & Restricted Units'!Q158)","v":""},{"$f":"IF('2. Assisted & Restricted Units'!R158=\"\",\"\",'2. Assisted & Restricted Units'!R158)","v":""},{"$f":"IF(A158=\"\",\"\",'1. Checklist & Certification'!$K$1)","v":""},{"$f":"IF(A158=\"\",\"\",'1. Checklist & Certification'!$C$62)","v":""},{"$f":"IF(A158=\"\",\"\",'1. Checklist & Certification'!$K$62)","v":""},{"$f":"IF(A158=\"\",\"\",'1. Checklist & Certification'!$C$6)","v":""},{"$f":"IF(A158=\"\",\"\",'1. Checklist & Certification'!$G$4)","v":""},{"$f":"IF(A158=\"\",\"\",'1. Checklist & Certification'!$C$7)","v":""},{"$f":"IF(A158=\"\",\"\",'1. Checklist & Certification'!$C$8)","v":""},{"$f":"IF(A158=\"\",\"\",'1. Checklist & Certification'!$F$7)","v":""},{"$f":"IF(A158=\"\",\"\",'1. Checklist & Certification'!$F$8)","v":""},{"$f":"IF(A158=\"\",\"\",'1. Checklist & Certification'!$B$9)","v":""},{"$f":"IF(A158=\"\",\"\",'1. Checklist & Certification'!$F$9)","v":""},{"$f":"IF(A158=\"\",\"\",'1. Checklist & Certification'!$C$10)","v":""},{"$f":"IF(A158=\"\",\"\",'1. Checklist & Certification'!$C$11)","v":""},{"$f":"IF(A158=\"\",\"\",'1. Checklist & Certification'!$C$12)","v":""},{"$f":"IF(A158=\"\",\"\",'1. Checklist & Certification'!$B$14)","v":""},{"$f":"IF(A158=\"\",\"\",'1. Checklist & Certification'!$E$14)","v":""},{"$f":"IF(B158=\"\",\"\",'1. Checklist & Certification'!$G$14)","v":""},{"$f":"IF(A158=\"\",\"\",'MHP Family Income & Rent Limits'!$B$3)","v":""},{"$f":"IF(A158=\"\",\"\",'MHP Family Income & Rent Limits'!$J$3)","v":""},{"$f":"IF(A158=\"\",\"\",'MHP Family Income & Rent Limits'!$E$4)","v":""},{"$f":"IF(A158=\"\",\"\",'MHP Family Income & Rent Limits'!$C$7)","v":""},{"$f":"IF(A158=\"\",\"\",'MHP Family Income & Rent Limits'!$F$8)","v":""},{"$f":"IF(A158=\"\",\"\",'1. Checklist & Certification'!$G$4)","v":""},{"$f":"IF(A158=\"\",\"\",'1. Checklist & Certification'!$K$39)","v":""},{"$f":"IF(A158=\"\",\"\",'1. Checklist & Certification'!$K$43)","v":""},{"$f":"IF(A158=\"\",\"\",'1. Checklist & Certification'!$K$45)","v":""},{"$f":"IF(A158=\"\",\"\",'1. Checklist & Certification'!$K$49)","v":""},{"$f":"IF(A158=\"\",\"\",'1. Checklist & Certification'!$E$66)","v":""},{"$f":"IF(A158=\"\",\"\",'1. Checklist & Certification'!$E$67)","v":""},{"$f":"IF(A158=\"\",\"\",'1. Checklist & Certification'!$E$68)","v":""},{"$f":"IF(A158=\"\",\"\",'1. Checklist & Certification'!$G$66)","v":""},{"$f":"IF(A158=\"\",\"\",'1. Checklist & Certification'!$H$66)","v":""},{"$f":"IF(A158=\"\",\"\",'1. Checklist & Certification'!$I$66)","v":""},{"$f":"IF(A158=\"\",\"\",'1. Checklist & Certification'!$I$67)","v":""},{"$f":"IF(A158=\"\",\"\",'1. Checklist & Certification'!$I$68)","v":""},null,{"$f":"IF(C158=\"\",\"\",HLOOKUP(C158,'MHP Family Income & Rent Limits'!$E$12:$L$26,2,FALSE))","v":""},{"$f":"IF(C158=\"\",\"\",HLOOKUP(C158,'MHP Family Income & Rent Limits'!$E$12:$L$26,3,FALSE))","v":""},{"$f":"IF(C158=\"\",\"\",HLOOKUP(C158,'MHP Family Income & Rent Limits'!$E$12:$L$26,4,FALSE))","v":""},{"$f":"IF(C158=\"\",\"\",HLOOKUP(C158,'MHP Family Income & Rent Limits'!$E$12:$L$26,5,FALSE))","v":""},{"$f":"IF(C158=\"\",\"\",HLOOKUP(C158,'MHP Family Income & Rent Limits'!$E$12:$L$26,6,FALSE))","v":""},{"$f":"IF(C158=\"\",\"\",HLOOKUP(C158,'MHP Family Income & Rent Limits'!$E$12:$L$26,7,FALSE))","v":""},{"$f":"IF(C158=\"\",\"\",HLOOKUP(C158,'MHP Family Income & Rent Limits'!$E$12:$L$26,8,FALSE))","v":""},{"$f":"IF(C158=\"\",\"\",HLOOKUP(C158,'MHP Family Income & Rent Limits'!$E$12:$L$26,9,FALSE))","v":""},{"$f":"IF(C158=\"\",\"\",HLOOKUP(C158,'MHP Family Income & Rent Limits'!$E$12:$L$26,10,FALSE))","v":""},{"$f":"IF(C158=\"\",\"\",HLOOKUP(C158,'MHP Family Income & Rent Limits'!$E$12:$L$26,11,FALSE))","v":""},{"$f":"IF(C158=\"\",\"\",HLOOKUP(C158,'MHP Family Income & Rent Limits'!$E$12:$L$26,12,FALSE))","v":""},{"$f":"IF(C158=\"\",\"\",HLOOKUP(C158,'MHP Family Income & Rent Limits'!$E$12:$L$26,13,FALSE))","v":""},{"$f":"IF(C158=\"\",\"\",HLOOKUP(C158,'MHP Family Income & Rent Limits'!$E$12:$L$26,14,FALSE))","v":""},{"$f":"IF(C158=\"\",\"\",HLOOKUP(C158,'MHP Family Income & Rent Limits'!$E$12:$L$26,15,FALSE))","v":""}]
[{"$f":"IF('2. Assisted & Restricted Units'!A159=\"\",\"\",'2. Assisted & Restricted Units'!A159)","v":""},{"$f":"IF('2. Assisted & Restricted Units'!B159=\"\",\"\",'2. Assisted & Restricted Units'!B159)","v":""},{"$f":"IF('2. Assisted & Restricted Units'!D159=\"\",\"\",'2. Assisted & Restricted Units'!D159)","v":""},{"$f":"IF('2. Assisted & Restricted Units'!E159=\"\",\"\",'2. Assisted & Restricted Units'!E159)","v":""},{"$f":"IF('2. Assisted & Restricted Units'!H159=\"\",\"\",'2. Assisted & Restricted Units'!H159)","v":""},{"$f":"_xlfn.IFS(E159=\"\",\"\",E159>BO159,$BP$6,E159>BN159,$BO$6,E159>BM159,$BN$6,E159>BL159,$BM$6,E159>BK159,$BL$6,E159>BJ159,$BK$6,E159>BI159,$BJ$6,E159>BH159,$BI$6,E159>BG159,$BH$6,E159>BF159,$BG$6,E159>BE159,$BF$6,E159>BD159,$BE$6,E159>BC159,$BD$6,E159>=0,$BC$6)","v":""},{"$f":"IF('2. Assisted & Restricted Units'!T159=\"\",\"\",'2. Assisted & Restricted Units'!T159)","v":""},{"$f":"IF('2. Assisted & Restricted Units'!I159=\"\",\"\",'2. Assisted & Restricted Units'!I159)","v":""},{"$f":"IF('2. Assisted & Restricted Units'!AP159=\"\",\"\",'2. Assisted & Restricted Units'!AP159)","v":0},{"$f":"IF('2. Assisted & Restricted Units'!AT159=\"\",\"\",'2. Assisted & Restricted Units'!AT159)","v":""},0,{"$f":"IF('2. Assisted & Restricted Units'!AV159=\"\",\"\",'2. Assisted & Restricted Units'!AV159)","v":""},{"$f":"IF('2. Assisted & Restricted Units'!L159=\"\",\"\",'2. Assisted & Restricted Units'!L159)","v":""},{"$f":"IF('2. Assisted & Restricted Units'!M159=\"\",\"\",'2. Assisted & Restricted Units'!M159)","v":""},{"$f":"IF('2. Assisted & Restricted Units'!O159=\"\",\"\",'2. Assisted & Restricted Units'!O159)","v":""},{"$f":"IF('2. Assisted & Restricted Units'!P159=\"\",\"\",'2. Assisted & Restricted Units'!P159)","v":""},{"$f":"IF('2. Assisted & Restricted Units'!Q159=\"\",\"\",'2. Assisted & Restricted Units'!Q159)","v":""},{"$f":"IF('2. Assisted & Restricted Units'!R159=\"\",\"\",'2. Assisted & Restricted Units'!R159)","v":""},{"$f":"IF(A159=\"\",\"\",'1. Checklist & Certification'!$K$1)","v":""},{"$f":"IF(A159=\"\",\"\",'1. Checklist & Certification'!$C$62)","v":""},{"$f":"IF(A159=\"\",\"\",'1. Checklist & Certification'!$K$62)","v":""},{"$f":"IF(A159=\"\",\"\",'1. Checklist & Certification'!$C$6)","v":""},{"$f":"IF(A159=\"\",\"\",'1. Checklist & Certification'!$G$4)","v":""},{"$f":"IF(A159=\"\",\"\",'1. Checklist & Certification'!$C$7)","v":""},{"$f":"IF(A159=\"\",\"\",'1. Checklist & Certification'!$C$8)","v":""},{"$f":"IF(A159=\"\",\"\",'1. Checklist & Certification'!$F$7)","v":""},{"$f":"IF(A159=\"\",\"\",'1. Checklist & Certification'!$F$8)","v":""},{"$f":"IF(A159=\"\",\"\",'1. Checklist & Certification'!$B$9)","v":""},{"$f":"IF(A159=\"\",\"\",'1. Checklist & Certification'!$F$9)","v":""},{"$f":"IF(A159=\"\",\"\",'1. Checklist & Certification'!$C$10)","v":""},{"$f":"IF(A159=\"\",\"\",'1. Checklist & Certification'!$C$11)","v":""},{"$f":"IF(A159=\"\",\"\",'1. Checklist & Certification'!$C$12)","v":""},{"$f":"IF(A159=\"\",\"\",'1. Checklist & Certification'!$B$14)","v":""},{"$f":"IF(A159=\"\",\"\",'1. Checklist & Certification'!$E$14)","v":""},{"$f":"IF(B159=\"\",\"\",'1. Checklist & Certification'!$G$14)","v":""},{"$f":"IF(A159=\"\",\"\",'MHP Family Income & Rent Limits'!$B$3)","v":""},{"$f":"IF(A159=\"\",\"\",'MHP Family Income & Rent Limits'!$J$3)","v":""},{"$f":"IF(A159=\"\",\"\",'MHP Family Income & Rent Limits'!$E$4)","v":""},{"$f":"IF(A159=\"\",\"\",'MHP Family Income & Rent Limits'!$C$7)","v":""},{"$f":"IF(A159=\"\",\"\",'MHP Family Income & Rent Limits'!$F$8)","v":""},{"$f":"IF(A159=\"\",\"\",'1. Checklist & Certification'!$G$4)","v":""},{"$f":"IF(A159=\"\",\"\",'1. Checklist & Certification'!$K$39)","v":""},{"$f":"IF(A159=\"\",\"\",'1. Checklist & Certification'!$K$43)","v":""},{"$f":"IF(A159=\"\",\"\",'1. Checklist & Certification'!$K$45)","v":""},{"$f":"IF(A159=\"\",\"\",'1. Checklist & Certification'!$K$49)","v":""},{"$f":"IF(A159=\"\",\"\",'1. Checklist & Certification'!$E$66)","v":""},{"$f":"IF(A159=\"\",\"\",'1. Checklist & Certification'!$E$67)","v":""},{"$f":"IF(A159=\"\",\"\",'1. Checklist & Certification'!$E$68)","v":""},{"$f":"IF(A159=\"\",\"\",'1. Checklist & Certification'!$G$66)","v":""},{"$f":"IF(A159=\"\",\"\",'1. Checklist & Certification'!$H$66)","v":""},{"$f":"IF(A159=\"\",\"\",'1. Checklist & Certification'!$I$66)","v":""},{"$f":"IF(A159=\"\",\"\",'1. Checklist & Certification'!$I$67)","v":""},{"$f":"IF(A159=\"\",\"\",'1. Checklist & Certification'!$I$68)","v":""},null,{"$f":"IF(C159=\"\",\"\",HLOOKUP(C159,'MHP Family Income & Rent Limits'!$E$12:$L$26,2,FALSE))","v":""},{"$f":"IF(C159=\"\",\"\",HLOOKUP(C159,'MHP Family Income & Rent Limits'!$E$12:$L$26,3,FALSE))","v":""},{"$f":"IF(C159=\"\",\"\",HLOOKUP(C159,'MHP Family Income & Rent Limits'!$E$12:$L$26,4,FALSE))","v":""},{"$f":"IF(C159=\"\",\"\",HLOOKUP(C159,'MHP Family Income & Rent Limits'!$E$12:$L$26,5,FALSE))","v":""},{"$f":"IF(C159=\"\",\"\",HLOOKUP(C159,'MHP Family Income & Rent Limits'!$E$12:$L$26,6,FALSE))","v":""},{"$f":"IF(C159=\"\",\"\",HLOOKUP(C159,'MHP Family Income & Rent Limits'!$E$12:$L$26,7,FALSE))","v":""},{"$f":"IF(C159=\"\",\"\",HLOOKUP(C159,'MHP Family Income & Rent Limits'!$E$12:$L$26,8,FALSE))","v":""},{"$f":"IF(C159=\"\",\"\",HLOOKUP(C159,'MHP Family Income & Rent Limits'!$E$12:$L$26,9,FALSE))","v":""},{"$f":"IF(C159=\"\",\"\",HLOOKUP(C159,'MHP Family Income & Rent Limits'!$E$12:$L$26,10,FALSE))","v":""},{"$f":"IF(C159=\"\",\"\",HLOOKUP(C159,'MHP Family Income & Rent Limits'!$E$12:$L$26,11,FALSE))","v":""},{"$f":"IF(C159=\"\",\"\",HLOOKUP(C159,'MHP Family Income & Rent Limits'!$E$12:$L$26,12,FALSE))","v":""},{"$f":"IF(C159=\"\",\"\",HLOOKUP(C159,'MHP Family Income & Rent Limits'!$E$12:$L$26,13,FALSE))","v":""},{"$f":"IF(C159=\"\",\"\",HLOOKUP(C159,'MHP Family Income & Rent Limits'!$E$12:$L$26,14,FALSE))","v":""},{"$f":"IF(C159=\"\",\"\",HLOOKUP(C159,'MHP Family Income & Rent Limits'!$E$12:$L$26,15,FALSE))","v":""}]
[{"$f":"IF('2. Assisted & Restricted Units'!A160=\"\",\"\",'2. Assisted & Restricted Units'!A160)","v":""},{"$f":"IF('2. Assisted & Restricted Units'!B160=\"\",\"\",'2. Assisted & Restricted Units'!B160)","v":""},{"$f":"IF('2. Assisted & Restricted Units'!D160=\"\",\"\",'2. Assisted & Restricted Units'!D160)","v":""},{"$f":"IF('2. Assisted & Restricted Units'!E160=\"\",\"\",'2. Assisted & Restricted Units'!E160)","v":""},{"$f":"IF('2. Assisted & Restricted Units'!H160=\"\",\"\",'2. Assisted & Restricted Units'!H160)","v":""},{"$f":"_xlfn.IFS(E160=\"\",\"\",E160>BO160,$BP$6,E160>BN160,$BO$6,E160>BM160,$BN$6,E160>BL160,$BM$6,E160>BK160,$BL$6,E160>BJ160,$BK$6,E160>BI160,$BJ$6,E160>BH160,$BI$6,E160>BG160,$BH$6,E160>BF160,$BG$6,E160>BE160,$BF$6,E160>BD160,$BE$6,E160>BC160,$BD$6,E160>=0,$BC$6)","v":""},{"$f":"IF('2. Assisted & Restricted Units'!T160=\"\",\"\",'2. Assisted & Restricted Units'!T160)","v":""},{"$f":"IF('2. Assisted & Restricted Units'!I160=\"\",\"\",'2. Assisted & Restricted Units'!I160)","v":""},{"$f":"IF('2. Assisted & Restricted Units'!AP160=\"\",\"\",'2. Assisted & Restricted Units'!AP160)","v":0},{"$f":"IF('2. Assisted & Restricted Units'!AT160=\"\",\"\",'2. Assisted & Restricted Units'!AT160)","v":""},0,{"$f":"IF('2. Assisted & Restricted Units'!AV160=\"\",\"\",'2. Assisted & Restricted Units'!AV160)","v":""},{"$f":"IF('2. Assisted & Restricted Units'!L160=\"\",\"\",'2. Assisted & Restricted Units'!L160)","v":""},{"$f":"IF('2. Assisted & Restricted Units'!M160=\"\",\"\",'2. Assisted & Restricted Units'!M160)","v":""},{"$f":"IF('2. Assisted & Restricted Units'!O160=\"\",\"\",'2. Assisted & Restricted Units'!O160)","v":""},{"$f":"IF('2. Assisted & Restricted Units'!P160=\"\",\"\",'2. Assisted & Restricted Units'!P160)","v":""},{"$f":"IF('2. Assisted & Restricted Units'!Q160=\"\",\"\",'2. Assisted & Restricted Units'!Q160)","v":""},{"$f":"IF('2. Assisted & Restricted Units'!R160=\"\",\"\",'2. Assisted & Restricted Units'!R160)","v":""},{"$f":"IF(A160=\"\",\"\",'1. Checklist & Certification'!$K$1)","v":""},{"$f":"IF(A160=\"\",\"\",'1. Checklist & Certification'!$C$62)","v":""},{"$f":"IF(A160=\"\",\"\",'1. Checklist & Certification'!$K$62)","v":""},{"$f":"IF(A160=\"\",\"\",'1. Checklist & Certification'!$C$6)","v":""},{"$f":"IF(A160=\"\",\"\",'1. Checklist & Certification'!$G$4)","v":""},{"$f":"IF(A160=\"\",\"\",'1. Checklist & Certification'!$C$7)","v":""},{"$f":"IF(A160=\"\",\"\",'1. Checklist & Certification'!$C$8)","v":""},{"$f":"IF(A160=\"\",\"\",'1. Checklist & Certification'!$F$7)","v":""},{"$f":"IF(A160=\"\",\"\",'1. Checklist & Certification'!$F$8)","v":""},{"$f":"IF(A160=\"\",\"\",'1. Checklist & Certification'!$B$9)","v":""},{"$f":"IF(A160=\"\",\"\",'1. Checklist & Certification'!$F$9)","v":""},{"$f":"IF(A160=\"\",\"\",'1. Checklist & Certification'!$C$10)","v":""},{"$f":"IF(A160=\"\",\"\",'1. Checklist & Certification'!$C$11)","v":""},{"$f":"IF(A160=\"\",\"\",'1. Checklist & Certification'!$C$12)","v":""},{"$f":"IF(A160=\"\",\"\",'1. Checklist & Certification'!$B$14)","v":""},{"$f":"IF(A160=\"\",\"\",'1. Checklist & Certification'!$E$14)","v":""},{"$f":"IF(B160=\"\",\"\",'1. Checklist & Certification'!$G$14)","v":""},{"$f":"IF(A160=\"\",\"\",'MHP Family Income & Rent Limits'!$B$3)","v":""},{"$f":"IF(A160=\"\",\"\",'MHP Family Income & Rent Limits'!$J$3)","v":""},{"$f":"IF(A160=\"\",\"\",'MHP Family Income & Rent Limits'!$E$4)","v":""},{"$f":"IF(A160=\"\",\"\",'MHP Family Income & Rent Limits'!$C$7)","v":""},{"$f":"IF(A160=\"\",\"\",'MHP Family Income & Rent Limits'!$F$8)","v":""},{"$f":"IF(A160=\"\",\"\",'1. Checklist & Certification'!$G$4)","v":""},{"$f":"IF(A160=\"\",\"\",'1. Checklist & Certification'!$K$39)","v":""},{"$f":"IF(A160=\"\",\"\",'1. Checklist & Certification'!$K$43)","v":""},{"$f":"IF(A160=\"\",\"\",'1. Checklist & Certification'!$K$45)","v":""},{"$f":"IF(A160=\"\",\"\",'1. Checklist & Certification'!$K$49)","v":""},{"$f":"IF(A160=\"\",\"\",'1. Checklist & Certification'!$E$66)","v":""},{"$f":"IF(A160=\"\",\"\",'1. Checklist & Certification'!$E$67)","v":""},{"$f":"IF(A160=\"\",\"\",'1. Checklist & Certification'!$E$68)","v":""},{"$f":"IF(A160=\"\",\"\",'1. Checklist & Certification'!$G$66)","v":""},{"$f":"IF(A160=\"\",\"\",'1. Checklist & Certification'!$H$66)","v":""},{"$f":"IF(A160=\"\",\"\",'1. Checklist & Certification'!$I$66)","v":""},{"$f":"IF(A160=\"\",\"\",'1. Checklist & Certification'!$I$67)","v":""},{"$f":"IF(A160=\"\",\"\",'1. Checklist & Certification'!$I$68)","v":""},null,{"$f":"IF(C160=\"\",\"\",HLOOKUP(C160,'MHP Family Income & Rent Limits'!$E$12:$L$26,2,FALSE))","v":""},{"$f":"IF(C160=\"\",\"\",HLOOKUP(C160,'MHP Family Income & Rent Limits'!$E$12:$L$26,3,FALSE))","v":""},{"$f":"IF(C160=\"\",\"\",HLOOKUP(C160,'MHP Family Income & Rent Limits'!$E$12:$L$26,4,FALSE))","v":""},{"$f":"IF(C160=\"\",\"\",HLOOKUP(C160,'MHP Family Income & Rent Limits'!$E$12:$L$26,5,FALSE))","v":""},{"$f":"IF(C160=\"\",\"\",HLOOKUP(C160,'MHP Family Income & Rent Limits'!$E$12:$L$26,6,FALSE))","v":""},{"$f":"IF(C160=\"\",\"\",HLOOKUP(C160,'MHP Family Income & Rent Limits'!$E$12:$L$26,7,FALSE))","v":""},{"$f":"IF(C160=\"\",\"\",HLOOKUP(C160,'MHP Family Income & Rent Limits'!$E$12:$L$26,8,FALSE))","v":""},{"$f":"IF(C160=\"\",\"\",HLOOKUP(C160,'MHP Family Income & Rent Limits'!$E$12:$L$26,9,FALSE))","v":""},{"$f":"IF(C160=\"\",\"\",HLOOKUP(C160,'MHP Family Income & Rent Limits'!$E$12:$L$26,10,FALSE))","v":""},{"$f":"IF(C160=\"\",\"\",HLOOKUP(C160,'MHP Family Income & Rent Limits'!$E$12:$L$26,11,FALSE))","v":""},{"$f":"IF(C160=\"\",\"\",HLOOKUP(C160,'MHP Family Income & Rent Limits'!$E$12:$L$26,12,FALSE))","v":""},{"$f":"IF(C160=\"\",\"\",HLOOKUP(C160,'MHP Family Income & Rent Limits'!$E$12:$L$26,13,FALSE))","v":""},{"$f":"IF(C160=\"\",\"\",HLOOKUP(C160,'MHP Family Income & Rent Limits'!$E$12:$L$26,14,FALSE))","v":""},{"$f":"IF(C160=\"\",\"\",HLOOKUP(C160,'MHP Family Income & Rent Limits'!$E$12:$L$26,15,FALSE))","v":""}]
[{"$f":"IF('2. Assisted & Restricted Units'!A161=\"\",\"\",'2. Assisted & Restricted Units'!A161)","v":""},{"$f":"IF('2. Assisted & Restricted Units'!B161=\"\",\"\",'2. Assisted & Restricted Units'!B161)","v":""},{"$f":"IF('2. Assisted & Restricted Units'!D161=\"\",\"\",'2. Assisted & Restricted Units'!D161)","v":""},{"$f":"IF('2. Assisted & Restricted Units'!E161=\"\",\"\",'2. Assisted & Restricted Units'!E161)","v":""},{"$f":"IF('2. Assisted & Restricted Units'!H161=\"\",\"\",'2. Assisted & Restricted Units'!H161)","v":""},{"$f":"_xlfn.IFS(E161=\"\",\"\",E161>BO161,$BP$6,E161>BN161,$BO$6,E161>BM161,$BN$6,E161>BL161,$BM$6,E161>BK161,$BL$6,E161>BJ161,$BK$6,E161>BI161,$BJ$6,E161>BH161,$BI$6,E161>BG161,$BH$6,E161>BF161,$BG$6,E161>BE161,$BF$6,E161>BD161,$BE$6,E161>BC161,$BD$6,E161>=0,$BC$6)","v":""},{"$f":"IF('2. Assisted & Restricted Units'!T161=\"\",\"\",'2. Assisted & Restricted Units'!T161)","v":""},{"$f":"IF('2. Assisted & Restricted Units'!I161=\"\",\"\",'2. Assisted & Restricted Units'!I161)","v":""},{"$f":"IF('2. Assisted & Restricted Units'!AP161=\"\",\"\",'2. Assisted & Restricted Units'!AP161)","v":0},{"$f":"IF('2. Assisted & Restricted Units'!AT161=\"\",\"\",'2. Assisted & Restricted Units'!AT161)","v":""},0,{"$f":"IF('2. Assisted & Restricted Units'!AV161=\"\",\"\",'2. Assisted & Restricted Units'!AV161)","v":""},{"$f":"IF('2. Assisted & Restricted Units'!L161=\"\",\"\",'2. Assisted & Restricted Units'!L161)","v":""},{"$f":"IF('2. Assisted & Restricted Units'!M161=\"\",\"\",'2. Assisted & Restricted Units'!M161)","v":""},{"$f":"IF('2. Assisted & Restricted Units'!O161=\"\",\"\",'2. Assisted & Restricted Units'!O161)","v":""},{"$f":"IF('2. Assisted & Restricted Units'!P161=\"\",\"\",'2. Assisted & Restricted Units'!P161)","v":""},{"$f":"IF('2. Assisted & Restricted Units'!Q161=\"\",\"\",'2. Assisted & Restricted Units'!Q161)","v":""},{"$f":"IF('2. Assisted & Restricted Units'!R161=\"\",\"\",'2. Assisted & Restricted Units'!R161)","v":""},{"$f":"IF(A161=\"\",\"\",'1. Checklist & Certification'!$K$1)","v":""},{"$f":"IF(A161=\"\",\"\",'1. Checklist & Certification'!$C$62)","v":""},{"$f":"IF(A161=\"\",\"\",'1. Checklist & Certification'!$K$62)","v":""},{"$f":"IF(A161=\"\",\"\",'1. Checklist & Certification'!$C$6)","v":""},{"$f":"IF(A161=\"\",\"\",'1. Checklist & Certification'!$G$4)","v":""},{"$f":"IF(A161=\"\",\"\",'1. Checklist & Certification'!$C$7)","v":""},{"$f":"IF(A161=\"\",\"\",'1. Checklist & Certification'!$C$8)","v":""},{"$f":"IF(A161=\"\",\"\",'1. Checklist & Certification'!$F$7)","v":""},{"$f":"IF(A161=\"\",\"\",'1. Checklist & Certification'!$F$8)","v":""},{"$f":"IF(A161=\"\",\"\",'1. Checklist & Certification'!$B$9)","v":""},{"$f":"IF(A161=\"\",\"\",'1. Checklist & Certification'!$F$9)","v":""},{"$f":"IF(A161=\"\",\"\",'1. Checklist & Certification'!$C$10)","v":""},{"$f":"IF(A161=\"\",\"\",'1. Checklist & Certification'!$C$11)","v":""},{"$f":"IF(A161=\"\",\"\",'1. Checklist & Certification'!$C$12)","v":""},{"$f":"IF(A161=\"\",\"\",'1. Checklist & Certification'!$B$14)","v":""},{"$f":"IF(A161=\"\",\"\",'1. Checklist & Certification'!$E$14)","v":""},{"$f":"IF(B161=\"\",\"\",'1. Checklist & Certification'!$G$14)","v":""},{"$f":"IF(A161=\"\",\"\",'MHP Family Income & Rent Limits'!$B$3)","v":""},{"$f":"IF(A161=\"\",\"\",'MHP Family Income & Rent Limits'!$J$3)","v":""},{"$f":"IF(A161=\"\",\"\",'MHP Family Income & Rent Limits'!$E$4)","v":""},{"$f":"IF(A161=\"\",\"\",'MHP Family Income & Rent Limits'!$C$7)","v":""},{"$f":"IF(A161=\"\",\"\",'MHP Family Income & Rent Limits'!$F$8)","v":""},{"$f":"IF(A161=\"\",\"\",'1. Checklist & Certification'!$G$4)","v":""},{"$f":"IF(A161=\"\",\"\",'1. Checklist & Certification'!$K$39)","v":""},{"$f":"IF(A161=\"\",\"\",'1. Checklist & Certification'!$K$43)","v":""},{"$f":"IF(A161=\"\",\"\",'1. Checklist & Certification'!$K$45)","v":""},{"$f":"IF(A161=\"\",\"\",'1. Checklist & Certification'!$K$49)","v":""},{"$f":"IF(A161=\"\",\"\",'1. Checklist & Certification'!$E$66)","v":""},{"$f":"IF(A161=\"\",\"\",'1. Checklist & Certification'!$E$67)","v":""},{"$f":"IF(A161=\"\",\"\",'1. Checklist & Certification'!$E$68)","v":""},{"$f":"IF(A161=\"\",\"\",'1. Checklist & Certification'!$G$66)","v":""},{"$f":"IF(A161=\"\",\"\",'1. Checklist & Certification'!$H$66)","v":""},{"$f":"IF(A161=\"\",\"\",'1. Checklist & Certification'!$I$66)","v":""},{"$f":"IF(A161=\"\",\"\",'1. Checklist & Certification'!$I$67)","v":""},{"$f":"IF(A161=\"\",\"\",'1. Checklist & Certification'!$I$68)","v":""},null,{"$f":"IF(C161=\"\",\"\",HLOOKUP(C161,'MHP Family Income & Rent Limits'!$E$12:$L$26,2,FALSE))","v":""},{"$f":"IF(C161=\"\",\"\",HLOOKUP(C161,'MHP Family Income & Rent Limits'!$E$12:$L$26,3,FALSE))","v":""},{"$f":"IF(C161=\"\",\"\",HLOOKUP(C161,'MHP Family Income & Rent Limits'!$E$12:$L$26,4,FALSE))","v":""},{"$f":"IF(C161=\"\",\"\",HLOOKUP(C161,'MHP Family Income & Rent Limits'!$E$12:$L$26,5,FALSE))","v":""},{"$f":"IF(C161=\"\",\"\",HLOOKUP(C161,'MHP Family Income & Rent Limits'!$E$12:$L$26,6,FALSE))","v":""},{"$f":"IF(C161=\"\",\"\",HLOOKUP(C161,'MHP Family Income & Rent Limits'!$E$12:$L$26,7,FALSE))","v":""},{"$f":"IF(C161=\"\",\"\",HLOOKUP(C161,'MHP Family Income & Rent Limits'!$E$12:$L$26,8,FALSE))","v":""},{"$f":"IF(C161=\"\",\"\",HLOOKUP(C161,'MHP Family Income & Rent Limits'!$E$12:$L$26,9,FALSE))","v":""},{"$f":"IF(C161=\"\",\"\",HLOOKUP(C161,'MHP Family Income & Rent Limits'!$E$12:$L$26,10,FALSE))","v":""},{"$f":"IF(C161=\"\",\"\",HLOOKUP(C161,'MHP Family Income & Rent Limits'!$E$12:$L$26,11,FALSE))","v":""},{"$f":"IF(C161=\"\",\"\",HLOOKUP(C161,'MHP Family Income & Rent Limits'!$E$12:$L$26,12,FALSE))","v":""},{"$f":"IF(C161=\"\",\"\",HLOOKUP(C161,'MHP Family Income & Rent Limits'!$E$12:$L$26,13,FALSE))","v":""},{"$f":"IF(C161=\"\",\"\",HLOOKUP(C161,'MHP Family Income & Rent Limits'!$E$12:$L$26,14,FALSE))","v":""},{"$f":"IF(C161=\"\",\"\",HLOOKUP(C161,'MHP Family Income & Rent Limits'!$E$12:$L$26,15,FALSE))","v":""}]
[{"$f":"IF('2. Assisted & Restricted Units'!A162=\"\",\"\",'2. Assisted & Restricted Units'!A162)","v":""},{"$f":"IF('2. Assisted & Restricted Units'!B162=\"\",\"\",'2. Assisted & Restricted Units'!B162)","v":""},{"$f":"IF('2. Assisted & Restricted Units'!D162=\"\",\"\",'2. Assisted & Restricted Units'!D162)","v":""},{"$f":"IF('2. Assisted & Restricted Units'!E162=\"\",\"\",'2. Assisted & Restricted Units'!E162)","v":""},{"$f":"IF('2. Assisted & Restricted Units'!H162=\"\",\"\",'2. Assisted & Restricted Units'!H162)","v":""},{"$f":"_xlfn.IFS(E162=\"\",\"\",E162>BO162,$BP$6,E162>BN162,$BO$6,E162>BM162,$BN$6,E162>BL162,$BM$6,E162>BK162,$BL$6,E162>BJ162,$BK$6,E162>BI162,$BJ$6,E162>BH162,$BI$6,E162>BG162,$BH$6,E162>BF162,$BG$6,E162>BE162,$BF$6,E162>BD162,$BE$6,E162>BC162,$BD$6,E162>=0,$BC$6)","v":""},{"$f":"IF('2. Assisted & Restricted Units'!T162=\"\",\"\",'2. Assisted & Restricted Units'!T162)","v":""},{"$f":"IF('2. Assisted & Restricted Units'!I162=\"\",\"\",'2. Assisted & Restricted Units'!I162)","v":""},{"$f":"IF('2. Assisted & Restricted Units'!AP162=\"\",\"\",'2. Assisted & Restricted Units'!AP162)","v":0},{"$f":"IF('2. Assisted & Restricted Units'!AT162=\"\",\"\",'2. Assisted & Restricted Units'!AT162)","v":""},0,{"$f":"IF('2. Assisted & Restricted Units'!AV162=\"\",\"\",'2. Assisted & Restricted Units'!AV162)","v":""},{"$f":"IF('2. Assisted & Restricted Units'!L162=\"\",\"\",'2. Assisted & Restricted Units'!L162)","v":""},{"$f":"IF('2. Assisted & Restricted Units'!M162=\"\",\"\",'2. Assisted & Restricted Units'!M162)","v":""},{"$f":"IF('2. Assisted & Restricted Units'!O162=\"\",\"\",'2. Assisted & Restricted Units'!O162)","v":""},{"$f":"IF('2. Assisted & Restricted Units'!P162=\"\",\"\",'2. Assisted & Restricted Units'!P162)","v":""},{"$f":"IF('2. Assisted & Restricted Units'!Q162=\"\",\"\",'2. Assisted & Restricted Units'!Q162)","v":""},{"$f":"IF('2. Assisted & Restricted Units'!R162=\"\",\"\",'2. Assisted & Restricted Units'!R162)","v":""},{"$f":"IF(A162=\"\",\"\",'1. Checklist & Certification'!$K$1)","v":""},{"$f":"IF(A162=\"\",\"\",'1. Checklist & Certification'!$C$62)","v":""},{"$f":"IF(A162=\"\",\"\",'1. Checklist & Certification'!$K$62)","v":""},{"$f":"IF(A162=\"\",\"\",'1. Checklist & Certification'!$C$6)","v":""},{"$f":"IF(A162=\"\",\"\",'1. Checklist & Certification'!$G$4)","v":""},{"$f":"IF(A162=\"\",\"\",'1. Checklist & Certification'!$C$7)","v":""},{"$f":"IF(A162=\"\",\"\",'1. Checklist & Certification'!$C$8)","v":""},{"$f":"IF(A162=\"\",\"\",'1. Checklist & Certification'!$F$7)","v":""},{"$f":"IF(A162=\"\",\"\",'1. Checklist & Certification'!$F$8)","v":""},{"$f":"IF(A162=\"\",\"\",'1. Checklist & Certification'!$B$9)","v":""},{"$f":"IF(A162=\"\",\"\",'1. Checklist & Certification'!$F$9)","v":""},{"$f":"IF(A162=\"\",\"\",'1. Checklist & Certification'!$C$10)","v":""},{"$f":"IF(A162=\"\",\"\",'1. Checklist & Certification'!$C$11)","v":""},{"$f":"IF(A162=\"\",\"\",'1. Checklist & Certification'!$C$12)","v":""},{"$f":"IF(A162=\"\",\"\",'1. Checklist & Certification'!$B$14)","v":""},{"$f":"IF(A162=\"\",\"\",'1. Checklist & Certification'!$E$14)","v":""},{"$f":"IF(B162=\"\",\"\",'1. Checklist & Certification'!$G$14)","v":""},{"$f":"IF(A162=\"\",\"\",'MHP Family Income & Rent Limits'!$B$3)","v":""},{"$f":"IF(A162=\"\",\"\",'MHP Family Income & Rent Limits'!$J$3)","v":""},{"$f":"IF(A162=\"\",\"\",'MHP Family Income & Rent Limits'!$E$4)","v":""},{"$f":"IF(A162=\"\",\"\",'MHP Family Income & Rent Limits'!$C$7)","v":""},{"$f":"IF(A162=\"\",\"\",'MHP Family Income & Rent Limits'!$F$8)","v":""},{"$f":"IF(A162=\"\",\"\",'1. Checklist & Certification'!$G$4)","v":""},{"$f":"IF(A162=\"\",\"\",'1. Checklist & Certification'!$K$39)","v":""},{"$f":"IF(A162=\"\",\"\",'1. Checklist & Certification'!$K$43)","v":""},{"$f":"IF(A162=\"\",\"\",'1. Checklist & Certification'!$K$45)","v":""},{"$f":"IF(A162=\"\",\"\",'1. Checklist & Certification'!$K$49)","v":""},{"$f":"IF(A162=\"\",\"\",'1. Checklist & Certification'!$E$66)","v":""},{"$f":"IF(A162=\"\",\"\",'1. Checklist & Certification'!$E$67)","v":""},{"$f":"IF(A162=\"\",\"\",'1. Checklist & Certification'!$E$68)","v":""},{"$f":"IF(A162=\"\",\"\",'1. Checklist & Certification'!$G$66)","v":""},{"$f":"IF(A162=\"\",\"\",'1. Checklist & Certification'!$H$66)","v":""},{"$f":"IF(A162=\"\",\"\",'1. Checklist & Certification'!$I$66)","v":""},{"$f":"IF(A162=\"\",\"\",'1. Checklist & Certification'!$I$67)","v":""},{"$f":"IF(A162=\"\",\"\",'1. Checklist & Certification'!$I$68)","v":""},null,{"$f":"IF(C162=\"\",\"\",HLOOKUP(C162,'MHP Family Income & Rent Limits'!$E$12:$L$26,2,FALSE))","v":""},{"$f":"IF(C162=\"\",\"\",HLOOKUP(C162,'MHP Family Income & Rent Limits'!$E$12:$L$26,3,FALSE))","v":""},{"$f":"IF(C162=\"\",\"\",HLOOKUP(C162,'MHP Family Income & Rent Limits'!$E$12:$L$26,4,FALSE))","v":""},{"$f":"IF(C162=\"\",\"\",HLOOKUP(C162,'MHP Family Income & Rent Limits'!$E$12:$L$26,5,FALSE))","v":""},{"$f":"IF(C162=\"\",\"\",HLOOKUP(C162,'MHP Family Income & Rent Limits'!$E$12:$L$26,6,FALSE))","v":""},{"$f":"IF(C162=\"\",\"\",HLOOKUP(C162,'MHP Family Income & Rent Limits'!$E$12:$L$26,7,FALSE))","v":""},{"$f":"IF(C162=\"\",\"\",HLOOKUP(C162,'MHP Family Income & Rent Limits'!$E$12:$L$26,8,FALSE))","v":""},{"$f":"IF(C162=\"\",\"\",HLOOKUP(C162,'MHP Family Income & Rent Limits'!$E$12:$L$26,9,FALSE))","v":""},{"$f":"IF(C162=\"\",\"\",HLOOKUP(C162,'MHP Family Income & Rent Limits'!$E$12:$L$26,10,FALSE))","v":""},{"$f":"IF(C162=\"\",\"\",HLOOKUP(C162,'MHP Family Income & Rent Limits'!$E$12:$L$26,11,FALSE))","v":""},{"$f":"IF(C162=\"\",\"\",HLOOKUP(C162,'MHP Family Income & Rent Limits'!$E$12:$L$26,12,FALSE))","v":""},{"$f":"IF(C162=\"\",\"\",HLOOKUP(C162,'MHP Family Income & Rent Limits'!$E$12:$L$26,13,FALSE))","v":""},{"$f":"IF(C162=\"\",\"\",HLOOKUP(C162,'MHP Family Income & Rent Limits'!$E$12:$L$26,14,FALSE))","v":""},{"$f":"IF(C162=\"\",\"\",HLOOKUP(C162,'MHP Family Income & Rent Limits'!$E$12:$L$26,15,FALSE))","v":""}]
[{"$f":"IF('2. Assisted & Restricted Units'!A163=\"\",\"\",'2. Assisted & Restricted Units'!A163)","v":""},{"$f":"IF('2. Assisted & Restricted Units'!B163=\"\",\"\",'2. Assisted & Restricted Units'!B163)","v":""},{"$f":"IF('2. Assisted & Restricted Units'!D163=\"\",\"\",'2. Assisted & Restricted Units'!D163)","v":""},{"$f":"IF('2. Assisted & Restricted Units'!E163=\"\",\"\",'2. Assisted & Restricted Units'!E163)","v":""},{"$f":"IF('2. Assisted & Restricted Units'!H163=\"\",\"\",'2. Assisted & Restricted Units'!H163)","v":""},{"$f":"_xlfn.IFS(E163=\"\",\"\",E163>BO163,$BP$6,E163>BN163,$BO$6,E163>BM163,$BN$6,E163>BL163,$BM$6,E163>BK163,$BL$6,E163>BJ163,$BK$6,E163>BI163,$BJ$6,E163>BH163,$BI$6,E163>BG163,$BH$6,E163>BF163,$BG$6,E163>BE163,$BF$6,E163>BD163,$BE$6,E163>BC163,$BD$6,E163>=0,$BC$6)","v":""},{"$f":"IF('2. Assisted & Restricted Units'!T163=\"\",\"\",'2. Assisted & Restricted Units'!T163)","v":""},{"$f":"IF('2. Assisted & Restricted Units'!I163=\"\",\"\",'2. Assisted & Restricted Units'!I163)","v":""},{"$f":"IF('2. Assisted & Restricted Units'!AP163=\"\",\"\",'2. Assisted & Restricted Units'!AP163)","v":0},{"$f":"IF('2. Assisted & Restricted Units'!AT163=\"\",\"\",'2. Assisted & Restricted Units'!AT163)","v":""},0,{"$f":"IF('2. Assisted & Restricted Units'!AV163=\"\",\"\",'2. Assisted & Restricted Units'!AV163)","v":""},{"$f":"IF('2. Assisted & Restricted Units'!L163=\"\",\"\",'2. Assisted & Restricted Units'!L163)","v":""},{"$f":"IF('2. Assisted & Restricted Units'!M163=\"\",\"\",'2. Assisted & Restricted Units'!M163)","v":""},{"$f":"IF('2. Assisted & Restricted Units'!O163=\"\",\"\",'2. Assisted & Restricted Units'!O163)","v":""},{"$f":"IF('2. Assisted & Restricted Units'!P163=\"\",\"\",'2. Assisted & Restricted Units'!P163)","v":""},{"$f":"IF('2. Assisted & Restricted Units'!Q163=\"\",\"\",'2. Assisted & Restricted Units'!Q163)","v":""},{"$f":"IF('2. Assisted & Restricted Units'!R163=\"\",\"\",'2. Assisted & Restricted Units'!R163)","v":""},{"$f":"IF(A163=\"\",\"\",'1. Checklist & Certification'!$K$1)","v":""},{"$f":"IF(A163=\"\",\"\",'1. Checklist & Certification'!$C$62)","v":""},{"$f":"IF(A163=\"\",\"\",'1. Checklist & Certification'!$K$62)","v":""},{"$f":"IF(A163=\"\",\"\",'1. Checklist & Certification'!$C$6)","v":""},{"$f":"IF(A163=\"\",\"\",'1. Checklist & Certification'!$G$4)","v":""},{"$f":"IF(A163=\"\",\"\",'1. Checklist & Certification'!$C$7)","v":""},{"$f":"IF(A163=\"\",\"\",'1. Checklist & Certification'!$C$8)","v":""},{"$f":"IF(A163=\"\",\"\",'1. Checklist & Certification'!$F$7)","v":""},{"$f":"IF(A163=\"\",\"\",'1. Checklist & Certification'!$F$8)","v":""},{"$f":"IF(A163=\"\",\"\",'1. Checklist & Certification'!$B$9)","v":""},{"$f":"IF(A163=\"\",\"\",'1. Checklist & Certification'!$F$9)","v":""},{"$f":"IF(A163=\"\",\"\",'1. Checklist & Certification'!$C$10)","v":""},{"$f":"IF(A163=\"\",\"\",'1. Checklist & Certification'!$C$11)","v":""},{"$f":"IF(A163=\"\",\"\",'1. Checklist & Certification'!$C$12)","v":""},{"$f":"IF(A163=\"\",\"\",'1. Checklist & Certification'!$B$14)","v":""},{"$f":"IF(A163=\"\",\"\",'1. Checklist & Certification'!$E$14)","v":""},{"$f":"IF(B163=\"\",\"\",'1. Checklist & Certification'!$G$14)","v":""},{"$f":"IF(A163=\"\",\"\",'MHP Family Income & Rent Limits'!$B$3)","v":""},{"$f":"IF(A163=\"\",\"\",'MHP Family Income & Rent Limits'!$J$3)","v":""},{"$f":"IF(A163=\"\",\"\",'MHP Family Income & Rent Limits'!$E$4)","v":""},{"$f":"IF(A163=\"\",\"\",'MHP Family Income & Rent Limits'!$C$7)","v":""},{"$f":"IF(A163=\"\",\"\",'MHP Family Income & Rent Limits'!$F$8)","v":""},{"$f":"IF(A163=\"\",\"\",'1. Checklist & Certification'!$G$4)","v":""},{"$f":"IF(A163=\"\",\"\",'1. Checklist & Certification'!$K$39)","v":""},{"$f":"IF(A163=\"\",\"\",'1. Checklist & Certification'!$K$43)","v":""},{"$f":"IF(A163=\"\",\"\",'1. Checklist & Certification'!$K$45)","v":""},{"$f":"IF(A163=\"\",\"\",'1. Checklist & Certification'!$K$49)","v":""},{"$f":"IF(A163=\"\",\"\",'1. Checklist & Certification'!$E$66)","v":""},{"$f":"IF(A163=\"\",\"\",'1. Checklist & Certification'!$E$67)","v":""},{"$f":"IF(A163=\"\",\"\",'1. Checklist & Certification'!$E$68)","v":""},{"$f":"IF(A163=\"\",\"\",'1. Checklist & Certification'!$G$66)","v":""},{"$f":"IF(A163=\"\",\"\",'1. Checklist & Certification'!$H$66)","v":""},{"$f":"IF(A163=\"\",\"\",'1. Checklist & Certification'!$I$66)","v":""},{"$f":"IF(A163=\"\",\"\",'1. Checklist & Certification'!$I$67)","v":""},{"$f":"IF(A163=\"\",\"\",'1. Checklist & Certification'!$I$68)","v":""},null,{"$f":"IF(C163=\"\",\"\",HLOOKUP(C163,'MHP Family Income & Rent Limits'!$E$12:$L$26,2,FALSE))","v":""},{"$f":"IF(C163=\"\",\"\",HLOOKUP(C163,'MHP Family Income & Rent Limits'!$E$12:$L$26,3,FALSE))","v":""},{"$f":"IF(C163=\"\",\"\",HLOOKUP(C163,'MHP Family Income & Rent Limits'!$E$12:$L$26,4,FALSE))","v":""},{"$f":"IF(C163=\"\",\"\",HLOOKUP(C163,'MHP Family Income & Rent Limits'!$E$12:$L$26,5,FALSE))","v":""},{"$f":"IF(C163=\"\",\"\",HLOOKUP(C163,'MHP Family Income & Rent Limits'!$E$12:$L$26,6,FALSE))","v":""},{"$f":"IF(C163=\"\",\"\",HLOOKUP(C163,'MHP Family Income & Rent Limits'!$E$12:$L$26,7,FALSE))","v":""},{"$f":"IF(C163=\"\",\"\",HLOOKUP(C163,'MHP Family Income & Rent Limits'!$E$12:$L$26,8,FALSE))","v":""},{"$f":"IF(C163=\"\",\"\",HLOOKUP(C163,'MHP Family Income & Rent Limits'!$E$12:$L$26,9,FALSE))","v":""},{"$f":"IF(C163=\"\",\"\",HLOOKUP(C163,'MHP Family Income & Rent Limits'!$E$12:$L$26,10,FALSE))","v":""},{"$f":"IF(C163=\"\",\"\",HLOOKUP(C163,'MHP Family Income & Rent Limits'!$E$12:$L$26,11,FALSE))","v":""},{"$f":"IF(C163=\"\",\"\",HLOOKUP(C163,'MHP Family Income & Rent Limits'!$E$12:$L$26,12,FALSE))","v":""},{"$f":"IF(C163=\"\",\"\",HLOOKUP(C163,'MHP Family Income & Rent Limits'!$E$12:$L$26,13,FALSE))","v":""},{"$f":"IF(C163=\"\",\"\",HLOOKUP(C163,'MHP Family Income & Rent Limits'!$E$12:$L$26,14,FALSE))","v":""},{"$f":"IF(C163=\"\",\"\",HLOOKUP(C163,'MHP Family Income & Rent Limits'!$E$12:$L$26,15,FALSE))","v":""}]
[{"$f":"IF('2. Assisted & Restricted Units'!A164=\"\",\"\",'2. Assisted & Restricted Units'!A164)","v":""},{"$f":"IF('2. Assisted & Restricted Units'!B164=\"\",\"\",'2. Assisted & Restricted Units'!B164)","v":""},{"$f":"IF('2. Assisted & Restricted Units'!D164=\"\",\"\",'2. Assisted & Restricted Units'!D164)","v":""},{"$f":"IF('2. Assisted & Restricted Units'!E164=\"\",\"\",'2. Assisted & Restricted Units'!E164)","v":""},{"$f":"IF('2. Assisted & Restricted Units'!H164=\"\",\"\",'2. Assisted & Restricted Units'!H164)","v":""},{"$f":"_xlfn.IFS(E164=\"\",\"\",E164>BO164,$BP$6,E164>BN164,$BO$6,E164>BM164,$BN$6,E164>BL164,$BM$6,E164>BK164,$BL$6,E164>BJ164,$BK$6,E164>BI164,$BJ$6,E164>BH164,$BI$6,E164>BG164,$BH$6,E164>BF164,$BG$6,E164>BE164,$BF$6,E164>BD164,$BE$6,E164>BC164,$BD$6,E164>=0,$BC$6)","v":""},{"$f":"IF('2. Assisted & Restricted Units'!T164=\"\",\"\",'2. Assisted & Restricted Units'!T164)","v":""},{"$f":"IF('2. Assisted & Restricted Units'!I164=\"\",\"\",'2. Assisted & Restricted Units'!I164)","v":""},{"$f":"IF('2. Assisted & Restricted Units'!AP164=\"\",\"\",'2. Assisted & Restricted Units'!AP164)","v":0},{"$f":"IF('2. Assisted & Restricted Units'!AT164=\"\",\"\",'2. Assisted & Restricted Units'!AT164)","v":""},0,{"$f":"IF('2. Assisted & Restricted Units'!AV164=\"\",\"\",'2. Assisted & Restricted Units'!AV164)","v":""},{"$f":"IF('2. Assisted & Restricted Units'!L164=\"\",\"\",'2. Assisted & Restricted Units'!L164)","v":""},{"$f":"IF('2. Assisted & Restricted Units'!M164=\"\",\"\",'2. Assisted & Restricted Units'!M164)","v":""},{"$f":"IF('2. Assisted & Restricted Units'!O164=\"\",\"\",'2. Assisted & Restricted Units'!O164)","v":""},{"$f":"IF('2. Assisted & Restricted Units'!P164=\"\",\"\",'2. Assisted & Restricted Units'!P164)","v":""},{"$f":"IF('2. Assisted & Restricted Units'!Q164=\"\",\"\",'2. Assisted & Restricted Units'!Q164)","v":""},{"$f":"IF('2. Assisted & Restricted Units'!R164=\"\",\"\",'2. Assisted & Restricted Units'!R164)","v":""},{"$f":"IF(A164=\"\",\"\",'1. Checklist & Certification'!$K$1)","v":""},{"$f":"IF(A164=\"\",\"\",'1. Checklist & Certification'!$C$62)","v":""},{"$f":"IF(A164=\"\",\"\",'1. Checklist & Certification'!$K$62)","v":""},{"$f":"IF(A164=\"\",\"\",'1. Checklist & Certification'!$C$6)","v":""},{"$f":"IF(A164=\"\",\"\",'1. Checklist & Certification'!$G$4)","v":""},{"$f":"IF(A164=\"\",\"\",'1. Checklist & Certification'!$C$7)","v":""},{"$f":"IF(A164=\"\",\"\",'1. Checklist & Certification'!$C$8)","v":""},{"$f":"IF(A164=\"\",\"\",'1. Checklist & Certification'!$F$7)","v":""},{"$f":"IF(A164=\"\",\"\",'1. Checklist & Certification'!$F$8)","v":""},{"$f":"IF(A164=\"\",\"\",'1. Checklist & Certification'!$B$9)","v":""},{"$f":"IF(A164=\"\",\"\",'1. Checklist & Certification'!$F$9)","v":""},{"$f":"IF(A164=\"\",\"\",'1. Checklist & Certification'!$C$10)","v":""},{"$f":"IF(A164=\"\",\"\",'1. Checklist & Certification'!$C$11)","v":""},{"$f":"IF(A164=\"\",\"\",'1. Checklist & Certification'!$C$12)","v":""},{"$f":"IF(A164=\"\",\"\",'1. Checklist & Certification'!$B$14)","v":""},{"$f":"IF(A164=\"\",\"\",'1. Checklist & Certification'!$E$14)","v":""},{"$f":"IF(B164=\"\",\"\",'1. Checklist & Certification'!$G$14)","v":""},{"$f":"IF(A164=\"\",\"\",'MHP Family Income & Rent Limits'!$B$3)","v":""},{"$f":"IF(A164=\"\",\"\",'MHP Family Income & Rent Limits'!$J$3)","v":""},{"$f":"IF(A164=\"\",\"\",'MHP Family Income & Rent Limits'!$E$4)","v":""},{"$f":"IF(A164=\"\",\"\",'MHP Family Income & Rent Limits'!$C$7)","v":""},{"$f":"IF(A164=\"\",\"\",'MHP Family Income & Rent Limits'!$F$8)","v":""},{"$f":"IF(A164=\"\",\"\",'1. Checklist & Certification'!$G$4)","v":""},{"$f":"IF(A164=\"\",\"\",'1. Checklist & Certification'!$K$39)","v":""},{"$f":"IF(A164=\"\",\"\",'1. Checklist & Certification'!$K$43)","v":""},{"$f":"IF(A164=\"\",\"\",'1. Checklist & Certification'!$K$45)","v":""},{"$f":"IF(A164=\"\",\"\",'1. Checklist & Certification'!$K$49)","v":""},{"$f":"IF(A164=\"\",\"\",'1. Checklist & Certification'!$E$66)","v":""},{"$f":"IF(A164=\"\",\"\",'1. Checklist & Certification'!$E$67)","v":""},{"$f":"IF(A164=\"\",\"\",'1. Checklist & Certification'!$E$68)","v":""},{"$f":"IF(A164=\"\",\"\",'1. Checklist & Certification'!$G$66)","v":""},{"$f":"IF(A164=\"\",\"\",'1. Checklist & Certification'!$H$66)","v":""},{"$f":"IF(A164=\"\",\"\",'1. Checklist & Certification'!$I$66)","v":""},{"$f":"IF(A164=\"\",\"\",'1. Checklist & Certification'!$I$67)","v":""},{"$f":"IF(A164=\"\",\"\",'1. Checklist & Certification'!$I$68)","v":""},null,{"$f":"IF(C164=\"\",\"\",HLOOKUP(C164,'MHP Family Income & Rent Limits'!$E$12:$L$26,2,FALSE))","v":""},{"$f":"IF(C164=\"\",\"\",HLOOKUP(C164,'MHP Family Income & Rent Limits'!$E$12:$L$26,3,FALSE))","v":""},{"$f":"IF(C164=\"\",\"\",HLOOKUP(C164,'MHP Family Income & Rent Limits'!$E$12:$L$26,4,FALSE))","v":""},{"$f":"IF(C164=\"\",\"\",HLOOKUP(C164,'MHP Family Income & Rent Limits'!$E$12:$L$26,5,FALSE))","v":""},{"$f":"IF(C164=\"\",\"\",HLOOKUP(C164,'MHP Family Income & Rent Limits'!$E$12:$L$26,6,FALSE))","v":""},{"$f":"IF(C164=\"\",\"\",HLOOKUP(C164,'MHP Family Income & Rent Limits'!$E$12:$L$26,7,FALSE))","v":""},{"$f":"IF(C164=\"\",\"\",HLOOKUP(C164,'MHP Family Income & Rent Limits'!$E$12:$L$26,8,FALSE))","v":""},{"$f":"IF(C164=\"\",\"\",HLOOKUP(C164,'MHP Family Income & Rent Limits'!$E$12:$L$26,9,FALSE))","v":""},{"$f":"IF(C164=\"\",\"\",HLOOKUP(C164,'MHP Family Income & Rent Limits'!$E$12:$L$26,10,FALSE))","v":""},{"$f":"IF(C164=\"\",\"\",HLOOKUP(C164,'MHP Family Income & Rent Limits'!$E$12:$L$26,11,FALSE))","v":""},{"$f":"IF(C164=\"\",\"\",HLOOKUP(C164,'MHP Family Income & Rent Limits'!$E$12:$L$26,12,FALSE))","v":""},{"$f":"IF(C164=\"\",\"\",HLOOKUP(C164,'MHP Family Income & Rent Limits'!$E$12:$L$26,13,FALSE))","v":""},{"$f":"IF(C164=\"\",\"\",HLOOKUP(C164,'MHP Family Income & Rent Limits'!$E$12:$L$26,14,FALSE))","v":""},{"$f":"IF(C164=\"\",\"\",HLOOKUP(C164,'MHP Family Income & Rent Limits'!$E$12:$L$26,15,FALSE))","v":""}]
[{"$f":"IF('2. Assisted & Restricted Units'!A165=\"\",\"\",'2. Assisted & Restricted Units'!A165)","v":""},{"$f":"IF('2. Assisted & Restricted Units'!B165=\"\",\"\",'2. Assisted & Restricted Units'!B165)","v":""},{"$f":"IF('2. Assisted & Restricted Units'!D165=\"\",\"\",'2. Assisted & Restricted Units'!D165)","v":""},{"$f":"IF('2. Assisted & Restricted Units'!E165=\"\",\"\",'2. Assisted & Restricted Units'!E165)","v":""},{"$f":"IF('2. Assisted & Restricted Units'!H165=\"\",\"\",'2. Assisted & Restricted Units'!H165)","v":""},{"$f":"_xlfn.IFS(E165=\"\",\"\",E165>BO165,$BP$6,E165>BN165,$BO$6,E165>BM165,$BN$6,E165>BL165,$BM$6,E165>BK165,$BL$6,E165>BJ165,$BK$6,E165>BI165,$BJ$6,E165>BH165,$BI$6,E165>BG165,$BH$6,E165>BF165,$BG$6,E165>BE165,$BF$6,E165>BD165,$BE$6,E165>BC165,$BD$6,E165>=0,$BC$6)","v":""},{"$f":"IF('2. Assisted & Restricted Units'!T165=\"\",\"\",'2. Assisted & Restricted Units'!T165)","v":""},{"$f":"IF('2. Assisted & Restricted Units'!I165=\"\",\"\",'2. Assisted & Restricted Units'!I165)","v":""},{"$f":"IF('2. Assisted & Restricted Units'!AP165=\"\",\"\",'2. Assisted & Restricted Units'!AP165)","v":0},{"$f":"IF('2. Assisted & Restricted Units'!AT165=\"\",\"\",'2. Assisted & Restricted Units'!AT165)","v":""},0,{"$f":"IF('2. Assisted & Restricted Units'!AV165=\"\",\"\",'2. Assisted & Restricted Units'!AV165)","v":""},{"$f":"IF('2. Assisted & Restricted Units'!L165=\"\",\"\",'2. Assisted & Restricted Units'!L165)","v":""},{"$f":"IF('2. Assisted & Restricted Units'!M165=\"\",\"\",'2. Assisted & Restricted Units'!M165)","v":""},{"$f":"IF('2. Assisted & Restricted Units'!O165=\"\",\"\",'2. Assisted & Restricted Units'!O165)","v":""},{"$f":"IF('2. Assisted & Restricted Units'!P165=\"\",\"\",'2. Assisted & Restricted Units'!P165)","v":""},{"$f":"IF('2. Assisted & Restricted Units'!Q165=\"\",\"\",'2. Assisted & Restricted Units'!Q165)","v":""},{"$f":"IF('2. Assisted & Restricted Units'!R165=\"\",\"\",'2. Assisted & Restricted Units'!R165)","v":""},{"$f":"IF(A165=\"\",\"\",'1. Checklist & Certification'!$K$1)","v":""},{"$f":"IF(A165=\"\",\"\",'1. Checklist & Certification'!$C$62)","v":""},{"$f":"IF(A165=\"\",\"\",'1. Checklist & Certification'!$K$62)","v":""},{"$f":"IF(A165=\"\",\"\",'1. Checklist & Certification'!$C$6)","v":""},{"$f":"IF(A165=\"\",\"\",'1. Checklist & Certification'!$G$4)","v":""},{"$f":"IF(A165=\"\",\"\",'1. Checklist & Certification'!$C$7)","v":""},{"$f":"IF(A165=\"\",\"\",'1. Checklist & Certification'!$C$8)","v":""},{"$f":"IF(A165=\"\",\"\",'1. Checklist & Certification'!$F$7)","v":""},{"$f":"IF(A165=\"\",\"\",'1. Checklist & Certification'!$F$8)","v":""},{"$f":"IF(A165=\"\",\"\",'1. Checklist & Certification'!$B$9)","v":""},{"$f":"IF(A165=\"\",\"\",'1. Checklist & Certification'!$F$9)","v":""},{"$f":"IF(A165=\"\",\"\",'1. Checklist & Certification'!$C$10)","v":""},{"$f":"IF(A165=\"\",\"\",'1. Checklist & Certification'!$C$11)","v":""},{"$f":"IF(A165=\"\",\"\",'1. Checklist & Certification'!$C$12)","v":""},{"$f":"IF(A165=\"\",\"\",'1. Checklist & Certification'!$B$14)","v":""},{"$f":"IF(A165=\"\",\"\",'1. Checklist & Certification'!$E$14)","v":""},{"$f":"IF(B165=\"\",\"\",'1. Checklist & Certification'!$G$14)","v":""},{"$f":"IF(A165=\"\",\"\",'MHP Family Income & Rent Limits'!$B$3)","v":""},{"$f":"IF(A165=\"\",\"\",'MHP Family Income & Rent Limits'!$J$3)","v":""},{"$f":"IF(A165=\"\",\"\",'MHP Family Income & Rent Limits'!$E$4)","v":""},{"$f":"IF(A165=\"\",\"\",'MHP Family Income & Rent Limits'!$C$7)","v":""},{"$f":"IF(A165=\"\",\"\",'MHP Family Income & Rent Limits'!$F$8)","v":""},{"$f":"IF(A165=\"\",\"\",'1. Checklist & Certification'!$G$4)","v":""},{"$f":"IF(A165=\"\",\"\",'1. Checklist & Certification'!$K$39)","v":""},{"$f":"IF(A165=\"\",\"\",'1. Checklist & Certification'!$K$43)","v":""},{"$f":"IF(A165=\"\",\"\",'1. Checklist & Certification'!$K$45)","v":""},{"$f":"IF(A165=\"\",\"\",'1. Checklist & Certification'!$K$49)","v":""},{"$f":"IF(A165=\"\",\"\",'1. Checklist & Certification'!$E$66)","v":""},{"$f":"IF(A165=\"\",\"\",'1. Checklist & Certification'!$E$67)","v":""},{"$f":"IF(A165=\"\",\"\",'1. Checklist & Certification'!$E$68)","v":""},{"$f":"IF(A165=\"\",\"\",'1. Checklist & Certification'!$G$66)","v":""},{"$f":"IF(A165=\"\",\"\",'1. Checklist & Certification'!$H$66)","v":""},{"$f":"IF(A165=\"\",\"\",'1. Checklist & Certification'!$I$66)","v":""},{"$f":"IF(A165=\"\",\"\",'1. Checklist & Certification'!$I$67)","v":""},{"$f":"IF(A165=\"\",\"\",'1. Checklist & Certification'!$I$68)","v":""},null,{"$f":"IF(C165=\"\",\"\",HLOOKUP(C165,'MHP Family Income & Rent Limits'!$E$12:$L$26,2,FALSE))","v":""},{"$f":"IF(C165=\"\",\"\",HLOOKUP(C165,'MHP Family Income & Rent Limits'!$E$12:$L$26,3,FALSE))","v":""},{"$f":"IF(C165=\"\",\"\",HLOOKUP(C165,'MHP Family Income & Rent Limits'!$E$12:$L$26,4,FALSE))","v":""},{"$f":"IF(C165=\"\",\"\",HLOOKUP(C165,'MHP Family Income & Rent Limits'!$E$12:$L$26,5,FALSE))","v":""},{"$f":"IF(C165=\"\",\"\",HLOOKUP(C165,'MHP Family Income & Rent Limits'!$E$12:$L$26,6,FALSE))","v":""},{"$f":"IF(C165=\"\",\"\",HLOOKUP(C165,'MHP Family Income & Rent Limits'!$E$12:$L$26,7,FALSE))","v":""},{"$f":"IF(C165=\"\",\"\",HLOOKUP(C165,'MHP Family Income & Rent Limits'!$E$12:$L$26,8,FALSE))","v":""},{"$f":"IF(C165=\"\",\"\",HLOOKUP(C165,'MHP Family Income & Rent Limits'!$E$12:$L$26,9,FALSE))","v":""},{"$f":"IF(C165=\"\",\"\",HLOOKUP(C165,'MHP Family Income & Rent Limits'!$E$12:$L$26,10,FALSE))","v":""},{"$f":"IF(C165=\"\",\"\",HLOOKUP(C165,'MHP Family Income & Rent Limits'!$E$12:$L$26,11,FALSE))","v":""},{"$f":"IF(C165=\"\",\"\",HLOOKUP(C165,'MHP Family Income & Rent Limits'!$E$12:$L$26,12,FALSE))","v":""},{"$f":"IF(C165=\"\",\"\",HLOOKUP(C165,'MHP Family Income & Rent Limits'!$E$12:$L$26,13,FALSE))","v":""},{"$f":"IF(C165=\"\",\"\",HLOOKUP(C165,'MHP Family Income & Rent Limits'!$E$12:$L$26,14,FALSE))","v":""},{"$f":"IF(C165=\"\",\"\",HLOOKUP(C165,'MHP Family Income & Rent Limits'!$E$12:$L$26,15,FALSE))","v":""}]
[{"$f":"IF('2. Assisted & Restricted Units'!A166=\"\",\"\",'2. Assisted & Restricted Units'!A166)","v":""},{"$f":"IF('2. Assisted & Restricted Units'!B166=\"\",\"\",'2. Assisted & Restricted Units'!B166)","v":""},{"$f":"IF('2. Assisted & Restricted Units'!D166=\"\",\"\",'2. Assisted & Restricted Units'!D166)","v":""},{"$f":"IF('2. Assisted & Restricted Units'!E166=\"\",\"\",'2. Assisted & Restricted Units'!E166)","v":""},{"$f":"IF('2. Assisted & Restricted Units'!H166=\"\",\"\",'2. Assisted & Restricted Units'!H166)","v":""},{"$f":"_xlfn.IFS(E166=\"\",\"\",E166>BO166,$BP$6,E166>BN166,$BO$6,E166>BM166,$BN$6,E166>BL166,$BM$6,E166>BK166,$BL$6,E166>BJ166,$BK$6,E166>BI166,$BJ$6,E166>BH166,$BI$6,E166>BG166,$BH$6,E166>BF166,$BG$6,E166>BE166,$BF$6,E166>BD166,$BE$6,E166>BC166,$BD$6,E166>=0,$BC$6)","v":""},{"$f":"IF('2. Assisted & Restricted Units'!T166=\"\",\"\",'2. Assisted & Restricted Units'!T166)","v":""},{"$f":"IF('2. Assisted & Restricted Units'!I166=\"\",\"\",'2. Assisted & Restricted Units'!I166)","v":""},{"$f":"IF('2. Assisted & Restricted Units'!AP166=\"\",\"\",'2. Assisted & Restricted Units'!AP166)","v":0},{"$f":"IF('2. Assisted & Restricted Units'!AT166=\"\",\"\",'2. Assisted & Restricted Units'!AT166)","v":""},0,{"$f":"IF('2. Assisted & Restricted Units'!AV166=\"\",\"\",'2. Assisted & Restricted Units'!AV166)","v":""},{"$f":"IF('2. Assisted & Restricted Units'!L166=\"\",\"\",'2. Assisted & Restricted Units'!L166)","v":""},{"$f":"IF('2. Assisted & Restricted Units'!M166=\"\",\"\",'2. Assisted & Restricted Units'!M166)","v":""},{"$f":"IF('2. Assisted & Restricted Units'!O166=\"\",\"\",'2. Assisted & Restricted Units'!O166)","v":""},{"$f":"IF('2. Assisted & Restricted Units'!P166=\"\",\"\",'2. Assisted & Restricted Units'!P166)","v":""},{"$f":"IF('2. Assisted & Restricted Units'!Q166=\"\",\"\",'2. Assisted & Restricted Units'!Q166)","v":""},{"$f":"IF('2. Assisted & Restricted Units'!R166=\"\",\"\",'2. Assisted & Restricted Units'!R166)","v":""},{"$f":"IF(A166=\"\",\"\",'1. Checklist & Certification'!$K$1)","v":""},{"$f":"IF(A166=\"\",\"\",'1. Checklist & Certification'!$C$62)","v":""},{"$f":"IF(A166=\"\",\"\",'1. Checklist & Certification'!$K$62)","v":""},{"$f":"IF(A166=\"\",\"\",'1. Checklist & Certification'!$C$6)","v":""},{"$f":"IF(A166=\"\",\"\",'1. Checklist & Certification'!$G$4)","v":""},{"$f":"IF(A166=\"\",\"\",'1. Checklist & Certification'!$C$7)","v":""},{"$f":"IF(A166=\"\",\"\",'1. Checklist & Certification'!$C$8)","v":""},{"$f":"IF(A166=\"\",\"\",'1. Checklist & Certification'!$F$7)","v":""},{"$f":"IF(A166=\"\",\"\",'1. Checklist & Certification'!$F$8)","v":""},{"$f":"IF(A166=\"\",\"\",'1. Checklist & Certification'!$B$9)","v":""},{"$f":"IF(A166=\"\",\"\",'1. Checklist & Certification'!$F$9)","v":""},{"$f":"IF(A166=\"\",\"\",'1. Checklist & Certification'!$C$10)","v":""},{"$f":"IF(A166=\"\",\"\",'1. Checklist & Certification'!$C$11)","v":""},{"$f":"IF(A166=\"\",\"\",'1. Checklist & Certification'!$C$12)","v":""},{"$f":"IF(A166=\"\",\"\",'1. Checklist & Certification'!$B$14)","v":""},{"$f":"IF(A166=\"\",\"\",'1. Checklist & Certification'!$E$14)","v":""},{"$f":"IF(B166=\"\",\"\",'1. Checklist & Certification'!$G$14)","v":""},{"$f":"IF(A166=\"\",\"\",'MHP Family Income & Rent Limits'!$B$3)","v":""},{"$f":"IF(A166=\"\",\"\",'MHP Family Income & Rent Limits'!$J$3)","v":""},{"$f":"IF(A166=\"\",\"\",'MHP Family Income & Rent Limits'!$E$4)","v":""},{"$f":"IF(A166=\"\",\"\",'MHP Family Income & Rent Limits'!$C$7)","v":""},{"$f":"IF(A166=\"\",\"\",'MHP Family Income & Rent Limits'!$F$8)","v":""},{"$f":"IF(A166=\"\",\"\",'1. Checklist & Certification'!$G$4)","v":""},{"$f":"IF(A166=\"\",\"\",'1. Checklist & Certification'!$K$39)","v":""},{"$f":"IF(A166=\"\",\"\",'1. Checklist & Certification'!$K$43)","v":""},{"$f":"IF(A166=\"\",\"\",'1. Checklist & Certification'!$K$45)","v":""},{"$f":"IF(A166=\"\",\"\",'1. Checklist & Certification'!$K$49)","v":""},{"$f":"IF(A166=\"\",\"\",'1. Checklist & Certification'!$E$66)","v":""},{"$f":"IF(A166=\"\",\"\",'1. Checklist & Certification'!$E$67)","v":""},{"$f":"IF(A166=\"\",\"\",'1. Checklist & Certification'!$E$68)","v":""},{"$f":"IF(A166=\"\",\"\",'1. Checklist & Certification'!$G$66)","v":""},{"$f":"IF(A166=\"\",\"\",'1. Checklist & Certification'!$H$66)","v":""},{"$f":"IF(A166=\"\",\"\",'1. Checklist & Certification'!$I$66)","v":""},{"$f":"IF(A166=\"\",\"\",'1. Checklist & Certification'!$I$67)","v":""},{"$f":"IF(A166=\"\",\"\",'1. Checklist & Certification'!$I$68)","v":""},null,{"$f":"IF(C166=\"\",\"\",HLOOKUP(C166,'MHP Family Income & Rent Limits'!$E$12:$L$26,2,FALSE))","v":""},{"$f":"IF(C166=\"\",\"\",HLOOKUP(C166,'MHP Family Income & Rent Limits'!$E$12:$L$26,3,FALSE))","v":""},{"$f":"IF(C166=\"\",\"\",HLOOKUP(C166,'MHP Family Income & Rent Limits'!$E$12:$L$26,4,FALSE))","v":""},{"$f":"IF(C166=\"\",\"\",HLOOKUP(C166,'MHP Family Income & Rent Limits'!$E$12:$L$26,5,FALSE))","v":""},{"$f":"IF(C166=\"\",\"\",HLOOKUP(C166,'MHP Family Income & Rent Limits'!$E$12:$L$26,6,FALSE))","v":""},{"$f":"IF(C166=\"\",\"\",HLOOKUP(C166,'MHP Family Income & Rent Limits'!$E$12:$L$26,7,FALSE))","v":""},{"$f":"IF(C166=\"\",\"\",HLOOKUP(C166,'MHP Family Income & Rent Limits'!$E$12:$L$26,8,FALSE))","v":""},{"$f":"IF(C166=\"\",\"\",HLOOKUP(C166,'MHP Family Income & Rent Limits'!$E$12:$L$26,9,FALSE))","v":""},{"$f":"IF(C166=\"\",\"\",HLOOKUP(C166,'MHP Family Income & Rent Limits'!$E$12:$L$26,10,FALSE))","v":""},{"$f":"IF(C166=\"\",\"\",HLOOKUP(C166,'MHP Family Income & Rent Limits'!$E$12:$L$26,11,FALSE))","v":""},{"$f":"IF(C166=\"\",\"\",HLOOKUP(C166,'MHP Family Income & Rent Limits'!$E$12:$L$26,12,FALSE))","v":""},{"$f":"IF(C166=\"\",\"\",HLOOKUP(C166,'MHP Family Income & Rent Limits'!$E$12:$L$26,13,FALSE))","v":""},{"$f":"IF(C166=\"\",\"\",HLOOKUP(C166,'MHP Family Income & Rent Limits'!$E$12:$L$26,14,FALSE))","v":""},{"$f":"IF(C166=\"\",\"\",HLOOKUP(C166,'MHP Family Income & Rent Limits'!$E$12:$L$26,15,FALSE))","v":""}]
[{"$f":"IF('2. Assisted & Restricted Units'!A167=\"\",\"\",'2. Assisted & Restricted Units'!A167)","v":""},{"$f":"IF('2. Assisted & Restricted Units'!B167=\"\",\"\",'2. Assisted & Restricted Units'!B167)","v":""},{"$f":"IF('2. Assisted & Restricted Units'!D167=\"\",\"\",'2. Assisted & Restricted Units'!D167)","v":""},{"$f":"IF('2. Assisted & Restricted Units'!E167=\"\",\"\",'2. Assisted & Restricted Units'!E167)","v":""},{"$f":"IF('2. Assisted & Restricted Units'!H167=\"\",\"\",'2. Assisted & Restricted Units'!H167)","v":""},{"$f":"_xlfn.IFS(E167=\"\",\"\",E167>BO167,$BP$6,E167>BN167,$BO$6,E167>BM167,$BN$6,E167>BL167,$BM$6,E167>BK167,$BL$6,E167>BJ167,$BK$6,E167>BI167,$BJ$6,E167>BH167,$BI$6,E167>BG167,$BH$6,E167>BF167,$BG$6,E167>BE167,$BF$6,E167>BD167,$BE$6,E167>BC167,$BD$6,E167>=0,$BC$6)","v":""},{"$f":"IF('2. Assisted & Restricted Units'!T167=\"\",\"\",'2. Assisted & Restricted Units'!T167)","v":""},{"$f":"IF('2. Assisted & Restricted Units'!I167=\"\",\"\",'2. Assisted & Restricted Units'!I167)","v":""},{"$f":"IF('2. Assisted & Restricted Units'!AP167=\"\",\"\",'2. Assisted & Restricted Units'!AP167)","v":0},{"$f":"IF('2. Assisted & Restricted Units'!AT167=\"\",\"\",'2. Assisted & Restricted Units'!AT167)","v":""},0,{"$f":"IF('2. Assisted & Restricted Units'!AV167=\"\",\"\",'2. Assisted & Restricted Units'!AV167)","v":""},{"$f":"IF('2. Assisted & Restricted Units'!L167=\"\",\"\",'2. Assisted & Restricted Units'!L167)","v":""},{"$f":"IF('2. Assisted & Restricted Units'!M167=\"\",\"\",'2. Assisted & Restricted Units'!M167)","v":""},{"$f":"IF('2. Assisted & Restricted Units'!O167=\"\",\"\",'2. Assisted & Restricted Units'!O167)","v":""},{"$f":"IF('2. Assisted & Restricted Units'!P167=\"\",\"\",'2. Assisted & Restricted Units'!P167)","v":""},{"$f":"IF('2. Assisted & Restricted Units'!Q167=\"\",\"\",'2. Assisted & Restricted Units'!Q167)","v":""},{"$f":"IF('2. Assisted & Restricted Units'!R167=\"\",\"\",'2. Assisted & Restricted Units'!R167)","v":""},{"$f":"IF(A167=\"\",\"\",'1. Checklist & Certification'!$K$1)","v":""},{"$f":"IF(A167=\"\",\"\",'1. Checklist & Certification'!$C$62)","v":""},{"$f":"IF(A167=\"\",\"\",'1. Checklist & Certification'!$K$62)","v":""},{"$f":"IF(A167=\"\",\"\",'1. Checklist & Certification'!$C$6)","v":""},{"$f":"IF(A167=\"\",\"\",'1. Checklist & Certification'!$G$4)","v":""},{"$f":"IF(A167=\"\",\"\",'1. Checklist & Certification'!$C$7)","v":""},{"$f":"IF(A167=\"\",\"\",'1. Checklist & Certification'!$C$8)","v":""},{"$f":"IF(A167=\"\",\"\",'1. Checklist & Certification'!$F$7)","v":""},{"$f":"IF(A167=\"\",\"\",'1. Checklist & Certification'!$F$8)","v":""},{"$f":"IF(A167=\"\",\"\",'1. Checklist & Certification'!$B$9)","v":""},{"$f":"IF(A167=\"\",\"\",'1. Checklist & Certification'!$F$9)","v":""},{"$f":"IF(A167=\"\",\"\",'1. Checklist & Certification'!$C$10)","v":""},{"$f":"IF(A167=\"\",\"\",'1. Checklist & Certification'!$C$11)","v":""},{"$f":"IF(A167=\"\",\"\",'1. Checklist & Certification'!$C$12)","v":""},{"$f":"IF(A167=\"\",\"\",'1. Checklist & Certification'!$B$14)","v":""},{"$f":"IF(A167=\"\",\"\",'1. Checklist & Certification'!$E$14)","v":""},{"$f":"IF(B167=\"\",\"\",'1. Checklist & Certification'!$G$14)","v":""},{"$f":"IF(A167=\"\",\"\",'MHP Family Income & Rent Limits'!$B$3)","v":""},{"$f":"IF(A167=\"\",\"\",'MHP Family Income & Rent Limits'!$J$3)","v":""},{"$f":"IF(A167=\"\",\"\",'MHP Family Income & Rent Limits'!$E$4)","v":""},{"$f":"IF(A167=\"\",\"\",'MHP Family Income & Rent Limits'!$C$7)","v":""},{"$f":"IF(A167=\"\",\"\",'MHP Family Income & Rent Limits'!$F$8)","v":""},{"$f":"IF(A167=\"\",\"\",'1. Checklist & Certification'!$G$4)","v":""},{"$f":"IF(A167=\"\",\"\",'1. Checklist & Certification'!$K$39)","v":""},{"$f":"IF(A167=\"\",\"\",'1. Checklist & Certification'!$K$43)","v":""},{"$f":"IF(A167=\"\",\"\",'1. Checklist & Certification'!$K$45)","v":""},{"$f":"IF(A167=\"\",\"\",'1. Checklist & Certification'!$K$49)","v":""},{"$f":"IF(A167=\"\",\"\",'1. Checklist & Certification'!$E$66)","v":""},{"$f":"IF(A167=\"\",\"\",'1. Checklist & Certification'!$E$67)","v":""},{"$f":"IF(A167=\"\",\"\",'1. Checklist & Certification'!$E$68)","v":""},{"$f":"IF(A167=\"\",\"\",'1. Checklist & Certification'!$G$66)","v":""},{"$f":"IF(A167=\"\",\"\",'1. Checklist & Certification'!$H$66)","v":""},{"$f":"IF(A167=\"\",\"\",'1. Checklist & Certification'!$I$66)","v":""},{"$f":"IF(A167=\"\",\"\",'1. Checklist & Certification'!$I$67)","v":""},{"$f":"IF(A167=\"\",\"\",'1. Checklist & Certification'!$I$68)","v":""},null,{"$f":"IF(C167=\"\",\"\",HLOOKUP(C167,'MHP Family Income & Rent Limits'!$E$12:$L$26,2,FALSE))","v":""},{"$f":"IF(C167=\"\",\"\",HLOOKUP(C167,'MHP Family Income & Rent Limits'!$E$12:$L$26,3,FALSE))","v":""},{"$f":"IF(C167=\"\",\"\",HLOOKUP(C167,'MHP Family Income & Rent Limits'!$E$12:$L$26,4,FALSE))","v":""},{"$f":"IF(C167=\"\",\"\",HLOOKUP(C167,'MHP Family Income & Rent Limits'!$E$12:$L$26,5,FALSE))","v":""},{"$f":"IF(C167=\"\",\"\",HLOOKUP(C167,'MHP Family Income & Rent Limits'!$E$12:$L$26,6,FALSE))","v":""},{"$f":"IF(C167=\"\",\"\",HLOOKUP(C167,'MHP Family Income & Rent Limits'!$E$12:$L$26,7,FALSE))","v":""},{"$f":"IF(C167=\"\",\"\",HLOOKUP(C167,'MHP Family Income & Rent Limits'!$E$12:$L$26,8,FALSE))","v":""},{"$f":"IF(C167=\"\",\"\",HLOOKUP(C167,'MHP Family Income & Rent Limits'!$E$12:$L$26,9,FALSE))","v":""},{"$f":"IF(C167=\"\",\"\",HLOOKUP(C167,'MHP Family Income & Rent Limits'!$E$12:$L$26,10,FALSE))","v":""},{"$f":"IF(C167=\"\",\"\",HLOOKUP(C167,'MHP Family Income & Rent Limits'!$E$12:$L$26,11,FALSE))","v":""},{"$f":"IF(C167=\"\",\"\",HLOOKUP(C167,'MHP Family Income & Rent Limits'!$E$12:$L$26,12,FALSE))","v":""},{"$f":"IF(C167=\"\",\"\",HLOOKUP(C167,'MHP Family Income & Rent Limits'!$E$12:$L$26,13,FALSE))","v":""},{"$f":"IF(C167=\"\",\"\",HLOOKUP(C167,'MHP Family Income & Rent Limits'!$E$12:$L$26,14,FALSE))","v":""},{"$f":"IF(C167=\"\",\"\",HLOOKUP(C167,'MHP Family Income & Rent Limits'!$E$12:$L$26,15,FALSE))","v":""}]
[{"$f":"IF('2. Assisted & Restricted Units'!A168=\"\",\"\",'2. Assisted & Restricted Units'!A168)","v":""},{"$f":"IF('2. Assisted & Restricted Units'!B168=\"\",\"\",'2. Assisted & Restricted Units'!B168)","v":""},{"$f":"IF('2. Assisted & Restricted Units'!D168=\"\",\"\",'2. Assisted & Restricted Units'!D168)","v":""},{"$f":"IF('2. Assisted & Restricted Units'!E168=\"\",\"\",'2. Assisted & Restricted Units'!E168)","v":""},{"$f":"IF('2. Assisted & Restricted Units'!H168=\"\",\"\",'2. Assisted & Restricted Units'!H168)","v":""},{"$f":"_xlfn.IFS(E168=\"\",\"\",E168>BO168,$BP$6,E168>BN168,$BO$6,E168>BM168,$BN$6,E168>BL168,$BM$6,E168>BK168,$BL$6,E168>BJ168,$BK$6,E168>BI168,$BJ$6,E168>BH168,$BI$6,E168>BG168,$BH$6,E168>BF168,$BG$6,E168>BE168,$BF$6,E168>BD168,$BE$6,E168>BC168,$BD$6,E168>=0,$BC$6)","v":""},{"$f":"IF('2. Assisted & Restricted Units'!T168=\"\",\"\",'2. Assisted & Restricted Units'!T168)","v":""},{"$f":"IF('2. Assisted & Restricted Units'!I168=\"\",\"\",'2. Assisted & Restricted Units'!I168)","v":""},{"$f":"IF('2. Assisted & Restricted Units'!AP168=\"\",\"\",'2. Assisted & Restricted Units'!AP168)","v":0},{"$f":"IF('2. Assisted & Restricted Units'!AT168=\"\",\"\",'2. Assisted & Restricted Units'!AT168)","v":""},0,{"$f":"IF('2. Assisted & Restricted Units'!AV168=\"\",\"\",'2. Assisted & Restricted Units'!AV168)","v":""},{"$f":"IF('2. Assisted & Restricted Units'!L168=\"\",\"\",'2. Assisted & Restricted Units'!L168)","v":""},{"$f":"IF('2. Assisted & Restricted Units'!M168=\"\",\"\",'2. Assisted & Restricted Units'!M168)","v":""},{"$f":"IF('2. Assisted & Restricted Units'!O168=\"\",\"\",'2. Assisted & Restricted Units'!O168)","v":""},{"$f":"IF('2. Assisted & Restricted Units'!P168=\"\",\"\",'2. Assisted & Restricted Units'!P168)","v":""},{"$f":"IF('2. Assisted & Restricted Units'!Q168=\"\",\"\",'2. Assisted & Restricted Units'!Q168)","v":""},{"$f":"IF('2. Assisted & Restricted Units'!R168=\"\",\"\",'2. Assisted & Restricted Units'!R168)","v":""},{"$f":"IF(A168=\"\",\"\",'1. Checklist & Certification'!$K$1)","v":""},{"$f":"IF(A168=\"\",\"\",'1. Checklist & Certification'!$C$62)","v":""},{"$f":"IF(A168=\"\",\"\",'1. Checklist & Certification'!$K$62)","v":""},{"$f":"IF(A168=\"\",\"\",'1. Checklist & Certification'!$C$6)","v":""},{"$f":"IF(A168=\"\",\"\",'1. Checklist & Certification'!$G$4)","v":""},{"$f":"IF(A168=\"\",\"\",'1. Checklist & Certification'!$C$7)","v":""},{"$f":"IF(A168=\"\",\"\",'1. Checklist & Certification'!$C$8)","v":""},{"$f":"IF(A168=\"\",\"\",'1. Checklist & Certification'!$F$7)","v":""},{"$f":"IF(A168=\"\",\"\",'1. Checklist & Certification'!$F$8)","v":""},{"$f":"IF(A168=\"\",\"\",'1. Checklist & Certification'!$B$9)","v":""},{"$f":"IF(A168=\"\",\"\",'1. Checklist & Certification'!$F$9)","v":""},{"$f":"IF(A168=\"\",\"\",'1. Checklist & Certification'!$C$10)","v":""},{"$f":"IF(A168=\"\",\"\",'1. Checklist & Certification'!$C$11)","v":""},{"$f":"IF(A168=\"\",\"\",'1. Checklist & Certification'!$C$12)","v":""},{"$f":"IF(A168=\"\",\"\",'1. Checklist & Certification'!$B$14)","v":""},{"$f":"IF(A168=\"\",\"\",'1. Checklist & Certification'!$E$14)","v":""},{"$f":"IF(B168=\"\",\"\",'1. Checklist & Certification'!$G$14)","v":""},{"$f":"IF(A168=\"\",\"\",'MHP Family Income & Rent Limits'!$B$3)","v":""},{"$f":"IF(A168=\"\",\"\",'MHP Family Income & Rent Limits'!$J$3)","v":""},{"$f":"IF(A168=\"\",\"\",'MHP Family Income & Rent Limits'!$E$4)","v":""},{"$f":"IF(A168=\"\",\"\",'MHP Family Income & Rent Limits'!$C$7)","v":""},{"$f":"IF(A168=\"\",\"\",'MHP Family Income & Rent Limits'!$F$8)","v":""},{"$f":"IF(A168=\"\",\"\",'1. Checklist & Certification'!$G$4)","v":""},{"$f":"IF(A168=\"\",\"\",'1. Checklist & Certification'!$K$39)","v":""},{"$f":"IF(A168=\"\",\"\",'1. Checklist & Certification'!$K$43)","v":""},{"$f":"IF(A168=\"\",\"\",'1. Checklist & Certification'!$K$45)","v":""},{"$f":"IF(A168=\"\",\"\",'1. Checklist & Certification'!$K$49)","v":""},{"$f":"IF(A168=\"\",\"\",'1. Checklist & Certification'!$E$66)","v":""},{"$f":"IF(A168=\"\",\"\",'1. Checklist & Certification'!$E$67)","v":""},{"$f":"IF(A168=\"\",\"\",'1. Checklist & Certification'!$E$68)","v":""},{"$f":"IF(A168=\"\",\"\",'1. Checklist & Certification'!$G$66)","v":""},{"$f":"IF(A168=\"\",\"\",'1. Checklist & Certification'!$H$66)","v":""},{"$f":"IF(A168=\"\",\"\",'1. Checklist & Certification'!$I$66)","v":""},{"$f":"IF(A168=\"\",\"\",'1. Checklist & Certification'!$I$67)","v":""},{"$f":"IF(A168=\"\",\"\",'1. Checklist & Certification'!$I$68)","v":""},null,{"$f":"IF(C168=\"\",\"\",HLOOKUP(C168,'MHP Family Income & Rent Limits'!$E$12:$L$26,2,FALSE))","v":""},{"$f":"IF(C168=\"\",\"\",HLOOKUP(C168,'MHP Family Income & Rent Limits'!$E$12:$L$26,3,FALSE))","v":""},{"$f":"IF(C168=\"\",\"\",HLOOKUP(C168,'MHP Family Income & Rent Limits'!$E$12:$L$26,4,FALSE))","v":""},{"$f":"IF(C168=\"\",\"\",HLOOKUP(C168,'MHP Family Income & Rent Limits'!$E$12:$L$26,5,FALSE))","v":""},{"$f":"IF(C168=\"\",\"\",HLOOKUP(C168,'MHP Family Income & Rent Limits'!$E$12:$L$26,6,FALSE))","v":""},{"$f":"IF(C168=\"\",\"\",HLOOKUP(C168,'MHP Family Income & Rent Limits'!$E$12:$L$26,7,FALSE))","v":""},{"$f":"IF(C168=\"\",\"\",HLOOKUP(C168,'MHP Family Income & Rent Limits'!$E$12:$L$26,8,FALSE))","v":""},{"$f":"IF(C168=\"\",\"\",HLOOKUP(C168,'MHP Family Income & Rent Limits'!$E$12:$L$26,9,FALSE))","v":""},{"$f":"IF(C168=\"\",\"\",HLOOKUP(C168,'MHP Family Income & Rent Limits'!$E$12:$L$26,10,FALSE))","v":""},{"$f":"IF(C168=\"\",\"\",HLOOKUP(C168,'MHP Family Income & Rent Limits'!$E$12:$L$26,11,FALSE))","v":""},{"$f":"IF(C168=\"\",\"\",HLOOKUP(C168,'MHP Family Income & Rent Limits'!$E$12:$L$26,12,FALSE))","v":""},{"$f":"IF(C168=\"\",\"\",HLOOKUP(C168,'MHP Family Income & Rent Limits'!$E$12:$L$26,13,FALSE))","v":""},{"$f":"IF(C168=\"\",\"\",HLOOKUP(C168,'MHP Family Income & Rent Limits'!$E$12:$L$26,14,FALSE))","v":""},{"$f":"IF(C168=\"\",\"\",HLOOKUP(C168,'MHP Family Income & Rent Limits'!$E$12:$L$26,15,FALSE))","v":""}]
[{"$f":"IF('2. Assisted & Restricted Units'!A169=\"\",\"\",'2. Assisted & Restricted Units'!A169)","v":""},{"$f":"IF('2. Assisted & Restricted Units'!B169=\"\",\"\",'2. Assisted & Restricted Units'!B169)","v":""},{"$f":"IF('2. Assisted & Restricted Units'!D169=\"\",\"\",'2. Assisted & Restricted Units'!D169)","v":""},{"$f":"IF('2. Assisted & Restricted Units'!E169=\"\",\"\",'2. Assisted & Restricted Units'!E169)","v":""},{"$f":"IF('2. Assisted & Restricted Units'!H169=\"\",\"\",'2. Assisted & Restricted Units'!H169)","v":""},{"$f":"_xlfn.IFS(E169=\"\",\"\",E169>BO169,$BP$6,E169>BN169,$BO$6,E169>BM169,$BN$6,E169>BL169,$BM$6,E169>BK169,$BL$6,E169>BJ169,$BK$6,E169>BI169,$BJ$6,E169>BH169,$BI$6,E169>BG169,$BH$6,E169>BF169,$BG$6,E169>BE169,$BF$6,E169>BD169,$BE$6,E169>BC169,$BD$6,E169>=0,$BC$6)","v":""},{"$f":"IF('2. Assisted & Restricted Units'!T169=\"\",\"\",'2. Assisted & Restricted Units'!T169)","v":""},{"$f":"IF('2. Assisted & Restricted Units'!I169=\"\",\"\",'2. Assisted & Restricted Units'!I169)","v":""},{"$f":"IF('2. Assisted & Restricted Units'!AP169=\"\",\"\",'2. Assisted & Restricted Units'!AP169)","v":0},{"$f":"IF('2. Assisted & Restricted Units'!AT169=\"\",\"\",'2. Assisted & Restricted Units'!AT169)","v":""},0,{"$f":"IF('2. Assisted & Restricted Units'!AV169=\"\",\"\",'2. Assisted & Restricted Units'!AV169)","v":""},{"$f":"IF('2. Assisted & Restricted Units'!L169=\"\",\"\",'2. Assisted & Restricted Units'!L169)","v":""},{"$f":"IF('2. Assisted & Restricted Units'!M169=\"\",\"\",'2. Assisted & Restricted Units'!M169)","v":""},{"$f":"IF('2. Assisted & Restricted Units'!O169=\"\",\"\",'2. Assisted & Restricted Units'!O169)","v":""},{"$f":"IF('2. Assisted & Restricted Units'!P169=\"\",\"\",'2. Assisted & Restricted Units'!P169)","v":""},{"$f":"IF('2. Assisted & Restricted Units'!Q169=\"\",\"\",'2. Assisted & Restricted Units'!Q169)","v":""},{"$f":"IF('2. Assisted & Restricted Units'!R169=\"\",\"\",'2. Assisted & Restricted Units'!R169)","v":""},{"$f":"IF(A169=\"\",\"\",'1. Checklist & Certification'!$K$1)","v":""},{"$f":"IF(A169=\"\",\"\",'1. Checklist & Certification'!$C$62)","v":""},{"$f":"IF(A169=\"\",\"\",'1. Checklist & Certification'!$K$62)","v":""},{"$f":"IF(A169=\"\",\"\",'1. Checklist & Certification'!$C$6)","v":""},{"$f":"IF(A169=\"\",\"\",'1. Checklist & Certification'!$G$4)","v":""},{"$f":"IF(A169=\"\",\"\",'1. Checklist & Certification'!$C$7)","v":""},{"$f":"IF(A169=\"\",\"\",'1. Checklist & Certification'!$C$8)","v":""},{"$f":"IF(A169=\"\",\"\",'1. Checklist & Certification'!$F$7)","v":""},{"$f":"IF(A169=\"\",\"\",'1. Checklist & Certification'!$F$8)","v":""},{"$f":"IF(A169=\"\",\"\",'1. Checklist & Certification'!$B$9)","v":""},{"$f":"IF(A169=\"\",\"\",'1. Checklist & Certification'!$F$9)","v":""},{"$f":"IF(A169=\"\",\"\",'1. Checklist & Certification'!$C$10)","v":""},{"$f":"IF(A169=\"\",\"\",'1. Checklist & Certification'!$C$11)","v":""},{"$f":"IF(A169=\"\",\"\",'1. Checklist & Certification'!$C$12)","v":""},{"$f":"IF(A169=\"\",\"\",'1. Checklist & Certification'!$B$14)","v":""},{"$f":"IF(A169=\"\",\"\",'1. Checklist & Certification'!$E$14)","v":""},{"$f":"IF(B169=\"\",\"\",'1. Checklist & Certification'!$G$14)","v":""},{"$f":"IF(A169=\"\",\"\",'MHP Family Income & Rent Limits'!$B$3)","v":""},{"$f":"IF(A169=\"\",\"\",'MHP Family Income & Rent Limits'!$J$3)","v":""},{"$f":"IF(A169=\"\",\"\",'MHP Family Income & Rent Limits'!$E$4)","v":""},{"$f":"IF(A169=\"\",\"\",'MHP Family Income & Rent Limits'!$C$7)","v":""},{"$f":"IF(A169=\"\",\"\",'MHP Family Income & Rent Limits'!$F$8)","v":""},{"$f":"IF(A169=\"\",\"\",'1. Checklist & Certification'!$G$4)","v":""},{"$f":"IF(A169=\"\",\"\",'1. Checklist & Certification'!$K$39)","v":""},{"$f":"IF(A169=\"\",\"\",'1. Checklist & Certification'!$K$43)","v":""},{"$f":"IF(A169=\"\",\"\",'1. Checklist & Certification'!$K$45)","v":""},{"$f":"IF(A169=\"\",\"\",'1. Checklist & Certification'!$K$49)","v":""},{"$f":"IF(A169=\"\",\"\",'1. Checklist & Certification'!$E$66)","v":""},{"$f":"IF(A169=\"\",\"\",'1. Checklist & Certification'!$E$67)","v":""},{"$f":"IF(A169=\"\",\"\",'1. Checklist & Certification'!$E$68)","v":""},{"$f":"IF(A169=\"\",\"\",'1. Checklist & Certification'!$G$66)","v":""},{"$f":"IF(A169=\"\",\"\",'1. Checklist & Certification'!$H$66)","v":""},{"$f":"IF(A169=\"\",\"\",'1. Checklist & Certification'!$I$66)","v":""},{"$f":"IF(A169=\"\",\"\",'1. Checklist & Certification'!$I$67)","v":""},{"$f":"IF(A169=\"\",\"\",'1. Checklist & Certification'!$I$68)","v":""},null,{"$f":"IF(C169=\"\",\"\",HLOOKUP(C169,'MHP Family Income & Rent Limits'!$E$12:$L$26,2,FALSE))","v":""},{"$f":"IF(C169=\"\",\"\",HLOOKUP(C169,'MHP Family Income & Rent Limits'!$E$12:$L$26,3,FALSE))","v":""},{"$f":"IF(C169=\"\",\"\",HLOOKUP(C169,'MHP Family Income & Rent Limits'!$E$12:$L$26,4,FALSE))","v":""},{"$f":"IF(C169=\"\",\"\",HLOOKUP(C169,'MHP Family Income & Rent Limits'!$E$12:$L$26,5,FALSE))","v":""},{"$f":"IF(C169=\"\",\"\",HLOOKUP(C169,'MHP Family Income & Rent Limits'!$E$12:$L$26,6,FALSE))","v":""},{"$f":"IF(C169=\"\",\"\",HLOOKUP(C169,'MHP Family Income & Rent Limits'!$E$12:$L$26,7,FALSE))","v":""},{"$f":"IF(C169=\"\",\"\",HLOOKUP(C169,'MHP Family Income & Rent Limits'!$E$12:$L$26,8,FALSE))","v":""},{"$f":"IF(C169=\"\",\"\",HLOOKUP(C169,'MHP Family Income & Rent Limits'!$E$12:$L$26,9,FALSE))","v":""},{"$f":"IF(C169=\"\",\"\",HLOOKUP(C169,'MHP Family Income & Rent Limits'!$E$12:$L$26,10,FALSE))","v":""},{"$f":"IF(C169=\"\",\"\",HLOOKUP(C169,'MHP Family Income & Rent Limits'!$E$12:$L$26,11,FALSE))","v":""},{"$f":"IF(C169=\"\",\"\",HLOOKUP(C169,'MHP Family Income & Rent Limits'!$E$12:$L$26,12,FALSE))","v":""},{"$f":"IF(C169=\"\",\"\",HLOOKUP(C169,'MHP Family Income & Rent Limits'!$E$12:$L$26,13,FALSE))","v":""},{"$f":"IF(C169=\"\",\"\",HLOOKUP(C169,'MHP Family Income & Rent Limits'!$E$12:$L$26,14,FALSE))","v":""},{"$f":"IF(C169=\"\",\"\",HLOOKUP(C169,'MHP Family Income & Rent Limits'!$E$12:$L$26,15,FALSE))","v":""}]
[{"$f":"IF('2. Assisted & Restricted Units'!A170=\"\",\"\",'2. Assisted & Restricted Units'!A170)","v":""},{"$f":"IF('2. Assisted & Restricted Units'!B170=\"\",\"\",'2. Assisted & Restricted Units'!B170)","v":""},{"$f":"IF('2. Assisted & Restricted Units'!D170=\"\",\"\",'2. Assisted & Restricted Units'!D170)","v":""},{"$f":"IF('2. Assisted & Restricted Units'!E170=\"\",\"\",'2. Assisted & Restricted Units'!E170)","v":""},{"$f":"IF('2. Assisted & Restricted Units'!H170=\"\",\"\",'2. Assisted & Restricted Units'!H170)","v":""},{"$f":"_xlfn.IFS(E170=\"\",\"\",E170>BO170,$BP$6,E170>BN170,$BO$6,E170>BM170,$BN$6,E170>BL170,$BM$6,E170>BK170,$BL$6,E170>BJ170,$BK$6,E170>BI170,$BJ$6,E170>BH170,$BI$6,E170>BG170,$BH$6,E170>BF170,$BG$6,E170>BE170,$BF$6,E170>BD170,$BE$6,E170>BC170,$BD$6,E170>=0,$BC$6)","v":""},{"$f":"IF('2. Assisted & Restricted Units'!T170=\"\",\"\",'2. Assisted & Restricted Units'!T170)","v":""},{"$f":"IF('2. Assisted & Restricted Units'!I170=\"\",\"\",'2. Assisted & Restricted Units'!I170)","v":""},{"$f":"IF('2. Assisted & Restricted Units'!AP170=\"\",\"\",'2. Assisted & Restricted Units'!AP170)","v":0},{"$f":"IF('2. Assisted & Restricted Units'!AT170=\"\",\"\",'2. Assisted & Restricted Units'!AT170)","v":""},0,{"$f":"IF('2. Assisted & Restricted Units'!AV170=\"\",\"\",'2. Assisted & Restricted Units'!AV170)","v":""},{"$f":"IF('2. Assisted & Restricted Units'!L170=\"\",\"\",'2. Assisted & Restricted Units'!L170)","v":""},{"$f":"IF('2. Assisted & Restricted Units'!M170=\"\",\"\",'2. Assisted & Restricted Units'!M170)","v":""},{"$f":"IF('2. Assisted & Restricted Units'!O170=\"\",\"\",'2. Assisted & Restricted Units'!O170)","v":""},{"$f":"IF('2. Assisted & Restricted Units'!P170=\"\",\"\",'2. Assisted & Restricted Units'!P170)","v":""},{"$f":"IF('2. Assisted & Restricted Units'!Q170=\"\",\"\",'2. Assisted & Restricted Units'!Q170)","v":""},{"$f":"IF('2. Assisted & Restricted Units'!R170=\"\",\"\",'2. Assisted & Restricted Units'!R170)","v":""},{"$f":"IF(A170=\"\",\"\",'1. Checklist & Certification'!$K$1)","v":""},{"$f":"IF(A170=\"\",\"\",'1. Checklist & Certification'!$C$62)","v":""},{"$f":"IF(A170=\"\",\"\",'1. Checklist & Certification'!$K$62)","v":""},{"$f":"IF(A170=\"\",\"\",'1. Checklist & Certification'!$C$6)","v":""},{"$f":"IF(A170=\"\",\"\",'1. Checklist & Certification'!$G$4)","v":""},{"$f":"IF(A170=\"\",\"\",'1. Checklist & Certification'!$C$7)","v":""},{"$f":"IF(A170=\"\",\"\",'1. Checklist & Certification'!$C$8)","v":""},{"$f":"IF(A170=\"\",\"\",'1. Checklist & Certification'!$F$7)","v":""},{"$f":"IF(A170=\"\",\"\",'1. Checklist & Certification'!$F$8)","v":""},{"$f":"IF(A170=\"\",\"\",'1. Checklist & Certification'!$B$9)","v":""},{"$f":"IF(A170=\"\",\"\",'1. Checklist & Certification'!$F$9)","v":""},{"$f":"IF(A170=\"\",\"\",'1. Checklist & Certification'!$C$10)","v":""},{"$f":"IF(A170=\"\",\"\",'1. Checklist & Certification'!$C$11)","v":""},{"$f":"IF(A170=\"\",\"\",'1. Checklist & Certification'!$C$12)","v":""},{"$f":"IF(A170=\"\",\"\",'1. Checklist & Certification'!$B$14)","v":""},{"$f":"IF(A170=\"\",\"\",'1. Checklist & Certification'!$E$14)","v":""},{"$f":"IF(B170=\"\",\"\",'1. Checklist & Certification'!$G$14)","v":""},{"$f":"IF(A170=\"\",\"\",'MHP Family Income & Rent Limits'!$B$3)","v":""},{"$f":"IF(A170=\"\",\"\",'MHP Family Income & Rent Limits'!$J$3)","v":""},{"$f":"IF(A170=\"\",\"\",'MHP Family Income & Rent Limits'!$E$4)","v":""},{"$f":"IF(A170=\"\",\"\",'MHP Family Income & Rent Limits'!$C$7)","v":""},{"$f":"IF(A170=\"\",\"\",'MHP Family Income & Rent Limits'!$F$8)","v":""},{"$f":"IF(A170=\"\",\"\",'1. Checklist & Certification'!$G$4)","v":""},{"$f":"IF(A170=\"\",\"\",'1. Checklist & Certification'!$K$39)","v":""},{"$f":"IF(A170=\"\",\"\",'1. Checklist & Certification'!$K$43)","v":""},{"$f":"IF(A170=\"\",\"\",'1. Checklist & Certification'!$K$45)","v":""},{"$f":"IF(A170=\"\",\"\",'1. Checklist & Certification'!$K$49)","v":""},{"$f":"IF(A170=\"\",\"\",'1. Checklist & Certification'!$E$66)","v":""},{"$f":"IF(A170=\"\",\"\",'1. Checklist & Certification'!$E$67)","v":""},{"$f":"IF(A170=\"\",\"\",'1. Checklist & Certification'!$E$68)","v":""},{"$f":"IF(A170=\"\",\"\",'1. Checklist & Certification'!$G$66)","v":""},{"$f":"IF(A170=\"\",\"\",'1. Checklist & Certification'!$H$66)","v":""},{"$f":"IF(A170=\"\",\"\",'1. Checklist & Certification'!$I$66)","v":""},{"$f":"IF(A170=\"\",\"\",'1. Checklist & Certification'!$I$67)","v":""},{"$f":"IF(A170=\"\",\"\",'1. Checklist & Certification'!$I$68)","v":""},null,{"$f":"IF(C170=\"\",\"\",HLOOKUP(C170,'MHP Family Income & Rent Limits'!$E$12:$L$26,2,FALSE))","v":""},{"$f":"IF(C170=\"\",\"\",HLOOKUP(C170,'MHP Family Income & Rent Limits'!$E$12:$L$26,3,FALSE))","v":""},{"$f":"IF(C170=\"\",\"\",HLOOKUP(C170,'MHP Family Income & Rent Limits'!$E$12:$L$26,4,FALSE))","v":""},{"$f":"IF(C170=\"\",\"\",HLOOKUP(C170,'MHP Family Income & Rent Limits'!$E$12:$L$26,5,FALSE))","v":""},{"$f":"IF(C170=\"\",\"\",HLOOKUP(C170,'MHP Family Income & Rent Limits'!$E$12:$L$26,6,FALSE))","v":""},{"$f":"IF(C170=\"\",\"\",HLOOKUP(C170,'MHP Family Income & Rent Limits'!$E$12:$L$26,7,FALSE))","v":""},{"$f":"IF(C170=\"\",\"\",HLOOKUP(C170,'MHP Family Income & Rent Limits'!$E$12:$L$26,8,FALSE))","v":""},{"$f":"IF(C170=\"\",\"\",HLOOKUP(C170,'MHP Family Income & Rent Limits'!$E$12:$L$26,9,FALSE))","v":""},{"$f":"IF(C170=\"\",\"\",HLOOKUP(C170,'MHP Family Income & Rent Limits'!$E$12:$L$26,10,FALSE))","v":""},{"$f":"IF(C170=\"\",\"\",HLOOKUP(C170,'MHP Family Income & Rent Limits'!$E$12:$L$26,11,FALSE))","v":""},{"$f":"IF(C170=\"\",\"\",HLOOKUP(C170,'MHP Family Income & Rent Limits'!$E$12:$L$26,12,FALSE))","v":""},{"$f":"IF(C170=\"\",\"\",HLOOKUP(C170,'MHP Family Income & Rent Limits'!$E$12:$L$26,13,FALSE))","v":""},{"$f":"IF(C170=\"\",\"\",HLOOKUP(C170,'MHP Family Income & Rent Limits'!$E$12:$L$26,14,FALSE))","v":""},{"$f":"IF(C170=\"\",\"\",HLOOKUP(C170,'MHP Family Income & Rent Limits'!$E$12:$L$26,15,FALSE))","v":""}]
[{"$f":"IF('2. Assisted & Restricted Units'!A171=\"\",\"\",'2. Assisted & Restricted Units'!A171)","v":""},{"$f":"IF('2. Assisted & Restricted Units'!B171=\"\",\"\",'2. Assisted & Restricted Units'!B171)","v":""},{"$f":"IF('2. Assisted & Restricted Units'!D171=\"\",\"\",'2. Assisted & Restricted Units'!D171)","v":""},{"$f":"IF('2. Assisted & Restricted Units'!E171=\"\",\"\",'2. Assisted & Restricted Units'!E171)","v":""},{"$f":"IF('2. Assisted & Restricted Units'!H171=\"\",\"\",'2. Assisted & Restricted Units'!H171)","v":""},{"$f":"_xlfn.IFS(E171=\"\",\"\",E171>BO171,$BP$6,E171>BN171,$BO$6,E171>BM171,$BN$6,E171>BL171,$BM$6,E171>BK171,$BL$6,E171>BJ171,$BK$6,E171>BI171,$BJ$6,E171>BH171,$BI$6,E171>BG171,$BH$6,E171>BF171,$BG$6,E171>BE171,$BF$6,E171>BD171,$BE$6,E171>BC171,$BD$6,E171>=0,$BC$6)","v":""},{"$f":"IF('2. Assisted & Restricted Units'!T171=\"\",\"\",'2. Assisted & Restricted Units'!T171)","v":""},{"$f":"IF('2. Assisted & Restricted Units'!I171=\"\",\"\",'2. Assisted & Restricted Units'!I171)","v":""},{"$f":"IF('2. Assisted & Restricted Units'!AP171=\"\",\"\",'2. Assisted & Restricted Units'!AP171)","v":0},{"$f":"IF('2. Assisted & Restricted Units'!AT171=\"\",\"\",'2. Assisted & Restricted Units'!AT171)","v":""},0,{"$f":"IF('2. Assisted & Restricted Units'!AV171=\"\",\"\",'2. Assisted & Restricted Units'!AV171)","v":""},{"$f":"IF('2. Assisted & Restricted Units'!L171=\"\",\"\",'2. Assisted & Restricted Units'!L171)","v":""},{"$f":"IF('2. Assisted & Restricted Units'!M171=\"\",\"\",'2. Assisted & Restricted Units'!M171)","v":""},{"$f":"IF('2. Assisted & Restricted Units'!O171=\"\",\"\",'2. Assisted & Restricted Units'!O171)","v":""},{"$f":"IF('2. Assisted & Restricted Units'!P171=\"\",\"\",'2. Assisted & Restricted Units'!P171)","v":""},{"$f":"IF('2. Assisted & Restricted Units'!Q171=\"\",\"\",'2. Assisted & Restricted Units'!Q171)","v":""},{"$f":"IF('2. Assisted & Restricted Units'!R171=\"\",\"\",'2. Assisted & Restricted Units'!R171)","v":""},{"$f":"IF(A171=\"\",\"\",'1. Checklist & Certification'!$K$1)","v":""},{"$f":"IF(A171=\"\",\"\",'1. Checklist & Certification'!$C$62)","v":""},{"$f":"IF(A171=\"\",\"\",'1. Checklist & Certification'!$K$62)","v":""},{"$f":"IF(A171=\"\",\"\",'1. Checklist & Certification'!$C$6)","v":""},{"$f":"IF(A171=\"\",\"\",'1. Checklist & Certification'!$G$4)","v":""},{"$f":"IF(A171=\"\",\"\",'1. Checklist & Certification'!$C$7)","v":""},{"$f":"IF(A171=\"\",\"\",'1. Checklist & Certification'!$C$8)","v":""},{"$f":"IF(A171=\"\",\"\",'1. Checklist & Certification'!$F$7)","v":""},{"$f":"IF(A171=\"\",\"\",'1. Checklist & Certification'!$F$8)","v":""},{"$f":"IF(A171=\"\",\"\",'1. Checklist & Certification'!$B$9)","v":""},{"$f":"IF(A171=\"\",\"\",'1. Checklist & Certification'!$F$9)","v":""},{"$f":"IF(A171=\"\",\"\",'1. Checklist & Certification'!$C$10)","v":""},{"$f":"IF(A171=\"\",\"\",'1. Checklist & Certification'!$C$11)","v":""},{"$f":"IF(A171=\"\",\"\",'1. Checklist & Certification'!$C$12)","v":""},{"$f":"IF(A171=\"\",\"\",'1. Checklist & Certification'!$B$14)","v":""},{"$f":"IF(A171=\"\",\"\",'1. Checklist & Certification'!$E$14)","v":""},{"$f":"IF(B171=\"\",\"\",'1. Checklist & Certification'!$G$14)","v":""},{"$f":"IF(A171=\"\",\"\",'MHP Family Income & Rent Limits'!$B$3)","v":""},{"$f":"IF(A171=\"\",\"\",'MHP Family Income & Rent Limits'!$J$3)","v":""},{"$f":"IF(A171=\"\",\"\",'MHP Family Income & Rent Limits'!$E$4)","v":""},{"$f":"IF(A171=\"\",\"\",'MHP Family Income & Rent Limits'!$C$7)","v":""},{"$f":"IF(A171=\"\",\"\",'MHP Family Income & Rent Limits'!$F$8)","v":""},{"$f":"IF(A171=\"\",\"\",'1. Checklist & Certification'!$G$4)","v":""},{"$f":"IF(A171=\"\",\"\",'1. Checklist & Certification'!$K$39)","v":""},{"$f":"IF(A171=\"\",\"\",'1. Checklist & Certification'!$K$43)","v":""},{"$f":"IF(A171=\"\",\"\",'1. Checklist & Certification'!$K$45)","v":""},{"$f":"IF(A171=\"\",\"\",'1. Checklist & Certification'!$K$49)","v":""},{"$f":"IF(A171=\"\",\"\",'1. Checklist & Certification'!$E$66)","v":""},{"$f":"IF(A171=\"\",\"\",'1. Checklist & Certification'!$E$67)","v":""},{"$f":"IF(A171=\"\",\"\",'1. Checklist & Certification'!$E$68)","v":""},{"$f":"IF(A171=\"\",\"\",'1. Checklist & Certification'!$G$66)","v":""},{"$f":"IF(A171=\"\",\"\",'1. Checklist & Certification'!$H$66)","v":""},{"$f":"IF(A171=\"\",\"\",'1. Checklist & Certification'!$I$66)","v":""},{"$f":"IF(A171=\"\",\"\",'1. Checklist & Certification'!$I$67)","v":""},{"$f":"IF(A171=\"\",\"\",'1. Checklist & Certification'!$I$68)","v":""},null,{"$f":"IF(C171=\"\",\"\",HLOOKUP(C171,'MHP Family Income & Rent Limits'!$E$12:$L$26,2,FALSE))","v":""},{"$f":"IF(C171=\"\",\"\",HLOOKUP(C171,'MHP Family Income & Rent Limits'!$E$12:$L$26,3,FALSE))","v":""},{"$f":"IF(C171=\"\",\"\",HLOOKUP(C171,'MHP Family Income & Rent Limits'!$E$12:$L$26,4,FALSE))","v":""},{"$f":"IF(C171=\"\",\"\",HLOOKUP(C171,'MHP Family Income & Rent Limits'!$E$12:$L$26,5,FALSE))","v":""},{"$f":"IF(C171=\"\",\"\",HLOOKUP(C171,'MHP Family Income & Rent Limits'!$E$12:$L$26,6,FALSE))","v":""},{"$f":"IF(C171=\"\",\"\",HLOOKUP(C171,'MHP Family Income & Rent Limits'!$E$12:$L$26,7,FALSE))","v":""},{"$f":"IF(C171=\"\",\"\",HLOOKUP(C171,'MHP Family Income & Rent Limits'!$E$12:$L$26,8,FALSE))","v":""},{"$f":"IF(C171=\"\",\"\",HLOOKUP(C171,'MHP Family Income & Rent Limits'!$E$12:$L$26,9,FALSE))","v":""},{"$f":"IF(C171=\"\",\"\",HLOOKUP(C171,'MHP Family Income & Rent Limits'!$E$12:$L$26,10,FALSE))","v":""},{"$f":"IF(C171=\"\",\"\",HLOOKUP(C171,'MHP Family Income & Rent Limits'!$E$12:$L$26,11,FALSE))","v":""},{"$f":"IF(C171=\"\",\"\",HLOOKUP(C171,'MHP Family Income & Rent Limits'!$E$12:$L$26,12,FALSE))","v":""},{"$f":"IF(C171=\"\",\"\",HLOOKUP(C171,'MHP Family Income & Rent Limits'!$E$12:$L$26,13,FALSE))","v":""},{"$f":"IF(C171=\"\",\"\",HLOOKUP(C171,'MHP Family Income & Rent Limits'!$E$12:$L$26,14,FALSE))","v":""},{"$f":"IF(C171=\"\",\"\",HLOOKUP(C171,'MHP Family Income & Rent Limits'!$E$12:$L$26,15,FALSE))","v":""}]
[{"$f":"IF('2. Assisted & Restricted Units'!A172=\"\",\"\",'2. Assisted & Restricted Units'!A172)","v":""},{"$f":"IF('2. Assisted & Restricted Units'!B172=\"\",\"\",'2. Assisted & Restricted Units'!B172)","v":""},{"$f":"IF('2. Assisted & Restricted Units'!D172=\"\",\"\",'2. Assisted & Restricted Units'!D172)","v":""},{"$f":"IF('2. Assisted & Restricted Units'!E172=\"\",\"\",'2. Assisted & Restricted Units'!E172)","v":""},{"$f":"IF('2. Assisted & Restricted Units'!H172=\"\",\"\",'2. Assisted & Restricted Units'!H172)","v":""},{"$f":"_xlfn.IFS(E172=\"\",\"\",E172>BO172,$BP$6,E172>BN172,$BO$6,E172>BM172,$BN$6,E172>BL172,$BM$6,E172>BK172,$BL$6,E172>BJ172,$BK$6,E172>BI172,$BJ$6,E172>BH172,$BI$6,E172>BG172,$BH$6,E172>BF172,$BG$6,E172>BE172,$BF$6,E172>BD172,$BE$6,E172>BC172,$BD$6,E172>=0,$BC$6)","v":""},{"$f":"IF('2. Assisted & Restricted Units'!T172=\"\",\"\",'2. Assisted & Restricted Units'!T172)","v":""},{"$f":"IF('2. Assisted & Restricted Units'!I172=\"\",\"\",'2. Assisted & Restricted Units'!I172)","v":""},{"$f":"IF('2. Assisted & Restricted Units'!AP172=\"\",\"\",'2. Assisted & Restricted Units'!AP172)","v":0},{"$f":"IF('2. Assisted & Restricted Units'!AT172=\"\",\"\",'2. Assisted & Restricted Units'!AT172)","v":""},0,{"$f":"IF('2. Assisted & Restricted Units'!AV172=\"\",\"\",'2. Assisted & Restricted Units'!AV172)","v":""},{"$f":"IF('2. Assisted & Restricted Units'!L172=\"\",\"\",'2. Assisted & Restricted Units'!L172)","v":""},{"$f":"IF('2. Assisted & Restricted Units'!M172=\"\",\"\",'2. Assisted & Restricted Units'!M172)","v":""},{"$f":"IF('2. Assisted & Restricted Units'!O172=\"\",\"\",'2. Assisted & Restricted Units'!O172)","v":""},{"$f":"IF('2. Assisted & Restricted Units'!P172=\"\",\"\",'2. Assisted & Restricted Units'!P172)","v":""},{"$f":"IF('2. Assisted & Restricted Units'!Q172=\"\",\"\",'2. Assisted & Restricted Units'!Q172)","v":""},{"$f":"IF('2. Assisted & Restricted Units'!R172=\"\",\"\",'2. Assisted & Restricted Units'!R172)","v":""},{"$f":"IF(A172=\"\",\"\",'1. Checklist & Certification'!$K$1)","v":""},{"$f":"IF(A172=\"\",\"\",'1. Checklist & Certification'!$C$62)","v":""},{"$f":"IF(A172=\"\",\"\",'1. Checklist & Certification'!$K$62)","v":""},{"$f":"IF(A172=\"\",\"\",'1. Checklist & Certification'!$C$6)","v":""},{"$f":"IF(A172=\"\",\"\",'1. Checklist & Certification'!$G$4)","v":""},{"$f":"IF(A172=\"\",\"\",'1. Checklist & Certification'!$C$7)","v":""},{"$f":"IF(A172=\"\",\"\",'1. Checklist & Certification'!$C$8)","v":""},{"$f":"IF(A172=\"\",\"\",'1. Checklist & Certification'!$F$7)","v":""},{"$f":"IF(A172=\"\",\"\",'1. Checklist & Certification'!$F$8)","v":""},{"$f":"IF(A172=\"\",\"\",'1. Checklist & Certification'!$B$9)","v":""},{"$f":"IF(A172=\"\",\"\",'1. Checklist & Certification'!$F$9)","v":""},{"$f":"IF(A172=\"\",\"\",'1. Checklist & Certification'!$C$10)","v":""},{"$f":"IF(A172=\"\",\"\",'1. Checklist & Certification'!$C$11)","v":""},{"$f":"IF(A172=\"\",\"\",'1. Checklist & Certification'!$C$12)","v":""},{"$f":"IF(A172=\"\",\"\",'1. Checklist & Certification'!$B$14)","v":""},{"$f":"IF(A172=\"\",\"\",'1. Checklist & Certification'!$E$14)","v":""},{"$f":"IF(B172=\"\",\"\",'1. Checklist & Certification'!$G$14)","v":""},{"$f":"IF(A172=\"\",\"\",'MHP Family Income & Rent Limits'!$B$3)","v":""},{"$f":"IF(A172=\"\",\"\",'MHP Family Income & Rent Limits'!$J$3)","v":""},{"$f":"IF(A172=\"\",\"\",'MHP Family Income & Rent Limits'!$E$4)","v":""},{"$f":"IF(A172=\"\",\"\",'MHP Family Income & Rent Limits'!$C$7)","v":""},{"$f":"IF(A172=\"\",\"\",'MHP Family Income & Rent Limits'!$F$8)","v":""},{"$f":"IF(A172=\"\",\"\",'1. Checklist & Certification'!$G$4)","v":""},{"$f":"IF(A172=\"\",\"\",'1. Checklist & Certification'!$K$39)","v":""},{"$f":"IF(A172=\"\",\"\",'1. Checklist & Certification'!$K$43)","v":""},{"$f":"IF(A172=\"\",\"\",'1. Checklist & Certification'!$K$45)","v":""},{"$f":"IF(A172=\"\",\"\",'1. Checklist & Certification'!$K$49)","v":""},{"$f":"IF(A172=\"\",\"\",'1. Checklist & Certification'!$E$66)","v":""},{"$f":"IF(A172=\"\",\"\",'1. Checklist & Certification'!$E$67)","v":""},{"$f":"IF(A172=\"\",\"\",'1. Checklist & Certification'!$E$68)","v":""},{"$f":"IF(A172=\"\",\"\",'1. Checklist & Certification'!$G$66)","v":""},{"$f":"IF(A172=\"\",\"\",'1. Checklist & Certification'!$H$66)","v":""},{"$f":"IF(A172=\"\",\"\",'1. Checklist & Certification'!$I$66)","v":""},{"$f":"IF(A172=\"\",\"\",'1. Checklist & Certification'!$I$67)","v":""},{"$f":"IF(A172=\"\",\"\",'1. Checklist & Certification'!$I$68)","v":""},null,{"$f":"IF(C172=\"\",\"\",HLOOKUP(C172,'MHP Family Income & Rent Limits'!$E$12:$L$26,2,FALSE))","v":""},{"$f":"IF(C172=\"\",\"\",HLOOKUP(C172,'MHP Family Income & Rent Limits'!$E$12:$L$26,3,FALSE))","v":""},{"$f":"IF(C172=\"\",\"\",HLOOKUP(C172,'MHP Family Income & Rent Limits'!$E$12:$L$26,4,FALSE))","v":""},{"$f":"IF(C172=\"\",\"\",HLOOKUP(C172,'MHP Family Income & Rent Limits'!$E$12:$L$26,5,FALSE))","v":""},{"$f":"IF(C172=\"\",\"\",HLOOKUP(C172,'MHP Family Income & Rent Limits'!$E$12:$L$26,6,FALSE))","v":""},{"$f":"IF(C172=\"\",\"\",HLOOKUP(C172,'MHP Family Income & Rent Limits'!$E$12:$L$26,7,FALSE))","v":""},{"$f":"IF(C172=\"\",\"\",HLOOKUP(C172,'MHP Family Income & Rent Limits'!$E$12:$L$26,8,FALSE))","v":""},{"$f":"IF(C172=\"\",\"\",HLOOKUP(C172,'MHP Family Income & Rent Limits'!$E$12:$L$26,9,FALSE))","v":""},{"$f":"IF(C172=\"\",\"\",HLOOKUP(C172,'MHP Family Income & Rent Limits'!$E$12:$L$26,10,FALSE))","v":""},{"$f":"IF(C172=\"\",\"\",HLOOKUP(C172,'MHP Family Income & Rent Limits'!$E$12:$L$26,11,FALSE))","v":""},{"$f":"IF(C172=\"\",\"\",HLOOKUP(C172,'MHP Family Income & Rent Limits'!$E$12:$L$26,12,FALSE))","v":""},{"$f":"IF(C172=\"\",\"\",HLOOKUP(C172,'MHP Family Income & Rent Limits'!$E$12:$L$26,13,FALSE))","v":""},{"$f":"IF(C172=\"\",\"\",HLOOKUP(C172,'MHP Family Income & Rent Limits'!$E$12:$L$26,14,FALSE))","v":""},{"$f":"IF(C172=\"\",\"\",HLOOKUP(C172,'MHP Family Income & Rent Limits'!$E$12:$L$26,15,FALSE))","v":""}]
[{"$f":"IF('2. Assisted & Restricted Units'!A173=\"\",\"\",'2. Assisted & Restricted Units'!A173)","v":""},{"$f":"IF('2. Assisted & Restricted Units'!B173=\"\",\"\",'2. Assisted & Restricted Units'!B173)","v":""},{"$f":"IF('2. Assisted & Restricted Units'!D173=\"\",\"\",'2. Assisted & Restricted Units'!D173)","v":""},{"$f":"IF('2. Assisted & Restricted Units'!E173=\"\",\"\",'2. Assisted & Restricted Units'!E173)","v":""},{"$f":"IF('2. Assisted & Restricted Units'!H173=\"\",\"\",'2. Assisted & Restricted Units'!H173)","v":""},{"$f":"_xlfn.IFS(E173=\"\",\"\",E173>BO173,$BP$6,E173>BN173,$BO$6,E173>BM173,$BN$6,E173>BL173,$BM$6,E173>BK173,$BL$6,E173>BJ173,$BK$6,E173>BI173,$BJ$6,E173>BH173,$BI$6,E173>BG173,$BH$6,E173>BF173,$BG$6,E173>BE173,$BF$6,E173>BD173,$BE$6,E173>BC173,$BD$6,E173>=0,$BC$6)","v":""},{"$f":"IF('2. Assisted & Restricted Units'!T173=\"\",\"\",'2. Assisted & Restricted Units'!T173)","v":""},{"$f":"IF('2. Assisted & Restricted Units'!I173=\"\",\"\",'2. Assisted & Restricted Units'!I173)","v":""},{"$f":"IF('2. Assisted & Restricted Units'!AP173=\"\",\"\",'2. Assisted & Restricted Units'!AP173)","v":0},{"$f":"IF('2. Assisted & Restricted Units'!AT173=\"\",\"\",'2. Assisted & Restricted Units'!AT173)","v":""},0,{"$f":"IF('2. Assisted & Restricted Units'!AV173=\"\",\"\",'2. Assisted & Restricted Units'!AV173)","v":""},{"$f":"IF('2. Assisted & Restricted Units'!L173=\"\",\"\",'2. Assisted & Restricted Units'!L173)","v":""},{"$f":"IF('2. Assisted & Restricted Units'!M173=\"\",\"\",'2. Assisted & Restricted Units'!M173)","v":""},{"$f":"IF('2. Assisted & Restricted Units'!O173=\"\",\"\",'2. Assisted & Restricted Units'!O173)","v":""},{"$f":"IF('2. Assisted & Restricted Units'!P173=\"\",\"\",'2. Assisted & Restricted Units'!P173)","v":""},{"$f":"IF('2. Assisted & Restricted Units'!Q173=\"\",\"\",'2. Assisted & Restricted Units'!Q173)","v":""},{"$f":"IF('2. Assisted & Restricted Units'!R173=\"\",\"\",'2. Assisted & Restricted Units'!R173)","v":""},{"$f":"IF(A173=\"\",\"\",'1. Checklist & Certification'!$K$1)","v":""},{"$f":"IF(A173=\"\",\"\",'1. Checklist & Certification'!$C$62)","v":""},{"$f":"IF(A173=\"\",\"\",'1. Checklist & Certification'!$K$62)","v":""},{"$f":"IF(A173=\"\",\"\",'1. Checklist & Certification'!$C$6)","v":""},{"$f":"IF(A173=\"\",\"\",'1. Checklist & Certification'!$G$4)","v":""},{"$f":"IF(A173=\"\",\"\",'1. Checklist & Certification'!$C$7)","v":""},{"$f":"IF(A173=\"\",\"\",'1. Checklist & Certification'!$C$8)","v":""},{"$f":"IF(A173=\"\",\"\",'1. Checklist & Certification'!$F$7)","v":""},{"$f":"IF(A173=\"\",\"\",'1. Checklist & Certification'!$F$8)","v":""},{"$f":"IF(A173=\"\",\"\",'1. Checklist & Certification'!$B$9)","v":""},{"$f":"IF(A173=\"\",\"\",'1. Checklist & Certification'!$F$9)","v":""},{"$f":"IF(A173=\"\",\"\",'1. Checklist & Certification'!$C$10)","v":""},{"$f":"IF(A173=\"\",\"\",'1. Checklist & Certification'!$C$11)","v":""},{"$f":"IF(A173=\"\",\"\",'1. Checklist & Certification'!$C$12)","v":""},{"$f":"IF(A173=\"\",\"\",'1. Checklist & Certification'!$B$14)","v":""},{"$f":"IF(A173=\"\",\"\",'1. Checklist & Certification'!$E$14)","v":""},{"$f":"IF(B173=\"\",\"\",'1. Checklist & Certification'!$G$14)","v":""},{"$f":"IF(A173=\"\",\"\",'MHP Family Income & Rent Limits'!$B$3)","v":""},{"$f":"IF(A173=\"\",\"\",'MHP Family Income & Rent Limits'!$J$3)","v":""},{"$f":"IF(A173=\"\",\"\",'MHP Family Income & Rent Limits'!$E$4)","v":""},{"$f":"IF(A173=\"\",\"\",'MHP Family Income & Rent Limits'!$C$7)","v":""},{"$f":"IF(A173=\"\",\"\",'MHP Family Income & Rent Limits'!$F$8)","v":""},{"$f":"IF(A173=\"\",\"\",'1. Checklist & Certification'!$G$4)","v":""},{"$f":"IF(A173=\"\",\"\",'1. Checklist & Certification'!$K$39)","v":""},{"$f":"IF(A173=\"\",\"\",'1. Checklist & Certification'!$K$43)","v":""},{"$f":"IF(A173=\"\",\"\",'1. Checklist & Certification'!$K$45)","v":""},{"$f":"IF(A173=\"\",\"\",'1. Checklist & Certification'!$K$49)","v":""},{"$f":"IF(A173=\"\",\"\",'1. Checklist & Certification'!$E$66)","v":""},{"$f":"IF(A173=\"\",\"\",'1. Checklist & Certification'!$E$67)","v":""},{"$f":"IF(A173=\"\",\"\",'1. Checklist & Certification'!$E$68)","v":""},{"$f":"IF(A173=\"\",\"\",'1. Checklist & Certification'!$G$66)","v":""},{"$f":"IF(A173=\"\",\"\",'1. Checklist & Certification'!$H$66)","v":""},{"$f":"IF(A173=\"\",\"\",'1. Checklist & Certification'!$I$66)","v":""},{"$f":"IF(A173=\"\",\"\",'1. Checklist & Certification'!$I$67)","v":""},{"$f":"IF(A173=\"\",\"\",'1. Checklist & Certification'!$I$68)","v":""},null,{"$f":"IF(C173=\"\",\"\",HLOOKUP(C173,'MHP Family Income & Rent Limits'!$E$12:$L$26,2,FALSE))","v":""},{"$f":"IF(C173=\"\",\"\",HLOOKUP(C173,'MHP Family Income & Rent Limits'!$E$12:$L$26,3,FALSE))","v":""},{"$f":"IF(C173=\"\",\"\",HLOOKUP(C173,'MHP Family Income & Rent Limits'!$E$12:$L$26,4,FALSE))","v":""},{"$f":"IF(C173=\"\",\"\",HLOOKUP(C173,'MHP Family Income & Rent Limits'!$E$12:$L$26,5,FALSE))","v":""},{"$f":"IF(C173=\"\",\"\",HLOOKUP(C173,'MHP Family Income & Rent Limits'!$E$12:$L$26,6,FALSE))","v":""},{"$f":"IF(C173=\"\",\"\",HLOOKUP(C173,'MHP Family Income & Rent Limits'!$E$12:$L$26,7,FALSE))","v":""},{"$f":"IF(C173=\"\",\"\",HLOOKUP(C173,'MHP Family Income & Rent Limits'!$E$12:$L$26,8,FALSE))","v":""},{"$f":"IF(C173=\"\",\"\",HLOOKUP(C173,'MHP Family Income & Rent Limits'!$E$12:$L$26,9,FALSE))","v":""},{"$f":"IF(C173=\"\",\"\",HLOOKUP(C173,'MHP Family Income & Rent Limits'!$E$12:$L$26,10,FALSE))","v":""},{"$f":"IF(C173=\"\",\"\",HLOOKUP(C173,'MHP Family Income & Rent Limits'!$E$12:$L$26,11,FALSE))","v":""},{"$f":"IF(C173=\"\",\"\",HLOOKUP(C173,'MHP Family Income & Rent Limits'!$E$12:$L$26,12,FALSE))","v":""},{"$f":"IF(C173=\"\",\"\",HLOOKUP(C173,'MHP Family Income & Rent Limits'!$E$12:$L$26,13,FALSE))","v":""},{"$f":"IF(C173=\"\",\"\",HLOOKUP(C173,'MHP Family Income & Rent Limits'!$E$12:$L$26,14,FALSE))","v":""},{"$f":"IF(C173=\"\",\"\",HLOOKUP(C173,'MHP Family Income & Rent Limits'!$E$12:$L$26,15,FALSE))","v":""}]
[{"$f":"IF('2. Assisted & Restricted Units'!A174=\"\",\"\",'2. Assisted & Restricted Units'!A174)","v":""},{"$f":"IF('2. Assisted & Restricted Units'!B174=\"\",\"\",'2. Assisted & Restricted Units'!B174)","v":""},{"$f":"IF('2. Assisted & Restricted Units'!D174=\"\",\"\",'2. Assisted & Restricted Units'!D174)","v":""},{"$f":"IF('2. Assisted & Restricted Units'!E174=\"\",\"\",'2. Assisted & Restricted Units'!E174)","v":""},{"$f":"IF('2. Assisted & Restricted Units'!H174=\"\",\"\",'2. Assisted & Restricted Units'!H174)","v":""},{"$f":"_xlfn.IFS(E174=\"\",\"\",E174>BO174,$BP$6,E174>BN174,$BO$6,E174>BM174,$BN$6,E174>BL174,$BM$6,E174>BK174,$BL$6,E174>BJ174,$BK$6,E174>BI174,$BJ$6,E174>BH174,$BI$6,E174>BG174,$BH$6,E174>BF174,$BG$6,E174>BE174,$BF$6,E174>BD174,$BE$6,E174>BC174,$BD$6,E174>=0,$BC$6)","v":""},{"$f":"IF('2. Assisted & Restricted Units'!T174=\"\",\"\",'2. Assisted & Restricted Units'!T174)","v":""},{"$f":"IF('2. Assisted & Restricted Units'!I174=\"\",\"\",'2. Assisted & Restricted Units'!I174)","v":""},{"$f":"IF('2. Assisted & Restricted Units'!AP174=\"\",\"\",'2. Assisted & Restricted Units'!AP174)","v":0},{"$f":"IF('2. Assisted & Restricted Units'!AT174=\"\",\"\",'2. Assisted & Restricted Units'!AT174)","v":""},0,{"$f":"IF('2. Assisted & Restricted Units'!AV174=\"\",\"\",'2. Assisted & Restricted Units'!AV174)","v":""},{"$f":"IF('2. Assisted & Restricted Units'!L174=\"\",\"\",'2. Assisted & Restricted Units'!L174)","v":""},{"$f":"IF('2. Assisted & Restricted Units'!M174=\"\",\"\",'2. Assisted & Restricted Units'!M174)","v":""},{"$f":"IF('2. Assisted & Restricted Units'!O174=\"\",\"\",'2. Assisted & Restricted Units'!O174)","v":""},{"$f":"IF('2. Assisted & Restricted Units'!P174=\"\",\"\",'2. Assisted & Restricted Units'!P174)","v":""},{"$f":"IF('2. Assisted & Restricted Units'!Q174=\"\",\"\",'2. Assisted & Restricted Units'!Q174)","v":""},{"$f":"IF('2. Assisted & Restricted Units'!R174=\"\",\"\",'2. Assisted & Restricted Units'!R174)","v":""},{"$f":"IF(A174=\"\",\"\",'1. Checklist & Certification'!$K$1)","v":""},{"$f":"IF(A174=\"\",\"\",'1. Checklist & Certification'!$C$62)","v":""},{"$f":"IF(A174=\"\",\"\",'1. Checklist & Certification'!$K$62)","v":""},{"$f":"IF(A174=\"\",\"\",'1. Checklist & Certification'!$C$6)","v":""},{"$f":"IF(A174=\"\",\"\",'1. Checklist & Certification'!$G$4)","v":""},{"$f":"IF(A174=\"\",\"\",'1. Checklist & Certification'!$C$7)","v":""},{"$f":"IF(A174=\"\",\"\",'1. Checklist & Certification'!$C$8)","v":""},{"$f":"IF(A174=\"\",\"\",'1. Checklist & Certification'!$F$7)","v":""},{"$f":"IF(A174=\"\",\"\",'1. Checklist & Certification'!$F$8)","v":""},{"$f":"IF(A174=\"\",\"\",'1. Checklist & Certification'!$B$9)","v":""},{"$f":"IF(A174=\"\",\"\",'1. Checklist & Certification'!$F$9)","v":""},{"$f":"IF(A174=\"\",\"\",'1. Checklist & Certification'!$C$10)","v":""},{"$f":"IF(A174=\"\",\"\",'1. Checklist & Certification'!$C$11)","v":""},{"$f":"IF(A174=\"\",\"\",'1. Checklist & Certification'!$C$12)","v":""},{"$f":"IF(A174=\"\",\"\",'1. Checklist & Certification'!$B$14)","v":""},{"$f":"IF(A174=\"\",\"\",'1. Checklist & Certification'!$E$14)","v":""},{"$f":"IF(B174=\"\",\"\",'1. Checklist & Certification'!$G$14)","v":""},{"$f":"IF(A174=\"\",\"\",'MHP Family Income & Rent Limits'!$B$3)","v":""},{"$f":"IF(A174=\"\",\"\",'MHP Family Income & Rent Limits'!$J$3)","v":""},{"$f":"IF(A174=\"\",\"\",'MHP Family Income & Rent Limits'!$E$4)","v":""},{"$f":"IF(A174=\"\",\"\",'MHP Family Income & Rent Limits'!$C$7)","v":""},{"$f":"IF(A174=\"\",\"\",'MHP Family Income & Rent Limits'!$F$8)","v":""},{"$f":"IF(A174=\"\",\"\",'1. Checklist & Certification'!$G$4)","v":""},{"$f":"IF(A174=\"\",\"\",'1. Checklist & Certification'!$K$39)","v":""},{"$f":"IF(A174=\"\",\"\",'1. Checklist & Certification'!$K$43)","v":""},{"$f":"IF(A174=\"\",\"\",'1. Checklist & Certification'!$K$45)","v":""},{"$f":"IF(A174=\"\",\"\",'1. Checklist & Certification'!$K$49)","v":""},{"$f":"IF(A174=\"\",\"\",'1. Checklist & Certification'!$E$66)","v":""},{"$f":"IF(A174=\"\",\"\",'1. Checklist & Certification'!$E$67)","v":""},{"$f":"IF(A174=\"\",\"\",'1. Checklist & Certification'!$E$68)","v":""},{"$f":"IF(A174=\"\",\"\",'1. Checklist & Certification'!$G$66)","v":""},{"$f":"IF(A174=\"\",\"\",'1. Checklist & Certification'!$H$66)","v":""},{"$f":"IF(A174=\"\",\"\",'1. Checklist & Certification'!$I$66)","v":""},{"$f":"IF(A174=\"\",\"\",'1. Checklist & Certification'!$I$67)","v":""},{"$f":"IF(A174=\"\",\"\",'1. Checklist & Certification'!$I$68)","v":""},null,{"$f":"IF(C174=\"\",\"\",HLOOKUP(C174,'MHP Family Income & Rent Limits'!$E$12:$L$26,2,FALSE))","v":""},{"$f":"IF(C174=\"\",\"\",HLOOKUP(C174,'MHP Family Income & Rent Limits'!$E$12:$L$26,3,FALSE))","v":""},{"$f":"IF(C174=\"\",\"\",HLOOKUP(C174,'MHP Family Income & Rent Limits'!$E$12:$L$26,4,FALSE))","v":""},{"$f":"IF(C174=\"\",\"\",HLOOKUP(C174,'MHP Family Income & Rent Limits'!$E$12:$L$26,5,FALSE))","v":""},{"$f":"IF(C174=\"\",\"\",HLOOKUP(C174,'MHP Family Income & Rent Limits'!$E$12:$L$26,6,FALSE))","v":""},{"$f":"IF(C174=\"\",\"\",HLOOKUP(C174,'MHP Family Income & Rent Limits'!$E$12:$L$26,7,FALSE))","v":""},{"$f":"IF(C174=\"\",\"\",HLOOKUP(C174,'MHP Family Income & Rent Limits'!$E$12:$L$26,8,FALSE))","v":""},{"$f":"IF(C174=\"\",\"\",HLOOKUP(C174,'MHP Family Income & Rent Limits'!$E$12:$L$26,9,FALSE))","v":""},{"$f":"IF(C174=\"\",\"\",HLOOKUP(C174,'MHP Family Income & Rent Limits'!$E$12:$L$26,10,FALSE))","v":""},{"$f":"IF(C174=\"\",\"\",HLOOKUP(C174,'MHP Family Income & Rent Limits'!$E$12:$L$26,11,FALSE))","v":""},{"$f":"IF(C174=\"\",\"\",HLOOKUP(C174,'MHP Family Income & Rent Limits'!$E$12:$L$26,12,FALSE))","v":""},{"$f":"IF(C174=\"\",\"\",HLOOKUP(C174,'MHP Family Income & Rent Limits'!$E$12:$L$26,13,FALSE))","v":""},{"$f":"IF(C174=\"\",\"\",HLOOKUP(C174,'MHP Family Income & Rent Limits'!$E$12:$L$26,14,FALSE))","v":""},{"$f":"IF(C174=\"\",\"\",HLOOKUP(C174,'MHP Family Income & Rent Limits'!$E$12:$L$26,15,FALSE))","v":""}]
[{"$f":"IF('2. Assisted & Restricted Units'!A175=\"\",\"\",'2. Assisted & Restricted Units'!A175)","v":""},{"$f":"IF('2. Assisted & Restricted Units'!B175=\"\",\"\",'2. Assisted & Restricted Units'!B175)","v":""},{"$f":"IF('2. Assisted & Restricted Units'!D175=\"\",\"\",'2. Assisted & Restricted Units'!D175)","v":""},{"$f":"IF('2. Assisted & Restricted Units'!E175=\"\",\"\",'2. Assisted & Restricted Units'!E175)","v":""},{"$f":"IF('2. Assisted & Restricted Units'!H175=\"\",\"\",'2. Assisted & Restricted Units'!H175)","v":""},{"$f":"_xlfn.IFS(E175=\"\",\"\",E175>BO175,$BP$6,E175>BN175,$BO$6,E175>BM175,$BN$6,E175>BL175,$BM$6,E175>BK175,$BL$6,E175>BJ175,$BK$6,E175>BI175,$BJ$6,E175>BH175,$BI$6,E175>BG175,$BH$6,E175>BF175,$BG$6,E175>BE175,$BF$6,E175>BD175,$BE$6,E175>BC175,$BD$6,E175>=0,$BC$6)","v":""},{"$f":"IF('2. Assisted & Restricted Units'!T175=\"\",\"\",'2. Assisted & Restricted Units'!T175)","v":""},{"$f":"IF('2. Assisted & Restricted Units'!I175=\"\",\"\",'2. Assisted & Restricted Units'!I175)","v":""},{"$f":"IF('2. Assisted & Restricted Units'!AP175=\"\",\"\",'2. Assisted & Restricted Units'!AP175)","v":0},{"$f":"IF('2. Assisted & Restricted Units'!AT175=\"\",\"\",'2. Assisted & Restricted Units'!AT175)","v":""},0,{"$f":"IF('2. Assisted & Restricted Units'!AV175=\"\",\"\",'2. Assisted & Restricted Units'!AV175)","v":""},{"$f":"IF('2. Assisted & Restricted Units'!L175=\"\",\"\",'2. Assisted & Restricted Units'!L175)","v":""},{"$f":"IF('2. Assisted & Restricted Units'!M175=\"\",\"\",'2. Assisted & Restricted Units'!M175)","v":""},{"$f":"IF('2. Assisted & Restricted Units'!O175=\"\",\"\",'2. Assisted & Restricted Units'!O175)","v":""},{"$f":"IF('2. Assisted & Restricted Units'!P175=\"\",\"\",'2. Assisted & Restricted Units'!P175)","v":""},{"$f":"IF('2. Assisted & Restricted Units'!Q175=\"\",\"\",'2. Assisted & Restricted Units'!Q175)","v":""},{"$f":"IF('2. Assisted & Restricted Units'!R175=\"\",\"\",'2. Assisted & Restricted Units'!R175)","v":""},{"$f":"IF(A175=\"\",\"\",'1. Checklist & Certification'!$K$1)","v":""},{"$f":"IF(A175=\"\",\"\",'1. Checklist & Certification'!$C$62)","v":""},{"$f":"IF(A175=\"\",\"\",'1. Checklist & Certification'!$K$62)","v":""},{"$f":"IF(A175=\"\",\"\",'1. Checklist & Certification'!$C$6)","v":""},{"$f":"IF(A175=\"\",\"\",'1. Checklist & Certification'!$G$4)","v":""},{"$f":"IF(A175=\"\",\"\",'1. Checklist & Certification'!$C$7)","v":""},{"$f":"IF(A175=\"\",\"\",'1. Checklist & Certification'!$C$8)","v":""},{"$f":"IF(A175=\"\",\"\",'1. Checklist & Certification'!$F$7)","v":""},{"$f":"IF(A175=\"\",\"\",'1. Checklist & Certification'!$F$8)","v":""},{"$f":"IF(A175=\"\",\"\",'1. Checklist & Certification'!$B$9)","v":""},{"$f":"IF(A175=\"\",\"\",'1. Checklist & Certification'!$F$9)","v":""},{"$f":"IF(A175=\"\",\"\",'1. Checklist & Certification'!$C$10)","v":""},{"$f":"IF(A175=\"\",\"\",'1. Checklist & Certification'!$C$11)","v":""},{"$f":"IF(A175=\"\",\"\",'1. Checklist & Certification'!$C$12)","v":""},{"$f":"IF(A175=\"\",\"\",'1. Checklist & Certification'!$B$14)","v":""},{"$f":"IF(A175=\"\",\"\",'1. Checklist & Certification'!$E$14)","v":""},{"$f":"IF(B175=\"\",\"\",'1. Checklist & Certification'!$G$14)","v":""},{"$f":"IF(A175=\"\",\"\",'MHP Family Income & Rent Limits'!$B$3)","v":""},{"$f":"IF(A175=\"\",\"\",'MHP Family Income & Rent Limits'!$J$3)","v":""},{"$f":"IF(A175=\"\",\"\",'MHP Family Income & Rent Limits'!$E$4)","v":""},{"$f":"IF(A175=\"\",\"\",'MHP Family Income & Rent Limits'!$C$7)","v":""},{"$f":"IF(A175=\"\",\"\",'MHP Family Income & Rent Limits'!$F$8)","v":""},{"$f":"IF(A175=\"\",\"\",'1. Checklist & Certification'!$G$4)","v":""},{"$f":"IF(A175=\"\",\"\",'1. Checklist & Certification'!$K$39)","v":""},{"$f":"IF(A175=\"\",\"\",'1. Checklist & Certification'!$K$43)","v":""},{"$f":"IF(A175=\"\",\"\",'1. Checklist & Certification'!$K$45)","v":""},{"$f":"IF(A175=\"\",\"\",'1. Checklist & Certification'!$K$49)","v":""},{"$f":"IF(A175=\"\",\"\",'1. Checklist & Certification'!$E$66)","v":""},{"$f":"IF(A175=\"\",\"\",'1. Checklist & Certification'!$E$67)","v":""},{"$f":"IF(A175=\"\",\"\",'1. Checklist & Certification'!$E$68)","v":""},{"$f":"IF(A175=\"\",\"\",'1. Checklist & Certification'!$G$66)","v":""},{"$f":"IF(A175=\"\",\"\",'1. Checklist & Certification'!$H$66)","v":""},{"$f":"IF(A175=\"\",\"\",'1. Checklist & Certification'!$I$66)","v":""},{"$f":"IF(A175=\"\",\"\",'1. Checklist & Certification'!$I$67)","v":""},{"$f":"IF(A175=\"\",\"\",'1. Checklist & Certification'!$I$68)","v":""},null,{"$f":"IF(C175=\"\",\"\",HLOOKUP(C175,'MHP Family Income & Rent Limits'!$E$12:$L$26,2,FALSE))","v":""},{"$f":"IF(C175=\"\",\"\",HLOOKUP(C175,'MHP Family Income & Rent Limits'!$E$12:$L$26,3,FALSE))","v":""},{"$f":"IF(C175=\"\",\"\",HLOOKUP(C175,'MHP Family Income & Rent Limits'!$E$12:$L$26,4,FALSE))","v":""},{"$f":"IF(C175=\"\",\"\",HLOOKUP(C175,'MHP Family Income & Rent Limits'!$E$12:$L$26,5,FALSE))","v":""},{"$f":"IF(C175=\"\",\"\",HLOOKUP(C175,'MHP Family Income & Rent Limits'!$E$12:$L$26,6,FALSE))","v":""},{"$f":"IF(C175=\"\",\"\",HLOOKUP(C175,'MHP Family Income & Rent Limits'!$E$12:$L$26,7,FALSE))","v":""},{"$f":"IF(C175=\"\",\"\",HLOOKUP(C175,'MHP Family Income & Rent Limits'!$E$12:$L$26,8,FALSE))","v":""},{"$f":"IF(C175=\"\",\"\",HLOOKUP(C175,'MHP Family Income & Rent Limits'!$E$12:$L$26,9,FALSE))","v":""},{"$f":"IF(C175=\"\",\"\",HLOOKUP(C175,'MHP Family Income & Rent Limits'!$E$12:$L$26,10,FALSE))","v":""},{"$f":"IF(C175=\"\",\"\",HLOOKUP(C175,'MHP Family Income & Rent Limits'!$E$12:$L$26,11,FALSE))","v":""},{"$f":"IF(C175=\"\",\"\",HLOOKUP(C175,'MHP Family Income & Rent Limits'!$E$12:$L$26,12,FALSE))","v":""},{"$f":"IF(C175=\"\",\"\",HLOOKUP(C175,'MHP Family Income & Rent Limits'!$E$12:$L$26,13,FALSE))","v":""},{"$f":"IF(C175=\"\",\"\",HLOOKUP(C175,'MHP Family Income & Rent Limits'!$E$12:$L$26,14,FALSE))","v":""},{"$f":"IF(C175=\"\",\"\",HLOOKUP(C175,'MHP Family Income & Rent Limits'!$E$12:$L$26,15,FALSE))","v":""}]
[{"$f":"IF('2. Assisted & Restricted Units'!A176=\"\",\"\",'2. Assisted & Restricted Units'!A176)","v":""},{"$f":"IF('2. Assisted & Restricted Units'!B176=\"\",\"\",'2. Assisted & Restricted Units'!B176)","v":""},{"$f":"IF('2. Assisted & Restricted Units'!D176=\"\",\"\",'2. Assisted & Restricted Units'!D176)","v":""},{"$f":"IF('2. Assisted & Restricted Units'!E176=\"\",\"\",'2. Assisted & Restricted Units'!E176)","v":""},{"$f":"IF('2. Assisted & Restricted Units'!H176=\"\",\"\",'2. Assisted & Restricted Units'!H176)","v":""},{"$f":"_xlfn.IFS(E176=\"\",\"\",E176>BO176,$BP$6,E176>BN176,$BO$6,E176>BM176,$BN$6,E176>BL176,$BM$6,E176>BK176,$BL$6,E176>BJ176,$BK$6,E176>BI176,$BJ$6,E176>BH176,$BI$6,E176>BG176,$BH$6,E176>BF176,$BG$6,E176>BE176,$BF$6,E176>BD176,$BE$6,E176>BC176,$BD$6,E176>=0,$BC$6)","v":""},{"$f":"IF('2. Assisted & Restricted Units'!T176=\"\",\"\",'2. Assisted & Restricted Units'!T176)","v":""},{"$f":"IF('2. Assisted & Restricted Units'!I176=\"\",\"\",'2. Assisted & Restricted Units'!I176)","v":""},{"$f":"IF('2. Assisted & Restricted Units'!AP176=\"\",\"\",'2. Assisted & Restricted Units'!AP176)","v":0},{"$f":"IF('2. Assisted & Restricted Units'!AT176=\"\",\"\",'2. Assisted & Restricted Units'!AT176)","v":""},0,{"$f":"IF('2. Assisted & Restricted Units'!AV176=\"\",\"\",'2. Assisted & Restricted Units'!AV176)","v":""},{"$f":"IF('2. Assisted & Restricted Units'!L176=\"\",\"\",'2. Assisted & Restricted Units'!L176)","v":""},{"$f":"IF('2. Assisted & Restricted Units'!M176=\"\",\"\",'2. Assisted & Restricted Units'!M176)","v":""},{"$f":"IF('2. Assisted & Restricted Units'!O176=\"\",\"\",'2. Assisted & Restricted Units'!O176)","v":""},{"$f":"IF('2. Assisted & Restricted Units'!P176=\"\",\"\",'2. Assisted & Restricted Units'!P176)","v":""},{"$f":"IF('2. Assisted & Restricted Units'!Q176=\"\",\"\",'2. Assisted & Restricted Units'!Q176)","v":""},{"$f":"IF('2. Assisted & Restricted Units'!R176=\"\",\"\",'2. Assisted & Restricted Units'!R176)","v":""},{"$f":"IF(A176=\"\",\"\",'1. Checklist & Certification'!$K$1)","v":""},{"$f":"IF(A176=\"\",\"\",'1. Checklist & Certification'!$C$62)","v":""},{"$f":"IF(A176=\"\",\"\",'1. Checklist & Certification'!$K$62)","v":""},{"$f":"IF(A176=\"\",\"\",'1. Checklist & Certification'!$C$6)","v":""},{"$f":"IF(A176=\"\",\"\",'1. Checklist & Certification'!$G$4)","v":""},{"$f":"IF(A176=\"\",\"\",'1. Checklist & Certification'!$C$7)","v":""},{"$f":"IF(A176=\"\",\"\",'1. Checklist & Certification'!$C$8)","v":""},{"$f":"IF(A176=\"\",\"\",'1. Checklist & Certification'!$F$7)","v":""},{"$f":"IF(A176=\"\",\"\",'1. Checklist & Certification'!$F$8)","v":""},{"$f":"IF(A176=\"\",\"\",'1. Checklist & Certification'!$B$9)","v":""},{"$f":"IF(A176=\"\",\"\",'1. Checklist & Certification'!$F$9)","v":""},{"$f":"IF(A176=\"\",\"\",'1. Checklist & Certification'!$C$10)","v":""},{"$f":"IF(A176=\"\",\"\",'1. Checklist & Certification'!$C$11)","v":""},{"$f":"IF(A176=\"\",\"\",'1. Checklist & Certification'!$C$12)","v":""},{"$f":"IF(A176=\"\",\"\",'1. Checklist & Certification'!$B$14)","v":""},{"$f":"IF(A176=\"\",\"\",'1. Checklist & Certification'!$E$14)","v":""},{"$f":"IF(B176=\"\",\"\",'1. Checklist & Certification'!$G$14)","v":""},{"$f":"IF(A176=\"\",\"\",'MHP Family Income & Rent Limits'!$B$3)","v":""},{"$f":"IF(A176=\"\",\"\",'MHP Family Income & Rent Limits'!$J$3)","v":""},{"$f":"IF(A176=\"\",\"\",'MHP Family Income & Rent Limits'!$E$4)","v":""},{"$f":"IF(A176=\"\",\"\",'MHP Family Income & Rent Limits'!$C$7)","v":""},{"$f":"IF(A176=\"\",\"\",'MHP Family Income & Rent Limits'!$F$8)","v":""},{"$f":"IF(A176=\"\",\"\",'1. Checklist & Certification'!$G$4)","v":""},{"$f":"IF(A176=\"\",\"\",'1. Checklist & Certification'!$K$39)","v":""},{"$f":"IF(A176=\"\",\"\",'1. Checklist & Certification'!$K$43)","v":""},{"$f":"IF(A176=\"\",\"\",'1. Checklist & Certification'!$K$45)","v":""},{"$f":"IF(A176=\"\",\"\",'1. Checklist & Certification'!$K$49)","v":""},{"$f":"IF(A176=\"\",\"\",'1. Checklist & Certification'!$E$66)","v":""},{"$f":"IF(A176=\"\",\"\",'1. Checklist & Certification'!$E$67)","v":""},{"$f":"IF(A176=\"\",\"\",'1. Checklist & Certification'!$E$68)","v":""},{"$f":"IF(A176=\"\",\"\",'1. Checklist & Certification'!$G$66)","v":""},{"$f":"IF(A176=\"\",\"\",'1. Checklist & Certification'!$H$66)","v":""},{"$f":"IF(A176=\"\",\"\",'1. Checklist & Certification'!$I$66)","v":""},{"$f":"IF(A176=\"\",\"\",'1. Checklist & Certification'!$I$67)","v":""},{"$f":"IF(A176=\"\",\"\",'1. Checklist & Certification'!$I$68)","v":""},null,{"$f":"IF(C176=\"\",\"\",HLOOKUP(C176,'MHP Family Income & Rent Limits'!$E$12:$L$26,2,FALSE))","v":""},{"$f":"IF(C176=\"\",\"\",HLOOKUP(C176,'MHP Family Income & Rent Limits'!$E$12:$L$26,3,FALSE))","v":""},{"$f":"IF(C176=\"\",\"\",HLOOKUP(C176,'MHP Family Income & Rent Limits'!$E$12:$L$26,4,FALSE))","v":""},{"$f":"IF(C176=\"\",\"\",HLOOKUP(C176,'MHP Family Income & Rent Limits'!$E$12:$L$26,5,FALSE))","v":""},{"$f":"IF(C176=\"\",\"\",HLOOKUP(C176,'MHP Family Income & Rent Limits'!$E$12:$L$26,6,FALSE))","v":""},{"$f":"IF(C176=\"\",\"\",HLOOKUP(C176,'MHP Family Income & Rent Limits'!$E$12:$L$26,7,FALSE))","v":""},{"$f":"IF(C176=\"\",\"\",HLOOKUP(C176,'MHP Family Income & Rent Limits'!$E$12:$L$26,8,FALSE))","v":""},{"$f":"IF(C176=\"\",\"\",HLOOKUP(C176,'MHP Family Income & Rent Limits'!$E$12:$L$26,9,FALSE))","v":""},{"$f":"IF(C176=\"\",\"\",HLOOKUP(C176,'MHP Family Income & Rent Limits'!$E$12:$L$26,10,FALSE))","v":""},{"$f":"IF(C176=\"\",\"\",HLOOKUP(C176,'MHP Family Income & Rent Limits'!$E$12:$L$26,11,FALSE))","v":""},{"$f":"IF(C176=\"\",\"\",HLOOKUP(C176,'MHP Family Income & Rent Limits'!$E$12:$L$26,12,FALSE))","v":""},{"$f":"IF(C176=\"\",\"\",HLOOKUP(C176,'MHP Family Income & Rent Limits'!$E$12:$L$26,13,FALSE))","v":""},{"$f":"IF(C176=\"\",\"\",HLOOKUP(C176,'MHP Family Income & Rent Limits'!$E$12:$L$26,14,FALSE))","v":""},{"$f":"IF(C176=\"\",\"\",HLOOKUP(C176,'MHP Family Income & Rent Limits'!$E$12:$L$26,15,FALSE))","v":""}]
[{"$f":"IF('2. Assisted & Restricted Units'!A177=\"\",\"\",'2. Assisted & Restricted Units'!A177)","v":""},{"$f":"IF('2. Assisted & Restricted Units'!B177=\"\",\"\",'2. Assisted & Restricted Units'!B177)","v":""},{"$f":"IF('2. Assisted & Restricted Units'!D177=\"\",\"\",'2. Assisted & Restricted Units'!D177)","v":""},{"$f":"IF('2. Assisted & Restricted Units'!E177=\"\",\"\",'2. Assisted & Restricted Units'!E177)","v":""},{"$f":"IF('2. Assisted & Restricted Units'!H177=\"\",\"\",'2. Assisted & Restricted Units'!H177)","v":""},{"$f":"_xlfn.IFS(E177=\"\",\"\",E177>BO177,$BP$6,E177>BN177,$BO$6,E177>BM177,$BN$6,E177>BL177,$BM$6,E177>BK177,$BL$6,E177>BJ177,$BK$6,E177>BI177,$BJ$6,E177>BH177,$BI$6,E177>BG177,$BH$6,E177>BF177,$BG$6,E177>BE177,$BF$6,E177>BD177,$BE$6,E177>BC177,$BD$6,E177>=0,$BC$6)","v":""},{"$f":"IF('2. Assisted & Restricted Units'!T177=\"\",\"\",'2. Assisted & Restricted Units'!T177)","v":""},{"$f":"IF('2. Assisted & Restricted Units'!I177=\"\",\"\",'2. Assisted & Restricted Units'!I177)","v":""},{"$f":"IF('2. Assisted & Restricted Units'!AP177=\"\",\"\",'2. Assisted & Restricted Units'!AP177)","v":0},{"$f":"IF('2. Assisted & Restricted Units'!AT177=\"\",\"\",'2. Assisted & Restricted Units'!AT177)","v":""},0,{"$f":"IF('2. Assisted & Restricted Units'!AV177=\"\",\"\",'2. Assisted & Restricted Units'!AV177)","v":""},{"$f":"IF('2. Assisted & Restricted Units'!L177=\"\",\"\",'2. Assisted & Restricted Units'!L177)","v":""},{"$f":"IF('2. Assisted & Restricted Units'!M177=\"\",\"\",'2. Assisted & Restricted Units'!M177)","v":""},{"$f":"IF('2. Assisted & Restricted Units'!O177=\"\",\"\",'2. Assisted & Restricted Units'!O177)","v":""},{"$f":"IF('2. Assisted & Restricted Units'!P177=\"\",\"\",'2. Assisted & Restricted Units'!P177)","v":""},{"$f":"IF('2. Assisted & Restricted Units'!Q177=\"\",\"\",'2. Assisted & Restricted Units'!Q177)","v":""},{"$f":"IF('2. Assisted & Restricted Units'!R177=\"\",\"\",'2. Assisted & Restricted Units'!R177)","v":""},{"$f":"IF(A177=\"\",\"\",'1. Checklist & Certification'!$K$1)","v":""},{"$f":"IF(A177=\"\",\"\",'1. Checklist & Certification'!$C$62)","v":""},{"$f":"IF(A177=\"\",\"\",'1. Checklist & Certification'!$K$62)","v":""},{"$f":"IF(A177=\"\",\"\",'1. Checklist & Certification'!$C$6)","v":""},{"$f":"IF(A177=\"\",\"\",'1. Checklist & Certification'!$G$4)","v":""},{"$f":"IF(A177=\"\",\"\",'1. Checklist & Certification'!$C$7)","v":""},{"$f":"IF(A177=\"\",\"\",'1. Checklist & Certification'!$C$8)","v":""},{"$f":"IF(A177=\"\",\"\",'1. Checklist & Certification'!$F$7)","v":""},{"$f":"IF(A177=\"\",\"\",'1. Checklist & Certification'!$F$8)","v":""},{"$f":"IF(A177=\"\",\"\",'1. Checklist & Certification'!$B$9)","v":""},{"$f":"IF(A177=\"\",\"\",'1. Checklist & Certification'!$F$9)","v":""},{"$f":"IF(A177=\"\",\"\",'1. Checklist & Certification'!$C$10)","v":""},{"$f":"IF(A177=\"\",\"\",'1. Checklist & Certification'!$C$11)","v":""},{"$f":"IF(A177=\"\",\"\",'1. Checklist & Certification'!$C$12)","v":""},{"$f":"IF(A177=\"\",\"\",'1. Checklist & Certification'!$B$14)","v":""},{"$f":"IF(A177=\"\",\"\",'1. Checklist & Certification'!$E$14)","v":""},{"$f":"IF(B177=\"\",\"\",'1. Checklist & Certification'!$G$14)","v":""},{"$f":"IF(A177=\"\",\"\",'MHP Family Income & Rent Limits'!$B$3)","v":""},{"$f":"IF(A177=\"\",\"\",'MHP Family Income & Rent Limits'!$J$3)","v":""},{"$f":"IF(A177=\"\",\"\",'MHP Family Income & Rent Limits'!$E$4)","v":""},{"$f":"IF(A177=\"\",\"\",'MHP Family Income & Rent Limits'!$C$7)","v":""},{"$f":"IF(A177=\"\",\"\",'MHP Family Income & Rent Limits'!$F$8)","v":""},{"$f":"IF(A177=\"\",\"\",'1. Checklist & Certification'!$G$4)","v":""},{"$f":"IF(A177=\"\",\"\",'1. Checklist & Certification'!$K$39)","v":""},{"$f":"IF(A177=\"\",\"\",'1. Checklist & Certification'!$K$43)","v":""},{"$f":"IF(A177=\"\",\"\",'1. Checklist & Certification'!$K$45)","v":""},{"$f":"IF(A177=\"\",\"\",'1. Checklist & Certification'!$K$49)","v":""},{"$f":"IF(A177=\"\",\"\",'1. Checklist & Certification'!$E$66)","v":""},{"$f":"IF(A177=\"\",\"\",'1. Checklist & Certification'!$E$67)","v":""},{"$f":"IF(A177=\"\",\"\",'1. Checklist & Certification'!$E$68)","v":""},{"$f":"IF(A177=\"\",\"\",'1. Checklist & Certification'!$G$66)","v":""},{"$f":"IF(A177=\"\",\"\",'1. Checklist & Certification'!$H$66)","v":""},{"$f":"IF(A177=\"\",\"\",'1. Checklist & Certification'!$I$66)","v":""},{"$f":"IF(A177=\"\",\"\",'1. Checklist & Certification'!$I$67)","v":""},{"$f":"IF(A177=\"\",\"\",'1. Checklist & Certification'!$I$68)","v":""},null,{"$f":"IF(C177=\"\",\"\",HLOOKUP(C177,'MHP Family Income & Rent Limits'!$E$12:$L$26,2,FALSE))","v":""},{"$f":"IF(C177=\"\",\"\",HLOOKUP(C177,'MHP Family Income & Rent Limits'!$E$12:$L$26,3,FALSE))","v":""},{"$f":"IF(C177=\"\",\"\",HLOOKUP(C177,'MHP Family Income & Rent Limits'!$E$12:$L$26,4,FALSE))","v":""},{"$f":"IF(C177=\"\",\"\",HLOOKUP(C177,'MHP Family Income & Rent Limits'!$E$12:$L$26,5,FALSE))","v":""},{"$f":"IF(C177=\"\",\"\",HLOOKUP(C177,'MHP Family Income & Rent Limits'!$E$12:$L$26,6,FALSE))","v":""},{"$f":"IF(C177=\"\",\"\",HLOOKUP(C177,'MHP Family Income & Rent Limits'!$E$12:$L$26,7,FALSE))","v":""},{"$f":"IF(C177=\"\",\"\",HLOOKUP(C177,'MHP Family Income & Rent Limits'!$E$12:$L$26,8,FALSE))","v":""},{"$f":"IF(C177=\"\",\"\",HLOOKUP(C177,'MHP Family Income & Rent Limits'!$E$12:$L$26,9,FALSE))","v":""},{"$f":"IF(C177=\"\",\"\",HLOOKUP(C177,'MHP Family Income & Rent Limits'!$E$12:$L$26,10,FALSE))","v":""},{"$f":"IF(C177=\"\",\"\",HLOOKUP(C177,'MHP Family Income & Rent Limits'!$E$12:$L$26,11,FALSE))","v":""},{"$f":"IF(C177=\"\",\"\",HLOOKUP(C177,'MHP Family Income & Rent Limits'!$E$12:$L$26,12,FALSE))","v":""},{"$f":"IF(C177=\"\",\"\",HLOOKUP(C177,'MHP Family Income & Rent Limits'!$E$12:$L$26,13,FALSE))","v":""},{"$f":"IF(C177=\"\",\"\",HLOOKUP(C177,'MHP Family Income & Rent Limits'!$E$12:$L$26,14,FALSE))","v":""},{"$f":"IF(C177=\"\",\"\",HLOOKUP(C177,'MHP Family Income & Rent Limits'!$E$12:$L$26,15,FALSE))","v":""}]
[{"$f":"IF('2. Assisted & Restricted Units'!A178=\"\",\"\",'2. Assisted & Restricted Units'!A178)","v":""},{"$f":"IF('2. Assisted & Restricted Units'!B178=\"\",\"\",'2. Assisted & Restricted Units'!B178)","v":""},{"$f":"IF('2. Assisted & Restricted Units'!D178=\"\",\"\",'2. Assisted & Restricted Units'!D178)","v":""},{"$f":"IF('2. Assisted & Restricted Units'!E178=\"\",\"\",'2. Assisted & Restricted Units'!E178)","v":""},{"$f":"IF('2. Assisted & Restricted Units'!H178=\"\",\"\",'2. Assisted & Restricted Units'!H178)","v":""},{"$f":"_xlfn.IFS(E178=\"\",\"\",E178>BO178,$BP$6,E178>BN178,$BO$6,E178>BM178,$BN$6,E178>BL178,$BM$6,E178>BK178,$BL$6,E178>BJ178,$BK$6,E178>BI178,$BJ$6,E178>BH178,$BI$6,E178>BG178,$BH$6,E178>BF178,$BG$6,E178>BE178,$BF$6,E178>BD178,$BE$6,E178>BC178,$BD$6,E178>=0,$BC$6)","v":""},{"$f":"IF('2. Assisted & Restricted Units'!T178=\"\",\"\",'2. Assisted & Restricted Units'!T178)","v":""},{"$f":"IF('2. Assisted & Restricted Units'!I178=\"\",\"\",'2. Assisted & Restricted Units'!I178)","v":""},{"$f":"IF('2. Assisted & Restricted Units'!AP178=\"\",\"\",'2. Assisted & Restricted Units'!AP178)","v":0},{"$f":"IF('2. Assisted & Restricted Units'!AT178=\"\",\"\",'2. Assisted & Restricted Units'!AT178)","v":""},0,{"$f":"IF('2. Assisted & Restricted Units'!AV178=\"\",\"\",'2. Assisted & Restricted Units'!AV178)","v":""},{"$f":"IF('2. Assisted & Restricted Units'!L178=\"\",\"\",'2. Assisted & Restricted Units'!L178)","v":""},{"$f":"IF('2. Assisted & Restricted Units'!M178=\"\",\"\",'2. Assisted & Restricted Units'!M178)","v":""},{"$f":"IF('2. Assisted & Restricted Units'!O178=\"\",\"\",'2. Assisted & Restricted Units'!O178)","v":""},{"$f":"IF('2. Assisted & Restricted Units'!P178=\"\",\"\",'2. Assisted & Restricted Units'!P178)","v":""},{"$f":"IF('2. Assisted & Restricted Units'!Q178=\"\",\"\",'2. Assisted & Restricted Units'!Q178)","v":""},{"$f":"IF('2. Assisted & Restricted Units'!R178=\"\",\"\",'2. Assisted & Restricted Units'!R178)","v":""},{"$f":"IF(A178=\"\",\"\",'1. Checklist & Certification'!$K$1)","v":""},{"$f":"IF(A178=\"\",\"\",'1. Checklist & Certification'!$C$62)","v":""},{"$f":"IF(A178=\"\",\"\",'1. Checklist & Certification'!$K$62)","v":""},{"$f":"IF(A178=\"\",\"\",'1. Checklist & Certification'!$C$6)","v":""},{"$f":"IF(A178=\"\",\"\",'1. Checklist & Certification'!$G$4)","v":""},{"$f":"IF(A178=\"\",\"\",'1. Checklist & Certification'!$C$7)","v":""},{"$f":"IF(A178=\"\",\"\",'1. Checklist & Certification'!$C$8)","v":""},{"$f":"IF(A178=\"\",\"\",'1. Checklist & Certification'!$F$7)","v":""},{"$f":"IF(A178=\"\",\"\",'1. Checklist & Certification'!$F$8)","v":""},{"$f":"IF(A178=\"\",\"\",'1. Checklist & Certification'!$B$9)","v":""},{"$f":"IF(A178=\"\",\"\",'1. Checklist & Certification'!$F$9)","v":""},{"$f":"IF(A178=\"\",\"\",'1. Checklist & Certification'!$C$10)","v":""},{"$f":"IF(A178=\"\",\"\",'1. Checklist & Certification'!$C$11)","v":""},{"$f":"IF(A178=\"\",\"\",'1. Checklist & Certification'!$C$12)","v":""},{"$f":"IF(A178=\"\",\"\",'1. Checklist & Certification'!$B$14)","v":""},{"$f":"IF(A178=\"\",\"\",'1. Checklist & Certification'!$E$14)","v":""},{"$f":"IF(B178=\"\",\"\",'1. Checklist & Certification'!$G$14)","v":""},{"$f":"IF(A178=\"\",\"\",'MHP Family Income & Rent Limits'!$B$3)","v":""},{"$f":"IF(A178=\"\",\"\",'MHP Family Income & Rent Limits'!$J$3)","v":""},{"$f":"IF(A178=\"\",\"\",'MHP Family Income & Rent Limits'!$E$4)","v":""},{"$f":"IF(A178=\"\",\"\",'MHP Family Income & Rent Limits'!$C$7)","v":""},{"$f":"IF(A178=\"\",\"\",'MHP Family Income & Rent Limits'!$F$8)","v":""},{"$f":"IF(A178=\"\",\"\",'1. Checklist & Certification'!$G$4)","v":""},{"$f":"IF(A178=\"\",\"\",'1. Checklist & Certification'!$K$39)","v":""},{"$f":"IF(A178=\"\",\"\",'1. Checklist & Certification'!$K$43)","v":""},{"$f":"IF(A178=\"\",\"\",'1. Checklist & Certification'!$K$45)","v":""},{"$f":"IF(A178=\"\",\"\",'1. Checklist & Certification'!$K$49)","v":""},{"$f":"IF(A178=\"\",\"\",'1. Checklist & Certification'!$E$66)","v":""},{"$f":"IF(A178=\"\",\"\",'1. Checklist & Certification'!$E$67)","v":""},{"$f":"IF(A178=\"\",\"\",'1. Checklist & Certification'!$E$68)","v":""},{"$f":"IF(A178=\"\",\"\",'1. Checklist & Certification'!$G$66)","v":""},{"$f":"IF(A178=\"\",\"\",'1. Checklist & Certification'!$H$66)","v":""},{"$f":"IF(A178=\"\",\"\",'1. Checklist & Certification'!$I$66)","v":""},{"$f":"IF(A178=\"\",\"\",'1. Checklist & Certification'!$I$67)","v":""},{"$f":"IF(A178=\"\",\"\",'1. Checklist & Certification'!$I$68)","v":""},null,{"$f":"IF(C178=\"\",\"\",HLOOKUP(C178,'MHP Family Income & Rent Limits'!$E$12:$L$26,2,FALSE))","v":""},{"$f":"IF(C178=\"\",\"\",HLOOKUP(C178,'MHP Family Income & Rent Limits'!$E$12:$L$26,3,FALSE))","v":""},{"$f":"IF(C178=\"\",\"\",HLOOKUP(C178,'MHP Family Income & Rent Limits'!$E$12:$L$26,4,FALSE))","v":""},{"$f":"IF(C178=\"\",\"\",HLOOKUP(C178,'MHP Family Income & Rent Limits'!$E$12:$L$26,5,FALSE))","v":""},{"$f":"IF(C178=\"\",\"\",HLOOKUP(C178,'MHP Family Income & Rent Limits'!$E$12:$L$26,6,FALSE))","v":""},{"$f":"IF(C178=\"\",\"\",HLOOKUP(C178,'MHP Family Income & Rent Limits'!$E$12:$L$26,7,FALSE))","v":""},{"$f":"IF(C178=\"\",\"\",HLOOKUP(C178,'MHP Family Income & Rent Limits'!$E$12:$L$26,8,FALSE))","v":""},{"$f":"IF(C178=\"\",\"\",HLOOKUP(C178,'MHP Family Income & Rent Limits'!$E$12:$L$26,9,FALSE))","v":""},{"$f":"IF(C178=\"\",\"\",HLOOKUP(C178,'MHP Family Income & Rent Limits'!$E$12:$L$26,10,FALSE))","v":""},{"$f":"IF(C178=\"\",\"\",HLOOKUP(C178,'MHP Family Income & Rent Limits'!$E$12:$L$26,11,FALSE))","v":""},{"$f":"IF(C178=\"\",\"\",HLOOKUP(C178,'MHP Family Income & Rent Limits'!$E$12:$L$26,12,FALSE))","v":""},{"$f":"IF(C178=\"\",\"\",HLOOKUP(C178,'MHP Family Income & Rent Limits'!$E$12:$L$26,13,FALSE))","v":""},{"$f":"IF(C178=\"\",\"\",HLOOKUP(C178,'MHP Family Income & Rent Limits'!$E$12:$L$26,14,FALSE))","v":""},{"$f":"IF(C178=\"\",\"\",HLOOKUP(C178,'MHP Family Income & Rent Limits'!$E$12:$L$26,15,FALSE))","v":""}]
[{"$f":"IF('2. Assisted & Restricted Units'!A179=\"\",\"\",'2. Assisted & Restricted Units'!A179)","v":""},{"$f":"IF('2. Assisted & Restricted Units'!B179=\"\",\"\",'2. Assisted & Restricted Units'!B179)","v":""},{"$f":"IF('2. Assisted & Restricted Units'!D179=\"\",\"\",'2. Assisted & Restricted Units'!D179)","v":""},{"$f":"IF('2. Assisted & Restricted Units'!E179=\"\",\"\",'2. Assisted & Restricted Units'!E179)","v":""},{"$f":"IF('2. Assisted & Restricted Units'!H179=\"\",\"\",'2. Assisted & Restricted Units'!H179)","v":""},{"$f":"_xlfn.IFS(E179=\"\",\"\",E179>BO179,$BP$6,E179>BN179,$BO$6,E179>BM179,$BN$6,E179>BL179,$BM$6,E179>BK179,$BL$6,E179>BJ179,$BK$6,E179>BI179,$BJ$6,E179>BH179,$BI$6,E179>BG179,$BH$6,E179>BF179,$BG$6,E179>BE179,$BF$6,E179>BD179,$BE$6,E179>BC179,$BD$6,E179>=0,$BC$6)","v":""},{"$f":"IF('2. Assisted & Restricted Units'!T179=\"\",\"\",'2. Assisted & Restricted Units'!T179)","v":""},{"$f":"IF('2. Assisted & Restricted Units'!I179=\"\",\"\",'2. Assisted & Restricted Units'!I179)","v":""},{"$f":"IF('2. Assisted & Restricted Units'!AP179=\"\",\"\",'2. Assisted & Restricted Units'!AP179)","v":0},{"$f":"IF('2. Assisted & Restricted Units'!AT179=\"\",\"\",'2. Assisted & Restricted Units'!AT179)","v":""},0,{"$f":"IF('2. Assisted & Restricted Units'!AV179=\"\",\"\",'2. Assisted & Restricted Units'!AV179)","v":""},{"$f":"IF('2. Assisted & Restricted Units'!L179=\"\",\"\",'2. Assisted & Restricted Units'!L179)","v":""},{"$f":"IF('2. Assisted & Restricted Units'!M179=\"\",\"\",'2. Assisted & Restricted Units'!M179)","v":""},{"$f":"IF('2. Assisted & Restricted Units'!O179=\"\",\"\",'2. Assisted & Restricted Units'!O179)","v":""},{"$f":"IF('2. Assisted & Restricted Units'!P179=\"\",\"\",'2. Assisted & Restricted Units'!P179)","v":""},{"$f":"IF('2. Assisted & Restricted Units'!Q179=\"\",\"\",'2. Assisted & Restricted Units'!Q179)","v":""},{"$f":"IF('2. Assisted & Restricted Units'!R179=\"\",\"\",'2. Assisted & Restricted Units'!R179)","v":""},{"$f":"IF(A179=\"\",\"\",'1. Checklist & Certification'!$K$1)","v":""},{"$f":"IF(A179=\"\",\"\",'1. Checklist & Certification'!$C$62)","v":""},{"$f":"IF(A179=\"\",\"\",'1. Checklist & Certification'!$K$62)","v":""},{"$f":"IF(A179=\"\",\"\",'1. Checklist & Certification'!$C$6)","v":""},{"$f":"IF(A179=\"\",\"\",'1. Checklist & Certification'!$G$4)","v":""},{"$f":"IF(A179=\"\",\"\",'1. Checklist & Certification'!$C$7)","v":""},{"$f":"IF(A179=\"\",\"\",'1. Checklist & Certification'!$C$8)","v":""},{"$f":"IF(A179=\"\",\"\",'1. Checklist & Certification'!$F$7)","v":""},{"$f":"IF(A179=\"\",\"\",'1. Checklist & Certification'!$F$8)","v":""},{"$f":"IF(A179=\"\",\"\",'1. Checklist & Certification'!$B$9)","v":""},{"$f":"IF(A179=\"\",\"\",'1. Checklist & Certification'!$F$9)","v":""},{"$f":"IF(A179=\"\",\"\",'1. Checklist & Certification'!$C$10)","v":""},{"$f":"IF(A179=\"\",\"\",'1. Checklist & Certification'!$C$11)","v":""},{"$f":"IF(A179=\"\",\"\",'1. Checklist & Certification'!$C$12)","v":""},{"$f":"IF(A179=\"\",\"\",'1. Checklist & Certification'!$B$14)","v":""},{"$f":"IF(A179=\"\",\"\",'1. Checklist & Certification'!$E$14)","v":""},{"$f":"IF(B179=\"\",\"\",'1. Checklist & Certification'!$G$14)","v":""},{"$f":"IF(A179=\"\",\"\",'MHP Family Income & Rent Limits'!$B$3)","v":""},{"$f":"IF(A179=\"\",\"\",'MHP Family Income & Rent Limits'!$J$3)","v":""},{"$f":"IF(A179=\"\",\"\",'MHP Family Income & Rent Limits'!$E$4)","v":""},{"$f":"IF(A179=\"\",\"\",'MHP Family Income & Rent Limits'!$C$7)","v":""},{"$f":"IF(A179=\"\",\"\",'MHP Family Income & Rent Limits'!$F$8)","v":""},{"$f":"IF(A179=\"\",\"\",'1. Checklist & Certification'!$G$4)","v":""},{"$f":"IF(A179=\"\",\"\",'1. Checklist & Certification'!$K$39)","v":""},{"$f":"IF(A179=\"\",\"\",'1. Checklist & Certification'!$K$43)","v":""},{"$f":"IF(A179=\"\",\"\",'1. Checklist & Certification'!$K$45)","v":""},{"$f":"IF(A179=\"\",\"\",'1. Checklist & Certification'!$K$49)","v":""},{"$f":"IF(A179=\"\",\"\",'1. Checklist & Certification'!$E$66)","v":""},{"$f":"IF(A179=\"\",\"\",'1. Checklist & Certification'!$E$67)","v":""},{"$f":"IF(A179=\"\",\"\",'1. Checklist & Certification'!$E$68)","v":""},{"$f":"IF(A179=\"\",\"\",'1. Checklist & Certification'!$G$66)","v":""},{"$f":"IF(A179=\"\",\"\",'1. Checklist & Certification'!$H$66)","v":""},{"$f":"IF(A179=\"\",\"\",'1. Checklist & Certification'!$I$66)","v":""},{"$f":"IF(A179=\"\",\"\",'1. Checklist & Certification'!$I$67)","v":""},{"$f":"IF(A179=\"\",\"\",'1. Checklist & Certification'!$I$68)","v":""},null,{"$f":"IF(C179=\"\",\"\",HLOOKUP(C179,'MHP Family Income & Rent Limits'!$E$12:$L$26,2,FALSE))","v":""},{"$f":"IF(C179=\"\",\"\",HLOOKUP(C179,'MHP Family Income & Rent Limits'!$E$12:$L$26,3,FALSE))","v":""},{"$f":"IF(C179=\"\",\"\",HLOOKUP(C179,'MHP Family Income & Rent Limits'!$E$12:$L$26,4,FALSE))","v":""},{"$f":"IF(C179=\"\",\"\",HLOOKUP(C179,'MHP Family Income & Rent Limits'!$E$12:$L$26,5,FALSE))","v":""},{"$f":"IF(C179=\"\",\"\",HLOOKUP(C179,'MHP Family Income & Rent Limits'!$E$12:$L$26,6,FALSE))","v":""},{"$f":"IF(C179=\"\",\"\",HLOOKUP(C179,'MHP Family Income & Rent Limits'!$E$12:$L$26,7,FALSE))","v":""},{"$f":"IF(C179=\"\",\"\",HLOOKUP(C179,'MHP Family Income & Rent Limits'!$E$12:$L$26,8,FALSE))","v":""},{"$f":"IF(C179=\"\",\"\",HLOOKUP(C179,'MHP Family Income & Rent Limits'!$E$12:$L$26,9,FALSE))","v":""},{"$f":"IF(C179=\"\",\"\",HLOOKUP(C179,'MHP Family Income & Rent Limits'!$E$12:$L$26,10,FALSE))","v":""},{"$f":"IF(C179=\"\",\"\",HLOOKUP(C179,'MHP Family Income & Rent Limits'!$E$12:$L$26,11,FALSE))","v":""},{"$f":"IF(C179=\"\",\"\",HLOOKUP(C179,'MHP Family Income & Rent Limits'!$E$12:$L$26,12,FALSE))","v":""},{"$f":"IF(C179=\"\",\"\",HLOOKUP(C179,'MHP Family Income & Rent Limits'!$E$12:$L$26,13,FALSE))","v":""},{"$f":"IF(C179=\"\",\"\",HLOOKUP(C179,'MHP Family Income & Rent Limits'!$E$12:$L$26,14,FALSE))","v":""},{"$f":"IF(C179=\"\",\"\",HLOOKUP(C179,'MHP Family Income & Rent Limits'!$E$12:$L$26,15,FALSE))","v":""}]
[{"$f":"IF('2. Assisted & Restricted Units'!A180=\"\",\"\",'2. Assisted & Restricted Units'!A180)","v":""},{"$f":"IF('2. Assisted & Restricted Units'!B180=\"\",\"\",'2. Assisted & Restricted Units'!B180)","v":""},{"$f":"IF('2. Assisted & Restricted Units'!D180=\"\",\"\",'2. Assisted & Restricted Units'!D180)","v":""},{"$f":"IF('2. Assisted & Restricted Units'!E180=\"\",\"\",'2. Assisted & Restricted Units'!E180)","v":""},{"$f":"IF('2. Assisted & Restricted Units'!H180=\"\",\"\",'2. Assisted & Restricted Units'!H180)","v":""},{"$f":"_xlfn.IFS(E180=\"\",\"\",E180>BO180,$BP$6,E180>BN180,$BO$6,E180>BM180,$BN$6,E180>BL180,$BM$6,E180>BK180,$BL$6,E180>BJ180,$BK$6,E180>BI180,$BJ$6,E180>BH180,$BI$6,E180>BG180,$BH$6,E180>BF180,$BG$6,E180>BE180,$BF$6,E180>BD180,$BE$6,E180>BC180,$BD$6,E180>=0,$BC$6)","v":""},{"$f":"IF('2. Assisted & Restricted Units'!T180=\"\",\"\",'2. Assisted & Restricted Units'!T180)","v":""},{"$f":"IF('2. Assisted & Restricted Units'!I180=\"\",\"\",'2. Assisted & Restricted Units'!I180)","v":""},{"$f":"IF('2. Assisted & Restricted Units'!AP180=\"\",\"\",'2. Assisted & Restricted Units'!AP180)","v":0},{"$f":"IF('2. Assisted & Restricted Units'!AT180=\"\",\"\",'2. Assisted & Restricted Units'!AT180)","v":""},0,{"$f":"IF('2. Assisted & Restricted Units'!AV180=\"\",\"\",'2. Assisted & Restricted Units'!AV180)","v":""},{"$f":"IF('2. Assisted & Restricted Units'!L180=\"\",\"\",'2. Assisted & Restricted Units'!L180)","v":""},{"$f":"IF('2. Assisted & Restricted Units'!M180=\"\",\"\",'2. Assisted & Restricted Units'!M180)","v":""},{"$f":"IF('2. Assisted & Restricted Units'!O180=\"\",\"\",'2. Assisted & Restricted Units'!O180)","v":""},{"$f":"IF('2. Assisted & Restricted Units'!P180=\"\",\"\",'2. Assisted & Restricted Units'!P180)","v":""},{"$f":"IF('2. Assisted & Restricted Units'!Q180=\"\",\"\",'2. Assisted & Restricted Units'!Q180)","v":""},{"$f":"IF('2. Assisted & Restricted Units'!R180=\"\",\"\",'2. Assisted & Restricted Units'!R180)","v":""},{"$f":"IF(A180=\"\",\"\",'1. Checklist & Certification'!$K$1)","v":""},{"$f":"IF(A180=\"\",\"\",'1. Checklist & Certification'!$C$62)","v":""},{"$f":"IF(A180=\"\",\"\",'1. Checklist & Certification'!$K$62)","v":""},{"$f":"IF(A180=\"\",\"\",'1. Checklist & Certification'!$C$6)","v":""},{"$f":"IF(A180=\"\",\"\",'1. Checklist & Certification'!$G$4)","v":""},{"$f":"IF(A180=\"\",\"\",'1. Checklist & Certification'!$C$7)","v":""},{"$f":"IF(A180=\"\",\"\",'1. Checklist & Certification'!$C$8)","v":""},{"$f":"IF(A180=\"\",\"\",'1. Checklist & Certification'!$F$7)","v":""},{"$f":"IF(A180=\"\",\"\",'1. Checklist & Certification'!$F$8)","v":""},{"$f":"IF(A180=\"\",\"\",'1. Checklist & Certification'!$B$9)","v":""},{"$f":"IF(A180=\"\",\"\",'1. Checklist & Certification'!$F$9)","v":""},{"$f":"IF(A180=\"\",\"\",'1. Checklist & Certification'!$C$10)","v":""},{"$f":"IF(A180=\"\",\"\",'1. Checklist & Certification'!$C$11)","v":""},{"$f":"IF(A180=\"\",\"\",'1. Checklist & Certification'!$C$12)","v":""},{"$f":"IF(A180=\"\",\"\",'1. Checklist & Certification'!$B$14)","v":""},{"$f":"IF(A180=\"\",\"\",'1. Checklist & Certification'!$E$14)","v":""},{"$f":"IF(B180=\"\",\"\",'1. Checklist & Certification'!$G$14)","v":""},{"$f":"IF(A180=\"\",\"\",'MHP Family Income & Rent Limits'!$B$3)","v":""},{"$f":"IF(A180=\"\",\"\",'MHP Family Income & Rent Limits'!$J$3)","v":""},{"$f":"IF(A180=\"\",\"\",'MHP Family Income & Rent Limits'!$E$4)","v":""},{"$f":"IF(A180=\"\",\"\",'MHP Family Income & Rent Limits'!$C$7)","v":""},{"$f":"IF(A180=\"\",\"\",'MHP Family Income & Rent Limits'!$F$8)","v":""},{"$f":"IF(A180=\"\",\"\",'1. Checklist & Certification'!$G$4)","v":""},{"$f":"IF(A180=\"\",\"\",'1. Checklist & Certification'!$K$39)","v":""},{"$f":"IF(A180=\"\",\"\",'1. Checklist & Certification'!$K$43)","v":""},{"$f":"IF(A180=\"\",\"\",'1. Checklist & Certification'!$K$45)","v":""},{"$f":"IF(A180=\"\",\"\",'1. Checklist & Certification'!$K$49)","v":""},{"$f":"IF(A180=\"\",\"\",'1. Checklist & Certification'!$E$66)","v":""},{"$f":"IF(A180=\"\",\"\",'1. Checklist & Certification'!$E$67)","v":""},{"$f":"IF(A180=\"\",\"\",'1. Checklist & Certification'!$E$68)","v":""},{"$f":"IF(A180=\"\",\"\",'1. Checklist & Certification'!$G$66)","v":""},{"$f":"IF(A180=\"\",\"\",'1. Checklist & Certification'!$H$66)","v":""},{"$f":"IF(A180=\"\",\"\",'1. Checklist & Certification'!$I$66)","v":""},{"$f":"IF(A180=\"\",\"\",'1. Checklist & Certification'!$I$67)","v":""},{"$f":"IF(A180=\"\",\"\",'1. Checklist & Certification'!$I$68)","v":""},null,{"$f":"IF(C180=\"\",\"\",HLOOKUP(C180,'MHP Family Income & Rent Limits'!$E$12:$L$26,2,FALSE))","v":""},{"$f":"IF(C180=\"\",\"\",HLOOKUP(C180,'MHP Family Income & Rent Limits'!$E$12:$L$26,3,FALSE))","v":""},{"$f":"IF(C180=\"\",\"\",HLOOKUP(C180,'MHP Family Income & Rent Limits'!$E$12:$L$26,4,FALSE))","v":""},{"$f":"IF(C180=\"\",\"\",HLOOKUP(C180,'MHP Family Income & Rent Limits'!$E$12:$L$26,5,FALSE))","v":""},{"$f":"IF(C180=\"\",\"\",HLOOKUP(C180,'MHP Family Income & Rent Limits'!$E$12:$L$26,6,FALSE))","v":""},{"$f":"IF(C180=\"\",\"\",HLOOKUP(C180,'MHP Family Income & Rent Limits'!$E$12:$L$26,7,FALSE))","v":""},{"$f":"IF(C180=\"\",\"\",HLOOKUP(C180,'MHP Family Income & Rent Limits'!$E$12:$L$26,8,FALSE))","v":""},{"$f":"IF(C180=\"\",\"\",HLOOKUP(C180,'MHP Family Income & Rent Limits'!$E$12:$L$26,9,FALSE))","v":""},{"$f":"IF(C180=\"\",\"\",HLOOKUP(C180,'MHP Family Income & Rent Limits'!$E$12:$L$26,10,FALSE))","v":""},{"$f":"IF(C180=\"\",\"\",HLOOKUP(C180,'MHP Family Income & Rent Limits'!$E$12:$L$26,11,FALSE))","v":""},{"$f":"IF(C180=\"\",\"\",HLOOKUP(C180,'MHP Family Income & Rent Limits'!$E$12:$L$26,12,FALSE))","v":""},{"$f":"IF(C180=\"\",\"\",HLOOKUP(C180,'MHP Family Income & Rent Limits'!$E$12:$L$26,13,FALSE))","v":""},{"$f":"IF(C180=\"\",\"\",HLOOKUP(C180,'MHP Family Income & Rent Limits'!$E$12:$L$26,14,FALSE))","v":""},{"$f":"IF(C180=\"\",\"\",HLOOKUP(C180,'MHP Family Income & Rent Limits'!$E$12:$L$26,15,FALSE))","v":""}]
[{"$f":"IF('2. Assisted & Restricted Units'!A181=\"\",\"\",'2. Assisted & Restricted Units'!A181)","v":""},{"$f":"IF('2. Assisted & Restricted Units'!B181=\"\",\"\",'2. Assisted & Restricted Units'!B181)","v":""},{"$f":"IF('2. Assisted & Restricted Units'!D181=\"\",\"\",'2. Assisted & Restricted Units'!D181)","v":""},{"$f":"IF('2. Assisted & Restricted Units'!E181=\"\",\"\",'2. Assisted & Restricted Units'!E181)","v":""},{"$f":"IF('2. Assisted & Restricted Units'!H181=\"\",\"\",'2. Assisted & Restricted Units'!H181)","v":""},{"$f":"_xlfn.IFS(E181=\"\",\"\",E181>BO181,$BP$6,E181>BN181,$BO$6,E181>BM181,$BN$6,E181>BL181,$BM$6,E181>BK181,$BL$6,E181>BJ181,$BK$6,E181>BI181,$BJ$6,E181>BH181,$BI$6,E181>BG181,$BH$6,E181>BF181,$BG$6,E181>BE181,$BF$6,E181>BD181,$BE$6,E181>BC181,$BD$6,E181>=0,$BC$6)","v":""},{"$f":"IF('2. Assisted & Restricted Units'!T181=\"\",\"\",'2. Assisted & Restricted Units'!T181)","v":""},{"$f":"IF('2. Assisted & Restricted Units'!I181=\"\",\"\",'2. Assisted & Restricted Units'!I181)","v":""},{"$f":"IF('2. Assisted & Restricted Units'!AP181=\"\",\"\",'2. Assisted & Restricted Units'!AP181)","v":0},{"$f":"IF('2. Assisted & Restricted Units'!AT181=\"\",\"\",'2. Assisted & Restricted Units'!AT181)","v":""},0,{"$f":"IF('2. Assisted & Restricted Units'!AV181=\"\",\"\",'2. Assisted & Restricted Units'!AV181)","v":""},{"$f":"IF('2. Assisted & Restricted Units'!L181=\"\",\"\",'2. Assisted & Restricted Units'!L181)","v":""},{"$f":"IF('2. Assisted & Restricted Units'!M181=\"\",\"\",'2. Assisted & Restricted Units'!M181)","v":""},{"$f":"IF('2. Assisted & Restricted Units'!O181=\"\",\"\",'2. Assisted & Restricted Units'!O181)","v":""},{"$f":"IF('2. Assisted & Restricted Units'!P181=\"\",\"\",'2. Assisted & Restricted Units'!P181)","v":""},{"$f":"IF('2. Assisted & Restricted Units'!Q181=\"\",\"\",'2. Assisted & Restricted Units'!Q181)","v":""},{"$f":"IF('2. Assisted & Restricted Units'!R181=\"\",\"\",'2. Assisted & Restricted Units'!R181)","v":""},{"$f":"IF(A181=\"\",\"\",'1. Checklist & Certification'!$K$1)","v":""},{"$f":"IF(A181=\"\",\"\",'1. Checklist & Certification'!$C$62)","v":""},{"$f":"IF(A181=\"\",\"\",'1. Checklist & Certification'!$K$62)","v":""},{"$f":"IF(A181=\"\",\"\",'1. Checklist & Certification'!$C$6)","v":""},{"$f":"IF(A181=\"\",\"\",'1. Checklist & Certification'!$G$4)","v":""},{"$f":"IF(A181=\"\",\"\",'1. Checklist & Certification'!$C$7)","v":""},{"$f":"IF(A181=\"\",\"\",'1. Checklist & Certification'!$C$8)","v":""},{"$f":"IF(A181=\"\",\"\",'1. Checklist & Certification'!$F$7)","v":""},{"$f":"IF(A181=\"\",\"\",'1. Checklist & Certification'!$F$8)","v":""},{"$f":"IF(A181=\"\",\"\",'1. Checklist & Certification'!$B$9)","v":""},{"$f":"IF(A181=\"\",\"\",'1. Checklist & Certification'!$F$9)","v":""},{"$f":"IF(A181=\"\",\"\",'1. Checklist & Certification'!$C$10)","v":""},{"$f":"IF(A181=\"\",\"\",'1. Checklist & Certification'!$C$11)","v":""},{"$f":"IF(A181=\"\",\"\",'1. Checklist & Certification'!$C$12)","v":""},{"$f":"IF(A181=\"\",\"\",'1. Checklist & Certification'!$B$14)","v":""},{"$f":"IF(A181=\"\",\"\",'1. Checklist & Certification'!$E$14)","v":""},{"$f":"IF(B181=\"\",\"\",'1. Checklist & Certification'!$G$14)","v":""},{"$f":"IF(A181=\"\",\"\",'MHP Family Income & Rent Limits'!$B$3)","v":""},{"$f":"IF(A181=\"\",\"\",'MHP Family Income & Rent Limits'!$J$3)","v":""},{"$f":"IF(A181=\"\",\"\",'MHP Family Income & Rent Limits'!$E$4)","v":""},{"$f":"IF(A181=\"\",\"\",'MHP Family Income & Rent Limits'!$C$7)","v":""},{"$f":"IF(A181=\"\",\"\",'MHP Family Income & Rent Limits'!$F$8)","v":""},{"$f":"IF(A181=\"\",\"\",'1. Checklist & Certification'!$G$4)","v":""},{"$f":"IF(A181=\"\",\"\",'1. Checklist & Certification'!$K$39)","v":""},{"$f":"IF(A181=\"\",\"\",'1. Checklist & Certification'!$K$43)","v":""},{"$f":"IF(A181=\"\",\"\",'1. Checklist & Certification'!$K$45)","v":""},{"$f":"IF(A181=\"\",\"\",'1. Checklist & Certification'!$K$49)","v":""},{"$f":"IF(A181=\"\",\"\",'1. Checklist & Certification'!$E$66)","v":""},{"$f":"IF(A181=\"\",\"\",'1. Checklist & Certification'!$E$67)","v":""},{"$f":"IF(A181=\"\",\"\",'1. Checklist & Certification'!$E$68)","v":""},{"$f":"IF(A181=\"\",\"\",'1. Checklist & Certification'!$G$66)","v":""},{"$f":"IF(A181=\"\",\"\",'1. Checklist & Certification'!$H$66)","v":""},{"$f":"IF(A181=\"\",\"\",'1. Checklist & Certification'!$I$66)","v":""},{"$f":"IF(A181=\"\",\"\",'1. Checklist & Certification'!$I$67)","v":""},{"$f":"IF(A181=\"\",\"\",'1. Checklist & Certification'!$I$68)","v":""},null,{"$f":"IF(C181=\"\",\"\",HLOOKUP(C181,'MHP Family Income & Rent Limits'!$E$12:$L$26,2,FALSE))","v":""},{"$f":"IF(C181=\"\",\"\",HLOOKUP(C181,'MHP Family Income & Rent Limits'!$E$12:$L$26,3,FALSE))","v":""},{"$f":"IF(C181=\"\",\"\",HLOOKUP(C181,'MHP Family Income & Rent Limits'!$E$12:$L$26,4,FALSE))","v":""},{"$f":"IF(C181=\"\",\"\",HLOOKUP(C181,'MHP Family Income & Rent Limits'!$E$12:$L$26,5,FALSE))","v":""},{"$f":"IF(C181=\"\",\"\",HLOOKUP(C181,'MHP Family Income & Rent Limits'!$E$12:$L$26,6,FALSE))","v":""},{"$f":"IF(C181=\"\",\"\",HLOOKUP(C181,'MHP Family Income & Rent Limits'!$E$12:$L$26,7,FALSE))","v":""},{"$f":"IF(C181=\"\",\"\",HLOOKUP(C181,'MHP Family Income & Rent Limits'!$E$12:$L$26,8,FALSE))","v":""},{"$f":"IF(C181=\"\",\"\",HLOOKUP(C181,'MHP Family Income & Rent Limits'!$E$12:$L$26,9,FALSE))","v":""},{"$f":"IF(C181=\"\",\"\",HLOOKUP(C181,'MHP Family Income & Rent Limits'!$E$12:$L$26,10,FALSE))","v":""},{"$f":"IF(C181=\"\",\"\",HLOOKUP(C181,'MHP Family Income & Rent Limits'!$E$12:$L$26,11,FALSE))","v":""},{"$f":"IF(C181=\"\",\"\",HLOOKUP(C181,'MHP Family Income & Rent Limits'!$E$12:$L$26,12,FALSE))","v":""},{"$f":"IF(C181=\"\",\"\",HLOOKUP(C181,'MHP Family Income & Rent Limits'!$E$12:$L$26,13,FALSE))","v":""},{"$f":"IF(C181=\"\",\"\",HLOOKUP(C181,'MHP Family Income & Rent Limits'!$E$12:$L$26,14,FALSE))","v":""},{"$f":"IF(C181=\"\",\"\",HLOOKUP(C181,'MHP Family Income & Rent Limits'!$E$12:$L$26,15,FALSE))","v":""}]
[{"$f":"IF('2. Assisted & Restricted Units'!A182=\"\",\"\",'2. Assisted & Restricted Units'!A182)","v":""},{"$f":"IF('2. Assisted & Restricted Units'!B182=\"\",\"\",'2. Assisted & Restricted Units'!B182)","v":""},{"$f":"IF('2. Assisted & Restricted Units'!D182=\"\",\"\",'2. Assisted & Restricted Units'!D182)","v":""},{"$f":"IF('2. Assisted & Restricted Units'!E182=\"\",\"\",'2. Assisted & Restricted Units'!E182)","v":""},{"$f":"IF('2. Assisted & Restricted Units'!H182=\"\",\"\",'2. Assisted & Restricted Units'!H182)","v":""},{"$f":"_xlfn.IFS(E182=\"\",\"\",E182>BO182,$BP$6,E182>BN182,$BO$6,E182>BM182,$BN$6,E182>BL182,$BM$6,E182>BK182,$BL$6,E182>BJ182,$BK$6,E182>BI182,$BJ$6,E182>BH182,$BI$6,E182>BG182,$BH$6,E182>BF182,$BG$6,E182>BE182,$BF$6,E182>BD182,$BE$6,E182>BC182,$BD$6,E182>=0,$BC$6)","v":""},{"$f":"IF('2. Assisted & Restricted Units'!T182=\"\",\"\",'2. Assisted & Restricted Units'!T182)","v":""},{"$f":"IF('2. Assisted & Restricted Units'!I182=\"\",\"\",'2. Assisted & Restricted Units'!I182)","v":""},{"$f":"IF('2. Assisted & Restricted Units'!AP182=\"\",\"\",'2. Assisted & Restricted Units'!AP182)","v":0},{"$f":"IF('2. Assisted & Restricted Units'!AT182=\"\",\"\",'2. Assisted & Restricted Units'!AT182)","v":""},0,{"$f":"IF('2. Assisted & Restricted Units'!AV182=\"\",\"\",'2. Assisted & Restricted Units'!AV182)","v":""},{"$f":"IF('2. Assisted & Restricted Units'!L182=\"\",\"\",'2. Assisted & Restricted Units'!L182)","v":""},{"$f":"IF('2. Assisted & Restricted Units'!M182=\"\",\"\",'2. Assisted & Restricted Units'!M182)","v":""},{"$f":"IF('2. Assisted & Restricted Units'!O182=\"\",\"\",'2. Assisted & Restricted Units'!O182)","v":""},{"$f":"IF('2. Assisted & Restricted Units'!P182=\"\",\"\",'2. Assisted & Restricted Units'!P182)","v":""},{"$f":"IF('2. Assisted & Restricted Units'!Q182=\"\",\"\",'2. Assisted & Restricted Units'!Q182)","v":""},{"$f":"IF('2. Assisted & Restricted Units'!R182=\"\",\"\",'2. Assisted & Restricted Units'!R182)","v":""},{"$f":"IF(A182=\"\",\"\",'1. Checklist & Certification'!$K$1)","v":""},{"$f":"IF(A182=\"\",\"\",'1. Checklist & Certification'!$C$62)","v":""},{"$f":"IF(A182=\"\",\"\",'1. Checklist & Certification'!$K$62)","v":""},{"$f":"IF(A182=\"\",\"\",'1. Checklist & Certification'!$C$6)","v":""},{"$f":"IF(A182=\"\",\"\",'1. Checklist & Certification'!$G$4)","v":""},{"$f":"IF(A182=\"\",\"\",'1. Checklist & Certification'!$C$7)","v":""},{"$f":"IF(A182=\"\",\"\",'1. Checklist & Certification'!$C$8)","v":""},{"$f":"IF(A182=\"\",\"\",'1. Checklist & Certification'!$F$7)","v":""},{"$f":"IF(A182=\"\",\"\",'1. Checklist & Certification'!$F$8)","v":""},{"$f":"IF(A182=\"\",\"\",'1. Checklist & Certification'!$B$9)","v":""},{"$f":"IF(A182=\"\",\"\",'1. Checklist & Certification'!$F$9)","v":""},{"$f":"IF(A182=\"\",\"\",'1. Checklist & Certification'!$C$10)","v":""},{"$f":"IF(A182=\"\",\"\",'1. Checklist & Certification'!$C$11)","v":""},{"$f":"IF(A182=\"\",\"\",'1. Checklist & Certification'!$C$12)","v":""},{"$f":"IF(A182=\"\",\"\",'1. Checklist & Certification'!$B$14)","v":""},{"$f":"IF(A182=\"\",\"\",'1. Checklist & Certification'!$E$14)","v":""},{"$f":"IF(B182=\"\",\"\",'1. Checklist & Certification'!$G$14)","v":""},{"$f":"IF(A182=\"\",\"\",'MHP Family Income & Rent Limits'!$B$3)","v":""},{"$f":"IF(A182=\"\",\"\",'MHP Family Income & Rent Limits'!$J$3)","v":""},{"$f":"IF(A182=\"\",\"\",'MHP Family Income & Rent Limits'!$E$4)","v":""},{"$f":"IF(A182=\"\",\"\",'MHP Family Income & Rent Limits'!$C$7)","v":""},{"$f":"IF(A182=\"\",\"\",'MHP Family Income & Rent Limits'!$F$8)","v":""},{"$f":"IF(A182=\"\",\"\",'1. Checklist & Certification'!$G$4)","v":""},{"$f":"IF(A182=\"\",\"\",'1. Checklist & Certification'!$K$39)","v":""},{"$f":"IF(A182=\"\",\"\",'1. Checklist & Certification'!$K$43)","v":""},{"$f":"IF(A182=\"\",\"\",'1. Checklist & Certification'!$K$45)","v":""},{"$f":"IF(A182=\"\",\"\",'1. Checklist & Certification'!$K$49)","v":""},{"$f":"IF(A182=\"\",\"\",'1. Checklist & Certification'!$E$66)","v":""},{"$f":"IF(A182=\"\",\"\",'1. Checklist & Certification'!$E$67)","v":""},{"$f":"IF(A182=\"\",\"\",'1. Checklist & Certification'!$E$68)","v":""},{"$f":"IF(A182=\"\",\"\",'1. Checklist & Certification'!$G$66)","v":""},{"$f":"IF(A182=\"\",\"\",'1. Checklist & Certification'!$H$66)","v":""},{"$f":"IF(A182=\"\",\"\",'1. Checklist & Certification'!$I$66)","v":""},{"$f":"IF(A182=\"\",\"\",'1. Checklist & Certification'!$I$67)","v":""},{"$f":"IF(A182=\"\",\"\",'1. Checklist & Certification'!$I$68)","v":""},null,{"$f":"IF(C182=\"\",\"\",HLOOKUP(C182,'MHP Family Income & Rent Limits'!$E$12:$L$26,2,FALSE))","v":""},{"$f":"IF(C182=\"\",\"\",HLOOKUP(C182,'MHP Family Income & Rent Limits'!$E$12:$L$26,3,FALSE))","v":""},{"$f":"IF(C182=\"\",\"\",HLOOKUP(C182,'MHP Family Income & Rent Limits'!$E$12:$L$26,4,FALSE))","v":""},{"$f":"IF(C182=\"\",\"\",HLOOKUP(C182,'MHP Family Income & Rent Limits'!$E$12:$L$26,5,FALSE))","v":""},{"$f":"IF(C182=\"\",\"\",HLOOKUP(C182,'MHP Family Income & Rent Limits'!$E$12:$L$26,6,FALSE))","v":""},{"$f":"IF(C182=\"\",\"\",HLOOKUP(C182,'MHP Family Income & Rent Limits'!$E$12:$L$26,7,FALSE))","v":""},{"$f":"IF(C182=\"\",\"\",HLOOKUP(C182,'MHP Family Income & Rent Limits'!$E$12:$L$26,8,FALSE))","v":""},{"$f":"IF(C182=\"\",\"\",HLOOKUP(C182,'MHP Family Income & Rent Limits'!$E$12:$L$26,9,FALSE))","v":""},{"$f":"IF(C182=\"\",\"\",HLOOKUP(C182,'MHP Family Income & Rent Limits'!$E$12:$L$26,10,FALSE))","v":""},{"$f":"IF(C182=\"\",\"\",HLOOKUP(C182,'MHP Family Income & Rent Limits'!$E$12:$L$26,11,FALSE))","v":""},{"$f":"IF(C182=\"\",\"\",HLOOKUP(C182,'MHP Family Income & Rent Limits'!$E$12:$L$26,12,FALSE))","v":""},{"$f":"IF(C182=\"\",\"\",HLOOKUP(C182,'MHP Family Income & Rent Limits'!$E$12:$L$26,13,FALSE))","v":""},{"$f":"IF(C182=\"\",\"\",HLOOKUP(C182,'MHP Family Income & Rent Limits'!$E$12:$L$26,14,FALSE))","v":""},{"$f":"IF(C182=\"\",\"\",HLOOKUP(C182,'MHP Family Income & Rent Limits'!$E$12:$L$26,15,FALSE))","v":""}]
[{"$f":"IF('2. Assisted & Restricted Units'!A183=\"\",\"\",'2. Assisted & Restricted Units'!A183)","v":""},{"$f":"IF('2. Assisted & Restricted Units'!B183=\"\",\"\",'2. Assisted & Restricted Units'!B183)","v":""},{"$f":"IF('2. Assisted & Restricted Units'!D183=\"\",\"\",'2. Assisted & Restricted Units'!D183)","v":""},{"$f":"IF('2. Assisted & Restricted Units'!E183=\"\",\"\",'2. Assisted & Restricted Units'!E183)","v":""},{"$f":"IF('2. Assisted & Restricted Units'!H183=\"\",\"\",'2. Assisted & Restricted Units'!H183)","v":""},{"$f":"_xlfn.IFS(E183=\"\",\"\",E183>BO183,$BP$6,E183>BN183,$BO$6,E183>BM183,$BN$6,E183>BL183,$BM$6,E183>BK183,$BL$6,E183>BJ183,$BK$6,E183>BI183,$BJ$6,E183>BH183,$BI$6,E183>BG183,$BH$6,E183>BF183,$BG$6,E183>BE183,$BF$6,E183>BD183,$BE$6,E183>BC183,$BD$6,E183>=0,$BC$6)","v":""},{"$f":"IF('2. Assisted & Restricted Units'!T183=\"\",\"\",'2. Assisted & Restricted Units'!T183)","v":""},{"$f":"IF('2. Assisted & Restricted Units'!I183=\"\",\"\",'2. Assisted & Restricted Units'!I183)","v":""},{"$f":"IF('2. Assisted & Restricted Units'!AP183=\"\",\"\",'2. Assisted & Restricted Units'!AP183)","v":0},{"$f":"IF('2. Assisted & Restricted Units'!AT183=\"\",\"\",'2. Assisted & Restricted Units'!AT183)","v":""},0,{"$f":"IF('2. Assisted & Restricted Units'!AV183=\"\",\"\",'2. Assisted & Restricted Units'!AV183)","v":""},{"$f":"IF('2. Assisted & Restricted Units'!L183=\"\",\"\",'2. Assisted & Restricted Units'!L183)","v":""},{"$f":"IF('2. Assisted & Restricted Units'!M183=\"\",\"\",'2. Assisted & Restricted Units'!M183)","v":""},{"$f":"IF('2. Assisted & Restricted Units'!O183=\"\",\"\",'2. Assisted & Restricted Units'!O183)","v":""},{"$f":"IF('2. Assisted & Restricted Units'!P183=\"\",\"\",'2. Assisted & Restricted Units'!P183)","v":""},{"$f":"IF('2. Assisted & Restricted Units'!Q183=\"\",\"\",'2. Assisted & Restricted Units'!Q183)","v":""},{"$f":"IF('2. Assisted & Restricted Units'!R183=\"\",\"\",'2. Assisted & Restricted Units'!R183)","v":""},{"$f":"IF(A183=\"\",\"\",'1. Checklist & Certification'!$K$1)","v":""},{"$f":"IF(A183=\"\",\"\",'1. Checklist & Certification'!$C$62)","v":""},{"$f":"IF(A183=\"\",\"\",'1. Checklist & Certification'!$K$62)","v":""},{"$f":"IF(A183=\"\",\"\",'1. Checklist & Certification'!$C$6)","v":""},{"$f":"IF(A183=\"\",\"\",'1. Checklist & Certification'!$G$4)","v":""},{"$f":"IF(A183=\"\",\"\",'1. Checklist & Certification'!$C$7)","v":""},{"$f":"IF(A183=\"\",\"\",'1. Checklist & Certification'!$C$8)","v":""},{"$f":"IF(A183=\"\",\"\",'1. Checklist & Certification'!$F$7)","v":""},{"$f":"IF(A183=\"\",\"\",'1. Checklist & Certification'!$F$8)","v":""},{"$f":"IF(A183=\"\",\"\",'1. Checklist & Certification'!$B$9)","v":""},{"$f":"IF(A183=\"\",\"\",'1. Checklist & Certification'!$F$9)","v":""},{"$f":"IF(A183=\"\",\"\",'1. Checklist & Certification'!$C$10)","v":""},{"$f":"IF(A183=\"\",\"\",'1. Checklist & Certification'!$C$11)","v":""},{"$f":"IF(A183=\"\",\"\",'1. Checklist & Certification'!$C$12)","v":""},{"$f":"IF(A183=\"\",\"\",'1. Checklist & Certification'!$B$14)","v":""},{"$f":"IF(A183=\"\",\"\",'1. Checklist & Certification'!$E$14)","v":""},{"$f":"IF(B183=\"\",\"\",'1. Checklist & Certification'!$G$14)","v":""},{"$f":"IF(A183=\"\",\"\",'MHP Family Income & Rent Limits'!$B$3)","v":""},{"$f":"IF(A183=\"\",\"\",'MHP Family Income & Rent Limits'!$J$3)","v":""},{"$f":"IF(A183=\"\",\"\",'MHP Family Income & Rent Limits'!$E$4)","v":""},{"$f":"IF(A183=\"\",\"\",'MHP Family Income & Rent Limits'!$C$7)","v":""},{"$f":"IF(A183=\"\",\"\",'MHP Family Income & Rent Limits'!$F$8)","v":""},{"$f":"IF(A183=\"\",\"\",'1. Checklist & Certification'!$G$4)","v":""},{"$f":"IF(A183=\"\",\"\",'1. Checklist & Certification'!$K$39)","v":""},{"$f":"IF(A183=\"\",\"\",'1. Checklist & Certification'!$K$43)","v":""},{"$f":"IF(A183=\"\",\"\",'1. Checklist & Certification'!$K$45)","v":""},{"$f":"IF(A183=\"\",\"\",'1. Checklist & Certification'!$K$49)","v":""},{"$f":"IF(A183=\"\",\"\",'1. Checklist & Certification'!$E$66)","v":""},{"$f":"IF(A183=\"\",\"\",'1. Checklist & Certification'!$E$67)","v":""},{"$f":"IF(A183=\"\",\"\",'1. Checklist & Certification'!$E$68)","v":""},{"$f":"IF(A183=\"\",\"\",'1. Checklist & Certification'!$G$66)","v":""},{"$f":"IF(A183=\"\",\"\",'1. Checklist & Certification'!$H$66)","v":""},{"$f":"IF(A183=\"\",\"\",'1. Checklist & Certification'!$I$66)","v":""},{"$f":"IF(A183=\"\",\"\",'1. Checklist & Certification'!$I$67)","v":""},{"$f":"IF(A183=\"\",\"\",'1. Checklist & Certification'!$I$68)","v":""},null,{"$f":"IF(C183=\"\",\"\",HLOOKUP(C183,'MHP Family Income & Rent Limits'!$E$12:$L$26,2,FALSE))","v":""},{"$f":"IF(C183=\"\",\"\",HLOOKUP(C183,'MHP Family Income & Rent Limits'!$E$12:$L$26,3,FALSE))","v":""},{"$f":"IF(C183=\"\",\"\",HLOOKUP(C183,'MHP Family Income & Rent Limits'!$E$12:$L$26,4,FALSE))","v":""},{"$f":"IF(C183=\"\",\"\",HLOOKUP(C183,'MHP Family Income & Rent Limits'!$E$12:$L$26,5,FALSE))","v":""},{"$f":"IF(C183=\"\",\"\",HLOOKUP(C183,'MHP Family Income & Rent Limits'!$E$12:$L$26,6,FALSE))","v":""},{"$f":"IF(C183=\"\",\"\",HLOOKUP(C183,'MHP Family Income & Rent Limits'!$E$12:$L$26,7,FALSE))","v":""},{"$f":"IF(C183=\"\",\"\",HLOOKUP(C183,'MHP Family Income & Rent Limits'!$E$12:$L$26,8,FALSE))","v":""},{"$f":"IF(C183=\"\",\"\",HLOOKUP(C183,'MHP Family Income & Rent Limits'!$E$12:$L$26,9,FALSE))","v":""},{"$f":"IF(C183=\"\",\"\",HLOOKUP(C183,'MHP Family Income & Rent Limits'!$E$12:$L$26,10,FALSE))","v":""},{"$f":"IF(C183=\"\",\"\",HLOOKUP(C183,'MHP Family Income & Rent Limits'!$E$12:$L$26,11,FALSE))","v":""},{"$f":"IF(C183=\"\",\"\",HLOOKUP(C183,'MHP Family Income & Rent Limits'!$E$12:$L$26,12,FALSE))","v":""},{"$f":"IF(C183=\"\",\"\",HLOOKUP(C183,'MHP Family Income & Rent Limits'!$E$12:$L$26,13,FALSE))","v":""},{"$f":"IF(C183=\"\",\"\",HLOOKUP(C183,'MHP Family Income & Rent Limits'!$E$12:$L$26,14,FALSE))","v":""},{"$f":"IF(C183=\"\",\"\",HLOOKUP(C183,'MHP Family Income & Rent Limits'!$E$12:$L$26,15,FALSE))","v":""}]
[{"$f":"IF('2. Assisted & Restricted Units'!A184=\"\",\"\",'2. Assisted & Restricted Units'!A184)","v":""},{"$f":"IF('2. Assisted & Restricted Units'!B184=\"\",\"\",'2. Assisted & Restricted Units'!B184)","v":""},{"$f":"IF('2. Assisted & Restricted Units'!D184=\"\",\"\",'2. Assisted & Restricted Units'!D184)","v":""},{"$f":"IF('2. Assisted & Restricted Units'!E184=\"\",\"\",'2. Assisted & Restricted Units'!E184)","v":""},{"$f":"IF('2. Assisted & Restricted Units'!H184=\"\",\"\",'2. Assisted & Restricted Units'!H184)","v":""},{"$f":"_xlfn.IFS(E184=\"\",\"\",E184>BO184,$BP$6,E184>BN184,$BO$6,E184>BM184,$BN$6,E184>BL184,$BM$6,E184>BK184,$BL$6,E184>BJ184,$BK$6,E184>BI184,$BJ$6,E184>BH184,$BI$6,E184>BG184,$BH$6,E184>BF184,$BG$6,E184>BE184,$BF$6,E184>BD184,$BE$6,E184>BC184,$BD$6,E184>=0,$BC$6)","v":""},{"$f":"IF('2. Assisted & Restricted Units'!T184=\"\",\"\",'2. Assisted & Restricted Units'!T184)","v":""},{"$f":"IF('2. Assisted & Restricted Units'!I184=\"\",\"\",'2. Assisted & Restricted Units'!I184)","v":""},{"$f":"IF('2. Assisted & Restricted Units'!AP184=\"\",\"\",'2. Assisted & Restricted Units'!AP184)","v":0},{"$f":"IF('2. Assisted & Restricted Units'!AT184=\"\",\"\",'2. Assisted & Restricted Units'!AT184)","v":""},0,{"$f":"IF('2. Assisted & Restricted Units'!AV184=\"\",\"\",'2. Assisted & Restricted Units'!AV184)","v":""},{"$f":"IF('2. Assisted & Restricted Units'!L184=\"\",\"\",'2. Assisted & Restricted Units'!L184)","v":""},{"$f":"IF('2. Assisted & Restricted Units'!M184=\"\",\"\",'2. Assisted & Restricted Units'!M184)","v":""},{"$f":"IF('2. Assisted & Restricted Units'!O184=\"\",\"\",'2. Assisted & Restricted Units'!O184)","v":""},{"$f":"IF('2. Assisted & Restricted Units'!P184=\"\",\"\",'2. Assisted & Restricted Units'!P184)","v":""},{"$f":"IF('2. Assisted & Restricted Units'!Q184=\"\",\"\",'2. Assisted & Restricted Units'!Q184)","v":""},{"$f":"IF('2. Assisted & Restricted Units'!R184=\"\",\"\",'2. Assisted & Restricted Units'!R184)","v":""},{"$f":"IF(A184=\"\",\"\",'1. Checklist & Certification'!$K$1)","v":""},{"$f":"IF(A184=\"\",\"\",'1. Checklist & Certification'!$C$62)","v":""},{"$f":"IF(A184=\"\",\"\",'1. Checklist & Certification'!$K$62)","v":""},{"$f":"IF(A184=\"\",\"\",'1. Checklist & Certification'!$C$6)","v":""},{"$f":"IF(A184=\"\",\"\",'1. Checklist & Certification'!$G$4)","v":""},{"$f":"IF(A184=\"\",\"\",'1. Checklist & Certification'!$C$7)","v":""},{"$f":"IF(A184=\"\",\"\",'1. Checklist & Certification'!$C$8)","v":""},{"$f":"IF(A184=\"\",\"\",'1. Checklist & Certification'!$F$7)","v":""},{"$f":"IF(A184=\"\",\"\",'1. Checklist & Certification'!$F$8)","v":""},{"$f":"IF(A184=\"\",\"\",'1. Checklist & Certification'!$B$9)","v":""},{"$f":"IF(A184=\"\",\"\",'1. Checklist & Certification'!$F$9)","v":""},{"$f":"IF(A184=\"\",\"\",'1. Checklist & Certification'!$C$10)","v":""},{"$f":"IF(A184=\"\",\"\",'1. Checklist & Certification'!$C$11)","v":""},{"$f":"IF(A184=\"\",\"\",'1. Checklist & Certification'!$C$12)","v":""},{"$f":"IF(A184=\"\",\"\",'1. Checklist & Certification'!$B$14)","v":""},{"$f":"IF(A184=\"\",\"\",'1. Checklist & Certification'!$E$14)","v":""},{"$f":"IF(B184=\"\",\"\",'1. Checklist & Certification'!$G$14)","v":""},{"$f":"IF(A184=\"\",\"\",'MHP Family Income & Rent Limits'!$B$3)","v":""},{"$f":"IF(A184=\"\",\"\",'MHP Family Income & Rent Limits'!$J$3)","v":""},{"$f":"IF(A184=\"\",\"\",'MHP Family Income & Rent Limits'!$E$4)","v":""},{"$f":"IF(A184=\"\",\"\",'MHP Family Income & Rent Limits'!$C$7)","v":""},{"$f":"IF(A184=\"\",\"\",'MHP Family Income & Rent Limits'!$F$8)","v":""},{"$f":"IF(A184=\"\",\"\",'1. Checklist & Certification'!$G$4)","v":""},{"$f":"IF(A184=\"\",\"\",'1. Checklist & Certification'!$K$39)","v":""},{"$f":"IF(A184=\"\",\"\",'1. Checklist & Certification'!$K$43)","v":""},{"$f":"IF(A184=\"\",\"\",'1. Checklist & Certification'!$K$45)","v":""},{"$f":"IF(A184=\"\",\"\",'1. Checklist & Certification'!$K$49)","v":""},{"$f":"IF(A184=\"\",\"\",'1. Checklist & Certification'!$E$66)","v":""},{"$f":"IF(A184=\"\",\"\",'1. Checklist & Certification'!$E$67)","v":""},{"$f":"IF(A184=\"\",\"\",'1. Checklist & Certification'!$E$68)","v":""},{"$f":"IF(A184=\"\",\"\",'1. Checklist & Certification'!$G$66)","v":""},{"$f":"IF(A184=\"\",\"\",'1. Checklist & Certification'!$H$66)","v":""},{"$f":"IF(A184=\"\",\"\",'1. Checklist & Certification'!$I$66)","v":""},{"$f":"IF(A184=\"\",\"\",'1. Checklist & Certification'!$I$67)","v":""},{"$f":"IF(A184=\"\",\"\",'1. Checklist & Certification'!$I$68)","v":""},null,{"$f":"IF(C184=\"\",\"\",HLOOKUP(C184,'MHP Family Income & Rent Limits'!$E$12:$L$26,2,FALSE))","v":""},{"$f":"IF(C184=\"\",\"\",HLOOKUP(C184,'MHP Family Income & Rent Limits'!$E$12:$L$26,3,FALSE))","v":""},{"$f":"IF(C184=\"\",\"\",HLOOKUP(C184,'MHP Family Income & Rent Limits'!$E$12:$L$26,4,FALSE))","v":""},{"$f":"IF(C184=\"\",\"\",HLOOKUP(C184,'MHP Family Income & Rent Limits'!$E$12:$L$26,5,FALSE))","v":""},{"$f":"IF(C184=\"\",\"\",HLOOKUP(C184,'MHP Family Income & Rent Limits'!$E$12:$L$26,6,FALSE))","v":""},{"$f":"IF(C184=\"\",\"\",HLOOKUP(C184,'MHP Family Income & Rent Limits'!$E$12:$L$26,7,FALSE))","v":""},{"$f":"IF(C184=\"\",\"\",HLOOKUP(C184,'MHP Family Income & Rent Limits'!$E$12:$L$26,8,FALSE))","v":""},{"$f":"IF(C184=\"\",\"\",HLOOKUP(C184,'MHP Family Income & Rent Limits'!$E$12:$L$26,9,FALSE))","v":""},{"$f":"IF(C184=\"\",\"\",HLOOKUP(C184,'MHP Family Income & Rent Limits'!$E$12:$L$26,10,FALSE))","v":""},{"$f":"IF(C184=\"\",\"\",HLOOKUP(C184,'MHP Family Income & Rent Limits'!$E$12:$L$26,11,FALSE))","v":""},{"$f":"IF(C184=\"\",\"\",HLOOKUP(C184,'MHP Family Income & Rent Limits'!$E$12:$L$26,12,FALSE))","v":""},{"$f":"IF(C184=\"\",\"\",HLOOKUP(C184,'MHP Family Income & Rent Limits'!$E$12:$L$26,13,FALSE))","v":""},{"$f":"IF(C184=\"\",\"\",HLOOKUP(C184,'MHP Family Income & Rent Limits'!$E$12:$L$26,14,FALSE))","v":""},{"$f":"IF(C184=\"\",\"\",HLOOKUP(C184,'MHP Family Income & Rent Limits'!$E$12:$L$26,15,FALSE))","v":""}]
[{"$f":"IF('2. Assisted & Restricted Units'!A185=\"\",\"\",'2. Assisted & Restricted Units'!A185)","v":""},{"$f":"IF('2. Assisted & Restricted Units'!B185=\"\",\"\",'2. Assisted & Restricted Units'!B185)","v":""},{"$f":"IF('2. Assisted & Restricted Units'!D185=\"\",\"\",'2. Assisted & Restricted Units'!D185)","v":""},{"$f":"IF('2. Assisted & Restricted Units'!E185=\"\",\"\",'2. Assisted & Restricted Units'!E185)","v":""},{"$f":"IF('2. Assisted & Restricted Units'!H185=\"\",\"\",'2. Assisted & Restricted Units'!H185)","v":""},{"$f":"_xlfn.IFS(E185=\"\",\"\",E185>BO185,$BP$6,E185>BN185,$BO$6,E185>BM185,$BN$6,E185>BL185,$BM$6,E185>BK185,$BL$6,E185>BJ185,$BK$6,E185>BI185,$BJ$6,E185>BH185,$BI$6,E185>BG185,$BH$6,E185>BF185,$BG$6,E185>BE185,$BF$6,E185>BD185,$BE$6,E185>BC185,$BD$6,E185>=0,$BC$6)","v":""},{"$f":"IF('2. Assisted & Restricted Units'!T185=\"\",\"\",'2. Assisted & Restricted Units'!T185)","v":""},{"$f":"IF('2. Assisted & Restricted Units'!I185=\"\",\"\",'2. Assisted & Restricted Units'!I185)","v":""},{"$f":"IF('2. Assisted & Restricted Units'!AP185=\"\",\"\",'2. Assisted & Restricted Units'!AP185)","v":0},{"$f":"IF('2. Assisted & Restricted Units'!AT185=\"\",\"\",'2. Assisted & Restricted Units'!AT185)","v":""},0,{"$f":"IF('2. Assisted & Restricted Units'!AV185=\"\",\"\",'2. Assisted & Restricted Units'!AV185)","v":""},{"$f":"IF('2. Assisted & Restricted Units'!L185=\"\",\"\",'2. Assisted & Restricted Units'!L185)","v":""},{"$f":"IF('2. Assisted & Restricted Units'!M185=\"\",\"\",'2. Assisted & Restricted Units'!M185)","v":""},{"$f":"IF('2. Assisted & Restricted Units'!O185=\"\",\"\",'2. Assisted & Restricted Units'!O185)","v":""},{"$f":"IF('2. Assisted & Restricted Units'!P185=\"\",\"\",'2. Assisted & Restricted Units'!P185)","v":""},{"$f":"IF('2. Assisted & Restricted Units'!Q185=\"\",\"\",'2. Assisted & Restricted Units'!Q185)","v":""},{"$f":"IF('2. Assisted & Restricted Units'!R185=\"\",\"\",'2. Assisted & Restricted Units'!R185)","v":""},{"$f":"IF(A185=\"\",\"\",'1. Checklist & Certification'!$K$1)","v":""},{"$f":"IF(A185=\"\",\"\",'1. Checklist & Certification'!$C$62)","v":""},{"$f":"IF(A185=\"\",\"\",'1. Checklist & Certification'!$K$62)","v":""},{"$f":"IF(A185=\"\",\"\",'1. Checklist & Certification'!$C$6)","v":""},{"$f":"IF(A185=\"\",\"\",'1. Checklist & Certification'!$G$4)","v":""},{"$f":"IF(A185=\"\",\"\",'1. Checklist & Certification'!$C$7)","v":""},{"$f":"IF(A185=\"\",\"\",'1. Checklist & Certification'!$C$8)","v":""},{"$f":"IF(A185=\"\",\"\",'1. Checklist & Certification'!$F$7)","v":""},{"$f":"IF(A185=\"\",\"\",'1. Checklist & Certification'!$F$8)","v":""},{"$f":"IF(A185=\"\",\"\",'1. Checklist & Certification'!$B$9)","v":""},{"$f":"IF(A185=\"\",\"\",'1. Checklist & Certification'!$F$9)","v":""},{"$f":"IF(A185=\"\",\"\",'1. Checklist & Certification'!$C$10)","v":""},{"$f":"IF(A185=\"\",\"\",'1. Checklist & Certification'!$C$11)","v":""},{"$f":"IF(A185=\"\",\"\",'1. Checklist & Certification'!$C$12)","v":""},{"$f":"IF(A185=\"\",\"\",'1. Checklist & Certification'!$B$14)","v":""},{"$f":"IF(A185=\"\",\"\",'1. Checklist & Certification'!$E$14)","v":""},{"$f":"IF(B185=\"\",\"\",'1. Checklist & Certification'!$G$14)","v":""},{"$f":"IF(A185=\"\",\"\",'MHP Family Income & Rent Limits'!$B$3)","v":""},{"$f":"IF(A185=\"\",\"\",'MHP Family Income & Rent Limits'!$J$3)","v":""},{"$f":"IF(A185=\"\",\"\",'MHP Family Income & Rent Limits'!$E$4)","v":""},{"$f":"IF(A185=\"\",\"\",'MHP Family Income & Rent Limits'!$C$7)","v":""},{"$f":"IF(A185=\"\",\"\",'MHP Family Income & Rent Limits'!$F$8)","v":""},{"$f":"IF(A185=\"\",\"\",'1. Checklist & Certification'!$G$4)","v":""},{"$f":"IF(A185=\"\",\"\",'1. Checklist & Certification'!$K$39)","v":""},{"$f":"IF(A185=\"\",\"\",'1. Checklist & Certification'!$K$43)","v":""},{"$f":"IF(A185=\"\",\"\",'1. Checklist & Certification'!$K$45)","v":""},{"$f":"IF(A185=\"\",\"\",'1. Checklist & Certification'!$K$49)","v":""},{"$f":"IF(A185=\"\",\"\",'1. Checklist & Certification'!$E$66)","v":""},{"$f":"IF(A185=\"\",\"\",'1. Checklist & Certification'!$E$67)","v":""},{"$f":"IF(A185=\"\",\"\",'1. Checklist & Certification'!$E$68)","v":""},{"$f":"IF(A185=\"\",\"\",'1. Checklist & Certification'!$G$66)","v":""},{"$f":"IF(A185=\"\",\"\",'1. Checklist & Certification'!$H$66)","v":""},{"$f":"IF(A185=\"\",\"\",'1. Checklist & Certification'!$I$66)","v":""},{"$f":"IF(A185=\"\",\"\",'1. Checklist & Certification'!$I$67)","v":""},{"$f":"IF(A185=\"\",\"\",'1. Checklist & Certification'!$I$68)","v":""},null,{"$f":"IF(C185=\"\",\"\",HLOOKUP(C185,'MHP Family Income & Rent Limits'!$E$12:$L$26,2,FALSE))","v":""},{"$f":"IF(C185=\"\",\"\",HLOOKUP(C185,'MHP Family Income & Rent Limits'!$E$12:$L$26,3,FALSE))","v":""},{"$f":"IF(C185=\"\",\"\",HLOOKUP(C185,'MHP Family Income & Rent Limits'!$E$12:$L$26,4,FALSE))","v":""},{"$f":"IF(C185=\"\",\"\",HLOOKUP(C185,'MHP Family Income & Rent Limits'!$E$12:$L$26,5,FALSE))","v":""},{"$f":"IF(C185=\"\",\"\",HLOOKUP(C185,'MHP Family Income & Rent Limits'!$E$12:$L$26,6,FALSE))","v":""},{"$f":"IF(C185=\"\",\"\",HLOOKUP(C185,'MHP Family Income & Rent Limits'!$E$12:$L$26,7,FALSE))","v":""},{"$f":"IF(C185=\"\",\"\",HLOOKUP(C185,'MHP Family Income & Rent Limits'!$E$12:$L$26,8,FALSE))","v":""},{"$f":"IF(C185=\"\",\"\",HLOOKUP(C185,'MHP Family Income & Rent Limits'!$E$12:$L$26,9,FALSE))","v":""},{"$f":"IF(C185=\"\",\"\",HLOOKUP(C185,'MHP Family Income & Rent Limits'!$E$12:$L$26,10,FALSE))","v":""},{"$f":"IF(C185=\"\",\"\",HLOOKUP(C185,'MHP Family Income & Rent Limits'!$E$12:$L$26,11,FALSE))","v":""},{"$f":"IF(C185=\"\",\"\",HLOOKUP(C185,'MHP Family Income & Rent Limits'!$E$12:$L$26,12,FALSE))","v":""},{"$f":"IF(C185=\"\",\"\",HLOOKUP(C185,'MHP Family Income & Rent Limits'!$E$12:$L$26,13,FALSE))","v":""},{"$f":"IF(C185=\"\",\"\",HLOOKUP(C185,'MHP Family Income & Rent Limits'!$E$12:$L$26,14,FALSE))","v":""},{"$f":"IF(C185=\"\",\"\",HLOOKUP(C185,'MHP Family Income & Rent Limits'!$E$12:$L$26,15,FALSE))","v":""}]
[{"$f":"IF('2. Assisted & Restricted Units'!A186=\"\",\"\",'2. Assisted & Restricted Units'!A186)","v":""},{"$f":"IF('2. Assisted & Restricted Units'!B186=\"\",\"\",'2. Assisted & Restricted Units'!B186)","v":""},{"$f":"IF('2. Assisted & Restricted Units'!D186=\"\",\"\",'2. Assisted & Restricted Units'!D186)","v":""},{"$f":"IF('2. Assisted & Restricted Units'!E186=\"\",\"\",'2. Assisted & Restricted Units'!E186)","v":""},{"$f":"IF('2. Assisted & Restricted Units'!H186=\"\",\"\",'2. Assisted & Restricted Units'!H186)","v":""},{"$f":"_xlfn.IFS(E186=\"\",\"\",E186>BO186,$BP$6,E186>BN186,$BO$6,E186>BM186,$BN$6,E186>BL186,$BM$6,E186>BK186,$BL$6,E186>BJ186,$BK$6,E186>BI186,$BJ$6,E186>BH186,$BI$6,E186>BG186,$BH$6,E186>BF186,$BG$6,E186>BE186,$BF$6,E186>BD186,$BE$6,E186>BC186,$BD$6,E186>=0,$BC$6)","v":""},{"$f":"IF('2. Assisted & Restricted Units'!T186=\"\",\"\",'2. Assisted & Restricted Units'!T186)","v":""},{"$f":"IF('2. Assisted & Restricted Units'!I186=\"\",\"\",'2. Assisted & Restricted Units'!I186)","v":""},{"$f":"IF('2. Assisted & Restricted Units'!AP186=\"\",\"\",'2. Assisted & Restricted Units'!AP186)","v":0},{"$f":"IF('2. Assisted & Restricted Units'!AT186=\"\",\"\",'2. Assisted & Restricted Units'!AT186)","v":""},0,{"$f":"IF('2. Assisted & Restricted Units'!AV186=\"\",\"\",'2. Assisted & Restricted Units'!AV186)","v":""},{"$f":"IF('2. Assisted & Restricted Units'!L186=\"\",\"\",'2. Assisted & Restricted Units'!L186)","v":""},{"$f":"IF('2. Assisted & Restricted Units'!M186=\"\",\"\",'2. Assisted & Restricted Units'!M186)","v":""},{"$f":"IF('2. Assisted & Restricted Units'!O186=\"\",\"\",'2. Assisted & Restricted Units'!O186)","v":""},{"$f":"IF('2. Assisted & Restricted Units'!P186=\"\",\"\",'2. Assisted & Restricted Units'!P186)","v":""},{"$f":"IF('2. Assisted & Restricted Units'!Q186=\"\",\"\",'2. Assisted & Restricted Units'!Q186)","v":""},{"$f":"IF('2. Assisted & Restricted Units'!R186=\"\",\"\",'2. Assisted & Restricted Units'!R186)","v":""},{"$f":"IF(A186=\"\",\"\",'1. Checklist & Certification'!$K$1)","v":""},{"$f":"IF(A186=\"\",\"\",'1. Checklist & Certification'!$C$62)","v":""},{"$f":"IF(A186=\"\",\"\",'1. Checklist & Certification'!$K$62)","v":""},{"$f":"IF(A186=\"\",\"\",'1. Checklist & Certification'!$C$6)","v":""},{"$f":"IF(A186=\"\",\"\",'1. Checklist & Certification'!$G$4)","v":""},{"$f":"IF(A186=\"\",\"\",'1. Checklist & Certification'!$C$7)","v":""},{"$f":"IF(A186=\"\",\"\",'1. Checklist & Certification'!$C$8)","v":""},{"$f":"IF(A186=\"\",\"\",'1. Checklist & Certification'!$F$7)","v":""},{"$f":"IF(A186=\"\",\"\",'1. Checklist & Certification'!$F$8)","v":""},{"$f":"IF(A186=\"\",\"\",'1. Checklist & Certification'!$B$9)","v":""},{"$f":"IF(A186=\"\",\"\",'1. Checklist & Certification'!$F$9)","v":""},{"$f":"IF(A186=\"\",\"\",'1. Checklist & Certification'!$C$10)","v":""},{"$f":"IF(A186=\"\",\"\",'1. Checklist & Certification'!$C$11)","v":""},{"$f":"IF(A186=\"\",\"\",'1. Checklist & Certification'!$C$12)","v":""},{"$f":"IF(A186=\"\",\"\",'1. Checklist & Certification'!$B$14)","v":""},{"$f":"IF(A186=\"\",\"\",'1. Checklist & Certification'!$E$14)","v":""},{"$f":"IF(B186=\"\",\"\",'1. Checklist & Certification'!$G$14)","v":""},{"$f":"IF(A186=\"\",\"\",'MHP Family Income & Rent Limits'!$B$3)","v":""},{"$f":"IF(A186=\"\",\"\",'MHP Family Income & Rent Limits'!$J$3)","v":""},{"$f":"IF(A186=\"\",\"\",'MHP Family Income & Rent Limits'!$E$4)","v":""},{"$f":"IF(A186=\"\",\"\",'MHP Family Income & Rent Limits'!$C$7)","v":""},{"$f":"IF(A186=\"\",\"\",'MHP Family Income & Rent Limits'!$F$8)","v":""},{"$f":"IF(A186=\"\",\"\",'1. Checklist & Certification'!$G$4)","v":""},{"$f":"IF(A186=\"\",\"\",'1. Checklist & Certification'!$K$39)","v":""},{"$f":"IF(A186=\"\",\"\",'1. Checklist & Certification'!$K$43)","v":""},{"$f":"IF(A186=\"\",\"\",'1. Checklist & Certification'!$K$45)","v":""},{"$f":"IF(A186=\"\",\"\",'1. Checklist & Certification'!$K$49)","v":""},{"$f":"IF(A186=\"\",\"\",'1. Checklist & Certification'!$E$66)","v":""},{"$f":"IF(A186=\"\",\"\",'1. Checklist & Certification'!$E$67)","v":""},{"$f":"IF(A186=\"\",\"\",'1. Checklist & Certification'!$E$68)","v":""},{"$f":"IF(A186=\"\",\"\",'1. Checklist & Certification'!$G$66)","v":""},{"$f":"IF(A186=\"\",\"\",'1. Checklist & Certification'!$H$66)","v":""},{"$f":"IF(A186=\"\",\"\",'1. Checklist & Certification'!$I$66)","v":""},{"$f":"IF(A186=\"\",\"\",'1. Checklist & Certification'!$I$67)","v":""},{"$f":"IF(A186=\"\",\"\",'1. Checklist & Certification'!$I$68)","v":""},null,{"$f":"IF(C186=\"\",\"\",HLOOKUP(C186,'MHP Family Income & Rent Limits'!$E$12:$L$26,2,FALSE))","v":""},{"$f":"IF(C186=\"\",\"\",HLOOKUP(C186,'MHP Family Income & Rent Limits'!$E$12:$L$26,3,FALSE))","v":""},{"$f":"IF(C186=\"\",\"\",HLOOKUP(C186,'MHP Family Income & Rent Limits'!$E$12:$L$26,4,FALSE))","v":""},{"$f":"IF(C186=\"\",\"\",HLOOKUP(C186,'MHP Family Income & Rent Limits'!$E$12:$L$26,5,FALSE))","v":""},{"$f":"IF(C186=\"\",\"\",HLOOKUP(C186,'MHP Family Income & Rent Limits'!$E$12:$L$26,6,FALSE))","v":""},{"$f":"IF(C186=\"\",\"\",HLOOKUP(C186,'MHP Family Income & Rent Limits'!$E$12:$L$26,7,FALSE))","v":""},{"$f":"IF(C186=\"\",\"\",HLOOKUP(C186,'MHP Family Income & Rent Limits'!$E$12:$L$26,8,FALSE))","v":""},{"$f":"IF(C186=\"\",\"\",HLOOKUP(C186,'MHP Family Income & Rent Limits'!$E$12:$L$26,9,FALSE))","v":""},{"$f":"IF(C186=\"\",\"\",HLOOKUP(C186,'MHP Family Income & Rent Limits'!$E$12:$L$26,10,FALSE))","v":""},{"$f":"IF(C186=\"\",\"\",HLOOKUP(C186,'MHP Family Income & Rent Limits'!$E$12:$L$26,11,FALSE))","v":""},{"$f":"IF(C186=\"\",\"\",HLOOKUP(C186,'MHP Family Income & Rent Limits'!$E$12:$L$26,12,FALSE))","v":""},{"$f":"IF(C186=\"\",\"\",HLOOKUP(C186,'MHP Family Income & Rent Limits'!$E$12:$L$26,13,FALSE))","v":""},{"$f":"IF(C186=\"\",\"\",HLOOKUP(C186,'MHP Family Income & Rent Limits'!$E$12:$L$26,14,FALSE))","v":""},{"$f":"IF(C186=\"\",\"\",HLOOKUP(C186,'MHP Family Income & Rent Limits'!$E$12:$L$26,15,FALSE))","v":""}]
[{"$f":"IF('2. Assisted & Restricted Units'!A187=\"\",\"\",'2. Assisted & Restricted Units'!A187)","v":""},{"$f":"IF('2. Assisted & Restricted Units'!B187=\"\",\"\",'2. Assisted & Restricted Units'!B187)","v":""},{"$f":"IF('2. Assisted & Restricted Units'!D187=\"\",\"\",'2. Assisted & Restricted Units'!D187)","v":""},{"$f":"IF('2. Assisted & Restricted Units'!E187=\"\",\"\",'2. Assisted & Restricted Units'!E187)","v":""},{"$f":"IF('2. Assisted & Restricted Units'!H187=\"\",\"\",'2. Assisted & Restricted Units'!H187)","v":""},{"$f":"_xlfn.IFS(E187=\"\",\"\",E187>BO187,$BP$6,E187>BN187,$BO$6,E187>BM187,$BN$6,E187>BL187,$BM$6,E187>BK187,$BL$6,E187>BJ187,$BK$6,E187>BI187,$BJ$6,E187>BH187,$BI$6,E187>BG187,$BH$6,E187>BF187,$BG$6,E187>BE187,$BF$6,E187>BD187,$BE$6,E187>BC187,$BD$6,E187>=0,$BC$6)","v":""},{"$f":"IF('2. Assisted & Restricted Units'!T187=\"\",\"\",'2. Assisted & Restricted Units'!T187)","v":""},{"$f":"IF('2. Assisted & Restricted Units'!I187=\"\",\"\",'2. Assisted & Restricted Units'!I187)","v":""},{"$f":"IF('2. Assisted & Restricted Units'!AP187=\"\",\"\",'2. Assisted & Restricted Units'!AP187)","v":0},{"$f":"IF('2. Assisted & Restricted Units'!AT187=\"\",\"\",'2. Assisted & Restricted Units'!AT187)","v":""},0,{"$f":"IF('2. Assisted & Restricted Units'!AV187=\"\",\"\",'2. Assisted & Restricted Units'!AV187)","v":""},{"$f":"IF('2. Assisted & Restricted Units'!L187=\"\",\"\",'2. Assisted & Restricted Units'!L187)","v":""},{"$f":"IF('2. Assisted & Restricted Units'!M187=\"\",\"\",'2. Assisted & Restricted Units'!M187)","v":""},{"$f":"IF('2. Assisted & Restricted Units'!O187=\"\",\"\",'2. Assisted & Restricted Units'!O187)","v":""},{"$f":"IF('2. Assisted & Restricted Units'!P187=\"\",\"\",'2. Assisted & Restricted Units'!P187)","v":""},{"$f":"IF('2. Assisted & Restricted Units'!Q187=\"\",\"\",'2. Assisted & Restricted Units'!Q187)","v":""},{"$f":"IF('2. Assisted & Restricted Units'!R187=\"\",\"\",'2. Assisted & Restricted Units'!R187)","v":""},{"$f":"IF(A187=\"\",\"\",'1. Checklist & Certification'!$K$1)","v":""},{"$f":"IF(A187=\"\",\"\",'1. Checklist & Certification'!$C$62)","v":""},{"$f":"IF(A187=\"\",\"\",'1. Checklist & Certification'!$K$62)","v":""},{"$f":"IF(A187=\"\",\"\",'1. Checklist & Certification'!$C$6)","v":""},{"$f":"IF(A187=\"\",\"\",'1. Checklist & Certification'!$G$4)","v":""},{"$f":"IF(A187=\"\",\"\",'1. Checklist & Certification'!$C$7)","v":""},{"$f":"IF(A187=\"\",\"\",'1. Checklist & Certification'!$C$8)","v":""},{"$f":"IF(A187=\"\",\"\",'1. Checklist & Certification'!$F$7)","v":""},{"$f":"IF(A187=\"\",\"\",'1. Checklist & Certification'!$F$8)","v":""},{"$f":"IF(A187=\"\",\"\",'1. Checklist & Certification'!$B$9)","v":""},{"$f":"IF(A187=\"\",\"\",'1. Checklist & Certification'!$F$9)","v":""},{"$f":"IF(A187=\"\",\"\",'1. Checklist & Certification'!$C$10)","v":""},{"$f":"IF(A187=\"\",\"\",'1. Checklist & Certification'!$C$11)","v":""},{"$f":"IF(A187=\"\",\"\",'1. Checklist & Certification'!$C$12)","v":""},{"$f":"IF(A187=\"\",\"\",'1. Checklist & Certification'!$B$14)","v":""},{"$f":"IF(A187=\"\",\"\",'1. Checklist & Certification'!$E$14)","v":""},{"$f":"IF(B187=\"\",\"\",'1. Checklist & Certification'!$G$14)","v":""},{"$f":"IF(A187=\"\",\"\",'MHP Family Income & Rent Limits'!$B$3)","v":""},{"$f":"IF(A187=\"\",\"\",'MHP Family Income & Rent Limits'!$J$3)","v":""},{"$f":"IF(A187=\"\",\"\",'MHP Family Income & Rent Limits'!$E$4)","v":""},{"$f":"IF(A187=\"\",\"\",'MHP Family Income & Rent Limits'!$C$7)","v":""},{"$f":"IF(A187=\"\",\"\",'MHP Family Income & Rent Limits'!$F$8)","v":""},{"$f":"IF(A187=\"\",\"\",'1. Checklist & Certification'!$G$4)","v":""},{"$f":"IF(A187=\"\",\"\",'1. Checklist & Certification'!$K$39)","v":""},{"$f":"IF(A187=\"\",\"\",'1. Checklist & Certification'!$K$43)","v":""},{"$f":"IF(A187=\"\",\"\",'1. Checklist & Certification'!$K$45)","v":""},{"$f":"IF(A187=\"\",\"\",'1. Checklist & Certification'!$K$49)","v":""},{"$f":"IF(A187=\"\",\"\",'1. Checklist & Certification'!$E$66)","v":""},{"$f":"IF(A187=\"\",\"\",'1. Checklist & Certification'!$E$67)","v":""},{"$f":"IF(A187=\"\",\"\",'1. Checklist & Certification'!$E$68)","v":""},{"$f":"IF(A187=\"\",\"\",'1. Checklist & Certification'!$G$66)","v":""},{"$f":"IF(A187=\"\",\"\",'1. Checklist & Certification'!$H$66)","v":""},{"$f":"IF(A187=\"\",\"\",'1. Checklist & Certification'!$I$66)","v":""},{"$f":"IF(A187=\"\",\"\",'1. Checklist & Certification'!$I$67)","v":""},{"$f":"IF(A187=\"\",\"\",'1. Checklist & Certification'!$I$68)","v":""},null,{"$f":"IF(C187=\"\",\"\",HLOOKUP(C187,'MHP Family Income & Rent Limits'!$E$12:$L$26,2,FALSE))","v":""},{"$f":"IF(C187=\"\",\"\",HLOOKUP(C187,'MHP Family Income & Rent Limits'!$E$12:$L$26,3,FALSE))","v":""},{"$f":"IF(C187=\"\",\"\",HLOOKUP(C187,'MHP Family Income & Rent Limits'!$E$12:$L$26,4,FALSE))","v":""},{"$f":"IF(C187=\"\",\"\",HLOOKUP(C187,'MHP Family Income & Rent Limits'!$E$12:$L$26,5,FALSE))","v":""},{"$f":"IF(C187=\"\",\"\",HLOOKUP(C187,'MHP Family Income & Rent Limits'!$E$12:$L$26,6,FALSE))","v":""},{"$f":"IF(C187=\"\",\"\",HLOOKUP(C187,'MHP Family Income & Rent Limits'!$E$12:$L$26,7,FALSE))","v":""},{"$f":"IF(C187=\"\",\"\",HLOOKUP(C187,'MHP Family Income & Rent Limits'!$E$12:$L$26,8,FALSE))","v":""},{"$f":"IF(C187=\"\",\"\",HLOOKUP(C187,'MHP Family Income & Rent Limits'!$E$12:$L$26,9,FALSE))","v":""},{"$f":"IF(C187=\"\",\"\",HLOOKUP(C187,'MHP Family Income & Rent Limits'!$E$12:$L$26,10,FALSE))","v":""},{"$f":"IF(C187=\"\",\"\",HLOOKUP(C187,'MHP Family Income & Rent Limits'!$E$12:$L$26,11,FALSE))","v":""},{"$f":"IF(C187=\"\",\"\",HLOOKUP(C187,'MHP Family Income & Rent Limits'!$E$12:$L$26,12,FALSE))","v":""},{"$f":"IF(C187=\"\",\"\",HLOOKUP(C187,'MHP Family Income & Rent Limits'!$E$12:$L$26,13,FALSE))","v":""},{"$f":"IF(C187=\"\",\"\",HLOOKUP(C187,'MHP Family Income & Rent Limits'!$E$12:$L$26,14,FALSE))","v":""},{"$f":"IF(C187=\"\",\"\",HLOOKUP(C187,'MHP Family Income & Rent Limits'!$E$12:$L$26,15,FALSE))","v":""}]
[{"$f":"IF('2. Assisted & Restricted Units'!A188=\"\",\"\",'2. Assisted & Restricted Units'!A188)","v":""},{"$f":"IF('2. Assisted & Restricted Units'!B188=\"\",\"\",'2. Assisted & Restricted Units'!B188)","v":""},{"$f":"IF('2. Assisted & Restricted Units'!D188=\"\",\"\",'2. Assisted & Restricted Units'!D188)","v":""},{"$f":"IF('2. Assisted & Restricted Units'!E188=\"\",\"\",'2. Assisted & Restricted Units'!E188)","v":""},{"$f":"IF('2. Assisted & Restricted Units'!H188=\"\",\"\",'2. Assisted & Restricted Units'!H188)","v":""},{"$f":"_xlfn.IFS(E188=\"\",\"\",E188>BO188,$BP$6,E188>BN188,$BO$6,E188>BM188,$BN$6,E188>BL188,$BM$6,E188>BK188,$BL$6,E188>BJ188,$BK$6,E188>BI188,$BJ$6,E188>BH188,$BI$6,E188>BG188,$BH$6,E188>BF188,$BG$6,E188>BE188,$BF$6,E188>BD188,$BE$6,E188>BC188,$BD$6,E188>=0,$BC$6)","v":""},{"$f":"IF('2. Assisted & Restricted Units'!T188=\"\",\"\",'2. Assisted & Restricted Units'!T188)","v":""},{"$f":"IF('2. Assisted & Restricted Units'!I188=\"\",\"\",'2. Assisted & Restricted Units'!I188)","v":""},{"$f":"IF('2. Assisted & Restricted Units'!AP188=\"\",\"\",'2. Assisted & Restricted Units'!AP188)","v":0},{"$f":"IF('2. Assisted & Restricted Units'!AT188=\"\",\"\",'2. Assisted & Restricted Units'!AT188)","v":""},0,{"$f":"IF('2. Assisted & Restricted Units'!AV188=\"\",\"\",'2. Assisted & Restricted Units'!AV188)","v":""},{"$f":"IF('2. Assisted & Restricted Units'!L188=\"\",\"\",'2. Assisted & Restricted Units'!L188)","v":""},{"$f":"IF('2. Assisted & Restricted Units'!M188=\"\",\"\",'2. Assisted & Restricted Units'!M188)","v":""},{"$f":"IF('2. Assisted & Restricted Units'!O188=\"\",\"\",'2. Assisted & Restricted Units'!O188)","v":""},{"$f":"IF('2. Assisted & Restricted Units'!P188=\"\",\"\",'2. Assisted & Restricted Units'!P188)","v":""},{"$f":"IF('2. Assisted & Restricted Units'!Q188=\"\",\"\",'2. Assisted & Restricted Units'!Q188)","v":""},{"$f":"IF('2. Assisted & Restricted Units'!R188=\"\",\"\",'2. Assisted & Restricted Units'!R188)","v":""},{"$f":"IF(A188=\"\",\"\",'1. Checklist & Certification'!$K$1)","v":""},{"$f":"IF(A188=\"\",\"\",'1. Checklist & Certification'!$C$62)","v":""},{"$f":"IF(A188=\"\",\"\",'1. Checklist & Certification'!$K$62)","v":""},{"$f":"IF(A188=\"\",\"\",'1. Checklist & Certification'!$C$6)","v":""},{"$f":"IF(A188=\"\",\"\",'1. Checklist & Certification'!$G$4)","v":""},{"$f":"IF(A188=\"\",\"\",'1. Checklist & Certification'!$C$7)","v":""},{"$f":"IF(A188=\"\",\"\",'1. Checklist & Certification'!$C$8)","v":""},{"$f":"IF(A188=\"\",\"\",'1. Checklist & Certification'!$F$7)","v":""},{"$f":"IF(A188=\"\",\"\",'1. Checklist & Certification'!$F$8)","v":""},{"$f":"IF(A188=\"\",\"\",'1. Checklist & Certification'!$B$9)","v":""},{"$f":"IF(A188=\"\",\"\",'1. Checklist & Certification'!$F$9)","v":""},{"$f":"IF(A188=\"\",\"\",'1. Checklist & Certification'!$C$10)","v":""},{"$f":"IF(A188=\"\",\"\",'1. Checklist & Certification'!$C$11)","v":""},{"$f":"IF(A188=\"\",\"\",'1. Checklist & Certification'!$C$12)","v":""},{"$f":"IF(A188=\"\",\"\",'1. Checklist & Certification'!$B$14)","v":""},{"$f":"IF(A188=\"\",\"\",'1. Checklist & Certification'!$E$14)","v":""},{"$f":"IF(B188=\"\",\"\",'1. Checklist & Certification'!$G$14)","v":""},{"$f":"IF(A188=\"\",\"\",'MHP Family Income & Rent Limits'!$B$3)","v":""},{"$f":"IF(A188=\"\",\"\",'MHP Family Income & Rent Limits'!$J$3)","v":""},{"$f":"IF(A188=\"\",\"\",'MHP Family Income & Rent Limits'!$E$4)","v":""},{"$f":"IF(A188=\"\",\"\",'MHP Family Income & Rent Limits'!$C$7)","v":""},{"$f":"IF(A188=\"\",\"\",'MHP Family Income & Rent Limits'!$F$8)","v":""},{"$f":"IF(A188=\"\",\"\",'1. Checklist & Certification'!$G$4)","v":""},{"$f":"IF(A188=\"\",\"\",'1. Checklist & Certification'!$K$39)","v":""},{"$f":"IF(A188=\"\",\"\",'1. Checklist & Certification'!$K$43)","v":""},{"$f":"IF(A188=\"\",\"\",'1. Checklist & Certification'!$K$45)","v":""},{"$f":"IF(A188=\"\",\"\",'1. Checklist & Certification'!$K$49)","v":""},{"$f":"IF(A188=\"\",\"\",'1. Checklist & Certification'!$E$66)","v":""},{"$f":"IF(A188=\"\",\"\",'1. Checklist & Certification'!$E$67)","v":""},{"$f":"IF(A188=\"\",\"\",'1. Checklist & Certification'!$E$68)","v":""},{"$f":"IF(A188=\"\",\"\",'1. Checklist & Certification'!$G$66)","v":""},{"$f":"IF(A188=\"\",\"\",'1. Checklist & Certification'!$H$66)","v":""},{"$f":"IF(A188=\"\",\"\",'1. Checklist & Certification'!$I$66)","v":""},{"$f":"IF(A188=\"\",\"\",'1. Checklist & Certification'!$I$67)","v":""},{"$f":"IF(A188=\"\",\"\",'1. Checklist & Certification'!$I$68)","v":""},null,{"$f":"IF(C188=\"\",\"\",HLOOKUP(C188,'MHP Family Income & Rent Limits'!$E$12:$L$26,2,FALSE))","v":""},{"$f":"IF(C188=\"\",\"\",HLOOKUP(C188,'MHP Family Income & Rent Limits'!$E$12:$L$26,3,FALSE))","v":""},{"$f":"IF(C188=\"\",\"\",HLOOKUP(C188,'MHP Family Income & Rent Limits'!$E$12:$L$26,4,FALSE))","v":""},{"$f":"IF(C188=\"\",\"\",HLOOKUP(C188,'MHP Family Income & Rent Limits'!$E$12:$L$26,5,FALSE))","v":""},{"$f":"IF(C188=\"\",\"\",HLOOKUP(C188,'MHP Family Income & Rent Limits'!$E$12:$L$26,6,FALSE))","v":""},{"$f":"IF(C188=\"\",\"\",HLOOKUP(C188,'MHP Family Income & Rent Limits'!$E$12:$L$26,7,FALSE))","v":""},{"$f":"IF(C188=\"\",\"\",HLOOKUP(C188,'MHP Family Income & Rent Limits'!$E$12:$L$26,8,FALSE))","v":""},{"$f":"IF(C188=\"\",\"\",HLOOKUP(C188,'MHP Family Income & Rent Limits'!$E$12:$L$26,9,FALSE))","v":""},{"$f":"IF(C188=\"\",\"\",HLOOKUP(C188,'MHP Family Income & Rent Limits'!$E$12:$L$26,10,FALSE))","v":""},{"$f":"IF(C188=\"\",\"\",HLOOKUP(C188,'MHP Family Income & Rent Limits'!$E$12:$L$26,11,FALSE))","v":""},{"$f":"IF(C188=\"\",\"\",HLOOKUP(C188,'MHP Family Income & Rent Limits'!$E$12:$L$26,12,FALSE))","v":""},{"$f":"IF(C188=\"\",\"\",HLOOKUP(C188,'MHP Family Income & Rent Limits'!$E$12:$L$26,13,FALSE))","v":""},{"$f":"IF(C188=\"\",\"\",HLOOKUP(C188,'MHP Family Income & Rent Limits'!$E$12:$L$26,14,FALSE))","v":""},{"$f":"IF(C188=\"\",\"\",HLOOKUP(C188,'MHP Family Income & Rent Limits'!$E$12:$L$26,15,FALSE))","v":""}]
[{"$f":"IF('2. Assisted & Restricted Units'!A189=\"\",\"\",'2. Assisted & Restricted Units'!A189)","v":""},{"$f":"IF('2. Assisted & Restricted Units'!B189=\"\",\"\",'2. Assisted & Restricted Units'!B189)","v":""},{"$f":"IF('2. Assisted & Restricted Units'!D189=\"\",\"\",'2. Assisted & Restricted Units'!D189)","v":""},{"$f":"IF('2. Assisted & Restricted Units'!E189=\"\",\"\",'2. Assisted & Restricted Units'!E189)","v":""},{"$f":"IF('2. Assisted & Restricted Units'!H189=\"\",\"\",'2. Assisted & Restricted Units'!H189)","v":""},{"$f":"_xlfn.IFS(E189=\"\",\"\",E189>BO189,$BP$6,E189>BN189,$BO$6,E189>BM189,$BN$6,E189>BL189,$BM$6,E189>BK189,$BL$6,E189>BJ189,$BK$6,E189>BI189,$BJ$6,E189>BH189,$BI$6,E189>BG189,$BH$6,E189>BF189,$BG$6,E189>BE189,$BF$6,E189>BD189,$BE$6,E189>BC189,$BD$6,E189>=0,$BC$6)","v":""},{"$f":"IF('2. Assisted & Restricted Units'!T189=\"\",\"\",'2. Assisted & Restricted Units'!T189)","v":""},{"$f":"IF('2. Assisted & Restricted Units'!I189=\"\",\"\",'2. Assisted & Restricted Units'!I189)","v":""},{"$f":"IF('2. Assisted & Restricted Units'!AP189=\"\",\"\",'2. Assisted & Restricted Units'!AP189)","v":0},{"$f":"IF('2. Assisted & Restricted Units'!AT189=\"\",\"\",'2. Assisted & Restricted Units'!AT189)","v":""},0,{"$f":"IF('2. Assisted & Restricted Units'!AV189=\"\",\"\",'2. Assisted & Restricted Units'!AV189)","v":""},{"$f":"IF('2. Assisted & Restricted Units'!L189=\"\",\"\",'2. Assisted & Restricted Units'!L189)","v":""},{"$f":"IF('2. Assisted & Restricted Units'!M189=\"\",\"\",'2. Assisted & Restricted Units'!M189)","v":""},{"$f":"IF('2. Assisted & Restricted Units'!O189=\"\",\"\",'2. Assisted & Restricted Units'!O189)","v":""},{"$f":"IF('2. Assisted & Restricted Units'!P189=\"\",\"\",'2. Assisted & Restricted Units'!P189)","v":""},{"$f":"IF('2. Assisted & Restricted Units'!Q189=\"\",\"\",'2. Assisted & Restricted Units'!Q189)","v":""},{"$f":"IF('2. Assisted & Restricted Units'!R189=\"\",\"\",'2. Assisted & Restricted Units'!R189)","v":""},{"$f":"IF(A189=\"\",\"\",'1. Checklist & Certification'!$K$1)","v":""},{"$f":"IF(A189=\"\",\"\",'1. Checklist & Certification'!$C$62)","v":""},{"$f":"IF(A189=\"\",\"\",'1. Checklist & Certification'!$K$62)","v":""},{"$f":"IF(A189=\"\",\"\",'1. Checklist & Certification'!$C$6)","v":""},{"$f":"IF(A189=\"\",\"\",'1. Checklist & Certification'!$G$4)","v":""},{"$f":"IF(A189=\"\",\"\",'1. Checklist & Certification'!$C$7)","v":""},{"$f":"IF(A189=\"\",\"\",'1. Checklist & Certification'!$C$8)","v":""},{"$f":"IF(A189=\"\",\"\",'1. Checklist & Certification'!$F$7)","v":""},{"$f":"IF(A189=\"\",\"\",'1. Checklist & Certification'!$F$8)","v":""},{"$f":"IF(A189=\"\",\"\",'1. Checklist & Certification'!$B$9)","v":""},{"$f":"IF(A189=\"\",\"\",'1. Checklist & Certification'!$F$9)","v":""},{"$f":"IF(A189=\"\",\"\",'1. Checklist & Certification'!$C$10)","v":""},{"$f":"IF(A189=\"\",\"\",'1. Checklist & Certification'!$C$11)","v":""},{"$f":"IF(A189=\"\",\"\",'1. Checklist & Certification'!$C$12)","v":""},{"$f":"IF(A189=\"\",\"\",'1. Checklist & Certification'!$B$14)","v":""},{"$f":"IF(A189=\"\",\"\",'1. Checklist & Certification'!$E$14)","v":""},{"$f":"IF(B189=\"\",\"\",'1. Checklist & Certification'!$G$14)","v":""},{"$f":"IF(A189=\"\",\"\",'MHP Family Income & Rent Limits'!$B$3)","v":""},{"$f":"IF(A189=\"\",\"\",'MHP Family Income & Rent Limits'!$J$3)","v":""},{"$f":"IF(A189=\"\",\"\",'MHP Family Income & Rent Limits'!$E$4)","v":""},{"$f":"IF(A189=\"\",\"\",'MHP Family Income & Rent Limits'!$C$7)","v":""},{"$f":"IF(A189=\"\",\"\",'MHP Family Income & Rent Limits'!$F$8)","v":""},{"$f":"IF(A189=\"\",\"\",'1. Checklist & Certification'!$G$4)","v":""},{"$f":"IF(A189=\"\",\"\",'1. Checklist & Certification'!$K$39)","v":""},{"$f":"IF(A189=\"\",\"\",'1. Checklist & Certification'!$K$43)","v":""},{"$f":"IF(A189=\"\",\"\",'1. Checklist & Certification'!$K$45)","v":""},{"$f":"IF(A189=\"\",\"\",'1. Checklist & Certification'!$K$49)","v":""},{"$f":"IF(A189=\"\",\"\",'1. Checklist & Certification'!$E$66)","v":""},{"$f":"IF(A189=\"\",\"\",'1. Checklist & Certification'!$E$67)","v":""},{"$f":"IF(A189=\"\",\"\",'1. Checklist & Certification'!$E$68)","v":""},{"$f":"IF(A189=\"\",\"\",'1. Checklist & Certification'!$G$66)","v":""},{"$f":"IF(A189=\"\",\"\",'1. Checklist & Certification'!$H$66)","v":""},{"$f":"IF(A189=\"\",\"\",'1. Checklist & Certification'!$I$66)","v":""},{"$f":"IF(A189=\"\",\"\",'1. Checklist & Certification'!$I$67)","v":""},{"$f":"IF(A189=\"\",\"\",'1. Checklist & Certification'!$I$68)","v":""},null,{"$f":"IF(C189=\"\",\"\",HLOOKUP(C189,'MHP Family Income & Rent Limits'!$E$12:$L$26,2,FALSE))","v":""},{"$f":"IF(C189=\"\",\"\",HLOOKUP(C189,'MHP Family Income & Rent Limits'!$E$12:$L$26,3,FALSE))","v":""},{"$f":"IF(C189=\"\",\"\",HLOOKUP(C189,'MHP Family Income & Rent Limits'!$E$12:$L$26,4,FALSE))","v":""},{"$f":"IF(C189=\"\",\"\",HLOOKUP(C189,'MHP Family Income & Rent Limits'!$E$12:$L$26,5,FALSE))","v":""},{"$f":"IF(C189=\"\",\"\",HLOOKUP(C189,'MHP Family Income & Rent Limits'!$E$12:$L$26,6,FALSE))","v":""},{"$f":"IF(C189=\"\",\"\",HLOOKUP(C189,'MHP Family Income & Rent Limits'!$E$12:$L$26,7,FALSE))","v":""},{"$f":"IF(C189=\"\",\"\",HLOOKUP(C189,'MHP Family Income & Rent Limits'!$E$12:$L$26,8,FALSE))","v":""},{"$f":"IF(C189=\"\",\"\",HLOOKUP(C189,'MHP Family Income & Rent Limits'!$E$12:$L$26,9,FALSE))","v":""},{"$f":"IF(C189=\"\",\"\",HLOOKUP(C189,'MHP Family Income & Rent Limits'!$E$12:$L$26,10,FALSE))","v":""},{"$f":"IF(C189=\"\",\"\",HLOOKUP(C189,'MHP Family Income & Rent Limits'!$E$12:$L$26,11,FALSE))","v":""},{"$f":"IF(C189=\"\",\"\",HLOOKUP(C189,'MHP Family Income & Rent Limits'!$E$12:$L$26,12,FALSE))","v":""},{"$f":"IF(C189=\"\",\"\",HLOOKUP(C189,'MHP Family Income & Rent Limits'!$E$12:$L$26,13,FALSE))","v":""},{"$f":"IF(C189=\"\",\"\",HLOOKUP(C189,'MHP Family Income & Rent Limits'!$E$12:$L$26,14,FALSE))","v":""},{"$f":"IF(C189=\"\",\"\",HLOOKUP(C189,'MHP Family Income & Rent Limits'!$E$12:$L$26,15,FALSE))","v":""}]
[{"$f":"IF('2. Assisted & Restricted Units'!A190=\"\",\"\",'2. Assisted & Restricted Units'!A190)","v":""},{"$f":"IF('2. Assisted & Restricted Units'!B190=\"\",\"\",'2. Assisted & Restricted Units'!B190)","v":""},{"$f":"IF('2. Assisted & Restricted Units'!D190=\"\",\"\",'2. Assisted & Restricted Units'!D190)","v":""},{"$f":"IF('2. Assisted & Restricted Units'!E190=\"\",\"\",'2. Assisted & Restricted Units'!E190)","v":""},{"$f":"IF('2. Assisted & Restricted Units'!H190=\"\",\"\",'2. Assisted & Restricted Units'!H190)","v":""},{"$f":"_xlfn.IFS(E190=\"\",\"\",E190>BO190,$BP$6,E190>BN190,$BO$6,E190>BM190,$BN$6,E190>BL190,$BM$6,E190>BK190,$BL$6,E190>BJ190,$BK$6,E190>BI190,$BJ$6,E190>BH190,$BI$6,E190>BG190,$BH$6,E190>BF190,$BG$6,E190>BE190,$BF$6,E190>BD190,$BE$6,E190>BC190,$BD$6,E190>=0,$BC$6)","v":""},{"$f":"IF('2. Assisted & Restricted Units'!T190=\"\",\"\",'2. Assisted & Restricted Units'!T190)","v":""},{"$f":"IF('2. Assisted & Restricted Units'!I190=\"\",\"\",'2. Assisted & Restricted Units'!I190)","v":""},{"$f":"IF('2. Assisted & Restricted Units'!AP190=\"\",\"\",'2. Assisted & Restricted Units'!AP190)","v":0},{"$f":"IF('2. Assisted & Restricted Units'!AT190=\"\",\"\",'2. Assisted & Restricted Units'!AT190)","v":""},0,{"$f":"IF('2. Assisted & Restricted Units'!AV190=\"\",\"\",'2. Assisted & Restricted Units'!AV190)","v":""},{"$f":"IF('2. Assisted & Restricted Units'!L190=\"\",\"\",'2. Assisted & Restricted Units'!L190)","v":""},{"$f":"IF('2. Assisted & Restricted Units'!M190=\"\",\"\",'2. Assisted & Restricted Units'!M190)","v":""},{"$f":"IF('2. Assisted & Restricted Units'!O190=\"\",\"\",'2. Assisted & Restricted Units'!O190)","v":""},{"$f":"IF('2. Assisted & Restricted Units'!P190=\"\",\"\",'2. Assisted & Restricted Units'!P190)","v":""},{"$f":"IF('2. Assisted & Restricted Units'!Q190=\"\",\"\",'2. Assisted & Restricted Units'!Q190)","v":""},{"$f":"IF('2. Assisted & Restricted Units'!R190=\"\",\"\",'2. Assisted & Restricted Units'!R190)","v":""},{"$f":"IF(A190=\"\",\"\",'1. Checklist & Certification'!$K$1)","v":""},{"$f":"IF(A190=\"\",\"\",'1. Checklist & Certification'!$C$62)","v":""},{"$f":"IF(A190=\"\",\"\",'1. Checklist & Certification'!$K$62)","v":""},{"$f":"IF(A190=\"\",\"\",'1. Checklist & Certification'!$C$6)","v":""},{"$f":"IF(A190=\"\",\"\",'1. Checklist & Certification'!$G$4)","v":""},{"$f":"IF(A190=\"\",\"\",'1. Checklist & Certification'!$C$7)","v":""},{"$f":"IF(A190=\"\",\"\",'1. Checklist & Certification'!$C$8)","v":""},{"$f":"IF(A190=\"\",\"\",'1. Checklist & Certification'!$F$7)","v":""},{"$f":"IF(A190=\"\",\"\",'1. Checklist & Certification'!$F$8)","v":""},{"$f":"IF(A190=\"\",\"\",'1. Checklist & Certification'!$B$9)","v":""},{"$f":"IF(A190=\"\",\"\",'1. Checklist & Certification'!$F$9)","v":""},{"$f":"IF(A190=\"\",\"\",'1. Checklist & Certification'!$C$10)","v":""},{"$f":"IF(A190=\"\",\"\",'1. Checklist & Certification'!$C$11)","v":""},{"$f":"IF(A190=\"\",\"\",'1. Checklist & Certification'!$C$12)","v":""},{"$f":"IF(A190=\"\",\"\",'1. Checklist & Certification'!$B$14)","v":""},{"$f":"IF(A190=\"\",\"\",'1. Checklist & Certification'!$E$14)","v":""},{"$f":"IF(B190=\"\",\"\",'1. Checklist & Certification'!$G$14)","v":""},{"$f":"IF(A190=\"\",\"\",'MHP Family Income & Rent Limits'!$B$3)","v":""},{"$f":"IF(A190=\"\",\"\",'MHP Family Income & Rent Limits'!$J$3)","v":""},{"$f":"IF(A190=\"\",\"\",'MHP Family Income & Rent Limits'!$E$4)","v":""},{"$f":"IF(A190=\"\",\"\",'MHP Family Income & Rent Limits'!$C$7)","v":""},{"$f":"IF(A190=\"\",\"\",'MHP Family Income & Rent Limits'!$F$8)","v":""},{"$f":"IF(A190=\"\",\"\",'1. Checklist & Certification'!$G$4)","v":""},{"$f":"IF(A190=\"\",\"\",'1. Checklist & Certification'!$K$39)","v":""},{"$f":"IF(A190=\"\",\"\",'1. Checklist & Certification'!$K$43)","v":""},{"$f":"IF(A190=\"\",\"\",'1. Checklist & Certification'!$K$45)","v":""},{"$f":"IF(A190=\"\",\"\",'1. Checklist & Certification'!$K$49)","v":""},{"$f":"IF(A190=\"\",\"\",'1. Checklist & Certification'!$E$66)","v":""},{"$f":"IF(A190=\"\",\"\",'1. Checklist & Certification'!$E$67)","v":""},{"$f":"IF(A190=\"\",\"\",'1. Checklist & Certification'!$E$68)","v":""},{"$f":"IF(A190=\"\",\"\",'1. Checklist & Certification'!$G$66)","v":""},{"$f":"IF(A190=\"\",\"\",'1. Checklist & Certification'!$H$66)","v":""},{"$f":"IF(A190=\"\",\"\",'1. Checklist & Certification'!$I$66)","v":""},{"$f":"IF(A190=\"\",\"\",'1. Checklist & Certification'!$I$67)","v":""},{"$f":"IF(A190=\"\",\"\",'1. Checklist & Certification'!$I$68)","v":""},null,{"$f":"IF(C190=\"\",\"\",HLOOKUP(C190,'MHP Family Income & Rent Limits'!$E$12:$L$26,2,FALSE))","v":""},{"$f":"IF(C190=\"\",\"\",HLOOKUP(C190,'MHP Family Income & Rent Limits'!$E$12:$L$26,3,FALSE))","v":""},{"$f":"IF(C190=\"\",\"\",HLOOKUP(C190,'MHP Family Income & Rent Limits'!$E$12:$L$26,4,FALSE))","v":""},{"$f":"IF(C190=\"\",\"\",HLOOKUP(C190,'MHP Family Income & Rent Limits'!$E$12:$L$26,5,FALSE))","v":""},{"$f":"IF(C190=\"\",\"\",HLOOKUP(C190,'MHP Family Income & Rent Limits'!$E$12:$L$26,6,FALSE))","v":""},{"$f":"IF(C190=\"\",\"\",HLOOKUP(C190,'MHP Family Income & Rent Limits'!$E$12:$L$26,7,FALSE))","v":""},{"$f":"IF(C190=\"\",\"\",HLOOKUP(C190,'MHP Family Income & Rent Limits'!$E$12:$L$26,8,FALSE))","v":""},{"$f":"IF(C190=\"\",\"\",HLOOKUP(C190,'MHP Family Income & Rent Limits'!$E$12:$L$26,9,FALSE))","v":""},{"$f":"IF(C190=\"\",\"\",HLOOKUP(C190,'MHP Family Income & Rent Limits'!$E$12:$L$26,10,FALSE))","v":""},{"$f":"IF(C190=\"\",\"\",HLOOKUP(C190,'MHP Family Income & Rent Limits'!$E$12:$L$26,11,FALSE))","v":""},{"$f":"IF(C190=\"\",\"\",HLOOKUP(C190,'MHP Family Income & Rent Limits'!$E$12:$L$26,12,FALSE))","v":""},{"$f":"IF(C190=\"\",\"\",HLOOKUP(C190,'MHP Family Income & Rent Limits'!$E$12:$L$26,13,FALSE))","v":""},{"$f":"IF(C190=\"\",\"\",HLOOKUP(C190,'MHP Family Income & Rent Limits'!$E$12:$L$26,14,FALSE))","v":""},{"$f":"IF(C190=\"\",\"\",HLOOKUP(C190,'MHP Family Income & Rent Limits'!$E$12:$L$26,15,FALSE))","v":""}]
[{"$f":"IF('2. Assisted & Restricted Units'!A191=\"\",\"\",'2. Assisted & Restricted Units'!A191)","v":""},{"$f":"IF('2. Assisted & Restricted Units'!B191=\"\",\"\",'2. Assisted & Restricted Units'!B191)","v":""},{"$f":"IF('2. Assisted & Restricted Units'!D191=\"\",\"\",'2. Assisted & Restricted Units'!D191)","v":""},{"$f":"IF('2. Assisted & Restricted Units'!E191=\"\",\"\",'2. Assisted & Restricted Units'!E191)","v":""},{"$f":"IF('2. Assisted & Restricted Units'!H191=\"\",\"\",'2. Assisted & Restricted Units'!H191)","v":""},{"$f":"_xlfn.IFS(E191=\"\",\"\",E191>BO191,$BP$6,E191>BN191,$BO$6,E191>BM191,$BN$6,E191>BL191,$BM$6,E191>BK191,$BL$6,E191>BJ191,$BK$6,E191>BI191,$BJ$6,E191>BH191,$BI$6,E191>BG191,$BH$6,E191>BF191,$BG$6,E191>BE191,$BF$6,E191>BD191,$BE$6,E191>BC191,$BD$6,E191>=0,$BC$6)","v":""},{"$f":"IF('2. Assisted & Restricted Units'!T191=\"\",\"\",'2. Assisted & Restricted Units'!T191)","v":""},{"$f":"IF('2. Assisted & Restricted Units'!I191=\"\",\"\",'2. Assisted & Restricted Units'!I191)","v":""},{"$f":"IF('2. Assisted & Restricted Units'!AP191=\"\",\"\",'2. Assisted & Restricted Units'!AP191)","v":0},{"$f":"IF('2. Assisted & Restricted Units'!AT191=\"\",\"\",'2. Assisted & Restricted Units'!AT191)","v":""},0,{"$f":"IF('2. Assisted & Restricted Units'!AV191=\"\",\"\",'2. Assisted & Restricted Units'!AV191)","v":""},{"$f":"IF('2. Assisted & Restricted Units'!L191=\"\",\"\",'2. Assisted & Restricted Units'!L191)","v":""},{"$f":"IF('2. Assisted & Restricted Units'!M191=\"\",\"\",'2. Assisted & Restricted Units'!M191)","v":""},{"$f":"IF('2. Assisted & Restricted Units'!O191=\"\",\"\",'2. Assisted & Restricted Units'!O191)","v":""},{"$f":"IF('2. Assisted & Restricted Units'!P191=\"\",\"\",'2. Assisted & Restricted Units'!P191)","v":""},{"$f":"IF('2. Assisted & Restricted Units'!Q191=\"\",\"\",'2. Assisted & Restricted Units'!Q191)","v":""},{"$f":"IF('2. Assisted & Restricted Units'!R191=\"\",\"\",'2. Assisted & Restricted Units'!R191)","v":""},{"$f":"IF(A191=\"\",\"\",'1. Checklist & Certification'!$K$1)","v":""},{"$f":"IF(A191=\"\",\"\",'1. Checklist & Certification'!$C$62)","v":""},{"$f":"IF(A191=\"\",\"\",'1. Checklist & Certification'!$K$62)","v":""},{"$f":"IF(A191=\"\",\"\",'1. Checklist & Certification'!$C$6)","v":""},{"$f":"IF(A191=\"\",\"\",'1. Checklist & Certification'!$G$4)","v":""},{"$f":"IF(A191=\"\",\"\",'1. Checklist & Certification'!$C$7)","v":""},{"$f":"IF(A191=\"\",\"\",'1. Checklist & Certification'!$C$8)","v":""},{"$f":"IF(A191=\"\",\"\",'1. Checklist & Certification'!$F$7)","v":""},{"$f":"IF(A191=\"\",\"\",'1. Checklist & Certification'!$F$8)","v":""},{"$f":"IF(A191=\"\",\"\",'1. Checklist & Certification'!$B$9)","v":""},{"$f":"IF(A191=\"\",\"\",'1. Checklist & Certification'!$F$9)","v":""},{"$f":"IF(A191=\"\",\"\",'1. Checklist & Certification'!$C$10)","v":""},{"$f":"IF(A191=\"\",\"\",'1. Checklist & Certification'!$C$11)","v":""},{"$f":"IF(A191=\"\",\"\",'1. Checklist & Certification'!$C$12)","v":""},{"$f":"IF(A191=\"\",\"\",'1. Checklist & Certification'!$B$14)","v":""},{"$f":"IF(A191=\"\",\"\",'1. Checklist & Certification'!$E$14)","v":""},{"$f":"IF(B191=\"\",\"\",'1. Checklist & Certification'!$G$14)","v":""},{"$f":"IF(A191=\"\",\"\",'MHP Family Income & Rent Limits'!$B$3)","v":""},{"$f":"IF(A191=\"\",\"\",'MHP Family Income & Rent Limits'!$J$3)","v":""},{"$f":"IF(A191=\"\",\"\",'MHP Family Income & Rent Limits'!$E$4)","v":""},{"$f":"IF(A191=\"\",\"\",'MHP Family Income & Rent Limits'!$C$7)","v":""},{"$f":"IF(A191=\"\",\"\",'MHP Family Income & Rent Limits'!$F$8)","v":""},{"$f":"IF(A191=\"\",\"\",'1. Checklist & Certification'!$G$4)","v":""},{"$f":"IF(A191=\"\",\"\",'1. Checklist & Certification'!$K$39)","v":""},{"$f":"IF(A191=\"\",\"\",'1. Checklist & Certification'!$K$43)","v":""},{"$f":"IF(A191=\"\",\"\",'1. Checklist & Certification'!$K$45)","v":""},{"$f":"IF(A191=\"\",\"\",'1. Checklist & Certification'!$K$49)","v":""},{"$f":"IF(A191=\"\",\"\",'1. Checklist & Certification'!$E$66)","v":""},{"$f":"IF(A191=\"\",\"\",'1. Checklist & Certification'!$E$67)","v":""},{"$f":"IF(A191=\"\",\"\",'1. Checklist & Certification'!$E$68)","v":""},{"$f":"IF(A191=\"\",\"\",'1. Checklist & Certification'!$G$66)","v":""},{"$f":"IF(A191=\"\",\"\",'1. Checklist & Certification'!$H$66)","v":""},{"$f":"IF(A191=\"\",\"\",'1. Checklist & Certification'!$I$66)","v":""},{"$f":"IF(A191=\"\",\"\",'1. Checklist & Certification'!$I$67)","v":""},{"$f":"IF(A191=\"\",\"\",'1. Checklist & Certification'!$I$68)","v":""},null,{"$f":"IF(C191=\"\",\"\",HLOOKUP(C191,'MHP Family Income & Rent Limits'!$E$12:$L$26,2,FALSE))","v":""},{"$f":"IF(C191=\"\",\"\",HLOOKUP(C191,'MHP Family Income & Rent Limits'!$E$12:$L$26,3,FALSE))","v":""},{"$f":"IF(C191=\"\",\"\",HLOOKUP(C191,'MHP Family Income & Rent Limits'!$E$12:$L$26,4,FALSE))","v":""},{"$f":"IF(C191=\"\",\"\",HLOOKUP(C191,'MHP Family Income & Rent Limits'!$E$12:$L$26,5,FALSE))","v":""},{"$f":"IF(C191=\"\",\"\",HLOOKUP(C191,'MHP Family Income & Rent Limits'!$E$12:$L$26,6,FALSE))","v":""},{"$f":"IF(C191=\"\",\"\",HLOOKUP(C191,'MHP Family Income & Rent Limits'!$E$12:$L$26,7,FALSE))","v":""},{"$f":"IF(C191=\"\",\"\",HLOOKUP(C191,'MHP Family Income & Rent Limits'!$E$12:$L$26,8,FALSE))","v":""},{"$f":"IF(C191=\"\",\"\",HLOOKUP(C191,'MHP Family Income & Rent Limits'!$E$12:$L$26,9,FALSE))","v":""},{"$f":"IF(C191=\"\",\"\",HLOOKUP(C191,'MHP Family Income & Rent Limits'!$E$12:$L$26,10,FALSE))","v":""},{"$f":"IF(C191=\"\",\"\",HLOOKUP(C191,'MHP Family Income & Rent Limits'!$E$12:$L$26,11,FALSE))","v":""},{"$f":"IF(C191=\"\",\"\",HLOOKUP(C191,'MHP Family Income & Rent Limits'!$E$12:$L$26,12,FALSE))","v":""},{"$f":"IF(C191=\"\",\"\",HLOOKUP(C191,'MHP Family Income & Rent Limits'!$E$12:$L$26,13,FALSE))","v":""},{"$f":"IF(C191=\"\",\"\",HLOOKUP(C191,'MHP Family Income & Rent Limits'!$E$12:$L$26,14,FALSE))","v":""},{"$f":"IF(C191=\"\",\"\",HLOOKUP(C191,'MHP Family Income & Rent Limits'!$E$12:$L$26,15,FALSE))","v":""}]
[{"$f":"IF('2. Assisted & Restricted Units'!A192=\"\",\"\",'2. Assisted & Restricted Units'!A192)","v":""},{"$f":"IF('2. Assisted & Restricted Units'!B192=\"\",\"\",'2. Assisted & Restricted Units'!B192)","v":""},{"$f":"IF('2. Assisted & Restricted Units'!D192=\"\",\"\",'2. Assisted & Restricted Units'!D192)","v":""},{"$f":"IF('2. Assisted & Restricted Units'!E192=\"\",\"\",'2. Assisted & Restricted Units'!E192)","v":""},{"$f":"IF('2. Assisted & Restricted Units'!H192=\"\",\"\",'2. Assisted & Restricted Units'!H192)","v":""},{"$f":"_xlfn.IFS(E192=\"\",\"\",E192>BO192,$BP$6,E192>BN192,$BO$6,E192>BM192,$BN$6,E192>BL192,$BM$6,E192>BK192,$BL$6,E192>BJ192,$BK$6,E192>BI192,$BJ$6,E192>BH192,$BI$6,E192>BG192,$BH$6,E192>BF192,$BG$6,E192>BE192,$BF$6,E192>BD192,$BE$6,E192>BC192,$BD$6,E192>=0,$BC$6)","v":""},{"$f":"IF('2. Assisted & Restricted Units'!T192=\"\",\"\",'2. Assisted & Restricted Units'!T192)","v":""},{"$f":"IF('2. Assisted & Restricted Units'!I192=\"\",\"\",'2. Assisted & Restricted Units'!I192)","v":""},{"$f":"IF('2. Assisted & Restricted Units'!AP192=\"\",\"\",'2. Assisted & Restricted Units'!AP192)","v":0},{"$f":"IF('2. Assisted & Restricted Units'!AT192=\"\",\"\",'2. Assisted & Restricted Units'!AT192)","v":""},0,{"$f":"IF('2. Assisted & Restricted Units'!AV192=\"\",\"\",'2. Assisted & Restricted Units'!AV192)","v":""},{"$f":"IF('2. Assisted & Restricted Units'!L192=\"\",\"\",'2. Assisted & Restricted Units'!L192)","v":""},{"$f":"IF('2. Assisted & Restricted Units'!M192=\"\",\"\",'2. Assisted & Restricted Units'!M192)","v":""},{"$f":"IF('2. Assisted & Restricted Units'!O192=\"\",\"\",'2. Assisted & Restricted Units'!O192)","v":""},{"$f":"IF('2. Assisted & Restricted Units'!P192=\"\",\"\",'2. Assisted & Restricted Units'!P192)","v":""},{"$f":"IF('2. Assisted & Restricted Units'!Q192=\"\",\"\",'2. Assisted & Restricted Units'!Q192)","v":""},{"$f":"IF('2. Assisted & Restricted Units'!R192=\"\",\"\",'2. Assisted & Restricted Units'!R192)","v":""},{"$f":"IF(A192=\"\",\"\",'1. Checklist & Certification'!$K$1)","v":""},{"$f":"IF(A192=\"\",\"\",'1. Checklist & Certification'!$C$62)","v":""},{"$f":"IF(A192=\"\",\"\",'1. Checklist & Certification'!$K$62)","v":""},{"$f":"IF(A192=\"\",\"\",'1. Checklist & Certification'!$C$6)","v":""},{"$f":"IF(A192=\"\",\"\",'1. Checklist & Certification'!$G$4)","v":""},{"$f":"IF(A192=\"\",\"\",'1. Checklist & Certification'!$C$7)","v":""},{"$f":"IF(A192=\"\",\"\",'1. Checklist & Certification'!$C$8)","v":""},{"$f":"IF(A192=\"\",\"\",'1. Checklist & Certification'!$F$7)","v":""},{"$f":"IF(A192=\"\",\"\",'1. Checklist & Certification'!$F$8)","v":""},{"$f":"IF(A192=\"\",\"\",'1. Checklist & Certification'!$B$9)","v":""},{"$f":"IF(A192=\"\",\"\",'1. Checklist & Certification'!$F$9)","v":""},{"$f":"IF(A192=\"\",\"\",'1. Checklist & Certification'!$C$10)","v":""},{"$f":"IF(A192=\"\",\"\",'1. Checklist & Certification'!$C$11)","v":""},{"$f":"IF(A192=\"\",\"\",'1. Checklist & Certification'!$C$12)","v":""},{"$f":"IF(A192=\"\",\"\",'1. Checklist & Certification'!$B$14)","v":""},{"$f":"IF(A192=\"\",\"\",'1. Checklist & Certification'!$E$14)","v":""},{"$f":"IF(B192=\"\",\"\",'1. Checklist & Certification'!$G$14)","v":""},{"$f":"IF(A192=\"\",\"\",'MHP Family Income & Rent Limits'!$B$3)","v":""},{"$f":"IF(A192=\"\",\"\",'MHP Family Income & Rent Limits'!$J$3)","v":""},{"$f":"IF(A192=\"\",\"\",'MHP Family Income & Rent Limits'!$E$4)","v":""},{"$f":"IF(A192=\"\",\"\",'MHP Family Income & Rent Limits'!$C$7)","v":""},{"$f":"IF(A192=\"\",\"\",'MHP Family Income & Rent Limits'!$F$8)","v":""},{"$f":"IF(A192=\"\",\"\",'1. Checklist & Certification'!$G$4)","v":""},{"$f":"IF(A192=\"\",\"\",'1. Checklist & Certification'!$K$39)","v":""},{"$f":"IF(A192=\"\",\"\",'1. Checklist & Certification'!$K$43)","v":""},{"$f":"IF(A192=\"\",\"\",'1. Checklist & Certification'!$K$45)","v":""},{"$f":"IF(A192=\"\",\"\",'1. Checklist & Certification'!$K$49)","v":""},{"$f":"IF(A192=\"\",\"\",'1. Checklist & Certification'!$E$66)","v":""},{"$f":"IF(A192=\"\",\"\",'1. Checklist & Certification'!$E$67)","v":""},{"$f":"IF(A192=\"\",\"\",'1. Checklist & Certification'!$E$68)","v":""},{"$f":"IF(A192=\"\",\"\",'1. Checklist & Certification'!$G$66)","v":""},{"$f":"IF(A192=\"\",\"\",'1. Checklist & Certification'!$H$66)","v":""},{"$f":"IF(A192=\"\",\"\",'1. Checklist & Certification'!$I$66)","v":""},{"$f":"IF(A192=\"\",\"\",'1. Checklist & Certification'!$I$67)","v":""},{"$f":"IF(A192=\"\",\"\",'1. Checklist & Certification'!$I$68)","v":""},null,{"$f":"IF(C192=\"\",\"\",HLOOKUP(C192,'MHP Family Income & Rent Limits'!$E$12:$L$26,2,FALSE))","v":""},{"$f":"IF(C192=\"\",\"\",HLOOKUP(C192,'MHP Family Income & Rent Limits'!$E$12:$L$26,3,FALSE))","v":""},{"$f":"IF(C192=\"\",\"\",HLOOKUP(C192,'MHP Family Income & Rent Limits'!$E$12:$L$26,4,FALSE))","v":""},{"$f":"IF(C192=\"\",\"\",HLOOKUP(C192,'MHP Family Income & Rent Limits'!$E$12:$L$26,5,FALSE))","v":""},{"$f":"IF(C192=\"\",\"\",HLOOKUP(C192,'MHP Family Income & Rent Limits'!$E$12:$L$26,6,FALSE))","v":""},{"$f":"IF(C192=\"\",\"\",HLOOKUP(C192,'MHP Family Income & Rent Limits'!$E$12:$L$26,7,FALSE))","v":""},{"$f":"IF(C192=\"\",\"\",HLOOKUP(C192,'MHP Family Income & Rent Limits'!$E$12:$L$26,8,FALSE))","v":""},{"$f":"IF(C192=\"\",\"\",HLOOKUP(C192,'MHP Family Income & Rent Limits'!$E$12:$L$26,9,FALSE))","v":""},{"$f":"IF(C192=\"\",\"\",HLOOKUP(C192,'MHP Family Income & Rent Limits'!$E$12:$L$26,10,FALSE))","v":""},{"$f":"IF(C192=\"\",\"\",HLOOKUP(C192,'MHP Family Income & Rent Limits'!$E$12:$L$26,11,FALSE))","v":""},{"$f":"IF(C192=\"\",\"\",HLOOKUP(C192,'MHP Family Income & Rent Limits'!$E$12:$L$26,12,FALSE))","v":""},{"$f":"IF(C192=\"\",\"\",HLOOKUP(C192,'MHP Family Income & Rent Limits'!$E$12:$L$26,13,FALSE))","v":""},{"$f":"IF(C192=\"\",\"\",HLOOKUP(C192,'MHP Family Income & Rent Limits'!$E$12:$L$26,14,FALSE))","v":""},{"$f":"IF(C192=\"\",\"\",HLOOKUP(C192,'MHP Family Income & Rent Limits'!$E$12:$L$26,15,FALSE))","v":""}]
[{"$f":"IF('2. Assisted & Restricted Units'!A193=\"\",\"\",'2. Assisted & Restricted Units'!A193)","v":""},{"$f":"IF('2. Assisted & Restricted Units'!B193=\"\",\"\",'2. Assisted & Restricted Units'!B193)","v":""},{"$f":"IF('2. Assisted & Restricted Units'!D193=\"\",\"\",'2. Assisted & Restricted Units'!D193)","v":""},{"$f":"IF('2. Assisted & Restricted Units'!E193=\"\",\"\",'2. Assisted & Restricted Units'!E193)","v":""},{"$f":"IF('2. Assisted & Restricted Units'!H193=\"\",\"\",'2. Assisted & Restricted Units'!H193)","v":""},{"$f":"_xlfn.IFS(E193=\"\",\"\",E193>BO193,$BP$6,E193>BN193,$BO$6,E193>BM193,$BN$6,E193>BL193,$BM$6,E193>BK193,$BL$6,E193>BJ193,$BK$6,E193>BI193,$BJ$6,E193>BH193,$BI$6,E193>BG193,$BH$6,E193>BF193,$BG$6,E193>BE193,$BF$6,E193>BD193,$BE$6,E193>BC193,$BD$6,E193>=0,$BC$6)","v":""},{"$f":"IF('2. Assisted & Restricted Units'!T193=\"\",\"\",'2. Assisted & Restricted Units'!T193)","v":""},{"$f":"IF('2. Assisted & Restricted Units'!I193=\"\",\"\",'2. Assisted & Restricted Units'!I193)","v":""},{"$f":"IF('2. Assisted & Restricted Units'!AP193=\"\",\"\",'2. Assisted & Restricted Units'!AP193)","v":0},{"$f":"IF('2. Assisted & Restricted Units'!AT193=\"\",\"\",'2. Assisted & Restricted Units'!AT193)","v":""},0,{"$f":"IF('2. Assisted & Restricted Units'!AV193=\"\",\"\",'2. Assisted & Restricted Units'!AV193)","v":""},{"$f":"IF('2. Assisted & Restricted Units'!L193=\"\",\"\",'2. Assisted & Restricted Units'!L193)","v":""},{"$f":"IF('2. Assisted & Restricted Units'!M193=\"\",\"\",'2. Assisted & Restricted Units'!M193)","v":""},{"$f":"IF('2. Assisted & Restricted Units'!O193=\"\",\"\",'2. Assisted & Restricted Units'!O193)","v":""},{"$f":"IF('2. Assisted & Restricted Units'!P193=\"\",\"\",'2. Assisted & Restricted Units'!P193)","v":""},{"$f":"IF('2. Assisted & Restricted Units'!Q193=\"\",\"\",'2. Assisted & Restricted Units'!Q193)","v":""},{"$f":"IF('2. Assisted & Restricted Units'!R193=\"\",\"\",'2. Assisted & Restricted Units'!R193)","v":""},{"$f":"IF(A193=\"\",\"\",'1. Checklist & Certification'!$K$1)","v":""},{"$f":"IF(A193=\"\",\"\",'1. Checklist & Certification'!$C$62)","v":""},{"$f":"IF(A193=\"\",\"\",'1. Checklist & Certification'!$K$62)","v":""},{"$f":"IF(A193=\"\",\"\",'1. Checklist & Certification'!$C$6)","v":""},{"$f":"IF(A193=\"\",\"\",'1. Checklist & Certification'!$G$4)","v":""},{"$f":"IF(A193=\"\",\"\",'1. Checklist & Certification'!$C$7)","v":""},{"$f":"IF(A193=\"\",\"\",'1. Checklist & Certification'!$C$8)","v":""},{"$f":"IF(A193=\"\",\"\",'1. Checklist & Certification'!$F$7)","v":""},{"$f":"IF(A193=\"\",\"\",'1. Checklist & Certification'!$F$8)","v":""},{"$f":"IF(A193=\"\",\"\",'1. Checklist & Certification'!$B$9)","v":""},{"$f":"IF(A193=\"\",\"\",'1. Checklist & Certification'!$F$9)","v":""},{"$f":"IF(A193=\"\",\"\",'1. Checklist & Certification'!$C$10)","v":""},{"$f":"IF(A193=\"\",\"\",'1. Checklist & Certification'!$C$11)","v":""},{"$f":"IF(A193=\"\",\"\",'1. Checklist & Certification'!$C$12)","v":""},{"$f":"IF(A193=\"\",\"\",'1. Checklist & Certification'!$B$14)","v":""},{"$f":"IF(A193=\"\",\"\",'1. Checklist & Certification'!$E$14)","v":""},{"$f":"IF(B193=\"\",\"\",'1. Checklist & Certification'!$G$14)","v":""},{"$f":"IF(A193=\"\",\"\",'MHP Family Income & Rent Limits'!$B$3)","v":""},{"$f":"IF(A193=\"\",\"\",'MHP Family Income & Rent Limits'!$J$3)","v":""},{"$f":"IF(A193=\"\",\"\",'MHP Family Income & Rent Limits'!$E$4)","v":""},{"$f":"IF(A193=\"\",\"\",'MHP Family Income & Rent Limits'!$C$7)","v":""},{"$f":"IF(A193=\"\",\"\",'MHP Family Income & Rent Limits'!$F$8)","v":""},{"$f":"IF(A193=\"\",\"\",'1. Checklist & Certification'!$G$4)","v":""},{"$f":"IF(A193=\"\",\"\",'1. Checklist & Certification'!$K$39)","v":""},{"$f":"IF(A193=\"\",\"\",'1. Checklist & Certification'!$K$43)","v":""},{"$f":"IF(A193=\"\",\"\",'1. Checklist & Certification'!$K$45)","v":""},{"$f":"IF(A193=\"\",\"\",'1. Checklist & Certification'!$K$49)","v":""},{"$f":"IF(A193=\"\",\"\",'1. Checklist & Certification'!$E$66)","v":""},{"$f":"IF(A193=\"\",\"\",'1. Checklist & Certification'!$E$67)","v":""},{"$f":"IF(A193=\"\",\"\",'1. Checklist & Certification'!$E$68)","v":""},{"$f":"IF(A193=\"\",\"\",'1. Checklist & Certification'!$G$66)","v":""},{"$f":"IF(A193=\"\",\"\",'1. Checklist & Certification'!$H$66)","v":""},{"$f":"IF(A193=\"\",\"\",'1. Checklist & Certification'!$I$66)","v":""},{"$f":"IF(A193=\"\",\"\",'1. Checklist & Certification'!$I$67)","v":""},{"$f":"IF(A193=\"\",\"\",'1. Checklist & Certification'!$I$68)","v":""},null,{"$f":"IF(C193=\"\",\"\",HLOOKUP(C193,'MHP Family Income & Rent Limits'!$E$12:$L$26,2,FALSE))","v":""},{"$f":"IF(C193=\"\",\"\",HLOOKUP(C193,'MHP Family Income & Rent Limits'!$E$12:$L$26,3,FALSE))","v":""},{"$f":"IF(C193=\"\",\"\",HLOOKUP(C193,'MHP Family Income & Rent Limits'!$E$12:$L$26,4,FALSE))","v":""},{"$f":"IF(C193=\"\",\"\",HLOOKUP(C193,'MHP Family Income & Rent Limits'!$E$12:$L$26,5,FALSE))","v":""},{"$f":"IF(C193=\"\",\"\",HLOOKUP(C193,'MHP Family Income & Rent Limits'!$E$12:$L$26,6,FALSE))","v":""},{"$f":"IF(C193=\"\",\"\",HLOOKUP(C193,'MHP Family Income & Rent Limits'!$E$12:$L$26,7,FALSE))","v":""},{"$f":"IF(C193=\"\",\"\",HLOOKUP(C193,'MHP Family Income & Rent Limits'!$E$12:$L$26,8,FALSE))","v":""},{"$f":"IF(C193=\"\",\"\",HLOOKUP(C193,'MHP Family Income & Rent Limits'!$E$12:$L$26,9,FALSE))","v":""},{"$f":"IF(C193=\"\",\"\",HLOOKUP(C193,'MHP Family Income & Rent Limits'!$E$12:$L$26,10,FALSE))","v":""},{"$f":"IF(C193=\"\",\"\",HLOOKUP(C193,'MHP Family Income & Rent Limits'!$E$12:$L$26,11,FALSE))","v":""},{"$f":"IF(C193=\"\",\"\",HLOOKUP(C193,'MHP Family Income & Rent Limits'!$E$12:$L$26,12,FALSE))","v":""},{"$f":"IF(C193=\"\",\"\",HLOOKUP(C193,'MHP Family Income & Rent Limits'!$E$12:$L$26,13,FALSE))","v":""},{"$f":"IF(C193=\"\",\"\",HLOOKUP(C193,'MHP Family Income & Rent Limits'!$E$12:$L$26,14,FALSE))","v":""},{"$f":"IF(C193=\"\",\"\",HLOOKUP(C193,'MHP Family Income & Rent Limits'!$E$12:$L$26,15,FALSE))","v":""}]
[{"$f":"IF('2. Assisted & Restricted Units'!A194=\"\",\"\",'2. Assisted & Restricted Units'!A194)","v":""},{"$f":"IF('2. Assisted & Restricted Units'!B194=\"\",\"\",'2. Assisted & Restricted Units'!B194)","v":""},{"$f":"IF('2. Assisted & Restricted Units'!D194=\"\",\"\",'2. Assisted & Restricted Units'!D194)","v":""},{"$f":"IF('2. Assisted & Restricted Units'!E194=\"\",\"\",'2. Assisted & Restricted Units'!E194)","v":""},{"$f":"IF('2. Assisted & Restricted Units'!H194=\"\",\"\",'2. Assisted & Restricted Units'!H194)","v":""},{"$f":"_xlfn.IFS(E194=\"\",\"\",E194>BO194,$BP$6,E194>BN194,$BO$6,E194>BM194,$BN$6,E194>BL194,$BM$6,E194>BK194,$BL$6,E194>BJ194,$BK$6,E194>BI194,$BJ$6,E194>BH194,$BI$6,E194>BG194,$BH$6,E194>BF194,$BG$6,E194>BE194,$BF$6,E194>BD194,$BE$6,E194>BC194,$BD$6,E194>=0,$BC$6)","v":""},{"$f":"IF('2. Assisted & Restricted Units'!T194=\"\",\"\",'2. Assisted & Restricted Units'!T194)","v":""},{"$f":"IF('2. Assisted & Restricted Units'!I194=\"\",\"\",'2. Assisted & Restricted Units'!I194)","v":""},{"$f":"IF('2. Assisted & Restricted Units'!AP194=\"\",\"\",'2. Assisted & Restricted Units'!AP194)","v":0},{"$f":"IF('2. Assisted & Restricted Units'!AT194=\"\",\"\",'2. Assisted & Restricted Units'!AT194)","v":""},0,{"$f":"IF('2. Assisted & Restricted Units'!AV194=\"\",\"\",'2. Assisted & Restricted Units'!AV194)","v":""},{"$f":"IF('2. Assisted & Restricted Units'!L194=\"\",\"\",'2. Assisted & Restricted Units'!L194)","v":""},{"$f":"IF('2. Assisted & Restricted Units'!M194=\"\",\"\",'2. Assisted & Restricted Units'!M194)","v":""},{"$f":"IF('2. Assisted & Restricted Units'!O194=\"\",\"\",'2. Assisted & Restricted Units'!O194)","v":""},{"$f":"IF('2. Assisted & Restricted Units'!P194=\"\",\"\",'2. Assisted & Restricted Units'!P194)","v":""},{"$f":"IF('2. Assisted & Restricted Units'!Q194=\"\",\"\",'2. Assisted & Restricted Units'!Q194)","v":""},{"$f":"IF('2. Assisted & Restricted Units'!R194=\"\",\"\",'2. Assisted & Restricted Units'!R194)","v":""},{"$f":"IF(A194=\"\",\"\",'1. Checklist & Certification'!$K$1)","v":""},{"$f":"IF(A194=\"\",\"\",'1. Checklist & Certification'!$C$62)","v":""},{"$f":"IF(A194=\"\",\"\",'1. Checklist & Certification'!$K$62)","v":""},{"$f":"IF(A194=\"\",\"\",'1. Checklist & Certification'!$C$6)","v":""},{"$f":"IF(A194=\"\",\"\",'1. Checklist & Certification'!$G$4)","v":""},{"$f":"IF(A194=\"\",\"\",'1. Checklist & Certification'!$C$7)","v":""},{"$f":"IF(A194=\"\",\"\",'1. Checklist & Certification'!$C$8)","v":""},{"$f":"IF(A194=\"\",\"\",'1. Checklist & Certification'!$F$7)","v":""},{"$f":"IF(A194=\"\",\"\",'1. Checklist & Certification'!$F$8)","v":""},{"$f":"IF(A194=\"\",\"\",'1. Checklist & Certification'!$B$9)","v":""},{"$f":"IF(A194=\"\",\"\",'1. Checklist & Certification'!$F$9)","v":""},{"$f":"IF(A194=\"\",\"\",'1. Checklist & Certification'!$C$10)","v":""},{"$f":"IF(A194=\"\",\"\",'1. Checklist & Certification'!$C$11)","v":""},{"$f":"IF(A194=\"\",\"\",'1. Checklist & Certification'!$C$12)","v":""},{"$f":"IF(A194=\"\",\"\",'1. Checklist & Certification'!$B$14)","v":""},{"$f":"IF(A194=\"\",\"\",'1. Checklist & Certification'!$E$14)","v":""},{"$f":"IF(B194=\"\",\"\",'1. Checklist & Certification'!$G$14)","v":""},{"$f":"IF(A194=\"\",\"\",'MHP Family Income & Rent Limits'!$B$3)","v":""},{"$f":"IF(A194=\"\",\"\",'MHP Family Income & Rent Limits'!$J$3)","v":""},{"$f":"IF(A194=\"\",\"\",'MHP Family Income & Rent Limits'!$E$4)","v":""},{"$f":"IF(A194=\"\",\"\",'MHP Family Income & Rent Limits'!$C$7)","v":""},{"$f":"IF(A194=\"\",\"\",'MHP Family Income & Rent Limits'!$F$8)","v":""},{"$f":"IF(A194=\"\",\"\",'1. Checklist & Certification'!$G$4)","v":""},{"$f":"IF(A194=\"\",\"\",'1. Checklist & Certification'!$K$39)","v":""},{"$f":"IF(A194=\"\",\"\",'1. Checklist & Certification'!$K$43)","v":""},{"$f":"IF(A194=\"\",\"\",'1. Checklist & Certification'!$K$45)","v":""},{"$f":"IF(A194=\"\",\"\",'1. Checklist & Certification'!$K$49)","v":""},{"$f":"IF(A194=\"\",\"\",'1. Checklist & Certification'!$E$66)","v":""},{"$f":"IF(A194=\"\",\"\",'1. Checklist & Certification'!$E$67)","v":""},{"$f":"IF(A194=\"\",\"\",'1. Checklist & Certification'!$E$68)","v":""},{"$f":"IF(A194=\"\",\"\",'1. Checklist & Certification'!$G$66)","v":""},{"$f":"IF(A194=\"\",\"\",'1. Checklist & Certification'!$H$66)","v":""},{"$f":"IF(A194=\"\",\"\",'1. Checklist & Certification'!$I$66)","v":""},{"$f":"IF(A194=\"\",\"\",'1. Checklist & Certification'!$I$67)","v":""},{"$f":"IF(A194=\"\",\"\",'1. Checklist & Certification'!$I$68)","v":""},null,{"$f":"IF(C194=\"\",\"\",HLOOKUP(C194,'MHP Family Income & Rent Limits'!$E$12:$L$26,2,FALSE))","v":""},{"$f":"IF(C194=\"\",\"\",HLOOKUP(C194,'MHP Family Income & Rent Limits'!$E$12:$L$26,3,FALSE))","v":""},{"$f":"IF(C194=\"\",\"\",HLOOKUP(C194,'MHP Family Income & Rent Limits'!$E$12:$L$26,4,FALSE))","v":""},{"$f":"IF(C194=\"\",\"\",HLOOKUP(C194,'MHP Family Income & Rent Limits'!$E$12:$L$26,5,FALSE))","v":""},{"$f":"IF(C194=\"\",\"\",HLOOKUP(C194,'MHP Family Income & Rent Limits'!$E$12:$L$26,6,FALSE))","v":""},{"$f":"IF(C194=\"\",\"\",HLOOKUP(C194,'MHP Family Income & Rent Limits'!$E$12:$L$26,7,FALSE))","v":""},{"$f":"IF(C194=\"\",\"\",HLOOKUP(C194,'MHP Family Income & Rent Limits'!$E$12:$L$26,8,FALSE))","v":""},{"$f":"IF(C194=\"\",\"\",HLOOKUP(C194,'MHP Family Income & Rent Limits'!$E$12:$L$26,9,FALSE))","v":""},{"$f":"IF(C194=\"\",\"\",HLOOKUP(C194,'MHP Family Income & Rent Limits'!$E$12:$L$26,10,FALSE))","v":""},{"$f":"IF(C194=\"\",\"\",HLOOKUP(C194,'MHP Family Income & Rent Limits'!$E$12:$L$26,11,FALSE))","v":""},{"$f":"IF(C194=\"\",\"\",HLOOKUP(C194,'MHP Family Income & Rent Limits'!$E$12:$L$26,12,FALSE))","v":""},{"$f":"IF(C194=\"\",\"\",HLOOKUP(C194,'MHP Family Income & Rent Limits'!$E$12:$L$26,13,FALSE))","v":""},{"$f":"IF(C194=\"\",\"\",HLOOKUP(C194,'MHP Family Income & Rent Limits'!$E$12:$L$26,14,FALSE))","v":""},{"$f":"IF(C194=\"\",\"\",HLOOKUP(C194,'MHP Family Income & Rent Limits'!$E$12:$L$26,15,FALSE))","v":""}]
[{"$f":"IF('2. Assisted & Restricted Units'!A195=\"\",\"\",'2. Assisted & Restricted Units'!A195)","v":""},{"$f":"IF('2. Assisted & Restricted Units'!B195=\"\",\"\",'2. Assisted & Restricted Units'!B195)","v":""},{"$f":"IF('2. Assisted & Restricted Units'!D195=\"\",\"\",'2. Assisted & Restricted Units'!D195)","v":""},{"$f":"IF('2. Assisted & Restricted Units'!E195=\"\",\"\",'2. Assisted & Restricted Units'!E195)","v":""},{"$f":"IF('2. Assisted & Restricted Units'!H195=\"\",\"\",'2. Assisted & Restricted Units'!H195)","v":""},{"$f":"_xlfn.IFS(E195=\"\",\"\",E195>BO195,$BP$6,E195>BN195,$BO$6,E195>BM195,$BN$6,E195>BL195,$BM$6,E195>BK195,$BL$6,E195>BJ195,$BK$6,E195>BI195,$BJ$6,E195>BH195,$BI$6,E195>BG195,$BH$6,E195>BF195,$BG$6,E195>BE195,$BF$6,E195>BD195,$BE$6,E195>BC195,$BD$6,E195>=0,$BC$6)","v":""},{"$f":"IF('2. Assisted & Restricted Units'!T195=\"\",\"\",'2. Assisted & Restricted Units'!T195)","v":""},{"$f":"IF('2. Assisted & Restricted Units'!I195=\"\",\"\",'2. Assisted & Restricted Units'!I195)","v":""},{"$f":"IF('2. Assisted & Restricted Units'!AP195=\"\",\"\",'2. Assisted & Restricted Units'!AP195)","v":0},{"$f":"IF('2. Assisted & Restricted Units'!AT195=\"\",\"\",'2. Assisted & Restricted Units'!AT195)","v":""},0,{"$f":"IF('2. Assisted & Restricted Units'!AV195=\"\",\"\",'2. Assisted & Restricted Units'!AV195)","v":""},{"$f":"IF('2. Assisted & Restricted Units'!L195=\"\",\"\",'2. Assisted & Restricted Units'!L195)","v":""},{"$f":"IF('2. Assisted & Restricted Units'!M195=\"\",\"\",'2. Assisted & Restricted Units'!M195)","v":""},{"$f":"IF('2. Assisted & Restricted Units'!O195=\"\",\"\",'2. Assisted & Restricted Units'!O195)","v":""},{"$f":"IF('2. Assisted & Restricted Units'!P195=\"\",\"\",'2. Assisted & Restricted Units'!P195)","v":""},{"$f":"IF('2. Assisted & Restricted Units'!Q195=\"\",\"\",'2. Assisted & Restricted Units'!Q195)","v":""},{"$f":"IF('2. Assisted & Restricted Units'!R195=\"\",\"\",'2. Assisted & Restricted Units'!R195)","v":""},{"$f":"IF(A195=\"\",\"\",'1. Checklist & Certification'!$K$1)","v":""},{"$f":"IF(A195=\"\",\"\",'1. Checklist & Certification'!$C$62)","v":""},{"$f":"IF(A195=\"\",\"\",'1. Checklist & Certification'!$K$62)","v":""},{"$f":"IF(A195=\"\",\"\",'1. Checklist & Certification'!$C$6)","v":""},{"$f":"IF(A195=\"\",\"\",'1. Checklist & Certification'!$G$4)","v":""},{"$f":"IF(A195=\"\",\"\",'1. Checklist & Certification'!$C$7)","v":""},{"$f":"IF(A195=\"\",\"\",'1. Checklist & Certification'!$C$8)","v":""},{"$f":"IF(A195=\"\",\"\",'1. Checklist & Certification'!$F$7)","v":""},{"$f":"IF(A195=\"\",\"\",'1. Checklist & Certification'!$F$8)","v":""},{"$f":"IF(A195=\"\",\"\",'1. Checklist & Certification'!$B$9)","v":""},{"$f":"IF(A195=\"\",\"\",'1. Checklist & Certification'!$F$9)","v":""},{"$f":"IF(A195=\"\",\"\",'1. Checklist & Certification'!$C$10)","v":""},{"$f":"IF(A195=\"\",\"\",'1. Checklist & Certification'!$C$11)","v":""},{"$f":"IF(A195=\"\",\"\",'1. Checklist & Certification'!$C$12)","v":""},{"$f":"IF(A195=\"\",\"\",'1. Checklist & Certification'!$B$14)","v":""},{"$f":"IF(A195=\"\",\"\",'1. Checklist & Certification'!$E$14)","v":""},{"$f":"IF(B195=\"\",\"\",'1. Checklist & Certification'!$G$14)","v":""},{"$f":"IF(A195=\"\",\"\",'MHP Family Income & Rent Limits'!$B$3)","v":""},{"$f":"IF(A195=\"\",\"\",'MHP Family Income & Rent Limits'!$J$3)","v":""},{"$f":"IF(A195=\"\",\"\",'MHP Family Income & Rent Limits'!$E$4)","v":""},{"$f":"IF(A195=\"\",\"\",'MHP Family Income & Rent Limits'!$C$7)","v":""},{"$f":"IF(A195=\"\",\"\",'MHP Family Income & Rent Limits'!$F$8)","v":""},{"$f":"IF(A195=\"\",\"\",'1. Checklist & Certification'!$G$4)","v":""},{"$f":"IF(A195=\"\",\"\",'1. Checklist & Certification'!$K$39)","v":""},{"$f":"IF(A195=\"\",\"\",'1. Checklist & Certification'!$K$43)","v":""},{"$f":"IF(A195=\"\",\"\",'1. Checklist & Certification'!$K$45)","v":""},{"$f":"IF(A195=\"\",\"\",'1. Checklist & Certification'!$K$49)","v":""},{"$f":"IF(A195=\"\",\"\",'1. Checklist & Certification'!$E$66)","v":""},{"$f":"IF(A195=\"\",\"\",'1. Checklist & Certification'!$E$67)","v":""},{"$f":"IF(A195=\"\",\"\",'1. Checklist & Certification'!$E$68)","v":""},{"$f":"IF(A195=\"\",\"\",'1. Checklist & Certification'!$G$66)","v":""},{"$f":"IF(A195=\"\",\"\",'1. Checklist & Certification'!$H$66)","v":""},{"$f":"IF(A195=\"\",\"\",'1. Checklist & Certification'!$I$66)","v":""},{"$f":"IF(A195=\"\",\"\",'1. Checklist & Certification'!$I$67)","v":""},{"$f":"IF(A195=\"\",\"\",'1. Checklist & Certification'!$I$68)","v":""},null,{"$f":"IF(C195=\"\",\"\",HLOOKUP(C195,'MHP Family Income & Rent Limits'!$E$12:$L$26,2,FALSE))","v":""},{"$f":"IF(C195=\"\",\"\",HLOOKUP(C195,'MHP Family Income & Rent Limits'!$E$12:$L$26,3,FALSE))","v":""},{"$f":"IF(C195=\"\",\"\",HLOOKUP(C195,'MHP Family Income & Rent Limits'!$E$12:$L$26,4,FALSE))","v":""},{"$f":"IF(C195=\"\",\"\",HLOOKUP(C195,'MHP Family Income & Rent Limits'!$E$12:$L$26,5,FALSE))","v":""},{"$f":"IF(C195=\"\",\"\",HLOOKUP(C195,'MHP Family Income & Rent Limits'!$E$12:$L$26,6,FALSE))","v":""},{"$f":"IF(C195=\"\",\"\",HLOOKUP(C195,'MHP Family Income & Rent Limits'!$E$12:$L$26,7,FALSE))","v":""},{"$f":"IF(C195=\"\",\"\",HLOOKUP(C195,'MHP Family Income & Rent Limits'!$E$12:$L$26,8,FALSE))","v":""},{"$f":"IF(C195=\"\",\"\",HLOOKUP(C195,'MHP Family Income & Rent Limits'!$E$12:$L$26,9,FALSE))","v":""},{"$f":"IF(C195=\"\",\"\",HLOOKUP(C195,'MHP Family Income & Rent Limits'!$E$12:$L$26,10,FALSE))","v":""},{"$f":"IF(C195=\"\",\"\",HLOOKUP(C195,'MHP Family Income & Rent Limits'!$E$12:$L$26,11,FALSE))","v":""},{"$f":"IF(C195=\"\",\"\",HLOOKUP(C195,'MHP Family Income & Rent Limits'!$E$12:$L$26,12,FALSE))","v":""},{"$f":"IF(C195=\"\",\"\",HLOOKUP(C195,'MHP Family Income & Rent Limits'!$E$12:$L$26,13,FALSE))","v":""},{"$f":"IF(C195=\"\",\"\",HLOOKUP(C195,'MHP Family Income & Rent Limits'!$E$12:$L$26,14,FALSE))","v":""},{"$f":"IF(C195=\"\",\"\",HLOOKUP(C195,'MHP Family Income & Rent Limits'!$E$12:$L$26,15,FALSE))","v":""}]
[{"$f":"IF('2. Assisted & Restricted Units'!A196=\"\",\"\",'2. Assisted & Restricted Units'!A196)","v":""},{"$f":"IF('2. Assisted & Restricted Units'!B196=\"\",\"\",'2. Assisted & Restricted Units'!B196)","v":""},{"$f":"IF('2. Assisted & Restricted Units'!D196=\"\",\"\",'2. Assisted & Restricted Units'!D196)","v":""},{"$f":"IF('2. Assisted & Restricted Units'!E196=\"\",\"\",'2. Assisted & Restricted Units'!E196)","v":""},{"$f":"IF('2. Assisted & Restricted Units'!H196=\"\",\"\",'2. Assisted & Restricted Units'!H196)","v":""},{"$f":"_xlfn.IFS(E196=\"\",\"\",E196>BO196,$BP$6,E196>BN196,$BO$6,E196>BM196,$BN$6,E196>BL196,$BM$6,E196>BK196,$BL$6,E196>BJ196,$BK$6,E196>BI196,$BJ$6,E196>BH196,$BI$6,E196>BG196,$BH$6,E196>BF196,$BG$6,E196>BE196,$BF$6,E196>BD196,$BE$6,E196>BC196,$BD$6,E196>=0,$BC$6)","v":""},{"$f":"IF('2. Assisted & Restricted Units'!T196=\"\",\"\",'2. Assisted & Restricted Units'!T196)","v":""},{"$f":"IF('2. Assisted & Restricted Units'!I196=\"\",\"\",'2. Assisted & Restricted Units'!I196)","v":""},{"$f":"IF('2. Assisted & Restricted Units'!AP196=\"\",\"\",'2. Assisted & Restricted Units'!AP196)","v":0},{"$f":"IF('2. Assisted & Restricted Units'!AT196=\"\",\"\",'2. Assisted & Restricted Units'!AT196)","v":""},0,{"$f":"IF('2. Assisted & Restricted Units'!AV196=\"\",\"\",'2. Assisted & Restricted Units'!AV196)","v":""},{"$f":"IF('2. Assisted & Restricted Units'!L196=\"\",\"\",'2. Assisted & Restricted Units'!L196)","v":""},{"$f":"IF('2. Assisted & Restricted Units'!M196=\"\",\"\",'2. Assisted & Restricted Units'!M196)","v":""},{"$f":"IF('2. Assisted & Restricted Units'!O196=\"\",\"\",'2. Assisted & Restricted Units'!O196)","v":""},{"$f":"IF('2. Assisted & Restricted Units'!P196=\"\",\"\",'2. Assisted & Restricted Units'!P196)","v":""},{"$f":"IF('2. Assisted & Restricted Units'!Q196=\"\",\"\",'2. Assisted & Restricted Units'!Q196)","v":""},{"$f":"IF('2. Assisted & Restricted Units'!R196=\"\",\"\",'2. Assisted & Restricted Units'!R196)","v":""},{"$f":"IF(A196=\"\",\"\",'1. Checklist & Certification'!$K$1)","v":""},{"$f":"IF(A196=\"\",\"\",'1. Checklist & Certification'!$C$62)","v":""},{"$f":"IF(A196=\"\",\"\",'1. Checklist & Certification'!$K$62)","v":""},{"$f":"IF(A196=\"\",\"\",'1. Checklist & Certification'!$C$6)","v":""},{"$f":"IF(A196=\"\",\"\",'1. Checklist & Certification'!$G$4)","v":""},{"$f":"IF(A196=\"\",\"\",'1. Checklist & Certification'!$C$7)","v":""},{"$f":"IF(A196=\"\",\"\",'1. Checklist & Certification'!$C$8)","v":""},{"$f":"IF(A196=\"\",\"\",'1. Checklist & Certification'!$F$7)","v":""},{"$f":"IF(A196=\"\",\"\",'1. Checklist & Certification'!$F$8)","v":""},{"$f":"IF(A196=\"\",\"\",'1. Checklist & Certification'!$B$9)","v":""},{"$f":"IF(A196=\"\",\"\",'1. Checklist & Certification'!$F$9)","v":""},{"$f":"IF(A196=\"\",\"\",'1. Checklist & Certification'!$C$10)","v":""},{"$f":"IF(A196=\"\",\"\",'1. Checklist & Certification'!$C$11)","v":""},{"$f":"IF(A196=\"\",\"\",'1. Checklist & Certification'!$C$12)","v":""},{"$f":"IF(A196=\"\",\"\",'1. Checklist & Certification'!$B$14)","v":""},{"$f":"IF(A196=\"\",\"\",'1. Checklist & Certification'!$E$14)","v":""},{"$f":"IF(B196=\"\",\"\",'1. Checklist & Certification'!$G$14)","v":""},{"$f":"IF(A196=\"\",\"\",'MHP Family Income & Rent Limits'!$B$3)","v":""},{"$f":"IF(A196=\"\",\"\",'MHP Family Income & Rent Limits'!$J$3)","v":""},{"$f":"IF(A196=\"\",\"\",'MHP Family Income & Rent Limits'!$E$4)","v":""},{"$f":"IF(A196=\"\",\"\",'MHP Family Income & Rent Limits'!$C$7)","v":""},{"$f":"IF(A196=\"\",\"\",'MHP Family Income & Rent Limits'!$F$8)","v":""},{"$f":"IF(A196=\"\",\"\",'1. Checklist & Certification'!$G$4)","v":""},{"$f":"IF(A196=\"\",\"\",'1. Checklist & Certification'!$K$39)","v":""},{"$f":"IF(A196=\"\",\"\",'1. Checklist & Certification'!$K$43)","v":""},{"$f":"IF(A196=\"\",\"\",'1. Checklist & Certification'!$K$45)","v":""},{"$f":"IF(A196=\"\",\"\",'1. Checklist & Certification'!$K$49)","v":""},{"$f":"IF(A196=\"\",\"\",'1. Checklist & Certification'!$E$66)","v":""},{"$f":"IF(A196=\"\",\"\",'1. Checklist & Certification'!$E$67)","v":""},{"$f":"IF(A196=\"\",\"\",'1. Checklist & Certification'!$E$68)","v":""},{"$f":"IF(A196=\"\",\"\",'1. Checklist & Certification'!$G$66)","v":""},{"$f":"IF(A196=\"\",\"\",'1. Checklist & Certification'!$H$66)","v":""},{"$f":"IF(A196=\"\",\"\",'1. Checklist & Certification'!$I$66)","v":""},{"$f":"IF(A196=\"\",\"\",'1. Checklist & Certification'!$I$67)","v":""},{"$f":"IF(A196=\"\",\"\",'1. Checklist & Certification'!$I$68)","v":""},null,{"$f":"IF(C196=\"\",\"\",HLOOKUP(C196,'MHP Family Income & Rent Limits'!$E$12:$L$26,2,FALSE))","v":""},{"$f":"IF(C196=\"\",\"\",HLOOKUP(C196,'MHP Family Income & Rent Limits'!$E$12:$L$26,3,FALSE))","v":""},{"$f":"IF(C196=\"\",\"\",HLOOKUP(C196,'MHP Family Income & Rent Limits'!$E$12:$L$26,4,FALSE))","v":""},{"$f":"IF(C196=\"\",\"\",HLOOKUP(C196,'MHP Family Income & Rent Limits'!$E$12:$L$26,5,FALSE))","v":""},{"$f":"IF(C196=\"\",\"\",HLOOKUP(C196,'MHP Family Income & Rent Limits'!$E$12:$L$26,6,FALSE))","v":""},{"$f":"IF(C196=\"\",\"\",HLOOKUP(C196,'MHP Family Income & Rent Limits'!$E$12:$L$26,7,FALSE))","v":""},{"$f":"IF(C196=\"\",\"\",HLOOKUP(C196,'MHP Family Income & Rent Limits'!$E$12:$L$26,8,FALSE))","v":""},{"$f":"IF(C196=\"\",\"\",HLOOKUP(C196,'MHP Family Income & Rent Limits'!$E$12:$L$26,9,FALSE))","v":""},{"$f":"IF(C196=\"\",\"\",HLOOKUP(C196,'MHP Family Income & Rent Limits'!$E$12:$L$26,10,FALSE))","v":""},{"$f":"IF(C196=\"\",\"\",HLOOKUP(C196,'MHP Family Income & Rent Limits'!$E$12:$L$26,11,FALSE))","v":""},{"$f":"IF(C196=\"\",\"\",HLOOKUP(C196,'MHP Family Income & Rent Limits'!$E$12:$L$26,12,FALSE))","v":""},{"$f":"IF(C196=\"\",\"\",HLOOKUP(C196,'MHP Family Income & Rent Limits'!$E$12:$L$26,13,FALSE))","v":""},{"$f":"IF(C196=\"\",\"\",HLOOKUP(C196,'MHP Family Income & Rent Limits'!$E$12:$L$26,14,FALSE))","v":""},{"$f":"IF(C196=\"\",\"\",HLOOKUP(C196,'MHP Family Income & Rent Limits'!$E$12:$L$26,15,FALSE))","v":""}]
[{"$f":"IF('2. Assisted & Restricted Units'!A197=\"\",\"\",'2. Assisted & Restricted Units'!A197)","v":""},{"$f":"IF('2. Assisted & Restricted Units'!B197=\"\",\"\",'2. Assisted & Restricted Units'!B197)","v":""},{"$f":"IF('2. Assisted & Restricted Units'!D197=\"\",\"\",'2. Assisted & Restricted Units'!D197)","v":""},{"$f":"IF('2. Assisted & Restricted Units'!E197=\"\",\"\",'2. Assisted & Restricted Units'!E197)","v":""},{"$f":"IF('2. Assisted & Restricted Units'!H197=\"\",\"\",'2. Assisted & Restricted Units'!H197)","v":""},{"$f":"_xlfn.IFS(E197=\"\",\"\",E197>BO197,$BP$6,E197>BN197,$BO$6,E197>BM197,$BN$6,E197>BL197,$BM$6,E197>BK197,$BL$6,E197>BJ197,$BK$6,E197>BI197,$BJ$6,E197>BH197,$BI$6,E197>BG197,$BH$6,E197>BF197,$BG$6,E197>BE197,$BF$6,E197>BD197,$BE$6,E197>BC197,$BD$6,E197>=0,$BC$6)","v":""},{"$f":"IF('2. Assisted & Restricted Units'!T197=\"\",\"\",'2. Assisted & Restricted Units'!T197)","v":""},{"$f":"IF('2. Assisted & Restricted Units'!I197=\"\",\"\",'2. Assisted & Restricted Units'!I197)","v":""},{"$f":"IF('2. Assisted & Restricted Units'!AP197=\"\",\"\",'2. Assisted & Restricted Units'!AP197)","v":0},{"$f":"IF('2. Assisted & Restricted Units'!AT197=\"\",\"\",'2. Assisted & Restricted Units'!AT197)","v":""},0,{"$f":"IF('2. Assisted & Restricted Units'!AV197=\"\",\"\",'2. Assisted & Restricted Units'!AV197)","v":""},{"$f":"IF('2. Assisted & Restricted Units'!L197=\"\",\"\",'2. Assisted & Restricted Units'!L197)","v":""},{"$f":"IF('2. Assisted & Restricted Units'!M197=\"\",\"\",'2. Assisted & Restricted Units'!M197)","v":""},{"$f":"IF('2. Assisted & Restricted Units'!O197=\"\",\"\",'2. Assisted & Restricted Units'!O197)","v":""},{"$f":"IF('2. Assisted & Restricted Units'!P197=\"\",\"\",'2. Assisted & Restricted Units'!P197)","v":""},{"$f":"IF('2. Assisted & Restricted Units'!Q197=\"\",\"\",'2. Assisted & Restricted Units'!Q197)","v":""},{"$f":"IF('2. Assisted & Restricted Units'!R197=\"\",\"\",'2. Assisted & Restricted Units'!R197)","v":""},{"$f":"IF(A197=\"\",\"\",'1. Checklist & Certification'!$K$1)","v":""},{"$f":"IF(A197=\"\",\"\",'1. Checklist & Certification'!$C$62)","v":""},{"$f":"IF(A197=\"\",\"\",'1. Checklist & Certification'!$K$62)","v":""},{"$f":"IF(A197=\"\",\"\",'1. Checklist & Certification'!$C$6)","v":""},{"$f":"IF(A197=\"\",\"\",'1. Checklist & Certification'!$G$4)","v":""},{"$f":"IF(A197=\"\",\"\",'1. Checklist & Certification'!$C$7)","v":""},{"$f":"IF(A197=\"\",\"\",'1. Checklist & Certification'!$C$8)","v":""},{"$f":"IF(A197=\"\",\"\",'1. Checklist & Certification'!$F$7)","v":""},{"$f":"IF(A197=\"\",\"\",'1. Checklist & Certification'!$F$8)","v":""},{"$f":"IF(A197=\"\",\"\",'1. Checklist & Certification'!$B$9)","v":""},{"$f":"IF(A197=\"\",\"\",'1. Checklist & Certification'!$F$9)","v":""},{"$f":"IF(A197=\"\",\"\",'1. Checklist & Certification'!$C$10)","v":""},{"$f":"IF(A197=\"\",\"\",'1. Checklist & Certification'!$C$11)","v":""},{"$f":"IF(A197=\"\",\"\",'1. Checklist & Certification'!$C$12)","v":""},{"$f":"IF(A197=\"\",\"\",'1. Checklist & Certification'!$B$14)","v":""},{"$f":"IF(A197=\"\",\"\",'1. Checklist & Certification'!$E$14)","v":""},{"$f":"IF(B197=\"\",\"\",'1. Checklist & Certification'!$G$14)","v":""},{"$f":"IF(A197=\"\",\"\",'MHP Family Income & Rent Limits'!$B$3)","v":""},{"$f":"IF(A197=\"\",\"\",'MHP Family Income & Rent Limits'!$J$3)","v":""},{"$f":"IF(A197=\"\",\"\",'MHP Family Income & Rent Limits'!$E$4)","v":""},{"$f":"IF(A197=\"\",\"\",'MHP Family Income & Rent Limits'!$C$7)","v":""},{"$f":"IF(A197=\"\",\"\",'MHP Family Income & Rent Limits'!$F$8)","v":""},{"$f":"IF(A197=\"\",\"\",'1. Checklist & Certification'!$G$4)","v":""},{"$f":"IF(A197=\"\",\"\",'1. Checklist & Certification'!$K$39)","v":""},{"$f":"IF(A197=\"\",\"\",'1. Checklist & Certification'!$K$43)","v":""},{"$f":"IF(A197=\"\",\"\",'1. Checklist & Certification'!$K$45)","v":""},{"$f":"IF(A197=\"\",\"\",'1. Checklist & Certification'!$K$49)","v":""},{"$f":"IF(A197=\"\",\"\",'1. Checklist & Certification'!$E$66)","v":""},{"$f":"IF(A197=\"\",\"\",'1. Checklist & Certification'!$E$67)","v":""},{"$f":"IF(A197=\"\",\"\",'1. Checklist & Certification'!$E$68)","v":""},{"$f":"IF(A197=\"\",\"\",'1. Checklist & Certification'!$G$66)","v":""},{"$f":"IF(A197=\"\",\"\",'1. Checklist & Certification'!$H$66)","v":""},{"$f":"IF(A197=\"\",\"\",'1. Checklist & Certification'!$I$66)","v":""},{"$f":"IF(A197=\"\",\"\",'1. Checklist & Certification'!$I$67)","v":""},{"$f":"IF(A197=\"\",\"\",'1. Checklist & Certification'!$I$68)","v":""},null,{"$f":"IF(C197=\"\",\"\",HLOOKUP(C197,'MHP Family Income & Rent Limits'!$E$12:$L$26,2,FALSE))","v":""},{"$f":"IF(C197=\"\",\"\",HLOOKUP(C197,'MHP Family Income & Rent Limits'!$E$12:$L$26,3,FALSE))","v":""},{"$f":"IF(C197=\"\",\"\",HLOOKUP(C197,'MHP Family Income & Rent Limits'!$E$12:$L$26,4,FALSE))","v":""},{"$f":"IF(C197=\"\",\"\",HLOOKUP(C197,'MHP Family Income & Rent Limits'!$E$12:$L$26,5,FALSE))","v":""},{"$f":"IF(C197=\"\",\"\",HLOOKUP(C197,'MHP Family Income & Rent Limits'!$E$12:$L$26,6,FALSE))","v":""},{"$f":"IF(C197=\"\",\"\",HLOOKUP(C197,'MHP Family Income & Rent Limits'!$E$12:$L$26,7,FALSE))","v":""},{"$f":"IF(C197=\"\",\"\",HLOOKUP(C197,'MHP Family Income & Rent Limits'!$E$12:$L$26,8,FALSE))","v":""},{"$f":"IF(C197=\"\",\"\",HLOOKUP(C197,'MHP Family Income & Rent Limits'!$E$12:$L$26,9,FALSE))","v":""},{"$f":"IF(C197=\"\",\"\",HLOOKUP(C197,'MHP Family Income & Rent Limits'!$E$12:$L$26,10,FALSE))","v":""},{"$f":"IF(C197=\"\",\"\",HLOOKUP(C197,'MHP Family Income & Rent Limits'!$E$12:$L$26,11,FALSE))","v":""},{"$f":"IF(C197=\"\",\"\",HLOOKUP(C197,'MHP Family Income & Rent Limits'!$E$12:$L$26,12,FALSE))","v":""},{"$f":"IF(C197=\"\",\"\",HLOOKUP(C197,'MHP Family Income & Rent Limits'!$E$12:$L$26,13,FALSE))","v":""},{"$f":"IF(C197=\"\",\"\",HLOOKUP(C197,'MHP Family Income & Rent Limits'!$E$12:$L$26,14,FALSE))","v":""},{"$f":"IF(C197=\"\",\"\",HLOOKUP(C197,'MHP Family Income & Rent Limits'!$E$12:$L$26,15,FALSE))","v":""}]
[{"$f":"IF('2. Assisted & Restricted Units'!A198=\"\",\"\",'2. Assisted & Restricted Units'!A198)","v":""},{"$f":"IF('2. Assisted & Restricted Units'!B198=\"\",\"\",'2. Assisted & Restricted Units'!B198)","v":""},{"$f":"IF('2. Assisted & Restricted Units'!D198=\"\",\"\",'2. Assisted & Restricted Units'!D198)","v":""},{"$f":"IF('2. Assisted & Restricted Units'!E198=\"\",\"\",'2. Assisted & Restricted Units'!E198)","v":""},{"$f":"IF('2. Assisted & Restricted Units'!H198=\"\",\"\",'2. Assisted & Restricted Units'!H198)","v":""},{"$f":"_xlfn.IFS(E198=\"\",\"\",E198>BO198,$BP$6,E198>BN198,$BO$6,E198>BM198,$BN$6,E198>BL198,$BM$6,E198>BK198,$BL$6,E198>BJ198,$BK$6,E198>BI198,$BJ$6,E198>BH198,$BI$6,E198>BG198,$BH$6,E198>BF198,$BG$6,E198>BE198,$BF$6,E198>BD198,$BE$6,E198>BC198,$BD$6,E198>=0,$BC$6)","v":""},{"$f":"IF('2. Assisted & Restricted Units'!T198=\"\",\"\",'2. Assisted & Restricted Units'!T198)","v":""},{"$f":"IF('2. Assisted & Restricted Units'!I198=\"\",\"\",'2. Assisted & Restricted Units'!I198)","v":""},{"$f":"IF('2. Assisted & Restricted Units'!AP198=\"\",\"\",'2. Assisted & Restricted Units'!AP198)","v":0},{"$f":"IF('2. Assisted & Restricted Units'!AT198=\"\",\"\",'2. Assisted & Restricted Units'!AT198)","v":""},0,{"$f":"IF('2. Assisted & Restricted Units'!AV198=\"\",\"\",'2. Assisted & Restricted Units'!AV198)","v":""},{"$f":"IF('2. Assisted & Restricted Units'!L198=\"\",\"\",'2. Assisted & Restricted Units'!L198)","v":""},{"$f":"IF('2. Assisted & Restricted Units'!M198=\"\",\"\",'2. Assisted & Restricted Units'!M198)","v":""},{"$f":"IF('2. Assisted & Restricted Units'!O198=\"\",\"\",'2. Assisted & Restricted Units'!O198)","v":""},{"$f":"IF('2. Assisted & Restricted Units'!P198=\"\",\"\",'2. Assisted & Restricted Units'!P198)","v":""},{"$f":"IF('2. Assisted & Restricted Units'!Q198=\"\",\"\",'2. Assisted & Restricted Units'!Q198)","v":""},{"$f":"IF('2. Assisted & Restricted Units'!R198=\"\",\"\",'2. Assisted & Restricted Units'!R198)","v":""},{"$f":"IF(A198=\"\",\"\",'1. Checklist & Certification'!$K$1)","v":""},{"$f":"IF(A198=\"\",\"\",'1. Checklist & Certification'!$C$62)","v":""},{"$f":"IF(A198=\"\",\"\",'1. Checklist & Certification'!$K$62)","v":""},{"$f":"IF(A198=\"\",\"\",'1. Checklist & Certification'!$C$6)","v":""},{"$f":"IF(A198=\"\",\"\",'1. Checklist & Certification'!$G$4)","v":""},{"$f":"IF(A198=\"\",\"\",'1. Checklist & Certification'!$C$7)","v":""},{"$f":"IF(A198=\"\",\"\",'1. Checklist & Certification'!$C$8)","v":""},{"$f":"IF(A198=\"\",\"\",'1. Checklist & Certification'!$F$7)","v":""},{"$f":"IF(A198=\"\",\"\",'1. Checklist & Certification'!$F$8)","v":""},{"$f":"IF(A198=\"\",\"\",'1. Checklist & Certification'!$B$9)","v":""},{"$f":"IF(A198=\"\",\"\",'1. Checklist & Certification'!$F$9)","v":""},{"$f":"IF(A198=\"\",\"\",'1. Checklist & Certification'!$C$10)","v":""},{"$f":"IF(A198=\"\",\"\",'1. Checklist & Certification'!$C$11)","v":""},{"$f":"IF(A198=\"\",\"\",'1. Checklist & Certification'!$C$12)","v":""},{"$f":"IF(A198=\"\",\"\",'1. Checklist & Certification'!$B$14)","v":""},{"$f":"IF(A198=\"\",\"\",'1. Checklist & Certification'!$E$14)","v":""},{"$f":"IF(B198=\"\",\"\",'1. Checklist & Certification'!$G$14)","v":""},{"$f":"IF(A198=\"\",\"\",'MHP Family Income & Rent Limits'!$B$3)","v":""},{"$f":"IF(A198=\"\",\"\",'MHP Family Income & Rent Limits'!$J$3)","v":""},{"$f":"IF(A198=\"\",\"\",'MHP Family Income & Rent Limits'!$E$4)","v":""},{"$f":"IF(A198=\"\",\"\",'MHP Family Income & Rent Limits'!$C$7)","v":""},{"$f":"IF(A198=\"\",\"\",'MHP Family Income & Rent Limits'!$F$8)","v":""},{"$f":"IF(A198=\"\",\"\",'1. Checklist & Certification'!$G$4)","v":""},{"$f":"IF(A198=\"\",\"\",'1. Checklist & Certification'!$K$39)","v":""},{"$f":"IF(A198=\"\",\"\",'1. Checklist & Certification'!$K$43)","v":""},{"$f":"IF(A198=\"\",\"\",'1. Checklist & Certification'!$K$45)","v":""},{"$f":"IF(A198=\"\",\"\",'1. Checklist & Certification'!$K$49)","v":""},{"$f":"IF(A198=\"\",\"\",'1. Checklist & Certification'!$E$66)","v":""},{"$f":"IF(A198=\"\",\"\",'1. Checklist & Certification'!$E$67)","v":""},{"$f":"IF(A198=\"\",\"\",'1. Checklist & Certification'!$E$68)","v":""},{"$f":"IF(A198=\"\",\"\",'1. Checklist & Certification'!$G$66)","v":""},{"$f":"IF(A198=\"\",\"\",'1. Checklist & Certification'!$H$66)","v":""},{"$f":"IF(A198=\"\",\"\",'1. Checklist & Certification'!$I$66)","v":""},{"$f":"IF(A198=\"\",\"\",'1. Checklist & Certification'!$I$67)","v":""},{"$f":"IF(A198=\"\",\"\",'1. Checklist & Certification'!$I$68)","v":""},null,{"$f":"IF(C198=\"\",\"\",HLOOKUP(C198,'MHP Family Income & Rent Limits'!$E$12:$L$26,2,FALSE))","v":""},{"$f":"IF(C198=\"\",\"\",HLOOKUP(C198,'MHP Family Income & Rent Limits'!$E$12:$L$26,3,FALSE))","v":""},{"$f":"IF(C198=\"\",\"\",HLOOKUP(C198,'MHP Family Income & Rent Limits'!$E$12:$L$26,4,FALSE))","v":""},{"$f":"IF(C198=\"\",\"\",HLOOKUP(C198,'MHP Family Income & Rent Limits'!$E$12:$L$26,5,FALSE))","v":""},{"$f":"IF(C198=\"\",\"\",HLOOKUP(C198,'MHP Family Income & Rent Limits'!$E$12:$L$26,6,FALSE))","v":""},{"$f":"IF(C198=\"\",\"\",HLOOKUP(C198,'MHP Family Income & Rent Limits'!$E$12:$L$26,7,FALSE))","v":""},{"$f":"IF(C198=\"\",\"\",HLOOKUP(C198,'MHP Family Income & Rent Limits'!$E$12:$L$26,8,FALSE))","v":""},{"$f":"IF(C198=\"\",\"\",HLOOKUP(C198,'MHP Family Income & Rent Limits'!$E$12:$L$26,9,FALSE))","v":""},{"$f":"IF(C198=\"\",\"\",HLOOKUP(C198,'MHP Family Income & Rent Limits'!$E$12:$L$26,10,FALSE))","v":""},{"$f":"IF(C198=\"\",\"\",HLOOKUP(C198,'MHP Family Income & Rent Limits'!$E$12:$L$26,11,FALSE))","v":""},{"$f":"IF(C198=\"\",\"\",HLOOKUP(C198,'MHP Family Income & Rent Limits'!$E$12:$L$26,12,FALSE))","v":""},{"$f":"IF(C198=\"\",\"\",HLOOKUP(C198,'MHP Family Income & Rent Limits'!$E$12:$L$26,13,FALSE))","v":""},{"$f":"IF(C198=\"\",\"\",HLOOKUP(C198,'MHP Family Income & Rent Limits'!$E$12:$L$26,14,FALSE))","v":""},{"$f":"IF(C198=\"\",\"\",HLOOKUP(C198,'MHP Family Income & Rent Limits'!$E$12:$L$26,15,FALSE))","v":""}]
[{"$f":"IF('2. Assisted & Restricted Units'!A199=\"\",\"\",'2. Assisted & Restricted Units'!A199)","v":""},{"$f":"IF('2. Assisted & Restricted Units'!B199=\"\",\"\",'2. Assisted & Restricted Units'!B199)","v":""},{"$f":"IF('2. Assisted & Restricted Units'!D199=\"\",\"\",'2. Assisted & Restricted Units'!D199)","v":""},{"$f":"IF('2. Assisted & Restricted Units'!E199=\"\",\"\",'2. Assisted & Restricted Units'!E199)","v":""},{"$f":"IF('2. Assisted & Restricted Units'!H199=\"\",\"\",'2. Assisted & Restricted Units'!H199)","v":""},{"$f":"_xlfn.IFS(E199=\"\",\"\",E199>BO199,$BP$6,E199>BN199,$BO$6,E199>BM199,$BN$6,E199>BL199,$BM$6,E199>BK199,$BL$6,E199>BJ199,$BK$6,E199>BI199,$BJ$6,E199>BH199,$BI$6,E199>BG199,$BH$6,E199>BF199,$BG$6,E199>BE199,$BF$6,E199>BD199,$BE$6,E199>BC199,$BD$6,E199>=0,$BC$6)","v":""},{"$f":"IF('2. Assisted & Restricted Units'!T199=\"\",\"\",'2. Assisted & Restricted Units'!T199)","v":""},{"$f":"IF('2. Assisted & Restricted Units'!I199=\"\",\"\",'2. Assisted & Restricted Units'!I199)","v":""},{"$f":"IF('2. Assisted & Restricted Units'!AP199=\"\",\"\",'2. Assisted & Restricted Units'!AP199)","v":0},{"$f":"IF('2. Assisted & Restricted Units'!AT199=\"\",\"\",'2. Assisted & Restricted Units'!AT199)","v":""},0,{"$f":"IF('2. Assisted & Restricted Units'!AV199=\"\",\"\",'2. Assisted & Restricted Units'!AV199)","v":""},{"$f":"IF('2. Assisted & Restricted Units'!L199=\"\",\"\",'2. Assisted & Restricted Units'!L199)","v":""},{"$f":"IF('2. Assisted & Restricted Units'!M199=\"\",\"\",'2. Assisted & Restricted Units'!M199)","v":""},{"$f":"IF('2. Assisted & Restricted Units'!O199=\"\",\"\",'2. Assisted & Restricted Units'!O199)","v":""},{"$f":"IF('2. Assisted & Restricted Units'!P199=\"\",\"\",'2. Assisted & Restricted Units'!P199)","v":""},{"$f":"IF('2. Assisted & Restricted Units'!Q199=\"\",\"\",'2. Assisted & Restricted Units'!Q199)","v":""},{"$f":"IF('2. Assisted & Restricted Units'!R199=\"\",\"\",'2. Assisted & Restricted Units'!R199)","v":""},{"$f":"IF(A199=\"\",\"\",'1. Checklist & Certification'!$K$1)","v":""},{"$f":"IF(A199=\"\",\"\",'1. Checklist & Certification'!$C$62)","v":""},{"$f":"IF(A199=\"\",\"\",'1. Checklist & Certification'!$K$62)","v":""},{"$f":"IF(A199=\"\",\"\",'1. Checklist & Certification'!$C$6)","v":""},{"$f":"IF(A199=\"\",\"\",'1. Checklist & Certification'!$G$4)","v":""},{"$f":"IF(A199=\"\",\"\",'1. Checklist & Certification'!$C$7)","v":""},{"$f":"IF(A199=\"\",\"\",'1. Checklist & Certification'!$C$8)","v":""},{"$f":"IF(A199=\"\",\"\",'1. Checklist & Certification'!$F$7)","v":""},{"$f":"IF(A199=\"\",\"\",'1. Checklist & Certification'!$F$8)","v":""},{"$f":"IF(A199=\"\",\"\",'1. Checklist & Certification'!$B$9)","v":""},{"$f":"IF(A199=\"\",\"\",'1. Checklist & Certification'!$F$9)","v":""},{"$f":"IF(A199=\"\",\"\",'1. Checklist & Certification'!$C$10)","v":""},{"$f":"IF(A199=\"\",\"\",'1. Checklist & Certification'!$C$11)","v":""},{"$f":"IF(A199=\"\",\"\",'1. Checklist & Certification'!$C$12)","v":""},{"$f":"IF(A199=\"\",\"\",'1. Checklist & Certification'!$B$14)","v":""},{"$f":"IF(A199=\"\",\"\",'1. Checklist & Certification'!$E$14)","v":""},{"$f":"IF(B199=\"\",\"\",'1. Checklist & Certification'!$G$14)","v":""},{"$f":"IF(A199=\"\",\"\",'MHP Family Income & Rent Limits'!$B$3)","v":""},{"$f":"IF(A199=\"\",\"\",'MHP Family Income & Rent Limits'!$J$3)","v":""},{"$f":"IF(A199=\"\",\"\",'MHP Family Income & Rent Limits'!$E$4)","v":""},{"$f":"IF(A199=\"\",\"\",'MHP Family Income & Rent Limits'!$C$7)","v":""},{"$f":"IF(A199=\"\",\"\",'MHP Family Income & Rent Limits'!$F$8)","v":""},{"$f":"IF(A199=\"\",\"\",'1. Checklist & Certification'!$G$4)","v":""},{"$f":"IF(A199=\"\",\"\",'1. Checklist & Certification'!$K$39)","v":""},{"$f":"IF(A199=\"\",\"\",'1. Checklist & Certification'!$K$43)","v":""},{"$f":"IF(A199=\"\",\"\",'1. Checklist & Certification'!$K$45)","v":""},{"$f":"IF(A199=\"\",\"\",'1. Checklist & Certification'!$K$49)","v":""},{"$f":"IF(A199=\"\",\"\",'1. Checklist & Certification'!$E$66)","v":""},{"$f":"IF(A199=\"\",\"\",'1. Checklist & Certification'!$E$67)","v":""},{"$f":"IF(A199=\"\",\"\",'1. Checklist & Certification'!$E$68)","v":""},{"$f":"IF(A199=\"\",\"\",'1. Checklist & Certification'!$G$66)","v":""},{"$f":"IF(A199=\"\",\"\",'1. Checklist & Certification'!$H$66)","v":""},{"$f":"IF(A199=\"\",\"\",'1. Checklist & Certification'!$I$66)","v":""},{"$f":"IF(A199=\"\",\"\",'1. Checklist & Certification'!$I$67)","v":""},{"$f":"IF(A199=\"\",\"\",'1. Checklist & Certification'!$I$68)","v":""},null,{"$f":"IF(C199=\"\",\"\",HLOOKUP(C199,'MHP Family Income & Rent Limits'!$E$12:$L$26,2,FALSE))","v":""},{"$f":"IF(C199=\"\",\"\",HLOOKUP(C199,'MHP Family Income & Rent Limits'!$E$12:$L$26,3,FALSE))","v":""},{"$f":"IF(C199=\"\",\"\",HLOOKUP(C199,'MHP Family Income & Rent Limits'!$E$12:$L$26,4,FALSE))","v":""},{"$f":"IF(C199=\"\",\"\",HLOOKUP(C199,'MHP Family Income & Rent Limits'!$E$12:$L$26,5,FALSE))","v":""},{"$f":"IF(C199=\"\",\"\",HLOOKUP(C199,'MHP Family Income & Rent Limits'!$E$12:$L$26,6,FALSE))","v":""},{"$f":"IF(C199=\"\",\"\",HLOOKUP(C199,'MHP Family Income & Rent Limits'!$E$12:$L$26,7,FALSE))","v":""},{"$f":"IF(C199=\"\",\"\",HLOOKUP(C199,'MHP Family Income & Rent Limits'!$E$12:$L$26,8,FALSE))","v":""},{"$f":"IF(C199=\"\",\"\",HLOOKUP(C199,'MHP Family Income & Rent Limits'!$E$12:$L$26,9,FALSE))","v":""},{"$f":"IF(C199=\"\",\"\",HLOOKUP(C199,'MHP Family Income & Rent Limits'!$E$12:$L$26,10,FALSE))","v":""},{"$f":"IF(C199=\"\",\"\",HLOOKUP(C199,'MHP Family Income & Rent Limits'!$E$12:$L$26,11,FALSE))","v":""},{"$f":"IF(C199=\"\",\"\",HLOOKUP(C199,'MHP Family Income & Rent Limits'!$E$12:$L$26,12,FALSE))","v":""},{"$f":"IF(C199=\"\",\"\",HLOOKUP(C199,'MHP Family Income & Rent Limits'!$E$12:$L$26,13,FALSE))","v":""},{"$f":"IF(C199=\"\",\"\",HLOOKUP(C199,'MHP Family Income & Rent Limits'!$E$12:$L$26,14,FALSE))","v":""},{"$f":"IF(C199=\"\",\"\",HLOOKUP(C199,'MHP Family Income & Rent Limits'!$E$12:$L$26,15,FALSE))","v":""}]
[{"$f":"IF('2. Assisted & Restricted Units'!A200=\"\",\"\",'2. Assisted & Restricted Units'!A200)","v":""},{"$f":"IF('2. Assisted & Restricted Units'!B200=\"\",\"\",'2. Assisted & Restricted Units'!B200)","v":""},{"$f":"IF('2. Assisted & Restricted Units'!D200=\"\",\"\",'2. Assisted & Restricted Units'!D200)","v":""},{"$f":"IF('2. Assisted & Restricted Units'!E200=\"\",\"\",'2. Assisted & Restricted Units'!E200)","v":""},{"$f":"IF('2. Assisted & Restricted Units'!H200=\"\",\"\",'2. Assisted & Restricted Units'!H200)","v":""},{"$f":"_xlfn.IFS(E200=\"\",\"\",E200>BO200,$BP$6,E200>BN200,$BO$6,E200>BM200,$BN$6,E200>BL200,$BM$6,E200>BK200,$BL$6,E200>BJ200,$BK$6,E200>BI200,$BJ$6,E200>BH200,$BI$6,E200>BG200,$BH$6,E200>BF200,$BG$6,E200>BE200,$BF$6,E200>BD200,$BE$6,E200>BC200,$BD$6,E200>=0,$BC$6)","v":""},{"$f":"IF('2. Assisted & Restricted Units'!T200=\"\",\"\",'2. Assisted & Restricted Units'!T200)","v":""},{"$f":"IF('2. Assisted & Restricted Units'!I200=\"\",\"\",'2. Assisted & Restricted Units'!I200)","v":""},{"$f":"IF('2. Assisted & Restricted Units'!AP200=\"\",\"\",'2. Assisted & Restricted Units'!AP200)","v":0},{"$f":"IF('2. Assisted & Restricted Units'!AT200=\"\",\"\",'2. Assisted & Restricted Units'!AT200)","v":""},{"$f":"SUM(H200:J200)","v":0},{"$f":"IF('2. Assisted & Restricted Units'!AV200=\"\",\"\",'2. Assisted & Restricted Units'!AV200)","v":""},{"$f":"IF('2. Assisted & Restricted Units'!L200=\"\",\"\",'2. Assisted & Restricted Units'!L200)","v":""},{"$f":"IF('2. Assisted & Restricted Units'!M200=\"\",\"\",'2. Assisted & Restricted Units'!M200)","v":""},{"$f":"IF('2. Assisted & Restricted Units'!O200=\"\",\"\",'2. Assisted & Restricted Units'!O200)","v":""},{"$f":"IF('2. Assisted & Restricted Units'!P200=\"\",\"\",'2. Assisted & Restricted Units'!P200)","v":""},{"$f":"IF('2. Assisted & Restricted Units'!Q200=\"\",\"\",'2. Assisted & Restricted Units'!Q200)","v":""},{"$f":"IF('2. Assisted & Restricted Units'!R200=\"\",\"\",'2. Assisted & Restricted Units'!R200)","v":""},{"$f":"IF(A200=\"\",\"\",'1. Checklist & Certification'!$K$1)","v":""},{"$f":"IF(A200=\"\",\"\",'1. Checklist & Certification'!$C$62)","v":""},{"$f":"IF(A200=\"\",\"\",'1. Checklist & Certification'!$K$62)","v":""},{"$f":"IF(A200=\"\",\"\",'1. Checklist & Certification'!$C$6)","v":""},{"$f":"IF(A200=\"\",\"\",'1. Checklist & Certification'!$G$4)","v":""},{"$f":"IF(A200=\"\",\"\",'1. Checklist & Certification'!$C$7)","v":""},{"$f":"IF(A200=\"\",\"\",'1. Checklist & Certification'!$C$8)","v":""},{"$f":"IF(A200=\"\",\"\",'1. Checklist & Certification'!$F$7)","v":""},{"$f":"IF(A200=\"\",\"\",'1. Checklist & Certification'!$F$8)","v":""},{"$f":"IF(A200=\"\",\"\",'1. Checklist & Certification'!$B$9)","v":""},{"$f":"IF(A200=\"\",\"\",'1. Checklist & Certification'!$F$9)","v":""},{"$f":"IF(A200=\"\",\"\",'1. Checklist & Certification'!$C$10)","v":""},{"$f":"IF(A200=\"\",\"\",'1. Checklist & Certification'!$C$11)","v":""},{"$f":"IF(A200=\"\",\"\",'1. Checklist & Certification'!$C$12)","v":""},{"$f":"IF(A200=\"\",\"\",'1. Checklist & Certification'!$B$14)","v":""},{"$f":"IF(A200=\"\",\"\",'1. Checklist & Certification'!$E$14)","v":""},{"$f":"IF(B200=\"\",\"\",'1. Checklist & Certification'!$G$14)","v":""},{"$f":"IF(A200=\"\",\"\",'MHP Family Income & Rent Limits'!$B$3)","v":""},{"$f":"IF(A200=\"\",\"\",'MHP Family Income & Rent Limits'!$J$3)","v":""},{"$f":"IF(A200=\"\",\"\",'MHP Family Income & Rent Limits'!$E$4)","v":""},{"$f":"IF(A200=\"\",\"\",'MHP Family Income & Rent Limits'!$C$7)","v":""},{"$f":"IF(A200=\"\",\"\",'MHP Family Income & Rent Limits'!$F$8)","v":""},{"$f":"IF(A200=\"\",\"\",'1. Checklist & Certification'!$G$4)","v":""},{"$f":"IF(A200=\"\",\"\",'1. Checklist & Certification'!$K$39)","v":""},{"$f":"IF(A200=\"\",\"\",'1. Checklist & Certification'!$K$43)","v":""},{"$f":"IF(A200=\"\",\"\",'1. Checklist & Certification'!$K$45)","v":""},{"$f":"IF(A200=\"\",\"\",'1. Checklist & Certification'!$K$49)","v":""},{"$f":"IF(A200=\"\",\"\",'1. Checklist & Certification'!$E$66)","v":""},{"$f":"IF(A200=\"\",\"\",'1. Checklist & Certification'!$E$67)","v":""},{"$f":"IF(A200=\"\",\"\",'1. Checklist & Certification'!$E$68)","v":""},{"$f":"IF(A200=\"\",\"\",'1. Checklist & Certification'!$G$66)","v":""},{"$f":"IF(A200=\"\",\"\",'1. Checklist & Certification'!$H$66)","v":""},{"$f":"IF(A200=\"\",\"\",'1. Checklist & Certification'!$I$66)","v":""},{"$f":"IF(A200=\"\",\"\",'1. Checklist & Certification'!$I$67)","v":""},{"$f":"IF(A200=\"\",\"\",'1. Checklist & Certification'!$I$68)","v":""},null,{"$f":"IF(C200=\"\",\"\",HLOOKUP(C200,'MHP Family Income & Rent Limits'!$E$12:$L$26,2,FALSE))","v":""},{"$f":"IF(C200=\"\",\"\",HLOOKUP(C200,'MHP Family Income & Rent Limits'!$E$12:$L$26,3,FALSE))","v":""},{"$f":"IF(C200=\"\",\"\",HLOOKUP(C200,'MHP Family Income & Rent Limits'!$E$12:$L$26,4,FALSE))","v":""},{"$f":"IF(C200=\"\",\"\",HLOOKUP(C200,'MHP Family Income & Rent Limits'!$E$12:$L$26,5,FALSE))","v":""},{"$f":"IF(C200=\"\",\"\",HLOOKUP(C200,'MHP Family Income & Rent Limits'!$E$12:$L$26,6,FALSE))","v":""},{"$f":"IF(C200=\"\",\"\",HLOOKUP(C200,'MHP Family Income & Rent Limits'!$E$12:$L$26,7,FALSE))","v":""},{"$f":"IF(C200=\"\",\"\",HLOOKUP(C200,'MHP Family Income & Rent Limits'!$E$12:$L$26,8,FALSE))","v":""},{"$f":"IF(C200=\"\",\"\",HLOOKUP(C200,'MHP Family Income & Rent Limits'!$E$12:$L$26,9,FALSE))","v":""},{"$f":"IF(C200=\"\",\"\",HLOOKUP(C200,'MHP Family Income & Rent Limits'!$E$12:$L$26,10,FALSE))","v":""},{"$f":"IF(C200=\"\",\"\",HLOOKUP(C200,'MHP Family Income & Rent Limits'!$E$12:$L$26,11,FALSE))","v":""},{"$f":"IF(C200=\"\",\"\",HLOOKUP(C200,'MHP Family Income & Rent Limits'!$E$12:$L$26,12,FALSE))","v":""},{"$f":"IF(C200=\"\",\"\",HLOOKUP(C200,'MHP Family Income & Rent Limits'!$E$12:$L$26,13,FALSE))","v":""},{"$f":"IF(C200=\"\",\"\",HLOOKUP(C200,'MHP Family Income & Rent Limits'!$E$12:$L$26,14,FALSE))","v":""},{"$f":"IF(C200=\"\",\"\",HLOOKUP(C200,'MHP Family Income & Rent Limits'!$E$12:$L$26,15,FALSE))","v":""}]
[{"$f":"IF('2. Assisted & Restricted Units'!A201=\"\",\"\",'2. Assisted & Restricted Units'!A201)","v":""},{"$f":"IF('2. Assisted & Restricted Units'!B201=\"\",\"\",'2. Assisted & Restricted Units'!B201)","v":""},{"$f":"IF('2. Assisted & Restricted Units'!D201=\"\",\"\",'2. Assisted & Restricted Units'!D201)","v":""},{"$f":"IF('2. Assisted & Restricted Units'!E201=\"\",\"\",'2. Assisted & Restricted Units'!E201)","v":""},{"$f":"IF('2. Assisted & Restricted Units'!H201=\"\",\"\",'2. Assisted & Restricted Units'!H201)","v":""},{"$f":"_xlfn.IFS(E201=\"\",\"\",E201>BO201,$BP$6,E201>BN201,$BO$6,E201>BM201,$BN$6,E201>BL201,$BM$6,E201>BK201,$BL$6,E201>BJ201,$BK$6,E201>BI201,$BJ$6,E201>BH201,$BI$6,E201>BG201,$BH$6,E201>BF201,$BG$6,E201>BE201,$BF$6,E201>BD201,$BE$6,E201>BC201,$BD$6,E201>=0,$BC$6)","v":""},{"$f":"IF('2. Assisted & Restricted Units'!T201=\"\",\"\",'2. Assisted & Restricted Units'!T201)","v":""},{"$f":"IF('2. Assisted & Restricted Units'!I201=\"\",\"\",'2. Assisted & Restricted Units'!I201)","v":""},{"$f":"IF('2. Assisted & Restricted Units'!AP201=\"\",\"\",'2. Assisted & Restricted Units'!AP201)","v":0},{"$f":"IF('2. Assisted & Restricted Units'!AT201=\"\",\"\",'2. Assisted & Restricted Units'!AT201)","v":""},0,{"$f":"IF('2. Assisted & Restricted Units'!AV201=\"\",\"\",'2. Assisted & Restricted Units'!AV201)","v":""},{"$f":"IF('2. Assisted & Restricted Units'!L201=\"\",\"\",'2. Assisted & Restricted Units'!L201)","v":""},{"$f":"IF('2. Assisted & Restricted Units'!M201=\"\",\"\",'2. Assisted & Restricted Units'!M201)","v":""},{"$f":"IF('2. Assisted & Restricted Units'!O201=\"\",\"\",'2. Assisted & Restricted Units'!O201)","v":""},{"$f":"IF('2. Assisted & Restricted Units'!P201=\"\",\"\",'2. Assisted & Restricted Units'!P201)","v":""},{"$f":"IF('2. Assisted & Restricted Units'!Q201=\"\",\"\",'2. Assisted & Restricted Units'!Q201)","v":""},{"$f":"IF('2. Assisted & Restricted Units'!R201=\"\",\"\",'2. Assisted & Restricted Units'!R201)","v":""},{"$f":"IF(A201=\"\",\"\",'1. Checklist & Certification'!$K$1)","v":""},{"$f":"IF(A201=\"\",\"\",'1. Checklist & Certification'!$C$62)","v":""},{"$f":"IF(A201=\"\",\"\",'1. Checklist & Certification'!$K$62)","v":""},{"$f":"IF(A201=\"\",\"\",'1. Checklist & Certification'!$C$6)","v":""},{"$f":"IF(A201=\"\",\"\",'1. Checklist & Certification'!$G$4)","v":""},{"$f":"IF(A201=\"\",\"\",'1. Checklist & Certification'!$C$7)","v":""},{"$f":"IF(A201=\"\",\"\",'1. Checklist & Certification'!$C$8)","v":""},{"$f":"IF(A201=\"\",\"\",'1. Checklist & Certification'!$F$7)","v":""},{"$f":"IF(A201=\"\",\"\",'1. Checklist & Certification'!$F$8)","v":""},{"$f":"IF(A201=\"\",\"\",'1. Checklist & Certification'!$B$9)","v":""},{"$f":"IF(A201=\"\",\"\",'1. Checklist & Certification'!$F$9)","v":""},{"$f":"IF(A201=\"\",\"\",'1. Checklist & Certification'!$C$10)","v":""},{"$f":"IF(A201=\"\",\"\",'1. Checklist & Certification'!$C$11)","v":""},{"$f":"IF(A201=\"\",\"\",'1. Checklist & Certification'!$C$12)","v":""},{"$f":"IF(A201=\"\",\"\",'1. Checklist & Certification'!$B$14)","v":""},{"$f":"IF(A201=\"\",\"\",'1. Checklist & Certification'!$E$14)","v":""},{"$f":"IF(B201=\"\",\"\",'1. Checklist & Certification'!$G$14)","v":""},{"$f":"IF(A201=\"\",\"\",'MHP Family Income & Rent Limits'!$B$3)","v":""},{"$f":"IF(A201=\"\",\"\",'MHP Family Income & Rent Limits'!$J$3)","v":""},{"$f":"IF(A201=\"\",\"\",'MHP Family Income & Rent Limits'!$E$4)","v":""},{"$f":"IF(A201=\"\",\"\",'MHP Family Income & Rent Limits'!$C$7)","v":""},{"$f":"IF(A201=\"\",\"\",'MHP Family Income & Rent Limits'!$F$8)","v":""},{"$f":"IF(A201=\"\",\"\",'1. Checklist & Certification'!$G$4)","v":""},{"$f":"IF(A201=\"\",\"\",'1. Checklist & Certification'!$K$39)","v":""},{"$f":"IF(A201=\"\",\"\",'1. Checklist & Certification'!$K$43)","v":""},{"$f":"IF(A201=\"\",\"\",'1. Checklist & Certification'!$K$45)","v":""},{"$f":"IF(A201=\"\",\"\",'1. Checklist & Certification'!$K$49)","v":""},{"$f":"IF(A201=\"\",\"\",'1. Checklist & Certification'!$E$66)","v":""},{"$f":"IF(A201=\"\",\"\",'1. Checklist & Certification'!$E$67)","v":""},{"$f":"IF(A201=\"\",\"\",'1. Checklist & Certification'!$E$68)","v":""},{"$f":"IF(A201=\"\",\"\",'1. Checklist & Certification'!$G$66)","v":""},{"$f":"IF(A201=\"\",\"\",'1. Checklist & Certification'!$H$66)","v":""},{"$f":"IF(A201=\"\",\"\",'1. Checklist & Certification'!$I$66)","v":""},{"$f":"IF(A201=\"\",\"\",'1. Checklist & Certification'!$I$67)","v":""},{"$f":"IF(A201=\"\",\"\",'1. Checklist & Certification'!$I$68)","v":""},null,{"$f":"IF(C201=\"\",\"\",HLOOKUP(C201,'MHP Family Income & Rent Limits'!$E$12:$L$26,2,FALSE))","v":""},{"$f":"IF(C201=\"\",\"\",HLOOKUP(C201,'MHP Family Income & Rent Limits'!$E$12:$L$26,3,FALSE))","v":""},{"$f":"IF(C201=\"\",\"\",HLOOKUP(C201,'MHP Family Income & Rent Limits'!$E$12:$L$26,4,FALSE))","v":""},{"$f":"IF(C201=\"\",\"\",HLOOKUP(C201,'MHP Family Income & Rent Limits'!$E$12:$L$26,5,FALSE))","v":""},{"$f":"IF(C201=\"\",\"\",HLOOKUP(C201,'MHP Family Income & Rent Limits'!$E$12:$L$26,6,FALSE))","v":""},{"$f":"IF(C201=\"\",\"\",HLOOKUP(C201,'MHP Family Income & Rent Limits'!$E$12:$L$26,7,FALSE))","v":""},{"$f":"IF(C201=\"\",\"\",HLOOKUP(C201,'MHP Family Income & Rent Limits'!$E$12:$L$26,8,FALSE))","v":""},{"$f":"IF(C201=\"\",\"\",HLOOKUP(C201,'MHP Family Income & Rent Limits'!$E$12:$L$26,9,FALSE))","v":""},{"$f":"IF(C201=\"\",\"\",HLOOKUP(C201,'MHP Family Income & Rent Limits'!$E$12:$L$26,10,FALSE))","v":""},{"$f":"IF(C201=\"\",\"\",HLOOKUP(C201,'MHP Family Income & Rent Limits'!$E$12:$L$26,11,FALSE))","v":""},{"$f":"IF(C201=\"\",\"\",HLOOKUP(C201,'MHP Family Income & Rent Limits'!$E$12:$L$26,12,FALSE))","v":""},{"$f":"IF(C201=\"\",\"\",HLOOKUP(C201,'MHP Family Income & Rent Limits'!$E$12:$L$26,13,FALSE))","v":""},{"$f":"IF(C201=\"\",\"\",HLOOKUP(C201,'MHP Family Income & Rent Limits'!$E$12:$L$26,14,FALSE))","v":""},{"$f":"IF(C201=\"\",\"\",HLOOKUP(C201,'MHP Family Income & Rent Limits'!$E$12:$L$26,15,FALSE))","v":""}]
[{"$f":"IF('2. Assisted & Restricted Units'!A202=\"\",\"\",'2. Assisted & Restricted Units'!A202)","v":""},{"$f":"IF('2. Assisted & Restricted Units'!B202=\"\",\"\",'2. Assisted & Restricted Units'!B202)","v":""},{"$f":"IF('2. Assisted & Restricted Units'!D202=\"\",\"\",'2. Assisted & Restricted Units'!D202)","v":""},{"$f":"IF('2. Assisted & Restricted Units'!E202=\"\",\"\",'2. Assisted & Restricted Units'!E202)","v":""},{"$f":"IF('2. Assisted & Restricted Units'!H202=\"\",\"\",'2. Assisted & Restricted Units'!H202)","v":""},{"$f":"_xlfn.IFS(E202=\"\",\"\",E202>BO202,$BP$6,E202>BN202,$BO$6,E202>BM202,$BN$6,E202>BL202,$BM$6,E202>BK202,$BL$6,E202>BJ202,$BK$6,E202>BI202,$BJ$6,E202>BH202,$BI$6,E202>BG202,$BH$6,E202>BF202,$BG$6,E202>BE202,$BF$6,E202>BD202,$BE$6,E202>BC202,$BD$6,E202>=0,$BC$6)","v":""},{"$f":"IF('2. Assisted & Restricted Units'!T202=\"\",\"\",'2. Assisted & Restricted Units'!T202)","v":""},{"$f":"IF('2. Assisted & Restricted Units'!I202=\"\",\"\",'2. Assisted & Restricted Units'!I202)","v":""},{"$f":"IF('2. Assisted & Restricted Units'!AP202=\"\",\"\",'2. Assisted & Restricted Units'!AP202)","v":0},{"$f":"IF('2. Assisted & Restricted Units'!AT202=\"\",\"\",'2. Assisted & Restricted Units'!AT202)","v":""},0,{"$f":"IF('2. Assisted & Restricted Units'!AV202=\"\",\"\",'2. Assisted & Restricted Units'!AV202)","v":""},{"$f":"IF('2. Assisted & Restricted Units'!L202=\"\",\"\",'2. Assisted & Restricted Units'!L202)","v":""},{"$f":"IF('2. Assisted & Restricted Units'!M202=\"\",\"\",'2. Assisted & Restricted Units'!M202)","v":""},{"$f":"IF('2. Assisted & Restricted Units'!O202=\"\",\"\",'2. Assisted & Restricted Units'!O202)","v":""},{"$f":"IF('2. Assisted & Restricted Units'!P202=\"\",\"\",'2. Assisted & Restricted Units'!P202)","v":""},{"$f":"IF('2. Assisted & Restricted Units'!Q202=\"\",\"\",'2. Assisted & Restricted Units'!Q202)","v":""},{"$f":"IF('2. Assisted & Restricted Units'!R202=\"\",\"\",'2. Assisted & Restricted Units'!R202)","v":""},{"$f":"IF(A202=\"\",\"\",'1. Checklist & Certification'!$K$1)","v":""},{"$f":"IF(A202=\"\",\"\",'1. Checklist & Certification'!$C$62)","v":""},{"$f":"IF(A202=\"\",\"\",'1. Checklist & Certification'!$K$62)","v":""},{"$f":"IF(A202=\"\",\"\",'1. Checklist & Certification'!$C$6)","v":""},{"$f":"IF(A202=\"\",\"\",'1. Checklist & Certification'!$G$4)","v":""},{"$f":"IF(A202=\"\",\"\",'1. Checklist & Certification'!$C$7)","v":""},{"$f":"IF(A202=\"\",\"\",'1. Checklist & Certification'!$C$8)","v":""},{"$f":"IF(A202=\"\",\"\",'1. Checklist & Certification'!$F$7)","v":""},{"$f":"IF(A202=\"\",\"\",'1. Checklist & Certification'!$F$8)","v":""},{"$f":"IF(A202=\"\",\"\",'1. Checklist & Certification'!$B$9)","v":""},{"$f":"IF(A202=\"\",\"\",'1. Checklist & Certification'!$F$9)","v":""},{"$f":"IF(A202=\"\",\"\",'1. Checklist & Certification'!$C$10)","v":""},{"$f":"IF(A202=\"\",\"\",'1. Checklist & Certification'!$C$11)","v":""},{"$f":"IF(A202=\"\",\"\",'1. Checklist & Certification'!$C$12)","v":""},{"$f":"IF(A202=\"\",\"\",'1. Checklist & Certification'!$B$14)","v":""},{"$f":"IF(A202=\"\",\"\",'1. Checklist & Certification'!$E$14)","v":""},{"$f":"IF(B202=\"\",\"\",'1. Checklist & Certification'!$G$14)","v":""},{"$f":"IF(A202=\"\",\"\",'MHP Family Income & Rent Limits'!$B$3)","v":""},{"$f":"IF(A202=\"\",\"\",'MHP Family Income & Rent Limits'!$J$3)","v":""},{"$f":"IF(A202=\"\",\"\",'MHP Family Income & Rent Limits'!$E$4)","v":""},{"$f":"IF(A202=\"\",\"\",'MHP Family Income & Rent Limits'!$C$7)","v":""},{"$f":"IF(A202=\"\",\"\",'MHP Family Income & Rent Limits'!$F$8)","v":""},{"$f":"IF(A202=\"\",\"\",'1. Checklist & Certification'!$G$4)","v":""},{"$f":"IF(A202=\"\",\"\",'1. Checklist & Certification'!$K$39)","v":""},{"$f":"IF(A202=\"\",\"\",'1. Checklist & Certification'!$K$43)","v":""},{"$f":"IF(A202=\"\",\"\",'1. Checklist & Certification'!$K$45)","v":""},{"$f":"IF(A202=\"\",\"\",'1. Checklist & Certification'!$K$49)","v":""},{"$f":"IF(A202=\"\",\"\",'1. Checklist & Certification'!$E$66)","v":""},{"$f":"IF(A202=\"\",\"\",'1. Checklist & Certification'!$E$67)","v":""},{"$f":"IF(A202=\"\",\"\",'1. Checklist & Certification'!$E$68)","v":""},{"$f":"IF(A202=\"\",\"\",'1. Checklist & Certification'!$G$66)","v":""},{"$f":"IF(A202=\"\",\"\",'1. Checklist & Certification'!$H$66)","v":""},{"$f":"IF(A202=\"\",\"\",'1. Checklist & Certification'!$I$66)","v":""},{"$f":"IF(A202=\"\",\"\",'1. Checklist & Certification'!$I$67)","v":""},{"$f":"IF(A202=\"\",\"\",'1. Checklist & Certification'!$I$68)","v":""},null,{"$f":"IF(C202=\"\",\"\",HLOOKUP(C202,'MHP Family Income & Rent Limits'!$E$12:$L$26,2,FALSE))","v":""},{"$f":"IF(C202=\"\",\"\",HLOOKUP(C202,'MHP Family Income & Rent Limits'!$E$12:$L$26,3,FALSE))","v":""},{"$f":"IF(C202=\"\",\"\",HLOOKUP(C202,'MHP Family Income & Rent Limits'!$E$12:$L$26,4,FALSE))","v":""},{"$f":"IF(C202=\"\",\"\",HLOOKUP(C202,'MHP Family Income & Rent Limits'!$E$12:$L$26,5,FALSE))","v":""},{"$f":"IF(C202=\"\",\"\",HLOOKUP(C202,'MHP Family Income & Rent Limits'!$E$12:$L$26,6,FALSE))","v":""},{"$f":"IF(C202=\"\",\"\",HLOOKUP(C202,'MHP Family Income & Rent Limits'!$E$12:$L$26,7,FALSE))","v":""},{"$f":"IF(C202=\"\",\"\",HLOOKUP(C202,'MHP Family Income & Rent Limits'!$E$12:$L$26,8,FALSE))","v":""},{"$f":"IF(C202=\"\",\"\",HLOOKUP(C202,'MHP Family Income & Rent Limits'!$E$12:$L$26,9,FALSE))","v":""},{"$f":"IF(C202=\"\",\"\",HLOOKUP(C202,'MHP Family Income & Rent Limits'!$E$12:$L$26,10,FALSE))","v":""},{"$f":"IF(C202=\"\",\"\",HLOOKUP(C202,'MHP Family Income & Rent Limits'!$E$12:$L$26,11,FALSE))","v":""},{"$f":"IF(C202=\"\",\"\",HLOOKUP(C202,'MHP Family Income & Rent Limits'!$E$12:$L$26,12,FALSE))","v":""},{"$f":"IF(C202=\"\",\"\",HLOOKUP(C202,'MHP Family Income & Rent Limits'!$E$12:$L$26,13,FALSE))","v":""},{"$f":"IF(C202=\"\",\"\",HLOOKUP(C202,'MHP Family Income & Rent Limits'!$E$12:$L$26,14,FALSE))","v":""},{"$f":"IF(C202=\"\",\"\",HLOOKUP(C202,'MHP Family Income & Rent Limits'!$E$12:$L$26,15,FALSE))","v":""}]
[{"$f":"IF('2. Assisted & Restricted Units'!A203=\"\",\"\",'2. Assisted & Restricted Units'!A203)","v":""},{"$f":"IF('2. Assisted & Restricted Units'!B203=\"\",\"\",'2. Assisted & Restricted Units'!B203)","v":""},{"$f":"IF('2. Assisted & Restricted Units'!D203=\"\",\"\",'2. Assisted & Restricted Units'!D203)","v":""},{"$f":"IF('2. Assisted & Restricted Units'!E203=\"\",\"\",'2. Assisted & Restricted Units'!E203)","v":""},{"$f":"IF('2. Assisted & Restricted Units'!H203=\"\",\"\",'2. Assisted & Restricted Units'!H203)","v":""},{"$f":"_xlfn.IFS(E203=\"\",\"\",E203>BO203,$BP$6,E203>BN203,$BO$6,E203>BM203,$BN$6,E203>BL203,$BM$6,E203>BK203,$BL$6,E203>BJ203,$BK$6,E203>BI203,$BJ$6,E203>BH203,$BI$6,E203>BG203,$BH$6,E203>BF203,$BG$6,E203>BE203,$BF$6,E203>BD203,$BE$6,E203>BC203,$BD$6,E203>=0,$BC$6)","v":""},{"$f":"IF('2. Assisted & Restricted Units'!T203=\"\",\"\",'2. Assisted & Restricted Units'!T203)","v":""},{"$f":"IF('2. Assisted & Restricted Units'!I203=\"\",\"\",'2. Assisted & Restricted Units'!I203)","v":""},{"$f":"IF('2. Assisted & Restricted Units'!AP203=\"\",\"\",'2. Assisted & Restricted Units'!AP203)","v":0},{"$f":"IF('2. Assisted & Restricted Units'!AT203=\"\",\"\",'2. Assisted & Restricted Units'!AT203)","v":""},0,{"$f":"IF('2. Assisted & Restricted Units'!AV203=\"\",\"\",'2. Assisted & Restricted Units'!AV203)","v":""},{"$f":"IF('2. Assisted & Restricted Units'!L203=\"\",\"\",'2. Assisted & Restricted Units'!L203)","v":""},{"$f":"IF('2. Assisted & Restricted Units'!M203=\"\",\"\",'2. Assisted & Restricted Units'!M203)","v":""},{"$f":"IF('2. Assisted & Restricted Units'!O203=\"\",\"\",'2. Assisted & Restricted Units'!O203)","v":""},{"$f":"IF('2. Assisted & Restricted Units'!P203=\"\",\"\",'2. Assisted & Restricted Units'!P203)","v":""},{"$f":"IF('2. Assisted & Restricted Units'!Q203=\"\",\"\",'2. Assisted & Restricted Units'!Q203)","v":""},{"$f":"IF('2. Assisted & Restricted Units'!R203=\"\",\"\",'2. Assisted & Restricted Units'!R203)","v":""},{"$f":"IF(A203=\"\",\"\",'1. Checklist & Certification'!$K$1)","v":""},{"$f":"IF(A203=\"\",\"\",'1. Checklist & Certification'!$C$62)","v":""},{"$f":"IF(A203=\"\",\"\",'1. Checklist & Certification'!$K$62)","v":""},{"$f":"IF(A203=\"\",\"\",'1. Checklist & Certification'!$C$6)","v":""},{"$f":"IF(A203=\"\",\"\",'1. Checklist & Certification'!$G$4)","v":""},{"$f":"IF(A203=\"\",\"\",'1. Checklist & Certification'!$C$7)","v":""},{"$f":"IF(A203=\"\",\"\",'1. Checklist & Certification'!$C$8)","v":""},{"$f":"IF(A203=\"\",\"\",'1. Checklist & Certification'!$F$7)","v":""},{"$f":"IF(A203=\"\",\"\",'1. Checklist & Certification'!$F$8)","v":""},{"$f":"IF(A203=\"\",\"\",'1. Checklist & Certification'!$B$9)","v":""},{"$f":"IF(A203=\"\",\"\",'1. Checklist & Certification'!$F$9)","v":""},{"$f":"IF(A203=\"\",\"\",'1. Checklist & Certification'!$C$10)","v":""},{"$f":"IF(A203=\"\",\"\",'1. Checklist & Certification'!$C$11)","v":""},{"$f":"IF(A203=\"\",\"\",'1. Checklist & Certification'!$C$12)","v":""},{"$f":"IF(A203=\"\",\"\",'1. Checklist & Certification'!$B$14)","v":""},{"$f":"IF(A203=\"\",\"\",'1. Checklist & Certification'!$E$14)","v":""},{"$f":"IF(B203=\"\",\"\",'1. Checklist & Certification'!$G$14)","v":""},{"$f":"IF(A203=\"\",\"\",'MHP Family Income & Rent Limits'!$B$3)","v":""},{"$f":"IF(A203=\"\",\"\",'MHP Family Income & Rent Limits'!$J$3)","v":""},{"$f":"IF(A203=\"\",\"\",'MHP Family Income & Rent Limits'!$E$4)","v":""},{"$f":"IF(A203=\"\",\"\",'MHP Family Income & Rent Limits'!$C$7)","v":""},{"$f":"IF(A203=\"\",\"\",'MHP Family Income & Rent Limits'!$F$8)","v":""},{"$f":"IF(A203=\"\",\"\",'1. Checklist & Certification'!$G$4)","v":""},{"$f":"IF(A203=\"\",\"\",'1. Checklist & Certification'!$K$39)","v":""},{"$f":"IF(A203=\"\",\"\",'1. Checklist & Certification'!$K$43)","v":""},{"$f":"IF(A203=\"\",\"\",'1. Checklist & Certification'!$K$45)","v":""},{"$f":"IF(A203=\"\",\"\",'1. Checklist & Certification'!$K$49)","v":""},{"$f":"IF(A203=\"\",\"\",'1. Checklist & Certification'!$E$66)","v":""},{"$f":"IF(A203=\"\",\"\",'1. Checklist & Certification'!$E$67)","v":""},{"$f":"IF(A203=\"\",\"\",'1. Checklist & Certification'!$E$68)","v":""},{"$f":"IF(A203=\"\",\"\",'1. Checklist & Certification'!$G$66)","v":""},{"$f":"IF(A203=\"\",\"\",'1. Checklist & Certification'!$H$66)","v":""},{"$f":"IF(A203=\"\",\"\",'1. Checklist & Certification'!$I$66)","v":""},{"$f":"IF(A203=\"\",\"\",'1. Checklist & Certification'!$I$67)","v":""},{"$f":"IF(A203=\"\",\"\",'1. Checklist & Certification'!$I$68)","v":""},null,{"$f":"IF(C203=\"\",\"\",HLOOKUP(C203,'MHP Family Income & Rent Limits'!$E$12:$L$26,2,FALSE))","v":""},{"$f":"IF(C203=\"\",\"\",HLOOKUP(C203,'MHP Family Income & Rent Limits'!$E$12:$L$26,3,FALSE))","v":""},{"$f":"IF(C203=\"\",\"\",HLOOKUP(C203,'MHP Family Income & Rent Limits'!$E$12:$L$26,4,FALSE))","v":""},{"$f":"IF(C203=\"\",\"\",HLOOKUP(C203,'MHP Family Income & Rent Limits'!$E$12:$L$26,5,FALSE))","v":""},{"$f":"IF(C203=\"\",\"\",HLOOKUP(C203,'MHP Family Income & Rent Limits'!$E$12:$L$26,6,FALSE))","v":""},{"$f":"IF(C203=\"\",\"\",HLOOKUP(C203,'MHP Family Income & Rent Limits'!$E$12:$L$26,7,FALSE))","v":""},{"$f":"IF(C203=\"\",\"\",HLOOKUP(C203,'MHP Family Income & Rent Limits'!$E$12:$L$26,8,FALSE))","v":""},{"$f":"IF(C203=\"\",\"\",HLOOKUP(C203,'MHP Family Income & Rent Limits'!$E$12:$L$26,9,FALSE))","v":""},{"$f":"IF(C203=\"\",\"\",HLOOKUP(C203,'MHP Family Income & Rent Limits'!$E$12:$L$26,10,FALSE))","v":""},{"$f":"IF(C203=\"\",\"\",HLOOKUP(C203,'MHP Family Income & Rent Limits'!$E$12:$L$26,11,FALSE))","v":""},{"$f":"IF(C203=\"\",\"\",HLOOKUP(C203,'MHP Family Income & Rent Limits'!$E$12:$L$26,12,FALSE))","v":""},{"$f":"IF(C203=\"\",\"\",HLOOKUP(C203,'MHP Family Income & Rent Limits'!$E$12:$L$26,13,FALSE))","v":""},{"$f":"IF(C203=\"\",\"\",HLOOKUP(C203,'MHP Family Income & Rent Limits'!$E$12:$L$26,14,FALSE))","v":""},{"$f":"IF(C203=\"\",\"\",HLOOKUP(C203,'MHP Family Income & Rent Limits'!$E$12:$L$26,15,FALSE))","v":""}]
[{"$f":"IF('2. Assisted & Restricted Units'!A204=\"\",\"\",'2. Assisted & Restricted Units'!A204)","v":""},{"$f":"IF('2. Assisted & Restricted Units'!B204=\"\",\"\",'2. Assisted & Restricted Units'!B204)","v":""},{"$f":"IF('2. Assisted & Restricted Units'!D204=\"\",\"\",'2. Assisted & Restricted Units'!D204)","v":""},{"$f":"IF('2. Assisted & Restricted Units'!E204=\"\",\"\",'2. Assisted & Restricted Units'!E204)","v":""},{"$f":"IF('2. Assisted & Restricted Units'!H204=\"\",\"\",'2. Assisted & Restricted Units'!H204)","v":""},{"$f":"_xlfn.IFS(E204=\"\",\"\",E204>BO204,$BP$6,E204>BN204,$BO$6,E204>BM204,$BN$6,E204>BL204,$BM$6,E204>BK204,$BL$6,E204>BJ204,$BK$6,E204>BI204,$BJ$6,E204>BH204,$BI$6,E204>BG204,$BH$6,E204>BF204,$BG$6,E204>BE204,$BF$6,E204>BD204,$BE$6,E204>BC204,$BD$6,E204>=0,$BC$6)","v":""},{"$f":"IF('2. Assisted & Restricted Units'!T204=\"\",\"\",'2. Assisted & Restricted Units'!T204)","v":""},{"$f":"IF('2. Assisted & Restricted Units'!I204=\"\",\"\",'2. Assisted & Restricted Units'!I204)","v":""},{"$f":"IF('2. Assisted & Restricted Units'!AP204=\"\",\"\",'2. Assisted & Restricted Units'!AP204)","v":0},{"$f":"IF('2. Assisted & Restricted Units'!AT204=\"\",\"\",'2. Assisted & Restricted Units'!AT204)","v":""},0,{"$f":"IF('2. Assisted & Restricted Units'!AV204=\"\",\"\",'2. Assisted & Restricted Units'!AV204)","v":""},{"$f":"IF('2. Assisted & Restricted Units'!L204=\"\",\"\",'2. Assisted & Restricted Units'!L204)","v":""},{"$f":"IF('2. Assisted & Restricted Units'!M204=\"\",\"\",'2. Assisted & Restricted Units'!M204)","v":""},{"$f":"IF('2. Assisted & Restricted Units'!O204=\"\",\"\",'2. Assisted & Restricted Units'!O204)","v":""},{"$f":"IF('2. Assisted & Restricted Units'!P204=\"\",\"\",'2. Assisted & Restricted Units'!P204)","v":""},{"$f":"IF('2. Assisted & Restricted Units'!Q204=\"\",\"\",'2. Assisted & Restricted Units'!Q204)","v":""},{"$f":"IF('2. Assisted & Restricted Units'!R204=\"\",\"\",'2. Assisted & Restricted Units'!R204)","v":""},{"$f":"IF(A204=\"\",\"\",'1. Checklist & Certification'!$K$1)","v":""},{"$f":"IF(A204=\"\",\"\",'1. Checklist & Certification'!$C$62)","v":""},{"$f":"IF(A204=\"\",\"\",'1. Checklist & Certification'!$K$62)","v":""},{"$f":"IF(A204=\"\",\"\",'1. Checklist & Certification'!$C$6)","v":""},{"$f":"IF(A204=\"\",\"\",'1. Checklist & Certification'!$G$4)","v":""},{"$f":"IF(A204=\"\",\"\",'1. Checklist & Certification'!$C$7)","v":""},{"$f":"IF(A204=\"\",\"\",'1. Checklist & Certification'!$C$8)","v":""},{"$f":"IF(A204=\"\",\"\",'1. Checklist & Certification'!$F$7)","v":""},{"$f":"IF(A204=\"\",\"\",'1. Checklist & Certification'!$F$8)","v":""},{"$f":"IF(A204=\"\",\"\",'1. Checklist & Certification'!$B$9)","v":""},{"$f":"IF(A204=\"\",\"\",'1. Checklist & Certification'!$F$9)","v":""},{"$f":"IF(A204=\"\",\"\",'1. Checklist & Certification'!$C$10)","v":""},{"$f":"IF(A204=\"\",\"\",'1. Checklist & Certification'!$C$11)","v":""},{"$f":"IF(A204=\"\",\"\",'1. Checklist & Certification'!$C$12)","v":""},{"$f":"IF(A204=\"\",\"\",'1. Checklist & Certification'!$B$14)","v":""},{"$f":"IF(A204=\"\",\"\",'1. Checklist & Certification'!$E$14)","v":""},{"$f":"IF(B204=\"\",\"\",'1. Checklist & Certification'!$G$14)","v":""},{"$f":"IF(A204=\"\",\"\",'MHP Family Income & Rent Limits'!$B$3)","v":""},{"$f":"IF(A204=\"\",\"\",'MHP Family Income & Rent Limits'!$J$3)","v":""},{"$f":"IF(A204=\"\",\"\",'MHP Family Income & Rent Limits'!$E$4)","v":""},{"$f":"IF(A204=\"\",\"\",'MHP Family Income & Rent Limits'!$C$7)","v":""},{"$f":"IF(A204=\"\",\"\",'MHP Family Income & Rent Limits'!$F$8)","v":""},{"$f":"IF(A204=\"\",\"\",'1. Checklist & Certification'!$G$4)","v":""},{"$f":"IF(A204=\"\",\"\",'1. Checklist & Certification'!$K$39)","v":""},{"$f":"IF(A204=\"\",\"\",'1. Checklist & Certification'!$K$43)","v":""},{"$f":"IF(A204=\"\",\"\",'1. Checklist & Certification'!$K$45)","v":""},{"$f":"IF(A204=\"\",\"\",'1. Checklist & Certification'!$K$49)","v":""},{"$f":"IF(A204=\"\",\"\",'1. Checklist & Certification'!$E$66)","v":""},{"$f":"IF(A204=\"\",\"\",'1. Checklist & Certification'!$E$67)","v":""},{"$f":"IF(A204=\"\",\"\",'1. Checklist & Certification'!$E$68)","v":""},{"$f":"IF(A204=\"\",\"\",'1. Checklist & Certification'!$G$66)","v":""},{"$f":"IF(A204=\"\",\"\",'1. Checklist & Certification'!$H$66)","v":""},{"$f":"IF(A204=\"\",\"\",'1. Checklist & Certification'!$I$66)","v":""},{"$f":"IF(A204=\"\",\"\",'1. Checklist & Certification'!$I$67)","v":""},{"$f":"IF(A204=\"\",\"\",'1. Checklist & Certification'!$I$68)","v":""},null,{"$f":"IF(C204=\"\",\"\",HLOOKUP(C204,'MHP Family Income & Rent Limits'!$E$12:$L$26,2,FALSE))","v":""},{"$f":"IF(C204=\"\",\"\",HLOOKUP(C204,'MHP Family Income & Rent Limits'!$E$12:$L$26,3,FALSE))","v":""},{"$f":"IF(C204=\"\",\"\",HLOOKUP(C204,'MHP Family Income & Rent Limits'!$E$12:$L$26,4,FALSE))","v":""},{"$f":"IF(C204=\"\",\"\",HLOOKUP(C204,'MHP Family Income & Rent Limits'!$E$12:$L$26,5,FALSE))","v":""},{"$f":"IF(C204=\"\",\"\",HLOOKUP(C204,'MHP Family Income & Rent Limits'!$E$12:$L$26,6,FALSE))","v":""},{"$f":"IF(C204=\"\",\"\",HLOOKUP(C204,'MHP Family Income & Rent Limits'!$E$12:$L$26,7,FALSE))","v":""},{"$f":"IF(C204=\"\",\"\",HLOOKUP(C204,'MHP Family Income & Rent Limits'!$E$12:$L$26,8,FALSE))","v":""},{"$f":"IF(C204=\"\",\"\",HLOOKUP(C204,'MHP Family Income & Rent Limits'!$E$12:$L$26,9,FALSE))","v":""},{"$f":"IF(C204=\"\",\"\",HLOOKUP(C204,'MHP Family Income & Rent Limits'!$E$12:$L$26,10,FALSE))","v":""},{"$f":"IF(C204=\"\",\"\",HLOOKUP(C204,'MHP Family Income & Rent Limits'!$E$12:$L$26,11,FALSE))","v":""},{"$f":"IF(C204=\"\",\"\",HLOOKUP(C204,'MHP Family Income & Rent Limits'!$E$12:$L$26,12,FALSE))","v":""},{"$f":"IF(C204=\"\",\"\",HLOOKUP(C204,'MHP Family Income & Rent Limits'!$E$12:$L$26,13,FALSE))","v":""},{"$f":"IF(C204=\"\",\"\",HLOOKUP(C204,'MHP Family Income & Rent Limits'!$E$12:$L$26,14,FALSE))","v":""},{"$f":"IF(C204=\"\",\"\",HLOOKUP(C204,'MHP Family Income & Rent Limits'!$E$12:$L$26,15,FALSE))","v":""}]
[{"$f":"IF('2. Assisted & Restricted Units'!A205=\"\",\"\",'2. Assisted & Restricted Units'!A205)","v":""},{"$f":"IF('2. Assisted & Restricted Units'!B205=\"\",\"\",'2. Assisted & Restricted Units'!B205)","v":""},{"$f":"IF('2. Assisted & Restricted Units'!D205=\"\",\"\",'2. Assisted & Restricted Units'!D205)","v":""},{"$f":"IF('2. Assisted & Restricted Units'!E205=\"\",\"\",'2. Assisted & Restricted Units'!E205)","v":""},{"$f":"IF('2. Assisted & Restricted Units'!H205=\"\",\"\",'2. Assisted & Restricted Units'!H205)","v":""},{"$f":"_xlfn.IFS(E205=\"\",\"\",E205>BO205,$BP$6,E205>BN205,$BO$6,E205>BM205,$BN$6,E205>BL205,$BM$6,E205>BK205,$BL$6,E205>BJ205,$BK$6,E205>BI205,$BJ$6,E205>BH205,$BI$6,E205>BG205,$BH$6,E205>BF205,$BG$6,E205>BE205,$BF$6,E205>BD205,$BE$6,E205>BC205,$BD$6,E205>=0,$BC$6)","v":""},{"$f":"IF('2. Assisted & Restricted Units'!T205=\"\",\"\",'2. Assisted & Restricted Units'!T205)","v":""},{"$f":"IF('2. Assisted & Restricted Units'!I205=\"\",\"\",'2. Assisted & Restricted Units'!I205)","v":""},{"$f":"IF('2. Assisted & Restricted Units'!AP205=\"\",\"\",'2. Assisted & Restricted Units'!AP205)","v":0},{"$f":"IF('2. Assisted & Restricted Units'!AT205=\"\",\"\",'2. Assisted & Restricted Units'!AT205)","v":""},0,{"$f":"IF('2. Assisted & Restricted Units'!AV205=\"\",\"\",'2. Assisted & Restricted Units'!AV205)","v":""},{"$f":"IF('2. Assisted & Restricted Units'!L205=\"\",\"\",'2. Assisted & Restricted Units'!L205)","v":""},{"$f":"IF('2. Assisted & Restricted Units'!M205=\"\",\"\",'2. Assisted & Restricted Units'!M205)","v":""},{"$f":"IF('2. Assisted & Restricted Units'!O205=\"\",\"\",'2. Assisted & Restricted Units'!O205)","v":""},{"$f":"IF('2. Assisted & Restricted Units'!P205=\"\",\"\",'2. Assisted & Restricted Units'!P205)","v":""},{"$f":"IF('2. Assisted & Restricted Units'!Q205=\"\",\"\",'2. Assisted & Restricted Units'!Q205)","v":""},{"$f":"IF('2. Assisted & Restricted Units'!R205=\"\",\"\",'2. Assisted & Restricted Units'!R205)","v":""},{"$f":"IF(A205=\"\",\"\",'1. Checklist & Certification'!$K$1)","v":""},{"$f":"IF(A205=\"\",\"\",'1. Checklist & Certification'!$C$62)","v":""},{"$f":"IF(A205=\"\",\"\",'1. Checklist & Certification'!$K$62)","v":""},{"$f":"IF(A205=\"\",\"\",'1. Checklist & Certification'!$C$6)","v":""},{"$f":"IF(A205=\"\",\"\",'1. Checklist & Certification'!$G$4)","v":""},{"$f":"IF(A205=\"\",\"\",'1. Checklist & Certification'!$C$7)","v":""},{"$f":"IF(A205=\"\",\"\",'1. Checklist & Certification'!$C$8)","v":""},{"$f":"IF(A205=\"\",\"\",'1. Checklist & Certification'!$F$7)","v":""},{"$f":"IF(A205=\"\",\"\",'1. Checklist & Certification'!$F$8)","v":""},{"$f":"IF(A205=\"\",\"\",'1. Checklist & Certification'!$B$9)","v":""},{"$f":"IF(A205=\"\",\"\",'1. Checklist & Certification'!$F$9)","v":""},{"$f":"IF(A205=\"\",\"\",'1. Checklist & Certification'!$C$10)","v":""},{"$f":"IF(A205=\"\",\"\",'1. Checklist & Certification'!$C$11)","v":""},{"$f":"IF(A205=\"\",\"\",'1. Checklist & Certification'!$C$12)","v":""},{"$f":"IF(A205=\"\",\"\",'1. Checklist & Certification'!$B$14)","v":""},{"$f":"IF(A205=\"\",\"\",'1. Checklist & Certification'!$E$14)","v":""},{"$f":"IF(B205=\"\",\"\",'1. Checklist & Certification'!$G$14)","v":""},{"$f":"IF(A205=\"\",\"\",'MHP Family Income & Rent Limits'!$B$3)","v":""},{"$f":"IF(A205=\"\",\"\",'MHP Family Income & Rent Limits'!$J$3)","v":""},{"$f":"IF(A205=\"\",\"\",'MHP Family Income & Rent Limits'!$E$4)","v":""},{"$f":"IF(A205=\"\",\"\",'MHP Family Income & Rent Limits'!$C$7)","v":""},{"$f":"IF(A205=\"\",\"\",'MHP Family Income & Rent Limits'!$F$8)","v":""},{"$f":"IF(A205=\"\",\"\",'1. Checklist & Certification'!$G$4)","v":""},{"$f":"IF(A205=\"\",\"\",'1. Checklist & Certification'!$K$39)","v":""},{"$f":"IF(A205=\"\",\"\",'1. Checklist & Certification'!$K$43)","v":""},{"$f":"IF(A205=\"\",\"\",'1. Checklist & Certification'!$K$45)","v":""},{"$f":"IF(A205=\"\",\"\",'1. Checklist & Certification'!$K$49)","v":""},{"$f":"IF(A205=\"\",\"\",'1. Checklist & Certification'!$E$66)","v":""},{"$f":"IF(A205=\"\",\"\",'1. Checklist & Certification'!$E$67)","v":""},{"$f":"IF(A205=\"\",\"\",'1. Checklist & Certification'!$E$68)","v":""},{"$f":"IF(A205=\"\",\"\",'1. Checklist & Certification'!$G$66)","v":""},{"$f":"IF(A205=\"\",\"\",'1. Checklist & Certification'!$H$66)","v":""},{"$f":"IF(A205=\"\",\"\",'1. Checklist & Certification'!$I$66)","v":""},{"$f":"IF(A205=\"\",\"\",'1. Checklist & Certification'!$I$67)","v":""},{"$f":"IF(A205=\"\",\"\",'1. Checklist & Certification'!$I$68)","v":""},null,{"$f":"IF(C205=\"\",\"\",HLOOKUP(C205,'MHP Family Income & Rent Limits'!$E$12:$L$26,2,FALSE))","v":""},{"$f":"IF(C205=\"\",\"\",HLOOKUP(C205,'MHP Family Income & Rent Limits'!$E$12:$L$26,3,FALSE))","v":""},{"$f":"IF(C205=\"\",\"\",HLOOKUP(C205,'MHP Family Income & Rent Limits'!$E$12:$L$26,4,FALSE))","v":""},{"$f":"IF(C205=\"\",\"\",HLOOKUP(C205,'MHP Family Income & Rent Limits'!$E$12:$L$26,5,FALSE))","v":""},{"$f":"IF(C205=\"\",\"\",HLOOKUP(C205,'MHP Family Income & Rent Limits'!$E$12:$L$26,6,FALSE))","v":""},{"$f":"IF(C205=\"\",\"\",HLOOKUP(C205,'MHP Family Income & Rent Limits'!$E$12:$L$26,7,FALSE))","v":""},{"$f":"IF(C205=\"\",\"\",HLOOKUP(C205,'MHP Family Income & Rent Limits'!$E$12:$L$26,8,FALSE))","v":""},{"$f":"IF(C205=\"\",\"\",HLOOKUP(C205,'MHP Family Income & Rent Limits'!$E$12:$L$26,9,FALSE))","v":""},{"$f":"IF(C205=\"\",\"\",HLOOKUP(C205,'MHP Family Income & Rent Limits'!$E$12:$L$26,10,FALSE))","v":""},{"$f":"IF(C205=\"\",\"\",HLOOKUP(C205,'MHP Family Income & Rent Limits'!$E$12:$L$26,11,FALSE))","v":""},{"$f":"IF(C205=\"\",\"\",HLOOKUP(C205,'MHP Family Income & Rent Limits'!$E$12:$L$26,12,FALSE))","v":""},{"$f":"IF(C205=\"\",\"\",HLOOKUP(C205,'MHP Family Income & Rent Limits'!$E$12:$L$26,13,FALSE))","v":""},{"$f":"IF(C205=\"\",\"\",HLOOKUP(C205,'MHP Family Income & Rent Limits'!$E$12:$L$26,14,FALSE))","v":""},{"$f":"IF(C205=\"\",\"\",HLOOKUP(C205,'MHP Family Income & Rent Limits'!$E$12:$L$26,15,FALSE))","v":""}]
[{"$f":"IF('2. Assisted & Restricted Units'!A206=\"\",\"\",'2. Assisted & Restricted Units'!A206)","v":""},{"$f":"IF('2. Assisted & Restricted Units'!B206=\"\",\"\",'2. Assisted & Restricted Units'!B206)","v":""},{"$f":"IF('2. Assisted & Restricted Units'!D206=\"\",\"\",'2. Assisted & Restricted Units'!D206)","v":""},{"$f":"IF('2. Assisted & Restricted Units'!E206=\"\",\"\",'2. Assisted & Restricted Units'!E206)","v":""},{"$f":"IF('2. Assisted & Restricted Units'!H206=\"\",\"\",'2. Assisted & Restricted Units'!H206)","v":""},{"$f":"_xlfn.IFS(E206=\"\",\"\",E206>BO206,$BP$6,E206>BN206,$BO$6,E206>BM206,$BN$6,E206>BL206,$BM$6,E206>BK206,$BL$6,E206>BJ206,$BK$6,E206>BI206,$BJ$6,E206>BH206,$BI$6,E206>BG206,$BH$6,E206>BF206,$BG$6,E206>BE206,$BF$6,E206>BD206,$BE$6,E206>BC206,$BD$6,E206>=0,$BC$6)","v":""},{"$f":"IF('2. Assisted & Restricted Units'!T206=\"\",\"\",'2. Assisted & Restricted Units'!T206)","v":""},{"$f":"IF('2. Assisted & Restricted Units'!I206=\"\",\"\",'2. Assisted & Restricted Units'!I206)","v":""},{"$f":"IF('2. Assisted & Restricted Units'!AP206=\"\",\"\",'2. Assisted & Restricted Units'!AP206)","v":0},{"$f":"IF('2. Assisted & Restricted Units'!AT206=\"\",\"\",'2. Assisted & Restricted Units'!AT206)","v":""},0,{"$f":"IF('2. Assisted & Restricted Units'!AV206=\"\",\"\",'2. Assisted & Restricted Units'!AV206)","v":""},{"$f":"IF('2. Assisted & Restricted Units'!L206=\"\",\"\",'2. Assisted & Restricted Units'!L206)","v":""},{"$f":"IF('2. Assisted & Restricted Units'!M206=\"\",\"\",'2. Assisted & Restricted Units'!M206)","v":""},{"$f":"IF('2. Assisted & Restricted Units'!O206=\"\",\"\",'2. Assisted & Restricted Units'!O206)","v":""},{"$f":"IF('2. Assisted & Restricted Units'!P206=\"\",\"\",'2. Assisted & Restricted Units'!P206)","v":""},{"$f":"IF('2. Assisted & Restricted Units'!Q206=\"\",\"\",'2. Assisted & Restricted Units'!Q206)","v":""},{"$f":"IF('2. Assisted & Restricted Units'!R206=\"\",\"\",'2. Assisted & Restricted Units'!R206)","v":""},{"$f":"IF(A206=\"\",\"\",'1. Checklist & Certification'!$K$1)","v":""},{"$f":"IF(A206=\"\",\"\",'1. Checklist & Certification'!$C$62)","v":""},{"$f":"IF(A206=\"\",\"\",'1. Checklist & Certification'!$K$62)","v":""},{"$f":"IF(A206=\"\",\"\",'1. Checklist & Certification'!$C$6)","v":""},{"$f":"IF(A206=\"\",\"\",'1. Checklist & Certification'!$G$4)","v":""},{"$f":"IF(A206=\"\",\"\",'1. Checklist & Certification'!$C$7)","v":""},{"$f":"IF(A206=\"\",\"\",'1. Checklist & Certification'!$C$8)","v":""},{"$f":"IF(A206=\"\",\"\",'1. Checklist & Certification'!$F$7)","v":""},{"$f":"IF(A206=\"\",\"\",'1. Checklist & Certification'!$F$8)","v":""},{"$f":"IF(A206=\"\",\"\",'1. Checklist & Certification'!$B$9)","v":""},{"$f":"IF(A206=\"\",\"\",'1. Checklist & Certification'!$F$9)","v":""},{"$f":"IF(A206=\"\",\"\",'1. Checklist & Certification'!$C$10)","v":""},{"$f":"IF(A206=\"\",\"\",'1. Checklist & Certification'!$C$11)","v":""},{"$f":"IF(A206=\"\",\"\",'1. Checklist & Certification'!$C$12)","v":""},{"$f":"IF(A206=\"\",\"\",'1. Checklist & Certification'!$B$14)","v":""},{"$f":"IF(A206=\"\",\"\",'1. Checklist & Certification'!$E$14)","v":""},{"$f":"IF(B206=\"\",\"\",'1. Checklist & Certification'!$G$14)","v":""},{"$f":"IF(A206=\"\",\"\",'MHP Family Income & Rent Limits'!$B$3)","v":""},{"$f":"IF(A206=\"\",\"\",'MHP Family Income & Rent Limits'!$J$3)","v":""},{"$f":"IF(A206=\"\",\"\",'MHP Family Income & Rent Limits'!$E$4)","v":""},{"$f":"IF(A206=\"\",\"\",'MHP Family Income & Rent Limits'!$C$7)","v":""},{"$f":"IF(A206=\"\",\"\",'MHP Family Income & Rent Limits'!$F$8)","v":""},{"$f":"IF(A206=\"\",\"\",'1. Checklist & Certification'!$G$4)","v":""},{"$f":"IF(A206=\"\",\"\",'1. Checklist & Certification'!$K$39)","v":""},{"$f":"IF(A206=\"\",\"\",'1. Checklist & Certification'!$K$43)","v":""},{"$f":"IF(A206=\"\",\"\",'1. Checklist & Certification'!$K$45)","v":""},{"$f":"IF(A206=\"\",\"\",'1. Checklist & Certification'!$K$49)","v":""},{"$f":"IF(A206=\"\",\"\",'1. Checklist & Certification'!$E$66)","v":""},{"$f":"IF(A206=\"\",\"\",'1. Checklist & Certification'!$E$67)","v":""},{"$f":"IF(A206=\"\",\"\",'1. Checklist & Certification'!$E$68)","v":""},{"$f":"IF(A206=\"\",\"\",'1. Checklist & Certification'!$G$66)","v":""},{"$f":"IF(A206=\"\",\"\",'1. Checklist & Certification'!$H$66)","v":""},{"$f":"IF(A206=\"\",\"\",'1. Checklist & Certification'!$I$66)","v":""},{"$f":"IF(A206=\"\",\"\",'1. Checklist & Certification'!$I$67)","v":""},{"$f":"IF(A206=\"\",\"\",'1. Checklist & Certification'!$I$68)","v":""},null,{"$f":"IF(C206=\"\",\"\",HLOOKUP(C206,'MHP Family Income & Rent Limits'!$E$12:$L$26,2,FALSE))","v":""},{"$f":"IF(C206=\"\",\"\",HLOOKUP(C206,'MHP Family Income & Rent Limits'!$E$12:$L$26,3,FALSE))","v":""},{"$f":"IF(C206=\"\",\"\",HLOOKUP(C206,'MHP Family Income & Rent Limits'!$E$12:$L$26,4,FALSE))","v":""},{"$f":"IF(C206=\"\",\"\",HLOOKUP(C206,'MHP Family Income & Rent Limits'!$E$12:$L$26,5,FALSE))","v":""},{"$f":"IF(C206=\"\",\"\",HLOOKUP(C206,'MHP Family Income & Rent Limits'!$E$12:$L$26,6,FALSE))","v":""},{"$f":"IF(C206=\"\",\"\",HLOOKUP(C206,'MHP Family Income & Rent Limits'!$E$12:$L$26,7,FALSE))","v":""},{"$f":"IF(C206=\"\",\"\",HLOOKUP(C206,'MHP Family Income & Rent Limits'!$E$12:$L$26,8,FALSE))","v":""},{"$f":"IF(C206=\"\",\"\",HLOOKUP(C206,'MHP Family Income & Rent Limits'!$E$12:$L$26,9,FALSE))","v":""},{"$f":"IF(C206=\"\",\"\",HLOOKUP(C206,'MHP Family Income & Rent Limits'!$E$12:$L$26,10,FALSE))","v":""},{"$f":"IF(C206=\"\",\"\",HLOOKUP(C206,'MHP Family Income & Rent Limits'!$E$12:$L$26,11,FALSE))","v":""},{"$f":"IF(C206=\"\",\"\",HLOOKUP(C206,'MHP Family Income & Rent Limits'!$E$12:$L$26,12,FALSE))","v":""},{"$f":"IF(C206=\"\",\"\",HLOOKUP(C206,'MHP Family Income & Rent Limits'!$E$12:$L$26,13,FALSE))","v":""},{"$f":"IF(C206=\"\",\"\",HLOOKUP(C206,'MHP Family Income & Rent Limits'!$E$12:$L$26,14,FALSE))","v":""},{"$f":"IF(C206=\"\",\"\",HLOOKUP(C206,'MHP Family Income & Rent Limits'!$E$12:$L$26,15,FALSE))","v":""}]
[{"$f":"IF('2. Assisted & Restricted Units'!A207=\"\",\"\",'2. Assisted & Restricted Units'!A207)","v":""},{"$f":"IF('2. Assisted & Restricted Units'!B207=\"\",\"\",'2. Assisted & Restricted Units'!B207)","v":""},{"$f":"IF('2. Assisted & Restricted Units'!D207=\"\",\"\",'2. Assisted & Restricted Units'!D207)","v":""},{"$f":"IF('2. Assisted & Restricted Units'!E207=\"\",\"\",'2. Assisted & Restricted Units'!E207)","v":""},{"$f":"IF('2. Assisted & Restricted Units'!H207=\"\",\"\",'2. Assisted & Restricted Units'!H207)","v":""},{"$f":"_xlfn.IFS(E207=\"\",\"\",E207>BO207,$BP$6,E207>BN207,$BO$6,E207>BM207,$BN$6,E207>BL207,$BM$6,E207>BK207,$BL$6,E207>BJ207,$BK$6,E207>BI207,$BJ$6,E207>BH207,$BI$6,E207>BG207,$BH$6,E207>BF207,$BG$6,E207>BE207,$BF$6,E207>BD207,$BE$6,E207>BC207,$BD$6,E207>=0,$BC$6)","v":""},{"$f":"IF('2. Assisted & Restricted Units'!T207=\"\",\"\",'2. Assisted & Restricted Units'!T207)","v":""},{"$f":"IF('2. Assisted & Restricted Units'!I207=\"\",\"\",'2. Assisted & Restricted Units'!I207)","v":""},{"$f":"IF('2. Assisted & Restricted Units'!AP207=\"\",\"\",'2. Assisted & Restricted Units'!AP207)","v":0},{"$f":"IF('2. Assisted & Restricted Units'!AT207=\"\",\"\",'2. Assisted & Restricted Units'!AT207)","v":""},0,{"$f":"IF('2. Assisted & Restricted Units'!AV207=\"\",\"\",'2. Assisted & Restricted Units'!AV207)","v":""},{"$f":"IF('2. Assisted & Restricted Units'!L207=\"\",\"\",'2. Assisted & Restricted Units'!L207)","v":""},{"$f":"IF('2. Assisted & Restricted Units'!M207=\"\",\"\",'2. Assisted & Restricted Units'!M207)","v":""},{"$f":"IF('2. Assisted & Restricted Units'!O207=\"\",\"\",'2. Assisted & Restricted Units'!O207)","v":""},{"$f":"IF('2. Assisted & Restricted Units'!P207=\"\",\"\",'2. Assisted & Restricted Units'!P207)","v":""},{"$f":"IF('2. Assisted & Restricted Units'!Q207=\"\",\"\",'2. Assisted & Restricted Units'!Q207)","v":""},{"$f":"IF('2. Assisted & Restricted Units'!R207=\"\",\"\",'2. Assisted & Restricted Units'!R207)","v":""},{"$f":"IF(A207=\"\",\"\",'1. Checklist & Certification'!$K$1)","v":""},{"$f":"IF(A207=\"\",\"\",'1. Checklist & Certification'!$C$62)","v":""},{"$f":"IF(A207=\"\",\"\",'1. Checklist & Certification'!$K$62)","v":""},{"$f":"IF(A207=\"\",\"\",'1. Checklist & Certification'!$C$6)","v":""},{"$f":"IF(A207=\"\",\"\",'1. Checklist & Certification'!$G$4)","v":""},{"$f":"IF(A207=\"\",\"\",'1. Checklist & Certification'!$C$7)","v":""},{"$f":"IF(A207=\"\",\"\",'1. Checklist & Certification'!$C$8)","v":""},{"$f":"IF(A207=\"\",\"\",'1. Checklist & Certification'!$F$7)","v":""},{"$f":"IF(A207=\"\",\"\",'1. Checklist & Certification'!$F$8)","v":""},{"$f":"IF(A207=\"\",\"\",'1. Checklist & Certification'!$B$9)","v":""},{"$f":"IF(A207=\"\",\"\",'1. Checklist & Certification'!$F$9)","v":""},{"$f":"IF(A207=\"\",\"\",'1. Checklist & Certification'!$C$10)","v":""},{"$f":"IF(A207=\"\",\"\",'1. Checklist & Certification'!$C$11)","v":""},{"$f":"IF(A207=\"\",\"\",'1. Checklist & Certification'!$C$12)","v":""},{"$f":"IF(A207=\"\",\"\",'1. Checklist & Certification'!$B$14)","v":""},{"$f":"IF(A207=\"\",\"\",'1. Checklist & Certification'!$E$14)","v":""},{"$f":"IF(B207=\"\",\"\",'1. Checklist & Certification'!$G$14)","v":""},{"$f":"IF(A207=\"\",\"\",'MHP Family Income & Rent Limits'!$B$3)","v":""},{"$f":"IF(A207=\"\",\"\",'MHP Family Income & Rent Limits'!$J$3)","v":""},{"$f":"IF(A207=\"\",\"\",'MHP Family Income & Rent Limits'!$E$4)","v":""},{"$f":"IF(A207=\"\",\"\",'MHP Family Income & Rent Limits'!$C$7)","v":""},{"$f":"IF(A207=\"\",\"\",'MHP Family Income & Rent Limits'!$F$8)","v":""},{"$f":"IF(A207=\"\",\"\",'1. Checklist & Certification'!$G$4)","v":""},{"$f":"IF(A207=\"\",\"\",'1. Checklist & Certification'!$K$39)","v":""},{"$f":"IF(A207=\"\",\"\",'1. Checklist & Certification'!$K$43)","v":""},{"$f":"IF(A207=\"\",\"\",'1. Checklist & Certification'!$K$45)","v":""},{"$f":"IF(A207=\"\",\"\",'1. Checklist & Certification'!$K$49)","v":""},{"$f":"IF(A207=\"\",\"\",'1. Checklist & Certification'!$E$66)","v":""},{"$f":"IF(A207=\"\",\"\",'1. Checklist & Certification'!$E$67)","v":""},{"$f":"IF(A207=\"\",\"\",'1. Checklist & Certification'!$E$68)","v":""},{"$f":"IF(A207=\"\",\"\",'1. Checklist & Certification'!$G$66)","v":""},{"$f":"IF(A207=\"\",\"\",'1. Checklist & Certification'!$H$66)","v":""},{"$f":"IF(A207=\"\",\"\",'1. Checklist & Certification'!$I$66)","v":""},{"$f":"IF(A207=\"\",\"\",'1. Checklist & Certification'!$I$67)","v":""},{"$f":"IF(A207=\"\",\"\",'1. Checklist & Certification'!$I$68)","v":""},null,{"$f":"IF(C207=\"\",\"\",HLOOKUP(C207,'MHP Family Income & Rent Limits'!$E$12:$L$26,2,FALSE))","v":""},{"$f":"IF(C207=\"\",\"\",HLOOKUP(C207,'MHP Family Income & Rent Limits'!$E$12:$L$26,3,FALSE))","v":""},{"$f":"IF(C207=\"\",\"\",HLOOKUP(C207,'MHP Family Income & Rent Limits'!$E$12:$L$26,4,FALSE))","v":""},{"$f":"IF(C207=\"\",\"\",HLOOKUP(C207,'MHP Family Income & Rent Limits'!$E$12:$L$26,5,FALSE))","v":""},{"$f":"IF(C207=\"\",\"\",HLOOKUP(C207,'MHP Family Income & Rent Limits'!$E$12:$L$26,6,FALSE))","v":""},{"$f":"IF(C207=\"\",\"\",HLOOKUP(C207,'MHP Family Income & Rent Limits'!$E$12:$L$26,7,FALSE))","v":""},{"$f":"IF(C207=\"\",\"\",HLOOKUP(C207,'MHP Family Income & Rent Limits'!$E$12:$L$26,8,FALSE))","v":""},{"$f":"IF(C207=\"\",\"\",HLOOKUP(C207,'MHP Family Income & Rent Limits'!$E$12:$L$26,9,FALSE))","v":""},{"$f":"IF(C207=\"\",\"\",HLOOKUP(C207,'MHP Family Income & Rent Limits'!$E$12:$L$26,10,FALSE))","v":""},{"$f":"IF(C207=\"\",\"\",HLOOKUP(C207,'MHP Family Income & Rent Limits'!$E$12:$L$26,11,FALSE))","v":""},{"$f":"IF(C207=\"\",\"\",HLOOKUP(C207,'MHP Family Income & Rent Limits'!$E$12:$L$26,12,FALSE))","v":""},{"$f":"IF(C207=\"\",\"\",HLOOKUP(C207,'MHP Family Income & Rent Limits'!$E$12:$L$26,13,FALSE))","v":""},{"$f":"IF(C207=\"\",\"\",HLOOKUP(C207,'MHP Family Income & Rent Limits'!$E$12:$L$26,14,FALSE))","v":""},{"$f":"IF(C207=\"\",\"\",HLOOKUP(C207,'MHP Family Income & Rent Limits'!$E$12:$L$26,15,FALSE))","v":""}]
[{"$f":"IF('2. Assisted & Restricted Units'!A208=\"\",\"\",'2. Assisted & Restricted Units'!A208)","v":""},{"$f":"IF('2. Assisted & Restricted Units'!B208=\"\",\"\",'2. Assisted & Restricted Units'!B208)","v":""},{"$f":"IF('2. Assisted & Restricted Units'!D208=\"\",\"\",'2. Assisted & Restricted Units'!D208)","v":""},{"$f":"IF('2. Assisted & Restricted Units'!E208=\"\",\"\",'2. Assisted & Restricted Units'!E208)","v":""},{"$f":"IF('2. Assisted & Restricted Units'!H208=\"\",\"\",'2. Assisted & Restricted Units'!H208)","v":""},{"$f":"_xlfn.IFS(E208=\"\",\"\",E208>BO208,$BP$6,E208>BN208,$BO$6,E208>BM208,$BN$6,E208>BL208,$BM$6,E208>BK208,$BL$6,E208>BJ208,$BK$6,E208>BI208,$BJ$6,E208>BH208,$BI$6,E208>BG208,$BH$6,E208>BF208,$BG$6,E208>BE208,$BF$6,E208>BD208,$BE$6,E208>BC208,$BD$6,E208>=0,$BC$6)","v":""},{"$f":"IF('2. Assisted & Restricted Units'!T208=\"\",\"\",'2. Assisted & Restricted Units'!T208)","v":""},{"$f":"IF('2. Assisted & Restricted Units'!I208=\"\",\"\",'2. Assisted & Restricted Units'!I208)","v":""},{"$f":"IF('2. Assisted & Restricted Units'!AP208=\"\",\"\",'2. Assisted & Restricted Units'!AP208)","v":0},{"$f":"IF('2. Assisted & Restricted Units'!AT208=\"\",\"\",'2. Assisted & Restricted Units'!AT208)","v":""},0,{"$f":"IF('2. Assisted & Restricted Units'!AV208=\"\",\"\",'2. Assisted & Restricted Units'!AV208)","v":""},{"$f":"IF('2. Assisted & Restricted Units'!L208=\"\",\"\",'2. Assisted & Restricted Units'!L208)","v":""},{"$f":"IF('2. Assisted & Restricted Units'!M208=\"\",\"\",'2. Assisted & Restricted Units'!M208)","v":""},{"$f":"IF('2. Assisted & Restricted Units'!O208=\"\",\"\",'2. Assisted & Restricted Units'!O208)","v":""},{"$f":"IF('2. Assisted & Restricted Units'!P208=\"\",\"\",'2. Assisted & Restricted Units'!P208)","v":""},{"$f":"IF('2. Assisted & Restricted Units'!Q208=\"\",\"\",'2. Assisted & Restricted Units'!Q208)","v":""},{"$f":"IF('2. Assisted & Restricted Units'!R208=\"\",\"\",'2. Assisted & Restricted Units'!R208)","v":""},{"$f":"IF(A208=\"\",\"\",'1. Checklist & Certification'!$K$1)","v":""},{"$f":"IF(A208=\"\",\"\",'1. Checklist & Certification'!$C$62)","v":""},{"$f":"IF(A208=\"\",\"\",'1. Checklist & Certification'!$K$62)","v":""},{"$f":"IF(A208=\"\",\"\",'1. Checklist & Certification'!$C$6)","v":""},{"$f":"IF(A208=\"\",\"\",'1. Checklist & Certification'!$G$4)","v":""},{"$f":"IF(A208=\"\",\"\",'1. Checklist & Certification'!$C$7)","v":""},{"$f":"IF(A208=\"\",\"\",'1. Checklist & Certification'!$C$8)","v":""},{"$f":"IF(A208=\"\",\"\",'1. Checklist & Certification'!$F$7)","v":""},{"$f":"IF(A208=\"\",\"\",'1. Checklist & Certification'!$F$8)","v":""},{"$f":"IF(A208=\"\",\"\",'1. Checklist & Certification'!$B$9)","v":""},{"$f":"IF(A208=\"\",\"\",'1. Checklist & Certification'!$F$9)","v":""},{"$f":"IF(A208=\"\",\"\",'1. Checklist & Certification'!$C$10)","v":""},{"$f":"IF(A208=\"\",\"\",'1. Checklist & Certification'!$C$11)","v":""},{"$f":"IF(A208=\"\",\"\",'1. Checklist & Certification'!$C$12)","v":""},{"$f":"IF(A208=\"\",\"\",'1. Checklist & Certification'!$B$14)","v":""},{"$f":"IF(A208=\"\",\"\",'1. Checklist & Certification'!$E$14)","v":""},{"$f":"IF(B208=\"\",\"\",'1. Checklist & Certification'!$G$14)","v":""},{"$f":"IF(A208=\"\",\"\",'MHP Family Income & Rent Limits'!$B$3)","v":""},{"$f":"IF(A208=\"\",\"\",'MHP Family Income & Rent Limits'!$J$3)","v":""},{"$f":"IF(A208=\"\",\"\",'MHP Family Income & Rent Limits'!$E$4)","v":""},{"$f":"IF(A208=\"\",\"\",'MHP Family Income & Rent Limits'!$C$7)","v":""},{"$f":"IF(A208=\"\",\"\",'MHP Family Income & Rent Limits'!$F$8)","v":""},{"$f":"IF(A208=\"\",\"\",'1. Checklist & Certification'!$G$4)","v":""},{"$f":"IF(A208=\"\",\"\",'1. Checklist & Certification'!$K$39)","v":""},{"$f":"IF(A208=\"\",\"\",'1. Checklist & Certification'!$K$43)","v":""},{"$f":"IF(A208=\"\",\"\",'1. Checklist & Certification'!$K$45)","v":""},{"$f":"IF(A208=\"\",\"\",'1. Checklist & Certification'!$K$49)","v":""},{"$f":"IF(A208=\"\",\"\",'1. Checklist & Certification'!$E$66)","v":""},{"$f":"IF(A208=\"\",\"\",'1. Checklist & Certification'!$E$67)","v":""},{"$f":"IF(A208=\"\",\"\",'1. Checklist & Certification'!$E$68)","v":""},{"$f":"IF(A208=\"\",\"\",'1. Checklist & Certification'!$G$66)","v":""},{"$f":"IF(A208=\"\",\"\",'1. Checklist & Certification'!$H$66)","v":""},{"$f":"IF(A208=\"\",\"\",'1. Checklist & Certification'!$I$66)","v":""},{"$f":"IF(A208=\"\",\"\",'1. Checklist & Certification'!$I$67)","v":""},{"$f":"IF(A208=\"\",\"\",'1. Checklist & Certification'!$I$68)","v":""},null,{"$f":"IF(C208=\"\",\"\",HLOOKUP(C208,'MHP Family Income & Rent Limits'!$E$12:$L$26,2,FALSE))","v":""},{"$f":"IF(C208=\"\",\"\",HLOOKUP(C208,'MHP Family Income & Rent Limits'!$E$12:$L$26,3,FALSE))","v":""},{"$f":"IF(C208=\"\",\"\",HLOOKUP(C208,'MHP Family Income & Rent Limits'!$E$12:$L$26,4,FALSE))","v":""},{"$f":"IF(C208=\"\",\"\",HLOOKUP(C208,'MHP Family Income & Rent Limits'!$E$12:$L$26,5,FALSE))","v":""},{"$f":"IF(C208=\"\",\"\",HLOOKUP(C208,'MHP Family Income & Rent Limits'!$E$12:$L$26,6,FALSE))","v":""},{"$f":"IF(C208=\"\",\"\",HLOOKUP(C208,'MHP Family Income & Rent Limits'!$E$12:$L$26,7,FALSE))","v":""},{"$f":"IF(C208=\"\",\"\",HLOOKUP(C208,'MHP Family Income & Rent Limits'!$E$12:$L$26,8,FALSE))","v":""},{"$f":"IF(C208=\"\",\"\",HLOOKUP(C208,'MHP Family Income & Rent Limits'!$E$12:$L$26,9,FALSE))","v":""},{"$f":"IF(C208=\"\",\"\",HLOOKUP(C208,'MHP Family Income & Rent Limits'!$E$12:$L$26,10,FALSE))","v":""},{"$f":"IF(C208=\"\",\"\",HLOOKUP(C208,'MHP Family Income & Rent Limits'!$E$12:$L$26,11,FALSE))","v":""},{"$f":"IF(C208=\"\",\"\",HLOOKUP(C208,'MHP Family Income & Rent Limits'!$E$12:$L$26,12,FALSE))","v":""},{"$f":"IF(C208=\"\",\"\",HLOOKUP(C208,'MHP Family Income & Rent Limits'!$E$12:$L$26,13,FALSE))","v":""},{"$f":"IF(C208=\"\",\"\",HLOOKUP(C208,'MHP Family Income & Rent Limits'!$E$12:$L$26,14,FALSE))","v":""},{"$f":"IF(C208=\"\",\"\",HLOOKUP(C208,'MHP Family Income & Rent Limits'!$E$12:$L$26,15,FALSE))","v":""}]
[{"$f":"IF('2. Assisted & Restricted Units'!A209=\"\",\"\",'2. Assisted & Restricted Units'!A209)","v":""},{"$f":"IF('2. Assisted & Restricted Units'!B209=\"\",\"\",'2. Assisted & Restricted Units'!B209)","v":""},{"$f":"IF('2. Assisted & Restricted Units'!D209=\"\",\"\",'2. Assisted & Restricted Units'!D209)","v":""},{"$f":"IF('2. Assisted & Restricted Units'!E209=\"\",\"\",'2. Assisted & Restricted Units'!E209)","v":""},{"$f":"IF('2. Assisted & Restricted Units'!H209=\"\",\"\",'2. Assisted & Restricted Units'!H209)","v":""},{"$f":"_xlfn.IFS(E209=\"\",\"\",E209>BO209,$BP$6,E209>BN209,$BO$6,E209>BM209,$BN$6,E209>BL209,$BM$6,E209>BK209,$BL$6,E209>BJ209,$BK$6,E209>BI209,$BJ$6,E209>BH209,$BI$6,E209>BG209,$BH$6,E209>BF209,$BG$6,E209>BE209,$BF$6,E209>BD209,$BE$6,E209>BC209,$BD$6,E209>=0,$BC$6)","v":""},{"$f":"IF('2. Assisted & Restricted Units'!T209=\"\",\"\",'2. Assisted & Restricted Units'!T209)","v":""},{"$f":"IF('2. Assisted & Restricted Units'!I209=\"\",\"\",'2. Assisted & Restricted Units'!I209)","v":""},{"$f":"IF('2. Assisted & Restricted Units'!AP209=\"\",\"\",'2. Assisted & Restricted Units'!AP209)","v":0},{"$f":"IF('2. Assisted & Restricted Units'!AT209=\"\",\"\",'2. Assisted & Restricted Units'!AT209)","v":""},0,{"$f":"IF('2. Assisted & Restricted Units'!AV209=\"\",\"\",'2. Assisted & Restricted Units'!AV209)","v":""},{"$f":"IF('2. Assisted & Restricted Units'!L209=\"\",\"\",'2. Assisted & Restricted Units'!L209)","v":""},{"$f":"IF('2. Assisted & Restricted Units'!M209=\"\",\"\",'2. Assisted & Restricted Units'!M209)","v":""},{"$f":"IF('2. Assisted & Restricted Units'!O209=\"\",\"\",'2. Assisted & Restricted Units'!O209)","v":""},{"$f":"IF('2. Assisted & Restricted Units'!P209=\"\",\"\",'2. Assisted & Restricted Units'!P209)","v":""},{"$f":"IF('2. Assisted & Restricted Units'!Q209=\"\",\"\",'2. Assisted & Restricted Units'!Q209)","v":""},{"$f":"IF('2. Assisted & Restricted Units'!R209=\"\",\"\",'2. Assisted & Restricted Units'!R209)","v":""},{"$f":"IF(A209=\"\",\"\",'1. Checklist & Certification'!$K$1)","v":""},{"$f":"IF(A209=\"\",\"\",'1. Checklist & Certification'!$C$62)","v":""},{"$f":"IF(A209=\"\",\"\",'1. Checklist & Certification'!$K$62)","v":""},{"$f":"IF(A209=\"\",\"\",'1. Checklist & Certification'!$C$6)","v":""},{"$f":"IF(A209=\"\",\"\",'1. Checklist & Certification'!$G$4)","v":""},{"$f":"IF(A209=\"\",\"\",'1. Checklist & Certification'!$C$7)","v":""},{"$f":"IF(A209=\"\",\"\",'1. Checklist & Certification'!$C$8)","v":""},{"$f":"IF(A209=\"\",\"\",'1. Checklist & Certification'!$F$7)","v":""},{"$f":"IF(A209=\"\",\"\",'1. Checklist & Certification'!$F$8)","v":""},{"$f":"IF(A209=\"\",\"\",'1. Checklist & Certification'!$B$9)","v":""},{"$f":"IF(A209=\"\",\"\",'1. Checklist & Certification'!$F$9)","v":""},{"$f":"IF(A209=\"\",\"\",'1. Checklist & Certification'!$C$10)","v":""},{"$f":"IF(A209=\"\",\"\",'1. Checklist & Certification'!$C$11)","v":""},{"$f":"IF(A209=\"\",\"\",'1. Checklist & Certification'!$C$12)","v":""},{"$f":"IF(A209=\"\",\"\",'1. Checklist & Certification'!$B$14)","v":""},{"$f":"IF(A209=\"\",\"\",'1. Checklist & Certification'!$E$14)","v":""},{"$f":"IF(B209=\"\",\"\",'1. Checklist & Certification'!$G$14)","v":""},{"$f":"IF(A209=\"\",\"\",'MHP Family Income & Rent Limits'!$B$3)","v":""},{"$f":"IF(A209=\"\",\"\",'MHP Family Income & Rent Limits'!$J$3)","v":""},{"$f":"IF(A209=\"\",\"\",'MHP Family Income & Rent Limits'!$E$4)","v":""},{"$f":"IF(A209=\"\",\"\",'MHP Family Income & Rent Limits'!$C$7)","v":""},{"$f":"IF(A209=\"\",\"\",'MHP Family Income & Rent Limits'!$F$8)","v":""},{"$f":"IF(A209=\"\",\"\",'1. Checklist & Certification'!$G$4)","v":""},{"$f":"IF(A209=\"\",\"\",'1. Checklist & Certification'!$K$39)","v":""},{"$f":"IF(A209=\"\",\"\",'1. Checklist & Certification'!$K$43)","v":""},{"$f":"IF(A209=\"\",\"\",'1. Checklist & Certification'!$K$45)","v":""},{"$f":"IF(A209=\"\",\"\",'1. Checklist & Certification'!$K$49)","v":""},{"$f":"IF(A209=\"\",\"\",'1. Checklist & Certification'!$E$66)","v":""},{"$f":"IF(A209=\"\",\"\",'1. Checklist & Certification'!$E$67)","v":""},{"$f":"IF(A209=\"\",\"\",'1. Checklist & Certification'!$E$68)","v":""},{"$f":"IF(A209=\"\",\"\",'1. Checklist & Certification'!$G$66)","v":""},{"$f":"IF(A209=\"\",\"\",'1. Checklist & Certification'!$H$66)","v":""},{"$f":"IF(A209=\"\",\"\",'1. Checklist & Certification'!$I$66)","v":""},{"$f":"IF(A209=\"\",\"\",'1. Checklist & Certification'!$I$67)","v":""},{"$f":"IF(A209=\"\",\"\",'1. Checklist & Certification'!$I$68)","v":""},null,{"$f":"IF(C209=\"\",\"\",HLOOKUP(C209,'MHP Family Income & Rent Limits'!$E$12:$L$26,2,FALSE))","v":""},{"$f":"IF(C209=\"\",\"\",HLOOKUP(C209,'MHP Family Income & Rent Limits'!$E$12:$L$26,3,FALSE))","v":""},{"$f":"IF(C209=\"\",\"\",HLOOKUP(C209,'MHP Family Income & Rent Limits'!$E$12:$L$26,4,FALSE))","v":""},{"$f":"IF(C209=\"\",\"\",HLOOKUP(C209,'MHP Family Income & Rent Limits'!$E$12:$L$26,5,FALSE))","v":""},{"$f":"IF(C209=\"\",\"\",HLOOKUP(C209,'MHP Family Income & Rent Limits'!$E$12:$L$26,6,FALSE))","v":""},{"$f":"IF(C209=\"\",\"\",HLOOKUP(C209,'MHP Family Income & Rent Limits'!$E$12:$L$26,7,FALSE))","v":""},{"$f":"IF(C209=\"\",\"\",HLOOKUP(C209,'MHP Family Income & Rent Limits'!$E$12:$L$26,8,FALSE))","v":""},{"$f":"IF(C209=\"\",\"\",HLOOKUP(C209,'MHP Family Income & Rent Limits'!$E$12:$L$26,9,FALSE))","v":""},{"$f":"IF(C209=\"\",\"\",HLOOKUP(C209,'MHP Family Income & Rent Limits'!$E$12:$L$26,10,FALSE))","v":""},{"$f":"IF(C209=\"\",\"\",HLOOKUP(C209,'MHP Family Income & Rent Limits'!$E$12:$L$26,11,FALSE))","v":""},{"$f":"IF(C209=\"\",\"\",HLOOKUP(C209,'MHP Family Income & Rent Limits'!$E$12:$L$26,12,FALSE))","v":""},{"$f":"IF(C209=\"\",\"\",HLOOKUP(C209,'MHP Family Income & Rent Limits'!$E$12:$L$26,13,FALSE))","v":""},{"$f":"IF(C209=\"\",\"\",HLOOKUP(C209,'MHP Family Income & Rent Limits'!$E$12:$L$26,14,FALSE))","v":""},{"$f":"IF(C209=\"\",\"\",HLOOKUP(C209,'MHP Family Income & Rent Limits'!$E$12:$L$26,15,FALSE))","v":""}]
[{"$f":"IF('2. Assisted & Restricted Units'!A210=\"\",\"\",'2. Assisted & Restricted Units'!A210)","v":""},{"$f":"IF('2. Assisted & Restricted Units'!B210=\"\",\"\",'2. Assisted & Restricted Units'!B210)","v":""},{"$f":"IF('2. Assisted & Restricted Units'!D210=\"\",\"\",'2. Assisted & Restricted Units'!D210)","v":""},{"$f":"IF('2. Assisted & Restricted Units'!E210=\"\",\"\",'2. Assisted & Restricted Units'!E210)","v":""},{"$f":"IF('2. Assisted & Restricted Units'!H210=\"\",\"\",'2. Assisted & Restricted Units'!H210)","v":""},{"$f":"_xlfn.IFS(E210=\"\",\"\",E210>BO210,$BP$6,E210>BN210,$BO$6,E210>BM210,$BN$6,E210>BL210,$BM$6,E210>BK210,$BL$6,E210>BJ210,$BK$6,E210>BI210,$BJ$6,E210>BH210,$BI$6,E210>BG210,$BH$6,E210>BF210,$BG$6,E210>BE210,$BF$6,E210>BD210,$BE$6,E210>BC210,$BD$6,E210>=0,$BC$6)","v":""},{"$f":"IF('2. Assisted & Restricted Units'!T210=\"\",\"\",'2. Assisted & Restricted Units'!T210)","v":""},{"$f":"IF('2. Assisted & Restricted Units'!I210=\"\",\"\",'2. Assisted & Restricted Units'!I210)","v":""},{"$f":"IF('2. Assisted & Restricted Units'!AP210=\"\",\"\",'2. Assisted & Restricted Units'!AP210)","v":0},{"$f":"IF('2. Assisted & Restricted Units'!AT210=\"\",\"\",'2. Assisted & Restricted Units'!AT210)","v":""},0,{"$f":"IF('2. Assisted & Restricted Units'!AV210=\"\",\"\",'2. Assisted & Restricted Units'!AV210)","v":""},{"$f":"IF('2. Assisted & Restricted Units'!L210=\"\",\"\",'2. Assisted & Restricted Units'!L210)","v":""},{"$f":"IF('2. Assisted & Restricted Units'!M210=\"\",\"\",'2. Assisted & Restricted Units'!M210)","v":""},{"$f":"IF('2. Assisted & Restricted Units'!O210=\"\",\"\",'2. Assisted & Restricted Units'!O210)","v":""},{"$f":"IF('2. Assisted & Restricted Units'!P210=\"\",\"\",'2. Assisted & Restricted Units'!P210)","v":""},{"$f":"IF('2. Assisted & Restricted Units'!Q210=\"\",\"\",'2. Assisted & Restricted Units'!Q210)","v":""},{"$f":"IF('2. Assisted & Restricted Units'!R210=\"\",\"\",'2. Assisted & Restricted Units'!R210)","v":""},{"$f":"IF(A210=\"\",\"\",'1. Checklist & Certification'!$K$1)","v":""},{"$f":"IF(A210=\"\",\"\",'1. Checklist & Certification'!$C$62)","v":""},{"$f":"IF(A210=\"\",\"\",'1. Checklist & Certification'!$K$62)","v":""},{"$f":"IF(A210=\"\",\"\",'1. Checklist & Certification'!$C$6)","v":""},{"$f":"IF(A210=\"\",\"\",'1. Checklist & Certification'!$G$4)","v":""},{"$f":"IF(A210=\"\",\"\",'1. Checklist & Certification'!$C$7)","v":""},{"$f":"IF(A210=\"\",\"\",'1. Checklist & Certification'!$C$8)","v":""},{"$f":"IF(A210=\"\",\"\",'1. Checklist & Certification'!$F$7)","v":""},{"$f":"IF(A210=\"\",\"\",'1. Checklist & Certification'!$F$8)","v":""},{"$f":"IF(A210=\"\",\"\",'1. Checklist & Certification'!$B$9)","v":""},{"$f":"IF(A210=\"\",\"\",'1. Checklist & Certification'!$F$9)","v":""},{"$f":"IF(A210=\"\",\"\",'1. Checklist & Certification'!$C$10)","v":""},{"$f":"IF(A210=\"\",\"\",'1. Checklist & Certification'!$C$11)","v":""},{"$f":"IF(A210=\"\",\"\",'1. Checklist & Certification'!$C$12)","v":""},{"$f":"IF(A210=\"\",\"\",'1. Checklist & Certification'!$B$14)","v":""},{"$f":"IF(A210=\"\",\"\",'1. Checklist & Certification'!$E$14)","v":""},{"$f":"IF(B210=\"\",\"\",'1. Checklist & Certification'!$G$14)","v":""},{"$f":"IF(A210=\"\",\"\",'MHP Family Income & Rent Limits'!$B$3)","v":""},{"$f":"IF(A210=\"\",\"\",'MHP Family Income & Rent Limits'!$J$3)","v":""},{"$f":"IF(A210=\"\",\"\",'MHP Family Income & Rent Limits'!$E$4)","v":""},{"$f":"IF(A210=\"\",\"\",'MHP Family Income & Rent Limits'!$C$7)","v":""},{"$f":"IF(A210=\"\",\"\",'MHP Family Income & Rent Limits'!$F$8)","v":""},{"$f":"IF(A210=\"\",\"\",'1. Checklist & Certification'!$G$4)","v":""},{"$f":"IF(A210=\"\",\"\",'1. Checklist & Certification'!$K$39)","v":""},{"$f":"IF(A210=\"\",\"\",'1. Checklist & Certification'!$K$43)","v":""},{"$f":"IF(A210=\"\",\"\",'1. Checklist & Certification'!$K$45)","v":""},{"$f":"IF(A210=\"\",\"\",'1. Checklist & Certification'!$K$49)","v":""},{"$f":"IF(A210=\"\",\"\",'1. Checklist & Certification'!$E$66)","v":""},{"$f":"IF(A210=\"\",\"\",'1. Checklist & Certification'!$E$67)","v":""},{"$f":"IF(A210=\"\",\"\",'1. Checklist & Certification'!$E$68)","v":""},{"$f":"IF(A210=\"\",\"\",'1. Checklist & Certification'!$G$66)","v":""},{"$f":"IF(A210=\"\",\"\",'1. Checklist & Certification'!$H$66)","v":""},{"$f":"IF(A210=\"\",\"\",'1. Checklist & Certification'!$I$66)","v":""},{"$f":"IF(A210=\"\",\"\",'1. Checklist & Certification'!$I$67)","v":""},{"$f":"IF(A210=\"\",\"\",'1. Checklist & Certification'!$I$68)","v":""},null,{"$f":"IF(C210=\"\",\"\",HLOOKUP(C210,'MHP Family Income & Rent Limits'!$E$12:$L$26,2,FALSE))","v":""},{"$f":"IF(C210=\"\",\"\",HLOOKUP(C210,'MHP Family Income & Rent Limits'!$E$12:$L$26,3,FALSE))","v":""},{"$f":"IF(C210=\"\",\"\",HLOOKUP(C210,'MHP Family Income & Rent Limits'!$E$12:$L$26,4,FALSE))","v":""},{"$f":"IF(C210=\"\",\"\",HLOOKUP(C210,'MHP Family Income & Rent Limits'!$E$12:$L$26,5,FALSE))","v":""},{"$f":"IF(C210=\"\",\"\",HLOOKUP(C210,'MHP Family Income & Rent Limits'!$E$12:$L$26,6,FALSE))","v":""},{"$f":"IF(C210=\"\",\"\",HLOOKUP(C210,'MHP Family Income & Rent Limits'!$E$12:$L$26,7,FALSE))","v":""},{"$f":"IF(C210=\"\",\"\",HLOOKUP(C210,'MHP Family Income & Rent Limits'!$E$12:$L$26,8,FALSE))","v":""},{"$f":"IF(C210=\"\",\"\",HLOOKUP(C210,'MHP Family Income & Rent Limits'!$E$12:$L$26,9,FALSE))","v":""},{"$f":"IF(C210=\"\",\"\",HLOOKUP(C210,'MHP Family Income & Rent Limits'!$E$12:$L$26,10,FALSE))","v":""},{"$f":"IF(C210=\"\",\"\",HLOOKUP(C210,'MHP Family Income & Rent Limits'!$E$12:$L$26,11,FALSE))","v":""},{"$f":"IF(C210=\"\",\"\",HLOOKUP(C210,'MHP Family Income & Rent Limits'!$E$12:$L$26,12,FALSE))","v":""},{"$f":"IF(C210=\"\",\"\",HLOOKUP(C210,'MHP Family Income & Rent Limits'!$E$12:$L$26,13,FALSE))","v":""},{"$f":"IF(C210=\"\",\"\",HLOOKUP(C210,'MHP Family Income & Rent Limits'!$E$12:$L$26,14,FALSE))","v":""},{"$f":"IF(C210=\"\",\"\",HLOOKUP(C210,'MHP Family Income & Rent Limits'!$E$12:$L$26,15,FALSE))","v":""}]
[{"$f":"IF('2. Assisted & Restricted Units'!A211=\"\",\"\",'2. Assisted & Restricted Units'!A211)","v":""},{"$f":"IF('2. Assisted & Restricted Units'!B211=\"\",\"\",'2. Assisted & Restricted Units'!B211)","v":""},{"$f":"IF('2. Assisted & Restricted Units'!D211=\"\",\"\",'2. Assisted & Restricted Units'!D211)","v":""},{"$f":"IF('2. Assisted & Restricted Units'!E211=\"\",\"\",'2. Assisted & Restricted Units'!E211)","v":""},{"$f":"IF('2. Assisted & Restricted Units'!H211=\"\",\"\",'2. Assisted & Restricted Units'!H211)","v":""},{"$f":"_xlfn.IFS(E211=\"\",\"\",E211>BO211,$BP$6,E211>BN211,$BO$6,E211>BM211,$BN$6,E211>BL211,$BM$6,E211>BK211,$BL$6,E211>BJ211,$BK$6,E211>BI211,$BJ$6,E211>BH211,$BI$6,E211>BG211,$BH$6,E211>BF211,$BG$6,E211>BE211,$BF$6,E211>BD211,$BE$6,E211>BC211,$BD$6,E211>=0,$BC$6)","v":""},{"$f":"IF('2. Assisted & Restricted Units'!T211=\"\",\"\",'2. Assisted & Restricted Units'!T211)","v":""},{"$f":"IF('2. Assisted & Restricted Units'!I211=\"\",\"\",'2. Assisted & Restricted Units'!I211)","v":""},{"$f":"IF('2. Assisted & Restricted Units'!AP211=\"\",\"\",'2. Assisted & Restricted Units'!AP211)","v":0},{"$f":"IF('2. Assisted & Restricted Units'!AT211=\"\",\"\",'2. Assisted & Restricted Units'!AT211)","v":""},0,{"$f":"IF('2. Assisted & Restricted Units'!AV211=\"\",\"\",'2. Assisted & Restricted Units'!AV211)","v":""},{"$f":"IF('2. Assisted & Restricted Units'!L211=\"\",\"\",'2. Assisted & Restricted Units'!L211)","v":""},{"$f":"IF('2. Assisted & Restricted Units'!M211=\"\",\"\",'2. Assisted & Restricted Units'!M211)","v":""},{"$f":"IF('2. Assisted & Restricted Units'!O211=\"\",\"\",'2. Assisted & Restricted Units'!O211)","v":""},{"$f":"IF('2. Assisted & Restricted Units'!P211=\"\",\"\",'2. Assisted & Restricted Units'!P211)","v":""},{"$f":"IF('2. Assisted & Restricted Units'!Q211=\"\",\"\",'2. Assisted & Restricted Units'!Q211)","v":""},{"$f":"IF('2. Assisted & Restricted Units'!R211=\"\",\"\",'2. Assisted & Restricted Units'!R211)","v":""},{"$f":"IF(A211=\"\",\"\",'1. Checklist & Certification'!$K$1)","v":""},{"$f":"IF(A211=\"\",\"\",'1. Checklist & Certification'!$C$62)","v":""},{"$f":"IF(A211=\"\",\"\",'1. Checklist & Certification'!$K$62)","v":""},{"$f":"IF(A211=\"\",\"\",'1. Checklist & Certification'!$C$6)","v":""},{"$f":"IF(A211=\"\",\"\",'1. Checklist & Certification'!$G$4)","v":""},{"$f":"IF(A211=\"\",\"\",'1. Checklist & Certification'!$C$7)","v":""},{"$f":"IF(A211=\"\",\"\",'1. Checklist & Certification'!$C$8)","v":""},{"$f":"IF(A211=\"\",\"\",'1. Checklist & Certification'!$F$7)","v":""},{"$f":"IF(A211=\"\",\"\",'1. Checklist & Certification'!$F$8)","v":""},{"$f":"IF(A211=\"\",\"\",'1. Checklist & Certification'!$B$9)","v":""},{"$f":"IF(A211=\"\",\"\",'1. Checklist & Certification'!$F$9)","v":""},{"$f":"IF(A211=\"\",\"\",'1. Checklist & Certification'!$C$10)","v":""},{"$f":"IF(A211=\"\",\"\",'1. Checklist & Certification'!$C$11)","v":""},{"$f":"IF(A211=\"\",\"\",'1. Checklist & Certification'!$C$12)","v":""},{"$f":"IF(A211=\"\",\"\",'1. Checklist & Certification'!$B$14)","v":""},{"$f":"IF(A211=\"\",\"\",'1. Checklist & Certification'!$E$14)","v":""},{"$f":"IF(B211=\"\",\"\",'1. Checklist & Certification'!$G$14)","v":""},{"$f":"IF(A211=\"\",\"\",'MHP Family Income & Rent Limits'!$B$3)","v":""},{"$f":"IF(A211=\"\",\"\",'MHP Family Income & Rent Limits'!$J$3)","v":""},{"$f":"IF(A211=\"\",\"\",'MHP Family Income & Rent Limits'!$E$4)","v":""},{"$f":"IF(A211=\"\",\"\",'MHP Family Income & Rent Limits'!$C$7)","v":""},{"$f":"IF(A211=\"\",\"\",'MHP Family Income & Rent Limits'!$F$8)","v":""},{"$f":"IF(A211=\"\",\"\",'1. Checklist & Certification'!$G$4)","v":""},{"$f":"IF(A211=\"\",\"\",'1. Checklist & Certification'!$K$39)","v":""},{"$f":"IF(A211=\"\",\"\",'1. Checklist & Certification'!$K$43)","v":""},{"$f":"IF(A211=\"\",\"\",'1. Checklist & Certification'!$K$45)","v":""},{"$f":"IF(A211=\"\",\"\",'1. Checklist & Certification'!$K$49)","v":""},{"$f":"IF(A211=\"\",\"\",'1. Checklist & Certification'!$E$66)","v":""},{"$f":"IF(A211=\"\",\"\",'1. Checklist & Certification'!$E$67)","v":""},{"$f":"IF(A211=\"\",\"\",'1. Checklist & Certification'!$E$68)","v":""},{"$f":"IF(A211=\"\",\"\",'1. Checklist & Certification'!$G$66)","v":""},{"$f":"IF(A211=\"\",\"\",'1. Checklist & Certification'!$H$66)","v":""},{"$f":"IF(A211=\"\",\"\",'1. Checklist & Certification'!$I$66)","v":""},{"$f":"IF(A211=\"\",\"\",'1. Checklist & Certification'!$I$67)","v":""},{"$f":"IF(A211=\"\",\"\",'1. Checklist & Certification'!$I$68)","v":""},null,{"$f":"IF(C211=\"\",\"\",HLOOKUP(C211,'MHP Family Income & Rent Limits'!$E$12:$L$26,2,FALSE))","v":""},{"$f":"IF(C211=\"\",\"\",HLOOKUP(C211,'MHP Family Income & Rent Limits'!$E$12:$L$26,3,FALSE))","v":""},{"$f":"IF(C211=\"\",\"\",HLOOKUP(C211,'MHP Family Income & Rent Limits'!$E$12:$L$26,4,FALSE))","v":""},{"$f":"IF(C211=\"\",\"\",HLOOKUP(C211,'MHP Family Income & Rent Limits'!$E$12:$L$26,5,FALSE))","v":""},{"$f":"IF(C211=\"\",\"\",HLOOKUP(C211,'MHP Family Income & Rent Limits'!$E$12:$L$26,6,FALSE))","v":""},{"$f":"IF(C211=\"\",\"\",HLOOKUP(C211,'MHP Family Income & Rent Limits'!$E$12:$L$26,7,FALSE))","v":""},{"$f":"IF(C211=\"\",\"\",HLOOKUP(C211,'MHP Family Income & Rent Limits'!$E$12:$L$26,8,FALSE))","v":""},{"$f":"IF(C211=\"\",\"\",HLOOKUP(C211,'MHP Family Income & Rent Limits'!$E$12:$L$26,9,FALSE))","v":""},{"$f":"IF(C211=\"\",\"\",HLOOKUP(C211,'MHP Family Income & Rent Limits'!$E$12:$L$26,10,FALSE))","v":""},{"$f":"IF(C211=\"\",\"\",HLOOKUP(C211,'MHP Family Income & Rent Limits'!$E$12:$L$26,11,FALSE))","v":""},{"$f":"IF(C211=\"\",\"\",HLOOKUP(C211,'MHP Family Income & Rent Limits'!$E$12:$L$26,12,FALSE))","v":""},{"$f":"IF(C211=\"\",\"\",HLOOKUP(C211,'MHP Family Income & Rent Limits'!$E$12:$L$26,13,FALSE))","v":""},{"$f":"IF(C211=\"\",\"\",HLOOKUP(C211,'MHP Family Income & Rent Limits'!$E$12:$L$26,14,FALSE))","v":""},{"$f":"IF(C211=\"\",\"\",HLOOKUP(C211,'MHP Family Income & Rent Limits'!$E$12:$L$26,15,FALSE))","v":""}]
[{"$f":"IF('2. Assisted & Restricted Units'!A212=\"\",\"\",'2. Assisted & Restricted Units'!A212)","v":""},{"$f":"IF('2. Assisted & Restricted Units'!B212=\"\",\"\",'2. Assisted & Restricted Units'!B212)","v":""},{"$f":"IF('2. Assisted & Restricted Units'!D212=\"\",\"\",'2. Assisted & Restricted Units'!D212)","v":""},{"$f":"IF('2. Assisted & Restricted Units'!E212=\"\",\"\",'2. Assisted & Restricted Units'!E212)","v":""},{"$f":"IF('2. Assisted & Restricted Units'!H212=\"\",\"\",'2. Assisted & Restricted Units'!H212)","v":""},{"$f":"_xlfn.IFS(E212=\"\",\"\",E212>BO212,$BP$6,E212>BN212,$BO$6,E212>BM212,$BN$6,E212>BL212,$BM$6,E212>BK212,$BL$6,E212>BJ212,$BK$6,E212>BI212,$BJ$6,E212>BH212,$BI$6,E212>BG212,$BH$6,E212>BF212,$BG$6,E212>BE212,$BF$6,E212>BD212,$BE$6,E212>BC212,$BD$6,E212>=0,$BC$6)","v":""},{"$f":"IF('2. Assisted & Restricted Units'!T212=\"\",\"\",'2. Assisted & Restricted Units'!T212)","v":""},{"$f":"IF('2. Assisted & Restricted Units'!I212=\"\",\"\",'2. Assisted & Restricted Units'!I212)","v":""},{"$f":"IF('2. Assisted & Restricted Units'!AP212=\"\",\"\",'2. Assisted & Restricted Units'!AP212)","v":0},{"$f":"IF('2. Assisted & Restricted Units'!AT212=\"\",\"\",'2. Assisted & Restricted Units'!AT212)","v":""},0,{"$f":"IF('2. Assisted & Restricted Units'!AV212=\"\",\"\",'2. Assisted & Restricted Units'!AV212)","v":""},{"$f":"IF('2. Assisted & Restricted Units'!L212=\"\",\"\",'2. Assisted & Restricted Units'!L212)","v":""},{"$f":"IF('2. Assisted & Restricted Units'!M212=\"\",\"\",'2. Assisted & Restricted Units'!M212)","v":""},{"$f":"IF('2. Assisted & Restricted Units'!O212=\"\",\"\",'2. Assisted & Restricted Units'!O212)","v":""},{"$f":"IF('2. Assisted & Restricted Units'!P212=\"\",\"\",'2. Assisted & Restricted Units'!P212)","v":""},{"$f":"IF('2. Assisted & Restricted Units'!Q212=\"\",\"\",'2. Assisted & Restricted Units'!Q212)","v":""},{"$f":"IF('2. Assisted & Restricted Units'!R212=\"\",\"\",'2. Assisted & Restricted Units'!R212)","v":""},{"$f":"IF(A212=\"\",\"\",'1. Checklist & Certification'!$K$1)","v":""},{"$f":"IF(A212=\"\",\"\",'1. Checklist & Certification'!$C$62)","v":""},{"$f":"IF(A212=\"\",\"\",'1. Checklist & Certification'!$K$62)","v":""},{"$f":"IF(A212=\"\",\"\",'1. Checklist & Certification'!$C$6)","v":""},{"$f":"IF(A212=\"\",\"\",'1. Checklist & Certification'!$G$4)","v":""},{"$f":"IF(A212=\"\",\"\",'1. Checklist & Certification'!$C$7)","v":""},{"$f":"IF(A212=\"\",\"\",'1. Checklist & Certification'!$C$8)","v":""},{"$f":"IF(A212=\"\",\"\",'1. Checklist & Certification'!$F$7)","v":""},{"$f":"IF(A212=\"\",\"\",'1. Checklist & Certification'!$F$8)","v":""},{"$f":"IF(A212=\"\",\"\",'1. Checklist & Certification'!$B$9)","v":""},{"$f":"IF(A212=\"\",\"\",'1. Checklist & Certification'!$F$9)","v":""},{"$f":"IF(A212=\"\",\"\",'1. Checklist & Certification'!$C$10)","v":""},{"$f":"IF(A212=\"\",\"\",'1. Checklist & Certification'!$C$11)","v":""},{"$f":"IF(A212=\"\",\"\",'1. Checklist & Certification'!$C$12)","v":""},{"$f":"IF(A212=\"\",\"\",'1. Checklist & Certification'!$B$14)","v":""},{"$f":"IF(A212=\"\",\"\",'1. Checklist & Certification'!$E$14)","v":""},{"$f":"IF(B212=\"\",\"\",'1. Checklist & Certification'!$G$14)","v":""},{"$f":"IF(A212=\"\",\"\",'MHP Family Income & Rent Limits'!$B$3)","v":""},{"$f":"IF(A212=\"\",\"\",'MHP Family Income & Rent Limits'!$J$3)","v":""},{"$f":"IF(A212=\"\",\"\",'MHP Family Income & Rent Limits'!$E$4)","v":""},{"$f":"IF(A212=\"\",\"\",'MHP Family Income & Rent Limits'!$C$7)","v":""},{"$f":"IF(A212=\"\",\"\",'MHP Family Income & Rent Limits'!$F$8)","v":""},{"$f":"IF(A212=\"\",\"\",'1. Checklist & Certification'!$G$4)","v":""},{"$f":"IF(A212=\"\",\"\",'1. Checklist & Certification'!$K$39)","v":""},{"$f":"IF(A212=\"\",\"\",'1. Checklist & Certification'!$K$43)","v":""},{"$f":"IF(A212=\"\",\"\",'1. Checklist & Certification'!$K$45)","v":""},{"$f":"IF(A212=\"\",\"\",'1. Checklist & Certification'!$K$49)","v":""},{"$f":"IF(A212=\"\",\"\",'1. Checklist & Certification'!$E$66)","v":""},{"$f":"IF(A212=\"\",\"\",'1. Checklist & Certification'!$E$67)","v":""},{"$f":"IF(A212=\"\",\"\",'1. Checklist & Certification'!$E$68)","v":""},{"$f":"IF(A212=\"\",\"\",'1. Checklist & Certification'!$G$66)","v":""},{"$f":"IF(A212=\"\",\"\",'1. Checklist & Certification'!$H$66)","v":""},{"$f":"IF(A212=\"\",\"\",'1. Checklist & Certification'!$I$66)","v":""},{"$f":"IF(A212=\"\",\"\",'1. Checklist & Certification'!$I$67)","v":""},{"$f":"IF(A212=\"\",\"\",'1. Checklist & Certification'!$I$68)","v":""},null,{"$f":"IF(C212=\"\",\"\",HLOOKUP(C212,'MHP Family Income & Rent Limits'!$E$12:$L$26,2,FALSE))","v":""},{"$f":"IF(C212=\"\",\"\",HLOOKUP(C212,'MHP Family Income & Rent Limits'!$E$12:$L$26,3,FALSE))","v":""},{"$f":"IF(C212=\"\",\"\",HLOOKUP(C212,'MHP Family Income & Rent Limits'!$E$12:$L$26,4,FALSE))","v":""},{"$f":"IF(C212=\"\",\"\",HLOOKUP(C212,'MHP Family Income & Rent Limits'!$E$12:$L$26,5,FALSE))","v":""},{"$f":"IF(C212=\"\",\"\",HLOOKUP(C212,'MHP Family Income & Rent Limits'!$E$12:$L$26,6,FALSE))","v":""},{"$f":"IF(C212=\"\",\"\",HLOOKUP(C212,'MHP Family Income & Rent Limits'!$E$12:$L$26,7,FALSE))","v":""},{"$f":"IF(C212=\"\",\"\",HLOOKUP(C212,'MHP Family Income & Rent Limits'!$E$12:$L$26,8,FALSE))","v":""},{"$f":"IF(C212=\"\",\"\",HLOOKUP(C212,'MHP Family Income & Rent Limits'!$E$12:$L$26,9,FALSE))","v":""},{"$f":"IF(C212=\"\",\"\",HLOOKUP(C212,'MHP Family Income & Rent Limits'!$E$12:$L$26,10,FALSE))","v":""},{"$f":"IF(C212=\"\",\"\",HLOOKUP(C212,'MHP Family Income & Rent Limits'!$E$12:$L$26,11,FALSE))","v":""},{"$f":"IF(C212=\"\",\"\",HLOOKUP(C212,'MHP Family Income & Rent Limits'!$E$12:$L$26,12,FALSE))","v":""},{"$f":"IF(C212=\"\",\"\",HLOOKUP(C212,'MHP Family Income & Rent Limits'!$E$12:$L$26,13,FALSE))","v":""},{"$f":"IF(C212=\"\",\"\",HLOOKUP(C212,'MHP Family Income & Rent Limits'!$E$12:$L$26,14,FALSE))","v":""},{"$f":"IF(C212=\"\",\"\",HLOOKUP(C212,'MHP Family Income & Rent Limits'!$E$12:$L$26,15,FALSE))","v":""}]
[{"$f":"IF('2. Assisted & Restricted Units'!A213=\"\",\"\",'2. Assisted & Restricted Units'!A213)","v":""},{"$f":"IF('2. Assisted & Restricted Units'!B213=\"\",\"\",'2. Assisted & Restricted Units'!B213)","v":""},{"$f":"IF('2. Assisted & Restricted Units'!D213=\"\",\"\",'2. Assisted & Restricted Units'!D213)","v":""},{"$f":"IF('2. Assisted & Restricted Units'!E213=\"\",\"\",'2. Assisted & Restricted Units'!E213)","v":""},{"$f":"IF('2. Assisted & Restricted Units'!H213=\"\",\"\",'2. Assisted & Restricted Units'!H213)","v":""},{"$f":"_xlfn.IFS(E213=\"\",\"\",E213>BO213,$BP$6,E213>BN213,$BO$6,E213>BM213,$BN$6,E213>BL213,$BM$6,E213>BK213,$BL$6,E213>BJ213,$BK$6,E213>BI213,$BJ$6,E213>BH213,$BI$6,E213>BG213,$BH$6,E213>BF213,$BG$6,E213>BE213,$BF$6,E213>BD213,$BE$6,E213>BC213,$BD$6,E213>=0,$BC$6)","v":""},{"$f":"IF('2. Assisted & Restricted Units'!T213=\"\",\"\",'2. Assisted & Restricted Units'!T213)","v":""},{"$f":"IF('2. Assisted & Restricted Units'!I213=\"\",\"\",'2. Assisted & Restricted Units'!I213)","v":""},{"$f":"IF('2. Assisted & Restricted Units'!AP213=\"\",\"\",'2. Assisted & Restricted Units'!AP213)","v":0},{"$f":"IF('2. Assisted & Restricted Units'!AT213=\"\",\"\",'2. Assisted & Restricted Units'!AT213)","v":""},0,{"$f":"IF('2. Assisted & Restricted Units'!AV213=\"\",\"\",'2. Assisted & Restricted Units'!AV213)","v":""},{"$f":"IF('2. Assisted & Restricted Units'!L213=\"\",\"\",'2. Assisted & Restricted Units'!L213)","v":""},{"$f":"IF('2. Assisted & Restricted Units'!M213=\"\",\"\",'2. Assisted & Restricted Units'!M213)","v":""},{"$f":"IF('2. Assisted & Restricted Units'!O213=\"\",\"\",'2. Assisted & Restricted Units'!O213)","v":""},{"$f":"IF('2. Assisted & Restricted Units'!P213=\"\",\"\",'2. Assisted & Restricted Units'!P213)","v":""},{"$f":"IF('2. Assisted & Restricted Units'!Q213=\"\",\"\",'2. Assisted & Restricted Units'!Q213)","v":""},{"$f":"IF('2. Assisted & Restricted Units'!R213=\"\",\"\",'2. Assisted & Restricted Units'!R213)","v":""},{"$f":"IF(A213=\"\",\"\",'1. Checklist & Certification'!$K$1)","v":""},{"$f":"IF(A213=\"\",\"\",'1. Checklist & Certification'!$C$62)","v":""},{"$f":"IF(A213=\"\",\"\",'1. Checklist & Certification'!$K$62)","v":""},{"$f":"IF(A213=\"\",\"\",'1. Checklist & Certification'!$C$6)","v":""},{"$f":"IF(A213=\"\",\"\",'1. Checklist & Certification'!$G$4)","v":""},{"$f":"IF(A213=\"\",\"\",'1. Checklist & Certification'!$C$7)","v":""},{"$f":"IF(A213=\"\",\"\",'1. Checklist & Certification'!$C$8)","v":""},{"$f":"IF(A213=\"\",\"\",'1. Checklist & Certification'!$F$7)","v":""},{"$f":"IF(A213=\"\",\"\",'1. Checklist & Certification'!$F$8)","v":""},{"$f":"IF(A213=\"\",\"\",'1. Checklist & Certification'!$B$9)","v":""},{"$f":"IF(A213=\"\",\"\",'1. Checklist & Certification'!$F$9)","v":""},{"$f":"IF(A213=\"\",\"\",'1. Checklist & Certification'!$C$10)","v":""},{"$f":"IF(A213=\"\",\"\",'1. Checklist & Certification'!$C$11)","v":""},{"$f":"IF(A213=\"\",\"\",'1. Checklist & Certification'!$C$12)","v":""},{"$f":"IF(A213=\"\",\"\",'1. Checklist & Certification'!$B$14)","v":""},{"$f":"IF(A213=\"\",\"\",'1. Checklist & Certification'!$E$14)","v":""},{"$f":"IF(B213=\"\",\"\",'1. Checklist & Certification'!$G$14)","v":""},{"$f":"IF(A213=\"\",\"\",'MHP Family Income & Rent Limits'!$B$3)","v":""},{"$f":"IF(A213=\"\",\"\",'MHP Family Income & Rent Limits'!$J$3)","v":""},{"$f":"IF(A213=\"\",\"\",'MHP Family Income & Rent Limits'!$E$4)","v":""},{"$f":"IF(A213=\"\",\"\",'MHP Family Income & Rent Limits'!$C$7)","v":""},{"$f":"IF(A213=\"\",\"\",'MHP Family Income & Rent Limits'!$F$8)","v":""},{"$f":"IF(A213=\"\",\"\",'1. Checklist & Certification'!$G$4)","v":""},{"$f":"IF(A213=\"\",\"\",'1. Checklist & Certification'!$K$39)","v":""},{"$f":"IF(A213=\"\",\"\",'1. Checklist & Certification'!$K$43)","v":""},{"$f":"IF(A213=\"\",\"\",'1. Checklist & Certification'!$K$45)","v":""},{"$f":"IF(A213=\"\",\"\",'1. Checklist & Certification'!$K$49)","v":""},{"$f":"IF(A213=\"\",\"\",'1. Checklist & Certification'!$E$66)","v":""},{"$f":"IF(A213=\"\",\"\",'1. Checklist & Certification'!$E$67)","v":""},{"$f":"IF(A213=\"\",\"\",'1. Checklist & Certification'!$E$68)","v":""},{"$f":"IF(A213=\"\",\"\",'1. Checklist & Certification'!$G$66)","v":""},{"$f":"IF(A213=\"\",\"\",'1. Checklist & Certification'!$H$66)","v":""},{"$f":"IF(A213=\"\",\"\",'1. Checklist & Certification'!$I$66)","v":""},{"$f":"IF(A213=\"\",\"\",'1. Checklist & Certification'!$I$67)","v":""},{"$f":"IF(A213=\"\",\"\",'1. Checklist & Certification'!$I$68)","v":""},null,{"$f":"IF(C213=\"\",\"\",HLOOKUP(C213,'MHP Family Income & Rent Limits'!$E$12:$L$26,2,FALSE))","v":""},{"$f":"IF(C213=\"\",\"\",HLOOKUP(C213,'MHP Family Income & Rent Limits'!$E$12:$L$26,3,FALSE))","v":""},{"$f":"IF(C213=\"\",\"\",HLOOKUP(C213,'MHP Family Income & Rent Limits'!$E$12:$L$26,4,FALSE))","v":""},{"$f":"IF(C213=\"\",\"\",HLOOKUP(C213,'MHP Family Income & Rent Limits'!$E$12:$L$26,5,FALSE))","v":""},{"$f":"IF(C213=\"\",\"\",HLOOKUP(C213,'MHP Family Income & Rent Limits'!$E$12:$L$26,6,FALSE))","v":""},{"$f":"IF(C213=\"\",\"\",HLOOKUP(C213,'MHP Family Income & Rent Limits'!$E$12:$L$26,7,FALSE))","v":""},{"$f":"IF(C213=\"\",\"\",HLOOKUP(C213,'MHP Family Income & Rent Limits'!$E$12:$L$26,8,FALSE))","v":""},{"$f":"IF(C213=\"\",\"\",HLOOKUP(C213,'MHP Family Income & Rent Limits'!$E$12:$L$26,9,FALSE))","v":""},{"$f":"IF(C213=\"\",\"\",HLOOKUP(C213,'MHP Family Income & Rent Limits'!$E$12:$L$26,10,FALSE))","v":""},{"$f":"IF(C213=\"\",\"\",HLOOKUP(C213,'MHP Family Income & Rent Limits'!$E$12:$L$26,11,FALSE))","v":""},{"$f":"IF(C213=\"\",\"\",HLOOKUP(C213,'MHP Family Income & Rent Limits'!$E$12:$L$26,12,FALSE))","v":""},{"$f":"IF(C213=\"\",\"\",HLOOKUP(C213,'MHP Family Income & Rent Limits'!$E$12:$L$26,13,FALSE))","v":""},{"$f":"IF(C213=\"\",\"\",HLOOKUP(C213,'MHP Family Income & Rent Limits'!$E$12:$L$26,14,FALSE))","v":""},{"$f":"IF(C213=\"\",\"\",HLOOKUP(C213,'MHP Family Income & Rent Limits'!$E$12:$L$26,15,FALSE))","v":""}]
[{"$f":"IF('2. Assisted & Restricted Units'!A214=\"\",\"\",'2. Assisted & Restricted Units'!A214)","v":""},{"$f":"IF('2. Assisted & Restricted Units'!B214=\"\",\"\",'2. Assisted & Restricted Units'!B214)","v":""},{"$f":"IF('2. Assisted & Restricted Units'!D214=\"\",\"\",'2. Assisted & Restricted Units'!D214)","v":""},{"$f":"IF('2. Assisted & Restricted Units'!E214=\"\",\"\",'2. Assisted & Restricted Units'!E214)","v":""},{"$f":"IF('2. Assisted & Restricted Units'!H214=\"\",\"\",'2. Assisted & Restricted Units'!H214)","v":""},{"$f":"_xlfn.IFS(E214=\"\",\"\",E214>BO214,$BP$6,E214>BN214,$BO$6,E214>BM214,$BN$6,E214>BL214,$BM$6,E214>BK214,$BL$6,E214>BJ214,$BK$6,E214>BI214,$BJ$6,E214>BH214,$BI$6,E214>BG214,$BH$6,E214>BF214,$BG$6,E214>BE214,$BF$6,E214>BD214,$BE$6,E214>BC214,$BD$6,E214>=0,$BC$6)","v":""},{"$f":"IF('2. Assisted & Restricted Units'!T214=\"\",\"\",'2. Assisted & Restricted Units'!T214)","v":""},{"$f":"IF('2. Assisted & Restricted Units'!I214=\"\",\"\",'2. Assisted & Restricted Units'!I214)","v":""},{"$f":"IF('2. Assisted & Restricted Units'!AP214=\"\",\"\",'2. Assisted & Restricted Units'!AP214)","v":0},{"$f":"IF('2. Assisted & Restricted Units'!AT214=\"\",\"\",'2. Assisted & Restricted Units'!AT214)","v":""},0,{"$f":"IF('2. Assisted & Restricted Units'!AV214=\"\",\"\",'2. Assisted & Restricted Units'!AV214)","v":""},{"$f":"IF('2. Assisted & Restricted Units'!L214=\"\",\"\",'2. Assisted & Restricted Units'!L214)","v":""},{"$f":"IF('2. Assisted & Restricted Units'!M214=\"\",\"\",'2. Assisted & Restricted Units'!M214)","v":""},{"$f":"IF('2. Assisted & Restricted Units'!O214=\"\",\"\",'2. Assisted & Restricted Units'!O214)","v":""},{"$f":"IF('2. Assisted & Restricted Units'!P214=\"\",\"\",'2. Assisted & Restricted Units'!P214)","v":""},{"$f":"IF('2. Assisted & Restricted Units'!Q214=\"\",\"\",'2. Assisted & Restricted Units'!Q214)","v":""},{"$f":"IF('2. Assisted & Restricted Units'!R214=\"\",\"\",'2. Assisted & Restricted Units'!R214)","v":""},{"$f":"IF(A214=\"\",\"\",'1. Checklist & Certification'!$K$1)","v":""},{"$f":"IF(A214=\"\",\"\",'1. Checklist & Certification'!$C$62)","v":""},{"$f":"IF(A214=\"\",\"\",'1. Checklist & Certification'!$K$62)","v":""},{"$f":"IF(A214=\"\",\"\",'1. Checklist & Certification'!$C$6)","v":""},{"$f":"IF(A214=\"\",\"\",'1. Checklist & Certification'!$G$4)","v":""},{"$f":"IF(A214=\"\",\"\",'1. Checklist & Certification'!$C$7)","v":""},{"$f":"IF(A214=\"\",\"\",'1. Checklist & Certification'!$C$8)","v":""},{"$f":"IF(A214=\"\",\"\",'1. Checklist & Certification'!$F$7)","v":""},{"$f":"IF(A214=\"\",\"\",'1. Checklist & Certification'!$F$8)","v":""},{"$f":"IF(A214=\"\",\"\",'1. Checklist & Certification'!$B$9)","v":""},{"$f":"IF(A214=\"\",\"\",'1. Checklist & Certification'!$F$9)","v":""},{"$f":"IF(A214=\"\",\"\",'1. Checklist & Certification'!$C$10)","v":""},{"$f":"IF(A214=\"\",\"\",'1. Checklist & Certification'!$C$11)","v":""},{"$f":"IF(A214=\"\",\"\",'1. Checklist & Certification'!$C$12)","v":""},{"$f":"IF(A214=\"\",\"\",'1. Checklist & Certification'!$B$14)","v":""},{"$f":"IF(A214=\"\",\"\",'1. Checklist & Certification'!$E$14)","v":""},{"$f":"IF(B214=\"\",\"\",'1. Checklist & Certification'!$G$14)","v":""},{"$f":"IF(A214=\"\",\"\",'MHP Family Income & Rent Limits'!$B$3)","v":""},{"$f":"IF(A214=\"\",\"\",'MHP Family Income & Rent Limits'!$J$3)","v":""},{"$f":"IF(A214=\"\",\"\",'MHP Family Income & Rent Limits'!$E$4)","v":""},{"$f":"IF(A214=\"\",\"\",'MHP Family Income & Rent Limits'!$C$7)","v":""},{"$f":"IF(A214=\"\",\"\",'MHP Family Income & Rent Limits'!$F$8)","v":""},{"$f":"IF(A214=\"\",\"\",'1. Checklist & Certification'!$G$4)","v":""},{"$f":"IF(A214=\"\",\"\",'1. Checklist & Certification'!$K$39)","v":""},{"$f":"IF(A214=\"\",\"\",'1. Checklist & Certification'!$K$43)","v":""},{"$f":"IF(A214=\"\",\"\",'1. Checklist & Certification'!$K$45)","v":""},{"$f":"IF(A214=\"\",\"\",'1. Checklist & Certification'!$K$49)","v":""},{"$f":"IF(A214=\"\",\"\",'1. Checklist & Certification'!$E$66)","v":""},{"$f":"IF(A214=\"\",\"\",'1. Checklist & Certification'!$E$67)","v":""},{"$f":"IF(A214=\"\",\"\",'1. Checklist & Certification'!$E$68)","v":""},{"$f":"IF(A214=\"\",\"\",'1. Checklist & Certification'!$G$66)","v":""},{"$f":"IF(A214=\"\",\"\",'1. Checklist & Certification'!$H$66)","v":""},{"$f":"IF(A214=\"\",\"\",'1. Checklist & Certification'!$I$66)","v":""},{"$f":"IF(A214=\"\",\"\",'1. Checklist & Certification'!$I$67)","v":""},{"$f":"IF(A214=\"\",\"\",'1. Checklist & Certification'!$I$68)","v":""},null,{"$f":"IF(C214=\"\",\"\",HLOOKUP(C214,'MHP Family Income & Rent Limits'!$E$12:$L$26,2,FALSE))","v":""},{"$f":"IF(C214=\"\",\"\",HLOOKUP(C214,'MHP Family Income & Rent Limits'!$E$12:$L$26,3,FALSE))","v":""},{"$f":"IF(C214=\"\",\"\",HLOOKUP(C214,'MHP Family Income & Rent Limits'!$E$12:$L$26,4,FALSE))","v":""},{"$f":"IF(C214=\"\",\"\",HLOOKUP(C214,'MHP Family Income & Rent Limits'!$E$12:$L$26,5,FALSE))","v":""},{"$f":"IF(C214=\"\",\"\",HLOOKUP(C214,'MHP Family Income & Rent Limits'!$E$12:$L$26,6,FALSE))","v":""},{"$f":"IF(C214=\"\",\"\",HLOOKUP(C214,'MHP Family Income & Rent Limits'!$E$12:$L$26,7,FALSE))","v":""},{"$f":"IF(C214=\"\",\"\",HLOOKUP(C214,'MHP Family Income & Rent Limits'!$E$12:$L$26,8,FALSE))","v":""},{"$f":"IF(C214=\"\",\"\",HLOOKUP(C214,'MHP Family Income & Rent Limits'!$E$12:$L$26,9,FALSE))","v":""},{"$f":"IF(C214=\"\",\"\",HLOOKUP(C214,'MHP Family Income & Rent Limits'!$E$12:$L$26,10,FALSE))","v":""},{"$f":"IF(C214=\"\",\"\",HLOOKUP(C214,'MHP Family Income & Rent Limits'!$E$12:$L$26,11,FALSE))","v":""},{"$f":"IF(C214=\"\",\"\",HLOOKUP(C214,'MHP Family Income & Rent Limits'!$E$12:$L$26,12,FALSE))","v":""},{"$f":"IF(C214=\"\",\"\",HLOOKUP(C214,'MHP Family Income & Rent Limits'!$E$12:$L$26,13,FALSE))","v":""},{"$f":"IF(C214=\"\",\"\",HLOOKUP(C214,'MHP Family Income & Rent Limits'!$E$12:$L$26,14,FALSE))","v":""},{"$f":"IF(C214=\"\",\"\",HLOOKUP(C214,'MHP Family Income & Rent Limits'!$E$12:$L$26,15,FALSE))","v":""}]
[{"$f":"IF('2. Assisted & Restricted Units'!A215=\"\",\"\",'2. Assisted & Restricted Units'!A215)","v":""},{"$f":"IF('2. Assisted & Restricted Units'!B215=\"\",\"\",'2. Assisted & Restricted Units'!B215)","v":""},{"$f":"IF('2. Assisted & Restricted Units'!D215=\"\",\"\",'2. Assisted & Restricted Units'!D215)","v":""},{"$f":"IF('2. Assisted & Restricted Units'!E215=\"\",\"\",'2. Assisted & Restricted Units'!E215)","v":""},{"$f":"IF('2. Assisted & Restricted Units'!H215=\"\",\"\",'2. Assisted & Restricted Units'!H215)","v":""},{"$f":"_xlfn.IFS(E215=\"\",\"\",E215>BO215,$BP$6,E215>BN215,$BO$6,E215>BM215,$BN$6,E215>BL215,$BM$6,E215>BK215,$BL$6,E215>BJ215,$BK$6,E215>BI215,$BJ$6,E215>BH215,$BI$6,E215>BG215,$BH$6,E215>BF215,$BG$6,E215>BE215,$BF$6,E215>BD215,$BE$6,E215>BC215,$BD$6,E215>=0,$BC$6)","v":""},{"$f":"IF('2. Assisted & Restricted Units'!T215=\"\",\"\",'2. Assisted & Restricted Units'!T215)","v":""},{"$f":"IF('2. Assisted & Restricted Units'!I215=\"\",\"\",'2. Assisted & Restricted Units'!I215)","v":""},{"$f":"IF('2. Assisted & Restricted Units'!AP215=\"\",\"\",'2. Assisted & Restricted Units'!AP215)","v":0},{"$f":"IF('2. Assisted & Restricted Units'!AT215=\"\",\"\",'2. Assisted & Restricted Units'!AT215)","v":""},0,{"$f":"IF('2. Assisted & Restricted Units'!AV215=\"\",\"\",'2. Assisted & Restricted Units'!AV215)","v":""},{"$f":"IF('2. Assisted & Restricted Units'!L215=\"\",\"\",'2. Assisted & Restricted Units'!L215)","v":""},{"$f":"IF('2. Assisted & Restricted Units'!M215=\"\",\"\",'2. Assisted & Restricted Units'!M215)","v":""},{"$f":"IF('2. Assisted & Restricted Units'!O215=\"\",\"\",'2. Assisted & Restricted Units'!O215)","v":""},{"$f":"IF('2. Assisted & Restricted Units'!P215=\"\",\"\",'2. Assisted & Restricted Units'!P215)","v":""},{"$f":"IF('2. Assisted & Restricted Units'!Q215=\"\",\"\",'2. Assisted & Restricted Units'!Q215)","v":""},{"$f":"IF('2. Assisted & Restricted Units'!R215=\"\",\"\",'2. Assisted & Restricted Units'!R215)","v":""},{"$f":"IF(A215=\"\",\"\",'1. Checklist & Certification'!$K$1)","v":""},{"$f":"IF(A215=\"\",\"\",'1. Checklist & Certification'!$C$62)","v":""},{"$f":"IF(A215=\"\",\"\",'1. Checklist & Certification'!$K$62)","v":""},{"$f":"IF(A215=\"\",\"\",'1. Checklist & Certification'!$C$6)","v":""},{"$f":"IF(A215=\"\",\"\",'1. Checklist & Certification'!$G$4)","v":""},{"$f":"IF(A215=\"\",\"\",'1. Checklist & Certification'!$C$7)","v":""},{"$f":"IF(A215=\"\",\"\",'1. Checklist & Certification'!$C$8)","v":""},{"$f":"IF(A215=\"\",\"\",'1. Checklist & Certification'!$F$7)","v":""},{"$f":"IF(A215=\"\",\"\",'1. Checklist & Certification'!$F$8)","v":""},{"$f":"IF(A215=\"\",\"\",'1. Checklist & Certification'!$B$9)","v":""},{"$f":"IF(A215=\"\",\"\",'1. Checklist & Certification'!$F$9)","v":""},{"$f":"IF(A215=\"\",\"\",'1. Checklist & Certification'!$C$10)","v":""},{"$f":"IF(A215=\"\",\"\",'1. Checklist & Certification'!$C$11)","v":""},{"$f":"IF(A215=\"\",\"\",'1. Checklist & Certification'!$C$12)","v":""},{"$f":"IF(A215=\"\",\"\",'1. Checklist & Certification'!$B$14)","v":""},{"$f":"IF(A215=\"\",\"\",'1. Checklist & Certification'!$E$14)","v":""},{"$f":"IF(B215=\"\",\"\",'1. Checklist & Certification'!$G$14)","v":""},{"$f":"IF(A215=\"\",\"\",'MHP Family Income & Rent Limits'!$B$3)","v":""},{"$f":"IF(A215=\"\",\"\",'MHP Family Income & Rent Limits'!$J$3)","v":""},{"$f":"IF(A215=\"\",\"\",'MHP Family Income & Rent Limits'!$E$4)","v":""},{"$f":"IF(A215=\"\",\"\",'MHP Family Income & Rent Limits'!$C$7)","v":""},{"$f":"IF(A215=\"\",\"\",'MHP Family Income & Rent Limits'!$F$8)","v":""},{"$f":"IF(A215=\"\",\"\",'1. Checklist & Certification'!$G$4)","v":""},{"$f":"IF(A215=\"\",\"\",'1. Checklist & Certification'!$K$39)","v":""},{"$f":"IF(A215=\"\",\"\",'1. Checklist & Certification'!$K$43)","v":""},{"$f":"IF(A215=\"\",\"\",'1. Checklist & Certification'!$K$45)","v":""},{"$f":"IF(A215=\"\",\"\",'1. Checklist & Certification'!$K$49)","v":""},{"$f":"IF(A215=\"\",\"\",'1. Checklist & Certification'!$E$66)","v":""},{"$f":"IF(A215=\"\",\"\",'1. Checklist & Certification'!$E$67)","v":""},{"$f":"IF(A215=\"\",\"\",'1. Checklist & Certification'!$E$68)","v":""},{"$f":"IF(A215=\"\",\"\",'1. Checklist & Certification'!$G$66)","v":""},{"$f":"IF(A215=\"\",\"\",'1. Checklist & Certification'!$H$66)","v":""},{"$f":"IF(A215=\"\",\"\",'1. Checklist & Certification'!$I$66)","v":""},{"$f":"IF(A215=\"\",\"\",'1. Checklist & Certification'!$I$67)","v":""},{"$f":"IF(A215=\"\",\"\",'1. Checklist & Certification'!$I$68)","v":""},null,{"$f":"IF(C215=\"\",\"\",HLOOKUP(C215,'MHP Family Income & Rent Limits'!$E$12:$L$26,2,FALSE))","v":""},{"$f":"IF(C215=\"\",\"\",HLOOKUP(C215,'MHP Family Income & Rent Limits'!$E$12:$L$26,3,FALSE))","v":""},{"$f":"IF(C215=\"\",\"\",HLOOKUP(C215,'MHP Family Income & Rent Limits'!$E$12:$L$26,4,FALSE))","v":""},{"$f":"IF(C215=\"\",\"\",HLOOKUP(C215,'MHP Family Income & Rent Limits'!$E$12:$L$26,5,FALSE))","v":""},{"$f":"IF(C215=\"\",\"\",HLOOKUP(C215,'MHP Family Income & Rent Limits'!$E$12:$L$26,6,FALSE))","v":""},{"$f":"IF(C215=\"\",\"\",HLOOKUP(C215,'MHP Family Income & Rent Limits'!$E$12:$L$26,7,FALSE))","v":""},{"$f":"IF(C215=\"\",\"\",HLOOKUP(C215,'MHP Family Income & Rent Limits'!$E$12:$L$26,8,FALSE))","v":""},{"$f":"IF(C215=\"\",\"\",HLOOKUP(C215,'MHP Family Income & Rent Limits'!$E$12:$L$26,9,FALSE))","v":""},{"$f":"IF(C215=\"\",\"\",HLOOKUP(C215,'MHP Family Income & Rent Limits'!$E$12:$L$26,10,FALSE))","v":""},{"$f":"IF(C215=\"\",\"\",HLOOKUP(C215,'MHP Family Income & Rent Limits'!$E$12:$L$26,11,FALSE))","v":""},{"$f":"IF(C215=\"\",\"\",HLOOKUP(C215,'MHP Family Income & Rent Limits'!$E$12:$L$26,12,FALSE))","v":""},{"$f":"IF(C215=\"\",\"\",HLOOKUP(C215,'MHP Family Income & Rent Limits'!$E$12:$L$26,13,FALSE))","v":""},{"$f":"IF(C215=\"\",\"\",HLOOKUP(C215,'MHP Family Income & Rent Limits'!$E$12:$L$26,14,FALSE))","v":""},{"$f":"IF(C215=\"\",\"\",HLOOKUP(C215,'MHP Family Income & Rent Limits'!$E$12:$L$26,15,FALSE))","v":""}]
[{"$f":"IF('2. Assisted & Restricted Units'!A216=\"\",\"\",'2. Assisted & Restricted Units'!A216)","v":""},{"$f":"IF('2. Assisted & Restricted Units'!B216=\"\",\"\",'2. Assisted & Restricted Units'!B216)","v":""},{"$f":"IF('2. Assisted & Restricted Units'!D216=\"\",\"\",'2. Assisted & Restricted Units'!D216)","v":""},{"$f":"IF('2. Assisted & Restricted Units'!E216=\"\",\"\",'2. Assisted & Restricted Units'!E216)","v":""},{"$f":"IF('2. Assisted & Restricted Units'!H216=\"\",\"\",'2. Assisted & Restricted Units'!H216)","v":""},{"$f":"_xlfn.IFS(E216=\"\",\"\",E216>BO216,$BP$6,E216>BN216,$BO$6,E216>BM216,$BN$6,E216>BL216,$BM$6,E216>BK216,$BL$6,E216>BJ216,$BK$6,E216>BI216,$BJ$6,E216>BH216,$BI$6,E216>BG216,$BH$6,E216>BF216,$BG$6,E216>BE216,$BF$6,E216>BD216,$BE$6,E216>BC216,$BD$6,E216>=0,$BC$6)","v":""},{"$f":"IF('2. Assisted & Restricted Units'!T216=\"\",\"\",'2. Assisted & Restricted Units'!T216)","v":""},{"$f":"IF('2. Assisted & Restricted Units'!I216=\"\",\"\",'2. Assisted & Restricted Units'!I216)","v":""},{"$f":"IF('2. Assisted & Restricted Units'!AP216=\"\",\"\",'2. Assisted & Restricted Units'!AP216)","v":0},{"$f":"IF('2. Assisted & Restricted Units'!AT216=\"\",\"\",'2. Assisted & Restricted Units'!AT216)","v":""},0,{"$f":"IF('2. Assisted & Restricted Units'!AV216=\"\",\"\",'2. Assisted & Restricted Units'!AV216)","v":""},{"$f":"IF('2. Assisted & Restricted Units'!L216=\"\",\"\",'2. Assisted & Restricted Units'!L216)","v":""},{"$f":"IF('2. Assisted & Restricted Units'!M216=\"\",\"\",'2. Assisted & Restricted Units'!M216)","v":""},{"$f":"IF('2. Assisted & Restricted Units'!O216=\"\",\"\",'2. Assisted & Restricted Units'!O216)","v":""},{"$f":"IF('2. Assisted & Restricted Units'!P216=\"\",\"\",'2. Assisted & Restricted Units'!P216)","v":""},{"$f":"IF('2. Assisted & Restricted Units'!Q216=\"\",\"\",'2. Assisted & Restricted Units'!Q216)","v":""},{"$f":"IF('2. Assisted & Restricted Units'!R216=\"\",\"\",'2. Assisted & Restricted Units'!R216)","v":""},{"$f":"IF(A216=\"\",\"\",'1. Checklist & Certification'!$K$1)","v":""},{"$f":"IF(A216=\"\",\"\",'1. Checklist & Certification'!$C$62)","v":""},{"$f":"IF(A216=\"\",\"\",'1. Checklist & Certification'!$K$62)","v":""},{"$f":"IF(A216=\"\",\"\",'1. Checklist & Certification'!$C$6)","v":""},{"$f":"IF(A216=\"\",\"\",'1. Checklist & Certification'!$G$4)","v":""},{"$f":"IF(A216=\"\",\"\",'1. Checklist & Certification'!$C$7)","v":""},{"$f":"IF(A216=\"\",\"\",'1. Checklist & Certification'!$C$8)","v":""},{"$f":"IF(A216=\"\",\"\",'1. Checklist & Certification'!$F$7)","v":""},{"$f":"IF(A216=\"\",\"\",'1. Checklist & Certification'!$F$8)","v":""},{"$f":"IF(A216=\"\",\"\",'1. Checklist & Certification'!$B$9)","v":""},{"$f":"IF(A216=\"\",\"\",'1. Checklist & Certification'!$F$9)","v":""},{"$f":"IF(A216=\"\",\"\",'1. Checklist & Certification'!$C$10)","v":""},{"$f":"IF(A216=\"\",\"\",'1. Checklist & Certification'!$C$11)","v":""},{"$f":"IF(A216=\"\",\"\",'1. Checklist & Certification'!$C$12)","v":""},{"$f":"IF(A216=\"\",\"\",'1. Checklist & Certification'!$B$14)","v":""},{"$f":"IF(A216=\"\",\"\",'1. Checklist & Certification'!$E$14)","v":""},{"$f":"IF(B216=\"\",\"\",'1. Checklist & Certification'!$G$14)","v":""},{"$f":"IF(A216=\"\",\"\",'MHP Family Income & Rent Limits'!$B$3)","v":""},{"$f":"IF(A216=\"\",\"\",'MHP Family Income & Rent Limits'!$J$3)","v":""},{"$f":"IF(A216=\"\",\"\",'MHP Family Income & Rent Limits'!$E$4)","v":""},{"$f":"IF(A216=\"\",\"\",'MHP Family Income & Rent Limits'!$C$7)","v":""},{"$f":"IF(A216=\"\",\"\",'MHP Family Income & Rent Limits'!$F$8)","v":""},{"$f":"IF(A216=\"\",\"\",'1. Checklist & Certification'!$G$4)","v":""},{"$f":"IF(A216=\"\",\"\",'1. Checklist & Certification'!$K$39)","v":""},{"$f":"IF(A216=\"\",\"\",'1. Checklist & Certification'!$K$43)","v":""},{"$f":"IF(A216=\"\",\"\",'1. Checklist & Certification'!$K$45)","v":""},{"$f":"IF(A216=\"\",\"\",'1. Checklist & Certification'!$K$49)","v":""},{"$f":"IF(A216=\"\",\"\",'1. Checklist & Certification'!$E$66)","v":""},{"$f":"IF(A216=\"\",\"\",'1. Checklist & Certification'!$E$67)","v":""},{"$f":"IF(A216=\"\",\"\",'1. Checklist & Certification'!$E$68)","v":""},{"$f":"IF(A216=\"\",\"\",'1. Checklist & Certification'!$G$66)","v":""},{"$f":"IF(A216=\"\",\"\",'1. Checklist & Certification'!$H$66)","v":""},{"$f":"IF(A216=\"\",\"\",'1. Checklist & Certification'!$I$66)","v":""},{"$f":"IF(A216=\"\",\"\",'1. Checklist & Certification'!$I$67)","v":""},{"$f":"IF(A216=\"\",\"\",'1. Checklist & Certification'!$I$68)","v":""},null,{"$f":"IF(C216=\"\",\"\",HLOOKUP(C216,'MHP Family Income & Rent Limits'!$E$12:$L$26,2,FALSE))","v":""},{"$f":"IF(C216=\"\",\"\",HLOOKUP(C216,'MHP Family Income & Rent Limits'!$E$12:$L$26,3,FALSE))","v":""},{"$f":"IF(C216=\"\",\"\",HLOOKUP(C216,'MHP Family Income & Rent Limits'!$E$12:$L$26,4,FALSE))","v":""},{"$f":"IF(C216=\"\",\"\",HLOOKUP(C216,'MHP Family Income & Rent Limits'!$E$12:$L$26,5,FALSE))","v":""},{"$f":"IF(C216=\"\",\"\",HLOOKUP(C216,'MHP Family Income & Rent Limits'!$E$12:$L$26,6,FALSE))","v":""},{"$f":"IF(C216=\"\",\"\",HLOOKUP(C216,'MHP Family Income & Rent Limits'!$E$12:$L$26,7,FALSE))","v":""},{"$f":"IF(C216=\"\",\"\",HLOOKUP(C216,'MHP Family Income & Rent Limits'!$E$12:$L$26,8,FALSE))","v":""},{"$f":"IF(C216=\"\",\"\",HLOOKUP(C216,'MHP Family Income & Rent Limits'!$E$12:$L$26,9,FALSE))","v":""},{"$f":"IF(C216=\"\",\"\",HLOOKUP(C216,'MHP Family Income & Rent Limits'!$E$12:$L$26,10,FALSE))","v":""},{"$f":"IF(C216=\"\",\"\",HLOOKUP(C216,'MHP Family Income & Rent Limits'!$E$12:$L$26,11,FALSE))","v":""},{"$f":"IF(C216=\"\",\"\",HLOOKUP(C216,'MHP Family Income & Rent Limits'!$E$12:$L$26,12,FALSE))","v":""},{"$f":"IF(C216=\"\",\"\",HLOOKUP(C216,'MHP Family Income & Rent Limits'!$E$12:$L$26,13,FALSE))","v":""},{"$f":"IF(C216=\"\",\"\",HLOOKUP(C216,'MHP Family Income & Rent Limits'!$E$12:$L$26,14,FALSE))","v":""},{"$f":"IF(C216=\"\",\"\",HLOOKUP(C216,'MHP Family Income & Rent Limits'!$E$12:$L$26,15,FALSE))","v":""}]
[{"$f":"IF('2. Assisted & Restricted Units'!A217=\"\",\"\",'2. Assisted & Restricted Units'!A217)","v":""},{"$f":"IF('2. Assisted & Restricted Units'!B217=\"\",\"\",'2. Assisted & Restricted Units'!B217)","v":""},{"$f":"IF('2. Assisted & Restricted Units'!D217=\"\",\"\",'2. Assisted & Restricted Units'!D217)","v":""},{"$f":"IF('2. Assisted & Restricted Units'!E217=\"\",\"\",'2. Assisted & Restricted Units'!E217)","v":""},{"$f":"IF('2. Assisted & Restricted Units'!H217=\"\",\"\",'2. Assisted & Restricted Units'!H217)","v":""},{"$f":"_xlfn.IFS(E217=\"\",\"\",E217>BO217,$BP$6,E217>BN217,$BO$6,E217>BM217,$BN$6,E217>BL217,$BM$6,E217>BK217,$BL$6,E217>BJ217,$BK$6,E217>BI217,$BJ$6,E217>BH217,$BI$6,E217>BG217,$BH$6,E217>BF217,$BG$6,E217>BE217,$BF$6,E217>BD217,$BE$6,E217>BC217,$BD$6,E217>=0,$BC$6)","v":""},{"$f":"IF('2. Assisted & Restricted Units'!T217=\"\",\"\",'2. Assisted & Restricted Units'!T217)","v":""},{"$f":"IF('2. Assisted & Restricted Units'!I217=\"\",\"\",'2. Assisted & Restricted Units'!I217)","v":""},{"$f":"IF('2. Assisted & Restricted Units'!AP217=\"\",\"\",'2. Assisted & Restricted Units'!AP217)","v":0},{"$f":"IF('2. Assisted & Restricted Units'!AT217=\"\",\"\",'2. Assisted & Restricted Units'!AT217)","v":""},0,{"$f":"IF('2. Assisted & Restricted Units'!AV217=\"\",\"\",'2. Assisted & Restricted Units'!AV217)","v":""},{"$f":"IF('2. Assisted & Restricted Units'!L217=\"\",\"\",'2. Assisted & Restricted Units'!L217)","v":""},{"$f":"IF('2. Assisted & Restricted Units'!M217=\"\",\"\",'2. Assisted & Restricted Units'!M217)","v":""},{"$f":"IF('2. Assisted & Restricted Units'!O217=\"\",\"\",'2. Assisted & Restricted Units'!O217)","v":""},{"$f":"IF('2. Assisted & Restricted Units'!P217=\"\",\"\",'2. Assisted & Restricted Units'!P217)","v":""},{"$f":"IF('2. Assisted & Restricted Units'!Q217=\"\",\"\",'2. Assisted & Restricted Units'!Q217)","v":""},{"$f":"IF('2. Assisted & Restricted Units'!R217=\"\",\"\",'2. Assisted & Restricted Units'!R217)","v":""},{"$f":"IF(A217=\"\",\"\",'1. Checklist & Certification'!$K$1)","v":""},{"$f":"IF(A217=\"\",\"\",'1. Checklist & Certification'!$C$62)","v":""},{"$f":"IF(A217=\"\",\"\",'1. Checklist & Certification'!$K$62)","v":""},{"$f":"IF(A217=\"\",\"\",'1. Checklist & Certification'!$C$6)","v":""},{"$f":"IF(A217=\"\",\"\",'1. Checklist & Certification'!$G$4)","v":""},{"$f":"IF(A217=\"\",\"\",'1. Checklist & Certification'!$C$7)","v":""},{"$f":"IF(A217=\"\",\"\",'1. Checklist & Certification'!$C$8)","v":""},{"$f":"IF(A217=\"\",\"\",'1. Checklist & Certification'!$F$7)","v":""},{"$f":"IF(A217=\"\",\"\",'1. Checklist & Certification'!$F$8)","v":""},{"$f":"IF(A217=\"\",\"\",'1. Checklist & Certification'!$B$9)","v":""},{"$f":"IF(A217=\"\",\"\",'1. Checklist & Certification'!$F$9)","v":""},{"$f":"IF(A217=\"\",\"\",'1. Checklist & Certification'!$C$10)","v":""},{"$f":"IF(A217=\"\",\"\",'1. Checklist & Certification'!$C$11)","v":""},{"$f":"IF(A217=\"\",\"\",'1. Checklist & Certification'!$C$12)","v":""},{"$f":"IF(A217=\"\",\"\",'1. Checklist & Certification'!$B$14)","v":""},{"$f":"IF(A217=\"\",\"\",'1. Checklist & Certification'!$E$14)","v":""},{"$f":"IF(B217=\"\",\"\",'1. Checklist & Certification'!$G$14)","v":""},{"$f":"IF(A217=\"\",\"\",'MHP Family Income & Rent Limits'!$B$3)","v":""},{"$f":"IF(A217=\"\",\"\",'MHP Family Income & Rent Limits'!$J$3)","v":""},{"$f":"IF(A217=\"\",\"\",'MHP Family Income & Rent Limits'!$E$4)","v":""},{"$f":"IF(A217=\"\",\"\",'MHP Family Income & Rent Limits'!$C$7)","v":""},{"$f":"IF(A217=\"\",\"\",'MHP Family Income & Rent Limits'!$F$8)","v":""},{"$f":"IF(A217=\"\",\"\",'1. Checklist & Certification'!$G$4)","v":""},{"$f":"IF(A217=\"\",\"\",'1. Checklist & Certification'!$K$39)","v":""},{"$f":"IF(A217=\"\",\"\",'1. Checklist & Certification'!$K$43)","v":""},{"$f":"IF(A217=\"\",\"\",'1. Checklist & Certification'!$K$45)","v":""},{"$f":"IF(A217=\"\",\"\",'1. Checklist & Certification'!$K$49)","v":""},{"$f":"IF(A217=\"\",\"\",'1. Checklist & Certification'!$E$66)","v":""},{"$f":"IF(A217=\"\",\"\",'1. Checklist & Certification'!$E$67)","v":""},{"$f":"IF(A217=\"\",\"\",'1. Checklist & Certification'!$E$68)","v":""},{"$f":"IF(A217=\"\",\"\",'1. Checklist & Certification'!$G$66)","v":""},{"$f":"IF(A217=\"\",\"\",'1. Checklist & Certification'!$H$66)","v":""},{"$f":"IF(A217=\"\",\"\",'1. Checklist & Certification'!$I$66)","v":""},{"$f":"IF(A217=\"\",\"\",'1. Checklist & Certification'!$I$67)","v":""},{"$f":"IF(A217=\"\",\"\",'1. Checklist & Certification'!$I$68)","v":""},null,{"$f":"IF(C217=\"\",\"\",HLOOKUP(C217,'MHP Family Income & Rent Limits'!$E$12:$L$26,2,FALSE))","v":""},{"$f":"IF(C217=\"\",\"\",HLOOKUP(C217,'MHP Family Income & Rent Limits'!$E$12:$L$26,3,FALSE))","v":""},{"$f":"IF(C217=\"\",\"\",HLOOKUP(C217,'MHP Family Income & Rent Limits'!$E$12:$L$26,4,FALSE))","v":""},{"$f":"IF(C217=\"\",\"\",HLOOKUP(C217,'MHP Family Income & Rent Limits'!$E$12:$L$26,5,FALSE))","v":""},{"$f":"IF(C217=\"\",\"\",HLOOKUP(C217,'MHP Family Income & Rent Limits'!$E$12:$L$26,6,FALSE))","v":""},{"$f":"IF(C217=\"\",\"\",HLOOKUP(C217,'MHP Family Income & Rent Limits'!$E$12:$L$26,7,FALSE))","v":""},{"$f":"IF(C217=\"\",\"\",HLOOKUP(C217,'MHP Family Income & Rent Limits'!$E$12:$L$26,8,FALSE))","v":""},{"$f":"IF(C217=\"\",\"\",HLOOKUP(C217,'MHP Family Income & Rent Limits'!$E$12:$L$26,9,FALSE))","v":""},{"$f":"IF(C217=\"\",\"\",HLOOKUP(C217,'MHP Family Income & Rent Limits'!$E$12:$L$26,10,FALSE))","v":""},{"$f":"IF(C217=\"\",\"\",HLOOKUP(C217,'MHP Family Income & Rent Limits'!$E$12:$L$26,11,FALSE))","v":""},{"$f":"IF(C217=\"\",\"\",HLOOKUP(C217,'MHP Family Income & Rent Limits'!$E$12:$L$26,12,FALSE))","v":""},{"$f":"IF(C217=\"\",\"\",HLOOKUP(C217,'MHP Family Income & Rent Limits'!$E$12:$L$26,13,FALSE))","v":""},{"$f":"IF(C217=\"\",\"\",HLOOKUP(C217,'MHP Family Income & Rent Limits'!$E$12:$L$26,14,FALSE))","v":""},{"$f":"IF(C217=\"\",\"\",HLOOKUP(C217,'MHP Family Income & Rent Limits'!$E$12:$L$26,15,FALSE))","v":""}]
[{"$f":"IF('2. Assisted & Restricted Units'!A218=\"\",\"\",'2. Assisted & Restricted Units'!A218)","v":""},{"$f":"IF('2. Assisted & Restricted Units'!B218=\"\",\"\",'2. Assisted & Restricted Units'!B218)","v":""},{"$f":"IF('2. Assisted & Restricted Units'!D218=\"\",\"\",'2. Assisted & Restricted Units'!D218)","v":""},{"$f":"IF('2. Assisted & Restricted Units'!E218=\"\",\"\",'2. Assisted & Restricted Units'!E218)","v":""},{"$f":"IF('2. Assisted & Restricted Units'!H218=\"\",\"\",'2. Assisted & Restricted Units'!H218)","v":""},{"$f":"_xlfn.IFS(E218=\"\",\"\",E218>BO218,$BP$6,E218>BN218,$BO$6,E218>BM218,$BN$6,E218>BL218,$BM$6,E218>BK218,$BL$6,E218>BJ218,$BK$6,E218>BI218,$BJ$6,E218>BH218,$BI$6,E218>BG218,$BH$6,E218>BF218,$BG$6,E218>BE218,$BF$6,E218>BD218,$BE$6,E218>BC218,$BD$6,E218>=0,$BC$6)","v":""},{"$f":"IF('2. Assisted & Restricted Units'!T218=\"\",\"\",'2. Assisted & Restricted Units'!T218)","v":""},{"$f":"IF('2. Assisted & Restricted Units'!I218=\"\",\"\",'2. Assisted & Restricted Units'!I218)","v":""},{"$f":"IF('2. Assisted & Restricted Units'!AP218=\"\",\"\",'2. Assisted & Restricted Units'!AP218)","v":0},{"$f":"IF('2. Assisted & Restricted Units'!AT218=\"\",\"\",'2. Assisted & Restricted Units'!AT218)","v":""},0,{"$f":"IF('2. Assisted & Restricted Units'!AV218=\"\",\"\",'2. Assisted & Restricted Units'!AV218)","v":""},{"$f":"IF('2. Assisted & Restricted Units'!L218=\"\",\"\",'2. Assisted & Restricted Units'!L218)","v":""},{"$f":"IF('2. Assisted & Restricted Units'!M218=\"\",\"\",'2. Assisted & Restricted Units'!M218)","v":""},{"$f":"IF('2. Assisted & Restricted Units'!O218=\"\",\"\",'2. Assisted & Restricted Units'!O218)","v":""},{"$f":"IF('2. Assisted & Restricted Units'!P218=\"\",\"\",'2. Assisted & Restricted Units'!P218)","v":""},{"$f":"IF('2. Assisted & Restricted Units'!Q218=\"\",\"\",'2. Assisted & Restricted Units'!Q218)","v":""},{"$f":"IF('2. Assisted & Restricted Units'!R218=\"\",\"\",'2. Assisted & Restricted Units'!R218)","v":""},{"$f":"IF(A218=\"\",\"\",'1. Checklist & Certification'!$K$1)","v":""},{"$f":"IF(A218=\"\",\"\",'1. Checklist & Certification'!$C$62)","v":""},{"$f":"IF(A218=\"\",\"\",'1. Checklist & Certification'!$K$62)","v":""},{"$f":"IF(A218=\"\",\"\",'1. Checklist & Certification'!$C$6)","v":""},{"$f":"IF(A218=\"\",\"\",'1. Checklist & Certification'!$G$4)","v":""},{"$f":"IF(A218=\"\",\"\",'1. Checklist & Certification'!$C$7)","v":""},{"$f":"IF(A218=\"\",\"\",'1. Checklist & Certification'!$C$8)","v":""},{"$f":"IF(A218=\"\",\"\",'1. Checklist & Certification'!$F$7)","v":""},{"$f":"IF(A218=\"\",\"\",'1. Checklist & Certification'!$F$8)","v":""},{"$f":"IF(A218=\"\",\"\",'1. Checklist & Certification'!$B$9)","v":""},{"$f":"IF(A218=\"\",\"\",'1. Checklist & Certification'!$F$9)","v":""},{"$f":"IF(A218=\"\",\"\",'1. Checklist & Certification'!$C$10)","v":""},{"$f":"IF(A218=\"\",\"\",'1. Checklist & Certification'!$C$11)","v":""},{"$f":"IF(A218=\"\",\"\",'1. Checklist & Certification'!$C$12)","v":""},{"$f":"IF(A218=\"\",\"\",'1. Checklist & Certification'!$B$14)","v":""},{"$f":"IF(A218=\"\",\"\",'1. Checklist & Certification'!$E$14)","v":""},{"$f":"IF(B218=\"\",\"\",'1. Checklist & Certification'!$G$14)","v":""},{"$f":"IF(A218=\"\",\"\",'MHP Family Income & Rent Limits'!$B$3)","v":""},{"$f":"IF(A218=\"\",\"\",'MHP Family Income & Rent Limits'!$J$3)","v":""},{"$f":"IF(A218=\"\",\"\",'MHP Family Income & Rent Limits'!$E$4)","v":""},{"$f":"IF(A218=\"\",\"\",'MHP Family Income & Rent Limits'!$C$7)","v":""},{"$f":"IF(A218=\"\",\"\",'MHP Family Income & Rent Limits'!$F$8)","v":""},{"$f":"IF(A218=\"\",\"\",'1. Checklist & Certification'!$G$4)","v":""},{"$f":"IF(A218=\"\",\"\",'1. Checklist & Certification'!$K$39)","v":""},{"$f":"IF(A218=\"\",\"\",'1. Checklist & Certification'!$K$43)","v":""},{"$f":"IF(A218=\"\",\"\",'1. Checklist & Certification'!$K$45)","v":""},{"$f":"IF(A218=\"\",\"\",'1. Checklist & Certification'!$K$49)","v":""},{"$f":"IF(A218=\"\",\"\",'1. Checklist & Certification'!$E$66)","v":""},{"$f":"IF(A218=\"\",\"\",'1. Checklist & Certification'!$E$67)","v":""},{"$f":"IF(A218=\"\",\"\",'1. Checklist & Certification'!$E$68)","v":""},{"$f":"IF(A218=\"\",\"\",'1. Checklist & Certification'!$G$66)","v":""},{"$f":"IF(A218=\"\",\"\",'1. Checklist & Certification'!$H$66)","v":""},{"$f":"IF(A218=\"\",\"\",'1. Checklist & Certification'!$I$66)","v":""},{"$f":"IF(A218=\"\",\"\",'1. Checklist & Certification'!$I$67)","v":""},{"$f":"IF(A218=\"\",\"\",'1. Checklist & Certification'!$I$68)","v":""},null,{"$f":"IF(C218=\"\",\"\",HLOOKUP(C218,'MHP Family Income & Rent Limits'!$E$12:$L$26,2,FALSE))","v":""},{"$f":"IF(C218=\"\",\"\",HLOOKUP(C218,'MHP Family Income & Rent Limits'!$E$12:$L$26,3,FALSE))","v":""},{"$f":"IF(C218=\"\",\"\",HLOOKUP(C218,'MHP Family Income & Rent Limits'!$E$12:$L$26,4,FALSE))","v":""},{"$f":"IF(C218=\"\",\"\",HLOOKUP(C218,'MHP Family Income & Rent Limits'!$E$12:$L$26,5,FALSE))","v":""},{"$f":"IF(C218=\"\",\"\",HLOOKUP(C218,'MHP Family Income & Rent Limits'!$E$12:$L$26,6,FALSE))","v":""},{"$f":"IF(C218=\"\",\"\",HLOOKUP(C218,'MHP Family Income & Rent Limits'!$E$12:$L$26,7,FALSE))","v":""},{"$f":"IF(C218=\"\",\"\",HLOOKUP(C218,'MHP Family Income & Rent Limits'!$E$12:$L$26,8,FALSE))","v":""},{"$f":"IF(C218=\"\",\"\",HLOOKUP(C218,'MHP Family Income & Rent Limits'!$E$12:$L$26,9,FALSE))","v":""},{"$f":"IF(C218=\"\",\"\",HLOOKUP(C218,'MHP Family Income & Rent Limits'!$E$12:$L$26,10,FALSE))","v":""},{"$f":"IF(C218=\"\",\"\",HLOOKUP(C218,'MHP Family Income & Rent Limits'!$E$12:$L$26,11,FALSE))","v":""},{"$f":"IF(C218=\"\",\"\",HLOOKUP(C218,'MHP Family Income & Rent Limits'!$E$12:$L$26,12,FALSE))","v":""},{"$f":"IF(C218=\"\",\"\",HLOOKUP(C218,'MHP Family Income & Rent Limits'!$E$12:$L$26,13,FALSE))","v":""},{"$f":"IF(C218=\"\",\"\",HLOOKUP(C218,'MHP Family Income & Rent Limits'!$E$12:$L$26,14,FALSE))","v":""},{"$f":"IF(C218=\"\",\"\",HLOOKUP(C218,'MHP Family Income & Rent Limits'!$E$12:$L$26,15,FALSE))","v":""}]
[{"$f":"IF('2. Assisted & Restricted Units'!A219=\"\",\"\",'2. Assisted & Restricted Units'!A219)","v":""},{"$f":"IF('2. Assisted & Restricted Units'!B219=\"\",\"\",'2. Assisted & Restricted Units'!B219)","v":""},{"$f":"IF('2. Assisted & Restricted Units'!D219=\"\",\"\",'2. Assisted & Restricted Units'!D219)","v":""},{"$f":"IF('2. Assisted & Restricted Units'!E219=\"\",\"\",'2. Assisted & Restricted Units'!E219)","v":""},{"$f":"IF('2. Assisted & Restricted Units'!H219=\"\",\"\",'2. Assisted & Restricted Units'!H219)","v":""},{"$f":"_xlfn.IFS(E219=\"\",\"\",E219>BO219,$BP$6,E219>BN219,$BO$6,E219>BM219,$BN$6,E219>BL219,$BM$6,E219>BK219,$BL$6,E219>BJ219,$BK$6,E219>BI219,$BJ$6,E219>BH219,$BI$6,E219>BG219,$BH$6,E219>BF219,$BG$6,E219>BE219,$BF$6,E219>BD219,$BE$6,E219>BC219,$BD$6,E219>=0,$BC$6)","v":""},{"$f":"IF('2. Assisted & Restricted Units'!T219=\"\",\"\",'2. Assisted & Restricted Units'!T219)","v":""},{"$f":"IF('2. Assisted & Restricted Units'!I219=\"\",\"\",'2. Assisted & Restricted Units'!I219)","v":""},{"$f":"IF('2. Assisted & Restricted Units'!AP219=\"\",\"\",'2. Assisted & Restricted Units'!AP219)","v":0},{"$f":"IF('2. Assisted & Restricted Units'!AT219=\"\",\"\",'2. Assisted & Restricted Units'!AT219)","v":""},0,{"$f":"IF('2. Assisted & Restricted Units'!AV219=\"\",\"\",'2. Assisted & Restricted Units'!AV219)","v":""},{"$f":"IF('2. Assisted & Restricted Units'!L219=\"\",\"\",'2. Assisted & Restricted Units'!L219)","v":""},{"$f":"IF('2. Assisted & Restricted Units'!M219=\"\",\"\",'2. Assisted & Restricted Units'!M219)","v":""},{"$f":"IF('2. Assisted & Restricted Units'!O219=\"\",\"\",'2. Assisted & Restricted Units'!O219)","v":""},{"$f":"IF('2. Assisted & Restricted Units'!P219=\"\",\"\",'2. Assisted & Restricted Units'!P219)","v":""},{"$f":"IF('2. Assisted & Restricted Units'!Q219=\"\",\"\",'2. Assisted & Restricted Units'!Q219)","v":""},{"$f":"IF('2. Assisted & Restricted Units'!R219=\"\",\"\",'2. Assisted & Restricted Units'!R219)","v":""},{"$f":"IF(A219=\"\",\"\",'1. Checklist & Certification'!$K$1)","v":""},{"$f":"IF(A219=\"\",\"\",'1. Checklist & Certification'!$C$62)","v":""},{"$f":"IF(A219=\"\",\"\",'1. Checklist & Certification'!$K$62)","v":""},{"$f":"IF(A219=\"\",\"\",'1. Checklist & Certification'!$C$6)","v":""},{"$f":"IF(A219=\"\",\"\",'1. Checklist & Certification'!$G$4)","v":""},{"$f":"IF(A219=\"\",\"\",'1. Checklist & Certification'!$C$7)","v":""},{"$f":"IF(A219=\"\",\"\",'1. Checklist & Certification'!$C$8)","v":""},{"$f":"IF(A219=\"\",\"\",'1. Checklist & Certification'!$F$7)","v":""},{"$f":"IF(A219=\"\",\"\",'1. Checklist & Certification'!$F$8)","v":""},{"$f":"IF(A219=\"\",\"\",'1. Checklist & Certification'!$B$9)","v":""},{"$f":"IF(A219=\"\",\"\",'1. Checklist & Certification'!$F$9)","v":""},{"$f":"IF(A219=\"\",\"\",'1. Checklist & Certification'!$C$10)","v":""},{"$f":"IF(A219=\"\",\"\",'1. Checklist & Certification'!$C$11)","v":""},{"$f":"IF(A219=\"\",\"\",'1. Checklist & Certification'!$C$12)","v":""},{"$f":"IF(A219=\"\",\"\",'1. Checklist & Certification'!$B$14)","v":""},{"$f":"IF(A219=\"\",\"\",'1. Checklist & Certification'!$E$14)","v":""},{"$f":"IF(B219=\"\",\"\",'1. Checklist & Certification'!$G$14)","v":""},{"$f":"IF(A219=\"\",\"\",'MHP Family Income & Rent Limits'!$B$3)","v":""},{"$f":"IF(A219=\"\",\"\",'MHP Family Income & Rent Limits'!$J$3)","v":""},{"$f":"IF(A219=\"\",\"\",'MHP Family Income & Rent Limits'!$E$4)","v":""},{"$f":"IF(A219=\"\",\"\",'MHP Family Income & Rent Limits'!$C$7)","v":""},{"$f":"IF(A219=\"\",\"\",'MHP Family Income & Rent Limits'!$F$8)","v":""},{"$f":"IF(A219=\"\",\"\",'1. Checklist & Certification'!$G$4)","v":""},{"$f":"IF(A219=\"\",\"\",'1. Checklist & Certification'!$K$39)","v":""},{"$f":"IF(A219=\"\",\"\",'1. Checklist & Certification'!$K$43)","v":""},{"$f":"IF(A219=\"\",\"\",'1. Checklist & Certification'!$K$45)","v":""},{"$f":"IF(A219=\"\",\"\",'1. Checklist & Certification'!$K$49)","v":""},{"$f":"IF(A219=\"\",\"\",'1. Checklist & Certification'!$E$66)","v":""},{"$f":"IF(A219=\"\",\"\",'1. Checklist & Certification'!$E$67)","v":""},{"$f":"IF(A219=\"\",\"\",'1. Checklist & Certification'!$E$68)","v":""},{"$f":"IF(A219=\"\",\"\",'1. Checklist & Certification'!$G$66)","v":""},{"$f":"IF(A219=\"\",\"\",'1. Checklist & Certification'!$H$66)","v":""},{"$f":"IF(A219=\"\",\"\",'1. Checklist & Certification'!$I$66)","v":""},{"$f":"IF(A219=\"\",\"\",'1. Checklist & Certification'!$I$67)","v":""},{"$f":"IF(A219=\"\",\"\",'1. Checklist & Certification'!$I$68)","v":""},null,{"$f":"IF(C219=\"\",\"\",HLOOKUP(C219,'MHP Family Income & Rent Limits'!$E$12:$L$26,2,FALSE))","v":""},{"$f":"IF(C219=\"\",\"\",HLOOKUP(C219,'MHP Family Income & Rent Limits'!$E$12:$L$26,3,FALSE))","v":""},{"$f":"IF(C219=\"\",\"\",HLOOKUP(C219,'MHP Family Income & Rent Limits'!$E$12:$L$26,4,FALSE))","v":""},{"$f":"IF(C219=\"\",\"\",HLOOKUP(C219,'MHP Family Income & Rent Limits'!$E$12:$L$26,5,FALSE))","v":""},{"$f":"IF(C219=\"\",\"\",HLOOKUP(C219,'MHP Family Income & Rent Limits'!$E$12:$L$26,6,FALSE))","v":""},{"$f":"IF(C219=\"\",\"\",HLOOKUP(C219,'MHP Family Income & Rent Limits'!$E$12:$L$26,7,FALSE))","v":""},{"$f":"IF(C219=\"\",\"\",HLOOKUP(C219,'MHP Family Income & Rent Limits'!$E$12:$L$26,8,FALSE))","v":""},{"$f":"IF(C219=\"\",\"\",HLOOKUP(C219,'MHP Family Income & Rent Limits'!$E$12:$L$26,9,FALSE))","v":""},{"$f":"IF(C219=\"\",\"\",HLOOKUP(C219,'MHP Family Income & Rent Limits'!$E$12:$L$26,10,FALSE))","v":""},{"$f":"IF(C219=\"\",\"\",HLOOKUP(C219,'MHP Family Income & Rent Limits'!$E$12:$L$26,11,FALSE))","v":""},{"$f":"IF(C219=\"\",\"\",HLOOKUP(C219,'MHP Family Income & Rent Limits'!$E$12:$L$26,12,FALSE))","v":""},{"$f":"IF(C219=\"\",\"\",HLOOKUP(C219,'MHP Family Income & Rent Limits'!$E$12:$L$26,13,FALSE))","v":""},{"$f":"IF(C219=\"\",\"\",HLOOKUP(C219,'MHP Family Income & Rent Limits'!$E$12:$L$26,14,FALSE))","v":""},{"$f":"IF(C219=\"\",\"\",HLOOKUP(C219,'MHP Family Income & Rent Limits'!$E$12:$L$26,15,FALSE))","v":""}]
[{"$f":"IF('2. Assisted & Restricted Units'!A220=\"\",\"\",'2. Assisted & Restricted Units'!A220)","v":""},{"$f":"IF('2. Assisted & Restricted Units'!B220=\"\",\"\",'2. Assisted & Restricted Units'!B220)","v":""},{"$f":"IF('2. Assisted & Restricted Units'!D220=\"\",\"\",'2. Assisted & Restricted Units'!D220)","v":""},{"$f":"IF('2. Assisted & Restricted Units'!E220=\"\",\"\",'2. Assisted & Restricted Units'!E220)","v":""},{"$f":"IF('2. Assisted & Restricted Units'!H220=\"\",\"\",'2. Assisted & Restricted Units'!H220)","v":""},{"$f":"_xlfn.IFS(E220=\"\",\"\",E220>BO220,$BP$6,E220>BN220,$BO$6,E220>BM220,$BN$6,E220>BL220,$BM$6,E220>BK220,$BL$6,E220>BJ220,$BK$6,E220>BI220,$BJ$6,E220>BH220,$BI$6,E220>BG220,$BH$6,E220>BF220,$BG$6,E220>BE220,$BF$6,E220>BD220,$BE$6,E220>BC220,$BD$6,E220>=0,$BC$6)","v":""},{"$f":"IF('2. Assisted & Restricted Units'!T220=\"\",\"\",'2. Assisted & Restricted Units'!T220)","v":""},{"$f":"IF('2. Assisted & Restricted Units'!I220=\"\",\"\",'2. Assisted & Restricted Units'!I220)","v":""},{"$f":"IF('2. Assisted & Restricted Units'!AP220=\"\",\"\",'2. Assisted & Restricted Units'!AP220)","v":0},{"$f":"IF('2. Assisted & Restricted Units'!AT220=\"\",\"\",'2. Assisted & Restricted Units'!AT220)","v":""},0,{"$f":"IF('2. Assisted & Restricted Units'!AV220=\"\",\"\",'2. Assisted & Restricted Units'!AV220)","v":""},{"$f":"IF('2. Assisted & Restricted Units'!L220=\"\",\"\",'2. Assisted & Restricted Units'!L220)","v":""},{"$f":"IF('2. Assisted & Restricted Units'!M220=\"\",\"\",'2. Assisted & Restricted Units'!M220)","v":""},{"$f":"IF('2. Assisted & Restricted Units'!O220=\"\",\"\",'2. Assisted & Restricted Units'!O220)","v":""},{"$f":"IF('2. Assisted & Restricted Units'!P220=\"\",\"\",'2. Assisted & Restricted Units'!P220)","v":""},{"$f":"IF('2. Assisted & Restricted Units'!Q220=\"\",\"\",'2. Assisted & Restricted Units'!Q220)","v":""},{"$f":"IF('2. Assisted & Restricted Units'!R220=\"\",\"\",'2. Assisted & Restricted Units'!R220)","v":""},{"$f":"IF(A220=\"\",\"\",'1. Checklist & Certification'!$K$1)","v":""},{"$f":"IF(A220=\"\",\"\",'1. Checklist & Certification'!$C$62)","v":""},{"$f":"IF(A220=\"\",\"\",'1. Checklist & Certification'!$K$62)","v":""},{"$f":"IF(A220=\"\",\"\",'1. Checklist & Certification'!$C$6)","v":""},{"$f":"IF(A220=\"\",\"\",'1. Checklist & Certification'!$G$4)","v":""},{"$f":"IF(A220=\"\",\"\",'1. Checklist & Certification'!$C$7)","v":""},{"$f":"IF(A220=\"\",\"\",'1. Checklist & Certification'!$C$8)","v":""},{"$f":"IF(A220=\"\",\"\",'1. Checklist & Certification'!$F$7)","v":""},{"$f":"IF(A220=\"\",\"\",'1. Checklist & Certification'!$F$8)","v":""},{"$f":"IF(A220=\"\",\"\",'1. Checklist & Certification'!$B$9)","v":""},{"$f":"IF(A220=\"\",\"\",'1. Checklist & Certification'!$F$9)","v":""},{"$f":"IF(A220=\"\",\"\",'1. Checklist & Certification'!$C$10)","v":""},{"$f":"IF(A220=\"\",\"\",'1. Checklist & Certification'!$C$11)","v":""},{"$f":"IF(A220=\"\",\"\",'1. Checklist & Certification'!$C$12)","v":""},{"$f":"IF(A220=\"\",\"\",'1. Checklist & Certification'!$B$14)","v":""},{"$f":"IF(A220=\"\",\"\",'1. Checklist & Certification'!$E$14)","v":""},{"$f":"IF(B220=\"\",\"\",'1. Checklist & Certification'!$G$14)","v":""},{"$f":"IF(A220=\"\",\"\",'MHP Family Income & Rent Limits'!$B$3)","v":""},{"$f":"IF(A220=\"\",\"\",'MHP Family Income & Rent Limits'!$J$3)","v":""},{"$f":"IF(A220=\"\",\"\",'MHP Family Income & Rent Limits'!$E$4)","v":""},{"$f":"IF(A220=\"\",\"\",'MHP Family Income & Rent Limits'!$C$7)","v":""},{"$f":"IF(A220=\"\",\"\",'MHP Family Income & Rent Limits'!$F$8)","v":""},{"$f":"IF(A220=\"\",\"\",'1. Checklist & Certification'!$G$4)","v":""},{"$f":"IF(A220=\"\",\"\",'1. Checklist & Certification'!$K$39)","v":""},{"$f":"IF(A220=\"\",\"\",'1. Checklist & Certification'!$K$43)","v":""},{"$f":"IF(A220=\"\",\"\",'1. Checklist & Certification'!$K$45)","v":""},{"$f":"IF(A220=\"\",\"\",'1. Checklist & Certification'!$K$49)","v":""},{"$f":"IF(A220=\"\",\"\",'1. Checklist & Certification'!$E$66)","v":""},{"$f":"IF(A220=\"\",\"\",'1. Checklist & Certification'!$E$67)","v":""},{"$f":"IF(A220=\"\",\"\",'1. Checklist & Certification'!$E$68)","v":""},{"$f":"IF(A220=\"\",\"\",'1. Checklist & Certification'!$G$66)","v":""},{"$f":"IF(A220=\"\",\"\",'1. Checklist & Certification'!$H$66)","v":""},{"$f":"IF(A220=\"\",\"\",'1. Checklist & Certification'!$I$66)","v":""},{"$f":"IF(A220=\"\",\"\",'1. Checklist & Certification'!$I$67)","v":""},{"$f":"IF(A220=\"\",\"\",'1. Checklist & Certification'!$I$68)","v":""},null,{"$f":"IF(C220=\"\",\"\",HLOOKUP(C220,'MHP Family Income & Rent Limits'!$E$12:$L$26,2,FALSE))","v":""},{"$f":"IF(C220=\"\",\"\",HLOOKUP(C220,'MHP Family Income & Rent Limits'!$E$12:$L$26,3,FALSE))","v":""},{"$f":"IF(C220=\"\",\"\",HLOOKUP(C220,'MHP Family Income & Rent Limits'!$E$12:$L$26,4,FALSE))","v":""},{"$f":"IF(C220=\"\",\"\",HLOOKUP(C220,'MHP Family Income & Rent Limits'!$E$12:$L$26,5,FALSE))","v":""},{"$f":"IF(C220=\"\",\"\",HLOOKUP(C220,'MHP Family Income & Rent Limits'!$E$12:$L$26,6,FALSE))","v":""},{"$f":"IF(C220=\"\",\"\",HLOOKUP(C220,'MHP Family Income & Rent Limits'!$E$12:$L$26,7,FALSE))","v":""},{"$f":"IF(C220=\"\",\"\",HLOOKUP(C220,'MHP Family Income & Rent Limits'!$E$12:$L$26,8,FALSE))","v":""},{"$f":"IF(C220=\"\",\"\",HLOOKUP(C220,'MHP Family Income & Rent Limits'!$E$12:$L$26,9,FALSE))","v":""},{"$f":"IF(C220=\"\",\"\",HLOOKUP(C220,'MHP Family Income & Rent Limits'!$E$12:$L$26,10,FALSE))","v":""},{"$f":"IF(C220=\"\",\"\",HLOOKUP(C220,'MHP Family Income & Rent Limits'!$E$12:$L$26,11,FALSE))","v":""},{"$f":"IF(C220=\"\",\"\",HLOOKUP(C220,'MHP Family Income & Rent Limits'!$E$12:$L$26,12,FALSE))","v":""},{"$f":"IF(C220=\"\",\"\",HLOOKUP(C220,'MHP Family Income & Rent Limits'!$E$12:$L$26,13,FALSE))","v":""},{"$f":"IF(C220=\"\",\"\",HLOOKUP(C220,'MHP Family Income & Rent Limits'!$E$12:$L$26,14,FALSE))","v":""},{"$f":"IF(C220=\"\",\"\",HLOOKUP(C220,'MHP Family Income & Rent Limits'!$E$12:$L$26,15,FALSE))","v":""}]
[{"$f":"IF('2. Assisted & Restricted Units'!A221=\"\",\"\",'2. Assisted & Restricted Units'!A221)","v":""},{"$f":"IF('2. Assisted & Restricted Units'!B221=\"\",\"\",'2. Assisted & Restricted Units'!B221)","v":""},{"$f":"IF('2. Assisted & Restricted Units'!D221=\"\",\"\",'2. Assisted & Restricted Units'!D221)","v":""},{"$f":"IF('2. Assisted & Restricted Units'!E221=\"\",\"\",'2. Assisted & Restricted Units'!E221)","v":""},{"$f":"IF('2. Assisted & Restricted Units'!H221=\"\",\"\",'2. Assisted & Restricted Units'!H221)","v":""},{"$f":"_xlfn.IFS(E221=\"\",\"\",E221>BO221,$BP$6,E221>BN221,$BO$6,E221>BM221,$BN$6,E221>BL221,$BM$6,E221>BK221,$BL$6,E221>BJ221,$BK$6,E221>BI221,$BJ$6,E221>BH221,$BI$6,E221>BG221,$BH$6,E221>BF221,$BG$6,E221>BE221,$BF$6,E221>BD221,$BE$6,E221>BC221,$BD$6,E221>=0,$BC$6)","v":""},{"$f":"IF('2. Assisted & Restricted Units'!T221=\"\",\"\",'2. Assisted & Restricted Units'!T221)","v":""},{"$f":"IF('2. Assisted & Restricted Units'!I221=\"\",\"\",'2. Assisted & Restricted Units'!I221)","v":""},{"$f":"IF('2. Assisted & Restricted Units'!AP221=\"\",\"\",'2. Assisted & Restricted Units'!AP221)","v":0},{"$f":"IF('2. Assisted & Restricted Units'!AT221=\"\",\"\",'2. Assisted & Restricted Units'!AT221)","v":""},0,{"$f":"IF('2. Assisted & Restricted Units'!AV221=\"\",\"\",'2. Assisted & Restricted Units'!AV221)","v":""},{"$f":"IF('2. Assisted & Restricted Units'!L221=\"\",\"\",'2. Assisted & Restricted Units'!L221)","v":""},{"$f":"IF('2. Assisted & Restricted Units'!M221=\"\",\"\",'2. Assisted & Restricted Units'!M221)","v":""},{"$f":"IF('2. Assisted & Restricted Units'!O221=\"\",\"\",'2. Assisted & Restricted Units'!O221)","v":""},{"$f":"IF('2. Assisted & Restricted Units'!P221=\"\",\"\",'2. Assisted & Restricted Units'!P221)","v":""},{"$f":"IF('2. Assisted & Restricted Units'!Q221=\"\",\"\",'2. Assisted & Restricted Units'!Q221)","v":""},{"$f":"IF('2. Assisted & Restricted Units'!R221=\"\",\"\",'2. Assisted & Restricted Units'!R221)","v":""},{"$f":"IF(A221=\"\",\"\",'1. Checklist & Certification'!$K$1)","v":""},{"$f":"IF(A221=\"\",\"\",'1. Checklist & Certification'!$C$62)","v":""},{"$f":"IF(A221=\"\",\"\",'1. Checklist & Certification'!$K$62)","v":""},{"$f":"IF(A221=\"\",\"\",'1. Checklist & Certification'!$C$6)","v":""},{"$f":"IF(A221=\"\",\"\",'1. Checklist & Certification'!$G$4)","v":""},{"$f":"IF(A221=\"\",\"\",'1. Checklist & Certification'!$C$7)","v":""},{"$f":"IF(A221=\"\",\"\",'1. Checklist & Certification'!$C$8)","v":""},{"$f":"IF(A221=\"\",\"\",'1. Checklist & Certification'!$F$7)","v":""},{"$f":"IF(A221=\"\",\"\",'1. Checklist & Certification'!$F$8)","v":""},{"$f":"IF(A221=\"\",\"\",'1. Checklist & Certification'!$B$9)","v":""},{"$f":"IF(A221=\"\",\"\",'1. Checklist & Certification'!$F$9)","v":""},{"$f":"IF(A221=\"\",\"\",'1. Checklist & Certification'!$C$10)","v":""},{"$f":"IF(A221=\"\",\"\",'1. Checklist & Certification'!$C$11)","v":""},{"$f":"IF(A221=\"\",\"\",'1. Checklist & Certification'!$C$12)","v":""},{"$f":"IF(A221=\"\",\"\",'1. Checklist & Certification'!$B$14)","v":""},{"$f":"IF(A221=\"\",\"\",'1. Checklist & Certification'!$E$14)","v":""},{"$f":"IF(B221=\"\",\"\",'1. Checklist & Certification'!$G$14)","v":""},{"$f":"IF(A221=\"\",\"\",'MHP Family Income & Rent Limits'!$B$3)","v":""},{"$f":"IF(A221=\"\",\"\",'MHP Family Income & Rent Limits'!$J$3)","v":""},{"$f":"IF(A221=\"\",\"\",'MHP Family Income & Rent Limits'!$E$4)","v":""},{"$f":"IF(A221=\"\",\"\",'MHP Family Income & Rent Limits'!$C$7)","v":""},{"$f":"IF(A221=\"\",\"\",'MHP Family Income & Rent Limits'!$F$8)","v":""},{"$f":"IF(A221=\"\",\"\",'1. Checklist & Certification'!$G$4)","v":""},{"$f":"IF(A221=\"\",\"\",'1. Checklist & Certification'!$K$39)","v":""},{"$f":"IF(A221=\"\",\"\",'1. Checklist & Certification'!$K$43)","v":""},{"$f":"IF(A221=\"\",\"\",'1. Checklist & Certification'!$K$45)","v":""},{"$f":"IF(A221=\"\",\"\",'1. Checklist & Certification'!$K$49)","v":""},{"$f":"IF(A221=\"\",\"\",'1. Checklist & Certification'!$E$66)","v":""},{"$f":"IF(A221=\"\",\"\",'1. Checklist & Certification'!$E$67)","v":""},{"$f":"IF(A221=\"\",\"\",'1. Checklist & Certification'!$E$68)","v":""},{"$f":"IF(A221=\"\",\"\",'1. Checklist & Certification'!$G$66)","v":""},{"$f":"IF(A221=\"\",\"\",'1. Checklist & Certification'!$H$66)","v":""},{"$f":"IF(A221=\"\",\"\",'1. Checklist & Certification'!$I$66)","v":""},{"$f":"IF(A221=\"\",\"\",'1. Checklist & Certification'!$I$67)","v":""},{"$f":"IF(A221=\"\",\"\",'1. Checklist & Certification'!$I$68)","v":""},null,{"$f":"IF(C221=\"\",\"\",HLOOKUP(C221,'MHP Family Income & Rent Limits'!$E$12:$L$26,2,FALSE))","v":""},{"$f":"IF(C221=\"\",\"\",HLOOKUP(C221,'MHP Family Income & Rent Limits'!$E$12:$L$26,3,FALSE))","v":""},{"$f":"IF(C221=\"\",\"\",HLOOKUP(C221,'MHP Family Income & Rent Limits'!$E$12:$L$26,4,FALSE))","v":""},{"$f":"IF(C221=\"\",\"\",HLOOKUP(C221,'MHP Family Income & Rent Limits'!$E$12:$L$26,5,FALSE))","v":""},{"$f":"IF(C221=\"\",\"\",HLOOKUP(C221,'MHP Family Income & Rent Limits'!$E$12:$L$26,6,FALSE))","v":""},{"$f":"IF(C221=\"\",\"\",HLOOKUP(C221,'MHP Family Income & Rent Limits'!$E$12:$L$26,7,FALSE))","v":""},{"$f":"IF(C221=\"\",\"\",HLOOKUP(C221,'MHP Family Income & Rent Limits'!$E$12:$L$26,8,FALSE))","v":""},{"$f":"IF(C221=\"\",\"\",HLOOKUP(C221,'MHP Family Income & Rent Limits'!$E$12:$L$26,9,FALSE))","v":""},{"$f":"IF(C221=\"\",\"\",HLOOKUP(C221,'MHP Family Income & Rent Limits'!$E$12:$L$26,10,FALSE))","v":""},{"$f":"IF(C221=\"\",\"\",HLOOKUP(C221,'MHP Family Income & Rent Limits'!$E$12:$L$26,11,FALSE))","v":""},{"$f":"IF(C221=\"\",\"\",HLOOKUP(C221,'MHP Family Income & Rent Limits'!$E$12:$L$26,12,FALSE))","v":""},{"$f":"IF(C221=\"\",\"\",HLOOKUP(C221,'MHP Family Income & Rent Limits'!$E$12:$L$26,13,FALSE))","v":""},{"$f":"IF(C221=\"\",\"\",HLOOKUP(C221,'MHP Family Income & Rent Limits'!$E$12:$L$26,14,FALSE))","v":""},{"$f":"IF(C221=\"\",\"\",HLOOKUP(C221,'MHP Family Income & Rent Limits'!$E$12:$L$26,15,FALSE))","v":""}]
[{"$f":"IF('2. Assisted & Restricted Units'!A222=\"\",\"\",'2. Assisted & Restricted Units'!A222)","v":""},{"$f":"IF('2. Assisted & Restricted Units'!B222=\"\",\"\",'2. Assisted & Restricted Units'!B222)","v":""},{"$f":"IF('2. Assisted & Restricted Units'!D222=\"\",\"\",'2. Assisted & Restricted Units'!D222)","v":""},{"$f":"IF('2. Assisted & Restricted Units'!E222=\"\",\"\",'2. Assisted & Restricted Units'!E222)","v":""},{"$f":"IF('2. Assisted & Restricted Units'!H222=\"\",\"\",'2. Assisted & Restricted Units'!H222)","v":""},{"$f":"_xlfn.IFS(E222=\"\",\"\",E222>BO222,$BP$6,E222>BN222,$BO$6,E222>BM222,$BN$6,E222>BL222,$BM$6,E222>BK222,$BL$6,E222>BJ222,$BK$6,E222>BI222,$BJ$6,E222>BH222,$BI$6,E222>BG222,$BH$6,E222>BF222,$BG$6,E222>BE222,$BF$6,E222>BD222,$BE$6,E222>BC222,$BD$6,E222>=0,$BC$6)","v":""},{"$f":"IF('2. Assisted & Restricted Units'!T222=\"\",\"\",'2. Assisted & Restricted Units'!T222)","v":""},{"$f":"IF('2. Assisted & Restricted Units'!I222=\"\",\"\",'2. Assisted & Restricted Units'!I222)","v":""},{"$f":"IF('2. Assisted & Restricted Units'!AP222=\"\",\"\",'2. Assisted & Restricted Units'!AP222)","v":0},{"$f":"IF('2. Assisted & Restricted Units'!AT222=\"\",\"\",'2. Assisted & Restricted Units'!AT222)","v":""},0,{"$f":"IF('2. Assisted & Restricted Units'!AV222=\"\",\"\",'2. Assisted & Restricted Units'!AV222)","v":""},{"$f":"IF('2. Assisted & Restricted Units'!L222=\"\",\"\",'2. Assisted & Restricted Units'!L222)","v":""},{"$f":"IF('2. Assisted & Restricted Units'!M222=\"\",\"\",'2. Assisted & Restricted Units'!M222)","v":""},{"$f":"IF('2. Assisted & Restricted Units'!O222=\"\",\"\",'2. Assisted & Restricted Units'!O222)","v":""},{"$f":"IF('2. Assisted & Restricted Units'!P222=\"\",\"\",'2. Assisted & Restricted Units'!P222)","v":""},{"$f":"IF('2. Assisted & Restricted Units'!Q222=\"\",\"\",'2. Assisted & Restricted Units'!Q222)","v":""},{"$f":"IF('2. Assisted & Restricted Units'!R222=\"\",\"\",'2. Assisted & Restricted Units'!R222)","v":""},{"$f":"IF(A222=\"\",\"\",'1. Checklist & Certification'!$K$1)","v":""},{"$f":"IF(A222=\"\",\"\",'1. Checklist & Certification'!$C$62)","v":""},{"$f":"IF(A222=\"\",\"\",'1. Checklist & Certification'!$K$62)","v":""},{"$f":"IF(A222=\"\",\"\",'1. Checklist & Certification'!$C$6)","v":""},{"$f":"IF(A222=\"\",\"\",'1. Checklist & Certification'!$G$4)","v":""},{"$f":"IF(A222=\"\",\"\",'1. Checklist & Certification'!$C$7)","v":""},{"$f":"IF(A222=\"\",\"\",'1. Checklist & Certification'!$C$8)","v":""},{"$f":"IF(A222=\"\",\"\",'1. Checklist & Certification'!$F$7)","v":""},{"$f":"IF(A222=\"\",\"\",'1. Checklist & Certification'!$F$8)","v":""},{"$f":"IF(A222=\"\",\"\",'1. Checklist & Certification'!$B$9)","v":""},{"$f":"IF(A222=\"\",\"\",'1. Checklist & Certification'!$F$9)","v":""},{"$f":"IF(A222=\"\",\"\",'1. Checklist & Certification'!$C$10)","v":""},{"$f":"IF(A222=\"\",\"\",'1. Checklist & Certification'!$C$11)","v":""},{"$f":"IF(A222=\"\",\"\",'1. Checklist & Certification'!$C$12)","v":""},{"$f":"IF(A222=\"\",\"\",'1. Checklist & Certification'!$B$14)","v":""},{"$f":"IF(A222=\"\",\"\",'1. Checklist & Certification'!$E$14)","v":""},{"$f":"IF(B222=\"\",\"\",'1. Checklist & Certification'!$G$14)","v":""},{"$f":"IF(A222=\"\",\"\",'MHP Family Income & Rent Limits'!$B$3)","v":""},{"$f":"IF(A222=\"\",\"\",'MHP Family Income & Rent Limits'!$J$3)","v":""},{"$f":"IF(A222=\"\",\"\",'MHP Family Income & Rent Limits'!$E$4)","v":""},{"$f":"IF(A222=\"\",\"\",'MHP Family Income & Rent Limits'!$C$7)","v":""},{"$f":"IF(A222=\"\",\"\",'MHP Family Income & Rent Limits'!$F$8)","v":""},{"$f":"IF(A222=\"\",\"\",'1. Checklist & Certification'!$G$4)","v":""},{"$f":"IF(A222=\"\",\"\",'1. Checklist & Certification'!$K$39)","v":""},{"$f":"IF(A222=\"\",\"\",'1. Checklist & Certification'!$K$43)","v":""},{"$f":"IF(A222=\"\",\"\",'1. Checklist & Certification'!$K$45)","v":""},{"$f":"IF(A222=\"\",\"\",'1. Checklist & Certification'!$K$49)","v":""},{"$f":"IF(A222=\"\",\"\",'1. Checklist & Certification'!$E$66)","v":""},{"$f":"IF(A222=\"\",\"\",'1. Checklist & Certification'!$E$67)","v":""},{"$f":"IF(A222=\"\",\"\",'1. Checklist & Certification'!$E$68)","v":""},{"$f":"IF(A222=\"\",\"\",'1. Checklist & Certification'!$G$66)","v":""},{"$f":"IF(A222=\"\",\"\",'1. Checklist & Certification'!$H$66)","v":""},{"$f":"IF(A222=\"\",\"\",'1. Checklist & Certification'!$I$66)","v":""},{"$f":"IF(A222=\"\",\"\",'1. Checklist & Certification'!$I$67)","v":""},{"$f":"IF(A222=\"\",\"\",'1. Checklist & Certification'!$I$68)","v":""},null,{"$f":"IF(C222=\"\",\"\",HLOOKUP(C222,'MHP Family Income & Rent Limits'!$E$12:$L$26,2,FALSE))","v":""},{"$f":"IF(C222=\"\",\"\",HLOOKUP(C222,'MHP Family Income & Rent Limits'!$E$12:$L$26,3,FALSE))","v":""},{"$f":"IF(C222=\"\",\"\",HLOOKUP(C222,'MHP Family Income & Rent Limits'!$E$12:$L$26,4,FALSE))","v":""},{"$f":"IF(C222=\"\",\"\",HLOOKUP(C222,'MHP Family Income & Rent Limits'!$E$12:$L$26,5,FALSE))","v":""},{"$f":"IF(C222=\"\",\"\",HLOOKUP(C222,'MHP Family Income & Rent Limits'!$E$12:$L$26,6,FALSE))","v":""},{"$f":"IF(C222=\"\",\"\",HLOOKUP(C222,'MHP Family Income & Rent Limits'!$E$12:$L$26,7,FALSE))","v":""},{"$f":"IF(C222=\"\",\"\",HLOOKUP(C222,'MHP Family Income & Rent Limits'!$E$12:$L$26,8,FALSE))","v":""},{"$f":"IF(C222=\"\",\"\",HLOOKUP(C222,'MHP Family Income & Rent Limits'!$E$12:$L$26,9,FALSE))","v":""},{"$f":"IF(C222=\"\",\"\",HLOOKUP(C222,'MHP Family Income & Rent Limits'!$E$12:$L$26,10,FALSE))","v":""},{"$f":"IF(C222=\"\",\"\",HLOOKUP(C222,'MHP Family Income & Rent Limits'!$E$12:$L$26,11,FALSE))","v":""},{"$f":"IF(C222=\"\",\"\",HLOOKUP(C222,'MHP Family Income & Rent Limits'!$E$12:$L$26,12,FALSE))","v":""},{"$f":"IF(C222=\"\",\"\",HLOOKUP(C222,'MHP Family Income & Rent Limits'!$E$12:$L$26,13,FALSE))","v":""},{"$f":"IF(C222=\"\",\"\",HLOOKUP(C222,'MHP Family Income & Rent Limits'!$E$12:$L$26,14,FALSE))","v":""},{"$f":"IF(C222=\"\",\"\",HLOOKUP(C222,'MHP Family Income & Rent Limits'!$E$12:$L$26,15,FALSE))","v":""}]
[{"$f":"IF('2. Assisted & Restricted Units'!A223=\"\",\"\",'2. Assisted & Restricted Units'!A223)","v":""},{"$f":"IF('2. Assisted & Restricted Units'!B223=\"\",\"\",'2. Assisted & Restricted Units'!B223)","v":""},{"$f":"IF('2. Assisted & Restricted Units'!D223=\"\",\"\",'2. Assisted & Restricted Units'!D223)","v":""},{"$f":"IF('2. Assisted & Restricted Units'!E223=\"\",\"\",'2. Assisted & Restricted Units'!E223)","v":""},{"$f":"IF('2. Assisted & Restricted Units'!H223=\"\",\"\",'2. Assisted & Restricted Units'!H223)","v":""},{"$f":"_xlfn.IFS(E223=\"\",\"\",E223>BO223,$BP$6,E223>BN223,$BO$6,E223>BM223,$BN$6,E223>BL223,$BM$6,E223>BK223,$BL$6,E223>BJ223,$BK$6,E223>BI223,$BJ$6,E223>BH223,$BI$6,E223>BG223,$BH$6,E223>BF223,$BG$6,E223>BE223,$BF$6,E223>BD223,$BE$6,E223>BC223,$BD$6,E223>=0,$BC$6)","v":""},{"$f":"IF('2. Assisted & Restricted Units'!T223=\"\",\"\",'2. Assisted & Restricted Units'!T223)","v":""},{"$f":"IF('2. Assisted & Restricted Units'!I223=\"\",\"\",'2. Assisted & Restricted Units'!I223)","v":""},{"$f":"IF('2. Assisted & Restricted Units'!AP223=\"\",\"\",'2. Assisted & Restricted Units'!AP223)","v":0},{"$f":"IF('2. Assisted & Restricted Units'!AT223=\"\",\"\",'2. Assisted & Restricted Units'!AT223)","v":""},0,{"$f":"IF('2. Assisted & Restricted Units'!AV223=\"\",\"\",'2. Assisted & Restricted Units'!AV223)","v":""},{"$f":"IF('2. Assisted & Restricted Units'!L223=\"\",\"\",'2. Assisted & Restricted Units'!L223)","v":""},{"$f":"IF('2. Assisted & Restricted Units'!M223=\"\",\"\",'2. Assisted & Restricted Units'!M223)","v":""},{"$f":"IF('2. Assisted & Restricted Units'!O223=\"\",\"\",'2. Assisted & Restricted Units'!O223)","v":""},{"$f":"IF('2. Assisted & Restricted Units'!P223=\"\",\"\",'2. Assisted & Restricted Units'!P223)","v":""},{"$f":"IF('2. Assisted & Restricted Units'!Q223=\"\",\"\",'2. Assisted & Restricted Units'!Q223)","v":""},{"$f":"IF('2. Assisted & Restricted Units'!R223=\"\",\"\",'2. Assisted & Restricted Units'!R223)","v":""},{"$f":"IF(A223=\"\",\"\",'1. Checklist & Certification'!$K$1)","v":""},{"$f":"IF(A223=\"\",\"\",'1. Checklist & Certification'!$C$62)","v":""},{"$f":"IF(A223=\"\",\"\",'1. Checklist & Certification'!$K$62)","v":""},{"$f":"IF(A223=\"\",\"\",'1. Checklist & Certification'!$C$6)","v":""},{"$f":"IF(A223=\"\",\"\",'1. Checklist & Certification'!$G$4)","v":""},{"$f":"IF(A223=\"\",\"\",'1. Checklist & Certification'!$C$7)","v":""},{"$f":"IF(A223=\"\",\"\",'1. Checklist & Certification'!$C$8)","v":""},{"$f":"IF(A223=\"\",\"\",'1. Checklist & Certification'!$F$7)","v":""},{"$f":"IF(A223=\"\",\"\",'1. Checklist & Certification'!$F$8)","v":""},{"$f":"IF(A223=\"\",\"\",'1. Checklist & Certification'!$B$9)","v":""},{"$f":"IF(A223=\"\",\"\",'1. Checklist & Certification'!$F$9)","v":""},{"$f":"IF(A223=\"\",\"\",'1. Checklist & Certification'!$C$10)","v":""},{"$f":"IF(A223=\"\",\"\",'1. Checklist & Certification'!$C$11)","v":""},{"$f":"IF(A223=\"\",\"\",'1. Checklist & Certification'!$C$12)","v":""},{"$f":"IF(A223=\"\",\"\",'1. Checklist & Certification'!$B$14)","v":""},{"$f":"IF(A223=\"\",\"\",'1. Checklist & Certification'!$E$14)","v":""},{"$f":"IF(B223=\"\",\"\",'1. Checklist & Certification'!$G$14)","v":""},{"$f":"IF(A223=\"\",\"\",'MHP Family Income & Rent Limits'!$B$3)","v":""},{"$f":"IF(A223=\"\",\"\",'MHP Family Income & Rent Limits'!$J$3)","v":""},{"$f":"IF(A223=\"\",\"\",'MHP Family Income & Rent Limits'!$E$4)","v":""},{"$f":"IF(A223=\"\",\"\",'MHP Family Income & Rent Limits'!$C$7)","v":""},{"$f":"IF(A223=\"\",\"\",'MHP Family Income & Rent Limits'!$F$8)","v":""},{"$f":"IF(A223=\"\",\"\",'1. Checklist & Certification'!$G$4)","v":""},{"$f":"IF(A223=\"\",\"\",'1. Checklist & Certification'!$K$39)","v":""},{"$f":"IF(A223=\"\",\"\",'1. Checklist & Certification'!$K$43)","v":""},{"$f":"IF(A223=\"\",\"\",'1. Checklist & Certification'!$K$45)","v":""},{"$f":"IF(A223=\"\",\"\",'1. Checklist & Certification'!$K$49)","v":""},{"$f":"IF(A223=\"\",\"\",'1. Checklist & Certification'!$E$66)","v":""},{"$f":"IF(A223=\"\",\"\",'1. Checklist & Certification'!$E$67)","v":""},{"$f":"IF(A223=\"\",\"\",'1. Checklist & Certification'!$E$68)","v":""},{"$f":"IF(A223=\"\",\"\",'1. Checklist & Certification'!$G$66)","v":""},{"$f":"IF(A223=\"\",\"\",'1. Checklist & Certification'!$H$66)","v":""},{"$f":"IF(A223=\"\",\"\",'1. Checklist & Certification'!$I$66)","v":""},{"$f":"IF(A223=\"\",\"\",'1. Checklist & Certification'!$I$67)","v":""},{"$f":"IF(A223=\"\",\"\",'1. Checklist & Certification'!$I$68)","v":""},null,{"$f":"IF(C223=\"\",\"\",HLOOKUP(C223,'MHP Family Income & Rent Limits'!$E$12:$L$26,2,FALSE))","v":""},{"$f":"IF(C223=\"\",\"\",HLOOKUP(C223,'MHP Family Income & Rent Limits'!$E$12:$L$26,3,FALSE))","v":""},{"$f":"IF(C223=\"\",\"\",HLOOKUP(C223,'MHP Family Income & Rent Limits'!$E$12:$L$26,4,FALSE))","v":""},{"$f":"IF(C223=\"\",\"\",HLOOKUP(C223,'MHP Family Income & Rent Limits'!$E$12:$L$26,5,FALSE))","v":""},{"$f":"IF(C223=\"\",\"\",HLOOKUP(C223,'MHP Family Income & Rent Limits'!$E$12:$L$26,6,FALSE))","v":""},{"$f":"IF(C223=\"\",\"\",HLOOKUP(C223,'MHP Family Income & Rent Limits'!$E$12:$L$26,7,FALSE))","v":""},{"$f":"IF(C223=\"\",\"\",HLOOKUP(C223,'MHP Family Income & Rent Limits'!$E$12:$L$26,8,FALSE))","v":""},{"$f":"IF(C223=\"\",\"\",HLOOKUP(C223,'MHP Family Income & Rent Limits'!$E$12:$L$26,9,FALSE))","v":""},{"$f":"IF(C223=\"\",\"\",HLOOKUP(C223,'MHP Family Income & Rent Limits'!$E$12:$L$26,10,FALSE))","v":""},{"$f":"IF(C223=\"\",\"\",HLOOKUP(C223,'MHP Family Income & Rent Limits'!$E$12:$L$26,11,FALSE))","v":""},{"$f":"IF(C223=\"\",\"\",HLOOKUP(C223,'MHP Family Income & Rent Limits'!$E$12:$L$26,12,FALSE))","v":""},{"$f":"IF(C223=\"\",\"\",HLOOKUP(C223,'MHP Family Income & Rent Limits'!$E$12:$L$26,13,FALSE))","v":""},{"$f":"IF(C223=\"\",\"\",HLOOKUP(C223,'MHP Family Income & Rent Limits'!$E$12:$L$26,14,FALSE))","v":""},{"$f":"IF(C223=\"\",\"\",HLOOKUP(C223,'MHP Family Income & Rent Limits'!$E$12:$L$26,15,FALSE))","v":""}]
[{"$f":"IF('2. Assisted & Restricted Units'!A224=\"\",\"\",'2. Assisted & Restricted Units'!A224)","v":""},{"$f":"IF('2. Assisted & Restricted Units'!B224=\"\",\"\",'2. Assisted & Restricted Units'!B224)","v":""},{"$f":"IF('2. Assisted & Restricted Units'!D224=\"\",\"\",'2. Assisted & Restricted Units'!D224)","v":""},{"$f":"IF('2. Assisted & Restricted Units'!E224=\"\",\"\",'2. Assisted & Restricted Units'!E224)","v":""},{"$f":"IF('2. Assisted & Restricted Units'!H224=\"\",\"\",'2. Assisted & Restricted Units'!H224)","v":""},{"$f":"_xlfn.IFS(E224=\"\",\"\",E224>BO224,$BP$6,E224>BN224,$BO$6,E224>BM224,$BN$6,E224>BL224,$BM$6,E224>BK224,$BL$6,E224>BJ224,$BK$6,E224>BI224,$BJ$6,E224>BH224,$BI$6,E224>BG224,$BH$6,E224>BF224,$BG$6,E224>BE224,$BF$6,E224>BD224,$BE$6,E224>BC224,$BD$6,E224>=0,$BC$6)","v":""},{"$f":"IF('2. Assisted & Restricted Units'!T224=\"\",\"\",'2. Assisted & Restricted Units'!T224)","v":""},{"$f":"IF('2. Assisted & Restricted Units'!I224=\"\",\"\",'2. Assisted & Restricted Units'!I224)","v":""},{"$f":"IF('2. Assisted & Restricted Units'!AP224=\"\",\"\",'2. Assisted & Restricted Units'!AP224)","v":0},{"$f":"IF('2. Assisted & Restricted Units'!AT224=\"\",\"\",'2. Assisted & Restricted Units'!AT224)","v":""},0,{"$f":"IF('2. Assisted & Restricted Units'!AV224=\"\",\"\",'2. Assisted & Restricted Units'!AV224)","v":""},{"$f":"IF('2. Assisted & Restricted Units'!L224=\"\",\"\",'2. Assisted & Restricted Units'!L224)","v":""},{"$f":"IF('2. Assisted & Restricted Units'!M224=\"\",\"\",'2. Assisted & Restricted Units'!M224)","v":""},{"$f":"IF('2. Assisted & Restricted Units'!O224=\"\",\"\",'2. Assisted & Restricted Units'!O224)","v":""},{"$f":"IF('2. Assisted & Restricted Units'!P224=\"\",\"\",'2. Assisted & Restricted Units'!P224)","v":""},{"$f":"IF('2. Assisted & Restricted Units'!Q224=\"\",\"\",'2. Assisted & Restricted Units'!Q224)","v":""},{"$f":"IF('2. Assisted & Restricted Units'!R224=\"\",\"\",'2. Assisted & Restricted Units'!R224)","v":""},{"$f":"IF(A224=\"\",\"\",'1. Checklist & Certification'!$K$1)","v":""},{"$f":"IF(A224=\"\",\"\",'1. Checklist & Certification'!$C$62)","v":""},{"$f":"IF(A224=\"\",\"\",'1. Checklist & Certification'!$K$62)","v":""},{"$f":"IF(A224=\"\",\"\",'1. Checklist & Certification'!$C$6)","v":""},{"$f":"IF(A224=\"\",\"\",'1. Checklist & Certification'!$G$4)","v":""},{"$f":"IF(A224=\"\",\"\",'1. Checklist & Certification'!$C$7)","v":""},{"$f":"IF(A224=\"\",\"\",'1. Checklist & Certification'!$C$8)","v":""},{"$f":"IF(A224=\"\",\"\",'1. Checklist & Certification'!$F$7)","v":""},{"$f":"IF(A224=\"\",\"\",'1. Checklist & Certification'!$F$8)","v":""},{"$f":"IF(A224=\"\",\"\",'1. Checklist & Certification'!$B$9)","v":""},{"$f":"IF(A224=\"\",\"\",'1. Checklist & Certification'!$F$9)","v":""},{"$f":"IF(A224=\"\",\"\",'1. Checklist & Certification'!$C$10)","v":""},{"$f":"IF(A224=\"\",\"\",'1. Checklist & Certification'!$C$11)","v":""},{"$f":"IF(A224=\"\",\"\",'1. Checklist & Certification'!$C$12)","v":""},{"$f":"IF(A224=\"\",\"\",'1. Checklist & Certification'!$B$14)","v":""},{"$f":"IF(A224=\"\",\"\",'1. Checklist & Certification'!$E$14)","v":""},{"$f":"IF(B224=\"\",\"\",'1. Checklist & Certification'!$G$14)","v":""},{"$f":"IF(A224=\"\",\"\",'MHP Family Income & Rent Limits'!$B$3)","v":""},{"$f":"IF(A224=\"\",\"\",'MHP Family Income & Rent Limits'!$J$3)","v":""},{"$f":"IF(A224=\"\",\"\",'MHP Family Income & Rent Limits'!$E$4)","v":""},{"$f":"IF(A224=\"\",\"\",'MHP Family Income & Rent Limits'!$C$7)","v":""},{"$f":"IF(A224=\"\",\"\",'MHP Family Income & Rent Limits'!$F$8)","v":""},{"$f":"IF(A224=\"\",\"\",'1. Checklist & Certification'!$G$4)","v":""},{"$f":"IF(A224=\"\",\"\",'1. Checklist & Certification'!$K$39)","v":""},{"$f":"IF(A224=\"\",\"\",'1. Checklist & Certification'!$K$43)","v":""},{"$f":"IF(A224=\"\",\"\",'1. Checklist & Certification'!$K$45)","v":""},{"$f":"IF(A224=\"\",\"\",'1. Checklist & Certification'!$K$49)","v":""},{"$f":"IF(A224=\"\",\"\",'1. Checklist & Certification'!$E$66)","v":""},{"$f":"IF(A224=\"\",\"\",'1. Checklist & Certification'!$E$67)","v":""},{"$f":"IF(A224=\"\",\"\",'1. Checklist & Certification'!$E$68)","v":""},{"$f":"IF(A224=\"\",\"\",'1. Checklist & Certification'!$G$66)","v":""},{"$f":"IF(A224=\"\",\"\",'1. Checklist & Certification'!$H$66)","v":""},{"$f":"IF(A224=\"\",\"\",'1. Checklist & Certification'!$I$66)","v":""},{"$f":"IF(A224=\"\",\"\",'1. Checklist & Certification'!$I$67)","v":""},{"$f":"IF(A224=\"\",\"\",'1. Checklist & Certification'!$I$68)","v":""},null,{"$f":"IF(C224=\"\",\"\",HLOOKUP(C224,'MHP Family Income & Rent Limits'!$E$12:$L$26,2,FALSE))","v":""},{"$f":"IF(C224=\"\",\"\",HLOOKUP(C224,'MHP Family Income & Rent Limits'!$E$12:$L$26,3,FALSE))","v":""},{"$f":"IF(C224=\"\",\"\",HLOOKUP(C224,'MHP Family Income & Rent Limits'!$E$12:$L$26,4,FALSE))","v":""},{"$f":"IF(C224=\"\",\"\",HLOOKUP(C224,'MHP Family Income & Rent Limits'!$E$12:$L$26,5,FALSE))","v":""},{"$f":"IF(C224=\"\",\"\",HLOOKUP(C224,'MHP Family Income & Rent Limits'!$E$12:$L$26,6,FALSE))","v":""},{"$f":"IF(C224=\"\",\"\",HLOOKUP(C224,'MHP Family Income & Rent Limits'!$E$12:$L$26,7,FALSE))","v":""},{"$f":"IF(C224=\"\",\"\",HLOOKUP(C224,'MHP Family Income & Rent Limits'!$E$12:$L$26,8,FALSE))","v":""},{"$f":"IF(C224=\"\",\"\",HLOOKUP(C224,'MHP Family Income & Rent Limits'!$E$12:$L$26,9,FALSE))","v":""},{"$f":"IF(C224=\"\",\"\",HLOOKUP(C224,'MHP Family Income & Rent Limits'!$E$12:$L$26,10,FALSE))","v":""},{"$f":"IF(C224=\"\",\"\",HLOOKUP(C224,'MHP Family Income & Rent Limits'!$E$12:$L$26,11,FALSE))","v":""},{"$f":"IF(C224=\"\",\"\",HLOOKUP(C224,'MHP Family Income & Rent Limits'!$E$12:$L$26,12,FALSE))","v":""},{"$f":"IF(C224=\"\",\"\",HLOOKUP(C224,'MHP Family Income & Rent Limits'!$E$12:$L$26,13,FALSE))","v":""},{"$f":"IF(C224=\"\",\"\",HLOOKUP(C224,'MHP Family Income & Rent Limits'!$E$12:$L$26,14,FALSE))","v":""},{"$f":"IF(C224=\"\",\"\",HLOOKUP(C224,'MHP Family Income & Rent Limits'!$E$12:$L$26,15,FALSE))","v":""}]
[{"$f":"IF('2. Assisted & Restricted Units'!A225=\"\",\"\",'2. Assisted & Restricted Units'!A225)","v":""},{"$f":"IF('2. Assisted & Restricted Units'!B225=\"\",\"\",'2. Assisted & Restricted Units'!B225)","v":""},{"$f":"IF('2. Assisted & Restricted Units'!D225=\"\",\"\",'2. Assisted & Restricted Units'!D225)","v":""},{"$f":"IF('2. Assisted & Restricted Units'!E225=\"\",\"\",'2. Assisted & Restricted Units'!E225)","v":""},{"$f":"IF('2. Assisted & Restricted Units'!H225=\"\",\"\",'2. Assisted & Restricted Units'!H225)","v":""},{"$f":"_xlfn.IFS(E225=\"\",\"\",E225>BO225,$BP$6,E225>BN225,$BO$6,E225>BM225,$BN$6,E225>BL225,$BM$6,E225>BK225,$BL$6,E225>BJ225,$BK$6,E225>BI225,$BJ$6,E225>BH225,$BI$6,E225>BG225,$BH$6,E225>BF225,$BG$6,E225>BE225,$BF$6,E225>BD225,$BE$6,E225>BC225,$BD$6,E225>=0,$BC$6)","v":""},{"$f":"IF('2. Assisted & Restricted Units'!T225=\"\",\"\",'2. Assisted & Restricted Units'!T225)","v":""},{"$f":"IF('2. Assisted & Restricted Units'!I225=\"\",\"\",'2. Assisted & Restricted Units'!I225)","v":""},{"$f":"IF('2. Assisted & Restricted Units'!AP225=\"\",\"\",'2. Assisted & Restricted Units'!AP225)","v":0},{"$f":"IF('2. Assisted & Restricted Units'!AT225=\"\",\"\",'2. Assisted & Restricted Units'!AT225)","v":""},0,{"$f":"IF('2. Assisted & Restricted Units'!AV225=\"\",\"\",'2. Assisted & Restricted Units'!AV225)","v":""},{"$f":"IF('2. Assisted & Restricted Units'!L225=\"\",\"\",'2. Assisted & Restricted Units'!L225)","v":""},{"$f":"IF('2. Assisted & Restricted Units'!M225=\"\",\"\",'2. Assisted & Restricted Units'!M225)","v":""},{"$f":"IF('2. Assisted & Restricted Units'!O225=\"\",\"\",'2. Assisted & Restricted Units'!O225)","v":""},{"$f":"IF('2. Assisted & Restricted Units'!P225=\"\",\"\",'2. Assisted & Restricted Units'!P225)","v":""},{"$f":"IF('2. Assisted & Restricted Units'!Q225=\"\",\"\",'2. Assisted & Restricted Units'!Q225)","v":""},{"$f":"IF('2. Assisted & Restricted Units'!R225=\"\",\"\",'2. Assisted & Restricted Units'!R225)","v":""},{"$f":"IF(A225=\"\",\"\",'1. Checklist & Certification'!$K$1)","v":""},{"$f":"IF(A225=\"\",\"\",'1. Checklist & Certification'!$C$62)","v":""},{"$f":"IF(A225=\"\",\"\",'1. Checklist & Certification'!$K$62)","v":""},{"$f":"IF(A225=\"\",\"\",'1. Checklist & Certification'!$C$6)","v":""},{"$f":"IF(A225=\"\",\"\",'1. Checklist & Certification'!$G$4)","v":""},{"$f":"IF(A225=\"\",\"\",'1. Checklist & Certification'!$C$7)","v":""},{"$f":"IF(A225=\"\",\"\",'1. Checklist & Certification'!$C$8)","v":""},{"$f":"IF(A225=\"\",\"\",'1. Checklist & Certification'!$F$7)","v":""},{"$f":"IF(A225=\"\",\"\",'1. Checklist & Certification'!$F$8)","v":""},{"$f":"IF(A225=\"\",\"\",'1. Checklist & Certification'!$B$9)","v":""},{"$f":"IF(A225=\"\",\"\",'1. Checklist & Certification'!$F$9)","v":""},{"$f":"IF(A225=\"\",\"\",'1. Checklist & Certification'!$C$10)","v":""},{"$f":"IF(A225=\"\",\"\",'1. Checklist & Certification'!$C$11)","v":""},{"$f":"IF(A225=\"\",\"\",'1. Checklist & Certification'!$C$12)","v":""},{"$f":"IF(A225=\"\",\"\",'1. Checklist & Certification'!$B$14)","v":""},{"$f":"IF(A225=\"\",\"\",'1. Checklist & Certification'!$E$14)","v":""},{"$f":"IF(B225=\"\",\"\",'1. Checklist & Certification'!$G$14)","v":""},{"$f":"IF(A225=\"\",\"\",'MHP Family Income & Rent Limits'!$B$3)","v":""},{"$f":"IF(A225=\"\",\"\",'MHP Family Income & Rent Limits'!$J$3)","v":""},{"$f":"IF(A225=\"\",\"\",'MHP Family Income & Rent Limits'!$E$4)","v":""},{"$f":"IF(A225=\"\",\"\",'MHP Family Income & Rent Limits'!$C$7)","v":""},{"$f":"IF(A225=\"\",\"\",'MHP Family Income & Rent Limits'!$F$8)","v":""},{"$f":"IF(A225=\"\",\"\",'1. Checklist & Certification'!$G$4)","v":""},{"$f":"IF(A225=\"\",\"\",'1. Checklist & Certification'!$K$39)","v":""},{"$f":"IF(A225=\"\",\"\",'1. Checklist & Certification'!$K$43)","v":""},{"$f":"IF(A225=\"\",\"\",'1. Checklist & Certification'!$K$45)","v":""},{"$f":"IF(A225=\"\",\"\",'1. Checklist & Certification'!$K$49)","v":""},{"$f":"IF(A225=\"\",\"\",'1. Checklist & Certification'!$E$66)","v":""},{"$f":"IF(A225=\"\",\"\",'1. Checklist & Certification'!$E$67)","v":""},{"$f":"IF(A225=\"\",\"\",'1. Checklist & Certification'!$E$68)","v":""},{"$f":"IF(A225=\"\",\"\",'1. Checklist & Certification'!$G$66)","v":""},{"$f":"IF(A225=\"\",\"\",'1. Checklist & Certification'!$H$66)","v":""},{"$f":"IF(A225=\"\",\"\",'1. Checklist & Certification'!$I$66)","v":""},{"$f":"IF(A225=\"\",\"\",'1. Checklist & Certification'!$I$67)","v":""},{"$f":"IF(A225=\"\",\"\",'1. Checklist & Certification'!$I$68)","v":""},null,{"$f":"IF(C225=\"\",\"\",HLOOKUP(C225,'MHP Family Income & Rent Limits'!$E$12:$L$26,2,FALSE))","v":""},{"$f":"IF(C225=\"\",\"\",HLOOKUP(C225,'MHP Family Income & Rent Limits'!$E$12:$L$26,3,FALSE))","v":""},{"$f":"IF(C225=\"\",\"\",HLOOKUP(C225,'MHP Family Income & Rent Limits'!$E$12:$L$26,4,FALSE))","v":""},{"$f":"IF(C225=\"\",\"\",HLOOKUP(C225,'MHP Family Income & Rent Limits'!$E$12:$L$26,5,FALSE))","v":""},{"$f":"IF(C225=\"\",\"\",HLOOKUP(C225,'MHP Family Income & Rent Limits'!$E$12:$L$26,6,FALSE))","v":""},{"$f":"IF(C225=\"\",\"\",HLOOKUP(C225,'MHP Family Income & Rent Limits'!$E$12:$L$26,7,FALSE))","v":""},{"$f":"IF(C225=\"\",\"\",HLOOKUP(C225,'MHP Family Income & Rent Limits'!$E$12:$L$26,8,FALSE))","v":""},{"$f":"IF(C225=\"\",\"\",HLOOKUP(C225,'MHP Family Income & Rent Limits'!$E$12:$L$26,9,FALSE))","v":""},{"$f":"IF(C225=\"\",\"\",HLOOKUP(C225,'MHP Family Income & Rent Limits'!$E$12:$L$26,10,FALSE))","v":""},{"$f":"IF(C225=\"\",\"\",HLOOKUP(C225,'MHP Family Income & Rent Limits'!$E$12:$L$26,11,FALSE))","v":""},{"$f":"IF(C225=\"\",\"\",HLOOKUP(C225,'MHP Family Income & Rent Limits'!$E$12:$L$26,12,FALSE))","v":""},{"$f":"IF(C225=\"\",\"\",HLOOKUP(C225,'MHP Family Income & Rent Limits'!$E$12:$L$26,13,FALSE))","v":""},{"$f":"IF(C225=\"\",\"\",HLOOKUP(C225,'MHP Family Income & Rent Limits'!$E$12:$L$26,14,FALSE))","v":""},{"$f":"IF(C225=\"\",\"\",HLOOKUP(C225,'MHP Family Income & Rent Limits'!$E$12:$L$26,15,FALSE))","v":""}]
[{"$f":"IF('2. Assisted & Restricted Units'!A226=\"\",\"\",'2. Assisted & Restricted Units'!A226)","v":""},{"$f":"IF('2. Assisted & Restricted Units'!B226=\"\",\"\",'2. Assisted & Restricted Units'!B226)","v":""},{"$f":"IF('2. Assisted & Restricted Units'!D226=\"\",\"\",'2. Assisted & Restricted Units'!D226)","v":""},{"$f":"IF('2. Assisted & Restricted Units'!E226=\"\",\"\",'2. Assisted & Restricted Units'!E226)","v":""},{"$f":"IF('2. Assisted & Restricted Units'!H226=\"\",\"\",'2. Assisted & Restricted Units'!H226)","v":""},{"$f":"_xlfn.IFS(E226=\"\",\"\",E226>BO226,$BP$6,E226>BN226,$BO$6,E226>BM226,$BN$6,E226>BL226,$BM$6,E226>BK226,$BL$6,E226>BJ226,$BK$6,E226>BI226,$BJ$6,E226>BH226,$BI$6,E226>BG226,$BH$6,E226>BF226,$BG$6,E226>BE226,$BF$6,E226>BD226,$BE$6,E226>BC226,$BD$6,E226>=0,$BC$6)","v":""},{"$f":"IF('2. Assisted & Restricted Units'!T226=\"\",\"\",'2. Assisted & Restricted Units'!T226)","v":""},{"$f":"IF('2. Assisted & Restricted Units'!I226=\"\",\"\",'2. Assisted & Restricted Units'!I226)","v":""},{"$f":"IF('2. Assisted & Restricted Units'!AP226=\"\",\"\",'2. Assisted & Restricted Units'!AP226)","v":0},{"$f":"IF('2. Assisted & Restricted Units'!AT226=\"\",\"\",'2. Assisted & Restricted Units'!AT226)","v":""},0,{"$f":"IF('2. Assisted & Restricted Units'!AV226=\"\",\"\",'2. Assisted & Restricted Units'!AV226)","v":""},{"$f":"IF('2. Assisted & Restricted Units'!L226=\"\",\"\",'2. Assisted & Restricted Units'!L226)","v":""},{"$f":"IF('2. Assisted & Restricted Units'!M226=\"\",\"\",'2. Assisted & Restricted Units'!M226)","v":""},{"$f":"IF('2. Assisted & Restricted Units'!O226=\"\",\"\",'2. Assisted & Restricted Units'!O226)","v":""},{"$f":"IF('2. Assisted & Restricted Units'!P226=\"\",\"\",'2. Assisted & Restricted Units'!P226)","v":""},{"$f":"IF('2. Assisted & Restricted Units'!Q226=\"\",\"\",'2. Assisted & Restricted Units'!Q226)","v":""},{"$f":"IF('2. Assisted & Restricted Units'!R226=\"\",\"\",'2. Assisted & Restricted Units'!R226)","v":""},{"$f":"IF(A226=\"\",\"\",'1. Checklist & Certification'!$K$1)","v":""},{"$f":"IF(A226=\"\",\"\",'1. Checklist & Certification'!$C$62)","v":""},{"$f":"IF(A226=\"\",\"\",'1. Checklist & Certification'!$K$62)","v":""},{"$f":"IF(A226=\"\",\"\",'1. Checklist & Certification'!$C$6)","v":""},{"$f":"IF(A226=\"\",\"\",'1. Checklist & Certification'!$G$4)","v":""},{"$f":"IF(A226=\"\",\"\",'1. Checklist & Certification'!$C$7)","v":""},{"$f":"IF(A226=\"\",\"\",'1. Checklist & Certification'!$C$8)","v":""},{"$f":"IF(A226=\"\",\"\",'1. Checklist & Certification'!$F$7)","v":""},{"$f":"IF(A226=\"\",\"\",'1. Checklist & Certification'!$F$8)","v":""},{"$f":"IF(A226=\"\",\"\",'1. Checklist & Certification'!$B$9)","v":""},{"$f":"IF(A226=\"\",\"\",'1. Checklist & Certification'!$F$9)","v":""},{"$f":"IF(A226=\"\",\"\",'1. Checklist & Certification'!$C$10)","v":""},{"$f":"IF(A226=\"\",\"\",'1. Checklist & Certification'!$C$11)","v":""},{"$f":"IF(A226=\"\",\"\",'1. Checklist & Certification'!$C$12)","v":""},{"$f":"IF(A226=\"\",\"\",'1. Checklist & Certification'!$B$14)","v":""},{"$f":"IF(A226=\"\",\"\",'1. Checklist & Certification'!$E$14)","v":""},{"$f":"IF(B226=\"\",\"\",'1. Checklist & Certification'!$G$14)","v":""},{"$f":"IF(A226=\"\",\"\",'MHP Family Income & Rent Limits'!$B$3)","v":""},{"$f":"IF(A226=\"\",\"\",'MHP Family Income & Rent Limits'!$J$3)","v":""},{"$f":"IF(A226=\"\",\"\",'MHP Family Income & Rent Limits'!$E$4)","v":""},{"$f":"IF(A226=\"\",\"\",'MHP Family Income & Rent Limits'!$C$7)","v":""},{"$f":"IF(A226=\"\",\"\",'MHP Family Income & Rent Limits'!$F$8)","v":""},{"$f":"IF(A226=\"\",\"\",'1. Checklist & Certification'!$G$4)","v":""},{"$f":"IF(A226=\"\",\"\",'1. Checklist & Certification'!$K$39)","v":""},{"$f":"IF(A226=\"\",\"\",'1. Checklist & Certification'!$K$43)","v":""},{"$f":"IF(A226=\"\",\"\",'1. Checklist & Certification'!$K$45)","v":""},{"$f":"IF(A226=\"\",\"\",'1. Checklist & Certification'!$K$49)","v":""},{"$f":"IF(A226=\"\",\"\",'1. Checklist & Certification'!$E$66)","v":""},{"$f":"IF(A226=\"\",\"\",'1. Checklist & Certification'!$E$67)","v":""},{"$f":"IF(A226=\"\",\"\",'1. Checklist & Certification'!$E$68)","v":""},{"$f":"IF(A226=\"\",\"\",'1. Checklist & Certification'!$G$66)","v":""},{"$f":"IF(A226=\"\",\"\",'1. Checklist & Certification'!$H$66)","v":""},{"$f":"IF(A226=\"\",\"\",'1. Checklist & Certification'!$I$66)","v":""},{"$f":"IF(A226=\"\",\"\",'1. Checklist & Certification'!$I$67)","v":""},{"$f":"IF(A226=\"\",\"\",'1. Checklist & Certification'!$I$68)","v":""},null,{"$f":"IF(C226=\"\",\"\",HLOOKUP(C226,'MHP Family Income & Rent Limits'!$E$12:$L$26,2,FALSE))","v":""},{"$f":"IF(C226=\"\",\"\",HLOOKUP(C226,'MHP Family Income & Rent Limits'!$E$12:$L$26,3,FALSE))","v":""},{"$f":"IF(C226=\"\",\"\",HLOOKUP(C226,'MHP Family Income & Rent Limits'!$E$12:$L$26,4,FALSE))","v":""},{"$f":"IF(C226=\"\",\"\",HLOOKUP(C226,'MHP Family Income & Rent Limits'!$E$12:$L$26,5,FALSE))","v":""},{"$f":"IF(C226=\"\",\"\",HLOOKUP(C226,'MHP Family Income & Rent Limits'!$E$12:$L$26,6,FALSE))","v":""},{"$f":"IF(C226=\"\",\"\",HLOOKUP(C226,'MHP Family Income & Rent Limits'!$E$12:$L$26,7,FALSE))","v":""},{"$f":"IF(C226=\"\",\"\",HLOOKUP(C226,'MHP Family Income & Rent Limits'!$E$12:$L$26,8,FALSE))","v":""},{"$f":"IF(C226=\"\",\"\",HLOOKUP(C226,'MHP Family Income & Rent Limits'!$E$12:$L$26,9,FALSE))","v":""},{"$f":"IF(C226=\"\",\"\",HLOOKUP(C226,'MHP Family Income & Rent Limits'!$E$12:$L$26,10,FALSE))","v":""},{"$f":"IF(C226=\"\",\"\",HLOOKUP(C226,'MHP Family Income & Rent Limits'!$E$12:$L$26,11,FALSE))","v":""},{"$f":"IF(C226=\"\",\"\",HLOOKUP(C226,'MHP Family Income & Rent Limits'!$E$12:$L$26,12,FALSE))","v":""},{"$f":"IF(C226=\"\",\"\",HLOOKUP(C226,'MHP Family Income & Rent Limits'!$E$12:$L$26,13,FALSE))","v":""},{"$f":"IF(C226=\"\",\"\",HLOOKUP(C226,'MHP Family Income & Rent Limits'!$E$12:$L$26,14,FALSE))","v":""},{"$f":"IF(C226=\"\",\"\",HLOOKUP(C226,'MHP Family Income & Rent Limits'!$E$12:$L$26,15,FALSE))","v":""}]
[{"$f":"IF('2. Assisted & Restricted Units'!A227=\"\",\"\",'2. Assisted & Restricted Units'!A227)","v":""},{"$f":"IF('2. Assisted & Restricted Units'!B227=\"\",\"\",'2. Assisted & Restricted Units'!B227)","v":""},{"$f":"IF('2. Assisted & Restricted Units'!D227=\"\",\"\",'2. Assisted & Restricted Units'!D227)","v":""},{"$f":"IF('2. Assisted & Restricted Units'!E227=\"\",\"\",'2. Assisted & Restricted Units'!E227)","v":""},{"$f":"IF('2. Assisted & Restricted Units'!H227=\"\",\"\",'2. Assisted & Restricted Units'!H227)","v":""},{"$f":"_xlfn.IFS(E227=\"\",\"\",E227>BO227,$BP$6,E227>BN227,$BO$6,E227>BM227,$BN$6,E227>BL227,$BM$6,E227>BK227,$BL$6,E227>BJ227,$BK$6,E227>BI227,$BJ$6,E227>BH227,$BI$6,E227>BG227,$BH$6,E227>BF227,$BG$6,E227>BE227,$BF$6,E227>BD227,$BE$6,E227>BC227,$BD$6,E227>=0,$BC$6)","v":""},{"$f":"IF('2. Assisted & Restricted Units'!T227=\"\",\"\",'2. Assisted & Restricted Units'!T227)","v":""},{"$f":"IF('2. Assisted & Restricted Units'!I227=\"\",\"\",'2. Assisted & Restricted Units'!I227)","v":""},{"$f":"IF('2. Assisted & Restricted Units'!AP227=\"\",\"\",'2. Assisted & Restricted Units'!AP227)","v":0},{"$f":"IF('2. Assisted & Restricted Units'!AT227=\"\",\"\",'2. Assisted & Restricted Units'!AT227)","v":""},0,{"$f":"IF('2. Assisted & Restricted Units'!AV227=\"\",\"\",'2. Assisted & Restricted Units'!AV227)","v":""},{"$f":"IF('2. Assisted & Restricted Units'!L227=\"\",\"\",'2. Assisted & Restricted Units'!L227)","v":""},{"$f":"IF('2. Assisted & Restricted Units'!M227=\"\",\"\",'2. Assisted & Restricted Units'!M227)","v":""},{"$f":"IF('2. Assisted & Restricted Units'!O227=\"\",\"\",'2. Assisted & Restricted Units'!O227)","v":""},{"$f":"IF('2. Assisted & Restricted Units'!P227=\"\",\"\",'2. Assisted & Restricted Units'!P227)","v":""},{"$f":"IF('2. Assisted & Restricted Units'!Q227=\"\",\"\",'2. Assisted & Restricted Units'!Q227)","v":""},{"$f":"IF('2. Assisted & Restricted Units'!R227=\"\",\"\",'2. Assisted & Restricted Units'!R227)","v":""},{"$f":"IF(A227=\"\",\"\",'1. Checklist & Certification'!$K$1)","v":""},{"$f":"IF(A227=\"\",\"\",'1. Checklist & Certification'!$C$62)","v":""},{"$f":"IF(A227=\"\",\"\",'1. Checklist & Certification'!$K$62)","v":""},{"$f":"IF(A227=\"\",\"\",'1. Checklist & Certification'!$C$6)","v":""},{"$f":"IF(A227=\"\",\"\",'1. Checklist & Certification'!$G$4)","v":""},{"$f":"IF(A227=\"\",\"\",'1. Checklist & Certification'!$C$7)","v":""},{"$f":"IF(A227=\"\",\"\",'1. Checklist & Certification'!$C$8)","v":""},{"$f":"IF(A227=\"\",\"\",'1. Checklist & Certification'!$F$7)","v":""},{"$f":"IF(A227=\"\",\"\",'1. Checklist & Certification'!$F$8)","v":""},{"$f":"IF(A227=\"\",\"\",'1. Checklist & Certification'!$B$9)","v":""},{"$f":"IF(A227=\"\",\"\",'1. Checklist & Certification'!$F$9)","v":""},{"$f":"IF(A227=\"\",\"\",'1. Checklist & Certification'!$C$10)","v":""},{"$f":"IF(A227=\"\",\"\",'1. Checklist & Certification'!$C$11)","v":""},{"$f":"IF(A227=\"\",\"\",'1. Checklist & Certification'!$C$12)","v":""},{"$f":"IF(A227=\"\",\"\",'1. Checklist & Certification'!$B$14)","v":""},{"$f":"IF(A227=\"\",\"\",'1. Checklist & Certification'!$E$14)","v":""},{"$f":"IF(B227=\"\",\"\",'1. Checklist & Certification'!$G$14)","v":""},{"$f":"IF(A227=\"\",\"\",'MHP Family Income & Rent Limits'!$B$3)","v":""},{"$f":"IF(A227=\"\",\"\",'MHP Family Income & Rent Limits'!$J$3)","v":""},{"$f":"IF(A227=\"\",\"\",'MHP Family Income & Rent Limits'!$E$4)","v":""},{"$f":"IF(A227=\"\",\"\",'MHP Family Income & Rent Limits'!$C$7)","v":""},{"$f":"IF(A227=\"\",\"\",'MHP Family Income & Rent Limits'!$F$8)","v":""},{"$f":"IF(A227=\"\",\"\",'1. Checklist & Certification'!$G$4)","v":""},{"$f":"IF(A227=\"\",\"\",'1. Checklist & Certification'!$K$39)","v":""},{"$f":"IF(A227=\"\",\"\",'1. Checklist & Certification'!$K$43)","v":""},{"$f":"IF(A227=\"\",\"\",'1. Checklist & Certification'!$K$45)","v":""},{"$f":"IF(A227=\"\",\"\",'1. Checklist & Certification'!$K$49)","v":""},{"$f":"IF(A227=\"\",\"\",'1. Checklist & Certification'!$E$66)","v":""},{"$f":"IF(A227=\"\",\"\",'1. Checklist & Certification'!$E$67)","v":""},{"$f":"IF(A227=\"\",\"\",'1. Checklist & Certification'!$E$68)","v":""},{"$f":"IF(A227=\"\",\"\",'1. Checklist & Certification'!$G$66)","v":""},{"$f":"IF(A227=\"\",\"\",'1. Checklist & Certification'!$H$66)","v":""},{"$f":"IF(A227=\"\",\"\",'1. Checklist & Certification'!$I$66)","v":""},{"$f":"IF(A227=\"\",\"\",'1. Checklist & Certification'!$I$67)","v":""},{"$f":"IF(A227=\"\",\"\",'1. Checklist & Certification'!$I$68)","v":""},null,{"$f":"IF(C227=\"\",\"\",HLOOKUP(C227,'MHP Family Income & Rent Limits'!$E$12:$L$26,2,FALSE))","v":""},{"$f":"IF(C227=\"\",\"\",HLOOKUP(C227,'MHP Family Income & Rent Limits'!$E$12:$L$26,3,FALSE))","v":""},{"$f":"IF(C227=\"\",\"\",HLOOKUP(C227,'MHP Family Income & Rent Limits'!$E$12:$L$26,4,FALSE))","v":""},{"$f":"IF(C227=\"\",\"\",HLOOKUP(C227,'MHP Family Income & Rent Limits'!$E$12:$L$26,5,FALSE))","v":""},{"$f":"IF(C227=\"\",\"\",HLOOKUP(C227,'MHP Family Income & Rent Limits'!$E$12:$L$26,6,FALSE))","v":""},{"$f":"IF(C227=\"\",\"\",HLOOKUP(C227,'MHP Family Income & Rent Limits'!$E$12:$L$26,7,FALSE))","v":""},{"$f":"IF(C227=\"\",\"\",HLOOKUP(C227,'MHP Family Income & Rent Limits'!$E$12:$L$26,8,FALSE))","v":""},{"$f":"IF(C227=\"\",\"\",HLOOKUP(C227,'MHP Family Income & Rent Limits'!$E$12:$L$26,9,FALSE))","v":""},{"$f":"IF(C227=\"\",\"\",HLOOKUP(C227,'MHP Family Income & Rent Limits'!$E$12:$L$26,10,FALSE))","v":""},{"$f":"IF(C227=\"\",\"\",HLOOKUP(C227,'MHP Family Income & Rent Limits'!$E$12:$L$26,11,FALSE))","v":""},{"$f":"IF(C227=\"\",\"\",HLOOKUP(C227,'MHP Family Income & Rent Limits'!$E$12:$L$26,12,FALSE))","v":""},{"$f":"IF(C227=\"\",\"\",HLOOKUP(C227,'MHP Family Income & Rent Limits'!$E$12:$L$26,13,FALSE))","v":""},{"$f":"IF(C227=\"\",\"\",HLOOKUP(C227,'MHP Family Income & Rent Limits'!$E$12:$L$26,14,FALSE))","v":""},{"$f":"IF(C227=\"\",\"\",HLOOKUP(C227,'MHP Family Income & Rent Limits'!$E$12:$L$26,15,FALSE))","v":""}]
[{"$f":"IF('2. Assisted & Restricted Units'!A228=\"\",\"\",'2. Assisted & Restricted Units'!A228)","v":""},{"$f":"IF('2. Assisted & Restricted Units'!B228=\"\",\"\",'2. Assisted & Restricted Units'!B228)","v":""},{"$f":"IF('2. Assisted & Restricted Units'!D228=\"\",\"\",'2. Assisted & Restricted Units'!D228)","v":""},{"$f":"IF('2. Assisted & Restricted Units'!E228=\"\",\"\",'2. Assisted & Restricted Units'!E228)","v":""},{"$f":"IF('2. Assisted & Restricted Units'!H228=\"\",\"\",'2. Assisted & Restricted Units'!H228)","v":""},{"$f":"_xlfn.IFS(E228=\"\",\"\",E228>BO228,$BP$6,E228>BN228,$BO$6,E228>BM228,$BN$6,E228>BL228,$BM$6,E228>BK228,$BL$6,E228>BJ228,$BK$6,E228>BI228,$BJ$6,E228>BH228,$BI$6,E228>BG228,$BH$6,E228>BF228,$BG$6,E228>BE228,$BF$6,E228>BD228,$BE$6,E228>BC228,$BD$6,E228>=0,$BC$6)","v":""},{"$f":"IF('2. Assisted & Restricted Units'!T228=\"\",\"\",'2. Assisted & Restricted Units'!T228)","v":""},{"$f":"IF('2. Assisted & Restricted Units'!I228=\"\",\"\",'2. Assisted & Restricted Units'!I228)","v":""},{"$f":"IF('2. Assisted & Restricted Units'!AP228=\"\",\"\",'2. Assisted & Restricted Units'!AP228)","v":0},{"$f":"IF('2. Assisted & Restricted Units'!AT228=\"\",\"\",'2. Assisted & Restricted Units'!AT228)","v":""},0,{"$f":"IF('2. Assisted & Restricted Units'!AV228=\"\",\"\",'2. Assisted & Restricted Units'!AV228)","v":""},{"$f":"IF('2. Assisted & Restricted Units'!L228=\"\",\"\",'2. Assisted & Restricted Units'!L228)","v":""},{"$f":"IF('2. Assisted & Restricted Units'!M228=\"\",\"\",'2. Assisted & Restricted Units'!M228)","v":""},{"$f":"IF('2. Assisted & Restricted Units'!O228=\"\",\"\",'2. Assisted & Restricted Units'!O228)","v":""},{"$f":"IF('2. Assisted & Restricted Units'!P228=\"\",\"\",'2. Assisted & Restricted Units'!P228)","v":""},{"$f":"IF('2. Assisted & Restricted Units'!Q228=\"\",\"\",'2. Assisted & Restricted Units'!Q228)","v":""},{"$f":"IF('2. Assisted & Restricted Units'!R228=\"\",\"\",'2. Assisted & Restricted Units'!R228)","v":""},{"$f":"IF(A228=\"\",\"\",'1. Checklist & Certification'!$K$1)","v":""},{"$f":"IF(A228=\"\",\"\",'1. Checklist & Certification'!$C$62)","v":""},{"$f":"IF(A228=\"\",\"\",'1. Checklist & Certification'!$K$62)","v":""},{"$f":"IF(A228=\"\",\"\",'1. Checklist & Certification'!$C$6)","v":""},{"$f":"IF(A228=\"\",\"\",'1. Checklist & Certification'!$G$4)","v":""},{"$f":"IF(A228=\"\",\"\",'1. Checklist & Certification'!$C$7)","v":""},{"$f":"IF(A228=\"\",\"\",'1. Checklist & Certification'!$C$8)","v":""},{"$f":"IF(A228=\"\",\"\",'1. Checklist & Certification'!$F$7)","v":""},{"$f":"IF(A228=\"\",\"\",'1. Checklist & Certification'!$F$8)","v":""},{"$f":"IF(A228=\"\",\"\",'1. Checklist & Certification'!$B$9)","v":""},{"$f":"IF(A228=\"\",\"\",'1. Checklist & Certification'!$F$9)","v":""},{"$f":"IF(A228=\"\",\"\",'1. Checklist & Certification'!$C$10)","v":""},{"$f":"IF(A228=\"\",\"\",'1. Checklist & Certification'!$C$11)","v":""},{"$f":"IF(A228=\"\",\"\",'1. Checklist & Certification'!$C$12)","v":""},{"$f":"IF(A228=\"\",\"\",'1. Checklist & Certification'!$B$14)","v":""},{"$f":"IF(A228=\"\",\"\",'1. Checklist & Certification'!$E$14)","v":""},{"$f":"IF(B228=\"\",\"\",'1. Checklist & Certification'!$G$14)","v":""},{"$f":"IF(A228=\"\",\"\",'MHP Family Income & Rent Limits'!$B$3)","v":""},{"$f":"IF(A228=\"\",\"\",'MHP Family Income & Rent Limits'!$J$3)","v":""},{"$f":"IF(A228=\"\",\"\",'MHP Family Income & Rent Limits'!$E$4)","v":""},{"$f":"IF(A228=\"\",\"\",'MHP Family Income & Rent Limits'!$C$7)","v":""},{"$f":"IF(A228=\"\",\"\",'MHP Family Income & Rent Limits'!$F$8)","v":""},{"$f":"IF(A228=\"\",\"\",'1. Checklist & Certification'!$G$4)","v":""},{"$f":"IF(A228=\"\",\"\",'1. Checklist & Certification'!$K$39)","v":""},{"$f":"IF(A228=\"\",\"\",'1. Checklist & Certification'!$K$43)","v":""},{"$f":"IF(A228=\"\",\"\",'1. Checklist & Certification'!$K$45)","v":""},{"$f":"IF(A228=\"\",\"\",'1. Checklist & Certification'!$K$49)","v":""},{"$f":"IF(A228=\"\",\"\",'1. Checklist & Certification'!$E$66)","v":""},{"$f":"IF(A228=\"\",\"\",'1. Checklist & Certification'!$E$67)","v":""},{"$f":"IF(A228=\"\",\"\",'1. Checklist & Certification'!$E$68)","v":""},{"$f":"IF(A228=\"\",\"\",'1. Checklist & Certification'!$G$66)","v":""},{"$f":"IF(A228=\"\",\"\",'1. Checklist & Certification'!$H$66)","v":""},{"$f":"IF(A228=\"\",\"\",'1. Checklist & Certification'!$I$66)","v":""},{"$f":"IF(A228=\"\",\"\",'1. Checklist & Certification'!$I$67)","v":""},{"$f":"IF(A228=\"\",\"\",'1. Checklist & Certification'!$I$68)","v":""},null,{"$f":"IF(C228=\"\",\"\",HLOOKUP(C228,'MHP Family Income & Rent Limits'!$E$12:$L$26,2,FALSE))","v":""},{"$f":"IF(C228=\"\",\"\",HLOOKUP(C228,'MHP Family Income & Rent Limits'!$E$12:$L$26,3,FALSE))","v":""},{"$f":"IF(C228=\"\",\"\",HLOOKUP(C228,'MHP Family Income & Rent Limits'!$E$12:$L$26,4,FALSE))","v":""},{"$f":"IF(C228=\"\",\"\",HLOOKUP(C228,'MHP Family Income & Rent Limits'!$E$12:$L$26,5,FALSE))","v":""},{"$f":"IF(C228=\"\",\"\",HLOOKUP(C228,'MHP Family Income & Rent Limits'!$E$12:$L$26,6,FALSE))","v":""},{"$f":"IF(C228=\"\",\"\",HLOOKUP(C228,'MHP Family Income & Rent Limits'!$E$12:$L$26,7,FALSE))","v":""},{"$f":"IF(C228=\"\",\"\",HLOOKUP(C228,'MHP Family Income & Rent Limits'!$E$12:$L$26,8,FALSE))","v":""},{"$f":"IF(C228=\"\",\"\",HLOOKUP(C228,'MHP Family Income & Rent Limits'!$E$12:$L$26,9,FALSE))","v":""},{"$f":"IF(C228=\"\",\"\",HLOOKUP(C228,'MHP Family Income & Rent Limits'!$E$12:$L$26,10,FALSE))","v":""},{"$f":"IF(C228=\"\",\"\",HLOOKUP(C228,'MHP Family Income & Rent Limits'!$E$12:$L$26,11,FALSE))","v":""},{"$f":"IF(C228=\"\",\"\",HLOOKUP(C228,'MHP Family Income & Rent Limits'!$E$12:$L$26,12,FALSE))","v":""},{"$f":"IF(C228=\"\",\"\",HLOOKUP(C228,'MHP Family Income & Rent Limits'!$E$12:$L$26,13,FALSE))","v":""},{"$f":"IF(C228=\"\",\"\",HLOOKUP(C228,'MHP Family Income & Rent Limits'!$E$12:$L$26,14,FALSE))","v":""},{"$f":"IF(C228=\"\",\"\",HLOOKUP(C228,'MHP Family Income & Rent Limits'!$E$12:$L$26,15,FALSE))","v":""}]
[{"$f":"IF('2. Assisted & Restricted Units'!A229=\"\",\"\",'2. Assisted & Restricted Units'!A229)","v":""},{"$f":"IF('2. Assisted & Restricted Units'!B229=\"\",\"\",'2. Assisted & Restricted Units'!B229)","v":""},{"$f":"IF('2. Assisted & Restricted Units'!D229=\"\",\"\",'2. Assisted & Restricted Units'!D229)","v":""},{"$f":"IF('2. Assisted & Restricted Units'!E229=\"\",\"\",'2. Assisted & Restricted Units'!E229)","v":""},{"$f":"IF('2. Assisted & Restricted Units'!H229=\"\",\"\",'2. Assisted & Restricted Units'!H229)","v":""},{"$f":"_xlfn.IFS(E229=\"\",\"\",E229>BO229,$BP$6,E229>BN229,$BO$6,E229>BM229,$BN$6,E229>BL229,$BM$6,E229>BK229,$BL$6,E229>BJ229,$BK$6,E229>BI229,$BJ$6,E229>BH229,$BI$6,E229>BG229,$BH$6,E229>BF229,$BG$6,E229>BE229,$BF$6,E229>BD229,$BE$6,E229>BC229,$BD$6,E229>=0,$BC$6)","v":""},{"$f":"IF('2. Assisted & Restricted Units'!T229=\"\",\"\",'2. Assisted & Restricted Units'!T229)","v":""},{"$f":"IF('2. Assisted & Restricted Units'!I229=\"\",\"\",'2. Assisted & Restricted Units'!I229)","v":""},{"$f":"IF('2. Assisted & Restricted Units'!AP229=\"\",\"\",'2. Assisted & Restricted Units'!AP229)","v":0},{"$f":"IF('2. Assisted & Restricted Units'!AT229=\"\",\"\",'2. Assisted & Restricted Units'!AT229)","v":""},0,{"$f":"IF('2. Assisted & Restricted Units'!AV229=\"\",\"\",'2. Assisted & Restricted Units'!AV229)","v":""},{"$f":"IF('2. Assisted & Restricted Units'!L229=\"\",\"\",'2. Assisted & Restricted Units'!L229)","v":""},{"$f":"IF('2. Assisted & Restricted Units'!M229=\"\",\"\",'2. Assisted & Restricted Units'!M229)","v":""},{"$f":"IF('2. Assisted & Restricted Units'!O229=\"\",\"\",'2. Assisted & Restricted Units'!O229)","v":""},{"$f":"IF('2. Assisted & Restricted Units'!P229=\"\",\"\",'2. Assisted & Restricted Units'!P229)","v":""},{"$f":"IF('2. Assisted & Restricted Units'!Q229=\"\",\"\",'2. Assisted & Restricted Units'!Q229)","v":""},{"$f":"IF('2. Assisted & Restricted Units'!R229=\"\",\"\",'2. Assisted & Restricted Units'!R229)","v":""},{"$f":"IF(A229=\"\",\"\",'1. Checklist & Certification'!$K$1)","v":""},{"$f":"IF(A229=\"\",\"\",'1. Checklist & Certification'!$C$62)","v":""},{"$f":"IF(A229=\"\",\"\",'1. Checklist & Certification'!$K$62)","v":""},{"$f":"IF(A229=\"\",\"\",'1. Checklist & Certification'!$C$6)","v":""},{"$f":"IF(A229=\"\",\"\",'1. Checklist & Certification'!$G$4)","v":""},{"$f":"IF(A229=\"\",\"\",'1. Checklist & Certification'!$C$7)","v":""},{"$f":"IF(A229=\"\",\"\",'1. Checklist & Certification'!$C$8)","v":""},{"$f":"IF(A229=\"\",\"\",'1. Checklist & Certification'!$F$7)","v":""},{"$f":"IF(A229=\"\",\"\",'1. Checklist & Certification'!$F$8)","v":""},{"$f":"IF(A229=\"\",\"\",'1. Checklist & Certification'!$B$9)","v":""},{"$f":"IF(A229=\"\",\"\",'1. Checklist & Certification'!$F$9)","v":""},{"$f":"IF(A229=\"\",\"\",'1. Checklist & Certification'!$C$10)","v":""},{"$f":"IF(A229=\"\",\"\",'1. Checklist & Certification'!$C$11)","v":""},{"$f":"IF(A229=\"\",\"\",'1. Checklist & Certification'!$C$12)","v":""},{"$f":"IF(A229=\"\",\"\",'1. Checklist & Certification'!$B$14)","v":""},{"$f":"IF(A229=\"\",\"\",'1. Checklist & Certification'!$E$14)","v":""},{"$f":"IF(B229=\"\",\"\",'1. Checklist & Certification'!$G$14)","v":""},{"$f":"IF(A229=\"\",\"\",'MHP Family Income & Rent Limits'!$B$3)","v":""},{"$f":"IF(A229=\"\",\"\",'MHP Family Income & Rent Limits'!$J$3)","v":""},{"$f":"IF(A229=\"\",\"\",'MHP Family Income & Rent Limits'!$E$4)","v":""},{"$f":"IF(A229=\"\",\"\",'MHP Family Income & Rent Limits'!$C$7)","v":""},{"$f":"IF(A229=\"\",\"\",'MHP Family Income & Rent Limits'!$F$8)","v":""},{"$f":"IF(A229=\"\",\"\",'1. Checklist & Certification'!$G$4)","v":""},{"$f":"IF(A229=\"\",\"\",'1. Checklist & Certification'!$K$39)","v":""},{"$f":"IF(A229=\"\",\"\",'1. Checklist & Certification'!$K$43)","v":""},{"$f":"IF(A229=\"\",\"\",'1. Checklist & Certification'!$K$45)","v":""},{"$f":"IF(A229=\"\",\"\",'1. Checklist & Certification'!$K$49)","v":""},{"$f":"IF(A229=\"\",\"\",'1. Checklist & Certification'!$E$66)","v":""},{"$f":"IF(A229=\"\",\"\",'1. Checklist & Certification'!$E$67)","v":""},{"$f":"IF(A229=\"\",\"\",'1. Checklist & Certification'!$E$68)","v":""},{"$f":"IF(A229=\"\",\"\",'1. Checklist & Certification'!$G$66)","v":""},{"$f":"IF(A229=\"\",\"\",'1. Checklist & Certification'!$H$66)","v":""},{"$f":"IF(A229=\"\",\"\",'1. Checklist & Certification'!$I$66)","v":""},{"$f":"IF(A229=\"\",\"\",'1. Checklist & Certification'!$I$67)","v":""},{"$f":"IF(A229=\"\",\"\",'1. Checklist & Certification'!$I$68)","v":""},null,{"$f":"IF(C229=\"\",\"\",HLOOKUP(C229,'MHP Family Income & Rent Limits'!$E$12:$L$26,2,FALSE))","v":""},{"$f":"IF(C229=\"\",\"\",HLOOKUP(C229,'MHP Family Income & Rent Limits'!$E$12:$L$26,3,FALSE))","v":""},{"$f":"IF(C229=\"\",\"\",HLOOKUP(C229,'MHP Family Income & Rent Limits'!$E$12:$L$26,4,FALSE))","v":""},{"$f":"IF(C229=\"\",\"\",HLOOKUP(C229,'MHP Family Income & Rent Limits'!$E$12:$L$26,5,FALSE))","v":""},{"$f":"IF(C229=\"\",\"\",HLOOKUP(C229,'MHP Family Income & Rent Limits'!$E$12:$L$26,6,FALSE))","v":""},{"$f":"IF(C229=\"\",\"\",HLOOKUP(C229,'MHP Family Income & Rent Limits'!$E$12:$L$26,7,FALSE))","v":""},{"$f":"IF(C229=\"\",\"\",HLOOKUP(C229,'MHP Family Income & Rent Limits'!$E$12:$L$26,8,FALSE))","v":""},{"$f":"IF(C229=\"\",\"\",HLOOKUP(C229,'MHP Family Income & Rent Limits'!$E$12:$L$26,9,FALSE))","v":""},{"$f":"IF(C229=\"\",\"\",HLOOKUP(C229,'MHP Family Income & Rent Limits'!$E$12:$L$26,10,FALSE))","v":""},{"$f":"IF(C229=\"\",\"\",HLOOKUP(C229,'MHP Family Income & Rent Limits'!$E$12:$L$26,11,FALSE))","v":""},{"$f":"IF(C229=\"\",\"\",HLOOKUP(C229,'MHP Family Income & Rent Limits'!$E$12:$L$26,12,FALSE))","v":""},{"$f":"IF(C229=\"\",\"\",HLOOKUP(C229,'MHP Family Income & Rent Limits'!$E$12:$L$26,13,FALSE))","v":""},{"$f":"IF(C229=\"\",\"\",HLOOKUP(C229,'MHP Family Income & Rent Limits'!$E$12:$L$26,14,FALSE))","v":""},{"$f":"IF(C229=\"\",\"\",HLOOKUP(C229,'MHP Family Income & Rent Limits'!$E$12:$L$26,15,FALSE))","v":""}]
[{"$f":"IF('2. Assisted & Restricted Units'!A230=\"\",\"\",'2. Assisted & Restricted Units'!A230)","v":""},{"$f":"IF('2. Assisted & Restricted Units'!B230=\"\",\"\",'2. Assisted & Restricted Units'!B230)","v":""},{"$f":"IF('2. Assisted & Restricted Units'!D230=\"\",\"\",'2. Assisted & Restricted Units'!D230)","v":""},{"$f":"IF('2. Assisted & Restricted Units'!E230=\"\",\"\",'2. Assisted & Restricted Units'!E230)","v":""},{"$f":"IF('2. Assisted & Restricted Units'!H230=\"\",\"\",'2. Assisted & Restricted Units'!H230)","v":""},{"$f":"_xlfn.IFS(E230=\"\",\"\",E230>BO230,$BP$6,E230>BN230,$BO$6,E230>BM230,$BN$6,E230>BL230,$BM$6,E230>BK230,$BL$6,E230>BJ230,$BK$6,E230>BI230,$BJ$6,E230>BH230,$BI$6,E230>BG230,$BH$6,E230>BF230,$BG$6,E230>BE230,$BF$6,E230>BD230,$BE$6,E230>BC230,$BD$6,E230>=0,$BC$6)","v":""},{"$f":"IF('2. Assisted & Restricted Units'!T230=\"\",\"\",'2. Assisted & Restricted Units'!T230)","v":""},{"$f":"IF('2. Assisted & Restricted Units'!I230=\"\",\"\",'2. Assisted & Restricted Units'!I230)","v":""},{"$f":"IF('2. Assisted & Restricted Units'!AP230=\"\",\"\",'2. Assisted & Restricted Units'!AP230)","v":0},{"$f":"IF('2. Assisted & Restricted Units'!AT230=\"\",\"\",'2. Assisted & Restricted Units'!AT230)","v":""},0,{"$f":"IF('2. Assisted & Restricted Units'!AV230=\"\",\"\",'2. Assisted & Restricted Units'!AV230)","v":""},{"$f":"IF('2. Assisted & Restricted Units'!L230=\"\",\"\",'2. Assisted & Restricted Units'!L230)","v":""},{"$f":"IF('2. Assisted & Restricted Units'!M230=\"\",\"\",'2. Assisted & Restricted Units'!M230)","v":""},{"$f":"IF('2. Assisted & Restricted Units'!O230=\"\",\"\",'2. Assisted & Restricted Units'!O230)","v":""},{"$f":"IF('2. Assisted & Restricted Units'!P230=\"\",\"\",'2. Assisted & Restricted Units'!P230)","v":""},{"$f":"IF('2. Assisted & Restricted Units'!Q230=\"\",\"\",'2. Assisted & Restricted Units'!Q230)","v":""},{"$f":"IF('2. Assisted & Restricted Units'!R230=\"\",\"\",'2. Assisted & Restricted Units'!R230)","v":""},{"$f":"IF(A230=\"\",\"\",'1. Checklist & Certification'!$K$1)","v":""},{"$f":"IF(A230=\"\",\"\",'1. Checklist & Certification'!$C$62)","v":""},{"$f":"IF(A230=\"\",\"\",'1. Checklist & Certification'!$K$62)","v":""},{"$f":"IF(A230=\"\",\"\",'1. Checklist & Certification'!$C$6)","v":""},{"$f":"IF(A230=\"\",\"\",'1. Checklist & Certification'!$G$4)","v":""},{"$f":"IF(A230=\"\",\"\",'1. Checklist & Certification'!$C$7)","v":""},{"$f":"IF(A230=\"\",\"\",'1. Checklist & Certification'!$C$8)","v":""},{"$f":"IF(A230=\"\",\"\",'1. Checklist & Certification'!$F$7)","v":""},{"$f":"IF(A230=\"\",\"\",'1. Checklist & Certification'!$F$8)","v":""},{"$f":"IF(A230=\"\",\"\",'1. Checklist & Certification'!$B$9)","v":""},{"$f":"IF(A230=\"\",\"\",'1. Checklist & Certification'!$F$9)","v":""},{"$f":"IF(A230=\"\",\"\",'1. Checklist & Certification'!$C$10)","v":""},{"$f":"IF(A230=\"\",\"\",'1. Checklist & Certification'!$C$11)","v":""},{"$f":"IF(A230=\"\",\"\",'1. Checklist & Certification'!$C$12)","v":""},{"$f":"IF(A230=\"\",\"\",'1. Checklist & Certification'!$B$14)","v":""},{"$f":"IF(A230=\"\",\"\",'1. Checklist & Certification'!$E$14)","v":""},{"$f":"IF(B230=\"\",\"\",'1. Checklist & Certification'!$G$14)","v":""},{"$f":"IF(A230=\"\",\"\",'MHP Family Income & Rent Limits'!$B$3)","v":""},{"$f":"IF(A230=\"\",\"\",'MHP Family Income & Rent Limits'!$J$3)","v":""},{"$f":"IF(A230=\"\",\"\",'MHP Family Income & Rent Limits'!$E$4)","v":""},{"$f":"IF(A230=\"\",\"\",'MHP Family Income & Rent Limits'!$C$7)","v":""},{"$f":"IF(A230=\"\",\"\",'MHP Family Income & Rent Limits'!$F$8)","v":""},{"$f":"IF(A230=\"\",\"\",'1. Checklist & Certification'!$G$4)","v":""},{"$f":"IF(A230=\"\",\"\",'1. Checklist & Certification'!$K$39)","v":""},{"$f":"IF(A230=\"\",\"\",'1. Checklist & Certification'!$K$43)","v":""},{"$f":"IF(A230=\"\",\"\",'1. Checklist & Certification'!$K$45)","v":""},{"$f":"IF(A230=\"\",\"\",'1. Checklist & Certification'!$K$49)","v":""},{"$f":"IF(A230=\"\",\"\",'1. Checklist & Certification'!$E$66)","v":""},{"$f":"IF(A230=\"\",\"\",'1. Checklist & Certification'!$E$67)","v":""},{"$f":"IF(A230=\"\",\"\",'1. Checklist & Certification'!$E$68)","v":""},{"$f":"IF(A230=\"\",\"\",'1. Checklist & Certification'!$G$66)","v":""},{"$f":"IF(A230=\"\",\"\",'1. Checklist & Certification'!$H$66)","v":""},{"$f":"IF(A230=\"\",\"\",'1. Checklist & Certification'!$I$66)","v":""},{"$f":"IF(A230=\"\",\"\",'1. Checklist & Certification'!$I$67)","v":""},{"$f":"IF(A230=\"\",\"\",'1. Checklist & Certification'!$I$68)","v":""},null,{"$f":"IF(C230=\"\",\"\",HLOOKUP(C230,'MHP Family Income & Rent Limits'!$E$12:$L$26,2,FALSE))","v":""},{"$f":"IF(C230=\"\",\"\",HLOOKUP(C230,'MHP Family Income & Rent Limits'!$E$12:$L$26,3,FALSE))","v":""},{"$f":"IF(C230=\"\",\"\",HLOOKUP(C230,'MHP Family Income & Rent Limits'!$E$12:$L$26,4,FALSE))","v":""},{"$f":"IF(C230=\"\",\"\",HLOOKUP(C230,'MHP Family Income & Rent Limits'!$E$12:$L$26,5,FALSE))","v":""},{"$f":"IF(C230=\"\",\"\",HLOOKUP(C230,'MHP Family Income & Rent Limits'!$E$12:$L$26,6,FALSE))","v":""},{"$f":"IF(C230=\"\",\"\",HLOOKUP(C230,'MHP Family Income & Rent Limits'!$E$12:$L$26,7,FALSE))","v":""},{"$f":"IF(C230=\"\",\"\",HLOOKUP(C230,'MHP Family Income & Rent Limits'!$E$12:$L$26,8,FALSE))","v":""},{"$f":"IF(C230=\"\",\"\",HLOOKUP(C230,'MHP Family Income & Rent Limits'!$E$12:$L$26,9,FALSE))","v":""},{"$f":"IF(C230=\"\",\"\",HLOOKUP(C230,'MHP Family Income & Rent Limits'!$E$12:$L$26,10,FALSE))","v":""},{"$f":"IF(C230=\"\",\"\",HLOOKUP(C230,'MHP Family Income & Rent Limits'!$E$12:$L$26,11,FALSE))","v":""},{"$f":"IF(C230=\"\",\"\",HLOOKUP(C230,'MHP Family Income & Rent Limits'!$E$12:$L$26,12,FALSE))","v":""},{"$f":"IF(C230=\"\",\"\",HLOOKUP(C230,'MHP Family Income & Rent Limits'!$E$12:$L$26,13,FALSE))","v":""},{"$f":"IF(C230=\"\",\"\",HLOOKUP(C230,'MHP Family Income & Rent Limits'!$E$12:$L$26,14,FALSE))","v":""},{"$f":"IF(C230=\"\",\"\",HLOOKUP(C230,'MHP Family Income & Rent Limits'!$E$12:$L$26,15,FALSE))","v":""}]
[{"$f":"IF('2. Assisted & Restricted Units'!A231=\"\",\"\",'2. Assisted & Restricted Units'!A231)","v":""},{"$f":"IF('2. Assisted & Restricted Units'!B231=\"\",\"\",'2. Assisted & Restricted Units'!B231)","v":""},{"$f":"IF('2. Assisted & Restricted Units'!D231=\"\",\"\",'2. Assisted & Restricted Units'!D231)","v":""},{"$f":"IF('2. Assisted & Restricted Units'!E231=\"\",\"\",'2. Assisted & Restricted Units'!E231)","v":""},{"$f":"IF('2. Assisted & Restricted Units'!H231=\"\",\"\",'2. Assisted & Restricted Units'!H231)","v":""},{"$f":"_xlfn.IFS(E231=\"\",\"\",E231>BO231,$BP$6,E231>BN231,$BO$6,E231>BM231,$BN$6,E231>BL231,$BM$6,E231>BK231,$BL$6,E231>BJ231,$BK$6,E231>BI231,$BJ$6,E231>BH231,$BI$6,E231>BG231,$BH$6,E231>BF231,$BG$6,E231>BE231,$BF$6,E231>BD231,$BE$6,E231>BC231,$BD$6,E231>=0,$BC$6)","v":""},{"$f":"IF('2. Assisted & Restricted Units'!T231=\"\",\"\",'2. Assisted & Restricted Units'!T231)","v":""},{"$f":"IF('2. Assisted & Restricted Units'!I231=\"\",\"\",'2. Assisted & Restricted Units'!I231)","v":""},{"$f":"IF('2. Assisted & Restricted Units'!AP231=\"\",\"\",'2. Assisted & Restricted Units'!AP231)","v":0},{"$f":"IF('2. Assisted & Restricted Units'!AT231=\"\",\"\",'2. Assisted & Restricted Units'!AT231)","v":""},0,{"$f":"IF('2. Assisted & Restricted Units'!AV231=\"\",\"\",'2. Assisted & Restricted Units'!AV231)","v":""},{"$f":"IF('2. Assisted & Restricted Units'!L231=\"\",\"\",'2. Assisted & Restricted Units'!L231)","v":""},{"$f":"IF('2. Assisted & Restricted Units'!M231=\"\",\"\",'2. Assisted & Restricted Units'!M231)","v":""},{"$f":"IF('2. Assisted & Restricted Units'!O231=\"\",\"\",'2. Assisted & Restricted Units'!O231)","v":""},{"$f":"IF('2. Assisted & Restricted Units'!P231=\"\",\"\",'2. Assisted & Restricted Units'!P231)","v":""},{"$f":"IF('2. Assisted & Restricted Units'!Q231=\"\",\"\",'2. Assisted & Restricted Units'!Q231)","v":""},{"$f":"IF('2. Assisted & Restricted Units'!R231=\"\",\"\",'2. Assisted & Restricted Units'!R231)","v":""},{"$f":"IF(A231=\"\",\"\",'1. Checklist & Certification'!$K$1)","v":""},{"$f":"IF(A231=\"\",\"\",'1. Checklist & Certification'!$C$62)","v":""},{"$f":"IF(A231=\"\",\"\",'1. Checklist & Certification'!$K$62)","v":""},{"$f":"IF(A231=\"\",\"\",'1. Checklist & Certification'!$C$6)","v":""},{"$f":"IF(A231=\"\",\"\",'1. Checklist & Certification'!$G$4)","v":""},{"$f":"IF(A231=\"\",\"\",'1. Checklist & Certification'!$C$7)","v":""},{"$f":"IF(A231=\"\",\"\",'1. Checklist & Certification'!$C$8)","v":""},{"$f":"IF(A231=\"\",\"\",'1. Checklist & Certification'!$F$7)","v":""},{"$f":"IF(A231=\"\",\"\",'1. Checklist & Certification'!$F$8)","v":""},{"$f":"IF(A231=\"\",\"\",'1. Checklist & Certification'!$B$9)","v":""},{"$f":"IF(A231=\"\",\"\",'1. Checklist & Certification'!$F$9)","v":""},{"$f":"IF(A231=\"\",\"\",'1. Checklist & Certification'!$C$10)","v":""},{"$f":"IF(A231=\"\",\"\",'1. Checklist & Certification'!$C$11)","v":""},{"$f":"IF(A231=\"\",\"\",'1. Checklist & Certification'!$C$12)","v":""},{"$f":"IF(A231=\"\",\"\",'1. Checklist & Certification'!$B$14)","v":""},{"$f":"IF(A231=\"\",\"\",'1. Checklist & Certification'!$E$14)","v":""},{"$f":"IF(B231=\"\",\"\",'1. Checklist & Certification'!$G$14)","v":""},{"$f":"IF(A231=\"\",\"\",'MHP Family Income & Rent Limits'!$B$3)","v":""},{"$f":"IF(A231=\"\",\"\",'MHP Family Income & Rent Limits'!$J$3)","v":""},{"$f":"IF(A231=\"\",\"\",'MHP Family Income & Rent Limits'!$E$4)","v":""},{"$f":"IF(A231=\"\",\"\",'MHP Family Income & Rent Limits'!$C$7)","v":""},{"$f":"IF(A231=\"\",\"\",'MHP Family Income & Rent Limits'!$F$8)","v":""},{"$f":"IF(A231=\"\",\"\",'1. Checklist & Certification'!$G$4)","v":""},{"$f":"IF(A231=\"\",\"\",'1. Checklist & Certification'!$K$39)","v":""},{"$f":"IF(A231=\"\",\"\",'1. Checklist & Certification'!$K$43)","v":""},{"$f":"IF(A231=\"\",\"\",'1. Checklist & Certification'!$K$45)","v":""},{"$f":"IF(A231=\"\",\"\",'1. Checklist & Certification'!$K$49)","v":""},{"$f":"IF(A231=\"\",\"\",'1. Checklist & Certification'!$E$66)","v":""},{"$f":"IF(A231=\"\",\"\",'1. Checklist & Certification'!$E$67)","v":""},{"$f":"IF(A231=\"\",\"\",'1. Checklist & Certification'!$E$68)","v":""},{"$f":"IF(A231=\"\",\"\",'1. Checklist & Certification'!$G$66)","v":""},{"$f":"IF(A231=\"\",\"\",'1. Checklist & Certification'!$H$66)","v":""},{"$f":"IF(A231=\"\",\"\",'1. Checklist & Certification'!$I$66)","v":""},{"$f":"IF(A231=\"\",\"\",'1. Checklist & Certification'!$I$67)","v":""},{"$f":"IF(A231=\"\",\"\",'1. Checklist & Certification'!$I$68)","v":""},null,{"$f":"IF(C231=\"\",\"\",HLOOKUP(C231,'MHP Family Income & Rent Limits'!$E$12:$L$26,2,FALSE))","v":""},{"$f":"IF(C231=\"\",\"\",HLOOKUP(C231,'MHP Family Income & Rent Limits'!$E$12:$L$26,3,FALSE))","v":""},{"$f":"IF(C231=\"\",\"\",HLOOKUP(C231,'MHP Family Income & Rent Limits'!$E$12:$L$26,4,FALSE))","v":""},{"$f":"IF(C231=\"\",\"\",HLOOKUP(C231,'MHP Family Income & Rent Limits'!$E$12:$L$26,5,FALSE))","v":""},{"$f":"IF(C231=\"\",\"\",HLOOKUP(C231,'MHP Family Income & Rent Limits'!$E$12:$L$26,6,FALSE))","v":""},{"$f":"IF(C231=\"\",\"\",HLOOKUP(C231,'MHP Family Income & Rent Limits'!$E$12:$L$26,7,FALSE))","v":""},{"$f":"IF(C231=\"\",\"\",HLOOKUP(C231,'MHP Family Income & Rent Limits'!$E$12:$L$26,8,FALSE))","v":""},{"$f":"IF(C231=\"\",\"\",HLOOKUP(C231,'MHP Family Income & Rent Limits'!$E$12:$L$26,9,FALSE))","v":""},{"$f":"IF(C231=\"\",\"\",HLOOKUP(C231,'MHP Family Income & Rent Limits'!$E$12:$L$26,10,FALSE))","v":""},{"$f":"IF(C231=\"\",\"\",HLOOKUP(C231,'MHP Family Income & Rent Limits'!$E$12:$L$26,11,FALSE))","v":""},{"$f":"IF(C231=\"\",\"\",HLOOKUP(C231,'MHP Family Income & Rent Limits'!$E$12:$L$26,12,FALSE))","v":""},{"$f":"IF(C231=\"\",\"\",HLOOKUP(C231,'MHP Family Income & Rent Limits'!$E$12:$L$26,13,FALSE))","v":""},{"$f":"IF(C231=\"\",\"\",HLOOKUP(C231,'MHP Family Income & Rent Limits'!$E$12:$L$26,14,FALSE))","v":""},{"$f":"IF(C231=\"\",\"\",HLOOKUP(C231,'MHP Family Income & Rent Limits'!$E$12:$L$26,15,FALSE))","v":""}]
[{"$f":"IF('2. Assisted & Restricted Units'!A232=\"\",\"\",'2. Assisted & Restricted Units'!A232)","v":""},{"$f":"IF('2. Assisted & Restricted Units'!B232=\"\",\"\",'2. Assisted & Restricted Units'!B232)","v":""},{"$f":"IF('2. Assisted & Restricted Units'!D232=\"\",\"\",'2. Assisted & Restricted Units'!D232)","v":""},{"$f":"IF('2. Assisted & Restricted Units'!E232=\"\",\"\",'2. Assisted & Restricted Units'!E232)","v":""},{"$f":"IF('2. Assisted & Restricted Units'!H232=\"\",\"\",'2. Assisted & Restricted Units'!H232)","v":""},{"$f":"_xlfn.IFS(E232=\"\",\"\",E232>BO232,$BP$6,E232>BN232,$BO$6,E232>BM232,$BN$6,E232>BL232,$BM$6,E232>BK232,$BL$6,E232>BJ232,$BK$6,E232>BI232,$BJ$6,E232>BH232,$BI$6,E232>BG232,$BH$6,E232>BF232,$BG$6,E232>BE232,$BF$6,E232>BD232,$BE$6,E232>BC232,$BD$6,E232>=0,$BC$6)","v":""},{"$f":"IF('2. Assisted & Restricted Units'!T232=\"\",\"\",'2. Assisted & Restricted Units'!T232)","v":""},{"$f":"IF('2. Assisted & Restricted Units'!I232=\"\",\"\",'2. Assisted & Restricted Units'!I232)","v":""},{"$f":"IF('2. Assisted & Restricted Units'!AP232=\"\",\"\",'2. Assisted & Restricted Units'!AP232)","v":0},{"$f":"IF('2. Assisted & Restricted Units'!AT232=\"\",\"\",'2. Assisted & Restricted Units'!AT232)","v":""},0,{"$f":"IF('2. Assisted & Restricted Units'!AV232=\"\",\"\",'2. Assisted & Restricted Units'!AV232)","v":""},{"$f":"IF('2. Assisted & Restricted Units'!L232=\"\",\"\",'2. Assisted & Restricted Units'!L232)","v":""},{"$f":"IF('2. Assisted & Restricted Units'!M232=\"\",\"\",'2. Assisted & Restricted Units'!M232)","v":""},{"$f":"IF('2. Assisted & Restricted Units'!O232=\"\",\"\",'2. Assisted & Restricted Units'!O232)","v":""},{"$f":"IF('2. Assisted & Restricted Units'!P232=\"\",\"\",'2. Assisted & Restricted Units'!P232)","v":""},{"$f":"IF('2. Assisted & Restricted Units'!Q232=\"\",\"\",'2. Assisted & Restricted Units'!Q232)","v":""},{"$f":"IF('2. Assisted & Restricted Units'!R232=\"\",\"\",'2. Assisted & Restricted Units'!R232)","v":""},{"$f":"IF(A232=\"\",\"\",'1. Checklist & Certification'!$K$1)","v":""},{"$f":"IF(A232=\"\",\"\",'1. Checklist & Certification'!$C$62)","v":""},{"$f":"IF(A232=\"\",\"\",'1. Checklist & Certification'!$K$62)","v":""},{"$f":"IF(A232=\"\",\"\",'1. Checklist & Certification'!$C$6)","v":""},{"$f":"IF(A232=\"\",\"\",'1. Checklist & Certification'!$G$4)","v":""},{"$f":"IF(A232=\"\",\"\",'1. Checklist & Certification'!$C$7)","v":""},{"$f":"IF(A232=\"\",\"\",'1. Checklist & Certification'!$C$8)","v":""},{"$f":"IF(A232=\"\",\"\",'1. Checklist & Certification'!$F$7)","v":""},{"$f":"IF(A232=\"\",\"\",'1. Checklist & Certification'!$F$8)","v":""},{"$f":"IF(A232=\"\",\"\",'1. Checklist & Certification'!$B$9)","v":""},{"$f":"IF(A232=\"\",\"\",'1. Checklist & Certification'!$F$9)","v":""},{"$f":"IF(A232=\"\",\"\",'1. Checklist & Certification'!$C$10)","v":""},{"$f":"IF(A232=\"\",\"\",'1. Checklist & Certification'!$C$11)","v":""},{"$f":"IF(A232=\"\",\"\",'1. Checklist & Certification'!$C$12)","v":""},{"$f":"IF(A232=\"\",\"\",'1. Checklist & Certification'!$B$14)","v":""},{"$f":"IF(A232=\"\",\"\",'1. Checklist & Certification'!$E$14)","v":""},{"$f":"IF(B232=\"\",\"\",'1. Checklist & Certification'!$G$14)","v":""},{"$f":"IF(A232=\"\",\"\",'MHP Family Income & Rent Limits'!$B$3)","v":""},{"$f":"IF(A232=\"\",\"\",'MHP Family Income & Rent Limits'!$J$3)","v":""},{"$f":"IF(A232=\"\",\"\",'MHP Family Income & Rent Limits'!$E$4)","v":""},{"$f":"IF(A232=\"\",\"\",'MHP Family Income & Rent Limits'!$C$7)","v":""},{"$f":"IF(A232=\"\",\"\",'MHP Family Income & Rent Limits'!$F$8)","v":""},{"$f":"IF(A232=\"\",\"\",'1. Checklist & Certification'!$G$4)","v":""},{"$f":"IF(A232=\"\",\"\",'1. Checklist & Certification'!$K$39)","v":""},{"$f":"IF(A232=\"\",\"\",'1. Checklist & Certification'!$K$43)","v":""},{"$f":"IF(A232=\"\",\"\",'1. Checklist & Certification'!$K$45)","v":""},{"$f":"IF(A232=\"\",\"\",'1. Checklist & Certification'!$K$49)","v":""},{"$f":"IF(A232=\"\",\"\",'1. Checklist & Certification'!$E$66)","v":""},{"$f":"IF(A232=\"\",\"\",'1. Checklist & Certification'!$E$67)","v":""},{"$f":"IF(A232=\"\",\"\",'1. Checklist & Certification'!$E$68)","v":""},{"$f":"IF(A232=\"\",\"\",'1. Checklist & Certification'!$G$66)","v":""},{"$f":"IF(A232=\"\",\"\",'1. Checklist & Certification'!$H$66)","v":""},{"$f":"IF(A232=\"\",\"\",'1. Checklist & Certification'!$I$66)","v":""},{"$f":"IF(A232=\"\",\"\",'1. Checklist & Certification'!$I$67)","v":""},{"$f":"IF(A232=\"\",\"\",'1. Checklist & Certification'!$I$68)","v":""},null,{"$f":"IF(C232=\"\",\"\",HLOOKUP(C232,'MHP Family Income & Rent Limits'!$E$12:$L$26,2,FALSE))","v":""},{"$f":"IF(C232=\"\",\"\",HLOOKUP(C232,'MHP Family Income & Rent Limits'!$E$12:$L$26,3,FALSE))","v":""},{"$f":"IF(C232=\"\",\"\",HLOOKUP(C232,'MHP Family Income & Rent Limits'!$E$12:$L$26,4,FALSE))","v":""},{"$f":"IF(C232=\"\",\"\",HLOOKUP(C232,'MHP Family Income & Rent Limits'!$E$12:$L$26,5,FALSE))","v":""},{"$f":"IF(C232=\"\",\"\",HLOOKUP(C232,'MHP Family Income & Rent Limits'!$E$12:$L$26,6,FALSE))","v":""},{"$f":"IF(C232=\"\",\"\",HLOOKUP(C232,'MHP Family Income & Rent Limits'!$E$12:$L$26,7,FALSE))","v":""},{"$f":"IF(C232=\"\",\"\",HLOOKUP(C232,'MHP Family Income & Rent Limits'!$E$12:$L$26,8,FALSE))","v":""},{"$f":"IF(C232=\"\",\"\",HLOOKUP(C232,'MHP Family Income & Rent Limits'!$E$12:$L$26,9,FALSE))","v":""},{"$f":"IF(C232=\"\",\"\",HLOOKUP(C232,'MHP Family Income & Rent Limits'!$E$12:$L$26,10,FALSE))","v":""},{"$f":"IF(C232=\"\",\"\",HLOOKUP(C232,'MHP Family Income & Rent Limits'!$E$12:$L$26,11,FALSE))","v":""},{"$f":"IF(C232=\"\",\"\",HLOOKUP(C232,'MHP Family Income & Rent Limits'!$E$12:$L$26,12,FALSE))","v":""},{"$f":"IF(C232=\"\",\"\",HLOOKUP(C232,'MHP Family Income & Rent Limits'!$E$12:$L$26,13,FALSE))","v":""},{"$f":"IF(C232=\"\",\"\",HLOOKUP(C232,'MHP Family Income & Rent Limits'!$E$12:$L$26,14,FALSE))","v":""},{"$f":"IF(C232=\"\",\"\",HLOOKUP(C232,'MHP Family Income & Rent Limits'!$E$12:$L$26,15,FALSE))","v":""}]
[{"$f":"IF('2. Assisted & Restricted Units'!A233=\"\",\"\",'2. Assisted & Restricted Units'!A233)","v":""},{"$f":"IF('2. Assisted & Restricted Units'!B233=\"\",\"\",'2. Assisted & Restricted Units'!B233)","v":""},{"$f":"IF('2. Assisted & Restricted Units'!D233=\"\",\"\",'2. Assisted & Restricted Units'!D233)","v":""},{"$f":"IF('2. Assisted & Restricted Units'!E233=\"\",\"\",'2. Assisted & Restricted Units'!E233)","v":""},{"$f":"IF('2. Assisted & Restricted Units'!H233=\"\",\"\",'2. Assisted & Restricted Units'!H233)","v":""},{"$f":"_xlfn.IFS(E233=\"\",\"\",E233>BO233,$BP$6,E233>BN233,$BO$6,E233>BM233,$BN$6,E233>BL233,$BM$6,E233>BK233,$BL$6,E233>BJ233,$BK$6,E233>BI233,$BJ$6,E233>BH233,$BI$6,E233>BG233,$BH$6,E233>BF233,$BG$6,E233>BE233,$BF$6,E233>BD233,$BE$6,E233>BC233,$BD$6,E233>=0,$BC$6)","v":""},{"$f":"IF('2. Assisted & Restricted Units'!T233=\"\",\"\",'2. Assisted & Restricted Units'!T233)","v":""},{"$f":"IF('2. Assisted & Restricted Units'!I233=\"\",\"\",'2. Assisted & Restricted Units'!I233)","v":""},{"$f":"IF('2. Assisted & Restricted Units'!AP233=\"\",\"\",'2. Assisted & Restricted Units'!AP233)","v":0},{"$f":"IF('2. Assisted & Restricted Units'!AT233=\"\",\"\",'2. Assisted & Restricted Units'!AT233)","v":""},0,{"$f":"IF('2. Assisted & Restricted Units'!AV233=\"\",\"\",'2. Assisted & Restricted Units'!AV233)","v":""},{"$f":"IF('2. Assisted & Restricted Units'!L233=\"\",\"\",'2. Assisted & Restricted Units'!L233)","v":""},{"$f":"IF('2. Assisted & Restricted Units'!M233=\"\",\"\",'2. Assisted & Restricted Units'!M233)","v":""},{"$f":"IF('2. Assisted & Restricted Units'!O233=\"\",\"\",'2. Assisted & Restricted Units'!O233)","v":""},{"$f":"IF('2. Assisted & Restricted Units'!P233=\"\",\"\",'2. Assisted & Restricted Units'!P233)","v":""},{"$f":"IF('2. Assisted & Restricted Units'!Q233=\"\",\"\",'2. Assisted & Restricted Units'!Q233)","v":""},{"$f":"IF('2. Assisted & Restricted Units'!R233=\"\",\"\",'2. Assisted & Restricted Units'!R233)","v":""},{"$f":"IF(A233=\"\",\"\",'1. Checklist & Certification'!$K$1)","v":""},{"$f":"IF(A233=\"\",\"\",'1. Checklist & Certification'!$C$62)","v":""},{"$f":"IF(A233=\"\",\"\",'1. Checklist & Certification'!$K$62)","v":""},{"$f":"IF(A233=\"\",\"\",'1. Checklist & Certification'!$C$6)","v":""},{"$f":"IF(A233=\"\",\"\",'1. Checklist & Certification'!$G$4)","v":""},{"$f":"IF(A233=\"\",\"\",'1. Checklist & Certification'!$C$7)","v":""},{"$f":"IF(A233=\"\",\"\",'1. Checklist & Certification'!$C$8)","v":""},{"$f":"IF(A233=\"\",\"\",'1. Checklist & Certification'!$F$7)","v":""},{"$f":"IF(A233=\"\",\"\",'1. Checklist & Certification'!$F$8)","v":""},{"$f":"IF(A233=\"\",\"\",'1. Checklist & Certification'!$B$9)","v":""},{"$f":"IF(A233=\"\",\"\",'1. Checklist & Certification'!$F$9)","v":""},{"$f":"IF(A233=\"\",\"\",'1. Checklist & Certification'!$C$10)","v":""},{"$f":"IF(A233=\"\",\"\",'1. Checklist & Certification'!$C$11)","v":""},{"$f":"IF(A233=\"\",\"\",'1. Checklist & Certification'!$C$12)","v":""},{"$f":"IF(A233=\"\",\"\",'1. Checklist & Certification'!$B$14)","v":""},{"$f":"IF(A233=\"\",\"\",'1. Checklist & Certification'!$E$14)","v":""},{"$f":"IF(B233=\"\",\"\",'1. Checklist & Certification'!$G$14)","v":""},{"$f":"IF(A233=\"\",\"\",'MHP Family Income & Rent Limits'!$B$3)","v":""},{"$f":"IF(A233=\"\",\"\",'MHP Family Income & Rent Limits'!$J$3)","v":""},{"$f":"IF(A233=\"\",\"\",'MHP Family Income & Rent Limits'!$E$4)","v":""},{"$f":"IF(A233=\"\",\"\",'MHP Family Income & Rent Limits'!$C$7)","v":""},{"$f":"IF(A233=\"\",\"\",'MHP Family Income & Rent Limits'!$F$8)","v":""},{"$f":"IF(A233=\"\",\"\",'1. Checklist & Certification'!$G$4)","v":""},{"$f":"IF(A233=\"\",\"\",'1. Checklist & Certification'!$K$39)","v":""},{"$f":"IF(A233=\"\",\"\",'1. Checklist & Certification'!$K$43)","v":""},{"$f":"IF(A233=\"\",\"\",'1. Checklist & Certification'!$K$45)","v":""},{"$f":"IF(A233=\"\",\"\",'1. Checklist & Certification'!$K$49)","v":""},{"$f":"IF(A233=\"\",\"\",'1. Checklist & Certification'!$E$66)","v":""},{"$f":"IF(A233=\"\",\"\",'1. Checklist & Certification'!$E$67)","v":""},{"$f":"IF(A233=\"\",\"\",'1. Checklist & Certification'!$E$68)","v":""},{"$f":"IF(A233=\"\",\"\",'1. Checklist & Certification'!$G$66)","v":""},{"$f":"IF(A233=\"\",\"\",'1. Checklist & Certification'!$H$66)","v":""},{"$f":"IF(A233=\"\",\"\",'1. Checklist & Certification'!$I$66)","v":""},{"$f":"IF(A233=\"\",\"\",'1. Checklist & Certification'!$I$67)","v":""},{"$f":"IF(A233=\"\",\"\",'1. Checklist & Certification'!$I$68)","v":""},null,{"$f":"IF(C233=\"\",\"\",HLOOKUP(C233,'MHP Family Income & Rent Limits'!$E$12:$L$26,2,FALSE))","v":""},{"$f":"IF(C233=\"\",\"\",HLOOKUP(C233,'MHP Family Income & Rent Limits'!$E$12:$L$26,3,FALSE))","v":""},{"$f":"IF(C233=\"\",\"\",HLOOKUP(C233,'MHP Family Income & Rent Limits'!$E$12:$L$26,4,FALSE))","v":""},{"$f":"IF(C233=\"\",\"\",HLOOKUP(C233,'MHP Family Income & Rent Limits'!$E$12:$L$26,5,FALSE))","v":""},{"$f":"IF(C233=\"\",\"\",HLOOKUP(C233,'MHP Family Income & Rent Limits'!$E$12:$L$26,6,FALSE))","v":""},{"$f":"IF(C233=\"\",\"\",HLOOKUP(C233,'MHP Family Income & Rent Limits'!$E$12:$L$26,7,FALSE))","v":""},{"$f":"IF(C233=\"\",\"\",HLOOKUP(C233,'MHP Family Income & Rent Limits'!$E$12:$L$26,8,FALSE))","v":""},{"$f":"IF(C233=\"\",\"\",HLOOKUP(C233,'MHP Family Income & Rent Limits'!$E$12:$L$26,9,FALSE))","v":""},{"$f":"IF(C233=\"\",\"\",HLOOKUP(C233,'MHP Family Income & Rent Limits'!$E$12:$L$26,10,FALSE))","v":""},{"$f":"IF(C233=\"\",\"\",HLOOKUP(C233,'MHP Family Income & Rent Limits'!$E$12:$L$26,11,FALSE))","v":""},{"$f":"IF(C233=\"\",\"\",HLOOKUP(C233,'MHP Family Income & Rent Limits'!$E$12:$L$26,12,FALSE))","v":""},{"$f":"IF(C233=\"\",\"\",HLOOKUP(C233,'MHP Family Income & Rent Limits'!$E$12:$L$26,13,FALSE))","v":""},{"$f":"IF(C233=\"\",\"\",HLOOKUP(C233,'MHP Family Income & Rent Limits'!$E$12:$L$26,14,FALSE))","v":""},{"$f":"IF(C233=\"\",\"\",HLOOKUP(C233,'MHP Family Income & Rent Limits'!$E$12:$L$26,15,FALSE))","v":""}]
[{"$f":"IF('2. Assisted & Restricted Units'!A234=\"\",\"\",'2. Assisted & Restricted Units'!A234)","v":""},{"$f":"IF('2. Assisted & Restricted Units'!B234=\"\",\"\",'2. Assisted & Restricted Units'!B234)","v":""},{"$f":"IF('2. Assisted & Restricted Units'!D234=\"\",\"\",'2. Assisted & Restricted Units'!D234)","v":""},{"$f":"IF('2. Assisted & Restricted Units'!E234=\"\",\"\",'2. Assisted & Restricted Units'!E234)","v":""},{"$f":"IF('2. Assisted & Restricted Units'!H234=\"\",\"\",'2. Assisted & Restricted Units'!H234)","v":""},{"$f":"_xlfn.IFS(E234=\"\",\"\",E234>BO234,$BP$6,E234>BN234,$BO$6,E234>BM234,$BN$6,E234>BL234,$BM$6,E234>BK234,$BL$6,E234>BJ234,$BK$6,E234>BI234,$BJ$6,E234>BH234,$BI$6,E234>BG234,$BH$6,E234>BF234,$BG$6,E234>BE234,$BF$6,E234>BD234,$BE$6,E234>BC234,$BD$6,E234>=0,$BC$6)","v":""},{"$f":"IF('2. Assisted & Restricted Units'!T234=\"\",\"\",'2. Assisted & Restricted Units'!T234)","v":""},{"$f":"IF('2. Assisted & Restricted Units'!I234=\"\",\"\",'2. Assisted & Restricted Units'!I234)","v":""},{"$f":"IF('2. Assisted & Restricted Units'!AP234=\"\",\"\",'2. Assisted & Restricted Units'!AP234)","v":0},{"$f":"IF('2. Assisted & Restricted Units'!AT234=\"\",\"\",'2. Assisted & Restricted Units'!AT234)","v":""},0,{"$f":"IF('2. Assisted & Restricted Units'!AV234=\"\",\"\",'2. Assisted & Restricted Units'!AV234)","v":""},{"$f":"IF('2. Assisted & Restricted Units'!L234=\"\",\"\",'2. Assisted & Restricted Units'!L234)","v":""},{"$f":"IF('2. Assisted & Restricted Units'!M234=\"\",\"\",'2. Assisted & Restricted Units'!M234)","v":""},{"$f":"IF('2. Assisted & Restricted Units'!O234=\"\",\"\",'2. Assisted & Restricted Units'!O234)","v":""},{"$f":"IF('2. Assisted & Restricted Units'!P234=\"\",\"\",'2. Assisted & Restricted Units'!P234)","v":""},{"$f":"IF('2. Assisted & Restricted Units'!Q234=\"\",\"\",'2. Assisted & Restricted Units'!Q234)","v":""},{"$f":"IF('2. Assisted & Restricted Units'!R234=\"\",\"\",'2. Assisted & Restricted Units'!R234)","v":""},{"$f":"IF(A234=\"\",\"\",'1. Checklist & Certification'!$K$1)","v":""},{"$f":"IF(A234=\"\",\"\",'1. Checklist & Certification'!$C$62)","v":""},{"$f":"IF(A234=\"\",\"\",'1. Checklist & Certification'!$K$62)","v":""},{"$f":"IF(A234=\"\",\"\",'1. Checklist & Certification'!$C$6)","v":""},{"$f":"IF(A234=\"\",\"\",'1. Checklist & Certification'!$G$4)","v":""},{"$f":"IF(A234=\"\",\"\",'1. Checklist & Certification'!$C$7)","v":""},{"$f":"IF(A234=\"\",\"\",'1. Checklist & Certification'!$C$8)","v":""},{"$f":"IF(A234=\"\",\"\",'1. Checklist & Certification'!$F$7)","v":""},{"$f":"IF(A234=\"\",\"\",'1. Checklist & Certification'!$F$8)","v":""},{"$f":"IF(A234=\"\",\"\",'1. Checklist & Certification'!$B$9)","v":""},{"$f":"IF(A234=\"\",\"\",'1. Checklist & Certification'!$F$9)","v":""},{"$f":"IF(A234=\"\",\"\",'1. Checklist & Certification'!$C$10)","v":""},{"$f":"IF(A234=\"\",\"\",'1. Checklist & Certification'!$C$11)","v":""},{"$f":"IF(A234=\"\",\"\",'1. Checklist & Certification'!$C$12)","v":""},{"$f":"IF(A234=\"\",\"\",'1. Checklist & Certification'!$B$14)","v":""},{"$f":"IF(A234=\"\",\"\",'1. Checklist & Certification'!$E$14)","v":""},{"$f":"IF(B234=\"\",\"\",'1. Checklist & Certification'!$G$14)","v":""},{"$f":"IF(A234=\"\",\"\",'MHP Family Income & Rent Limits'!$B$3)","v":""},{"$f":"IF(A234=\"\",\"\",'MHP Family Income & Rent Limits'!$J$3)","v":""},{"$f":"IF(A234=\"\",\"\",'MHP Family Income & Rent Limits'!$E$4)","v":""},{"$f":"IF(A234=\"\",\"\",'MHP Family Income & Rent Limits'!$C$7)","v":""},{"$f":"IF(A234=\"\",\"\",'MHP Family Income & Rent Limits'!$F$8)","v":""},{"$f":"IF(A234=\"\",\"\",'1. Checklist & Certification'!$G$4)","v":""},{"$f":"IF(A234=\"\",\"\",'1. Checklist & Certification'!$K$39)","v":""},{"$f":"IF(A234=\"\",\"\",'1. Checklist & Certification'!$K$43)","v":""},{"$f":"IF(A234=\"\",\"\",'1. Checklist & Certification'!$K$45)","v":""},{"$f":"IF(A234=\"\",\"\",'1. Checklist & Certification'!$K$49)","v":""},{"$f":"IF(A234=\"\",\"\",'1. Checklist & Certification'!$E$66)","v":""},{"$f":"IF(A234=\"\",\"\",'1. Checklist & Certification'!$E$67)","v":""},{"$f":"IF(A234=\"\",\"\",'1. Checklist & Certification'!$E$68)","v":""},{"$f":"IF(A234=\"\",\"\",'1. Checklist & Certification'!$G$66)","v":""},{"$f":"IF(A234=\"\",\"\",'1. Checklist & Certification'!$H$66)","v":""},{"$f":"IF(A234=\"\",\"\",'1. Checklist & Certification'!$I$66)","v":""},{"$f":"IF(A234=\"\",\"\",'1. Checklist & Certification'!$I$67)","v":""},{"$f":"IF(A234=\"\",\"\",'1. Checklist & Certification'!$I$68)","v":""},null,{"$f":"IF(C234=\"\",\"\",HLOOKUP(C234,'MHP Family Income & Rent Limits'!$E$12:$L$26,2,FALSE))","v":""},{"$f":"IF(C234=\"\",\"\",HLOOKUP(C234,'MHP Family Income & Rent Limits'!$E$12:$L$26,3,FALSE))","v":""},{"$f":"IF(C234=\"\",\"\",HLOOKUP(C234,'MHP Family Income & Rent Limits'!$E$12:$L$26,4,FALSE))","v":""},{"$f":"IF(C234=\"\",\"\",HLOOKUP(C234,'MHP Family Income & Rent Limits'!$E$12:$L$26,5,FALSE))","v":""},{"$f":"IF(C234=\"\",\"\",HLOOKUP(C234,'MHP Family Income & Rent Limits'!$E$12:$L$26,6,FALSE))","v":""},{"$f":"IF(C234=\"\",\"\",HLOOKUP(C234,'MHP Family Income & Rent Limits'!$E$12:$L$26,7,FALSE))","v":""},{"$f":"IF(C234=\"\",\"\",HLOOKUP(C234,'MHP Family Income & Rent Limits'!$E$12:$L$26,8,FALSE))","v":""},{"$f":"IF(C234=\"\",\"\",HLOOKUP(C234,'MHP Family Income & Rent Limits'!$E$12:$L$26,9,FALSE))","v":""},{"$f":"IF(C234=\"\",\"\",HLOOKUP(C234,'MHP Family Income & Rent Limits'!$E$12:$L$26,10,FALSE))","v":""},{"$f":"IF(C234=\"\",\"\",HLOOKUP(C234,'MHP Family Income & Rent Limits'!$E$12:$L$26,11,FALSE))","v":""},{"$f":"IF(C234=\"\",\"\",HLOOKUP(C234,'MHP Family Income & Rent Limits'!$E$12:$L$26,12,FALSE))","v":""},{"$f":"IF(C234=\"\",\"\",HLOOKUP(C234,'MHP Family Income & Rent Limits'!$E$12:$L$26,13,FALSE))","v":""},{"$f":"IF(C234=\"\",\"\",HLOOKUP(C234,'MHP Family Income & Rent Limits'!$E$12:$L$26,14,FALSE))","v":""},{"$f":"IF(C234=\"\",\"\",HLOOKUP(C234,'MHP Family Income & Rent Limits'!$E$12:$L$26,15,FALSE))","v":""}]
[{"$f":"IF('2. Assisted & Restricted Units'!A235=\"\",\"\",'2. Assisted & Restricted Units'!A235)","v":""},{"$f":"IF('2. Assisted & Restricted Units'!B235=\"\",\"\",'2. Assisted & Restricted Units'!B235)","v":""},{"$f":"IF('2. Assisted & Restricted Units'!D235=\"\",\"\",'2. Assisted & Restricted Units'!D235)","v":""},{"$f":"IF('2. Assisted & Restricted Units'!E235=\"\",\"\",'2. Assisted & Restricted Units'!E235)","v":""},{"$f":"IF('2. Assisted & Restricted Units'!H235=\"\",\"\",'2. Assisted & Restricted Units'!H235)","v":""},{"$f":"_xlfn.IFS(E235=\"\",\"\",E235>BO235,$BP$6,E235>BN235,$BO$6,E235>BM235,$BN$6,E235>BL235,$BM$6,E235>BK235,$BL$6,E235>BJ235,$BK$6,E235>BI235,$BJ$6,E235>BH235,$BI$6,E235>BG235,$BH$6,E235>BF235,$BG$6,E235>BE235,$BF$6,E235>BD235,$BE$6,E235>BC235,$BD$6,E235>=0,$BC$6)","v":""},{"$f":"IF('2. Assisted & Restricted Units'!T235=\"\",\"\",'2. Assisted & Restricted Units'!T235)","v":""},{"$f":"IF('2. Assisted & Restricted Units'!I235=\"\",\"\",'2. Assisted & Restricted Units'!I235)","v":""},{"$f":"IF('2. Assisted & Restricted Units'!AP235=\"\",\"\",'2. Assisted & Restricted Units'!AP235)","v":0},{"$f":"IF('2. Assisted & Restricted Units'!AT235=\"\",\"\",'2. Assisted & Restricted Units'!AT235)","v":""},0,{"$f":"IF('2. Assisted & Restricted Units'!AV235=\"\",\"\",'2. Assisted & Restricted Units'!AV235)","v":""},{"$f":"IF('2. Assisted & Restricted Units'!L235=\"\",\"\",'2. Assisted & Restricted Units'!L235)","v":""},{"$f":"IF('2. Assisted & Restricted Units'!M235=\"\",\"\",'2. Assisted & Restricted Units'!M235)","v":""},{"$f":"IF('2. Assisted & Restricted Units'!O235=\"\",\"\",'2. Assisted & Restricted Units'!O235)","v":""},{"$f":"IF('2. Assisted & Restricted Units'!P235=\"\",\"\",'2. Assisted & Restricted Units'!P235)","v":""},{"$f":"IF('2. Assisted & Restricted Units'!Q235=\"\",\"\",'2. Assisted & Restricted Units'!Q235)","v":""},{"$f":"IF('2. Assisted & Restricted Units'!R235=\"\",\"\",'2. Assisted & Restricted Units'!R235)","v":""},{"$f":"IF(A235=\"\",\"\",'1. Checklist & Certification'!$K$1)","v":""},{"$f":"IF(A235=\"\",\"\",'1. Checklist & Certification'!$C$62)","v":""},{"$f":"IF(A235=\"\",\"\",'1. Checklist & Certification'!$K$62)","v":""},{"$f":"IF(A235=\"\",\"\",'1. Checklist & Certification'!$C$6)","v":""},{"$f":"IF(A235=\"\",\"\",'1. Checklist & Certification'!$G$4)","v":""},{"$f":"IF(A235=\"\",\"\",'1. Checklist & Certification'!$C$7)","v":""},{"$f":"IF(A235=\"\",\"\",'1. Checklist & Certification'!$C$8)","v":""},{"$f":"IF(A235=\"\",\"\",'1. Checklist & Certification'!$F$7)","v":""},{"$f":"IF(A235=\"\",\"\",'1. Checklist & Certification'!$F$8)","v":""},{"$f":"IF(A235=\"\",\"\",'1. Checklist & Certification'!$B$9)","v":""},{"$f":"IF(A235=\"\",\"\",'1. Checklist & Certification'!$F$9)","v":""},{"$f":"IF(A235=\"\",\"\",'1. Checklist & Certification'!$C$10)","v":""},{"$f":"IF(A235=\"\",\"\",'1. Checklist & Certification'!$C$11)","v":""},{"$f":"IF(A235=\"\",\"\",'1. Checklist & Certification'!$C$12)","v":""},{"$f":"IF(A235=\"\",\"\",'1. Checklist & Certification'!$B$14)","v":""},{"$f":"IF(A235=\"\",\"\",'1. Checklist & Certification'!$E$14)","v":""},{"$f":"IF(B235=\"\",\"\",'1. Checklist & Certification'!$G$14)","v":""},{"$f":"IF(A235=\"\",\"\",'MHP Family Income & Rent Limits'!$B$3)","v":""},{"$f":"IF(A235=\"\",\"\",'MHP Family Income & Rent Limits'!$J$3)","v":""},{"$f":"IF(A235=\"\",\"\",'MHP Family Income & Rent Limits'!$E$4)","v":""},{"$f":"IF(A235=\"\",\"\",'MHP Family Income & Rent Limits'!$C$7)","v":""},{"$f":"IF(A235=\"\",\"\",'MHP Family Income & Rent Limits'!$F$8)","v":""},{"$f":"IF(A235=\"\",\"\",'1. Checklist & Certification'!$G$4)","v":""},{"$f":"IF(A235=\"\",\"\",'1. Checklist & Certification'!$K$39)","v":""},{"$f":"IF(A235=\"\",\"\",'1. Checklist & Certification'!$K$43)","v":""},{"$f":"IF(A235=\"\",\"\",'1. Checklist & Certification'!$K$45)","v":""},{"$f":"IF(A235=\"\",\"\",'1. Checklist & Certification'!$K$49)","v":""},{"$f":"IF(A235=\"\",\"\",'1. Checklist & Certification'!$E$66)","v":""},{"$f":"IF(A235=\"\",\"\",'1. Checklist & Certification'!$E$67)","v":""},{"$f":"IF(A235=\"\",\"\",'1. Checklist & Certification'!$E$68)","v":""},{"$f":"IF(A235=\"\",\"\",'1. Checklist & Certification'!$G$66)","v":""},{"$f":"IF(A235=\"\",\"\",'1. Checklist & Certification'!$H$66)","v":""},{"$f":"IF(A235=\"\",\"\",'1. Checklist & Certification'!$I$66)","v":""},{"$f":"IF(A235=\"\",\"\",'1. Checklist & Certification'!$I$67)","v":""},{"$f":"IF(A235=\"\",\"\",'1. Checklist & Certification'!$I$68)","v":""},null,{"$f":"IF(C235=\"\",\"\",HLOOKUP(C235,'MHP Family Income & Rent Limits'!$E$12:$L$26,2,FALSE))","v":""},{"$f":"IF(C235=\"\",\"\",HLOOKUP(C235,'MHP Family Income & Rent Limits'!$E$12:$L$26,3,FALSE))","v":""},{"$f":"IF(C235=\"\",\"\",HLOOKUP(C235,'MHP Family Income & Rent Limits'!$E$12:$L$26,4,FALSE))","v":""},{"$f":"IF(C235=\"\",\"\",HLOOKUP(C235,'MHP Family Income & Rent Limits'!$E$12:$L$26,5,FALSE))","v":""},{"$f":"IF(C235=\"\",\"\",HLOOKUP(C235,'MHP Family Income & Rent Limits'!$E$12:$L$26,6,FALSE))","v":""},{"$f":"IF(C235=\"\",\"\",HLOOKUP(C235,'MHP Family Income & Rent Limits'!$E$12:$L$26,7,FALSE))","v":""},{"$f":"IF(C235=\"\",\"\",HLOOKUP(C235,'MHP Family Income & Rent Limits'!$E$12:$L$26,8,FALSE))","v":""},{"$f":"IF(C235=\"\",\"\",HLOOKUP(C235,'MHP Family Income & Rent Limits'!$E$12:$L$26,9,FALSE))","v":""},{"$f":"IF(C235=\"\",\"\",HLOOKUP(C235,'MHP Family Income & Rent Limits'!$E$12:$L$26,10,FALSE))","v":""},{"$f":"IF(C235=\"\",\"\",HLOOKUP(C235,'MHP Family Income & Rent Limits'!$E$12:$L$26,11,FALSE))","v":""},{"$f":"IF(C235=\"\",\"\",HLOOKUP(C235,'MHP Family Income & Rent Limits'!$E$12:$L$26,12,FALSE))","v":""},{"$f":"IF(C235=\"\",\"\",HLOOKUP(C235,'MHP Family Income & Rent Limits'!$E$12:$L$26,13,FALSE))","v":""},{"$f":"IF(C235=\"\",\"\",HLOOKUP(C235,'MHP Family Income & Rent Limits'!$E$12:$L$26,14,FALSE))","v":""},{"$f":"IF(C235=\"\",\"\",HLOOKUP(C235,'MHP Family Income & Rent Limits'!$E$12:$L$26,15,FALSE))","v":""}]
[{"$f":"IF('2. Assisted & Restricted Units'!A236=\"\",\"\",'2. Assisted & Restricted Units'!A236)","v":""},{"$f":"IF('2. Assisted & Restricted Units'!B236=\"\",\"\",'2. Assisted & Restricted Units'!B236)","v":""},{"$f":"IF('2. Assisted & Restricted Units'!D236=\"\",\"\",'2. Assisted & Restricted Units'!D236)","v":""},{"$f":"IF('2. Assisted & Restricted Units'!E236=\"\",\"\",'2. Assisted & Restricted Units'!E236)","v":""},{"$f":"IF('2. Assisted & Restricted Units'!H236=\"\",\"\",'2. Assisted & Restricted Units'!H236)","v":""},{"$f":"_xlfn.IFS(E236=\"\",\"\",E236>BO236,$BP$6,E236>BN236,$BO$6,E236>BM236,$BN$6,E236>BL236,$BM$6,E236>BK236,$BL$6,E236>BJ236,$BK$6,E236>BI236,$BJ$6,E236>BH236,$BI$6,E236>BG236,$BH$6,E236>BF236,$BG$6,E236>BE236,$BF$6,E236>BD236,$BE$6,E236>BC236,$BD$6,E236>=0,$BC$6)","v":""},{"$f":"IF('2. Assisted & Restricted Units'!T236=\"\",\"\",'2. Assisted & Restricted Units'!T236)","v":""},{"$f":"IF('2. Assisted & Restricted Units'!I236=\"\",\"\",'2. Assisted & Restricted Units'!I236)","v":""},{"$f":"IF('2. Assisted & Restricted Units'!AP236=\"\",\"\",'2. Assisted & Restricted Units'!AP236)","v":0},{"$f":"IF('2. Assisted & Restricted Units'!AT236=\"\",\"\",'2. Assisted & Restricted Units'!AT236)","v":""},0,{"$f":"IF('2. Assisted & Restricted Units'!AV236=\"\",\"\",'2. Assisted & Restricted Units'!AV236)","v":""},{"$f":"IF('2. Assisted & Restricted Units'!L236=\"\",\"\",'2. Assisted & Restricted Units'!L236)","v":""},{"$f":"IF('2. Assisted & Restricted Units'!M236=\"\",\"\",'2. Assisted & Restricted Units'!M236)","v":""},{"$f":"IF('2. Assisted & Restricted Units'!O236=\"\",\"\",'2. Assisted & Restricted Units'!O236)","v":""},{"$f":"IF('2. Assisted & Restricted Units'!P236=\"\",\"\",'2. Assisted & Restricted Units'!P236)","v":""},{"$f":"IF('2. Assisted & Restricted Units'!Q236=\"\",\"\",'2. Assisted & Restricted Units'!Q236)","v":""},{"$f":"IF('2. Assisted & Restricted Units'!R236=\"\",\"\",'2. Assisted & Restricted Units'!R236)","v":""},{"$f":"IF(A236=\"\",\"\",'1. Checklist & Certification'!$K$1)","v":""},{"$f":"IF(A236=\"\",\"\",'1. Checklist & Certification'!$C$62)","v":""},{"$f":"IF(A236=\"\",\"\",'1. Checklist & Certification'!$K$62)","v":""},{"$f":"IF(A236=\"\",\"\",'1. Checklist & Certification'!$C$6)","v":""},{"$f":"IF(A236=\"\",\"\",'1. Checklist & Certification'!$G$4)","v":""},{"$f":"IF(A236=\"\",\"\",'1. Checklist & Certification'!$C$7)","v":""},{"$f":"IF(A236=\"\",\"\",'1. Checklist & Certification'!$C$8)","v":""},{"$f":"IF(A236=\"\",\"\",'1. Checklist & Certification'!$F$7)","v":""},{"$f":"IF(A236=\"\",\"\",'1. Checklist & Certification'!$F$8)","v":""},{"$f":"IF(A236=\"\",\"\",'1. Checklist & Certification'!$B$9)","v":""},{"$f":"IF(A236=\"\",\"\",'1. Checklist & Certification'!$F$9)","v":""},{"$f":"IF(A236=\"\",\"\",'1. Checklist & Certification'!$C$10)","v":""},{"$f":"IF(A236=\"\",\"\",'1. Checklist & Certification'!$C$11)","v":""},{"$f":"IF(A236=\"\",\"\",'1. Checklist & Certification'!$C$12)","v":""},{"$f":"IF(A236=\"\",\"\",'1. Checklist & Certification'!$B$14)","v":""},{"$f":"IF(A236=\"\",\"\",'1. Checklist & Certification'!$E$14)","v":""},{"$f":"IF(B236=\"\",\"\",'1. Checklist & Certification'!$G$14)","v":""},{"$f":"IF(A236=\"\",\"\",'MHP Family Income & Rent Limits'!$B$3)","v":""},{"$f":"IF(A236=\"\",\"\",'MHP Family Income & Rent Limits'!$J$3)","v":""},{"$f":"IF(A236=\"\",\"\",'MHP Family Income & Rent Limits'!$E$4)","v":""},{"$f":"IF(A236=\"\",\"\",'MHP Family Income & Rent Limits'!$C$7)","v":""},{"$f":"IF(A236=\"\",\"\",'MHP Family Income & Rent Limits'!$F$8)","v":""},{"$f":"IF(A236=\"\",\"\",'1. Checklist & Certification'!$G$4)","v":""},{"$f":"IF(A236=\"\",\"\",'1. Checklist & Certification'!$K$39)","v":""},{"$f":"IF(A236=\"\",\"\",'1. Checklist & Certification'!$K$43)","v":""},{"$f":"IF(A236=\"\",\"\",'1. Checklist & Certification'!$K$45)","v":""},{"$f":"IF(A236=\"\",\"\",'1. Checklist & Certification'!$K$49)","v":""},{"$f":"IF(A236=\"\",\"\",'1. Checklist & Certification'!$E$66)","v":""},{"$f":"IF(A236=\"\",\"\",'1. Checklist & Certification'!$E$67)","v":""},{"$f":"IF(A236=\"\",\"\",'1. Checklist & Certification'!$E$68)","v":""},{"$f":"IF(A236=\"\",\"\",'1. Checklist & Certification'!$G$66)","v":""},{"$f":"IF(A236=\"\",\"\",'1. Checklist & Certification'!$H$66)","v":""},{"$f":"IF(A236=\"\",\"\",'1. Checklist & Certification'!$I$66)","v":""},{"$f":"IF(A236=\"\",\"\",'1. Checklist & Certification'!$I$67)","v":""},{"$f":"IF(A236=\"\",\"\",'1. Checklist & Certification'!$I$68)","v":""},null,{"$f":"IF(C236=\"\",\"\",HLOOKUP(C236,'MHP Family Income & Rent Limits'!$E$12:$L$26,2,FALSE))","v":""},{"$f":"IF(C236=\"\",\"\",HLOOKUP(C236,'MHP Family Income & Rent Limits'!$E$12:$L$26,3,FALSE))","v":""},{"$f":"IF(C236=\"\",\"\",HLOOKUP(C236,'MHP Family Income & Rent Limits'!$E$12:$L$26,4,FALSE))","v":""},{"$f":"IF(C236=\"\",\"\",HLOOKUP(C236,'MHP Family Income & Rent Limits'!$E$12:$L$26,5,FALSE))","v":""},{"$f":"IF(C236=\"\",\"\",HLOOKUP(C236,'MHP Family Income & Rent Limits'!$E$12:$L$26,6,FALSE))","v":""},{"$f":"IF(C236=\"\",\"\",HLOOKUP(C236,'MHP Family Income & Rent Limits'!$E$12:$L$26,7,FALSE))","v":""},{"$f":"IF(C236=\"\",\"\",HLOOKUP(C236,'MHP Family Income & Rent Limits'!$E$12:$L$26,8,FALSE))","v":""},{"$f":"IF(C236=\"\",\"\",HLOOKUP(C236,'MHP Family Income & Rent Limits'!$E$12:$L$26,9,FALSE))","v":""},{"$f":"IF(C236=\"\",\"\",HLOOKUP(C236,'MHP Family Income & Rent Limits'!$E$12:$L$26,10,FALSE))","v":""},{"$f":"IF(C236=\"\",\"\",HLOOKUP(C236,'MHP Family Income & Rent Limits'!$E$12:$L$26,11,FALSE))","v":""},{"$f":"IF(C236=\"\",\"\",HLOOKUP(C236,'MHP Family Income & Rent Limits'!$E$12:$L$26,12,FALSE))","v":""},{"$f":"IF(C236=\"\",\"\",HLOOKUP(C236,'MHP Family Income & Rent Limits'!$E$12:$L$26,13,FALSE))","v":""},{"$f":"IF(C236=\"\",\"\",HLOOKUP(C236,'MHP Family Income & Rent Limits'!$E$12:$L$26,14,FALSE))","v":""},{"$f":"IF(C236=\"\",\"\",HLOOKUP(C236,'MHP Family Income & Rent Limits'!$E$12:$L$26,15,FALSE))","v":""}]
[{"$f":"IF('2. Assisted & Restricted Units'!A237=\"\",\"\",'2. Assisted & Restricted Units'!A237)","v":""},{"$f":"IF('2. Assisted & Restricted Units'!B237=\"\",\"\",'2. Assisted & Restricted Units'!B237)","v":""},{"$f":"IF('2. Assisted & Restricted Units'!D237=\"\",\"\",'2. Assisted & Restricted Units'!D237)","v":""},{"$f":"IF('2. Assisted & Restricted Units'!E237=\"\",\"\",'2. Assisted & Restricted Units'!E237)","v":""},{"$f":"IF('2. Assisted & Restricted Units'!H237=\"\",\"\",'2. Assisted & Restricted Units'!H237)","v":""},{"$f":"_xlfn.IFS(E237=\"\",\"\",E237>BO237,$BP$6,E237>BN237,$BO$6,E237>BM237,$BN$6,E237>BL237,$BM$6,E237>BK237,$BL$6,E237>BJ237,$BK$6,E237>BI237,$BJ$6,E237>BH237,$BI$6,E237>BG237,$BH$6,E237>BF237,$BG$6,E237>BE237,$BF$6,E237>BD237,$BE$6,E237>BC237,$BD$6,E237>=0,$BC$6)","v":""},{"$f":"IF('2. Assisted & Restricted Units'!T237=\"\",\"\",'2. Assisted & Restricted Units'!T237)","v":""},{"$f":"IF('2. Assisted & Restricted Units'!I237=\"\",\"\",'2. Assisted & Restricted Units'!I237)","v":""},{"$f":"IF('2. Assisted & Restricted Units'!AP237=\"\",\"\",'2. Assisted & Restricted Units'!AP237)","v":0},{"$f":"IF('2. Assisted & Restricted Units'!AT237=\"\",\"\",'2. Assisted & Restricted Units'!AT237)","v":""},0,{"$f":"IF('2. Assisted & Restricted Units'!AV237=\"\",\"\",'2. Assisted & Restricted Units'!AV237)","v":""},{"$f":"IF('2. Assisted & Restricted Units'!L237=\"\",\"\",'2. Assisted & Restricted Units'!L237)","v":""},{"$f":"IF('2. Assisted & Restricted Units'!M237=\"\",\"\",'2. Assisted & Restricted Units'!M237)","v":""},{"$f":"IF('2. Assisted & Restricted Units'!O237=\"\",\"\",'2. Assisted & Restricted Units'!O237)","v":""},{"$f":"IF('2. Assisted & Restricted Units'!P237=\"\",\"\",'2. Assisted & Restricted Units'!P237)","v":""},{"$f":"IF('2. Assisted & Restricted Units'!Q237=\"\",\"\",'2. Assisted & Restricted Units'!Q237)","v":""},{"$f":"IF('2. Assisted & Restricted Units'!R237=\"\",\"\",'2. Assisted & Restricted Units'!R237)","v":""},{"$f":"IF(A237=\"\",\"\",'1. Checklist & Certification'!$K$1)","v":""},{"$f":"IF(A237=\"\",\"\",'1. Checklist & Certification'!$C$62)","v":""},{"$f":"IF(A237=\"\",\"\",'1. Checklist & Certification'!$K$62)","v":""},{"$f":"IF(A237=\"\",\"\",'1. Checklist & Certification'!$C$6)","v":""},{"$f":"IF(A237=\"\",\"\",'1. Checklist & Certification'!$G$4)","v":""},{"$f":"IF(A237=\"\",\"\",'1. Checklist & Certification'!$C$7)","v":""},{"$f":"IF(A237=\"\",\"\",'1. Checklist & Certification'!$C$8)","v":""},{"$f":"IF(A237=\"\",\"\",'1. Checklist & Certification'!$F$7)","v":""},{"$f":"IF(A237=\"\",\"\",'1. Checklist & Certification'!$F$8)","v":""},{"$f":"IF(A237=\"\",\"\",'1. Checklist & Certification'!$B$9)","v":""},{"$f":"IF(A237=\"\",\"\",'1. Checklist & Certification'!$F$9)","v":""},{"$f":"IF(A237=\"\",\"\",'1. Checklist & Certification'!$C$10)","v":""},{"$f":"IF(A237=\"\",\"\",'1. Checklist & Certification'!$C$11)","v":""},{"$f":"IF(A237=\"\",\"\",'1. Checklist & Certification'!$C$12)","v":""},{"$f":"IF(A237=\"\",\"\",'1. Checklist & Certification'!$B$14)","v":""},{"$f":"IF(A237=\"\",\"\",'1. Checklist & Certification'!$E$14)","v":""},{"$f":"IF(B237=\"\",\"\",'1. Checklist & Certification'!$G$14)","v":""},{"$f":"IF(A237=\"\",\"\",'MHP Family Income & Rent Limits'!$B$3)","v":""},{"$f":"IF(A237=\"\",\"\",'MHP Family Income & Rent Limits'!$J$3)","v":""},{"$f":"IF(A237=\"\",\"\",'MHP Family Income & Rent Limits'!$E$4)","v":""},{"$f":"IF(A237=\"\",\"\",'MHP Family Income & Rent Limits'!$C$7)","v":""},{"$f":"IF(A237=\"\",\"\",'MHP Family Income & Rent Limits'!$F$8)","v":""},{"$f":"IF(A237=\"\",\"\",'1. Checklist & Certification'!$G$4)","v":""},{"$f":"IF(A237=\"\",\"\",'1. Checklist & Certification'!$K$39)","v":""},{"$f":"IF(A237=\"\",\"\",'1. Checklist & Certification'!$K$43)","v":""},{"$f":"IF(A237=\"\",\"\",'1. Checklist & Certification'!$K$45)","v":""},{"$f":"IF(A237=\"\",\"\",'1. Checklist & Certification'!$K$49)","v":""},{"$f":"IF(A237=\"\",\"\",'1. Checklist & Certification'!$E$66)","v":""},{"$f":"IF(A237=\"\",\"\",'1. Checklist & Certification'!$E$67)","v":""},{"$f":"IF(A237=\"\",\"\",'1. Checklist & Certification'!$E$68)","v":""},{"$f":"IF(A237=\"\",\"\",'1. Checklist & Certification'!$G$66)","v":""},{"$f":"IF(A237=\"\",\"\",'1. Checklist & Certification'!$H$66)","v":""},{"$f":"IF(A237=\"\",\"\",'1. Checklist & Certification'!$I$66)","v":""},{"$f":"IF(A237=\"\",\"\",'1. Checklist & Certification'!$I$67)","v":""},{"$f":"IF(A237=\"\",\"\",'1. Checklist & Certification'!$I$68)","v":""},null,{"$f":"IF(C237=\"\",\"\",HLOOKUP(C237,'MHP Family Income & Rent Limits'!$E$12:$L$26,2,FALSE))","v":""},{"$f":"IF(C237=\"\",\"\",HLOOKUP(C237,'MHP Family Income & Rent Limits'!$E$12:$L$26,3,FALSE))","v":""},{"$f":"IF(C237=\"\",\"\",HLOOKUP(C237,'MHP Family Income & Rent Limits'!$E$12:$L$26,4,FALSE))","v":""},{"$f":"IF(C237=\"\",\"\",HLOOKUP(C237,'MHP Family Income & Rent Limits'!$E$12:$L$26,5,FALSE))","v":""},{"$f":"IF(C237=\"\",\"\",HLOOKUP(C237,'MHP Family Income & Rent Limits'!$E$12:$L$26,6,FALSE))","v":""},{"$f":"IF(C237=\"\",\"\",HLOOKUP(C237,'MHP Family Income & Rent Limits'!$E$12:$L$26,7,FALSE))","v":""},{"$f":"IF(C237=\"\",\"\",HLOOKUP(C237,'MHP Family Income & Rent Limits'!$E$12:$L$26,8,FALSE))","v":""},{"$f":"IF(C237=\"\",\"\",HLOOKUP(C237,'MHP Family Income & Rent Limits'!$E$12:$L$26,9,FALSE))","v":""},{"$f":"IF(C237=\"\",\"\",HLOOKUP(C237,'MHP Family Income & Rent Limits'!$E$12:$L$26,10,FALSE))","v":""},{"$f":"IF(C237=\"\",\"\",HLOOKUP(C237,'MHP Family Income & Rent Limits'!$E$12:$L$26,11,FALSE))","v":""},{"$f":"IF(C237=\"\",\"\",HLOOKUP(C237,'MHP Family Income & Rent Limits'!$E$12:$L$26,12,FALSE))","v":""},{"$f":"IF(C237=\"\",\"\",HLOOKUP(C237,'MHP Family Income & Rent Limits'!$E$12:$L$26,13,FALSE))","v":""},{"$f":"IF(C237=\"\",\"\",HLOOKUP(C237,'MHP Family Income & Rent Limits'!$E$12:$L$26,14,FALSE))","v":""},{"$f":"IF(C237=\"\",\"\",HLOOKUP(C237,'MHP Family Income & Rent Limits'!$E$12:$L$26,15,FALSE))","v":""}]
[{"$f":"IF('2. Assisted & Restricted Units'!A238=\"\",\"\",'2. Assisted & Restricted Units'!A238)","v":""},{"$f":"IF('2. Assisted & Restricted Units'!B238=\"\",\"\",'2. Assisted & Restricted Units'!B238)","v":""},{"$f":"IF('2. Assisted & Restricted Units'!D238=\"\",\"\",'2. Assisted & Restricted Units'!D238)","v":""},{"$f":"IF('2. Assisted & Restricted Units'!E238=\"\",\"\",'2. Assisted & Restricted Units'!E238)","v":""},{"$f":"IF('2. Assisted & Restricted Units'!H238=\"\",\"\",'2. Assisted & Restricted Units'!H238)","v":""},{"$f":"_xlfn.IFS(E238=\"\",\"\",E238>BO238,$BP$6,E238>BN238,$BO$6,E238>BM238,$BN$6,E238>BL238,$BM$6,E238>BK238,$BL$6,E238>BJ238,$BK$6,E238>BI238,$BJ$6,E238>BH238,$BI$6,E238>BG238,$BH$6,E238>BF238,$BG$6,E238>BE238,$BF$6,E238>BD238,$BE$6,E238>BC238,$BD$6,E238>=0,$BC$6)","v":""},{"$f":"IF('2. Assisted & Restricted Units'!T238=\"\",\"\",'2. Assisted & Restricted Units'!T238)","v":""},{"$f":"IF('2. Assisted & Restricted Units'!I238=\"\",\"\",'2. Assisted & Restricted Units'!I238)","v":""},{"$f":"IF('2. Assisted & Restricted Units'!AP238=\"\",\"\",'2. Assisted & Restricted Units'!AP238)","v":0},{"$f":"IF('2. Assisted & Restricted Units'!AT238=\"\",\"\",'2. Assisted & Restricted Units'!AT238)","v":""},0,{"$f":"IF('2. Assisted & Restricted Units'!AV238=\"\",\"\",'2. Assisted & Restricted Units'!AV238)","v":""},{"$f":"IF('2. Assisted & Restricted Units'!L238=\"\",\"\",'2. Assisted & Restricted Units'!L238)","v":""},{"$f":"IF('2. Assisted & Restricted Units'!M238=\"\",\"\",'2. Assisted & Restricted Units'!M238)","v":""},{"$f":"IF('2. Assisted & Restricted Units'!O238=\"\",\"\",'2. Assisted & Restricted Units'!O238)","v":""},{"$f":"IF('2. Assisted & Restricted Units'!P238=\"\",\"\",'2. Assisted & Restricted Units'!P238)","v":""},{"$f":"IF('2. Assisted & Restricted Units'!Q238=\"\",\"\",'2. Assisted & Restricted Units'!Q238)","v":""},{"$f":"IF('2. Assisted & Restricted Units'!R238=\"\",\"\",'2. Assisted & Restricted Units'!R238)","v":""},{"$f":"IF(A238=\"\",\"\",'1. Checklist & Certification'!$K$1)","v":""},{"$f":"IF(A238=\"\",\"\",'1. Checklist & Certification'!$C$62)","v":""},{"$f":"IF(A238=\"\",\"\",'1. Checklist & Certification'!$K$62)","v":""},{"$f":"IF(A238=\"\",\"\",'1. Checklist & Certification'!$C$6)","v":""},{"$f":"IF(A238=\"\",\"\",'1. Checklist & Certification'!$G$4)","v":""},{"$f":"IF(A238=\"\",\"\",'1. Checklist & Certification'!$C$7)","v":""},{"$f":"IF(A238=\"\",\"\",'1. Checklist & Certification'!$C$8)","v":""},{"$f":"IF(A238=\"\",\"\",'1. Checklist & Certification'!$F$7)","v":""},{"$f":"IF(A238=\"\",\"\",'1. Checklist & Certification'!$F$8)","v":""},{"$f":"IF(A238=\"\",\"\",'1. Checklist & Certification'!$B$9)","v":""},{"$f":"IF(A238=\"\",\"\",'1. Checklist & Certification'!$F$9)","v":""},{"$f":"IF(A238=\"\",\"\",'1. Checklist & Certification'!$C$10)","v":""},{"$f":"IF(A238=\"\",\"\",'1. Checklist & Certification'!$C$11)","v":""},{"$f":"IF(A238=\"\",\"\",'1. Checklist & Certification'!$C$12)","v":""},{"$f":"IF(A238=\"\",\"\",'1. Checklist & Certification'!$B$14)","v":""},{"$f":"IF(A238=\"\",\"\",'1. Checklist & Certification'!$E$14)","v":""},{"$f":"IF(B238=\"\",\"\",'1. Checklist & Certification'!$G$14)","v":""},{"$f":"IF(A238=\"\",\"\",'MHP Family Income & Rent Limits'!$B$3)","v":""},{"$f":"IF(A238=\"\",\"\",'MHP Family Income & Rent Limits'!$J$3)","v":""},{"$f":"IF(A238=\"\",\"\",'MHP Family Income & Rent Limits'!$E$4)","v":""},{"$f":"IF(A238=\"\",\"\",'MHP Family Income & Rent Limits'!$C$7)","v":""},{"$f":"IF(A238=\"\",\"\",'MHP Family Income & Rent Limits'!$F$8)","v":""},{"$f":"IF(A238=\"\",\"\",'1. Checklist & Certification'!$G$4)","v":""},{"$f":"IF(A238=\"\",\"\",'1. Checklist & Certification'!$K$39)","v":""},{"$f":"IF(A238=\"\",\"\",'1. Checklist & Certification'!$K$43)","v":""},{"$f":"IF(A238=\"\",\"\",'1. Checklist & Certification'!$K$45)","v":""},{"$f":"IF(A238=\"\",\"\",'1. Checklist & Certification'!$K$49)","v":""},{"$f":"IF(A238=\"\",\"\",'1. Checklist & Certification'!$E$66)","v":""},{"$f":"IF(A238=\"\",\"\",'1. Checklist & Certification'!$E$67)","v":""},{"$f":"IF(A238=\"\",\"\",'1. Checklist & Certification'!$E$68)","v":""},{"$f":"IF(A238=\"\",\"\",'1. Checklist & Certification'!$G$66)","v":""},{"$f":"IF(A238=\"\",\"\",'1. Checklist & Certification'!$H$66)","v":""},{"$f":"IF(A238=\"\",\"\",'1. Checklist & Certification'!$I$66)","v":""},{"$f":"IF(A238=\"\",\"\",'1. Checklist & Certification'!$I$67)","v":""},{"$f":"IF(A238=\"\",\"\",'1. Checklist & Certification'!$I$68)","v":""},null,{"$f":"IF(C238=\"\",\"\",HLOOKUP(C238,'MHP Family Income & Rent Limits'!$E$12:$L$26,2,FALSE))","v":""},{"$f":"IF(C238=\"\",\"\",HLOOKUP(C238,'MHP Family Income & Rent Limits'!$E$12:$L$26,3,FALSE))","v":""},{"$f":"IF(C238=\"\",\"\",HLOOKUP(C238,'MHP Family Income & Rent Limits'!$E$12:$L$26,4,FALSE))","v":""},{"$f":"IF(C238=\"\",\"\",HLOOKUP(C238,'MHP Family Income & Rent Limits'!$E$12:$L$26,5,FALSE))","v":""},{"$f":"IF(C238=\"\",\"\",HLOOKUP(C238,'MHP Family Income & Rent Limits'!$E$12:$L$26,6,FALSE))","v":""},{"$f":"IF(C238=\"\",\"\",HLOOKUP(C238,'MHP Family Income & Rent Limits'!$E$12:$L$26,7,FALSE))","v":""},{"$f":"IF(C238=\"\",\"\",HLOOKUP(C238,'MHP Family Income & Rent Limits'!$E$12:$L$26,8,FALSE))","v":""},{"$f":"IF(C238=\"\",\"\",HLOOKUP(C238,'MHP Family Income & Rent Limits'!$E$12:$L$26,9,FALSE))","v":""},{"$f":"IF(C238=\"\",\"\",HLOOKUP(C238,'MHP Family Income & Rent Limits'!$E$12:$L$26,10,FALSE))","v":""},{"$f":"IF(C238=\"\",\"\",HLOOKUP(C238,'MHP Family Income & Rent Limits'!$E$12:$L$26,11,FALSE))","v":""},{"$f":"IF(C238=\"\",\"\",HLOOKUP(C238,'MHP Family Income & Rent Limits'!$E$12:$L$26,12,FALSE))","v":""},{"$f":"IF(C238=\"\",\"\",HLOOKUP(C238,'MHP Family Income & Rent Limits'!$E$12:$L$26,13,FALSE))","v":""},{"$f":"IF(C238=\"\",\"\",HLOOKUP(C238,'MHP Family Income & Rent Limits'!$E$12:$L$26,14,FALSE))","v":""},{"$f":"IF(C238=\"\",\"\",HLOOKUP(C238,'MHP Family Income & Rent Limits'!$E$12:$L$26,15,FALSE))","v":""}]
[{"$f":"IF('2. Assisted & Restricted Units'!A239=\"\",\"\",'2. Assisted & Restricted Units'!A239)","v":""},{"$f":"IF('2. Assisted & Restricted Units'!B239=\"\",\"\",'2. Assisted & Restricted Units'!B239)","v":""},{"$f":"IF('2. Assisted & Restricted Units'!D239=\"\",\"\",'2. Assisted & Restricted Units'!D239)","v":""},{"$f":"IF('2. Assisted & Restricted Units'!E239=\"\",\"\",'2. Assisted & Restricted Units'!E239)","v":""},{"$f":"IF('2. Assisted & Restricted Units'!H239=\"\",\"\",'2. Assisted & Restricted Units'!H239)","v":""},{"$f":"_xlfn.IFS(E239=\"\",\"\",E239>BO239,$BP$6,E239>BN239,$BO$6,E239>BM239,$BN$6,E239>BL239,$BM$6,E239>BK239,$BL$6,E239>BJ239,$BK$6,E239>BI239,$BJ$6,E239>BH239,$BI$6,E239>BG239,$BH$6,E239>BF239,$BG$6,E239>BE239,$BF$6,E239>BD239,$BE$6,E239>BC239,$BD$6,E239>=0,$BC$6)","v":""},{"$f":"IF('2. Assisted & Restricted Units'!T239=\"\",\"\",'2. Assisted & Restricted Units'!T239)","v":""},{"$f":"IF('2. Assisted & Restricted Units'!I239=\"\",\"\",'2. Assisted & Restricted Units'!I239)","v":""},{"$f":"IF('2. Assisted & Restricted Units'!AP239=\"\",\"\",'2. Assisted & Restricted Units'!AP239)","v":0},{"$f":"IF('2. Assisted & Restricted Units'!AT239=\"\",\"\",'2. Assisted & Restricted Units'!AT239)","v":""},0,{"$f":"IF('2. Assisted & Restricted Units'!AV239=\"\",\"\",'2. Assisted & Restricted Units'!AV239)","v":""},{"$f":"IF('2. Assisted & Restricted Units'!L239=\"\",\"\",'2. Assisted & Restricted Units'!L239)","v":""},{"$f":"IF('2. Assisted & Restricted Units'!M239=\"\",\"\",'2. Assisted & Restricted Units'!M239)","v":""},{"$f":"IF('2. Assisted & Restricted Units'!O239=\"\",\"\",'2. Assisted & Restricted Units'!O239)","v":""},{"$f":"IF('2. Assisted & Restricted Units'!P239=\"\",\"\",'2. Assisted & Restricted Units'!P239)","v":""},{"$f":"IF('2. Assisted & Restricted Units'!Q239=\"\",\"\",'2. Assisted & Restricted Units'!Q239)","v":""},{"$f":"IF('2. Assisted & Restricted Units'!R239=\"\",\"\",'2. Assisted & Restricted Units'!R239)","v":""},{"$f":"IF(A239=\"\",\"\",'1. Checklist & Certification'!$K$1)","v":""},{"$f":"IF(A239=\"\",\"\",'1. Checklist & Certification'!$C$62)","v":""},{"$f":"IF(A239=\"\",\"\",'1. Checklist & Certification'!$K$62)","v":""},{"$f":"IF(A239=\"\",\"\",'1. Checklist & Certification'!$C$6)","v":""},{"$f":"IF(A239=\"\",\"\",'1. Checklist & Certification'!$G$4)","v":""},{"$f":"IF(A239=\"\",\"\",'1. Checklist & Certification'!$C$7)","v":""},{"$f":"IF(A239=\"\",\"\",'1. Checklist & Certification'!$C$8)","v":""},{"$f":"IF(A239=\"\",\"\",'1. Checklist & Certification'!$F$7)","v":""},{"$f":"IF(A239=\"\",\"\",'1. Checklist & Certification'!$F$8)","v":""},{"$f":"IF(A239=\"\",\"\",'1. Checklist & Certification'!$B$9)","v":""},{"$f":"IF(A239=\"\",\"\",'1. Checklist & Certification'!$F$9)","v":""},{"$f":"IF(A239=\"\",\"\",'1. Checklist & Certification'!$C$10)","v":""},{"$f":"IF(A239=\"\",\"\",'1. Checklist & Certification'!$C$11)","v":""},{"$f":"IF(A239=\"\",\"\",'1. Checklist & Certification'!$C$12)","v":""},{"$f":"IF(A239=\"\",\"\",'1. Checklist & Certification'!$B$14)","v":""},{"$f":"IF(A239=\"\",\"\",'1. Checklist & Certification'!$E$14)","v":""},{"$f":"IF(B239=\"\",\"\",'1. Checklist & Certification'!$G$14)","v":""},{"$f":"IF(A239=\"\",\"\",'MHP Family Income & Rent Limits'!$B$3)","v":""},{"$f":"IF(A239=\"\",\"\",'MHP Family Income & Rent Limits'!$J$3)","v":""},{"$f":"IF(A239=\"\",\"\",'MHP Family Income & Rent Limits'!$E$4)","v":""},{"$f":"IF(A239=\"\",\"\",'MHP Family Income & Rent Limits'!$C$7)","v":""},{"$f":"IF(A239=\"\",\"\",'MHP Family Income & Rent Limits'!$F$8)","v":""},{"$f":"IF(A239=\"\",\"\",'1. Checklist & Certification'!$G$4)","v":""},{"$f":"IF(A239=\"\",\"\",'1. Checklist & Certification'!$K$39)","v":""},{"$f":"IF(A239=\"\",\"\",'1. Checklist & Certification'!$K$43)","v":""},{"$f":"IF(A239=\"\",\"\",'1. Checklist & Certification'!$K$45)","v":""},{"$f":"IF(A239=\"\",\"\",'1. Checklist & Certification'!$K$49)","v":""},{"$f":"IF(A239=\"\",\"\",'1. Checklist & Certification'!$E$66)","v":""},{"$f":"IF(A239=\"\",\"\",'1. Checklist & Certification'!$E$67)","v":""},{"$f":"IF(A239=\"\",\"\",'1. Checklist & Certification'!$E$68)","v":""},{"$f":"IF(A239=\"\",\"\",'1. Checklist & Certification'!$G$66)","v":""},{"$f":"IF(A239=\"\",\"\",'1. Checklist & Certification'!$H$66)","v":""},{"$f":"IF(A239=\"\",\"\",'1. Checklist & Certification'!$I$66)","v":""},{"$f":"IF(A239=\"\",\"\",'1. Checklist & Certification'!$I$67)","v":""},{"$f":"IF(A239=\"\",\"\",'1. Checklist & Certification'!$I$68)","v":""},null,{"$f":"IF(C239=\"\",\"\",HLOOKUP(C239,'MHP Family Income & Rent Limits'!$E$12:$L$26,2,FALSE))","v":""},{"$f":"IF(C239=\"\",\"\",HLOOKUP(C239,'MHP Family Income & Rent Limits'!$E$12:$L$26,3,FALSE))","v":""},{"$f":"IF(C239=\"\",\"\",HLOOKUP(C239,'MHP Family Income & Rent Limits'!$E$12:$L$26,4,FALSE))","v":""},{"$f":"IF(C239=\"\",\"\",HLOOKUP(C239,'MHP Family Income & Rent Limits'!$E$12:$L$26,5,FALSE))","v":""},{"$f":"IF(C239=\"\",\"\",HLOOKUP(C239,'MHP Family Income & Rent Limits'!$E$12:$L$26,6,FALSE))","v":""},{"$f":"IF(C239=\"\",\"\",HLOOKUP(C239,'MHP Family Income & Rent Limits'!$E$12:$L$26,7,FALSE))","v":""},{"$f":"IF(C239=\"\",\"\",HLOOKUP(C239,'MHP Family Income & Rent Limits'!$E$12:$L$26,8,FALSE))","v":""},{"$f":"IF(C239=\"\",\"\",HLOOKUP(C239,'MHP Family Income & Rent Limits'!$E$12:$L$26,9,FALSE))","v":""},{"$f":"IF(C239=\"\",\"\",HLOOKUP(C239,'MHP Family Income & Rent Limits'!$E$12:$L$26,10,FALSE))","v":""},{"$f":"IF(C239=\"\",\"\",HLOOKUP(C239,'MHP Family Income & Rent Limits'!$E$12:$L$26,11,FALSE))","v":""},{"$f":"IF(C239=\"\",\"\",HLOOKUP(C239,'MHP Family Income & Rent Limits'!$E$12:$L$26,12,FALSE))","v":""},{"$f":"IF(C239=\"\",\"\",HLOOKUP(C239,'MHP Family Income & Rent Limits'!$E$12:$L$26,13,FALSE))","v":""},{"$f":"IF(C239=\"\",\"\",HLOOKUP(C239,'MHP Family Income & Rent Limits'!$E$12:$L$26,14,FALSE))","v":""},{"$f":"IF(C239=\"\",\"\",HLOOKUP(C239,'MHP Family Income & Rent Limits'!$E$12:$L$26,15,FALSE))","v":""}]
[{"$f":"IF('2. Assisted & Restricted Units'!A240=\"\",\"\",'2. Assisted & Restricted Units'!A240)","v":""},{"$f":"IF('2. Assisted & Restricted Units'!B240=\"\",\"\",'2. Assisted & Restricted Units'!B240)","v":""},{"$f":"IF('2. Assisted & Restricted Units'!D240=\"\",\"\",'2. Assisted & Restricted Units'!D240)","v":""},{"$f":"IF('2. Assisted & Restricted Units'!E240=\"\",\"\",'2. Assisted & Restricted Units'!E240)","v":""},{"$f":"IF('2. Assisted & Restricted Units'!H240=\"\",\"\",'2. Assisted & Restricted Units'!H240)","v":""},{"$f":"_xlfn.IFS(E240=\"\",\"\",E240>BO240,$BP$6,E240>BN240,$BO$6,E240>BM240,$BN$6,E240>BL240,$BM$6,E240>BK240,$BL$6,E240>BJ240,$BK$6,E240>BI240,$BJ$6,E240>BH240,$BI$6,E240>BG240,$BH$6,E240>BF240,$BG$6,E240>BE240,$BF$6,E240>BD240,$BE$6,E240>BC240,$BD$6,E240>=0,$BC$6)","v":""},{"$f":"IF('2. Assisted & Restricted Units'!T240=\"\",\"\",'2. Assisted & Restricted Units'!T240)","v":""},{"$f":"IF('2. Assisted & Restricted Units'!I240=\"\",\"\",'2. Assisted & Restricted Units'!I240)","v":""},{"$f":"IF('2. Assisted & Restricted Units'!AP240=\"\",\"\",'2. Assisted & Restricted Units'!AP240)","v":0},{"$f":"IF('2. Assisted & Restricted Units'!AT240=\"\",\"\",'2. Assisted & Restricted Units'!AT240)","v":""},0,{"$f":"IF('2. Assisted & Restricted Units'!AV240=\"\",\"\",'2. Assisted & Restricted Units'!AV240)","v":""},{"$f":"IF('2. Assisted & Restricted Units'!L240=\"\",\"\",'2. Assisted & Restricted Units'!L240)","v":""},{"$f":"IF('2. Assisted & Restricted Units'!M240=\"\",\"\",'2. Assisted & Restricted Units'!M240)","v":""},{"$f":"IF('2. Assisted & Restricted Units'!O240=\"\",\"\",'2. Assisted & Restricted Units'!O240)","v":""},{"$f":"IF('2. Assisted & Restricted Units'!P240=\"\",\"\",'2. Assisted & Restricted Units'!P240)","v":""},{"$f":"IF('2. Assisted & Restricted Units'!Q240=\"\",\"\",'2. Assisted & Restricted Units'!Q240)","v":""},{"$f":"IF('2. Assisted & Restricted Units'!R240=\"\",\"\",'2. Assisted & Restricted Units'!R240)","v":""},{"$f":"IF(A240=\"\",\"\",'1. Checklist & Certification'!$K$1)","v":""},{"$f":"IF(A240=\"\",\"\",'1. Checklist & Certification'!$C$62)","v":""},{"$f":"IF(A240=\"\",\"\",'1. Checklist & Certification'!$K$62)","v":""},{"$f":"IF(A240=\"\",\"\",'1. Checklist & Certification'!$C$6)","v":""},{"$f":"IF(A240=\"\",\"\",'1. Checklist & Certification'!$G$4)","v":""},{"$f":"IF(A240=\"\",\"\",'1. Checklist & Certification'!$C$7)","v":""},{"$f":"IF(A240=\"\",\"\",'1. Checklist & Certification'!$C$8)","v":""},{"$f":"IF(A240=\"\",\"\",'1. Checklist & Certification'!$F$7)","v":""},{"$f":"IF(A240=\"\",\"\",'1. Checklist & Certification'!$F$8)","v":""},{"$f":"IF(A240=\"\",\"\",'1. Checklist & Certification'!$B$9)","v":""},{"$f":"IF(A240=\"\",\"\",'1. Checklist & Certification'!$F$9)","v":""},{"$f":"IF(A240=\"\",\"\",'1. Checklist & Certification'!$C$10)","v":""},{"$f":"IF(A240=\"\",\"\",'1. Checklist & Certification'!$C$11)","v":""},{"$f":"IF(A240=\"\",\"\",'1. Checklist & Certification'!$C$12)","v":""},{"$f":"IF(A240=\"\",\"\",'1. Checklist & Certification'!$B$14)","v":""},{"$f":"IF(A240=\"\",\"\",'1. Checklist & Certification'!$E$14)","v":""},{"$f":"IF(B240=\"\",\"\",'1. Checklist & Certification'!$G$14)","v":""},{"$f":"IF(A240=\"\",\"\",'MHP Family Income & Rent Limits'!$B$3)","v":""},{"$f":"IF(A240=\"\",\"\",'MHP Family Income & Rent Limits'!$J$3)","v":""},{"$f":"IF(A240=\"\",\"\",'MHP Family Income & Rent Limits'!$E$4)","v":""},{"$f":"IF(A240=\"\",\"\",'MHP Family Income & Rent Limits'!$C$7)","v":""},{"$f":"IF(A240=\"\",\"\",'MHP Family Income & Rent Limits'!$F$8)","v":""},{"$f":"IF(A240=\"\",\"\",'1. Checklist & Certification'!$G$4)","v":""},{"$f":"IF(A240=\"\",\"\",'1. Checklist & Certification'!$K$39)","v":""},{"$f":"IF(A240=\"\",\"\",'1. Checklist & Certification'!$K$43)","v":""},{"$f":"IF(A240=\"\",\"\",'1. Checklist & Certification'!$K$45)","v":""},{"$f":"IF(A240=\"\",\"\",'1. Checklist & Certification'!$K$49)","v":""},{"$f":"IF(A240=\"\",\"\",'1. Checklist & Certification'!$E$66)","v":""},{"$f":"IF(A240=\"\",\"\",'1. Checklist & Certification'!$E$67)","v":""},{"$f":"IF(A240=\"\",\"\",'1. Checklist & Certification'!$E$68)","v":""},{"$f":"IF(A240=\"\",\"\",'1. Checklist & Certification'!$G$66)","v":""},{"$f":"IF(A240=\"\",\"\",'1. Checklist & Certification'!$H$66)","v":""},{"$f":"IF(A240=\"\",\"\",'1. Checklist & Certification'!$I$66)","v":""},{"$f":"IF(A240=\"\",\"\",'1. Checklist & Certification'!$I$67)","v":""},{"$f":"IF(A240=\"\",\"\",'1. Checklist & Certification'!$I$68)","v":""},null,{"$f":"IF(C240=\"\",\"\",HLOOKUP(C240,'MHP Family Income & Rent Limits'!$E$12:$L$26,2,FALSE))","v":""},{"$f":"IF(C240=\"\",\"\",HLOOKUP(C240,'MHP Family Income & Rent Limits'!$E$12:$L$26,3,FALSE))","v":""},{"$f":"IF(C240=\"\",\"\",HLOOKUP(C240,'MHP Family Income & Rent Limits'!$E$12:$L$26,4,FALSE))","v":""},{"$f":"IF(C240=\"\",\"\",HLOOKUP(C240,'MHP Family Income & Rent Limits'!$E$12:$L$26,5,FALSE))","v":""},{"$f":"IF(C240=\"\",\"\",HLOOKUP(C240,'MHP Family Income & Rent Limits'!$E$12:$L$26,6,FALSE))","v":""},{"$f":"IF(C240=\"\",\"\",HLOOKUP(C240,'MHP Family Income & Rent Limits'!$E$12:$L$26,7,FALSE))","v":""},{"$f":"IF(C240=\"\",\"\",HLOOKUP(C240,'MHP Family Income & Rent Limits'!$E$12:$L$26,8,FALSE))","v":""},{"$f":"IF(C240=\"\",\"\",HLOOKUP(C240,'MHP Family Income & Rent Limits'!$E$12:$L$26,9,FALSE))","v":""},{"$f":"IF(C240=\"\",\"\",HLOOKUP(C240,'MHP Family Income & Rent Limits'!$E$12:$L$26,10,FALSE))","v":""},{"$f":"IF(C240=\"\",\"\",HLOOKUP(C240,'MHP Family Income & Rent Limits'!$E$12:$L$26,11,FALSE))","v":""},{"$f":"IF(C240=\"\",\"\",HLOOKUP(C240,'MHP Family Income & Rent Limits'!$E$12:$L$26,12,FALSE))","v":""},{"$f":"IF(C240=\"\",\"\",HLOOKUP(C240,'MHP Family Income & Rent Limits'!$E$12:$L$26,13,FALSE))","v":""},{"$f":"IF(C240=\"\",\"\",HLOOKUP(C240,'MHP Family Income & Rent Limits'!$E$12:$L$26,14,FALSE))","v":""},{"$f":"IF(C240=\"\",\"\",HLOOKUP(C240,'MHP Family Income & Rent Limits'!$E$12:$L$26,15,FALSE))","v":""}]
[{"$f":"IF('2. Assisted & Restricted Units'!A241=\"\",\"\",'2. Assisted & Restricted Units'!A241)","v":""},{"$f":"IF('2. Assisted & Restricted Units'!B241=\"\",\"\",'2. Assisted & Restricted Units'!B241)","v":""},{"$f":"IF('2. Assisted & Restricted Units'!D241=\"\",\"\",'2. Assisted & Restricted Units'!D241)","v":""},{"$f":"IF('2. Assisted & Restricted Units'!E241=\"\",\"\",'2. Assisted & Restricted Units'!E241)","v":""},{"$f":"IF('2. Assisted & Restricted Units'!H241=\"\",\"\",'2. Assisted & Restricted Units'!H241)","v":""},{"$f":"_xlfn.IFS(E241=\"\",\"\",E241>BO241,$BP$6,E241>BN241,$BO$6,E241>BM241,$BN$6,E241>BL241,$BM$6,E241>BK241,$BL$6,E241>BJ241,$BK$6,E241>BI241,$BJ$6,E241>BH241,$BI$6,E241>BG241,$BH$6,E241>BF241,$BG$6,E241>BE241,$BF$6,E241>BD241,$BE$6,E241>BC241,$BD$6,E241>=0,$BC$6)","v":""},{"$f":"IF('2. Assisted & Restricted Units'!T241=\"\",\"\",'2. Assisted & Restricted Units'!T241)","v":""},{"$f":"IF('2. Assisted & Restricted Units'!I241=\"\",\"\",'2. Assisted & Restricted Units'!I241)","v":""},{"$f":"IF('2. Assisted & Restricted Units'!AP241=\"\",\"\",'2. Assisted & Restricted Units'!AP241)","v":0},{"$f":"IF('2. Assisted & Restricted Units'!AT241=\"\",\"\",'2. Assisted & Restricted Units'!AT241)","v":""},0,{"$f":"IF('2. Assisted & Restricted Units'!AV241=\"\",\"\",'2. Assisted & Restricted Units'!AV241)","v":""},{"$f":"IF('2. Assisted & Restricted Units'!L241=\"\",\"\",'2. Assisted & Restricted Units'!L241)","v":""},{"$f":"IF('2. Assisted & Restricted Units'!M241=\"\",\"\",'2. Assisted & Restricted Units'!M241)","v":""},{"$f":"IF('2. Assisted & Restricted Units'!O241=\"\",\"\",'2. Assisted & Restricted Units'!O241)","v":""},{"$f":"IF('2. Assisted & Restricted Units'!P241=\"\",\"\",'2. Assisted & Restricted Units'!P241)","v":""},{"$f":"IF('2. Assisted & Restricted Units'!Q241=\"\",\"\",'2. Assisted & Restricted Units'!Q241)","v":""},{"$f":"IF('2. Assisted & Restricted Units'!R241=\"\",\"\",'2. Assisted & Restricted Units'!R241)","v":""},{"$f":"IF(A241=\"\",\"\",'1. Checklist & Certification'!$K$1)","v":""},{"$f":"IF(A241=\"\",\"\",'1. Checklist & Certification'!$C$62)","v":""},{"$f":"IF(A241=\"\",\"\",'1. Checklist & Certification'!$K$62)","v":""},{"$f":"IF(A241=\"\",\"\",'1. Checklist & Certification'!$C$6)","v":""},{"$f":"IF(A241=\"\",\"\",'1. Checklist & Certification'!$G$4)","v":""},{"$f":"IF(A241=\"\",\"\",'1. Checklist & Certification'!$C$7)","v":""},{"$f":"IF(A241=\"\",\"\",'1. Checklist & Certification'!$C$8)","v":""},{"$f":"IF(A241=\"\",\"\",'1. Checklist & Certification'!$F$7)","v":""},{"$f":"IF(A241=\"\",\"\",'1. Checklist & Certification'!$F$8)","v":""},{"$f":"IF(A241=\"\",\"\",'1. Checklist & Certification'!$B$9)","v":""},{"$f":"IF(A241=\"\",\"\",'1. Checklist & Certification'!$F$9)","v":""},{"$f":"IF(A241=\"\",\"\",'1. Checklist & Certification'!$C$10)","v":""},{"$f":"IF(A241=\"\",\"\",'1. Checklist & Certification'!$C$11)","v":""},{"$f":"IF(A241=\"\",\"\",'1. Checklist & Certification'!$C$12)","v":""},{"$f":"IF(A241=\"\",\"\",'1. Checklist & Certification'!$B$14)","v":""},{"$f":"IF(A241=\"\",\"\",'1. Checklist & Certification'!$E$14)","v":""},{"$f":"IF(B241=\"\",\"\",'1. Checklist & Certification'!$G$14)","v":""},{"$f":"IF(A241=\"\",\"\",'MHP Family Income & Rent Limits'!$B$3)","v":""},{"$f":"IF(A241=\"\",\"\",'MHP Family Income & Rent Limits'!$J$3)","v":""},{"$f":"IF(A241=\"\",\"\",'MHP Family Income & Rent Limits'!$E$4)","v":""},{"$f":"IF(A241=\"\",\"\",'MHP Family Income & Rent Limits'!$C$7)","v":""},{"$f":"IF(A241=\"\",\"\",'MHP Family Income & Rent Limits'!$F$8)","v":""},{"$f":"IF(A241=\"\",\"\",'1. Checklist & Certification'!$G$4)","v":""},{"$f":"IF(A241=\"\",\"\",'1. Checklist & Certification'!$K$39)","v":""},{"$f":"IF(A241=\"\",\"\",'1. Checklist & Certification'!$K$43)","v":""},{"$f":"IF(A241=\"\",\"\",'1. Checklist & Certification'!$K$45)","v":""},{"$f":"IF(A241=\"\",\"\",'1. Checklist & Certification'!$K$49)","v":""},{"$f":"IF(A241=\"\",\"\",'1. Checklist & Certification'!$E$66)","v":""},{"$f":"IF(A241=\"\",\"\",'1. Checklist & Certification'!$E$67)","v":""},{"$f":"IF(A241=\"\",\"\",'1. Checklist & Certification'!$E$68)","v":""},{"$f":"IF(A241=\"\",\"\",'1. Checklist & Certification'!$G$66)","v":""},{"$f":"IF(A241=\"\",\"\",'1. Checklist & Certification'!$H$66)","v":""},{"$f":"IF(A241=\"\",\"\",'1. Checklist & Certification'!$I$66)","v":""},{"$f":"IF(A241=\"\",\"\",'1. Checklist & Certification'!$I$67)","v":""},{"$f":"IF(A241=\"\",\"\",'1. Checklist & Certification'!$I$68)","v":""},null,{"$f":"IF(C241=\"\",\"\",HLOOKUP(C241,'MHP Family Income & Rent Limits'!$E$12:$L$26,2,FALSE))","v":""},{"$f":"IF(C241=\"\",\"\",HLOOKUP(C241,'MHP Family Income & Rent Limits'!$E$12:$L$26,3,FALSE))","v":""},{"$f":"IF(C241=\"\",\"\",HLOOKUP(C241,'MHP Family Income & Rent Limits'!$E$12:$L$26,4,FALSE))","v":""},{"$f":"IF(C241=\"\",\"\",HLOOKUP(C241,'MHP Family Income & Rent Limits'!$E$12:$L$26,5,FALSE))","v":""},{"$f":"IF(C241=\"\",\"\",HLOOKUP(C241,'MHP Family Income & Rent Limits'!$E$12:$L$26,6,FALSE))","v":""},{"$f":"IF(C241=\"\",\"\",HLOOKUP(C241,'MHP Family Income & Rent Limits'!$E$12:$L$26,7,FALSE))","v":""},{"$f":"IF(C241=\"\",\"\",HLOOKUP(C241,'MHP Family Income & Rent Limits'!$E$12:$L$26,8,FALSE))","v":""},{"$f":"IF(C241=\"\",\"\",HLOOKUP(C241,'MHP Family Income & Rent Limits'!$E$12:$L$26,9,FALSE))","v":""},{"$f":"IF(C241=\"\",\"\",HLOOKUP(C241,'MHP Family Income & Rent Limits'!$E$12:$L$26,10,FALSE))","v":""},{"$f":"IF(C241=\"\",\"\",HLOOKUP(C241,'MHP Family Income & Rent Limits'!$E$12:$L$26,11,FALSE))","v":""},{"$f":"IF(C241=\"\",\"\",HLOOKUP(C241,'MHP Family Income & Rent Limits'!$E$12:$L$26,12,FALSE))","v":""},{"$f":"IF(C241=\"\",\"\",HLOOKUP(C241,'MHP Family Income & Rent Limits'!$E$12:$L$26,13,FALSE))","v":""},{"$f":"IF(C241=\"\",\"\",HLOOKUP(C241,'MHP Family Income & Rent Limits'!$E$12:$L$26,14,FALSE))","v":""},{"$f":"IF(C241=\"\",\"\",HLOOKUP(C241,'MHP Family Income & Rent Limits'!$E$12:$L$26,15,FALSE))","v":""}]
[{"$f":"IF('2. Assisted & Restricted Units'!A242=\"\",\"\",'2. Assisted & Restricted Units'!A242)","v":""},{"$f":"IF('2. Assisted & Restricted Units'!B242=\"\",\"\",'2. Assisted & Restricted Units'!B242)","v":""},{"$f":"IF('2. Assisted & Restricted Units'!D242=\"\",\"\",'2. Assisted & Restricted Units'!D242)","v":""},{"$f":"IF('2. Assisted & Restricted Units'!E242=\"\",\"\",'2. Assisted & Restricted Units'!E242)","v":""},{"$f":"IF('2. Assisted & Restricted Units'!H242=\"\",\"\",'2. Assisted & Restricted Units'!H242)","v":""},{"$f":"_xlfn.IFS(E242=\"\",\"\",E242>BO242,$BP$6,E242>BN242,$BO$6,E242>BM242,$BN$6,E242>BL242,$BM$6,E242>BK242,$BL$6,E242>BJ242,$BK$6,E242>BI242,$BJ$6,E242>BH242,$BI$6,E242>BG242,$BH$6,E242>BF242,$BG$6,E242>BE242,$BF$6,E242>BD242,$BE$6,E242>BC242,$BD$6,E242>=0,$BC$6)","v":""},{"$f":"IF('2. Assisted & Restricted Units'!T242=\"\",\"\",'2. Assisted & Restricted Units'!T242)","v":""},{"$f":"IF('2. Assisted & Restricted Units'!I242=\"\",\"\",'2. Assisted & Restricted Units'!I242)","v":""},{"$f":"IF('2. Assisted & Restricted Units'!AP242=\"\",\"\",'2. Assisted & Restricted Units'!AP242)","v":0},{"$f":"IF('2. Assisted & Restricted Units'!AT242=\"\",\"\",'2. Assisted & Restricted Units'!AT242)","v":""},0,{"$f":"IF('2. Assisted & Restricted Units'!AV242=\"\",\"\",'2. Assisted & Restricted Units'!AV242)","v":""},{"$f":"IF('2. Assisted & Restricted Units'!L242=\"\",\"\",'2. Assisted & Restricted Units'!L242)","v":""},{"$f":"IF('2. Assisted & Restricted Units'!M242=\"\",\"\",'2. Assisted & Restricted Units'!M242)","v":""},{"$f":"IF('2. Assisted & Restricted Units'!O242=\"\",\"\",'2. Assisted & Restricted Units'!O242)","v":""},{"$f":"IF('2. Assisted & Restricted Units'!P242=\"\",\"\",'2. Assisted & Restricted Units'!P242)","v":""},{"$f":"IF('2. Assisted & Restricted Units'!Q242=\"\",\"\",'2. Assisted & Restricted Units'!Q242)","v":""},{"$f":"IF('2. Assisted & Restricted Units'!R242=\"\",\"\",'2. Assisted & Restricted Units'!R242)","v":""},{"$f":"IF(A242=\"\",\"\",'1. Checklist & Certification'!$K$1)","v":""},{"$f":"IF(A242=\"\",\"\",'1. Checklist & Certification'!$C$62)","v":""},{"$f":"IF(A242=\"\",\"\",'1. Checklist & Certification'!$K$62)","v":""},{"$f":"IF(A242=\"\",\"\",'1. Checklist & Certification'!$C$6)","v":""},{"$f":"IF(A242=\"\",\"\",'1. Checklist & Certification'!$G$4)","v":""},{"$f":"IF(A242=\"\",\"\",'1. Checklist & Certification'!$C$7)","v":""},{"$f":"IF(A242=\"\",\"\",'1. Checklist & Certification'!$C$8)","v":""},{"$f":"IF(A242=\"\",\"\",'1. Checklist & Certification'!$F$7)","v":""},{"$f":"IF(A242=\"\",\"\",'1. Checklist & Certification'!$F$8)","v":""},{"$f":"IF(A242=\"\",\"\",'1. Checklist & Certification'!$B$9)","v":""},{"$f":"IF(A242=\"\",\"\",'1. Checklist & Certification'!$F$9)","v":""},{"$f":"IF(A242=\"\",\"\",'1. Checklist & Certification'!$C$10)","v":""},{"$f":"IF(A242=\"\",\"\",'1. Checklist & Certification'!$C$11)","v":""},{"$f":"IF(A242=\"\",\"\",'1. Checklist & Certification'!$C$12)","v":""},{"$f":"IF(A242=\"\",\"\",'1. Checklist & Certification'!$B$14)","v":""},{"$f":"IF(A242=\"\",\"\",'1. Checklist & Certification'!$E$14)","v":""},{"$f":"IF(B242=\"\",\"\",'1. Checklist & Certification'!$G$14)","v":""},{"$f":"IF(A242=\"\",\"\",'MHP Family Income & Rent Limits'!$B$3)","v":""},{"$f":"IF(A242=\"\",\"\",'MHP Family Income & Rent Limits'!$J$3)","v":""},{"$f":"IF(A242=\"\",\"\",'MHP Family Income & Rent Limits'!$E$4)","v":""},{"$f":"IF(A242=\"\",\"\",'MHP Family Income & Rent Limits'!$C$7)","v":""},{"$f":"IF(A242=\"\",\"\",'MHP Family Income & Rent Limits'!$F$8)","v":""},{"$f":"IF(A242=\"\",\"\",'1. Checklist & Certification'!$G$4)","v":""},{"$f":"IF(A242=\"\",\"\",'1. Checklist & Certification'!$K$39)","v":""},{"$f":"IF(A242=\"\",\"\",'1. Checklist & Certification'!$K$43)","v":""},{"$f":"IF(A242=\"\",\"\",'1. Checklist & Certification'!$K$45)","v":""},{"$f":"IF(A242=\"\",\"\",'1. Checklist & Certification'!$K$49)","v":""},{"$f":"IF(A242=\"\",\"\",'1. Checklist & Certification'!$E$66)","v":""},{"$f":"IF(A242=\"\",\"\",'1. Checklist & Certification'!$E$67)","v":""},{"$f":"IF(A242=\"\",\"\",'1. Checklist & Certification'!$E$68)","v":""},{"$f":"IF(A242=\"\",\"\",'1. Checklist & Certification'!$G$66)","v":""},{"$f":"IF(A242=\"\",\"\",'1. Checklist & Certification'!$H$66)","v":""},{"$f":"IF(A242=\"\",\"\",'1. Checklist & Certification'!$I$66)","v":""},{"$f":"IF(A242=\"\",\"\",'1. Checklist & Certification'!$I$67)","v":""},{"$f":"IF(A242=\"\",\"\",'1. Checklist & Certification'!$I$68)","v":""},null,{"$f":"IF(C242=\"\",\"\",HLOOKUP(C242,'MHP Family Income & Rent Limits'!$E$12:$L$26,2,FALSE))","v":""},{"$f":"IF(C242=\"\",\"\",HLOOKUP(C242,'MHP Family Income & Rent Limits'!$E$12:$L$26,3,FALSE))","v":""},{"$f":"IF(C242=\"\",\"\",HLOOKUP(C242,'MHP Family Income & Rent Limits'!$E$12:$L$26,4,FALSE))","v":""},{"$f":"IF(C242=\"\",\"\",HLOOKUP(C242,'MHP Family Income & Rent Limits'!$E$12:$L$26,5,FALSE))","v":""},{"$f":"IF(C242=\"\",\"\",HLOOKUP(C242,'MHP Family Income & Rent Limits'!$E$12:$L$26,6,FALSE))","v":""},{"$f":"IF(C242=\"\",\"\",HLOOKUP(C242,'MHP Family Income & Rent Limits'!$E$12:$L$26,7,FALSE))","v":""},{"$f":"IF(C242=\"\",\"\",HLOOKUP(C242,'MHP Family Income & Rent Limits'!$E$12:$L$26,8,FALSE))","v":""},{"$f":"IF(C242=\"\",\"\",HLOOKUP(C242,'MHP Family Income & Rent Limits'!$E$12:$L$26,9,FALSE))","v":""},{"$f":"IF(C242=\"\",\"\",HLOOKUP(C242,'MHP Family Income & Rent Limits'!$E$12:$L$26,10,FALSE))","v":""},{"$f":"IF(C242=\"\",\"\",HLOOKUP(C242,'MHP Family Income & Rent Limits'!$E$12:$L$26,11,FALSE))","v":""},{"$f":"IF(C242=\"\",\"\",HLOOKUP(C242,'MHP Family Income & Rent Limits'!$E$12:$L$26,12,FALSE))","v":""},{"$f":"IF(C242=\"\",\"\",HLOOKUP(C242,'MHP Family Income & Rent Limits'!$E$12:$L$26,13,FALSE))","v":""},{"$f":"IF(C242=\"\",\"\",HLOOKUP(C242,'MHP Family Income & Rent Limits'!$E$12:$L$26,14,FALSE))","v":""},{"$f":"IF(C242=\"\",\"\",HLOOKUP(C242,'MHP Family Income & Rent Limits'!$E$12:$L$26,15,FALSE))","v":""}]
[{"$f":"IF('2. Assisted & Restricted Units'!A243=\"\",\"\",'2. Assisted & Restricted Units'!A243)","v":""},{"$f":"IF('2. Assisted & Restricted Units'!B243=\"\",\"\",'2. Assisted & Restricted Units'!B243)","v":""},{"$f":"IF('2. Assisted & Restricted Units'!D243=\"\",\"\",'2. Assisted & Restricted Units'!D243)","v":""},{"$f":"IF('2. Assisted & Restricted Units'!E243=\"\",\"\",'2. Assisted & Restricted Units'!E243)","v":""},{"$f":"IF('2. Assisted & Restricted Units'!H243=\"\",\"\",'2. Assisted & Restricted Units'!H243)","v":""},{"$f":"_xlfn.IFS(E243=\"\",\"\",E243>BO243,$BP$6,E243>BN243,$BO$6,E243>BM243,$BN$6,E243>BL243,$BM$6,E243>BK243,$BL$6,E243>BJ243,$BK$6,E243>BI243,$BJ$6,E243>BH243,$BI$6,E243>BG243,$BH$6,E243>BF243,$BG$6,E243>BE243,$BF$6,E243>BD243,$BE$6,E243>BC243,$BD$6,E243>=0,$BC$6)","v":""},{"$f":"IF('2. Assisted & Restricted Units'!T243=\"\",\"\",'2. Assisted & Restricted Units'!T243)","v":""},{"$f":"IF('2. Assisted & Restricted Units'!I243=\"\",\"\",'2. Assisted & Restricted Units'!I243)","v":""},{"$f":"IF('2. Assisted & Restricted Units'!AP243=\"\",\"\",'2. Assisted & Restricted Units'!AP243)","v":0},{"$f":"IF('2. Assisted & Restricted Units'!AT243=\"\",\"\",'2. Assisted & Restricted Units'!AT243)","v":""},0,{"$f":"IF('2. Assisted & Restricted Units'!AV243=\"\",\"\",'2. Assisted & Restricted Units'!AV243)","v":""},{"$f":"IF('2. Assisted & Restricted Units'!L243=\"\",\"\",'2. Assisted & Restricted Units'!L243)","v":""},{"$f":"IF('2. Assisted & Restricted Units'!M243=\"\",\"\",'2. Assisted & Restricted Units'!M243)","v":""},{"$f":"IF('2. Assisted & Restricted Units'!O243=\"\",\"\",'2. Assisted & Restricted Units'!O243)","v":""},{"$f":"IF('2. Assisted & Restricted Units'!P243=\"\",\"\",'2. Assisted & Restricted Units'!P243)","v":""},{"$f":"IF('2. Assisted & Restricted Units'!Q243=\"\",\"\",'2. Assisted & Restricted Units'!Q243)","v":""},{"$f":"IF('2. Assisted & Restricted Units'!R243=\"\",\"\",'2. Assisted & Restricted Units'!R243)","v":""},{"$f":"IF(A243=\"\",\"\",'1. Checklist & Certification'!$K$1)","v":""},{"$f":"IF(A243=\"\",\"\",'1. Checklist & Certification'!$C$62)","v":""},{"$f":"IF(A243=\"\",\"\",'1. Checklist & Certification'!$K$62)","v":""},{"$f":"IF(A243=\"\",\"\",'1. Checklist & Certification'!$C$6)","v":""},{"$f":"IF(A243=\"\",\"\",'1. Checklist & Certification'!$G$4)","v":""},{"$f":"IF(A243=\"\",\"\",'1. Checklist & Certification'!$C$7)","v":""},{"$f":"IF(A243=\"\",\"\",'1. Checklist & Certification'!$C$8)","v":""},{"$f":"IF(A243=\"\",\"\",'1. Checklist & Certification'!$F$7)","v":""},{"$f":"IF(A243=\"\",\"\",'1. Checklist & Certification'!$F$8)","v":""},{"$f":"IF(A243=\"\",\"\",'1. Checklist & Certification'!$B$9)","v":""},{"$f":"IF(A243=\"\",\"\",'1. Checklist & Certification'!$F$9)","v":""},{"$f":"IF(A243=\"\",\"\",'1. Checklist & Certification'!$C$10)","v":""},{"$f":"IF(A243=\"\",\"\",'1. Checklist & Certification'!$C$11)","v":""},{"$f":"IF(A243=\"\",\"\",'1. Checklist & Certification'!$C$12)","v":""},{"$f":"IF(A243=\"\",\"\",'1. Checklist & Certification'!$B$14)","v":""},{"$f":"IF(A243=\"\",\"\",'1. Checklist & Certification'!$E$14)","v":""},{"$f":"IF(B243=\"\",\"\",'1. Checklist & Certification'!$G$14)","v":""},{"$f":"IF(A243=\"\",\"\",'MHP Family Income & Rent Limits'!$B$3)","v":""},{"$f":"IF(A243=\"\",\"\",'MHP Family Income & Rent Limits'!$J$3)","v":""},{"$f":"IF(A243=\"\",\"\",'MHP Family Income & Rent Limits'!$E$4)","v":""},{"$f":"IF(A243=\"\",\"\",'MHP Family Income & Rent Limits'!$C$7)","v":""},{"$f":"IF(A243=\"\",\"\",'MHP Family Income & Rent Limits'!$F$8)","v":""},{"$f":"IF(A243=\"\",\"\",'1. Checklist & Certification'!$G$4)","v":""},{"$f":"IF(A243=\"\",\"\",'1. Checklist & Certification'!$K$39)","v":""},{"$f":"IF(A243=\"\",\"\",'1. Checklist & Certification'!$K$43)","v":""},{"$f":"IF(A243=\"\",\"\",'1. Checklist & Certification'!$K$45)","v":""},{"$f":"IF(A243=\"\",\"\",'1. Checklist & Certification'!$K$49)","v":""},{"$f":"IF(A243=\"\",\"\",'1. Checklist & Certification'!$E$66)","v":""},{"$f":"IF(A243=\"\",\"\",'1. Checklist & Certification'!$E$67)","v":""},{"$f":"IF(A243=\"\",\"\",'1. Checklist & Certification'!$E$68)","v":""},{"$f":"IF(A243=\"\",\"\",'1. Checklist & Certification'!$G$66)","v":""},{"$f":"IF(A243=\"\",\"\",'1. Checklist & Certification'!$H$66)","v":""},{"$f":"IF(A243=\"\",\"\",'1. Checklist & Certification'!$I$66)","v":""},{"$f":"IF(A243=\"\",\"\",'1. Checklist & Certification'!$I$67)","v":""},{"$f":"IF(A243=\"\",\"\",'1. Checklist & Certification'!$I$68)","v":""},null,{"$f":"IF(C243=\"\",\"\",HLOOKUP(C243,'MHP Family Income & Rent Limits'!$E$12:$L$26,2,FALSE))","v":""},{"$f":"IF(C243=\"\",\"\",HLOOKUP(C243,'MHP Family Income & Rent Limits'!$E$12:$L$26,3,FALSE))","v":""},{"$f":"IF(C243=\"\",\"\",HLOOKUP(C243,'MHP Family Income & Rent Limits'!$E$12:$L$26,4,FALSE))","v":""},{"$f":"IF(C243=\"\",\"\",HLOOKUP(C243,'MHP Family Income & Rent Limits'!$E$12:$L$26,5,FALSE))","v":""},{"$f":"IF(C243=\"\",\"\",HLOOKUP(C243,'MHP Family Income & Rent Limits'!$E$12:$L$26,6,FALSE))","v":""},{"$f":"IF(C243=\"\",\"\",HLOOKUP(C243,'MHP Family Income & Rent Limits'!$E$12:$L$26,7,FALSE))","v":""},{"$f":"IF(C243=\"\",\"\",HLOOKUP(C243,'MHP Family Income & Rent Limits'!$E$12:$L$26,8,FALSE))","v":""},{"$f":"IF(C243=\"\",\"\",HLOOKUP(C243,'MHP Family Income & Rent Limits'!$E$12:$L$26,9,FALSE))","v":""},{"$f":"IF(C243=\"\",\"\",HLOOKUP(C243,'MHP Family Income & Rent Limits'!$E$12:$L$26,10,FALSE))","v":""},{"$f":"IF(C243=\"\",\"\",HLOOKUP(C243,'MHP Family Income & Rent Limits'!$E$12:$L$26,11,FALSE))","v":""},{"$f":"IF(C243=\"\",\"\",HLOOKUP(C243,'MHP Family Income & Rent Limits'!$E$12:$L$26,12,FALSE))","v":""},{"$f":"IF(C243=\"\",\"\",HLOOKUP(C243,'MHP Family Income & Rent Limits'!$E$12:$L$26,13,FALSE))","v":""},{"$f":"IF(C243=\"\",\"\",HLOOKUP(C243,'MHP Family Income & Rent Limits'!$E$12:$L$26,14,FALSE))","v":""},{"$f":"IF(C243=\"\",\"\",HLOOKUP(C243,'MHP Family Income & Rent Limits'!$E$12:$L$26,15,FALSE))","v":""}]
[{"$f":"IF('2. Assisted & Restricted Units'!A244=\"\",\"\",'2. Assisted & Restricted Units'!A244)","v":""},{"$f":"IF('2. Assisted & Restricted Units'!B244=\"\",\"\",'2. Assisted & Restricted Units'!B244)","v":""},{"$f":"IF('2. Assisted & Restricted Units'!D244=\"\",\"\",'2. Assisted & Restricted Units'!D244)","v":""},{"$f":"IF('2. Assisted & Restricted Units'!E244=\"\",\"\",'2. Assisted & Restricted Units'!E244)","v":""},{"$f":"IF('2. Assisted & Restricted Units'!H244=\"\",\"\",'2. Assisted & Restricted Units'!H244)","v":""},{"$f":"_xlfn.IFS(E244=\"\",\"\",E244>BO244,$BP$6,E244>BN244,$BO$6,E244>BM244,$BN$6,E244>BL244,$BM$6,E244>BK244,$BL$6,E244>BJ244,$BK$6,E244>BI244,$BJ$6,E244>BH244,$BI$6,E244>BG244,$BH$6,E244>BF244,$BG$6,E244>BE244,$BF$6,E244>BD244,$BE$6,E244>BC244,$BD$6,E244>=0,$BC$6)","v":""},{"$f":"IF('2. Assisted & Restricted Units'!T244=\"\",\"\",'2. Assisted & Restricted Units'!T244)","v":""},{"$f":"IF('2. Assisted & Restricted Units'!I244=\"\",\"\",'2. Assisted & Restricted Units'!I244)","v":""},{"$f":"IF('2. Assisted & Restricted Units'!AP244=\"\",\"\",'2. Assisted & Restricted Units'!AP244)","v":0},{"$f":"IF('2. Assisted & Restricted Units'!AT244=\"\",\"\",'2. Assisted & Restricted Units'!AT244)","v":""},0,{"$f":"IF('2. Assisted & Restricted Units'!AV244=\"\",\"\",'2. Assisted & Restricted Units'!AV244)","v":""},{"$f":"IF('2. Assisted & Restricted Units'!L244=\"\",\"\",'2. Assisted & Restricted Units'!L244)","v":""},{"$f":"IF('2. Assisted & Restricted Units'!M244=\"\",\"\",'2. Assisted & Restricted Units'!M244)","v":""},{"$f":"IF('2. Assisted & Restricted Units'!O244=\"\",\"\",'2. Assisted & Restricted Units'!O244)","v":""},{"$f":"IF('2. Assisted & Restricted Units'!P244=\"\",\"\",'2. Assisted & Restricted Units'!P244)","v":""},{"$f":"IF('2. Assisted & Restricted Units'!Q244=\"\",\"\",'2. Assisted & Restricted Units'!Q244)","v":""},{"$f":"IF('2. Assisted & Restricted Units'!R244=\"\",\"\",'2. Assisted & Restricted Units'!R244)","v":""},{"$f":"IF(A244=\"\",\"\",'1. Checklist & Certification'!$K$1)","v":""},{"$f":"IF(A244=\"\",\"\",'1. Checklist & Certification'!$C$62)","v":""},{"$f":"IF(A244=\"\",\"\",'1. Checklist & Certification'!$K$62)","v":""},{"$f":"IF(A244=\"\",\"\",'1. Checklist & Certification'!$C$6)","v":""},{"$f":"IF(A244=\"\",\"\",'1. Checklist & Certification'!$G$4)","v":""},{"$f":"IF(A244=\"\",\"\",'1. Checklist & Certification'!$C$7)","v":""},{"$f":"IF(A244=\"\",\"\",'1. Checklist & Certification'!$C$8)","v":""},{"$f":"IF(A244=\"\",\"\",'1. Checklist & Certification'!$F$7)","v":""},{"$f":"IF(A244=\"\",\"\",'1. Checklist & Certification'!$F$8)","v":""},{"$f":"IF(A244=\"\",\"\",'1. Checklist & Certification'!$B$9)","v":""},{"$f":"IF(A244=\"\",\"\",'1. Checklist & Certification'!$F$9)","v":""},{"$f":"IF(A244=\"\",\"\",'1. Checklist & Certification'!$C$10)","v":""},{"$f":"IF(A244=\"\",\"\",'1. Checklist & Certification'!$C$11)","v":""},{"$f":"IF(A244=\"\",\"\",'1. Checklist & Certification'!$C$12)","v":""},{"$f":"IF(A244=\"\",\"\",'1. Checklist & Certification'!$B$14)","v":""},{"$f":"IF(A244=\"\",\"\",'1. Checklist & Certification'!$E$14)","v":""},{"$f":"IF(B244=\"\",\"\",'1. Checklist & Certification'!$G$14)","v":""},{"$f":"IF(A244=\"\",\"\",'MHP Family Income & Rent Limits'!$B$3)","v":""},{"$f":"IF(A244=\"\",\"\",'MHP Family Income & Rent Limits'!$J$3)","v":""},{"$f":"IF(A244=\"\",\"\",'MHP Family Income & Rent Limits'!$E$4)","v":""},{"$f":"IF(A244=\"\",\"\",'MHP Family Income & Rent Limits'!$C$7)","v":""},{"$f":"IF(A244=\"\",\"\",'MHP Family Income & Rent Limits'!$F$8)","v":""},{"$f":"IF(A244=\"\",\"\",'1. Checklist & Certification'!$G$4)","v":""},{"$f":"IF(A244=\"\",\"\",'1. Checklist & Certification'!$K$39)","v":""},{"$f":"IF(A244=\"\",\"\",'1. Checklist & Certification'!$K$43)","v":""},{"$f":"IF(A244=\"\",\"\",'1. Checklist & Certification'!$K$45)","v":""},{"$f":"IF(A244=\"\",\"\",'1. Checklist & Certification'!$K$49)","v":""},{"$f":"IF(A244=\"\",\"\",'1. Checklist & Certification'!$E$66)","v":""},{"$f":"IF(A244=\"\",\"\",'1. Checklist & Certification'!$E$67)","v":""},{"$f":"IF(A244=\"\",\"\",'1. Checklist & Certification'!$E$68)","v":""},{"$f":"IF(A244=\"\",\"\",'1. Checklist & Certification'!$G$66)","v":""},{"$f":"IF(A244=\"\",\"\",'1. Checklist & Certification'!$H$66)","v":""},{"$f":"IF(A244=\"\",\"\",'1. Checklist & Certification'!$I$66)","v":""},{"$f":"IF(A244=\"\",\"\",'1. Checklist & Certification'!$I$67)","v":""},{"$f":"IF(A244=\"\",\"\",'1. Checklist & Certification'!$I$68)","v":""},null,{"$f":"IF(C244=\"\",\"\",HLOOKUP(C244,'MHP Family Income & Rent Limits'!$E$12:$L$26,2,FALSE))","v":""},{"$f":"IF(C244=\"\",\"\",HLOOKUP(C244,'MHP Family Income & Rent Limits'!$E$12:$L$26,3,FALSE))","v":""},{"$f":"IF(C244=\"\",\"\",HLOOKUP(C244,'MHP Family Income & Rent Limits'!$E$12:$L$26,4,FALSE))","v":""},{"$f":"IF(C244=\"\",\"\",HLOOKUP(C244,'MHP Family Income & Rent Limits'!$E$12:$L$26,5,FALSE))","v":""},{"$f":"IF(C244=\"\",\"\",HLOOKUP(C244,'MHP Family Income & Rent Limits'!$E$12:$L$26,6,FALSE))","v":""},{"$f":"IF(C244=\"\",\"\",HLOOKUP(C244,'MHP Family Income & Rent Limits'!$E$12:$L$26,7,FALSE))","v":""},{"$f":"IF(C244=\"\",\"\",HLOOKUP(C244,'MHP Family Income & Rent Limits'!$E$12:$L$26,8,FALSE))","v":""},{"$f":"IF(C244=\"\",\"\",HLOOKUP(C244,'MHP Family Income & Rent Limits'!$E$12:$L$26,9,FALSE))","v":""},{"$f":"IF(C244=\"\",\"\",HLOOKUP(C244,'MHP Family Income & Rent Limits'!$E$12:$L$26,10,FALSE))","v":""},{"$f":"IF(C244=\"\",\"\",HLOOKUP(C244,'MHP Family Income & Rent Limits'!$E$12:$L$26,11,FALSE))","v":""},{"$f":"IF(C244=\"\",\"\",HLOOKUP(C244,'MHP Family Income & Rent Limits'!$E$12:$L$26,12,FALSE))","v":""},{"$f":"IF(C244=\"\",\"\",HLOOKUP(C244,'MHP Family Income & Rent Limits'!$E$12:$L$26,13,FALSE))","v":""},{"$f":"IF(C244=\"\",\"\",HLOOKUP(C244,'MHP Family Income & Rent Limits'!$E$12:$L$26,14,FALSE))","v":""},{"$f":"IF(C244=\"\",\"\",HLOOKUP(C244,'MHP Family Income & Rent Limits'!$E$12:$L$26,15,FALSE))","v":""}]
[{"$f":"IF('2. Assisted & Restricted Units'!A245=\"\",\"\",'2. Assisted & Restricted Units'!A245)","v":""},{"$f":"IF('2. Assisted & Restricted Units'!B245=\"\",\"\",'2. Assisted & Restricted Units'!B245)","v":""},{"$f":"IF('2. Assisted & Restricted Units'!D245=\"\",\"\",'2. Assisted & Restricted Units'!D245)","v":""},{"$f":"IF('2. Assisted & Restricted Units'!E245=\"\",\"\",'2. Assisted & Restricted Units'!E245)","v":""},{"$f":"IF('2. Assisted & Restricted Units'!H245=\"\",\"\",'2. Assisted & Restricted Units'!H245)","v":""},{"$f":"_xlfn.IFS(E245=\"\",\"\",E245>BO245,$BP$6,E245>BN245,$BO$6,E245>BM245,$BN$6,E245>BL245,$BM$6,E245>BK245,$BL$6,E245>BJ245,$BK$6,E245>BI245,$BJ$6,E245>BH245,$BI$6,E245>BG245,$BH$6,E245>BF245,$BG$6,E245>BE245,$BF$6,E245>BD245,$BE$6,E245>BC245,$BD$6,E245>=0,$BC$6)","v":""},{"$f":"IF('2. Assisted & Restricted Units'!T245=\"\",\"\",'2. Assisted & Restricted Units'!T245)","v":""},{"$f":"IF('2. Assisted & Restricted Units'!I245=\"\",\"\",'2. Assisted & Restricted Units'!I245)","v":""},{"$f":"IF('2. Assisted & Restricted Units'!AP245=\"\",\"\",'2. Assisted & Restricted Units'!AP245)","v":0},{"$f":"IF('2. Assisted & Restricted Units'!AT245=\"\",\"\",'2. Assisted & Restricted Units'!AT245)","v":""},0,{"$f":"IF('2. Assisted & Restricted Units'!AV245=\"\",\"\",'2. Assisted & Restricted Units'!AV245)","v":""},{"$f":"IF('2. Assisted & Restricted Units'!L245=\"\",\"\",'2. Assisted & Restricted Units'!L245)","v":""},{"$f":"IF('2. Assisted & Restricted Units'!M245=\"\",\"\",'2. Assisted & Restricted Units'!M245)","v":""},{"$f":"IF('2. Assisted & Restricted Units'!O245=\"\",\"\",'2. Assisted & Restricted Units'!O245)","v":""},{"$f":"IF('2. Assisted & Restricted Units'!P245=\"\",\"\",'2. Assisted & Restricted Units'!P245)","v":""},{"$f":"IF('2. Assisted & Restricted Units'!Q245=\"\",\"\",'2. Assisted & Restricted Units'!Q245)","v":""},{"$f":"IF('2. Assisted & Restricted Units'!R245=\"\",\"\",'2. Assisted & Restricted Units'!R245)","v":""},{"$f":"IF(A245=\"\",\"\",'1. Checklist & Certification'!$K$1)","v":""},{"$f":"IF(A245=\"\",\"\",'1. Checklist & Certification'!$C$62)","v":""},{"$f":"IF(A245=\"\",\"\",'1. Checklist & Certification'!$K$62)","v":""},{"$f":"IF(A245=\"\",\"\",'1. Checklist & Certification'!$C$6)","v":""},{"$f":"IF(A245=\"\",\"\",'1. Checklist & Certification'!$G$4)","v":""},{"$f":"IF(A245=\"\",\"\",'1. Checklist & Certification'!$C$7)","v":""},{"$f":"IF(A245=\"\",\"\",'1. Checklist & Certification'!$C$8)","v":""},{"$f":"IF(A245=\"\",\"\",'1. Checklist & Certification'!$F$7)","v":""},{"$f":"IF(A245=\"\",\"\",'1. Checklist & Certification'!$F$8)","v":""},{"$f":"IF(A245=\"\",\"\",'1. Checklist & Certification'!$B$9)","v":""},{"$f":"IF(A245=\"\",\"\",'1. Checklist & Certification'!$F$9)","v":""},{"$f":"IF(A245=\"\",\"\",'1. Checklist & Certification'!$C$10)","v":""},{"$f":"IF(A245=\"\",\"\",'1. Checklist & Certification'!$C$11)","v":""},{"$f":"IF(A245=\"\",\"\",'1. Checklist & Certification'!$C$12)","v":""},{"$f":"IF(A245=\"\",\"\",'1. Checklist & Certification'!$B$14)","v":""},{"$f":"IF(A245=\"\",\"\",'1. Checklist & Certification'!$E$14)","v":""},{"$f":"IF(B245=\"\",\"\",'1. Checklist & Certification'!$G$14)","v":""},{"$f":"IF(A245=\"\",\"\",'MHP Family Income & Rent Limits'!$B$3)","v":""},{"$f":"IF(A245=\"\",\"\",'MHP Family Income & Rent Limits'!$J$3)","v":""},{"$f":"IF(A245=\"\",\"\",'MHP Family Income & Rent Limits'!$E$4)","v":""},{"$f":"IF(A245=\"\",\"\",'MHP Family Income & Rent Limits'!$C$7)","v":""},{"$f":"IF(A245=\"\",\"\",'MHP Family Income & Rent Limits'!$F$8)","v":""},{"$f":"IF(A245=\"\",\"\",'1. Checklist & Certification'!$G$4)","v":""},{"$f":"IF(A245=\"\",\"\",'1. Checklist & Certification'!$K$39)","v":""},{"$f":"IF(A245=\"\",\"\",'1. Checklist & Certification'!$K$43)","v":""},{"$f":"IF(A245=\"\",\"\",'1. Checklist & Certification'!$K$45)","v":""},{"$f":"IF(A245=\"\",\"\",'1. Checklist & Certification'!$K$49)","v":""},{"$f":"IF(A245=\"\",\"\",'1. Checklist & Certification'!$E$66)","v":""},{"$f":"IF(A245=\"\",\"\",'1. Checklist & Certification'!$E$67)","v":""},{"$f":"IF(A245=\"\",\"\",'1. Checklist & Certification'!$E$68)","v":""},{"$f":"IF(A245=\"\",\"\",'1. Checklist & Certification'!$G$66)","v":""},{"$f":"IF(A245=\"\",\"\",'1. Checklist & Certification'!$H$66)","v":""},{"$f":"IF(A245=\"\",\"\",'1. Checklist & Certification'!$I$66)","v":""},{"$f":"IF(A245=\"\",\"\",'1. Checklist & Certification'!$I$67)","v":""},{"$f":"IF(A245=\"\",\"\",'1. Checklist & Certification'!$I$68)","v":""},null,{"$f":"IF(C245=\"\",\"\",HLOOKUP(C245,'MHP Family Income & Rent Limits'!$E$12:$L$26,2,FALSE))","v":""},{"$f":"IF(C245=\"\",\"\",HLOOKUP(C245,'MHP Family Income & Rent Limits'!$E$12:$L$26,3,FALSE))","v":""},{"$f":"IF(C245=\"\",\"\",HLOOKUP(C245,'MHP Family Income & Rent Limits'!$E$12:$L$26,4,FALSE))","v":""},{"$f":"IF(C245=\"\",\"\",HLOOKUP(C245,'MHP Family Income & Rent Limits'!$E$12:$L$26,5,FALSE))","v":""},{"$f":"IF(C245=\"\",\"\",HLOOKUP(C245,'MHP Family Income & Rent Limits'!$E$12:$L$26,6,FALSE))","v":""},{"$f":"IF(C245=\"\",\"\",HLOOKUP(C245,'MHP Family Income & Rent Limits'!$E$12:$L$26,7,FALSE))","v":""},{"$f":"IF(C245=\"\",\"\",HLOOKUP(C245,'MHP Family Income & Rent Limits'!$E$12:$L$26,8,FALSE))","v":""},{"$f":"IF(C245=\"\",\"\",HLOOKUP(C245,'MHP Family Income & Rent Limits'!$E$12:$L$26,9,FALSE))","v":""},{"$f":"IF(C245=\"\",\"\",HLOOKUP(C245,'MHP Family Income & Rent Limits'!$E$12:$L$26,10,FALSE))","v":""},{"$f":"IF(C245=\"\",\"\",HLOOKUP(C245,'MHP Family Income & Rent Limits'!$E$12:$L$26,11,FALSE))","v":""},{"$f":"IF(C245=\"\",\"\",HLOOKUP(C245,'MHP Family Income & Rent Limits'!$E$12:$L$26,12,FALSE))","v":""},{"$f":"IF(C245=\"\",\"\",HLOOKUP(C245,'MHP Family Income & Rent Limits'!$E$12:$L$26,13,FALSE))","v":""},{"$f":"IF(C245=\"\",\"\",HLOOKUP(C245,'MHP Family Income & Rent Limits'!$E$12:$L$26,14,FALSE))","v":""},{"$f":"IF(C245=\"\",\"\",HLOOKUP(C245,'MHP Family Income & Rent Limits'!$E$12:$L$26,15,FALSE))","v":""}]
[{"$f":"IF('2. Assisted & Restricted Units'!A246=\"\",\"\",'2. Assisted & Restricted Units'!A246)","v":""},{"$f":"IF('2. Assisted & Restricted Units'!B246=\"\",\"\",'2. Assisted & Restricted Units'!B246)","v":""},{"$f":"IF('2. Assisted & Restricted Units'!D246=\"\",\"\",'2. Assisted & Restricted Units'!D246)","v":""},{"$f":"IF('2. Assisted & Restricted Units'!E246=\"\",\"\",'2. Assisted & Restricted Units'!E246)","v":""},{"$f":"IF('2. Assisted & Restricted Units'!H246=\"\",\"\",'2. Assisted & Restricted Units'!H246)","v":""},{"$f":"_xlfn.IFS(E246=\"\",\"\",E246>BO246,$BP$6,E246>BN246,$BO$6,E246>BM246,$BN$6,E246>BL246,$BM$6,E246>BK246,$BL$6,E246>BJ246,$BK$6,E246>BI246,$BJ$6,E246>BH246,$BI$6,E246>BG246,$BH$6,E246>BF246,$BG$6,E246>BE246,$BF$6,E246>BD246,$BE$6,E246>BC246,$BD$6,E246>=0,$BC$6)","v":""},{"$f":"IF('2. Assisted & Restricted Units'!T246=\"\",\"\",'2. Assisted & Restricted Units'!T246)","v":""},{"$f":"IF('2. Assisted & Restricted Units'!I246=\"\",\"\",'2. Assisted & Restricted Units'!I246)","v":""},{"$f":"IF('2. Assisted & Restricted Units'!AP246=\"\",\"\",'2. Assisted & Restricted Units'!AP246)","v":0},{"$f":"IF('2. Assisted & Restricted Units'!AT246=\"\",\"\",'2. Assisted & Restricted Units'!AT246)","v":""},0,{"$f":"IF('2. Assisted & Restricted Units'!AV246=\"\",\"\",'2. Assisted & Restricted Units'!AV246)","v":""},{"$f":"IF('2. Assisted & Restricted Units'!L246=\"\",\"\",'2. Assisted & Restricted Units'!L246)","v":""},{"$f":"IF('2. Assisted & Restricted Units'!M246=\"\",\"\",'2. Assisted & Restricted Units'!M246)","v":""},{"$f":"IF('2. Assisted & Restricted Units'!O246=\"\",\"\",'2. Assisted & Restricted Units'!O246)","v":""},{"$f":"IF('2. Assisted & Restricted Units'!P246=\"\",\"\",'2. Assisted & Restricted Units'!P246)","v":""},{"$f":"IF('2. Assisted & Restricted Units'!Q246=\"\",\"\",'2. Assisted & Restricted Units'!Q246)","v":""},{"$f":"IF('2. Assisted & Restricted Units'!R246=\"\",\"\",'2. Assisted & Restricted Units'!R246)","v":""},{"$f":"IF(A246=\"\",\"\",'1. Checklist & Certification'!$K$1)","v":""},{"$f":"IF(A246=\"\",\"\",'1. Checklist & Certification'!$C$62)","v":""},{"$f":"IF(A246=\"\",\"\",'1. Checklist & Certification'!$K$62)","v":""},{"$f":"IF(A246=\"\",\"\",'1. Checklist & Certification'!$C$6)","v":""},{"$f":"IF(A246=\"\",\"\",'1. Checklist & Certification'!$G$4)","v":""},{"$f":"IF(A246=\"\",\"\",'1. Checklist & Certification'!$C$7)","v":""},{"$f":"IF(A246=\"\",\"\",'1. Checklist & Certification'!$C$8)","v":""},{"$f":"IF(A246=\"\",\"\",'1. Checklist & Certification'!$F$7)","v":""},{"$f":"IF(A246=\"\",\"\",'1. Checklist & Certification'!$F$8)","v":""},{"$f":"IF(A246=\"\",\"\",'1. Checklist & Certification'!$B$9)","v":""},{"$f":"IF(A246=\"\",\"\",'1. Checklist & Certification'!$F$9)","v":""},{"$f":"IF(A246=\"\",\"\",'1. Checklist & Certification'!$C$10)","v":""},{"$f":"IF(A246=\"\",\"\",'1. Checklist & Certification'!$C$11)","v":""},{"$f":"IF(A246=\"\",\"\",'1. Checklist & Certification'!$C$12)","v":""},{"$f":"IF(A246=\"\",\"\",'1. Checklist & Certification'!$B$14)","v":""},{"$f":"IF(A246=\"\",\"\",'1. Checklist & Certification'!$E$14)","v":""},{"$f":"IF(B246=\"\",\"\",'1. Checklist & Certification'!$G$14)","v":""},{"$f":"IF(A246=\"\",\"\",'MHP Family Income & Rent Limits'!$B$3)","v":""},{"$f":"IF(A246=\"\",\"\",'MHP Family Income & Rent Limits'!$J$3)","v":""},{"$f":"IF(A246=\"\",\"\",'MHP Family Income & Rent Limits'!$E$4)","v":""},{"$f":"IF(A246=\"\",\"\",'MHP Family Income & Rent Limits'!$C$7)","v":""},{"$f":"IF(A246=\"\",\"\",'MHP Family Income & Rent Limits'!$F$8)","v":""},{"$f":"IF(A246=\"\",\"\",'1. Checklist & Certification'!$G$4)","v":""},{"$f":"IF(A246=\"\",\"\",'1. Checklist & Certification'!$K$39)","v":""},{"$f":"IF(A246=\"\",\"\",'1. Checklist & Certification'!$K$43)","v":""},{"$f":"IF(A246=\"\",\"\",'1. Checklist & Certification'!$K$45)","v":""},{"$f":"IF(A246=\"\",\"\",'1. Checklist & Certification'!$K$49)","v":""},{"$f":"IF(A246=\"\",\"\",'1. Checklist & Certification'!$E$66)","v":""},{"$f":"IF(A246=\"\",\"\",'1. Checklist & Certification'!$E$67)","v":""},{"$f":"IF(A246=\"\",\"\",'1. Checklist & Certification'!$E$68)","v":""},{"$f":"IF(A246=\"\",\"\",'1. Checklist & Certification'!$G$66)","v":""},{"$f":"IF(A246=\"\",\"\",'1. Checklist & Certification'!$H$66)","v":""},{"$f":"IF(A246=\"\",\"\",'1. Checklist & Certification'!$I$66)","v":""},{"$f":"IF(A246=\"\",\"\",'1. Checklist & Certification'!$I$67)","v":""},{"$f":"IF(A246=\"\",\"\",'1. Checklist & Certification'!$I$68)","v":""},null,{"$f":"IF(C246=\"\",\"\",HLOOKUP(C246,'MHP Family Income & Rent Limits'!$E$12:$L$26,2,FALSE))","v":""},{"$f":"IF(C246=\"\",\"\",HLOOKUP(C246,'MHP Family Income & Rent Limits'!$E$12:$L$26,3,FALSE))","v":""},{"$f":"IF(C246=\"\",\"\",HLOOKUP(C246,'MHP Family Income & Rent Limits'!$E$12:$L$26,4,FALSE))","v":""},{"$f":"IF(C246=\"\",\"\",HLOOKUP(C246,'MHP Family Income & Rent Limits'!$E$12:$L$26,5,FALSE))","v":""},{"$f":"IF(C246=\"\",\"\",HLOOKUP(C246,'MHP Family Income & Rent Limits'!$E$12:$L$26,6,FALSE))","v":""},{"$f":"IF(C246=\"\",\"\",HLOOKUP(C246,'MHP Family Income & Rent Limits'!$E$12:$L$26,7,FALSE))","v":""},{"$f":"IF(C246=\"\",\"\",HLOOKUP(C246,'MHP Family Income & Rent Limits'!$E$12:$L$26,8,FALSE))","v":""},{"$f":"IF(C246=\"\",\"\",HLOOKUP(C246,'MHP Family Income & Rent Limits'!$E$12:$L$26,9,FALSE))","v":""},{"$f":"IF(C246=\"\",\"\",HLOOKUP(C246,'MHP Family Income & Rent Limits'!$E$12:$L$26,10,FALSE))","v":""},{"$f":"IF(C246=\"\",\"\",HLOOKUP(C246,'MHP Family Income & Rent Limits'!$E$12:$L$26,11,FALSE))","v":""},{"$f":"IF(C246=\"\",\"\",HLOOKUP(C246,'MHP Family Income & Rent Limits'!$E$12:$L$26,12,FALSE))","v":""},{"$f":"IF(C246=\"\",\"\",HLOOKUP(C246,'MHP Family Income & Rent Limits'!$E$12:$L$26,13,FALSE))","v":""},{"$f":"IF(C246=\"\",\"\",HLOOKUP(C246,'MHP Family Income & Rent Limits'!$E$12:$L$26,14,FALSE))","v":""},{"$f":"IF(C246=\"\",\"\",HLOOKUP(C246,'MHP Family Income & Rent Limits'!$E$12:$L$26,15,FALSE))","v":""}]
[{"$f":"IF('2. Assisted & Restricted Units'!A247=\"\",\"\",'2. Assisted & Restricted Units'!A247)","v":""},{"$f":"IF('2. Assisted & Restricted Units'!B247=\"\",\"\",'2. Assisted & Restricted Units'!B247)","v":""},{"$f":"IF('2. Assisted & Restricted Units'!D247=\"\",\"\",'2. Assisted & Restricted Units'!D247)","v":""},{"$f":"IF('2. Assisted & Restricted Units'!E247=\"\",\"\",'2. Assisted & Restricted Units'!E247)","v":""},{"$f":"IF('2. Assisted & Restricted Units'!H247=\"\",\"\",'2. Assisted & Restricted Units'!H247)","v":""},{"$f":"_xlfn.IFS(E247=\"\",\"\",E247>BO247,$BP$6,E247>BN247,$BO$6,E247>BM247,$BN$6,E247>BL247,$BM$6,E247>BK247,$BL$6,E247>BJ247,$BK$6,E247>BI247,$BJ$6,E247>BH247,$BI$6,E247>BG247,$BH$6,E247>BF247,$BG$6,E247>BE247,$BF$6,E247>BD247,$BE$6,E247>BC247,$BD$6,E247>=0,$BC$6)","v":""},{"$f":"IF('2. Assisted & Restricted Units'!T247=\"\",\"\",'2. Assisted & Restricted Units'!T247)","v":""},{"$f":"IF('2. Assisted & Restricted Units'!I247=\"\",\"\",'2. Assisted & Restricted Units'!I247)","v":""},{"$f":"IF('2. Assisted & Restricted Units'!AP247=\"\",\"\",'2. Assisted & Restricted Units'!AP247)","v":0},{"$f":"IF('2. Assisted & Restricted Units'!AT247=\"\",\"\",'2. Assisted & Restricted Units'!AT247)","v":""},0,{"$f":"IF('2. Assisted & Restricted Units'!AV247=\"\",\"\",'2. Assisted & Restricted Units'!AV247)","v":""},{"$f":"IF('2. Assisted & Restricted Units'!L247=\"\",\"\",'2. Assisted & Restricted Units'!L247)","v":""},{"$f":"IF('2. Assisted & Restricted Units'!M247=\"\",\"\",'2. Assisted & Restricted Units'!M247)","v":""},{"$f":"IF('2. Assisted & Restricted Units'!O247=\"\",\"\",'2. Assisted & Restricted Units'!O247)","v":""},{"$f":"IF('2. Assisted & Restricted Units'!P247=\"\",\"\",'2. Assisted & Restricted Units'!P247)","v":""},{"$f":"IF('2. Assisted & Restricted Units'!Q247=\"\",\"\",'2. Assisted & Restricted Units'!Q247)","v":""},{"$f":"IF('2. Assisted & Restricted Units'!R247=\"\",\"\",'2. Assisted & Restricted Units'!R247)","v":""},{"$f":"IF(A247=\"\",\"\",'1. Checklist & Certification'!$K$1)","v":""},{"$f":"IF(A247=\"\",\"\",'1. Checklist & Certification'!$C$62)","v":""},{"$f":"IF(A247=\"\",\"\",'1. Checklist & Certification'!$K$62)","v":""},{"$f":"IF(A247=\"\",\"\",'1. Checklist & Certification'!$C$6)","v":""},{"$f":"IF(A247=\"\",\"\",'1. Checklist & Certification'!$G$4)","v":""},{"$f":"IF(A247=\"\",\"\",'1. Checklist & Certification'!$C$7)","v":""},{"$f":"IF(A247=\"\",\"\",'1. Checklist & Certification'!$C$8)","v":""},{"$f":"IF(A247=\"\",\"\",'1. Checklist & Certification'!$F$7)","v":""},{"$f":"IF(A247=\"\",\"\",'1. Checklist & Certification'!$F$8)","v":""},{"$f":"IF(A247=\"\",\"\",'1. Checklist & Certification'!$B$9)","v":""},{"$f":"IF(A247=\"\",\"\",'1. Checklist & Certification'!$F$9)","v":""},{"$f":"IF(A247=\"\",\"\",'1. Checklist & Certification'!$C$10)","v":""},{"$f":"IF(A247=\"\",\"\",'1. Checklist & Certification'!$C$11)","v":""},{"$f":"IF(A247=\"\",\"\",'1. Checklist & Certification'!$C$12)","v":""},{"$f":"IF(A247=\"\",\"\",'1. Checklist & Certification'!$B$14)","v":""},{"$f":"IF(A247=\"\",\"\",'1. Checklist & Certification'!$E$14)","v":""},{"$f":"IF(B247=\"\",\"\",'1. Checklist & Certification'!$G$14)","v":""},{"$f":"IF(A247=\"\",\"\",'MHP Family Income & Rent Limits'!$B$3)","v":""},{"$f":"IF(A247=\"\",\"\",'MHP Family Income & Rent Limits'!$J$3)","v":""},{"$f":"IF(A247=\"\",\"\",'MHP Family Income & Rent Limits'!$E$4)","v":""},{"$f":"IF(A247=\"\",\"\",'MHP Family Income & Rent Limits'!$C$7)","v":""},{"$f":"IF(A247=\"\",\"\",'MHP Family Income & Rent Limits'!$F$8)","v":""},{"$f":"IF(A247=\"\",\"\",'1. Checklist & Certification'!$G$4)","v":""},{"$f":"IF(A247=\"\",\"\",'1. Checklist & Certification'!$K$39)","v":""},{"$f":"IF(A247=\"\",\"\",'1. Checklist & Certification'!$K$43)","v":""},{"$f":"IF(A247=\"\",\"\",'1. Checklist & Certification'!$K$45)","v":""},{"$f":"IF(A247=\"\",\"\",'1. Checklist & Certification'!$K$49)","v":""},{"$f":"IF(A247=\"\",\"\",'1. Checklist & Certification'!$E$66)","v":""},{"$f":"IF(A247=\"\",\"\",'1. Checklist & Certification'!$E$67)","v":""},{"$f":"IF(A247=\"\",\"\",'1. Checklist & Certification'!$E$68)","v":""},{"$f":"IF(A247=\"\",\"\",'1. Checklist & Certification'!$G$66)","v":""},{"$f":"IF(A247=\"\",\"\",'1. Checklist & Certification'!$H$66)","v":""},{"$f":"IF(A247=\"\",\"\",'1. Checklist & Certification'!$I$66)","v":""},{"$f":"IF(A247=\"\",\"\",'1. Checklist & Certification'!$I$67)","v":""},{"$f":"IF(A247=\"\",\"\",'1. Checklist & Certification'!$I$68)","v":""},null,{"$f":"IF(C247=\"\",\"\",HLOOKUP(C247,'MHP Family Income & Rent Limits'!$E$12:$L$26,2,FALSE))","v":""},{"$f":"IF(C247=\"\",\"\",HLOOKUP(C247,'MHP Family Income & Rent Limits'!$E$12:$L$26,3,FALSE))","v":""},{"$f":"IF(C247=\"\",\"\",HLOOKUP(C247,'MHP Family Income & Rent Limits'!$E$12:$L$26,4,FALSE))","v":""},{"$f":"IF(C247=\"\",\"\",HLOOKUP(C247,'MHP Family Income & Rent Limits'!$E$12:$L$26,5,FALSE))","v":""},{"$f":"IF(C247=\"\",\"\",HLOOKUP(C247,'MHP Family Income & Rent Limits'!$E$12:$L$26,6,FALSE))","v":""},{"$f":"IF(C247=\"\",\"\",HLOOKUP(C247,'MHP Family Income & Rent Limits'!$E$12:$L$26,7,FALSE))","v":""},{"$f":"IF(C247=\"\",\"\",HLOOKUP(C247,'MHP Family Income & Rent Limits'!$E$12:$L$26,8,FALSE))","v":""},{"$f":"IF(C247=\"\",\"\",HLOOKUP(C247,'MHP Family Income & Rent Limits'!$E$12:$L$26,9,FALSE))","v":""},{"$f":"IF(C247=\"\",\"\",HLOOKUP(C247,'MHP Family Income & Rent Limits'!$E$12:$L$26,10,FALSE))","v":""},{"$f":"IF(C247=\"\",\"\",HLOOKUP(C247,'MHP Family Income & Rent Limits'!$E$12:$L$26,11,FALSE))","v":""},{"$f":"IF(C247=\"\",\"\",HLOOKUP(C247,'MHP Family Income & Rent Limits'!$E$12:$L$26,12,FALSE))","v":""},{"$f":"IF(C247=\"\",\"\",HLOOKUP(C247,'MHP Family Income & Rent Limits'!$E$12:$L$26,13,FALSE))","v":""},{"$f":"IF(C247=\"\",\"\",HLOOKUP(C247,'MHP Family Income & Rent Limits'!$E$12:$L$26,14,FALSE))","v":""},{"$f":"IF(C247=\"\",\"\",HLOOKUP(C247,'MHP Family Income & Rent Limits'!$E$12:$L$26,15,FALSE))","v":""}]
[{"$f":"IF('2. Assisted & Restricted Units'!A248=\"\",\"\",'2. Assisted & Restricted Units'!A248)","v":""},{"$f":"IF('2. Assisted & Restricted Units'!B248=\"\",\"\",'2. Assisted & Restricted Units'!B248)","v":""},{"$f":"IF('2. Assisted & Restricted Units'!D248=\"\",\"\",'2. Assisted & Restricted Units'!D248)","v":""},{"$f":"IF('2. Assisted & Restricted Units'!E248=\"\",\"\",'2. Assisted & Restricted Units'!E248)","v":""},{"$f":"IF('2. Assisted & Restricted Units'!H248=\"\",\"\",'2. Assisted & Restricted Units'!H248)","v":""},{"$f":"_xlfn.IFS(E248=\"\",\"\",E248>BO248,$BP$6,E248>BN248,$BO$6,E248>BM248,$BN$6,E248>BL248,$BM$6,E248>BK248,$BL$6,E248>BJ248,$BK$6,E248>BI248,$BJ$6,E248>BH248,$BI$6,E248>BG248,$BH$6,E248>BF248,$BG$6,E248>BE248,$BF$6,E248>BD248,$BE$6,E248>BC248,$BD$6,E248>=0,$BC$6)","v":""},{"$f":"IF('2. Assisted & Restricted Units'!T248=\"\",\"\",'2. Assisted & Restricted Units'!T248)","v":""},{"$f":"IF('2. Assisted & Restricted Units'!I248=\"\",\"\",'2. Assisted & Restricted Units'!I248)","v":""},{"$f":"IF('2. Assisted & Restricted Units'!AP248=\"\",\"\",'2. Assisted & Restricted Units'!AP248)","v":0},{"$f":"IF('2. Assisted & Restricted Units'!AT248=\"\",\"\",'2. Assisted & Restricted Units'!AT248)","v":""},0,{"$f":"IF('2. Assisted & Restricted Units'!AV248=\"\",\"\",'2. Assisted & Restricted Units'!AV248)","v":""},{"$f":"IF('2. Assisted & Restricted Units'!L248=\"\",\"\",'2. Assisted & Restricted Units'!L248)","v":""},{"$f":"IF('2. Assisted & Restricted Units'!M248=\"\",\"\",'2. Assisted & Restricted Units'!M248)","v":""},{"$f":"IF('2. Assisted & Restricted Units'!O248=\"\",\"\",'2. Assisted & Restricted Units'!O248)","v":""},{"$f":"IF('2. Assisted & Restricted Units'!P248=\"\",\"\",'2. Assisted & Restricted Units'!P248)","v":""},{"$f":"IF('2. Assisted & Restricted Units'!Q248=\"\",\"\",'2. Assisted & Restricted Units'!Q248)","v":""},{"$f":"IF('2. Assisted & Restricted Units'!R248=\"\",\"\",'2. Assisted & Restricted Units'!R248)","v":""},{"$f":"IF(A248=\"\",\"\",'1. Checklist & Certification'!$K$1)","v":""},{"$f":"IF(A248=\"\",\"\",'1. Checklist & Certification'!$C$62)","v":""},{"$f":"IF(A248=\"\",\"\",'1. Checklist & Certification'!$K$62)","v":""},{"$f":"IF(A248=\"\",\"\",'1. Checklist & Certification'!$C$6)","v":""},{"$f":"IF(A248=\"\",\"\",'1. Checklist & Certification'!$G$4)","v":""},{"$f":"IF(A248=\"\",\"\",'1. Checklist & Certification'!$C$7)","v":""},{"$f":"IF(A248=\"\",\"\",'1. Checklist & Certification'!$C$8)","v":""},{"$f":"IF(A248=\"\",\"\",'1. Checklist & Certification'!$F$7)","v":""},{"$f":"IF(A248=\"\",\"\",'1. Checklist & Certification'!$F$8)","v":""},{"$f":"IF(A248=\"\",\"\",'1. Checklist & Certification'!$B$9)","v":""},{"$f":"IF(A248=\"\",\"\",'1. Checklist & Certification'!$F$9)","v":""},{"$f":"IF(A248=\"\",\"\",'1. Checklist & Certification'!$C$10)","v":""},{"$f":"IF(A248=\"\",\"\",'1. Checklist & Certification'!$C$11)","v":""},{"$f":"IF(A248=\"\",\"\",'1. Checklist & Certification'!$C$12)","v":""},{"$f":"IF(A248=\"\",\"\",'1. Checklist & Certification'!$B$14)","v":""},{"$f":"IF(A248=\"\",\"\",'1. Checklist & Certification'!$E$14)","v":""},{"$f":"IF(B248=\"\",\"\",'1. Checklist & Certification'!$G$14)","v":""},{"$f":"IF(A248=\"\",\"\",'MHP Family Income & Rent Limits'!$B$3)","v":""},{"$f":"IF(A248=\"\",\"\",'MHP Family Income & Rent Limits'!$J$3)","v":""},{"$f":"IF(A248=\"\",\"\",'MHP Family Income & Rent Limits'!$E$4)","v":""},{"$f":"IF(A248=\"\",\"\",'MHP Family Income & Rent Limits'!$C$7)","v":""},{"$f":"IF(A248=\"\",\"\",'MHP Family Income & Rent Limits'!$F$8)","v":""},{"$f":"IF(A248=\"\",\"\",'1. Checklist & Certification'!$G$4)","v":""},{"$f":"IF(A248=\"\",\"\",'1. Checklist & Certification'!$K$39)","v":""},{"$f":"IF(A248=\"\",\"\",'1. Checklist & Certification'!$K$43)","v":""},{"$f":"IF(A248=\"\",\"\",'1. Checklist & Certification'!$K$45)","v":""},{"$f":"IF(A248=\"\",\"\",'1. Checklist & Certification'!$K$49)","v":""},{"$f":"IF(A248=\"\",\"\",'1. Checklist & Certification'!$E$66)","v":""},{"$f":"IF(A248=\"\",\"\",'1. Checklist & Certification'!$E$67)","v":""},{"$f":"IF(A248=\"\",\"\",'1. Checklist & Certification'!$E$68)","v":""},{"$f":"IF(A248=\"\",\"\",'1. Checklist & Certification'!$G$66)","v":""},{"$f":"IF(A248=\"\",\"\",'1. Checklist & Certification'!$H$66)","v":""},{"$f":"IF(A248=\"\",\"\",'1. Checklist & Certification'!$I$66)","v":""},{"$f":"IF(A248=\"\",\"\",'1. Checklist & Certification'!$I$67)","v":""},{"$f":"IF(A248=\"\",\"\",'1. Checklist & Certification'!$I$68)","v":""},null,{"$f":"IF(C248=\"\",\"\",HLOOKUP(C248,'MHP Family Income & Rent Limits'!$E$12:$L$26,2,FALSE))","v":""},{"$f":"IF(C248=\"\",\"\",HLOOKUP(C248,'MHP Family Income & Rent Limits'!$E$12:$L$26,3,FALSE))","v":""},{"$f":"IF(C248=\"\",\"\",HLOOKUP(C248,'MHP Family Income & Rent Limits'!$E$12:$L$26,4,FALSE))","v":""},{"$f":"IF(C248=\"\",\"\",HLOOKUP(C248,'MHP Family Income & Rent Limits'!$E$12:$L$26,5,FALSE))","v":""},{"$f":"IF(C248=\"\",\"\",HLOOKUP(C248,'MHP Family Income & Rent Limits'!$E$12:$L$26,6,FALSE))","v":""},{"$f":"IF(C248=\"\",\"\",HLOOKUP(C248,'MHP Family Income & Rent Limits'!$E$12:$L$26,7,FALSE))","v":""},{"$f":"IF(C248=\"\",\"\",HLOOKUP(C248,'MHP Family Income & Rent Limits'!$E$12:$L$26,8,FALSE))","v":""},{"$f":"IF(C248=\"\",\"\",HLOOKUP(C248,'MHP Family Income & Rent Limits'!$E$12:$L$26,9,FALSE))","v":""},{"$f":"IF(C248=\"\",\"\",HLOOKUP(C248,'MHP Family Income & Rent Limits'!$E$12:$L$26,10,FALSE))","v":""},{"$f":"IF(C248=\"\",\"\",HLOOKUP(C248,'MHP Family Income & Rent Limits'!$E$12:$L$26,11,FALSE))","v":""},{"$f":"IF(C248=\"\",\"\",HLOOKUP(C248,'MHP Family Income & Rent Limits'!$E$12:$L$26,12,FALSE))","v":""},{"$f":"IF(C248=\"\",\"\",HLOOKUP(C248,'MHP Family Income & Rent Limits'!$E$12:$L$26,13,FALSE))","v":""},{"$f":"IF(C248=\"\",\"\",HLOOKUP(C248,'MHP Family Income & Rent Limits'!$E$12:$L$26,14,FALSE))","v":""},{"$f":"IF(C248=\"\",\"\",HLOOKUP(C248,'MHP Family Income & Rent Limits'!$E$12:$L$26,15,FALSE))","v":""}]
[{"$f":"IF('2. Assisted & Restricted Units'!A249=\"\",\"\",'2. Assisted & Restricted Units'!A249)","v":""},{"$f":"IF('2. Assisted & Restricted Units'!B249=\"\",\"\",'2. Assisted & Restricted Units'!B249)","v":""},{"$f":"IF('2. Assisted & Restricted Units'!D249=\"\",\"\",'2. Assisted & Restricted Units'!D249)","v":""},{"$f":"IF('2. Assisted & Restricted Units'!E249=\"\",\"\",'2. Assisted & Restricted Units'!E249)","v":""},{"$f":"IF('2. Assisted & Restricted Units'!H249=\"\",\"\",'2. Assisted & Restricted Units'!H249)","v":""},{"$f":"_xlfn.IFS(E249=\"\",\"\",E249>BO249,$BP$6,E249>BN249,$BO$6,E249>BM249,$BN$6,E249>BL249,$BM$6,E249>BK249,$BL$6,E249>BJ249,$BK$6,E249>BI249,$BJ$6,E249>BH249,$BI$6,E249>BG249,$BH$6,E249>BF249,$BG$6,E249>BE249,$BF$6,E249>BD249,$BE$6,E249>BC249,$BD$6,E249>=0,$BC$6)","v":""},{"$f":"IF('2. Assisted & Restricted Units'!T249=\"\",\"\",'2. Assisted & Restricted Units'!T249)","v":""},{"$f":"IF('2. Assisted & Restricted Units'!I249=\"\",\"\",'2. Assisted & Restricted Units'!I249)","v":""},{"$f":"IF('2. Assisted & Restricted Units'!AP249=\"\",\"\",'2. Assisted & Restricted Units'!AP249)","v":0},{"$f":"IF('2. Assisted & Restricted Units'!AT249=\"\",\"\",'2. Assisted & Restricted Units'!AT249)","v":""},0,{"$f":"IF('2. Assisted & Restricted Units'!AV249=\"\",\"\",'2. Assisted & Restricted Units'!AV249)","v":""},{"$f":"IF('2. Assisted & Restricted Units'!L249=\"\",\"\",'2. Assisted & Restricted Units'!L249)","v":""},{"$f":"IF('2. Assisted & Restricted Units'!M249=\"\",\"\",'2. Assisted & Restricted Units'!M249)","v":""},{"$f":"IF('2. Assisted & Restricted Units'!O249=\"\",\"\",'2. Assisted & Restricted Units'!O249)","v":""},{"$f":"IF('2. Assisted & Restricted Units'!P249=\"\",\"\",'2. Assisted & Restricted Units'!P249)","v":""},{"$f":"IF('2. Assisted & Restricted Units'!Q249=\"\",\"\",'2. Assisted & Restricted Units'!Q249)","v":""},{"$f":"IF('2. Assisted & Restricted Units'!R249=\"\",\"\",'2. Assisted & Restricted Units'!R249)","v":""},{"$f":"IF(A249=\"\",\"\",'1. Checklist & Certification'!$K$1)","v":""},{"$f":"IF(A249=\"\",\"\",'1. Checklist & Certification'!$C$62)","v":""},{"$f":"IF(A249=\"\",\"\",'1. Checklist & Certification'!$K$62)","v":""},{"$f":"IF(A249=\"\",\"\",'1. Checklist & Certification'!$C$6)","v":""},{"$f":"IF(A249=\"\",\"\",'1. Checklist & Certification'!$G$4)","v":""},{"$f":"IF(A249=\"\",\"\",'1. Checklist & Certification'!$C$7)","v":""},{"$f":"IF(A249=\"\",\"\",'1. Checklist & Certification'!$C$8)","v":""},{"$f":"IF(A249=\"\",\"\",'1. Checklist & Certification'!$F$7)","v":""},{"$f":"IF(A249=\"\",\"\",'1. Checklist & Certification'!$F$8)","v":""},{"$f":"IF(A249=\"\",\"\",'1. Checklist & Certification'!$B$9)","v":""},{"$f":"IF(A249=\"\",\"\",'1. Checklist & Certification'!$F$9)","v":""},{"$f":"IF(A249=\"\",\"\",'1. Checklist & Certification'!$C$10)","v":""},{"$f":"IF(A249=\"\",\"\",'1. Checklist & Certification'!$C$11)","v":""},{"$f":"IF(A249=\"\",\"\",'1. Checklist & Certification'!$C$12)","v":""},{"$f":"IF(A249=\"\",\"\",'1. Checklist & Certification'!$B$14)","v":""},{"$f":"IF(A249=\"\",\"\",'1. Checklist & Certification'!$E$14)","v":""},{"$f":"IF(B249=\"\",\"\",'1. Checklist & Certification'!$G$14)","v":""},{"$f":"IF(A249=\"\",\"\",'MHP Family Income & Rent Limits'!$B$3)","v":""},{"$f":"IF(A249=\"\",\"\",'MHP Family Income & Rent Limits'!$J$3)","v":""},{"$f":"IF(A249=\"\",\"\",'MHP Family Income & Rent Limits'!$E$4)","v":""},{"$f":"IF(A249=\"\",\"\",'MHP Family Income & Rent Limits'!$C$7)","v":""},{"$f":"IF(A249=\"\",\"\",'MHP Family Income & Rent Limits'!$F$8)","v":""},{"$f":"IF(A249=\"\",\"\",'1. Checklist & Certification'!$G$4)","v":""},{"$f":"IF(A249=\"\",\"\",'1. Checklist & Certification'!$K$39)","v":""},{"$f":"IF(A249=\"\",\"\",'1. Checklist & Certification'!$K$43)","v":""},{"$f":"IF(A249=\"\",\"\",'1. Checklist & Certification'!$K$45)","v":""},{"$f":"IF(A249=\"\",\"\",'1. Checklist & Certification'!$K$49)","v":""},{"$f":"IF(A249=\"\",\"\",'1. Checklist & Certification'!$E$66)","v":""},{"$f":"IF(A249=\"\",\"\",'1. Checklist & Certification'!$E$67)","v":""},{"$f":"IF(A249=\"\",\"\",'1. Checklist & Certification'!$E$68)","v":""},{"$f":"IF(A249=\"\",\"\",'1. Checklist & Certification'!$G$66)","v":""},{"$f":"IF(A249=\"\",\"\",'1. Checklist & Certification'!$H$66)","v":""},{"$f":"IF(A249=\"\",\"\",'1. Checklist & Certification'!$I$66)","v":""},{"$f":"IF(A249=\"\",\"\",'1. Checklist & Certification'!$I$67)","v":""},{"$f":"IF(A249=\"\",\"\",'1. Checklist & Certification'!$I$68)","v":""},null,{"$f":"IF(C249=\"\",\"\",HLOOKUP(C249,'MHP Family Income & Rent Limits'!$E$12:$L$26,2,FALSE))","v":""},{"$f":"IF(C249=\"\",\"\",HLOOKUP(C249,'MHP Family Income & Rent Limits'!$E$12:$L$26,3,FALSE))","v":""},{"$f":"IF(C249=\"\",\"\",HLOOKUP(C249,'MHP Family Income & Rent Limits'!$E$12:$L$26,4,FALSE))","v":""},{"$f":"IF(C249=\"\",\"\",HLOOKUP(C249,'MHP Family Income & Rent Limits'!$E$12:$L$26,5,FALSE))","v":""},{"$f":"IF(C249=\"\",\"\",HLOOKUP(C249,'MHP Family Income & Rent Limits'!$E$12:$L$26,6,FALSE))","v":""},{"$f":"IF(C249=\"\",\"\",HLOOKUP(C249,'MHP Family Income & Rent Limits'!$E$12:$L$26,7,FALSE))","v":""},{"$f":"IF(C249=\"\",\"\",HLOOKUP(C249,'MHP Family Income & Rent Limits'!$E$12:$L$26,8,FALSE))","v":""},{"$f":"IF(C249=\"\",\"\",HLOOKUP(C249,'MHP Family Income & Rent Limits'!$E$12:$L$26,9,FALSE))","v":""},{"$f":"IF(C249=\"\",\"\",HLOOKUP(C249,'MHP Family Income & Rent Limits'!$E$12:$L$26,10,FALSE))","v":""},{"$f":"IF(C249=\"\",\"\",HLOOKUP(C249,'MHP Family Income & Rent Limits'!$E$12:$L$26,11,FALSE))","v":""},{"$f":"IF(C249=\"\",\"\",HLOOKUP(C249,'MHP Family Income & Rent Limits'!$E$12:$L$26,12,FALSE))","v":""},{"$f":"IF(C249=\"\",\"\",HLOOKUP(C249,'MHP Family Income & Rent Limits'!$E$12:$L$26,13,FALSE))","v":""},{"$f":"IF(C249=\"\",\"\",HLOOKUP(C249,'MHP Family Income & Rent Limits'!$E$12:$L$26,14,FALSE))","v":""},{"$f":"IF(C249=\"\",\"\",HLOOKUP(C249,'MHP Family Income & Rent Limits'!$E$12:$L$26,15,FALSE))","v":""}]
[{"$f":"IF('2. Assisted & Restricted Units'!A250=\"\",\"\",'2. Assisted & Restricted Units'!A250)","v":""},{"$f":"IF('2. Assisted & Restricted Units'!B250=\"\",\"\",'2. Assisted & Restricted Units'!B250)","v":""},{"$f":"IF('2. Assisted & Restricted Units'!D250=\"\",\"\",'2. Assisted & Restricted Units'!D250)","v":""},{"$f":"IF('2. Assisted & Restricted Units'!E250=\"\",\"\",'2. Assisted & Restricted Units'!E250)","v":""},{"$f":"IF('2. Assisted & Restricted Units'!H250=\"\",\"\",'2. Assisted & Restricted Units'!H250)","v":""},{"$f":"_xlfn.IFS(E250=\"\",\"\",E250>BO250,$BP$6,E250>BN250,$BO$6,E250>BM250,$BN$6,E250>BL250,$BM$6,E250>BK250,$BL$6,E250>BJ250,$BK$6,E250>BI250,$BJ$6,E250>BH250,$BI$6,E250>BG250,$BH$6,E250>BF250,$BG$6,E250>BE250,$BF$6,E250>BD250,$BE$6,E250>BC250,$BD$6,E250>=0,$BC$6)","v":""},{"$f":"IF('2. Assisted & Restricted Units'!T250=\"\",\"\",'2. Assisted & Restricted Units'!T250)","v":""},{"$f":"IF('2. Assisted & Restricted Units'!I250=\"\",\"\",'2. Assisted & Restricted Units'!I250)","v":""},{"$f":"IF('2. Assisted & Restricted Units'!AP250=\"\",\"\",'2. Assisted & Restricted Units'!AP250)","v":0},{"$f":"IF('2. Assisted & Restricted Units'!AT250=\"\",\"\",'2. Assisted & Restricted Units'!AT250)","v":""},0,{"$f":"IF('2. Assisted & Restricted Units'!AV250=\"\",\"\",'2. Assisted & Restricted Units'!AV250)","v":""},{"$f":"IF('2. Assisted & Restricted Units'!L250=\"\",\"\",'2. Assisted & Restricted Units'!L250)","v":""},{"$f":"IF('2. Assisted & Restricted Units'!M250=\"\",\"\",'2. Assisted & Restricted Units'!M250)","v":""},{"$f":"IF('2. Assisted & Restricted Units'!O250=\"\",\"\",'2. Assisted & Restricted Units'!O250)","v":""},{"$f":"IF('2. Assisted & Restricted Units'!P250=\"\",\"\",'2. Assisted & Restricted Units'!P250)","v":""},{"$f":"IF('2. Assisted & Restricted Units'!Q250=\"\",\"\",'2. Assisted & Restricted Units'!Q250)","v":""},{"$f":"IF('2. Assisted & Restricted Units'!R250=\"\",\"\",'2. Assisted & Restricted Units'!R250)","v":""},{"$f":"IF(A250=\"\",\"\",'1. Checklist & Certification'!$K$1)","v":""},{"$f":"IF(A250=\"\",\"\",'1. Checklist & Certification'!$C$62)","v":""},{"$f":"IF(A250=\"\",\"\",'1. Checklist & Certification'!$K$62)","v":""},{"$f":"IF(A250=\"\",\"\",'1. Checklist & Certification'!$C$6)","v":""},{"$f":"IF(A250=\"\",\"\",'1. Checklist & Certification'!$G$4)","v":""},{"$f":"IF(A250=\"\",\"\",'1. Checklist & Certification'!$C$7)","v":""},{"$f":"IF(A250=\"\",\"\",'1. Checklist & Certification'!$C$8)","v":""},{"$f":"IF(A250=\"\",\"\",'1. Checklist & Certification'!$F$7)","v":""},{"$f":"IF(A250=\"\",\"\",'1. Checklist & Certification'!$F$8)","v":""},{"$f":"IF(A250=\"\",\"\",'1. Checklist & Certification'!$B$9)","v":""},{"$f":"IF(A250=\"\",\"\",'1. Checklist & Certification'!$F$9)","v":""},{"$f":"IF(A250=\"\",\"\",'1. Checklist & Certification'!$C$10)","v":""},{"$f":"IF(A250=\"\",\"\",'1. Checklist & Certification'!$C$11)","v":""},{"$f":"IF(A250=\"\",\"\",'1. Checklist & Certification'!$C$12)","v":""},{"$f":"IF(A250=\"\",\"\",'1. Checklist & Certification'!$B$14)","v":""},{"$f":"IF(A250=\"\",\"\",'1. Checklist & Certification'!$E$14)","v":""},{"$f":"IF(B250=\"\",\"\",'1. Checklist & Certification'!$G$14)","v":""},{"$f":"IF(A250=\"\",\"\",'MHP Family Income & Rent Limits'!$B$3)","v":""},{"$f":"IF(A250=\"\",\"\",'MHP Family Income & Rent Limits'!$J$3)","v":""},{"$f":"IF(A250=\"\",\"\",'MHP Family Income & Rent Limits'!$E$4)","v":""},{"$f":"IF(A250=\"\",\"\",'MHP Family Income & Rent Limits'!$C$7)","v":""},{"$f":"IF(A250=\"\",\"\",'MHP Family Income & Rent Limits'!$F$8)","v":""},{"$f":"IF(A250=\"\",\"\",'1. Checklist & Certification'!$G$4)","v":""},{"$f":"IF(A250=\"\",\"\",'1. Checklist & Certification'!$K$39)","v":""},{"$f":"IF(A250=\"\",\"\",'1. Checklist & Certification'!$K$43)","v":""},{"$f":"IF(A250=\"\",\"\",'1. Checklist & Certification'!$K$45)","v":""},{"$f":"IF(A250=\"\",\"\",'1. Checklist & Certification'!$K$49)","v":""},{"$f":"IF(A250=\"\",\"\",'1. Checklist & Certification'!$E$66)","v":""},{"$f":"IF(A250=\"\",\"\",'1. Checklist & Certification'!$E$67)","v":""},{"$f":"IF(A250=\"\",\"\",'1. Checklist & Certification'!$E$68)","v":""},{"$f":"IF(A250=\"\",\"\",'1. Checklist & Certification'!$G$66)","v":""},{"$f":"IF(A250=\"\",\"\",'1. Checklist & Certification'!$H$66)","v":""},{"$f":"IF(A250=\"\",\"\",'1. Checklist & Certification'!$I$66)","v":""},{"$f":"IF(A250=\"\",\"\",'1. Checklist & Certification'!$I$67)","v":""},{"$f":"IF(A250=\"\",\"\",'1. Checklist & Certification'!$I$68)","v":""},null,{"$f":"IF(C250=\"\",\"\",HLOOKUP(C250,'MHP Family Income & Rent Limits'!$E$12:$L$26,2,FALSE))","v":""},{"$f":"IF(C250=\"\",\"\",HLOOKUP(C250,'MHP Family Income & Rent Limits'!$E$12:$L$26,3,FALSE))","v":""},{"$f":"IF(C250=\"\",\"\",HLOOKUP(C250,'MHP Family Income & Rent Limits'!$E$12:$L$26,4,FALSE))","v":""},{"$f":"IF(C250=\"\",\"\",HLOOKUP(C250,'MHP Family Income & Rent Limits'!$E$12:$L$26,5,FALSE))","v":""},{"$f":"IF(C250=\"\",\"\",HLOOKUP(C250,'MHP Family Income & Rent Limits'!$E$12:$L$26,6,FALSE))","v":""},{"$f":"IF(C250=\"\",\"\",HLOOKUP(C250,'MHP Family Income & Rent Limits'!$E$12:$L$26,7,FALSE))","v":""},{"$f":"IF(C250=\"\",\"\",HLOOKUP(C250,'MHP Family Income & Rent Limits'!$E$12:$L$26,8,FALSE))","v":""},{"$f":"IF(C250=\"\",\"\",HLOOKUP(C250,'MHP Family Income & Rent Limits'!$E$12:$L$26,9,FALSE))","v":""},{"$f":"IF(C250=\"\",\"\",HLOOKUP(C250,'MHP Family Income & Rent Limits'!$E$12:$L$26,10,FALSE))","v":""},{"$f":"IF(C250=\"\",\"\",HLOOKUP(C250,'MHP Family Income & Rent Limits'!$E$12:$L$26,11,FALSE))","v":""},{"$f":"IF(C250=\"\",\"\",HLOOKUP(C250,'MHP Family Income & Rent Limits'!$E$12:$L$26,12,FALSE))","v":""},{"$f":"IF(C250=\"\",\"\",HLOOKUP(C250,'MHP Family Income & Rent Limits'!$E$12:$L$26,13,FALSE))","v":""},{"$f":"IF(C250=\"\",\"\",HLOOKUP(C250,'MHP Family Income & Rent Limits'!$E$12:$L$26,14,FALSE))","v":""},{"$f":"IF(C250=\"\",\"\",HLOOKUP(C250,'MHP Family Income & Rent Limits'!$E$12:$L$26,15,FALSE))","v":""}]
[{"$f":"IF('2. Assisted & Restricted Units'!A251=\"\",\"\",'2. Assisted & Restricted Units'!A251)","v":""},{"$f":"IF('2. Assisted & Restricted Units'!B251=\"\",\"\",'2. Assisted & Restricted Units'!B251)","v":""},{"$f":"IF('2. Assisted & Restricted Units'!D251=\"\",\"\",'2. Assisted & Restricted Units'!D251)","v":""},{"$f":"IF('2. Assisted & Restricted Units'!E251=\"\",\"\",'2. Assisted & Restricted Units'!E251)","v":""},{"$f":"IF('2. Assisted & Restricted Units'!H251=\"\",\"\",'2. Assisted & Restricted Units'!H251)","v":""},{"$f":"_xlfn.IFS(E251=\"\",\"\",E251>BO251,$BP$6,E251>BN251,$BO$6,E251>BM251,$BN$6,E251>BL251,$BM$6,E251>BK251,$BL$6,E251>BJ251,$BK$6,E251>BI251,$BJ$6,E251>BH251,$BI$6,E251>BG251,$BH$6,E251>BF251,$BG$6,E251>BE251,$BF$6,E251>BD251,$BE$6,E251>BC251,$BD$6,E251>=0,$BC$6)","v":""},{"$f":"IF('2. Assisted & Restricted Units'!T251=\"\",\"\",'2. Assisted & Restricted Units'!T251)","v":""},{"$f":"IF('2. Assisted & Restricted Units'!I251=\"\",\"\",'2. Assisted & Restricted Units'!I251)","v":""},{"$f":"IF('2. Assisted & Restricted Units'!AP251=\"\",\"\",'2. Assisted & Restricted Units'!AP251)","v":0},{"$f":"IF('2. Assisted & Restricted Units'!AT251=\"\",\"\",'2. Assisted & Restricted Units'!AT251)","v":""},0,{"$f":"IF('2. Assisted & Restricted Units'!AV251=\"\",\"\",'2. Assisted & Restricted Units'!AV251)","v":""},{"$f":"IF('2. Assisted & Restricted Units'!L251=\"\",\"\",'2. Assisted & Restricted Units'!L251)","v":""},{"$f":"IF('2. Assisted & Restricted Units'!M251=\"\",\"\",'2. Assisted & Restricted Units'!M251)","v":""},{"$f":"IF('2. Assisted & Restricted Units'!O251=\"\",\"\",'2. Assisted & Restricted Units'!O251)","v":""},{"$f":"IF('2. Assisted & Restricted Units'!P251=\"\",\"\",'2. Assisted & Restricted Units'!P251)","v":""},{"$f":"IF('2. Assisted & Restricted Units'!Q251=\"\",\"\",'2. Assisted & Restricted Units'!Q251)","v":""},{"$f":"IF('2. Assisted & Restricted Units'!R251=\"\",\"\",'2. Assisted & Restricted Units'!R251)","v":""},{"$f":"IF(A251=\"\",\"\",'1. Checklist & Certification'!$K$1)","v":""},{"$f":"IF(A251=\"\",\"\",'1. Checklist & Certification'!$C$62)","v":""},{"$f":"IF(A251=\"\",\"\",'1. Checklist & Certification'!$K$62)","v":""},{"$f":"IF(A251=\"\",\"\",'1. Checklist & Certification'!$C$6)","v":""},{"$f":"IF(A251=\"\",\"\",'1. Checklist & Certification'!$G$4)","v":""},{"$f":"IF(A251=\"\",\"\",'1. Checklist & Certification'!$C$7)","v":""},{"$f":"IF(A251=\"\",\"\",'1. Checklist & Certification'!$C$8)","v":""},{"$f":"IF(A251=\"\",\"\",'1. Checklist & Certification'!$F$7)","v":""},{"$f":"IF(A251=\"\",\"\",'1. Checklist & Certification'!$F$8)","v":""},{"$f":"IF(A251=\"\",\"\",'1. Checklist & Certification'!$B$9)","v":""},{"$f":"IF(A251=\"\",\"\",'1. Checklist & Certification'!$F$9)","v":""},{"$f":"IF(A251=\"\",\"\",'1. Checklist & Certification'!$C$10)","v":""},{"$f":"IF(A251=\"\",\"\",'1. Checklist & Certification'!$C$11)","v":""},{"$f":"IF(A251=\"\",\"\",'1. Checklist & Certification'!$C$12)","v":""},{"$f":"IF(A251=\"\",\"\",'1. Checklist & Certification'!$B$14)","v":""},{"$f":"IF(A251=\"\",\"\",'1. Checklist & Certification'!$E$14)","v":""},{"$f":"IF(B251=\"\",\"\",'1. Checklist & Certification'!$G$14)","v":""},{"$f":"IF(A251=\"\",\"\",'MHP Family Income & Rent Limits'!$B$3)","v":""},{"$f":"IF(A251=\"\",\"\",'MHP Family Income & Rent Limits'!$J$3)","v":""},{"$f":"IF(A251=\"\",\"\",'MHP Family Income & Rent Limits'!$E$4)","v":""},{"$f":"IF(A251=\"\",\"\",'MHP Family Income & Rent Limits'!$C$7)","v":""},{"$f":"IF(A251=\"\",\"\",'MHP Family Income & Rent Limits'!$F$8)","v":""},{"$f":"IF(A251=\"\",\"\",'1. Checklist & Certification'!$G$4)","v":""},{"$f":"IF(A251=\"\",\"\",'1. Checklist & Certification'!$K$39)","v":""},{"$f":"IF(A251=\"\",\"\",'1. Checklist & Certification'!$K$43)","v":""},{"$f":"IF(A251=\"\",\"\",'1. Checklist & Certification'!$K$45)","v":""},{"$f":"IF(A251=\"\",\"\",'1. Checklist & Certification'!$K$49)","v":""},{"$f":"IF(A251=\"\",\"\",'1. Checklist & Certification'!$E$66)","v":""},{"$f":"IF(A251=\"\",\"\",'1. Checklist & Certification'!$E$67)","v":""},{"$f":"IF(A251=\"\",\"\",'1. Checklist & Certification'!$E$68)","v":""},{"$f":"IF(A251=\"\",\"\",'1. Checklist & Certification'!$G$66)","v":""},{"$f":"IF(A251=\"\",\"\",'1. Checklist & Certification'!$H$66)","v":""},{"$f":"IF(A251=\"\",\"\",'1. Checklist & Certification'!$I$66)","v":""},{"$f":"IF(A251=\"\",\"\",'1. Checklist & Certification'!$I$67)","v":""},{"$f":"IF(A251=\"\",\"\",'1. Checklist & Certification'!$I$68)","v":""},null,{"$f":"IF(C251=\"\",\"\",HLOOKUP(C251,'MHP Family Income & Rent Limits'!$E$12:$L$26,2,FALSE))","v":""},{"$f":"IF(C251=\"\",\"\",HLOOKUP(C251,'MHP Family Income & Rent Limits'!$E$12:$L$26,3,FALSE))","v":""},{"$f":"IF(C251=\"\",\"\",HLOOKUP(C251,'MHP Family Income & Rent Limits'!$E$12:$L$26,4,FALSE))","v":""},{"$f":"IF(C251=\"\",\"\",HLOOKUP(C251,'MHP Family Income & Rent Limits'!$E$12:$L$26,5,FALSE))","v":""},{"$f":"IF(C251=\"\",\"\",HLOOKUP(C251,'MHP Family Income & Rent Limits'!$E$12:$L$26,6,FALSE))","v":""},{"$f":"IF(C251=\"\",\"\",HLOOKUP(C251,'MHP Family Income & Rent Limits'!$E$12:$L$26,7,FALSE))","v":""},{"$f":"IF(C251=\"\",\"\",HLOOKUP(C251,'MHP Family Income & Rent Limits'!$E$12:$L$26,8,FALSE))","v":""},{"$f":"IF(C251=\"\",\"\",HLOOKUP(C251,'MHP Family Income & Rent Limits'!$E$12:$L$26,9,FALSE))","v":""},{"$f":"IF(C251=\"\",\"\",HLOOKUP(C251,'MHP Family Income & Rent Limits'!$E$12:$L$26,10,FALSE))","v":""},{"$f":"IF(C251=\"\",\"\",HLOOKUP(C251,'MHP Family Income & Rent Limits'!$E$12:$L$26,11,FALSE))","v":""},{"$f":"IF(C251=\"\",\"\",HLOOKUP(C251,'MHP Family Income & Rent Limits'!$E$12:$L$26,12,FALSE))","v":""},{"$f":"IF(C251=\"\",\"\",HLOOKUP(C251,'MHP Family Income & Rent Limits'!$E$12:$L$26,13,FALSE))","v":""},{"$f":"IF(C251=\"\",\"\",HLOOKUP(C251,'MHP Family Income & Rent Limits'!$E$12:$L$26,14,FALSE))","v":""},{"$f":"IF(C251=\"\",\"\",HLOOKUP(C251,'MHP Family Income & Rent Limits'!$E$12:$L$26,15,FALSE))","v":""}]
[{"$f":"IF('2. Assisted & Restricted Units'!A252=\"\",\"\",'2. Assisted & Restricted Units'!A252)","v":""},{"$f":"IF('2. Assisted & Restricted Units'!B252=\"\",\"\",'2. Assisted & Restricted Units'!B252)","v":""},{"$f":"IF('2. Assisted & Restricted Units'!D252=\"\",\"\",'2. Assisted & Restricted Units'!D252)","v":""},{"$f":"IF('2. Assisted & Restricted Units'!E252=\"\",\"\",'2. Assisted & Restricted Units'!E252)","v":""},{"$f":"IF('2. Assisted & Restricted Units'!H252=\"\",\"\",'2. Assisted & Restricted Units'!H252)","v":""},{"$f":"_xlfn.IFS(E252=\"\",\"\",E252>BO252,$BP$6,E252>BN252,$BO$6,E252>BM252,$BN$6,E252>BL252,$BM$6,E252>BK252,$BL$6,E252>BJ252,$BK$6,E252>BI252,$BJ$6,E252>BH252,$BI$6,E252>BG252,$BH$6,E252>BF252,$BG$6,E252>BE252,$BF$6,E252>BD252,$BE$6,E252>BC252,$BD$6,E252>=0,$BC$6)","v":""},{"$f":"IF('2. Assisted & Restricted Units'!T252=\"\",\"\",'2. Assisted & Restricted Units'!T252)","v":""},{"$f":"IF('2. Assisted & Restricted Units'!I252=\"\",\"\",'2. Assisted & Restricted Units'!I252)","v":""},{"$f":"IF('2. Assisted & Restricted Units'!AP252=\"\",\"\",'2. Assisted & Restricted Units'!AP252)","v":0},{"$f":"IF('2. Assisted & Restricted Units'!AT252=\"\",\"\",'2. Assisted & Restricted Units'!AT252)","v":""},0,{"$f":"IF('2. Assisted & Restricted Units'!AV252=\"\",\"\",'2. Assisted & Restricted Units'!AV252)","v":""},{"$f":"IF('2. Assisted & Restricted Units'!L252=\"\",\"\",'2. Assisted & Restricted Units'!L252)","v":""},{"$f":"IF('2. Assisted & Restricted Units'!M252=\"\",\"\",'2. Assisted & Restricted Units'!M252)","v":""},{"$f":"IF('2. Assisted & Restricted Units'!O252=\"\",\"\",'2. Assisted & Restricted Units'!O252)","v":""},{"$f":"IF('2. Assisted & Restricted Units'!P252=\"\",\"\",'2. Assisted & Restricted Units'!P252)","v":""},{"$f":"IF('2. Assisted & Restricted Units'!Q252=\"\",\"\",'2. Assisted & Restricted Units'!Q252)","v":""},{"$f":"IF('2. Assisted & Restricted Units'!R252=\"\",\"\",'2. Assisted & Restricted Units'!R252)","v":""},{"$f":"IF(A252=\"\",\"\",'1. Checklist & Certification'!$K$1)","v":""},{"$f":"IF(A252=\"\",\"\",'1. Checklist & Certification'!$C$62)","v":""},{"$f":"IF(A252=\"\",\"\",'1. Checklist & Certification'!$K$62)","v":""},{"$f":"IF(A252=\"\",\"\",'1. Checklist & Certification'!$C$6)","v":""},{"$f":"IF(A252=\"\",\"\",'1. Checklist & Certification'!$G$4)","v":""},{"$f":"IF(A252=\"\",\"\",'1. Checklist & Certification'!$C$7)","v":""},{"$f":"IF(A252=\"\",\"\",'1. Checklist & Certification'!$C$8)","v":""},{"$f":"IF(A252=\"\",\"\",'1. Checklist & Certification'!$F$7)","v":""},{"$f":"IF(A252=\"\",\"\",'1. Checklist & Certification'!$F$8)","v":""},{"$f":"IF(A252=\"\",\"\",'1. Checklist & Certification'!$B$9)","v":""},{"$f":"IF(A252=\"\",\"\",'1. Checklist & Certification'!$F$9)","v":""},{"$f":"IF(A252=\"\",\"\",'1. Checklist & Certification'!$C$10)","v":""},{"$f":"IF(A252=\"\",\"\",'1. Checklist & Certification'!$C$11)","v":""},{"$f":"IF(A252=\"\",\"\",'1. Checklist & Certification'!$C$12)","v":""},{"$f":"IF(A252=\"\",\"\",'1. Checklist & Certification'!$B$14)","v":""},{"$f":"IF(A252=\"\",\"\",'1. Checklist & Certification'!$E$14)","v":""},{"$f":"IF(B252=\"\",\"\",'1. Checklist & Certification'!$G$14)","v":""},{"$f":"IF(A252=\"\",\"\",'MHP Family Income & Rent Limits'!$B$3)","v":""},{"$f":"IF(A252=\"\",\"\",'MHP Family Income & Rent Limits'!$J$3)","v":""},{"$f":"IF(A252=\"\",\"\",'MHP Family Income & Rent Limits'!$E$4)","v":""},{"$f":"IF(A252=\"\",\"\",'MHP Family Income & Rent Limits'!$C$7)","v":""},{"$f":"IF(A252=\"\",\"\",'MHP Family Income & Rent Limits'!$F$8)","v":""},{"$f":"IF(A252=\"\",\"\",'1. Checklist & Certification'!$G$4)","v":""},{"$f":"IF(A252=\"\",\"\",'1. Checklist & Certification'!$K$39)","v":""},{"$f":"IF(A252=\"\",\"\",'1. Checklist & Certification'!$K$43)","v":""},{"$f":"IF(A252=\"\",\"\",'1. Checklist & Certification'!$K$45)","v":""},{"$f":"IF(A252=\"\",\"\",'1. Checklist & Certification'!$K$49)","v":""},{"$f":"IF(A252=\"\",\"\",'1. Checklist & Certification'!$E$66)","v":""},{"$f":"IF(A252=\"\",\"\",'1. Checklist & Certification'!$E$67)","v":""},{"$f":"IF(A252=\"\",\"\",'1. Checklist & Certification'!$E$68)","v":""},{"$f":"IF(A252=\"\",\"\",'1. Checklist & Certification'!$G$66)","v":""},{"$f":"IF(A252=\"\",\"\",'1. Checklist & Certification'!$H$66)","v":""},{"$f":"IF(A252=\"\",\"\",'1. Checklist & Certification'!$I$66)","v":""},{"$f":"IF(A252=\"\",\"\",'1. Checklist & Certification'!$I$67)","v":""},{"$f":"IF(A252=\"\",\"\",'1. Checklist & Certification'!$I$68)","v":""},null,{"$f":"IF(C252=\"\",\"\",HLOOKUP(C252,'MHP Family Income & Rent Limits'!$E$12:$L$26,2,FALSE))","v":""},{"$f":"IF(C252=\"\",\"\",HLOOKUP(C252,'MHP Family Income & Rent Limits'!$E$12:$L$26,3,FALSE))","v":""},{"$f":"IF(C252=\"\",\"\",HLOOKUP(C252,'MHP Family Income & Rent Limits'!$E$12:$L$26,4,FALSE))","v":""},{"$f":"IF(C252=\"\",\"\",HLOOKUP(C252,'MHP Family Income & Rent Limits'!$E$12:$L$26,5,FALSE))","v":""},{"$f":"IF(C252=\"\",\"\",HLOOKUP(C252,'MHP Family Income & Rent Limits'!$E$12:$L$26,6,FALSE))","v":""},{"$f":"IF(C252=\"\",\"\",HLOOKUP(C252,'MHP Family Income & Rent Limits'!$E$12:$L$26,7,FALSE))","v":""},{"$f":"IF(C252=\"\",\"\",HLOOKUP(C252,'MHP Family Income & Rent Limits'!$E$12:$L$26,8,FALSE))","v":""},{"$f":"IF(C252=\"\",\"\",HLOOKUP(C252,'MHP Family Income & Rent Limits'!$E$12:$L$26,9,FALSE))","v":""},{"$f":"IF(C252=\"\",\"\",HLOOKUP(C252,'MHP Family Income & Rent Limits'!$E$12:$L$26,10,FALSE))","v":""},{"$f":"IF(C252=\"\",\"\",HLOOKUP(C252,'MHP Family Income & Rent Limits'!$E$12:$L$26,11,FALSE))","v":""},{"$f":"IF(C252=\"\",\"\",HLOOKUP(C252,'MHP Family Income & Rent Limits'!$E$12:$L$26,12,FALSE))","v":""},{"$f":"IF(C252=\"\",\"\",HLOOKUP(C252,'MHP Family Income & Rent Limits'!$E$12:$L$26,13,FALSE))","v":""},{"$f":"IF(C252=\"\",\"\",HLOOKUP(C252,'MHP Family Income & Rent Limits'!$E$12:$L$26,14,FALSE))","v":""},{"$f":"IF(C252=\"\",\"\",HLOOKUP(C252,'MHP Family Income & Rent Limits'!$E$12:$L$26,15,FALSE))","v":""}]
[{"$f":"IF('2. Assisted & Restricted Units'!A253=\"\",\"\",'2. Assisted & Restricted Units'!A253)","v":""},{"$f":"IF('2. Assisted & Restricted Units'!B253=\"\",\"\",'2. Assisted & Restricted Units'!B253)","v":""},{"$f":"IF('2. Assisted & Restricted Units'!D253=\"\",\"\",'2. Assisted & Restricted Units'!D253)","v":""},{"$f":"IF('2. Assisted & Restricted Units'!E253=\"\",\"\",'2. Assisted & Restricted Units'!E253)","v":""},{"$f":"IF('2. Assisted & Restricted Units'!H253=\"\",\"\",'2. Assisted & Restricted Units'!H253)","v":""},{"$f":"_xlfn.IFS(E253=\"\",\"\",E253>BO253,$BP$6,E253>BN253,$BO$6,E253>BM253,$BN$6,E253>BL253,$BM$6,E253>BK253,$BL$6,E253>BJ253,$BK$6,E253>BI253,$BJ$6,E253>BH253,$BI$6,E253>BG253,$BH$6,E253>BF253,$BG$6,E253>BE253,$BF$6,E253>BD253,$BE$6,E253>BC253,$BD$6,E253>=0,$BC$6)","v":""},{"$f":"IF('2. Assisted & Restricted Units'!T253=\"\",\"\",'2. Assisted & Restricted Units'!T253)","v":""},{"$f":"IF('2. Assisted & Restricted Units'!I253=\"\",\"\",'2. Assisted & Restricted Units'!I253)","v":""},{"$f":"IF('2. Assisted & Restricted Units'!AP253=\"\",\"\",'2. Assisted & Restricted Units'!AP253)","v":0},{"$f":"IF('2. Assisted & Restricted Units'!AT253=\"\",\"\",'2. Assisted & Restricted Units'!AT253)","v":""},0,{"$f":"IF('2. Assisted & Restricted Units'!AV253=\"\",\"\",'2. Assisted & Restricted Units'!AV253)","v":""},{"$f":"IF('2. Assisted & Restricted Units'!L253=\"\",\"\",'2. Assisted & Restricted Units'!L253)","v":""},{"$f":"IF('2. Assisted & Restricted Units'!M253=\"\",\"\",'2. Assisted & Restricted Units'!M253)","v":""},{"$f":"IF('2. Assisted & Restricted Units'!O253=\"\",\"\",'2. Assisted & Restricted Units'!O253)","v":""},{"$f":"IF('2. Assisted & Restricted Units'!P253=\"\",\"\",'2. Assisted & Restricted Units'!P253)","v":""},{"$f":"IF('2. Assisted & Restricted Units'!Q253=\"\",\"\",'2. Assisted & Restricted Units'!Q253)","v":""},{"$f":"IF('2. Assisted & Restricted Units'!R253=\"\",\"\",'2. Assisted & Restricted Units'!R253)","v":""},{"$f":"IF(A253=\"\",\"\",'1. Checklist & Certification'!$K$1)","v":""},{"$f":"IF(A253=\"\",\"\",'1. Checklist & Certification'!$C$62)","v":""},{"$f":"IF(A253=\"\",\"\",'1. Checklist & Certification'!$K$62)","v":""},{"$f":"IF(A253=\"\",\"\",'1. Checklist & Certification'!$C$6)","v":""},{"$f":"IF(A253=\"\",\"\",'1. Checklist & Certification'!$G$4)","v":""},{"$f":"IF(A253=\"\",\"\",'1. Checklist & Certification'!$C$7)","v":""},{"$f":"IF(A253=\"\",\"\",'1. Checklist & Certification'!$C$8)","v":""},{"$f":"IF(A253=\"\",\"\",'1. Checklist & Certification'!$F$7)","v":""},{"$f":"IF(A253=\"\",\"\",'1. Checklist & Certification'!$F$8)","v":""},{"$f":"IF(A253=\"\",\"\",'1. Checklist & Certification'!$B$9)","v":""},{"$f":"IF(A253=\"\",\"\",'1. Checklist & Certification'!$F$9)","v":""},{"$f":"IF(A253=\"\",\"\",'1. Checklist & Certification'!$C$10)","v":""},{"$f":"IF(A253=\"\",\"\",'1. Checklist & Certification'!$C$11)","v":""},{"$f":"IF(A253=\"\",\"\",'1. Checklist & Certification'!$C$12)","v":""},{"$f":"IF(A253=\"\",\"\",'1. Checklist & Certification'!$B$14)","v":""},{"$f":"IF(A253=\"\",\"\",'1. Checklist & Certification'!$E$14)","v":""},{"$f":"IF(B253=\"\",\"\",'1. Checklist & Certification'!$G$14)","v":""},{"$f":"IF(A253=\"\",\"\",'MHP Family Income & Rent Limits'!$B$3)","v":""},{"$f":"IF(A253=\"\",\"\",'MHP Family Income & Rent Limits'!$J$3)","v":""},{"$f":"IF(A253=\"\",\"\",'MHP Family Income & Rent Limits'!$E$4)","v":""},{"$f":"IF(A253=\"\",\"\",'MHP Family Income & Rent Limits'!$C$7)","v":""},{"$f":"IF(A253=\"\",\"\",'MHP Family Income & Rent Limits'!$F$8)","v":""},{"$f":"IF(A253=\"\",\"\",'1. Checklist & Certification'!$G$4)","v":""},{"$f":"IF(A253=\"\",\"\",'1. Checklist & Certification'!$K$39)","v":""},{"$f":"IF(A253=\"\",\"\",'1. Checklist & Certification'!$K$43)","v":""},{"$f":"IF(A253=\"\",\"\",'1. Checklist & Certification'!$K$45)","v":""},{"$f":"IF(A253=\"\",\"\",'1. Checklist & Certification'!$K$49)","v":""},{"$f":"IF(A253=\"\",\"\",'1. Checklist & Certification'!$E$66)","v":""},{"$f":"IF(A253=\"\",\"\",'1. Checklist & Certification'!$E$67)","v":""},{"$f":"IF(A253=\"\",\"\",'1. Checklist & Certification'!$E$68)","v":""},{"$f":"IF(A253=\"\",\"\",'1. Checklist & Certification'!$G$66)","v":""},{"$f":"IF(A253=\"\",\"\",'1. Checklist & Certification'!$H$66)","v":""},{"$f":"IF(A253=\"\",\"\",'1. Checklist & Certification'!$I$66)","v":""},{"$f":"IF(A253=\"\",\"\",'1. Checklist & Certification'!$I$67)","v":""},{"$f":"IF(A253=\"\",\"\",'1. Checklist & Certification'!$I$68)","v":""},null,{"$f":"IF(C253=\"\",\"\",HLOOKUP(C253,'MHP Family Income & Rent Limits'!$E$12:$L$26,2,FALSE))","v":""},{"$f":"IF(C253=\"\",\"\",HLOOKUP(C253,'MHP Family Income & Rent Limits'!$E$12:$L$26,3,FALSE))","v":""},{"$f":"IF(C253=\"\",\"\",HLOOKUP(C253,'MHP Family Income & Rent Limits'!$E$12:$L$26,4,FALSE))","v":""},{"$f":"IF(C253=\"\",\"\",HLOOKUP(C253,'MHP Family Income & Rent Limits'!$E$12:$L$26,5,FALSE))","v":""},{"$f":"IF(C253=\"\",\"\",HLOOKUP(C253,'MHP Family Income & Rent Limits'!$E$12:$L$26,6,FALSE))","v":""},{"$f":"IF(C253=\"\",\"\",HLOOKUP(C253,'MHP Family Income & Rent Limits'!$E$12:$L$26,7,FALSE))","v":""},{"$f":"IF(C253=\"\",\"\",HLOOKUP(C253,'MHP Family Income & Rent Limits'!$E$12:$L$26,8,FALSE))","v":""},{"$f":"IF(C253=\"\",\"\",HLOOKUP(C253,'MHP Family Income & Rent Limits'!$E$12:$L$26,9,FALSE))","v":""},{"$f":"IF(C253=\"\",\"\",HLOOKUP(C253,'MHP Family Income & Rent Limits'!$E$12:$L$26,10,FALSE))","v":""},{"$f":"IF(C253=\"\",\"\",HLOOKUP(C253,'MHP Family Income & Rent Limits'!$E$12:$L$26,11,FALSE))","v":""},{"$f":"IF(C253=\"\",\"\",HLOOKUP(C253,'MHP Family Income & Rent Limits'!$E$12:$L$26,12,FALSE))","v":""},{"$f":"IF(C253=\"\",\"\",HLOOKUP(C253,'MHP Family Income & Rent Limits'!$E$12:$L$26,13,FALSE))","v":""},{"$f":"IF(C253=\"\",\"\",HLOOKUP(C253,'MHP Family Income & Rent Limits'!$E$12:$L$26,14,FALSE))","v":""},{"$f":"IF(C253=\"\",\"\",HLOOKUP(C253,'MHP Family Income & Rent Limits'!$E$12:$L$26,15,FALSE))","v":""}]
[{"$f":"IF('2. Assisted & Restricted Units'!A254=\"\",\"\",'2. Assisted & Restricted Units'!A254)","v":""},{"$f":"IF('2. Assisted & Restricted Units'!B254=\"\",\"\",'2. Assisted & Restricted Units'!B254)","v":""},{"$f":"IF('2. Assisted & Restricted Units'!D254=\"\",\"\",'2. Assisted & Restricted Units'!D254)","v":""},{"$f":"IF('2. Assisted & Restricted Units'!E254=\"\",\"\",'2. Assisted & Restricted Units'!E254)","v":""},{"$f":"IF('2. Assisted & Restricted Units'!H254=\"\",\"\",'2. Assisted & Restricted Units'!H254)","v":""},{"$f":"_xlfn.IFS(E254=\"\",\"\",E254>BO254,$BP$6,E254>BN254,$BO$6,E254>BM254,$BN$6,E254>BL254,$BM$6,E254>BK254,$BL$6,E254>BJ254,$BK$6,E254>BI254,$BJ$6,E254>BH254,$BI$6,E254>BG254,$BH$6,E254>BF254,$BG$6,E254>BE254,$BF$6,E254>BD254,$BE$6,E254>BC254,$BD$6,E254>=0,$BC$6)","v":""},{"$f":"IF('2. Assisted & Restricted Units'!T254=\"\",\"\",'2. Assisted & Restricted Units'!T254)","v":""},{"$f":"IF('2. Assisted & Restricted Units'!I254=\"\",\"\",'2. Assisted & Restricted Units'!I254)","v":""},{"$f":"IF('2. Assisted & Restricted Units'!AP254=\"\",\"\",'2. Assisted & Restricted Units'!AP254)","v":0},{"$f":"IF('2. Assisted & Restricted Units'!AT254=\"\",\"\",'2. Assisted & Restricted Units'!AT254)","v":""},0,{"$f":"IF('2. Assisted & Restricted Units'!AV254=\"\",\"\",'2. Assisted & Restricted Units'!AV254)","v":""},{"$f":"IF('2. Assisted & Restricted Units'!L254=\"\",\"\",'2. Assisted & Restricted Units'!L254)","v":""},{"$f":"IF('2. Assisted & Restricted Units'!M254=\"\",\"\",'2. Assisted & Restricted Units'!M254)","v":""},{"$f":"IF('2. Assisted & Restricted Units'!O254=\"\",\"\",'2. Assisted & Restricted Units'!O254)","v":""},{"$f":"IF('2. Assisted & Restricted Units'!P254=\"\",\"\",'2. Assisted & Restricted Units'!P254)","v":""},{"$f":"IF('2. Assisted & Restricted Units'!Q254=\"\",\"\",'2. Assisted & Restricted Units'!Q254)","v":""},{"$f":"IF('2. Assisted & Restricted Units'!R254=\"\",\"\",'2. Assisted & Restricted Units'!R254)","v":""},{"$f":"IF(A254=\"\",\"\",'1. Checklist & Certification'!$K$1)","v":""},{"$f":"IF(A254=\"\",\"\",'1. Checklist & Certification'!$C$62)","v":""},{"$f":"IF(A254=\"\",\"\",'1. Checklist & Certification'!$K$62)","v":""},{"$f":"IF(A254=\"\",\"\",'1. Checklist & Certification'!$C$6)","v":""},{"$f":"IF(A254=\"\",\"\",'1. Checklist & Certification'!$G$4)","v":""},{"$f":"IF(A254=\"\",\"\",'1. Checklist & Certification'!$C$7)","v":""},{"$f":"IF(A254=\"\",\"\",'1. Checklist & Certification'!$C$8)","v":""},{"$f":"IF(A254=\"\",\"\",'1. Checklist & Certification'!$F$7)","v":""},{"$f":"IF(A254=\"\",\"\",'1. Checklist & Certification'!$F$8)","v":""},{"$f":"IF(A254=\"\",\"\",'1. Checklist & Certification'!$B$9)","v":""},{"$f":"IF(A254=\"\",\"\",'1. Checklist & Certification'!$F$9)","v":""},{"$f":"IF(A254=\"\",\"\",'1. Checklist & Certification'!$C$10)","v":""},{"$f":"IF(A254=\"\",\"\",'1. Checklist & Certification'!$C$11)","v":""},{"$f":"IF(A254=\"\",\"\",'1. Checklist & Certification'!$C$12)","v":""},{"$f":"IF(A254=\"\",\"\",'1. Checklist & Certification'!$B$14)","v":""},{"$f":"IF(A254=\"\",\"\",'1. Checklist & Certification'!$E$14)","v":""},{"$f":"IF(B254=\"\",\"\",'1. Checklist & Certification'!$G$14)","v":""},{"$f":"IF(A254=\"\",\"\",'MHP Family Income & Rent Limits'!$B$3)","v":""},{"$f":"IF(A254=\"\",\"\",'MHP Family Income & Rent Limits'!$J$3)","v":""},{"$f":"IF(A254=\"\",\"\",'MHP Family Income & Rent Limits'!$E$4)","v":""},{"$f":"IF(A254=\"\",\"\",'MHP Family Income & Rent Limits'!$C$7)","v":""},{"$f":"IF(A254=\"\",\"\",'MHP Family Income & Rent Limits'!$F$8)","v":""},{"$f":"IF(A254=\"\",\"\",'1. Checklist & Certification'!$G$4)","v":""},{"$f":"IF(A254=\"\",\"\",'1. Checklist & Certification'!$K$39)","v":""},{"$f":"IF(A254=\"\",\"\",'1. Checklist & Certification'!$K$43)","v":""},{"$f":"IF(A254=\"\",\"\",'1. Checklist & Certification'!$K$45)","v":""},{"$f":"IF(A254=\"\",\"\",'1. Checklist & Certification'!$K$49)","v":""},{"$f":"IF(A254=\"\",\"\",'1. Checklist & Certification'!$E$66)","v":""},{"$f":"IF(A254=\"\",\"\",'1. Checklist & Certification'!$E$67)","v":""},{"$f":"IF(A254=\"\",\"\",'1. Checklist & Certification'!$E$68)","v":""},{"$f":"IF(A254=\"\",\"\",'1. Checklist & Certification'!$G$66)","v":""},{"$f":"IF(A254=\"\",\"\",'1. Checklist & Certification'!$H$66)","v":""},{"$f":"IF(A254=\"\",\"\",'1. Checklist & Certification'!$I$66)","v":""},{"$f":"IF(A254=\"\",\"\",'1. Checklist & Certification'!$I$67)","v":""},{"$f":"IF(A254=\"\",\"\",'1. Checklist & Certification'!$I$68)","v":""},null,{"$f":"IF(C254=\"\",\"\",HLOOKUP(C254,'MHP Family Income & Rent Limits'!$E$12:$L$26,2,FALSE))","v":""},{"$f":"IF(C254=\"\",\"\",HLOOKUP(C254,'MHP Family Income & Rent Limits'!$E$12:$L$26,3,FALSE))","v":""},{"$f":"IF(C254=\"\",\"\",HLOOKUP(C254,'MHP Family Income & Rent Limits'!$E$12:$L$26,4,FALSE))","v":""},{"$f":"IF(C254=\"\",\"\",HLOOKUP(C254,'MHP Family Income & Rent Limits'!$E$12:$L$26,5,FALSE))","v":""},{"$f":"IF(C254=\"\",\"\",HLOOKUP(C254,'MHP Family Income & Rent Limits'!$E$12:$L$26,6,FALSE))","v":""},{"$f":"IF(C254=\"\",\"\",HLOOKUP(C254,'MHP Family Income & Rent Limits'!$E$12:$L$26,7,FALSE))","v":""},{"$f":"IF(C254=\"\",\"\",HLOOKUP(C254,'MHP Family Income & Rent Limits'!$E$12:$L$26,8,FALSE))","v":""},{"$f":"IF(C254=\"\",\"\",HLOOKUP(C254,'MHP Family Income & Rent Limits'!$E$12:$L$26,9,FALSE))","v":""},{"$f":"IF(C254=\"\",\"\",HLOOKUP(C254,'MHP Family Income & Rent Limits'!$E$12:$L$26,10,FALSE))","v":""},{"$f":"IF(C254=\"\",\"\",HLOOKUP(C254,'MHP Family Income & Rent Limits'!$E$12:$L$26,11,FALSE))","v":""},{"$f":"IF(C254=\"\",\"\",HLOOKUP(C254,'MHP Family Income & Rent Limits'!$E$12:$L$26,12,FALSE))","v":""},{"$f":"IF(C254=\"\",\"\",HLOOKUP(C254,'MHP Family Income & Rent Limits'!$E$12:$L$26,13,FALSE))","v":""},{"$f":"IF(C254=\"\",\"\",HLOOKUP(C254,'MHP Family Income & Rent Limits'!$E$12:$L$26,14,FALSE))","v":""},{"$f":"IF(C254=\"\",\"\",HLOOKUP(C254,'MHP Family Income & Rent Limits'!$E$12:$L$26,15,FALSE))","v":""}]
[{"$f":"IF('2. Assisted & Restricted Units'!A255=\"\",\"\",'2. Assisted & Restricted Units'!A255)","v":""},{"$f":"IF('2. Assisted & Restricted Units'!B255=\"\",\"\",'2. Assisted & Restricted Units'!B255)","v":""},{"$f":"IF('2. Assisted & Restricted Units'!D255=\"\",\"\",'2. Assisted & Restricted Units'!D255)","v":""},{"$f":"IF('2. Assisted & Restricted Units'!E255=\"\",\"\",'2. Assisted & Restricted Units'!E255)","v":""},{"$f":"IF('2. Assisted & Restricted Units'!H255=\"\",\"\",'2. Assisted & Restricted Units'!H255)","v":""},{"$f":"_xlfn.IFS(E255=\"\",\"\",E255>BO255,$BP$6,E255>BN255,$BO$6,E255>BM255,$BN$6,E255>BL255,$BM$6,E255>BK255,$BL$6,E255>BJ255,$BK$6,E255>BI255,$BJ$6,E255>BH255,$BI$6,E255>BG255,$BH$6,E255>BF255,$BG$6,E255>BE255,$BF$6,E255>BD255,$BE$6,E255>BC255,$BD$6,E255>=0,$BC$6)","v":""},{"$f":"IF('2. Assisted & Restricted Units'!T255=\"\",\"\",'2. Assisted & Restricted Units'!T255)","v":""},{"$f":"IF('2. Assisted & Restricted Units'!I255=\"\",\"\",'2. Assisted & Restricted Units'!I255)","v":""},{"$f":"IF('2. Assisted & Restricted Units'!AP255=\"\",\"\",'2. Assisted & Restricted Units'!AP255)","v":0},{"$f":"IF('2. Assisted & Restricted Units'!AT255=\"\",\"\",'2. Assisted & Restricted Units'!AT255)","v":""},0,{"$f":"IF('2. Assisted & Restricted Units'!AV255=\"\",\"\",'2. Assisted & Restricted Units'!AV255)","v":""},{"$f":"IF('2. Assisted & Restricted Units'!L255=\"\",\"\",'2. Assisted & Restricted Units'!L255)","v":""},{"$f":"IF('2. Assisted & Restricted Units'!M255=\"\",\"\",'2. Assisted & Restricted Units'!M255)","v":""},{"$f":"IF('2. Assisted & Restricted Units'!O255=\"\",\"\",'2. Assisted & Restricted Units'!O255)","v":""},{"$f":"IF('2. Assisted & Restricted Units'!P255=\"\",\"\",'2. Assisted & Restricted Units'!P255)","v":""},{"$f":"IF('2. Assisted & Restricted Units'!Q255=\"\",\"\",'2. Assisted & Restricted Units'!Q255)","v":""},{"$f":"IF('2. Assisted & Restricted Units'!R255=\"\",\"\",'2. Assisted & Restricted Units'!R255)","v":""},{"$f":"IF(A255=\"\",\"\",'1. Checklist & Certification'!$K$1)","v":""},{"$f":"IF(A255=\"\",\"\",'1. Checklist & Certification'!$C$62)","v":""},{"$f":"IF(A255=\"\",\"\",'1. Checklist & Certification'!$K$62)","v":""},{"$f":"IF(A255=\"\",\"\",'1. Checklist & Certification'!$C$6)","v":""},{"$f":"IF(A255=\"\",\"\",'1. Checklist & Certification'!$G$4)","v":""},{"$f":"IF(A255=\"\",\"\",'1. Checklist & Certification'!$C$7)","v":""},{"$f":"IF(A255=\"\",\"\",'1. Checklist & Certification'!$C$8)","v":""},{"$f":"IF(A255=\"\",\"\",'1. Checklist & Certification'!$F$7)","v":""},{"$f":"IF(A255=\"\",\"\",'1. Checklist & Certification'!$F$8)","v":""},{"$f":"IF(A255=\"\",\"\",'1. Checklist & Certification'!$B$9)","v":""},{"$f":"IF(A255=\"\",\"\",'1. Checklist & Certification'!$F$9)","v":""},{"$f":"IF(A255=\"\",\"\",'1. Checklist & Certification'!$C$10)","v":""},{"$f":"IF(A255=\"\",\"\",'1. Checklist & Certification'!$C$11)","v":""},{"$f":"IF(A255=\"\",\"\",'1. Checklist & Certification'!$C$12)","v":""},{"$f":"IF(A255=\"\",\"\",'1. Checklist & Certification'!$B$14)","v":""},{"$f":"IF(A255=\"\",\"\",'1. Checklist & Certification'!$E$14)","v":""},{"$f":"IF(B255=\"\",\"\",'1. Checklist & Certification'!$G$14)","v":""},{"$f":"IF(A255=\"\",\"\",'MHP Family Income & Rent Limits'!$B$3)","v":""},{"$f":"IF(A255=\"\",\"\",'MHP Family Income & Rent Limits'!$J$3)","v":""},{"$f":"IF(A255=\"\",\"\",'MHP Family Income & Rent Limits'!$E$4)","v":""},{"$f":"IF(A255=\"\",\"\",'MHP Family Income & Rent Limits'!$C$7)","v":""},{"$f":"IF(A255=\"\",\"\",'MHP Family Income & Rent Limits'!$F$8)","v":""},{"$f":"IF(A255=\"\",\"\",'1. Checklist & Certification'!$G$4)","v":""},{"$f":"IF(A255=\"\",\"\",'1. Checklist & Certification'!$K$39)","v":""},{"$f":"IF(A255=\"\",\"\",'1. Checklist & Certification'!$K$43)","v":""},{"$f":"IF(A255=\"\",\"\",'1. Checklist & Certification'!$K$45)","v":""},{"$f":"IF(A255=\"\",\"\",'1. Checklist & Certification'!$K$49)","v":""},{"$f":"IF(A255=\"\",\"\",'1. Checklist & Certification'!$E$66)","v":""},{"$f":"IF(A255=\"\",\"\",'1. Checklist & Certification'!$E$67)","v":""},{"$f":"IF(A255=\"\",\"\",'1. Checklist & Certification'!$E$68)","v":""},{"$f":"IF(A255=\"\",\"\",'1. Checklist & Certification'!$G$66)","v":""},{"$f":"IF(A255=\"\",\"\",'1. Checklist & Certification'!$H$66)","v":""},{"$f":"IF(A255=\"\",\"\",'1. Checklist & Certification'!$I$66)","v":""},{"$f":"IF(A255=\"\",\"\",'1. Checklist & Certification'!$I$67)","v":""},{"$f":"IF(A255=\"\",\"\",'1. Checklist & Certification'!$I$68)","v":""},null,{"$f":"IF(C255=\"\",\"\",HLOOKUP(C255,'MHP Family Income & Rent Limits'!$E$12:$L$26,2,FALSE))","v":""},{"$f":"IF(C255=\"\",\"\",HLOOKUP(C255,'MHP Family Income & Rent Limits'!$E$12:$L$26,3,FALSE))","v":""},{"$f":"IF(C255=\"\",\"\",HLOOKUP(C255,'MHP Family Income & Rent Limits'!$E$12:$L$26,4,FALSE))","v":""},{"$f":"IF(C255=\"\",\"\",HLOOKUP(C255,'MHP Family Income & Rent Limits'!$E$12:$L$26,5,FALSE))","v":""},{"$f":"IF(C255=\"\",\"\",HLOOKUP(C255,'MHP Family Income & Rent Limits'!$E$12:$L$26,6,FALSE))","v":""},{"$f":"IF(C255=\"\",\"\",HLOOKUP(C255,'MHP Family Income & Rent Limits'!$E$12:$L$26,7,FALSE))","v":""},{"$f":"IF(C255=\"\",\"\",HLOOKUP(C255,'MHP Family Income & Rent Limits'!$E$12:$L$26,8,FALSE))","v":""},{"$f":"IF(C255=\"\",\"\",HLOOKUP(C255,'MHP Family Income & Rent Limits'!$E$12:$L$26,9,FALSE))","v":""},{"$f":"IF(C255=\"\",\"\",HLOOKUP(C255,'MHP Family Income & Rent Limits'!$E$12:$L$26,10,FALSE))","v":""},{"$f":"IF(C255=\"\",\"\",HLOOKUP(C255,'MHP Family Income & Rent Limits'!$E$12:$L$26,11,FALSE))","v":""},{"$f":"IF(C255=\"\",\"\",HLOOKUP(C255,'MHP Family Income & Rent Limits'!$E$12:$L$26,12,FALSE))","v":""},{"$f":"IF(C255=\"\",\"\",HLOOKUP(C255,'MHP Family Income & Rent Limits'!$E$12:$L$26,13,FALSE))","v":""},{"$f":"IF(C255=\"\",\"\",HLOOKUP(C255,'MHP Family Income & Rent Limits'!$E$12:$L$26,14,FALSE))","v":""},{"$f":"IF(C255=\"\",\"\",HLOOKUP(C255,'MHP Family Income & Rent Limits'!$E$12:$L$26,15,FALSE))","v":""}]
[{"$f":"IF('2. Assisted & Restricted Units'!A256=\"\",\"\",'2. Assisted & Restricted Units'!A256)","v":""},{"$f":"IF('2. Assisted & Restricted Units'!B256=\"\",\"\",'2. Assisted & Restricted Units'!B256)","v":""},{"$f":"IF('2. Assisted & Restricted Units'!D256=\"\",\"\",'2. Assisted & Restricted Units'!D256)","v":""},{"$f":"IF('2. Assisted & Restricted Units'!E256=\"\",\"\",'2. Assisted & Restricted Units'!E256)","v":""},{"$f":"IF('2. Assisted & Restricted Units'!H256=\"\",\"\",'2. Assisted & Restricted Units'!H256)","v":""},{"$f":"_xlfn.IFS(E256=\"\",\"\",E256>BO256,$BP$6,E256>BN256,$BO$6,E256>BM256,$BN$6,E256>BL256,$BM$6,E256>BK256,$BL$6,E256>BJ256,$BK$6,E256>BI256,$BJ$6,E256>BH256,$BI$6,E256>BG256,$BH$6,E256>BF256,$BG$6,E256>BE256,$BF$6,E256>BD256,$BE$6,E256>BC256,$BD$6,E256>=0,$BC$6)","v":""},{"$f":"IF('2. Assisted & Restricted Units'!T256=\"\",\"\",'2. Assisted & Restricted Units'!T256)","v":""},{"$f":"IF('2. Assisted & Restricted Units'!I256=\"\",\"\",'2. Assisted & Restricted Units'!I256)","v":""},{"$f":"IF('2. Assisted & Restricted Units'!AP256=\"\",\"\",'2. Assisted & Restricted Units'!AP256)","v":0},{"$f":"IF('2. Assisted & Restricted Units'!AT256=\"\",\"\",'2. Assisted & Restricted Units'!AT256)","v":""},0,{"$f":"IF('2. Assisted & Restricted Units'!AV256=\"\",\"\",'2. Assisted & Restricted Units'!AV256)","v":""},{"$f":"IF('2. Assisted & Restricted Units'!L256=\"\",\"\",'2. Assisted & Restricted Units'!L256)","v":""},{"$f":"IF('2. Assisted & Restricted Units'!M256=\"\",\"\",'2. Assisted & Restricted Units'!M256)","v":""},{"$f":"IF('2. Assisted & Restricted Units'!O256=\"\",\"\",'2. Assisted & Restricted Units'!O256)","v":""},{"$f":"IF('2. Assisted & Restricted Units'!P256=\"\",\"\",'2. Assisted & Restricted Units'!P256)","v":""},{"$f":"IF('2. Assisted & Restricted Units'!Q256=\"\",\"\",'2. Assisted & Restricted Units'!Q256)","v":""},{"$f":"IF('2. Assisted & Restricted Units'!R256=\"\",\"\",'2. Assisted & Restricted Units'!R256)","v":""},{"$f":"IF(A256=\"\",\"\",'1. Checklist & Certification'!$K$1)","v":""},{"$f":"IF(A256=\"\",\"\",'1. Checklist & Certification'!$C$62)","v":""},{"$f":"IF(A256=\"\",\"\",'1. Checklist & Certification'!$K$62)","v":""},{"$f":"IF(A256=\"\",\"\",'1. Checklist & Certification'!$C$6)","v":""},{"$f":"IF(A256=\"\",\"\",'1. Checklist & Certification'!$G$4)","v":""},{"$f":"IF(A256=\"\",\"\",'1. Checklist & Certification'!$C$7)","v":""},{"$f":"IF(A256=\"\",\"\",'1. Checklist & Certification'!$C$8)","v":""},{"$f":"IF(A256=\"\",\"\",'1. Checklist & Certification'!$F$7)","v":""},{"$f":"IF(A256=\"\",\"\",'1. Checklist & Certification'!$F$8)","v":""},{"$f":"IF(A256=\"\",\"\",'1. Checklist & Certification'!$B$9)","v":""},{"$f":"IF(A256=\"\",\"\",'1. Checklist & Certification'!$F$9)","v":""},{"$f":"IF(A256=\"\",\"\",'1. Checklist & Certification'!$C$10)","v":""},{"$f":"IF(A256=\"\",\"\",'1. Checklist & Certification'!$C$11)","v":""},{"$f":"IF(A256=\"\",\"\",'1. Checklist & Certification'!$C$12)","v":""},{"$f":"IF(A256=\"\",\"\",'1. Checklist & Certification'!$B$14)","v":""},{"$f":"IF(A256=\"\",\"\",'1. Checklist & Certification'!$E$14)","v":""},{"$f":"IF(B256=\"\",\"\",'1. Checklist & Certification'!$G$14)","v":""},{"$f":"IF(A256=\"\",\"\",'MHP Family Income & Rent Limits'!$B$3)","v":""},{"$f":"IF(A256=\"\",\"\",'MHP Family Income & Rent Limits'!$J$3)","v":""},{"$f":"IF(A256=\"\",\"\",'MHP Family Income & Rent Limits'!$E$4)","v":""},{"$f":"IF(A256=\"\",\"\",'MHP Family Income & Rent Limits'!$C$7)","v":""},{"$f":"IF(A256=\"\",\"\",'MHP Family Income & Rent Limits'!$F$8)","v":""},{"$f":"IF(A256=\"\",\"\",'1. Checklist & Certification'!$G$4)","v":""},{"$f":"IF(A256=\"\",\"\",'1. Checklist & Certification'!$K$39)","v":""},{"$f":"IF(A256=\"\",\"\",'1. Checklist & Certification'!$K$43)","v":""},{"$f":"IF(A256=\"\",\"\",'1. Checklist & Certification'!$K$45)","v":""},{"$f":"IF(A256=\"\",\"\",'1. Checklist & Certification'!$K$49)","v":""},{"$f":"IF(A256=\"\",\"\",'1. Checklist & Certification'!$E$66)","v":""},{"$f":"IF(A256=\"\",\"\",'1. Checklist & Certification'!$E$67)","v":""},{"$f":"IF(A256=\"\",\"\",'1. Checklist & Certification'!$E$68)","v":""},{"$f":"IF(A256=\"\",\"\",'1. Checklist & Certification'!$G$66)","v":""},{"$f":"IF(A256=\"\",\"\",'1. Checklist & Certification'!$H$66)","v":""},{"$f":"IF(A256=\"\",\"\",'1. Checklist & Certification'!$I$66)","v":""},{"$f":"IF(A256=\"\",\"\",'1. Checklist & Certification'!$I$67)","v":""},{"$f":"IF(A256=\"\",\"\",'1. Checklist & Certification'!$I$68)","v":""},null,{"$f":"IF(C256=\"\",\"\",HLOOKUP(C256,'MHP Family Income & Rent Limits'!$E$12:$L$26,2,FALSE))","v":""},{"$f":"IF(C256=\"\",\"\",HLOOKUP(C256,'MHP Family Income & Rent Limits'!$E$12:$L$26,3,FALSE))","v":""},{"$f":"IF(C256=\"\",\"\",HLOOKUP(C256,'MHP Family Income & Rent Limits'!$E$12:$L$26,4,FALSE))","v":""},{"$f":"IF(C256=\"\",\"\",HLOOKUP(C256,'MHP Family Income & Rent Limits'!$E$12:$L$26,5,FALSE))","v":""},{"$f":"IF(C256=\"\",\"\",HLOOKUP(C256,'MHP Family Income & Rent Limits'!$E$12:$L$26,6,FALSE))","v":""},{"$f":"IF(C256=\"\",\"\",HLOOKUP(C256,'MHP Family Income & Rent Limits'!$E$12:$L$26,7,FALSE))","v":""},{"$f":"IF(C256=\"\",\"\",HLOOKUP(C256,'MHP Family Income & Rent Limits'!$E$12:$L$26,8,FALSE))","v":""},{"$f":"IF(C256=\"\",\"\",HLOOKUP(C256,'MHP Family Income & Rent Limits'!$E$12:$L$26,9,FALSE))","v":""},{"$f":"IF(C256=\"\",\"\",HLOOKUP(C256,'MHP Family Income & Rent Limits'!$E$12:$L$26,10,FALSE))","v":""},{"$f":"IF(C256=\"\",\"\",HLOOKUP(C256,'MHP Family Income & Rent Limits'!$E$12:$L$26,11,FALSE))","v":""},{"$f":"IF(C256=\"\",\"\",HLOOKUP(C256,'MHP Family Income & Rent Limits'!$E$12:$L$26,12,FALSE))","v":""},{"$f":"IF(C256=\"\",\"\",HLOOKUP(C256,'MHP Family Income & Rent Limits'!$E$12:$L$26,13,FALSE))","v":""},{"$f":"IF(C256=\"\",\"\",HLOOKUP(C256,'MHP Family Income & Rent Limits'!$E$12:$L$26,14,FALSE))","v":""},{"$f":"IF(C256=\"\",\"\",HLOOKUP(C256,'MHP Family Income & Rent Limits'!$E$12:$L$26,15,FALSE))","v":""}]
[{"$f":"IF('2. Assisted & Restricted Units'!A257=\"\",\"\",'2. Assisted & Restricted Units'!A257)","v":""},{"$f":"IF('2. Assisted & Restricted Units'!B257=\"\",\"\",'2. Assisted & Restricted Units'!B257)","v":""},{"$f":"IF('2. Assisted & Restricted Units'!D257=\"\",\"\",'2. Assisted & Restricted Units'!D257)","v":""},{"$f":"IF('2. Assisted & Restricted Units'!E257=\"\",\"\",'2. Assisted & Restricted Units'!E257)","v":""},{"$f":"IF('2. Assisted & Restricted Units'!H257=\"\",\"\",'2. Assisted & Restricted Units'!H257)","v":""},{"$f":"_xlfn.IFS(E257=\"\",\"\",E257>BO257,$BP$6,E257>BN257,$BO$6,E257>BM257,$BN$6,E257>BL257,$BM$6,E257>BK257,$BL$6,E257>BJ257,$BK$6,E257>BI257,$BJ$6,E257>BH257,$BI$6,E257>BG257,$BH$6,E257>BF257,$BG$6,E257>BE257,$BF$6,E257>BD257,$BE$6,E257>BC257,$BD$6,E257>=0,$BC$6)","v":""},{"$f":"IF('2. Assisted & Restricted Units'!T257=\"\",\"\",'2. Assisted & Restricted Units'!T257)","v":""},{"$f":"IF('2. Assisted & Restricted Units'!I257=\"\",\"\",'2. Assisted & Restricted Units'!I257)","v":""},{"$f":"IF('2. Assisted & Restricted Units'!AP257=\"\",\"\",'2. Assisted & Restricted Units'!AP257)","v":0},{"$f":"IF('2. Assisted & Restricted Units'!AT257=\"\",\"\",'2. Assisted & Restricted Units'!AT257)","v":""},0,{"$f":"IF('2. Assisted & Restricted Units'!AV257=\"\",\"\",'2. Assisted & Restricted Units'!AV257)","v":""},{"$f":"IF('2. Assisted & Restricted Units'!L257=\"\",\"\",'2. Assisted & Restricted Units'!L257)","v":""},{"$f":"IF('2. Assisted & Restricted Units'!M257=\"\",\"\",'2. Assisted & Restricted Units'!M257)","v":""},{"$f":"IF('2. Assisted & Restricted Units'!O257=\"\",\"\",'2. Assisted & Restricted Units'!O257)","v":""},{"$f":"IF('2. Assisted & Restricted Units'!P257=\"\",\"\",'2. Assisted & Restricted Units'!P257)","v":""},{"$f":"IF('2. Assisted & Restricted Units'!Q257=\"\",\"\",'2. Assisted & Restricted Units'!Q257)","v":""},{"$f":"IF('2. Assisted & Restricted Units'!R257=\"\",\"\",'2. Assisted & Restricted Units'!R257)","v":""},{"$f":"IF(A257=\"\",\"\",'1. Checklist & Certification'!$K$1)","v":""},{"$f":"IF(A257=\"\",\"\",'1. Checklist & Certification'!$C$62)","v":""},{"$f":"IF(A257=\"\",\"\",'1. Checklist & Certification'!$K$62)","v":""},{"$f":"IF(A257=\"\",\"\",'1. Checklist & Certification'!$C$6)","v":""},{"$f":"IF(A257=\"\",\"\",'1. Checklist & Certification'!$G$4)","v":""},{"$f":"IF(A257=\"\",\"\",'1. Checklist & Certification'!$C$7)","v":""},{"$f":"IF(A257=\"\",\"\",'1. Checklist & Certification'!$C$8)","v":""},{"$f":"IF(A257=\"\",\"\",'1. Checklist & Certification'!$F$7)","v":""},{"$f":"IF(A257=\"\",\"\",'1. Checklist & Certification'!$F$8)","v":""},{"$f":"IF(A257=\"\",\"\",'1. Checklist & Certification'!$B$9)","v":""},{"$f":"IF(A257=\"\",\"\",'1. Checklist & Certification'!$F$9)","v":""},{"$f":"IF(A257=\"\",\"\",'1. Checklist & Certification'!$C$10)","v":""},{"$f":"IF(A257=\"\",\"\",'1. Checklist & Certification'!$C$11)","v":""},{"$f":"IF(A257=\"\",\"\",'1. Checklist & Certification'!$C$12)","v":""},{"$f":"IF(A257=\"\",\"\",'1. Checklist & Certification'!$B$14)","v":""},{"$f":"IF(A257=\"\",\"\",'1. Checklist & Certification'!$E$14)","v":""},{"$f":"IF(B257=\"\",\"\",'1. Checklist & Certification'!$G$14)","v":""},{"$f":"IF(A257=\"\",\"\",'MHP Family Income & Rent Limits'!$B$3)","v":""},{"$f":"IF(A257=\"\",\"\",'MHP Family Income & Rent Limits'!$J$3)","v":""},{"$f":"IF(A257=\"\",\"\",'MHP Family Income & Rent Limits'!$E$4)","v":""},{"$f":"IF(A257=\"\",\"\",'MHP Family Income & Rent Limits'!$C$7)","v":""},{"$f":"IF(A257=\"\",\"\",'MHP Family Income & Rent Limits'!$F$8)","v":""},{"$f":"IF(A257=\"\",\"\",'1. Checklist & Certification'!$G$4)","v":""},{"$f":"IF(A257=\"\",\"\",'1. Checklist & Certification'!$K$39)","v":""},{"$f":"IF(A257=\"\",\"\",'1. Checklist & Certification'!$K$43)","v":""},{"$f":"IF(A257=\"\",\"\",'1. Checklist & Certification'!$K$45)","v":""},{"$f":"IF(A257=\"\",\"\",'1. Checklist & Certification'!$K$49)","v":""},{"$f":"IF(A257=\"\",\"\",'1. Checklist & Certification'!$E$66)","v":""},{"$f":"IF(A257=\"\",\"\",'1. Checklist & Certification'!$E$67)","v":""},{"$f":"IF(A257=\"\",\"\",'1. Checklist & Certification'!$E$68)","v":""},{"$f":"IF(A257=\"\",\"\",'1. Checklist & Certification'!$G$66)","v":""},{"$f":"IF(A257=\"\",\"\",'1. Checklist & Certification'!$H$66)","v":""},{"$f":"IF(A257=\"\",\"\",'1. Checklist & Certification'!$I$66)","v":""},{"$f":"IF(A257=\"\",\"\",'1. Checklist & Certification'!$I$67)","v":""},{"$f":"IF(A257=\"\",\"\",'1. Checklist & Certification'!$I$68)","v":""},null,{"$f":"IF(C257=\"\",\"\",HLOOKUP(C257,'MHP Family Income & Rent Limits'!$E$12:$L$26,2,FALSE))","v":""},{"$f":"IF(C257=\"\",\"\",HLOOKUP(C257,'MHP Family Income & Rent Limits'!$E$12:$L$26,3,FALSE))","v":""},{"$f":"IF(C257=\"\",\"\",HLOOKUP(C257,'MHP Family Income & Rent Limits'!$E$12:$L$26,4,FALSE))","v":""},{"$f":"IF(C257=\"\",\"\",HLOOKUP(C257,'MHP Family Income & Rent Limits'!$E$12:$L$26,5,FALSE))","v":""},{"$f":"IF(C257=\"\",\"\",HLOOKUP(C257,'MHP Family Income & Rent Limits'!$E$12:$L$26,6,FALSE))","v":""},{"$f":"IF(C257=\"\",\"\",HLOOKUP(C257,'MHP Family Income & Rent Limits'!$E$12:$L$26,7,FALSE))","v":""},{"$f":"IF(C257=\"\",\"\",HLOOKUP(C257,'MHP Family Income & Rent Limits'!$E$12:$L$26,8,FALSE))","v":""},{"$f":"IF(C257=\"\",\"\",HLOOKUP(C257,'MHP Family Income & Rent Limits'!$E$12:$L$26,9,FALSE))","v":""},{"$f":"IF(C257=\"\",\"\",HLOOKUP(C257,'MHP Family Income & Rent Limits'!$E$12:$L$26,10,FALSE))","v":""},{"$f":"IF(C257=\"\",\"\",HLOOKUP(C257,'MHP Family Income & Rent Limits'!$E$12:$L$26,11,FALSE))","v":""},{"$f":"IF(C257=\"\",\"\",HLOOKUP(C257,'MHP Family Income & Rent Limits'!$E$12:$L$26,12,FALSE))","v":""},{"$f":"IF(C257=\"\",\"\",HLOOKUP(C257,'MHP Family Income & Rent Limits'!$E$12:$L$26,13,FALSE))","v":""},{"$f":"IF(C257=\"\",\"\",HLOOKUP(C257,'MHP Family Income & Rent Limits'!$E$12:$L$26,14,FALSE))","v":""},{"$f":"IF(C257=\"\",\"\",HLOOKUP(C257,'MHP Family Income & Rent Limits'!$E$12:$L$26,15,FALSE))","v":""}]
[{"$f":"IF('2. Assisted & Restricted Units'!A258=\"\",\"\",'2. Assisted & Restricted Units'!A258)","v":""},{"$f":"IF('2. Assisted & Restricted Units'!B258=\"\",\"\",'2. Assisted & Restricted Units'!B258)","v":""},{"$f":"IF('2. Assisted & Restricted Units'!D258=\"\",\"\",'2. Assisted & Restricted Units'!D258)","v":""},{"$f":"IF('2. Assisted & Restricted Units'!E258=\"\",\"\",'2. Assisted & Restricted Units'!E258)","v":""},{"$f":"IF('2. Assisted & Restricted Units'!H258=\"\",\"\",'2. Assisted & Restricted Units'!H258)","v":""},{"$f":"_xlfn.IFS(E258=\"\",\"\",E258>BO258,$BP$6,E258>BN258,$BO$6,E258>BM258,$BN$6,E258>BL258,$BM$6,E258>BK258,$BL$6,E258>BJ258,$BK$6,E258>BI258,$BJ$6,E258>BH258,$BI$6,E258>BG258,$BH$6,E258>BF258,$BG$6,E258>BE258,$BF$6,E258>BD258,$BE$6,E258>BC258,$BD$6,E258>=0,$BC$6)","v":""},{"$f":"IF('2. Assisted & Restricted Units'!T258=\"\",\"\",'2. Assisted & Restricted Units'!T258)","v":""},{"$f":"IF('2. Assisted & Restricted Units'!I258=\"\",\"\",'2. Assisted & Restricted Units'!I258)","v":""},{"$f":"IF('2. Assisted & Restricted Units'!AP258=\"\",\"\",'2. Assisted & Restricted Units'!AP258)","v":0},{"$f":"IF('2. Assisted & Restricted Units'!AT258=\"\",\"\",'2. Assisted & Restricted Units'!AT258)","v":""},0,{"$f":"IF('2. Assisted & Restricted Units'!AV258=\"\",\"\",'2. Assisted & Restricted Units'!AV258)","v":""},{"$f":"IF('2. Assisted & Restricted Units'!L258=\"\",\"\",'2. Assisted & Restricted Units'!L258)","v":""},{"$f":"IF('2. Assisted & Restricted Units'!M258=\"\",\"\",'2. Assisted & Restricted Units'!M258)","v":""},{"$f":"IF('2. Assisted & Restricted Units'!O258=\"\",\"\",'2. Assisted & Restricted Units'!O258)","v":""},{"$f":"IF('2. Assisted & Restricted Units'!P258=\"\",\"\",'2. Assisted & Restricted Units'!P258)","v":""},{"$f":"IF('2. Assisted & Restricted Units'!Q258=\"\",\"\",'2. Assisted & Restricted Units'!Q258)","v":""},{"$f":"IF('2. Assisted & Restricted Units'!R258=\"\",\"\",'2. Assisted & Restricted Units'!R258)","v":""},{"$f":"IF(A258=\"\",\"\",'1. Checklist & Certification'!$K$1)","v":""},{"$f":"IF(A258=\"\",\"\",'1. Checklist & Certification'!$C$62)","v":""},{"$f":"IF(A258=\"\",\"\",'1. Checklist & Certification'!$K$62)","v":""},{"$f":"IF(A258=\"\",\"\",'1. Checklist & Certification'!$C$6)","v":""},{"$f":"IF(A258=\"\",\"\",'1. Checklist & Certification'!$G$4)","v":""},{"$f":"IF(A258=\"\",\"\",'1. Checklist & Certification'!$C$7)","v":""},{"$f":"IF(A258=\"\",\"\",'1. Checklist & Certification'!$C$8)","v":""},{"$f":"IF(A258=\"\",\"\",'1. Checklist & Certification'!$F$7)","v":""},{"$f":"IF(A258=\"\",\"\",'1. Checklist & Certification'!$F$8)","v":""},{"$f":"IF(A258=\"\",\"\",'1. Checklist & Certification'!$B$9)","v":""},{"$f":"IF(A258=\"\",\"\",'1. Checklist & Certification'!$F$9)","v":""},{"$f":"IF(A258=\"\",\"\",'1. Checklist & Certification'!$C$10)","v":""},{"$f":"IF(A258=\"\",\"\",'1. Checklist & Certification'!$C$11)","v":""},{"$f":"IF(A258=\"\",\"\",'1. Checklist & Certification'!$C$12)","v":""},{"$f":"IF(A258=\"\",\"\",'1. Checklist & Certification'!$B$14)","v":""},{"$f":"IF(A258=\"\",\"\",'1. Checklist & Certification'!$E$14)","v":""},{"$f":"IF(B258=\"\",\"\",'1. Checklist & Certification'!$G$14)","v":""},{"$f":"IF(A258=\"\",\"\",'MHP Family Income & Rent Limits'!$B$3)","v":""},{"$f":"IF(A258=\"\",\"\",'MHP Family Income & Rent Limits'!$J$3)","v":""},{"$f":"IF(A258=\"\",\"\",'MHP Family Income & Rent Limits'!$E$4)","v":""},{"$f":"IF(A258=\"\",\"\",'MHP Family Income & Rent Limits'!$C$7)","v":""},{"$f":"IF(A258=\"\",\"\",'MHP Family Income & Rent Limits'!$F$8)","v":""},{"$f":"IF(A258=\"\",\"\",'1. Checklist & Certification'!$G$4)","v":""},{"$f":"IF(A258=\"\",\"\",'1. Checklist & Certification'!$K$39)","v":""},{"$f":"IF(A258=\"\",\"\",'1. Checklist & Certification'!$K$43)","v":""},{"$f":"IF(A258=\"\",\"\",'1. Checklist & Certification'!$K$45)","v":""},{"$f":"IF(A258=\"\",\"\",'1. Checklist & Certification'!$K$49)","v":""},{"$f":"IF(A258=\"\",\"\",'1. Checklist & Certification'!$E$66)","v":""},{"$f":"IF(A258=\"\",\"\",'1. Checklist & Certification'!$E$67)","v":""},{"$f":"IF(A258=\"\",\"\",'1. Checklist & Certification'!$E$68)","v":""},{"$f":"IF(A258=\"\",\"\",'1. Checklist & Certification'!$G$66)","v":""},{"$f":"IF(A258=\"\",\"\",'1. Checklist & Certification'!$H$66)","v":""},{"$f":"IF(A258=\"\",\"\",'1. Checklist & Certification'!$I$66)","v":""},{"$f":"IF(A258=\"\",\"\",'1. Checklist & Certification'!$I$67)","v":""},{"$f":"IF(A258=\"\",\"\",'1. Checklist & Certification'!$I$68)","v":""},null,{"$f":"IF(C258=\"\",\"\",HLOOKUP(C258,'MHP Family Income & Rent Limits'!$E$12:$L$26,2,FALSE))","v":""},{"$f":"IF(C258=\"\",\"\",HLOOKUP(C258,'MHP Family Income & Rent Limits'!$E$12:$L$26,3,FALSE))","v":""},{"$f":"IF(C258=\"\",\"\",HLOOKUP(C258,'MHP Family Income & Rent Limits'!$E$12:$L$26,4,FALSE))","v":""},{"$f":"IF(C258=\"\",\"\",HLOOKUP(C258,'MHP Family Income & Rent Limits'!$E$12:$L$26,5,FALSE))","v":""},{"$f":"IF(C258=\"\",\"\",HLOOKUP(C258,'MHP Family Income & Rent Limits'!$E$12:$L$26,6,FALSE))","v":""},{"$f":"IF(C258=\"\",\"\",HLOOKUP(C258,'MHP Family Income & Rent Limits'!$E$12:$L$26,7,FALSE))","v":""},{"$f":"IF(C258=\"\",\"\",HLOOKUP(C258,'MHP Family Income & Rent Limits'!$E$12:$L$26,8,FALSE))","v":""},{"$f":"IF(C258=\"\",\"\",HLOOKUP(C258,'MHP Family Income & Rent Limits'!$E$12:$L$26,9,FALSE))","v":""},{"$f":"IF(C258=\"\",\"\",HLOOKUP(C258,'MHP Family Income & Rent Limits'!$E$12:$L$26,10,FALSE))","v":""},{"$f":"IF(C258=\"\",\"\",HLOOKUP(C258,'MHP Family Income & Rent Limits'!$E$12:$L$26,11,FALSE))","v":""},{"$f":"IF(C258=\"\",\"\",HLOOKUP(C258,'MHP Family Income & Rent Limits'!$E$12:$L$26,12,FALSE))","v":""},{"$f":"IF(C258=\"\",\"\",HLOOKUP(C258,'MHP Family Income & Rent Limits'!$E$12:$L$26,13,FALSE))","v":""},{"$f":"IF(C258=\"\",\"\",HLOOKUP(C258,'MHP Family Income & Rent Limits'!$E$12:$L$26,14,FALSE))","v":""},{"$f":"IF(C258=\"\",\"\",HLOOKUP(C258,'MHP Family Income & Rent Limits'!$E$12:$L$26,15,FALSE))","v":""}]
[{"$f":"IF('2. Assisted & Restricted Units'!A259=\"\",\"\",'2. Assisted & Restricted Units'!A259)","v":""},{"$f":"IF('2. Assisted & Restricted Units'!B259=\"\",\"\",'2. Assisted & Restricted Units'!B259)","v":""},{"$f":"IF('2. Assisted & Restricted Units'!D259=\"\",\"\",'2. Assisted & Restricted Units'!D259)","v":""},{"$f":"IF('2. Assisted & Restricted Units'!E259=\"\",\"\",'2. Assisted & Restricted Units'!E259)","v":""},{"$f":"IF('2. Assisted & Restricted Units'!H259=\"\",\"\",'2. Assisted & Restricted Units'!H259)","v":""},{"$f":"_xlfn.IFS(E259=\"\",\"\",E259>BO259,$BP$6,E259>BN259,$BO$6,E259>BM259,$BN$6,E259>BL259,$BM$6,E259>BK259,$BL$6,E259>BJ259,$BK$6,E259>BI259,$BJ$6,E259>BH259,$BI$6,E259>BG259,$BH$6,E259>BF259,$BG$6,E259>BE259,$BF$6,E259>BD259,$BE$6,E259>BC259,$BD$6,E259>=0,$BC$6)","v":""},{"$f":"IF('2. Assisted & Restricted Units'!T259=\"\",\"\",'2. Assisted & Restricted Units'!T259)","v":""},{"$f":"IF('2. Assisted & Restricted Units'!I259=\"\",\"\",'2. Assisted & Restricted Units'!I259)","v":""},{"$f":"IF('2. Assisted & Restricted Units'!AP259=\"\",\"\",'2. Assisted & Restricted Units'!AP259)","v":0},{"$f":"IF('2. Assisted & Restricted Units'!AT259=\"\",\"\",'2. Assisted & Restricted Units'!AT259)","v":""},0,{"$f":"IF('2. Assisted & Restricted Units'!AV259=\"\",\"\",'2. Assisted & Restricted Units'!AV259)","v":""},{"$f":"IF('2. Assisted & Restricted Units'!L259=\"\",\"\",'2. Assisted & Restricted Units'!L259)","v":""},{"$f":"IF('2. Assisted & Restricted Units'!M259=\"\",\"\",'2. Assisted & Restricted Units'!M259)","v":""},{"$f":"IF('2. Assisted & Restricted Units'!O259=\"\",\"\",'2. Assisted & Restricted Units'!O259)","v":""},{"$f":"IF('2. Assisted & Restricted Units'!P259=\"\",\"\",'2. Assisted & Restricted Units'!P259)","v":""},{"$f":"IF('2. Assisted & Restricted Units'!Q259=\"\",\"\",'2. Assisted & Restricted Units'!Q259)","v":""},{"$f":"IF('2. Assisted & Restricted Units'!R259=\"\",\"\",'2. Assisted & Restricted Units'!R259)","v":""},{"$f":"IF(A259=\"\",\"\",'1. Checklist & Certification'!$K$1)","v":""},{"$f":"IF(A259=\"\",\"\",'1. Checklist & Certification'!$C$62)","v":""},{"$f":"IF(A259=\"\",\"\",'1. Checklist & Certification'!$K$62)","v":""},{"$f":"IF(A259=\"\",\"\",'1. Checklist & Certification'!$C$6)","v":""},{"$f":"IF(A259=\"\",\"\",'1. Checklist & Certification'!$G$4)","v":""},{"$f":"IF(A259=\"\",\"\",'1. Checklist & Certification'!$C$7)","v":""},{"$f":"IF(A259=\"\",\"\",'1. Checklist & Certification'!$C$8)","v":""},{"$f":"IF(A259=\"\",\"\",'1. Checklist & Certification'!$F$7)","v":""},{"$f":"IF(A259=\"\",\"\",'1. Checklist & Certification'!$F$8)","v":""},{"$f":"IF(A259=\"\",\"\",'1. Checklist & Certification'!$B$9)","v":""},{"$f":"IF(A259=\"\",\"\",'1. Checklist & Certification'!$F$9)","v":""},{"$f":"IF(A259=\"\",\"\",'1. Checklist & Certification'!$C$10)","v":""},{"$f":"IF(A259=\"\",\"\",'1. Checklist & Certification'!$C$11)","v":""},{"$f":"IF(A259=\"\",\"\",'1. Checklist & Certification'!$C$12)","v":""},{"$f":"IF(A259=\"\",\"\",'1. Checklist & Certification'!$B$14)","v":""},{"$f":"IF(A259=\"\",\"\",'1. Checklist & Certification'!$E$14)","v":""},{"$f":"IF(B259=\"\",\"\",'1. Checklist & Certification'!$G$14)","v":""},{"$f":"IF(A259=\"\",\"\",'MHP Family Income & Rent Limits'!$B$3)","v":""},{"$f":"IF(A259=\"\",\"\",'MHP Family Income & Rent Limits'!$J$3)","v":""},{"$f":"IF(A259=\"\",\"\",'MHP Family Income & Rent Limits'!$E$4)","v":""},{"$f":"IF(A259=\"\",\"\",'MHP Family Income & Rent Limits'!$C$7)","v":""},{"$f":"IF(A259=\"\",\"\",'MHP Family Income & Rent Limits'!$F$8)","v":""},{"$f":"IF(A259=\"\",\"\",'1. Checklist & Certification'!$G$4)","v":""},{"$f":"IF(A259=\"\",\"\",'1. Checklist & Certification'!$K$39)","v":""},{"$f":"IF(A259=\"\",\"\",'1. Checklist & Certification'!$K$43)","v":""},{"$f":"IF(A259=\"\",\"\",'1. Checklist & Certification'!$K$45)","v":""},{"$f":"IF(A259=\"\",\"\",'1. Checklist & Certification'!$K$49)","v":""},{"$f":"IF(A259=\"\",\"\",'1. Checklist & Certification'!$E$66)","v":""},{"$f":"IF(A259=\"\",\"\",'1. Checklist & Certification'!$E$67)","v":""},{"$f":"IF(A259=\"\",\"\",'1. Checklist & Certification'!$E$68)","v":""},{"$f":"IF(A259=\"\",\"\",'1. Checklist & Certification'!$G$66)","v":""},{"$f":"IF(A259=\"\",\"\",'1. Checklist & Certification'!$H$66)","v":""},{"$f":"IF(A259=\"\",\"\",'1. Checklist & Certification'!$I$66)","v":""},{"$f":"IF(A259=\"\",\"\",'1. Checklist & Certification'!$I$67)","v":""},{"$f":"IF(A259=\"\",\"\",'1. Checklist & Certification'!$I$68)","v":""},null,{"$f":"IF(C259=\"\",\"\",HLOOKUP(C259,'MHP Family Income & Rent Limits'!$E$12:$L$26,2,FALSE))","v":""},{"$f":"IF(C259=\"\",\"\",HLOOKUP(C259,'MHP Family Income & Rent Limits'!$E$12:$L$26,3,FALSE))","v":""},{"$f":"IF(C259=\"\",\"\",HLOOKUP(C259,'MHP Family Income & Rent Limits'!$E$12:$L$26,4,FALSE))","v":""},{"$f":"IF(C259=\"\",\"\",HLOOKUP(C259,'MHP Family Income & Rent Limits'!$E$12:$L$26,5,FALSE))","v":""},{"$f":"IF(C259=\"\",\"\",HLOOKUP(C259,'MHP Family Income & Rent Limits'!$E$12:$L$26,6,FALSE))","v":""},{"$f":"IF(C259=\"\",\"\",HLOOKUP(C259,'MHP Family Income & Rent Limits'!$E$12:$L$26,7,FALSE))","v":""},{"$f":"IF(C259=\"\",\"\",HLOOKUP(C259,'MHP Family Income & Rent Limits'!$E$12:$L$26,8,FALSE))","v":""},{"$f":"IF(C259=\"\",\"\",HLOOKUP(C259,'MHP Family Income & Rent Limits'!$E$12:$L$26,9,FALSE))","v":""},{"$f":"IF(C259=\"\",\"\",HLOOKUP(C259,'MHP Family Income & Rent Limits'!$E$12:$L$26,10,FALSE))","v":""},{"$f":"IF(C259=\"\",\"\",HLOOKUP(C259,'MHP Family Income & Rent Limits'!$E$12:$L$26,11,FALSE))","v":""},{"$f":"IF(C259=\"\",\"\",HLOOKUP(C259,'MHP Family Income & Rent Limits'!$E$12:$L$26,12,FALSE))","v":""},{"$f":"IF(C259=\"\",\"\",HLOOKUP(C259,'MHP Family Income & Rent Limits'!$E$12:$L$26,13,FALSE))","v":""},{"$f":"IF(C259=\"\",\"\",HLOOKUP(C259,'MHP Family Income & Rent Limits'!$E$12:$L$26,14,FALSE))","v":""},{"$f":"IF(C259=\"\",\"\",HLOOKUP(C259,'MHP Family Income & Rent Limits'!$E$12:$L$26,15,FALSE))","v":""}]
[{"$f":"IF('2. Assisted & Restricted Units'!A260=\"\",\"\",'2. Assisted & Restricted Units'!A260)","v":""},{"$f":"IF('2. Assisted & Restricted Units'!B260=\"\",\"\",'2. Assisted & Restricted Units'!B260)","v":""},{"$f":"IF('2. Assisted & Restricted Units'!D260=\"\",\"\",'2. Assisted & Restricted Units'!D260)","v":""},{"$f":"IF('2. Assisted & Restricted Units'!E260=\"\",\"\",'2. Assisted & Restricted Units'!E260)","v":""},{"$f":"IF('2. Assisted & Restricted Units'!H260=\"\",\"\",'2. Assisted & Restricted Units'!H260)","v":""},{"$f":"_xlfn.IFS(E260=\"\",\"\",E260>BO260,$BP$6,E260>BN260,$BO$6,E260>BM260,$BN$6,E260>BL260,$BM$6,E260>BK260,$BL$6,E260>BJ260,$BK$6,E260>BI260,$BJ$6,E260>BH260,$BI$6,E260>BG260,$BH$6,E260>BF260,$BG$6,E260>BE260,$BF$6,E260>BD260,$BE$6,E260>BC260,$BD$6,E260>=0,$BC$6)","v":""},{"$f":"IF('2. Assisted & Restricted Units'!T260=\"\",\"\",'2. Assisted & Restricted Units'!T260)","v":""},{"$f":"IF('2. Assisted & Restricted Units'!I260=\"\",\"\",'2. Assisted & Restricted Units'!I260)","v":""},{"$f":"IF('2. Assisted & Restricted Units'!AP260=\"\",\"\",'2. Assisted & Restricted Units'!AP260)","v":0},{"$f":"IF('2. Assisted & Restricted Units'!AT260=\"\",\"\",'2. Assisted & Restricted Units'!AT260)","v":""},0,{"$f":"IF('2. Assisted & Restricted Units'!AV260=\"\",\"\",'2. Assisted & Restricted Units'!AV260)","v":""},{"$f":"IF('2. Assisted & Restricted Units'!L260=\"\",\"\",'2. Assisted & Restricted Units'!L260)","v":""},{"$f":"IF('2. Assisted & Restricted Units'!M260=\"\",\"\",'2. Assisted & Restricted Units'!M260)","v":""},{"$f":"IF('2. Assisted & Restricted Units'!O260=\"\",\"\",'2. Assisted & Restricted Units'!O260)","v":""},{"$f":"IF('2. Assisted & Restricted Units'!P260=\"\",\"\",'2. Assisted & Restricted Units'!P260)","v":""},{"$f":"IF('2. Assisted & Restricted Units'!Q260=\"\",\"\",'2. Assisted & Restricted Units'!Q260)","v":""},{"$f":"IF('2. Assisted & Restricted Units'!R260=\"\",\"\",'2. Assisted & Restricted Units'!R260)","v":""},{"$f":"IF(A260=\"\",\"\",'1. Checklist & Certification'!$K$1)","v":""},{"$f":"IF(A260=\"\",\"\",'1. Checklist & Certification'!$C$62)","v":""},{"$f":"IF(A260=\"\",\"\",'1. Checklist & Certification'!$K$62)","v":""},{"$f":"IF(A260=\"\",\"\",'1. Checklist & Certification'!$C$6)","v":""},{"$f":"IF(A260=\"\",\"\",'1. Checklist & Certification'!$G$4)","v":""},{"$f":"IF(A260=\"\",\"\",'1. Checklist & Certification'!$C$7)","v":""},{"$f":"IF(A260=\"\",\"\",'1. Checklist & Certification'!$C$8)","v":""},{"$f":"IF(A260=\"\",\"\",'1. Checklist & Certification'!$F$7)","v":""},{"$f":"IF(A260=\"\",\"\",'1. Checklist & Certification'!$F$8)","v":""},{"$f":"IF(A260=\"\",\"\",'1. Checklist & Certification'!$B$9)","v":""},{"$f":"IF(A260=\"\",\"\",'1. Checklist & Certification'!$F$9)","v":""},{"$f":"IF(A260=\"\",\"\",'1. Checklist & Certification'!$C$10)","v":""},{"$f":"IF(A260=\"\",\"\",'1. Checklist & Certification'!$C$11)","v":""},{"$f":"IF(A260=\"\",\"\",'1. Checklist & Certification'!$C$12)","v":""},{"$f":"IF(A260=\"\",\"\",'1. Checklist & Certification'!$B$14)","v":""},{"$f":"IF(A260=\"\",\"\",'1. Checklist & Certification'!$E$14)","v":""},{"$f":"IF(B260=\"\",\"\",'1. Checklist & Certification'!$G$14)","v":""},{"$f":"IF(A260=\"\",\"\",'MHP Family Income & Rent Limits'!$B$3)","v":""},{"$f":"IF(A260=\"\",\"\",'MHP Family Income & Rent Limits'!$J$3)","v":""},{"$f":"IF(A260=\"\",\"\",'MHP Family Income & Rent Limits'!$E$4)","v":""},{"$f":"IF(A260=\"\",\"\",'MHP Family Income & Rent Limits'!$C$7)","v":""},{"$f":"IF(A260=\"\",\"\",'MHP Family Income & Rent Limits'!$F$8)","v":""},{"$f":"IF(A260=\"\",\"\",'1. Checklist & Certification'!$G$4)","v":""},{"$f":"IF(A260=\"\",\"\",'1. Checklist & Certification'!$K$39)","v":""},{"$f":"IF(A260=\"\",\"\",'1. Checklist & Certification'!$K$43)","v":""},{"$f":"IF(A260=\"\",\"\",'1. Checklist & Certification'!$K$45)","v":""},{"$f":"IF(A260=\"\",\"\",'1. Checklist & Certification'!$K$49)","v":""},{"$f":"IF(A260=\"\",\"\",'1. Checklist & Certification'!$E$66)","v":""},{"$f":"IF(A260=\"\",\"\",'1. Checklist & Certification'!$E$67)","v":""},{"$f":"IF(A260=\"\",\"\",'1. Checklist & Certification'!$E$68)","v":""},{"$f":"IF(A260=\"\",\"\",'1. Checklist & Certification'!$G$66)","v":""},{"$f":"IF(A260=\"\",\"\",'1. Checklist & Certification'!$H$66)","v":""},{"$f":"IF(A260=\"\",\"\",'1. Checklist & Certification'!$I$66)","v":""},{"$f":"IF(A260=\"\",\"\",'1. Checklist & Certification'!$I$67)","v":""},{"$f":"IF(A260=\"\",\"\",'1. Checklist & Certification'!$I$68)","v":""},null,{"$f":"IF(C260=\"\",\"\",HLOOKUP(C260,'MHP Family Income & Rent Limits'!$E$12:$L$26,2,FALSE))","v":""},{"$f":"IF(C260=\"\",\"\",HLOOKUP(C260,'MHP Family Income & Rent Limits'!$E$12:$L$26,3,FALSE))","v":""},{"$f":"IF(C260=\"\",\"\",HLOOKUP(C260,'MHP Family Income & Rent Limits'!$E$12:$L$26,4,FALSE))","v":""},{"$f":"IF(C260=\"\",\"\",HLOOKUP(C260,'MHP Family Income & Rent Limits'!$E$12:$L$26,5,FALSE))","v":""},{"$f":"IF(C260=\"\",\"\",HLOOKUP(C260,'MHP Family Income & Rent Limits'!$E$12:$L$26,6,FALSE))","v":""},{"$f":"IF(C260=\"\",\"\",HLOOKUP(C260,'MHP Family Income & Rent Limits'!$E$12:$L$26,7,FALSE))","v":""},{"$f":"IF(C260=\"\",\"\",HLOOKUP(C260,'MHP Family Income & Rent Limits'!$E$12:$L$26,8,FALSE))","v":""},{"$f":"IF(C260=\"\",\"\",HLOOKUP(C260,'MHP Family Income & Rent Limits'!$E$12:$L$26,9,FALSE))","v":""},{"$f":"IF(C260=\"\",\"\",HLOOKUP(C260,'MHP Family Income & Rent Limits'!$E$12:$L$26,10,FALSE))","v":""},{"$f":"IF(C260=\"\",\"\",HLOOKUP(C260,'MHP Family Income & Rent Limits'!$E$12:$L$26,11,FALSE))","v":""},{"$f":"IF(C260=\"\",\"\",HLOOKUP(C260,'MHP Family Income & Rent Limits'!$E$12:$L$26,12,FALSE))","v":""},{"$f":"IF(C260=\"\",\"\",HLOOKUP(C260,'MHP Family Income & Rent Limits'!$E$12:$L$26,13,FALSE))","v":""},{"$f":"IF(C260=\"\",\"\",HLOOKUP(C260,'MHP Family Income & Rent Limits'!$E$12:$L$26,14,FALSE))","v":""},{"$f":"IF(C260=\"\",\"\",HLOOKUP(C260,'MHP Family Income & Rent Limits'!$E$12:$L$26,15,FALSE))","v":""}]
[{"$f":"IF('2. Assisted & Restricted Units'!A261=\"\",\"\",'2. Assisted & Restricted Units'!A261)","v":""},{"$f":"IF('2. Assisted & Restricted Units'!B261=\"\",\"\",'2. Assisted & Restricted Units'!B261)","v":""},{"$f":"IF('2. Assisted & Restricted Units'!D261=\"\",\"\",'2. Assisted & Restricted Units'!D261)","v":""},{"$f":"IF('2. Assisted & Restricted Units'!E261=\"\",\"\",'2. Assisted & Restricted Units'!E261)","v":""},{"$f":"IF('2. Assisted & Restricted Units'!H261=\"\",\"\",'2. Assisted & Restricted Units'!H261)","v":""},{"$f":"_xlfn.IFS(E261=\"\",\"\",E261>BO261,$BP$6,E261>BN261,$BO$6,E261>BM261,$BN$6,E261>BL261,$BM$6,E261>BK261,$BL$6,E261>BJ261,$BK$6,E261>BI261,$BJ$6,E261>BH261,$BI$6,E261>BG261,$BH$6,E261>BF261,$BG$6,E261>BE261,$BF$6,E261>BD261,$BE$6,E261>BC261,$BD$6,E261>=0,$BC$6)","v":""},{"$f":"IF('2. Assisted & Restricted Units'!T261=\"\",\"\",'2. Assisted & Restricted Units'!T261)","v":""},{"$f":"IF('2. Assisted & Restricted Units'!I261=\"\",\"\",'2. Assisted & Restricted Units'!I261)","v":""},{"$f":"IF('2. Assisted & Restricted Units'!AP261=\"\",\"\",'2. Assisted & Restricted Units'!AP261)","v":0},{"$f":"IF('2. Assisted & Restricted Units'!AT261=\"\",\"\",'2. Assisted & Restricted Units'!AT261)","v":""},0,{"$f":"IF('2. Assisted & Restricted Units'!AV261=\"\",\"\",'2. Assisted & Restricted Units'!AV261)","v":""},{"$f":"IF('2. Assisted & Restricted Units'!L261=\"\",\"\",'2. Assisted & Restricted Units'!L261)","v":""},{"$f":"IF('2. Assisted & Restricted Units'!M261=\"\",\"\",'2. Assisted & Restricted Units'!M261)","v":""},{"$f":"IF('2. Assisted & Restricted Units'!O261=\"\",\"\",'2. Assisted & Restricted Units'!O261)","v":""},{"$f":"IF('2. Assisted & Restricted Units'!P261=\"\",\"\",'2. Assisted & Restricted Units'!P261)","v":""},{"$f":"IF('2. Assisted & Restricted Units'!Q261=\"\",\"\",'2. Assisted & Restricted Units'!Q261)","v":""},{"$f":"IF('2. Assisted & Restricted Units'!R261=\"\",\"\",'2. Assisted & Restricted Units'!R261)","v":""},{"$f":"IF(A261=\"\",\"\",'1. Checklist & Certification'!$K$1)","v":""},{"$f":"IF(A261=\"\",\"\",'1. Checklist & Certification'!$C$62)","v":""},{"$f":"IF(A261=\"\",\"\",'1. Checklist & Certification'!$K$62)","v":""},{"$f":"IF(A261=\"\",\"\",'1. Checklist & Certification'!$C$6)","v":""},{"$f":"IF(A261=\"\",\"\",'1. Checklist & Certification'!$G$4)","v":""},{"$f":"IF(A261=\"\",\"\",'1. Checklist & Certification'!$C$7)","v":""},{"$f":"IF(A261=\"\",\"\",'1. Checklist & Certification'!$C$8)","v":""},{"$f":"IF(A261=\"\",\"\",'1. Checklist & Certification'!$F$7)","v":""},{"$f":"IF(A261=\"\",\"\",'1. Checklist & Certification'!$F$8)","v":""},{"$f":"IF(A261=\"\",\"\",'1. Checklist & Certification'!$B$9)","v":""},{"$f":"IF(A261=\"\",\"\",'1. Checklist & Certification'!$F$9)","v":""},{"$f":"IF(A261=\"\",\"\",'1. Checklist & Certification'!$C$10)","v":""},{"$f":"IF(A261=\"\",\"\",'1. Checklist & Certification'!$C$11)","v":""},{"$f":"IF(A261=\"\",\"\",'1. Checklist & Certification'!$C$12)","v":""},{"$f":"IF(A261=\"\",\"\",'1. Checklist & Certification'!$B$14)","v":""},{"$f":"IF(A261=\"\",\"\",'1. Checklist & Certification'!$E$14)","v":""},{"$f":"IF(B261=\"\",\"\",'1. Checklist & Certification'!$G$14)","v":""},{"$f":"IF(A261=\"\",\"\",'MHP Family Income & Rent Limits'!$B$3)","v":""},{"$f":"IF(A261=\"\",\"\",'MHP Family Income & Rent Limits'!$J$3)","v":""},{"$f":"IF(A261=\"\",\"\",'MHP Family Income & Rent Limits'!$E$4)","v":""},{"$f":"IF(A261=\"\",\"\",'MHP Family Income & Rent Limits'!$C$7)","v":""},{"$f":"IF(A261=\"\",\"\",'MHP Family Income & Rent Limits'!$F$8)","v":""},{"$f":"IF(A261=\"\",\"\",'1. Checklist & Certification'!$G$4)","v":""},{"$f":"IF(A261=\"\",\"\",'1. Checklist & Certification'!$K$39)","v":""},{"$f":"IF(A261=\"\",\"\",'1. Checklist & Certification'!$K$43)","v":""},{"$f":"IF(A261=\"\",\"\",'1. Checklist & Certification'!$K$45)","v":""},{"$f":"IF(A261=\"\",\"\",'1. Checklist & Certification'!$K$49)","v":""},{"$f":"IF(A261=\"\",\"\",'1. Checklist & Certification'!$E$66)","v":""},{"$f":"IF(A261=\"\",\"\",'1. Checklist & Certification'!$E$67)","v":""},{"$f":"IF(A261=\"\",\"\",'1. Checklist & Certification'!$E$68)","v":""},{"$f":"IF(A261=\"\",\"\",'1. Checklist & Certification'!$G$66)","v":""},{"$f":"IF(A261=\"\",\"\",'1. Checklist & Certification'!$H$66)","v":""},{"$f":"IF(A261=\"\",\"\",'1. Checklist & Certification'!$I$66)","v":""},{"$f":"IF(A261=\"\",\"\",'1. Checklist & Certification'!$I$67)","v":""},{"$f":"IF(A261=\"\",\"\",'1. Checklist & Certification'!$I$68)","v":""},null,{"$f":"IF(C261=\"\",\"\",HLOOKUP(C261,'MHP Family Income & Rent Limits'!$E$12:$L$26,2,FALSE))","v":""},{"$f":"IF(C261=\"\",\"\",HLOOKUP(C261,'MHP Family Income & Rent Limits'!$E$12:$L$26,3,FALSE))","v":""},{"$f":"IF(C261=\"\",\"\",HLOOKUP(C261,'MHP Family Income & Rent Limits'!$E$12:$L$26,4,FALSE))","v":""},{"$f":"IF(C261=\"\",\"\",HLOOKUP(C261,'MHP Family Income & Rent Limits'!$E$12:$L$26,5,FALSE))","v":""},{"$f":"IF(C261=\"\",\"\",HLOOKUP(C261,'MHP Family Income & Rent Limits'!$E$12:$L$26,6,FALSE))","v":""},{"$f":"IF(C261=\"\",\"\",HLOOKUP(C261,'MHP Family Income & Rent Limits'!$E$12:$L$26,7,FALSE))","v":""},{"$f":"IF(C261=\"\",\"\",HLOOKUP(C261,'MHP Family Income & Rent Limits'!$E$12:$L$26,8,FALSE))","v":""},{"$f":"IF(C261=\"\",\"\",HLOOKUP(C261,'MHP Family Income & Rent Limits'!$E$12:$L$26,9,FALSE))","v":""},{"$f":"IF(C261=\"\",\"\",HLOOKUP(C261,'MHP Family Income & Rent Limits'!$E$12:$L$26,10,FALSE))","v":""},{"$f":"IF(C261=\"\",\"\",HLOOKUP(C261,'MHP Family Income & Rent Limits'!$E$12:$L$26,11,FALSE))","v":""},{"$f":"IF(C261=\"\",\"\",HLOOKUP(C261,'MHP Family Income & Rent Limits'!$E$12:$L$26,12,FALSE))","v":""},{"$f":"IF(C261=\"\",\"\",HLOOKUP(C261,'MHP Family Income & Rent Limits'!$E$12:$L$26,13,FALSE))","v":""},{"$f":"IF(C261=\"\",\"\",HLOOKUP(C261,'MHP Family Income & Rent Limits'!$E$12:$L$26,14,FALSE))","v":""},{"$f":"IF(C261=\"\",\"\",HLOOKUP(C261,'MHP Family Income & Rent Limits'!$E$12:$L$26,15,FALSE))","v":""}]
[{"$f":"IF('2. Assisted & Restricted Units'!A262=\"\",\"\",'2. Assisted & Restricted Units'!A262)","v":""},{"$f":"IF('2. Assisted & Restricted Units'!B262=\"\",\"\",'2. Assisted & Restricted Units'!B262)","v":""},{"$f":"IF('2. Assisted & Restricted Units'!D262=\"\",\"\",'2. Assisted & Restricted Units'!D262)","v":""},{"$f":"IF('2. Assisted & Restricted Units'!E262=\"\",\"\",'2. Assisted & Restricted Units'!E262)","v":""},{"$f":"IF('2. Assisted & Restricted Units'!H262=\"\",\"\",'2. Assisted & Restricted Units'!H262)","v":""},{"$f":"_xlfn.IFS(E262=\"\",\"\",E262>BO262,$BP$6,E262>BN262,$BO$6,E262>BM262,$BN$6,E262>BL262,$BM$6,E262>BK262,$BL$6,E262>BJ262,$BK$6,E262>BI262,$BJ$6,E262>BH262,$BI$6,E262>BG262,$BH$6,E262>BF262,$BG$6,E262>BE262,$BF$6,E262>BD262,$BE$6,E262>BC262,$BD$6,E262>=0,$BC$6)","v":""},{"$f":"IF('2. Assisted & Restricted Units'!T262=\"\",\"\",'2. Assisted & Restricted Units'!T262)","v":""},{"$f":"IF('2. Assisted & Restricted Units'!I262=\"\",\"\",'2. Assisted & Restricted Units'!I262)","v":""},{"$f":"IF('2. Assisted & Restricted Units'!AP262=\"\",\"\",'2. Assisted & Restricted Units'!AP262)","v":0},{"$f":"IF('2. Assisted & Restricted Units'!AT262=\"\",\"\",'2. Assisted & Restricted Units'!AT262)","v":""},0,{"$f":"IF('2. Assisted & Restricted Units'!AV262=\"\",\"\",'2. Assisted & Restricted Units'!AV262)","v":""},{"$f":"IF('2. Assisted & Restricted Units'!L262=\"\",\"\",'2. Assisted & Restricted Units'!L262)","v":""},{"$f":"IF('2. Assisted & Restricted Units'!M262=\"\",\"\",'2. Assisted & Restricted Units'!M262)","v":""},{"$f":"IF('2. Assisted & Restricted Units'!O262=\"\",\"\",'2. Assisted & Restricted Units'!O262)","v":""},{"$f":"IF('2. Assisted & Restricted Units'!P262=\"\",\"\",'2. Assisted & Restricted Units'!P262)","v":""},{"$f":"IF('2. Assisted & Restricted Units'!Q262=\"\",\"\",'2. Assisted & Restricted Units'!Q262)","v":""},{"$f":"IF('2. Assisted & Restricted Units'!R262=\"\",\"\",'2. Assisted & Restricted Units'!R262)","v":""},{"$f":"IF(A262=\"\",\"\",'1. Checklist & Certification'!$K$1)","v":""},{"$f":"IF(A262=\"\",\"\",'1. Checklist & Certification'!$C$62)","v":""},{"$f":"IF(A262=\"\",\"\",'1. Checklist & Certification'!$K$62)","v":""},{"$f":"IF(A262=\"\",\"\",'1. Checklist & Certification'!$C$6)","v":""},{"$f":"IF(A262=\"\",\"\",'1. Checklist & Certification'!$G$4)","v":""},{"$f":"IF(A262=\"\",\"\",'1. Checklist & Certification'!$C$7)","v":""},{"$f":"IF(A262=\"\",\"\",'1. Checklist & Certification'!$C$8)","v":""},{"$f":"IF(A262=\"\",\"\",'1. Checklist & Certification'!$F$7)","v":""},{"$f":"IF(A262=\"\",\"\",'1. Checklist & Certification'!$F$8)","v":""},{"$f":"IF(A262=\"\",\"\",'1. Checklist & Certification'!$B$9)","v":""},{"$f":"IF(A262=\"\",\"\",'1. Checklist & Certification'!$F$9)","v":""},{"$f":"IF(A262=\"\",\"\",'1. Checklist & Certification'!$C$10)","v":""},{"$f":"IF(A262=\"\",\"\",'1. Checklist & Certification'!$C$11)","v":""},{"$f":"IF(A262=\"\",\"\",'1. Checklist & Certification'!$C$12)","v":""},{"$f":"IF(A262=\"\",\"\",'1. Checklist & Certification'!$B$14)","v":""},{"$f":"IF(A262=\"\",\"\",'1. Checklist & Certification'!$E$14)","v":""},{"$f":"IF(B262=\"\",\"\",'1. Checklist & Certification'!$G$14)","v":""},{"$f":"IF(A262=\"\",\"\",'MHP Family Income & Rent Limits'!$B$3)","v":""},{"$f":"IF(A262=\"\",\"\",'MHP Family Income & Rent Limits'!$J$3)","v":""},{"$f":"IF(A262=\"\",\"\",'MHP Family Income & Rent Limits'!$E$4)","v":""},{"$f":"IF(A262=\"\",\"\",'MHP Family Income & Rent Limits'!$C$7)","v":""},{"$f":"IF(A262=\"\",\"\",'MHP Family Income & Rent Limits'!$F$8)","v":""},{"$f":"IF(A262=\"\",\"\",'1. Checklist & Certification'!$G$4)","v":""},{"$f":"IF(A262=\"\",\"\",'1. Checklist & Certification'!$K$39)","v":""},{"$f":"IF(A262=\"\",\"\",'1. Checklist & Certification'!$K$43)","v":""},{"$f":"IF(A262=\"\",\"\",'1. Checklist & Certification'!$K$45)","v":""},{"$f":"IF(A262=\"\",\"\",'1. Checklist & Certification'!$K$49)","v":""},{"$f":"IF(A262=\"\",\"\",'1. Checklist & Certification'!$E$66)","v":""},{"$f":"IF(A262=\"\",\"\",'1. Checklist & Certification'!$E$67)","v":""},{"$f":"IF(A262=\"\",\"\",'1. Checklist & Certification'!$E$68)","v":""},{"$f":"IF(A262=\"\",\"\",'1. Checklist & Certification'!$G$66)","v":""},{"$f":"IF(A262=\"\",\"\",'1. Checklist & Certification'!$H$66)","v":""},{"$f":"IF(A262=\"\",\"\",'1. Checklist & Certification'!$I$66)","v":""},{"$f":"IF(A262=\"\",\"\",'1. Checklist & Certification'!$I$67)","v":""},{"$f":"IF(A262=\"\",\"\",'1. Checklist & Certification'!$I$68)","v":""},null,{"$f":"IF(C262=\"\",\"\",HLOOKUP(C262,'MHP Family Income & Rent Limits'!$E$12:$L$26,2,FALSE))","v":""},{"$f":"IF(C262=\"\",\"\",HLOOKUP(C262,'MHP Family Income & Rent Limits'!$E$12:$L$26,3,FALSE))","v":""},{"$f":"IF(C262=\"\",\"\",HLOOKUP(C262,'MHP Family Income & Rent Limits'!$E$12:$L$26,4,FALSE))","v":""},{"$f":"IF(C262=\"\",\"\",HLOOKUP(C262,'MHP Family Income & Rent Limits'!$E$12:$L$26,5,FALSE))","v":""},{"$f":"IF(C262=\"\",\"\",HLOOKUP(C262,'MHP Family Income & Rent Limits'!$E$12:$L$26,6,FALSE))","v":""},{"$f":"IF(C262=\"\",\"\",HLOOKUP(C262,'MHP Family Income & Rent Limits'!$E$12:$L$26,7,FALSE))","v":""},{"$f":"IF(C262=\"\",\"\",HLOOKUP(C262,'MHP Family Income & Rent Limits'!$E$12:$L$26,8,FALSE))","v":""},{"$f":"IF(C262=\"\",\"\",HLOOKUP(C262,'MHP Family Income & Rent Limits'!$E$12:$L$26,9,FALSE))","v":""},{"$f":"IF(C262=\"\",\"\",HLOOKUP(C262,'MHP Family Income & Rent Limits'!$E$12:$L$26,10,FALSE))","v":""},{"$f":"IF(C262=\"\",\"\",HLOOKUP(C262,'MHP Family Income & Rent Limits'!$E$12:$L$26,11,FALSE))","v":""},{"$f":"IF(C262=\"\",\"\",HLOOKUP(C262,'MHP Family Income & Rent Limits'!$E$12:$L$26,12,FALSE))","v":""},{"$f":"IF(C262=\"\",\"\",HLOOKUP(C262,'MHP Family Income & Rent Limits'!$E$12:$L$26,13,FALSE))","v":""},{"$f":"IF(C262=\"\",\"\",HLOOKUP(C262,'MHP Family Income & Rent Limits'!$E$12:$L$26,14,FALSE))","v":""},{"$f":"IF(C262=\"\",\"\",HLOOKUP(C262,'MHP Family Income & Rent Limits'!$E$12:$L$26,15,FALSE))","v":""}]
[{"$f":"IF('2. Assisted & Restricted Units'!A263=\"\",\"\",'2. Assisted & Restricted Units'!A263)","v":""},{"$f":"IF('2. Assisted & Restricted Units'!B263=\"\",\"\",'2. Assisted & Restricted Units'!B263)","v":""},{"$f":"IF('2. Assisted & Restricted Units'!D263=\"\",\"\",'2. Assisted & Restricted Units'!D263)","v":""},{"$f":"IF('2. Assisted & Restricted Units'!E263=\"\",\"\",'2. Assisted & Restricted Units'!E263)","v":""},{"$f":"IF('2. Assisted & Restricted Units'!H263=\"\",\"\",'2. Assisted & Restricted Units'!H263)","v":""},{"$f":"_xlfn.IFS(E263=\"\",\"\",E263>BO263,$BP$6,E263>BN263,$BO$6,E263>BM263,$BN$6,E263>BL263,$BM$6,E263>BK263,$BL$6,E263>BJ263,$BK$6,E263>BI263,$BJ$6,E263>BH263,$BI$6,E263>BG263,$BH$6,E263>BF263,$BG$6,E263>BE263,$BF$6,E263>BD263,$BE$6,E263>BC263,$BD$6,E263>=0,$BC$6)","v":""},{"$f":"IF('2. Assisted & Restricted Units'!T263=\"\",\"\",'2. Assisted & Restricted Units'!T263)","v":""},{"$f":"IF('2. Assisted & Restricted Units'!I263=\"\",\"\",'2. Assisted & Restricted Units'!I263)","v":""},{"$f":"IF('2. Assisted & Restricted Units'!AP263=\"\",\"\",'2. Assisted & Restricted Units'!AP263)","v":0},{"$f":"IF('2. Assisted & Restricted Units'!AT263=\"\",\"\",'2. Assisted & Restricted Units'!AT263)","v":""},0,{"$f":"IF('2. Assisted & Restricted Units'!AV263=\"\",\"\",'2. Assisted & Restricted Units'!AV263)","v":""},{"$f":"IF('2. Assisted & Restricted Units'!L263=\"\",\"\",'2. Assisted & Restricted Units'!L263)","v":""},{"$f":"IF('2. Assisted & Restricted Units'!M263=\"\",\"\",'2. Assisted & Restricted Units'!M263)","v":""},{"$f":"IF('2. Assisted & Restricted Units'!O263=\"\",\"\",'2. Assisted & Restricted Units'!O263)","v":""},{"$f":"IF('2. Assisted & Restricted Units'!P263=\"\",\"\",'2. Assisted & Restricted Units'!P263)","v":""},{"$f":"IF('2. Assisted & Restricted Units'!Q263=\"\",\"\",'2. Assisted & Restricted Units'!Q263)","v":""},{"$f":"IF('2. Assisted & Restricted Units'!R263=\"\",\"\",'2. Assisted & Restricted Units'!R263)","v":""},{"$f":"IF(A263=\"\",\"\",'1. Checklist & Certification'!$K$1)","v":""},{"$f":"IF(A263=\"\",\"\",'1. Checklist & Certification'!$C$62)","v":""},{"$f":"IF(A263=\"\",\"\",'1. Checklist & Certification'!$K$62)","v":""},{"$f":"IF(A263=\"\",\"\",'1. Checklist & Certification'!$C$6)","v":""},{"$f":"IF(A263=\"\",\"\",'1. Checklist & Certification'!$G$4)","v":""},{"$f":"IF(A263=\"\",\"\",'1. Checklist & Certification'!$C$7)","v":""},{"$f":"IF(A263=\"\",\"\",'1. Checklist & Certification'!$C$8)","v":""},{"$f":"IF(A263=\"\",\"\",'1. Checklist & Certification'!$F$7)","v":""},{"$f":"IF(A263=\"\",\"\",'1. Checklist & Certification'!$F$8)","v":""},{"$f":"IF(A263=\"\",\"\",'1. Checklist & Certification'!$B$9)","v":""},{"$f":"IF(A263=\"\",\"\",'1. Checklist & Certification'!$F$9)","v":""},{"$f":"IF(A263=\"\",\"\",'1. Checklist & Certification'!$C$10)","v":""},{"$f":"IF(A263=\"\",\"\",'1. Checklist & Certification'!$C$11)","v":""},{"$f":"IF(A263=\"\",\"\",'1. Checklist & Certification'!$C$12)","v":""},{"$f":"IF(A263=\"\",\"\",'1. Checklist & Certification'!$B$14)","v":""},{"$f":"IF(A263=\"\",\"\",'1. Checklist & Certification'!$E$14)","v":""},{"$f":"IF(B263=\"\",\"\",'1. Checklist & Certification'!$G$14)","v":""},{"$f":"IF(A263=\"\",\"\",'MHP Family Income & Rent Limits'!$B$3)","v":""},{"$f":"IF(A263=\"\",\"\",'MHP Family Income & Rent Limits'!$J$3)","v":""},{"$f":"IF(A263=\"\",\"\",'MHP Family Income & Rent Limits'!$E$4)","v":""},{"$f":"IF(A263=\"\",\"\",'MHP Family Income & Rent Limits'!$C$7)","v":""},{"$f":"IF(A263=\"\",\"\",'MHP Family Income & Rent Limits'!$F$8)","v":""},{"$f":"IF(A263=\"\",\"\",'1. Checklist & Certification'!$G$4)","v":""},{"$f":"IF(A263=\"\",\"\",'1. Checklist & Certification'!$K$39)","v":""},{"$f":"IF(A263=\"\",\"\",'1. Checklist & Certification'!$K$43)","v":""},{"$f":"IF(A263=\"\",\"\",'1. Checklist & Certification'!$K$45)","v":""},{"$f":"IF(A263=\"\",\"\",'1. Checklist & Certification'!$K$49)","v":""},{"$f":"IF(A263=\"\",\"\",'1. Checklist & Certification'!$E$66)","v":""},{"$f":"IF(A263=\"\",\"\",'1. Checklist & Certification'!$E$67)","v":""},{"$f":"IF(A263=\"\",\"\",'1. Checklist & Certification'!$E$68)","v":""},{"$f":"IF(A263=\"\",\"\",'1. Checklist & Certification'!$G$66)","v":""},{"$f":"IF(A263=\"\",\"\",'1. Checklist & Certification'!$H$66)","v":""},{"$f":"IF(A263=\"\",\"\",'1. Checklist & Certification'!$I$66)","v":""},{"$f":"IF(A263=\"\",\"\",'1. Checklist & Certification'!$I$67)","v":""},{"$f":"IF(A263=\"\",\"\",'1. Checklist & Certification'!$I$68)","v":""},null,{"$f":"IF(C263=\"\",\"\",HLOOKUP(C263,'MHP Family Income & Rent Limits'!$E$12:$L$26,2,FALSE))","v":""},{"$f":"IF(C263=\"\",\"\",HLOOKUP(C263,'MHP Family Income & Rent Limits'!$E$12:$L$26,3,FALSE))","v":""},{"$f":"IF(C263=\"\",\"\",HLOOKUP(C263,'MHP Family Income & Rent Limits'!$E$12:$L$26,4,FALSE))","v":""},{"$f":"IF(C263=\"\",\"\",HLOOKUP(C263,'MHP Family Income & Rent Limits'!$E$12:$L$26,5,FALSE))","v":""},{"$f":"IF(C263=\"\",\"\",HLOOKUP(C263,'MHP Family Income & Rent Limits'!$E$12:$L$26,6,FALSE))","v":""},{"$f":"IF(C263=\"\",\"\",HLOOKUP(C263,'MHP Family Income & Rent Limits'!$E$12:$L$26,7,FALSE))","v":""},{"$f":"IF(C263=\"\",\"\",HLOOKUP(C263,'MHP Family Income & Rent Limits'!$E$12:$L$26,8,FALSE))","v":""},{"$f":"IF(C263=\"\",\"\",HLOOKUP(C263,'MHP Family Income & Rent Limits'!$E$12:$L$26,9,FALSE))","v":""},{"$f":"IF(C263=\"\",\"\",HLOOKUP(C263,'MHP Family Income & Rent Limits'!$E$12:$L$26,10,FALSE))","v":""},{"$f":"IF(C263=\"\",\"\",HLOOKUP(C263,'MHP Family Income & Rent Limits'!$E$12:$L$26,11,FALSE))","v":""},{"$f":"IF(C263=\"\",\"\",HLOOKUP(C263,'MHP Family Income & Rent Limits'!$E$12:$L$26,12,FALSE))","v":""},{"$f":"IF(C263=\"\",\"\",HLOOKUP(C263,'MHP Family Income & Rent Limits'!$E$12:$L$26,13,FALSE))","v":""},{"$f":"IF(C263=\"\",\"\",HLOOKUP(C263,'MHP Family Income & Rent Limits'!$E$12:$L$26,14,FALSE))","v":""},{"$f":"IF(C263=\"\",\"\",HLOOKUP(C263,'MHP Family Income & Rent Limits'!$E$12:$L$26,15,FALSE))","v":""}]
[{"$f":"IF('2. Assisted & Restricted Units'!A264=\"\",\"\",'2. Assisted & Restricted Units'!A264)","v":""},{"$f":"IF('2. Assisted & Restricted Units'!B264=\"\",\"\",'2. Assisted & Restricted Units'!B264)","v":""},{"$f":"IF('2. Assisted & Restricted Units'!D264=\"\",\"\",'2. Assisted & Restricted Units'!D264)","v":""},{"$f":"IF('2. Assisted & Restricted Units'!E264=\"\",\"\",'2. Assisted & Restricted Units'!E264)","v":""},{"$f":"IF('2. Assisted & Restricted Units'!H264=\"\",\"\",'2. Assisted & Restricted Units'!H264)","v":""},{"$f":"_xlfn.IFS(E264=\"\",\"\",E264>BO264,$BP$6,E264>BN264,$BO$6,E264>BM264,$BN$6,E264>BL264,$BM$6,E264>BK264,$BL$6,E264>BJ264,$BK$6,E264>BI264,$BJ$6,E264>BH264,$BI$6,E264>BG264,$BH$6,E264>BF264,$BG$6,E264>BE264,$BF$6,E264>BD264,$BE$6,E264>BC264,$BD$6,E264>=0,$BC$6)","v":""},{"$f":"IF('2. Assisted & Restricted Units'!T264=\"\",\"\",'2. Assisted & Restricted Units'!T264)","v":""},{"$f":"IF('2. Assisted & Restricted Units'!I264=\"\",\"\",'2. Assisted & Restricted Units'!I264)","v":""},{"$f":"IF('2. Assisted & Restricted Units'!AP264=\"\",\"\",'2. Assisted & Restricted Units'!AP264)","v":0},{"$f":"IF('2. Assisted & Restricted Units'!AT264=\"\",\"\",'2. Assisted & Restricted Units'!AT264)","v":""},{"$f":"SUM(H264:J264)","v":0},{"$f":"IF('2. Assisted & Restricted Units'!AV264=\"\",\"\",'2. Assisted & Restricted Units'!AV264)","v":""},{"$f":"IF('2. Assisted & Restricted Units'!L264=\"\",\"\",'2. Assisted & Restricted Units'!L264)","v":""},{"$f":"IF('2. Assisted & Restricted Units'!M264=\"\",\"\",'2. Assisted & Restricted Units'!M264)","v":""},{"$f":"IF('2. Assisted & Restricted Units'!O264=\"\",\"\",'2. Assisted & Restricted Units'!O264)","v":""},{"$f":"IF('2. Assisted & Restricted Units'!P264=\"\",\"\",'2. Assisted & Restricted Units'!P264)","v":""},{"$f":"IF('2. Assisted & Restricted Units'!Q264=\"\",\"\",'2. Assisted & Restricted Units'!Q264)","v":""},{"$f":"IF('2. Assisted & Restricted Units'!R264=\"\",\"\",'2. Assisted & Restricted Units'!R264)","v":""},{"$f":"IF(A264=\"\",\"\",'1. Checklist & Certification'!$K$1)","v":""},{"$f":"IF(A264=\"\",\"\",'1. Checklist & Certification'!$C$62)","v":""},{"$f":"IF(A264=\"\",\"\",'1. Checklist & Certification'!$K$62)","v":""},{"$f":"IF(A264=\"\",\"\",'1. Checklist & Certification'!$C$6)","v":""},{"$f":"IF(A264=\"\",\"\",'1. Checklist & Certification'!$G$4)","v":""},{"$f":"IF(A264=\"\",\"\",'1. Checklist & Certification'!$C$7)","v":""},{"$f":"IF(A264=\"\",\"\",'1. Checklist & Certification'!$C$8)","v":""},{"$f":"IF(A264=\"\",\"\",'1. Checklist & Certification'!$F$7)","v":""},{"$f":"IF(A264=\"\",\"\",'1. Checklist & Certification'!$F$8)","v":""},{"$f":"IF(A264=\"\",\"\",'1. Checklist & Certification'!$B$9)","v":""},{"$f":"IF(A264=\"\",\"\",'1. Checklist & Certification'!$F$9)","v":""},{"$f":"IF(A264=\"\",\"\",'1. Checklist & Certification'!$C$10)","v":""},{"$f":"IF(A264=\"\",\"\",'1. Checklist & Certification'!$C$11)","v":""},{"$f":"IF(A264=\"\",\"\",'1. Checklist & Certification'!$C$12)","v":""},{"$f":"IF(A264=\"\",\"\",'1. Checklist & Certification'!$B$14)","v":""},{"$f":"IF(A264=\"\",\"\",'1. Checklist & Certification'!$E$14)","v":""},{"$f":"IF(B264=\"\",\"\",'1. Checklist & Certification'!$G$14)","v":""},{"$f":"IF(A264=\"\",\"\",'MHP Family Income & Rent Limits'!$B$3)","v":""},{"$f":"IF(A264=\"\",\"\",'MHP Family Income & Rent Limits'!$J$3)","v":""},{"$f":"IF(A264=\"\",\"\",'MHP Family Income & Rent Limits'!$E$4)","v":""},{"$f":"IF(A264=\"\",\"\",'MHP Family Income & Rent Limits'!$C$7)","v":""},{"$f":"IF(A264=\"\",\"\",'MHP Family Income & Rent Limits'!$F$8)","v":""},{"$f":"IF(A264=\"\",\"\",'1. Checklist & Certification'!$G$4)","v":""},{"$f":"IF(A264=\"\",\"\",'1. Checklist & Certification'!$K$39)","v":""},{"$f":"IF(A264=\"\",\"\",'1. Checklist & Certification'!$K$43)","v":""},{"$f":"IF(A264=\"\",\"\",'1. Checklist & Certification'!$K$45)","v":""},{"$f":"IF(A264=\"\",\"\",'1. Checklist & Certification'!$K$49)","v":""},{"$f":"IF(A264=\"\",\"\",'1. Checklist & Certification'!$E$66)","v":""},{"$f":"IF(A264=\"\",\"\",'1. Checklist & Certification'!$E$67)","v":""},{"$f":"IF(A264=\"\",\"\",'1. Checklist & Certification'!$E$68)","v":""},{"$f":"IF(A264=\"\",\"\",'1. Checklist & Certification'!$G$66)","v":""},{"$f":"IF(A264=\"\",\"\",'1. Checklist & Certification'!$H$66)","v":""},{"$f":"IF(A264=\"\",\"\",'1. Checklist & Certification'!$I$66)","v":""},{"$f":"IF(A264=\"\",\"\",'1. Checklist & Certification'!$I$67)","v":""},{"$f":"IF(A264=\"\",\"\",'1. Checklist & Certification'!$I$68)","v":""},null,{"$f":"IF(C264=\"\",\"\",HLOOKUP(C264,'MHP Family Income & Rent Limits'!$E$12:$L$26,2,FALSE))","v":""},{"$f":"IF(C264=\"\",\"\",HLOOKUP(C264,'MHP Family Income & Rent Limits'!$E$12:$L$26,3,FALSE))","v":""},{"$f":"IF(C264=\"\",\"\",HLOOKUP(C264,'MHP Family Income & Rent Limits'!$E$12:$L$26,4,FALSE))","v":""},{"$f":"IF(C264=\"\",\"\",HLOOKUP(C264,'MHP Family Income & Rent Limits'!$E$12:$L$26,5,FALSE))","v":""},{"$f":"IF(C264=\"\",\"\",HLOOKUP(C264,'MHP Family Income & Rent Limits'!$E$12:$L$26,6,FALSE))","v":""},{"$f":"IF(C264=\"\",\"\",HLOOKUP(C264,'MHP Family Income & Rent Limits'!$E$12:$L$26,7,FALSE))","v":""},{"$f":"IF(C264=\"\",\"\",HLOOKUP(C264,'MHP Family Income & Rent Limits'!$E$12:$L$26,8,FALSE))","v":""},{"$f":"IF(C264=\"\",\"\",HLOOKUP(C264,'MHP Family Income & Rent Limits'!$E$12:$L$26,9,FALSE))","v":""},{"$f":"IF(C264=\"\",\"\",HLOOKUP(C264,'MHP Family Income & Rent Limits'!$E$12:$L$26,10,FALSE))","v":""},{"$f":"IF(C264=\"\",\"\",HLOOKUP(C264,'MHP Family Income & Rent Limits'!$E$12:$L$26,11,FALSE))","v":""},{"$f":"IF(C264=\"\",\"\",HLOOKUP(C264,'MHP Family Income & Rent Limits'!$E$12:$L$26,12,FALSE))","v":""},{"$f":"IF(C264=\"\",\"\",HLOOKUP(C264,'MHP Family Income & Rent Limits'!$E$12:$L$26,13,FALSE))","v":""},{"$f":"IF(C264=\"\",\"\",HLOOKUP(C264,'MHP Family Income & Rent Limits'!$E$12:$L$26,14,FALSE))","v":""},{"$f":"IF(C264=\"\",\"\",HLOOKUP(C264,'MHP Family Income & Rent Limits'!$E$12:$L$26,15,FALSE))","v":""}]
[{"$f":"IF('2. Assisted & Restricted Units'!A265=\"\",\"\",'2. Assisted & Restricted Units'!A265)","v":""},{"$f":"IF('2. Assisted & Restricted Units'!B265=\"\",\"\",'2. Assisted & Restricted Units'!B265)","v":""},{"$f":"IF('2. Assisted & Restricted Units'!D265=\"\",\"\",'2. Assisted & Restricted Units'!D265)","v":""},{"$f":"IF('2. Assisted & Restricted Units'!E265=\"\",\"\",'2. Assisted & Restricted Units'!E265)","v":""},{"$f":"IF('2. Assisted & Restricted Units'!H265=\"\",\"\",'2. Assisted & Restricted Units'!H265)","v":""},{"$f":"_xlfn.IFS(E265=\"\",\"\",E265>BO265,$BP$6,E265>BN265,$BO$6,E265>BM265,$BN$6,E265>BL265,$BM$6,E265>BK265,$BL$6,E265>BJ265,$BK$6,E265>BI265,$BJ$6,E265>BH265,$BI$6,E265>BG265,$BH$6,E265>BF265,$BG$6,E265>BE265,$BF$6,E265>BD265,$BE$6,E265>BC265,$BD$6,E265>=0,$BC$6)","v":""},{"$f":"IF('2. Assisted & Restricted Units'!T265=\"\",\"\",'2. Assisted & Restricted Units'!T265)","v":""},{"$f":"IF('2. Assisted & Restricted Units'!I265=\"\",\"\",'2. Assisted & Restricted Units'!I265)","v":""},{"$f":"IF('2. Assisted & Restricted Units'!AP265=\"\",\"\",'2. Assisted & Restricted Units'!AP265)","v":0},{"$f":"IF('2. Assisted & Restricted Units'!AT265=\"\",\"\",'2. Assisted & Restricted Units'!AT265)","v":""},0,{"$f":"IF('2. Assisted & Restricted Units'!AV265=\"\",\"\",'2. Assisted & Restricted Units'!AV265)","v":""},{"$f":"IF('2. Assisted & Restricted Units'!L265=\"\",\"\",'2. Assisted & Restricted Units'!L265)","v":""},{"$f":"IF('2. Assisted & Restricted Units'!M265=\"\",\"\",'2. Assisted & Restricted Units'!M265)","v":""},{"$f":"IF('2. Assisted & Restricted Units'!O265=\"\",\"\",'2. Assisted & Restricted Units'!O265)","v":""},{"$f":"IF('2. Assisted & Restricted Units'!P265=\"\",\"\",'2. Assisted & Restricted Units'!P265)","v":""},{"$f":"IF('2. Assisted & Restricted Units'!Q265=\"\",\"\",'2. Assisted & Restricted Units'!Q265)","v":""},{"$f":"IF('2. Assisted & Restricted Units'!R265=\"\",\"\",'2. Assisted & Restricted Units'!R265)","v":""},{"$f":"IF(A265=\"\",\"\",'1. Checklist & Certification'!$K$1)","v":""},{"$f":"IF(A265=\"\",\"\",'1. Checklist & Certification'!$C$62)","v":""},{"$f":"IF(A265=\"\",\"\",'1. Checklist & Certification'!$K$62)","v":""},{"$f":"IF(A265=\"\",\"\",'1. Checklist & Certification'!$C$6)","v":""},{"$f":"IF(A265=\"\",\"\",'1. Checklist & Certification'!$G$4)","v":""},{"$f":"IF(A265=\"\",\"\",'1. Checklist & Certification'!$C$7)","v":""},{"$f":"IF(A265=\"\",\"\",'1. Checklist & Certification'!$C$8)","v":""},{"$f":"IF(A265=\"\",\"\",'1. Checklist & Certification'!$F$7)","v":""},{"$f":"IF(A265=\"\",\"\",'1. Checklist & Certification'!$F$8)","v":""},{"$f":"IF(A265=\"\",\"\",'1. Checklist & Certification'!$B$9)","v":""},{"$f":"IF(A265=\"\",\"\",'1. Checklist & Certification'!$F$9)","v":""},{"$f":"IF(A265=\"\",\"\",'1. Checklist & Certification'!$C$10)","v":""},{"$f":"IF(A265=\"\",\"\",'1. Checklist & Certification'!$C$11)","v":""},{"$f":"IF(A265=\"\",\"\",'1. Checklist & Certification'!$C$12)","v":""},{"$f":"IF(A265=\"\",\"\",'1. Checklist & Certification'!$B$14)","v":""},{"$f":"IF(A265=\"\",\"\",'1. Checklist & Certification'!$E$14)","v":""},{"$f":"IF(B265=\"\",\"\",'1. Checklist & Certification'!$G$14)","v":""},{"$f":"IF(A265=\"\",\"\",'MHP Family Income & Rent Limits'!$B$3)","v":""},{"$f":"IF(A265=\"\",\"\",'MHP Family Income & Rent Limits'!$J$3)","v":""},{"$f":"IF(A265=\"\",\"\",'MHP Family Income & Rent Limits'!$E$4)","v":""},{"$f":"IF(A265=\"\",\"\",'MHP Family Income & Rent Limits'!$C$7)","v":""},{"$f":"IF(A265=\"\",\"\",'MHP Family Income & Rent Limits'!$F$8)","v":""},{"$f":"IF(A265=\"\",\"\",'1. Checklist & Certification'!$G$4)","v":""},{"$f":"IF(A265=\"\",\"\",'1. Checklist & Certification'!$K$39)","v":""},{"$f":"IF(A265=\"\",\"\",'1. Checklist & Certification'!$K$43)","v":""},{"$f":"IF(A265=\"\",\"\",'1. Checklist & Certification'!$K$45)","v":""},{"$f":"IF(A265=\"\",\"\",'1. Checklist & Certification'!$K$49)","v":""},{"$f":"IF(A265=\"\",\"\",'1. Checklist & Certification'!$E$66)","v":""},{"$f":"IF(A265=\"\",\"\",'1. Checklist & Certification'!$E$67)","v":""},{"$f":"IF(A265=\"\",\"\",'1. Checklist & Certification'!$E$68)","v":""},{"$f":"IF(A265=\"\",\"\",'1. Checklist & Certification'!$G$66)","v":""},{"$f":"IF(A265=\"\",\"\",'1. Checklist & Certification'!$H$66)","v":""},{"$f":"IF(A265=\"\",\"\",'1. Checklist & Certification'!$I$66)","v":""},{"$f":"IF(A265=\"\",\"\",'1. Checklist & Certification'!$I$67)","v":""},{"$f":"IF(A265=\"\",\"\",'1. Checklist & Certification'!$I$68)","v":""},null,{"$f":"IF(C265=\"\",\"\",HLOOKUP(C265,'MHP Family Income & Rent Limits'!$E$12:$L$26,2,FALSE))","v":""},{"$f":"IF(C265=\"\",\"\",HLOOKUP(C265,'MHP Family Income & Rent Limits'!$E$12:$L$26,3,FALSE))","v":""},{"$f":"IF(C265=\"\",\"\",HLOOKUP(C265,'MHP Family Income & Rent Limits'!$E$12:$L$26,4,FALSE))","v":""},{"$f":"IF(C265=\"\",\"\",HLOOKUP(C265,'MHP Family Income & Rent Limits'!$E$12:$L$26,5,FALSE))","v":""},{"$f":"IF(C265=\"\",\"\",HLOOKUP(C265,'MHP Family Income & Rent Limits'!$E$12:$L$26,6,FALSE))","v":""},{"$f":"IF(C265=\"\",\"\",HLOOKUP(C265,'MHP Family Income & Rent Limits'!$E$12:$L$26,7,FALSE))","v":""},{"$f":"IF(C265=\"\",\"\",HLOOKUP(C265,'MHP Family Income & Rent Limits'!$E$12:$L$26,8,FALSE))","v":""},{"$f":"IF(C265=\"\",\"\",HLOOKUP(C265,'MHP Family Income & Rent Limits'!$E$12:$L$26,9,FALSE))","v":""},{"$f":"IF(C265=\"\",\"\",HLOOKUP(C265,'MHP Family Income & Rent Limits'!$E$12:$L$26,10,FALSE))","v":""},{"$f":"IF(C265=\"\",\"\",HLOOKUP(C265,'MHP Family Income & Rent Limits'!$E$12:$L$26,11,FALSE))","v":""},{"$f":"IF(C265=\"\",\"\",HLOOKUP(C265,'MHP Family Income & Rent Limits'!$E$12:$L$26,12,FALSE))","v":""},{"$f":"IF(C265=\"\",\"\",HLOOKUP(C265,'MHP Family Income & Rent Limits'!$E$12:$L$26,13,FALSE))","v":""},{"$f":"IF(C265=\"\",\"\",HLOOKUP(C265,'MHP Family Income & Rent Limits'!$E$12:$L$26,14,FALSE))","v":""},{"$f":"IF(C265=\"\",\"\",HLOOKUP(C265,'MHP Family Income & Rent Limits'!$E$12:$L$26,15,FALSE))","v":""}]
[{"$f":"IF('2. Assisted & Restricted Units'!A266=\"\",\"\",'2. Assisted & Restricted Units'!A266)","v":""},{"$f":"IF('2. Assisted & Restricted Units'!B266=\"\",\"\",'2. Assisted & Restricted Units'!B266)","v":""},{"$f":"IF('2. Assisted & Restricted Units'!D266=\"\",\"\",'2. Assisted & Restricted Units'!D266)","v":""},{"$f":"IF('2. Assisted & Restricted Units'!E266=\"\",\"\",'2. Assisted & Restricted Units'!E266)","v":""},{"$f":"IF('2. Assisted & Restricted Units'!H266=\"\",\"\",'2. Assisted & Restricted Units'!H266)","v":""},{"$f":"_xlfn.IFS(E266=\"\",\"\",E266>BO266,$BP$6,E266>BN266,$BO$6,E266>BM266,$BN$6,E266>BL266,$BM$6,E266>BK266,$BL$6,E266>BJ266,$BK$6,E266>BI266,$BJ$6,E266>BH266,$BI$6,E266>BG266,$BH$6,E266>BF266,$BG$6,E266>BE266,$BF$6,E266>BD266,$BE$6,E266>BC266,$BD$6,E266>=0,$BC$6)","v":""},{"$f":"IF('2. Assisted & Restricted Units'!T266=\"\",\"\",'2. Assisted & Restricted Units'!T266)","v":""},{"$f":"IF('2. Assisted & Restricted Units'!I266=\"\",\"\",'2. Assisted & Restricted Units'!I266)","v":""},{"$f":"IF('2. Assisted & Restricted Units'!AP266=\"\",\"\",'2. Assisted & Restricted Units'!AP266)","v":0},{"$f":"IF('2. Assisted & Restricted Units'!AT266=\"\",\"\",'2. Assisted & Restricted Units'!AT266)","v":""},0,{"$f":"IF('2. Assisted & Restricted Units'!AV266=\"\",\"\",'2. Assisted & Restricted Units'!AV266)","v":""},{"$f":"IF('2. Assisted & Restricted Units'!L266=\"\",\"\",'2. Assisted & Restricted Units'!L266)","v":""},{"$f":"IF('2. Assisted & Restricted Units'!M266=\"\",\"\",'2. Assisted & Restricted Units'!M266)","v":""},{"$f":"IF('2. Assisted & Restricted Units'!O266=\"\",\"\",'2. Assisted & Restricted Units'!O266)","v":""},{"$f":"IF('2. Assisted & Restricted Units'!P266=\"\",\"\",'2. Assisted & Restricted Units'!P266)","v":""},{"$f":"IF('2. Assisted & Restricted Units'!Q266=\"\",\"\",'2. Assisted & Restricted Units'!Q266)","v":""},{"$f":"IF('2. Assisted & Restricted Units'!R266=\"\",\"\",'2. Assisted & Restricted Units'!R266)","v":""},{"$f":"IF(A266=\"\",\"\",'1. Checklist & Certification'!$K$1)","v":""},{"$f":"IF(A266=\"\",\"\",'1. Checklist & Certification'!$C$62)","v":""},{"$f":"IF(A266=\"\",\"\",'1. Checklist & Certification'!$K$62)","v":""},{"$f":"IF(A266=\"\",\"\",'1. Checklist & Certification'!$C$6)","v":""},{"$f":"IF(A266=\"\",\"\",'1. Checklist & Certification'!$G$4)","v":""},{"$f":"IF(A266=\"\",\"\",'1. Checklist & Certification'!$C$7)","v":""},{"$f":"IF(A266=\"\",\"\",'1. Checklist & Certification'!$C$8)","v":""},{"$f":"IF(A266=\"\",\"\",'1. Checklist & Certification'!$F$7)","v":""},{"$f":"IF(A266=\"\",\"\",'1. Checklist & Certification'!$F$8)","v":""},{"$f":"IF(A266=\"\",\"\",'1. Checklist & Certification'!$B$9)","v":""},{"$f":"IF(A266=\"\",\"\",'1. Checklist & Certification'!$F$9)","v":""},{"$f":"IF(A266=\"\",\"\",'1. Checklist & Certification'!$C$10)","v":""},{"$f":"IF(A266=\"\",\"\",'1. Checklist & Certification'!$C$11)","v":""},{"$f":"IF(A266=\"\",\"\",'1. Checklist & Certification'!$C$12)","v":""},{"$f":"IF(A266=\"\",\"\",'1. Checklist & Certification'!$B$14)","v":""},{"$f":"IF(A266=\"\",\"\",'1. Checklist & Certification'!$E$14)","v":""},{"$f":"IF(B266=\"\",\"\",'1. Checklist & Certification'!$G$14)","v":""},{"$f":"IF(A266=\"\",\"\",'MHP Family Income & Rent Limits'!$B$3)","v":""},{"$f":"IF(A266=\"\",\"\",'MHP Family Income & Rent Limits'!$J$3)","v":""},{"$f":"IF(A266=\"\",\"\",'MHP Family Income & Rent Limits'!$E$4)","v":""},{"$f":"IF(A266=\"\",\"\",'MHP Family Income & Rent Limits'!$C$7)","v":""},{"$f":"IF(A266=\"\",\"\",'MHP Family Income & Rent Limits'!$F$8)","v":""},{"$f":"IF(A266=\"\",\"\",'1. Checklist & Certification'!$G$4)","v":""},{"$f":"IF(A266=\"\",\"\",'1. Checklist & Certification'!$K$39)","v":""},{"$f":"IF(A266=\"\",\"\",'1. Checklist & Certification'!$K$43)","v":""},{"$f":"IF(A266=\"\",\"\",'1. Checklist & Certification'!$K$45)","v":""},{"$f":"IF(A266=\"\",\"\",'1. Checklist & Certification'!$K$49)","v":""},{"$f":"IF(A266=\"\",\"\",'1. Checklist & Certification'!$E$66)","v":""},{"$f":"IF(A266=\"\",\"\",'1. Checklist & Certification'!$E$67)","v":""},{"$f":"IF(A266=\"\",\"\",'1. Checklist & Certification'!$E$68)","v":""},{"$f":"IF(A266=\"\",\"\",'1. Checklist & Certification'!$G$66)","v":""},{"$f":"IF(A266=\"\",\"\",'1. Checklist & Certification'!$H$66)","v":""},{"$f":"IF(A266=\"\",\"\",'1. Checklist & Certification'!$I$66)","v":""},{"$f":"IF(A266=\"\",\"\",'1. Checklist & Certification'!$I$67)","v":""},{"$f":"IF(A266=\"\",\"\",'1. Checklist & Certification'!$I$68)","v":""},null,{"$f":"IF(C266=\"\",\"\",HLOOKUP(C266,'MHP Family Income & Rent Limits'!$E$12:$L$26,2,FALSE))","v":""},{"$f":"IF(C266=\"\",\"\",HLOOKUP(C266,'MHP Family Income & Rent Limits'!$E$12:$L$26,3,FALSE))","v":""},{"$f":"IF(C266=\"\",\"\",HLOOKUP(C266,'MHP Family Income & Rent Limits'!$E$12:$L$26,4,FALSE))","v":""},{"$f":"IF(C266=\"\",\"\",HLOOKUP(C266,'MHP Family Income & Rent Limits'!$E$12:$L$26,5,FALSE))","v":""},{"$f":"IF(C266=\"\",\"\",HLOOKUP(C266,'MHP Family Income & Rent Limits'!$E$12:$L$26,6,FALSE))","v":""},{"$f":"IF(C266=\"\",\"\",HLOOKUP(C266,'MHP Family Income & Rent Limits'!$E$12:$L$26,7,FALSE))","v":""},{"$f":"IF(C266=\"\",\"\",HLOOKUP(C266,'MHP Family Income & Rent Limits'!$E$12:$L$26,8,FALSE))","v":""},{"$f":"IF(C266=\"\",\"\",HLOOKUP(C266,'MHP Family Income & Rent Limits'!$E$12:$L$26,9,FALSE))","v":""},{"$f":"IF(C266=\"\",\"\",HLOOKUP(C266,'MHP Family Income & Rent Limits'!$E$12:$L$26,10,FALSE))","v":""},{"$f":"IF(C266=\"\",\"\",HLOOKUP(C266,'MHP Family Income & Rent Limits'!$E$12:$L$26,11,FALSE))","v":""},{"$f":"IF(C266=\"\",\"\",HLOOKUP(C266,'MHP Family Income & Rent Limits'!$E$12:$L$26,12,FALSE))","v":""},{"$f":"IF(C266=\"\",\"\",HLOOKUP(C266,'MHP Family Income & Rent Limits'!$E$12:$L$26,13,FALSE))","v":""},{"$f":"IF(C266=\"\",\"\",HLOOKUP(C266,'MHP Family Income & Rent Limits'!$E$12:$L$26,14,FALSE))","v":""},{"$f":"IF(C266=\"\",\"\",HLOOKUP(C266,'MHP Family Income & Rent Limits'!$E$12:$L$26,15,FALSE))","v":""}]
[{"$f":"IF('2. Assisted & Restricted Units'!A267=\"\",\"\",'2. Assisted & Restricted Units'!A267)","v":""},{"$f":"IF('2. Assisted & Restricted Units'!B267=\"\",\"\",'2. Assisted & Restricted Units'!B267)","v":""},{"$f":"IF('2. Assisted & Restricted Units'!D267=\"\",\"\",'2. Assisted & Restricted Units'!D267)","v":""},{"$f":"IF('2. Assisted & Restricted Units'!E267=\"\",\"\",'2. Assisted & Restricted Units'!E267)","v":""},{"$f":"IF('2. Assisted & Restricted Units'!H267=\"\",\"\",'2. Assisted & Restricted Units'!H267)","v":""},{"$f":"_xlfn.IFS(E267=\"\",\"\",E267>BO267,$BP$6,E267>BN267,$BO$6,E267>BM267,$BN$6,E267>BL267,$BM$6,E267>BK267,$BL$6,E267>BJ267,$BK$6,E267>BI267,$BJ$6,E267>BH267,$BI$6,E267>BG267,$BH$6,E267>BF267,$BG$6,E267>BE267,$BF$6,E267>BD267,$BE$6,E267>BC267,$BD$6,E267>=0,$BC$6)","v":""},{"$f":"IF('2. Assisted & Restricted Units'!T267=\"\",\"\",'2. Assisted & Restricted Units'!T267)","v":""},{"$f":"IF('2. Assisted & Restricted Units'!I267=\"\",\"\",'2. Assisted & Restricted Units'!I267)","v":""},{"$f":"IF('2. Assisted & Restricted Units'!AP267=\"\",\"\",'2. Assisted & Restricted Units'!AP267)","v":0},{"$f":"IF('2. Assisted & Restricted Units'!AT267=\"\",\"\",'2. Assisted & Restricted Units'!AT267)","v":""},0,{"$f":"IF('2. Assisted & Restricted Units'!AV267=\"\",\"\",'2. Assisted & Restricted Units'!AV267)","v":""},{"$f":"IF('2. Assisted & Restricted Units'!L267=\"\",\"\",'2. Assisted & Restricted Units'!L267)","v":""},{"$f":"IF('2. Assisted & Restricted Units'!M267=\"\",\"\",'2. Assisted & Restricted Units'!M267)","v":""},{"$f":"IF('2. Assisted & Restricted Units'!O267=\"\",\"\",'2. Assisted & Restricted Units'!O267)","v":""},{"$f":"IF('2. Assisted & Restricted Units'!P267=\"\",\"\",'2. Assisted & Restricted Units'!P267)","v":""},{"$f":"IF('2. Assisted & Restricted Units'!Q267=\"\",\"\",'2. Assisted & Restricted Units'!Q267)","v":""},{"$f":"IF('2. Assisted & Restricted Units'!R267=\"\",\"\",'2. Assisted & Restricted Units'!R267)","v":""},{"$f":"IF(A267=\"\",\"\",'1. Checklist & Certification'!$K$1)","v":""},{"$f":"IF(A267=\"\",\"\",'1. Checklist & Certification'!$C$62)","v":""},{"$f":"IF(A267=\"\",\"\",'1. Checklist & Certification'!$K$62)","v":""},{"$f":"IF(A267=\"\",\"\",'1. Checklist & Certification'!$C$6)","v":""},{"$f":"IF(A267=\"\",\"\",'1. Checklist & Certification'!$G$4)","v":""},{"$f":"IF(A267=\"\",\"\",'1. Checklist & Certification'!$C$7)","v":""},{"$f":"IF(A267=\"\",\"\",'1. Checklist & Certification'!$C$8)","v":""},{"$f":"IF(A267=\"\",\"\",'1. Checklist & Certification'!$F$7)","v":""},{"$f":"IF(A267=\"\",\"\",'1. Checklist & Certification'!$F$8)","v":""},{"$f":"IF(A267=\"\",\"\",'1. Checklist & Certification'!$B$9)","v":""},{"$f":"IF(A267=\"\",\"\",'1. Checklist & Certification'!$F$9)","v":""},{"$f":"IF(A267=\"\",\"\",'1. Checklist & Certification'!$C$10)","v":""},{"$f":"IF(A267=\"\",\"\",'1. Checklist & Certification'!$C$11)","v":""},{"$f":"IF(A267=\"\",\"\",'1. Checklist & Certification'!$C$12)","v":""},{"$f":"IF(A267=\"\",\"\",'1. Checklist & Certification'!$B$14)","v":""},{"$f":"IF(A267=\"\",\"\",'1. Checklist & Certification'!$E$14)","v":""},{"$f":"IF(B267=\"\",\"\",'1. Checklist & Certification'!$G$14)","v":""},{"$f":"IF(A267=\"\",\"\",'MHP Family Income & Rent Limits'!$B$3)","v":""},{"$f":"IF(A267=\"\",\"\",'MHP Family Income & Rent Limits'!$J$3)","v":""},{"$f":"IF(A267=\"\",\"\",'MHP Family Income & Rent Limits'!$E$4)","v":""},{"$f":"IF(A267=\"\",\"\",'MHP Family Income & Rent Limits'!$C$7)","v":""},{"$f":"IF(A267=\"\",\"\",'MHP Family Income & Rent Limits'!$F$8)","v":""},{"$f":"IF(A267=\"\",\"\",'1. Checklist & Certification'!$G$4)","v":""},{"$f":"IF(A267=\"\",\"\",'1. Checklist & Certification'!$K$39)","v":""},{"$f":"IF(A267=\"\",\"\",'1. Checklist & Certification'!$K$43)","v":""},{"$f":"IF(A267=\"\",\"\",'1. Checklist & Certification'!$K$45)","v":""},{"$f":"IF(A267=\"\",\"\",'1. Checklist & Certification'!$K$49)","v":""},{"$f":"IF(A267=\"\",\"\",'1. Checklist & Certification'!$E$66)","v":""},{"$f":"IF(A267=\"\",\"\",'1. Checklist & Certification'!$E$67)","v":""},{"$f":"IF(A267=\"\",\"\",'1. Checklist & Certification'!$E$68)","v":""},{"$f":"IF(A267=\"\",\"\",'1. Checklist & Certification'!$G$66)","v":""},{"$f":"IF(A267=\"\",\"\",'1. Checklist & Certification'!$H$66)","v":""},{"$f":"IF(A267=\"\",\"\",'1. Checklist & Certification'!$I$66)","v":""},{"$f":"IF(A267=\"\",\"\",'1. Checklist & Certification'!$I$67)","v":""},{"$f":"IF(A267=\"\",\"\",'1. Checklist & Certification'!$I$68)","v":""},null,{"$f":"IF(C267=\"\",\"\",HLOOKUP(C267,'MHP Family Income & Rent Limits'!$E$12:$L$26,2,FALSE))","v":""},{"$f":"IF(C267=\"\",\"\",HLOOKUP(C267,'MHP Family Income & Rent Limits'!$E$12:$L$26,3,FALSE))","v":""},{"$f":"IF(C267=\"\",\"\",HLOOKUP(C267,'MHP Family Income & Rent Limits'!$E$12:$L$26,4,FALSE))","v":""},{"$f":"IF(C267=\"\",\"\",HLOOKUP(C267,'MHP Family Income & Rent Limits'!$E$12:$L$26,5,FALSE))","v":""},{"$f":"IF(C267=\"\",\"\",HLOOKUP(C267,'MHP Family Income & Rent Limits'!$E$12:$L$26,6,FALSE))","v":""},{"$f":"IF(C267=\"\",\"\",HLOOKUP(C267,'MHP Family Income & Rent Limits'!$E$12:$L$26,7,FALSE))","v":""},{"$f":"IF(C267=\"\",\"\",HLOOKUP(C267,'MHP Family Income & Rent Limits'!$E$12:$L$26,8,FALSE))","v":""},{"$f":"IF(C267=\"\",\"\",HLOOKUP(C267,'MHP Family Income & Rent Limits'!$E$12:$L$26,9,FALSE))","v":""},{"$f":"IF(C267=\"\",\"\",HLOOKUP(C267,'MHP Family Income & Rent Limits'!$E$12:$L$26,10,FALSE))","v":""},{"$f":"IF(C267=\"\",\"\",HLOOKUP(C267,'MHP Family Income & Rent Limits'!$E$12:$L$26,11,FALSE))","v":""},{"$f":"IF(C267=\"\",\"\",HLOOKUP(C267,'MHP Family Income & Rent Limits'!$E$12:$L$26,12,FALSE))","v":""},{"$f":"IF(C267=\"\",\"\",HLOOKUP(C267,'MHP Family Income & Rent Limits'!$E$12:$L$26,13,FALSE))","v":""},{"$f":"IF(C267=\"\",\"\",HLOOKUP(C267,'MHP Family Income & Rent Limits'!$E$12:$L$26,14,FALSE))","v":""},{"$f":"IF(C267=\"\",\"\",HLOOKUP(C267,'MHP Family Income & Rent Limits'!$E$12:$L$26,15,FALSE))","v":""}]
[{"$f":"IF('2. Assisted & Restricted Units'!A268=\"\",\"\",'2. Assisted & Restricted Units'!A268)","v":""},{"$f":"IF('2. Assisted & Restricted Units'!B268=\"\",\"\",'2. Assisted & Restricted Units'!B268)","v":""},{"$f":"IF('2. Assisted & Restricted Units'!D268=\"\",\"\",'2. Assisted & Restricted Units'!D268)","v":""},{"$f":"IF('2. Assisted & Restricted Units'!E268=\"\",\"\",'2. Assisted & Restricted Units'!E268)","v":""},{"$f":"IF('2. Assisted & Restricted Units'!H268=\"\",\"\",'2. Assisted & Restricted Units'!H268)","v":""},{"$f":"_xlfn.IFS(E268=\"\",\"\",E268>BO268,$BP$6,E268>BN268,$BO$6,E268>BM268,$BN$6,E268>BL268,$BM$6,E268>BK268,$BL$6,E268>BJ268,$BK$6,E268>BI268,$BJ$6,E268>BH268,$BI$6,E268>BG268,$BH$6,E268>BF268,$BG$6,E268>BE268,$BF$6,E268>BD268,$BE$6,E268>BC268,$BD$6,E268>=0,$BC$6)","v":""},{"$f":"IF('2. Assisted & Restricted Units'!T268=\"\",\"\",'2. Assisted & Restricted Units'!T268)","v":""},{"$f":"IF('2. Assisted & Restricted Units'!I268=\"\",\"\",'2. Assisted & Restricted Units'!I268)","v":""},{"$f":"IF('2. Assisted & Restricted Units'!AP268=\"\",\"\",'2. Assisted & Restricted Units'!AP268)","v":0},{"$f":"IF('2. Assisted & Restricted Units'!AT268=\"\",\"\",'2. Assisted & Restricted Units'!AT268)","v":""},0,{"$f":"IF('2. Assisted & Restricted Units'!AV268=\"\",\"\",'2. Assisted & Restricted Units'!AV268)","v":""},{"$f":"IF('2. Assisted & Restricted Units'!L268=\"\",\"\",'2. Assisted & Restricted Units'!L268)","v":""},{"$f":"IF('2. Assisted & Restricted Units'!M268=\"\",\"\",'2. Assisted & Restricted Units'!M268)","v":""},{"$f":"IF('2. Assisted & Restricted Units'!O268=\"\",\"\",'2. Assisted & Restricted Units'!O268)","v":""},{"$f":"IF('2. Assisted & Restricted Units'!P268=\"\",\"\",'2. Assisted & Restricted Units'!P268)","v":""},{"$f":"IF('2. Assisted & Restricted Units'!Q268=\"\",\"\",'2. Assisted & Restricted Units'!Q268)","v":""},{"$f":"IF('2. Assisted & Restricted Units'!R268=\"\",\"\",'2. Assisted & Restricted Units'!R268)","v":""},{"$f":"IF(A268=\"\",\"\",'1. Checklist & Certification'!$K$1)","v":""},{"$f":"IF(A268=\"\",\"\",'1. Checklist & Certification'!$C$62)","v":""},{"$f":"IF(A268=\"\",\"\",'1. Checklist & Certification'!$K$62)","v":""},{"$f":"IF(A268=\"\",\"\",'1. Checklist & Certification'!$C$6)","v":""},{"$f":"IF(A268=\"\",\"\",'1. Checklist & Certification'!$G$4)","v":""},{"$f":"IF(A268=\"\",\"\",'1. Checklist & Certification'!$C$7)","v":""},{"$f":"IF(A268=\"\",\"\",'1. Checklist & Certification'!$C$8)","v":""},{"$f":"IF(A268=\"\",\"\",'1. Checklist & Certification'!$F$7)","v":""},{"$f":"IF(A268=\"\",\"\",'1. Checklist & Certification'!$F$8)","v":""},{"$f":"IF(A268=\"\",\"\",'1. Checklist & Certification'!$B$9)","v":""},{"$f":"IF(A268=\"\",\"\",'1. Checklist & Certification'!$F$9)","v":""},{"$f":"IF(A268=\"\",\"\",'1. Checklist & Certification'!$C$10)","v":""},{"$f":"IF(A268=\"\",\"\",'1. Checklist & Certification'!$C$11)","v":""},{"$f":"IF(A268=\"\",\"\",'1. Checklist & Certification'!$C$12)","v":""},{"$f":"IF(A268=\"\",\"\",'1. Checklist & Certification'!$B$14)","v":""},{"$f":"IF(A268=\"\",\"\",'1. Checklist & Certification'!$E$14)","v":""},{"$f":"IF(B268=\"\",\"\",'1. Checklist & Certification'!$G$14)","v":""},{"$f":"IF(A268=\"\",\"\",'MHP Family Income & Rent Limits'!$B$3)","v":""},{"$f":"IF(A268=\"\",\"\",'MHP Family Income & Rent Limits'!$J$3)","v":""},{"$f":"IF(A268=\"\",\"\",'MHP Family Income & Rent Limits'!$E$4)","v":""},{"$f":"IF(A268=\"\",\"\",'MHP Family Income & Rent Limits'!$C$7)","v":""},{"$f":"IF(A268=\"\",\"\",'MHP Family Income & Rent Limits'!$F$8)","v":""},{"$f":"IF(A268=\"\",\"\",'1. Checklist & Certification'!$G$4)","v":""},{"$f":"IF(A268=\"\",\"\",'1. Checklist & Certification'!$K$39)","v":""},{"$f":"IF(A268=\"\",\"\",'1. Checklist & Certification'!$K$43)","v":""},{"$f":"IF(A268=\"\",\"\",'1. Checklist & Certification'!$K$45)","v":""},{"$f":"IF(A268=\"\",\"\",'1. Checklist & Certification'!$K$49)","v":""},{"$f":"IF(A268=\"\",\"\",'1. Checklist & Certification'!$E$66)","v":""},{"$f":"IF(A268=\"\",\"\",'1. Checklist & Certification'!$E$67)","v":""},{"$f":"IF(A268=\"\",\"\",'1. Checklist & Certification'!$E$68)","v":""},{"$f":"IF(A268=\"\",\"\",'1. Checklist & Certification'!$G$66)","v":""},{"$f":"IF(A268=\"\",\"\",'1. Checklist & Certification'!$H$66)","v":""},{"$f":"IF(A268=\"\",\"\",'1. Checklist & Certification'!$I$66)","v":""},{"$f":"IF(A268=\"\",\"\",'1. Checklist & Certification'!$I$67)","v":""},{"$f":"IF(A268=\"\",\"\",'1. Checklist & Certification'!$I$68)","v":""},null,{"$f":"IF(C268=\"\",\"\",HLOOKUP(C268,'MHP Family Income & Rent Limits'!$E$12:$L$26,2,FALSE))","v":""},{"$f":"IF(C268=\"\",\"\",HLOOKUP(C268,'MHP Family Income & Rent Limits'!$E$12:$L$26,3,FALSE))","v":""},{"$f":"IF(C268=\"\",\"\",HLOOKUP(C268,'MHP Family Income & Rent Limits'!$E$12:$L$26,4,FALSE))","v":""},{"$f":"IF(C268=\"\",\"\",HLOOKUP(C268,'MHP Family Income & Rent Limits'!$E$12:$L$26,5,FALSE))","v":""},{"$f":"IF(C268=\"\",\"\",HLOOKUP(C268,'MHP Family Income & Rent Limits'!$E$12:$L$26,6,FALSE))","v":""},{"$f":"IF(C268=\"\",\"\",HLOOKUP(C268,'MHP Family Income & Rent Limits'!$E$12:$L$26,7,FALSE))","v":""},{"$f":"IF(C268=\"\",\"\",HLOOKUP(C268,'MHP Family Income & Rent Limits'!$E$12:$L$26,8,FALSE))","v":""},{"$f":"IF(C268=\"\",\"\",HLOOKUP(C268,'MHP Family Income & Rent Limits'!$E$12:$L$26,9,FALSE))","v":""},{"$f":"IF(C268=\"\",\"\",HLOOKUP(C268,'MHP Family Income & Rent Limits'!$E$12:$L$26,10,FALSE))","v":""},{"$f":"IF(C268=\"\",\"\",HLOOKUP(C268,'MHP Family Income & Rent Limits'!$E$12:$L$26,11,FALSE))","v":""},{"$f":"IF(C268=\"\",\"\",HLOOKUP(C268,'MHP Family Income & Rent Limits'!$E$12:$L$26,12,FALSE))","v":""},{"$f":"IF(C268=\"\",\"\",HLOOKUP(C268,'MHP Family Income & Rent Limits'!$E$12:$L$26,13,FALSE))","v":""},{"$f":"IF(C268=\"\",\"\",HLOOKUP(C268,'MHP Family Income & Rent Limits'!$E$12:$L$26,14,FALSE))","v":""},{"$f":"IF(C268=\"\",\"\",HLOOKUP(C268,'MHP Family Income & Rent Limits'!$E$12:$L$26,15,FALSE))","v":""}]
[{"$f":"IF('2. Assisted & Restricted Units'!A269=\"\",\"\",'2. Assisted & Restricted Units'!A269)","v":""},{"$f":"IF('2. Assisted & Restricted Units'!B269=\"\",\"\",'2. Assisted & Restricted Units'!B269)","v":""},{"$f":"IF('2. Assisted & Restricted Units'!D269=\"\",\"\",'2. Assisted & Restricted Units'!D269)","v":""},{"$f":"IF('2. Assisted & Restricted Units'!E269=\"\",\"\",'2. Assisted & Restricted Units'!E269)","v":""},{"$f":"IF('2. Assisted & Restricted Units'!H269=\"\",\"\",'2. Assisted & Restricted Units'!H269)","v":""},{"$f":"_xlfn.IFS(E269=\"\",\"\",E269>BO269,$BP$6,E269>BN269,$BO$6,E269>BM269,$BN$6,E269>BL269,$BM$6,E269>BK269,$BL$6,E269>BJ269,$BK$6,E269>BI269,$BJ$6,E269>BH269,$BI$6,E269>BG269,$BH$6,E269>BF269,$BG$6,E269>BE269,$BF$6,E269>BD269,$BE$6,E269>BC269,$BD$6,E269>=0,$BC$6)","v":""},{"$f":"IF('2. Assisted & Restricted Units'!T269=\"\",\"\",'2. Assisted & Restricted Units'!T269)","v":""},{"$f":"IF('2. Assisted & Restricted Units'!I269=\"\",\"\",'2. Assisted & Restricted Units'!I269)","v":""},{"$f":"IF('2. Assisted & Restricted Units'!AP269=\"\",\"\",'2. Assisted & Restricted Units'!AP269)","v":0},{"$f":"IF('2. Assisted & Restricted Units'!AT269=\"\",\"\",'2. Assisted & Restricted Units'!AT269)","v":""},0,{"$f":"IF('2. Assisted & Restricted Units'!AV269=\"\",\"\",'2. Assisted & Restricted Units'!AV269)","v":""},{"$f":"IF('2. Assisted & Restricted Units'!L269=\"\",\"\",'2. Assisted & Restricted Units'!L269)","v":""},{"$f":"IF('2. Assisted & Restricted Units'!M269=\"\",\"\",'2. Assisted & Restricted Units'!M269)","v":""},{"$f":"IF('2. Assisted & Restricted Units'!O269=\"\",\"\",'2. Assisted & Restricted Units'!O269)","v":""},{"$f":"IF('2. Assisted & Restricted Units'!P269=\"\",\"\",'2. Assisted & Restricted Units'!P269)","v":""},{"$f":"IF('2. Assisted & Restricted Units'!Q269=\"\",\"\",'2. Assisted & Restricted Units'!Q269)","v":""},{"$f":"IF('2. Assisted & Restricted Units'!R269=\"\",\"\",'2. Assisted & Restricted Units'!R269)","v":""},{"$f":"IF(A269=\"\",\"\",'1. Checklist & Certification'!$K$1)","v":""},{"$f":"IF(A269=\"\",\"\",'1. Checklist & Certification'!$C$62)","v":""},{"$f":"IF(A269=\"\",\"\",'1. Checklist & Certification'!$K$62)","v":""},{"$f":"IF(A269=\"\",\"\",'1. Checklist & Certification'!$C$6)","v":""},{"$f":"IF(A269=\"\",\"\",'1. Checklist & Certification'!$G$4)","v":""},{"$f":"IF(A269=\"\",\"\",'1. Checklist & Certification'!$C$7)","v":""},{"$f":"IF(A269=\"\",\"\",'1. Checklist & Certification'!$C$8)","v":""},{"$f":"IF(A269=\"\",\"\",'1. Checklist & Certification'!$F$7)","v":""},{"$f":"IF(A269=\"\",\"\",'1. Checklist & Certification'!$F$8)","v":""},{"$f":"IF(A269=\"\",\"\",'1. Checklist & Certification'!$B$9)","v":""},{"$f":"IF(A269=\"\",\"\",'1. Checklist & Certification'!$F$9)","v":""},{"$f":"IF(A269=\"\",\"\",'1. Checklist & Certification'!$C$10)","v":""},{"$f":"IF(A269=\"\",\"\",'1. Checklist & Certification'!$C$11)","v":""},{"$f":"IF(A269=\"\",\"\",'1. Checklist & Certification'!$C$12)","v":""},{"$f":"IF(A269=\"\",\"\",'1. Checklist & Certification'!$B$14)","v":""},{"$f":"IF(A269=\"\",\"\",'1. Checklist & Certification'!$E$14)","v":""},{"$f":"IF(B269=\"\",\"\",'1. Checklist & Certification'!$G$14)","v":""},{"$f":"IF(A269=\"\",\"\",'MHP Family Income & Rent Limits'!$B$3)","v":""},{"$f":"IF(A269=\"\",\"\",'MHP Family Income & Rent Limits'!$J$3)","v":""},{"$f":"IF(A269=\"\",\"\",'MHP Family Income & Rent Limits'!$E$4)","v":""},{"$f":"IF(A269=\"\",\"\",'MHP Family Income & Rent Limits'!$C$7)","v":""},{"$f":"IF(A269=\"\",\"\",'MHP Family Income & Rent Limits'!$F$8)","v":""},{"$f":"IF(A269=\"\",\"\",'1. Checklist & Certification'!$G$4)","v":""},{"$f":"IF(A269=\"\",\"\",'1. Checklist & Certification'!$K$39)","v":""},{"$f":"IF(A269=\"\",\"\",'1. Checklist & Certification'!$K$43)","v":""},{"$f":"IF(A269=\"\",\"\",'1. Checklist & Certification'!$K$45)","v":""},{"$f":"IF(A269=\"\",\"\",'1. Checklist & Certification'!$K$49)","v":""},{"$f":"IF(A269=\"\",\"\",'1. Checklist & Certification'!$E$66)","v":""},{"$f":"IF(A269=\"\",\"\",'1. Checklist & Certification'!$E$67)","v":""},{"$f":"IF(A269=\"\",\"\",'1. Checklist & Certification'!$E$68)","v":""},{"$f":"IF(A269=\"\",\"\",'1. Checklist & Certification'!$G$66)","v":""},{"$f":"IF(A269=\"\",\"\",'1. Checklist & Certification'!$H$66)","v":""},{"$f":"IF(A269=\"\",\"\",'1. Checklist & Certification'!$I$66)","v":""},{"$f":"IF(A269=\"\",\"\",'1. Checklist & Certification'!$I$67)","v":""},{"$f":"IF(A269=\"\",\"\",'1. Checklist & Certification'!$I$68)","v":""},null,{"$f":"IF(C269=\"\",\"\",HLOOKUP(C269,'MHP Family Income & Rent Limits'!$E$12:$L$26,2,FALSE))","v":""},{"$f":"IF(C269=\"\",\"\",HLOOKUP(C269,'MHP Family Income & Rent Limits'!$E$12:$L$26,3,FALSE))","v":""},{"$f":"IF(C269=\"\",\"\",HLOOKUP(C269,'MHP Family Income & Rent Limits'!$E$12:$L$26,4,FALSE))","v":""},{"$f":"IF(C269=\"\",\"\",HLOOKUP(C269,'MHP Family Income & Rent Limits'!$E$12:$L$26,5,FALSE))","v":""},{"$f":"IF(C269=\"\",\"\",HLOOKUP(C269,'MHP Family Income & Rent Limits'!$E$12:$L$26,6,FALSE))","v":""},{"$f":"IF(C269=\"\",\"\",HLOOKUP(C269,'MHP Family Income & Rent Limits'!$E$12:$L$26,7,FALSE))","v":""},{"$f":"IF(C269=\"\",\"\",HLOOKUP(C269,'MHP Family Income & Rent Limits'!$E$12:$L$26,8,FALSE))","v":""},{"$f":"IF(C269=\"\",\"\",HLOOKUP(C269,'MHP Family Income & Rent Limits'!$E$12:$L$26,9,FALSE))","v":""},{"$f":"IF(C269=\"\",\"\",HLOOKUP(C269,'MHP Family Income & Rent Limits'!$E$12:$L$26,10,FALSE))","v":""},{"$f":"IF(C269=\"\",\"\",HLOOKUP(C269,'MHP Family Income & Rent Limits'!$E$12:$L$26,11,FALSE))","v":""},{"$f":"IF(C269=\"\",\"\",HLOOKUP(C269,'MHP Family Income & Rent Limits'!$E$12:$L$26,12,FALSE))","v":""},{"$f":"IF(C269=\"\",\"\",HLOOKUP(C269,'MHP Family Income & Rent Limits'!$E$12:$L$26,13,FALSE))","v":""},{"$f":"IF(C269=\"\",\"\",HLOOKUP(C269,'MHP Family Income & Rent Limits'!$E$12:$L$26,14,FALSE))","v":""},{"$f":"IF(C269=\"\",\"\",HLOOKUP(C269,'MHP Family Income & Rent Limits'!$E$12:$L$26,15,FALSE))","v":""}]
[{"$f":"IF('2. Assisted & Restricted Units'!A270=\"\",\"\",'2. Assisted & Restricted Units'!A270)","v":""},{"$f":"IF('2. Assisted & Restricted Units'!B270=\"\",\"\",'2. Assisted & Restricted Units'!B270)","v":""},{"$f":"IF('2. Assisted & Restricted Units'!D270=\"\",\"\",'2. Assisted & Restricted Units'!D270)","v":""},{"$f":"IF('2. Assisted & Restricted Units'!E270=\"\",\"\",'2. Assisted & Restricted Units'!E270)","v":""},{"$f":"IF('2. Assisted & Restricted Units'!H270=\"\",\"\",'2. Assisted & Restricted Units'!H270)","v":""},{"$f":"_xlfn.IFS(E270=\"\",\"\",E270>BO270,$BP$6,E270>BN270,$BO$6,E270>BM270,$BN$6,E270>BL270,$BM$6,E270>BK270,$BL$6,E270>BJ270,$BK$6,E270>BI270,$BJ$6,E270>BH270,$BI$6,E270>BG270,$BH$6,E270>BF270,$BG$6,E270>BE270,$BF$6,E270>BD270,$BE$6,E270>BC270,$BD$6,E270>=0,$BC$6)","v":""},{"$f":"IF('2. Assisted & Restricted Units'!T270=\"\",\"\",'2. Assisted & Restricted Units'!T270)","v":""},{"$f":"IF('2. Assisted & Restricted Units'!I270=\"\",\"\",'2. Assisted & Restricted Units'!I270)","v":""},{"$f":"IF('2. Assisted & Restricted Units'!AP270=\"\",\"\",'2. Assisted & Restricted Units'!AP270)","v":0},{"$f":"IF('2. Assisted & Restricted Units'!AT270=\"\",\"\",'2. Assisted & Restricted Units'!AT270)","v":""},0,{"$f":"IF('2. Assisted & Restricted Units'!AV270=\"\",\"\",'2. Assisted & Restricted Units'!AV270)","v":""},{"$f":"IF('2. Assisted & Restricted Units'!L270=\"\",\"\",'2. Assisted & Restricted Units'!L270)","v":""},{"$f":"IF('2. Assisted & Restricted Units'!M270=\"\",\"\",'2. Assisted & Restricted Units'!M270)","v":""},{"$f":"IF('2. Assisted & Restricted Units'!O270=\"\",\"\",'2. Assisted & Restricted Units'!O270)","v":""},{"$f":"IF('2. Assisted & Restricted Units'!P270=\"\",\"\",'2. Assisted & Restricted Units'!P270)","v":""},{"$f":"IF('2. Assisted & Restricted Units'!Q270=\"\",\"\",'2. Assisted & Restricted Units'!Q270)","v":""},{"$f":"IF('2. Assisted & Restricted Units'!R270=\"\",\"\",'2. Assisted & Restricted Units'!R270)","v":""},{"$f":"IF(A270=\"\",\"\",'1. Checklist & Certification'!$K$1)","v":""},{"$f":"IF(A270=\"\",\"\",'1. Checklist & Certification'!$C$62)","v":""},{"$f":"IF(A270=\"\",\"\",'1. Checklist & Certification'!$K$62)","v":""},{"$f":"IF(A270=\"\",\"\",'1. Checklist & Certification'!$C$6)","v":""},{"$f":"IF(A270=\"\",\"\",'1. Checklist & Certification'!$G$4)","v":""},{"$f":"IF(A270=\"\",\"\",'1. Checklist & Certification'!$C$7)","v":""},{"$f":"IF(A270=\"\",\"\",'1. Checklist & Certification'!$C$8)","v":""},{"$f":"IF(A270=\"\",\"\",'1. Checklist & Certification'!$F$7)","v":""},{"$f":"IF(A270=\"\",\"\",'1. Checklist & Certification'!$F$8)","v":""},{"$f":"IF(A270=\"\",\"\",'1. Checklist & Certification'!$B$9)","v":""},{"$f":"IF(A270=\"\",\"\",'1. Checklist & Certification'!$F$9)","v":""},{"$f":"IF(A270=\"\",\"\",'1. Checklist & Certification'!$C$10)","v":""},{"$f":"IF(A270=\"\",\"\",'1. Checklist & Certification'!$C$11)","v":""},{"$f":"IF(A270=\"\",\"\",'1. Checklist & Certification'!$C$12)","v":""},{"$f":"IF(A270=\"\",\"\",'1. Checklist & Certification'!$B$14)","v":""},{"$f":"IF(A270=\"\",\"\",'1. Checklist & Certification'!$E$14)","v":""},{"$f":"IF(B270=\"\",\"\",'1. Checklist & Certification'!$G$14)","v":""},{"$f":"IF(A270=\"\",\"\",'MHP Family Income & Rent Limits'!$B$3)","v":""},{"$f":"IF(A270=\"\",\"\",'MHP Family Income & Rent Limits'!$J$3)","v":""},{"$f":"IF(A270=\"\",\"\",'MHP Family Income & Rent Limits'!$E$4)","v":""},{"$f":"IF(A270=\"\",\"\",'MHP Family Income & Rent Limits'!$C$7)","v":""},{"$f":"IF(A270=\"\",\"\",'MHP Family Income & Rent Limits'!$F$8)","v":""},{"$f":"IF(A270=\"\",\"\",'1. Checklist & Certification'!$G$4)","v":""},{"$f":"IF(A270=\"\",\"\",'1. Checklist & Certification'!$K$39)","v":""},{"$f":"IF(A270=\"\",\"\",'1. Checklist & Certification'!$K$43)","v":""},{"$f":"IF(A270=\"\",\"\",'1. Checklist & Certification'!$K$45)","v":""},{"$f":"IF(A270=\"\",\"\",'1. Checklist & Certification'!$K$49)","v":""},{"$f":"IF(A270=\"\",\"\",'1. Checklist & Certification'!$E$66)","v":""},{"$f":"IF(A270=\"\",\"\",'1. Checklist & Certification'!$E$67)","v":""},{"$f":"IF(A270=\"\",\"\",'1. Checklist & Certification'!$E$68)","v":""},{"$f":"IF(A270=\"\",\"\",'1. Checklist & Certification'!$G$66)","v":""},{"$f":"IF(A270=\"\",\"\",'1. Checklist & Certification'!$H$66)","v":""},{"$f":"IF(A270=\"\",\"\",'1. Checklist & Certification'!$I$66)","v":""},{"$f":"IF(A270=\"\",\"\",'1. Checklist & Certification'!$I$67)","v":""},{"$f":"IF(A270=\"\",\"\",'1. Checklist & Certification'!$I$68)","v":""},null,{"$f":"IF(C270=\"\",\"\",HLOOKUP(C270,'MHP Family Income & Rent Limits'!$E$12:$L$26,2,FALSE))","v":""},{"$f":"IF(C270=\"\",\"\",HLOOKUP(C270,'MHP Family Income & Rent Limits'!$E$12:$L$26,3,FALSE))","v":""},{"$f":"IF(C270=\"\",\"\",HLOOKUP(C270,'MHP Family Income & Rent Limits'!$E$12:$L$26,4,FALSE))","v":""},{"$f":"IF(C270=\"\",\"\",HLOOKUP(C270,'MHP Family Income & Rent Limits'!$E$12:$L$26,5,FALSE))","v":""},{"$f":"IF(C270=\"\",\"\",HLOOKUP(C270,'MHP Family Income & Rent Limits'!$E$12:$L$26,6,FALSE))","v":""},{"$f":"IF(C270=\"\",\"\",HLOOKUP(C270,'MHP Family Income & Rent Limits'!$E$12:$L$26,7,FALSE))","v":""},{"$f":"IF(C270=\"\",\"\",HLOOKUP(C270,'MHP Family Income & Rent Limits'!$E$12:$L$26,8,FALSE))","v":""},{"$f":"IF(C270=\"\",\"\",HLOOKUP(C270,'MHP Family Income & Rent Limits'!$E$12:$L$26,9,FALSE))","v":""},{"$f":"IF(C270=\"\",\"\",HLOOKUP(C270,'MHP Family Income & Rent Limits'!$E$12:$L$26,10,FALSE))","v":""},{"$f":"IF(C270=\"\",\"\",HLOOKUP(C270,'MHP Family Income & Rent Limits'!$E$12:$L$26,11,FALSE))","v":""},{"$f":"IF(C270=\"\",\"\",HLOOKUP(C270,'MHP Family Income & Rent Limits'!$E$12:$L$26,12,FALSE))","v":""},{"$f":"IF(C270=\"\",\"\",HLOOKUP(C270,'MHP Family Income & Rent Limits'!$E$12:$L$26,13,FALSE))","v":""},{"$f":"IF(C270=\"\",\"\",HLOOKUP(C270,'MHP Family Income & Rent Limits'!$E$12:$L$26,14,FALSE))","v":""},{"$f":"IF(C270=\"\",\"\",HLOOKUP(C270,'MHP Family Income & Rent Limits'!$E$12:$L$26,15,FALSE))","v":""}]
[{"$f":"IF('2. Assisted & Restricted Units'!A271=\"\",\"\",'2. Assisted & Restricted Units'!A271)","v":""},{"$f":"IF('2. Assisted & Restricted Units'!B271=\"\",\"\",'2. Assisted & Restricted Units'!B271)","v":""},{"$f":"IF('2. Assisted & Restricted Units'!D271=\"\",\"\",'2. Assisted & Restricted Units'!D271)","v":""},{"$f":"IF('2. Assisted & Restricted Units'!E271=\"\",\"\",'2. Assisted & Restricted Units'!E271)","v":""},{"$f":"IF('2. Assisted & Restricted Units'!H271=\"\",\"\",'2. Assisted & Restricted Units'!H271)","v":""},{"$f":"_xlfn.IFS(E271=\"\",\"\",E271>BO271,$BP$6,E271>BN271,$BO$6,E271>BM271,$BN$6,E271>BL271,$BM$6,E271>BK271,$BL$6,E271>BJ271,$BK$6,E271>BI271,$BJ$6,E271>BH271,$BI$6,E271>BG271,$BH$6,E271>BF271,$BG$6,E271>BE271,$BF$6,E271>BD271,$BE$6,E271>BC271,$BD$6,E271>=0,$BC$6)","v":""},{"$f":"IF('2. Assisted & Restricted Units'!T271=\"\",\"\",'2. Assisted & Restricted Units'!T271)","v":""},{"$f":"IF('2. Assisted & Restricted Units'!I271=\"\",\"\",'2. Assisted & Restricted Units'!I271)","v":""},{"$f":"IF('2. Assisted & Restricted Units'!AP271=\"\",\"\",'2. Assisted & Restricted Units'!AP271)","v":0},{"$f":"IF('2. Assisted & Restricted Units'!AT271=\"\",\"\",'2. Assisted & Restricted Units'!AT271)","v":""},0,{"$f":"IF('2. Assisted & Restricted Units'!AV271=\"\",\"\",'2. Assisted & Restricted Units'!AV271)","v":""},{"$f":"IF('2. Assisted & Restricted Units'!L271=\"\",\"\",'2. Assisted & Restricted Units'!L271)","v":""},{"$f":"IF('2. Assisted & Restricted Units'!M271=\"\",\"\",'2. Assisted & Restricted Units'!M271)","v":""},{"$f":"IF('2. Assisted & Restricted Units'!O271=\"\",\"\",'2. Assisted & Restricted Units'!O271)","v":""},{"$f":"IF('2. Assisted & Restricted Units'!P271=\"\",\"\",'2. Assisted & Restricted Units'!P271)","v":""},{"$f":"IF('2. Assisted & Restricted Units'!Q271=\"\",\"\",'2. Assisted & Restricted Units'!Q271)","v":""},{"$f":"IF('2. Assisted & Restricted Units'!R271=\"\",\"\",'2. Assisted & Restricted Units'!R271)","v":""},{"$f":"IF(A271=\"\",\"\",'1. Checklist & Certification'!$K$1)","v":""},{"$f":"IF(A271=\"\",\"\",'1. Checklist & Certification'!$C$62)","v":""},{"$f":"IF(A271=\"\",\"\",'1. Checklist & Certification'!$K$62)","v":""},{"$f":"IF(A271=\"\",\"\",'1. Checklist & Certification'!$C$6)","v":""},{"$f":"IF(A271=\"\",\"\",'1. Checklist & Certification'!$G$4)","v":""},{"$f":"IF(A271=\"\",\"\",'1. Checklist & Certification'!$C$7)","v":""},{"$f":"IF(A271=\"\",\"\",'1. Checklist & Certification'!$C$8)","v":""},{"$f":"IF(A271=\"\",\"\",'1. Checklist & Certification'!$F$7)","v":""},{"$f":"IF(A271=\"\",\"\",'1. Checklist & Certification'!$F$8)","v":""},{"$f":"IF(A271=\"\",\"\",'1. Checklist & Certification'!$B$9)","v":""},{"$f":"IF(A271=\"\",\"\",'1. Checklist & Certification'!$F$9)","v":""},{"$f":"IF(A271=\"\",\"\",'1. Checklist & Certification'!$C$10)","v":""},{"$f":"IF(A271=\"\",\"\",'1. Checklist & Certification'!$C$11)","v":""},{"$f":"IF(A271=\"\",\"\",'1. Checklist & Certification'!$C$12)","v":""},{"$f":"IF(A271=\"\",\"\",'1. Checklist & Certification'!$B$14)","v":""},{"$f":"IF(A271=\"\",\"\",'1. Checklist & Certification'!$E$14)","v":""},{"$f":"IF(B271=\"\",\"\",'1. Checklist & Certification'!$G$14)","v":""},{"$f":"IF(A271=\"\",\"\",'MHP Family Income & Rent Limits'!$B$3)","v":""},{"$f":"IF(A271=\"\",\"\",'MHP Family Income & Rent Limits'!$J$3)","v":""},{"$f":"IF(A271=\"\",\"\",'MHP Family Income & Rent Limits'!$E$4)","v":""},{"$f":"IF(A271=\"\",\"\",'MHP Family Income & Rent Limits'!$C$7)","v":""},{"$f":"IF(A271=\"\",\"\",'MHP Family Income & Rent Limits'!$F$8)","v":""},{"$f":"IF(A271=\"\",\"\",'1. Checklist & Certification'!$G$4)","v":""},{"$f":"IF(A271=\"\",\"\",'1. Checklist & Certification'!$K$39)","v":""},{"$f":"IF(A271=\"\",\"\",'1. Checklist & Certification'!$K$43)","v":""},{"$f":"IF(A271=\"\",\"\",'1. Checklist & Certification'!$K$45)","v":""},{"$f":"IF(A271=\"\",\"\",'1. Checklist & Certification'!$K$49)","v":""},{"$f":"IF(A271=\"\",\"\",'1. Checklist & Certification'!$E$66)","v":""},{"$f":"IF(A271=\"\",\"\",'1. Checklist & Certification'!$E$67)","v":""},{"$f":"IF(A271=\"\",\"\",'1. Checklist & Certification'!$E$68)","v":""},{"$f":"IF(A271=\"\",\"\",'1. Checklist & Certification'!$G$66)","v":""},{"$f":"IF(A271=\"\",\"\",'1. Checklist & Certification'!$H$66)","v":""},{"$f":"IF(A271=\"\",\"\",'1. Checklist & Certification'!$I$66)","v":""},{"$f":"IF(A271=\"\",\"\",'1. Checklist & Certification'!$I$67)","v":""},{"$f":"IF(A271=\"\",\"\",'1. Checklist & Certification'!$I$68)","v":""},null,{"$f":"IF(C271=\"\",\"\",HLOOKUP(C271,'MHP Family Income & Rent Limits'!$E$12:$L$26,2,FALSE))","v":""},{"$f":"IF(C271=\"\",\"\",HLOOKUP(C271,'MHP Family Income & Rent Limits'!$E$12:$L$26,3,FALSE))","v":""},{"$f":"IF(C271=\"\",\"\",HLOOKUP(C271,'MHP Family Income & Rent Limits'!$E$12:$L$26,4,FALSE))","v":""},{"$f":"IF(C271=\"\",\"\",HLOOKUP(C271,'MHP Family Income & Rent Limits'!$E$12:$L$26,5,FALSE))","v":""},{"$f":"IF(C271=\"\",\"\",HLOOKUP(C271,'MHP Family Income & Rent Limits'!$E$12:$L$26,6,FALSE))","v":""},{"$f":"IF(C271=\"\",\"\",HLOOKUP(C271,'MHP Family Income & Rent Limits'!$E$12:$L$26,7,FALSE))","v":""},{"$f":"IF(C271=\"\",\"\",HLOOKUP(C271,'MHP Family Income & Rent Limits'!$E$12:$L$26,8,FALSE))","v":""},{"$f":"IF(C271=\"\",\"\",HLOOKUP(C271,'MHP Family Income & Rent Limits'!$E$12:$L$26,9,FALSE))","v":""},{"$f":"IF(C271=\"\",\"\",HLOOKUP(C271,'MHP Family Income & Rent Limits'!$E$12:$L$26,10,FALSE))","v":""},{"$f":"IF(C271=\"\",\"\",HLOOKUP(C271,'MHP Family Income & Rent Limits'!$E$12:$L$26,11,FALSE))","v":""},{"$f":"IF(C271=\"\",\"\",HLOOKUP(C271,'MHP Family Income & Rent Limits'!$E$12:$L$26,12,FALSE))","v":""},{"$f":"IF(C271=\"\",\"\",HLOOKUP(C271,'MHP Family Income & Rent Limits'!$E$12:$L$26,13,FALSE))","v":""},{"$f":"IF(C271=\"\",\"\",HLOOKUP(C271,'MHP Family Income & Rent Limits'!$E$12:$L$26,14,FALSE))","v":""},{"$f":"IF(C271=\"\",\"\",HLOOKUP(C271,'MHP Family Income & Rent Limits'!$E$12:$L$26,15,FALSE))","v":""}]
[{"$f":"IF('2. Assisted & Restricted Units'!A272=\"\",\"\",'2. Assisted & Restricted Units'!A272)","v":""},{"$f":"IF('2. Assisted & Restricted Units'!B272=\"\",\"\",'2. Assisted & Restricted Units'!B272)","v":""},{"$f":"IF('2. Assisted & Restricted Units'!D272=\"\",\"\",'2. Assisted & Restricted Units'!D272)","v":""},{"$f":"IF('2. Assisted & Restricted Units'!E272=\"\",\"\",'2. Assisted & Restricted Units'!E272)","v":""},{"$f":"IF('2. Assisted & Restricted Units'!H272=\"\",\"\",'2. Assisted & Restricted Units'!H272)","v":""},{"$f":"_xlfn.IFS(E272=\"\",\"\",E272>BO272,$BP$6,E272>BN272,$BO$6,E272>BM272,$BN$6,E272>BL272,$BM$6,E272>BK272,$BL$6,E272>BJ272,$BK$6,E272>BI272,$BJ$6,E272>BH272,$BI$6,E272>BG272,$BH$6,E272>BF272,$BG$6,E272>BE272,$BF$6,E272>BD272,$BE$6,E272>BC272,$BD$6,E272>=0,$BC$6)","v":""},{"$f":"IF('2. Assisted & Restricted Units'!T272=\"\",\"\",'2. Assisted & Restricted Units'!T272)","v":""},{"$f":"IF('2. Assisted & Restricted Units'!I272=\"\",\"\",'2. Assisted & Restricted Units'!I272)","v":""},{"$f":"IF('2. Assisted & Restricted Units'!AP272=\"\",\"\",'2. Assisted & Restricted Units'!AP272)","v":0},{"$f":"IF('2. Assisted & Restricted Units'!AT272=\"\",\"\",'2. Assisted & Restricted Units'!AT272)","v":""},0,{"$f":"IF('2. Assisted & Restricted Units'!AV272=\"\",\"\",'2. Assisted & Restricted Units'!AV272)","v":""},{"$f":"IF('2. Assisted & Restricted Units'!L272=\"\",\"\",'2. Assisted & Restricted Units'!L272)","v":""},{"$f":"IF('2. Assisted & Restricted Units'!M272=\"\",\"\",'2. Assisted & Restricted Units'!M272)","v":""},{"$f":"IF('2. Assisted & Restricted Units'!O272=\"\",\"\",'2. Assisted & Restricted Units'!O272)","v":""},{"$f":"IF('2. Assisted & Restricted Units'!P272=\"\",\"\",'2. Assisted & Restricted Units'!P272)","v":""},{"$f":"IF('2. Assisted & Restricted Units'!Q272=\"\",\"\",'2. Assisted & Restricted Units'!Q272)","v":""},{"$f":"IF('2. Assisted & Restricted Units'!R272=\"\",\"\",'2. Assisted & Restricted Units'!R272)","v":""},{"$f":"IF(A272=\"\",\"\",'1. Checklist & Certification'!$K$1)","v":""},{"$f":"IF(A272=\"\",\"\",'1. Checklist & Certification'!$C$62)","v":""},{"$f":"IF(A272=\"\",\"\",'1. Checklist & Certification'!$K$62)","v":""},{"$f":"IF(A272=\"\",\"\",'1. Checklist & Certification'!$C$6)","v":""},{"$f":"IF(A272=\"\",\"\",'1. Checklist & Certification'!$G$4)","v":""},{"$f":"IF(A272=\"\",\"\",'1. Checklist & Certification'!$C$7)","v":""},{"$f":"IF(A272=\"\",\"\",'1. Checklist & Certification'!$C$8)","v":""},{"$f":"IF(A272=\"\",\"\",'1. Checklist & Certification'!$F$7)","v":""},{"$f":"IF(A272=\"\",\"\",'1. Checklist & Certification'!$F$8)","v":""},{"$f":"IF(A272=\"\",\"\",'1. Checklist & Certification'!$B$9)","v":""},{"$f":"IF(A272=\"\",\"\",'1. Checklist & Certification'!$F$9)","v":""},{"$f":"IF(A272=\"\",\"\",'1. Checklist & Certification'!$C$10)","v":""},{"$f":"IF(A272=\"\",\"\",'1. Checklist & Certification'!$C$11)","v":""},{"$f":"IF(A272=\"\",\"\",'1. Checklist & Certification'!$C$12)","v":""},{"$f":"IF(A272=\"\",\"\",'1. Checklist & Certification'!$B$14)","v":""},{"$f":"IF(A272=\"\",\"\",'1. Checklist & Certification'!$E$14)","v":""},{"$f":"IF(B272=\"\",\"\",'1. Checklist & Certification'!$G$14)","v":""},{"$f":"IF(A272=\"\",\"\",'MHP Family Income & Rent Limits'!$B$3)","v":""},{"$f":"IF(A272=\"\",\"\",'MHP Family Income & Rent Limits'!$J$3)","v":""},{"$f":"IF(A272=\"\",\"\",'MHP Family Income & Rent Limits'!$E$4)","v":""},{"$f":"IF(A272=\"\",\"\",'MHP Family Income & Rent Limits'!$C$7)","v":""},{"$f":"IF(A272=\"\",\"\",'MHP Family Income & Rent Limits'!$F$8)","v":""},{"$f":"IF(A272=\"\",\"\",'1. Checklist & Certification'!$G$4)","v":""},{"$f":"IF(A272=\"\",\"\",'1. Checklist & Certification'!$K$39)","v":""},{"$f":"IF(A272=\"\",\"\",'1. Checklist & Certification'!$K$43)","v":""},{"$f":"IF(A272=\"\",\"\",'1. Checklist & Certification'!$K$45)","v":""},{"$f":"IF(A272=\"\",\"\",'1. Checklist & Certification'!$K$49)","v":""},{"$f":"IF(A272=\"\",\"\",'1. Checklist & Certification'!$E$66)","v":""},{"$f":"IF(A272=\"\",\"\",'1. Checklist & Certification'!$E$67)","v":""},{"$f":"IF(A272=\"\",\"\",'1. Checklist & Certification'!$E$68)","v":""},{"$f":"IF(A272=\"\",\"\",'1. Checklist & Certification'!$G$66)","v":""},{"$f":"IF(A272=\"\",\"\",'1. Checklist & Certification'!$H$66)","v":""},{"$f":"IF(A272=\"\",\"\",'1. Checklist & Certification'!$I$66)","v":""},{"$f":"IF(A272=\"\",\"\",'1. Checklist & Certification'!$I$67)","v":""},{"$f":"IF(A272=\"\",\"\",'1. Checklist & Certification'!$I$68)","v":""},null,{"$f":"IF(C272=\"\",\"\",HLOOKUP(C272,'MHP Family Income & Rent Limits'!$E$12:$L$26,2,FALSE))","v":""},{"$f":"IF(C272=\"\",\"\",HLOOKUP(C272,'MHP Family Income & Rent Limits'!$E$12:$L$26,3,FALSE))","v":""},{"$f":"IF(C272=\"\",\"\",HLOOKUP(C272,'MHP Family Income & Rent Limits'!$E$12:$L$26,4,FALSE))","v":""},{"$f":"IF(C272=\"\",\"\",HLOOKUP(C272,'MHP Family Income & Rent Limits'!$E$12:$L$26,5,FALSE))","v":""},{"$f":"IF(C272=\"\",\"\",HLOOKUP(C272,'MHP Family Income & Rent Limits'!$E$12:$L$26,6,FALSE))","v":""},{"$f":"IF(C272=\"\",\"\",HLOOKUP(C272,'MHP Family Income & Rent Limits'!$E$12:$L$26,7,FALSE))","v":""},{"$f":"IF(C272=\"\",\"\",HLOOKUP(C272,'MHP Family Income & Rent Limits'!$E$12:$L$26,8,FALSE))","v":""},{"$f":"IF(C272=\"\",\"\",HLOOKUP(C272,'MHP Family Income & Rent Limits'!$E$12:$L$26,9,FALSE))","v":""},{"$f":"IF(C272=\"\",\"\",HLOOKUP(C272,'MHP Family Income & Rent Limits'!$E$12:$L$26,10,FALSE))","v":""},{"$f":"IF(C272=\"\",\"\",HLOOKUP(C272,'MHP Family Income & Rent Limits'!$E$12:$L$26,11,FALSE))","v":""},{"$f":"IF(C272=\"\",\"\",HLOOKUP(C272,'MHP Family Income & Rent Limits'!$E$12:$L$26,12,FALSE))","v":""},{"$f":"IF(C272=\"\",\"\",HLOOKUP(C272,'MHP Family Income & Rent Limits'!$E$12:$L$26,13,FALSE))","v":""},{"$f":"IF(C272=\"\",\"\",HLOOKUP(C272,'MHP Family Income & Rent Limits'!$E$12:$L$26,14,FALSE))","v":""},{"$f":"IF(C272=\"\",\"\",HLOOKUP(C272,'MHP Family Income & Rent Limits'!$E$12:$L$26,15,FALSE))","v":""}]
[{"$f":"IF('2. Assisted & Restricted Units'!A273=\"\",\"\",'2. Assisted & Restricted Units'!A273)","v":""},{"$f":"IF('2. Assisted & Restricted Units'!B273=\"\",\"\",'2. Assisted & Restricted Units'!B273)","v":""},{"$f":"IF('2. Assisted & Restricted Units'!D273=\"\",\"\",'2. Assisted & Restricted Units'!D273)","v":""},{"$f":"IF('2. Assisted & Restricted Units'!E273=\"\",\"\",'2. Assisted & Restricted Units'!E273)","v":""},{"$f":"IF('2. Assisted & Restricted Units'!H273=\"\",\"\",'2. Assisted & Restricted Units'!H273)","v":""},{"$f":"_xlfn.IFS(E273=\"\",\"\",E273>BO273,$BP$6,E273>BN273,$BO$6,E273>BM273,$BN$6,E273>BL273,$BM$6,E273>BK273,$BL$6,E273>BJ273,$BK$6,E273>BI273,$BJ$6,E273>BH273,$BI$6,E273>BG273,$BH$6,E273>BF273,$BG$6,E273>BE273,$BF$6,E273>BD273,$BE$6,E273>BC273,$BD$6,E273>=0,$BC$6)","v":""},{"$f":"IF('2. Assisted & Restricted Units'!T273=\"\",\"\",'2. Assisted & Restricted Units'!T273)","v":""},{"$f":"IF('2. Assisted & Restricted Units'!I273=\"\",\"\",'2. Assisted & Restricted Units'!I273)","v":""},{"$f":"IF('2. Assisted & Restricted Units'!AP273=\"\",\"\",'2. Assisted & Restricted Units'!AP273)","v":0},{"$f":"IF('2. Assisted & Restricted Units'!AT273=\"\",\"\",'2. Assisted & Restricted Units'!AT273)","v":""},0,{"$f":"IF('2. Assisted & Restricted Units'!AV273=\"\",\"\",'2. Assisted & Restricted Units'!AV273)","v":""},{"$f":"IF('2. Assisted & Restricted Units'!L273=\"\",\"\",'2. Assisted & Restricted Units'!L273)","v":""},{"$f":"IF('2. Assisted & Restricted Units'!M273=\"\",\"\",'2. Assisted & Restricted Units'!M273)","v":""},{"$f":"IF('2. Assisted & Restricted Units'!O273=\"\",\"\",'2. Assisted & Restricted Units'!O273)","v":""},{"$f":"IF('2. Assisted & Restricted Units'!P273=\"\",\"\",'2. Assisted & Restricted Units'!P273)","v":""},{"$f":"IF('2. Assisted & Restricted Units'!Q273=\"\",\"\",'2. Assisted & Restricted Units'!Q273)","v":""},{"$f":"IF('2. Assisted & Restricted Units'!R273=\"\",\"\",'2. Assisted & Restricted Units'!R273)","v":""},{"$f":"IF(A273=\"\",\"\",'1. Checklist & Certification'!$K$1)","v":""},{"$f":"IF(A273=\"\",\"\",'1. Checklist & Certification'!$C$62)","v":""},{"$f":"IF(A273=\"\",\"\",'1. Checklist & Certification'!$K$62)","v":""},{"$f":"IF(A273=\"\",\"\",'1. Checklist & Certification'!$C$6)","v":""},{"$f":"IF(A273=\"\",\"\",'1. Checklist & Certification'!$G$4)","v":""},{"$f":"IF(A273=\"\",\"\",'1. Checklist & Certification'!$C$7)","v":""},{"$f":"IF(A273=\"\",\"\",'1. Checklist & Certification'!$C$8)","v":""},{"$f":"IF(A273=\"\",\"\",'1. Checklist & Certification'!$F$7)","v":""},{"$f":"IF(A273=\"\",\"\",'1. Checklist & Certification'!$F$8)","v":""},{"$f":"IF(A273=\"\",\"\",'1. Checklist & Certification'!$B$9)","v":""},{"$f":"IF(A273=\"\",\"\",'1. Checklist & Certification'!$F$9)","v":""},{"$f":"IF(A273=\"\",\"\",'1. Checklist & Certification'!$C$10)","v":""},{"$f":"IF(A273=\"\",\"\",'1. Checklist & Certification'!$C$11)","v":""},{"$f":"IF(A273=\"\",\"\",'1. Checklist & Certification'!$C$12)","v":""},{"$f":"IF(A273=\"\",\"\",'1. Checklist & Certification'!$B$14)","v":""},{"$f":"IF(A273=\"\",\"\",'1. Checklist & Certification'!$E$14)","v":""},{"$f":"IF(B273=\"\",\"\",'1. Checklist & Certification'!$G$14)","v":""},{"$f":"IF(A273=\"\",\"\",'MHP Family Income & Rent Limits'!$B$3)","v":""},{"$f":"IF(A273=\"\",\"\",'MHP Family Income & Rent Limits'!$J$3)","v":""},{"$f":"IF(A273=\"\",\"\",'MHP Family Income & Rent Limits'!$E$4)","v":""},{"$f":"IF(A273=\"\",\"\",'MHP Family Income & Rent Limits'!$C$7)","v":""},{"$f":"IF(A273=\"\",\"\",'MHP Family Income & Rent Limits'!$F$8)","v":""},{"$f":"IF(A273=\"\",\"\",'1. Checklist & Certification'!$G$4)","v":""},{"$f":"IF(A273=\"\",\"\",'1. Checklist & Certification'!$K$39)","v":""},{"$f":"IF(A273=\"\",\"\",'1. Checklist & Certification'!$K$43)","v":""},{"$f":"IF(A273=\"\",\"\",'1. Checklist & Certification'!$K$45)","v":""},{"$f":"IF(A273=\"\",\"\",'1. Checklist & Certification'!$K$49)","v":""},{"$f":"IF(A273=\"\",\"\",'1. Checklist & Certification'!$E$66)","v":""},{"$f":"IF(A273=\"\",\"\",'1. Checklist & Certification'!$E$67)","v":""},{"$f":"IF(A273=\"\",\"\",'1. Checklist & Certification'!$E$68)","v":""},{"$f":"IF(A273=\"\",\"\",'1. Checklist & Certification'!$G$66)","v":""},{"$f":"IF(A273=\"\",\"\",'1. Checklist & Certification'!$H$66)","v":""},{"$f":"IF(A273=\"\",\"\",'1. Checklist & Certification'!$I$66)","v":""},{"$f":"IF(A273=\"\",\"\",'1. Checklist & Certification'!$I$67)","v":""},{"$f":"IF(A273=\"\",\"\",'1. Checklist & Certification'!$I$68)","v":""},null,{"$f":"IF(C273=\"\",\"\",HLOOKUP(C273,'MHP Family Income & Rent Limits'!$E$12:$L$26,2,FALSE))","v":""},{"$f":"IF(C273=\"\",\"\",HLOOKUP(C273,'MHP Family Income & Rent Limits'!$E$12:$L$26,3,FALSE))","v":""},{"$f":"IF(C273=\"\",\"\",HLOOKUP(C273,'MHP Family Income & Rent Limits'!$E$12:$L$26,4,FALSE))","v":""},{"$f":"IF(C273=\"\",\"\",HLOOKUP(C273,'MHP Family Income & Rent Limits'!$E$12:$L$26,5,FALSE))","v":""},{"$f":"IF(C273=\"\",\"\",HLOOKUP(C273,'MHP Family Income & Rent Limits'!$E$12:$L$26,6,FALSE))","v":""},{"$f":"IF(C273=\"\",\"\",HLOOKUP(C273,'MHP Family Income & Rent Limits'!$E$12:$L$26,7,FALSE))","v":""},{"$f":"IF(C273=\"\",\"\",HLOOKUP(C273,'MHP Family Income & Rent Limits'!$E$12:$L$26,8,FALSE))","v":""},{"$f":"IF(C273=\"\",\"\",HLOOKUP(C273,'MHP Family Income & Rent Limits'!$E$12:$L$26,9,FALSE))","v":""},{"$f":"IF(C273=\"\",\"\",HLOOKUP(C273,'MHP Family Income & Rent Limits'!$E$12:$L$26,10,FALSE))","v":""},{"$f":"IF(C273=\"\",\"\",HLOOKUP(C273,'MHP Family Income & Rent Limits'!$E$12:$L$26,11,FALSE))","v":""},{"$f":"IF(C273=\"\",\"\",HLOOKUP(C273,'MHP Family Income & Rent Limits'!$E$12:$L$26,12,FALSE))","v":""},{"$f":"IF(C273=\"\",\"\",HLOOKUP(C273,'MHP Family Income & Rent Limits'!$E$12:$L$26,13,FALSE))","v":""},{"$f":"IF(C273=\"\",\"\",HLOOKUP(C273,'MHP Family Income & Rent Limits'!$E$12:$L$26,14,FALSE))","v":""},{"$f":"IF(C273=\"\",\"\",HLOOKUP(C273,'MHP Family Income & Rent Limits'!$E$12:$L$26,15,FALSE))","v":""}]
[{"$f":"IF('2. Assisted & Restricted Units'!A274=\"\",\"\",'2. Assisted & Restricted Units'!A274)","v":""},{"$f":"IF('2. Assisted & Restricted Units'!B274=\"\",\"\",'2. Assisted & Restricted Units'!B274)","v":""},{"$f":"IF('2. Assisted & Restricted Units'!D274=\"\",\"\",'2. Assisted & Restricted Units'!D274)","v":""},{"$f":"IF('2. Assisted & Restricted Units'!E274=\"\",\"\",'2. Assisted & Restricted Units'!E274)","v":""},{"$f":"IF('2. Assisted & Restricted Units'!H274=\"\",\"\",'2. Assisted & Restricted Units'!H274)","v":""},{"$f":"_xlfn.IFS(E274=\"\",\"\",E274>BO274,$BP$6,E274>BN274,$BO$6,E274>BM274,$BN$6,E274>BL274,$BM$6,E274>BK274,$BL$6,E274>BJ274,$BK$6,E274>BI274,$BJ$6,E274>BH274,$BI$6,E274>BG274,$BH$6,E274>BF274,$BG$6,E274>BE274,$BF$6,E274>BD274,$BE$6,E274>BC274,$BD$6,E274>=0,$BC$6)","v":""},{"$f":"IF('2. Assisted & Restricted Units'!T274=\"\",\"\",'2. Assisted & Restricted Units'!T274)","v":""},{"$f":"IF('2. Assisted & Restricted Units'!I274=\"\",\"\",'2. Assisted & Restricted Units'!I274)","v":""},{"$f":"IF('2. Assisted & Restricted Units'!AP274=\"\",\"\",'2. Assisted & Restricted Units'!AP274)","v":0},{"$f":"IF('2. Assisted & Restricted Units'!AT274=\"\",\"\",'2. Assisted & Restricted Units'!AT274)","v":""},0,{"$f":"IF('2. Assisted & Restricted Units'!AV274=\"\",\"\",'2. Assisted & Restricted Units'!AV274)","v":""},{"$f":"IF('2. Assisted & Restricted Units'!L274=\"\",\"\",'2. Assisted & Restricted Units'!L274)","v":""},{"$f":"IF('2. Assisted & Restricted Units'!M274=\"\",\"\",'2. Assisted & Restricted Units'!M274)","v":""},{"$f":"IF('2. Assisted & Restricted Units'!O274=\"\",\"\",'2. Assisted & Restricted Units'!O274)","v":""},{"$f":"IF('2. Assisted & Restricted Units'!P274=\"\",\"\",'2. Assisted & Restricted Units'!P274)","v":""},{"$f":"IF('2. Assisted & Restricted Units'!Q274=\"\",\"\",'2. Assisted & Restricted Units'!Q274)","v":""},{"$f":"IF('2. Assisted & Restricted Units'!R274=\"\",\"\",'2. Assisted & Restricted Units'!R274)","v":""},{"$f":"IF(A274=\"\",\"\",'1. Checklist & Certification'!$K$1)","v":""},{"$f":"IF(A274=\"\",\"\",'1. Checklist & Certification'!$C$62)","v":""},{"$f":"IF(A274=\"\",\"\",'1. Checklist & Certification'!$K$62)","v":""},{"$f":"IF(A274=\"\",\"\",'1. Checklist & Certification'!$C$6)","v":""},{"$f":"IF(A274=\"\",\"\",'1. Checklist & Certification'!$G$4)","v":""},{"$f":"IF(A274=\"\",\"\",'1. Checklist & Certification'!$C$7)","v":""},{"$f":"IF(A274=\"\",\"\",'1. Checklist & Certification'!$C$8)","v":""},{"$f":"IF(A274=\"\",\"\",'1. Checklist & Certification'!$F$7)","v":""},{"$f":"IF(A274=\"\",\"\",'1. Checklist & Certification'!$F$8)","v":""},{"$f":"IF(A274=\"\",\"\",'1. Checklist & Certification'!$B$9)","v":""},{"$f":"IF(A274=\"\",\"\",'1. Checklist & Certification'!$F$9)","v":""},{"$f":"IF(A274=\"\",\"\",'1. Checklist & Certification'!$C$10)","v":""},{"$f":"IF(A274=\"\",\"\",'1. Checklist & Certification'!$C$11)","v":""},{"$f":"IF(A274=\"\",\"\",'1. Checklist & Certification'!$C$12)","v":""},{"$f":"IF(A274=\"\",\"\",'1. Checklist & Certification'!$B$14)","v":""},{"$f":"IF(A274=\"\",\"\",'1. Checklist & Certification'!$E$14)","v":""},{"$f":"IF(B274=\"\",\"\",'1. Checklist & Certification'!$G$14)","v":""},{"$f":"IF(A274=\"\",\"\",'MHP Family Income & Rent Limits'!$B$3)","v":""},{"$f":"IF(A274=\"\",\"\",'MHP Family Income & Rent Limits'!$J$3)","v":""},{"$f":"IF(A274=\"\",\"\",'MHP Family Income & Rent Limits'!$E$4)","v":""},{"$f":"IF(A274=\"\",\"\",'MHP Family Income & Rent Limits'!$C$7)","v":""},{"$f":"IF(A274=\"\",\"\",'MHP Family Income & Rent Limits'!$F$8)","v":""},{"$f":"IF(A274=\"\",\"\",'1. Checklist & Certification'!$G$4)","v":""},{"$f":"IF(A274=\"\",\"\",'1. Checklist & Certification'!$K$39)","v":""},{"$f":"IF(A274=\"\",\"\",'1. Checklist & Certification'!$K$43)","v":""},{"$f":"IF(A274=\"\",\"\",'1. Checklist & Certification'!$K$45)","v":""},{"$f":"IF(A274=\"\",\"\",'1. Checklist & Certification'!$K$49)","v":""},{"$f":"IF(A274=\"\",\"\",'1. Checklist & Certification'!$E$66)","v":""},{"$f":"IF(A274=\"\",\"\",'1. Checklist & Certification'!$E$67)","v":""},{"$f":"IF(A274=\"\",\"\",'1. Checklist & Certification'!$E$68)","v":""},{"$f":"IF(A274=\"\",\"\",'1. Checklist & Certification'!$G$66)","v":""},{"$f":"IF(A274=\"\",\"\",'1. Checklist & Certification'!$H$66)","v":""},{"$f":"IF(A274=\"\",\"\",'1. Checklist & Certification'!$I$66)","v":""},{"$f":"IF(A274=\"\",\"\",'1. Checklist & Certification'!$I$67)","v":""},{"$f":"IF(A274=\"\",\"\",'1. Checklist & Certification'!$I$68)","v":""},null,{"$f":"IF(C274=\"\",\"\",HLOOKUP(C274,'MHP Family Income & Rent Limits'!$E$12:$L$26,2,FALSE))","v":""},{"$f":"IF(C274=\"\",\"\",HLOOKUP(C274,'MHP Family Income & Rent Limits'!$E$12:$L$26,3,FALSE))","v":""},{"$f":"IF(C274=\"\",\"\",HLOOKUP(C274,'MHP Family Income & Rent Limits'!$E$12:$L$26,4,FALSE))","v":""},{"$f":"IF(C274=\"\",\"\",HLOOKUP(C274,'MHP Family Income & Rent Limits'!$E$12:$L$26,5,FALSE))","v":""},{"$f":"IF(C274=\"\",\"\",HLOOKUP(C274,'MHP Family Income & Rent Limits'!$E$12:$L$26,6,FALSE))","v":""},{"$f":"IF(C274=\"\",\"\",HLOOKUP(C274,'MHP Family Income & Rent Limits'!$E$12:$L$26,7,FALSE))","v":""},{"$f":"IF(C274=\"\",\"\",HLOOKUP(C274,'MHP Family Income & Rent Limits'!$E$12:$L$26,8,FALSE))","v":""},{"$f":"IF(C274=\"\",\"\",HLOOKUP(C274,'MHP Family Income & Rent Limits'!$E$12:$L$26,9,FALSE))","v":""},{"$f":"IF(C274=\"\",\"\",HLOOKUP(C274,'MHP Family Income & Rent Limits'!$E$12:$L$26,10,FALSE))","v":""},{"$f":"IF(C274=\"\",\"\",HLOOKUP(C274,'MHP Family Income & Rent Limits'!$E$12:$L$26,11,FALSE))","v":""},{"$f":"IF(C274=\"\",\"\",HLOOKUP(C274,'MHP Family Income & Rent Limits'!$E$12:$L$26,12,FALSE))","v":""},{"$f":"IF(C274=\"\",\"\",HLOOKUP(C274,'MHP Family Income & Rent Limits'!$E$12:$L$26,13,FALSE))","v":""},{"$f":"IF(C274=\"\",\"\",HLOOKUP(C274,'MHP Family Income & Rent Limits'!$E$12:$L$26,14,FALSE))","v":""},{"$f":"IF(C274=\"\",\"\",HLOOKUP(C274,'MHP Family Income & Rent Limits'!$E$12:$L$26,15,FALSE))","v":""}]
[{"$f":"IF('2. Assisted & Restricted Units'!A275=\"\",\"\",'2. Assisted & Restricted Units'!A275)","v":""},{"$f":"IF('2. Assisted & Restricted Units'!B275=\"\",\"\",'2. Assisted & Restricted Units'!B275)","v":""},{"$f":"IF('2. Assisted & Restricted Units'!D275=\"\",\"\",'2. Assisted & Restricted Units'!D275)","v":""},{"$f":"IF('2. Assisted & Restricted Units'!E275=\"\",\"\",'2. Assisted & Restricted Units'!E275)","v":""},{"$f":"IF('2. Assisted & Restricted Units'!H275=\"\",\"\",'2. Assisted & Restricted Units'!H275)","v":""},{"$f":"_xlfn.IFS(E275=\"\",\"\",E275>BO275,$BP$6,E275>BN275,$BO$6,E275>BM275,$BN$6,E275>BL275,$BM$6,E275>BK275,$BL$6,E275>BJ275,$BK$6,E275>BI275,$BJ$6,E275>BH275,$BI$6,E275>BG275,$BH$6,E275>BF275,$BG$6,E275>BE275,$BF$6,E275>BD275,$BE$6,E275>BC275,$BD$6,E275>=0,$BC$6)","v":""},{"$f":"IF('2. Assisted & Restricted Units'!T275=\"\",\"\",'2. Assisted & Restricted Units'!T275)","v":""},{"$f":"IF('2. Assisted & Restricted Units'!I275=\"\",\"\",'2. Assisted & Restricted Units'!I275)","v":""},{"$f":"IF('2. Assisted & Restricted Units'!AP275=\"\",\"\",'2. Assisted & Restricted Units'!AP275)","v":0},{"$f":"IF('2. Assisted & Restricted Units'!AT275=\"\",\"\",'2. Assisted & Restricted Units'!AT275)","v":""},0,{"$f":"IF('2. Assisted & Restricted Units'!AV275=\"\",\"\",'2. Assisted & Restricted Units'!AV275)","v":""},{"$f":"IF('2. Assisted & Restricted Units'!L275=\"\",\"\",'2. Assisted & Restricted Units'!L275)","v":""},{"$f":"IF('2. Assisted & Restricted Units'!M275=\"\",\"\",'2. Assisted & Restricted Units'!M275)","v":""},{"$f":"IF('2. Assisted & Restricted Units'!O275=\"\",\"\",'2. Assisted & Restricted Units'!O275)","v":""},{"$f":"IF('2. Assisted & Restricted Units'!P275=\"\",\"\",'2. Assisted & Restricted Units'!P275)","v":""},{"$f":"IF('2. Assisted & Restricted Units'!Q275=\"\",\"\",'2. Assisted & Restricted Units'!Q275)","v":""},{"$f":"IF('2. Assisted & Restricted Units'!R275=\"\",\"\",'2. Assisted & Restricted Units'!R275)","v":""},{"$f":"IF(A275=\"\",\"\",'1. Checklist & Certification'!$K$1)","v":""},{"$f":"IF(A275=\"\",\"\",'1. Checklist & Certification'!$C$62)","v":""},{"$f":"IF(A275=\"\",\"\",'1. Checklist & Certification'!$K$62)","v":""},{"$f":"IF(A275=\"\",\"\",'1. Checklist & Certification'!$C$6)","v":""},{"$f":"IF(A275=\"\",\"\",'1. Checklist & Certification'!$G$4)","v":""},{"$f":"IF(A275=\"\",\"\",'1. Checklist & Certification'!$C$7)","v":""},{"$f":"IF(A275=\"\",\"\",'1. Checklist & Certification'!$C$8)","v":""},{"$f":"IF(A275=\"\",\"\",'1. Checklist & Certification'!$F$7)","v":""},{"$f":"IF(A275=\"\",\"\",'1. Checklist & Certification'!$F$8)","v":""},{"$f":"IF(A275=\"\",\"\",'1. Checklist & Certification'!$B$9)","v":""},{"$f":"IF(A275=\"\",\"\",'1. Checklist & Certification'!$F$9)","v":""},{"$f":"IF(A275=\"\",\"\",'1. Checklist & Certification'!$C$10)","v":""},{"$f":"IF(A275=\"\",\"\",'1. Checklist & Certification'!$C$11)","v":""},{"$f":"IF(A275=\"\",\"\",'1. Checklist & Certification'!$C$12)","v":""},{"$f":"IF(A275=\"\",\"\",'1. Checklist & Certification'!$B$14)","v":""},{"$f":"IF(A275=\"\",\"\",'1. Checklist & Certification'!$E$14)","v":""},{"$f":"IF(B275=\"\",\"\",'1. Checklist & Certification'!$G$14)","v":""},{"$f":"IF(A275=\"\",\"\",'MHP Family Income & Rent Limits'!$B$3)","v":""},{"$f":"IF(A275=\"\",\"\",'MHP Family Income & Rent Limits'!$J$3)","v":""},{"$f":"IF(A275=\"\",\"\",'MHP Family Income & Rent Limits'!$E$4)","v":""},{"$f":"IF(A275=\"\",\"\",'MHP Family Income & Rent Limits'!$C$7)","v":""},{"$f":"IF(A275=\"\",\"\",'MHP Family Income & Rent Limits'!$F$8)","v":""},{"$f":"IF(A275=\"\",\"\",'1. Checklist & Certification'!$G$4)","v":""},{"$f":"IF(A275=\"\",\"\",'1. Checklist & Certification'!$K$39)","v":""},{"$f":"IF(A275=\"\",\"\",'1. Checklist & Certification'!$K$43)","v":""},{"$f":"IF(A275=\"\",\"\",'1. Checklist & Certification'!$K$45)","v":""},{"$f":"IF(A275=\"\",\"\",'1. Checklist & Certification'!$K$49)","v":""},{"$f":"IF(A275=\"\",\"\",'1. Checklist & Certification'!$E$66)","v":""},{"$f":"IF(A275=\"\",\"\",'1. Checklist & Certification'!$E$67)","v":""},{"$f":"IF(A275=\"\",\"\",'1. Checklist & Certification'!$E$68)","v":""},{"$f":"IF(A275=\"\",\"\",'1. Checklist & Certification'!$G$66)","v":""},{"$f":"IF(A275=\"\",\"\",'1. Checklist & Certification'!$H$66)","v":""},{"$f":"IF(A275=\"\",\"\",'1. Checklist & Certification'!$I$66)","v":""},{"$f":"IF(A275=\"\",\"\",'1. Checklist & Certification'!$I$67)","v":""},{"$f":"IF(A275=\"\",\"\",'1. Checklist & Certification'!$I$68)","v":""},null,{"$f":"IF(C275=\"\",\"\",HLOOKUP(C275,'MHP Family Income & Rent Limits'!$E$12:$L$26,2,FALSE))","v":""},{"$f":"IF(C275=\"\",\"\",HLOOKUP(C275,'MHP Family Income & Rent Limits'!$E$12:$L$26,3,FALSE))","v":""},{"$f":"IF(C275=\"\",\"\",HLOOKUP(C275,'MHP Family Income & Rent Limits'!$E$12:$L$26,4,FALSE))","v":""},{"$f":"IF(C275=\"\",\"\",HLOOKUP(C275,'MHP Family Income & Rent Limits'!$E$12:$L$26,5,FALSE))","v":""},{"$f":"IF(C275=\"\",\"\",HLOOKUP(C275,'MHP Family Income & Rent Limits'!$E$12:$L$26,6,FALSE))","v":""},{"$f":"IF(C275=\"\",\"\",HLOOKUP(C275,'MHP Family Income & Rent Limits'!$E$12:$L$26,7,FALSE))","v":""},{"$f":"IF(C275=\"\",\"\",HLOOKUP(C275,'MHP Family Income & Rent Limits'!$E$12:$L$26,8,FALSE))","v":""},{"$f":"IF(C275=\"\",\"\",HLOOKUP(C275,'MHP Family Income & Rent Limits'!$E$12:$L$26,9,FALSE))","v":""},{"$f":"IF(C275=\"\",\"\",HLOOKUP(C275,'MHP Family Income & Rent Limits'!$E$12:$L$26,10,FALSE))","v":""},{"$f":"IF(C275=\"\",\"\",HLOOKUP(C275,'MHP Family Income & Rent Limits'!$E$12:$L$26,11,FALSE))","v":""},{"$f":"IF(C275=\"\",\"\",HLOOKUP(C275,'MHP Family Income & Rent Limits'!$E$12:$L$26,12,FALSE))","v":""},{"$f":"IF(C275=\"\",\"\",HLOOKUP(C275,'MHP Family Income & Rent Limits'!$E$12:$L$26,13,FALSE))","v":""},{"$f":"IF(C275=\"\",\"\",HLOOKUP(C275,'MHP Family Income & Rent Limits'!$E$12:$L$26,14,FALSE))","v":""},{"$f":"IF(C275=\"\",\"\",HLOOKUP(C275,'MHP Family Income & Rent Limits'!$E$12:$L$26,15,FALSE))","v":""}]
[{"$f":"IF('2. Assisted & Restricted Units'!A276=\"\",\"\",'2. Assisted & Restricted Units'!A276)","v":""},{"$f":"IF('2. Assisted & Restricted Units'!B276=\"\",\"\",'2. Assisted & Restricted Units'!B276)","v":""},{"$f":"IF('2. Assisted & Restricted Units'!D276=\"\",\"\",'2. Assisted & Restricted Units'!D276)","v":""},{"$f":"IF('2. Assisted & Restricted Units'!E276=\"\",\"\",'2. Assisted & Restricted Units'!E276)","v":""},{"$f":"IF('2. Assisted & Restricted Units'!H276=\"\",\"\",'2. Assisted & Restricted Units'!H276)","v":""},{"$f":"_xlfn.IFS(E276=\"\",\"\",E276>BO276,$BP$6,E276>BN276,$BO$6,E276>BM276,$BN$6,E276>BL276,$BM$6,E276>BK276,$BL$6,E276>BJ276,$BK$6,E276>BI276,$BJ$6,E276>BH276,$BI$6,E276>BG276,$BH$6,E276>BF276,$BG$6,E276>BE276,$BF$6,E276>BD276,$BE$6,E276>BC276,$BD$6,E276>=0,$BC$6)","v":""},{"$f":"IF('2. Assisted & Restricted Units'!T276=\"\",\"\",'2. Assisted & Restricted Units'!T276)","v":""},{"$f":"IF('2. Assisted & Restricted Units'!I276=\"\",\"\",'2. Assisted & Restricted Units'!I276)","v":""},{"$f":"IF('2. Assisted & Restricted Units'!AP276=\"\",\"\",'2. Assisted & Restricted Units'!AP276)","v":0},{"$f":"IF('2. Assisted & Restricted Units'!AT276=\"\",\"\",'2. Assisted & Restricted Units'!AT276)","v":""},0,{"$f":"IF('2. Assisted & Restricted Units'!AV276=\"\",\"\",'2. Assisted & Restricted Units'!AV276)","v":""},{"$f":"IF('2. Assisted & Restricted Units'!L276=\"\",\"\",'2. Assisted & Restricted Units'!L276)","v":""},{"$f":"IF('2. Assisted & Restricted Units'!M276=\"\",\"\",'2. Assisted & Restricted Units'!M276)","v":""},{"$f":"IF('2. Assisted & Restricted Units'!O276=\"\",\"\",'2. Assisted & Restricted Units'!O276)","v":""},{"$f":"IF('2. Assisted & Restricted Units'!P276=\"\",\"\",'2. Assisted & Restricted Units'!P276)","v":""},{"$f":"IF('2. Assisted & Restricted Units'!Q276=\"\",\"\",'2. Assisted & Restricted Units'!Q276)","v":""},{"$f":"IF('2. Assisted & Restricted Units'!R276=\"\",\"\",'2. Assisted & Restricted Units'!R276)","v":""},{"$f":"IF(A276=\"\",\"\",'1. Checklist & Certification'!$K$1)","v":""},{"$f":"IF(A276=\"\",\"\",'1. Checklist & Certification'!$C$62)","v":""},{"$f":"IF(A276=\"\",\"\",'1. Checklist & Certification'!$K$62)","v":""},{"$f":"IF(A276=\"\",\"\",'1. Checklist & Certification'!$C$6)","v":""},{"$f":"IF(A276=\"\",\"\",'1. Checklist & Certification'!$G$4)","v":""},{"$f":"IF(A276=\"\",\"\",'1. Checklist & Certification'!$C$7)","v":""},{"$f":"IF(A276=\"\",\"\",'1. Checklist & Certification'!$C$8)","v":""},{"$f":"IF(A276=\"\",\"\",'1. Checklist & Certification'!$F$7)","v":""},{"$f":"IF(A276=\"\",\"\",'1. Checklist & Certification'!$F$8)","v":""},{"$f":"IF(A276=\"\",\"\",'1. Checklist & Certification'!$B$9)","v":""},{"$f":"IF(A276=\"\",\"\",'1. Checklist & Certification'!$F$9)","v":""},{"$f":"IF(A276=\"\",\"\",'1. Checklist & Certification'!$C$10)","v":""},{"$f":"IF(A276=\"\",\"\",'1. Checklist & Certification'!$C$11)","v":""},{"$f":"IF(A276=\"\",\"\",'1. Checklist & Certification'!$C$12)","v":""},{"$f":"IF(A276=\"\",\"\",'1. Checklist & Certification'!$B$14)","v":""},{"$f":"IF(A276=\"\",\"\",'1. Checklist & Certification'!$E$14)","v":""},{"$f":"IF(B276=\"\",\"\",'1. Checklist & Certification'!$G$14)","v":""},{"$f":"IF(A276=\"\",\"\",'MHP Family Income & Rent Limits'!$B$3)","v":""},{"$f":"IF(A276=\"\",\"\",'MHP Family Income & Rent Limits'!$J$3)","v":""},{"$f":"IF(A276=\"\",\"\",'MHP Family Income & Rent Limits'!$E$4)","v":""},{"$f":"IF(A276=\"\",\"\",'MHP Family Income & Rent Limits'!$C$7)","v":""},{"$f":"IF(A276=\"\",\"\",'MHP Family Income & Rent Limits'!$F$8)","v":""},{"$f":"IF(A276=\"\",\"\",'1. Checklist & Certification'!$G$4)","v":""},{"$f":"IF(A276=\"\",\"\",'1. Checklist & Certification'!$K$39)","v":""},{"$f":"IF(A276=\"\",\"\",'1. Checklist & Certification'!$K$43)","v":""},{"$f":"IF(A276=\"\",\"\",'1. Checklist & Certification'!$K$45)","v":""},{"$f":"IF(A276=\"\",\"\",'1. Checklist & Certification'!$K$49)","v":""},{"$f":"IF(A276=\"\",\"\",'1. Checklist & Certification'!$E$66)","v":""},{"$f":"IF(A276=\"\",\"\",'1. Checklist & Certification'!$E$67)","v":""},{"$f":"IF(A276=\"\",\"\",'1. Checklist & Certification'!$E$68)","v":""},{"$f":"IF(A276=\"\",\"\",'1. Checklist & Certification'!$G$66)","v":""},{"$f":"IF(A276=\"\",\"\",'1. Checklist & Certification'!$H$66)","v":""},{"$f":"IF(A276=\"\",\"\",'1. Checklist & Certification'!$I$66)","v":""},{"$f":"IF(A276=\"\",\"\",'1. Checklist & Certification'!$I$67)","v":""},{"$f":"IF(A276=\"\",\"\",'1. Checklist & Certification'!$I$68)","v":""},null,{"$f":"IF(C276=\"\",\"\",HLOOKUP(C276,'MHP Family Income & Rent Limits'!$E$12:$L$26,2,FALSE))","v":""},{"$f":"IF(C276=\"\",\"\",HLOOKUP(C276,'MHP Family Income & Rent Limits'!$E$12:$L$26,3,FALSE))","v":""},{"$f":"IF(C276=\"\",\"\",HLOOKUP(C276,'MHP Family Income & Rent Limits'!$E$12:$L$26,4,FALSE))","v":""},{"$f":"IF(C276=\"\",\"\",HLOOKUP(C276,'MHP Family Income & Rent Limits'!$E$12:$L$26,5,FALSE))","v":""},{"$f":"IF(C276=\"\",\"\",HLOOKUP(C276,'MHP Family Income & Rent Limits'!$E$12:$L$26,6,FALSE))","v":""},{"$f":"IF(C276=\"\",\"\",HLOOKUP(C276,'MHP Family Income & Rent Limits'!$E$12:$L$26,7,FALSE))","v":""},{"$f":"IF(C276=\"\",\"\",HLOOKUP(C276,'MHP Family Income & Rent Limits'!$E$12:$L$26,8,FALSE))","v":""},{"$f":"IF(C276=\"\",\"\",HLOOKUP(C276,'MHP Family Income & Rent Limits'!$E$12:$L$26,9,FALSE))","v":""},{"$f":"IF(C276=\"\",\"\",HLOOKUP(C276,'MHP Family Income & Rent Limits'!$E$12:$L$26,10,FALSE))","v":""},{"$f":"IF(C276=\"\",\"\",HLOOKUP(C276,'MHP Family Income & Rent Limits'!$E$12:$L$26,11,FALSE))","v":""},{"$f":"IF(C276=\"\",\"\",HLOOKUP(C276,'MHP Family Income & Rent Limits'!$E$12:$L$26,12,FALSE))","v":""},{"$f":"IF(C276=\"\",\"\",HLOOKUP(C276,'MHP Family Income & Rent Limits'!$E$12:$L$26,13,FALSE))","v":""},{"$f":"IF(C276=\"\",\"\",HLOOKUP(C276,'MHP Family Income & Rent Limits'!$E$12:$L$26,14,FALSE))","v":""},{"$f":"IF(C276=\"\",\"\",HLOOKUP(C276,'MHP Family Income & Rent Limits'!$E$12:$L$26,15,FALSE))","v":""}]
[{"$f":"IF('2. Assisted & Restricted Units'!A277=\"\",\"\",'2. Assisted & Restricted Units'!A277)","v":""},{"$f":"IF('2. Assisted & Restricted Units'!B277=\"\",\"\",'2. Assisted & Restricted Units'!B277)","v":""},{"$f":"IF('2. Assisted & Restricted Units'!D277=\"\",\"\",'2. Assisted & Restricted Units'!D277)","v":""},{"$f":"IF('2. Assisted & Restricted Units'!E277=\"\",\"\",'2. Assisted & Restricted Units'!E277)","v":""},{"$f":"IF('2. Assisted & Restricted Units'!H277=\"\",\"\",'2. Assisted & Restricted Units'!H277)","v":""},{"$f":"_xlfn.IFS(E277=\"\",\"\",E277>BO277,$BP$6,E277>BN277,$BO$6,E277>BM277,$BN$6,E277>BL277,$BM$6,E277>BK277,$BL$6,E277>BJ277,$BK$6,E277>BI277,$BJ$6,E277>BH277,$BI$6,E277>BG277,$BH$6,E277>BF277,$BG$6,E277>BE277,$BF$6,E277>BD277,$BE$6,E277>BC277,$BD$6,E277>=0,$BC$6)","v":""},{"$f":"IF('2. Assisted & Restricted Units'!T277=\"\",\"\",'2. Assisted & Restricted Units'!T277)","v":""},{"$f":"IF('2. Assisted & Restricted Units'!I277=\"\",\"\",'2. Assisted & Restricted Units'!I277)","v":""},{"$f":"IF('2. Assisted & Restricted Units'!AP277=\"\",\"\",'2. Assisted & Restricted Units'!AP277)","v":0},{"$f":"IF('2. Assisted & Restricted Units'!AT277=\"\",\"\",'2. Assisted & Restricted Units'!AT277)","v":""},0,{"$f":"IF('2. Assisted & Restricted Units'!AV277=\"\",\"\",'2. Assisted & Restricted Units'!AV277)","v":""},{"$f":"IF('2. Assisted & Restricted Units'!L277=\"\",\"\",'2. Assisted & Restricted Units'!L277)","v":""},{"$f":"IF('2. Assisted & Restricted Units'!M277=\"\",\"\",'2. Assisted & Restricted Units'!M277)","v":""},{"$f":"IF('2. Assisted & Restricted Units'!O277=\"\",\"\",'2. Assisted & Restricted Units'!O277)","v":""},{"$f":"IF('2. Assisted & Restricted Units'!P277=\"\",\"\",'2. Assisted & Restricted Units'!P277)","v":""},{"$f":"IF('2. Assisted & Restricted Units'!Q277=\"\",\"\",'2. Assisted & Restricted Units'!Q277)","v":""},{"$f":"IF('2. Assisted & Restricted Units'!R277=\"\",\"\",'2. Assisted & Restricted Units'!R277)","v":""},{"$f":"IF(A277=\"\",\"\",'1. Checklist & Certification'!$K$1)","v":""},{"$f":"IF(A277=\"\",\"\",'1. Checklist & Certification'!$C$62)","v":""},{"$f":"IF(A277=\"\",\"\",'1. Checklist & Certification'!$K$62)","v":""},{"$f":"IF(A277=\"\",\"\",'1. Checklist & Certification'!$C$6)","v":""},{"$f":"IF(A277=\"\",\"\",'1. Checklist & Certification'!$G$4)","v":""},{"$f":"IF(A277=\"\",\"\",'1. Checklist & Certification'!$C$7)","v":""},{"$f":"IF(A277=\"\",\"\",'1. Checklist & Certification'!$C$8)","v":""},{"$f":"IF(A277=\"\",\"\",'1. Checklist & Certification'!$F$7)","v":""},{"$f":"IF(A277=\"\",\"\",'1. Checklist & Certification'!$F$8)","v":""},{"$f":"IF(A277=\"\",\"\",'1. Checklist & Certification'!$B$9)","v":""},{"$f":"IF(A277=\"\",\"\",'1. Checklist & Certification'!$F$9)","v":""},{"$f":"IF(A277=\"\",\"\",'1. Checklist & Certification'!$C$10)","v":""},{"$f":"IF(A277=\"\",\"\",'1. Checklist & Certification'!$C$11)","v":""},{"$f":"IF(A277=\"\",\"\",'1. Checklist & Certification'!$C$12)","v":""},{"$f":"IF(A277=\"\",\"\",'1. Checklist & Certification'!$B$14)","v":""},{"$f":"IF(A277=\"\",\"\",'1. Checklist & Certification'!$E$14)","v":""},{"$f":"IF(B277=\"\",\"\",'1. Checklist & Certification'!$G$14)","v":""},{"$f":"IF(A277=\"\",\"\",'MHP Family Income & Rent Limits'!$B$3)","v":""},{"$f":"IF(A277=\"\",\"\",'MHP Family Income & Rent Limits'!$J$3)","v":""},{"$f":"IF(A277=\"\",\"\",'MHP Family Income & Rent Limits'!$E$4)","v":""},{"$f":"IF(A277=\"\",\"\",'MHP Family Income & Rent Limits'!$C$7)","v":""},{"$f":"IF(A277=\"\",\"\",'MHP Family Income & Rent Limits'!$F$8)","v":""},{"$f":"IF(A277=\"\",\"\",'1. Checklist & Certification'!$G$4)","v":""},{"$f":"IF(A277=\"\",\"\",'1. Checklist & Certification'!$K$39)","v":""},{"$f":"IF(A277=\"\",\"\",'1. Checklist & Certification'!$K$43)","v":""},{"$f":"IF(A277=\"\",\"\",'1. Checklist & Certification'!$K$45)","v":""},{"$f":"IF(A277=\"\",\"\",'1. Checklist & Certification'!$K$49)","v":""},{"$f":"IF(A277=\"\",\"\",'1. Checklist & Certification'!$E$66)","v":""},{"$f":"IF(A277=\"\",\"\",'1. Checklist & Certification'!$E$67)","v":""},{"$f":"IF(A277=\"\",\"\",'1. Checklist & Certification'!$E$68)","v":""},{"$f":"IF(A277=\"\",\"\",'1. Checklist & Certification'!$G$66)","v":""},{"$f":"IF(A277=\"\",\"\",'1. Checklist & Certification'!$H$66)","v":""},{"$f":"IF(A277=\"\",\"\",'1. Checklist & Certification'!$I$66)","v":""},{"$f":"IF(A277=\"\",\"\",'1. Checklist & Certification'!$I$67)","v":""},{"$f":"IF(A277=\"\",\"\",'1. Checklist & Certification'!$I$68)","v":""},null,{"$f":"IF(C277=\"\",\"\",HLOOKUP(C277,'MHP Family Income & Rent Limits'!$E$12:$L$26,2,FALSE))","v":""},{"$f":"IF(C277=\"\",\"\",HLOOKUP(C277,'MHP Family Income & Rent Limits'!$E$12:$L$26,3,FALSE))","v":""},{"$f":"IF(C277=\"\",\"\",HLOOKUP(C277,'MHP Family Income & Rent Limits'!$E$12:$L$26,4,FALSE))","v":""},{"$f":"IF(C277=\"\",\"\",HLOOKUP(C277,'MHP Family Income & Rent Limits'!$E$12:$L$26,5,FALSE))","v":""},{"$f":"IF(C277=\"\",\"\",HLOOKUP(C277,'MHP Family Income & Rent Limits'!$E$12:$L$26,6,FALSE))","v":""},{"$f":"IF(C277=\"\",\"\",HLOOKUP(C277,'MHP Family Income & Rent Limits'!$E$12:$L$26,7,FALSE))","v":""},{"$f":"IF(C277=\"\",\"\",HLOOKUP(C277,'MHP Family Income & Rent Limits'!$E$12:$L$26,8,FALSE))","v":""},{"$f":"IF(C277=\"\",\"\",HLOOKUP(C277,'MHP Family Income & Rent Limits'!$E$12:$L$26,9,FALSE))","v":""},{"$f":"IF(C277=\"\",\"\",HLOOKUP(C277,'MHP Family Income & Rent Limits'!$E$12:$L$26,10,FALSE))","v":""},{"$f":"IF(C277=\"\",\"\",HLOOKUP(C277,'MHP Family Income & Rent Limits'!$E$12:$L$26,11,FALSE))","v":""},{"$f":"IF(C277=\"\",\"\",HLOOKUP(C277,'MHP Family Income & Rent Limits'!$E$12:$L$26,12,FALSE))","v":""},{"$f":"IF(C277=\"\",\"\",HLOOKUP(C277,'MHP Family Income & Rent Limits'!$E$12:$L$26,13,FALSE))","v":""},{"$f":"IF(C277=\"\",\"\",HLOOKUP(C277,'MHP Family Income & Rent Limits'!$E$12:$L$26,14,FALSE))","v":""},{"$f":"IF(C277=\"\",\"\",HLOOKUP(C277,'MHP Family Income & Rent Limits'!$E$12:$L$26,15,FALSE))","v":""}]
[{"$f":"IF('2. Assisted & Restricted Units'!A278=\"\",\"\",'2. Assisted & Restricted Units'!A278)","v":""},{"$f":"IF('2. Assisted & Restricted Units'!B278=\"\",\"\",'2. Assisted & Restricted Units'!B278)","v":""},{"$f":"IF('2. Assisted & Restricted Units'!D278=\"\",\"\",'2. Assisted & Restricted Units'!D278)","v":""},{"$f":"IF('2. Assisted & Restricted Units'!E278=\"\",\"\",'2. Assisted & Restricted Units'!E278)","v":""},{"$f":"IF('2. Assisted & Restricted Units'!H278=\"\",\"\",'2. Assisted & Restricted Units'!H278)","v":""},{"$f":"_xlfn.IFS(E278=\"\",\"\",E278>BO278,$BP$6,E278>BN278,$BO$6,E278>BM278,$BN$6,E278>BL278,$BM$6,E278>BK278,$BL$6,E278>BJ278,$BK$6,E278>BI278,$BJ$6,E278>BH278,$BI$6,E278>BG278,$BH$6,E278>BF278,$BG$6,E278>BE278,$BF$6,E278>BD278,$BE$6,E278>BC278,$BD$6,E278>=0,$BC$6)","v":""},{"$f":"IF('2. Assisted & Restricted Units'!T278=\"\",\"\",'2. Assisted & Restricted Units'!T278)","v":""},{"$f":"IF('2. Assisted & Restricted Units'!I278=\"\",\"\",'2. Assisted & Restricted Units'!I278)","v":""},{"$f":"IF('2. Assisted & Restricted Units'!AP278=\"\",\"\",'2. Assisted & Restricted Units'!AP278)","v":0},{"$f":"IF('2. Assisted & Restricted Units'!AT278=\"\",\"\",'2. Assisted & Restricted Units'!AT278)","v":""},0,{"$f":"IF('2. Assisted & Restricted Units'!AV278=\"\",\"\",'2. Assisted & Restricted Units'!AV278)","v":""},{"$f":"IF('2. Assisted & Restricted Units'!L278=\"\",\"\",'2. Assisted & Restricted Units'!L278)","v":""},{"$f":"IF('2. Assisted & Restricted Units'!M278=\"\",\"\",'2. Assisted & Restricted Units'!M278)","v":""},{"$f":"IF('2. Assisted & Restricted Units'!O278=\"\",\"\",'2. Assisted & Restricted Units'!O278)","v":""},{"$f":"IF('2. Assisted & Restricted Units'!P278=\"\",\"\",'2. Assisted & Restricted Units'!P278)","v":""},{"$f":"IF('2. Assisted & Restricted Units'!Q278=\"\",\"\",'2. Assisted & Restricted Units'!Q278)","v":""},{"$f":"IF('2. Assisted & Restricted Units'!R278=\"\",\"\",'2. Assisted & Restricted Units'!R278)","v":""},{"$f":"IF(A278=\"\",\"\",'1. Checklist & Certification'!$K$1)","v":""},{"$f":"IF(A278=\"\",\"\",'1. Checklist & Certification'!$C$62)","v":""},{"$f":"IF(A278=\"\",\"\",'1. Checklist & Certification'!$K$62)","v":""},{"$f":"IF(A278=\"\",\"\",'1. Checklist & Certification'!$C$6)","v":""},{"$f":"IF(A278=\"\",\"\",'1. Checklist & Certification'!$G$4)","v":""},{"$f":"IF(A278=\"\",\"\",'1. Checklist & Certification'!$C$7)","v":""},{"$f":"IF(A278=\"\",\"\",'1. Checklist & Certification'!$C$8)","v":""},{"$f":"IF(A278=\"\",\"\",'1. Checklist & Certification'!$F$7)","v":""},{"$f":"IF(A278=\"\",\"\",'1. Checklist & Certification'!$F$8)","v":""},{"$f":"IF(A278=\"\",\"\",'1. Checklist & Certification'!$B$9)","v":""},{"$f":"IF(A278=\"\",\"\",'1. Checklist & Certification'!$F$9)","v":""},{"$f":"IF(A278=\"\",\"\",'1. Checklist & Certification'!$C$10)","v":""},{"$f":"IF(A278=\"\",\"\",'1. Checklist & Certification'!$C$11)","v":""},{"$f":"IF(A278=\"\",\"\",'1. Checklist & Certification'!$C$12)","v":""},{"$f":"IF(A278=\"\",\"\",'1. Checklist & Certification'!$B$14)","v":""},{"$f":"IF(A278=\"\",\"\",'1. Checklist & Certification'!$E$14)","v":""},{"$f":"IF(B278=\"\",\"\",'1. Checklist & Certification'!$G$14)","v":""},{"$f":"IF(A278=\"\",\"\",'MHP Family Income & Rent Limits'!$B$3)","v":""},{"$f":"IF(A278=\"\",\"\",'MHP Family Income & Rent Limits'!$J$3)","v":""},{"$f":"IF(A278=\"\",\"\",'MHP Family Income & Rent Limits'!$E$4)","v":""},{"$f":"IF(A278=\"\",\"\",'MHP Family Income & Rent Limits'!$C$7)","v":""},{"$f":"IF(A278=\"\",\"\",'MHP Family Income & Rent Limits'!$F$8)","v":""},{"$f":"IF(A278=\"\",\"\",'1. Checklist & Certification'!$G$4)","v":""},{"$f":"IF(A278=\"\",\"\",'1. Checklist & Certification'!$K$39)","v":""},{"$f":"IF(A278=\"\",\"\",'1. Checklist & Certification'!$K$43)","v":""},{"$f":"IF(A278=\"\",\"\",'1. Checklist & Certification'!$K$45)","v":""},{"$f":"IF(A278=\"\",\"\",'1. Checklist & Certification'!$K$49)","v":""},{"$f":"IF(A278=\"\",\"\",'1. Checklist & Certification'!$E$66)","v":""},{"$f":"IF(A278=\"\",\"\",'1. Checklist & Certification'!$E$67)","v":""},{"$f":"IF(A278=\"\",\"\",'1. Checklist & Certification'!$E$68)","v":""},{"$f":"IF(A278=\"\",\"\",'1. Checklist & Certification'!$G$66)","v":""},{"$f":"IF(A278=\"\",\"\",'1. Checklist & Certification'!$H$66)","v":""},{"$f":"IF(A278=\"\",\"\",'1. Checklist & Certification'!$I$66)","v":""},{"$f":"IF(A278=\"\",\"\",'1. Checklist & Certification'!$I$67)","v":""},{"$f":"IF(A278=\"\",\"\",'1. Checklist & Certification'!$I$68)","v":""},null,{"$f":"IF(C278=\"\",\"\",HLOOKUP(C278,'MHP Family Income & Rent Limits'!$E$12:$L$26,2,FALSE))","v":""},{"$f":"IF(C278=\"\",\"\",HLOOKUP(C278,'MHP Family Income & Rent Limits'!$E$12:$L$26,3,FALSE))","v":""},{"$f":"IF(C278=\"\",\"\",HLOOKUP(C278,'MHP Family Income & Rent Limits'!$E$12:$L$26,4,FALSE))","v":""},{"$f":"IF(C278=\"\",\"\",HLOOKUP(C278,'MHP Family Income & Rent Limits'!$E$12:$L$26,5,FALSE))","v":""},{"$f":"IF(C278=\"\",\"\",HLOOKUP(C278,'MHP Family Income & Rent Limits'!$E$12:$L$26,6,FALSE))","v":""},{"$f":"IF(C278=\"\",\"\",HLOOKUP(C278,'MHP Family Income & Rent Limits'!$E$12:$L$26,7,FALSE))","v":""},{"$f":"IF(C278=\"\",\"\",HLOOKUP(C278,'MHP Family Income & Rent Limits'!$E$12:$L$26,8,FALSE))","v":""},{"$f":"IF(C278=\"\",\"\",HLOOKUP(C278,'MHP Family Income & Rent Limits'!$E$12:$L$26,9,FALSE))","v":""},{"$f":"IF(C278=\"\",\"\",HLOOKUP(C278,'MHP Family Income & Rent Limits'!$E$12:$L$26,10,FALSE))","v":""},{"$f":"IF(C278=\"\",\"\",HLOOKUP(C278,'MHP Family Income & Rent Limits'!$E$12:$L$26,11,FALSE))","v":""},{"$f":"IF(C278=\"\",\"\",HLOOKUP(C278,'MHP Family Income & Rent Limits'!$E$12:$L$26,12,FALSE))","v":""},{"$f":"IF(C278=\"\",\"\",HLOOKUP(C278,'MHP Family Income & Rent Limits'!$E$12:$L$26,13,FALSE))","v":""},{"$f":"IF(C278=\"\",\"\",HLOOKUP(C278,'MHP Family Income & Rent Limits'!$E$12:$L$26,14,FALSE))","v":""},{"$f":"IF(C278=\"\",\"\",HLOOKUP(C278,'MHP Family Income & Rent Limits'!$E$12:$L$26,15,FALSE))","v":""}]
[{"$f":"IF('2. Assisted & Restricted Units'!A279=\"\",\"\",'2. Assisted & Restricted Units'!A279)","v":""},{"$f":"IF('2. Assisted & Restricted Units'!B279=\"\",\"\",'2. Assisted & Restricted Units'!B279)","v":""},{"$f":"IF('2. Assisted & Restricted Units'!D279=\"\",\"\",'2. Assisted & Restricted Units'!D279)","v":""},{"$f":"IF('2. Assisted & Restricted Units'!E279=\"\",\"\",'2. Assisted & Restricted Units'!E279)","v":""},{"$f":"IF('2. Assisted & Restricted Units'!H279=\"\",\"\",'2. Assisted & Restricted Units'!H279)","v":""},{"$f":"_xlfn.IFS(E279=\"\",\"\",E279>BO279,$BP$6,E279>BN279,$BO$6,E279>BM279,$BN$6,E279>BL279,$BM$6,E279>BK279,$BL$6,E279>BJ279,$BK$6,E279>BI279,$BJ$6,E279>BH279,$BI$6,E279>BG279,$BH$6,E279>BF279,$BG$6,E279>BE279,$BF$6,E279>BD279,$BE$6,E279>BC279,$BD$6,E279>=0,$BC$6)","v":""},{"$f":"IF('2. Assisted & Restricted Units'!T279=\"\",\"\",'2. Assisted & Restricted Units'!T279)","v":""},{"$f":"IF('2. Assisted & Restricted Units'!I279=\"\",\"\",'2. Assisted & Restricted Units'!I279)","v":""},{"$f":"IF('2. Assisted & Restricted Units'!AP279=\"\",\"\",'2. Assisted & Restricted Units'!AP279)","v":0},{"$f":"IF('2. Assisted & Restricted Units'!AT279=\"\",\"\",'2. Assisted & Restricted Units'!AT279)","v":""},0,{"$f":"IF('2. Assisted & Restricted Units'!AV279=\"\",\"\",'2. Assisted & Restricted Units'!AV279)","v":""},{"$f":"IF('2. Assisted & Restricted Units'!L279=\"\",\"\",'2. Assisted & Restricted Units'!L279)","v":""},{"$f":"IF('2. Assisted & Restricted Units'!M279=\"\",\"\",'2. Assisted & Restricted Units'!M279)","v":""},{"$f":"IF('2. Assisted & Restricted Units'!O279=\"\",\"\",'2. Assisted & Restricted Units'!O279)","v":""},{"$f":"IF('2. Assisted & Restricted Units'!P279=\"\",\"\",'2. Assisted & Restricted Units'!P279)","v":""},{"$f":"IF('2. Assisted & Restricted Units'!Q279=\"\",\"\",'2. Assisted & Restricted Units'!Q279)","v":""},{"$f":"IF('2. Assisted & Restricted Units'!R279=\"\",\"\",'2. Assisted & Restricted Units'!R279)","v":""},{"$f":"IF(A279=\"\",\"\",'1. Checklist & Certification'!$K$1)","v":""},{"$f":"IF(A279=\"\",\"\",'1. Checklist & Certification'!$C$62)","v":""},{"$f":"IF(A279=\"\",\"\",'1. Checklist & Certification'!$K$62)","v":""},{"$f":"IF(A279=\"\",\"\",'1. Checklist & Certification'!$C$6)","v":""},{"$f":"IF(A279=\"\",\"\",'1. Checklist & Certification'!$G$4)","v":""},{"$f":"IF(A279=\"\",\"\",'1. Checklist & Certification'!$C$7)","v":""},{"$f":"IF(A279=\"\",\"\",'1. Checklist & Certification'!$C$8)","v":""},{"$f":"IF(A279=\"\",\"\",'1. Checklist & Certification'!$F$7)","v":""},{"$f":"IF(A279=\"\",\"\",'1. Checklist & Certification'!$F$8)","v":""},{"$f":"IF(A279=\"\",\"\",'1. Checklist & Certification'!$B$9)","v":""},{"$f":"IF(A279=\"\",\"\",'1. Checklist & Certification'!$F$9)","v":""},{"$f":"IF(A279=\"\",\"\",'1. Checklist & Certification'!$C$10)","v":""},{"$f":"IF(A279=\"\",\"\",'1. Checklist & Certification'!$C$11)","v":""},{"$f":"IF(A279=\"\",\"\",'1. Checklist & Certification'!$C$12)","v":""},{"$f":"IF(A279=\"\",\"\",'1. Checklist & Certification'!$B$14)","v":""},{"$f":"IF(A279=\"\",\"\",'1. Checklist & Certification'!$E$14)","v":""},{"$f":"IF(B279=\"\",\"\",'1. Checklist & Certification'!$G$14)","v":""},{"$f":"IF(A279=\"\",\"\",'MHP Family Income & Rent Limits'!$B$3)","v":""},{"$f":"IF(A279=\"\",\"\",'MHP Family Income & Rent Limits'!$J$3)","v":""},{"$f":"IF(A279=\"\",\"\",'MHP Family Income & Rent Limits'!$E$4)","v":""},{"$f":"IF(A279=\"\",\"\",'MHP Family Income & Rent Limits'!$C$7)","v":""},{"$f":"IF(A279=\"\",\"\",'MHP Family Income & Rent Limits'!$F$8)","v":""},{"$f":"IF(A279=\"\",\"\",'1. Checklist & Certification'!$G$4)","v":""},{"$f":"IF(A279=\"\",\"\",'1. Checklist & Certification'!$K$39)","v":""},{"$f":"IF(A279=\"\",\"\",'1. Checklist & Certification'!$K$43)","v":""},{"$f":"IF(A279=\"\",\"\",'1. Checklist & Certification'!$K$45)","v":""},{"$f":"IF(A279=\"\",\"\",'1. Checklist & Certification'!$K$49)","v":""},{"$f":"IF(A279=\"\",\"\",'1. Checklist & Certification'!$E$66)","v":""},{"$f":"IF(A279=\"\",\"\",'1. Checklist & Certification'!$E$67)","v":""},{"$f":"IF(A279=\"\",\"\",'1. Checklist & Certification'!$E$68)","v":""},{"$f":"IF(A279=\"\",\"\",'1. Checklist & Certification'!$G$66)","v":""},{"$f":"IF(A279=\"\",\"\",'1. Checklist & Certification'!$H$66)","v":""},{"$f":"IF(A279=\"\",\"\",'1. Checklist & Certification'!$I$66)","v":""},{"$f":"IF(A279=\"\",\"\",'1. Checklist & Certification'!$I$67)","v":""},{"$f":"IF(A279=\"\",\"\",'1. Checklist & Certification'!$I$68)","v":""},null,{"$f":"IF(C279=\"\",\"\",HLOOKUP(C279,'MHP Family Income & Rent Limits'!$E$12:$L$26,2,FALSE))","v":""},{"$f":"IF(C279=\"\",\"\",HLOOKUP(C279,'MHP Family Income & Rent Limits'!$E$12:$L$26,3,FALSE))","v":""},{"$f":"IF(C279=\"\",\"\",HLOOKUP(C279,'MHP Family Income & Rent Limits'!$E$12:$L$26,4,FALSE))","v":""},{"$f":"IF(C279=\"\",\"\",HLOOKUP(C279,'MHP Family Income & Rent Limits'!$E$12:$L$26,5,FALSE))","v":""},{"$f":"IF(C279=\"\",\"\",HLOOKUP(C279,'MHP Family Income & Rent Limits'!$E$12:$L$26,6,FALSE))","v":""},{"$f":"IF(C279=\"\",\"\",HLOOKUP(C279,'MHP Family Income & Rent Limits'!$E$12:$L$26,7,FALSE))","v":""},{"$f":"IF(C279=\"\",\"\",HLOOKUP(C279,'MHP Family Income & Rent Limits'!$E$12:$L$26,8,FALSE))","v":""},{"$f":"IF(C279=\"\",\"\",HLOOKUP(C279,'MHP Family Income & Rent Limits'!$E$12:$L$26,9,FALSE))","v":""},{"$f":"IF(C279=\"\",\"\",HLOOKUP(C279,'MHP Family Income & Rent Limits'!$E$12:$L$26,10,FALSE))","v":""},{"$f":"IF(C279=\"\",\"\",HLOOKUP(C279,'MHP Family Income & Rent Limits'!$E$12:$L$26,11,FALSE))","v":""},{"$f":"IF(C279=\"\",\"\",HLOOKUP(C279,'MHP Family Income & Rent Limits'!$E$12:$L$26,12,FALSE))","v":""},{"$f":"IF(C279=\"\",\"\",HLOOKUP(C279,'MHP Family Income & Rent Limits'!$E$12:$L$26,13,FALSE))","v":""},{"$f":"IF(C279=\"\",\"\",HLOOKUP(C279,'MHP Family Income & Rent Limits'!$E$12:$L$26,14,FALSE))","v":""},{"$f":"IF(C279=\"\",\"\",HLOOKUP(C279,'MHP Family Income & Rent Limits'!$E$12:$L$26,15,FALSE))","v":""}]
[{"$f":"IF('2. Assisted & Restricted Units'!A280=\"\",\"\",'2. Assisted & Restricted Units'!A280)","v":""},{"$f":"IF('2. Assisted & Restricted Units'!B280=\"\",\"\",'2. Assisted & Restricted Units'!B280)","v":""},{"$f":"IF('2. Assisted & Restricted Units'!D280=\"\",\"\",'2. Assisted & Restricted Units'!D280)","v":""},{"$f":"IF('2. Assisted & Restricted Units'!E280=\"\",\"\",'2. Assisted & Restricted Units'!E280)","v":""},{"$f":"IF('2. Assisted & Restricted Units'!H280=\"\",\"\",'2. Assisted & Restricted Units'!H280)","v":""},{"$f":"_xlfn.IFS(E280=\"\",\"\",E280>BO280,$BP$6,E280>BN280,$BO$6,E280>BM280,$BN$6,E280>BL280,$BM$6,E280>BK280,$BL$6,E280>BJ280,$BK$6,E280>BI280,$BJ$6,E280>BH280,$BI$6,E280>BG280,$BH$6,E280>BF280,$BG$6,E280>BE280,$BF$6,E280>BD280,$BE$6,E280>BC280,$BD$6,E280>=0,$BC$6)","v":""},{"$f":"IF('2. Assisted & Restricted Units'!T280=\"\",\"\",'2. Assisted & Restricted Units'!T280)","v":""},{"$f":"IF('2. Assisted & Restricted Units'!I280=\"\",\"\",'2. Assisted & Restricted Units'!I280)","v":""},{"$f":"IF('2. Assisted & Restricted Units'!AP280=\"\",\"\",'2. Assisted & Restricted Units'!AP280)","v":0},{"$f":"IF('2. Assisted & Restricted Units'!AT280=\"\",\"\",'2. Assisted & Restricted Units'!AT280)","v":""},0,{"$f":"IF('2. Assisted & Restricted Units'!AV280=\"\",\"\",'2. Assisted & Restricted Units'!AV280)","v":""},{"$f":"IF('2. Assisted & Restricted Units'!L280=\"\",\"\",'2. Assisted & Restricted Units'!L280)","v":""},{"$f":"IF('2. Assisted & Restricted Units'!M280=\"\",\"\",'2. Assisted & Restricted Units'!M280)","v":""},{"$f":"IF('2. Assisted & Restricted Units'!O280=\"\",\"\",'2. Assisted & Restricted Units'!O280)","v":""},{"$f":"IF('2. Assisted & Restricted Units'!P280=\"\",\"\",'2. Assisted & Restricted Units'!P280)","v":""},{"$f":"IF('2. Assisted & Restricted Units'!Q280=\"\",\"\",'2. Assisted & Restricted Units'!Q280)","v":""},{"$f":"IF('2. Assisted & Restricted Units'!R280=\"\",\"\",'2. Assisted & Restricted Units'!R280)","v":""},{"$f":"IF(A280=\"\",\"\",'1. Checklist & Certification'!$K$1)","v":""},{"$f":"IF(A280=\"\",\"\",'1. Checklist & Certification'!$C$62)","v":""},{"$f":"IF(A280=\"\",\"\",'1. Checklist & Certification'!$K$62)","v":""},{"$f":"IF(A280=\"\",\"\",'1. Checklist & Certification'!$C$6)","v":""},{"$f":"IF(A280=\"\",\"\",'1. Checklist & Certification'!$G$4)","v":""},{"$f":"IF(A280=\"\",\"\",'1. Checklist & Certification'!$C$7)","v":""},{"$f":"IF(A280=\"\",\"\",'1. Checklist & Certification'!$C$8)","v":""},{"$f":"IF(A280=\"\",\"\",'1. Checklist & Certification'!$F$7)","v":""},{"$f":"IF(A280=\"\",\"\",'1. Checklist & Certification'!$F$8)","v":""},{"$f":"IF(A280=\"\",\"\",'1. Checklist & Certification'!$B$9)","v":""},{"$f":"IF(A280=\"\",\"\",'1. Checklist & Certification'!$F$9)","v":""},{"$f":"IF(A280=\"\",\"\",'1. Checklist & Certification'!$C$10)","v":""},{"$f":"IF(A280=\"\",\"\",'1. Checklist & Certification'!$C$11)","v":""},{"$f":"IF(A280=\"\",\"\",'1. Checklist & Certification'!$C$12)","v":""},{"$f":"IF(A280=\"\",\"\",'1. Checklist & Certification'!$B$14)","v":""},{"$f":"IF(A280=\"\",\"\",'1. Checklist & Certification'!$E$14)","v":""},{"$f":"IF(B280=\"\",\"\",'1. Checklist & Certification'!$G$14)","v":""},{"$f":"IF(A280=\"\",\"\",'MHP Family Income & Rent Limits'!$B$3)","v":""},{"$f":"IF(A280=\"\",\"\",'MHP Family Income & Rent Limits'!$J$3)","v":""},{"$f":"IF(A280=\"\",\"\",'MHP Family Income & Rent Limits'!$E$4)","v":""},{"$f":"IF(A280=\"\",\"\",'MHP Family Income & Rent Limits'!$C$7)","v":""},{"$f":"IF(A280=\"\",\"\",'MHP Family Income & Rent Limits'!$F$8)","v":""},{"$f":"IF(A280=\"\",\"\",'1. Checklist & Certification'!$G$4)","v":""},{"$f":"IF(A280=\"\",\"\",'1. Checklist & Certification'!$K$39)","v":""},{"$f":"IF(A280=\"\",\"\",'1. Checklist & Certification'!$K$43)","v":""},{"$f":"IF(A280=\"\",\"\",'1. Checklist & Certification'!$K$45)","v":""},{"$f":"IF(A280=\"\",\"\",'1. Checklist & Certification'!$K$49)","v":""},{"$f":"IF(A280=\"\",\"\",'1. Checklist & Certification'!$E$66)","v":""},{"$f":"IF(A280=\"\",\"\",'1. Checklist & Certification'!$E$67)","v":""},{"$f":"IF(A280=\"\",\"\",'1. Checklist & Certification'!$E$68)","v":""},{"$f":"IF(A280=\"\",\"\",'1. Checklist & Certification'!$G$66)","v":""},{"$f":"IF(A280=\"\",\"\",'1. Checklist & Certification'!$H$66)","v":""},{"$f":"IF(A280=\"\",\"\",'1. Checklist & Certification'!$I$66)","v":""},{"$f":"IF(A280=\"\",\"\",'1. Checklist & Certification'!$I$67)","v":""},{"$f":"IF(A280=\"\",\"\",'1. Checklist & Certification'!$I$68)","v":""},null,{"$f":"IF(C280=\"\",\"\",HLOOKUP(C280,'MHP Family Income & Rent Limits'!$E$12:$L$26,2,FALSE))","v":""},{"$f":"IF(C280=\"\",\"\",HLOOKUP(C280,'MHP Family Income & Rent Limits'!$E$12:$L$26,3,FALSE))","v":""},{"$f":"IF(C280=\"\",\"\",HLOOKUP(C280,'MHP Family Income & Rent Limits'!$E$12:$L$26,4,FALSE))","v":""},{"$f":"IF(C280=\"\",\"\",HLOOKUP(C280,'MHP Family Income & Rent Limits'!$E$12:$L$26,5,FALSE))","v":""},{"$f":"IF(C280=\"\",\"\",HLOOKUP(C280,'MHP Family Income & Rent Limits'!$E$12:$L$26,6,FALSE))","v":""},{"$f":"IF(C280=\"\",\"\",HLOOKUP(C280,'MHP Family Income & Rent Limits'!$E$12:$L$26,7,FALSE))","v":""},{"$f":"IF(C280=\"\",\"\",HLOOKUP(C280,'MHP Family Income & Rent Limits'!$E$12:$L$26,8,FALSE))","v":""},{"$f":"IF(C280=\"\",\"\",HLOOKUP(C280,'MHP Family Income & Rent Limits'!$E$12:$L$26,9,FALSE))","v":""},{"$f":"IF(C280=\"\",\"\",HLOOKUP(C280,'MHP Family Income & Rent Limits'!$E$12:$L$26,10,FALSE))","v":""},{"$f":"IF(C280=\"\",\"\",HLOOKUP(C280,'MHP Family Income & Rent Limits'!$E$12:$L$26,11,FALSE))","v":""},{"$f":"IF(C280=\"\",\"\",HLOOKUP(C280,'MHP Family Income & Rent Limits'!$E$12:$L$26,12,FALSE))","v":""},{"$f":"IF(C280=\"\",\"\",HLOOKUP(C280,'MHP Family Income & Rent Limits'!$E$12:$L$26,13,FALSE))","v":""},{"$f":"IF(C280=\"\",\"\",HLOOKUP(C280,'MHP Family Income & Rent Limits'!$E$12:$L$26,14,FALSE))","v":""},{"$f":"IF(C280=\"\",\"\",HLOOKUP(C280,'MHP Family Income & Rent Limits'!$E$12:$L$26,15,FALSE))","v":""}]
[{"$f":"IF('2. Assisted & Restricted Units'!A281=\"\",\"\",'2. Assisted & Restricted Units'!A281)","v":""},{"$f":"IF('2. Assisted & Restricted Units'!B281=\"\",\"\",'2. Assisted & Restricted Units'!B281)","v":""},{"$f":"IF('2. Assisted & Restricted Units'!D281=\"\",\"\",'2. Assisted & Restricted Units'!D281)","v":""},{"$f":"IF('2. Assisted & Restricted Units'!E281=\"\",\"\",'2. Assisted & Restricted Units'!E281)","v":""},{"$f":"IF('2. Assisted & Restricted Units'!H281=\"\",\"\",'2. Assisted & Restricted Units'!H281)","v":""},{"$f":"_xlfn.IFS(E281=\"\",\"\",E281>BO281,$BP$6,E281>BN281,$BO$6,E281>BM281,$BN$6,E281>BL281,$BM$6,E281>BK281,$BL$6,E281>BJ281,$BK$6,E281>BI281,$BJ$6,E281>BH281,$BI$6,E281>BG281,$BH$6,E281>BF281,$BG$6,E281>BE281,$BF$6,E281>BD281,$BE$6,E281>BC281,$BD$6,E281>=0,$BC$6)","v":""},{"$f":"IF('2. Assisted & Restricted Units'!T281=\"\",\"\",'2. Assisted & Restricted Units'!T281)","v":""},{"$f":"IF('2. Assisted & Restricted Units'!I281=\"\",\"\",'2. Assisted & Restricted Units'!I281)","v":""},{"$f":"IF('2. Assisted & Restricted Units'!AP281=\"\",\"\",'2. Assisted & Restricted Units'!AP281)","v":0},{"$f":"IF('2. Assisted & Restricted Units'!AT281=\"\",\"\",'2. Assisted & Restricted Units'!AT281)","v":""},0,{"$f":"IF('2. Assisted & Restricted Units'!AV281=\"\",\"\",'2. Assisted & Restricted Units'!AV281)","v":""},{"$f":"IF('2. Assisted & Restricted Units'!L281=\"\",\"\",'2. Assisted & Restricted Units'!L281)","v":""},{"$f":"IF('2. Assisted & Restricted Units'!M281=\"\",\"\",'2. Assisted & Restricted Units'!M281)","v":""},{"$f":"IF('2. Assisted & Restricted Units'!O281=\"\",\"\",'2. Assisted & Restricted Units'!O281)","v":""},{"$f":"IF('2. Assisted & Restricted Units'!P281=\"\",\"\",'2. Assisted & Restricted Units'!P281)","v":""},{"$f":"IF('2. Assisted & Restricted Units'!Q281=\"\",\"\",'2. Assisted & Restricted Units'!Q281)","v":""},{"$f":"IF('2. Assisted & Restricted Units'!R281=\"\",\"\",'2. Assisted & Restricted Units'!R281)","v":""},{"$f":"IF(A281=\"\",\"\",'1. Checklist & Certification'!$K$1)","v":""},{"$f":"IF(A281=\"\",\"\",'1. Checklist & Certification'!$C$62)","v":""},{"$f":"IF(A281=\"\",\"\",'1. Checklist & Certification'!$K$62)","v":""},{"$f":"IF(A281=\"\",\"\",'1. Checklist & Certification'!$C$6)","v":""},{"$f":"IF(A281=\"\",\"\",'1. Checklist & Certification'!$G$4)","v":""},{"$f":"IF(A281=\"\",\"\",'1. Checklist & Certification'!$C$7)","v":""},{"$f":"IF(A281=\"\",\"\",'1. Checklist & Certification'!$C$8)","v":""},{"$f":"IF(A281=\"\",\"\",'1. Checklist & Certification'!$F$7)","v":""},{"$f":"IF(A281=\"\",\"\",'1. Checklist & Certification'!$F$8)","v":""},{"$f":"IF(A281=\"\",\"\",'1. Checklist & Certification'!$B$9)","v":""},{"$f":"IF(A281=\"\",\"\",'1. Checklist & Certification'!$F$9)","v":""},{"$f":"IF(A281=\"\",\"\",'1. Checklist & Certification'!$C$10)","v":""},{"$f":"IF(A281=\"\",\"\",'1. Checklist & Certification'!$C$11)","v":""},{"$f":"IF(A281=\"\",\"\",'1. Checklist & Certification'!$C$12)","v":""},{"$f":"IF(A281=\"\",\"\",'1. Checklist & Certification'!$B$14)","v":""},{"$f":"IF(A281=\"\",\"\",'1. Checklist & Certification'!$E$14)","v":""},{"$f":"IF(B281=\"\",\"\",'1. Checklist & Certification'!$G$14)","v":""},{"$f":"IF(A281=\"\",\"\",'MHP Family Income & Rent Limits'!$B$3)","v":""},{"$f":"IF(A281=\"\",\"\",'MHP Family Income & Rent Limits'!$J$3)","v":""},{"$f":"IF(A281=\"\",\"\",'MHP Family Income & Rent Limits'!$E$4)","v":""},{"$f":"IF(A281=\"\",\"\",'MHP Family Income & Rent Limits'!$C$7)","v":""},{"$f":"IF(A281=\"\",\"\",'MHP Family Income & Rent Limits'!$F$8)","v":""},{"$f":"IF(A281=\"\",\"\",'1. Checklist & Certification'!$G$4)","v":""},{"$f":"IF(A281=\"\",\"\",'1. Checklist & Certification'!$K$39)","v":""},{"$f":"IF(A281=\"\",\"\",'1. Checklist & Certification'!$K$43)","v":""},{"$f":"IF(A281=\"\",\"\",'1. Checklist & Certification'!$K$45)","v":""},{"$f":"IF(A281=\"\",\"\",'1. Checklist & Certification'!$K$49)","v":""},{"$f":"IF(A281=\"\",\"\",'1. Checklist & Certification'!$E$66)","v":""},{"$f":"IF(A281=\"\",\"\",'1. Checklist & Certification'!$E$67)","v":""},{"$f":"IF(A281=\"\",\"\",'1. Checklist & Certification'!$E$68)","v":""},{"$f":"IF(A281=\"\",\"\",'1. Checklist & Certification'!$G$66)","v":""},{"$f":"IF(A281=\"\",\"\",'1. Checklist & Certification'!$H$66)","v":""},{"$f":"IF(A281=\"\",\"\",'1. Checklist & Certification'!$I$66)","v":""},{"$f":"IF(A281=\"\",\"\",'1. Checklist & Certification'!$I$67)","v":""},{"$f":"IF(A281=\"\",\"\",'1. Checklist & Certification'!$I$68)","v":""},null,{"$f":"IF(C281=\"\",\"\",HLOOKUP(C281,'MHP Family Income & Rent Limits'!$E$12:$L$26,2,FALSE))","v":""},{"$f":"IF(C281=\"\",\"\",HLOOKUP(C281,'MHP Family Income & Rent Limits'!$E$12:$L$26,3,FALSE))","v":""},{"$f":"IF(C281=\"\",\"\",HLOOKUP(C281,'MHP Family Income & Rent Limits'!$E$12:$L$26,4,FALSE))","v":""},{"$f":"IF(C281=\"\",\"\",HLOOKUP(C281,'MHP Family Income & Rent Limits'!$E$12:$L$26,5,FALSE))","v":""},{"$f":"IF(C281=\"\",\"\",HLOOKUP(C281,'MHP Family Income & Rent Limits'!$E$12:$L$26,6,FALSE))","v":""},{"$f":"IF(C281=\"\",\"\",HLOOKUP(C281,'MHP Family Income & Rent Limits'!$E$12:$L$26,7,FALSE))","v":""},{"$f":"IF(C281=\"\",\"\",HLOOKUP(C281,'MHP Family Income & Rent Limits'!$E$12:$L$26,8,FALSE))","v":""},{"$f":"IF(C281=\"\",\"\",HLOOKUP(C281,'MHP Family Income & Rent Limits'!$E$12:$L$26,9,FALSE))","v":""},{"$f":"IF(C281=\"\",\"\",HLOOKUP(C281,'MHP Family Income & Rent Limits'!$E$12:$L$26,10,FALSE))","v":""},{"$f":"IF(C281=\"\",\"\",HLOOKUP(C281,'MHP Family Income & Rent Limits'!$E$12:$L$26,11,FALSE))","v":""},{"$f":"IF(C281=\"\",\"\",HLOOKUP(C281,'MHP Family Income & Rent Limits'!$E$12:$L$26,12,FALSE))","v":""},{"$f":"IF(C281=\"\",\"\",HLOOKUP(C281,'MHP Family Income & Rent Limits'!$E$12:$L$26,13,FALSE))","v":""},{"$f":"IF(C281=\"\",\"\",HLOOKUP(C281,'MHP Family Income & Rent Limits'!$E$12:$L$26,14,FALSE))","v":""},{"$f":"IF(C281=\"\",\"\",HLOOKUP(C281,'MHP Family Income & Rent Limits'!$E$12:$L$26,15,FALSE))","v":""}]
[{"$f":"IF('2. Assisted & Restricted Units'!A282=\"\",\"\",'2. Assisted & Restricted Units'!A282)","v":""},{"$f":"IF('2. Assisted & Restricted Units'!B282=\"\",\"\",'2. Assisted & Restricted Units'!B282)","v":""},{"$f":"IF('2. Assisted & Restricted Units'!D282=\"\",\"\",'2. Assisted & Restricted Units'!D282)","v":""},{"$f":"IF('2. Assisted & Restricted Units'!E282=\"\",\"\",'2. Assisted & Restricted Units'!E282)","v":""},{"$f":"IF('2. Assisted & Restricted Units'!H282=\"\",\"\",'2. Assisted & Restricted Units'!H282)","v":""},{"$f":"_xlfn.IFS(E282=\"\",\"\",E282>BO282,$BP$6,E282>BN282,$BO$6,E282>BM282,$BN$6,E282>BL282,$BM$6,E282>BK282,$BL$6,E282>BJ282,$BK$6,E282>BI282,$BJ$6,E282>BH282,$BI$6,E282>BG282,$BH$6,E282>BF282,$BG$6,E282>BE282,$BF$6,E282>BD282,$BE$6,E282>BC282,$BD$6,E282>=0,$BC$6)","v":""},{"$f":"IF('2. Assisted & Restricted Units'!T282=\"\",\"\",'2. Assisted & Restricted Units'!T282)","v":""},{"$f":"IF('2. Assisted & Restricted Units'!I282=\"\",\"\",'2. Assisted & Restricted Units'!I282)","v":""},{"$f":"IF('2. Assisted & Restricted Units'!AP282=\"\",\"\",'2. Assisted & Restricted Units'!AP282)","v":0},{"$f":"IF('2. Assisted & Restricted Units'!AT282=\"\",\"\",'2. Assisted & Restricted Units'!AT282)","v":""},0,{"$f":"IF('2. Assisted & Restricted Units'!AV282=\"\",\"\",'2. Assisted & Restricted Units'!AV282)","v":""},{"$f":"IF('2. Assisted & Restricted Units'!L282=\"\",\"\",'2. Assisted & Restricted Units'!L282)","v":""},{"$f":"IF('2. Assisted & Restricted Units'!M282=\"\",\"\",'2. Assisted & Restricted Units'!M282)","v":""},{"$f":"IF('2. Assisted & Restricted Units'!O282=\"\",\"\",'2. Assisted & Restricted Units'!O282)","v":""},{"$f":"IF('2. Assisted & Restricted Units'!P282=\"\",\"\",'2. Assisted & Restricted Units'!P282)","v":""},{"$f":"IF('2. Assisted & Restricted Units'!Q282=\"\",\"\",'2. Assisted & Restricted Units'!Q282)","v":""},{"$f":"IF('2. Assisted & Restricted Units'!R282=\"\",\"\",'2. Assisted & Restricted Units'!R282)","v":""},{"$f":"IF(A282=\"\",\"\",'1. Checklist & Certification'!$K$1)","v":""},{"$f":"IF(A282=\"\",\"\",'1. Checklist & Certification'!$C$62)","v":""},{"$f":"IF(A282=\"\",\"\",'1. Checklist & Certification'!$K$62)","v":""},{"$f":"IF(A282=\"\",\"\",'1. Checklist & Certification'!$C$6)","v":""},{"$f":"IF(A282=\"\",\"\",'1. Checklist & Certification'!$G$4)","v":""},{"$f":"IF(A282=\"\",\"\",'1. Checklist & Certification'!$C$7)","v":""},{"$f":"IF(A282=\"\",\"\",'1. Checklist & Certification'!$C$8)","v":""},{"$f":"IF(A282=\"\",\"\",'1. Checklist & Certification'!$F$7)","v":""},{"$f":"IF(A282=\"\",\"\",'1. Checklist & Certification'!$F$8)","v":""},{"$f":"IF(A282=\"\",\"\",'1. Checklist & Certification'!$B$9)","v":""},{"$f":"IF(A282=\"\",\"\",'1. Checklist & Certification'!$F$9)","v":""},{"$f":"IF(A282=\"\",\"\",'1. Checklist & Certification'!$C$10)","v":""},{"$f":"IF(A282=\"\",\"\",'1. Checklist & Certification'!$C$11)","v":""},{"$f":"IF(A282=\"\",\"\",'1. Checklist & Certification'!$C$12)","v":""},{"$f":"IF(A282=\"\",\"\",'1. Checklist & Certification'!$B$14)","v":""},{"$f":"IF(A282=\"\",\"\",'1. Checklist & Certification'!$E$14)","v":""},{"$f":"IF(B282=\"\",\"\",'1. Checklist & Certification'!$G$14)","v":""},{"$f":"IF(A282=\"\",\"\",'MHP Family Income & Rent Limits'!$B$3)","v":""},{"$f":"IF(A282=\"\",\"\",'MHP Family Income & Rent Limits'!$J$3)","v":""},{"$f":"IF(A282=\"\",\"\",'MHP Family Income & Rent Limits'!$E$4)","v":""},{"$f":"IF(A282=\"\",\"\",'MHP Family Income & Rent Limits'!$C$7)","v":""},{"$f":"IF(A282=\"\",\"\",'MHP Family Income & Rent Limits'!$F$8)","v":""},{"$f":"IF(A282=\"\",\"\",'1. Checklist & Certification'!$G$4)","v":""},{"$f":"IF(A282=\"\",\"\",'1. Checklist & Certification'!$K$39)","v":""},{"$f":"IF(A282=\"\",\"\",'1. Checklist & Certification'!$K$43)","v":""},{"$f":"IF(A282=\"\",\"\",'1. Checklist & Certification'!$K$45)","v":""},{"$f":"IF(A282=\"\",\"\",'1. Checklist & Certification'!$K$49)","v":""},{"$f":"IF(A282=\"\",\"\",'1. Checklist & Certification'!$E$66)","v":""},{"$f":"IF(A282=\"\",\"\",'1. Checklist & Certification'!$E$67)","v":""},{"$f":"IF(A282=\"\",\"\",'1. Checklist & Certification'!$E$68)","v":""},{"$f":"IF(A282=\"\",\"\",'1. Checklist & Certification'!$G$66)","v":""},{"$f":"IF(A282=\"\",\"\",'1. Checklist & Certification'!$H$66)","v":""},{"$f":"IF(A282=\"\",\"\",'1. Checklist & Certification'!$I$66)","v":""},{"$f":"IF(A282=\"\",\"\",'1. Checklist & Certification'!$I$67)","v":""},{"$f":"IF(A282=\"\",\"\",'1. Checklist & Certification'!$I$68)","v":""},null,{"$f":"IF(C282=\"\",\"\",HLOOKUP(C282,'MHP Family Income & Rent Limits'!$E$12:$L$26,2,FALSE))","v":""},{"$f":"IF(C282=\"\",\"\",HLOOKUP(C282,'MHP Family Income & Rent Limits'!$E$12:$L$26,3,FALSE))","v":""},{"$f":"IF(C282=\"\",\"\",HLOOKUP(C282,'MHP Family Income & Rent Limits'!$E$12:$L$26,4,FALSE))","v":""},{"$f":"IF(C282=\"\",\"\",HLOOKUP(C282,'MHP Family Income & Rent Limits'!$E$12:$L$26,5,FALSE))","v":""},{"$f":"IF(C282=\"\",\"\",HLOOKUP(C282,'MHP Family Income & Rent Limits'!$E$12:$L$26,6,FALSE))","v":""},{"$f":"IF(C282=\"\",\"\",HLOOKUP(C282,'MHP Family Income & Rent Limits'!$E$12:$L$26,7,FALSE))","v":""},{"$f":"IF(C282=\"\",\"\",HLOOKUP(C282,'MHP Family Income & Rent Limits'!$E$12:$L$26,8,FALSE))","v":""},{"$f":"IF(C282=\"\",\"\",HLOOKUP(C282,'MHP Family Income & Rent Limits'!$E$12:$L$26,9,FALSE))","v":""},{"$f":"IF(C282=\"\",\"\",HLOOKUP(C282,'MHP Family Income & Rent Limits'!$E$12:$L$26,10,FALSE))","v":""},{"$f":"IF(C282=\"\",\"\",HLOOKUP(C282,'MHP Family Income & Rent Limits'!$E$12:$L$26,11,FALSE))","v":""},{"$f":"IF(C282=\"\",\"\",HLOOKUP(C282,'MHP Family Income & Rent Limits'!$E$12:$L$26,12,FALSE))","v":""},{"$f":"IF(C282=\"\",\"\",HLOOKUP(C282,'MHP Family Income & Rent Limits'!$E$12:$L$26,13,FALSE))","v":""},{"$f":"IF(C282=\"\",\"\",HLOOKUP(C282,'MHP Family Income & Rent Limits'!$E$12:$L$26,14,FALSE))","v":""},{"$f":"IF(C282=\"\",\"\",HLOOKUP(C282,'MHP Family Income & Rent Limits'!$E$12:$L$26,15,FALSE))","v":""}]
[{"$f":"IF('2. Assisted & Restricted Units'!A283=\"\",\"\",'2. Assisted & Restricted Units'!A283)","v":""},{"$f":"IF('2. Assisted & Restricted Units'!B283=\"\",\"\",'2. Assisted & Restricted Units'!B283)","v":""},{"$f":"IF('2. Assisted & Restricted Units'!D283=\"\",\"\",'2. Assisted & Restricted Units'!D283)","v":""},{"$f":"IF('2. Assisted & Restricted Units'!E283=\"\",\"\",'2. Assisted & Restricted Units'!E283)","v":""},{"$f":"IF('2. Assisted & Restricted Units'!H283=\"\",\"\",'2. Assisted & Restricted Units'!H283)","v":""},{"$f":"_xlfn.IFS(E283=\"\",\"\",E283>BO283,$BP$6,E283>BN283,$BO$6,E283>BM283,$BN$6,E283>BL283,$BM$6,E283>BK283,$BL$6,E283>BJ283,$BK$6,E283>BI283,$BJ$6,E283>BH283,$BI$6,E283>BG283,$BH$6,E283>BF283,$BG$6,E283>BE283,$BF$6,E283>BD283,$BE$6,E283>BC283,$BD$6,E283>=0,$BC$6)","v":""},{"$f":"IF('2. Assisted & Restricted Units'!T283=\"\",\"\",'2. Assisted & Restricted Units'!T283)","v":""},{"$f":"IF('2. Assisted & Restricted Units'!I283=\"\",\"\",'2. Assisted & Restricted Units'!I283)","v":""},{"$f":"IF('2. Assisted & Restricted Units'!AP283=\"\",\"\",'2. Assisted & Restricted Units'!AP283)","v":0},{"$f":"IF('2. Assisted & Restricted Units'!AT283=\"\",\"\",'2. Assisted & Restricted Units'!AT283)","v":""},0,{"$f":"IF('2. Assisted & Restricted Units'!AV283=\"\",\"\",'2. Assisted & Restricted Units'!AV283)","v":""},{"$f":"IF('2. Assisted & Restricted Units'!L283=\"\",\"\",'2. Assisted & Restricted Units'!L283)","v":""},{"$f":"IF('2. Assisted & Restricted Units'!M283=\"\",\"\",'2. Assisted & Restricted Units'!M283)","v":""},{"$f":"IF('2. Assisted & Restricted Units'!O283=\"\",\"\",'2. Assisted & Restricted Units'!O283)","v":""},{"$f":"IF('2. Assisted & Restricted Units'!P283=\"\",\"\",'2. Assisted & Restricted Units'!P283)","v":""},{"$f":"IF('2. Assisted & Restricted Units'!Q283=\"\",\"\",'2. Assisted & Restricted Units'!Q283)","v":""},{"$f":"IF('2. Assisted & Restricted Units'!R283=\"\",\"\",'2. Assisted & Restricted Units'!R283)","v":""},{"$f":"IF(A283=\"\",\"\",'1. Checklist & Certification'!$K$1)","v":""},{"$f":"IF(A283=\"\",\"\",'1. Checklist & Certification'!$C$62)","v":""},{"$f":"IF(A283=\"\",\"\",'1. Checklist & Certification'!$K$62)","v":""},{"$f":"IF(A283=\"\",\"\",'1. Checklist & Certification'!$C$6)","v":""},{"$f":"IF(A283=\"\",\"\",'1. Checklist & Certification'!$G$4)","v":""},{"$f":"IF(A283=\"\",\"\",'1. Checklist & Certification'!$C$7)","v":""},{"$f":"IF(A283=\"\",\"\",'1. Checklist & Certification'!$C$8)","v":""},{"$f":"IF(A283=\"\",\"\",'1. Checklist & Certification'!$F$7)","v":""},{"$f":"IF(A283=\"\",\"\",'1. Checklist & Certification'!$F$8)","v":""},{"$f":"IF(A283=\"\",\"\",'1. Checklist & Certification'!$B$9)","v":""},{"$f":"IF(A283=\"\",\"\",'1. Checklist & Certification'!$F$9)","v":""},{"$f":"IF(A283=\"\",\"\",'1. Checklist & Certification'!$C$10)","v":""},{"$f":"IF(A283=\"\",\"\",'1. Checklist & Certification'!$C$11)","v":""},{"$f":"IF(A283=\"\",\"\",'1. Checklist & Certification'!$C$12)","v":""},{"$f":"IF(A283=\"\",\"\",'1. Checklist & Certification'!$B$14)","v":""},{"$f":"IF(A283=\"\",\"\",'1. Checklist & Certification'!$E$14)","v":""},{"$f":"IF(B283=\"\",\"\",'1. Checklist & Certification'!$G$14)","v":""},{"$f":"IF(A283=\"\",\"\",'MHP Family Income & Rent Limits'!$B$3)","v":""},{"$f":"IF(A283=\"\",\"\",'MHP Family Income & Rent Limits'!$J$3)","v":""},{"$f":"IF(A283=\"\",\"\",'MHP Family Income & Rent Limits'!$E$4)","v":""},{"$f":"IF(A283=\"\",\"\",'MHP Family Income & Rent Limits'!$C$7)","v":""},{"$f":"IF(A283=\"\",\"\",'MHP Family Income & Rent Limits'!$F$8)","v":""},{"$f":"IF(A283=\"\",\"\",'1. Checklist & Certification'!$G$4)","v":""},{"$f":"IF(A283=\"\",\"\",'1. Checklist & Certification'!$K$39)","v":""},{"$f":"IF(A283=\"\",\"\",'1. Checklist & Certification'!$K$43)","v":""},{"$f":"IF(A283=\"\",\"\",'1. Checklist & Certification'!$K$45)","v":""},{"$f":"IF(A283=\"\",\"\",'1. Checklist & Certification'!$K$49)","v":""},{"$f":"IF(A283=\"\",\"\",'1. Checklist & Certification'!$E$66)","v":""},{"$f":"IF(A283=\"\",\"\",'1. Checklist & Certification'!$E$67)","v":""},{"$f":"IF(A283=\"\",\"\",'1. Checklist & Certification'!$E$68)","v":""},{"$f":"IF(A283=\"\",\"\",'1. Checklist & Certification'!$G$66)","v":""},{"$f":"IF(A283=\"\",\"\",'1. Checklist & Certification'!$H$66)","v":""},{"$f":"IF(A283=\"\",\"\",'1. Checklist & Certification'!$I$66)","v":""},{"$f":"IF(A283=\"\",\"\",'1. Checklist & Certification'!$I$67)","v":""},{"$f":"IF(A283=\"\",\"\",'1. Checklist & Certification'!$I$68)","v":""},null,{"$f":"IF(C283=\"\",\"\",HLOOKUP(C283,'MHP Family Income & Rent Limits'!$E$12:$L$26,2,FALSE))","v":""},{"$f":"IF(C283=\"\",\"\",HLOOKUP(C283,'MHP Family Income & Rent Limits'!$E$12:$L$26,3,FALSE))","v":""},{"$f":"IF(C283=\"\",\"\",HLOOKUP(C283,'MHP Family Income & Rent Limits'!$E$12:$L$26,4,FALSE))","v":""},{"$f":"IF(C283=\"\",\"\",HLOOKUP(C283,'MHP Family Income & Rent Limits'!$E$12:$L$26,5,FALSE))","v":""},{"$f":"IF(C283=\"\",\"\",HLOOKUP(C283,'MHP Family Income & Rent Limits'!$E$12:$L$26,6,FALSE))","v":""},{"$f":"IF(C283=\"\",\"\",HLOOKUP(C283,'MHP Family Income & Rent Limits'!$E$12:$L$26,7,FALSE))","v":""},{"$f":"IF(C283=\"\",\"\",HLOOKUP(C283,'MHP Family Income & Rent Limits'!$E$12:$L$26,8,FALSE))","v":""},{"$f":"IF(C283=\"\",\"\",HLOOKUP(C283,'MHP Family Income & Rent Limits'!$E$12:$L$26,9,FALSE))","v":""},{"$f":"IF(C283=\"\",\"\",HLOOKUP(C283,'MHP Family Income & Rent Limits'!$E$12:$L$26,10,FALSE))","v":""},{"$f":"IF(C283=\"\",\"\",HLOOKUP(C283,'MHP Family Income & Rent Limits'!$E$12:$L$26,11,FALSE))","v":""},{"$f":"IF(C283=\"\",\"\",HLOOKUP(C283,'MHP Family Income & Rent Limits'!$E$12:$L$26,12,FALSE))","v":""},{"$f":"IF(C283=\"\",\"\",HLOOKUP(C283,'MHP Family Income & Rent Limits'!$E$12:$L$26,13,FALSE))","v":""},{"$f":"IF(C283=\"\",\"\",HLOOKUP(C283,'MHP Family Income & Rent Limits'!$E$12:$L$26,14,FALSE))","v":""},{"$f":"IF(C283=\"\",\"\",HLOOKUP(C283,'MHP Family Income & Rent Limits'!$E$12:$L$26,15,FALSE))","v":""}]
[{"$f":"IF('2. Assisted & Restricted Units'!A284=\"\",\"\",'2. Assisted & Restricted Units'!A284)","v":""},{"$f":"IF('2. Assisted & Restricted Units'!B284=\"\",\"\",'2. Assisted & Restricted Units'!B284)","v":""},{"$f":"IF('2. Assisted & Restricted Units'!D284=\"\",\"\",'2. Assisted & Restricted Units'!D284)","v":""},{"$f":"IF('2. Assisted & Restricted Units'!E284=\"\",\"\",'2. Assisted & Restricted Units'!E284)","v":""},{"$f":"IF('2. Assisted & Restricted Units'!H284=\"\",\"\",'2. Assisted & Restricted Units'!H284)","v":""},{"$f":"_xlfn.IFS(E284=\"\",\"\",E284>BO284,$BP$6,E284>BN284,$BO$6,E284>BM284,$BN$6,E284>BL284,$BM$6,E284>BK284,$BL$6,E284>BJ284,$BK$6,E284>BI284,$BJ$6,E284>BH284,$BI$6,E284>BG284,$BH$6,E284>BF284,$BG$6,E284>BE284,$BF$6,E284>BD284,$BE$6,E284>BC284,$BD$6,E284>=0,$BC$6)","v":""},{"$f":"IF('2. Assisted & Restricted Units'!T284=\"\",\"\",'2. Assisted & Restricted Units'!T284)","v":""},{"$f":"IF('2. Assisted & Restricted Units'!I284=\"\",\"\",'2. Assisted & Restricted Units'!I284)","v":""},{"$f":"IF('2. Assisted & Restricted Units'!AP284=\"\",\"\",'2. Assisted & Restricted Units'!AP284)","v":0},{"$f":"IF('2. Assisted & Restricted Units'!AT284=\"\",\"\",'2. Assisted & Restricted Units'!AT284)","v":""},0,{"$f":"IF('2. Assisted & Restricted Units'!AV284=\"\",\"\",'2. Assisted & Restricted Units'!AV284)","v":""},{"$f":"IF('2. Assisted & Restricted Units'!L284=\"\",\"\",'2. Assisted & Restricted Units'!L284)","v":""},{"$f":"IF('2. Assisted & Restricted Units'!M284=\"\",\"\",'2. Assisted & Restricted Units'!M284)","v":""},{"$f":"IF('2. Assisted & Restricted Units'!O284=\"\",\"\",'2. Assisted & Restricted Units'!O284)","v":""},{"$f":"IF('2. Assisted & Restricted Units'!P284=\"\",\"\",'2. Assisted & Restricted Units'!P284)","v":""},{"$f":"IF('2. Assisted & Restricted Units'!Q284=\"\",\"\",'2. Assisted & Restricted Units'!Q284)","v":""},{"$f":"IF('2. Assisted & Restricted Units'!R284=\"\",\"\",'2. Assisted & Restricted Units'!R284)","v":""},{"$f":"IF(A284=\"\",\"\",'1. Checklist & Certification'!$K$1)","v":""},{"$f":"IF(A284=\"\",\"\",'1. Checklist & Certification'!$C$62)","v":""},{"$f":"IF(A284=\"\",\"\",'1. Checklist & Certification'!$K$62)","v":""},{"$f":"IF(A284=\"\",\"\",'1. Checklist & Certification'!$C$6)","v":""},{"$f":"IF(A284=\"\",\"\",'1. Checklist & Certification'!$G$4)","v":""},{"$f":"IF(A284=\"\",\"\",'1. Checklist & Certification'!$C$7)","v":""},{"$f":"IF(A284=\"\",\"\",'1. Checklist & Certification'!$C$8)","v":""},{"$f":"IF(A284=\"\",\"\",'1. Checklist & Certification'!$F$7)","v":""},{"$f":"IF(A284=\"\",\"\",'1. Checklist & Certification'!$F$8)","v":""},{"$f":"IF(A284=\"\",\"\",'1. Checklist & Certification'!$B$9)","v":""},{"$f":"IF(A284=\"\",\"\",'1. Checklist & Certification'!$F$9)","v":""},{"$f":"IF(A284=\"\",\"\",'1. Checklist & Certification'!$C$10)","v":""},{"$f":"IF(A284=\"\",\"\",'1. Checklist & Certification'!$C$11)","v":""},{"$f":"IF(A284=\"\",\"\",'1. Checklist & Certification'!$C$12)","v":""},{"$f":"IF(A284=\"\",\"\",'1. Checklist & Certification'!$B$14)","v":""},{"$f":"IF(A284=\"\",\"\",'1. Checklist & Certification'!$E$14)","v":""},{"$f":"IF(B284=\"\",\"\",'1. Checklist & Certification'!$G$14)","v":""},{"$f":"IF(A284=\"\",\"\",'MHP Family Income & Rent Limits'!$B$3)","v":""},{"$f":"IF(A284=\"\",\"\",'MHP Family Income & Rent Limits'!$J$3)","v":""},{"$f":"IF(A284=\"\",\"\",'MHP Family Income & Rent Limits'!$E$4)","v":""},{"$f":"IF(A284=\"\",\"\",'MHP Family Income & Rent Limits'!$C$7)","v":""},{"$f":"IF(A284=\"\",\"\",'MHP Family Income & Rent Limits'!$F$8)","v":""},{"$f":"IF(A284=\"\",\"\",'1. Checklist & Certification'!$G$4)","v":""},{"$f":"IF(A284=\"\",\"\",'1. Checklist & Certification'!$K$39)","v":""},{"$f":"IF(A284=\"\",\"\",'1. Checklist & Certification'!$K$43)","v":""},{"$f":"IF(A284=\"\",\"\",'1. Checklist & Certification'!$K$45)","v":""},{"$f":"IF(A284=\"\",\"\",'1. Checklist & Certification'!$K$49)","v":""},{"$f":"IF(A284=\"\",\"\",'1. Checklist & Certification'!$E$66)","v":""},{"$f":"IF(A284=\"\",\"\",'1. Checklist & Certification'!$E$67)","v":""},{"$f":"IF(A284=\"\",\"\",'1. Checklist & Certification'!$E$68)","v":""},{"$f":"IF(A284=\"\",\"\",'1. Checklist & Certification'!$G$66)","v":""},{"$f":"IF(A284=\"\",\"\",'1. Checklist & Certification'!$H$66)","v":""},{"$f":"IF(A284=\"\",\"\",'1. Checklist & Certification'!$I$66)","v":""},{"$f":"IF(A284=\"\",\"\",'1. Checklist & Certification'!$I$67)","v":""},{"$f":"IF(A284=\"\",\"\",'1. Checklist & Certification'!$I$68)","v":""},null,{"$f":"IF(C284=\"\",\"\",HLOOKUP(C284,'MHP Family Income & Rent Limits'!$E$12:$L$26,2,FALSE))","v":""},{"$f":"IF(C284=\"\",\"\",HLOOKUP(C284,'MHP Family Income & Rent Limits'!$E$12:$L$26,3,FALSE))","v":""},{"$f":"IF(C284=\"\",\"\",HLOOKUP(C284,'MHP Family Income & Rent Limits'!$E$12:$L$26,4,FALSE))","v":""},{"$f":"IF(C284=\"\",\"\",HLOOKUP(C284,'MHP Family Income & Rent Limits'!$E$12:$L$26,5,FALSE))","v":""},{"$f":"IF(C284=\"\",\"\",HLOOKUP(C284,'MHP Family Income & Rent Limits'!$E$12:$L$26,6,FALSE))","v":""},{"$f":"IF(C284=\"\",\"\",HLOOKUP(C284,'MHP Family Income & Rent Limits'!$E$12:$L$26,7,FALSE))","v":""},{"$f":"IF(C284=\"\",\"\",HLOOKUP(C284,'MHP Family Income & Rent Limits'!$E$12:$L$26,8,FALSE))","v":""},{"$f":"IF(C284=\"\",\"\",HLOOKUP(C284,'MHP Family Income & Rent Limits'!$E$12:$L$26,9,FALSE))","v":""},{"$f":"IF(C284=\"\",\"\",HLOOKUP(C284,'MHP Family Income & Rent Limits'!$E$12:$L$26,10,FALSE))","v":""},{"$f":"IF(C284=\"\",\"\",HLOOKUP(C284,'MHP Family Income & Rent Limits'!$E$12:$L$26,11,FALSE))","v":""},{"$f":"IF(C284=\"\",\"\",HLOOKUP(C284,'MHP Family Income & Rent Limits'!$E$12:$L$26,12,FALSE))","v":""},{"$f":"IF(C284=\"\",\"\",HLOOKUP(C284,'MHP Family Income & Rent Limits'!$E$12:$L$26,13,FALSE))","v":""},{"$f":"IF(C284=\"\",\"\",HLOOKUP(C284,'MHP Family Income & Rent Limits'!$E$12:$L$26,14,FALSE))","v":""},{"$f":"IF(C284=\"\",\"\",HLOOKUP(C284,'MHP Family Income & Rent Limits'!$E$12:$L$26,15,FALSE))","v":""}]
[{"$f":"IF('2. Assisted & Restricted Units'!A285=\"\",\"\",'2. Assisted & Restricted Units'!A285)","v":""},{"$f":"IF('2. Assisted & Restricted Units'!B285=\"\",\"\",'2. Assisted & Restricted Units'!B285)","v":""},{"$f":"IF('2. Assisted & Restricted Units'!D285=\"\",\"\",'2. Assisted & Restricted Units'!D285)","v":""},{"$f":"IF('2. Assisted & Restricted Units'!E285=\"\",\"\",'2. Assisted & Restricted Units'!E285)","v":""},{"$f":"IF('2. Assisted & Restricted Units'!H285=\"\",\"\",'2. Assisted & Restricted Units'!H285)","v":""},{"$f":"_xlfn.IFS(E285=\"\",\"\",E285>BO285,$BP$6,E285>BN285,$BO$6,E285>BM285,$BN$6,E285>BL285,$BM$6,E285>BK285,$BL$6,E285>BJ285,$BK$6,E285>BI285,$BJ$6,E285>BH285,$BI$6,E285>BG285,$BH$6,E285>BF285,$BG$6,E285>BE285,$BF$6,E285>BD285,$BE$6,E285>BC285,$BD$6,E285>=0,$BC$6)","v":""},{"$f":"IF('2. Assisted & Restricted Units'!T285=\"\",\"\",'2. Assisted & Restricted Units'!T285)","v":""},{"$f":"IF('2. Assisted & Restricted Units'!I285=\"\",\"\",'2. Assisted & Restricted Units'!I285)","v":""},{"$f":"IF('2. Assisted & Restricted Units'!AP285=\"\",\"\",'2. Assisted & Restricted Units'!AP285)","v":0},{"$f":"IF('2. Assisted & Restricted Units'!AT285=\"\",\"\",'2. Assisted & Restricted Units'!AT285)","v":""},0,{"$f":"IF('2. Assisted & Restricted Units'!AV285=\"\",\"\",'2. Assisted & Restricted Units'!AV285)","v":""},{"$f":"IF('2. Assisted & Restricted Units'!L285=\"\",\"\",'2. Assisted & Restricted Units'!L285)","v":""},{"$f":"IF('2. Assisted & Restricted Units'!M285=\"\",\"\",'2. Assisted & Restricted Units'!M285)","v":""},{"$f":"IF('2. Assisted & Restricted Units'!O285=\"\",\"\",'2. Assisted & Restricted Units'!O285)","v":""},{"$f":"IF('2. Assisted & Restricted Units'!P285=\"\",\"\",'2. Assisted & Restricted Units'!P285)","v":""},{"$f":"IF('2. Assisted & Restricted Units'!Q285=\"\",\"\",'2. Assisted & Restricted Units'!Q285)","v":""},{"$f":"IF('2. Assisted & Restricted Units'!R285=\"\",\"\",'2. Assisted & Restricted Units'!R285)","v":""},{"$f":"IF(A285=\"\",\"\",'1. Checklist & Certification'!$K$1)","v":""},{"$f":"IF(A285=\"\",\"\",'1. Checklist & Certification'!$C$62)","v":""},{"$f":"IF(A285=\"\",\"\",'1. Checklist & Certification'!$K$62)","v":""},{"$f":"IF(A285=\"\",\"\",'1. Checklist & Certification'!$C$6)","v":""},{"$f":"IF(A285=\"\",\"\",'1. Checklist & Certification'!$G$4)","v":""},{"$f":"IF(A285=\"\",\"\",'1. Checklist & Certification'!$C$7)","v":""},{"$f":"IF(A285=\"\",\"\",'1. Checklist & Certification'!$C$8)","v":""},{"$f":"IF(A285=\"\",\"\",'1. Checklist & Certification'!$F$7)","v":""},{"$f":"IF(A285=\"\",\"\",'1. Checklist & Certification'!$F$8)","v":""},{"$f":"IF(A285=\"\",\"\",'1. Checklist & Certification'!$B$9)","v":""},{"$f":"IF(A285=\"\",\"\",'1. Checklist & Certification'!$F$9)","v":""},{"$f":"IF(A285=\"\",\"\",'1. Checklist & Certification'!$C$10)","v":""},{"$f":"IF(A285=\"\",\"\",'1. Checklist & Certification'!$C$11)","v":""},{"$f":"IF(A285=\"\",\"\",'1. Checklist & Certification'!$C$12)","v":""},{"$f":"IF(A285=\"\",\"\",'1. Checklist & Certification'!$B$14)","v":""},{"$f":"IF(A285=\"\",\"\",'1. Checklist & Certification'!$E$14)","v":""},{"$f":"IF(B285=\"\",\"\",'1. Checklist & Certification'!$G$14)","v":""},{"$f":"IF(A285=\"\",\"\",'MHP Family Income & Rent Limits'!$B$3)","v":""},{"$f":"IF(A285=\"\",\"\",'MHP Family Income & Rent Limits'!$J$3)","v":""},{"$f":"IF(A285=\"\",\"\",'MHP Family Income & Rent Limits'!$E$4)","v":""},{"$f":"IF(A285=\"\",\"\",'MHP Family Income & Rent Limits'!$C$7)","v":""},{"$f":"IF(A285=\"\",\"\",'MHP Family Income & Rent Limits'!$F$8)","v":""},{"$f":"IF(A285=\"\",\"\",'1. Checklist & Certification'!$G$4)","v":""},{"$f":"IF(A285=\"\",\"\",'1. Checklist & Certification'!$K$39)","v":""},{"$f":"IF(A285=\"\",\"\",'1. Checklist & Certification'!$K$43)","v":""},{"$f":"IF(A285=\"\",\"\",'1. Checklist & Certification'!$K$45)","v":""},{"$f":"IF(A285=\"\",\"\",'1. Checklist & Certification'!$K$49)","v":""},{"$f":"IF(A285=\"\",\"\",'1. Checklist & Certification'!$E$66)","v":""},{"$f":"IF(A285=\"\",\"\",'1. Checklist & Certification'!$E$67)","v":""},{"$f":"IF(A285=\"\",\"\",'1. Checklist & Certification'!$E$68)","v":""},{"$f":"IF(A285=\"\",\"\",'1. Checklist & Certification'!$G$66)","v":""},{"$f":"IF(A285=\"\",\"\",'1. Checklist & Certification'!$H$66)","v":""},{"$f":"IF(A285=\"\",\"\",'1. Checklist & Certification'!$I$66)","v":""},{"$f":"IF(A285=\"\",\"\",'1. Checklist & Certification'!$I$67)","v":""},{"$f":"IF(A285=\"\",\"\",'1. Checklist & Certification'!$I$68)","v":""},null,{"$f":"IF(C285=\"\",\"\",HLOOKUP(C285,'MHP Family Income & Rent Limits'!$E$12:$L$26,2,FALSE))","v":""},{"$f":"IF(C285=\"\",\"\",HLOOKUP(C285,'MHP Family Income & Rent Limits'!$E$12:$L$26,3,FALSE))","v":""},{"$f":"IF(C285=\"\",\"\",HLOOKUP(C285,'MHP Family Income & Rent Limits'!$E$12:$L$26,4,FALSE))","v":""},{"$f":"IF(C285=\"\",\"\",HLOOKUP(C285,'MHP Family Income & Rent Limits'!$E$12:$L$26,5,FALSE))","v":""},{"$f":"IF(C285=\"\",\"\",HLOOKUP(C285,'MHP Family Income & Rent Limits'!$E$12:$L$26,6,FALSE))","v":""},{"$f":"IF(C285=\"\",\"\",HLOOKUP(C285,'MHP Family Income & Rent Limits'!$E$12:$L$26,7,FALSE))","v":""},{"$f":"IF(C285=\"\",\"\",HLOOKUP(C285,'MHP Family Income & Rent Limits'!$E$12:$L$26,8,FALSE))","v":""},{"$f":"IF(C285=\"\",\"\",HLOOKUP(C285,'MHP Family Income & Rent Limits'!$E$12:$L$26,9,FALSE))","v":""},{"$f":"IF(C285=\"\",\"\",HLOOKUP(C285,'MHP Family Income & Rent Limits'!$E$12:$L$26,10,FALSE))","v":""},{"$f":"IF(C285=\"\",\"\",HLOOKUP(C285,'MHP Family Income & Rent Limits'!$E$12:$L$26,11,FALSE))","v":""},{"$f":"IF(C285=\"\",\"\",HLOOKUP(C285,'MHP Family Income & Rent Limits'!$E$12:$L$26,12,FALSE))","v":""},{"$f":"IF(C285=\"\",\"\",HLOOKUP(C285,'MHP Family Income & Rent Limits'!$E$12:$L$26,13,FALSE))","v":""},{"$f":"IF(C285=\"\",\"\",HLOOKUP(C285,'MHP Family Income & Rent Limits'!$E$12:$L$26,14,FALSE))","v":""},{"$f":"IF(C285=\"\",\"\",HLOOKUP(C285,'MHP Family Income & Rent Limits'!$E$12:$L$26,15,FALSE))","v":""}]
[{"$f":"IF('2. Assisted & Restricted Units'!A286=\"\",\"\",'2. Assisted & Restricted Units'!A286)","v":""},{"$f":"IF('2. Assisted & Restricted Units'!B286=\"\",\"\",'2. Assisted & Restricted Units'!B286)","v":""},{"$f":"IF('2. Assisted & Restricted Units'!D286=\"\",\"\",'2. Assisted & Restricted Units'!D286)","v":""},{"$f":"IF('2. Assisted & Restricted Units'!E286=\"\",\"\",'2. Assisted & Restricted Units'!E286)","v":""},{"$f":"IF('2. Assisted & Restricted Units'!H286=\"\",\"\",'2. Assisted & Restricted Units'!H286)","v":""},{"$f":"_xlfn.IFS(E286=\"\",\"\",E286>BO286,$BP$6,E286>BN286,$BO$6,E286>BM286,$BN$6,E286>BL286,$BM$6,E286>BK286,$BL$6,E286>BJ286,$BK$6,E286>BI286,$BJ$6,E286>BH286,$BI$6,E286>BG286,$BH$6,E286>BF286,$BG$6,E286>BE286,$BF$6,E286>BD286,$BE$6,E286>BC286,$BD$6,E286>=0,$BC$6)","v":""},{"$f":"IF('2. Assisted & Restricted Units'!T286=\"\",\"\",'2. Assisted & Restricted Units'!T286)","v":""},{"$f":"IF('2. Assisted & Restricted Units'!I286=\"\",\"\",'2. Assisted & Restricted Units'!I286)","v":""},{"$f":"IF('2. Assisted & Restricted Units'!AP286=\"\",\"\",'2. Assisted & Restricted Units'!AP286)","v":0},{"$f":"IF('2. Assisted & Restricted Units'!AT286=\"\",\"\",'2. Assisted & Restricted Units'!AT286)","v":""},0,{"$f":"IF('2. Assisted & Restricted Units'!AV286=\"\",\"\",'2. Assisted & Restricted Units'!AV286)","v":""},{"$f":"IF('2. Assisted & Restricted Units'!L286=\"\",\"\",'2. Assisted & Restricted Units'!L286)","v":""},{"$f":"IF('2. Assisted & Restricted Units'!M286=\"\",\"\",'2. Assisted & Restricted Units'!M286)","v":""},{"$f":"IF('2. Assisted & Restricted Units'!O286=\"\",\"\",'2. Assisted & Restricted Units'!O286)","v":""},{"$f":"IF('2. Assisted & Restricted Units'!P286=\"\",\"\",'2. Assisted & Restricted Units'!P286)","v":""},{"$f":"IF('2. Assisted & Restricted Units'!Q286=\"\",\"\",'2. Assisted & Restricted Units'!Q286)","v":""},{"$f":"IF('2. Assisted & Restricted Units'!R286=\"\",\"\",'2. Assisted & Restricted Units'!R286)","v":""},{"$f":"IF(A286=\"\",\"\",'1. Checklist & Certification'!$K$1)","v":""},{"$f":"IF(A286=\"\",\"\",'1. Checklist & Certification'!$C$62)","v":""},{"$f":"IF(A286=\"\",\"\",'1. Checklist & Certification'!$K$62)","v":""},{"$f":"IF(A286=\"\",\"\",'1. Checklist & Certification'!$C$6)","v":""},{"$f":"IF(A286=\"\",\"\",'1. Checklist & Certification'!$G$4)","v":""},{"$f":"IF(A286=\"\",\"\",'1. Checklist & Certification'!$C$7)","v":""},{"$f":"IF(A286=\"\",\"\",'1. Checklist & Certification'!$C$8)","v":""},{"$f":"IF(A286=\"\",\"\",'1. Checklist & Certification'!$F$7)","v":""},{"$f":"IF(A286=\"\",\"\",'1. Checklist & Certification'!$F$8)","v":""},{"$f":"IF(A286=\"\",\"\",'1. Checklist & Certification'!$B$9)","v":""},{"$f":"IF(A286=\"\",\"\",'1. Checklist & Certification'!$F$9)","v":""},{"$f":"IF(A286=\"\",\"\",'1. Checklist & Certification'!$C$10)","v":""},{"$f":"IF(A286=\"\",\"\",'1. Checklist & Certification'!$C$11)","v":""},{"$f":"IF(A286=\"\",\"\",'1. Checklist & Certification'!$C$12)","v":""},{"$f":"IF(A286=\"\",\"\",'1. Checklist & Certification'!$B$14)","v":""},{"$f":"IF(A286=\"\",\"\",'1. Checklist & Certification'!$E$14)","v":""},{"$f":"IF(B286=\"\",\"\",'1. Checklist & Certification'!$G$14)","v":""},{"$f":"IF(A286=\"\",\"\",'MHP Family Income & Rent Limits'!$B$3)","v":""},{"$f":"IF(A286=\"\",\"\",'MHP Family Income & Rent Limits'!$J$3)","v":""},{"$f":"IF(A286=\"\",\"\",'MHP Family Income & Rent Limits'!$E$4)","v":""},{"$f":"IF(A286=\"\",\"\",'MHP Family Income & Rent Limits'!$C$7)","v":""},{"$f":"IF(A286=\"\",\"\",'MHP Family Income & Rent Limits'!$F$8)","v":""},{"$f":"IF(A286=\"\",\"\",'1. Checklist & Certification'!$G$4)","v":""},{"$f":"IF(A286=\"\",\"\",'1. Checklist & Certification'!$K$39)","v":""},{"$f":"IF(A286=\"\",\"\",'1. Checklist & Certification'!$K$43)","v":""},{"$f":"IF(A286=\"\",\"\",'1. Checklist & Certification'!$K$45)","v":""},{"$f":"IF(A286=\"\",\"\",'1. Checklist & Certification'!$K$49)","v":""},{"$f":"IF(A286=\"\",\"\",'1. Checklist & Certification'!$E$66)","v":""},{"$f":"IF(A286=\"\",\"\",'1. Checklist & Certification'!$E$67)","v":""},{"$f":"IF(A286=\"\",\"\",'1. Checklist & Certification'!$E$68)","v":""},{"$f":"IF(A286=\"\",\"\",'1. Checklist & Certification'!$G$66)","v":""},{"$f":"IF(A286=\"\",\"\",'1. Checklist & Certification'!$H$66)","v":""},{"$f":"IF(A286=\"\",\"\",'1. Checklist & Certification'!$I$66)","v":""},{"$f":"IF(A286=\"\",\"\",'1. Checklist & Certification'!$I$67)","v":""},{"$f":"IF(A286=\"\",\"\",'1. Checklist & Certification'!$I$68)","v":""},null,{"$f":"IF(C286=\"\",\"\",HLOOKUP(C286,'MHP Family Income & Rent Limits'!$E$12:$L$26,2,FALSE))","v":""},{"$f":"IF(C286=\"\",\"\",HLOOKUP(C286,'MHP Family Income & Rent Limits'!$E$12:$L$26,3,FALSE))","v":""},{"$f":"IF(C286=\"\",\"\",HLOOKUP(C286,'MHP Family Income & Rent Limits'!$E$12:$L$26,4,FALSE))","v":""},{"$f":"IF(C286=\"\",\"\",HLOOKUP(C286,'MHP Family Income & Rent Limits'!$E$12:$L$26,5,FALSE))","v":""},{"$f":"IF(C286=\"\",\"\",HLOOKUP(C286,'MHP Family Income & Rent Limits'!$E$12:$L$26,6,FALSE))","v":""},{"$f":"IF(C286=\"\",\"\",HLOOKUP(C286,'MHP Family Income & Rent Limits'!$E$12:$L$26,7,FALSE))","v":""},{"$f":"IF(C286=\"\",\"\",HLOOKUP(C286,'MHP Family Income & Rent Limits'!$E$12:$L$26,8,FALSE))","v":""},{"$f":"IF(C286=\"\",\"\",HLOOKUP(C286,'MHP Family Income & Rent Limits'!$E$12:$L$26,9,FALSE))","v":""},{"$f":"IF(C286=\"\",\"\",HLOOKUP(C286,'MHP Family Income & Rent Limits'!$E$12:$L$26,10,FALSE))","v":""},{"$f":"IF(C286=\"\",\"\",HLOOKUP(C286,'MHP Family Income & Rent Limits'!$E$12:$L$26,11,FALSE))","v":""},{"$f":"IF(C286=\"\",\"\",HLOOKUP(C286,'MHP Family Income & Rent Limits'!$E$12:$L$26,12,FALSE))","v":""},{"$f":"IF(C286=\"\",\"\",HLOOKUP(C286,'MHP Family Income & Rent Limits'!$E$12:$L$26,13,FALSE))","v":""},{"$f":"IF(C286=\"\",\"\",HLOOKUP(C286,'MHP Family Income & Rent Limits'!$E$12:$L$26,14,FALSE))","v":""},{"$f":"IF(C286=\"\",\"\",HLOOKUP(C286,'MHP Family Income & Rent Limits'!$E$12:$L$26,15,FALSE))","v":""}]
[{"$f":"IF('2. Assisted & Restricted Units'!A287=\"\",\"\",'2. Assisted & Restricted Units'!A287)","v":""},{"$f":"IF('2. Assisted & Restricted Units'!B287=\"\",\"\",'2. Assisted & Restricted Units'!B287)","v":""},{"$f":"IF('2. Assisted & Restricted Units'!D287=\"\",\"\",'2. Assisted & Restricted Units'!D287)","v":""},{"$f":"IF('2. Assisted & Restricted Units'!E287=\"\",\"\",'2. Assisted & Restricted Units'!E287)","v":""},{"$f":"IF('2. Assisted & Restricted Units'!H287=\"\",\"\",'2. Assisted & Restricted Units'!H287)","v":""},{"$f":"_xlfn.IFS(E287=\"\",\"\",E287>BO287,$BP$6,E287>BN287,$BO$6,E287>BM287,$BN$6,E287>BL287,$BM$6,E287>BK287,$BL$6,E287>BJ287,$BK$6,E287>BI287,$BJ$6,E287>BH287,$BI$6,E287>BG287,$BH$6,E287>BF287,$BG$6,E287>BE287,$BF$6,E287>BD287,$BE$6,E287>BC287,$BD$6,E287>=0,$BC$6)","v":""},{"$f":"IF('2. Assisted & Restricted Units'!T287=\"\",\"\",'2. Assisted & Restricted Units'!T287)","v":""},{"$f":"IF('2. Assisted & Restricted Units'!I287=\"\",\"\",'2. Assisted & Restricted Units'!I287)","v":""},{"$f":"IF('2. Assisted & Restricted Units'!AP287=\"\",\"\",'2. Assisted & Restricted Units'!AP287)","v":0},{"$f":"IF('2. Assisted & Restricted Units'!AT287=\"\",\"\",'2. Assisted & Restricted Units'!AT287)","v":""},0,{"$f":"IF('2. Assisted & Restricted Units'!AV287=\"\",\"\",'2. Assisted & Restricted Units'!AV287)","v":""},{"$f":"IF('2. Assisted & Restricted Units'!L287=\"\",\"\",'2. Assisted & Restricted Units'!L287)","v":""},{"$f":"IF('2. Assisted & Restricted Units'!M287=\"\",\"\",'2. Assisted & Restricted Units'!M287)","v":""},{"$f":"IF('2. Assisted & Restricted Units'!O287=\"\",\"\",'2. Assisted & Restricted Units'!O287)","v":""},{"$f":"IF('2. Assisted & Restricted Units'!P287=\"\",\"\",'2. Assisted & Restricted Units'!P287)","v":""},{"$f":"IF('2. Assisted & Restricted Units'!Q287=\"\",\"\",'2. Assisted & Restricted Units'!Q287)","v":""},{"$f":"IF('2. Assisted & Restricted Units'!R287=\"\",\"\",'2. Assisted & Restricted Units'!R287)","v":""},{"$f":"IF(A287=\"\",\"\",'1. Checklist & Certification'!$K$1)","v":""},{"$f":"IF(A287=\"\",\"\",'1. Checklist & Certification'!$C$62)","v":""},{"$f":"IF(A287=\"\",\"\",'1. Checklist & Certification'!$K$62)","v":""},{"$f":"IF(A287=\"\",\"\",'1. Checklist & Certification'!$C$6)","v":""},{"$f":"IF(A287=\"\",\"\",'1. Checklist & Certification'!$G$4)","v":""},{"$f":"IF(A287=\"\",\"\",'1. Checklist & Certification'!$C$7)","v":""},{"$f":"IF(A287=\"\",\"\",'1. Checklist & Certification'!$C$8)","v":""},{"$f":"IF(A287=\"\",\"\",'1. Checklist & Certification'!$F$7)","v":""},{"$f":"IF(A287=\"\",\"\",'1. Checklist & Certification'!$F$8)","v":""},{"$f":"IF(A287=\"\",\"\",'1. Checklist & Certification'!$B$9)","v":""},{"$f":"IF(A287=\"\",\"\",'1. Checklist & Certification'!$F$9)","v":""},{"$f":"IF(A287=\"\",\"\",'1. Checklist & Certification'!$C$10)","v":""},{"$f":"IF(A287=\"\",\"\",'1. Checklist & Certification'!$C$11)","v":""},{"$f":"IF(A287=\"\",\"\",'1. Checklist & Certification'!$C$12)","v":""},{"$f":"IF(A287=\"\",\"\",'1. Checklist & Certification'!$B$14)","v":""},{"$f":"IF(A287=\"\",\"\",'1. Checklist & Certification'!$E$14)","v":""},{"$f":"IF(B287=\"\",\"\",'1. Checklist & Certification'!$G$14)","v":""},{"$f":"IF(A287=\"\",\"\",'MHP Family Income & Rent Limits'!$B$3)","v":""},{"$f":"IF(A287=\"\",\"\",'MHP Family Income & Rent Limits'!$J$3)","v":""},{"$f":"IF(A287=\"\",\"\",'MHP Family Income & Rent Limits'!$E$4)","v":""},{"$f":"IF(A287=\"\",\"\",'MHP Family Income & Rent Limits'!$C$7)","v":""},{"$f":"IF(A287=\"\",\"\",'MHP Family Income & Rent Limits'!$F$8)","v":""},{"$f":"IF(A287=\"\",\"\",'1. Checklist & Certification'!$G$4)","v":""},{"$f":"IF(A287=\"\",\"\",'1. Checklist & Certification'!$K$39)","v":""},{"$f":"IF(A287=\"\",\"\",'1. Checklist & Certification'!$K$43)","v":""},{"$f":"IF(A287=\"\",\"\",'1. Checklist & Certification'!$K$45)","v":""},{"$f":"IF(A287=\"\",\"\",'1. Checklist & Certification'!$K$49)","v":""},{"$f":"IF(A287=\"\",\"\",'1. Checklist & Certification'!$E$66)","v":""},{"$f":"IF(A287=\"\",\"\",'1. Checklist & Certification'!$E$67)","v":""},{"$f":"IF(A287=\"\",\"\",'1. Checklist & Certification'!$E$68)","v":""},{"$f":"IF(A287=\"\",\"\",'1. Checklist & Certification'!$G$66)","v":""},{"$f":"IF(A287=\"\",\"\",'1. Checklist & Certification'!$H$66)","v":""},{"$f":"IF(A287=\"\",\"\",'1. Checklist & Certification'!$I$66)","v":""},{"$f":"IF(A287=\"\",\"\",'1. Checklist & Certification'!$I$67)","v":""},{"$f":"IF(A287=\"\",\"\",'1. Checklist & Certification'!$I$68)","v":""},null,{"$f":"IF(C287=\"\",\"\",HLOOKUP(C287,'MHP Family Income & Rent Limits'!$E$12:$L$26,2,FALSE))","v":""},{"$f":"IF(C287=\"\",\"\",HLOOKUP(C287,'MHP Family Income & Rent Limits'!$E$12:$L$26,3,FALSE))","v":""},{"$f":"IF(C287=\"\",\"\",HLOOKUP(C287,'MHP Family Income & Rent Limits'!$E$12:$L$26,4,FALSE))","v":""},{"$f":"IF(C287=\"\",\"\",HLOOKUP(C287,'MHP Family Income & Rent Limits'!$E$12:$L$26,5,FALSE))","v":""},{"$f":"IF(C287=\"\",\"\",HLOOKUP(C287,'MHP Family Income & Rent Limits'!$E$12:$L$26,6,FALSE))","v":""},{"$f":"IF(C287=\"\",\"\",HLOOKUP(C287,'MHP Family Income & Rent Limits'!$E$12:$L$26,7,FALSE))","v":""},{"$f":"IF(C287=\"\",\"\",HLOOKUP(C287,'MHP Family Income & Rent Limits'!$E$12:$L$26,8,FALSE))","v":""},{"$f":"IF(C287=\"\",\"\",HLOOKUP(C287,'MHP Family Income & Rent Limits'!$E$12:$L$26,9,FALSE))","v":""},{"$f":"IF(C287=\"\",\"\",HLOOKUP(C287,'MHP Family Income & Rent Limits'!$E$12:$L$26,10,FALSE))","v":""},{"$f":"IF(C287=\"\",\"\",HLOOKUP(C287,'MHP Family Income & Rent Limits'!$E$12:$L$26,11,FALSE))","v":""},{"$f":"IF(C287=\"\",\"\",HLOOKUP(C287,'MHP Family Income & Rent Limits'!$E$12:$L$26,12,FALSE))","v":""},{"$f":"IF(C287=\"\",\"\",HLOOKUP(C287,'MHP Family Income & Rent Limits'!$E$12:$L$26,13,FALSE))","v":""},{"$f":"IF(C287=\"\",\"\",HLOOKUP(C287,'MHP Family Income & Rent Limits'!$E$12:$L$26,14,FALSE))","v":""},{"$f":"IF(C287=\"\",\"\",HLOOKUP(C287,'MHP Family Income & Rent Limits'!$E$12:$L$26,15,FALSE))","v":""}]
[{"$f":"IF('2. Assisted & Restricted Units'!A288=\"\",\"\",'2. Assisted & Restricted Units'!A288)","v":""},{"$f":"IF('2. Assisted & Restricted Units'!B288=\"\",\"\",'2. Assisted & Restricted Units'!B288)","v":""},{"$f":"IF('2. Assisted & Restricted Units'!D288=\"\",\"\",'2. Assisted & Restricted Units'!D288)","v":""},{"$f":"IF('2. Assisted & Restricted Units'!E288=\"\",\"\",'2. Assisted & Restricted Units'!E288)","v":""},{"$f":"IF('2. Assisted & Restricted Units'!H288=\"\",\"\",'2. Assisted & Restricted Units'!H288)","v":""},{"$f":"_xlfn.IFS(E288=\"\",\"\",E288>BO288,$BP$6,E288>BN288,$BO$6,E288>BM288,$BN$6,E288>BL288,$BM$6,E288>BK288,$BL$6,E288>BJ288,$BK$6,E288>BI288,$BJ$6,E288>BH288,$BI$6,E288>BG288,$BH$6,E288>BF288,$BG$6,E288>BE288,$BF$6,E288>BD288,$BE$6,E288>BC288,$BD$6,E288>=0,$BC$6)","v":""},{"$f":"IF('2. Assisted & Restricted Units'!T288=\"\",\"\",'2. Assisted & Restricted Units'!T288)","v":""},{"$f":"IF('2. Assisted & Restricted Units'!I288=\"\",\"\",'2. Assisted & Restricted Units'!I288)","v":""},{"$f":"IF('2. Assisted & Restricted Units'!AP288=\"\",\"\",'2. Assisted & Restricted Units'!AP288)","v":0},{"$f":"IF('2. Assisted & Restricted Units'!AT288=\"\",\"\",'2. Assisted & Restricted Units'!AT288)","v":""},0,{"$f":"IF('2. Assisted & Restricted Units'!AV288=\"\",\"\",'2. Assisted & Restricted Units'!AV288)","v":""},{"$f":"IF('2. Assisted & Restricted Units'!L288=\"\",\"\",'2. Assisted & Restricted Units'!L288)","v":""},{"$f":"IF('2. Assisted & Restricted Units'!M288=\"\",\"\",'2. Assisted & Restricted Units'!M288)","v":""},{"$f":"IF('2. Assisted & Restricted Units'!O288=\"\",\"\",'2. Assisted & Restricted Units'!O288)","v":""},{"$f":"IF('2. Assisted & Restricted Units'!P288=\"\",\"\",'2. Assisted & Restricted Units'!P288)","v":""},{"$f":"IF('2. Assisted & Restricted Units'!Q288=\"\",\"\",'2. Assisted & Restricted Units'!Q288)","v":""},{"$f":"IF('2. Assisted & Restricted Units'!R288=\"\",\"\",'2. Assisted & Restricted Units'!R288)","v":""},{"$f":"IF(A288=\"\",\"\",'1. Checklist & Certification'!$K$1)","v":""},{"$f":"IF(A288=\"\",\"\",'1. Checklist & Certification'!$C$62)","v":""},{"$f":"IF(A288=\"\",\"\",'1. Checklist & Certification'!$K$62)","v":""},{"$f":"IF(A288=\"\",\"\",'1. Checklist & Certification'!$C$6)","v":""},{"$f":"IF(A288=\"\",\"\",'1. Checklist & Certification'!$G$4)","v":""},{"$f":"IF(A288=\"\",\"\",'1. Checklist & Certification'!$C$7)","v":""},{"$f":"IF(A288=\"\",\"\",'1. Checklist & Certification'!$C$8)","v":""},{"$f":"IF(A288=\"\",\"\",'1. Checklist & Certification'!$F$7)","v":""},{"$f":"IF(A288=\"\",\"\",'1. Checklist & Certification'!$F$8)","v":""},{"$f":"IF(A288=\"\",\"\",'1. Checklist & Certification'!$B$9)","v":""},{"$f":"IF(A288=\"\",\"\",'1. Checklist & Certification'!$F$9)","v":""},{"$f":"IF(A288=\"\",\"\",'1. Checklist & Certification'!$C$10)","v":""},{"$f":"IF(A288=\"\",\"\",'1. Checklist & Certification'!$C$11)","v":""},{"$f":"IF(A288=\"\",\"\",'1. Checklist & Certification'!$C$12)","v":""},{"$f":"IF(A288=\"\",\"\",'1. Checklist & Certification'!$B$14)","v":""},{"$f":"IF(A288=\"\",\"\",'1. Checklist & Certification'!$E$14)","v":""},{"$f":"IF(B288=\"\",\"\",'1. Checklist & Certification'!$G$14)","v":""},{"$f":"IF(A288=\"\",\"\",'MHP Family Income & Rent Limits'!$B$3)","v":""},{"$f":"IF(A288=\"\",\"\",'MHP Family Income & Rent Limits'!$J$3)","v":""},{"$f":"IF(A288=\"\",\"\",'MHP Family Income & Rent Limits'!$E$4)","v":""},{"$f":"IF(A288=\"\",\"\",'MHP Family Income & Rent Limits'!$C$7)","v":""},{"$f":"IF(A288=\"\",\"\",'MHP Family Income & Rent Limits'!$F$8)","v":""},{"$f":"IF(A288=\"\",\"\",'1. Checklist & Certification'!$G$4)","v":""},{"$f":"IF(A288=\"\",\"\",'1. Checklist & Certification'!$K$39)","v":""},{"$f":"IF(A288=\"\",\"\",'1. Checklist & Certification'!$K$43)","v":""},{"$f":"IF(A288=\"\",\"\",'1. Checklist & Certification'!$K$45)","v":""},{"$f":"IF(A288=\"\",\"\",'1. Checklist & Certification'!$K$49)","v":""},{"$f":"IF(A288=\"\",\"\",'1. Checklist & Certification'!$E$66)","v":""},{"$f":"IF(A288=\"\",\"\",'1. Checklist & Certification'!$E$67)","v":""},{"$f":"IF(A288=\"\",\"\",'1. Checklist & Certification'!$E$68)","v":""},{"$f":"IF(A288=\"\",\"\",'1. Checklist & Certification'!$G$66)","v":""},{"$f":"IF(A288=\"\",\"\",'1. Checklist & Certification'!$H$66)","v":""},{"$f":"IF(A288=\"\",\"\",'1. Checklist & Certification'!$I$66)","v":""},{"$f":"IF(A288=\"\",\"\",'1. Checklist & Certification'!$I$67)","v":""},{"$f":"IF(A288=\"\",\"\",'1. Checklist & Certification'!$I$68)","v":""},null,{"$f":"IF(C288=\"\",\"\",HLOOKUP(C288,'MHP Family Income & Rent Limits'!$E$12:$L$26,2,FALSE))","v":""},{"$f":"IF(C288=\"\",\"\",HLOOKUP(C288,'MHP Family Income & Rent Limits'!$E$12:$L$26,3,FALSE))","v":""},{"$f":"IF(C288=\"\",\"\",HLOOKUP(C288,'MHP Family Income & Rent Limits'!$E$12:$L$26,4,FALSE))","v":""},{"$f":"IF(C288=\"\",\"\",HLOOKUP(C288,'MHP Family Income & Rent Limits'!$E$12:$L$26,5,FALSE))","v":""},{"$f":"IF(C288=\"\",\"\",HLOOKUP(C288,'MHP Family Income & Rent Limits'!$E$12:$L$26,6,FALSE))","v":""},{"$f":"IF(C288=\"\",\"\",HLOOKUP(C288,'MHP Family Income & Rent Limits'!$E$12:$L$26,7,FALSE))","v":""},{"$f":"IF(C288=\"\",\"\",HLOOKUP(C288,'MHP Family Income & Rent Limits'!$E$12:$L$26,8,FALSE))","v":""},{"$f":"IF(C288=\"\",\"\",HLOOKUP(C288,'MHP Family Income & Rent Limits'!$E$12:$L$26,9,FALSE))","v":""},{"$f":"IF(C288=\"\",\"\",HLOOKUP(C288,'MHP Family Income & Rent Limits'!$E$12:$L$26,10,FALSE))","v":""},{"$f":"IF(C288=\"\",\"\",HLOOKUP(C288,'MHP Family Income & Rent Limits'!$E$12:$L$26,11,FALSE))","v":""},{"$f":"IF(C288=\"\",\"\",HLOOKUP(C288,'MHP Family Income & Rent Limits'!$E$12:$L$26,12,FALSE))","v":""},{"$f":"IF(C288=\"\",\"\",HLOOKUP(C288,'MHP Family Income & Rent Limits'!$E$12:$L$26,13,FALSE))","v":""},{"$f":"IF(C288=\"\",\"\",HLOOKUP(C288,'MHP Family Income & Rent Limits'!$E$12:$L$26,14,FALSE))","v":""},{"$f":"IF(C288=\"\",\"\",HLOOKUP(C288,'MHP Family Income & Rent Limits'!$E$12:$L$26,15,FALSE))","v":""}]
[{"$f":"IF('2. Assisted & Restricted Units'!A289=\"\",\"\",'2. Assisted & Restricted Units'!A289)","v":""},{"$f":"IF('2. Assisted & Restricted Units'!B289=\"\",\"\",'2. Assisted & Restricted Units'!B289)","v":""},{"$f":"IF('2. Assisted & Restricted Units'!D289=\"\",\"\",'2. Assisted & Restricted Units'!D289)","v":""},{"$f":"IF('2. Assisted & Restricted Units'!E289=\"\",\"\",'2. Assisted & Restricted Units'!E289)","v":""},{"$f":"IF('2. Assisted & Restricted Units'!H289=\"\",\"\",'2. Assisted & Restricted Units'!H289)","v":""},{"$f":"_xlfn.IFS(E289=\"\",\"\",E289>BO289,$BP$6,E289>BN289,$BO$6,E289>BM289,$BN$6,E289>BL289,$BM$6,E289>BK289,$BL$6,E289>BJ289,$BK$6,E289>BI289,$BJ$6,E289>BH289,$BI$6,E289>BG289,$BH$6,E289>BF289,$BG$6,E289>BE289,$BF$6,E289>BD289,$BE$6,E289>BC289,$BD$6,E289>=0,$BC$6)","v":""},{"$f":"IF('2. Assisted & Restricted Units'!T289=\"\",\"\",'2. Assisted & Restricted Units'!T289)","v":""},{"$f":"IF('2. Assisted & Restricted Units'!I289=\"\",\"\",'2. Assisted & Restricted Units'!I289)","v":""},{"$f":"IF('2. Assisted & Restricted Units'!AP289=\"\",\"\",'2. Assisted & Restricted Units'!AP289)","v":0},{"$f":"IF('2. Assisted & Restricted Units'!AT289=\"\",\"\",'2. Assisted & Restricted Units'!AT289)","v":""},0,{"$f":"IF('2. Assisted & Restricted Units'!AV289=\"\",\"\",'2. Assisted & Restricted Units'!AV289)","v":""},{"$f":"IF('2. Assisted & Restricted Units'!L289=\"\",\"\",'2. Assisted & Restricted Units'!L289)","v":""},{"$f":"IF('2. Assisted & Restricted Units'!M289=\"\",\"\",'2. Assisted & Restricted Units'!M289)","v":""},{"$f":"IF('2. Assisted & Restricted Units'!O289=\"\",\"\",'2. Assisted & Restricted Units'!O289)","v":""},{"$f":"IF('2. Assisted & Restricted Units'!P289=\"\",\"\",'2. Assisted & Restricted Units'!P289)","v":""},{"$f":"IF('2. Assisted & Restricted Units'!Q289=\"\",\"\",'2. Assisted & Restricted Units'!Q289)","v":""},{"$f":"IF('2. Assisted & Restricted Units'!R289=\"\",\"\",'2. Assisted & Restricted Units'!R289)","v":""},{"$f":"IF(A289=\"\",\"\",'1. Checklist & Certification'!$K$1)","v":""},{"$f":"IF(A289=\"\",\"\",'1. Checklist & Certification'!$C$62)","v":""},{"$f":"IF(A289=\"\",\"\",'1. Checklist & Certification'!$K$62)","v":""},{"$f":"IF(A289=\"\",\"\",'1. Checklist & Certification'!$C$6)","v":""},{"$f":"IF(A289=\"\",\"\",'1. Checklist & Certification'!$G$4)","v":""},{"$f":"IF(A289=\"\",\"\",'1. Checklist & Certification'!$C$7)","v":""},{"$f":"IF(A289=\"\",\"\",'1. Checklist & Certification'!$C$8)","v":""},{"$f":"IF(A289=\"\",\"\",'1. Checklist & Certification'!$F$7)","v":""},{"$f":"IF(A289=\"\",\"\",'1. Checklist & Certification'!$F$8)","v":""},{"$f":"IF(A289=\"\",\"\",'1. Checklist & Certification'!$B$9)","v":""},{"$f":"IF(A289=\"\",\"\",'1. Checklist & Certification'!$F$9)","v":""},{"$f":"IF(A289=\"\",\"\",'1. Checklist & Certification'!$C$10)","v":""},{"$f":"IF(A289=\"\",\"\",'1. Checklist & Certification'!$C$11)","v":""},{"$f":"IF(A289=\"\",\"\",'1. Checklist & Certification'!$C$12)","v":""},{"$f":"IF(A289=\"\",\"\",'1. Checklist & Certification'!$B$14)","v":""},{"$f":"IF(A289=\"\",\"\",'1. Checklist & Certification'!$E$14)","v":""},{"$f":"IF(B289=\"\",\"\",'1. Checklist & Certification'!$G$14)","v":""},{"$f":"IF(A289=\"\",\"\",'MHP Family Income & Rent Limits'!$B$3)","v":""},{"$f":"IF(A289=\"\",\"\",'MHP Family Income & Rent Limits'!$J$3)","v":""},{"$f":"IF(A289=\"\",\"\",'MHP Family Income & Rent Limits'!$E$4)","v":""},{"$f":"IF(A289=\"\",\"\",'MHP Family Income & Rent Limits'!$C$7)","v":""},{"$f":"IF(A289=\"\",\"\",'MHP Family Income & Rent Limits'!$F$8)","v":""},{"$f":"IF(A289=\"\",\"\",'1. Checklist & Certification'!$G$4)","v":""},{"$f":"IF(A289=\"\",\"\",'1. Checklist & Certification'!$K$39)","v":""},{"$f":"IF(A289=\"\",\"\",'1. Checklist & Certification'!$K$43)","v":""},{"$f":"IF(A289=\"\",\"\",'1. Checklist & Certification'!$K$45)","v":""},{"$f":"IF(A289=\"\",\"\",'1. Checklist & Certification'!$K$49)","v":""},{"$f":"IF(A289=\"\",\"\",'1. Checklist & Certification'!$E$66)","v":""},{"$f":"IF(A289=\"\",\"\",'1. Checklist & Certification'!$E$67)","v":""},{"$f":"IF(A289=\"\",\"\",'1. Checklist & Certification'!$E$68)","v":""},{"$f":"IF(A289=\"\",\"\",'1. Checklist & Certification'!$G$66)","v":""},{"$f":"IF(A289=\"\",\"\",'1. Checklist & Certification'!$H$66)","v":""},{"$f":"IF(A289=\"\",\"\",'1. Checklist & Certification'!$I$66)","v":""},{"$f":"IF(A289=\"\",\"\",'1. Checklist & Certification'!$I$67)","v":""},{"$f":"IF(A289=\"\",\"\",'1. Checklist & Certification'!$I$68)","v":""},null,{"$f":"IF(C289=\"\",\"\",HLOOKUP(C289,'MHP Family Income & Rent Limits'!$E$12:$L$26,2,FALSE))","v":""},{"$f":"IF(C289=\"\",\"\",HLOOKUP(C289,'MHP Family Income & Rent Limits'!$E$12:$L$26,3,FALSE))","v":""},{"$f":"IF(C289=\"\",\"\",HLOOKUP(C289,'MHP Family Income & Rent Limits'!$E$12:$L$26,4,FALSE))","v":""},{"$f":"IF(C289=\"\",\"\",HLOOKUP(C289,'MHP Family Income & Rent Limits'!$E$12:$L$26,5,FALSE))","v":""},{"$f":"IF(C289=\"\",\"\",HLOOKUP(C289,'MHP Family Income & Rent Limits'!$E$12:$L$26,6,FALSE))","v":""},{"$f":"IF(C289=\"\",\"\",HLOOKUP(C289,'MHP Family Income & Rent Limits'!$E$12:$L$26,7,FALSE))","v":""},{"$f":"IF(C289=\"\",\"\",HLOOKUP(C289,'MHP Family Income & Rent Limits'!$E$12:$L$26,8,FALSE))","v":""},{"$f":"IF(C289=\"\",\"\",HLOOKUP(C289,'MHP Family Income & Rent Limits'!$E$12:$L$26,9,FALSE))","v":""},{"$f":"IF(C289=\"\",\"\",HLOOKUP(C289,'MHP Family Income & Rent Limits'!$E$12:$L$26,10,FALSE))","v":""},{"$f":"IF(C289=\"\",\"\",HLOOKUP(C289,'MHP Family Income & Rent Limits'!$E$12:$L$26,11,FALSE))","v":""},{"$f":"IF(C289=\"\",\"\",HLOOKUP(C289,'MHP Family Income & Rent Limits'!$E$12:$L$26,12,FALSE))","v":""},{"$f":"IF(C289=\"\",\"\",HLOOKUP(C289,'MHP Family Income & Rent Limits'!$E$12:$L$26,13,FALSE))","v":""},{"$f":"IF(C289=\"\",\"\",HLOOKUP(C289,'MHP Family Income & Rent Limits'!$E$12:$L$26,14,FALSE))","v":""},{"$f":"IF(C289=\"\",\"\",HLOOKUP(C289,'MHP Family Income & Rent Limits'!$E$12:$L$26,15,FALSE))","v":""}]
[{"$f":"IF('2. Assisted & Restricted Units'!A290=\"\",\"\",'2. Assisted & Restricted Units'!A290)","v":""},{"$f":"IF('2. Assisted & Restricted Units'!B290=\"\",\"\",'2. Assisted & Restricted Units'!B290)","v":""},{"$f":"IF('2. Assisted & Restricted Units'!D290=\"\",\"\",'2. Assisted & Restricted Units'!D290)","v":""},{"$f":"IF('2. Assisted & Restricted Units'!E290=\"\",\"\",'2. Assisted & Restricted Units'!E290)","v":""},{"$f":"IF('2. Assisted & Restricted Units'!H290=\"\",\"\",'2. Assisted & Restricted Units'!H290)","v":""},{"$f":"_xlfn.IFS(E290=\"\",\"\",E290>BO290,$BP$6,E290>BN290,$BO$6,E290>BM290,$BN$6,E290>BL290,$BM$6,E290>BK290,$BL$6,E290>BJ290,$BK$6,E290>BI290,$BJ$6,E290>BH290,$BI$6,E290>BG290,$BH$6,E290>BF290,$BG$6,E290>BE290,$BF$6,E290>BD290,$BE$6,E290>BC290,$BD$6,E290>=0,$BC$6)","v":""},{"$f":"IF('2. Assisted & Restricted Units'!T290=\"\",\"\",'2. Assisted & Restricted Units'!T290)","v":""},{"$f":"IF('2. Assisted & Restricted Units'!I290=\"\",\"\",'2. Assisted & Restricted Units'!I290)","v":""},{"$f":"IF('2. Assisted & Restricted Units'!AP290=\"\",\"\",'2. Assisted & Restricted Units'!AP290)","v":0},{"$f":"IF('2. Assisted & Restricted Units'!AT290=\"\",\"\",'2. Assisted & Restricted Units'!AT290)","v":""},0,{"$f":"IF('2. Assisted & Restricted Units'!AV290=\"\",\"\",'2. Assisted & Restricted Units'!AV290)","v":""},{"$f":"IF('2. Assisted & Restricted Units'!L290=\"\",\"\",'2. Assisted & Restricted Units'!L290)","v":""},{"$f":"IF('2. Assisted & Restricted Units'!M290=\"\",\"\",'2. Assisted & Restricted Units'!M290)","v":""},{"$f":"IF('2. Assisted & Restricted Units'!O290=\"\",\"\",'2. Assisted & Restricted Units'!O290)","v":""},{"$f":"IF('2. Assisted & Restricted Units'!P290=\"\",\"\",'2. Assisted & Restricted Units'!P290)","v":""},{"$f":"IF('2. Assisted & Restricted Units'!Q290=\"\",\"\",'2. Assisted & Restricted Units'!Q290)","v":""},{"$f":"IF('2. Assisted & Restricted Units'!R290=\"\",\"\",'2. Assisted & Restricted Units'!R290)","v":""},{"$f":"IF(A290=\"\",\"\",'1. Checklist & Certification'!$K$1)","v":""},{"$f":"IF(A290=\"\",\"\",'1. Checklist & Certification'!$C$62)","v":""},{"$f":"IF(A290=\"\",\"\",'1. Checklist & Certification'!$K$62)","v":""},{"$f":"IF(A290=\"\",\"\",'1. Checklist & Certification'!$C$6)","v":""},{"$f":"IF(A290=\"\",\"\",'1. Checklist & Certification'!$G$4)","v":""},{"$f":"IF(A290=\"\",\"\",'1. Checklist & Certification'!$C$7)","v":""},{"$f":"IF(A290=\"\",\"\",'1. Checklist & Certification'!$C$8)","v":""},{"$f":"IF(A290=\"\",\"\",'1. Checklist & Certification'!$F$7)","v":""},{"$f":"IF(A290=\"\",\"\",'1. Checklist & Certification'!$F$8)","v":""},{"$f":"IF(A290=\"\",\"\",'1. Checklist & Certification'!$B$9)","v":""},{"$f":"IF(A290=\"\",\"\",'1. Checklist & Certification'!$F$9)","v":""},{"$f":"IF(A290=\"\",\"\",'1. Checklist & Certification'!$C$10)","v":""},{"$f":"IF(A290=\"\",\"\",'1. Checklist & Certification'!$C$11)","v":""},{"$f":"IF(A290=\"\",\"\",'1. Checklist & Certification'!$C$12)","v":""},{"$f":"IF(A290=\"\",\"\",'1. Checklist & Certification'!$B$14)","v":""},{"$f":"IF(A290=\"\",\"\",'1. Checklist & Certification'!$E$14)","v":""},{"$f":"IF(B290=\"\",\"\",'1. Checklist & Certification'!$G$14)","v":""},{"$f":"IF(A290=\"\",\"\",'MHP Family Income & Rent Limits'!$B$3)","v":""},{"$f":"IF(A290=\"\",\"\",'MHP Family Income & Rent Limits'!$J$3)","v":""},{"$f":"IF(A290=\"\",\"\",'MHP Family Income & Rent Limits'!$E$4)","v":""},{"$f":"IF(A290=\"\",\"\",'MHP Family Income & Rent Limits'!$C$7)","v":""},{"$f":"IF(A290=\"\",\"\",'MHP Family Income & Rent Limits'!$F$8)","v":""},{"$f":"IF(A290=\"\",\"\",'1. Checklist & Certification'!$G$4)","v":""},{"$f":"IF(A290=\"\",\"\",'1. Checklist & Certification'!$K$39)","v":""},{"$f":"IF(A290=\"\",\"\",'1. Checklist & Certification'!$K$43)","v":""},{"$f":"IF(A290=\"\",\"\",'1. Checklist & Certification'!$K$45)","v":""},{"$f":"IF(A290=\"\",\"\",'1. Checklist & Certification'!$K$49)","v":""},{"$f":"IF(A290=\"\",\"\",'1. Checklist & Certification'!$E$66)","v":""},{"$f":"IF(A290=\"\",\"\",'1. Checklist & Certification'!$E$67)","v":""},{"$f":"IF(A290=\"\",\"\",'1. Checklist & Certification'!$E$68)","v":""},{"$f":"IF(A290=\"\",\"\",'1. Checklist & Certification'!$G$66)","v":""},{"$f":"IF(A290=\"\",\"\",'1. Checklist & Certification'!$H$66)","v":""},{"$f":"IF(A290=\"\",\"\",'1. Checklist & Certification'!$I$66)","v":""},{"$f":"IF(A290=\"\",\"\",'1. Checklist & Certification'!$I$67)","v":""},{"$f":"IF(A290=\"\",\"\",'1. Checklist & Certification'!$I$68)","v":""},null,{"$f":"IF(C290=\"\",\"\",HLOOKUP(C290,'MHP Family Income & Rent Limits'!$E$12:$L$26,2,FALSE))","v":""},{"$f":"IF(C290=\"\",\"\",HLOOKUP(C290,'MHP Family Income & Rent Limits'!$E$12:$L$26,3,FALSE))","v":""},{"$f":"IF(C290=\"\",\"\",HLOOKUP(C290,'MHP Family Income & Rent Limits'!$E$12:$L$26,4,FALSE))","v":""},{"$f":"IF(C290=\"\",\"\",HLOOKUP(C290,'MHP Family Income & Rent Limits'!$E$12:$L$26,5,FALSE))","v":""},{"$f":"IF(C290=\"\",\"\",HLOOKUP(C290,'MHP Family Income & Rent Limits'!$E$12:$L$26,6,FALSE))","v":""},{"$f":"IF(C290=\"\",\"\",HLOOKUP(C290,'MHP Family Income & Rent Limits'!$E$12:$L$26,7,FALSE))","v":""},{"$f":"IF(C290=\"\",\"\",HLOOKUP(C290,'MHP Family Income & Rent Limits'!$E$12:$L$26,8,FALSE))","v":""},{"$f":"IF(C290=\"\",\"\",HLOOKUP(C290,'MHP Family Income & Rent Limits'!$E$12:$L$26,9,FALSE))","v":""},{"$f":"IF(C290=\"\",\"\",HLOOKUP(C290,'MHP Family Income & Rent Limits'!$E$12:$L$26,10,FALSE))","v":""},{"$f":"IF(C290=\"\",\"\",HLOOKUP(C290,'MHP Family Income & Rent Limits'!$E$12:$L$26,11,FALSE))","v":""},{"$f":"IF(C290=\"\",\"\",HLOOKUP(C290,'MHP Family Income & Rent Limits'!$E$12:$L$26,12,FALSE))","v":""},{"$f":"IF(C290=\"\",\"\",HLOOKUP(C290,'MHP Family Income & Rent Limits'!$E$12:$L$26,13,FALSE))","v":""},{"$f":"IF(C290=\"\",\"\",HLOOKUP(C290,'MHP Family Income & Rent Limits'!$E$12:$L$26,14,FALSE))","v":""},{"$f":"IF(C290=\"\",\"\",HLOOKUP(C290,'MHP Family Income & Rent Limits'!$E$12:$L$26,15,FALSE))","v":""}]
[{"$f":"IF('2. Assisted & Restricted Units'!A291=\"\",\"\",'2. Assisted & Restricted Units'!A291)","v":""},{"$f":"IF('2. Assisted & Restricted Units'!B291=\"\",\"\",'2. Assisted & Restricted Units'!B291)","v":""},{"$f":"IF('2. Assisted & Restricted Units'!D291=\"\",\"\",'2. Assisted & Restricted Units'!D291)","v":""},{"$f":"IF('2. Assisted & Restricted Units'!E291=\"\",\"\",'2. Assisted & Restricted Units'!E291)","v":""},{"$f":"IF('2. Assisted & Restricted Units'!H291=\"\",\"\",'2. Assisted & Restricted Units'!H291)","v":""},{"$f":"_xlfn.IFS(E291=\"\",\"\",E291>BO291,$BP$6,E291>BN291,$BO$6,E291>BM291,$BN$6,E291>BL291,$BM$6,E291>BK291,$BL$6,E291>BJ291,$BK$6,E291>BI291,$BJ$6,E291>BH291,$BI$6,E291>BG291,$BH$6,E291>BF291,$BG$6,E291>BE291,$BF$6,E291>BD291,$BE$6,E291>BC291,$BD$6,E291>=0,$BC$6)","v":""},{"$f":"IF('2. Assisted & Restricted Units'!T291=\"\",\"\",'2. Assisted & Restricted Units'!T291)","v":""},{"$f":"IF('2. Assisted & Restricted Units'!I291=\"\",\"\",'2. Assisted & Restricted Units'!I291)","v":""},{"$f":"IF('2. Assisted & Restricted Units'!AP291=\"\",\"\",'2. Assisted & Restricted Units'!AP291)","v":0},{"$f":"IF('2. Assisted & Restricted Units'!AT291=\"\",\"\",'2. Assisted & Restricted Units'!AT291)","v":""},0,{"$f":"IF('2. Assisted & Restricted Units'!AV291=\"\",\"\",'2. Assisted & Restricted Units'!AV291)","v":""},{"$f":"IF('2. Assisted & Restricted Units'!L291=\"\",\"\",'2. Assisted & Restricted Units'!L291)","v":""},{"$f":"IF('2. Assisted & Restricted Units'!M291=\"\",\"\",'2. Assisted & Restricted Units'!M291)","v":""},{"$f":"IF('2. Assisted & Restricted Units'!O291=\"\",\"\",'2. Assisted & Restricted Units'!O291)","v":""},{"$f":"IF('2. Assisted & Restricted Units'!P291=\"\",\"\",'2. Assisted & Restricted Units'!P291)","v":""},{"$f":"IF('2. Assisted & Restricted Units'!Q291=\"\",\"\",'2. Assisted & Restricted Units'!Q291)","v":""},{"$f":"IF('2. Assisted & Restricted Units'!R291=\"\",\"\",'2. Assisted & Restricted Units'!R291)","v":""},{"$f":"IF(A291=\"\",\"\",'1. Checklist & Certification'!$K$1)","v":""},{"$f":"IF(A291=\"\",\"\",'1. Checklist & Certification'!$C$62)","v":""},{"$f":"IF(A291=\"\",\"\",'1. Checklist & Certification'!$K$62)","v":""},{"$f":"IF(A291=\"\",\"\",'1. Checklist & Certification'!$C$6)","v":""},{"$f":"IF(A291=\"\",\"\",'1. Checklist & Certification'!$G$4)","v":""},{"$f":"IF(A291=\"\",\"\",'1. Checklist & Certification'!$C$7)","v":""},{"$f":"IF(A291=\"\",\"\",'1. Checklist & Certification'!$C$8)","v":""},{"$f":"IF(A291=\"\",\"\",'1. Checklist & Certification'!$F$7)","v":""},{"$f":"IF(A291=\"\",\"\",'1. Checklist & Certification'!$F$8)","v":""},{"$f":"IF(A291=\"\",\"\",'1. Checklist & Certification'!$B$9)","v":""},{"$f":"IF(A291=\"\",\"\",'1. Checklist & Certification'!$F$9)","v":""},{"$f":"IF(A291=\"\",\"\",'1. Checklist & Certification'!$C$10)","v":""},{"$f":"IF(A291=\"\",\"\",'1. Checklist & Certification'!$C$11)","v":""},{"$f":"IF(A291=\"\",\"\",'1. Checklist & Certification'!$C$12)","v":""},{"$f":"IF(A291=\"\",\"\",'1. Checklist & Certification'!$B$14)","v":""},{"$f":"IF(A291=\"\",\"\",'1. Checklist & Certification'!$E$14)","v":""},{"$f":"IF(B291=\"\",\"\",'1. Checklist & Certification'!$G$14)","v":""},{"$f":"IF(A291=\"\",\"\",'MHP Family Income & Rent Limits'!$B$3)","v":""},{"$f":"IF(A291=\"\",\"\",'MHP Family Income & Rent Limits'!$J$3)","v":""},{"$f":"IF(A291=\"\",\"\",'MHP Family Income & Rent Limits'!$E$4)","v":""},{"$f":"IF(A291=\"\",\"\",'MHP Family Income & Rent Limits'!$C$7)","v":""},{"$f":"IF(A291=\"\",\"\",'MHP Family Income & Rent Limits'!$F$8)","v":""},{"$f":"IF(A291=\"\",\"\",'1. Checklist & Certification'!$G$4)","v":""},{"$f":"IF(A291=\"\",\"\",'1. Checklist & Certification'!$K$39)","v":""},{"$f":"IF(A291=\"\",\"\",'1. Checklist & Certification'!$K$43)","v":""},{"$f":"IF(A291=\"\",\"\",'1. Checklist & Certification'!$K$45)","v":""},{"$f":"IF(A291=\"\",\"\",'1. Checklist & Certification'!$K$49)","v":""},{"$f":"IF(A291=\"\",\"\",'1. Checklist & Certification'!$E$66)","v":""},{"$f":"IF(A291=\"\",\"\",'1. Checklist & Certification'!$E$67)","v":""},{"$f":"IF(A291=\"\",\"\",'1. Checklist & Certification'!$E$68)","v":""},{"$f":"IF(A291=\"\",\"\",'1. Checklist & Certification'!$G$66)","v":""},{"$f":"IF(A291=\"\",\"\",'1. Checklist & Certification'!$H$66)","v":""},{"$f":"IF(A291=\"\",\"\",'1. Checklist & Certification'!$I$66)","v":""},{"$f":"IF(A291=\"\",\"\",'1. Checklist & Certification'!$I$67)","v":""},{"$f":"IF(A291=\"\",\"\",'1. Checklist & Certification'!$I$68)","v":""},null,{"$f":"IF(C291=\"\",\"\",HLOOKUP(C291,'MHP Family Income & Rent Limits'!$E$12:$L$26,2,FALSE))","v":""},{"$f":"IF(C291=\"\",\"\",HLOOKUP(C291,'MHP Family Income & Rent Limits'!$E$12:$L$26,3,FALSE))","v":""},{"$f":"IF(C291=\"\",\"\",HLOOKUP(C291,'MHP Family Income & Rent Limits'!$E$12:$L$26,4,FALSE))","v":""},{"$f":"IF(C291=\"\",\"\",HLOOKUP(C291,'MHP Family Income & Rent Limits'!$E$12:$L$26,5,FALSE))","v":""},{"$f":"IF(C291=\"\",\"\",HLOOKUP(C291,'MHP Family Income & Rent Limits'!$E$12:$L$26,6,FALSE))","v":""},{"$f":"IF(C291=\"\",\"\",HLOOKUP(C291,'MHP Family Income & Rent Limits'!$E$12:$L$26,7,FALSE))","v":""},{"$f":"IF(C291=\"\",\"\",HLOOKUP(C291,'MHP Family Income & Rent Limits'!$E$12:$L$26,8,FALSE))","v":""},{"$f":"IF(C291=\"\",\"\",HLOOKUP(C291,'MHP Family Income & Rent Limits'!$E$12:$L$26,9,FALSE))","v":""},{"$f":"IF(C291=\"\",\"\",HLOOKUP(C291,'MHP Family Income & Rent Limits'!$E$12:$L$26,10,FALSE))","v":""},{"$f":"IF(C291=\"\",\"\",HLOOKUP(C291,'MHP Family Income & Rent Limits'!$E$12:$L$26,11,FALSE))","v":""},{"$f":"IF(C291=\"\",\"\",HLOOKUP(C291,'MHP Family Income & Rent Limits'!$E$12:$L$26,12,FALSE))","v":""},{"$f":"IF(C291=\"\",\"\",HLOOKUP(C291,'MHP Family Income & Rent Limits'!$E$12:$L$26,13,FALSE))","v":""},{"$f":"IF(C291=\"\",\"\",HLOOKUP(C291,'MHP Family Income & Rent Limits'!$E$12:$L$26,14,FALSE))","v":""},{"$f":"IF(C291=\"\",\"\",HLOOKUP(C291,'MHP Family Income & Rent Limits'!$E$12:$L$26,15,FALSE))","v":""}]
[{"$f":"IF('2. Assisted & Restricted Units'!A292=\"\",\"\",'2. Assisted & Restricted Units'!A292)","v":""},{"$f":"IF('2. Assisted & Restricted Units'!B292=\"\",\"\",'2. Assisted & Restricted Units'!B292)","v":""},{"$f":"IF('2. Assisted & Restricted Units'!D292=\"\",\"\",'2. Assisted & Restricted Units'!D292)","v":""},{"$f":"IF('2. Assisted & Restricted Units'!E292=\"\",\"\",'2. Assisted & Restricted Units'!E292)","v":""},{"$f":"IF('2. Assisted & Restricted Units'!H292=\"\",\"\",'2. Assisted & Restricted Units'!H292)","v":""},{"$f":"_xlfn.IFS(E292=\"\",\"\",E292>BO292,$BP$6,E292>BN292,$BO$6,E292>BM292,$BN$6,E292>BL292,$BM$6,E292>BK292,$BL$6,E292>BJ292,$BK$6,E292>BI292,$BJ$6,E292>BH292,$BI$6,E292>BG292,$BH$6,E292>BF292,$BG$6,E292>BE292,$BF$6,E292>BD292,$BE$6,E292>BC292,$BD$6,E292>=0,$BC$6)","v":""},{"$f":"IF('2. Assisted & Restricted Units'!T292=\"\",\"\",'2. Assisted & Restricted Units'!T292)","v":""},{"$f":"IF('2. Assisted & Restricted Units'!I292=\"\",\"\",'2. Assisted & Restricted Units'!I292)","v":""},{"$f":"IF('2. Assisted & Restricted Units'!AP292=\"\",\"\",'2. Assisted & Restricted Units'!AP292)","v":0},{"$f":"IF('2. Assisted & Restricted Units'!AT292=\"\",\"\",'2. Assisted & Restricted Units'!AT292)","v":""},0,{"$f":"IF('2. Assisted & Restricted Units'!AV292=\"\",\"\",'2. Assisted & Restricted Units'!AV292)","v":""},{"$f":"IF('2. Assisted & Restricted Units'!L292=\"\",\"\",'2. Assisted & Restricted Units'!L292)","v":""},{"$f":"IF('2. Assisted & Restricted Units'!M292=\"\",\"\",'2. Assisted & Restricted Units'!M292)","v":""},{"$f":"IF('2. Assisted & Restricted Units'!O292=\"\",\"\",'2. Assisted & Restricted Units'!O292)","v":""},{"$f":"IF('2. Assisted & Restricted Units'!P292=\"\",\"\",'2. Assisted & Restricted Units'!P292)","v":""},{"$f":"IF('2. Assisted & Restricted Units'!Q292=\"\",\"\",'2. Assisted & Restricted Units'!Q292)","v":""},{"$f":"IF('2. Assisted & Restricted Units'!R292=\"\",\"\",'2. Assisted & Restricted Units'!R292)","v":""},{"$f":"IF(A292=\"\",\"\",'1. Checklist & Certification'!$K$1)","v":""},{"$f":"IF(A292=\"\",\"\",'1. Checklist & Certification'!$C$62)","v":""},{"$f":"IF(A292=\"\",\"\",'1. Checklist & Certification'!$K$62)","v":""},{"$f":"IF(A292=\"\",\"\",'1. Checklist & Certification'!$C$6)","v":""},{"$f":"IF(A292=\"\",\"\",'1. Checklist & Certification'!$G$4)","v":""},{"$f":"IF(A292=\"\",\"\",'1. Checklist & Certification'!$C$7)","v":""},{"$f":"IF(A292=\"\",\"\",'1. Checklist & Certification'!$C$8)","v":""},{"$f":"IF(A292=\"\",\"\",'1. Checklist & Certification'!$F$7)","v":""},{"$f":"IF(A292=\"\",\"\",'1. Checklist & Certification'!$F$8)","v":""},{"$f":"IF(A292=\"\",\"\",'1. Checklist & Certification'!$B$9)","v":""},{"$f":"IF(A292=\"\",\"\",'1. Checklist & Certification'!$F$9)","v":""},{"$f":"IF(A292=\"\",\"\",'1. Checklist & Certification'!$C$10)","v":""},{"$f":"IF(A292=\"\",\"\",'1. Checklist & Certification'!$C$11)","v":""},{"$f":"IF(A292=\"\",\"\",'1. Checklist & Certification'!$C$12)","v":""},{"$f":"IF(A292=\"\",\"\",'1. Checklist & Certification'!$B$14)","v":""},{"$f":"IF(A292=\"\",\"\",'1. Checklist & Certification'!$E$14)","v":""},{"$f":"IF(B292=\"\",\"\",'1. Checklist & Certification'!$G$14)","v":""},{"$f":"IF(A292=\"\",\"\",'MHP Family Income & Rent Limits'!$B$3)","v":""},{"$f":"IF(A292=\"\",\"\",'MHP Family Income & Rent Limits'!$J$3)","v":""},{"$f":"IF(A292=\"\",\"\",'MHP Family Income & Rent Limits'!$E$4)","v":""},{"$f":"IF(A292=\"\",\"\",'MHP Family Income & Rent Limits'!$C$7)","v":""},{"$f":"IF(A292=\"\",\"\",'MHP Family Income & Rent Limits'!$F$8)","v":""},{"$f":"IF(A292=\"\",\"\",'1. Checklist & Certification'!$G$4)","v":""},{"$f":"IF(A292=\"\",\"\",'1. Checklist & Certification'!$K$39)","v":""},{"$f":"IF(A292=\"\",\"\",'1. Checklist & Certification'!$K$43)","v":""},{"$f":"IF(A292=\"\",\"\",'1. Checklist & Certification'!$K$45)","v":""},{"$f":"IF(A292=\"\",\"\",'1. Checklist & Certification'!$K$49)","v":""},{"$f":"IF(A292=\"\",\"\",'1. Checklist & Certification'!$E$66)","v":""},{"$f":"IF(A292=\"\",\"\",'1. Checklist & Certification'!$E$67)","v":""},{"$f":"IF(A292=\"\",\"\",'1. Checklist & Certification'!$E$68)","v":""},{"$f":"IF(A292=\"\",\"\",'1. Checklist & Certification'!$G$66)","v":""},{"$f":"IF(A292=\"\",\"\",'1. Checklist & Certification'!$H$66)","v":""},{"$f":"IF(A292=\"\",\"\",'1. Checklist & Certification'!$I$66)","v":""},{"$f":"IF(A292=\"\",\"\",'1. Checklist & Certification'!$I$67)","v":""},{"$f":"IF(A292=\"\",\"\",'1. Checklist & Certification'!$I$68)","v":""},null,{"$f":"IF(C292=\"\",\"\",HLOOKUP(C292,'MHP Family Income & Rent Limits'!$E$12:$L$26,2,FALSE))","v":""},{"$f":"IF(C292=\"\",\"\",HLOOKUP(C292,'MHP Family Income & Rent Limits'!$E$12:$L$26,3,FALSE))","v":""},{"$f":"IF(C292=\"\",\"\",HLOOKUP(C292,'MHP Family Income & Rent Limits'!$E$12:$L$26,4,FALSE))","v":""},{"$f":"IF(C292=\"\",\"\",HLOOKUP(C292,'MHP Family Income & Rent Limits'!$E$12:$L$26,5,FALSE))","v":""},{"$f":"IF(C292=\"\",\"\",HLOOKUP(C292,'MHP Family Income & Rent Limits'!$E$12:$L$26,6,FALSE))","v":""},{"$f":"IF(C292=\"\",\"\",HLOOKUP(C292,'MHP Family Income & Rent Limits'!$E$12:$L$26,7,FALSE))","v":""},{"$f":"IF(C292=\"\",\"\",HLOOKUP(C292,'MHP Family Income & Rent Limits'!$E$12:$L$26,8,FALSE))","v":""},{"$f":"IF(C292=\"\",\"\",HLOOKUP(C292,'MHP Family Income & Rent Limits'!$E$12:$L$26,9,FALSE))","v":""},{"$f":"IF(C292=\"\",\"\",HLOOKUP(C292,'MHP Family Income & Rent Limits'!$E$12:$L$26,10,FALSE))","v":""},{"$f":"IF(C292=\"\",\"\",HLOOKUP(C292,'MHP Family Income & Rent Limits'!$E$12:$L$26,11,FALSE))","v":""},{"$f":"IF(C292=\"\",\"\",HLOOKUP(C292,'MHP Family Income & Rent Limits'!$E$12:$L$26,12,FALSE))","v":""},{"$f":"IF(C292=\"\",\"\",HLOOKUP(C292,'MHP Family Income & Rent Limits'!$E$12:$L$26,13,FALSE))","v":""},{"$f":"IF(C292=\"\",\"\",HLOOKUP(C292,'MHP Family Income & Rent Limits'!$E$12:$L$26,14,FALSE))","v":""},{"$f":"IF(C292=\"\",\"\",HLOOKUP(C292,'MHP Family Income & Rent Limits'!$E$12:$L$26,15,FALSE))","v":""}]
[{"$f":"IF('2. Assisted & Restricted Units'!A293=\"\",\"\",'2. Assisted & Restricted Units'!A293)","v":""},{"$f":"IF('2. Assisted & Restricted Units'!B293=\"\",\"\",'2. Assisted & Restricted Units'!B293)","v":""},{"$f":"IF('2. Assisted & Restricted Units'!D293=\"\",\"\",'2. Assisted & Restricted Units'!D293)","v":""},{"$f":"IF('2. Assisted & Restricted Units'!E293=\"\",\"\",'2. Assisted & Restricted Units'!E293)","v":""},{"$f":"IF('2. Assisted & Restricted Units'!H293=\"\",\"\",'2. Assisted & Restricted Units'!H293)","v":""},{"$f":"_xlfn.IFS(E293=\"\",\"\",E293>BO293,$BP$6,E293>BN293,$BO$6,E293>BM293,$BN$6,E293>BL293,$BM$6,E293>BK293,$BL$6,E293>BJ293,$BK$6,E293>BI293,$BJ$6,E293>BH293,$BI$6,E293>BG293,$BH$6,E293>BF293,$BG$6,E293>BE293,$BF$6,E293>BD293,$BE$6,E293>BC293,$BD$6,E293>=0,$BC$6)","v":""},{"$f":"IF('2. Assisted & Restricted Units'!T293=\"\",\"\",'2. Assisted & Restricted Units'!T293)","v":""},{"$f":"IF('2. Assisted & Restricted Units'!I293=\"\",\"\",'2. Assisted & Restricted Units'!I293)","v":""},{"$f":"IF('2. Assisted & Restricted Units'!AP293=\"\",\"\",'2. Assisted & Restricted Units'!AP293)","v":0},{"$f":"IF('2. Assisted & Restricted Units'!AT293=\"\",\"\",'2. Assisted & Restricted Units'!AT293)","v":""},0,{"$f":"IF('2. Assisted & Restricted Units'!AV293=\"\",\"\",'2. Assisted & Restricted Units'!AV293)","v":""},{"$f":"IF('2. Assisted & Restricted Units'!L293=\"\",\"\",'2. Assisted & Restricted Units'!L293)","v":""},{"$f":"IF('2. Assisted & Restricted Units'!M293=\"\",\"\",'2. Assisted & Restricted Units'!M293)","v":""},{"$f":"IF('2. Assisted & Restricted Units'!O293=\"\",\"\",'2. Assisted & Restricted Units'!O293)","v":""},{"$f":"IF('2. Assisted & Restricted Units'!P293=\"\",\"\",'2. Assisted & Restricted Units'!P293)","v":""},{"$f":"IF('2. Assisted & Restricted Units'!Q293=\"\",\"\",'2. Assisted & Restricted Units'!Q293)","v":""},{"$f":"IF('2. Assisted & Restricted Units'!R293=\"\",\"\",'2. Assisted & Restricted Units'!R293)","v":""},{"$f":"IF(A293=\"\",\"\",'1. Checklist & Certification'!$K$1)","v":""},{"$f":"IF(A293=\"\",\"\",'1. Checklist & Certification'!$C$62)","v":""},{"$f":"IF(A293=\"\",\"\",'1. Checklist & Certification'!$K$62)","v":""},{"$f":"IF(A293=\"\",\"\",'1. Checklist & Certification'!$C$6)","v":""},{"$f":"IF(A293=\"\",\"\",'1. Checklist & Certification'!$G$4)","v":""},{"$f":"IF(A293=\"\",\"\",'1. Checklist & Certification'!$C$7)","v":""},{"$f":"IF(A293=\"\",\"\",'1. Checklist & Certification'!$C$8)","v":""},{"$f":"IF(A293=\"\",\"\",'1. Checklist & Certification'!$F$7)","v":""},{"$f":"IF(A293=\"\",\"\",'1. Checklist & Certification'!$F$8)","v":""},{"$f":"IF(A293=\"\",\"\",'1. Checklist & Certification'!$B$9)","v":""},{"$f":"IF(A293=\"\",\"\",'1. Checklist & Certification'!$F$9)","v":""},{"$f":"IF(A293=\"\",\"\",'1. Checklist & Certification'!$C$10)","v":""},{"$f":"IF(A293=\"\",\"\",'1. Checklist & Certification'!$C$11)","v":""},{"$f":"IF(A293=\"\",\"\",'1. Checklist & Certification'!$C$12)","v":""},{"$f":"IF(A293=\"\",\"\",'1. Checklist & Certification'!$B$14)","v":""},{"$f":"IF(A293=\"\",\"\",'1. Checklist & Certification'!$E$14)","v":""},{"$f":"IF(B293=\"\",\"\",'1. Checklist & Certification'!$G$14)","v":""},{"$f":"IF(A293=\"\",\"\",'MHP Family Income & Rent Limits'!$B$3)","v":""},{"$f":"IF(A293=\"\",\"\",'MHP Family Income & Rent Limits'!$J$3)","v":""},{"$f":"IF(A293=\"\",\"\",'MHP Family Income & Rent Limits'!$E$4)","v":""},{"$f":"IF(A293=\"\",\"\",'MHP Family Income & Rent Limits'!$C$7)","v":""},{"$f":"IF(A293=\"\",\"\",'MHP Family Income & Rent Limits'!$F$8)","v":""},{"$f":"IF(A293=\"\",\"\",'1. Checklist & Certification'!$G$4)","v":""},{"$f":"IF(A293=\"\",\"\",'1. Checklist & Certification'!$K$39)","v":""},{"$f":"IF(A293=\"\",\"\",'1. Checklist & Certification'!$K$43)","v":""},{"$f":"IF(A293=\"\",\"\",'1. Checklist & Certification'!$K$45)","v":""},{"$f":"IF(A293=\"\",\"\",'1. Checklist & Certification'!$K$49)","v":""},{"$f":"IF(A293=\"\",\"\",'1. Checklist & Certification'!$E$66)","v":""},{"$f":"IF(A293=\"\",\"\",'1. Checklist & Certification'!$E$67)","v":""},{"$f":"IF(A293=\"\",\"\",'1. Checklist & Certification'!$E$68)","v":""},{"$f":"IF(A293=\"\",\"\",'1. Checklist & Certification'!$G$66)","v":""},{"$f":"IF(A293=\"\",\"\",'1. Checklist & Certification'!$H$66)","v":""},{"$f":"IF(A293=\"\",\"\",'1. Checklist & Certification'!$I$66)","v":""},{"$f":"IF(A293=\"\",\"\",'1. Checklist & Certification'!$I$67)","v":""},{"$f":"IF(A293=\"\",\"\",'1. Checklist & Certification'!$I$68)","v":""},null,{"$f":"IF(C293=\"\",\"\",HLOOKUP(C293,'MHP Family Income & Rent Limits'!$E$12:$L$26,2,FALSE))","v":""},{"$f":"IF(C293=\"\",\"\",HLOOKUP(C293,'MHP Family Income & Rent Limits'!$E$12:$L$26,3,FALSE))","v":""},{"$f":"IF(C293=\"\",\"\",HLOOKUP(C293,'MHP Family Income & Rent Limits'!$E$12:$L$26,4,FALSE))","v":""},{"$f":"IF(C293=\"\",\"\",HLOOKUP(C293,'MHP Family Income & Rent Limits'!$E$12:$L$26,5,FALSE))","v":""},{"$f":"IF(C293=\"\",\"\",HLOOKUP(C293,'MHP Family Income & Rent Limits'!$E$12:$L$26,6,FALSE))","v":""},{"$f":"IF(C293=\"\",\"\",HLOOKUP(C293,'MHP Family Income & Rent Limits'!$E$12:$L$26,7,FALSE))","v":""},{"$f":"IF(C293=\"\",\"\",HLOOKUP(C293,'MHP Family Income & Rent Limits'!$E$12:$L$26,8,FALSE))","v":""},{"$f":"IF(C293=\"\",\"\",HLOOKUP(C293,'MHP Family Income & Rent Limits'!$E$12:$L$26,9,FALSE))","v":""},{"$f":"IF(C293=\"\",\"\",HLOOKUP(C293,'MHP Family Income & Rent Limits'!$E$12:$L$26,10,FALSE))","v":""},{"$f":"IF(C293=\"\",\"\",HLOOKUP(C293,'MHP Family Income & Rent Limits'!$E$12:$L$26,11,FALSE))","v":""},{"$f":"IF(C293=\"\",\"\",HLOOKUP(C293,'MHP Family Income & Rent Limits'!$E$12:$L$26,12,FALSE))","v":""},{"$f":"IF(C293=\"\",\"\",HLOOKUP(C293,'MHP Family Income & Rent Limits'!$E$12:$L$26,13,FALSE))","v":""},{"$f":"IF(C293=\"\",\"\",HLOOKUP(C293,'MHP Family Income & Rent Limits'!$E$12:$L$26,14,FALSE))","v":""},{"$f":"IF(C293=\"\",\"\",HLOOKUP(C293,'MHP Family Income & Rent Limits'!$E$12:$L$26,15,FALSE))","v":""}]
[{"$f":"IF('2. Assisted & Restricted Units'!A294=\"\",\"\",'2. Assisted & Restricted Units'!A294)","v":""},{"$f":"IF('2. Assisted & Restricted Units'!B294=\"\",\"\",'2. Assisted & Restricted Units'!B294)","v":""},{"$f":"IF('2. Assisted & Restricted Units'!D294=\"\",\"\",'2. Assisted & Restricted Units'!D294)","v":""},{"$f":"IF('2. Assisted & Restricted Units'!E294=\"\",\"\",'2. Assisted & Restricted Units'!E294)","v":""},{"$f":"IF('2. Assisted & Restricted Units'!H294=\"\",\"\",'2. Assisted & Restricted Units'!H294)","v":""},{"$f":"_xlfn.IFS(E294=\"\",\"\",E294>BO294,$BP$6,E294>BN294,$BO$6,E294>BM294,$BN$6,E294>BL294,$BM$6,E294>BK294,$BL$6,E294>BJ294,$BK$6,E294>BI294,$BJ$6,E294>BH294,$BI$6,E294>BG294,$BH$6,E294>BF294,$BG$6,E294>BE294,$BF$6,E294>BD294,$BE$6,E294>BC294,$BD$6,E294>=0,$BC$6)","v":""},{"$f":"IF('2. Assisted & Restricted Units'!T294=\"\",\"\",'2. Assisted & Restricted Units'!T294)","v":""},{"$f":"IF('2. Assisted & Restricted Units'!I294=\"\",\"\",'2. Assisted & Restricted Units'!I294)","v":""},{"$f":"IF('2. Assisted & Restricted Units'!AP294=\"\",\"\",'2. Assisted & Restricted Units'!AP294)","v":0},{"$f":"IF('2. Assisted & Restricted Units'!AT294=\"\",\"\",'2. Assisted & Restricted Units'!AT294)","v":""},0,{"$f":"IF('2. Assisted & Restricted Units'!AV294=\"\",\"\",'2. Assisted & Restricted Units'!AV294)","v":""},{"$f":"IF('2. Assisted & Restricted Units'!L294=\"\",\"\",'2. Assisted & Restricted Units'!L294)","v":""},{"$f":"IF('2. Assisted & Restricted Units'!M294=\"\",\"\",'2. Assisted & Restricted Units'!M294)","v":""},{"$f":"IF('2. Assisted & Restricted Units'!O294=\"\",\"\",'2. Assisted & Restricted Units'!O294)","v":""},{"$f":"IF('2. Assisted & Restricted Units'!P294=\"\",\"\",'2. Assisted & Restricted Units'!P294)","v":""},{"$f":"IF('2. Assisted & Restricted Units'!Q294=\"\",\"\",'2. Assisted & Restricted Units'!Q294)","v":""},{"$f":"IF('2. Assisted & Restricted Units'!R294=\"\",\"\",'2. Assisted & Restricted Units'!R294)","v":""},{"$f":"IF(A294=\"\",\"\",'1. Checklist & Certification'!$K$1)","v":""},{"$f":"IF(A294=\"\",\"\",'1. Checklist & Certification'!$C$62)","v":""},{"$f":"IF(A294=\"\",\"\",'1. Checklist & Certification'!$K$62)","v":""},{"$f":"IF(A294=\"\",\"\",'1. Checklist & Certification'!$C$6)","v":""},{"$f":"IF(A294=\"\",\"\",'1. Checklist & Certification'!$G$4)","v":""},{"$f":"IF(A294=\"\",\"\",'1. Checklist & Certification'!$C$7)","v":""},{"$f":"IF(A294=\"\",\"\",'1. Checklist & Certification'!$C$8)","v":""},{"$f":"IF(A294=\"\",\"\",'1. Checklist & Certification'!$F$7)","v":""},{"$f":"IF(A294=\"\",\"\",'1. Checklist & Certification'!$F$8)","v":""},{"$f":"IF(A294=\"\",\"\",'1. Checklist & Certification'!$B$9)","v":""},{"$f":"IF(A294=\"\",\"\",'1. Checklist & Certification'!$F$9)","v":""},{"$f":"IF(A294=\"\",\"\",'1. Checklist & Certification'!$C$10)","v":""},{"$f":"IF(A294=\"\",\"\",'1. Checklist & Certification'!$C$11)","v":""},{"$f":"IF(A294=\"\",\"\",'1. Checklist & Certification'!$C$12)","v":""},{"$f":"IF(A294=\"\",\"\",'1. Checklist & Certification'!$B$14)","v":""},{"$f":"IF(A294=\"\",\"\",'1. Checklist & Certification'!$E$14)","v":""},{"$f":"IF(B294=\"\",\"\",'1. Checklist & Certification'!$G$14)","v":""},{"$f":"IF(A294=\"\",\"\",'MHP Family Income & Rent Limits'!$B$3)","v":""},{"$f":"IF(A294=\"\",\"\",'MHP Family Income & Rent Limits'!$J$3)","v":""},{"$f":"IF(A294=\"\",\"\",'MHP Family Income & Rent Limits'!$E$4)","v":""},{"$f":"IF(A294=\"\",\"\",'MHP Family Income & Rent Limits'!$C$7)","v":""},{"$f":"IF(A294=\"\",\"\",'MHP Family Income & Rent Limits'!$F$8)","v":""},{"$f":"IF(A294=\"\",\"\",'1. Checklist & Certification'!$G$4)","v":""},{"$f":"IF(A294=\"\",\"\",'1. Checklist & Certification'!$K$39)","v":""},{"$f":"IF(A294=\"\",\"\",'1. Checklist & Certification'!$K$43)","v":""},{"$f":"IF(A294=\"\",\"\",'1. Checklist & Certification'!$K$45)","v":""},{"$f":"IF(A294=\"\",\"\",'1. Checklist & Certification'!$K$49)","v":""},{"$f":"IF(A294=\"\",\"\",'1. Checklist & Certification'!$E$66)","v":""},{"$f":"IF(A294=\"\",\"\",'1. Checklist & Certification'!$E$67)","v":""},{"$f":"IF(A294=\"\",\"\",'1. Checklist & Certification'!$E$68)","v":""},{"$f":"IF(A294=\"\",\"\",'1. Checklist & Certification'!$G$66)","v":""},{"$f":"IF(A294=\"\",\"\",'1. Checklist & Certification'!$H$66)","v":""},{"$f":"IF(A294=\"\",\"\",'1. Checklist & Certification'!$I$66)","v":""},{"$f":"IF(A294=\"\",\"\",'1. Checklist & Certification'!$I$67)","v":""},{"$f":"IF(A294=\"\",\"\",'1. Checklist & Certification'!$I$68)","v":""},null,{"$f":"IF(C294=\"\",\"\",HLOOKUP(C294,'MHP Family Income & Rent Limits'!$E$12:$L$26,2,FALSE))","v":""},{"$f":"IF(C294=\"\",\"\",HLOOKUP(C294,'MHP Family Income & Rent Limits'!$E$12:$L$26,3,FALSE))","v":""},{"$f":"IF(C294=\"\",\"\",HLOOKUP(C294,'MHP Family Income & Rent Limits'!$E$12:$L$26,4,FALSE))","v":""},{"$f":"IF(C294=\"\",\"\",HLOOKUP(C294,'MHP Family Income & Rent Limits'!$E$12:$L$26,5,FALSE))","v":""},{"$f":"IF(C294=\"\",\"\",HLOOKUP(C294,'MHP Family Income & Rent Limits'!$E$12:$L$26,6,FALSE))","v":""},{"$f":"IF(C294=\"\",\"\",HLOOKUP(C294,'MHP Family Income & Rent Limits'!$E$12:$L$26,7,FALSE))","v":""},{"$f":"IF(C294=\"\",\"\",HLOOKUP(C294,'MHP Family Income & Rent Limits'!$E$12:$L$26,8,FALSE))","v":""},{"$f":"IF(C294=\"\",\"\",HLOOKUP(C294,'MHP Family Income & Rent Limits'!$E$12:$L$26,9,FALSE))","v":""},{"$f":"IF(C294=\"\",\"\",HLOOKUP(C294,'MHP Family Income & Rent Limits'!$E$12:$L$26,10,FALSE))","v":""},{"$f":"IF(C294=\"\",\"\",HLOOKUP(C294,'MHP Family Income & Rent Limits'!$E$12:$L$26,11,FALSE))","v":""},{"$f":"IF(C294=\"\",\"\",HLOOKUP(C294,'MHP Family Income & Rent Limits'!$E$12:$L$26,12,FALSE))","v":""},{"$f":"IF(C294=\"\",\"\",HLOOKUP(C294,'MHP Family Income & Rent Limits'!$E$12:$L$26,13,FALSE))","v":""},{"$f":"IF(C294=\"\",\"\",HLOOKUP(C294,'MHP Family Income & Rent Limits'!$E$12:$L$26,14,FALSE))","v":""},{"$f":"IF(C294=\"\",\"\",HLOOKUP(C294,'MHP Family Income & Rent Limits'!$E$12:$L$26,15,FALSE))","v":""}]
[{"$f":"IF('2. Assisted & Restricted Units'!A295=\"\",\"\",'2. Assisted & Restricted Units'!A295)","v":""},{"$f":"IF('2. Assisted & Restricted Units'!B295=\"\",\"\",'2. Assisted & Restricted Units'!B295)","v":""},{"$f":"IF('2. Assisted & Restricted Units'!D295=\"\",\"\",'2. Assisted & Restricted Units'!D295)","v":""},{"$f":"IF('2. Assisted & Restricted Units'!E295=\"\",\"\",'2. Assisted & Restricted Units'!E295)","v":""},{"$f":"IF('2. Assisted & Restricted Units'!H295=\"\",\"\",'2. Assisted & Restricted Units'!H295)","v":""},{"$f":"_xlfn.IFS(E295=\"\",\"\",E295>BO295,$BP$6,E295>BN295,$BO$6,E295>BM295,$BN$6,E295>BL295,$BM$6,E295>BK295,$BL$6,E295>BJ295,$BK$6,E295>BI295,$BJ$6,E295>BH295,$BI$6,E295>BG295,$BH$6,E295>BF295,$BG$6,E295>BE295,$BF$6,E295>BD295,$BE$6,E295>BC295,$BD$6,E295>=0,$BC$6)","v":""},{"$f":"IF('2. Assisted & Restricted Units'!T295=\"\",\"\",'2. Assisted & Restricted Units'!T295)","v":""},{"$f":"IF('2. Assisted & Restricted Units'!I295=\"\",\"\",'2. Assisted & Restricted Units'!I295)","v":""},{"$f":"IF('2. Assisted & Restricted Units'!AP295=\"\",\"\",'2. Assisted & Restricted Units'!AP295)","v":0},{"$f":"IF('2. Assisted & Restricted Units'!AT295=\"\",\"\",'2. Assisted & Restricted Units'!AT295)","v":""},0,{"$f":"IF('2. Assisted & Restricted Units'!AV295=\"\",\"\",'2. Assisted & Restricted Units'!AV295)","v":""},{"$f":"IF('2. Assisted & Restricted Units'!L295=\"\",\"\",'2. Assisted & Restricted Units'!L295)","v":""},{"$f":"IF('2. Assisted & Restricted Units'!M295=\"\",\"\",'2. Assisted & Restricted Units'!M295)","v":""},{"$f":"IF('2. Assisted & Restricted Units'!O295=\"\",\"\",'2. Assisted & Restricted Units'!O295)","v":""},{"$f":"IF('2. Assisted & Restricted Units'!P295=\"\",\"\",'2. Assisted & Restricted Units'!P295)","v":""},{"$f":"IF('2. Assisted & Restricted Units'!Q295=\"\",\"\",'2. Assisted & Restricted Units'!Q295)","v":""},{"$f":"IF('2. Assisted & Restricted Units'!R295=\"\",\"\",'2. Assisted & Restricted Units'!R295)","v":""},{"$f":"IF(A295=\"\",\"\",'1. Checklist & Certification'!$K$1)","v":""},{"$f":"IF(A295=\"\",\"\",'1. Checklist & Certification'!$C$62)","v":""},{"$f":"IF(A295=\"\",\"\",'1. Checklist & Certification'!$K$62)","v":""},{"$f":"IF(A295=\"\",\"\",'1. Checklist & Certification'!$C$6)","v":""},{"$f":"IF(A295=\"\",\"\",'1. Checklist & Certification'!$G$4)","v":""},{"$f":"IF(A295=\"\",\"\",'1. Checklist & Certification'!$C$7)","v":""},{"$f":"IF(A295=\"\",\"\",'1. Checklist & Certification'!$C$8)","v":""},{"$f":"IF(A295=\"\",\"\",'1. Checklist & Certification'!$F$7)","v":""},{"$f":"IF(A295=\"\",\"\",'1. Checklist & Certification'!$F$8)","v":""},{"$f":"IF(A295=\"\",\"\",'1. Checklist & Certification'!$B$9)","v":""},{"$f":"IF(A295=\"\",\"\",'1. Checklist & Certification'!$F$9)","v":""},{"$f":"IF(A295=\"\",\"\",'1. Checklist & Certification'!$C$10)","v":""},{"$f":"IF(A295=\"\",\"\",'1. Checklist & Certification'!$C$11)","v":""},{"$f":"IF(A295=\"\",\"\",'1. Checklist & Certification'!$C$12)","v":""},{"$f":"IF(A295=\"\",\"\",'1. Checklist & Certification'!$B$14)","v":""},{"$f":"IF(A295=\"\",\"\",'1. Checklist & Certification'!$E$14)","v":""},{"$f":"IF(B295=\"\",\"\",'1. Checklist & Certification'!$G$14)","v":""},{"$f":"IF(A295=\"\",\"\",'MHP Family Income & Rent Limits'!$B$3)","v":""},{"$f":"IF(A295=\"\",\"\",'MHP Family Income & Rent Limits'!$J$3)","v":""},{"$f":"IF(A295=\"\",\"\",'MHP Family Income & Rent Limits'!$E$4)","v":""},{"$f":"IF(A295=\"\",\"\",'MHP Family Income & Rent Limits'!$C$7)","v":""},{"$f":"IF(A295=\"\",\"\",'MHP Family Income & Rent Limits'!$F$8)","v":""},{"$f":"IF(A295=\"\",\"\",'1. Checklist & Certification'!$G$4)","v":""},{"$f":"IF(A295=\"\",\"\",'1. Checklist & Certification'!$K$39)","v":""},{"$f":"IF(A295=\"\",\"\",'1. Checklist & Certification'!$K$43)","v":""},{"$f":"IF(A295=\"\",\"\",'1. Checklist & Certification'!$K$45)","v":""},{"$f":"IF(A295=\"\",\"\",'1. Checklist & Certification'!$K$49)","v":""},{"$f":"IF(A295=\"\",\"\",'1. Checklist & Certification'!$E$66)","v":""},{"$f":"IF(A295=\"\",\"\",'1. Checklist & Certification'!$E$67)","v":""},{"$f":"IF(A295=\"\",\"\",'1. Checklist & Certification'!$E$68)","v":""},{"$f":"IF(A295=\"\",\"\",'1. Checklist & Certification'!$G$66)","v":""},{"$f":"IF(A295=\"\",\"\",'1. Checklist & Certification'!$H$66)","v":""},{"$f":"IF(A295=\"\",\"\",'1. Checklist & Certification'!$I$66)","v":""},{"$f":"IF(A295=\"\",\"\",'1. Checklist & Certification'!$I$67)","v":""},{"$f":"IF(A295=\"\",\"\",'1. Checklist & Certification'!$I$68)","v":""},null,{"$f":"IF(C295=\"\",\"\",HLOOKUP(C295,'MHP Family Income & Rent Limits'!$E$12:$L$26,2,FALSE))","v":""},{"$f":"IF(C295=\"\",\"\",HLOOKUP(C295,'MHP Family Income & Rent Limits'!$E$12:$L$26,3,FALSE))","v":""},{"$f":"IF(C295=\"\",\"\",HLOOKUP(C295,'MHP Family Income & Rent Limits'!$E$12:$L$26,4,FALSE))","v":""},{"$f":"IF(C295=\"\",\"\",HLOOKUP(C295,'MHP Family Income & Rent Limits'!$E$12:$L$26,5,FALSE))","v":""},{"$f":"IF(C295=\"\",\"\",HLOOKUP(C295,'MHP Family Income & Rent Limits'!$E$12:$L$26,6,FALSE))","v":""},{"$f":"IF(C295=\"\",\"\",HLOOKUP(C295,'MHP Family Income & Rent Limits'!$E$12:$L$26,7,FALSE))","v":""},{"$f":"IF(C295=\"\",\"\",HLOOKUP(C295,'MHP Family Income & Rent Limits'!$E$12:$L$26,8,FALSE))","v":""},{"$f":"IF(C295=\"\",\"\",HLOOKUP(C295,'MHP Family Income & Rent Limits'!$E$12:$L$26,9,FALSE))","v":""},{"$f":"IF(C295=\"\",\"\",HLOOKUP(C295,'MHP Family Income & Rent Limits'!$E$12:$L$26,10,FALSE))","v":""},{"$f":"IF(C295=\"\",\"\",HLOOKUP(C295,'MHP Family Income & Rent Limits'!$E$12:$L$26,11,FALSE))","v":""},{"$f":"IF(C295=\"\",\"\",HLOOKUP(C295,'MHP Family Income & Rent Limits'!$E$12:$L$26,12,FALSE))","v":""},{"$f":"IF(C295=\"\",\"\",HLOOKUP(C295,'MHP Family Income & Rent Limits'!$E$12:$L$26,13,FALSE))","v":""},{"$f":"IF(C295=\"\",\"\",HLOOKUP(C295,'MHP Family Income & Rent Limits'!$E$12:$L$26,14,FALSE))","v":""},{"$f":"IF(C295=\"\",\"\",HLOOKUP(C295,'MHP Family Income & Rent Limits'!$E$12:$L$26,15,FALSE))","v":""}]
[{"$f":"IF('2. Assisted & Restricted Units'!A296=\"\",\"\",'2. Assisted & Restricted Units'!A296)","v":""},{"$f":"IF('2. Assisted & Restricted Units'!B296=\"\",\"\",'2. Assisted & Restricted Units'!B296)","v":""},{"$f":"IF('2. Assisted & Restricted Units'!D296=\"\",\"\",'2. Assisted & Restricted Units'!D296)","v":""},{"$f":"IF('2. Assisted & Restricted Units'!E296=\"\",\"\",'2. Assisted & Restricted Units'!E296)","v":""},{"$f":"IF('2. Assisted & Restricted Units'!H296=\"\",\"\",'2. Assisted & Restricted Units'!H296)","v":""},{"$f":"_xlfn.IFS(E296=\"\",\"\",E296>BO296,$BP$6,E296>BN296,$BO$6,E296>BM296,$BN$6,E296>BL296,$BM$6,E296>BK296,$BL$6,E296>BJ296,$BK$6,E296>BI296,$BJ$6,E296>BH296,$BI$6,E296>BG296,$BH$6,E296>BF296,$BG$6,E296>BE296,$BF$6,E296>BD296,$BE$6,E296>BC296,$BD$6,E296>=0,$BC$6)","v":""},{"$f":"IF('2. Assisted & Restricted Units'!T296=\"\",\"\",'2. Assisted & Restricted Units'!T296)","v":""},{"$f":"IF('2. Assisted & Restricted Units'!I296=\"\",\"\",'2. Assisted & Restricted Units'!I296)","v":""},{"$f":"IF('2. Assisted & Restricted Units'!AP296=\"\",\"\",'2. Assisted & Restricted Units'!AP296)","v":0},{"$f":"IF('2. Assisted & Restricted Units'!AT296=\"\",\"\",'2. Assisted & Restricted Units'!AT296)","v":""},0,{"$f":"IF('2. Assisted & Restricted Units'!AV296=\"\",\"\",'2. Assisted & Restricted Units'!AV296)","v":""},{"$f":"IF('2. Assisted & Restricted Units'!L296=\"\",\"\",'2. Assisted & Restricted Units'!L296)","v":""},{"$f":"IF('2. Assisted & Restricted Units'!M296=\"\",\"\",'2. Assisted & Restricted Units'!M296)","v":""},{"$f":"IF('2. Assisted & Restricted Units'!O296=\"\",\"\",'2. Assisted & Restricted Units'!O296)","v":""},{"$f":"IF('2. Assisted & Restricted Units'!P296=\"\",\"\",'2. Assisted & Restricted Units'!P296)","v":""},{"$f":"IF('2. Assisted & Restricted Units'!Q296=\"\",\"\",'2. Assisted & Restricted Units'!Q296)","v":""},{"$f":"IF('2. Assisted & Restricted Units'!R296=\"\",\"\",'2. Assisted & Restricted Units'!R296)","v":""},{"$f":"IF(A296=\"\",\"\",'1. Checklist & Certification'!$K$1)","v":""},{"$f":"IF(A296=\"\",\"\",'1. Checklist & Certification'!$C$62)","v":""},{"$f":"IF(A296=\"\",\"\",'1. Checklist & Certification'!$K$62)","v":""},{"$f":"IF(A296=\"\",\"\",'1. Checklist & Certification'!$C$6)","v":""},{"$f":"IF(A296=\"\",\"\",'1. Checklist & Certification'!$G$4)","v":""},{"$f":"IF(A296=\"\",\"\",'1. Checklist & Certification'!$C$7)","v":""},{"$f":"IF(A296=\"\",\"\",'1. Checklist & Certification'!$C$8)","v":""},{"$f":"IF(A296=\"\",\"\",'1. Checklist & Certification'!$F$7)","v":""},{"$f":"IF(A296=\"\",\"\",'1. Checklist & Certification'!$F$8)","v":""},{"$f":"IF(A296=\"\",\"\",'1. Checklist & Certification'!$B$9)","v":""},{"$f":"IF(A296=\"\",\"\",'1. Checklist & Certification'!$F$9)","v":""},{"$f":"IF(A296=\"\",\"\",'1. Checklist & Certification'!$C$10)","v":""},{"$f":"IF(A296=\"\",\"\",'1. Checklist & Certification'!$C$11)","v":""},{"$f":"IF(A296=\"\",\"\",'1. Checklist & Certification'!$C$12)","v":""},{"$f":"IF(A296=\"\",\"\",'1. Checklist & Certification'!$B$14)","v":""},{"$f":"IF(A296=\"\",\"\",'1. Checklist & Certification'!$E$14)","v":""},{"$f":"IF(B296=\"\",\"\",'1. Checklist & Certification'!$G$14)","v":""},{"$f":"IF(A296=\"\",\"\",'MHP Family Income & Rent Limits'!$B$3)","v":""},{"$f":"IF(A296=\"\",\"\",'MHP Family Income & Rent Limits'!$J$3)","v":""},{"$f":"IF(A296=\"\",\"\",'MHP Family Income & Rent Limits'!$E$4)","v":""},{"$f":"IF(A296=\"\",\"\",'MHP Family Income & Rent Limits'!$C$7)","v":""},{"$f":"IF(A296=\"\",\"\",'MHP Family Income & Rent Limits'!$F$8)","v":""},{"$f":"IF(A296=\"\",\"\",'1. Checklist & Certification'!$G$4)","v":""},{"$f":"IF(A296=\"\",\"\",'1. Checklist & Certification'!$K$39)","v":""},{"$f":"IF(A296=\"\",\"\",'1. Checklist & Certification'!$K$43)","v":""},{"$f":"IF(A296=\"\",\"\",'1. Checklist & Certification'!$K$45)","v":""},{"$f":"IF(A296=\"\",\"\",'1. Checklist & Certification'!$K$49)","v":""},{"$f":"IF(A296=\"\",\"\",'1. Checklist & Certification'!$E$66)","v":""},{"$f":"IF(A296=\"\",\"\",'1. Checklist & Certification'!$E$67)","v":""},{"$f":"IF(A296=\"\",\"\",'1. Checklist & Certification'!$E$68)","v":""},{"$f":"IF(A296=\"\",\"\",'1. Checklist & Certification'!$G$66)","v":""},{"$f":"IF(A296=\"\",\"\",'1. Checklist & Certification'!$H$66)","v":""},{"$f":"IF(A296=\"\",\"\",'1. Checklist & Certification'!$I$66)","v":""},{"$f":"IF(A296=\"\",\"\",'1. Checklist & Certification'!$I$67)","v":""},{"$f":"IF(A296=\"\",\"\",'1. Checklist & Certification'!$I$68)","v":""},null,{"$f":"IF(C296=\"\",\"\",HLOOKUP(C296,'MHP Family Income & Rent Limits'!$E$12:$L$26,2,FALSE))","v":""},{"$f":"IF(C296=\"\",\"\",HLOOKUP(C296,'MHP Family Income & Rent Limits'!$E$12:$L$26,3,FALSE))","v":""},{"$f":"IF(C296=\"\",\"\",HLOOKUP(C296,'MHP Family Income & Rent Limits'!$E$12:$L$26,4,FALSE))","v":""},{"$f":"IF(C296=\"\",\"\",HLOOKUP(C296,'MHP Family Income & Rent Limits'!$E$12:$L$26,5,FALSE))","v":""},{"$f":"IF(C296=\"\",\"\",HLOOKUP(C296,'MHP Family Income & Rent Limits'!$E$12:$L$26,6,FALSE))","v":""},{"$f":"IF(C296=\"\",\"\",HLOOKUP(C296,'MHP Family Income & Rent Limits'!$E$12:$L$26,7,FALSE))","v":""},{"$f":"IF(C296=\"\",\"\",HLOOKUP(C296,'MHP Family Income & Rent Limits'!$E$12:$L$26,8,FALSE))","v":""},{"$f":"IF(C296=\"\",\"\",HLOOKUP(C296,'MHP Family Income & Rent Limits'!$E$12:$L$26,9,FALSE))","v":""},{"$f":"IF(C296=\"\",\"\",HLOOKUP(C296,'MHP Family Income & Rent Limits'!$E$12:$L$26,10,FALSE))","v":""},{"$f":"IF(C296=\"\",\"\",HLOOKUP(C296,'MHP Family Income & Rent Limits'!$E$12:$L$26,11,FALSE))","v":""},{"$f":"IF(C296=\"\",\"\",HLOOKUP(C296,'MHP Family Income & Rent Limits'!$E$12:$L$26,12,FALSE))","v":""},{"$f":"IF(C296=\"\",\"\",HLOOKUP(C296,'MHP Family Income & Rent Limits'!$E$12:$L$26,13,FALSE))","v":""},{"$f":"IF(C296=\"\",\"\",HLOOKUP(C296,'MHP Family Income & Rent Limits'!$E$12:$L$26,14,FALSE))","v":""},{"$f":"IF(C296=\"\",\"\",HLOOKUP(C296,'MHP Family Income & Rent Limits'!$E$12:$L$26,15,FALSE))","v":""}]
[{"$f":"IF('2. Assisted & Restricted Units'!A297=\"\",\"\",'2. Assisted & Restricted Units'!A297)","v":""},{"$f":"IF('2. Assisted & Restricted Units'!B297=\"\",\"\",'2. Assisted & Restricted Units'!B297)","v":""},{"$f":"IF('2. Assisted & Restricted Units'!D297=\"\",\"\",'2. Assisted & Restricted Units'!D297)","v":""},{"$f":"IF('2. Assisted & Restricted Units'!E297=\"\",\"\",'2. Assisted & Restricted Units'!E297)","v":""},{"$f":"IF('2. Assisted & Restricted Units'!H297=\"\",\"\",'2. Assisted & Restricted Units'!H297)","v":""},{"$f":"_xlfn.IFS(E297=\"\",\"\",E297>BO297,$BP$6,E297>BN297,$BO$6,E297>BM297,$BN$6,E297>BL297,$BM$6,E297>BK297,$BL$6,E297>BJ297,$BK$6,E297>BI297,$BJ$6,E297>BH297,$BI$6,E297>BG297,$BH$6,E297>BF297,$BG$6,E297>BE297,$BF$6,E297>BD297,$BE$6,E297>BC297,$BD$6,E297>=0,$BC$6)","v":""},{"$f":"IF('2. Assisted & Restricted Units'!T297=\"\",\"\",'2. Assisted & Restricted Units'!T297)","v":""},{"$f":"IF('2. Assisted & Restricted Units'!I297=\"\",\"\",'2. Assisted & Restricted Units'!I297)","v":""},{"$f":"IF('2. Assisted & Restricted Units'!AP297=\"\",\"\",'2. Assisted & Restricted Units'!AP297)","v":0},{"$f":"IF('2. Assisted & Restricted Units'!AT297=\"\",\"\",'2. Assisted & Restricted Units'!AT297)","v":""},0,{"$f":"IF('2. Assisted & Restricted Units'!AV297=\"\",\"\",'2. Assisted & Restricted Units'!AV297)","v":""},{"$f":"IF('2. Assisted & Restricted Units'!L297=\"\",\"\",'2. Assisted & Restricted Units'!L297)","v":""},{"$f":"IF('2. Assisted & Restricted Units'!M297=\"\",\"\",'2. Assisted & Restricted Units'!M297)","v":""},{"$f":"IF('2. Assisted & Restricted Units'!O297=\"\",\"\",'2. Assisted & Restricted Units'!O297)","v":""},{"$f":"IF('2. Assisted & Restricted Units'!P297=\"\",\"\",'2. Assisted & Restricted Units'!P297)","v":""},{"$f":"IF('2. Assisted & Restricted Units'!Q297=\"\",\"\",'2. Assisted & Restricted Units'!Q297)","v":""},{"$f":"IF('2. Assisted & Restricted Units'!R297=\"\",\"\",'2. Assisted & Restricted Units'!R297)","v":""},{"$f":"IF(A297=\"\",\"\",'1. Checklist & Certification'!$K$1)","v":""},{"$f":"IF(A297=\"\",\"\",'1. Checklist & Certification'!$C$62)","v":""},{"$f":"IF(A297=\"\",\"\",'1. Checklist & Certification'!$K$62)","v":""},{"$f":"IF(A297=\"\",\"\",'1. Checklist & Certification'!$C$6)","v":""},{"$f":"IF(A297=\"\",\"\",'1. Checklist & Certification'!$G$4)","v":""},{"$f":"IF(A297=\"\",\"\",'1. Checklist & Certification'!$C$7)","v":""},{"$f":"IF(A297=\"\",\"\",'1. Checklist & Certification'!$C$8)","v":""},{"$f":"IF(A297=\"\",\"\",'1. Checklist & Certification'!$F$7)","v":""},{"$f":"IF(A297=\"\",\"\",'1. Checklist & Certification'!$F$8)","v":""},{"$f":"IF(A297=\"\",\"\",'1. Checklist & Certification'!$B$9)","v":""},{"$f":"IF(A297=\"\",\"\",'1. Checklist & Certification'!$F$9)","v":""},{"$f":"IF(A297=\"\",\"\",'1. Checklist & Certification'!$C$10)","v":""},{"$f":"IF(A297=\"\",\"\",'1. Checklist & Certification'!$C$11)","v":""},{"$f":"IF(A297=\"\",\"\",'1. Checklist & Certification'!$C$12)","v":""},{"$f":"IF(A297=\"\",\"\",'1. Checklist & Certification'!$B$14)","v":""},{"$f":"IF(A297=\"\",\"\",'1. Checklist & Certification'!$E$14)","v":""},{"$f":"IF(B297=\"\",\"\",'1. Checklist & Certification'!$G$14)","v":""},{"$f":"IF(A297=\"\",\"\",'MHP Family Income & Rent Limits'!$B$3)","v":""},{"$f":"IF(A297=\"\",\"\",'MHP Family Income & Rent Limits'!$J$3)","v":""},{"$f":"IF(A297=\"\",\"\",'MHP Family Income & Rent Limits'!$E$4)","v":""},{"$f":"IF(A297=\"\",\"\",'MHP Family Income & Rent Limits'!$C$7)","v":""},{"$f":"IF(A297=\"\",\"\",'MHP Family Income & Rent Limits'!$F$8)","v":""},{"$f":"IF(A297=\"\",\"\",'1. Checklist & Certification'!$G$4)","v":""},{"$f":"IF(A297=\"\",\"\",'1. Checklist & Certification'!$K$39)","v":""},{"$f":"IF(A297=\"\",\"\",'1. Checklist & Certification'!$K$43)","v":""},{"$f":"IF(A297=\"\",\"\",'1. Checklist & Certification'!$K$45)","v":""},{"$f":"IF(A297=\"\",\"\",'1. Checklist & Certification'!$K$49)","v":""},{"$f":"IF(A297=\"\",\"\",'1. Checklist & Certification'!$E$66)","v":""},{"$f":"IF(A297=\"\",\"\",'1. Checklist & Certification'!$E$67)","v":""},{"$f":"IF(A297=\"\",\"\",'1. Checklist & Certification'!$E$68)","v":""},{"$f":"IF(A297=\"\",\"\",'1. Checklist & Certification'!$G$66)","v":""},{"$f":"IF(A297=\"\",\"\",'1. Checklist & Certification'!$H$66)","v":""},{"$f":"IF(A297=\"\",\"\",'1. Checklist & Certification'!$I$66)","v":""},{"$f":"IF(A297=\"\",\"\",'1. Checklist & Certification'!$I$67)","v":""},{"$f":"IF(A297=\"\",\"\",'1. Checklist & Certification'!$I$68)","v":""},null,{"$f":"IF(C297=\"\",\"\",HLOOKUP(C297,'MHP Family Income & Rent Limits'!$E$12:$L$26,2,FALSE))","v":""},{"$f":"IF(C297=\"\",\"\",HLOOKUP(C297,'MHP Family Income & Rent Limits'!$E$12:$L$26,3,FALSE))","v":""},{"$f":"IF(C297=\"\",\"\",HLOOKUP(C297,'MHP Family Income & Rent Limits'!$E$12:$L$26,4,FALSE))","v":""},{"$f":"IF(C297=\"\",\"\",HLOOKUP(C297,'MHP Family Income & Rent Limits'!$E$12:$L$26,5,FALSE))","v":""},{"$f":"IF(C297=\"\",\"\",HLOOKUP(C297,'MHP Family Income & Rent Limits'!$E$12:$L$26,6,FALSE))","v":""},{"$f":"IF(C297=\"\",\"\",HLOOKUP(C297,'MHP Family Income & Rent Limits'!$E$12:$L$26,7,FALSE))","v":""},{"$f":"IF(C297=\"\",\"\",HLOOKUP(C297,'MHP Family Income & Rent Limits'!$E$12:$L$26,8,FALSE))","v":""},{"$f":"IF(C297=\"\",\"\",HLOOKUP(C297,'MHP Family Income & Rent Limits'!$E$12:$L$26,9,FALSE))","v":""},{"$f":"IF(C297=\"\",\"\",HLOOKUP(C297,'MHP Family Income & Rent Limits'!$E$12:$L$26,10,FALSE))","v":""},{"$f":"IF(C297=\"\",\"\",HLOOKUP(C297,'MHP Family Income & Rent Limits'!$E$12:$L$26,11,FALSE))","v":""},{"$f":"IF(C297=\"\",\"\",HLOOKUP(C297,'MHP Family Income & Rent Limits'!$E$12:$L$26,12,FALSE))","v":""},{"$f":"IF(C297=\"\",\"\",HLOOKUP(C297,'MHP Family Income & Rent Limits'!$E$12:$L$26,13,FALSE))","v":""},{"$f":"IF(C297=\"\",\"\",HLOOKUP(C297,'MHP Family Income & Rent Limits'!$E$12:$L$26,14,FALSE))","v":""},{"$f":"IF(C297=\"\",\"\",HLOOKUP(C297,'MHP Family Income & Rent Limits'!$E$12:$L$26,15,FALSE))","v":""}]
[{"$f":"IF('2. Assisted & Restricted Units'!A298=\"\",\"\",'2. Assisted & Restricted Units'!A298)","v":""},{"$f":"IF('2. Assisted & Restricted Units'!B298=\"\",\"\",'2. Assisted & Restricted Units'!B298)","v":""},{"$f":"IF('2. Assisted & Restricted Units'!D298=\"\",\"\",'2. Assisted & Restricted Units'!D298)","v":""},{"$f":"IF('2. Assisted & Restricted Units'!E298=\"\",\"\",'2. Assisted & Restricted Units'!E298)","v":""},{"$f":"IF('2. Assisted & Restricted Units'!H298=\"\",\"\",'2. Assisted & Restricted Units'!H298)","v":""},{"$f":"_xlfn.IFS(E298=\"\",\"\",E298>BO298,$BP$6,E298>BN298,$BO$6,E298>BM298,$BN$6,E298>BL298,$BM$6,E298>BK298,$BL$6,E298>BJ298,$BK$6,E298>BI298,$BJ$6,E298>BH298,$BI$6,E298>BG298,$BH$6,E298>BF298,$BG$6,E298>BE298,$BF$6,E298>BD298,$BE$6,E298>BC298,$BD$6,E298>=0,$BC$6)","v":""},{"$f":"IF('2. Assisted & Restricted Units'!T298=\"\",\"\",'2. Assisted & Restricted Units'!T298)","v":""},{"$f":"IF('2. Assisted & Restricted Units'!I298=\"\",\"\",'2. Assisted & Restricted Units'!I298)","v":""},{"$f":"IF('2. Assisted & Restricted Units'!AP298=\"\",\"\",'2. Assisted & Restricted Units'!AP298)","v":0},{"$f":"IF('2. Assisted & Restricted Units'!AT298=\"\",\"\",'2. Assisted & Restricted Units'!AT298)","v":""},0,{"$f":"IF('2. Assisted & Restricted Units'!AV298=\"\",\"\",'2. Assisted & Restricted Units'!AV298)","v":""},{"$f":"IF('2. Assisted & Restricted Units'!L298=\"\",\"\",'2. Assisted & Restricted Units'!L298)","v":""},{"$f":"IF('2. Assisted & Restricted Units'!M298=\"\",\"\",'2. Assisted & Restricted Units'!M298)","v":""},{"$f":"IF('2. Assisted & Restricted Units'!O298=\"\",\"\",'2. Assisted & Restricted Units'!O298)","v":""},{"$f":"IF('2. Assisted & Restricted Units'!P298=\"\",\"\",'2. Assisted & Restricted Units'!P298)","v":""},{"$f":"IF('2. Assisted & Restricted Units'!Q298=\"\",\"\",'2. Assisted & Restricted Units'!Q298)","v":""},{"$f":"IF('2. Assisted & Restricted Units'!R298=\"\",\"\",'2. Assisted & Restricted Units'!R298)","v":""},{"$f":"IF(A298=\"\",\"\",'1. Checklist & Certification'!$K$1)","v":""},{"$f":"IF(A298=\"\",\"\",'1. Checklist & Certification'!$C$62)","v":""},{"$f":"IF(A298=\"\",\"\",'1. Checklist & Certification'!$K$62)","v":""},{"$f":"IF(A298=\"\",\"\",'1. Checklist & Certification'!$C$6)","v":""},{"$f":"IF(A298=\"\",\"\",'1. Checklist & Certification'!$G$4)","v":""},{"$f":"IF(A298=\"\",\"\",'1. Checklist & Certification'!$C$7)","v":""},{"$f":"IF(A298=\"\",\"\",'1. Checklist & Certification'!$C$8)","v":""},{"$f":"IF(A298=\"\",\"\",'1. Checklist & Certification'!$F$7)","v":""},{"$f":"IF(A298=\"\",\"\",'1. Checklist & Certification'!$F$8)","v":""},{"$f":"IF(A298=\"\",\"\",'1. Checklist & Certification'!$B$9)","v":""},{"$f":"IF(A298=\"\",\"\",'1. Checklist & Certification'!$F$9)","v":""},{"$f":"IF(A298=\"\",\"\",'1. Checklist & Certification'!$C$10)","v":""},{"$f":"IF(A298=\"\",\"\",'1. Checklist & Certification'!$C$11)","v":""},{"$f":"IF(A298=\"\",\"\",'1. Checklist & Certification'!$C$12)","v":""},{"$f":"IF(A298=\"\",\"\",'1. Checklist & Certification'!$B$14)","v":""},{"$f":"IF(A298=\"\",\"\",'1. Checklist & Certification'!$E$14)","v":""},{"$f":"IF(B298=\"\",\"\",'1. Checklist & Certification'!$G$14)","v":""},{"$f":"IF(A298=\"\",\"\",'MHP Family Income & Rent Limits'!$B$3)","v":""},{"$f":"IF(A298=\"\",\"\",'MHP Family Income & Rent Limits'!$J$3)","v":""},{"$f":"IF(A298=\"\",\"\",'MHP Family Income & Rent Limits'!$E$4)","v":""},{"$f":"IF(A298=\"\",\"\",'MHP Family Income & Rent Limits'!$C$7)","v":""},{"$f":"IF(A298=\"\",\"\",'MHP Family Income & Rent Limits'!$F$8)","v":""},{"$f":"IF(A298=\"\",\"\",'1. Checklist & Certification'!$G$4)","v":""},{"$f":"IF(A298=\"\",\"\",'1. Checklist & Certification'!$K$39)","v":""},{"$f":"IF(A298=\"\",\"\",'1. Checklist & Certification'!$K$43)","v":""},{"$f":"IF(A298=\"\",\"\",'1. Checklist & Certification'!$K$45)","v":""},{"$f":"IF(A298=\"\",\"\",'1. Checklist & Certification'!$K$49)","v":""},{"$f":"IF(A298=\"\",\"\",'1. Checklist & Certification'!$E$66)","v":""},{"$f":"IF(A298=\"\",\"\",'1. Checklist & Certification'!$E$67)","v":""},{"$f":"IF(A298=\"\",\"\",'1. Checklist & Certification'!$E$68)","v":""},{"$f":"IF(A298=\"\",\"\",'1. Checklist & Certification'!$G$66)","v":""},{"$f":"IF(A298=\"\",\"\",'1. Checklist & Certification'!$H$66)","v":""},{"$f":"IF(A298=\"\",\"\",'1. Checklist & Certification'!$I$66)","v":""},{"$f":"IF(A298=\"\",\"\",'1. Checklist & Certification'!$I$67)","v":""},{"$f":"IF(A298=\"\",\"\",'1. Checklist & Certification'!$I$68)","v":""},null,{"$f":"IF(C298=\"\",\"\",HLOOKUP(C298,'MHP Family Income & Rent Limits'!$E$12:$L$26,2,FALSE))","v":""},{"$f":"IF(C298=\"\",\"\",HLOOKUP(C298,'MHP Family Income & Rent Limits'!$E$12:$L$26,3,FALSE))","v":""},{"$f":"IF(C298=\"\",\"\",HLOOKUP(C298,'MHP Family Income & Rent Limits'!$E$12:$L$26,4,FALSE))","v":""},{"$f":"IF(C298=\"\",\"\",HLOOKUP(C298,'MHP Family Income & Rent Limits'!$E$12:$L$26,5,FALSE))","v":""},{"$f":"IF(C298=\"\",\"\",HLOOKUP(C298,'MHP Family Income & Rent Limits'!$E$12:$L$26,6,FALSE))","v":""},{"$f":"IF(C298=\"\",\"\",HLOOKUP(C298,'MHP Family Income & Rent Limits'!$E$12:$L$26,7,FALSE))","v":""},{"$f":"IF(C298=\"\",\"\",HLOOKUP(C298,'MHP Family Income & Rent Limits'!$E$12:$L$26,8,FALSE))","v":""},{"$f":"IF(C298=\"\",\"\",HLOOKUP(C298,'MHP Family Income & Rent Limits'!$E$12:$L$26,9,FALSE))","v":""},{"$f":"IF(C298=\"\",\"\",HLOOKUP(C298,'MHP Family Income & Rent Limits'!$E$12:$L$26,10,FALSE))","v":""},{"$f":"IF(C298=\"\",\"\",HLOOKUP(C298,'MHP Family Income & Rent Limits'!$E$12:$L$26,11,FALSE))","v":""},{"$f":"IF(C298=\"\",\"\",HLOOKUP(C298,'MHP Family Income & Rent Limits'!$E$12:$L$26,12,FALSE))","v":""},{"$f":"IF(C298=\"\",\"\",HLOOKUP(C298,'MHP Family Income & Rent Limits'!$E$12:$L$26,13,FALSE))","v":""},{"$f":"IF(C298=\"\",\"\",HLOOKUP(C298,'MHP Family Income & Rent Limits'!$E$12:$L$26,14,FALSE))","v":""},{"$f":"IF(C298=\"\",\"\",HLOOKUP(C298,'MHP Family Income & Rent Limits'!$E$12:$L$26,15,FALSE))","v":""}]
[{"$f":"IF('2. Assisted & Restricted Units'!A299=\"\",\"\",'2. Assisted & Restricted Units'!A299)","v":""},{"$f":"IF('2. Assisted & Restricted Units'!B299=\"\",\"\",'2. Assisted & Restricted Units'!B299)","v":""},{"$f":"IF('2. Assisted & Restricted Units'!D299=\"\",\"\",'2. Assisted & Restricted Units'!D299)","v":""},{"$f":"IF('2. Assisted & Restricted Units'!E299=\"\",\"\",'2. Assisted & Restricted Units'!E299)","v":""},{"$f":"IF('2. Assisted & Restricted Units'!H299=\"\",\"\",'2. Assisted & Restricted Units'!H299)","v":""},{"$f":"_xlfn.IFS(E299=\"\",\"\",E299>BO299,$BP$6,E299>BN299,$BO$6,E299>BM299,$BN$6,E299>BL299,$BM$6,E299>BK299,$BL$6,E299>BJ299,$BK$6,E299>BI299,$BJ$6,E299>BH299,$BI$6,E299>BG299,$BH$6,E299>BF299,$BG$6,E299>BE299,$BF$6,E299>BD299,$BE$6,E299>BC299,$BD$6,E299>=0,$BC$6)","v":""},{"$f":"IF('2. Assisted & Restricted Units'!T299=\"\",\"\",'2. Assisted & Restricted Units'!T299)","v":""},{"$f":"IF('2. Assisted & Restricted Units'!I299=\"\",\"\",'2. Assisted & Restricted Units'!I299)","v":""},{"$f":"IF('2. Assisted & Restricted Units'!AP299=\"\",\"\",'2. Assisted & Restricted Units'!AP299)","v":0},{"$f":"IF('2. Assisted & Restricted Units'!AT299=\"\",\"\",'2. Assisted & Restricted Units'!AT299)","v":""},0,{"$f":"IF('2. Assisted & Restricted Units'!AV299=\"\",\"\",'2. Assisted & Restricted Units'!AV299)","v":""},{"$f":"IF('2. Assisted & Restricted Units'!L299=\"\",\"\",'2. Assisted & Restricted Units'!L299)","v":""},{"$f":"IF('2. Assisted & Restricted Units'!M299=\"\",\"\",'2. Assisted & Restricted Units'!M299)","v":""},{"$f":"IF('2. Assisted & Restricted Units'!O299=\"\",\"\",'2. Assisted & Restricted Units'!O299)","v":""},{"$f":"IF('2. Assisted & Restricted Units'!P299=\"\",\"\",'2. Assisted & Restricted Units'!P299)","v":""},{"$f":"IF('2. Assisted & Restricted Units'!Q299=\"\",\"\",'2. Assisted & Restricted Units'!Q299)","v":""},{"$f":"IF('2. Assisted & Restricted Units'!R299=\"\",\"\",'2. Assisted & Restricted Units'!R299)","v":""},{"$f":"IF(A299=\"\",\"\",'1. Checklist & Certification'!$K$1)","v":""},{"$f":"IF(A299=\"\",\"\",'1. Checklist & Certification'!$C$62)","v":""},{"$f":"IF(A299=\"\",\"\",'1. Checklist & Certification'!$K$62)","v":""},{"$f":"IF(A299=\"\",\"\",'1. Checklist & Certification'!$C$6)","v":""},{"$f":"IF(A299=\"\",\"\",'1. Checklist & Certification'!$G$4)","v":""},{"$f":"IF(A299=\"\",\"\",'1. Checklist & Certification'!$C$7)","v":""},{"$f":"IF(A299=\"\",\"\",'1. Checklist & Certification'!$C$8)","v":""},{"$f":"IF(A299=\"\",\"\",'1. Checklist & Certification'!$F$7)","v":""},{"$f":"IF(A299=\"\",\"\",'1. Checklist & Certification'!$F$8)","v":""},{"$f":"IF(A299=\"\",\"\",'1. Checklist & Certification'!$B$9)","v":""},{"$f":"IF(A299=\"\",\"\",'1. Checklist & Certification'!$F$9)","v":""},{"$f":"IF(A299=\"\",\"\",'1. Checklist & Certification'!$C$10)","v":""},{"$f":"IF(A299=\"\",\"\",'1. Checklist & Certification'!$C$11)","v":""},{"$f":"IF(A299=\"\",\"\",'1. Checklist & Certification'!$C$12)","v":""},{"$f":"IF(A299=\"\",\"\",'1. Checklist & Certification'!$B$14)","v":""},{"$f":"IF(A299=\"\",\"\",'1. Checklist & Certification'!$E$14)","v":""},{"$f":"IF(B299=\"\",\"\",'1. Checklist & Certification'!$G$14)","v":""},{"$f":"IF(A299=\"\",\"\",'MHP Family Income & Rent Limits'!$B$3)","v":""},{"$f":"IF(A299=\"\",\"\",'MHP Family Income & Rent Limits'!$J$3)","v":""},{"$f":"IF(A299=\"\",\"\",'MHP Family Income & Rent Limits'!$E$4)","v":""},{"$f":"IF(A299=\"\",\"\",'MHP Family Income & Rent Limits'!$C$7)","v":""},{"$f":"IF(A299=\"\",\"\",'MHP Family Income & Rent Limits'!$F$8)","v":""},{"$f":"IF(A299=\"\",\"\",'1. Checklist & Certification'!$G$4)","v":""},{"$f":"IF(A299=\"\",\"\",'1. Checklist & Certification'!$K$39)","v":""},{"$f":"IF(A299=\"\",\"\",'1. Checklist & Certification'!$K$43)","v":""},{"$f":"IF(A299=\"\",\"\",'1. Checklist & Certification'!$K$45)","v":""},{"$f":"IF(A299=\"\",\"\",'1. Checklist & Certification'!$K$49)","v":""},{"$f":"IF(A299=\"\",\"\",'1. Checklist & Certification'!$E$66)","v":""},{"$f":"IF(A299=\"\",\"\",'1. Checklist & Certification'!$E$67)","v":""},{"$f":"IF(A299=\"\",\"\",'1. Checklist & Certification'!$E$68)","v":""},{"$f":"IF(A299=\"\",\"\",'1. Checklist & Certification'!$G$66)","v":""},{"$f":"IF(A299=\"\",\"\",'1. Checklist & Certification'!$H$66)","v":""},{"$f":"IF(A299=\"\",\"\",'1. Checklist & Certification'!$I$66)","v":""},{"$f":"IF(A299=\"\",\"\",'1. Checklist & Certification'!$I$67)","v":""},{"$f":"IF(A299=\"\",\"\",'1. Checklist & Certification'!$I$68)","v":""},null,{"$f":"IF(C299=\"\",\"\",HLOOKUP(C299,'MHP Family Income & Rent Limits'!$E$12:$L$26,2,FALSE))","v":""},{"$f":"IF(C299=\"\",\"\",HLOOKUP(C299,'MHP Family Income & Rent Limits'!$E$12:$L$26,3,FALSE))","v":""},{"$f":"IF(C299=\"\",\"\",HLOOKUP(C299,'MHP Family Income & Rent Limits'!$E$12:$L$26,4,FALSE))","v":""},{"$f":"IF(C299=\"\",\"\",HLOOKUP(C299,'MHP Family Income & Rent Limits'!$E$12:$L$26,5,FALSE))","v":""},{"$f":"IF(C299=\"\",\"\",HLOOKUP(C299,'MHP Family Income & Rent Limits'!$E$12:$L$26,6,FALSE))","v":""},{"$f":"IF(C299=\"\",\"\",HLOOKUP(C299,'MHP Family Income & Rent Limits'!$E$12:$L$26,7,FALSE))","v":""},{"$f":"IF(C299=\"\",\"\",HLOOKUP(C299,'MHP Family Income & Rent Limits'!$E$12:$L$26,8,FALSE))","v":""},{"$f":"IF(C299=\"\",\"\",HLOOKUP(C299,'MHP Family Income & Rent Limits'!$E$12:$L$26,9,FALSE))","v":""},{"$f":"IF(C299=\"\",\"\",HLOOKUP(C299,'MHP Family Income & Rent Limits'!$E$12:$L$26,10,FALSE))","v":""},{"$f":"IF(C299=\"\",\"\",HLOOKUP(C299,'MHP Family Income & Rent Limits'!$E$12:$L$26,11,FALSE))","v":""},{"$f":"IF(C299=\"\",\"\",HLOOKUP(C299,'MHP Family Income & Rent Limits'!$E$12:$L$26,12,FALSE))","v":""},{"$f":"IF(C299=\"\",\"\",HLOOKUP(C299,'MHP Family Income & Rent Limits'!$E$12:$L$26,13,FALSE))","v":""},{"$f":"IF(C299=\"\",\"\",HLOOKUP(C299,'MHP Family Income & Rent Limits'!$E$12:$L$26,14,FALSE))","v":""},{"$f":"IF(C299=\"\",\"\",HLOOKUP(C299,'MHP Family Income & Rent Limits'!$E$12:$L$26,15,FALSE))","v":""}]
[{"$f":"IF('2. Assisted & Restricted Units'!A300=\"\",\"\",'2. Assisted & Restricted Units'!A300)","v":""},{"$f":"IF('2. Assisted & Restricted Units'!B300=\"\",\"\",'2. Assisted & Restricted Units'!B300)","v":""},{"$f":"IF('2. Assisted & Restricted Units'!D300=\"\",\"\",'2. Assisted & Restricted Units'!D300)","v":""},{"$f":"IF('2. Assisted & Restricted Units'!E300=\"\",\"\",'2. Assisted & Restricted Units'!E300)","v":""},{"$f":"IF('2. Assisted & Restricted Units'!H300=\"\",\"\",'2. Assisted & Restricted Units'!H300)","v":""},{"$f":"_xlfn.IFS(E300=\"\",\"\",E300>BO300,$BP$6,E300>BN300,$BO$6,E300>BM300,$BN$6,E300>BL300,$BM$6,E300>BK300,$BL$6,E300>BJ300,$BK$6,E300>BI300,$BJ$6,E300>BH300,$BI$6,E300>BG300,$BH$6,E300>BF300,$BG$6,E300>BE300,$BF$6,E300>BD300,$BE$6,E300>BC300,$BD$6,E300>=0,$BC$6)","v":""},{"$f":"IF('2. Assisted & Restricted Units'!T300=\"\",\"\",'2. Assisted & Restricted Units'!T300)","v":""},{"$f":"IF('2. Assisted & Restricted Units'!I300=\"\",\"\",'2. Assisted & Restricted Units'!I300)","v":""},{"$f":"IF('2. Assisted & Restricted Units'!AP300=\"\",\"\",'2. Assisted & Restricted Units'!AP300)","v":0},{"$f":"IF('2. Assisted & Restricted Units'!AT300=\"\",\"\",'2. Assisted & Restricted Units'!AT300)","v":""},0,{"$f":"IF('2. Assisted & Restricted Units'!AV300=\"\",\"\",'2. Assisted & Restricted Units'!AV300)","v":""},{"$f":"IF('2. Assisted & Restricted Units'!L300=\"\",\"\",'2. Assisted & Restricted Units'!L300)","v":""},{"$f":"IF('2. Assisted & Restricted Units'!M300=\"\",\"\",'2. Assisted & Restricted Units'!M300)","v":""},{"$f":"IF('2. Assisted & Restricted Units'!O300=\"\",\"\",'2. Assisted & Restricted Units'!O300)","v":""},{"$f":"IF('2. Assisted & Restricted Units'!P300=\"\",\"\",'2. Assisted & Restricted Units'!P300)","v":""},{"$f":"IF('2. Assisted & Restricted Units'!Q300=\"\",\"\",'2. Assisted & Restricted Units'!Q300)","v":""},{"$f":"IF('2. Assisted & Restricted Units'!R300=\"\",\"\",'2. Assisted & Restricted Units'!R300)","v":""},{"$f":"IF(A300=\"\",\"\",'1. Checklist & Certification'!$K$1)","v":""},{"$f":"IF(A300=\"\",\"\",'1. Checklist & Certification'!$C$62)","v":""},{"$f":"IF(A300=\"\",\"\",'1. Checklist & Certification'!$K$62)","v":""},{"$f":"IF(A300=\"\",\"\",'1. Checklist & Certification'!$C$6)","v":""},{"$f":"IF(A300=\"\",\"\",'1. Checklist & Certification'!$G$4)","v":""},{"$f":"IF(A300=\"\",\"\",'1. Checklist & Certification'!$C$7)","v":""},{"$f":"IF(A300=\"\",\"\",'1. Checklist & Certification'!$C$8)","v":""},{"$f":"IF(A300=\"\",\"\",'1. Checklist & Certification'!$F$7)","v":""},{"$f":"IF(A300=\"\",\"\",'1. Checklist & Certification'!$F$8)","v":""},{"$f":"IF(A300=\"\",\"\",'1. Checklist & Certification'!$B$9)","v":""},{"$f":"IF(A300=\"\",\"\",'1. Checklist & Certification'!$F$9)","v":""},{"$f":"IF(A300=\"\",\"\",'1. Checklist & Certification'!$C$10)","v":""},{"$f":"IF(A300=\"\",\"\",'1. Checklist & Certification'!$C$11)","v":""},{"$f":"IF(A300=\"\",\"\",'1. Checklist & Certification'!$C$12)","v":""},{"$f":"IF(A300=\"\",\"\",'1. Checklist & Certification'!$B$14)","v":""},{"$f":"IF(A300=\"\",\"\",'1. Checklist & Certification'!$E$14)","v":""},{"$f":"IF(B300=\"\",\"\",'1. Checklist & Certification'!$G$14)","v":""},{"$f":"IF(A300=\"\",\"\",'MHP Family Income & Rent Limits'!$B$3)","v":""},{"$f":"IF(A300=\"\",\"\",'MHP Family Income & Rent Limits'!$J$3)","v":""},{"$f":"IF(A300=\"\",\"\",'MHP Family Income & Rent Limits'!$E$4)","v":""},{"$f":"IF(A300=\"\",\"\",'MHP Family Income & Rent Limits'!$C$7)","v":""},{"$f":"IF(A300=\"\",\"\",'MHP Family Income & Rent Limits'!$F$8)","v":""},{"$f":"IF(A300=\"\",\"\",'1. Checklist & Certification'!$G$4)","v":""},{"$f":"IF(A300=\"\",\"\",'1. Checklist & Certification'!$K$39)","v":""},{"$f":"IF(A300=\"\",\"\",'1. Checklist & Certification'!$K$43)","v":""},{"$f":"IF(A300=\"\",\"\",'1. Checklist & Certification'!$K$45)","v":""},{"$f":"IF(A300=\"\",\"\",'1. Checklist & Certification'!$K$49)","v":""},{"$f":"IF(A300=\"\",\"\",'1. Checklist & Certification'!$E$66)","v":""},{"$f":"IF(A300=\"\",\"\",'1. Checklist & Certification'!$E$67)","v":""},{"$f":"IF(A300=\"\",\"\",'1. Checklist & Certification'!$E$68)","v":""},{"$f":"IF(A300=\"\",\"\",'1. Checklist & Certification'!$G$66)","v":""},{"$f":"IF(A300=\"\",\"\",'1. Checklist & Certification'!$H$66)","v":""},{"$f":"IF(A300=\"\",\"\",'1. Checklist & Certification'!$I$66)","v":""},{"$f":"IF(A300=\"\",\"\",'1. Checklist & Certification'!$I$67)","v":""},{"$f":"IF(A300=\"\",\"\",'1. Checklist & Certification'!$I$68)","v":""},null,{"$f":"IF(C300=\"\",\"\",HLOOKUP(C300,'MHP Family Income & Rent Limits'!$E$12:$L$26,2,FALSE))","v":""},{"$f":"IF(C300=\"\",\"\",HLOOKUP(C300,'MHP Family Income & Rent Limits'!$E$12:$L$26,3,FALSE))","v":""},{"$f":"IF(C300=\"\",\"\",HLOOKUP(C300,'MHP Family Income & Rent Limits'!$E$12:$L$26,4,FALSE))","v":""},{"$f":"IF(C300=\"\",\"\",HLOOKUP(C300,'MHP Family Income & Rent Limits'!$E$12:$L$26,5,FALSE))","v":""},{"$f":"IF(C300=\"\",\"\",HLOOKUP(C300,'MHP Family Income & Rent Limits'!$E$12:$L$26,6,FALSE))","v":""},{"$f":"IF(C300=\"\",\"\",HLOOKUP(C300,'MHP Family Income & Rent Limits'!$E$12:$L$26,7,FALSE))","v":""},{"$f":"IF(C300=\"\",\"\",HLOOKUP(C300,'MHP Family Income & Rent Limits'!$E$12:$L$26,8,FALSE))","v":""},{"$f":"IF(C300=\"\",\"\",HLOOKUP(C300,'MHP Family Income & Rent Limits'!$E$12:$L$26,9,FALSE))","v":""},{"$f":"IF(C300=\"\",\"\",HLOOKUP(C300,'MHP Family Income & Rent Limits'!$E$12:$L$26,10,FALSE))","v":""},{"$f":"IF(C300=\"\",\"\",HLOOKUP(C300,'MHP Family Income & Rent Limits'!$E$12:$L$26,11,FALSE))","v":""},{"$f":"IF(C300=\"\",\"\",HLOOKUP(C300,'MHP Family Income & Rent Limits'!$E$12:$L$26,12,FALSE))","v":""},{"$f":"IF(C300=\"\",\"\",HLOOKUP(C300,'MHP Family Income & Rent Limits'!$E$12:$L$26,13,FALSE))","v":""},{"$f":"IF(C300=\"\",\"\",HLOOKUP(C300,'MHP Family Income & Rent Limits'!$E$12:$L$26,14,FALSE))","v":""},{"$f":"IF(C300=\"\",\"\",HLOOKUP(C300,'MHP Family Income & Rent Limits'!$E$12:$L$26,15,FALSE))","v":""}]
[{"$f":"IF('2. Assisted & Restricted Units'!A301=\"\",\"\",'2. Assisted & Restricted Units'!A301)","v":""},{"$f":"IF('2. Assisted & Restricted Units'!B301=\"\",\"\",'2. Assisted & Restricted Units'!B301)","v":""},{"$f":"IF('2. Assisted & Restricted Units'!D301=\"\",\"\",'2. Assisted & Restricted Units'!D301)","v":""},{"$f":"IF('2. Assisted & Restricted Units'!E301=\"\",\"\",'2. Assisted & Restricted Units'!E301)","v":""},{"$f":"IF('2. Assisted & Restricted Units'!H301=\"\",\"\",'2. Assisted & Restricted Units'!H301)","v":""},{"$f":"_xlfn.IFS(E301=\"\",\"\",E301>BO301,$BP$6,E301>BN301,$BO$6,E301>BM301,$BN$6,E301>BL301,$BM$6,E301>BK301,$BL$6,E301>BJ301,$BK$6,E301>BI301,$BJ$6,E301>BH301,$BI$6,E301>BG301,$BH$6,E301>BF301,$BG$6,E301>BE301,$BF$6,E301>BD301,$BE$6,E301>BC301,$BD$6,E301>=0,$BC$6)","v":""},{"$f":"IF('2. Assisted & Restricted Units'!T301=\"\",\"\",'2. Assisted & Restricted Units'!T301)","v":""},{"$f":"IF('2. Assisted & Restricted Units'!I301=\"\",\"\",'2. Assisted & Restricted Units'!I301)","v":""},{"$f":"IF('2. Assisted & Restricted Units'!AP301=\"\",\"\",'2. Assisted & Restricted Units'!AP301)","v":0},{"$f":"IF('2. Assisted & Restricted Units'!AT301=\"\",\"\",'2. Assisted & Restricted Units'!AT301)","v":""},0,{"$f":"IF('2. Assisted & Restricted Units'!AV301=\"\",\"\",'2. Assisted & Restricted Units'!AV301)","v":""},{"$f":"IF('2. Assisted & Restricted Units'!L301=\"\",\"\",'2. Assisted & Restricted Units'!L301)","v":""},{"$f":"IF('2. Assisted & Restricted Units'!M301=\"\",\"\",'2. Assisted & Restricted Units'!M301)","v":""},{"$f":"IF('2. Assisted & Restricted Units'!O301=\"\",\"\",'2. Assisted & Restricted Units'!O301)","v":""},{"$f":"IF('2. Assisted & Restricted Units'!P301=\"\",\"\",'2. Assisted & Restricted Units'!P301)","v":""},{"$f":"IF('2. Assisted & Restricted Units'!Q301=\"\",\"\",'2. Assisted & Restricted Units'!Q301)","v":""},{"$f":"IF('2. Assisted & Restricted Units'!R301=\"\",\"\",'2. Assisted & Restricted Units'!R301)","v":""},{"$f":"IF(A301=\"\",\"\",'1. Checklist & Certification'!$K$1)","v":""},{"$f":"IF(A301=\"\",\"\",'1. Checklist & Certification'!$C$62)","v":""},{"$f":"IF(A301=\"\",\"\",'1. Checklist & Certification'!$K$62)","v":""},{"$f":"IF(A301=\"\",\"\",'1. Checklist & Certification'!$C$6)","v":""},{"$f":"IF(A301=\"\",\"\",'1. Checklist & Certification'!$G$4)","v":""},{"$f":"IF(A301=\"\",\"\",'1. Checklist & Certification'!$C$7)","v":""},{"$f":"IF(A301=\"\",\"\",'1. Checklist & Certification'!$C$8)","v":""},{"$f":"IF(A301=\"\",\"\",'1. Checklist & Certification'!$F$7)","v":""},{"$f":"IF(A301=\"\",\"\",'1. Checklist & Certification'!$F$8)","v":""},{"$f":"IF(A301=\"\",\"\",'1. Checklist & Certification'!$B$9)","v":""},{"$f":"IF(A301=\"\",\"\",'1. Checklist & Certification'!$F$9)","v":""},{"$f":"IF(A301=\"\",\"\",'1. Checklist & Certification'!$C$10)","v":""},{"$f":"IF(A301=\"\",\"\",'1. Checklist & Certification'!$C$11)","v":""},{"$f":"IF(A301=\"\",\"\",'1. Checklist & Certification'!$C$12)","v":""},{"$f":"IF(A301=\"\",\"\",'1. Checklist & Certification'!$B$14)","v":""},{"$f":"IF(A301=\"\",\"\",'1. Checklist & Certification'!$E$14)","v":""},{"$f":"IF(B301=\"\",\"\",'1. Checklist & Certification'!$G$14)","v":""},{"$f":"IF(A301=\"\",\"\",'MHP Family Income & Rent Limits'!$B$3)","v":""},{"$f":"IF(A301=\"\",\"\",'MHP Family Income & Rent Limits'!$J$3)","v":""},{"$f":"IF(A301=\"\",\"\",'MHP Family Income & Rent Limits'!$E$4)","v":""},{"$f":"IF(A301=\"\",\"\",'MHP Family Income & Rent Limits'!$C$7)","v":""},{"$f":"IF(A301=\"\",\"\",'MHP Family Income & Rent Limits'!$F$8)","v":""},{"$f":"IF(A301=\"\",\"\",'1. Checklist & Certification'!$G$4)","v":""},{"$f":"IF(A301=\"\",\"\",'1. Checklist & Certification'!$K$39)","v":""},{"$f":"IF(A301=\"\",\"\",'1. Checklist & Certification'!$K$43)","v":""},{"$f":"IF(A301=\"\",\"\",'1. Checklist & Certification'!$K$45)","v":""},{"$f":"IF(A301=\"\",\"\",'1. Checklist & Certification'!$K$49)","v":""},{"$f":"IF(A301=\"\",\"\",'1. Checklist & Certification'!$E$66)","v":""},{"$f":"IF(A301=\"\",\"\",'1. Checklist & Certification'!$E$67)","v":""},{"$f":"IF(A301=\"\",\"\",'1. Checklist & Certification'!$E$68)","v":""},{"$f":"IF(A301=\"\",\"\",'1. Checklist & Certification'!$G$66)","v":""},{"$f":"IF(A301=\"\",\"\",'1. Checklist & Certification'!$H$66)","v":""},{"$f":"IF(A301=\"\",\"\",'1. Checklist & Certification'!$I$66)","v":""},{"$f":"IF(A301=\"\",\"\",'1. Checklist & Certification'!$I$67)","v":""},{"$f":"IF(A301=\"\",\"\",'1. Checklist & Certification'!$I$68)","v":""},null,{"$f":"IF(C301=\"\",\"\",HLOOKUP(C301,'MHP Family Income & Rent Limits'!$E$12:$L$26,2,FALSE))","v":""},{"$f":"IF(C301=\"\",\"\",HLOOKUP(C301,'MHP Family Income & Rent Limits'!$E$12:$L$26,3,FALSE))","v":""},{"$f":"IF(C301=\"\",\"\",HLOOKUP(C301,'MHP Family Income & Rent Limits'!$E$12:$L$26,4,FALSE))","v":""},{"$f":"IF(C301=\"\",\"\",HLOOKUP(C301,'MHP Family Income & Rent Limits'!$E$12:$L$26,5,FALSE))","v":""},{"$f":"IF(C301=\"\",\"\",HLOOKUP(C301,'MHP Family Income & Rent Limits'!$E$12:$L$26,6,FALSE))","v":""},{"$f":"IF(C301=\"\",\"\",HLOOKUP(C301,'MHP Family Income & Rent Limits'!$E$12:$L$26,7,FALSE))","v":""},{"$f":"IF(C301=\"\",\"\",HLOOKUP(C301,'MHP Family Income & Rent Limits'!$E$12:$L$26,8,FALSE))","v":""},{"$f":"IF(C301=\"\",\"\",HLOOKUP(C301,'MHP Family Income & Rent Limits'!$E$12:$L$26,9,FALSE))","v":""},{"$f":"IF(C301=\"\",\"\",HLOOKUP(C301,'MHP Family Income & Rent Limits'!$E$12:$L$26,10,FALSE))","v":""},{"$f":"IF(C301=\"\",\"\",HLOOKUP(C301,'MHP Family Income & Rent Limits'!$E$12:$L$26,11,FALSE))","v":""},{"$f":"IF(C301=\"\",\"\",HLOOKUP(C301,'MHP Family Income & Rent Limits'!$E$12:$L$26,12,FALSE))","v":""},{"$f":"IF(C301=\"\",\"\",HLOOKUP(C301,'MHP Family Income & Rent Limits'!$E$12:$L$26,13,FALSE))","v":""},{"$f":"IF(C301=\"\",\"\",HLOOKUP(C301,'MHP Family Income & Rent Limits'!$E$12:$L$26,14,FALSE))","v":""},{"$f":"IF(C301=\"\",\"\",HLOOKUP(C301,'MHP Family Income & Rent Limits'!$E$12:$L$26,15,FALSE))","v":""}]
[{"$f":"IF('2. Assisted & Restricted Units'!A302=\"\",\"\",'2. Assisted & Restricted Units'!A302)","v":""},{"$f":"IF('2. Assisted & Restricted Units'!B302=\"\",\"\",'2. Assisted & Restricted Units'!B302)","v":""},{"$f":"IF('2. Assisted & Restricted Units'!D302=\"\",\"\",'2. Assisted & Restricted Units'!D302)","v":""},{"$f":"IF('2. Assisted & Restricted Units'!E302=\"\",\"\",'2. Assisted & Restricted Units'!E302)","v":""},{"$f":"IF('2. Assisted & Restricted Units'!H302=\"\",\"\",'2. Assisted & Restricted Units'!H302)","v":""},{"$f":"_xlfn.IFS(E302=\"\",\"\",E302>BO302,$BP$6,E302>BN302,$BO$6,E302>BM302,$BN$6,E302>BL302,$BM$6,E302>BK302,$BL$6,E302>BJ302,$BK$6,E302>BI302,$BJ$6,E302>BH302,$BI$6,E302>BG302,$BH$6,E302>BF302,$BG$6,E302>BE302,$BF$6,E302>BD302,$BE$6,E302>BC302,$BD$6,E302>=0,$BC$6)","v":""},{"$f":"IF('2. Assisted & Restricted Units'!T302=\"\",\"\",'2. Assisted & Restricted Units'!T302)","v":""},{"$f":"IF('2. Assisted & Restricted Units'!I302=\"\",\"\",'2. Assisted & Restricted Units'!I302)","v":""},{"$f":"IF('2. Assisted & Restricted Units'!AP302=\"\",\"\",'2. Assisted & Restricted Units'!AP302)","v":0},{"$f":"IF('2. Assisted & Restricted Units'!AT302=\"\",\"\",'2. Assisted & Restricted Units'!AT302)","v":""},0,{"$f":"IF('2. Assisted & Restricted Units'!AV302=\"\",\"\",'2. Assisted & Restricted Units'!AV302)","v":""},{"$f":"IF('2. Assisted & Restricted Units'!L302=\"\",\"\",'2. Assisted & Restricted Units'!L302)","v":""},{"$f":"IF('2. Assisted & Restricted Units'!M302=\"\",\"\",'2. Assisted & Restricted Units'!M302)","v":""},{"$f":"IF('2. Assisted & Restricted Units'!O302=\"\",\"\",'2. Assisted & Restricted Units'!O302)","v":""},{"$f":"IF('2. Assisted & Restricted Units'!P302=\"\",\"\",'2. Assisted & Restricted Units'!P302)","v":""},{"$f":"IF('2. Assisted & Restricted Units'!Q302=\"\",\"\",'2. Assisted & Restricted Units'!Q302)","v":""},{"$f":"IF('2. Assisted & Restricted Units'!R302=\"\",\"\",'2. Assisted & Restricted Units'!R302)","v":""},{"$f":"IF(A302=\"\",\"\",'1. Checklist & Certification'!$K$1)","v":""},{"$f":"IF(A302=\"\",\"\",'1. Checklist & Certification'!$C$62)","v":""},{"$f":"IF(A302=\"\",\"\",'1. Checklist & Certification'!$K$62)","v":""},{"$f":"IF(A302=\"\",\"\",'1. Checklist & Certification'!$C$6)","v":""},{"$f":"IF(A302=\"\",\"\",'1. Checklist & Certification'!$G$4)","v":""},{"$f":"IF(A302=\"\",\"\",'1. Checklist & Certification'!$C$7)","v":""},{"$f":"IF(A302=\"\",\"\",'1. Checklist & Certification'!$C$8)","v":""},{"$f":"IF(A302=\"\",\"\",'1. Checklist & Certification'!$F$7)","v":""},{"$f":"IF(A302=\"\",\"\",'1. Checklist & Certification'!$F$8)","v":""},{"$f":"IF(A302=\"\",\"\",'1. Checklist & Certification'!$B$9)","v":""},{"$f":"IF(A302=\"\",\"\",'1. Checklist & Certification'!$F$9)","v":""},{"$f":"IF(A302=\"\",\"\",'1. Checklist & Certification'!$C$10)","v":""},{"$f":"IF(A302=\"\",\"\",'1. Checklist & Certification'!$C$11)","v":""},{"$f":"IF(A302=\"\",\"\",'1. Checklist & Certification'!$C$12)","v":""},{"$f":"IF(A302=\"\",\"\",'1. Checklist & Certification'!$B$14)","v":""},{"$f":"IF(A302=\"\",\"\",'1. Checklist & Certification'!$E$14)","v":""},{"$f":"IF(B302=\"\",\"\",'1. Checklist & Certification'!$G$14)","v":""},{"$f":"IF(A302=\"\",\"\",'MHP Family Income & Rent Limits'!$B$3)","v":""},{"$f":"IF(A302=\"\",\"\",'MHP Family Income & Rent Limits'!$J$3)","v":""},{"$f":"IF(A302=\"\",\"\",'MHP Family Income & Rent Limits'!$E$4)","v":""},{"$f":"IF(A302=\"\",\"\",'MHP Family Income & Rent Limits'!$C$7)","v":""},{"$f":"IF(A302=\"\",\"\",'MHP Family Income & Rent Limits'!$F$8)","v":""},{"$f":"IF(A302=\"\",\"\",'1. Checklist & Certification'!$G$4)","v":""},{"$f":"IF(A302=\"\",\"\",'1. Checklist & Certification'!$K$39)","v":""},{"$f":"IF(A302=\"\",\"\",'1. Checklist & Certification'!$K$43)","v":""},{"$f":"IF(A302=\"\",\"\",'1. Checklist & Certification'!$K$45)","v":""},{"$f":"IF(A302=\"\",\"\",'1. Checklist & Certification'!$K$49)","v":""},{"$f":"IF(A302=\"\",\"\",'1. Checklist & Certification'!$E$66)","v":""},{"$f":"IF(A302=\"\",\"\",'1. Checklist & Certification'!$E$67)","v":""},{"$f":"IF(A302=\"\",\"\",'1. Checklist & Certification'!$E$68)","v":""},{"$f":"IF(A302=\"\",\"\",'1. Checklist & Certification'!$G$66)","v":""},{"$f":"IF(A302=\"\",\"\",'1. Checklist & Certification'!$H$66)","v":""},{"$f":"IF(A302=\"\",\"\",'1. Checklist & Certification'!$I$66)","v":""},{"$f":"IF(A302=\"\",\"\",'1. Checklist & Certification'!$I$67)","v":""},{"$f":"IF(A302=\"\",\"\",'1. Checklist & Certification'!$I$68)","v":""},null,{"$f":"IF(C302=\"\",\"\",HLOOKUP(C302,'MHP Family Income & Rent Limits'!$E$12:$L$26,2,FALSE))","v":""},{"$f":"IF(C302=\"\",\"\",HLOOKUP(C302,'MHP Family Income & Rent Limits'!$E$12:$L$26,3,FALSE))","v":""},{"$f":"IF(C302=\"\",\"\",HLOOKUP(C302,'MHP Family Income & Rent Limits'!$E$12:$L$26,4,FALSE))","v":""},{"$f":"IF(C302=\"\",\"\",HLOOKUP(C302,'MHP Family Income & Rent Limits'!$E$12:$L$26,5,FALSE))","v":""},{"$f":"IF(C302=\"\",\"\",HLOOKUP(C302,'MHP Family Income & Rent Limits'!$E$12:$L$26,6,FALSE))","v":""},{"$f":"IF(C302=\"\",\"\",HLOOKUP(C302,'MHP Family Income & Rent Limits'!$E$12:$L$26,7,FALSE))","v":""},{"$f":"IF(C302=\"\",\"\",HLOOKUP(C302,'MHP Family Income & Rent Limits'!$E$12:$L$26,8,FALSE))","v":""},{"$f":"IF(C302=\"\",\"\",HLOOKUP(C302,'MHP Family Income & Rent Limits'!$E$12:$L$26,9,FALSE))","v":""},{"$f":"IF(C302=\"\",\"\",HLOOKUP(C302,'MHP Family Income & Rent Limits'!$E$12:$L$26,10,FALSE))","v":""},{"$f":"IF(C302=\"\",\"\",HLOOKUP(C302,'MHP Family Income & Rent Limits'!$E$12:$L$26,11,FALSE))","v":""},{"$f":"IF(C302=\"\",\"\",HLOOKUP(C302,'MHP Family Income & Rent Limits'!$E$12:$L$26,12,FALSE))","v":""},{"$f":"IF(C302=\"\",\"\",HLOOKUP(C302,'MHP Family Income & Rent Limits'!$E$12:$L$26,13,FALSE))","v":""},{"$f":"IF(C302=\"\",\"\",HLOOKUP(C302,'MHP Family Income & Rent Limits'!$E$12:$L$26,14,FALSE))","v":""},{"$f":"IF(C302=\"\",\"\",HLOOKUP(C302,'MHP Family Income & Rent Limits'!$E$12:$L$26,15,FALSE))","v":""}]
[{"$f":"IF('2. Assisted & Restricted Units'!A303=\"\",\"\",'2. Assisted & Restricted Units'!A303)","v":""},{"$f":"IF('2. Assisted & Restricted Units'!B303=\"\",\"\",'2. Assisted & Restricted Units'!B303)","v":""},{"$f":"IF('2. Assisted & Restricted Units'!D303=\"\",\"\",'2. Assisted & Restricted Units'!D303)","v":""},{"$f":"IF('2. Assisted & Restricted Units'!E303=\"\",\"\",'2. Assisted & Restricted Units'!E303)","v":""},{"$f":"IF('2. Assisted & Restricted Units'!H303=\"\",\"\",'2. Assisted & Restricted Units'!H303)","v":""},{"$f":"_xlfn.IFS(E303=\"\",\"\",E303>BO303,$BP$6,E303>BN303,$BO$6,E303>BM303,$BN$6,E303>BL303,$BM$6,E303>BK303,$BL$6,E303>BJ303,$BK$6,E303>BI303,$BJ$6,E303>BH303,$BI$6,E303>BG303,$BH$6,E303>BF303,$BG$6,E303>BE303,$BF$6,E303>BD303,$BE$6,E303>BC303,$BD$6,E303>=0,$BC$6)","v":""},{"$f":"IF('2. Assisted & Restricted Units'!T303=\"\",\"\",'2. Assisted & Restricted Units'!T303)","v":""},{"$f":"IF('2. Assisted & Restricted Units'!I303=\"\",\"\",'2. Assisted & Restricted Units'!I303)","v":""},{"$f":"IF('2. Assisted & Restricted Units'!AP303=\"\",\"\",'2. Assisted & Restricted Units'!AP303)","v":0},{"$f":"IF('2. Assisted & Restricted Units'!AT303=\"\",\"\",'2. Assisted & Restricted Units'!AT303)","v":""},0,{"$f":"IF('2. Assisted & Restricted Units'!AV303=\"\",\"\",'2. Assisted & Restricted Units'!AV303)","v":""},{"$f":"IF('2. Assisted & Restricted Units'!L303=\"\",\"\",'2. Assisted & Restricted Units'!L303)","v":""},{"$f":"IF('2. Assisted & Restricted Units'!M303=\"\",\"\",'2. Assisted & Restricted Units'!M303)","v":""},{"$f":"IF('2. Assisted & Restricted Units'!O303=\"\",\"\",'2. Assisted & Restricted Units'!O303)","v":""},{"$f":"IF('2. Assisted & Restricted Units'!P303=\"\",\"\",'2. Assisted & Restricted Units'!P303)","v":""},{"$f":"IF('2. Assisted & Restricted Units'!Q303=\"\",\"\",'2. Assisted & Restricted Units'!Q303)","v":""},{"$f":"IF('2. Assisted & Restricted Units'!R303=\"\",\"\",'2. Assisted & Restricted Units'!R303)","v":""},{"$f":"IF(A303=\"\",\"\",'1. Checklist & Certification'!$K$1)","v":""},{"$f":"IF(A303=\"\",\"\",'1. Checklist & Certification'!$C$62)","v":""},{"$f":"IF(A303=\"\",\"\",'1. Checklist & Certification'!$K$62)","v":""},{"$f":"IF(A303=\"\",\"\",'1. Checklist & Certification'!$C$6)","v":""},{"$f":"IF(A303=\"\",\"\",'1. Checklist & Certification'!$G$4)","v":""},{"$f":"IF(A303=\"\",\"\",'1. Checklist & Certification'!$C$7)","v":""},{"$f":"IF(A303=\"\",\"\",'1. Checklist & Certification'!$C$8)","v":""},{"$f":"IF(A303=\"\",\"\",'1. Checklist & Certification'!$F$7)","v":""},{"$f":"IF(A303=\"\",\"\",'1. Checklist & Certification'!$F$8)","v":""},{"$f":"IF(A303=\"\",\"\",'1. Checklist & Certification'!$B$9)","v":""},{"$f":"IF(A303=\"\",\"\",'1. Checklist & Certification'!$F$9)","v":""},{"$f":"IF(A303=\"\",\"\",'1. Checklist & Certification'!$C$10)","v":""},{"$f":"IF(A303=\"\",\"\",'1. Checklist & Certification'!$C$11)","v":""},{"$f":"IF(A303=\"\",\"\",'1. Checklist & Certification'!$C$12)","v":""},{"$f":"IF(A303=\"\",\"\",'1. Checklist & Certification'!$B$14)","v":""},{"$f":"IF(A303=\"\",\"\",'1. Checklist & Certification'!$E$14)","v":""},{"$f":"IF(B303=\"\",\"\",'1. Checklist & Certification'!$G$14)","v":""},{"$f":"IF(A303=\"\",\"\",'MHP Family Income & Rent Limits'!$B$3)","v":""},{"$f":"IF(A303=\"\",\"\",'MHP Family Income & Rent Limits'!$J$3)","v":""},{"$f":"IF(A303=\"\",\"\",'MHP Family Income & Rent Limits'!$E$4)","v":""},{"$f":"IF(A303=\"\",\"\",'MHP Family Income & Rent Limits'!$C$7)","v":""},{"$f":"IF(A303=\"\",\"\",'MHP Family Income & Rent Limits'!$F$8)","v":""},{"$f":"IF(A303=\"\",\"\",'1. Checklist & Certification'!$G$4)","v":""},{"$f":"IF(A303=\"\",\"\",'1. Checklist & Certification'!$K$39)","v":""},{"$f":"IF(A303=\"\",\"\",'1. Checklist & Certification'!$K$43)","v":""},{"$f":"IF(A303=\"\",\"\",'1. Checklist & Certification'!$K$45)","v":""},{"$f":"IF(A303=\"\",\"\",'1. Checklist & Certification'!$K$49)","v":""},{"$f":"IF(A303=\"\",\"\",'1. Checklist & Certification'!$E$66)","v":""},{"$f":"IF(A303=\"\",\"\",'1. Checklist & Certification'!$E$67)","v":""},{"$f":"IF(A303=\"\",\"\",'1. Checklist & Certification'!$E$68)","v":""},{"$f":"IF(A303=\"\",\"\",'1. Checklist & Certification'!$G$66)","v":""},{"$f":"IF(A303=\"\",\"\",'1. Checklist & Certification'!$H$66)","v":""},{"$f":"IF(A303=\"\",\"\",'1. Checklist & Certification'!$I$66)","v":""},{"$f":"IF(A303=\"\",\"\",'1. Checklist & Certification'!$I$67)","v":""},{"$f":"IF(A303=\"\",\"\",'1. Checklist & Certification'!$I$68)","v":""},null,{"$f":"IF(C303=\"\",\"\",HLOOKUP(C303,'MHP Family Income & Rent Limits'!$E$12:$L$26,2,FALSE))","v":""},{"$f":"IF(C303=\"\",\"\",HLOOKUP(C303,'MHP Family Income & Rent Limits'!$E$12:$L$26,3,FALSE))","v":""},{"$f":"IF(C303=\"\",\"\",HLOOKUP(C303,'MHP Family Income & Rent Limits'!$E$12:$L$26,4,FALSE))","v":""},{"$f":"IF(C303=\"\",\"\",HLOOKUP(C303,'MHP Family Income & Rent Limits'!$E$12:$L$26,5,FALSE))","v":""},{"$f":"IF(C303=\"\",\"\",HLOOKUP(C303,'MHP Family Income & Rent Limits'!$E$12:$L$26,6,FALSE))","v":""},{"$f":"IF(C303=\"\",\"\",HLOOKUP(C303,'MHP Family Income & Rent Limits'!$E$12:$L$26,7,FALSE))","v":""},{"$f":"IF(C303=\"\",\"\",HLOOKUP(C303,'MHP Family Income & Rent Limits'!$E$12:$L$26,8,FALSE))","v":""},{"$f":"IF(C303=\"\",\"\",HLOOKUP(C303,'MHP Family Income & Rent Limits'!$E$12:$L$26,9,FALSE))","v":""},{"$f":"IF(C303=\"\",\"\",HLOOKUP(C303,'MHP Family Income & Rent Limits'!$E$12:$L$26,10,FALSE))","v":""},{"$f":"IF(C303=\"\",\"\",HLOOKUP(C303,'MHP Family Income & Rent Limits'!$E$12:$L$26,11,FALSE))","v":""},{"$f":"IF(C303=\"\",\"\",HLOOKUP(C303,'MHP Family Income & Rent Limits'!$E$12:$L$26,12,FALSE))","v":""},{"$f":"IF(C303=\"\",\"\",HLOOKUP(C303,'MHP Family Income & Rent Limits'!$E$12:$L$26,13,FALSE))","v":""},{"$f":"IF(C303=\"\",\"\",HLOOKUP(C303,'MHP Family Income & Rent Limits'!$E$12:$L$26,14,FALSE))","v":""},{"$f":"IF(C303=\"\",\"\",HLOOKUP(C303,'MHP Family Income & Rent Limits'!$E$12:$L$26,15,FALSE))","v":""}]
[{"$f":"IF('2. Assisted & Restricted Units'!A304=\"\",\"\",'2. Assisted & Restricted Units'!A304)","v":""},{"$f":"IF('2. Assisted & Restricted Units'!B304=\"\",\"\",'2. Assisted & Restricted Units'!B304)","v":""},{"$f":"IF('2. Assisted & Restricted Units'!D304=\"\",\"\",'2. Assisted & Restricted Units'!D304)","v":""},{"$f":"IF('2. Assisted & Restricted Units'!E304=\"\",\"\",'2. Assisted & Restricted Units'!E304)","v":""},{"$f":"IF('2. Assisted & Restricted Units'!H304=\"\",\"\",'2. Assisted & Restricted Units'!H304)","v":""},{"$f":"_xlfn.IFS(E304=\"\",\"\",E304>BO304,$BP$6,E304>BN304,$BO$6,E304>BM304,$BN$6,E304>BL304,$BM$6,E304>BK304,$BL$6,E304>BJ304,$BK$6,E304>BI304,$BJ$6,E304>BH304,$BI$6,E304>BG304,$BH$6,E304>BF304,$BG$6,E304>BE304,$BF$6,E304>BD304,$BE$6,E304>BC304,$BD$6,E304>=0,$BC$6)","v":""},{"$f":"IF('2. Assisted & Restricted Units'!T304=\"\",\"\",'2. Assisted & Restricted Units'!T304)","v":""},{"$f":"IF('2. Assisted & Restricted Units'!I304=\"\",\"\",'2. Assisted & Restricted Units'!I304)","v":""},{"$f":"IF('2. Assisted & Restricted Units'!AP304=\"\",\"\",'2. Assisted & Restricted Units'!AP304)","v":0},{"$f":"IF('2. Assisted & Restricted Units'!AT304=\"\",\"\",'2. Assisted & Restricted Units'!AT304)","v":""},0,{"$f":"IF('2. Assisted & Restricted Units'!AV304=\"\",\"\",'2. Assisted & Restricted Units'!AV304)","v":""},{"$f":"IF('2. Assisted & Restricted Units'!L304=\"\",\"\",'2. Assisted & Restricted Units'!L304)","v":""},{"$f":"IF('2. Assisted & Restricted Units'!M304=\"\",\"\",'2. Assisted & Restricted Units'!M304)","v":""},{"$f":"IF('2. Assisted & Restricted Units'!O304=\"\",\"\",'2. Assisted & Restricted Units'!O304)","v":""},{"$f":"IF('2. Assisted & Restricted Units'!P304=\"\",\"\",'2. Assisted & Restricted Units'!P304)","v":""},{"$f":"IF('2. Assisted & Restricted Units'!Q304=\"\",\"\",'2. Assisted & Restricted Units'!Q304)","v":""},{"$f":"IF('2. Assisted & Restricted Units'!R304=\"\",\"\",'2. Assisted & Restricted Units'!R304)","v":""},{"$f":"IF(A304=\"\",\"\",'1. Checklist & Certification'!$K$1)","v":""},{"$f":"IF(A304=\"\",\"\",'1. Checklist & Certification'!$C$62)","v":""},{"$f":"IF(A304=\"\",\"\",'1. Checklist & Certification'!$K$62)","v":""},{"$f":"IF(A304=\"\",\"\",'1. Checklist & Certification'!$C$6)","v":""},{"$f":"IF(A304=\"\",\"\",'1. Checklist & Certification'!$G$4)","v":""},{"$f":"IF(A304=\"\",\"\",'1. Checklist & Certification'!$C$7)","v":""},{"$f":"IF(A304=\"\",\"\",'1. Checklist & Certification'!$C$8)","v":""},{"$f":"IF(A304=\"\",\"\",'1. Checklist & Certification'!$F$7)","v":""},{"$f":"IF(A304=\"\",\"\",'1. Checklist & Certification'!$F$8)","v":""},{"$f":"IF(A304=\"\",\"\",'1. Checklist & Certification'!$B$9)","v":""},{"$f":"IF(A304=\"\",\"\",'1. Checklist & Certification'!$F$9)","v":""},{"$f":"IF(A304=\"\",\"\",'1. Checklist & Certification'!$C$10)","v":""},{"$f":"IF(A304=\"\",\"\",'1. Checklist & Certification'!$C$11)","v":""},{"$f":"IF(A304=\"\",\"\",'1. Checklist & Certification'!$C$12)","v":""},{"$f":"IF(A304=\"\",\"\",'1. Checklist & Certification'!$B$14)","v":""},{"$f":"IF(A304=\"\",\"\",'1. Checklist & Certification'!$E$14)","v":""},{"$f":"IF(B304=\"\",\"\",'1. Checklist & Certification'!$G$14)","v":""},{"$f":"IF(A304=\"\",\"\",'MHP Family Income & Rent Limits'!$B$3)","v":""},{"$f":"IF(A304=\"\",\"\",'MHP Family Income & Rent Limits'!$J$3)","v":""},{"$f":"IF(A304=\"\",\"\",'MHP Family Income & Rent Limits'!$E$4)","v":""},{"$f":"IF(A304=\"\",\"\",'MHP Family Income & Rent Limits'!$C$7)","v":""},{"$f":"IF(A304=\"\",\"\",'MHP Family Income & Rent Limits'!$F$8)","v":""},{"$f":"IF(A304=\"\",\"\",'1. Checklist & Certification'!$G$4)","v":""},{"$f":"IF(A304=\"\",\"\",'1. Checklist & Certification'!$K$39)","v":""},{"$f":"IF(A304=\"\",\"\",'1. Checklist & Certification'!$K$43)","v":""},{"$f":"IF(A304=\"\",\"\",'1. Checklist & Certification'!$K$45)","v":""},{"$f":"IF(A304=\"\",\"\",'1. Checklist & Certification'!$K$49)","v":""},{"$f":"IF(A304=\"\",\"\",'1. Checklist & Certification'!$E$66)","v":""},{"$f":"IF(A304=\"\",\"\",'1. Checklist & Certification'!$E$67)","v":""},{"$f":"IF(A304=\"\",\"\",'1. Checklist & Certification'!$E$68)","v":""},{"$f":"IF(A304=\"\",\"\",'1. Checklist & Certification'!$G$66)","v":""},{"$f":"IF(A304=\"\",\"\",'1. Checklist & Certification'!$H$66)","v":""},{"$f":"IF(A304=\"\",\"\",'1. Checklist & Certification'!$I$66)","v":""},{"$f":"IF(A304=\"\",\"\",'1. Checklist & Certification'!$I$67)","v":""},{"$f":"IF(A304=\"\",\"\",'1. Checklist & Certification'!$I$68)","v":""},null,{"$f":"IF(C304=\"\",\"\",HLOOKUP(C304,'MHP Family Income & Rent Limits'!$E$12:$L$26,2,FALSE))","v":""},{"$f":"IF(C304=\"\",\"\",HLOOKUP(C304,'MHP Family Income & Rent Limits'!$E$12:$L$26,3,FALSE))","v":""},{"$f":"IF(C304=\"\",\"\",HLOOKUP(C304,'MHP Family Income & Rent Limits'!$E$12:$L$26,4,FALSE))","v":""},{"$f":"IF(C304=\"\",\"\",HLOOKUP(C304,'MHP Family Income & Rent Limits'!$E$12:$L$26,5,FALSE))","v":""},{"$f":"IF(C304=\"\",\"\",HLOOKUP(C304,'MHP Family Income & Rent Limits'!$E$12:$L$26,6,FALSE))","v":""},{"$f":"IF(C304=\"\",\"\",HLOOKUP(C304,'MHP Family Income & Rent Limits'!$E$12:$L$26,7,FALSE))","v":""},{"$f":"IF(C304=\"\",\"\",HLOOKUP(C304,'MHP Family Income & Rent Limits'!$E$12:$L$26,8,FALSE))","v":""},{"$f":"IF(C304=\"\",\"\",HLOOKUP(C304,'MHP Family Income & Rent Limits'!$E$12:$L$26,9,FALSE))","v":""},{"$f":"IF(C304=\"\",\"\",HLOOKUP(C304,'MHP Family Income & Rent Limits'!$E$12:$L$26,10,FALSE))","v":""},{"$f":"IF(C304=\"\",\"\",HLOOKUP(C304,'MHP Family Income & Rent Limits'!$E$12:$L$26,11,FALSE))","v":""},{"$f":"IF(C304=\"\",\"\",HLOOKUP(C304,'MHP Family Income & Rent Limits'!$E$12:$L$26,12,FALSE))","v":""},{"$f":"IF(C304=\"\",\"\",HLOOKUP(C304,'MHP Family Income & Rent Limits'!$E$12:$L$26,13,FALSE))","v":""},{"$f":"IF(C304=\"\",\"\",HLOOKUP(C304,'MHP Family Income & Rent Limits'!$E$12:$L$26,14,FALSE))","v":""},{"$f":"IF(C304=\"\",\"\",HLOOKUP(C304,'MHP Family Income & Rent Limits'!$E$12:$L$26,15,FALSE))","v":""}]
[{"$f":"IF('2. Assisted & Restricted Units'!A305=\"\",\"\",'2. Assisted & Restricted Units'!A305)","v":""},{"$f":"IF('2. Assisted & Restricted Units'!B305=\"\",\"\",'2. Assisted & Restricted Units'!B305)","v":""},{"$f":"IF('2. Assisted & Restricted Units'!D305=\"\",\"\",'2. Assisted & Restricted Units'!D305)","v":""},{"$f":"IF('2. Assisted & Restricted Units'!E305=\"\",\"\",'2. Assisted & Restricted Units'!E305)","v":""},{"$f":"IF('2. Assisted & Restricted Units'!H305=\"\",\"\",'2. Assisted & Restricted Units'!H305)","v":""},{"$f":"_xlfn.IFS(E305=\"\",\"\",E305>BO305,$BP$6,E305>BN305,$BO$6,E305>BM305,$BN$6,E305>BL305,$BM$6,E305>BK305,$BL$6,E305>BJ305,$BK$6,E305>BI305,$BJ$6,E305>BH305,$BI$6,E305>BG305,$BH$6,E305>BF305,$BG$6,E305>BE305,$BF$6,E305>BD305,$BE$6,E305>BC305,$BD$6,E305>=0,$BC$6)","v":""},{"$f":"IF('2. Assisted & Restricted Units'!T305=\"\",\"\",'2. Assisted & Restricted Units'!T305)","v":""},{"$f":"IF('2. Assisted & Restricted Units'!I305=\"\",\"\",'2. Assisted & Restricted Units'!I305)","v":""},{"$f":"IF('2. Assisted & Restricted Units'!AP305=\"\",\"\",'2. Assisted & Restricted Units'!AP305)","v":0},{"$f":"IF('2. Assisted & Restricted Units'!AT305=\"\",\"\",'2. Assisted & Restricted Units'!AT305)","v":""},0,{"$f":"IF('2. Assisted & Restricted Units'!AV305=\"\",\"\",'2. Assisted & Restricted Units'!AV305)","v":""},{"$f":"IF('2. Assisted & Restricted Units'!L305=\"\",\"\",'2. Assisted & Restricted Units'!L305)","v":""},{"$f":"IF('2. Assisted & Restricted Units'!M305=\"\",\"\",'2. Assisted & Restricted Units'!M305)","v":""},{"$f":"IF('2. Assisted & Restricted Units'!O305=\"\",\"\",'2. Assisted & Restricted Units'!O305)","v":""},{"$f":"IF('2. Assisted & Restricted Units'!P305=\"\",\"\",'2. Assisted & Restricted Units'!P305)","v":""},{"$f":"IF('2. Assisted & Restricted Units'!Q305=\"\",\"\",'2. Assisted & Restricted Units'!Q305)","v":""},{"$f":"IF('2. Assisted & Restricted Units'!R305=\"\",\"\",'2. Assisted & Restricted Units'!R305)","v":""},{"$f":"IF(A305=\"\",\"\",'1. Checklist & Certification'!$K$1)","v":""},{"$f":"IF(A305=\"\",\"\",'1. Checklist & Certification'!$C$62)","v":""},{"$f":"IF(A305=\"\",\"\",'1. Checklist & Certification'!$K$62)","v":""},{"$f":"IF(A305=\"\",\"\",'1. Checklist & Certification'!$C$6)","v":""},{"$f":"IF(A305=\"\",\"\",'1. Checklist & Certification'!$G$4)","v":""},{"$f":"IF(A305=\"\",\"\",'1. Checklist & Certification'!$C$7)","v":""},{"$f":"IF(A305=\"\",\"\",'1. Checklist & Certification'!$C$8)","v":""},{"$f":"IF(A305=\"\",\"\",'1. Checklist & Certification'!$F$7)","v":""},{"$f":"IF(A305=\"\",\"\",'1. Checklist & Certification'!$F$8)","v":""},{"$f":"IF(A305=\"\",\"\",'1. Checklist & Certification'!$B$9)","v":""},{"$f":"IF(A305=\"\",\"\",'1. Checklist & Certification'!$F$9)","v":""},{"$f":"IF(A305=\"\",\"\",'1. Checklist & Certification'!$C$10)","v":""},{"$f":"IF(A305=\"\",\"\",'1. Checklist & Certification'!$C$11)","v":""},{"$f":"IF(A305=\"\",\"\",'1. Checklist & Certification'!$C$12)","v":""},{"$f":"IF(A305=\"\",\"\",'1. Checklist & Certification'!$B$14)","v":""},{"$f":"IF(A305=\"\",\"\",'1. Checklist & Certification'!$E$14)","v":""},{"$f":"IF(B305=\"\",\"\",'1. Checklist & Certification'!$G$14)","v":""},{"$f":"IF(A305=\"\",\"\",'MHP Family Income & Rent Limits'!$B$3)","v":""},{"$f":"IF(A305=\"\",\"\",'MHP Family Income & Rent Limits'!$J$3)","v":""},{"$f":"IF(A305=\"\",\"\",'MHP Family Income & Rent Limits'!$E$4)","v":""},{"$f":"IF(A305=\"\",\"\",'MHP Family Income & Rent Limits'!$C$7)","v":""},{"$f":"IF(A305=\"\",\"\",'MHP Family Income & Rent Limits'!$F$8)","v":""},{"$f":"IF(A305=\"\",\"\",'1. Checklist & Certification'!$G$4)","v":""},{"$f":"IF(A305=\"\",\"\",'1. Checklist & Certification'!$K$39)","v":""},{"$f":"IF(A305=\"\",\"\",'1. Checklist & Certification'!$K$43)","v":""},{"$f":"IF(A305=\"\",\"\",'1. Checklist & Certification'!$K$45)","v":""},{"$f":"IF(A305=\"\",\"\",'1. Checklist & Certification'!$K$49)","v":""},{"$f":"IF(A305=\"\",\"\",'1. Checklist & Certification'!$E$66)","v":""},{"$f":"IF(A305=\"\",\"\",'1. Checklist & Certification'!$E$67)","v":""},{"$f":"IF(A305=\"\",\"\",'1. Checklist & Certification'!$E$68)","v":""},{"$f":"IF(A305=\"\",\"\",'1. Checklist & Certification'!$G$66)","v":""},{"$f":"IF(A305=\"\",\"\",'1. Checklist & Certification'!$H$66)","v":""},{"$f":"IF(A305=\"\",\"\",'1. Checklist & Certification'!$I$66)","v":""},{"$f":"IF(A305=\"\",\"\",'1. Checklist & Certification'!$I$67)","v":""},{"$f":"IF(A305=\"\",\"\",'1. Checklist & Certification'!$I$68)","v":""},null,{"$f":"IF(C305=\"\",\"\",HLOOKUP(C305,'MHP Family Income & Rent Limits'!$E$12:$L$26,2,FALSE))","v":""},{"$f":"IF(C305=\"\",\"\",HLOOKUP(C305,'MHP Family Income & Rent Limits'!$E$12:$L$26,3,FALSE))","v":""},{"$f":"IF(C305=\"\",\"\",HLOOKUP(C305,'MHP Family Income & Rent Limits'!$E$12:$L$26,4,FALSE))","v":""},{"$f":"IF(C305=\"\",\"\",HLOOKUP(C305,'MHP Family Income & Rent Limits'!$E$12:$L$26,5,FALSE))","v":""},{"$f":"IF(C305=\"\",\"\",HLOOKUP(C305,'MHP Family Income & Rent Limits'!$E$12:$L$26,6,FALSE))","v":""},{"$f":"IF(C305=\"\",\"\",HLOOKUP(C305,'MHP Family Income & Rent Limits'!$E$12:$L$26,7,FALSE))","v":""},{"$f":"IF(C305=\"\",\"\",HLOOKUP(C305,'MHP Family Income & Rent Limits'!$E$12:$L$26,8,FALSE))","v":""},{"$f":"IF(C305=\"\",\"\",HLOOKUP(C305,'MHP Family Income & Rent Limits'!$E$12:$L$26,9,FALSE))","v":""},{"$f":"IF(C305=\"\",\"\",HLOOKUP(C305,'MHP Family Income & Rent Limits'!$E$12:$L$26,10,FALSE))","v":""},{"$f":"IF(C305=\"\",\"\",HLOOKUP(C305,'MHP Family Income & Rent Limits'!$E$12:$L$26,11,FALSE))","v":""},{"$f":"IF(C305=\"\",\"\",HLOOKUP(C305,'MHP Family Income & Rent Limits'!$E$12:$L$26,12,FALSE))","v":""},{"$f":"IF(C305=\"\",\"\",HLOOKUP(C305,'MHP Family Income & Rent Limits'!$E$12:$L$26,13,FALSE))","v":""},{"$f":"IF(C305=\"\",\"\",HLOOKUP(C305,'MHP Family Income & Rent Limits'!$E$12:$L$26,14,FALSE))","v":""},{"$f":"IF(C305=\"\",\"\",HLOOKUP(C305,'MHP Family Income & Rent Limits'!$E$12:$L$26,15,FALSE))","v":""}]
[{"$f":"IF('2. Assisted & Restricted Units'!A306=\"\",\"\",'2. Assisted & Restricted Units'!A306)","v":""},{"$f":"IF('2. Assisted & Restricted Units'!B306=\"\",\"\",'2. Assisted & Restricted Units'!B306)","v":""},{"$f":"IF('2. Assisted & Restricted Units'!D306=\"\",\"\",'2. Assisted & Restricted Units'!D306)","v":""},{"$f":"IF('2. Assisted & Restricted Units'!E306=\"\",\"\",'2. Assisted & Restricted Units'!E306)","v":""},{"$f":"IF('2. Assisted & Restricted Units'!H306=\"\",\"\",'2. Assisted & Restricted Units'!H306)","v":""},{"$f":"_xlfn.IFS(E306=\"\",\"\",E306>BO306,$BP$6,E306>BN306,$BO$6,E306>BM306,$BN$6,E306>BL306,$BM$6,E306>BK306,$BL$6,E306>BJ306,$BK$6,E306>BI306,$BJ$6,E306>BH306,$BI$6,E306>BG306,$BH$6,E306>BF306,$BG$6,E306>BE306,$BF$6,E306>BD306,$BE$6,E306>BC306,$BD$6,E306>=0,$BC$6)","v":""},{"$f":"IF('2. Assisted & Restricted Units'!T306=\"\",\"\",'2. Assisted & Restricted Units'!T306)","v":""},{"$f":"IF('2. Assisted & Restricted Units'!I306=\"\",\"\",'2. Assisted & Restricted Units'!I306)","v":""},{"$f":"IF('2. Assisted & Restricted Units'!AP306=\"\",\"\",'2. Assisted & Restricted Units'!AP306)","v":0},{"$f":"IF('2. Assisted & Restricted Units'!AT306=\"\",\"\",'2. Assisted & Restricted Units'!AT306)","v":""},0,{"$f":"IF('2. Assisted & Restricted Units'!AV306=\"\",\"\",'2. Assisted & Restricted Units'!AV306)","v":""},{"$f":"IF('2. Assisted & Restricted Units'!L306=\"\",\"\",'2. Assisted & Restricted Units'!L306)","v":""},{"$f":"IF('2. Assisted & Restricted Units'!M306=\"\",\"\",'2. Assisted & Restricted Units'!M306)","v":""},{"$f":"IF('2. Assisted & Restricted Units'!O306=\"\",\"\",'2. Assisted & Restricted Units'!O306)","v":""},{"$f":"IF('2. Assisted & Restricted Units'!P306=\"\",\"\",'2. Assisted & Restricted Units'!P306)","v":""},{"$f":"IF('2. Assisted & Restricted Units'!Q306=\"\",\"\",'2. Assisted & Restricted Units'!Q306)","v":""},{"$f":"IF('2. Assisted & Restricted Units'!R306=\"\",\"\",'2. Assisted & Restricted Units'!R306)","v":""},{"$f":"IF(A306=\"\",\"\",'1. Checklist & Certification'!$K$1)","v":""},{"$f":"IF(A306=\"\",\"\",'1. Checklist & Certification'!$C$62)","v":""},{"$f":"IF(A306=\"\",\"\",'1. Checklist & Certification'!$K$62)","v":""},{"$f":"IF(A306=\"\",\"\",'1. Checklist & Certification'!$C$6)","v":""},{"$f":"IF(A306=\"\",\"\",'1. Checklist & Certification'!$G$4)","v":""},{"$f":"IF(A306=\"\",\"\",'1. Checklist & Certification'!$C$7)","v":""},{"$f":"IF(A306=\"\",\"\",'1. Checklist & Certification'!$C$8)","v":""},{"$f":"IF(A306=\"\",\"\",'1. Checklist & Certification'!$F$7)","v":""},{"$f":"IF(A306=\"\",\"\",'1. Checklist & Certification'!$F$8)","v":""},{"$f":"IF(A306=\"\",\"\",'1. Checklist & Certification'!$B$9)","v":""},{"$f":"IF(A306=\"\",\"\",'1. Checklist & Certification'!$F$9)","v":""},{"$f":"IF(A306=\"\",\"\",'1. Checklist & Certification'!$C$10)","v":""},{"$f":"IF(A306=\"\",\"\",'1. Checklist & Certification'!$C$11)","v":""},{"$f":"IF(A306=\"\",\"\",'1. Checklist & Certification'!$C$12)","v":""},{"$f":"IF(A306=\"\",\"\",'1. Checklist & Certification'!$B$14)","v":""},{"$f":"IF(A306=\"\",\"\",'1. Checklist & Certification'!$E$14)","v":""},{"$f":"IF(B306=\"\",\"\",'1. Checklist & Certification'!$G$14)","v":""},{"$f":"IF(A306=\"\",\"\",'MHP Family Income & Rent Limits'!$B$3)","v":""},{"$f":"IF(A306=\"\",\"\",'MHP Family Income & Rent Limits'!$J$3)","v":""},{"$f":"IF(A306=\"\",\"\",'MHP Family Income & Rent Limits'!$E$4)","v":""},{"$f":"IF(A306=\"\",\"\",'MHP Family Income & Rent Limits'!$C$7)","v":""},{"$f":"IF(A306=\"\",\"\",'MHP Family Income & Rent Limits'!$F$8)","v":""},{"$f":"IF(A306=\"\",\"\",'1. Checklist & Certification'!$G$4)","v":""},{"$f":"IF(A306=\"\",\"\",'1. Checklist & Certification'!$K$39)","v":""},{"$f":"IF(A306=\"\",\"\",'1. Checklist & Certification'!$K$43)","v":""},{"$f":"IF(A306=\"\",\"\",'1. Checklist & Certification'!$K$45)","v":""},{"$f":"IF(A306=\"\",\"\",'1. Checklist & Certification'!$K$49)","v":""},{"$f":"IF(A306=\"\",\"\",'1. Checklist & Certification'!$E$66)","v":""},{"$f":"IF(A306=\"\",\"\",'1. Checklist & Certification'!$E$67)","v":""},{"$f":"IF(A306=\"\",\"\",'1. Checklist & Certification'!$E$68)","v":""},{"$f":"IF(A306=\"\",\"\",'1. Checklist & Certification'!$G$66)","v":""},{"$f":"IF(A306=\"\",\"\",'1. Checklist & Certification'!$H$66)","v":""},{"$f":"IF(A306=\"\",\"\",'1. Checklist & Certification'!$I$66)","v":""},{"$f":"IF(A306=\"\",\"\",'1. Checklist & Certification'!$I$67)","v":""},{"$f":"IF(A306=\"\",\"\",'1. Checklist & Certification'!$I$68)","v":""},null,{"$f":"IF(C306=\"\",\"\",HLOOKUP(C306,'MHP Family Income & Rent Limits'!$E$12:$L$26,2,FALSE))","v":""},{"$f":"IF(C306=\"\",\"\",HLOOKUP(C306,'MHP Family Income & Rent Limits'!$E$12:$L$26,3,FALSE))","v":""},{"$f":"IF(C306=\"\",\"\",HLOOKUP(C306,'MHP Family Income & Rent Limits'!$E$12:$L$26,4,FALSE))","v":""},{"$f":"IF(C306=\"\",\"\",HLOOKUP(C306,'MHP Family Income & Rent Limits'!$E$12:$L$26,5,FALSE))","v":""},{"$f":"IF(C306=\"\",\"\",HLOOKUP(C306,'MHP Family Income & Rent Limits'!$E$12:$L$26,6,FALSE))","v":""},{"$f":"IF(C306=\"\",\"\",HLOOKUP(C306,'MHP Family Income & Rent Limits'!$E$12:$L$26,7,FALSE))","v":""},{"$f":"IF(C306=\"\",\"\",HLOOKUP(C306,'MHP Family Income & Rent Limits'!$E$12:$L$26,8,FALSE))","v":""},{"$f":"IF(C306=\"\",\"\",HLOOKUP(C306,'MHP Family Income & Rent Limits'!$E$12:$L$26,9,FALSE))","v":""},{"$f":"IF(C306=\"\",\"\",HLOOKUP(C306,'MHP Family Income & Rent Limits'!$E$12:$L$26,10,FALSE))","v":""},{"$f":"IF(C306=\"\",\"\",HLOOKUP(C306,'MHP Family Income & Rent Limits'!$E$12:$L$26,11,FALSE))","v":""},{"$f":"IF(C306=\"\",\"\",HLOOKUP(C306,'MHP Family Income & Rent Limits'!$E$12:$L$26,12,FALSE))","v":""},{"$f":"IF(C306=\"\",\"\",HLOOKUP(C306,'MHP Family Income & Rent Limits'!$E$12:$L$26,13,FALSE))","v":""},{"$f":"IF(C306=\"\",\"\",HLOOKUP(C306,'MHP Family Income & Rent Limits'!$E$12:$L$26,14,FALSE))","v":""},{"$f":"IF(C306=\"\",\"\",HLOOKUP(C306,'MHP Family Income & Rent Limits'!$E$12:$L$26,15,FALSE))","v":""}]
[{"$f":"IF('2. Assisted & Restricted Units'!A307=\"\",\"\",'2. Assisted & Restricted Units'!A307)","v":""},{"$f":"IF('2. Assisted & Restricted Units'!B307=\"\",\"\",'2. Assisted & Restricted Units'!B307)","v":""},{"$f":"IF('2. Assisted & Restricted Units'!D307=\"\",\"\",'2. Assisted & Restricted Units'!D307)","v":""},{"$f":"IF('2. Assisted & Restricted Units'!E307=\"\",\"\",'2. Assisted & Restricted Units'!E307)","v":""},{"$f":"IF('2. Assisted & Restricted Units'!H307=\"\",\"\",'2. Assisted & Restricted Units'!H307)","v":""},{"$f":"_xlfn.IFS(E307=\"\",\"\",E307>BO307,$BP$6,E307>BN307,$BO$6,E307>BM307,$BN$6,E307>BL307,$BM$6,E307>BK307,$BL$6,E307>BJ307,$BK$6,E307>BI307,$BJ$6,E307>BH307,$BI$6,E307>BG307,$BH$6,E307>BF307,$BG$6,E307>BE307,$BF$6,E307>BD307,$BE$6,E307>BC307,$BD$6,E307>=0,$BC$6)","v":""},{"$f":"IF('2. Assisted & Restricted Units'!T307=\"\",\"\",'2. Assisted & Restricted Units'!T307)","v":""},{"$f":"IF('2. Assisted & Restricted Units'!I307=\"\",\"\",'2. Assisted & Restricted Units'!I307)","v":""},{"$f":"IF('2. Assisted & Restricted Units'!AP307=\"\",\"\",'2. Assisted & Restricted Units'!AP307)","v":0},{"$f":"IF('2. Assisted & Restricted Units'!AT307=\"\",\"\",'2. Assisted & Restricted Units'!AT307)","v":""},0,{"$f":"IF('2. Assisted & Restricted Units'!AV307=\"\",\"\",'2. Assisted & Restricted Units'!AV307)","v":""},{"$f":"IF('2. Assisted & Restricted Units'!L307=\"\",\"\",'2. Assisted & Restricted Units'!L307)","v":""},{"$f":"IF('2. Assisted & Restricted Units'!M307=\"\",\"\",'2. Assisted & Restricted Units'!M307)","v":""},{"$f":"IF('2. Assisted & Restricted Units'!O307=\"\",\"\",'2. Assisted & Restricted Units'!O307)","v":""},{"$f":"IF('2. Assisted & Restricted Units'!P307=\"\",\"\",'2. Assisted & Restricted Units'!P307)","v":""},{"$f":"IF('2. Assisted & Restricted Units'!Q307=\"\",\"\",'2. Assisted & Restricted Units'!Q307)","v":""},{"$f":"IF('2. Assisted & Restricted Units'!R307=\"\",\"\",'2. Assisted & Restricted Units'!R307)","v":""},{"$f":"IF(A307=\"\",\"\",'1. Checklist & Certification'!$K$1)","v":""},{"$f":"IF(A307=\"\",\"\",'1. Checklist & Certification'!$C$62)","v":""},{"$f":"IF(A307=\"\",\"\",'1. Checklist & Certification'!$K$62)","v":""},{"$f":"IF(A307=\"\",\"\",'1. Checklist & Certification'!$C$6)","v":""},{"$f":"IF(A307=\"\",\"\",'1. Checklist & Certification'!$G$4)","v":""},{"$f":"IF(A307=\"\",\"\",'1. Checklist & Certification'!$C$7)","v":""},{"$f":"IF(A307=\"\",\"\",'1. Checklist & Certification'!$C$8)","v":""},{"$f":"IF(A307=\"\",\"\",'1. Checklist & Certification'!$F$7)","v":""},{"$f":"IF(A307=\"\",\"\",'1. Checklist & Certification'!$F$8)","v":""},{"$f":"IF(A307=\"\",\"\",'1. Checklist & Certification'!$B$9)","v":""},{"$f":"IF(A307=\"\",\"\",'1. Checklist & Certification'!$F$9)","v":""},{"$f":"IF(A307=\"\",\"\",'1. Checklist & Certification'!$C$10)","v":""},{"$f":"IF(A307=\"\",\"\",'1. Checklist & Certification'!$C$11)","v":""},{"$f":"IF(A307=\"\",\"\",'1. Checklist & Certification'!$C$12)","v":""},{"$f":"IF(A307=\"\",\"\",'1. Checklist & Certification'!$B$14)","v":""},{"$f":"IF(A307=\"\",\"\",'1. Checklist & Certification'!$E$14)","v":""},{"$f":"IF(B307=\"\",\"\",'1. Checklist & Certification'!$G$14)","v":""},{"$f":"IF(A307=\"\",\"\",'MHP Family Income & Rent Limits'!$B$3)","v":""},{"$f":"IF(A307=\"\",\"\",'MHP Family Income & Rent Limits'!$J$3)","v":""},{"$f":"IF(A307=\"\",\"\",'MHP Family Income & Rent Limits'!$E$4)","v":""},{"$f":"IF(A307=\"\",\"\",'MHP Family Income & Rent Limits'!$C$7)","v":""},{"$f":"IF(A307=\"\",\"\",'MHP Family Income & Rent Limits'!$F$8)","v":""},{"$f":"IF(A307=\"\",\"\",'1. Checklist & Certification'!$G$4)","v":""},{"$f":"IF(A307=\"\",\"\",'1. Checklist & Certification'!$K$39)","v":""},{"$f":"IF(A307=\"\",\"\",'1. Checklist & Certification'!$K$43)","v":""},{"$f":"IF(A307=\"\",\"\",'1. Checklist & Certification'!$K$45)","v":""},{"$f":"IF(A307=\"\",\"\",'1. Checklist & Certification'!$K$49)","v":""},{"$f":"IF(A307=\"\",\"\",'1. Checklist & Certification'!$E$66)","v":""},{"$f":"IF(A307=\"\",\"\",'1. Checklist & Certification'!$E$67)","v":""},{"$f":"IF(A307=\"\",\"\",'1. Checklist & Certification'!$E$68)","v":""},{"$f":"IF(A307=\"\",\"\",'1. Checklist & Certification'!$G$66)","v":""},{"$f":"IF(A307=\"\",\"\",'1. Checklist & Certification'!$H$66)","v":""},{"$f":"IF(A307=\"\",\"\",'1. Checklist & Certification'!$I$66)","v":""},{"$f":"IF(A307=\"\",\"\",'1. Checklist & Certification'!$I$67)","v":""},{"$f":"IF(A307=\"\",\"\",'1. Checklist & Certification'!$I$68)","v":""},null,{"$f":"IF(C307=\"\",\"\",HLOOKUP(C307,'MHP Family Income & Rent Limits'!$E$12:$L$26,2,FALSE))","v":""},{"$f":"IF(C307=\"\",\"\",HLOOKUP(C307,'MHP Family Income & Rent Limits'!$E$12:$L$26,3,FALSE))","v":""},{"$f":"IF(C307=\"\",\"\",HLOOKUP(C307,'MHP Family Income & Rent Limits'!$E$12:$L$26,4,FALSE))","v":""},{"$f":"IF(C307=\"\",\"\",HLOOKUP(C307,'MHP Family Income & Rent Limits'!$E$12:$L$26,5,FALSE))","v":""},{"$f":"IF(C307=\"\",\"\",HLOOKUP(C307,'MHP Family Income & Rent Limits'!$E$12:$L$26,6,FALSE))","v":""},{"$f":"IF(C307=\"\",\"\",HLOOKUP(C307,'MHP Family Income & Rent Limits'!$E$12:$L$26,7,FALSE))","v":""},{"$f":"IF(C307=\"\",\"\",HLOOKUP(C307,'MHP Family Income & Rent Limits'!$E$12:$L$26,8,FALSE))","v":""},{"$f":"IF(C307=\"\",\"\",HLOOKUP(C307,'MHP Family Income & Rent Limits'!$E$12:$L$26,9,FALSE))","v":""},{"$f":"IF(C307=\"\",\"\",HLOOKUP(C307,'MHP Family Income & Rent Limits'!$E$12:$L$26,10,FALSE))","v":""},{"$f":"IF(C307=\"\",\"\",HLOOKUP(C307,'MHP Family Income & Rent Limits'!$E$12:$L$26,11,FALSE))","v":""},{"$f":"IF(C307=\"\",\"\",HLOOKUP(C307,'MHP Family Income & Rent Limits'!$E$12:$L$26,12,FALSE))","v":""},{"$f":"IF(C307=\"\",\"\",HLOOKUP(C307,'MHP Family Income & Rent Limits'!$E$12:$L$26,13,FALSE))","v":""},{"$f":"IF(C307=\"\",\"\",HLOOKUP(C307,'MHP Family Income & Rent Limits'!$E$12:$L$26,14,FALSE))","v":""},{"$f":"IF(C307=\"\",\"\",HLOOKUP(C307,'MHP Family Income & Rent Limits'!$E$12:$L$26,15,FALSE))","v":""}]
[{"$f":"IF('2. Assisted & Restricted Units'!A308=\"\",\"\",'2. Assisted & Restricted Units'!A308)","v":""},{"$f":"IF('2. Assisted & Restricted Units'!B308=\"\",\"\",'2. Assisted & Restricted Units'!B308)","v":""},{"$f":"IF('2. Assisted & Restricted Units'!D308=\"\",\"\",'2. Assisted & Restricted Units'!D308)","v":""},{"$f":"IF('2. Assisted & Restricted Units'!E308=\"\",\"\",'2. Assisted & Restricted Units'!E308)","v":""},{"$f":"IF('2. Assisted & Restricted Units'!H308=\"\",\"\",'2. Assisted & Restricted Units'!H308)","v":""},{"$f":"_xlfn.IFS(E308=\"\",\"\",E308>BO308,$BP$6,E308>BN308,$BO$6,E308>BM308,$BN$6,E308>BL308,$BM$6,E308>BK308,$BL$6,E308>BJ308,$BK$6,E308>BI308,$BJ$6,E308>BH308,$BI$6,E308>BG308,$BH$6,E308>BF308,$BG$6,E308>BE308,$BF$6,E308>BD308,$BE$6,E308>BC308,$BD$6,E308>=0,$BC$6)","v":""},{"$f":"IF('2. Assisted & Restricted Units'!T308=\"\",\"\",'2. Assisted & Restricted Units'!T308)","v":""},{"$f":"IF('2. Assisted & Restricted Units'!I308=\"\",\"\",'2. Assisted & Restricted Units'!I308)","v":""},{"$f":"IF('2. Assisted & Restricted Units'!AP308=\"\",\"\",'2. Assisted & Restricted Units'!AP308)","v":0},{"$f":"IF('2. Assisted & Restricted Units'!AT308=\"\",\"\",'2. Assisted & Restricted Units'!AT308)","v":""},0,{"$f":"IF('2. Assisted & Restricted Units'!AV308=\"\",\"\",'2. Assisted & Restricted Units'!AV308)","v":""},{"$f":"IF('2. Assisted & Restricted Units'!L308=\"\",\"\",'2. Assisted & Restricted Units'!L308)","v":""},{"$f":"IF('2. Assisted & Restricted Units'!M308=\"\",\"\",'2. Assisted & Restricted Units'!M308)","v":""},{"$f":"IF('2. Assisted & Restricted Units'!O308=\"\",\"\",'2. Assisted & Restricted Units'!O308)","v":""},{"$f":"IF('2. Assisted & Restricted Units'!P308=\"\",\"\",'2. Assisted & Restricted Units'!P308)","v":""},{"$f":"IF('2. Assisted & Restricted Units'!Q308=\"\",\"\",'2. Assisted & Restricted Units'!Q308)","v":""},{"$f":"IF('2. Assisted & Restricted Units'!R308=\"\",\"\",'2. Assisted & Restricted Units'!R308)","v":""},{"$f":"IF(A308=\"\",\"\",'1. Checklist & Certification'!$K$1)","v":""},{"$f":"IF(A308=\"\",\"\",'1. Checklist & Certification'!$C$62)","v":""},{"$f":"IF(A308=\"\",\"\",'1. Checklist & Certification'!$K$62)","v":""},{"$f":"IF(A308=\"\",\"\",'1. Checklist & Certification'!$C$6)","v":""},{"$f":"IF(A308=\"\",\"\",'1. Checklist & Certification'!$G$4)","v":""},{"$f":"IF(A308=\"\",\"\",'1. Checklist & Certification'!$C$7)","v":""},{"$f":"IF(A308=\"\",\"\",'1. Checklist & Certification'!$C$8)","v":""},{"$f":"IF(A308=\"\",\"\",'1. Checklist & Certification'!$F$7)","v":""},{"$f":"IF(A308=\"\",\"\",'1. Checklist & Certification'!$F$8)","v":""},{"$f":"IF(A308=\"\",\"\",'1. Checklist & Certification'!$B$9)","v":""},{"$f":"IF(A308=\"\",\"\",'1. Checklist & Certification'!$F$9)","v":""},{"$f":"IF(A308=\"\",\"\",'1. Checklist & Certification'!$C$10)","v":""},{"$f":"IF(A308=\"\",\"\",'1. Checklist & Certification'!$C$11)","v":""},{"$f":"IF(A308=\"\",\"\",'1. Checklist & Certification'!$C$12)","v":""},{"$f":"IF(A308=\"\",\"\",'1. Checklist & Certification'!$B$14)","v":""},{"$f":"IF(A308=\"\",\"\",'1. Checklist & Certification'!$E$14)","v":""},{"$f":"IF(B308=\"\",\"\",'1. Checklist & Certification'!$G$14)","v":""},{"$f":"IF(A308=\"\",\"\",'MHP Family Income & Rent Limits'!$B$3)","v":""},{"$f":"IF(A308=\"\",\"\",'MHP Family Income & Rent Limits'!$J$3)","v":""},{"$f":"IF(A308=\"\",\"\",'MHP Family Income & Rent Limits'!$E$4)","v":""},{"$f":"IF(A308=\"\",\"\",'MHP Family Income & Rent Limits'!$C$7)","v":""},{"$f":"IF(A308=\"\",\"\",'MHP Family Income & Rent Limits'!$F$8)","v":""},{"$f":"IF(A308=\"\",\"\",'1. Checklist & Certification'!$G$4)","v":""},{"$f":"IF(A308=\"\",\"\",'1. Checklist & Certification'!$K$39)","v":""},{"$f":"IF(A308=\"\",\"\",'1. Checklist & Certification'!$K$43)","v":""},{"$f":"IF(A308=\"\",\"\",'1. Checklist & Certification'!$K$45)","v":""},{"$f":"IF(A308=\"\",\"\",'1. Checklist & Certification'!$K$49)","v":""},{"$f":"IF(A308=\"\",\"\",'1. Checklist & Certification'!$E$66)","v":""},{"$f":"IF(A308=\"\",\"\",'1. Checklist & Certification'!$E$67)","v":""},{"$f":"IF(A308=\"\",\"\",'1. Checklist & Certification'!$E$68)","v":""},{"$f":"IF(A308=\"\",\"\",'1. Checklist & Certification'!$G$66)","v":""},{"$f":"IF(A308=\"\",\"\",'1. Checklist & Certification'!$H$66)","v":""},{"$f":"IF(A308=\"\",\"\",'1. Checklist & Certification'!$I$66)","v":""},{"$f":"IF(A308=\"\",\"\",'1. Checklist & Certification'!$I$67)","v":""},{"$f":"IF(A308=\"\",\"\",'1. Checklist & Certification'!$I$68)","v":""},null,{"$f":"IF(C308=\"\",\"\",HLOOKUP(C308,'MHP Family Income & Rent Limits'!$E$12:$L$26,2,FALSE))","v":""},{"$f":"IF(C308=\"\",\"\",HLOOKUP(C308,'MHP Family Income & Rent Limits'!$E$12:$L$26,3,FALSE))","v":""},{"$f":"IF(C308=\"\",\"\",HLOOKUP(C308,'MHP Family Income & Rent Limits'!$E$12:$L$26,4,FALSE))","v":""},{"$f":"IF(C308=\"\",\"\",HLOOKUP(C308,'MHP Family Income & Rent Limits'!$E$12:$L$26,5,FALSE))","v":""},{"$f":"IF(C308=\"\",\"\",HLOOKUP(C308,'MHP Family Income & Rent Limits'!$E$12:$L$26,6,FALSE))","v":""},{"$f":"IF(C308=\"\",\"\",HLOOKUP(C308,'MHP Family Income & Rent Limits'!$E$12:$L$26,7,FALSE))","v":""},{"$f":"IF(C308=\"\",\"\",HLOOKUP(C308,'MHP Family Income & Rent Limits'!$E$12:$L$26,8,FALSE))","v":""},{"$f":"IF(C308=\"\",\"\",HLOOKUP(C308,'MHP Family Income & Rent Limits'!$E$12:$L$26,9,FALSE))","v":""},{"$f":"IF(C308=\"\",\"\",HLOOKUP(C308,'MHP Family Income & Rent Limits'!$E$12:$L$26,10,FALSE))","v":""},{"$f":"IF(C308=\"\",\"\",HLOOKUP(C308,'MHP Family Income & Rent Limits'!$E$12:$L$26,11,FALSE))","v":""},{"$f":"IF(C308=\"\",\"\",HLOOKUP(C308,'MHP Family Income & Rent Limits'!$E$12:$L$26,12,FALSE))","v":""},{"$f":"IF(C308=\"\",\"\",HLOOKUP(C308,'MHP Family Income & Rent Limits'!$E$12:$L$26,13,FALSE))","v":""},{"$f":"IF(C308=\"\",\"\",HLOOKUP(C308,'MHP Family Income & Rent Limits'!$E$12:$L$26,14,FALSE))","v":""},{"$f":"IF(C308=\"\",\"\",HLOOKUP(C308,'MHP Family Income & Rent Limits'!$E$12:$L$26,15,FALSE))","v":""}]
[{"$f":"IF('2. Assisted & Restricted Units'!A309=\"\",\"\",'2. Assisted & Restricted Units'!A309)","v":""},{"$f":"IF('2. Assisted & Restricted Units'!B309=\"\",\"\",'2. Assisted & Restricted Units'!B309)","v":""},{"$f":"IF('2. Assisted & Restricted Units'!D309=\"\",\"\",'2. Assisted & Restricted Units'!D309)","v":""},{"$f":"IF('2. Assisted & Restricted Units'!E309=\"\",\"\",'2. Assisted & Restricted Units'!E309)","v":""},{"$f":"IF('2. Assisted & Restricted Units'!H309=\"\",\"\",'2. Assisted & Restricted Units'!H309)","v":""},{"$f":"_xlfn.IFS(E309=\"\",\"\",E309>BO309,$BP$6,E309>BN309,$BO$6,E309>BM309,$BN$6,E309>BL309,$BM$6,E309>BK309,$BL$6,E309>BJ309,$BK$6,E309>BI309,$BJ$6,E309>BH309,$BI$6,E309>BG309,$BH$6,E309>BF309,$BG$6,E309>BE309,$BF$6,E309>BD309,$BE$6,E309>BC309,$BD$6,E309>=0,$BC$6)","v":""},{"$f":"IF('2. Assisted & Restricted Units'!T309=\"\",\"\",'2. Assisted & Restricted Units'!T309)","v":""},{"$f":"IF('2. Assisted & Restricted Units'!I309=\"\",\"\",'2. Assisted & Restricted Units'!I309)","v":""},{"$f":"IF('2. Assisted & Restricted Units'!AP309=\"\",\"\",'2. Assisted & Restricted Units'!AP309)","v":0},{"$f":"IF('2. Assisted & Restricted Units'!AT309=\"\",\"\",'2. Assisted & Restricted Units'!AT309)","v":""},0,{"$f":"IF('2. Assisted & Restricted Units'!AV309=\"\",\"\",'2. Assisted & Restricted Units'!AV309)","v":""},{"$f":"IF('2. Assisted & Restricted Units'!L309=\"\",\"\",'2. Assisted & Restricted Units'!L309)","v":""},{"$f":"IF('2. Assisted & Restricted Units'!M309=\"\",\"\",'2. Assisted & Restricted Units'!M309)","v":""},{"$f":"IF('2. Assisted & Restricted Units'!O309=\"\",\"\",'2. Assisted & Restricted Units'!O309)","v":""},{"$f":"IF('2. Assisted & Restricted Units'!P309=\"\",\"\",'2. Assisted & Restricted Units'!P309)","v":""},{"$f":"IF('2. Assisted & Restricted Units'!Q309=\"\",\"\",'2. Assisted & Restricted Units'!Q309)","v":""},{"$f":"IF('2. Assisted & Restricted Units'!R309=\"\",\"\",'2. Assisted & Restricted Units'!R309)","v":""},{"$f":"IF(A309=\"\",\"\",'1. Checklist & Certification'!$K$1)","v":""},{"$f":"IF(A309=\"\",\"\",'1. Checklist & Certification'!$C$62)","v":""},{"$f":"IF(A309=\"\",\"\",'1. Checklist & Certification'!$K$62)","v":""},{"$f":"IF(A309=\"\",\"\",'1. Checklist & Certification'!$C$6)","v":""},{"$f":"IF(A309=\"\",\"\",'1. Checklist & Certification'!$G$4)","v":""},{"$f":"IF(A309=\"\",\"\",'1. Checklist & Certification'!$C$7)","v":""},{"$f":"IF(A309=\"\",\"\",'1. Checklist & Certification'!$C$8)","v":""},{"$f":"IF(A309=\"\",\"\",'1. Checklist & Certification'!$F$7)","v":""},{"$f":"IF(A309=\"\",\"\",'1. Checklist & Certification'!$F$8)","v":""},{"$f":"IF(A309=\"\",\"\",'1. Checklist & Certification'!$B$9)","v":""},{"$f":"IF(A309=\"\",\"\",'1. Checklist & Certification'!$F$9)","v":""},{"$f":"IF(A309=\"\",\"\",'1. Checklist & Certification'!$C$10)","v":""},{"$f":"IF(A309=\"\",\"\",'1. Checklist & Certification'!$C$11)","v":""},{"$f":"IF(A309=\"\",\"\",'1. Checklist & Certification'!$C$12)","v":""},{"$f":"IF(A309=\"\",\"\",'1. Checklist & Certification'!$B$14)","v":""},{"$f":"IF(A309=\"\",\"\",'1. Checklist & Certification'!$E$14)","v":""},{"$f":"IF(B309=\"\",\"\",'1. Checklist & Certification'!$G$14)","v":""},{"$f":"IF(A309=\"\",\"\",'MHP Family Income & Rent Limits'!$B$3)","v":""},{"$f":"IF(A309=\"\",\"\",'MHP Family Income & Rent Limits'!$J$3)","v":""},{"$f":"IF(A309=\"\",\"\",'MHP Family Income & Rent Limits'!$E$4)","v":""},{"$f":"IF(A309=\"\",\"\",'MHP Family Income & Rent Limits'!$C$7)","v":""},{"$f":"IF(A309=\"\",\"\",'MHP Family Income & Rent Limits'!$F$8)","v":""},{"$f":"IF(A309=\"\",\"\",'1. Checklist & Certification'!$G$4)","v":""},{"$f":"IF(A309=\"\",\"\",'1. Checklist & Certification'!$K$39)","v":""},{"$f":"IF(A309=\"\",\"\",'1. Checklist & Certification'!$K$43)","v":""},{"$f":"IF(A309=\"\",\"\",'1. Checklist & Certification'!$K$45)","v":""},{"$f":"IF(A309=\"\",\"\",'1. Checklist & Certification'!$K$49)","v":""},{"$f":"IF(A309=\"\",\"\",'1. Checklist & Certification'!$E$66)","v":""},{"$f":"IF(A309=\"\",\"\",'1. Checklist & Certification'!$E$67)","v":""},{"$f":"IF(A309=\"\",\"\",'1. Checklist & Certification'!$E$68)","v":""},{"$f":"IF(A309=\"\",\"\",'1. Checklist & Certification'!$G$66)","v":""},{"$f":"IF(A309=\"\",\"\",'1. Checklist & Certification'!$H$66)","v":""},{"$f":"IF(A309=\"\",\"\",'1. Checklist & Certification'!$I$66)","v":""},{"$f":"IF(A309=\"\",\"\",'1. Checklist & Certification'!$I$67)","v":""},{"$f":"IF(A309=\"\",\"\",'1. Checklist & Certification'!$I$68)","v":""},null,{"$f":"IF(C309=\"\",\"\",HLOOKUP(C309,'MHP Family Income & Rent Limits'!$E$12:$L$26,2,FALSE))","v":""},{"$f":"IF(C309=\"\",\"\",HLOOKUP(C309,'MHP Family Income & Rent Limits'!$E$12:$L$26,3,FALSE))","v":""},{"$f":"IF(C309=\"\",\"\",HLOOKUP(C309,'MHP Family Income & Rent Limits'!$E$12:$L$26,4,FALSE))","v":""},{"$f":"IF(C309=\"\",\"\",HLOOKUP(C309,'MHP Family Income & Rent Limits'!$E$12:$L$26,5,FALSE))","v":""},{"$f":"IF(C309=\"\",\"\",HLOOKUP(C309,'MHP Family Income & Rent Limits'!$E$12:$L$26,6,FALSE))","v":""},{"$f":"IF(C309=\"\",\"\",HLOOKUP(C309,'MHP Family Income & Rent Limits'!$E$12:$L$26,7,FALSE))","v":""},{"$f":"IF(C309=\"\",\"\",HLOOKUP(C309,'MHP Family Income & Rent Limits'!$E$12:$L$26,8,FALSE))","v":""},{"$f":"IF(C309=\"\",\"\",HLOOKUP(C309,'MHP Family Income & Rent Limits'!$E$12:$L$26,9,FALSE))","v":""},{"$f":"IF(C309=\"\",\"\",HLOOKUP(C309,'MHP Family Income & Rent Limits'!$E$12:$L$26,10,FALSE))","v":""},{"$f":"IF(C309=\"\",\"\",HLOOKUP(C309,'MHP Family Income & Rent Limits'!$E$12:$L$26,11,FALSE))","v":""},{"$f":"IF(C309=\"\",\"\",HLOOKUP(C309,'MHP Family Income & Rent Limits'!$E$12:$L$26,12,FALSE))","v":""},{"$f":"IF(C309=\"\",\"\",HLOOKUP(C309,'MHP Family Income & Rent Limits'!$E$12:$L$26,13,FALSE))","v":""},{"$f":"IF(C309=\"\",\"\",HLOOKUP(C309,'MHP Family Income & Rent Limits'!$E$12:$L$26,14,FALSE))","v":""},{"$f":"IF(C309=\"\",\"\",HLOOKUP(C309,'MHP Family Income & Rent Limits'!$E$12:$L$26,15,FALSE))","v":""}]
[{"$f":"IF('2. Assisted & Restricted Units'!A310=\"\",\"\",'2. Assisted & Restricted Units'!A310)","v":""},{"$f":"IF('2. Assisted & Restricted Units'!B310=\"\",\"\",'2. Assisted & Restricted Units'!B310)","v":""},{"$f":"IF('2. Assisted & Restricted Units'!D310=\"\",\"\",'2. Assisted & Restricted Units'!D310)","v":""},{"$f":"IF('2. Assisted & Restricted Units'!E310=\"\",\"\",'2. Assisted & Restricted Units'!E310)","v":""},{"$f":"IF('2. Assisted & Restricted Units'!H310=\"\",\"\",'2. Assisted & Restricted Units'!H310)","v":""},{"$f":"_xlfn.IFS(E310=\"\",\"\",E310>BO310,$BP$6,E310>BN310,$BO$6,E310>BM310,$BN$6,E310>BL310,$BM$6,E310>BK310,$BL$6,E310>BJ310,$BK$6,E310>BI310,$BJ$6,E310>BH310,$BI$6,E310>BG310,$BH$6,E310>BF310,$BG$6,E310>BE310,$BF$6,E310>BD310,$BE$6,E310>BC310,$BD$6,E310>=0,$BC$6)","v":""},{"$f":"IF('2. Assisted & Restricted Units'!T310=\"\",\"\",'2. Assisted & Restricted Units'!T310)","v":""},{"$f":"IF('2. Assisted & Restricted Units'!I310=\"\",\"\",'2. Assisted & Restricted Units'!I310)","v":""},{"$f":"IF('2. Assisted & Restricted Units'!AP310=\"\",\"\",'2. Assisted & Restricted Units'!AP310)","v":0},{"$f":"IF('2. Assisted & Restricted Units'!AT310=\"\",\"\",'2. Assisted & Restricted Units'!AT310)","v":""},0,{"$f":"IF('2. Assisted & Restricted Units'!AV310=\"\",\"\",'2. Assisted & Restricted Units'!AV310)","v":""},{"$f":"IF('2. Assisted & Restricted Units'!L310=\"\",\"\",'2. Assisted & Restricted Units'!L310)","v":""},{"$f":"IF('2. Assisted & Restricted Units'!M310=\"\",\"\",'2. Assisted & Restricted Units'!M310)","v":""},{"$f":"IF('2. Assisted & Restricted Units'!O310=\"\",\"\",'2. Assisted & Restricted Units'!O310)","v":""},{"$f":"IF('2. Assisted & Restricted Units'!P310=\"\",\"\",'2. Assisted & Restricted Units'!P310)","v":""},{"$f":"IF('2. Assisted & Restricted Units'!Q310=\"\",\"\",'2. Assisted & Restricted Units'!Q310)","v":""},{"$f":"IF('2. Assisted & Restricted Units'!R310=\"\",\"\",'2. Assisted & Restricted Units'!R310)","v":""},{"$f":"IF(A310=\"\",\"\",'1. Checklist & Certification'!$K$1)","v":""},{"$f":"IF(A310=\"\",\"\",'1. Checklist & Certification'!$C$62)","v":""},{"$f":"IF(A310=\"\",\"\",'1. Checklist & Certification'!$K$62)","v":""},{"$f":"IF(A310=\"\",\"\",'1. Checklist & Certification'!$C$6)","v":""},{"$f":"IF(A310=\"\",\"\",'1. Checklist & Certification'!$G$4)","v":""},{"$f":"IF(A310=\"\",\"\",'1. Checklist & Certification'!$C$7)","v":""},{"$f":"IF(A310=\"\",\"\",'1. Checklist & Certification'!$C$8)","v":""},{"$f":"IF(A310=\"\",\"\",'1. Checklist & Certification'!$F$7)","v":""},{"$f":"IF(A310=\"\",\"\",'1. Checklist & Certification'!$F$8)","v":""},{"$f":"IF(A310=\"\",\"\",'1. Checklist & Certification'!$B$9)","v":""},{"$f":"IF(A310=\"\",\"\",'1. Checklist & Certification'!$F$9)","v":""},{"$f":"IF(A310=\"\",\"\",'1. Checklist & Certification'!$C$10)","v":""},{"$f":"IF(A310=\"\",\"\",'1. Checklist & Certification'!$C$11)","v":""},{"$f":"IF(A310=\"\",\"\",'1. Checklist & Certification'!$C$12)","v":""},{"$f":"IF(A310=\"\",\"\",'1. Checklist & Certification'!$B$14)","v":""},{"$f":"IF(A310=\"\",\"\",'1. Checklist & Certification'!$E$14)","v":""},{"$f":"IF(B310=\"\",\"\",'1. Checklist & Certification'!$G$14)","v":""},{"$f":"IF(A310=\"\",\"\",'MHP Family Income & Rent Limits'!$B$3)","v":""},{"$f":"IF(A310=\"\",\"\",'MHP Family Income & Rent Limits'!$J$3)","v":""},{"$f":"IF(A310=\"\",\"\",'MHP Family Income & Rent Limits'!$E$4)","v":""},{"$f":"IF(A310=\"\",\"\",'MHP Family Income & Rent Limits'!$C$7)","v":""},{"$f":"IF(A310=\"\",\"\",'MHP Family Income & Rent Limits'!$F$8)","v":""},{"$f":"IF(A310=\"\",\"\",'1. Checklist & Certification'!$G$4)","v":""},{"$f":"IF(A310=\"\",\"\",'1. Checklist & Certification'!$K$39)","v":""},{"$f":"IF(A310=\"\",\"\",'1. Checklist & Certification'!$K$43)","v":""},{"$f":"IF(A310=\"\",\"\",'1. Checklist & Certification'!$K$45)","v":""},{"$f":"IF(A310=\"\",\"\",'1. Checklist & Certification'!$K$49)","v":""},{"$f":"IF(A310=\"\",\"\",'1. Checklist & Certification'!$E$66)","v":""},{"$f":"IF(A310=\"\",\"\",'1. Checklist & Certification'!$E$67)","v":""},{"$f":"IF(A310=\"\",\"\",'1. Checklist & Certification'!$E$68)","v":""},{"$f":"IF(A310=\"\",\"\",'1. Checklist & Certification'!$G$66)","v":""},{"$f":"IF(A310=\"\",\"\",'1. Checklist & Certification'!$H$66)","v":""},{"$f":"IF(A310=\"\",\"\",'1. Checklist & Certification'!$I$66)","v":""},{"$f":"IF(A310=\"\",\"\",'1. Checklist & Certification'!$I$67)","v":""},{"$f":"IF(A310=\"\",\"\",'1. Checklist & Certification'!$I$68)","v":""},null,{"$f":"IF(C310=\"\",\"\",HLOOKUP(C310,'MHP Family Income & Rent Limits'!$E$12:$L$26,2,FALSE))","v":""},{"$f":"IF(C310=\"\",\"\",HLOOKUP(C310,'MHP Family Income & Rent Limits'!$E$12:$L$26,3,FALSE))","v":""},{"$f":"IF(C310=\"\",\"\",HLOOKUP(C310,'MHP Family Income & Rent Limits'!$E$12:$L$26,4,FALSE))","v":""},{"$f":"IF(C310=\"\",\"\",HLOOKUP(C310,'MHP Family Income & Rent Limits'!$E$12:$L$26,5,FALSE))","v":""},{"$f":"IF(C310=\"\",\"\",HLOOKUP(C310,'MHP Family Income & Rent Limits'!$E$12:$L$26,6,FALSE))","v":""},{"$f":"IF(C310=\"\",\"\",HLOOKUP(C310,'MHP Family Income & Rent Limits'!$E$12:$L$26,7,FALSE))","v":""},{"$f":"IF(C310=\"\",\"\",HLOOKUP(C310,'MHP Family Income & Rent Limits'!$E$12:$L$26,8,FALSE))","v":""},{"$f":"IF(C310=\"\",\"\",HLOOKUP(C310,'MHP Family Income & Rent Limits'!$E$12:$L$26,9,FALSE))","v":""},{"$f":"IF(C310=\"\",\"\",HLOOKUP(C310,'MHP Family Income & Rent Limits'!$E$12:$L$26,10,FALSE))","v":""},{"$f":"IF(C310=\"\",\"\",HLOOKUP(C310,'MHP Family Income & Rent Limits'!$E$12:$L$26,11,FALSE))","v":""},{"$f":"IF(C310=\"\",\"\",HLOOKUP(C310,'MHP Family Income & Rent Limits'!$E$12:$L$26,12,FALSE))","v":""},{"$f":"IF(C310=\"\",\"\",HLOOKUP(C310,'MHP Family Income & Rent Limits'!$E$12:$L$26,13,FALSE))","v":""},{"$f":"IF(C310=\"\",\"\",HLOOKUP(C310,'MHP Family Income & Rent Limits'!$E$12:$L$26,14,FALSE))","v":""},{"$f":"IF(C310=\"\",\"\",HLOOKUP(C310,'MHP Family Income & Rent Limits'!$E$12:$L$26,15,FALSE))","v":""}]
[{"$f":"IF('2. Assisted & Restricted Units'!A311=\"\",\"\",'2. Assisted & Restricted Units'!A311)","v":""},{"$f":"IF('2. Assisted & Restricted Units'!B311=\"\",\"\",'2. Assisted & Restricted Units'!B311)","v":""},{"$f":"IF('2. Assisted & Restricted Units'!D311=\"\",\"\",'2. Assisted & Restricted Units'!D311)","v":""},{"$f":"IF('2. Assisted & Restricted Units'!E311=\"\",\"\",'2. Assisted & Restricted Units'!E311)","v":""},{"$f":"IF('2. Assisted & Restricted Units'!H311=\"\",\"\",'2. Assisted & Restricted Units'!H311)","v":""},{"$f":"_xlfn.IFS(E311=\"\",\"\",E311>BO311,$BP$6,E311>BN311,$BO$6,E311>BM311,$BN$6,E311>BL311,$BM$6,E311>BK311,$BL$6,E311>BJ311,$BK$6,E311>BI311,$BJ$6,E311>BH311,$BI$6,E311>BG311,$BH$6,E311>BF311,$BG$6,E311>BE311,$BF$6,E311>BD311,$BE$6,E311>BC311,$BD$6,E311>=0,$BC$6)","v":""},{"$f":"IF('2. Assisted & Restricted Units'!T311=\"\",\"\",'2. Assisted & Restricted Units'!T311)","v":""},{"$f":"IF('2. Assisted & Restricted Units'!I311=\"\",\"\",'2. Assisted & Restricted Units'!I311)","v":""},{"$f":"IF('2. Assisted & Restricted Units'!AP311=\"\",\"\",'2. Assisted & Restricted Units'!AP311)","v":0},{"$f":"IF('2. Assisted & Restricted Units'!AT311=\"\",\"\",'2. Assisted & Restricted Units'!AT311)","v":""},0,{"$f":"IF('2. Assisted & Restricted Units'!AV311=\"\",\"\",'2. Assisted & Restricted Units'!AV311)","v":""},{"$f":"IF('2. Assisted & Restricted Units'!L311=\"\",\"\",'2. Assisted & Restricted Units'!L311)","v":""},{"$f":"IF('2. Assisted & Restricted Units'!M311=\"\",\"\",'2. Assisted & Restricted Units'!M311)","v":""},{"$f":"IF('2. Assisted & Restricted Units'!O311=\"\",\"\",'2. Assisted & Restricted Units'!O311)","v":""},{"$f":"IF('2. Assisted & Restricted Units'!P311=\"\",\"\",'2. Assisted & Restricted Units'!P311)","v":""},{"$f":"IF('2. Assisted & Restricted Units'!Q311=\"\",\"\",'2. Assisted & Restricted Units'!Q311)","v":""},{"$f":"IF('2. Assisted & Restricted Units'!R311=\"\",\"\",'2. Assisted & Restricted Units'!R311)","v":""},{"$f":"IF(A311=\"\",\"\",'1. Checklist & Certification'!$K$1)","v":""},{"$f":"IF(A311=\"\",\"\",'1. Checklist & Certification'!$C$62)","v":""},{"$f":"IF(A311=\"\",\"\",'1. Checklist & Certification'!$K$62)","v":""},{"$f":"IF(A311=\"\",\"\",'1. Checklist & Certification'!$C$6)","v":""},{"$f":"IF(A311=\"\",\"\",'1. Checklist & Certification'!$G$4)","v":""},{"$f":"IF(A311=\"\",\"\",'1. Checklist & Certification'!$C$7)","v":""},{"$f":"IF(A311=\"\",\"\",'1. Checklist & Certification'!$C$8)","v":""},{"$f":"IF(A311=\"\",\"\",'1. Checklist & Certification'!$F$7)","v":""},{"$f":"IF(A311=\"\",\"\",'1. Checklist & Certification'!$F$8)","v":""},{"$f":"IF(A311=\"\",\"\",'1. Checklist & Certification'!$B$9)","v":""},{"$f":"IF(A311=\"\",\"\",'1. Checklist & Certification'!$F$9)","v":""},{"$f":"IF(A311=\"\",\"\",'1. Checklist & Certification'!$C$10)","v":""},{"$f":"IF(A311=\"\",\"\",'1. Checklist & Certification'!$C$11)","v":""},{"$f":"IF(A311=\"\",\"\",'1. Checklist & Certification'!$C$12)","v":""},{"$f":"IF(A311=\"\",\"\",'1. Checklist & Certification'!$B$14)","v":""},{"$f":"IF(A311=\"\",\"\",'1. Checklist & Certification'!$E$14)","v":""},{"$f":"IF(B311=\"\",\"\",'1. Checklist & Certification'!$G$14)","v":""},{"$f":"IF(A311=\"\",\"\",'MHP Family Income & Rent Limits'!$B$3)","v":""},{"$f":"IF(A311=\"\",\"\",'MHP Family Income & Rent Limits'!$J$3)","v":""},{"$f":"IF(A311=\"\",\"\",'MHP Family Income & Rent Limits'!$E$4)","v":""},{"$f":"IF(A311=\"\",\"\",'MHP Family Income & Rent Limits'!$C$7)","v":""},{"$f":"IF(A311=\"\",\"\",'MHP Family Income & Rent Limits'!$F$8)","v":""},{"$f":"IF(A311=\"\",\"\",'1. Checklist & Certification'!$G$4)","v":""},{"$f":"IF(A311=\"\",\"\",'1. Checklist & Certification'!$K$39)","v":""},{"$f":"IF(A311=\"\",\"\",'1. Checklist & Certification'!$K$43)","v":""},{"$f":"IF(A311=\"\",\"\",'1. Checklist & Certification'!$K$45)","v":""},{"$f":"IF(A311=\"\",\"\",'1. Checklist & Certification'!$K$49)","v":""},{"$f":"IF(A311=\"\",\"\",'1. Checklist & Certification'!$E$66)","v":""},{"$f":"IF(A311=\"\",\"\",'1. Checklist & Certification'!$E$67)","v":""},{"$f":"IF(A311=\"\",\"\",'1. Checklist & Certification'!$E$68)","v":""},{"$f":"IF(A311=\"\",\"\",'1. Checklist & Certification'!$G$66)","v":""},{"$f":"IF(A311=\"\",\"\",'1. Checklist & Certification'!$H$66)","v":""},{"$f":"IF(A311=\"\",\"\",'1. Checklist & Certification'!$I$66)","v":""},{"$f":"IF(A311=\"\",\"\",'1. Checklist & Certification'!$I$67)","v":""},{"$f":"IF(A311=\"\",\"\",'1. Checklist & Certification'!$I$68)","v":""},null,{"$f":"IF(C311=\"\",\"\",HLOOKUP(C311,'MHP Family Income & Rent Limits'!$E$12:$L$26,2,FALSE))","v":""},{"$f":"IF(C311=\"\",\"\",HLOOKUP(C311,'MHP Family Income & Rent Limits'!$E$12:$L$26,3,FALSE))","v":""},{"$f":"IF(C311=\"\",\"\",HLOOKUP(C311,'MHP Family Income & Rent Limits'!$E$12:$L$26,4,FALSE))","v":""},{"$f":"IF(C311=\"\",\"\",HLOOKUP(C311,'MHP Family Income & Rent Limits'!$E$12:$L$26,5,FALSE))","v":""},{"$f":"IF(C311=\"\",\"\",HLOOKUP(C311,'MHP Family Income & Rent Limits'!$E$12:$L$26,6,FALSE))","v":""},{"$f":"IF(C311=\"\",\"\",HLOOKUP(C311,'MHP Family Income & Rent Limits'!$E$12:$L$26,7,FALSE))","v":""},{"$f":"IF(C311=\"\",\"\",HLOOKUP(C311,'MHP Family Income & Rent Limits'!$E$12:$L$26,8,FALSE))","v":""},{"$f":"IF(C311=\"\",\"\",HLOOKUP(C311,'MHP Family Income & Rent Limits'!$E$12:$L$26,9,FALSE))","v":""},{"$f":"IF(C311=\"\",\"\",HLOOKUP(C311,'MHP Family Income & Rent Limits'!$E$12:$L$26,10,FALSE))","v":""},{"$f":"IF(C311=\"\",\"\",HLOOKUP(C311,'MHP Family Income & Rent Limits'!$E$12:$L$26,11,FALSE))","v":""},{"$f":"IF(C311=\"\",\"\",HLOOKUP(C311,'MHP Family Income & Rent Limits'!$E$12:$L$26,12,FALSE))","v":""},{"$f":"IF(C311=\"\",\"\",HLOOKUP(C311,'MHP Family Income & Rent Limits'!$E$12:$L$26,13,FALSE))","v":""},{"$f":"IF(C311=\"\",\"\",HLOOKUP(C311,'MHP Family Income & Rent Limits'!$E$12:$L$26,14,FALSE))","v":""},{"$f":"IF(C311=\"\",\"\",HLOOKUP(C311,'MHP Family Income & Rent Limits'!$E$12:$L$26,15,FALSE))","v":""}]
[{"$f":"IF('2. Assisted & Restricted Units'!A312=\"\",\"\",'2. Assisted & Restricted Units'!A312)","v":""},{"$f":"IF('2. Assisted & Restricted Units'!B312=\"\",\"\",'2. Assisted & Restricted Units'!B312)","v":""},{"$f":"IF('2. Assisted & Restricted Units'!D312=\"\",\"\",'2. Assisted & Restricted Units'!D312)","v":""},{"$f":"IF('2. Assisted & Restricted Units'!E312=\"\",\"\",'2. Assisted & Restricted Units'!E312)","v":""},{"$f":"IF('2. Assisted & Restricted Units'!H312=\"\",\"\",'2. Assisted & Restricted Units'!H312)","v":""},{"$f":"_xlfn.IFS(E312=\"\",\"\",E312>BO312,$BP$6,E312>BN312,$BO$6,E312>BM312,$BN$6,E312>BL312,$BM$6,E312>BK312,$BL$6,E312>BJ312,$BK$6,E312>BI312,$BJ$6,E312>BH312,$BI$6,E312>BG312,$BH$6,E312>BF312,$BG$6,E312>BE312,$BF$6,E312>BD312,$BE$6,E312>BC312,$BD$6,E312>=0,$BC$6)","v":""},{"$f":"IF('2. Assisted & Restricted Units'!T312=\"\",\"\",'2. Assisted & Restricted Units'!T312)","v":""},{"$f":"IF('2. Assisted & Restricted Units'!I312=\"\",\"\",'2. Assisted & Restricted Units'!I312)","v":""},{"$f":"IF('2. Assisted & Restricted Units'!AP312=\"\",\"\",'2. Assisted & Restricted Units'!AP312)","v":0},{"$f":"IF('2. Assisted & Restricted Units'!AT312=\"\",\"\",'2. Assisted & Restricted Units'!AT312)","v":""},0,{"$f":"IF('2. Assisted & Restricted Units'!AV312=\"\",\"\",'2. Assisted & Restricted Units'!AV312)","v":""},{"$f":"IF('2. Assisted & Restricted Units'!L312=\"\",\"\",'2. Assisted & Restricted Units'!L312)","v":""},{"$f":"IF('2. Assisted & Restricted Units'!M312=\"\",\"\",'2. Assisted & Restricted Units'!M312)","v":""},{"$f":"IF('2. Assisted & Restricted Units'!O312=\"\",\"\",'2. Assisted & Restricted Units'!O312)","v":""},{"$f":"IF('2. Assisted & Restricted Units'!P312=\"\",\"\",'2. Assisted & Restricted Units'!P312)","v":""},{"$f":"IF('2. Assisted & Restricted Units'!Q312=\"\",\"\",'2. Assisted & Restricted Units'!Q312)","v":""},{"$f":"IF('2. Assisted & Restricted Units'!R312=\"\",\"\",'2. Assisted & Restricted Units'!R312)","v":""},{"$f":"IF(A312=\"\",\"\",'1. Checklist & Certification'!$K$1)","v":""},{"$f":"IF(A312=\"\",\"\",'1. Checklist & Certification'!$C$62)","v":""},{"$f":"IF(A312=\"\",\"\",'1. Checklist & Certification'!$K$62)","v":""},{"$f":"IF(A312=\"\",\"\",'1. Checklist & Certification'!$C$6)","v":""},{"$f":"IF(A312=\"\",\"\",'1. Checklist & Certification'!$G$4)","v":""},{"$f":"IF(A312=\"\",\"\",'1. Checklist & Certification'!$C$7)","v":""},{"$f":"IF(A312=\"\",\"\",'1. Checklist & Certification'!$C$8)","v":""},{"$f":"IF(A312=\"\",\"\",'1. Checklist & Certification'!$F$7)","v":""},{"$f":"IF(A312=\"\",\"\",'1. Checklist & Certification'!$F$8)","v":""},{"$f":"IF(A312=\"\",\"\",'1. Checklist & Certification'!$B$9)","v":""},{"$f":"IF(A312=\"\",\"\",'1. Checklist & Certification'!$F$9)","v":""},{"$f":"IF(A312=\"\",\"\",'1. Checklist & Certification'!$C$10)","v":""},{"$f":"IF(A312=\"\",\"\",'1. Checklist & Certification'!$C$11)","v":""},{"$f":"IF(A312=\"\",\"\",'1. Checklist & Certification'!$C$12)","v":""},{"$f":"IF(A312=\"\",\"\",'1. Checklist & Certification'!$B$14)","v":""},{"$f":"IF(A312=\"\",\"\",'1. Checklist & Certification'!$E$14)","v":""},{"$f":"IF(B312=\"\",\"\",'1. Checklist & Certification'!$G$14)","v":""},{"$f":"IF(A312=\"\",\"\",'MHP Family Income & Rent Limits'!$B$3)","v":""},{"$f":"IF(A312=\"\",\"\",'MHP Family Income & Rent Limits'!$J$3)","v":""},{"$f":"IF(A312=\"\",\"\",'MHP Family Income & Rent Limits'!$E$4)","v":""},{"$f":"IF(A312=\"\",\"\",'MHP Family Income & Rent Limits'!$C$7)","v":""},{"$f":"IF(A312=\"\",\"\",'MHP Family Income & Rent Limits'!$F$8)","v":""},{"$f":"IF(A312=\"\",\"\",'1. Checklist & Certification'!$G$4)","v":""},{"$f":"IF(A312=\"\",\"\",'1. Checklist & Certification'!$K$39)","v":""},{"$f":"IF(A312=\"\",\"\",'1. Checklist & Certification'!$K$43)","v":""},{"$f":"IF(A312=\"\",\"\",'1. Checklist & Certification'!$K$45)","v":""},{"$f":"IF(A312=\"\",\"\",'1. Checklist & Certification'!$K$49)","v":""},{"$f":"IF(A312=\"\",\"\",'1. Checklist & Certification'!$E$66)","v":""},{"$f":"IF(A312=\"\",\"\",'1. Checklist & Certification'!$E$67)","v":""},{"$f":"IF(A312=\"\",\"\",'1. Checklist & Certification'!$E$68)","v":""},{"$f":"IF(A312=\"\",\"\",'1. Checklist & Certification'!$G$66)","v":""},{"$f":"IF(A312=\"\",\"\",'1. Checklist & Certification'!$H$66)","v":""},{"$f":"IF(A312=\"\",\"\",'1. Checklist & Certification'!$I$66)","v":""},{"$f":"IF(A312=\"\",\"\",'1. Checklist & Certification'!$I$67)","v":""},{"$f":"IF(A312=\"\",\"\",'1. Checklist & Certification'!$I$68)","v":""},null,{"$f":"IF(C312=\"\",\"\",HLOOKUP(C312,'MHP Family Income & Rent Limits'!$E$12:$L$26,2,FALSE))","v":""},{"$f":"IF(C312=\"\",\"\",HLOOKUP(C312,'MHP Family Income & Rent Limits'!$E$12:$L$26,3,FALSE))","v":""},{"$f":"IF(C312=\"\",\"\",HLOOKUP(C312,'MHP Family Income & Rent Limits'!$E$12:$L$26,4,FALSE))","v":""},{"$f":"IF(C312=\"\",\"\",HLOOKUP(C312,'MHP Family Income & Rent Limits'!$E$12:$L$26,5,FALSE))","v":""},{"$f":"IF(C312=\"\",\"\",HLOOKUP(C312,'MHP Family Income & Rent Limits'!$E$12:$L$26,6,FALSE))","v":""},{"$f":"IF(C312=\"\",\"\",HLOOKUP(C312,'MHP Family Income & Rent Limits'!$E$12:$L$26,7,FALSE))","v":""},{"$f":"IF(C312=\"\",\"\",HLOOKUP(C312,'MHP Family Income & Rent Limits'!$E$12:$L$26,8,FALSE))","v":""},{"$f":"IF(C312=\"\",\"\",HLOOKUP(C312,'MHP Family Income & Rent Limits'!$E$12:$L$26,9,FALSE))","v":""},{"$f":"IF(C312=\"\",\"\",HLOOKUP(C312,'MHP Family Income & Rent Limits'!$E$12:$L$26,10,FALSE))","v":""},{"$f":"IF(C312=\"\",\"\",HLOOKUP(C312,'MHP Family Income & Rent Limits'!$E$12:$L$26,11,FALSE))","v":""},{"$f":"IF(C312=\"\",\"\",HLOOKUP(C312,'MHP Family Income & Rent Limits'!$E$12:$L$26,12,FALSE))","v":""},{"$f":"IF(C312=\"\",\"\",HLOOKUP(C312,'MHP Family Income & Rent Limits'!$E$12:$L$26,13,FALSE))","v":""},{"$f":"IF(C312=\"\",\"\",HLOOKUP(C312,'MHP Family Income & Rent Limits'!$E$12:$L$26,14,FALSE))","v":""},{"$f":"IF(C312=\"\",\"\",HLOOKUP(C312,'MHP Family Income & Rent Limits'!$E$12:$L$26,15,FALSE))","v":""}]
[{"$f":"IF('2. Assisted & Restricted Units'!A313=\"\",\"\",'2. Assisted & Restricted Units'!A313)","v":""},{"$f":"IF('2. Assisted & Restricted Units'!B313=\"\",\"\",'2. Assisted & Restricted Units'!B313)","v":""},{"$f":"IF('2. Assisted & Restricted Units'!D313=\"\",\"\",'2. Assisted & Restricted Units'!D313)","v":""},{"$f":"IF('2. Assisted & Restricted Units'!E313=\"\",\"\",'2. Assisted & Restricted Units'!E313)","v":""},{"$f":"IF('2. Assisted & Restricted Units'!H313=\"\",\"\",'2. Assisted & Restricted Units'!H313)","v":""},{"$f":"_xlfn.IFS(E313=\"\",\"\",E313>BO313,$BP$6,E313>BN313,$BO$6,E313>BM313,$BN$6,E313>BL313,$BM$6,E313>BK313,$BL$6,E313>BJ313,$BK$6,E313>BI313,$BJ$6,E313>BH313,$BI$6,E313>BG313,$BH$6,E313>BF313,$BG$6,E313>BE313,$BF$6,E313>BD313,$BE$6,E313>BC313,$BD$6,E313>=0,$BC$6)","v":""},{"$f":"IF('2. Assisted & Restricted Units'!T313=\"\",\"\",'2. Assisted & Restricted Units'!T313)","v":""},{"$f":"IF('2. Assisted & Restricted Units'!I313=\"\",\"\",'2. Assisted & Restricted Units'!I313)","v":""},{"$f":"IF('2. Assisted & Restricted Units'!AP313=\"\",\"\",'2. Assisted & Restricted Units'!AP313)","v":0},{"$f":"IF('2. Assisted & Restricted Units'!AT313=\"\",\"\",'2. Assisted & Restricted Units'!AT313)","v":""},0,{"$f":"IF('2. Assisted & Restricted Units'!AV313=\"\",\"\",'2. Assisted & Restricted Units'!AV313)","v":""},{"$f":"IF('2. Assisted & Restricted Units'!L313=\"\",\"\",'2. Assisted & Restricted Units'!L313)","v":""},{"$f":"IF('2. Assisted & Restricted Units'!M313=\"\",\"\",'2. Assisted & Restricted Units'!M313)","v":""},{"$f":"IF('2. Assisted & Restricted Units'!O313=\"\",\"\",'2. Assisted & Restricted Units'!O313)","v":""},{"$f":"IF('2. Assisted & Restricted Units'!P313=\"\",\"\",'2. Assisted & Restricted Units'!P313)","v":""},{"$f":"IF('2. Assisted & Restricted Units'!Q313=\"\",\"\",'2. Assisted & Restricted Units'!Q313)","v":""},{"$f":"IF('2. Assisted & Restricted Units'!R313=\"\",\"\",'2. Assisted & Restricted Units'!R313)","v":""},{"$f":"IF(A313=\"\",\"\",'1. Checklist & Certification'!$K$1)","v":""},{"$f":"IF(A313=\"\",\"\",'1. Checklist & Certification'!$C$62)","v":""},{"$f":"IF(A313=\"\",\"\",'1. Checklist & Certification'!$K$62)","v":""},{"$f":"IF(A313=\"\",\"\",'1. Checklist & Certification'!$C$6)","v":""},{"$f":"IF(A313=\"\",\"\",'1. Checklist & Certification'!$G$4)","v":""},{"$f":"IF(A313=\"\",\"\",'1. Checklist & Certification'!$C$7)","v":""},{"$f":"IF(A313=\"\",\"\",'1. Checklist & Certification'!$C$8)","v":""},{"$f":"IF(A313=\"\",\"\",'1. Checklist & Certification'!$F$7)","v":""},{"$f":"IF(A313=\"\",\"\",'1. Checklist & Certification'!$F$8)","v":""},{"$f":"IF(A313=\"\",\"\",'1. Checklist & Certification'!$B$9)","v":""},{"$f":"IF(A313=\"\",\"\",'1. Checklist & Certification'!$F$9)","v":""},{"$f":"IF(A313=\"\",\"\",'1. Checklist & Certification'!$C$10)","v":""},{"$f":"IF(A313=\"\",\"\",'1. Checklist & Certification'!$C$11)","v":""},{"$f":"IF(A313=\"\",\"\",'1. Checklist & Certification'!$C$12)","v":""},{"$f":"IF(A313=\"\",\"\",'1. Checklist & Certification'!$B$14)","v":""},{"$f":"IF(A313=\"\",\"\",'1. Checklist & Certification'!$E$14)","v":""},{"$f":"IF(B313=\"\",\"\",'1. Checklist & Certification'!$G$14)","v":""},{"$f":"IF(A313=\"\",\"\",'MHP Family Income & Rent Limits'!$B$3)","v":""},{"$f":"IF(A313=\"\",\"\",'MHP Family Income & Rent Limits'!$J$3)","v":""},{"$f":"IF(A313=\"\",\"\",'MHP Family Income & Rent Limits'!$E$4)","v":""},{"$f":"IF(A313=\"\",\"\",'MHP Family Income & Rent Limits'!$C$7)","v":""},{"$f":"IF(A313=\"\",\"\",'MHP Family Income & Rent Limits'!$F$8)","v":""},{"$f":"IF(A313=\"\",\"\",'1. Checklist & Certification'!$G$4)","v":""},{"$f":"IF(A313=\"\",\"\",'1. Checklist & Certification'!$K$39)","v":""},{"$f":"IF(A313=\"\",\"\",'1. Checklist & Certification'!$K$43)","v":""},{"$f":"IF(A313=\"\",\"\",'1. Checklist & Certification'!$K$45)","v":""},{"$f":"IF(A313=\"\",\"\",'1. Checklist & Certification'!$K$49)","v":""},{"$f":"IF(A313=\"\",\"\",'1. Checklist & Certification'!$E$66)","v":""},{"$f":"IF(A313=\"\",\"\",'1. Checklist & Certification'!$E$67)","v":""},{"$f":"IF(A313=\"\",\"\",'1. Checklist & Certification'!$E$68)","v":""},{"$f":"IF(A313=\"\",\"\",'1. Checklist & Certification'!$G$66)","v":""},{"$f":"IF(A313=\"\",\"\",'1. Checklist & Certification'!$H$66)","v":""},{"$f":"IF(A313=\"\",\"\",'1. Checklist & Certification'!$I$66)","v":""},{"$f":"IF(A313=\"\",\"\",'1. Checklist & Certification'!$I$67)","v":""},{"$f":"IF(A313=\"\",\"\",'1. Checklist & Certification'!$I$68)","v":""},null,{"$f":"IF(C313=\"\",\"\",HLOOKUP(C313,'MHP Family Income & Rent Limits'!$E$12:$L$26,2,FALSE))","v":""},{"$f":"IF(C313=\"\",\"\",HLOOKUP(C313,'MHP Family Income & Rent Limits'!$E$12:$L$26,3,FALSE))","v":""},{"$f":"IF(C313=\"\",\"\",HLOOKUP(C313,'MHP Family Income & Rent Limits'!$E$12:$L$26,4,FALSE))","v":""},{"$f":"IF(C313=\"\",\"\",HLOOKUP(C313,'MHP Family Income & Rent Limits'!$E$12:$L$26,5,FALSE))","v":""},{"$f":"IF(C313=\"\",\"\",HLOOKUP(C313,'MHP Family Income & Rent Limits'!$E$12:$L$26,6,FALSE))","v":""},{"$f":"IF(C313=\"\",\"\",HLOOKUP(C313,'MHP Family Income & Rent Limits'!$E$12:$L$26,7,FALSE))","v":""},{"$f":"IF(C313=\"\",\"\",HLOOKUP(C313,'MHP Family Income & Rent Limits'!$E$12:$L$26,8,FALSE))","v":""},{"$f":"IF(C313=\"\",\"\",HLOOKUP(C313,'MHP Family Income & Rent Limits'!$E$12:$L$26,9,FALSE))","v":""},{"$f":"IF(C313=\"\",\"\",HLOOKUP(C313,'MHP Family Income & Rent Limits'!$E$12:$L$26,10,FALSE))","v":""},{"$f":"IF(C313=\"\",\"\",HLOOKUP(C313,'MHP Family Income & Rent Limits'!$E$12:$L$26,11,FALSE))","v":""},{"$f":"IF(C313=\"\",\"\",HLOOKUP(C313,'MHP Family Income & Rent Limits'!$E$12:$L$26,12,FALSE))","v":""},{"$f":"IF(C313=\"\",\"\",HLOOKUP(C313,'MHP Family Income & Rent Limits'!$E$12:$L$26,13,FALSE))","v":""},{"$f":"IF(C313=\"\",\"\",HLOOKUP(C313,'MHP Family Income & Rent Limits'!$E$12:$L$26,14,FALSE))","v":""},{"$f":"IF(C313=\"\",\"\",HLOOKUP(C313,'MHP Family Income & Rent Limits'!$E$12:$L$26,15,FALSE))","v":""}]
[{"$f":"IF('2. Assisted & Restricted Units'!A314=\"\",\"\",'2. Assisted & Restricted Units'!A314)","v":""},{"$f":"IF('2. Assisted & Restricted Units'!B314=\"\",\"\",'2. Assisted & Restricted Units'!B314)","v":""},{"$f":"IF('2. Assisted & Restricted Units'!D314=\"\",\"\",'2. Assisted & Restricted Units'!D314)","v":""},{"$f":"IF('2. Assisted & Restricted Units'!E314=\"\",\"\",'2. Assisted & Restricted Units'!E314)","v":""},{"$f":"IF('2. Assisted & Restricted Units'!H314=\"\",\"\",'2. Assisted & Restricted Units'!H314)","v":""},{"$f":"_xlfn.IFS(E314=\"\",\"\",E314>BO314,$BP$6,E314>BN314,$BO$6,E314>BM314,$BN$6,E314>BL314,$BM$6,E314>BK314,$BL$6,E314>BJ314,$BK$6,E314>BI314,$BJ$6,E314>BH314,$BI$6,E314>BG314,$BH$6,E314>BF314,$BG$6,E314>BE314,$BF$6,E314>BD314,$BE$6,E314>BC314,$BD$6,E314>=0,$BC$6)","v":""},{"$f":"IF('2. Assisted & Restricted Units'!T314=\"\",\"\",'2. Assisted & Restricted Units'!T314)","v":""},{"$f":"IF('2. Assisted & Restricted Units'!I314=\"\",\"\",'2. Assisted & Restricted Units'!I314)","v":""},{"$f":"IF('2. Assisted & Restricted Units'!AP314=\"\",\"\",'2. Assisted & Restricted Units'!AP314)","v":0},{"$f":"IF('2. Assisted & Restricted Units'!AT314=\"\",\"\",'2. Assisted & Restricted Units'!AT314)","v":""},0,{"$f":"IF('2. Assisted & Restricted Units'!AV314=\"\",\"\",'2. Assisted & Restricted Units'!AV314)","v":""},{"$f":"IF('2. Assisted & Restricted Units'!L314=\"\",\"\",'2. Assisted & Restricted Units'!L314)","v":""},{"$f":"IF('2. Assisted & Restricted Units'!M314=\"\",\"\",'2. Assisted & Restricted Units'!M314)","v":""},{"$f":"IF('2. Assisted & Restricted Units'!O314=\"\",\"\",'2. Assisted & Restricted Units'!O314)","v":""},{"$f":"IF('2. Assisted & Restricted Units'!P314=\"\",\"\",'2. Assisted & Restricted Units'!P314)","v":""},{"$f":"IF('2. Assisted & Restricted Units'!Q314=\"\",\"\",'2. Assisted & Restricted Units'!Q314)","v":""},{"$f":"IF('2. Assisted & Restricted Units'!R314=\"\",\"\",'2. Assisted & Restricted Units'!R314)","v":""},{"$f":"IF(A314=\"\",\"\",'1. Checklist & Certification'!$K$1)","v":""},{"$f":"IF(A314=\"\",\"\",'1. Checklist & Certification'!$C$62)","v":""},{"$f":"IF(A314=\"\",\"\",'1. Checklist & Certification'!$K$62)","v":""},{"$f":"IF(A314=\"\",\"\",'1. Checklist & Certification'!$C$6)","v":""},{"$f":"IF(A314=\"\",\"\",'1. Checklist & Certification'!$G$4)","v":""},{"$f":"IF(A314=\"\",\"\",'1. Checklist & Certification'!$C$7)","v":""},{"$f":"IF(A314=\"\",\"\",'1. Checklist & Certification'!$C$8)","v":""},{"$f":"IF(A314=\"\",\"\",'1. Checklist & Certification'!$F$7)","v":""},{"$f":"IF(A314=\"\",\"\",'1. Checklist & Certification'!$F$8)","v":""},{"$f":"IF(A314=\"\",\"\",'1. Checklist & Certification'!$B$9)","v":""},{"$f":"IF(A314=\"\",\"\",'1. Checklist & Certification'!$F$9)","v":""},{"$f":"IF(A314=\"\",\"\",'1. Checklist & Certification'!$C$10)","v":""},{"$f":"IF(A314=\"\",\"\",'1. Checklist & Certification'!$C$11)","v":""},{"$f":"IF(A314=\"\",\"\",'1. Checklist & Certification'!$C$12)","v":""},{"$f":"IF(A314=\"\",\"\",'1. Checklist & Certification'!$B$14)","v":""},{"$f":"IF(A314=\"\",\"\",'1. Checklist & Certification'!$E$14)","v":""},{"$f":"IF(B314=\"\",\"\",'1. Checklist & Certification'!$G$14)","v":""},{"$f":"IF(A314=\"\",\"\",'MHP Family Income & Rent Limits'!$B$3)","v":""},{"$f":"IF(A314=\"\",\"\",'MHP Family Income & Rent Limits'!$J$3)","v":""},{"$f":"IF(A314=\"\",\"\",'MHP Family Income & Rent Limits'!$E$4)","v":""},{"$f":"IF(A314=\"\",\"\",'MHP Family Income & Rent Limits'!$C$7)","v":""},{"$f":"IF(A314=\"\",\"\",'MHP Family Income & Rent Limits'!$F$8)","v":""},{"$f":"IF(A314=\"\",\"\",'1. Checklist & Certification'!$G$4)","v":""},{"$f":"IF(A314=\"\",\"\",'1. Checklist & Certification'!$K$39)","v":""},{"$f":"IF(A314=\"\",\"\",'1. Checklist & Certification'!$K$43)","v":""},{"$f":"IF(A314=\"\",\"\",'1. Checklist & Certification'!$K$45)","v":""},{"$f":"IF(A314=\"\",\"\",'1. Checklist & Certification'!$K$49)","v":""},{"$f":"IF(A314=\"\",\"\",'1. Checklist & Certification'!$E$66)","v":""},{"$f":"IF(A314=\"\",\"\",'1. Checklist & Certification'!$E$67)","v":""},{"$f":"IF(A314=\"\",\"\",'1. Checklist & Certification'!$E$68)","v":""},{"$f":"IF(A314=\"\",\"\",'1. Checklist & Certification'!$G$66)","v":""},{"$f":"IF(A314=\"\",\"\",'1. Checklist & Certification'!$H$66)","v":""},{"$f":"IF(A314=\"\",\"\",'1. Checklist & Certification'!$I$66)","v":""},{"$f":"IF(A314=\"\",\"\",'1. Checklist & Certification'!$I$67)","v":""},{"$f":"IF(A314=\"\",\"\",'1. Checklist & Certification'!$I$68)","v":""},null,{"$f":"IF(C314=\"\",\"\",HLOOKUP(C314,'MHP Family Income & Rent Limits'!$E$12:$L$26,2,FALSE))","v":""},{"$f":"IF(C314=\"\",\"\",HLOOKUP(C314,'MHP Family Income & Rent Limits'!$E$12:$L$26,3,FALSE))","v":""},{"$f":"IF(C314=\"\",\"\",HLOOKUP(C314,'MHP Family Income & Rent Limits'!$E$12:$L$26,4,FALSE))","v":""},{"$f":"IF(C314=\"\",\"\",HLOOKUP(C314,'MHP Family Income & Rent Limits'!$E$12:$L$26,5,FALSE))","v":""},{"$f":"IF(C314=\"\",\"\",HLOOKUP(C314,'MHP Family Income & Rent Limits'!$E$12:$L$26,6,FALSE))","v":""},{"$f":"IF(C314=\"\",\"\",HLOOKUP(C314,'MHP Family Income & Rent Limits'!$E$12:$L$26,7,FALSE))","v":""},{"$f":"IF(C314=\"\",\"\",HLOOKUP(C314,'MHP Family Income & Rent Limits'!$E$12:$L$26,8,FALSE))","v":""},{"$f":"IF(C314=\"\",\"\",HLOOKUP(C314,'MHP Family Income & Rent Limits'!$E$12:$L$26,9,FALSE))","v":""},{"$f":"IF(C314=\"\",\"\",HLOOKUP(C314,'MHP Family Income & Rent Limits'!$E$12:$L$26,10,FALSE))","v":""},{"$f":"IF(C314=\"\",\"\",HLOOKUP(C314,'MHP Family Income & Rent Limits'!$E$12:$L$26,11,FALSE))","v":""},{"$f":"IF(C314=\"\",\"\",HLOOKUP(C314,'MHP Family Income & Rent Limits'!$E$12:$L$26,12,FALSE))","v":""},{"$f":"IF(C314=\"\",\"\",HLOOKUP(C314,'MHP Family Income & Rent Limits'!$E$12:$L$26,13,FALSE))","v":""},{"$f":"IF(C314=\"\",\"\",HLOOKUP(C314,'MHP Family Income & Rent Limits'!$E$12:$L$26,14,FALSE))","v":""},{"$f":"IF(C314=\"\",\"\",HLOOKUP(C314,'MHP Family Income & Rent Limits'!$E$12:$L$26,15,FALSE))","v":""}]
[{"$f":"IF('2. Assisted & Restricted Units'!A315=\"\",\"\",'2. Assisted & Restricted Units'!A315)","v":""},{"$f":"IF('2. Assisted & Restricted Units'!B315=\"\",\"\",'2. Assisted & Restricted Units'!B315)","v":""},{"$f":"IF('2. Assisted & Restricted Units'!D315=\"\",\"\",'2. Assisted & Restricted Units'!D315)","v":""},{"$f":"IF('2. Assisted & Restricted Units'!E315=\"\",\"\",'2. Assisted & Restricted Units'!E315)","v":""},{"$f":"IF('2. Assisted & Restricted Units'!H315=\"\",\"\",'2. Assisted & Restricted Units'!H315)","v":""},{"$f":"_xlfn.IFS(E315=\"\",\"\",E315>BO315,$BP$6,E315>BN315,$BO$6,E315>BM315,$BN$6,E315>BL315,$BM$6,E315>BK315,$BL$6,E315>BJ315,$BK$6,E315>BI315,$BJ$6,E315>BH315,$BI$6,E315>BG315,$BH$6,E315>BF315,$BG$6,E315>BE315,$BF$6,E315>BD315,$BE$6,E315>BC315,$BD$6,E315>=0,$BC$6)","v":""},{"$f":"IF('2. Assisted & Restricted Units'!T315=\"\",\"\",'2. Assisted & Restricted Units'!T315)","v":""},{"$f":"IF('2. Assisted & Restricted Units'!I315=\"\",\"\",'2. Assisted & Restricted Units'!I315)","v":""},{"$f":"IF('2. Assisted & Restricted Units'!AP315=\"\",\"\",'2. Assisted & Restricted Units'!AP315)","v":0},{"$f":"IF('2. Assisted & Restricted Units'!AT315=\"\",\"\",'2. Assisted & Restricted Units'!AT315)","v":""},0,{"$f":"IF('2. Assisted & Restricted Units'!AV315=\"\",\"\",'2. Assisted & Restricted Units'!AV315)","v":""},{"$f":"IF('2. Assisted & Restricted Units'!L315=\"\",\"\",'2. Assisted & Restricted Units'!L315)","v":""},{"$f":"IF('2. Assisted & Restricted Units'!M315=\"\",\"\",'2. Assisted & Restricted Units'!M315)","v":""},{"$f":"IF('2. Assisted & Restricted Units'!O315=\"\",\"\",'2. Assisted & Restricted Units'!O315)","v":""},{"$f":"IF('2. Assisted & Restricted Units'!P315=\"\",\"\",'2. Assisted & Restricted Units'!P315)","v":""},{"$f":"IF('2. Assisted & Restricted Units'!Q315=\"\",\"\",'2. Assisted & Restricted Units'!Q315)","v":""},{"$f":"IF('2. Assisted & Restricted Units'!R315=\"\",\"\",'2. Assisted & Restricted Units'!R315)","v":""},{"$f":"IF(A315=\"\",\"\",'1. Checklist & Certification'!$K$1)","v":""},{"$f":"IF(A315=\"\",\"\",'1. Checklist & Certification'!$C$62)","v":""},{"$f":"IF(A315=\"\",\"\",'1. Checklist & Certification'!$K$62)","v":""},{"$f":"IF(A315=\"\",\"\",'1. Checklist & Certification'!$C$6)","v":""},{"$f":"IF(A315=\"\",\"\",'1. Checklist & Certification'!$G$4)","v":""},{"$f":"IF(A315=\"\",\"\",'1. Checklist & Certification'!$C$7)","v":""},{"$f":"IF(A315=\"\",\"\",'1. Checklist & Certification'!$C$8)","v":""},{"$f":"IF(A315=\"\",\"\",'1. Checklist & Certification'!$F$7)","v":""},{"$f":"IF(A315=\"\",\"\",'1. Checklist & Certification'!$F$8)","v":""},{"$f":"IF(A315=\"\",\"\",'1. Checklist & Certification'!$B$9)","v":""},{"$f":"IF(A315=\"\",\"\",'1. Checklist & Certification'!$F$9)","v":""},{"$f":"IF(A315=\"\",\"\",'1. Checklist & Certification'!$C$10)","v":""},{"$f":"IF(A315=\"\",\"\",'1. Checklist & Certification'!$C$11)","v":""},{"$f":"IF(A315=\"\",\"\",'1. Checklist & Certification'!$C$12)","v":""},{"$f":"IF(A315=\"\",\"\",'1. Checklist & Certification'!$B$14)","v":""},{"$f":"IF(A315=\"\",\"\",'1. Checklist & Certification'!$E$14)","v":""},{"$f":"IF(B315=\"\",\"\",'1. Checklist & Certification'!$G$14)","v":""},{"$f":"IF(A315=\"\",\"\",'MHP Family Income & Rent Limits'!$B$3)","v":""},{"$f":"IF(A315=\"\",\"\",'MHP Family Income & Rent Limits'!$J$3)","v":""},{"$f":"IF(A315=\"\",\"\",'MHP Family Income & Rent Limits'!$E$4)","v":""},{"$f":"IF(A315=\"\",\"\",'MHP Family Income & Rent Limits'!$C$7)","v":""},{"$f":"IF(A315=\"\",\"\",'MHP Family Income & Rent Limits'!$F$8)","v":""},{"$f":"IF(A315=\"\",\"\",'1. Checklist & Certification'!$G$4)","v":""},{"$f":"IF(A315=\"\",\"\",'1. Checklist & Certification'!$K$39)","v":""},{"$f":"IF(A315=\"\",\"\",'1. Checklist & Certification'!$K$43)","v":""},{"$f":"IF(A315=\"\",\"\",'1. Checklist & Certification'!$K$45)","v":""},{"$f":"IF(A315=\"\",\"\",'1. Checklist & Certification'!$K$49)","v":""},{"$f":"IF(A315=\"\",\"\",'1. Checklist & Certification'!$E$66)","v":""},{"$f":"IF(A315=\"\",\"\",'1. Checklist & Certification'!$E$67)","v":""},{"$f":"IF(A315=\"\",\"\",'1. Checklist & Certification'!$E$68)","v":""},{"$f":"IF(A315=\"\",\"\",'1. Checklist & Certification'!$G$66)","v":""},{"$f":"IF(A315=\"\",\"\",'1. Checklist & Certification'!$H$66)","v":""},{"$f":"IF(A315=\"\",\"\",'1. Checklist & Certification'!$I$66)","v":""},{"$f":"IF(A315=\"\",\"\",'1. Checklist & Certification'!$I$67)","v":""},{"$f":"IF(A315=\"\",\"\",'1. Checklist & Certification'!$I$68)","v":""},null,{"$f":"IF(C315=\"\",\"\",HLOOKUP(C315,'MHP Family Income & Rent Limits'!$E$12:$L$26,2,FALSE))","v":""},{"$f":"IF(C315=\"\",\"\",HLOOKUP(C315,'MHP Family Income & Rent Limits'!$E$12:$L$26,3,FALSE))","v":""},{"$f":"IF(C315=\"\",\"\",HLOOKUP(C315,'MHP Family Income & Rent Limits'!$E$12:$L$26,4,FALSE))","v":""},{"$f":"IF(C315=\"\",\"\",HLOOKUP(C315,'MHP Family Income & Rent Limits'!$E$12:$L$26,5,FALSE))","v":""},{"$f":"IF(C315=\"\",\"\",HLOOKUP(C315,'MHP Family Income & Rent Limits'!$E$12:$L$26,6,FALSE))","v":""},{"$f":"IF(C315=\"\",\"\",HLOOKUP(C315,'MHP Family Income & Rent Limits'!$E$12:$L$26,7,FALSE))","v":""},{"$f":"IF(C315=\"\",\"\",HLOOKUP(C315,'MHP Family Income & Rent Limits'!$E$12:$L$26,8,FALSE))","v":""},{"$f":"IF(C315=\"\",\"\",HLOOKUP(C315,'MHP Family Income & Rent Limits'!$E$12:$L$26,9,FALSE))","v":""},{"$f":"IF(C315=\"\",\"\",HLOOKUP(C315,'MHP Family Income & Rent Limits'!$E$12:$L$26,10,FALSE))","v":""},{"$f":"IF(C315=\"\",\"\",HLOOKUP(C315,'MHP Family Income & Rent Limits'!$E$12:$L$26,11,FALSE))","v":""},{"$f":"IF(C315=\"\",\"\",HLOOKUP(C315,'MHP Family Income & Rent Limits'!$E$12:$L$26,12,FALSE))","v":""},{"$f":"IF(C315=\"\",\"\",HLOOKUP(C315,'MHP Family Income & Rent Limits'!$E$12:$L$26,13,FALSE))","v":""},{"$f":"IF(C315=\"\",\"\",HLOOKUP(C315,'MHP Family Income & Rent Limits'!$E$12:$L$26,14,FALSE))","v":""},{"$f":"IF(C315=\"\",\"\",HLOOKUP(C315,'MHP Family Income & Rent Limits'!$E$12:$L$26,15,FALSE))","v":""}]
[{"$f":"IF('2. Assisted & Restricted Units'!A316=\"\",\"\",'2. Assisted & Restricted Units'!A316)","v":""},{"$f":"IF('2. Assisted & Restricted Units'!B316=\"\",\"\",'2. Assisted & Restricted Units'!B316)","v":""},{"$f":"IF('2. Assisted & Restricted Units'!D316=\"\",\"\",'2. Assisted & Restricted Units'!D316)","v":""},{"$f":"IF('2. Assisted & Restricted Units'!E316=\"\",\"\",'2. Assisted & Restricted Units'!E316)","v":""},{"$f":"IF('2. Assisted & Restricted Units'!H316=\"\",\"\",'2. Assisted & Restricted Units'!H316)","v":""},{"$f":"_xlfn.IFS(E316=\"\",\"\",E316>BO316,$BP$6,E316>BN316,$BO$6,E316>BM316,$BN$6,E316>BL316,$BM$6,E316>BK316,$BL$6,E316>BJ316,$BK$6,E316>BI316,$BJ$6,E316>BH316,$BI$6,E316>BG316,$BH$6,E316>BF316,$BG$6,E316>BE316,$BF$6,E316>BD316,$BE$6,E316>BC316,$BD$6,E316>=0,$BC$6)","v":""},{"$f":"IF('2. Assisted & Restricted Units'!T316=\"\",\"\",'2. Assisted & Restricted Units'!T316)","v":""},{"$f":"IF('2. Assisted & Restricted Units'!I316=\"\",\"\",'2. Assisted & Restricted Units'!I316)","v":""},{"$f":"IF('2. Assisted & Restricted Units'!AP316=\"\",\"\",'2. Assisted & Restricted Units'!AP316)","v":0},{"$f":"IF('2. Assisted & Restricted Units'!AT316=\"\",\"\",'2. Assisted & Restricted Units'!AT316)","v":""},0,{"$f":"IF('2. Assisted & Restricted Units'!AV316=\"\",\"\",'2. Assisted & Restricted Units'!AV316)","v":""},{"$f":"IF('2. Assisted & Restricted Units'!L316=\"\",\"\",'2. Assisted & Restricted Units'!L316)","v":""},{"$f":"IF('2. Assisted & Restricted Units'!M316=\"\",\"\",'2. Assisted & Restricted Units'!M316)","v":""},{"$f":"IF('2. Assisted & Restricted Units'!O316=\"\",\"\",'2. Assisted & Restricted Units'!O316)","v":""},{"$f":"IF('2. Assisted & Restricted Units'!P316=\"\",\"\",'2. Assisted & Restricted Units'!P316)","v":""},{"$f":"IF('2. Assisted & Restricted Units'!Q316=\"\",\"\",'2. Assisted & Restricted Units'!Q316)","v":""},{"$f":"IF('2. Assisted & Restricted Units'!R316=\"\",\"\",'2. Assisted & Restricted Units'!R316)","v":""},{"$f":"IF(A316=\"\",\"\",'1. Checklist & Certification'!$K$1)","v":""},{"$f":"IF(A316=\"\",\"\",'1. Checklist & Certification'!$C$62)","v":""},{"$f":"IF(A316=\"\",\"\",'1. Checklist & Certification'!$K$62)","v":""},{"$f":"IF(A316=\"\",\"\",'1. Checklist & Certification'!$C$6)","v":""},{"$f":"IF(A316=\"\",\"\",'1. Checklist & Certification'!$G$4)","v":""},{"$f":"IF(A316=\"\",\"\",'1. Checklist & Certification'!$C$7)","v":""},{"$f":"IF(A316=\"\",\"\",'1. Checklist & Certification'!$C$8)","v":""},{"$f":"IF(A316=\"\",\"\",'1. Checklist & Certification'!$F$7)","v":""},{"$f":"IF(A316=\"\",\"\",'1. Checklist & Certification'!$F$8)","v":""},{"$f":"IF(A316=\"\",\"\",'1. Checklist & Certification'!$B$9)","v":""},{"$f":"IF(A316=\"\",\"\",'1. Checklist & Certification'!$F$9)","v":""},{"$f":"IF(A316=\"\",\"\",'1. Checklist & Certification'!$C$10)","v":""},{"$f":"IF(A316=\"\",\"\",'1. Checklist & Certification'!$C$11)","v":""},{"$f":"IF(A316=\"\",\"\",'1. Checklist & Certification'!$C$12)","v":""},{"$f":"IF(A316=\"\",\"\",'1. Checklist & Certification'!$B$14)","v":""},{"$f":"IF(A316=\"\",\"\",'1. Checklist & Certification'!$E$14)","v":""},{"$f":"IF(B316=\"\",\"\",'1. Checklist & Certification'!$G$14)","v":""},{"$f":"IF(A316=\"\",\"\",'MHP Family Income & Rent Limits'!$B$3)","v":""},{"$f":"IF(A316=\"\",\"\",'MHP Family Income & Rent Limits'!$J$3)","v":""},{"$f":"IF(A316=\"\",\"\",'MHP Family Income & Rent Limits'!$E$4)","v":""},{"$f":"IF(A316=\"\",\"\",'MHP Family Income & Rent Limits'!$C$7)","v":""},{"$f":"IF(A316=\"\",\"\",'MHP Family Income & Rent Limits'!$F$8)","v":""},{"$f":"IF(A316=\"\",\"\",'1. Checklist & Certification'!$G$4)","v":""},{"$f":"IF(A316=\"\",\"\",'1. Checklist & Certification'!$K$39)","v":""},{"$f":"IF(A316=\"\",\"\",'1. Checklist & Certification'!$K$43)","v":""},{"$f":"IF(A316=\"\",\"\",'1. Checklist & Certification'!$K$45)","v":""},{"$f":"IF(A316=\"\",\"\",'1. Checklist & Certification'!$K$49)","v":""},{"$f":"IF(A316=\"\",\"\",'1. Checklist & Certification'!$E$66)","v":""},{"$f":"IF(A316=\"\",\"\",'1. Checklist & Certification'!$E$67)","v":""},{"$f":"IF(A316=\"\",\"\",'1. Checklist & Certification'!$E$68)","v":""},{"$f":"IF(A316=\"\",\"\",'1. Checklist & Certification'!$G$66)","v":""},{"$f":"IF(A316=\"\",\"\",'1. Checklist & Certification'!$H$66)","v":""},{"$f":"IF(A316=\"\",\"\",'1. Checklist & Certification'!$I$66)","v":""},{"$f":"IF(A316=\"\",\"\",'1. Checklist & Certification'!$I$67)","v":""},{"$f":"IF(A316=\"\",\"\",'1. Checklist & Certification'!$I$68)","v":""},null,{"$f":"IF(C316=\"\",\"\",HLOOKUP(C316,'MHP Family Income & Rent Limits'!$E$12:$L$26,2,FALSE))","v":""},{"$f":"IF(C316=\"\",\"\",HLOOKUP(C316,'MHP Family Income & Rent Limits'!$E$12:$L$26,3,FALSE))","v":""},{"$f":"IF(C316=\"\",\"\",HLOOKUP(C316,'MHP Family Income & Rent Limits'!$E$12:$L$26,4,FALSE))","v":""},{"$f":"IF(C316=\"\",\"\",HLOOKUP(C316,'MHP Family Income & Rent Limits'!$E$12:$L$26,5,FALSE))","v":""},{"$f":"IF(C316=\"\",\"\",HLOOKUP(C316,'MHP Family Income & Rent Limits'!$E$12:$L$26,6,FALSE))","v":""},{"$f":"IF(C316=\"\",\"\",HLOOKUP(C316,'MHP Family Income & Rent Limits'!$E$12:$L$26,7,FALSE))","v":""},{"$f":"IF(C316=\"\",\"\",HLOOKUP(C316,'MHP Family Income & Rent Limits'!$E$12:$L$26,8,FALSE))","v":""},{"$f":"IF(C316=\"\",\"\",HLOOKUP(C316,'MHP Family Income & Rent Limits'!$E$12:$L$26,9,FALSE))","v":""},{"$f":"IF(C316=\"\",\"\",HLOOKUP(C316,'MHP Family Income & Rent Limits'!$E$12:$L$26,10,FALSE))","v":""},{"$f":"IF(C316=\"\",\"\",HLOOKUP(C316,'MHP Family Income & Rent Limits'!$E$12:$L$26,11,FALSE))","v":""},{"$f":"IF(C316=\"\",\"\",HLOOKUP(C316,'MHP Family Income & Rent Limits'!$E$12:$L$26,12,FALSE))","v":""},{"$f":"IF(C316=\"\",\"\",HLOOKUP(C316,'MHP Family Income & Rent Limits'!$E$12:$L$26,13,FALSE))","v":""},{"$f":"IF(C316=\"\",\"\",HLOOKUP(C316,'MHP Family Income & Rent Limits'!$E$12:$L$26,14,FALSE))","v":""},{"$f":"IF(C316=\"\",\"\",HLOOKUP(C316,'MHP Family Income & Rent Limits'!$E$12:$L$26,15,FALSE))","v":""}]
[{"$f":"IF('2. Assisted & Restricted Units'!A317=\"\",\"\",'2. Assisted & Restricted Units'!A317)","v":""},{"$f":"IF('2. Assisted & Restricted Units'!B317=\"\",\"\",'2. Assisted & Restricted Units'!B317)","v":""},{"$f":"IF('2. Assisted & Restricted Units'!D317=\"\",\"\",'2. Assisted & Restricted Units'!D317)","v":""},{"$f":"IF('2. Assisted & Restricted Units'!E317=\"\",\"\",'2. Assisted & Restricted Units'!E317)","v":""},{"$f":"IF('2. Assisted & Restricted Units'!H317=\"\",\"\",'2. Assisted & Restricted Units'!H317)","v":""},{"$f":"_xlfn.IFS(E317=\"\",\"\",E317>BO317,$BP$6,E317>BN317,$BO$6,E317>BM317,$BN$6,E317>BL317,$BM$6,E317>BK317,$BL$6,E317>BJ317,$BK$6,E317>BI317,$BJ$6,E317>BH317,$BI$6,E317>BG317,$BH$6,E317>BF317,$BG$6,E317>BE317,$BF$6,E317>BD317,$BE$6,E317>BC317,$BD$6,E317>=0,$BC$6)","v":""},{"$f":"IF('2. Assisted & Restricted Units'!T317=\"\",\"\",'2. Assisted & Restricted Units'!T317)","v":""},{"$f":"IF('2. Assisted & Restricted Units'!I317=\"\",\"\",'2. Assisted & Restricted Units'!I317)","v":""},{"$f":"IF('2. Assisted & Restricted Units'!AP317=\"\",\"\",'2. Assisted & Restricted Units'!AP317)","v":0},{"$f":"IF('2. Assisted & Restricted Units'!AT317=\"\",\"\",'2. Assisted & Restricted Units'!AT317)","v":""},0,{"$f":"IF('2. Assisted & Restricted Units'!AV317=\"\",\"\",'2. Assisted & Restricted Units'!AV317)","v":""},{"$f":"IF('2. Assisted & Restricted Units'!L317=\"\",\"\",'2. Assisted & Restricted Units'!L317)","v":""},{"$f":"IF('2. Assisted & Restricted Units'!M317=\"\",\"\",'2. Assisted & Restricted Units'!M317)","v":""},{"$f":"IF('2. Assisted & Restricted Units'!O317=\"\",\"\",'2. Assisted & Restricted Units'!O317)","v":""},{"$f":"IF('2. Assisted & Restricted Units'!P317=\"\",\"\",'2. Assisted & Restricted Units'!P317)","v":""},{"$f":"IF('2. Assisted & Restricted Units'!Q317=\"\",\"\",'2. Assisted & Restricted Units'!Q317)","v":""},{"$f":"IF('2. Assisted & Restricted Units'!R317=\"\",\"\",'2. Assisted & Restricted Units'!R317)","v":""},{"$f":"IF(A317=\"\",\"\",'1. Checklist & Certification'!$K$1)","v":""},{"$f":"IF(A317=\"\",\"\",'1. Checklist & Certification'!$C$62)","v":""},{"$f":"IF(A317=\"\",\"\",'1. Checklist & Certification'!$K$62)","v":""},{"$f":"IF(A317=\"\",\"\",'1. Checklist & Certification'!$C$6)","v":""},{"$f":"IF(A317=\"\",\"\",'1. Checklist & Certification'!$G$4)","v":""},{"$f":"IF(A317=\"\",\"\",'1. Checklist & Certification'!$C$7)","v":""},{"$f":"IF(A317=\"\",\"\",'1. Checklist & Certification'!$C$8)","v":""},{"$f":"IF(A317=\"\",\"\",'1. Checklist & Certification'!$F$7)","v":""},{"$f":"IF(A317=\"\",\"\",'1. Checklist & Certification'!$F$8)","v":""},{"$f":"IF(A317=\"\",\"\",'1. Checklist & Certification'!$B$9)","v":""},{"$f":"IF(A317=\"\",\"\",'1. Checklist & Certification'!$F$9)","v":""},{"$f":"IF(A317=\"\",\"\",'1. Checklist & Certification'!$C$10)","v":""},{"$f":"IF(A317=\"\",\"\",'1. Checklist & Certification'!$C$11)","v":""},{"$f":"IF(A317=\"\",\"\",'1. Checklist & Certification'!$C$12)","v":""},{"$f":"IF(A317=\"\",\"\",'1. Checklist & Certification'!$B$14)","v":""},{"$f":"IF(A317=\"\",\"\",'1. Checklist & Certification'!$E$14)","v":""},{"$f":"IF(B317=\"\",\"\",'1. Checklist & Certification'!$G$14)","v":""},{"$f":"IF(A317=\"\",\"\",'MHP Family Income & Rent Limits'!$B$3)","v":""},{"$f":"IF(A317=\"\",\"\",'MHP Family Income & Rent Limits'!$J$3)","v":""},{"$f":"IF(A317=\"\",\"\",'MHP Family Income & Rent Limits'!$E$4)","v":""},{"$f":"IF(A317=\"\",\"\",'MHP Family Income & Rent Limits'!$C$7)","v":""},{"$f":"IF(A317=\"\",\"\",'MHP Family Income & Rent Limits'!$F$8)","v":""},{"$f":"IF(A317=\"\",\"\",'1. Checklist & Certification'!$G$4)","v":""},{"$f":"IF(A317=\"\",\"\",'1. Checklist & Certification'!$K$39)","v":""},{"$f":"IF(A317=\"\",\"\",'1. Checklist & Certification'!$K$43)","v":""},{"$f":"IF(A317=\"\",\"\",'1. Checklist & Certification'!$K$45)","v":""},{"$f":"IF(A317=\"\",\"\",'1. Checklist & Certification'!$K$49)","v":""},{"$f":"IF(A317=\"\",\"\",'1. Checklist & Certification'!$E$66)","v":""},{"$f":"IF(A317=\"\",\"\",'1. Checklist & Certification'!$E$67)","v":""},{"$f":"IF(A317=\"\",\"\",'1. Checklist & Certification'!$E$68)","v":""},{"$f":"IF(A317=\"\",\"\",'1. Checklist & Certification'!$G$66)","v":""},{"$f":"IF(A317=\"\",\"\",'1. Checklist & Certification'!$H$66)","v":""},{"$f":"IF(A317=\"\",\"\",'1. Checklist & Certification'!$I$66)","v":""},{"$f":"IF(A317=\"\",\"\",'1. Checklist & Certification'!$I$67)","v":""},{"$f":"IF(A317=\"\",\"\",'1. Checklist & Certification'!$I$68)","v":""},null,{"$f":"IF(C317=\"\",\"\",HLOOKUP(C317,'MHP Family Income & Rent Limits'!$E$12:$L$26,2,FALSE))","v":""},{"$f":"IF(C317=\"\",\"\",HLOOKUP(C317,'MHP Family Income & Rent Limits'!$E$12:$L$26,3,FALSE))","v":""},{"$f":"IF(C317=\"\",\"\",HLOOKUP(C317,'MHP Family Income & Rent Limits'!$E$12:$L$26,4,FALSE))","v":""},{"$f":"IF(C317=\"\",\"\",HLOOKUP(C317,'MHP Family Income & Rent Limits'!$E$12:$L$26,5,FALSE))","v":""},{"$f":"IF(C317=\"\",\"\",HLOOKUP(C317,'MHP Family Income & Rent Limits'!$E$12:$L$26,6,FALSE))","v":""},{"$f":"IF(C317=\"\",\"\",HLOOKUP(C317,'MHP Family Income & Rent Limits'!$E$12:$L$26,7,FALSE))","v":""},{"$f":"IF(C317=\"\",\"\",HLOOKUP(C317,'MHP Family Income & Rent Limits'!$E$12:$L$26,8,FALSE))","v":""},{"$f":"IF(C317=\"\",\"\",HLOOKUP(C317,'MHP Family Income & Rent Limits'!$E$12:$L$26,9,FALSE))","v":""},{"$f":"IF(C317=\"\",\"\",HLOOKUP(C317,'MHP Family Income & Rent Limits'!$E$12:$L$26,10,FALSE))","v":""},{"$f":"IF(C317=\"\",\"\",HLOOKUP(C317,'MHP Family Income & Rent Limits'!$E$12:$L$26,11,FALSE))","v":""},{"$f":"IF(C317=\"\",\"\",HLOOKUP(C317,'MHP Family Income & Rent Limits'!$E$12:$L$26,12,FALSE))","v":""},{"$f":"IF(C317=\"\",\"\",HLOOKUP(C317,'MHP Family Income & Rent Limits'!$E$12:$L$26,13,FALSE))","v":""},{"$f":"IF(C317=\"\",\"\",HLOOKUP(C317,'MHP Family Income & Rent Limits'!$E$12:$L$26,14,FALSE))","v":""},{"$f":"IF(C317=\"\",\"\",HLOOKUP(C317,'MHP Family Income & Rent Limits'!$E$12:$L$26,15,FALSE))","v":""}]
[{"$f":"IF('2. Assisted & Restricted Units'!A318=\"\",\"\",'2. Assisted & Restricted Units'!A318)","v":""},{"$f":"IF('2. Assisted & Restricted Units'!B318=\"\",\"\",'2. Assisted & Restricted Units'!B318)","v":""},{"$f":"IF('2. Assisted & Restricted Units'!D318=\"\",\"\",'2. Assisted & Restricted Units'!D318)","v":""},{"$f":"IF('2. Assisted & Restricted Units'!E318=\"\",\"\",'2. Assisted & Restricted Units'!E318)","v":""},{"$f":"IF('2. Assisted & Restricted Units'!H318=\"\",\"\",'2. Assisted & Restricted Units'!H318)","v":""},{"$f":"_xlfn.IFS(E318=\"\",\"\",E318>BO318,$BP$6,E318>BN318,$BO$6,E318>BM318,$BN$6,E318>BL318,$BM$6,E318>BK318,$BL$6,E318>BJ318,$BK$6,E318>BI318,$BJ$6,E318>BH318,$BI$6,E318>BG318,$BH$6,E318>BF318,$BG$6,E318>BE318,$BF$6,E318>BD318,$BE$6,E318>BC318,$BD$6,E318>=0,$BC$6)","v":""},{"$f":"IF('2. Assisted & Restricted Units'!T318=\"\",\"\",'2. Assisted & Restricted Units'!T318)","v":""},{"$f":"IF('2. Assisted & Restricted Units'!I318=\"\",\"\",'2. Assisted & Restricted Units'!I318)","v":""},{"$f":"IF('2. Assisted & Restricted Units'!AP318=\"\",\"\",'2. Assisted & Restricted Units'!AP318)","v":0},{"$f":"IF('2. Assisted & Restricted Units'!AT318=\"\",\"\",'2. Assisted & Restricted Units'!AT318)","v":""},0,{"$f":"IF('2. Assisted & Restricted Units'!AV318=\"\",\"\",'2. Assisted & Restricted Units'!AV318)","v":""},{"$f":"IF('2. Assisted & Restricted Units'!L318=\"\",\"\",'2. Assisted & Restricted Units'!L318)","v":""},{"$f":"IF('2. Assisted & Restricted Units'!M318=\"\",\"\",'2. Assisted & Restricted Units'!M318)","v":""},{"$f":"IF('2. Assisted & Restricted Units'!O318=\"\",\"\",'2. Assisted & Restricted Units'!O318)","v":""},{"$f":"IF('2. Assisted & Restricted Units'!P318=\"\",\"\",'2. Assisted & Restricted Units'!P318)","v":""},{"$f":"IF('2. Assisted & Restricted Units'!Q318=\"\",\"\",'2. Assisted & Restricted Units'!Q318)","v":""},{"$f":"IF('2. Assisted & Restricted Units'!R318=\"\",\"\",'2. Assisted & Restricted Units'!R318)","v":""},{"$f":"IF(A318=\"\",\"\",'1. Checklist & Certification'!$K$1)","v":""},{"$f":"IF(A318=\"\",\"\",'1. Checklist & Certification'!$C$62)","v":""},{"$f":"IF(A318=\"\",\"\",'1. Checklist & Certification'!$K$62)","v":""},{"$f":"IF(A318=\"\",\"\",'1. Checklist & Certification'!$C$6)","v":""},{"$f":"IF(A318=\"\",\"\",'1. Checklist & Certification'!$G$4)","v":""},{"$f":"IF(A318=\"\",\"\",'1. Checklist & Certification'!$C$7)","v":""},{"$f":"IF(A318=\"\",\"\",'1. Checklist & Certification'!$C$8)","v":""},{"$f":"IF(A318=\"\",\"\",'1. Checklist & Certification'!$F$7)","v":""},{"$f":"IF(A318=\"\",\"\",'1. Checklist & Certification'!$F$8)","v":""},{"$f":"IF(A318=\"\",\"\",'1. Checklist & Certification'!$B$9)","v":""},{"$f":"IF(A318=\"\",\"\",'1. Checklist & Certification'!$F$9)","v":""},{"$f":"IF(A318=\"\",\"\",'1. Checklist & Certification'!$C$10)","v":""},{"$f":"IF(A318=\"\",\"\",'1. Checklist & Certification'!$C$11)","v":""},{"$f":"IF(A318=\"\",\"\",'1. Checklist & Certification'!$C$12)","v":""},{"$f":"IF(A318=\"\",\"\",'1. Checklist & Certification'!$B$14)","v":""},{"$f":"IF(A318=\"\",\"\",'1. Checklist & Certification'!$E$14)","v":""},{"$f":"IF(B318=\"\",\"\",'1. Checklist & Certification'!$G$14)","v":""},{"$f":"IF(A318=\"\",\"\",'MHP Family Income & Rent Limits'!$B$3)","v":""},{"$f":"IF(A318=\"\",\"\",'MHP Family Income & Rent Limits'!$J$3)","v":""},{"$f":"IF(A318=\"\",\"\",'MHP Family Income & Rent Limits'!$E$4)","v":""},{"$f":"IF(A318=\"\",\"\",'MHP Family Income & Rent Limits'!$C$7)","v":""},{"$f":"IF(A318=\"\",\"\",'MHP Family Income & Rent Limits'!$F$8)","v":""},{"$f":"IF(A318=\"\",\"\",'1. Checklist & Certification'!$G$4)","v":""},{"$f":"IF(A318=\"\",\"\",'1. Checklist & Certification'!$K$39)","v":""},{"$f":"IF(A318=\"\",\"\",'1. Checklist & Certification'!$K$43)","v":""},{"$f":"IF(A318=\"\",\"\",'1. Checklist & Certification'!$K$45)","v":""},{"$f":"IF(A318=\"\",\"\",'1. Checklist & Certification'!$K$49)","v":""},{"$f":"IF(A318=\"\",\"\",'1. Checklist & Certification'!$E$66)","v":""},{"$f":"IF(A318=\"\",\"\",'1. Checklist & Certification'!$E$67)","v":""},{"$f":"IF(A318=\"\",\"\",'1. Checklist & Certification'!$E$68)","v":""},{"$f":"IF(A318=\"\",\"\",'1. Checklist & Certification'!$G$66)","v":""},{"$f":"IF(A318=\"\",\"\",'1. Checklist & Certification'!$H$66)","v":""},{"$f":"IF(A318=\"\",\"\",'1. Checklist & Certification'!$I$66)","v":""},{"$f":"IF(A318=\"\",\"\",'1. Checklist & Certification'!$I$67)","v":""},{"$f":"IF(A318=\"\",\"\",'1. Checklist & Certification'!$I$68)","v":""},null,{"$f":"IF(C318=\"\",\"\",HLOOKUP(C318,'MHP Family Income & Rent Limits'!$E$12:$L$26,2,FALSE))","v":""},{"$f":"IF(C318=\"\",\"\",HLOOKUP(C318,'MHP Family Income & Rent Limits'!$E$12:$L$26,3,FALSE))","v":""},{"$f":"IF(C318=\"\",\"\",HLOOKUP(C318,'MHP Family Income & Rent Limits'!$E$12:$L$26,4,FALSE))","v":""},{"$f":"IF(C318=\"\",\"\",HLOOKUP(C318,'MHP Family Income & Rent Limits'!$E$12:$L$26,5,FALSE))","v":""},{"$f":"IF(C318=\"\",\"\",HLOOKUP(C318,'MHP Family Income & Rent Limits'!$E$12:$L$26,6,FALSE))","v":""},{"$f":"IF(C318=\"\",\"\",HLOOKUP(C318,'MHP Family Income & Rent Limits'!$E$12:$L$26,7,FALSE))","v":""},{"$f":"IF(C318=\"\",\"\",HLOOKUP(C318,'MHP Family Income & Rent Limits'!$E$12:$L$26,8,FALSE))","v":""},{"$f":"IF(C318=\"\",\"\",HLOOKUP(C318,'MHP Family Income & Rent Limits'!$E$12:$L$26,9,FALSE))","v":""},{"$f":"IF(C318=\"\",\"\",HLOOKUP(C318,'MHP Family Income & Rent Limits'!$E$12:$L$26,10,FALSE))","v":""},{"$f":"IF(C318=\"\",\"\",HLOOKUP(C318,'MHP Family Income & Rent Limits'!$E$12:$L$26,11,FALSE))","v":""},{"$f":"IF(C318=\"\",\"\",HLOOKUP(C318,'MHP Family Income & Rent Limits'!$E$12:$L$26,12,FALSE))","v":""},{"$f":"IF(C318=\"\",\"\",HLOOKUP(C318,'MHP Family Income & Rent Limits'!$E$12:$L$26,13,FALSE))","v":""},{"$f":"IF(C318=\"\",\"\",HLOOKUP(C318,'MHP Family Income & Rent Limits'!$E$12:$L$26,14,FALSE))","v":""},{"$f":"IF(C318=\"\",\"\",HLOOKUP(C318,'MHP Family Income & Rent Limits'!$E$12:$L$26,15,FALSE))","v":""}]
[{"$f":"IF('2. Assisted & Restricted Units'!A319=\"\",\"\",'2. Assisted & Restricted Units'!A319)","v":""},{"$f":"IF('2. Assisted & Restricted Units'!B319=\"\",\"\",'2. Assisted & Restricted Units'!B319)","v":""},{"$f":"IF('2. Assisted & Restricted Units'!D319=\"\",\"\",'2. Assisted & Restricted Units'!D319)","v":""},{"$f":"IF('2. Assisted & Restricted Units'!E319=\"\",\"\",'2. Assisted & Restricted Units'!E319)","v":""},{"$f":"IF('2. Assisted & Restricted Units'!H319=\"\",\"\",'2. Assisted & Restricted Units'!H319)","v":""},{"$f":"_xlfn.IFS(E319=\"\",\"\",E319>BO319,$BP$6,E319>BN319,$BO$6,E319>BM319,$BN$6,E319>BL319,$BM$6,E319>BK319,$BL$6,E319>BJ319,$BK$6,E319>BI319,$BJ$6,E319>BH319,$BI$6,E319>BG319,$BH$6,E319>BF319,$BG$6,E319>BE319,$BF$6,E319>BD319,$BE$6,E319>BC319,$BD$6,E319>=0,$BC$6)","v":""},{"$f":"IF('2. Assisted & Restricted Units'!T319=\"\",\"\",'2. Assisted & Restricted Units'!T319)","v":""},{"$f":"IF('2. Assisted & Restricted Units'!I319=\"\",\"\",'2. Assisted & Restricted Units'!I319)","v":""},{"$f":"IF('2. Assisted & Restricted Units'!AP319=\"\",\"\",'2. Assisted & Restricted Units'!AP319)","v":0},{"$f":"IF('2. Assisted & Restricted Units'!AT319=\"\",\"\",'2. Assisted & Restricted Units'!AT319)","v":""},0,{"$f":"IF('2. Assisted & Restricted Units'!AV319=\"\",\"\",'2. Assisted & Restricted Units'!AV319)","v":""},{"$f":"IF('2. Assisted & Restricted Units'!L319=\"\",\"\",'2. Assisted & Restricted Units'!L319)","v":""},{"$f":"IF('2. Assisted & Restricted Units'!M319=\"\",\"\",'2. Assisted & Restricted Units'!M319)","v":""},{"$f":"IF('2. Assisted & Restricted Units'!O319=\"\",\"\",'2. Assisted & Restricted Units'!O319)","v":""},{"$f":"IF('2. Assisted & Restricted Units'!P319=\"\",\"\",'2. Assisted & Restricted Units'!P319)","v":""},{"$f":"IF('2. Assisted & Restricted Units'!Q319=\"\",\"\",'2. Assisted & Restricted Units'!Q319)","v":""},{"$f":"IF('2. Assisted & Restricted Units'!R319=\"\",\"\",'2. Assisted & Restricted Units'!R319)","v":""},{"$f":"IF(A319=\"\",\"\",'1. Checklist & Certification'!$K$1)","v":""},{"$f":"IF(A319=\"\",\"\",'1. Checklist & Certification'!$C$62)","v":""},{"$f":"IF(A319=\"\",\"\",'1. Checklist & Certification'!$K$62)","v":""},{"$f":"IF(A319=\"\",\"\",'1. Checklist & Certification'!$C$6)","v":""},{"$f":"IF(A319=\"\",\"\",'1. Checklist & Certification'!$G$4)","v":""},{"$f":"IF(A319=\"\",\"\",'1. Checklist & Certification'!$C$7)","v":""},{"$f":"IF(A319=\"\",\"\",'1. Checklist & Certification'!$C$8)","v":""},{"$f":"IF(A319=\"\",\"\",'1. Checklist & Certification'!$F$7)","v":""},{"$f":"IF(A319=\"\",\"\",'1. Checklist & Certification'!$F$8)","v":""},{"$f":"IF(A319=\"\",\"\",'1. Checklist & Certification'!$B$9)","v":""},{"$f":"IF(A319=\"\",\"\",'1. Checklist & Certification'!$F$9)","v":""},{"$f":"IF(A319=\"\",\"\",'1. Checklist & Certification'!$C$10)","v":""},{"$f":"IF(A319=\"\",\"\",'1. Checklist & Certification'!$C$11)","v":""},{"$f":"IF(A319=\"\",\"\",'1. Checklist & Certification'!$C$12)","v":""},{"$f":"IF(A319=\"\",\"\",'1. Checklist & Certification'!$B$14)","v":""},{"$f":"IF(A319=\"\",\"\",'1. Checklist & Certification'!$E$14)","v":""},{"$f":"IF(B319=\"\",\"\",'1. Checklist & Certification'!$G$14)","v":""},{"$f":"IF(A319=\"\",\"\",'MHP Family Income & Rent Limits'!$B$3)","v":""},{"$f":"IF(A319=\"\",\"\",'MHP Family Income & Rent Limits'!$J$3)","v":""},{"$f":"IF(A319=\"\",\"\",'MHP Family Income & Rent Limits'!$E$4)","v":""},{"$f":"IF(A319=\"\",\"\",'MHP Family Income & Rent Limits'!$C$7)","v":""},{"$f":"IF(A319=\"\",\"\",'MHP Family Income & Rent Limits'!$F$8)","v":""},{"$f":"IF(A319=\"\",\"\",'1. Checklist & Certification'!$G$4)","v":""},{"$f":"IF(A319=\"\",\"\",'1. Checklist & Certification'!$K$39)","v":""},{"$f":"IF(A319=\"\",\"\",'1. Checklist & Certification'!$K$43)","v":""},{"$f":"IF(A319=\"\",\"\",'1. Checklist & Certification'!$K$45)","v":""},{"$f":"IF(A319=\"\",\"\",'1. Checklist & Certification'!$K$49)","v":""},{"$f":"IF(A319=\"\",\"\",'1. Checklist & Certification'!$E$66)","v":""},{"$f":"IF(A319=\"\",\"\",'1. Checklist & Certification'!$E$67)","v":""},{"$f":"IF(A319=\"\",\"\",'1. Checklist & Certification'!$E$68)","v":""},{"$f":"IF(A319=\"\",\"\",'1. Checklist & Certification'!$G$66)","v":""},{"$f":"IF(A319=\"\",\"\",'1. Checklist & Certification'!$H$66)","v":""},{"$f":"IF(A319=\"\",\"\",'1. Checklist & Certification'!$I$66)","v":""},{"$f":"IF(A319=\"\",\"\",'1. Checklist & Certification'!$I$67)","v":""},{"$f":"IF(A319=\"\",\"\",'1. Checklist & Certification'!$I$68)","v":""},null,{"$f":"IF(C319=\"\",\"\",HLOOKUP(C319,'MHP Family Income & Rent Limits'!$E$12:$L$26,2,FALSE))","v":""},{"$f":"IF(C319=\"\",\"\",HLOOKUP(C319,'MHP Family Income & Rent Limits'!$E$12:$L$26,3,FALSE))","v":""},{"$f":"IF(C319=\"\",\"\",HLOOKUP(C319,'MHP Family Income & Rent Limits'!$E$12:$L$26,4,FALSE))","v":""},{"$f":"IF(C319=\"\",\"\",HLOOKUP(C319,'MHP Family Income & Rent Limits'!$E$12:$L$26,5,FALSE))","v":""},{"$f":"IF(C319=\"\",\"\",HLOOKUP(C319,'MHP Family Income & Rent Limits'!$E$12:$L$26,6,FALSE))","v":""},{"$f":"IF(C319=\"\",\"\",HLOOKUP(C319,'MHP Family Income & Rent Limits'!$E$12:$L$26,7,FALSE))","v":""},{"$f":"IF(C319=\"\",\"\",HLOOKUP(C319,'MHP Family Income & Rent Limits'!$E$12:$L$26,8,FALSE))","v":""},{"$f":"IF(C319=\"\",\"\",HLOOKUP(C319,'MHP Family Income & Rent Limits'!$E$12:$L$26,9,FALSE))","v":""},{"$f":"IF(C319=\"\",\"\",HLOOKUP(C319,'MHP Family Income & Rent Limits'!$E$12:$L$26,10,FALSE))","v":""},{"$f":"IF(C319=\"\",\"\",HLOOKUP(C319,'MHP Family Income & Rent Limits'!$E$12:$L$26,11,FALSE))","v":""},{"$f":"IF(C319=\"\",\"\",HLOOKUP(C319,'MHP Family Income & Rent Limits'!$E$12:$L$26,12,FALSE))","v":""},{"$f":"IF(C319=\"\",\"\",HLOOKUP(C319,'MHP Family Income & Rent Limits'!$E$12:$L$26,13,FALSE))","v":""},{"$f":"IF(C319=\"\",\"\",HLOOKUP(C319,'MHP Family Income & Rent Limits'!$E$12:$L$26,14,FALSE))","v":""},{"$f":"IF(C319=\"\",\"\",HLOOKUP(C319,'MHP Family Income & Rent Limits'!$E$12:$L$26,15,FALSE))","v":""}]
[{"$f":"IF('2. Assisted & Restricted Units'!A320=\"\",\"\",'2. Assisted & Restricted Units'!A320)","v":""},{"$f":"IF('2. Assisted & Restricted Units'!B320=\"\",\"\",'2. Assisted & Restricted Units'!B320)","v":""},{"$f":"IF('2. Assisted & Restricted Units'!D320=\"\",\"\",'2. Assisted & Restricted Units'!D320)","v":""},{"$f":"IF('2. Assisted & Restricted Units'!E320=\"\",\"\",'2. Assisted & Restricted Units'!E320)","v":""},{"$f":"IF('2. Assisted & Restricted Units'!H320=\"\",\"\",'2. Assisted & Restricted Units'!H320)","v":""},{"$f":"_xlfn.IFS(E320=\"\",\"\",E320>BO320,$BP$6,E320>BN320,$BO$6,E320>BM320,$BN$6,E320>BL320,$BM$6,E320>BK320,$BL$6,E320>BJ320,$BK$6,E320>BI320,$BJ$6,E320>BH320,$BI$6,E320>BG320,$BH$6,E320>BF320,$BG$6,E320>BE320,$BF$6,E320>BD320,$BE$6,E320>BC320,$BD$6,E320>=0,$BC$6)","v":""},{"$f":"IF('2. Assisted & Restricted Units'!T320=\"\",\"\",'2. Assisted & Restricted Units'!T320)","v":""},{"$f":"IF('2. Assisted & Restricted Units'!I320=\"\",\"\",'2. Assisted & Restricted Units'!I320)","v":""},{"$f":"IF('2. Assisted & Restricted Units'!AP320=\"\",\"\",'2. Assisted & Restricted Units'!AP320)","v":0},{"$f":"IF('2. Assisted & Restricted Units'!AT320=\"\",\"\",'2. Assisted & Restricted Units'!AT320)","v":""},0,{"$f":"IF('2. Assisted & Restricted Units'!AV320=\"\",\"\",'2. Assisted & Restricted Units'!AV320)","v":""},{"$f":"IF('2. Assisted & Restricted Units'!L320=\"\",\"\",'2. Assisted & Restricted Units'!L320)","v":""},{"$f":"IF('2. Assisted & Restricted Units'!M320=\"\",\"\",'2. Assisted & Restricted Units'!M320)","v":""},{"$f":"IF('2. Assisted & Restricted Units'!O320=\"\",\"\",'2. Assisted & Restricted Units'!O320)","v":""},{"$f":"IF('2. Assisted & Restricted Units'!P320=\"\",\"\",'2. Assisted & Restricted Units'!P320)","v":""},{"$f":"IF('2. Assisted & Restricted Units'!Q320=\"\",\"\",'2. Assisted & Restricted Units'!Q320)","v":""},{"$f":"IF('2. Assisted & Restricted Units'!R320=\"\",\"\",'2. Assisted & Restricted Units'!R320)","v":""},{"$f":"IF(A320=\"\",\"\",'1. Checklist & Certification'!$K$1)","v":""},{"$f":"IF(A320=\"\",\"\",'1. Checklist & Certification'!$C$62)","v":""},{"$f":"IF(A320=\"\",\"\",'1. Checklist & Certification'!$K$62)","v":""},{"$f":"IF(A320=\"\",\"\",'1. Checklist & Certification'!$C$6)","v":""},{"$f":"IF(A320=\"\",\"\",'1. Checklist & Certification'!$G$4)","v":""},{"$f":"IF(A320=\"\",\"\",'1. Checklist & Certification'!$C$7)","v":""},{"$f":"IF(A320=\"\",\"\",'1. Checklist & Certification'!$C$8)","v":""},{"$f":"IF(A320=\"\",\"\",'1. Checklist & Certification'!$F$7)","v":""},{"$f":"IF(A320=\"\",\"\",'1. Checklist & Certification'!$F$8)","v":""},{"$f":"IF(A320=\"\",\"\",'1. Checklist & Certification'!$B$9)","v":""},{"$f":"IF(A320=\"\",\"\",'1. Checklist & Certification'!$F$9)","v":""},{"$f":"IF(A320=\"\",\"\",'1. Checklist & Certification'!$C$10)","v":""},{"$f":"IF(A320=\"\",\"\",'1. Checklist & Certification'!$C$11)","v":""},{"$f":"IF(A320=\"\",\"\",'1. Checklist & Certification'!$C$12)","v":""},{"$f":"IF(A320=\"\",\"\",'1. Checklist & Certification'!$B$14)","v":""},{"$f":"IF(A320=\"\",\"\",'1. Checklist & Certification'!$E$14)","v":""},{"$f":"IF(B320=\"\",\"\",'1. Checklist & Certification'!$G$14)","v":""},{"$f":"IF(A320=\"\",\"\",'MHP Family Income & Rent Limits'!$B$3)","v":""},{"$f":"IF(A320=\"\",\"\",'MHP Family Income & Rent Limits'!$J$3)","v":""},{"$f":"IF(A320=\"\",\"\",'MHP Family Income & Rent Limits'!$E$4)","v":""},{"$f":"IF(A320=\"\",\"\",'MHP Family Income & Rent Limits'!$C$7)","v":""},{"$f":"IF(A320=\"\",\"\",'MHP Family Income & Rent Limits'!$F$8)","v":""},{"$f":"IF(A320=\"\",\"\",'1. Checklist & Certification'!$G$4)","v":""},{"$f":"IF(A320=\"\",\"\",'1. Checklist & Certification'!$K$39)","v":""},{"$f":"IF(A320=\"\",\"\",'1. Checklist & Certification'!$K$43)","v":""},{"$f":"IF(A320=\"\",\"\",'1. Checklist & Certification'!$K$45)","v":""},{"$f":"IF(A320=\"\",\"\",'1. Checklist & Certification'!$K$49)","v":""},{"$f":"IF(A320=\"\",\"\",'1. Checklist & Certification'!$E$66)","v":""},{"$f":"IF(A320=\"\",\"\",'1. Checklist & Certification'!$E$67)","v":""},{"$f":"IF(A320=\"\",\"\",'1. Checklist & Certification'!$E$68)","v":""},{"$f":"IF(A320=\"\",\"\",'1. Checklist & Certification'!$G$66)","v":""},{"$f":"IF(A320=\"\",\"\",'1. Checklist & Certification'!$H$66)","v":""},{"$f":"IF(A320=\"\",\"\",'1. Checklist & Certification'!$I$66)","v":""},{"$f":"IF(A320=\"\",\"\",'1. Checklist & Certification'!$I$67)","v":""},{"$f":"IF(A320=\"\",\"\",'1. Checklist & Certification'!$I$68)","v":""},null,{"$f":"IF(C320=\"\",\"\",HLOOKUP(C320,'MHP Family Income & Rent Limits'!$E$12:$L$26,2,FALSE))","v":""},{"$f":"IF(C320=\"\",\"\",HLOOKUP(C320,'MHP Family Income & Rent Limits'!$E$12:$L$26,3,FALSE))","v":""},{"$f":"IF(C320=\"\",\"\",HLOOKUP(C320,'MHP Family Income & Rent Limits'!$E$12:$L$26,4,FALSE))","v":""},{"$f":"IF(C320=\"\",\"\",HLOOKUP(C320,'MHP Family Income & Rent Limits'!$E$12:$L$26,5,FALSE))","v":""},{"$f":"IF(C320=\"\",\"\",HLOOKUP(C320,'MHP Family Income & Rent Limits'!$E$12:$L$26,6,FALSE))","v":""},{"$f":"IF(C320=\"\",\"\",HLOOKUP(C320,'MHP Family Income & Rent Limits'!$E$12:$L$26,7,FALSE))","v":""},{"$f":"IF(C320=\"\",\"\",HLOOKUP(C320,'MHP Family Income & Rent Limits'!$E$12:$L$26,8,FALSE))","v":""},{"$f":"IF(C320=\"\",\"\",HLOOKUP(C320,'MHP Family Income & Rent Limits'!$E$12:$L$26,9,FALSE))","v":""},{"$f":"IF(C320=\"\",\"\",HLOOKUP(C320,'MHP Family Income & Rent Limits'!$E$12:$L$26,10,FALSE))","v":""},{"$f":"IF(C320=\"\",\"\",HLOOKUP(C320,'MHP Family Income & Rent Limits'!$E$12:$L$26,11,FALSE))","v":""},{"$f":"IF(C320=\"\",\"\",HLOOKUP(C320,'MHP Family Income & Rent Limits'!$E$12:$L$26,12,FALSE))","v":""},{"$f":"IF(C320=\"\",\"\",HLOOKUP(C320,'MHP Family Income & Rent Limits'!$E$12:$L$26,13,FALSE))","v":""},{"$f":"IF(C320=\"\",\"\",HLOOKUP(C320,'MHP Family Income & Rent Limits'!$E$12:$L$26,14,FALSE))","v":""},{"$f":"IF(C320=\"\",\"\",HLOOKUP(C320,'MHP Family Income & Rent Limits'!$E$12:$L$26,15,FALSE))","v":""}]
[{"$f":"IF('2. Assisted & Restricted Units'!A321=\"\",\"\",'2. Assisted & Restricted Units'!A321)","v":""},{"$f":"IF('2. Assisted & Restricted Units'!B321=\"\",\"\",'2. Assisted & Restricted Units'!B321)","v":""},{"$f":"IF('2. Assisted & Restricted Units'!D321=\"\",\"\",'2. Assisted & Restricted Units'!D321)","v":""},{"$f":"IF('2. Assisted & Restricted Units'!E321=\"\",\"\",'2. Assisted & Restricted Units'!E321)","v":""},{"$f":"IF('2. Assisted & Restricted Units'!H321=\"\",\"\",'2. Assisted & Restricted Units'!H321)","v":""},{"$f":"_xlfn.IFS(E321=\"\",\"\",E321>BO321,$BP$6,E321>BN321,$BO$6,E321>BM321,$BN$6,E321>BL321,$BM$6,E321>BK321,$BL$6,E321>BJ321,$BK$6,E321>BI321,$BJ$6,E321>BH321,$BI$6,E321>BG321,$BH$6,E321>BF321,$BG$6,E321>BE321,$BF$6,E321>BD321,$BE$6,E321>BC321,$BD$6,E321>=0,$BC$6)","v":""},{"$f":"IF('2. Assisted & Restricted Units'!T321=\"\",\"\",'2. Assisted & Restricted Units'!T321)","v":""},{"$f":"IF('2. Assisted & Restricted Units'!I321=\"\",\"\",'2. Assisted & Restricted Units'!I321)","v":""},{"$f":"IF('2. Assisted & Restricted Units'!AP321=\"\",\"\",'2. Assisted & Restricted Units'!AP321)","v":0},{"$f":"IF('2. Assisted & Restricted Units'!AT321=\"\",\"\",'2. Assisted & Restricted Units'!AT321)","v":""},0,{"$f":"IF('2. Assisted & Restricted Units'!AV321=\"\",\"\",'2. Assisted & Restricted Units'!AV321)","v":""},{"$f":"IF('2. Assisted & Restricted Units'!L321=\"\",\"\",'2. Assisted & Restricted Units'!L321)","v":""},{"$f":"IF('2. Assisted & Restricted Units'!M321=\"\",\"\",'2. Assisted & Restricted Units'!M321)","v":""},{"$f":"IF('2. Assisted & Restricted Units'!O321=\"\",\"\",'2. Assisted & Restricted Units'!O321)","v":""},{"$f":"IF('2. Assisted & Restricted Units'!P321=\"\",\"\",'2. Assisted & Restricted Units'!P321)","v":""},{"$f":"IF('2. Assisted & Restricted Units'!Q321=\"\",\"\",'2. Assisted & Restricted Units'!Q321)","v":""},{"$f":"IF('2. Assisted & Restricted Units'!R321=\"\",\"\",'2. Assisted & Restricted Units'!R321)","v":""},{"$f":"IF(A321=\"\",\"\",'1. Checklist & Certification'!$K$1)","v":""},{"$f":"IF(A321=\"\",\"\",'1. Checklist & Certification'!$C$62)","v":""},{"$f":"IF(A321=\"\",\"\",'1. Checklist & Certification'!$K$62)","v":""},{"$f":"IF(A321=\"\",\"\",'1. Checklist & Certification'!$C$6)","v":""},{"$f":"IF(A321=\"\",\"\",'1. Checklist & Certification'!$G$4)","v":""},{"$f":"IF(A321=\"\",\"\",'1. Checklist & Certification'!$C$7)","v":""},{"$f":"IF(A321=\"\",\"\",'1. Checklist & Certification'!$C$8)","v":""},{"$f":"IF(A321=\"\",\"\",'1. Checklist & Certification'!$F$7)","v":""},{"$f":"IF(A321=\"\",\"\",'1. Checklist & Certification'!$F$8)","v":""},{"$f":"IF(A321=\"\",\"\",'1. Checklist & Certification'!$B$9)","v":""},{"$f":"IF(A321=\"\",\"\",'1. Checklist & Certification'!$F$9)","v":""},{"$f":"IF(A321=\"\",\"\",'1. Checklist & Certification'!$C$10)","v":""},{"$f":"IF(A321=\"\",\"\",'1. Checklist & Certification'!$C$11)","v":""},{"$f":"IF(A321=\"\",\"\",'1. Checklist & Certification'!$C$12)","v":""},{"$f":"IF(A321=\"\",\"\",'1. Checklist & Certification'!$B$14)","v":""},{"$f":"IF(A321=\"\",\"\",'1. Checklist & Certification'!$E$14)","v":""},{"$f":"IF(B321=\"\",\"\",'1. Checklist & Certification'!$G$14)","v":""},{"$f":"IF(A321=\"\",\"\",'MHP Family Income & Rent Limits'!$B$3)","v":""},{"$f":"IF(A321=\"\",\"\",'MHP Family Income & Rent Limits'!$J$3)","v":""},{"$f":"IF(A321=\"\",\"\",'MHP Family Income & Rent Limits'!$E$4)","v":""},{"$f":"IF(A321=\"\",\"\",'MHP Family Income & Rent Limits'!$C$7)","v":""},{"$f":"IF(A321=\"\",\"\",'MHP Family Income & Rent Limits'!$F$8)","v":""},{"$f":"IF(A321=\"\",\"\",'1. Checklist & Certification'!$G$4)","v":""},{"$f":"IF(A321=\"\",\"\",'1. Checklist & Certification'!$K$39)","v":""},{"$f":"IF(A321=\"\",\"\",'1. Checklist & Certification'!$K$43)","v":""},{"$f":"IF(A321=\"\",\"\",'1. Checklist & Certification'!$K$45)","v":""},{"$f":"IF(A321=\"\",\"\",'1. Checklist & Certification'!$K$49)","v":""},{"$f":"IF(A321=\"\",\"\",'1. Checklist & Certification'!$E$66)","v":""},{"$f":"IF(A321=\"\",\"\",'1. Checklist & Certification'!$E$67)","v":""},{"$f":"IF(A321=\"\",\"\",'1. Checklist & Certification'!$E$68)","v":""},{"$f":"IF(A321=\"\",\"\",'1. Checklist & Certification'!$G$66)","v":""},{"$f":"IF(A321=\"\",\"\",'1. Checklist & Certification'!$H$66)","v":""},{"$f":"IF(A321=\"\",\"\",'1. Checklist & Certification'!$I$66)","v":""},{"$f":"IF(A321=\"\",\"\",'1. Checklist & Certification'!$I$67)","v":""},{"$f":"IF(A321=\"\",\"\",'1. Checklist & Certification'!$I$68)","v":""},null,{"$f":"IF(C321=\"\",\"\",HLOOKUP(C321,'MHP Family Income & Rent Limits'!$E$12:$L$26,2,FALSE))","v":""},{"$f":"IF(C321=\"\",\"\",HLOOKUP(C321,'MHP Family Income & Rent Limits'!$E$12:$L$26,3,FALSE))","v":""},{"$f":"IF(C321=\"\",\"\",HLOOKUP(C321,'MHP Family Income & Rent Limits'!$E$12:$L$26,4,FALSE))","v":""},{"$f":"IF(C321=\"\",\"\",HLOOKUP(C321,'MHP Family Income & Rent Limits'!$E$12:$L$26,5,FALSE))","v":""},{"$f":"IF(C321=\"\",\"\",HLOOKUP(C321,'MHP Family Income & Rent Limits'!$E$12:$L$26,6,FALSE))","v":""},{"$f":"IF(C321=\"\",\"\",HLOOKUP(C321,'MHP Family Income & Rent Limits'!$E$12:$L$26,7,FALSE))","v":""},{"$f":"IF(C321=\"\",\"\",HLOOKUP(C321,'MHP Family Income & Rent Limits'!$E$12:$L$26,8,FALSE))","v":""},{"$f":"IF(C321=\"\",\"\",HLOOKUP(C321,'MHP Family Income & Rent Limits'!$E$12:$L$26,9,FALSE))","v":""},{"$f":"IF(C321=\"\",\"\",HLOOKUP(C321,'MHP Family Income & Rent Limits'!$E$12:$L$26,10,FALSE))","v":""},{"$f":"IF(C321=\"\",\"\",HLOOKUP(C321,'MHP Family Income & Rent Limits'!$E$12:$L$26,11,FALSE))","v":""},{"$f":"IF(C321=\"\",\"\",HLOOKUP(C321,'MHP Family Income & Rent Limits'!$E$12:$L$26,12,FALSE))","v":""},{"$f":"IF(C321=\"\",\"\",HLOOKUP(C321,'MHP Family Income & Rent Limits'!$E$12:$L$26,13,FALSE))","v":""},{"$f":"IF(C321=\"\",\"\",HLOOKUP(C321,'MHP Family Income & Rent Limits'!$E$12:$L$26,14,FALSE))","v":""},{"$f":"IF(C321=\"\",\"\",HLOOKUP(C321,'MHP Family Income & Rent Limits'!$E$12:$L$26,15,FALSE))","v":""}]
[{"$f":"IF('2. Assisted & Restricted Units'!A322=\"\",\"\",'2. Assisted & Restricted Units'!A322)","v":""},{"$f":"IF('2. Assisted & Restricted Units'!B322=\"\",\"\",'2. Assisted & Restricted Units'!B322)","v":""},{"$f":"IF('2. Assisted & Restricted Units'!D322=\"\",\"\",'2. Assisted & Restricted Units'!D322)","v":""},{"$f":"IF('2. Assisted & Restricted Units'!E322=\"\",\"\",'2. Assisted & Restricted Units'!E322)","v":""},{"$f":"IF('2. Assisted & Restricted Units'!H322=\"\",\"\",'2. Assisted & Restricted Units'!H322)","v":""},{"$f":"_xlfn.IFS(E322=\"\",\"\",E322>BO322,$BP$6,E322>BN322,$BO$6,E322>BM322,$BN$6,E322>BL322,$BM$6,E322>BK322,$BL$6,E322>BJ322,$BK$6,E322>BI322,$BJ$6,E322>BH322,$BI$6,E322>BG322,$BH$6,E322>BF322,$BG$6,E322>BE322,$BF$6,E322>BD322,$BE$6,E322>BC322,$BD$6,E322>=0,$BC$6)","v":""},{"$f":"IF('2. Assisted & Restricted Units'!T322=\"\",\"\",'2. Assisted & Restricted Units'!T322)","v":""},{"$f":"IF('2. Assisted & Restricted Units'!I322=\"\",\"\",'2. Assisted & Restricted Units'!I322)","v":""},{"$f":"IF('2. Assisted & Restricted Units'!AP322=\"\",\"\",'2. Assisted & Restricted Units'!AP322)","v":0},{"$f":"IF('2. Assisted & Restricted Units'!AT322=\"\",\"\",'2. Assisted & Restricted Units'!AT322)","v":""},0,{"$f":"IF('2. Assisted & Restricted Units'!AV322=\"\",\"\",'2. Assisted & Restricted Units'!AV322)","v":""},{"$f":"IF('2. Assisted & Restricted Units'!L322=\"\",\"\",'2. Assisted & Restricted Units'!L322)","v":""},{"$f":"IF('2. Assisted & Restricted Units'!M322=\"\",\"\",'2. Assisted & Restricted Units'!M322)","v":""},{"$f":"IF('2. Assisted & Restricted Units'!O322=\"\",\"\",'2. Assisted & Restricted Units'!O322)","v":""},{"$f":"IF('2. Assisted & Restricted Units'!P322=\"\",\"\",'2. Assisted & Restricted Units'!P322)","v":""},{"$f":"IF('2. Assisted & Restricted Units'!Q322=\"\",\"\",'2. Assisted & Restricted Units'!Q322)","v":""},{"$f":"IF('2. Assisted & Restricted Units'!R322=\"\",\"\",'2. Assisted & Restricted Units'!R322)","v":""},{"$f":"IF(A322=\"\",\"\",'1. Checklist & Certification'!$K$1)","v":""},{"$f":"IF(A322=\"\",\"\",'1. Checklist & Certification'!$C$62)","v":""},{"$f":"IF(A322=\"\",\"\",'1. Checklist & Certification'!$K$62)","v":""},{"$f":"IF(A322=\"\",\"\",'1. Checklist & Certification'!$C$6)","v":""},{"$f":"IF(A322=\"\",\"\",'1. Checklist & Certification'!$G$4)","v":""},{"$f":"IF(A322=\"\",\"\",'1. Checklist & Certification'!$C$7)","v":""},{"$f":"IF(A322=\"\",\"\",'1. Checklist & Certification'!$C$8)","v":""},{"$f":"IF(A322=\"\",\"\",'1. Checklist & Certification'!$F$7)","v":""},{"$f":"IF(A322=\"\",\"\",'1. Checklist & Certification'!$F$8)","v":""},{"$f":"IF(A322=\"\",\"\",'1. Checklist & Certification'!$B$9)","v":""},{"$f":"IF(A322=\"\",\"\",'1. Checklist & Certification'!$F$9)","v":""},{"$f":"IF(A322=\"\",\"\",'1. Checklist & Certification'!$C$10)","v":""},{"$f":"IF(A322=\"\",\"\",'1. Checklist & Certification'!$C$11)","v":""},{"$f":"IF(A322=\"\",\"\",'1. Checklist & Certification'!$C$12)","v":""},{"$f":"IF(A322=\"\",\"\",'1. Checklist & Certification'!$B$14)","v":""},{"$f":"IF(A322=\"\",\"\",'1. Checklist & Certification'!$E$14)","v":""},{"$f":"IF(B322=\"\",\"\",'1. Checklist & Certification'!$G$14)","v":""},{"$f":"IF(A322=\"\",\"\",'MHP Family Income & Rent Limits'!$B$3)","v":""},{"$f":"IF(A322=\"\",\"\",'MHP Family Income & Rent Limits'!$J$3)","v":""},{"$f":"IF(A322=\"\",\"\",'MHP Family Income & Rent Limits'!$E$4)","v":""},{"$f":"IF(A322=\"\",\"\",'MHP Family Income & Rent Limits'!$C$7)","v":""},{"$f":"IF(A322=\"\",\"\",'MHP Family Income & Rent Limits'!$F$8)","v":""},{"$f":"IF(A322=\"\",\"\",'1. Checklist & Certification'!$G$4)","v":""},{"$f":"IF(A322=\"\",\"\",'1. Checklist & Certification'!$K$39)","v":""},{"$f":"IF(A322=\"\",\"\",'1. Checklist & Certification'!$K$43)","v":""},{"$f":"IF(A322=\"\",\"\",'1. Checklist & Certification'!$K$45)","v":""},{"$f":"IF(A322=\"\",\"\",'1. Checklist & Certification'!$K$49)","v":""},{"$f":"IF(A322=\"\",\"\",'1. Checklist & Certification'!$E$66)","v":""},{"$f":"IF(A322=\"\",\"\",'1. Checklist & Certification'!$E$67)","v":""},{"$f":"IF(A322=\"\",\"\",'1. Checklist & Certification'!$E$68)","v":""},{"$f":"IF(A322=\"\",\"\",'1. Checklist & Certification'!$G$66)","v":""},{"$f":"IF(A322=\"\",\"\",'1. Checklist & Certification'!$H$66)","v":""},{"$f":"IF(A322=\"\",\"\",'1. Checklist & Certification'!$I$66)","v":""},{"$f":"IF(A322=\"\",\"\",'1. Checklist & Certification'!$I$67)","v":""},{"$f":"IF(A322=\"\",\"\",'1. Checklist & Certification'!$I$68)","v":""},null,{"$f":"IF(C322=\"\",\"\",HLOOKUP(C322,'MHP Family Income & Rent Limits'!$E$12:$L$26,2,FALSE))","v":""},{"$f":"IF(C322=\"\",\"\",HLOOKUP(C322,'MHP Family Income & Rent Limits'!$E$12:$L$26,3,FALSE))","v":""},{"$f":"IF(C322=\"\",\"\",HLOOKUP(C322,'MHP Family Income & Rent Limits'!$E$12:$L$26,4,FALSE))","v":""},{"$f":"IF(C322=\"\",\"\",HLOOKUP(C322,'MHP Family Income & Rent Limits'!$E$12:$L$26,5,FALSE))","v":""},{"$f":"IF(C322=\"\",\"\",HLOOKUP(C322,'MHP Family Income & Rent Limits'!$E$12:$L$26,6,FALSE))","v":""},{"$f":"IF(C322=\"\",\"\",HLOOKUP(C322,'MHP Family Income & Rent Limits'!$E$12:$L$26,7,FALSE))","v":""},{"$f":"IF(C322=\"\",\"\",HLOOKUP(C322,'MHP Family Income & Rent Limits'!$E$12:$L$26,8,FALSE))","v":""},{"$f":"IF(C322=\"\",\"\",HLOOKUP(C322,'MHP Family Income & Rent Limits'!$E$12:$L$26,9,FALSE))","v":""},{"$f":"IF(C322=\"\",\"\",HLOOKUP(C322,'MHP Family Income & Rent Limits'!$E$12:$L$26,10,FALSE))","v":""},{"$f":"IF(C322=\"\",\"\",HLOOKUP(C322,'MHP Family Income & Rent Limits'!$E$12:$L$26,11,FALSE))","v":""},{"$f":"IF(C322=\"\",\"\",HLOOKUP(C322,'MHP Family Income & Rent Limits'!$E$12:$L$26,12,FALSE))","v":""},{"$f":"IF(C322=\"\",\"\",HLOOKUP(C322,'MHP Family Income & Rent Limits'!$E$12:$L$26,13,FALSE))","v":""},{"$f":"IF(C322=\"\",\"\",HLOOKUP(C322,'MHP Family Income & Rent Limits'!$E$12:$L$26,14,FALSE))","v":""},{"$f":"IF(C322=\"\",\"\",HLOOKUP(C322,'MHP Family Income & Rent Limits'!$E$12:$L$26,15,FALSE))","v":""}]
[{"$f":"IF('2. Assisted & Restricted Units'!A323=\"\",\"\",'2. Assisted & Restricted Units'!A323)","v":""},{"$f":"IF('2. Assisted & Restricted Units'!B323=\"\",\"\",'2. Assisted & Restricted Units'!B323)","v":""},{"$f":"IF('2. Assisted & Restricted Units'!D323=\"\",\"\",'2. Assisted & Restricted Units'!D323)","v":""},{"$f":"IF('2. Assisted & Restricted Units'!E323=\"\",\"\",'2. Assisted & Restricted Units'!E323)","v":""},{"$f":"IF('2. Assisted & Restricted Units'!H323=\"\",\"\",'2. Assisted & Restricted Units'!H323)","v":""},{"$f":"_xlfn.IFS(E323=\"\",\"\",E323>BO323,$BP$6,E323>BN323,$BO$6,E323>BM323,$BN$6,E323>BL323,$BM$6,E323>BK323,$BL$6,E323>BJ323,$BK$6,E323>BI323,$BJ$6,E323>BH323,$BI$6,E323>BG323,$BH$6,E323>BF323,$BG$6,E323>BE323,$BF$6,E323>BD323,$BE$6,E323>BC323,$BD$6,E323>=0,$BC$6)","v":""},{"$f":"IF('2. Assisted & Restricted Units'!T323=\"\",\"\",'2. Assisted & Restricted Units'!T323)","v":""},{"$f":"IF('2. Assisted & Restricted Units'!I323=\"\",\"\",'2. Assisted & Restricted Units'!I323)","v":""},{"$f":"IF('2. Assisted & Restricted Units'!AP323=\"\",\"\",'2. Assisted & Restricted Units'!AP323)","v":0},{"$f":"IF('2. Assisted & Restricted Units'!AT323=\"\",\"\",'2. Assisted & Restricted Units'!AT323)","v":""},0,{"$f":"IF('2. Assisted & Restricted Units'!AV323=\"\",\"\",'2. Assisted & Restricted Units'!AV323)","v":""},{"$f":"IF('2. Assisted & Restricted Units'!L323=\"\",\"\",'2. Assisted & Restricted Units'!L323)","v":""},{"$f":"IF('2. Assisted & Restricted Units'!M323=\"\",\"\",'2. Assisted & Restricted Units'!M323)","v":""},{"$f":"IF('2. Assisted & Restricted Units'!O323=\"\",\"\",'2. Assisted & Restricted Units'!O323)","v":""},{"$f":"IF('2. Assisted & Restricted Units'!P323=\"\",\"\",'2. Assisted & Restricted Units'!P323)","v":""},{"$f":"IF('2. Assisted & Restricted Units'!Q323=\"\",\"\",'2. Assisted & Restricted Units'!Q323)","v":""},{"$f":"IF('2. Assisted & Restricted Units'!R323=\"\",\"\",'2. Assisted & Restricted Units'!R323)","v":""},{"$f":"IF(A323=\"\",\"\",'1. Checklist & Certification'!$K$1)","v":""},{"$f":"IF(A323=\"\",\"\",'1. Checklist & Certification'!$C$62)","v":""},{"$f":"IF(A323=\"\",\"\",'1. Checklist & Certification'!$K$62)","v":""},{"$f":"IF(A323=\"\",\"\",'1. Checklist & Certification'!$C$6)","v":""},{"$f":"IF(A323=\"\",\"\",'1. Checklist & Certification'!$G$4)","v":""},{"$f":"IF(A323=\"\",\"\",'1. Checklist & Certification'!$C$7)","v":""},{"$f":"IF(A323=\"\",\"\",'1. Checklist & Certification'!$C$8)","v":""},{"$f":"IF(A323=\"\",\"\",'1. Checklist & Certification'!$F$7)","v":""},{"$f":"IF(A323=\"\",\"\",'1. Checklist & Certification'!$F$8)","v":""},{"$f":"IF(A323=\"\",\"\",'1. Checklist & Certification'!$B$9)","v":""},{"$f":"IF(A323=\"\",\"\",'1. Checklist & Certification'!$F$9)","v":""},{"$f":"IF(A323=\"\",\"\",'1. Checklist & Certification'!$C$10)","v":""},{"$f":"IF(A323=\"\",\"\",'1. Checklist & Certification'!$C$11)","v":""},{"$f":"IF(A323=\"\",\"\",'1. Checklist & Certification'!$C$12)","v":""},{"$f":"IF(A323=\"\",\"\",'1. Checklist & Certification'!$B$14)","v":""},{"$f":"IF(A323=\"\",\"\",'1. Checklist & Certification'!$E$14)","v":""},{"$f":"IF(B323=\"\",\"\",'1. Checklist & Certification'!$G$14)","v":""},{"$f":"IF(A323=\"\",\"\",'MHP Family Income & Rent Limits'!$B$3)","v":""},{"$f":"IF(A323=\"\",\"\",'MHP Family Income & Rent Limits'!$J$3)","v":""},{"$f":"IF(A323=\"\",\"\",'MHP Family Income & Rent Limits'!$E$4)","v":""},{"$f":"IF(A323=\"\",\"\",'MHP Family Income & Rent Limits'!$C$7)","v":""},{"$f":"IF(A323=\"\",\"\",'MHP Family Income & Rent Limits'!$F$8)","v":""},{"$f":"IF(A323=\"\",\"\",'1. Checklist & Certification'!$G$4)","v":""},{"$f":"IF(A323=\"\",\"\",'1. Checklist & Certification'!$K$39)","v":""},{"$f":"IF(A323=\"\",\"\",'1. Checklist & Certification'!$K$43)","v":""},{"$f":"IF(A323=\"\",\"\",'1. Checklist & Certification'!$K$45)","v":""},{"$f":"IF(A323=\"\",\"\",'1. Checklist & Certification'!$K$49)","v":""},{"$f":"IF(A323=\"\",\"\",'1. Checklist & Certification'!$E$66)","v":""},{"$f":"IF(A323=\"\",\"\",'1. Checklist & Certification'!$E$67)","v":""},{"$f":"IF(A323=\"\",\"\",'1. Checklist & Certification'!$E$68)","v":""},{"$f":"IF(A323=\"\",\"\",'1. Checklist & Certification'!$G$66)","v":""},{"$f":"IF(A323=\"\",\"\",'1. Checklist & Certification'!$H$66)","v":""},{"$f":"IF(A323=\"\",\"\",'1. Checklist & Certification'!$I$66)","v":""},{"$f":"IF(A323=\"\",\"\",'1. Checklist & Certification'!$I$67)","v":""},{"$f":"IF(A323=\"\",\"\",'1. Checklist & Certification'!$I$68)","v":""},null,{"$f":"IF(C323=\"\",\"\",HLOOKUP(C323,'MHP Family Income & Rent Limits'!$E$12:$L$26,2,FALSE))","v":""},{"$f":"IF(C323=\"\",\"\",HLOOKUP(C323,'MHP Family Income & Rent Limits'!$E$12:$L$26,3,FALSE))","v":""},{"$f":"IF(C323=\"\",\"\",HLOOKUP(C323,'MHP Family Income & Rent Limits'!$E$12:$L$26,4,FALSE))","v":""},{"$f":"IF(C323=\"\",\"\",HLOOKUP(C323,'MHP Family Income & Rent Limits'!$E$12:$L$26,5,FALSE))","v":""},{"$f":"IF(C323=\"\",\"\",HLOOKUP(C323,'MHP Family Income & Rent Limits'!$E$12:$L$26,6,FALSE))","v":""},{"$f":"IF(C323=\"\",\"\",HLOOKUP(C323,'MHP Family Income & Rent Limits'!$E$12:$L$26,7,FALSE))","v":""},{"$f":"IF(C323=\"\",\"\",HLOOKUP(C323,'MHP Family Income & Rent Limits'!$E$12:$L$26,8,FALSE))","v":""},{"$f":"IF(C323=\"\",\"\",HLOOKUP(C323,'MHP Family Income & Rent Limits'!$E$12:$L$26,9,FALSE))","v":""},{"$f":"IF(C323=\"\",\"\",HLOOKUP(C323,'MHP Family Income & Rent Limits'!$E$12:$L$26,10,FALSE))","v":""},{"$f":"IF(C323=\"\",\"\",HLOOKUP(C323,'MHP Family Income & Rent Limits'!$E$12:$L$26,11,FALSE))","v":""},{"$f":"IF(C323=\"\",\"\",HLOOKUP(C323,'MHP Family Income & Rent Limits'!$E$12:$L$26,12,FALSE))","v":""},{"$f":"IF(C323=\"\",\"\",HLOOKUP(C323,'MHP Family Income & Rent Limits'!$E$12:$L$26,13,FALSE))","v":""},{"$f":"IF(C323=\"\",\"\",HLOOKUP(C323,'MHP Family Income & Rent Limits'!$E$12:$L$26,14,FALSE))","v":""},{"$f":"IF(C323=\"\",\"\",HLOOKUP(C323,'MHP Family Income & Rent Limits'!$E$12:$L$26,15,FALSE))","v":""}]
[{"$f":"IF('2. Assisted & Restricted Units'!A324=\"\",\"\",'2. Assisted & Restricted Units'!A324)","v":""},{"$f":"IF('2. Assisted & Restricted Units'!B324=\"\",\"\",'2. Assisted & Restricted Units'!B324)","v":""},{"$f":"IF('2. Assisted & Restricted Units'!D324=\"\",\"\",'2. Assisted & Restricted Units'!D324)","v":""},{"$f":"IF('2. Assisted & Restricted Units'!E324=\"\",\"\",'2. Assisted & Restricted Units'!E324)","v":""},{"$f":"IF('2. Assisted & Restricted Units'!H324=\"\",\"\",'2. Assisted & Restricted Units'!H324)","v":""},{"$f":"_xlfn.IFS(E324=\"\",\"\",E324>BO324,$BP$6,E324>BN324,$BO$6,E324>BM324,$BN$6,E324>BL324,$BM$6,E324>BK324,$BL$6,E324>BJ324,$BK$6,E324>BI324,$BJ$6,E324>BH324,$BI$6,E324>BG324,$BH$6,E324>BF324,$BG$6,E324>BE324,$BF$6,E324>BD324,$BE$6,E324>BC324,$BD$6,E324>=0,$BC$6)","v":""},{"$f":"IF('2. Assisted & Restricted Units'!T324=\"\",\"\",'2. Assisted & Restricted Units'!T324)","v":""},{"$f":"IF('2. Assisted & Restricted Units'!I324=\"\",\"\",'2. Assisted & Restricted Units'!I324)","v":""},{"$f":"IF('2. Assisted & Restricted Units'!AP324=\"\",\"\",'2. Assisted & Restricted Units'!AP324)","v":0},{"$f":"IF('2. Assisted & Restricted Units'!AT324=\"\",\"\",'2. Assisted & Restricted Units'!AT324)","v":""},0,{"$f":"IF('2. Assisted & Restricted Units'!AV324=\"\",\"\",'2. Assisted & Restricted Units'!AV324)","v":""},{"$f":"IF('2. Assisted & Restricted Units'!L324=\"\",\"\",'2. Assisted & Restricted Units'!L324)","v":""},{"$f":"IF('2. Assisted & Restricted Units'!M324=\"\",\"\",'2. Assisted & Restricted Units'!M324)","v":""},{"$f":"IF('2. Assisted & Restricted Units'!O324=\"\",\"\",'2. Assisted & Restricted Units'!O324)","v":""},{"$f":"IF('2. Assisted & Restricted Units'!P324=\"\",\"\",'2. Assisted & Restricted Units'!P324)","v":""},{"$f":"IF('2. Assisted & Restricted Units'!Q324=\"\",\"\",'2. Assisted & Restricted Units'!Q324)","v":""},{"$f":"IF('2. Assisted & Restricted Units'!R324=\"\",\"\",'2. Assisted & Restricted Units'!R324)","v":""},{"$f":"IF(A324=\"\",\"\",'1. Checklist & Certification'!$K$1)","v":""},{"$f":"IF(A324=\"\",\"\",'1. Checklist & Certification'!$C$62)","v":""},{"$f":"IF(A324=\"\",\"\",'1. Checklist & Certification'!$K$62)","v":""},{"$f":"IF(A324=\"\",\"\",'1. Checklist & Certification'!$C$6)","v":""},{"$f":"IF(A324=\"\",\"\",'1. Checklist & Certification'!$G$4)","v":""},{"$f":"IF(A324=\"\",\"\",'1. Checklist & Certification'!$C$7)","v":""},{"$f":"IF(A324=\"\",\"\",'1. Checklist & Certification'!$C$8)","v":""},{"$f":"IF(A324=\"\",\"\",'1. Checklist & Certification'!$F$7)","v":""},{"$f":"IF(A324=\"\",\"\",'1. Checklist & Certification'!$F$8)","v":""},{"$f":"IF(A324=\"\",\"\",'1. Checklist & Certification'!$B$9)","v":""},{"$f":"IF(A324=\"\",\"\",'1. Checklist & Certification'!$F$9)","v":""},{"$f":"IF(A324=\"\",\"\",'1. Checklist & Certification'!$C$10)","v":""},{"$f":"IF(A324=\"\",\"\",'1. Checklist & Certification'!$C$11)","v":""},{"$f":"IF(A324=\"\",\"\",'1. Checklist & Certification'!$C$12)","v":""},{"$f":"IF(A324=\"\",\"\",'1. Checklist & Certification'!$B$14)","v":""},{"$f":"IF(A324=\"\",\"\",'1. Checklist & Certification'!$E$14)","v":""},{"$f":"IF(B324=\"\",\"\",'1. Checklist & Certification'!$G$14)","v":""},{"$f":"IF(A324=\"\",\"\",'MHP Family Income & Rent Limits'!$B$3)","v":""},{"$f":"IF(A324=\"\",\"\",'MHP Family Income & Rent Limits'!$J$3)","v":""},{"$f":"IF(A324=\"\",\"\",'MHP Family Income & Rent Limits'!$E$4)","v":""},{"$f":"IF(A324=\"\",\"\",'MHP Family Income & Rent Limits'!$C$7)","v":""},{"$f":"IF(A324=\"\",\"\",'MHP Family Income & Rent Limits'!$F$8)","v":""},{"$f":"IF(A324=\"\",\"\",'1. Checklist & Certification'!$G$4)","v":""},{"$f":"IF(A324=\"\",\"\",'1. Checklist & Certification'!$K$39)","v":""},{"$f":"IF(A324=\"\",\"\",'1. Checklist & Certification'!$K$43)","v":""},{"$f":"IF(A324=\"\",\"\",'1. Checklist & Certification'!$K$45)","v":""},{"$f":"IF(A324=\"\",\"\",'1. Checklist & Certification'!$K$49)","v":""},{"$f":"IF(A324=\"\",\"\",'1. Checklist & Certification'!$E$66)","v":""},{"$f":"IF(A324=\"\",\"\",'1. Checklist & Certification'!$E$67)","v":""},{"$f":"IF(A324=\"\",\"\",'1. Checklist & Certification'!$E$68)","v":""},{"$f":"IF(A324=\"\",\"\",'1. Checklist & Certification'!$G$66)","v":""},{"$f":"IF(A324=\"\",\"\",'1. Checklist & Certification'!$H$66)","v":""},{"$f":"IF(A324=\"\",\"\",'1. Checklist & Certification'!$I$66)","v":""},{"$f":"IF(A324=\"\",\"\",'1. Checklist & Certification'!$I$67)","v":""},{"$f":"IF(A324=\"\",\"\",'1. Checklist & Certification'!$I$68)","v":""},null,{"$f":"IF(C324=\"\",\"\",HLOOKUP(C324,'MHP Family Income & Rent Limits'!$E$12:$L$26,2,FALSE))","v":""},{"$f":"IF(C324=\"\",\"\",HLOOKUP(C324,'MHP Family Income & Rent Limits'!$E$12:$L$26,3,FALSE))","v":""},{"$f":"IF(C324=\"\",\"\",HLOOKUP(C324,'MHP Family Income & Rent Limits'!$E$12:$L$26,4,FALSE))","v":""},{"$f":"IF(C324=\"\",\"\",HLOOKUP(C324,'MHP Family Income & Rent Limits'!$E$12:$L$26,5,FALSE))","v":""},{"$f":"IF(C324=\"\",\"\",HLOOKUP(C324,'MHP Family Income & Rent Limits'!$E$12:$L$26,6,FALSE))","v":""},{"$f":"IF(C324=\"\",\"\",HLOOKUP(C324,'MHP Family Income & Rent Limits'!$E$12:$L$26,7,FALSE))","v":""},{"$f":"IF(C324=\"\",\"\",HLOOKUP(C324,'MHP Family Income & Rent Limits'!$E$12:$L$26,8,FALSE))","v":""},{"$f":"IF(C324=\"\",\"\",HLOOKUP(C324,'MHP Family Income & Rent Limits'!$E$12:$L$26,9,FALSE))","v":""},{"$f":"IF(C324=\"\",\"\",HLOOKUP(C324,'MHP Family Income & Rent Limits'!$E$12:$L$26,10,FALSE))","v":""},{"$f":"IF(C324=\"\",\"\",HLOOKUP(C324,'MHP Family Income & Rent Limits'!$E$12:$L$26,11,FALSE))","v":""},{"$f":"IF(C324=\"\",\"\",HLOOKUP(C324,'MHP Family Income & Rent Limits'!$E$12:$L$26,12,FALSE))","v":""},{"$f":"IF(C324=\"\",\"\",HLOOKUP(C324,'MHP Family Income & Rent Limits'!$E$12:$L$26,13,FALSE))","v":""},{"$f":"IF(C324=\"\",\"\",HLOOKUP(C324,'MHP Family Income & Rent Limits'!$E$12:$L$26,14,FALSE))","v":""},{"$f":"IF(C324=\"\",\"\",HLOOKUP(C324,'MHP Family Income & Rent Limits'!$E$12:$L$26,15,FALSE))","v":""}]
[{"$f":"IF('2. Assisted & Restricted Units'!A325=\"\",\"\",'2. Assisted & Restricted Units'!A325)","v":""},{"$f":"IF('2. Assisted & Restricted Units'!B325=\"\",\"\",'2. Assisted & Restricted Units'!B325)","v":""},{"$f":"IF('2. Assisted & Restricted Units'!D325=\"\",\"\",'2. Assisted & Restricted Units'!D325)","v":""},{"$f":"IF('2. Assisted & Restricted Units'!E325=\"\",\"\",'2. Assisted & Restricted Units'!E325)","v":""},{"$f":"IF('2. Assisted & Restricted Units'!H325=\"\",\"\",'2. Assisted & Restricted Units'!H325)","v":""},{"$f":"_xlfn.IFS(E325=\"\",\"\",E325>BO325,$BP$6,E325>BN325,$BO$6,E325>BM325,$BN$6,E325>BL325,$BM$6,E325>BK325,$BL$6,E325>BJ325,$BK$6,E325>BI325,$BJ$6,E325>BH325,$BI$6,E325>BG325,$BH$6,E325>BF325,$BG$6,E325>BE325,$BF$6,E325>BD325,$BE$6,E325>BC325,$BD$6,E325>=0,$BC$6)","v":""},{"$f":"IF('2. Assisted & Restricted Units'!T325=\"\",\"\",'2. Assisted & Restricted Units'!T325)","v":""},{"$f":"IF('2. Assisted & Restricted Units'!I325=\"\",\"\",'2. Assisted & Restricted Units'!I325)","v":""},{"$f":"IF('2. Assisted & Restricted Units'!AP325=\"\",\"\",'2. Assisted & Restricted Units'!AP325)","v":0},{"$f":"IF('2. Assisted & Restricted Units'!AT325=\"\",\"\",'2. Assisted & Restricted Units'!AT325)","v":""},0,{"$f":"IF('2. Assisted & Restricted Units'!AV325=\"\",\"\",'2. Assisted & Restricted Units'!AV325)","v":""},{"$f":"IF('2. Assisted & Restricted Units'!L325=\"\",\"\",'2. Assisted & Restricted Units'!L325)","v":""},{"$f":"IF('2. Assisted & Restricted Units'!M325=\"\",\"\",'2. Assisted & Restricted Units'!M325)","v":""},{"$f":"IF('2. Assisted & Restricted Units'!O325=\"\",\"\",'2. Assisted & Restricted Units'!O325)","v":""},{"$f":"IF('2. Assisted & Restricted Units'!P325=\"\",\"\",'2. Assisted & Restricted Units'!P325)","v":""},{"$f":"IF('2. Assisted & Restricted Units'!Q325=\"\",\"\",'2. Assisted & Restricted Units'!Q325)","v":""},{"$f":"IF('2. Assisted & Restricted Units'!R325=\"\",\"\",'2. Assisted & Restricted Units'!R325)","v":""},{"$f":"IF(A325=\"\",\"\",'1. Checklist & Certification'!$K$1)","v":""},{"$f":"IF(A325=\"\",\"\",'1. Checklist & Certification'!$C$62)","v":""},{"$f":"IF(A325=\"\",\"\",'1. Checklist & Certification'!$K$62)","v":""},{"$f":"IF(A325=\"\",\"\",'1. Checklist & Certification'!$C$6)","v":""},{"$f":"IF(A325=\"\",\"\",'1. Checklist & Certification'!$G$4)","v":""},{"$f":"IF(A325=\"\",\"\",'1. Checklist & Certification'!$C$7)","v":""},{"$f":"IF(A325=\"\",\"\",'1. Checklist & Certification'!$C$8)","v":""},{"$f":"IF(A325=\"\",\"\",'1. Checklist & Certification'!$F$7)","v":""},{"$f":"IF(A325=\"\",\"\",'1. Checklist & Certification'!$F$8)","v":""},{"$f":"IF(A325=\"\",\"\",'1. Checklist & Certification'!$B$9)","v":""},{"$f":"IF(A325=\"\",\"\",'1. Checklist & Certification'!$F$9)","v":""},{"$f":"IF(A325=\"\",\"\",'1. Checklist & Certification'!$C$10)","v":""},{"$f":"IF(A325=\"\",\"\",'1. Checklist & Certification'!$C$11)","v":""},{"$f":"IF(A325=\"\",\"\",'1. Checklist & Certification'!$C$12)","v":""},{"$f":"IF(A325=\"\",\"\",'1. Checklist & Certification'!$B$14)","v":""},{"$f":"IF(A325=\"\",\"\",'1. Checklist & Certification'!$E$14)","v":""},{"$f":"IF(B325=\"\",\"\",'1. Checklist & Certification'!$G$14)","v":""},{"$f":"IF(A325=\"\",\"\",'MHP Family Income & Rent Limits'!$B$3)","v":""},{"$f":"IF(A325=\"\",\"\",'MHP Family Income & Rent Limits'!$J$3)","v":""},{"$f":"IF(A325=\"\",\"\",'MHP Family Income & Rent Limits'!$E$4)","v":""},{"$f":"IF(A325=\"\",\"\",'MHP Family Income & Rent Limits'!$C$7)","v":""},{"$f":"IF(A325=\"\",\"\",'MHP Family Income & Rent Limits'!$F$8)","v":""},{"$f":"IF(A325=\"\",\"\",'1. Checklist & Certification'!$G$4)","v":""},{"$f":"IF(A325=\"\",\"\",'1. Checklist & Certification'!$K$39)","v":""},{"$f":"IF(A325=\"\",\"\",'1. Checklist & Certification'!$K$43)","v":""},{"$f":"IF(A325=\"\",\"\",'1. Checklist & Certification'!$K$45)","v":""},{"$f":"IF(A325=\"\",\"\",'1. Checklist & Certification'!$K$49)","v":""},{"$f":"IF(A325=\"\",\"\",'1. Checklist & Certification'!$E$66)","v":""},{"$f":"IF(A325=\"\",\"\",'1. Checklist & Certification'!$E$67)","v":""},{"$f":"IF(A325=\"\",\"\",'1. Checklist & Certification'!$E$68)","v":""},{"$f":"IF(A325=\"\",\"\",'1. Checklist & Certification'!$G$66)","v":""},{"$f":"IF(A325=\"\",\"\",'1. Checklist & Certification'!$H$66)","v":""},{"$f":"IF(A325=\"\",\"\",'1. Checklist & Certification'!$I$66)","v":""},{"$f":"IF(A325=\"\",\"\",'1. Checklist & Certification'!$I$67)","v":""},{"$f":"IF(A325=\"\",\"\",'1. Checklist & Certification'!$I$68)","v":""},null,{"$f":"IF(C325=\"\",\"\",HLOOKUP(C325,'MHP Family Income & Rent Limits'!$E$12:$L$26,2,FALSE))","v":""},{"$f":"IF(C325=\"\",\"\",HLOOKUP(C325,'MHP Family Income & Rent Limits'!$E$12:$L$26,3,FALSE))","v":""},{"$f":"IF(C325=\"\",\"\",HLOOKUP(C325,'MHP Family Income & Rent Limits'!$E$12:$L$26,4,FALSE))","v":""},{"$f":"IF(C325=\"\",\"\",HLOOKUP(C325,'MHP Family Income & Rent Limits'!$E$12:$L$26,5,FALSE))","v":""},{"$f":"IF(C325=\"\",\"\",HLOOKUP(C325,'MHP Family Income & Rent Limits'!$E$12:$L$26,6,FALSE))","v":""},{"$f":"IF(C325=\"\",\"\",HLOOKUP(C325,'MHP Family Income & Rent Limits'!$E$12:$L$26,7,FALSE))","v":""},{"$f":"IF(C325=\"\",\"\",HLOOKUP(C325,'MHP Family Income & Rent Limits'!$E$12:$L$26,8,FALSE))","v":""},{"$f":"IF(C325=\"\",\"\",HLOOKUP(C325,'MHP Family Income & Rent Limits'!$E$12:$L$26,9,FALSE))","v":""},{"$f":"IF(C325=\"\",\"\",HLOOKUP(C325,'MHP Family Income & Rent Limits'!$E$12:$L$26,10,FALSE))","v":""},{"$f":"IF(C325=\"\",\"\",HLOOKUP(C325,'MHP Family Income & Rent Limits'!$E$12:$L$26,11,FALSE))","v":""},{"$f":"IF(C325=\"\",\"\",HLOOKUP(C325,'MHP Family Income & Rent Limits'!$E$12:$L$26,12,FALSE))","v":""},{"$f":"IF(C325=\"\",\"\",HLOOKUP(C325,'MHP Family Income & Rent Limits'!$E$12:$L$26,13,FALSE))","v":""},{"$f":"IF(C325=\"\",\"\",HLOOKUP(C325,'MHP Family Income & Rent Limits'!$E$12:$L$26,14,FALSE))","v":""},{"$f":"IF(C325=\"\",\"\",HLOOKUP(C325,'MHP Family Income & Rent Limits'!$E$12:$L$26,15,FALSE))","v":""}]
[{"$f":"IF('2. Assisted & Restricted Units'!A326=\"\",\"\",'2. Assisted & Restricted Units'!A326)","v":""},{"$f":"IF('2. Assisted & Restricted Units'!B326=\"\",\"\",'2. Assisted & Restricted Units'!B326)","v":""},{"$f":"IF('2. Assisted & Restricted Units'!D326=\"\",\"\",'2. Assisted & Restricted Units'!D326)","v":""},{"$f":"IF('2. Assisted & Restricted Units'!E326=\"\",\"\",'2. Assisted & Restricted Units'!E326)","v":""},{"$f":"IF('2. Assisted & Restricted Units'!H326=\"\",\"\",'2. Assisted & Restricted Units'!H326)","v":""},{"$f":"_xlfn.IFS(E326=\"\",\"\",E326>BO326,$BP$6,E326>BN326,$BO$6,E326>BM326,$BN$6,E326>BL326,$BM$6,E326>BK326,$BL$6,E326>BJ326,$BK$6,E326>BI326,$BJ$6,E326>BH326,$BI$6,E326>BG326,$BH$6,E326>BF326,$BG$6,E326>BE326,$BF$6,E326>BD326,$BE$6,E326>BC326,$BD$6,E326>=0,$BC$6)","v":""},{"$f":"IF('2. Assisted & Restricted Units'!T326=\"\",\"\",'2. Assisted & Restricted Units'!T326)","v":""},{"$f":"IF('2. Assisted & Restricted Units'!I326=\"\",\"\",'2. Assisted & Restricted Units'!I326)","v":""},{"$f":"IF('2. Assisted & Restricted Units'!AP326=\"\",\"\",'2. Assisted & Restricted Units'!AP326)","v":0},{"$f":"IF('2. Assisted & Restricted Units'!AT326=\"\",\"\",'2. Assisted & Restricted Units'!AT326)","v":""},0,{"$f":"IF('2. Assisted & Restricted Units'!AV326=\"\",\"\",'2. Assisted & Restricted Units'!AV326)","v":""},{"$f":"IF('2. Assisted & Restricted Units'!L326=\"\",\"\",'2. Assisted & Restricted Units'!L326)","v":""},{"$f":"IF('2. Assisted & Restricted Units'!M326=\"\",\"\",'2. Assisted & Restricted Units'!M326)","v":""},{"$f":"IF('2. Assisted & Restricted Units'!O326=\"\",\"\",'2. Assisted & Restricted Units'!O326)","v":""},{"$f":"IF('2. Assisted & Restricted Units'!P326=\"\",\"\",'2. Assisted & Restricted Units'!P326)","v":""},{"$f":"IF('2. Assisted & Restricted Units'!Q326=\"\",\"\",'2. Assisted & Restricted Units'!Q326)","v":""},{"$f":"IF('2. Assisted & Restricted Units'!R326=\"\",\"\",'2. Assisted & Restricted Units'!R326)","v":""},{"$f":"IF(A326=\"\",\"\",'1. Checklist & Certification'!$K$1)","v":""},{"$f":"IF(A326=\"\",\"\",'1. Checklist & Certification'!$C$62)","v":""},{"$f":"IF(A326=\"\",\"\",'1. Checklist & Certification'!$K$62)","v":""},{"$f":"IF(A326=\"\",\"\",'1. Checklist & Certification'!$C$6)","v":""},{"$f":"IF(A326=\"\",\"\",'1. Checklist & Certification'!$G$4)","v":""},{"$f":"IF(A326=\"\",\"\",'1. Checklist & Certification'!$C$7)","v":""},{"$f":"IF(A326=\"\",\"\",'1. Checklist & Certification'!$C$8)","v":""},{"$f":"IF(A326=\"\",\"\",'1. Checklist & Certification'!$F$7)","v":""},{"$f":"IF(A326=\"\",\"\",'1. Checklist & Certification'!$F$8)","v":""},{"$f":"IF(A326=\"\",\"\",'1. Checklist & Certification'!$B$9)","v":""},{"$f":"IF(A326=\"\",\"\",'1. Checklist & Certification'!$F$9)","v":""},{"$f":"IF(A326=\"\",\"\",'1. Checklist & Certification'!$C$10)","v":""},{"$f":"IF(A326=\"\",\"\",'1. Checklist & Certification'!$C$11)","v":""},{"$f":"IF(A326=\"\",\"\",'1. Checklist & Certification'!$C$12)","v":""},{"$f":"IF(A326=\"\",\"\",'1. Checklist & Certification'!$B$14)","v":""},{"$f":"IF(A326=\"\",\"\",'1. Checklist & Certification'!$E$14)","v":""},{"$f":"IF(B326=\"\",\"\",'1. Checklist & Certification'!$G$14)","v":""},{"$f":"IF(A326=\"\",\"\",'MHP Family Income & Rent Limits'!$B$3)","v":""},{"$f":"IF(A326=\"\",\"\",'MHP Family Income & Rent Limits'!$J$3)","v":""},{"$f":"IF(A326=\"\",\"\",'MHP Family Income & Rent Limits'!$E$4)","v":""},{"$f":"IF(A326=\"\",\"\",'MHP Family Income & Rent Limits'!$C$7)","v":""},{"$f":"IF(A326=\"\",\"\",'MHP Family Income & Rent Limits'!$F$8)","v":""},{"$f":"IF(A326=\"\",\"\",'1. Checklist & Certification'!$G$4)","v":""},{"$f":"IF(A326=\"\",\"\",'1. Checklist & Certification'!$K$39)","v":""},{"$f":"IF(A326=\"\",\"\",'1. Checklist & Certification'!$K$43)","v":""},{"$f":"IF(A326=\"\",\"\",'1. Checklist & Certification'!$K$45)","v":""},{"$f":"IF(A326=\"\",\"\",'1. Checklist & Certification'!$K$49)","v":""},{"$f":"IF(A326=\"\",\"\",'1. Checklist & Certification'!$E$66)","v":""},{"$f":"IF(A326=\"\",\"\",'1. Checklist & Certification'!$E$67)","v":""},{"$f":"IF(A326=\"\",\"\",'1. Checklist & Certification'!$E$68)","v":""},{"$f":"IF(A326=\"\",\"\",'1. Checklist & Certification'!$G$66)","v":""},{"$f":"IF(A326=\"\",\"\",'1. Checklist & Certification'!$H$66)","v":""},{"$f":"IF(A326=\"\",\"\",'1. Checklist & Certification'!$I$66)","v":""},{"$f":"IF(A326=\"\",\"\",'1. Checklist & Certification'!$I$67)","v":""},{"$f":"IF(A326=\"\",\"\",'1. Checklist & Certification'!$I$68)","v":""},null,{"$f":"IF(C326=\"\",\"\",HLOOKUP(C326,'MHP Family Income & Rent Limits'!$E$12:$L$26,2,FALSE))","v":""},{"$f":"IF(C326=\"\",\"\",HLOOKUP(C326,'MHP Family Income & Rent Limits'!$E$12:$L$26,3,FALSE))","v":""},{"$f":"IF(C326=\"\",\"\",HLOOKUP(C326,'MHP Family Income & Rent Limits'!$E$12:$L$26,4,FALSE))","v":""},{"$f":"IF(C326=\"\",\"\",HLOOKUP(C326,'MHP Family Income & Rent Limits'!$E$12:$L$26,5,FALSE))","v":""},{"$f":"IF(C326=\"\",\"\",HLOOKUP(C326,'MHP Family Income & Rent Limits'!$E$12:$L$26,6,FALSE))","v":""},{"$f":"IF(C326=\"\",\"\",HLOOKUP(C326,'MHP Family Income & Rent Limits'!$E$12:$L$26,7,FALSE))","v":""},{"$f":"IF(C326=\"\",\"\",HLOOKUP(C326,'MHP Family Income & Rent Limits'!$E$12:$L$26,8,FALSE))","v":""},{"$f":"IF(C326=\"\",\"\",HLOOKUP(C326,'MHP Family Income & Rent Limits'!$E$12:$L$26,9,FALSE))","v":""},{"$f":"IF(C326=\"\",\"\",HLOOKUP(C326,'MHP Family Income & Rent Limits'!$E$12:$L$26,10,FALSE))","v":""},{"$f":"IF(C326=\"\",\"\",HLOOKUP(C326,'MHP Family Income & Rent Limits'!$E$12:$L$26,11,FALSE))","v":""},{"$f":"IF(C326=\"\",\"\",HLOOKUP(C326,'MHP Family Income & Rent Limits'!$E$12:$L$26,12,FALSE))","v":""},{"$f":"IF(C326=\"\",\"\",HLOOKUP(C326,'MHP Family Income & Rent Limits'!$E$12:$L$26,13,FALSE))","v":""},{"$f":"IF(C326=\"\",\"\",HLOOKUP(C326,'MHP Family Income & Rent Limits'!$E$12:$L$26,14,FALSE))","v":""},{"$f":"IF(C326=\"\",\"\",HLOOKUP(C326,'MHP Family Income & Rent Limits'!$E$12:$L$26,15,FALSE))","v":""}]
[{"$f":"IF('2. Assisted & Restricted Units'!A327=\"\",\"\",'2. Assisted & Restricted Units'!A327)","v":""},{"$f":"IF('2. Assisted & Restricted Units'!B327=\"\",\"\",'2. Assisted & Restricted Units'!B327)","v":""},{"$f":"IF('2. Assisted & Restricted Units'!D327=\"\",\"\",'2. Assisted & Restricted Units'!D327)","v":""},{"$f":"IF('2. Assisted & Restricted Units'!E327=\"\",\"\",'2. Assisted & Restricted Units'!E327)","v":""},{"$f":"IF('2. Assisted & Restricted Units'!H327=\"\",\"\",'2. Assisted & Restricted Units'!H327)","v":""},{"$f":"_xlfn.IFS(E327=\"\",\"\",E327>BO327,$BP$6,E327>BN327,$BO$6,E327>BM327,$BN$6,E327>BL327,$BM$6,E327>BK327,$BL$6,E327>BJ327,$BK$6,E327>BI327,$BJ$6,E327>BH327,$BI$6,E327>BG327,$BH$6,E327>BF327,$BG$6,E327>BE327,$BF$6,E327>BD327,$BE$6,E327>BC327,$BD$6,E327>=0,$BC$6)","v":""},{"$f":"IF('2. Assisted & Restricted Units'!T327=\"\",\"\",'2. Assisted & Restricted Units'!T327)","v":""},{"$f":"IF('2. Assisted & Restricted Units'!I327=\"\",\"\",'2. Assisted & Restricted Units'!I327)","v":""},{"$f":"IF('2. Assisted & Restricted Units'!AP327=\"\",\"\",'2. Assisted & Restricted Units'!AP327)","v":0},{"$f":"IF('2. Assisted & Restricted Units'!AT327=\"\",\"\",'2. Assisted & Restricted Units'!AT327)","v":""},0,{"$f":"IF('2. Assisted & Restricted Units'!AV327=\"\",\"\",'2. Assisted & Restricted Units'!AV327)","v":""},{"$f":"IF('2. Assisted & Restricted Units'!L327=\"\",\"\",'2. Assisted & Restricted Units'!L327)","v":""},{"$f":"IF('2. Assisted & Restricted Units'!M327=\"\",\"\",'2. Assisted & Restricted Units'!M327)","v":""},{"$f":"IF('2. Assisted & Restricted Units'!O327=\"\",\"\",'2. Assisted & Restricted Units'!O327)","v":""},{"$f":"IF('2. Assisted & Restricted Units'!P327=\"\",\"\",'2. Assisted & Restricted Units'!P327)","v":""},{"$f":"IF('2. Assisted & Restricted Units'!Q327=\"\",\"\",'2. Assisted & Restricted Units'!Q327)","v":""},{"$f":"IF('2. Assisted & Restricted Units'!R327=\"\",\"\",'2. Assisted & Restricted Units'!R327)","v":""},{"$f":"IF(A327=\"\",\"\",'1. Checklist & Certification'!$K$1)","v":""},{"$f":"IF(A327=\"\",\"\",'1. Checklist & Certification'!$C$62)","v":""},{"$f":"IF(A327=\"\",\"\",'1. Checklist & Certification'!$K$62)","v":""},{"$f":"IF(A327=\"\",\"\",'1. Checklist & Certification'!$C$6)","v":""},{"$f":"IF(A327=\"\",\"\",'1. Checklist & Certification'!$G$4)","v":""},{"$f":"IF(A327=\"\",\"\",'1. Checklist & Certification'!$C$7)","v":""},{"$f":"IF(A327=\"\",\"\",'1. Checklist & Certification'!$C$8)","v":""},{"$f":"IF(A327=\"\",\"\",'1. Checklist & Certification'!$F$7)","v":""},{"$f":"IF(A327=\"\",\"\",'1. Checklist & Certification'!$F$8)","v":""},{"$f":"IF(A327=\"\",\"\",'1. Checklist & Certification'!$B$9)","v":""},{"$f":"IF(A327=\"\",\"\",'1. Checklist & Certification'!$F$9)","v":""},{"$f":"IF(A327=\"\",\"\",'1. Checklist & Certification'!$C$10)","v":""},{"$f":"IF(A327=\"\",\"\",'1. Checklist & Certification'!$C$11)","v":""},{"$f":"IF(A327=\"\",\"\",'1. Checklist & Certification'!$C$12)","v":""},{"$f":"IF(A327=\"\",\"\",'1. Checklist & Certification'!$B$14)","v":""},{"$f":"IF(A327=\"\",\"\",'1. Checklist & Certification'!$E$14)","v":""},{"$f":"IF(B327=\"\",\"\",'1. Checklist & Certification'!$G$14)","v":""},{"$f":"IF(A327=\"\",\"\",'MHP Family Income & Rent Limits'!$B$3)","v":""},{"$f":"IF(A327=\"\",\"\",'MHP Family Income & Rent Limits'!$J$3)","v":""},{"$f":"IF(A327=\"\",\"\",'MHP Family Income & Rent Limits'!$E$4)","v":""},{"$f":"IF(A327=\"\",\"\",'MHP Family Income & Rent Limits'!$C$7)","v":""},{"$f":"IF(A327=\"\",\"\",'MHP Family Income & Rent Limits'!$F$8)","v":""},{"$f":"IF(A327=\"\",\"\",'1. Checklist & Certification'!$G$4)","v":""},{"$f":"IF(A327=\"\",\"\",'1. Checklist & Certification'!$K$39)","v":""},{"$f":"IF(A327=\"\",\"\",'1. Checklist & Certification'!$K$43)","v":""},{"$f":"IF(A327=\"\",\"\",'1. Checklist & Certification'!$K$45)","v":""},{"$f":"IF(A327=\"\",\"\",'1. Checklist & Certification'!$K$49)","v":""},{"$f":"IF(A327=\"\",\"\",'1. Checklist & Certification'!$E$66)","v":""},{"$f":"IF(A327=\"\",\"\",'1. Checklist & Certification'!$E$67)","v":""},{"$f":"IF(A327=\"\",\"\",'1. Checklist & Certification'!$E$68)","v":""},{"$f":"IF(A327=\"\",\"\",'1. Checklist & Certification'!$G$66)","v":""},{"$f":"IF(A327=\"\",\"\",'1. Checklist & Certification'!$H$66)","v":""},{"$f":"IF(A327=\"\",\"\",'1. Checklist & Certification'!$I$66)","v":""},{"$f":"IF(A327=\"\",\"\",'1. Checklist & Certification'!$I$67)","v":""},{"$f":"IF(A327=\"\",\"\",'1. Checklist & Certification'!$I$68)","v":""},null,{"$f":"IF(C327=\"\",\"\",HLOOKUP(C327,'MHP Family Income & Rent Limits'!$E$12:$L$26,2,FALSE))","v":""},{"$f":"IF(C327=\"\",\"\",HLOOKUP(C327,'MHP Family Income & Rent Limits'!$E$12:$L$26,3,FALSE))","v":""},{"$f":"IF(C327=\"\",\"\",HLOOKUP(C327,'MHP Family Income & Rent Limits'!$E$12:$L$26,4,FALSE))","v":""},{"$f":"IF(C327=\"\",\"\",HLOOKUP(C327,'MHP Family Income & Rent Limits'!$E$12:$L$26,5,FALSE))","v":""},{"$f":"IF(C327=\"\",\"\",HLOOKUP(C327,'MHP Family Income & Rent Limits'!$E$12:$L$26,6,FALSE))","v":""},{"$f":"IF(C327=\"\",\"\",HLOOKUP(C327,'MHP Family Income & Rent Limits'!$E$12:$L$26,7,FALSE))","v":""},{"$f":"IF(C327=\"\",\"\",HLOOKUP(C327,'MHP Family Income & Rent Limits'!$E$12:$L$26,8,FALSE))","v":""},{"$f":"IF(C327=\"\",\"\",HLOOKUP(C327,'MHP Family Income & Rent Limits'!$E$12:$L$26,9,FALSE))","v":""},{"$f":"IF(C327=\"\",\"\",HLOOKUP(C327,'MHP Family Income & Rent Limits'!$E$12:$L$26,10,FALSE))","v":""},{"$f":"IF(C327=\"\",\"\",HLOOKUP(C327,'MHP Family Income & Rent Limits'!$E$12:$L$26,11,FALSE))","v":""},{"$f":"IF(C327=\"\",\"\",HLOOKUP(C327,'MHP Family Income & Rent Limits'!$E$12:$L$26,12,FALSE))","v":""},{"$f":"IF(C327=\"\",\"\",HLOOKUP(C327,'MHP Family Income & Rent Limits'!$E$12:$L$26,13,FALSE))","v":""},{"$f":"IF(C327=\"\",\"\",HLOOKUP(C327,'MHP Family Income & Rent Limits'!$E$12:$L$26,14,FALSE))","v":""},{"$f":"IF(C327=\"\",\"\",HLOOKUP(C327,'MHP Family Income & Rent Limits'!$E$12:$L$26,15,FALSE))","v":""}]
[{"$f":"IF('2. Assisted & Restricted Units'!A328=\"\",\"\",'2. Assisted & Restricted Units'!A328)","v":""},{"$f":"IF('2. Assisted & Restricted Units'!B328=\"\",\"\",'2. Assisted & Restricted Units'!B328)","v":""},{"$f":"IF('2. Assisted & Restricted Units'!D328=\"\",\"\",'2. Assisted & Restricted Units'!D328)","v":""},{"$f":"IF('2. Assisted & Restricted Units'!E328=\"\",\"\",'2. Assisted & Restricted Units'!E328)","v":""},{"$f":"IF('2. Assisted & Restricted Units'!H328=\"\",\"\",'2. Assisted & Restricted Units'!H328)","v":""},{"$f":"_xlfn.IFS(E328=\"\",\"\",E328>BO328,$BP$6,E328>BN328,$BO$6,E328>BM328,$BN$6,E328>BL328,$BM$6,E328>BK328,$BL$6,E328>BJ328,$BK$6,E328>BI328,$BJ$6,E328>BH328,$BI$6,E328>BG328,$BH$6,E328>BF328,$BG$6,E328>BE328,$BF$6,E328>BD328,$BE$6,E328>BC328,$BD$6,E328>=0,$BC$6)","v":""},{"$f":"IF('2. Assisted & Restricted Units'!T328=\"\",\"\",'2. Assisted & Restricted Units'!T328)","v":""},{"$f":"IF('2. Assisted & Restricted Units'!I328=\"\",\"\",'2. Assisted & Restricted Units'!I328)","v":""},{"$f":"IF('2. Assisted & Restricted Units'!AP328=\"\",\"\",'2. Assisted & Restricted Units'!AP328)","v":0},{"$f":"IF('2. Assisted & Restricted Units'!AT328=\"\",\"\",'2. Assisted & Restricted Units'!AT328)","v":""},{"$f":"SUM(H328:J328)","v":0},{"$f":"IF('2. Assisted & Restricted Units'!AV328=\"\",\"\",'2. Assisted & Restricted Units'!AV328)","v":""},{"$f":"IF('2. Assisted & Restricted Units'!L328=\"\",\"\",'2. Assisted & Restricted Units'!L328)","v":""},{"$f":"IF('2. Assisted & Restricted Units'!M328=\"\",\"\",'2. Assisted & Restricted Units'!M328)","v":""},{"$f":"IF('2. Assisted & Restricted Units'!O328=\"\",\"\",'2. Assisted & Restricted Units'!O328)","v":""},{"$f":"IF('2. Assisted & Restricted Units'!P328=\"\",\"\",'2. Assisted & Restricted Units'!P328)","v":""},{"$f":"IF('2. Assisted & Restricted Units'!Q328=\"\",\"\",'2. Assisted & Restricted Units'!Q328)","v":""},{"$f":"IF('2. Assisted & Restricted Units'!R328=\"\",\"\",'2. Assisted & Restricted Units'!R328)","v":""},{"$f":"IF(A328=\"\",\"\",'1. Checklist & Certification'!$K$1)","v":""},{"$f":"IF(A328=\"\",\"\",'1. Checklist & Certification'!$C$62)","v":""},{"$f":"IF(A328=\"\",\"\",'1. Checklist & Certification'!$K$62)","v":""},{"$f":"IF(A328=\"\",\"\",'1. Checklist & Certification'!$C$6)","v":""},{"$f":"IF(A328=\"\",\"\",'1. Checklist & Certification'!$G$4)","v":""},{"$f":"IF(A328=\"\",\"\",'1. Checklist & Certification'!$C$7)","v":""},{"$f":"IF(A328=\"\",\"\",'1. Checklist & Certification'!$C$8)","v":""},{"$f":"IF(A328=\"\",\"\",'1. Checklist & Certification'!$F$7)","v":""},{"$f":"IF(A328=\"\",\"\",'1. Checklist & Certification'!$F$8)","v":""},{"$f":"IF(A328=\"\",\"\",'1. Checklist & Certification'!$B$9)","v":""},{"$f":"IF(A328=\"\",\"\",'1. Checklist & Certification'!$F$9)","v":""},{"$f":"IF(A328=\"\",\"\",'1. Checklist & Certification'!$C$10)","v":""},{"$f":"IF(A328=\"\",\"\",'1. Checklist & Certification'!$C$11)","v":""},{"$f":"IF(A328=\"\",\"\",'1. Checklist & Certification'!$C$12)","v":""},{"$f":"IF(A328=\"\",\"\",'1. Checklist & Certification'!$B$14)","v":""},{"$f":"IF(A328=\"\",\"\",'1. Checklist & Certification'!$E$14)","v":""},{"$f":"IF(B328=\"\",\"\",'1. Checklist & Certification'!$G$14)","v":""},{"$f":"IF(A328=\"\",\"\",'MHP Family Income & Rent Limits'!$B$3)","v":""},{"$f":"IF(A328=\"\",\"\",'MHP Family Income & Rent Limits'!$J$3)","v":""},{"$f":"IF(A328=\"\",\"\",'MHP Family Income & Rent Limits'!$E$4)","v":""},{"$f":"IF(A328=\"\",\"\",'MHP Family Income & Rent Limits'!$C$7)","v":""},{"$f":"IF(A328=\"\",\"\",'MHP Family Income & Rent Limits'!$F$8)","v":""},{"$f":"IF(A328=\"\",\"\",'1. Checklist & Certification'!$G$4)","v":""},{"$f":"IF(A328=\"\",\"\",'1. Checklist & Certification'!$K$39)","v":""},{"$f":"IF(A328=\"\",\"\",'1. Checklist & Certification'!$K$43)","v":""},{"$f":"IF(A328=\"\",\"\",'1. Checklist & Certification'!$K$45)","v":""},{"$f":"IF(A328=\"\",\"\",'1. Checklist & Certification'!$K$49)","v":""},{"$f":"IF(A328=\"\",\"\",'1. Checklist & Certification'!$E$66)","v":""},{"$f":"IF(A328=\"\",\"\",'1. Checklist & Certification'!$E$67)","v":""},{"$f":"IF(A328=\"\",\"\",'1. Checklist & Certification'!$E$68)","v":""},{"$f":"IF(A328=\"\",\"\",'1. Checklist & Certification'!$G$66)","v":""},{"$f":"IF(A328=\"\",\"\",'1. Checklist & Certification'!$H$66)","v":""},{"$f":"IF(A328=\"\",\"\",'1. Checklist & Certification'!$I$66)","v":""},{"$f":"IF(A328=\"\",\"\",'1. Checklist & Certification'!$I$67)","v":""},{"$f":"IF(A328=\"\",\"\",'1. Checklist & Certification'!$I$68)","v":""},null,{"$f":"IF(C328=\"\",\"\",HLOOKUP(C328,'MHP Family Income & Rent Limits'!$E$12:$L$26,2,FALSE))","v":""},{"$f":"IF(C328=\"\",\"\",HLOOKUP(C328,'MHP Family Income & Rent Limits'!$E$12:$L$26,3,FALSE))","v":""},{"$f":"IF(C328=\"\",\"\",HLOOKUP(C328,'MHP Family Income & Rent Limits'!$E$12:$L$26,4,FALSE))","v":""},{"$f":"IF(C328=\"\",\"\",HLOOKUP(C328,'MHP Family Income & Rent Limits'!$E$12:$L$26,5,FALSE))","v":""},{"$f":"IF(C328=\"\",\"\",HLOOKUP(C328,'MHP Family Income & Rent Limits'!$E$12:$L$26,6,FALSE))","v":""},{"$f":"IF(C328=\"\",\"\",HLOOKUP(C328,'MHP Family Income & Rent Limits'!$E$12:$L$26,7,FALSE))","v":""},{"$f":"IF(C328=\"\",\"\",HLOOKUP(C328,'MHP Family Income & Rent Limits'!$E$12:$L$26,8,FALSE))","v":""},{"$f":"IF(C328=\"\",\"\",HLOOKUP(C328,'MHP Family Income & Rent Limits'!$E$12:$L$26,9,FALSE))","v":""},{"$f":"IF(C328=\"\",\"\",HLOOKUP(C328,'MHP Family Income & Rent Limits'!$E$12:$L$26,10,FALSE))","v":""},{"$f":"IF(C328=\"\",\"\",HLOOKUP(C328,'MHP Family Income & Rent Limits'!$E$12:$L$26,11,FALSE))","v":""},{"$f":"IF(C328=\"\",\"\",HLOOKUP(C328,'MHP Family Income & Rent Limits'!$E$12:$L$26,12,FALSE))","v":""},{"$f":"IF(C328=\"\",\"\",HLOOKUP(C328,'MHP Family Income & Rent Limits'!$E$12:$L$26,13,FALSE))","v":""},{"$f":"IF(C328=\"\",\"\",HLOOKUP(C328,'MHP Family Income & Rent Limits'!$E$12:$L$26,14,FALSE))","v":""},{"$f":"IF(C328=\"\",\"\",HLOOKUP(C328,'MHP Family Income & Rent Limits'!$E$12:$L$26,15,FALSE))","v":""}]
[{"$f":"IF('2. Assisted & Restricted Units'!A329=\"\",\"\",'2. Assisted & Restricted Units'!A329)","v":""},{"$f":"IF('2. Assisted & Restricted Units'!B329=\"\",\"\",'2. Assisted & Restricted Units'!B329)","v":""},{"$f":"IF('2. Assisted & Restricted Units'!D329=\"\",\"\",'2. Assisted & Restricted Units'!D329)","v":""},{"$f":"IF('2. Assisted & Restricted Units'!E329=\"\",\"\",'2. Assisted & Restricted Units'!E329)","v":""},{"$f":"IF('2. Assisted & Restricted Units'!H329=\"\",\"\",'2. Assisted & Restricted Units'!H329)","v":""},{"$f":"_xlfn.IFS(E329=\"\",\"\",E329>BO329,$BP$6,E329>BN329,$BO$6,E329>BM329,$BN$6,E329>BL329,$BM$6,E329>BK329,$BL$6,E329>BJ329,$BK$6,E329>BI329,$BJ$6,E329>BH329,$BI$6,E329>BG329,$BH$6,E329>BF329,$BG$6,E329>BE329,$BF$6,E329>BD329,$BE$6,E329>BC329,$BD$6,E329>=0,$BC$6)","v":""},{"$f":"IF('2. Assisted & Restricted Units'!T329=\"\",\"\",'2. Assisted & Restricted Units'!T329)","v":""},{"$f":"IF('2. Assisted & Restricted Units'!I329=\"\",\"\",'2. Assisted & Restricted Units'!I329)","v":""},{"$f":"IF('2. Assisted & Restricted Units'!AP329=\"\",\"\",'2. Assisted & Restricted Units'!AP329)","v":0},{"$f":"IF('2. Assisted & Restricted Units'!AT329=\"\",\"\",'2. Assisted & Restricted Units'!AT329)","v":""},0,{"$f":"IF('2. Assisted & Restricted Units'!AV329=\"\",\"\",'2. Assisted & Restricted Units'!AV329)","v":""},{"$f":"IF('2. Assisted & Restricted Units'!L329=\"\",\"\",'2. Assisted & Restricted Units'!L329)","v":""},{"$f":"IF('2. Assisted & Restricted Units'!M329=\"\",\"\",'2. Assisted & Restricted Units'!M329)","v":""},{"$f":"IF('2. Assisted & Restricted Units'!O329=\"\",\"\",'2. Assisted & Restricted Units'!O329)","v":""},{"$f":"IF('2. Assisted & Restricted Units'!P329=\"\",\"\",'2. Assisted & Restricted Units'!P329)","v":""},{"$f":"IF('2. Assisted & Restricted Units'!Q329=\"\",\"\",'2. Assisted & Restricted Units'!Q329)","v":""},{"$f":"IF('2. Assisted & Restricted Units'!R329=\"\",\"\",'2. Assisted & Restricted Units'!R329)","v":""},{"$f":"IF(A329=\"\",\"\",'1. Checklist & Certification'!$K$1)","v":""},{"$f":"IF(A329=\"\",\"\",'1. Checklist & Certification'!$C$62)","v":""},{"$f":"IF(A329=\"\",\"\",'1. Checklist & Certification'!$K$62)","v":""},{"$f":"IF(A329=\"\",\"\",'1. Checklist & Certification'!$C$6)","v":""},{"$f":"IF(A329=\"\",\"\",'1. Checklist & Certification'!$G$4)","v":""},{"$f":"IF(A329=\"\",\"\",'1. Checklist & Certification'!$C$7)","v":""},{"$f":"IF(A329=\"\",\"\",'1. Checklist & Certification'!$C$8)","v":""},{"$f":"IF(A329=\"\",\"\",'1. Checklist & Certification'!$F$7)","v":""},{"$f":"IF(A329=\"\",\"\",'1. Checklist & Certification'!$F$8)","v":""},{"$f":"IF(A329=\"\",\"\",'1. Checklist & Certification'!$B$9)","v":""},{"$f":"IF(A329=\"\",\"\",'1. Checklist & Certification'!$F$9)","v":""},{"$f":"IF(A329=\"\",\"\",'1. Checklist & Certification'!$C$10)","v":""},{"$f":"IF(A329=\"\",\"\",'1. Checklist & Certification'!$C$11)","v":""},{"$f":"IF(A329=\"\",\"\",'1. Checklist & Certification'!$C$12)","v":""},{"$f":"IF(A329=\"\",\"\",'1. Checklist & Certification'!$B$14)","v":""},{"$f":"IF(A329=\"\",\"\",'1. Checklist & Certification'!$E$14)","v":""},{"$f":"IF(B329=\"\",\"\",'1. Checklist & Certification'!$G$14)","v":""},{"$f":"IF(A329=\"\",\"\",'MHP Family Income & Rent Limits'!$B$3)","v":""},{"$f":"IF(A329=\"\",\"\",'MHP Family Income & Rent Limits'!$J$3)","v":""},{"$f":"IF(A329=\"\",\"\",'MHP Family Income & Rent Limits'!$E$4)","v":""},{"$f":"IF(A329=\"\",\"\",'MHP Family Income & Rent Limits'!$C$7)","v":""},{"$f":"IF(A329=\"\",\"\",'MHP Family Income & Rent Limits'!$F$8)","v":""},{"$f":"IF(A329=\"\",\"\",'1. Checklist & Certification'!$G$4)","v":""},{"$f":"IF(A329=\"\",\"\",'1. Checklist & Certification'!$K$39)","v":""},{"$f":"IF(A329=\"\",\"\",'1. Checklist & Certification'!$K$43)","v":""},{"$f":"IF(A329=\"\",\"\",'1. Checklist & Certification'!$K$45)","v":""},{"$f":"IF(A329=\"\",\"\",'1. Checklist & Certification'!$K$49)","v":""},{"$f":"IF(A329=\"\",\"\",'1. Checklist & Certification'!$E$66)","v":""},{"$f":"IF(A329=\"\",\"\",'1. Checklist & Certification'!$E$67)","v":""},{"$f":"IF(A329=\"\",\"\",'1. Checklist & Certification'!$E$68)","v":""},{"$f":"IF(A329=\"\",\"\",'1. Checklist & Certification'!$G$66)","v":""},{"$f":"IF(A329=\"\",\"\",'1. Checklist & Certification'!$H$66)","v":""},{"$f":"IF(A329=\"\",\"\",'1. Checklist & Certification'!$I$66)","v":""},{"$f":"IF(A329=\"\",\"\",'1. Checklist & Certification'!$I$67)","v":""},{"$f":"IF(A329=\"\",\"\",'1. Checklist & Certification'!$I$68)","v":""},null,{"$f":"IF(C329=\"\",\"\",HLOOKUP(C329,'MHP Family Income & Rent Limits'!$E$12:$L$26,2,FALSE))","v":""},{"$f":"IF(C329=\"\",\"\",HLOOKUP(C329,'MHP Family Income & Rent Limits'!$E$12:$L$26,3,FALSE))","v":""},{"$f":"IF(C329=\"\",\"\",HLOOKUP(C329,'MHP Family Income & Rent Limits'!$E$12:$L$26,4,FALSE))","v":""},{"$f":"IF(C329=\"\",\"\",HLOOKUP(C329,'MHP Family Income & Rent Limits'!$E$12:$L$26,5,FALSE))","v":""},{"$f":"IF(C329=\"\",\"\",HLOOKUP(C329,'MHP Family Income & Rent Limits'!$E$12:$L$26,6,FALSE))","v":""},{"$f":"IF(C329=\"\",\"\",HLOOKUP(C329,'MHP Family Income & Rent Limits'!$E$12:$L$26,7,FALSE))","v":""},{"$f":"IF(C329=\"\",\"\",HLOOKUP(C329,'MHP Family Income & Rent Limits'!$E$12:$L$26,8,FALSE))","v":""},{"$f":"IF(C329=\"\",\"\",HLOOKUP(C329,'MHP Family Income & Rent Limits'!$E$12:$L$26,9,FALSE))","v":""},{"$f":"IF(C329=\"\",\"\",HLOOKUP(C329,'MHP Family Income & Rent Limits'!$E$12:$L$26,10,FALSE))","v":""},{"$f":"IF(C329=\"\",\"\",HLOOKUP(C329,'MHP Family Income & Rent Limits'!$E$12:$L$26,11,FALSE))","v":""},{"$f":"IF(C329=\"\",\"\",HLOOKUP(C329,'MHP Family Income & Rent Limits'!$E$12:$L$26,12,FALSE))","v":""},{"$f":"IF(C329=\"\",\"\",HLOOKUP(C329,'MHP Family Income & Rent Limits'!$E$12:$L$26,13,FALSE))","v":""},{"$f":"IF(C329=\"\",\"\",HLOOKUP(C329,'MHP Family Income & Rent Limits'!$E$12:$L$26,14,FALSE))","v":""},{"$f":"IF(C329=\"\",\"\",HLOOKUP(C329,'MHP Family Income & Rent Limits'!$E$12:$L$26,15,FALSE))","v":""}]
[{"$f":"IF('2. Assisted & Restricted Units'!A330=\"\",\"\",'2. Assisted & Restricted Units'!A330)","v":""},{"$f":"IF('2. Assisted & Restricted Units'!B330=\"\",\"\",'2. Assisted & Restricted Units'!B330)","v":""},{"$f":"IF('2. Assisted & Restricted Units'!D330=\"\",\"\",'2. Assisted & Restricted Units'!D330)","v":""},{"$f":"IF('2. Assisted & Restricted Units'!E330=\"\",\"\",'2. Assisted & Restricted Units'!E330)","v":""},{"$f":"IF('2. Assisted & Restricted Units'!H330=\"\",\"\",'2. Assisted & Restricted Units'!H330)","v":""},{"$f":"_xlfn.IFS(E330=\"\",\"\",E330>BO330,$BP$6,E330>BN330,$BO$6,E330>BM330,$BN$6,E330>BL330,$BM$6,E330>BK330,$BL$6,E330>BJ330,$BK$6,E330>BI330,$BJ$6,E330>BH330,$BI$6,E330>BG330,$BH$6,E330>BF330,$BG$6,E330>BE330,$BF$6,E330>BD330,$BE$6,E330>BC330,$BD$6,E330>=0,$BC$6)","v":""},{"$f":"IF('2. Assisted & Restricted Units'!T330=\"\",\"\",'2. Assisted & Restricted Units'!T330)","v":""},{"$f":"IF('2. Assisted & Restricted Units'!I330=\"\",\"\",'2. Assisted & Restricted Units'!I330)","v":""},{"$f":"IF('2. Assisted & Restricted Units'!AP330=\"\",\"\",'2. Assisted & Restricted Units'!AP330)","v":0},{"$f":"IF('2. Assisted & Restricted Units'!AT330=\"\",\"\",'2. Assisted & Restricted Units'!AT330)","v":""},0,{"$f":"IF('2. Assisted & Restricted Units'!AV330=\"\",\"\",'2. Assisted & Restricted Units'!AV330)","v":""},{"$f":"IF('2. Assisted & Restricted Units'!L330=\"\",\"\",'2. Assisted & Restricted Units'!L330)","v":""},{"$f":"IF('2. Assisted & Restricted Units'!M330=\"\",\"\",'2. Assisted & Restricted Units'!M330)","v":""},{"$f":"IF('2. Assisted & Restricted Units'!O330=\"\",\"\",'2. Assisted & Restricted Units'!O330)","v":""},{"$f":"IF('2. Assisted & Restricted Units'!P330=\"\",\"\",'2. Assisted & Restricted Units'!P330)","v":""},{"$f":"IF('2. Assisted & Restricted Units'!Q330=\"\",\"\",'2. Assisted & Restricted Units'!Q330)","v":""},{"$f":"IF('2. Assisted & Restricted Units'!R330=\"\",\"\",'2. Assisted & Restricted Units'!R330)","v":""},{"$f":"IF(A330=\"\",\"\",'1. Checklist & Certification'!$K$1)","v":""},{"$f":"IF(A330=\"\",\"\",'1. Checklist & Certification'!$C$62)","v":""},{"$f":"IF(A330=\"\",\"\",'1. Checklist & Certification'!$K$62)","v":""},{"$f":"IF(A330=\"\",\"\",'1. Checklist & Certification'!$C$6)","v":""},{"$f":"IF(A330=\"\",\"\",'1. Checklist & Certification'!$G$4)","v":""},{"$f":"IF(A330=\"\",\"\",'1. Checklist & Certification'!$C$7)","v":""},{"$f":"IF(A330=\"\",\"\",'1. Checklist & Certification'!$C$8)","v":""},{"$f":"IF(A330=\"\",\"\",'1. Checklist & Certification'!$F$7)","v":""},{"$f":"IF(A330=\"\",\"\",'1. Checklist & Certification'!$F$8)","v":""},{"$f":"IF(A330=\"\",\"\",'1. Checklist & Certification'!$B$9)","v":""},{"$f":"IF(A330=\"\",\"\",'1. Checklist & Certification'!$F$9)","v":""},{"$f":"IF(A330=\"\",\"\",'1. Checklist & Certification'!$C$10)","v":""},{"$f":"IF(A330=\"\",\"\",'1. Checklist & Certification'!$C$11)","v":""},{"$f":"IF(A330=\"\",\"\",'1. Checklist & Certification'!$C$12)","v":""},{"$f":"IF(A330=\"\",\"\",'1. Checklist & Certification'!$B$14)","v":""},{"$f":"IF(A330=\"\",\"\",'1. Checklist & Certification'!$E$14)","v":""},{"$f":"IF(B330=\"\",\"\",'1. Checklist & Certification'!$G$14)","v":""},{"$f":"IF(A330=\"\",\"\",'MHP Family Income & Rent Limits'!$B$3)","v":""},{"$f":"IF(A330=\"\",\"\",'MHP Family Income & Rent Limits'!$J$3)","v":""},{"$f":"IF(A330=\"\",\"\",'MHP Family Income & Rent Limits'!$E$4)","v":""},{"$f":"IF(A330=\"\",\"\",'MHP Family Income & Rent Limits'!$C$7)","v":""},{"$f":"IF(A330=\"\",\"\",'MHP Family Income & Rent Limits'!$F$8)","v":""},{"$f":"IF(A330=\"\",\"\",'1. Checklist & Certification'!$G$4)","v":""},{"$f":"IF(A330=\"\",\"\",'1. Checklist & Certification'!$K$39)","v":""},{"$f":"IF(A330=\"\",\"\",'1. Checklist & Certification'!$K$43)","v":""},{"$f":"IF(A330=\"\",\"\",'1. Checklist & Certification'!$K$45)","v":""},{"$f":"IF(A330=\"\",\"\",'1. Checklist & Certification'!$K$49)","v":""},{"$f":"IF(A330=\"\",\"\",'1. Checklist & Certification'!$E$66)","v":""},{"$f":"IF(A330=\"\",\"\",'1. Checklist & Certification'!$E$67)","v":""},{"$f":"IF(A330=\"\",\"\",'1. Checklist & Certification'!$E$68)","v":""},{"$f":"IF(A330=\"\",\"\",'1. Checklist & Certification'!$G$66)","v":""},{"$f":"IF(A330=\"\",\"\",'1. Checklist & Certification'!$H$66)","v":""},{"$f":"IF(A330=\"\",\"\",'1. Checklist & Certification'!$I$66)","v":""},{"$f":"IF(A330=\"\",\"\",'1. Checklist & Certification'!$I$67)","v":""},{"$f":"IF(A330=\"\",\"\",'1. Checklist & Certification'!$I$68)","v":""},null,{"$f":"IF(C330=\"\",\"\",HLOOKUP(C330,'MHP Family Income & Rent Limits'!$E$12:$L$26,2,FALSE))","v":""},{"$f":"IF(C330=\"\",\"\",HLOOKUP(C330,'MHP Family Income & Rent Limits'!$E$12:$L$26,3,FALSE))","v":""},{"$f":"IF(C330=\"\",\"\",HLOOKUP(C330,'MHP Family Income & Rent Limits'!$E$12:$L$26,4,FALSE))","v":""},{"$f":"IF(C330=\"\",\"\",HLOOKUP(C330,'MHP Family Income & Rent Limits'!$E$12:$L$26,5,FALSE))","v":""},{"$f":"IF(C330=\"\",\"\",HLOOKUP(C330,'MHP Family Income & Rent Limits'!$E$12:$L$26,6,FALSE))","v":""},{"$f":"IF(C330=\"\",\"\",HLOOKUP(C330,'MHP Family Income & Rent Limits'!$E$12:$L$26,7,FALSE))","v":""},{"$f":"IF(C330=\"\",\"\",HLOOKUP(C330,'MHP Family Income & Rent Limits'!$E$12:$L$26,8,FALSE))","v":""},{"$f":"IF(C330=\"\",\"\",HLOOKUP(C330,'MHP Family Income & Rent Limits'!$E$12:$L$26,9,FALSE))","v":""},{"$f":"IF(C330=\"\",\"\",HLOOKUP(C330,'MHP Family Income & Rent Limits'!$E$12:$L$26,10,FALSE))","v":""},{"$f":"IF(C330=\"\",\"\",HLOOKUP(C330,'MHP Family Income & Rent Limits'!$E$12:$L$26,11,FALSE))","v":""},{"$f":"IF(C330=\"\",\"\",HLOOKUP(C330,'MHP Family Income & Rent Limits'!$E$12:$L$26,12,FALSE))","v":""},{"$f":"IF(C330=\"\",\"\",HLOOKUP(C330,'MHP Family Income & Rent Limits'!$E$12:$L$26,13,FALSE))","v":""},{"$f":"IF(C330=\"\",\"\",HLOOKUP(C330,'MHP Family Income & Rent Limits'!$E$12:$L$26,14,FALSE))","v":""},{"$f":"IF(C330=\"\",\"\",HLOOKUP(C330,'MHP Family Income & Rent Limits'!$E$12:$L$26,15,FALSE))","v":""}]
[{"$f":"IF('2. Assisted & Restricted Units'!A331=\"\",\"\",'2. Assisted & Restricted Units'!A331)","v":""},{"$f":"IF('2. Assisted & Restricted Units'!B331=\"\",\"\",'2. Assisted & Restricted Units'!B331)","v":""},{"$f":"IF('2. Assisted & Restricted Units'!D331=\"\",\"\",'2. Assisted & Restricted Units'!D331)","v":""},{"$f":"IF('2. Assisted & Restricted Units'!E331=\"\",\"\",'2. Assisted & Restricted Units'!E331)","v":""},{"$f":"IF('2. Assisted & Restricted Units'!H331=\"\",\"\",'2. Assisted & Restricted Units'!H331)","v":""},{"$f":"_xlfn.IFS(E331=\"\",\"\",E331>BO331,$BP$6,E331>BN331,$BO$6,E331>BM331,$BN$6,E331>BL331,$BM$6,E331>BK331,$BL$6,E331>BJ331,$BK$6,E331>BI331,$BJ$6,E331>BH331,$BI$6,E331>BG331,$BH$6,E331>BF331,$BG$6,E331>BE331,$BF$6,E331>BD331,$BE$6,E331>BC331,$BD$6,E331>=0,$BC$6)","v":""},{"$f":"IF('2. Assisted & Restricted Units'!T331=\"\",\"\",'2. Assisted & Restricted Units'!T331)","v":""},{"$f":"IF('2. Assisted & Restricted Units'!I331=\"\",\"\",'2. Assisted & Restricted Units'!I331)","v":""},{"$f":"IF('2. Assisted & Restricted Units'!AP331=\"\",\"\",'2. Assisted & Restricted Units'!AP331)","v":0},{"$f":"IF('2. Assisted & Restricted Units'!AT331=\"\",\"\",'2. Assisted & Restricted Units'!AT331)","v":""},0,{"$f":"IF('2. Assisted & Restricted Units'!AV331=\"\",\"\",'2. Assisted & Restricted Units'!AV331)","v":""},{"$f":"IF('2. Assisted & Restricted Units'!L331=\"\",\"\",'2. Assisted & Restricted Units'!L331)","v":""},{"$f":"IF('2. Assisted & Restricted Units'!M331=\"\",\"\",'2. Assisted & Restricted Units'!M331)","v":""},{"$f":"IF('2. Assisted & Restricted Units'!O331=\"\",\"\",'2. Assisted & Restricted Units'!O331)","v":""},{"$f":"IF('2. Assisted & Restricted Units'!P331=\"\",\"\",'2. Assisted & Restricted Units'!P331)","v":""},{"$f":"IF('2. Assisted & Restricted Units'!Q331=\"\",\"\",'2. Assisted & Restricted Units'!Q331)","v":""},{"$f":"IF('2. Assisted & Restricted Units'!R331=\"\",\"\",'2. Assisted & Restricted Units'!R331)","v":""},{"$f":"IF(A331=\"\",\"\",'1. Checklist & Certification'!$K$1)","v":""},{"$f":"IF(A331=\"\",\"\",'1. Checklist & Certification'!$C$62)","v":""},{"$f":"IF(A331=\"\",\"\",'1. Checklist & Certification'!$K$62)","v":""},{"$f":"IF(A331=\"\",\"\",'1. Checklist & Certification'!$C$6)","v":""},{"$f":"IF(A331=\"\",\"\",'1. Checklist & Certification'!$G$4)","v":""},{"$f":"IF(A331=\"\",\"\",'1. Checklist & Certification'!$C$7)","v":""},{"$f":"IF(A331=\"\",\"\",'1. Checklist & Certification'!$C$8)","v":""},{"$f":"IF(A331=\"\",\"\",'1. Checklist & Certification'!$F$7)","v":""},{"$f":"IF(A331=\"\",\"\",'1. Checklist & Certification'!$F$8)","v":""},{"$f":"IF(A331=\"\",\"\",'1. Checklist & Certification'!$B$9)","v":""},{"$f":"IF(A331=\"\",\"\",'1. Checklist & Certification'!$F$9)","v":""},{"$f":"IF(A331=\"\",\"\",'1. Checklist & Certification'!$C$10)","v":""},{"$f":"IF(A331=\"\",\"\",'1. Checklist & Certification'!$C$11)","v":""},{"$f":"IF(A331=\"\",\"\",'1. Checklist & Certification'!$C$12)","v":""},{"$f":"IF(A331=\"\",\"\",'1. Checklist & Certification'!$B$14)","v":""},{"$f":"IF(A331=\"\",\"\",'1. Checklist & Certification'!$E$14)","v":""},{"$f":"IF(B331=\"\",\"\",'1. Checklist & Certification'!$G$14)","v":""},{"$f":"IF(A331=\"\",\"\",'MHP Family Income & Rent Limits'!$B$3)","v":""},{"$f":"IF(A331=\"\",\"\",'MHP Family Income & Rent Limits'!$J$3)","v":""},{"$f":"IF(A331=\"\",\"\",'MHP Family Income & Rent Limits'!$E$4)","v":""},{"$f":"IF(A331=\"\",\"\",'MHP Family Income & Rent Limits'!$C$7)","v":""},{"$f":"IF(A331=\"\",\"\",'MHP Family Income & Rent Limits'!$F$8)","v":""},{"$f":"IF(A331=\"\",\"\",'1. Checklist & Certification'!$G$4)","v":""},{"$f":"IF(A331=\"\",\"\",'1. Checklist & Certification'!$K$39)","v":""},{"$f":"IF(A331=\"\",\"\",'1. Checklist & Certification'!$K$43)","v":""},{"$f":"IF(A331=\"\",\"\",'1. Checklist & Certification'!$K$45)","v":""},{"$f":"IF(A331=\"\",\"\",'1. Checklist & Certification'!$K$49)","v":""},{"$f":"IF(A331=\"\",\"\",'1. Checklist & Certification'!$E$66)","v":""},{"$f":"IF(A331=\"\",\"\",'1. Checklist & Certification'!$E$67)","v":""},{"$f":"IF(A331=\"\",\"\",'1. Checklist & Certification'!$E$68)","v":""},{"$f":"IF(A331=\"\",\"\",'1. Checklist & Certification'!$G$66)","v":""},{"$f":"IF(A331=\"\",\"\",'1. Checklist & Certification'!$H$66)","v":""},{"$f":"IF(A331=\"\",\"\",'1. Checklist & Certification'!$I$66)","v":""},{"$f":"IF(A331=\"\",\"\",'1. Checklist & Certification'!$I$67)","v":""},{"$f":"IF(A331=\"\",\"\",'1. Checklist & Certification'!$I$68)","v":""},null,{"$f":"IF(C331=\"\",\"\",HLOOKUP(C331,'MHP Family Income & Rent Limits'!$E$12:$L$26,2,FALSE))","v":""},{"$f":"IF(C331=\"\",\"\",HLOOKUP(C331,'MHP Family Income & Rent Limits'!$E$12:$L$26,3,FALSE))","v":""},{"$f":"IF(C331=\"\",\"\",HLOOKUP(C331,'MHP Family Income & Rent Limits'!$E$12:$L$26,4,FALSE))","v":""},{"$f":"IF(C331=\"\",\"\",HLOOKUP(C331,'MHP Family Income & Rent Limits'!$E$12:$L$26,5,FALSE))","v":""},{"$f":"IF(C331=\"\",\"\",HLOOKUP(C331,'MHP Family Income & Rent Limits'!$E$12:$L$26,6,FALSE))","v":""},{"$f":"IF(C331=\"\",\"\",HLOOKUP(C331,'MHP Family Income & Rent Limits'!$E$12:$L$26,7,FALSE))","v":""},{"$f":"IF(C331=\"\",\"\",HLOOKUP(C331,'MHP Family Income & Rent Limits'!$E$12:$L$26,8,FALSE))","v":""},{"$f":"IF(C331=\"\",\"\",HLOOKUP(C331,'MHP Family Income & Rent Limits'!$E$12:$L$26,9,FALSE))","v":""},{"$f":"IF(C331=\"\",\"\",HLOOKUP(C331,'MHP Family Income & Rent Limits'!$E$12:$L$26,10,FALSE))","v":""},{"$f":"IF(C331=\"\",\"\",HLOOKUP(C331,'MHP Family Income & Rent Limits'!$E$12:$L$26,11,FALSE))","v":""},{"$f":"IF(C331=\"\",\"\",HLOOKUP(C331,'MHP Family Income & Rent Limits'!$E$12:$L$26,12,FALSE))","v":""},{"$f":"IF(C331=\"\",\"\",HLOOKUP(C331,'MHP Family Income & Rent Limits'!$E$12:$L$26,13,FALSE))","v":""},{"$f":"IF(C331=\"\",\"\",HLOOKUP(C331,'MHP Family Income & Rent Limits'!$E$12:$L$26,14,FALSE))","v":""},{"$f":"IF(C331=\"\",\"\",HLOOKUP(C331,'MHP Family Income & Rent Limits'!$E$12:$L$26,15,FALSE))","v":""}]
[{"$f":"IF('2. Assisted & Restricted Units'!A332=\"\",\"\",'2. Assisted & Restricted Units'!A332)","v":""},{"$f":"IF('2. Assisted & Restricted Units'!B332=\"\",\"\",'2. Assisted & Restricted Units'!B332)","v":""},{"$f":"IF('2. Assisted & Restricted Units'!D332=\"\",\"\",'2. Assisted & Restricted Units'!D332)","v":""},{"$f":"IF('2. Assisted & Restricted Units'!E332=\"\",\"\",'2. Assisted & Restricted Units'!E332)","v":""},{"$f":"IF('2. Assisted & Restricted Units'!H332=\"\",\"\",'2. Assisted & Restricted Units'!H332)","v":""},{"$f":"_xlfn.IFS(E332=\"\",\"\",E332>BO332,$BP$6,E332>BN332,$BO$6,E332>BM332,$BN$6,E332>BL332,$BM$6,E332>BK332,$BL$6,E332>BJ332,$BK$6,E332>BI332,$BJ$6,E332>BH332,$BI$6,E332>BG332,$BH$6,E332>BF332,$BG$6,E332>BE332,$BF$6,E332>BD332,$BE$6,E332>BC332,$BD$6,E332>=0,$BC$6)","v":""},{"$f":"IF('2. Assisted & Restricted Units'!T332=\"\",\"\",'2. Assisted & Restricted Units'!T332)","v":""},{"$f":"IF('2. Assisted & Restricted Units'!I332=\"\",\"\",'2. Assisted & Restricted Units'!I332)","v":""},{"$f":"IF('2. Assisted & Restricted Units'!AP332=\"\",\"\",'2. Assisted & Restricted Units'!AP332)","v":0},{"$f":"IF('2. Assisted & Restricted Units'!AT332=\"\",\"\",'2. Assisted & Restricted Units'!AT332)","v":""},0,{"$f":"IF('2. Assisted & Restricted Units'!AV332=\"\",\"\",'2. Assisted & Restricted Units'!AV332)","v":""},{"$f":"IF('2. Assisted & Restricted Units'!L332=\"\",\"\",'2. Assisted & Restricted Units'!L332)","v":""},{"$f":"IF('2. Assisted & Restricted Units'!M332=\"\",\"\",'2. Assisted & Restricted Units'!M332)","v":""},{"$f":"IF('2. Assisted & Restricted Units'!O332=\"\",\"\",'2. Assisted & Restricted Units'!O332)","v":""},{"$f":"IF('2. Assisted & Restricted Units'!P332=\"\",\"\",'2. Assisted & Restricted Units'!P332)","v":""},{"$f":"IF('2. Assisted & Restricted Units'!Q332=\"\",\"\",'2. Assisted & Restricted Units'!Q332)","v":""},{"$f":"IF('2. Assisted & Restricted Units'!R332=\"\",\"\",'2. Assisted & Restricted Units'!R332)","v":""},{"$f":"IF(A332=\"\",\"\",'1. Checklist & Certification'!$K$1)","v":""},{"$f":"IF(A332=\"\",\"\",'1. Checklist & Certification'!$C$62)","v":""},{"$f":"IF(A332=\"\",\"\",'1. Checklist & Certification'!$K$62)","v":""},{"$f":"IF(A332=\"\",\"\",'1. Checklist & Certification'!$C$6)","v":""},{"$f":"IF(A332=\"\",\"\",'1. Checklist & Certification'!$G$4)","v":""},{"$f":"IF(A332=\"\",\"\",'1. Checklist & Certification'!$C$7)","v":""},{"$f":"IF(A332=\"\",\"\",'1. Checklist & Certification'!$C$8)","v":""},{"$f":"IF(A332=\"\",\"\",'1. Checklist & Certification'!$F$7)","v":""},{"$f":"IF(A332=\"\",\"\",'1. Checklist & Certification'!$F$8)","v":""},{"$f":"IF(A332=\"\",\"\",'1. Checklist & Certification'!$B$9)","v":""},{"$f":"IF(A332=\"\",\"\",'1. Checklist & Certification'!$F$9)","v":""},{"$f":"IF(A332=\"\",\"\",'1. Checklist & Certification'!$C$10)","v":""},{"$f":"IF(A332=\"\",\"\",'1. Checklist & Certification'!$C$11)","v":""},{"$f":"IF(A332=\"\",\"\",'1. Checklist & Certification'!$C$12)","v":""},{"$f":"IF(A332=\"\",\"\",'1. Checklist & Certification'!$B$14)","v":""},{"$f":"IF(A332=\"\",\"\",'1. Checklist & Certification'!$E$14)","v":""},{"$f":"IF(B332=\"\",\"\",'1. Checklist & Certification'!$G$14)","v":""},{"$f":"IF(A332=\"\",\"\",'MHP Family Income & Rent Limits'!$B$3)","v":""},{"$f":"IF(A332=\"\",\"\",'MHP Family Income & Rent Limits'!$J$3)","v":""},{"$f":"IF(A332=\"\",\"\",'MHP Family Income & Rent Limits'!$E$4)","v":""},{"$f":"IF(A332=\"\",\"\",'MHP Family Income & Rent Limits'!$C$7)","v":""},{"$f":"IF(A332=\"\",\"\",'MHP Family Income & Rent Limits'!$F$8)","v":""},{"$f":"IF(A332=\"\",\"\",'1. Checklist & Certification'!$G$4)","v":""},{"$f":"IF(A332=\"\",\"\",'1. Checklist & Certification'!$K$39)","v":""},{"$f":"IF(A332=\"\",\"\",'1. Checklist & Certification'!$K$43)","v":""},{"$f":"IF(A332=\"\",\"\",'1. Checklist & Certification'!$K$45)","v":""},{"$f":"IF(A332=\"\",\"\",'1. Checklist & Certification'!$K$49)","v":""},{"$f":"IF(A332=\"\",\"\",'1. Checklist & Certification'!$E$66)","v":""},{"$f":"IF(A332=\"\",\"\",'1. Checklist & Certification'!$E$67)","v":""},{"$f":"IF(A332=\"\",\"\",'1. Checklist & Certification'!$E$68)","v":""},{"$f":"IF(A332=\"\",\"\",'1. Checklist & Certification'!$G$66)","v":""},{"$f":"IF(A332=\"\",\"\",'1. Checklist & Certification'!$H$66)","v":""},{"$f":"IF(A332=\"\",\"\",'1. Checklist & Certification'!$I$66)","v":""},{"$f":"IF(A332=\"\",\"\",'1. Checklist & Certification'!$I$67)","v":""},{"$f":"IF(A332=\"\",\"\",'1. Checklist & Certification'!$I$68)","v":""},null,{"$f":"IF(C332=\"\",\"\",HLOOKUP(C332,'MHP Family Income & Rent Limits'!$E$12:$L$26,2,FALSE))","v":""},{"$f":"IF(C332=\"\",\"\",HLOOKUP(C332,'MHP Family Income & Rent Limits'!$E$12:$L$26,3,FALSE))","v":""},{"$f":"IF(C332=\"\",\"\",HLOOKUP(C332,'MHP Family Income & Rent Limits'!$E$12:$L$26,4,FALSE))","v":""},{"$f":"IF(C332=\"\",\"\",HLOOKUP(C332,'MHP Family Income & Rent Limits'!$E$12:$L$26,5,FALSE))","v":""},{"$f":"IF(C332=\"\",\"\",HLOOKUP(C332,'MHP Family Income & Rent Limits'!$E$12:$L$26,6,FALSE))","v":""},{"$f":"IF(C332=\"\",\"\",HLOOKUP(C332,'MHP Family Income & Rent Limits'!$E$12:$L$26,7,FALSE))","v":""},{"$f":"IF(C332=\"\",\"\",HLOOKUP(C332,'MHP Family Income & Rent Limits'!$E$12:$L$26,8,FALSE))","v":""},{"$f":"IF(C332=\"\",\"\",HLOOKUP(C332,'MHP Family Income & Rent Limits'!$E$12:$L$26,9,FALSE))","v":""},{"$f":"IF(C332=\"\",\"\",HLOOKUP(C332,'MHP Family Income & Rent Limits'!$E$12:$L$26,10,FALSE))","v":""},{"$f":"IF(C332=\"\",\"\",HLOOKUP(C332,'MHP Family Income & Rent Limits'!$E$12:$L$26,11,FALSE))","v":""},{"$f":"IF(C332=\"\",\"\",HLOOKUP(C332,'MHP Family Income & Rent Limits'!$E$12:$L$26,12,FALSE))","v":""},{"$f":"IF(C332=\"\",\"\",HLOOKUP(C332,'MHP Family Income & Rent Limits'!$E$12:$L$26,13,FALSE))","v":""},{"$f":"IF(C332=\"\",\"\",HLOOKUP(C332,'MHP Family Income & Rent Limits'!$E$12:$L$26,14,FALSE))","v":""},{"$f":"IF(C332=\"\",\"\",HLOOKUP(C332,'MHP Family Income & Rent Limits'!$E$12:$L$26,15,FALSE))","v":""}]
[{"$f":"IF('2. Assisted & Restricted Units'!A333=\"\",\"\",'2. Assisted & Restricted Units'!A333)","v":""},{"$f":"IF('2. Assisted & Restricted Units'!B333=\"\",\"\",'2. Assisted & Restricted Units'!B333)","v":""},{"$f":"IF('2. Assisted & Restricted Units'!D333=\"\",\"\",'2. Assisted & Restricted Units'!D333)","v":""},{"$f":"IF('2. Assisted & Restricted Units'!E333=\"\",\"\",'2. Assisted & Restricted Units'!E333)","v":""},{"$f":"IF('2. Assisted & Restricted Units'!H333=\"\",\"\",'2. Assisted & Restricted Units'!H333)","v":""},{"$f":"_xlfn.IFS(E333=\"\",\"\",E333>BO333,$BP$6,E333>BN333,$BO$6,E333>BM333,$BN$6,E333>BL333,$BM$6,E333>BK333,$BL$6,E333>BJ333,$BK$6,E333>BI333,$BJ$6,E333>BH333,$BI$6,E333>BG333,$BH$6,E333>BF333,$BG$6,E333>BE333,$BF$6,E333>BD333,$BE$6,E333>BC333,$BD$6,E333>=0,$BC$6)","v":""},{"$f":"IF('2. Assisted & Restricted Units'!T333=\"\",\"\",'2. Assisted & Restricted Units'!T333)","v":""},{"$f":"IF('2. Assisted & Restricted Units'!I333=\"\",\"\",'2. Assisted & Restricted Units'!I333)","v":""},{"$f":"IF('2. Assisted & Restricted Units'!AP333=\"\",\"\",'2. Assisted & Restricted Units'!AP333)","v":0},{"$f":"IF('2. Assisted & Restricted Units'!AT333=\"\",\"\",'2. Assisted & Restricted Units'!AT333)","v":""},0,{"$f":"IF('2. Assisted & Restricted Units'!AV333=\"\",\"\",'2. Assisted & Restricted Units'!AV333)","v":""},{"$f":"IF('2. Assisted & Restricted Units'!L333=\"\",\"\",'2. Assisted & Restricted Units'!L333)","v":""},{"$f":"IF('2. Assisted & Restricted Units'!M333=\"\",\"\",'2. Assisted & Restricted Units'!M333)","v":""},{"$f":"IF('2. Assisted & Restricted Units'!O333=\"\",\"\",'2. Assisted & Restricted Units'!O333)","v":""},{"$f":"IF('2. Assisted & Restricted Units'!P333=\"\",\"\",'2. Assisted & Restricted Units'!P333)","v":""},{"$f":"IF('2. Assisted & Restricted Units'!Q333=\"\",\"\",'2. Assisted & Restricted Units'!Q333)","v":""},{"$f":"IF('2. Assisted & Restricted Units'!R333=\"\",\"\",'2. Assisted & Restricted Units'!R333)","v":""},{"$f":"IF(A333=\"\",\"\",'1. Checklist & Certification'!$K$1)","v":""},{"$f":"IF(A333=\"\",\"\",'1. Checklist & Certification'!$C$62)","v":""},{"$f":"IF(A333=\"\",\"\",'1. Checklist & Certification'!$K$62)","v":""},{"$f":"IF(A333=\"\",\"\",'1. Checklist & Certification'!$C$6)","v":""},{"$f":"IF(A333=\"\",\"\",'1. Checklist & Certification'!$G$4)","v":""},{"$f":"IF(A333=\"\",\"\",'1. Checklist & Certification'!$C$7)","v":""},{"$f":"IF(A333=\"\",\"\",'1. Checklist & Certification'!$C$8)","v":""},{"$f":"IF(A333=\"\",\"\",'1. Checklist & Certification'!$F$7)","v":""},{"$f":"IF(A333=\"\",\"\",'1. Checklist & Certification'!$F$8)","v":""},{"$f":"IF(A333=\"\",\"\",'1. Checklist & Certification'!$B$9)","v":""},{"$f":"IF(A333=\"\",\"\",'1. Checklist & Certification'!$F$9)","v":""},{"$f":"IF(A333=\"\",\"\",'1. Checklist & Certification'!$C$10)","v":""},{"$f":"IF(A333=\"\",\"\",'1. Checklist & Certification'!$C$11)","v":""},{"$f":"IF(A333=\"\",\"\",'1. Checklist & Certification'!$C$12)","v":""},{"$f":"IF(A333=\"\",\"\",'1. Checklist & Certification'!$B$14)","v":""},{"$f":"IF(A333=\"\",\"\",'1. Checklist & Certification'!$E$14)","v":""},{"$f":"IF(B333=\"\",\"\",'1. Checklist & Certification'!$G$14)","v":""},{"$f":"IF(A333=\"\",\"\",'MHP Family Income & Rent Limits'!$B$3)","v":""},{"$f":"IF(A333=\"\",\"\",'MHP Family Income & Rent Limits'!$J$3)","v":""},{"$f":"IF(A333=\"\",\"\",'MHP Family Income & Rent Limits'!$E$4)","v":""},{"$f":"IF(A333=\"\",\"\",'MHP Family Income & Rent Limits'!$C$7)","v":""},{"$f":"IF(A333=\"\",\"\",'MHP Family Income & Rent Limits'!$F$8)","v":""},{"$f":"IF(A333=\"\",\"\",'1. Checklist & Certification'!$G$4)","v":""},{"$f":"IF(A333=\"\",\"\",'1. Checklist & Certification'!$K$39)","v":""},{"$f":"IF(A333=\"\",\"\",'1. Checklist & Certification'!$K$43)","v":""},{"$f":"IF(A333=\"\",\"\",'1. Checklist & Certification'!$K$45)","v":""},{"$f":"IF(A333=\"\",\"\",'1. Checklist & Certification'!$K$49)","v":""},{"$f":"IF(A333=\"\",\"\",'1. Checklist & Certification'!$E$66)","v":""},{"$f":"IF(A333=\"\",\"\",'1. Checklist & Certification'!$E$67)","v":""},{"$f":"IF(A333=\"\",\"\",'1. Checklist & Certification'!$E$68)","v":""},{"$f":"IF(A333=\"\",\"\",'1. Checklist & Certification'!$G$66)","v":""},{"$f":"IF(A333=\"\",\"\",'1. Checklist & Certification'!$H$66)","v":""},{"$f":"IF(A333=\"\",\"\",'1. Checklist & Certification'!$I$66)","v":""},{"$f":"IF(A333=\"\",\"\",'1. Checklist & Certification'!$I$67)","v":""},{"$f":"IF(A333=\"\",\"\",'1. Checklist & Certification'!$I$68)","v":""},null,{"$f":"IF(C333=\"\",\"\",HLOOKUP(C333,'MHP Family Income & Rent Limits'!$E$12:$L$26,2,FALSE))","v":""},{"$f":"IF(C333=\"\",\"\",HLOOKUP(C333,'MHP Family Income & Rent Limits'!$E$12:$L$26,3,FALSE))","v":""},{"$f":"IF(C333=\"\",\"\",HLOOKUP(C333,'MHP Family Income & Rent Limits'!$E$12:$L$26,4,FALSE))","v":""},{"$f":"IF(C333=\"\",\"\",HLOOKUP(C333,'MHP Family Income & Rent Limits'!$E$12:$L$26,5,FALSE))","v":""},{"$f":"IF(C333=\"\",\"\",HLOOKUP(C333,'MHP Family Income & Rent Limits'!$E$12:$L$26,6,FALSE))","v":""},{"$f":"IF(C333=\"\",\"\",HLOOKUP(C333,'MHP Family Income & Rent Limits'!$E$12:$L$26,7,FALSE))","v":""},{"$f":"IF(C333=\"\",\"\",HLOOKUP(C333,'MHP Family Income & Rent Limits'!$E$12:$L$26,8,FALSE))","v":""},{"$f":"IF(C333=\"\",\"\",HLOOKUP(C333,'MHP Family Income & Rent Limits'!$E$12:$L$26,9,FALSE))","v":""},{"$f":"IF(C333=\"\",\"\",HLOOKUP(C333,'MHP Family Income & Rent Limits'!$E$12:$L$26,10,FALSE))","v":""},{"$f":"IF(C333=\"\",\"\",HLOOKUP(C333,'MHP Family Income & Rent Limits'!$E$12:$L$26,11,FALSE))","v":""},{"$f":"IF(C333=\"\",\"\",HLOOKUP(C333,'MHP Family Income & Rent Limits'!$E$12:$L$26,12,FALSE))","v":""},{"$f":"IF(C333=\"\",\"\",HLOOKUP(C333,'MHP Family Income & Rent Limits'!$E$12:$L$26,13,FALSE))","v":""},{"$f":"IF(C333=\"\",\"\",HLOOKUP(C333,'MHP Family Income & Rent Limits'!$E$12:$L$26,14,FALSE))","v":""},{"$f":"IF(C333=\"\",\"\",HLOOKUP(C333,'MHP Family Income & Rent Limits'!$E$12:$L$26,15,FALSE))","v":""}]
[{"$f":"IF('2. Assisted & Restricted Units'!A334=\"\",\"\",'2. Assisted & Restricted Units'!A334)","v":""},{"$f":"IF('2. Assisted & Restricted Units'!B334=\"\",\"\",'2. Assisted & Restricted Units'!B334)","v":""},{"$f":"IF('2. Assisted & Restricted Units'!D334=\"\",\"\",'2. Assisted & Restricted Units'!D334)","v":""},{"$f":"IF('2. Assisted & Restricted Units'!E334=\"\",\"\",'2. Assisted & Restricted Units'!E334)","v":""},{"$f":"IF('2. Assisted & Restricted Units'!H334=\"\",\"\",'2. Assisted & Restricted Units'!H334)","v":""},{"$f":"_xlfn.IFS(E334=\"\",\"\",E334>BO334,$BP$6,E334>BN334,$BO$6,E334>BM334,$BN$6,E334>BL334,$BM$6,E334>BK334,$BL$6,E334>BJ334,$BK$6,E334>BI334,$BJ$6,E334>BH334,$BI$6,E334>BG334,$BH$6,E334>BF334,$BG$6,E334>BE334,$BF$6,E334>BD334,$BE$6,E334>BC334,$BD$6,E334>=0,$BC$6)","v":""},{"$f":"IF('2. Assisted & Restricted Units'!T334=\"\",\"\",'2. Assisted & Restricted Units'!T334)","v":""},{"$f":"IF('2. Assisted & Restricted Units'!I334=\"\",\"\",'2. Assisted & Restricted Units'!I334)","v":""},{"$f":"IF('2. Assisted & Restricted Units'!AP334=\"\",\"\",'2. Assisted & Restricted Units'!AP334)","v":0},{"$f":"IF('2. Assisted & Restricted Units'!AT334=\"\",\"\",'2. Assisted & Restricted Units'!AT334)","v":""},0,{"$f":"IF('2. Assisted & Restricted Units'!AV334=\"\",\"\",'2. Assisted & Restricted Units'!AV334)","v":""},{"$f":"IF('2. Assisted & Restricted Units'!L334=\"\",\"\",'2. Assisted & Restricted Units'!L334)","v":""},{"$f":"IF('2. Assisted & Restricted Units'!M334=\"\",\"\",'2. Assisted & Restricted Units'!M334)","v":""},{"$f":"IF('2. Assisted & Restricted Units'!O334=\"\",\"\",'2. Assisted & Restricted Units'!O334)","v":""},{"$f":"IF('2. Assisted & Restricted Units'!P334=\"\",\"\",'2. Assisted & Restricted Units'!P334)","v":""},{"$f":"IF('2. Assisted & Restricted Units'!Q334=\"\",\"\",'2. Assisted & Restricted Units'!Q334)","v":""},{"$f":"IF('2. Assisted & Restricted Units'!R334=\"\",\"\",'2. Assisted & Restricted Units'!R334)","v":""},{"$f":"IF(A334=\"\",\"\",'1. Checklist & Certification'!$K$1)","v":""},{"$f":"IF(A334=\"\",\"\",'1. Checklist & Certification'!$C$62)","v":""},{"$f":"IF(A334=\"\",\"\",'1. Checklist & Certification'!$K$62)","v":""},{"$f":"IF(A334=\"\",\"\",'1. Checklist & Certification'!$C$6)","v":""},{"$f":"IF(A334=\"\",\"\",'1. Checklist & Certification'!$G$4)","v":""},{"$f":"IF(A334=\"\",\"\",'1. Checklist & Certification'!$C$7)","v":""},{"$f":"IF(A334=\"\",\"\",'1. Checklist & Certification'!$C$8)","v":""},{"$f":"IF(A334=\"\",\"\",'1. Checklist & Certification'!$F$7)","v":""},{"$f":"IF(A334=\"\",\"\",'1. Checklist & Certification'!$F$8)","v":""},{"$f":"IF(A334=\"\",\"\",'1. Checklist & Certification'!$B$9)","v":""},{"$f":"IF(A334=\"\",\"\",'1. Checklist & Certification'!$F$9)","v":""},{"$f":"IF(A334=\"\",\"\",'1. Checklist & Certification'!$C$10)","v":""},{"$f":"IF(A334=\"\",\"\",'1. Checklist & Certification'!$C$11)","v":""},{"$f":"IF(A334=\"\",\"\",'1. Checklist & Certification'!$C$12)","v":""},{"$f":"IF(A334=\"\",\"\",'1. Checklist & Certification'!$B$14)","v":""},{"$f":"IF(A334=\"\",\"\",'1. Checklist & Certification'!$E$14)","v":""},{"$f":"IF(B334=\"\",\"\",'1. Checklist & Certification'!$G$14)","v":""},{"$f":"IF(A334=\"\",\"\",'MHP Family Income & Rent Limits'!$B$3)","v":""},{"$f":"IF(A334=\"\",\"\",'MHP Family Income & Rent Limits'!$J$3)","v":""},{"$f":"IF(A334=\"\",\"\",'MHP Family Income & Rent Limits'!$E$4)","v":""},{"$f":"IF(A334=\"\",\"\",'MHP Family Income & Rent Limits'!$C$7)","v":""},{"$f":"IF(A334=\"\",\"\",'MHP Family Income & Rent Limits'!$F$8)","v":""},{"$f":"IF(A334=\"\",\"\",'1. Checklist & Certification'!$G$4)","v":""},{"$f":"IF(A334=\"\",\"\",'1. Checklist & Certification'!$K$39)","v":""},{"$f":"IF(A334=\"\",\"\",'1. Checklist & Certification'!$K$43)","v":""},{"$f":"IF(A334=\"\",\"\",'1. Checklist & Certification'!$K$45)","v":""},{"$f":"IF(A334=\"\",\"\",'1. Checklist & Certification'!$K$49)","v":""},{"$f":"IF(A334=\"\",\"\",'1. Checklist & Certification'!$E$66)","v":""},{"$f":"IF(A334=\"\",\"\",'1. Checklist & Certification'!$E$67)","v":""},{"$f":"IF(A334=\"\",\"\",'1. Checklist & Certification'!$E$68)","v":""},{"$f":"IF(A334=\"\",\"\",'1. Checklist & Certification'!$G$66)","v":""},{"$f":"IF(A334=\"\",\"\",'1. Checklist & Certification'!$H$66)","v":""},{"$f":"IF(A334=\"\",\"\",'1. Checklist & Certification'!$I$66)","v":""},{"$f":"IF(A334=\"\",\"\",'1. Checklist & Certification'!$I$67)","v":""},{"$f":"IF(A334=\"\",\"\",'1. Checklist & Certification'!$I$68)","v":""},null,{"$f":"IF(C334=\"\",\"\",HLOOKUP(C334,'MHP Family Income & Rent Limits'!$E$12:$L$26,2,FALSE))","v":""},{"$f":"IF(C334=\"\",\"\",HLOOKUP(C334,'MHP Family Income & Rent Limits'!$E$12:$L$26,3,FALSE))","v":""},{"$f":"IF(C334=\"\",\"\",HLOOKUP(C334,'MHP Family Income & Rent Limits'!$E$12:$L$26,4,FALSE))","v":""},{"$f":"IF(C334=\"\",\"\",HLOOKUP(C334,'MHP Family Income & Rent Limits'!$E$12:$L$26,5,FALSE))","v":""},{"$f":"IF(C334=\"\",\"\",HLOOKUP(C334,'MHP Family Income & Rent Limits'!$E$12:$L$26,6,FALSE))","v":""},{"$f":"IF(C334=\"\",\"\",HLOOKUP(C334,'MHP Family Income & Rent Limits'!$E$12:$L$26,7,FALSE))","v":""},{"$f":"IF(C334=\"\",\"\",HLOOKUP(C334,'MHP Family Income & Rent Limits'!$E$12:$L$26,8,FALSE))","v":""},{"$f":"IF(C334=\"\",\"\",HLOOKUP(C334,'MHP Family Income & Rent Limits'!$E$12:$L$26,9,FALSE))","v":""},{"$f":"IF(C334=\"\",\"\",HLOOKUP(C334,'MHP Family Income & Rent Limits'!$E$12:$L$26,10,FALSE))","v":""},{"$f":"IF(C334=\"\",\"\",HLOOKUP(C334,'MHP Family Income & Rent Limits'!$E$12:$L$26,11,FALSE))","v":""},{"$f":"IF(C334=\"\",\"\",HLOOKUP(C334,'MHP Family Income & Rent Limits'!$E$12:$L$26,12,FALSE))","v":""},{"$f":"IF(C334=\"\",\"\",HLOOKUP(C334,'MHP Family Income & Rent Limits'!$E$12:$L$26,13,FALSE))","v":""},{"$f":"IF(C334=\"\",\"\",HLOOKUP(C334,'MHP Family Income & Rent Limits'!$E$12:$L$26,14,FALSE))","v":""},{"$f":"IF(C334=\"\",\"\",HLOOKUP(C334,'MHP Family Income & Rent Limits'!$E$12:$L$26,15,FALSE))","v":""}]
[{"$f":"IF('2. Assisted & Restricted Units'!A335=\"\",\"\",'2. Assisted & Restricted Units'!A335)","v":""},{"$f":"IF('2. Assisted & Restricted Units'!B335=\"\",\"\",'2. Assisted & Restricted Units'!B335)","v":""},{"$f":"IF('2. Assisted & Restricted Units'!D335=\"\",\"\",'2. Assisted & Restricted Units'!D335)","v":""},{"$f":"IF('2. Assisted & Restricted Units'!E335=\"\",\"\",'2. Assisted & Restricted Units'!E335)","v":""},{"$f":"IF('2. Assisted & Restricted Units'!H335=\"\",\"\",'2. Assisted & Restricted Units'!H335)","v":""},{"$f":"_xlfn.IFS(E335=\"\",\"\",E335>BO335,$BP$6,E335>BN335,$BO$6,E335>BM335,$BN$6,E335>BL335,$BM$6,E335>BK335,$BL$6,E335>BJ335,$BK$6,E335>BI335,$BJ$6,E335>BH335,$BI$6,E335>BG335,$BH$6,E335>BF335,$BG$6,E335>BE335,$BF$6,E335>BD335,$BE$6,E335>BC335,$BD$6,E335>=0,$BC$6)","v":""},{"$f":"IF('2. Assisted & Restricted Units'!T335=\"\",\"\",'2. Assisted & Restricted Units'!T335)","v":""},{"$f":"IF('2. Assisted & Restricted Units'!I335=\"\",\"\",'2. Assisted & Restricted Units'!I335)","v":""},{"$f":"IF('2. Assisted & Restricted Units'!AP335=\"\",\"\",'2. Assisted & Restricted Units'!AP335)","v":0},{"$f":"IF('2. Assisted & Restricted Units'!AT335=\"\",\"\",'2. Assisted & Restricted Units'!AT335)","v":""},0,{"$f":"IF('2. Assisted & Restricted Units'!AV335=\"\",\"\",'2. Assisted & Restricted Units'!AV335)","v":""},{"$f":"IF('2. Assisted & Restricted Units'!L335=\"\",\"\",'2. Assisted & Restricted Units'!L335)","v":""},{"$f":"IF('2. Assisted & Restricted Units'!M335=\"\",\"\",'2. Assisted & Restricted Units'!M335)","v":""},{"$f":"IF('2. Assisted & Restricted Units'!O335=\"\",\"\",'2. Assisted & Restricted Units'!O335)","v":""},{"$f":"IF('2. Assisted & Restricted Units'!P335=\"\",\"\",'2. Assisted & Restricted Units'!P335)","v":""},{"$f":"IF('2. Assisted & Restricted Units'!Q335=\"\",\"\",'2. Assisted & Restricted Units'!Q335)","v":""},{"$f":"IF('2. Assisted & Restricted Units'!R335=\"\",\"\",'2. Assisted & Restricted Units'!R335)","v":""},{"$f":"IF(A335=\"\",\"\",'1. Checklist & Certification'!$K$1)","v":""},{"$f":"IF(A335=\"\",\"\",'1. Checklist & Certification'!$C$62)","v":""},{"$f":"IF(A335=\"\",\"\",'1. Checklist & Certification'!$K$62)","v":""},{"$f":"IF(A335=\"\",\"\",'1. Checklist & Certification'!$C$6)","v":""},{"$f":"IF(A335=\"\",\"\",'1. Checklist & Certification'!$G$4)","v":""},{"$f":"IF(A335=\"\",\"\",'1. Checklist & Certification'!$C$7)","v":""},{"$f":"IF(A335=\"\",\"\",'1. Checklist & Certification'!$C$8)","v":""},{"$f":"IF(A335=\"\",\"\",'1. Checklist & Certification'!$F$7)","v":""},{"$f":"IF(A335=\"\",\"\",'1. Checklist & Certification'!$F$8)","v":""},{"$f":"IF(A335=\"\",\"\",'1. Checklist & Certification'!$B$9)","v":""},{"$f":"IF(A335=\"\",\"\",'1. Checklist & Certification'!$F$9)","v":""},{"$f":"IF(A335=\"\",\"\",'1. Checklist & Certification'!$C$10)","v":""},{"$f":"IF(A335=\"\",\"\",'1. Checklist & Certification'!$C$11)","v":""},{"$f":"IF(A335=\"\",\"\",'1. Checklist & Certification'!$C$12)","v":""},{"$f":"IF(A335=\"\",\"\",'1. Checklist & Certification'!$B$14)","v":""},{"$f":"IF(A335=\"\",\"\",'1. Checklist & Certification'!$E$14)","v":""},{"$f":"IF(B335=\"\",\"\",'1. Checklist & Certification'!$G$14)","v":""},{"$f":"IF(A335=\"\",\"\",'MHP Family Income & Rent Limits'!$B$3)","v":""},{"$f":"IF(A335=\"\",\"\",'MHP Family Income & Rent Limits'!$J$3)","v":""},{"$f":"IF(A335=\"\",\"\",'MHP Family Income & Rent Limits'!$E$4)","v":""},{"$f":"IF(A335=\"\",\"\",'MHP Family Income & Rent Limits'!$C$7)","v":""},{"$f":"IF(A335=\"\",\"\",'MHP Family Income & Rent Limits'!$F$8)","v":""},{"$f":"IF(A335=\"\",\"\",'1. Checklist & Certification'!$G$4)","v":""},{"$f":"IF(A335=\"\",\"\",'1. Checklist & Certification'!$K$39)","v":""},{"$f":"IF(A335=\"\",\"\",'1. Checklist & Certification'!$K$43)","v":""},{"$f":"IF(A335=\"\",\"\",'1. Checklist & Certification'!$K$45)","v":""},{"$f":"IF(A335=\"\",\"\",'1. Checklist & Certification'!$K$49)","v":""},{"$f":"IF(A335=\"\",\"\",'1. Checklist & Certification'!$E$66)","v":""},{"$f":"IF(A335=\"\",\"\",'1. Checklist & Certification'!$E$67)","v":""},{"$f":"IF(A335=\"\",\"\",'1. Checklist & Certification'!$E$68)","v":""},{"$f":"IF(A335=\"\",\"\",'1. Checklist & Certification'!$G$66)","v":""},{"$f":"IF(A335=\"\",\"\",'1. Checklist & Certification'!$H$66)","v":""},{"$f":"IF(A335=\"\",\"\",'1. Checklist & Certification'!$I$66)","v":""},{"$f":"IF(A335=\"\",\"\",'1. Checklist & Certification'!$I$67)","v":""},{"$f":"IF(A335=\"\",\"\",'1. Checklist & Certification'!$I$68)","v":""},null,{"$f":"IF(C335=\"\",\"\",HLOOKUP(C335,'MHP Family Income & Rent Limits'!$E$12:$L$26,2,FALSE))","v":""},{"$f":"IF(C335=\"\",\"\",HLOOKUP(C335,'MHP Family Income & Rent Limits'!$E$12:$L$26,3,FALSE))","v":""},{"$f":"IF(C335=\"\",\"\",HLOOKUP(C335,'MHP Family Income & Rent Limits'!$E$12:$L$26,4,FALSE))","v":""},{"$f":"IF(C335=\"\",\"\",HLOOKUP(C335,'MHP Family Income & Rent Limits'!$E$12:$L$26,5,FALSE))","v":""},{"$f":"IF(C335=\"\",\"\",HLOOKUP(C335,'MHP Family Income & Rent Limits'!$E$12:$L$26,6,FALSE))","v":""},{"$f":"IF(C335=\"\",\"\",HLOOKUP(C335,'MHP Family Income & Rent Limits'!$E$12:$L$26,7,FALSE))","v":""},{"$f":"IF(C335=\"\",\"\",HLOOKUP(C335,'MHP Family Income & Rent Limits'!$E$12:$L$26,8,FALSE))","v":""},{"$f":"IF(C335=\"\",\"\",HLOOKUP(C335,'MHP Family Income & Rent Limits'!$E$12:$L$26,9,FALSE))","v":""},{"$f":"IF(C335=\"\",\"\",HLOOKUP(C335,'MHP Family Income & Rent Limits'!$E$12:$L$26,10,FALSE))","v":""},{"$f":"IF(C335=\"\",\"\",HLOOKUP(C335,'MHP Family Income & Rent Limits'!$E$12:$L$26,11,FALSE))","v":""},{"$f":"IF(C335=\"\",\"\",HLOOKUP(C335,'MHP Family Income & Rent Limits'!$E$12:$L$26,12,FALSE))","v":""},{"$f":"IF(C335=\"\",\"\",HLOOKUP(C335,'MHP Family Income & Rent Limits'!$E$12:$L$26,13,FALSE))","v":""},{"$f":"IF(C335=\"\",\"\",HLOOKUP(C335,'MHP Family Income & Rent Limits'!$E$12:$L$26,14,FALSE))","v":""},{"$f":"IF(C335=\"\",\"\",HLOOKUP(C335,'MHP Family Income & Rent Limits'!$E$12:$L$26,15,FALSE))","v":""}]
[{"$f":"IF('2. Assisted & Restricted Units'!A336=\"\",\"\",'2. Assisted & Restricted Units'!A336)","v":""},{"$f":"IF('2. Assisted & Restricted Units'!B336=\"\",\"\",'2. Assisted & Restricted Units'!B336)","v":""},{"$f":"IF('2. Assisted & Restricted Units'!D336=\"\",\"\",'2. Assisted & Restricted Units'!D336)","v":""},{"$f":"IF('2. Assisted & Restricted Units'!E336=\"\",\"\",'2. Assisted & Restricted Units'!E336)","v":""},{"$f":"IF('2. Assisted & Restricted Units'!H336=\"\",\"\",'2. Assisted & Restricted Units'!H336)","v":""},{"$f":"_xlfn.IFS(E336=\"\",\"\",E336>BO336,$BP$6,E336>BN336,$BO$6,E336>BM336,$BN$6,E336>BL336,$BM$6,E336>BK336,$BL$6,E336>BJ336,$BK$6,E336>BI336,$BJ$6,E336>BH336,$BI$6,E336>BG336,$BH$6,E336>BF336,$BG$6,E336>BE336,$BF$6,E336>BD336,$BE$6,E336>BC336,$BD$6,E336>=0,$BC$6)","v":""},{"$f":"IF('2. Assisted & Restricted Units'!T336=\"\",\"\",'2. Assisted & Restricted Units'!T336)","v":""},{"$f":"IF('2. Assisted & Restricted Units'!I336=\"\",\"\",'2. Assisted & Restricted Units'!I336)","v":""},{"$f":"IF('2. Assisted & Restricted Units'!AP336=\"\",\"\",'2. Assisted & Restricted Units'!AP336)","v":0},{"$f":"IF('2. Assisted & Restricted Units'!AT336=\"\",\"\",'2. Assisted & Restricted Units'!AT336)","v":""},0,{"$f":"IF('2. Assisted & Restricted Units'!AV336=\"\",\"\",'2. Assisted & Restricted Units'!AV336)","v":""},{"$f":"IF('2. Assisted & Restricted Units'!L336=\"\",\"\",'2. Assisted & Restricted Units'!L336)","v":""},{"$f":"IF('2. Assisted & Restricted Units'!M336=\"\",\"\",'2. Assisted & Restricted Units'!M336)","v":""},{"$f":"IF('2. Assisted & Restricted Units'!O336=\"\",\"\",'2. Assisted & Restricted Units'!O336)","v":""},{"$f":"IF('2. Assisted & Restricted Units'!P336=\"\",\"\",'2. Assisted & Restricted Units'!P336)","v":""},{"$f":"IF('2. Assisted & Restricted Units'!Q336=\"\",\"\",'2. Assisted & Restricted Units'!Q336)","v":""},{"$f":"IF('2. Assisted & Restricted Units'!R336=\"\",\"\",'2. Assisted & Restricted Units'!R336)","v":""},{"$f":"IF(A336=\"\",\"\",'1. Checklist & Certification'!$K$1)","v":""},{"$f":"IF(A336=\"\",\"\",'1. Checklist & Certification'!$C$62)","v":""},{"$f":"IF(A336=\"\",\"\",'1. Checklist & Certification'!$K$62)","v":""},{"$f":"IF(A336=\"\",\"\",'1. Checklist & Certification'!$C$6)","v":""},{"$f":"IF(A336=\"\",\"\",'1. Checklist & Certification'!$G$4)","v":""},{"$f":"IF(A336=\"\",\"\",'1. Checklist & Certification'!$C$7)","v":""},{"$f":"IF(A336=\"\",\"\",'1. Checklist & Certification'!$C$8)","v":""},{"$f":"IF(A336=\"\",\"\",'1. Checklist & Certification'!$F$7)","v":""},{"$f":"IF(A336=\"\",\"\",'1. Checklist & Certification'!$F$8)","v":""},{"$f":"IF(A336=\"\",\"\",'1. Checklist & Certification'!$B$9)","v":""},{"$f":"IF(A336=\"\",\"\",'1. Checklist & Certification'!$F$9)","v":""},{"$f":"IF(A336=\"\",\"\",'1. Checklist & Certification'!$C$10)","v":""},{"$f":"IF(A336=\"\",\"\",'1. Checklist & Certification'!$C$11)","v":""},{"$f":"IF(A336=\"\",\"\",'1. Checklist & Certification'!$C$12)","v":""},{"$f":"IF(A336=\"\",\"\",'1. Checklist & Certification'!$B$14)","v":""},{"$f":"IF(A336=\"\",\"\",'1. Checklist & Certification'!$E$14)","v":""},{"$f":"IF(B336=\"\",\"\",'1. Checklist & Certification'!$G$14)","v":""},{"$f":"IF(A336=\"\",\"\",'MHP Family Income & Rent Limits'!$B$3)","v":""},{"$f":"IF(A336=\"\",\"\",'MHP Family Income & Rent Limits'!$J$3)","v":""},{"$f":"IF(A336=\"\",\"\",'MHP Family Income & Rent Limits'!$E$4)","v":""},{"$f":"IF(A336=\"\",\"\",'MHP Family Income & Rent Limits'!$C$7)","v":""},{"$f":"IF(A336=\"\",\"\",'MHP Family Income & Rent Limits'!$F$8)","v":""},{"$f":"IF(A336=\"\",\"\",'1. Checklist & Certification'!$G$4)","v":""},{"$f":"IF(A336=\"\",\"\",'1. Checklist & Certification'!$K$39)","v":""},{"$f":"IF(A336=\"\",\"\",'1. Checklist & Certification'!$K$43)","v":""},{"$f":"IF(A336=\"\",\"\",'1. Checklist & Certification'!$K$45)","v":""},{"$f":"IF(A336=\"\",\"\",'1. Checklist & Certification'!$K$49)","v":""},{"$f":"IF(A336=\"\",\"\",'1. Checklist & Certification'!$E$66)","v":""},{"$f":"IF(A336=\"\",\"\",'1. Checklist & Certification'!$E$67)","v":""},{"$f":"IF(A336=\"\",\"\",'1. Checklist & Certification'!$E$68)","v":""},{"$f":"IF(A336=\"\",\"\",'1. Checklist & Certification'!$G$66)","v":""},{"$f":"IF(A336=\"\",\"\",'1. Checklist & Certification'!$H$66)","v":""},{"$f":"IF(A336=\"\",\"\",'1. Checklist & Certification'!$I$66)","v":""},{"$f":"IF(A336=\"\",\"\",'1. Checklist & Certification'!$I$67)","v":""},{"$f":"IF(A336=\"\",\"\",'1. Checklist & Certification'!$I$68)","v":""},null,{"$f":"IF(C336=\"\",\"\",HLOOKUP(C336,'MHP Family Income & Rent Limits'!$E$12:$L$26,2,FALSE))","v":""},{"$f":"IF(C336=\"\",\"\",HLOOKUP(C336,'MHP Family Income & Rent Limits'!$E$12:$L$26,3,FALSE))","v":""},{"$f":"IF(C336=\"\",\"\",HLOOKUP(C336,'MHP Family Income & Rent Limits'!$E$12:$L$26,4,FALSE))","v":""},{"$f":"IF(C336=\"\",\"\",HLOOKUP(C336,'MHP Family Income & Rent Limits'!$E$12:$L$26,5,FALSE))","v":""},{"$f":"IF(C336=\"\",\"\",HLOOKUP(C336,'MHP Family Income & Rent Limits'!$E$12:$L$26,6,FALSE))","v":""},{"$f":"IF(C336=\"\",\"\",HLOOKUP(C336,'MHP Family Income & Rent Limits'!$E$12:$L$26,7,FALSE))","v":""},{"$f":"IF(C336=\"\",\"\",HLOOKUP(C336,'MHP Family Income & Rent Limits'!$E$12:$L$26,8,FALSE))","v":""},{"$f":"IF(C336=\"\",\"\",HLOOKUP(C336,'MHP Family Income & Rent Limits'!$E$12:$L$26,9,FALSE))","v":""},{"$f":"IF(C336=\"\",\"\",HLOOKUP(C336,'MHP Family Income & Rent Limits'!$E$12:$L$26,10,FALSE))","v":""},{"$f":"IF(C336=\"\",\"\",HLOOKUP(C336,'MHP Family Income & Rent Limits'!$E$12:$L$26,11,FALSE))","v":""},{"$f":"IF(C336=\"\",\"\",HLOOKUP(C336,'MHP Family Income & Rent Limits'!$E$12:$L$26,12,FALSE))","v":""},{"$f":"IF(C336=\"\",\"\",HLOOKUP(C336,'MHP Family Income & Rent Limits'!$E$12:$L$26,13,FALSE))","v":""},{"$f":"IF(C336=\"\",\"\",HLOOKUP(C336,'MHP Family Income & Rent Limits'!$E$12:$L$26,14,FALSE))","v":""},{"$f":"IF(C336=\"\",\"\",HLOOKUP(C336,'MHP Family Income & Rent Limits'!$E$12:$L$26,15,FALSE))","v":""}]
[{"$f":"IF('2. Assisted & Restricted Units'!A337=\"\",\"\",'2. Assisted & Restricted Units'!A337)","v":""},{"$f":"IF('2. Assisted & Restricted Units'!B337=\"\",\"\",'2. Assisted & Restricted Units'!B337)","v":""},{"$f":"IF('2. Assisted & Restricted Units'!D337=\"\",\"\",'2. Assisted & Restricted Units'!D337)","v":""},{"$f":"IF('2. Assisted & Restricted Units'!E337=\"\",\"\",'2. Assisted & Restricted Units'!E337)","v":""},{"$f":"IF('2. Assisted & Restricted Units'!H337=\"\",\"\",'2. Assisted & Restricted Units'!H337)","v":""},{"$f":"_xlfn.IFS(E337=\"\",\"\",E337>BO337,$BP$6,E337>BN337,$BO$6,E337>BM337,$BN$6,E337>BL337,$BM$6,E337>BK337,$BL$6,E337>BJ337,$BK$6,E337>BI337,$BJ$6,E337>BH337,$BI$6,E337>BG337,$BH$6,E337>BF337,$BG$6,E337>BE337,$BF$6,E337>BD337,$BE$6,E337>BC337,$BD$6,E337>=0,$BC$6)","v":""},{"$f":"IF('2. Assisted & Restricted Units'!T337=\"\",\"\",'2. Assisted & Restricted Units'!T337)","v":""},{"$f":"IF('2. Assisted & Restricted Units'!I337=\"\",\"\",'2. Assisted & Restricted Units'!I337)","v":""},{"$f":"IF('2. Assisted & Restricted Units'!AP337=\"\",\"\",'2. Assisted & Restricted Units'!AP337)","v":0},{"$f":"IF('2. Assisted & Restricted Units'!AT337=\"\",\"\",'2. Assisted & Restricted Units'!AT337)","v":""},0,{"$f":"IF('2. Assisted & Restricted Units'!AV337=\"\",\"\",'2. Assisted & Restricted Units'!AV337)","v":""},{"$f":"IF('2. Assisted & Restricted Units'!L337=\"\",\"\",'2. Assisted & Restricted Units'!L337)","v":""},{"$f":"IF('2. Assisted & Restricted Units'!M337=\"\",\"\",'2. Assisted & Restricted Units'!M337)","v":""},{"$f":"IF('2. Assisted & Restricted Units'!O337=\"\",\"\",'2. Assisted & Restricted Units'!O337)","v":""},{"$f":"IF('2. Assisted & Restricted Units'!P337=\"\",\"\",'2. Assisted & Restricted Units'!P337)","v":""},{"$f":"IF('2. Assisted & Restricted Units'!Q337=\"\",\"\",'2. Assisted & Restricted Units'!Q337)","v":""},{"$f":"IF('2. Assisted & Restricted Units'!R337=\"\",\"\",'2. Assisted & Restricted Units'!R337)","v":""},{"$f":"IF(A337=\"\",\"\",'1. Checklist & Certification'!$K$1)","v":""},{"$f":"IF(A337=\"\",\"\",'1. Checklist & Certification'!$C$62)","v":""},{"$f":"IF(A337=\"\",\"\",'1. Checklist & Certification'!$K$62)","v":""},{"$f":"IF(A337=\"\",\"\",'1. Checklist & Certification'!$C$6)","v":""},{"$f":"IF(A337=\"\",\"\",'1. Checklist & Certification'!$G$4)","v":""},{"$f":"IF(A337=\"\",\"\",'1. Checklist & Certification'!$C$7)","v":""},{"$f":"IF(A337=\"\",\"\",'1. Checklist & Certification'!$C$8)","v":""},{"$f":"IF(A337=\"\",\"\",'1. Checklist & Certification'!$F$7)","v":""},{"$f":"IF(A337=\"\",\"\",'1. Checklist & Certification'!$F$8)","v":""},{"$f":"IF(A337=\"\",\"\",'1. Checklist & Certification'!$B$9)","v":""},{"$f":"IF(A337=\"\",\"\",'1. Checklist & Certification'!$F$9)","v":""},{"$f":"IF(A337=\"\",\"\",'1. Checklist & Certification'!$C$10)","v":""},{"$f":"IF(A337=\"\",\"\",'1. Checklist & Certification'!$C$11)","v":""},{"$f":"IF(A337=\"\",\"\",'1. Checklist & Certification'!$C$12)","v":""},{"$f":"IF(A337=\"\",\"\",'1. Checklist & Certification'!$B$14)","v":""},{"$f":"IF(A337=\"\",\"\",'1. Checklist & Certification'!$E$14)","v":""},{"$f":"IF(B337=\"\",\"\",'1. Checklist & Certification'!$G$14)","v":""},{"$f":"IF(A337=\"\",\"\",'MHP Family Income & Rent Limits'!$B$3)","v":""},{"$f":"IF(A337=\"\",\"\",'MHP Family Income & Rent Limits'!$J$3)","v":""},{"$f":"IF(A337=\"\",\"\",'MHP Family Income & Rent Limits'!$E$4)","v":""},{"$f":"IF(A337=\"\",\"\",'MHP Family Income & Rent Limits'!$C$7)","v":""},{"$f":"IF(A337=\"\",\"\",'MHP Family Income & Rent Limits'!$F$8)","v":""},{"$f":"IF(A337=\"\",\"\",'1. Checklist & Certification'!$G$4)","v":""},{"$f":"IF(A337=\"\",\"\",'1. Checklist & Certification'!$K$39)","v":""},{"$f":"IF(A337=\"\",\"\",'1. Checklist & Certification'!$K$43)","v":""},{"$f":"IF(A337=\"\",\"\",'1. Checklist & Certification'!$K$45)","v":""},{"$f":"IF(A337=\"\",\"\",'1. Checklist & Certification'!$K$49)","v":""},{"$f":"IF(A337=\"\",\"\",'1. Checklist & Certification'!$E$66)","v":""},{"$f":"IF(A337=\"\",\"\",'1. Checklist & Certification'!$E$67)","v":""},{"$f":"IF(A337=\"\",\"\",'1. Checklist & Certification'!$E$68)","v":""},{"$f":"IF(A337=\"\",\"\",'1. Checklist & Certification'!$G$66)","v":""},{"$f":"IF(A337=\"\",\"\",'1. Checklist & Certification'!$H$66)","v":""},{"$f":"IF(A337=\"\",\"\",'1. Checklist & Certification'!$I$66)","v":""},{"$f":"IF(A337=\"\",\"\",'1. Checklist & Certification'!$I$67)","v":""},{"$f":"IF(A337=\"\",\"\",'1. Checklist & Certification'!$I$68)","v":""},null,{"$f":"IF(C337=\"\",\"\",HLOOKUP(C337,'MHP Family Income & Rent Limits'!$E$12:$L$26,2,FALSE))","v":""},{"$f":"IF(C337=\"\",\"\",HLOOKUP(C337,'MHP Family Income & Rent Limits'!$E$12:$L$26,3,FALSE))","v":""},{"$f":"IF(C337=\"\",\"\",HLOOKUP(C337,'MHP Family Income & Rent Limits'!$E$12:$L$26,4,FALSE))","v":""},{"$f":"IF(C337=\"\",\"\",HLOOKUP(C337,'MHP Family Income & Rent Limits'!$E$12:$L$26,5,FALSE))","v":""},{"$f":"IF(C337=\"\",\"\",HLOOKUP(C337,'MHP Family Income & Rent Limits'!$E$12:$L$26,6,FALSE))","v":""},{"$f":"IF(C337=\"\",\"\",HLOOKUP(C337,'MHP Family Income & Rent Limits'!$E$12:$L$26,7,FALSE))","v":""},{"$f":"IF(C337=\"\",\"\",HLOOKUP(C337,'MHP Family Income & Rent Limits'!$E$12:$L$26,8,FALSE))","v":""},{"$f":"IF(C337=\"\",\"\",HLOOKUP(C337,'MHP Family Income & Rent Limits'!$E$12:$L$26,9,FALSE))","v":""},{"$f":"IF(C337=\"\",\"\",HLOOKUP(C337,'MHP Family Income & Rent Limits'!$E$12:$L$26,10,FALSE))","v":""},{"$f":"IF(C337=\"\",\"\",HLOOKUP(C337,'MHP Family Income & Rent Limits'!$E$12:$L$26,11,FALSE))","v":""},{"$f":"IF(C337=\"\",\"\",HLOOKUP(C337,'MHP Family Income & Rent Limits'!$E$12:$L$26,12,FALSE))","v":""},{"$f":"IF(C337=\"\",\"\",HLOOKUP(C337,'MHP Family Income & Rent Limits'!$E$12:$L$26,13,FALSE))","v":""},{"$f":"IF(C337=\"\",\"\",HLOOKUP(C337,'MHP Family Income & Rent Limits'!$E$12:$L$26,14,FALSE))","v":""},{"$f":"IF(C337=\"\",\"\",HLOOKUP(C337,'MHP Family Income & Rent Limits'!$E$12:$L$26,15,FALSE))","v":""}]
[{"$f":"IF('2. Assisted & Restricted Units'!A338=\"\",\"\",'2. Assisted & Restricted Units'!A338)","v":""},{"$f":"IF('2. Assisted & Restricted Units'!B338=\"\",\"\",'2. Assisted & Restricted Units'!B338)","v":""},{"$f":"IF('2. Assisted & Restricted Units'!D338=\"\",\"\",'2. Assisted & Restricted Units'!D338)","v":""},{"$f":"IF('2. Assisted & Restricted Units'!E338=\"\",\"\",'2. Assisted & Restricted Units'!E338)","v":""},{"$f":"IF('2. Assisted & Restricted Units'!H338=\"\",\"\",'2. Assisted & Restricted Units'!H338)","v":""},{"$f":"_xlfn.IFS(E338=\"\",\"\",E338>BO338,$BP$6,E338>BN338,$BO$6,E338>BM338,$BN$6,E338>BL338,$BM$6,E338>BK338,$BL$6,E338>BJ338,$BK$6,E338>BI338,$BJ$6,E338>BH338,$BI$6,E338>BG338,$BH$6,E338>BF338,$BG$6,E338>BE338,$BF$6,E338>BD338,$BE$6,E338>BC338,$BD$6,E338>=0,$BC$6)","v":""},{"$f":"IF('2. Assisted & Restricted Units'!T338=\"\",\"\",'2. Assisted & Restricted Units'!T338)","v":""},{"$f":"IF('2. Assisted & Restricted Units'!I338=\"\",\"\",'2. Assisted & Restricted Units'!I338)","v":""},{"$f":"IF('2. Assisted & Restricted Units'!AP338=\"\",\"\",'2. Assisted & Restricted Units'!AP338)","v":0},{"$f":"IF('2. Assisted & Restricted Units'!AT338=\"\",\"\",'2. Assisted & Restricted Units'!AT338)","v":""},0,{"$f":"IF('2. Assisted & Restricted Units'!AV338=\"\",\"\",'2. Assisted & Restricted Units'!AV338)","v":""},{"$f":"IF('2. Assisted & Restricted Units'!L338=\"\",\"\",'2. Assisted & Restricted Units'!L338)","v":""},{"$f":"IF('2. Assisted & Restricted Units'!M338=\"\",\"\",'2. Assisted & Restricted Units'!M338)","v":""},{"$f":"IF('2. Assisted & Restricted Units'!O338=\"\",\"\",'2. Assisted & Restricted Units'!O338)","v":""},{"$f":"IF('2. Assisted & Restricted Units'!P338=\"\",\"\",'2. Assisted & Restricted Units'!P338)","v":""},{"$f":"IF('2. Assisted & Restricted Units'!Q338=\"\",\"\",'2. Assisted & Restricted Units'!Q338)","v":""},{"$f":"IF('2. Assisted & Restricted Units'!R338=\"\",\"\",'2. Assisted & Restricted Units'!R338)","v":""},{"$f":"IF(A338=\"\",\"\",'1. Checklist & Certification'!$K$1)","v":""},{"$f":"IF(A338=\"\",\"\",'1. Checklist & Certification'!$C$62)","v":""},{"$f":"IF(A338=\"\",\"\",'1. Checklist & Certification'!$K$62)","v":""},{"$f":"IF(A338=\"\",\"\",'1. Checklist & Certification'!$C$6)","v":""},{"$f":"IF(A338=\"\",\"\",'1. Checklist & Certification'!$G$4)","v":""},{"$f":"IF(A338=\"\",\"\",'1. Checklist & Certification'!$C$7)","v":""},{"$f":"IF(A338=\"\",\"\",'1. Checklist & Certification'!$C$8)","v":""},{"$f":"IF(A338=\"\",\"\",'1. Checklist & Certification'!$F$7)","v":""},{"$f":"IF(A338=\"\",\"\",'1. Checklist & Certification'!$F$8)","v":""},{"$f":"IF(A338=\"\",\"\",'1. Checklist & Certification'!$B$9)","v":""},{"$f":"IF(A338=\"\",\"\",'1. Checklist & Certification'!$F$9)","v":""},{"$f":"IF(A338=\"\",\"\",'1. Checklist & Certification'!$C$10)","v":""},{"$f":"IF(A338=\"\",\"\",'1. Checklist & Certification'!$C$11)","v":""},{"$f":"IF(A338=\"\",\"\",'1. Checklist & Certification'!$C$12)","v":""},{"$f":"IF(A338=\"\",\"\",'1. Checklist & Certification'!$B$14)","v":""},{"$f":"IF(A338=\"\",\"\",'1. Checklist & Certification'!$E$14)","v":""},{"$f":"IF(B338=\"\",\"\",'1. Checklist & Certification'!$G$14)","v":""},{"$f":"IF(A338=\"\",\"\",'MHP Family Income & Rent Limits'!$B$3)","v":""},{"$f":"IF(A338=\"\",\"\",'MHP Family Income & Rent Limits'!$J$3)","v":""},{"$f":"IF(A338=\"\",\"\",'MHP Family Income & Rent Limits'!$E$4)","v":""},{"$f":"IF(A338=\"\",\"\",'MHP Family Income & Rent Limits'!$C$7)","v":""},{"$f":"IF(A338=\"\",\"\",'MHP Family Income & Rent Limits'!$F$8)","v":""},{"$f":"IF(A338=\"\",\"\",'1. Checklist & Certification'!$G$4)","v":""},{"$f":"IF(A338=\"\",\"\",'1. Checklist & Certification'!$K$39)","v":""},{"$f":"IF(A338=\"\",\"\",'1. Checklist & Certification'!$K$43)","v":""},{"$f":"IF(A338=\"\",\"\",'1. Checklist & Certification'!$K$45)","v":""},{"$f":"IF(A338=\"\",\"\",'1. Checklist & Certification'!$K$49)","v":""},{"$f":"IF(A338=\"\",\"\",'1. Checklist & Certification'!$E$66)","v":""},{"$f":"IF(A338=\"\",\"\",'1. Checklist & Certification'!$E$67)","v":""},{"$f":"IF(A338=\"\",\"\",'1. Checklist & Certification'!$E$68)","v":""},{"$f":"IF(A338=\"\",\"\",'1. Checklist & Certification'!$G$66)","v":""},{"$f":"IF(A338=\"\",\"\",'1. Checklist & Certification'!$H$66)","v":""},{"$f":"IF(A338=\"\",\"\",'1. Checklist & Certification'!$I$66)","v":""},{"$f":"IF(A338=\"\",\"\",'1. Checklist & Certification'!$I$67)","v":""},{"$f":"IF(A338=\"\",\"\",'1. Checklist & Certification'!$I$68)","v":""},null,{"$f":"IF(C338=\"\",\"\",HLOOKUP(C338,'MHP Family Income & Rent Limits'!$E$12:$L$26,2,FALSE))","v":""},{"$f":"IF(C338=\"\",\"\",HLOOKUP(C338,'MHP Family Income & Rent Limits'!$E$12:$L$26,3,FALSE))","v":""},{"$f":"IF(C338=\"\",\"\",HLOOKUP(C338,'MHP Family Income & Rent Limits'!$E$12:$L$26,4,FALSE))","v":""},{"$f":"IF(C338=\"\",\"\",HLOOKUP(C338,'MHP Family Income & Rent Limits'!$E$12:$L$26,5,FALSE))","v":""},{"$f":"IF(C338=\"\",\"\",HLOOKUP(C338,'MHP Family Income & Rent Limits'!$E$12:$L$26,6,FALSE))","v":""},{"$f":"IF(C338=\"\",\"\",HLOOKUP(C338,'MHP Family Income & Rent Limits'!$E$12:$L$26,7,FALSE))","v":""},{"$f":"IF(C338=\"\",\"\",HLOOKUP(C338,'MHP Family Income & Rent Limits'!$E$12:$L$26,8,FALSE))","v":""},{"$f":"IF(C338=\"\",\"\",HLOOKUP(C338,'MHP Family Income & Rent Limits'!$E$12:$L$26,9,FALSE))","v":""},{"$f":"IF(C338=\"\",\"\",HLOOKUP(C338,'MHP Family Income & Rent Limits'!$E$12:$L$26,10,FALSE))","v":""},{"$f":"IF(C338=\"\",\"\",HLOOKUP(C338,'MHP Family Income & Rent Limits'!$E$12:$L$26,11,FALSE))","v":""},{"$f":"IF(C338=\"\",\"\",HLOOKUP(C338,'MHP Family Income & Rent Limits'!$E$12:$L$26,12,FALSE))","v":""},{"$f":"IF(C338=\"\",\"\",HLOOKUP(C338,'MHP Family Income & Rent Limits'!$E$12:$L$26,13,FALSE))","v":""},{"$f":"IF(C338=\"\",\"\",HLOOKUP(C338,'MHP Family Income & Rent Limits'!$E$12:$L$26,14,FALSE))","v":""},{"$f":"IF(C338=\"\",\"\",HLOOKUP(C338,'MHP Family Income & Rent Limits'!$E$12:$L$26,15,FALSE))","v":""}]
[{"$f":"IF('2. Assisted & Restricted Units'!A339=\"\",\"\",'2. Assisted & Restricted Units'!A339)","v":""},{"$f":"IF('2. Assisted & Restricted Units'!B339=\"\",\"\",'2. Assisted & Restricted Units'!B339)","v":""},{"$f":"IF('2. Assisted & Restricted Units'!D339=\"\",\"\",'2. Assisted & Restricted Units'!D339)","v":""},{"$f":"IF('2. Assisted & Restricted Units'!E339=\"\",\"\",'2. Assisted & Restricted Units'!E339)","v":""},{"$f":"IF('2. Assisted & Restricted Units'!H339=\"\",\"\",'2. Assisted & Restricted Units'!H339)","v":""},{"$f":"_xlfn.IFS(E339=\"\",\"\",E339>BO339,$BP$6,E339>BN339,$BO$6,E339>BM339,$BN$6,E339>BL339,$BM$6,E339>BK339,$BL$6,E339>BJ339,$BK$6,E339>BI339,$BJ$6,E339>BH339,$BI$6,E339>BG339,$BH$6,E339>BF339,$BG$6,E339>BE339,$BF$6,E339>BD339,$BE$6,E339>BC339,$BD$6,E339>=0,$BC$6)","v":""},{"$f":"IF('2. Assisted & Restricted Units'!T339=\"\",\"\",'2. Assisted & Restricted Units'!T339)","v":""},{"$f":"IF('2. Assisted & Restricted Units'!I339=\"\",\"\",'2. Assisted & Restricted Units'!I339)","v":""},{"$f":"IF('2. Assisted & Restricted Units'!AP339=\"\",\"\",'2. Assisted & Restricted Units'!AP339)","v":0},{"$f":"IF('2. Assisted & Restricted Units'!AT339=\"\",\"\",'2. Assisted & Restricted Units'!AT339)","v":""},0,{"$f":"IF('2. Assisted & Restricted Units'!AV339=\"\",\"\",'2. Assisted & Restricted Units'!AV339)","v":""},{"$f":"IF('2. Assisted & Restricted Units'!L339=\"\",\"\",'2. Assisted & Restricted Units'!L339)","v":""},{"$f":"IF('2. Assisted & Restricted Units'!M339=\"\",\"\",'2. Assisted & Restricted Units'!M339)","v":""},{"$f":"IF('2. Assisted & Restricted Units'!O339=\"\",\"\",'2. Assisted & Restricted Units'!O339)","v":""},{"$f":"IF('2. Assisted & Restricted Units'!P339=\"\",\"\",'2. Assisted & Restricted Units'!P339)","v":""},{"$f":"IF('2. Assisted & Restricted Units'!Q339=\"\",\"\",'2. Assisted & Restricted Units'!Q339)","v":""},{"$f":"IF('2. Assisted & Restricted Units'!R339=\"\",\"\",'2. Assisted & Restricted Units'!R339)","v":""},{"$f":"IF(A339=\"\",\"\",'1. Checklist & Certification'!$K$1)","v":""},{"$f":"IF(A339=\"\",\"\",'1. Checklist & Certification'!$C$62)","v":""},{"$f":"IF(A339=\"\",\"\",'1. Checklist & Certification'!$K$62)","v":""},{"$f":"IF(A339=\"\",\"\",'1. Checklist & Certification'!$C$6)","v":""},{"$f":"IF(A339=\"\",\"\",'1. Checklist & Certification'!$G$4)","v":""},{"$f":"IF(A339=\"\",\"\",'1. Checklist & Certification'!$C$7)","v":""},{"$f":"IF(A339=\"\",\"\",'1. Checklist & Certification'!$C$8)","v":""},{"$f":"IF(A339=\"\",\"\",'1. Checklist & Certification'!$F$7)","v":""},{"$f":"IF(A339=\"\",\"\",'1. Checklist & Certification'!$F$8)","v":""},{"$f":"IF(A339=\"\",\"\",'1. Checklist & Certification'!$B$9)","v":""},{"$f":"IF(A339=\"\",\"\",'1. Checklist & Certification'!$F$9)","v":""},{"$f":"IF(A339=\"\",\"\",'1. Checklist & Certification'!$C$10)","v":""},{"$f":"IF(A339=\"\",\"\",'1. Checklist & Certification'!$C$11)","v":""},{"$f":"IF(A339=\"\",\"\",'1. Checklist & Certification'!$C$12)","v":""},{"$f":"IF(A339=\"\",\"\",'1. Checklist & Certification'!$B$14)","v":""},{"$f":"IF(A339=\"\",\"\",'1. Checklist & Certification'!$E$14)","v":""},{"$f":"IF(B339=\"\",\"\",'1. Checklist & Certification'!$G$14)","v":""},{"$f":"IF(A339=\"\",\"\",'MHP Family Income & Rent Limits'!$B$3)","v":""},{"$f":"IF(A339=\"\",\"\",'MHP Family Income & Rent Limits'!$J$3)","v":""},{"$f":"IF(A339=\"\",\"\",'MHP Family Income & Rent Limits'!$E$4)","v":""},{"$f":"IF(A339=\"\",\"\",'MHP Family Income & Rent Limits'!$C$7)","v":""},{"$f":"IF(A339=\"\",\"\",'MHP Family Income & Rent Limits'!$F$8)","v":""},{"$f":"IF(A339=\"\",\"\",'1. Checklist & Certification'!$G$4)","v":""},{"$f":"IF(A339=\"\",\"\",'1. Checklist & Certification'!$K$39)","v":""},{"$f":"IF(A339=\"\",\"\",'1. Checklist & Certification'!$K$43)","v":""},{"$f":"IF(A339=\"\",\"\",'1. Checklist & Certification'!$K$45)","v":""},{"$f":"IF(A339=\"\",\"\",'1. Checklist & Certification'!$K$49)","v":""},{"$f":"IF(A339=\"\",\"\",'1. Checklist & Certification'!$E$66)","v":""},{"$f":"IF(A339=\"\",\"\",'1. Checklist & Certification'!$E$67)","v":""},{"$f":"IF(A339=\"\",\"\",'1. Checklist & Certification'!$E$68)","v":""},{"$f":"IF(A339=\"\",\"\",'1. Checklist & Certification'!$G$66)","v":""},{"$f":"IF(A339=\"\",\"\",'1. Checklist & Certification'!$H$66)","v":""},{"$f":"IF(A339=\"\",\"\",'1. Checklist & Certification'!$I$66)","v":""},{"$f":"IF(A339=\"\",\"\",'1. Checklist & Certification'!$I$67)","v":""},{"$f":"IF(A339=\"\",\"\",'1. Checklist & Certification'!$I$68)","v":""},null,{"$f":"IF(C339=\"\",\"\",HLOOKUP(C339,'MHP Family Income & Rent Limits'!$E$12:$L$26,2,FALSE))","v":""},{"$f":"IF(C339=\"\",\"\",HLOOKUP(C339,'MHP Family Income & Rent Limits'!$E$12:$L$26,3,FALSE))","v":""},{"$f":"IF(C339=\"\",\"\",HLOOKUP(C339,'MHP Family Income & Rent Limits'!$E$12:$L$26,4,FALSE))","v":""},{"$f":"IF(C339=\"\",\"\",HLOOKUP(C339,'MHP Family Income & Rent Limits'!$E$12:$L$26,5,FALSE))","v":""},{"$f":"IF(C339=\"\",\"\",HLOOKUP(C339,'MHP Family Income & Rent Limits'!$E$12:$L$26,6,FALSE))","v":""},{"$f":"IF(C339=\"\",\"\",HLOOKUP(C339,'MHP Family Income & Rent Limits'!$E$12:$L$26,7,FALSE))","v":""},{"$f":"IF(C339=\"\",\"\",HLOOKUP(C339,'MHP Family Income & Rent Limits'!$E$12:$L$26,8,FALSE))","v":""},{"$f":"IF(C339=\"\",\"\",HLOOKUP(C339,'MHP Family Income & Rent Limits'!$E$12:$L$26,9,FALSE))","v":""},{"$f":"IF(C339=\"\",\"\",HLOOKUP(C339,'MHP Family Income & Rent Limits'!$E$12:$L$26,10,FALSE))","v":""},{"$f":"IF(C339=\"\",\"\",HLOOKUP(C339,'MHP Family Income & Rent Limits'!$E$12:$L$26,11,FALSE))","v":""},{"$f":"IF(C339=\"\",\"\",HLOOKUP(C339,'MHP Family Income & Rent Limits'!$E$12:$L$26,12,FALSE))","v":""},{"$f":"IF(C339=\"\",\"\",HLOOKUP(C339,'MHP Family Income & Rent Limits'!$E$12:$L$26,13,FALSE))","v":""},{"$f":"IF(C339=\"\",\"\",HLOOKUP(C339,'MHP Family Income & Rent Limits'!$E$12:$L$26,14,FALSE))","v":""},{"$f":"IF(C339=\"\",\"\",HLOOKUP(C339,'MHP Family Income & Rent Limits'!$E$12:$L$26,15,FALSE))","v":""}]
[{"$f":"IF('2. Assisted & Restricted Units'!A340=\"\",\"\",'2. Assisted & Restricted Units'!A340)","v":""},{"$f":"IF('2. Assisted & Restricted Units'!B340=\"\",\"\",'2. Assisted & Restricted Units'!B340)","v":""},{"$f":"IF('2. Assisted & Restricted Units'!D340=\"\",\"\",'2. Assisted & Restricted Units'!D340)","v":""},{"$f":"IF('2. Assisted & Restricted Units'!E340=\"\",\"\",'2. Assisted & Restricted Units'!E340)","v":""},{"$f":"IF('2. Assisted & Restricted Units'!H340=\"\",\"\",'2. Assisted & Restricted Units'!H340)","v":""},{"$f":"_xlfn.IFS(E340=\"\",\"\",E340>BO340,$BP$6,E340>BN340,$BO$6,E340>BM340,$BN$6,E340>BL340,$BM$6,E340>BK340,$BL$6,E340>BJ340,$BK$6,E340>BI340,$BJ$6,E340>BH340,$BI$6,E340>BG340,$BH$6,E340>BF340,$BG$6,E340>BE340,$BF$6,E340>BD340,$BE$6,E340>BC340,$BD$6,E340>=0,$BC$6)","v":""},{"$f":"IF('2. Assisted & Restricted Units'!T340=\"\",\"\",'2. Assisted & Restricted Units'!T340)","v":""},{"$f":"IF('2. Assisted & Restricted Units'!I340=\"\",\"\",'2. Assisted & Restricted Units'!I340)","v":""},{"$f":"IF('2. Assisted & Restricted Units'!AP340=\"\",\"\",'2. Assisted & Restricted Units'!AP340)","v":0},{"$f":"IF('2. Assisted & Restricted Units'!AT340=\"\",\"\",'2. Assisted & Restricted Units'!AT340)","v":""},0,{"$f":"IF('2. Assisted & Restricted Units'!AV340=\"\",\"\",'2. Assisted & Restricted Units'!AV340)","v":""},{"$f":"IF('2. Assisted & Restricted Units'!L340=\"\",\"\",'2. Assisted & Restricted Units'!L340)","v":""},{"$f":"IF('2. Assisted & Restricted Units'!M340=\"\",\"\",'2. Assisted & Restricted Units'!M340)","v":""},{"$f":"IF('2. Assisted & Restricted Units'!O340=\"\",\"\",'2. Assisted & Restricted Units'!O340)","v":""},{"$f":"IF('2. Assisted & Restricted Units'!P340=\"\",\"\",'2. Assisted & Restricted Units'!P340)","v":""},{"$f":"IF('2. Assisted & Restricted Units'!Q340=\"\",\"\",'2. Assisted & Restricted Units'!Q340)","v":""},{"$f":"IF('2. Assisted & Restricted Units'!R340=\"\",\"\",'2. Assisted & Restricted Units'!R340)","v":""},{"$f":"IF(A340=\"\",\"\",'1. Checklist & Certification'!$K$1)","v":""},{"$f":"IF(A340=\"\",\"\",'1. Checklist & Certification'!$C$62)","v":""},{"$f":"IF(A340=\"\",\"\",'1. Checklist & Certification'!$K$62)","v":""},{"$f":"IF(A340=\"\",\"\",'1. Checklist & Certification'!$C$6)","v":""},{"$f":"IF(A340=\"\",\"\",'1. Checklist & Certification'!$G$4)","v":""},{"$f":"IF(A340=\"\",\"\",'1. Checklist & Certification'!$C$7)","v":""},{"$f":"IF(A340=\"\",\"\",'1. Checklist & Certification'!$C$8)","v":""},{"$f":"IF(A340=\"\",\"\",'1. Checklist & Certification'!$F$7)","v":""},{"$f":"IF(A340=\"\",\"\",'1. Checklist & Certification'!$F$8)","v":""},{"$f":"IF(A340=\"\",\"\",'1. Checklist & Certification'!$B$9)","v":""},{"$f":"IF(A340=\"\",\"\",'1. Checklist & Certification'!$F$9)","v":""},{"$f":"IF(A340=\"\",\"\",'1. Checklist & Certification'!$C$10)","v":""},{"$f":"IF(A340=\"\",\"\",'1. Checklist & Certification'!$C$11)","v":""},{"$f":"IF(A340=\"\",\"\",'1. Checklist & Certification'!$C$12)","v":""},{"$f":"IF(A340=\"\",\"\",'1. Checklist & Certification'!$B$14)","v":""},{"$f":"IF(A340=\"\",\"\",'1. Checklist & Certification'!$E$14)","v":""},{"$f":"IF(B340=\"\",\"\",'1. Checklist & Certification'!$G$14)","v":""},{"$f":"IF(A340=\"\",\"\",'MHP Family Income & Rent Limits'!$B$3)","v":""},{"$f":"IF(A340=\"\",\"\",'MHP Family Income & Rent Limits'!$J$3)","v":""},{"$f":"IF(A340=\"\",\"\",'MHP Family Income & Rent Limits'!$E$4)","v":""},{"$f":"IF(A340=\"\",\"\",'MHP Family Income & Rent Limits'!$C$7)","v":""},{"$f":"IF(A340=\"\",\"\",'MHP Family Income & Rent Limits'!$F$8)","v":""},{"$f":"IF(A340=\"\",\"\",'1. Checklist & Certification'!$G$4)","v":""},{"$f":"IF(A340=\"\",\"\",'1. Checklist & Certification'!$K$39)","v":""},{"$f":"IF(A340=\"\",\"\",'1. Checklist & Certification'!$K$43)","v":""},{"$f":"IF(A340=\"\",\"\",'1. Checklist & Certification'!$K$45)","v":""},{"$f":"IF(A340=\"\",\"\",'1. Checklist & Certification'!$K$49)","v":""},{"$f":"IF(A340=\"\",\"\",'1. Checklist & Certification'!$E$66)","v":""},{"$f":"IF(A340=\"\",\"\",'1. Checklist & Certification'!$E$67)","v":""},{"$f":"IF(A340=\"\",\"\",'1. Checklist & Certification'!$E$68)","v":""},{"$f":"IF(A340=\"\",\"\",'1. Checklist & Certification'!$G$66)","v":""},{"$f":"IF(A340=\"\",\"\",'1. Checklist & Certification'!$H$66)","v":""},{"$f":"IF(A340=\"\",\"\",'1. Checklist & Certification'!$I$66)","v":""},{"$f":"IF(A340=\"\",\"\",'1. Checklist & Certification'!$I$67)","v":""},{"$f":"IF(A340=\"\",\"\",'1. Checklist & Certification'!$I$68)","v":""},null,{"$f":"IF(C340=\"\",\"\",HLOOKUP(C340,'MHP Family Income & Rent Limits'!$E$12:$L$26,2,FALSE))","v":""},{"$f":"IF(C340=\"\",\"\",HLOOKUP(C340,'MHP Family Income & Rent Limits'!$E$12:$L$26,3,FALSE))","v":""},{"$f":"IF(C340=\"\",\"\",HLOOKUP(C340,'MHP Family Income & Rent Limits'!$E$12:$L$26,4,FALSE))","v":""},{"$f":"IF(C340=\"\",\"\",HLOOKUP(C340,'MHP Family Income & Rent Limits'!$E$12:$L$26,5,FALSE))","v":""},{"$f":"IF(C340=\"\",\"\",HLOOKUP(C340,'MHP Family Income & Rent Limits'!$E$12:$L$26,6,FALSE))","v":""},{"$f":"IF(C340=\"\",\"\",HLOOKUP(C340,'MHP Family Income & Rent Limits'!$E$12:$L$26,7,FALSE))","v":""},{"$f":"IF(C340=\"\",\"\",HLOOKUP(C340,'MHP Family Income & Rent Limits'!$E$12:$L$26,8,FALSE))","v":""},{"$f":"IF(C340=\"\",\"\",HLOOKUP(C340,'MHP Family Income & Rent Limits'!$E$12:$L$26,9,FALSE))","v":""},{"$f":"IF(C340=\"\",\"\",HLOOKUP(C340,'MHP Family Income & Rent Limits'!$E$12:$L$26,10,FALSE))","v":""},{"$f":"IF(C340=\"\",\"\",HLOOKUP(C340,'MHP Family Income & Rent Limits'!$E$12:$L$26,11,FALSE))","v":""},{"$f":"IF(C340=\"\",\"\",HLOOKUP(C340,'MHP Family Income & Rent Limits'!$E$12:$L$26,12,FALSE))","v":""},{"$f":"IF(C340=\"\",\"\",HLOOKUP(C340,'MHP Family Income & Rent Limits'!$E$12:$L$26,13,FALSE))","v":""},{"$f":"IF(C340=\"\",\"\",HLOOKUP(C340,'MHP Family Income & Rent Limits'!$E$12:$L$26,14,FALSE))","v":""},{"$f":"IF(C340=\"\",\"\",HLOOKUP(C340,'MHP Family Income & Rent Limits'!$E$12:$L$26,15,FALSE))","v":""}]
[{"$f":"IF('2. Assisted & Restricted Units'!A341=\"\",\"\",'2. Assisted & Restricted Units'!A341)","v":""},{"$f":"IF('2. Assisted & Restricted Units'!B341=\"\",\"\",'2. Assisted & Restricted Units'!B341)","v":""},{"$f":"IF('2. Assisted & Restricted Units'!D341=\"\",\"\",'2. Assisted & Restricted Units'!D341)","v":""},{"$f":"IF('2. Assisted & Restricted Units'!E341=\"\",\"\",'2. Assisted & Restricted Units'!E341)","v":""},{"$f":"IF('2. Assisted & Restricted Units'!H341=\"\",\"\",'2. Assisted & Restricted Units'!H341)","v":""},{"$f":"_xlfn.IFS(E341=\"\",\"\",E341>BO341,$BP$6,E341>BN341,$BO$6,E341>BM341,$BN$6,E341>BL341,$BM$6,E341>BK341,$BL$6,E341>BJ341,$BK$6,E341>BI341,$BJ$6,E341>BH341,$BI$6,E341>BG341,$BH$6,E341>BF341,$BG$6,E341>BE341,$BF$6,E341>BD341,$BE$6,E341>BC341,$BD$6,E341>=0,$BC$6)","v":""},{"$f":"IF('2. Assisted & Restricted Units'!T341=\"\",\"\",'2. Assisted & Restricted Units'!T341)","v":""},{"$f":"IF('2. Assisted & Restricted Units'!I341=\"\",\"\",'2. Assisted & Restricted Units'!I341)","v":""},{"$f":"IF('2. Assisted & Restricted Units'!AP341=\"\",\"\",'2. Assisted & Restricted Units'!AP341)","v":0},{"$f":"IF('2. Assisted & Restricted Units'!AT341=\"\",\"\",'2. Assisted & Restricted Units'!AT341)","v":""},0,{"$f":"IF('2. Assisted & Restricted Units'!AV341=\"\",\"\",'2. Assisted & Restricted Units'!AV341)","v":""},{"$f":"IF('2. Assisted & Restricted Units'!L341=\"\",\"\",'2. Assisted & Restricted Units'!L341)","v":""},{"$f":"IF('2. Assisted & Restricted Units'!M341=\"\",\"\",'2. Assisted & Restricted Units'!M341)","v":""},{"$f":"IF('2. Assisted & Restricted Units'!O341=\"\",\"\",'2. Assisted & Restricted Units'!O341)","v":""},{"$f":"IF('2. Assisted & Restricted Units'!P341=\"\",\"\",'2. Assisted & Restricted Units'!P341)","v":""},{"$f":"IF('2. Assisted & Restricted Units'!Q341=\"\",\"\",'2. Assisted & Restricted Units'!Q341)","v":""},{"$f":"IF('2. Assisted & Restricted Units'!R341=\"\",\"\",'2. Assisted & Restricted Units'!R341)","v":""},{"$f":"IF(A341=\"\",\"\",'1. Checklist & Certification'!$K$1)","v":""},{"$f":"IF(A341=\"\",\"\",'1. Checklist & Certification'!$C$62)","v":""},{"$f":"IF(A341=\"\",\"\",'1. Checklist & Certification'!$K$62)","v":""},{"$f":"IF(A341=\"\",\"\",'1. Checklist & Certification'!$C$6)","v":""},{"$f":"IF(A341=\"\",\"\",'1. Checklist & Certification'!$G$4)","v":""},{"$f":"IF(A341=\"\",\"\",'1. Checklist & Certification'!$C$7)","v":""},{"$f":"IF(A341=\"\",\"\",'1. Checklist & Certification'!$C$8)","v":""},{"$f":"IF(A341=\"\",\"\",'1. Checklist & Certification'!$F$7)","v":""},{"$f":"IF(A341=\"\",\"\",'1. Checklist & Certification'!$F$8)","v":""},{"$f":"IF(A341=\"\",\"\",'1. Checklist & Certification'!$B$9)","v":""},{"$f":"IF(A341=\"\",\"\",'1. Checklist & Certification'!$F$9)","v":""},{"$f":"IF(A341=\"\",\"\",'1. Checklist & Certification'!$C$10)","v":""},{"$f":"IF(A341=\"\",\"\",'1. Checklist & Certification'!$C$11)","v":""},{"$f":"IF(A341=\"\",\"\",'1. Checklist & Certification'!$C$12)","v":""},{"$f":"IF(A341=\"\",\"\",'1. Checklist & Certification'!$B$14)","v":""},{"$f":"IF(A341=\"\",\"\",'1. Checklist & Certification'!$E$14)","v":""},{"$f":"IF(B341=\"\",\"\",'1. Checklist & Certification'!$G$14)","v":""},{"$f":"IF(A341=\"\",\"\",'MHP Family Income & Rent Limits'!$B$3)","v":""},{"$f":"IF(A341=\"\",\"\",'MHP Family Income & Rent Limits'!$J$3)","v":""},{"$f":"IF(A341=\"\",\"\",'MHP Family Income & Rent Limits'!$E$4)","v":""},{"$f":"IF(A341=\"\",\"\",'MHP Family Income & Rent Limits'!$C$7)","v":""},{"$f":"IF(A341=\"\",\"\",'MHP Family Income & Rent Limits'!$F$8)","v":""},{"$f":"IF(A341=\"\",\"\",'1. Checklist & Certification'!$G$4)","v":""},{"$f":"IF(A341=\"\",\"\",'1. Checklist & Certification'!$K$39)","v":""},{"$f":"IF(A341=\"\",\"\",'1. Checklist & Certification'!$K$43)","v":""},{"$f":"IF(A341=\"\",\"\",'1. Checklist & Certification'!$K$45)","v":""},{"$f":"IF(A341=\"\",\"\",'1. Checklist & Certification'!$K$49)","v":""},{"$f":"IF(A341=\"\",\"\",'1. Checklist & Certification'!$E$66)","v":""},{"$f":"IF(A341=\"\",\"\",'1. Checklist & Certification'!$E$67)","v":""},{"$f":"IF(A341=\"\",\"\",'1. Checklist & Certification'!$E$68)","v":""},{"$f":"IF(A341=\"\",\"\",'1. Checklist & Certification'!$G$66)","v":""},{"$f":"IF(A341=\"\",\"\",'1. Checklist & Certification'!$H$66)","v":""},{"$f":"IF(A341=\"\",\"\",'1. Checklist & Certification'!$I$66)","v":""},{"$f":"IF(A341=\"\",\"\",'1. Checklist & Certification'!$I$67)","v":""},{"$f":"IF(A341=\"\",\"\",'1. Checklist & Certification'!$I$68)","v":""},null,{"$f":"IF(C341=\"\",\"\",HLOOKUP(C341,'MHP Family Income & Rent Limits'!$E$12:$L$26,2,FALSE))","v":""},{"$f":"IF(C341=\"\",\"\",HLOOKUP(C341,'MHP Family Income & Rent Limits'!$E$12:$L$26,3,FALSE))","v":""},{"$f":"IF(C341=\"\",\"\",HLOOKUP(C341,'MHP Family Income & Rent Limits'!$E$12:$L$26,4,FALSE))","v":""},{"$f":"IF(C341=\"\",\"\",HLOOKUP(C341,'MHP Family Income & Rent Limits'!$E$12:$L$26,5,FALSE))","v":""},{"$f":"IF(C341=\"\",\"\",HLOOKUP(C341,'MHP Family Income & Rent Limits'!$E$12:$L$26,6,FALSE))","v":""},{"$f":"IF(C341=\"\",\"\",HLOOKUP(C341,'MHP Family Income & Rent Limits'!$E$12:$L$26,7,FALSE))","v":""},{"$f":"IF(C341=\"\",\"\",HLOOKUP(C341,'MHP Family Income & Rent Limits'!$E$12:$L$26,8,FALSE))","v":""},{"$f":"IF(C341=\"\",\"\",HLOOKUP(C341,'MHP Family Income & Rent Limits'!$E$12:$L$26,9,FALSE))","v":""},{"$f":"IF(C341=\"\",\"\",HLOOKUP(C341,'MHP Family Income & Rent Limits'!$E$12:$L$26,10,FALSE))","v":""},{"$f":"IF(C341=\"\",\"\",HLOOKUP(C341,'MHP Family Income & Rent Limits'!$E$12:$L$26,11,FALSE))","v":""},{"$f":"IF(C341=\"\",\"\",HLOOKUP(C341,'MHP Family Income & Rent Limits'!$E$12:$L$26,12,FALSE))","v":""},{"$f":"IF(C341=\"\",\"\",HLOOKUP(C341,'MHP Family Income & Rent Limits'!$E$12:$L$26,13,FALSE))","v":""},{"$f":"IF(C341=\"\",\"\",HLOOKUP(C341,'MHP Family Income & Rent Limits'!$E$12:$L$26,14,FALSE))","v":""},{"$f":"IF(C341=\"\",\"\",HLOOKUP(C341,'MHP Family Income & Rent Limits'!$E$12:$L$26,15,FALSE))","v":""}]
[{"$f":"IF('2. Assisted & Restricted Units'!A342=\"\",\"\",'2. Assisted & Restricted Units'!A342)","v":""},{"$f":"IF('2. Assisted & Restricted Units'!B342=\"\",\"\",'2. Assisted & Restricted Units'!B342)","v":""},{"$f":"IF('2. Assisted & Restricted Units'!D342=\"\",\"\",'2. Assisted & Restricted Units'!D342)","v":""},{"$f":"IF('2. Assisted & Restricted Units'!E342=\"\",\"\",'2. Assisted & Restricted Units'!E342)","v":""},{"$f":"IF('2. Assisted & Restricted Units'!H342=\"\",\"\",'2. Assisted & Restricted Units'!H342)","v":""},{"$f":"_xlfn.IFS(E342=\"\",\"\",E342>BO342,$BP$6,E342>BN342,$BO$6,E342>BM342,$BN$6,E342>BL342,$BM$6,E342>BK342,$BL$6,E342>BJ342,$BK$6,E342>BI342,$BJ$6,E342>BH342,$BI$6,E342>BG342,$BH$6,E342>BF342,$BG$6,E342>BE342,$BF$6,E342>BD342,$BE$6,E342>BC342,$BD$6,E342>=0,$BC$6)","v":""},{"$f":"IF('2. Assisted & Restricted Units'!T342=\"\",\"\",'2. Assisted & Restricted Units'!T342)","v":""},{"$f":"IF('2. Assisted & Restricted Units'!I342=\"\",\"\",'2. Assisted & Restricted Units'!I342)","v":""},{"$f":"IF('2. Assisted & Restricted Units'!AP342=\"\",\"\",'2. Assisted & Restricted Units'!AP342)","v":0},{"$f":"IF('2. Assisted & Restricted Units'!AT342=\"\",\"\",'2. Assisted & Restricted Units'!AT342)","v":""},0,{"$f":"IF('2. Assisted & Restricted Units'!AV342=\"\",\"\",'2. Assisted & Restricted Units'!AV342)","v":""},{"$f":"IF('2. Assisted & Restricted Units'!L342=\"\",\"\",'2. Assisted & Restricted Units'!L342)","v":""},{"$f":"IF('2. Assisted & Restricted Units'!M342=\"\",\"\",'2. Assisted & Restricted Units'!M342)","v":""},{"$f":"IF('2. Assisted & Restricted Units'!O342=\"\",\"\",'2. Assisted & Restricted Units'!O342)","v":""},{"$f":"IF('2. Assisted & Restricted Units'!P342=\"\",\"\",'2. Assisted & Restricted Units'!P342)","v":""},{"$f":"IF('2. Assisted & Restricted Units'!Q342=\"\",\"\",'2. Assisted & Restricted Units'!Q342)","v":""},{"$f":"IF('2. Assisted & Restricted Units'!R342=\"\",\"\",'2. Assisted & Restricted Units'!R342)","v":""},{"$f":"IF(A342=\"\",\"\",'1. Checklist & Certification'!$K$1)","v":""},{"$f":"IF(A342=\"\",\"\",'1. Checklist & Certification'!$C$62)","v":""},{"$f":"IF(A342=\"\",\"\",'1. Checklist & Certification'!$K$62)","v":""},{"$f":"IF(A342=\"\",\"\",'1. Checklist & Certification'!$C$6)","v":""},{"$f":"IF(A342=\"\",\"\",'1. Checklist & Certification'!$G$4)","v":""},{"$f":"IF(A342=\"\",\"\",'1. Checklist & Certification'!$C$7)","v":""},{"$f":"IF(A342=\"\",\"\",'1. Checklist & Certification'!$C$8)","v":""},{"$f":"IF(A342=\"\",\"\",'1. Checklist & Certification'!$F$7)","v":""},{"$f":"IF(A342=\"\",\"\",'1. Checklist & Certification'!$F$8)","v":""},{"$f":"IF(A342=\"\",\"\",'1. Checklist & Certification'!$B$9)","v":""},{"$f":"IF(A342=\"\",\"\",'1. Checklist & Certification'!$F$9)","v":""},{"$f":"IF(A342=\"\",\"\",'1. Checklist & Certification'!$C$10)","v":""},{"$f":"IF(A342=\"\",\"\",'1. Checklist & Certification'!$C$11)","v":""},{"$f":"IF(A342=\"\",\"\",'1. Checklist & Certification'!$C$12)","v":""},{"$f":"IF(A342=\"\",\"\",'1. Checklist & Certification'!$B$14)","v":""},{"$f":"IF(A342=\"\",\"\",'1. Checklist & Certification'!$E$14)","v":""},{"$f":"IF(B342=\"\",\"\",'1. Checklist & Certification'!$G$14)","v":""},{"$f":"IF(A342=\"\",\"\",'MHP Family Income & Rent Limits'!$B$3)","v":""},{"$f":"IF(A342=\"\",\"\",'MHP Family Income & Rent Limits'!$J$3)","v":""},{"$f":"IF(A342=\"\",\"\",'MHP Family Income & Rent Limits'!$E$4)","v":""},{"$f":"IF(A342=\"\",\"\",'MHP Family Income & Rent Limits'!$C$7)","v":""},{"$f":"IF(A342=\"\",\"\",'MHP Family Income & Rent Limits'!$F$8)","v":""},{"$f":"IF(A342=\"\",\"\",'1. Checklist & Certification'!$G$4)","v":""},{"$f":"IF(A342=\"\",\"\",'1. Checklist & Certification'!$K$39)","v":""},{"$f":"IF(A342=\"\",\"\",'1. Checklist & Certification'!$K$43)","v":""},{"$f":"IF(A342=\"\",\"\",'1. Checklist & Certification'!$K$45)","v":""},{"$f":"IF(A342=\"\",\"\",'1. Checklist & Certification'!$K$49)","v":""},{"$f":"IF(A342=\"\",\"\",'1. Checklist & Certification'!$E$66)","v":""},{"$f":"IF(A342=\"\",\"\",'1. Checklist & Certification'!$E$67)","v":""},{"$f":"IF(A342=\"\",\"\",'1. Checklist & Certification'!$E$68)","v":""},{"$f":"IF(A342=\"\",\"\",'1. Checklist & Certification'!$G$66)","v":""},{"$f":"IF(A342=\"\",\"\",'1. Checklist & Certification'!$H$66)","v":""},{"$f":"IF(A342=\"\",\"\",'1. Checklist & Certification'!$I$66)","v":""},{"$f":"IF(A342=\"\",\"\",'1. Checklist & Certification'!$I$67)","v":""},{"$f":"IF(A342=\"\",\"\",'1. Checklist & Certification'!$I$68)","v":""},null,{"$f":"IF(C342=\"\",\"\",HLOOKUP(C342,'MHP Family Income & Rent Limits'!$E$12:$L$26,2,FALSE))","v":""},{"$f":"IF(C342=\"\",\"\",HLOOKUP(C342,'MHP Family Income & Rent Limits'!$E$12:$L$26,3,FALSE))","v":""},{"$f":"IF(C342=\"\",\"\",HLOOKUP(C342,'MHP Family Income & Rent Limits'!$E$12:$L$26,4,FALSE))","v":""},{"$f":"IF(C342=\"\",\"\",HLOOKUP(C342,'MHP Family Income & Rent Limits'!$E$12:$L$26,5,FALSE))","v":""},{"$f":"IF(C342=\"\",\"\",HLOOKUP(C342,'MHP Family Income & Rent Limits'!$E$12:$L$26,6,FALSE))","v":""},{"$f":"IF(C342=\"\",\"\",HLOOKUP(C342,'MHP Family Income & Rent Limits'!$E$12:$L$26,7,FALSE))","v":""},{"$f":"IF(C342=\"\",\"\",HLOOKUP(C342,'MHP Family Income & Rent Limits'!$E$12:$L$26,8,FALSE))","v":""},{"$f":"IF(C342=\"\",\"\",HLOOKUP(C342,'MHP Family Income & Rent Limits'!$E$12:$L$26,9,FALSE))","v":""},{"$f":"IF(C342=\"\",\"\",HLOOKUP(C342,'MHP Family Income & Rent Limits'!$E$12:$L$26,10,FALSE))","v":""},{"$f":"IF(C342=\"\",\"\",HLOOKUP(C342,'MHP Family Income & Rent Limits'!$E$12:$L$26,11,FALSE))","v":""},{"$f":"IF(C342=\"\",\"\",HLOOKUP(C342,'MHP Family Income & Rent Limits'!$E$12:$L$26,12,FALSE))","v":""},{"$f":"IF(C342=\"\",\"\",HLOOKUP(C342,'MHP Family Income & Rent Limits'!$E$12:$L$26,13,FALSE))","v":""},{"$f":"IF(C342=\"\",\"\",HLOOKUP(C342,'MHP Family Income & Rent Limits'!$E$12:$L$26,14,FALSE))","v":""},{"$f":"IF(C342=\"\",\"\",HLOOKUP(C342,'MHP Family Income & Rent Limits'!$E$12:$L$26,15,FALSE))","v":""}]
[{"$f":"IF('2. Assisted & Restricted Units'!A343=\"\",\"\",'2. Assisted & Restricted Units'!A343)","v":""},{"$f":"IF('2. Assisted & Restricted Units'!B343=\"\",\"\",'2. Assisted & Restricted Units'!B343)","v":""},{"$f":"IF('2. Assisted & Restricted Units'!D343=\"\",\"\",'2. Assisted & Restricted Units'!D343)","v":""},{"$f":"IF('2. Assisted & Restricted Units'!E343=\"\",\"\",'2. Assisted & Restricted Units'!E343)","v":""},{"$f":"IF('2. Assisted & Restricted Units'!H343=\"\",\"\",'2. Assisted & Restricted Units'!H343)","v":""},{"$f":"_xlfn.IFS(E343=\"\",\"\",E343>BO343,$BP$6,E343>BN343,$BO$6,E343>BM343,$BN$6,E343>BL343,$BM$6,E343>BK343,$BL$6,E343>BJ343,$BK$6,E343>BI343,$BJ$6,E343>BH343,$BI$6,E343>BG343,$BH$6,E343>BF343,$BG$6,E343>BE343,$BF$6,E343>BD343,$BE$6,E343>BC343,$BD$6,E343>=0,$BC$6)","v":""},{"$f":"IF('2. Assisted & Restricted Units'!T343=\"\",\"\",'2. Assisted & Restricted Units'!T343)","v":""},{"$f":"IF('2. Assisted & Restricted Units'!I343=\"\",\"\",'2. Assisted & Restricted Units'!I343)","v":""},{"$f":"IF('2. Assisted & Restricted Units'!AP343=\"\",\"\",'2. Assisted & Restricted Units'!AP343)","v":0},{"$f":"IF('2. Assisted & Restricted Units'!AT343=\"\",\"\",'2. Assisted & Restricted Units'!AT343)","v":""},0,{"$f":"IF('2. Assisted & Restricted Units'!AV343=\"\",\"\",'2. Assisted & Restricted Units'!AV343)","v":""},{"$f":"IF('2. Assisted & Restricted Units'!L343=\"\",\"\",'2. Assisted & Restricted Units'!L343)","v":""},{"$f":"IF('2. Assisted & Restricted Units'!M343=\"\",\"\",'2. Assisted & Restricted Units'!M343)","v":""},{"$f":"IF('2. Assisted & Restricted Units'!O343=\"\",\"\",'2. Assisted & Restricted Units'!O343)","v":""},{"$f":"IF('2. Assisted & Restricted Units'!P343=\"\",\"\",'2. Assisted & Restricted Units'!P343)","v":""},{"$f":"IF('2. Assisted & Restricted Units'!Q343=\"\",\"\",'2. Assisted & Restricted Units'!Q343)","v":""},{"$f":"IF('2. Assisted & Restricted Units'!R343=\"\",\"\",'2. Assisted & Restricted Units'!R343)","v":""},{"$f":"IF(A343=\"\",\"\",'1. Checklist & Certification'!$K$1)","v":""},{"$f":"IF(A343=\"\",\"\",'1. Checklist & Certification'!$C$62)","v":""},{"$f":"IF(A343=\"\",\"\",'1. Checklist & Certification'!$K$62)","v":""},{"$f":"IF(A343=\"\",\"\",'1. Checklist & Certification'!$C$6)","v":""},{"$f":"IF(A343=\"\",\"\",'1. Checklist & Certification'!$G$4)","v":""},{"$f":"IF(A343=\"\",\"\",'1. Checklist & Certification'!$C$7)","v":""},{"$f":"IF(A343=\"\",\"\",'1. Checklist & Certification'!$C$8)","v":""},{"$f":"IF(A343=\"\",\"\",'1. Checklist & Certification'!$F$7)","v":""},{"$f":"IF(A343=\"\",\"\",'1. Checklist & Certification'!$F$8)","v":""},{"$f":"IF(A343=\"\",\"\",'1. Checklist & Certification'!$B$9)","v":""},{"$f":"IF(A343=\"\",\"\",'1. Checklist & Certification'!$F$9)","v":""},{"$f":"IF(A343=\"\",\"\",'1. Checklist & Certification'!$C$10)","v":""},{"$f":"IF(A343=\"\",\"\",'1. Checklist & Certification'!$C$11)","v":""},{"$f":"IF(A343=\"\",\"\",'1. Checklist & Certification'!$C$12)","v":""},{"$f":"IF(A343=\"\",\"\",'1. Checklist & Certification'!$B$14)","v":""},{"$f":"IF(A343=\"\",\"\",'1. Checklist & Certification'!$E$14)","v":""},{"$f":"IF(B343=\"\",\"\",'1. Checklist & Certification'!$G$14)","v":""},{"$f":"IF(A343=\"\",\"\",'MHP Family Income & Rent Limits'!$B$3)","v":""},{"$f":"IF(A343=\"\",\"\",'MHP Family Income & Rent Limits'!$J$3)","v":""},{"$f":"IF(A343=\"\",\"\",'MHP Family Income & Rent Limits'!$E$4)","v":""},{"$f":"IF(A343=\"\",\"\",'MHP Family Income & Rent Limits'!$C$7)","v":""},{"$f":"IF(A343=\"\",\"\",'MHP Family Income & Rent Limits'!$F$8)","v":""},{"$f":"IF(A343=\"\",\"\",'1. Checklist & Certification'!$G$4)","v":""},{"$f":"IF(A343=\"\",\"\",'1. Checklist & Certification'!$K$39)","v":""},{"$f":"IF(A343=\"\",\"\",'1. Checklist & Certification'!$K$43)","v":""},{"$f":"IF(A343=\"\",\"\",'1. Checklist & Certification'!$K$45)","v":""},{"$f":"IF(A343=\"\",\"\",'1. Checklist & Certification'!$K$49)","v":""},{"$f":"IF(A343=\"\",\"\",'1. Checklist & Certification'!$E$66)","v":""},{"$f":"IF(A343=\"\",\"\",'1. Checklist & Certification'!$E$67)","v":""},{"$f":"IF(A343=\"\",\"\",'1. Checklist & Certification'!$E$68)","v":""},{"$f":"IF(A343=\"\",\"\",'1. Checklist & Certification'!$G$66)","v":""},{"$f":"IF(A343=\"\",\"\",'1. Checklist & Certification'!$H$66)","v":""},{"$f":"IF(A343=\"\",\"\",'1. Checklist & Certification'!$I$66)","v":""},{"$f":"IF(A343=\"\",\"\",'1. Checklist & Certification'!$I$67)","v":""},{"$f":"IF(A343=\"\",\"\",'1. Checklist & Certification'!$I$68)","v":""},null,{"$f":"IF(C343=\"\",\"\",HLOOKUP(C343,'MHP Family Income & Rent Limits'!$E$12:$L$26,2,FALSE))","v":""},{"$f":"IF(C343=\"\",\"\",HLOOKUP(C343,'MHP Family Income & Rent Limits'!$E$12:$L$26,3,FALSE))","v":""},{"$f":"IF(C343=\"\",\"\",HLOOKUP(C343,'MHP Family Income & Rent Limits'!$E$12:$L$26,4,FALSE))","v":""},{"$f":"IF(C343=\"\",\"\",HLOOKUP(C343,'MHP Family Income & Rent Limits'!$E$12:$L$26,5,FALSE))","v":""},{"$f":"IF(C343=\"\",\"\",HLOOKUP(C343,'MHP Family Income & Rent Limits'!$E$12:$L$26,6,FALSE))","v":""},{"$f":"IF(C343=\"\",\"\",HLOOKUP(C343,'MHP Family Income & Rent Limits'!$E$12:$L$26,7,FALSE))","v":""},{"$f":"IF(C343=\"\",\"\",HLOOKUP(C343,'MHP Family Income & Rent Limits'!$E$12:$L$26,8,FALSE))","v":""},{"$f":"IF(C343=\"\",\"\",HLOOKUP(C343,'MHP Family Income & Rent Limits'!$E$12:$L$26,9,FALSE))","v":""},{"$f":"IF(C343=\"\",\"\",HLOOKUP(C343,'MHP Family Income & Rent Limits'!$E$12:$L$26,10,FALSE))","v":""},{"$f":"IF(C343=\"\",\"\",HLOOKUP(C343,'MHP Family Income & Rent Limits'!$E$12:$L$26,11,FALSE))","v":""},{"$f":"IF(C343=\"\",\"\",HLOOKUP(C343,'MHP Family Income & Rent Limits'!$E$12:$L$26,12,FALSE))","v":""},{"$f":"IF(C343=\"\",\"\",HLOOKUP(C343,'MHP Family Income & Rent Limits'!$E$12:$L$26,13,FALSE))","v":""},{"$f":"IF(C343=\"\",\"\",HLOOKUP(C343,'MHP Family Income & Rent Limits'!$E$12:$L$26,14,FALSE))","v":""},{"$f":"IF(C343=\"\",\"\",HLOOKUP(C343,'MHP Family Income & Rent Limits'!$E$12:$L$26,15,FALSE))","v":""}]
[{"$f":"IF('2. Assisted & Restricted Units'!A344=\"\",\"\",'2. Assisted & Restricted Units'!A344)","v":""},{"$f":"IF('2. Assisted & Restricted Units'!B344=\"\",\"\",'2. Assisted & Restricted Units'!B344)","v":""},{"$f":"IF('2. Assisted & Restricted Units'!D344=\"\",\"\",'2. Assisted & Restricted Units'!D344)","v":""},{"$f":"IF('2. Assisted & Restricted Units'!E344=\"\",\"\",'2. Assisted & Restricted Units'!E344)","v":""},{"$f":"IF('2. Assisted & Restricted Units'!H344=\"\",\"\",'2. Assisted & Restricted Units'!H344)","v":""},{"$f":"_xlfn.IFS(E344=\"\",\"\",E344>BO344,$BP$6,E344>BN344,$BO$6,E344>BM344,$BN$6,E344>BL344,$BM$6,E344>BK344,$BL$6,E344>BJ344,$BK$6,E344>BI344,$BJ$6,E344>BH344,$BI$6,E344>BG344,$BH$6,E344>BF344,$BG$6,E344>BE344,$BF$6,E344>BD344,$BE$6,E344>BC344,$BD$6,E344>=0,$BC$6)","v":""},{"$f":"IF('2. Assisted & Restricted Units'!T344=\"\",\"\",'2. Assisted & Restricted Units'!T344)","v":""},{"$f":"IF('2. Assisted & Restricted Units'!I344=\"\",\"\",'2. Assisted & Restricted Units'!I344)","v":""},{"$f":"IF('2. Assisted & Restricted Units'!AP344=\"\",\"\",'2. Assisted & Restricted Units'!AP344)","v":0},{"$f":"IF('2. Assisted & Restricted Units'!AT344=\"\",\"\",'2. Assisted & Restricted Units'!AT344)","v":""},0,{"$f":"IF('2. Assisted & Restricted Units'!AV344=\"\",\"\",'2. Assisted & Restricted Units'!AV344)","v":""},{"$f":"IF('2. Assisted & Restricted Units'!L344=\"\",\"\",'2. Assisted & Restricted Units'!L344)","v":""},{"$f":"IF('2. Assisted & Restricted Units'!M344=\"\",\"\",'2. Assisted & Restricted Units'!M344)","v":""},{"$f":"IF('2. Assisted & Restricted Units'!O344=\"\",\"\",'2. Assisted & Restricted Units'!O344)","v":""},{"$f":"IF('2. Assisted & Restricted Units'!P344=\"\",\"\",'2. Assisted & Restricted Units'!P344)","v":""},{"$f":"IF('2. Assisted & Restricted Units'!Q344=\"\",\"\",'2. Assisted & Restricted Units'!Q344)","v":""},{"$f":"IF('2. Assisted & Restricted Units'!R344=\"\",\"\",'2. Assisted & Restricted Units'!R344)","v":""},{"$f":"IF(A344=\"\",\"\",'1. Checklist & Certification'!$K$1)","v":""},{"$f":"IF(A344=\"\",\"\",'1. Checklist & Certification'!$C$62)","v":""},{"$f":"IF(A344=\"\",\"\",'1. Checklist & Certification'!$K$62)","v":""},{"$f":"IF(A344=\"\",\"\",'1. Checklist & Certification'!$C$6)","v":""},{"$f":"IF(A344=\"\",\"\",'1. Checklist & Certification'!$G$4)","v":""},{"$f":"IF(A344=\"\",\"\",'1. Checklist & Certification'!$C$7)","v":""},{"$f":"IF(A344=\"\",\"\",'1. Checklist & Certification'!$C$8)","v":""},{"$f":"IF(A344=\"\",\"\",'1. Checklist & Certification'!$F$7)","v":""},{"$f":"IF(A344=\"\",\"\",'1. Checklist & Certification'!$F$8)","v":""},{"$f":"IF(A344=\"\",\"\",'1. Checklist & Certification'!$B$9)","v":""},{"$f":"IF(A344=\"\",\"\",'1. Checklist & Certification'!$F$9)","v":""},{"$f":"IF(A344=\"\",\"\",'1. Checklist & Certification'!$C$10)","v":""},{"$f":"IF(A344=\"\",\"\",'1. Checklist & Certification'!$C$11)","v":""},{"$f":"IF(A344=\"\",\"\",'1. Checklist & Certification'!$C$12)","v":""},{"$f":"IF(A344=\"\",\"\",'1. Checklist & Certification'!$B$14)","v":""},{"$f":"IF(A344=\"\",\"\",'1. Checklist & Certification'!$E$14)","v":""},{"$f":"IF(B344=\"\",\"\",'1. Checklist & Certification'!$G$14)","v":""},{"$f":"IF(A344=\"\",\"\",'MHP Family Income & Rent Limits'!$B$3)","v":""},{"$f":"IF(A344=\"\",\"\",'MHP Family Income & Rent Limits'!$J$3)","v":""},{"$f":"IF(A344=\"\",\"\",'MHP Family Income & Rent Limits'!$E$4)","v":""},{"$f":"IF(A344=\"\",\"\",'MHP Family Income & Rent Limits'!$C$7)","v":""},{"$f":"IF(A344=\"\",\"\",'MHP Family Income & Rent Limits'!$F$8)","v":""},{"$f":"IF(A344=\"\",\"\",'1. Checklist & Certification'!$G$4)","v":""},{"$f":"IF(A344=\"\",\"\",'1. Checklist & Certification'!$K$39)","v":""},{"$f":"IF(A344=\"\",\"\",'1. Checklist & Certification'!$K$43)","v":""},{"$f":"IF(A344=\"\",\"\",'1. Checklist & Certification'!$K$45)","v":""},{"$f":"IF(A344=\"\",\"\",'1. Checklist & Certification'!$K$49)","v":""},{"$f":"IF(A344=\"\",\"\",'1. Checklist & Certification'!$E$66)","v":""},{"$f":"IF(A344=\"\",\"\",'1. Checklist & Certification'!$E$67)","v":""},{"$f":"IF(A344=\"\",\"\",'1. Checklist & Certification'!$E$68)","v":""},{"$f":"IF(A344=\"\",\"\",'1. Checklist & Certification'!$G$66)","v":""},{"$f":"IF(A344=\"\",\"\",'1. Checklist & Certification'!$H$66)","v":""},{"$f":"IF(A344=\"\",\"\",'1. Checklist & Certification'!$I$66)","v":""},{"$f":"IF(A344=\"\",\"\",'1. Checklist & Certification'!$I$67)","v":""},{"$f":"IF(A344=\"\",\"\",'1. Checklist & Certification'!$I$68)","v":""},null,{"$f":"IF(C344=\"\",\"\",HLOOKUP(C344,'MHP Family Income & Rent Limits'!$E$12:$L$26,2,FALSE))","v":""},{"$f":"IF(C344=\"\",\"\",HLOOKUP(C344,'MHP Family Income & Rent Limits'!$E$12:$L$26,3,FALSE))","v":""},{"$f":"IF(C344=\"\",\"\",HLOOKUP(C344,'MHP Family Income & Rent Limits'!$E$12:$L$26,4,FALSE))","v":""},{"$f":"IF(C344=\"\",\"\",HLOOKUP(C344,'MHP Family Income & Rent Limits'!$E$12:$L$26,5,FALSE))","v":""},{"$f":"IF(C344=\"\",\"\",HLOOKUP(C344,'MHP Family Income & Rent Limits'!$E$12:$L$26,6,FALSE))","v":""},{"$f":"IF(C344=\"\",\"\",HLOOKUP(C344,'MHP Family Income & Rent Limits'!$E$12:$L$26,7,FALSE))","v":""},{"$f":"IF(C344=\"\",\"\",HLOOKUP(C344,'MHP Family Income & Rent Limits'!$E$12:$L$26,8,FALSE))","v":""},{"$f":"IF(C344=\"\",\"\",HLOOKUP(C344,'MHP Family Income & Rent Limits'!$E$12:$L$26,9,FALSE))","v":""},{"$f":"IF(C344=\"\",\"\",HLOOKUP(C344,'MHP Family Income & Rent Limits'!$E$12:$L$26,10,FALSE))","v":""},{"$f":"IF(C344=\"\",\"\",HLOOKUP(C344,'MHP Family Income & Rent Limits'!$E$12:$L$26,11,FALSE))","v":""},{"$f":"IF(C344=\"\",\"\",HLOOKUP(C344,'MHP Family Income & Rent Limits'!$E$12:$L$26,12,FALSE))","v":""},{"$f":"IF(C344=\"\",\"\",HLOOKUP(C344,'MHP Family Income & Rent Limits'!$E$12:$L$26,13,FALSE))","v":""},{"$f":"IF(C344=\"\",\"\",HLOOKUP(C344,'MHP Family Income & Rent Limits'!$E$12:$L$26,14,FALSE))","v":""},{"$f":"IF(C344=\"\",\"\",HLOOKUP(C344,'MHP Family Income & Rent Limits'!$E$12:$L$26,15,FALSE))","v":""}]
[{"$f":"IF('2. Assisted & Restricted Units'!A345=\"\",\"\",'2. Assisted & Restricted Units'!A345)","v":""},{"$f":"IF('2. Assisted & Restricted Units'!B345=\"\",\"\",'2. Assisted & Restricted Units'!B345)","v":""},{"$f":"IF('2. Assisted & Restricted Units'!D345=\"\",\"\",'2. Assisted & Restricted Units'!D345)","v":""},{"$f":"IF('2. Assisted & Restricted Units'!E345=\"\",\"\",'2. Assisted & Restricted Units'!E345)","v":""},{"$f":"IF('2. Assisted & Restricted Units'!H345=\"\",\"\",'2. Assisted & Restricted Units'!H345)","v":""},{"$f":"_xlfn.IFS(E345=\"\",\"\",E345>BO345,$BP$6,E345>BN345,$BO$6,E345>BM345,$BN$6,E345>BL345,$BM$6,E345>BK345,$BL$6,E345>BJ345,$BK$6,E345>BI345,$BJ$6,E345>BH345,$BI$6,E345>BG345,$BH$6,E345>BF345,$BG$6,E345>BE345,$BF$6,E345>BD345,$BE$6,E345>BC345,$BD$6,E345>=0,$BC$6)","v":""},{"$f":"IF('2. Assisted & Restricted Units'!T345=\"\",\"\",'2. Assisted & Restricted Units'!T345)","v":""},{"$f":"IF('2. Assisted & Restricted Units'!I345=\"\",\"\",'2. Assisted & Restricted Units'!I345)","v":""},{"$f":"IF('2. Assisted & Restricted Units'!AP345=\"\",\"\",'2. Assisted & Restricted Units'!AP345)","v":0},{"$f":"IF('2. Assisted & Restricted Units'!AT345=\"\",\"\",'2. Assisted & Restricted Units'!AT345)","v":""},0,{"$f":"IF('2. Assisted & Restricted Units'!AV345=\"\",\"\",'2. Assisted & Restricted Units'!AV345)","v":""},{"$f":"IF('2. Assisted & Restricted Units'!L345=\"\",\"\",'2. Assisted & Restricted Units'!L345)","v":""},{"$f":"IF('2. Assisted & Restricted Units'!M345=\"\",\"\",'2. Assisted & Restricted Units'!M345)","v":""},{"$f":"IF('2. Assisted & Restricted Units'!O345=\"\",\"\",'2. Assisted & Restricted Units'!O345)","v":""},{"$f":"IF('2. Assisted & Restricted Units'!P345=\"\",\"\",'2. Assisted & Restricted Units'!P345)","v":""},{"$f":"IF('2. Assisted & Restricted Units'!Q345=\"\",\"\",'2. Assisted & Restricted Units'!Q345)","v":""},{"$f":"IF('2. Assisted & Restricted Units'!R345=\"\",\"\",'2. Assisted & Restricted Units'!R345)","v":""},{"$f":"IF(A345=\"\",\"\",'1. Checklist & Certification'!$K$1)","v":""},{"$f":"IF(A345=\"\",\"\",'1. Checklist & Certification'!$C$62)","v":""},{"$f":"IF(A345=\"\",\"\",'1. Checklist & Certification'!$K$62)","v":""},{"$f":"IF(A345=\"\",\"\",'1. Checklist & Certification'!$C$6)","v":""},{"$f":"IF(A345=\"\",\"\",'1. Checklist & Certification'!$G$4)","v":""},{"$f":"IF(A345=\"\",\"\",'1. Checklist & Certification'!$C$7)","v":""},{"$f":"IF(A345=\"\",\"\",'1. Checklist & Certification'!$C$8)","v":""},{"$f":"IF(A345=\"\",\"\",'1. Checklist & Certification'!$F$7)","v":""},{"$f":"IF(A345=\"\",\"\",'1. Checklist & Certification'!$F$8)","v":""},{"$f":"IF(A345=\"\",\"\",'1. Checklist & Certification'!$B$9)","v":""},{"$f":"IF(A345=\"\",\"\",'1. Checklist & Certification'!$F$9)","v":""},{"$f":"IF(A345=\"\",\"\",'1. Checklist & Certification'!$C$10)","v":""},{"$f":"IF(A345=\"\",\"\",'1. Checklist & Certification'!$C$11)","v":""},{"$f":"IF(A345=\"\",\"\",'1. Checklist & Certification'!$C$12)","v":""},{"$f":"IF(A345=\"\",\"\",'1. Checklist & Certification'!$B$14)","v":""},{"$f":"IF(A345=\"\",\"\",'1. Checklist & Certification'!$E$14)","v":""},{"$f":"IF(B345=\"\",\"\",'1. Checklist & Certification'!$G$14)","v":""},{"$f":"IF(A345=\"\",\"\",'MHP Family Income & Rent Limits'!$B$3)","v":""},{"$f":"IF(A345=\"\",\"\",'MHP Family Income & Rent Limits'!$J$3)","v":""},{"$f":"IF(A345=\"\",\"\",'MHP Family Income & Rent Limits'!$E$4)","v":""},{"$f":"IF(A345=\"\",\"\",'MHP Family Income & Rent Limits'!$C$7)","v":""},{"$f":"IF(A345=\"\",\"\",'MHP Family Income & Rent Limits'!$F$8)","v":""},{"$f":"IF(A345=\"\",\"\",'1. Checklist & Certification'!$G$4)","v":""},{"$f":"IF(A345=\"\",\"\",'1. Checklist & Certification'!$K$39)","v":""},{"$f":"IF(A345=\"\",\"\",'1. Checklist & Certification'!$K$43)","v":""},{"$f":"IF(A345=\"\",\"\",'1. Checklist & Certification'!$K$45)","v":""},{"$f":"IF(A345=\"\",\"\",'1. Checklist & Certification'!$K$49)","v":""},{"$f":"IF(A345=\"\",\"\",'1. Checklist & Certification'!$E$66)","v":""},{"$f":"IF(A345=\"\",\"\",'1. Checklist & Certification'!$E$67)","v":""},{"$f":"IF(A345=\"\",\"\",'1. Checklist & Certification'!$E$68)","v":""},{"$f":"IF(A345=\"\",\"\",'1. Checklist & Certification'!$G$66)","v":""},{"$f":"IF(A345=\"\",\"\",'1. Checklist & Certification'!$H$66)","v":""},{"$f":"IF(A345=\"\",\"\",'1. Checklist & Certification'!$I$66)","v":""},{"$f":"IF(A345=\"\",\"\",'1. Checklist & Certification'!$I$67)","v":""},{"$f":"IF(A345=\"\",\"\",'1. Checklist & Certification'!$I$68)","v":""},null,{"$f":"IF(C345=\"\",\"\",HLOOKUP(C345,'MHP Family Income & Rent Limits'!$E$12:$L$26,2,FALSE))","v":""},{"$f":"IF(C345=\"\",\"\",HLOOKUP(C345,'MHP Family Income & Rent Limits'!$E$12:$L$26,3,FALSE))","v":""},{"$f":"IF(C345=\"\",\"\",HLOOKUP(C345,'MHP Family Income & Rent Limits'!$E$12:$L$26,4,FALSE))","v":""},{"$f":"IF(C345=\"\",\"\",HLOOKUP(C345,'MHP Family Income & Rent Limits'!$E$12:$L$26,5,FALSE))","v":""},{"$f":"IF(C345=\"\",\"\",HLOOKUP(C345,'MHP Family Income & Rent Limits'!$E$12:$L$26,6,FALSE))","v":""},{"$f":"IF(C345=\"\",\"\",HLOOKUP(C345,'MHP Family Income & Rent Limits'!$E$12:$L$26,7,FALSE))","v":""},{"$f":"IF(C345=\"\",\"\",HLOOKUP(C345,'MHP Family Income & Rent Limits'!$E$12:$L$26,8,FALSE))","v":""},{"$f":"IF(C345=\"\",\"\",HLOOKUP(C345,'MHP Family Income & Rent Limits'!$E$12:$L$26,9,FALSE))","v":""},{"$f":"IF(C345=\"\",\"\",HLOOKUP(C345,'MHP Family Income & Rent Limits'!$E$12:$L$26,10,FALSE))","v":""},{"$f":"IF(C345=\"\",\"\",HLOOKUP(C345,'MHP Family Income & Rent Limits'!$E$12:$L$26,11,FALSE))","v":""},{"$f":"IF(C345=\"\",\"\",HLOOKUP(C345,'MHP Family Income & Rent Limits'!$E$12:$L$26,12,FALSE))","v":""},{"$f":"IF(C345=\"\",\"\",HLOOKUP(C345,'MHP Family Income & Rent Limits'!$E$12:$L$26,13,FALSE))","v":""},{"$f":"IF(C345=\"\",\"\",HLOOKUP(C345,'MHP Family Income & Rent Limits'!$E$12:$L$26,14,FALSE))","v":""},{"$f":"IF(C345=\"\",\"\",HLOOKUP(C345,'MHP Family Income & Rent Limits'!$E$12:$L$26,15,FALSE))","v":""}]
[{"$f":"IF('2. Assisted & Restricted Units'!A346=\"\",\"\",'2. Assisted & Restricted Units'!A346)","v":""},{"$f":"IF('2. Assisted & Restricted Units'!B346=\"\",\"\",'2. Assisted & Restricted Units'!B346)","v":""},{"$f":"IF('2. Assisted & Restricted Units'!D346=\"\",\"\",'2. Assisted & Restricted Units'!D346)","v":""},{"$f":"IF('2. Assisted & Restricted Units'!E346=\"\",\"\",'2. Assisted & Restricted Units'!E346)","v":""},{"$f":"IF('2. Assisted & Restricted Units'!H346=\"\",\"\",'2. Assisted & Restricted Units'!H346)","v":""},{"$f":"_xlfn.IFS(E346=\"\",\"\",E346>BO346,$BP$6,E346>BN346,$BO$6,E346>BM346,$BN$6,E346>BL346,$BM$6,E346>BK346,$BL$6,E346>BJ346,$BK$6,E346>BI346,$BJ$6,E346>BH346,$BI$6,E346>BG346,$BH$6,E346>BF346,$BG$6,E346>BE346,$BF$6,E346>BD346,$BE$6,E346>BC346,$BD$6,E346>=0,$BC$6)","v":""},{"$f":"IF('2. Assisted & Restricted Units'!T346=\"\",\"\",'2. Assisted & Restricted Units'!T346)","v":""},{"$f":"IF('2. Assisted & Restricted Units'!I346=\"\",\"\",'2. Assisted & Restricted Units'!I346)","v":""},{"$f":"IF('2. Assisted & Restricted Units'!AP346=\"\",\"\",'2. Assisted & Restricted Units'!AP346)","v":0},{"$f":"IF('2. Assisted & Restricted Units'!AT346=\"\",\"\",'2. Assisted & Restricted Units'!AT346)","v":""},0,{"$f":"IF('2. Assisted & Restricted Units'!AV346=\"\",\"\",'2. Assisted & Restricted Units'!AV346)","v":""},{"$f":"IF('2. Assisted & Restricted Units'!L346=\"\",\"\",'2. Assisted & Restricted Units'!L346)","v":""},{"$f":"IF('2. Assisted & Restricted Units'!M346=\"\",\"\",'2. Assisted & Restricted Units'!M346)","v":""},{"$f":"IF('2. Assisted & Restricted Units'!O346=\"\",\"\",'2. Assisted & Restricted Units'!O346)","v":""},{"$f":"IF('2. Assisted & Restricted Units'!P346=\"\",\"\",'2. Assisted & Restricted Units'!P346)","v":""},{"$f":"IF('2. Assisted & Restricted Units'!Q346=\"\",\"\",'2. Assisted & Restricted Units'!Q346)","v":""},{"$f":"IF('2. Assisted & Restricted Units'!R346=\"\",\"\",'2. Assisted & Restricted Units'!R346)","v":""},{"$f":"IF(A346=\"\",\"\",'1. Checklist & Certification'!$K$1)","v":""},{"$f":"IF(A346=\"\",\"\",'1. Checklist & Certification'!$C$62)","v":""},{"$f":"IF(A346=\"\",\"\",'1. Checklist & Certification'!$K$62)","v":""},{"$f":"IF(A346=\"\",\"\",'1. Checklist & Certification'!$C$6)","v":""},{"$f":"IF(A346=\"\",\"\",'1. Checklist & Certification'!$G$4)","v":""},{"$f":"IF(A346=\"\",\"\",'1. Checklist & Certification'!$C$7)","v":""},{"$f":"IF(A346=\"\",\"\",'1. Checklist & Certification'!$C$8)","v":""},{"$f":"IF(A346=\"\",\"\",'1. Checklist & Certification'!$F$7)","v":""},{"$f":"IF(A346=\"\",\"\",'1. Checklist & Certification'!$F$8)","v":""},{"$f":"IF(A346=\"\",\"\",'1. Checklist & Certification'!$B$9)","v":""},{"$f":"IF(A346=\"\",\"\",'1. Checklist & Certification'!$F$9)","v":""},{"$f":"IF(A346=\"\",\"\",'1. Checklist & Certification'!$C$10)","v":""},{"$f":"IF(A346=\"\",\"\",'1. Checklist & Certification'!$C$11)","v":""},{"$f":"IF(A346=\"\",\"\",'1. Checklist & Certification'!$C$12)","v":""},{"$f":"IF(A346=\"\",\"\",'1. Checklist & Certification'!$B$14)","v":""},{"$f":"IF(A346=\"\",\"\",'1. Checklist & Certification'!$E$14)","v":""},{"$f":"IF(B346=\"\",\"\",'1. Checklist & Certification'!$G$14)","v":""},{"$f":"IF(A346=\"\",\"\",'MHP Family Income & Rent Limits'!$B$3)","v":""},{"$f":"IF(A346=\"\",\"\",'MHP Family Income & Rent Limits'!$J$3)","v":""},{"$f":"IF(A346=\"\",\"\",'MHP Family Income & Rent Limits'!$E$4)","v":""},{"$f":"IF(A346=\"\",\"\",'MHP Family Income & Rent Limits'!$C$7)","v":""},{"$f":"IF(A346=\"\",\"\",'MHP Family Income & Rent Limits'!$F$8)","v":""},{"$f":"IF(A346=\"\",\"\",'1. Checklist & Certification'!$G$4)","v":""},{"$f":"IF(A346=\"\",\"\",'1. Checklist & Certification'!$K$39)","v":""},{"$f":"IF(A346=\"\",\"\",'1. Checklist & Certification'!$K$43)","v":""},{"$f":"IF(A346=\"\",\"\",'1. Checklist & Certification'!$K$45)","v":""},{"$f":"IF(A346=\"\",\"\",'1. Checklist & Certification'!$K$49)","v":""},{"$f":"IF(A346=\"\",\"\",'1. Checklist & Certification'!$E$66)","v":""},{"$f":"IF(A346=\"\",\"\",'1. Checklist & Certification'!$E$67)","v":""},{"$f":"IF(A346=\"\",\"\",'1. Checklist & Certification'!$E$68)","v":""},{"$f":"IF(A346=\"\",\"\",'1. Checklist & Certification'!$G$66)","v":""},{"$f":"IF(A346=\"\",\"\",'1. Checklist & Certification'!$H$66)","v":""},{"$f":"IF(A346=\"\",\"\",'1. Checklist & Certification'!$I$66)","v":""},{"$f":"IF(A346=\"\",\"\",'1. Checklist & Certification'!$I$67)","v":""},{"$f":"IF(A346=\"\",\"\",'1. Checklist & Certification'!$I$68)","v":""},null,{"$f":"IF(C346=\"\",\"\",HLOOKUP(C346,'MHP Family Income & Rent Limits'!$E$12:$L$26,2,FALSE))","v":""},{"$f":"IF(C346=\"\",\"\",HLOOKUP(C346,'MHP Family Income & Rent Limits'!$E$12:$L$26,3,FALSE))","v":""},{"$f":"IF(C346=\"\",\"\",HLOOKUP(C346,'MHP Family Income & Rent Limits'!$E$12:$L$26,4,FALSE))","v":""},{"$f":"IF(C346=\"\",\"\",HLOOKUP(C346,'MHP Family Income & Rent Limits'!$E$12:$L$26,5,FALSE))","v":""},{"$f":"IF(C346=\"\",\"\",HLOOKUP(C346,'MHP Family Income & Rent Limits'!$E$12:$L$26,6,FALSE))","v":""},{"$f":"IF(C346=\"\",\"\",HLOOKUP(C346,'MHP Family Income & Rent Limits'!$E$12:$L$26,7,FALSE))","v":""},{"$f":"IF(C346=\"\",\"\",HLOOKUP(C346,'MHP Family Income & Rent Limits'!$E$12:$L$26,8,FALSE))","v":""},{"$f":"IF(C346=\"\",\"\",HLOOKUP(C346,'MHP Family Income & Rent Limits'!$E$12:$L$26,9,FALSE))","v":""},{"$f":"IF(C346=\"\",\"\",HLOOKUP(C346,'MHP Family Income & Rent Limits'!$E$12:$L$26,10,FALSE))","v":""},{"$f":"IF(C346=\"\",\"\",HLOOKUP(C346,'MHP Family Income & Rent Limits'!$E$12:$L$26,11,FALSE))","v":""},{"$f":"IF(C346=\"\",\"\",HLOOKUP(C346,'MHP Family Income & Rent Limits'!$E$12:$L$26,12,FALSE))","v":""},{"$f":"IF(C346=\"\",\"\",HLOOKUP(C346,'MHP Family Income & Rent Limits'!$E$12:$L$26,13,FALSE))","v":""},{"$f":"IF(C346=\"\",\"\",HLOOKUP(C346,'MHP Family Income & Rent Limits'!$E$12:$L$26,14,FALSE))","v":""},{"$f":"IF(C346=\"\",\"\",HLOOKUP(C346,'MHP Family Income & Rent Limits'!$E$12:$L$26,15,FALSE))","v":""}]
[{"$f":"IF('2. Assisted & Restricted Units'!A347=\"\",\"\",'2. Assisted & Restricted Units'!A347)","v":""},{"$f":"IF('2. Assisted & Restricted Units'!B347=\"\",\"\",'2. Assisted & Restricted Units'!B347)","v":""},{"$f":"IF('2. Assisted & Restricted Units'!D347=\"\",\"\",'2. Assisted & Restricted Units'!D347)","v":""},{"$f":"IF('2. Assisted & Restricted Units'!E347=\"\",\"\",'2. Assisted & Restricted Units'!E347)","v":""},{"$f":"IF('2. Assisted & Restricted Units'!H347=\"\",\"\",'2. Assisted & Restricted Units'!H347)","v":""},{"$f":"_xlfn.IFS(E347=\"\",\"\",E347>BO347,$BP$6,E347>BN347,$BO$6,E347>BM347,$BN$6,E347>BL347,$BM$6,E347>BK347,$BL$6,E347>BJ347,$BK$6,E347>BI347,$BJ$6,E347>BH347,$BI$6,E347>BG347,$BH$6,E347>BF347,$BG$6,E347>BE347,$BF$6,E347>BD347,$BE$6,E347>BC347,$BD$6,E347>=0,$BC$6)","v":""},{"$f":"IF('2. Assisted & Restricted Units'!T347=\"\",\"\",'2. Assisted & Restricted Units'!T347)","v":""},{"$f":"IF('2. Assisted & Restricted Units'!I347=\"\",\"\",'2. Assisted & Restricted Units'!I347)","v":""},{"$f":"IF('2. Assisted & Restricted Units'!AP347=\"\",\"\",'2. Assisted & Restricted Units'!AP347)","v":0},{"$f":"IF('2. Assisted & Restricted Units'!AT347=\"\",\"\",'2. Assisted & Restricted Units'!AT347)","v":""},0,{"$f":"IF('2. Assisted & Restricted Units'!AV347=\"\",\"\",'2. Assisted & Restricted Units'!AV347)","v":""},{"$f":"IF('2. Assisted & Restricted Units'!L347=\"\",\"\",'2. Assisted & Restricted Units'!L347)","v":""},{"$f":"IF('2. Assisted & Restricted Units'!M347=\"\",\"\",'2. Assisted & Restricted Units'!M347)","v":""},{"$f":"IF('2. Assisted & Restricted Units'!O347=\"\",\"\",'2. Assisted & Restricted Units'!O347)","v":""},{"$f":"IF('2. Assisted & Restricted Units'!P347=\"\",\"\",'2. Assisted & Restricted Units'!P347)","v":""},{"$f":"IF('2. Assisted & Restricted Units'!Q347=\"\",\"\",'2. Assisted & Restricted Units'!Q347)","v":""},{"$f":"IF('2. Assisted & Restricted Units'!R347=\"\",\"\",'2. Assisted & Restricted Units'!R347)","v":""},{"$f":"IF(A347=\"\",\"\",'1. Checklist & Certification'!$K$1)","v":""},{"$f":"IF(A347=\"\",\"\",'1. Checklist & Certification'!$C$62)","v":""},{"$f":"IF(A347=\"\",\"\",'1. Checklist & Certification'!$K$62)","v":""},{"$f":"IF(A347=\"\",\"\",'1. Checklist & Certification'!$C$6)","v":""},{"$f":"IF(A347=\"\",\"\",'1. Checklist & Certification'!$G$4)","v":""},{"$f":"IF(A347=\"\",\"\",'1. Checklist & Certification'!$C$7)","v":""},{"$f":"IF(A347=\"\",\"\",'1. Checklist & Certification'!$C$8)","v":""},{"$f":"IF(A347=\"\",\"\",'1. Checklist & Certification'!$F$7)","v":""},{"$f":"IF(A347=\"\",\"\",'1. Checklist & Certification'!$F$8)","v":""},{"$f":"IF(A347=\"\",\"\",'1. Checklist & Certification'!$B$9)","v":""},{"$f":"IF(A347=\"\",\"\",'1. Checklist & Certification'!$F$9)","v":""},{"$f":"IF(A347=\"\",\"\",'1. Checklist & Certification'!$C$10)","v":""},{"$f":"IF(A347=\"\",\"\",'1. Checklist & Certification'!$C$11)","v":""},{"$f":"IF(A347=\"\",\"\",'1. Checklist & Certification'!$C$12)","v":""},{"$f":"IF(A347=\"\",\"\",'1. Checklist & Certification'!$B$14)","v":""},{"$f":"IF(A347=\"\",\"\",'1. Checklist & Certification'!$E$14)","v":""},{"$f":"IF(B347=\"\",\"\",'1. Checklist & Certification'!$G$14)","v":""},{"$f":"IF(A347=\"\",\"\",'MHP Family Income & Rent Limits'!$B$3)","v":""},{"$f":"IF(A347=\"\",\"\",'MHP Family Income & Rent Limits'!$J$3)","v":""},{"$f":"IF(A347=\"\",\"\",'MHP Family Income & Rent Limits'!$E$4)","v":""},{"$f":"IF(A347=\"\",\"\",'MHP Family Income & Rent Limits'!$C$7)","v":""},{"$f":"IF(A347=\"\",\"\",'MHP Family Income & Rent Limits'!$F$8)","v":""},{"$f":"IF(A347=\"\",\"\",'1. Checklist & Certification'!$G$4)","v":""},{"$f":"IF(A347=\"\",\"\",'1. Checklist & Certification'!$K$39)","v":""},{"$f":"IF(A347=\"\",\"\",'1. Checklist & Certification'!$K$43)","v":""},{"$f":"IF(A347=\"\",\"\",'1. Checklist & Certification'!$K$45)","v":""},{"$f":"IF(A347=\"\",\"\",'1. Checklist & Certification'!$K$49)","v":""},{"$f":"IF(A347=\"\",\"\",'1. Checklist & Certification'!$E$66)","v":""},{"$f":"IF(A347=\"\",\"\",'1. Checklist & Certification'!$E$67)","v":""},{"$f":"IF(A347=\"\",\"\",'1. Checklist & Certification'!$E$68)","v":""},{"$f":"IF(A347=\"\",\"\",'1. Checklist & Certification'!$G$66)","v":""},{"$f":"IF(A347=\"\",\"\",'1. Checklist & Certification'!$H$66)","v":""},{"$f":"IF(A347=\"\",\"\",'1. Checklist & Certification'!$I$66)","v":""},{"$f":"IF(A347=\"\",\"\",'1. Checklist & Certification'!$I$67)","v":""},{"$f":"IF(A347=\"\",\"\",'1. Checklist & Certification'!$I$68)","v":""},null,{"$f":"IF(C347=\"\",\"\",HLOOKUP(C347,'MHP Family Income & Rent Limits'!$E$12:$L$26,2,FALSE))","v":""},{"$f":"IF(C347=\"\",\"\",HLOOKUP(C347,'MHP Family Income & Rent Limits'!$E$12:$L$26,3,FALSE))","v":""},{"$f":"IF(C347=\"\",\"\",HLOOKUP(C347,'MHP Family Income & Rent Limits'!$E$12:$L$26,4,FALSE))","v":""},{"$f":"IF(C347=\"\",\"\",HLOOKUP(C347,'MHP Family Income & Rent Limits'!$E$12:$L$26,5,FALSE))","v":""},{"$f":"IF(C347=\"\",\"\",HLOOKUP(C347,'MHP Family Income & Rent Limits'!$E$12:$L$26,6,FALSE))","v":""},{"$f":"IF(C347=\"\",\"\",HLOOKUP(C347,'MHP Family Income & Rent Limits'!$E$12:$L$26,7,FALSE))","v":""},{"$f":"IF(C347=\"\",\"\",HLOOKUP(C347,'MHP Family Income & Rent Limits'!$E$12:$L$26,8,FALSE))","v":""},{"$f":"IF(C347=\"\",\"\",HLOOKUP(C347,'MHP Family Income & Rent Limits'!$E$12:$L$26,9,FALSE))","v":""},{"$f":"IF(C347=\"\",\"\",HLOOKUP(C347,'MHP Family Income & Rent Limits'!$E$12:$L$26,10,FALSE))","v":""},{"$f":"IF(C347=\"\",\"\",HLOOKUP(C347,'MHP Family Income & Rent Limits'!$E$12:$L$26,11,FALSE))","v":""},{"$f":"IF(C347=\"\",\"\",HLOOKUP(C347,'MHP Family Income & Rent Limits'!$E$12:$L$26,12,FALSE))","v":""},{"$f":"IF(C347=\"\",\"\",HLOOKUP(C347,'MHP Family Income & Rent Limits'!$E$12:$L$26,13,FALSE))","v":""},{"$f":"IF(C347=\"\",\"\",HLOOKUP(C347,'MHP Family Income & Rent Limits'!$E$12:$L$26,14,FALSE))","v":""},{"$f":"IF(C347=\"\",\"\",HLOOKUP(C347,'MHP Family Income & Rent Limits'!$E$12:$L$26,15,FALSE))","v":""}]
[{"$f":"IF('2. Assisted & Restricted Units'!A348=\"\",\"\",'2. Assisted & Restricted Units'!A348)","v":""},{"$f":"IF('2. Assisted & Restricted Units'!B348=\"\",\"\",'2. Assisted & Restricted Units'!B348)","v":""},{"$f":"IF('2. Assisted & Restricted Units'!D348=\"\",\"\",'2. Assisted & Restricted Units'!D348)","v":""},{"$f":"IF('2. Assisted & Restricted Units'!E348=\"\",\"\",'2. Assisted & Restricted Units'!E348)","v":""},{"$f":"IF('2. Assisted & Restricted Units'!H348=\"\",\"\",'2. Assisted & Restricted Units'!H348)","v":""},{"$f":"_xlfn.IFS(E348=\"\",\"\",E348>BO348,$BP$6,E348>BN348,$BO$6,E348>BM348,$BN$6,E348>BL348,$BM$6,E348>BK348,$BL$6,E348>BJ348,$BK$6,E348>BI348,$BJ$6,E348>BH348,$BI$6,E348>BG348,$BH$6,E348>BF348,$BG$6,E348>BE348,$BF$6,E348>BD348,$BE$6,E348>BC348,$BD$6,E348>=0,$BC$6)","v":""},{"$f":"IF('2. Assisted & Restricted Units'!T348=\"\",\"\",'2. Assisted & Restricted Units'!T348)","v":""},{"$f":"IF('2. Assisted & Restricted Units'!I348=\"\",\"\",'2. Assisted & Restricted Units'!I348)","v":""},{"$f":"IF('2. Assisted & Restricted Units'!AP348=\"\",\"\",'2. Assisted & Restricted Units'!AP348)","v":0},{"$f":"IF('2. Assisted & Restricted Units'!AT348=\"\",\"\",'2. Assisted & Restricted Units'!AT348)","v":""},0,{"$f":"IF('2. Assisted & Restricted Units'!AV348=\"\",\"\",'2. Assisted & Restricted Units'!AV348)","v":""},{"$f":"IF('2. Assisted & Restricted Units'!L348=\"\",\"\",'2. Assisted & Restricted Units'!L348)","v":""},{"$f":"IF('2. Assisted & Restricted Units'!M348=\"\",\"\",'2. Assisted & Restricted Units'!M348)","v":""},{"$f":"IF('2. Assisted & Restricted Units'!O348=\"\",\"\",'2. Assisted & Restricted Units'!O348)","v":""},{"$f":"IF('2. Assisted & Restricted Units'!P348=\"\",\"\",'2. Assisted & Restricted Units'!P348)","v":""},{"$f":"IF('2. Assisted & Restricted Units'!Q348=\"\",\"\",'2. Assisted & Restricted Units'!Q348)","v":""},{"$f":"IF('2. Assisted & Restricted Units'!R348=\"\",\"\",'2. Assisted & Restricted Units'!R348)","v":""},{"$f":"IF(A348=\"\",\"\",'1. Checklist & Certification'!$K$1)","v":""},{"$f":"IF(A348=\"\",\"\",'1. Checklist & Certification'!$C$62)","v":""},{"$f":"IF(A348=\"\",\"\",'1. Checklist & Certification'!$K$62)","v":""},{"$f":"IF(A348=\"\",\"\",'1. Checklist & Certification'!$C$6)","v":""},{"$f":"IF(A348=\"\",\"\",'1. Checklist & Certification'!$G$4)","v":""},{"$f":"IF(A348=\"\",\"\",'1. Checklist & Certification'!$C$7)","v":""},{"$f":"IF(A348=\"\",\"\",'1. Checklist & Certification'!$C$8)","v":""},{"$f":"IF(A348=\"\",\"\",'1. Checklist & Certification'!$F$7)","v":""},{"$f":"IF(A348=\"\",\"\",'1. Checklist & Certification'!$F$8)","v":""},{"$f":"IF(A348=\"\",\"\",'1. Checklist & Certification'!$B$9)","v":""},{"$f":"IF(A348=\"\",\"\",'1. Checklist & Certification'!$F$9)","v":""},{"$f":"IF(A348=\"\",\"\",'1. Checklist & Certification'!$C$10)","v":""},{"$f":"IF(A348=\"\",\"\",'1. Checklist & Certification'!$C$11)","v":""},{"$f":"IF(A348=\"\",\"\",'1. Checklist & Certification'!$C$12)","v":""},{"$f":"IF(A348=\"\",\"\",'1. Checklist & Certification'!$B$14)","v":""},{"$f":"IF(A348=\"\",\"\",'1. Checklist & Certification'!$E$14)","v":""},{"$f":"IF(B348=\"\",\"\",'1. Checklist & Certification'!$G$14)","v":""},{"$f":"IF(A348=\"\",\"\",'MHP Family Income & Rent Limits'!$B$3)","v":""},{"$f":"IF(A348=\"\",\"\",'MHP Family Income & Rent Limits'!$J$3)","v":""},{"$f":"IF(A348=\"\",\"\",'MHP Family Income & Rent Limits'!$E$4)","v":""},{"$f":"IF(A348=\"\",\"\",'MHP Family Income & Rent Limits'!$C$7)","v":""},{"$f":"IF(A348=\"\",\"\",'MHP Family Income & Rent Limits'!$F$8)","v":""},{"$f":"IF(A348=\"\",\"\",'1. Checklist & Certification'!$G$4)","v":""},{"$f":"IF(A348=\"\",\"\",'1. Checklist & Certification'!$K$39)","v":""},{"$f":"IF(A348=\"\",\"\",'1. Checklist & Certification'!$K$43)","v":""},{"$f":"IF(A348=\"\",\"\",'1. Checklist & Certification'!$K$45)","v":""},{"$f":"IF(A348=\"\",\"\",'1. Checklist & Certification'!$K$49)","v":""},{"$f":"IF(A348=\"\",\"\",'1. Checklist & Certification'!$E$66)","v":""},{"$f":"IF(A348=\"\",\"\",'1. Checklist & Certification'!$E$67)","v":""},{"$f":"IF(A348=\"\",\"\",'1. Checklist & Certification'!$E$68)","v":""},{"$f":"IF(A348=\"\",\"\",'1. Checklist & Certification'!$G$66)","v":""},{"$f":"IF(A348=\"\",\"\",'1. Checklist & Certification'!$H$66)","v":""},{"$f":"IF(A348=\"\",\"\",'1. Checklist & Certification'!$I$66)","v":""},{"$f":"IF(A348=\"\",\"\",'1. Checklist & Certification'!$I$67)","v":""},{"$f":"IF(A348=\"\",\"\",'1. Checklist & Certification'!$I$68)","v":""},null,{"$f":"IF(C348=\"\",\"\",HLOOKUP(C348,'MHP Family Income & Rent Limits'!$E$12:$L$26,2,FALSE))","v":""},{"$f":"IF(C348=\"\",\"\",HLOOKUP(C348,'MHP Family Income & Rent Limits'!$E$12:$L$26,3,FALSE))","v":""},{"$f":"IF(C348=\"\",\"\",HLOOKUP(C348,'MHP Family Income & Rent Limits'!$E$12:$L$26,4,FALSE))","v":""},{"$f":"IF(C348=\"\",\"\",HLOOKUP(C348,'MHP Family Income & Rent Limits'!$E$12:$L$26,5,FALSE))","v":""},{"$f":"IF(C348=\"\",\"\",HLOOKUP(C348,'MHP Family Income & Rent Limits'!$E$12:$L$26,6,FALSE))","v":""},{"$f":"IF(C348=\"\",\"\",HLOOKUP(C348,'MHP Family Income & Rent Limits'!$E$12:$L$26,7,FALSE))","v":""},{"$f":"IF(C348=\"\",\"\",HLOOKUP(C348,'MHP Family Income & Rent Limits'!$E$12:$L$26,8,FALSE))","v":""},{"$f":"IF(C348=\"\",\"\",HLOOKUP(C348,'MHP Family Income & Rent Limits'!$E$12:$L$26,9,FALSE))","v":""},{"$f":"IF(C348=\"\",\"\",HLOOKUP(C348,'MHP Family Income & Rent Limits'!$E$12:$L$26,10,FALSE))","v":""},{"$f":"IF(C348=\"\",\"\",HLOOKUP(C348,'MHP Family Income & Rent Limits'!$E$12:$L$26,11,FALSE))","v":""},{"$f":"IF(C348=\"\",\"\",HLOOKUP(C348,'MHP Family Income & Rent Limits'!$E$12:$L$26,12,FALSE))","v":""},{"$f":"IF(C348=\"\",\"\",HLOOKUP(C348,'MHP Family Income & Rent Limits'!$E$12:$L$26,13,FALSE))","v":""},{"$f":"IF(C348=\"\",\"\",HLOOKUP(C348,'MHP Family Income & Rent Limits'!$E$12:$L$26,14,FALSE))","v":""},{"$f":"IF(C348=\"\",\"\",HLOOKUP(C348,'MHP Family Income & Rent Limits'!$E$12:$L$26,15,FALSE))","v":""}]
[{"$f":"IF('2. Assisted & Restricted Units'!A349=\"\",\"\",'2. Assisted & Restricted Units'!A349)","v":""},{"$f":"IF('2. Assisted & Restricted Units'!B349=\"\",\"\",'2. Assisted & Restricted Units'!B349)","v":""},{"$f":"IF('2. Assisted & Restricted Units'!D349=\"\",\"\",'2. Assisted & Restricted Units'!D349)","v":""},{"$f":"IF('2. Assisted & Restricted Units'!E349=\"\",\"\",'2. Assisted & Restricted Units'!E349)","v":""},{"$f":"IF('2. Assisted & Restricted Units'!H349=\"\",\"\",'2. Assisted & Restricted Units'!H349)","v":""},{"$f":"_xlfn.IFS(E349=\"\",\"\",E349>BO349,$BP$6,E349>BN349,$BO$6,E349>BM349,$BN$6,E349>BL349,$BM$6,E349>BK349,$BL$6,E349>BJ349,$BK$6,E349>BI349,$BJ$6,E349>BH349,$BI$6,E349>BG349,$BH$6,E349>BF349,$BG$6,E349>BE349,$BF$6,E349>BD349,$BE$6,E349>BC349,$BD$6,E349>=0,$BC$6)","v":""},{"$f":"IF('2. Assisted & Restricted Units'!T349=\"\",\"\",'2. Assisted & Restricted Units'!T349)","v":""},{"$f":"IF('2. Assisted & Restricted Units'!I349=\"\",\"\",'2. Assisted & Restricted Units'!I349)","v":""},{"$f":"IF('2. Assisted & Restricted Units'!AP349=\"\",\"\",'2. Assisted & Restricted Units'!AP349)","v":0},{"$f":"IF('2. Assisted & Restricted Units'!AT349=\"\",\"\",'2. Assisted & Restricted Units'!AT349)","v":""},0,{"$f":"IF('2. Assisted & Restricted Units'!AV349=\"\",\"\",'2. Assisted & Restricted Units'!AV349)","v":""},{"$f":"IF('2. Assisted & Restricted Units'!L349=\"\",\"\",'2. Assisted & Restricted Units'!L349)","v":""},{"$f":"IF('2. Assisted & Restricted Units'!M349=\"\",\"\",'2. Assisted & Restricted Units'!M349)","v":""},{"$f":"IF('2. Assisted & Restricted Units'!O349=\"\",\"\",'2. Assisted & Restricted Units'!O349)","v":""},{"$f":"IF('2. Assisted & Restricted Units'!P349=\"\",\"\",'2. Assisted & Restricted Units'!P349)","v":""},{"$f":"IF('2. Assisted & Restricted Units'!Q349=\"\",\"\",'2. Assisted & Restricted Units'!Q349)","v":""},{"$f":"IF('2. Assisted & Restricted Units'!R349=\"\",\"\",'2. Assisted & Restricted Units'!R349)","v":""},{"$f":"IF(A349=\"\",\"\",'1. Checklist & Certification'!$K$1)","v":""},{"$f":"IF(A349=\"\",\"\",'1. Checklist & Certification'!$C$62)","v":""},{"$f":"IF(A349=\"\",\"\",'1. Checklist & Certification'!$K$62)","v":""},{"$f":"IF(A349=\"\",\"\",'1. Checklist & Certification'!$C$6)","v":""},{"$f":"IF(A349=\"\",\"\",'1. Checklist & Certification'!$G$4)","v":""},{"$f":"IF(A349=\"\",\"\",'1. Checklist & Certification'!$C$7)","v":""},{"$f":"IF(A349=\"\",\"\",'1. Checklist & Certification'!$C$8)","v":""},{"$f":"IF(A349=\"\",\"\",'1. Checklist & Certification'!$F$7)","v":""},{"$f":"IF(A349=\"\",\"\",'1. Checklist & Certification'!$F$8)","v":""},{"$f":"IF(A349=\"\",\"\",'1. Checklist & Certification'!$B$9)","v":""},{"$f":"IF(A349=\"\",\"\",'1. Checklist & Certification'!$F$9)","v":""},{"$f":"IF(A349=\"\",\"\",'1. Checklist & Certification'!$C$10)","v":""},{"$f":"IF(A349=\"\",\"\",'1. Checklist & Certification'!$C$11)","v":""},{"$f":"IF(A349=\"\",\"\",'1. Checklist & Certification'!$C$12)","v":""},{"$f":"IF(A349=\"\",\"\",'1. Checklist & Certification'!$B$14)","v":""},{"$f":"IF(A349=\"\",\"\",'1. Checklist & Certification'!$E$14)","v":""},{"$f":"IF(B349=\"\",\"\",'1. Checklist & Certification'!$G$14)","v":""},{"$f":"IF(A349=\"\",\"\",'MHP Family Income & Rent Limits'!$B$3)","v":""},{"$f":"IF(A349=\"\",\"\",'MHP Family Income & Rent Limits'!$J$3)","v":""},{"$f":"IF(A349=\"\",\"\",'MHP Family Income & Rent Limits'!$E$4)","v":""},{"$f":"IF(A349=\"\",\"\",'MHP Family Income & Rent Limits'!$C$7)","v":""},{"$f":"IF(A349=\"\",\"\",'MHP Family Income & Rent Limits'!$F$8)","v":""},{"$f":"IF(A349=\"\",\"\",'1. Checklist & Certification'!$G$4)","v":""},{"$f":"IF(A349=\"\",\"\",'1. Checklist & Certification'!$K$39)","v":""},{"$f":"IF(A349=\"\",\"\",'1. Checklist & Certification'!$K$43)","v":""},{"$f":"IF(A349=\"\",\"\",'1. Checklist & Certification'!$K$45)","v":""},{"$f":"IF(A349=\"\",\"\",'1. Checklist & Certification'!$K$49)","v":""},{"$f":"IF(A349=\"\",\"\",'1. Checklist & Certification'!$E$66)","v":""},{"$f":"IF(A349=\"\",\"\",'1. Checklist & Certification'!$E$67)","v":""},{"$f":"IF(A349=\"\",\"\",'1. Checklist & Certification'!$E$68)","v":""},{"$f":"IF(A349=\"\",\"\",'1. Checklist & Certification'!$G$66)","v":""},{"$f":"IF(A349=\"\",\"\",'1. Checklist & Certification'!$H$66)","v":""},{"$f":"IF(A349=\"\",\"\",'1. Checklist & Certification'!$I$66)","v":""},{"$f":"IF(A349=\"\",\"\",'1. Checklist & Certification'!$I$67)","v":""},{"$f":"IF(A349=\"\",\"\",'1. Checklist & Certification'!$I$68)","v":""},null,{"$f":"IF(C349=\"\",\"\",HLOOKUP(C349,'MHP Family Income & Rent Limits'!$E$12:$L$26,2,FALSE))","v":""},{"$f":"IF(C349=\"\",\"\",HLOOKUP(C349,'MHP Family Income & Rent Limits'!$E$12:$L$26,3,FALSE))","v":""},{"$f":"IF(C349=\"\",\"\",HLOOKUP(C349,'MHP Family Income & Rent Limits'!$E$12:$L$26,4,FALSE))","v":""},{"$f":"IF(C349=\"\",\"\",HLOOKUP(C349,'MHP Family Income & Rent Limits'!$E$12:$L$26,5,FALSE))","v":""},{"$f":"IF(C349=\"\",\"\",HLOOKUP(C349,'MHP Family Income & Rent Limits'!$E$12:$L$26,6,FALSE))","v":""},{"$f":"IF(C349=\"\",\"\",HLOOKUP(C349,'MHP Family Income & Rent Limits'!$E$12:$L$26,7,FALSE))","v":""},{"$f":"IF(C349=\"\",\"\",HLOOKUP(C349,'MHP Family Income & Rent Limits'!$E$12:$L$26,8,FALSE))","v":""},{"$f":"IF(C349=\"\",\"\",HLOOKUP(C349,'MHP Family Income & Rent Limits'!$E$12:$L$26,9,FALSE))","v":""},{"$f":"IF(C349=\"\",\"\",HLOOKUP(C349,'MHP Family Income & Rent Limits'!$E$12:$L$26,10,FALSE))","v":""},{"$f":"IF(C349=\"\",\"\",HLOOKUP(C349,'MHP Family Income & Rent Limits'!$E$12:$L$26,11,FALSE))","v":""},{"$f":"IF(C349=\"\",\"\",HLOOKUP(C349,'MHP Family Income & Rent Limits'!$E$12:$L$26,12,FALSE))","v":""},{"$f":"IF(C349=\"\",\"\",HLOOKUP(C349,'MHP Family Income & Rent Limits'!$E$12:$L$26,13,FALSE))","v":""},{"$f":"IF(C349=\"\",\"\",HLOOKUP(C349,'MHP Family Income & Rent Limits'!$E$12:$L$26,14,FALSE))","v":""},{"$f":"IF(C349=\"\",\"\",HLOOKUP(C349,'MHP Family Income & Rent Limits'!$E$12:$L$26,15,FALSE))","v":""}]
[{"$f":"IF('2. Assisted & Restricted Units'!A350=\"\",\"\",'2. Assisted & Restricted Units'!A350)","v":""},{"$f":"IF('2. Assisted & Restricted Units'!B350=\"\",\"\",'2. Assisted & Restricted Units'!B350)","v":""},{"$f":"IF('2. Assisted & Restricted Units'!D350=\"\",\"\",'2. Assisted & Restricted Units'!D350)","v":""},{"$f":"IF('2. Assisted & Restricted Units'!E350=\"\",\"\",'2. Assisted & Restricted Units'!E350)","v":""},{"$f":"IF('2. Assisted & Restricted Units'!H350=\"\",\"\",'2. Assisted & Restricted Units'!H350)","v":""},{"$f":"_xlfn.IFS(E350=\"\",\"\",E350>BO350,$BP$6,E350>BN350,$BO$6,E350>BM350,$BN$6,E350>BL350,$BM$6,E350>BK350,$BL$6,E350>BJ350,$BK$6,E350>BI350,$BJ$6,E350>BH350,$BI$6,E350>BG350,$BH$6,E350>BF350,$BG$6,E350>BE350,$BF$6,E350>BD350,$BE$6,E350>BC350,$BD$6,E350>=0,$BC$6)","v":""},{"$f":"IF('2. Assisted & Restricted Units'!T350=\"\",\"\",'2. Assisted & Restricted Units'!T350)","v":""},{"$f":"IF('2. Assisted & Restricted Units'!I350=\"\",\"\",'2. Assisted & Restricted Units'!I350)","v":""},{"$f":"IF('2. Assisted & Restricted Units'!AP350=\"\",\"\",'2. Assisted & Restricted Units'!AP350)","v":0},{"$f":"IF('2. Assisted & Restricted Units'!AT350=\"\",\"\",'2. Assisted & Restricted Units'!AT350)","v":""},0,{"$f":"IF('2. Assisted & Restricted Units'!AV350=\"\",\"\",'2. Assisted & Restricted Units'!AV350)","v":""},{"$f":"IF('2. Assisted & Restricted Units'!L350=\"\",\"\",'2. Assisted & Restricted Units'!L350)","v":""},{"$f":"IF('2. Assisted & Restricted Units'!M350=\"\",\"\",'2. Assisted & Restricted Units'!M350)","v":""},{"$f":"IF('2. Assisted & Restricted Units'!O350=\"\",\"\",'2. Assisted & Restricted Units'!O350)","v":""},{"$f":"IF('2. Assisted & Restricted Units'!P350=\"\",\"\",'2. Assisted & Restricted Units'!P350)","v":""},{"$f":"IF('2. Assisted & Restricted Units'!Q350=\"\",\"\",'2. Assisted & Restricted Units'!Q350)","v":""},{"$f":"IF('2. Assisted & Restricted Units'!R350=\"\",\"\",'2. Assisted & Restricted Units'!R350)","v":""},{"$f":"IF(A350=\"\",\"\",'1. Checklist & Certification'!$K$1)","v":""},{"$f":"IF(A350=\"\",\"\",'1. Checklist & Certification'!$C$62)","v":""},{"$f":"IF(A350=\"\",\"\",'1. Checklist & Certification'!$K$62)","v":""},{"$f":"IF(A350=\"\",\"\",'1. Checklist & Certification'!$C$6)","v":""},{"$f":"IF(A350=\"\",\"\",'1. Checklist & Certification'!$G$4)","v":""},{"$f":"IF(A350=\"\",\"\",'1. Checklist & Certification'!$C$7)","v":""},{"$f":"IF(A350=\"\",\"\",'1. Checklist & Certification'!$C$8)","v":""},{"$f":"IF(A350=\"\",\"\",'1. Checklist & Certification'!$F$7)","v":""},{"$f":"IF(A350=\"\",\"\",'1. Checklist & Certification'!$F$8)","v":""},{"$f":"IF(A350=\"\",\"\",'1. Checklist & Certification'!$B$9)","v":""},{"$f":"IF(A350=\"\",\"\",'1. Checklist & Certification'!$F$9)","v":""},{"$f":"IF(A350=\"\",\"\",'1. Checklist & Certification'!$C$10)","v":""},{"$f":"IF(A350=\"\",\"\",'1. Checklist & Certification'!$C$11)","v":""},{"$f":"IF(A350=\"\",\"\",'1. Checklist & Certification'!$C$12)","v":""},{"$f":"IF(A350=\"\",\"\",'1. Checklist & Certification'!$B$14)","v":""},{"$f":"IF(A350=\"\",\"\",'1. Checklist & Certification'!$E$14)","v":""},{"$f":"IF(B350=\"\",\"\",'1. Checklist & Certification'!$G$14)","v":""},{"$f":"IF(A350=\"\",\"\",'MHP Family Income & Rent Limits'!$B$3)","v":""},{"$f":"IF(A350=\"\",\"\",'MHP Family Income & Rent Limits'!$J$3)","v":""},{"$f":"IF(A350=\"\",\"\",'MHP Family Income & Rent Limits'!$E$4)","v":""},{"$f":"IF(A350=\"\",\"\",'MHP Family Income & Rent Limits'!$C$7)","v":""},{"$f":"IF(A350=\"\",\"\",'MHP Family Income & Rent Limits'!$F$8)","v":""},{"$f":"IF(A350=\"\",\"\",'1. Checklist & Certification'!$G$4)","v":""},{"$f":"IF(A350=\"\",\"\",'1. Checklist & Certification'!$K$39)","v":""},{"$f":"IF(A350=\"\",\"\",'1. Checklist & Certification'!$K$43)","v":""},{"$f":"IF(A350=\"\",\"\",'1. Checklist & Certification'!$K$45)","v":""},{"$f":"IF(A350=\"\",\"\",'1. Checklist & Certification'!$K$49)","v":""},{"$f":"IF(A350=\"\",\"\",'1. Checklist & Certification'!$E$66)","v":""},{"$f":"IF(A350=\"\",\"\",'1. Checklist & Certification'!$E$67)","v":""},{"$f":"IF(A350=\"\",\"\",'1. Checklist & Certification'!$E$68)","v":""},{"$f":"IF(A350=\"\",\"\",'1. Checklist & Certification'!$G$66)","v":""},{"$f":"IF(A350=\"\",\"\",'1. Checklist & Certification'!$H$66)","v":""},{"$f":"IF(A350=\"\",\"\",'1. Checklist & Certification'!$I$66)","v":""},{"$f":"IF(A350=\"\",\"\",'1. Checklist & Certification'!$I$67)","v":""},{"$f":"IF(A350=\"\",\"\",'1. Checklist & Certification'!$I$68)","v":""},null,{"$f":"IF(C350=\"\",\"\",HLOOKUP(C350,'MHP Family Income & Rent Limits'!$E$12:$L$26,2,FALSE))","v":""},{"$f":"IF(C350=\"\",\"\",HLOOKUP(C350,'MHP Family Income & Rent Limits'!$E$12:$L$26,3,FALSE))","v":""},{"$f":"IF(C350=\"\",\"\",HLOOKUP(C350,'MHP Family Income & Rent Limits'!$E$12:$L$26,4,FALSE))","v":""},{"$f":"IF(C350=\"\",\"\",HLOOKUP(C350,'MHP Family Income & Rent Limits'!$E$12:$L$26,5,FALSE))","v":""},{"$f":"IF(C350=\"\",\"\",HLOOKUP(C350,'MHP Family Income & Rent Limits'!$E$12:$L$26,6,FALSE))","v":""},{"$f":"IF(C350=\"\",\"\",HLOOKUP(C350,'MHP Family Income & Rent Limits'!$E$12:$L$26,7,FALSE))","v":""},{"$f":"IF(C350=\"\",\"\",HLOOKUP(C350,'MHP Family Income & Rent Limits'!$E$12:$L$26,8,FALSE))","v":""},{"$f":"IF(C350=\"\",\"\",HLOOKUP(C350,'MHP Family Income & Rent Limits'!$E$12:$L$26,9,FALSE))","v":""},{"$f":"IF(C350=\"\",\"\",HLOOKUP(C350,'MHP Family Income & Rent Limits'!$E$12:$L$26,10,FALSE))","v":""},{"$f":"IF(C350=\"\",\"\",HLOOKUP(C350,'MHP Family Income & Rent Limits'!$E$12:$L$26,11,FALSE))","v":""},{"$f":"IF(C350=\"\",\"\",HLOOKUP(C350,'MHP Family Income & Rent Limits'!$E$12:$L$26,12,FALSE))","v":""},{"$f":"IF(C350=\"\",\"\",HLOOKUP(C350,'MHP Family Income & Rent Limits'!$E$12:$L$26,13,FALSE))","v":""},{"$f":"IF(C350=\"\",\"\",HLOOKUP(C350,'MHP Family Income & Rent Limits'!$E$12:$L$26,14,FALSE))","v":""},{"$f":"IF(C350=\"\",\"\",HLOOKUP(C350,'MHP Family Income & Rent Limits'!$E$12:$L$26,15,FALSE))","v":""}]
[{"$f":"IF('2. Assisted & Restricted Units'!A351=\"\",\"\",'2. Assisted & Restricted Units'!A351)","v":""},{"$f":"IF('2. Assisted & Restricted Units'!B351=\"\",\"\",'2. Assisted & Restricted Units'!B351)","v":""},{"$f":"IF('2. Assisted & Restricted Units'!D351=\"\",\"\",'2. Assisted & Restricted Units'!D351)","v":""},{"$f":"IF('2. Assisted & Restricted Units'!E351=\"\",\"\",'2. Assisted & Restricted Units'!E351)","v":""},{"$f":"IF('2. Assisted & Restricted Units'!H351=\"\",\"\",'2. Assisted & Restricted Units'!H351)","v":""},{"$f":"_xlfn.IFS(E351=\"\",\"\",E351>BO351,$BP$6,E351>BN351,$BO$6,E351>BM351,$BN$6,E351>BL351,$BM$6,E351>BK351,$BL$6,E351>BJ351,$BK$6,E351>BI351,$BJ$6,E351>BH351,$BI$6,E351>BG351,$BH$6,E351>BF351,$BG$6,E351>BE351,$BF$6,E351>BD351,$BE$6,E351>BC351,$BD$6,E351>=0,$BC$6)","v":""},{"$f":"IF('2. Assisted & Restricted Units'!T351=\"\",\"\",'2. Assisted & Restricted Units'!T351)","v":""},{"$f":"IF('2. Assisted & Restricted Units'!I351=\"\",\"\",'2. Assisted & Restricted Units'!I351)","v":""},{"$f":"IF('2. Assisted & Restricted Units'!AP351=\"\",\"\",'2. Assisted & Restricted Units'!AP351)","v":0},{"$f":"IF('2. Assisted & Restricted Units'!AT351=\"\",\"\",'2. Assisted & Restricted Units'!AT351)","v":""},0,{"$f":"IF('2. Assisted & Restricted Units'!AV351=\"\",\"\",'2. Assisted & Restricted Units'!AV351)","v":""},{"$f":"IF('2. Assisted & Restricted Units'!L351=\"\",\"\",'2. Assisted & Restricted Units'!L351)","v":""},{"$f":"IF('2. Assisted & Restricted Units'!M351=\"\",\"\",'2. Assisted & Restricted Units'!M351)","v":""},{"$f":"IF('2. Assisted & Restricted Units'!O351=\"\",\"\",'2. Assisted & Restricted Units'!O351)","v":""},{"$f":"IF('2. Assisted & Restricted Units'!P351=\"\",\"\",'2. Assisted & Restricted Units'!P351)","v":""},{"$f":"IF('2. Assisted & Restricted Units'!Q351=\"\",\"\",'2. Assisted & Restricted Units'!Q351)","v":""},{"$f":"IF('2. Assisted & Restricted Units'!R351=\"\",\"\",'2. Assisted & Restricted Units'!R351)","v":""},{"$f":"IF(A351=\"\",\"\",'1. Checklist & Certification'!$K$1)","v":""},{"$f":"IF(A351=\"\",\"\",'1. Checklist & Certification'!$C$62)","v":""},{"$f":"IF(A351=\"\",\"\",'1. Checklist & Certification'!$K$62)","v":""},{"$f":"IF(A351=\"\",\"\",'1. Checklist & Certification'!$C$6)","v":""},{"$f":"IF(A351=\"\",\"\",'1. Checklist & Certification'!$G$4)","v":""},{"$f":"IF(A351=\"\",\"\",'1. Checklist & Certification'!$C$7)","v":""},{"$f":"IF(A351=\"\",\"\",'1. Checklist & Certification'!$C$8)","v":""},{"$f":"IF(A351=\"\",\"\",'1. Checklist & Certification'!$F$7)","v":""},{"$f":"IF(A351=\"\",\"\",'1. Checklist & Certification'!$F$8)","v":""},{"$f":"IF(A351=\"\",\"\",'1. Checklist & Certification'!$B$9)","v":""},{"$f":"IF(A351=\"\",\"\",'1. Checklist & Certification'!$F$9)","v":""},{"$f":"IF(A351=\"\",\"\",'1. Checklist & Certification'!$C$10)","v":""},{"$f":"IF(A351=\"\",\"\",'1. Checklist & Certification'!$C$11)","v":""},{"$f":"IF(A351=\"\",\"\",'1. Checklist & Certification'!$C$12)","v":""},{"$f":"IF(A351=\"\",\"\",'1. Checklist & Certification'!$B$14)","v":""},{"$f":"IF(A351=\"\",\"\",'1. Checklist & Certification'!$E$14)","v":""},{"$f":"IF(B351=\"\",\"\",'1. Checklist & Certification'!$G$14)","v":""},{"$f":"IF(A351=\"\",\"\",'MHP Family Income & Rent Limits'!$B$3)","v":""},{"$f":"IF(A351=\"\",\"\",'MHP Family Income & Rent Limits'!$J$3)","v":""},{"$f":"IF(A351=\"\",\"\",'MHP Family Income & Rent Limits'!$E$4)","v":""},{"$f":"IF(A351=\"\",\"\",'MHP Family Income & Rent Limits'!$C$7)","v":""},{"$f":"IF(A351=\"\",\"\",'MHP Family Income & Rent Limits'!$F$8)","v":""},{"$f":"IF(A351=\"\",\"\",'1. Checklist & Certification'!$G$4)","v":""},{"$f":"IF(A351=\"\",\"\",'1. Checklist & Certification'!$K$39)","v":""},{"$f":"IF(A351=\"\",\"\",'1. Checklist & Certification'!$K$43)","v":""},{"$f":"IF(A351=\"\",\"\",'1. Checklist & Certification'!$K$45)","v":""},{"$f":"IF(A351=\"\",\"\",'1. Checklist & Certification'!$K$49)","v":""},{"$f":"IF(A351=\"\",\"\",'1. Checklist & Certification'!$E$66)","v":""},{"$f":"IF(A351=\"\",\"\",'1. Checklist & Certification'!$E$67)","v":""},{"$f":"IF(A351=\"\",\"\",'1. Checklist & Certification'!$E$68)","v":""},{"$f":"IF(A351=\"\",\"\",'1. Checklist & Certification'!$G$66)","v":""},{"$f":"IF(A351=\"\",\"\",'1. Checklist & Certification'!$H$66)","v":""},{"$f":"IF(A351=\"\",\"\",'1. Checklist & Certification'!$I$66)","v":""},{"$f":"IF(A351=\"\",\"\",'1. Checklist & Certification'!$I$67)","v":""},{"$f":"IF(A351=\"\",\"\",'1. Checklist & Certification'!$I$68)","v":""},null,{"$f":"IF(C351=\"\",\"\",HLOOKUP(C351,'MHP Family Income & Rent Limits'!$E$12:$L$26,2,FALSE))","v":""},{"$f":"IF(C351=\"\",\"\",HLOOKUP(C351,'MHP Family Income & Rent Limits'!$E$12:$L$26,3,FALSE))","v":""},{"$f":"IF(C351=\"\",\"\",HLOOKUP(C351,'MHP Family Income & Rent Limits'!$E$12:$L$26,4,FALSE))","v":""},{"$f":"IF(C351=\"\",\"\",HLOOKUP(C351,'MHP Family Income & Rent Limits'!$E$12:$L$26,5,FALSE))","v":""},{"$f":"IF(C351=\"\",\"\",HLOOKUP(C351,'MHP Family Income & Rent Limits'!$E$12:$L$26,6,FALSE))","v":""},{"$f":"IF(C351=\"\",\"\",HLOOKUP(C351,'MHP Family Income & Rent Limits'!$E$12:$L$26,7,FALSE))","v":""},{"$f":"IF(C351=\"\",\"\",HLOOKUP(C351,'MHP Family Income & Rent Limits'!$E$12:$L$26,8,FALSE))","v":""},{"$f":"IF(C351=\"\",\"\",HLOOKUP(C351,'MHP Family Income & Rent Limits'!$E$12:$L$26,9,FALSE))","v":""},{"$f":"IF(C351=\"\",\"\",HLOOKUP(C351,'MHP Family Income & Rent Limits'!$E$12:$L$26,10,FALSE))","v":""},{"$f":"IF(C351=\"\",\"\",HLOOKUP(C351,'MHP Family Income & Rent Limits'!$E$12:$L$26,11,FALSE))","v":""},{"$f":"IF(C351=\"\",\"\",HLOOKUP(C351,'MHP Family Income & Rent Limits'!$E$12:$L$26,12,FALSE))","v":""},{"$f":"IF(C351=\"\",\"\",HLOOKUP(C351,'MHP Family Income & Rent Limits'!$E$12:$L$26,13,FALSE))","v":""},{"$f":"IF(C351=\"\",\"\",HLOOKUP(C351,'MHP Family Income & Rent Limits'!$E$12:$L$26,14,FALSE))","v":""},{"$f":"IF(C351=\"\",\"\",HLOOKUP(C351,'MHP Family Income & Rent Limits'!$E$12:$L$26,15,FALSE))","v":""}]
[{"$f":"IF('2. Assisted & Restricted Units'!A352=\"\",\"\",'2. Assisted & Restricted Units'!A352)","v":""},{"$f":"IF('2. Assisted & Restricted Units'!B352=\"\",\"\",'2. Assisted & Restricted Units'!B352)","v":""},{"$f":"IF('2. Assisted & Restricted Units'!D352=\"\",\"\",'2. Assisted & Restricted Units'!D352)","v":""},{"$f":"IF('2. Assisted & Restricted Units'!E352=\"\",\"\",'2. Assisted & Restricted Units'!E352)","v":""},{"$f":"IF('2. Assisted & Restricted Units'!H352=\"\",\"\",'2. Assisted & Restricted Units'!H352)","v":""},{"$f":"_xlfn.IFS(E352=\"\",\"\",E352>BO352,$BP$6,E352>BN352,$BO$6,E352>BM352,$BN$6,E352>BL352,$BM$6,E352>BK352,$BL$6,E352>BJ352,$BK$6,E352>BI352,$BJ$6,E352>BH352,$BI$6,E352>BG352,$BH$6,E352>BF352,$BG$6,E352>BE352,$BF$6,E352>BD352,$BE$6,E352>BC352,$BD$6,E352>=0,$BC$6)","v":""},{"$f":"IF('2. Assisted & Restricted Units'!T352=\"\",\"\",'2. Assisted & Restricted Units'!T352)","v":""},{"$f":"IF('2. Assisted & Restricted Units'!I352=\"\",\"\",'2. Assisted & Restricted Units'!I352)","v":""},{"$f":"IF('2. Assisted & Restricted Units'!AP352=\"\",\"\",'2. Assisted & Restricted Units'!AP352)","v":0},{"$f":"IF('2. Assisted & Restricted Units'!AT352=\"\",\"\",'2. Assisted & Restricted Units'!AT352)","v":""},0,{"$f":"IF('2. Assisted & Restricted Units'!AV352=\"\",\"\",'2. Assisted & Restricted Units'!AV352)","v":""},{"$f":"IF('2. Assisted & Restricted Units'!L352=\"\",\"\",'2. Assisted & Restricted Units'!L352)","v":""},{"$f":"IF('2. Assisted & Restricted Units'!M352=\"\",\"\",'2. Assisted & Restricted Units'!M352)","v":""},{"$f":"IF('2. Assisted & Restricted Units'!O352=\"\",\"\",'2. Assisted & Restricted Units'!O352)","v":""},{"$f":"IF('2. Assisted & Restricted Units'!P352=\"\",\"\",'2. Assisted & Restricted Units'!P352)","v":""},{"$f":"IF('2. Assisted & Restricted Units'!Q352=\"\",\"\",'2. Assisted & Restricted Units'!Q352)","v":""},{"$f":"IF('2. Assisted & Restricted Units'!R352=\"\",\"\",'2. Assisted & Restricted Units'!R352)","v":""},{"$f":"IF(A352=\"\",\"\",'1. Checklist & Certification'!$K$1)","v":""},{"$f":"IF(A352=\"\",\"\",'1. Checklist & Certification'!$C$62)","v":""},{"$f":"IF(A352=\"\",\"\",'1. Checklist & Certification'!$K$62)","v":""},{"$f":"IF(A352=\"\",\"\",'1. Checklist & Certification'!$C$6)","v":""},{"$f":"IF(A352=\"\",\"\",'1. Checklist & Certification'!$G$4)","v":""},{"$f":"IF(A352=\"\",\"\",'1. Checklist & Certification'!$C$7)","v":""},{"$f":"IF(A352=\"\",\"\",'1. Checklist & Certification'!$C$8)","v":""},{"$f":"IF(A352=\"\",\"\",'1. Checklist & Certification'!$F$7)","v":""},{"$f":"IF(A352=\"\",\"\",'1. Checklist & Certification'!$F$8)","v":""},{"$f":"IF(A352=\"\",\"\",'1. Checklist & Certification'!$B$9)","v":""},{"$f":"IF(A352=\"\",\"\",'1. Checklist & Certification'!$F$9)","v":""},{"$f":"IF(A352=\"\",\"\",'1. Checklist & Certification'!$C$10)","v":""},{"$f":"IF(A352=\"\",\"\",'1. Checklist & Certification'!$C$11)","v":""},{"$f":"IF(A352=\"\",\"\",'1. Checklist & Certification'!$C$12)","v":""},{"$f":"IF(A352=\"\",\"\",'1. Checklist & Certification'!$B$14)","v":""},{"$f":"IF(A352=\"\",\"\",'1. Checklist & Certification'!$E$14)","v":""},{"$f":"IF(B352=\"\",\"\",'1. Checklist & Certification'!$G$14)","v":""},{"$f":"IF(A352=\"\",\"\",'MHP Family Income & Rent Limits'!$B$3)","v":""},{"$f":"IF(A352=\"\",\"\",'MHP Family Income & Rent Limits'!$J$3)","v":""},{"$f":"IF(A352=\"\",\"\",'MHP Family Income & Rent Limits'!$E$4)","v":""},{"$f":"IF(A352=\"\",\"\",'MHP Family Income & Rent Limits'!$C$7)","v":""},{"$f":"IF(A352=\"\",\"\",'MHP Family Income & Rent Limits'!$F$8)","v":""},{"$f":"IF(A352=\"\",\"\",'1. Checklist & Certification'!$G$4)","v":""},{"$f":"IF(A352=\"\",\"\",'1. Checklist & Certification'!$K$39)","v":""},{"$f":"IF(A352=\"\",\"\",'1. Checklist & Certification'!$K$43)","v":""},{"$f":"IF(A352=\"\",\"\",'1. Checklist & Certification'!$K$45)","v":""},{"$f":"IF(A352=\"\",\"\",'1. Checklist & Certification'!$K$49)","v":""},{"$f":"IF(A352=\"\",\"\",'1. Checklist & Certification'!$E$66)","v":""},{"$f":"IF(A352=\"\",\"\",'1. Checklist & Certification'!$E$67)","v":""},{"$f":"IF(A352=\"\",\"\",'1. Checklist & Certification'!$E$68)","v":""},{"$f":"IF(A352=\"\",\"\",'1. Checklist & Certification'!$G$66)","v":""},{"$f":"IF(A352=\"\",\"\",'1. Checklist & Certification'!$H$66)","v":""},{"$f":"IF(A352=\"\",\"\",'1. Checklist & Certification'!$I$66)","v":""},{"$f":"IF(A352=\"\",\"\",'1. Checklist & Certification'!$I$67)","v":""},{"$f":"IF(A352=\"\",\"\",'1. Checklist & Certification'!$I$68)","v":""},null,{"$f":"IF(C352=\"\",\"\",HLOOKUP(C352,'MHP Family Income & Rent Limits'!$E$12:$L$26,2,FALSE))","v":""},{"$f":"IF(C352=\"\",\"\",HLOOKUP(C352,'MHP Family Income & Rent Limits'!$E$12:$L$26,3,FALSE))","v":""},{"$f":"IF(C352=\"\",\"\",HLOOKUP(C352,'MHP Family Income & Rent Limits'!$E$12:$L$26,4,FALSE))","v":""},{"$f":"IF(C352=\"\",\"\",HLOOKUP(C352,'MHP Family Income & Rent Limits'!$E$12:$L$26,5,FALSE))","v":""},{"$f":"IF(C352=\"\",\"\",HLOOKUP(C352,'MHP Family Income & Rent Limits'!$E$12:$L$26,6,FALSE))","v":""},{"$f":"IF(C352=\"\",\"\",HLOOKUP(C352,'MHP Family Income & Rent Limits'!$E$12:$L$26,7,FALSE))","v":""},{"$f":"IF(C352=\"\",\"\",HLOOKUP(C352,'MHP Family Income & Rent Limits'!$E$12:$L$26,8,FALSE))","v":""},{"$f":"IF(C352=\"\",\"\",HLOOKUP(C352,'MHP Family Income & Rent Limits'!$E$12:$L$26,9,FALSE))","v":""},{"$f":"IF(C352=\"\",\"\",HLOOKUP(C352,'MHP Family Income & Rent Limits'!$E$12:$L$26,10,FALSE))","v":""},{"$f":"IF(C352=\"\",\"\",HLOOKUP(C352,'MHP Family Income & Rent Limits'!$E$12:$L$26,11,FALSE))","v":""},{"$f":"IF(C352=\"\",\"\",HLOOKUP(C352,'MHP Family Income & Rent Limits'!$E$12:$L$26,12,FALSE))","v":""},{"$f":"IF(C352=\"\",\"\",HLOOKUP(C352,'MHP Family Income & Rent Limits'!$E$12:$L$26,13,FALSE))","v":""},{"$f":"IF(C352=\"\",\"\",HLOOKUP(C352,'MHP Family Income & Rent Limits'!$E$12:$L$26,14,FALSE))","v":""},{"$f":"IF(C352=\"\",\"\",HLOOKUP(C352,'MHP Family Income & Rent Limits'!$E$12:$L$26,15,FALSE))","v":""}]
[{"$f":"IF('2. Assisted & Restricted Units'!A353=\"\",\"\",'2. Assisted & Restricted Units'!A353)","v":""},{"$f":"IF('2. Assisted & Restricted Units'!B353=\"\",\"\",'2. Assisted & Restricted Units'!B353)","v":""},{"$f":"IF('2. Assisted & Restricted Units'!D353=\"\",\"\",'2. Assisted & Restricted Units'!D353)","v":""},{"$f":"IF('2. Assisted & Restricted Units'!E353=\"\",\"\",'2. Assisted & Restricted Units'!E353)","v":""},{"$f":"IF('2. Assisted & Restricted Units'!H353=\"\",\"\",'2. Assisted & Restricted Units'!H353)","v":""},{"$f":"_xlfn.IFS(E353=\"\",\"\",E353>BO353,$BP$6,E353>BN353,$BO$6,E353>BM353,$BN$6,E353>BL353,$BM$6,E353>BK353,$BL$6,E353>BJ353,$BK$6,E353>BI353,$BJ$6,E353>BH353,$BI$6,E353>BG353,$BH$6,E353>BF353,$BG$6,E353>BE353,$BF$6,E353>BD353,$BE$6,E353>BC353,$BD$6,E353>=0,$BC$6)","v":""},{"$f":"IF('2. Assisted & Restricted Units'!T353=\"\",\"\",'2. Assisted & Restricted Units'!T353)","v":""},{"$f":"IF('2. Assisted & Restricted Units'!I353=\"\",\"\",'2. Assisted & Restricted Units'!I353)","v":""},{"$f":"IF('2. Assisted & Restricted Units'!AP353=\"\",\"\",'2. Assisted & Restricted Units'!AP353)","v":0},{"$f":"IF('2. Assisted & Restricted Units'!AT353=\"\",\"\",'2. Assisted & Restricted Units'!AT353)","v":""},0,{"$f":"IF('2. Assisted & Restricted Units'!AV353=\"\",\"\",'2. Assisted & Restricted Units'!AV353)","v":""},{"$f":"IF('2. Assisted & Restricted Units'!L353=\"\",\"\",'2. Assisted & Restricted Units'!L353)","v":""},{"$f":"IF('2. Assisted & Restricted Units'!M353=\"\",\"\",'2. Assisted & Restricted Units'!M353)","v":""},{"$f":"IF('2. Assisted & Restricted Units'!O353=\"\",\"\",'2. Assisted & Restricted Units'!O353)","v":""},{"$f":"IF('2. Assisted & Restricted Units'!P353=\"\",\"\",'2. Assisted & Restricted Units'!P353)","v":""},{"$f":"IF('2. Assisted & Restricted Units'!Q353=\"\",\"\",'2. Assisted & Restricted Units'!Q353)","v":""},{"$f":"IF('2. Assisted & Restricted Units'!R353=\"\",\"\",'2. Assisted & Restricted Units'!R353)","v":""},{"$f":"IF(A353=\"\",\"\",'1. Checklist & Certification'!$K$1)","v":""},{"$f":"IF(A353=\"\",\"\",'1. Checklist & Certification'!$C$62)","v":""},{"$f":"IF(A353=\"\",\"\",'1. Checklist & Certification'!$K$62)","v":""},{"$f":"IF(A353=\"\",\"\",'1. Checklist & Certification'!$C$6)","v":""},{"$f":"IF(A353=\"\",\"\",'1. Checklist & Certification'!$G$4)","v":""},{"$f":"IF(A353=\"\",\"\",'1. Checklist & Certification'!$C$7)","v":""},{"$f":"IF(A353=\"\",\"\",'1. Checklist & Certification'!$C$8)","v":""},{"$f":"IF(A353=\"\",\"\",'1. Checklist & Certification'!$F$7)","v":""},{"$f":"IF(A353=\"\",\"\",'1. Checklist & Certification'!$F$8)","v":""},{"$f":"IF(A353=\"\",\"\",'1. Checklist & Certification'!$B$9)","v":""},{"$f":"IF(A353=\"\",\"\",'1. Checklist & Certification'!$F$9)","v":""},{"$f":"IF(A353=\"\",\"\",'1. Checklist & Certification'!$C$10)","v":""},{"$f":"IF(A353=\"\",\"\",'1. Checklist & Certification'!$C$11)","v":""},{"$f":"IF(A353=\"\",\"\",'1. Checklist & Certification'!$C$12)","v":""},{"$f":"IF(A353=\"\",\"\",'1. Checklist & Certification'!$B$14)","v":""},{"$f":"IF(A353=\"\",\"\",'1. Checklist & Certification'!$E$14)","v":""},{"$f":"IF(B353=\"\",\"\",'1. Checklist & Certification'!$G$14)","v":""},{"$f":"IF(A353=\"\",\"\",'MHP Family Income & Rent Limits'!$B$3)","v":""},{"$f":"IF(A353=\"\",\"\",'MHP Family Income & Rent Limits'!$J$3)","v":""},{"$f":"IF(A353=\"\",\"\",'MHP Family Income & Rent Limits'!$E$4)","v":""},{"$f":"IF(A353=\"\",\"\",'MHP Family Income & Rent Limits'!$C$7)","v":""},{"$f":"IF(A353=\"\",\"\",'MHP Family Income & Rent Limits'!$F$8)","v":""},{"$f":"IF(A353=\"\",\"\",'1. Checklist & Certification'!$G$4)","v":""},{"$f":"IF(A353=\"\",\"\",'1. Checklist & Certification'!$K$39)","v":""},{"$f":"IF(A353=\"\",\"\",'1. Checklist & Certification'!$K$43)","v":""},{"$f":"IF(A353=\"\",\"\",'1. Checklist & Certification'!$K$45)","v":""},{"$f":"IF(A353=\"\",\"\",'1. Checklist & Certification'!$K$49)","v":""},{"$f":"IF(A353=\"\",\"\",'1. Checklist & Certification'!$E$66)","v":""},{"$f":"IF(A353=\"\",\"\",'1. Checklist & Certification'!$E$67)","v":""},{"$f":"IF(A353=\"\",\"\",'1. Checklist & Certification'!$E$68)","v":""},{"$f":"IF(A353=\"\",\"\",'1. Checklist & Certification'!$G$66)","v":""},{"$f":"IF(A353=\"\",\"\",'1. Checklist & Certification'!$H$66)","v":""},{"$f":"IF(A353=\"\",\"\",'1. Checklist & Certification'!$I$66)","v":""},{"$f":"IF(A353=\"\",\"\",'1. Checklist & Certification'!$I$67)","v":""},{"$f":"IF(A353=\"\",\"\",'1. Checklist & Certification'!$I$68)","v":""},null,{"$f":"IF(C353=\"\",\"\",HLOOKUP(C353,'MHP Family Income & Rent Limits'!$E$12:$L$26,2,FALSE))","v":""},{"$f":"IF(C353=\"\",\"\",HLOOKUP(C353,'MHP Family Income & Rent Limits'!$E$12:$L$26,3,FALSE))","v":""},{"$f":"IF(C353=\"\",\"\",HLOOKUP(C353,'MHP Family Income & Rent Limits'!$E$12:$L$26,4,FALSE))","v":""},{"$f":"IF(C353=\"\",\"\",HLOOKUP(C353,'MHP Family Income & Rent Limits'!$E$12:$L$26,5,FALSE))","v":""},{"$f":"IF(C353=\"\",\"\",HLOOKUP(C353,'MHP Family Income & Rent Limits'!$E$12:$L$26,6,FALSE))","v":""},{"$f":"IF(C353=\"\",\"\",HLOOKUP(C353,'MHP Family Income & Rent Limits'!$E$12:$L$26,7,FALSE))","v":""},{"$f":"IF(C353=\"\",\"\",HLOOKUP(C353,'MHP Family Income & Rent Limits'!$E$12:$L$26,8,FALSE))","v":""},{"$f":"IF(C353=\"\",\"\",HLOOKUP(C353,'MHP Family Income & Rent Limits'!$E$12:$L$26,9,FALSE))","v":""},{"$f":"IF(C353=\"\",\"\",HLOOKUP(C353,'MHP Family Income & Rent Limits'!$E$12:$L$26,10,FALSE))","v":""},{"$f":"IF(C353=\"\",\"\",HLOOKUP(C353,'MHP Family Income & Rent Limits'!$E$12:$L$26,11,FALSE))","v":""},{"$f":"IF(C353=\"\",\"\",HLOOKUP(C353,'MHP Family Income & Rent Limits'!$E$12:$L$26,12,FALSE))","v":""},{"$f":"IF(C353=\"\",\"\",HLOOKUP(C353,'MHP Family Income & Rent Limits'!$E$12:$L$26,13,FALSE))","v":""},{"$f":"IF(C353=\"\",\"\",HLOOKUP(C353,'MHP Family Income & Rent Limits'!$E$12:$L$26,14,FALSE))","v":""},{"$f":"IF(C353=\"\",\"\",HLOOKUP(C353,'MHP Family Income & Rent Limits'!$E$12:$L$26,15,FALSE))","v":""}]
[{"$f":"IF('2. Assisted & Restricted Units'!A354=\"\",\"\",'2. Assisted & Restricted Units'!A354)","v":""},{"$f":"IF('2. Assisted & Restricted Units'!B354=\"\",\"\",'2. Assisted & Restricted Units'!B354)","v":""},{"$f":"IF('2. Assisted & Restricted Units'!D354=\"\",\"\",'2. Assisted & Restricted Units'!D354)","v":""},{"$f":"IF('2. Assisted & Restricted Units'!E354=\"\",\"\",'2. Assisted & Restricted Units'!E354)","v":""},{"$f":"IF('2. Assisted & Restricted Units'!H354=\"\",\"\",'2. Assisted & Restricted Units'!H354)","v":""},{"$f":"_xlfn.IFS(E354=\"\",\"\",E354>BO354,$BP$6,E354>BN354,$BO$6,E354>BM354,$BN$6,E354>BL354,$BM$6,E354>BK354,$BL$6,E354>BJ354,$BK$6,E354>BI354,$BJ$6,E354>BH354,$BI$6,E354>BG354,$BH$6,E354>BF354,$BG$6,E354>BE354,$BF$6,E354>BD354,$BE$6,E354>BC354,$BD$6,E354>=0,$BC$6)","v":""},{"$f":"IF('2. Assisted & Restricted Units'!T354=\"\",\"\",'2. Assisted & Restricted Units'!T354)","v":""},{"$f":"IF('2. Assisted & Restricted Units'!I354=\"\",\"\",'2. Assisted & Restricted Units'!I354)","v":""},{"$f":"IF('2. Assisted & Restricted Units'!AP354=\"\",\"\",'2. Assisted & Restricted Units'!AP354)","v":0},{"$f":"IF('2. Assisted & Restricted Units'!AT354=\"\",\"\",'2. Assisted & Restricted Units'!AT354)","v":""},0,{"$f":"IF('2. Assisted & Restricted Units'!AV354=\"\",\"\",'2. Assisted & Restricted Units'!AV354)","v":""},{"$f":"IF('2. Assisted & Restricted Units'!L354=\"\",\"\",'2. Assisted & Restricted Units'!L354)","v":""},{"$f":"IF('2. Assisted & Restricted Units'!M354=\"\",\"\",'2. Assisted & Restricted Units'!M354)","v":""},{"$f":"IF('2. Assisted & Restricted Units'!O354=\"\",\"\",'2. Assisted & Restricted Units'!O354)","v":""},{"$f":"IF('2. Assisted & Restricted Units'!P354=\"\",\"\",'2. Assisted & Restricted Units'!P354)","v":""},{"$f":"IF('2. Assisted & Restricted Units'!Q354=\"\",\"\",'2. Assisted & Restricted Units'!Q354)","v":""},{"$f":"IF('2. Assisted & Restricted Units'!R354=\"\",\"\",'2. Assisted & Restricted Units'!R354)","v":""},{"$f":"IF(A354=\"\",\"\",'1. Checklist & Certification'!$K$1)","v":""},{"$f":"IF(A354=\"\",\"\",'1. Checklist & Certification'!$C$62)","v":""},{"$f":"IF(A354=\"\",\"\",'1. Checklist & Certification'!$K$62)","v":""},{"$f":"IF(A354=\"\",\"\",'1. Checklist & Certification'!$C$6)","v":""},{"$f":"IF(A354=\"\",\"\",'1. Checklist & Certification'!$G$4)","v":""},{"$f":"IF(A354=\"\",\"\",'1. Checklist & Certification'!$C$7)","v":""},{"$f":"IF(A354=\"\",\"\",'1. Checklist & Certification'!$C$8)","v":""},{"$f":"IF(A354=\"\",\"\",'1. Checklist & Certification'!$F$7)","v":""},{"$f":"IF(A354=\"\",\"\",'1. Checklist & Certification'!$F$8)","v":""},{"$f":"IF(A354=\"\",\"\",'1. Checklist & Certification'!$B$9)","v":""},{"$f":"IF(A354=\"\",\"\",'1. Checklist & Certification'!$F$9)","v":""},{"$f":"IF(A354=\"\",\"\",'1. Checklist & Certification'!$C$10)","v":""},{"$f":"IF(A354=\"\",\"\",'1. Checklist & Certification'!$C$11)","v":""},{"$f":"IF(A354=\"\",\"\",'1. Checklist & Certification'!$C$12)","v":""},{"$f":"IF(A354=\"\",\"\",'1. Checklist & Certification'!$B$14)","v":""},{"$f":"IF(A354=\"\",\"\",'1. Checklist & Certification'!$E$14)","v":""},{"$f":"IF(B354=\"\",\"\",'1. Checklist & Certification'!$G$14)","v":""},{"$f":"IF(A354=\"\",\"\",'MHP Family Income & Rent Limits'!$B$3)","v":""},{"$f":"IF(A354=\"\",\"\",'MHP Family Income & Rent Limits'!$J$3)","v":""},{"$f":"IF(A354=\"\",\"\",'MHP Family Income & Rent Limits'!$E$4)","v":""},{"$f":"IF(A354=\"\",\"\",'MHP Family Income & Rent Limits'!$C$7)","v":""},{"$f":"IF(A354=\"\",\"\",'MHP Family Income & Rent Limits'!$F$8)","v":""},{"$f":"IF(A354=\"\",\"\",'1. Checklist & Certification'!$G$4)","v":""},{"$f":"IF(A354=\"\",\"\",'1. Checklist & Certification'!$K$39)","v":""},{"$f":"IF(A354=\"\",\"\",'1. Checklist & Certification'!$K$43)","v":""},{"$f":"IF(A354=\"\",\"\",'1. Checklist & Certification'!$K$45)","v":""},{"$f":"IF(A354=\"\",\"\",'1. Checklist & Certification'!$K$49)","v":""},{"$f":"IF(A354=\"\",\"\",'1. Checklist & Certification'!$E$66)","v":""},{"$f":"IF(A354=\"\",\"\",'1. Checklist & Certification'!$E$67)","v":""},{"$f":"IF(A354=\"\",\"\",'1. Checklist & Certification'!$E$68)","v":""},{"$f":"IF(A354=\"\",\"\",'1. Checklist & Certification'!$G$66)","v":""},{"$f":"IF(A354=\"\",\"\",'1. Checklist & Certification'!$H$66)","v":""},{"$f":"IF(A354=\"\",\"\",'1. Checklist & Certification'!$I$66)","v":""},{"$f":"IF(A354=\"\",\"\",'1. Checklist & Certification'!$I$67)","v":""},{"$f":"IF(A354=\"\",\"\",'1. Checklist & Certification'!$I$68)","v":""},null,{"$f":"IF(C354=\"\",\"\",HLOOKUP(C354,'MHP Family Income & Rent Limits'!$E$12:$L$26,2,FALSE))","v":""},{"$f":"IF(C354=\"\",\"\",HLOOKUP(C354,'MHP Family Income & Rent Limits'!$E$12:$L$26,3,FALSE))","v":""},{"$f":"IF(C354=\"\",\"\",HLOOKUP(C354,'MHP Family Income & Rent Limits'!$E$12:$L$26,4,FALSE))","v":""},{"$f":"IF(C354=\"\",\"\",HLOOKUP(C354,'MHP Family Income & Rent Limits'!$E$12:$L$26,5,FALSE))","v":""},{"$f":"IF(C354=\"\",\"\",HLOOKUP(C354,'MHP Family Income & Rent Limits'!$E$12:$L$26,6,FALSE))","v":""},{"$f":"IF(C354=\"\",\"\",HLOOKUP(C354,'MHP Family Income & Rent Limits'!$E$12:$L$26,7,FALSE))","v":""},{"$f":"IF(C354=\"\",\"\",HLOOKUP(C354,'MHP Family Income & Rent Limits'!$E$12:$L$26,8,FALSE))","v":""},{"$f":"IF(C354=\"\",\"\",HLOOKUP(C354,'MHP Family Income & Rent Limits'!$E$12:$L$26,9,FALSE))","v":""},{"$f":"IF(C354=\"\",\"\",HLOOKUP(C354,'MHP Family Income & Rent Limits'!$E$12:$L$26,10,FALSE))","v":""},{"$f":"IF(C354=\"\",\"\",HLOOKUP(C354,'MHP Family Income & Rent Limits'!$E$12:$L$26,11,FALSE))","v":""},{"$f":"IF(C354=\"\",\"\",HLOOKUP(C354,'MHP Family Income & Rent Limits'!$E$12:$L$26,12,FALSE))","v":""},{"$f":"IF(C354=\"\",\"\",HLOOKUP(C354,'MHP Family Income & Rent Limits'!$E$12:$L$26,13,FALSE))","v":""},{"$f":"IF(C354=\"\",\"\",HLOOKUP(C354,'MHP Family Income & Rent Limits'!$E$12:$L$26,14,FALSE))","v":""},{"$f":"IF(C354=\"\",\"\",HLOOKUP(C354,'MHP Family Income & Rent Limits'!$E$12:$L$26,15,FALSE))","v":""}]
[{"$f":"IF('2. Assisted & Restricted Units'!A355=\"\",\"\",'2. Assisted & Restricted Units'!A355)","v":""},{"$f":"IF('2. Assisted & Restricted Units'!B355=\"\",\"\",'2. Assisted & Restricted Units'!B355)","v":""},{"$f":"IF('2. Assisted & Restricted Units'!D355=\"\",\"\",'2. Assisted & Restricted Units'!D355)","v":""},{"$f":"IF('2. Assisted & Restricted Units'!E355=\"\",\"\",'2. Assisted & Restricted Units'!E355)","v":""},{"$f":"IF('2. Assisted & Restricted Units'!H355=\"\",\"\",'2. Assisted & Restricted Units'!H355)","v":""},{"$f":"_xlfn.IFS(E355=\"\",\"\",E355>BO355,$BP$6,E355>BN355,$BO$6,E355>BM355,$BN$6,E355>BL355,$BM$6,E355>BK355,$BL$6,E355>BJ355,$BK$6,E355>BI355,$BJ$6,E355>BH355,$BI$6,E355>BG355,$BH$6,E355>BF355,$BG$6,E355>BE355,$BF$6,E355>BD355,$BE$6,E355>BC355,$BD$6,E355>=0,$BC$6)","v":""},{"$f":"IF('2. Assisted & Restricted Units'!T355=\"\",\"\",'2. Assisted & Restricted Units'!T355)","v":""},{"$f":"IF('2. Assisted & Restricted Units'!I355=\"\",\"\",'2. Assisted & Restricted Units'!I355)","v":""},{"$f":"IF('2. Assisted & Restricted Units'!AP355=\"\",\"\",'2. Assisted & Restricted Units'!AP355)","v":0},{"$f":"IF('2. Assisted & Restricted Units'!AT355=\"\",\"\",'2. Assisted & Restricted Units'!AT355)","v":""},0,{"$f":"IF('2. Assisted & Restricted Units'!AV355=\"\",\"\",'2. Assisted & Restricted Units'!AV355)","v":""},{"$f":"IF('2. Assisted & Restricted Units'!L355=\"\",\"\",'2. Assisted & Restricted Units'!L355)","v":""},{"$f":"IF('2. Assisted & Restricted Units'!M355=\"\",\"\",'2. Assisted & Restricted Units'!M355)","v":""},{"$f":"IF('2. Assisted & Restricted Units'!O355=\"\",\"\",'2. Assisted & Restricted Units'!O355)","v":""},{"$f":"IF('2. Assisted & Restricted Units'!P355=\"\",\"\",'2. Assisted & Restricted Units'!P355)","v":""},{"$f":"IF('2. Assisted & Restricted Units'!Q355=\"\",\"\",'2. Assisted & Restricted Units'!Q355)","v":""},{"$f":"IF('2. Assisted & Restricted Units'!R355=\"\",\"\",'2. Assisted & Restricted Units'!R355)","v":""},{"$f":"IF(A355=\"\",\"\",'1. Checklist & Certification'!$K$1)","v":""},{"$f":"IF(A355=\"\",\"\",'1. Checklist & Certification'!$C$62)","v":""},{"$f":"IF(A355=\"\",\"\",'1. Checklist & Certification'!$K$62)","v":""},{"$f":"IF(A355=\"\",\"\",'1. Checklist & Certification'!$C$6)","v":""},{"$f":"IF(A355=\"\",\"\",'1. Checklist & Certification'!$G$4)","v":""},{"$f":"IF(A355=\"\",\"\",'1. Checklist & Certification'!$C$7)","v":""},{"$f":"IF(A355=\"\",\"\",'1. Checklist & Certification'!$C$8)","v":""},{"$f":"IF(A355=\"\",\"\",'1. Checklist & Certification'!$F$7)","v":""},{"$f":"IF(A355=\"\",\"\",'1. Checklist & Certification'!$F$8)","v":""},{"$f":"IF(A355=\"\",\"\",'1. Checklist & Certification'!$B$9)","v":""},{"$f":"IF(A355=\"\",\"\",'1. Checklist & Certification'!$F$9)","v":""},{"$f":"IF(A355=\"\",\"\",'1. Checklist & Certification'!$C$10)","v":""},{"$f":"IF(A355=\"\",\"\",'1. Checklist & Certification'!$C$11)","v":""},{"$f":"IF(A355=\"\",\"\",'1. Checklist & Certification'!$C$12)","v":""},{"$f":"IF(A355=\"\",\"\",'1. Checklist & Certification'!$B$14)","v":""},{"$f":"IF(A355=\"\",\"\",'1. Checklist & Certification'!$E$14)","v":""},{"$f":"IF(B355=\"\",\"\",'1. Checklist & Certification'!$G$14)","v":""},{"$f":"IF(A355=\"\",\"\",'MHP Family Income & Rent Limits'!$B$3)","v":""},{"$f":"IF(A355=\"\",\"\",'MHP Family Income & Rent Limits'!$J$3)","v":""},{"$f":"IF(A355=\"\",\"\",'MHP Family Income & Rent Limits'!$E$4)","v":""},{"$f":"IF(A355=\"\",\"\",'MHP Family Income & Rent Limits'!$C$7)","v":""},{"$f":"IF(A355=\"\",\"\",'MHP Family Income & Rent Limits'!$F$8)","v":""},{"$f":"IF(A355=\"\",\"\",'1. Checklist & Certification'!$G$4)","v":""},{"$f":"IF(A355=\"\",\"\",'1. Checklist & Certification'!$K$39)","v":""},{"$f":"IF(A355=\"\",\"\",'1. Checklist & Certification'!$K$43)","v":""},{"$f":"IF(A355=\"\",\"\",'1. Checklist & Certification'!$K$45)","v":""},{"$f":"IF(A355=\"\",\"\",'1. Checklist & Certification'!$K$49)","v":""},{"$f":"IF(A355=\"\",\"\",'1. Checklist & Certification'!$E$66)","v":""},{"$f":"IF(A355=\"\",\"\",'1. Checklist & Certification'!$E$67)","v":""},{"$f":"IF(A355=\"\",\"\",'1. Checklist & Certification'!$E$68)","v":""},{"$f":"IF(A355=\"\",\"\",'1. Checklist & Certification'!$G$66)","v":""},{"$f":"IF(A355=\"\",\"\",'1. Checklist & Certification'!$H$66)","v":""},{"$f":"IF(A355=\"\",\"\",'1. Checklist & Certification'!$I$66)","v":""},{"$f":"IF(A355=\"\",\"\",'1. Checklist & Certification'!$I$67)","v":""},{"$f":"IF(A355=\"\",\"\",'1. Checklist & Certification'!$I$68)","v":""},null,{"$f":"IF(C355=\"\",\"\",HLOOKUP(C355,'MHP Family Income & Rent Limits'!$E$12:$L$26,2,FALSE))","v":""},{"$f":"IF(C355=\"\",\"\",HLOOKUP(C355,'MHP Family Income & Rent Limits'!$E$12:$L$26,3,FALSE))","v":""},{"$f":"IF(C355=\"\",\"\",HLOOKUP(C355,'MHP Family Income & Rent Limits'!$E$12:$L$26,4,FALSE))","v":""},{"$f":"IF(C355=\"\",\"\",HLOOKUP(C355,'MHP Family Income & Rent Limits'!$E$12:$L$26,5,FALSE))","v":""},{"$f":"IF(C355=\"\",\"\",HLOOKUP(C355,'MHP Family Income & Rent Limits'!$E$12:$L$26,6,FALSE))","v":""},{"$f":"IF(C355=\"\",\"\",HLOOKUP(C355,'MHP Family Income & Rent Limits'!$E$12:$L$26,7,FALSE))","v":""},{"$f":"IF(C355=\"\",\"\",HLOOKUP(C355,'MHP Family Income & Rent Limits'!$E$12:$L$26,8,FALSE))","v":""},{"$f":"IF(C355=\"\",\"\",HLOOKUP(C355,'MHP Family Income & Rent Limits'!$E$12:$L$26,9,FALSE))","v":""},{"$f":"IF(C355=\"\",\"\",HLOOKUP(C355,'MHP Family Income & Rent Limits'!$E$12:$L$26,10,FALSE))","v":""},{"$f":"IF(C355=\"\",\"\",HLOOKUP(C355,'MHP Family Income & Rent Limits'!$E$12:$L$26,11,FALSE))","v":""},{"$f":"IF(C355=\"\",\"\",HLOOKUP(C355,'MHP Family Income & Rent Limits'!$E$12:$L$26,12,FALSE))","v":""},{"$f":"IF(C355=\"\",\"\",HLOOKUP(C355,'MHP Family Income & Rent Limits'!$E$12:$L$26,13,FALSE))","v":""},{"$f":"IF(C355=\"\",\"\",HLOOKUP(C355,'MHP Family Income & Rent Limits'!$E$12:$L$26,14,FALSE))","v":""},{"$f":"IF(C355=\"\",\"\",HLOOKUP(C355,'MHP Family Income & Rent Limits'!$E$12:$L$26,15,FALSE))","v":""}]
[{"$f":"IF('2. Assisted & Restricted Units'!A356=\"\",\"\",'2. Assisted & Restricted Units'!A356)","v":""},{"$f":"IF('2. Assisted & Restricted Units'!B356=\"\",\"\",'2. Assisted & Restricted Units'!B356)","v":""},{"$f":"IF('2. Assisted & Restricted Units'!D356=\"\",\"\",'2. Assisted & Restricted Units'!D356)","v":""},{"$f":"IF('2. Assisted & Restricted Units'!E356=\"\",\"\",'2. Assisted & Restricted Units'!E356)","v":""},{"$f":"IF('2. Assisted & Restricted Units'!H356=\"\",\"\",'2. Assisted & Restricted Units'!H356)","v":""},{"$f":"_xlfn.IFS(E356=\"\",\"\",E356>BO356,$BP$6,E356>BN356,$BO$6,E356>BM356,$BN$6,E356>BL356,$BM$6,E356>BK356,$BL$6,E356>BJ356,$BK$6,E356>BI356,$BJ$6,E356>BH356,$BI$6,E356>BG356,$BH$6,E356>BF356,$BG$6,E356>BE356,$BF$6,E356>BD356,$BE$6,E356>BC356,$BD$6,E356>=0,$BC$6)","v":""},{"$f":"IF('2. Assisted & Restricted Units'!T356=\"\",\"\",'2. Assisted & Restricted Units'!T356)","v":""},{"$f":"IF('2. Assisted & Restricted Units'!I356=\"\",\"\",'2. Assisted & Restricted Units'!I356)","v":""},{"$f":"IF('2. Assisted & Restricted Units'!AP356=\"\",\"\",'2. Assisted & Restricted Units'!AP356)","v":0},{"$f":"IF('2. Assisted & Restricted Units'!AT356=\"\",\"\",'2. Assisted & Restricted Units'!AT356)","v":""},0,{"$f":"IF('2. Assisted & Restricted Units'!AV356=\"\",\"\",'2. Assisted & Restricted Units'!AV356)","v":""},{"$f":"IF('2. Assisted & Restricted Units'!L356=\"\",\"\",'2. Assisted & Restricted Units'!L356)","v":""},{"$f":"IF('2. Assisted & Restricted Units'!M356=\"\",\"\",'2. Assisted & Restricted Units'!M356)","v":""},{"$f":"IF('2. Assisted & Restricted Units'!O356=\"\",\"\",'2. Assisted & Restricted Units'!O356)","v":""},{"$f":"IF('2. Assisted & Restricted Units'!P356=\"\",\"\",'2. Assisted & Restricted Units'!P356)","v":""},{"$f":"IF('2. Assisted & Restricted Units'!Q356=\"\",\"\",'2. Assisted & Restricted Units'!Q356)","v":""},{"$f":"IF('2. Assisted & Restricted Units'!R356=\"\",\"\",'2. Assisted & Restricted Units'!R356)","v":""},{"$f":"IF(A356=\"\",\"\",'1. Checklist & Certification'!$K$1)","v":""},{"$f":"IF(A356=\"\",\"\",'1. Checklist & Certification'!$C$62)","v":""},{"$f":"IF(A356=\"\",\"\",'1. Checklist & Certification'!$K$62)","v":""},{"$f":"IF(A356=\"\",\"\",'1. Checklist & Certification'!$C$6)","v":""},{"$f":"IF(A356=\"\",\"\",'1. Checklist & Certification'!$G$4)","v":""},{"$f":"IF(A356=\"\",\"\",'1. Checklist & Certification'!$C$7)","v":""},{"$f":"IF(A356=\"\",\"\",'1. Checklist & Certification'!$C$8)","v":""},{"$f":"IF(A356=\"\",\"\",'1. Checklist & Certification'!$F$7)","v":""},{"$f":"IF(A356=\"\",\"\",'1. Checklist & Certification'!$F$8)","v":""},{"$f":"IF(A356=\"\",\"\",'1. Checklist & Certification'!$B$9)","v":""},{"$f":"IF(A356=\"\",\"\",'1. Checklist & Certification'!$F$9)","v":""},{"$f":"IF(A356=\"\",\"\",'1. Checklist & Certification'!$C$10)","v":""},{"$f":"IF(A356=\"\",\"\",'1. Checklist & Certification'!$C$11)","v":""},{"$f":"IF(A356=\"\",\"\",'1. Checklist & Certification'!$C$12)","v":""},{"$f":"IF(A356=\"\",\"\",'1. Checklist & Certification'!$B$14)","v":""},{"$f":"IF(A356=\"\",\"\",'1. Checklist & Certification'!$E$14)","v":""},{"$f":"IF(B356=\"\",\"\",'1. Checklist & Certification'!$G$14)","v":""},{"$f":"IF(A356=\"\",\"\",'MHP Family Income & Rent Limits'!$B$3)","v":""},{"$f":"IF(A356=\"\",\"\",'MHP Family Income & Rent Limits'!$J$3)","v":""},{"$f":"IF(A356=\"\",\"\",'MHP Family Income & Rent Limits'!$E$4)","v":""},{"$f":"IF(A356=\"\",\"\",'MHP Family Income & Rent Limits'!$C$7)","v":""},{"$f":"IF(A356=\"\",\"\",'MHP Family Income & Rent Limits'!$F$8)","v":""},{"$f":"IF(A356=\"\",\"\",'1. Checklist & Certification'!$G$4)","v":""},{"$f":"IF(A356=\"\",\"\",'1. Checklist & Certification'!$K$39)","v":""},{"$f":"IF(A356=\"\",\"\",'1. Checklist & Certification'!$K$43)","v":""},{"$f":"IF(A356=\"\",\"\",'1. Checklist & Certification'!$K$45)","v":""},{"$f":"IF(A356=\"\",\"\",'1. Checklist & Certification'!$K$49)","v":""},{"$f":"IF(A356=\"\",\"\",'1. Checklist & Certification'!$E$66)","v":""},{"$f":"IF(A356=\"\",\"\",'1. Checklist & Certification'!$E$67)","v":""},{"$f":"IF(A356=\"\",\"\",'1. Checklist & Certification'!$E$68)","v":""},{"$f":"IF(A356=\"\",\"\",'1. Checklist & Certification'!$G$66)","v":""},{"$f":"IF(A356=\"\",\"\",'1. Checklist & Certification'!$H$66)","v":""},{"$f":"IF(A356=\"\",\"\",'1. Checklist & Certification'!$I$66)","v":""},{"$f":"IF(A356=\"\",\"\",'1. Checklist & Certification'!$I$67)","v":""},{"$f":"IF(A356=\"\",\"\",'1. Checklist & Certification'!$I$68)","v":""},null,{"$f":"IF(C356=\"\",\"\",HLOOKUP(C356,'MHP Family Income & Rent Limits'!$E$12:$L$26,2,FALSE))","v":""},{"$f":"IF(C356=\"\",\"\",HLOOKUP(C356,'MHP Family Income & Rent Limits'!$E$12:$L$26,3,FALSE))","v":""},{"$f":"IF(C356=\"\",\"\",HLOOKUP(C356,'MHP Family Income & Rent Limits'!$E$12:$L$26,4,FALSE))","v":""},{"$f":"IF(C356=\"\",\"\",HLOOKUP(C356,'MHP Family Income & Rent Limits'!$E$12:$L$26,5,FALSE))","v":""},{"$f":"IF(C356=\"\",\"\",HLOOKUP(C356,'MHP Family Income & Rent Limits'!$E$12:$L$26,6,FALSE))","v":""},{"$f":"IF(C356=\"\",\"\",HLOOKUP(C356,'MHP Family Income & Rent Limits'!$E$12:$L$26,7,FALSE))","v":""},{"$f":"IF(C356=\"\",\"\",HLOOKUP(C356,'MHP Family Income & Rent Limits'!$E$12:$L$26,8,FALSE))","v":""},{"$f":"IF(C356=\"\",\"\",HLOOKUP(C356,'MHP Family Income & Rent Limits'!$E$12:$L$26,9,FALSE))","v":""},{"$f":"IF(C356=\"\",\"\",HLOOKUP(C356,'MHP Family Income & Rent Limits'!$E$12:$L$26,10,FALSE))","v":""},{"$f":"IF(C356=\"\",\"\",HLOOKUP(C356,'MHP Family Income & Rent Limits'!$E$12:$L$26,11,FALSE))","v":""},{"$f":"IF(C356=\"\",\"\",HLOOKUP(C356,'MHP Family Income & Rent Limits'!$E$12:$L$26,12,FALSE))","v":""},{"$f":"IF(C356=\"\",\"\",HLOOKUP(C356,'MHP Family Income & Rent Limits'!$E$12:$L$26,13,FALSE))","v":""},{"$f":"IF(C356=\"\",\"\",HLOOKUP(C356,'MHP Family Income & Rent Limits'!$E$12:$L$26,14,FALSE))","v":""},{"$f":"IF(C356=\"\",\"\",HLOOKUP(C356,'MHP Family Income & Rent Limits'!$E$12:$L$26,15,FALSE))","v":""}]
[{"$f":"IF('2. Assisted & Restricted Units'!A357=\"\",\"\",'2. Assisted & Restricted Units'!A357)","v":""},{"$f":"IF('2. Assisted & Restricted Units'!B357=\"\",\"\",'2. Assisted & Restricted Units'!B357)","v":""},{"$f":"IF('2. Assisted & Restricted Units'!D357=\"\",\"\",'2. Assisted & Restricted Units'!D357)","v":""},{"$f":"IF('2. Assisted & Restricted Units'!E357=\"\",\"\",'2. Assisted & Restricted Units'!E357)","v":""},{"$f":"IF('2. Assisted & Restricted Units'!H357=\"\",\"\",'2. Assisted & Restricted Units'!H357)","v":""},{"$f":"_xlfn.IFS(E357=\"\",\"\",E357>BO357,$BP$6,E357>BN357,$BO$6,E357>BM357,$BN$6,E357>BL357,$BM$6,E357>BK357,$BL$6,E357>BJ357,$BK$6,E357>BI357,$BJ$6,E357>BH357,$BI$6,E357>BG357,$BH$6,E357>BF357,$BG$6,E357>BE357,$BF$6,E357>BD357,$BE$6,E357>BC357,$BD$6,E357>=0,$BC$6)","v":""},{"$f":"IF('2. Assisted & Restricted Units'!T357=\"\",\"\",'2. Assisted & Restricted Units'!T357)","v":""},{"$f":"IF('2. Assisted & Restricted Units'!I357=\"\",\"\",'2. Assisted & Restricted Units'!I357)","v":""},{"$f":"IF('2. Assisted & Restricted Units'!AP357=\"\",\"\",'2. Assisted & Restricted Units'!AP357)","v":0},{"$f":"IF('2. Assisted & Restricted Units'!AT357=\"\",\"\",'2. Assisted & Restricted Units'!AT357)","v":""},0,{"$f":"IF('2. Assisted & Restricted Units'!AV357=\"\",\"\",'2. Assisted & Restricted Units'!AV357)","v":""},{"$f":"IF('2. Assisted & Restricted Units'!L357=\"\",\"\",'2. Assisted & Restricted Units'!L357)","v":""},{"$f":"IF('2. Assisted & Restricted Units'!M357=\"\",\"\",'2. Assisted & Restricted Units'!M357)","v":""},{"$f":"IF('2. Assisted & Restricted Units'!O357=\"\",\"\",'2. Assisted & Restricted Units'!O357)","v":""},{"$f":"IF('2. Assisted & Restricted Units'!P357=\"\",\"\",'2. Assisted & Restricted Units'!P357)","v":""},{"$f":"IF('2. Assisted & Restricted Units'!Q357=\"\",\"\",'2. Assisted & Restricted Units'!Q357)","v":""},{"$f":"IF('2. Assisted & Restricted Units'!R357=\"\",\"\",'2. Assisted & Restricted Units'!R357)","v":""},{"$f":"IF(A357=\"\",\"\",'1. Checklist & Certification'!$K$1)","v":""},{"$f":"IF(A357=\"\",\"\",'1. Checklist & Certification'!$C$62)","v":""},{"$f":"IF(A357=\"\",\"\",'1. Checklist & Certification'!$K$62)","v":""},{"$f":"IF(A357=\"\",\"\",'1. Checklist & Certification'!$C$6)","v":""},{"$f":"IF(A357=\"\",\"\",'1. Checklist & Certification'!$G$4)","v":""},{"$f":"IF(A357=\"\",\"\",'1. Checklist & Certification'!$C$7)","v":""},{"$f":"IF(A357=\"\",\"\",'1. Checklist & Certification'!$C$8)","v":""},{"$f":"IF(A357=\"\",\"\",'1. Checklist & Certification'!$F$7)","v":""},{"$f":"IF(A357=\"\",\"\",'1. Checklist & Certification'!$F$8)","v":""},{"$f":"IF(A357=\"\",\"\",'1. Checklist & Certification'!$B$9)","v":""},{"$f":"IF(A357=\"\",\"\",'1. Checklist & Certification'!$F$9)","v":""},{"$f":"IF(A357=\"\",\"\",'1. Checklist & Certification'!$C$10)","v":""},{"$f":"IF(A357=\"\",\"\",'1. Checklist & Certification'!$C$11)","v":""},{"$f":"IF(A357=\"\",\"\",'1. Checklist & Certification'!$C$12)","v":""},{"$f":"IF(A357=\"\",\"\",'1. Checklist & Certification'!$B$14)","v":""},{"$f":"IF(A357=\"\",\"\",'1. Checklist & Certification'!$E$14)","v":""},{"$f":"IF(B357=\"\",\"\",'1. Checklist & Certification'!$G$14)","v":""},{"$f":"IF(A357=\"\",\"\",'MHP Family Income & Rent Limits'!$B$3)","v":""},{"$f":"IF(A357=\"\",\"\",'MHP Family Income & Rent Limits'!$J$3)","v":""},{"$f":"IF(A357=\"\",\"\",'MHP Family Income & Rent Limits'!$E$4)","v":""},{"$f":"IF(A357=\"\",\"\",'MHP Family Income & Rent Limits'!$C$7)","v":""},{"$f":"IF(A357=\"\",\"\",'MHP Family Income & Rent Limits'!$F$8)","v":""},{"$f":"IF(A357=\"\",\"\",'1. Checklist & Certification'!$G$4)","v":""},{"$f":"IF(A357=\"\",\"\",'1. Checklist & Certification'!$K$39)","v":""},{"$f":"IF(A357=\"\",\"\",'1. Checklist & Certification'!$K$43)","v":""},{"$f":"IF(A357=\"\",\"\",'1. Checklist & Certification'!$K$45)","v":""},{"$f":"IF(A357=\"\",\"\",'1. Checklist & Certification'!$K$49)","v":""},{"$f":"IF(A357=\"\",\"\",'1. Checklist & Certification'!$E$66)","v":""},{"$f":"IF(A357=\"\",\"\",'1. Checklist & Certification'!$E$67)","v":""},{"$f":"IF(A357=\"\",\"\",'1. Checklist & Certification'!$E$68)","v":""},{"$f":"IF(A357=\"\",\"\",'1. Checklist & Certification'!$G$66)","v":""},{"$f":"IF(A357=\"\",\"\",'1. Checklist & Certification'!$H$66)","v":""},{"$f":"IF(A357=\"\",\"\",'1. Checklist & Certification'!$I$66)","v":""},{"$f":"IF(A357=\"\",\"\",'1. Checklist & Certification'!$I$67)","v":""},{"$f":"IF(A357=\"\",\"\",'1. Checklist & Certification'!$I$68)","v":""},null,{"$f":"IF(C357=\"\",\"\",HLOOKUP(C357,'MHP Family Income & Rent Limits'!$E$12:$L$26,2,FALSE))","v":""},{"$f":"IF(C357=\"\",\"\",HLOOKUP(C357,'MHP Family Income & Rent Limits'!$E$12:$L$26,3,FALSE))","v":""},{"$f":"IF(C357=\"\",\"\",HLOOKUP(C357,'MHP Family Income & Rent Limits'!$E$12:$L$26,4,FALSE))","v":""},{"$f":"IF(C357=\"\",\"\",HLOOKUP(C357,'MHP Family Income & Rent Limits'!$E$12:$L$26,5,FALSE))","v":""},{"$f":"IF(C357=\"\",\"\",HLOOKUP(C357,'MHP Family Income & Rent Limits'!$E$12:$L$26,6,FALSE))","v":""},{"$f":"IF(C357=\"\",\"\",HLOOKUP(C357,'MHP Family Income & Rent Limits'!$E$12:$L$26,7,FALSE))","v":""},{"$f":"IF(C357=\"\",\"\",HLOOKUP(C357,'MHP Family Income & Rent Limits'!$E$12:$L$26,8,FALSE))","v":""},{"$f":"IF(C357=\"\",\"\",HLOOKUP(C357,'MHP Family Income & Rent Limits'!$E$12:$L$26,9,FALSE))","v":""},{"$f":"IF(C357=\"\",\"\",HLOOKUP(C357,'MHP Family Income & Rent Limits'!$E$12:$L$26,10,FALSE))","v":""},{"$f":"IF(C357=\"\",\"\",HLOOKUP(C357,'MHP Family Income & Rent Limits'!$E$12:$L$26,11,FALSE))","v":""},{"$f":"IF(C357=\"\",\"\",HLOOKUP(C357,'MHP Family Income & Rent Limits'!$E$12:$L$26,12,FALSE))","v":""},{"$f":"IF(C357=\"\",\"\",HLOOKUP(C357,'MHP Family Income & Rent Limits'!$E$12:$L$26,13,FALSE))","v":""},{"$f":"IF(C357=\"\",\"\",HLOOKUP(C357,'MHP Family Income & Rent Limits'!$E$12:$L$26,14,FALSE))","v":""},{"$f":"IF(C357=\"\",\"\",HLOOKUP(C357,'MHP Family Income & Rent Limits'!$E$12:$L$26,15,FALSE))","v":""}]
[{"$f":"IF('2. Assisted & Restricted Units'!A358=\"\",\"\",'2. Assisted & Restricted Units'!A358)","v":""},{"$f":"IF('2. Assisted & Restricted Units'!B358=\"\",\"\",'2. Assisted & Restricted Units'!B358)","v":""},{"$f":"IF('2. Assisted & Restricted Units'!D358=\"\",\"\",'2. Assisted & Restricted Units'!D358)","v":""},{"$f":"IF('2. Assisted & Restricted Units'!E358=\"\",\"\",'2. Assisted & Restricted Units'!E358)","v":""},{"$f":"IF('2. Assisted & Restricted Units'!H358=\"\",\"\",'2. Assisted & Restricted Units'!H358)","v":""},{"$f":"_xlfn.IFS(E358=\"\",\"\",E358>BO358,$BP$6,E358>BN358,$BO$6,E358>BM358,$BN$6,E358>BL358,$BM$6,E358>BK358,$BL$6,E358>BJ358,$BK$6,E358>BI358,$BJ$6,E358>BH358,$BI$6,E358>BG358,$BH$6,E358>BF358,$BG$6,E358>BE358,$BF$6,E358>BD358,$BE$6,E358>BC358,$BD$6,E358>=0,$BC$6)","v":""},{"$f":"IF('2. Assisted & Restricted Units'!T358=\"\",\"\",'2. Assisted & Restricted Units'!T358)","v":""},{"$f":"IF('2. Assisted & Restricted Units'!I358=\"\",\"\",'2. Assisted & Restricted Units'!I358)","v":""},{"$f":"IF('2. Assisted & Restricted Units'!AP358=\"\",\"\",'2. Assisted & Restricted Units'!AP358)","v":0},{"$f":"IF('2. Assisted & Restricted Units'!AT358=\"\",\"\",'2. Assisted & Restricted Units'!AT358)","v":""},0,{"$f":"IF('2. Assisted & Restricted Units'!AV358=\"\",\"\",'2. Assisted & Restricted Units'!AV358)","v":""},{"$f":"IF('2. Assisted & Restricted Units'!L358=\"\",\"\",'2. Assisted & Restricted Units'!L358)","v":""},{"$f":"IF('2. Assisted & Restricted Units'!M358=\"\",\"\",'2. Assisted & Restricted Units'!M358)","v":""},{"$f":"IF('2. Assisted & Restricted Units'!O358=\"\",\"\",'2. Assisted & Restricted Units'!O358)","v":""},{"$f":"IF('2. Assisted & Restricted Units'!P358=\"\",\"\",'2. Assisted & Restricted Units'!P358)","v":""},{"$f":"IF('2. Assisted & Restricted Units'!Q358=\"\",\"\",'2. Assisted & Restricted Units'!Q358)","v":""},{"$f":"IF('2. Assisted & Restricted Units'!R358=\"\",\"\",'2. Assisted & Restricted Units'!R358)","v":""},{"$f":"IF(A358=\"\",\"\",'1. Checklist & Certification'!$K$1)","v":""},{"$f":"IF(A358=\"\",\"\",'1. Checklist & Certification'!$C$62)","v":""},{"$f":"IF(A358=\"\",\"\",'1. Checklist & Certification'!$K$62)","v":""},{"$f":"IF(A358=\"\",\"\",'1. Checklist & Certification'!$C$6)","v":""},{"$f":"IF(A358=\"\",\"\",'1. Checklist & Certification'!$G$4)","v":""},{"$f":"IF(A358=\"\",\"\",'1. Checklist & Certification'!$C$7)","v":""},{"$f":"IF(A358=\"\",\"\",'1. Checklist & Certification'!$C$8)","v":""},{"$f":"IF(A358=\"\",\"\",'1. Checklist & Certification'!$F$7)","v":""},{"$f":"IF(A358=\"\",\"\",'1. Checklist & Certification'!$F$8)","v":""},{"$f":"IF(A358=\"\",\"\",'1. Checklist & Certification'!$B$9)","v":""},{"$f":"IF(A358=\"\",\"\",'1. Checklist & Certification'!$F$9)","v":""},{"$f":"IF(A358=\"\",\"\",'1. Checklist & Certification'!$C$10)","v":""},{"$f":"IF(A358=\"\",\"\",'1. Checklist & Certification'!$C$11)","v":""},{"$f":"IF(A358=\"\",\"\",'1. Checklist & Certification'!$C$12)","v":""},{"$f":"IF(A358=\"\",\"\",'1. Checklist & Certification'!$B$14)","v":""},{"$f":"IF(A358=\"\",\"\",'1. Checklist & Certification'!$E$14)","v":""},{"$f":"IF(B358=\"\",\"\",'1. Checklist & Certification'!$G$14)","v":""},{"$f":"IF(A358=\"\",\"\",'MHP Family Income & Rent Limits'!$B$3)","v":""},{"$f":"IF(A358=\"\",\"\",'MHP Family Income & Rent Limits'!$J$3)","v":""},{"$f":"IF(A358=\"\",\"\",'MHP Family Income & Rent Limits'!$E$4)","v":""},{"$f":"IF(A358=\"\",\"\",'MHP Family Income & Rent Limits'!$C$7)","v":""},{"$f":"IF(A358=\"\",\"\",'MHP Family Income & Rent Limits'!$F$8)","v":""},{"$f":"IF(A358=\"\",\"\",'1. Checklist & Certification'!$G$4)","v":""},{"$f":"IF(A358=\"\",\"\",'1. Checklist & Certification'!$K$39)","v":""},{"$f":"IF(A358=\"\",\"\",'1. Checklist & Certification'!$K$43)","v":""},{"$f":"IF(A358=\"\",\"\",'1. Checklist & Certification'!$K$45)","v":""},{"$f":"IF(A358=\"\",\"\",'1. Checklist & Certification'!$K$49)","v":""},{"$f":"IF(A358=\"\",\"\",'1. Checklist & Certification'!$E$66)","v":""},{"$f":"IF(A358=\"\",\"\",'1. Checklist & Certification'!$E$67)","v":""},{"$f":"IF(A358=\"\",\"\",'1. Checklist & Certification'!$E$68)","v":""},{"$f":"IF(A358=\"\",\"\",'1. Checklist & Certification'!$G$66)","v":""},{"$f":"IF(A358=\"\",\"\",'1. Checklist & Certification'!$H$66)","v":""},{"$f":"IF(A358=\"\",\"\",'1. Checklist & Certification'!$I$66)","v":""},{"$f":"IF(A358=\"\",\"\",'1. Checklist & Certification'!$I$67)","v":""},{"$f":"IF(A358=\"\",\"\",'1. Checklist & Certification'!$I$68)","v":""},null,{"$f":"IF(C358=\"\",\"\",HLOOKUP(C358,'MHP Family Income & Rent Limits'!$E$12:$L$26,2,FALSE))","v":""},{"$f":"IF(C358=\"\",\"\",HLOOKUP(C358,'MHP Family Income & Rent Limits'!$E$12:$L$26,3,FALSE))","v":""},{"$f":"IF(C358=\"\",\"\",HLOOKUP(C358,'MHP Family Income & Rent Limits'!$E$12:$L$26,4,FALSE))","v":""},{"$f":"IF(C358=\"\",\"\",HLOOKUP(C358,'MHP Family Income & Rent Limits'!$E$12:$L$26,5,FALSE))","v":""},{"$f":"IF(C358=\"\",\"\",HLOOKUP(C358,'MHP Family Income & Rent Limits'!$E$12:$L$26,6,FALSE))","v":""},{"$f":"IF(C358=\"\",\"\",HLOOKUP(C358,'MHP Family Income & Rent Limits'!$E$12:$L$26,7,FALSE))","v":""},{"$f":"IF(C358=\"\",\"\",HLOOKUP(C358,'MHP Family Income & Rent Limits'!$E$12:$L$26,8,FALSE))","v":""},{"$f":"IF(C358=\"\",\"\",HLOOKUP(C358,'MHP Family Income & Rent Limits'!$E$12:$L$26,9,FALSE))","v":""},{"$f":"IF(C358=\"\",\"\",HLOOKUP(C358,'MHP Family Income & Rent Limits'!$E$12:$L$26,10,FALSE))","v":""},{"$f":"IF(C358=\"\",\"\",HLOOKUP(C358,'MHP Family Income & Rent Limits'!$E$12:$L$26,11,FALSE))","v":""},{"$f":"IF(C358=\"\",\"\",HLOOKUP(C358,'MHP Family Income & Rent Limits'!$E$12:$L$26,12,FALSE))","v":""},{"$f":"IF(C358=\"\",\"\",HLOOKUP(C358,'MHP Family Income & Rent Limits'!$E$12:$L$26,13,FALSE))","v":""},{"$f":"IF(C358=\"\",\"\",HLOOKUP(C358,'MHP Family Income & Rent Limits'!$E$12:$L$26,14,FALSE))","v":""},{"$f":"IF(C358=\"\",\"\",HLOOKUP(C358,'MHP Family Income & Rent Limits'!$E$12:$L$26,15,FALSE))","v":""}]
[{"$f":"IF('2. Assisted & Restricted Units'!A359=\"\",\"\",'2. Assisted & Restricted Units'!A359)","v":""},{"$f":"IF('2. Assisted & Restricted Units'!B359=\"\",\"\",'2. Assisted & Restricted Units'!B359)","v":""},{"$f":"IF('2. Assisted & Restricted Units'!D359=\"\",\"\",'2. Assisted & Restricted Units'!D359)","v":""},{"$f":"IF('2. Assisted & Restricted Units'!E359=\"\",\"\",'2. Assisted & Restricted Units'!E359)","v":""},{"$f":"IF('2. Assisted & Restricted Units'!H359=\"\",\"\",'2. Assisted & Restricted Units'!H359)","v":""},{"$f":"_xlfn.IFS(E359=\"\",\"\",E359>BO359,$BP$6,E359>BN359,$BO$6,E359>BM359,$BN$6,E359>BL359,$BM$6,E359>BK359,$BL$6,E359>BJ359,$BK$6,E359>BI359,$BJ$6,E359>BH359,$BI$6,E359>BG359,$BH$6,E359>BF359,$BG$6,E359>BE359,$BF$6,E359>BD359,$BE$6,E359>BC359,$BD$6,E359>=0,$BC$6)","v":""},{"$f":"IF('2. Assisted & Restricted Units'!T359=\"\",\"\",'2. Assisted & Restricted Units'!T359)","v":""},{"$f":"IF('2. Assisted & Restricted Units'!I359=\"\",\"\",'2. Assisted & Restricted Units'!I359)","v":""},{"$f":"IF('2. Assisted & Restricted Units'!AP359=\"\",\"\",'2. Assisted & Restricted Units'!AP359)","v":0},{"$f":"IF('2. Assisted & Restricted Units'!AT359=\"\",\"\",'2. Assisted & Restricted Units'!AT359)","v":""},0,{"$f":"IF('2. Assisted & Restricted Units'!AV359=\"\",\"\",'2. Assisted & Restricted Units'!AV359)","v":""},{"$f":"IF('2. Assisted & Restricted Units'!L359=\"\",\"\",'2. Assisted & Restricted Units'!L359)","v":""},{"$f":"IF('2. Assisted & Restricted Units'!M359=\"\",\"\",'2. Assisted & Restricted Units'!M359)","v":""},{"$f":"IF('2. Assisted & Restricted Units'!O359=\"\",\"\",'2. Assisted & Restricted Units'!O359)","v":""},{"$f":"IF('2. Assisted & Restricted Units'!P359=\"\",\"\",'2. Assisted & Restricted Units'!P359)","v":""},{"$f":"IF('2. Assisted & Restricted Units'!Q359=\"\",\"\",'2. Assisted & Restricted Units'!Q359)","v":""},{"$f":"IF('2. Assisted & Restricted Units'!R359=\"\",\"\",'2. Assisted & Restricted Units'!R359)","v":""},{"$f":"IF(A359=\"\",\"\",'1. Checklist & Certification'!$K$1)","v":""},{"$f":"IF(A359=\"\",\"\",'1. Checklist & Certification'!$C$62)","v":""},{"$f":"IF(A359=\"\",\"\",'1. Checklist & Certification'!$K$62)","v":""},{"$f":"IF(A359=\"\",\"\",'1. Checklist & Certification'!$C$6)","v":""},{"$f":"IF(A359=\"\",\"\",'1. Checklist & Certification'!$G$4)","v":""},{"$f":"IF(A359=\"\",\"\",'1. Checklist & Certification'!$C$7)","v":""},{"$f":"IF(A359=\"\",\"\",'1. Checklist & Certification'!$C$8)","v":""},{"$f":"IF(A359=\"\",\"\",'1. Checklist & Certification'!$F$7)","v":""},{"$f":"IF(A359=\"\",\"\",'1. Checklist & Certification'!$F$8)","v":""},{"$f":"IF(A359=\"\",\"\",'1. Checklist & Certification'!$B$9)","v":""},{"$f":"IF(A359=\"\",\"\",'1. Checklist & Certification'!$F$9)","v":""},{"$f":"IF(A359=\"\",\"\",'1. Checklist & Certification'!$C$10)","v":""},{"$f":"IF(A359=\"\",\"\",'1. Checklist & Certification'!$C$11)","v":""},{"$f":"IF(A359=\"\",\"\",'1. Checklist & Certification'!$C$12)","v":""},{"$f":"IF(A359=\"\",\"\",'1. Checklist & Certification'!$B$14)","v":""},{"$f":"IF(A359=\"\",\"\",'1. Checklist & Certification'!$E$14)","v":""},{"$f":"IF(B359=\"\",\"\",'1. Checklist & Certification'!$G$14)","v":""},{"$f":"IF(A359=\"\",\"\",'MHP Family Income & Rent Limits'!$B$3)","v":""},{"$f":"IF(A359=\"\",\"\",'MHP Family Income & Rent Limits'!$J$3)","v":""},{"$f":"IF(A359=\"\",\"\",'MHP Family Income & Rent Limits'!$E$4)","v":""},{"$f":"IF(A359=\"\",\"\",'MHP Family Income & Rent Limits'!$C$7)","v":""},{"$f":"IF(A359=\"\",\"\",'MHP Family Income & Rent Limits'!$F$8)","v":""},{"$f":"IF(A359=\"\",\"\",'1. Checklist & Certification'!$G$4)","v":""},{"$f":"IF(A359=\"\",\"\",'1. Checklist & Certification'!$K$39)","v":""},{"$f":"IF(A359=\"\",\"\",'1. Checklist & Certification'!$K$43)","v":""},{"$f":"IF(A359=\"\",\"\",'1. Checklist & Certification'!$K$45)","v":""},{"$f":"IF(A359=\"\",\"\",'1. Checklist & Certification'!$K$49)","v":""},{"$f":"IF(A359=\"\",\"\",'1. Checklist & Certification'!$E$66)","v":""},{"$f":"IF(A359=\"\",\"\",'1. Checklist & Certification'!$E$67)","v":""},{"$f":"IF(A359=\"\",\"\",'1. Checklist & Certification'!$E$68)","v":""},{"$f":"IF(A359=\"\",\"\",'1. Checklist & Certification'!$G$66)","v":""},{"$f":"IF(A359=\"\",\"\",'1. Checklist & Certification'!$H$66)","v":""},{"$f":"IF(A359=\"\",\"\",'1. Checklist & Certification'!$I$66)","v":""},{"$f":"IF(A359=\"\",\"\",'1. Checklist & Certification'!$I$67)","v":""},{"$f":"IF(A359=\"\",\"\",'1. Checklist & Certification'!$I$68)","v":""},null,{"$f":"IF(C359=\"\",\"\",HLOOKUP(C359,'MHP Family Income & Rent Limits'!$E$12:$L$26,2,FALSE))","v":""},{"$f":"IF(C359=\"\",\"\",HLOOKUP(C359,'MHP Family Income & Rent Limits'!$E$12:$L$26,3,FALSE))","v":""},{"$f":"IF(C359=\"\",\"\",HLOOKUP(C359,'MHP Family Income & Rent Limits'!$E$12:$L$26,4,FALSE))","v":""},{"$f":"IF(C359=\"\",\"\",HLOOKUP(C359,'MHP Family Income & Rent Limits'!$E$12:$L$26,5,FALSE))","v":""},{"$f":"IF(C359=\"\",\"\",HLOOKUP(C359,'MHP Family Income & Rent Limits'!$E$12:$L$26,6,FALSE))","v":""},{"$f":"IF(C359=\"\",\"\",HLOOKUP(C359,'MHP Family Income & Rent Limits'!$E$12:$L$26,7,FALSE))","v":""},{"$f":"IF(C359=\"\",\"\",HLOOKUP(C359,'MHP Family Income & Rent Limits'!$E$12:$L$26,8,FALSE))","v":""},{"$f":"IF(C359=\"\",\"\",HLOOKUP(C359,'MHP Family Income & Rent Limits'!$E$12:$L$26,9,FALSE))","v":""},{"$f":"IF(C359=\"\",\"\",HLOOKUP(C359,'MHP Family Income & Rent Limits'!$E$12:$L$26,10,FALSE))","v":""},{"$f":"IF(C359=\"\",\"\",HLOOKUP(C359,'MHP Family Income & Rent Limits'!$E$12:$L$26,11,FALSE))","v":""},{"$f":"IF(C359=\"\",\"\",HLOOKUP(C359,'MHP Family Income & Rent Limits'!$E$12:$L$26,12,FALSE))","v":""},{"$f":"IF(C359=\"\",\"\",HLOOKUP(C359,'MHP Family Income & Rent Limits'!$E$12:$L$26,13,FALSE))","v":""},{"$f":"IF(C359=\"\",\"\",HLOOKUP(C359,'MHP Family Income & Rent Limits'!$E$12:$L$26,14,FALSE))","v":""},{"$f":"IF(C359=\"\",\"\",HLOOKUP(C359,'MHP Family Income & Rent Limits'!$E$12:$L$26,15,FALSE))","v":""}]
[{"$f":"IF('2. Assisted & Restricted Units'!A360=\"\",\"\",'2. Assisted & Restricted Units'!A360)","v":""},{"$f":"IF('2. Assisted & Restricted Units'!B360=\"\",\"\",'2. Assisted & Restricted Units'!B360)","v":""},{"$f":"IF('2. Assisted & Restricted Units'!D360=\"\",\"\",'2. Assisted & Restricted Units'!D360)","v":""},{"$f":"IF('2. Assisted & Restricted Units'!E360=\"\",\"\",'2. Assisted & Restricted Units'!E360)","v":""},{"$f":"IF('2. Assisted & Restricted Units'!H360=\"\",\"\",'2. Assisted & Restricted Units'!H360)","v":""},{"$f":"_xlfn.IFS(E360=\"\",\"\",E360>BO360,$BP$6,E360>BN360,$BO$6,E360>BM360,$BN$6,E360>BL360,$BM$6,E360>BK360,$BL$6,E360>BJ360,$BK$6,E360>BI360,$BJ$6,E360>BH360,$BI$6,E360>BG360,$BH$6,E360>BF360,$BG$6,E360>BE360,$BF$6,E360>BD360,$BE$6,E360>BC360,$BD$6,E360>=0,$BC$6)","v":""},{"$f":"IF('2. Assisted & Restricted Units'!T360=\"\",\"\",'2. Assisted & Restricted Units'!T360)","v":""},{"$f":"IF('2. Assisted & Restricted Units'!I360=\"\",\"\",'2. Assisted & Restricted Units'!I360)","v":""},{"$f":"IF('2. Assisted & Restricted Units'!AP360=\"\",\"\",'2. Assisted & Restricted Units'!AP360)","v":0},{"$f":"IF('2. Assisted & Restricted Units'!AT360=\"\",\"\",'2. Assisted & Restricted Units'!AT360)","v":""},0,{"$f":"IF('2. Assisted & Restricted Units'!AV360=\"\",\"\",'2. Assisted & Restricted Units'!AV360)","v":""},{"$f":"IF('2. Assisted & Restricted Units'!L360=\"\",\"\",'2. Assisted & Restricted Units'!L360)","v":""},{"$f":"IF('2. Assisted & Restricted Units'!M360=\"\",\"\",'2. Assisted & Restricted Units'!M360)","v":""},{"$f":"IF('2. Assisted & Restricted Units'!O360=\"\",\"\",'2. Assisted & Restricted Units'!O360)","v":""},{"$f":"IF('2. Assisted & Restricted Units'!P360=\"\",\"\",'2. Assisted & Restricted Units'!P360)","v":""},{"$f":"IF('2. Assisted & Restricted Units'!Q360=\"\",\"\",'2. Assisted & Restricted Units'!Q360)","v":""},{"$f":"IF('2. Assisted & Restricted Units'!R360=\"\",\"\",'2. Assisted & Restricted Units'!R360)","v":""},{"$f":"IF(A360=\"\",\"\",'1. Checklist & Certification'!$K$1)","v":""},{"$f":"IF(A360=\"\",\"\",'1. Checklist & Certification'!$C$62)","v":""},{"$f":"IF(A360=\"\",\"\",'1. Checklist & Certification'!$K$62)","v":""},{"$f":"IF(A360=\"\",\"\",'1. Checklist & Certification'!$C$6)","v":""},{"$f":"IF(A360=\"\",\"\",'1. Checklist & Certification'!$G$4)","v":""},{"$f":"IF(A360=\"\",\"\",'1. Checklist & Certification'!$C$7)","v":""},{"$f":"IF(A360=\"\",\"\",'1. Checklist & Certification'!$C$8)","v":""},{"$f":"IF(A360=\"\",\"\",'1. Checklist & Certification'!$F$7)","v":""},{"$f":"IF(A360=\"\",\"\",'1. Checklist & Certification'!$F$8)","v":""},{"$f":"IF(A360=\"\",\"\",'1. Checklist & Certification'!$B$9)","v":""},{"$f":"IF(A360=\"\",\"\",'1. Checklist & Certification'!$F$9)","v":""},{"$f":"IF(A360=\"\",\"\",'1. Checklist & Certification'!$C$10)","v":""},{"$f":"IF(A360=\"\",\"\",'1. Checklist & Certification'!$C$11)","v":""},{"$f":"IF(A360=\"\",\"\",'1. Checklist & Certification'!$C$12)","v":""},{"$f":"IF(A360=\"\",\"\",'1. Checklist & Certification'!$B$14)","v":""},{"$f":"IF(A360=\"\",\"\",'1. Checklist & Certification'!$E$14)","v":""},{"$f":"IF(B360=\"\",\"\",'1. Checklist & Certification'!$G$14)","v":""},{"$f":"IF(A360=\"\",\"\",'MHP Family Income & Rent Limits'!$B$3)","v":""},{"$f":"IF(A360=\"\",\"\",'MHP Family Income & Rent Limits'!$J$3)","v":""},{"$f":"IF(A360=\"\",\"\",'MHP Family Income & Rent Limits'!$E$4)","v":""},{"$f":"IF(A360=\"\",\"\",'MHP Family Income & Rent Limits'!$C$7)","v":""},{"$f":"IF(A360=\"\",\"\",'MHP Family Income & Rent Limits'!$F$8)","v":""},{"$f":"IF(A360=\"\",\"\",'1. Checklist & Certification'!$G$4)","v":""},{"$f":"IF(A360=\"\",\"\",'1. Checklist & Certification'!$K$39)","v":""},{"$f":"IF(A360=\"\",\"\",'1. Checklist & Certification'!$K$43)","v":""},{"$f":"IF(A360=\"\",\"\",'1. Checklist & Certification'!$K$45)","v":""},{"$f":"IF(A360=\"\",\"\",'1. Checklist & Certification'!$K$49)","v":""},{"$f":"IF(A360=\"\",\"\",'1. Checklist & Certification'!$E$66)","v":""},{"$f":"IF(A360=\"\",\"\",'1. Checklist & Certification'!$E$67)","v":""},{"$f":"IF(A360=\"\",\"\",'1. Checklist & Certification'!$E$68)","v":""},{"$f":"IF(A360=\"\",\"\",'1. Checklist & Certification'!$G$66)","v":""},{"$f":"IF(A360=\"\",\"\",'1. Checklist & Certification'!$H$66)","v":""},{"$f":"IF(A360=\"\",\"\",'1. Checklist & Certification'!$I$66)","v":""},{"$f":"IF(A360=\"\",\"\",'1. Checklist & Certification'!$I$67)","v":""},{"$f":"IF(A360=\"\",\"\",'1. Checklist & Certification'!$I$68)","v":""},null,{"$f":"IF(C360=\"\",\"\",HLOOKUP(C360,'MHP Family Income & Rent Limits'!$E$12:$L$26,2,FALSE))","v":""},{"$f":"IF(C360=\"\",\"\",HLOOKUP(C360,'MHP Family Income & Rent Limits'!$E$12:$L$26,3,FALSE))","v":""},{"$f":"IF(C360=\"\",\"\",HLOOKUP(C360,'MHP Family Income & Rent Limits'!$E$12:$L$26,4,FALSE))","v":""},{"$f":"IF(C360=\"\",\"\",HLOOKUP(C360,'MHP Family Income & Rent Limits'!$E$12:$L$26,5,FALSE))","v":""},{"$f":"IF(C360=\"\",\"\",HLOOKUP(C360,'MHP Family Income & Rent Limits'!$E$12:$L$26,6,FALSE))","v":""},{"$f":"IF(C360=\"\",\"\",HLOOKUP(C360,'MHP Family Income & Rent Limits'!$E$12:$L$26,7,FALSE))","v":""},{"$f":"IF(C360=\"\",\"\",HLOOKUP(C360,'MHP Family Income & Rent Limits'!$E$12:$L$26,8,FALSE))","v":""},{"$f":"IF(C360=\"\",\"\",HLOOKUP(C360,'MHP Family Income & Rent Limits'!$E$12:$L$26,9,FALSE))","v":""},{"$f":"IF(C360=\"\",\"\",HLOOKUP(C360,'MHP Family Income & Rent Limits'!$E$12:$L$26,10,FALSE))","v":""},{"$f":"IF(C360=\"\",\"\",HLOOKUP(C360,'MHP Family Income & Rent Limits'!$E$12:$L$26,11,FALSE))","v":""},{"$f":"IF(C360=\"\",\"\",HLOOKUP(C360,'MHP Family Income & Rent Limits'!$E$12:$L$26,12,FALSE))","v":""},{"$f":"IF(C360=\"\",\"\",HLOOKUP(C360,'MHP Family Income & Rent Limits'!$E$12:$L$26,13,FALSE))","v":""},{"$f":"IF(C360=\"\",\"\",HLOOKUP(C360,'MHP Family Income & Rent Limits'!$E$12:$L$26,14,FALSE))","v":""},{"$f":"IF(C360=\"\",\"\",HLOOKUP(C360,'MHP Family Income & Rent Limits'!$E$12:$L$26,15,FALSE))","v":""}]
[{"$f":"IF('2. Assisted & Restricted Units'!A361=\"\",\"\",'2. Assisted & Restricted Units'!A361)","v":""},{"$f":"IF('2. Assisted & Restricted Units'!B361=\"\",\"\",'2. Assisted & Restricted Units'!B361)","v":""},{"$f":"IF('2. Assisted & Restricted Units'!D361=\"\",\"\",'2. Assisted & Restricted Units'!D361)","v":""},{"$f":"IF('2. Assisted & Restricted Units'!E361=\"\",\"\",'2. Assisted & Restricted Units'!E361)","v":""},{"$f":"IF('2. Assisted & Restricted Units'!H361=\"\",\"\",'2. Assisted & Restricted Units'!H361)","v":""},{"$f":"_xlfn.IFS(E361=\"\",\"\",E361>BO361,$BP$6,E361>BN361,$BO$6,E361>BM361,$BN$6,E361>BL361,$BM$6,E361>BK361,$BL$6,E361>BJ361,$BK$6,E361>BI361,$BJ$6,E361>BH361,$BI$6,E361>BG361,$BH$6,E361>BF361,$BG$6,E361>BE361,$BF$6,E361>BD361,$BE$6,E361>BC361,$BD$6,E361>=0,$BC$6)","v":""},{"$f":"IF('2. Assisted & Restricted Units'!T361=\"\",\"\",'2. Assisted & Restricted Units'!T361)","v":""},{"$f":"IF('2. Assisted & Restricted Units'!I361=\"\",\"\",'2. Assisted & Restricted Units'!I361)","v":""},{"$f":"IF('2. Assisted & Restricted Units'!AP361=\"\",\"\",'2. Assisted & Restricted Units'!AP361)","v":0},{"$f":"IF('2. Assisted & Restricted Units'!AT361=\"\",\"\",'2. Assisted & Restricted Units'!AT361)","v":""},0,{"$f":"IF('2. Assisted & Restricted Units'!AV361=\"\",\"\",'2. Assisted & Restricted Units'!AV361)","v":""},{"$f":"IF('2. Assisted & Restricted Units'!L361=\"\",\"\",'2. Assisted & Restricted Units'!L361)","v":""},{"$f":"IF('2. Assisted & Restricted Units'!M361=\"\",\"\",'2. Assisted & Restricted Units'!M361)","v":""},{"$f":"IF('2. Assisted & Restricted Units'!O361=\"\",\"\",'2. Assisted & Restricted Units'!O361)","v":""},{"$f":"IF('2. Assisted & Restricted Units'!P361=\"\",\"\",'2. Assisted & Restricted Units'!P361)","v":""},{"$f":"IF('2. Assisted & Restricted Units'!Q361=\"\",\"\",'2. Assisted & Restricted Units'!Q361)","v":""},{"$f":"IF('2. Assisted & Restricted Units'!R361=\"\",\"\",'2. Assisted & Restricted Units'!R361)","v":""},{"$f":"IF(A361=\"\",\"\",'1. Checklist & Certification'!$K$1)","v":""},{"$f":"IF(A361=\"\",\"\",'1. Checklist & Certification'!$C$62)","v":""},{"$f":"IF(A361=\"\",\"\",'1. Checklist & Certification'!$K$62)","v":""},{"$f":"IF(A361=\"\",\"\",'1. Checklist & Certification'!$C$6)","v":""},{"$f":"IF(A361=\"\",\"\",'1. Checklist & Certification'!$G$4)","v":""},{"$f":"IF(A361=\"\",\"\",'1. Checklist & Certification'!$C$7)","v":""},{"$f":"IF(A361=\"\",\"\",'1. Checklist & Certification'!$C$8)","v":""},{"$f":"IF(A361=\"\",\"\",'1. Checklist & Certification'!$F$7)","v":""},{"$f":"IF(A361=\"\",\"\",'1. Checklist & Certification'!$F$8)","v":""},{"$f":"IF(A361=\"\",\"\",'1. Checklist & Certification'!$B$9)","v":""},{"$f":"IF(A361=\"\",\"\",'1. Checklist & Certification'!$F$9)","v":""},{"$f":"IF(A361=\"\",\"\",'1. Checklist & Certification'!$C$10)","v":""},{"$f":"IF(A361=\"\",\"\",'1. Checklist & Certification'!$C$11)","v":""},{"$f":"IF(A361=\"\",\"\",'1. Checklist & Certification'!$C$12)","v":""},{"$f":"IF(A361=\"\",\"\",'1. Checklist & Certification'!$B$14)","v":""},{"$f":"IF(A361=\"\",\"\",'1. Checklist & Certification'!$E$14)","v":""},{"$f":"IF(B361=\"\",\"\",'1. Checklist & Certification'!$G$14)","v":""},{"$f":"IF(A361=\"\",\"\",'MHP Family Income & Rent Limits'!$B$3)","v":""},{"$f":"IF(A361=\"\",\"\",'MHP Family Income & Rent Limits'!$J$3)","v":""},{"$f":"IF(A361=\"\",\"\",'MHP Family Income & Rent Limits'!$E$4)","v":""},{"$f":"IF(A361=\"\",\"\",'MHP Family Income & Rent Limits'!$C$7)","v":""},{"$f":"IF(A361=\"\",\"\",'MHP Family Income & Rent Limits'!$F$8)","v":""},{"$f":"IF(A361=\"\",\"\",'1. Checklist & Certification'!$G$4)","v":""},{"$f":"IF(A361=\"\",\"\",'1. Checklist & Certification'!$K$39)","v":""},{"$f":"IF(A361=\"\",\"\",'1. Checklist & Certification'!$K$43)","v":""},{"$f":"IF(A361=\"\",\"\",'1. Checklist & Certification'!$K$45)","v":""},{"$f":"IF(A361=\"\",\"\",'1. Checklist & Certification'!$K$49)","v":""},{"$f":"IF(A361=\"\",\"\",'1. Checklist & Certification'!$E$66)","v":""},{"$f":"IF(A361=\"\",\"\",'1. Checklist & Certification'!$E$67)","v":""},{"$f":"IF(A361=\"\",\"\",'1. Checklist & Certification'!$E$68)","v":""},{"$f":"IF(A361=\"\",\"\",'1. Checklist & Certification'!$G$66)","v":""},{"$f":"IF(A361=\"\",\"\",'1. Checklist & Certification'!$H$66)","v":""},{"$f":"IF(A361=\"\",\"\",'1. Checklist & Certification'!$I$66)","v":""},{"$f":"IF(A361=\"\",\"\",'1. Checklist & Certification'!$I$67)","v":""},{"$f":"IF(A361=\"\",\"\",'1. Checklist & Certification'!$I$68)","v":""},null,{"$f":"IF(C361=\"\",\"\",HLOOKUP(C361,'MHP Family Income & Rent Limits'!$E$12:$L$26,2,FALSE))","v":""},{"$f":"IF(C361=\"\",\"\",HLOOKUP(C361,'MHP Family Income & Rent Limits'!$E$12:$L$26,3,FALSE))","v":""},{"$f":"IF(C361=\"\",\"\",HLOOKUP(C361,'MHP Family Income & Rent Limits'!$E$12:$L$26,4,FALSE))","v":""},{"$f":"IF(C361=\"\",\"\",HLOOKUP(C361,'MHP Family Income & Rent Limits'!$E$12:$L$26,5,FALSE))","v":""},{"$f":"IF(C361=\"\",\"\",HLOOKUP(C361,'MHP Family Income & Rent Limits'!$E$12:$L$26,6,FALSE))","v":""},{"$f":"IF(C361=\"\",\"\",HLOOKUP(C361,'MHP Family Income & Rent Limits'!$E$12:$L$26,7,FALSE))","v":""},{"$f":"IF(C361=\"\",\"\",HLOOKUP(C361,'MHP Family Income & Rent Limits'!$E$12:$L$26,8,FALSE))","v":""},{"$f":"IF(C361=\"\",\"\",HLOOKUP(C361,'MHP Family Income & Rent Limits'!$E$12:$L$26,9,FALSE))","v":""},{"$f":"IF(C361=\"\",\"\",HLOOKUP(C361,'MHP Family Income & Rent Limits'!$E$12:$L$26,10,FALSE))","v":""},{"$f":"IF(C361=\"\",\"\",HLOOKUP(C361,'MHP Family Income & Rent Limits'!$E$12:$L$26,11,FALSE))","v":""},{"$f":"IF(C361=\"\",\"\",HLOOKUP(C361,'MHP Family Income & Rent Limits'!$E$12:$L$26,12,FALSE))","v":""},{"$f":"IF(C361=\"\",\"\",HLOOKUP(C361,'MHP Family Income & Rent Limits'!$E$12:$L$26,13,FALSE))","v":""},{"$f":"IF(C361=\"\",\"\",HLOOKUP(C361,'MHP Family Income & Rent Limits'!$E$12:$L$26,14,FALSE))","v":""},{"$f":"IF(C361=\"\",\"\",HLOOKUP(C361,'MHP Family Income & Rent Limits'!$E$12:$L$26,15,FALSE))","v":""}]
[{"$f":"IF('2. Assisted & Restricted Units'!A362=\"\",\"\",'2. Assisted & Restricted Units'!A362)","v":""},{"$f":"IF('2. Assisted & Restricted Units'!B362=\"\",\"\",'2. Assisted & Restricted Units'!B362)","v":""},{"$f":"IF('2. Assisted & Restricted Units'!D362=\"\",\"\",'2. Assisted & Restricted Units'!D362)","v":""},{"$f":"IF('2. Assisted & Restricted Units'!E362=\"\",\"\",'2. Assisted & Restricted Units'!E362)","v":""},{"$f":"IF('2. Assisted & Restricted Units'!H362=\"\",\"\",'2. Assisted & Restricted Units'!H362)","v":""},{"$f":"_xlfn.IFS(E362=\"\",\"\",E362>BO362,$BP$6,E362>BN362,$BO$6,E362>BM362,$BN$6,E362>BL362,$BM$6,E362>BK362,$BL$6,E362>BJ362,$BK$6,E362>BI362,$BJ$6,E362>BH362,$BI$6,E362>BG362,$BH$6,E362>BF362,$BG$6,E362>BE362,$BF$6,E362>BD362,$BE$6,E362>BC362,$BD$6,E362>=0,$BC$6)","v":""},{"$f":"IF('2. Assisted & Restricted Units'!T362=\"\",\"\",'2. Assisted & Restricted Units'!T362)","v":""},{"$f":"IF('2. Assisted & Restricted Units'!I362=\"\",\"\",'2. Assisted & Restricted Units'!I362)","v":""},{"$f":"IF('2. Assisted & Restricted Units'!AP362=\"\",\"\",'2. Assisted & Restricted Units'!AP362)","v":0},{"$f":"IF('2. Assisted & Restricted Units'!AT362=\"\",\"\",'2. Assisted & Restricted Units'!AT362)","v":""},0,{"$f":"IF('2. Assisted & Restricted Units'!AV362=\"\",\"\",'2. Assisted & Restricted Units'!AV362)","v":""},{"$f":"IF('2. Assisted & Restricted Units'!L362=\"\",\"\",'2. Assisted & Restricted Units'!L362)","v":""},{"$f":"IF('2. Assisted & Restricted Units'!M362=\"\",\"\",'2. Assisted & Restricted Units'!M362)","v":""},{"$f":"IF('2. Assisted & Restricted Units'!O362=\"\",\"\",'2. Assisted & Restricted Units'!O362)","v":""},{"$f":"IF('2. Assisted & Restricted Units'!P362=\"\",\"\",'2. Assisted & Restricted Units'!P362)","v":""},{"$f":"IF('2. Assisted & Restricted Units'!Q362=\"\",\"\",'2. Assisted & Restricted Units'!Q362)","v":""},{"$f":"IF('2. Assisted & Restricted Units'!R362=\"\",\"\",'2. Assisted & Restricted Units'!R362)","v":""},{"$f":"IF(A362=\"\",\"\",'1. Checklist & Certification'!$K$1)","v":""},{"$f":"IF(A362=\"\",\"\",'1. Checklist & Certification'!$C$62)","v":""},{"$f":"IF(A362=\"\",\"\",'1. Checklist & Certification'!$K$62)","v":""},{"$f":"IF(A362=\"\",\"\",'1. Checklist & Certification'!$C$6)","v":""},{"$f":"IF(A362=\"\",\"\",'1. Checklist & Certification'!$G$4)","v":""},{"$f":"IF(A362=\"\",\"\",'1. Checklist & Certification'!$C$7)","v":""},{"$f":"IF(A362=\"\",\"\",'1. Checklist & Certification'!$C$8)","v":""},{"$f":"IF(A362=\"\",\"\",'1. Checklist & Certification'!$F$7)","v":""},{"$f":"IF(A362=\"\",\"\",'1. Checklist & Certification'!$F$8)","v":""},{"$f":"IF(A362=\"\",\"\",'1. Checklist & Certification'!$B$9)","v":""},{"$f":"IF(A362=\"\",\"\",'1. Checklist & Certification'!$F$9)","v":""},{"$f":"IF(A362=\"\",\"\",'1. Checklist & Certification'!$C$10)","v":""},{"$f":"IF(A362=\"\",\"\",'1. Checklist & Certification'!$C$11)","v":""},{"$f":"IF(A362=\"\",\"\",'1. Checklist & Certification'!$C$12)","v":""},{"$f":"IF(A362=\"\",\"\",'1. Checklist & Certification'!$B$14)","v":""},{"$f":"IF(A362=\"\",\"\",'1. Checklist & Certification'!$E$14)","v":""},{"$f":"IF(B362=\"\",\"\",'1. Checklist & Certification'!$G$14)","v":""},{"$f":"IF(A362=\"\",\"\",'MHP Family Income & Rent Limits'!$B$3)","v":""},{"$f":"IF(A362=\"\",\"\",'MHP Family Income & Rent Limits'!$J$3)","v":""},{"$f":"IF(A362=\"\",\"\",'MHP Family Income & Rent Limits'!$E$4)","v":""},{"$f":"IF(A362=\"\",\"\",'MHP Family Income & Rent Limits'!$C$7)","v":""},{"$f":"IF(A362=\"\",\"\",'MHP Family Income & Rent Limits'!$F$8)","v":""},{"$f":"IF(A362=\"\",\"\",'1. Checklist & Certification'!$G$4)","v":""},{"$f":"IF(A362=\"\",\"\",'1. Checklist & Certification'!$K$39)","v":""},{"$f":"IF(A362=\"\",\"\",'1. Checklist & Certification'!$K$43)","v":""},{"$f":"IF(A362=\"\",\"\",'1. Checklist & Certification'!$K$45)","v":""},{"$f":"IF(A362=\"\",\"\",'1. Checklist & Certification'!$K$49)","v":""},{"$f":"IF(A362=\"\",\"\",'1. Checklist & Certification'!$E$66)","v":""},{"$f":"IF(A362=\"\",\"\",'1. Checklist & Certification'!$E$67)","v":""},{"$f":"IF(A362=\"\",\"\",'1. Checklist & Certification'!$E$68)","v":""},{"$f":"IF(A362=\"\",\"\",'1. Checklist & Certification'!$G$66)","v":""},{"$f":"IF(A362=\"\",\"\",'1. Checklist & Certification'!$H$66)","v":""},{"$f":"IF(A362=\"\",\"\",'1. Checklist & Certification'!$I$66)","v":""},{"$f":"IF(A362=\"\",\"\",'1. Checklist & Certification'!$I$67)","v":""},{"$f":"IF(A362=\"\",\"\",'1. Checklist & Certification'!$I$68)","v":""},null,{"$f":"IF(C362=\"\",\"\",HLOOKUP(C362,'MHP Family Income & Rent Limits'!$E$12:$L$26,2,FALSE))","v":""},{"$f":"IF(C362=\"\",\"\",HLOOKUP(C362,'MHP Family Income & Rent Limits'!$E$12:$L$26,3,FALSE))","v":""},{"$f":"IF(C362=\"\",\"\",HLOOKUP(C362,'MHP Family Income & Rent Limits'!$E$12:$L$26,4,FALSE))","v":""},{"$f":"IF(C362=\"\",\"\",HLOOKUP(C362,'MHP Family Income & Rent Limits'!$E$12:$L$26,5,FALSE))","v":""},{"$f":"IF(C362=\"\",\"\",HLOOKUP(C362,'MHP Family Income & Rent Limits'!$E$12:$L$26,6,FALSE))","v":""},{"$f":"IF(C362=\"\",\"\",HLOOKUP(C362,'MHP Family Income & Rent Limits'!$E$12:$L$26,7,FALSE))","v":""},{"$f":"IF(C362=\"\",\"\",HLOOKUP(C362,'MHP Family Income & Rent Limits'!$E$12:$L$26,8,FALSE))","v":""},{"$f":"IF(C362=\"\",\"\",HLOOKUP(C362,'MHP Family Income & Rent Limits'!$E$12:$L$26,9,FALSE))","v":""},{"$f":"IF(C362=\"\",\"\",HLOOKUP(C362,'MHP Family Income & Rent Limits'!$E$12:$L$26,10,FALSE))","v":""},{"$f":"IF(C362=\"\",\"\",HLOOKUP(C362,'MHP Family Income & Rent Limits'!$E$12:$L$26,11,FALSE))","v":""},{"$f":"IF(C362=\"\",\"\",HLOOKUP(C362,'MHP Family Income & Rent Limits'!$E$12:$L$26,12,FALSE))","v":""},{"$f":"IF(C362=\"\",\"\",HLOOKUP(C362,'MHP Family Income & Rent Limits'!$E$12:$L$26,13,FALSE))","v":""},{"$f":"IF(C362=\"\",\"\",HLOOKUP(C362,'MHP Family Income & Rent Limits'!$E$12:$L$26,14,FALSE))","v":""},{"$f":"IF(C362=\"\",\"\",HLOOKUP(C362,'MHP Family Income & Rent Limits'!$E$12:$L$26,15,FALSE))","v":""}]
[{"$f":"IF('2. Assisted & Restricted Units'!A363=\"\",\"\",'2. Assisted & Restricted Units'!A363)","v":""},{"$f":"IF('2. Assisted & Restricted Units'!B363=\"\",\"\",'2. Assisted & Restricted Units'!B363)","v":""},{"$f":"IF('2. Assisted & Restricted Units'!D363=\"\",\"\",'2. Assisted & Restricted Units'!D363)","v":""},{"$f":"IF('2. Assisted & Restricted Units'!E363=\"\",\"\",'2. Assisted & Restricted Units'!E363)","v":""},{"$f":"IF('2. Assisted & Restricted Units'!H363=\"\",\"\",'2. Assisted & Restricted Units'!H363)","v":""},{"$f":"_xlfn.IFS(E363=\"\",\"\",E363>BO363,$BP$6,E363>BN363,$BO$6,E363>BM363,$BN$6,E363>BL363,$BM$6,E363>BK363,$BL$6,E363>BJ363,$BK$6,E363>BI363,$BJ$6,E363>BH363,$BI$6,E363>BG363,$BH$6,E363>BF363,$BG$6,E363>BE363,$BF$6,E363>BD363,$BE$6,E363>BC363,$BD$6,E363>=0,$BC$6)","v":""},{"$f":"IF('2. Assisted & Restricted Units'!T363=\"\",\"\",'2. Assisted & Restricted Units'!T363)","v":""},{"$f":"IF('2. Assisted & Restricted Units'!I363=\"\",\"\",'2. Assisted & Restricted Units'!I363)","v":""},{"$f":"IF('2. Assisted & Restricted Units'!AP363=\"\",\"\",'2. Assisted & Restricted Units'!AP363)","v":0},{"$f":"IF('2. Assisted & Restricted Units'!AT363=\"\",\"\",'2. Assisted & Restricted Units'!AT363)","v":""},0,{"$f":"IF('2. Assisted & Restricted Units'!AV363=\"\",\"\",'2. Assisted & Restricted Units'!AV363)","v":""},{"$f":"IF('2. Assisted & Restricted Units'!L363=\"\",\"\",'2. Assisted & Restricted Units'!L363)","v":""},{"$f":"IF('2. Assisted & Restricted Units'!M363=\"\",\"\",'2. Assisted & Restricted Units'!M363)","v":""},{"$f":"IF('2. Assisted & Restricted Units'!O363=\"\",\"\",'2. Assisted & Restricted Units'!O363)","v":""},{"$f":"IF('2. Assisted & Restricted Units'!P363=\"\",\"\",'2. Assisted & Restricted Units'!P363)","v":""},{"$f":"IF('2. Assisted & Restricted Units'!Q363=\"\",\"\",'2. Assisted & Restricted Units'!Q363)","v":""},{"$f":"IF('2. Assisted & Restricted Units'!R363=\"\",\"\",'2. Assisted & Restricted Units'!R363)","v":""},{"$f":"IF(A363=\"\",\"\",'1. Checklist & Certification'!$K$1)","v":""},{"$f":"IF(A363=\"\",\"\",'1. Checklist & Certification'!$C$62)","v":""},{"$f":"IF(A363=\"\",\"\",'1. Checklist & Certification'!$K$62)","v":""},{"$f":"IF(A363=\"\",\"\",'1. Checklist & Certification'!$C$6)","v":""},{"$f":"IF(A363=\"\",\"\",'1. Checklist & Certification'!$G$4)","v":""},{"$f":"IF(A363=\"\",\"\",'1. Checklist & Certification'!$C$7)","v":""},{"$f":"IF(A363=\"\",\"\",'1. Checklist & Certification'!$C$8)","v":""},{"$f":"IF(A363=\"\",\"\",'1. Checklist & Certification'!$F$7)","v":""},{"$f":"IF(A363=\"\",\"\",'1. Checklist & Certification'!$F$8)","v":""},{"$f":"IF(A363=\"\",\"\",'1. Checklist & Certification'!$B$9)","v":""},{"$f":"IF(A363=\"\",\"\",'1. Checklist & Certification'!$F$9)","v":""},{"$f":"IF(A363=\"\",\"\",'1. Checklist & Certification'!$C$10)","v":""},{"$f":"IF(A363=\"\",\"\",'1. Checklist & Certification'!$C$11)","v":""},{"$f":"IF(A363=\"\",\"\",'1. Checklist & Certification'!$C$12)","v":""},{"$f":"IF(A363=\"\",\"\",'1. Checklist & Certification'!$B$14)","v":""},{"$f":"IF(A363=\"\",\"\",'1. Checklist & Certification'!$E$14)","v":""},{"$f":"IF(B363=\"\",\"\",'1. Checklist & Certification'!$G$14)","v":""},{"$f":"IF(A363=\"\",\"\",'MHP Family Income & Rent Limits'!$B$3)","v":""},{"$f":"IF(A363=\"\",\"\",'MHP Family Income & Rent Limits'!$J$3)","v":""},{"$f":"IF(A363=\"\",\"\",'MHP Family Income & Rent Limits'!$E$4)","v":""},{"$f":"IF(A363=\"\",\"\",'MHP Family Income & Rent Limits'!$C$7)","v":""},{"$f":"IF(A363=\"\",\"\",'MHP Family Income & Rent Limits'!$F$8)","v":""},{"$f":"IF(A363=\"\",\"\",'1. Checklist & Certification'!$G$4)","v":""},{"$f":"IF(A363=\"\",\"\",'1. Checklist & Certification'!$K$39)","v":""},{"$f":"IF(A363=\"\",\"\",'1. Checklist & Certification'!$K$43)","v":""},{"$f":"IF(A363=\"\",\"\",'1. Checklist & Certification'!$K$45)","v":""},{"$f":"IF(A363=\"\",\"\",'1. Checklist & Certification'!$K$49)","v":""},{"$f":"IF(A363=\"\",\"\",'1. Checklist & Certification'!$E$66)","v":""},{"$f":"IF(A363=\"\",\"\",'1. Checklist & Certification'!$E$67)","v":""},{"$f":"IF(A363=\"\",\"\",'1. Checklist & Certification'!$E$68)","v":""},{"$f":"IF(A363=\"\",\"\",'1. Checklist & Certification'!$G$66)","v":""},{"$f":"IF(A363=\"\",\"\",'1. Checklist & Certification'!$H$66)","v":""},{"$f":"IF(A363=\"\",\"\",'1. Checklist & Certification'!$I$66)","v":""},{"$f":"IF(A363=\"\",\"\",'1. Checklist & Certification'!$I$67)","v":""},{"$f":"IF(A363=\"\",\"\",'1. Checklist & Certification'!$I$68)","v":""},null,{"$f":"IF(C363=\"\",\"\",HLOOKUP(C363,'MHP Family Income & Rent Limits'!$E$12:$L$26,2,FALSE))","v":""},{"$f":"IF(C363=\"\",\"\",HLOOKUP(C363,'MHP Family Income & Rent Limits'!$E$12:$L$26,3,FALSE))","v":""},{"$f":"IF(C363=\"\",\"\",HLOOKUP(C363,'MHP Family Income & Rent Limits'!$E$12:$L$26,4,FALSE))","v":""},{"$f":"IF(C363=\"\",\"\",HLOOKUP(C363,'MHP Family Income & Rent Limits'!$E$12:$L$26,5,FALSE))","v":""},{"$f":"IF(C363=\"\",\"\",HLOOKUP(C363,'MHP Family Income & Rent Limits'!$E$12:$L$26,6,FALSE))","v":""},{"$f":"IF(C363=\"\",\"\",HLOOKUP(C363,'MHP Family Income & Rent Limits'!$E$12:$L$26,7,FALSE))","v":""},{"$f":"IF(C363=\"\",\"\",HLOOKUP(C363,'MHP Family Income & Rent Limits'!$E$12:$L$26,8,FALSE))","v":""},{"$f":"IF(C363=\"\",\"\",HLOOKUP(C363,'MHP Family Income & Rent Limits'!$E$12:$L$26,9,FALSE))","v":""},{"$f":"IF(C363=\"\",\"\",HLOOKUP(C363,'MHP Family Income & Rent Limits'!$E$12:$L$26,10,FALSE))","v":""},{"$f":"IF(C363=\"\",\"\",HLOOKUP(C363,'MHP Family Income & Rent Limits'!$E$12:$L$26,11,FALSE))","v":""},{"$f":"IF(C363=\"\",\"\",HLOOKUP(C363,'MHP Family Income & Rent Limits'!$E$12:$L$26,12,FALSE))","v":""},{"$f":"IF(C363=\"\",\"\",HLOOKUP(C363,'MHP Family Income & Rent Limits'!$E$12:$L$26,13,FALSE))","v":""},{"$f":"IF(C363=\"\",\"\",HLOOKUP(C363,'MHP Family Income & Rent Limits'!$E$12:$L$26,14,FALSE))","v":""},{"$f":"IF(C363=\"\",\"\",HLOOKUP(C363,'MHP Family Income & Rent Limits'!$E$12:$L$26,15,FALSE))","v":""}]
[{"$f":"IF('2. Assisted & Restricted Units'!A364=\"\",\"\",'2. Assisted & Restricted Units'!A364)","v":""},{"$f":"IF('2. Assisted & Restricted Units'!B364=\"\",\"\",'2. Assisted & Restricted Units'!B364)","v":""},{"$f":"IF('2. Assisted & Restricted Units'!D364=\"\",\"\",'2. Assisted & Restricted Units'!D364)","v":""},{"$f":"IF('2. Assisted & Restricted Units'!E364=\"\",\"\",'2. Assisted & Restricted Units'!E364)","v":""},{"$f":"IF('2. Assisted & Restricted Units'!H364=\"\",\"\",'2. Assisted & Restricted Units'!H364)","v":""},{"$f":"_xlfn.IFS(E364=\"\",\"\",E364>BO364,$BP$6,E364>BN364,$BO$6,E364>BM364,$BN$6,E364>BL364,$BM$6,E364>BK364,$BL$6,E364>BJ364,$BK$6,E364>BI364,$BJ$6,E364>BH364,$BI$6,E364>BG364,$BH$6,E364>BF364,$BG$6,E364>BE364,$BF$6,E364>BD364,$BE$6,E364>BC364,$BD$6,E364>=0,$BC$6)","v":""},{"$f":"IF('2. Assisted & Restricted Units'!T364=\"\",\"\",'2. Assisted & Restricted Units'!T364)","v":""},{"$f":"IF('2. Assisted & Restricted Units'!I364=\"\",\"\",'2. Assisted & Restricted Units'!I364)","v":""},{"$f":"IF('2. Assisted & Restricted Units'!AP364=\"\",\"\",'2. Assisted & Restricted Units'!AP364)","v":0},{"$f":"IF('2. Assisted & Restricted Units'!AT364=\"\",\"\",'2. Assisted & Restricted Units'!AT364)","v":""},0,{"$f":"IF('2. Assisted & Restricted Units'!AV364=\"\",\"\",'2. Assisted & Restricted Units'!AV364)","v":""},{"$f":"IF('2. Assisted & Restricted Units'!L364=\"\",\"\",'2. Assisted & Restricted Units'!L364)","v":""},{"$f":"IF('2. Assisted & Restricted Units'!M364=\"\",\"\",'2. Assisted & Restricted Units'!M364)","v":""},{"$f":"IF('2. Assisted & Restricted Units'!O364=\"\",\"\",'2. Assisted & Restricted Units'!O364)","v":""},{"$f":"IF('2. Assisted & Restricted Units'!P364=\"\",\"\",'2. Assisted & Restricted Units'!P364)","v":""},{"$f":"IF('2. Assisted & Restricted Units'!Q364=\"\",\"\",'2. Assisted & Restricted Units'!Q364)","v":""},{"$f":"IF('2. Assisted & Restricted Units'!R364=\"\",\"\",'2. Assisted & Restricted Units'!R364)","v":""},{"$f":"IF(A364=\"\",\"\",'1. Checklist & Certification'!$K$1)","v":""},{"$f":"IF(A364=\"\",\"\",'1. Checklist & Certification'!$C$62)","v":""},{"$f":"IF(A364=\"\",\"\",'1. Checklist & Certification'!$K$62)","v":""},{"$f":"IF(A364=\"\",\"\",'1. Checklist & Certification'!$C$6)","v":""},{"$f":"IF(A364=\"\",\"\",'1. Checklist & Certification'!$G$4)","v":""},{"$f":"IF(A364=\"\",\"\",'1. Checklist & Certification'!$C$7)","v":""},{"$f":"IF(A364=\"\",\"\",'1. Checklist & Certification'!$C$8)","v":""},{"$f":"IF(A364=\"\",\"\",'1. Checklist & Certification'!$F$7)","v":""},{"$f":"IF(A364=\"\",\"\",'1. Checklist & Certification'!$F$8)","v":""},{"$f":"IF(A364=\"\",\"\",'1. Checklist & Certification'!$B$9)","v":""},{"$f":"IF(A364=\"\",\"\",'1. Checklist & Certification'!$F$9)","v":""},{"$f":"IF(A364=\"\",\"\",'1. Checklist & Certification'!$C$10)","v":""},{"$f":"IF(A364=\"\",\"\",'1. Checklist & Certification'!$C$11)","v":""},{"$f":"IF(A364=\"\",\"\",'1. Checklist & Certification'!$C$12)","v":""},{"$f":"IF(A364=\"\",\"\",'1. Checklist & Certification'!$B$14)","v":""},{"$f":"IF(A364=\"\",\"\",'1. Checklist & Certification'!$E$14)","v":""},{"$f":"IF(B364=\"\",\"\",'1. Checklist & Certification'!$G$14)","v":""},{"$f":"IF(A364=\"\",\"\",'MHP Family Income & Rent Limits'!$B$3)","v":""},{"$f":"IF(A364=\"\",\"\",'MHP Family Income & Rent Limits'!$J$3)","v":""},{"$f":"IF(A364=\"\",\"\",'MHP Family Income & Rent Limits'!$E$4)","v":""},{"$f":"IF(A364=\"\",\"\",'MHP Family Income & Rent Limits'!$C$7)","v":""},{"$f":"IF(A364=\"\",\"\",'MHP Family Income & Rent Limits'!$F$8)","v":""},{"$f":"IF(A364=\"\",\"\",'1. Checklist & Certification'!$G$4)","v":""},{"$f":"IF(A364=\"\",\"\",'1. Checklist & Certification'!$K$39)","v":""},{"$f":"IF(A364=\"\",\"\",'1. Checklist & Certification'!$K$43)","v":""},{"$f":"IF(A364=\"\",\"\",'1. Checklist & Certification'!$K$45)","v":""},{"$f":"IF(A364=\"\",\"\",'1. Checklist & Certification'!$K$49)","v":""},{"$f":"IF(A364=\"\",\"\",'1. Checklist & Certification'!$E$66)","v":""},{"$f":"IF(A364=\"\",\"\",'1. Checklist & Certification'!$E$67)","v":""},{"$f":"IF(A364=\"\",\"\",'1. Checklist & Certification'!$E$68)","v":""},{"$f":"IF(A364=\"\",\"\",'1. Checklist & Certification'!$G$66)","v":""},{"$f":"IF(A364=\"\",\"\",'1. Checklist & Certification'!$H$66)","v":""},{"$f":"IF(A364=\"\",\"\",'1. Checklist & Certification'!$I$66)","v":""},{"$f":"IF(A364=\"\",\"\",'1. Checklist & Certification'!$I$67)","v":""},{"$f":"IF(A364=\"\",\"\",'1. Checklist & Certification'!$I$68)","v":""},null,{"$f":"IF(C364=\"\",\"\",HLOOKUP(C364,'MHP Family Income & Rent Limits'!$E$12:$L$26,2,FALSE))","v":""},{"$f":"IF(C364=\"\",\"\",HLOOKUP(C364,'MHP Family Income & Rent Limits'!$E$12:$L$26,3,FALSE))","v":""},{"$f":"IF(C364=\"\",\"\",HLOOKUP(C364,'MHP Family Income & Rent Limits'!$E$12:$L$26,4,FALSE))","v":""},{"$f":"IF(C364=\"\",\"\",HLOOKUP(C364,'MHP Family Income & Rent Limits'!$E$12:$L$26,5,FALSE))","v":""},{"$f":"IF(C364=\"\",\"\",HLOOKUP(C364,'MHP Family Income & Rent Limits'!$E$12:$L$26,6,FALSE))","v":""},{"$f":"IF(C364=\"\",\"\",HLOOKUP(C364,'MHP Family Income & Rent Limits'!$E$12:$L$26,7,FALSE))","v":""},{"$f":"IF(C364=\"\",\"\",HLOOKUP(C364,'MHP Family Income & Rent Limits'!$E$12:$L$26,8,FALSE))","v":""},{"$f":"IF(C364=\"\",\"\",HLOOKUP(C364,'MHP Family Income & Rent Limits'!$E$12:$L$26,9,FALSE))","v":""},{"$f":"IF(C364=\"\",\"\",HLOOKUP(C364,'MHP Family Income & Rent Limits'!$E$12:$L$26,10,FALSE))","v":""},{"$f":"IF(C364=\"\",\"\",HLOOKUP(C364,'MHP Family Income & Rent Limits'!$E$12:$L$26,11,FALSE))","v":""},{"$f":"IF(C364=\"\",\"\",HLOOKUP(C364,'MHP Family Income & Rent Limits'!$E$12:$L$26,12,FALSE))","v":""},{"$f":"IF(C364=\"\",\"\",HLOOKUP(C364,'MHP Family Income & Rent Limits'!$E$12:$L$26,13,FALSE))","v":""},{"$f":"IF(C364=\"\",\"\",HLOOKUP(C364,'MHP Family Income & Rent Limits'!$E$12:$L$26,14,FALSE))","v":""},{"$f":"IF(C364=\"\",\"\",HLOOKUP(C364,'MHP Family Income & Rent Limits'!$E$12:$L$26,15,FALSE))","v":""}]
[{"$f":"IF('2. Assisted & Restricted Units'!A365=\"\",\"\",'2. Assisted & Restricted Units'!A365)","v":""},{"$f":"IF('2. Assisted & Restricted Units'!B365=\"\",\"\",'2. Assisted & Restricted Units'!B365)","v":""},{"$f":"IF('2. Assisted & Restricted Units'!D365=\"\",\"\",'2. Assisted & Restricted Units'!D365)","v":""},{"$f":"IF('2. Assisted & Restricted Units'!E365=\"\",\"\",'2. Assisted & Restricted Units'!E365)","v":""},{"$f":"IF('2. Assisted & Restricted Units'!H365=\"\",\"\",'2. Assisted & Restricted Units'!H365)","v":""},{"$f":"_xlfn.IFS(E365=\"\",\"\",E365>BO365,$BP$6,E365>BN365,$BO$6,E365>BM365,$BN$6,E365>BL365,$BM$6,E365>BK365,$BL$6,E365>BJ365,$BK$6,E365>BI365,$BJ$6,E365>BH365,$BI$6,E365>BG365,$BH$6,E365>BF365,$BG$6,E365>BE365,$BF$6,E365>BD365,$BE$6,E365>BC365,$BD$6,E365>=0,$BC$6)","v":""},{"$f":"IF('2. Assisted & Restricted Units'!T365=\"\",\"\",'2. Assisted & Restricted Units'!T365)","v":""},{"$f":"IF('2. Assisted & Restricted Units'!I365=\"\",\"\",'2. Assisted & Restricted Units'!I365)","v":""},{"$f":"IF('2. Assisted & Restricted Units'!AP365=\"\",\"\",'2. Assisted & Restricted Units'!AP365)","v":0},{"$f":"IF('2. Assisted & Restricted Units'!AT365=\"\",\"\",'2. Assisted & Restricted Units'!AT365)","v":""},0,{"$f":"IF('2. Assisted & Restricted Units'!AV365=\"\",\"\",'2. Assisted & Restricted Units'!AV365)","v":""},{"$f":"IF('2. Assisted & Restricted Units'!L365=\"\",\"\",'2. Assisted & Restricted Units'!L365)","v":""},{"$f":"IF('2. Assisted & Restricted Units'!M365=\"\",\"\",'2. Assisted & Restricted Units'!M365)","v":""},{"$f":"IF('2. Assisted & Restricted Units'!O365=\"\",\"\",'2. Assisted & Restricted Units'!O365)","v":""},{"$f":"IF('2. Assisted & Restricted Units'!P365=\"\",\"\",'2. Assisted & Restricted Units'!P365)","v":""},{"$f":"IF('2. Assisted & Restricted Units'!Q365=\"\",\"\",'2. Assisted & Restricted Units'!Q365)","v":""},{"$f":"IF('2. Assisted & Restricted Units'!R365=\"\",\"\",'2. Assisted & Restricted Units'!R365)","v":""},{"$f":"IF(A365=\"\",\"\",'1. Checklist & Certification'!$K$1)","v":""},{"$f":"IF(A365=\"\",\"\",'1. Checklist & Certification'!$C$62)","v":""},{"$f":"IF(A365=\"\",\"\",'1. Checklist & Certification'!$K$62)","v":""},{"$f":"IF(A365=\"\",\"\",'1. Checklist & Certification'!$C$6)","v":""},{"$f":"IF(A365=\"\",\"\",'1. Checklist & Certification'!$G$4)","v":""},{"$f":"IF(A365=\"\",\"\",'1. Checklist & Certification'!$C$7)","v":""},{"$f":"IF(A365=\"\",\"\",'1. Checklist & Certification'!$C$8)","v":""},{"$f":"IF(A365=\"\",\"\",'1. Checklist & Certification'!$F$7)","v":""},{"$f":"IF(A365=\"\",\"\",'1. Checklist & Certification'!$F$8)","v":""},{"$f":"IF(A365=\"\",\"\",'1. Checklist & Certification'!$B$9)","v":""},{"$f":"IF(A365=\"\",\"\",'1. Checklist & Certification'!$F$9)","v":""},{"$f":"IF(A365=\"\",\"\",'1. Checklist & Certification'!$C$10)","v":""},{"$f":"IF(A365=\"\",\"\",'1. Checklist & Certification'!$C$11)","v":""},{"$f":"IF(A365=\"\",\"\",'1. Checklist & Certification'!$C$12)","v":""},{"$f":"IF(A365=\"\",\"\",'1. Checklist & Certification'!$B$14)","v":""},{"$f":"IF(A365=\"\",\"\",'1. Checklist & Certification'!$E$14)","v":""},{"$f":"IF(B365=\"\",\"\",'1. Checklist & Certification'!$G$14)","v":""},{"$f":"IF(A365=\"\",\"\",'MHP Family Income & Rent Limits'!$B$3)","v":""},{"$f":"IF(A365=\"\",\"\",'MHP Family Income & Rent Limits'!$J$3)","v":""},{"$f":"IF(A365=\"\",\"\",'MHP Family Income & Rent Limits'!$E$4)","v":""},{"$f":"IF(A365=\"\",\"\",'MHP Family Income & Rent Limits'!$C$7)","v":""},{"$f":"IF(A365=\"\",\"\",'MHP Family Income & Rent Limits'!$F$8)","v":""},{"$f":"IF(A365=\"\",\"\",'1. Checklist & Certification'!$G$4)","v":""},{"$f":"IF(A365=\"\",\"\",'1. Checklist & Certification'!$K$39)","v":""},{"$f":"IF(A365=\"\",\"\",'1. Checklist & Certification'!$K$43)","v":""},{"$f":"IF(A365=\"\",\"\",'1. Checklist & Certification'!$K$45)","v":""},{"$f":"IF(A365=\"\",\"\",'1. Checklist & Certification'!$K$49)","v":""},{"$f":"IF(A365=\"\",\"\",'1. Checklist & Certification'!$E$66)","v":""},{"$f":"IF(A365=\"\",\"\",'1. Checklist & Certification'!$E$67)","v":""},{"$f":"IF(A365=\"\",\"\",'1. Checklist & Certification'!$E$68)","v":""},{"$f":"IF(A365=\"\",\"\",'1. Checklist & Certification'!$G$66)","v":""},{"$f":"IF(A365=\"\",\"\",'1. Checklist & Certification'!$H$66)","v":""},{"$f":"IF(A365=\"\",\"\",'1. Checklist & Certification'!$I$66)","v":""},{"$f":"IF(A365=\"\",\"\",'1. Checklist & Certification'!$I$67)","v":""},{"$f":"IF(A365=\"\",\"\",'1. Checklist & Certification'!$I$68)","v":""},null,{"$f":"IF(C365=\"\",\"\",HLOOKUP(C365,'MHP Family Income & Rent Limits'!$E$12:$L$26,2,FALSE))","v":""},{"$f":"IF(C365=\"\",\"\",HLOOKUP(C365,'MHP Family Income & Rent Limits'!$E$12:$L$26,3,FALSE))","v":""},{"$f":"IF(C365=\"\",\"\",HLOOKUP(C365,'MHP Family Income & Rent Limits'!$E$12:$L$26,4,FALSE))","v":""},{"$f":"IF(C365=\"\",\"\",HLOOKUP(C365,'MHP Family Income & Rent Limits'!$E$12:$L$26,5,FALSE))","v":""},{"$f":"IF(C365=\"\",\"\",HLOOKUP(C365,'MHP Family Income & Rent Limits'!$E$12:$L$26,6,FALSE))","v":""},{"$f":"IF(C365=\"\",\"\",HLOOKUP(C365,'MHP Family Income & Rent Limits'!$E$12:$L$26,7,FALSE))","v":""},{"$f":"IF(C365=\"\",\"\",HLOOKUP(C365,'MHP Family Income & Rent Limits'!$E$12:$L$26,8,FALSE))","v":""},{"$f":"IF(C365=\"\",\"\",HLOOKUP(C365,'MHP Family Income & Rent Limits'!$E$12:$L$26,9,FALSE))","v":""},{"$f":"IF(C365=\"\",\"\",HLOOKUP(C365,'MHP Family Income & Rent Limits'!$E$12:$L$26,10,FALSE))","v":""},{"$f":"IF(C365=\"\",\"\",HLOOKUP(C365,'MHP Family Income & Rent Limits'!$E$12:$L$26,11,FALSE))","v":""},{"$f":"IF(C365=\"\",\"\",HLOOKUP(C365,'MHP Family Income & Rent Limits'!$E$12:$L$26,12,FALSE))","v":""},{"$f":"IF(C365=\"\",\"\",HLOOKUP(C365,'MHP Family Income & Rent Limits'!$E$12:$L$26,13,FALSE))","v":""},{"$f":"IF(C365=\"\",\"\",HLOOKUP(C365,'MHP Family Income & Rent Limits'!$E$12:$L$26,14,FALSE))","v":""},{"$f":"IF(C365=\"\",\"\",HLOOKUP(C365,'MHP Family Income & Rent Limits'!$E$12:$L$26,15,FALSE))","v":""}]
[{"$f":"IF('2. Assisted & Restricted Units'!A366=\"\",\"\",'2. Assisted & Restricted Units'!A366)","v":""},{"$f":"IF('2. Assisted & Restricted Units'!B366=\"\",\"\",'2. Assisted & Restricted Units'!B366)","v":""},{"$f":"IF('2. Assisted & Restricted Units'!D366=\"\",\"\",'2. Assisted & Restricted Units'!D366)","v":""},{"$f":"IF('2. Assisted & Restricted Units'!E366=\"\",\"\",'2. Assisted & Restricted Units'!E366)","v":""},{"$f":"IF('2. Assisted & Restricted Units'!H366=\"\",\"\",'2. Assisted & Restricted Units'!H366)","v":""},{"$f":"_xlfn.IFS(E366=\"\",\"\",E366>BO366,$BP$6,E366>BN366,$BO$6,E366>BM366,$BN$6,E366>BL366,$BM$6,E366>BK366,$BL$6,E366>BJ366,$BK$6,E366>BI366,$BJ$6,E366>BH366,$BI$6,E366>BG366,$BH$6,E366>BF366,$BG$6,E366>BE366,$BF$6,E366>BD366,$BE$6,E366>BC366,$BD$6,E366>=0,$BC$6)","v":""},{"$f":"IF('2. Assisted & Restricted Units'!T366=\"\",\"\",'2. Assisted & Restricted Units'!T366)","v":""},{"$f":"IF('2. Assisted & Restricted Units'!I366=\"\",\"\",'2. Assisted & Restricted Units'!I366)","v":""},{"$f":"IF('2. Assisted & Restricted Units'!AP366=\"\",\"\",'2. Assisted & Restricted Units'!AP366)","v":0},{"$f":"IF('2. Assisted & Restricted Units'!AT366=\"\",\"\",'2. Assisted & Restricted Units'!AT366)","v":""},0,{"$f":"IF('2. Assisted & Restricted Units'!AV366=\"\",\"\",'2. Assisted & Restricted Units'!AV366)","v":""},{"$f":"IF('2. Assisted & Restricted Units'!L366=\"\",\"\",'2. Assisted & Restricted Units'!L366)","v":""},{"$f":"IF('2. Assisted & Restricted Units'!M366=\"\",\"\",'2. Assisted & Restricted Units'!M366)","v":""},{"$f":"IF('2. Assisted & Restricted Units'!O366=\"\",\"\",'2. Assisted & Restricted Units'!O366)","v":""},{"$f":"IF('2. Assisted & Restricted Units'!P366=\"\",\"\",'2. Assisted & Restricted Units'!P366)","v":""},{"$f":"IF('2. Assisted & Restricted Units'!Q366=\"\",\"\",'2. Assisted & Restricted Units'!Q366)","v":""},{"$f":"IF('2. Assisted & Restricted Units'!R366=\"\",\"\",'2. Assisted & Restricted Units'!R366)","v":""},{"$f":"IF(A366=\"\",\"\",'1. Checklist & Certification'!$K$1)","v":""},{"$f":"IF(A366=\"\",\"\",'1. Checklist & Certification'!$C$62)","v":""},{"$f":"IF(A366=\"\",\"\",'1. Checklist & Certification'!$K$62)","v":""},{"$f":"IF(A366=\"\",\"\",'1. Checklist & Certification'!$C$6)","v":""},{"$f":"IF(A366=\"\",\"\",'1. Checklist & Certification'!$G$4)","v":""},{"$f":"IF(A366=\"\",\"\",'1. Checklist & Certification'!$C$7)","v":""},{"$f":"IF(A366=\"\",\"\",'1. Checklist & Certification'!$C$8)","v":""},{"$f":"IF(A366=\"\",\"\",'1. Checklist & Certification'!$F$7)","v":""},{"$f":"IF(A366=\"\",\"\",'1. Checklist & Certification'!$F$8)","v":""},{"$f":"IF(A366=\"\",\"\",'1. Checklist & Certification'!$B$9)","v":""},{"$f":"IF(A366=\"\",\"\",'1. Checklist & Certification'!$F$9)","v":""},{"$f":"IF(A366=\"\",\"\",'1. Checklist & Certification'!$C$10)","v":""},{"$f":"IF(A366=\"\",\"\",'1. Checklist & Certification'!$C$11)","v":""},{"$f":"IF(A366=\"\",\"\",'1. Checklist & Certification'!$C$12)","v":""},{"$f":"IF(A366=\"\",\"\",'1. Checklist & Certification'!$B$14)","v":""},{"$f":"IF(A366=\"\",\"\",'1. Checklist & Certification'!$E$14)","v":""},{"$f":"IF(B366=\"\",\"\",'1. Checklist & Certification'!$G$14)","v":""},{"$f":"IF(A366=\"\",\"\",'MHP Family Income & Rent Limits'!$B$3)","v":""},{"$f":"IF(A366=\"\",\"\",'MHP Family Income & Rent Limits'!$J$3)","v":""},{"$f":"IF(A366=\"\",\"\",'MHP Family Income & Rent Limits'!$E$4)","v":""},{"$f":"IF(A366=\"\",\"\",'MHP Family Income & Rent Limits'!$C$7)","v":""},{"$f":"IF(A366=\"\",\"\",'MHP Family Income & Rent Limits'!$F$8)","v":""},{"$f":"IF(A366=\"\",\"\",'1. Checklist & Certification'!$G$4)","v":""},{"$f":"IF(A366=\"\",\"\",'1. Checklist & Certification'!$K$39)","v":""},{"$f":"IF(A366=\"\",\"\",'1. Checklist & Certification'!$K$43)","v":""},{"$f":"IF(A366=\"\",\"\",'1. Checklist & Certification'!$K$45)","v":""},{"$f":"IF(A366=\"\",\"\",'1. Checklist & Certification'!$K$49)","v":""},{"$f":"IF(A366=\"\",\"\",'1. Checklist & Certification'!$E$66)","v":""},{"$f":"IF(A366=\"\",\"\",'1. Checklist & Certification'!$E$67)","v":""},{"$f":"IF(A366=\"\",\"\",'1. Checklist & Certification'!$E$68)","v":""},{"$f":"IF(A366=\"\",\"\",'1. Checklist & Certification'!$G$66)","v":""},{"$f":"IF(A366=\"\",\"\",'1. Checklist & Certification'!$H$66)","v":""},{"$f":"IF(A366=\"\",\"\",'1. Checklist & Certification'!$I$66)","v":""},{"$f":"IF(A366=\"\",\"\",'1. Checklist & Certification'!$I$67)","v":""},{"$f":"IF(A366=\"\",\"\",'1. Checklist & Certification'!$I$68)","v":""},null,{"$f":"IF(C366=\"\",\"\",HLOOKUP(C366,'MHP Family Income & Rent Limits'!$E$12:$L$26,2,FALSE))","v":""},{"$f":"IF(C366=\"\",\"\",HLOOKUP(C366,'MHP Family Income & Rent Limits'!$E$12:$L$26,3,FALSE))","v":""},{"$f":"IF(C366=\"\",\"\",HLOOKUP(C366,'MHP Family Income & Rent Limits'!$E$12:$L$26,4,FALSE))","v":""},{"$f":"IF(C366=\"\",\"\",HLOOKUP(C366,'MHP Family Income & Rent Limits'!$E$12:$L$26,5,FALSE))","v":""},{"$f":"IF(C366=\"\",\"\",HLOOKUP(C366,'MHP Family Income & Rent Limits'!$E$12:$L$26,6,FALSE))","v":""},{"$f":"IF(C366=\"\",\"\",HLOOKUP(C366,'MHP Family Income & Rent Limits'!$E$12:$L$26,7,FALSE))","v":""},{"$f":"IF(C366=\"\",\"\",HLOOKUP(C366,'MHP Family Income & Rent Limits'!$E$12:$L$26,8,FALSE))","v":""},{"$f":"IF(C366=\"\",\"\",HLOOKUP(C366,'MHP Family Income & Rent Limits'!$E$12:$L$26,9,FALSE))","v":""},{"$f":"IF(C366=\"\",\"\",HLOOKUP(C366,'MHP Family Income & Rent Limits'!$E$12:$L$26,10,FALSE))","v":""},{"$f":"IF(C366=\"\",\"\",HLOOKUP(C366,'MHP Family Income & Rent Limits'!$E$12:$L$26,11,FALSE))","v":""},{"$f":"IF(C366=\"\",\"\",HLOOKUP(C366,'MHP Family Income & Rent Limits'!$E$12:$L$26,12,FALSE))","v":""},{"$f":"IF(C366=\"\",\"\",HLOOKUP(C366,'MHP Family Income & Rent Limits'!$E$12:$L$26,13,FALSE))","v":""},{"$f":"IF(C366=\"\",\"\",HLOOKUP(C366,'MHP Family Income & Rent Limits'!$E$12:$L$26,14,FALSE))","v":""},{"$f":"IF(C366=\"\",\"\",HLOOKUP(C366,'MHP Family Income & Rent Limits'!$E$12:$L$26,15,FALSE))","v":""}]
[{"$f":"IF('2. Assisted & Restricted Units'!A367=\"\",\"\",'2. Assisted & Restricted Units'!A367)","v":""},{"$f":"IF('2. Assisted & Restricted Units'!B367=\"\",\"\",'2. Assisted & Restricted Units'!B367)","v":""},{"$f":"IF('2. Assisted & Restricted Units'!D367=\"\",\"\",'2. Assisted & Restricted Units'!D367)","v":""},{"$f":"IF('2. Assisted & Restricted Units'!E367=\"\",\"\",'2. Assisted & Restricted Units'!E367)","v":""},{"$f":"IF('2. Assisted & Restricted Units'!H367=\"\",\"\",'2. Assisted & Restricted Units'!H367)","v":""},{"$f":"_xlfn.IFS(E367=\"\",\"\",E367>BO367,$BP$6,E367>BN367,$BO$6,E367>BM367,$BN$6,E367>BL367,$BM$6,E367>BK367,$BL$6,E367>BJ367,$BK$6,E367>BI367,$BJ$6,E367>BH367,$BI$6,E367>BG367,$BH$6,E367>BF367,$BG$6,E367>BE367,$BF$6,E367>BD367,$BE$6,E367>BC367,$BD$6,E367>=0,$BC$6)","v":""},{"$f":"IF('2. Assisted & Restricted Units'!T367=\"\",\"\",'2. Assisted & Restricted Units'!T367)","v":""},{"$f":"IF('2. Assisted & Restricted Units'!I367=\"\",\"\",'2. Assisted & Restricted Units'!I367)","v":""},{"$f":"IF('2. Assisted & Restricted Units'!AP367=\"\",\"\",'2. Assisted & Restricted Units'!AP367)","v":0},{"$f":"IF('2. Assisted & Restricted Units'!AT367=\"\",\"\",'2. Assisted & Restricted Units'!AT367)","v":""},0,{"$f":"IF('2. Assisted & Restricted Units'!AV367=\"\",\"\",'2. Assisted & Restricted Units'!AV367)","v":""},{"$f":"IF('2. Assisted & Restricted Units'!L367=\"\",\"\",'2. Assisted & Restricted Units'!L367)","v":""},{"$f":"IF('2. Assisted & Restricted Units'!M367=\"\",\"\",'2. Assisted & Restricted Units'!M367)","v":""},{"$f":"IF('2. Assisted & Restricted Units'!O367=\"\",\"\",'2. Assisted & Restricted Units'!O367)","v":""},{"$f":"IF('2. Assisted & Restricted Units'!P367=\"\",\"\",'2. Assisted & Restricted Units'!P367)","v":""},{"$f":"IF('2. Assisted & Restricted Units'!Q367=\"\",\"\",'2. Assisted & Restricted Units'!Q367)","v":""},{"$f":"IF('2. Assisted & Restricted Units'!R367=\"\",\"\",'2. Assisted & Restricted Units'!R367)","v":""},{"$f":"IF(A367=\"\",\"\",'1. Checklist & Certification'!$K$1)","v":""},{"$f":"IF(A367=\"\",\"\",'1. Checklist & Certification'!$C$62)","v":""},{"$f":"IF(A367=\"\",\"\",'1. Checklist & Certification'!$K$62)","v":""},{"$f":"IF(A367=\"\",\"\",'1. Checklist & Certification'!$C$6)","v":""},{"$f":"IF(A367=\"\",\"\",'1. Checklist & Certification'!$G$4)","v":""},{"$f":"IF(A367=\"\",\"\",'1. Checklist & Certification'!$C$7)","v":""},{"$f":"IF(A367=\"\",\"\",'1. Checklist & Certification'!$C$8)","v":""},{"$f":"IF(A367=\"\",\"\",'1. Checklist & Certification'!$F$7)","v":""},{"$f":"IF(A367=\"\",\"\",'1. Checklist & Certification'!$F$8)","v":""},{"$f":"IF(A367=\"\",\"\",'1. Checklist & Certification'!$B$9)","v":""},{"$f":"IF(A367=\"\",\"\",'1. Checklist & Certification'!$F$9)","v":""},{"$f":"IF(A367=\"\",\"\",'1. Checklist & Certification'!$C$10)","v":""},{"$f":"IF(A367=\"\",\"\",'1. Checklist & Certification'!$C$11)","v":""},{"$f":"IF(A367=\"\",\"\",'1. Checklist & Certification'!$C$12)","v":""},{"$f":"IF(A367=\"\",\"\",'1. Checklist & Certification'!$B$14)","v":""},{"$f":"IF(A367=\"\",\"\",'1. Checklist & Certification'!$E$14)","v":""},{"$f":"IF(B367=\"\",\"\",'1. Checklist & Certification'!$G$14)","v":""},{"$f":"IF(A367=\"\",\"\",'MHP Family Income & Rent Limits'!$B$3)","v":""},{"$f":"IF(A367=\"\",\"\",'MHP Family Income & Rent Limits'!$J$3)","v":""},{"$f":"IF(A367=\"\",\"\",'MHP Family Income & Rent Limits'!$E$4)","v":""},{"$f":"IF(A367=\"\",\"\",'MHP Family Income & Rent Limits'!$C$7)","v":""},{"$f":"IF(A367=\"\",\"\",'MHP Family Income & Rent Limits'!$F$8)","v":""},{"$f":"IF(A367=\"\",\"\",'1. Checklist & Certification'!$G$4)","v":""},{"$f":"IF(A367=\"\",\"\",'1. Checklist & Certification'!$K$39)","v":""},{"$f":"IF(A367=\"\",\"\",'1. Checklist & Certification'!$K$43)","v":""},{"$f":"IF(A367=\"\",\"\",'1. Checklist & Certification'!$K$45)","v":""},{"$f":"IF(A367=\"\",\"\",'1. Checklist & Certification'!$K$49)","v":""},{"$f":"IF(A367=\"\",\"\",'1. Checklist & Certification'!$E$66)","v":""},{"$f":"IF(A367=\"\",\"\",'1. Checklist & Certification'!$E$67)","v":""},{"$f":"IF(A367=\"\",\"\",'1. Checklist & Certification'!$E$68)","v":""},{"$f":"IF(A367=\"\",\"\",'1. Checklist & Certification'!$G$66)","v":""},{"$f":"IF(A367=\"\",\"\",'1. Checklist & Certification'!$H$66)","v":""},{"$f":"IF(A367=\"\",\"\",'1. Checklist & Certification'!$I$66)","v":""},{"$f":"IF(A367=\"\",\"\",'1. Checklist & Certification'!$I$67)","v":""},{"$f":"IF(A367=\"\",\"\",'1. Checklist & Certification'!$I$68)","v":""},null,{"$f":"IF(C367=\"\",\"\",HLOOKUP(C367,'MHP Family Income & Rent Limits'!$E$12:$L$26,2,FALSE))","v":""},{"$f":"IF(C367=\"\",\"\",HLOOKUP(C367,'MHP Family Income & Rent Limits'!$E$12:$L$26,3,FALSE))","v":""},{"$f":"IF(C367=\"\",\"\",HLOOKUP(C367,'MHP Family Income & Rent Limits'!$E$12:$L$26,4,FALSE))","v":""},{"$f":"IF(C367=\"\",\"\",HLOOKUP(C367,'MHP Family Income & Rent Limits'!$E$12:$L$26,5,FALSE))","v":""},{"$f":"IF(C367=\"\",\"\",HLOOKUP(C367,'MHP Family Income & Rent Limits'!$E$12:$L$26,6,FALSE))","v":""},{"$f":"IF(C367=\"\",\"\",HLOOKUP(C367,'MHP Family Income & Rent Limits'!$E$12:$L$26,7,FALSE))","v":""},{"$f":"IF(C367=\"\",\"\",HLOOKUP(C367,'MHP Family Income & Rent Limits'!$E$12:$L$26,8,FALSE))","v":""},{"$f":"IF(C367=\"\",\"\",HLOOKUP(C367,'MHP Family Income & Rent Limits'!$E$12:$L$26,9,FALSE))","v":""},{"$f":"IF(C367=\"\",\"\",HLOOKUP(C367,'MHP Family Income & Rent Limits'!$E$12:$L$26,10,FALSE))","v":""},{"$f":"IF(C367=\"\",\"\",HLOOKUP(C367,'MHP Family Income & Rent Limits'!$E$12:$L$26,11,FALSE))","v":""},{"$f":"IF(C367=\"\",\"\",HLOOKUP(C367,'MHP Family Income & Rent Limits'!$E$12:$L$26,12,FALSE))","v":""},{"$f":"IF(C367=\"\",\"\",HLOOKUP(C367,'MHP Family Income & Rent Limits'!$E$12:$L$26,13,FALSE))","v":""},{"$f":"IF(C367=\"\",\"\",HLOOKUP(C367,'MHP Family Income & Rent Limits'!$E$12:$L$26,14,FALSE))","v":""},{"$f":"IF(C367=\"\",\"\",HLOOKUP(C367,'MHP Family Income & Rent Limits'!$E$12:$L$26,15,FALSE))","v":""}]
[{"$f":"IF('2. Assisted & Restricted Units'!A368=\"\",\"\",'2. Assisted & Restricted Units'!A368)","v":""},{"$f":"IF('2. Assisted & Restricted Units'!B368=\"\",\"\",'2. Assisted & Restricted Units'!B368)","v":""},{"$f":"IF('2. Assisted & Restricted Units'!D368=\"\",\"\",'2. Assisted & Restricted Units'!D368)","v":""},{"$f":"IF('2. Assisted & Restricted Units'!E368=\"\",\"\",'2. Assisted & Restricted Units'!E368)","v":""},{"$f":"IF('2. Assisted & Restricted Units'!H368=\"\",\"\",'2. Assisted & Restricted Units'!H368)","v":""},{"$f":"_xlfn.IFS(E368=\"\",\"\",E368>BO368,$BP$6,E368>BN368,$BO$6,E368>BM368,$BN$6,E368>BL368,$BM$6,E368>BK368,$BL$6,E368>BJ368,$BK$6,E368>BI368,$BJ$6,E368>BH368,$BI$6,E368>BG368,$BH$6,E368>BF368,$BG$6,E368>BE368,$BF$6,E368>BD368,$BE$6,E368>BC368,$BD$6,E368>=0,$BC$6)","v":""},{"$f":"IF('2. Assisted & Restricted Units'!T368=\"\",\"\",'2. Assisted & Restricted Units'!T368)","v":""},{"$f":"IF('2. Assisted & Restricted Units'!I368=\"\",\"\",'2. Assisted & Restricted Units'!I368)","v":""},{"$f":"IF('2. Assisted & Restricted Units'!AP368=\"\",\"\",'2. Assisted & Restricted Units'!AP368)","v":0},{"$f":"IF('2. Assisted & Restricted Units'!AT368=\"\",\"\",'2. Assisted & Restricted Units'!AT368)","v":""},0,{"$f":"IF('2. Assisted & Restricted Units'!AV368=\"\",\"\",'2. Assisted & Restricted Units'!AV368)","v":""},{"$f":"IF('2. Assisted & Restricted Units'!L368=\"\",\"\",'2. Assisted & Restricted Units'!L368)","v":""},{"$f":"IF('2. Assisted & Restricted Units'!M368=\"\",\"\",'2. Assisted & Restricted Units'!M368)","v":""},{"$f":"IF('2. Assisted & Restricted Units'!O368=\"\",\"\",'2. Assisted & Restricted Units'!O368)","v":""},{"$f":"IF('2. Assisted & Restricted Units'!P368=\"\",\"\",'2. Assisted & Restricted Units'!P368)","v":""},{"$f":"IF('2. Assisted & Restricted Units'!Q368=\"\",\"\",'2. Assisted & Restricted Units'!Q368)","v":""},{"$f":"IF('2. Assisted & Restricted Units'!R368=\"\",\"\",'2. Assisted & Restricted Units'!R368)","v":""},{"$f":"IF(A368=\"\",\"\",'1. Checklist & Certification'!$K$1)","v":""},{"$f":"IF(A368=\"\",\"\",'1. Checklist & Certification'!$C$62)","v":""},{"$f":"IF(A368=\"\",\"\",'1. Checklist & Certification'!$K$62)","v":""},{"$f":"IF(A368=\"\",\"\",'1. Checklist & Certification'!$C$6)","v":""},{"$f":"IF(A368=\"\",\"\",'1. Checklist & Certification'!$G$4)","v":""},{"$f":"IF(A368=\"\",\"\",'1. Checklist & Certification'!$C$7)","v":""},{"$f":"IF(A368=\"\",\"\",'1. Checklist & Certification'!$C$8)","v":""},{"$f":"IF(A368=\"\",\"\",'1. Checklist & Certification'!$F$7)","v":""},{"$f":"IF(A368=\"\",\"\",'1. Checklist & Certification'!$F$8)","v":""},{"$f":"IF(A368=\"\",\"\",'1. Checklist & Certification'!$B$9)","v":""},{"$f":"IF(A368=\"\",\"\",'1. Checklist & Certification'!$F$9)","v":""},{"$f":"IF(A368=\"\",\"\",'1. Checklist & Certification'!$C$10)","v":""},{"$f":"IF(A368=\"\",\"\",'1. Checklist & Certification'!$C$11)","v":""},{"$f":"IF(A368=\"\",\"\",'1. Checklist & Certification'!$C$12)","v":""},{"$f":"IF(A368=\"\",\"\",'1. Checklist & Certification'!$B$14)","v":""},{"$f":"IF(A368=\"\",\"\",'1. Checklist & Certification'!$E$14)","v":""},{"$f":"IF(B368=\"\",\"\",'1. Checklist & Certification'!$G$14)","v":""},{"$f":"IF(A368=\"\",\"\",'MHP Family Income & Rent Limits'!$B$3)","v":""},{"$f":"IF(A368=\"\",\"\",'MHP Family Income & Rent Limits'!$J$3)","v":""},{"$f":"IF(A368=\"\",\"\",'MHP Family Income & Rent Limits'!$E$4)","v":""},{"$f":"IF(A368=\"\",\"\",'MHP Family Income & Rent Limits'!$C$7)","v":""},{"$f":"IF(A368=\"\",\"\",'MHP Family Income & Rent Limits'!$F$8)","v":""},{"$f":"IF(A368=\"\",\"\",'1. Checklist & Certification'!$G$4)","v":""},{"$f":"IF(A368=\"\",\"\",'1. Checklist & Certification'!$K$39)","v":""},{"$f":"IF(A368=\"\",\"\",'1. Checklist & Certification'!$K$43)","v":""},{"$f":"IF(A368=\"\",\"\",'1. Checklist & Certification'!$K$45)","v":""},{"$f":"IF(A368=\"\",\"\",'1. Checklist & Certification'!$K$49)","v":""},{"$f":"IF(A368=\"\",\"\",'1. Checklist & Certification'!$E$66)","v":""},{"$f":"IF(A368=\"\",\"\",'1. Checklist & Certification'!$E$67)","v":""},{"$f":"IF(A368=\"\",\"\",'1. Checklist & Certification'!$E$68)","v":""},{"$f":"IF(A368=\"\",\"\",'1. Checklist & Certification'!$G$66)","v":""},{"$f":"IF(A368=\"\",\"\",'1. Checklist & Certification'!$H$66)","v":""},{"$f":"IF(A368=\"\",\"\",'1. Checklist & Certification'!$I$66)","v":""},{"$f":"IF(A368=\"\",\"\",'1. Checklist & Certification'!$I$67)","v":""},{"$f":"IF(A368=\"\",\"\",'1. Checklist & Certification'!$I$68)","v":""},null,{"$f":"IF(C368=\"\",\"\",HLOOKUP(C368,'MHP Family Income & Rent Limits'!$E$12:$L$26,2,FALSE))","v":""},{"$f":"IF(C368=\"\",\"\",HLOOKUP(C368,'MHP Family Income & Rent Limits'!$E$12:$L$26,3,FALSE))","v":""},{"$f":"IF(C368=\"\",\"\",HLOOKUP(C368,'MHP Family Income & Rent Limits'!$E$12:$L$26,4,FALSE))","v":""},{"$f":"IF(C368=\"\",\"\",HLOOKUP(C368,'MHP Family Income & Rent Limits'!$E$12:$L$26,5,FALSE))","v":""},{"$f":"IF(C368=\"\",\"\",HLOOKUP(C368,'MHP Family Income & Rent Limits'!$E$12:$L$26,6,FALSE))","v":""},{"$f":"IF(C368=\"\",\"\",HLOOKUP(C368,'MHP Family Income & Rent Limits'!$E$12:$L$26,7,FALSE))","v":""},{"$f":"IF(C368=\"\",\"\",HLOOKUP(C368,'MHP Family Income & Rent Limits'!$E$12:$L$26,8,FALSE))","v":""},{"$f":"IF(C368=\"\",\"\",HLOOKUP(C368,'MHP Family Income & Rent Limits'!$E$12:$L$26,9,FALSE))","v":""},{"$f":"IF(C368=\"\",\"\",HLOOKUP(C368,'MHP Family Income & Rent Limits'!$E$12:$L$26,10,FALSE))","v":""},{"$f":"IF(C368=\"\",\"\",HLOOKUP(C368,'MHP Family Income & Rent Limits'!$E$12:$L$26,11,FALSE))","v":""},{"$f":"IF(C368=\"\",\"\",HLOOKUP(C368,'MHP Family Income & Rent Limits'!$E$12:$L$26,12,FALSE))","v":""},{"$f":"IF(C368=\"\",\"\",HLOOKUP(C368,'MHP Family Income & Rent Limits'!$E$12:$L$26,13,FALSE))","v":""},{"$f":"IF(C368=\"\",\"\",HLOOKUP(C368,'MHP Family Income & Rent Limits'!$E$12:$L$26,14,FALSE))","v":""},{"$f":"IF(C368=\"\",\"\",HLOOKUP(C368,'MHP Family Income & Rent Limits'!$E$12:$L$26,15,FALSE))","v":""}]
[{"$f":"IF('2. Assisted & Restricted Units'!A369=\"\",\"\",'2. Assisted & Restricted Units'!A369)","v":""},{"$f":"IF('2. Assisted & Restricted Units'!B369=\"\",\"\",'2. Assisted & Restricted Units'!B369)","v":""},{"$f":"IF('2. Assisted & Restricted Units'!D369=\"\",\"\",'2. Assisted & Restricted Units'!D369)","v":""},{"$f":"IF('2. Assisted & Restricted Units'!E369=\"\",\"\",'2. Assisted & Restricted Units'!E369)","v":""},{"$f":"IF('2. Assisted & Restricted Units'!H369=\"\",\"\",'2. Assisted & Restricted Units'!H369)","v":""},{"$f":"_xlfn.IFS(E369=\"\",\"\",E369>BO369,$BP$6,E369>BN369,$BO$6,E369>BM369,$BN$6,E369>BL369,$BM$6,E369>BK369,$BL$6,E369>BJ369,$BK$6,E369>BI369,$BJ$6,E369>BH369,$BI$6,E369>BG369,$BH$6,E369>BF369,$BG$6,E369>BE369,$BF$6,E369>BD369,$BE$6,E369>BC369,$BD$6,E369>=0,$BC$6)","v":""},{"$f":"IF('2. Assisted & Restricted Units'!T369=\"\",\"\",'2. Assisted & Restricted Units'!T369)","v":""},{"$f":"IF('2. Assisted & Restricted Units'!I369=\"\",\"\",'2. Assisted & Restricted Units'!I369)","v":""},{"$f":"IF('2. Assisted & Restricted Units'!AP369=\"\",\"\",'2. Assisted & Restricted Units'!AP369)","v":0},{"$f":"IF('2. Assisted & Restricted Units'!AT369=\"\",\"\",'2. Assisted & Restricted Units'!AT369)","v":""},0,{"$f":"IF('2. Assisted & Restricted Units'!AV369=\"\",\"\",'2. Assisted & Restricted Units'!AV369)","v":""},{"$f":"IF('2. Assisted & Restricted Units'!L369=\"\",\"\",'2. Assisted & Restricted Units'!L369)","v":""},{"$f":"IF('2. Assisted & Restricted Units'!M369=\"\",\"\",'2. Assisted & Restricted Units'!M369)","v":""},{"$f":"IF('2. Assisted & Restricted Units'!O369=\"\",\"\",'2. Assisted & Restricted Units'!O369)","v":""},{"$f":"IF('2. Assisted & Restricted Units'!P369=\"\",\"\",'2. Assisted & Restricted Units'!P369)","v":""},{"$f":"IF('2. Assisted & Restricted Units'!Q369=\"\",\"\",'2. Assisted & Restricted Units'!Q369)","v":""},{"$f":"IF('2. Assisted & Restricted Units'!R369=\"\",\"\",'2. Assisted & Restricted Units'!R369)","v":""},{"$f":"IF(A369=\"\",\"\",'1. Checklist & Certification'!$K$1)","v":""},{"$f":"IF(A369=\"\",\"\",'1. Checklist & Certification'!$C$62)","v":""},{"$f":"IF(A369=\"\",\"\",'1. Checklist & Certification'!$K$62)","v":""},{"$f":"IF(A369=\"\",\"\",'1. Checklist & Certification'!$C$6)","v":""},{"$f":"IF(A369=\"\",\"\",'1. Checklist & Certification'!$G$4)","v":""},{"$f":"IF(A369=\"\",\"\",'1. Checklist & Certification'!$C$7)","v":""},{"$f":"IF(A369=\"\",\"\",'1. Checklist & Certification'!$C$8)","v":""},{"$f":"IF(A369=\"\",\"\",'1. Checklist & Certification'!$F$7)","v":""},{"$f":"IF(A369=\"\",\"\",'1. Checklist & Certification'!$F$8)","v":""},{"$f":"IF(A369=\"\",\"\",'1. Checklist & Certification'!$B$9)","v":""},{"$f":"IF(A369=\"\",\"\",'1. Checklist & Certification'!$F$9)","v":""},{"$f":"IF(A369=\"\",\"\",'1. Checklist & Certification'!$C$10)","v":""},{"$f":"IF(A369=\"\",\"\",'1. Checklist & Certification'!$C$11)","v":""},{"$f":"IF(A369=\"\",\"\",'1. Checklist & Certification'!$C$12)","v":""},{"$f":"IF(A369=\"\",\"\",'1. Checklist & Certification'!$B$14)","v":""},{"$f":"IF(A369=\"\",\"\",'1. Checklist & Certification'!$E$14)","v":""},{"$f":"IF(B369=\"\",\"\",'1. Checklist & Certification'!$G$14)","v":""},{"$f":"IF(A369=\"\",\"\",'MHP Family Income & Rent Limits'!$B$3)","v":""},{"$f":"IF(A369=\"\",\"\",'MHP Family Income & Rent Limits'!$J$3)","v":""},{"$f":"IF(A369=\"\",\"\",'MHP Family Income & Rent Limits'!$E$4)","v":""},{"$f":"IF(A369=\"\",\"\",'MHP Family Income & Rent Limits'!$C$7)","v":""},{"$f":"IF(A369=\"\",\"\",'MHP Family Income & Rent Limits'!$F$8)","v":""},{"$f":"IF(A369=\"\",\"\",'1. Checklist & Certification'!$G$4)","v":""},{"$f":"IF(A369=\"\",\"\",'1. Checklist & Certification'!$K$39)","v":""},{"$f":"IF(A369=\"\",\"\",'1. Checklist & Certification'!$K$43)","v":""},{"$f":"IF(A369=\"\",\"\",'1. Checklist & Certification'!$K$45)","v":""},{"$f":"IF(A369=\"\",\"\",'1. Checklist & Certification'!$K$49)","v":""},{"$f":"IF(A369=\"\",\"\",'1. Checklist & Certification'!$E$66)","v":""},{"$f":"IF(A369=\"\",\"\",'1. Checklist & Certification'!$E$67)","v":""},{"$f":"IF(A369=\"\",\"\",'1. Checklist & Certification'!$E$68)","v":""},{"$f":"IF(A369=\"\",\"\",'1. Checklist & Certification'!$G$66)","v":""},{"$f":"IF(A369=\"\",\"\",'1. Checklist & Certification'!$H$66)","v":""},{"$f":"IF(A369=\"\",\"\",'1. Checklist & Certification'!$I$66)","v":""},{"$f":"IF(A369=\"\",\"\",'1. Checklist & Certification'!$I$67)","v":""},{"$f":"IF(A369=\"\",\"\",'1. Checklist & Certification'!$I$68)","v":""},null,{"$f":"IF(C369=\"\",\"\",HLOOKUP(C369,'MHP Family Income & Rent Limits'!$E$12:$L$26,2,FALSE))","v":""},{"$f":"IF(C369=\"\",\"\",HLOOKUP(C369,'MHP Family Income & Rent Limits'!$E$12:$L$26,3,FALSE))","v":""},{"$f":"IF(C369=\"\",\"\",HLOOKUP(C369,'MHP Family Income & Rent Limits'!$E$12:$L$26,4,FALSE))","v":""},{"$f":"IF(C369=\"\",\"\",HLOOKUP(C369,'MHP Family Income & Rent Limits'!$E$12:$L$26,5,FALSE))","v":""},{"$f":"IF(C369=\"\",\"\",HLOOKUP(C369,'MHP Family Income & Rent Limits'!$E$12:$L$26,6,FALSE))","v":""},{"$f":"IF(C369=\"\",\"\",HLOOKUP(C369,'MHP Family Income & Rent Limits'!$E$12:$L$26,7,FALSE))","v":""},{"$f":"IF(C369=\"\",\"\",HLOOKUP(C369,'MHP Family Income & Rent Limits'!$E$12:$L$26,8,FALSE))","v":""},{"$f":"IF(C369=\"\",\"\",HLOOKUP(C369,'MHP Family Income & Rent Limits'!$E$12:$L$26,9,FALSE))","v":""},{"$f":"IF(C369=\"\",\"\",HLOOKUP(C369,'MHP Family Income & Rent Limits'!$E$12:$L$26,10,FALSE))","v":""},{"$f":"IF(C369=\"\",\"\",HLOOKUP(C369,'MHP Family Income & Rent Limits'!$E$12:$L$26,11,FALSE))","v":""},{"$f":"IF(C369=\"\",\"\",HLOOKUP(C369,'MHP Family Income & Rent Limits'!$E$12:$L$26,12,FALSE))","v":""},{"$f":"IF(C369=\"\",\"\",HLOOKUP(C369,'MHP Family Income & Rent Limits'!$E$12:$L$26,13,FALSE))","v":""},{"$f":"IF(C369=\"\",\"\",HLOOKUP(C369,'MHP Family Income & Rent Limits'!$E$12:$L$26,14,FALSE))","v":""},{"$f":"IF(C369=\"\",\"\",HLOOKUP(C369,'MHP Family Income & Rent Limits'!$E$12:$L$26,15,FALSE))","v":""}]
[{"$f":"IF('2. Assisted & Restricted Units'!A370=\"\",\"\",'2. Assisted & Restricted Units'!A370)","v":""},{"$f":"IF('2. Assisted & Restricted Units'!B370=\"\",\"\",'2. Assisted & Restricted Units'!B370)","v":""},{"$f":"IF('2. Assisted & Restricted Units'!D370=\"\",\"\",'2. Assisted & Restricted Units'!D370)","v":""},{"$f":"IF('2. Assisted & Restricted Units'!E370=\"\",\"\",'2. Assisted & Restricted Units'!E370)","v":""},{"$f":"IF('2. Assisted & Restricted Units'!H370=\"\",\"\",'2. Assisted & Restricted Units'!H370)","v":""},{"$f":"_xlfn.IFS(E370=\"\",\"\",E370>BO370,$BP$6,E370>BN370,$BO$6,E370>BM370,$BN$6,E370>BL370,$BM$6,E370>BK370,$BL$6,E370>BJ370,$BK$6,E370>BI370,$BJ$6,E370>BH370,$BI$6,E370>BG370,$BH$6,E370>BF370,$BG$6,E370>BE370,$BF$6,E370>BD370,$BE$6,E370>BC370,$BD$6,E370>=0,$BC$6)","v":""},{"$f":"IF('2. Assisted & Restricted Units'!T370=\"\",\"\",'2. Assisted & Restricted Units'!T370)","v":""},{"$f":"IF('2. Assisted & Restricted Units'!I370=\"\",\"\",'2. Assisted & Restricted Units'!I370)","v":""},{"$f":"IF('2. Assisted & Restricted Units'!AP370=\"\",\"\",'2. Assisted & Restricted Units'!AP370)","v":0},{"$f":"IF('2. Assisted & Restricted Units'!AT370=\"\",\"\",'2. Assisted & Restricted Units'!AT370)","v":""},0,{"$f":"IF('2. Assisted & Restricted Units'!AV370=\"\",\"\",'2. Assisted & Restricted Units'!AV370)","v":""},{"$f":"IF('2. Assisted & Restricted Units'!L370=\"\",\"\",'2. Assisted & Restricted Units'!L370)","v":""},{"$f":"IF('2. Assisted & Restricted Units'!M370=\"\",\"\",'2. Assisted & Restricted Units'!M370)","v":""},{"$f":"IF('2. Assisted & Restricted Units'!O370=\"\",\"\",'2. Assisted & Restricted Units'!O370)","v":""},{"$f":"IF('2. Assisted & Restricted Units'!P370=\"\",\"\",'2. Assisted & Restricted Units'!P370)","v":""},{"$f":"IF('2. Assisted & Restricted Units'!Q370=\"\",\"\",'2. Assisted & Restricted Units'!Q370)","v":""},{"$f":"IF('2. Assisted & Restricted Units'!R370=\"\",\"\",'2. Assisted & Restricted Units'!R370)","v":""},{"$f":"IF(A370=\"\",\"\",'1. Checklist & Certification'!$K$1)","v":""},{"$f":"IF(A370=\"\",\"\",'1. Checklist & Certification'!$C$62)","v":""},{"$f":"IF(A370=\"\",\"\",'1. Checklist & Certification'!$K$62)","v":""},{"$f":"IF(A370=\"\",\"\",'1. Checklist & Certification'!$C$6)","v":""},{"$f":"IF(A370=\"\",\"\",'1. Checklist & Certification'!$G$4)","v":""},{"$f":"IF(A370=\"\",\"\",'1. Checklist & Certification'!$C$7)","v":""},{"$f":"IF(A370=\"\",\"\",'1. Checklist & Certification'!$C$8)","v":""},{"$f":"IF(A370=\"\",\"\",'1. Checklist & Certification'!$F$7)","v":""},{"$f":"IF(A370=\"\",\"\",'1. Checklist & Certification'!$F$8)","v":""},{"$f":"IF(A370=\"\",\"\",'1. Checklist & Certification'!$B$9)","v":""},{"$f":"IF(A370=\"\",\"\",'1. Checklist & Certification'!$F$9)","v":""},{"$f":"IF(A370=\"\",\"\",'1. Checklist & Certification'!$C$10)","v":""},{"$f":"IF(A370=\"\",\"\",'1. Checklist & Certification'!$C$11)","v":""},{"$f":"IF(A370=\"\",\"\",'1. Checklist & Certification'!$C$12)","v":""},{"$f":"IF(A370=\"\",\"\",'1. Checklist & Certification'!$B$14)","v":""},{"$f":"IF(A370=\"\",\"\",'1. Checklist & Certification'!$E$14)","v":""},{"$f":"IF(B370=\"\",\"\",'1. Checklist & Certification'!$G$14)","v":""},{"$f":"IF(A370=\"\",\"\",'MHP Family Income & Rent Limits'!$B$3)","v":""},{"$f":"IF(A370=\"\",\"\",'MHP Family Income & Rent Limits'!$J$3)","v":""},{"$f":"IF(A370=\"\",\"\",'MHP Family Income & Rent Limits'!$E$4)","v":""},{"$f":"IF(A370=\"\",\"\",'MHP Family Income & Rent Limits'!$C$7)","v":""},{"$f":"IF(A370=\"\",\"\",'MHP Family Income & Rent Limits'!$F$8)","v":""},{"$f":"IF(A370=\"\",\"\",'1. Checklist & Certification'!$G$4)","v":""},{"$f":"IF(A370=\"\",\"\",'1. Checklist & Certification'!$K$39)","v":""},{"$f":"IF(A370=\"\",\"\",'1. Checklist & Certification'!$K$43)","v":""},{"$f":"IF(A370=\"\",\"\",'1. Checklist & Certification'!$K$45)","v":""},{"$f":"IF(A370=\"\",\"\",'1. Checklist & Certification'!$K$49)","v":""},{"$f":"IF(A370=\"\",\"\",'1. Checklist & Certification'!$E$66)","v":""},{"$f":"IF(A370=\"\",\"\",'1. Checklist & Certification'!$E$67)","v":""},{"$f":"IF(A370=\"\",\"\",'1. Checklist & Certification'!$E$68)","v":""},{"$f":"IF(A370=\"\",\"\",'1. Checklist & Certification'!$G$66)","v":""},{"$f":"IF(A370=\"\",\"\",'1. Checklist & Certification'!$H$66)","v":""},{"$f":"IF(A370=\"\",\"\",'1. Checklist & Certification'!$I$66)","v":""},{"$f":"IF(A370=\"\",\"\",'1. Checklist & Certification'!$I$67)","v":""},{"$f":"IF(A370=\"\",\"\",'1. Checklist & Certification'!$I$68)","v":""},null,{"$f":"IF(C370=\"\",\"\",HLOOKUP(C370,'MHP Family Income & Rent Limits'!$E$12:$L$26,2,FALSE))","v":""},{"$f":"IF(C370=\"\",\"\",HLOOKUP(C370,'MHP Family Income & Rent Limits'!$E$12:$L$26,3,FALSE))","v":""},{"$f":"IF(C370=\"\",\"\",HLOOKUP(C370,'MHP Family Income & Rent Limits'!$E$12:$L$26,4,FALSE))","v":""},{"$f":"IF(C370=\"\",\"\",HLOOKUP(C370,'MHP Family Income & Rent Limits'!$E$12:$L$26,5,FALSE))","v":""},{"$f":"IF(C370=\"\",\"\",HLOOKUP(C370,'MHP Family Income & Rent Limits'!$E$12:$L$26,6,FALSE))","v":""},{"$f":"IF(C370=\"\",\"\",HLOOKUP(C370,'MHP Family Income & Rent Limits'!$E$12:$L$26,7,FALSE))","v":""},{"$f":"IF(C370=\"\",\"\",HLOOKUP(C370,'MHP Family Income & Rent Limits'!$E$12:$L$26,8,FALSE))","v":""},{"$f":"IF(C370=\"\",\"\",HLOOKUP(C370,'MHP Family Income & Rent Limits'!$E$12:$L$26,9,FALSE))","v":""},{"$f":"IF(C370=\"\",\"\",HLOOKUP(C370,'MHP Family Income & Rent Limits'!$E$12:$L$26,10,FALSE))","v":""},{"$f":"IF(C370=\"\",\"\",HLOOKUP(C370,'MHP Family Income & Rent Limits'!$E$12:$L$26,11,FALSE))","v":""},{"$f":"IF(C370=\"\",\"\",HLOOKUP(C370,'MHP Family Income & Rent Limits'!$E$12:$L$26,12,FALSE))","v":""},{"$f":"IF(C370=\"\",\"\",HLOOKUP(C370,'MHP Family Income & Rent Limits'!$E$12:$L$26,13,FALSE))","v":""},{"$f":"IF(C370=\"\",\"\",HLOOKUP(C370,'MHP Family Income & Rent Limits'!$E$12:$L$26,14,FALSE))","v":""},{"$f":"IF(C370=\"\",\"\",HLOOKUP(C370,'MHP Family Income & Rent Limits'!$E$12:$L$26,15,FALSE))","v":""}]
[{"$f":"IF('2. Assisted & Restricted Units'!A371=\"\",\"\",'2. Assisted & Restricted Units'!A371)","v":""},{"$f":"IF('2. Assisted & Restricted Units'!B371=\"\",\"\",'2. Assisted & Restricted Units'!B371)","v":""},{"$f":"IF('2. Assisted & Restricted Units'!D371=\"\",\"\",'2. Assisted & Restricted Units'!D371)","v":""},{"$f":"IF('2. Assisted & Restricted Units'!E371=\"\",\"\",'2. Assisted & Restricted Units'!E371)","v":""},{"$f":"IF('2. Assisted & Restricted Units'!H371=\"\",\"\",'2. Assisted & Restricted Units'!H371)","v":""},{"$f":"_xlfn.IFS(E371=\"\",\"\",E371>BO371,$BP$6,E371>BN371,$BO$6,E371>BM371,$BN$6,E371>BL371,$BM$6,E371>BK371,$BL$6,E371>BJ371,$BK$6,E371>BI371,$BJ$6,E371>BH371,$BI$6,E371>BG371,$BH$6,E371>BF371,$BG$6,E371>BE371,$BF$6,E371>BD371,$BE$6,E371>BC371,$BD$6,E371>=0,$BC$6)","v":""},{"$f":"IF('2. Assisted & Restricted Units'!T371=\"\",\"\",'2. Assisted & Restricted Units'!T371)","v":""},{"$f":"IF('2. Assisted & Restricted Units'!I371=\"\",\"\",'2. Assisted & Restricted Units'!I371)","v":""},{"$f":"IF('2. Assisted & Restricted Units'!AP371=\"\",\"\",'2. Assisted & Restricted Units'!AP371)","v":0},{"$f":"IF('2. Assisted & Restricted Units'!AT371=\"\",\"\",'2. Assisted & Restricted Units'!AT371)","v":""},0,{"$f":"IF('2. Assisted & Restricted Units'!AV371=\"\",\"\",'2. Assisted & Restricted Units'!AV371)","v":""},{"$f":"IF('2. Assisted & Restricted Units'!L371=\"\",\"\",'2. Assisted & Restricted Units'!L371)","v":""},{"$f":"IF('2. Assisted & Restricted Units'!M371=\"\",\"\",'2. Assisted & Restricted Units'!M371)","v":""},{"$f":"IF('2. Assisted & Restricted Units'!O371=\"\",\"\",'2. Assisted & Restricted Units'!O371)","v":""},{"$f":"IF('2. Assisted & Restricted Units'!P371=\"\",\"\",'2. Assisted & Restricted Units'!P371)","v":""},{"$f":"IF('2. Assisted & Restricted Units'!Q371=\"\",\"\",'2. Assisted & Restricted Units'!Q371)","v":""},{"$f":"IF('2. Assisted & Restricted Units'!R371=\"\",\"\",'2. Assisted & Restricted Units'!R371)","v":""},{"$f":"IF(A371=\"\",\"\",'1. Checklist & Certification'!$K$1)","v":""},{"$f":"IF(A371=\"\",\"\",'1. Checklist & Certification'!$C$62)","v":""},{"$f":"IF(A371=\"\",\"\",'1. Checklist & Certification'!$K$62)","v":""},{"$f":"IF(A371=\"\",\"\",'1. Checklist & Certification'!$C$6)","v":""},{"$f":"IF(A371=\"\",\"\",'1. Checklist & Certification'!$G$4)","v":""},{"$f":"IF(A371=\"\",\"\",'1. Checklist & Certification'!$C$7)","v":""},{"$f":"IF(A371=\"\",\"\",'1. Checklist & Certification'!$C$8)","v":""},{"$f":"IF(A371=\"\",\"\",'1. Checklist & Certification'!$F$7)","v":""},{"$f":"IF(A371=\"\",\"\",'1. Checklist & Certification'!$F$8)","v":""},{"$f":"IF(A371=\"\",\"\",'1. Checklist & Certification'!$B$9)","v":""},{"$f":"IF(A371=\"\",\"\",'1. Checklist & Certification'!$F$9)","v":""},{"$f":"IF(A371=\"\",\"\",'1. Checklist & Certification'!$C$10)","v":""},{"$f":"IF(A371=\"\",\"\",'1. Checklist & Certification'!$C$11)","v":""},{"$f":"IF(A371=\"\",\"\",'1. Checklist & Certification'!$C$12)","v":""},{"$f":"IF(A371=\"\",\"\",'1. Checklist & Certification'!$B$14)","v":""},{"$f":"IF(A371=\"\",\"\",'1. Checklist & Certification'!$E$14)","v":""},{"$f":"IF(B371=\"\",\"\",'1. Checklist & Certification'!$G$14)","v":""},{"$f":"IF(A371=\"\",\"\",'MHP Family Income & Rent Limits'!$B$3)","v":""},{"$f":"IF(A371=\"\",\"\",'MHP Family Income & Rent Limits'!$J$3)","v":""},{"$f":"IF(A371=\"\",\"\",'MHP Family Income & Rent Limits'!$E$4)","v":""},{"$f":"IF(A371=\"\",\"\",'MHP Family Income & Rent Limits'!$C$7)","v":""},{"$f":"IF(A371=\"\",\"\",'MHP Family Income & Rent Limits'!$F$8)","v":""},{"$f":"IF(A371=\"\",\"\",'1. Checklist & Certification'!$G$4)","v":""},{"$f":"IF(A371=\"\",\"\",'1. Checklist & Certification'!$K$39)","v":""},{"$f":"IF(A371=\"\",\"\",'1. Checklist & Certification'!$K$43)","v":""},{"$f":"IF(A371=\"\",\"\",'1. Checklist & Certification'!$K$45)","v":""},{"$f":"IF(A371=\"\",\"\",'1. Checklist & Certification'!$K$49)","v":""},{"$f":"IF(A371=\"\",\"\",'1. Checklist & Certification'!$E$66)","v":""},{"$f":"IF(A371=\"\",\"\",'1. Checklist & Certification'!$E$67)","v":""},{"$f":"IF(A371=\"\",\"\",'1. Checklist & Certification'!$E$68)","v":""},{"$f":"IF(A371=\"\",\"\",'1. Checklist & Certification'!$G$66)","v":""},{"$f":"IF(A371=\"\",\"\",'1. Checklist & Certification'!$H$66)","v":""},{"$f":"IF(A371=\"\",\"\",'1. Checklist & Certification'!$I$66)","v":""},{"$f":"IF(A371=\"\",\"\",'1. Checklist & Certification'!$I$67)","v":""},{"$f":"IF(A371=\"\",\"\",'1. Checklist & Certification'!$I$68)","v":""},null,{"$f":"IF(C371=\"\",\"\",HLOOKUP(C371,'MHP Family Income & Rent Limits'!$E$12:$L$26,2,FALSE))","v":""},{"$f":"IF(C371=\"\",\"\",HLOOKUP(C371,'MHP Family Income & Rent Limits'!$E$12:$L$26,3,FALSE))","v":""},{"$f":"IF(C371=\"\",\"\",HLOOKUP(C371,'MHP Family Income & Rent Limits'!$E$12:$L$26,4,FALSE))","v":""},{"$f":"IF(C371=\"\",\"\",HLOOKUP(C371,'MHP Family Income & Rent Limits'!$E$12:$L$26,5,FALSE))","v":""},{"$f":"IF(C371=\"\",\"\",HLOOKUP(C371,'MHP Family Income & Rent Limits'!$E$12:$L$26,6,FALSE))","v":""},{"$f":"IF(C371=\"\",\"\",HLOOKUP(C371,'MHP Family Income & Rent Limits'!$E$12:$L$26,7,FALSE))","v":""},{"$f":"IF(C371=\"\",\"\",HLOOKUP(C371,'MHP Family Income & Rent Limits'!$E$12:$L$26,8,FALSE))","v":""},{"$f":"IF(C371=\"\",\"\",HLOOKUP(C371,'MHP Family Income & Rent Limits'!$E$12:$L$26,9,FALSE))","v":""},{"$f":"IF(C371=\"\",\"\",HLOOKUP(C371,'MHP Family Income & Rent Limits'!$E$12:$L$26,10,FALSE))","v":""},{"$f":"IF(C371=\"\",\"\",HLOOKUP(C371,'MHP Family Income & Rent Limits'!$E$12:$L$26,11,FALSE))","v":""},{"$f":"IF(C371=\"\",\"\",HLOOKUP(C371,'MHP Family Income & Rent Limits'!$E$12:$L$26,12,FALSE))","v":""},{"$f":"IF(C371=\"\",\"\",HLOOKUP(C371,'MHP Family Income & Rent Limits'!$E$12:$L$26,13,FALSE))","v":""},{"$f":"IF(C371=\"\",\"\",HLOOKUP(C371,'MHP Family Income & Rent Limits'!$E$12:$L$26,14,FALSE))","v":""},{"$f":"IF(C371=\"\",\"\",HLOOKUP(C371,'MHP Family Income & Rent Limits'!$E$12:$L$26,15,FALSE))","v":""}]
[{"$f":"IF('2. Assisted & Restricted Units'!A372=\"\",\"\",'2. Assisted & Restricted Units'!A372)","v":""},{"$f":"IF('2. Assisted & Restricted Units'!B372=\"\",\"\",'2. Assisted & Restricted Units'!B372)","v":""},{"$f":"IF('2. Assisted & Restricted Units'!D372=\"\",\"\",'2. Assisted & Restricted Units'!D372)","v":""},{"$f":"IF('2. Assisted & Restricted Units'!E372=\"\",\"\",'2. Assisted & Restricted Units'!E372)","v":""},{"$f":"IF('2. Assisted & Restricted Units'!H372=\"\",\"\",'2. Assisted & Restricted Units'!H372)","v":""},{"$f":"_xlfn.IFS(E372=\"\",\"\",E372>BO372,$BP$6,E372>BN372,$BO$6,E372>BM372,$BN$6,E372>BL372,$BM$6,E372>BK372,$BL$6,E372>BJ372,$BK$6,E372>BI372,$BJ$6,E372>BH372,$BI$6,E372>BG372,$BH$6,E372>BF372,$BG$6,E372>BE372,$BF$6,E372>BD372,$BE$6,E372>BC372,$BD$6,E372>=0,$BC$6)","v":""},{"$f":"IF('2. Assisted & Restricted Units'!T372=\"\",\"\",'2. Assisted & Restricted Units'!T372)","v":""},{"$f":"IF('2. Assisted & Restricted Units'!I372=\"\",\"\",'2. Assisted & Restricted Units'!I372)","v":""},{"$f":"IF('2. Assisted & Restricted Units'!AP372=\"\",\"\",'2. Assisted & Restricted Units'!AP372)","v":0},{"$f":"IF('2. Assisted & Restricted Units'!AT372=\"\",\"\",'2. Assisted & Restricted Units'!AT372)","v":""},0,{"$f":"IF('2. Assisted & Restricted Units'!AV372=\"\",\"\",'2. Assisted & Restricted Units'!AV372)","v":""},{"$f":"IF('2. Assisted & Restricted Units'!L372=\"\",\"\",'2. Assisted & Restricted Units'!L372)","v":""},{"$f":"IF('2. Assisted & Restricted Units'!M372=\"\",\"\",'2. Assisted & Restricted Units'!M372)","v":""},{"$f":"IF('2. Assisted & Restricted Units'!O372=\"\",\"\",'2. Assisted & Restricted Units'!O372)","v":""},{"$f":"IF('2. Assisted & Restricted Units'!P372=\"\",\"\",'2. Assisted & Restricted Units'!P372)","v":""},{"$f":"IF('2. Assisted & Restricted Units'!Q372=\"\",\"\",'2. Assisted & Restricted Units'!Q372)","v":""},{"$f":"IF('2. Assisted & Restricted Units'!R372=\"\",\"\",'2. Assisted & Restricted Units'!R372)","v":""},{"$f":"IF(A372=\"\",\"\",'1. Checklist & Certification'!$K$1)","v":""},{"$f":"IF(A372=\"\",\"\",'1. Checklist & Certification'!$C$62)","v":""},{"$f":"IF(A372=\"\",\"\",'1. Checklist & Certification'!$K$62)","v":""},{"$f":"IF(A372=\"\",\"\",'1. Checklist & Certification'!$C$6)","v":""},{"$f":"IF(A372=\"\",\"\",'1. Checklist & Certification'!$G$4)","v":""},{"$f":"IF(A372=\"\",\"\",'1. Checklist & Certification'!$C$7)","v":""},{"$f":"IF(A372=\"\",\"\",'1. Checklist & Certification'!$C$8)","v":""},{"$f":"IF(A372=\"\",\"\",'1. Checklist & Certification'!$F$7)","v":""},{"$f":"IF(A372=\"\",\"\",'1. Checklist & Certification'!$F$8)","v":""},{"$f":"IF(A372=\"\",\"\",'1. Checklist & Certification'!$B$9)","v":""},{"$f":"IF(A372=\"\",\"\",'1. Checklist & Certification'!$F$9)","v":""},{"$f":"IF(A372=\"\",\"\",'1. Checklist & Certification'!$C$10)","v":""},{"$f":"IF(A372=\"\",\"\",'1. Checklist & Certification'!$C$11)","v":""},{"$f":"IF(A372=\"\",\"\",'1. Checklist & Certification'!$C$12)","v":""},{"$f":"IF(A372=\"\",\"\",'1. Checklist & Certification'!$B$14)","v":""},{"$f":"IF(A372=\"\",\"\",'1. Checklist & Certification'!$E$14)","v":""},{"$f":"IF(B372=\"\",\"\",'1. Checklist & Certification'!$G$14)","v":""},{"$f":"IF(A372=\"\",\"\",'MHP Family Income & Rent Limits'!$B$3)","v":""},{"$f":"IF(A372=\"\",\"\",'MHP Family Income & Rent Limits'!$J$3)","v":""},{"$f":"IF(A372=\"\",\"\",'MHP Family Income & Rent Limits'!$E$4)","v":""},{"$f":"IF(A372=\"\",\"\",'MHP Family Income & Rent Limits'!$C$7)","v":""},{"$f":"IF(A372=\"\",\"\",'MHP Family Income & Rent Limits'!$F$8)","v":""},{"$f":"IF(A372=\"\",\"\",'1. Checklist & Certification'!$G$4)","v":""},{"$f":"IF(A372=\"\",\"\",'1. Checklist & Certification'!$K$39)","v":""},{"$f":"IF(A372=\"\",\"\",'1. Checklist & Certification'!$K$43)","v":""},{"$f":"IF(A372=\"\",\"\",'1. Checklist & Certification'!$K$45)","v":""},{"$f":"IF(A372=\"\",\"\",'1. Checklist & Certification'!$K$49)","v":""},{"$f":"IF(A372=\"\",\"\",'1. Checklist & Certification'!$E$66)","v":""},{"$f":"IF(A372=\"\",\"\",'1. Checklist & Certification'!$E$67)","v":""},{"$f":"IF(A372=\"\",\"\",'1. Checklist & Certification'!$E$68)","v":""},{"$f":"IF(A372=\"\",\"\",'1. Checklist & Certification'!$G$66)","v":""},{"$f":"IF(A372=\"\",\"\",'1. Checklist & Certification'!$H$66)","v":""},{"$f":"IF(A372=\"\",\"\",'1. Checklist & Certification'!$I$66)","v":""},{"$f":"IF(A372=\"\",\"\",'1. Checklist & Certification'!$I$67)","v":""},{"$f":"IF(A372=\"\",\"\",'1. Checklist & Certification'!$I$68)","v":""},null,{"$f":"IF(C372=\"\",\"\",HLOOKUP(C372,'MHP Family Income & Rent Limits'!$E$12:$L$26,2,FALSE))","v":""},{"$f":"IF(C372=\"\",\"\",HLOOKUP(C372,'MHP Family Income & Rent Limits'!$E$12:$L$26,3,FALSE))","v":""},{"$f":"IF(C372=\"\",\"\",HLOOKUP(C372,'MHP Family Income & Rent Limits'!$E$12:$L$26,4,FALSE))","v":""},{"$f":"IF(C372=\"\",\"\",HLOOKUP(C372,'MHP Family Income & Rent Limits'!$E$12:$L$26,5,FALSE))","v":""},{"$f":"IF(C372=\"\",\"\",HLOOKUP(C372,'MHP Family Income & Rent Limits'!$E$12:$L$26,6,FALSE))","v":""},{"$f":"IF(C372=\"\",\"\",HLOOKUP(C372,'MHP Family Income & Rent Limits'!$E$12:$L$26,7,FALSE))","v":""},{"$f":"IF(C372=\"\",\"\",HLOOKUP(C372,'MHP Family Income & Rent Limits'!$E$12:$L$26,8,FALSE))","v":""},{"$f":"IF(C372=\"\",\"\",HLOOKUP(C372,'MHP Family Income & Rent Limits'!$E$12:$L$26,9,FALSE))","v":""},{"$f":"IF(C372=\"\",\"\",HLOOKUP(C372,'MHP Family Income & Rent Limits'!$E$12:$L$26,10,FALSE))","v":""},{"$f":"IF(C372=\"\",\"\",HLOOKUP(C372,'MHP Family Income & Rent Limits'!$E$12:$L$26,11,FALSE))","v":""},{"$f":"IF(C372=\"\",\"\",HLOOKUP(C372,'MHP Family Income & Rent Limits'!$E$12:$L$26,12,FALSE))","v":""},{"$f":"IF(C372=\"\",\"\",HLOOKUP(C372,'MHP Family Income & Rent Limits'!$E$12:$L$26,13,FALSE))","v":""},{"$f":"IF(C372=\"\",\"\",HLOOKUP(C372,'MHP Family Income & Rent Limits'!$E$12:$L$26,14,FALSE))","v":""},{"$f":"IF(C372=\"\",\"\",HLOOKUP(C372,'MHP Family Income & Rent Limits'!$E$12:$L$26,15,FALSE))","v":""}]
[{"$f":"IF('2. Assisted & Restricted Units'!A373=\"\",\"\",'2. Assisted & Restricted Units'!A373)","v":""},{"$f":"IF('2. Assisted & Restricted Units'!B373=\"\",\"\",'2. Assisted & Restricted Units'!B373)","v":""},{"$f":"IF('2. Assisted & Restricted Units'!D373=\"\",\"\",'2. Assisted & Restricted Units'!D373)","v":""},{"$f":"IF('2. Assisted & Restricted Units'!E373=\"\",\"\",'2. Assisted & Restricted Units'!E373)","v":""},{"$f":"IF('2. Assisted & Restricted Units'!H373=\"\",\"\",'2. Assisted & Restricted Units'!H373)","v":""},{"$f":"_xlfn.IFS(E373=\"\",\"\",E373>BO373,$BP$6,E373>BN373,$BO$6,E373>BM373,$BN$6,E373>BL373,$BM$6,E373>BK373,$BL$6,E373>BJ373,$BK$6,E373>BI373,$BJ$6,E373>BH373,$BI$6,E373>BG373,$BH$6,E373>BF373,$BG$6,E373>BE373,$BF$6,E373>BD373,$BE$6,E373>BC373,$BD$6,E373>=0,$BC$6)","v":""},{"$f":"IF('2. Assisted & Restricted Units'!T373=\"\",\"\",'2. Assisted & Restricted Units'!T373)","v":""},{"$f":"IF('2. Assisted & Restricted Units'!I373=\"\",\"\",'2. Assisted & Restricted Units'!I373)","v":""},{"$f":"IF('2. Assisted & Restricted Units'!AP373=\"\",\"\",'2. Assisted & Restricted Units'!AP373)","v":0},{"$f":"IF('2. Assisted & Restricted Units'!AT373=\"\",\"\",'2. Assisted & Restricted Units'!AT373)","v":""},0,{"$f":"IF('2. Assisted & Restricted Units'!AV373=\"\",\"\",'2. Assisted & Restricted Units'!AV373)","v":""},{"$f":"IF('2. Assisted & Restricted Units'!L373=\"\",\"\",'2. Assisted & Restricted Units'!L373)","v":""},{"$f":"IF('2. Assisted & Restricted Units'!M373=\"\",\"\",'2. Assisted & Restricted Units'!M373)","v":""},{"$f":"IF('2. Assisted & Restricted Units'!O373=\"\",\"\",'2. Assisted & Restricted Units'!O373)","v":""},{"$f":"IF('2. Assisted & Restricted Units'!P373=\"\",\"\",'2. Assisted & Restricted Units'!P373)","v":""},{"$f":"IF('2. Assisted & Restricted Units'!Q373=\"\",\"\",'2. Assisted & Restricted Units'!Q373)","v":""},{"$f":"IF('2. Assisted & Restricted Units'!R373=\"\",\"\",'2. Assisted & Restricted Units'!R373)","v":""},{"$f":"IF(A373=\"\",\"\",'1. Checklist & Certification'!$K$1)","v":""},{"$f":"IF(A373=\"\",\"\",'1. Checklist & Certification'!$C$62)","v":""},{"$f":"IF(A373=\"\",\"\",'1. Checklist & Certification'!$K$62)","v":""},{"$f":"IF(A373=\"\",\"\",'1. Checklist & Certification'!$C$6)","v":""},{"$f":"IF(A373=\"\",\"\",'1. Checklist & Certification'!$G$4)","v":""},{"$f":"IF(A373=\"\",\"\",'1. Checklist & Certification'!$C$7)","v":""},{"$f":"IF(A373=\"\",\"\",'1. Checklist & Certification'!$C$8)","v":""},{"$f":"IF(A373=\"\",\"\",'1. Checklist & Certification'!$F$7)","v":""},{"$f":"IF(A373=\"\",\"\",'1. Checklist & Certification'!$F$8)","v":""},{"$f":"IF(A373=\"\",\"\",'1. Checklist & Certification'!$B$9)","v":""},{"$f":"IF(A373=\"\",\"\",'1. Checklist & Certification'!$F$9)","v":""},{"$f":"IF(A373=\"\",\"\",'1. Checklist & Certification'!$C$10)","v":""},{"$f":"IF(A373=\"\",\"\",'1. Checklist & Certification'!$C$11)","v":""},{"$f":"IF(A373=\"\",\"\",'1. Checklist & Certification'!$C$12)","v":""},{"$f":"IF(A373=\"\",\"\",'1. Checklist & Certification'!$B$14)","v":""},{"$f":"IF(A373=\"\",\"\",'1. Checklist & Certification'!$E$14)","v":""},{"$f":"IF(B373=\"\",\"\",'1. Checklist & Certification'!$G$14)","v":""},{"$f":"IF(A373=\"\",\"\",'MHP Family Income & Rent Limits'!$B$3)","v":""},{"$f":"IF(A373=\"\",\"\",'MHP Family Income & Rent Limits'!$J$3)","v":""},{"$f":"IF(A373=\"\",\"\",'MHP Family Income & Rent Limits'!$E$4)","v":""},{"$f":"IF(A373=\"\",\"\",'MHP Family Income & Rent Limits'!$C$7)","v":""},{"$f":"IF(A373=\"\",\"\",'MHP Family Income & Rent Limits'!$F$8)","v":""},{"$f":"IF(A373=\"\",\"\",'1. Checklist & Certification'!$G$4)","v":""},{"$f":"IF(A373=\"\",\"\",'1. Checklist & Certification'!$K$39)","v":""},{"$f":"IF(A373=\"\",\"\",'1. Checklist & Certification'!$K$43)","v":""},{"$f":"IF(A373=\"\",\"\",'1. Checklist & Certification'!$K$45)","v":""},{"$f":"IF(A373=\"\",\"\",'1. Checklist & Certification'!$K$49)","v":""},{"$f":"IF(A373=\"\",\"\",'1. Checklist & Certification'!$E$66)","v":""},{"$f":"IF(A373=\"\",\"\",'1. Checklist & Certification'!$E$67)","v":""},{"$f":"IF(A373=\"\",\"\",'1. Checklist & Certification'!$E$68)","v":""},{"$f":"IF(A373=\"\",\"\",'1. Checklist & Certification'!$G$66)","v":""},{"$f":"IF(A373=\"\",\"\",'1. Checklist & Certification'!$H$66)","v":""},{"$f":"IF(A373=\"\",\"\",'1. Checklist & Certification'!$I$66)","v":""},{"$f":"IF(A373=\"\",\"\",'1. Checklist & Certification'!$I$67)","v":""},{"$f":"IF(A373=\"\",\"\",'1. Checklist & Certification'!$I$68)","v":""},null,{"$f":"IF(C373=\"\",\"\",HLOOKUP(C373,'MHP Family Income & Rent Limits'!$E$12:$L$26,2,FALSE))","v":""},{"$f":"IF(C373=\"\",\"\",HLOOKUP(C373,'MHP Family Income & Rent Limits'!$E$12:$L$26,3,FALSE))","v":""},{"$f":"IF(C373=\"\",\"\",HLOOKUP(C373,'MHP Family Income & Rent Limits'!$E$12:$L$26,4,FALSE))","v":""},{"$f":"IF(C373=\"\",\"\",HLOOKUP(C373,'MHP Family Income & Rent Limits'!$E$12:$L$26,5,FALSE))","v":""},{"$f":"IF(C373=\"\",\"\",HLOOKUP(C373,'MHP Family Income & Rent Limits'!$E$12:$L$26,6,FALSE))","v":""},{"$f":"IF(C373=\"\",\"\",HLOOKUP(C373,'MHP Family Income & Rent Limits'!$E$12:$L$26,7,FALSE))","v":""},{"$f":"IF(C373=\"\",\"\",HLOOKUP(C373,'MHP Family Income & Rent Limits'!$E$12:$L$26,8,FALSE))","v":""},{"$f":"IF(C373=\"\",\"\",HLOOKUP(C373,'MHP Family Income & Rent Limits'!$E$12:$L$26,9,FALSE))","v":""},{"$f":"IF(C373=\"\",\"\",HLOOKUP(C373,'MHP Family Income & Rent Limits'!$E$12:$L$26,10,FALSE))","v":""},{"$f":"IF(C373=\"\",\"\",HLOOKUP(C373,'MHP Family Income & Rent Limits'!$E$12:$L$26,11,FALSE))","v":""},{"$f":"IF(C373=\"\",\"\",HLOOKUP(C373,'MHP Family Income & Rent Limits'!$E$12:$L$26,12,FALSE))","v":""},{"$f":"IF(C373=\"\",\"\",HLOOKUP(C373,'MHP Family Income & Rent Limits'!$E$12:$L$26,13,FALSE))","v":""},{"$f":"IF(C373=\"\",\"\",HLOOKUP(C373,'MHP Family Income & Rent Limits'!$E$12:$L$26,14,FALSE))","v":""},{"$f":"IF(C373=\"\",\"\",HLOOKUP(C373,'MHP Family Income & Rent Limits'!$E$12:$L$26,15,FALSE))","v":""}]
[{"$f":"IF('2. Assisted & Restricted Units'!A374=\"\",\"\",'2. Assisted & Restricted Units'!A374)","v":""},{"$f":"IF('2. Assisted & Restricted Units'!B374=\"\",\"\",'2. Assisted & Restricted Units'!B374)","v":""},{"$f":"IF('2. Assisted & Restricted Units'!D374=\"\",\"\",'2. Assisted & Restricted Units'!D374)","v":""},{"$f":"IF('2. Assisted & Restricted Units'!E374=\"\",\"\",'2. Assisted & Restricted Units'!E374)","v":""},{"$f":"IF('2. Assisted & Restricted Units'!H374=\"\",\"\",'2. Assisted & Restricted Units'!H374)","v":""},{"$f":"_xlfn.IFS(E374=\"\",\"\",E374>BO374,$BP$6,E374>BN374,$BO$6,E374>BM374,$BN$6,E374>BL374,$BM$6,E374>BK374,$BL$6,E374>BJ374,$BK$6,E374>BI374,$BJ$6,E374>BH374,$BI$6,E374>BG374,$BH$6,E374>BF374,$BG$6,E374>BE374,$BF$6,E374>BD374,$BE$6,E374>BC374,$BD$6,E374>=0,$BC$6)","v":""},{"$f":"IF('2. Assisted & Restricted Units'!T374=\"\",\"\",'2. Assisted & Restricted Units'!T374)","v":""},{"$f":"IF('2. Assisted & Restricted Units'!I374=\"\",\"\",'2. Assisted & Restricted Units'!I374)","v":""},{"$f":"IF('2. Assisted & Restricted Units'!AP374=\"\",\"\",'2. Assisted & Restricted Units'!AP374)","v":0},{"$f":"IF('2. Assisted & Restricted Units'!AT374=\"\",\"\",'2. Assisted & Restricted Units'!AT374)","v":""},0,{"$f":"IF('2. Assisted & Restricted Units'!AV374=\"\",\"\",'2. Assisted & Restricted Units'!AV374)","v":""},{"$f":"IF('2. Assisted & Restricted Units'!L374=\"\",\"\",'2. Assisted & Restricted Units'!L374)","v":""},{"$f":"IF('2. Assisted & Restricted Units'!M374=\"\",\"\",'2. Assisted & Restricted Units'!M374)","v":""},{"$f":"IF('2. Assisted & Restricted Units'!O374=\"\",\"\",'2. Assisted & Restricted Units'!O374)","v":""},{"$f":"IF('2. Assisted & Restricted Units'!P374=\"\",\"\",'2. Assisted & Restricted Units'!P374)","v":""},{"$f":"IF('2. Assisted & Restricted Units'!Q374=\"\",\"\",'2. Assisted & Restricted Units'!Q374)","v":""},{"$f":"IF('2. Assisted & Restricted Units'!R374=\"\",\"\",'2. Assisted & Restricted Units'!R374)","v":""},{"$f":"IF(A374=\"\",\"\",'1. Checklist & Certification'!$K$1)","v":""},{"$f":"IF(A374=\"\",\"\",'1. Checklist & Certification'!$C$62)","v":""},{"$f":"IF(A374=\"\",\"\",'1. Checklist & Certification'!$K$62)","v":""},{"$f":"IF(A374=\"\",\"\",'1. Checklist & Certification'!$C$6)","v":""},{"$f":"IF(A374=\"\",\"\",'1. Checklist & Certification'!$G$4)","v":""},{"$f":"IF(A374=\"\",\"\",'1. Checklist & Certification'!$C$7)","v":""},{"$f":"IF(A374=\"\",\"\",'1. Checklist & Certification'!$C$8)","v":""},{"$f":"IF(A374=\"\",\"\",'1. Checklist & Certification'!$F$7)","v":""},{"$f":"IF(A374=\"\",\"\",'1. Checklist & Certification'!$F$8)","v":""},{"$f":"IF(A374=\"\",\"\",'1. Checklist & Certification'!$B$9)","v":""},{"$f":"IF(A374=\"\",\"\",'1. Checklist & Certification'!$F$9)","v":""},{"$f":"IF(A374=\"\",\"\",'1. Checklist & Certification'!$C$10)","v":""},{"$f":"IF(A374=\"\",\"\",'1. Checklist & Certification'!$C$11)","v":""},{"$f":"IF(A374=\"\",\"\",'1. Checklist & Certification'!$C$12)","v":""},{"$f":"IF(A374=\"\",\"\",'1. Checklist & Certification'!$B$14)","v":""},{"$f":"IF(A374=\"\",\"\",'1. Checklist & Certification'!$E$14)","v":""},{"$f":"IF(B374=\"\",\"\",'1. Checklist & Certification'!$G$14)","v":""},{"$f":"IF(A374=\"\",\"\",'MHP Family Income & Rent Limits'!$B$3)","v":""},{"$f":"IF(A374=\"\",\"\",'MHP Family Income & Rent Limits'!$J$3)","v":""},{"$f":"IF(A374=\"\",\"\",'MHP Family Income & Rent Limits'!$E$4)","v":""},{"$f":"IF(A374=\"\",\"\",'MHP Family Income & Rent Limits'!$C$7)","v":""},{"$f":"IF(A374=\"\",\"\",'MHP Family Income & Rent Limits'!$F$8)","v":""},{"$f":"IF(A374=\"\",\"\",'1. Checklist & Certification'!$G$4)","v":""},{"$f":"IF(A374=\"\",\"\",'1. Checklist & Certification'!$K$39)","v":""},{"$f":"IF(A374=\"\",\"\",'1. Checklist & Certification'!$K$43)","v":""},{"$f":"IF(A374=\"\",\"\",'1. Checklist & Certification'!$K$45)","v":""},{"$f":"IF(A374=\"\",\"\",'1. Checklist & Certification'!$K$49)","v":""},{"$f":"IF(A374=\"\",\"\",'1. Checklist & Certification'!$E$66)","v":""},{"$f":"IF(A374=\"\",\"\",'1. Checklist & Certification'!$E$67)","v":""},{"$f":"IF(A374=\"\",\"\",'1. Checklist & Certification'!$E$68)","v":""},{"$f":"IF(A374=\"\",\"\",'1. Checklist & Certification'!$G$66)","v":""},{"$f":"IF(A374=\"\",\"\",'1. Checklist & Certification'!$H$66)","v":""},{"$f":"IF(A374=\"\",\"\",'1. Checklist & Certification'!$I$66)","v":""},{"$f":"IF(A374=\"\",\"\",'1. Checklist & Certification'!$I$67)","v":""},{"$f":"IF(A374=\"\",\"\",'1. Checklist & Certification'!$I$68)","v":""},null,{"$f":"IF(C374=\"\",\"\",HLOOKUP(C374,'MHP Family Income & Rent Limits'!$E$12:$L$26,2,FALSE))","v":""},{"$f":"IF(C374=\"\",\"\",HLOOKUP(C374,'MHP Family Income & Rent Limits'!$E$12:$L$26,3,FALSE))","v":""},{"$f":"IF(C374=\"\",\"\",HLOOKUP(C374,'MHP Family Income & Rent Limits'!$E$12:$L$26,4,FALSE))","v":""},{"$f":"IF(C374=\"\",\"\",HLOOKUP(C374,'MHP Family Income & Rent Limits'!$E$12:$L$26,5,FALSE))","v":""},{"$f":"IF(C374=\"\",\"\",HLOOKUP(C374,'MHP Family Income & Rent Limits'!$E$12:$L$26,6,FALSE))","v":""},{"$f":"IF(C374=\"\",\"\",HLOOKUP(C374,'MHP Family Income & Rent Limits'!$E$12:$L$26,7,FALSE))","v":""},{"$f":"IF(C374=\"\",\"\",HLOOKUP(C374,'MHP Family Income & Rent Limits'!$E$12:$L$26,8,FALSE))","v":""},{"$f":"IF(C374=\"\",\"\",HLOOKUP(C374,'MHP Family Income & Rent Limits'!$E$12:$L$26,9,FALSE))","v":""},{"$f":"IF(C374=\"\",\"\",HLOOKUP(C374,'MHP Family Income & Rent Limits'!$E$12:$L$26,10,FALSE))","v":""},{"$f":"IF(C374=\"\",\"\",HLOOKUP(C374,'MHP Family Income & Rent Limits'!$E$12:$L$26,11,FALSE))","v":""},{"$f":"IF(C374=\"\",\"\",HLOOKUP(C374,'MHP Family Income & Rent Limits'!$E$12:$L$26,12,FALSE))","v":""},{"$f":"IF(C374=\"\",\"\",HLOOKUP(C374,'MHP Family Income & Rent Limits'!$E$12:$L$26,13,FALSE))","v":""},{"$f":"IF(C374=\"\",\"\",HLOOKUP(C374,'MHP Family Income & Rent Limits'!$E$12:$L$26,14,FALSE))","v":""},{"$f":"IF(C374=\"\",\"\",HLOOKUP(C374,'MHP Family Income & Rent Limits'!$E$12:$L$26,15,FALSE))","v":""}]
[{"$f":"IF('2. Assisted & Restricted Units'!A375=\"\",\"\",'2. Assisted & Restricted Units'!A375)","v":""},{"$f":"IF('2. Assisted & Restricted Units'!B375=\"\",\"\",'2. Assisted & Restricted Units'!B375)","v":""},{"$f":"IF('2. Assisted & Restricted Units'!D375=\"\",\"\",'2. Assisted & Restricted Units'!D375)","v":""},{"$f":"IF('2. Assisted & Restricted Units'!E375=\"\",\"\",'2. Assisted & Restricted Units'!E375)","v":""},{"$f":"IF('2. Assisted & Restricted Units'!H375=\"\",\"\",'2. Assisted & Restricted Units'!H375)","v":""},{"$f":"_xlfn.IFS(E375=\"\",\"\",E375>BO375,$BP$6,E375>BN375,$BO$6,E375>BM375,$BN$6,E375>BL375,$BM$6,E375>BK375,$BL$6,E375>BJ375,$BK$6,E375>BI375,$BJ$6,E375>BH375,$BI$6,E375>BG375,$BH$6,E375>BF375,$BG$6,E375>BE375,$BF$6,E375>BD375,$BE$6,E375>BC375,$BD$6,E375>=0,$BC$6)","v":""},{"$f":"IF('2. Assisted & Restricted Units'!T375=\"\",\"\",'2. Assisted & Restricted Units'!T375)","v":""},{"$f":"IF('2. Assisted & Restricted Units'!I375=\"\",\"\",'2. Assisted & Restricted Units'!I375)","v":""},{"$f":"IF('2. Assisted & Restricted Units'!AP375=\"\",\"\",'2. Assisted & Restricted Units'!AP375)","v":0},{"$f":"IF('2. Assisted & Restricted Units'!AT375=\"\",\"\",'2. Assisted & Restricted Units'!AT375)","v":""},0,{"$f":"IF('2. Assisted & Restricted Units'!AV375=\"\",\"\",'2. Assisted & Restricted Units'!AV375)","v":""},{"$f":"IF('2. Assisted & Restricted Units'!L375=\"\",\"\",'2. Assisted & Restricted Units'!L375)","v":""},{"$f":"IF('2. Assisted & Restricted Units'!M375=\"\",\"\",'2. Assisted & Restricted Units'!M375)","v":""},{"$f":"IF('2. Assisted & Restricted Units'!O375=\"\",\"\",'2. Assisted & Restricted Units'!O375)","v":""},{"$f":"IF('2. Assisted & Restricted Units'!P375=\"\",\"\",'2. Assisted & Restricted Units'!P375)","v":""},{"$f":"IF('2. Assisted & Restricted Units'!Q375=\"\",\"\",'2. Assisted & Restricted Units'!Q375)","v":""},{"$f":"IF('2. Assisted & Restricted Units'!R375=\"\",\"\",'2. Assisted & Restricted Units'!R375)","v":""},{"$f":"IF(A375=\"\",\"\",'1. Checklist & Certification'!$K$1)","v":""},{"$f":"IF(A375=\"\",\"\",'1. Checklist & Certification'!$C$62)","v":""},{"$f":"IF(A375=\"\",\"\",'1. Checklist & Certification'!$K$62)","v":""},{"$f":"IF(A375=\"\",\"\",'1. Checklist & Certification'!$C$6)","v":""},{"$f":"IF(A375=\"\",\"\",'1. Checklist & Certification'!$G$4)","v":""},{"$f":"IF(A375=\"\",\"\",'1. Checklist & Certification'!$C$7)","v":""},{"$f":"IF(A375=\"\",\"\",'1. Checklist & Certification'!$C$8)","v":""},{"$f":"IF(A375=\"\",\"\",'1. Checklist & Certification'!$F$7)","v":""},{"$f":"IF(A375=\"\",\"\",'1. Checklist & Certification'!$F$8)","v":""},{"$f":"IF(A375=\"\",\"\",'1. Checklist & Certification'!$B$9)","v":""},{"$f":"IF(A375=\"\",\"\",'1. Checklist & Certification'!$F$9)","v":""},{"$f":"IF(A375=\"\",\"\",'1. Checklist & Certification'!$C$10)","v":""},{"$f":"IF(A375=\"\",\"\",'1. Checklist & Certification'!$C$11)","v":""},{"$f":"IF(A375=\"\",\"\",'1. Checklist & Certification'!$C$12)","v":""},{"$f":"IF(A375=\"\",\"\",'1. Checklist & Certification'!$B$14)","v":""},{"$f":"IF(A375=\"\",\"\",'1. Checklist & Certification'!$E$14)","v":""},{"$f":"IF(B375=\"\",\"\",'1. Checklist & Certification'!$G$14)","v":""},{"$f":"IF(A375=\"\",\"\",'MHP Family Income & Rent Limits'!$B$3)","v":""},{"$f":"IF(A375=\"\",\"\",'MHP Family Income & Rent Limits'!$J$3)","v":""},{"$f":"IF(A375=\"\",\"\",'MHP Family Income & Rent Limits'!$E$4)","v":""},{"$f":"IF(A375=\"\",\"\",'MHP Family Income & Rent Limits'!$C$7)","v":""},{"$f":"IF(A375=\"\",\"\",'MHP Family Income & Rent Limits'!$F$8)","v":""},{"$f":"IF(A375=\"\",\"\",'1. Checklist & Certification'!$G$4)","v":""},{"$f":"IF(A375=\"\",\"\",'1. Checklist & Certification'!$K$39)","v":""},{"$f":"IF(A375=\"\",\"\",'1. Checklist & Certification'!$K$43)","v":""},{"$f":"IF(A375=\"\",\"\",'1. Checklist & Certification'!$K$45)","v":""},{"$f":"IF(A375=\"\",\"\",'1. Checklist & Certification'!$K$49)","v":""},{"$f":"IF(A375=\"\",\"\",'1. Checklist & Certification'!$E$66)","v":""},{"$f":"IF(A375=\"\",\"\",'1. Checklist & Certification'!$E$67)","v":""},{"$f":"IF(A375=\"\",\"\",'1. Checklist & Certification'!$E$68)","v":""},{"$f":"IF(A375=\"\",\"\",'1. Checklist & Certification'!$G$66)","v":""},{"$f":"IF(A375=\"\",\"\",'1. Checklist & Certification'!$H$66)","v":""},{"$f":"IF(A375=\"\",\"\",'1. Checklist & Certification'!$I$66)","v":""},{"$f":"IF(A375=\"\",\"\",'1. Checklist & Certification'!$I$67)","v":""},{"$f":"IF(A375=\"\",\"\",'1. Checklist & Certification'!$I$68)","v":""},null,{"$f":"IF(C375=\"\",\"\",HLOOKUP(C375,'MHP Family Income & Rent Limits'!$E$12:$L$26,2,FALSE))","v":""},{"$f":"IF(C375=\"\",\"\",HLOOKUP(C375,'MHP Family Income & Rent Limits'!$E$12:$L$26,3,FALSE))","v":""},{"$f":"IF(C375=\"\",\"\",HLOOKUP(C375,'MHP Family Income & Rent Limits'!$E$12:$L$26,4,FALSE))","v":""},{"$f":"IF(C375=\"\",\"\",HLOOKUP(C375,'MHP Family Income & Rent Limits'!$E$12:$L$26,5,FALSE))","v":""},{"$f":"IF(C375=\"\",\"\",HLOOKUP(C375,'MHP Family Income & Rent Limits'!$E$12:$L$26,6,FALSE))","v":""},{"$f":"IF(C375=\"\",\"\",HLOOKUP(C375,'MHP Family Income & Rent Limits'!$E$12:$L$26,7,FALSE))","v":""},{"$f":"IF(C375=\"\",\"\",HLOOKUP(C375,'MHP Family Income & Rent Limits'!$E$12:$L$26,8,FALSE))","v":""},{"$f":"IF(C375=\"\",\"\",HLOOKUP(C375,'MHP Family Income & Rent Limits'!$E$12:$L$26,9,FALSE))","v":""},{"$f":"IF(C375=\"\",\"\",HLOOKUP(C375,'MHP Family Income & Rent Limits'!$E$12:$L$26,10,FALSE))","v":""},{"$f":"IF(C375=\"\",\"\",HLOOKUP(C375,'MHP Family Income & Rent Limits'!$E$12:$L$26,11,FALSE))","v":""},{"$f":"IF(C375=\"\",\"\",HLOOKUP(C375,'MHP Family Income & Rent Limits'!$E$12:$L$26,12,FALSE))","v":""},{"$f":"IF(C375=\"\",\"\",HLOOKUP(C375,'MHP Family Income & Rent Limits'!$E$12:$L$26,13,FALSE))","v":""},{"$f":"IF(C375=\"\",\"\",HLOOKUP(C375,'MHP Family Income & Rent Limits'!$E$12:$L$26,14,FALSE))","v":""},{"$f":"IF(C375=\"\",\"\",HLOOKUP(C375,'MHP Family Income & Rent Limits'!$E$12:$L$26,15,FALSE))","v":""}]
[{"$f":"IF('2. Assisted & Restricted Units'!A376=\"\",\"\",'2. Assisted & Restricted Units'!A376)","v":""},{"$f":"IF('2. Assisted & Restricted Units'!B376=\"\",\"\",'2. Assisted & Restricted Units'!B376)","v":""},{"$f":"IF('2. Assisted & Restricted Units'!D376=\"\",\"\",'2. Assisted & Restricted Units'!D376)","v":""},{"$f":"IF('2. Assisted & Restricted Units'!E376=\"\",\"\",'2. Assisted & Restricted Units'!E376)","v":""},{"$f":"IF('2. Assisted & Restricted Units'!H376=\"\",\"\",'2. Assisted & Restricted Units'!H376)","v":""},{"$f":"_xlfn.IFS(E376=\"\",\"\",E376>BO376,$BP$6,E376>BN376,$BO$6,E376>BM376,$BN$6,E376>BL376,$BM$6,E376>BK376,$BL$6,E376>BJ376,$BK$6,E376>BI376,$BJ$6,E376>BH376,$BI$6,E376>BG376,$BH$6,E376>BF376,$BG$6,E376>BE376,$BF$6,E376>BD376,$BE$6,E376>BC376,$BD$6,E376>=0,$BC$6)","v":""},{"$f":"IF('2. Assisted & Restricted Units'!T376=\"\",\"\",'2. Assisted & Restricted Units'!T376)","v":""},{"$f":"IF('2. Assisted & Restricted Units'!I376=\"\",\"\",'2. Assisted & Restricted Units'!I376)","v":""},{"$f":"IF('2. Assisted & Restricted Units'!AP376=\"\",\"\",'2. Assisted & Restricted Units'!AP376)","v":0},{"$f":"IF('2. Assisted & Restricted Units'!AT376=\"\",\"\",'2. Assisted & Restricted Units'!AT376)","v":""},0,{"$f":"IF('2. Assisted & Restricted Units'!AV376=\"\",\"\",'2. Assisted & Restricted Units'!AV376)","v":""},{"$f":"IF('2. Assisted & Restricted Units'!L376=\"\",\"\",'2. Assisted & Restricted Units'!L376)","v":""},{"$f":"IF('2. Assisted & Restricted Units'!M376=\"\",\"\",'2. Assisted & Restricted Units'!M376)","v":""},{"$f":"IF('2. Assisted & Restricted Units'!O376=\"\",\"\",'2. Assisted & Restricted Units'!O376)","v":""},{"$f":"IF('2. Assisted & Restricted Units'!P376=\"\",\"\",'2. Assisted & Restricted Units'!P376)","v":""},{"$f":"IF('2. Assisted & Restricted Units'!Q376=\"\",\"\",'2. Assisted & Restricted Units'!Q376)","v":""},{"$f":"IF('2. Assisted & Restricted Units'!R376=\"\",\"\",'2. Assisted & Restricted Units'!R376)","v":""},{"$f":"IF(A376=\"\",\"\",'1. Checklist & Certification'!$K$1)","v":""},{"$f":"IF(A376=\"\",\"\",'1. Checklist & Certification'!$C$62)","v":""},{"$f":"IF(A376=\"\",\"\",'1. Checklist & Certification'!$K$62)","v":""},{"$f":"IF(A376=\"\",\"\",'1. Checklist & Certification'!$C$6)","v":""},{"$f":"IF(A376=\"\",\"\",'1. Checklist & Certification'!$G$4)","v":""},{"$f":"IF(A376=\"\",\"\",'1. Checklist & Certification'!$C$7)","v":""},{"$f":"IF(A376=\"\",\"\",'1. Checklist & Certification'!$C$8)","v":""},{"$f":"IF(A376=\"\",\"\",'1. Checklist & Certification'!$F$7)","v":""},{"$f":"IF(A376=\"\",\"\",'1. Checklist & Certification'!$F$8)","v":""},{"$f":"IF(A376=\"\",\"\",'1. Checklist & Certification'!$B$9)","v":""},{"$f":"IF(A376=\"\",\"\",'1. Checklist & Certification'!$F$9)","v":""},{"$f":"IF(A376=\"\",\"\",'1. Checklist & Certification'!$C$10)","v":""},{"$f":"IF(A376=\"\",\"\",'1. Checklist & Certification'!$C$11)","v":""},{"$f":"IF(A376=\"\",\"\",'1. Checklist & Certification'!$C$12)","v":""},{"$f":"IF(A376=\"\",\"\",'1. Checklist & Certification'!$B$14)","v":""},{"$f":"IF(A376=\"\",\"\",'1. Checklist & Certification'!$E$14)","v":""},{"$f":"IF(B376=\"\",\"\",'1. Checklist & Certification'!$G$14)","v":""},{"$f":"IF(A376=\"\",\"\",'MHP Family Income & Rent Limits'!$B$3)","v":""},{"$f":"IF(A376=\"\",\"\",'MHP Family Income & Rent Limits'!$J$3)","v":""},{"$f":"IF(A376=\"\",\"\",'MHP Family Income & Rent Limits'!$E$4)","v":""},{"$f":"IF(A376=\"\",\"\",'MHP Family Income & Rent Limits'!$C$7)","v":""},{"$f":"IF(A376=\"\",\"\",'MHP Family Income & Rent Limits'!$F$8)","v":""},{"$f":"IF(A376=\"\",\"\",'1. Checklist & Certification'!$G$4)","v":""},{"$f":"IF(A376=\"\",\"\",'1. Checklist & Certification'!$K$39)","v":""},{"$f":"IF(A376=\"\",\"\",'1. Checklist & Certification'!$K$43)","v":""},{"$f":"IF(A376=\"\",\"\",'1. Checklist & Certification'!$K$45)","v":""},{"$f":"IF(A376=\"\",\"\",'1. Checklist & Certification'!$K$49)","v":""},{"$f":"IF(A376=\"\",\"\",'1. Checklist & Certification'!$E$66)","v":""},{"$f":"IF(A376=\"\",\"\",'1. Checklist & Certification'!$E$67)","v":""},{"$f":"IF(A376=\"\",\"\",'1. Checklist & Certification'!$E$68)","v":""},{"$f":"IF(A376=\"\",\"\",'1. Checklist & Certification'!$G$66)","v":""},{"$f":"IF(A376=\"\",\"\",'1. Checklist & Certification'!$H$66)","v":""},{"$f":"IF(A376=\"\",\"\",'1. Checklist & Certification'!$I$66)","v":""},{"$f":"IF(A376=\"\",\"\",'1. Checklist & Certification'!$I$67)","v":""},{"$f":"IF(A376=\"\",\"\",'1. Checklist & Certification'!$I$68)","v":""},null,{"$f":"IF(C376=\"\",\"\",HLOOKUP(C376,'MHP Family Income & Rent Limits'!$E$12:$L$26,2,FALSE))","v":""},{"$f":"IF(C376=\"\",\"\",HLOOKUP(C376,'MHP Family Income & Rent Limits'!$E$12:$L$26,3,FALSE))","v":""},{"$f":"IF(C376=\"\",\"\",HLOOKUP(C376,'MHP Family Income & Rent Limits'!$E$12:$L$26,4,FALSE))","v":""},{"$f":"IF(C376=\"\",\"\",HLOOKUP(C376,'MHP Family Income & Rent Limits'!$E$12:$L$26,5,FALSE))","v":""},{"$f":"IF(C376=\"\",\"\",HLOOKUP(C376,'MHP Family Income & Rent Limits'!$E$12:$L$26,6,FALSE))","v":""},{"$f":"IF(C376=\"\",\"\",HLOOKUP(C376,'MHP Family Income & Rent Limits'!$E$12:$L$26,7,FALSE))","v":""},{"$f":"IF(C376=\"\",\"\",HLOOKUP(C376,'MHP Family Income & Rent Limits'!$E$12:$L$26,8,FALSE))","v":""},{"$f":"IF(C376=\"\",\"\",HLOOKUP(C376,'MHP Family Income & Rent Limits'!$E$12:$L$26,9,FALSE))","v":""},{"$f":"IF(C376=\"\",\"\",HLOOKUP(C376,'MHP Family Income & Rent Limits'!$E$12:$L$26,10,FALSE))","v":""},{"$f":"IF(C376=\"\",\"\",HLOOKUP(C376,'MHP Family Income & Rent Limits'!$E$12:$L$26,11,FALSE))","v":""},{"$f":"IF(C376=\"\",\"\",HLOOKUP(C376,'MHP Family Income & Rent Limits'!$E$12:$L$26,12,FALSE))","v":""},{"$f":"IF(C376=\"\",\"\",HLOOKUP(C376,'MHP Family Income & Rent Limits'!$E$12:$L$26,13,FALSE))","v":""},{"$f":"IF(C376=\"\",\"\",HLOOKUP(C376,'MHP Family Income & Rent Limits'!$E$12:$L$26,14,FALSE))","v":""},{"$f":"IF(C376=\"\",\"\",HLOOKUP(C376,'MHP Family Income & Rent Limits'!$E$12:$L$26,15,FALSE))","v":""}]
[{"$f":"IF('2. Assisted & Restricted Units'!A377=\"\",\"\",'2. Assisted & Restricted Units'!A377)","v":""},{"$f":"IF('2. Assisted & Restricted Units'!B377=\"\",\"\",'2. Assisted & Restricted Units'!B377)","v":""},{"$f":"IF('2. Assisted & Restricted Units'!D377=\"\",\"\",'2. Assisted & Restricted Units'!D377)","v":""},{"$f":"IF('2. Assisted & Restricted Units'!E377=\"\",\"\",'2. Assisted & Restricted Units'!E377)","v":""},{"$f":"IF('2. Assisted & Restricted Units'!H377=\"\",\"\",'2. Assisted & Restricted Units'!H377)","v":""},{"$f":"_xlfn.IFS(E377=\"\",\"\",E377>BO377,$BP$6,E377>BN377,$BO$6,E377>BM377,$BN$6,E377>BL377,$BM$6,E377>BK377,$BL$6,E377>BJ377,$BK$6,E377>BI377,$BJ$6,E377>BH377,$BI$6,E377>BG377,$BH$6,E377>BF377,$BG$6,E377>BE377,$BF$6,E377>BD377,$BE$6,E377>BC377,$BD$6,E377>=0,$BC$6)","v":""},{"$f":"IF('2. Assisted & Restricted Units'!T377=\"\",\"\",'2. Assisted & Restricted Units'!T377)","v":""},{"$f":"IF('2. Assisted & Restricted Units'!I377=\"\",\"\",'2. Assisted & Restricted Units'!I377)","v":""},{"$f":"IF('2. Assisted & Restricted Units'!AP377=\"\",\"\",'2. Assisted & Restricted Units'!AP377)","v":0},{"$f":"IF('2. Assisted & Restricted Units'!AT377=\"\",\"\",'2. Assisted & Restricted Units'!AT377)","v":""},0,{"$f":"IF('2. Assisted & Restricted Units'!AV377=\"\",\"\",'2. Assisted & Restricted Units'!AV377)","v":""},{"$f":"IF('2. Assisted & Restricted Units'!L377=\"\",\"\",'2. Assisted & Restricted Units'!L377)","v":""},{"$f":"IF('2. Assisted & Restricted Units'!M377=\"\",\"\",'2. Assisted & Restricted Units'!M377)","v":""},{"$f":"IF('2. Assisted & Restricted Units'!O377=\"\",\"\",'2. Assisted & Restricted Units'!O377)","v":""},{"$f":"IF('2. Assisted & Restricted Units'!P377=\"\",\"\",'2. Assisted & Restricted Units'!P377)","v":""},{"$f":"IF('2. Assisted & Restricted Units'!Q377=\"\",\"\",'2. Assisted & Restricted Units'!Q377)","v":""},{"$f":"IF('2. Assisted & Restricted Units'!R377=\"\",\"\",'2. Assisted & Restricted Units'!R377)","v":""},{"$f":"IF(A377=\"\",\"\",'1. Checklist & Certification'!$K$1)","v":""},{"$f":"IF(A377=\"\",\"\",'1. Checklist & Certification'!$C$62)","v":""},{"$f":"IF(A377=\"\",\"\",'1. Checklist & Certification'!$K$62)","v":""},{"$f":"IF(A377=\"\",\"\",'1. Checklist & Certification'!$C$6)","v":""},{"$f":"IF(A377=\"\",\"\",'1. Checklist & Certification'!$G$4)","v":""},{"$f":"IF(A377=\"\",\"\",'1. Checklist & Certification'!$C$7)","v":""},{"$f":"IF(A377=\"\",\"\",'1. Checklist & Certification'!$C$8)","v":""},{"$f":"IF(A377=\"\",\"\",'1. Checklist & Certification'!$F$7)","v":""},{"$f":"IF(A377=\"\",\"\",'1. Checklist & Certification'!$F$8)","v":""},{"$f":"IF(A377=\"\",\"\",'1. Checklist & Certification'!$B$9)","v":""},{"$f":"IF(A377=\"\",\"\",'1. Checklist & Certification'!$F$9)","v":""},{"$f":"IF(A377=\"\",\"\",'1. Checklist & Certification'!$C$10)","v":""},{"$f":"IF(A377=\"\",\"\",'1. Checklist & Certification'!$C$11)","v":""},{"$f":"IF(A377=\"\",\"\",'1. Checklist & Certification'!$C$12)","v":""},{"$f":"IF(A377=\"\",\"\",'1. Checklist & Certification'!$B$14)","v":""},{"$f":"IF(A377=\"\",\"\",'1. Checklist & Certification'!$E$14)","v":""},{"$f":"IF(B377=\"\",\"\",'1. Checklist & Certification'!$G$14)","v":""},{"$f":"IF(A377=\"\",\"\",'MHP Family Income & Rent Limits'!$B$3)","v":""},{"$f":"IF(A377=\"\",\"\",'MHP Family Income & Rent Limits'!$J$3)","v":""},{"$f":"IF(A377=\"\",\"\",'MHP Family Income & Rent Limits'!$E$4)","v":""},{"$f":"IF(A377=\"\",\"\",'MHP Family Income & Rent Limits'!$C$7)","v":""},{"$f":"IF(A377=\"\",\"\",'MHP Family Income & Rent Limits'!$F$8)","v":""},{"$f":"IF(A377=\"\",\"\",'1. Checklist & Certification'!$G$4)","v":""},{"$f":"IF(A377=\"\",\"\",'1. Checklist & Certification'!$K$39)","v":""},{"$f":"IF(A377=\"\",\"\",'1. Checklist & Certification'!$K$43)","v":""},{"$f":"IF(A377=\"\",\"\",'1. Checklist & Certification'!$K$45)","v":""},{"$f":"IF(A377=\"\",\"\",'1. Checklist & Certification'!$K$49)","v":""},{"$f":"IF(A377=\"\",\"\",'1. Checklist & Certification'!$E$66)","v":""},{"$f":"IF(A377=\"\",\"\",'1. Checklist & Certification'!$E$67)","v":""},{"$f":"IF(A377=\"\",\"\",'1. Checklist & Certification'!$E$68)","v":""},{"$f":"IF(A377=\"\",\"\",'1. Checklist & Certification'!$G$66)","v":""},{"$f":"IF(A377=\"\",\"\",'1. Checklist & Certification'!$H$66)","v":""},{"$f":"IF(A377=\"\",\"\",'1. Checklist & Certification'!$I$66)","v":""},{"$f":"IF(A377=\"\",\"\",'1. Checklist & Certification'!$I$67)","v":""},{"$f":"IF(A377=\"\",\"\",'1. Checklist & Certification'!$I$68)","v":""},null,{"$f":"IF(C377=\"\",\"\",HLOOKUP(C377,'MHP Family Income & Rent Limits'!$E$12:$L$26,2,FALSE))","v":""},{"$f":"IF(C377=\"\",\"\",HLOOKUP(C377,'MHP Family Income & Rent Limits'!$E$12:$L$26,3,FALSE))","v":""},{"$f":"IF(C377=\"\",\"\",HLOOKUP(C377,'MHP Family Income & Rent Limits'!$E$12:$L$26,4,FALSE))","v":""},{"$f":"IF(C377=\"\",\"\",HLOOKUP(C377,'MHP Family Income & Rent Limits'!$E$12:$L$26,5,FALSE))","v":""},{"$f":"IF(C377=\"\",\"\",HLOOKUP(C377,'MHP Family Income & Rent Limits'!$E$12:$L$26,6,FALSE))","v":""},{"$f":"IF(C377=\"\",\"\",HLOOKUP(C377,'MHP Family Income & Rent Limits'!$E$12:$L$26,7,FALSE))","v":""},{"$f":"IF(C377=\"\",\"\",HLOOKUP(C377,'MHP Family Income & Rent Limits'!$E$12:$L$26,8,FALSE))","v":""},{"$f":"IF(C377=\"\",\"\",HLOOKUP(C377,'MHP Family Income & Rent Limits'!$E$12:$L$26,9,FALSE))","v":""},{"$f":"IF(C377=\"\",\"\",HLOOKUP(C377,'MHP Family Income & Rent Limits'!$E$12:$L$26,10,FALSE))","v":""},{"$f":"IF(C377=\"\",\"\",HLOOKUP(C377,'MHP Family Income & Rent Limits'!$E$12:$L$26,11,FALSE))","v":""},{"$f":"IF(C377=\"\",\"\",HLOOKUP(C377,'MHP Family Income & Rent Limits'!$E$12:$L$26,12,FALSE))","v":""},{"$f":"IF(C377=\"\",\"\",HLOOKUP(C377,'MHP Family Income & Rent Limits'!$E$12:$L$26,13,FALSE))","v":""},{"$f":"IF(C377=\"\",\"\",HLOOKUP(C377,'MHP Family Income & Rent Limits'!$E$12:$L$26,14,FALSE))","v":""},{"$f":"IF(C377=\"\",\"\",HLOOKUP(C377,'MHP Family Income & Rent Limits'!$E$12:$L$26,15,FALSE))","v":""}]
[{"$f":"IF('2. Assisted & Restricted Units'!A378=\"\",\"\",'2. Assisted & Restricted Units'!A378)","v":""},{"$f":"IF('2. Assisted & Restricted Units'!B378=\"\",\"\",'2. Assisted & Restricted Units'!B378)","v":""},{"$f":"IF('2. Assisted & Restricted Units'!D378=\"\",\"\",'2. Assisted & Restricted Units'!D378)","v":""},{"$f":"IF('2. Assisted & Restricted Units'!E378=\"\",\"\",'2. Assisted & Restricted Units'!E378)","v":""},{"$f":"IF('2. Assisted & Restricted Units'!H378=\"\",\"\",'2. Assisted & Restricted Units'!H378)","v":""},{"$f":"_xlfn.IFS(E378=\"\",\"\",E378>BO378,$BP$6,E378>BN378,$BO$6,E378>BM378,$BN$6,E378>BL378,$BM$6,E378>BK378,$BL$6,E378>BJ378,$BK$6,E378>BI378,$BJ$6,E378>BH378,$BI$6,E378>BG378,$BH$6,E378>BF378,$BG$6,E378>BE378,$BF$6,E378>BD378,$BE$6,E378>BC378,$BD$6,E378>=0,$BC$6)","v":""},{"$f":"IF('2. Assisted & Restricted Units'!T378=\"\",\"\",'2. Assisted & Restricted Units'!T378)","v":""},{"$f":"IF('2. Assisted & Restricted Units'!I378=\"\",\"\",'2. Assisted & Restricted Units'!I378)","v":""},{"$f":"IF('2. Assisted & Restricted Units'!AP378=\"\",\"\",'2. Assisted & Restricted Units'!AP378)","v":0},{"$f":"IF('2. Assisted & Restricted Units'!AT378=\"\",\"\",'2. Assisted & Restricted Units'!AT378)","v":""},0,{"$f":"IF('2. Assisted & Restricted Units'!AV378=\"\",\"\",'2. Assisted & Restricted Units'!AV378)","v":""},{"$f":"IF('2. Assisted & Restricted Units'!L378=\"\",\"\",'2. Assisted & Restricted Units'!L378)","v":""},{"$f":"IF('2. Assisted & Restricted Units'!M378=\"\",\"\",'2. Assisted & Restricted Units'!M378)","v":""},{"$f":"IF('2. Assisted & Restricted Units'!O378=\"\",\"\",'2. Assisted & Restricted Units'!O378)","v":""},{"$f":"IF('2. Assisted & Restricted Units'!P378=\"\",\"\",'2. Assisted & Restricted Units'!P378)","v":""},{"$f":"IF('2. Assisted & Restricted Units'!Q378=\"\",\"\",'2. Assisted & Restricted Units'!Q378)","v":""},{"$f":"IF('2. Assisted & Restricted Units'!R378=\"\",\"\",'2. Assisted & Restricted Units'!R378)","v":""},{"$f":"IF(A378=\"\",\"\",'1. Checklist & Certification'!$K$1)","v":""},{"$f":"IF(A378=\"\",\"\",'1. Checklist & Certification'!$C$62)","v":""},{"$f":"IF(A378=\"\",\"\",'1. Checklist & Certification'!$K$62)","v":""},{"$f":"IF(A378=\"\",\"\",'1. Checklist & Certification'!$C$6)","v":""},{"$f":"IF(A378=\"\",\"\",'1. Checklist & Certification'!$G$4)","v":""},{"$f":"IF(A378=\"\",\"\",'1. Checklist & Certification'!$C$7)","v":""},{"$f":"IF(A378=\"\",\"\",'1. Checklist & Certification'!$C$8)","v":""},{"$f":"IF(A378=\"\",\"\",'1. Checklist & Certification'!$F$7)","v":""},{"$f":"IF(A378=\"\",\"\",'1. Checklist & Certification'!$F$8)","v":""},{"$f":"IF(A378=\"\",\"\",'1. Checklist & Certification'!$B$9)","v":""},{"$f":"IF(A378=\"\",\"\",'1. Checklist & Certification'!$F$9)","v":""},{"$f":"IF(A378=\"\",\"\",'1. Checklist & Certification'!$C$10)","v":""},{"$f":"IF(A378=\"\",\"\",'1. Checklist & Certification'!$C$11)","v":""},{"$f":"IF(A378=\"\",\"\",'1. Checklist & Certification'!$C$12)","v":""},{"$f":"IF(A378=\"\",\"\",'1. Checklist & Certification'!$B$14)","v":""},{"$f":"IF(A378=\"\",\"\",'1. Checklist & Certification'!$E$14)","v":""},{"$f":"IF(B378=\"\",\"\",'1. Checklist & Certification'!$G$14)","v":""},{"$f":"IF(A378=\"\",\"\",'MHP Family Income & Rent Limits'!$B$3)","v":""},{"$f":"IF(A378=\"\",\"\",'MHP Family Income & Rent Limits'!$J$3)","v":""},{"$f":"IF(A378=\"\",\"\",'MHP Family Income & Rent Limits'!$E$4)","v":""},{"$f":"IF(A378=\"\",\"\",'MHP Family Income & Rent Limits'!$C$7)","v":""},{"$f":"IF(A378=\"\",\"\",'MHP Family Income & Rent Limits'!$F$8)","v":""},{"$f":"IF(A378=\"\",\"\",'1. Checklist & Certification'!$G$4)","v":""},{"$f":"IF(A378=\"\",\"\",'1. Checklist & Certification'!$K$39)","v":""},{"$f":"IF(A378=\"\",\"\",'1. Checklist & Certification'!$K$43)","v":""},{"$f":"IF(A378=\"\",\"\",'1. Checklist & Certification'!$K$45)","v":""},{"$f":"IF(A378=\"\",\"\",'1. Checklist & Certification'!$K$49)","v":""},{"$f":"IF(A378=\"\",\"\",'1. Checklist & Certification'!$E$66)","v":""},{"$f":"IF(A378=\"\",\"\",'1. Checklist & Certification'!$E$67)","v":""},{"$f":"IF(A378=\"\",\"\",'1. Checklist & Certification'!$E$68)","v":""},{"$f":"IF(A378=\"\",\"\",'1. Checklist & Certification'!$G$66)","v":""},{"$f":"IF(A378=\"\",\"\",'1. Checklist & Certification'!$H$66)","v":""},{"$f":"IF(A378=\"\",\"\",'1. Checklist & Certification'!$I$66)","v":""},{"$f":"IF(A378=\"\",\"\",'1. Checklist & Certification'!$I$67)","v":""},{"$f":"IF(A378=\"\",\"\",'1. Checklist & Certification'!$I$68)","v":""},null,{"$f":"IF(C378=\"\",\"\",HLOOKUP(C378,'MHP Family Income & Rent Limits'!$E$12:$L$26,2,FALSE))","v":""},{"$f":"IF(C378=\"\",\"\",HLOOKUP(C378,'MHP Family Income & Rent Limits'!$E$12:$L$26,3,FALSE))","v":""},{"$f":"IF(C378=\"\",\"\",HLOOKUP(C378,'MHP Family Income & Rent Limits'!$E$12:$L$26,4,FALSE))","v":""},{"$f":"IF(C378=\"\",\"\",HLOOKUP(C378,'MHP Family Income & Rent Limits'!$E$12:$L$26,5,FALSE))","v":""},{"$f":"IF(C378=\"\",\"\",HLOOKUP(C378,'MHP Family Income & Rent Limits'!$E$12:$L$26,6,FALSE))","v":""},{"$f":"IF(C378=\"\",\"\",HLOOKUP(C378,'MHP Family Income & Rent Limits'!$E$12:$L$26,7,FALSE))","v":""},{"$f":"IF(C378=\"\",\"\",HLOOKUP(C378,'MHP Family Income & Rent Limits'!$E$12:$L$26,8,FALSE))","v":""},{"$f":"IF(C378=\"\",\"\",HLOOKUP(C378,'MHP Family Income & Rent Limits'!$E$12:$L$26,9,FALSE))","v":""},{"$f":"IF(C378=\"\",\"\",HLOOKUP(C378,'MHP Family Income & Rent Limits'!$E$12:$L$26,10,FALSE))","v":""},{"$f":"IF(C378=\"\",\"\",HLOOKUP(C378,'MHP Family Income & Rent Limits'!$E$12:$L$26,11,FALSE))","v":""},{"$f":"IF(C378=\"\",\"\",HLOOKUP(C378,'MHP Family Income & Rent Limits'!$E$12:$L$26,12,FALSE))","v":""},{"$f":"IF(C378=\"\",\"\",HLOOKUP(C378,'MHP Family Income & Rent Limits'!$E$12:$L$26,13,FALSE))","v":""},{"$f":"IF(C378=\"\",\"\",HLOOKUP(C378,'MHP Family Income & Rent Limits'!$E$12:$L$26,14,FALSE))","v":""},{"$f":"IF(C378=\"\",\"\",HLOOKUP(C378,'MHP Family Income & Rent Limits'!$E$12:$L$26,15,FALSE))","v":""}]
[{"$f":"IF('2. Assisted & Restricted Units'!A379=\"\",\"\",'2. Assisted & Restricted Units'!A379)","v":""},{"$f":"IF('2. Assisted & Restricted Units'!B379=\"\",\"\",'2. Assisted & Restricted Units'!B379)","v":""},{"$f":"IF('2. Assisted & Restricted Units'!D379=\"\",\"\",'2. Assisted & Restricted Units'!D379)","v":""},{"$f":"IF('2. Assisted & Restricted Units'!E379=\"\",\"\",'2. Assisted & Restricted Units'!E379)","v":""},{"$f":"IF('2. Assisted & Restricted Units'!H379=\"\",\"\",'2. Assisted & Restricted Units'!H379)","v":""},{"$f":"_xlfn.IFS(E379=\"\",\"\",E379>BO379,$BP$6,E379>BN379,$BO$6,E379>BM379,$BN$6,E379>BL379,$BM$6,E379>BK379,$BL$6,E379>BJ379,$BK$6,E379>BI379,$BJ$6,E379>BH379,$BI$6,E379>BG379,$BH$6,E379>BF379,$BG$6,E379>BE379,$BF$6,E379>BD379,$BE$6,E379>BC379,$BD$6,E379>=0,$BC$6)","v":""},{"$f":"IF('2. Assisted & Restricted Units'!T379=\"\",\"\",'2. Assisted & Restricted Units'!T379)","v":""},{"$f":"IF('2. Assisted & Restricted Units'!I379=\"\",\"\",'2. Assisted & Restricted Units'!I379)","v":""},{"$f":"IF('2. Assisted & Restricted Units'!AP379=\"\",\"\",'2. Assisted & Restricted Units'!AP379)","v":0},{"$f":"IF('2. Assisted & Restricted Units'!AT379=\"\",\"\",'2. Assisted & Restricted Units'!AT379)","v":""},0,{"$f":"IF('2. Assisted & Restricted Units'!AV379=\"\",\"\",'2. Assisted & Restricted Units'!AV379)","v":""},{"$f":"IF('2. Assisted & Restricted Units'!L379=\"\",\"\",'2. Assisted & Restricted Units'!L379)","v":""},{"$f":"IF('2. Assisted & Restricted Units'!M379=\"\",\"\",'2. Assisted & Restricted Units'!M379)","v":""},{"$f":"IF('2. Assisted & Restricted Units'!O379=\"\",\"\",'2. Assisted & Restricted Units'!O379)","v":""},{"$f":"IF('2. Assisted & Restricted Units'!P379=\"\",\"\",'2. Assisted & Restricted Units'!P379)","v":""},{"$f":"IF('2. Assisted & Restricted Units'!Q379=\"\",\"\",'2. Assisted & Restricted Units'!Q379)","v":""},{"$f":"IF('2. Assisted & Restricted Units'!R379=\"\",\"\",'2. Assisted & Restricted Units'!R379)","v":""},{"$f":"IF(A379=\"\",\"\",'1. Checklist & Certification'!$K$1)","v":""},{"$f":"IF(A379=\"\",\"\",'1. Checklist & Certification'!$C$62)","v":""},{"$f":"IF(A379=\"\",\"\",'1. Checklist & Certification'!$K$62)","v":""},{"$f":"IF(A379=\"\",\"\",'1. Checklist & Certification'!$C$6)","v":""},{"$f":"IF(A379=\"\",\"\",'1. Checklist & Certification'!$G$4)","v":""},{"$f":"IF(A379=\"\",\"\",'1. Checklist & Certification'!$C$7)","v":""},{"$f":"IF(A379=\"\",\"\",'1. Checklist & Certification'!$C$8)","v":""},{"$f":"IF(A379=\"\",\"\",'1. Checklist & Certification'!$F$7)","v":""},{"$f":"IF(A379=\"\",\"\",'1. Checklist & Certification'!$F$8)","v":""},{"$f":"IF(A379=\"\",\"\",'1. Checklist & Certification'!$B$9)","v":""},{"$f":"IF(A379=\"\",\"\",'1. Checklist & Certification'!$F$9)","v":""},{"$f":"IF(A379=\"\",\"\",'1. Checklist & Certification'!$C$10)","v":""},{"$f":"IF(A379=\"\",\"\",'1. Checklist & Certification'!$C$11)","v":""},{"$f":"IF(A379=\"\",\"\",'1. Checklist & Certification'!$C$12)","v":""},{"$f":"IF(A379=\"\",\"\",'1. Checklist & Certification'!$B$14)","v":""},{"$f":"IF(A379=\"\",\"\",'1. Checklist & Certification'!$E$14)","v":""},{"$f":"IF(B379=\"\",\"\",'1. Checklist & Certification'!$G$14)","v":""},{"$f":"IF(A379=\"\",\"\",'MHP Family Income & Rent Limits'!$B$3)","v":""},{"$f":"IF(A379=\"\",\"\",'MHP Family Income & Rent Limits'!$J$3)","v":""},{"$f":"IF(A379=\"\",\"\",'MHP Family Income & Rent Limits'!$E$4)","v":""},{"$f":"IF(A379=\"\",\"\",'MHP Family Income & Rent Limits'!$C$7)","v":""},{"$f":"IF(A379=\"\",\"\",'MHP Family Income & Rent Limits'!$F$8)","v":""},{"$f":"IF(A379=\"\",\"\",'1. Checklist & Certification'!$G$4)","v":""},{"$f":"IF(A379=\"\",\"\",'1. Checklist & Certification'!$K$39)","v":""},{"$f":"IF(A379=\"\",\"\",'1. Checklist & Certification'!$K$43)","v":""},{"$f":"IF(A379=\"\",\"\",'1. Checklist & Certification'!$K$45)","v":""},{"$f":"IF(A379=\"\",\"\",'1. Checklist & Certification'!$K$49)","v":""},{"$f":"IF(A379=\"\",\"\",'1. Checklist & Certification'!$E$66)","v":""},{"$f":"IF(A379=\"\",\"\",'1. Checklist & Certification'!$E$67)","v":""},{"$f":"IF(A379=\"\",\"\",'1. Checklist & Certification'!$E$68)","v":""},{"$f":"IF(A379=\"\",\"\",'1. Checklist & Certification'!$G$66)","v":""},{"$f":"IF(A379=\"\",\"\",'1. Checklist & Certification'!$H$66)","v":""},{"$f":"IF(A379=\"\",\"\",'1. Checklist & Certification'!$I$66)","v":""},{"$f":"IF(A379=\"\",\"\",'1. Checklist & Certification'!$I$67)","v":""},{"$f":"IF(A379=\"\",\"\",'1. Checklist & Certification'!$I$68)","v":""},null,{"$f":"IF(C379=\"\",\"\",HLOOKUP(C379,'MHP Family Income & Rent Limits'!$E$12:$L$26,2,FALSE))","v":""},{"$f":"IF(C379=\"\",\"\",HLOOKUP(C379,'MHP Family Income & Rent Limits'!$E$12:$L$26,3,FALSE))","v":""},{"$f":"IF(C379=\"\",\"\",HLOOKUP(C379,'MHP Family Income & Rent Limits'!$E$12:$L$26,4,FALSE))","v":""},{"$f":"IF(C379=\"\",\"\",HLOOKUP(C379,'MHP Family Income & Rent Limits'!$E$12:$L$26,5,FALSE))","v":""},{"$f":"IF(C379=\"\",\"\",HLOOKUP(C379,'MHP Family Income & Rent Limits'!$E$12:$L$26,6,FALSE))","v":""},{"$f":"IF(C379=\"\",\"\",HLOOKUP(C379,'MHP Family Income & Rent Limits'!$E$12:$L$26,7,FALSE))","v":""},{"$f":"IF(C379=\"\",\"\",HLOOKUP(C379,'MHP Family Income & Rent Limits'!$E$12:$L$26,8,FALSE))","v":""},{"$f":"IF(C379=\"\",\"\",HLOOKUP(C379,'MHP Family Income & Rent Limits'!$E$12:$L$26,9,FALSE))","v":""},{"$f":"IF(C379=\"\",\"\",HLOOKUP(C379,'MHP Family Income & Rent Limits'!$E$12:$L$26,10,FALSE))","v":""},{"$f":"IF(C379=\"\",\"\",HLOOKUP(C379,'MHP Family Income & Rent Limits'!$E$12:$L$26,11,FALSE))","v":""},{"$f":"IF(C379=\"\",\"\",HLOOKUP(C379,'MHP Family Income & Rent Limits'!$E$12:$L$26,12,FALSE))","v":""},{"$f":"IF(C379=\"\",\"\",HLOOKUP(C379,'MHP Family Income & Rent Limits'!$E$12:$L$26,13,FALSE))","v":""},{"$f":"IF(C379=\"\",\"\",HLOOKUP(C379,'MHP Family Income & Rent Limits'!$E$12:$L$26,14,FALSE))","v":""},{"$f":"IF(C379=\"\",\"\",HLOOKUP(C379,'MHP Family Income & Rent Limits'!$E$12:$L$26,15,FALSE))","v":""}]
[{"$f":"IF('2. Assisted & Restricted Units'!A380=\"\",\"\",'2. Assisted & Restricted Units'!A380)","v":""},{"$f":"IF('2. Assisted & Restricted Units'!B380=\"\",\"\",'2. Assisted & Restricted Units'!B380)","v":""},{"$f":"IF('2. Assisted & Restricted Units'!D380=\"\",\"\",'2. Assisted & Restricted Units'!D380)","v":""},{"$f":"IF('2. Assisted & Restricted Units'!E380=\"\",\"\",'2. Assisted & Restricted Units'!E380)","v":""},{"$f":"IF('2. Assisted & Restricted Units'!H380=\"\",\"\",'2. Assisted & Restricted Units'!H380)","v":""},{"$f":"_xlfn.IFS(E380=\"\",\"\",E380>BO380,$BP$6,E380>BN380,$BO$6,E380>BM380,$BN$6,E380>BL380,$BM$6,E380>BK380,$BL$6,E380>BJ380,$BK$6,E380>BI380,$BJ$6,E380>BH380,$BI$6,E380>BG380,$BH$6,E380>BF380,$BG$6,E380>BE380,$BF$6,E380>BD380,$BE$6,E380>BC380,$BD$6,E380>=0,$BC$6)","v":""},{"$f":"IF('2. Assisted & Restricted Units'!T380=\"\",\"\",'2. Assisted & Restricted Units'!T380)","v":""},{"$f":"IF('2. Assisted & Restricted Units'!I380=\"\",\"\",'2. Assisted & Restricted Units'!I380)","v":""},{"$f":"IF('2. Assisted & Restricted Units'!AP380=\"\",\"\",'2. Assisted & Restricted Units'!AP380)","v":0},{"$f":"IF('2. Assisted & Restricted Units'!AT380=\"\",\"\",'2. Assisted & Restricted Units'!AT380)","v":""},0,{"$f":"IF('2. Assisted & Restricted Units'!AV380=\"\",\"\",'2. Assisted & Restricted Units'!AV380)","v":""},{"$f":"IF('2. Assisted & Restricted Units'!L380=\"\",\"\",'2. Assisted & Restricted Units'!L380)","v":""},{"$f":"IF('2. Assisted & Restricted Units'!M380=\"\",\"\",'2. Assisted & Restricted Units'!M380)","v":""},{"$f":"IF('2. Assisted & Restricted Units'!O380=\"\",\"\",'2. Assisted & Restricted Units'!O380)","v":""},{"$f":"IF('2. Assisted & Restricted Units'!P380=\"\",\"\",'2. Assisted & Restricted Units'!P380)","v":""},{"$f":"IF('2. Assisted & Restricted Units'!Q380=\"\",\"\",'2. Assisted & Restricted Units'!Q380)","v":""},{"$f":"IF('2. Assisted & Restricted Units'!R380=\"\",\"\",'2. Assisted & Restricted Units'!R380)","v":""},{"$f":"IF(A380=\"\",\"\",'1. Checklist & Certification'!$K$1)","v":""},{"$f":"IF(A380=\"\",\"\",'1. Checklist & Certification'!$C$62)","v":""},{"$f":"IF(A380=\"\",\"\",'1. Checklist & Certification'!$K$62)","v":""},{"$f":"IF(A380=\"\",\"\",'1. Checklist & Certification'!$C$6)","v":""},{"$f":"IF(A380=\"\",\"\",'1. Checklist & Certification'!$G$4)","v":""},{"$f":"IF(A380=\"\",\"\",'1. Checklist & Certification'!$C$7)","v":""},{"$f":"IF(A380=\"\",\"\",'1. Checklist & Certification'!$C$8)","v":""},{"$f":"IF(A380=\"\",\"\",'1. Checklist & Certification'!$F$7)","v":""},{"$f":"IF(A380=\"\",\"\",'1. Checklist & Certification'!$F$8)","v":""},{"$f":"IF(A380=\"\",\"\",'1. Checklist & Certification'!$B$9)","v":""},{"$f":"IF(A380=\"\",\"\",'1. Checklist & Certification'!$F$9)","v":""},{"$f":"IF(A380=\"\",\"\",'1. Checklist & Certification'!$C$10)","v":""},{"$f":"IF(A380=\"\",\"\",'1. Checklist & Certification'!$C$11)","v":""},{"$f":"IF(A380=\"\",\"\",'1. Checklist & Certification'!$C$12)","v":""},{"$f":"IF(A380=\"\",\"\",'1. Checklist & Certification'!$B$14)","v":""},{"$f":"IF(A380=\"\",\"\",'1. Checklist & Certification'!$E$14)","v":""},{"$f":"IF(B380=\"\",\"\",'1. Checklist & Certification'!$G$14)","v":""},{"$f":"IF(A380=\"\",\"\",'MHP Family Income & Rent Limits'!$B$3)","v":""},{"$f":"IF(A380=\"\",\"\",'MHP Family Income & Rent Limits'!$J$3)","v":""},{"$f":"IF(A380=\"\",\"\",'MHP Family Income & Rent Limits'!$E$4)","v":""},{"$f":"IF(A380=\"\",\"\",'MHP Family Income & Rent Limits'!$C$7)","v":""},{"$f":"IF(A380=\"\",\"\",'MHP Family Income & Rent Limits'!$F$8)","v":""},{"$f":"IF(A380=\"\",\"\",'1. Checklist & Certification'!$G$4)","v":""},{"$f":"IF(A380=\"\",\"\",'1. Checklist & Certification'!$K$39)","v":""},{"$f":"IF(A380=\"\",\"\",'1. Checklist & Certification'!$K$43)","v":""},{"$f":"IF(A380=\"\",\"\",'1. Checklist & Certification'!$K$45)","v":""},{"$f":"IF(A380=\"\",\"\",'1. Checklist & Certification'!$K$49)","v":""},{"$f":"IF(A380=\"\",\"\",'1. Checklist & Certification'!$E$66)","v":""},{"$f":"IF(A380=\"\",\"\",'1. Checklist & Certification'!$E$67)","v":""},{"$f":"IF(A380=\"\",\"\",'1. Checklist & Certification'!$E$68)","v":""},{"$f":"IF(A380=\"\",\"\",'1. Checklist & Certification'!$G$66)","v":""},{"$f":"IF(A380=\"\",\"\",'1. Checklist & Certification'!$H$66)","v":""},{"$f":"IF(A380=\"\",\"\",'1. Checklist & Certification'!$I$66)","v":""},{"$f":"IF(A380=\"\",\"\",'1. Checklist & Certification'!$I$67)","v":""},{"$f":"IF(A380=\"\",\"\",'1. Checklist & Certification'!$I$68)","v":""},null,{"$f":"IF(C380=\"\",\"\",HLOOKUP(C380,'MHP Family Income & Rent Limits'!$E$12:$L$26,2,FALSE))","v":""},{"$f":"IF(C380=\"\",\"\",HLOOKUP(C380,'MHP Family Income & Rent Limits'!$E$12:$L$26,3,FALSE))","v":""},{"$f":"IF(C380=\"\",\"\",HLOOKUP(C380,'MHP Family Income & Rent Limits'!$E$12:$L$26,4,FALSE))","v":""},{"$f":"IF(C380=\"\",\"\",HLOOKUP(C380,'MHP Family Income & Rent Limits'!$E$12:$L$26,5,FALSE))","v":""},{"$f":"IF(C380=\"\",\"\",HLOOKUP(C380,'MHP Family Income & Rent Limits'!$E$12:$L$26,6,FALSE))","v":""},{"$f":"IF(C380=\"\",\"\",HLOOKUP(C380,'MHP Family Income & Rent Limits'!$E$12:$L$26,7,FALSE))","v":""},{"$f":"IF(C380=\"\",\"\",HLOOKUP(C380,'MHP Family Income & Rent Limits'!$E$12:$L$26,8,FALSE))","v":""},{"$f":"IF(C380=\"\",\"\",HLOOKUP(C380,'MHP Family Income & Rent Limits'!$E$12:$L$26,9,FALSE))","v":""},{"$f":"IF(C380=\"\",\"\",HLOOKUP(C380,'MHP Family Income & Rent Limits'!$E$12:$L$26,10,FALSE))","v":""},{"$f":"IF(C380=\"\",\"\",HLOOKUP(C380,'MHP Family Income & Rent Limits'!$E$12:$L$26,11,FALSE))","v":""},{"$f":"IF(C380=\"\",\"\",HLOOKUP(C380,'MHP Family Income & Rent Limits'!$E$12:$L$26,12,FALSE))","v":""},{"$f":"IF(C380=\"\",\"\",HLOOKUP(C380,'MHP Family Income & Rent Limits'!$E$12:$L$26,13,FALSE))","v":""},{"$f":"IF(C380=\"\",\"\",HLOOKUP(C380,'MHP Family Income & Rent Limits'!$E$12:$L$26,14,FALSE))","v":""},{"$f":"IF(C380=\"\",\"\",HLOOKUP(C380,'MHP Family Income & Rent Limits'!$E$12:$L$26,15,FALSE))","v":""}]
[{"$f":"IF('2. Assisted & Restricted Units'!A381=\"\",\"\",'2. Assisted & Restricted Units'!A381)","v":""},{"$f":"IF('2. Assisted & Restricted Units'!B381=\"\",\"\",'2. Assisted & Restricted Units'!B381)","v":""},{"$f":"IF('2. Assisted & Restricted Units'!D381=\"\",\"\",'2. Assisted & Restricted Units'!D381)","v":""},{"$f":"IF('2. Assisted & Restricted Units'!E381=\"\",\"\",'2. Assisted & Restricted Units'!E381)","v":""},{"$f":"IF('2. Assisted & Restricted Units'!H381=\"\",\"\",'2. Assisted & Restricted Units'!H381)","v":""},{"$f":"_xlfn.IFS(E381=\"\",\"\",E381>BO381,$BP$6,E381>BN381,$BO$6,E381>BM381,$BN$6,E381>BL381,$BM$6,E381>BK381,$BL$6,E381>BJ381,$BK$6,E381>BI381,$BJ$6,E381>BH381,$BI$6,E381>BG381,$BH$6,E381>BF381,$BG$6,E381>BE381,$BF$6,E381>BD381,$BE$6,E381>BC381,$BD$6,E381>=0,$BC$6)","v":""},{"$f":"IF('2. Assisted & Restricted Units'!T381=\"\",\"\",'2. Assisted & Restricted Units'!T381)","v":""},{"$f":"IF('2. Assisted & Restricted Units'!I381=\"\",\"\",'2. Assisted & Restricted Units'!I381)","v":""},{"$f":"IF('2. Assisted & Restricted Units'!AP381=\"\",\"\",'2. Assisted & Restricted Units'!AP381)","v":0},{"$f":"IF('2. Assisted & Restricted Units'!AT381=\"\",\"\",'2. Assisted & Restricted Units'!AT381)","v":""},0,{"$f":"IF('2. Assisted & Restricted Units'!AV381=\"\",\"\",'2. Assisted & Restricted Units'!AV381)","v":""},{"$f":"IF('2. Assisted & Restricted Units'!L381=\"\",\"\",'2. Assisted & Restricted Units'!L381)","v":""},{"$f":"IF('2. Assisted & Restricted Units'!M381=\"\",\"\",'2. Assisted & Restricted Units'!M381)","v":""},{"$f":"IF('2. Assisted & Restricted Units'!O381=\"\",\"\",'2. Assisted & Restricted Units'!O381)","v":""},{"$f":"IF('2. Assisted & Restricted Units'!P381=\"\",\"\",'2. Assisted & Restricted Units'!P381)","v":""},{"$f":"IF('2. Assisted & Restricted Units'!Q381=\"\",\"\",'2. Assisted & Restricted Units'!Q381)","v":""},{"$f":"IF('2. Assisted & Restricted Units'!R381=\"\",\"\",'2. Assisted & Restricted Units'!R381)","v":""},{"$f":"IF(A381=\"\",\"\",'1. Checklist & Certification'!$K$1)","v":""},{"$f":"IF(A381=\"\",\"\",'1. Checklist & Certification'!$C$62)","v":""},{"$f":"IF(A381=\"\",\"\",'1. Checklist & Certification'!$K$62)","v":""},{"$f":"IF(A381=\"\",\"\",'1. Checklist & Certification'!$C$6)","v":""},{"$f":"IF(A381=\"\",\"\",'1. Checklist & Certification'!$G$4)","v":""},{"$f":"IF(A381=\"\",\"\",'1. Checklist & Certification'!$C$7)","v":""},{"$f":"IF(A381=\"\",\"\",'1. Checklist & Certification'!$C$8)","v":""},{"$f":"IF(A381=\"\",\"\",'1. Checklist & Certification'!$F$7)","v":""},{"$f":"IF(A381=\"\",\"\",'1. Checklist & Certification'!$F$8)","v":""},{"$f":"IF(A381=\"\",\"\",'1. Checklist & Certification'!$B$9)","v":""},{"$f":"IF(A381=\"\",\"\",'1. Checklist & Certification'!$F$9)","v":""},{"$f":"IF(A381=\"\",\"\",'1. Checklist & Certification'!$C$10)","v":""},{"$f":"IF(A381=\"\",\"\",'1. Checklist & Certification'!$C$11)","v":""},{"$f":"IF(A381=\"\",\"\",'1. Checklist & Certification'!$C$12)","v":""},{"$f":"IF(A381=\"\",\"\",'1. Checklist & Certification'!$B$14)","v":""},{"$f":"IF(A381=\"\",\"\",'1. Checklist & Certification'!$E$14)","v":""},{"$f":"IF(B381=\"\",\"\",'1. Checklist & Certification'!$G$14)","v":""},{"$f":"IF(A381=\"\",\"\",'MHP Family Income & Rent Limits'!$B$3)","v":""},{"$f":"IF(A381=\"\",\"\",'MHP Family Income & Rent Limits'!$J$3)","v":""},{"$f":"IF(A381=\"\",\"\",'MHP Family Income & Rent Limits'!$E$4)","v":""},{"$f":"IF(A381=\"\",\"\",'MHP Family Income & Rent Limits'!$C$7)","v":""},{"$f":"IF(A381=\"\",\"\",'MHP Family Income & Rent Limits'!$F$8)","v":""},{"$f":"IF(A381=\"\",\"\",'1. Checklist & Certification'!$G$4)","v":""},{"$f":"IF(A381=\"\",\"\",'1. Checklist & Certification'!$K$39)","v":""},{"$f":"IF(A381=\"\",\"\",'1. Checklist & Certification'!$K$43)","v":""},{"$f":"IF(A381=\"\",\"\",'1. Checklist & Certification'!$K$45)","v":""},{"$f":"IF(A381=\"\",\"\",'1. Checklist & Certification'!$K$49)","v":""},{"$f":"IF(A381=\"\",\"\",'1. Checklist & Certification'!$E$66)","v":""},{"$f":"IF(A381=\"\",\"\",'1. Checklist & Certification'!$E$67)","v":""},{"$f":"IF(A381=\"\",\"\",'1. Checklist & Certification'!$E$68)","v":""},{"$f":"IF(A381=\"\",\"\",'1. Checklist & Certification'!$G$66)","v":""},{"$f":"IF(A381=\"\",\"\",'1. Checklist & Certification'!$H$66)","v":""},{"$f":"IF(A381=\"\",\"\",'1. Checklist & Certification'!$I$66)","v":""},{"$f":"IF(A381=\"\",\"\",'1. Checklist & Certification'!$I$67)","v":""},{"$f":"IF(A381=\"\",\"\",'1. Checklist & Certification'!$I$68)","v":""},null,{"$f":"IF(C381=\"\",\"\",HLOOKUP(C381,'MHP Family Income & Rent Limits'!$E$12:$L$26,2,FALSE))","v":""},{"$f":"IF(C381=\"\",\"\",HLOOKUP(C381,'MHP Family Income & Rent Limits'!$E$12:$L$26,3,FALSE))","v":""},{"$f":"IF(C381=\"\",\"\",HLOOKUP(C381,'MHP Family Income & Rent Limits'!$E$12:$L$26,4,FALSE))","v":""},{"$f":"IF(C381=\"\",\"\",HLOOKUP(C381,'MHP Family Income & Rent Limits'!$E$12:$L$26,5,FALSE))","v":""},{"$f":"IF(C381=\"\",\"\",HLOOKUP(C381,'MHP Family Income & Rent Limits'!$E$12:$L$26,6,FALSE))","v":""},{"$f":"IF(C381=\"\",\"\",HLOOKUP(C381,'MHP Family Income & Rent Limits'!$E$12:$L$26,7,FALSE))","v":""},{"$f":"IF(C381=\"\",\"\",HLOOKUP(C381,'MHP Family Income & Rent Limits'!$E$12:$L$26,8,FALSE))","v":""},{"$f":"IF(C381=\"\",\"\",HLOOKUP(C381,'MHP Family Income & Rent Limits'!$E$12:$L$26,9,FALSE))","v":""},{"$f":"IF(C381=\"\",\"\",HLOOKUP(C381,'MHP Family Income & Rent Limits'!$E$12:$L$26,10,FALSE))","v":""},{"$f":"IF(C381=\"\",\"\",HLOOKUP(C381,'MHP Family Income & Rent Limits'!$E$12:$L$26,11,FALSE))","v":""},{"$f":"IF(C381=\"\",\"\",HLOOKUP(C381,'MHP Family Income & Rent Limits'!$E$12:$L$26,12,FALSE))","v":""},{"$f":"IF(C381=\"\",\"\",HLOOKUP(C381,'MHP Family Income & Rent Limits'!$E$12:$L$26,13,FALSE))","v":""},{"$f":"IF(C381=\"\",\"\",HLOOKUP(C381,'MHP Family Income & Rent Limits'!$E$12:$L$26,14,FALSE))","v":""},{"$f":"IF(C381=\"\",\"\",HLOOKUP(C381,'MHP Family Income & Rent Limits'!$E$12:$L$26,15,FALSE))","v":""}]
[{"$f":"IF('2. Assisted & Restricted Units'!A382=\"\",\"\",'2. Assisted & Restricted Units'!A382)","v":""},{"$f":"IF('2. Assisted & Restricted Units'!B382=\"\",\"\",'2. Assisted & Restricted Units'!B382)","v":""},{"$f":"IF('2. Assisted & Restricted Units'!D382=\"\",\"\",'2. Assisted & Restricted Units'!D382)","v":""},{"$f":"IF('2. Assisted & Restricted Units'!E382=\"\",\"\",'2. Assisted & Restricted Units'!E382)","v":""},{"$f":"IF('2. Assisted & Restricted Units'!H382=\"\",\"\",'2. Assisted & Restricted Units'!H382)","v":""},{"$f":"_xlfn.IFS(E382=\"\",\"\",E382>BO382,$BP$6,E382>BN382,$BO$6,E382>BM382,$BN$6,E382>BL382,$BM$6,E382>BK382,$BL$6,E382>BJ382,$BK$6,E382>BI382,$BJ$6,E382>BH382,$BI$6,E382>BG382,$BH$6,E382>BF382,$BG$6,E382>BE382,$BF$6,E382>BD382,$BE$6,E382>BC382,$BD$6,E382>=0,$BC$6)","v":""},{"$f":"IF('2. Assisted & Restricted Units'!T382=\"\",\"\",'2. Assisted & Restricted Units'!T382)","v":""},{"$f":"IF('2. Assisted & Restricted Units'!I382=\"\",\"\",'2. Assisted & Restricted Units'!I382)","v":""},{"$f":"IF('2. Assisted & Restricted Units'!AP382=\"\",\"\",'2. Assisted & Restricted Units'!AP382)","v":0},{"$f":"IF('2. Assisted & Restricted Units'!AT382=\"\",\"\",'2. Assisted & Restricted Units'!AT382)","v":""},0,{"$f":"IF('2. Assisted & Restricted Units'!AV382=\"\",\"\",'2. Assisted & Restricted Units'!AV382)","v":""},{"$f":"IF('2. Assisted & Restricted Units'!L382=\"\",\"\",'2. Assisted & Restricted Units'!L382)","v":""},{"$f":"IF('2. Assisted & Restricted Units'!M382=\"\",\"\",'2. Assisted & Restricted Units'!M382)","v":""},{"$f":"IF('2. Assisted & Restricted Units'!O382=\"\",\"\",'2. Assisted & Restricted Units'!O382)","v":""},{"$f":"IF('2. Assisted & Restricted Units'!P382=\"\",\"\",'2. Assisted & Restricted Units'!P382)","v":""},{"$f":"IF('2. Assisted & Restricted Units'!Q382=\"\",\"\",'2. Assisted & Restricted Units'!Q382)","v":""},{"$f":"IF('2. Assisted & Restricted Units'!R382=\"\",\"\",'2. Assisted & Restricted Units'!R382)","v":""},{"$f":"IF(A382=\"\",\"\",'1. Checklist & Certification'!$K$1)","v":""},{"$f":"IF(A382=\"\",\"\",'1. Checklist & Certification'!$C$62)","v":""},{"$f":"IF(A382=\"\",\"\",'1. Checklist & Certification'!$K$62)","v":""},{"$f":"IF(A382=\"\",\"\",'1. Checklist & Certification'!$C$6)","v":""},{"$f":"IF(A382=\"\",\"\",'1. Checklist & Certification'!$G$4)","v":""},{"$f":"IF(A382=\"\",\"\",'1. Checklist & Certification'!$C$7)","v":""},{"$f":"IF(A382=\"\",\"\",'1. Checklist & Certification'!$C$8)","v":""},{"$f":"IF(A382=\"\",\"\",'1. Checklist & Certification'!$F$7)","v":""},{"$f":"IF(A382=\"\",\"\",'1. Checklist & Certification'!$F$8)","v":""},{"$f":"IF(A382=\"\",\"\",'1. Checklist & Certification'!$B$9)","v":""},{"$f":"IF(A382=\"\",\"\",'1. Checklist & Certification'!$F$9)","v":""},{"$f":"IF(A382=\"\",\"\",'1. Checklist & Certification'!$C$10)","v":""},{"$f":"IF(A382=\"\",\"\",'1. Checklist & Certification'!$C$11)","v":""},{"$f":"IF(A382=\"\",\"\",'1. Checklist & Certification'!$C$12)","v":""},{"$f":"IF(A382=\"\",\"\",'1. Checklist & Certification'!$B$14)","v":""},{"$f":"IF(A382=\"\",\"\",'1. Checklist & Certification'!$E$14)","v":""},{"$f":"IF(B382=\"\",\"\",'1. Checklist & Certification'!$G$14)","v":""},{"$f":"IF(A382=\"\",\"\",'MHP Family Income & Rent Limits'!$B$3)","v":""},{"$f":"IF(A382=\"\",\"\",'MHP Family Income & Rent Limits'!$J$3)","v":""},{"$f":"IF(A382=\"\",\"\",'MHP Family Income & Rent Limits'!$E$4)","v":""},{"$f":"IF(A382=\"\",\"\",'MHP Family Income & Rent Limits'!$C$7)","v":""},{"$f":"IF(A382=\"\",\"\",'MHP Family Income & Rent Limits'!$F$8)","v":""},{"$f":"IF(A382=\"\",\"\",'1. Checklist & Certification'!$G$4)","v":""},{"$f":"IF(A382=\"\",\"\",'1. Checklist & Certification'!$K$39)","v":""},{"$f":"IF(A382=\"\",\"\",'1. Checklist & Certification'!$K$43)","v":""},{"$f":"IF(A382=\"\",\"\",'1. Checklist & Certification'!$K$45)","v":""},{"$f":"IF(A382=\"\",\"\",'1. Checklist & Certification'!$K$49)","v":""},{"$f":"IF(A382=\"\",\"\",'1. Checklist & Certification'!$E$66)","v":""},{"$f":"IF(A382=\"\",\"\",'1. Checklist & Certification'!$E$67)","v":""},{"$f":"IF(A382=\"\",\"\",'1. Checklist & Certification'!$E$68)","v":""},{"$f":"IF(A382=\"\",\"\",'1. Checklist & Certification'!$G$66)","v":""},{"$f":"IF(A382=\"\",\"\",'1. Checklist & Certification'!$H$66)","v":""},{"$f":"IF(A382=\"\",\"\",'1. Checklist & Certification'!$I$66)","v":""},{"$f":"IF(A382=\"\",\"\",'1. Checklist & Certification'!$I$67)","v":""},{"$f":"IF(A382=\"\",\"\",'1. Checklist & Certification'!$I$68)","v":""},null,{"$f":"IF(C382=\"\",\"\",HLOOKUP(C382,'MHP Family Income & Rent Limits'!$E$12:$L$26,2,FALSE))","v":""},{"$f":"IF(C382=\"\",\"\",HLOOKUP(C382,'MHP Family Income & Rent Limits'!$E$12:$L$26,3,FALSE))","v":""},{"$f":"IF(C382=\"\",\"\",HLOOKUP(C382,'MHP Family Income & Rent Limits'!$E$12:$L$26,4,FALSE))","v":""},{"$f":"IF(C382=\"\",\"\",HLOOKUP(C382,'MHP Family Income & Rent Limits'!$E$12:$L$26,5,FALSE))","v":""},{"$f":"IF(C382=\"\",\"\",HLOOKUP(C382,'MHP Family Income & Rent Limits'!$E$12:$L$26,6,FALSE))","v":""},{"$f":"IF(C382=\"\",\"\",HLOOKUP(C382,'MHP Family Income & Rent Limits'!$E$12:$L$26,7,FALSE))","v":""},{"$f":"IF(C382=\"\",\"\",HLOOKUP(C382,'MHP Family Income & Rent Limits'!$E$12:$L$26,8,FALSE))","v":""},{"$f":"IF(C382=\"\",\"\",HLOOKUP(C382,'MHP Family Income & Rent Limits'!$E$12:$L$26,9,FALSE))","v":""},{"$f":"IF(C382=\"\",\"\",HLOOKUP(C382,'MHP Family Income & Rent Limits'!$E$12:$L$26,10,FALSE))","v":""},{"$f":"IF(C382=\"\",\"\",HLOOKUP(C382,'MHP Family Income & Rent Limits'!$E$12:$L$26,11,FALSE))","v":""},{"$f":"IF(C382=\"\",\"\",HLOOKUP(C382,'MHP Family Income & Rent Limits'!$E$12:$L$26,12,FALSE))","v":""},{"$f":"IF(C382=\"\",\"\",HLOOKUP(C382,'MHP Family Income & Rent Limits'!$E$12:$L$26,13,FALSE))","v":""},{"$f":"IF(C382=\"\",\"\",HLOOKUP(C382,'MHP Family Income & Rent Limits'!$E$12:$L$26,14,FALSE))","v":""},{"$f":"IF(C382=\"\",\"\",HLOOKUP(C382,'MHP Family Income & Rent Limits'!$E$12:$L$26,15,FALSE))","v":""}]
[{"$f":"IF('2. Assisted & Restricted Units'!A383=\"\",\"\",'2. Assisted & Restricted Units'!A383)","v":""},{"$f":"IF('2. Assisted & Restricted Units'!B383=\"\",\"\",'2. Assisted & Restricted Units'!B383)","v":""},{"$f":"IF('2. Assisted & Restricted Units'!D383=\"\",\"\",'2. Assisted & Restricted Units'!D383)","v":""},{"$f":"IF('2. Assisted & Restricted Units'!E383=\"\",\"\",'2. Assisted & Restricted Units'!E383)","v":""},{"$f":"IF('2. Assisted & Restricted Units'!H383=\"\",\"\",'2. Assisted & Restricted Units'!H383)","v":""},{"$f":"_xlfn.IFS(E383=\"\",\"\",E383>BO383,$BP$6,E383>BN383,$BO$6,E383>BM383,$BN$6,E383>BL383,$BM$6,E383>BK383,$BL$6,E383>BJ383,$BK$6,E383>BI383,$BJ$6,E383>BH383,$BI$6,E383>BG383,$BH$6,E383>BF383,$BG$6,E383>BE383,$BF$6,E383>BD383,$BE$6,E383>BC383,$BD$6,E383>=0,$BC$6)","v":""},{"$f":"IF('2. Assisted & Restricted Units'!T383=\"\",\"\",'2. Assisted & Restricted Units'!T383)","v":""},{"$f":"IF('2. Assisted & Restricted Units'!I383=\"\",\"\",'2. Assisted & Restricted Units'!I383)","v":""},{"$f":"IF('2. Assisted & Restricted Units'!AP383=\"\",\"\",'2. Assisted & Restricted Units'!AP383)","v":0},{"$f":"IF('2. Assisted & Restricted Units'!AT383=\"\",\"\",'2. Assisted & Restricted Units'!AT383)","v":""},0,{"$f":"IF('2. Assisted & Restricted Units'!AV383=\"\",\"\",'2. Assisted & Restricted Units'!AV383)","v":""},{"$f":"IF('2. Assisted & Restricted Units'!L383=\"\",\"\",'2. Assisted & Restricted Units'!L383)","v":""},{"$f":"IF('2. Assisted & Restricted Units'!M383=\"\",\"\",'2. Assisted & Restricted Units'!M383)","v":""},{"$f":"IF('2. Assisted & Restricted Units'!O383=\"\",\"\",'2. Assisted & Restricted Units'!O383)","v":""},{"$f":"IF('2. Assisted & Restricted Units'!P383=\"\",\"\",'2. Assisted & Restricted Units'!P383)","v":""},{"$f":"IF('2. Assisted & Restricted Units'!Q383=\"\",\"\",'2. Assisted & Restricted Units'!Q383)","v":""},{"$f":"IF('2. Assisted & Restricted Units'!R383=\"\",\"\",'2. Assisted & Restricted Units'!R383)","v":""},{"$f":"IF(A383=\"\",\"\",'1. Checklist & Certification'!$K$1)","v":""},{"$f":"IF(A383=\"\",\"\",'1. Checklist & Certification'!$C$62)","v":""},{"$f":"IF(A383=\"\",\"\",'1. Checklist & Certification'!$K$62)","v":""},{"$f":"IF(A383=\"\",\"\",'1. Checklist & Certification'!$C$6)","v":""},{"$f":"IF(A383=\"\",\"\",'1. Checklist & Certification'!$G$4)","v":""},{"$f":"IF(A383=\"\",\"\",'1. Checklist & Certification'!$C$7)","v":""},{"$f":"IF(A383=\"\",\"\",'1. Checklist & Certification'!$C$8)","v":""},{"$f":"IF(A383=\"\",\"\",'1. Checklist & Certification'!$F$7)","v":""},{"$f":"IF(A383=\"\",\"\",'1. Checklist & Certification'!$F$8)","v":""},{"$f":"IF(A383=\"\",\"\",'1. Checklist & Certification'!$B$9)","v":""},{"$f":"IF(A383=\"\",\"\",'1. Checklist & Certification'!$F$9)","v":""},{"$f":"IF(A383=\"\",\"\",'1. Checklist & Certification'!$C$10)","v":""},{"$f":"IF(A383=\"\",\"\",'1. Checklist & Certification'!$C$11)","v":""},{"$f":"IF(A383=\"\",\"\",'1. Checklist & Certification'!$C$12)","v":""},{"$f":"IF(A383=\"\",\"\",'1. Checklist & Certification'!$B$14)","v":""},{"$f":"IF(A383=\"\",\"\",'1. Checklist & Certification'!$E$14)","v":""},{"$f":"IF(B383=\"\",\"\",'1. Checklist & Certification'!$G$14)","v":""},{"$f":"IF(A383=\"\",\"\",'MHP Family Income & Rent Limits'!$B$3)","v":""},{"$f":"IF(A383=\"\",\"\",'MHP Family Income & Rent Limits'!$J$3)","v":""},{"$f":"IF(A383=\"\",\"\",'MHP Family Income & Rent Limits'!$E$4)","v":""},{"$f":"IF(A383=\"\",\"\",'MHP Family Income & Rent Limits'!$C$7)","v":""},{"$f":"IF(A383=\"\",\"\",'MHP Family Income & Rent Limits'!$F$8)","v":""},{"$f":"IF(A383=\"\",\"\",'1. Checklist & Certification'!$G$4)","v":""},{"$f":"IF(A383=\"\",\"\",'1. Checklist & Certification'!$K$39)","v":""},{"$f":"IF(A383=\"\",\"\",'1. Checklist & Certification'!$K$43)","v":""},{"$f":"IF(A383=\"\",\"\",'1. Checklist & Certification'!$K$45)","v":""},{"$f":"IF(A383=\"\",\"\",'1. Checklist & Certification'!$K$49)","v":""},{"$f":"IF(A383=\"\",\"\",'1. Checklist & Certification'!$E$66)","v":""},{"$f":"IF(A383=\"\",\"\",'1. Checklist & Certification'!$E$67)","v":""},{"$f":"IF(A383=\"\",\"\",'1. Checklist & Certification'!$E$68)","v":""},{"$f":"IF(A383=\"\",\"\",'1. Checklist & Certification'!$G$66)","v":""},{"$f":"IF(A383=\"\",\"\",'1. Checklist & Certification'!$H$66)","v":""},{"$f":"IF(A383=\"\",\"\",'1. Checklist & Certification'!$I$66)","v":""},{"$f":"IF(A383=\"\",\"\",'1. Checklist & Certification'!$I$67)","v":""},{"$f":"IF(A383=\"\",\"\",'1. Checklist & Certification'!$I$68)","v":""},null,{"$f":"IF(C383=\"\",\"\",HLOOKUP(C383,'MHP Family Income & Rent Limits'!$E$12:$L$26,2,FALSE))","v":""},{"$f":"IF(C383=\"\",\"\",HLOOKUP(C383,'MHP Family Income & Rent Limits'!$E$12:$L$26,3,FALSE))","v":""},{"$f":"IF(C383=\"\",\"\",HLOOKUP(C383,'MHP Family Income & Rent Limits'!$E$12:$L$26,4,FALSE))","v":""},{"$f":"IF(C383=\"\",\"\",HLOOKUP(C383,'MHP Family Income & Rent Limits'!$E$12:$L$26,5,FALSE))","v":""},{"$f":"IF(C383=\"\",\"\",HLOOKUP(C383,'MHP Family Income & Rent Limits'!$E$12:$L$26,6,FALSE))","v":""},{"$f":"IF(C383=\"\",\"\",HLOOKUP(C383,'MHP Family Income & Rent Limits'!$E$12:$L$26,7,FALSE))","v":""},{"$f":"IF(C383=\"\",\"\",HLOOKUP(C383,'MHP Family Income & Rent Limits'!$E$12:$L$26,8,FALSE))","v":""},{"$f":"IF(C383=\"\",\"\",HLOOKUP(C383,'MHP Family Income & Rent Limits'!$E$12:$L$26,9,FALSE))","v":""},{"$f":"IF(C383=\"\",\"\",HLOOKUP(C383,'MHP Family Income & Rent Limits'!$E$12:$L$26,10,FALSE))","v":""},{"$f":"IF(C383=\"\",\"\",HLOOKUP(C383,'MHP Family Income & Rent Limits'!$E$12:$L$26,11,FALSE))","v":""},{"$f":"IF(C383=\"\",\"\",HLOOKUP(C383,'MHP Family Income & Rent Limits'!$E$12:$L$26,12,FALSE))","v":""},{"$f":"IF(C383=\"\",\"\",HLOOKUP(C383,'MHP Family Income & Rent Limits'!$E$12:$L$26,13,FALSE))","v":""},{"$f":"IF(C383=\"\",\"\",HLOOKUP(C383,'MHP Family Income & Rent Limits'!$E$12:$L$26,14,FALSE))","v":""},{"$f":"IF(C383=\"\",\"\",HLOOKUP(C383,'MHP Family Income & Rent Limits'!$E$12:$L$26,15,FALSE))","v":""}]
[{"$f":"IF('2. Assisted & Restricted Units'!A384=\"\",\"\",'2. Assisted & Restricted Units'!A384)","v":""},{"$f":"IF('2. Assisted & Restricted Units'!B384=\"\",\"\",'2. Assisted & Restricted Units'!B384)","v":""},{"$f":"IF('2. Assisted & Restricted Units'!D384=\"\",\"\",'2. Assisted & Restricted Units'!D384)","v":""},{"$f":"IF('2. Assisted & Restricted Units'!E384=\"\",\"\",'2. Assisted & Restricted Units'!E384)","v":""},{"$f":"IF('2. Assisted & Restricted Units'!H384=\"\",\"\",'2. Assisted & Restricted Units'!H384)","v":""},{"$f":"_xlfn.IFS(E384=\"\",\"\",E384>BO384,$BP$6,E384>BN384,$BO$6,E384>BM384,$BN$6,E384>BL384,$BM$6,E384>BK384,$BL$6,E384>BJ384,$BK$6,E384>BI384,$BJ$6,E384>BH384,$BI$6,E384>BG384,$BH$6,E384>BF384,$BG$6,E384>BE384,$BF$6,E384>BD384,$BE$6,E384>BC384,$BD$6,E384>=0,$BC$6)","v":""},{"$f":"IF('2. Assisted & Restricted Units'!T384=\"\",\"\",'2. Assisted & Restricted Units'!T384)","v":""},{"$f":"IF('2. Assisted & Restricted Units'!I384=\"\",\"\",'2. Assisted & Restricted Units'!I384)","v":""},{"$f":"IF('2. Assisted & Restricted Units'!AP384=\"\",\"\",'2. Assisted & Restricted Units'!AP384)","v":0},{"$f":"IF('2. Assisted & Restricted Units'!AT384=\"\",\"\",'2. Assisted & Restricted Units'!AT384)","v":""},0,{"$f":"IF('2. Assisted & Restricted Units'!AV384=\"\",\"\",'2. Assisted & Restricted Units'!AV384)","v":""},{"$f":"IF('2. Assisted & Restricted Units'!L384=\"\",\"\",'2. Assisted & Restricted Units'!L384)","v":""},{"$f":"IF('2. Assisted & Restricted Units'!M384=\"\",\"\",'2. Assisted & Restricted Units'!M384)","v":""},{"$f":"IF('2. Assisted & Restricted Units'!O384=\"\",\"\",'2. Assisted & Restricted Units'!O384)","v":""},{"$f":"IF('2. Assisted & Restricted Units'!P384=\"\",\"\",'2. Assisted & Restricted Units'!P384)","v":""},{"$f":"IF('2. Assisted & Restricted Units'!Q384=\"\",\"\",'2. Assisted & Restricted Units'!Q384)","v":""},{"$f":"IF('2. Assisted & Restricted Units'!R384=\"\",\"\",'2. Assisted & Restricted Units'!R384)","v":""},{"$f":"IF(A384=\"\",\"\",'1. Checklist & Certification'!$K$1)","v":""},{"$f":"IF(A384=\"\",\"\",'1. Checklist & Certification'!$C$62)","v":""},{"$f":"IF(A384=\"\",\"\",'1. Checklist & Certification'!$K$62)","v":""},{"$f":"IF(A384=\"\",\"\",'1. Checklist & Certification'!$C$6)","v":""},{"$f":"IF(A384=\"\",\"\",'1. Checklist & Certification'!$G$4)","v":""},{"$f":"IF(A384=\"\",\"\",'1. Checklist & Certification'!$C$7)","v":""},{"$f":"IF(A384=\"\",\"\",'1. Checklist & Certification'!$C$8)","v":""},{"$f":"IF(A384=\"\",\"\",'1. Checklist & Certification'!$F$7)","v":""},{"$f":"IF(A384=\"\",\"\",'1. Checklist & Certification'!$F$8)","v":""},{"$f":"IF(A384=\"\",\"\",'1. Checklist & Certification'!$B$9)","v":""},{"$f":"IF(A384=\"\",\"\",'1. Checklist & Certification'!$F$9)","v":""},{"$f":"IF(A384=\"\",\"\",'1. Checklist & Certification'!$C$10)","v":""},{"$f":"IF(A384=\"\",\"\",'1. Checklist & Certification'!$C$11)","v":""},{"$f":"IF(A384=\"\",\"\",'1. Checklist & Certification'!$C$12)","v":""},{"$f":"IF(A384=\"\",\"\",'1. Checklist & Certification'!$B$14)","v":""},{"$f":"IF(A384=\"\",\"\",'1. Checklist & Certification'!$E$14)","v":""},{"$f":"IF(B384=\"\",\"\",'1. Checklist & Certification'!$G$14)","v":""},{"$f":"IF(A384=\"\",\"\",'MHP Family Income & Rent Limits'!$B$3)","v":""},{"$f":"IF(A384=\"\",\"\",'MHP Family Income & Rent Limits'!$J$3)","v":""},{"$f":"IF(A384=\"\",\"\",'MHP Family Income & Rent Limits'!$E$4)","v":""},{"$f":"IF(A384=\"\",\"\",'MHP Family Income & Rent Limits'!$C$7)","v":""},{"$f":"IF(A384=\"\",\"\",'MHP Family Income & Rent Limits'!$F$8)","v":""},{"$f":"IF(A384=\"\",\"\",'1. Checklist & Certification'!$G$4)","v":""},{"$f":"IF(A384=\"\",\"\",'1. Checklist & Certification'!$K$39)","v":""},{"$f":"IF(A384=\"\",\"\",'1. Checklist & Certification'!$K$43)","v":""},{"$f":"IF(A384=\"\",\"\",'1. Checklist & Certification'!$K$45)","v":""},{"$f":"IF(A384=\"\",\"\",'1. Checklist & Certification'!$K$49)","v":""},{"$f":"IF(A384=\"\",\"\",'1. Checklist & Certification'!$E$66)","v":""},{"$f":"IF(A384=\"\",\"\",'1. Checklist & Certification'!$E$67)","v":""},{"$f":"IF(A384=\"\",\"\",'1. Checklist & Certification'!$E$68)","v":""},{"$f":"IF(A384=\"\",\"\",'1. Checklist & Certification'!$G$66)","v":""},{"$f":"IF(A384=\"\",\"\",'1. Checklist & Certification'!$H$66)","v":""},{"$f":"IF(A384=\"\",\"\",'1. Checklist & Certification'!$I$66)","v":""},{"$f":"IF(A384=\"\",\"\",'1. Checklist & Certification'!$I$67)","v":""},{"$f":"IF(A384=\"\",\"\",'1. Checklist & Certification'!$I$68)","v":""},null,{"$f":"IF(C384=\"\",\"\",HLOOKUP(C384,'MHP Family Income & Rent Limits'!$E$12:$L$26,2,FALSE))","v":""},{"$f":"IF(C384=\"\",\"\",HLOOKUP(C384,'MHP Family Income & Rent Limits'!$E$12:$L$26,3,FALSE))","v":""},{"$f":"IF(C384=\"\",\"\",HLOOKUP(C384,'MHP Family Income & Rent Limits'!$E$12:$L$26,4,FALSE))","v":""},{"$f":"IF(C384=\"\",\"\",HLOOKUP(C384,'MHP Family Income & Rent Limits'!$E$12:$L$26,5,FALSE))","v":""},{"$f":"IF(C384=\"\",\"\",HLOOKUP(C384,'MHP Family Income & Rent Limits'!$E$12:$L$26,6,FALSE))","v":""},{"$f":"IF(C384=\"\",\"\",HLOOKUP(C384,'MHP Family Income & Rent Limits'!$E$12:$L$26,7,FALSE))","v":""},{"$f":"IF(C384=\"\",\"\",HLOOKUP(C384,'MHP Family Income & Rent Limits'!$E$12:$L$26,8,FALSE))","v":""},{"$f":"IF(C384=\"\",\"\",HLOOKUP(C384,'MHP Family Income & Rent Limits'!$E$12:$L$26,9,FALSE))","v":""},{"$f":"IF(C384=\"\",\"\",HLOOKUP(C384,'MHP Family Income & Rent Limits'!$E$12:$L$26,10,FALSE))","v":""},{"$f":"IF(C384=\"\",\"\",HLOOKUP(C384,'MHP Family Income & Rent Limits'!$E$12:$L$26,11,FALSE))","v":""},{"$f":"IF(C384=\"\",\"\",HLOOKUP(C384,'MHP Family Income & Rent Limits'!$E$12:$L$26,12,FALSE))","v":""},{"$f":"IF(C384=\"\",\"\",HLOOKUP(C384,'MHP Family Income & Rent Limits'!$E$12:$L$26,13,FALSE))","v":""},{"$f":"IF(C384=\"\",\"\",HLOOKUP(C384,'MHP Family Income & Rent Limits'!$E$12:$L$26,14,FALSE))","v":""},{"$f":"IF(C384=\"\",\"\",HLOOKUP(C384,'MHP Family Income & Rent Limits'!$E$12:$L$26,15,FALSE))","v":""}]
[{"$f":"IF('2. Assisted & Restricted Units'!A385=\"\",\"\",'2. Assisted & Restricted Units'!A385)","v":""},{"$f":"IF('2. Assisted & Restricted Units'!B385=\"\",\"\",'2. Assisted & Restricted Units'!B385)","v":""},{"$f":"IF('2. Assisted & Restricted Units'!D385=\"\",\"\",'2. Assisted & Restricted Units'!D385)","v":""},{"$f":"IF('2. Assisted & Restricted Units'!E385=\"\",\"\",'2. Assisted & Restricted Units'!E385)","v":""},{"$f":"IF('2. Assisted & Restricted Units'!H385=\"\",\"\",'2. Assisted & Restricted Units'!H385)","v":""},{"$f":"_xlfn.IFS(E385=\"\",\"\",E385>BO385,$BP$6,E385>BN385,$BO$6,E385>BM385,$BN$6,E385>BL385,$BM$6,E385>BK385,$BL$6,E385>BJ385,$BK$6,E385>BI385,$BJ$6,E385>BH385,$BI$6,E385>BG385,$BH$6,E385>BF385,$BG$6,E385>BE385,$BF$6,E385>BD385,$BE$6,E385>BC385,$BD$6,E385>=0,$BC$6)","v":""},{"$f":"IF('2. Assisted & Restricted Units'!T385=\"\",\"\",'2. Assisted & Restricted Units'!T385)","v":""},{"$f":"IF('2. Assisted & Restricted Units'!I385=\"\",\"\",'2. Assisted & Restricted Units'!I385)","v":""},{"$f":"IF('2. Assisted & Restricted Units'!AP385=\"\",\"\",'2. Assisted & Restricted Units'!AP385)","v":0},{"$f":"IF('2. Assisted & Restricted Units'!AT385=\"\",\"\",'2. Assisted & Restricted Units'!AT385)","v":""},0,{"$f":"IF('2. Assisted & Restricted Units'!AV385=\"\",\"\",'2. Assisted & Restricted Units'!AV385)","v":""},{"$f":"IF('2. Assisted & Restricted Units'!L385=\"\",\"\",'2. Assisted & Restricted Units'!L385)","v":""},{"$f":"IF('2. Assisted & Restricted Units'!M385=\"\",\"\",'2. Assisted & Restricted Units'!M385)","v":""},{"$f":"IF('2. Assisted & Restricted Units'!O385=\"\",\"\",'2. Assisted & Restricted Units'!O385)","v":""},{"$f":"IF('2. Assisted & Restricted Units'!P385=\"\",\"\",'2. Assisted & Restricted Units'!P385)","v":""},{"$f":"IF('2. Assisted & Restricted Units'!Q385=\"\",\"\",'2. Assisted & Restricted Units'!Q385)","v":""},{"$f":"IF('2. Assisted & Restricted Units'!R385=\"\",\"\",'2. Assisted & Restricted Units'!R385)","v":""},{"$f":"IF(A385=\"\",\"\",'1. Checklist & Certification'!$K$1)","v":""},{"$f":"IF(A385=\"\",\"\",'1. Checklist & Certification'!$C$62)","v":""},{"$f":"IF(A385=\"\",\"\",'1. Checklist & Certification'!$K$62)","v":""},{"$f":"IF(A385=\"\",\"\",'1. Checklist & Certification'!$C$6)","v":""},{"$f":"IF(A385=\"\",\"\",'1. Checklist & Certification'!$G$4)","v":""},{"$f":"IF(A385=\"\",\"\",'1. Checklist & Certification'!$C$7)","v":""},{"$f":"IF(A385=\"\",\"\",'1. Checklist & Certification'!$C$8)","v":""},{"$f":"IF(A385=\"\",\"\",'1. Checklist & Certification'!$F$7)","v":""},{"$f":"IF(A385=\"\",\"\",'1. Checklist & Certification'!$F$8)","v":""},{"$f":"IF(A385=\"\",\"\",'1. Checklist & Certification'!$B$9)","v":""},{"$f":"IF(A385=\"\",\"\",'1. Checklist & Certification'!$F$9)","v":""},{"$f":"IF(A385=\"\",\"\",'1. Checklist & Certification'!$C$10)","v":""},{"$f":"IF(A385=\"\",\"\",'1. Checklist & Certification'!$C$11)","v":""},{"$f":"IF(A385=\"\",\"\",'1. Checklist & Certification'!$C$12)","v":""},{"$f":"IF(A385=\"\",\"\",'1. Checklist & Certification'!$B$14)","v":""},{"$f":"IF(A385=\"\",\"\",'1. Checklist & Certification'!$E$14)","v":""},{"$f":"IF(B385=\"\",\"\",'1. Checklist & Certification'!$G$14)","v":""},{"$f":"IF(A385=\"\",\"\",'MHP Family Income & Rent Limits'!$B$3)","v":""},{"$f":"IF(A385=\"\",\"\",'MHP Family Income & Rent Limits'!$J$3)","v":""},{"$f":"IF(A385=\"\",\"\",'MHP Family Income & Rent Limits'!$E$4)","v":""},{"$f":"IF(A385=\"\",\"\",'MHP Family Income & Rent Limits'!$C$7)","v":""},{"$f":"IF(A385=\"\",\"\",'MHP Family Income & Rent Limits'!$F$8)","v":""},{"$f":"IF(A385=\"\",\"\",'1. Checklist & Certification'!$G$4)","v":""},{"$f":"IF(A385=\"\",\"\",'1. Checklist & Certification'!$K$39)","v":""},{"$f":"IF(A385=\"\",\"\",'1. Checklist & Certification'!$K$43)","v":""},{"$f":"IF(A385=\"\",\"\",'1. Checklist & Certification'!$K$45)","v":""},{"$f":"IF(A385=\"\",\"\",'1. Checklist & Certification'!$K$49)","v":""},{"$f":"IF(A385=\"\",\"\",'1. Checklist & Certification'!$E$66)","v":""},{"$f":"IF(A385=\"\",\"\",'1. Checklist & Certification'!$E$67)","v":""},{"$f":"IF(A385=\"\",\"\",'1. Checklist & Certification'!$E$68)","v":""},{"$f":"IF(A385=\"\",\"\",'1. Checklist & Certification'!$G$66)","v":""},{"$f":"IF(A385=\"\",\"\",'1. Checklist & Certification'!$H$66)","v":""},{"$f":"IF(A385=\"\",\"\",'1. Checklist & Certification'!$I$66)","v":""},{"$f":"IF(A385=\"\",\"\",'1. Checklist & Certification'!$I$67)","v":""},{"$f":"IF(A385=\"\",\"\",'1. Checklist & Certification'!$I$68)","v":""},null,{"$f":"IF(C385=\"\",\"\",HLOOKUP(C385,'MHP Family Income & Rent Limits'!$E$12:$L$26,2,FALSE))","v":""},{"$f":"IF(C385=\"\",\"\",HLOOKUP(C385,'MHP Family Income & Rent Limits'!$E$12:$L$26,3,FALSE))","v":""},{"$f":"IF(C385=\"\",\"\",HLOOKUP(C385,'MHP Family Income & Rent Limits'!$E$12:$L$26,4,FALSE))","v":""},{"$f":"IF(C385=\"\",\"\",HLOOKUP(C385,'MHP Family Income & Rent Limits'!$E$12:$L$26,5,FALSE))","v":""},{"$f":"IF(C385=\"\",\"\",HLOOKUP(C385,'MHP Family Income & Rent Limits'!$E$12:$L$26,6,FALSE))","v":""},{"$f":"IF(C385=\"\",\"\",HLOOKUP(C385,'MHP Family Income & Rent Limits'!$E$12:$L$26,7,FALSE))","v":""},{"$f":"IF(C385=\"\",\"\",HLOOKUP(C385,'MHP Family Income & Rent Limits'!$E$12:$L$26,8,FALSE))","v":""},{"$f":"IF(C385=\"\",\"\",HLOOKUP(C385,'MHP Family Income & Rent Limits'!$E$12:$L$26,9,FALSE))","v":""},{"$f":"IF(C385=\"\",\"\",HLOOKUP(C385,'MHP Family Income & Rent Limits'!$E$12:$L$26,10,FALSE))","v":""},{"$f":"IF(C385=\"\",\"\",HLOOKUP(C385,'MHP Family Income & Rent Limits'!$E$12:$L$26,11,FALSE))","v":""},{"$f":"IF(C385=\"\",\"\",HLOOKUP(C385,'MHP Family Income & Rent Limits'!$E$12:$L$26,12,FALSE))","v":""},{"$f":"IF(C385=\"\",\"\",HLOOKUP(C385,'MHP Family Income & Rent Limits'!$E$12:$L$26,13,FALSE))","v":""},{"$f":"IF(C385=\"\",\"\",HLOOKUP(C385,'MHP Family Income & Rent Limits'!$E$12:$L$26,14,FALSE))","v":""},{"$f":"IF(C385=\"\",\"\",HLOOKUP(C385,'MHP Family Income & Rent Limits'!$E$12:$L$26,15,FALSE))","v":""}]
[{"$f":"IF('2. Assisted & Restricted Units'!A386=\"\",\"\",'2. Assisted & Restricted Units'!A386)","v":""},{"$f":"IF('2. Assisted & Restricted Units'!B386=\"\",\"\",'2. Assisted & Restricted Units'!B386)","v":""},{"$f":"IF('2. Assisted & Restricted Units'!D386=\"\",\"\",'2. Assisted & Restricted Units'!D386)","v":""},{"$f":"IF('2. Assisted & Restricted Units'!E386=\"\",\"\",'2. Assisted & Restricted Units'!E386)","v":""},{"$f":"IF('2. Assisted & Restricted Units'!H386=\"\",\"\",'2. Assisted & Restricted Units'!H386)","v":""},{"$f":"_xlfn.IFS(E386=\"\",\"\",E386>BO386,$BP$6,E386>BN386,$BO$6,E386>BM386,$BN$6,E386>BL386,$BM$6,E386>BK386,$BL$6,E386>BJ386,$BK$6,E386>BI386,$BJ$6,E386>BH386,$BI$6,E386>BG386,$BH$6,E386>BF386,$BG$6,E386>BE386,$BF$6,E386>BD386,$BE$6,E386>BC386,$BD$6,E386>=0,$BC$6)","v":""},{"$f":"IF('2. Assisted & Restricted Units'!T386=\"\",\"\",'2. Assisted & Restricted Units'!T386)","v":""},{"$f":"IF('2. Assisted & Restricted Units'!I386=\"\",\"\",'2. Assisted & Restricted Units'!I386)","v":""},{"$f":"IF('2. Assisted & Restricted Units'!AP386=\"\",\"\",'2. Assisted & Restricted Units'!AP386)","v":0},{"$f":"IF('2. Assisted & Restricted Units'!AT386=\"\",\"\",'2. Assisted & Restricted Units'!AT386)","v":""},0,{"$f":"IF('2. Assisted & Restricted Units'!AV386=\"\",\"\",'2. Assisted & Restricted Units'!AV386)","v":""},{"$f":"IF('2. Assisted & Restricted Units'!L386=\"\",\"\",'2. Assisted & Restricted Units'!L386)","v":""},{"$f":"IF('2. Assisted & Restricted Units'!M386=\"\",\"\",'2. Assisted & Restricted Units'!M386)","v":""},{"$f":"IF('2. Assisted & Restricted Units'!O386=\"\",\"\",'2. Assisted & Restricted Units'!O386)","v":""},{"$f":"IF('2. Assisted & Restricted Units'!P386=\"\",\"\",'2. Assisted & Restricted Units'!P386)","v":""},{"$f":"IF('2. Assisted & Restricted Units'!Q386=\"\",\"\",'2. Assisted & Restricted Units'!Q386)","v":""},{"$f":"IF('2. Assisted & Restricted Units'!R386=\"\",\"\",'2. Assisted & Restricted Units'!R386)","v":""},{"$f":"IF(A386=\"\",\"\",'1. Checklist & Certification'!$K$1)","v":""},{"$f":"IF(A386=\"\",\"\",'1. Checklist & Certification'!$C$62)","v":""},{"$f":"IF(A386=\"\",\"\",'1. Checklist & Certification'!$K$62)","v":""},{"$f":"IF(A386=\"\",\"\",'1. Checklist & Certification'!$C$6)","v":""},{"$f":"IF(A386=\"\",\"\",'1. Checklist & Certification'!$G$4)","v":""},{"$f":"IF(A386=\"\",\"\",'1. Checklist & Certification'!$C$7)","v":""},{"$f":"IF(A386=\"\",\"\",'1. Checklist & Certification'!$C$8)","v":""},{"$f":"IF(A386=\"\",\"\",'1. Checklist & Certification'!$F$7)","v":""},{"$f":"IF(A386=\"\",\"\",'1. Checklist & Certification'!$F$8)","v":""},{"$f":"IF(A386=\"\",\"\",'1. Checklist & Certification'!$B$9)","v":""},{"$f":"IF(A386=\"\",\"\",'1. Checklist & Certification'!$F$9)","v":""},{"$f":"IF(A386=\"\",\"\",'1. Checklist & Certification'!$C$10)","v":""},{"$f":"IF(A386=\"\",\"\",'1. Checklist & Certification'!$C$11)","v":""},{"$f":"IF(A386=\"\",\"\",'1. Checklist & Certification'!$C$12)","v":""},{"$f":"IF(A386=\"\",\"\",'1. Checklist & Certification'!$B$14)","v":""},{"$f":"IF(A386=\"\",\"\",'1. Checklist & Certification'!$E$14)","v":""},{"$f":"IF(B386=\"\",\"\",'1. Checklist & Certification'!$G$14)","v":""},{"$f":"IF(A386=\"\",\"\",'MHP Family Income & Rent Limits'!$B$3)","v":""},{"$f":"IF(A386=\"\",\"\",'MHP Family Income & Rent Limits'!$J$3)","v":""},{"$f":"IF(A386=\"\",\"\",'MHP Family Income & Rent Limits'!$E$4)","v":""},{"$f":"IF(A386=\"\",\"\",'MHP Family Income & Rent Limits'!$C$7)","v":""},{"$f":"IF(A386=\"\",\"\",'MHP Family Income & Rent Limits'!$F$8)","v":""},{"$f":"IF(A386=\"\",\"\",'1. Checklist & Certification'!$G$4)","v":""},{"$f":"IF(A386=\"\",\"\",'1. Checklist & Certification'!$K$39)","v":""},{"$f":"IF(A386=\"\",\"\",'1. Checklist & Certification'!$K$43)","v":""},{"$f":"IF(A386=\"\",\"\",'1. Checklist & Certification'!$K$45)","v":""},{"$f":"IF(A386=\"\",\"\",'1. Checklist & Certification'!$K$49)","v":""},{"$f":"IF(A386=\"\",\"\",'1. Checklist & Certification'!$E$66)","v":""},{"$f":"IF(A386=\"\",\"\",'1. Checklist & Certification'!$E$67)","v":""},{"$f":"IF(A386=\"\",\"\",'1. Checklist & Certification'!$E$68)","v":""},{"$f":"IF(A386=\"\",\"\",'1. Checklist & Certification'!$G$66)","v":""},{"$f":"IF(A386=\"\",\"\",'1. Checklist & Certification'!$H$66)","v":""},{"$f":"IF(A386=\"\",\"\",'1. Checklist & Certification'!$I$66)","v":""},{"$f":"IF(A386=\"\",\"\",'1. Checklist & Certification'!$I$67)","v":""},{"$f":"IF(A386=\"\",\"\",'1. Checklist & Certification'!$I$68)","v":""},null,{"$f":"IF(C386=\"\",\"\",HLOOKUP(C386,'MHP Family Income & Rent Limits'!$E$12:$L$26,2,FALSE))","v":""},{"$f":"IF(C386=\"\",\"\",HLOOKUP(C386,'MHP Family Income & Rent Limits'!$E$12:$L$26,3,FALSE))","v":""},{"$f":"IF(C386=\"\",\"\",HLOOKUP(C386,'MHP Family Income & Rent Limits'!$E$12:$L$26,4,FALSE))","v":""},{"$f":"IF(C386=\"\",\"\",HLOOKUP(C386,'MHP Family Income & Rent Limits'!$E$12:$L$26,5,FALSE))","v":""},{"$f":"IF(C386=\"\",\"\",HLOOKUP(C386,'MHP Family Income & Rent Limits'!$E$12:$L$26,6,FALSE))","v":""},{"$f":"IF(C386=\"\",\"\",HLOOKUP(C386,'MHP Family Income & Rent Limits'!$E$12:$L$26,7,FALSE))","v":""},{"$f":"IF(C386=\"\",\"\",HLOOKUP(C386,'MHP Family Income & Rent Limits'!$E$12:$L$26,8,FALSE))","v":""},{"$f":"IF(C386=\"\",\"\",HLOOKUP(C386,'MHP Family Income & Rent Limits'!$E$12:$L$26,9,FALSE))","v":""},{"$f":"IF(C386=\"\",\"\",HLOOKUP(C386,'MHP Family Income & Rent Limits'!$E$12:$L$26,10,FALSE))","v":""},{"$f":"IF(C386=\"\",\"\",HLOOKUP(C386,'MHP Family Income & Rent Limits'!$E$12:$L$26,11,FALSE))","v":""},{"$f":"IF(C386=\"\",\"\",HLOOKUP(C386,'MHP Family Income & Rent Limits'!$E$12:$L$26,12,FALSE))","v":""},{"$f":"IF(C386=\"\",\"\",HLOOKUP(C386,'MHP Family Income & Rent Limits'!$E$12:$L$26,13,FALSE))","v":""},{"$f":"IF(C386=\"\",\"\",HLOOKUP(C386,'MHP Family Income & Rent Limits'!$E$12:$L$26,14,FALSE))","v":""},{"$f":"IF(C386=\"\",\"\",HLOOKUP(C386,'MHP Family Income & Rent Limits'!$E$12:$L$26,15,FALSE))","v":""}]
[{"$f":"IF('2. Assisted & Restricted Units'!A387=\"\",\"\",'2. Assisted & Restricted Units'!A387)","v":""},{"$f":"IF('2. Assisted & Restricted Units'!B387=\"\",\"\",'2. Assisted & Restricted Units'!B387)","v":""},{"$f":"IF('2. Assisted & Restricted Units'!D387=\"\",\"\",'2. Assisted & Restricted Units'!D387)","v":""},{"$f":"IF('2. Assisted & Restricted Units'!E387=\"\",\"\",'2. Assisted & Restricted Units'!E387)","v":""},{"$f":"IF('2. Assisted & Restricted Units'!H387=\"\",\"\",'2. Assisted & Restricted Units'!H387)","v":""},{"$f":"_xlfn.IFS(E387=\"\",\"\",E387>BO387,$BP$6,E387>BN387,$BO$6,E387>BM387,$BN$6,E387>BL387,$BM$6,E387>BK387,$BL$6,E387>BJ387,$BK$6,E387>BI387,$BJ$6,E387>BH387,$BI$6,E387>BG387,$BH$6,E387>BF387,$BG$6,E387>BE387,$BF$6,E387>BD387,$BE$6,E387>BC387,$BD$6,E387>=0,$BC$6)","v":""},{"$f":"IF('2. Assisted & Restricted Units'!T387=\"\",\"\",'2. Assisted & Restricted Units'!T387)","v":""},{"$f":"IF('2. Assisted & Restricted Units'!I387=\"\",\"\",'2. Assisted & Restricted Units'!I387)","v":""},{"$f":"IF('2. Assisted & Restricted Units'!AP387=\"\",\"\",'2. Assisted & Restricted Units'!AP387)","v":0},{"$f":"IF('2. Assisted & Restricted Units'!AT387=\"\",\"\",'2. Assisted & Restricted Units'!AT387)","v":""},0,{"$f":"IF('2. Assisted & Restricted Units'!AV387=\"\",\"\",'2. Assisted & Restricted Units'!AV387)","v":""},{"$f":"IF('2. Assisted & Restricted Units'!L387=\"\",\"\",'2. Assisted & Restricted Units'!L387)","v":""},{"$f":"IF('2. Assisted & Restricted Units'!M387=\"\",\"\",'2. Assisted & Restricted Units'!M387)","v":""},{"$f":"IF('2. Assisted & Restricted Units'!O387=\"\",\"\",'2. Assisted & Restricted Units'!O387)","v":""},{"$f":"IF('2. Assisted & Restricted Units'!P387=\"\",\"\",'2. Assisted & Restricted Units'!P387)","v":""},{"$f":"IF('2. Assisted & Restricted Units'!Q387=\"\",\"\",'2. Assisted & Restricted Units'!Q387)","v":""},{"$f":"IF('2. Assisted & Restricted Units'!R387=\"\",\"\",'2. Assisted & Restricted Units'!R387)","v":""},{"$f":"IF(A387=\"\",\"\",'1. Checklist & Certification'!$K$1)","v":""},{"$f":"IF(A387=\"\",\"\",'1. Checklist & Certification'!$C$62)","v":""},{"$f":"IF(A387=\"\",\"\",'1. Checklist & Certification'!$K$62)","v":""},{"$f":"IF(A387=\"\",\"\",'1. Checklist & Certification'!$C$6)","v":""},{"$f":"IF(A387=\"\",\"\",'1. Checklist & Certification'!$G$4)","v":""},{"$f":"IF(A387=\"\",\"\",'1. Checklist & Certification'!$C$7)","v":""},{"$f":"IF(A387=\"\",\"\",'1. Checklist & Certification'!$C$8)","v":""},{"$f":"IF(A387=\"\",\"\",'1. Checklist & Certification'!$F$7)","v":""},{"$f":"IF(A387=\"\",\"\",'1. Checklist & Certification'!$F$8)","v":""},{"$f":"IF(A387=\"\",\"\",'1. Checklist & Certification'!$B$9)","v":""},{"$f":"IF(A387=\"\",\"\",'1. Checklist & Certification'!$F$9)","v":""},{"$f":"IF(A387=\"\",\"\",'1. Checklist & Certification'!$C$10)","v":""},{"$f":"IF(A387=\"\",\"\",'1. Checklist & Certification'!$C$11)","v":""},{"$f":"IF(A387=\"\",\"\",'1. Checklist & Certification'!$C$12)","v":""},{"$f":"IF(A387=\"\",\"\",'1. Checklist & Certification'!$B$14)","v":""},{"$f":"IF(A387=\"\",\"\",'1. Checklist & Certification'!$E$14)","v":""},{"$f":"IF(B387=\"\",\"\",'1. Checklist & Certification'!$G$14)","v":""},{"$f":"IF(A387=\"\",\"\",'MHP Family Income & Rent Limits'!$B$3)","v":""},{"$f":"IF(A387=\"\",\"\",'MHP Family Income & Rent Limits'!$J$3)","v":""},{"$f":"IF(A387=\"\",\"\",'MHP Family Income & Rent Limits'!$E$4)","v":""},{"$f":"IF(A387=\"\",\"\",'MHP Family Income & Rent Limits'!$C$7)","v":""},{"$f":"IF(A387=\"\",\"\",'MHP Family Income & Rent Limits'!$F$8)","v":""},{"$f":"IF(A387=\"\",\"\",'1. Checklist & Certification'!$G$4)","v":""},{"$f":"IF(A387=\"\",\"\",'1. Checklist & Certification'!$K$39)","v":""},{"$f":"IF(A387=\"\",\"\",'1. Checklist & Certification'!$K$43)","v":""},{"$f":"IF(A387=\"\",\"\",'1. Checklist & Certification'!$K$45)","v":""},{"$f":"IF(A387=\"\",\"\",'1. Checklist & Certification'!$K$49)","v":""},{"$f":"IF(A387=\"\",\"\",'1. Checklist & Certification'!$E$66)","v":""},{"$f":"IF(A387=\"\",\"\",'1. Checklist & Certification'!$E$67)","v":""},{"$f":"IF(A387=\"\",\"\",'1. Checklist & Certification'!$E$68)","v":""},{"$f":"IF(A387=\"\",\"\",'1. Checklist & Certification'!$G$66)","v":""},{"$f":"IF(A387=\"\",\"\",'1. Checklist & Certification'!$H$66)","v":""},{"$f":"IF(A387=\"\",\"\",'1. Checklist & Certification'!$I$66)","v":""},{"$f":"IF(A387=\"\",\"\",'1. Checklist & Certification'!$I$67)","v":""},{"$f":"IF(A387=\"\",\"\",'1. Checklist & Certification'!$I$68)","v":""},null,{"$f":"IF(C387=\"\",\"\",HLOOKUP(C387,'MHP Family Income & Rent Limits'!$E$12:$L$26,2,FALSE))","v":""},{"$f":"IF(C387=\"\",\"\",HLOOKUP(C387,'MHP Family Income & Rent Limits'!$E$12:$L$26,3,FALSE))","v":""},{"$f":"IF(C387=\"\",\"\",HLOOKUP(C387,'MHP Family Income & Rent Limits'!$E$12:$L$26,4,FALSE))","v":""},{"$f":"IF(C387=\"\",\"\",HLOOKUP(C387,'MHP Family Income & Rent Limits'!$E$12:$L$26,5,FALSE))","v":""},{"$f":"IF(C387=\"\",\"\",HLOOKUP(C387,'MHP Family Income & Rent Limits'!$E$12:$L$26,6,FALSE))","v":""},{"$f":"IF(C387=\"\",\"\",HLOOKUP(C387,'MHP Family Income & Rent Limits'!$E$12:$L$26,7,FALSE))","v":""},{"$f":"IF(C387=\"\",\"\",HLOOKUP(C387,'MHP Family Income & Rent Limits'!$E$12:$L$26,8,FALSE))","v":""},{"$f":"IF(C387=\"\",\"\",HLOOKUP(C387,'MHP Family Income & Rent Limits'!$E$12:$L$26,9,FALSE))","v":""},{"$f":"IF(C387=\"\",\"\",HLOOKUP(C387,'MHP Family Income & Rent Limits'!$E$12:$L$26,10,FALSE))","v":""},{"$f":"IF(C387=\"\",\"\",HLOOKUP(C387,'MHP Family Income & Rent Limits'!$E$12:$L$26,11,FALSE))","v":""},{"$f":"IF(C387=\"\",\"\",HLOOKUP(C387,'MHP Family Income & Rent Limits'!$E$12:$L$26,12,FALSE))","v":""},{"$f":"IF(C387=\"\",\"\",HLOOKUP(C387,'MHP Family Income & Rent Limits'!$E$12:$L$26,13,FALSE))","v":""},{"$f":"IF(C387=\"\",\"\",HLOOKUP(C387,'MHP Family Income & Rent Limits'!$E$12:$L$26,14,FALSE))","v":""},{"$f":"IF(C387=\"\",\"\",HLOOKUP(C387,'MHP Family Income & Rent Limits'!$E$12:$L$26,15,FALSE))","v":""}]
[{"$f":"IF('2. Assisted & Restricted Units'!A388=\"\",\"\",'2. Assisted & Restricted Units'!A388)","v":""},{"$f":"IF('2. Assisted & Restricted Units'!B388=\"\",\"\",'2. Assisted & Restricted Units'!B388)","v":""},{"$f":"IF('2. Assisted & Restricted Units'!D388=\"\",\"\",'2. Assisted & Restricted Units'!D388)","v":""},{"$f":"IF('2. Assisted & Restricted Units'!E388=\"\",\"\",'2. Assisted & Restricted Units'!E388)","v":""},{"$f":"IF('2. Assisted & Restricted Units'!H388=\"\",\"\",'2. Assisted & Restricted Units'!H388)","v":""},{"$f":"_xlfn.IFS(E388=\"\",\"\",E388>BO388,$BP$6,E388>BN388,$BO$6,E388>BM388,$BN$6,E388>BL388,$BM$6,E388>BK388,$BL$6,E388>BJ388,$BK$6,E388>BI388,$BJ$6,E388>BH388,$BI$6,E388>BG388,$BH$6,E388>BF388,$BG$6,E388>BE388,$BF$6,E388>BD388,$BE$6,E388>BC388,$BD$6,E388>=0,$BC$6)","v":""},{"$f":"IF('2. Assisted & Restricted Units'!T388=\"\",\"\",'2. Assisted & Restricted Units'!T388)","v":""},{"$f":"IF('2. Assisted & Restricted Units'!I388=\"\",\"\",'2. Assisted & Restricted Units'!I388)","v":""},{"$f":"IF('2. Assisted & Restricted Units'!AP388=\"\",\"\",'2. Assisted & Restricted Units'!AP388)","v":0},{"$f":"IF('2. Assisted & Restricted Units'!AT388=\"\",\"\",'2. Assisted & Restricted Units'!AT388)","v":""},0,{"$f":"IF('2. Assisted & Restricted Units'!AV388=\"\",\"\",'2. Assisted & Restricted Units'!AV388)","v":""},{"$f":"IF('2. Assisted & Restricted Units'!L388=\"\",\"\",'2. Assisted & Restricted Units'!L388)","v":""},{"$f":"IF('2. Assisted & Restricted Units'!M388=\"\",\"\",'2. Assisted & Restricted Units'!M388)","v":""},{"$f":"IF('2. Assisted & Restricted Units'!O388=\"\",\"\",'2. Assisted & Restricted Units'!O388)","v":""},{"$f":"IF('2. Assisted & Restricted Units'!P388=\"\",\"\",'2. Assisted & Restricted Units'!P388)","v":""},{"$f":"IF('2. Assisted & Restricted Units'!Q388=\"\",\"\",'2. Assisted & Restricted Units'!Q388)","v":""},{"$f":"IF('2. Assisted & Restricted Units'!R388=\"\",\"\",'2. Assisted & Restricted Units'!R388)","v":""},{"$f":"IF(A388=\"\",\"\",'1. Checklist & Certification'!$K$1)","v":""},{"$f":"IF(A388=\"\",\"\",'1. Checklist & Certification'!$C$62)","v":""},{"$f":"IF(A388=\"\",\"\",'1. Checklist & Certification'!$K$62)","v":""},{"$f":"IF(A388=\"\",\"\",'1. Checklist & Certification'!$C$6)","v":""},{"$f":"IF(A388=\"\",\"\",'1. Checklist & Certification'!$G$4)","v":""},{"$f":"IF(A388=\"\",\"\",'1. Checklist & Certification'!$C$7)","v":""},{"$f":"IF(A388=\"\",\"\",'1. Checklist & Certification'!$C$8)","v":""},{"$f":"IF(A388=\"\",\"\",'1. Checklist & Certification'!$F$7)","v":""},{"$f":"IF(A388=\"\",\"\",'1. Checklist & Certification'!$F$8)","v":""},{"$f":"IF(A388=\"\",\"\",'1. Checklist & Certification'!$B$9)","v":""},{"$f":"IF(A388=\"\",\"\",'1. Checklist & Certification'!$F$9)","v":""},{"$f":"IF(A388=\"\",\"\",'1. Checklist & Certification'!$C$10)","v":""},{"$f":"IF(A388=\"\",\"\",'1. Checklist & Certification'!$C$11)","v":""},{"$f":"IF(A388=\"\",\"\",'1. Checklist & Certification'!$C$12)","v":""},{"$f":"IF(A388=\"\",\"\",'1. Checklist & Certification'!$B$14)","v":""},{"$f":"IF(A388=\"\",\"\",'1. Checklist & Certification'!$E$14)","v":""},{"$f":"IF(B388=\"\",\"\",'1. Checklist & Certification'!$G$14)","v":""},{"$f":"IF(A388=\"\",\"\",'MHP Family Income & Rent Limits'!$B$3)","v":""},{"$f":"IF(A388=\"\",\"\",'MHP Family Income & Rent Limits'!$J$3)","v":""},{"$f":"IF(A388=\"\",\"\",'MHP Family Income & Rent Limits'!$E$4)","v":""},{"$f":"IF(A388=\"\",\"\",'MHP Family Income & Rent Limits'!$C$7)","v":""},{"$f":"IF(A388=\"\",\"\",'MHP Family Income & Rent Limits'!$F$8)","v":""},{"$f":"IF(A388=\"\",\"\",'1. Checklist & Certification'!$G$4)","v":""},{"$f":"IF(A388=\"\",\"\",'1. Checklist & Certification'!$K$39)","v":""},{"$f":"IF(A388=\"\",\"\",'1. Checklist & Certification'!$K$43)","v":""},{"$f":"IF(A388=\"\",\"\",'1. Checklist & Certification'!$K$45)","v":""},{"$f":"IF(A388=\"\",\"\",'1. Checklist & Certification'!$K$49)","v":""},{"$f":"IF(A388=\"\",\"\",'1. Checklist & Certification'!$E$66)","v":""},{"$f":"IF(A388=\"\",\"\",'1. Checklist & Certification'!$E$67)","v":""},{"$f":"IF(A388=\"\",\"\",'1. Checklist & Certification'!$E$68)","v":""},{"$f":"IF(A388=\"\",\"\",'1. Checklist & Certification'!$G$66)","v":""},{"$f":"IF(A388=\"\",\"\",'1. Checklist & Certification'!$H$66)","v":""},{"$f":"IF(A388=\"\",\"\",'1. Checklist & Certification'!$I$66)","v":""},{"$f":"IF(A388=\"\",\"\",'1. Checklist & Certification'!$I$67)","v":""},{"$f":"IF(A388=\"\",\"\",'1. Checklist & Certification'!$I$68)","v":""},null,{"$f":"IF(C388=\"\",\"\",HLOOKUP(C388,'MHP Family Income & Rent Limits'!$E$12:$L$26,2,FALSE))","v":""},{"$f":"IF(C388=\"\",\"\",HLOOKUP(C388,'MHP Family Income & Rent Limits'!$E$12:$L$26,3,FALSE))","v":""},{"$f":"IF(C388=\"\",\"\",HLOOKUP(C388,'MHP Family Income & Rent Limits'!$E$12:$L$26,4,FALSE))","v":""},{"$f":"IF(C388=\"\",\"\",HLOOKUP(C388,'MHP Family Income & Rent Limits'!$E$12:$L$26,5,FALSE))","v":""},{"$f":"IF(C388=\"\",\"\",HLOOKUP(C388,'MHP Family Income & Rent Limits'!$E$12:$L$26,6,FALSE))","v":""},{"$f":"IF(C388=\"\",\"\",HLOOKUP(C388,'MHP Family Income & Rent Limits'!$E$12:$L$26,7,FALSE))","v":""},{"$f":"IF(C388=\"\",\"\",HLOOKUP(C388,'MHP Family Income & Rent Limits'!$E$12:$L$26,8,FALSE))","v":""},{"$f":"IF(C388=\"\",\"\",HLOOKUP(C388,'MHP Family Income & Rent Limits'!$E$12:$L$26,9,FALSE))","v":""},{"$f":"IF(C388=\"\",\"\",HLOOKUP(C388,'MHP Family Income & Rent Limits'!$E$12:$L$26,10,FALSE))","v":""},{"$f":"IF(C388=\"\",\"\",HLOOKUP(C388,'MHP Family Income & Rent Limits'!$E$12:$L$26,11,FALSE))","v":""},{"$f":"IF(C388=\"\",\"\",HLOOKUP(C388,'MHP Family Income & Rent Limits'!$E$12:$L$26,12,FALSE))","v":""},{"$f":"IF(C388=\"\",\"\",HLOOKUP(C388,'MHP Family Income & Rent Limits'!$E$12:$L$26,13,FALSE))","v":""},{"$f":"IF(C388=\"\",\"\",HLOOKUP(C388,'MHP Family Income & Rent Limits'!$E$12:$L$26,14,FALSE))","v":""},{"$f":"IF(C388=\"\",\"\",HLOOKUP(C388,'MHP Family Income & Rent Limits'!$E$12:$L$26,15,FALSE))","v":""}]
[{"$f":"IF('2. Assisted & Restricted Units'!A389=\"\",\"\",'2. Assisted & Restricted Units'!A389)","v":""},{"$f":"IF('2. Assisted & Restricted Units'!B389=\"\",\"\",'2. Assisted & Restricted Units'!B389)","v":""},{"$f":"IF('2. Assisted & Restricted Units'!D389=\"\",\"\",'2. Assisted & Restricted Units'!D389)","v":""},{"$f":"IF('2. Assisted & Restricted Units'!E389=\"\",\"\",'2. Assisted & Restricted Units'!E389)","v":""},{"$f":"IF('2. Assisted & Restricted Units'!H389=\"\",\"\",'2. Assisted & Restricted Units'!H389)","v":""},{"$f":"_xlfn.IFS(E389=\"\",\"\",E389>BO389,$BP$6,E389>BN389,$BO$6,E389>BM389,$BN$6,E389>BL389,$BM$6,E389>BK389,$BL$6,E389>BJ389,$BK$6,E389>BI389,$BJ$6,E389>BH389,$BI$6,E389>BG389,$BH$6,E389>BF389,$BG$6,E389>BE389,$BF$6,E389>BD389,$BE$6,E389>BC389,$BD$6,E389>=0,$BC$6)","v":""},{"$f":"IF('2. Assisted & Restricted Units'!T389=\"\",\"\",'2. Assisted & Restricted Units'!T389)","v":""},{"$f":"IF('2. Assisted & Restricted Units'!I389=\"\",\"\",'2. Assisted & Restricted Units'!I389)","v":""},{"$f":"IF('2. Assisted & Restricted Units'!AP389=\"\",\"\",'2. Assisted & Restricted Units'!AP389)","v":0},{"$f":"IF('2. Assisted & Restricted Units'!AT389=\"\",\"\",'2. Assisted & Restricted Units'!AT389)","v":""},0,{"$f":"IF('2. Assisted & Restricted Units'!AV389=\"\",\"\",'2. Assisted & Restricted Units'!AV389)","v":""},{"$f":"IF('2. Assisted & Restricted Units'!L389=\"\",\"\",'2. Assisted & Restricted Units'!L389)","v":""},{"$f":"IF('2. Assisted & Restricted Units'!M389=\"\",\"\",'2. Assisted & Restricted Units'!M389)","v":""},{"$f":"IF('2. Assisted & Restricted Units'!O389=\"\",\"\",'2. Assisted & Restricted Units'!O389)","v":""},{"$f":"IF('2. Assisted & Restricted Units'!P389=\"\",\"\",'2. Assisted & Restricted Units'!P389)","v":""},{"$f":"IF('2. Assisted & Restricted Units'!Q389=\"\",\"\",'2. Assisted & Restricted Units'!Q389)","v":""},{"$f":"IF('2. Assisted & Restricted Units'!R389=\"\",\"\",'2. Assisted & Restricted Units'!R389)","v":""},{"$f":"IF(A389=\"\",\"\",'1. Checklist & Certification'!$K$1)","v":""},{"$f":"IF(A389=\"\",\"\",'1. Checklist & Certification'!$C$62)","v":""},{"$f":"IF(A389=\"\",\"\",'1. Checklist & Certification'!$K$62)","v":""},{"$f":"IF(A389=\"\",\"\",'1. Checklist & Certification'!$C$6)","v":""},{"$f":"IF(A389=\"\",\"\",'1. Checklist & Certification'!$G$4)","v":""},{"$f":"IF(A389=\"\",\"\",'1. Checklist & Certification'!$C$7)","v":""},{"$f":"IF(A389=\"\",\"\",'1. Checklist & Certification'!$C$8)","v":""},{"$f":"IF(A389=\"\",\"\",'1. Checklist & Certification'!$F$7)","v":""},{"$f":"IF(A389=\"\",\"\",'1. Checklist & Certification'!$F$8)","v":""},{"$f":"IF(A389=\"\",\"\",'1. Checklist & Certification'!$B$9)","v":""},{"$f":"IF(A389=\"\",\"\",'1. Checklist & Certification'!$F$9)","v":""},{"$f":"IF(A389=\"\",\"\",'1. Checklist & Certification'!$C$10)","v":""},{"$f":"IF(A389=\"\",\"\",'1. Checklist & Certification'!$C$11)","v":""},{"$f":"IF(A389=\"\",\"\",'1. Checklist & Certification'!$C$12)","v":""},{"$f":"IF(A389=\"\",\"\",'1. Checklist & Certification'!$B$14)","v":""},{"$f":"IF(A389=\"\",\"\",'1. Checklist & Certification'!$E$14)","v":""},{"$f":"IF(B389=\"\",\"\",'1. Checklist & Certification'!$G$14)","v":""},{"$f":"IF(A389=\"\",\"\",'MHP Family Income & Rent Limits'!$B$3)","v":""},{"$f":"IF(A389=\"\",\"\",'MHP Family Income & Rent Limits'!$J$3)","v":""},{"$f":"IF(A389=\"\",\"\",'MHP Family Income & Rent Limits'!$E$4)","v":""},{"$f":"IF(A389=\"\",\"\",'MHP Family Income & Rent Limits'!$C$7)","v":""},{"$f":"IF(A389=\"\",\"\",'MHP Family Income & Rent Limits'!$F$8)","v":""},{"$f":"IF(A389=\"\",\"\",'1. Checklist & Certification'!$G$4)","v":""},{"$f":"IF(A389=\"\",\"\",'1. Checklist & Certification'!$K$39)","v":""},{"$f":"IF(A389=\"\",\"\",'1. Checklist & Certification'!$K$43)","v":""},{"$f":"IF(A389=\"\",\"\",'1. Checklist & Certification'!$K$45)","v":""},{"$f":"IF(A389=\"\",\"\",'1. Checklist & Certification'!$K$49)","v":""},{"$f":"IF(A389=\"\",\"\",'1. Checklist & Certification'!$E$66)","v":""},{"$f":"IF(A389=\"\",\"\",'1. Checklist & Certification'!$E$67)","v":""},{"$f":"IF(A389=\"\",\"\",'1. Checklist & Certification'!$E$68)","v":""},{"$f":"IF(A389=\"\",\"\",'1. Checklist & Certification'!$G$66)","v":""},{"$f":"IF(A389=\"\",\"\",'1. Checklist & Certification'!$H$66)","v":""},{"$f":"IF(A389=\"\",\"\",'1. Checklist & Certification'!$I$66)","v":""},{"$f":"IF(A389=\"\",\"\",'1. Checklist & Certification'!$I$67)","v":""},{"$f":"IF(A389=\"\",\"\",'1. Checklist & Certification'!$I$68)","v":""},null,{"$f":"IF(C389=\"\",\"\",HLOOKUP(C389,'MHP Family Income & Rent Limits'!$E$12:$L$26,2,FALSE))","v":""},{"$f":"IF(C389=\"\",\"\",HLOOKUP(C389,'MHP Family Income & Rent Limits'!$E$12:$L$26,3,FALSE))","v":""},{"$f":"IF(C389=\"\",\"\",HLOOKUP(C389,'MHP Family Income & Rent Limits'!$E$12:$L$26,4,FALSE))","v":""},{"$f":"IF(C389=\"\",\"\",HLOOKUP(C389,'MHP Family Income & Rent Limits'!$E$12:$L$26,5,FALSE))","v":""},{"$f":"IF(C389=\"\",\"\",HLOOKUP(C389,'MHP Family Income & Rent Limits'!$E$12:$L$26,6,FALSE))","v":""},{"$f":"IF(C389=\"\",\"\",HLOOKUP(C389,'MHP Family Income & Rent Limits'!$E$12:$L$26,7,FALSE))","v":""},{"$f":"IF(C389=\"\",\"\",HLOOKUP(C389,'MHP Family Income & Rent Limits'!$E$12:$L$26,8,FALSE))","v":""},{"$f":"IF(C389=\"\",\"\",HLOOKUP(C389,'MHP Family Income & Rent Limits'!$E$12:$L$26,9,FALSE))","v":""},{"$f":"IF(C389=\"\",\"\",HLOOKUP(C389,'MHP Family Income & Rent Limits'!$E$12:$L$26,10,FALSE))","v":""},{"$f":"IF(C389=\"\",\"\",HLOOKUP(C389,'MHP Family Income & Rent Limits'!$E$12:$L$26,11,FALSE))","v":""},{"$f":"IF(C389=\"\",\"\",HLOOKUP(C389,'MHP Family Income & Rent Limits'!$E$12:$L$26,12,FALSE))","v":""},{"$f":"IF(C389=\"\",\"\",HLOOKUP(C389,'MHP Family Income & Rent Limits'!$E$12:$L$26,13,FALSE))","v":""},{"$f":"IF(C389=\"\",\"\",HLOOKUP(C389,'MHP Family Income & Rent Limits'!$E$12:$L$26,14,FALSE))","v":""},{"$f":"IF(C389=\"\",\"\",HLOOKUP(C389,'MHP Family Income & Rent Limits'!$E$12:$L$26,15,FALSE))","v":""}]
[{"$f":"IF('2. Assisted & Restricted Units'!A390=\"\",\"\",'2. Assisted & Restricted Units'!A390)","v":""},{"$f":"IF('2. Assisted & Restricted Units'!B390=\"\",\"\",'2. Assisted & Restricted Units'!B390)","v":""},{"$f":"IF('2. Assisted & Restricted Units'!D390=\"\",\"\",'2. Assisted & Restricted Units'!D390)","v":""},{"$f":"IF('2. Assisted & Restricted Units'!E390=\"\",\"\",'2. Assisted & Restricted Units'!E390)","v":""},{"$f":"IF('2. Assisted & Restricted Units'!H390=\"\",\"\",'2. Assisted & Restricted Units'!H390)","v":""},{"$f":"_xlfn.IFS(E390=\"\",\"\",E390>BO390,$BP$6,E390>BN390,$BO$6,E390>BM390,$BN$6,E390>BL390,$BM$6,E390>BK390,$BL$6,E390>BJ390,$BK$6,E390>BI390,$BJ$6,E390>BH390,$BI$6,E390>BG390,$BH$6,E390>BF390,$BG$6,E390>BE390,$BF$6,E390>BD390,$BE$6,E390>BC390,$BD$6,E390>=0,$BC$6)","v":""},{"$f":"IF('2. Assisted & Restricted Units'!T390=\"\",\"\",'2. Assisted & Restricted Units'!T390)","v":""},{"$f":"IF('2. Assisted & Restricted Units'!I390=\"\",\"\",'2. Assisted & Restricted Units'!I390)","v":""},{"$f":"IF('2. Assisted & Restricted Units'!AP390=\"\",\"\",'2. Assisted & Restricted Units'!AP390)","v":0},{"$f":"IF('2. Assisted & Restricted Units'!AT390=\"\",\"\",'2. Assisted & Restricted Units'!AT390)","v":""},0,{"$f":"IF('2. Assisted & Restricted Units'!AV390=\"\",\"\",'2. Assisted & Restricted Units'!AV390)","v":""},{"$f":"IF('2. Assisted & Restricted Units'!L390=\"\",\"\",'2. Assisted & Restricted Units'!L390)","v":""},{"$f":"IF('2. Assisted & Restricted Units'!M390=\"\",\"\",'2. Assisted & Restricted Units'!M390)","v":""},{"$f":"IF('2. Assisted & Restricted Units'!O390=\"\",\"\",'2. Assisted & Restricted Units'!O390)","v":""},{"$f":"IF('2. Assisted & Restricted Units'!P390=\"\",\"\",'2. Assisted & Restricted Units'!P390)","v":""},{"$f":"IF('2. Assisted & Restricted Units'!Q390=\"\",\"\",'2. Assisted & Restricted Units'!Q390)","v":""},{"$f":"IF('2. Assisted & Restricted Units'!R390=\"\",\"\",'2. Assisted & Restricted Units'!R390)","v":""},{"$f":"IF(A390=\"\",\"\",'1. Checklist & Certification'!$K$1)","v":""},{"$f":"IF(A390=\"\",\"\",'1. Checklist & Certification'!$C$62)","v":""},{"$f":"IF(A390=\"\",\"\",'1. Checklist & Certification'!$K$62)","v":""},{"$f":"IF(A390=\"\",\"\",'1. Checklist & Certification'!$C$6)","v":""},{"$f":"IF(A390=\"\",\"\",'1. Checklist & Certification'!$G$4)","v":""},{"$f":"IF(A390=\"\",\"\",'1. Checklist & Certification'!$C$7)","v":""},{"$f":"IF(A390=\"\",\"\",'1. Checklist & Certification'!$C$8)","v":""},{"$f":"IF(A390=\"\",\"\",'1. Checklist & Certification'!$F$7)","v":""},{"$f":"IF(A390=\"\",\"\",'1. Checklist & Certification'!$F$8)","v":""},{"$f":"IF(A390=\"\",\"\",'1. Checklist & Certification'!$B$9)","v":""},{"$f":"IF(A390=\"\",\"\",'1. Checklist & Certification'!$F$9)","v":""},{"$f":"IF(A390=\"\",\"\",'1. Checklist & Certification'!$C$10)","v":""},{"$f":"IF(A390=\"\",\"\",'1. Checklist & Certification'!$C$11)","v":""},{"$f":"IF(A390=\"\",\"\",'1. Checklist & Certification'!$C$12)","v":""},{"$f":"IF(A390=\"\",\"\",'1. Checklist & Certification'!$B$14)","v":""},{"$f":"IF(A390=\"\",\"\",'1. Checklist & Certification'!$E$14)","v":""},{"$f":"IF(B390=\"\",\"\",'1. Checklist & Certification'!$G$14)","v":""},{"$f":"IF(A390=\"\",\"\",'MHP Family Income & Rent Limits'!$B$3)","v":""},{"$f":"IF(A390=\"\",\"\",'MHP Family Income & Rent Limits'!$J$3)","v":""},{"$f":"IF(A390=\"\",\"\",'MHP Family Income & Rent Limits'!$E$4)","v":""},{"$f":"IF(A390=\"\",\"\",'MHP Family Income & Rent Limits'!$C$7)","v":""},{"$f":"IF(A390=\"\",\"\",'MHP Family Income & Rent Limits'!$F$8)","v":""},{"$f":"IF(A390=\"\",\"\",'1. Checklist & Certification'!$G$4)","v":""},{"$f":"IF(A390=\"\",\"\",'1. Checklist & Certification'!$K$39)","v":""},{"$f":"IF(A390=\"\",\"\",'1. Checklist & Certification'!$K$43)","v":""},{"$f":"IF(A390=\"\",\"\",'1. Checklist & Certification'!$K$45)","v":""},{"$f":"IF(A390=\"\",\"\",'1. Checklist & Certification'!$K$49)","v":""},{"$f":"IF(A390=\"\",\"\",'1. Checklist & Certification'!$E$66)","v":""},{"$f":"IF(A390=\"\",\"\",'1. Checklist & Certification'!$E$67)","v":""},{"$f":"IF(A390=\"\",\"\",'1. Checklist & Certification'!$E$68)","v":""},{"$f":"IF(A390=\"\",\"\",'1. Checklist & Certification'!$G$66)","v":""},{"$f":"IF(A390=\"\",\"\",'1. Checklist & Certification'!$H$66)","v":""},{"$f":"IF(A390=\"\",\"\",'1. Checklist & Certification'!$I$66)","v":""},{"$f":"IF(A390=\"\",\"\",'1. Checklist & Certification'!$I$67)","v":""},{"$f":"IF(A390=\"\",\"\",'1. Checklist & Certification'!$I$68)","v":""},null,{"$f":"IF(C390=\"\",\"\",HLOOKUP(C390,'MHP Family Income & Rent Limits'!$E$12:$L$26,2,FALSE))","v":""},{"$f":"IF(C390=\"\",\"\",HLOOKUP(C390,'MHP Family Income & Rent Limits'!$E$12:$L$26,3,FALSE))","v":""},{"$f":"IF(C390=\"\",\"\",HLOOKUP(C390,'MHP Family Income & Rent Limits'!$E$12:$L$26,4,FALSE))","v":""},{"$f":"IF(C390=\"\",\"\",HLOOKUP(C390,'MHP Family Income & Rent Limits'!$E$12:$L$26,5,FALSE))","v":""},{"$f":"IF(C390=\"\",\"\",HLOOKUP(C390,'MHP Family Income & Rent Limits'!$E$12:$L$26,6,FALSE))","v":""},{"$f":"IF(C390=\"\",\"\",HLOOKUP(C390,'MHP Family Income & Rent Limits'!$E$12:$L$26,7,FALSE))","v":""},{"$f":"IF(C390=\"\",\"\",HLOOKUP(C390,'MHP Family Income & Rent Limits'!$E$12:$L$26,8,FALSE))","v":""},{"$f":"IF(C390=\"\",\"\",HLOOKUP(C390,'MHP Family Income & Rent Limits'!$E$12:$L$26,9,FALSE))","v":""},{"$f":"IF(C390=\"\",\"\",HLOOKUP(C390,'MHP Family Income & Rent Limits'!$E$12:$L$26,10,FALSE))","v":""},{"$f":"IF(C390=\"\",\"\",HLOOKUP(C390,'MHP Family Income & Rent Limits'!$E$12:$L$26,11,FALSE))","v":""},{"$f":"IF(C390=\"\",\"\",HLOOKUP(C390,'MHP Family Income & Rent Limits'!$E$12:$L$26,12,FALSE))","v":""},{"$f":"IF(C390=\"\",\"\",HLOOKUP(C390,'MHP Family Income & Rent Limits'!$E$12:$L$26,13,FALSE))","v":""},{"$f":"IF(C390=\"\",\"\",HLOOKUP(C390,'MHP Family Income & Rent Limits'!$E$12:$L$26,14,FALSE))","v":""},{"$f":"IF(C390=\"\",\"\",HLOOKUP(C390,'MHP Family Income & Rent Limits'!$E$12:$L$26,15,FALSE))","v":""}]
[{"$f":"IF('2. Assisted & Restricted Units'!A391=\"\",\"\",'2. Assisted & Restricted Units'!A391)","v":""},{"$f":"IF('2. Assisted & Restricted Units'!B391=\"\",\"\",'2. Assisted & Restricted Units'!B391)","v":""},{"$f":"IF('2. Assisted & Restricted Units'!D391=\"\",\"\",'2. Assisted & Restricted Units'!D391)","v":""},{"$f":"IF('2. Assisted & Restricted Units'!E391=\"\",\"\",'2. Assisted & Restricted Units'!E391)","v":""},{"$f":"IF('2. Assisted & Restricted Units'!H391=\"\",\"\",'2. Assisted & Restricted Units'!H391)","v":""},{"$f":"_xlfn.IFS(E391=\"\",\"\",E391>BO391,$BP$6,E391>BN391,$BO$6,E391>BM391,$BN$6,E391>BL391,$BM$6,E391>BK391,$BL$6,E391>BJ391,$BK$6,E391>BI391,$BJ$6,E391>BH391,$BI$6,E391>BG391,$BH$6,E391>BF391,$BG$6,E391>BE391,$BF$6,E391>BD391,$BE$6,E391>BC391,$BD$6,E391>=0,$BC$6)","v":""},{"$f":"IF('2. Assisted & Restricted Units'!T391=\"\",\"\",'2. Assisted & Restricted Units'!T391)","v":""},{"$f":"IF('2. Assisted & Restricted Units'!I391=\"\",\"\",'2. Assisted & Restricted Units'!I391)","v":""},{"$f":"IF('2. Assisted & Restricted Units'!AP391=\"\",\"\",'2. Assisted & Restricted Units'!AP391)","v":0},{"$f":"IF('2. Assisted & Restricted Units'!AT391=\"\",\"\",'2. Assisted & Restricted Units'!AT391)","v":""},0,{"$f":"IF('2. Assisted & Restricted Units'!AV391=\"\",\"\",'2. Assisted & Restricted Units'!AV391)","v":""},{"$f":"IF('2. Assisted & Restricted Units'!L391=\"\",\"\",'2. Assisted & Restricted Units'!L391)","v":""},{"$f":"IF('2. Assisted & Restricted Units'!M391=\"\",\"\",'2. Assisted & Restricted Units'!M391)","v":""},{"$f":"IF('2. Assisted & Restricted Units'!O391=\"\",\"\",'2. Assisted & Restricted Units'!O391)","v":""},{"$f":"IF('2. Assisted & Restricted Units'!P391=\"\",\"\",'2. Assisted & Restricted Units'!P391)","v":""},{"$f":"IF('2. Assisted & Restricted Units'!Q391=\"\",\"\",'2. Assisted & Restricted Units'!Q391)","v":""},{"$f":"IF('2. Assisted & Restricted Units'!R391=\"\",\"\",'2. Assisted & Restricted Units'!R391)","v":""},{"$f":"IF(A391=\"\",\"\",'1. Checklist & Certification'!$K$1)","v":""},{"$f":"IF(A391=\"\",\"\",'1. Checklist & Certification'!$C$62)","v":""},{"$f":"IF(A391=\"\",\"\",'1. Checklist & Certification'!$K$62)","v":""},{"$f":"IF(A391=\"\",\"\",'1. Checklist & Certification'!$C$6)","v":""},{"$f":"IF(A391=\"\",\"\",'1. Checklist & Certification'!$G$4)","v":""},{"$f":"IF(A391=\"\",\"\",'1. Checklist & Certification'!$C$7)","v":""},{"$f":"IF(A391=\"\",\"\",'1. Checklist & Certification'!$C$8)","v":""},{"$f":"IF(A391=\"\",\"\",'1. Checklist & Certification'!$F$7)","v":""},{"$f":"IF(A391=\"\",\"\",'1. Checklist & Certification'!$F$8)","v":""},{"$f":"IF(A391=\"\",\"\",'1. Checklist & Certification'!$B$9)","v":""},{"$f":"IF(A391=\"\",\"\",'1. Checklist & Certification'!$F$9)","v":""},{"$f":"IF(A391=\"\",\"\",'1. Checklist & Certification'!$C$10)","v":""},{"$f":"IF(A391=\"\",\"\",'1. Checklist & Certification'!$C$11)","v":""},{"$f":"IF(A391=\"\",\"\",'1. Checklist & Certification'!$C$12)","v":""},{"$f":"IF(A391=\"\",\"\",'1. Checklist & Certification'!$B$14)","v":""},{"$f":"IF(A391=\"\",\"\",'1. Checklist & Certification'!$E$14)","v":""},{"$f":"IF(B391=\"\",\"\",'1. Checklist & Certification'!$G$14)","v":""},{"$f":"IF(A391=\"\",\"\",'MHP Family Income & Rent Limits'!$B$3)","v":""},{"$f":"IF(A391=\"\",\"\",'MHP Family Income & Rent Limits'!$J$3)","v":""},{"$f":"IF(A391=\"\",\"\",'MHP Family Income & Rent Limits'!$E$4)","v":""},{"$f":"IF(A391=\"\",\"\",'MHP Family Income & Rent Limits'!$C$7)","v":""},{"$f":"IF(A391=\"\",\"\",'MHP Family Income & Rent Limits'!$F$8)","v":""},{"$f":"IF(A391=\"\",\"\",'1. Checklist & Certification'!$G$4)","v":""},{"$f":"IF(A391=\"\",\"\",'1. Checklist & Certification'!$K$39)","v":""},{"$f":"IF(A391=\"\",\"\",'1. Checklist & Certification'!$K$43)","v":""},{"$f":"IF(A391=\"\",\"\",'1. Checklist & Certification'!$K$45)","v":""},{"$f":"IF(A391=\"\",\"\",'1. Checklist & Certification'!$K$49)","v":""},{"$f":"IF(A391=\"\",\"\",'1. Checklist & Certification'!$E$66)","v":""},{"$f":"IF(A391=\"\",\"\",'1. Checklist & Certification'!$E$67)","v":""},{"$f":"IF(A391=\"\",\"\",'1. Checklist & Certification'!$E$68)","v":""},{"$f":"IF(A391=\"\",\"\",'1. Checklist & Certification'!$G$66)","v":""},{"$f":"IF(A391=\"\",\"\",'1. Checklist & Certification'!$H$66)","v":""},{"$f":"IF(A391=\"\",\"\",'1. Checklist & Certification'!$I$66)","v":""},{"$f":"IF(A391=\"\",\"\",'1. Checklist & Certification'!$I$67)","v":""},{"$f":"IF(A391=\"\",\"\",'1. Checklist & Certification'!$I$68)","v":""},null,{"$f":"IF(C391=\"\",\"\",HLOOKUP(C391,'MHP Family Income & Rent Limits'!$E$12:$L$26,2,FALSE))","v":""},{"$f":"IF(C391=\"\",\"\",HLOOKUP(C391,'MHP Family Income & Rent Limits'!$E$12:$L$26,3,FALSE))","v":""},{"$f":"IF(C391=\"\",\"\",HLOOKUP(C391,'MHP Family Income & Rent Limits'!$E$12:$L$26,4,FALSE))","v":""},{"$f":"IF(C391=\"\",\"\",HLOOKUP(C391,'MHP Family Income & Rent Limits'!$E$12:$L$26,5,FALSE))","v":""},{"$f":"IF(C391=\"\",\"\",HLOOKUP(C391,'MHP Family Income & Rent Limits'!$E$12:$L$26,6,FALSE))","v":""},{"$f":"IF(C391=\"\",\"\",HLOOKUP(C391,'MHP Family Income & Rent Limits'!$E$12:$L$26,7,FALSE))","v":""},{"$f":"IF(C391=\"\",\"\",HLOOKUP(C391,'MHP Family Income & Rent Limits'!$E$12:$L$26,8,FALSE))","v":""},{"$f":"IF(C391=\"\",\"\",HLOOKUP(C391,'MHP Family Income & Rent Limits'!$E$12:$L$26,9,FALSE))","v":""},{"$f":"IF(C391=\"\",\"\",HLOOKUP(C391,'MHP Family Income & Rent Limits'!$E$12:$L$26,10,FALSE))","v":""},{"$f":"IF(C391=\"\",\"\",HLOOKUP(C391,'MHP Family Income & Rent Limits'!$E$12:$L$26,11,FALSE))","v":""},{"$f":"IF(C391=\"\",\"\",HLOOKUP(C391,'MHP Family Income & Rent Limits'!$E$12:$L$26,12,FALSE))","v":""},{"$f":"IF(C391=\"\",\"\",HLOOKUP(C391,'MHP Family Income & Rent Limits'!$E$12:$L$26,13,FALSE))","v":""},{"$f":"IF(C391=\"\",\"\",HLOOKUP(C391,'MHP Family Income & Rent Limits'!$E$12:$L$26,14,FALSE))","v":""},{"$f":"IF(C391=\"\",\"\",HLOOKUP(C391,'MHP Family Income & Rent Limits'!$E$12:$L$26,15,FALSE))","v":""}]
[{"$f":"IF('2. Assisted & Restricted Units'!A392=\"\",\"\",'2. Assisted & Restricted Units'!A392)","v":""},{"$f":"IF('2. Assisted & Restricted Units'!B392=\"\",\"\",'2. Assisted & Restricted Units'!B392)","v":""},{"$f":"IF('2. Assisted & Restricted Units'!D392=\"\",\"\",'2. Assisted & Restricted Units'!D392)","v":""},{"$f":"IF('2. Assisted & Restricted Units'!E392=\"\",\"\",'2. Assisted & Restricted Units'!E392)","v":""},{"$f":"IF('2. Assisted & Restricted Units'!H392=\"\",\"\",'2. Assisted & Restricted Units'!H392)","v":""},{"$f":"_xlfn.IFS(E392=\"\",\"\",E392>BO392,$BP$6,E392>BN392,$BO$6,E392>BM392,$BN$6,E392>BL392,$BM$6,E392>BK392,$BL$6,E392>BJ392,$BK$6,E392>BI392,$BJ$6,E392>BH392,$BI$6,E392>BG392,$BH$6,E392>BF392,$BG$6,E392>BE392,$BF$6,E392>BD392,$BE$6,E392>BC392,$BD$6,E392>=0,$BC$6)","v":""},{"$f":"IF('2. Assisted & Restricted Units'!T392=\"\",\"\",'2. Assisted & Restricted Units'!T392)","v":""},{"$f":"IF('2. Assisted & Restricted Units'!I392=\"\",\"\",'2. Assisted & Restricted Units'!I392)","v":""},{"$f":"IF('2. Assisted & Restricted Units'!AP392=\"\",\"\",'2. Assisted & Restricted Units'!AP392)","v":0},{"$f":"IF('2. Assisted & Restricted Units'!AT392=\"\",\"\",'2. Assisted & Restricted Units'!AT392)","v":""},{"$f":"SUM(H392:J392)","v":0},{"$f":"IF('2. Assisted & Restricted Units'!AV392=\"\",\"\",'2. Assisted & Restricted Units'!AV392)","v":""},{"$f":"IF('2. Assisted & Restricted Units'!L392=\"\",\"\",'2. Assisted & Restricted Units'!L392)","v":""},{"$f":"IF('2. Assisted & Restricted Units'!M392=\"\",\"\",'2. Assisted & Restricted Units'!M392)","v":""},{"$f":"IF('2. Assisted & Restricted Units'!O392=\"\",\"\",'2. Assisted & Restricted Units'!O392)","v":""},{"$f":"IF('2. Assisted & Restricted Units'!P392=\"\",\"\",'2. Assisted & Restricted Units'!P392)","v":""},{"$f":"IF('2. Assisted & Restricted Units'!Q392=\"\",\"\",'2. Assisted & Restricted Units'!Q392)","v":""},{"$f":"IF('2. Assisted & Restricted Units'!R392=\"\",\"\",'2. Assisted & Restricted Units'!R392)","v":""},{"$f":"IF(A392=\"\",\"\",'1. Checklist & Certification'!$K$1)","v":""},{"$f":"IF(A392=\"\",\"\",'1. Checklist & Certification'!$C$62)","v":""},{"$f":"IF(A392=\"\",\"\",'1. Checklist & Certification'!$K$62)","v":""},{"$f":"IF(A392=\"\",\"\",'1. Checklist & Certification'!$C$6)","v":""},{"$f":"IF(A392=\"\",\"\",'1. Checklist & Certification'!$G$4)","v":""},{"$f":"IF(A392=\"\",\"\",'1. Checklist & Certification'!$C$7)","v":""},{"$f":"IF(A392=\"\",\"\",'1. Checklist & Certification'!$C$8)","v":""},{"$f":"IF(A392=\"\",\"\",'1. Checklist & Certification'!$F$7)","v":""},{"$f":"IF(A392=\"\",\"\",'1. Checklist & Certification'!$F$8)","v":""},{"$f":"IF(A392=\"\",\"\",'1. Checklist & Certification'!$B$9)","v":""},{"$f":"IF(A392=\"\",\"\",'1. Checklist & Certification'!$F$9)","v":""},{"$f":"IF(A392=\"\",\"\",'1. Checklist & Certification'!$C$10)","v":""},{"$f":"IF(A392=\"\",\"\",'1. Checklist & Certification'!$C$11)","v":""},{"$f":"IF(A392=\"\",\"\",'1. Checklist & Certification'!$C$12)","v":""},{"$f":"IF(A392=\"\",\"\",'1. Checklist & Certification'!$B$14)","v":""},{"$f":"IF(A392=\"\",\"\",'1. Checklist & Certification'!$E$14)","v":""},{"$f":"IF(B392=\"\",\"\",'1. Checklist & Certification'!$G$14)","v":""},{"$f":"IF(A392=\"\",\"\",'MHP Family Income & Rent Limits'!$B$3)","v":""},{"$f":"IF(A392=\"\",\"\",'MHP Family Income & Rent Limits'!$J$3)","v":""},{"$f":"IF(A392=\"\",\"\",'MHP Family Income & Rent Limits'!$E$4)","v":""},{"$f":"IF(A392=\"\",\"\",'MHP Family Income & Rent Limits'!$C$7)","v":""},{"$f":"IF(A392=\"\",\"\",'MHP Family Income & Rent Limits'!$F$8)","v":""},{"$f":"IF(A392=\"\",\"\",'1. Checklist & Certification'!$G$4)","v":""},{"$f":"IF(A392=\"\",\"\",'1. Checklist & Certification'!$K$39)","v":""},{"$f":"IF(A392=\"\",\"\",'1. Checklist & Certification'!$K$43)","v":""},{"$f":"IF(A392=\"\",\"\",'1. Checklist & Certification'!$K$45)","v":""},{"$f":"IF(A392=\"\",\"\",'1. Checklist & Certification'!$K$49)","v":""},{"$f":"IF(A392=\"\",\"\",'1. Checklist & Certification'!$E$66)","v":""},{"$f":"IF(A392=\"\",\"\",'1. Checklist & Certification'!$E$67)","v":""},{"$f":"IF(A392=\"\",\"\",'1. Checklist & Certification'!$E$68)","v":""},{"$f":"IF(A392=\"\",\"\",'1. Checklist & Certification'!$G$66)","v":""},{"$f":"IF(A392=\"\",\"\",'1. Checklist & Certification'!$H$66)","v":""},{"$f":"IF(A392=\"\",\"\",'1. Checklist & Certification'!$I$66)","v":""},{"$f":"IF(A392=\"\",\"\",'1. Checklist & Certification'!$I$67)","v":""},{"$f":"IF(A392=\"\",\"\",'1. Checklist & Certification'!$I$68)","v":""},null,{"$f":"IF(C392=\"\",\"\",HLOOKUP(C392,'MHP Family Income & Rent Limits'!$E$12:$L$26,2,FALSE))","v":""},{"$f":"IF(C392=\"\",\"\",HLOOKUP(C392,'MHP Family Income & Rent Limits'!$E$12:$L$26,3,FALSE))","v":""},{"$f":"IF(C392=\"\",\"\",HLOOKUP(C392,'MHP Family Income & Rent Limits'!$E$12:$L$26,4,FALSE))","v":""},{"$f":"IF(C392=\"\",\"\",HLOOKUP(C392,'MHP Family Income & Rent Limits'!$E$12:$L$26,5,FALSE))","v":""},{"$f":"IF(C392=\"\",\"\",HLOOKUP(C392,'MHP Family Income & Rent Limits'!$E$12:$L$26,6,FALSE))","v":""},{"$f":"IF(C392=\"\",\"\",HLOOKUP(C392,'MHP Family Income & Rent Limits'!$E$12:$L$26,7,FALSE))","v":""},{"$f":"IF(C392=\"\",\"\",HLOOKUP(C392,'MHP Family Income & Rent Limits'!$E$12:$L$26,8,FALSE))","v":""},{"$f":"IF(C392=\"\",\"\",HLOOKUP(C392,'MHP Family Income & Rent Limits'!$E$12:$L$26,9,FALSE))","v":""},{"$f":"IF(C392=\"\",\"\",HLOOKUP(C392,'MHP Family Income & Rent Limits'!$E$12:$L$26,10,FALSE))","v":""},{"$f":"IF(C392=\"\",\"\",HLOOKUP(C392,'MHP Family Income & Rent Limits'!$E$12:$L$26,11,FALSE))","v":""},{"$f":"IF(C392=\"\",\"\",HLOOKUP(C392,'MHP Family Income & Rent Limits'!$E$12:$L$26,12,FALSE))","v":""},{"$f":"IF(C392=\"\",\"\",HLOOKUP(C392,'MHP Family Income & Rent Limits'!$E$12:$L$26,13,FALSE))","v":""},{"$f":"IF(C392=\"\",\"\",HLOOKUP(C392,'MHP Family Income & Rent Limits'!$E$12:$L$26,14,FALSE))","v":""},{"$f":"IF(C392=\"\",\"\",HLOOKUP(C392,'MHP Family Income & Rent Limits'!$E$12:$L$26,15,FALSE))","v":""}]
[{"$f":"IF('2. Assisted & Restricted Units'!A393=\"\",\"\",'2. Assisted & Restricted Units'!A393)","v":""},{"$f":"IF('2. Assisted & Restricted Units'!B393=\"\",\"\",'2. Assisted & Restricted Units'!B393)","v":""},{"$f":"IF('2. Assisted & Restricted Units'!D393=\"\",\"\",'2. Assisted & Restricted Units'!D393)","v":""},{"$f":"IF('2. Assisted & Restricted Units'!E393=\"\",\"\",'2. Assisted & Restricted Units'!E393)","v":""},{"$f":"IF('2. Assisted & Restricted Units'!H393=\"\",\"\",'2. Assisted & Restricted Units'!H393)","v":""},{"$f":"_xlfn.IFS(E393=\"\",\"\",E393>BO393,$BP$6,E393>BN393,$BO$6,E393>BM393,$BN$6,E393>BL393,$BM$6,E393>BK393,$BL$6,E393>BJ393,$BK$6,E393>BI393,$BJ$6,E393>BH393,$BI$6,E393>BG393,$BH$6,E393>BF393,$BG$6,E393>BE393,$BF$6,E393>BD393,$BE$6,E393>BC393,$BD$6,E393>=0,$BC$6)","v":""},{"$f":"IF('2. Assisted & Restricted Units'!T393=\"\",\"\",'2. Assisted & Restricted Units'!T393)","v":""},{"$f":"IF('2. Assisted & Restricted Units'!I393=\"\",\"\",'2. Assisted & Restricted Units'!I393)","v":""},{"$f":"IF('2. Assisted & Restricted Units'!AP393=\"\",\"\",'2. Assisted & Restricted Units'!AP393)","v":0},{"$f":"IF('2. Assisted & Restricted Units'!AT393=\"\",\"\",'2. Assisted & Restricted Units'!AT393)","v":""},0,{"$f":"IF('2. Assisted & Restricted Units'!AV393=\"\",\"\",'2. Assisted & Restricted Units'!AV393)","v":""},{"$f":"IF('2. Assisted & Restricted Units'!L393=\"\",\"\",'2. Assisted & Restricted Units'!L393)","v":""},{"$f":"IF('2. Assisted & Restricted Units'!M393=\"\",\"\",'2. Assisted & Restricted Units'!M393)","v":""},{"$f":"IF('2. Assisted & Restricted Units'!O393=\"\",\"\",'2. Assisted & Restricted Units'!O393)","v":""},{"$f":"IF('2. Assisted & Restricted Units'!P393=\"\",\"\",'2. Assisted & Restricted Units'!P393)","v":""},{"$f":"IF('2. Assisted & Restricted Units'!Q393=\"\",\"\",'2. Assisted & Restricted Units'!Q393)","v":""},{"$f":"IF('2. Assisted & Restricted Units'!R393=\"\",\"\",'2. Assisted & Restricted Units'!R393)","v":""},{"$f":"IF(A393=\"\",\"\",'1. Checklist & Certification'!$K$1)","v":""},{"$f":"IF(A393=\"\",\"\",'1. Checklist & Certification'!$C$62)","v":""},{"$f":"IF(A393=\"\",\"\",'1. Checklist & Certification'!$K$62)","v":""},{"$f":"IF(A393=\"\",\"\",'1. Checklist & Certification'!$C$6)","v":""},{"$f":"IF(A393=\"\",\"\",'1. Checklist & Certification'!$G$4)","v":""},{"$f":"IF(A393=\"\",\"\",'1. Checklist & Certification'!$C$7)","v":""},{"$f":"IF(A393=\"\",\"\",'1. Checklist & Certification'!$C$8)","v":""},{"$f":"IF(A393=\"\",\"\",'1. Checklist & Certification'!$F$7)","v":""},{"$f":"IF(A393=\"\",\"\",'1. Checklist & Certification'!$F$8)","v":""},{"$f":"IF(A393=\"\",\"\",'1. Checklist & Certification'!$B$9)","v":""},{"$f":"IF(A393=\"\",\"\",'1. Checklist & Certification'!$F$9)","v":""},{"$f":"IF(A393=\"\",\"\",'1. Checklist & Certification'!$C$10)","v":""},{"$f":"IF(A393=\"\",\"\",'1. Checklist & Certification'!$C$11)","v":""},{"$f":"IF(A393=\"\",\"\",'1. Checklist & Certification'!$C$12)","v":""},{"$f":"IF(A393=\"\",\"\",'1. Checklist & Certification'!$B$14)","v":""},{"$f":"IF(A393=\"\",\"\",'1. Checklist & Certification'!$E$14)","v":""},{"$f":"IF(B393=\"\",\"\",'1. Checklist & Certification'!$G$14)","v":""},{"$f":"IF(A393=\"\",\"\",'MHP Family Income & Rent Limits'!$B$3)","v":""},{"$f":"IF(A393=\"\",\"\",'MHP Family Income & Rent Limits'!$J$3)","v":""},{"$f":"IF(A393=\"\",\"\",'MHP Family Income & Rent Limits'!$E$4)","v":""},{"$f":"IF(A393=\"\",\"\",'MHP Family Income & Rent Limits'!$C$7)","v":""},{"$f":"IF(A393=\"\",\"\",'MHP Family Income & Rent Limits'!$F$8)","v":""},{"$f":"IF(A393=\"\",\"\",'1. Checklist & Certification'!$G$4)","v":""},{"$f":"IF(A393=\"\",\"\",'1. Checklist & Certification'!$K$39)","v":""},{"$f":"IF(A393=\"\",\"\",'1. Checklist & Certification'!$K$43)","v":""},{"$f":"IF(A393=\"\",\"\",'1. Checklist & Certification'!$K$45)","v":""},{"$f":"IF(A393=\"\",\"\",'1. Checklist & Certification'!$K$49)","v":""},{"$f":"IF(A393=\"\",\"\",'1. Checklist & Certification'!$E$66)","v":""},{"$f":"IF(A393=\"\",\"\",'1. Checklist & Certification'!$E$67)","v":""},{"$f":"IF(A393=\"\",\"\",'1. Checklist & Certification'!$E$68)","v":""},{"$f":"IF(A393=\"\",\"\",'1. Checklist & Certification'!$G$66)","v":""},{"$f":"IF(A393=\"\",\"\",'1. Checklist & Certification'!$H$66)","v":""},{"$f":"IF(A393=\"\",\"\",'1. Checklist & Certification'!$I$66)","v":""},{"$f":"IF(A393=\"\",\"\",'1. Checklist & Certification'!$I$67)","v":""},{"$f":"IF(A393=\"\",\"\",'1. Checklist & Certification'!$I$68)","v":""},null,{"$f":"IF(C393=\"\",\"\",HLOOKUP(C393,'MHP Family Income & Rent Limits'!$E$12:$L$26,2,FALSE))","v":""},{"$f":"IF(C393=\"\",\"\",HLOOKUP(C393,'MHP Family Income & Rent Limits'!$E$12:$L$26,3,FALSE))","v":""},{"$f":"IF(C393=\"\",\"\",HLOOKUP(C393,'MHP Family Income & Rent Limits'!$E$12:$L$26,4,FALSE))","v":""},{"$f":"IF(C393=\"\",\"\",HLOOKUP(C393,'MHP Family Income & Rent Limits'!$E$12:$L$26,5,FALSE))","v":""},{"$f":"IF(C393=\"\",\"\",HLOOKUP(C393,'MHP Family Income & Rent Limits'!$E$12:$L$26,6,FALSE))","v":""},{"$f":"IF(C393=\"\",\"\",HLOOKUP(C393,'MHP Family Income & Rent Limits'!$E$12:$L$26,7,FALSE))","v":""},{"$f":"IF(C393=\"\",\"\",HLOOKUP(C393,'MHP Family Income & Rent Limits'!$E$12:$L$26,8,FALSE))","v":""},{"$f":"IF(C393=\"\",\"\",HLOOKUP(C393,'MHP Family Income & Rent Limits'!$E$12:$L$26,9,FALSE))","v":""},{"$f":"IF(C393=\"\",\"\",HLOOKUP(C393,'MHP Family Income & Rent Limits'!$E$12:$L$26,10,FALSE))","v":""},{"$f":"IF(C393=\"\",\"\",HLOOKUP(C393,'MHP Family Income & Rent Limits'!$E$12:$L$26,11,FALSE))","v":""},{"$f":"IF(C393=\"\",\"\",HLOOKUP(C393,'MHP Family Income & Rent Limits'!$E$12:$L$26,12,FALSE))","v":""},{"$f":"IF(C393=\"\",\"\",HLOOKUP(C393,'MHP Family Income & Rent Limits'!$E$12:$L$26,13,FALSE))","v":""},{"$f":"IF(C393=\"\",\"\",HLOOKUP(C393,'MHP Family Income & Rent Limits'!$E$12:$L$26,14,FALSE))","v":""},{"$f":"IF(C393=\"\",\"\",HLOOKUP(C393,'MHP Family Income & Rent Limits'!$E$12:$L$26,15,FALSE))","v":""}]
[{"$f":"IF('2. Assisted & Restricted Units'!A394=\"\",\"\",'2. Assisted & Restricted Units'!A394)","v":""},{"$f":"IF('2. Assisted & Restricted Units'!B394=\"\",\"\",'2. Assisted & Restricted Units'!B394)","v":""},{"$f":"IF('2. Assisted & Restricted Units'!D394=\"\",\"\",'2. Assisted & Restricted Units'!D394)","v":""},{"$f":"IF('2. Assisted & Restricted Units'!E394=\"\",\"\",'2. Assisted & Restricted Units'!E394)","v":""},{"$f":"IF('2. Assisted & Restricted Units'!H394=\"\",\"\",'2. Assisted & Restricted Units'!H394)","v":""},{"$f":"_xlfn.IFS(E394=\"\",\"\",E394>BO394,$BP$6,E394>BN394,$BO$6,E394>BM394,$BN$6,E394>BL394,$BM$6,E394>BK394,$BL$6,E394>BJ394,$BK$6,E394>BI394,$BJ$6,E394>BH394,$BI$6,E394>BG394,$BH$6,E394>BF394,$BG$6,E394>BE394,$BF$6,E394>BD394,$BE$6,E394>BC394,$BD$6,E394>=0,$BC$6)","v":""},{"$f":"IF('2. Assisted & Restricted Units'!T394=\"\",\"\",'2. Assisted & Restricted Units'!T394)","v":""},{"$f":"IF('2. Assisted & Restricted Units'!I394=\"\",\"\",'2. Assisted & Restricted Units'!I394)","v":""},{"$f":"IF('2. Assisted & Restricted Units'!AP394=\"\",\"\",'2. Assisted & Restricted Units'!AP394)","v":0},{"$f":"IF('2. Assisted & Restricted Units'!AT394=\"\",\"\",'2. Assisted & Restricted Units'!AT394)","v":""},0,{"$f":"IF('2. Assisted & Restricted Units'!AV394=\"\",\"\",'2. Assisted & Restricted Units'!AV394)","v":""},{"$f":"IF('2. Assisted & Restricted Units'!L394=\"\",\"\",'2. Assisted & Restricted Units'!L394)","v":""},{"$f":"IF('2. Assisted & Restricted Units'!M394=\"\",\"\",'2. Assisted & Restricted Units'!M394)","v":""},{"$f":"IF('2. Assisted & Restricted Units'!O394=\"\",\"\",'2. Assisted & Restricted Units'!O394)","v":""},{"$f":"IF('2. Assisted & Restricted Units'!P394=\"\",\"\",'2. Assisted & Restricted Units'!P394)","v":""},{"$f":"IF('2. Assisted & Restricted Units'!Q394=\"\",\"\",'2. Assisted & Restricted Units'!Q394)","v":""},{"$f":"IF('2. Assisted & Restricted Units'!R394=\"\",\"\",'2. Assisted & Restricted Units'!R394)","v":""},{"$f":"IF(A394=\"\",\"\",'1. Checklist & Certification'!$K$1)","v":""},{"$f":"IF(A394=\"\",\"\",'1. Checklist & Certification'!$C$62)","v":""},{"$f":"IF(A394=\"\",\"\",'1. Checklist & Certification'!$K$62)","v":""},{"$f":"IF(A394=\"\",\"\",'1. Checklist & Certification'!$C$6)","v":""},{"$f":"IF(A394=\"\",\"\",'1. Checklist & Certification'!$G$4)","v":""},{"$f":"IF(A394=\"\",\"\",'1. Checklist & Certification'!$C$7)","v":""},{"$f":"IF(A394=\"\",\"\",'1. Checklist & Certification'!$C$8)","v":""},{"$f":"IF(A394=\"\",\"\",'1. Checklist & Certification'!$F$7)","v":""},{"$f":"IF(A394=\"\",\"\",'1. Checklist & Certification'!$F$8)","v":""},{"$f":"IF(A394=\"\",\"\",'1. Checklist & Certification'!$B$9)","v":""},{"$f":"IF(A394=\"\",\"\",'1. Checklist & Certification'!$F$9)","v":""},{"$f":"IF(A394=\"\",\"\",'1. Checklist & Certification'!$C$10)","v":""},{"$f":"IF(A394=\"\",\"\",'1. Checklist & Certification'!$C$11)","v":""},{"$f":"IF(A394=\"\",\"\",'1. Checklist & Certification'!$C$12)","v":""},{"$f":"IF(A394=\"\",\"\",'1. Checklist & Certification'!$B$14)","v":""},{"$f":"IF(A394=\"\",\"\",'1. Checklist & Certification'!$E$14)","v":""},{"$f":"IF(B394=\"\",\"\",'1. Checklist & Certification'!$G$14)","v":""},{"$f":"IF(A394=\"\",\"\",'MHP Family Income & Rent Limits'!$B$3)","v":""},{"$f":"IF(A394=\"\",\"\",'MHP Family Income & Rent Limits'!$J$3)","v":""},{"$f":"IF(A394=\"\",\"\",'MHP Family Income & Rent Limits'!$E$4)","v":""},{"$f":"IF(A394=\"\",\"\",'MHP Family Income & Rent Limits'!$C$7)","v":""},{"$f":"IF(A394=\"\",\"\",'MHP Family Income & Rent Limits'!$F$8)","v":""},{"$f":"IF(A394=\"\",\"\",'1. Checklist & Certification'!$G$4)","v":""},{"$f":"IF(A394=\"\",\"\",'1. Checklist & Certification'!$K$39)","v":""},{"$f":"IF(A394=\"\",\"\",'1. Checklist & Certification'!$K$43)","v":""},{"$f":"IF(A394=\"\",\"\",'1. Checklist & Certification'!$K$45)","v":""},{"$f":"IF(A394=\"\",\"\",'1. Checklist & Certification'!$K$49)","v":""},{"$f":"IF(A394=\"\",\"\",'1. Checklist & Certification'!$E$66)","v":""},{"$f":"IF(A394=\"\",\"\",'1. Checklist & Certification'!$E$67)","v":""},{"$f":"IF(A394=\"\",\"\",'1. Checklist & Certification'!$E$68)","v":""},{"$f":"IF(A394=\"\",\"\",'1. Checklist & Certification'!$G$66)","v":""},{"$f":"IF(A394=\"\",\"\",'1. Checklist & Certification'!$H$66)","v":""},{"$f":"IF(A394=\"\",\"\",'1. Checklist & Certification'!$I$66)","v":""},{"$f":"IF(A394=\"\",\"\",'1. Checklist & Certification'!$I$67)","v":""},{"$f":"IF(A394=\"\",\"\",'1. Checklist & Certification'!$I$68)","v":""},null,{"$f":"IF(C394=\"\",\"\",HLOOKUP(C394,'MHP Family Income & Rent Limits'!$E$12:$L$26,2,FALSE))","v":""},{"$f":"IF(C394=\"\",\"\",HLOOKUP(C394,'MHP Family Income & Rent Limits'!$E$12:$L$26,3,FALSE))","v":""},{"$f":"IF(C394=\"\",\"\",HLOOKUP(C394,'MHP Family Income & Rent Limits'!$E$12:$L$26,4,FALSE))","v":""},{"$f":"IF(C394=\"\",\"\",HLOOKUP(C394,'MHP Family Income & Rent Limits'!$E$12:$L$26,5,FALSE))","v":""},{"$f":"IF(C394=\"\",\"\",HLOOKUP(C394,'MHP Family Income & Rent Limits'!$E$12:$L$26,6,FALSE))","v":""},{"$f":"IF(C394=\"\",\"\",HLOOKUP(C394,'MHP Family Income & Rent Limits'!$E$12:$L$26,7,FALSE))","v":""},{"$f":"IF(C394=\"\",\"\",HLOOKUP(C394,'MHP Family Income & Rent Limits'!$E$12:$L$26,8,FALSE))","v":""},{"$f":"IF(C394=\"\",\"\",HLOOKUP(C394,'MHP Family Income & Rent Limits'!$E$12:$L$26,9,FALSE))","v":""},{"$f":"IF(C394=\"\",\"\",HLOOKUP(C394,'MHP Family Income & Rent Limits'!$E$12:$L$26,10,FALSE))","v":""},{"$f":"IF(C394=\"\",\"\",HLOOKUP(C394,'MHP Family Income & Rent Limits'!$E$12:$L$26,11,FALSE))","v":""},{"$f":"IF(C394=\"\",\"\",HLOOKUP(C394,'MHP Family Income & Rent Limits'!$E$12:$L$26,12,FALSE))","v":""},{"$f":"IF(C394=\"\",\"\",HLOOKUP(C394,'MHP Family Income & Rent Limits'!$E$12:$L$26,13,FALSE))","v":""},{"$f":"IF(C394=\"\",\"\",HLOOKUP(C394,'MHP Family Income & Rent Limits'!$E$12:$L$26,14,FALSE))","v":""},{"$f":"IF(C394=\"\",\"\",HLOOKUP(C394,'MHP Family Income & Rent Limits'!$E$12:$L$26,15,FALSE))","v":""}]
[{"$f":"IF('2. Assisted & Restricted Units'!A395=\"\",\"\",'2. Assisted & Restricted Units'!A395)","v":""},{"$f":"IF('2. Assisted & Restricted Units'!B395=\"\",\"\",'2. Assisted & Restricted Units'!B395)","v":""},{"$f":"IF('2. Assisted & Restricted Units'!D395=\"\",\"\",'2. Assisted & Restricted Units'!D395)","v":""},{"$f":"IF('2. Assisted & Restricted Units'!E395=\"\",\"\",'2. Assisted & Restricted Units'!E395)","v":""},{"$f":"IF('2. Assisted & Restricted Units'!H395=\"\",\"\",'2. Assisted & Restricted Units'!H395)","v":""},{"$f":"_xlfn.IFS(E395=\"\",\"\",E395>BO395,$BP$6,E395>BN395,$BO$6,E395>BM395,$BN$6,E395>BL395,$BM$6,E395>BK395,$BL$6,E395>BJ395,$BK$6,E395>BI395,$BJ$6,E395>BH395,$BI$6,E395>BG395,$BH$6,E395>BF395,$BG$6,E395>BE395,$BF$6,E395>BD395,$BE$6,E395>BC395,$BD$6,E395>=0,$BC$6)","v":""},{"$f":"IF('2. Assisted & Restricted Units'!T395=\"\",\"\",'2. Assisted & Restricted Units'!T395)","v":""},{"$f":"IF('2. Assisted & Restricted Units'!I395=\"\",\"\",'2. Assisted & Restricted Units'!I395)","v":""},{"$f":"IF('2. Assisted & Restricted Units'!AP395=\"\",\"\",'2. Assisted & Restricted Units'!AP395)","v":0},{"$f":"IF('2. Assisted & Restricted Units'!AT395=\"\",\"\",'2. Assisted & Restricted Units'!AT395)","v":""},0,{"$f":"IF('2. Assisted & Restricted Units'!AV395=\"\",\"\",'2. Assisted & Restricted Units'!AV395)","v":""},{"$f":"IF('2. Assisted & Restricted Units'!L395=\"\",\"\",'2. Assisted & Restricted Units'!L395)","v":""},{"$f":"IF('2. Assisted & Restricted Units'!M395=\"\",\"\",'2. Assisted & Restricted Units'!M395)","v":""},{"$f":"IF('2. Assisted & Restricted Units'!O395=\"\",\"\",'2. Assisted & Restricted Units'!O395)","v":""},{"$f":"IF('2. Assisted & Restricted Units'!P395=\"\",\"\",'2. Assisted & Restricted Units'!P395)","v":""},{"$f":"IF('2. Assisted & Restricted Units'!Q395=\"\",\"\",'2. Assisted & Restricted Units'!Q395)","v":""},{"$f":"IF('2. Assisted & Restricted Units'!R395=\"\",\"\",'2. Assisted & Restricted Units'!R395)","v":""},{"$f":"IF(A395=\"\",\"\",'1. Checklist & Certification'!$K$1)","v":""},{"$f":"IF(A395=\"\",\"\",'1. Checklist & Certification'!$C$62)","v":""},{"$f":"IF(A395=\"\",\"\",'1. Checklist & Certification'!$K$62)","v":""},{"$f":"IF(A395=\"\",\"\",'1. Checklist & Certification'!$C$6)","v":""},{"$f":"IF(A395=\"\",\"\",'1. Checklist & Certification'!$G$4)","v":""},{"$f":"IF(A395=\"\",\"\",'1. Checklist & Certification'!$C$7)","v":""},{"$f":"IF(A395=\"\",\"\",'1. Checklist & Certification'!$C$8)","v":""},{"$f":"IF(A395=\"\",\"\",'1. Checklist & Certification'!$F$7)","v":""},{"$f":"IF(A395=\"\",\"\",'1. Checklist & Certification'!$F$8)","v":""},{"$f":"IF(A395=\"\",\"\",'1. Checklist & Certification'!$B$9)","v":""},{"$f":"IF(A395=\"\",\"\",'1. Checklist & Certification'!$F$9)","v":""},{"$f":"IF(A395=\"\",\"\",'1. Checklist & Certification'!$C$10)","v":""},{"$f":"IF(A395=\"\",\"\",'1. Checklist & Certification'!$C$11)","v":""},{"$f":"IF(A395=\"\",\"\",'1. Checklist & Certification'!$C$12)","v":""},{"$f":"IF(A395=\"\",\"\",'1. Checklist & Certification'!$B$14)","v":""},{"$f":"IF(A395=\"\",\"\",'1. Checklist & Certification'!$E$14)","v":""},{"$f":"IF(B395=\"\",\"\",'1. Checklist & Certification'!$G$14)","v":""},{"$f":"IF(A395=\"\",\"\",'MHP Family Income & Rent Limits'!$B$3)","v":""},{"$f":"IF(A395=\"\",\"\",'MHP Family Income & Rent Limits'!$J$3)","v":""},{"$f":"IF(A395=\"\",\"\",'MHP Family Income & Rent Limits'!$E$4)","v":""},{"$f":"IF(A395=\"\",\"\",'MHP Family Income & Rent Limits'!$C$7)","v":""},{"$f":"IF(A395=\"\",\"\",'MHP Family Income & Rent Limits'!$F$8)","v":""},{"$f":"IF(A395=\"\",\"\",'1. Checklist & Certification'!$G$4)","v":""},{"$f":"IF(A395=\"\",\"\",'1. Checklist & Certification'!$K$39)","v":""},{"$f":"IF(A395=\"\",\"\",'1. Checklist & Certification'!$K$43)","v":""},{"$f":"IF(A395=\"\",\"\",'1. Checklist & Certification'!$K$45)","v":""},{"$f":"IF(A395=\"\",\"\",'1. Checklist & Certification'!$K$49)","v":""},{"$f":"IF(A395=\"\",\"\",'1. Checklist & Certification'!$E$66)","v":""},{"$f":"IF(A395=\"\",\"\",'1. Checklist & Certification'!$E$67)","v":""},{"$f":"IF(A395=\"\",\"\",'1. Checklist & Certification'!$E$68)","v":""},{"$f":"IF(A395=\"\",\"\",'1. Checklist & Certification'!$G$66)","v":""},{"$f":"IF(A395=\"\",\"\",'1. Checklist & Certification'!$H$66)","v":""},{"$f":"IF(A395=\"\",\"\",'1. Checklist & Certification'!$I$66)","v":""},{"$f":"IF(A395=\"\",\"\",'1. Checklist & Certification'!$I$67)","v":""},{"$f":"IF(A395=\"\",\"\",'1. Checklist & Certification'!$I$68)","v":""},null,{"$f":"IF(C395=\"\",\"\",HLOOKUP(C395,'MHP Family Income & Rent Limits'!$E$12:$L$26,2,FALSE))","v":""},{"$f":"IF(C395=\"\",\"\",HLOOKUP(C395,'MHP Family Income & Rent Limits'!$E$12:$L$26,3,FALSE))","v":""},{"$f":"IF(C395=\"\",\"\",HLOOKUP(C395,'MHP Family Income & Rent Limits'!$E$12:$L$26,4,FALSE))","v":""},{"$f":"IF(C395=\"\",\"\",HLOOKUP(C395,'MHP Family Income & Rent Limits'!$E$12:$L$26,5,FALSE))","v":""},{"$f":"IF(C395=\"\",\"\",HLOOKUP(C395,'MHP Family Income & Rent Limits'!$E$12:$L$26,6,FALSE))","v":""},{"$f":"IF(C395=\"\",\"\",HLOOKUP(C395,'MHP Family Income & Rent Limits'!$E$12:$L$26,7,FALSE))","v":""},{"$f":"IF(C395=\"\",\"\",HLOOKUP(C395,'MHP Family Income & Rent Limits'!$E$12:$L$26,8,FALSE))","v":""},{"$f":"IF(C395=\"\",\"\",HLOOKUP(C395,'MHP Family Income & Rent Limits'!$E$12:$L$26,9,FALSE))","v":""},{"$f":"IF(C395=\"\",\"\",HLOOKUP(C395,'MHP Family Income & Rent Limits'!$E$12:$L$26,10,FALSE))","v":""},{"$f":"IF(C395=\"\",\"\",HLOOKUP(C395,'MHP Family Income & Rent Limits'!$E$12:$L$26,11,FALSE))","v":""},{"$f":"IF(C395=\"\",\"\",HLOOKUP(C395,'MHP Family Income & Rent Limits'!$E$12:$L$26,12,FALSE))","v":""},{"$f":"IF(C395=\"\",\"\",HLOOKUP(C395,'MHP Family Income & Rent Limits'!$E$12:$L$26,13,FALSE))","v":""},{"$f":"IF(C395=\"\",\"\",HLOOKUP(C395,'MHP Family Income & Rent Limits'!$E$12:$L$26,14,FALSE))","v":""},{"$f":"IF(C395=\"\",\"\",HLOOKUP(C395,'MHP Family Income & Rent Limits'!$E$12:$L$26,15,FALSE))","v":""}]
[{"$f":"IF('2. Assisted & Restricted Units'!A396=\"\",\"\",'2. Assisted & Restricted Units'!A396)","v":""},{"$f":"IF('2. Assisted & Restricted Units'!B396=\"\",\"\",'2. Assisted & Restricted Units'!B396)","v":""},{"$f":"IF('2. Assisted & Restricted Units'!D396=\"\",\"\",'2. Assisted & Restricted Units'!D396)","v":""},{"$f":"IF('2. Assisted & Restricted Units'!E396=\"\",\"\",'2. Assisted & Restricted Units'!E396)","v":""},{"$f":"IF('2. Assisted & Restricted Units'!H396=\"\",\"\",'2. Assisted & Restricted Units'!H396)","v":""},{"$f":"_xlfn.IFS(E396=\"\",\"\",E396>BO396,$BP$6,E396>BN396,$BO$6,E396>BM396,$BN$6,E396>BL396,$BM$6,E396>BK396,$BL$6,E396>BJ396,$BK$6,E396>BI396,$BJ$6,E396>BH396,$BI$6,E396>BG396,$BH$6,E396>BF396,$BG$6,E396>BE396,$BF$6,E396>BD396,$BE$6,E396>BC396,$BD$6,E396>=0,$BC$6)","v":""},{"$f":"IF('2. Assisted & Restricted Units'!T396=\"\",\"\",'2. Assisted & Restricted Units'!T396)","v":""},{"$f":"IF('2. Assisted & Restricted Units'!I396=\"\",\"\",'2. Assisted & Restricted Units'!I396)","v":""},{"$f":"IF('2. Assisted & Restricted Units'!AP396=\"\",\"\",'2. Assisted & Restricted Units'!AP396)","v":0},{"$f":"IF('2. Assisted & Restricted Units'!AT396=\"\",\"\",'2. Assisted & Restricted Units'!AT396)","v":""},0,{"$f":"IF('2. Assisted & Restricted Units'!AV396=\"\",\"\",'2. Assisted & Restricted Units'!AV396)","v":""},{"$f":"IF('2. Assisted & Restricted Units'!L396=\"\",\"\",'2. Assisted & Restricted Units'!L396)","v":""},{"$f":"IF('2. Assisted & Restricted Units'!M396=\"\",\"\",'2. Assisted & Restricted Units'!M396)","v":""},{"$f":"IF('2. Assisted & Restricted Units'!O396=\"\",\"\",'2. Assisted & Restricted Units'!O396)","v":""},{"$f":"IF('2. Assisted & Restricted Units'!P396=\"\",\"\",'2. Assisted & Restricted Units'!P396)","v":""},{"$f":"IF('2. Assisted & Restricted Units'!Q396=\"\",\"\",'2. Assisted & Restricted Units'!Q396)","v":""},{"$f":"IF('2. Assisted & Restricted Units'!R396=\"\",\"\",'2. Assisted & Restricted Units'!R396)","v":""},{"$f":"IF(A396=\"\",\"\",'1. Checklist & Certification'!$K$1)","v":""},{"$f":"IF(A396=\"\",\"\",'1. Checklist & Certification'!$C$62)","v":""},{"$f":"IF(A396=\"\",\"\",'1. Checklist & Certification'!$K$62)","v":""},{"$f":"IF(A396=\"\",\"\",'1. Checklist & Certification'!$C$6)","v":""},{"$f":"IF(A396=\"\",\"\",'1. Checklist & Certification'!$G$4)","v":""},{"$f":"IF(A396=\"\",\"\",'1. Checklist & Certification'!$C$7)","v":""},{"$f":"IF(A396=\"\",\"\",'1. Checklist & Certification'!$C$8)","v":""},{"$f":"IF(A396=\"\",\"\",'1. Checklist & Certification'!$F$7)","v":""},{"$f":"IF(A396=\"\",\"\",'1. Checklist & Certification'!$F$8)","v":""},{"$f":"IF(A396=\"\",\"\",'1. Checklist & Certification'!$B$9)","v":""},{"$f":"IF(A396=\"\",\"\",'1. Checklist & Certification'!$F$9)","v":""},{"$f":"IF(A396=\"\",\"\",'1. Checklist & Certification'!$C$10)","v":""},{"$f":"IF(A396=\"\",\"\",'1. Checklist & Certification'!$C$11)","v":""},{"$f":"IF(A396=\"\",\"\",'1. Checklist & Certification'!$C$12)","v":""},{"$f":"IF(A396=\"\",\"\",'1. Checklist & Certification'!$B$14)","v":""},{"$f":"IF(A396=\"\",\"\",'1. Checklist & Certification'!$E$14)","v":""},{"$f":"IF(B396=\"\",\"\",'1. Checklist & Certification'!$G$14)","v":""},{"$f":"IF(A396=\"\",\"\",'MHP Family Income & Rent Limits'!$B$3)","v":""},{"$f":"IF(A396=\"\",\"\",'MHP Family Income & Rent Limits'!$J$3)","v":""},{"$f":"IF(A396=\"\",\"\",'MHP Family Income & Rent Limits'!$E$4)","v":""},{"$f":"IF(A396=\"\",\"\",'MHP Family Income & Rent Limits'!$C$7)","v":""},{"$f":"IF(A396=\"\",\"\",'MHP Family Income & Rent Limits'!$F$8)","v":""},{"$f":"IF(A396=\"\",\"\",'1. Checklist & Certification'!$G$4)","v":""},{"$f":"IF(A396=\"\",\"\",'1. Checklist & Certification'!$K$39)","v":""},{"$f":"IF(A396=\"\",\"\",'1. Checklist & Certification'!$K$43)","v":""},{"$f":"IF(A396=\"\",\"\",'1. Checklist & Certification'!$K$45)","v":""},{"$f":"IF(A396=\"\",\"\",'1. Checklist & Certification'!$K$49)","v":""},{"$f":"IF(A396=\"\",\"\",'1. Checklist & Certification'!$E$66)","v":""},{"$f":"IF(A396=\"\",\"\",'1. Checklist & Certification'!$E$67)","v":""},{"$f":"IF(A396=\"\",\"\",'1. Checklist & Certification'!$E$68)","v":""},{"$f":"IF(A396=\"\",\"\",'1. Checklist & Certification'!$G$66)","v":""},{"$f":"IF(A396=\"\",\"\",'1. Checklist & Certification'!$H$66)","v":""},{"$f":"IF(A396=\"\",\"\",'1. Checklist & Certification'!$I$66)","v":""},{"$f":"IF(A396=\"\",\"\",'1. Checklist & Certification'!$I$67)","v":""},{"$f":"IF(A396=\"\",\"\",'1. Checklist & Certification'!$I$68)","v":""},null,{"$f":"IF(C396=\"\",\"\",HLOOKUP(C396,'MHP Family Income & Rent Limits'!$E$12:$L$26,2,FALSE))","v":""},{"$f":"IF(C396=\"\",\"\",HLOOKUP(C396,'MHP Family Income & Rent Limits'!$E$12:$L$26,3,FALSE))","v":""},{"$f":"IF(C396=\"\",\"\",HLOOKUP(C396,'MHP Family Income & Rent Limits'!$E$12:$L$26,4,FALSE))","v":""},{"$f":"IF(C396=\"\",\"\",HLOOKUP(C396,'MHP Family Income & Rent Limits'!$E$12:$L$26,5,FALSE))","v":""},{"$f":"IF(C396=\"\",\"\",HLOOKUP(C396,'MHP Family Income & Rent Limits'!$E$12:$L$26,6,FALSE))","v":""},{"$f":"IF(C396=\"\",\"\",HLOOKUP(C396,'MHP Family Income & Rent Limits'!$E$12:$L$26,7,FALSE))","v":""},{"$f":"IF(C396=\"\",\"\",HLOOKUP(C396,'MHP Family Income & Rent Limits'!$E$12:$L$26,8,FALSE))","v":""},{"$f":"IF(C396=\"\",\"\",HLOOKUP(C396,'MHP Family Income & Rent Limits'!$E$12:$L$26,9,FALSE))","v":""},{"$f":"IF(C396=\"\",\"\",HLOOKUP(C396,'MHP Family Income & Rent Limits'!$E$12:$L$26,10,FALSE))","v":""},{"$f":"IF(C396=\"\",\"\",HLOOKUP(C396,'MHP Family Income & Rent Limits'!$E$12:$L$26,11,FALSE))","v":""},{"$f":"IF(C396=\"\",\"\",HLOOKUP(C396,'MHP Family Income & Rent Limits'!$E$12:$L$26,12,FALSE))","v":""},{"$f":"IF(C396=\"\",\"\",HLOOKUP(C396,'MHP Family Income & Rent Limits'!$E$12:$L$26,13,FALSE))","v":""},{"$f":"IF(C396=\"\",\"\",HLOOKUP(C396,'MHP Family Income & Rent Limits'!$E$12:$L$26,14,FALSE))","v":""},{"$f":"IF(C396=\"\",\"\",HLOOKUP(C396,'MHP Family Income & Rent Limits'!$E$12:$L$26,15,FALSE))","v":""}]
[{"$f":"IF('2. Assisted & Restricted Units'!A397=\"\",\"\",'2. Assisted & Restricted Units'!A397)","v":""},{"$f":"IF('2. Assisted & Restricted Units'!B397=\"\",\"\",'2. Assisted & Restricted Units'!B397)","v":""},{"$f":"IF('2. Assisted & Restricted Units'!D397=\"\",\"\",'2. Assisted & Restricted Units'!D397)","v":""},{"$f":"IF('2. Assisted & Restricted Units'!E397=\"\",\"\",'2. Assisted & Restricted Units'!E397)","v":""},{"$f":"IF('2. Assisted & Restricted Units'!H397=\"\",\"\",'2. Assisted & Restricted Units'!H397)","v":""},{"$f":"_xlfn.IFS(E397=\"\",\"\",E397>BO397,$BP$6,E397>BN397,$BO$6,E397>BM397,$BN$6,E397>BL397,$BM$6,E397>BK397,$BL$6,E397>BJ397,$BK$6,E397>BI397,$BJ$6,E397>BH397,$BI$6,E397>BG397,$BH$6,E397>BF397,$BG$6,E397>BE397,$BF$6,E397>BD397,$BE$6,E397>BC397,$BD$6,E397>=0,$BC$6)","v":""},{"$f":"IF('2. Assisted & Restricted Units'!T397=\"\",\"\",'2. Assisted & Restricted Units'!T397)","v":""},{"$f":"IF('2. Assisted & Restricted Units'!I397=\"\",\"\",'2. Assisted & Restricted Units'!I397)","v":""},{"$f":"IF('2. Assisted & Restricted Units'!AP397=\"\",\"\",'2. Assisted & Restricted Units'!AP397)","v":0},{"$f":"IF('2. Assisted & Restricted Units'!AT397=\"\",\"\",'2. Assisted & Restricted Units'!AT397)","v":""},0,{"$f":"IF('2. Assisted & Restricted Units'!AV397=\"\",\"\",'2. Assisted & Restricted Units'!AV397)","v":""},{"$f":"IF('2. Assisted & Restricted Units'!L397=\"\",\"\",'2. Assisted & Restricted Units'!L397)","v":""},{"$f":"IF('2. Assisted & Restricted Units'!M397=\"\",\"\",'2. Assisted & Restricted Units'!M397)","v":""},{"$f":"IF('2. Assisted & Restricted Units'!O397=\"\",\"\",'2. Assisted & Restricted Units'!O397)","v":""},{"$f":"IF('2. Assisted & Restricted Units'!P397=\"\",\"\",'2. Assisted & Restricted Units'!P397)","v":""},{"$f":"IF('2. Assisted & Restricted Units'!Q397=\"\",\"\",'2. Assisted & Restricted Units'!Q397)","v":""},{"$f":"IF('2. Assisted & Restricted Units'!R397=\"\",\"\",'2. Assisted & Restricted Units'!R397)","v":""},{"$f":"IF(A397=\"\",\"\",'1. Checklist & Certification'!$K$1)","v":""},{"$f":"IF(A397=\"\",\"\",'1. Checklist & Certification'!$C$62)","v":""},{"$f":"IF(A397=\"\",\"\",'1. Checklist & Certification'!$K$62)","v":""},{"$f":"IF(A397=\"\",\"\",'1. Checklist & Certification'!$C$6)","v":""},{"$f":"IF(A397=\"\",\"\",'1. Checklist & Certification'!$G$4)","v":""},{"$f":"IF(A397=\"\",\"\",'1. Checklist & Certification'!$C$7)","v":""},{"$f":"IF(A397=\"\",\"\",'1. Checklist & Certification'!$C$8)","v":""},{"$f":"IF(A397=\"\",\"\",'1. Checklist & Certification'!$F$7)","v":""},{"$f":"IF(A397=\"\",\"\",'1. Checklist & Certification'!$F$8)","v":""},{"$f":"IF(A397=\"\",\"\",'1. Checklist & Certification'!$B$9)","v":""},{"$f":"IF(A397=\"\",\"\",'1. Checklist & Certification'!$F$9)","v":""},{"$f":"IF(A397=\"\",\"\",'1. Checklist & Certification'!$C$10)","v":""},{"$f":"IF(A397=\"\",\"\",'1. Checklist & Certification'!$C$11)","v":""},{"$f":"IF(A397=\"\",\"\",'1. Checklist & Certification'!$C$12)","v":""},{"$f":"IF(A397=\"\",\"\",'1. Checklist & Certification'!$B$14)","v":""},{"$f":"IF(A397=\"\",\"\",'1. Checklist & Certification'!$E$14)","v":""},{"$f":"IF(B397=\"\",\"\",'1. Checklist & Certification'!$G$14)","v":""},{"$f":"IF(A397=\"\",\"\",'MHP Family Income & Rent Limits'!$B$3)","v":""},{"$f":"IF(A397=\"\",\"\",'MHP Family Income & Rent Limits'!$J$3)","v":""},{"$f":"IF(A397=\"\",\"\",'MHP Family Income & Rent Limits'!$E$4)","v":""},{"$f":"IF(A397=\"\",\"\",'MHP Family Income & Rent Limits'!$C$7)","v":""},{"$f":"IF(A397=\"\",\"\",'MHP Family Income & Rent Limits'!$F$8)","v":""},{"$f":"IF(A397=\"\",\"\",'1. Checklist & Certification'!$G$4)","v":""},{"$f":"IF(A397=\"\",\"\",'1. Checklist & Certification'!$K$39)","v":""},{"$f":"IF(A397=\"\",\"\",'1. Checklist & Certification'!$K$43)","v":""},{"$f":"IF(A397=\"\",\"\",'1. Checklist & Certification'!$K$45)","v":""},{"$f":"IF(A397=\"\",\"\",'1. Checklist & Certification'!$K$49)","v":""},{"$f":"IF(A397=\"\",\"\",'1. Checklist & Certification'!$E$66)","v":""},{"$f":"IF(A397=\"\",\"\",'1. Checklist & Certification'!$E$67)","v":""},{"$f":"IF(A397=\"\",\"\",'1. Checklist & Certification'!$E$68)","v":""},{"$f":"IF(A397=\"\",\"\",'1. Checklist & Certification'!$G$66)","v":""},{"$f":"IF(A397=\"\",\"\",'1. Checklist & Certification'!$H$66)","v":""},{"$f":"IF(A397=\"\",\"\",'1. Checklist & Certification'!$I$66)","v":""},{"$f":"IF(A397=\"\",\"\",'1. Checklist & Certification'!$I$67)","v":""},{"$f":"IF(A397=\"\",\"\",'1. Checklist & Certification'!$I$68)","v":""},null,{"$f":"IF(C397=\"\",\"\",HLOOKUP(C397,'MHP Family Income & Rent Limits'!$E$12:$L$26,2,FALSE))","v":""},{"$f":"IF(C397=\"\",\"\",HLOOKUP(C397,'MHP Family Income & Rent Limits'!$E$12:$L$26,3,FALSE))","v":""},{"$f":"IF(C397=\"\",\"\",HLOOKUP(C397,'MHP Family Income & Rent Limits'!$E$12:$L$26,4,FALSE))","v":""},{"$f":"IF(C397=\"\",\"\",HLOOKUP(C397,'MHP Family Income & Rent Limits'!$E$12:$L$26,5,FALSE))","v":""},{"$f":"IF(C397=\"\",\"\",HLOOKUP(C397,'MHP Family Income & Rent Limits'!$E$12:$L$26,6,FALSE))","v":""},{"$f":"IF(C397=\"\",\"\",HLOOKUP(C397,'MHP Family Income & Rent Limits'!$E$12:$L$26,7,FALSE))","v":""},{"$f":"IF(C397=\"\",\"\",HLOOKUP(C397,'MHP Family Income & Rent Limits'!$E$12:$L$26,8,FALSE))","v":""},{"$f":"IF(C397=\"\",\"\",HLOOKUP(C397,'MHP Family Income & Rent Limits'!$E$12:$L$26,9,FALSE))","v":""},{"$f":"IF(C397=\"\",\"\",HLOOKUP(C397,'MHP Family Income & Rent Limits'!$E$12:$L$26,10,FALSE))","v":""},{"$f":"IF(C397=\"\",\"\",HLOOKUP(C397,'MHP Family Income & Rent Limits'!$E$12:$L$26,11,FALSE))","v":""},{"$f":"IF(C397=\"\",\"\",HLOOKUP(C397,'MHP Family Income & Rent Limits'!$E$12:$L$26,12,FALSE))","v":""},{"$f":"IF(C397=\"\",\"\",HLOOKUP(C397,'MHP Family Income & Rent Limits'!$E$12:$L$26,13,FALSE))","v":""},{"$f":"IF(C397=\"\",\"\",HLOOKUP(C397,'MHP Family Income & Rent Limits'!$E$12:$L$26,14,FALSE))","v":""},{"$f":"IF(C397=\"\",\"\",HLOOKUP(C397,'MHP Family Income & Rent Limits'!$E$12:$L$26,15,FALSE))","v":""}]
[{"$f":"IF('2. Assisted & Restricted Units'!A398=\"\",\"\",'2. Assisted & Restricted Units'!A398)","v":""},{"$f":"IF('2. Assisted & Restricted Units'!B398=\"\",\"\",'2. Assisted & Restricted Units'!B398)","v":""},{"$f":"IF('2. Assisted & Restricted Units'!D398=\"\",\"\",'2. Assisted & Restricted Units'!D398)","v":""},{"$f":"IF('2. Assisted & Restricted Units'!E398=\"\",\"\",'2. Assisted & Restricted Units'!E398)","v":""},{"$f":"IF('2. Assisted & Restricted Units'!H398=\"\",\"\",'2. Assisted & Restricted Units'!H398)","v":""},{"$f":"_xlfn.IFS(E398=\"\",\"\",E398>BO398,$BP$6,E398>BN398,$BO$6,E398>BM398,$BN$6,E398>BL398,$BM$6,E398>BK398,$BL$6,E398>BJ398,$BK$6,E398>BI398,$BJ$6,E398>BH398,$BI$6,E398>BG398,$BH$6,E398>BF398,$BG$6,E398>BE398,$BF$6,E398>BD398,$BE$6,E398>BC398,$BD$6,E398>=0,$BC$6)","v":""},{"$f":"IF('2. Assisted & Restricted Units'!T398=\"\",\"\",'2. Assisted & Restricted Units'!T398)","v":""},{"$f":"IF('2. Assisted & Restricted Units'!I398=\"\",\"\",'2. Assisted & Restricted Units'!I398)","v":""},{"$f":"IF('2. Assisted & Restricted Units'!AP398=\"\",\"\",'2. Assisted & Restricted Units'!AP398)","v":0},{"$f":"IF('2. Assisted & Restricted Units'!AT398=\"\",\"\",'2. Assisted & Restricted Units'!AT398)","v":""},0,{"$f":"IF('2. Assisted & Restricted Units'!AV398=\"\",\"\",'2. Assisted & Restricted Units'!AV398)","v":""},{"$f":"IF('2. Assisted & Restricted Units'!L398=\"\",\"\",'2. Assisted & Restricted Units'!L398)","v":""},{"$f":"IF('2. Assisted & Restricted Units'!M398=\"\",\"\",'2. Assisted & Restricted Units'!M398)","v":""},{"$f":"IF('2. Assisted & Restricted Units'!O398=\"\",\"\",'2. Assisted & Restricted Units'!O398)","v":""},{"$f":"IF('2. Assisted & Restricted Units'!P398=\"\",\"\",'2. Assisted & Restricted Units'!P398)","v":""},{"$f":"IF('2. Assisted & Restricted Units'!Q398=\"\",\"\",'2. Assisted & Restricted Units'!Q398)","v":""},{"$f":"IF('2. Assisted & Restricted Units'!R398=\"\",\"\",'2. Assisted & Restricted Units'!R398)","v":""},{"$f":"IF(A398=\"\",\"\",'1. Checklist & Certification'!$K$1)","v":""},{"$f":"IF(A398=\"\",\"\",'1. Checklist & Certification'!$C$62)","v":""},{"$f":"IF(A398=\"\",\"\",'1. Checklist & Certification'!$K$62)","v":""},{"$f":"IF(A398=\"\",\"\",'1. Checklist & Certification'!$C$6)","v":""},{"$f":"IF(A398=\"\",\"\",'1. Checklist & Certification'!$G$4)","v":""},{"$f":"IF(A398=\"\",\"\",'1. Checklist & Certification'!$C$7)","v":""},{"$f":"IF(A398=\"\",\"\",'1. Checklist & Certification'!$C$8)","v":""},{"$f":"IF(A398=\"\",\"\",'1. Checklist & Certification'!$F$7)","v":""},{"$f":"IF(A398=\"\",\"\",'1. Checklist & Certification'!$F$8)","v":""},{"$f":"IF(A398=\"\",\"\",'1. Checklist & Certification'!$B$9)","v":""},{"$f":"IF(A398=\"\",\"\",'1. Checklist & Certification'!$F$9)","v":""},{"$f":"IF(A398=\"\",\"\",'1. Checklist & Certification'!$C$10)","v":""},{"$f":"IF(A398=\"\",\"\",'1. Checklist & Certification'!$C$11)","v":""},{"$f":"IF(A398=\"\",\"\",'1. Checklist & Certification'!$C$12)","v":""},{"$f":"IF(A398=\"\",\"\",'1. Checklist & Certification'!$B$14)","v":""},{"$f":"IF(A398=\"\",\"\",'1. Checklist & Certification'!$E$14)","v":""},{"$f":"IF(B398=\"\",\"\",'1. Checklist & Certification'!$G$14)","v":""},{"$f":"IF(A398=\"\",\"\",'MHP Family Income & Rent Limits'!$B$3)","v":""},{"$f":"IF(A398=\"\",\"\",'MHP Family Income & Rent Limits'!$J$3)","v":""},{"$f":"IF(A398=\"\",\"\",'MHP Family Income & Rent Limits'!$E$4)","v":""},{"$f":"IF(A398=\"\",\"\",'MHP Family Income & Rent Limits'!$C$7)","v":""},{"$f":"IF(A398=\"\",\"\",'MHP Family Income & Rent Limits'!$F$8)","v":""},{"$f":"IF(A398=\"\",\"\",'1. Checklist & Certification'!$G$4)","v":""},{"$f":"IF(A398=\"\",\"\",'1. Checklist & Certification'!$K$39)","v":""},{"$f":"IF(A398=\"\",\"\",'1. Checklist & Certification'!$K$43)","v":""},{"$f":"IF(A398=\"\",\"\",'1. Checklist & Certification'!$K$45)","v":""},{"$f":"IF(A398=\"\",\"\",'1. Checklist & Certification'!$K$49)","v":""},{"$f":"IF(A398=\"\",\"\",'1. Checklist & Certification'!$E$66)","v":""},{"$f":"IF(A398=\"\",\"\",'1. Checklist & Certification'!$E$67)","v":""},{"$f":"IF(A398=\"\",\"\",'1. Checklist & Certification'!$E$68)","v":""},{"$f":"IF(A398=\"\",\"\",'1. Checklist & Certification'!$G$66)","v":""},{"$f":"IF(A398=\"\",\"\",'1. Checklist & Certification'!$H$66)","v":""},{"$f":"IF(A398=\"\",\"\",'1. Checklist & Certification'!$I$66)","v":""},{"$f":"IF(A398=\"\",\"\",'1. Checklist & Certification'!$I$67)","v":""},{"$f":"IF(A398=\"\",\"\",'1. Checklist & Certification'!$I$68)","v":""},null,{"$f":"IF(C398=\"\",\"\",HLOOKUP(C398,'MHP Family Income & Rent Limits'!$E$12:$L$26,2,FALSE))","v":""},{"$f":"IF(C398=\"\",\"\",HLOOKUP(C398,'MHP Family Income & Rent Limits'!$E$12:$L$26,3,FALSE))","v":""},{"$f":"IF(C398=\"\",\"\",HLOOKUP(C398,'MHP Family Income & Rent Limits'!$E$12:$L$26,4,FALSE))","v":""},{"$f":"IF(C398=\"\",\"\",HLOOKUP(C398,'MHP Family Income & Rent Limits'!$E$12:$L$26,5,FALSE))","v":""},{"$f":"IF(C398=\"\",\"\",HLOOKUP(C398,'MHP Family Income & Rent Limits'!$E$12:$L$26,6,FALSE))","v":""},{"$f":"IF(C398=\"\",\"\",HLOOKUP(C398,'MHP Family Income & Rent Limits'!$E$12:$L$26,7,FALSE))","v":""},{"$f":"IF(C398=\"\",\"\",HLOOKUP(C398,'MHP Family Income & Rent Limits'!$E$12:$L$26,8,FALSE))","v":""},{"$f":"IF(C398=\"\",\"\",HLOOKUP(C398,'MHP Family Income & Rent Limits'!$E$12:$L$26,9,FALSE))","v":""},{"$f":"IF(C398=\"\",\"\",HLOOKUP(C398,'MHP Family Income & Rent Limits'!$E$12:$L$26,10,FALSE))","v":""},{"$f":"IF(C398=\"\",\"\",HLOOKUP(C398,'MHP Family Income & Rent Limits'!$E$12:$L$26,11,FALSE))","v":""},{"$f":"IF(C398=\"\",\"\",HLOOKUP(C398,'MHP Family Income & Rent Limits'!$E$12:$L$26,12,FALSE))","v":""},{"$f":"IF(C398=\"\",\"\",HLOOKUP(C398,'MHP Family Income & Rent Limits'!$E$12:$L$26,13,FALSE))","v":""},{"$f":"IF(C398=\"\",\"\",HLOOKUP(C398,'MHP Family Income & Rent Limits'!$E$12:$L$26,14,FALSE))","v":""},{"$f":"IF(C398=\"\",\"\",HLOOKUP(C398,'MHP Family Income & Rent Limits'!$E$12:$L$26,15,FALSE))","v":""}]
[{"$f":"IF('2. Assisted & Restricted Units'!A399=\"\",\"\",'2. Assisted & Restricted Units'!A399)","v":""},{"$f":"IF('2. Assisted & Restricted Units'!B399=\"\",\"\",'2. Assisted & Restricted Units'!B399)","v":""},{"$f":"IF('2. Assisted & Restricted Units'!D399=\"\",\"\",'2. Assisted & Restricted Units'!D399)","v":""},{"$f":"IF('2. Assisted & Restricted Units'!E399=\"\",\"\",'2. Assisted & Restricted Units'!E399)","v":""},{"$f":"IF('2. Assisted & Restricted Units'!H399=\"\",\"\",'2. Assisted & Restricted Units'!H399)","v":""},{"$f":"_xlfn.IFS(E399=\"\",\"\",E399>BO399,$BP$6,E399>BN399,$BO$6,E399>BM399,$BN$6,E399>BL399,$BM$6,E399>BK399,$BL$6,E399>BJ399,$BK$6,E399>BI399,$BJ$6,E399>BH399,$BI$6,E399>BG399,$BH$6,E399>BF399,$BG$6,E399>BE399,$BF$6,E399>BD399,$BE$6,E399>BC399,$BD$6,E399>=0,$BC$6)","v":""},{"$f":"IF('2. Assisted & Restricted Units'!T399=\"\",\"\",'2. Assisted & Restricted Units'!T399)","v":""},{"$f":"IF('2. Assisted & Restricted Units'!I399=\"\",\"\",'2. Assisted & Restricted Units'!I399)","v":""},{"$f":"IF('2. Assisted & Restricted Units'!AP399=\"\",\"\",'2. Assisted & Restricted Units'!AP399)","v":0},{"$f":"IF('2. Assisted & Restricted Units'!AT399=\"\",\"\",'2. Assisted & Restricted Units'!AT399)","v":""},0,{"$f":"IF('2. Assisted & Restricted Units'!AV399=\"\",\"\",'2. Assisted & Restricted Units'!AV399)","v":""},{"$f":"IF('2. Assisted & Restricted Units'!L399=\"\",\"\",'2. Assisted & Restricted Units'!L399)","v":""},{"$f":"IF('2. Assisted & Restricted Units'!M399=\"\",\"\",'2. Assisted & Restricted Units'!M399)","v":""},{"$f":"IF('2. Assisted & Restricted Units'!O399=\"\",\"\",'2. Assisted & Restricted Units'!O399)","v":""},{"$f":"IF('2. Assisted & Restricted Units'!P399=\"\",\"\",'2. Assisted & Restricted Units'!P399)","v":""},{"$f":"IF('2. Assisted & Restricted Units'!Q399=\"\",\"\",'2. Assisted & Restricted Units'!Q399)","v":""},{"$f":"IF('2. Assisted & Restricted Units'!R399=\"\",\"\",'2. Assisted & Restricted Units'!R399)","v":""},{"$f":"IF(A399=\"\",\"\",'1. Checklist & Certification'!$K$1)","v":""},{"$f":"IF(A399=\"\",\"\",'1. Checklist & Certification'!$C$62)","v":""},{"$f":"IF(A399=\"\",\"\",'1. Checklist & Certification'!$K$62)","v":""},{"$f":"IF(A399=\"\",\"\",'1. Checklist & Certification'!$C$6)","v":""},{"$f":"IF(A399=\"\",\"\",'1. Checklist & Certification'!$G$4)","v":""},{"$f":"IF(A399=\"\",\"\",'1. Checklist & Certification'!$C$7)","v":""},{"$f":"IF(A399=\"\",\"\",'1. Checklist & Certification'!$C$8)","v":""},{"$f":"IF(A399=\"\",\"\",'1. Checklist & Certification'!$F$7)","v":""},{"$f":"IF(A399=\"\",\"\",'1. Checklist & Certification'!$F$8)","v":""},{"$f":"IF(A399=\"\",\"\",'1. Checklist & Certification'!$B$9)","v":""},{"$f":"IF(A399=\"\",\"\",'1. Checklist & Certification'!$F$9)","v":""},{"$f":"IF(A399=\"\",\"\",'1. Checklist & Certification'!$C$10)","v":""},{"$f":"IF(A399=\"\",\"\",'1. Checklist & Certification'!$C$11)","v":""},{"$f":"IF(A399=\"\",\"\",'1. Checklist & Certification'!$C$12)","v":""},{"$f":"IF(A399=\"\",\"\",'1. Checklist & Certification'!$B$14)","v":""},{"$f":"IF(A399=\"\",\"\",'1. Checklist & Certification'!$E$14)","v":""},{"$f":"IF(B399=\"\",\"\",'1. Checklist & Certification'!$G$14)","v":""},{"$f":"IF(A399=\"\",\"\",'MHP Family Income & Rent Limits'!$B$3)","v":""},{"$f":"IF(A399=\"\",\"\",'MHP Family Income & Rent Limits'!$J$3)","v":""},{"$f":"IF(A399=\"\",\"\",'MHP Family Income & Rent Limits'!$E$4)","v":""},{"$f":"IF(A399=\"\",\"\",'MHP Family Income & Rent Limits'!$C$7)","v":""},{"$f":"IF(A399=\"\",\"\",'MHP Family Income & Rent Limits'!$F$8)","v":""},{"$f":"IF(A399=\"\",\"\",'1. Checklist & Certification'!$G$4)","v":""},{"$f":"IF(A399=\"\",\"\",'1. Checklist & Certification'!$K$39)","v":""},{"$f":"IF(A399=\"\",\"\",'1. Checklist & Certification'!$K$43)","v":""},{"$f":"IF(A399=\"\",\"\",'1. Checklist & Certification'!$K$45)","v":""},{"$f":"IF(A399=\"\",\"\",'1. Checklist & Certification'!$K$49)","v":""},{"$f":"IF(A399=\"\",\"\",'1. Checklist & Certification'!$E$66)","v":""},{"$f":"IF(A399=\"\",\"\",'1. Checklist & Certification'!$E$67)","v":""},{"$f":"IF(A399=\"\",\"\",'1. Checklist & Certification'!$E$68)","v":""},{"$f":"IF(A399=\"\",\"\",'1. Checklist & Certification'!$G$66)","v":""},{"$f":"IF(A399=\"\",\"\",'1. Checklist & Certification'!$H$66)","v":""},{"$f":"IF(A399=\"\",\"\",'1. Checklist & Certification'!$I$66)","v":""},{"$f":"IF(A399=\"\",\"\",'1. Checklist & Certification'!$I$67)","v":""},{"$f":"IF(A399=\"\",\"\",'1. Checklist & Certification'!$I$68)","v":""},null,{"$f":"IF(C399=\"\",\"\",HLOOKUP(C399,'MHP Family Income & Rent Limits'!$E$12:$L$26,2,FALSE))","v":""},{"$f":"IF(C399=\"\",\"\",HLOOKUP(C399,'MHP Family Income & Rent Limits'!$E$12:$L$26,3,FALSE))","v":""},{"$f":"IF(C399=\"\",\"\",HLOOKUP(C399,'MHP Family Income & Rent Limits'!$E$12:$L$26,4,FALSE))","v":""},{"$f":"IF(C399=\"\",\"\",HLOOKUP(C399,'MHP Family Income & Rent Limits'!$E$12:$L$26,5,FALSE))","v":""},{"$f":"IF(C399=\"\",\"\",HLOOKUP(C399,'MHP Family Income & Rent Limits'!$E$12:$L$26,6,FALSE))","v":""},{"$f":"IF(C399=\"\",\"\",HLOOKUP(C399,'MHP Family Income & Rent Limits'!$E$12:$L$26,7,FALSE))","v":""},{"$f":"IF(C399=\"\",\"\",HLOOKUP(C399,'MHP Family Income & Rent Limits'!$E$12:$L$26,8,FALSE))","v":""},{"$f":"IF(C399=\"\",\"\",HLOOKUP(C399,'MHP Family Income & Rent Limits'!$E$12:$L$26,9,FALSE))","v":""},{"$f":"IF(C399=\"\",\"\",HLOOKUP(C399,'MHP Family Income & Rent Limits'!$E$12:$L$26,10,FALSE))","v":""},{"$f":"IF(C399=\"\",\"\",HLOOKUP(C399,'MHP Family Income & Rent Limits'!$E$12:$L$26,11,FALSE))","v":""},{"$f":"IF(C399=\"\",\"\",HLOOKUP(C399,'MHP Family Income & Rent Limits'!$E$12:$L$26,12,FALSE))","v":""},{"$f":"IF(C399=\"\",\"\",HLOOKUP(C399,'MHP Family Income & Rent Limits'!$E$12:$L$26,13,FALSE))","v":""},{"$f":"IF(C399=\"\",\"\",HLOOKUP(C399,'MHP Family Income & Rent Limits'!$E$12:$L$26,14,FALSE))","v":""},{"$f":"IF(C399=\"\",\"\",HLOOKUP(C399,'MHP Family Income & Rent Limits'!$E$12:$L$26,15,FALSE))","v":""}]
[{"$f":"COUNTA(A7:A399)","v":393},{"$f":"COUNTA(B7:B399)","v":393},null,{"$f":"COUNTA(D7:D399)","v":393},"Mo. Totals",null,{"$f":"COUNTA(G7:G399)","v":393},{"$f":"SUM(H7:H399)","v":0},{"$f":"SUM(I7:I399)","v":0},{"$f":"SUM(J7:J399)","v":0},{"$f":"SUM(K7:K399)","v":0},null,{"$f":"COUNTA(M7:M399)","v":393},393,393,393,393]
[null,null,null,null,null,"Ann. Totals",{"$f":"G400","v":393}]

{"sheet":"State Limits raw data","index":9,"n_rows":443,"n_cols":10,"rows_kept":443,"cut":false,"hidden":true,"merged":[[32,0,37,0],[2,0,2,9],[4,0,9,0],[11,0,16,0],[18,0,23,0],[25,0,30,0],[116,0,121,0],[39,0,44,0],[46,0,51,0],[53,0,58,0],[60,0,65,0],[67,0,72,0],[74,0,79,0],[81,0,86,0],[88,0,93,0],[95,0,100,0],[102,0,107,0],[109,0,114,0],[200,0,205,0],[123,0,128,0],[130,0,135,0],[137,0,142,0],[144,0,149,0],[151,0,156,0],[158,0,163,0],[165,0,170,0],[172,0,177,0],[179,0,184,0],[186,0,191,0],[193,0,198,0],[284,0,289,0],[207,0,212,0],[214,0,219,0],[221,0,226,0],[228,0,233,0],[235,0,240,0],[242,0,247,0],[249,0,254,0],[256,0,261,0],[263,0,268,0],[270,0,275,0],[277,0,282,0],[368,0,373,0],[291,0,296,0],[298,0,303,0],[305,0,310,0],[312,0,317,0],[319,0,324,0],[326,0,331,0],[333,0,338,0],[340,0,345,0],[347,0,352,0],[354,0,359,0],[361,0,366,0],[419,6,419,9],[442,0,442,9],[375,0,380,0],[382,0,387,0],[389,0,394,0],[396,0,401,0],[403,0,408,0],[419,0,419,4]]}
["Section 6932.  2024 Income Limits"]
[null,"Number of Persons in Household:",1,2,3,4,5,6,7,8]
["Last page instructs how to use income limits to determine applicant eligibility and calculate affordable housing cost and rent"]
[null,"Income Category"]
[{"$f":"\"Alameda County \nArea Median Income: \" &TEXT(F9,\"$#,##0\")","v":"Alameda County \nArea Median Income: $155,700"},"Acutely Low",16350,18700,21000,23350,25200,27100,28950,30800]
[null,"Extremely Low",32700,37400,42050,46700,50450,54200,57950,61650]
[null,"Very Low Income",54500,62300,70100,77850,84100,90350,96550,102800]
[null,"Low Income",84600,96650,108750,120800,130500,140150,149800,159500]
[null,"Median Income",109000,124550,140150,155700,168150,180600,193050,205500]
[null,"Moderate Income",130800,149500,168150,186850,201800,216750,231700,246650]
[]
[{"$f":"\"Alpine County \nArea Median Income: \" &TEXT(F16,\"$#,##0\")","v":"Alpine County \nArea Median Income: $119,300"},"Acutely Low",12550,14300,16100,17900,19350,20750,22200,23650]
[null,"Extremely Low",22200,25400,28550,31700,36580,41960,47340,52720]
[null,"Very Low Income",37000,42250,47550,52850,57050,61300,65550,69750]
[null,"Low Income",59200,67650,76100,84550,91350,98100,104850,111650]
[null,"Median Income",83500,95450,107350,119300,128850,138400,147950,157500]
[null,"Moderate Income",100200,114500,128850,143150,154600,166050,177500,188950]
[]
[{"$f":"\"Amador County \nArea Median Income: \" &TEXT(F23,\"$#,##0\")","v":"Amador County \nArea Median Income: $101,900"},"Acutely Low",10700,12250,13750,15300,16500,17750,18950,20200]
[null,"Extremely Low",21200,24200,27250,31200,36580,41960,47340,52720]
[null,"Very Low Income",35300,40350,45400,50400,54450,58500,62500,66550]
[null,"Low Income",56450,64550,72600,80650,87150,93600,100050,106500]
[null,"Median Income",71350,81500,91700,101900,110050,118200,126350,134500]
[null,"Moderate Income",85600,97850,110050,122300,132100,141850,151650,161450]
[]
[{"$f":"\"Butte County \nArea Median Income: \" &TEXT(F30,\"$#,##0\")","v":"Butte County \nArea Median Income: $96,600"},"Acutely Low",10150,11600,13050,14500,15650,16800,18000,19150]
[null,"Extremely Low",19050,21800,25820,31200,36580,41960,47340,52720]
[null,"Very Low Income",31750,36300,40850,45350,49000,52600,56250,59850]
[null,"Low Income",50750,58000,65250,72500,78300,84100,89900,95700]
[null,"Median Income",67600,77300,86950,96600,104350,112050,119800,127500]
[null,"Moderate Income",81150,92700,104300,115900,125150,134450,143700,153000]
[]
[{"$f":"\"Calaveras County \nArea Median Income: \" &TEXT(F37,\"$#,##0\")","v":"Calaveras County \nArea Median Income: $96,200"},"Acutely Low",10100,11550,13000,14450,15600,16750,17900,19050]
[null,"Extremely Low",20050,22900,25820,31200,36580,41960,47340,52720]
[null,"Very Low Income",33400,38150,42900,47650,51500,55300,59100,62900]
[null,"Low Income",53400,61000,68650,76250,82350,88450,94550,100650]
[null,"Median Income",67350,76950,86600,96200,103900,111600,119300,127000]
[null,"Moderate Income",80800,92350,103900,115450,124700,133900,143150,152400]
[]
[{"$f":"\"Colusa County \nArea Median Income: \" &TEXT(F44,\"$#,##0\")","v":"Colusa County \nArea Median Income: $87,900"},"Acutely Low",9250,10550,11900,13200,14250,15300,16350,17400]
[null,"Extremely Low",18450,21100,25820,31200,36580,41960,47340,52720]
[null,"Very Low Income",30800,35200,39600,43950,47500,51000,54500,58050]
[null,"Low Income",49250,56250,63300,70300,75950,81550,87200,92800]
[null,"Median Income",61550,70300,79100,87900,94950,101950,109000,116050]
[null,"Moderate Income",73850,84400,94950,105500,113950,122400,130800,139250]
[]
[{"$f":"\"Contra Costa County \nArea Median Income: \" &TEXT(F51,\"$#,##0\")","v":"Contra Costa County \nArea Median Income: $155,700"},"Acutely Low",16350,18700,21000,23350,25200,27100,28950,30800]
[null,"Extremely Low",32700,37400,42050,46700,50450,54200,57950,61650]
[null,"Very Low Income",54500,62300,70100,77850,84100,90350,96550,102800]
[null,"Low Income",84600,96650,108750,120800,130500,140150,149800,159500]
[null,"Median Income",109000,124550,140150,155700,168150,180600,193050,205500]
[null,"Moderate Income",130800,149500,168150,186850,201800,216750,231700,246650]
[]
[{"$f":"\"Del Norte County \nArea Median Income: \" &TEXT(F58,\"$#,##0\")","v":"Del Norte County \nArea Median Income: $87,900"},"Acutely Low",9250,10550,11900,13200,14250,15300,16350,17400]
[null,"Extremely Low",18450,21100,25820,31200,36580,41960,47340,52720]
[null,"Very Low Income",30800,35200,39600,43950,47500,51000,54500,58050]
[null,"Low Income",49250,56250,63300,70300,75950,81550,87200,92800]
[null,"Median Income",61550,70300,79100,87900,94950,101950,109000,116050]
[null,"Moderate Income",73850,84400,94950,105500,113950,122400,130800,139250]
[]
[{"$f":"\"El Dorado County \nArea Median Income: \" &TEXT(F65,\"$#,##0\")","v":"El Dorado County \nArea Median Income: $113,900"},"Acutely Low",11950,13700,15400,17100,18450,19850,21200,22550]
[null,"Extremely Low",24750,28300,31850,35350,38200,41960,47340,52720]
[null,"Very Low Income",41300,47150,53050,58950,63650,68400,73100,77850]
[null,"Low Income",66050,75450,84900,94300,101850,109400,116950,124500]
[null,"Median Income",79750,91100,102500,113900,123000,132100,141250,150350]
[null,"Moderate Income",95700,109350,123050,136700,147650,158550,169500,180450]
[]
[{"$f":"\"Fresno County \nArea Median Income: \" &TEXT(F72,\"$#,##0\")","v":"Fresno County \nArea Median Income: $87,900"},"Acutely Low",9250,10550,11900,13200,14250,15300,16350,17400]
[null,"Extremely Low",18450,21100,25820,31200,36580,41960,47340,52720]
[null,"Very Low Income",30800,35200,39600,43950,47500,51000,54500,58050]
[null,"Low Income",49250,56250,63300,70300,75950,81550,87200,92800]
[null,"Median Income",61550,70300,79100,87900,94950,101950,109000,116050]
[null,"Moderate Income",73850,84400,94950,105500,113950,122400,130800,139250]
[]
[{"$f":"\"Glenn County \nArea Median Income: \" &TEXT(F79,\"$#,##0\")","v":"Glenn County \nArea Median Income: $87,900"},"Acutely Low",9250,10550,11900,13200,14250,15300,16350,17400]
[null,"Extremely Low",18450,21100,25820,31200,36580,41960,47340,52720]
[null,"Very Low Income",30800,35200,39600,43950,47500,51000,54500,58050]
[null,"Low Income",49250,56250,63300,70300,75950,81550,87200,92800]
[null,"Median Income",61550,70300,79100,87900,94950,101950,109000,116050]
[null,"Moderate Income",73850,84400,94950,105500,113950,122400,130800,139250]
[]
[{"$f":"\"Humboldt County \nArea Median Income: \" &TEXT(F86,\"$#,##0\")","v":"Humboldt County \nArea Median Income: $88,300"},"Acutely Low",9300,10600,11950,13250,14300,15350,16450,17500]
[null,"Extremely Low",18550,21200,25820,31200,36580,41960,47340,52720]
[null,"Very Low Income",30950,35350,39750,44150,47700,51250,54750,58300]
[null,"Low Income",49500,56550,63600,70650,76350,82000,87650,93300]
[null,"Median Income",61800,70650,79450,88300,95350,102450,109500,116550]
[null,"Moderate Income",74150,84750,95350,105950,114450,122900,131400,139850]
[]
[{"$f":"\"Imperial County \nArea Median Income: \" &TEXT(F93,\"$#,##0\")","v":"Imperial County \nArea Median Income: $87,900"},"Acutely Low",9250,10550,11900,13200,14250,15300,16350,17400]
[null,"Extremely Low",18450,21100,25820,31200,36580,41960,47340,52720]
[null,"Very Low Income",30800,35200,39600,43950,47500,51000,54500,58050]
[null,"Low Income",49250,56250,63300,70300,75950,81550,87200,92800]
[null,"Median Income",61550,70300,79100,87900,94950,101950,109000,116050]
[null,"Moderate Income",73850,84400,94950,105500,113950,122400,130800,139250]
[]
[{"$f":"\"Inyo County \nArea Median Income: \" &TEXT(F100,\"$#,##0\")","v":"Inyo County \nArea Median Income: $87,900"},"Acutely Low",9250,10550,11900,13200,14250,15300,16350,17400]
[null,"Extremely Low",18450,21100,25820,31200,36580,41960,47340,52720]
[null,"Very Low Income",30800,35200,39600,43950,47500,51000,54500,58050]
[null,"Low Income",49250,56250,63300,70300,75950,81550,87200,92800]
[null,"Median Income",61550,70300,79100,87900,94950,101950,109000,116050]
[null,"Moderate Income",73850,84400,94950,105500,113950,122400,130800,139250]
[]
[{"$f":"\"Kern County \nArea Median Income: \" &TEXT(F107,\"$#,##0\")","v":"Kern County \nArea Median Income: $87,900"},"Acutely Low",9250,10550,11900,13200,14250,15300,16350,17400]
[null,"Extremely Low",18450,21100,25820,31200,36580,41960,47340,52720]
[null,"Very Low Income",30800,35200,39600,43950,47500,51000,54500,58050]
[null,"Low Income",49250,56250,63300,70300,75950,81550,87200,92800]
[null,"Median Income",61550,70300,79100,87900,94950,101950,109000,116050]
[null,"Moderate Income",73850,84400,94950,105500,113950,122400,130800,139250]
[]
[{"$f":"\"Kings County \nArea Median Income: \" &TEXT(F114,\"$#,##0\")","v":"Kings County \nArea Median Income: $87,900"},"Acutely Low",9250,10550,11900,13200,14250,15300,16350,17400]
[null,"Extremely Low",18450,21100,25820,31200,36580,41960,47340,52720]
[null,"Very Low Income",30800,35200,39600,43950,47500,51000,54500,58050]
[null,"Low Income",49250,56250,63300,70300,75950,81550,87200,92800]
[null,"Median Income",61550,70300,79100,87900,94950,101950,109000,116050]
[null,"Moderate Income",73850,84400,94950,105500,113950,122400,130800,139250]
[]
[{"$f":"\"Lake County \nArea Median Income: \" &TEXT(F121,\"$#,##0\")","v":"Lake County \nArea Median Income: $87,900"},"Acutely Low",9250,10550,11900,13200,14250,15300,16350,17400]
[null,"Extremely Low",18450,21100,25820,31200,36580,41960,47340,52720]
[null,"Very Low Income",30800,35200,39600,43950,47500,51000,54500,58050]
[null,"Low Income",49250,56250,63300,70300,75950,81550,87200,92800]
[null,"Median Income",61550,70300,79100,87900,94950,101950,109000,116050]
[null,"Moderate Income",73850,84400,94950,105500,113950,122400,130800,139250]
[]
[{"$f":"\"Lassen County \nArea Median Income: \" &TEXT(F128,\"$#,##0\")","v":"Lassen County \nArea Median Income: $87,900"},"Acutely Low",9250,10550,11900,13200,14250,15300,16350,17400]
[null,"Extremely Low",18450,21100,25820,31200,36580,41960,47340,52720]
[null,"Very Low Income",30800,35200,39600,43950,47500,51000,54500,58050]
[null,"Low Income",49250,56250,63300,70300,75950,81550,87200,92800]
[null,"Median Income",61550,70300,79100,87900,94950,101950,109000,116050]
[null,"Moderate Income",73850,84400,94950,105500,113950,122400,130800,139250]
[]
[{"$f":"\"Los Angeles County \nArea Median Income: \" &TEXT(F135,\"$#,##0\")","v":"Los Angeles County \nArea Median Income: $98,200"},"Acutely Low",10350,11800,13300,14750,15950,17100,18300,19450]
[null,"Extremely Low",29150,33300,37450,41600,44950,48300,51600,54950]
[null,"Very Low Income",48550,55450,62400,69350,74900,80450,86000,91550]
[null,"Low Income",77700,88800,99900,110950,119850,128750,137600,146500]
[null,"Median Income",68750,78550,88400,98200,106050,113900,121750,129600]
[null,"Moderate Income",82500,94300,106050,117850,127300,136700,146150,155550]
[]
[{"$f":"\"Madera County \nArea Median Income: \" &TEXT(F142,\"$#,##0\")","v":"Madera County \nArea Median Income: $87,900"},"Acutely Low",9250,10550,11900,13200,14250,15300,16350,17400]
[null,"Extremely Low",18450,21100,25820,31200,36580,41960,47340,52720]
[null,"Very Low Income",30800,35200,39600,43950,47500,51000,54500,58050]
[null,"Low Income",49250,56250,63300,70300,75950,81550,87200,92800]
[null,"Median Income",61550,70300,79100,87900,94950,101950,109000,116050]
[null,"Moderate Income",73850,84400,94950,105500,113950,122400,130800,139250]
[]
[{"$f":"\"Marin County \nArea Median Income: \" &TEXT(F149,\"$#,##0\")","v":"Marin County \nArea Median Income: $186,600"},"Acutely Low",19600,22400,25200,28000,30250,32500,34700,36950]
[null,"Extremely Low",41150,47000,52900,58750,63450,68150,72850,77550]
[null,"Very Low Income",68550,78350,88150,97900,105750,113600,121400,129250]
[null,"Low Income",109700,125350,141000,156650,169200,181750,194250,206800]
[null,"Median Income",130600,149300,167950,186600,201550,216450,231400,246300]
[null,"Moderate Income",156750,179100,201500,223900,241800,259700,277650,295550]
[]
[{"$f":"\"Mariposa County \nArea Median Income: \" &TEXT(F156,\"$#,##0\")","v":"Mariposa County \nArea Median Income: $87,900"},"Acutely Low",9250,10550,11900,13200,14250,15300,16350,17400]
[null,"Extremely Low",18450,21100,25820,31200,36580,41960,47340,52720]
[null,"Very Low Income",30800,35200,39600,43950,47500,51000,54500,58050]
[null,"Low Income",49250,56250,63300,70300,75950,81550,87200,92800]
[null,"Median Income",61550,70300,79100,87900,94950,101950,109000,116050]
[null,"Moderate Income",73850,84400,94950,105500,113950,122400,130800,139250]
[]
[{"$f":"\"Mendocino County \nArea Median Income: \" &TEXT(F163,\"$#,##0\")","v":"Mendocino County \nArea Median Income: $90,400"},"Acutely Low",9500,10850,12200,13550,14650,15700,16800,17900]
[null,"Extremely Low",19000,21700,25820,31200,36580,41960,47340,52720]
[null,"Very Low Income",31650,36200,40700,45200,48850,52450,56050,59700]
[null,"Low Income",50650,57850,65100,72300,78100,83900,89700,95450]
[null,"Median Income",63300,72300,81350,90400,97650,104850,112100,119350]
[null,"Moderate Income",75950,86800,97650,108500,117200,125850,134550,143200]
[]
[{"$f":"\"Merced County \nArea Median Income: \" &TEXT(F170,\"$#,##0\")","v":"Merced County \nArea Median Income: $87,900"},"Acutely Low",9250,10550,11900,13200,14250,15300,16350,17400]
[null,"Extremely Low",18450,21100,25820,31200,36580,41960,47340,52720]
[null,"Very Low Income",30800,35200,39600,43950,47500,51000,54500,58050]
[null,"Low Income",49250,56250,63300,70300,75950,81550,87200,92800]
[null,"Median Income",61550,70300,79100,87900,94950,101950,109000,116050]
[null,"Moderate Income",73850,84400,94950,105500,113950,122400,130800,139250]
[]
[{"$f":"\"Modoc County \nArea Median Income: \" &TEXT(F177,\"$#,##0\")","v":"Modoc County \nArea Median Income: $87,900"},"Acutely Low",9250,10550,11900,13200,14250,15300,16350,17400]
[null,"Extremely Low",18450,21100,25820,31200,36580,41960,47340,52720]
[null,"Very Low Income",30800,35200,39600,43950,47500,51000,54500,58050]
[null,"Low Income",49250,56250,63300,70300,75950,81550,87200,92800]
[null,"Median Income",61550,70300,79100,87900,94950,101950,109000,116050]
[null,"Moderate Income",73850,84400,94950,105500,113950,122400,130800,139250]
[]
[{"$f":"\"Mono County \nArea Median Income: \" &TEXT(F184,\"$#,##0\")","v":"Mono County \nArea Median Income: $105,900"},"Acutely Low",11150,12700,14300,15900,17150,18450,19700,21000]
[null,"Extremely Low",19650,22450,25820,31200,36580,41960,47340,52720]
[null,"Very Low Income",32700,37400,42050,46750,50450,54200,57950,61700]
[null,"Low Income",52350,59800,67300,74800,80750,86750,92750,98750]
[null,"Median Income",74150,84700,95300,105900,114350,122850,131300,139800]
[null,"Moderate Income",88950,101700,114400,127100,137250,147450,157600,167750]
[]
[{"$f":"\"Monterey County \nArea Median Income: \" &TEXT(F191,\"$#,##0\")","v":"Monterey County \nArea Median Income: $103,200"},"Acutely Low",10850,12400,13950,15500,16750,18000,19200,20450]
[null,"Extremely Low",27800,31800,35750,39700,42900,46100,49250,52720]
[null,"Very Low Income",46350,53000,59600,66200,71500,76800,82100,87400]
[null,"Low Income",74150,84800,95400,105950,114450,122950,131400,139900]
[null,"Median Income",72250,82550,92900,103200,111450,119700,127950,136200]
[null,"Moderate Income",86700,99100,111450,123850,133750,143650,153550,163500]
[]
[{"$f":"\"Napa County \nArea Median Income: \" &TEXT(F198,\"$#,##0\")","v":"Napa County \nArea Median Income: $129,600"},"Acutely Low",13600,15550,17500,19450,21000,22550,24100,25650]
[null,"Extremely Low",30850,35250,39650,44050,47600,51100,54650,58150]
[null,"Very Low Income",51400,58700,66100,73400,79300,85150,91050,96900]
[null,"Low Income",82150,93900,105650,117350,126750,136150,145550,154900]
[null,"Median Income",90700,103700,116650,129600,139950,150350,160700,171050]
[null,"Moderate Income",108850,124400,139950,155500,167950,180400,192800,205250]
[]
[{"$f":"\"Nevada County \nArea Median Income: \" &TEXT(F205,\"$#,##0\")","v":"Nevada County \nArea Median Income: $112,500"},"Acutely Low",11850,13500,15200,16900,18250,19600,20950,22300]
[null,"Extremely Low",21900,25000,28150,31250,36580,41960,47340,52720]
[null,"Very Low Income",36500,41700,46900,52100,56300,60450,64650,68800]
[null,"Low Income",58350,66700,75050,83350,90050,96700,103400,110050]
[null,"Median Income",78750,90000,101250,112500,121500,130500,139500,148500]
[null,"Moderate Income",94500,108000,121500,135000,145800,156600,167400,178200]
[]
[{"$f":"\"Orange County \nArea Median Income: \" &TEXT(F212,\"$#,##0\")","v":"Orange County \nArea Median Income: $129,000"},"Acutely Low",13550,15500,17400,19350,20900,22450,24000,25550]
[null,"Extremely Low",33150,37900,42650,47350,51150,54950,58750,62550]
[null,"Very Low Income",55250,63100,71050,78900,85250,91550,97850,104150]
[null,"Low Income",88400,101000,113650,126250,136350,146450,156550,166650]
[null,"Median Income",90300,103200,116100,129000,139300,149650,159950,170300]
[null,"Moderate Income",108350,123850,139300,154800,167200,179550,191950,204350]
[]
[{"$f":"\"Placer County \nArea Median Income: \" &TEXT(F219,\"$#,##0\")","v":"Placer County \nArea Median Income: $113,900"},"Acutely Low",11950,13700,15400,17100,18450,19850,21200,22550]
[null,"Extremely Low",24750,28300,31850,35350,38200,41960,47340,52720]
[null,"Very Low Income",41300,47150,53050,58950,63650,68400,73100,77850]
[null,"Low Income",66050,75450,84900,94300,101850,109400,116950,124500]
[null,"Median Income",79750,91100,102500,113900,123000,132100,141250,150350]
[null,"Moderate Income",95700,109350,123050,136700,147650,158550,169500,180450]
[]
[{"$f":"\"Plumas County \nArea Median Income: \" &TEXT(F226,\"$#,##0\")","v":"Plumas County \nArea Median Income: $92,400"},"Acutely Low",9700,11100,12450,13850,14950,16050,17150,18300]
[null,"Extremely Low",19400,22150,25820,31200,36580,41960,47340,52720]
[null,"Very Low Income",32250,36850,41450,46050,49750,53450,57150,60800]
[null,"Low Income",51600,59000,66350,73700,79600,85500,91400,97300]
[null,"Median Income",64700,73900,83150,92400,99800,107200,114600,121950]
[null,"Moderate Income",77650,88700,99800,110900,119750,128650,137500,146400]
[]
[{"$f":"\"Riverside County \nArea Median Income: \" &TEXT(F233,\"$#,##0\")","v":"Riverside County \nArea Median Income: $97,500"},"Acutely Low",10250,11700,13200,14650,15800,17000,18150,19350]
[null,"Extremely Low",21550,24600,27700,31200,36580,41960,47340,52720]
[null,"Very Low Income",35900,41000,46100,51250,55350,59450,63550,67650]
[null,"Low Income",57400,65600,73800,82000,88600,95150,101650,108250]
[null,"Median Income",68250,78000,87750,97500,105300,113100,120900,128700]
[null,"Moderate Income",81900,93600,105300,117000,126350,135700,145100,154450]
[]
[{"$f":"\"Sacramento County \nArea Median Income: \" &TEXT(F240,\"$#,##0\")","v":"Sacramento County \nArea Median Income: $113,900"},"Acutely Low",11950,13700,15400,17100,18450,19850,21200,22550]
[null,"Extremely Low",24750,28300,31850,35350,38200,41960,47340,52720]
[null,"Very Low Income",41300,47150,53050,58950,63650,68400,73100,77850]
[null,"Low Income",66050,75450,84900,94300,101850,109400,116950,124500]
[null,"Median Income",79750,91100,102500,113900,123000,132100,141250,150350]
[null,"Moderate Income",95700,109350,123050,136700,147650,158550,169500,180450]
[]
[{"$f":"\"San Benito County \nArea Median Income: \" &TEXT(F247,\"$#,##0\")","v":"San Benito County \nArea Median Income: $140,200"},"Acutely Low",14750,16850,18950,21050,22750,24400,26100,27800]
[null,"Extremely Low",25700,29400,33050,36700,39650,42600,47340,52720]
[null,"Very Low Income",42850,49000,55100,61200,66100,71000,75900,80800]
[null,"Low Income",68550,78350,88150,97950,105800,113600,121450,129300]
[null,"Median Income",98150,112150,126200,140200,151400,162650,173850,185050]
[null,"Moderate Income",117750,134600,151450,168250,181700,195150,208650,222100]
[]
[{"$f":"\"San Bernardino County \nArea Median Income: \" &TEXT(F254,\"$#,##0\")","v":"San Bernardino County \nArea Median Income: $97,500"},"Acutely Low",10250,11700,13200,14650,15800,17000,18150,19350]
[null,"Extremely Low",21550,24600,27700,31200,36580,41960,47340,52720]
[null,"Very Low Income",35900,41000,46100,51250,55350,59450,63550,67650]
[null,"Low Income",57400,65600,73800,82000,88600,95150,101650,108250]
[null,"Median Income",68250,78000,87750,97500,105300,113100,120900,128700]
[null,"Moderate Income",81900,93600,105300,117000,126350,135700,145100,154450]
[]
[{"$f":"\"San Diego County \nArea Median Income: \" &TEXT(F261,\"$#,##0\")","v":"San Diego County \nArea Median Income: $119,500"},"Acutely Low",12550,14350,16150,17950,19400,20800,22250,23700]
[null,"Extremely Low",31850,36400,40950,45450,49100,52750,56400,60000]
[null,"Very Low Income",53050,60600,68200,75750,81850,87900,93950,100000]
[null,"Low Income",84900,97000,109150,121250,130950,140650,150350,160050]
[null,"Median Income",83650,95600,107550,119500,129050,138600,148200,157750]
[null,"Moderate Income",100400,114700,129050,143400,154850,166350,177800,189300]
[]
[{"$f":"\"San Francisco County \nArea Median Income: \" &TEXT(F268,\"$#,##0\")","v":"San Francisco County \nArea Median Income: $186,600"},"Acutely Low",19600,22400,25200,28000,30250,32500,34700,36950]
[null,"Extremely Low",41150,47000,52900,58750,63450,68150,72850,77550]
[null,"Very Low Income",68550,78350,88150,97900,105750,113600,121400,129250]
[null,"Low Income",109700,125350,141000,156650,169200,181750,194250,206800]
[null,"Median Income",130600,149300,167950,186600,201550,216450,231400,246300]
[null,"Moderate Income",156750,179100,201500,223900,241800,259700,277650,295550]
[]
[{"$f":"\"San Joaquin County \nArea Median Income: \" &TEXT(F275,\"$#,##0\")","v":"San Joaquin County \nArea Median Income: $103,800"},"Acutely Low",10900,12450,14000,15550,16800,18050,19300,20550]
[null,"Extremely Low",20250,23150,26050,31200,36580,41960,47340,52720]
[null,"Very Low Income",33750,38600,43400,48200,52100,55950,59800,63650]
[null,"Low Income",54000,61700,69400,77100,83300,89450,95600,101800]
[null,"Median Income",72650,83050,93400,103800,112100,120400,128700,137000]
[null,"Moderate Income",87200,99650,112100,124550,134500,144500,154450,164400]
[]
[{"$f":"\"San Luis Obispo County \nArea Median Income: \" &TEXT(F282,\"$#,##0\")","v":"San Luis Obispo County \nArea Median Income: $125,600"},"Acutely Low",13200,15100,16950,18850,20350,21850,23350,24900]
[null,"Extremely Low",26750,30600,34400,38200,41300,44350,47400,52720]
[null,"Very Low Income",44600,50950,57300,63650,68750,73850,78950,84050]
[null,"Low Income",71350,81550,91700,101900,110100,118250,126350,134500]
[null,"Median Income",87900,100500,113050,125600,135650,145700,155750,165800]
[null,"Moderate Income",105500,120550,135650,150700,162750,174800,186850,198900]
[]
[{"$f":"\"San Mateo County \nArea Median Income: \" &TEXT(F289,\"$#,##0\")","v":"San Mateo County \nArea Median Income: $186,600"},"Acutely Low",19600,22400,25200,28000,30250,32500,34700,36950]
[null,"Extremely Low",41150,47000,52900,58750,63450,68150,72850,77550]
[null,"Very Low Income",68550,78350,88150,97900,105750,113600,121400,129250]
[null,"Low Income",109700,125350,141000,156650,169200,181750,194250,206800]
[null,"Median Income",130600,149300,167950,186600,201550,216450,231400,246300]
[null,"Moderate Income",156750,179100,201500,223900,241800,259700,277650,295550]
[]
[{"$f":"\"Santa Barbara County \nArea Median Income: \" &TEXT(F296,\"$#,##0\")","v":"Santa Barbara County \nArea Median Income: $119,100"},"Acutely Low",12500,14300,16050,17850,19300,20700,22150,23550]
[null,"Extremely Low",34200,39050,43950,48800,52750,56650,60550,64450]
[null,"Very Low Income",56950,65050,73200,81300,87850,94350,100850,107350]
[null,"Low Income",91200,104250,117300,130350,140800,151250,161600,172050]
[null,"Median Income",83350,95300,107200,119100,128650,138150,147700,157200]
[null,"Moderate Income",100050,114300,128600,142900,154350,165750,177200,188650]
[]
[{"$f":"\"Santa Clara County \nArea Median Income: \" &TEXT(F303,\"$#,##0\")","v":"Santa Clara County \nArea Median Income: $184,300"},"Acutely Low",19350,22100,24900,27650,29850,32050,34300,36500]
[null,"Extremely Low",38750,44250,49800,55300,59750,64150,68600,73000]
[null,"Very Low Income",64550,73750,82950,92150,99550,106900,114300,121650]
[null,"Low Income",102300,116900,131500,146100,157800,169500,181200,192900]
[null,"Median Income",129000,147450,165850,184300,199050,213800,228550,243300]
[null,"Moderate Income",154800,176900,199050,221150,238850,256550,274250,291900]
[]
[{"$f":"\"Santa Cruz County \nArea Median Income: \" &TEXT(F310,\"$#,##0\")","v":"Santa Cruz County \nArea Median Income: $132,800"},"Acutely Low",13950,15900,17900,19900,21500,23100,24700,26250]
[null,"Extremely Low",38050,43500,48950,54350,58700,63050,67400,71750]
[null,"Very Low Income",63400,72450,81500,90550,97800,105050,112300,119550]
[null,"Low Income",101750,116250,130750,145300,156950,168550,180200,191800]
[null,"Median Income",92950,106250,119500,132800,143400,154050,164650,175300]
[null,"Moderate Income",111550,127500,143400,159350,172100,184850,197600,210350]
[]
[{"$f":"\"Shasta County \nArea Median Income: \" &TEXT(F317,\"$#,##0\")","v":"Shasta County \nArea Median Income: $89,800"},"Acutely Low",9400,10750,12100,13450,14550,15600,16700,17750]
[null,"Extremely Low",18750,21400,25820,31200,36580,41960,47340,52720]
[null,"Very Low Income",31200,35650,40100,44550,48150,51700,55250,58850]
[null,"Low Income",49950,57050,64200,71300,77050,82750,88450,94150]
[null,"Median Income",62850,71850,80800,89800,97000,104150,111350,118550]
[null,"Moderate Income",75450,86200,97000,107750,116350,125000,133600,142250]
[]
[{"$f":"\"Sierra County \nArea Median Income: \" &TEXT(F324,\"$#,##0\")","v":"Sierra County \nArea Median Income: $90,000"},"Acutely Low",9450,10800,12150,13500,14600,15650,16750,17800]
[null,"Extremely Low",18900,21600,25820,31200,36580,41960,47340,52720]
[null,"Very Low Income",31500,36000,40500,45000,48600,52200,55800,59400]
[null,"Low Income",50400,57600,64800,72000,77800,83550,89300,95050]
[null,"Median Income",63000,72000,81000,90000,97200,104400,111600,118800]
[null,"Moderate Income",75600,86400,97200,108000,116650,125300,133900,142550]
[]
[{"$f":"\"Siskiyou County \nArea Median Income: \" &TEXT(F331,\"$#,##0\")","v":"Siskiyou County \nArea Median Income: $87,900"},"Acutely Low",9250,10550,11900,13200,14250,15300,16350,17400]
[null,"Extremely Low",18450,21100,25820,31200,36580,41960,47340,52720]
[null,"Very Low Income",30800,35200,39600,43950,47500,51000,54500,58050]
[null,"Low Income",49250,56250,63300,70300,75950,81550,87200,92800]
[null,"Median Income",61550,70300,79100,87900,94950,101950,109000,116050]
[null,"Moderate Income",73850,84400,94950,105500,113950,122400,130800,139250]
[]
[{"$f":"\"Solano County \nArea Median Income: \" &TEXT(F338,\"$#,##0\")","v":"Solano County \nArea Median Income: $113,200"},"Acutely Low",11900,13600,15300,17000,18350,19700,21100,22450]
[null,"Extremely Low",26450,30200,34000,37750,40800,43800,47340,52720]
[null,"Very Low Income",44050,50350,56650,62900,67950,73000,78000,83050]
[null,"Low Income",70450,80500,90550,100650,108700,116750,124850,132850]
[null,"Median Income",79250,90550,101900,113200,122250,131300,140350,149400]
[null,"Moderate Income",95100,108700,122250,135850,146700,157600,168450,179300]
[]
[{"$f":"\"Sonoma County \nArea Median Income: \" &TEXT(F345,\"$#,##0\")","v":"Sonoma County \nArea Median Income: $128,400"},"Acutely Low",13500,15400,17350,19250,20800,22350,23850,25400]
[null,"Extremely Low",29050,33200,37350,41500,44850,48150,51500,54800]
[null,"Very Low Income",48450,55350,62250,69150,74700,80250,85750,91300]
[null,"Low Income",77500,88600,99650,110700,119600,128450,137300,146150]
[null,"Median Income",89900,102700,115550,128400,138650,148950,159200,169500]
[null,"Moderate Income",107850,123300,138700,154100,166450,178750,191100,203400]
[]
[{"$f":"\"Stanislaus County \nArea Median Income: \" &TEXT(F352,\"$#,##0\")","v":"Stanislaus County \nArea Median Income: $92,600"},"Acutely Low",9750,11100,12500,13900,15000,16100,17250,18350]
[null,"Extremely Low",19150,21900,25820,31200,36580,41960,47340,52720]
[null,"Very Low Income",31900,36450,41000,45550,49200,52850,56500,60150]
[null,"Low Income",51050,58350,65650,72900,78750,84600,90400,96250]
[null,"Median Income",64800,74100,83350,92600,100000,107400,114800,122250]
[null,"Moderate Income",77750,88900,100000,111100,120000,128900,137750,146650]
[]
[{"$f":"\"Sutter County \nArea Median Income: \" &TEXT(F359,\"$#,##0\")","v":"Sutter County \nArea Median Income: $87,900"},"Acutely Low",9250,10550,11900,13200,14250,15300,16350,17400]
[null,"Extremely Low",18450,21100,25820,31200,36580,41960,47340,52720]
[null,"Very Low Income",30800,35200,39600,43950,47500,51000,54500,58050]
[null,"Low Income",49250,56250,63300,70300,75950,81550,87200,92800]
[null,"Median Income",61550,70300,79100,87900,94950,101950,109000,116050]
[null,"Moderate Income",73850,84400,94950,105500,113950,122400,130800,139250]
[]
[{"$f":"\"Tehama County \nArea Median Income: \" &TEXT(F366,\"$#,##0\")","v":"Tehama County \nArea Median Income: $87,900"},"Acutely Low",9250,10550,11900,13200,14250,15300,16350,17400]
[null,"Extremely Low",18450,21100,25820,31200,36580,41960,47340,52720]
[null,"Very Low Income",30800,35200,39600,43950,47500,51000,54500,58050]
[null,"Low Income",49250,56250,63300,70300,75950,81550,87200,92800]
[null,"Median Income",61550,70300,79100,87900,94950,101950,109000,116050]
[null,"Moderate Income",73850,84400,94950,105500,113950,122400,130800,139250]
[]
[{"$f":"\"Trinity County \nArea Median Income: \" &TEXT(F373,\"$#,##0\")","v":"Trinity County \nArea Median Income: $87,900"},"Acutely Low",9250,10550,11900,13200,14250,15300,16350,17400]
[null,"Extremely Low",18450,21100,25820,31200,36580,41960,47340,52720]
[null,"Very Low Income",30800,35200,39600,43950,47500,51000,54500,58050]
[null,"Low Income",49250,56250,63300,70300,75950,81550,87200,92800]
[null,"Median Income",61550,70300,79100,87900,94950,101950,109000,116050]
[null,"Moderate Income",73850,84400,94950,105500,113950,122400,130800,139250]
[]
[{"$f":"\"Tulare County \nArea Median Income: \" &TEXT(F380,\"$#,##0\")","v":"Tulare County \nArea Median Income: $87,900"},"Acutely Low",9250,10550,11900,13200,14250,15300,16350,17400]
[null,"Extremely Low",18450,21100,25820,31200,36580,41960,47340,52720]
[null,"Very Low Income",30800,35200,39600,43950,47500,51000,54500,58050]
[null,"Low Income",49250,56250,63300,70300,75950,81550,87200,92800]
[null,"Median Income",61550,70300,79100,87900,94950,101950,109000,116050]
[null,"Moderate Income",73850,84400,94950,105500,113950,122400,130800,139250]
[]
[{"$f":"\"Tuolumne County \nArea Median Income: \" &TEXT(F387,\"$#,##0\")","v":"Tuolumne County \nArea Median Income: $97,700"},"Acutely Low",10250,11700,13200,14650,15800,17000,18150,19350]
[null,"Extremely Low",20350,23250,26150,31200,36580,41960,47340,52720]
[null,"Very Low Income",33900,38750,43600,48450,52350,56200,60100,63950]
[null,"Low Income",54250,62000,69750,77450,83650,89850,96050,102250]
[null,"Median Income",68400,78150,87950,97700,105500,113350,121150,128950]
[null,"Moderate Income",82100,93800,105550,117250,126650,136000,145400,154750]
[]
[{"$f":"\"Ventura County \nArea Median Income: \" &TEXT(F394,\"$#,##0\")","v":"Ventura County \nArea Median Income: $125,600"},"Acutely Low",13200,15100,16950,18850,20350,21850,23350,24900]
[null,"Extremely Low",29550,33800,38000,42200,45600,49000,52350,55750]
[null,"Very Low Income",49250,56300,63350,70350,76000,81650,87250,92900]
[null,"Low Income",78800,90050,101300,112550,121600,130600,139600,148600]
[null,"Median Income",87900,100500,113050,125600,135650,145700,155750,165800]
[null,"Moderate Income",105500,120550,135650,150700,162750,174800,186850,198900]
[]
[{"$f":"\"Yolo County \nArea Median Income: \" &TEXT(F401,\"$#,##0\")","v":"Yolo County \nArea Median Income: $117,000"},"Acutely Low",12300,14050,15800,17550,18950,20350,21750,23150]
[null,"Extremely Low",24250,27700,31150,34600,37400,41960,47340,52720]
[null,"Very Low Income",40400,46150,51900,57650,62300,66900,71500,76100]
[null,"Low Income",64600,73800,83050,92250,99650,107050,114400,121800]
[null,"Median Income",81900,93600,105300,117000,126350,135700,145100,154450]
[null,"Moderate Income",98300,112300,126350,140400,151650,162850,174100,185350]
[]
[{"$f":"\"Yuba County \nArea Median Income: \" &TEXT(F408,\"$#,##0\")","v":"Yuba County \nArea Median Income: $87,900"},"Acutely Low",9250,10550,11900,13200,14250,15300,16350,17400]
[null,"Extremely Low",18450,21100,25820,31200,36580,41960,47340,52720]
[null,"Very Low Income",30800,35200,39600,43950,47500,51000,54500,58050]
[null,"Low Income",49250,56250,63300,70300,75950,81550,87200,92800]
[null,"Median Income",61550,70300,79100,87900,94950,101950,109000,116050]
[null,"Moderate Income",73850,84400,94950,105500,113950,122400,130800,139250]
[]
["Instructions:"]
["Eligibility Determination:  "]
["Use household size income category figures in this chart.  Determine eligibililty based on actual number"]
["of persons in household and total of gross income for all persons."]
[]
["Determination of Income Limit for Households Larger than Eight Persons:"]
["Per person (PP) adjustment above 8: (1) multiply 4-person income limit by eight percent (8%),"]
["(2) multiply result by number of persons in excess of eight,"]
["(3) add the amount to the 8-person income limit, and (4) round to the nearest $50."]
["Nine Person Calculation - Example County",null,null,null,null,null,"Ten Person Calculation - Example County"]
["E  X  A  M  P  L  E","4 persons","8% PP Adj","+ 8 persons","=9 persons","E  X  A  M  P  L  E","4 persons","8 person +","8% Adj x 2","=10 persons"]
["Acutely Low",{"$f":"F404","v":13200},{"$f":"B422 * 8%","v":1056},{"$f":"J404","v":17400},{"$f":"MROUND((D422+C422),50)","v":18450},null,{"$f":"Table14[[#This Row],[4 persons]]","v":13200},{"$f":"Table14[[#This Row],[+ 8 persons]]","v":17400},{"$f":"B422* 8% *2","v":2112},{"$f":"MROUND((I422+H422),50)","v":19500}]
["Extremely Low",{"$f":"F405","v":31200},{"$f":"B423 * 8%","v":2496},{"$f":"J405","v":52720},{"$f":"MROUND((D423+C423),50)","v":55200},"Extremely Low",{"$f":"Table14[[#This Row],[4 persons]]","v":31200},{"$f":"D423","v":52720},{"$f":"B423* 8% *2","v":4992},{"$f":"MROUND((I423+H423),50)","v":57700}]
["Very Low Income",{"$f":"F406","v":43950},{"$f":"B424 * 8%","v":3516},{"$f":"J406","v":58050},{"$f":"MROUND((D424+C424),50)","v":61550},"Very Low Income",{"$f":"Table14[[#This Row],[4 persons]]","v":43950},{"$f":"D424","v":58050},{"$f":"B424* 8% *2","v":7032},{"$f":"MROUND((I424+H424),50)","v":65100}]
["Lower Income",{"$f":"F407","v":70300},{"$f":"B425 * 8%","v":5624},{"$f":"J407","v":92800},{"$f":"MROUND((D425+C425),50)","v":98400},"Lower Income",{"$f":"Table14[[#This Row],[4 persons]]","v":70300},{"$f":"D425","v":92800},{"$f":"B425* 8% *2","v":11248},104050]
["Moderate Income",{"$f":"F409","v":105500},{"$f":"B426 * 8%","v":8440},{"$f":"J409","v":139250},{"$f":"MROUND((D426+C426),50)","v":147700},"Moderate Income",{"$f":"Table14[[#This Row],[4 persons]]","v":105500},{"$f":"D426","v":139250},{"$f":"B426* 8% *2","v":16880},156150]
[]
["Calculation of Housing Cost and Rent:  "]
["Refer to Heath & Safety Code Sections 50052.5 and 50053.  Use benchmark household size and multiply "]
["against applicable percentages defined in H&SC using Area Median Income identified in this chart. "]
[]
["Determination of Household Size: "]
["For projects with no federal assistance, household size is set at number of bedrooms in unit plus one."]
["For projects with federal assistance, household size may be set by multiplying 1.5 by the number of bedrooms"]
["in unit."]
[]
["HUD Income Limits release: 5/15/2023"]
["HUD FY 2023 California median incomes:"]
["State median income: $109,200"]
["Metropolitan county median income: $110,000"]
["Non-metropolitan county median income: $83,800"]
[]
["Note: Authority cited: Section 50093, Health and Safety Code. Reference: Sections 50063.5, 50079.5, 50093, 50105 and 50106, Health and Safety Code."]

{"sheet":"3. Non-Restricted Units","index":10,"n_rows":19,"n_cols":8,"rows_kept":19,"cut":false,"hidden":false,"merged":[[0,6,0,7],[0,0,0,5],[11,2,11,3],[9,0,9,1],[9,2,9,3],[10,0,10,1],[10,2,10,3],[11,0,11,1],[2,5,2,7],[8,0,8,1],[8,2,8,3],[2,1,2,3],[3,1,3,3],[4,1,4,3],[3,5,3,7],[7,0,7,1],[18,0,18,7],[6,0,6,1],[6,2,6,3],[16,2,16,3],[12,0,12,1],[12,2,12,3],[13,0,13,1],[13,2,13,3],[15,0,15,1],[15,2,15,3],[16,0,16,1],[7,2,7,3],[14,0,14,1],[14,2,14,3]]}
["3. Non-Restricted Units",null,null,null,null,null,{"$f":"'1. Checklist & Certification'!K1","v":"2024-09-04"}]
[]
["Contract No.(s):",{"$f":"CONCATENATE('1. Checklist & Certification'!C7,\" \",'1. Checklist & Certification'!C8,\" \",'1. Checklist & Certification'!F7,\" \",'1. Checklist & Certification'!F8)","v":"   "},null,null,"Mngmt Agent:",{"$f":"'1. Checklist & Certification'!C12","v":0}]
["Project Name:",{"$f":"'1. Checklist & Certification'!C6","v":0},null,null,"Prepared By:",{"$f":"'1. Checklist & Certification'!B13","v":0}]
["Sponsor Name:",{"$f":"'1. Checklist & Certification'!C10","v":0},null,null,"Fiscal Year:",{"$f":"'1. Checklist & Certification'!B14","v":2025}]
[]
["(A)",null,"(B)",null,"(C)","(D)","(E)","(F)"]
["Unit Size\nNumber of Bedrooms\nGHOCC = Group Home Occupancy\n(Use 0 for SRO or Studio apts)",null,"Number of Units (include all non-assisted manager units)",null,"Total Average Monthly Rent\n(include all non-assisted manager units in average)","Total Annual Rent","Total Annual Tenant Assistance Subsidies","Total Annual Rental Revenue"]
["GHOCC",null,null,null,null,{"$f":"E9*C9*12","v":0},null,{"$f":"F9+G9","v":0}]
[0,null,null,null,null,0,null,{"$f":"F10+G10","v":0}]
[1,null,null,null,null,0,null,0]
[2,null,null,null,null,0,null,0]
[3,null,null,null,null,0,null,0]
[4,null,null,null,null,0,null,0]
[5,null,null,null,null,{"$f":"E15*C15*12","v":0},null,{"$f":"F15+G15","v":0}]
["Manager Unit(s)",null,null,null,null,0,null,0]
["Totals",null,{"$f":"SUM(C9:D16)","v":0},null,null,{"$f":"SUM(F9:F16)","v":0},{"$f":"SUM(G9:G16)","v":0},{"$f":"SUM(H9:H16)","v":0}]
[]
["Manager Unit note (manager units that are not reported on worksheet 2): If the free rent of any onsite management employee is included in Project operating expenses (line item #6331 on the Proposed Budget), then report the value of the free rent on this worksheet."]

{"sheet":"4a. Unit Desig1","index":11,"n_rows":11,"n_cols":3,"rows_kept":11,"cut":false,"hidden":false,"merged":[[2,0,2,1],[1,0,1,1],[0,0,0,1]]}
[{"$f":"'1. Checklist & Certification'!C6","v":0},null,{"$f":"'1. Checklist & Certification'!C7","v":0}]
[]
[]
["Elderly/Senior","(All)"]
["Veteran","(All)"]
["To refresh pivot table: right click on cell A7, select Refresh"]
["HCD RA #1","Column Labels"]
["Row Labels","(blank)","Grand Total"]
["(blank)"]
["(blank)"]
["Grand Total"]

{"sheet":"HLCP-E Rent Change","index":12,"n_rows":59,"n_cols":8,"rows_kept":59,"cut":false,"hidden":true,"merged":[]}
["county_name","lim50_24_2bdr","lim50_23_2bdr","%  Increase",null,null,"lim50_24p3","lim50_23p3"]
["Alameda",{"$f":"G2*0.3/12","v":1752.5},{"$f":"H2/12*0.3","v":1665},{"$f":"IF(B2<C2,0,(B2-C2)/C2)","v":5.2552552552552555E-2},null,null,70100,66600]
["Alpine",{"$f":"G3*0.3/12","v":1188.75},{"$f":"H3/12*0.3","v":1081.25},{"$f":"IF(B3<C3,0,(B3-C3)/C3)","v":9.9421965317919081E-2},null,null,47550,43250]
["Amador",1135,1032.5,9.9273607748184015E-2,null,null,45400,41300]
["Butte",1021.25,928.75,9.9596231493943477E-2,null,null,40850,37150]
["Calaveras",1065,1072.5,0,null,null,42600,42900]
["Colusa",990,928.75,6.5948855989232835E-2,null,null,39600,37150]
["Contra Costa",1752.5,1665,5.2552552552552555E-2,null,null,70100,66600]
["Del Norte",990,928.75,6.5948855989232835E-2,null,null,39600,37150]
["El Dorado",1326.25,1206.25,9.9481865284974089E-2,null,null,53050,48250]
["Fresno",990,928.75,6.5948855989232835E-2,null,null,39600,37150]
["Glenn",990,928.75,6.5948855989232835E-2,null,null,39600,37150]
["Humboldt",993.75,928.75,6.9986541049798109E-2,null,null,39750,37150]
["Imperial",990,928.75,6.5948855989232835E-2,null,null,39600,37150]
["Inyo",990,961.24999999999989,2.9908972691807666E-2,null,null,39600,38450]
["Kern",990,928.75,6.5948855989232835E-2,null,null,39600,37150]
["Kings",990,928.75,6.5948855989232835E-2,null,null,39600,37150]
["Lake",990,928.75,6.5948855989232835E-2,null,null,39600,37150]
["Lassen",990,943.75,4.900662251655629E-2,null,null,39600,37750]
["Los Angeles",1560,1418.75,9.9559471365638766E-2,null,null,62400,56750]
["Madera",990,928.75,6.5948855989232835E-2,null,null,39600,37150]
["Marin",2203.75,2091.25,5.379557680812911E-2,null,null,88150,83650]
["Mariposa",990,928.75,6.5948855989232835E-2,null,null,39600,37150]
["Mendocino",1017.5,956.25,6.4052287581699341E-2,null,null,40700,38250]
["Merced",990,928.75,6.5948855989232835E-2,null,null,39600,37150]
["Modoc",990,928.75,6.5948855989232835E-2,null,null,39600,37150]
["Mono",1051.25,956.25,9.9346405228758164E-2,null,null,42050,38250]
["Monterey",1490,1355,9.9630996309963096E-2,null,null,59600,54200]
["Napa",1652.5,1502.4999999999998,9.983361064891863E-2,null,null,66100,60100]
["Nevada",1172.5,1172.5,0,null,null,46900,46900]
["Orange",1776.25,1614.9999999999998,9.9845201238390247E-2,null,null,71050,64600]
["Placer",1326.25,1206.25,9.9481865284974089E-2,null,null,53050,48250]
["Plumas",1036.25,943.75,9.8013245033112581E-2,null,null,41450,37750]
["Riverside",1152.5,1048.75,9.8927294398092974E-2,null,null,46100,41950]
["Sacramento",1326.25,1206.25,9.9481865284974089E-2,null,null,53050,48250]
["San Benito",1377.5,1252.5,9.9800399201596807E-2,null,null,55100,50100]
["San Bernardino",1152.5,1048.75,9.8927294398092974E-2,null,null,46100,41950]
["San Diego",1705,1551.2499999999998,9.911361804995987E-2,null,null,68200,62050]
["San Francisco",2203.75,2091.25,5.379557680812911E-2,null,null,88150,83650]
["San Joaquin",1085,987.49999999999989,9.8734177215189997E-2,null,null,43400,39500]
["San Luis Obispo",1432.5,1303.7499999999998,9.8753595397890886E-2,null,null,57300,52150]
["San Mateo",2203.75,2091.25,5.379557680812911E-2,null,null,88150,83650]
["Santa Barbara",1830,1665,9.90990990990991E-2,null,null,73200,66600]
["Santa Clara",2073.75,2007.5,3.3001245330012453E-2,null,null,82950,80300]
["Santa Cruz",2037.5,1853.75,9.9123398516520564E-2,null,null,81500,74150]
["Shasta",1002.5,945,6.0846560846560843E-2,null,null,40100,37800]
["Sierra",990,962.5,2.8571428571428571E-2,null,null,39600,38500]
["Siskiyou",990,928.75,6.5948855989232835E-2,null,null,39600,37150]
["Solano",1416.25,1287.5,0.1,null,null,56650,51500]
["Sonoma",1556.25,1416.2499999999998,9.8852603706972811E-2,null,null,62250,56650]
["Stanislaus",1025,949.99999999999989,7.8947368421052766E-2,null,null,41000,38000]
["Sutter",990,928.75,6.5948855989232835E-2,null,null,39600,37150]
["Tehama",990,928.75,6.5948855989232835E-2,null,null,39600,37150]
["Trinity",990,928.75,6.5948855989232835E-2,null,null,39600,37150]
["Tulare",990,928.75,6.5948855989232835E-2,null,null,39600,37150]
["Tuolumne",1090,991.24999999999989,9.9621689785624343E-2,null,null,43600,39650]
["Ventura",1583.75,1494.9999999999998,5.9364548494983439E-2,null,null,63350,59800]
["Yolo",1297.5,1181.25,9.841269841269841E-2,null,null,51900,47250]
["Yuba",990,928.75,6.5948855989232835E-2,null,null,39600,37150]

{"sheet":"4b. Unit Desig2","index":13,"n_rows":11,"n_cols":3,"rows_kept":11,"cut":false,"hidden":true,"merged":[[2,0,2,1],[1,0,1,1],[0,0,0,1]]}
[{"$f":"'1. Checklist & Certification'!C6","v":0},null,{"$f":"'1. Checklist & Certification'!C8","v":0}]
[]
[]
["Elderly/Senior","(All)"]
["Veteran","(All)"]
["To refresh pivot table: right click on cell A7, select Refresh"]
["HCD RA #2","Column Labels"]
["Row Labels","(blank)","Grand Total"]
["(blank)"]
["(blank)"]
["Grand Total"]

{"sheet":"4c. Unit Desig3","index":14,"n_rows":11,"n_cols":3,"rows_kept":11,"cut":false,"hidden":true,"merged":[[2,0,2,1],[1,0,1,1],[0,0,0,1]]}
[{"$f":"'1. Checklist & Certification'!C6","v":0},null,{"$f":"'1. Checklist & Certification'!F7","v":0}]
[]
[]
["Elderly/Senior","(All)"]
["Veteran","(All)"]
["To refresh pivot table: right click on cell A7, select Refresh"]
["HCD RA #3","Column Labels"]
["Row Labels","(blank)","Grand Total"]
["(blank)"]
["(blank)"]
["Grand Total"]

{"sheet":"4d. Unit Desig4","index":15,"n_rows":11,"n_cols":3,"rows_kept":11,"cut":false,"hidden":true,"merged":[[0,0,0,1],[1,0,1,1],[2,0,2,1]]}
[{"$f":"'1. Checklist & Certification'!C6","v":0},null,{"$f":"'1. Checklist & Certification'!C7","v":0}]
[]
[]
["Elderly/Senior","(All)"]
["Veteran","(All)"]
["To refresh pivot table: right click on cell A7, select Refresh"]
["HCD RA #4","Column Labels"]
["Row Labels","(blank)","Grand Total"]
["(blank)"]
["(blank)"]
["Grand Total"]

{"sheet":"Unit Des Table","index":16,"n_rows":53,"n_cols":32,"rows_kept":53,"cut":false,"hidden":true,"merged":[]}
["ACC","AHSC","CALDAP","CHRP-R","DPRLP","FHDP","FMTW","FWHG","GHI","HHC","HLCP-E","HLCP-N","HOME","HY","IIG","LPR","MHP","MGR","NHTF","NPLH","NSP","OR","PRP","RHCP-B","SERA","SH-AtRsk","SH-Hmls","SNP","SUHRP","TCAC","TOD","VHHP"]
[]
["15% AMI","15% AMI","LI State","LI State","LI State","LI State","15% AMI","15% AMI","15% AMI","15% AMI","15% AMI","15% AMI","15% AMI","15% AMI","15% AMI","15% AMI","15% AMI","15% AMI","15% AMI","15% AMI","VLI HOME","15% AMI","15% AMI","LI State","LI State","15% AMI","15% AMI","15% AMI","LI State","15% AMI","15% AMI","15% AMI"]
["20% AMI","20% AMI","VLI State","VLI State",null,"VLI State","20% AMI","20% AMI","20% AMI","20% AMI","20% AMI","20% AMI","20% AMI","20% AMI","20% AMI","20% AMI","20% AMI","20% AMI","20% AMI","20% AMI",null,"20% AMI","20% AMI","VLI State","VLI State","20% AMI","20% AMI","20% AMI","VLI State","20% AMI","20% AMI","20% AMI"]
["25% AMI","25% AMI",null,null,null,null,"25% AMI","25% AMI","25% AMI","25% AMI","25% AMI","25% AMI","25% AMI","25% AMI","25% AMI","25% AMI","25% AMI","25% AMI","25% AMI","25% AMI",null,"25% AMI","25% AMI",null,null,"25% AMI","25% AMI","25% AMI",null,"25% AMI","25% AMI","25% AMI"]
["30% AMI","30% AMI",null,null,null,null,"30% AMI","30% AMI","30% AMI","30% AMI","30% AMI","30% AMI","30% AMI","30% AMI","30% AMI","30% AMI","30% AMI","30% AMI","30% AMI","30% AMI",null,"30% AMI","30% AMI",null,null,"30% AMI","30% AMI","30% AMI",null,"30% AMI","30% AMI","30% AMI"]
["35% AMI","35% AMI",null,null,null,null,"35% AMI","35% AMI","35% AMI","35% AMI","35% AMI","35% AMI","35% AMI","35% AMI","35% AMI","35% AMI","35% AMI","35% AMI","35% AMI","35% AMI",null,"35% AMI","35% AMI",null,null,"35% AMI","35% AMI","35% AMI",null,"35% AMI","35% AMI","35% AMI"]
["40% AMI","40% AMI",null,null,null,null,"40% AMI","40% AMI","40% AMI","40% AMI","40% AMI","40% AMI","40% AMI","40% AMI","40% AMI","40% AMI","40% AMI","40% AMI","40% AMI","40% AMI",null,"40% AMI","40% AMI",null,null,"40% AMI","40% AMI","40% AMI",null,"40% AMI","40% AMI","40% AMI"]
["45% AMI","45% AMI",null,null,null,null,"45% AMI","45% AMI","45% AMI","45% AMI","45% AMI","45% AMI","45% AMI","45% AMI","45% AMI","45% AMI","45% AMI","45% AMI","45% AMI","45% AMI",null,"45% AMI","45% AMI",null,null,"45% AMI","45% AMI","45% AMI",null,"45% AMI","45% AMI","45% AMI"]
["50% AMI","50% AMI",null,null,null,null,"50% AMI","50% AMI","50% AMI","50% AMI","50% AMI","50% AMI","50% AMI","50% AMI","50% AMI","50% AMI","50% AMI","50% AMI","50% AMI","50% AMI",null,"50% AMI","50% AMI",null,null,"50% AMI","50% AMI","50% AMI",null,"50% AMI","50% AMI","50% AMI"]
["55% AMI","55% AMI",null,null,null,null,"55% AMI","55% AMI","55% AMI","55% AMI","55% AMI","55% AMI","55% AMI","55% AMI","55% AMI","55% AMI","55% AMI","55% AMI","55% AMI","55% AMI",null,"55% AMI","55% AMI",null,null,"55% AMI","55% AMI","55% AMI",null,"55% AMI","55% AMI","55% AMI"]
["60% AMI","60% AMI",null,null,null,null,"60% AMI","60% AMI","60% AMI","60% AMI","60% AMI","60% AMI","60% AMI","60% AMI","60% AMI","60% AMI","60% AMI","60% AMI","60% AMI","60% AMI",null,"60% AMI","60% AMI",null,null,"60% AMI","60% AMI","60% AMI",null,"60% AMI","60% AMI","60% AMI"]
["65% AMI","65% AMI",null,null,null,null,"20% SMI","65% AMI",null,null,null,null,"65% AMI",null,"65% AMI","65% AMI","65% AMI","65% AMI","NHTF",null,null,"65% AMI","65% AMI",null,null,"20% SMI","20% SMI","20% SMI",null,"65% AMI","65% AMI","65% AMI"]
["70% AMI","70% AMI",null,null,null,null,"25% SMI","70% AMI",null,null,null,null,"70% AMI",null,"70% AMI","70% AMI","70% AMI","70% AMI",null,null,null,"70% AMI","70% AMI",null,null,"25% SMI","25% SMI","25% SMI",null,"70% AMI","70% AMI","70% AMI"]
["75% AMI","75% AMI",null,null,null,null,"30% SMI","75% AMI",null,null,null,null,"75% AMI",null,"75% AMI","75% AMI","75% AMI","75% AMI",null,null,null,"75% AMI","75% AMI",null,null,"30% SMI","30% SMI","30% SMI",null,"75% AMI","75% AMI","75% AMI"]
["80% AMI","80% AMI",null,null,null,null,"35% SMI","80% AMI",null,null,null,null,"80% AMI",null,"80% AMI","80% AMI","80% AMI","80% AMI",null,null,null,"80% AMI","80% AMI",null,null,"35% SMI","35% SMI","35% SMI",null,"80% AMI","80% AMI","80% AMI"]
[null,null,null,null,null,null,"40% SMI","20% SMI",null,null,null,null,"LI HOME",null,null,null,"20% SMI","20% SMI",null,null,null,null,null,null,null,"40% SMI","40% SMI","40% SMI"]
[null,null,null,null,null,null,"45% SMI","25% SMI",null,null,null,null,"VLI HOME",null,null,null,"25% SMI","25% SMI",null,null,null,null,null,null,null,"45% SMI","45% SMI","45% SMI"]
[null,null,null,null,null,null,"50% SMI","30% SMI",null,null,null,null,null,null,null,null,"30% SMI","30% SMI",null,null,null,null,null,null,null,"50% SMI","50% SMI","50% SMI"]
[null,null,null,null,null,null,"100% SMI","35% SMI",null,null,null,null,null,null,null,null,"35% SMI","35% SMI",null,null,null,null,null,null,null,"100% SMI","100% SMI","100% SMI"]
[null,null,null,null,null,null,null,"40% SMI",null,null,null,null,null,null,null,null,"40% SMI","40% SMI"]
[null,null,null,null,null,null,null,"45% SMI",null,null,null,null,null,null,null,null,"45% SMI","45% SMI"]
[null,null,null,null,null,null,null,"50% SMI",null,null,null,null,null,null,null,null,"50% SMI","50% SMI"]
[null,null,null,null,null,null,null,"100% SMI",null,null,null,null,null,null,null,null,"100% SMI","100% SMI"]
[]
["Unit Designation drop down chart"]
["One","Two","Three","Four","Five","Six","Seven","Eight"]
[]
["ACC","FWHG","ACC","FHDP","FHDP","CHRP-R","CHRP-R","CALDAP"]
["AHSC","MGR","AHSC","RHCP-B","RHCP-B","SERA","GHI","DPRLP"]
["FMTW","TCAC","FMTW","MGR","HOME","SUHRP","HLCP-E","MGR"]
["GHI",null,"FWHG",null,"MGR","MGR","HLCP-N"]
["HHC",null,"GHI",null,null,null,"HOME"]
["HLCP-E",null,"HHC",null,null,null,"IIG"]
["HLCP-N",null,"HLCP-E",null,null,null,"MHP"]
["HOME",null,"HLCP-N",null,null,null,"MGR"]
["HY",null,"HOME",null,null,null,"OR"]
["IIG",null,"HY",null,null,null,"PRP"]
["LPR",null,"IIG",null,null,null,"SH-AtRsk"]
["MHP",null,"LPR",null,null,null,"SH-Hmls"]
["MGR",null,"MHP",null,null,null,"SNP"]
["NHTF",null,"MGR",null,null,null,"TCAC"]
["NPLH",null,"NHTF"]
["NSP",null,"NPLH"]
["OR",null,"NSP"]
["PRP",null,"OR"]
["SH-AtRsk",null,"PRP"]
["SH-Hmls",null,"SH-AtRsk"]
["SNP",null,"SH-Hmls"]
["TCAC",null,"SNP"]
["TOD",null,"TCAC"]
["VHHP",null,"TOD"]
[null,null,"VHHP"]

{"sheet":"IncomeRentLimits","index":17,"n_rows":30,"n_cols":17,"rows_kept":30,"cut":false,"hidden":true,"merged":[[0,0,0,8],[0,10,0,16]]}
["SMI and AMI Income Limits by Number of Persons in Household",null,null,null,null,null,null,null,null,null,"AMI and SMI Rent Limits by Unit Size*"]
["Level",1,2,3,4,5,6,7,8,"Vacant","Level",0,1,2,3,4,5]
["15% AMI",{"$f":"'MHP Family Income & Rent Limits'!E13","v":""},{"$f":"'MHP Family Income & Rent Limits'!F13","v":""},{"$f":"'MHP Family Income & Rent Limits'!G13","v":""},{"$f":"'MHP Family Income & Rent Limits'!H13","v":""},{"$f":"'MHP Family Income & Rent Limits'!I13","v":""},{"$f":"'MHP Family Income & Rent Limits'!J13","v":""},{"$f":"'MHP Family Income & Rent Limits'!K13","v":""},{"$f":"'MHP Family Income & Rent Limits'!L13","v":""},"Vacant","15% AMI",{"$f":"'MHP Family Income & Rent Limits'!E30","v":""},{"$f":"'MHP Family Income & Rent Limits'!F30","v":""},{"$f":"'MHP Family Income & Rent Limits'!G30","v":""},{"$f":"'MHP Family Income & Rent Limits'!H30","v":""},{"$f":"'MHP Family Income & Rent Limits'!I30","v":""},{"$f":"'MHP Family Income & Rent Limits'!J30","v":""}]
["20% AMI",{"$f":"'MHP Family Income & Rent Limits'!E14","v":""},{"$f":"'MHP Family Income & Rent Limits'!F14","v":""},{"$f":"'MHP Family Income & Rent Limits'!G14","v":""},{"$f":"'MHP Family Income & Rent Limits'!H14","v":""},{"$f":"'MHP Family Income & Rent Limits'!I14","v":""},{"$f":"'MHP Family Income & Rent Limits'!J14","v":""},{"$f":"'MHP Family Income & Rent Limits'!K14","v":""},{"$f":"'MHP Family Income & Rent Limits'!L14","v":""},"Vacant","20% AMI",{"$f":"'MHP Family Income & Rent Limits'!E31","v":""},{"$f":"'MHP Family Income & Rent Limits'!F31","v":""},{"$f":"'MHP Family Income & Rent Limits'!G31","v":""},{"$f":"'MHP Family Income & Rent Limits'!H31","v":""},{"$f":"'MHP Family Income & Rent Limits'!I31","v":""},{"$f":"'MHP Family Income & Rent Limits'!J31","v":""}]
["25% AMI",{"$f":"'MHP Family Income & Rent Limits'!E15","v":""},{"$f":"'MHP Family Income & Rent Limits'!F15","v":""},{"$f":"'MHP Family Income & Rent Limits'!G15","v":""},{"$f":"'MHP Family Income & Rent Limits'!H15","v":""},{"$f":"'MHP Family Income & Rent Limits'!I15","v":""},{"$f":"'MHP Family Income & Rent Limits'!J15","v":""},{"$f":"'MHP Family Income & Rent Limits'!K15","v":""},{"$f":"'MHP Family Income & Rent Limits'!L15","v":""},"Vacant","25% AMI",{"$f":"'MHP Family Income & Rent Limits'!E32","v":""},{"$f":"'MHP Family Income & Rent Limits'!F32","v":""},{"$f":"'MHP Family Income & Rent Limits'!G32","v":""},{"$f":"'MHP Family Income & Rent Limits'!H32","v":""},{"$f":"'MHP Family Income & Rent Limits'!I32","v":""},{"$f":"'MHP Family Income & Rent Limits'!J32","v":""}]
["30% AMI",{"$f":"'MHP Family Income & Rent Limits'!E16","v":""},{"$f":"'MHP Family Income & Rent Limits'!F16","v":""},{"$f":"'MHP Family Income & Rent Limits'!G16","v":""},{"$f":"'MHP Family Income & Rent Limits'!H16","v":""},{"$f":"'MHP Family Income & Rent Limits'!I16","v":""},{"$f":"'MHP Family Income & Rent Limits'!J16","v":""},{"$f":"'MHP Family Income & Rent Limits'!K16","v":""},{"$f":"'MHP Family Income & Rent Limits'!L16","v":""},"Vacant","30% AMI",{"$f":"'MHP Family Income & Rent Limits'!E33","v":""},{"$f":"'MHP Family Income & Rent Limits'!F33","v":""},{"$f":"'MHP Family Income & Rent Limits'!G33","v":""},{"$f":"'MHP Family Income & Rent Limits'!H33","v":""},{"$f":"'MHP Family Income & Rent Limits'!I33","v":""},{"$f":"'MHP Family Income & Rent Limits'!J33","v":""}]
["35% AMI",{"$f":"'MHP Family Income & Rent Limits'!E17","v":""},{"$f":"'MHP Family Income & Rent Limits'!F17","v":""},{"$f":"'MHP Family Income & Rent Limits'!G17","v":""},{"$f":"'MHP Family Income & Rent Limits'!H17","v":""},{"$f":"'MHP Family Income & Rent Limits'!I17","v":""},{"$f":"'MHP Family Income & Rent Limits'!J17","v":""},{"$f":"'MHP Family Income & Rent Limits'!K17","v":""},{"$f":"'MHP Family Income & Rent Limits'!L17","v":""},"Vacant","35% AMI",{"$f":"'MHP Family Income & Rent Limits'!E34","v":""},{"$f":"'MHP Family Income & Rent Limits'!F34","v":""},{"$f":"'MHP Family Income & Rent Limits'!G34","v":""},{"$f":"'MHP Family Income & Rent Limits'!H34","v":""},{"$f":"'MHP Family Income & Rent Limits'!I34","v":""},{"$f":"'MHP Family Income & Rent Limits'!J34","v":""}]
["40% AMI",{"$f":"'MHP Family Income & Rent Limits'!E18","v":""},{"$f":"'MHP Family Income & Rent Limits'!F18","v":""},{"$f":"'MHP Family Income & Rent Limits'!G18","v":""},{"$f":"'MHP Family Income & Rent Limits'!H18","v":""},{"$f":"'MHP Family Income & Rent Limits'!I18","v":""},{"$f":"'MHP Family Income & Rent Limits'!J18","v":""},{"$f":"'MHP Family Income & Rent Limits'!K18","v":""},{"$f":"'MHP Family Income & Rent Limits'!L18","v":""},"Vacant","40% AMI",{"$f":"'MHP Family Income & Rent Limits'!E35","v":""},{"$f":"'MHP Family Income & Rent Limits'!F35","v":""},{"$f":"'MHP Family Income & Rent Limits'!G35","v":""},{"$f":"'MHP Family Income & Rent Limits'!H35","v":""},{"$f":"'MHP Family Income & Rent Limits'!I35","v":""},{"$f":"'MHP Family Income & Rent Limits'!J35","v":""}]
["45% AMI",{"$f":"'MHP Family Income & Rent Limits'!E19","v":""},{"$f":"'MHP Family Income & Rent Limits'!F19","v":""},{"$f":"'MHP Family Income & Rent Limits'!G19","v":""},{"$f":"'MHP Family Income & Rent Limits'!H19","v":""},{"$f":"'MHP Family Income & Rent Limits'!I19","v":""},{"$f":"'MHP Family Income & Rent Limits'!J19","v":""},{"$f":"'MHP Family Income & Rent Limits'!K19","v":""},{"$f":"'MHP Family Income & Rent Limits'!L19","v":""},"Vacant","45% AMI",{"$f":"'MHP Family Income & Rent Limits'!E36","v":""},{"$f":"'MHP Family Income & Rent Limits'!F36","v":""},{"$f":"'MHP Family Income & Rent Limits'!G36","v":""},{"$f":"'MHP Family Income & Rent Limits'!H36","v":""},{"$f":"'MHP Family Income & Rent Limits'!I36","v":""},{"$f":"'MHP Family Income & Rent Limits'!J36","v":""}]
["50% AMI",{"$f":"'MHP Family Income & Rent Limits'!E20","v":""},{"$f":"'MHP Family Income & Rent Limits'!F20","v":""},{"$f":"'MHP Family Income & Rent Limits'!G20","v":""},{"$f":"'MHP Family Income & Rent Limits'!H20","v":""},{"$f":"'MHP Family Income & Rent Limits'!I20","v":""},{"$f":"'MHP Family Income & Rent Limits'!J20","v":""},{"$f":"'MHP Family Income & Rent Limits'!K20","v":""},{"$f":"'MHP Family Income & Rent Limits'!L20","v":""},"Vacant","50% AMI",{"$f":"'MHP Family Income & Rent Limits'!E37","v":""},{"$f":"'MHP Family Income & Rent Limits'!F37","v":""},{"$f":"'MHP Family Income & Rent Limits'!G37","v":""},{"$f":"'MHP Family Income & Rent Limits'!H37","v":""},{"$f":"'MHP Family Income & Rent Limits'!I37","v":""},{"$f":"'MHP Family Income & Rent Limits'!J37","v":""}]
["55% AMI",{"$f":"'MHP Family Income & Rent Limits'!E21","v":""},{"$f":"'MHP Family Income & Rent Limits'!F21","v":""},{"$f":"'MHP Family Income & Rent Limits'!G21","v":""},{"$f":"'MHP Family Income & Rent Limits'!H21","v":""},{"$f":"'MHP Family Income & Rent Limits'!I21","v":""},{"$f":"'MHP Family Income & Rent Limits'!J21","v":""},{"$f":"'MHP Family Income & Rent Limits'!K21","v":""},{"$f":"'MHP Family Income & Rent Limits'!L21","v":""},"Vacant","55% AMI",{"$f":"'MHP Family Income & Rent Limits'!E38","v":""},{"$f":"'MHP Family Income & Rent Limits'!F38","v":""},{"$f":"'MHP Family Income & Rent Limits'!G38","v":""},{"$f":"'MHP Family Income & Rent Limits'!H38","v":""},{"$f":"'MHP Family Income & Rent Limits'!I38","v":""},{"$f":"'MHP Family Income & Rent Limits'!J38","v":""}]
["60% AMI",{"$f":"'MHP Family Income & Rent Limits'!E22","v":""},{"$f":"'MHP Family Income & Rent Limits'!F22","v":""},{"$f":"'MHP Family Income & Rent Limits'!G22","v":""},{"$f":"'MHP Family Income & Rent Limits'!H22","v":""},{"$f":"'MHP Family Income & Rent Limits'!I22","v":""},{"$f":"'MHP Family Income & Rent Limits'!J22","v":""},{"$f":"'MHP Family Income & Rent Limits'!K22","v":""},{"$f":"'MHP Family Income & Rent Limits'!L22","v":""},"Vacant","60% AMI",{"$f":"'MHP Family Income & Rent Limits'!E39","v":""},{"$f":"'MHP Family Income & Rent Limits'!F39","v":""},{"$f":"'MHP Family Income & Rent Limits'!G39","v":""},{"$f":"'MHP Family Income & Rent Limits'!H39","v":""},{"$f":"'MHP Family Income & Rent Limits'!I39","v":""},{"$f":"'MHP Family Income & Rent Limits'!J39","v":""}]
["65% AMI",{"$f":"'MHP Family Income & Rent Limits'!E23","v":""},{"$f":"'MHP Family Income & Rent Limits'!F23","v":""},{"$f":"'MHP Family Income & Rent Limits'!G23","v":""},{"$f":"'MHP Family Income & Rent Limits'!H23","v":""},{"$f":"'MHP Family Income & Rent Limits'!I23","v":""},{"$f":"'MHP Family Income & Rent Limits'!J23","v":""},{"$f":"'MHP Family Income & Rent Limits'!K23","v":""},{"$f":"'MHP Family Income & Rent Limits'!L23","v":""},"Vacant","65% AMI",{"$f":"'MHP Family Income & Rent Limits'!E40","v":""},{"$f":"'MHP Family Income & Rent Limits'!F40","v":""},{"$f":"'MHP Family Income & Rent Limits'!G40","v":""},{"$f":"'MHP Family Income & Rent Limits'!H40","v":""},{"$f":"'MHP Family Income & Rent Limits'!I40","v":""},{"$f":"'MHP Family Income & Rent Limits'!J40","v":""}]
["70% AMI",{"$f":"'MHP Family Income & Rent Limits'!E24","v":""},{"$f":"'MHP Family Income & Rent Limits'!F24","v":""},{"$f":"'MHP Family Income & Rent Limits'!G24","v":""},{"$f":"'MHP Family Income & Rent Limits'!H24","v":""},{"$f":"'MHP Family Income & Rent Limits'!I24","v":""},{"$f":"'MHP Family Income & Rent Limits'!J24","v":""},{"$f":"'MHP Family Income & Rent Limits'!K24","v":""},{"$f":"'MHP Family Income & Rent Limits'!L24","v":""},"Vacant","70% AMI",{"$f":"'MHP Family Income & Rent Limits'!E41","v":""},{"$f":"'MHP Family Income & Rent Limits'!F41","v":""},{"$f":"'MHP Family Income & Rent Limits'!G41","v":""},{"$f":"'MHP Family Income & Rent Limits'!H41","v":""},{"$f":"'MHP Family Income & Rent Limits'!I41","v":""},{"$f":"'MHP Family Income & Rent Limits'!J41","v":""}]
["75% AMI",{"$f":"'MHP Family Income & Rent Limits'!E25","v":""},{"$f":"'MHP Family Income & Rent Limits'!F25","v":""},{"$f":"'MHP Family Income & Rent Limits'!G25","v":""},{"$f":"'MHP Family Income & Rent Limits'!H25","v":""},{"$f":"'MHP Family Income & Rent Limits'!I25","v":""},{"$f":"'MHP Family Income & Rent Limits'!J25","v":""},{"$f":"'MHP Family Income & Rent Limits'!K25","v":""},{"$f":"'MHP Family Income & Rent Limits'!L25","v":""},"Vacant","75% AMI",{"$f":"'MHP Family Income & Rent Limits'!E42","v":""},{"$f":"'MHP Family Income & Rent Limits'!F42","v":""},{"$f":"'MHP Family Income & Rent Limits'!G42","v":""},{"$f":"'MHP Family Income & Rent Limits'!H42","v":""},{"$f":"'MHP Family Income & Rent Limits'!I42","v":""},{"$f":"'MHP Family Income & Rent Limits'!J42","v":""}]
["80% AMI",{"$f":"'MHP Family Income & Rent Limits'!E26","v":""},{"$f":"'MHP Family Income & Rent Limits'!F26","v":""},{"$f":"'MHP Family Income & Rent Limits'!G26","v":""},{"$f":"'MHP Family Income & Rent Limits'!H26","v":""},{"$f":"'MHP Family Income & Rent Limits'!I26","v":""},{"$f":"'MHP Family Income & Rent Limits'!J26","v":""},{"$f":"'MHP Family Income & Rent Limits'!K26","v":""},{"$f":"'MHP Family Income & Rent Limits'!L26","v":""},"Vacant","80% AMI",{"$f":"'MHP Family Income & Rent Limits'!E43","v":""},{"$f":"'MHP Family Income & Rent Limits'!F43","v":""},{"$f":"'MHP Family Income & Rent Limits'!G43","v":""},{"$f":"'MHP Family Income & Rent Limits'!H43","v":""},{"$f":"'MHP Family Income & Rent Limits'!I43","v":""},{"$f":"'MHP Family Income & Rent Limits'!J43","v":""}]
["100% SMI",{"$f":"E17*0.7","v":77910},{"$f":"E17*0.8","v":89040},{"$f":"E17*0.9","v":100170},111300,{"$f":"E17*1.08","v":120204.00000000001},{"$f":"E17*1.16","v":129107.99999999999},{"$f":"E17*1.24","v":138012},{"$f":"E17*1.32","v":146916},"Vacant","50% SMI",{"$f":"$B$18*0.3/12","v":973.875},{"$f":"($B$18+$C$18)/2*0.3/12","v":1043.4375},{"$f":"$D$18*0.3/12","v":1252.125},{"$f":"($E$18+$F$18)/2*0.3/12","v":1446.8999999999999},{"$f":"$G$18*0.3/12","v":1613.8499999999997},{"$f":"($H$18+$I$18)/2*0.3/12","v":1780.8}]
["50% SMI",38955,44520,50085,{"$f":"E17*0.5","v":55650},60102.000000000007,64553.999999999993,69006,73458,"Vacant","45% SMI",{"$f":"$B$19*0.3/12","v":876.48750000000007},{"$f":"($B$19+$C$19)/2*0.3/12","v":939.09375},{"$f":"$D$19*0.3/12","v":1126.9124999999999},{"$f":"($E$19+$F$19)/2*0.3/12","v":1302.21},{"$f":"$G$19*0.3/12","v":1452.4649999999999},{"$f":"($H$19+$I$19)/2*0.3/12","v":1602.72}]
["45% SMI",35059.5,40068,45076.5,{"$f":"E17*0.45","v":50085},54091.8,58098.6,62105.4,66112.2,"Vacant","40% SMI",{"$f":"($B$20*0.3/12)","v":779.09999999999991},{"$f":"($B$20+$C$20)/2*0.3/12","v":834.75},{"$f":"$D$20*0.3/12","v":1001.6999999999999},{"$f":"($E$20+$F$20)/2*0.3/12","v":1157.52},{"$f":"$G$20*0.3/12","v":1291.08},{"$f":"($H$20+$I$20)/2*0.3/12","v":1424.64}]
["40% SMI",31163.999999999996,35616,40068,{"$f":"E17*0.4","v":44520},48081.600000000006,51643.199999999997,55204.800000000003,58766.400000000001,"Vacant","35% SMI",{"$f":"$B$21*0.3/12","v":681.71249999999998},{"$f":"($B$21+$C$21)/2*0.3/12","v":730.40625},{"$f":"$D$21*0.3/12","v":876.48750000000007},{"$f":"($E$21+$F$21)/2*0.3/12","v":1012.8299999999999},{"$f":"$G$21*0.3/12","v":1129.6949999999999},{"$f":"($H$21+$I$21)/2*0.3/12","v":1246.56}]
["35% SMI",27268.5,31164,35059.5,{"$f":"E17*0.35","v":38955},42071.4,45187.799999999996,48304.2,51420.600000000006,"Vacant","30% SMI",{"$f":"$B$22*0.3/12","v":584.32499999999993},{"$f":"($B$22+$C$22)/2*0.3/12","v":626.0625},{"$f":"$D$22*0.3/12","v":751.27499999999998},{"$f":"($E$22+$F$22)/2*0.3/12","v":868.14000000000021},{"$f":"$G$22*0.3/12","v":968.30999999999983},{"$f":"($H$22+$I$22)/2*0.3/12","v":1068.4799999999998}]
["30% SMI",23373,26712,30051,{"$f":"E17*0.3","v":33390},36061.200000000004,38732.399999999994,41403.599999999999,44074.8,"Vacant","25% SMI",{"$f":"$B$23*0.3/12","v":486.9375},{"$f":"($B$23+$C$23)/2*0.3/12","v":521.71875},{"$f":"$D$23*0.3/12","v":626.0625},{"$f":"($E$23+$F$23)/2*0.3/12","v":723.44999999999993},{"$f":"$G$23*0.3/12","v":806.92499999999984},{"$f":"($H$23+$I$23)/2*0.3/12","v":890.4}]
["25% SMI",19477.5,22260,25042.5,{"$f":"E17*0.25","v":27825},30051.000000000004,32276.999999999996,34503,36729,"Vacant","20% SMI",{"$f":"$B$24*0.3/12","v":448.0750621777338},{"$f":"($B$24+$C$24)/2*0.3/12","v":465.22486362784178},{"$f":"$D$24*0.3/12","v":539.06050142609286},{"$f":"($E$24+$F$24)/2*0.3/12","v":644.70405701035588},{"$f":"$G$24*0.3/12","v":770.94294736671191},{"$f":"($H$24+$I$24)/2/12*0.3","v":888.0570031247421}]
["20% SMI",17923.002487109352,19294.986603117988,21562.420057043713,24133.527634263075,27442.796926565396,30837.71789466848,33885.360249979363,37159.200000000004,"Vacant","NHTF",{"$f":"VLOOKUP('1. Checklist & Certification'!$F$9,'HOME & NHTF LIMITS'!$A$2:$AT$59,40,FALSE)","v":{"$error":"#N/A"}},{"$f":"VLOOKUP('1. Checklist & Certification'!$F$9,'HOME & NHTF LIMITS'!$A$2:$AT$59,41,FALSE)","v":{"$error":"#N/A"}},{"$f":"VLOOKUP('1. Checklist & Certification'!$F$9,'HOME & NHTF LIMITS'!$A$2:$AT$59,42,FALSE)","v":{"$error":"#N/A"}},{"$f":"VLOOKUP('1. Checklist & Certification'!$F$9,'HOME & NHTF LIMITS'!$A$2:$AT$59,43,FALSE)","v":{"$error":"#N/A"}},{"$f":"VLOOKUP('1. Checklist & Certification'!$F$9,'HOME & NHTF LIMITS'!$A$2:$AT$59,44,FALSE)","v":{"$error":"#N/A"}},{"$f":"VLOOKUP('1. Checklist & Certification'!$F$9,'HOME & NHTF LIMITS'!$A$2:$AT$59,45,FALSE)","v":{"$error":"#N/A"}}]
["NHTF",{"$f":"VLOOKUP('1. Checklist & Certification'!$F$9,'HOME & NHTF LIMITS'!$A$2:$AT$59,32,FALSE)","v":{"$error":"#N/A"}},{"$f":"VLOOKUP('1. Checklist & Certification'!$F$9,'HOME & NHTF LIMITS'!$A$2:$AT$59,33,FALSE)","v":{"$error":"#N/A"}},{"$f":"VLOOKUP('1. Checklist & Certification'!$F$9,'HOME & NHTF LIMITS'!$A$2:$AT$59,34,FALSE)","v":{"$error":"#N/A"}},{"$f":"VLOOKUP('1. Checklist & Certification'!$F$9,'HOME & NHTF LIMITS'!$A$2:$AT$59,35,FALSE)","v":{"$error":"#N/A"}},{"$f":"VLOOKUP('1. Checklist & Certification'!$F$9,'HOME & NHTF LIMITS'!$A$2:$AT$59,36,FALSE)","v":{"$error":"#N/A"}},{"$f":"VLOOKUP('1. Checklist & Certification'!$F$9,'HOME & NHTF LIMITS'!$A$2:$AT$59,37,FALSE)","v":{"$error":"#N/A"}},{"$f":"VLOOKUP('1. Checklist & Certification'!$F$9,'HOME & NHTF LIMITS'!$A$2:$AT$59,38,FALSE)","v":{"$error":"#N/A"}},{"$f":"VLOOKUP('1. Checklist & Certification'!$F$9,'HOME & NHTF LIMITS'!$A$2:$AT$59,39,FALSE)","v":{"$error":"#N/A"}},"Vacant","LI HOME",{"$f":"VLOOKUP('1. Checklist & Certification'!$F$9,'HOME & NHTF LIMITS'!$A$2:$AT$59,25,FALSE)","v":{"$error":"#N/A"}},{"$f":"VLOOKUP('1. Checklist & Certification'!$F$9,'HOME & NHTF LIMITS'!$A$2:$AT$59,26,FALSE)","v":{"$error":"#N/A"}},{"$f":"VLOOKUP('1. Checklist & Certification'!$F$9,'HOME & NHTF LIMITS'!$A$2:$AT$59,27,FALSE)","v":{"$error":"#N/A"}},{"$f":"VLOOKUP('1. Checklist & Certification'!$F$9,'HOME & NHTF LIMITS'!$A$2:$AT$59,28,FALSE)","v":{"$error":"#N/A"}},{"$f":"VLOOKUP('1. Checklist & Certification'!$F$9,'HOME & NHTF LIMITS'!$A$2:$AT$59,29,FALSE)","v":{"$error":"#N/A"}},{"$f":"VLOOKUP('1. Checklist & Certification'!$F$9,'HOME & NHTF LIMITS'!$A$2:$AT$59,30,FALSE)","v":{"$error":"#N/A"}}]
["LI HOME",{"$f":"VLOOKUP('1. Checklist & Certification'!$F$9,'HOME & NHTF LIMITS'!$A$2:$AT$59,10,FALSE)","v":{"$error":"#N/A"}},{"$f":"VLOOKUP('1. Checklist & Certification'!$F$9,'HOME & NHTF LIMITS'!$A$2:$AT$59,11,FALSE)","v":{"$error":"#N/A"}},{"$f":"VLOOKUP('1. Checklist & Certification'!$F$9,'HOME & NHTF LIMITS'!$A$2:$AT$59,12,FALSE)","v":{"$error":"#N/A"}},{"$f":"VLOOKUP('1. Checklist & Certification'!$F$9,'HOME & NHTF LIMITS'!$A$2:$AT$59,13,FALSE)","v":{"$error":"#N/A"}},{"$f":"VLOOKUP('1. Checklist & Certification'!$F$9,'HOME & NHTF LIMITS'!$A$2:$AT$59,14,FALSE)","v":{"$error":"#N/A"}},{"$f":"VLOOKUP('1. Checklist & Certification'!$F$9,'HOME & NHTF LIMITS'!$A$2:$AT$59,15,FALSE)","v":{"$error":"#N/A"}},{"$f":"VLOOKUP('1. Checklist & Certification'!$F$9,'HOME & NHTF LIMITS'!$A$2:$AT$59,16,FALSE)","v":{"$error":"#N/A"}},{"$f":"VLOOKUP('1. Checklist & Certification'!$F$9,'HOME & NHTF LIMITS'!$A$2:$AT$59,17,FALSE)","v":{"$error":"#N/A"}},"Vacant","VLI HOME",{"$f":"VLOOKUP('1. Checklist & Certification'!$F$9,'HOME & NHTF LIMITS'!$A$2:$AT$59,18,FALSE)","v":{"$error":"#N/A"}},{"$f":"VLOOKUP('1. Checklist & Certification'!$F$9,'HOME & NHTF LIMITS'!$A$2:$AT$59,19,FALSE)","v":{"$error":"#N/A"}},{"$f":"VLOOKUP('1. Checklist & Certification'!$F$9,'HOME & NHTF LIMITS'!$A$2:$AT$59,20,FALSE)","v":{"$error":"#N/A"}},{"$f":"VLOOKUP('1. Checklist & Certification'!$F$9,'HOME & NHTF LIMITS'!$A$2:$AT$59,21,FALSE)","v":{"$error":"#N/A"}},{"$f":"VLOOKUP('1. Checklist & Certification'!$F$9,'HOME & NHTF LIMITS'!$A$2:$AT$59,22,FALSE)","v":{"$error":"#N/A"}},{"$f":"VLOOKUP('1. Checklist & Certification'!$F$9,'HOME & NHTF LIMITS'!$A$2:$AT$59,23,FALSE)","v":{"$error":"#N/A"}}]
["VLI HOME",{"$f":"VLOOKUP('1. Checklist & Certification'!$F$9,'HOME & NHTF LIMITS'!$A$2:$AT$59,2,FALSE)","v":{"$error":"#N/A"}},{"$f":"VLOOKUP('1. Checklist & Certification'!$F$9,'HOME & NHTF LIMITS'!$A$2:$AT$59,3,FALSE)","v":{"$error":"#N/A"}},{"$f":"VLOOKUP('1. Checklist & Certification'!$F$9,'HOME & NHTF LIMITS'!$A$2:$AT$59,4,FALSE)","v":{"$error":"#N/A"}},{"$f":"VLOOKUP('1. Checklist & Certification'!$F$9,'HOME & NHTF LIMITS'!$A$2:$AT$59,5,FALSE)","v":{"$error":"#N/A"}},{"$f":"VLOOKUP('1. Checklist & Certification'!$F$9,'HOME & NHTF LIMITS'!$A$2:$AT$59,6,FALSE)","v":{"$error":"#N/A"}},{"$f":"VLOOKUP('1. Checklist & Certification'!$F$9,'HOME & NHTF LIMITS'!$A$2:$AT$59,7,FALSE)","v":{"$error":"#N/A"}},{"$f":"VLOOKUP('1. Checklist & Certification'!$F$9,'HOME & NHTF LIMITS'!$A$2:$AT$59,8,FALSE)","v":{"$error":"#N/A"}},{"$f":"VLOOKUP('1. Checklist & Certification'!$F$9,'HOME & NHTF LIMITS'!$A$2:$AT$59,9,FALSE)","v":{"$error":"#N/A"}},"Vacant",null,"*Assumes 1 person in 0 BR, 1.5 persons per BR in other sizes."]
["LI State",{"$f":"VLOOKUP('1. Checklist & Certification'!$F$9,'State Limits'!$A$2:$Q$59,10,FALSE)","v":{"$error":"#N/A"}},{"$f":"VLOOKUP('1. Checklist & Certification'!$F$9,'State Limits'!$A$2:$Q$59,11,FALSE)","v":{"$error":"#N/A"}},{"$f":"VLOOKUP('1. Checklist & Certification'!$F$9,'State Limits'!$A$2:$Q$59,12,FALSE)","v":{"$error":"#N/A"}},{"$f":"VLOOKUP('1. Checklist & Certification'!$F$9,'State Limits'!$A$2:$Q$59,13,FALSE)","v":{"$error":"#N/A"}},{"$f":"VLOOKUP('1. Checklist & Certification'!$F$9,'State Limits'!$A$2:$Q$59,14,FALSE)","v":{"$error":"#N/A"}},{"$f":"VLOOKUP('1. Checklist & Certification'!$F$9,'State Limits'!$A$2:$Q$59,15,FALSE)","v":{"$error":"#N/A"}},{"$f":"VLOOKUP('1. Checklist & Certification'!$F$9,'State Limits'!$A$2:$Q$59,16,FALSE)","v":{"$error":"#N/A"}},{"$f":"VLOOKUP('1. Checklist & Certification'!$F$9,'State Limits'!$A$2:$Q$59,17,FALSE)","v":{"$error":"#N/A"}},"Vacant"]
["VLI State",{"$f":"VLOOKUP('1. Checklist & Certification'!$F$9,'State Limits'!$A$2:$Q$59,2,FALSE)","v":{"$error":"#N/A"}},{"$f":"VLOOKUP('1. Checklist & Certification'!$F$9,'State Limits'!$A$2:$Q$59,3,FALSE)","v":{"$error":"#N/A"}},{"$f":"VLOOKUP('1. Checklist & Certification'!$F$9,'State Limits'!$A$2:$Q$59,4,FALSE)","v":{"$error":"#N/A"}},{"$f":"VLOOKUP('1. Checklist & Certification'!$F$9,'State Limits'!$A$2:$Q$59,5,FALSE)","v":{"$error":"#N/A"}},{"$f":"VLOOKUP('1. Checklist & Certification'!$F$9,'State Limits'!$A$2:$Q$59,6,FALSE)","v":{"$error":"#N/A"}},{"$f":"VLOOKUP('1. Checklist & Certification'!$F$9,'State Limits'!$A$2:$Q$59,7,FALSE)","v":{"$error":"#N/A"}},{"$f":"VLOOKUP('1. Checklist & Certification'!$F$9,'State Limits'!$A$2:$Q$59,8,FALSE)","v":{"$error":"#N/A"}},{"$f":"VLOOKUP('1. Checklist & Certification'!$F$9,'State Limits'!$A$2:$Q$59,9,FALSE)","v":{"$error":"#N/A"}},"Vacant"]
["ELI NHTF"]

{"sheet":"Cell Comments","index":18,"n_rows":176,"n_cols":1,"rows_kept":176,"cut":false,"hidden":true,"merged":[]}
[{"$f":"CONCATENATE(\"1. Checklist & Certification - cell comments   \", '1. Checklist & Certification'!K1)","v":"1. Checklist & Certification - cell comments   45539"}]
["Cell: D4"]
["Comment: For CALDAP & DPRLP only, use the applicable Consumer Price Index (CPI) Factor for Rent Increase percentage as published on HCD's AMC website at: http://www.hcd.ca.gov/financial‐assistance/asset‐management‐and‐compliance/"]
["Cell: K6"]
["Comment: MHP = Multifamily Housing Program"]
["HOME = Home Investment Partnership Program (HOME ‐ CHDO)"]
["SHMHP = Supportive Housing"]
["GHI = Governor's Homeless Initiative"]
["HYMHP = Homeless Youth"]
["TOD = Transit Oriented Housing Program"]
["FMTW = Families Moving to Work"]
["DRP = Downtown Rebound"]
["HLCP = Conversion Program"]
["VHHP = Veteran Housing and Homeless Prevention"]
["Cell: C7"]
["Comment: Enter the Regulatory Agreement Contract Number for the first HCD Regulatory Agreement."]
["Example 99‐CHRP‐0117"]
["Cell: F7"]
["Comment: Enter the Regulatory Agreement Contract Number for the third HCD Regulatory Agreement."]
["Example 10‐FWHG‐0116"]
["Cell: C8"]
["Comment: Enter the Regulatory Agreement Contract Number for the second HCD Regulatory Agreement."]
["Example 91‐CHRP‐0115"]
["Cell: K8"]
["Comment: FWHG = Farmworker Housing Grant Program"]
["aka Joe Serna, Jr. Farmworker Housing Grant Program."]
["DDS Projects with Section 8 = Homeward Bound and Hope Condos."]
["Cell: K10"]
["Comment: FHDP = Family Housing Demonstration Program"]
["RHCP‐B = Rental Housing Construction Program ‐ Bond"]
["Cell: K12"]
["Comment: CHRP‐R = California Housing Rehabilitation Program ‐ Rental"]
["DDS = Department of Developmental Services Program SERA = State Earthquake Rehabilitation Assistance Program SUHRP = Special User Housing Rehabilitation Program"]
["Cell: K14"]
["Comment: CALDAP = California Natural Disaster Assistance Program ‐ Rental"]
["DPRLP = Deferred Payment Rehabilitation Loan Program ‐ Rental"]
["Cell: B16"]
["Comment: Complete for all unit sizes in the project."]
["Cell: E17"]
["Comment: Insert your own building identification number or name."]
["Cell: G17"]
["Comment: Insert your own building identification number or name."]
["Cell: I17"]
["Comment: Insert your own building identification number or name."]
["Cell: K17"]
["Comment: Insert your own building identification number or name."]
["Cell: B35"]
["Comment: If HCD Regulatory Agreement does not require an annual Operating Reserve deposit for this project, enter 0."]
["Cell: A38"]
["Comment: The CPI Year is the beginning year of the reporting period."]
["For example:"]
["2015 is the CPI Year for the"]
["July 1, 2015 to June 30, 2016 reporting period."]
["Cell: K41"]
["Comment: Must use the current version of the HCD Operating Budget on HCD's website."]
["Cell: B44"]
["Comment: The CPI Year is the beginning year of the reporting period."]
["For example:"]
["2015 is the CPI Year for the"]
["July 1, 2015 to June 30, 2016 reporting period."]
["Cell: J44"]
["Comment: All projects are 100% except a couple of SERA Funded projects Kingswood and Prentice. Check the project Regulatory Agreement."]
["2. Assisted & MHP Restr. Units - cell comments"]
["Cell: A6"]
["Comment: Use only one line for each unit even if rent or other amounts are going to change during the year."]
["If your project uses more than one set of Utility Allowances, begin the Unit Number with the appropriate HCD Reference Letter per Worksheet 1, Section D (representing the building or set of units) followed by an asterisk, followed by the Unit Number."]
["For example for Unit 202, enter it as \"B*202\"."]
["The information for each unit is considered a snapshot of the unit/tenant taken at the time of budget preparation."]
["Cell: B6"]
["Comment: Enter an X, if the unit is a Manager Unit."]
["Cell: C6"]
["Comment: Enter the Special ID (Tenant Code) that your property management software assigned to the household. If none, assign a Tenant Code to each household."]
["Cell: D6"]
["Comment: If unoccupied, select \"Vacant\"; otherwise select the number of persons in the household. If more than 8 persons in the household enter number of persons in column AQ."]
["If a cell is shaded in bright yellow, the unit is over occupied or under occupied. Provide an explanation in column AQ for bright yellow shaded cells. Review your HCD Regulatory Agreements or the HCD Program Regulations ‐ UMR Section 8305(b); FHDP Section 8121(a)(5); RHCP Section 8087(a)(5)."]
["Cell: G6"]
["Comment: Enter the date of the most recent recertification.  The Actual Certified Household Income reported in the next column must be the result of this recertification.  For new tenants, enter the projected recertification date."]
["If a cell is shaded bright yellow, the recertification date is prior to the move in date."]
["Cell: H6"]
["Comment: Amount of Household Annual Income verified at initial occupancy or most recent re‐certification.  Leave blank if vacant."]
["Amount of Household Annual Income verified at initial occupancy or most recent re-certification.  Leave blank if vacant.\nIf a cell is shaded bright yellow, household income exceeds the maximum income limit per applicable columns U, V and W . If these columns do not appear, go back to Worksheet 1 (G5) and reselect the Number of Regulatory Agreements in this project. (provide an explanation in column AQ for bright yellow shaded cells)."]
["Cell: I6"]
["Comment: Enter the amount of the tenant’s current contribution. For MHP, SHMHP, GHI, HYMHP, TOD, FMTW, DRP, HOME, VHHP, HLCP, FHDP and RHCP‐B this amount is the Tenant gross rent less utility allowance (net rent)."]
["If a cell is shaded in bright yellow, the current rent exceeds what was approved for this unit last year or for HOME and MHP type projects current rent exceeds the maximum rent limit per applicable columns X, Y and Z (provide an explanation in column AQ for bright yellow shaded cells)."]
["Cell: J6"]
["Comment: The number of months remaining at the current rents. The number of months entered below will be used to prorate the Total Annual Tenant Rent.  Total Annual Tenant Rent will equal the below number of months times the current rent plus the remaining number of months in a year times the next year's rent. If vacant, enter 0 number of months at current rent."]
["Cell: K6"]
["Comment: Enter the HCD approved rent from last year's Schedule of Rental Income (SRI) for this unit."]
["Leave blank for FMTW, FWHG, GHI, HOME, HYMHP, MHP, SHMHP, TOD and VHHP."]
["Cell: L6"]
["Comment: Elderly are households with anyone who is 60 years of age or older per Health & Safety Code 50067. Senior relates to MHP Project Regulatory Agreements (Exhibit B) that require seniors per Health & Safety Code 50675."]
["Place an \"X\" in the cell if applicable."]
["Cell: M6"]
["Comment: Veterans are households with anyone who has ever been on active duty status in the U.S. military."]
["Place an \"X\" in the cell if applicable."]
["Cell: N6"]
["Comment: FHDP assisted unit designated for occupancy by a Family with Children and either available on a priority basis to, or occupied by, a Family with Children."]
["Family with Children means one or more individuals, who have not attained the age of 18 years, being domiciled with a parent or another person having legal custody of such individual or individuals; or the designee of such parent or other person having such custody with the written permission of such"]
["parent or other person. Family with children also includes any person who is pregnant or is in the process of securing legal custody of any individual who has not attained the age of 18 years. Place an \"X\" in the cell if applicable."]
["Cell: O6"]
["Comment: NOTE: HLCP‐E bright yellow shaded cells below are not subject to AMI Income and Rent limits."]
["Select the HCD Regulatory unit designation"]
["HOME = State HOME CHDO Program Assisted MHP = MHP Assisted FMTW = Families Moving To Work Assisted FWHG = Farmworker Housing Grant Program Assisted SH‐AtRsk = Supportive Housing ‐ At Risk of Homelessness SH‐Hmls = Supportive Housing ‐ Homeless SNP = Special Needs Population TOD = TOD Housing Program Assisted VHHP = Veterans Housing and Homeless Prevention OR = Other Restricted (TCAC)"]
["Legacy Programs:"]
["CALDAP = California Natural Disaster Assistance Program Assisted CHRP‐R = California Housing Rehabilitation Program Assisted DDS = Department of Developmental Services Program Assisted FHDP = Family Housing Demonstration Program Assisted HLCP‐E = HLCP Existing Tenant HLCP‐N = HLCP New Tenant since Conversion RHCP‐B = Rental Housing Construction Program ‐ Bond Assisted SERA = State Earthquake Rehabilitation Assistance Program Assisted SUHRP = Special User Housing Rehabilitation Program Assisted"]
["Cell: P6"]
["Comment: Select either the percentage of AMI, SMI, HOME or State‐specific income level.  These levels, which govern both income and rents, must match the unit mix information found in Exhibit B of the project’s HCD Regulatory Agreement.  For non‐HCD Restricted units they should match the other funders' restrictions."]
["LI HOME corresponds to High HOME Rents and VLI HOME corresponds to Low HOME Rents. LI State and VLI State correspond to CHRP, DDS, FHDP, RHCP‐B,SERA, SUHRP, Programs."]
["Cell: Q6"]
["Comment: NOTE: HLCP‐E bright yellow shaded cells below are not subject to AMI Income and Rent limits."]
["Select the HCD Regulatory unit designation"]
["HOME = State HOME CHDO Program Assisted MHP = MHP Assisted FMTW = Families Moving To Work Assisted FWHG = Farmworker Housing Grant Program Assisted SH‐AtRsk = Supportive Housing ‐ At Risk of Homelessness"]
["SH‐Hmls = Supportive Housing ‐ Homeless"]
["SNP = Special Needs Population TOD = TOD Housing Program Assisted VHHP = Veterans Housing and Homeless Prevention OR = Other Restricted (TCAC)"]
["Legacy Programs:"]
["CALDAP = California Natural Disaster Assistance Program Assisted CHRP‐R = California Housing Rehabilitation Program Assisted DDS = Department of Developmental Services Program Assisted FHDP = Family Housing Demonstration Program Assisted HLCP‐E = HLCP Existing Tenant HLCP‐N = HLCP New Tenant since Conversion RHCP‐B = Rental Housing Construction Program ‐ Bond Assisted SERA = State Earthquake Rehabilitation Assistance Program Assisted SUHRP = Special User Housing Rehabilitation Program Assisted"]
["Cell: R6"]
["Comment: Select either the percentage of AMI, SMI, HOME or State‐specific income level.  These levels, which govern both income and rents, must match the unit mix information found in Exhibit B of the project’s HCD Regulatory Agreement.  For non‐HCD Restricted units they should match the other funders' restrictions."]
["LI HOME corresponds to High HOME Rents and VLI HOME corresponds to Low HOME Rents. LI State and VLI State correspond to CHRP, DDS, FHDP, RHCP‐B,SERA, SUHRP, Programs."]
["Cell: S6"]
["Comment: NOTE: HLCP‐E bright yellow shaded cells below are not subject to AMI Income and Rent limits."]
["Select the HCD Regulatory unit designation"]
["HOME = State HOME CHDO Program Assisted MHP = MHP Assisted FMTW = Families Moving To Work Assisted FWHG = Farmworker Housing Grant Program Assisted SH‐AtRsk = Supportive Housing ‐ At Risk of Homelessness SH‐Hmls = Supportive Housing ‐ Homeless SNP = Special Needs Population TOD = TOD Housing Program Assisted VHHP = Veterans Housing and Homeless Prevention OR = Other Restricted (TCAC)"]
["Legacy Programs:"]
["CALDAP = California Natural Disaster Assistance Program Assisted CHRP‐R = California Housing Rehabilitation Program Assisted DDS = Department of Developmental Services Program Assisted FHDP = Family Housing Demonstration Program Assisted HLCP‐E = HLCP Existing Tenant HLCP‐N = HLCP New Tenant since Conversion RHCP‐B = Rental Housing Construction Program ‐ Bond Assisted SERA = State Earthquake Rehabilitation Assistance Program Assisted SUHRP = Special User Housing Rehabilitation Program Assisted"]
["Cell: T6"]
["Comment: Select either the percentage of AMI, SMI, HOME or State‐specific income level.  These levels, which govern both income and rents, must match the unit mix information found in Exhibit B of the project’s HCD Regulatory Agreement.  For non‐HCD Restricted units they should match the other funders' restrictions."]
["LI HOME corresponds to High HOME Rents and VLI HOME corresponds to Low HOME Rents. LI State and VLI State correspond to CHRP, DDS, FHDP, RHCP‐B,SERA, SUHRP, Programs."]
["Cell: U6"]
["Comment: These cells will auto populate when:"]
["‐Worksheet 1 ‐ Either the \"MHP, HOME, SHMHP, GHI, HYMHP, TOD, VHHP, FMTW, HLCP\" or \"FWHG, DDS\" box has been checked,"]
["‐Worksheet 1 ‐ Cells J26 and J29 have been completed, and"]
["‐Number of Persons in Household (D) and Targeted Income Level (P) have been entered."]
["Cell: V6"]
["Comment: These cells will auto populate when:"]
["‐Worksheet 1 ‐ Either the \"MHP, HOME, SHMHP, GHI, HYMHP, TOD, VHHP, FMTW, HLCP\" or \"FWHG, DDS\" box has been checked,"]
["‐Worksheet 1 ‐ Cells J26 and J29 have been completed, and"]
["‐Number of Persons in Household (D) and Targeted Income Level (R) have been entered."]
["Cell: W6"]
["Comment: These cells will auto populate when:"]
["‐Worksheet 1 ‐ Either the \"MHP, HOME, SHMHP, GHI, HYMHP, TOD, VHHP, FMTW, HLCP\" or \"FWHG, DDS\" box has been checked,"]
["‐Worksheet 1 ‐ Cells J26 and J29 have been completed, and"]
["‐Number of Persons in Household (D) and Targeted Income Level (T) have been entered."]
["Cell: X6"]
["Comment: These cells will auto populate when:"]
["‐Worksheet 1 ‐ Either the \"MHP, HOME, SHMHP, GHI, HYMHP, TOD, VHHP, FMTW, HLCP\" or \"FWHG, DDS\" box has been checked,"]
["‐Worksheet 1 ‐ Cells J26 and J29 have been completed, and"]
["‐Unit Size (E) and Targeted Income Level (P) have been entered."]
["Cell: Y6"]
["Comment: These cells will auto populate when:"]
["‐Worksheet 1 ‐ Either the \"MHP, HOME, SHMHP, GHI, HYMHP, TOD, VHHP, FMTW, HLCP\" or \"FWHG, DDS\" box has been checked,"]
["‐Worksheet 1 ‐ Cells J26 and J29 have been completed, and"]
["‐Unit Size (E) and Targeted Income Level (R) have been entered."]
["Cell: Z6"]
["Comment: These cells will auto populate when:"]
["‐Worksheet 1 ‐ Either the \"MHP, HOME, SHMHP, GHI, HYMHP, TOD, VHHP, FMTW, HLCP\" or \"FWHG, DDS\" box has been checked,"]
["‐Worksheet 1 ‐ Cells J26 and J29 have been completed, and"]
["‐Unit Size (E) and Targeted Income Level (T) have been entered."]
["Cell: AG6"]
["Comment: This is the maximum amount of the tenant’s contribution. For MHP, SHMHP, GHI, HYMHP, TOD, FMTW, DRP, HOME, VHHP, HLCP, FHDP and RHCP‐B this amount is the tenant maximum gross rent less utility allowance (net rent)."]
["Cell: AH6"]
["Comment: Enter the amount of the tenant’s proposed increased contribution. For MHP, SHMHP, GHI, HYMHP, TOD, FMTW, DRP, HOME, VHHP, HLCP, FHDP and RHCP‐B this amount is the proposed tenant gross rent less utility allowance (net rent) less last years net rent."]
["If a cell is shaded in bright yellow, the Proposed Rent (AI) exceeds the Maximum Allowable Rent (AG)."]
["Cell: AI6"]
["Comment: Enter the amount of the tenant’s proposed contribution. For MHP, SHMHP, GHI, HYMHP, TOD, FMTW, DRP, HOME, VHHP, HLCP, FHDP and RHCP‐B this amount is the proposed tenant gross rent less utility allowance (net rent)."]
["If a cell is shaded in bright yellow, the proposed rent exceeds the Maximum allowable Monthly Rent (AG) ."]
["Cell: AL6"]
["Comment: Sec 8 Project ‐ Project based voucher meaning the voucher is tied to the project unit."]
["HCV = Tenant based Housing Choice Voucher; also know as Section 8. Tenant may take voucher with them. Sec 202 ‐ for seniors only."]
["Sec 811 ‐ for persons with disabilities. VASH = Veteran's Affairs Supportive Housing."]
["If a cell is shaded in bright yellow, select the type of subsidy related to the amount in columns AJ and AK ."]
["Cell: AM6"]
["Comment: This column is for HCD use only.  Your AMC representative will use this column to verify or make required changes to the amount of the proposed rent for each unit."]
["Enter the approved amount of the tenant’s contribution. For MHP, SHMHP, GHI, HYMHP, TOD, FMTW, DRP, VHHP, HLCP, HOME, FHDP and RHCP‐B this amount is the tenant gross rent less utility allowance (net rent)."]
["Checking the box will autofill HCD Approved (AM) with amounts from (AI)."]
["Comment: All projects are 100% except a couple of SERA Funded projects Kingswood and Prentice. Check the project Regulatory Agreement."]

{"sheet":"5a. Map Unit Desig1","index":19,"n_rows":155,"n_cols":28,"rows_kept":155,"cut":false,"hidden":true,"merged":[]}
[null,"CALDAP","CHRP-R","DDS","DPRLP","FHDP","FMTW","FWHG","HOME","Market Rate","MHP","NonAssisted","Other Restr","RHCP-B","SERA","SUHRP","TOD","707-E","707-N","Elderly","GHI","HY","SNP","SH At-Risk","SH Hmls","TCAC","Veteran","Family"]
["Ghocc 15% AMI",{"$f":"SUMPRODUCT(('2. Assisted & Restricted Units'!$E$7:$E$399=\"Ghocc\")*('2. Assisted & Restricted Units'!$S$7:$S$399=\"CALDAP\")*('2. Assisted & Restricted Units'!$T$7:$T$399=\"15% AMI\"))","v":0},{"$f":"SUMPRODUCT(('2. Assisted & Restricted Units'!$E$7:$E$399=\"Ghocc\")*('2. Assisted & Restricted Units'!$S$7:$S$399=\"CHRP-R\")*('2. Assisted & Restricted Units'!$T$7:$T$399=\"15% AMI\"))","v":0},{"$f":"SUMPRODUCT(('2. Assisted & Restricted Units'!$E$7:$E$399=\"Ghocc\")*('2. Assisted & Restricted Units'!$S$7:$S$399=\"DDS\")*('2. Assisted & Restricted Units'!$T$7:$T$399=\"15% AMI\"))","v":0},{"$f":"SUMPRODUCT(('2. Assisted & Restricted Units'!$E$7:$E$399=\"Ghocc\")*('2. Assisted & Restricted Units'!$S$7:$S$399=\"DPRLP\")*('2. Assisted & Restricted Units'!$T$7:$T$399=\"15% AMI\"))","v":0},{"$f":"SUMPRODUCT(('2. Assisted & Restricted Units'!$E$7:$E$399=\"Ghocc\")*('2. Assisted & Restricted Units'!$S$7:$S$399=\"FHDP\")*('2. Assisted & Restricted Units'!$T$7:$T$399=\"15% AMI\"))","v":0},{"$f":"SUMPRODUCT(('2. Assisted & Restricted Units'!$E$7:$E$399=\"Ghocc\")*('2. Assisted & Restricted Units'!$S$7:$S$399=\"FMTW\")*('2. Assisted & Restricted Units'!$T$7:$T$399=\"15% AMI\"))","v":0},null,{"$f":"SUMPRODUCT(('2. Assisted & Restricted Units'!$E$7:$E$399=\"Ghocc\")*('2. Assisted & Restricted Units'!$S$7:$S$399=\"HOME\")*('2. Assisted & Restricted Units'!$T$7:$T$399=\"15% AMI\"))","v":0},{"$f":"SUMPRODUCT(('2. Assisted & Restricted Units'!$E$7:$E$399=\"Ghocc\")*('2. Assisted & Restricted Units'!$S$7:$S$399=\"Market Rate\")*('2. Assisted & Restricted Units'!$T$7:$T$399=\"15% AMI\"))","v":0},{"$f":"SUMPRODUCT(('2. Assisted & Restricted Units'!$E$7:$E$399=\"Ghocc\")*('2. Assisted & Restricted Units'!$S$7:$S$399=\"MHP\")*('2. Assisted & Restricted Units'!$T$7:$T$399=\"15% AMI\"))","v":0},{"$f":"SUMPRODUCT(('2. Assisted & Restricted Units'!$E$7:$E$399=\"Ghocc\")*('2. Assisted & Restricted Units'!$S$7:$S$399=\"NonAssisted\")*('2. Assisted & Restricted Units'!$T$7:$T$399=\"15% AMI\"))","v":0},{"$f":"SUMPRODUCT(('2. Assisted & Restricted Units'!$E$7:$E$399=\"Ghocc\")*('2. Assisted & Restricted Units'!$S$7:$S$399=\"Other Restr\")*('2. Assisted & Restricted Units'!$T$7:$T$399=\"15% AMI\"))","v":0},{"$f":"SUMPRODUCT(('2. Assisted & Restricted Units'!$E$7:$E$399=\"Ghocc\")*('2. Assisted & Restricted Units'!$S$7:$S$399=\"RHCP-B\")*('2. Assisted & Restricted Units'!$T$7:$T$399=\"15% AMI\"))","v":0},{"$f":"SUMPRODUCT(('2. Assisted & Restricted Units'!$E$7:$E$399=\"Ghocc\")*('2. Assisted & Restricted Units'!$S$7:$S$399=\"SERA\")*('2. Assisted & Restricted Units'!$T$7:$T$399=\"15% AMI\"))","v":0},{"$f":"SUMPRODUCT(('2. Assisted & Restricted Units'!$E$7:$E$399=\"Ghocc\")*('2. Assisted & Restricted Units'!$S$7:$S$399=\"SUHRP\")*('2. Assisted & Restricted Units'!$T$7:$T$399=\"15% AMI\"))","v":0},{"$f":"SUMPRODUCT(('2. Assisted & Restricted Units'!$E$7:$E$399=\"Ghocc\")*('2. Assisted & Restricted Units'!$S$7:$S$399=\"TOD\")*('2. Assisted & Restricted Units'!$T$7:$T$399=\"15% AMI\"))","v":0},{"$f":"SUMPRODUCT(('2. Assisted & Restricted Units'!$E$7:$E$399=\"Ghocc\")*('2. Assisted & Restricted Units'!$S$7:$S$399=\"707-E\")*('2. Assisted & Restricted Units'!$T$7:$T$399=\"15% AMI\"))","v":0},{"$f":"SUMPRODUCT(('2. Assisted & Restricted Units'!$E$7:$E$399=\"Ghocc\")*('2. Assisted & Restricted Units'!$S$7:$S$399=\"707-N\")*('2. Assisted & Restricted Units'!$T$7:$T$399=\"15% AMI\"))","v":0}]
["Ghocc 20% AMI",{"$f":"SUMPRODUCT(('2. Assisted & Restricted Units'!$E$7:$E$399=\"Ghocc\")*('2. Assisted & Restricted Units'!$S$7:$S$399=\"CALDAP\")*('2. Assisted & Restricted Units'!$T$7:$T$399=\"20% AMI\"))","v":0},{"$f":"SUMPRODUCT(('2. Assisted & Restricted Units'!$E$7:$E$399=\"Ghocc\")*('2. Assisted & Restricted Units'!$S$7:$S$399=\"CHRP-R\")*('2. Assisted & Restricted Units'!$T$7:$T$399=\"20% AMI\"))","v":0},{"$f":"SUMPRODUCT(('2. Assisted & Restricted Units'!$E$7:$E$399=\"Ghocc\")*('2. Assisted & Restricted Units'!$S$7:$S$399=\"DDS\")*('2. Assisted & Restricted Units'!$T$7:$T$399=\"20% AMI\"))","v":0},{"$f":"SUMPRODUCT(('2. Assisted & Restricted Units'!$E$7:$E$399=\"Ghocc\")*('2. Assisted & Restricted Units'!$S$7:$S$399=\"DPRLP\")*('2. Assisted & Restricted Units'!$T$7:$T$399=\"20% AMI\"))","v":0},{"$f":"SUMPRODUCT(('2. Assisted & Restricted Units'!$E$7:$E$399=\"Ghocc\")*('2. Assisted & Restricted Units'!$S$7:$S$399=\"FHDP\")*('2. Assisted & Restricted Units'!$T$7:$T$399=\"20% AMI\"))","v":0},{"$f":"SUMPRODUCT(('2. Assisted & Restricted Units'!$E$7:$E$399=\"Ghocc\")*('2. Assisted & Restricted Units'!$S$7:$S$399=\"FMTW\")*('2. Assisted & Restricted Units'!$T$7:$T$399=\"20% AMI\"))","v":0},null,{"$f":"SUMPRODUCT(('2. Assisted & Restricted Units'!$E$7:$E$399=\"Ghocc\")*('2. Assisted & Restricted Units'!$S$7:$S$399=\"HOME\")*('2. Assisted & Restricted Units'!$T$7:$T$399=\"20% AMI\"))","v":0},{"$f":"SUMPRODUCT(('2. Assisted & Restricted Units'!$E$7:$E$399=\"Ghocc\")*('2. Assisted & Restricted Units'!$S$7:$S$399=\"Market Rate\")*('2. Assisted & Restricted Units'!$T$7:$T$399=\"20% AMI\"))","v":0},{"$f":"SUMPRODUCT(('2. Assisted & Restricted Units'!$E$7:$E$399=\"Ghocc\")*('2. Assisted & Restricted Units'!$S$7:$S$399=\"MHP\")*('2. Assisted & Restricted Units'!$T$7:$T$399=\"20% AMI\"))","v":0},{"$f":"SUMPRODUCT(('2. Assisted & Restricted Units'!$E$7:$E$399=\"Ghocc\")*('2. Assisted & Restricted Units'!$S$7:$S$399=\"NonAssisted\")*('2. Assisted & Restricted Units'!$T$7:$T$399=\"20% AMI\"))","v":0},{"$f":"SUMPRODUCT(('2. Assisted & Restricted Units'!$E$7:$E$399=\"Ghocc\")*('2. Assisted & Restricted Units'!$S$7:$S$399=\"Other Restr\")*('2. Assisted & Restricted Units'!$T$7:$T$399=\"20% AMI\"))","v":0},{"$f":"SUMPRODUCT(('2. Assisted & Restricted Units'!$E$7:$E$399=\"Ghocc\")*('2. Assisted & Restricted Units'!$S$7:$S$399=\"RHCP-B\")*('2. Assisted & Restricted Units'!$T$7:$T$399=\"20% AMI\"))","v":0},{"$f":"SUMPRODUCT(('2. Assisted & Restricted Units'!$E$7:$E$399=\"Ghocc\")*('2. Assisted & Restricted Units'!$S$7:$S$399=\"SERA\")*('2. Assisted & Restricted Units'!$T$7:$T$399=\"20% AMI\"))","v":0},{"$f":"SUMPRODUCT(('2. Assisted & Restricted Units'!$E$7:$E$399=\"Ghocc\")*('2. Assisted & Restricted Units'!$S$7:$S$399=\"SUHRP\")*('2. Assisted & Restricted Units'!$T$7:$T$399=\"20% AMI\"))","v":0},{"$f":"SUMPRODUCT(('2. Assisted & Restricted Units'!$E$7:$E$399=\"Ghocc\")*('2. Assisted & Restricted Units'!$S$7:$S$399=\"TOD\")*('2. Assisted & Restricted Units'!$T$7:$T$399=\"20% AMI\"))","v":0},{"$f":"SUMPRODUCT(('2. Assisted & Restricted Units'!$E$7:$E$399=\"Ghocc\")*('2. Assisted & Restricted Units'!$S$7:$S$399=\"707-E\")*('2. Assisted & Restricted Units'!$T$7:$T$399=\"20% AMI\"))","v":0},{"$f":"SUMPRODUCT(('2. Assisted & Restricted Units'!$E$7:$E$399=\"Ghocc\")*('2. Assisted & Restricted Units'!$S$7:$S$399=\"707-N\")*('2. Assisted & Restricted Units'!$T$7:$T$399=\"20% AMI\"))","v":0}]
["Ghocc 25% AMI",{"$f":"SUMPRODUCT(('2. Assisted & Restricted Units'!$E$7:$E$399=\"Ghocc\")*('2. Assisted & Restricted Units'!$S$7:$S$399=\"CALDAP\")*('2. Assisted & Restricted Units'!$T$7:$T$399=\"25% AMI\"))","v":0},{"$f":"SUMPRODUCT(('2. Assisted & Restricted Units'!$E$7:$E$399=\"Ghocc\")*('2. Assisted & Restricted Units'!$S$7:$S$399=\"CHRP-R\")*('2. Assisted & Restricted Units'!$T$7:$T$399=\"25% AMI\"))","v":0},{"$f":"SUMPRODUCT(('2. Assisted & Restricted Units'!$E$7:$E$399=\"Ghocc\")*('2. Assisted & Restricted Units'!$S$7:$S$399=\"DDS\")*('2. Assisted & Restricted Units'!$T$7:$T$399=\"25% AMI\"))","v":0},{"$f":"SUMPRODUCT(('2. Assisted & Restricted Units'!$E$7:$E$399=\"Ghocc\")*('2. Assisted & Restricted Units'!$S$7:$S$399=\"DPRLP\")*('2. Assisted & Restricted Units'!$T$7:$T$399=\"25% AMI\"))","v":0},{"$f":"SUMPRODUCT(('2. Assisted & Restricted Units'!$E$7:$E$399=\"Ghocc\")*('2. Assisted & Restricted Units'!$S$7:$S$399=\"FHDP\")*('2. Assisted & Restricted Units'!$T$7:$T$399=\"25% AMI\"))","v":0},{"$f":"SUMPRODUCT(('2. Assisted & Restricted Units'!$E$7:$E$399=\"Ghocc\")*('2. Assisted & Restricted Units'!$S$7:$S$399=\"FMTW\")*('2. Assisted & Restricted Units'!$T$7:$T$399=\"25% AMI\"))","v":0},null,{"$f":"SUMPRODUCT(('2. Assisted & Restricted Units'!$E$7:$E$399=\"Ghocc\")*('2. Assisted & Restricted Units'!$S$7:$S$399=\"HOME\")*('2. Assisted & Restricted Units'!$T$7:$T$399=\"25% AMI\"))","v":0},{"$f":"SUMPRODUCT(('2. Assisted & Restricted Units'!$E$7:$E$399=\"Ghocc\")*('2. Assisted & Restricted Units'!$S$7:$S$399=\"Market Rate\")*('2. Assisted & Restricted Units'!$T$7:$T$399=\"25% AMI\"))","v":0},{"$f":"SUMPRODUCT(('2. Assisted & Restricted Units'!$E$7:$E$399=\"Ghocc\")*('2. Assisted & Restricted Units'!$S$7:$S$399=\"MHP\")*('2. Assisted & Restricted Units'!$T$7:$T$399=\"25% AMI\"))","v":0},{"$f":"SUMPRODUCT(('2. Assisted & Restricted Units'!$E$7:$E$399=\"Ghocc\")*('2. Assisted & Restricted Units'!$S$7:$S$399=\"NonAssisted\")*('2. Assisted & Restricted Units'!$T$7:$T$399=\"25% AMI\"))","v":0},{"$f":"SUMPRODUCT(('2. Assisted & Restricted Units'!$E$7:$E$399=\"Ghocc\")*('2. Assisted & Restricted Units'!$S$7:$S$399=\"Other Restr\")*('2. Assisted & Restricted Units'!$T$7:$T$399=\"25% AMI\"))","v":0},{"$f":"SUMPRODUCT(('2. Assisted & Restricted Units'!$E$7:$E$399=\"Ghocc\")*('2. Assisted & Restricted Units'!$S$7:$S$399=\"RHCP-B\")*('2. Assisted & Restricted Units'!$T$7:$T$399=\"25% AMI\"))","v":0},{"$f":"SUMPRODUCT(('2. Assisted & Restricted Units'!$E$7:$E$399=\"Ghocc\")*('2. Assisted & Restricted Units'!$S$7:$S$399=\"SERA\")*('2. Assisted & Restricted Units'!$T$7:$T$399=\"25% AMI\"))","v":0},{"$f":"SUMPRODUCT(('2. Assisted & Restricted Units'!$E$7:$E$399=\"Ghocc\")*('2. Assisted & Restricted Units'!$S$7:$S$399=\"SUHRP\")*('2. Assisted & Restricted Units'!$T$7:$T$399=\"25% AMI\"))","v":0},{"$f":"SUMPRODUCT(('2. Assisted & Restricted Units'!$E$7:$E$399=\"Ghocc\")*('2. Assisted & Restricted Units'!$S$7:$S$399=\"TOD\")*('2. Assisted & Restricted Units'!$T$7:$T$399=\"25% AMI\"))","v":0},{"$f":"SUMPRODUCT(('2. Assisted & Restricted Units'!$E$7:$E$399=\"Ghocc\")*('2. Assisted & Restricted Units'!$S$7:$S$399=\"707-E\")*('2. Assisted & Restricted Units'!$T$7:$T$399=\"25% AMI\"))","v":0},{"$f":"SUMPRODUCT(('2. Assisted & Restricted Units'!$E$7:$E$399=\"Ghocc\")*('2. Assisted & Restricted Units'!$S$7:$S$399=\"707-N\")*('2. Assisted & Restricted Units'!$T$7:$T$399=\"25% AMI\"))","v":0}]
["Ghocc 30% AMI",{"$f":"SUMPRODUCT(('2. Assisted & Restricted Units'!$E$7:$E$399=\"Ghocc\")*('2. Assisted & Restricted Units'!$S$7:$S$399=\"CALDAP\")*('2. Assisted & Restricted Units'!$T$7:$T$399=\"30% AMI\"))","v":0},{"$f":"SUMPRODUCT(('2. Assisted & Restricted Units'!$E$7:$E$399=\"Ghocc\")*('2. Assisted & Restricted Units'!$S$7:$S$399=\"CHRP-R\")*('2. Assisted & Restricted Units'!$T$7:$T$399=\"30% AMI\"))","v":0},{"$f":"SUMPRODUCT(('2. Assisted & Restricted Units'!$E$7:$E$399=\"Ghocc\")*('2. Assisted & Restricted Units'!$S$7:$S$399=\"DDS\")*('2. Assisted & Restricted Units'!$T$7:$T$399=\"30% AMI\"))","v":0},{"$f":"SUMPRODUCT(('2. Assisted & Restricted Units'!$E$7:$E$399=\"Ghocc\")*('2. Assisted & Restricted Units'!$S$7:$S$399=\"DPRLP\")*('2. Assisted & Restricted Units'!$T$7:$T$399=\"30% AMI\"))","v":0},{"$f":"SUMPRODUCT(('2. Assisted & Restricted Units'!$E$7:$E$399=\"Ghocc\")*('2. Assisted & Restricted Units'!$S$7:$S$399=\"FHDP\")*('2. Assisted & Restricted Units'!$T$7:$T$399=\"30% AMI\"))","v":0},{"$f":"SUMPRODUCT(('2. Assisted & Restricted Units'!$E$7:$E$399=\"Ghocc\")*('2. Assisted & Restricted Units'!$S$7:$S$399=\"FMTW\")*('2. Assisted & Restricted Units'!$T$7:$T$399=\"30% AMI\"))","v":0},null,{"$f":"SUMPRODUCT(('2. Assisted & Restricted Units'!$E$7:$E$399=\"Ghocc\")*('2. Assisted & Restricted Units'!$S$7:$S$399=\"HOME\")*('2. Assisted & Restricted Units'!$T$7:$T$399=\"30% AMI\"))","v":0},{"$f":"SUMPRODUCT(('2. Assisted & Restricted Units'!$E$7:$E$399=\"Ghocc\")*('2. Assisted & Restricted Units'!$S$7:$S$399=\"Market Rate\")*('2. Assisted & Restricted Units'!$T$7:$T$399=\"30% AMI\"))","v":0},{"$f":"SUMPRODUCT(('2. Assisted & Restricted Units'!$E$7:$E$399=\"Ghocc\")*('2. Assisted & Restricted Units'!$S$7:$S$399=\"MHP\")*('2. Assisted & Restricted Units'!$T$7:$T$399=\"30% AMI\"))","v":0},{"$f":"SUMPRODUCT(('2. Assisted & Restricted Units'!$E$7:$E$399=\"Ghocc\")*('2. Assisted & Restricted Units'!$S$7:$S$399=\"NonAssisted\")*('2. Assisted & Restricted Units'!$T$7:$T$399=\"30% AMI\"))","v":0},{"$f":"SUMPRODUCT(('2. Assisted & Restricted Units'!$E$7:$E$399=\"Ghocc\")*('2. Assisted & Restricted Units'!$S$7:$S$399=\"Other Restr\")*('2. Assisted & Restricted Units'!$T$7:$T$399=\"30% AMI\"))","v":0},{"$f":"SUMPRODUCT(('2. Assisted & Restricted Units'!$E$7:$E$399=\"Ghocc\")*('2. Assisted & Restricted Units'!$S$7:$S$399=\"RHCP-B\")*('2. Assisted & Restricted Units'!$T$7:$T$399=\"30% AMI\"))","v":0},{"$f":"SUMPRODUCT(('2. Assisted & Restricted Units'!$E$7:$E$399=\"Ghocc\")*('2. Assisted & Restricted Units'!$S$7:$S$399=\"SERA\")*('2. Assisted & Restricted Units'!$T$7:$T$399=\"30% AMI\"))","v":0},{"$f":"SUMPRODUCT(('2. Assisted & Restricted Units'!$E$7:$E$399=\"Ghocc\")*('2. Assisted & Restricted Units'!$S$7:$S$399=\"SUHRP\")*('2. Assisted & Restricted Units'!$T$7:$T$399=\"30% AMI\"))","v":0},{"$f":"SUMPRODUCT(('2. Assisted & Restricted Units'!$E$7:$E$399=\"Ghocc\")*('2. Assisted & Restricted Units'!$S$7:$S$399=\"TOD\")*('2. Assisted & Restricted Units'!$T$7:$T$399=\"30% AMI\"))","v":0},{"$f":"SUMPRODUCT(('2. Assisted & Restricted Units'!$E$7:$E$399=\"Ghocc\")*('2. Assisted & Restricted Units'!$S$7:$S$399=\"707-E\")*('2. Assisted & Restricted Units'!$T$7:$T$399=\"30% AMI\"))","v":0},{"$f":"SUMPRODUCT(('2. Assisted & Restricted Units'!$E$7:$E$399=\"Ghocc\")*('2. Assisted & Restricted Units'!$S$7:$S$399=\"707-N\")*('2. Assisted & Restricted Units'!$T$7:$T$399=\"30% AMI\"))","v":0}]
["Ghocc 35% AMI",{"$f":"SUMPRODUCT(('2. Assisted & Restricted Units'!$E$7:$E$399=\"Ghocc\")*('2. Assisted & Restricted Units'!$S$7:$S$399=\"CALDAP\")*('2. Assisted & Restricted Units'!$T$7:$T$399=\"35% AMI\"))","v":0},{"$f":"SUMPRODUCT(('2. Assisted & Restricted Units'!$E$7:$E$399=\"Ghocc\")*('2. Assisted & Restricted Units'!$S$7:$S$399=\"CHRP-R\")*('2. Assisted & Restricted Units'!$T$7:$T$399=\"35% AMI\"))","v":0},{"$f":"SUMPRODUCT(('2. Assisted & Restricted Units'!$E$7:$E$399=\"Ghocc\")*('2. Assisted & Restricted Units'!$S$7:$S$399=\"DDS\")*('2. Assisted & Restricted Units'!$T$7:$T$399=\"35% AMI\"))","v":0},{"$f":"SUMPRODUCT(('2. Assisted & Restricted Units'!$E$7:$E$399=\"Ghocc\")*('2. Assisted & Restricted Units'!$S$7:$S$399=\"DPRLP\")*('2. Assisted & Restricted Units'!$T$7:$T$399=\"35% AMI\"))","v":0},{"$f":"SUMPRODUCT(('2. Assisted & Restricted Units'!$E$7:$E$399=\"Ghocc\")*('2. Assisted & Restricted Units'!$S$7:$S$399=\"FHDP\")*('2. Assisted & Restricted Units'!$T$7:$T$399=\"35% AMI\"))","v":0},{"$f":"SUMPRODUCT(('2. Assisted & Restricted Units'!$E$7:$E$399=\"Ghocc\")*('2. Assisted & Restricted Units'!$S$7:$S$399=\"FMTW\")*('2. Assisted & Restricted Units'!$T$7:$T$399=\"35% AMI\"))","v":0},null,{"$f":"SUMPRODUCT(('2. Assisted & Restricted Units'!$E$7:$E$399=\"Ghocc\")*('2. Assisted & Restricted Units'!$S$7:$S$399=\"HOME\")*('2. Assisted & Restricted Units'!$T$7:$T$399=\"35% AMI\"))","v":0},{"$f":"SUMPRODUCT(('2. Assisted & Restricted Units'!$E$7:$E$399=\"Ghocc\")*('2. Assisted & Restricted Units'!$S$7:$S$399=\"Market Rate\")*('2. Assisted & Restricted Units'!$T$7:$T$399=\"35% AMI\"))","v":0},{"$f":"SUMPRODUCT(('2. Assisted & Restricted Units'!$E$7:$E$399=\"Ghocc\")*('2. Assisted & Restricted Units'!$S$7:$S$399=\"MHP\")*('2. Assisted & Restricted Units'!$T$7:$T$399=\"35% AMI\"))","v":0},{"$f":"SUMPRODUCT(('2. Assisted & Restricted Units'!$E$7:$E$399=\"Ghocc\")*('2. Assisted & Restricted Units'!$S$7:$S$399=\"NonAssisted\")*('2. Assisted & Restricted Units'!$T$7:$T$399=\"35% AMI\"))","v":0},{"$f":"SUMPRODUCT(('2. Assisted & Restricted Units'!$E$7:$E$399=\"Ghocc\")*('2. Assisted & Restricted Units'!$S$7:$S$399=\"Other Restr\")*('2. Assisted & Restricted Units'!$T$7:$T$399=\"35% AMI\"))","v":0},{"$f":"SUMPRODUCT(('2. Assisted & Restricted Units'!$E$7:$E$399=\"Ghocc\")*('2. Assisted & Restricted Units'!$S$7:$S$399=\"RHCP-B\")*('2. Assisted & Restricted Units'!$T$7:$T$399=\"35% AMI\"))","v":0},{"$f":"SUMPRODUCT(('2. Assisted & Restricted Units'!$E$7:$E$399=\"Ghocc\")*('2. Assisted & Restricted Units'!$S$7:$S$399=\"SERA\")*('2. Assisted & Restricted Units'!$T$7:$T$399=\"35% AMI\"))","v":0},{"$f":"SUMPRODUCT(('2. Assisted & Restricted Units'!$E$7:$E$399=\"Ghocc\")*('2. Assisted & Restricted Units'!$S$7:$S$399=\"SUHRP\")*('2. Assisted & Restricted Units'!$T$7:$T$399=\"35% AMI\"))","v":0},{"$f":"SUMPRODUCT(('2. Assisted & Restricted Units'!$E$7:$E$399=\"Ghocc\")*('2. Assisted & Restricted Units'!$S$7:$S$399=\"TOD\")*('2. Assisted & Restricted Units'!$T$7:$T$399=\"35% AMI\"))","v":0},{"$f":"SUMPRODUCT(('2. Assisted & Restricted Units'!$E$7:$E$399=\"Ghocc\")*('2. Assisted & Restricted Units'!$S$7:$S$399=\"707-E\")*('2. Assisted & Restricted Units'!$T$7:$T$399=\"35% AMI\"))","v":0},{"$f":"SUMPRODUCT(('2. Assisted & Restricted Units'!$E$7:$E$399=\"Ghocc\")*('2. Assisted & Restricted Units'!$S$7:$S$399=\"707-N\")*('2. Assisted & Restricted Units'!$T$7:$T$399=\"35% AMI\"))","v":0}]
["Ghocc 40% AMI",{"$f":"SUMPRODUCT(('2. Assisted & Restricted Units'!$E$7:$E$399=\"Ghocc\")*('2. Assisted & Restricted Units'!$S$7:$S$399=\"CALDAP\")*('2. Assisted & Restricted Units'!$T$7:$T$399=\"40% AMI\"))","v":0},{"$f":"SUMPRODUCT(('2. Assisted & Restricted Units'!$E$7:$E$399=\"Ghocc\")*('2. Assisted & Restricted Units'!$S$7:$S$399=\"CHRP-R\")*('2. Assisted & Restricted Units'!$T$7:$T$399=\"40% AMI\"))","v":0},{"$f":"SUMPRODUCT(('2. Assisted & Restricted Units'!$E$7:$E$399=\"Ghocc\")*('2. Assisted & Restricted Units'!$S$7:$S$399=\"DDS\")*('2. Assisted & Restricted Units'!$T$7:$T$399=\"40% AMI\"))","v":0},{"$f":"SUMPRODUCT(('2. Assisted & Restricted Units'!$E$7:$E$399=\"Ghocc\")*('2. Assisted & Restricted Units'!$S$7:$S$399=\"DPRLP\")*('2. Assisted & Restricted Units'!$T$7:$T$399=\"40% AMI\"))","v":0},{"$f":"SUMPRODUCT(('2. Assisted & Restricted Units'!$E$7:$E$399=\"Ghocc\")*('2. Assisted & Restricted Units'!$S$7:$S$399=\"FHDP\")*('2. Assisted & Restricted Units'!$T$7:$T$399=\"40% AMI\"))","v":0},{"$f":"SUMPRODUCT(('2. Assisted & Restricted Units'!$E$7:$E$399=\"Ghocc\")*('2. Assisted & Restricted Units'!$S$7:$S$399=\"FMTW\")*('2. Assisted & Restricted Units'!$T$7:$T$399=\"40% AMI\"))","v":0},null,{"$f":"SUMPRODUCT(('2. Assisted & Restricted Units'!$E$7:$E$399=\"Ghocc\")*('2. Assisted & Restricted Units'!$S$7:$S$399=\"HOME\")*('2. Assisted & Restricted Units'!$T$7:$T$399=\"40% AMI\"))","v":0},{"$f":"SUMPRODUCT(('2. Assisted & Restricted Units'!$E$7:$E$399=\"Ghocc\")*('2. Assisted & Restricted Units'!$S$7:$S$399=\"Market Rate\")*('2. Assisted & Restricted Units'!$T$7:$T$399=\"40% AMI\"))","v":0},{"$f":"SUMPRODUCT(('2. Assisted & Restricted Units'!$E$7:$E$399=\"Ghocc\")*('2. Assisted & Restricted Units'!$S$7:$S$399=\"MHP\")*('2. Assisted & Restricted Units'!$T$7:$T$399=\"40% AMI\"))","v":0},{"$f":"SUMPRODUCT(('2. Assisted & Restricted Units'!$E$7:$E$399=\"Ghocc\")*('2. Assisted & Restricted Units'!$S$7:$S$399=\"NonAssisted\")*('2. Assisted & Restricted Units'!$T$7:$T$399=\"40% AMI\"))","v":0},{"$f":"SUMPRODUCT(('2. Assisted & Restricted Units'!$E$7:$E$399=\"Ghocc\")*('2. Assisted & Restricted Units'!$S$7:$S$399=\"Other Restr\")*('2. Assisted & Restricted Units'!$T$7:$T$399=\"40% AMI\"))","v":0},{"$f":"SUMPRODUCT(('2. Assisted & Restricted Units'!$E$7:$E$399=\"Ghocc\")*('2. Assisted & Restricted Units'!$S$7:$S$399=\"RHCP-B\")*('2. Assisted & Restricted Units'!$T$7:$T$399=\"40% AMI\"))","v":0},{"$f":"SUMPRODUCT(('2. Assisted & Restricted Units'!$E$7:$E$399=\"Ghocc\")*('2. Assisted & Restricted Units'!$S$7:$S$399=\"SERA\")*('2. Assisted & Restricted Units'!$T$7:$T$399=\"40% AMI\"))","v":0},{"$f":"SUMPRODUCT(('2. Assisted & Restricted Units'!$E$7:$E$399=\"Ghocc\")*('2. Assisted & Restricted Units'!$S$7:$S$399=\"SUHRP\")*('2. Assisted & Restricted Units'!$T$7:$T$399=\"40% AMI\"))","v":0},{"$f":"SUMPRODUCT(('2. Assisted & Restricted Units'!$E$7:$E$399=\"Ghocc\")*('2. Assisted & Restricted Units'!$S$7:$S$399=\"TOD\")*('2. Assisted & Restricted Units'!$T$7:$T$399=\"40% AMI\"))","v":0},{"$f":"SUMPRODUCT(('2. Assisted & Restricted Units'!$E$7:$E$399=\"Ghocc\")*('2. Assisted & Restricted Units'!$S$7:$S$399=\"707-E\")*('2. Assisted & Restricted Units'!$T$7:$T$399=\"40% AMI\"))","v":0},{"$f":"SUMPRODUCT(('2. Assisted & Restricted Units'!$E$7:$E$399=\"Ghocc\")*('2. Assisted & Restricted Units'!$S$7:$S$399=\"707-N\")*('2. Assisted & Restricted Units'!$T$7:$T$399=\"40% AMI\"))","v":0}]
["Ghocc 45% AMI",{"$f":"SUMPRODUCT(('2. Assisted & Restricted Units'!$E$7:$E$399=\"Ghocc\")*('2. Assisted & Restricted Units'!$S$7:$S$399=\"CALDAP\")*('2. Assisted & Restricted Units'!$T$7:$T$399=\"45% AMI\"))","v":0},{"$f":"SUMPRODUCT(('2. Assisted & Restricted Units'!$E$7:$E$399=\"Ghocc\")*('2. Assisted & Restricted Units'!$S$7:$S$399=\"CHRP-R\")*('2. Assisted & Restricted Units'!$T$7:$T$399=\"45% AMI\"))","v":0},{"$f":"SUMPRODUCT(('2. Assisted & Restricted Units'!$E$7:$E$399=\"Ghocc\")*('2. Assisted & Restricted Units'!$S$7:$S$399=\"DDS\")*('2. Assisted & Restricted Units'!$T$7:$T$399=\"45% AMI\"))","v":0},{"$f":"SUMPRODUCT(('2. Assisted & Restricted Units'!$E$7:$E$399=\"Ghocc\")*('2. Assisted & Restricted Units'!$S$7:$S$399=\"DPRLP\")*('2. Assisted & Restricted Units'!$T$7:$T$399=\"45% AMI\"))","v":0},{"$f":"SUMPRODUCT(('2. Assisted & Restricted Units'!$E$7:$E$399=\"Ghocc\")*('2. Assisted & Restricted Units'!$S$7:$S$399=\"FHDP\")*('2. Assisted & Restricted Units'!$T$7:$T$399=\"45% AMI\"))","v":0},{"$f":"SUMPRODUCT(('2. Assisted & Restricted Units'!$E$7:$E$399=\"Ghocc\")*('2. Assisted & Restricted Units'!$S$7:$S$399=\"FMTW\")*('2. Assisted & Restricted Units'!$T$7:$T$399=\"45% AMI\"))","v":0},null,{"$f":"SUMPRODUCT(('2. Assisted & Restricted Units'!$E$7:$E$399=\"Ghocc\")*('2. Assisted & Restricted Units'!$S$7:$S$399=\"HOME\")*('2. Assisted & Restricted Units'!$T$7:$T$399=\"45% AMI\"))","v":0},{"$f":"SUMPRODUCT(('2. Assisted & Restricted Units'!$E$7:$E$399=\"Ghocc\")*('2. Assisted & Restricted Units'!$S$7:$S$399=\"Market Rate\")*('2. Assisted & Restricted Units'!$T$7:$T$399=\"45% AMI\"))","v":0},{"$f":"SUMPRODUCT(('2. Assisted & Restricted Units'!$E$7:$E$399=\"Ghocc\")*('2. Assisted & Restricted Units'!$S$7:$S$399=\"MHP\")*('2. Assisted & Restricted Units'!$T$7:$T$399=\"45% AMI\"))","v":0},{"$f":"SUMPRODUCT(('2. Assisted & Restricted Units'!$E$7:$E$399=\"Ghocc\")*('2. Assisted & Restricted Units'!$S$7:$S$399=\"NonAssisted\")*('2. Assisted & Restricted Units'!$T$7:$T$399=\"45% AMI\"))","v":0},{"$f":"SUMPRODUCT(('2. Assisted & Restricted Units'!$E$7:$E$399=\"Ghocc\")*('2. Assisted & Restricted Units'!$S$7:$S$399=\"Other Restr\")*('2. Assisted & Restricted Units'!$T$7:$T$399=\"45% AMI\"))","v":0},{"$f":"SUMPRODUCT(('2. Assisted & Restricted Units'!$E$7:$E$399=\"Ghocc\")*('2. Assisted & Restricted Units'!$S$7:$S$399=\"RHCP-B\")*('2. Assisted & Restricted Units'!$T$7:$T$399=\"45% AMI\"))","v":0},{"$f":"SUMPRODUCT(('2. Assisted & Restricted Units'!$E$7:$E$399=\"Ghocc\")*('2. Assisted & Restricted Units'!$S$7:$S$399=\"SERA\")*('2. Assisted & Restricted Units'!$T$7:$T$399=\"45% AMI\"))","v":0},{"$f":"SUMPRODUCT(('2. Assisted & Restricted Units'!$E$7:$E$399=\"Ghocc\")*('2. Assisted & Restricted Units'!$S$7:$S$399=\"SUHRP\")*('2. Assisted & Restricted Units'!$T$7:$T$399=\"45% AMI\"))","v":0},{"$f":"SUMPRODUCT(('2. Assisted & Restricted Units'!$E$7:$E$399=\"Ghocc\")*('2. Assisted & Restricted Units'!$S$7:$S$399=\"TOD\")*('2. Assisted & Restricted Units'!$T$7:$T$399=\"45% AMI\"))","v":0},{"$f":"SUMPRODUCT(('2. Assisted & Restricted Units'!$E$7:$E$399=\"Ghocc\")*('2. Assisted & Restricted Units'!$S$7:$S$399=\"707-E\")*('2. Assisted & Restricted Units'!$T$7:$T$399=\"45% AMI\"))","v":0},{"$f":"SUMPRODUCT(('2. Assisted & Restricted Units'!$E$7:$E$399=\"Ghocc\")*('2. Assisted & Restricted Units'!$S$7:$S$399=\"707-N\")*('2. Assisted & Restricted Units'!$T$7:$T$399=\"45% AMI\"))","v":0}]
["Ghocc 50% AMI",{"$f":"SUMPRODUCT(('2. Assisted & Restricted Units'!$E$7:$E$399=\"Ghocc\")*('2. Assisted & Restricted Units'!$S$7:$S$399=\"CALDAP\")*('2. Assisted & Restricted Units'!$T$7:$T$399=\"50% AMI\"))","v":0},{"$f":"SUMPRODUCT(('2. Assisted & Restricted Units'!$E$7:$E$399=\"Ghocc\")*('2. Assisted & Restricted Units'!$S$7:$S$399=\"CHRP-R\")*('2. Assisted & Restricted Units'!$T$7:$T$399=\"50% AMI\"))","v":0},{"$f":"SUMPRODUCT(('2. Assisted & Restricted Units'!$E$7:$E$399=\"Ghocc\")*('2. Assisted & Restricted Units'!$S$7:$S$399=\"DDS\")*('2. Assisted & Restricted Units'!$T$7:$T$399=\"50% AMI\"))","v":0},{"$f":"SUMPRODUCT(('2. Assisted & Restricted Units'!$E$7:$E$399=\"Ghocc\")*('2. Assisted & Restricted Units'!$S$7:$S$399=\"DPRLP\")*('2. Assisted & Restricted Units'!$T$7:$T$399=\"50% AMI\"))","v":0},{"$f":"SUMPRODUCT(('2. Assisted & Restricted Units'!$E$7:$E$399=\"Ghocc\")*('2. Assisted & Restricted Units'!$S$7:$S$399=\"FHDP\")*('2. Assisted & Restricted Units'!$T$7:$T$399=\"50% AMI\"))","v":0},{"$f":"SUMPRODUCT(('2. Assisted & Restricted Units'!$E$7:$E$399=\"Ghocc\")*('2. Assisted & Restricted Units'!$S$7:$S$399=\"FMTW\")*('2. Assisted & Restricted Units'!$T$7:$T$399=\"50% AMI\"))","v":0},null,{"$f":"SUMPRODUCT(('2. Assisted & Restricted Units'!$E$7:$E$399=\"Ghocc\")*('2. Assisted & Restricted Units'!$S$7:$S$399=\"HOME\")*('2. Assisted & Restricted Units'!$T$7:$T$399=\"50% AMI\"))","v":0},{"$f":"SUMPRODUCT(('2. Assisted & Restricted Units'!$E$7:$E$399=\"Ghocc\")*('2. Assisted & Restricted Units'!$S$7:$S$399=\"Market Rate\")*('2. Assisted & Restricted Units'!$T$7:$T$399=\"50% AMI\"))","v":0},{"$f":"SUMPRODUCT(('2. Assisted & Restricted Units'!$E$7:$E$399=\"Ghocc\")*('2. Assisted & Restricted Units'!$S$7:$S$399=\"MHP\")*('2. Assisted & Restricted Units'!$T$7:$T$399=\"50% AMI\"))","v":0},{"$f":"SUMPRODUCT(('2. Assisted & Restricted Units'!$E$7:$E$399=\"Ghocc\")*('2. Assisted & Restricted Units'!$S$7:$S$399=\"NonAssisted\")*('2. Assisted & Restricted Units'!$T$7:$T$399=\"50% AMI\"))","v":0},{"$f":"SUMPRODUCT(('2. Assisted & Restricted Units'!$E$7:$E$399=\"Ghocc\")*('2. Assisted & Restricted Units'!$S$7:$S$399=\"Other Restr\")*('2. Assisted & Restricted Units'!$T$7:$T$399=\"50% AMI\"))","v":0},{"$f":"SUMPRODUCT(('2. Assisted & Restricted Units'!$E$7:$E$399=\"Ghocc\")*('2. Assisted & Restricted Units'!$S$7:$S$399=\"RHCP-B\")*('2. Assisted & Restricted Units'!$T$7:$T$399=\"50% AMI\"))","v":0},{"$f":"SUMPRODUCT(('2. Assisted & Restricted Units'!$E$7:$E$399=\"Ghocc\")*('2. Assisted & Restricted Units'!$S$7:$S$399=\"SERA\")*('2. Assisted & Restricted Units'!$T$7:$T$399=\"50% AMI\"))","v":0},{"$f":"SUMPRODUCT(('2. Assisted & Restricted Units'!$E$7:$E$399=\"Ghocc\")*('2. Assisted & Restricted Units'!$S$7:$S$399=\"SUHRP\")*('2. Assisted & Restricted Units'!$T$7:$T$399=\"50% AMI\"))","v":0},{"$f":"SUMPRODUCT(('2. Assisted & Restricted Units'!$E$7:$E$399=\"Ghocc\")*('2. Assisted & Restricted Units'!$S$7:$S$399=\"TOD\")*('2. Assisted & Restricted Units'!$T$7:$T$399=\"50% AMI\"))","v":0},{"$f":"SUMPRODUCT(('2. Assisted & Restricted Units'!$E$7:$E$399=\"Ghocc\")*('2. Assisted & Restricted Units'!$S$7:$S$399=\"707-E\")*('2. Assisted & Restricted Units'!$T$7:$T$399=\"50% AMI\"))","v":0},{"$f":"SUMPRODUCT(('2. Assisted & Restricted Units'!$E$7:$E$399=\"Ghocc\")*('2. Assisted & Restricted Units'!$S$7:$S$399=\"707-N\")*('2. Assisted & Restricted Units'!$T$7:$T$399=\"50% AMI\"))","v":0}]
["Ghocc 55% AMI",{"$f":"SUMPRODUCT(('2. Assisted & Restricted Units'!$E$7:$E$399=\"Ghocc\")*('2. Assisted & Restricted Units'!$S$7:$S$399=\"CALDAP\")*('2. Assisted & Restricted Units'!$T$7:$T$399=\"55% AMI\"))","v":0},{"$f":"SUMPRODUCT(('2. Assisted & Restricted Units'!$E$7:$E$399=\"Ghocc\")*('2. Assisted & Restricted Units'!$S$7:$S$399=\"CHRP-R\")*('2. Assisted & Restricted Units'!$T$7:$T$399=\"55% AMI\"))","v":0},{"$f":"SUMPRODUCT(('2. Assisted & Restricted Units'!$E$7:$E$399=\"Ghocc\")*('2. Assisted & Restricted Units'!$S$7:$S$399=\"DDS\")*('2. Assisted & Restricted Units'!$T$7:$T$399=\"55% AMI\"))","v":0},{"$f":"SUMPRODUCT(('2. Assisted & Restricted Units'!$E$7:$E$399=\"Ghocc\")*('2. Assisted & Restricted Units'!$S$7:$S$399=\"DPRLP\")*('2. Assisted & Restricted Units'!$T$7:$T$399=\"55% AMI\"))","v":0},{"$f":"SUMPRODUCT(('2. Assisted & Restricted Units'!$E$7:$E$399=\"Ghocc\")*('2. Assisted & Restricted Units'!$S$7:$S$399=\"FHDP\")*('2. Assisted & Restricted Units'!$T$7:$T$399=\"55% AMI\"))","v":0},{"$f":"SUMPRODUCT(('2. Assisted & Restricted Units'!$E$7:$E$399=\"Ghocc\")*('2. Assisted & Restricted Units'!$S$7:$S$399=\"FMTW\")*('2. Assisted & Restricted Units'!$T$7:$T$399=\"55% AMI\"))","v":0},null,{"$f":"SUMPRODUCT(('2. Assisted & Restricted Units'!$E$7:$E$399=\"Ghocc\")*('2. Assisted & Restricted Units'!$S$7:$S$399=\"HOME\")*('2. Assisted & Restricted Units'!$T$7:$T$399=\"55% AMI\"))","v":0},{"$f":"SUMPRODUCT(('2. Assisted & Restricted Units'!$E$7:$E$399=\"Ghocc\")*('2. Assisted & Restricted Units'!$S$7:$S$399=\"Market Rate\")*('2. Assisted & Restricted Units'!$T$7:$T$399=\"55% AMI\"))","v":0},{"$f":"SUMPRODUCT(('2. Assisted & Restricted Units'!$E$7:$E$399=\"Ghocc\")*('2. Assisted & Restricted Units'!$S$7:$S$399=\"MHP\")*('2. Assisted & Restricted Units'!$T$7:$T$399=\"55% AMI\"))","v":0},{"$f":"SUMPRODUCT(('2. Assisted & Restricted Units'!$E$7:$E$399=\"Ghocc\")*('2. Assisted & Restricted Units'!$S$7:$S$399=\"NonAssisted\")*('2. Assisted & Restricted Units'!$T$7:$T$399=\"55% AMI\"))","v":0},{"$f":"SUMPRODUCT(('2. Assisted & Restricted Units'!$E$7:$E$399=\"Ghocc\")*('2. Assisted & Restricted Units'!$S$7:$S$399=\"Other Restr\")*('2. Assisted & Restricted Units'!$T$7:$T$399=\"55% AMI\"))","v":0},{"$f":"SUMPRODUCT(('2. Assisted & Restricted Units'!$E$7:$E$399=\"Ghocc\")*('2. Assisted & Restricted Units'!$S$7:$S$399=\"RHCP-B\")*('2. Assisted & Restricted Units'!$T$7:$T$399=\"55% AMI\"))","v":0},{"$f":"SUMPRODUCT(('2. Assisted & Restricted Units'!$E$7:$E$399=\"Ghocc\")*('2. Assisted & Restricted Units'!$S$7:$S$399=\"SERA\")*('2. Assisted & Restricted Units'!$T$7:$T$399=\"55% AMI\"))","v":0},{"$f":"SUMPRODUCT(('2. Assisted & Restricted Units'!$E$7:$E$399=\"Ghocc\")*('2. Assisted & Restricted Units'!$S$7:$S$399=\"SUHRP\")*('2. Assisted & Restricted Units'!$T$7:$T$399=\"55% AMI\"))","v":0},{"$f":"SUMPRODUCT(('2. Assisted & Restricted Units'!$E$7:$E$399=\"Ghocc\")*('2. Assisted & Restricted Units'!$S$7:$S$399=\"TOD\")*('2. Assisted & Restricted Units'!$T$7:$T$399=\"55% AMI\"))","v":0},{"$f":"SUMPRODUCT(('2. Assisted & Restricted Units'!$E$7:$E$399=\"Ghocc\")*('2. Assisted & Restricted Units'!$S$7:$S$399=\"707-E\")*('2. Assisted & Restricted Units'!$T$7:$T$399=\"55% AMI\"))","v":0},{"$f":"SUMPRODUCT(('2. Assisted & Restricted Units'!$E$7:$E$399=\"Ghocc\")*('2. Assisted & Restricted Units'!$S$7:$S$399=\"707-N\")*('2. Assisted & Restricted Units'!$T$7:$T$399=\"55% AMI\"))","v":0}]
["Ghocc 60% AMI",{"$f":"SUMPRODUCT(('2. Assisted & Restricted Units'!$E$7:$E$399=\"Ghocc\")*('2. Assisted & Restricted Units'!$S$7:$S$399=\"CALDAP\")*('2. Assisted & Restricted Units'!$T$7:$T$399=\"60% AMI\"))","v":0},{"$f":"SUMPRODUCT(('2. Assisted & Restricted Units'!$E$7:$E$399=\"Ghocc\")*('2. Assisted & Restricted Units'!$S$7:$S$399=\"CHRP-R\")*('2. Assisted & Restricted Units'!$T$7:$T$399=\"60% AMI\"))","v":0},{"$f":"SUMPRODUCT(('2. Assisted & Restricted Units'!$E$7:$E$399=\"Ghocc\")*('2. Assisted & Restricted Units'!$S$7:$S$399=\"DDS\")*('2. Assisted & Restricted Units'!$T$7:$T$399=\"60% AMI\"))","v":0},{"$f":"SUMPRODUCT(('2. Assisted & Restricted Units'!$E$7:$E$399=\"Ghocc\")*('2. Assisted & Restricted Units'!$S$7:$S$399=\"DPRLP\")*('2. Assisted & Restricted Units'!$T$7:$T$399=\"60% AMI\"))","v":0},{"$f":"SUMPRODUCT(('2. Assisted & Restricted Units'!$E$7:$E$399=\"Ghocc\")*('2. Assisted & Restricted Units'!$S$7:$S$399=\"FHDP\")*('2. Assisted & Restricted Units'!$T$7:$T$399=\"60% AMI\"))","v":0},{"$f":"SUMPRODUCT(('2. Assisted & Restricted Units'!$E$7:$E$399=\"Ghocc\")*('2. Assisted & Restricted Units'!$S$7:$S$399=\"FMTW\")*('2. Assisted & Restricted Units'!$T$7:$T$399=\"60% AMI\"))","v":0},null,{"$f":"SUMPRODUCT(('2. Assisted & Restricted Units'!$E$7:$E$399=\"Ghocc\")*('2. Assisted & Restricted Units'!$S$7:$S$399=\"HOME\")*('2. Assisted & Restricted Units'!$T$7:$T$399=\"60% AMI\"))","v":0},{"$f":"SUMPRODUCT(('2. Assisted & Restricted Units'!$E$7:$E$399=\"Ghocc\")*('2. Assisted & Restricted Units'!$S$7:$S$399=\"Market Rate\")*('2. Assisted & Restricted Units'!$T$7:$T$399=\"60% AMI\"))","v":0},{"$f":"SUMPRODUCT(('2. Assisted & Restricted Units'!$E$7:$E$399=\"Ghocc\")*('2. Assisted & Restricted Units'!$S$7:$S$399=\"MHP\")*('2. Assisted & Restricted Units'!$T$7:$T$399=\"60% AMI\"))","v":0},{"$f":"SUMPRODUCT(('2. Assisted & Restricted Units'!$E$7:$E$399=\"Ghocc\")*('2. Assisted & Restricted Units'!$S$7:$S$399=\"NonAssisted\")*('2. Assisted & Restricted Units'!$T$7:$T$399=\"60% AMI\"))","v":0},{"$f":"SUMPRODUCT(('2. Assisted & Restricted Units'!$E$7:$E$399=\"Ghocc\")*('2. Assisted & Restricted Units'!$S$7:$S$399=\"Other Restr\")*('2. Assisted & Restricted Units'!$T$7:$T$399=\"60% AMI\"))","v":0},{"$f":"SUMPRODUCT(('2. Assisted & Restricted Units'!$E$7:$E$399=\"Ghocc\")*('2. Assisted & Restricted Units'!$S$7:$S$399=\"RHCP-B\")*('2. Assisted & Restricted Units'!$T$7:$T$399=\"60% AMI\"))","v":0},{"$f":"SUMPRODUCT(('2. Assisted & Restricted Units'!$E$7:$E$399=\"Ghocc\")*('2. Assisted & Restricted Units'!$S$7:$S$399=\"SERA\")*('2. Assisted & Restricted Units'!$T$7:$T$399=\"60% AMI\"))","v":0},{"$f":"SUMPRODUCT(('2. Assisted & Restricted Units'!$E$7:$E$399=\"Ghocc\")*('2. Assisted & Restricted Units'!$S$7:$S$399=\"SUHRP\")*('2. Assisted & Restricted Units'!$T$7:$T$399=\"60% AMI\"))","v":0},{"$f":"SUMPRODUCT(('2. Assisted & Restricted Units'!$E$7:$E$399=\"Ghocc\")*('2. Assisted & Restricted Units'!$S$7:$S$399=\"TOD\")*('2. Assisted & Restricted Units'!$T$7:$T$399=\"60% AMI\"))","v":0},{"$f":"SUMPRODUCT(('2. Assisted & Restricted Units'!$E$7:$E$399=\"Ghocc\")*('2. Assisted & Restricted Units'!$S$7:$S$399=\"707-E\")*('2. Assisted & Restricted Units'!$T$7:$T$399=\"60% AMI\"))","v":0},{"$f":"SUMPRODUCT(('2. Assisted & Restricted Units'!$E$7:$E$399=\"Ghocc\")*('2. Assisted & Restricted Units'!$S$7:$S$399=\"707-N\")*('2. Assisted & Restricted Units'!$T$7:$T$399=\"60% AMI\"))","v":0}]
["Ghocc 80% AMI",{"$f":"SUMPRODUCT(('2. Assisted & Restricted Units'!$E$7:$E$399=\"Ghocc\")*('2. Assisted & Restricted Units'!$S$7:$S$399=\"CALDAP\")*('2. Assisted & Restricted Units'!$T$7:$T$399=\"80% AMI\"))","v":0},{"$f":"SUMPRODUCT(('2. Assisted & Restricted Units'!$E$7:$E$399=\"Ghocc\")*('2. Assisted & Restricted Units'!$S$7:$S$399=\"CHRP-R\")*('2. Assisted & Restricted Units'!$T$7:$T$399=\"80% AMI\"))","v":0},{"$f":"SUMPRODUCT(('2. Assisted & Restricted Units'!$E$7:$E$399=\"Ghocc\")*('2. Assisted & Restricted Units'!$S$7:$S$399=\"DDS\")*('2. Assisted & Restricted Units'!$T$7:$T$399=\"80% AMI\"))","v":0},{"$f":"SUMPRODUCT(('2. Assisted & Restricted Units'!$E$7:$E$399=\"Ghocc\")*('2. Assisted & Restricted Units'!$S$7:$S$399=\"DPRLP\")*('2. Assisted & Restricted Units'!$T$7:$T$399=\"80% AMI\"))","v":0},{"$f":"SUMPRODUCT(('2. Assisted & Restricted Units'!$E$7:$E$399=\"Ghocc\")*('2. Assisted & Restricted Units'!$S$7:$S$399=\"FHDP\")*('2. Assisted & Restricted Units'!$T$7:$T$399=\"80% AMI\"))","v":0},{"$f":"SUMPRODUCT(('2. Assisted & Restricted Units'!$E$7:$E$399=\"Ghocc\")*('2. Assisted & Restricted Units'!$S$7:$S$399=\"FMTW\")*('2. Assisted & Restricted Units'!$T$7:$T$399=\"80% AMI\"))","v":0},null,{"$f":"SUMPRODUCT(('2. Assisted & Restricted Units'!$E$7:$E$399=\"Ghocc\")*('2. Assisted & Restricted Units'!$S$7:$S$399=\"HOME\")*('2. Assisted & Restricted Units'!$T$7:$T$399=\"80% AMI\"))","v":0},{"$f":"SUMPRODUCT(('2. Assisted & Restricted Units'!$E$7:$E$399=\"Ghocc\")*('2. Assisted & Restricted Units'!$S$7:$S$399=\"Market Rate\")*('2. Assisted & Restricted Units'!$T$7:$T$399=\"80% AMI\"))","v":0},{"$f":"SUMPRODUCT(('2. Assisted & Restricted Units'!$E$7:$E$399=\"Ghocc\")*('2. Assisted & Restricted Units'!$S$7:$S$399=\"MHP\")*('2. Assisted & Restricted Units'!$T$7:$T$399=\"80% AMI\"))","v":0},{"$f":"SUMPRODUCT(('2. Assisted & Restricted Units'!$E$7:$E$399=\"Ghocc\")*('2. Assisted & Restricted Units'!$S$7:$S$399=\"NonAssisted\")*('2. Assisted & Restricted Units'!$T$7:$T$399=\"80% AMI\"))","v":0},{"$f":"SUMPRODUCT(('2. Assisted & Restricted Units'!$E$7:$E$399=\"Ghocc\")*('2. Assisted & Restricted Units'!$S$7:$S$399=\"Other Restr\")*('2. Assisted & Restricted Units'!$T$7:$T$399=\"80% AMI\"))","v":0},{"$f":"SUMPRODUCT(('2. Assisted & Restricted Units'!$E$7:$E$399=\"Ghocc\")*('2. Assisted & Restricted Units'!$S$7:$S$399=\"RHCP-B\")*('2. Assisted & Restricted Units'!$T$7:$T$399=\"80% AMI\"))","v":0},{"$f":"SUMPRODUCT(('2. Assisted & Restricted Units'!$E$7:$E$399=\"Ghocc\")*('2. Assisted & Restricted Units'!$S$7:$S$399=\"SERA\")*('2. Assisted & Restricted Units'!$T$7:$T$399=\"80% AMI\"))","v":0},{"$f":"SUMPRODUCT(('2. Assisted & Restricted Units'!$E$7:$E$399=\"Ghocc\")*('2. Assisted & Restricted Units'!$S$7:$S$399=\"SUHRP\")*('2. Assisted & Restricted Units'!$T$7:$T$399=\"80% AMI\"))","v":0},{"$f":"SUMPRODUCT(('2. Assisted & Restricted Units'!$E$7:$E$399=\"Ghocc\")*('2. Assisted & Restricted Units'!$S$7:$S$399=\"TOD\")*('2. Assisted & Restricted Units'!$T$7:$T$399=\"80% AMI\"))","v":0},{"$f":"SUMPRODUCT(('2. Assisted & Restricted Units'!$E$7:$E$399=\"Ghocc\")*('2. Assisted & Restricted Units'!$S$7:$S$399=\"707-E\")*('2. Assisted & Restricted Units'!$T$7:$T$399=\"80% AMI\"))","v":0},{"$f":"SUMPRODUCT(('2. Assisted & Restricted Units'!$E$7:$E$399=\"Ghocc\")*('2. Assisted & Restricted Units'!$S$7:$S$399=\"707-N\")*('2. Assisted & Restricted Units'!$T$7:$T$399=\"80% AMI\"))","v":0}]
["Ghocc 20% SMI",{"$f":"SUMPRODUCT(('2. Assisted & Restricted Units'!$E$7:$E$399=\"Ghocc\")*('2. Assisted & Restricted Units'!$S$7:$S$399=\"CALDAP\")*('2. Assisted & Restricted Units'!$T$7:$T$399=\"20% SMI\"))","v":0},{"$f":"SUMPRODUCT(('2. Assisted & Restricted Units'!$E$7:$E$399=\"Ghocc\")*('2. Assisted & Restricted Units'!$S$7:$S$399=\"CHRP-R\")*('2. Assisted & Restricted Units'!$T$7:$T$399=\"20% SMI\"))","v":0},{"$f":"SUMPRODUCT(('2. Assisted & Restricted Units'!$E$7:$E$399=\"Ghocc\")*('2. Assisted & Restricted Units'!$S$7:$S$399=\"DDS\")*('2. Assisted & Restricted Units'!$T$7:$T$399=\"20% SMI\"))","v":0},{"$f":"SUMPRODUCT(('2. Assisted & Restricted Units'!$E$7:$E$399=\"Ghocc\")*('2. Assisted & Restricted Units'!$S$7:$S$399=\"DPRLP\")*('2. Assisted & Restricted Units'!$T$7:$T$399=\"20% SMI\"))","v":0},{"$f":"SUMPRODUCT(('2. Assisted & Restricted Units'!$E$7:$E$399=\"Ghocc\")*('2. Assisted & Restricted Units'!$S$7:$S$399=\"FHDP\")*('2. Assisted & Restricted Units'!$T$7:$T$399=\"20% SMI\"))","v":0},{"$f":"SUMPRODUCT(('2. Assisted & Restricted Units'!$E$7:$E$399=\"Ghocc\")*('2. Assisted & Restricted Units'!$S$7:$S$399=\"FMTW\")*('2. Assisted & Restricted Units'!$T$7:$T$399=\"20% SMI\"))","v":0},null,{"$f":"SUMPRODUCT(('2. Assisted & Restricted Units'!$E$7:$E$399=\"Ghocc\")*('2. Assisted & Restricted Units'!$S$7:$S$399=\"HOME\")*('2. Assisted & Restricted Units'!$T$7:$T$399=\"20% SMI\"))","v":0},{"$f":"SUMPRODUCT(('2. Assisted & Restricted Units'!$E$7:$E$399=\"Ghocc\")*('2. Assisted & Restricted Units'!$S$7:$S$399=\"Market Rate\")*('2. Assisted & Restricted Units'!$T$7:$T$399=\"20% SMI\"))","v":0},{"$f":"SUMPRODUCT(('2. Assisted & Restricted Units'!$E$7:$E$399=\"Ghocc\")*('2. Assisted & Restricted Units'!$S$7:$S$399=\"MHP\")*('2. Assisted & Restricted Units'!$T$7:$T$399=\"20% SMI\"))","v":0},{"$f":"SUMPRODUCT(('2. Assisted & Restricted Units'!$E$7:$E$399=\"Ghocc\")*('2. Assisted & Restricted Units'!$S$7:$S$399=\"NonAssisted\")*('2. Assisted & Restricted Units'!$T$7:$T$399=\"20% SMI\"))","v":0},{"$f":"SUMPRODUCT(('2. Assisted & Restricted Units'!$E$7:$E$399=\"Ghocc\")*('2. Assisted & Restricted Units'!$S$7:$S$399=\"Other Restr\")*('2. Assisted & Restricted Units'!$T$7:$T$399=\"20% SMI\"))","v":0},{"$f":"SUMPRODUCT(('2. Assisted & Restricted Units'!$E$7:$E$399=\"Ghocc\")*('2. Assisted & Restricted Units'!$S$7:$S$399=\"RHCP-B\")*('2. Assisted & Restricted Units'!$T$7:$T$399=\"20% SMI\"))","v":0},{"$f":"SUMPRODUCT(('2. Assisted & Restricted Units'!$E$7:$E$399=\"Ghocc\")*('2. Assisted & Restricted Units'!$S$7:$S$399=\"SERA\")*('2. Assisted & Restricted Units'!$T$7:$T$399=\"20% SMI\"))","v":0},{"$f":"SUMPRODUCT(('2. Assisted & Restricted Units'!$E$7:$E$399=\"Ghocc\")*('2. Assisted & Restricted Units'!$S$7:$S$399=\"SUHRP\")*('2. Assisted & Restricted Units'!$T$7:$T$399=\"20% SMI\"))","v":0},{"$f":"SUMPRODUCT(('2. Assisted & Restricted Units'!$E$7:$E$399=\"Ghocc\")*('2. Assisted & Restricted Units'!$S$7:$S$399=\"TOD\")*('2. Assisted & Restricted Units'!$T$7:$T$399=\"20% SMI\"))","v":0},{"$f":"SUMPRODUCT(('2. Assisted & Restricted Units'!$E$7:$E$399=\"Ghocc\")*('2. Assisted & Restricted Units'!$S$7:$S$399=\"707-E\")*('2. Assisted & Restricted Units'!$T$7:$T$399=\"20% SMI\"))","v":0},{"$f":"SUMPRODUCT(('2. Assisted & Restricted Units'!$E$7:$E$399=\"Ghocc\")*('2. Assisted & Restricted Units'!$S$7:$S$399=\"707-N\")*('2. Assisted & Restricted Units'!$T$7:$T$399=\"20% SMI\"))","v":0}]
["Ghocc 25% SMI",{"$f":"SUMPRODUCT(('2. Assisted & Restricted Units'!$E$7:$E$399=\"Ghocc\")*('2. Assisted & Restricted Units'!$S$7:$S$399=\"CALDAP\")*('2. Assisted & Restricted Units'!$T$7:$T$399=\"25% SMI\"))","v":0},{"$f":"SUMPRODUCT(('2. Assisted & Restricted Units'!$E$7:$E$399=\"Ghocc\")*('2. Assisted & Restricted Units'!$S$7:$S$399=\"CHRP-R\")*('2. Assisted & Restricted Units'!$T$7:$T$399=\"25% SMI\"))","v":0},{"$f":"SUMPRODUCT(('2. Assisted & Restricted Units'!$E$7:$E$399=\"Ghocc\")*('2. Assisted & Restricted Units'!$S$7:$S$399=\"DDS\")*('2. Assisted & Restricted Units'!$T$7:$T$399=\"25% SMI\"))","v":0},{"$f":"SUMPRODUCT(('2. Assisted & Restricted Units'!$E$7:$E$399=\"Ghocc\")*('2. Assisted & Restricted Units'!$S$7:$S$399=\"DPRLP\")*('2. Assisted & Restricted Units'!$T$7:$T$399=\"25% SMI\"))","v":0},{"$f":"SUMPRODUCT(('2. Assisted & Restricted Units'!$E$7:$E$399=\"Ghocc\")*('2. Assisted & Restricted Units'!$S$7:$S$399=\"FHDP\")*('2. Assisted & Restricted Units'!$T$7:$T$399=\"25% SMI\"))","v":0},{"$f":"SUMPRODUCT(('2. Assisted & Restricted Units'!$E$7:$E$399=\"Ghocc\")*('2. Assisted & Restricted Units'!$S$7:$S$399=\"FMTW\")*('2. Assisted & Restricted Units'!$T$7:$T$399=\"25% SMI\"))","v":0},null,{"$f":"SUMPRODUCT(('2. Assisted & Restricted Units'!$E$7:$E$399=\"Ghocc\")*('2. Assisted & Restricted Units'!$S$7:$S$399=\"HOME\")*('2. Assisted & Restricted Units'!$T$7:$T$399=\"25% SMI\"))","v":0},{"$f":"SUMPRODUCT(('2. Assisted & Restricted Units'!$E$7:$E$399=\"Ghocc\")*('2. Assisted & Restricted Units'!$S$7:$S$399=\"Market Rate\")*('2. Assisted & Restricted Units'!$T$7:$T$399=\"25% SMI\"))","v":0},{"$f":"SUMPRODUCT(('2. Assisted & Restricted Units'!$E$7:$E$399=\"Ghocc\")*('2. Assisted & Restricted Units'!$S$7:$S$399=\"MHP\")*('2. Assisted & Restricted Units'!$T$7:$T$399=\"25% SMI\"))","v":0},{"$f":"SUMPRODUCT(('2. Assisted & Restricted Units'!$E$7:$E$399=\"Ghocc\")*('2. Assisted & Restricted Units'!$S$7:$S$399=\"NonAssisted\")*('2. Assisted & Restricted Units'!$T$7:$T$399=\"25% SMI\"))","v":0},{"$f":"SUMPRODUCT(('2. Assisted & Restricted Units'!$E$7:$E$399=\"Ghocc\")*('2. Assisted & Restricted Units'!$S$7:$S$399=\"Other Restr\")*('2. Assisted & Restricted Units'!$T$7:$T$399=\"25% SMI\"))","v":0},{"$f":"SUMPRODUCT(('2. Assisted & Restricted Units'!$E$7:$E$399=\"Ghocc\")*('2. Assisted & Restricted Units'!$S$7:$S$399=\"RHCP-B\")*('2. Assisted & Restricted Units'!$T$7:$T$399=\"25% SMI\"))","v":0},{"$f":"SUMPRODUCT(('2. Assisted & Restricted Units'!$E$7:$E$399=\"Ghocc\")*('2. Assisted & Restricted Units'!$S$7:$S$399=\"SERA\")*('2. Assisted & Restricted Units'!$T$7:$T$399=\"25% SMI\"))","v":0},{"$f":"SUMPRODUCT(('2. Assisted & Restricted Units'!$E$7:$E$399=\"Ghocc\")*('2. Assisted & Restricted Units'!$S$7:$S$399=\"SUHRP\")*('2. Assisted & Restricted Units'!$T$7:$T$399=\"25% SMI\"))","v":0},{"$f":"SUMPRODUCT(('2. Assisted & Restricted Units'!$E$7:$E$399=\"Ghocc\")*('2. Assisted & Restricted Units'!$S$7:$S$399=\"TOD\")*('2. Assisted & Restricted Units'!$T$7:$T$399=\"25% SMI\"))","v":0},{"$f":"SUMPRODUCT(('2. Assisted & Restricted Units'!$E$7:$E$399=\"Ghocc\")*('2. Assisted & Restricted Units'!$S$7:$S$399=\"707-E\")*('2. Assisted & Restricted Units'!$T$7:$T$399=\"25% SMI\"))","v":0},{"$f":"SUMPRODUCT(('2. Assisted & Restricted Units'!$E$7:$E$399=\"Ghocc\")*('2. Assisted & Restricted Units'!$S$7:$S$399=\"707-N\")*('2. Assisted & Restricted Units'!$T$7:$T$399=\"25% SMI\"))","v":0}]
["Ghocc 30% SMI",{"$f":"SUMPRODUCT(('2. Assisted & Restricted Units'!$E$7:$E$399=\"Ghocc\")*('2. Assisted & Restricted Units'!$S$7:$S$399=\"CALDAP\")*('2. Assisted & Restricted Units'!$T$7:$T$399=\"30% SMI\"))","v":0},{"$f":"SUMPRODUCT(('2. Assisted & Restricted Units'!$E$7:$E$399=\"Ghocc\")*('2. Assisted & Restricted Units'!$S$7:$S$399=\"CHRP-R\")*('2. Assisted & Restricted Units'!$T$7:$T$399=\"30% SMI\"))","v":0},{"$f":"SUMPRODUCT(('2. Assisted & Restricted Units'!$E$7:$E$399=\"Ghocc\")*('2. Assisted & Restricted Units'!$S$7:$S$399=\"DDS\")*('2. Assisted & Restricted Units'!$T$7:$T$399=\"30% SMI\"))","v":0},{"$f":"SUMPRODUCT(('2. Assisted & Restricted Units'!$E$7:$E$399=\"Ghocc\")*('2. Assisted & Restricted Units'!$S$7:$S$399=\"DPRLP\")*('2. Assisted & Restricted Units'!$T$7:$T$399=\"30% SMI\"))","v":0},{"$f":"SUMPRODUCT(('2. Assisted & Restricted Units'!$E$7:$E$399=\"Ghocc\")*('2. Assisted & Restricted Units'!$S$7:$S$399=\"FHDP\")*('2. Assisted & Restricted Units'!$T$7:$T$399=\"30% SMI\"))","v":0},{"$f":"SUMPRODUCT(('2. Assisted & Restricted Units'!$E$7:$E$399=\"Ghocc\")*('2. Assisted & Restricted Units'!$S$7:$S$399=\"FMTW\")*('2. Assisted & Restricted Units'!$T$7:$T$399=\"30% SMI\"))","v":0},null,{"$f":"SUMPRODUCT(('2. Assisted & Restricted Units'!$E$7:$E$399=\"Ghocc\")*('2. Assisted & Restricted Units'!$S$7:$S$399=\"HOME\")*('2. Assisted & Restricted Units'!$T$7:$T$399=\"30% SMI\"))","v":0},{"$f":"SUMPRODUCT(('2. Assisted & Restricted Units'!$E$7:$E$399=\"Ghocc\")*('2. Assisted & Restricted Units'!$S$7:$S$399=\"Market Rate\")*('2. Assisted & Restricted Units'!$T$7:$T$399=\"30% SMI\"))","v":0},{"$f":"SUMPRODUCT(('2. Assisted & Restricted Units'!$E$7:$E$399=\"Ghocc\")*('2. Assisted & Restricted Units'!$S$7:$S$399=\"MHP\")*('2. Assisted & Restricted Units'!$T$7:$T$399=\"30% SMI\"))","v":0},{"$f":"SUMPRODUCT(('2. Assisted & Restricted Units'!$E$7:$E$399=\"Ghocc\")*('2. Assisted & Restricted Units'!$S$7:$S$399=\"NonAssisted\")*('2. Assisted & Restricted Units'!$T$7:$T$399=\"30% SMI\"))","v":0},{"$f":"SUMPRODUCT(('2. Assisted & Restricted Units'!$E$7:$E$399=\"Ghocc\")*('2. Assisted & Restricted Units'!$S$7:$S$399=\"Other Restr\")*('2. Assisted & Restricted Units'!$T$7:$T$399=\"30% SMI\"))","v":0},{"$f":"SUMPRODUCT(('2. Assisted & Restricted Units'!$E$7:$E$399=\"Ghocc\")*('2. Assisted & Restricted Units'!$S$7:$S$399=\"RHCP-B\")*('2. Assisted & Restricted Units'!$T$7:$T$399=\"30% SMI\"))","v":0},{"$f":"SUMPRODUCT(('2. Assisted & Restricted Units'!$E$7:$E$399=\"Ghocc\")*('2. Assisted & Restricted Units'!$S$7:$S$399=\"SERA\")*('2. Assisted & Restricted Units'!$T$7:$T$399=\"30% SMI\"))","v":0},{"$f":"SUMPRODUCT(('2. Assisted & Restricted Units'!$E$7:$E$399=\"Ghocc\")*('2. Assisted & Restricted Units'!$S$7:$S$399=\"SUHRP\")*('2. Assisted & Restricted Units'!$T$7:$T$399=\"30% SMI\"))","v":0},{"$f":"SUMPRODUCT(('2. Assisted & Restricted Units'!$E$7:$E$399=\"Ghocc\")*('2. Assisted & Restricted Units'!$S$7:$S$399=\"TOD\")*('2. Assisted & Restricted Units'!$T$7:$T$399=\"30% SMI\"))","v":0},{"$f":"SUMPRODUCT(('2. Assisted & Restricted Units'!$E$7:$E$399=\"Ghocc\")*('2. Assisted & Restricted Units'!$S$7:$S$399=\"707-E\")*('2. Assisted & Restricted Units'!$T$7:$T$399=\"30% SMI\"))","v":0},{"$f":"SUMPRODUCT(('2. Assisted & Restricted Units'!$E$7:$E$399=\"Ghocc\")*('2. Assisted & Restricted Units'!$S$7:$S$399=\"707-N\")*('2. Assisted & Restricted Units'!$T$7:$T$399=\"30% SMI\"))","v":0}]
["Ghocc 35% SMI",{"$f":"SUMPRODUCT(('2. Assisted & Restricted Units'!$E$7:$E$399=\"Ghocc\")*('2. Assisted & Restricted Units'!$S$7:$S$399=\"CALDAP\")*('2. Assisted & Restricted Units'!$T$7:$T$399=\"35% SMI\"))","v":0},{"$f":"SUMPRODUCT(('2. Assisted & Restricted Units'!$E$7:$E$399=\"Ghocc\")*('2. Assisted & Restricted Units'!$S$7:$S$399=\"CHRP-R\")*('2. Assisted & Restricted Units'!$T$7:$T$399=\"35% SMI\"))","v":0},{"$f":"SUMPRODUCT(('2. Assisted & Restricted Units'!$E$7:$E$399=\"Ghocc\")*('2. Assisted & Restricted Units'!$S$7:$S$399=\"DDS\")*('2. Assisted & Restricted Units'!$T$7:$T$399=\"35% SMI\"))","v":0},{"$f":"SUMPRODUCT(('2. Assisted & Restricted Units'!$E$7:$E$399=\"Ghocc\")*('2. Assisted & Restricted Units'!$S$7:$S$399=\"DPRLP\")*('2. Assisted & Restricted Units'!$T$7:$T$399=\"35% SMI\"))","v":0},{"$f":"SUMPRODUCT(('2. Assisted & Restricted Units'!$E$7:$E$399=\"Ghocc\")*('2. Assisted & Restricted Units'!$S$7:$S$399=\"FHDP\")*('2. Assisted & Restricted Units'!$T$7:$T$399=\"35% SMI\"))","v":0},{"$f":"SUMPRODUCT(('2. Assisted & Restricted Units'!$E$7:$E$399=\"Ghocc\")*('2. Assisted & Restricted Units'!$S$7:$S$399=\"FMTW\")*('2. Assisted & Restricted Units'!$T$7:$T$399=\"35% SMI\"))","v":0},null,{"$f":"SUMPRODUCT(('2. Assisted & Restricted Units'!$E$7:$E$399=\"Ghocc\")*('2. Assisted & Restricted Units'!$S$7:$S$399=\"HOME\")*('2. Assisted & Restricted Units'!$T$7:$T$399=\"35% SMI\"))","v":0},{"$f":"SUMPRODUCT(('2. Assisted & Restricted Units'!$E$7:$E$399=\"Ghocc\")*('2. Assisted & Restricted Units'!$S$7:$S$399=\"Market Rate\")*('2. Assisted & Restricted Units'!$T$7:$T$399=\"35% SMI\"))","v":0},{"$f":"SUMPRODUCT(('2. Assisted & Restricted Units'!$E$7:$E$399=\"Ghocc\")*('2. Assisted & Restricted Units'!$S$7:$S$399=\"MHP\")*('2. Assisted & Restricted Units'!$T$7:$T$399=\"35% SMI\"))","v":0},{"$f":"SUMPRODUCT(('2. Assisted & Restricted Units'!$E$7:$E$399=\"Ghocc\")*('2. Assisted & Restricted Units'!$S$7:$S$399=\"NonAssisted\")*('2. Assisted & Restricted Units'!$T$7:$T$399=\"35% SMI\"))","v":0},{"$f":"SUMPRODUCT(('2. Assisted & Restricted Units'!$E$7:$E$399=\"Ghocc\")*('2. Assisted & Restricted Units'!$S$7:$S$399=\"Other Restr\")*('2. Assisted & Restricted Units'!$T$7:$T$399=\"35% SMI\"))","v":0},{"$f":"SUMPRODUCT(('2. Assisted & Restricted Units'!$E$7:$E$399=\"Ghocc\")*('2. Assisted & Restricted Units'!$S$7:$S$399=\"RHCP-B\")*('2. Assisted & Restricted Units'!$T$7:$T$399=\"35% SMI\"))","v":0},{"$f":"SUMPRODUCT(('2. Assisted & Restricted Units'!$E$7:$E$399=\"Ghocc\")*('2. Assisted & Restricted Units'!$S$7:$S$399=\"SERA\")*('2. Assisted & Restricted Units'!$T$7:$T$399=\"35% SMI\"))","v":0},{"$f":"SUMPRODUCT(('2. Assisted & Restricted Units'!$E$7:$E$399=\"Ghocc\")*('2. Assisted & Restricted Units'!$S$7:$S$399=\"SUHRP\")*('2. Assisted & Restricted Units'!$T$7:$T$399=\"35% SMI\"))","v":0},{"$f":"SUMPRODUCT(('2. Assisted & Restricted Units'!$E$7:$E$399=\"Ghocc\")*('2. Assisted & Restricted Units'!$S$7:$S$399=\"TOD\")*('2. Assisted & Restricted Units'!$T$7:$T$399=\"35% SMI\"))","v":0},{"$f":"SUMPRODUCT(('2. Assisted & Restricted Units'!$E$7:$E$399=\"Ghocc\")*('2. Assisted & Restricted Units'!$S$7:$S$399=\"707-E\")*('2. Assisted & Restricted Units'!$T$7:$T$399=\"35% SMI\"))","v":0},{"$f":"SUMPRODUCT(('2. Assisted & Restricted Units'!$E$7:$E$399=\"Ghocc\")*('2. Assisted & Restricted Units'!$S$7:$S$399=\"707-N\")*('2. Assisted & Restricted Units'!$T$7:$T$399=\"35% SMI\"))","v":0}]
["Ghocc 40% SMI",{"$f":"SUMPRODUCT(('2. Assisted & Restricted Units'!$E$7:$E$399=\"Ghocc\")*('2. Assisted & Restricted Units'!$S$7:$S$399=\"CALDAP\")*('2. Assisted & Restricted Units'!$T$7:$T$399=\"40% SMI\"))","v":0},{"$f":"SUMPRODUCT(('2. Assisted & Restricted Units'!$E$7:$E$399=\"Ghocc\")*('2. Assisted & Restricted Units'!$S$7:$S$399=\"CHRP-R\")*('2. Assisted & Restricted Units'!$T$7:$T$399=\"40% SMI\"))","v":0},{"$f":"SUMPRODUCT(('2. Assisted & Restricted Units'!$E$7:$E$399=\"Ghocc\")*('2. Assisted & Restricted Units'!$S$7:$S$399=\"DDS\")*('2. Assisted & Restricted Units'!$T$7:$T$399=\"40% SMI\"))","v":0},{"$f":"SUMPRODUCT(('2. Assisted & Restricted Units'!$E$7:$E$399=\"Ghocc\")*('2. Assisted & Restricted Units'!$S$7:$S$399=\"DPRLP\")*('2. Assisted & Restricted Units'!$T$7:$T$399=\"40% SMI\"))","v":0},{"$f":"SUMPRODUCT(('2. Assisted & Restricted Units'!$E$7:$E$399=\"Ghocc\")*('2. Assisted & Restricted Units'!$S$7:$S$399=\"FHDP\")*('2. Assisted & Restricted Units'!$T$7:$T$399=\"40% SMI\"))","v":0},{"$f":"SUMPRODUCT(('2. Assisted & Restricted Units'!$E$7:$E$399=\"Ghocc\")*('2. Assisted & Restricted Units'!$S$7:$S$399=\"FMTW\")*('2. Assisted & Restricted Units'!$T$7:$T$399=\"40% SMI\"))","v":0},null,{"$f":"SUMPRODUCT(('2. Assisted & Restricted Units'!$E$7:$E$399=\"Ghocc\")*('2. Assisted & Restricted Units'!$S$7:$S$399=\"HOME\")*('2. Assisted & Restricted Units'!$T$7:$T$399=\"40% SMI\"))","v":0},{"$f":"SUMPRODUCT(('2. Assisted & Restricted Units'!$E$7:$E$399=\"Ghocc\")*('2. Assisted & Restricted Units'!$S$7:$S$399=\"Market Rate\")*('2. Assisted & Restricted Units'!$T$7:$T$399=\"40% SMI\"))","v":0},{"$f":"SUMPRODUCT(('2. Assisted & Restricted Units'!$E$7:$E$399=\"Ghocc\")*('2. Assisted & Restricted Units'!$S$7:$S$399=\"MHP\")*('2. Assisted & Restricted Units'!$T$7:$T$399=\"40% SMI\"))","v":0},{"$f":"SUMPRODUCT(('2. Assisted & Restricted Units'!$E$7:$E$399=\"Ghocc\")*('2. Assisted & Restricted Units'!$S$7:$S$399=\"NonAssisted\")*('2. Assisted & Restricted Units'!$T$7:$T$399=\"40% SMI\"))","v":0},{"$f":"SUMPRODUCT(('2. Assisted & Restricted Units'!$E$7:$E$399=\"Ghocc\")*('2. Assisted & Restricted Units'!$S$7:$S$399=\"Other Restr\")*('2. Assisted & Restricted Units'!$T$7:$T$399=\"40% SMI\"))","v":0},{"$f":"SUMPRODUCT(('2. Assisted & Restricted Units'!$E$7:$E$399=\"Ghocc\")*('2. Assisted & Restricted Units'!$S$7:$S$399=\"RHCP-B\")*('2. Assisted & Restricted Units'!$T$7:$T$399=\"40% SMI\"))","v":0},{"$f":"SUMPRODUCT(('2. Assisted & Restricted Units'!$E$7:$E$399=\"Ghocc\")*('2. Assisted & Restricted Units'!$S$7:$S$399=\"SERA\")*('2. Assisted & Restricted Units'!$T$7:$T$399=\"40% SMI\"))","v":0},{"$f":"SUMPRODUCT(('2. Assisted & Restricted Units'!$E$7:$E$399=\"Ghocc\")*('2. Assisted & Restricted Units'!$S$7:$S$399=\"SUHRP\")*('2. Assisted & Restricted Units'!$T$7:$T$399=\"40% SMI\"))","v":0},{"$f":"SUMPRODUCT(('2. Assisted & Restricted Units'!$E$7:$E$399=\"Ghocc\")*('2. Assisted & Restricted Units'!$S$7:$S$399=\"TOD\")*('2. Assisted & Restricted Units'!$T$7:$T$399=\"40% SMI\"))","v":0},{"$f":"SUMPRODUCT(('2. Assisted & Restricted Units'!$E$7:$E$399=\"Ghocc\")*('2. Assisted & Restricted Units'!$S$7:$S$399=\"707-E\")*('2. Assisted & Restricted Units'!$T$7:$T$399=\"40% SMI\"))","v":0},{"$f":"SUMPRODUCT(('2. Assisted & Restricted Units'!$E$7:$E$399=\"Ghocc\")*('2. Assisted & Restricted Units'!$S$7:$S$399=\"707-N\")*('2. Assisted & Restricted Units'!$T$7:$T$399=\"40% SMI\"))","v":0}]
["Ghocc 45% SMI",{"$f":"SUMPRODUCT(('2. Assisted & Restricted Units'!$E$7:$E$399=\"Ghocc\")*('2. Assisted & Restricted Units'!$S$7:$S$399=\"CALDAP\")*('2. Assisted & Restricted Units'!$T$7:$T$399=\"45% SMI\"))","v":0},{"$f":"SUMPRODUCT(('2. Assisted & Restricted Units'!$E$7:$E$399=\"Ghocc\")*('2. Assisted & Restricted Units'!$S$7:$S$399=\"CHRP-R\")*('2. Assisted & Restricted Units'!$T$7:$T$399=\"45% SMI\"))","v":0},{"$f":"SUMPRODUCT(('2. Assisted & Restricted Units'!$E$7:$E$399=\"Ghocc\")*('2. Assisted & Restricted Units'!$S$7:$S$399=\"DDS\")*('2. Assisted & Restricted Units'!$T$7:$T$399=\"45% SMI\"))","v":0},{"$f":"SUMPRODUCT(('2. Assisted & Restricted Units'!$E$7:$E$399=\"Ghocc\")*('2. Assisted & Restricted Units'!$S$7:$S$399=\"DPRLP\")*('2. Assisted & Restricted Units'!$T$7:$T$399=\"45% SMI\"))","v":0},{"$f":"SUMPRODUCT(('2. Assisted & Restricted Units'!$E$7:$E$399=\"Ghocc\")*('2. Assisted & Restricted Units'!$S$7:$S$399=\"FHDP\")*('2. Assisted & Restricted Units'!$T$7:$T$399=\"45% SMI\"))","v":0},{"$f":"SUMPRODUCT(('2. Assisted & Restricted Units'!$E$7:$E$399=\"Ghocc\")*('2. Assisted & Restricted Units'!$S$7:$S$399=\"FMTW\")*('2. Assisted & Restricted Units'!$T$7:$T$399=\"45% SMI\"))","v":0},null,{"$f":"SUMPRODUCT(('2. Assisted & Restricted Units'!$E$7:$E$399=\"Ghocc\")*('2. Assisted & Restricted Units'!$S$7:$S$399=\"HOME\")*('2. Assisted & Restricted Units'!$T$7:$T$399=\"45% SMI\"))","v":0},{"$f":"SUMPRODUCT(('2. Assisted & Restricted Units'!$E$7:$E$399=\"Ghocc\")*('2. Assisted & Restricted Units'!$S$7:$S$399=\"Market Rate\")*('2. Assisted & Restricted Units'!$T$7:$T$399=\"45% SMI\"))","v":0},{"$f":"SUMPRODUCT(('2. Assisted & Restricted Units'!$E$7:$E$399=\"Ghocc\")*('2. Assisted & Restricted Units'!$S$7:$S$399=\"MHP\")*('2. Assisted & Restricted Units'!$T$7:$T$399=\"45% SMI\"))","v":0},{"$f":"SUMPRODUCT(('2. Assisted & Restricted Units'!$E$7:$E$399=\"Ghocc\")*('2. Assisted & Restricted Units'!$S$7:$S$399=\"NonAssisted\")*('2. Assisted & Restricted Units'!$T$7:$T$399=\"45% SMI\"))","v":0},{"$f":"SUMPRODUCT(('2. Assisted & Restricted Units'!$E$7:$E$399=\"Ghocc\")*('2. Assisted & Restricted Units'!$S$7:$S$399=\"Other Restr\")*('2. Assisted & Restricted Units'!$T$7:$T$399=\"45% SMI\"))","v":0},{"$f":"SUMPRODUCT(('2. Assisted & Restricted Units'!$E$7:$E$399=\"Ghocc\")*('2. Assisted & Restricted Units'!$S$7:$S$399=\"RHCP-B\")*('2. Assisted & Restricted Units'!$T$7:$T$399=\"45% SMI\"))","v":0},{"$f":"SUMPRODUCT(('2. Assisted & Restricted Units'!$E$7:$E$399=\"Ghocc\")*('2. Assisted & Restricted Units'!$S$7:$S$399=\"SERA\")*('2. Assisted & Restricted Units'!$T$7:$T$399=\"45% SMI\"))","v":0},{"$f":"SUMPRODUCT(('2. Assisted & Restricted Units'!$E$7:$E$399=\"Ghocc\")*('2. Assisted & Restricted Units'!$S$7:$S$399=\"SUHRP\")*('2. Assisted & Restricted Units'!$T$7:$T$399=\"45% SMI\"))","v":0},{"$f":"SUMPRODUCT(('2. Assisted & Restricted Units'!$E$7:$E$399=\"Ghocc\")*('2. Assisted & Restricted Units'!$S$7:$S$399=\"TOD\")*('2. Assisted & Restricted Units'!$T$7:$T$399=\"45% SMI\"))","v":0},{"$f":"SUMPRODUCT(('2. Assisted & Restricted Units'!$E$7:$E$399=\"Ghocc\")*('2. Assisted & Restricted Units'!$S$7:$S$399=\"707-E\")*('2. Assisted & Restricted Units'!$T$7:$T$399=\"45% SMI\"))","v":0},{"$f":"SUMPRODUCT(('2. Assisted & Restricted Units'!$E$7:$E$399=\"Ghocc\")*('2. Assisted & Restricted Units'!$S$7:$S$399=\"707-N\")*('2. Assisted & Restricted Units'!$T$7:$T$399=\"45% SMI\"))","v":0}]
["Ghocc 50% SMI",{"$f":"SUMPRODUCT(('2. Assisted & Restricted Units'!$E$7:$E$399=\"Ghocc\")*('2. Assisted & Restricted Units'!$S$7:$S$399=\"CALDAP\")*('2. Assisted & Restricted Units'!$T$7:$T$399=\"50% SMI\"))","v":0},{"$f":"SUMPRODUCT(('2. Assisted & Restricted Units'!$E$7:$E$399=\"Ghocc\")*('2. Assisted & Restricted Units'!$S$7:$S$399=\"CHRP-R\")*('2. Assisted & Restricted Units'!$T$7:$T$399=\"50% SMI\"))","v":0},{"$f":"SUMPRODUCT(('2. Assisted & Restricted Units'!$E$7:$E$399=\"Ghocc\")*('2. Assisted & Restricted Units'!$S$7:$S$399=\"DDS\")*('2. Assisted & Restricted Units'!$T$7:$T$399=\"50% SMI\"))","v":0},{"$f":"SUMPRODUCT(('2. Assisted & Restricted Units'!$E$7:$E$399=\"Ghocc\")*('2. Assisted & Restricted Units'!$S$7:$S$399=\"DPRLP\")*('2. Assisted & Restricted Units'!$T$7:$T$399=\"50% SMI\"))","v":0},{"$f":"SUMPRODUCT(('2. Assisted & Restricted Units'!$E$7:$E$399=\"Ghocc\")*('2. Assisted & Restricted Units'!$S$7:$S$399=\"FHDP\")*('2. Assisted & Restricted Units'!$T$7:$T$399=\"50% SMI\"))","v":0},{"$f":"SUMPRODUCT(('2. Assisted & Restricted Units'!$E$7:$E$399=\"Ghocc\")*('2. Assisted & Restricted Units'!$S$7:$S$399=\"FMTW\")*('2. Assisted & Restricted Units'!$T$7:$T$399=\"50% SMI\"))","v":0},null,{"$f":"SUMPRODUCT(('2. Assisted & Restricted Units'!$E$7:$E$399=\"Ghocc\")*('2. Assisted & Restricted Units'!$S$7:$S$399=\"HOME\")*('2. Assisted & Restricted Units'!$T$7:$T$399=\"50% SMI\"))","v":0},{"$f":"SUMPRODUCT(('2. Assisted & Restricted Units'!$E$7:$E$399=\"Ghocc\")*('2. Assisted & Restricted Units'!$S$7:$S$399=\"Market Rate\")*('2. Assisted & Restricted Units'!$T$7:$T$399=\"50% SMI\"))","v":0},{"$f":"SUMPRODUCT(('2. Assisted & Restricted Units'!$E$7:$E$399=\"Ghocc\")*('2. Assisted & Restricted Units'!$S$7:$S$399=\"MHP\")*('2. Assisted & Restricted Units'!$T$7:$T$399=\"50% SMI\"))","v":0},{"$f":"SUMPRODUCT(('2. Assisted & Restricted Units'!$E$7:$E$399=\"Ghocc\")*('2. Assisted & Restricted Units'!$S$7:$S$399=\"NonAssisted\")*('2. Assisted & Restricted Units'!$T$7:$T$399=\"50% SMI\"))","v":0},{"$f":"SUMPRODUCT(('2. Assisted & Restricted Units'!$E$7:$E$399=\"Ghocc\")*('2. Assisted & Restricted Units'!$S$7:$S$399=\"Other Restr\")*('2. Assisted & Restricted Units'!$T$7:$T$399=\"50% SMI\"))","v":0},{"$f":"SUMPRODUCT(('2. Assisted & Restricted Units'!$E$7:$E$399=\"Ghocc\")*('2. Assisted & Restricted Units'!$S$7:$S$399=\"RHCP-B\")*('2. Assisted & Restricted Units'!$T$7:$T$399=\"50% SMI\"))","v":0},{"$f":"SUMPRODUCT(('2. Assisted & Restricted Units'!$E$7:$E$399=\"Ghocc\")*('2. Assisted & Restricted Units'!$S$7:$S$399=\"SERA\")*('2. Assisted & Restricted Units'!$T$7:$T$399=\"50% SMI\"))","v":0},{"$f":"SUMPRODUCT(('2. Assisted & Restricted Units'!$E$7:$E$399=\"Ghocc\")*('2. Assisted & Restricted Units'!$S$7:$S$399=\"SUHRP\")*('2. Assisted & Restricted Units'!$T$7:$T$399=\"50% SMI\"))","v":0},{"$f":"SUMPRODUCT(('2. Assisted & Restricted Units'!$E$7:$E$399=\"Ghocc\")*('2. Assisted & Restricted Units'!$S$7:$S$399=\"TOD\")*('2. Assisted & Restricted Units'!$T$7:$T$399=\"50% SMI\"))","v":0},{"$f":"SUMPRODUCT(('2. Assisted & Restricted Units'!$E$7:$E$399=\"Ghocc\")*('2. Assisted & Restricted Units'!$S$7:$S$399=\"707-E\")*('2. Assisted & Restricted Units'!$T$7:$T$399=\"50% SMI\"))","v":0},{"$f":"SUMPRODUCT(('2. Assisted & Restricted Units'!$E$7:$E$399=\"Ghocc\")*('2. Assisted & Restricted Units'!$S$7:$S$399=\"707-N\")*('2. Assisted & Restricted Units'!$T$7:$T$399=\"50% SMI\"))","v":0}]
["Ghocc 100% SMI",{"$f":"SUMPRODUCT(('2. Assisted & Restricted Units'!$E$7:$E$399=\"Ghocc\")*('2. Assisted & Restricted Units'!$S$7:$S$399=\"CALDAP\")*('2. Assisted & Restricted Units'!$T$7:$T$399=\"100% SMI\"))","v":0},{"$f":"SUMPRODUCT(('2. Assisted & Restricted Units'!$E$7:$E$399=\"Ghocc\")*('2. Assisted & Restricted Units'!$S$7:$S$399=\"CHRP-R\")*('2. Assisted & Restricted Units'!$T$7:$T$399=\"100% SMI\"))","v":0},{"$f":"SUMPRODUCT(('2. Assisted & Restricted Units'!$E$7:$E$399=\"Ghocc\")*('2. Assisted & Restricted Units'!$S$7:$S$399=\"DDS\")*('2. Assisted & Restricted Units'!$T$7:$T$399=\"100% SMI\"))","v":0},{"$f":"SUMPRODUCT(('2. Assisted & Restricted Units'!$E$7:$E$399=\"Ghocc\")*('2. Assisted & Restricted Units'!$S$7:$S$399=\"DPRLP\")*('2. Assisted & Restricted Units'!$T$7:$T$399=\"100% SMI\"))","v":0},{"$f":"SUMPRODUCT(('2. Assisted & Restricted Units'!$E$7:$E$399=\"Ghocc\")*('2. Assisted & Restricted Units'!$S$7:$S$399=\"FHDP\")*('2. Assisted & Restricted Units'!$T$7:$T$399=\"100% SMI\"))","v":0},{"$f":"SUMPRODUCT(('2. Assisted & Restricted Units'!$E$7:$E$399=\"Ghocc\")*('2. Assisted & Restricted Units'!$S$7:$S$399=\"FMTW\")*('2. Assisted & Restricted Units'!$T$7:$T$399=\"100% SMI\"))","v":0},null,{"$f":"SUMPRODUCT(('2. Assisted & Restricted Units'!$E$7:$E$399=\"Ghocc\")*('2. Assisted & Restricted Units'!$S$7:$S$399=\"HOME\")*('2. Assisted & Restricted Units'!$T$7:$T$399=\"100% SMI\"))","v":0},{"$f":"SUMPRODUCT(('2. Assisted & Restricted Units'!$E$7:$E$399=\"Ghocc\")*('2. Assisted & Restricted Units'!$S$7:$S$399=\"Market Rate\")*('2. Assisted & Restricted Units'!$T$7:$T$399=\"100% SMI\"))","v":0},{"$f":"SUMPRODUCT(('2. Assisted & Restricted Units'!$E$7:$E$399=\"Ghocc\")*('2. Assisted & Restricted Units'!$S$7:$S$399=\"MHP\")*('2. Assisted & Restricted Units'!$T$7:$T$399=\"100% SMI\"))","v":0},{"$f":"SUMPRODUCT(('2. Assisted & Restricted Units'!$E$7:$E$399=\"Ghocc\")*('2. Assisted & Restricted Units'!$S$7:$S$399=\"NonAssisted\")*('2. Assisted & Restricted Units'!$T$7:$T$399=\"100% SMI\"))","v":0},{"$f":"SUMPRODUCT(('2. Assisted & Restricted Units'!$E$7:$E$399=\"Ghocc\")*('2. Assisted & Restricted Units'!$S$7:$S$399=\"Other Restr\")*('2. Assisted & Restricted Units'!$T$7:$T$399=\"100% SMI\"))","v":0},{"$f":"SUMPRODUCT(('2. Assisted & Restricted Units'!$E$7:$E$399=\"Ghocc\")*('2. Assisted & Restricted Units'!$S$7:$S$399=\"RHCP-B\")*('2. Assisted & Restricted Units'!$T$7:$T$399=\"100% SMI\"))","v":0},{"$f":"SUMPRODUCT(('2. Assisted & Restricted Units'!$E$7:$E$399=\"Ghocc\")*('2. Assisted & Restricted Units'!$S$7:$S$399=\"SERA\")*('2. Assisted & Restricted Units'!$T$7:$T$399=\"100% SMI\"))","v":0},{"$f":"SUMPRODUCT(('2. Assisted & Restricted Units'!$E$7:$E$399=\"Ghocc\")*('2. Assisted & Restricted Units'!$S$7:$S$399=\"SUHRP\")*('2. Assisted & Restricted Units'!$T$7:$T$399=\"100% SMI\"))","v":0},{"$f":"SUMPRODUCT(('2. Assisted & Restricted Units'!$E$7:$E$399=\"Ghocc\")*('2. Assisted & Restricted Units'!$S$7:$S$399=\"TOD\")*('2. Assisted & Restricted Units'!$T$7:$T$399=\"100% SMI\"))","v":0},{"$f":"SUMPRODUCT(('2. Assisted & Restricted Units'!$E$7:$E$399=\"Ghocc\")*('2. Assisted & Restricted Units'!$S$7:$S$399=\"707-E\")*('2. Assisted & Restricted Units'!$T$7:$T$399=\"100% SMI\"))","v":0},{"$f":"SUMPRODUCT(('2. Assisted & Restricted Units'!$E$7:$E$399=\"Ghocc\")*('2. Assisted & Restricted Units'!$S$7:$S$399=\"707-N\")*('2. Assisted & Restricted Units'!$T$7:$T$399=\"100% SMI\"))","v":0}]
["Ghocc VLI HOME",{"$f":"SUMPRODUCT(('2. Assisted & Restricted Units'!$E$7:$E$399=\"Ghocc\")*('2. Assisted & Restricted Units'!$S$7:$S$399=\"CALDAP\")*('2. Assisted & Restricted Units'!$T$7:$T$399=\"VLI HOME\"))","v":0},{"$f":"SUMPRODUCT(('2. Assisted & Restricted Units'!$E$7:$E$399=\"Ghocc\")*('2. Assisted & Restricted Units'!$S$7:$S$399=\"CHRP-R\")*('2. Assisted & Restricted Units'!$T$7:$T$399=\"VLI HOME\"))","v":0},{"$f":"SUMPRODUCT(('2. Assisted & Restricted Units'!$E$7:$E$399=\"Ghocc\")*('2. Assisted & Restricted Units'!$S$7:$S$399=\"DDS\")*('2. Assisted & Restricted Units'!$T$7:$T$399=\"VLI HOME\"))","v":0},{"$f":"SUMPRODUCT(('2. Assisted & Restricted Units'!$E$7:$E$399=\"Ghocc\")*('2. Assisted & Restricted Units'!$S$7:$S$399=\"DPRLP\")*('2. Assisted & Restricted Units'!$T$7:$T$399=\"VLI HOME\"))","v":0},{"$f":"SUMPRODUCT(('2. Assisted & Restricted Units'!$E$7:$E$399=\"Ghocc\")*('2. Assisted & Restricted Units'!$S$7:$S$399=\"FHDP\")*('2. Assisted & Restricted Units'!$T$7:$T$399=\"VLI HOME\"))","v":0},{"$f":"SUMPRODUCT(('2. Assisted & Restricted Units'!$E$7:$E$399=\"Ghocc\")*('2. Assisted & Restricted Units'!$S$7:$S$399=\"FMTW\")*('2. Assisted & Restricted Units'!$T$7:$T$399=\"VLI HOME\"))","v":0},null,{"$f":"SUMPRODUCT(('2. Assisted & Restricted Units'!$E$7:$E$399=\"Ghocc\")*('2. Assisted & Restricted Units'!$S$7:$S$399=\"HOME\")*('2. Assisted & Restricted Units'!$T$7:$T$399=\"VLI HOME\"))","v":0},{"$f":"SUMPRODUCT(('2. Assisted & Restricted Units'!$E$7:$E$399=\"Ghocc\")*('2. Assisted & Restricted Units'!$S$7:$S$399=\"Market Rate\")*('2. Assisted & Restricted Units'!$T$7:$T$399=\"VLI HOME\"))","v":0},{"$f":"SUMPRODUCT(('2. Assisted & Restricted Units'!$E$7:$E$399=\"Ghocc\")*('2. Assisted & Restricted Units'!$S$7:$S$399=\"MHP\")*('2. Assisted & Restricted Units'!$T$7:$T$399=\"VLI HOME\"))","v":0},{"$f":"SUMPRODUCT(('2. Assisted & Restricted Units'!$E$7:$E$399=\"Ghocc\")*('2. Assisted & Restricted Units'!$S$7:$S$399=\"NonAssisted\")*('2. Assisted & Restricted Units'!$T$7:$T$399=\"VLI HOME\"))","v":0},{"$f":"SUMPRODUCT(('2. Assisted & Restricted Units'!$E$7:$E$399=\"Ghocc\")*('2. Assisted & Restricted Units'!$S$7:$S$399=\"Other Restr\")*('2. Assisted & Restricted Units'!$T$7:$T$399=\"VLI HOME\"))","v":0},{"$f":"SUMPRODUCT(('2. Assisted & Restricted Units'!$E$7:$E$399=\"Ghocc\")*('2. Assisted & Restricted Units'!$S$7:$S$399=\"RHCP-B\")*('2. Assisted & Restricted Units'!$T$7:$T$399=\"VLI HOME\"))","v":0},{"$f":"SUMPRODUCT(('2. Assisted & Restricted Units'!$E$7:$E$399=\"Ghocc\")*('2. Assisted & Restricted Units'!$S$7:$S$399=\"SERA\")*('2. Assisted & Restricted Units'!$T$7:$T$399=\"VLI HOME\"))","v":0},{"$f":"SUMPRODUCT(('2. Assisted & Restricted Units'!$E$7:$E$399=\"Ghocc\")*('2. Assisted & Restricted Units'!$S$7:$S$399=\"SUHRP\")*('2. Assisted & Restricted Units'!$T$7:$T$399=\"VLI HOME\"))","v":0},{"$f":"SUMPRODUCT(('2. Assisted & Restricted Units'!$E$7:$E$399=\"Ghocc\")*('2. Assisted & Restricted Units'!$S$7:$S$399=\"TOD\")*('2. Assisted & Restricted Units'!$T$7:$T$399=\"VLI HOME\"))","v":0},{"$f":"SUMPRODUCT(('2. Assisted & Restricted Units'!$E$7:$E$399=\"Ghocc\")*('2. Assisted & Restricted Units'!$S$7:$S$399=\"707-E\")*('2. Assisted & Restricted Units'!$T$7:$T$399=\"VLI HOME\"))","v":0},{"$f":"SUMPRODUCT(('2. Assisted & Restricted Units'!$E$7:$E$399=\"Ghocc\")*('2. Assisted & Restricted Units'!$S$7:$S$399=\"707-N\")*('2. Assisted & Restricted Units'!$T$7:$T$399=\"VLI HOME\"))","v":0}]
["Ghocc LI HOME",{"$f":"SUMPRODUCT(('2. Assisted & Restricted Units'!$E$7:$E$399=\"Ghocc\")*('2. Assisted & Restricted Units'!$S$7:$S$399=\"CALDAP\")*('2. Assisted & Restricted Units'!$T$7:$T$399=\"LI HOME\"))","v":0},{"$f":"SUMPRODUCT(('2. Assisted & Restricted Units'!$E$7:$E$399=\"Ghocc\")*('2. Assisted & Restricted Units'!$S$7:$S$399=\"CHRP-R\")*('2. Assisted & Restricted Units'!$T$7:$T$399=\"LI HOME\"))","v":0},{"$f":"SUMPRODUCT(('2. Assisted & Restricted Units'!$E$7:$E$399=\"Ghocc\")*('2. Assisted & Restricted Units'!$S$7:$S$399=\"DDS\")*('2. Assisted & Restricted Units'!$T$7:$T$399=\"LI HOME\"))","v":0},{"$f":"SUMPRODUCT(('2. Assisted & Restricted Units'!$E$7:$E$399=\"Ghocc\")*('2. Assisted & Restricted Units'!$S$7:$S$399=\"DPRLP\")*('2. Assisted & Restricted Units'!$T$7:$T$399=\"LI HOME\"))","v":0},{"$f":"SUMPRODUCT(('2. Assisted & Restricted Units'!$E$7:$E$399=\"Ghocc\")*('2. Assisted & Restricted Units'!$S$7:$S$399=\"FHDP\")*('2. Assisted & Restricted Units'!$T$7:$T$399=\"LI HOME\"))","v":0},{"$f":"SUMPRODUCT(('2. Assisted & Restricted Units'!$E$7:$E$399=\"Ghocc\")*('2. Assisted & Restricted Units'!$S$7:$S$399=\"FMTW\")*('2. Assisted & Restricted Units'!$T$7:$T$399=\"LI HOME\"))","v":0},null,{"$f":"SUMPRODUCT(('2. Assisted & Restricted Units'!$E$7:$E$399=\"Ghocc\")*('2. Assisted & Restricted Units'!$S$7:$S$399=\"HOME\")*('2. Assisted & Restricted Units'!$T$7:$T$399=\"LI HOME\"))","v":0},{"$f":"SUMPRODUCT(('2. Assisted & Restricted Units'!$E$7:$E$399=\"Ghocc\")*('2. Assisted & Restricted Units'!$S$7:$S$399=\"Market Rate\")*('2. Assisted & Restricted Units'!$T$7:$T$399=\"LI HOME\"))","v":0},{"$f":"SUMPRODUCT(('2. Assisted & Restricted Units'!$E$7:$E$399=\"Ghocc\")*('2. Assisted & Restricted Units'!$S$7:$S$399=\"MHP\")*('2. Assisted & Restricted Units'!$T$7:$T$399=\"LI HOME\"))","v":0},{"$f":"SUMPRODUCT(('2. Assisted & Restricted Units'!$E$7:$E$399=\"Ghocc\")*('2. Assisted & Restricted Units'!$S$7:$S$399=\"NonAssisted\")*('2. Assisted & Restricted Units'!$T$7:$T$399=\"LI HOME\"))","v":0},{"$f":"SUMPRODUCT(('2. Assisted & Restricted Units'!$E$7:$E$399=\"Ghocc\")*('2. Assisted & Restricted Units'!$S$7:$S$399=\"Other Restr\")*('2. Assisted & Restricted Units'!$T$7:$T$399=\"LI HOME\"))","v":0},{"$f":"SUMPRODUCT(('2. Assisted & Restricted Units'!$E$7:$E$399=\"Ghocc\")*('2. Assisted & Restricted Units'!$S$7:$S$399=\"RHCP-B\")*('2. Assisted & Restricted Units'!$T$7:$T$399=\"LI HOME\"))","v":0},{"$f":"SUMPRODUCT(('2. Assisted & Restricted Units'!$E$7:$E$399=\"Ghocc\")*('2. Assisted & Restricted Units'!$S$7:$S$399=\"SERA\")*('2. Assisted & Restricted Units'!$T$7:$T$399=\"LI HOME\"))","v":0},{"$f":"SUMPRODUCT(('2. Assisted & Restricted Units'!$E$7:$E$399=\"Ghocc\")*('2. Assisted & Restricted Units'!$S$7:$S$399=\"SUHRP\")*('2. Assisted & Restricted Units'!$T$7:$T$399=\"LI HOME\"))","v":0},{"$f":"SUMPRODUCT(('2. Assisted & Restricted Units'!$E$7:$E$399=\"Ghocc\")*('2. Assisted & Restricted Units'!$S$7:$S$399=\"TOD\")*('2. Assisted & Restricted Units'!$T$7:$T$399=\"LI HOME\"))","v":0},{"$f":"SUMPRODUCT(('2. Assisted & Restricted Units'!$E$7:$E$399=\"Ghocc\")*('2. Assisted & Restricted Units'!$S$7:$S$399=\"707-E\")*('2. Assisted & Restricted Units'!$T$7:$T$399=\"LI HOME\"))","v":0},{"$f":"SUMPRODUCT(('2. Assisted & Restricted Units'!$E$7:$E$399=\"Ghocc\")*('2. Assisted & Restricted Units'!$S$7:$S$399=\"707-N\")*('2. Assisted & Restricted Units'!$T$7:$T$399=\"LI HOME\"))","v":0}]
["Ghocc VLI State",{"$f":"SUMPRODUCT(('2. Assisted & Restricted Units'!$E$7:$E$399=\"Ghocc\")*('2. Assisted & Restricted Units'!$S$7:$S$399=\"CALDAP\")*('2. Assisted & Restricted Units'!$T$7:$T$399=\"VLI State\"))","v":0},{"$f":"SUMPRODUCT(('2. Assisted & Restricted Units'!$E$7:$E$399=\"Ghocc\")*('2. Assisted & Restricted Units'!$S$7:$S$399=\"CHRP-R\")*('2. Assisted & Restricted Units'!$T$7:$T$399=\"VLI State\"))","v":0},{"$f":"SUMPRODUCT(('2. Assisted & Restricted Units'!$E$7:$E$399=\"Ghocc\")*('2. Assisted & Restricted Units'!$S$7:$S$399=\"DDS\")*('2. Assisted & Restricted Units'!$T$7:$T$399=\"VLI State\"))","v":0},{"$f":"SUMPRODUCT(('2. Assisted & Restricted Units'!$E$7:$E$399=\"Ghocc\")*('2. Assisted & Restricted Units'!$S$7:$S$399=\"DPRLP\")*('2. Assisted & Restricted Units'!$T$7:$T$399=\"VLI State\"))","v":0},{"$f":"SUMPRODUCT(('2. Assisted & Restricted Units'!$E$7:$E$399=\"Ghocc\")*('2. Assisted & Restricted Units'!$S$7:$S$399=\"FHDP\")*('2. Assisted & Restricted Units'!$T$7:$T$399=\"VLI State\"))","v":0},{"$f":"SUMPRODUCT(('2. Assisted & Restricted Units'!$E$7:$E$399=\"Ghocc\")*('2. Assisted & Restricted Units'!$S$7:$S$399=\"FMTW\")*('2. Assisted & Restricted Units'!$T$7:$T$399=\"VLI State\"))","v":0},null,{"$f":"SUMPRODUCT(('2. Assisted & Restricted Units'!$E$7:$E$399=\"Ghocc\")*('2. Assisted & Restricted Units'!$S$7:$S$399=\"HOME\")*('2. Assisted & Restricted Units'!$T$7:$T$399=\"VLI State\"))","v":0},{"$f":"SUMPRODUCT(('2. Assisted & Restricted Units'!$E$7:$E$399=\"Ghocc\")*('2. Assisted & Restricted Units'!$S$7:$S$399=\"Market Rate\")*('2. Assisted & Restricted Units'!$T$7:$T$399=\"VLI State\"))","v":0},{"$f":"SUMPRODUCT(('2. Assisted & Restricted Units'!$E$7:$E$399=\"Ghocc\")*('2. Assisted & Restricted Units'!$S$7:$S$399=\"MHP\")*('2. Assisted & Restricted Units'!$T$7:$T$399=\"VLI State\"))","v":0},{"$f":"SUMPRODUCT(('2. Assisted & Restricted Units'!$E$7:$E$399=\"Ghocc\")*('2. Assisted & Restricted Units'!$S$7:$S$399=\"NonAssisted\")*('2. Assisted & Restricted Units'!$T$7:$T$399=\"VLI State\"))","v":0},{"$f":"SUMPRODUCT(('2. Assisted & Restricted Units'!$E$7:$E$399=\"Ghocc\")*('2. Assisted & Restricted Units'!$S$7:$S$399=\"Other Restr\")*('2. Assisted & Restricted Units'!$T$7:$T$399=\"VLI State\"))","v":0},{"$f":"SUMPRODUCT(('2. Assisted & Restricted Units'!$E$7:$E$399=\"Ghocc\")*('2. Assisted & Restricted Units'!$S$7:$S$399=\"RHCP-B\")*('2. Assisted & Restricted Units'!$T$7:$T$399=\"VLI State\"))","v":0},{"$f":"SUMPRODUCT(('2. Assisted & Restricted Units'!$E$7:$E$399=\"Ghocc\")*('2. Assisted & Restricted Units'!$S$7:$S$399=\"SERA\")*('2. Assisted & Restricted Units'!$T$7:$T$399=\"VLI State\"))","v":0},{"$f":"SUMPRODUCT(('2. Assisted & Restricted Units'!$E$7:$E$399=\"Ghocc\")*('2. Assisted & Restricted Units'!$S$7:$S$399=\"SUHRP\")*('2. Assisted & Restricted Units'!$T$7:$T$399=\"VLI State\"))","v":0},{"$f":"SUMPRODUCT(('2. Assisted & Restricted Units'!$E$7:$E$399=\"Ghocc\")*('2. Assisted & Restricted Units'!$S$7:$S$399=\"TOD\")*('2. Assisted & Restricted Units'!$T$7:$T$399=\"VLI State\"))","v":0},{"$f":"SUMPRODUCT(('2. Assisted & Restricted Units'!$E$7:$E$399=\"Ghocc\")*('2. Assisted & Restricted Units'!$S$7:$S$399=\"707-E\")*('2. Assisted & Restricted Units'!$T$7:$T$399=\"VLI State\"))","v":0},{"$f":"SUMPRODUCT(('2. Assisted & Restricted Units'!$E$7:$E$399=\"Ghocc\")*('2. Assisted & Restricted Units'!$S$7:$S$399=\"707-N\")*('2. Assisted & Restricted Units'!$T$7:$T$399=\"VLI State\"))","v":0}]
["Ghocc LI State",{"$f":"SUMPRODUCT(('2. Assisted & Restricted Units'!$E$7:$E$399=\"Ghocc\")*('2. Assisted & Restricted Units'!$S$7:$S$399=\"CALDAP\")*('2. Assisted & Restricted Units'!$T$7:$T$399=\"LI State\"))","v":0},{"$f":"SUMPRODUCT(('2. Assisted & Restricted Units'!$E$7:$E$399=\"Ghocc\")*('2. Assisted & Restricted Units'!$S$7:$S$399=\"CHRP-R\")*('2. Assisted & Restricted Units'!$T$7:$T$399=\"LI State\"))","v":0},{"$f":"SUMPRODUCT(('2. Assisted & Restricted Units'!$E$7:$E$399=\"Ghocc\")*('2. Assisted & Restricted Units'!$S$7:$S$399=\"DDS\")*('2. Assisted & Restricted Units'!$T$7:$T$399=\"LI State\"))","v":0},{"$f":"SUMPRODUCT(('2. Assisted & Restricted Units'!$E$7:$E$399=\"Ghocc\")*('2. Assisted & Restricted Units'!$S$7:$S$399=\"DPRLP\")*('2. Assisted & Restricted Units'!$T$7:$T$399=\"LI State\"))","v":0},{"$f":"SUMPRODUCT(('2. Assisted & Restricted Units'!$E$7:$E$399=\"Ghocc\")*('2. Assisted & Restricted Units'!$S$7:$S$399=\"FHDP\")*('2. Assisted & Restricted Units'!$T$7:$T$399=\"LI State\"))","v":0},{"$f":"SUMPRODUCT(('2. Assisted & Restricted Units'!$E$7:$E$399=\"Ghocc\")*('2. Assisted & Restricted Units'!$S$7:$S$399=\"FMTW\")*('2. Assisted & Restricted Units'!$T$7:$T$399=\"LI State\"))","v":0},null,{"$f":"SUMPRODUCT(('2. Assisted & Restricted Units'!$E$7:$E$399=\"Ghocc\")*('2. Assisted & Restricted Units'!$S$7:$S$399=\"HOME\")*('2. Assisted & Restricted Units'!$T$7:$T$399=\"LI State\"))","v":0},{"$f":"SUMPRODUCT(('2. Assisted & Restricted Units'!$E$7:$E$399=\"Ghocc\")*('2. Assisted & Restricted Units'!$S$7:$S$399=\"Market Rate\")*('2. Assisted & Restricted Units'!$T$7:$T$399=\"LI State\"))","v":0},{"$f":"SUMPRODUCT(('2. Assisted & Restricted Units'!$E$7:$E$399=\"Ghocc\")*('2. Assisted & Restricted Units'!$S$7:$S$399=\"MHP\")*('2. Assisted & Restricted Units'!$T$7:$T$399=\"LI State\"))","v":0},{"$f":"SUMPRODUCT(('2. Assisted & Restricted Units'!$E$7:$E$399=\"Ghocc\")*('2. Assisted & Restricted Units'!$S$7:$S$399=\"NonAssisted\")*('2. Assisted & Restricted Units'!$T$7:$T$399=\"LI State\"))","v":0},{"$f":"SUMPRODUCT(('2. Assisted & Restricted Units'!$E$7:$E$399=\"Ghocc\")*('2. Assisted & Restricted Units'!$S$7:$S$399=\"Other Restr\")*('2. Assisted & Restricted Units'!$T$7:$T$399=\"LI State\"))","v":0},{"$f":"SUMPRODUCT(('2. Assisted & Restricted Units'!$E$7:$E$399=\"Ghocc\")*('2. Assisted & Restricted Units'!$S$7:$S$399=\"RHCP-B\")*('2. Assisted & Restricted Units'!$T$7:$T$399=\"LI State\"))","v":0},{"$f":"SUMPRODUCT(('2. Assisted & Restricted Units'!$E$7:$E$399=\"Ghocc\")*('2. Assisted & Restricted Units'!$S$7:$S$399=\"SERA\")*('2. Assisted & Restricted Units'!$T$7:$T$399=\"LI State\"))","v":0},{"$f":"SUMPRODUCT(('2. Assisted & Restricted Units'!$E$7:$E$399=\"Ghocc\")*('2. Assisted & Restricted Units'!$S$7:$S$399=\"SUHRP\")*('2. Assisted & Restricted Units'!$T$7:$T$399=\"LI State\"))","v":0},{"$f":"SUMPRODUCT(('2. Assisted & Restricted Units'!$E$7:$E$399=\"Ghocc\")*('2. Assisted & Restricted Units'!$S$7:$S$399=\"TOD\")*('2. Assisted & Restricted Units'!$T$7:$T$399=\"LI State\"))","v":0},{"$f":"SUMPRODUCT(('2. Assisted & Restricted Units'!$E$7:$E$399=\"Ghocc\")*('2. Assisted & Restricted Units'!$S$7:$S$399=\"707-E\")*('2. Assisted & Restricted Units'!$T$7:$T$399=\"LI State\"))","v":0},{"$f":"SUMPRODUCT(('2. Assisted & Restricted Units'!$E$7:$E$399=\"Ghocc\")*('2. Assisted & Restricted Units'!$S$7:$S$399=\"707-N\")*('2. Assisted & Restricted Units'!$T$7:$T$399=\"LI State\"))","v":0}]
["Ghocc CalHFA",{"$f":"SUMPRODUCT(('2. Assisted & Restricted Units'!$E$7:$E$399=\"Ghocc\")*('2. Assisted & Restricted Units'!$S$7:$S$399=\"CALDAP\")*('2. Assisted & Restricted Units'!$T$7:$T$399=\"CalHFA\"))","v":0},{"$f":"SUMPRODUCT(('2. Assisted & Restricted Units'!$E$7:$E$399=\"Ghocc\")*('2. Assisted & Restricted Units'!$S$7:$S$399=\"CHRP-R\")*('2. Assisted & Restricted Units'!$T$7:$T$399=\"CalHFA\"))","v":0},{"$f":"SUMPRODUCT(('2. Assisted & Restricted Units'!$E$7:$E$399=\"Ghocc\")*('2. Assisted & Restricted Units'!$S$7:$S$399=\"DDS\")*('2. Assisted & Restricted Units'!$T$7:$T$399=\"CalHFA\"))","v":0},{"$f":"SUMPRODUCT(('2. Assisted & Restricted Units'!$E$7:$E$399=\"Ghocc\")*('2. Assisted & Restricted Units'!$S$7:$S$399=\"DPRLP\")*('2. Assisted & Restricted Units'!$T$7:$T$399=\"CalHFA\"))","v":0},{"$f":"SUMPRODUCT(('2. Assisted & Restricted Units'!$E$7:$E$399=\"Ghocc\")*('2. Assisted & Restricted Units'!$S$7:$S$399=\"FHDP\")*('2. Assisted & Restricted Units'!$T$7:$T$399=\"CalHFA\"))","v":0},{"$f":"SUMPRODUCT(('2. Assisted & Restricted Units'!$E$7:$E$399=\"Ghocc\")*('2. Assisted & Restricted Units'!$S$7:$S$399=\"FMTW\")*('2. Assisted & Restricted Units'!$T$7:$T$399=\"CalHFA\"))","v":0},null,{"$f":"SUMPRODUCT(('2. Assisted & Restricted Units'!$E$7:$E$399=\"Ghocc\")*('2. Assisted & Restricted Units'!$S$7:$S$399=\"HOME\")*('2. Assisted & Restricted Units'!$T$7:$T$399=\"CalHFA\"))","v":0},{"$f":"SUMPRODUCT(('2. Assisted & Restricted Units'!$E$7:$E$399=\"Ghocc\")*('2. Assisted & Restricted Units'!$S$7:$S$399=\"Market Rate\")*('2. Assisted & Restricted Units'!$T$7:$T$399=\"CalHFA\"))","v":0},{"$f":"SUMPRODUCT(('2. Assisted & Restricted Units'!$E$7:$E$399=\"Ghocc\")*('2. Assisted & Restricted Units'!$S$7:$S$399=\"MHP\")*('2. Assisted & Restricted Units'!$T$7:$T$399=\"CalHFA\"))","v":0},{"$f":"SUMPRODUCT(('2. Assisted & Restricted Units'!$E$7:$E$399=\"Ghocc\")*('2. Assisted & Restricted Units'!$S$7:$S$399=\"NonAssisted\")*('2. Assisted & Restricted Units'!$T$7:$T$399=\"CalHFA\"))","v":0},{"$f":"SUMPRODUCT(('2. Assisted & Restricted Units'!$E$7:$E$399=\"Ghocc\")*('2. Assisted & Restricted Units'!$S$7:$S$399=\"Other Restr\")*('2. Assisted & Restricted Units'!$T$7:$T$399=\"CalHFA\"))","v":0},{"$f":"SUMPRODUCT(('2. Assisted & Restricted Units'!$E$7:$E$399=\"Ghocc\")*('2. Assisted & Restricted Units'!$S$7:$S$399=\"RHCP-B\")*('2. Assisted & Restricted Units'!$T$7:$T$399=\"CalHFA\"))","v":0},{"$f":"SUMPRODUCT(('2. Assisted & Restricted Units'!$E$7:$E$399=\"Ghocc\")*('2. Assisted & Restricted Units'!$S$7:$S$399=\"SERA\")*('2. Assisted & Restricted Units'!$T$7:$T$399=\"CalHFA\"))","v":0},{"$f":"SUMPRODUCT(('2. Assisted & Restricted Units'!$E$7:$E$399=\"Ghocc\")*('2. Assisted & Restricted Units'!$S$7:$S$399=\"SUHRP\")*('2. Assisted & Restricted Units'!$T$7:$T$399=\"CalHFA\"))","v":0},{"$f":"SUMPRODUCT(('2. Assisted & Restricted Units'!$E$7:$E$399=\"Ghocc\")*('2. Assisted & Restricted Units'!$S$7:$S$399=\"TOD\")*('2. Assisted & Restricted Units'!$T$7:$T$399=\"CalHFA\"))","v":0},{"$f":"SUMPRODUCT(('2. Assisted & Restricted Units'!$E$7:$E$399=\"Ghocc\")*('2. Assisted & Restricted Units'!$S$7:$S$399=\"707-E\")*('2. Assisted & Restricted Units'!$T$7:$T$399=\"CalHFA\"))","v":0},{"$f":"SUMPRODUCT(('2. Assisted & Restricted Units'!$E$7:$E$399=\"Ghocc\")*('2. Assisted & Restricted Units'!$S$7:$S$399=\"707-N\")*('2. Assisted & Restricted Units'!$T$7:$T$399=\"CalHFA\"))","v":0}]
["Ghocc Sec 8",{"$f":"SUMPRODUCT(('2. Assisted & Restricted Units'!$E$7:$E$399=\"Ghocc\")*('2. Assisted & Restricted Units'!$S$7:$S$399=\"CALDAP\")*('2. Assisted & Restricted Units'!$T$7:$T$399=\"Sec 8\"))","v":0},{"$f":"SUMPRODUCT(('2. Assisted & Restricted Units'!$E$7:$E$399=\"Ghocc\")*('2. Assisted & Restricted Units'!$S$7:$S$399=\"CHRP-R\")*('2. Assisted & Restricted Units'!$T$7:$T$399=\"Sec 8\"))","v":0},{"$f":"SUMPRODUCT(('2. Assisted & Restricted Units'!$E$7:$E$399=\"Ghocc\")*('2. Assisted & Restricted Units'!$S$7:$S$399=\"DDS\")*('2. Assisted & Restricted Units'!$T$7:$T$399=\"Sec 8\"))","v":0},{"$f":"SUMPRODUCT(('2. Assisted & Restricted Units'!$E$7:$E$399=\"Ghocc\")*('2. Assisted & Restricted Units'!$S$7:$S$399=\"DPRLP\")*('2. Assisted & Restricted Units'!$T$7:$T$399=\"Sec 8\"))","v":0},{"$f":"SUMPRODUCT(('2. Assisted & Restricted Units'!$E$7:$E$399=\"Ghocc\")*('2. Assisted & Restricted Units'!$S$7:$S$399=\"FHDP\")*('2. Assisted & Restricted Units'!$T$7:$T$399=\"Sec 8\"))","v":0},{"$f":"SUMPRODUCT(('2. Assisted & Restricted Units'!$E$7:$E$399=\"Ghocc\")*('2. Assisted & Restricted Units'!$S$7:$S$399=\"FMTW\")*('2. Assisted & Restricted Units'!$T$7:$T$399=\"Sec 8\"))","v":0},null,{"$f":"SUMPRODUCT(('2. Assisted & Restricted Units'!$E$7:$E$399=\"Ghocc\")*('2. Assisted & Restricted Units'!$S$7:$S$399=\"HOME\")*('2. Assisted & Restricted Units'!$T$7:$T$399=\"Sec 8\"))","v":0},{"$f":"SUMPRODUCT(('2. Assisted & Restricted Units'!$E$7:$E$399=\"Ghocc\")*('2. Assisted & Restricted Units'!$S$7:$S$399=\"Market Rate\")*('2. Assisted & Restricted Units'!$T$7:$T$399=\"Sec 8\"))","v":0},{"$f":"SUMPRODUCT(('2. Assisted & Restricted Units'!$E$7:$E$399=\"Ghocc\")*('2. Assisted & Restricted Units'!$S$7:$S$399=\"MHP\")*('2. Assisted & Restricted Units'!$T$7:$T$399=\"Sec 8\"))","v":0},{"$f":"SUMPRODUCT(('2. Assisted & Restricted Units'!$E$7:$E$399=\"Ghocc\")*('2. Assisted & Restricted Units'!$S$7:$S$399=\"NonAssisted\")*('2. Assisted & Restricted Units'!$T$7:$T$399=\"Sec 8\"))","v":0},{"$f":"SUMPRODUCT(('2. Assisted & Restricted Units'!$E$7:$E$399=\"Ghocc\")*('2. Assisted & Restricted Units'!$S$7:$S$399=\"Other Restr\")*('2. Assisted & Restricted Units'!$T$7:$T$399=\"Sec 8\"))","v":0},{"$f":"SUMPRODUCT(('2. Assisted & Restricted Units'!$E$7:$E$399=\"Ghocc\")*('2. Assisted & Restricted Units'!$S$7:$S$399=\"RHCP-B\")*('2. Assisted & Restricted Units'!$T$7:$T$399=\"Sec 8\"))","v":0},{"$f":"SUMPRODUCT(('2. Assisted & Restricted Units'!$E$7:$E$399=\"Ghocc\")*('2. Assisted & Restricted Units'!$S$7:$S$399=\"SERA\")*('2. Assisted & Restricted Units'!$T$7:$T$399=\"Sec 8\"))","v":0},{"$f":"SUMPRODUCT(('2. Assisted & Restricted Units'!$E$7:$E$399=\"Ghocc\")*('2. Assisted & Restricted Units'!$S$7:$S$399=\"SUHRP\")*('2. Assisted & Restricted Units'!$T$7:$T$399=\"Sec 8\"))","v":0},{"$f":"SUMPRODUCT(('2. Assisted & Restricted Units'!$E$7:$E$399=\"Ghocc\")*('2. Assisted & Restricted Units'!$S$7:$S$399=\"TOD\")*('2. Assisted & Restricted Units'!$T$7:$T$399=\"Sec 8\"))","v":0},{"$f":"SUMPRODUCT(('2. Assisted & Restricted Units'!$E$7:$E$399=\"Ghocc\")*('2. Assisted & Restricted Units'!$S$7:$S$399=\"707-E\")*('2. Assisted & Restricted Units'!$T$7:$T$399=\"Sec 8\"))","v":0},{"$f":"SUMPRODUCT(('2. Assisted & Restricted Units'!$E$7:$E$399=\"Ghocc\")*('2. Assisted & Restricted Units'!$S$7:$S$399=\"707-N\")*('2. Assisted & Restricted Units'!$T$7:$T$399=\"Sec 8\"))","v":0}]
["Total Ghocc",{"$f":"SUM(B2:B26)","v":0},0,0,0,0,0,{"$f":"SUMPRODUCT(('2. Assisted & Restricted Units'!$E$7:$E$399=\"Ghocc\")*('2. Assisted & Restricted Units'!$S$7:$S$399=\"FWHG\"))","v":0},{"$f":"SUM(I2:I26)","v":0},0,0,0,0,0,0,0,0,0,0,{"$f":"SUMPRODUCT(('2. Assisted & Restricted Units'!$E$7:$E$399=\"Ghocc\")*('2. Assisted & Restricted Units'!$L$7:$L$399=\"X\"))","v":0},{"$f":"SUMPRODUCT(('2. Assisted & Restricted Units'!$E$7:$E$399=\"Ghocc\")*('2. Assisted & Restricted Units'!#REF!=\"X\"))","v":{"$error":"#REF!"}},{"$f":"SUMPRODUCT(('2. Assisted & Restricted Units'!$E$7:$E$399=\"Ghocc\")*('2. Assisted & Restricted Units'!#REF!=\"X\"))","v":{"$error":"#REF!"}},{"$f":"SUMPRODUCT(('2. Assisted & Restricted Units'!$E$7:$E$399=\"Ghocc\")*('2. Assisted & Restricted Units'!#REF!=\"X\"))","v":{"$error":"#REF!"}},{"$f":"SUMPRODUCT(('2. Assisted & Restricted Units'!$E$7:$E$399=\"Ghocc\")*('2. Assisted & Restricted Units'!#REF!=\"X\"))","v":{"$error":"#REF!"}},{"$f":"SUMPRODUCT(('2. Assisted & Restricted Units'!$E$7:$E$399=\"Ghocc\")*('2. Assisted & Restricted Units'!#REF!=\"X\"))","v":{"$error":"#REF!"}},{"$f":"SUMPRODUCT(('2. Assisted & Restricted Units'!$E$7:$E$399=\"Ghocc\")*('2. Assisted & Restricted Units'!#REF!=\"X\"))","v":{"$error":"#REF!"}},{"$f":"SUMPRODUCT(('2. Assisted & Restricted Units'!$E$7:$E$399=\"Ghocc\")*('2. Assisted & Restricted Units'!$M$7:$M$399=\"X\"))","v":0},{"$f":"SUMPRODUCT(('2. Assisted & Restricted Units'!$E$7:$E$399=\"Ghocc\")*('2. Assisted & Restricted Units'!$O$7:$O$399=\"X\"))","v":0}]
["0 Bedroom 15% AMI",{"$f":"SUMPRODUCT(('2. Assisted & Restricted Units'!$E$7:$E$399=\"0\")*('2. Assisted & Restricted Units'!$S$7:$S$399=\"CALDAP\")*('2. Assisted & Restricted Units'!$T$7:$T$399=\"15% AMI\"))","v":0},{"$f":"SUMPRODUCT(('2. Assisted & Restricted Units'!$E$7:$E$399=\"0\")*('2. Assisted & Restricted Units'!$S$7:$S$399=\"CHRP-R\")*('2. Assisted & Restricted Units'!$T$7:$T$399=\"15% AMI\"))","v":0},{"$f":"SUMPRODUCT(('2. Assisted & Restricted Units'!$E$7:$E$399=\"0\")*('2. Assisted & Restricted Units'!$S$7:$S$399=\"DDS\")*('2. Assisted & Restricted Units'!$T$7:$T$399=\"15% AMI\"))","v":0},{"$f":"SUMPRODUCT(('2. Assisted & Restricted Units'!$E$7:$E$399=\"0\")*('2. Assisted & Restricted Units'!$S$7:$S$399=\"DPRLP\")*('2. Assisted & Restricted Units'!$T$7:$T$399=\"15% AMI\"))","v":0},{"$f":"SUMPRODUCT(('2. Assisted & Restricted Units'!$E$7:$E$399=\"0\")*('2. Assisted & Restricted Units'!$S$7:$S$399=\"FHDP\")*('2. Assisted & Restricted Units'!$T$7:$T$399=\"15% AMI\"))","v":0},{"$f":"SUMPRODUCT(('2. Assisted & Restricted Units'!$E$7:$E$399=\"0\")*('2. Assisted & Restricted Units'!$S$7:$S$399=\"FMTW\")*('2. Assisted & Restricted Units'!$T$7:$T$399=\"15% AMI\"))","v":0},null,{"$f":"SUMPRODUCT(('2. Assisted & Restricted Units'!$E$7:$E$399=\"0\")*('2. Assisted & Restricted Units'!$S$7:$S$399=\"HOME\")*('2. Assisted & Restricted Units'!$T$7:$T$399=\"15% AMI\"))","v":0},{"$f":"SUMPRODUCT(('2. Assisted & Restricted Units'!$E$7:$E$399=\"0\")*('2. Assisted & Restricted Units'!$S$7:$S$399=\"Market Rate\")*('2. Assisted & Restricted Units'!$T$7:$T$399=\"15% AMI\"))","v":0},{"$f":"SUMPRODUCT(('2. Assisted & Restricted Units'!$E$7:$E$399=\"0\")*('2. Assisted & Restricted Units'!$S$7:$S$399=\"MHP\")*('2. Assisted & Restricted Units'!$T$7:$T$399=\"15% AMI\"))","v":0},{"$f":"SUMPRODUCT(('2. Assisted & Restricted Units'!$E$7:$E$399=\"0\")*('2. Assisted & Restricted Units'!$S$7:$S$399=\"NonAssisted\")*('2. Assisted & Restricted Units'!$T$7:$T$399=\"15% AMI\"))","v":0},{"$f":"SUMPRODUCT(('2. Assisted & Restricted Units'!$E$7:$E$399=\"0\")*('2. Assisted & Restricted Units'!$S$7:$S$399=\"Other Restr\")*('2. Assisted & Restricted Units'!$T$7:$T$399=\"15% AMI\"))","v":0},{"$f":"SUMPRODUCT(('2. Assisted & Restricted Units'!$E$7:$E$399=\"0\")*('2. Assisted & Restricted Units'!$S$7:$S$399=\"RHCP-B\")*('2. Assisted & Restricted Units'!$T$7:$T$399=\"15% AMI\"))","v":0},{"$f":"SUMPRODUCT(('2. Assisted & Restricted Units'!$E$7:$E$399=\"0\")*('2. Assisted & Restricted Units'!$S$7:$S$399=\"SERA\")*('2. Assisted & Restricted Units'!$T$7:$T$399=\"15% AMI\"))","v":0},{"$f":"SUMPRODUCT(('2. Assisted & Restricted Units'!$E$7:$E$399=\"0\")*('2. Assisted & Restricted Units'!$S$7:$S$399=\"SUHRP\")*('2. Assisted & Restricted Units'!$T$7:$T$399=\"15% AMI\"))","v":0},{"$f":"SUMPRODUCT(('2. Assisted & Restricted Units'!$E$7:$E$399=\"0\")*('2. Assisted & Restricted Units'!$S$7:$S$399=\"TOD\")*('2. Assisted & Restricted Units'!$T$7:$T$399=\"15% AMI\"))","v":0},{"$f":"SUMPRODUCT(('2. Assisted & Restricted Units'!$E$7:$E$399=\"0\")*('2. Assisted & Restricted Units'!$S$7:$S$399=\"707-E\")*('2. Assisted & Restricted Units'!$T$7:$T$399=\"15% AMI\"))","v":0},{"$f":"SUMPRODUCT(('2. Assisted & Restricted Units'!$E$7:$E$399=\"0\")*('2. Assisted & Restricted Units'!$S$7:$S$399=\"707-N\")*('2. Assisted & Restricted Units'!$T$7:$T$399=\"15% AMI\"))","v":0}]
["0 Bedroom 20% AMI",{"$f":"SUMPRODUCT(('2. Assisted & Restricted Units'!$E$7:$E$399=\"0\")*('2. Assisted & Restricted Units'!$S$7:$S$399=\"CALDAP\")*('2. Assisted & Restricted Units'!$T$7:$T$399=\"20% AMI\"))","v":0},{"$f":"SUMPRODUCT(('2. Assisted & Restricted Units'!$E$7:$E$399=\"0\")*('2. Assisted & Restricted Units'!$S$7:$S$399=\"CHRP-R\")*('2. Assisted & Restricted Units'!$T$7:$T$399=\"20% AMI\"))","v":0},{"$f":"SUMPRODUCT(('2. Assisted & Restricted Units'!$E$7:$E$399=\"0\")*('2. Assisted & Restricted Units'!$S$7:$S$399=\"DDS\")*('2. Assisted & Restricted Units'!$T$7:$T$399=\"20% AMI\"))","v":0},{"$f":"SUMPRODUCT(('2. Assisted & Restricted Units'!$E$7:$E$399=\"0\")*('2. Assisted & Restricted Units'!$S$7:$S$399=\"DPRLP\")*('2. Assisted & Restricted Units'!$T$7:$T$399=\"20% AMI\"))","v":0},{"$f":"SUMPRODUCT(('2. Assisted & Restricted Units'!$E$7:$E$399=\"0\")*('2. Assisted & Restricted Units'!$S$7:$S$399=\"FHDP\")*('2. Assisted & Restricted Units'!$T$7:$T$399=\"20% AMI\"))","v":0},{"$f":"SUMPRODUCT(('2. Assisted & Restricted Units'!$E$7:$E$399=\"0\")*('2. Assisted & Restricted Units'!$S$7:$S$399=\"FMTW\")*('2. Assisted & Restricted Units'!$T$7:$T$399=\"20% AMI\"))","v":0},null,{"$f":"SUMPRODUCT(('2. Assisted & Restricted Units'!$E$7:$E$399=\"0\")*('2. Assisted & Restricted Units'!$S$7:$S$399=\"HOME\")*('2. Assisted & Restricted Units'!$T$7:$T$399=\"20% AMI\"))","v":0},{"$f":"SUMPRODUCT(('2. Assisted & Restricted Units'!$E$7:$E$399=\"0\")*('2. Assisted & Restricted Units'!$S$7:$S$399=\"Market Rate\")*('2. Assisted & Restricted Units'!$T$7:$T$399=\"20% AMI\"))","v":0},{"$f":"SUMPRODUCT(('2. Assisted & Restricted Units'!$E$7:$E$399=\"0\")*('2. Assisted & Restricted Units'!$S$7:$S$399=\"MHP\")*('2. Assisted & Restricted Units'!$T$7:$T$399=\"20% AMI\"))","v":0},{"$f":"SUMPRODUCT(('2. Assisted & Restricted Units'!$E$7:$E$399=\"0\")*('2. Assisted & Restricted Units'!$S$7:$S$399=\"NonAssisted\")*('2. Assisted & Restricted Units'!$T$7:$T$399=\"20% AMI\"))","v":0},{"$f":"SUMPRODUCT(('2. Assisted & Restricted Units'!$E$7:$E$399=\"0\")*('2. Assisted & Restricted Units'!$S$7:$S$399=\"Other Restr\")*('2. Assisted & Restricted Units'!$T$7:$T$399=\"20% AMI\"))","v":0},{"$f":"SUMPRODUCT(('2. Assisted & Restricted Units'!$E$7:$E$399=\"0\")*('2. Assisted & Restricted Units'!$S$7:$S$399=\"RHCP-B\")*('2. Assisted & Restricted Units'!$T$7:$T$399=\"20% AMI\"))","v":0},{"$f":"SUMPRODUCT(('2. Assisted & Restricted Units'!$E$7:$E$399=\"0\")*('2. Assisted & Restricted Units'!$S$7:$S$399=\"SERA\")*('2. Assisted & Restricted Units'!$T$7:$T$399=\"20% AMI\"))","v":0},{"$f":"SUMPRODUCT(('2. Assisted & Restricted Units'!$E$7:$E$399=\"0\")*('2. Assisted & Restricted Units'!$S$7:$S$399=\"SUHRP\")*('2. Assisted & Restricted Units'!$T$7:$T$399=\"20% AMI\"))","v":0},{"$f":"SUMPRODUCT(('2. Assisted & Restricted Units'!$E$7:$E$399=\"0\")*('2. Assisted & Restricted Units'!$S$7:$S$399=\"TOD\")*('2. Assisted & Restricted Units'!$T$7:$T$399=\"20% AMI\"))","v":0},{"$f":"SUMPRODUCT(('2. Assisted & Restricted Units'!$E$7:$E$399=\"0\")*('2. Assisted & Restricted Units'!$S$7:$S$399=\"707-E\")*('2. Assisted & Restricted Units'!$T$7:$T$399=\"20% AMI\"))","v":0},{"$f":"SUMPRODUCT(('2. Assisted & Restricted Units'!$E$7:$E$399=\"0\")*('2. Assisted & Restricted Units'!$S$7:$S$399=\"707-N\")*('2. Assisted & Restricted Units'!$T$7:$T$399=\"20% AMI\"))","v":0}]
["0 Bedroom 25% AMI",{"$f":"SUMPRODUCT(('2. Assisted & Restricted Units'!$E$7:$E$399=\"0\")*('2. Assisted & Restricted Units'!$S$7:$S$399=\"CALDAP\")*('2. Assisted & Restricted Units'!$T$7:$T$399=\"25% AMI\"))","v":0},{"$f":"SUMPRODUCT(('2. Assisted & Restricted Units'!$E$7:$E$399=\"0\")*('2. Assisted & Restricted Units'!$S$7:$S$399=\"CHRP-R\")*('2. Assisted & Restricted Units'!$T$7:$T$399=\"25% AMI\"))","v":0},{"$f":"SUMPRODUCT(('2. Assisted & Restricted Units'!$E$7:$E$399=\"0\")*('2. Assisted & Restricted Units'!$S$7:$S$399=\"DDS\")*('2. Assisted & Restricted Units'!$T$7:$T$399=\"25% AMI\"))","v":0},{"$f":"SUMPRODUCT(('2. Assisted & Restricted Units'!$E$7:$E$399=\"0\")*('2. Assisted & Restricted Units'!$S$7:$S$399=\"DPRLP\")*('2. Assisted & Restricted Units'!$T$7:$T$399=\"25% AMI\"))","v":0},{"$f":"SUMPRODUCT(('2. Assisted & Restricted Units'!$E$7:$E$399=\"0\")*('2. Assisted & Restricted Units'!$S$7:$S$399=\"FHDP\")*('2. Assisted & Restricted Units'!$T$7:$T$399=\"25% AMI\"))","v":0},{"$f":"SUMPRODUCT(('2. Assisted & Restricted Units'!$E$7:$E$399=\"0\")*('2. Assisted & Restricted Units'!$S$7:$S$399=\"FMTW\")*('2. Assisted & Restricted Units'!$T$7:$T$399=\"25% AMI\"))","v":0},null,{"$f":"SUMPRODUCT(('2. Assisted & Restricted Units'!$E$7:$E$399=\"0\")*('2. Assisted & Restricted Units'!$S$7:$S$399=\"HOME\")*('2. Assisted & Restricted Units'!$T$7:$T$399=\"25% AMI\"))","v":0},{"$f":"SUMPRODUCT(('2. Assisted & Restricted Units'!$E$7:$E$399=\"0\")*('2. Assisted & Restricted Units'!$S$7:$S$399=\"Market Rate\")*('2. Assisted & Restricted Units'!$T$7:$T$399=\"25% AMI\"))","v":0},{"$f":"SUMPRODUCT(('2. Assisted & Restricted Units'!$E$7:$E$399=\"0\")*('2. Assisted & Restricted Units'!$S$7:$S$399=\"MHP\")*('2. Assisted & Restricted Units'!$T$7:$T$399=\"25% AMI\"))","v":0},{"$f":"SUMPRODUCT(('2. Assisted & Restricted Units'!$E$7:$E$399=\"0\")*('2. Assisted & Restricted Units'!$S$7:$S$399=\"NonAssisted\")*('2. Assisted & Restricted Units'!$T$7:$T$399=\"25% AMI\"))","v":0},{"$f":"SUMPRODUCT(('2. Assisted & Restricted Units'!$E$7:$E$399=\"0\")*('2. Assisted & Restricted Units'!$S$7:$S$399=\"Other Restr\")*('2. Assisted & Restricted Units'!$T$7:$T$399=\"25% AMI\"))","v":0},{"$f":"SUMPRODUCT(('2. Assisted & Restricted Units'!$E$7:$E$399=\"0\")*('2. Assisted & Restricted Units'!$S$7:$S$399=\"RHCP-B\")*('2. Assisted & Restricted Units'!$T$7:$T$399=\"25% AMI\"))","v":0},{"$f":"SUMPRODUCT(('2. Assisted & Restricted Units'!$E$7:$E$399=\"0\")*('2. Assisted & Restricted Units'!$S$7:$S$399=\"SERA\")*('2. Assisted & Restricted Units'!$T$7:$T$399=\"25% AMI\"))","v":0},{"$f":"SUMPRODUCT(('2. Assisted & Restricted Units'!$E$7:$E$399=\"0\")*('2. Assisted & Restricted Units'!$S$7:$S$399=\"SUHRP\")*('2. Assisted & Restricted Units'!$T$7:$T$399=\"25% AMI\"))","v":0},{"$f":"SUMPRODUCT(('2. Assisted & Restricted Units'!$E$7:$E$399=\"0\")*('2. Assisted & Restricted Units'!$S$7:$S$399=\"TOD\")*('2. Assisted & Restricted Units'!$T$7:$T$399=\"25% AMI\"))","v":0},{"$f":"SUMPRODUCT(('2. Assisted & Restricted Units'!$E$7:$E$399=\"0\")*('2. Assisted & Restricted Units'!$S$7:$S$399=\"707-E\")*('2. Assisted & Restricted Units'!$T$7:$T$399=\"25% AMI\"))","v":0},{"$f":"SUMPRODUCT(('2. Assisted & Restricted Units'!$E$7:$E$399=\"0\")*('2. Assisted & Restricted Units'!$S$7:$S$399=\"707-N\")*('2. Assisted & Restricted Units'!$T$7:$T$399=\"25% AMI\"))","v":0}]
["0 Bedroom 30% AMI",{"$f":"SUMPRODUCT(('2. Assisted & Restricted Units'!$E$7:$E$399=\"0\")*('2. Assisted & Restricted Units'!$S$7:$S$399=\"CALDAP\")*('2. Assisted & Restricted Units'!$T$7:$T$399=\"30% AMI\"))","v":0},{"$f":"SUMPRODUCT(('2. Assisted & Restricted Units'!$E$7:$E$399=\"0\")*('2. Assisted & Restricted Units'!$S$7:$S$399=\"CHRP-R\")*('2. Assisted & Restricted Units'!$T$7:$T$399=\"30% AMI\"))","v":0},{"$f":"SUMPRODUCT(('2. Assisted & Restricted Units'!$E$7:$E$399=\"0\")*('2. Assisted & Restricted Units'!$S$7:$S$399=\"DDS\")*('2. Assisted & Restricted Units'!$T$7:$T$399=\"30% AMI\"))","v":0},{"$f":"SUMPRODUCT(('2. Assisted & Restricted Units'!$E$7:$E$399=\"0\")*('2. Assisted & Restricted Units'!$S$7:$S$399=\"DPRLP\")*('2. Assisted & Restricted Units'!$T$7:$T$399=\"30% AMI\"))","v":0},{"$f":"SUMPRODUCT(('2. Assisted & Restricted Units'!$E$7:$E$399=\"0\")*('2. Assisted & Restricted Units'!$S$7:$S$399=\"FHDP\")*('2. Assisted & Restricted Units'!$T$7:$T$399=\"30% AMI\"))","v":0},{"$f":"SUMPRODUCT(('2. Assisted & Restricted Units'!$E$7:$E$399=\"0\")*('2. Assisted & Restricted Units'!$S$7:$S$399=\"FMTW\")*('2. Assisted & Restricted Units'!$T$7:$T$399=\"30% AMI\"))","v":0},null,{"$f":"SUMPRODUCT(('2. Assisted & Restricted Units'!$E$7:$E$399=\"0\")*('2. Assisted & Restricted Units'!$S$7:$S$399=\"HOME\")*('2. Assisted & Restricted Units'!$T$7:$T$399=\"30% AMI\"))","v":0},{"$f":"SUMPRODUCT(('2. Assisted & Restricted Units'!$E$7:$E$399=\"0\")*('2. Assisted & Restricted Units'!$S$7:$S$399=\"Market Rate\")*('2. Assisted & Restricted Units'!$T$7:$T$399=\"30% AMI\"))","v":0},{"$f":"SUMPRODUCT(('2. Assisted & Restricted Units'!$E$7:$E$399=\"0\")*('2. Assisted & Restricted Units'!$S$7:$S$399=\"MHP\")*('2. Assisted & Restricted Units'!$T$7:$T$399=\"30% AMI\"))","v":0},{"$f":"SUMPRODUCT(('2. Assisted & Restricted Units'!$E$7:$E$399=\"0\")*('2. Assisted & Restricted Units'!$S$7:$S$399=\"NonAssisted\")*('2. Assisted & Restricted Units'!$T$7:$T$399=\"30% AMI\"))","v":0},{"$f":"SUMPRODUCT(('2. Assisted & Restricted Units'!$E$7:$E$399=\"0\")*('2. Assisted & Restricted Units'!$S$7:$S$399=\"Other Restr\")*('2. Assisted & Restricted Units'!$T$7:$T$399=\"30% AMI\"))","v":0},{"$f":"SUMPRODUCT(('2. Assisted & Restricted Units'!$E$7:$E$399=\"0\")*('2. Assisted & Restricted Units'!$S$7:$S$399=\"RHCP-B\")*('2. Assisted & Restricted Units'!$T$7:$T$399=\"30% AMI\"))","v":0},{"$f":"SUMPRODUCT(('2. Assisted & Restricted Units'!$E$7:$E$399=\"0\")*('2. Assisted & Restricted Units'!$S$7:$S$399=\"SERA\")*('2. Assisted & Restricted Units'!$T$7:$T$399=\"30% AMI\"))","v":0},{"$f":"SUMPRODUCT(('2. Assisted & Restricted Units'!$E$7:$E$399=\"0\")*('2. Assisted & Restricted Units'!$S$7:$S$399=\"SUHRP\")*('2. Assisted & Restricted Units'!$T$7:$T$399=\"30% AMI\"))","v":0},{"$f":"SUMPRODUCT(('2. Assisted & Restricted Units'!$E$7:$E$399=\"0\")*('2. Assisted & Restricted Units'!$S$7:$S$399=\"TOD\")*('2. Assisted & Restricted Units'!$T$7:$T$399=\"30% AMI\"))","v":0},{"$f":"SUMPRODUCT(('2. Assisted & Restricted Units'!$E$7:$E$399=\"0\")*('2. Assisted & Restricted Units'!$S$7:$S$399=\"707-E\")*('2. Assisted & Restricted Units'!$T$7:$T$399=\"30% AMI\"))","v":0},{"$f":"SUMPRODUCT(('2. Assisted & Restricted Units'!$E$7:$E$399=\"0\")*('2. Assisted & Restricted Units'!$S$7:$S$399=\"707-N\")*('2. Assisted & Restricted Units'!$T$7:$T$399=\"30% AMI\"))","v":0}]
["0 Bedroom 35% AMI",{"$f":"SUMPRODUCT(('2. Assisted & Restricted Units'!$E$7:$E$399=\"0\")*('2. Assisted & Restricted Units'!$S$7:$S$399=\"CALDAP\")*('2. Assisted & Restricted Units'!$T$7:$T$399=\"35% AMI\"))","v":0},{"$f":"SUMPRODUCT(('2. Assisted & Restricted Units'!$E$7:$E$399=\"0\")*('2. Assisted & Restricted Units'!$S$7:$S$399=\"CHRP-R\")*('2. Assisted & Restricted Units'!$T$7:$T$399=\"35% AMI\"))","v":0},{"$f":"SUMPRODUCT(('2. Assisted & Restricted Units'!$E$7:$E$399=\"0\")*('2. Assisted & Restricted Units'!$S$7:$S$399=\"DDS\")*('2. Assisted & Restricted Units'!$T$7:$T$399=\"35% AMI\"))","v":0},{"$f":"SUMPRODUCT(('2. Assisted & Restricted Units'!$E$7:$E$399=\"0\")*('2. Assisted & Restricted Units'!$S$7:$S$399=\"DPRLP\")*('2. Assisted & Restricted Units'!$T$7:$T$399=\"35% AMI\"))","v":0},{"$f":"SUMPRODUCT(('2. Assisted & Restricted Units'!$E$7:$E$399=\"0\")*('2. Assisted & Restricted Units'!$S$7:$S$399=\"FHDP\")*('2. Assisted & Restricted Units'!$T$7:$T$399=\"35% AMI\"))","v":0},{"$f":"SUMPRODUCT(('2. Assisted & Restricted Units'!$E$7:$E$399=\"0\")*('2. Assisted & Restricted Units'!$S$7:$S$399=\"FMTW\")*('2. Assisted & Restricted Units'!$T$7:$T$399=\"35% AMI\"))","v":0},null,{"$f":"SUMPRODUCT(('2. Assisted & Restricted Units'!$E$7:$E$399=\"0\")*('2. Assisted & Restricted Units'!$S$7:$S$399=\"HOME\")*('2. Assisted & Restricted Units'!$T$7:$T$399=\"35% AMI\"))","v":0},{"$f":"SUMPRODUCT(('2. Assisted & Restricted Units'!$E$7:$E$399=\"0\")*('2. Assisted & Restricted Units'!$S$7:$S$399=\"Market Rate\")*('2. Assisted & Restricted Units'!$T$7:$T$399=\"35% AMI\"))","v":0},{"$f":"SUMPRODUCT(('2. Assisted & Restricted Units'!$E$7:$E$399=\"0\")*('2. Assisted & Restricted Units'!$S$7:$S$399=\"MHP\")*('2. Assisted & Restricted Units'!$T$7:$T$399=\"35% AMI\"))","v":0},{"$f":"SUMPRODUCT(('2. Assisted & Restricted Units'!$E$7:$E$399=\"0\")*('2. Assisted & Restricted Units'!$S$7:$S$399=\"NonAssisted\")*('2. Assisted & Restricted Units'!$T$7:$T$399=\"35% AMI\"))","v":0},{"$f":"SUMPRODUCT(('2. Assisted & Restricted Units'!$E$7:$E$399=\"0\")*('2. Assisted & Restricted Units'!$S$7:$S$399=\"Other Restr\")*('2. Assisted & Restricted Units'!$T$7:$T$399=\"35% AMI\"))","v":0},{"$f":"SUMPRODUCT(('2. Assisted & Restricted Units'!$E$7:$E$399=\"0\")*('2. Assisted & Restricted Units'!$S$7:$S$399=\"RHCP-B\")*('2. Assisted & Restricted Units'!$T$7:$T$399=\"35% AMI\"))","v":0},{"$f":"SUMPRODUCT(('2. Assisted & Restricted Units'!$E$7:$E$399=\"0\")*('2. Assisted & Restricted Units'!$S$7:$S$399=\"SERA\")*('2. Assisted & Restricted Units'!$T$7:$T$399=\"35% AMI\"))","v":0},{"$f":"SUMPRODUCT(('2. Assisted & Restricted Units'!$E$7:$E$399=\"0\")*('2. Assisted & Restricted Units'!$S$7:$S$399=\"SUHRP\")*('2. Assisted & Restricted Units'!$T$7:$T$399=\"35% AMI\"))","v":0},{"$f":"SUMPRODUCT(('2. Assisted & Restricted Units'!$E$7:$E$399=\"0\")*('2. Assisted & Restricted Units'!$S$7:$S$399=\"TOD\")*('2. Assisted & Restricted Units'!$T$7:$T$399=\"35% AMI\"))","v":0},{"$f":"SUMPRODUCT(('2. Assisted & Restricted Units'!$E$7:$E$399=\"0\")*('2. Assisted & Restricted Units'!$S$7:$S$399=\"707-E\")*('2. Assisted & Restricted Units'!$T$7:$T$399=\"35% AMI\"))","v":0},{"$f":"SUMPRODUCT(('2. Assisted & Restricted Units'!$E$7:$E$399=\"0\")*('2. Assisted & Restricted Units'!$S$7:$S$399=\"707-N\")*('2. Assisted & Restricted Units'!$T$7:$T$399=\"35% AMI\"))","v":0}]
["0 Bedroom 40% AMI",{"$f":"SUMPRODUCT(('2. Assisted & Restricted Units'!$E$7:$E$399=\"0\")*('2. Assisted & Restricted Units'!$S$7:$S$399=\"CALDAP\")*('2. Assisted & Restricted Units'!$T$7:$T$399=\"40% AMI\"))","v":0},{"$f":"SUMPRODUCT(('2. Assisted & Restricted Units'!$E$7:$E$399=\"0\")*('2. Assisted & Restricted Units'!$S$7:$S$399=\"CHRP-R\")*('2. Assisted & Restricted Units'!$T$7:$T$399=\"40% AMI\"))","v":0},{"$f":"SUMPRODUCT(('2. Assisted & Restricted Units'!$E$7:$E$399=\"0\")*('2. Assisted & Restricted Units'!$S$7:$S$399=\"DDS\")*('2. Assisted & Restricted Units'!$T$7:$T$399=\"40% AMI\"))","v":0},{"$f":"SUMPRODUCT(('2. Assisted & Restricted Units'!$E$7:$E$399=\"0\")*('2. Assisted & Restricted Units'!$S$7:$S$399=\"DPRLP\")*('2. Assisted & Restricted Units'!$T$7:$T$399=\"40% AMI\"))","v":0},{"$f":"SUMPRODUCT(('2. Assisted & Restricted Units'!$E$7:$E$399=\"0\")*('2. Assisted & Restricted Units'!$S$7:$S$399=\"FHDP\")*('2. Assisted & Restricted Units'!$T$7:$T$399=\"40% AMI\"))","v":0},{"$f":"SUMPRODUCT(('2. Assisted & Restricted Units'!$E$7:$E$399=\"0\")*('2. Assisted & Restricted Units'!$S$7:$S$399=\"FMTW\")*('2. Assisted & Restricted Units'!$T$7:$T$399=\"40% AMI\"))","v":0},null,{"$f":"SUMPRODUCT(('2. Assisted & Restricted Units'!$E$7:$E$399=\"0\")*('2. Assisted & Restricted Units'!$S$7:$S$399=\"HOME\")*('2. Assisted & Restricted Units'!$T$7:$T$399=\"40% AMI\"))","v":0},{"$f":"SUMPRODUCT(('2. Assisted & Restricted Units'!$E$7:$E$399=\"0\")*('2. Assisted & Restricted Units'!$S$7:$S$399=\"Market Rate\")*('2. Assisted & Restricted Units'!$T$7:$T$399=\"40% AMI\"))","v":0},{"$f":"SUMPRODUCT(('2. Assisted & Restricted Units'!$E$7:$E$399=\"0\")*('2. Assisted & Restricted Units'!$S$7:$S$399=\"MHP\")*('2. Assisted & Restricted Units'!$T$7:$T$399=\"40% AMI\"))","v":0},{"$f":"SUMPRODUCT(('2. Assisted & Restricted Units'!$E$7:$E$399=\"0\")*('2. Assisted & Restricted Units'!$S$7:$S$399=\"NonAssisted\")*('2. Assisted & Restricted Units'!$T$7:$T$399=\"40% AMI\"))","v":0},{"$f":"SUMPRODUCT(('2. Assisted & Restricted Units'!$E$7:$E$399=\"0\")*('2. Assisted & Restricted Units'!$S$7:$S$399=\"Other Restr\")*('2. Assisted & Restricted Units'!$T$7:$T$399=\"40% AMI\"))","v":0},{"$f":"SUMPRODUCT(('2. Assisted & Restricted Units'!$E$7:$E$399=\"0\")*('2. Assisted & Restricted Units'!$S$7:$S$399=\"RHCP-B\")*('2. Assisted & Restricted Units'!$T$7:$T$399=\"40% AMI\"))","v":0},{"$f":"SUMPRODUCT(('2. Assisted & Restricted Units'!$E$7:$E$399=\"0\")*('2. Assisted & Restricted Units'!$S$7:$S$399=\"SERA\")*('2. Assisted & Restricted Units'!$T$7:$T$399=\"40% AMI\"))","v":0},{"$f":"SUMPRODUCT(('2. Assisted & Restricted Units'!$E$7:$E$399=\"0\")*('2. Assisted & Restricted Units'!$S$7:$S$399=\"SUHRP\")*('2. Assisted & Restricted Units'!$T$7:$T$399=\"40% AMI\"))","v":0},{"$f":"SUMPRODUCT(('2. Assisted & Restricted Units'!$E$7:$E$399=\"0\")*('2. Assisted & Restricted Units'!$S$7:$S$399=\"TOD\")*('2. Assisted & Restricted Units'!$T$7:$T$399=\"40% AMI\"))","v":0},{"$f":"SUMPRODUCT(('2. Assisted & Restricted Units'!$E$7:$E$399=\"0\")*('2. Assisted & Restricted Units'!$S$7:$S$399=\"707-E\")*('2. Assisted & Restricted Units'!$T$7:$T$399=\"40% AMI\"))","v":0},{"$f":"SUMPRODUCT(('2. Assisted & Restricted Units'!$E$7:$E$399=\"0\")*('2. Assisted & Restricted Units'!$S$7:$S$399=\"707-N\")*('2. Assisted & Restricted Units'!$T$7:$T$399=\"40% AMI\"))","v":0}]
["0 Bedroom 45% AMI",{"$f":"SUMPRODUCT(('2. Assisted & Restricted Units'!$E$7:$E$399=\"0\")*('2. Assisted & Restricted Units'!$S$7:$S$399=\"CALDAP\")*('2. Assisted & Restricted Units'!$T$7:$T$399=\"45% AMI\"))","v":0},{"$f":"SUMPRODUCT(('2. Assisted & Restricted Units'!$E$7:$E$399=\"0\")*('2. Assisted & Restricted Units'!$S$7:$S$399=\"CHRP-R\")*('2. Assisted & Restricted Units'!$T$7:$T$399=\"45% AMI\"))","v":0},{"$f":"SUMPRODUCT(('2. Assisted & Restricted Units'!$E$7:$E$399=\"0\")*('2. Assisted & Restricted Units'!$S$7:$S$399=\"DDS\")*('2. Assisted & Restricted Units'!$T$7:$T$399=\"45% AMI\"))","v":0},{"$f":"SUMPRODUCT(('2. Assisted & Restricted Units'!$E$7:$E$399=\"0\")*('2. Assisted & Restricted Units'!$S$7:$S$399=\"DPRLP\")*('2. Assisted & Restricted Units'!$T$7:$T$399=\"45% AMI\"))","v":0},{"$f":"SUMPRODUCT(('2. Assisted & Restricted Units'!$E$7:$E$399=\"0\")*('2. Assisted & Restricted Units'!$S$7:$S$399=\"FHDP\")*('2. Assisted & Restricted Units'!$T$7:$T$399=\"45% AMI\"))","v":0},{"$f":"SUMPRODUCT(('2. Assisted & Restricted Units'!$E$7:$E$399=\"0\")*('2. Assisted & Restricted Units'!$S$7:$S$399=\"FMTW\")*('2. Assisted & Restricted Units'!$T$7:$T$399=\"45% AMI\"))","v":0},null,{"$f":"SUMPRODUCT(('2. Assisted & Restricted Units'!$E$7:$E$399=\"0\")*('2. Assisted & Restricted Units'!$S$7:$S$399=\"HOME\")*('2. Assisted & Restricted Units'!$T$7:$T$399=\"45% AMI\"))","v":0},{"$f":"SUMPRODUCT(('2. Assisted & Restricted Units'!$E$7:$E$399=\"0\")*('2. Assisted & Restricted Units'!$S$7:$S$399=\"Market Rate\")*('2. Assisted & Restricted Units'!$T$7:$T$399=\"45% AMI\"))","v":0},{"$f":"SUMPRODUCT(('2. Assisted & Restricted Units'!$E$7:$E$399=\"0\")*('2. Assisted & Restricted Units'!$S$7:$S$399=\"MHP\")*('2. Assisted & Restricted Units'!$T$7:$T$399=\"45% AMI\"))","v":0},{"$f":"SUMPRODUCT(('2. Assisted & Restricted Units'!$E$7:$E$399=\"0\")*('2. Assisted & Restricted Units'!$S$7:$S$399=\"NonAssisted\")*('2. Assisted & Restricted Units'!$T$7:$T$399=\"45% AMI\"))","v":0},{"$f":"SUMPRODUCT(('2. Assisted & Restricted Units'!$E$7:$E$399=\"0\")*('2. Assisted & Restricted Units'!$S$7:$S$399=\"Other Restr\")*('2. Assisted & Restricted Units'!$T$7:$T$399=\"45% AMI\"))","v":0},{"$f":"SUMPRODUCT(('2. Assisted & Restricted Units'!$E$7:$E$399=\"0\")*('2. Assisted & Restricted Units'!$S$7:$S$399=\"RHCP-B\")*('2. Assisted & Restricted Units'!$T$7:$T$399=\"45% AMI\"))","v":0},{"$f":"SUMPRODUCT(('2. Assisted & Restricted Units'!$E$7:$E$399=\"0\")*('2. Assisted & Restricted Units'!$S$7:$S$399=\"SERA\")*('2. Assisted & Restricted Units'!$T$7:$T$399=\"45% AMI\"))","v":0},{"$f":"SUMPRODUCT(('2. Assisted & Restricted Units'!$E$7:$E$399=\"0\")*('2. Assisted & Restricted Units'!$S$7:$S$399=\"SUHRP\")*('2. Assisted & Restricted Units'!$T$7:$T$399=\"45% AMI\"))","v":0},{"$f":"SUMPRODUCT(('2. Assisted & Restricted Units'!$E$7:$E$399=\"0\")*('2. Assisted & Restricted Units'!$S$7:$S$399=\"TOD\")*('2. Assisted & Restricted Units'!$T$7:$T$399=\"45% AMI\"))","v":0},{"$f":"SUMPRODUCT(('2. Assisted & Restricted Units'!$E$7:$E$399=\"0\")*('2. Assisted & Restricted Units'!$S$7:$S$399=\"707-E\")*('2. Assisted & Restricted Units'!$T$7:$T$399=\"45% AMI\"))","v":0},{"$f":"SUMPRODUCT(('2. Assisted & Restricted Units'!$E$7:$E$399=\"0\")*('2. Assisted & Restricted Units'!$S$7:$S$399=\"707-N\")*('2. Assisted & Restricted Units'!$T$7:$T$399=\"45% AMI\"))","v":0}]
["0 Bedroom 50% AMI",{"$f":"SUMPRODUCT(('2. Assisted & Restricted Units'!$E$7:$E$399=\"0\")*('2. Assisted & Restricted Units'!$S$7:$S$399=\"CALDAP\")*('2. Assisted & Restricted Units'!$T$7:$T$399=\"50% AMI\"))","v":0},{"$f":"SUMPRODUCT(('2. Assisted & Restricted Units'!$E$7:$E$399=\"0\")*('2. Assisted & Restricted Units'!$S$7:$S$399=\"CHRP-R\")*('2. Assisted & Restricted Units'!$T$7:$T$399=\"50% AMI\"))","v":0},{"$f":"SUMPRODUCT(('2. Assisted & Restricted Units'!$E$7:$E$399=\"0\")*('2. Assisted & Restricted Units'!$S$7:$S$399=\"DDS\")*('2. Assisted & Restricted Units'!$T$7:$T$399=\"50% AMI\"))","v":0},{"$f":"SUMPRODUCT(('2. Assisted & Restricted Units'!$E$7:$E$399=\"0\")*('2. Assisted & Restricted Units'!$S$7:$S$399=\"DPRLP\")*('2. Assisted & Restricted Units'!$T$7:$T$399=\"50% AMI\"))","v":0},{"$f":"SUMPRODUCT(('2. Assisted & Restricted Units'!$E$7:$E$399=\"0\")*('2. Assisted & Restricted Units'!$S$7:$S$399=\"FHDP\")*('2. Assisted & Restricted Units'!$T$7:$T$399=\"50% AMI\"))","v":0},{"$f":"SUMPRODUCT(('2. Assisted & Restricted Units'!$E$7:$E$399=\"0\")*('2. Assisted & Restricted Units'!$S$7:$S$399=\"FMTW\")*('2. Assisted & Restricted Units'!$T$7:$T$399=\"50% AMI\"))","v":0},null,{"$f":"SUMPRODUCT(('2. Assisted & Restricted Units'!$E$7:$E$399=\"0\")*('2. Assisted & Restricted Units'!$S$7:$S$399=\"HOME\")*('2. Assisted & Restricted Units'!$T$7:$T$399=\"50% AMI\"))","v":0},{"$f":"SUMPRODUCT(('2. Assisted & Restricted Units'!$E$7:$E$399=\"0\")*('2. Assisted & Restricted Units'!$S$7:$S$399=\"Market Rate\")*('2. Assisted & Restricted Units'!$T$7:$T$399=\"50% AMI\"))","v":0},{"$f":"SUMPRODUCT(('2. Assisted & Restricted Units'!$E$7:$E$399=\"0\")*('2. Assisted & Restricted Units'!$S$7:$S$399=\"MHP\")*('2. Assisted & Restricted Units'!$T$7:$T$399=\"50% AMI\"))","v":0},{"$f":"SUMPRODUCT(('2. Assisted & Restricted Units'!$E$7:$E$399=\"0\")*('2. Assisted & Restricted Units'!$S$7:$S$399=\"NonAssisted\")*('2. Assisted & Restricted Units'!$T$7:$T$399=\"50% AMI\"))","v":0},{"$f":"SUMPRODUCT(('2. Assisted & Restricted Units'!$E$7:$E$399=\"0\")*('2. Assisted & Restricted Units'!$S$7:$S$399=\"Other Restr\")*('2. Assisted & Restricted Units'!$T$7:$T$399=\"50% AMI\"))","v":0},{"$f":"SUMPRODUCT(('2. Assisted & Restricted Units'!$E$7:$E$399=\"0\")*('2. Assisted & Restricted Units'!$S$7:$S$399=\"RHCP-B\")*('2. Assisted & Restricted Units'!$T$7:$T$399=\"50% AMI\"))","v":0},{"$f":"SUMPRODUCT(('2. Assisted & Restricted Units'!$E$7:$E$399=\"0\")*('2. Assisted & Restricted Units'!$S$7:$S$399=\"SERA\")*('2. Assisted & Restricted Units'!$T$7:$T$399=\"50% AMI\"))","v":0},{"$f":"SUMPRODUCT(('2. Assisted & Restricted Units'!$E$7:$E$399=\"0\")*('2. Assisted & Restricted Units'!$S$7:$S$399=\"SUHRP\")*('2. Assisted & Restricted Units'!$T$7:$T$399=\"50% AMI\"))","v":0},{"$f":"SUMPRODUCT(('2. Assisted & Restricted Units'!$E$7:$E$399=\"0\")*('2. Assisted & Restricted Units'!$S$7:$S$399=\"TOD\")*('2. Assisted & Restricted Units'!$T$7:$T$399=\"50% AMI\"))","v":0},{"$f":"SUMPRODUCT(('2. Assisted & Restricted Units'!$E$7:$E$399=\"0\")*('2. Assisted & Restricted Units'!$S$7:$S$399=\"707-E\")*('2. Assisted & Restricted Units'!$T$7:$T$399=\"50% AMI\"))","v":0},{"$f":"SUMPRODUCT(('2. Assisted & Restricted Units'!$E$7:$E$399=\"0\")*('2. Assisted & Restricted Units'!$S$7:$S$399=\"707-N\")*('2. Assisted & Restricted Units'!$T$7:$T$399=\"50% AMI\"))","v":0}]
["0 Bedroom 55% AMI",{"$f":"SUMPRODUCT(('2. Assisted & Restricted Units'!$E$7:$E$399=\"0\")*('2. Assisted & Restricted Units'!$S$7:$S$399=\"CALDAP\")*('2. Assisted & Restricted Units'!$T$7:$T$399=\"55% AMI\"))","v":0},{"$f":"SUMPRODUCT(('2. Assisted & Restricted Units'!$E$7:$E$399=\"0\")*('2. Assisted & Restricted Units'!$S$7:$S$399=\"CHRP-R\")*('2. Assisted & Restricted Units'!$T$7:$T$399=\"55% AMI\"))","v":0},{"$f":"SUMPRODUCT(('2. Assisted & Restricted Units'!$E$7:$E$399=\"0\")*('2. Assisted & Restricted Units'!$S$7:$S$399=\"DDS\")*('2. Assisted & Restricted Units'!$T$7:$T$399=\"55% AMI\"))","v":0},{"$f":"SUMPRODUCT(('2. Assisted & Restricted Units'!$E$7:$E$399=\"0\")*('2. Assisted & Restricted Units'!$S$7:$S$399=\"DPRLP\")*('2. Assisted & Restricted Units'!$T$7:$T$399=\"55% AMI\"))","v":0},{"$f":"SUMPRODUCT(('2. Assisted & Restricted Units'!$E$7:$E$399=\"0\")*('2. Assisted & Restricted Units'!$S$7:$S$399=\"FHDP\")*('2. Assisted & Restricted Units'!$T$7:$T$399=\"55% AMI\"))","v":0},{"$f":"SUMPRODUCT(('2. Assisted & Restricted Units'!$E$7:$E$399=\"0\")*('2. Assisted & Restricted Units'!$S$7:$S$399=\"FMTW\")*('2. Assisted & Restricted Units'!$T$7:$T$399=\"55% AMI\"))","v":0},null,{"$f":"SUMPRODUCT(('2. Assisted & Restricted Units'!$E$7:$E$399=\"0\")*('2. Assisted & Restricted Units'!$S$7:$S$399=\"HOME\")*('2. Assisted & Restricted Units'!$T$7:$T$399=\"55% AMI\"))","v":0},{"$f":"SUMPRODUCT(('2. Assisted & Restricted Units'!$E$7:$E$399=\"0\")*('2. Assisted & Restricted Units'!$S$7:$S$399=\"Market Rate\")*('2. Assisted & Restricted Units'!$T$7:$T$399=\"55% AMI\"))","v":0},{"$f":"SUMPRODUCT(('2. Assisted & Restricted Units'!$E$7:$E$399=\"0\")*('2. Assisted & Restricted Units'!$S$7:$S$399=\"MHP\")*('2. Assisted & Restricted Units'!$T$7:$T$399=\"55% AMI\"))","v":0},{"$f":"SUMPRODUCT(('2. Assisted & Restricted Units'!$E$7:$E$399=\"0\")*('2. Assisted & Restricted Units'!$S$7:$S$399=\"NonAssisted\")*('2. Assisted & Restricted Units'!$T$7:$T$399=\"55% AMI\"))","v":0},{"$f":"SUMPRODUCT(('2. Assisted & Restricted Units'!$E$7:$E$399=\"0\")*('2. Assisted & Restricted Units'!$S$7:$S$399=\"Other Restr\")*('2. Assisted & Restricted Units'!$T$7:$T$399=\"55% AMI\"))","v":0},{"$f":"SUMPRODUCT(('2. Assisted & Restricted Units'!$E$7:$E$399=\"0\")*('2. Assisted & Restricted Units'!$S$7:$S$399=\"RHCP-B\")*('2. Assisted & Restricted Units'!$T$7:$T$399=\"55% AMI\"))","v":0},{"$f":"SUMPRODUCT(('2. Assisted & Restricted Units'!$E$7:$E$399=\"0\")*('2. Assisted & Restricted Units'!$S$7:$S$399=\"SERA\")*('2. Assisted & Restricted Units'!$T$7:$T$399=\"55% AMI\"))","v":0},{"$f":"SUMPRODUCT(('2. Assisted & Restricted Units'!$E$7:$E$399=\"0\")*('2. Assisted & Restricted Units'!$S$7:$S$399=\"SUHRP\")*('2. Assisted & Restricted Units'!$T$7:$T$399=\"55% AMI\"))","v":0},{"$f":"SUMPRODUCT(('2. Assisted & Restricted Units'!$E$7:$E$399=\"0\")*('2. Assisted & Restricted Units'!$S$7:$S$399=\"TOD\")*('2. Assisted & Restricted Units'!$T$7:$T$399=\"55% AMI\"))","v":0},{"$f":"SUMPRODUCT(('2. Assisted & Restricted Units'!$E$7:$E$399=\"0\")*('2. Assisted & Restricted Units'!$S$7:$S$399=\"707-E\")*('2. Assisted & Restricted Units'!$T$7:$T$399=\"55% AMI\"))","v":0},{"$f":"SUMPRODUCT(('2. Assisted & Restricted Units'!$E$7:$E$399=\"0\")*('2. Assisted & Restricted Units'!$S$7:$S$399=\"707-N\")*('2. Assisted & Restricted Units'!$T$7:$T$399=\"55% AMI\"))","v":0}]
["0 Bedroom 60% AMI",{"$f":"SUMPRODUCT(('2. Assisted & Restricted Units'!$E$7:$E$399=\"0\")*('2. Assisted & Restricted Units'!$S$7:$S$399=\"CALDAP\")*('2. Assisted & Restricted Units'!$T$7:$T$399=\"60% AMI\"))","v":0},{"$f":"SUMPRODUCT(('2. Assisted & Restricted Units'!$E$7:$E$399=\"0\")*('2. Assisted & Restricted Units'!$S$7:$S$399=\"CHRP-R\")*('2. Assisted & Restricted Units'!$T$7:$T$399=\"60% AMI\"))","v":0},{"$f":"SUMPRODUCT(('2. Assisted & Restricted Units'!$E$7:$E$399=\"0\")*('2. Assisted & Restricted Units'!$S$7:$S$399=\"DDS\")*('2. Assisted & Restricted Units'!$T$7:$T$399=\"60% AMI\"))","v":0},{"$f":"SUMPRODUCT(('2. Assisted & Restricted Units'!$E$7:$E$399=\"0\")*('2. Assisted & Restricted Units'!$S$7:$S$399=\"DPRLP\")*('2. Assisted & Restricted Units'!$T$7:$T$399=\"60% AMI\"))","v":0},{"$f":"SUMPRODUCT(('2. Assisted & Restricted Units'!$E$7:$E$399=\"0\")*('2. Assisted & Restricted Units'!$S$7:$S$399=\"FHDP\")*('2. Assisted & Restricted Units'!$T$7:$T$399=\"60% AMI\"))","v":0},{"$f":"SUMPRODUCT(('2. Assisted & Restricted Units'!$E$7:$E$399=\"0\")*('2. Assisted & Restricted Units'!$S$7:$S$399=\"FMTW\")*('2. Assisted & Restricted Units'!$T$7:$T$399=\"60% AMI\"))","v":0},null,{"$f":"SUMPRODUCT(('2. Assisted & Restricted Units'!$E$7:$E$399=\"0\")*('2. Assisted & Restricted Units'!$S$7:$S$399=\"HOME\")*('2. Assisted & Restricted Units'!$T$7:$T$399=\"60% AMI\"))","v":0},{"$f":"SUMPRODUCT(('2. Assisted & Restricted Units'!$E$7:$E$399=\"0\")*('2. Assisted & Restricted Units'!$S$7:$S$399=\"Market Rate\")*('2. Assisted & Restricted Units'!$T$7:$T$399=\"60% AMI\"))","v":0},{"$f":"SUMPRODUCT(('2. Assisted & Restricted Units'!$E$7:$E$399=\"0\")*('2. Assisted & Restricted Units'!$S$7:$S$399=\"MHP\")*('2. Assisted & Restricted Units'!$T$7:$T$399=\"60% AMI\"))","v":0},{"$f":"SUMPRODUCT(('2. Assisted & Restricted Units'!$E$7:$E$399=\"0\")*('2. Assisted & Restricted Units'!$S$7:$S$399=\"NonAssisted\")*('2. Assisted & Restricted Units'!$T$7:$T$399=\"60% AMI\"))","v":0},{"$f":"SUMPRODUCT(('2. Assisted & Restricted Units'!$E$7:$E$399=\"0\")*('2. Assisted & Restricted Units'!$S$7:$S$399=\"Other Restr\")*('2. Assisted & Restricted Units'!$T$7:$T$399=\"60% AMI\"))","v":0},{"$f":"SUMPRODUCT(('2. Assisted & Restricted Units'!$E$7:$E$399=\"0\")*('2. Assisted & Restricted Units'!$S$7:$S$399=\"RHCP-B\")*('2. Assisted & Restricted Units'!$T$7:$T$399=\"60% AMI\"))","v":0},{"$f":"SUMPRODUCT(('2. Assisted & Restricted Units'!$E$7:$E$399=\"0\")*('2. Assisted & Restricted Units'!$S$7:$S$399=\"SERA\")*('2. Assisted & Restricted Units'!$T$7:$T$399=\"60% AMI\"))","v":0},{"$f":"SUMPRODUCT(('2. Assisted & Restricted Units'!$E$7:$E$399=\"0\")*('2. Assisted & Restricted Units'!$S$7:$S$399=\"SUHRP\")*('2. Assisted & Restricted Units'!$T$7:$T$399=\"60% AMI\"))","v":0},{"$f":"SUMPRODUCT(('2. Assisted & Restricted Units'!$E$7:$E$399=\"0\")*('2. Assisted & Restricted Units'!$S$7:$S$399=\"TOD\")*('2. Assisted & Restricted Units'!$T$7:$T$399=\"60% AMI\"))","v":0},{"$f":"SUMPRODUCT(('2. Assisted & Restricted Units'!$E$7:$E$399=\"0\")*('2. Assisted & Restricted Units'!$S$7:$S$399=\"707-E\")*('2. Assisted & Restricted Units'!$T$7:$T$399=\"60% AMI\"))","v":0},{"$f":"SUMPRODUCT(('2. Assisted & Restricted Units'!$E$7:$E$399=\"0\")*('2. Assisted & Restricted Units'!$S$7:$S$399=\"707-N\")*('2. Assisted & Restricted Units'!$T$7:$T$399=\"60% AMI\"))","v":0}]
["0 Bedroom 80% AMI",{"$f":"SUMPRODUCT(('2. Assisted & Restricted Units'!$E$7:$E$399=\"0\")*('2. Assisted & Restricted Units'!$S$7:$S$399=\"CALDAP\")*('2. Assisted & Restricted Units'!$T$7:$T$399=\"80% AMI\"))","v":0},{"$f":"SUMPRODUCT(('2. Assisted & Restricted Units'!$E$7:$E$399=\"0\")*('2. Assisted & Restricted Units'!$S$7:$S$399=\"CHRP-R\")*('2. Assisted & Restricted Units'!$T$7:$T$399=\"80% AMI\"))","v":0},{"$f":"SUMPRODUCT(('2. Assisted & Restricted Units'!$E$7:$E$399=\"0\")*('2. Assisted & Restricted Units'!$S$7:$S$399=\"DDS\")*('2. Assisted & Restricted Units'!$T$7:$T$399=\"80% AMI\"))","v":0},{"$f":"SUMPRODUCT(('2. Assisted & Restricted Units'!$E$7:$E$399=\"0\")*('2. Assisted & Restricted Units'!$S$7:$S$399=\"DPRLP\")*('2. Assisted & Restricted Units'!$T$7:$T$399=\"80% AMI\"))","v":0},{"$f":"SUMPRODUCT(('2. Assisted & Restricted Units'!$E$7:$E$399=\"0\")*('2. Assisted & Restricted Units'!$S$7:$S$399=\"FHDP\")*('2. Assisted & Restricted Units'!$T$7:$T$399=\"80% AMI\"))","v":0},{"$f":"SUMPRODUCT(('2. Assisted & Restricted Units'!$E$7:$E$399=\"0\")*('2. Assisted & Restricted Units'!$S$7:$S$399=\"FMTW\")*('2. Assisted & Restricted Units'!$T$7:$T$399=\"80% AMI\"))","v":0},null,{"$f":"SUMPRODUCT(('2. Assisted & Restricted Units'!$E$7:$E$399=\"0\")*('2. Assisted & Restricted Units'!$S$7:$S$399=\"HOME\")*('2. Assisted & Restricted Units'!$T$7:$T$399=\"80% AMI\"))","v":0},{"$f":"SUMPRODUCT(('2. Assisted & Restricted Units'!$E$7:$E$399=\"0\")*('2. Assisted & Restricted Units'!$S$7:$S$399=\"Market Rate\")*('2. Assisted & Restricted Units'!$T$7:$T$399=\"80% AMI\"))","v":0},{"$f":"SUMPRODUCT(('2. Assisted & Restricted Units'!$E$7:$E$399=\"0\")*('2. Assisted & Restricted Units'!$S$7:$S$399=\"MHP\")*('2. Assisted & Restricted Units'!$T$7:$T$399=\"80% AMI\"))","v":0},{"$f":"SUMPRODUCT(('2. Assisted & Restricted Units'!$E$7:$E$399=\"0\")*('2. Assisted & Restricted Units'!$S$7:$S$399=\"NonAssisted\")*('2. Assisted & Restricted Units'!$T$7:$T$399=\"80% AMI\"))","v":0},{"$f":"SUMPRODUCT(('2. Assisted & Restricted Units'!$E$7:$E$399=\"0\")*('2. Assisted & Restricted Units'!$S$7:$S$399=\"Other Restr\")*('2. Assisted & Restricted Units'!$T$7:$T$399=\"80% AMI\"))","v":0},{"$f":"SUMPRODUCT(('2. Assisted & Restricted Units'!$E$7:$E$399=\"0\")*('2. Assisted & Restricted Units'!$S$7:$S$399=\"RHCP-B\")*('2. Assisted & Restricted Units'!$T$7:$T$399=\"80% AMI\"))","v":0},{"$f":"SUMPRODUCT(('2. Assisted & Restricted Units'!$E$7:$E$399=\"0\")*('2. Assisted & Restricted Units'!$S$7:$S$399=\"SERA\")*('2. Assisted & Restricted Units'!$T$7:$T$399=\"80% AMI\"))","v":0},{"$f":"SUMPRODUCT(('2. Assisted & Restricted Units'!$E$7:$E$399=\"0\")*('2. Assisted & Restricted Units'!$S$7:$S$399=\"SUHRP\")*('2. Assisted & Restricted Units'!$T$7:$T$399=\"80% AMI\"))","v":0},{"$f":"SUMPRODUCT(('2. Assisted & Restricted Units'!$E$7:$E$399=\"0\")*('2. Assisted & Restricted Units'!$S$7:$S$399=\"TOD\")*('2. Assisted & Restricted Units'!$T$7:$T$399=\"80% AMI\"))","v":0},{"$f":"SUMPRODUCT(('2. Assisted & Restricted Units'!$E$7:$E$399=\"0\")*('2. Assisted & Restricted Units'!$S$7:$S$399=\"707-E\")*('2. Assisted & Restricted Units'!$T$7:$T$399=\"80% AMI\"))","v":0},{"$f":"SUMPRODUCT(('2. Assisted & Restricted Units'!$E$7:$E$399=\"0\")*('2. Assisted & Restricted Units'!$S$7:$S$399=\"707-N\")*('2. Assisted & Restricted Units'!$T$7:$T$399=\"80% AMI\"))","v":0}]
["0 Bedroom 20% SMI",{"$f":"SUMPRODUCT(('2. Assisted & Restricted Units'!$E$7:$E$399=\"0\")*('2. Assisted & Restricted Units'!$S$7:$S$399=\"CALDAP\")*('2. Assisted & Restricted Units'!$T$7:$T$399=\"20% SMI\"))","v":0},{"$f":"SUMPRODUCT(('2. Assisted & Restricted Units'!$E$7:$E$399=\"0\")*('2. Assisted & Restricted Units'!$S$7:$S$399=\"CHRP-R\")*('2. Assisted & Restricted Units'!$T$7:$T$399=\"20% SMI\"))","v":0},{"$f":"SUMPRODUCT(('2. Assisted & Restricted Units'!$E$7:$E$399=\"0\")*('2. Assisted & Restricted Units'!$S$7:$S$399=\"DDS\")*('2. Assisted & Restricted Units'!$T$7:$T$399=\"20% SMI\"))","v":0},{"$f":"SUMPRODUCT(('2. Assisted & Restricted Units'!$E$7:$E$399=\"0\")*('2. Assisted & Restricted Units'!$S$7:$S$399=\"DPRLP\")*('2. Assisted & Restricted Units'!$T$7:$T$399=\"20% SMI\"))","v":0},{"$f":"SUMPRODUCT(('2. Assisted & Restricted Units'!$E$7:$E$399=\"0\")*('2. Assisted & Restricted Units'!$S$7:$S$399=\"FHDP\")*('2. Assisted & Restricted Units'!$T$7:$T$399=\"20% SMI\"))","v":0},{"$f":"SUMPRODUCT(('2. Assisted & Restricted Units'!$E$7:$E$399=\"0\")*('2. Assisted & Restricted Units'!$S$7:$S$399=\"FMTW\")*('2. Assisted & Restricted Units'!$T$7:$T$399=\"20% SMI\"))","v":0},null,{"$f":"SUMPRODUCT(('2. Assisted & Restricted Units'!$E$7:$E$399=\"0\")*('2. Assisted & Restricted Units'!$S$7:$S$399=\"HOME\")*('2. Assisted & Restricted Units'!$T$7:$T$399=\"20% SMI\"))","v":0},{"$f":"SUMPRODUCT(('2. Assisted & Restricted Units'!$E$7:$E$399=\"0\")*('2. Assisted & Restricted Units'!$S$7:$S$399=\"Market Rate\")*('2. Assisted & Restricted Units'!$T$7:$T$399=\"20% SMI\"))","v":0},{"$f":"SUMPRODUCT(('2. Assisted & Restricted Units'!$E$7:$E$399=\"0\")*('2. Assisted & Restricted Units'!$S$7:$S$399=\"MHP\")*('2. Assisted & Restricted Units'!$T$7:$T$399=\"20% SMI\"))","v":0},{"$f":"SUMPRODUCT(('2. Assisted & Restricted Units'!$E$7:$E$399=\"0\")*('2. Assisted & Restricted Units'!$S$7:$S$399=\"NonAssisted\")*('2. Assisted & Restricted Units'!$T$7:$T$399=\"20% SMI\"))","v":0},{"$f":"SUMPRODUCT(('2. Assisted & Restricted Units'!$E$7:$E$399=\"0\")*('2. Assisted & Restricted Units'!$S$7:$S$399=\"Other Restr\")*('2. Assisted & Restricted Units'!$T$7:$T$399=\"20% SMI\"))","v":0},{"$f":"SUMPRODUCT(('2. Assisted & Restricted Units'!$E$7:$E$399=\"0\")*('2. Assisted & Restricted Units'!$S$7:$S$399=\"RHCP-B\")*('2. Assisted & Restricted Units'!$T$7:$T$399=\"20% SMI\"))","v":0},{"$f":"SUMPRODUCT(('2. Assisted & Restricted Units'!$E$7:$E$399=\"0\")*('2. Assisted & Restricted Units'!$S$7:$S$399=\"SERA\")*('2. Assisted & Restricted Units'!$T$7:$T$399=\"20% SMI\"))","v":0},{"$f":"SUMPRODUCT(('2. Assisted & Restricted Units'!$E$7:$E$399=\"0\")*('2. Assisted & Restricted Units'!$S$7:$S$399=\"SUHRP\")*('2. Assisted & Restricted Units'!$T$7:$T$399=\"20% SMI\"))","v":0},{"$f":"SUMPRODUCT(('2. Assisted & Restricted Units'!$E$7:$E$399=\"0\")*('2. Assisted & Restricted Units'!$S$7:$S$399=\"TOD\")*('2. Assisted & Restricted Units'!$T$7:$T$399=\"20% SMI\"))","v":0},{"$f":"SUMPRODUCT(('2. Assisted & Restricted Units'!$E$7:$E$399=\"0\")*('2. Assisted & Restricted Units'!$S$7:$S$399=\"707-E\")*('2. Assisted & Restricted Units'!$T$7:$T$399=\"20% SMI\"))","v":0},{"$f":"SUMPRODUCT(('2. Assisted & Restricted Units'!$E$7:$E$399=\"0\")*('2. Assisted & Restricted Units'!$S$7:$S$399=\"707-N\")*('2. Assisted & Restricted Units'!$T$7:$T$399=\"20% SMI\"))","v":0}]
["0 Bedroom 25% SMI",{"$f":"SUMPRODUCT(('2. Assisted & Restricted Units'!$E$7:$E$399=\"0\")*('2. Assisted & Restricted Units'!$S$7:$S$399=\"CALDAP\")*('2. Assisted & Restricted Units'!$T$7:$T$399=\"25% SMI\"))","v":0},{"$f":"SUMPRODUCT(('2. Assisted & Restricted Units'!$E$7:$E$399=\"0\")*('2. Assisted & Restricted Units'!$S$7:$S$399=\"CHRP-R\")*('2. Assisted & Restricted Units'!$T$7:$T$399=\"25% SMI\"))","v":0},{"$f":"SUMPRODUCT(('2. Assisted & Restricted Units'!$E$7:$E$399=\"0\")*('2. Assisted & Restricted Units'!$S$7:$S$399=\"DDS\")*('2. Assisted & Restricted Units'!$T$7:$T$399=\"25% SMI\"))","v":0},{"$f":"SUMPRODUCT(('2. Assisted & Restricted Units'!$E$7:$E$399=\"0\")*('2. Assisted & Restricted Units'!$S$7:$S$399=\"DPRLP\")*('2. Assisted & Restricted Units'!$T$7:$T$399=\"25% SMI\"))","v":0},{"$f":"SUMPRODUCT(('2. Assisted & Restricted Units'!$E$7:$E$399=\"0\")*('2. Assisted & Restricted Units'!$S$7:$S$399=\"FHDP\")*('2. Assisted & Restricted Units'!$T$7:$T$399=\"25% SMI\"))","v":0},{"$f":"SUMPRODUCT(('2. Assisted & Restricted Units'!$E$7:$E$399=\"0\")*('2. Assisted & Restricted Units'!$S$7:$S$399=\"FMTW\")*('2. Assisted & Restricted Units'!$T$7:$T$399=\"25% SMI\"))","v":0},null,{"$f":"SUMPRODUCT(('2. Assisted & Restricted Units'!$E$7:$E$399=\"0\")*('2. Assisted & Restricted Units'!$S$7:$S$399=\"HOME\")*('2. Assisted & Restricted Units'!$T$7:$T$399=\"25% SMI\"))","v":0},{"$f":"SUMPRODUCT(('2. Assisted & Restricted Units'!$E$7:$E$399=\"0\")*('2. Assisted & Restricted Units'!$S$7:$S$399=\"Market Rate\")*('2. Assisted & Restricted Units'!$T$7:$T$399=\"25% SMI\"))","v":0},{"$f":"SUMPRODUCT(('2. Assisted & Restricted Units'!$E$7:$E$399=\"0\")*('2. Assisted & Restricted Units'!$S$7:$S$399=\"MHP\")*('2. Assisted & Restricted Units'!$T$7:$T$399=\"25% SMI\"))","v":0},{"$f":"SUMPRODUCT(('2. Assisted & Restricted Units'!$E$7:$E$399=\"0\")*('2. Assisted & Restricted Units'!$S$7:$S$399=\"NonAssisted\")*('2. Assisted & Restricted Units'!$T$7:$T$399=\"25% SMI\"))","v":0},{"$f":"SUMPRODUCT(('2. Assisted & Restricted Units'!$E$7:$E$399=\"0\")*('2. Assisted & Restricted Units'!$S$7:$S$399=\"Other Restr\")*('2. Assisted & Restricted Units'!$T$7:$T$399=\"25% SMI\"))","v":0},{"$f":"SUMPRODUCT(('2. Assisted & Restricted Units'!$E$7:$E$399=\"0\")*('2. Assisted & Restricted Units'!$S$7:$S$399=\"RHCP-B\")*('2. Assisted & Restricted Units'!$T$7:$T$399=\"25% SMI\"))","v":0},{"$f":"SUMPRODUCT(('2. Assisted & Restricted Units'!$E$7:$E$399=\"0\")*('2. Assisted & Restricted Units'!$S$7:$S$399=\"SERA\")*('2. Assisted & Restricted Units'!$T$7:$T$399=\"25% SMI\"))","v":0},{"$f":"SUMPRODUCT(('2. Assisted & Restricted Units'!$E$7:$E$399=\"0\")*('2. Assisted & Restricted Units'!$S$7:$S$399=\"SUHRP\")*('2. Assisted & Restricted Units'!$T$7:$T$399=\"25% SMI\"))","v":0},{"$f":"SUMPRODUCT(('2. Assisted & Restricted Units'!$E$7:$E$399=\"0\")*('2. Assisted & Restricted Units'!$S$7:$S$399=\"TOD\")*('2. Assisted & Restricted Units'!$T$7:$T$399=\"25% SMI\"))","v":0},{"$f":"SUMPRODUCT(('2. Assisted & Restricted Units'!$E$7:$E$399=\"0\")*('2. Assisted & Restricted Units'!$S$7:$S$399=\"707-E\")*('2. Assisted & Restricted Units'!$T$7:$T$399=\"25% SMI\"))","v":0},{"$f":"SUMPRODUCT(('2. Assisted & Restricted Units'!$E$7:$E$399=\"0\")*('2. Assisted & Restricted Units'!$S$7:$S$399=\"707-N\")*('2. Assisted & Restricted Units'!$T$7:$T$399=\"25% SMI\"))","v":0}]
["0 Bedroom 30% SMI",{"$f":"SUMPRODUCT(('2. Assisted & Restricted Units'!$E$7:$E$399=\"0\")*('2. Assisted & Restricted Units'!$S$7:$S$399=\"CALDAP\")*('2. Assisted & Restricted Units'!$T$7:$T$399=\"30% SMI\"))","v":0},{"$f":"SUMPRODUCT(('2. Assisted & Restricted Units'!$E$7:$E$399=\"0\")*('2. Assisted & Restricted Units'!$S$7:$S$399=\"CHRP-R\")*('2. Assisted & Restricted Units'!$T$7:$T$399=\"30% SMI\"))","v":0},{"$f":"SUMPRODUCT(('2. Assisted & Restricted Units'!$E$7:$E$399=\"0\")*('2. Assisted & Restricted Units'!$S$7:$S$399=\"DDS\")*('2. Assisted & Restricted Units'!$T$7:$T$399=\"30% SMI\"))","v":0},{"$f":"SUMPRODUCT(('2. Assisted & Restricted Units'!$E$7:$E$399=\"0\")*('2. Assisted & Restricted Units'!$S$7:$S$399=\"DPRLP\")*('2. Assisted & Restricted Units'!$T$7:$T$399=\"30% SMI\"))","v":0},{"$f":"SUMPRODUCT(('2. Assisted & Restricted Units'!$E$7:$E$399=\"0\")*('2. Assisted & Restricted Units'!$S$7:$S$399=\"FHDP\")*('2. Assisted & Restricted Units'!$T$7:$T$399=\"30% SMI\"))","v":0},{"$f":"SUMPRODUCT(('2. Assisted & Restricted Units'!$E$7:$E$399=\"0\")*('2. Assisted & Restricted Units'!$S$7:$S$399=\"FMTW\")*('2. Assisted & Restricted Units'!$T$7:$T$399=\"30% SMI\"))","v":0},null,{"$f":"SUMPRODUCT(('2. Assisted & Restricted Units'!$E$7:$E$399=\"0\")*('2. Assisted & Restricted Units'!$S$7:$S$399=\"HOME\")*('2. Assisted & Restricted Units'!$T$7:$T$399=\"30% SMI\"))","v":0},{"$f":"SUMPRODUCT(('2. Assisted & Restricted Units'!$E$7:$E$399=\"0\")*('2. Assisted & Restricted Units'!$S$7:$S$399=\"Market Rate\")*('2. Assisted & Restricted Units'!$T$7:$T$399=\"30% SMI\"))","v":0},{"$f":"SUMPRODUCT(('2. Assisted & Restricted Units'!$E$7:$E$399=\"0\")*('2. Assisted & Restricted Units'!$S$7:$S$399=\"MHP\")*('2. Assisted & Restricted Units'!$T$7:$T$399=\"30% SMI\"))","v":0},{"$f":"SUMPRODUCT(('2. Assisted & Restricted Units'!$E$7:$E$399=\"0\")*('2. Assisted & Restricted Units'!$S$7:$S$399=\"NonAssisted\")*('2. Assisted & Restricted Units'!$T$7:$T$399=\"30% SMI\"))","v":0},{"$f":"SUMPRODUCT(('2. Assisted & Restricted Units'!$E$7:$E$399=\"0\")*('2. Assisted & Restricted Units'!$S$7:$S$399=\"Other Restr\")*('2. Assisted & Restricted Units'!$T$7:$T$399=\"30% SMI\"))","v":0},{"$f":"SUMPRODUCT(('2. Assisted & Restricted Units'!$E$7:$E$399=\"0\")*('2. Assisted & Restricted Units'!$S$7:$S$399=\"RHCP-B\")*('2. Assisted & Restricted Units'!$T$7:$T$399=\"30% SMI\"))","v":0},{"$f":"SUMPRODUCT(('2. Assisted & Restricted Units'!$E$7:$E$399=\"0\")*('2. Assisted & Restricted Units'!$S$7:$S$399=\"SERA\")*('2. Assisted & Restricted Units'!$T$7:$T$399=\"30% SMI\"))","v":0},{"$f":"SUMPRODUCT(('2. Assisted & Restricted Units'!$E$7:$E$399=\"0\")*('2. Assisted & Restricted Units'!$S$7:$S$399=\"SUHRP\")*('2. Assisted & Restricted Units'!$T$7:$T$399=\"30% SMI\"))","v":0},{"$f":"SUMPRODUCT(('2. Assisted & Restricted Units'!$E$7:$E$399=\"0\")*('2. Assisted & Restricted Units'!$S$7:$S$399=\"TOD\")*('2. Assisted & Restricted Units'!$T$7:$T$399=\"30% SMI\"))","v":0},{"$f":"SUMPRODUCT(('2. Assisted & Restricted Units'!$E$7:$E$399=\"0\")*('2. Assisted & Restricted Units'!$S$7:$S$399=\"707-E\")*('2. Assisted & Restricted Units'!$T$7:$T$399=\"30% SMI\"))","v":0},{"$f":"SUMPRODUCT(('2. Assisted & Restricted Units'!$E$7:$E$399=\"0\")*('2. Assisted & Restricted Units'!$S$7:$S$399=\"707-N\")*('2. Assisted & Restricted Units'!$T$7:$T$399=\"30% SMI\"))","v":0}]
["0 Bedroom 35% SMI",{"$f":"SUMPRODUCT(('2. Assisted & Restricted Units'!$E$7:$E$399=\"0\")*('2. Assisted & Restricted Units'!$S$7:$S$399=\"CALDAP\")*('2. Assisted & Restricted Units'!$T$7:$T$399=\"35% SMI\"))","v":0},{"$f":"SUMPRODUCT(('2. Assisted & Restricted Units'!$E$7:$E$399=\"0\")*('2. Assisted & Restricted Units'!$S$7:$S$399=\"CHRP-R\")*('2. Assisted & Restricted Units'!$T$7:$T$399=\"35% SMI\"))","v":0},{"$f":"SUMPRODUCT(('2. Assisted & Restricted Units'!$E$7:$E$399=\"0\")*('2. Assisted & Restricted Units'!$S$7:$S$399=\"DDS\")*('2. Assisted & Restricted Units'!$T$7:$T$399=\"35% SMI\"))","v":0},{"$f":"SUMPRODUCT(('2. Assisted & Restricted Units'!$E$7:$E$399=\"0\")*('2. Assisted & Restricted Units'!$S$7:$S$399=\"DPRLP\")*('2. Assisted & Restricted Units'!$T$7:$T$399=\"35% SMI\"))","v":0},{"$f":"SUMPRODUCT(('2. Assisted & Restricted Units'!$E$7:$E$399=\"0\")*('2. Assisted & Restricted Units'!$S$7:$S$399=\"FHDP\")*('2. Assisted & Restricted Units'!$T$7:$T$399=\"35% SMI\"))","v":0},{"$f":"SUMPRODUCT(('2. Assisted & Restricted Units'!$E$7:$E$399=\"0\")*('2. Assisted & Restricted Units'!$S$7:$S$399=\"FMTW\")*('2. Assisted & Restricted Units'!$T$7:$T$399=\"35% SMI\"))","v":0},null,{"$f":"SUMPRODUCT(('2. Assisted & Restricted Units'!$E$7:$E$399=\"0\")*('2. Assisted & Restricted Units'!$S$7:$S$399=\"HOME\")*('2. Assisted & Restricted Units'!$T$7:$T$399=\"35% SMI\"))","v":0},{"$f":"SUMPRODUCT(('2. Assisted & Restricted Units'!$E$7:$E$399=\"0\")*('2. Assisted & Restricted Units'!$S$7:$S$399=\"Market Rate\")*('2. Assisted & Restricted Units'!$T$7:$T$399=\"35% SMI\"))","v":0},{"$f":"SUMPRODUCT(('2. Assisted & Restricted Units'!$E$7:$E$399=\"0\")*('2. Assisted & Restricted Units'!$S$7:$S$399=\"MHP\")*('2. Assisted & Restricted Units'!$T$7:$T$399=\"35% SMI\"))","v":0},{"$f":"SUMPRODUCT(('2. Assisted & Restricted Units'!$E$7:$E$399=\"0\")*('2. Assisted & Restricted Units'!$S$7:$S$399=\"NonAssisted\")*('2. Assisted & Restricted Units'!$T$7:$T$399=\"35% SMI\"))","v":0},{"$f":"SUMPRODUCT(('2. Assisted & Restricted Units'!$E$7:$E$399=\"0\")*('2. Assisted & Restricted Units'!$S$7:$S$399=\"Other Restr\")*('2. Assisted & Restricted Units'!$T$7:$T$399=\"35% SMI\"))","v":0},{"$f":"SUMPRODUCT(('2. Assisted & Restricted Units'!$E$7:$E$399=\"0\")*('2. Assisted & Restricted Units'!$S$7:$S$399=\"RHCP-B\")*('2. Assisted & Restricted Units'!$T$7:$T$399=\"35% SMI\"))","v":0},{"$f":"SUMPRODUCT(('2. Assisted & Restricted Units'!$E$7:$E$399=\"0\")*('2. Assisted & Restricted Units'!$S$7:$S$399=\"SERA\")*('2. Assisted & Restricted Units'!$T$7:$T$399=\"35% SMI\"))","v":0},{"$f":"SUMPRODUCT(('2. Assisted & Restricted Units'!$E$7:$E$399=\"0\")*('2. Assisted & Restricted Units'!$S$7:$S$399=\"SUHRP\")*('2. Assisted & Restricted Units'!$T$7:$T$399=\"35% SMI\"))","v":0},{"$f":"SUMPRODUCT(('2. Assisted & Restricted Units'!$E$7:$E$399=\"0\")*('2. Assisted & Restricted Units'!$S$7:$S$399=\"TOD\")*('2. Assisted & Restricted Units'!$T$7:$T$399=\"35% SMI\"))","v":0},{"$f":"SUMPRODUCT(('2. Assisted & Restricted Units'!$E$7:$E$399=\"0\")*('2. Assisted & Restricted Units'!$S$7:$S$399=\"707-E\")*('2. Assisted & Restricted Units'!$T$7:$T$399=\"35% SMI\"))","v":0},{"$f":"SUMPRODUCT(('2. Assisted & Restricted Units'!$E$7:$E$399=\"0\")*('2. Assisted & Restricted Units'!$S$7:$S$399=\"707-N\")*('2. Assisted & Restricted Units'!$T$7:$T$399=\"35% SMI\"))","v":0}]
["0 Bedroom 40% SMI",{"$f":"SUMPRODUCT(('2. Assisted & Restricted Units'!$E$7:$E$399=\"0\")*('2. Assisted & Restricted Units'!$S$7:$S$399=\"CALDAP\")*('2. Assisted & Restricted Units'!$T$7:$T$399=\"40% SMI\"))","v":0},{"$f":"SUMPRODUCT(('2. Assisted & Restricted Units'!$E$7:$E$399=\"0\")*('2. Assisted & Restricted Units'!$S$7:$S$399=\"CHRP-R\")*('2. Assisted & Restricted Units'!$T$7:$T$399=\"40% SMI\"))","v":0},{"$f":"SUMPRODUCT(('2. Assisted & Restricted Units'!$E$7:$E$399=\"0\")*('2. Assisted & Restricted Units'!$S$7:$S$399=\"DDS\")*('2. Assisted & Restricted Units'!$T$7:$T$399=\"40% SMI\"))","v":0},{"$f":"SUMPRODUCT(('2. Assisted & Restricted Units'!$E$7:$E$399=\"0\")*('2. Assisted & Restricted Units'!$S$7:$S$399=\"DPRLP\")*('2. Assisted & Restricted Units'!$T$7:$T$399=\"40% SMI\"))","v":0},{"$f":"SUMPRODUCT(('2. Assisted & Restricted Units'!$E$7:$E$399=\"0\")*('2. Assisted & Restricted Units'!$S$7:$S$399=\"FHDP\")*('2. Assisted & Restricted Units'!$T$7:$T$399=\"40% SMI\"))","v":0},{"$f":"SUMPRODUCT(('2. Assisted & Restricted Units'!$E$7:$E$399=\"0\")*('2. Assisted & Restricted Units'!$S$7:$S$399=\"FMTW\")*('2. Assisted & Restricted Units'!$T$7:$T$399=\"40% SMI\"))","v":0},null,{"$f":"SUMPRODUCT(('2. Assisted & Restricted Units'!$E$7:$E$399=\"0\")*('2. Assisted & Restricted Units'!$S$7:$S$399=\"HOME\")*('2. Assisted & Restricted Units'!$T$7:$T$399=\"40% SMI\"))","v":0},{"$f":"SUMPRODUCT(('2. Assisted & Restricted Units'!$E$7:$E$399=\"0\")*('2. Assisted & Restricted Units'!$S$7:$S$399=\"Market Rate\")*('2. Assisted & Restricted Units'!$T$7:$T$399=\"40% SMI\"))","v":0},{"$f":"SUMPRODUCT(('2. Assisted & Restricted Units'!$E$7:$E$399=\"0\")*('2. Assisted & Restricted Units'!$S$7:$S$399=\"MHP\")*('2. Assisted & Restricted Units'!$T$7:$T$399=\"40% SMI\"))","v":0},{"$f":"SUMPRODUCT(('2. Assisted & Restricted Units'!$E$7:$E$399=\"0\")*('2. Assisted & Restricted Units'!$S$7:$S$399=\"NonAssisted\")*('2. Assisted & Restricted Units'!$T$7:$T$399=\"40% SMI\"))","v":0},{"$f":"SUMPRODUCT(('2. Assisted & Restricted Units'!$E$7:$E$399=\"0\")*('2. Assisted & Restricted Units'!$S$7:$S$399=\"Other Restr\")*('2. Assisted & Restricted Units'!$T$7:$T$399=\"40% SMI\"))","v":0},{"$f":"SUMPRODUCT(('2. Assisted & Restricted Units'!$E$7:$E$399=\"0\")*('2. Assisted & Restricted Units'!$S$7:$S$399=\"RHCP-B\")*('2. Assisted & Restricted Units'!$T$7:$T$399=\"40% SMI\"))","v":0},{"$f":"SUMPRODUCT(('2. Assisted & Restricted Units'!$E$7:$E$399=\"0\")*('2. Assisted & Restricted Units'!$S$7:$S$399=\"SERA\")*('2. Assisted & Restricted Units'!$T$7:$T$399=\"40% SMI\"))","v":0},{"$f":"SUMPRODUCT(('2. Assisted & Restricted Units'!$E$7:$E$399=\"0\")*('2. Assisted & Restricted Units'!$S$7:$S$399=\"SUHRP\")*('2. Assisted & Restricted Units'!$T$7:$T$399=\"40% SMI\"))","v":0},{"$f":"SUMPRODUCT(('2. Assisted & Restricted Units'!$E$7:$E$399=\"0\")*('2. Assisted & Restricted Units'!$S$7:$S$399=\"TOD\")*('2. Assisted & Restricted Units'!$T$7:$T$399=\"40% SMI\"))","v":0},{"$f":"SUMPRODUCT(('2. Assisted & Restricted Units'!$E$7:$E$399=\"0\")*('2. Assisted & Restricted Units'!$S$7:$S$399=\"707-E\")*('2. Assisted & Restricted Units'!$T$7:$T$399=\"40% SMI\"))","v":0},{"$f":"SUMPRODUCT(('2. Assisted & Restricted Units'!$E$7:$E$399=\"0\")*('2. Assisted & Restricted Units'!$S$7:$S$399=\"707-N\")*('2. Assisted & Restricted Units'!$T$7:$T$399=\"40% SMI\"))","v":0}]
["0 Bedroom 45% SMI",{"$f":"SUMPRODUCT(('2. Assisted & Restricted Units'!$E$7:$E$399=\"0\")*('2. Assisted & Restricted Units'!$S$7:$S$399=\"CALDAP\")*('2. Assisted & Restricted Units'!$T$7:$T$399=\"45% SMI\"))","v":0},{"$f":"SUMPRODUCT(('2. Assisted & Restricted Units'!$E$7:$E$399=\"0\")*('2. Assisted & Restricted Units'!$S$7:$S$399=\"CHRP-R\")*('2. Assisted & Restricted Units'!$T$7:$T$399=\"45% SMI\"))","v":0},{"$f":"SUMPRODUCT(('2. Assisted & Restricted Units'!$E$7:$E$399=\"0\")*('2. Assisted & Restricted Units'!$S$7:$S$399=\"DDS\")*('2. Assisted & Restricted Units'!$T$7:$T$399=\"45% SMI\"))","v":0},{"$f":"SUMPRODUCT(('2. Assisted & Restricted Units'!$E$7:$E$399=\"0\")*('2. Assisted & Restricted Units'!$S$7:$S$399=\"DPRLP\")*('2. Assisted & Restricted Units'!$T$7:$T$399=\"45% SMI\"))","v":0},{"$f":"SUMPRODUCT(('2. Assisted & Restricted Units'!$E$7:$E$399=\"0\")*('2. Assisted & Restricted Units'!$S$7:$S$399=\"FHDP\")*('2. Assisted & Restricted Units'!$T$7:$T$399=\"45% SMI\"))","v":0},{"$f":"SUMPRODUCT(('2. Assisted & Restricted Units'!$E$7:$E$399=\"0\")*('2. Assisted & Restricted Units'!$S$7:$S$399=\"FMTW\")*('2. Assisted & Restricted Units'!$T$7:$T$399=\"45% SMI\"))","v":0},null,{"$f":"SUMPRODUCT(('2. Assisted & Restricted Units'!$E$7:$E$399=\"0\")*('2. Assisted & Restricted Units'!$S$7:$S$399=\"HOME\")*('2. Assisted & Restricted Units'!$T$7:$T$399=\"45% SMI\"))","v":0},{"$f":"SUMPRODUCT(('2. Assisted & Restricted Units'!$E$7:$E$399=\"0\")*('2. Assisted & Restricted Units'!$S$7:$S$399=\"Market Rate\")*('2. Assisted & Restricted Units'!$T$7:$T$399=\"45% SMI\"))","v":0},{"$f":"SUMPRODUCT(('2. Assisted & Restricted Units'!$E$7:$E$399=\"0\")*('2. Assisted & Restricted Units'!$S$7:$S$399=\"MHP\")*('2. Assisted & Restricted Units'!$T$7:$T$399=\"45% SMI\"))","v":0},{"$f":"SUMPRODUCT(('2. Assisted & Restricted Units'!$E$7:$E$399=\"0\")*('2. Assisted & Restricted Units'!$S$7:$S$399=\"NonAssisted\")*('2. Assisted & Restricted Units'!$T$7:$T$399=\"45% SMI\"))","v":0},{"$f":"SUMPRODUCT(('2. Assisted & Restricted Units'!$E$7:$E$399=\"0\")*('2. Assisted & Restricted Units'!$S$7:$S$399=\"Other Restr\")*('2. Assisted & Restricted Units'!$T$7:$T$399=\"45% SMI\"))","v":0},{"$f":"SUMPRODUCT(('2. Assisted & Restricted Units'!$E$7:$E$399=\"0\")*('2. Assisted & Restricted Units'!$S$7:$S$399=\"RHCP-B\")*('2. Assisted & Restricted Units'!$T$7:$T$399=\"45% SMI\"))","v":0},{"$f":"SUMPRODUCT(('2. Assisted & Restricted Units'!$E$7:$E$399=\"0\")*('2. Assisted & Restricted Units'!$S$7:$S$399=\"SERA\")*('2. Assisted & Restricted Units'!$T$7:$T$399=\"45% SMI\"))","v":0},{"$f":"SUMPRODUCT(('2. Assisted & Restricted Units'!$E$7:$E$399=\"0\")*('2. Assisted & Restricted Units'!$S$7:$S$399=\"SUHRP\")*('2. Assisted & Restricted Units'!$T$7:$T$399=\"45% SMI\"))","v":0},{"$f":"SUMPRODUCT(('2. Assisted & Restricted Units'!$E$7:$E$399=\"0\")*('2. Assisted & Restricted Units'!$S$7:$S$399=\"TOD\")*('2. Assisted & Restricted Units'!$T$7:$T$399=\"45% SMI\"))","v":0},{"$f":"SUMPRODUCT(('2. Assisted & Restricted Units'!$E$7:$E$399=\"0\")*('2. Assisted & Restricted Units'!$S$7:$S$399=\"707-E\")*('2. Assisted & Restricted Units'!$T$7:$T$399=\"45% SMI\"))","v":0},{"$f":"SUMPRODUCT(('2. Assisted & Restricted Units'!$E$7:$E$399=\"0\")*('2. Assisted & Restricted Units'!$S$7:$S$399=\"707-N\")*('2. Assisted & Restricted Units'!$T$7:$T$399=\"45% SMI\"))","v":0}]
["0 Bedroom 50% SMI",{"$f":"SUMPRODUCT(('2. Assisted & Restricted Units'!$E$7:$E$399=\"0\")*('2. Assisted & Restricted Units'!$S$7:$S$399=\"CALDAP\")*('2. Assisted & Restricted Units'!$T$7:$T$399=\"50% SMI\"))","v":0},{"$f":"SUMPRODUCT(('2. Assisted & Restricted Units'!$E$7:$E$399=\"0\")*('2. Assisted & Restricted Units'!$S$7:$S$399=\"CHRP-R\")*('2. Assisted & Restricted Units'!$T$7:$T$399=\"50% SMI\"))","v":0},{"$f":"SUMPRODUCT(('2. Assisted & Restricted Units'!$E$7:$E$399=\"0\")*('2. Assisted & Restricted Units'!$S$7:$S$399=\"DDS\")*('2. Assisted & Restricted Units'!$T$7:$T$399=\"50% SMI\"))","v":0},{"$f":"SUMPRODUCT(('2. Assisted & Restricted Units'!$E$7:$E$399=\"0\")*('2. Assisted & Restricted Units'!$S$7:$S$399=\"DPRLP\")*('2. Assisted & Restricted Units'!$T$7:$T$399=\"50% SMI\"))","v":0},{"$f":"SUMPRODUCT(('2. Assisted & Restricted Units'!$E$7:$E$399=\"0\")*('2. Assisted & Restricted Units'!$S$7:$S$399=\"FHDP\")*('2. Assisted & Restricted Units'!$T$7:$T$399=\"50% SMI\"))","v":0},{"$f":"SUMPRODUCT(('2. Assisted & Restricted Units'!$E$7:$E$399=\"0\")*('2. Assisted & Restricted Units'!$S$7:$S$399=\"FMTW\")*('2. Assisted & Restricted Units'!$T$7:$T$399=\"50% SMI\"))","v":0},null,{"$f":"SUMPRODUCT(('2. Assisted & Restricted Units'!$E$7:$E$399=\"0\")*('2. Assisted & Restricted Units'!$S$7:$S$399=\"HOME\")*('2. Assisted & Restricted Units'!$T$7:$T$399=\"50% SMI\"))","v":0},{"$f":"SUMPRODUCT(('2. Assisted & Restricted Units'!$E$7:$E$399=\"0\")*('2. Assisted & Restricted Units'!$S$7:$S$399=\"Market Rate\")*('2. Assisted & Restricted Units'!$T$7:$T$399=\"50% SMI\"))","v":0},{"$f":"SUMPRODUCT(('2. Assisted & Restricted Units'!$E$7:$E$399=\"0\")*('2. Assisted & Restricted Units'!$S$7:$S$399=\"MHP\")*('2. Assisted & Restricted Units'!$T$7:$T$399=\"50% SMI\"))","v":0},{"$f":"SUMPRODUCT(('2. Assisted & Restricted Units'!$E$7:$E$399=\"0\")*('2. Assisted & Restricted Units'!$S$7:$S$399=\"NonAssisted\")*('2. Assisted & Restricted Units'!$T$7:$T$399=\"50% SMI\"))","v":0},{"$f":"SUMPRODUCT(('2. Assisted & Restricted Units'!$E$7:$E$399=\"0\")*('2. Assisted & Restricted Units'!$S$7:$S$399=\"Other Restr\")*('2. Assisted & Restricted Units'!$T$7:$T$399=\"50% SMI\"))","v":0},{"$f":"SUMPRODUCT(('2. Assisted & Restricted Units'!$E$7:$E$399=\"0\")*('2. Assisted & Restricted Units'!$S$7:$S$399=\"RHCP-B\")*('2. Assisted & Restricted Units'!$T$7:$T$399=\"50% SMI\"))","v":0},{"$f":"SUMPRODUCT(('2. Assisted & Restricted Units'!$E$7:$E$399=\"0\")*('2. Assisted & Restricted Units'!$S$7:$S$399=\"SERA\")*('2. Assisted & Restricted Units'!$T$7:$T$399=\"50% SMI\"))","v":0},{"$f":"SUMPRODUCT(('2. Assisted & Restricted Units'!$E$7:$E$399=\"0\")*('2. Assisted & Restricted Units'!$S$7:$S$399=\"SUHRP\")*('2. Assisted & Restricted Units'!$T$7:$T$399=\"50% SMI\"))","v":0},{"$f":"SUMPRODUCT(('2. Assisted & Restricted Units'!$E$7:$E$399=\"0\")*('2. Assisted & Restricted Units'!$S$7:$S$399=\"TOD\")*('2. Assisted & Restricted Units'!$T$7:$T$399=\"50% SMI\"))","v":0},{"$f":"SUMPRODUCT(('2. Assisted & Restricted Units'!$E$7:$E$399=\"0\")*('2. Assisted & Restricted Units'!$S$7:$S$399=\"707-E\")*('2. Assisted & Restricted Units'!$T$7:$T$399=\"50% SMI\"))","v":0},{"$f":"SUMPRODUCT(('2. Assisted & Restricted Units'!$E$7:$E$399=\"0\")*('2. Assisted & Restricted Units'!$S$7:$S$399=\"707-N\")*('2. Assisted & Restricted Units'!$T$7:$T$399=\"50% SMI\"))","v":0}]
["0 Bedroom 100% SMI",{"$f":"SUMPRODUCT(('2. Assisted & Restricted Units'!$E$7:$E$399=\"0\")*('2. Assisted & Restricted Units'!$S$7:$S$399=\"CALDAP\")*('2. Assisted & Restricted Units'!$T$7:$T$399=\"100% SMI\"))","v":0},{"$f":"SUMPRODUCT(('2. Assisted & Restricted Units'!$E$7:$E$399=\"0\")*('2. Assisted & Restricted Units'!$S$7:$S$399=\"CHRP-R\")*('2. Assisted & Restricted Units'!$T$7:$T$399=\"100% SMI\"))","v":0},{"$f":"SUMPRODUCT(('2. Assisted & Restricted Units'!$E$7:$E$399=\"0\")*('2. Assisted & Restricted Units'!$S$7:$S$399=\"DDS\")*('2. Assisted & Restricted Units'!$T$7:$T$399=\"100% SMI\"))","v":0},{"$f":"SUMPRODUCT(('2. Assisted & Restricted Units'!$E$7:$E$399=\"0\")*('2. Assisted & Restricted Units'!$S$7:$S$399=\"DPRLP\")*('2. Assisted & Restricted Units'!$T$7:$T$399=\"100% SMI\"))","v":0},{"$f":"SUMPRODUCT(('2. Assisted & Restricted Units'!$E$7:$E$399=\"0\")*('2. Assisted & Restricted Units'!$S$7:$S$399=\"FHDP\")*('2. Assisted & Restricted Units'!$T$7:$T$399=\"100% SMI\"))","v":0},{"$f":"SUMPRODUCT(('2. Assisted & Restricted Units'!$E$7:$E$399=\"0\")*('2. Assisted & Restricted Units'!$S$7:$S$399=\"FMTW\")*('2. Assisted & Restricted Units'!$T$7:$T$399=\"100% SMI\"))","v":0},null,{"$f":"SUMPRODUCT(('2. Assisted & Restricted Units'!$E$7:$E$399=\"0\")*('2. Assisted & Restricted Units'!$S$7:$S$399=\"HOME\")*('2. Assisted & Restricted Units'!$T$7:$T$399=\"100% SMI\"))","v":0},{"$f":"SUMPRODUCT(('2. Assisted & Restricted Units'!$E$7:$E$399=\"0\")*('2. Assisted & Restricted Units'!$S$7:$S$399=\"Market Rate\")*('2. Assisted & Restricted Units'!$T$7:$T$399=\"100% SMI\"))","v":0},{"$f":"SUMPRODUCT(('2. Assisted & Restricted Units'!$E$7:$E$399=\"0\")*('2. Assisted & Restricted Units'!$S$7:$S$399=\"MHP\")*('2. Assisted & Restricted Units'!$T$7:$T$399=\"100% SMI\"))","v":0},{"$f":"SUMPRODUCT(('2. Assisted & Restricted Units'!$E$7:$E$399=\"0\")*('2. Assisted & Restricted Units'!$S$7:$S$399=\"NonAssisted\")*('2. Assisted & Restricted Units'!$T$7:$T$399=\"100% SMI\"))","v":0},{"$f":"SUMPRODUCT(('2. Assisted & Restricted Units'!$E$7:$E$399=\"0\")*('2. Assisted & Restricted Units'!$S$7:$S$399=\"Other Restr\")*('2. Assisted & Restricted Units'!$T$7:$T$399=\"100% SMI\"))","v":0},{"$f":"SUMPRODUCT(('2. Assisted & Restricted Units'!$E$7:$E$399=\"0\")*('2. Assisted & Restricted Units'!$S$7:$S$399=\"RHCP-B\")*('2. Assisted & Restricted Units'!$T$7:$T$399=\"100% SMI\"))","v":0},{"$f":"SUMPRODUCT(('2. Assisted & Restricted Units'!$E$7:$E$399=\"0\")*('2. Assisted & Restricted Units'!$S$7:$S$399=\"SERA\")*('2. Assisted & Restricted Units'!$T$7:$T$399=\"100% SMI\"))","v":0},{"$f":"SUMPRODUCT(('2. Assisted & Restricted Units'!$E$7:$E$399=\"0\")*('2. Assisted & Restricted Units'!$S$7:$S$399=\"SUHRP\")*('2. Assisted & Restricted Units'!$T$7:$T$399=\"100% SMI\"))","v":0},{"$f":"SUMPRODUCT(('2. Assisted & Restricted Units'!$E$7:$E$399=\"0\")*('2. Assisted & Restricted Units'!$S$7:$S$399=\"TOD\")*('2. Assisted & Restricted Units'!$T$7:$T$399=\"100% SMI\"))","v":0},{"$f":"SUMPRODUCT(('2. Assisted & Restricted Units'!$E$7:$E$399=\"0\")*('2. Assisted & Restricted Units'!$S$7:$S$399=\"707-E\")*('2. Assisted & Restricted Units'!$T$7:$T$399=\"100% SMI\"))","v":0},{"$f":"SUMPRODUCT(('2. Assisted & Restricted Units'!$E$7:$E$399=\"0\")*('2. Assisted & Restricted Units'!$S$7:$S$399=\"707-N\")*('2. Assisted & Restricted Units'!$T$7:$T$399=\"100% SMI\"))","v":0}]
["0 Bedroom VLI HOME",{"$f":"SUMPRODUCT(('2. Assisted & Restricted Units'!$E$7:$E$399=\"0\")*('2. Assisted & Restricted Units'!$S$7:$S$399=\"CALDAP\")*('2. Assisted & Restricted Units'!$T$7:$T$399=\"VLI HOME\"))","v":0},{"$f":"SUMPRODUCT(('2. Assisted & Restricted Units'!$E$7:$E$399=\"0\")*('2. Assisted & Restricted Units'!$S$7:$S$399=\"CHRP-R\")*('2. Assisted & Restricted Units'!$T$7:$T$399=\"VLI HOME\"))","v":0},{"$f":"SUMPRODUCT(('2. Assisted & Restricted Units'!$E$7:$E$399=\"0\")*('2. Assisted & Restricted Units'!$S$7:$S$399=\"DDS\")*('2. Assisted & Restricted Units'!$T$7:$T$399=\"VLI HOME\"))","v":0},{"$f":"SUMPRODUCT(('2. Assisted & Restricted Units'!$E$7:$E$399=\"0\")*('2. Assisted & Restricted Units'!$S$7:$S$399=\"DPRLP\")*('2. Assisted & Restricted Units'!$T$7:$T$399=\"VLI HOME\"))","v":0},{"$f":"SUMPRODUCT(('2. Assisted & Restricted Units'!$E$7:$E$399=\"0\")*('2. Assisted & Restricted Units'!$S$7:$S$399=\"FHDP\")*('2. Assisted & Restricted Units'!$T$7:$T$399=\"VLI HOME\"))","v":0},{"$f":"SUMPRODUCT(('2. Assisted & Restricted Units'!$E$7:$E$399=\"0\")*('2. Assisted & Restricted Units'!$S$7:$S$399=\"FMTW\")*('2. Assisted & Restricted Units'!$T$7:$T$399=\"VLI HOME\"))","v":0},null,{"$f":"SUMPRODUCT(('2. Assisted & Restricted Units'!$E$7:$E$399=\"0\")*('2. Assisted & Restricted Units'!$S$7:$S$399=\"HOME\")*('2. Assisted & Restricted Units'!$T$7:$T$399=\"VLI HOME\"))","v":0},{"$f":"SUMPRODUCT(('2. Assisted & Restricted Units'!$E$7:$E$399=\"0\")*('2. Assisted & Restricted Units'!$S$7:$S$399=\"Market Rate\")*('2. Assisted & Restricted Units'!$T$7:$T$399=\"VLI HOME\"))","v":0},{"$f":"SUMPRODUCT(('2. Assisted & Restricted Units'!$E$7:$E$399=\"0\")*('2. Assisted & Restricted Units'!$S$7:$S$399=\"MHP\")*('2. Assisted & Restricted Units'!$T$7:$T$399=\"VLI HOME\"))","v":0},{"$f":"SUMPRODUCT(('2. Assisted & Restricted Units'!$E$7:$E$399=\"0\")*('2. Assisted & Restricted Units'!$S$7:$S$399=\"NonAssisted\")*('2. Assisted & Restricted Units'!$T$7:$T$399=\"VLI HOME\"))","v":0},{"$f":"SUMPRODUCT(('2. Assisted & Restricted Units'!$E$7:$E$399=\"0\")*('2. Assisted & Restricted Units'!$S$7:$S$399=\"Other Restr\")*('2. Assisted & Restricted Units'!$T$7:$T$399=\"VLI HOME\"))","v":0},{"$f":"SUMPRODUCT(('2. Assisted & Restricted Units'!$E$7:$E$399=\"0\")*('2. Assisted & Restricted Units'!$S$7:$S$399=\"RHCP-B\")*('2. Assisted & Restricted Units'!$T$7:$T$399=\"VLI HOME\"))","v":0},{"$f":"SUMPRODUCT(('2. Assisted & Restricted Units'!$E$7:$E$399=\"0\")*('2. Assisted & Restricted Units'!$S$7:$S$399=\"SERA\")*('2. Assisted & Restricted Units'!$T$7:$T$399=\"VLI HOME\"))","v":0},{"$f":"SUMPRODUCT(('2. Assisted & Restricted Units'!$E$7:$E$399=\"0\")*('2. Assisted & Restricted Units'!$S$7:$S$399=\"SUHRP\")*('2. Assisted & Restricted Units'!$T$7:$T$399=\"VLI HOME\"))","v":0},{"$f":"SUMPRODUCT(('2. Assisted & Restricted Units'!$E$7:$E$399=\"0\")*('2. Assisted & Restricted Units'!$S$7:$S$399=\"TOD\")*('2. Assisted & Restricted Units'!$T$7:$T$399=\"VLI HOME\"))","v":0},{"$f":"SUMPRODUCT(('2. Assisted & Restricted Units'!$E$7:$E$399=\"0\")*('2. Assisted & Restricted Units'!$S$7:$S$399=\"707-E\")*('2. Assisted & Restricted Units'!$T$7:$T$399=\"VLI HOME\"))","v":0},{"$f":"SUMPRODUCT(('2. Assisted & Restricted Units'!$E$7:$E$399=\"0\")*('2. Assisted & Restricted Units'!$S$7:$S$399=\"707-N\")*('2. Assisted & Restricted Units'!$T$7:$T$399=\"VLI HOME\"))","v":0}]
["0 Bedroom LI HOME",{"$f":"SUMPRODUCT(('2. Assisted & Restricted Units'!$E$7:$E$399=\"0\")*('2. Assisted & Restricted Units'!$S$7:$S$399=\"CALDAP\")*('2. Assisted & Restricted Units'!$T$7:$T$399=\"LI HOME\"))","v":0},{"$f":"SUMPRODUCT(('2. Assisted & Restricted Units'!$E$7:$E$399=\"0\")*('2. Assisted & Restricted Units'!$S$7:$S$399=\"CHRP-R\")*('2. Assisted & Restricted Units'!$T$7:$T$399=\"LI HOME\"))","v":0},{"$f":"SUMPRODUCT(('2. Assisted & Restricted Units'!$E$7:$E$399=\"0\")*('2. Assisted & Restricted Units'!$S$7:$S$399=\"DDS\")*('2. Assisted & Restricted Units'!$T$7:$T$399=\"LI HOME\"))","v":0},{"$f":"SUMPRODUCT(('2. Assisted & Restricted Units'!$E$7:$E$399=\"0\")*('2. Assisted & Restricted Units'!$S$7:$S$399=\"DPRLP\")*('2. Assisted & Restricted Units'!$T$7:$T$399=\"LI HOME\"))","v":0},{"$f":"SUMPRODUCT(('2. Assisted & Restricted Units'!$E$7:$E$399=\"0\")*('2. Assisted & Restricted Units'!$S$7:$S$399=\"FHDP\")*('2. Assisted & Restricted Units'!$T$7:$T$399=\"LI HOME\"))","v":0},{"$f":"SUMPRODUCT(('2. Assisted & Restricted Units'!$E$7:$E$399=\"0\")*('2. Assisted & Restricted Units'!$S$7:$S$399=\"FMTW\")*('2. Assisted & Restricted Units'!$T$7:$T$399=\"LI HOME\"))","v":0},null,{"$f":"SUMPRODUCT(('2. Assisted & Restricted Units'!$E$7:$E$399=\"0\")*('2. Assisted & Restricted Units'!$S$7:$S$399=\"HOME\")*('2. Assisted & Restricted Units'!$T$7:$T$399=\"LI HOME\"))","v":0},{"$f":"SUMPRODUCT(('2. Assisted & Restricted Units'!$E$7:$E$399=\"0\")*('2. Assisted & Restricted Units'!$S$7:$S$399=\"Market Rate\")*('2. Assisted & Restricted Units'!$T$7:$T$399=\"LI HOME\"))","v":0},{"$f":"SUMPRODUCT(('2. Assisted & Restricted Units'!$E$7:$E$399=\"0\")*('2. Assisted & Restricted Units'!$S$7:$S$399=\"MHP\")*('2. Assisted & Restricted Units'!$T$7:$T$399=\"LI HOME\"))","v":0},{"$f":"SUMPRODUCT(('2. Assisted & Restricted Units'!$E$7:$E$399=\"0\")*('2. Assisted & Restricted Units'!$S$7:$S$399=\"NonAssisted\")*('2. Assisted & Restricted Units'!$T$7:$T$399=\"LI HOME\"))","v":0},{"$f":"SUMPRODUCT(('2. Assisted & Restricted Units'!$E$7:$E$399=\"0\")*('2. Assisted & Restricted Units'!$S$7:$S$399=\"Other Restr\")*('2. Assisted & Restricted Units'!$T$7:$T$399=\"LI HOME\"))","v":0},{"$f":"SUMPRODUCT(('2. Assisted & Restricted Units'!$E$7:$E$399=\"0\")*('2. Assisted & Restricted Units'!$S$7:$S$399=\"RHCP-B\")*('2. Assisted & Restricted Units'!$T$7:$T$399=\"LI HOME\"))","v":0},{"$f":"SUMPRODUCT(('2. Assisted & Restricted Units'!$E$7:$E$399=\"0\")*('2. Assisted & Restricted Units'!$S$7:$S$399=\"SERA\")*('2. Assisted & Restricted Units'!$T$7:$T$399=\"LI HOME\"))","v":0},{"$f":"SUMPRODUCT(('2. Assisted & Restricted Units'!$E$7:$E$399=\"0\")*('2. Assisted & Restricted Units'!$S$7:$S$399=\"SUHRP\")*('2. Assisted & Restricted Units'!$T$7:$T$399=\"LI HOME\"))","v":0},{"$f":"SUMPRODUCT(('2. Assisted & Restricted Units'!$E$7:$E$399=\"0\")*('2. Assisted & Restricted Units'!$S$7:$S$399=\"TOD\")*('2. Assisted & Restricted Units'!$T$7:$T$399=\"LI HOME\"))","v":0},{"$f":"SUMPRODUCT(('2. Assisted & Restricted Units'!$E$7:$E$399=\"0\")*('2. Assisted & Restricted Units'!$S$7:$S$399=\"707-E\")*('2. Assisted & Restricted Units'!$T$7:$T$399=\"LI HOME\"))","v":0},{"$f":"SUMPRODUCT(('2. Assisted & Restricted Units'!$E$7:$E$399=\"0\")*('2. Assisted & Restricted Units'!$S$7:$S$399=\"707-N\")*('2. Assisted & Restricted Units'!$T$7:$T$399=\"LI HOME\"))","v":0}]
["0 Bedroom VLI State",{"$f":"SUMPRODUCT(('2. Assisted & Restricted Units'!$E$7:$E$399=\"0\")*('2. Assisted & Restricted Units'!$S$7:$S$399=\"CALDAP\")*('2. Assisted & Restricted Units'!$T$7:$T$399=\"VLI State\"))","v":0},{"$f":"SUMPRODUCT(('2. Assisted & Restricted Units'!$E$7:$E$399=\"0\")*('2. Assisted & Restricted Units'!$S$7:$S$399=\"CHRP-R\")*('2. Assisted & Restricted Units'!$T$7:$T$399=\"VLI State\"))","v":0},{"$f":"SUMPRODUCT(('2. Assisted & Restricted Units'!$E$7:$E$399=\"0\")*('2. Assisted & Restricted Units'!$S$7:$S$399=\"DDS\")*('2. Assisted & Restricted Units'!$T$7:$T$399=\"VLI State\"))","v":0},{"$f":"SUMPRODUCT(('2. Assisted & Restricted Units'!$E$7:$E$399=\"0\")*('2. Assisted & Restricted Units'!$S$7:$S$399=\"DPRLP\")*('2. Assisted & Restricted Units'!$T$7:$T$399=\"VLI State\"))","v":0},{"$f":"SUMPRODUCT(('2. Assisted & Restricted Units'!$E$7:$E$399=\"0\")*('2. Assisted & Restricted Units'!$S$7:$S$399=\"FHDP\")*('2. Assisted & Restricted Units'!$T$7:$T$399=\"VLI State\"))","v":0},{"$f":"SUMPRODUCT(('2. Assisted & Restricted Units'!$E$7:$E$399=\"0\")*('2. Assisted & Restricted Units'!$S$7:$S$399=\"FMTW\")*('2. Assisted & Restricted Units'!$T$7:$T$399=\"VLI State\"))","v":0},null,{"$f":"SUMPRODUCT(('2. Assisted & Restricted Units'!$E$7:$E$399=\"0\")*('2. Assisted & Restricted Units'!$S$7:$S$399=\"HOME\")*('2. Assisted & Restricted Units'!$T$7:$T$399=\"VLI State\"))","v":0},{"$f":"SUMPRODUCT(('2. Assisted & Restricted Units'!$E$7:$E$399=\"0\")*('2. Assisted & Restricted Units'!$S$7:$S$399=\"Market Rate\")*('2. Assisted & Restricted Units'!$T$7:$T$399=\"VLI State\"))","v":0},{"$f":"SUMPRODUCT(('2. Assisted & Restricted Units'!$E$7:$E$399=\"0\")*('2. Assisted & Restricted Units'!$S$7:$S$399=\"MHP\")*('2. Assisted & Restricted Units'!$T$7:$T$399=\"VLI State\"))","v":0},{"$f":"SUMPRODUCT(('2. Assisted & Restricted Units'!$E$7:$E$399=\"0\")*('2. Assisted & Restricted Units'!$S$7:$S$399=\"NonAssisted\")*('2. Assisted & Restricted Units'!$T$7:$T$399=\"VLI State\"))","v":0},{"$f":"SUMPRODUCT(('2. Assisted & Restricted Units'!$E$7:$E$399=\"0\")*('2. Assisted & Restricted Units'!$S$7:$S$399=\"Other Restr\")*('2. Assisted & Restricted Units'!$T$7:$T$399=\"VLI State\"))","v":0},{"$f":"SUMPRODUCT(('2. Assisted & Restricted Units'!$E$7:$E$399=\"0\")*('2. Assisted & Restricted Units'!$S$7:$S$399=\"RHCP-B\")*('2. Assisted & Restricted Units'!$T$7:$T$399=\"VLI State\"))","v":0},{"$f":"SUMPRODUCT(('2. Assisted & Restricted Units'!$E$7:$E$399=\"0\")*('2. Assisted & Restricted Units'!$S$7:$S$399=\"SERA\")*('2. Assisted & Restricted Units'!$T$7:$T$399=\"VLI State\"))","v":0},{"$f":"SUMPRODUCT(('2. Assisted & Restricted Units'!$E$7:$E$399=\"0\")*('2. Assisted & Restricted Units'!$S$7:$S$399=\"SUHRP\")*('2. Assisted & Restricted Units'!$T$7:$T$399=\"VLI State\"))","v":0},{"$f":"SUMPRODUCT(('2. Assisted & Restricted Units'!$E$7:$E$399=\"0\")*('2. Assisted & Restricted Units'!$S$7:$S$399=\"TOD\")*('2. Assisted & Restricted Units'!$T$7:$T$399=\"VLI State\"))","v":0},{"$f":"SUMPRODUCT(('2. Assisted & Restricted Units'!$E$7:$E$399=\"0\")*('2. Assisted & Restricted Units'!$S$7:$S$399=\"707-E\")*('2. Assisted & Restricted Units'!$T$7:$T$399=\"VLI State\"))","v":0},{"$f":"SUMPRODUCT(('2. Assisted & Restricted Units'!$E$7:$E$399=\"0\")*('2. Assisted & Restricted Units'!$S$7:$S$399=\"707-N\")*('2. Assisted & Restricted Units'!$T$7:$T$399=\"VLI State\"))","v":0}]
["0 Bedroom LI State",{"$f":"SUMPRODUCT(('2. Assisted & Restricted Units'!$E$7:$E$399=\"0\")*('2. Assisted & Restricted Units'!$S$7:$S$399=\"CALDAP\")*('2. Assisted & Restricted Units'!$T$7:$T$399=\"LI State\"))","v":0},{"$f":"SUMPRODUCT(('2. Assisted & Restricted Units'!$E$7:$E$399=\"0\")*('2. Assisted & Restricted Units'!$S$7:$S$399=\"CHRP-R\")*('2. Assisted & Restricted Units'!$T$7:$T$399=\"LI State\"))","v":0},{"$f":"SUMPRODUCT(('2. Assisted & Restricted Units'!$E$7:$E$399=\"0\")*('2. Assisted & Restricted Units'!$S$7:$S$399=\"DDS\")*('2. Assisted & Restricted Units'!$T$7:$T$399=\"LI State\"))","v":0},{"$f":"SUMPRODUCT(('2. Assisted & Restricted Units'!$E$7:$E$399=\"0\")*('2. Assisted & Restricted Units'!$S$7:$S$399=\"DPRLP\")*('2. Assisted & Restricted Units'!$T$7:$T$399=\"LI State\"))","v":0},{"$f":"SUMPRODUCT(('2. Assisted & Restricted Units'!$E$7:$E$399=\"0\")*('2. Assisted & Restricted Units'!$S$7:$S$399=\"FHDP\")*('2. Assisted & Restricted Units'!$T$7:$T$399=\"LI State\"))","v":0},{"$f":"SUMPRODUCT(('2. Assisted & Restricted Units'!$E$7:$E$399=\"0\")*('2. Assisted & Restricted Units'!$S$7:$S$399=\"FMTW\")*('2. Assisted & Restricted Units'!$T$7:$T$399=\"LI State\"))","v":0},null,{"$f":"SUMPRODUCT(('2. Assisted & Restricted Units'!$E$7:$E$399=\"0\")*('2. Assisted & Restricted Units'!$S$7:$S$399=\"HOME\")*('2. Assisted & Restricted Units'!$T$7:$T$399=\"LI State\"))","v":0},{"$f":"SUMPRODUCT(('2. Assisted & Restricted Units'!$E$7:$E$399=\"0\")*('2. Assisted & Restricted Units'!$S$7:$S$399=\"Market Rate\")*('2. Assisted & Restricted Units'!$T$7:$T$399=\"LI State\"))","v":0},{"$f":"SUMPRODUCT(('2. Assisted & Restricted Units'!$E$7:$E$399=\"0\")*('2. Assisted & Restricted Units'!$S$7:$S$399=\"MHP\")*('2. Assisted & Restricted Units'!$T$7:$T$399=\"LI State\"))","v":0},{"$f":"SUMPRODUCT(('2. Assisted & Restricted Units'!$E$7:$E$399=\"0\")*('2. Assisted & Restricted Units'!$S$7:$S$399=\"NonAssisted\")*('2. Assisted & Restricted Units'!$T$7:$T$399=\"LI State\"))","v":0},{"$f":"SUMPRODUCT(('2. Assisted & Restricted Units'!$E$7:$E$399=\"0\")*('2. Assisted & Restricted Units'!$S$7:$S$399=\"Other Restr\")*('2. Assisted & Restricted Units'!$T$7:$T$399=\"LI State\"))","v":0},{"$f":"SUMPRODUCT(('2. Assisted & Restricted Units'!$E$7:$E$399=\"0\")*('2. Assisted & Restricted Units'!$S$7:$S$399=\"RHCP-B\")*('2. Assisted & Restricted Units'!$T$7:$T$399=\"LI State\"))","v":0},{"$f":"SUMPRODUCT(('2. Assisted & Restricted Units'!$E$7:$E$399=\"0\")*('2. Assisted & Restricted Units'!$S$7:$S$399=\"SERA\")*('2. Assisted & Restricted Units'!$T$7:$T$399=\"LI State\"))","v":0},{"$f":"SUMPRODUCT(('2. Assisted & Restricted Units'!$E$7:$E$399=\"0\")*('2. Assisted & Restricted Units'!$S$7:$S$399=\"SUHRP\")*('2. Assisted & Restricted Units'!$T$7:$T$399=\"LI State\"))","v":0},{"$f":"SUMPRODUCT(('2. Assisted & Restricted Units'!$E$7:$E$399=\"0\")*('2. Assisted & Restricted Units'!$S$7:$S$399=\"TOD\")*('2. Assisted & Restricted Units'!$T$7:$T$399=\"LI State\"))","v":0},{"$f":"SUMPRODUCT(('2. Assisted & Restricted Units'!$E$7:$E$399=\"0\")*('2. Assisted & Restricted Units'!$S$7:$S$399=\"707-E\")*('2. Assisted & Restricted Units'!$T$7:$T$399=\"LI State\"))","v":0},{"$f":"SUMPRODUCT(('2. Assisted & Restricted Units'!$E$7:$E$399=\"0\")*('2. Assisted & Restricted Units'!$S$7:$S$399=\"707-N\")*('2. Assisted & Restricted Units'!$T$7:$T$399=\"LI State\"))","v":0}]
["0 Bedroom CalHFA",{"$f":"SUMPRODUCT(('2. Assisted & Restricted Units'!$E$7:$E$399=\"0\")*('2. Assisted & Restricted Units'!$S$7:$S$399=\"CALDAP\")*('2. Assisted & Restricted Units'!$T$7:$T$399=\"CalHFA\"))","v":0},{"$f":"SUMPRODUCT(('2. Assisted & Restricted Units'!$E$7:$E$399=\"0\")*('2. Assisted & Restricted Units'!$S$7:$S$399=\"CHRP-R\")*('2. Assisted & Restricted Units'!$T$7:$T$399=\"CalHFA\"))","v":0},{"$f":"SUMPRODUCT(('2. Assisted & Restricted Units'!$E$7:$E$399=\"0\")*('2. Assisted & Restricted Units'!$S$7:$S$399=\"DDS\")*('2. Assisted & Restricted Units'!$T$7:$T$399=\"CalHFA\"))","v":0},{"$f":"SUMPRODUCT(('2. Assisted & Restricted Units'!$E$7:$E$399=\"0\")*('2. Assisted & Restricted Units'!$S$7:$S$399=\"DPRLP\")*('2. Assisted & Restricted Units'!$T$7:$T$399=\"CalHFA\"))","v":0},{"$f":"SUMPRODUCT(('2. Assisted & Restricted Units'!$E$7:$E$399=\"0\")*('2. Assisted & Restricted Units'!$S$7:$S$399=\"FHDP\")*('2. Assisted & Restricted Units'!$T$7:$T$399=\"CalHFA\"))","v":0},{"$f":"SUMPRODUCT(('2. Assisted & Restricted Units'!$E$7:$E$399=\"0\")*('2. Assisted & Restricted Units'!$S$7:$S$399=\"FMTW\")*('2. Assisted & Restricted Units'!$T$7:$T$399=\"CalHFA\"))","v":0},null,{"$f":"SUMPRODUCT(('2. Assisted & Restricted Units'!$E$7:$E$399=\"0\")*('2. Assisted & Restricted Units'!$S$7:$S$399=\"HOME\")*('2. Assisted & Restricted Units'!$T$7:$T$399=\"CalHFA\"))","v":0},{"$f":"SUMPRODUCT(('2. Assisted & Restricted Units'!$E$7:$E$399=\"0\")*('2. Assisted & Restricted Units'!$S$7:$S$399=\"Market Rate\")*('2. Assisted & Restricted Units'!$T$7:$T$399=\"CalHFA\"))","v":0},{"$f":"SUMPRODUCT(('2. Assisted & Restricted Units'!$E$7:$E$399=\"0\")*('2. Assisted & Restricted Units'!$S$7:$S$399=\"MHP\")*('2. Assisted & Restricted Units'!$T$7:$T$399=\"CalHFA\"))","v":0},{"$f":"SUMPRODUCT(('2. Assisted & Restricted Units'!$E$7:$E$399=\"0\")*('2. Assisted & Restricted Units'!$S$7:$S$399=\"NonAssisted\")*('2. Assisted & Restricted Units'!$T$7:$T$399=\"CalHFA\"))","v":0},{"$f":"SUMPRODUCT(('2. Assisted & Restricted Units'!$E$7:$E$399=\"0\")*('2. Assisted & Restricted Units'!$S$7:$S$399=\"Other Restr\")*('2. Assisted & Restricted Units'!$T$7:$T$399=\"CalHFA\"))","v":0},{"$f":"SUMPRODUCT(('2. Assisted & Restricted Units'!$E$7:$E$399=\"0\")*('2. Assisted & Restricted Units'!$S$7:$S$399=\"RHCP-B\")*('2. Assisted & Restricted Units'!$T$7:$T$399=\"CalHFA\"))","v":0},{"$f":"SUMPRODUCT(('2. Assisted & Restricted Units'!$E$7:$E$399=\"0\")*('2. Assisted & Restricted Units'!$S$7:$S$399=\"SERA\")*('2. Assisted & Restricted Units'!$T$7:$T$399=\"CalHFA\"))","v":0},{"$f":"SUMPRODUCT(('2. Assisted & Restricted Units'!$E$7:$E$399=\"0\")*('2. Assisted & Restricted Units'!$S$7:$S$399=\"SUHRP\")*('2. Assisted & Restricted Units'!$T$7:$T$399=\"CalHFA\"))","v":0},{"$f":"SUMPRODUCT(('2. Assisted & Restricted Units'!$E$7:$E$399=\"0\")*('2. Assisted & Restricted Units'!$S$7:$S$399=\"TOD\")*('2. Assisted & Restricted Units'!$T$7:$T$399=\"CalHFA\"))","v":0},{"$f":"SUMPRODUCT(('2. Assisted & Restricted Units'!$E$7:$E$399=\"0\")*('2. Assisted & Restricted Units'!$S$7:$S$399=\"707-E\")*('2. Assisted & Restricted Units'!$T$7:$T$399=\"CalHFA\"))","v":0},{"$f":"SUMPRODUCT(('2. Assisted & Restricted Units'!$E$7:$E$399=\"0\")*('2. Assisted & Restricted Units'!$S$7:$S$399=\"707-N\")*('2. Assisted & Restricted Units'!$T$7:$T$399=\"CalHFA\"))","v":0}]
["0 Bedroom Sec 8",{"$f":"SUMPRODUCT(('2. Assisted & Restricted Units'!$E$7:$E$399=\"0\")*('2. Assisted & Restricted Units'!$S$7:$S$399=\"CALDAP\")*('2. Assisted & Restricted Units'!$T$7:$T$399=\"Sec 8\"))","v":0},{"$f":"SUMPRODUCT(('2. Assisted & Restricted Units'!$E$7:$E$399=\"0\")*('2. Assisted & Restricted Units'!$S$7:$S$399=\"CHRP-R\")*('2. Assisted & Restricted Units'!$T$7:$T$399=\"Sec 8\"))","v":0},{"$f":"SUMPRODUCT(('2. Assisted & Restricted Units'!$E$7:$E$399=\"0\")*('2. Assisted & Restricted Units'!$S$7:$S$399=\"DDS\")*('2. Assisted & Restricted Units'!$T$7:$T$399=\"Sec 8\"))","v":0},{"$f":"SUMPRODUCT(('2. Assisted & Restricted Units'!$E$7:$E$399=\"0\")*('2. Assisted & Restricted Units'!$S$7:$S$399=\"DPRLP\")*('2. Assisted & Restricted Units'!$T$7:$T$399=\"Sec 8\"))","v":0},{"$f":"SUMPRODUCT(('2. Assisted & Restricted Units'!$E$7:$E$399=\"0\")*('2. Assisted & Restricted Units'!$S$7:$S$399=\"FHDP\")*('2. Assisted & Restricted Units'!$T$7:$T$399=\"Sec 8\"))","v":0},{"$f":"SUMPRODUCT(('2. Assisted & Restricted Units'!$E$7:$E$399=\"0\")*('2. Assisted & Restricted Units'!$S$7:$S$399=\"FMTW\")*('2. Assisted & Restricted Units'!$T$7:$T$399=\"Sec 8\"))","v":0},null,{"$f":"SUMPRODUCT(('2. Assisted & Restricted Units'!$E$7:$E$399=\"0\")*('2. Assisted & Restricted Units'!$S$7:$S$399=\"HOME\")*('2. Assisted & Restricted Units'!$T$7:$T$399=\"Sec 8\"))","v":0},{"$f":"SUMPRODUCT(('2. Assisted & Restricted Units'!$E$7:$E$399=\"0\")*('2. Assisted & Restricted Units'!$S$7:$S$399=\"Market Rate\")*('2. Assisted & Restricted Units'!$T$7:$T$399=\"Sec 8\"))","v":0},{"$f":"SUMPRODUCT(('2. Assisted & Restricted Units'!$E$7:$E$399=\"0\")*('2. Assisted & Restricted Units'!$S$7:$S$399=\"MHP\")*('2. Assisted & Restricted Units'!$T$7:$T$399=\"Sec 8\"))","v":0},{"$f":"SUMPRODUCT(('2. Assisted & Restricted Units'!$E$7:$E$399=\"0\")*('2. Assisted & Restricted Units'!$S$7:$S$399=\"NonAssisted\")*('2. Assisted & Restricted Units'!$T$7:$T$399=\"Sec 8\"))","v":0},{"$f":"SUMPRODUCT(('2. Assisted & Restricted Units'!$E$7:$E$399=\"0\")*('2. Assisted & Restricted Units'!$S$7:$S$399=\"Other Restr\")*('2. Assisted & Restricted Units'!$T$7:$T$399=\"Sec 8\"))","v":0},{"$f":"SUMPRODUCT(('2. Assisted & Restricted Units'!$E$7:$E$399=\"0\")*('2. Assisted & Restricted Units'!$S$7:$S$399=\"RHCP-B\")*('2. Assisted & Restricted Units'!$T$7:$T$399=\"Sec 8\"))","v":0},{"$f":"SUMPRODUCT(('2. Assisted & Restricted Units'!$E$7:$E$399=\"0\")*('2. Assisted & Restricted Units'!$S$7:$S$399=\"SERA\")*('2. Assisted & Restricted Units'!$T$7:$T$399=\"Sec 8\"))","v":0},{"$f":"SUMPRODUCT(('2. Assisted & Restricted Units'!$E$7:$E$399=\"0\")*('2. Assisted & Restricted Units'!$S$7:$S$399=\"SUHRP\")*('2. Assisted & Restricted Units'!$T$7:$T$399=\"Sec 8\"))","v":0},{"$f":"SUMPRODUCT(('2. Assisted & Restricted Units'!$E$7:$E$399=\"0\")*('2. Assisted & Restricted Units'!$S$7:$S$399=\"TOD\")*('2. Assisted & Restricted Units'!$T$7:$T$399=\"Sec 8\"))","v":0},{"$f":"SUMPRODUCT(('2. Assisted & Restricted Units'!$E$7:$E$399=\"0\")*('2. Assisted & Restricted Units'!$S$7:$S$399=\"707-E\")*('2. Assisted & Restricted Units'!$T$7:$T$399=\"Sec 8\"))","v":0},{"$f":"SUMPRODUCT(('2. Assisted & Restricted Units'!$E$7:$E$399=\"0\")*('2. Assisted & Restricted Units'!$S$7:$S$399=\"707-N\")*('2. Assisted & Restricted Units'!$T$7:$T$399=\"Sec 8\"))","v":0}]
["Total 0",{"$f":"SUM(B28:B52)","v":0},{"$f":"SUM(C28:C52)","v":0},{"$f":"SUM(D28:D52)","v":0},{"$f":"SUM(E28:E52)","v":0},{"$f":"SUM(F28:F52)","v":0},0,{"$f":"SUMPRODUCT(('2. Assisted & Restricted Units'!$E$7:$E$399=\"0\")*('2. Assisted & Restricted Units'!$S$7:$S$399=\"FWHG\"))","v":0},0,0,0,0,0,0,0,0,0,0,0,{"$f":"SUMPRODUCT(('2. Assisted & Restricted Units'!$E$7:$E$399=\"0\")*('2. Assisted & Restricted Units'!$L$7:$L$399=\"X\"))","v":0},{"$f":"SUMPRODUCT(('2. Assisted & Restricted Units'!$E$7:$E$399=\"0\")*('2. Assisted & Restricted Units'!#REF!=\"X\"))","v":{"$error":"#REF!"}},{"$f":"SUMPRODUCT(('2. Assisted & Restricted Units'!$E$7:$E$399=\"0\")*('2. Assisted & Restricted Units'!#REF!=\"X\"))","v":{"$error":"#REF!"}},{"$f":"SUMPRODUCT(('2. Assisted & Restricted Units'!$E$7:$E$399=\"0\")*('2. Assisted & Restricted Units'!#REF!=\"X\"))","v":{"$error":"#REF!"}},{"$f":"SUMPRODUCT(('2. Assisted & Restricted Units'!$E$7:$E$399=\"0\")*('2. Assisted & Restricted Units'!#REF!=\"X\"))","v":{"$error":"#REF!"}},{"$f":"SUMPRODUCT(('2. Assisted & Restricted Units'!$E$7:$E$399=\"0\")*('2. Assisted & Restricted Units'!#REF!=\"X\"))","v":{"$error":"#REF!"}},{"$f":"SUMPRODUCT(('2. Assisted & Restricted Units'!$E$7:$E$399=\"0\")*('2. Assisted & Restricted Units'!#REF!=\"X\"))","v":{"$error":"#REF!"}},{"$f":"SUMPRODUCT(('2. Assisted & Restricted Units'!$E$7:$E$399=\"0\")*('2. Assisted & Restricted Units'!$M$7:$M$399=\"X\"))","v":0},{"$f":"SUMPRODUCT(('2. Assisted & Restricted Units'!$E$7:$E$399=\"0\")*('2. Assisted & Restricted Units'!$O$7:$O$399=\"X\"))","v":0}]
["1 Bedroom 15% AMI",{"$f":"SUMPRODUCT(('2. Assisted & Restricted Units'!$E$7:$E$399=\"1\")*('2. Assisted & Restricted Units'!$S$7:$S$399=\"CALDAP\")*('2. Assisted & Restricted Units'!$T$7:$T$399=\"15% AMI\"))","v":0},{"$f":"SUMPRODUCT(('2. Assisted & Restricted Units'!$E$7:$E$399=\"1\")*('2. Assisted & Restricted Units'!$S$7:$S$399=\"CHRP-R\")*('2. Assisted & Restricted Units'!$T$7:$T$399=\"15% AMI\"))","v":0},{"$f":"SUMPRODUCT(('2. Assisted & Restricted Units'!$E$7:$E$399=\"1\")*('2. Assisted & Restricted Units'!$S$7:$S$399=\"DDS\")*('2. Assisted & Restricted Units'!$T$7:$T$399=\"15% AMI\"))","v":0},{"$f":"SUMPRODUCT(('2. Assisted & Restricted Units'!$E$7:$E$399=\"1\")*('2. Assisted & Restricted Units'!$S$7:$S$399=\"DPRLP\")*('2. Assisted & Restricted Units'!$T$7:$T$399=\"15% AMI\"))","v":0},{"$f":"SUMPRODUCT(('2. Assisted & Restricted Units'!$E$7:$E$399=\"1\")*('2. Assisted & Restricted Units'!$S$7:$S$399=\"FHDP\")*('2. Assisted & Restricted Units'!$T$7:$T$399=\"15% AMI\"))","v":0},{"$f":"SUMPRODUCT(('2. Assisted & Restricted Units'!$E$7:$E$399=\"1\")*('2. Assisted & Restricted Units'!$S$7:$S$399=\"FMTW\")*('2. Assisted & Restricted Units'!$T$7:$T$399=\"15% AMI\"))","v":0},null,{"$f":"SUMPRODUCT(('2. Assisted & Restricted Units'!$E$7:$E$399=\"1\")*('2. Assisted & Restricted Units'!$S$7:$S$399=\"HOME\")*('2. Assisted & Restricted Units'!$T$7:$T$399=\"15% AMI\"))","v":0},{"$f":"SUMPRODUCT(('2. Assisted & Restricted Units'!$E$7:$E$399=\"1\")*('2. Assisted & Restricted Units'!$S$7:$S$399=\"Market Rate\")*('2. Assisted & Restricted Units'!$T$7:$T$399=\"15% AMI\"))","v":0},{"$f":"SUMPRODUCT(('2. Assisted & Restricted Units'!$E$7:$E$399=\"1\")*('2. Assisted & Restricted Units'!$S$7:$S$399=\"MHP\")*('2. Assisted & Restricted Units'!$T$7:$T$399=\"15% AMI\"))","v":0},{"$f":"SUMPRODUCT(('2. Assisted & Restricted Units'!$E$7:$E$399=\"1\")*('2. Assisted & Restricted Units'!$S$7:$S$399=\"NonAssisted\")*('2. Assisted & Restricted Units'!$T$7:$T$399=\"15% AMI\"))","v":0},{"$f":"SUMPRODUCT(('2. Assisted & Restricted Units'!$E$7:$E$399=\"1\")*('2. Assisted & Restricted Units'!$S$7:$S$399=\"Other Restr\")*('2. Assisted & Restricted Units'!$T$7:$T$399=\"15% AMI\"))","v":0},{"$f":"SUMPRODUCT(('2. Assisted & Restricted Units'!$E$7:$E$399=\"1\")*('2. Assisted & Restricted Units'!$S$7:$S$399=\"RHCP-B\")*('2. Assisted & Restricted Units'!$T$7:$T$399=\"15% AMI\"))","v":0},{"$f":"SUMPRODUCT(('2. Assisted & Restricted Units'!$E$7:$E$399=\"1\")*('2. Assisted & Restricted Units'!$S$7:$S$399=\"SERA\")*('2. Assisted & Restricted Units'!$T$7:$T$399=\"15% AMI\"))","v":0},{"$f":"SUMPRODUCT(('2. Assisted & Restricted Units'!$E$7:$E$399=\"1\")*('2. Assisted & Restricted Units'!$S$7:$S$399=\"SUHRP\")*('2. Assisted & Restricted Units'!$T$7:$T$399=\"15% AMI\"))","v":0},{"$f":"SUMPRODUCT(('2. Assisted & Restricted Units'!$E$7:$E$399=\"1\")*('2. Assisted & Restricted Units'!$S$7:$S$399=\"TOD\")*('2. Assisted & Restricted Units'!$T$7:$T$399=\"15% AMI\"))","v":0},{"$f":"SUMPRODUCT(('2. Assisted & Restricted Units'!$E$7:$E$399=\"1\")*('2. Assisted & Restricted Units'!$S$7:$S$399=\"707-E\")*('2. Assisted & Restricted Units'!$T$7:$T$399=\"15% AMI\"))","v":0},{"$f":"SUMPRODUCT(('2. Assisted & Restricted Units'!$E$7:$E$399=\"1\")*('2. Assisted & Restricted Units'!$S$7:$S$399=\"707-N\")*('2. Assisted & Restricted Units'!$T$7:$T$399=\"15% AMI\"))","v":0}]
["1 Bedroom 20% AMI",{"$f":"SUMPRODUCT(('2. Assisted & Restricted Units'!$E$7:$E$399=\"1\")*('2. Assisted & Restricted Units'!$S$7:$S$399=\"CALDAP\")*('2. Assisted & Restricted Units'!$T$7:$T$399=\"20% AMI\"))","v":0},{"$f":"SUMPRODUCT(('2. Assisted & Restricted Units'!$E$7:$E$399=\"1\")*('2. Assisted & Restricted Units'!$S$7:$S$399=\"CHRP-R\")*('2. Assisted & Restricted Units'!$T$7:$T$399=\"20% AMI\"))","v":0},{"$f":"SUMPRODUCT(('2. Assisted & Restricted Units'!$E$7:$E$399=\"1\")*('2. Assisted & Restricted Units'!$S$7:$S$399=\"DDS\")*('2. Assisted & Restricted Units'!$T$7:$T$399=\"20% AMI\"))","v":0},{"$f":"SUMPRODUCT(('2. Assisted & Restricted Units'!$E$7:$E$399=\"1\")*('2. Assisted & Restricted Units'!$S$7:$S$399=\"DPRLP\")*('2. Assisted & Restricted Units'!$T$7:$T$399=\"20% AMI\"))","v":0},{"$f":"SUMPRODUCT(('2. Assisted & Restricted Units'!$E$7:$E$399=\"1\")*('2. Assisted & Restricted Units'!$S$7:$S$399=\"FHDP\")*('2. Assisted & Restricted Units'!$T$7:$T$399=\"20% AMI\"))","v":0},{"$f":"SUMPRODUCT(('2. Assisted & Restricted Units'!$E$7:$E$399=\"1\")*('2. Assisted & Restricted Units'!$S$7:$S$399=\"FMTW\")*('2. Assisted & Restricted Units'!$T$7:$T$399=\"20% AMI\"))","v":0},null,{"$f":"SUMPRODUCT(('2. Assisted & Restricted Units'!$E$7:$E$399=\"1\")*('2. Assisted & Restricted Units'!$S$7:$S$399=\"HOME\")*('2. Assisted & Restricted Units'!$T$7:$T$399=\"20% AMI\"))","v":0},{"$f":"SUMPRODUCT(('2. Assisted & Restricted Units'!$E$7:$E$399=\"1\")*('2. Assisted & Restricted Units'!$S$7:$S$399=\"Market Rate\")*('2. Assisted & Restricted Units'!$T$7:$T$399=\"20% AMI\"))","v":0},{"$f":"SUMPRODUCT(('2. Assisted & Restricted Units'!$E$7:$E$399=\"1\")*('2. Assisted & Restricted Units'!$S$7:$S$399=\"MHP\")*('2. Assisted & Restricted Units'!$T$7:$T$399=\"20% AMI\"))","v":0},{"$f":"SUMPRODUCT(('2. Assisted & Restricted Units'!$E$7:$E$399=\"1\")*('2. Assisted & Restricted Units'!$S$7:$S$399=\"NonAssisted\")*('2. Assisted & Restricted Units'!$T$7:$T$399=\"20% AMI\"))","v":0},{"$f":"SUMPRODUCT(('2. Assisted & Restricted Units'!$E$7:$E$399=\"1\")*('2. Assisted & Restricted Units'!$S$7:$S$399=\"Other Restr\")*('2. Assisted & Restricted Units'!$T$7:$T$399=\"20% AMI\"))","v":0},{"$f":"SUMPRODUCT(('2. Assisted & Restricted Units'!$E$7:$E$399=\"1\")*('2. Assisted & Restricted Units'!$S$7:$S$399=\"RHCP-B\")*('2. Assisted & Restricted Units'!$T$7:$T$399=\"20% AMI\"))","v":0},{"$f":"SUMPRODUCT(('2. Assisted & Restricted Units'!$E$7:$E$399=\"1\")*('2. Assisted & Restricted Units'!$S$7:$S$399=\"SERA\")*('2. Assisted & Restricted Units'!$T$7:$T$399=\"20% AMI\"))","v":0},{"$f":"SUMPRODUCT(('2. Assisted & Restricted Units'!$E$7:$E$399=\"1\")*('2. Assisted & Restricted Units'!$S$7:$S$399=\"SUHRP\")*('2. Assisted & Restricted Units'!$T$7:$T$399=\"20% AMI\"))","v":0},{"$f":"SUMPRODUCT(('2. Assisted & Restricted Units'!$E$7:$E$399=\"1\")*('2. Assisted & Restricted Units'!$S$7:$S$399=\"TOD\")*('2. Assisted & Restricted Units'!$T$7:$T$399=\"20% AMI\"))","v":0},{"$f":"SUMPRODUCT(('2. Assisted & Restricted Units'!$E$7:$E$399=\"1\")*('2. Assisted & Restricted Units'!$S$7:$S$399=\"707-E\")*('2. Assisted & Restricted Units'!$T$7:$T$399=\"20% AMI\"))","v":0},{"$f":"SUMPRODUCT(('2. Assisted & Restricted Units'!$E$7:$E$399=\"1\")*('2. Assisted & Restricted Units'!$S$7:$S$399=\"707-N\")*('2. Assisted & Restricted Units'!$T$7:$T$399=\"20% AMI\"))","v":0}]
["1 Bedroom 25% AMI",{"$f":"SUMPRODUCT(('2. Assisted & Restricted Units'!$E$7:$E$399=\"1\")*('2. Assisted & Restricted Units'!$S$7:$S$399=\"CALDAP\")*('2. Assisted & Restricted Units'!$T$7:$T$399=\"25% AMI\"))","v":0},{"$f":"SUMPRODUCT(('2. Assisted & Restricted Units'!$E$7:$E$399=\"1\")*('2. Assisted & Restricted Units'!$S$7:$S$399=\"CHRP-R\")*('2. Assisted & Restricted Units'!$T$7:$T$399=\"25% AMI\"))","v":0},{"$f":"SUMPRODUCT(('2. Assisted & Restricted Units'!$E$7:$E$399=\"1\")*('2. Assisted & Restricted Units'!$S$7:$S$399=\"DDS\")*('2. Assisted & Restricted Units'!$T$7:$T$399=\"25% AMI\"))","v":0},{"$f":"SUMPRODUCT(('2. Assisted & Restricted Units'!$E$7:$E$399=\"1\")*('2. Assisted & Restricted Units'!$S$7:$S$399=\"DPRLP\")*('2. Assisted & Restricted Units'!$T$7:$T$399=\"25% AMI\"))","v":0},{"$f":"SUMPRODUCT(('2. Assisted & Restricted Units'!$E$7:$E$399=\"1\")*('2. Assisted & Restricted Units'!$S$7:$S$399=\"FHDP\")*('2. Assisted & Restricted Units'!$T$7:$T$399=\"25% AMI\"))","v":0},{"$f":"SUMPRODUCT(('2. Assisted & Restricted Units'!$E$7:$E$399=\"1\")*('2. Assisted & Restricted Units'!$S$7:$S$399=\"FMTW\")*('2. Assisted & Restricted Units'!$T$7:$T$399=\"25% AMI\"))","v":0},null,{"$f":"SUMPRODUCT(('2. Assisted & Restricted Units'!$E$7:$E$399=\"1\")*('2. Assisted & Restricted Units'!$S$7:$S$399=\"HOME\")*('2. Assisted & Restricted Units'!$T$7:$T$399=\"25% AMI\"))","v":0},{"$f":"SUMPRODUCT(('2. Assisted & Restricted Units'!$E$7:$E$399=\"1\")*('2. Assisted & Restricted Units'!$S$7:$S$399=\"Market Rate\")*('2. Assisted & Restricted Units'!$T$7:$T$399=\"25% AMI\"))","v":0},{"$f":"SUMPRODUCT(('2. Assisted & Restricted Units'!$E$7:$E$399=\"1\")*('2. Assisted & Restricted Units'!$S$7:$S$399=\"MHP\")*('2. Assisted & Restricted Units'!$T$7:$T$399=\"25% AMI\"))","v":0},{"$f":"SUMPRODUCT(('2. Assisted & Restricted Units'!$E$7:$E$399=\"1\")*('2. Assisted & Restricted Units'!$S$7:$S$399=\"NonAssisted\")*('2. Assisted & Restricted Units'!$T$7:$T$399=\"25% AMI\"))","v":0},{"$f":"SUMPRODUCT(('2. Assisted & Restricted Units'!$E$7:$E$399=\"1\")*('2. Assisted & Restricted Units'!$S$7:$S$399=\"Other Restr\")*('2. Assisted & Restricted Units'!$T$7:$T$399=\"25% AMI\"))","v":0},{"$f":"SUMPRODUCT(('2. Assisted & Restricted Units'!$E$7:$E$399=\"1\")*('2. Assisted & Restricted Units'!$S$7:$S$399=\"RHCP-B\")*('2. Assisted & Restricted Units'!$T$7:$T$399=\"25% AMI\"))","v":0},{"$f":"SUMPRODUCT(('2. Assisted & Restricted Units'!$E$7:$E$399=\"1\")*('2. Assisted & Restricted Units'!$S$7:$S$399=\"SERA\")*('2. Assisted & Restricted Units'!$T$7:$T$399=\"25% AMI\"))","v":0},{"$f":"SUMPRODUCT(('2. Assisted & Restricted Units'!$E$7:$E$399=\"1\")*('2. Assisted & Restricted Units'!$S$7:$S$399=\"SUHRP\")*('2. Assisted & Restricted Units'!$T$7:$T$399=\"25% AMI\"))","v":0},{"$f":"SUMPRODUCT(('2. Assisted & Restricted Units'!$E$7:$E$399=\"1\")*('2. Assisted & Restricted Units'!$S$7:$S$399=\"TOD\")*('2. Assisted & Restricted Units'!$T$7:$T$399=\"25% AMI\"))","v":0},{"$f":"SUMPRODUCT(('2. Assisted & Restricted Units'!$E$7:$E$399=\"1\")*('2. Assisted & Restricted Units'!$S$7:$S$399=\"707-E\")*('2. Assisted & Restricted Units'!$T$7:$T$399=\"25% AMI\"))","v":0},{"$f":"SUMPRODUCT(('2. Assisted & Restricted Units'!$E$7:$E$399=\"1\")*('2. Assisted & Restricted Units'!$S$7:$S$399=\"707-N\")*('2. Assisted & Restricted Units'!$T$7:$T$399=\"25% AMI\"))","v":0}]
["1 Bedroom 30% AMI",{"$f":"SUMPRODUCT(('2. Assisted & Restricted Units'!$E$7:$E$399=\"1\")*('2. Assisted & Restricted Units'!$S$7:$S$399=\"CALDAP\")*('2. Assisted & Restricted Units'!$T$7:$T$399=\"30% AMI\"))","v":0},{"$f":"SUMPRODUCT(('2. Assisted & Restricted Units'!$E$7:$E$399=\"1\")*('2. Assisted & Restricted Units'!$S$7:$S$399=\"CHRP-R\")*('2. Assisted & Restricted Units'!$T$7:$T$399=\"30% AMI\"))","v":0},{"$f":"SUMPRODUCT(('2. Assisted & Restricted Units'!$E$7:$E$399=\"1\")*('2. Assisted & Restricted Units'!$S$7:$S$399=\"DDS\")*('2. Assisted & Restricted Units'!$T$7:$T$399=\"30% AMI\"))","v":0},{"$f":"SUMPRODUCT(('2. Assisted & Restricted Units'!$E$7:$E$399=\"1\")*('2. Assisted & Restricted Units'!$S$7:$S$399=\"DPRLP\")*('2. Assisted & Restricted Units'!$T$7:$T$399=\"30% AMI\"))","v":0},{"$f":"SUMPRODUCT(('2. Assisted & Restricted Units'!$E$7:$E$399=\"1\")*('2. Assisted & Restricted Units'!$S$7:$S$399=\"FHDP\")*('2. Assisted & Restricted Units'!$T$7:$T$399=\"30% AMI\"))","v":0},{"$f":"SUMPRODUCT(('2. Assisted & Restricted Units'!$E$7:$E$399=\"1\")*('2. Assisted & Restricted Units'!$S$7:$S$399=\"FMTW\")*('2. Assisted & Restricted Units'!$T$7:$T$399=\"30% AMI\"))","v":0},null,{"$f":"SUMPRODUCT(('2. Assisted & Restricted Units'!$E$7:$E$399=\"1\")*('2. Assisted & Restricted Units'!$S$7:$S$399=\"HOME\")*('2. Assisted & Restricted Units'!$T$7:$T$399=\"30% AMI\"))","v":0},{"$f":"SUMPRODUCT(('2. Assisted & Restricted Units'!$E$7:$E$399=\"1\")*('2. Assisted & Restricted Units'!$S$7:$S$399=\"Market Rate\")*('2. Assisted & Restricted Units'!$T$7:$T$399=\"30% AMI\"))","v":0},{"$f":"SUMPRODUCT(('2. Assisted & Restricted Units'!$E$7:$E$399=\"1\")*('2. Assisted & Restricted Units'!$S$7:$S$399=\"MHP\")*('2. Assisted & Restricted Units'!$T$7:$T$399=\"30% AMI\"))","v":0},{"$f":"SUMPRODUCT(('2. Assisted & Restricted Units'!$E$7:$E$399=\"1\")*('2. Assisted & Restricted Units'!$S$7:$S$399=\"NonAssisted\")*('2. Assisted & Restricted Units'!$T$7:$T$399=\"30% AMI\"))","v":0},{"$f":"SUMPRODUCT(('2. Assisted & Restricted Units'!$E$7:$E$399=\"1\")*('2. Assisted & Restricted Units'!$S$7:$S$399=\"Other Restr\")*('2. Assisted & Restricted Units'!$T$7:$T$399=\"30% AMI\"))","v":0},{"$f":"SUMPRODUCT(('2. Assisted & Restricted Units'!$E$7:$E$399=\"1\")*('2. Assisted & Restricted Units'!$S$7:$S$399=\"RHCP-B\")*('2. Assisted & Restricted Units'!$T$7:$T$399=\"30% AMI\"))","v":0},{"$f":"SUMPRODUCT(('2. Assisted & Restricted Units'!$E$7:$E$399=\"1\")*('2. Assisted & Restricted Units'!$S$7:$S$399=\"SERA\")*('2. Assisted & Restricted Units'!$T$7:$T$399=\"30% AMI\"))","v":0},{"$f":"SUMPRODUCT(('2. Assisted & Restricted Units'!$E$7:$E$399=\"1\")*('2. Assisted & Restricted Units'!$S$7:$S$399=\"SUHRP\")*('2. Assisted & Restricted Units'!$T$7:$T$399=\"30% AMI\"))","v":0},{"$f":"SUMPRODUCT(('2. Assisted & Restricted Units'!$E$7:$E$399=\"1\")*('2. Assisted & Restricted Units'!$S$7:$S$399=\"TOD\")*('2. Assisted & Restricted Units'!$T$7:$T$399=\"30% AMI\"))","v":0},{"$f":"SUMPRODUCT(('2. Assisted & Restricted Units'!$E$7:$E$399=\"1\")*('2. Assisted & Restricted Units'!$S$7:$S$399=\"707-E\")*('2. Assisted & Restricted Units'!$T$7:$T$399=\"30% AMI\"))","v":0},{"$f":"SUMPRODUCT(('2. Assisted & Restricted Units'!$E$7:$E$399=\"1\")*('2. Assisted & Restricted Units'!$S$7:$S$399=\"707-N\")*('2. Assisted & Restricted Units'!$T$7:$T$399=\"30% AMI\"))","v":0}]
["1 Bedroom 35% AMI",{"$f":"SUMPRODUCT(('2. Assisted & Restricted Units'!$E$7:$E$399=\"1\")*('2. Assisted & Restricted Units'!$S$7:$S$399=\"CALDAP\")*('2. Assisted & Restricted Units'!$T$7:$T$399=\"35% AMI\"))","v":0},{"$f":"SUMPRODUCT(('2. Assisted & Restricted Units'!$E$7:$E$399=\"1\")*('2. Assisted & Restricted Units'!$S$7:$S$399=\"CHRP-R\")*('2. Assisted & Restricted Units'!$T$7:$T$399=\"35% AMI\"))","v":0},{"$f":"SUMPRODUCT(('2. Assisted & Restricted Units'!$E$7:$E$399=\"1\")*('2. Assisted & Restricted Units'!$S$7:$S$399=\"DDS\")*('2. Assisted & Restricted Units'!$T$7:$T$399=\"35% AMI\"))","v":0},{"$f":"SUMPRODUCT(('2. Assisted & Restricted Units'!$E$7:$E$399=\"1\")*('2. Assisted & Restricted Units'!$S$7:$S$399=\"DPRLP\")*('2. Assisted & Restricted Units'!$T$7:$T$399=\"35% AMI\"))","v":0},{"$f":"SUMPRODUCT(('2. Assisted & Restricted Units'!$E$7:$E$399=\"1\")*('2. Assisted & Restricted Units'!$S$7:$S$399=\"FHDP\")*('2. Assisted & Restricted Units'!$T$7:$T$399=\"35% AMI\"))","v":0},{"$f":"SUMPRODUCT(('2. Assisted & Restricted Units'!$E$7:$E$399=\"1\")*('2. Assisted & Restricted Units'!$S$7:$S$399=\"FMTW\")*('2. Assisted & Restricted Units'!$T$7:$T$399=\"35% AMI\"))","v":0},null,{"$f":"SUMPRODUCT(('2. Assisted & Restricted Units'!$E$7:$E$399=\"1\")*('2. Assisted & Restricted Units'!$S$7:$S$399=\"HOME\")*('2. Assisted & Restricted Units'!$T$7:$T$399=\"35% AMI\"))","v":0},{"$f":"SUMPRODUCT(('2. Assisted & Restricted Units'!$E$7:$E$399=\"1\")*('2. Assisted & Restricted Units'!$S$7:$S$399=\"Market Rate\")*('2. Assisted & Restricted Units'!$T$7:$T$399=\"35% AMI\"))","v":0},{"$f":"SUMPRODUCT(('2. Assisted & Restricted Units'!$E$7:$E$399=\"1\")*('2. Assisted & Restricted Units'!$S$7:$S$399=\"MHP\")*('2. Assisted & Restricted Units'!$T$7:$T$399=\"35% AMI\"))","v":0},{"$f":"SUMPRODUCT(('2. Assisted & Restricted Units'!$E$7:$E$399=\"1\")*('2. Assisted & Restricted Units'!$S$7:$S$399=\"NonAssisted\")*('2. Assisted & Restricted Units'!$T$7:$T$399=\"35% AMI\"))","v":0},{"$f":"SUMPRODUCT(('2. Assisted & Restricted Units'!$E$7:$E$399=\"1\")*('2. Assisted & Restricted Units'!$S$7:$S$399=\"Other Restr\")*('2. Assisted & Restricted Units'!$T$7:$T$399=\"35% AMI\"))","v":0},{"$f":"SUMPRODUCT(('2. Assisted & Restricted Units'!$E$7:$E$399=\"1\")*('2. Assisted & Restricted Units'!$S$7:$S$399=\"RHCP-B\")*('2. Assisted & Restricted Units'!$T$7:$T$399=\"35% AMI\"))","v":0},{"$f":"SUMPRODUCT(('2. Assisted & Restricted Units'!$E$7:$E$399=\"1\")*('2. Assisted & Restricted Units'!$S$7:$S$399=\"SERA\")*('2. Assisted & Restricted Units'!$T$7:$T$399=\"35% AMI\"))","v":0},{"$f":"SUMPRODUCT(('2. Assisted & Restricted Units'!$E$7:$E$399=\"1\")*('2. Assisted & Restricted Units'!$S$7:$S$399=\"SUHRP\")*('2. Assisted & Restricted Units'!$T$7:$T$399=\"35% AMI\"))","v":0},{"$f":"SUMPRODUCT(('2. Assisted & Restricted Units'!$E$7:$E$399=\"1\")*('2. Assisted & Restricted Units'!$S$7:$S$399=\"TOD\")*('2. Assisted & Restricted Units'!$T$7:$T$399=\"35% AMI\"))","v":0},{"$f":"SUMPRODUCT(('2. Assisted & Restricted Units'!$E$7:$E$399=\"1\")*('2. Assisted & Restricted Units'!$S$7:$S$399=\"707-E\")*('2. Assisted & Restricted Units'!$T$7:$T$399=\"35% AMI\"))","v":0},{"$f":"SUMPRODUCT(('2. Assisted & Restricted Units'!$E$7:$E$399=\"1\")*('2. Assisted & Restricted Units'!$S$7:$S$399=\"707-N\")*('2. Assisted & Restricted Units'!$T$7:$T$399=\"35% AMI\"))","v":0}]
["1 Bedroom 40% AMI",{"$f":"SUMPRODUCT(('2. Assisted & Restricted Units'!$E$7:$E$399=\"1\")*('2. Assisted & Restricted Units'!$S$7:$S$399=\"CALDAP\")*('2. Assisted & Restricted Units'!$T$7:$T$399=\"40% AMI\"))","v":0},{"$f":"SUMPRODUCT(('2. Assisted & Restricted Units'!$E$7:$E$399=\"1\")*('2. Assisted & Restricted Units'!$S$7:$S$399=\"CHRP-R\")*('2. Assisted & Restricted Units'!$T$7:$T$399=\"40% AMI\"))","v":0},{"$f":"SUMPRODUCT(('2. Assisted & Restricted Units'!$E$7:$E$399=\"1\")*('2. Assisted & Restricted Units'!$S$7:$S$399=\"DDS\")*('2. Assisted & Restricted Units'!$T$7:$T$399=\"40% AMI\"))","v":0},{"$f":"SUMPRODUCT(('2. Assisted & Restricted Units'!$E$7:$E$399=\"1\")*('2. Assisted & Restricted Units'!$S$7:$S$399=\"DPRLP\")*('2. Assisted & Restricted Units'!$T$7:$T$399=\"40% AMI\"))","v":0},{"$f":"SUMPRODUCT(('2. Assisted & Restricted Units'!$E$7:$E$399=\"1\")*('2. Assisted & Restricted Units'!$S$7:$S$399=\"FHDP\")*('2. Assisted & Restricted Units'!$T$7:$T$399=\"40% AMI\"))","v":0},{"$f":"SUMPRODUCT(('2. Assisted & Restricted Units'!$E$7:$E$399=\"1\")*('2. Assisted & Restricted Units'!$S$7:$S$399=\"FMTW\")*('2. Assisted & Restricted Units'!$T$7:$T$399=\"40% AMI\"))","v":0},null,{"$f":"SUMPRODUCT(('2. Assisted & Restricted Units'!$E$7:$E$399=\"1\")*('2. Assisted & Restricted Units'!$S$7:$S$399=\"HOME\")*('2. Assisted & Restricted Units'!$T$7:$T$399=\"40% AMI\"))","v":0},{"$f":"SUMPRODUCT(('2. Assisted & Restricted Units'!$E$7:$E$399=\"1\")*('2. Assisted & Restricted Units'!$S$7:$S$399=\"Market Rate\")*('2. Assisted & Restricted Units'!$T$7:$T$399=\"40% AMI\"))","v":0},{"$f":"SUMPRODUCT(('2. Assisted & Restricted Units'!$E$7:$E$399=\"1\")*('2. Assisted & Restricted Units'!$S$7:$S$399=\"MHP\")*('2. Assisted & Restricted Units'!$T$7:$T$399=\"40% AMI\"))","v":0},{"$f":"SUMPRODUCT(('2. Assisted & Restricted Units'!$E$7:$E$399=\"1\")*('2. Assisted & Restricted Units'!$S$7:$S$399=\"NonAssisted\")*('2. Assisted & Restricted Units'!$T$7:$T$399=\"40% AMI\"))","v":0},{"$f":"SUMPRODUCT(('2. Assisted & Restricted Units'!$E$7:$E$399=\"1\")*('2. Assisted & Restricted Units'!$S$7:$S$399=\"Other Restr\")*('2. Assisted & Restricted Units'!$T$7:$T$399=\"40% AMI\"))","v":0},{"$f":"SUMPRODUCT(('2. Assisted & Restricted Units'!$E$7:$E$399=\"1\")*('2. Assisted & Restricted Units'!$S$7:$S$399=\"RHCP-B\")*('2. Assisted & Restricted Units'!$T$7:$T$399=\"40% AMI\"))","v":0},{"$f":"SUMPRODUCT(('2. Assisted & Restricted Units'!$E$7:$E$399=\"1\")*('2. Assisted & Restricted Units'!$S$7:$S$399=\"SERA\")*('2. Assisted & Restricted Units'!$T$7:$T$399=\"40% AMI\"))","v":0},{"$f":"SUMPRODUCT(('2. Assisted & Restricted Units'!$E$7:$E$399=\"1\")*('2. Assisted & Restricted Units'!$S$7:$S$399=\"SUHRP\")*('2. Assisted & Restricted Units'!$T$7:$T$399=\"40% AMI\"))","v":0},{"$f":"SUMPRODUCT(('2. Assisted & Restricted Units'!$E$7:$E$399=\"1\")*('2. Assisted & Restricted Units'!$S$7:$S$399=\"TOD\")*('2. Assisted & Restricted Units'!$T$7:$T$399=\"40% AMI\"))","v":0},{"$f":"SUMPRODUCT(('2. Assisted & Restricted Units'!$E$7:$E$399=\"1\")*('2. Assisted & Restricted Units'!$S$7:$S$399=\"707-E\")*('2. Assisted & Restricted Units'!$T$7:$T$399=\"40% AMI\"))","v":0},{"$f":"SUMPRODUCT(('2. Assisted & Restricted Units'!$E$7:$E$399=\"1\")*('2. Assisted & Restricted Units'!$S$7:$S$399=\"707-N\")*('2. Assisted & Restricted Units'!$T$7:$T$399=\"40% AMI\"))","v":0}]
["1 Bedroom 45% AMI",{"$f":"SUMPRODUCT(('2. Assisted & Restricted Units'!$E$7:$E$399=\"1\")*('2. Assisted & Restricted Units'!$S$7:$S$399=\"CALDAP\")*('2. Assisted & Restricted Units'!$T$7:$T$399=\"45% AMI\"))","v":0},{"$f":"SUMPRODUCT(('2. Assisted & Restricted Units'!$E$7:$E$399=\"1\")*('2. Assisted & Restricted Units'!$S$7:$S$399=\"CHRP-R\")*('2. Assisted & Restricted Units'!$T$7:$T$399=\"45% AMI\"))","v":0},{"$f":"SUMPRODUCT(('2. Assisted & Restricted Units'!$E$7:$E$399=\"1\")*('2. Assisted & Restricted Units'!$S$7:$S$399=\"DDS\")*('2. Assisted & Restricted Units'!$T$7:$T$399=\"45% AMI\"))","v":0},{"$f":"SUMPRODUCT(('2. Assisted & Restricted Units'!$E$7:$E$399=\"1\")*('2. Assisted & Restricted Units'!$S$7:$S$399=\"DPRLP\")*('2. Assisted & Restricted Units'!$T$7:$T$399=\"45% AMI\"))","v":0},{"$f":"SUMPRODUCT(('2. Assisted & Restricted Units'!$E$7:$E$399=\"1\")*('2. Assisted & Restricted Units'!$S$7:$S$399=\"FHDP\")*('2. Assisted & Restricted Units'!$T$7:$T$399=\"45% AMI\"))","v":0},{"$f":"SUMPRODUCT(('2. Assisted & Restricted Units'!$E$7:$E$399=\"1\")*('2. Assisted & Restricted Units'!$S$7:$S$399=\"FMTW\")*('2. Assisted & Restricted Units'!$T$7:$T$399=\"45% AMI\"))","v":0},null,{"$f":"SUMPRODUCT(('2. Assisted & Restricted Units'!$E$7:$E$399=\"1\")*('2. Assisted & Restricted Units'!$S$7:$S$399=\"HOME\")*('2. Assisted & Restricted Units'!$T$7:$T$399=\"45% AMI\"))","v":0},{"$f":"SUMPRODUCT(('2. Assisted & Restricted Units'!$E$7:$E$399=\"1\")*('2. Assisted & Restricted Units'!$S$7:$S$399=\"Market Rate\")*('2. Assisted & Restricted Units'!$T$7:$T$399=\"45% AMI\"))","v":0},{"$f":"SUMPRODUCT(('2. Assisted & Restricted Units'!$E$7:$E$399=\"1\")*('2. Assisted & Restricted Units'!$S$7:$S$399=\"MHP\")*('2. Assisted & Restricted Units'!$T$7:$T$399=\"45% AMI\"))","v":0},{"$f":"SUMPRODUCT(('2. Assisted & Restricted Units'!$E$7:$E$399=\"1\")*('2. Assisted & Restricted Units'!$S$7:$S$399=\"NonAssisted\")*('2. Assisted & Restricted Units'!$T$7:$T$399=\"45% AMI\"))","v":0},{"$f":"SUMPRODUCT(('2. Assisted & Restricted Units'!$E$7:$E$399=\"1\")*('2. Assisted & Restricted Units'!$S$7:$S$399=\"Other Restr\")*('2. Assisted & Restricted Units'!$T$7:$T$399=\"45% AMI\"))","v":0},{"$f":"SUMPRODUCT(('2. Assisted & Restricted Units'!$E$7:$E$399=\"1\")*('2. Assisted & Restricted Units'!$S$7:$S$399=\"RHCP-B\")*('2. Assisted & Restricted Units'!$T$7:$T$399=\"45% AMI\"))","v":0},{"$f":"SUMPRODUCT(('2. Assisted & Restricted Units'!$E$7:$E$399=\"1\")*('2. Assisted & Restricted Units'!$S$7:$S$399=\"SERA\")*('2. Assisted & Restricted Units'!$T$7:$T$399=\"45% AMI\"))","v":0},{"$f":"SUMPRODUCT(('2. Assisted & Restricted Units'!$E$7:$E$399=\"1\")*('2. Assisted & Restricted Units'!$S$7:$S$399=\"SUHRP\")*('2. Assisted & Restricted Units'!$T$7:$T$399=\"45% AMI\"))","v":0},{"$f":"SUMPRODUCT(('2. Assisted & Restricted Units'!$E$7:$E$399=\"1\")*('2. Assisted & Restricted Units'!$S$7:$S$399=\"TOD\")*('2. Assisted & Restricted Units'!$T$7:$T$399=\"45% AMI\"))","v":0},{"$f":"SUMPRODUCT(('2. Assisted & Restricted Units'!$E$7:$E$399=\"1\")*('2. Assisted & Restricted Units'!$S$7:$S$399=\"707-E\")*('2. Assisted & Restricted Units'!$T$7:$T$399=\"45% AMI\"))","v":0},{"$f":"SUMPRODUCT(('2. Assisted & Restricted Units'!$E$7:$E$399=\"1\")*('2. Assisted & Restricted Units'!$S$7:$S$399=\"707-N\")*('2. Assisted & Restricted Units'!$T$7:$T$399=\"45% AMI\"))","v":0}]
["1 Bedroom 50% AMI",{"$f":"SUMPRODUCT(('2. Assisted & Restricted Units'!$E$7:$E$399=\"1\")*('2. Assisted & Restricted Units'!$S$7:$S$399=\"CALDAP\")*('2. Assisted & Restricted Units'!$T$7:$T$399=\"50% AMI\"))","v":0},{"$f":"SUMPRODUCT(('2. Assisted & Restricted Units'!$E$7:$E$399=\"1\")*('2. Assisted & Restricted Units'!$S$7:$S$399=\"CHRP-R\")*('2. Assisted & Restricted Units'!$T$7:$T$399=\"50% AMI\"))","v":0},{"$f":"SUMPRODUCT(('2. Assisted & Restricted Units'!$E$7:$E$399=\"1\")*('2. Assisted & Restricted Units'!$S$7:$S$399=\"DDS\")*('2. Assisted & Restricted Units'!$T$7:$T$399=\"50% AMI\"))","v":0},{"$f":"SUMPRODUCT(('2. Assisted & Restricted Units'!$E$7:$E$399=\"1\")*('2. Assisted & Restricted Units'!$S$7:$S$399=\"DPRLP\")*('2. Assisted & Restricted Units'!$T$7:$T$399=\"50% AMI\"))","v":0},{"$f":"SUMPRODUCT(('2. Assisted & Restricted Units'!$E$7:$E$399=\"1\")*('2. Assisted & Restricted Units'!$S$7:$S$399=\"FHDP\")*('2. Assisted & Restricted Units'!$T$7:$T$399=\"50% AMI\"))","v":0},{"$f":"SUMPRODUCT(('2. Assisted & Restricted Units'!$E$7:$E$399=\"1\")*('2. Assisted & Restricted Units'!$S$7:$S$399=\"FMTW\")*('2. Assisted & Restricted Units'!$T$7:$T$399=\"50% AMI\"))","v":0},null,{"$f":"SUMPRODUCT(('2. Assisted & Restricted Units'!$E$7:$E$399=\"1\")*('2. Assisted & Restricted Units'!$S$7:$S$399=\"HOME\")*('2. Assisted & Restricted Units'!$T$7:$T$399=\"50% AMI\"))","v":0},{"$f":"SUMPRODUCT(('2. Assisted & Restricted Units'!$E$7:$E$399=\"1\")*('2. Assisted & Restricted Units'!$S$7:$S$399=\"Market Rate\")*('2. Assisted & Restricted Units'!$T$7:$T$399=\"50% AMI\"))","v":0},{"$f":"SUMPRODUCT(('2. Assisted & Restricted Units'!$E$7:$E$399=\"1\")*('2. Assisted & Restricted Units'!$S$7:$S$399=\"MHP\")*('2. Assisted & Restricted Units'!$T$7:$T$399=\"50% AMI\"))","v":0},{"$f":"SUMPRODUCT(('2. Assisted & Restricted Units'!$E$7:$E$399=\"1\")*('2. Assisted & Restricted Units'!$S$7:$S$399=\"NonAssisted\")*('2. Assisted & Restricted Units'!$T$7:$T$399=\"50% AMI\"))","v":0},{"$f":"SUMPRODUCT(('2. Assisted & Restricted Units'!$E$7:$E$399=\"1\")*('2. Assisted & Restricted Units'!$S$7:$S$399=\"Other Restr\")*('2. Assisted & Restricted Units'!$T$7:$T$399=\"50% AMI\"))","v":0},{"$f":"SUMPRODUCT(('2. Assisted & Restricted Units'!$E$7:$E$399=\"1\")*('2. Assisted & Restricted Units'!$S$7:$S$399=\"RHCP-B\")*('2. Assisted & Restricted Units'!$T$7:$T$399=\"50% AMI\"))","v":0},{"$f":"SUMPRODUCT(('2. Assisted & Restricted Units'!$E$7:$E$399=\"1\")*('2. Assisted & Restricted Units'!$S$7:$S$399=\"SERA\")*('2. Assisted & Restricted Units'!$T$7:$T$399=\"50% AMI\"))","v":0},{"$f":"SUMPRODUCT(('2. Assisted & Restricted Units'!$E$7:$E$399=\"1\")*('2. Assisted & Restricted Units'!$S$7:$S$399=\"SUHRP\")*('2. Assisted & Restricted Units'!$T$7:$T$399=\"50% AMI\"))","v":0},{"$f":"SUMPRODUCT(('2. Assisted & Restricted Units'!$E$7:$E$399=\"1\")*('2. Assisted & Restricted Units'!$S$7:$S$399=\"TOD\")*('2. Assisted & Restricted Units'!$T$7:$T$399=\"50% AMI\"))","v":0},{"$f":"SUMPRODUCT(('2. Assisted & Restricted Units'!$E$7:$E$399=\"1\")*('2. Assisted & Restricted Units'!$S$7:$S$399=\"707-E\")*('2. Assisted & Restricted Units'!$T$7:$T$399=\"50% AMI\"))","v":0},{"$f":"SUMPRODUCT(('2. Assisted & Restricted Units'!$E$7:$E$399=\"1\")*('2. Assisted & Restricted Units'!$S$7:$S$399=\"707-N\")*('2. Assisted & Restricted Units'!$T$7:$T$399=\"50% AMI\"))","v":0}]
["1 Bedroom 55% AMI",{"$f":"SUMPRODUCT(('2. Assisted & Restricted Units'!$E$7:$E$399=\"1\")*('2. Assisted & Restricted Units'!$S$7:$S$399=\"CALDAP\")*('2. Assisted & Restricted Units'!$T$7:$T$399=\"55% AMI\"))","v":0},{"$f":"SUMPRODUCT(('2. Assisted & Restricted Units'!$E$7:$E$399=\"1\")*('2. Assisted & Restricted Units'!$S$7:$S$399=\"CHRP-R\")*('2. Assisted & Restricted Units'!$T$7:$T$399=\"55% AMI\"))","v":0},{"$f":"SUMPRODUCT(('2. Assisted & Restricted Units'!$E$7:$E$399=\"1\")*('2. Assisted & Restricted Units'!$S$7:$S$399=\"DDS\")*('2. Assisted & Restricted Units'!$T$7:$T$399=\"55% AMI\"))","v":0},{"$f":"SUMPRODUCT(('2. Assisted & Restricted Units'!$E$7:$E$399=\"1\")*('2. Assisted & Restricted Units'!$S$7:$S$399=\"DPRLP\")*('2. Assisted & Restricted Units'!$T$7:$T$399=\"55% AMI\"))","v":0},{"$f":"SUMPRODUCT(('2. Assisted & Restricted Units'!$E$7:$E$399=\"1\")*('2. Assisted & Restricted Units'!$S$7:$S$399=\"FHDP\")*('2. Assisted & Restricted Units'!$T$7:$T$399=\"55% AMI\"))","v":0},{"$f":"SUMPRODUCT(('2. Assisted & Restricted Units'!$E$7:$E$399=\"1\")*('2. Assisted & Restricted Units'!$S$7:$S$399=\"FMTW\")*('2. Assisted & Restricted Units'!$T$7:$T$399=\"55% AMI\"))","v":0},null,{"$f":"SUMPRODUCT(('2. Assisted & Restricted Units'!$E$7:$E$399=\"1\")*('2. Assisted & Restricted Units'!$S$7:$S$399=\"HOME\")*('2. Assisted & Restricted Units'!$T$7:$T$399=\"55% AMI\"))","v":0},{"$f":"SUMPRODUCT(('2. Assisted & Restricted Units'!$E$7:$E$399=\"1\")*('2. Assisted & Restricted Units'!$S$7:$S$399=\"Market Rate\")*('2. Assisted & Restricted Units'!$T$7:$T$399=\"55% AMI\"))","v":0},{"$f":"SUMPRODUCT(('2. Assisted & Restricted Units'!$E$7:$E$399=\"1\")*('2. Assisted & Restricted Units'!$S$7:$S$399=\"MHP\")*('2. Assisted & Restricted Units'!$T$7:$T$399=\"55% AMI\"))","v":0},{"$f":"SUMPRODUCT(('2. Assisted & Restricted Units'!$E$7:$E$399=\"1\")*('2. Assisted & Restricted Units'!$S$7:$S$399=\"NonAssisted\")*('2. Assisted & Restricted Units'!$T$7:$T$399=\"55% AMI\"))","v":0},{"$f":"SUMPRODUCT(('2. Assisted & Restricted Units'!$E$7:$E$399=\"1\")*('2. Assisted & Restricted Units'!$S$7:$S$399=\"Other Restr\")*('2. Assisted & Restricted Units'!$T$7:$T$399=\"55% AMI\"))","v":0},{"$f":"SUMPRODUCT(('2. Assisted & Restricted Units'!$E$7:$E$399=\"1\")*('2. Assisted & Restricted Units'!$S$7:$S$399=\"RHCP-B\")*('2. Assisted & Restricted Units'!$T$7:$T$399=\"55% AMI\"))","v":0},{"$f":"SUMPRODUCT(('2. Assisted & Restricted Units'!$E$7:$E$399=\"1\")*('2. Assisted & Restricted Units'!$S$7:$S$399=\"SERA\")*('2. Assisted & Restricted Units'!$T$7:$T$399=\"55% AMI\"))","v":0},{"$f":"SUMPRODUCT(('2. Assisted & Restricted Units'!$E$7:$E$399=\"1\")*('2. Assisted & Restricted Units'!$S$7:$S$399=\"SUHRP\")*('2. Assisted & Restricted Units'!$T$7:$T$399=\"55% AMI\"))","v":0},{"$f":"SUMPRODUCT(('2. Assisted & Restricted Units'!$E$7:$E$399=\"1\")*('2. Assisted & Restricted Units'!$S$7:$S$399=\"TOD\")*('2. Assisted & Restricted Units'!$T$7:$T$399=\"55% AMI\"))","v":0},{"$f":"SUMPRODUCT(('2. Assisted & Restricted Units'!$E$7:$E$399=\"1\")*('2. Assisted & Restricted Units'!$S$7:$S$399=\"707-E\")*('2. Assisted & Restricted Units'!$T$7:$T$399=\"55% AMI\"))","v":0},{"$f":"SUMPRODUCT(('2. Assisted & Restricted Units'!$E$7:$E$399=\"1\")*('2. Assisted & Restricted Units'!$S$7:$S$399=\"707-N\")*('2. Assisted & Restricted Units'!$T$7:$T$399=\"55% AMI\"))","v":0}]
["1 Bedroom 60% AMI",{"$f":"SUMPRODUCT(('2. Assisted & Restricted Units'!$E$7:$E$399=\"1\")*('2. Assisted & Restricted Units'!$S$7:$S$399=\"CALDAP\")*('2. Assisted & Restricted Units'!$T$7:$T$399=\"60% AMI\"))","v":0},{"$f":"SUMPRODUCT(('2. Assisted & Restricted Units'!$E$7:$E$399=\"1\")*('2. Assisted & Restricted Units'!$S$7:$S$399=\"CHRP-R\")*('2. Assisted & Restricted Units'!$T$7:$T$399=\"60% AMI\"))","v":0},{"$f":"SUMPRODUCT(('2. Assisted & Restricted Units'!$E$7:$E$399=\"1\")*('2. Assisted & Restricted Units'!$S$7:$S$399=\"DDS\")*('2. Assisted & Restricted Units'!$T$7:$T$399=\"60% AMI\"))","v":0},{"$f":"SUMPRODUCT(('2. Assisted & Restricted Units'!$E$7:$E$399=\"1\")*('2. Assisted & Restricted Units'!$S$7:$S$399=\"DPRLP\")*('2. Assisted & Restricted Units'!$T$7:$T$399=\"60% AMI\"))","v":0},{"$f":"SUMPRODUCT(('2. Assisted & Restricted Units'!$E$7:$E$399=\"1\")*('2. Assisted & Restricted Units'!$S$7:$S$399=\"FHDP\")*('2. Assisted & Restricted Units'!$T$7:$T$399=\"60% AMI\"))","v":0},{"$f":"SUMPRODUCT(('2. Assisted & Restricted Units'!$E$7:$E$399=\"1\")*('2. Assisted & Restricted Units'!$S$7:$S$399=\"FMTW\")*('2. Assisted & Restricted Units'!$T$7:$T$399=\"60% AMI\"))","v":0},null,{"$f":"SUMPRODUCT(('2. Assisted & Restricted Units'!$E$7:$E$399=\"1\")*('2. Assisted & Restricted Units'!$S$7:$S$399=\"HOME\")*('2. Assisted & Restricted Units'!$T$7:$T$399=\"60% AMI\"))","v":0},{"$f":"SUMPRODUCT(('2. Assisted & Restricted Units'!$E$7:$E$399=\"1\")*('2. Assisted & Restricted Units'!$S$7:$S$399=\"Market Rate\")*('2. Assisted & Restricted Units'!$T$7:$T$399=\"60% AMI\"))","v":0},{"$f":"SUMPRODUCT(('2. Assisted & Restricted Units'!$E$7:$E$399=\"1\")*('2. Assisted & Restricted Units'!$S$7:$S$399=\"MHP\")*('2. Assisted & Restricted Units'!$T$7:$T$399=\"60% AMI\"))","v":0},{"$f":"SUMPRODUCT(('2. Assisted & Restricted Units'!$E$7:$E$399=\"1\")*('2. Assisted & Restricted Units'!$S$7:$S$399=\"NonAssisted\")*('2. Assisted & Restricted Units'!$T$7:$T$399=\"60% AMI\"))","v":0},{"$f":"SUMPRODUCT(('2. Assisted & Restricted Units'!$E$7:$E$399=\"1\")*('2. Assisted & Restricted Units'!$S$7:$S$399=\"Other Restr\")*('2. Assisted & Restricted Units'!$T$7:$T$399=\"60% AMI\"))","v":0},{"$f":"SUMPRODUCT(('2. Assisted & Restricted Units'!$E$7:$E$399=\"1\")*('2. Assisted & Restricted Units'!$S$7:$S$399=\"RHCP-B\")*('2. Assisted & Restricted Units'!$T$7:$T$399=\"60% AMI\"))","v":0},{"$f":"SUMPRODUCT(('2. Assisted & Restricted Units'!$E$7:$E$399=\"1\")*('2. Assisted & Restricted Units'!$S$7:$S$399=\"SERA\")*('2. Assisted & Restricted Units'!$T$7:$T$399=\"60% AMI\"))","v":0},{"$f":"SUMPRODUCT(('2. Assisted & Restricted Units'!$E$7:$E$399=\"1\")*('2. Assisted & Restricted Units'!$S$7:$S$399=\"SUHRP\")*('2. Assisted & Restricted Units'!$T$7:$T$399=\"60% AMI\"))","v":0},{"$f":"SUMPRODUCT(('2. Assisted & Restricted Units'!$E$7:$E$399=\"1\")*('2. Assisted & Restricted Units'!$S$7:$S$399=\"TOD\")*('2. Assisted & Restricted Units'!$T$7:$T$399=\"60% AMI\"))","v":0},{"$f":"SUMPRODUCT(('2. Assisted & Restricted Units'!$E$7:$E$399=\"1\")*('2. Assisted & Restricted Units'!$S$7:$S$399=\"707-E\")*('2. Assisted & Restricted Units'!$T$7:$T$399=\"60% AMI\"))","v":0},{"$f":"SUMPRODUCT(('2. Assisted & Restricted Units'!$E$7:$E$399=\"1\")*('2. Assisted & Restricted Units'!$S$7:$S$399=\"707-N\")*('2. Assisted & Restricted Units'!$T$7:$T$399=\"60% AMI\"))","v":0}]
["1 Bedroom 80% AMI",{"$f":"SUMPRODUCT(('2. Assisted & Restricted Units'!$E$7:$E$399=\"1\")*('2. Assisted & Restricted Units'!$S$7:$S$399=\"CALDAP\")*('2. Assisted & Restricted Units'!$T$7:$T$399=\"80% AMI\"))","v":0},{"$f":"SUMPRODUCT(('2. Assisted & Restricted Units'!$E$7:$E$399=\"1\")*('2. Assisted & Restricted Units'!$S$7:$S$399=\"CHRP-R\")*('2. Assisted & Restricted Units'!$T$7:$T$399=\"80% AMI\"))","v":0},{"$f":"SUMPRODUCT(('2. Assisted & Restricted Units'!$E$7:$E$399=\"1\")*('2. Assisted & Restricted Units'!$S$7:$S$399=\"DDS\")*('2. Assisted & Restricted Units'!$T$7:$T$399=\"80% AMI\"))","v":0},{"$f":"SUMPRODUCT(('2. Assisted & Restricted Units'!$E$7:$E$399=\"1\")*('2. Assisted & Restricted Units'!$S$7:$S$399=\"DPRLP\")*('2. Assisted & Restricted Units'!$T$7:$T$399=\"80% AMI\"))","v":0},{"$f":"SUMPRODUCT(('2. Assisted & Restricted Units'!$E$7:$E$399=\"1\")*('2. Assisted & Restricted Units'!$S$7:$S$399=\"FHDP\")*('2. Assisted & Restricted Units'!$T$7:$T$399=\"80% AMI\"))","v":0},{"$f":"SUMPRODUCT(('2. Assisted & Restricted Units'!$E$7:$E$399=\"1\")*('2. Assisted & Restricted Units'!$S$7:$S$399=\"FMTW\")*('2. Assisted & Restricted Units'!$T$7:$T$399=\"80% AMI\"))","v":0},null,{"$f":"SUMPRODUCT(('2. Assisted & Restricted Units'!$E$7:$E$399=\"1\")*('2. Assisted & Restricted Units'!$S$7:$S$399=\"HOME\")*('2. Assisted & Restricted Units'!$T$7:$T$399=\"80% AMI\"))","v":0},{"$f":"SUMPRODUCT(('2. Assisted & Restricted Units'!$E$7:$E$399=\"1\")*('2. Assisted & Restricted Units'!$S$7:$S$399=\"Market Rate\")*('2. Assisted & Restricted Units'!$T$7:$T$399=\"80% AMI\"))","v":0},{"$f":"SUMPRODUCT(('2. Assisted & Restricted Units'!$E$7:$E$399=\"1\")*('2. Assisted & Restricted Units'!$S$7:$S$399=\"MHP\")*('2. Assisted & Restricted Units'!$T$7:$T$399=\"80% AMI\"))","v":0},{"$f":"SUMPRODUCT(('2. Assisted & Restricted Units'!$E$7:$E$399=\"1\")*('2. Assisted & Restricted Units'!$S$7:$S$399=\"NonAssisted\")*('2. Assisted & Restricted Units'!$T$7:$T$399=\"80% AMI\"))","v":0},{"$f":"SUMPRODUCT(('2. Assisted & Restricted Units'!$E$7:$E$399=\"1\")*('2. Assisted & Restricted Units'!$S$7:$S$399=\"Other Restr\")*('2. Assisted & Restricted Units'!$T$7:$T$399=\"80% AMI\"))","v":0},{"$f":"SUMPRODUCT(('2. Assisted & Restricted Units'!$E$7:$E$399=\"1\")*('2. Assisted & Restricted Units'!$S$7:$S$399=\"RHCP-B\")*('2. Assisted & Restricted Units'!$T$7:$T$399=\"80% AMI\"))","v":0},{"$f":"SUMPRODUCT(('2. Assisted & Restricted Units'!$E$7:$E$399=\"1\")*('2. Assisted & Restricted Units'!$S$7:$S$399=\"SERA\")*('2. Assisted & Restricted Units'!$T$7:$T$399=\"80% AMI\"))","v":0},{"$f":"SUMPRODUCT(('2. Assisted & Restricted Units'!$E$7:$E$399=\"1\")*('2. Assisted & Restricted Units'!$S$7:$S$399=\"SUHRP\")*('2. Assisted & Restricted Units'!$T$7:$T$399=\"80% AMI\"))","v":0},{"$f":"SUMPRODUCT(('2. Assisted & Restricted Units'!$E$7:$E$399=\"1\")*('2. Assisted & Restricted Units'!$S$7:$S$399=\"TOD\")*('2. Assisted & Restricted Units'!$T$7:$T$399=\"80% AMI\"))","v":0},{"$f":"SUMPRODUCT(('2. Assisted & Restricted Units'!$E$7:$E$399=\"1\")*('2. Assisted & Restricted Units'!$S$7:$S$399=\"707-E\")*('2. Assisted & Restricted Units'!$T$7:$T$399=\"80% AMI\"))","v":0},{"$f":"SUMPRODUCT(('2. Assisted & Restricted Units'!$E$7:$E$399=\"1\")*('2. Assisted & Restricted Units'!$S$7:$S$399=\"707-N\")*('2. Assisted & Restricted Units'!$T$7:$T$399=\"80% AMI\"))","v":0}]
["1 Bedroom 20% SMI",{"$f":"SUMPRODUCT(('2. Assisted & Restricted Units'!$E$7:$E$399=\"1\")*('2. Assisted & Restricted Units'!$S$7:$S$399=\"CALDAP\")*('2. Assisted & Restricted Units'!$T$7:$T$399=\"20% SMI\"))","v":0},{"$f":"SUMPRODUCT(('2. Assisted & Restricted Units'!$E$7:$E$399=\"1\")*('2. Assisted & Restricted Units'!$S$7:$S$399=\"CHRP-R\")*('2. Assisted & Restricted Units'!$T$7:$T$399=\"20% SMI\"))","v":0},{"$f":"SUMPRODUCT(('2. Assisted & Restricted Units'!$E$7:$E$399=\"1\")*('2. Assisted & Restricted Units'!$S$7:$S$399=\"DDS\")*('2. Assisted & Restricted Units'!$T$7:$T$399=\"20% SMI\"))","v":0},{"$f":"SUMPRODUCT(('2. Assisted & Restricted Units'!$E$7:$E$399=\"1\")*('2. Assisted & Restricted Units'!$S$7:$S$399=\"DPRLP\")*('2. Assisted & Restricted Units'!$T$7:$T$399=\"20% SMI\"))","v":0},{"$f":"SUMPRODUCT(('2. Assisted & Restricted Units'!$E$7:$E$399=\"1\")*('2. Assisted & Restricted Units'!$S$7:$S$399=\"FHDP\")*('2. Assisted & Restricted Units'!$T$7:$T$399=\"20% SMI\"))","v":0},{"$f":"SUMPRODUCT(('2. Assisted & Restricted Units'!$E$7:$E$399=\"1\")*('2. Assisted & Restricted Units'!$S$7:$S$399=\"FMTW\")*('2. Assisted & Restricted Units'!$T$7:$T$399=\"20% SMI\"))","v":0},null,{"$f":"SUMPRODUCT(('2. Assisted & Restricted Units'!$E$7:$E$399=\"1\")*('2. Assisted & Restricted Units'!$S$7:$S$399=\"HOME\")*('2. Assisted & Restricted Units'!$T$7:$T$399=\"20% SMI\"))","v":0},{"$f":"SUMPRODUCT(('2. Assisted & Restricted Units'!$E$7:$E$399=\"1\")*('2. Assisted & Restricted Units'!$S$7:$S$399=\"Market Rate\")*('2. Assisted & Restricted Units'!$T$7:$T$399=\"20% SMI\"))","v":0},{"$f":"SUMPRODUCT(('2. Assisted & Restricted Units'!$E$7:$E$399=\"1\")*('2. Assisted & Restricted Units'!$S$7:$S$399=\"MHP\")*('2. Assisted & Restricted Units'!$T$7:$T$399=\"20% SMI\"))","v":0},{"$f":"SUMPRODUCT(('2. Assisted & Restricted Units'!$E$7:$E$399=\"1\")*('2. Assisted & Restricted Units'!$S$7:$S$399=\"NonAssisted\")*('2. Assisted & Restricted Units'!$T$7:$T$399=\"20% SMI\"))","v":0},{"$f":"SUMPRODUCT(('2. Assisted & Restricted Units'!$E$7:$E$399=\"1\")*('2. Assisted & Restricted Units'!$S$7:$S$399=\"Other Restr\")*('2. Assisted & Restricted Units'!$T$7:$T$399=\"20% SMI\"))","v":0},{"$f":"SUMPRODUCT(('2. Assisted & Restricted Units'!$E$7:$E$399=\"1\")*('2. Assisted & Restricted Units'!$S$7:$S$399=\"RHCP-B\")*('2. Assisted & Restricted Units'!$T$7:$T$399=\"20% SMI\"))","v":0},{"$f":"SUMPRODUCT(('2. Assisted & Restricted Units'!$E$7:$E$399=\"1\")*('2. Assisted & Restricted Units'!$S$7:$S$399=\"SERA\")*('2. Assisted & Restricted Units'!$T$7:$T$399=\"20% SMI\"))","v":0},{"$f":"SUMPRODUCT(('2. Assisted & Restricted Units'!$E$7:$E$399=\"1\")*('2. Assisted & Restricted Units'!$S$7:$S$399=\"SUHRP\")*('2. Assisted & Restricted Units'!$T$7:$T$399=\"20% SMI\"))","v":0},{"$f":"SUMPRODUCT(('2. Assisted & Restricted Units'!$E$7:$E$399=\"1\")*('2. Assisted & Restricted Units'!$S$7:$S$399=\"TOD\")*('2. Assisted & Restricted Units'!$T$7:$T$399=\"20% SMI\"))","v":0},{"$f":"SUMPRODUCT(('2. Assisted & Restricted Units'!$E$7:$E$399=\"1\")*('2. Assisted & Restricted Units'!$S$7:$S$399=\"707-E\")*('2. Assisted & Restricted Units'!$T$7:$T$399=\"20% SMI\"))","v":0},{"$f":"SUMPRODUCT(('2. Assisted & Restricted Units'!$E$7:$E$399=\"1\")*('2. Assisted & Restricted Units'!$S$7:$S$399=\"707-N\")*('2. Assisted & Restricted Units'!$T$7:$T$399=\"20% SMI\"))","v":0}]
["1 Bedroom 25% SMI",{"$f":"SUMPRODUCT(('2. Assisted & Restricted Units'!$E$7:$E$399=\"1\")*('2. Assisted & Restricted Units'!$S$7:$S$399=\"CALDAP\")*('2. Assisted & Restricted Units'!$T$7:$T$399=\"25% SMI\"))","v":0},{"$f":"SUMPRODUCT(('2. Assisted & Restricted Units'!$E$7:$E$399=\"1\")*('2. Assisted & Restricted Units'!$S$7:$S$399=\"CHRP-R\")*('2. Assisted & Restricted Units'!$T$7:$T$399=\"25% SMI\"))","v":0},{"$f":"SUMPRODUCT(('2. Assisted & Restricted Units'!$E$7:$E$399=\"1\")*('2. Assisted & Restricted Units'!$S$7:$S$399=\"DDS\")*('2. Assisted & Restricted Units'!$T$7:$T$399=\"25% SMI\"))","v":0},{"$f":"SUMPRODUCT(('2. Assisted & Restricted Units'!$E$7:$E$399=\"1\")*('2. Assisted & Restricted Units'!$S$7:$S$399=\"DPRLP\")*('2. Assisted & Restricted Units'!$T$7:$T$399=\"25% SMI\"))","v":0},{"$f":"SUMPRODUCT(('2. Assisted & Restricted Units'!$E$7:$E$399=\"1\")*('2. Assisted & Restricted Units'!$S$7:$S$399=\"FHDP\")*('2. Assisted & Restricted Units'!$T$7:$T$399=\"25% SMI\"))","v":0},{"$f":"SUMPRODUCT(('2. Assisted & Restricted Units'!$E$7:$E$399=\"1\")*('2. Assisted & Restricted Units'!$S$7:$S$399=\"FMTW\")*('2. Assisted & Restricted Units'!$T$7:$T$399=\"25% SMI\"))","v":0},null,{"$f":"SUMPRODUCT(('2. Assisted & Restricted Units'!$E$7:$E$399=\"1\")*('2. Assisted & Restricted Units'!$S$7:$S$399=\"HOME\")*('2. Assisted & Restricted Units'!$T$7:$T$399=\"25% SMI\"))","v":0},{"$f":"SUMPRODUCT(('2. Assisted & Restricted Units'!$E$7:$E$399=\"1\")*('2. Assisted & Restricted Units'!$S$7:$S$399=\"Market Rate\")*('2. Assisted & Restricted Units'!$T$7:$T$399=\"25% SMI\"))","v":0},{"$f":"SUMPRODUCT(('2. Assisted & Restricted Units'!$E$7:$E$399=\"1\")*('2. Assisted & Restricted Units'!$S$7:$S$399=\"MHP\")*('2. Assisted & Restricted Units'!$T$7:$T$399=\"25% SMI\"))","v":0},{"$f":"SUMPRODUCT(('2. Assisted & Restricted Units'!$E$7:$E$399=\"1\")*('2. Assisted & Restricted Units'!$S$7:$S$399=\"NonAssisted\")*('2. Assisted & Restricted Units'!$T$7:$T$399=\"25% SMI\"))","v":0},{"$f":"SUMPRODUCT(('2. Assisted & Restricted Units'!$E$7:$E$399=\"1\")*('2. Assisted & Restricted Units'!$S$7:$S$399=\"Other Restr\")*('2. Assisted & Restricted Units'!$T$7:$T$399=\"25% SMI\"))","v":0},{"$f":"SUMPRODUCT(('2. Assisted & Restricted Units'!$E$7:$E$399=\"1\")*('2. Assisted & Restricted Units'!$S$7:$S$399=\"RHCP-B\")*('2. Assisted & Restricted Units'!$T$7:$T$399=\"25% SMI\"))","v":0},{"$f":"SUMPRODUCT(('2. Assisted & Restricted Units'!$E$7:$E$399=\"1\")*('2. Assisted & Restricted Units'!$S$7:$S$399=\"SERA\")*('2. Assisted & Restricted Units'!$T$7:$T$399=\"25% SMI\"))","v":0},{"$f":"SUMPRODUCT(('2. Assisted & Restricted Units'!$E$7:$E$399=\"1\")*('2. Assisted & Restricted Units'!$S$7:$S$399=\"SUHRP\")*('2. Assisted & Restricted Units'!$T$7:$T$399=\"25% SMI\"))","v":0},{"$f":"SUMPRODUCT(('2. Assisted & Restricted Units'!$E$7:$E$399=\"1\")*('2. Assisted & Restricted Units'!$S$7:$S$399=\"TOD\")*('2. Assisted & Restricted Units'!$T$7:$T$399=\"25% SMI\"))","v":0},{"$f":"SUMPRODUCT(('2. Assisted & Restricted Units'!$E$7:$E$399=\"1\")*('2. Assisted & Restricted Units'!$S$7:$S$399=\"707-E\")*('2. Assisted & Restricted Units'!$T$7:$T$399=\"25% SMI\"))","v":0},{"$f":"SUMPRODUCT(('2. Assisted & Restricted Units'!$E$7:$E$399=\"1\")*('2. Assisted & Restricted Units'!$S$7:$S$399=\"707-N\")*('2. Assisted & Restricted Units'!$T$7:$T$399=\"25% SMI\"))","v":0}]
["1 Bedroom 30% SMI",{"$f":"SUMPRODUCT(('2. Assisted & Restricted Units'!$E$7:$E$399=\"1\")*('2. Assisted & Restricted Units'!$S$7:$S$399=\"CALDAP\")*('2. Assisted & Restricted Units'!$T$7:$T$399=\"30% SMI\"))","v":0},{"$f":"SUMPRODUCT(('2. Assisted & Restricted Units'!$E$7:$E$399=\"1\")*('2. Assisted & Restricted Units'!$S$7:$S$399=\"CHRP-R\")*('2. Assisted & Restricted Units'!$T$7:$T$399=\"30% SMI\"))","v":0},{"$f":"SUMPRODUCT(('2. Assisted & Restricted Units'!$E$7:$E$399=\"1\")*('2. Assisted & Restricted Units'!$S$7:$S$399=\"DDS\")*('2. Assisted & Restricted Units'!$T$7:$T$399=\"30% SMI\"))","v":0},{"$f":"SUMPRODUCT(('2. Assisted & Restricted Units'!$E$7:$E$399=\"1\")*('2. Assisted & Restricted Units'!$S$7:$S$399=\"DPRLP\")*('2. Assisted & Restricted Units'!$T$7:$T$399=\"30% SMI\"))","v":0},{"$f":"SUMPRODUCT(('2. Assisted & Restricted Units'!$E$7:$E$399=\"1\")*('2. Assisted & Restricted Units'!$S$7:$S$399=\"FHDP\")*('2. Assisted & Restricted Units'!$T$7:$T$399=\"30% SMI\"))","v":0},{"$f":"SUMPRODUCT(('2. Assisted & Restricted Units'!$E$7:$E$399=\"1\")*('2. Assisted & Restricted Units'!$S$7:$S$399=\"FMTW\")*('2. Assisted & Restricted Units'!$T$7:$T$399=\"30% SMI\"))","v":0},null,{"$f":"SUMPRODUCT(('2. Assisted & Restricted Units'!$E$7:$E$399=\"1\")*('2. Assisted & Restricted Units'!$S$7:$S$399=\"HOME\")*('2. Assisted & Restricted Units'!$T$7:$T$399=\"30% SMI\"))","v":0},{"$f":"SUMPRODUCT(('2. Assisted & Restricted Units'!$E$7:$E$399=\"1\")*('2. Assisted & Restricted Units'!$S$7:$S$399=\"Market Rate\")*('2. Assisted & Restricted Units'!$T$7:$T$399=\"30% SMI\"))","v":0},{"$f":"SUMPRODUCT(('2. Assisted & Restricted Units'!$E$7:$E$399=\"1\")*('2. Assisted & Restricted Units'!$S$7:$S$399=\"MHP\")*('2. Assisted & Restricted Units'!$T$7:$T$399=\"30% SMI\"))","v":0},{"$f":"SUMPRODUCT(('2. Assisted & Restricted Units'!$E$7:$E$399=\"1\")*('2. Assisted & Restricted Units'!$S$7:$S$399=\"NonAssisted\")*('2. Assisted & Restricted Units'!$T$7:$T$399=\"30% SMI\"))","v":0},{"$f":"SUMPRODUCT(('2. Assisted & Restricted Units'!$E$7:$E$399=\"1\")*('2. Assisted & Restricted Units'!$S$7:$S$399=\"Other Restr\")*('2. Assisted & Restricted Units'!$T$7:$T$399=\"30% SMI\"))","v":0},{"$f":"SUMPRODUCT(('2. Assisted & Restricted Units'!$E$7:$E$399=\"1\")*('2. Assisted & Restricted Units'!$S$7:$S$399=\"RHCP-B\")*('2. Assisted & Restricted Units'!$T$7:$T$399=\"30% SMI\"))","v":0},{"$f":"SUMPRODUCT(('2. Assisted & Restricted Units'!$E$7:$E$399=\"1\")*('2. Assisted & Restricted Units'!$S$7:$S$399=\"SERA\")*('2. Assisted & Restricted Units'!$T$7:$T$399=\"30% SMI\"))","v":0},{"$f":"SUMPRODUCT(('2. Assisted & Restricted Units'!$E$7:$E$399=\"1\")*('2. Assisted & Restricted Units'!$S$7:$S$399=\"SUHRP\")*('2. Assisted & Restricted Units'!$T$7:$T$399=\"30% SMI\"))","v":0},{"$f":"SUMPRODUCT(('2. Assisted & Restricted Units'!$E$7:$E$399=\"1\")*('2. Assisted & Restricted Units'!$S$7:$S$399=\"TOD\")*('2. Assisted & Restricted Units'!$T$7:$T$399=\"30% SMI\"))","v":0},{"$f":"SUMPRODUCT(('2. Assisted & Restricted Units'!$E$7:$E$399=\"1\")*('2. Assisted & Restricted Units'!$S$7:$S$399=\"707-E\")*('2. Assisted & Restricted Units'!$T$7:$T$399=\"30% SMI\"))","v":0},{"$f":"SUMPRODUCT(('2. Assisted & Restricted Units'!$E$7:$E$399=\"1\")*('2. Assisted & Restricted Units'!$S$7:$S$399=\"707-N\")*('2. Assisted & Restricted Units'!$T$7:$T$399=\"30% SMI\"))","v":0}]
["1 Bedroom 35% SMI",{"$f":"SUMPRODUCT(('2. Assisted & Restricted Units'!$E$7:$E$399=\"1\")*('2. Assisted & Restricted Units'!$S$7:$S$399=\"CALDAP\")*('2. Assisted & Restricted Units'!$T$7:$T$399=\"35% SMI\"))","v":0},{"$f":"SUMPRODUCT(('2. Assisted & Restricted Units'!$E$7:$E$399=\"1\")*('2. Assisted & Restricted Units'!$S$7:$S$399=\"CHRP-R\")*('2. Assisted & Restricted Units'!$T$7:$T$399=\"35% SMI\"))","v":0},{"$f":"SUMPRODUCT(('2. Assisted & Restricted Units'!$E$7:$E$399=\"1\")*('2. Assisted & Restricted Units'!$S$7:$S$399=\"DDS\")*('2. Assisted & Restricted Units'!$T$7:$T$399=\"35% SMI\"))","v":0},{"$f":"SUMPRODUCT(('2. Assisted & Restricted Units'!$E$7:$E$399=\"1\")*('2. Assisted & Restricted Units'!$S$7:$S$399=\"DPRLP\")*('2. Assisted & Restricted Units'!$T$7:$T$399=\"35% SMI\"))","v":0},{"$f":"SUMPRODUCT(('2. Assisted & Restricted Units'!$E$7:$E$399=\"1\")*('2. Assisted & Restricted Units'!$S$7:$S$399=\"FHDP\")*('2. Assisted & Restricted Units'!$T$7:$T$399=\"35% SMI\"))","v":0},{"$f":"SUMPRODUCT(('2. Assisted & Restricted Units'!$E$7:$E$399=\"1\")*('2. Assisted & Restricted Units'!$S$7:$S$399=\"FMTW\")*('2. Assisted & Restricted Units'!$T$7:$T$399=\"35% SMI\"))","v":0},null,{"$f":"SUMPRODUCT(('2. Assisted & Restricted Units'!$E$7:$E$399=\"1\")*('2. Assisted & Restricted Units'!$S$7:$S$399=\"HOME\")*('2. Assisted & Restricted Units'!$T$7:$T$399=\"35% SMI\"))","v":0},{"$f":"SUMPRODUCT(('2. Assisted & Restricted Units'!$E$7:$E$399=\"1\")*('2. Assisted & Restricted Units'!$S$7:$S$399=\"Market Rate\")*('2. Assisted & Restricted Units'!$T$7:$T$399=\"35% SMI\"))","v":0},{"$f":"SUMPRODUCT(('2. Assisted & Restricted Units'!$E$7:$E$399=\"1\")*('2. Assisted & Restricted Units'!$S$7:$S$399=\"MHP\")*('2. Assisted & Restricted Units'!$T$7:$T$399=\"35% SMI\"))","v":0},{"$f":"SUMPRODUCT(('2. Assisted & Restricted Units'!$E$7:$E$399=\"1\")*('2. Assisted & Restricted Units'!$S$7:$S$399=\"NonAssisted\")*('2. Assisted & Restricted Units'!$T$7:$T$399=\"35% SMI\"))","v":0},{"$f":"SUMPRODUCT(('2. Assisted & Restricted Units'!$E$7:$E$399=\"1\")*('2. Assisted & Restricted Units'!$S$7:$S$399=\"Other Restr\")*('2. Assisted & Restricted Units'!$T$7:$T$399=\"35% SMI\"))","v":0},{"$f":"SUMPRODUCT(('2. Assisted & Restricted Units'!$E$7:$E$399=\"1\")*('2. Assisted & Restricted Units'!$S$7:$S$399=\"RHCP-B\")*('2. Assisted & Restricted Units'!$T$7:$T$399=\"35% SMI\"))","v":0},{"$f":"SUMPRODUCT(('2. Assisted & Restricted Units'!$E$7:$E$399=\"1\")*('2. Assisted & Restricted Units'!$S$7:$S$399=\"SERA\")*('2. Assisted & Restricted Units'!$T$7:$T$399=\"35% SMI\"))","v":0},{"$f":"SUMPRODUCT(('2. Assisted & Restricted Units'!$E$7:$E$399=\"1\")*('2. Assisted & Restricted Units'!$S$7:$S$399=\"SUHRP\")*('2. Assisted & Restricted Units'!$T$7:$T$399=\"35% SMI\"))","v":0},{"$f":"SUMPRODUCT(('2. Assisted & Restricted Units'!$E$7:$E$399=\"1\")*('2. Assisted & Restricted Units'!$S$7:$S$399=\"TOD\")*('2. Assisted & Restricted Units'!$T$7:$T$399=\"35% SMI\"))","v":0},{"$f":"SUMPRODUCT(('2. Assisted & Restricted Units'!$E$7:$E$399=\"1\")*('2. Assisted & Restricted Units'!$S$7:$S$399=\"707-E\")*('2. Assisted & Restricted Units'!$T$7:$T$399=\"35% SMI\"))","v":0},{"$f":"SUMPRODUCT(('2. Assisted & Restricted Units'!$E$7:$E$399=\"1\")*('2. Assisted & Restricted Units'!$S$7:$S$399=\"707-N\")*('2. Assisted & Restricted Units'!$T$7:$T$399=\"35% SMI\"))","v":0}]
["1 Bedroom 40% SMI",{"$f":"SUMPRODUCT(('2. Assisted & Restricted Units'!$E$7:$E$399=\"1\")*('2. Assisted & Restricted Units'!$S$7:$S$399=\"CALDAP\")*('2. Assisted & Restricted Units'!$T$7:$T$399=\"40% SMI\"))","v":0},{"$f":"SUMPRODUCT(('2. Assisted & Restricted Units'!$E$7:$E$399=\"1\")*('2. Assisted & Restricted Units'!$S$7:$S$399=\"CHRP-R\")*('2. Assisted & Restricted Units'!$T$7:$T$399=\"40% SMI\"))","v":0},{"$f":"SUMPRODUCT(('2. Assisted & Restricted Units'!$E$7:$E$399=\"1\")*('2. Assisted & Restricted Units'!$S$7:$S$399=\"DDS\")*('2. Assisted & Restricted Units'!$T$7:$T$399=\"40% SMI\"))","v":0},{"$f":"SUMPRODUCT(('2. Assisted & Restricted Units'!$E$7:$E$399=\"1\")*('2. Assisted & Restricted Units'!$S$7:$S$399=\"DPRLP\")*('2. Assisted & Restricted Units'!$T$7:$T$399=\"40% SMI\"))","v":0},{"$f":"SUMPRODUCT(('2. Assisted & Restricted Units'!$E$7:$E$399=\"1\")*('2. Assisted & Restricted Units'!$S$7:$S$399=\"FHDP\")*('2. Assisted & Restricted Units'!$T$7:$T$399=\"40% SMI\"))","v":0},{"$f":"SUMPRODUCT(('2. Assisted & Restricted Units'!$E$7:$E$399=\"1\")*('2. Assisted & Restricted Units'!$S$7:$S$399=\"FMTW\")*('2. Assisted & Restricted Units'!$T$7:$T$399=\"40% SMI\"))","v":0},null,{"$f":"SUMPRODUCT(('2. Assisted & Restricted Units'!$E$7:$E$399=\"1\")*('2. Assisted & Restricted Units'!$S$7:$S$399=\"HOME\")*('2. Assisted & Restricted Units'!$T$7:$T$399=\"40% SMI\"))","v":0},{"$f":"SUMPRODUCT(('2. Assisted & Restricted Units'!$E$7:$E$399=\"1\")*('2. Assisted & Restricted Units'!$S$7:$S$399=\"Market Rate\")*('2. Assisted & Restricted Units'!$T$7:$T$399=\"40% SMI\"))","v":0},{"$f":"SUMPRODUCT(('2. Assisted & Restricted Units'!$E$7:$E$399=\"1\")*('2. Assisted & Restricted Units'!$S$7:$S$399=\"MHP\")*('2. Assisted & Restricted Units'!$T$7:$T$399=\"40% SMI\"))","v":0},{"$f":"SUMPRODUCT(('2. Assisted & Restricted Units'!$E$7:$E$399=\"1\")*('2. Assisted & Restricted Units'!$S$7:$S$399=\"NonAssisted\")*('2. Assisted & Restricted Units'!$T$7:$T$399=\"40% SMI\"))","v":0},{"$f":"SUMPRODUCT(('2. Assisted & Restricted Units'!$E$7:$E$399=\"1\")*('2. Assisted & Restricted Units'!$S$7:$S$399=\"Other Restr\")*('2. Assisted & Restricted Units'!$T$7:$T$399=\"40% SMI\"))","v":0},{"$f":"SUMPRODUCT(('2. Assisted & Restricted Units'!$E$7:$E$399=\"1\")*('2. Assisted & Restricted Units'!$S$7:$S$399=\"RHCP-B\")*('2. Assisted & Restricted Units'!$T$7:$T$399=\"40% SMI\"))","v":0},{"$f":"SUMPRODUCT(('2. Assisted & Restricted Units'!$E$7:$E$399=\"1\")*('2. Assisted & Restricted Units'!$S$7:$S$399=\"SERA\")*('2. Assisted & Restricted Units'!$T$7:$T$399=\"40% SMI\"))","v":0},{"$f":"SUMPRODUCT(('2. Assisted & Restricted Units'!$E$7:$E$399=\"1\")*('2. Assisted & Restricted Units'!$S$7:$S$399=\"SUHRP\")*('2. Assisted & Restricted Units'!$T$7:$T$399=\"40% SMI\"))","v":0},{"$f":"SUMPRODUCT(('2. Assisted & Restricted Units'!$E$7:$E$399=\"1\")*('2. Assisted & Restricted Units'!$S$7:$S$399=\"TOD\")*('2. Assisted & Restricted Units'!$T$7:$T$399=\"40% SMI\"))","v":0},{"$f":"SUMPRODUCT(('2. Assisted & Restricted Units'!$E$7:$E$399=\"1\")*('2. Assisted & Restricted Units'!$S$7:$S$399=\"707-E\")*('2. Assisted & Restricted Units'!$T$7:$T$399=\"40% SMI\"))","v":0},{"$f":"SUMPRODUCT(('2. Assisted & Restricted Units'!$E$7:$E$399=\"1\")*('2. Assisted & Restricted Units'!$S$7:$S$399=\"707-N\")*('2. Assisted & Restricted Units'!$T$7:$T$399=\"40% SMI\"))","v":0}]
["1 Bedroom 45% SMI",{"$f":"SUMPRODUCT(('2. Assisted & Restricted Units'!$E$7:$E$399=\"1\")*('2. Assisted & Restricted Units'!$S$7:$S$399=\"CALDAP\")*('2. Assisted & Restricted Units'!$T$7:$T$399=\"45% SMI\"))","v":0},{"$f":"SUMPRODUCT(('2. Assisted & Restricted Units'!$E$7:$E$399=\"1\")*('2. Assisted & Restricted Units'!$S$7:$S$399=\"CHRP-R\")*('2. Assisted & Restricted Units'!$T$7:$T$399=\"45% SMI\"))","v":0},{"$f":"SUMPRODUCT(('2. Assisted & Restricted Units'!$E$7:$E$399=\"1\")*('2. Assisted & Restricted Units'!$S$7:$S$399=\"DDS\")*('2. Assisted & Restricted Units'!$T$7:$T$399=\"45% SMI\"))","v":0},{"$f":"SUMPRODUCT(('2. Assisted & Restricted Units'!$E$7:$E$399=\"1\")*('2. Assisted & Restricted Units'!$S$7:$S$399=\"DPRLP\")*('2. Assisted & Restricted Units'!$T$7:$T$399=\"45% SMI\"))","v":0},{"$f":"SUMPRODUCT(('2. Assisted & Restricted Units'!$E$7:$E$399=\"1\")*('2. Assisted & Restricted Units'!$S$7:$S$399=\"FHDP\")*('2. Assisted & Restricted Units'!$T$7:$T$399=\"45% SMI\"))","v":0},{"$f":"SUMPRODUCT(('2. Assisted & Restricted Units'!$E$7:$E$399=\"1\")*('2. Assisted & Restricted Units'!$S$7:$S$399=\"FMTW\")*('2. Assisted & Restricted Units'!$T$7:$T$399=\"45% SMI\"))","v":0},null,{"$f":"SUMPRODUCT(('2. Assisted & Restricted Units'!$E$7:$E$399=\"1\")*('2. Assisted & Restricted Units'!$S$7:$S$399=\"HOME\")*('2. Assisted & Restricted Units'!$T$7:$T$399=\"45% SMI\"))","v":0},{"$f":"SUMPRODUCT(('2. Assisted & Restricted Units'!$E$7:$E$399=\"1\")*('2. Assisted & Restricted Units'!$S$7:$S$399=\"Market Rate\")*('2. Assisted & Restricted Units'!$T$7:$T$399=\"45% SMI\"))","v":0},{"$f":"SUMPRODUCT(('2. Assisted & Restricted Units'!$E$7:$E$399=\"1\")*('2. Assisted & Restricted Units'!$S$7:$S$399=\"MHP\")*('2. Assisted & Restricted Units'!$T$7:$T$399=\"45% SMI\"))","v":0},{"$f":"SUMPRODUCT(('2. Assisted & Restricted Units'!$E$7:$E$399=\"1\")*('2. Assisted & Restricted Units'!$S$7:$S$399=\"NonAssisted\")*('2. Assisted & Restricted Units'!$T$7:$T$399=\"45% SMI\"))","v":0},{"$f":"SUMPRODUCT(('2. Assisted & Restricted Units'!$E$7:$E$399=\"1\")*('2. Assisted & Restricted Units'!$S$7:$S$399=\"Other Restr\")*('2. Assisted & Restricted Units'!$T$7:$T$399=\"45% SMI\"))","v":0},{"$f":"SUMPRODUCT(('2. Assisted & Restricted Units'!$E$7:$E$399=\"1\")*('2. Assisted & Restricted Units'!$S$7:$S$399=\"RHCP-B\")*('2. Assisted & Restricted Units'!$T$7:$T$399=\"45% SMI\"))","v":0},{"$f":"SUMPRODUCT(('2. Assisted & Restricted Units'!$E$7:$E$399=\"1\")*('2. Assisted & Restricted Units'!$S$7:$S$399=\"SERA\")*('2. Assisted & Restricted Units'!$T$7:$T$399=\"45% SMI\"))","v":0},{"$f":"SUMPRODUCT(('2. Assisted & Restricted Units'!$E$7:$E$399=\"1\")*('2. Assisted & Restricted Units'!$S$7:$S$399=\"SUHRP\")*('2. Assisted & Restricted Units'!$T$7:$T$399=\"45% SMI\"))","v":0},{"$f":"SUMPRODUCT(('2. Assisted & Restricted Units'!$E$7:$E$399=\"1\")*('2. Assisted & Restricted Units'!$S$7:$S$399=\"TOD\")*('2. Assisted & Restricted Units'!$T$7:$T$399=\"45% SMI\"))","v":0},{"$f":"SUMPRODUCT(('2. Assisted & Restricted Units'!$E$7:$E$399=\"1\")*('2. Assisted & Restricted Units'!$S$7:$S$399=\"707-E\")*('2. Assisted & Restricted Units'!$T$7:$T$399=\"45% SMI\"))","v":0},{"$f":"SUMPRODUCT(('2. Assisted & Restricted Units'!$E$7:$E$399=\"1\")*('2. Assisted & Restricted Units'!$S$7:$S$399=\"707-N\")*('2. Assisted & Restricted Units'!$T$7:$T$399=\"45% SMI\"))","v":0}]
["1 Bedroom 50% SMI",{"$f":"SUMPRODUCT(('2. Assisted & Restricted Units'!$E$7:$E$399=\"1\")*('2. Assisted & Restricted Units'!$S$7:$S$399=\"CALDAP\")*('2. Assisted & Restricted Units'!$T$7:$T$399=\"50% SMI\"))","v":0},{"$f":"SUMPRODUCT(('2. Assisted & Restricted Units'!$E$7:$E$399=\"1\")*('2. Assisted & Restricted Units'!$S$7:$S$399=\"CHRP-R\")*('2. Assisted & Restricted Units'!$T$7:$T$399=\"50% SMI\"))","v":0},{"$f":"SUMPRODUCT(('2. Assisted & Restricted Units'!$E$7:$E$399=\"1\")*('2. Assisted & Restricted Units'!$S$7:$S$399=\"DDS\")*('2. Assisted & Restricted Units'!$T$7:$T$399=\"50% SMI\"))","v":0},{"$f":"SUMPRODUCT(('2. Assisted & Restricted Units'!$E$7:$E$399=\"1\")*('2. Assisted & Restricted Units'!$S$7:$S$399=\"DPRLP\")*('2. Assisted & Restricted Units'!$T$7:$T$399=\"50% SMI\"))","v":0},{"$f":"SUMPRODUCT(('2. Assisted & Restricted Units'!$E$7:$E$399=\"1\")*('2. Assisted & Restricted Units'!$S$7:$S$399=\"FHDP\")*('2. Assisted & Restricted Units'!$T$7:$T$399=\"50% SMI\"))","v":0},{"$f":"SUMPRODUCT(('2. Assisted & Restricted Units'!$E$7:$E$399=\"1\")*('2. Assisted & Restricted Units'!$S$7:$S$399=\"FMTW\")*('2. Assisted & Restricted Units'!$T$7:$T$399=\"50% SMI\"))","v":0},null,{"$f":"SUMPRODUCT(('2. Assisted & Restricted Units'!$E$7:$E$399=\"1\")*('2. Assisted & Restricted Units'!$S$7:$S$399=\"HOME\")*('2. Assisted & Restricted Units'!$T$7:$T$399=\"50% SMI\"))","v":0},{"$f":"SUMPRODUCT(('2. Assisted & Restricted Units'!$E$7:$E$399=\"1\")*('2. Assisted & Restricted Units'!$S$7:$S$399=\"Market Rate\")*('2. Assisted & Restricted Units'!$T$7:$T$399=\"50% SMI\"))","v":0},{"$f":"SUMPRODUCT(('2. Assisted & Restricted Units'!$E$7:$E$399=\"1\")*('2. Assisted & Restricted Units'!$S$7:$S$399=\"MHP\")*('2. Assisted & Restricted Units'!$T$7:$T$399=\"50% SMI\"))","v":0},{"$f":"SUMPRODUCT(('2. Assisted & Restricted Units'!$E$7:$E$399=\"1\")*('2. Assisted & Restricted Units'!$S$7:$S$399=\"NonAssisted\")*('2. Assisted & Restricted Units'!$T$7:$T$399=\"50% SMI\"))","v":0},{"$f":"SUMPRODUCT(('2. Assisted & Restricted Units'!$E$7:$E$399=\"1\")*('2. Assisted & Restricted Units'!$S$7:$S$399=\"Other Restr\")*('2. Assisted & Restricted Units'!$T$7:$T$399=\"50% SMI\"))","v":0},{"$f":"SUMPRODUCT(('2. Assisted & Restricted Units'!$E$7:$E$399=\"1\")*('2. Assisted & Restricted Units'!$S$7:$S$399=\"RHCP-B\")*('2. Assisted & Restricted Units'!$T$7:$T$399=\"50% SMI\"))","v":0},{"$f":"SUMPRODUCT(('2. Assisted & Restricted Units'!$E$7:$E$399=\"1\")*('2. Assisted & Restricted Units'!$S$7:$S$399=\"SERA\")*('2. Assisted & Restricted Units'!$T$7:$T$399=\"50% SMI\"))","v":0},{"$f":"SUMPRODUCT(('2. Assisted & Restricted Units'!$E$7:$E$399=\"1\")*('2. Assisted & Restricted Units'!$S$7:$S$399=\"SUHRP\")*('2. Assisted & Restricted Units'!$T$7:$T$399=\"50% SMI\"))","v":0},{"$f":"SUMPRODUCT(('2. Assisted & Restricted Units'!$E$7:$E$399=\"1\")*('2. Assisted & Restricted Units'!$S$7:$S$399=\"TOD\")*('2. Assisted & Restricted Units'!$T$7:$T$399=\"50% SMI\"))","v":0},{"$f":"SUMPRODUCT(('2. Assisted & Restricted Units'!$E$7:$E$399=\"1\")*('2. Assisted & Restricted Units'!$S$7:$S$399=\"707-E\")*('2. Assisted & Restricted Units'!$T$7:$T$399=\"50% SMI\"))","v":0},{"$f":"SUMPRODUCT(('2. Assisted & Restricted Units'!$E$7:$E$399=\"1\")*('2. Assisted & Restricted Units'!$S$7:$S$399=\"707-N\")*('2. Assisted & Restricted Units'!$T$7:$T$399=\"50% SMI\"))","v":0}]
["1 Bedroom 100% SMI",{"$f":"SUMPRODUCT(('2. Assisted & Restricted Units'!$E$7:$E$399=\"1\")*('2. Assisted & Restricted Units'!$S$7:$S$399=\"CALDAP\")*('2. Assisted & Restricted Units'!$T$7:$T$399=\"100% SMI\"))","v":0},{"$f":"SUMPRODUCT(('2. Assisted & Restricted Units'!$E$7:$E$399=\"1\")*('2. Assisted & Restricted Units'!$S$7:$S$399=\"CHRP-R\")*('2. Assisted & Restricted Units'!$T$7:$T$399=\"100% SMI\"))","v":0},{"$f":"SUMPRODUCT(('2. Assisted & Restricted Units'!$E$7:$E$399=\"1\")*('2. Assisted & Restricted Units'!$S$7:$S$399=\"DDS\")*('2. Assisted & Restricted Units'!$T$7:$T$399=\"100% SMI\"))","v":0},{"$f":"SUMPRODUCT(('2. Assisted & Restricted Units'!$E$7:$E$399=\"1\")*('2. Assisted & Restricted Units'!$S$7:$S$399=\"DPRLP\")*('2. Assisted & Restricted Units'!$T$7:$T$399=\"100% SMI\"))","v":0},{"$f":"SUMPRODUCT(('2. Assisted & Restricted Units'!$E$7:$E$399=\"1\")*('2. Assisted & Restricted Units'!$S$7:$S$399=\"FHDP\")*('2. Assisted & Restricted Units'!$T$7:$T$399=\"100% SMI\"))","v":0},{"$f":"SUMPRODUCT(('2. Assisted & Restricted Units'!$E$7:$E$399=\"1\")*('2. Assisted & Restricted Units'!$S$7:$S$399=\"FMTW\")*('2. Assisted & Restricted Units'!$T$7:$T$399=\"100% SMI\"))","v":0},null,{"$f":"SUMPRODUCT(('2. Assisted & Restricted Units'!$E$7:$E$399=\"1\")*('2. Assisted & Restricted Units'!$S$7:$S$399=\"HOME\")*('2. Assisted & Restricted Units'!$T$7:$T$399=\"100% SMI\"))","v":0},{"$f":"SUMPRODUCT(('2. Assisted & Restricted Units'!$E$7:$E$399=\"1\")*('2. Assisted & Restricted Units'!$S$7:$S$399=\"Market Rate\")*('2. Assisted & Restricted Units'!$T$7:$T$399=\"100% SMI\"))","v":0},{"$f":"SUMPRODUCT(('2. Assisted & Restricted Units'!$E$7:$E$399=\"1\")*('2. Assisted & Restricted Units'!$S$7:$S$399=\"MHP\")*('2. Assisted & Restricted Units'!$T$7:$T$399=\"100% SMI\"))","v":0},{"$f":"SUMPRODUCT(('2. Assisted & Restricted Units'!$E$7:$E$399=\"1\")*('2. Assisted & Restricted Units'!$S$7:$S$399=\"NonAssisted\")*('2. Assisted & Restricted Units'!$T$7:$T$399=\"100% SMI\"))","v":0},{"$f":"SUMPRODUCT(('2. Assisted & Restricted Units'!$E$7:$E$399=\"1\")*('2. Assisted & Restricted Units'!$S$7:$S$399=\"Other Restr\")*('2. Assisted & Restricted Units'!$T$7:$T$399=\"100% SMI\"))","v":0},{"$f":"SUMPRODUCT(('2. Assisted & Restricted Units'!$E$7:$E$399=\"1\")*('2. Assisted & Restricted Units'!$S$7:$S$399=\"RHCP-B\")*('2. Assisted & Restricted Units'!$T$7:$T$399=\"100% SMI\"))","v":0},{"$f":"SUMPRODUCT(('2. Assisted & Restricted Units'!$E$7:$E$399=\"1\")*('2. Assisted & Restricted Units'!$S$7:$S$399=\"SERA\")*('2. Assisted & Restricted Units'!$T$7:$T$399=\"100% SMI\"))","v":0},{"$f":"SUMPRODUCT(('2. Assisted & Restricted Units'!$E$7:$E$399=\"1\")*('2. Assisted & Restricted Units'!$S$7:$S$399=\"SUHRP\")*('2. Assisted & Restricted Units'!$T$7:$T$399=\"100% SMI\"))","v":0},{"$f":"SUMPRODUCT(('2. Assisted & Restricted Units'!$E$7:$E$399=\"1\")*('2. Assisted & Restricted Units'!$S$7:$S$399=\"TOD\")*('2. Assisted & Restricted Units'!$T$7:$T$399=\"100% SMI\"))","v":0},{"$f":"SUMPRODUCT(('2. Assisted & Restricted Units'!$E$7:$E$399=\"1\")*('2. Assisted & Restricted Units'!$S$7:$S$399=\"707-E\")*('2. Assisted & Restricted Units'!$T$7:$T$399=\"100% SMI\"))","v":0},{"$f":"SUMPRODUCT(('2. Assisted & Restricted Units'!$E$7:$E$399=\"1\")*('2. Assisted & Restricted Units'!$S$7:$S$399=\"707-N\")*('2. Assisted & Restricted Units'!$T$7:$T$399=\"100% SMI\"))","v":0}]
["1 Bedroom VLI HOME",{"$f":"SUMPRODUCT(('2. Assisted & Restricted Units'!$E$7:$E$399=\"1\")*('2. Assisted & Restricted Units'!$S$7:$S$399=\"CALDAP\")*('2. Assisted & Restricted Units'!$T$7:$T$399=\"VLI HOME\"))","v":0},{"$f":"SUMPRODUCT(('2. Assisted & Restricted Units'!$E$7:$E$399=\"1\")*('2. Assisted & Restricted Units'!$S$7:$S$399=\"CHRP-R\")*('2. Assisted & Restricted Units'!$T$7:$T$399=\"VLI HOME\"))","v":0},{"$f":"SUMPRODUCT(('2. Assisted & Restricted Units'!$E$7:$E$399=\"1\")*('2. Assisted & Restricted Units'!$S$7:$S$399=\"DDS\")*('2. Assisted & Restricted Units'!$T$7:$T$399=\"VLI HOME\"))","v":0},{"$f":"SUMPRODUCT(('2. Assisted & Restricted Units'!$E$7:$E$399=\"1\")*('2. Assisted & Restricted Units'!$S$7:$S$399=\"DPRLP\")*('2. Assisted & Restricted Units'!$T$7:$T$399=\"VLI HOME\"))","v":0},{"$f":"SUMPRODUCT(('2. Assisted & Restricted Units'!$E$7:$E$399=\"1\")*('2. Assisted & Restricted Units'!$S$7:$S$399=\"FHDP\")*('2. Assisted & Restricted Units'!$T$7:$T$399=\"VLI HOME\"))","v":0},{"$f":"SUMPRODUCT(('2. Assisted & Restricted Units'!$E$7:$E$399=\"1\")*('2. Assisted & Restricted Units'!$S$7:$S$399=\"FMTW\")*('2. Assisted & Restricted Units'!$T$7:$T$399=\"VLI HOME\"))","v":0},null,{"$f":"SUMPRODUCT(('2. Assisted & Restricted Units'!$E$7:$E$399=\"1\")*('2. Assisted & Restricted Units'!$S$7:$S$399=\"HOME\")*('2. Assisted & Restricted Units'!$T$7:$T$399=\"VLI HOME\"))","v":0},{"$f":"SUMPRODUCT(('2. Assisted & Restricted Units'!$E$7:$E$399=\"1\")*('2. Assisted & Restricted Units'!$S$7:$S$399=\"Market Rate\")*('2. Assisted & Restricted Units'!$T$7:$T$399=\"VLI HOME\"))","v":0},{"$f":"SUMPRODUCT(('2. Assisted & Restricted Units'!$E$7:$E$399=\"1\")*('2. Assisted & Restricted Units'!$S$7:$S$399=\"MHP\")*('2. Assisted & Restricted Units'!$T$7:$T$399=\"VLI HOME\"))","v":0},{"$f":"SUMPRODUCT(('2. Assisted & Restricted Units'!$E$7:$E$399=\"1\")*('2. Assisted & Restricted Units'!$S$7:$S$399=\"NonAssisted\")*('2. Assisted & Restricted Units'!$T$7:$T$399=\"VLI HOME\"))","v":0},{"$f":"SUMPRODUCT(('2. Assisted & Restricted Units'!$E$7:$E$399=\"1\")*('2. Assisted & Restricted Units'!$S$7:$S$399=\"Other Restr\")*('2. Assisted & Restricted Units'!$T$7:$T$399=\"VLI HOME\"))","v":0},{"$f":"SUMPRODUCT(('2. Assisted & Restricted Units'!$E$7:$E$399=\"1\")*('2. Assisted & Restricted Units'!$S$7:$S$399=\"RHCP-B\")*('2. Assisted & Restricted Units'!$T$7:$T$399=\"VLI HOME\"))","v":0},{"$f":"SUMPRODUCT(('2. Assisted & Restricted Units'!$E$7:$E$399=\"1\")*('2. Assisted & Restricted Units'!$S$7:$S$399=\"SERA\")*('2. Assisted & Restricted Units'!$T$7:$T$399=\"VLI HOME\"))","v":0},{"$f":"SUMPRODUCT(('2. Assisted & Restricted Units'!$E$7:$E$399=\"1\")*('2. Assisted & Restricted Units'!$S$7:$S$399=\"SUHRP\")*('2. Assisted & Restricted Units'!$T$7:$T$399=\"VLI HOME\"))","v":0},{"$f":"SUMPRODUCT(('2. Assisted & Restricted Units'!$E$7:$E$399=\"1\")*('2. Assisted & Restricted Units'!$S$7:$S$399=\"TOD\")*('2. Assisted & Restricted Units'!$T$7:$T$399=\"VLI HOME\"))","v":0},{"$f":"SUMPRODUCT(('2. Assisted & Restricted Units'!$E$7:$E$399=\"1\")*('2. Assisted & Restricted Units'!$S$7:$S$399=\"707-E\")*('2. Assisted & Restricted Units'!$T$7:$T$399=\"VLI HOME\"))","v":0},{"$f":"SUMPRODUCT(('2. Assisted & Restricted Units'!$E$7:$E$399=\"1\")*('2. Assisted & Restricted Units'!$S$7:$S$399=\"707-N\")*('2. Assisted & Restricted Units'!$T$7:$T$399=\"VLI HOME\"))","v":0}]
["1 Bedroom LI HOME",{"$f":"SUMPRODUCT(('2. Assisted & Restricted Units'!$E$7:$E$399=\"1\")*('2. Assisted & Restricted Units'!$S$7:$S$399=\"CALDAP\")*('2. Assisted & Restricted Units'!$T$7:$T$399=\"LI HOME\"))","v":0},{"$f":"SUMPRODUCT(('2. Assisted & Restricted Units'!$E$7:$E$399=\"1\")*('2. Assisted & Restricted Units'!$S$7:$S$399=\"CHRP-R\")*('2. Assisted & Restricted Units'!$T$7:$T$399=\"LI HOME\"))","v":0},{"$f":"SUMPRODUCT(('2. Assisted & Restricted Units'!$E$7:$E$399=\"1\")*('2. Assisted & Restricted Units'!$S$7:$S$399=\"DDS\")*('2. Assisted & Restricted Units'!$T$7:$T$399=\"LI HOME\"))","v":0},{"$f":"SUMPRODUCT(('2. Assisted & Restricted Units'!$E$7:$E$399=\"1\")*('2. Assisted & Restricted Units'!$S$7:$S$399=\"DPRLP\")*('2. Assisted & Restricted Units'!$T$7:$T$399=\"LI HOME\"))","v":0},{"$f":"SUMPRODUCT(('2. Assisted & Restricted Units'!$E$7:$E$399=\"1\")*('2. Assisted & Restricted Units'!$S$7:$S$399=\"FHDP\")*('2. Assisted & Restricted Units'!$T$7:$T$399=\"LI HOME\"))","v":0},{"$f":"SUMPRODUCT(('2. Assisted & Restricted Units'!$E$7:$E$399=\"1\")*('2. Assisted & Restricted Units'!$S$7:$S$399=\"FMTW\")*('2. Assisted & Restricted Units'!$T$7:$T$399=\"LI HOME\"))","v":0},null,{"$f":"SUMPRODUCT(('2. Assisted & Restricted Units'!$E$7:$E$399=\"1\")*('2. Assisted & Restricted Units'!$S$7:$S$399=\"HOME\")*('2. Assisted & Restricted Units'!$T$7:$T$399=\"LI HOME\"))","v":0},{"$f":"SUMPRODUCT(('2. Assisted & Restricted Units'!$E$7:$E$399=\"1\")*('2. Assisted & Restricted Units'!$S$7:$S$399=\"Market Rate\")*('2. Assisted & Restricted Units'!$T$7:$T$399=\"LI HOME\"))","v":0},{"$f":"SUMPRODUCT(('2. Assisted & Restricted Units'!$E$7:$E$399=\"1\")*('2. Assisted & Restricted Units'!$S$7:$S$399=\"MHP\")*('2. Assisted & Restricted Units'!$T$7:$T$399=\"LI HOME\"))","v":0},{"$f":"SUMPRODUCT(('2. Assisted & Restricted Units'!$E$7:$E$399=\"1\")*('2. Assisted & Restricted Units'!$S$7:$S$399=\"NonAssisted\")*('2. Assisted & Restricted Units'!$T$7:$T$399=\"LI HOME\"))","v":0},{"$f":"SUMPRODUCT(('2. Assisted & Restricted Units'!$E$7:$E$399=\"1\")*('2. Assisted & Restricted Units'!$S$7:$S$399=\"Other Restr\")*('2. Assisted & Restricted Units'!$T$7:$T$399=\"LI HOME\"))","v":0},{"$f":"SUMPRODUCT(('2. Assisted & Restricted Units'!$E$7:$E$399=\"1\")*('2. Assisted & Restricted Units'!$S$7:$S$399=\"RHCP-B\")*('2. Assisted & Restricted Units'!$T$7:$T$399=\"LI HOME\"))","v":0},{"$f":"SUMPRODUCT(('2. Assisted & Restricted Units'!$E$7:$E$399=\"1\")*('2. Assisted & Restricted Units'!$S$7:$S$399=\"SERA\")*('2. Assisted & Restricted Units'!$T$7:$T$399=\"LI HOME\"))","v":0},{"$f":"SUMPRODUCT(('2. Assisted & Restricted Units'!$E$7:$E$399=\"1\")*('2. Assisted & Restricted Units'!$S$7:$S$399=\"SUHRP\")*('2. Assisted & Restricted Units'!$T$7:$T$399=\"LI HOME\"))","v":0},{"$f":"SUMPRODUCT(('2. Assisted & Restricted Units'!$E$7:$E$399=\"1\")*('2. Assisted & Restricted Units'!$S$7:$S$399=\"TOD\")*('2. Assisted & Restricted Units'!$T$7:$T$399=\"LI HOME\"))","v":0},{"$f":"SUMPRODUCT(('2. Assisted & Restricted Units'!$E$7:$E$399=\"1\")*('2. Assisted & Restricted Units'!$S$7:$S$399=\"707-E\")*('2. Assisted & Restricted Units'!$T$7:$T$399=\"LI HOME\"))","v":0},{"$f":"SUMPRODUCT(('2. Assisted & Restricted Units'!$E$7:$E$399=\"1\")*('2. Assisted & Restricted Units'!$S$7:$S$399=\"707-N\")*('2. Assisted & Restricted Units'!$T$7:$T$399=\"LI HOME\"))","v":0}]
["1 Bedroom VLI State",{"$f":"SUMPRODUCT(('2. Assisted & Restricted Units'!$E$7:$E$399=\"1\")*('2. Assisted & Restricted Units'!$S$7:$S$399=\"CALDAP\")*('2. Assisted & Restricted Units'!$T$7:$T$399=\"VLI State\"))","v":0},{"$f":"SUMPRODUCT(('2. Assisted & Restricted Units'!$E$7:$E$399=\"1\")*('2. Assisted & Restricted Units'!$S$7:$S$399=\"CHRP-R\")*('2. Assisted & Restricted Units'!$T$7:$T$399=\"VLI State\"))","v":0},{"$f":"SUMPRODUCT(('2. Assisted & Restricted Units'!$E$7:$E$399=\"1\")*('2. Assisted & Restricted Units'!$S$7:$S$399=\"DDS\")*('2. Assisted & Restricted Units'!$T$7:$T$399=\"VLI State\"))","v":0},{"$f":"SUMPRODUCT(('2. Assisted & Restricted Units'!$E$7:$E$399=\"1\")*('2. Assisted & Restricted Units'!$S$7:$S$399=\"DPRLP\")*('2. Assisted & Restricted Units'!$T$7:$T$399=\"VLI State\"))","v":0},{"$f":"SUMPRODUCT(('2. Assisted & Restricted Units'!$E$7:$E$399=\"1\")*('2. Assisted & Restricted Units'!$S$7:$S$399=\"FHDP\")*('2. Assisted & Restricted Units'!$T$7:$T$399=\"VLI State\"))","v":0},{"$f":"SUMPRODUCT(('2. Assisted & Restricted Units'!$E$7:$E$399=\"1\")*('2. Assisted & Restricted Units'!$S$7:$S$399=\"FMTW\")*('2. Assisted & Restricted Units'!$T$7:$T$399=\"VLI State\"))","v":0},null,{"$f":"SUMPRODUCT(('2. Assisted & Restricted Units'!$E$7:$E$399=\"1\")*('2. Assisted & Restricted Units'!$S$7:$S$399=\"HOME\")*('2. Assisted & Restricted Units'!$T$7:$T$399=\"VLI State\"))","v":0},{"$f":"SUMPRODUCT(('2. Assisted & Restricted Units'!$E$7:$E$399=\"1\")*('2. Assisted & Restricted Units'!$S$7:$S$399=\"Market Rate\")*('2. Assisted & Restricted Units'!$T$7:$T$399=\"VLI State\"))","v":0},{"$f":"SUMPRODUCT(('2. Assisted & Restricted Units'!$E$7:$E$399=\"1\")*('2. Assisted & Restricted Units'!$S$7:$S$399=\"MHP\")*('2. Assisted & Restricted Units'!$T$7:$T$399=\"VLI State\"))","v":0},{"$f":"SUMPRODUCT(('2. Assisted & Restricted Units'!$E$7:$E$399=\"1\")*('2. Assisted & Restricted Units'!$S$7:$S$399=\"NonAssisted\")*('2. Assisted & Restricted Units'!$T$7:$T$399=\"VLI State\"))","v":0},{"$f":"SUMPRODUCT(('2. Assisted & Restricted Units'!$E$7:$E$399=\"1\")*('2. Assisted & Restricted Units'!$S$7:$S$399=\"Other Restr\")*('2. Assisted & Restricted Units'!$T$7:$T$399=\"VLI State\"))","v":0},{"$f":"SUMPRODUCT(('2. Assisted & Restricted Units'!$E$7:$E$399=\"1\")*('2. Assisted & Restricted Units'!$S$7:$S$399=\"RHCP-B\")*('2. Assisted & Restricted Units'!$T$7:$T$399=\"VLI State\"))","v":0},{"$f":"SUMPRODUCT(('2. Assisted & Restricted Units'!$E$7:$E$399=\"1\")*('2. Assisted & Restricted Units'!$S$7:$S$399=\"SERA\")*('2. Assisted & Restricted Units'!$T$7:$T$399=\"VLI State\"))","v":0},{"$f":"SUMPRODUCT(('2. Assisted & Restricted Units'!$E$7:$E$399=\"1\")*('2. Assisted & Restricted Units'!$S$7:$S$399=\"SUHRP\")*('2. Assisted & Restricted Units'!$T$7:$T$399=\"VLI State\"))","v":0},{"$f":"SUMPRODUCT(('2. Assisted & Restricted Units'!$E$7:$E$399=\"1\")*('2. Assisted & Restricted Units'!$S$7:$S$399=\"TOD\")*('2. Assisted & Restricted Units'!$T$7:$T$399=\"VLI State\"))","v":0},{"$f":"SUMPRODUCT(('2. Assisted & Restricted Units'!$E$7:$E$399=\"1\")*('2. Assisted & Restricted Units'!$S$7:$S$399=\"707-E\")*('2. Assisted & Restricted Units'!$T$7:$T$399=\"VLI State\"))","v":0},{"$f":"SUMPRODUCT(('2. Assisted & Restricted Units'!$E$7:$E$399=\"1\")*('2. Assisted & Restricted Units'!$S$7:$S$399=\"707-N\")*('2. Assisted & Restricted Units'!$T$7:$T$399=\"VLI State\"))","v":0}]
["1 Bedroom LI State",{"$f":"SUMPRODUCT(('2. Assisted & Restricted Units'!$E$7:$E$399=\"1\")*('2. Assisted & Restricted Units'!$S$7:$S$399=\"CALDAP\")*('2. Assisted & Restricted Units'!$T$7:$T$399=\"LI State\"))","v":0},{"$f":"SUMPRODUCT(('2. Assisted & Restricted Units'!$E$7:$E$399=\"1\")*('2. Assisted & Restricted Units'!$S$7:$S$399=\"CHRP-R\")*('2. Assisted & Restricted Units'!$T$7:$T$399=\"LI State\"))","v":0},{"$f":"SUMPRODUCT(('2. Assisted & Restricted Units'!$E$7:$E$399=\"1\")*('2. Assisted & Restricted Units'!$S$7:$S$399=\"DDS\")*('2. Assisted & Restricted Units'!$T$7:$T$399=\"LI State\"))","v":0},{"$f":"SUMPRODUCT(('2. Assisted & Restricted Units'!$E$7:$E$399=\"1\")*('2. Assisted & Restricted Units'!$S$7:$S$399=\"DPRLP\")*('2. Assisted & Restricted Units'!$T$7:$T$399=\"LI State\"))","v":0},{"$f":"SUMPRODUCT(('2. Assisted & Restricted Units'!$E$7:$E$399=\"1\")*('2. Assisted & Restricted Units'!$S$7:$S$399=\"FHDP\")*('2. Assisted & Restricted Units'!$T$7:$T$399=\"LI State\"))","v":0},{"$f":"SUMPRODUCT(('2. Assisted & Restricted Units'!$E$7:$E$399=\"1\")*('2. Assisted & Restricted Units'!$S$7:$S$399=\"FMTW\")*('2. Assisted & Restricted Units'!$T$7:$T$399=\"LI State\"))","v":0},null,{"$f":"SUMPRODUCT(('2. Assisted & Restricted Units'!$E$7:$E$399=\"1\")*('2. Assisted & Restricted Units'!$S$7:$S$399=\"HOME\")*('2. Assisted & Restricted Units'!$T$7:$T$399=\"LI State\"))","v":0},{"$f":"SUMPRODUCT(('2. Assisted & Restricted Units'!$E$7:$E$399=\"1\")*('2. Assisted & Restricted Units'!$S$7:$S$399=\"Market Rate\")*('2. Assisted & Restricted Units'!$T$7:$T$399=\"LI State\"))","v":0},{"$f":"SUMPRODUCT(('2. Assisted & Restricted Units'!$E$7:$E$399=\"1\")*('2. Assisted & Restricted Units'!$S$7:$S$399=\"MHP\")*('2. Assisted & Restricted Units'!$T$7:$T$399=\"LI State\"))","v":0},{"$f":"SUMPRODUCT(('2. Assisted & Restricted Units'!$E$7:$E$399=\"1\")*('2. Assisted & Restricted Units'!$S$7:$S$399=\"NonAssisted\")*('2. Assisted & Restricted Units'!$T$7:$T$399=\"LI State\"))","v":0},{"$f":"SUMPRODUCT(('2. Assisted & Restricted Units'!$E$7:$E$399=\"1\")*('2. Assisted & Restricted Units'!$S$7:$S$399=\"Other Restr\")*('2. Assisted & Restricted Units'!$T$7:$T$399=\"LI State\"))","v":0},{"$f":"SUMPRODUCT(('2. Assisted & Restricted Units'!$E$7:$E$399=\"1\")*('2. Assisted & Restricted Units'!$S$7:$S$399=\"RHCP-B\")*('2. Assisted & Restricted Units'!$T$7:$T$399=\"LI State\"))","v":0},{"$f":"SUMPRODUCT(('2. Assisted & Restricted Units'!$E$7:$E$399=\"1\")*('2. Assisted & Restricted Units'!$S$7:$S$399=\"SERA\")*('2. Assisted & Restricted Units'!$T$7:$T$399=\"LI State\"))","v":0},{"$f":"SUMPRODUCT(('2. Assisted & Restricted Units'!$E$7:$E$399=\"1\")*('2. Assisted & Restricted Units'!$S$7:$S$399=\"SUHRP\")*('2. Assisted & Restricted Units'!$T$7:$T$399=\"LI State\"))","v":0},{"$f":"SUMPRODUCT(('2. Assisted & Restricted Units'!$E$7:$E$399=\"1\")*('2. Assisted & Restricted Units'!$S$7:$S$399=\"TOD\")*('2. Assisted & Restricted Units'!$T$7:$T$399=\"LI State\"))","v":0},{"$f":"SUMPRODUCT(('2. Assisted & Restricted Units'!$E$7:$E$399=\"1\")*('2. Assisted & Restricted Units'!$S$7:$S$399=\"707-E\")*('2. Assisted & Restricted Units'!$T$7:$T$399=\"LI State\"))","v":0},{"$f":"SUMPRODUCT(('2. Assisted & Restricted Units'!$E$7:$E$399=\"1\")*('2. Assisted & Restricted Units'!$S$7:$S$399=\"707-N\")*('2. Assisted & Restricted Units'!$T$7:$T$399=\"LI State\"))","v":0}]
["1 Bedroom CalHFA",{"$f":"SUMPRODUCT(('2. Assisted & Restricted Units'!$E$7:$E$399=\"1\")*('2. Assisted & Restricted Units'!$S$7:$S$399=\"CALDAP\")*('2. Assisted & Restricted Units'!$T$7:$T$399=\"CalHFA\"))","v":0},{"$f":"SUMPRODUCT(('2. Assisted & Restricted Units'!$E$7:$E$399=\"1\")*('2. Assisted & Restricted Units'!$S$7:$S$399=\"CHRP-R\")*('2. Assisted & Restricted Units'!$T$7:$T$399=\"CalHFA\"))","v":0},{"$f":"SUMPRODUCT(('2. Assisted & Restricted Units'!$E$7:$E$399=\"1\")*('2. Assisted & Restricted Units'!$S$7:$S$399=\"DDS\")*('2. Assisted & Restricted Units'!$T$7:$T$399=\"CalHFA\"))","v":0},{"$f":"SUMPRODUCT(('2. Assisted & Restricted Units'!$E$7:$E$399=\"1\")*('2. Assisted & Restricted Units'!$S$7:$S$399=\"DPRLP\")*('2. Assisted & Restricted Units'!$T$7:$T$399=\"CalHFA\"))","v":0},{"$f":"SUMPRODUCT(('2. Assisted & Restricted Units'!$E$7:$E$399=\"1\")*('2. Assisted & Restricted Units'!$S$7:$S$399=\"FHDP\")*('2. Assisted & Restricted Units'!$T$7:$T$399=\"CalHFA\"))","v":0},{"$f":"SUMPRODUCT(('2. Assisted & Restricted Units'!$E$7:$E$399=\"1\")*('2. Assisted & Restricted Units'!$S$7:$S$399=\"FMTW\")*('2. Assisted & Restricted Units'!$T$7:$T$399=\"CalHFA\"))","v":0},null,{"$f":"SUMPRODUCT(('2. Assisted & Restricted Units'!$E$7:$E$399=\"1\")*('2. Assisted & Restricted Units'!$S$7:$S$399=\"HOME\")*('2. Assisted & Restricted Units'!$T$7:$T$399=\"CalHFA\"))","v":0},{"$f":"SUMPRODUCT(('2. Assisted & Restricted Units'!$E$7:$E$399=\"1\")*('2. Assisted & Restricted Units'!$S$7:$S$399=\"Market Rate\")*('2. Assisted & Restricted Units'!$T$7:$T$399=\"CalHFA\"))","v":0},{"$f":"SUMPRODUCT(('2. Assisted & Restricted Units'!$E$7:$E$399=\"1\")*('2. Assisted & Restricted Units'!$S$7:$S$399=\"MHP\")*('2. Assisted & Restricted Units'!$T$7:$T$399=\"CalHFA\"))","v":0},{"$f":"SUMPRODUCT(('2. Assisted & Restricted Units'!$E$7:$E$399=\"1\")*('2. Assisted & Restricted Units'!$S$7:$S$399=\"NonAssisted\")*('2. Assisted & Restricted Units'!$T$7:$T$399=\"CalHFA\"))","v":0},{"$f":"SUMPRODUCT(('2. Assisted & Restricted Units'!$E$7:$E$399=\"1\")*('2. Assisted & Restricted Units'!$S$7:$S$399=\"Other Restr\")*('2. Assisted & Restricted Units'!$T$7:$T$399=\"CalHFA\"))","v":0},{"$f":"SUMPRODUCT(('2. Assisted & Restricted Units'!$E$7:$E$399=\"1\")*('2. Assisted & Restricted Units'!$S$7:$S$399=\"RHCP-B\")*('2. Assisted & Restricted Units'!$T$7:$T$399=\"CalHFA\"))","v":0},{"$f":"SUMPRODUCT(('2. Assisted & Restricted Units'!$E$7:$E$399=\"1\")*('2. Assisted & Restricted Units'!$S$7:$S$399=\"SERA\")*('2. Assisted & Restricted Units'!$T$7:$T$399=\"CalHFA\"))","v":0},{"$f":"SUMPRODUCT(('2. Assisted & Restricted Units'!$E$7:$E$399=\"1\")*('2. Assisted & Restricted Units'!$S$7:$S$399=\"SUHRP\")*('2. Assisted & Restricted Units'!$T$7:$T$399=\"CalHFA\"))","v":0},{"$f":"SUMPRODUCT(('2. Assisted & Restricted Units'!$E$7:$E$399=\"1\")*('2. Assisted & Restricted Units'!$S$7:$S$399=\"TOD\")*('2. Assisted & Restricted Units'!$T$7:$T$399=\"CalHFA\"))","v":0},{"$f":"SUMPRODUCT(('2. Assisted & Restricted Units'!$E$7:$E$399=\"1\")*('2. Assisted & Restricted Units'!$S$7:$S$399=\"707-E\")*('2. Assisted & Restricted Units'!$T$7:$T$399=\"CalHFA\"))","v":0},{"$f":"SUMPRODUCT(('2. Assisted & Restricted Units'!$E$7:$E$399=\"1\")*('2. Assisted & Restricted Units'!$S$7:$S$399=\"707-N\")*('2. Assisted & Restricted Units'!$T$7:$T$399=\"CalHFA\"))","v":0}]
["Total 1",{"$f":"SUM(B54:B77)","v":0},{"$f":"SUM(C54:C77)","v":0},0,0,0,0,{"$f":"SUMPRODUCT(('2. Assisted & Restricted Units'!$E$7:$E$399=\"1\")*('2. Assisted & Restricted Units'!$S$7:$S$399=\"FWHG\"))","v":0},0,0,0,0,0,0,0,0,0,0,0,{"$f":"SUMPRODUCT(('2. Assisted & Restricted Units'!$E$7:$E$399=\"1\")*('2. Assisted & Restricted Units'!$L$7:$L$399=\"X\"))","v":0},{"$f":"SUMPRODUCT(('2. Assisted & Restricted Units'!$E$7:$E$399=\"1\")*('2. Assisted & Restricted Units'!#REF!=\"X\"))","v":{"$error":"#REF!"}},{"$f":"SUMPRODUCT(('2. Assisted & Restricted Units'!$E$7:$E$399=\"1\")*('2. Assisted & Restricted Units'!#REF!=\"X\"))","v":{"$error":"#REF!"}},{"$f":"SUMPRODUCT(('2. Assisted & Restricted Units'!$E$7:$E$399=\"1\")*('2. Assisted & Restricted Units'!#REF!=\"X\"))","v":{"$error":"#REF!"}},{"$f":"SUMPRODUCT(('2. Assisted & Restricted Units'!$E$7:$E$399=\"1\")*('2. Assisted & Restricted Units'!#REF!=\"X\"))","v":{"$error":"#REF!"}},{"$f":"SUMPRODUCT(('2. Assisted & Restricted Units'!$E$7:$E$399=\"1\")*('2. Assisted & Restricted Units'!#REF!=\"X\"))","v":{"$error":"#REF!"}},{"$f":"SUMPRODUCT(('2. Assisted & Restricted Units'!$E$7:$E$399=\"1\")*('2. Assisted & Restricted Units'!#REF!=\"X\"))","v":{"$error":"#REF!"}},{"$f":"SUMPRODUCT(('2. Assisted & Restricted Units'!$E$7:$E$399=\"1\")*('2. Assisted & Restricted Units'!$M$7:$M$399=\"X\"))","v":0},{"$f":"SUMPRODUCT(('2. Assisted & Restricted Units'!$E$7:$E$399=\"1\")*('2. Assisted & Restricted Units'!$O$7:$O$399=\"X\"))","v":0}]
["2 Bedroom 15% AMI",{"$f":"SUMPRODUCT(('2. Assisted & Restricted Units'!$E$7:$E$399=\"2\")*('2. Assisted & Restricted Units'!$S$7:$S$399=\"CALDAP\")*('2. Assisted & Restricted Units'!$T$7:$T$399=\"15% AMI\"))","v":0},{"$f":"SUMPRODUCT(('2. Assisted & Restricted Units'!$E$7:$E$399=\"2\")*('2. Assisted & Restricted Units'!$S$7:$S$399=\"CHRP-R\")*('2. Assisted & Restricted Units'!$T$7:$T$399=\"15% AMI\"))","v":0},{"$f":"SUMPRODUCT(('2. Assisted & Restricted Units'!$E$7:$E$399=\"2\")*('2. Assisted & Restricted Units'!$S$7:$S$399=\"DDS\")*('2. Assisted & Restricted Units'!$T$7:$T$399=\"15% AMI\"))","v":0},{"$f":"SUMPRODUCT(('2. Assisted & Restricted Units'!$E$7:$E$399=\"2\")*('2. Assisted & Restricted Units'!$S$7:$S$399=\"DPRLP\")*('2. Assisted & Restricted Units'!$T$7:$T$399=\"15% AMI\"))","v":0},{"$f":"SUMPRODUCT(('2. Assisted & Restricted Units'!$E$7:$E$399=\"2\")*('2. Assisted & Restricted Units'!$S$7:$S$399=\"FHDP\")*('2. Assisted & Restricted Units'!$T$7:$T$399=\"15% AMI\"))","v":0},{"$f":"SUMPRODUCT(('2. Assisted & Restricted Units'!$E$7:$E$399=\"2\")*('2. Assisted & Restricted Units'!$S$7:$S$399=\"FMTW\")*('2. Assisted & Restricted Units'!$T$7:$T$399=\"15% AMI\"))","v":0},null,{"$f":"SUMPRODUCT(('2. Assisted & Restricted Units'!$E$7:$E$399=\"2\")*('2. Assisted & Restricted Units'!$S$7:$S$399=\"HOME\")*('2. Assisted & Restricted Units'!$T$7:$T$399=\"15% AMI\"))","v":0},{"$f":"SUMPRODUCT(('2. Assisted & Restricted Units'!$E$7:$E$399=\"2\")*('2. Assisted & Restricted Units'!$S$7:$S$399=\"Market Rate\")*('2. Assisted & Restricted Units'!$T$7:$T$399=\"15% AMI\"))","v":0},{"$f":"SUMPRODUCT(('2. Assisted & Restricted Units'!$E$7:$E$399=\"2\")*('2. Assisted & Restricted Units'!$S$7:$S$399=\"MHP\")*('2. Assisted & Restricted Units'!$T$7:$T$399=\"15% AMI\"))","v":0},{"$f":"SUMPRODUCT(('2. Assisted & Restricted Units'!$E$7:$E$399=\"2\")*('2. Assisted & Restricted Units'!$S$7:$S$399=\"NonAssisted\")*('2. Assisted & Restricted Units'!$T$7:$T$399=\"15% AMI\"))","v":0},{"$f":"SUMPRODUCT(('2. Assisted & Restricted Units'!$E$7:$E$399=\"2\")*('2. Assisted & Restricted Units'!$S$7:$S$399=\"Other Restr\")*('2. Assisted & Restricted Units'!$T$7:$T$399=\"15% AMI\"))","v":0},{"$f":"SUMPRODUCT(('2. Assisted & Restricted Units'!$E$7:$E$399=\"2\")*('2. Assisted & Restricted Units'!$S$7:$S$399=\"RHCP-B\")*('2. Assisted & Restricted Units'!$T$7:$T$399=\"15% AMI\"))","v":0},{"$f":"SUMPRODUCT(('2. Assisted & Restricted Units'!$E$7:$E$399=\"2\")*('2. Assisted & Restricted Units'!$S$7:$S$399=\"SERA\")*('2. Assisted & Restricted Units'!$T$7:$T$399=\"15% AMI\"))","v":0},{"$f":"SUMPRODUCT(('2. Assisted & Restricted Units'!$E$7:$E$399=\"2\")*('2. Assisted & Restricted Units'!$S$7:$S$399=\"SUHRP\")*('2. Assisted & Restricted Units'!$T$7:$T$399=\"15% AMI\"))","v":0},{"$f":"SUMPRODUCT(('2. Assisted & Restricted Units'!$E$7:$E$399=\"2\")*('2. Assisted & Restricted Units'!$S$7:$S$399=\"TOD\")*('2. Assisted & Restricted Units'!$T$7:$T$399=\"15% AMI\"))","v":0},{"$f":"SUMPRODUCT(('2. Assisted & Restricted Units'!$E$7:$E$399=\"2\")*('2. Assisted & Restricted Units'!$S$7:$S$399=\"707-E\")*('2. Assisted & Restricted Units'!$T$7:$T$399=\"15% AMI\"))","v":0},{"$f":"SUMPRODUCT(('2. Assisted & Restricted Units'!$E$7:$E$399=\"2\")*('2. Assisted & Restricted Units'!$S$7:$S$399=\"707-N\")*('2. Assisted & Restricted Units'!$T$7:$T$399=\"15% AMI\"))","v":0}]
["2 Bedroom 20% AMI",{"$f":"SUMPRODUCT(('2. Assisted & Restricted Units'!$E$7:$E$399=\"2\")*('2. Assisted & Restricted Units'!$S$7:$S$399=\"CALDAP\")*('2. Assisted & Restricted Units'!$T$7:$T$399=\"20% AMI\"))","v":0},{"$f":"SUMPRODUCT(('2. Assisted & Restricted Units'!$E$7:$E$399=\"2\")*('2. Assisted & Restricted Units'!$S$7:$S$399=\"CHRP-R\")*('2. Assisted & Restricted Units'!$T$7:$T$399=\"20% AMI\"))","v":0},{"$f":"SUMPRODUCT(('2. Assisted & Restricted Units'!$E$7:$E$399=\"2\")*('2. Assisted & Restricted Units'!$S$7:$S$399=\"DDS\")*('2. Assisted & Restricted Units'!$T$7:$T$399=\"20% AMI\"))","v":0},{"$f":"SUMPRODUCT(('2. Assisted & Restricted Units'!$E$7:$E$399=\"2\")*('2. Assisted & Restricted Units'!$S$7:$S$399=\"DPRLP\")*('2. Assisted & Restricted Units'!$T$7:$T$399=\"20% AMI\"))","v":0},{"$f":"SUMPRODUCT(('2. Assisted & Restricted Units'!$E$7:$E$399=\"2\")*('2. Assisted & Restricted Units'!$S$7:$S$399=\"FHDP\")*('2. Assisted & Restricted Units'!$T$7:$T$399=\"20% AMI\"))","v":0},{"$f":"SUMPRODUCT(('2. Assisted & Restricted Units'!$E$7:$E$399=\"2\")*('2. Assisted & Restricted Units'!$S$7:$S$399=\"FMTW\")*('2. Assisted & Restricted Units'!$T$7:$T$399=\"20% AMI\"))","v":0},null,{"$f":"SUMPRODUCT(('2. Assisted & Restricted Units'!$E$7:$E$399=\"2\")*('2. Assisted & Restricted Units'!$S$7:$S$399=\"HOME\")*('2. Assisted & Restricted Units'!$T$7:$T$399=\"20% AMI\"))","v":0},{"$f":"SUMPRODUCT(('2. Assisted & Restricted Units'!$E$7:$E$399=\"2\")*('2. Assisted & Restricted Units'!$S$7:$S$399=\"Market Rate\")*('2. Assisted & Restricted Units'!$T$7:$T$399=\"20% AMI\"))","v":0},{"$f":"SUMPRODUCT(('2. Assisted & Restricted Units'!$E$7:$E$399=\"2\")*('2. Assisted & Restricted Units'!$S$7:$S$399=\"MHP\")*('2. Assisted & Restricted Units'!$T$7:$T$399=\"20% AMI\"))","v":0},{"$f":"SUMPRODUCT(('2. Assisted & Restricted Units'!$E$7:$E$399=\"2\")*('2. Assisted & Restricted Units'!$S$7:$S$399=\"NonAssisted\")*('2. Assisted & Restricted Units'!$T$7:$T$399=\"20% AMI\"))","v":0},{"$f":"SUMPRODUCT(('2. Assisted & Restricted Units'!$E$7:$E$399=\"2\")*('2. Assisted & Restricted Units'!$S$7:$S$399=\"Other Restr\")*('2. Assisted & Restricted Units'!$T$7:$T$399=\"20% AMI\"))","v":0},{"$f":"SUMPRODUCT(('2. Assisted & Restricted Units'!$E$7:$E$399=\"2\")*('2. Assisted & Restricted Units'!$S$7:$S$399=\"RHCP-B\")*('2. Assisted & Restricted Units'!$T$7:$T$399=\"20% AMI\"))","v":0},{"$f":"SUMPRODUCT(('2. Assisted & Restricted Units'!$E$7:$E$399=\"2\")*('2. Assisted & Restricted Units'!$S$7:$S$399=\"SERA\")*('2. Assisted & Restricted Units'!$T$7:$T$399=\"20% AMI\"))","v":0},{"$f":"SUMPRODUCT(('2. Assisted & Restricted Units'!$E$7:$E$399=\"2\")*('2. Assisted & Restricted Units'!$S$7:$S$399=\"SUHRP\")*('2. Assisted & Restricted Units'!$T$7:$T$399=\"20% AMI\"))","v":0},{"$f":"SUMPRODUCT(('2. Assisted & Restricted Units'!$E$7:$E$399=\"2\")*('2. Assisted & Restricted Units'!$S$7:$S$399=\"TOD\")*('2. Assisted & Restricted Units'!$T$7:$T$399=\"20% AMI\"))","v":0},{"$f":"SUMPRODUCT(('2. Assisted & Restricted Units'!$E$7:$E$399=\"2\")*('2. Assisted & Restricted Units'!$S$7:$S$399=\"707-E\")*('2. Assisted & Restricted Units'!$T$7:$T$399=\"20% AMI\"))","v":0},{"$f":"SUMPRODUCT(('2. Assisted & Restricted Units'!$E$7:$E$399=\"2\")*('2. Assisted & Restricted Units'!$S$7:$S$399=\"707-N\")*('2. Assisted & Restricted Units'!$T$7:$T$399=\"20% AMI\"))","v":0}]
["2 Bedroom 25% AMI",{"$f":"SUMPRODUCT(('2. Assisted & Restricted Units'!$E$7:$E$399=\"2\")*('2. Assisted & Restricted Units'!$S$7:$S$399=\"CALDAP\")*('2. Assisted & Restricted Units'!$T$7:$T$399=\"25% AMI\"))","v":0},{"$f":"SUMPRODUCT(('2. Assisted & Restricted Units'!$E$7:$E$399=\"2\")*('2. Assisted & Restricted Units'!$S$7:$S$399=\"CHRP-R\")*('2. Assisted & Restricted Units'!$T$7:$T$399=\"25% AMI\"))","v":0},{"$f":"SUMPRODUCT(('2. Assisted & Restricted Units'!$E$7:$E$399=\"2\")*('2. Assisted & Restricted Units'!$S$7:$S$399=\"DDS\")*('2. Assisted & Restricted Units'!$T$7:$T$399=\"25% AMI\"))","v":0},{"$f":"SUMPRODUCT(('2. Assisted & Restricted Units'!$E$7:$E$399=\"2\")*('2. Assisted & Restricted Units'!$S$7:$S$399=\"DPRLP\")*('2. Assisted & Restricted Units'!$T$7:$T$399=\"25% AMI\"))","v":0},{"$f":"SUMPRODUCT(('2. Assisted & Restricted Units'!$E$7:$E$399=\"2\")*('2. Assisted & Restricted Units'!$S$7:$S$399=\"FHDP\")*('2. Assisted & Restricted Units'!$T$7:$T$399=\"25% AMI\"))","v":0},{"$f":"SUMPRODUCT(('2. Assisted & Restricted Units'!$E$7:$E$399=\"2\")*('2. Assisted & Restricted Units'!$S$7:$S$399=\"FMTW\")*('2. Assisted & Restricted Units'!$T$7:$T$399=\"25% AMI\"))","v":0},null,{"$f":"SUMPRODUCT(('2. Assisted & Restricted Units'!$E$7:$E$399=\"2\")*('2. Assisted & Restricted Units'!$S$7:$S$399=\"HOME\")*('2. Assisted & Restricted Units'!$T$7:$T$399=\"25% AMI\"))","v":0},{"$f":"SUMPRODUCT(('2. Assisted & Restricted Units'!$E$7:$E$399=\"2\")*('2. Assisted & Restricted Units'!$S$7:$S$399=\"Market Rate\")*('2. Assisted & Restricted Units'!$T$7:$T$399=\"25% AMI\"))","v":0},{"$f":"SUMPRODUCT(('2. Assisted & Restricted Units'!$E$7:$E$399=\"2\")*('2. Assisted & Restricted Units'!$S$7:$S$399=\"MHP\")*('2. Assisted & Restricted Units'!$T$7:$T$399=\"25% AMI\"))","v":0},{"$f":"SUMPRODUCT(('2. Assisted & Restricted Units'!$E$7:$E$399=\"2\")*('2. Assisted & Restricted Units'!$S$7:$S$399=\"NonAssisted\")*('2. Assisted & Restricted Units'!$T$7:$T$399=\"25% AMI\"))","v":0},{"$f":"SUMPRODUCT(('2. Assisted & Restricted Units'!$E$7:$E$399=\"2\")*('2. Assisted & Restricted Units'!$S$7:$S$399=\"Other Restr\")*('2. Assisted & Restricted Units'!$T$7:$T$399=\"25% AMI\"))","v":0},{"$f":"SUMPRODUCT(('2. Assisted & Restricted Units'!$E$7:$E$399=\"2\")*('2. Assisted & Restricted Units'!$S$7:$S$399=\"RHCP-B\")*('2. Assisted & Restricted Units'!$T$7:$T$399=\"25% AMI\"))","v":0},{"$f":"SUMPRODUCT(('2. Assisted & Restricted Units'!$E$7:$E$399=\"2\")*('2. Assisted & Restricted Units'!$S$7:$S$399=\"SERA\")*('2. Assisted & Restricted Units'!$T$7:$T$399=\"25% AMI\"))","v":0},{"$f":"SUMPRODUCT(('2. Assisted & Restricted Units'!$E$7:$E$399=\"2\")*('2. Assisted & Restricted Units'!$S$7:$S$399=\"SUHRP\")*('2. Assisted & Restricted Units'!$T$7:$T$399=\"25% AMI\"))","v":0},{"$f":"SUMPRODUCT(('2. Assisted & Restricted Units'!$E$7:$E$399=\"2\")*('2. Assisted & Restricted Units'!$S$7:$S$399=\"TOD\")*('2. Assisted & Restricted Units'!$T$7:$T$399=\"25% AMI\"))","v":0},{"$f":"SUMPRODUCT(('2. Assisted & Restricted Units'!$E$7:$E$399=\"2\")*('2. Assisted & Restricted Units'!$S$7:$S$399=\"707-E\")*('2. Assisted & Restricted Units'!$T$7:$T$399=\"25% AMI\"))","v":0},{"$f":"SUMPRODUCT(('2. Assisted & Restricted Units'!$E$7:$E$399=\"2\")*('2. Assisted & Restricted Units'!$S$7:$S$399=\"707-N\")*('2. Assisted & Restricted Units'!$T$7:$T$399=\"25% AMI\"))","v":0}]
["2 Bedroom 30% AMI",{"$f":"SUMPRODUCT(('2. Assisted & Restricted Units'!$E$7:$E$399=\"2\")*('2. Assisted & Restricted Units'!$S$7:$S$399=\"CALDAP\")*('2. Assisted & Restricted Units'!$T$7:$T$399=\"30% AMI\"))","v":0},{"$f":"SUMPRODUCT(('2. Assisted & Restricted Units'!$E$7:$E$399=\"2\")*('2. Assisted & Restricted Units'!$S$7:$S$399=\"CHRP-R\")*('2. Assisted & Restricted Units'!$T$7:$T$399=\"30% AMI\"))","v":0},{"$f":"SUMPRODUCT(('2. Assisted & Restricted Units'!$E$7:$E$399=\"2\")*('2. Assisted & Restricted Units'!$S$7:$S$399=\"DDS\")*('2. Assisted & Restricted Units'!$T$7:$T$399=\"30% AMI\"))","v":0},{"$f":"SUMPRODUCT(('2. Assisted & Restricted Units'!$E$7:$E$399=\"2\")*('2. Assisted & Restricted Units'!$S$7:$S$399=\"DPRLP\")*('2. Assisted & Restricted Units'!$T$7:$T$399=\"30% AMI\"))","v":0},{"$f":"SUMPRODUCT(('2. Assisted & Restricted Units'!$E$7:$E$399=\"2\")*('2. Assisted & Restricted Units'!$S$7:$S$399=\"FHDP\")*('2. Assisted & Restricted Units'!$T$7:$T$399=\"30% AMI\"))","v":0},{"$f":"SUMPRODUCT(('2. Assisted & Restricted Units'!$E$7:$E$399=\"2\")*('2. Assisted & Restricted Units'!$S$7:$S$399=\"FMTW\")*('2. Assisted & Restricted Units'!$T$7:$T$399=\"30% AMI\"))","v":0},null,{"$f":"SUMPRODUCT(('2. Assisted & Restricted Units'!$E$7:$E$399=\"2\")*('2. Assisted & Restricted Units'!$S$7:$S$399=\"HOME\")*('2. Assisted & Restricted Units'!$T$7:$T$399=\"30% AMI\"))","v":0},{"$f":"SUMPRODUCT(('2. Assisted & Restricted Units'!$E$7:$E$399=\"2\")*('2. Assisted & Restricted Units'!$S$7:$S$399=\"Market Rate\")*('2. Assisted & Restricted Units'!$T$7:$T$399=\"30% AMI\"))","v":0},{"$f":"SUMPRODUCT(('2. Assisted & Restricted Units'!$E$7:$E$399=\"2\")*('2. Assisted & Restricted Units'!$S$7:$S$399=\"MHP\")*('2. Assisted & Restricted Units'!$T$7:$T$399=\"30% AMI\"))","v":0},{"$f":"SUMPRODUCT(('2. Assisted & Restricted Units'!$E$7:$E$399=\"2\")*('2. Assisted & Restricted Units'!$S$7:$S$399=\"NonAssisted\")*('2. Assisted & Restricted Units'!$T$7:$T$399=\"30% AMI\"))","v":0},{"$f":"SUMPRODUCT(('2. Assisted & Restricted Units'!$E$7:$E$399=\"2\")*('2. Assisted & Restricted Units'!$S$7:$S$399=\"Other Restr\")*('2. Assisted & Restricted Units'!$T$7:$T$399=\"30% AMI\"))","v":0},{"$f":"SUMPRODUCT(('2. Assisted & Restricted Units'!$E$7:$E$399=\"2\")*('2. Assisted & Restricted Units'!$S$7:$S$399=\"RHCP-B\")*('2. Assisted & Restricted Units'!$T$7:$T$399=\"30% AMI\"))","v":0},{"$f":"SUMPRODUCT(('2. Assisted & Restricted Units'!$E$7:$E$399=\"2\")*('2. Assisted & Restricted Units'!$S$7:$S$399=\"SERA\")*('2. Assisted & Restricted Units'!$T$7:$T$399=\"30% AMI\"))","v":0},{"$f":"SUMPRODUCT(('2. Assisted & Restricted Units'!$E$7:$E$399=\"2\")*('2. Assisted & Restricted Units'!$S$7:$S$399=\"SUHRP\")*('2. Assisted & Restricted Units'!$T$7:$T$399=\"30% AMI\"))","v":0},{"$f":"SUMPRODUCT(('2. Assisted & Restricted Units'!$E$7:$E$399=\"2\")*('2. Assisted & Restricted Units'!$S$7:$S$399=\"TOD\")*('2. Assisted & Restricted Units'!$T$7:$T$399=\"30% AMI\"))","v":0},{"$f":"SUMPRODUCT(('2. Assisted & Restricted Units'!$E$7:$E$399=\"2\")*('2. Assisted & Restricted Units'!$S$7:$S$399=\"707-E\")*('2. Assisted & Restricted Units'!$T$7:$T$399=\"30% AMI\"))","v":0},{"$f":"SUMPRODUCT(('2. Assisted & Restricted Units'!$E$7:$E$399=\"2\")*('2. Assisted & Restricted Units'!$S$7:$S$399=\"707-N\")*('2. Assisted & Restricted Units'!$T$7:$T$399=\"30% AMI\"))","v":0}]
["2 Bedroom 35% AMI",{"$f":"SUMPRODUCT(('2. Assisted & Restricted Units'!$E$7:$E$399=\"2\")*('2. Assisted & Restricted Units'!$S$7:$S$399=\"CALDAP\")*('2. Assisted & Restricted Units'!$T$7:$T$399=\"35% AMI\"))","v":0},{"$f":"SUMPRODUCT(('2. Assisted & Restricted Units'!$E$7:$E$399=\"2\")*('2. Assisted & Restricted Units'!$S$7:$S$399=\"CHRP-R\")*('2. Assisted & Restricted Units'!$T$7:$T$399=\"35% AMI\"))","v":0},{"$f":"SUMPRODUCT(('2. Assisted & Restricted Units'!$E$7:$E$399=\"2\")*('2. Assisted & Restricted Units'!$S$7:$S$399=\"DDS\")*('2. Assisted & Restricted Units'!$T$7:$T$399=\"35% AMI\"))","v":0},{"$f":"SUMPRODUCT(('2. Assisted & Restricted Units'!$E$7:$E$399=\"2\")*('2. Assisted & Restricted Units'!$S$7:$S$399=\"DPRLP\")*('2. Assisted & Restricted Units'!$T$7:$T$399=\"35% AMI\"))","v":0},{"$f":"SUMPRODUCT(('2. Assisted & Restricted Units'!$E$7:$E$399=\"2\")*('2. Assisted & Restricted Units'!$S$7:$S$399=\"FHDP\")*('2. Assisted & Restricted Units'!$T$7:$T$399=\"35% AMI\"))","v":0},{"$f":"SUMPRODUCT(('2. Assisted & Restricted Units'!$E$7:$E$399=\"2\")*('2. Assisted & Restricted Units'!$S$7:$S$399=\"FMTW\")*('2. Assisted & Restricted Units'!$T$7:$T$399=\"35% AMI\"))","v":0},null,{"$f":"SUMPRODUCT(('2. Assisted & Restricted Units'!$E$7:$E$399=\"2\")*('2. Assisted & Restricted Units'!$S$7:$S$399=\"HOME\")*('2. Assisted & Restricted Units'!$T$7:$T$399=\"35% AMI\"))","v":0},{"$f":"SUMPRODUCT(('2. Assisted & Restricted Units'!$E$7:$E$399=\"2\")*('2. Assisted & Restricted Units'!$S$7:$S$399=\"Market Rate\")*('2. Assisted & Restricted Units'!$T$7:$T$399=\"35% AMI\"))","v":0},{"$f":"SUMPRODUCT(('2. Assisted & Restricted Units'!$E$7:$E$399=\"2\")*('2. Assisted & Restricted Units'!$S$7:$S$399=\"MHP\")*('2. Assisted & Restricted Units'!$T$7:$T$399=\"35% AMI\"))","v":0},{"$f":"SUMPRODUCT(('2. Assisted & Restricted Units'!$E$7:$E$399=\"2\")*('2. Assisted & Restricted Units'!$S$7:$S$399=\"NonAssisted\")*('2. Assisted & Restricted Units'!$T$7:$T$399=\"35% AMI\"))","v":0},{"$f":"SUMPRODUCT(('2. Assisted & Restricted Units'!$E$7:$E$399=\"2\")*('2. Assisted & Restricted Units'!$S$7:$S$399=\"Other Restr\")*('2. Assisted & Restricted Units'!$T$7:$T$399=\"35% AMI\"))","v":0},{"$f":"SUMPRODUCT(('2. Assisted & Restricted Units'!$E$7:$E$399=\"2\")*('2. Assisted & Restricted Units'!$S$7:$S$399=\"RHCP-B\")*('2. Assisted & Restricted Units'!$T$7:$T$399=\"35% AMI\"))","v":0},{"$f":"SUMPRODUCT(('2. Assisted & Restricted Units'!$E$7:$E$399=\"2\")*('2. Assisted & Restricted Units'!$S$7:$S$399=\"SERA\")*('2. Assisted & Restricted Units'!$T$7:$T$399=\"35% AMI\"))","v":0},{"$f":"SUMPRODUCT(('2. Assisted & Restricted Units'!$E$7:$E$399=\"2\")*('2. Assisted & Restricted Units'!$S$7:$S$399=\"SUHRP\")*('2. Assisted & Restricted Units'!$T$7:$T$399=\"35% AMI\"))","v":0},{"$f":"SUMPRODUCT(('2. Assisted & Restricted Units'!$E$7:$E$399=\"2\")*('2. Assisted & Restricted Units'!$S$7:$S$399=\"TOD\")*('2. Assisted & Restricted Units'!$T$7:$T$399=\"35% AMI\"))","v":0},{"$f":"SUMPRODUCT(('2. Assisted & Restricted Units'!$E$7:$E$399=\"2\")*('2. Assisted & Restricted Units'!$S$7:$S$399=\"707-E\")*('2. Assisted & Restricted Units'!$T$7:$T$399=\"35% AMI\"))","v":0},{"$f":"SUMPRODUCT(('2. Assisted & Restricted Units'!$E$7:$E$399=\"2\")*('2. Assisted & Restricted Units'!$S$7:$S$399=\"707-N\")*('2. Assisted & Restricted Units'!$T$7:$T$399=\"35% AMI\"))","v":0}]
["2 Bedroom 40% AMI",{"$f":"SUMPRODUCT(('2. Assisted & Restricted Units'!$E$7:$E$399=\"2\")*('2. Assisted & Restricted Units'!$S$7:$S$399=\"CALDAP\")*('2. Assisted & Restricted Units'!$T$7:$T$399=\"40% AMI\"))","v":0},{"$f":"SUMPRODUCT(('2. Assisted & Restricted Units'!$E$7:$E$399=\"2\")*('2. Assisted & Restricted Units'!$S$7:$S$399=\"CHRP-R\")*('2. Assisted & Restricted Units'!$T$7:$T$399=\"40% AMI\"))","v":0},{"$f":"SUMPRODUCT(('2. Assisted & Restricted Units'!$E$7:$E$399=\"2\")*('2. Assisted & Restricted Units'!$S$7:$S$399=\"DDS\")*('2. Assisted & Restricted Units'!$T$7:$T$399=\"40% AMI\"))","v":0},{"$f":"SUMPRODUCT(('2. Assisted & Restricted Units'!$E$7:$E$399=\"2\")*('2. Assisted & Restricted Units'!$S$7:$S$399=\"DPRLP\")*('2. Assisted & Restricted Units'!$T$7:$T$399=\"40% AMI\"))","v":0},{"$f":"SUMPRODUCT(('2. Assisted & Restricted Units'!$E$7:$E$399=\"2\")*('2. Assisted & Restricted Units'!$S$7:$S$399=\"FHDP\")*('2. Assisted & Restricted Units'!$T$7:$T$399=\"40% AMI\"))","v":0},{"$f":"SUMPRODUCT(('2. Assisted & Restricted Units'!$E$7:$E$399=\"2\")*('2. Assisted & Restricted Units'!$S$7:$S$399=\"FMTW\")*('2. Assisted & Restricted Units'!$T$7:$T$399=\"40% AMI\"))","v":0},null,{"$f":"SUMPRODUCT(('2. Assisted & Restricted Units'!$E$7:$E$399=\"2\")*('2. Assisted & Restricted Units'!$S$7:$S$399=\"HOME\")*('2. Assisted & Restricted Units'!$T$7:$T$399=\"40% AMI\"))","v":0},{"$f":"SUMPRODUCT(('2. Assisted & Restricted Units'!$E$7:$E$399=\"2\")*('2. Assisted & Restricted Units'!$S$7:$S$399=\"Market Rate\")*('2. Assisted & Restricted Units'!$T$7:$T$399=\"40% AMI\"))","v":0},{"$f":"SUMPRODUCT(('2. Assisted & Restricted Units'!$E$7:$E$399=\"2\")*('2. Assisted & Restricted Units'!$S$7:$S$399=\"MHP\")*('2. Assisted & Restricted Units'!$T$7:$T$399=\"40% AMI\"))","v":0},{"$f":"SUMPRODUCT(('2. Assisted & Restricted Units'!$E$7:$E$399=\"2\")*('2. Assisted & Restricted Units'!$S$7:$S$399=\"NonAssisted\")*('2. Assisted & Restricted Units'!$T$7:$T$399=\"40% AMI\"))","v":0},{"$f":"SUMPRODUCT(('2. Assisted & Restricted Units'!$E$7:$E$399=\"2\")*('2. Assisted & Restricted Units'!$S$7:$S$399=\"Other Restr\")*('2. Assisted & Restricted Units'!$T$7:$T$399=\"40% AMI\"))","v":0},{"$f":"SUMPRODUCT(('2. Assisted & Restricted Units'!$E$7:$E$399=\"2\")*('2. Assisted & Restricted Units'!$S$7:$S$399=\"RHCP-B\")*('2. Assisted & Restricted Units'!$T$7:$T$399=\"40% AMI\"))","v":0},{"$f":"SUMPRODUCT(('2. Assisted & Restricted Units'!$E$7:$E$399=\"2\")*('2. Assisted & Restricted Units'!$S$7:$S$399=\"SERA\")*('2. Assisted & Restricted Units'!$T$7:$T$399=\"40% AMI\"))","v":0},{"$f":"SUMPRODUCT(('2. Assisted & Restricted Units'!$E$7:$E$399=\"2\")*('2. Assisted & Restricted Units'!$S$7:$S$399=\"SUHRP\")*('2. Assisted & Restricted Units'!$T$7:$T$399=\"40% AMI\"))","v":0},{"$f":"SUMPRODUCT(('2. Assisted & Restricted Units'!$E$7:$E$399=\"2\")*('2. Assisted & Restricted Units'!$S$7:$S$399=\"TOD\")*('2. Assisted & Restricted Units'!$T$7:$T$399=\"40% AMI\"))","v":0},{"$f":"SUMPRODUCT(('2. Assisted & Restricted Units'!$E$7:$E$399=\"2\")*('2. Assisted & Restricted Units'!$S$7:$S$399=\"707-E\")*('2. Assisted & Restricted Units'!$T$7:$T$399=\"40% AMI\"))","v":0},{"$f":"SUMPRODUCT(('2. Assisted & Restricted Units'!$E$7:$E$399=\"2\")*('2. Assisted & Restricted Units'!$S$7:$S$399=\"707-N\")*('2. Assisted & Restricted Units'!$T$7:$T$399=\"40% AMI\"))","v":0}]
["2 Bedroom 45% AMI",{"$f":"SUMPRODUCT(('2. Assisted & Restricted Units'!$E$7:$E$399=\"2\")*('2. Assisted & Restricted Units'!$S$7:$S$399=\"CALDAP\")*('2. Assisted & Restricted Units'!$T$7:$T$399=\"45% AMI\"))","v":0},{"$f":"SUMPRODUCT(('2. Assisted & Restricted Units'!$E$7:$E$399=\"2\")*('2. Assisted & Restricted Units'!$S$7:$S$399=\"CHRP-R\")*('2. Assisted & Restricted Units'!$T$7:$T$399=\"45% AMI\"))","v":0},{"$f":"SUMPRODUCT(('2. Assisted & Restricted Units'!$E$7:$E$399=\"2\")*('2. Assisted & Restricted Units'!$S$7:$S$399=\"DDS\")*('2. Assisted & Restricted Units'!$T$7:$T$399=\"45% AMI\"))","v":0},{"$f":"SUMPRODUCT(('2. Assisted & Restricted Units'!$E$7:$E$399=\"2\")*('2. Assisted & Restricted Units'!$S$7:$S$399=\"DPRLP\")*('2. Assisted & Restricted Units'!$T$7:$T$399=\"45% AMI\"))","v":0},{"$f":"SUMPRODUCT(('2. Assisted & Restricted Units'!$E$7:$E$399=\"2\")*('2. Assisted & Restricted Units'!$S$7:$S$399=\"FHDP\")*('2. Assisted & Restricted Units'!$T$7:$T$399=\"45% AMI\"))","v":0},{"$f":"SUMPRODUCT(('2. Assisted & Restricted Units'!$E$7:$E$399=\"2\")*('2. Assisted & Restricted Units'!$S$7:$S$399=\"FMTW\")*('2. Assisted & Restricted Units'!$T$7:$T$399=\"45% AMI\"))","v":0},null,{"$f":"SUMPRODUCT(('2. Assisted & Restricted Units'!$E$7:$E$399=\"2\")*('2. Assisted & Restricted Units'!$S$7:$S$399=\"HOME\")*('2. Assisted & Restricted Units'!$T$7:$T$399=\"45% AMI\"))","v":0},{"$f":"SUMPRODUCT(('2. Assisted & Restricted Units'!$E$7:$E$399=\"2\")*('2. Assisted & Restricted Units'!$S$7:$S$399=\"Market Rate\")*('2. Assisted & Restricted Units'!$T$7:$T$399=\"45% AMI\"))","v":0},{"$f":"SUMPRODUCT(('2. Assisted & Restricted Units'!$E$7:$E$399=\"2\")*('2. Assisted & Restricted Units'!$S$7:$S$399=\"MHP\")*('2. Assisted & Restricted Units'!$T$7:$T$399=\"45% AMI\"))","v":0},{"$f":"SUMPRODUCT(('2. Assisted & Restricted Units'!$E$7:$E$399=\"2\")*('2. Assisted & Restricted Units'!$S$7:$S$399=\"NonAssisted\")*('2. Assisted & Restricted Units'!$T$7:$T$399=\"45% AMI\"))","v":0},{"$f":"SUMPRODUCT(('2. Assisted & Restricted Units'!$E$7:$E$399=\"2\")*('2. Assisted & Restricted Units'!$S$7:$S$399=\"Other Restr\")*('2. Assisted & Restricted Units'!$T$7:$T$399=\"45% AMI\"))","v":0},{"$f":"SUMPRODUCT(('2. Assisted & Restricted Units'!$E$7:$E$399=\"2\")*('2. Assisted & Restricted Units'!$S$7:$S$399=\"RHCP-B\")*('2. Assisted & Restricted Units'!$T$7:$T$399=\"45% AMI\"))","v":0},{"$f":"SUMPRODUCT(('2. Assisted & Restricted Units'!$E$7:$E$399=\"2\")*('2. Assisted & Restricted Units'!$S$7:$S$399=\"SERA\")*('2. Assisted & Restricted Units'!$T$7:$T$399=\"45% AMI\"))","v":0},{"$f":"SUMPRODUCT(('2. Assisted & Restricted Units'!$E$7:$E$399=\"2\")*('2. Assisted & Restricted Units'!$S$7:$S$399=\"SUHRP\")*('2. Assisted & Restricted Units'!$T$7:$T$399=\"45% AMI\"))","v":0},{"$f":"SUMPRODUCT(('2. Assisted & Restricted Units'!$E$7:$E$399=\"2\")*('2. Assisted & Restricted Units'!$S$7:$S$399=\"TOD\")*('2. Assisted & Restricted Units'!$T$7:$T$399=\"45% AMI\"))","v":0},{"$f":"SUMPRODUCT(('2. Assisted & Restricted Units'!$E$7:$E$399=\"2\")*('2. Assisted & Restricted Units'!$S$7:$S$399=\"707-E\")*('2. Assisted & Restricted Units'!$T$7:$T$399=\"45% AMI\"))","v":0},{"$f":"SUMPRODUCT(('2. Assisted & Restricted Units'!$E$7:$E$399=\"2\")*('2. Assisted & Restricted Units'!$S$7:$S$399=\"707-N\")*('2. Assisted & Restricted Units'!$T$7:$T$399=\"45% AMI\"))","v":0}]
["2 Bedroom 50% AMI",{"$f":"SUMPRODUCT(('2. Assisted & Restricted Units'!$E$7:$E$399=\"2\")*('2. Assisted & Restricted Units'!$S$7:$S$399=\"CALDAP\")*('2. Assisted & Restricted Units'!$T$7:$T$399=\"50% AMI\"))","v":0},{"$f":"SUMPRODUCT(('2. Assisted & Restricted Units'!$E$7:$E$399=\"2\")*('2. Assisted & Restricted Units'!$S$7:$S$399=\"CHRP-R\")*('2. Assisted & Restricted Units'!$T$7:$T$399=\"50% AMI\"))","v":0},{"$f":"SUMPRODUCT(('2. Assisted & Restricted Units'!$E$7:$E$399=\"2\")*('2. Assisted & Restricted Units'!$S$7:$S$399=\"DDS\")*('2. Assisted & Restricted Units'!$T$7:$T$399=\"50% AMI\"))","v":0},{"$f":"SUMPRODUCT(('2. Assisted & Restricted Units'!$E$7:$E$399=\"2\")*('2. Assisted & Restricted Units'!$S$7:$S$399=\"DPRLP\")*('2. Assisted & Restricted Units'!$T$7:$T$399=\"50% AMI\"))","v":0},{"$f":"SUMPRODUCT(('2. Assisted & Restricted Units'!$E$7:$E$399=\"2\")*('2. Assisted & Restricted Units'!$S$7:$S$399=\"FHDP\")*('2. Assisted & Restricted Units'!$T$7:$T$399=\"50% AMI\"))","v":0},{"$f":"SUMPRODUCT(('2. Assisted & Restricted Units'!$E$7:$E$399=\"2\")*('2. Assisted & Restricted Units'!$S$7:$S$399=\"FMTW\")*('2. Assisted & Restricted Units'!$T$7:$T$399=\"50% AMI\"))","v":0},null,{"$f":"SUMPRODUCT(('2. Assisted & Restricted Units'!$E$7:$E$399=\"2\")*('2. Assisted & Restricted Units'!$S$7:$S$399=\"HOME\")*('2. Assisted & Restricted Units'!$T$7:$T$399=\"50% AMI\"))","v":0},{"$f":"SUMPRODUCT(('2. Assisted & Restricted Units'!$E$7:$E$399=\"2\")*('2. Assisted & Restricted Units'!$S$7:$S$399=\"Market Rate\")*('2. Assisted & Restricted Units'!$T$7:$T$399=\"50% AMI\"))","v":0},{"$f":"SUMPRODUCT(('2. Assisted & Restricted Units'!$E$7:$E$399=\"2\")*('2. Assisted & Restricted Units'!$S$7:$S$399=\"MHP\")*('2. Assisted & Restricted Units'!$T$7:$T$399=\"50% AMI\"))","v":0},{"$f":"SUMPRODUCT(('2. Assisted & Restricted Units'!$E$7:$E$399=\"2\")*('2. Assisted & Restricted Units'!$S$7:$S$399=\"NonAssisted\")*('2. Assisted & Restricted Units'!$T$7:$T$399=\"50% AMI\"))","v":0},{"$f":"SUMPRODUCT(('2. Assisted & Restricted Units'!$E$7:$E$399=\"2\")*('2. Assisted & Restricted Units'!$S$7:$S$399=\"Other Restr\")*('2. Assisted & Restricted Units'!$T$7:$T$399=\"50% AMI\"))","v":0},{"$f":"SUMPRODUCT(('2. Assisted & Restricted Units'!$E$7:$E$399=\"2\")*('2. Assisted & Restricted Units'!$S$7:$S$399=\"RHCP-B\")*('2. Assisted & Restricted Units'!$T$7:$T$399=\"50% AMI\"))","v":0},{"$f":"SUMPRODUCT(('2. Assisted & Restricted Units'!$E$7:$E$399=\"2\")*('2. Assisted & Restricted Units'!$S$7:$S$399=\"SERA\")*('2. Assisted & Restricted Units'!$T$7:$T$399=\"50% AMI\"))","v":0},{"$f":"SUMPRODUCT(('2. Assisted & Restricted Units'!$E$7:$E$399=\"2\")*('2. Assisted & Restricted Units'!$S$7:$S$399=\"SUHRP\")*('2. Assisted & Restricted Units'!$T$7:$T$399=\"50% AMI\"))","v":0},{"$f":"SUMPRODUCT(('2. Assisted & Restricted Units'!$E$7:$E$399=\"2\")*('2. Assisted & Restricted Units'!$S$7:$S$399=\"TOD\")*('2. Assisted & Restricted Units'!$T$7:$T$399=\"50% AMI\"))","v":0},{"$f":"SUMPRODUCT(('2. Assisted & Restricted Units'!$E$7:$E$399=\"2\")*('2. Assisted & Restricted Units'!$S$7:$S$399=\"707-E\")*('2. Assisted & Restricted Units'!$T$7:$T$399=\"50% AMI\"))","v":0},{"$f":"SUMPRODUCT(('2. Assisted & Restricted Units'!$E$7:$E$399=\"2\")*('2. Assisted & Restricted Units'!$S$7:$S$399=\"707-N\")*('2. Assisted & Restricted Units'!$T$7:$T$399=\"50% AMI\"))","v":0}]
["2 Bedroom 55% AMI",{"$f":"SUMPRODUCT(('2. Assisted & Restricted Units'!$E$7:$E$399=\"2\")*('2. Assisted & Restricted Units'!$S$7:$S$399=\"CALDAP\")*('2. Assisted & Restricted Units'!$T$7:$T$399=\"55% AMI\"))","v":0},{"$f":"SUMPRODUCT(('2. Assisted & Restricted Units'!$E$7:$E$399=\"2\")*('2. Assisted & Restricted Units'!$S$7:$S$399=\"CHRP-R\")*('2. Assisted & Restricted Units'!$T$7:$T$399=\"55% AMI\"))","v":0},{"$f":"SUMPRODUCT(('2. Assisted & Restricted Units'!$E$7:$E$399=\"2\")*('2. Assisted & Restricted Units'!$S$7:$S$399=\"DDS\")*('2. Assisted & Restricted Units'!$T$7:$T$399=\"55% AMI\"))","v":0},{"$f":"SUMPRODUCT(('2. Assisted & Restricted Units'!$E$7:$E$399=\"2\")*('2. Assisted & Restricted Units'!$S$7:$S$399=\"DPRLP\")*('2. Assisted & Restricted Units'!$T$7:$T$399=\"55% AMI\"))","v":0},{"$f":"SUMPRODUCT(('2. Assisted & Restricted Units'!$E$7:$E$399=\"2\")*('2. Assisted & Restricted Units'!$S$7:$S$399=\"FHDP\")*('2. Assisted & Restricted Units'!$T$7:$T$399=\"55% AMI\"))","v":0},{"$f":"SUMPRODUCT(('2. Assisted & Restricted Units'!$E$7:$E$399=\"2\")*('2. Assisted & Restricted Units'!$S$7:$S$399=\"FMTW\")*('2. Assisted & Restricted Units'!$T$7:$T$399=\"55% AMI\"))","v":0},null,{"$f":"SUMPRODUCT(('2. Assisted & Restricted Units'!$E$7:$E$399=\"2\")*('2. Assisted & Restricted Units'!$S$7:$S$399=\"HOME\")*('2. Assisted & Restricted Units'!$T$7:$T$399=\"55% AMI\"))","v":0},{"$f":"SUMPRODUCT(('2. Assisted & Restricted Units'!$E$7:$E$399=\"2\")*('2. Assisted & Restricted Units'!$S$7:$S$399=\"Market Rate\")*('2. Assisted & Restricted Units'!$T$7:$T$399=\"55% AMI\"))","v":0},{"$f":"SUMPRODUCT(('2. Assisted & Restricted Units'!$E$7:$E$399=\"2\")*('2. Assisted & Restricted Units'!$S$7:$S$399=\"MHP\")*('2. Assisted & Restricted Units'!$T$7:$T$399=\"55% AMI\"))","v":0},{"$f":"SUMPRODUCT(('2. Assisted & Restricted Units'!$E$7:$E$399=\"2\")*('2. Assisted & Restricted Units'!$S$7:$S$399=\"NonAssisted\")*('2. Assisted & Restricted Units'!$T$7:$T$399=\"55% AMI\"))","v":0},{"$f":"SUMPRODUCT(('2. Assisted & Restricted Units'!$E$7:$E$399=\"2\")*('2. Assisted & Restricted Units'!$S$7:$S$399=\"Other Restr\")*('2. Assisted & Restricted Units'!$T$7:$T$399=\"55% AMI\"))","v":0},{"$f":"SUMPRODUCT(('2. Assisted & Restricted Units'!$E$7:$E$399=\"2\")*('2. Assisted & Restricted Units'!$S$7:$S$399=\"RHCP-B\")*('2. Assisted & Restricted Units'!$T$7:$T$399=\"55% AMI\"))","v":0},{"$f":"SUMPRODUCT(('2. Assisted & Restricted Units'!$E$7:$E$399=\"2\")*('2. Assisted & Restricted Units'!$S$7:$S$399=\"SERA\")*('2. Assisted & Restricted Units'!$T$7:$T$399=\"55% AMI\"))","v":0},{"$f":"SUMPRODUCT(('2. Assisted & Restricted Units'!$E$7:$E$399=\"2\")*('2. Assisted & Restricted Units'!$S$7:$S$399=\"SUHRP\")*('2. Assisted & Restricted Units'!$T$7:$T$399=\"55% AMI\"))","v":0},{"$f":"SUMPRODUCT(('2. Assisted & Restricted Units'!$E$7:$E$399=\"2\")*('2. Assisted & Restricted Units'!$S$7:$S$399=\"TOD\")*('2. Assisted & Restricted Units'!$T$7:$T$399=\"55% AMI\"))","v":0},{"$f":"SUMPRODUCT(('2. Assisted & Restricted Units'!$E$7:$E$399=\"2\")*('2. Assisted & Restricted Units'!$S$7:$S$399=\"707-E\")*('2. Assisted & Restricted Units'!$T$7:$T$399=\"55% AMI\"))","v":0},{"$f":"SUMPRODUCT(('2. Assisted & Restricted Units'!$E$7:$E$399=\"2\")*('2. Assisted & Restricted Units'!$S$7:$S$399=\"707-N\")*('2. Assisted & Restricted Units'!$T$7:$T$399=\"55% AMI\"))","v":0}]
["2 Bedroom 60% AMI",{"$f":"SUMPRODUCT(('2. Assisted & Restricted Units'!$E$7:$E$399=\"2\")*('2. Assisted & Restricted Units'!$S$7:$S$399=\"CALDAP\")*('2. Assisted & Restricted Units'!$T$7:$T$399=\"60% AMI\"))","v":0},{"$f":"SUMPRODUCT(('2. Assisted & Restricted Units'!$E$7:$E$399=\"2\")*('2. Assisted & Restricted Units'!$S$7:$S$399=\"CHRP-R\")*('2. Assisted & Restricted Units'!$T$7:$T$399=\"60% AMI\"))","v":0},{"$f":"SUMPRODUCT(('2. Assisted & Restricted Units'!$E$7:$E$399=\"2\")*('2. Assisted & Restricted Units'!$S$7:$S$399=\"DDS\")*('2. Assisted & Restricted Units'!$T$7:$T$399=\"60% AMI\"))","v":0},{"$f":"SUMPRODUCT(('2. Assisted & Restricted Units'!$E$7:$E$399=\"2\")*('2. Assisted & Restricted Units'!$S$7:$S$399=\"DPRLP\")*('2. Assisted & Restricted Units'!$T$7:$T$399=\"60% AMI\"))","v":0},{"$f":"SUMPRODUCT(('2. Assisted & Restricted Units'!$E$7:$E$399=\"2\")*('2. Assisted & Restricted Units'!$S$7:$S$399=\"FHDP\")*('2. Assisted & Restricted Units'!$T$7:$T$399=\"60% AMI\"))","v":0},{"$f":"SUMPRODUCT(('2. Assisted & Restricted Units'!$E$7:$E$399=\"2\")*('2. Assisted & Restricted Units'!$S$7:$S$399=\"FMTW\")*('2. Assisted & Restricted Units'!$T$7:$T$399=\"60% AMI\"))","v":0},null,{"$f":"SUMPRODUCT(('2. Assisted & Restricted Units'!$E$7:$E$399=\"2\")*('2. Assisted & Restricted Units'!$S$7:$S$399=\"HOME\")*('2. Assisted & Restricted Units'!$T$7:$T$399=\"60% AMI\"))","v":0},{"$f":"SUMPRODUCT(('2. Assisted & Restricted Units'!$E$7:$E$399=\"2\")*('2. Assisted & Restricted Units'!$S$7:$S$399=\"Market Rate\")*('2. Assisted & Restricted Units'!$T$7:$T$399=\"60% AMI\"))","v":0},{"$f":"SUMPRODUCT(('2. Assisted & Restricted Units'!$E$7:$E$399=\"2\")*('2. Assisted & Restricted Units'!$S$7:$S$399=\"MHP\")*('2. Assisted & Restricted Units'!$T$7:$T$399=\"60% AMI\"))","v":0},{"$f":"SUMPRODUCT(('2. Assisted & Restricted Units'!$E$7:$E$399=\"2\")*('2. Assisted & Restricted Units'!$S$7:$S$399=\"NonAssisted\")*('2. Assisted & Restricted Units'!$T$7:$T$399=\"60% AMI\"))","v":0},{"$f":"SUMPRODUCT(('2. Assisted & Restricted Units'!$E$7:$E$399=\"2\")*('2. Assisted & Restricted Units'!$S$7:$S$399=\"Other Restr\")*('2. Assisted & Restricted Units'!$T$7:$T$399=\"60% AMI\"))","v":0},{"$f":"SUMPRODUCT(('2. Assisted & Restricted Units'!$E$7:$E$399=\"2\")*('2. Assisted & Restricted Units'!$S$7:$S$399=\"RHCP-B\")*('2. Assisted & Restricted Units'!$T$7:$T$399=\"60% AMI\"))","v":0},{"$f":"SUMPRODUCT(('2. Assisted & Restricted Units'!$E$7:$E$399=\"2\")*('2. Assisted & Restricted Units'!$S$7:$S$399=\"SERA\")*('2. Assisted & Restricted Units'!$T$7:$T$399=\"60% AMI\"))","v":0},{"$f":"SUMPRODUCT(('2. Assisted & Restricted Units'!$E$7:$E$399=\"2\")*('2. Assisted & Restricted Units'!$S$7:$S$399=\"SUHRP\")*('2. Assisted & Restricted Units'!$T$7:$T$399=\"60% AMI\"))","v":0},{"$f":"SUMPRODUCT(('2. Assisted & Restricted Units'!$E$7:$E$399=\"2\")*('2. Assisted & Restricted Units'!$S$7:$S$399=\"TOD\")*('2. Assisted & Restricted Units'!$T$7:$T$399=\"60% AMI\"))","v":0},{"$f":"SUMPRODUCT(('2. Assisted & Restricted Units'!$E$7:$E$399=\"2\")*('2. Assisted & Restricted Units'!$S$7:$S$399=\"707-E\")*('2. Assisted & Restricted Units'!$T$7:$T$399=\"60% AMI\"))","v":0},{"$f":"SUMPRODUCT(('2. Assisted & Restricted Units'!$E$7:$E$399=\"2\")*('2. Assisted & Restricted Units'!$S$7:$S$399=\"707-N\")*('2. Assisted & Restricted Units'!$T$7:$T$399=\"60% AMI\"))","v":0}]
["2 Bedroom 80% AMI",{"$f":"SUMPRODUCT(('2. Assisted & Restricted Units'!$E$7:$E$399=\"2\")*('2. Assisted & Restricted Units'!$S$7:$S$399=\"CALDAP\")*('2. Assisted & Restricted Units'!$T$7:$T$399=\"80% AMI\"))","v":0},{"$f":"SUMPRODUCT(('2. Assisted & Restricted Units'!$E$7:$E$399=\"2\")*('2. Assisted & Restricted Units'!$S$7:$S$399=\"CHRP-R\")*('2. Assisted & Restricted Units'!$T$7:$T$399=\"80% AMI\"))","v":0},{"$f":"SUMPRODUCT(('2. Assisted & Restricted Units'!$E$7:$E$399=\"2\")*('2. Assisted & Restricted Units'!$S$7:$S$399=\"DDS\")*('2. Assisted & Restricted Units'!$T$7:$T$399=\"80% AMI\"))","v":0},{"$f":"SUMPRODUCT(('2. Assisted & Restricted Units'!$E$7:$E$399=\"2\")*('2. Assisted & Restricted Units'!$S$7:$S$399=\"DPRLP\")*('2. Assisted & Restricted Units'!$T$7:$T$399=\"80% AMI\"))","v":0},{"$f":"SUMPRODUCT(('2. Assisted & Restricted Units'!$E$7:$E$399=\"2\")*('2. Assisted & Restricted Units'!$S$7:$S$399=\"FHDP\")*('2. Assisted & Restricted Units'!$T$7:$T$399=\"80% AMI\"))","v":0},{"$f":"SUMPRODUCT(('2. Assisted & Restricted Units'!$E$7:$E$399=\"2\")*('2. Assisted & Restricted Units'!$S$7:$S$399=\"FMTW\")*('2. Assisted & Restricted Units'!$T$7:$T$399=\"80% AMI\"))","v":0},null,{"$f":"SUMPRODUCT(('2. Assisted & Restricted Units'!$E$7:$E$399=\"2\")*('2. Assisted & Restricted Units'!$S$7:$S$399=\"HOME\")*('2. Assisted & Restricted Units'!$T$7:$T$399=\"80% AMI\"))","v":0},{"$f":"SUMPRODUCT(('2. Assisted & Restricted Units'!$E$7:$E$399=\"2\")*('2. Assisted & Restricted Units'!$S$7:$S$399=\"Market Rate\")*('2. Assisted & Restricted Units'!$T$7:$T$399=\"80% AMI\"))","v":0},{"$f":"SUMPRODUCT(('2. Assisted & Restricted Units'!$E$7:$E$399=\"2\")*('2. Assisted & Restricted Units'!$S$7:$S$399=\"MHP\")*('2. Assisted & Restricted Units'!$T$7:$T$399=\"80% AMI\"))","v":0},{"$f":"SUMPRODUCT(('2. Assisted & Restricted Units'!$E$7:$E$399=\"2\")*('2. Assisted & Restricted Units'!$S$7:$S$399=\"NonAssisted\")*('2. Assisted & Restricted Units'!$T$7:$T$399=\"80% AMI\"))","v":0},{"$f":"SUMPRODUCT(('2. Assisted & Restricted Units'!$E$7:$E$399=\"2\")*('2. Assisted & Restricted Units'!$S$7:$S$399=\"Other Restr\")*('2. Assisted & Restricted Units'!$T$7:$T$399=\"80% AMI\"))","v":0},{"$f":"SUMPRODUCT(('2. Assisted & Restricted Units'!$E$7:$E$399=\"2\")*('2. Assisted & Restricted Units'!$S$7:$S$399=\"RHCP-B\")*('2. Assisted & Restricted Units'!$T$7:$T$399=\"80% AMI\"))","v":0},{"$f":"SUMPRODUCT(('2. Assisted & Restricted Units'!$E$7:$E$399=\"2\")*('2. Assisted & Restricted Units'!$S$7:$S$399=\"SERA\")*('2. Assisted & Restricted Units'!$T$7:$T$399=\"80% AMI\"))","v":0},{"$f":"SUMPRODUCT(('2. Assisted & Restricted Units'!$E$7:$E$399=\"2\")*('2. Assisted & Restricted Units'!$S$7:$S$399=\"SUHRP\")*('2. Assisted & Restricted Units'!$T$7:$T$399=\"80% AMI\"))","v":0},{"$f":"SUMPRODUCT(('2. Assisted & Restricted Units'!$E$7:$E$399=\"2\")*('2. Assisted & Restricted Units'!$S$7:$S$399=\"TOD\")*('2. Assisted & Restricted Units'!$T$7:$T$399=\"80% AMI\"))","v":0},{"$f":"SUMPRODUCT(('2. Assisted & Restricted Units'!$E$7:$E$399=\"2\")*('2. Assisted & Restricted Units'!$S$7:$S$399=\"707-E\")*('2. Assisted & Restricted Units'!$T$7:$T$399=\"80% AMI\"))","v":0},{"$f":"SUMPRODUCT(('2. Assisted & Restricted Units'!$E$7:$E$399=\"2\")*('2. Assisted & Restricted Units'!$S$7:$S$399=\"707-N\")*('2. Assisted & Restricted Units'!$T$7:$T$399=\"80% AMI\"))","v":0}]
["2 Bedroom 20% SMI",{"$f":"SUMPRODUCT(('2. Assisted & Restricted Units'!$E$7:$E$399=\"2\")*('2. Assisted & Restricted Units'!$S$7:$S$399=\"CALDAP\")*('2. Assisted & Restricted Units'!$T$7:$T$399=\"20% SMI\"))","v":0},{"$f":"SUMPRODUCT(('2. Assisted & Restricted Units'!$E$7:$E$399=\"2\")*('2. Assisted & Restricted Units'!$S$7:$S$399=\"CHRP-R\")*('2. Assisted & Restricted Units'!$T$7:$T$399=\"20% SMI\"))","v":0},{"$f":"SUMPRODUCT(('2. Assisted & Restricted Units'!$E$7:$E$399=\"2\")*('2. Assisted & Restricted Units'!$S$7:$S$399=\"DDS\")*('2. Assisted & Restricted Units'!$T$7:$T$399=\"20% SMI\"))","v":0},{"$f":"SUMPRODUCT(('2. Assisted & Restricted Units'!$E$7:$E$399=\"2\")*('2. Assisted & Restricted Units'!$S$7:$S$399=\"DPRLP\")*('2. Assisted & Restricted Units'!$T$7:$T$399=\"20% SMI\"))","v":0},{"$f":"SUMPRODUCT(('2. Assisted & Restricted Units'!$E$7:$E$399=\"2\")*('2. Assisted & Restricted Units'!$S$7:$S$399=\"FHDP\")*('2. Assisted & Restricted Units'!$T$7:$T$399=\"20% SMI\"))","v":0},{"$f":"SUMPRODUCT(('2. Assisted & Restricted Units'!$E$7:$E$399=\"2\")*('2. Assisted & Restricted Units'!$S$7:$S$399=\"FMTW\")*('2. Assisted & Restricted Units'!$T$7:$T$399=\"20% SMI\"))","v":0},null,{"$f":"SUMPRODUCT(('2. Assisted & Restricted Units'!$E$7:$E$399=\"2\")*('2. Assisted & Restricted Units'!$S$7:$S$399=\"HOME\")*('2. Assisted & Restricted Units'!$T$7:$T$399=\"20% SMI\"))","v":0},{"$f":"SUMPRODUCT(('2. Assisted & Restricted Units'!$E$7:$E$399=\"2\")*('2. Assisted & Restricted Units'!$S$7:$S$399=\"Market Rate\")*('2. Assisted & Restricted Units'!$T$7:$T$399=\"20% SMI\"))","v":0},{"$f":"SUMPRODUCT(('2. Assisted & Restricted Units'!$E$7:$E$399=\"2\")*('2. Assisted & Restricted Units'!$S$7:$S$399=\"MHP\")*('2. Assisted & Restricted Units'!$T$7:$T$399=\"20% SMI\"))","v":0},{"$f":"SUMPRODUCT(('2. Assisted & Restricted Units'!$E$7:$E$399=\"2\")*('2. Assisted & Restricted Units'!$S$7:$S$399=\"NonAssisted\")*('2. Assisted & Restricted Units'!$T$7:$T$399=\"20% SMI\"))","v":0},{"$f":"SUMPRODUCT(('2. Assisted & Restricted Units'!$E$7:$E$399=\"2\")*('2. Assisted & Restricted Units'!$S$7:$S$399=\"Other Restr\")*('2. Assisted & Restricted Units'!$T$7:$T$399=\"20% SMI\"))","v":0},{"$f":"SUMPRODUCT(('2. Assisted & Restricted Units'!$E$7:$E$399=\"2\")*('2. Assisted & Restricted Units'!$S$7:$S$399=\"RHCP-B\")*('2. Assisted & Restricted Units'!$T$7:$T$399=\"20% SMI\"))","v":0},{"$f":"SUMPRODUCT(('2. Assisted & Restricted Units'!$E$7:$E$399=\"2\")*('2. Assisted & Restricted Units'!$S$7:$S$399=\"SERA\")*('2. Assisted & Restricted Units'!$T$7:$T$399=\"20% SMI\"))","v":0},{"$f":"SUMPRODUCT(('2. Assisted & Restricted Units'!$E$7:$E$399=\"2\")*('2. Assisted & Restricted Units'!$S$7:$S$399=\"SUHRP\")*('2. Assisted & Restricted Units'!$T$7:$T$399=\"20% SMI\"))","v":0},{"$f":"SUMPRODUCT(('2. Assisted & Restricted Units'!$E$7:$E$399=\"2\")*('2. Assisted & Restricted Units'!$S$7:$S$399=\"TOD\")*('2. Assisted & Restricted Units'!$T$7:$T$399=\"20% SMI\"))","v":0},{"$f":"SUMPRODUCT(('2. Assisted & Restricted Units'!$E$7:$E$399=\"2\")*('2. Assisted & Restricted Units'!$S$7:$S$399=\"707-E\")*('2. Assisted & Restricted Units'!$T$7:$T$399=\"20% SMI\"))","v":0},{"$f":"SUMPRODUCT(('2. Assisted & Restricted Units'!$E$7:$E$399=\"2\")*('2. Assisted & Restricted Units'!$S$7:$S$399=\"707-N\")*('2. Assisted & Restricted Units'!$T$7:$T$399=\"20% SMI\"))","v":0}]
["2 Bedroom 25% SMI",{"$f":"SUMPRODUCT(('2. Assisted & Restricted Units'!$E$7:$E$399=\"2\")*('2. Assisted & Restricted Units'!$S$7:$S$399=\"CALDAP\")*('2. Assisted & Restricted Units'!$T$7:$T$399=\"25% SMI\"))","v":0},{"$f":"SUMPRODUCT(('2. Assisted & Restricted Units'!$E$7:$E$399=\"2\")*('2. Assisted & Restricted Units'!$S$7:$S$399=\"CHRP-R\")*('2. Assisted & Restricted Units'!$T$7:$T$399=\"25% SMI\"))","v":0},{"$f":"SUMPRODUCT(('2. Assisted & Restricted Units'!$E$7:$E$399=\"2\")*('2. Assisted & Restricted Units'!$S$7:$S$399=\"DDS\")*('2. Assisted & Restricted Units'!$T$7:$T$399=\"25% SMI\"))","v":0},{"$f":"SUMPRODUCT(('2. Assisted & Restricted Units'!$E$7:$E$399=\"2\")*('2. Assisted & Restricted Units'!$S$7:$S$399=\"DPRLP\")*('2. Assisted & Restricted Units'!$T$7:$T$399=\"25% SMI\"))","v":0},{"$f":"SUMPRODUCT(('2. Assisted & Restricted Units'!$E$7:$E$399=\"2\")*('2. Assisted & Restricted Units'!$S$7:$S$399=\"FHDP\")*('2. Assisted & Restricted Units'!$T$7:$T$399=\"25% SMI\"))","v":0},{"$f":"SUMPRODUCT(('2. Assisted & Restricted Units'!$E$7:$E$399=\"2\")*('2. Assisted & Restricted Units'!$S$7:$S$399=\"FMTW\")*('2. Assisted & Restricted Units'!$T$7:$T$399=\"25% SMI\"))","v":0},null,{"$f":"SUMPRODUCT(('2. Assisted & Restricted Units'!$E$7:$E$399=\"2\")*('2. Assisted & Restricted Units'!$S$7:$S$399=\"HOME\")*('2. Assisted & Restricted Units'!$T$7:$T$399=\"25% SMI\"))","v":0},{"$f":"SUMPRODUCT(('2. Assisted & Restricted Units'!$E$7:$E$399=\"2\")*('2. Assisted & Restricted Units'!$S$7:$S$399=\"Market Rate\")*('2. Assisted & Restricted Units'!$T$7:$T$399=\"25% SMI\"))","v":0},{"$f":"SUMPRODUCT(('2. Assisted & Restricted Units'!$E$7:$E$399=\"2\")*('2. Assisted & Restricted Units'!$S$7:$S$399=\"MHP\")*('2. Assisted & Restricted Units'!$T$7:$T$399=\"25% SMI\"))","v":0},{"$f":"SUMPRODUCT(('2. Assisted & Restricted Units'!$E$7:$E$399=\"2\")*('2. Assisted & Restricted Units'!$S$7:$S$399=\"NonAssisted\")*('2. Assisted & Restricted Units'!$T$7:$T$399=\"25% SMI\"))","v":0},{"$f":"SUMPRODUCT(('2. Assisted & Restricted Units'!$E$7:$E$399=\"2\")*('2. Assisted & Restricted Units'!$S$7:$S$399=\"Other Restr\")*('2. Assisted & Restricted Units'!$T$7:$T$399=\"25% SMI\"))","v":0},{"$f":"SUMPRODUCT(('2. Assisted & Restricted Units'!$E$7:$E$399=\"2\")*('2. Assisted & Restricted Units'!$S$7:$S$399=\"RHCP-B\")*('2. Assisted & Restricted Units'!$T$7:$T$399=\"25% SMI\"))","v":0},{"$f":"SUMPRODUCT(('2. Assisted & Restricted Units'!$E$7:$E$399=\"2\")*('2. Assisted & Restricted Units'!$S$7:$S$399=\"SERA\")*('2. Assisted & Restricted Units'!$T$7:$T$399=\"25% SMI\"))","v":0},{"$f":"SUMPRODUCT(('2. Assisted & Restricted Units'!$E$7:$E$399=\"2\")*('2. Assisted & Restricted Units'!$S$7:$S$399=\"SUHRP\")*('2. Assisted & Restricted Units'!$T$7:$T$399=\"25% SMI\"))","v":0},{"$f":"SUMPRODUCT(('2. Assisted & Restricted Units'!$E$7:$E$399=\"2\")*('2. Assisted & Restricted Units'!$S$7:$S$399=\"TOD\")*('2. Assisted & Restricted Units'!$T$7:$T$399=\"25% SMI\"))","v":0},{"$f":"SUMPRODUCT(('2. Assisted & Restricted Units'!$E$7:$E$399=\"2\")*('2. Assisted & Restricted Units'!$S$7:$S$399=\"707-E\")*('2. Assisted & Restricted Units'!$T$7:$T$399=\"25% SMI\"))","v":0},{"$f":"SUMPRODUCT(('2. Assisted & Restricted Units'!$E$7:$E$399=\"2\")*('2. Assisted & Restricted Units'!$S$7:$S$399=\"707-N\")*('2. Assisted & Restricted Units'!$T$7:$T$399=\"25% SMI\"))","v":0}]
["2 Bedroom 30% SMI",{"$f":"SUMPRODUCT(('2. Assisted & Restricted Units'!$E$7:$E$399=\"2\")*('2. Assisted & Restricted Units'!$S$7:$S$399=\"CALDAP\")*('2. Assisted & Restricted Units'!$T$7:$T$399=\"30% SMI\"))","v":0},{"$f":"SUMPRODUCT(('2. Assisted & Restricted Units'!$E$7:$E$399=\"2\")*('2. Assisted & Restricted Units'!$S$7:$S$399=\"CHRP-R\")*('2. Assisted & Restricted Units'!$T$7:$T$399=\"30% SMI\"))","v":0},{"$f":"SUMPRODUCT(('2. Assisted & Restricted Units'!$E$7:$E$399=\"2\")*('2. Assisted & Restricted Units'!$S$7:$S$399=\"DDS\")*('2. Assisted & Restricted Units'!$T$7:$T$399=\"30% SMI\"))","v":0},{"$f":"SUMPRODUCT(('2. Assisted & Restricted Units'!$E$7:$E$399=\"2\")*('2. Assisted & Restricted Units'!$S$7:$S$399=\"DPRLP\")*('2. Assisted & Restricted Units'!$T$7:$T$399=\"30% SMI\"))","v":0},{"$f":"SUMPRODUCT(('2. Assisted & Restricted Units'!$E$7:$E$399=\"2\")*('2. Assisted & Restricted Units'!$S$7:$S$399=\"FHDP\")*('2. Assisted & Restricted Units'!$T$7:$T$399=\"30% SMI\"))","v":0},{"$f":"SUMPRODUCT(('2. Assisted & Restricted Units'!$E$7:$E$399=\"2\")*('2. Assisted & Restricted Units'!$S$7:$S$399=\"FMTW\")*('2. Assisted & Restricted Units'!$T$7:$T$399=\"30% SMI\"))","v":0},null,{"$f":"SUMPRODUCT(('2. Assisted & Restricted Units'!$E$7:$E$399=\"2\")*('2. Assisted & Restricted Units'!$S$7:$S$399=\"HOME\")*('2. Assisted & Restricted Units'!$T$7:$T$399=\"30% SMI\"))","v":0},{"$f":"SUMPRODUCT(('2. Assisted & Restricted Units'!$E$7:$E$399=\"2\")*('2. Assisted & Restricted Units'!$S$7:$S$399=\"Market Rate\")*('2. Assisted & Restricted Units'!$T$7:$T$399=\"30% SMI\"))","v":0},{"$f":"SUMPRODUCT(('2. Assisted & Restricted Units'!$E$7:$E$399=\"2\")*('2. Assisted & Restricted Units'!$S$7:$S$399=\"MHP\")*('2. Assisted & Restricted Units'!$T$7:$T$399=\"30% SMI\"))","v":0},{"$f":"SUMPRODUCT(('2. Assisted & Restricted Units'!$E$7:$E$399=\"2\")*('2. Assisted & Restricted Units'!$S$7:$S$399=\"NonAssisted\")*('2. Assisted & Restricted Units'!$T$7:$T$399=\"30% SMI\"))","v":0},{"$f":"SUMPRODUCT(('2. Assisted & Restricted Units'!$E$7:$E$399=\"2\")*('2. Assisted & Restricted Units'!$S$7:$S$399=\"Other Restr\")*('2. Assisted & Restricted Units'!$T$7:$T$399=\"30% SMI\"))","v":0},{"$f":"SUMPRODUCT(('2. Assisted & Restricted Units'!$E$7:$E$399=\"2\")*('2. Assisted & Restricted Units'!$S$7:$S$399=\"RHCP-B\")*('2. Assisted & Restricted Units'!$T$7:$T$399=\"30% SMI\"))","v":0},{"$f":"SUMPRODUCT(('2. Assisted & Restricted Units'!$E$7:$E$399=\"2\")*('2. Assisted & Restricted Units'!$S$7:$S$399=\"SERA\")*('2. Assisted & Restricted Units'!$T$7:$T$399=\"30% SMI\"))","v":0},{"$f":"SUMPRODUCT(('2. Assisted & Restricted Units'!$E$7:$E$399=\"2\")*('2. Assisted & Restricted Units'!$S$7:$S$399=\"SUHRP\")*('2. Assisted & Restricted Units'!$T$7:$T$399=\"30% SMI\"))","v":0},{"$f":"SUMPRODUCT(('2. Assisted & Restricted Units'!$E$7:$E$399=\"2\")*('2. Assisted & Restricted Units'!$S$7:$S$399=\"TOD\")*('2. Assisted & Restricted Units'!$T$7:$T$399=\"30% SMI\"))","v":0},{"$f":"SUMPRODUCT(('2. Assisted & Restricted Units'!$E$7:$E$399=\"2\")*('2. Assisted & Restricted Units'!$S$7:$S$399=\"707-E\")*('2. Assisted & Restricted Units'!$T$7:$T$399=\"30% SMI\"))","v":0},{"$f":"SUMPRODUCT(('2. Assisted & Restricted Units'!$E$7:$E$399=\"2\")*('2. Assisted & Restricted Units'!$S$7:$S$399=\"707-N\")*('2. Assisted & Restricted Units'!$T$7:$T$399=\"30% SMI\"))","v":0}]
["2 Bedroom 35% SMI",{"$f":"SUMPRODUCT(('2. Assisted & Restricted Units'!$E$7:$E$399=\"2\")*('2. Assisted & Restricted Units'!$S$7:$S$399=\"CALDAP\")*('2. Assisted & Restricted Units'!$T$7:$T$399=\"35% SMI\"))","v":0},{"$f":"SUMPRODUCT(('2. Assisted & Restricted Units'!$E$7:$E$399=\"2\")*('2. Assisted & Restricted Units'!$S$7:$S$399=\"CHRP-R\")*('2. Assisted & Restricted Units'!$T$7:$T$399=\"35% SMI\"))","v":0},{"$f":"SUMPRODUCT(('2. Assisted & Restricted Units'!$E$7:$E$399=\"2\")*('2. Assisted & Restricted Units'!$S$7:$S$399=\"DDS\")*('2. Assisted & Restricted Units'!$T$7:$T$399=\"35% SMI\"))","v":0},{"$f":"SUMPRODUCT(('2. Assisted & Restricted Units'!$E$7:$E$399=\"2\")*('2. Assisted & Restricted Units'!$S$7:$S$399=\"DPRLP\")*('2. Assisted & Restricted Units'!$T$7:$T$399=\"35% SMI\"))","v":0},{"$f":"SUMPRODUCT(('2. Assisted & Restricted Units'!$E$7:$E$399=\"2\")*('2. Assisted & Restricted Units'!$S$7:$S$399=\"FHDP\")*('2. Assisted & Restricted Units'!$T$7:$T$399=\"35% SMI\"))","v":0},{"$f":"SUMPRODUCT(('2. Assisted & Restricted Units'!$E$7:$E$399=\"2\")*('2. Assisted & Restricted Units'!$S$7:$S$399=\"FMTW\")*('2. Assisted & Restricted Units'!$T$7:$T$399=\"35% SMI\"))","v":0},null,{"$f":"SUMPRODUCT(('2. Assisted & Restricted Units'!$E$7:$E$399=\"2\")*('2. Assisted & Restricted Units'!$S$7:$S$399=\"HOME\")*('2. Assisted & Restricted Units'!$T$7:$T$399=\"35% SMI\"))","v":0},{"$f":"SUMPRODUCT(('2. Assisted & Restricted Units'!$E$7:$E$399=\"2\")*('2. Assisted & Restricted Units'!$S$7:$S$399=\"Market Rate\")*('2. Assisted & Restricted Units'!$T$7:$T$399=\"35% SMI\"))","v":0},{"$f":"SUMPRODUCT(('2. Assisted & Restricted Units'!$E$7:$E$399=\"2\")*('2. Assisted & Restricted Units'!$S$7:$S$399=\"MHP\")*('2. Assisted & Restricted Units'!$T$7:$T$399=\"35% SMI\"))","v":0},{"$f":"SUMPRODUCT(('2. Assisted & Restricted Units'!$E$7:$E$399=\"2\")*('2. Assisted & Restricted Units'!$S$7:$S$399=\"NonAssisted\")*('2. Assisted & Restricted Units'!$T$7:$T$399=\"35% SMI\"))","v":0},{"$f":"SUMPRODUCT(('2. Assisted & Restricted Units'!$E$7:$E$399=\"2\")*('2. Assisted & Restricted Units'!$S$7:$S$399=\"Other Restr\")*('2. Assisted & Restricted Units'!$T$7:$T$399=\"35% SMI\"))","v":0},{"$f":"SUMPRODUCT(('2. Assisted & Restricted Units'!$E$7:$E$399=\"2\")*('2. Assisted & Restricted Units'!$S$7:$S$399=\"RHCP-B\")*('2. Assisted & Restricted Units'!$T$7:$T$399=\"35% SMI\"))","v":0},{"$f":"SUMPRODUCT(('2. Assisted & Restricted Units'!$E$7:$E$399=\"2\")*('2. Assisted & Restricted Units'!$S$7:$S$399=\"SERA\")*('2. Assisted & Restricted Units'!$T$7:$T$399=\"35% SMI\"))","v":0},{"$f":"SUMPRODUCT(('2. Assisted & Restricted Units'!$E$7:$E$399=\"2\")*('2. Assisted & Restricted Units'!$S$7:$S$399=\"SUHRP\")*('2. Assisted & Restricted Units'!$T$7:$T$399=\"35% SMI\"))","v":0},{"$f":"SUMPRODUCT(('2. Assisted & Restricted Units'!$E$7:$E$399=\"2\")*('2. Assisted & Restricted Units'!$S$7:$S$399=\"TOD\")*('2. Assisted & Restricted Units'!$T$7:$T$399=\"35% SMI\"))","v":0},{"$f":"SUMPRODUCT(('2. Assisted & Restricted Units'!$E$7:$E$399=\"2\")*('2. Assisted & Restricted Units'!$S$7:$S$399=\"707-E\")*('2. Assisted & Restricted Units'!$T$7:$T$399=\"35% SMI\"))","v":0},{"$f":"SUMPRODUCT(('2. Assisted & Restricted Units'!$E$7:$E$399=\"2\")*('2. Assisted & Restricted Units'!$S$7:$S$399=\"707-N\")*('2. Assisted & Restricted Units'!$T$7:$T$399=\"35% SMI\"))","v":0}]
["2 Bedroom 40% SMI",{"$f":"SUMPRODUCT(('2. Assisted & Restricted Units'!$E$7:$E$399=\"2\")*('2. Assisted & Restricted Units'!$S$7:$S$399=\"CALDAP\")*('2. Assisted & Restricted Units'!$T$7:$T$399=\"40% SMI\"))","v":0},{"$f":"SUMPRODUCT(('2. Assisted & Restricted Units'!$E$7:$E$399=\"2\")*('2. Assisted & Restricted Units'!$S$7:$S$399=\"CHRP-R\")*('2. Assisted & Restricted Units'!$T$7:$T$399=\"40% SMI\"))","v":0},{"$f":"SUMPRODUCT(('2. Assisted & Restricted Units'!$E$7:$E$399=\"2\")*('2. Assisted & Restricted Units'!$S$7:$S$399=\"DDS\")*('2. Assisted & Restricted Units'!$T$7:$T$399=\"40% SMI\"))","v":0},{"$f":"SUMPRODUCT(('2. Assisted & Restricted Units'!$E$7:$E$399=\"2\")*('2. Assisted & Restricted Units'!$S$7:$S$399=\"DPRLP\")*('2. Assisted & Restricted Units'!$T$7:$T$399=\"40% SMI\"))","v":0},{"$f":"SUMPRODUCT(('2. Assisted & Restricted Units'!$E$7:$E$399=\"2\")*('2. Assisted & Restricted Units'!$S$7:$S$399=\"FHDP\")*('2. Assisted & Restricted Units'!$T$7:$T$399=\"40% SMI\"))","v":0},{"$f":"SUMPRODUCT(('2. Assisted & Restricted Units'!$E$7:$E$399=\"2\")*('2. Assisted & Restricted Units'!$S$7:$S$399=\"FMTW\")*('2. Assisted & Restricted Units'!$T$7:$T$399=\"40% SMI\"))","v":0},null,{"$f":"SUMPRODUCT(('2. Assisted & Restricted Units'!$E$7:$E$399=\"2\")*('2. Assisted & Restricted Units'!$S$7:$S$399=\"HOME\")*('2. Assisted & Restricted Units'!$T$7:$T$399=\"40% SMI\"))","v":0},{"$f":"SUMPRODUCT(('2. Assisted & Restricted Units'!$E$7:$E$399=\"2\")*('2. Assisted & Restricted Units'!$S$7:$S$399=\"Market Rate\")*('2. Assisted & Restricted Units'!$T$7:$T$399=\"40% SMI\"))","v":0},{"$f":"SUMPRODUCT(('2. Assisted & Restricted Units'!$E$7:$E$399=\"2\")*('2. Assisted & Restricted Units'!$S$7:$S$399=\"MHP\")*('2. Assisted & Restricted Units'!$T$7:$T$399=\"40% SMI\"))","v":0},{"$f":"SUMPRODUCT(('2. Assisted & Restricted Units'!$E$7:$E$399=\"2\")*('2. Assisted & Restricted Units'!$S$7:$S$399=\"NonAssisted\")*('2. Assisted & Restricted Units'!$T$7:$T$399=\"40% SMI\"))","v":0},{"$f":"SUMPRODUCT(('2. Assisted & Restricted Units'!$E$7:$E$399=\"2\")*('2. Assisted & Restricted Units'!$S$7:$S$399=\"Other Restr\")*('2. Assisted & Restricted Units'!$T$7:$T$399=\"40% SMI\"))","v":0},{"$f":"SUMPRODUCT(('2. Assisted & Restricted Units'!$E$7:$E$399=\"2\")*('2. Assisted & Restricted Units'!$S$7:$S$399=\"RHCP-B\")*('2. Assisted & Restricted Units'!$T$7:$T$399=\"40% SMI\"))","v":0},{"$f":"SUMPRODUCT(('2. Assisted & Restricted Units'!$E$7:$E$399=\"2\")*('2. Assisted & Restricted Units'!$S$7:$S$399=\"SERA\")*('2. Assisted & Restricted Units'!$T$7:$T$399=\"40% SMI\"))","v":0},{"$f":"SUMPRODUCT(('2. Assisted & Restricted Units'!$E$7:$E$399=\"2\")*('2. Assisted & Restricted Units'!$S$7:$S$399=\"SUHRP\")*('2. Assisted & Restricted Units'!$T$7:$T$399=\"40% SMI\"))","v":0},{"$f":"SUMPRODUCT(('2. Assisted & Restricted Units'!$E$7:$E$399=\"2\")*('2. Assisted & Restricted Units'!$S$7:$S$399=\"TOD\")*('2. Assisted & Restricted Units'!$T$7:$T$399=\"40% SMI\"))","v":0},{"$f":"SUMPRODUCT(('2. Assisted & Restricted Units'!$E$7:$E$399=\"2\")*('2. Assisted & Restricted Units'!$S$7:$S$399=\"707-E\")*('2. Assisted & Restricted Units'!$T$7:$T$399=\"40% SMI\"))","v":0},{"$f":"SUMPRODUCT(('2. Assisted & Restricted Units'!$E$7:$E$399=\"2\")*('2. Assisted & Restricted Units'!$S$7:$S$399=\"707-N\")*('2. Assisted & Restricted Units'!$T$7:$T$399=\"40% SMI\"))","v":0}]
["2 Bedroom 45% SMI",{"$f":"SUMPRODUCT(('2. Assisted & Restricted Units'!$E$7:$E$399=\"2\")*('2. Assisted & Restricted Units'!$S$7:$S$399=\"CALDAP\")*('2. Assisted & Restricted Units'!$T$7:$T$399=\"45% SMI\"))","v":0},{"$f":"SUMPRODUCT(('2. Assisted & Restricted Units'!$E$7:$E$399=\"2\")*('2. Assisted & Restricted Units'!$S$7:$S$399=\"CHRP-R\")*('2. Assisted & Restricted Units'!$T$7:$T$399=\"45% SMI\"))","v":0},{"$f":"SUMPRODUCT(('2. Assisted & Restricted Units'!$E$7:$E$399=\"2\")*('2. Assisted & Restricted Units'!$S$7:$S$399=\"DDS\")*('2. Assisted & Restricted Units'!$T$7:$T$399=\"45% SMI\"))","v":0},{"$f":"SUMPRODUCT(('2. Assisted & Restricted Units'!$E$7:$E$399=\"2\")*('2. Assisted & Restricted Units'!$S$7:$S$399=\"DPRLP\")*('2. Assisted & Restricted Units'!$T$7:$T$399=\"45% SMI\"))","v":0},{"$f":"SUMPRODUCT(('2. Assisted & Restricted Units'!$E$7:$E$399=\"2\")*('2. Assisted & Restricted Units'!$S$7:$S$399=\"FHDP\")*('2. Assisted & Restricted Units'!$T$7:$T$399=\"45% SMI\"))","v":0},{"$f":"SUMPRODUCT(('2. Assisted & Restricted Units'!$E$7:$E$399=\"2\")*('2. Assisted & Restricted Units'!$S$7:$S$399=\"FMTW\")*('2. Assisted & Restricted Units'!$T$7:$T$399=\"45% SMI\"))","v":0},null,{"$f":"SUMPRODUCT(('2. Assisted & Restricted Units'!$E$7:$E$399=\"2\")*('2. Assisted & Restricted Units'!$S$7:$S$399=\"HOME\")*('2. Assisted & Restricted Units'!$T$7:$T$399=\"45% SMI\"))","v":0},{"$f":"SUMPRODUCT(('2. Assisted & Restricted Units'!$E$7:$E$399=\"2\")*('2. Assisted & Restricted Units'!$S$7:$S$399=\"Market Rate\")*('2. Assisted & Restricted Units'!$T$7:$T$399=\"45% SMI\"))","v":0},{"$f":"SUMPRODUCT(('2. Assisted & Restricted Units'!$E$7:$E$399=\"2\")*('2. Assisted & Restricted Units'!$S$7:$S$399=\"MHP\")*('2. Assisted & Restricted Units'!$T$7:$T$399=\"45% SMI\"))","v":0},{"$f":"SUMPRODUCT(('2. Assisted & Restricted Units'!$E$7:$E$399=\"2\")*('2. Assisted & Restricted Units'!$S$7:$S$399=\"NonAssisted\")*('2. Assisted & Restricted Units'!$T$7:$T$399=\"45% SMI\"))","v":0},{"$f":"SUMPRODUCT(('2. Assisted & Restricted Units'!$E$7:$E$399=\"2\")*('2. Assisted & Restricted Units'!$S$7:$S$399=\"Other Restr\")*('2. Assisted & Restricted Units'!$T$7:$T$399=\"45% SMI\"))","v":0},{"$f":"SUMPRODUCT(('2. Assisted & Restricted Units'!$E$7:$E$399=\"2\")*('2. Assisted & Restricted Units'!$S$7:$S$399=\"RHCP-B\")*('2. Assisted & Restricted Units'!$T$7:$T$399=\"45% SMI\"))","v":0},{"$f":"SUMPRODUCT(('2. Assisted & Restricted Units'!$E$7:$E$399=\"2\")*('2. Assisted & Restricted Units'!$S$7:$S$399=\"SERA\")*('2. Assisted & Restricted Units'!$T$7:$T$399=\"45% SMI\"))","v":0},{"$f":"SUMPRODUCT(('2. Assisted & Restricted Units'!$E$7:$E$399=\"2\")*('2. Assisted & Restricted Units'!$S$7:$S$399=\"SUHRP\")*('2. Assisted & Restricted Units'!$T$7:$T$399=\"45% SMI\"))","v":0},{"$f":"SUMPRODUCT(('2. Assisted & Restricted Units'!$E$7:$E$399=\"2\")*('2. Assisted & Restricted Units'!$S$7:$S$399=\"TOD\")*('2. Assisted & Restricted Units'!$T$7:$T$399=\"45% SMI\"))","v":0},{"$f":"SUMPRODUCT(('2. Assisted & Restricted Units'!$E$7:$E$399=\"2\")*('2. Assisted & Restricted Units'!$S$7:$S$399=\"707-E\")*('2. Assisted & Restricted Units'!$T$7:$T$399=\"45% SMI\"))","v":0},{"$f":"SUMPRODUCT(('2. Assisted & Restricted Units'!$E$7:$E$399=\"2\")*('2. Assisted & Restricted Units'!$S$7:$S$399=\"707-N\")*('2. Assisted & Restricted Units'!$T$7:$T$399=\"45% SMI\"))","v":0}]
["2 Bedroom 50% SMI",{"$f":"SUMPRODUCT(('2. Assisted & Restricted Units'!$E$7:$E$399=\"2\")*('2. Assisted & Restricted Units'!$S$7:$S$399=\"CALDAP\")*('2. Assisted & Restricted Units'!$T$7:$T$399=\"50% SMI\"))","v":0},{"$f":"SUMPRODUCT(('2. Assisted & Restricted Units'!$E$7:$E$399=\"2\")*('2. Assisted & Restricted Units'!$S$7:$S$399=\"CHRP-R\")*('2. Assisted & Restricted Units'!$T$7:$T$399=\"50% SMI\"))","v":0},{"$f":"SUMPRODUCT(('2. Assisted & Restricted Units'!$E$7:$E$399=\"2\")*('2. Assisted & Restricted Units'!$S$7:$S$399=\"DDS\")*('2. Assisted & Restricted Units'!$T$7:$T$399=\"50% SMI\"))","v":0},{"$f":"SUMPRODUCT(('2. Assisted & Restricted Units'!$E$7:$E$399=\"2\")*('2. Assisted & Restricted Units'!$S$7:$S$399=\"DPRLP\")*('2. Assisted & Restricted Units'!$T$7:$T$399=\"50% SMI\"))","v":0},{"$f":"SUMPRODUCT(('2. Assisted & Restricted Units'!$E$7:$E$399=\"2\")*('2. Assisted & Restricted Units'!$S$7:$S$399=\"FHDP\")*('2. Assisted & Restricted Units'!$T$7:$T$399=\"50% SMI\"))","v":0},{"$f":"SUMPRODUCT(('2. Assisted & Restricted Units'!$E$7:$E$399=\"2\")*('2. Assisted & Restricted Units'!$S$7:$S$399=\"FMTW\")*('2. Assisted & Restricted Units'!$T$7:$T$399=\"50% SMI\"))","v":0},null,{"$f":"SUMPRODUCT(('2. Assisted & Restricted Units'!$E$7:$E$399=\"2\")*('2. Assisted & Restricted Units'!$S$7:$S$399=\"HOME\")*('2. Assisted & Restricted Units'!$T$7:$T$399=\"50% SMI\"))","v":0},{"$f":"SUMPRODUCT(('2. Assisted & Restricted Units'!$E$7:$E$399=\"2\")*('2. Assisted & Restricted Units'!$S$7:$S$399=\"Market Rate\")*('2. Assisted & Restricted Units'!$T$7:$T$399=\"50% SMI\"))","v":0},{"$f":"SUMPRODUCT(('2. Assisted & Restricted Units'!$E$7:$E$399=\"2\")*('2. Assisted & Restricted Units'!$S$7:$S$399=\"MHP\")*('2. Assisted & Restricted Units'!$T$7:$T$399=\"50% SMI\"))","v":0},{"$f":"SUMPRODUCT(('2. Assisted & Restricted Units'!$E$7:$E$399=\"2\")*('2. Assisted & Restricted Units'!$S$7:$S$399=\"NonAssisted\")*('2. Assisted & Restricted Units'!$T$7:$T$399=\"50% SMI\"))","v":0},{"$f":"SUMPRODUCT(('2. Assisted & Restricted Units'!$E$7:$E$399=\"2\")*('2. Assisted & Restricted Units'!$S$7:$S$399=\"Other Restr\")*('2. Assisted & Restricted Units'!$T$7:$T$399=\"50% SMI\"))","v":0},{"$f":"SUMPRODUCT(('2. Assisted & Restricted Units'!$E$7:$E$399=\"2\")*('2. Assisted & Restricted Units'!$S$7:$S$399=\"RHCP-B\")*('2. Assisted & Restricted Units'!$T$7:$T$399=\"50% SMI\"))","v":0},{"$f":"SUMPRODUCT(('2. Assisted & Restricted Units'!$E$7:$E$399=\"2\")*('2. Assisted & Restricted Units'!$S$7:$S$399=\"SERA\")*('2. Assisted & Restricted Units'!$T$7:$T$399=\"50% SMI\"))","v":0},{"$f":"SUMPRODUCT(('2. Assisted & Restricted Units'!$E$7:$E$399=\"2\")*('2. Assisted & Restricted Units'!$S$7:$S$399=\"SUHRP\")*('2. Assisted & Restricted Units'!$T$7:$T$399=\"50% SMI\"))","v":0},{"$f":"SUMPRODUCT(('2. Assisted & Restricted Units'!$E$7:$E$399=\"2\")*('2. Assisted & Restricted Units'!$S$7:$S$399=\"TOD\")*('2. Assisted & Restricted Units'!$T$7:$T$399=\"50% SMI\"))","v":0},{"$f":"SUMPRODUCT(('2. Assisted & Restricted Units'!$E$7:$E$399=\"2\")*('2. Assisted & Restricted Units'!$S$7:$S$399=\"707-E\")*('2. Assisted & Restricted Units'!$T$7:$T$399=\"50% SMI\"))","v":0},{"$f":"SUMPRODUCT(('2. Assisted & Restricted Units'!$E$7:$E$399=\"2\")*('2. Assisted & Restricted Units'!$S$7:$S$399=\"707-N\")*('2. Assisted & Restricted Units'!$T$7:$T$399=\"50% SMI\"))","v":0}]
["2 Bedroom 100% SMI",{"$f":"SUMPRODUCT(('2. Assisted & Restricted Units'!$E$7:$E$399=\"2\")*('2. Assisted & Restricted Units'!$S$7:$S$399=\"CALDAP\")*('2. Assisted & Restricted Units'!$T$7:$T$399=\"100% SMI\"))","v":0},{"$f":"SUMPRODUCT(('2. Assisted & Restricted Units'!$E$7:$E$399=\"2\")*('2. Assisted & Restricted Units'!$S$7:$S$399=\"CHRP-R\")*('2. Assisted & Restricted Units'!$T$7:$T$399=\"100% SMI\"))","v":0},{"$f":"SUMPRODUCT(('2. Assisted & Restricted Units'!$E$7:$E$399=\"2\")*('2. Assisted & Restricted Units'!$S$7:$S$399=\"DDS\")*('2. Assisted & Restricted Units'!$T$7:$T$399=\"100% SMI\"))","v":0},{"$f":"SUMPRODUCT(('2. Assisted & Restricted Units'!$E$7:$E$399=\"2\")*('2. Assisted & Restricted Units'!$S$7:$S$399=\"DPRLP\")*('2. Assisted & Restricted Units'!$T$7:$T$399=\"100% SMI\"))","v":0},{"$f":"SUMPRODUCT(('2. Assisted & Restricted Units'!$E$7:$E$399=\"2\")*('2. Assisted & Restricted Units'!$S$7:$S$399=\"FHDP\")*('2. Assisted & Restricted Units'!$T$7:$T$399=\"100% SMI\"))","v":0},{"$f":"SUMPRODUCT(('2. Assisted & Restricted Units'!$E$7:$E$399=\"2\")*('2. Assisted & Restricted Units'!$S$7:$S$399=\"FMTW\")*('2. Assisted & Restricted Units'!$T$7:$T$399=\"100% SMI\"))","v":0},null,{"$f":"SUMPRODUCT(('2. Assisted & Restricted Units'!$E$7:$E$399=\"2\")*('2. Assisted & Restricted Units'!$S$7:$S$399=\"HOME\")*('2. Assisted & Restricted Units'!$T$7:$T$399=\"100% SMI\"))","v":0},{"$f":"SUMPRODUCT(('2. Assisted & Restricted Units'!$E$7:$E$399=\"2\")*('2. Assisted & Restricted Units'!$S$7:$S$399=\"Market Rate\")*('2. Assisted & Restricted Units'!$T$7:$T$399=\"100% SMI\"))","v":0},{"$f":"SUMPRODUCT(('2. Assisted & Restricted Units'!$E$7:$E$399=\"2\")*('2. Assisted & Restricted Units'!$S$7:$S$399=\"MHP\")*('2. Assisted & Restricted Units'!$T$7:$T$399=\"100% SMI\"))","v":0},{"$f":"SUMPRODUCT(('2. Assisted & Restricted Units'!$E$7:$E$399=\"2\")*('2. Assisted & Restricted Units'!$S$7:$S$399=\"NonAssisted\")*('2. Assisted & Restricted Units'!$T$7:$T$399=\"100% SMI\"))","v":0},{"$f":"SUMPRODUCT(('2. Assisted & Restricted Units'!$E$7:$E$399=\"2\")*('2. Assisted & Restricted Units'!$S$7:$S$399=\"Other Restr\")*('2. Assisted & Restricted Units'!$T$7:$T$399=\"100% SMI\"))","v":0},{"$f":"SUMPRODUCT(('2. Assisted & Restricted Units'!$E$7:$E$399=\"2\")*('2. Assisted & Restricted Units'!$S$7:$S$399=\"RHCP-B\")*('2. Assisted & Restricted Units'!$T$7:$T$399=\"100% SMI\"))","v":0},{"$f":"SUMPRODUCT(('2. Assisted & Restricted Units'!$E$7:$E$399=\"2\")*('2. Assisted & Restricted Units'!$S$7:$S$399=\"SERA\")*('2. Assisted & Restricted Units'!$T$7:$T$399=\"100% SMI\"))","v":0},{"$f":"SUMPRODUCT(('2. Assisted & Restricted Units'!$E$7:$E$399=\"2\")*('2. Assisted & Restricted Units'!$S$7:$S$399=\"SUHRP\")*('2. Assisted & Restricted Units'!$T$7:$T$399=\"100% SMI\"))","v":0},{"$f":"SUMPRODUCT(('2. Assisted & Restricted Units'!$E$7:$E$399=\"2\")*('2. Assisted & Restricted Units'!$S$7:$S$399=\"TOD\")*('2. Assisted & Restricted Units'!$T$7:$T$399=\"100% SMI\"))","v":0},{"$f":"SUMPRODUCT(('2. Assisted & Restricted Units'!$E$7:$E$399=\"2\")*('2. Assisted & Restricted Units'!$S$7:$S$399=\"707-E\")*('2. Assisted & Restricted Units'!$T$7:$T$399=\"100% SMI\"))","v":0},{"$f":"SUMPRODUCT(('2. Assisted & Restricted Units'!$E$7:$E$399=\"2\")*('2. Assisted & Restricted Units'!$S$7:$S$399=\"707-N\")*('2. Assisted & Restricted Units'!$T$7:$T$399=\"100% SMI\"))","v":0}]
["2 Bedroom VLI HOME",{"$f":"SUMPRODUCT(('2. Assisted & Restricted Units'!$E$7:$E$399=\"2\")*('2. Assisted & Restricted Units'!$S$7:$S$399=\"CALDAP\")*('2. Assisted & Restricted Units'!$T$7:$T$399=\"VLI HOME\"))","v":0},{"$f":"SUMPRODUCT(('2. Assisted & Restricted Units'!$E$7:$E$399=\"2\")*('2. Assisted & Restricted Units'!$S$7:$S$399=\"CHRP-R\")*('2. Assisted & Restricted Units'!$T$7:$T$399=\"VLI HOME\"))","v":0},{"$f":"SUMPRODUCT(('2. Assisted & Restricted Units'!$E$7:$E$399=\"2\")*('2. Assisted & Restricted Units'!$S$7:$S$399=\"DDS\")*('2. Assisted & Restricted Units'!$T$7:$T$399=\"VLI HOME\"))","v":0},{"$f":"SUMPRODUCT(('2. Assisted & Restricted Units'!$E$7:$E$399=\"2\")*('2. Assisted & Restricted Units'!$S$7:$S$399=\"DPRLP\")*('2. Assisted & Restricted Units'!$T$7:$T$399=\"VLI HOME\"))","v":0},{"$f":"SUMPRODUCT(('2. Assisted & Restricted Units'!$E$7:$E$399=\"2\")*('2. Assisted & Restricted Units'!$S$7:$S$399=\"FHDP\")*('2. Assisted & Restricted Units'!$T$7:$T$399=\"VLI HOME\"))","v":0},{"$f":"SUMPRODUCT(('2. Assisted & Restricted Units'!$E$7:$E$399=\"2\")*('2. Assisted & Restricted Units'!$S$7:$S$399=\"FMTW\")*('2. Assisted & Restricted Units'!$T$7:$T$399=\"VLI HOME\"))","v":0},null,{"$f":"SUMPRODUCT(('2. Assisted & Restricted Units'!$E$7:$E$399=\"2\")*('2. Assisted & Restricted Units'!$S$7:$S$399=\"HOME\")*('2. Assisted & Restricted Units'!$T$7:$T$399=\"VLI HOME\"))","v":0},{"$f":"SUMPRODUCT(('2. Assisted & Restricted Units'!$E$7:$E$399=\"2\")*('2. Assisted & Restricted Units'!$S$7:$S$399=\"Market Rate\")*('2. Assisted & Restricted Units'!$T$7:$T$399=\"VLI HOME\"))","v":0},{"$f":"SUMPRODUCT(('2. Assisted & Restricted Units'!$E$7:$E$399=\"2\")*('2. Assisted & Restricted Units'!$S$7:$S$399=\"MHP\")*('2. Assisted & Restricted Units'!$T$7:$T$399=\"VLI HOME\"))","v":0},{"$f":"SUMPRODUCT(('2. Assisted & Restricted Units'!$E$7:$E$399=\"2\")*('2. Assisted & Restricted Units'!$S$7:$S$399=\"NonAssisted\")*('2. Assisted & Restricted Units'!$T$7:$T$399=\"VLI HOME\"))","v":0},{"$f":"SUMPRODUCT(('2. Assisted & Restricted Units'!$E$7:$E$399=\"2\")*('2. Assisted & Restricted Units'!$S$7:$S$399=\"Other Restr\")*('2. Assisted & Restricted Units'!$T$7:$T$399=\"VLI HOME\"))","v":0},{"$f":"SUMPRODUCT(('2. Assisted & Restricted Units'!$E$7:$E$399=\"2\")*('2. Assisted & Restricted Units'!$S$7:$S$399=\"RHCP-B\")*('2. Assisted & Restricted Units'!$T$7:$T$399=\"VLI HOME\"))","v":0},{"$f":"SUMPRODUCT(('2. Assisted & Restricted Units'!$E$7:$E$399=\"2\")*('2. Assisted & Restricted Units'!$S$7:$S$399=\"SERA\")*('2. Assisted & Restricted Units'!$T$7:$T$399=\"VLI HOME\"))","v":0},{"$f":"SUMPRODUCT(('2. Assisted & Restricted Units'!$E$7:$E$399=\"2\")*('2. Assisted & Restricted Units'!$S$7:$S$399=\"SUHRP\")*('2. Assisted & Restricted Units'!$T$7:$T$399=\"VLI HOME\"))","v":0},{"$f":"SUMPRODUCT(('2. Assisted & Restricted Units'!$E$7:$E$399=\"2\")*('2. Assisted & Restricted Units'!$S$7:$S$399=\"TOD\")*('2. Assisted & Restricted Units'!$T$7:$T$399=\"VLI HOME\"))","v":0},{"$f":"SUMPRODUCT(('2. Assisted & Restricted Units'!$E$7:$E$399=\"2\")*('2. Assisted & Restricted Units'!$S$7:$S$399=\"707-E\")*('2. Assisted & Restricted Units'!$T$7:$T$399=\"VLI HOME\"))","v":0},{"$f":"SUMPRODUCT(('2. Assisted & Restricted Units'!$E$7:$E$399=\"2\")*('2. Assisted & Restricted Units'!$S$7:$S$399=\"707-N\")*('2. Assisted & Restricted Units'!$T$7:$T$399=\"VLI HOME\"))","v":0}]
["2 Bedroom LI HOME",{"$f":"SUMPRODUCT(('2. Assisted & Restricted Units'!$E$7:$E$399=\"2\")*('2. Assisted & Restricted Units'!$S$7:$S$399=\"CALDAP\")*('2. Assisted & Restricted Units'!$T$7:$T$399=\"LI HOME\"))","v":0},{"$f":"SUMPRODUCT(('2. Assisted & Restricted Units'!$E$7:$E$399=\"2\")*('2. Assisted & Restricted Units'!$S$7:$S$399=\"CHRP-R\")*('2. Assisted & Restricted Units'!$T$7:$T$399=\"LI HOME\"))","v":0},{"$f":"SUMPRODUCT(('2. Assisted & Restricted Units'!$E$7:$E$399=\"2\")*('2. Assisted & Restricted Units'!$S$7:$S$399=\"DDS\")*('2. Assisted & Restricted Units'!$T$7:$T$399=\"LI HOME\"))","v":0},{"$f":"SUMPRODUCT(('2. Assisted & Restricted Units'!$E$7:$E$399=\"2\")*('2. Assisted & Restricted Units'!$S$7:$S$399=\"DPRLP\")*('2. Assisted & Restricted Units'!$T$7:$T$399=\"LI HOME\"))","v":0},{"$f":"SUMPRODUCT(('2. Assisted & Restricted Units'!$E$7:$E$399=\"2\")*('2. Assisted & Restricted Units'!$S$7:$S$399=\"FHDP\")*('2. Assisted & Restricted Units'!$T$7:$T$399=\"LI HOME\"))","v":0},{"$f":"SUMPRODUCT(('2. Assisted & Restricted Units'!$E$7:$E$399=\"2\")*('2. Assisted & Restricted Units'!$S$7:$S$399=\"FMTW\")*('2. Assisted & Restricted Units'!$T$7:$T$399=\"LI HOME\"))","v":0},null,{"$f":"SUMPRODUCT(('2. Assisted & Restricted Units'!$E$7:$E$399=\"2\")*('2. Assisted & Restricted Units'!$S$7:$S$399=\"HOME\")*('2. Assisted & Restricted Units'!$T$7:$T$399=\"LI HOME\"))","v":0},{"$f":"SUMPRODUCT(('2. Assisted & Restricted Units'!$E$7:$E$399=\"2\")*('2. Assisted & Restricted Units'!$S$7:$S$399=\"Market Rate\")*('2. Assisted & Restricted Units'!$T$7:$T$399=\"LI HOME\"))","v":0},{"$f":"SUMPRODUCT(('2. Assisted & Restricted Units'!$E$7:$E$399=\"2\")*('2. Assisted & Restricted Units'!$S$7:$S$399=\"MHP\")*('2. Assisted & Restricted Units'!$T$7:$T$399=\"LI HOME\"))","v":0},{"$f":"SUMPRODUCT(('2. Assisted & Restricted Units'!$E$7:$E$399=\"2\")*('2. Assisted & Restricted Units'!$S$7:$S$399=\"NonAssisted\")*('2. Assisted & Restricted Units'!$T$7:$T$399=\"LI HOME\"))","v":0},{"$f":"SUMPRODUCT(('2. Assisted & Restricted Units'!$E$7:$E$399=\"2\")*('2. Assisted & Restricted Units'!$S$7:$S$399=\"Other Restr\")*('2. Assisted & Restricted Units'!$T$7:$T$399=\"LI HOME\"))","v":0},{"$f":"SUMPRODUCT(('2. Assisted & Restricted Units'!$E$7:$E$399=\"2\")*('2. Assisted & Restricted Units'!$S$7:$S$399=\"RHCP-B\")*('2. Assisted & Restricted Units'!$T$7:$T$399=\"LI HOME\"))","v":0},{"$f":"SUMPRODUCT(('2. Assisted & Restricted Units'!$E$7:$E$399=\"2\")*('2. Assisted & Restricted Units'!$S$7:$S$399=\"SERA\")*('2. Assisted & Restricted Units'!$T$7:$T$399=\"LI HOME\"))","v":0},{"$f":"SUMPRODUCT(('2. Assisted & Restricted Units'!$E$7:$E$399=\"2\")*('2. Assisted & Restricted Units'!$S$7:$S$399=\"SUHRP\")*('2. Assisted & Restricted Units'!$T$7:$T$399=\"LI HOME\"))","v":0},{"$f":"SUMPRODUCT(('2. Assisted & Restricted Units'!$E$7:$E$399=\"2\")*('2. Assisted & Restricted Units'!$S$7:$S$399=\"TOD\")*('2. Assisted & Restricted Units'!$T$7:$T$399=\"LI HOME\"))","v":0},{"$f":"SUMPRODUCT(('2. Assisted & Restricted Units'!$E$7:$E$399=\"2\")*('2. Assisted & Restricted Units'!$S$7:$S$399=\"707-E\")*('2. Assisted & Restricted Units'!$T$7:$T$399=\"LI HOME\"))","v":0},{"$f":"SUMPRODUCT(('2. Assisted & Restricted Units'!$E$7:$E$399=\"2\")*('2. Assisted & Restricted Units'!$S$7:$S$399=\"707-N\")*('2. Assisted & Restricted Units'!$T$7:$T$399=\"LI HOME\"))","v":0}]
["2 Bedroom VLI State",{"$f":"SUMPRODUCT(('2. Assisted & Restricted Units'!$E$7:$E$399=\"2\")*('2. Assisted & Restricted Units'!$S$7:$S$399=\"CALDAP\")*('2. Assisted & Restricted Units'!$T$7:$T$399=\"VLI State\"))","v":0},{"$f":"SUMPRODUCT(('2. Assisted & Restricted Units'!$E$7:$E$399=\"2\")*('2. Assisted & Restricted Units'!$S$7:$S$399=\"CHRP-R\")*('2. Assisted & Restricted Units'!$T$7:$T$399=\"VLI State\"))","v":0},{"$f":"SUMPRODUCT(('2. Assisted & Restricted Units'!$E$7:$E$399=\"2\")*('2. Assisted & Restricted Units'!$S$7:$S$399=\"DDS\")*('2. Assisted & Restricted Units'!$T$7:$T$399=\"VLI State\"))","v":0},{"$f":"SUMPRODUCT(('2. Assisted & Restricted Units'!$E$7:$E$399=\"2\")*('2. Assisted & Restricted Units'!$S$7:$S$399=\"DPRLP\")*('2. Assisted & Restricted Units'!$T$7:$T$399=\"VLI State\"))","v":0},{"$f":"SUMPRODUCT(('2. Assisted & Restricted Units'!$E$7:$E$399=\"2\")*('2. Assisted & Restricted Units'!$S$7:$S$399=\"FHDP\")*('2. Assisted & Restricted Units'!$T$7:$T$399=\"VLI State\"))","v":0},{"$f":"SUMPRODUCT(('2. Assisted & Restricted Units'!$E$7:$E$399=\"2\")*('2. Assisted & Restricted Units'!$S$7:$S$399=\"FMTW\")*('2. Assisted & Restricted Units'!$T$7:$T$399=\"VLI State\"))","v":0},null,{"$f":"SUMPRODUCT(('2. Assisted & Restricted Units'!$E$7:$E$399=\"2\")*('2. Assisted & Restricted Units'!$S$7:$S$399=\"HOME\")*('2. Assisted & Restricted Units'!$T$7:$T$399=\"VLI State\"))","v":0},{"$f":"SUMPRODUCT(('2. Assisted & Restricted Units'!$E$7:$E$399=\"2\")*('2. Assisted & Restricted Units'!$S$7:$S$399=\"Market Rate\")*('2. Assisted & Restricted Units'!$T$7:$T$399=\"VLI State\"))","v":0},{"$f":"SUMPRODUCT(('2. Assisted & Restricted Units'!$E$7:$E$399=\"2\")*('2. Assisted & Restricted Units'!$S$7:$S$399=\"MHP\")*('2. Assisted & Restricted Units'!$T$7:$T$399=\"VLI State\"))","v":0},{"$f":"SUMPRODUCT(('2. Assisted & Restricted Units'!$E$7:$E$399=\"2\")*('2. Assisted & Restricted Units'!$S$7:$S$399=\"NonAssisted\")*('2. Assisted & Restricted Units'!$T$7:$T$399=\"VLI State\"))","v":0},{"$f":"SUMPRODUCT(('2. Assisted & Restricted Units'!$E$7:$E$399=\"2\")*('2. Assisted & Restricted Units'!$S$7:$S$399=\"Other Restr\")*('2. Assisted & Restricted Units'!$T$7:$T$399=\"VLI State\"))","v":0},{"$f":"SUMPRODUCT(('2. Assisted & Restricted Units'!$E$7:$E$399=\"2\")*('2. Assisted & Restricted Units'!$S$7:$S$399=\"RHCP-B\")*('2. Assisted & Restricted Units'!$T$7:$T$399=\"VLI State\"))","v":0},{"$f":"SUMPRODUCT(('2. Assisted & Restricted Units'!$E$7:$E$399=\"2\")*('2. Assisted & Restricted Units'!$S$7:$S$399=\"SERA\")*('2. Assisted & Restricted Units'!$T$7:$T$399=\"VLI State\"))","v":0},{"$f":"SUMPRODUCT(('2. Assisted & Restricted Units'!$E$7:$E$399=\"2\")*('2. Assisted & Restricted Units'!$S$7:$S$399=\"SUHRP\")*('2. Assisted & Restricted Units'!$T$7:$T$399=\"VLI State\"))","v":0},{"$f":"SUMPRODUCT(('2. Assisted & Restricted Units'!$E$7:$E$399=\"2\")*('2. Assisted & Restricted Units'!$S$7:$S$399=\"TOD\")*('2. Assisted & Restricted Units'!$T$7:$T$399=\"VLI State\"))","v":0},{"$f":"SUMPRODUCT(('2. Assisted & Restricted Units'!$E$7:$E$399=\"2\")*('2. Assisted & Restricted Units'!$S$7:$S$399=\"707-E\")*('2. Assisted & Restricted Units'!$T$7:$T$399=\"VLI State\"))","v":0},{"$f":"SUMPRODUCT(('2. Assisted & Restricted Units'!$E$7:$E$399=\"2\")*('2. Assisted & Restricted Units'!$S$7:$S$399=\"707-N\")*('2. Assisted & Restricted Units'!$T$7:$T$399=\"VLI State\"))","v":0}]
["2 Bedroom LI State",{"$f":"SUMPRODUCT(('2. Assisted & Restricted Units'!$E$7:$E$399=\"2\")*('2. Assisted & Restricted Units'!$S$7:$S$399=\"CALDAP\")*('2. Assisted & Restricted Units'!$T$7:$T$399=\"LI State\"))","v":0},{"$f":"SUMPRODUCT(('2. Assisted & Restricted Units'!$E$7:$E$399=\"2\")*('2. Assisted & Restricted Units'!$S$7:$S$399=\"CHRP-R\")*('2. Assisted & Restricted Units'!$T$7:$T$399=\"LI State\"))","v":0},{"$f":"SUMPRODUCT(('2. Assisted & Restricted Units'!$E$7:$E$399=\"2\")*('2. Assisted & Restricted Units'!$S$7:$S$399=\"DDS\")*('2. Assisted & Restricted Units'!$T$7:$T$399=\"LI State\"))","v":0},{"$f":"SUMPRODUCT(('2. Assisted & Restricted Units'!$E$7:$E$399=\"2\")*('2. Assisted & Restricted Units'!$S$7:$S$399=\"DPRLP\")*('2. Assisted & Restricted Units'!$T$7:$T$399=\"LI State\"))","v":0},{"$f":"SUMPRODUCT(('2. Assisted & Restricted Units'!$E$7:$E$399=\"2\")*('2. Assisted & Restricted Units'!$S$7:$S$399=\"FHDP\")*('2. Assisted & Restricted Units'!$T$7:$T$399=\"LI State\"))","v":0},{"$f":"SUMPRODUCT(('2. Assisted & Restricted Units'!$E$7:$E$399=\"2\")*('2. Assisted & Restricted Units'!$S$7:$S$399=\"FMTW\")*('2. Assisted & Restricted Units'!$T$7:$T$399=\"LI State\"))","v":0},null,{"$f":"SUMPRODUCT(('2. Assisted & Restricted Units'!$E$7:$E$399=\"2\")*('2. Assisted & Restricted Units'!$S$7:$S$399=\"HOME\")*('2. Assisted & Restricted Units'!$T$7:$T$399=\"LI State\"))","v":0},{"$f":"SUMPRODUCT(('2. Assisted & Restricted Units'!$E$7:$E$399=\"2\")*('2. Assisted & Restricted Units'!$S$7:$S$399=\"Market Rate\")*('2. Assisted & Restricted Units'!$T$7:$T$399=\"LI State\"))","v":0},{"$f":"SUMPRODUCT(('2. Assisted & Restricted Units'!$E$7:$E$399=\"2\")*('2. Assisted & Restricted Units'!$S$7:$S$399=\"MHP\")*('2. Assisted & Restricted Units'!$T$7:$T$399=\"LI State\"))","v":0},{"$f":"SUMPRODUCT(('2. Assisted & Restricted Units'!$E$7:$E$399=\"2\")*('2. Assisted & Restricted Units'!$S$7:$S$399=\"NonAssisted\")*('2. Assisted & Restricted Units'!$T$7:$T$399=\"LI State\"))","v":0},{"$f":"SUMPRODUCT(('2. Assisted & Restricted Units'!$E$7:$E$399=\"2\")*('2. Assisted & Restricted Units'!$S$7:$S$399=\"Other Restr\")*('2. Assisted & Restricted Units'!$T$7:$T$399=\"LI State\"))","v":0},{"$f":"SUMPRODUCT(('2. Assisted & Restricted Units'!$E$7:$E$399=\"2\")*('2. Assisted & Restricted Units'!$S$7:$S$399=\"RHCP-B\")*('2. Assisted & Restricted Units'!$T$7:$T$399=\"LI State\"))","v":0},{"$f":"SUMPRODUCT(('2. Assisted & Restricted Units'!$E$7:$E$399=\"2\")*('2. Assisted & Restricted Units'!$S$7:$S$399=\"SERA\")*('2. Assisted & Restricted Units'!$T$7:$T$399=\"LI State\"))","v":0},{"$f":"SUMPRODUCT(('2. Assisted & Restricted Units'!$E$7:$E$399=\"2\")*('2. Assisted & Restricted Units'!$S$7:$S$399=\"SUHRP\")*('2. Assisted & Restricted Units'!$T$7:$T$399=\"LI State\"))","v":0},{"$f":"SUMPRODUCT(('2. Assisted & Restricted Units'!$E$7:$E$399=\"2\")*('2. Assisted & Restricted Units'!$S$7:$S$399=\"TOD\")*('2. Assisted & Restricted Units'!$T$7:$T$399=\"LI State\"))","v":0},{"$f":"SUMPRODUCT(('2. Assisted & Restricted Units'!$E$7:$E$399=\"2\")*('2. Assisted & Restricted Units'!$S$7:$S$399=\"707-E\")*('2. Assisted & Restricted Units'!$T$7:$T$399=\"LI State\"))","v":0},{"$f":"SUMPRODUCT(('2. Assisted & Restricted Units'!$E$7:$E$399=\"2\")*('2. Assisted & Restricted Units'!$S$7:$S$399=\"707-N\")*('2. Assisted & Restricted Units'!$T$7:$T$399=\"LI State\"))","v":0}]
["2 Bedroom Sec 8",{"$f":"SUMPRODUCT(('2. Assisted & Restricted Units'!$E$7:$E$399=\"2\")*('2. Assisted & Restricted Units'!$S$7:$S$399=\"CALDAP\")*('2. Assisted & Restricted Units'!$T$7:$T$399=\"CalHFA\"))","v":0},{"$f":"SUMPRODUCT(('2. Assisted & Restricted Units'!$E$7:$E$399=\"2\")*('2. Assisted & Restricted Units'!$S$7:$S$399=\"CHRP-R\")*('2. Assisted & Restricted Units'!$T$7:$T$399=\"CalHFA\"))","v":0},{"$f":"SUMPRODUCT(('2. Assisted & Restricted Units'!$E$7:$E$399=\"2\")*('2. Assisted & Restricted Units'!$S$7:$S$399=\"DDS\")*('2. Assisted & Restricted Units'!$T$7:$T$399=\"CalHFA\"))","v":0},{"$f":"SUMPRODUCT(('2. Assisted & Restricted Units'!$E$7:$E$399=\"2\")*('2. Assisted & Restricted Units'!$S$7:$S$399=\"DPRLP\")*('2. Assisted & Restricted Units'!$T$7:$T$399=\"CalHFA\"))","v":0},{"$f":"SUMPRODUCT(('2. Assisted & Restricted Units'!$E$7:$E$399=\"2\")*('2. Assisted & Restricted Units'!$S$7:$S$399=\"FHDP\")*('2. Assisted & Restricted Units'!$T$7:$T$399=\"CalHFA\"))","v":0},{"$f":"SUMPRODUCT(('2. Assisted & Restricted Units'!$E$7:$E$399=\"2\")*('2. Assisted & Restricted Units'!$S$7:$S$399=\"FMTW\")*('2. Assisted & Restricted Units'!$T$7:$T$399=\"CalHFA\"))","v":0},null,{"$f":"SUMPRODUCT(('2. Assisted & Restricted Units'!$E$7:$E$399=\"2\")*('2. Assisted & Restricted Units'!$S$7:$S$399=\"HOME\")*('2. Assisted & Restricted Units'!$T$7:$T$399=\"CalHFA\"))","v":0},{"$f":"SUMPRODUCT(('2. Assisted & Restricted Units'!$E$7:$E$399=\"2\")*('2. Assisted & Restricted Units'!$S$7:$S$399=\"Market Rate\")*('2. Assisted & Restricted Units'!$T$7:$T$399=\"CalHFA\"))","v":0},{"$f":"SUMPRODUCT(('2. Assisted & Restricted Units'!$E$7:$E$399=\"2\")*('2. Assisted & Restricted Units'!$S$7:$S$399=\"MHP\")*('2. Assisted & Restricted Units'!$T$7:$T$399=\"CalHFA\"))","v":0},{"$f":"SUMPRODUCT(('2. Assisted & Restricted Units'!$E$7:$E$399=\"2\")*('2. Assisted & Restricted Units'!$S$7:$S$399=\"NonAssisted\")*('2. Assisted & Restricted Units'!$T$7:$T$399=\"CalHFA\"))","v":0},{"$f":"SUMPRODUCT(('2. Assisted & Restricted Units'!$E$7:$E$399=\"2\")*('2. Assisted & Restricted Units'!$S$7:$S$399=\"Other Restr\")*('2. Assisted & Restricted Units'!$T$7:$T$399=\"CalHFA\"))","v":0},{"$f":"SUMPRODUCT(('2. Assisted & Restricted Units'!$E$7:$E$399=\"2\")*('2. Assisted & Restricted Units'!$S$7:$S$399=\"RHCP-B\")*('2. Assisted & Restricted Units'!$T$7:$T$399=\"CalHFA\"))","v":0},{"$f":"SUMPRODUCT(('2. Assisted & Restricted Units'!$E$7:$E$399=\"2\")*('2. Assisted & Restricted Units'!$S$7:$S$399=\"SERA\")*('2. Assisted & Restricted Units'!$T$7:$T$399=\"CalHFA\"))","v":0},{"$f":"SUMPRODUCT(('2. Assisted & Restricted Units'!$E$7:$E$399=\"2\")*('2. Assisted & Restricted Units'!$S$7:$S$399=\"SUHRP\")*('2. Assisted & Restricted Units'!$T$7:$T$399=\"CalHFA\"))","v":0},{"$f":"SUMPRODUCT(('2. Assisted & Restricted Units'!$E$7:$E$399=\"2\")*('2. Assisted & Restricted Units'!$S$7:$S$399=\"TOD\")*('2. Assisted & Restricted Units'!$T$7:$T$399=\"CalHFA\"))","v":0},{"$f":"SUMPRODUCT(('2. Assisted & Restricted Units'!$E$7:$E$399=\"2\")*('2. Assisted & Restricted Units'!$S$7:$S$399=\"707-E\")*('2. Assisted & Restricted Units'!$T$7:$T$399=\"CalHFA\"))","v":0},{"$f":"SUMPRODUCT(('2. Assisted & Restricted Units'!$E$7:$E$399=\"2\")*('2. Assisted & Restricted Units'!$S$7:$S$399=\"707-N\")*('2. Assisted & Restricted Units'!$T$7:$T$399=\"CalHFA\"))","v":0}]
["Total 2",{"$f":"SUM(B79:B102)","v":0},{"$f":"SUM(C79:C102)","v":0},{"$f":"SUM(D79:D102)","v":0},{"$f":"SUM(E79:E102)","v":0},{"$f":"SUM(F79:F102)","v":0},0,{"$f":"SUMPRODUCT(('2. Assisted & Restricted Units'!$E$7:$E$399=\"2\")*('2. Assisted & Restricted Units'!$S$7:$S$399=\"FWHG\"))","v":0},0,0,0,0,0,0,0,0,0,0,0,{"$f":"SUMPRODUCT(('2. Assisted & Restricted Units'!$E$7:$E$399=\"2\")*('2. Assisted & Restricted Units'!$L$7:$L$399=\"X\"))","v":0},{"$f":"SUMPRODUCT(('2. Assisted & Restricted Units'!$E$7:$E$399=\"2\")*('2. Assisted & Restricted Units'!#REF!=\"X\"))","v":{"$error":"#REF!"}},{"$f":"SUMPRODUCT(('2. Assisted & Restricted Units'!$E$7:$E$399=\"2\")*('2. Assisted & Restricted Units'!#REF!=\"X\"))","v":{"$error":"#REF!"}},{"$f":"SUMPRODUCT(('2. Assisted & Restricted Units'!$E$7:$E$399=\"2\")*('2. Assisted & Restricted Units'!#REF!=\"X\"))","v":{"$error":"#REF!"}},{"$f":"SUMPRODUCT(('2. Assisted & Restricted Units'!$E$7:$E$399=\"2\")*('2. Assisted & Restricted Units'!#REF!=\"X\"))","v":{"$error":"#REF!"}},{"$f":"SUMPRODUCT(('2. Assisted & Restricted Units'!$E$7:$E$399=\"2\")*('2. Assisted & Restricted Units'!#REF!=\"X\"))","v":{"$error":"#REF!"}},{"$f":"SUMPRODUCT(('2. Assisted & Restricted Units'!$E$7:$E$399=\"2\")*('2. Assisted & Restricted Units'!#REF!=\"X\"))","v":{"$error":"#REF!"}},{"$f":"SUMPRODUCT(('2. Assisted & Restricted Units'!$E$7:$E$399=\"2\")*('2. Assisted & Restricted Units'!$M$7:$M$399=\"X\"))","v":0},{"$f":"SUMPRODUCT(('2. Assisted & Restricted Units'!$E$7:$E$399=\"2\")*('2. Assisted & Restricted Units'!$O$7:$O$399=\"X\"))","v":0}]
["3 Bedroom 15% AMI",{"$f":"SUMPRODUCT(('2. Assisted & Restricted Units'!$E$7:$E$399=\"3\")*('2. Assisted & Restricted Units'!$S$7:$S$399=\"CALDAP\")*('2. Assisted & Restricted Units'!$T$7:$T$399=\"15% AMI\"))","v":0},{"$f":"SUMPRODUCT(('2. Assisted & Restricted Units'!$E$7:$E$399=\"3\")*('2. Assisted & Restricted Units'!$S$7:$S$399=\"CHRP-R\")*('2. Assisted & Restricted Units'!$T$7:$T$399=\"15% AMI\"))","v":0},{"$f":"SUMPRODUCT(('2. Assisted & Restricted Units'!$E$7:$E$399=\"3\")*('2. Assisted & Restricted Units'!$S$7:$S$399=\"DDS\")*('2. Assisted & Restricted Units'!$T$7:$T$399=\"15% AMI\"))","v":0},{"$f":"SUMPRODUCT(('2. Assisted & Restricted Units'!$E$7:$E$399=\"3\")*('2. Assisted & Restricted Units'!$S$7:$S$399=\"DPRLP\")*('2. Assisted & Restricted Units'!$T$7:$T$399=\"15% AMI\"))","v":0},{"$f":"SUMPRODUCT(('2. Assisted & Restricted Units'!$E$7:$E$399=\"3\")*('2. Assisted & Restricted Units'!$S$7:$S$399=\"FHDP\")*('2. Assisted & Restricted Units'!$T$7:$T$399=\"15% AMI\"))","v":0},{"$f":"SUMPRODUCT(('2. Assisted & Restricted Units'!$E$7:$E$399=\"3\")*('2. Assisted & Restricted Units'!$S$7:$S$399=\"FMTW\")*('2. Assisted & Restricted Units'!$T$7:$T$399=\"15% AMI\"))","v":0},null,{"$f":"SUMPRODUCT(('2. Assisted & Restricted Units'!$E$7:$E$399=\"3\")*('2. Assisted & Restricted Units'!$S$7:$S$399=\"HOME\")*('2. Assisted & Restricted Units'!$T$7:$T$399=\"15% AMI\"))","v":0},{"$f":"SUMPRODUCT(('2. Assisted & Restricted Units'!$E$7:$E$399=\"3\")*('2. Assisted & Restricted Units'!$S$7:$S$399=\"Market Rate\")*('2. Assisted & Restricted Units'!$T$7:$T$399=\"15% AMI\"))","v":0},{"$f":"SUMPRODUCT(('2. Assisted & Restricted Units'!$E$7:$E$399=\"3\")*('2. Assisted & Restricted Units'!$S$7:$S$399=\"MHP\")*('2. Assisted & Restricted Units'!$T$7:$T$399=\"15% AMI\"))","v":0},{"$f":"SUMPRODUCT(('2. Assisted & Restricted Units'!$E$7:$E$399=\"3\")*('2. Assisted & Restricted Units'!$S$7:$S$399=\"NonAssisted\")*('2. Assisted & Restricted Units'!$T$7:$T$399=\"15% AMI\"))","v":0},{"$f":"SUMPRODUCT(('2. Assisted & Restricted Units'!$E$7:$E$399=\"3\")*('2. Assisted & Restricted Units'!$S$7:$S$399=\"Other Restr\")*('2. Assisted & Restricted Units'!$T$7:$T$399=\"15% AMI\"))","v":0},{"$f":"SUMPRODUCT(('2. Assisted & Restricted Units'!$E$7:$E$399=\"3\")*('2. Assisted & Restricted Units'!$S$7:$S$399=\"RHCP-B\")*('2. Assisted & Restricted Units'!$T$7:$T$399=\"15% AMI\"))","v":0},{"$f":"SUMPRODUCT(('2. Assisted & Restricted Units'!$E$7:$E$399=\"3\")*('2. Assisted & Restricted Units'!$S$7:$S$399=\"SERA\")*('2. Assisted & Restricted Units'!$T$7:$T$399=\"15% AMI\"))","v":0},{"$f":"SUMPRODUCT(('2. Assisted & Restricted Units'!$E$7:$E$399=\"3\")*('2. Assisted & Restricted Units'!$S$7:$S$399=\"SUHRP\")*('2. Assisted & Restricted Units'!$T$7:$T$399=\"15% AMI\"))","v":0},{"$f":"SUMPRODUCT(('2. Assisted & Restricted Units'!$E$7:$E$399=\"3\")*('2. Assisted & Restricted Units'!$S$7:$S$399=\"TOD\")*('2. Assisted & Restricted Units'!$T$7:$T$399=\"15% AMI\"))","v":0},{"$f":"SUMPRODUCT(('2. Assisted & Restricted Units'!$E$7:$E$399=\"3\")*('2. Assisted & Restricted Units'!$S$7:$S$399=\"707-E\")*('2. Assisted & Restricted Units'!$T$7:$T$399=\"15% AMI\"))","v":0},{"$f":"SUMPRODUCT(('2. Assisted & Restricted Units'!$E$7:$E$399=\"3\")*('2. Assisted & Restricted Units'!$S$7:$S$399=\"707-N\")*('2. Assisted & Restricted Units'!$T$7:$T$399=\"15% AMI\"))","v":0}]
["3 Bedroom 20% AMI",{"$f":"SUMPRODUCT(('2. Assisted & Restricted Units'!$E$7:$E$399=\"3\")*('2. Assisted & Restricted Units'!$S$7:$S$399=\"CALDAP\")*('2. Assisted & Restricted Units'!$T$7:$T$399=\"20% AMI\"))","v":0},{"$f":"SUMPRODUCT(('2. Assisted & Restricted Units'!$E$7:$E$399=\"3\")*('2. Assisted & Restricted Units'!$S$7:$S$399=\"CHRP-R\")*('2. Assisted & Restricted Units'!$T$7:$T$399=\"20% AMI\"))","v":0},{"$f":"SUMPRODUCT(('2. Assisted & Restricted Units'!$E$7:$E$399=\"3\")*('2. Assisted & Restricted Units'!$S$7:$S$399=\"DDS\")*('2. Assisted & Restricted Units'!$T$7:$T$399=\"20% AMI\"))","v":0},{"$f":"SUMPRODUCT(('2. Assisted & Restricted Units'!$E$7:$E$399=\"3\")*('2. Assisted & Restricted Units'!$S$7:$S$399=\"DPRLP\")*('2. Assisted & Restricted Units'!$T$7:$T$399=\"20% AMI\"))","v":0},{"$f":"SUMPRODUCT(('2. Assisted & Restricted Units'!$E$7:$E$399=\"3\")*('2. Assisted & Restricted Units'!$S$7:$S$399=\"FHDP\")*('2. Assisted & Restricted Units'!$T$7:$T$399=\"20% AMI\"))","v":0},{"$f":"SUMPRODUCT(('2. Assisted & Restricted Units'!$E$7:$E$399=\"3\")*('2. Assisted & Restricted Units'!$S$7:$S$399=\"FMTW\")*('2. Assisted & Restricted Units'!$T$7:$T$399=\"20% AMI\"))","v":0},null,{"$f":"SUMPRODUCT(('2. Assisted & Restricted Units'!$E$7:$E$399=\"3\")*('2. Assisted & Restricted Units'!$S$7:$S$399=\"HOME\")*('2. Assisted & Restricted Units'!$T$7:$T$399=\"20% AMI\"))","v":0},{"$f":"SUMPRODUCT(('2. Assisted & Restricted Units'!$E$7:$E$399=\"3\")*('2. Assisted & Restricted Units'!$S$7:$S$399=\"Market Rate\")*('2. Assisted & Restricted Units'!$T$7:$T$399=\"20% AMI\"))","v":0},{"$f":"SUMPRODUCT(('2. Assisted & Restricted Units'!$E$7:$E$399=\"3\")*('2. Assisted & Restricted Units'!$S$7:$S$399=\"MHP\")*('2. Assisted & Restricted Units'!$T$7:$T$399=\"20% AMI\"))","v":0},{"$f":"SUMPRODUCT(('2. Assisted & Restricted Units'!$E$7:$E$399=\"3\")*('2. Assisted & Restricted Units'!$S$7:$S$399=\"NonAssisted\")*('2. Assisted & Restricted Units'!$T$7:$T$399=\"20% AMI\"))","v":0},{"$f":"SUMPRODUCT(('2. Assisted & Restricted Units'!$E$7:$E$399=\"3\")*('2. Assisted & Restricted Units'!$S$7:$S$399=\"Other Restr\")*('2. Assisted & Restricted Units'!$T$7:$T$399=\"20% AMI\"))","v":0},{"$f":"SUMPRODUCT(('2. Assisted & Restricted Units'!$E$7:$E$399=\"3\")*('2. Assisted & Restricted Units'!$S$7:$S$399=\"RHCP-B\")*('2. Assisted & Restricted Units'!$T$7:$T$399=\"20% AMI\"))","v":0},{"$f":"SUMPRODUCT(('2. Assisted & Restricted Units'!$E$7:$E$399=\"3\")*('2. Assisted & Restricted Units'!$S$7:$S$399=\"SERA\")*('2. Assisted & Restricted Units'!$T$7:$T$399=\"20% AMI\"))","v":0},{"$f":"SUMPRODUCT(('2. Assisted & Restricted Units'!$E$7:$E$399=\"3\")*('2. Assisted & Restricted Units'!$S$7:$S$399=\"SUHRP\")*('2. Assisted & Restricted Units'!$T$7:$T$399=\"20% AMI\"))","v":0},{"$f":"SUMPRODUCT(('2. Assisted & Restricted Units'!$E$7:$E$399=\"3\")*('2. Assisted & Restricted Units'!$S$7:$S$399=\"TOD\")*('2. Assisted & Restricted Units'!$T$7:$T$399=\"20% AMI\"))","v":0},{"$f":"SUMPRODUCT(('2. Assisted & Restricted Units'!$E$7:$E$399=\"3\")*('2. Assisted & Restricted Units'!$S$7:$S$399=\"707-E\")*('2. Assisted & Restricted Units'!$T$7:$T$399=\"20% AMI\"))","v":0},{"$f":"SUMPRODUCT(('2. Assisted & Restricted Units'!$E$7:$E$399=\"3\")*('2. Assisted & Restricted Units'!$S$7:$S$399=\"707-N\")*('2. Assisted & Restricted Units'!$T$7:$T$399=\"20% AMI\"))","v":0}]
["3 Bedroom 25% AMI",{"$f":"SUMPRODUCT(('2. Assisted & Restricted Units'!$E$7:$E$399=\"3\")*('2. Assisted & Restricted Units'!$S$7:$S$399=\"CALDAP\")*('2. Assisted & Restricted Units'!$T$7:$T$399=\"25% AMI\"))","v":0},{"$f":"SUMPRODUCT(('2. Assisted & Restricted Units'!$E$7:$E$399=\"3\")*('2. Assisted & Restricted Units'!$S$7:$S$399=\"CHRP-R\")*('2. Assisted & Restricted Units'!$T$7:$T$399=\"25% AMI\"))","v":0},{"$f":"SUMPRODUCT(('2. Assisted & Restricted Units'!$E$7:$E$399=\"3\")*('2. Assisted & Restricted Units'!$S$7:$S$399=\"DDS\")*('2. Assisted & Restricted Units'!$T$7:$T$399=\"25% AMI\"))","v":0},{"$f":"SUMPRODUCT(('2. Assisted & Restricted Units'!$E$7:$E$399=\"3\")*('2. Assisted & Restricted Units'!$S$7:$S$399=\"DPRLP\")*('2. Assisted & Restricted Units'!$T$7:$T$399=\"25% AMI\"))","v":0},{"$f":"SUMPRODUCT(('2. Assisted & Restricted Units'!$E$7:$E$399=\"3\")*('2. Assisted & Restricted Units'!$S$7:$S$399=\"FHDP\")*('2. Assisted & Restricted Units'!$T$7:$T$399=\"25% AMI\"))","v":0},{"$f":"SUMPRODUCT(('2. Assisted & Restricted Units'!$E$7:$E$399=\"3\")*('2. Assisted & Restricted Units'!$S$7:$S$399=\"FMTW\")*('2. Assisted & Restricted Units'!$T$7:$T$399=\"25% AMI\"))","v":0},null,{"$f":"SUMPRODUCT(('2. Assisted & Restricted Units'!$E$7:$E$399=\"3\")*('2. Assisted & Restricted Units'!$S$7:$S$399=\"HOME\")*('2. Assisted & Restricted Units'!$T$7:$T$399=\"25% AMI\"))","v":0},{"$f":"SUMPRODUCT(('2. Assisted & Restricted Units'!$E$7:$E$399=\"3\")*('2. Assisted & Restricted Units'!$S$7:$S$399=\"Market Rate\")*('2. Assisted & Restricted Units'!$T$7:$T$399=\"25% AMI\"))","v":0},{"$f":"SUMPRODUCT(('2. Assisted & Restricted Units'!$E$7:$E$399=\"3\")*('2. Assisted & Restricted Units'!$S$7:$S$399=\"MHP\")*('2. Assisted & Restricted Units'!$T$7:$T$399=\"25% AMI\"))","v":0},{"$f":"SUMPRODUCT(('2. Assisted & Restricted Units'!$E$7:$E$399=\"3\")*('2. Assisted & Restricted Units'!$S$7:$S$399=\"NonAssisted\")*('2. Assisted & Restricted Units'!$T$7:$T$399=\"25% AMI\"))","v":0},{"$f":"SUMPRODUCT(('2. Assisted & Restricted Units'!$E$7:$E$399=\"3\")*('2. Assisted & Restricted Units'!$S$7:$S$399=\"Other Restr\")*('2. Assisted & Restricted Units'!$T$7:$T$399=\"25% AMI\"))","v":0},{"$f":"SUMPRODUCT(('2. Assisted & Restricted Units'!$E$7:$E$399=\"3\")*('2. Assisted & Restricted Units'!$S$7:$S$399=\"RHCP-B\")*('2. Assisted & Restricted Units'!$T$7:$T$399=\"25% AMI\"))","v":0},{"$f":"SUMPRODUCT(('2. Assisted & Restricted Units'!$E$7:$E$399=\"3\")*('2. Assisted & Restricted Units'!$S$7:$S$399=\"SERA\")*('2. Assisted & Restricted Units'!$T$7:$T$399=\"25% AMI\"))","v":0},{"$f":"SUMPRODUCT(('2. Assisted & Restricted Units'!$E$7:$E$399=\"3\")*('2. Assisted & Restricted Units'!$S$7:$S$399=\"SUHRP\")*('2. Assisted & Restricted Units'!$T$7:$T$399=\"25% AMI\"))","v":0},{"$f":"SUMPRODUCT(('2. Assisted & Restricted Units'!$E$7:$E$399=\"3\")*('2. Assisted & Restricted Units'!$S$7:$S$399=\"TOD\")*('2. Assisted & Restricted Units'!$T$7:$T$399=\"25% AMI\"))","v":0},{"$f":"SUMPRODUCT(('2. Assisted & Restricted Units'!$E$7:$E$399=\"3\")*('2. Assisted & Restricted Units'!$S$7:$S$399=\"707-E\")*('2. Assisted & Restricted Units'!$T$7:$T$399=\"25% AMI\"))","v":0},{"$f":"SUMPRODUCT(('2. Assisted & Restricted Units'!$E$7:$E$399=\"3\")*('2. Assisted & Restricted Units'!$S$7:$S$399=\"707-N\")*('2. Assisted & Restricted Units'!$T$7:$T$399=\"25% AMI\"))","v":0}]
["3 Bedroom 30% AMI",{"$f":"SUMPRODUCT(('2. Assisted & Restricted Units'!$E$7:$E$399=\"3\")*('2. Assisted & Restricted Units'!$S$7:$S$399=\"CALDAP\")*('2. Assisted & Restricted Units'!$T$7:$T$399=\"30% AMI\"))","v":0},{"$f":"SUMPRODUCT(('2. Assisted & Restricted Units'!$E$7:$E$399=\"3\")*('2. Assisted & Restricted Units'!$S$7:$S$399=\"CHRP-R\")*('2. Assisted & Restricted Units'!$T$7:$T$399=\"30% AMI\"))","v":0},{"$f":"SUMPRODUCT(('2. Assisted & Restricted Units'!$E$7:$E$399=\"3\")*('2. Assisted & Restricted Units'!$S$7:$S$399=\"DDS\")*('2. Assisted & Restricted Units'!$T$7:$T$399=\"30% AMI\"))","v":0},{"$f":"SUMPRODUCT(('2. Assisted & Restricted Units'!$E$7:$E$399=\"3\")*('2. Assisted & Restricted Units'!$S$7:$S$399=\"DPRLP\")*('2. Assisted & Restricted Units'!$T$7:$T$399=\"30% AMI\"))","v":0},{"$f":"SUMPRODUCT(('2. Assisted & Restricted Units'!$E$7:$E$399=\"3\")*('2. Assisted & Restricted Units'!$S$7:$S$399=\"FHDP\")*('2. Assisted & Restricted Units'!$T$7:$T$399=\"30% AMI\"))","v":0},{"$f":"SUMPRODUCT(('2. Assisted & Restricted Units'!$E$7:$E$399=\"3\")*('2. Assisted & Restricted Units'!$S$7:$S$399=\"FMTW\")*('2. Assisted & Restricted Units'!$T$7:$T$399=\"30% AMI\"))","v":0},null,{"$f":"SUMPRODUCT(('2. Assisted & Restricted Units'!$E$7:$E$399=\"3\")*('2. Assisted & Restricted Units'!$S$7:$S$399=\"HOME\")*('2. Assisted & Restricted Units'!$T$7:$T$399=\"30% AMI\"))","v":0},{"$f":"SUMPRODUCT(('2. Assisted & Restricted Units'!$E$7:$E$399=\"3\")*('2. Assisted & Restricted Units'!$S$7:$S$399=\"Market Rate\")*('2. Assisted & Restricted Units'!$T$7:$T$399=\"30% AMI\"))","v":0},{"$f":"SUMPRODUCT(('2. Assisted & Restricted Units'!$E$7:$E$399=\"3\")*('2. Assisted & Restricted Units'!$S$7:$S$399=\"MHP\")*('2. Assisted & Restricted Units'!$T$7:$T$399=\"30% AMI\"))","v":0},{"$f":"SUMPRODUCT(('2. Assisted & Restricted Units'!$E$7:$E$399=\"3\")*('2. Assisted & Restricted Units'!$S$7:$S$399=\"NonAssisted\")*('2. Assisted & Restricted Units'!$T$7:$T$399=\"30% AMI\"))","v":0},{"$f":"SUMPRODUCT(('2. Assisted & Restricted Units'!$E$7:$E$399=\"3\")*('2. Assisted & Restricted Units'!$S$7:$S$399=\"Other Restr\")*('2. Assisted & Restricted Units'!$T$7:$T$399=\"30% AMI\"))","v":0},{"$f":"SUMPRODUCT(('2. Assisted & Restricted Units'!$E$7:$E$399=\"3\")*('2. Assisted & Restricted Units'!$S$7:$S$399=\"RHCP-B\")*('2. Assisted & Restricted Units'!$T$7:$T$399=\"30% AMI\"))","v":0},{"$f":"SUMPRODUCT(('2. Assisted & Restricted Units'!$E$7:$E$399=\"3\")*('2. Assisted & Restricted Units'!$S$7:$S$399=\"SERA\")*('2. Assisted & Restricted Units'!$T$7:$T$399=\"30% AMI\"))","v":0},{"$f":"SUMPRODUCT(('2. Assisted & Restricted Units'!$E$7:$E$399=\"3\")*('2. Assisted & Restricted Units'!$S$7:$S$399=\"SUHRP\")*('2. Assisted & Restricted Units'!$T$7:$T$399=\"30% AMI\"))","v":0},{"$f":"SUMPRODUCT(('2. Assisted & Restricted Units'!$E$7:$E$399=\"3\")*('2. Assisted & Restricted Units'!$S$7:$S$399=\"TOD\")*('2. Assisted & Restricted Units'!$T$7:$T$399=\"30% AMI\"))","v":0},{"$f":"SUMPRODUCT(('2. Assisted & Restricted Units'!$E$7:$E$399=\"3\")*('2. Assisted & Restricted Units'!$S$7:$S$399=\"707-E\")*('2. Assisted & Restricted Units'!$T$7:$T$399=\"30% AMI\"))","v":0},{"$f":"SUMPRODUCT(('2. Assisted & Restricted Units'!$E$7:$E$399=\"3\")*('2. Assisted & Restricted Units'!$S$7:$S$399=\"707-N\")*('2. Assisted & Restricted Units'!$T$7:$T$399=\"30% AMI\"))","v":0}]
["3 Bedroom 35% AMI",{"$f":"SUMPRODUCT(('2. Assisted & Restricted Units'!$E$7:$E$399=\"3\")*('2. Assisted & Restricted Units'!$S$7:$S$399=\"CALDAP\")*('2. Assisted & Restricted Units'!$T$7:$T$399=\"35% AMI\"))","v":0},{"$f":"SUMPRODUCT(('2. Assisted & Restricted Units'!$E$7:$E$399=\"3\")*('2. Assisted & Restricted Units'!$S$7:$S$399=\"CHRP-R\")*('2. Assisted & Restricted Units'!$T$7:$T$399=\"35% AMI\"))","v":0},{"$f":"SUMPRODUCT(('2. Assisted & Restricted Units'!$E$7:$E$399=\"3\")*('2. Assisted & Restricted Units'!$S$7:$S$399=\"DDS\")*('2. Assisted & Restricted Units'!$T$7:$T$399=\"35% AMI\"))","v":0},{"$f":"SUMPRODUCT(('2. Assisted & Restricted Units'!$E$7:$E$399=\"3\")*('2. Assisted & Restricted Units'!$S$7:$S$399=\"DPRLP\")*('2. Assisted & Restricted Units'!$T$7:$T$399=\"35% AMI\"))","v":0},{"$f":"SUMPRODUCT(('2. Assisted & Restricted Units'!$E$7:$E$399=\"3\")*('2. Assisted & Restricted Units'!$S$7:$S$399=\"FHDP\")*('2. Assisted & Restricted Units'!$T$7:$T$399=\"35% AMI\"))","v":0},{"$f":"SUMPRODUCT(('2. Assisted & Restricted Units'!$E$7:$E$399=\"3\")*('2. Assisted & Restricted Units'!$S$7:$S$399=\"FMTW\")*('2. Assisted & Restricted Units'!$T$7:$T$399=\"35% AMI\"))","v":0},null,{"$f":"SUMPRODUCT(('2. Assisted & Restricted Units'!$E$7:$E$399=\"3\")*('2. Assisted & Restricted Units'!$S$7:$S$399=\"HOME\")*('2. Assisted & Restricted Units'!$T$7:$T$399=\"35% AMI\"))","v":0},{"$f":"SUMPRODUCT(('2. Assisted & Restricted Units'!$E$7:$E$399=\"3\")*('2. Assisted & Restricted Units'!$S$7:$S$399=\"Market Rate\")*('2. Assisted & Restricted Units'!$T$7:$T$399=\"35% AMI\"))","v":0},{"$f":"SUMPRODUCT(('2. Assisted & Restricted Units'!$E$7:$E$399=\"3\")*('2. Assisted & Restricted Units'!$S$7:$S$399=\"MHP\")*('2. Assisted & Restricted Units'!$T$7:$T$399=\"35% AMI\"))","v":0},{"$f":"SUMPRODUCT(('2. Assisted & Restricted Units'!$E$7:$E$399=\"3\")*('2. Assisted & Restricted Units'!$S$7:$S$399=\"NonAssisted\")*('2. Assisted & Restricted Units'!$T$7:$T$399=\"35% AMI\"))","v":0},{"$f":"SUMPRODUCT(('2. Assisted & Restricted Units'!$E$7:$E$399=\"3\")*('2. Assisted & Restricted Units'!$S$7:$S$399=\"Other Restr\")*('2. Assisted & Restricted Units'!$T$7:$T$399=\"35% AMI\"))","v":0},{"$f":"SUMPRODUCT(('2. Assisted & Restricted Units'!$E$7:$E$399=\"3\")*('2. Assisted & Restricted Units'!$S$7:$S$399=\"RHCP-B\")*('2. Assisted & Restricted Units'!$T$7:$T$399=\"35% AMI\"))","v":0},{"$f":"SUMPRODUCT(('2. Assisted & Restricted Units'!$E$7:$E$399=\"3\")*('2. Assisted & Restricted Units'!$S$7:$S$399=\"SERA\")*('2. Assisted & Restricted Units'!$T$7:$T$399=\"35% AMI\"))","v":0},{"$f":"SUMPRODUCT(('2. Assisted & Restricted Units'!$E$7:$E$399=\"3\")*('2. Assisted & Restricted Units'!$S$7:$S$399=\"SUHRP\")*('2. Assisted & Restricted Units'!$T$7:$T$399=\"35% AMI\"))","v":0},{"$f":"SUMPRODUCT(('2. Assisted & Restricted Units'!$E$7:$E$399=\"3\")*('2. Assisted & Restricted Units'!$S$7:$S$399=\"TOD\")*('2. Assisted & Restricted Units'!$T$7:$T$399=\"35% AMI\"))","v":0},{"$f":"SUMPRODUCT(('2. Assisted & Restricted Units'!$E$7:$E$399=\"3\")*('2. Assisted & Restricted Units'!$S$7:$S$399=\"707-E\")*('2. Assisted & Restricted Units'!$T$7:$T$399=\"35% AMI\"))","v":0},{"$f":"SUMPRODUCT(('2. Assisted & Restricted Units'!$E$7:$E$399=\"3\")*('2. Assisted & Restricted Units'!$S$7:$S$399=\"707-N\")*('2. Assisted & Restricted Units'!$T$7:$T$399=\"35% AMI\"))","v":0}]
["3 Bedroom 40% AMI",{"$f":"SUMPRODUCT(('2. Assisted & Restricted Units'!$E$7:$E$399=\"3\")*('2. Assisted & Restricted Units'!$S$7:$S$399=\"CALDAP\")*('2. Assisted & Restricted Units'!$T$7:$T$399=\"40% AMI\"))","v":0},{"$f":"SUMPRODUCT(('2. Assisted & Restricted Units'!$E$7:$E$399=\"3\")*('2. Assisted & Restricted Units'!$S$7:$S$399=\"CHRP-R\")*('2. Assisted & Restricted Units'!$T$7:$T$399=\"40% AMI\"))","v":0},{"$f":"SUMPRODUCT(('2. Assisted & Restricted Units'!$E$7:$E$399=\"3\")*('2. Assisted & Restricted Units'!$S$7:$S$399=\"DDS\")*('2. Assisted & Restricted Units'!$T$7:$T$399=\"40% AMI\"))","v":0},{"$f":"SUMPRODUCT(('2. Assisted & Restricted Units'!$E$7:$E$399=\"3\")*('2. Assisted & Restricted Units'!$S$7:$S$399=\"DPRLP\")*('2. Assisted & Restricted Units'!$T$7:$T$399=\"40% AMI\"))","v":0},{"$f":"SUMPRODUCT(('2. Assisted & Restricted Units'!$E$7:$E$399=\"3\")*('2. Assisted & Restricted Units'!$S$7:$S$399=\"FHDP\")*('2. Assisted & Restricted Units'!$T$7:$T$399=\"40% AMI\"))","v":0},{"$f":"SUMPRODUCT(('2. Assisted & Restricted Units'!$E$7:$E$399=\"3\")*('2. Assisted & Restricted Units'!$S$7:$S$399=\"FMTW\")*('2. Assisted & Restricted Units'!$T$7:$T$399=\"40% AMI\"))","v":0},null,{"$f":"SUMPRODUCT(('2. Assisted & Restricted Units'!$E$7:$E$399=\"3\")*('2. Assisted & Restricted Units'!$S$7:$S$399=\"HOME\")*('2. Assisted & Restricted Units'!$T$7:$T$399=\"40% AMI\"))","v":0},{"$f":"SUMPRODUCT(('2. Assisted & Restricted Units'!$E$7:$E$399=\"3\")*('2. Assisted & Restricted Units'!$S$7:$S$399=\"Market Rate\")*('2. Assisted & Restricted Units'!$T$7:$T$399=\"40% AMI\"))","v":0},{"$f":"SUMPRODUCT(('2. Assisted & Restricted Units'!$E$7:$E$399=\"3\")*('2. Assisted & Restricted Units'!$S$7:$S$399=\"MHP\")*('2. Assisted & Restricted Units'!$T$7:$T$399=\"40% AMI\"))","v":0},{"$f":"SUMPRODUCT(('2. Assisted & Restricted Units'!$E$7:$E$399=\"3\")*('2. Assisted & Restricted Units'!$S$7:$S$399=\"NonAssisted\")*('2. Assisted & Restricted Units'!$T$7:$T$399=\"40% AMI\"))","v":0},{"$f":"SUMPRODUCT(('2. Assisted & Restricted Units'!$E$7:$E$399=\"3\")*('2. Assisted & Restricted Units'!$S$7:$S$399=\"Other Restr\")*('2. Assisted & Restricted Units'!$T$7:$T$399=\"40% AMI\"))","v":0},{"$f":"SUMPRODUCT(('2. Assisted & Restricted Units'!$E$7:$E$399=\"3\")*('2. Assisted & Restricted Units'!$S$7:$S$399=\"RHCP-B\")*('2. Assisted & Restricted Units'!$T$7:$T$399=\"40% AMI\"))","v":0},{"$f":"SUMPRODUCT(('2. Assisted & Restricted Units'!$E$7:$E$399=\"3\")*('2. Assisted & Restricted Units'!$S$7:$S$399=\"SERA\")*('2. Assisted & Restricted Units'!$T$7:$T$399=\"40% AMI\"))","v":0},{"$f":"SUMPRODUCT(('2. Assisted & Restricted Units'!$E$7:$E$399=\"3\")*('2. Assisted & Restricted Units'!$S$7:$S$399=\"SUHRP\")*('2. Assisted & Restricted Units'!$T$7:$T$399=\"40% AMI\"))","v":0},{"$f":"SUMPRODUCT(('2. Assisted & Restricted Units'!$E$7:$E$399=\"3\")*('2. Assisted & Restricted Units'!$S$7:$S$399=\"TOD\")*('2. Assisted & Restricted Units'!$T$7:$T$399=\"40% AMI\"))","v":0},{"$f":"SUMPRODUCT(('2. Assisted & Restricted Units'!$E$7:$E$399=\"3\")*('2. Assisted & Restricted Units'!$S$7:$S$399=\"707-E\")*('2. Assisted & Restricted Units'!$T$7:$T$399=\"40% AMI\"))","v":0},{"$f":"SUMPRODUCT(('2. Assisted & Restricted Units'!$E$7:$E$399=\"3\")*('2. Assisted & Restricted Units'!$S$7:$S$399=\"707-N\")*('2. Assisted & Restricted Units'!$T$7:$T$399=\"40% AMI\"))","v":0}]
["3 Bedroom 45% AMI",{"$f":"SUMPRODUCT(('2. Assisted & Restricted Units'!$E$7:$E$399=\"3\")*('2. Assisted & Restricted Units'!$S$7:$S$399=\"CALDAP\")*('2. Assisted & Restricted Units'!$T$7:$T$399=\"45% AMI\"))","v":0},{"$f":"SUMPRODUCT(('2. Assisted & Restricted Units'!$E$7:$E$399=\"3\")*('2. Assisted & Restricted Units'!$S$7:$S$399=\"CHRP-R\")*('2. Assisted & Restricted Units'!$T$7:$T$399=\"45% AMI\"))","v":0},{"$f":"SUMPRODUCT(('2. Assisted & Restricted Units'!$E$7:$E$399=\"3\")*('2. Assisted & Restricted Units'!$S$7:$S$399=\"DDS\")*('2. Assisted & Restricted Units'!$T$7:$T$399=\"45% AMI\"))","v":0},{"$f":"SUMPRODUCT(('2. Assisted & Restricted Units'!$E$7:$E$399=\"3\")*('2. Assisted & Restricted Units'!$S$7:$S$399=\"DPRLP\")*('2. Assisted & Restricted Units'!$T$7:$T$399=\"45% AMI\"))","v":0},{"$f":"SUMPRODUCT(('2. Assisted & Restricted Units'!$E$7:$E$399=\"3\")*('2. Assisted & Restricted Units'!$S$7:$S$399=\"FHDP\")*('2. Assisted & Restricted Units'!$T$7:$T$399=\"45% AMI\"))","v":0},{"$f":"SUMPRODUCT(('2. Assisted & Restricted Units'!$E$7:$E$399=\"3\")*('2. Assisted & Restricted Units'!$S$7:$S$399=\"FMTW\")*('2. Assisted & Restricted Units'!$T$7:$T$399=\"45% AMI\"))","v":0},null,{"$f":"SUMPRODUCT(('2. Assisted & Restricted Units'!$E$7:$E$399=\"3\")*('2. Assisted & Restricted Units'!$S$7:$S$399=\"HOME\")*('2. Assisted & Restricted Units'!$T$7:$T$399=\"45% AMI\"))","v":0},{"$f":"SUMPRODUCT(('2. Assisted & Restricted Units'!$E$7:$E$399=\"3\")*('2. Assisted & Restricted Units'!$S$7:$S$399=\"Market Rate\")*('2. Assisted & Restricted Units'!$T$7:$T$399=\"45% AMI\"))","v":0},{"$f":"SUMPRODUCT(('2. Assisted & Restricted Units'!$E$7:$E$399=\"3\")*('2. Assisted & Restricted Units'!$S$7:$S$399=\"MHP\")*('2. Assisted & Restricted Units'!$T$7:$T$399=\"45% AMI\"))","v":0},{"$f":"SUMPRODUCT(('2. Assisted & Restricted Units'!$E$7:$E$399=\"3\")*('2. Assisted & Restricted Units'!$S$7:$S$399=\"NonAssisted\")*('2. Assisted & Restricted Units'!$T$7:$T$399=\"45% AMI\"))","v":0},{"$f":"SUMPRODUCT(('2. Assisted & Restricted Units'!$E$7:$E$399=\"3\")*('2. Assisted & Restricted Units'!$S$7:$S$399=\"Other Restr\")*('2. Assisted & Restricted Units'!$T$7:$T$399=\"45% AMI\"))","v":0},{"$f":"SUMPRODUCT(('2. Assisted & Restricted Units'!$E$7:$E$399=\"3\")*('2. Assisted & Restricted Units'!$S$7:$S$399=\"RHCP-B\")*('2. Assisted & Restricted Units'!$T$7:$T$399=\"45% AMI\"))","v":0},{"$f":"SUMPRODUCT(('2. Assisted & Restricted Units'!$E$7:$E$399=\"3\")*('2. Assisted & Restricted Units'!$S$7:$S$399=\"SERA\")*('2. Assisted & Restricted Units'!$T$7:$T$399=\"45% AMI\"))","v":0},{"$f":"SUMPRODUCT(('2. Assisted & Restricted Units'!$E$7:$E$399=\"3\")*('2. Assisted & Restricted Units'!$S$7:$S$399=\"SUHRP\")*('2. Assisted & Restricted Units'!$T$7:$T$399=\"45% AMI\"))","v":0},{"$f":"SUMPRODUCT(('2. Assisted & Restricted Units'!$E$7:$E$399=\"3\")*('2. Assisted & Restricted Units'!$S$7:$S$399=\"TOD\")*('2. Assisted & Restricted Units'!$T$7:$T$399=\"45% AMI\"))","v":0},{"$f":"SUMPRODUCT(('2. Assisted & Restricted Units'!$E$7:$E$399=\"3\")*('2. Assisted & Restricted Units'!$S$7:$S$399=\"707-E\")*('2. Assisted & Restricted Units'!$T$7:$T$399=\"45% AMI\"))","v":0},{"$f":"SUMPRODUCT(('2. Assisted & Restricted Units'!$E$7:$E$399=\"3\")*('2. Assisted & Restricted Units'!$S$7:$S$399=\"707-N\")*('2. Assisted & Restricted Units'!$T$7:$T$399=\"45% AMI\"))","v":0}]
["3 Bedroom 50% AMI",{"$f":"SUMPRODUCT(('2. Assisted & Restricted Units'!$E$7:$E$399=\"3\")*('2. Assisted & Restricted Units'!$S$7:$S$399=\"CALDAP\")*('2. Assisted & Restricted Units'!$T$7:$T$399=\"50% AMI\"))","v":0},{"$f":"SUMPRODUCT(('2. Assisted & Restricted Units'!$E$7:$E$399=\"3\")*('2. Assisted & Restricted Units'!$S$7:$S$399=\"CHRP-R\")*('2. Assisted & Restricted Units'!$T$7:$T$399=\"50% AMI\"))","v":0},{"$f":"SUMPRODUCT(('2. Assisted & Restricted Units'!$E$7:$E$399=\"3\")*('2. Assisted & Restricted Units'!$S$7:$S$399=\"DDS\")*('2. Assisted & Restricted Units'!$T$7:$T$399=\"50% AMI\"))","v":0},{"$f":"SUMPRODUCT(('2. Assisted & Restricted Units'!$E$7:$E$399=\"3\")*('2. Assisted & Restricted Units'!$S$7:$S$399=\"DPRLP\")*('2. Assisted & Restricted Units'!$T$7:$T$399=\"50% AMI\"))","v":0},{"$f":"SUMPRODUCT(('2. Assisted & Restricted Units'!$E$7:$E$399=\"3\")*('2. Assisted & Restricted Units'!$S$7:$S$399=\"FHDP\")*('2. Assisted & Restricted Units'!$T$7:$T$399=\"50% AMI\"))","v":0},{"$f":"SUMPRODUCT(('2. Assisted & Restricted Units'!$E$7:$E$399=\"3\")*('2. Assisted & Restricted Units'!$S$7:$S$399=\"FMTW\")*('2. Assisted & Restricted Units'!$T$7:$T$399=\"50% AMI\"))","v":0},null,{"$f":"SUMPRODUCT(('2. Assisted & Restricted Units'!$E$7:$E$399=\"3\")*('2. Assisted & Restricted Units'!$S$7:$S$399=\"HOME\")*('2. Assisted & Restricted Units'!$T$7:$T$399=\"50% AMI\"))","v":0},{"$f":"SUMPRODUCT(('2. Assisted & Restricted Units'!$E$7:$E$399=\"3\")*('2. Assisted & Restricted Units'!$S$7:$S$399=\"Market Rate\")*('2. Assisted & Restricted Units'!$T$7:$T$399=\"50% AMI\"))","v":0},{"$f":"SUMPRODUCT(('2. Assisted & Restricted Units'!$E$7:$E$399=\"3\")*('2. Assisted & Restricted Units'!$S$7:$S$399=\"MHP\")*('2. Assisted & Restricted Units'!$T$7:$T$399=\"50% AMI\"))","v":0},{"$f":"SUMPRODUCT(('2. Assisted & Restricted Units'!$E$7:$E$399=\"3\")*('2. Assisted & Restricted Units'!$S$7:$S$399=\"NonAssisted\")*('2. Assisted & Restricted Units'!$T$7:$T$399=\"50% AMI\"))","v":0},{"$f":"SUMPRODUCT(('2. Assisted & Restricted Units'!$E$7:$E$399=\"3\")*('2. Assisted & Restricted Units'!$S$7:$S$399=\"Other Restr\")*('2. Assisted & Restricted Units'!$T$7:$T$399=\"50% AMI\"))","v":0},{"$f":"SUMPRODUCT(('2. Assisted & Restricted Units'!$E$7:$E$399=\"3\")*('2. Assisted & Restricted Units'!$S$7:$S$399=\"RHCP-B\")*('2. Assisted & Restricted Units'!$T$7:$T$399=\"50% AMI\"))","v":0},{"$f":"SUMPRODUCT(('2. Assisted & Restricted Units'!$E$7:$E$399=\"3\")*('2. Assisted & Restricted Units'!$S$7:$S$399=\"SERA\")*('2. Assisted & Restricted Units'!$T$7:$T$399=\"50% AMI\"))","v":0},{"$f":"SUMPRODUCT(('2. Assisted & Restricted Units'!$E$7:$E$399=\"3\")*('2. Assisted & Restricted Units'!$S$7:$S$399=\"SUHRP\")*('2. Assisted & Restricted Units'!$T$7:$T$399=\"50% AMI\"))","v":0},{"$f":"SUMPRODUCT(('2. Assisted & Restricted Units'!$E$7:$E$399=\"3\")*('2. Assisted & Restricted Units'!$S$7:$S$399=\"TOD\")*('2. Assisted & Restricted Units'!$T$7:$T$399=\"50% AMI\"))","v":0},{"$f":"SUMPRODUCT(('2. Assisted & Restricted Units'!$E$7:$E$399=\"3\")*('2. Assisted & Restricted Units'!$S$7:$S$399=\"707-E\")*('2. Assisted & Restricted Units'!$T$7:$T$399=\"50% AMI\"))","v":0},{"$f":"SUMPRODUCT(('2. Assisted & Restricted Units'!$E$7:$E$399=\"3\")*('2. Assisted & Restricted Units'!$S$7:$S$399=\"707-N\")*('2. Assisted & Restricted Units'!$T$7:$T$399=\"50% AMI\"))","v":0}]
["3 Bedroom 55% AMI",{"$f":"SUMPRODUCT(('2. Assisted & Restricted Units'!$E$7:$E$399=\"3\")*('2. Assisted & Restricted Units'!$S$7:$S$399=\"CALDAP\")*('2. Assisted & Restricted Units'!$T$7:$T$399=\"55% AMI\"))","v":0},{"$f":"SUMPRODUCT(('2. Assisted & Restricted Units'!$E$7:$E$399=\"3\")*('2. Assisted & Restricted Units'!$S$7:$S$399=\"CHRP-R\")*('2. Assisted & Restricted Units'!$T$7:$T$399=\"55% AMI\"))","v":0},{"$f":"SUMPRODUCT(('2. Assisted & Restricted Units'!$E$7:$E$399=\"3\")*('2. Assisted & Restricted Units'!$S$7:$S$399=\"DDS\")*('2. Assisted & Restricted Units'!$T$7:$T$399=\"55% AMI\"))","v":0},{"$f":"SUMPRODUCT(('2. Assisted & Restricted Units'!$E$7:$E$399=\"3\")*('2. Assisted & Restricted Units'!$S$7:$S$399=\"DPRLP\")*('2. Assisted & Restricted Units'!$T$7:$T$399=\"55% AMI\"))","v":0},{"$f":"SUMPRODUCT(('2. Assisted & Restricted Units'!$E$7:$E$399=\"3\")*('2. Assisted & Restricted Units'!$S$7:$S$399=\"FHDP\")*('2. Assisted & Restricted Units'!$T$7:$T$399=\"55% AMI\"))","v":0},{"$f":"SUMPRODUCT(('2. Assisted & Restricted Units'!$E$7:$E$399=\"3\")*('2. Assisted & Restricted Units'!$S$7:$S$399=\"FMTW\")*('2. Assisted & Restricted Units'!$T$7:$T$399=\"55% AMI\"))","v":0},null,{"$f":"SUMPRODUCT(('2. Assisted & Restricted Units'!$E$7:$E$399=\"3\")*('2. Assisted & Restricted Units'!$S$7:$S$399=\"HOME\")*('2. Assisted & Restricted Units'!$T$7:$T$399=\"55% AMI\"))","v":0},{"$f":"SUMPRODUCT(('2. Assisted & Restricted Units'!$E$7:$E$399=\"3\")*('2. Assisted & Restricted Units'!$S$7:$S$399=\"Market Rate\")*('2. Assisted & Restricted Units'!$T$7:$T$399=\"55% AMI\"))","v":0},{"$f":"SUMPRODUCT(('2. Assisted & Restricted Units'!$E$7:$E$399=\"3\")*('2. Assisted & Restricted Units'!$S$7:$S$399=\"MHP\")*('2. Assisted & Restricted Units'!$T$7:$T$399=\"55% AMI\"))","v":0},{"$f":"SUMPRODUCT(('2. Assisted & Restricted Units'!$E$7:$E$399=\"3\")*('2. Assisted & Restricted Units'!$S$7:$S$399=\"NonAssisted\")*('2. Assisted & Restricted Units'!$T$7:$T$399=\"55% AMI\"))","v":0},{"$f":"SUMPRODUCT(('2. Assisted & Restricted Units'!$E$7:$E$399=\"3\")*('2. Assisted & Restricted Units'!$S$7:$S$399=\"Other Restr\")*('2. Assisted & Restricted Units'!$T$7:$T$399=\"55% AMI\"))","v":0},{"$f":"SUMPRODUCT(('2. Assisted & Restricted Units'!$E$7:$E$399=\"3\")*('2. Assisted & Restricted Units'!$S$7:$S$399=\"RHCP-B\")*('2. Assisted & Restricted Units'!$T$7:$T$399=\"55% AMI\"))","v":0},{"$f":"SUMPRODUCT(('2. Assisted & Restricted Units'!$E$7:$E$399=\"3\")*('2. Assisted & Restricted Units'!$S$7:$S$399=\"SERA\")*('2. Assisted & Restricted Units'!$T$7:$T$399=\"55% AMI\"))","v":0},{"$f":"SUMPRODUCT(('2. Assisted & Restricted Units'!$E$7:$E$399=\"3\")*('2. Assisted & Restricted Units'!$S$7:$S$399=\"SUHRP\")*('2. Assisted & Restricted Units'!$T$7:$T$399=\"55% AMI\"))","v":0},{"$f":"SUMPRODUCT(('2. Assisted & Restricted Units'!$E$7:$E$399=\"3\")*('2. Assisted & Restricted Units'!$S$7:$S$399=\"TOD\")*('2. Assisted & Restricted Units'!$T$7:$T$399=\"55% AMI\"))","v":0},{"$f":"SUMPRODUCT(('2. Assisted & Restricted Units'!$E$7:$E$399=\"3\")*('2. Assisted & Restricted Units'!$S$7:$S$399=\"707-E\")*('2. Assisted & Restricted Units'!$T$7:$T$399=\"55% AMI\"))","v":0},{"$f":"SUMPRODUCT(('2. Assisted & Restricted Units'!$E$7:$E$399=\"3\")*('2. Assisted & Restricted Units'!$S$7:$S$399=\"707-N\")*('2. Assisted & Restricted Units'!$T$7:$T$399=\"55% AMI\"))","v":0}]
["3 Bedroom 60% AMI",{"$f":"SUMPRODUCT(('2. Assisted & Restricted Units'!$E$7:$E$399=\"3\")*('2. Assisted & Restricted Units'!$S$7:$S$399=\"CALDAP\")*('2. Assisted & Restricted Units'!$T$7:$T$399=\"60% AMI\"))","v":0},{"$f":"SUMPRODUCT(('2. Assisted & Restricted Units'!$E$7:$E$399=\"3\")*('2. Assisted & Restricted Units'!$S$7:$S$399=\"CHRP-R\")*('2. Assisted & Restricted Units'!$T$7:$T$399=\"60% AMI\"))","v":0},{"$f":"SUMPRODUCT(('2. Assisted & Restricted Units'!$E$7:$E$399=\"3\")*('2. Assisted & Restricted Units'!$S$7:$S$399=\"DDS\")*('2. Assisted & Restricted Units'!$T$7:$T$399=\"60% AMI\"))","v":0},{"$f":"SUMPRODUCT(('2. Assisted & Restricted Units'!$E$7:$E$399=\"3\")*('2. Assisted & Restricted Units'!$S$7:$S$399=\"DPRLP\")*('2. Assisted & Restricted Units'!$T$7:$T$399=\"60% AMI\"))","v":0},{"$f":"SUMPRODUCT(('2. Assisted & Restricted Units'!$E$7:$E$399=\"3\")*('2. Assisted & Restricted Units'!$S$7:$S$399=\"FHDP\")*('2. Assisted & Restricted Units'!$T$7:$T$399=\"60% AMI\"))","v":0},{"$f":"SUMPRODUCT(('2. Assisted & Restricted Units'!$E$7:$E$399=\"3\")*('2. Assisted & Restricted Units'!$S$7:$S$399=\"FMTW\")*('2. Assisted & Restricted Units'!$T$7:$T$399=\"60% AMI\"))","v":0},null,{"$f":"SUMPRODUCT(('2. Assisted & Restricted Units'!$E$7:$E$399=\"3\")*('2. Assisted & Restricted Units'!$S$7:$S$399=\"HOME\")*('2. Assisted & Restricted Units'!$T$7:$T$399=\"60% AMI\"))","v":0},{"$f":"SUMPRODUCT(('2. Assisted & Restricted Units'!$E$7:$E$399=\"3\")*('2. Assisted & Restricted Units'!$S$7:$S$399=\"Market Rate\")*('2. Assisted & Restricted Units'!$T$7:$T$399=\"60% AMI\"))","v":0},{"$f":"SUMPRODUCT(('2. Assisted & Restricted Units'!$E$7:$E$399=\"3\")*('2. Assisted & Restricted Units'!$S$7:$S$399=\"MHP\")*('2. Assisted & Restricted Units'!$T$7:$T$399=\"60% AMI\"))","v":0},{"$f":"SUMPRODUCT(('2. Assisted & Restricted Units'!$E$7:$E$399=\"3\")*('2. Assisted & Restricted Units'!$S$7:$S$399=\"NonAssisted\")*('2. Assisted & Restricted Units'!$T$7:$T$399=\"60% AMI\"))","v":0},{"$f":"SUMPRODUCT(('2. Assisted & Restricted Units'!$E$7:$E$399=\"3\")*('2. Assisted & Restricted Units'!$S$7:$S$399=\"Other Restr\")*('2. Assisted & Restricted Units'!$T$7:$T$399=\"60% AMI\"))","v":0},{"$f":"SUMPRODUCT(('2. Assisted & Restricted Units'!$E$7:$E$399=\"3\")*('2. Assisted & Restricted Units'!$S$7:$S$399=\"RHCP-B\")*('2. Assisted & Restricted Units'!$T$7:$T$399=\"60% AMI\"))","v":0},{"$f":"SUMPRODUCT(('2. Assisted & Restricted Units'!$E$7:$E$399=\"3\")*('2. Assisted & Restricted Units'!$S$7:$S$399=\"SERA\")*('2. Assisted & Restricted Units'!$T$7:$T$399=\"60% AMI\"))","v":0},{"$f":"SUMPRODUCT(('2. Assisted & Restricted Units'!$E$7:$E$399=\"3\")*('2. Assisted & Restricted Units'!$S$7:$S$399=\"SUHRP\")*('2. Assisted & Restricted Units'!$T$7:$T$399=\"60% AMI\"))","v":0},{"$f":"SUMPRODUCT(('2. Assisted & Restricted Units'!$E$7:$E$399=\"3\")*('2. Assisted & Restricted Units'!$S$7:$S$399=\"TOD\")*('2. Assisted & Restricted Units'!$T$7:$T$399=\"60% AMI\"))","v":0},{"$f":"SUMPRODUCT(('2. Assisted & Restricted Units'!$E$7:$E$399=\"3\")*('2. Assisted & Restricted Units'!$S$7:$S$399=\"707-E\")*('2. Assisted & Restricted Units'!$T$7:$T$399=\"60% AMI\"))","v":0},{"$f":"SUMPRODUCT(('2. Assisted & Restricted Units'!$E$7:$E$399=\"3\")*('2. Assisted & Restricted Units'!$S$7:$S$399=\"707-N\")*('2. Assisted & Restricted Units'!$T$7:$T$399=\"60% AMI\"))","v":0}]
["3 Bedroom 80% AMI",{"$f":"SUMPRODUCT(('2. Assisted & Restricted Units'!$E$7:$E$399=\"3\")*('2. Assisted & Restricted Units'!$S$7:$S$399=\"CALDAP\")*('2. Assisted & Restricted Units'!$T$7:$T$399=\"80% AMI\"))","v":0},{"$f":"SUMPRODUCT(('2. Assisted & Restricted Units'!$E$7:$E$399=\"3\")*('2. Assisted & Restricted Units'!$S$7:$S$399=\"CHRP-R\")*('2. Assisted & Restricted Units'!$T$7:$T$399=\"80% AMI\"))","v":0},{"$f":"SUMPRODUCT(('2. Assisted & Restricted Units'!$E$7:$E$399=\"3\")*('2. Assisted & Restricted Units'!$S$7:$S$399=\"DDS\")*('2. Assisted & Restricted Units'!$T$7:$T$399=\"80% AMI\"))","v":0},{"$f":"SUMPRODUCT(('2. Assisted & Restricted Units'!$E$7:$E$399=\"3\")*('2. Assisted & Restricted Units'!$S$7:$S$399=\"DPRLP\")*('2. Assisted & Restricted Units'!$T$7:$T$399=\"80% AMI\"))","v":0},{"$f":"SUMPRODUCT(('2. Assisted & Restricted Units'!$E$7:$E$399=\"3\")*('2. Assisted & Restricted Units'!$S$7:$S$399=\"FHDP\")*('2. Assisted & Restricted Units'!$T$7:$T$399=\"80% AMI\"))","v":0},{"$f":"SUMPRODUCT(('2. Assisted & Restricted Units'!$E$7:$E$399=\"3\")*('2. Assisted & Restricted Units'!$S$7:$S$399=\"FMTW\")*('2. Assisted & Restricted Units'!$T$7:$T$399=\"80% AMI\"))","v":0},null,{"$f":"SUMPRODUCT(('2. Assisted & Restricted Units'!$E$7:$E$399=\"3\")*('2. Assisted & Restricted Units'!$S$7:$S$399=\"HOME\")*('2. Assisted & Restricted Units'!$T$7:$T$399=\"80% AMI\"))","v":0},{"$f":"SUMPRODUCT(('2. Assisted & Restricted Units'!$E$7:$E$399=\"3\")*('2. Assisted & Restricted Units'!$S$7:$S$399=\"Market Rate\")*('2. Assisted & Restricted Units'!$T$7:$T$399=\"80% AMI\"))","v":0},{"$f":"SUMPRODUCT(('2. Assisted & Restricted Units'!$E$7:$E$399=\"3\")*('2. Assisted & Restricted Units'!$S$7:$S$399=\"MHP\")*('2. Assisted & Restricted Units'!$T$7:$T$399=\"80% AMI\"))","v":0},{"$f":"SUMPRODUCT(('2. Assisted & Restricted Units'!$E$7:$E$399=\"3\")*('2. Assisted & Restricted Units'!$S$7:$S$399=\"NonAssisted\")*('2. Assisted & Restricted Units'!$T$7:$T$399=\"80% AMI\"))","v":0},{"$f":"SUMPRODUCT(('2. Assisted & Restricted Units'!$E$7:$E$399=\"3\")*('2. Assisted & Restricted Units'!$S$7:$S$399=\"Other Restr\")*('2. Assisted & Restricted Units'!$T$7:$T$399=\"80% AMI\"))","v":0},{"$f":"SUMPRODUCT(('2. Assisted & Restricted Units'!$E$7:$E$399=\"3\")*('2. Assisted & Restricted Units'!$S$7:$S$399=\"RHCP-B\")*('2. Assisted & Restricted Units'!$T$7:$T$399=\"80% AMI\"))","v":0},{"$f":"SUMPRODUCT(('2. Assisted & Restricted Units'!$E$7:$E$399=\"3\")*('2. Assisted & Restricted Units'!$S$7:$S$399=\"SERA\")*('2. Assisted & Restricted Units'!$T$7:$T$399=\"80% AMI\"))","v":0},{"$f":"SUMPRODUCT(('2. Assisted & Restricted Units'!$E$7:$E$399=\"3\")*('2. Assisted & Restricted Units'!$S$7:$S$399=\"SUHRP\")*('2. Assisted & Restricted Units'!$T$7:$T$399=\"80% AMI\"))","v":0},{"$f":"SUMPRODUCT(('2. Assisted & Restricted Units'!$E$7:$E$399=\"3\")*('2. Assisted & Restricted Units'!$S$7:$S$399=\"TOD\")*('2. Assisted & Restricted Units'!$T$7:$T$399=\"80% AMI\"))","v":0},{"$f":"SUMPRODUCT(('2. Assisted & Restricted Units'!$E$7:$E$399=\"3\")*('2. Assisted & Restricted Units'!$S$7:$S$399=\"707-E\")*('2. Assisted & Restricted Units'!$T$7:$T$399=\"80% AMI\"))","v":0},{"$f":"SUMPRODUCT(('2. Assisted & Restricted Units'!$E$7:$E$399=\"3\")*('2. Assisted & Restricted Units'!$S$7:$S$399=\"707-N\")*('2. Assisted & Restricted Units'!$T$7:$T$399=\"80% AMI\"))","v":0}]
["3 Bedroom 20% SMI",{"$f":"SUMPRODUCT(('2. Assisted & Restricted Units'!$E$7:$E$399=\"3\")*('2. Assisted & Restricted Units'!$S$7:$S$399=\"CALDAP\")*('2. Assisted & Restricted Units'!$T$7:$T$399=\"20% SMI\"))","v":0},{"$f":"SUMPRODUCT(('2. Assisted & Restricted Units'!$E$7:$E$399=\"3\")*('2. Assisted & Restricted Units'!$S$7:$S$399=\"CHRP-R\")*('2. Assisted & Restricted Units'!$T$7:$T$399=\"20% SMI\"))","v":0},{"$f":"SUMPRODUCT(('2. Assisted & Restricted Units'!$E$7:$E$399=\"3\")*('2. Assisted & Restricted Units'!$S$7:$S$399=\"DDS\")*('2. Assisted & Restricted Units'!$T$7:$T$399=\"20% SMI\"))","v":0},{"$f":"SUMPRODUCT(('2. Assisted & Restricted Units'!$E$7:$E$399=\"3\")*('2. Assisted & Restricted Units'!$S$7:$S$399=\"DPRLP\")*('2. Assisted & Restricted Units'!$T$7:$T$399=\"20% SMI\"))","v":0},{"$f":"SUMPRODUCT(('2. Assisted & Restricted Units'!$E$7:$E$399=\"3\")*('2. Assisted & Restricted Units'!$S$7:$S$399=\"FHDP\")*('2. Assisted & Restricted Units'!$T$7:$T$399=\"20% SMI\"))","v":0},{"$f":"SUMPRODUCT(('2. Assisted & Restricted Units'!$E$7:$E$399=\"3\")*('2. Assisted & Restricted Units'!$S$7:$S$399=\"FMTW\")*('2. Assisted & Restricted Units'!$T$7:$T$399=\"20% SMI\"))","v":0},null,{"$f":"SUMPRODUCT(('2. Assisted & Restricted Units'!$E$7:$E$399=\"3\")*('2. Assisted & Restricted Units'!$S$7:$S$399=\"HOME\")*('2. Assisted & Restricted Units'!$T$7:$T$399=\"20% SMI\"))","v":0},{"$f":"SUMPRODUCT(('2. Assisted & Restricted Units'!$E$7:$E$399=\"3\")*('2. Assisted & Restricted Units'!$S$7:$S$399=\"Market Rate\")*('2. Assisted & Restricted Units'!$T$7:$T$399=\"20% SMI\"))","v":0},{"$f":"SUMPRODUCT(('2. Assisted & Restricted Units'!$E$7:$E$399=\"3\")*('2. Assisted & Restricted Units'!$S$7:$S$399=\"MHP\")*('2. Assisted & Restricted Units'!$T$7:$T$399=\"20% SMI\"))","v":0},{"$f":"SUMPRODUCT(('2. Assisted & Restricted Units'!$E$7:$E$399=\"3\")*('2. Assisted & Restricted Units'!$S$7:$S$399=\"NonAssisted\")*('2. Assisted & Restricted Units'!$T$7:$T$399=\"20% SMI\"))","v":0},{"$f":"SUMPRODUCT(('2. Assisted & Restricted Units'!$E$7:$E$399=\"3\")*('2. Assisted & Restricted Units'!$S$7:$S$399=\"Other Restr\")*('2. Assisted & Restricted Units'!$T$7:$T$399=\"20% SMI\"))","v":0},{"$f":"SUMPRODUCT(('2. Assisted & Restricted Units'!$E$7:$E$399=\"3\")*('2. Assisted & Restricted Units'!$S$7:$S$399=\"RHCP-B\")*('2. Assisted & Restricted Units'!$T$7:$T$399=\"20% SMI\"))","v":0},{"$f":"SUMPRODUCT(('2. Assisted & Restricted Units'!$E$7:$E$399=\"3\")*('2. Assisted & Restricted Units'!$S$7:$S$399=\"SERA\")*('2. Assisted & Restricted Units'!$T$7:$T$399=\"20% SMI\"))","v":0},{"$f":"SUMPRODUCT(('2. Assisted & Restricted Units'!$E$7:$E$399=\"3\")*('2. Assisted & Restricted Units'!$S$7:$S$399=\"SUHRP\")*('2. Assisted & Restricted Units'!$T$7:$T$399=\"20% SMI\"))","v":0},{"$f":"SUMPRODUCT(('2. Assisted & Restricted Units'!$E$7:$E$399=\"3\")*('2. Assisted & Restricted Units'!$S$7:$S$399=\"TOD\")*('2. Assisted & Restricted Units'!$T$7:$T$399=\"20% SMI\"))","v":0},{"$f":"SUMPRODUCT(('2. Assisted & Restricted Units'!$E$7:$E$399=\"3\")*('2. Assisted & Restricted Units'!$S$7:$S$399=\"707-E\")*('2. Assisted & Restricted Units'!$T$7:$T$399=\"20% SMI\"))","v":0},{"$f":"SUMPRODUCT(('2. Assisted & Restricted Units'!$E$7:$E$399=\"3\")*('2. Assisted & Restricted Units'!$S$7:$S$399=\"707-N\")*('2. Assisted & Restricted Units'!$T$7:$T$399=\"20% SMI\"))","v":0}]
["3 Bedroom 25% SMI",{"$f":"SUMPRODUCT(('2. Assisted & Restricted Units'!$E$7:$E$399=\"3\")*('2. Assisted & Restricted Units'!$S$7:$S$399=\"CALDAP\")*('2. Assisted & Restricted Units'!$T$7:$T$399=\"25% SMI\"))","v":0},{"$f":"SUMPRODUCT(('2. Assisted & Restricted Units'!$E$7:$E$399=\"3\")*('2. Assisted & Restricted Units'!$S$7:$S$399=\"CHRP-R\")*('2. Assisted & Restricted Units'!$T$7:$T$399=\"25% SMI\"))","v":0},{"$f":"SUMPRODUCT(('2. Assisted & Restricted Units'!$E$7:$E$399=\"3\")*('2. Assisted & Restricted Units'!$S$7:$S$399=\"DDS\")*('2. Assisted & Restricted Units'!$T$7:$T$399=\"25% SMI\"))","v":0},{"$f":"SUMPRODUCT(('2. Assisted & Restricted Units'!$E$7:$E$399=\"3\")*('2. Assisted & Restricted Units'!$S$7:$S$399=\"DPRLP\")*('2. Assisted & Restricted Units'!$T$7:$T$399=\"25% SMI\"))","v":0},{"$f":"SUMPRODUCT(('2. Assisted & Restricted Units'!$E$7:$E$399=\"3\")*('2. Assisted & Restricted Units'!$S$7:$S$399=\"FHDP\")*('2. Assisted & Restricted Units'!$T$7:$T$399=\"25% SMI\"))","v":0},{"$f":"SUMPRODUCT(('2. Assisted & Restricted Units'!$E$7:$E$399=\"3\")*('2. Assisted & Restricted Units'!$S$7:$S$399=\"FMTW\")*('2. Assisted & Restricted Units'!$T$7:$T$399=\"25% SMI\"))","v":0},null,{"$f":"SUMPRODUCT(('2. Assisted & Restricted Units'!$E$7:$E$399=\"3\")*('2. Assisted & Restricted Units'!$S$7:$S$399=\"HOME\")*('2. Assisted & Restricted Units'!$T$7:$T$399=\"25% SMI\"))","v":0},{"$f":"SUMPRODUCT(('2. Assisted & Restricted Units'!$E$7:$E$399=\"3\")*('2. Assisted & Restricted Units'!$S$7:$S$399=\"Market Rate\")*('2. Assisted & Restricted Units'!$T$7:$T$399=\"25% SMI\"))","v":0},{"$f":"SUMPRODUCT(('2. Assisted & Restricted Units'!$E$7:$E$399=\"3\")*('2. Assisted & Restricted Units'!$S$7:$S$399=\"MHP\")*('2. Assisted & Restricted Units'!$T$7:$T$399=\"25% SMI\"))","v":0},{"$f":"SUMPRODUCT(('2. Assisted & Restricted Units'!$E$7:$E$399=\"3\")*('2. Assisted & Restricted Units'!$S$7:$S$399=\"NonAssisted\")*('2. Assisted & Restricted Units'!$T$7:$T$399=\"25% SMI\"))","v":0},{"$f":"SUMPRODUCT(('2. Assisted & Restricted Units'!$E$7:$E$399=\"3\")*('2. Assisted & Restricted Units'!$S$7:$S$399=\"Other Restr\")*('2. Assisted & Restricted Units'!$T$7:$T$399=\"25% SMI\"))","v":0},{"$f":"SUMPRODUCT(('2. Assisted & Restricted Units'!$E$7:$E$399=\"3\")*('2. Assisted & Restricted Units'!$S$7:$S$399=\"RHCP-B\")*('2. Assisted & Restricted Units'!$T$7:$T$399=\"25% SMI\"))","v":0},{"$f":"SUMPRODUCT(('2. Assisted & Restricted Units'!$E$7:$E$399=\"3\")*('2. Assisted & Restricted Units'!$S$7:$S$399=\"SERA\")*('2. Assisted & Restricted Units'!$T$7:$T$399=\"25% SMI\"))","v":0},{"$f":"SUMPRODUCT(('2. Assisted & Restricted Units'!$E$7:$E$399=\"3\")*('2. Assisted & Restricted Units'!$S$7:$S$399=\"SUHRP\")*('2. Assisted & Restricted Units'!$T$7:$T$399=\"25% SMI\"))","v":0},{"$f":"SUMPRODUCT(('2. Assisted & Restricted Units'!$E$7:$E$399=\"3\")*('2. Assisted & Restricted Units'!$S$7:$S$399=\"TOD\")*('2. Assisted & Restricted Units'!$T$7:$T$399=\"25% SMI\"))","v":0},{"$f":"SUMPRODUCT(('2. Assisted & Restricted Units'!$E$7:$E$399=\"3\")*('2. Assisted & Restricted Units'!$S$7:$S$399=\"707-E\")*('2. Assisted & Restricted Units'!$T$7:$T$399=\"25% SMI\"))","v":0},{"$f":"SUMPRODUCT(('2. Assisted & Restricted Units'!$E$7:$E$399=\"3\")*('2. Assisted & Restricted Units'!$S$7:$S$399=\"707-N\")*('2. Assisted & Restricted Units'!$T$7:$T$399=\"25% SMI\"))","v":0}]
["3 Bedroom 30% SMI",{"$f":"SUMPRODUCT(('2. Assisted & Restricted Units'!$E$7:$E$399=\"3\")*('2. Assisted & Restricted Units'!$S$7:$S$399=\"CALDAP\")*('2. Assisted & Restricted Units'!$T$7:$T$399=\"30% SMI\"))","v":0},{"$f":"SUMPRODUCT(('2. Assisted & Restricted Units'!$E$7:$E$399=\"3\")*('2. Assisted & Restricted Units'!$S$7:$S$399=\"CHRP-R\")*('2. Assisted & Restricted Units'!$T$7:$T$399=\"30% SMI\"))","v":0},{"$f":"SUMPRODUCT(('2. Assisted & Restricted Units'!$E$7:$E$399=\"3\")*('2. Assisted & Restricted Units'!$S$7:$S$399=\"DDS\")*('2. Assisted & Restricted Units'!$T$7:$T$399=\"30% SMI\"))","v":0},{"$f":"SUMPRODUCT(('2. Assisted & Restricted Units'!$E$7:$E$399=\"3\")*('2. Assisted & Restricted Units'!$S$7:$S$399=\"DPRLP\")*('2. Assisted & Restricted Units'!$T$7:$T$399=\"30% SMI\"))","v":0},{"$f":"SUMPRODUCT(('2. Assisted & Restricted Units'!$E$7:$E$399=\"3\")*('2. Assisted & Restricted Units'!$S$7:$S$399=\"FHDP\")*('2. Assisted & Restricted Units'!$T$7:$T$399=\"30% SMI\"))","v":0},{"$f":"SUMPRODUCT(('2. Assisted & Restricted Units'!$E$7:$E$399=\"3\")*('2. Assisted & Restricted Units'!$S$7:$S$399=\"FMTW\")*('2. Assisted & Restricted Units'!$T$7:$T$399=\"30% SMI\"))","v":0},null,{"$f":"SUMPRODUCT(('2. Assisted & Restricted Units'!$E$7:$E$399=\"3\")*('2. Assisted & Restricted Units'!$S$7:$S$399=\"HOME\")*('2. Assisted & Restricted Units'!$T$7:$T$399=\"30% SMI\"))","v":0},{"$f":"SUMPRODUCT(('2. Assisted & Restricted Units'!$E$7:$E$399=\"3\")*('2. Assisted & Restricted Units'!$S$7:$S$399=\"Market Rate\")*('2. Assisted & Restricted Units'!$T$7:$T$399=\"30% SMI\"))","v":0},{"$f":"SUMPRODUCT(('2. Assisted & Restricted Units'!$E$7:$E$399=\"3\")*('2. Assisted & Restricted Units'!$S$7:$S$399=\"MHP\")*('2. Assisted & Restricted Units'!$T$7:$T$399=\"30% SMI\"))","v":0},{"$f":"SUMPRODUCT(('2. Assisted & Restricted Units'!$E$7:$E$399=\"3\")*('2. Assisted & Restricted Units'!$S$7:$S$399=\"NonAssisted\")*('2. Assisted & Restricted Units'!$T$7:$T$399=\"30% SMI\"))","v":0},{"$f":"SUMPRODUCT(('2. Assisted & Restricted Units'!$E$7:$E$399=\"3\")*('2. Assisted & Restricted Units'!$S$7:$S$399=\"Other Restr\")*('2. Assisted & Restricted Units'!$T$7:$T$399=\"30% SMI\"))","v":0},{"$f":"SUMPRODUCT(('2. Assisted & Restricted Units'!$E$7:$E$399=\"3\")*('2. Assisted & Restricted Units'!$S$7:$S$399=\"RHCP-B\")*('2. Assisted & Restricted Units'!$T$7:$T$399=\"30% SMI\"))","v":0},{"$f":"SUMPRODUCT(('2. Assisted & Restricted Units'!$E$7:$E$399=\"3\")*('2. Assisted & Restricted Units'!$S$7:$S$399=\"SERA\")*('2. Assisted & Restricted Units'!$T$7:$T$399=\"30% SMI\"))","v":0},{"$f":"SUMPRODUCT(('2. Assisted & Restricted Units'!$E$7:$E$399=\"3\")*('2. Assisted & Restricted Units'!$S$7:$S$399=\"SUHRP\")*('2. Assisted & Restricted Units'!$T$7:$T$399=\"30% SMI\"))","v":0},{"$f":"SUMPRODUCT(('2. Assisted & Restricted Units'!$E$7:$E$399=\"3\")*('2. Assisted & Restricted Units'!$S$7:$S$399=\"TOD\")*('2. Assisted & Restricted Units'!$T$7:$T$399=\"30% SMI\"))","v":0},{"$f":"SUMPRODUCT(('2. Assisted & Restricted Units'!$E$7:$E$399=\"3\")*('2. Assisted & Restricted Units'!$S$7:$S$399=\"707-E\")*('2. Assisted & Restricted Units'!$T$7:$T$399=\"30% SMI\"))","v":0},{"$f":"SUMPRODUCT(('2. Assisted & Restricted Units'!$E$7:$E$399=\"3\")*('2. Assisted & Restricted Units'!$S$7:$S$399=\"707-N\")*('2. Assisted & Restricted Units'!$T$7:$T$399=\"30% SMI\"))","v":0}]
["3 Bedroom 35% SMI",{"$f":"SUMPRODUCT(('2. Assisted & Restricted Units'!$E$7:$E$399=\"3\")*('2. Assisted & Restricted Units'!$S$7:$S$399=\"CALDAP\")*('2. Assisted & Restricted Units'!$T$7:$T$399=\"35% SMI\"))","v":0},{"$f":"SUMPRODUCT(('2. Assisted & Restricted Units'!$E$7:$E$399=\"3\")*('2. Assisted & Restricted Units'!$S$7:$S$399=\"CHRP-R\")*('2. Assisted & Restricted Units'!$T$7:$T$399=\"35% SMI\"))","v":0},{"$f":"SUMPRODUCT(('2. Assisted & Restricted Units'!$E$7:$E$399=\"3\")*('2. Assisted & Restricted Units'!$S$7:$S$399=\"DDS\")*('2. Assisted & Restricted Units'!$T$7:$T$399=\"35% SMI\"))","v":0},{"$f":"SUMPRODUCT(('2. Assisted & Restricted Units'!$E$7:$E$399=\"3\")*('2. Assisted & Restricted Units'!$S$7:$S$399=\"DPRLP\")*('2. Assisted & Restricted Units'!$T$7:$T$399=\"35% SMI\"))","v":0},{"$f":"SUMPRODUCT(('2. Assisted & Restricted Units'!$E$7:$E$399=\"3\")*('2. Assisted & Restricted Units'!$S$7:$S$399=\"FHDP\")*('2. Assisted & Restricted Units'!$T$7:$T$399=\"35% SMI\"))","v":0},{"$f":"SUMPRODUCT(('2. Assisted & Restricted Units'!$E$7:$E$399=\"3\")*('2. Assisted & Restricted Units'!$S$7:$S$399=\"FMTW\")*('2. Assisted & Restricted Units'!$T$7:$T$399=\"35% SMI\"))","v":0},null,{"$f":"SUMPRODUCT(('2. Assisted & Restricted Units'!$E$7:$E$399=\"3\")*('2. Assisted & Restricted Units'!$S$7:$S$399=\"HOME\")*('2. Assisted & Restricted Units'!$T$7:$T$399=\"35% SMI\"))","v":0},{"$f":"SUMPRODUCT(('2. Assisted & Restricted Units'!$E$7:$E$399=\"3\")*('2. Assisted & Restricted Units'!$S$7:$S$399=\"Market Rate\")*('2. Assisted & Restricted Units'!$T$7:$T$399=\"35% SMI\"))","v":0},{"$f":"SUMPRODUCT(('2. Assisted & Restricted Units'!$E$7:$E$399=\"3\")*('2. Assisted & Restricted Units'!$S$7:$S$399=\"MHP\")*('2. Assisted & Restricted Units'!$T$7:$T$399=\"35% SMI\"))","v":0},{"$f":"SUMPRODUCT(('2. Assisted & Restricted Units'!$E$7:$E$399=\"3\")*('2. Assisted & Restricted Units'!$S$7:$S$399=\"NonAssisted\")*('2. Assisted & Restricted Units'!$T$7:$T$399=\"35% SMI\"))","v":0},{"$f":"SUMPRODUCT(('2. Assisted & Restricted Units'!$E$7:$E$399=\"3\")*('2. Assisted & Restricted Units'!$S$7:$S$399=\"Other Restr\")*('2. Assisted & Restricted Units'!$T$7:$T$399=\"35% SMI\"))","v":0},{"$f":"SUMPRODUCT(('2. Assisted & Restricted Units'!$E$7:$E$399=\"3\")*('2. Assisted & Restricted Units'!$S$7:$S$399=\"RHCP-B\")*('2. Assisted & Restricted Units'!$T$7:$T$399=\"35% SMI\"))","v":0},{"$f":"SUMPRODUCT(('2. Assisted & Restricted Units'!$E$7:$E$399=\"3\")*('2. Assisted & Restricted Units'!$S$7:$S$399=\"SERA\")*('2. Assisted & Restricted Units'!$T$7:$T$399=\"35% SMI\"))","v":0},{"$f":"SUMPRODUCT(('2. Assisted & Restricted Units'!$E$7:$E$399=\"3\")*('2. Assisted & Restricted Units'!$S$7:$S$399=\"SUHRP\")*('2. Assisted & Restricted Units'!$T$7:$T$399=\"35% SMI\"))","v":0},{"$f":"SUMPRODUCT(('2. Assisted & Restricted Units'!$E$7:$E$399=\"3\")*('2. Assisted & Restricted Units'!$S$7:$S$399=\"TOD\")*('2. Assisted & Restricted Units'!$T$7:$T$399=\"35% SMI\"))","v":0},{"$f":"SUMPRODUCT(('2. Assisted & Restricted Units'!$E$7:$E$399=\"3\")*('2. Assisted & Restricted Units'!$S$7:$S$399=\"707-E\")*('2. Assisted & Restricted Units'!$T$7:$T$399=\"35% SMI\"))","v":0},{"$f":"SUMPRODUCT(('2. Assisted & Restricted Units'!$E$7:$E$399=\"3\")*('2. Assisted & Restricted Units'!$S$7:$S$399=\"707-N\")*('2. Assisted & Restricted Units'!$T$7:$T$399=\"35% SMI\"))","v":0}]
["3 Bedroom 40% SMI",{"$f":"SUMPRODUCT(('2. Assisted & Restricted Units'!$E$7:$E$399=\"3\")*('2. Assisted & Restricted Units'!$S$7:$S$399=\"CALDAP\")*('2. Assisted & Restricted Units'!$T$7:$T$399=\"40% SMI\"))","v":0},{"$f":"SUMPRODUCT(('2. Assisted & Restricted Units'!$E$7:$E$399=\"3\")*('2. Assisted & Restricted Units'!$S$7:$S$399=\"CHRP-R\")*('2. Assisted & Restricted Units'!$T$7:$T$399=\"40% SMI\"))","v":0},{"$f":"SUMPRODUCT(('2. Assisted & Restricted Units'!$E$7:$E$399=\"3\")*('2. Assisted & Restricted Units'!$S$7:$S$399=\"DDS\")*('2. Assisted & Restricted Units'!$T$7:$T$399=\"40% SMI\"))","v":0},{"$f":"SUMPRODUCT(('2. Assisted & Restricted Units'!$E$7:$E$399=\"3\")*('2. Assisted & Restricted Units'!$S$7:$S$399=\"DPRLP\")*('2. Assisted & Restricted Units'!$T$7:$T$399=\"40% SMI\"))","v":0},{"$f":"SUMPRODUCT(('2. Assisted & Restricted Units'!$E$7:$E$399=\"3\")*('2. Assisted & Restricted Units'!$S$7:$S$399=\"FHDP\")*('2. Assisted & Restricted Units'!$T$7:$T$399=\"40% SMI\"))","v":0},{"$f":"SUMPRODUCT(('2. Assisted & Restricted Units'!$E$7:$E$399=\"3\")*('2. Assisted & Restricted Units'!$S$7:$S$399=\"FMTW\")*('2. Assisted & Restricted Units'!$T$7:$T$399=\"40% SMI\"))","v":0},null,{"$f":"SUMPRODUCT(('2. Assisted & Restricted Units'!$E$7:$E$399=\"3\")*('2. Assisted & Restricted Units'!$S$7:$S$399=\"HOME\")*('2. Assisted & Restricted Units'!$T$7:$T$399=\"40% SMI\"))","v":0},{"$f":"SUMPRODUCT(('2. Assisted & Restricted Units'!$E$7:$E$399=\"3\")*('2. Assisted & Restricted Units'!$S$7:$S$399=\"Market Rate\")*('2. Assisted & Restricted Units'!$T$7:$T$399=\"40% SMI\"))","v":0},{"$f":"SUMPRODUCT(('2. Assisted & Restricted Units'!$E$7:$E$399=\"3\")*('2. Assisted & Restricted Units'!$S$7:$S$399=\"MHP\")*('2. Assisted & Restricted Units'!$T$7:$T$399=\"40% SMI\"))","v":0},{"$f":"SUMPRODUCT(('2. Assisted & Restricted Units'!$E$7:$E$399=\"3\")*('2. Assisted & Restricted Units'!$S$7:$S$399=\"NonAssisted\")*('2. Assisted & Restricted Units'!$T$7:$T$399=\"40% SMI\"))","v":0},{"$f":"SUMPRODUCT(('2. Assisted & Restricted Units'!$E$7:$E$399=\"3\")*('2. Assisted & Restricted Units'!$S$7:$S$399=\"Other Restr\")*('2. Assisted & Restricted Units'!$T$7:$T$399=\"40% SMI\"))","v":0},{"$f":"SUMPRODUCT(('2. Assisted & Restricted Units'!$E$7:$E$399=\"3\")*('2. Assisted & Restricted Units'!$S$7:$S$399=\"RHCP-B\")*('2. Assisted & Restricted Units'!$T$7:$T$399=\"40% SMI\"))","v":0},{"$f":"SUMPRODUCT(('2. Assisted & Restricted Units'!$E$7:$E$399=\"3\")*('2. Assisted & Restricted Units'!$S$7:$S$399=\"SERA\")*('2. Assisted & Restricted Units'!$T$7:$T$399=\"40% SMI\"))","v":0},{"$f":"SUMPRODUCT(('2. Assisted & Restricted Units'!$E$7:$E$399=\"3\")*('2. Assisted & Restricted Units'!$S$7:$S$399=\"SUHRP\")*('2. Assisted & Restricted Units'!$T$7:$T$399=\"40% SMI\"))","v":0},{"$f":"SUMPRODUCT(('2. Assisted & Restricted Units'!$E$7:$E$399=\"3\")*('2. Assisted & Restricted Units'!$S$7:$S$399=\"TOD\")*('2. Assisted & Restricted Units'!$T$7:$T$399=\"40% SMI\"))","v":0},{"$f":"SUMPRODUCT(('2. Assisted & Restricted Units'!$E$7:$E$399=\"3\")*('2. Assisted & Restricted Units'!$S$7:$S$399=\"707-E\")*('2. Assisted & Restricted Units'!$T$7:$T$399=\"40% SMI\"))","v":0},{"$f":"SUMPRODUCT(('2. Assisted & Restricted Units'!$E$7:$E$399=\"3\")*('2. Assisted & Restricted Units'!$S$7:$S$399=\"707-N\")*('2. Assisted & Restricted Units'!$T$7:$T$399=\"40% SMI\"))","v":0}]
["3 Bedroom 45% SMI",{"$f":"SUMPRODUCT(('2. Assisted & Restricted Units'!$E$7:$E$399=\"3\")*('2. Assisted & Restricted Units'!$S$7:$S$399=\"CALDAP\")*('2. Assisted & Restricted Units'!$T$7:$T$399=\"45% SMI\"))","v":0},{"$f":"SUMPRODUCT(('2. Assisted & Restricted Units'!$E$7:$E$399=\"3\")*('2. Assisted & Restricted Units'!$S$7:$S$399=\"CHRP-R\")*('2. Assisted & Restricted Units'!$T$7:$T$399=\"45% SMI\"))","v":0},{"$f":"SUMPRODUCT(('2. Assisted & Restricted Units'!$E$7:$E$399=\"3\")*('2. Assisted & Restricted Units'!$S$7:$S$399=\"DDS\")*('2. Assisted & Restricted Units'!$T$7:$T$399=\"45% SMI\"))","v":0},{"$f":"SUMPRODUCT(('2. Assisted & Restricted Units'!$E$7:$E$399=\"3\")*('2. Assisted & Restricted Units'!$S$7:$S$399=\"DPRLP\")*('2. Assisted & Restricted Units'!$T$7:$T$399=\"45% SMI\"))","v":0},{"$f":"SUMPRODUCT(('2. Assisted & Restricted Units'!$E$7:$E$399=\"3\")*('2. Assisted & Restricted Units'!$S$7:$S$399=\"FHDP\")*('2. Assisted & Restricted Units'!$T$7:$T$399=\"45% SMI\"))","v":0},{"$f":"SUMPRODUCT(('2. Assisted & Restricted Units'!$E$7:$E$399=\"3\")*('2. Assisted & Restricted Units'!$S$7:$S$399=\"FMTW\")*('2. Assisted & Restricted Units'!$T$7:$T$399=\"45% SMI\"))","v":0},null,{"$f":"SUMPRODUCT(('2. Assisted & Restricted Units'!$E$7:$E$399=\"3\")*('2. Assisted & Restricted Units'!$S$7:$S$399=\"HOME\")*('2. Assisted & Restricted Units'!$T$7:$T$399=\"45% SMI\"))","v":0},{"$f":"SUMPRODUCT(('2. Assisted & Restricted Units'!$E$7:$E$399=\"3\")*('2. Assisted & Restricted Units'!$S$7:$S$399=\"Market Rate\")*('2. Assisted & Restricted Units'!$T$7:$T$399=\"45% SMI\"))","v":0},{"$f":"SUMPRODUCT(('2. Assisted & Restricted Units'!$E$7:$E$399=\"3\")*('2. Assisted & Restricted Units'!$S$7:$S$399=\"MHP\")*('2. Assisted & Restricted Units'!$T$7:$T$399=\"45% SMI\"))","v":0},{"$f":"SUMPRODUCT(('2. Assisted & Restricted Units'!$E$7:$E$399=\"3\")*('2. Assisted & Restricted Units'!$S$7:$S$399=\"NonAssisted\")*('2. Assisted & Restricted Units'!$T$7:$T$399=\"45% SMI\"))","v":0},{"$f":"SUMPRODUCT(('2. Assisted & Restricted Units'!$E$7:$E$399=\"3\")*('2. Assisted & Restricted Units'!$S$7:$S$399=\"Other Restr\")*('2. Assisted & Restricted Units'!$T$7:$T$399=\"45% SMI\"))","v":0},{"$f":"SUMPRODUCT(('2. Assisted & Restricted Units'!$E$7:$E$399=\"3\")*('2. Assisted & Restricted Units'!$S$7:$S$399=\"RHCP-B\")*('2. Assisted & Restricted Units'!$T$7:$T$399=\"45% SMI\"))","v":0},{"$f":"SUMPRODUCT(('2. Assisted & Restricted Units'!$E$7:$E$399=\"3\")*('2. Assisted & Restricted Units'!$S$7:$S$399=\"SERA\")*('2. Assisted & Restricted Units'!$T$7:$T$399=\"45% SMI\"))","v":0},{"$f":"SUMPRODUCT(('2. Assisted & Restricted Units'!$E$7:$E$399=\"3\")*('2. Assisted & Restricted Units'!$S$7:$S$399=\"SUHRP\")*('2. Assisted & Restricted Units'!$T$7:$T$399=\"45% SMI\"))","v":0},{"$f":"SUMPRODUCT(('2. Assisted & Restricted Units'!$E$7:$E$399=\"3\")*('2. Assisted & Restricted Units'!$S$7:$S$399=\"TOD\")*('2. Assisted & Restricted Units'!$T$7:$T$399=\"45% SMI\"))","v":0},{"$f":"SUMPRODUCT(('2. Assisted & Restricted Units'!$E$7:$E$399=\"3\")*('2. Assisted & Restricted Units'!$S$7:$S$399=\"707-E\")*('2. Assisted & Restricted Units'!$T$7:$T$399=\"45% SMI\"))","v":0},{"$f":"SUMPRODUCT(('2. Assisted & Restricted Units'!$E$7:$E$399=\"3\")*('2. Assisted & Restricted Units'!$S$7:$S$399=\"707-N\")*('2. Assisted & Restricted Units'!$T$7:$T$399=\"45% SMI\"))","v":0}]
["3 Bedroom 50% SMI",{"$f":"SUMPRODUCT(('2. Assisted & Restricted Units'!$E$7:$E$399=\"3\")*('2. Assisted & Restricted Units'!$S$7:$S$399=\"CALDAP\")*('2. Assisted & Restricted Units'!$T$7:$T$399=\"50% SMI\"))","v":0},{"$f":"SUMPRODUCT(('2. Assisted & Restricted Units'!$E$7:$E$399=\"3\")*('2. Assisted & Restricted Units'!$S$7:$S$399=\"CHRP-R\")*('2. Assisted & Restricted Units'!$T$7:$T$399=\"50% SMI\"))","v":0},{"$f":"SUMPRODUCT(('2. Assisted & Restricted Units'!$E$7:$E$399=\"3\")*('2. Assisted & Restricted Units'!$S$7:$S$399=\"DDS\")*('2. Assisted & Restricted Units'!$T$7:$T$399=\"50% SMI\"))","v":0},{"$f":"SUMPRODUCT(('2. Assisted & Restricted Units'!$E$7:$E$399=\"3\")*('2. Assisted & Restricted Units'!$S$7:$S$399=\"DPRLP\")*('2. Assisted & Restricted Units'!$T$7:$T$399=\"50% SMI\"))","v":0},{"$f":"SUMPRODUCT(('2. Assisted & Restricted Units'!$E$7:$E$399=\"3\")*('2. Assisted & Restricted Units'!$S$7:$S$399=\"FHDP\")*('2. Assisted & Restricted Units'!$T$7:$T$399=\"50% SMI\"))","v":0},{"$f":"SUMPRODUCT(('2. Assisted & Restricted Units'!$E$7:$E$399=\"3\")*('2. Assisted & Restricted Units'!$S$7:$S$399=\"FMTW\")*('2. Assisted & Restricted Units'!$T$7:$T$399=\"50% SMI\"))","v":0},null,{"$f":"SUMPRODUCT(('2. Assisted & Restricted Units'!$E$7:$E$399=\"3\")*('2. Assisted & Restricted Units'!$S$7:$S$399=\"HOME\")*('2. Assisted & Restricted Units'!$T$7:$T$399=\"50% SMI\"))","v":0},{"$f":"SUMPRODUCT(('2. Assisted & Restricted Units'!$E$7:$E$399=\"3\")*('2. Assisted & Restricted Units'!$S$7:$S$399=\"Market Rate\")*('2. Assisted & Restricted Units'!$T$7:$T$399=\"50% SMI\"))","v":0},{"$f":"SUMPRODUCT(('2. Assisted & Restricted Units'!$E$7:$E$399=\"3\")*('2. Assisted & Restricted Units'!$S$7:$S$399=\"MHP\")*('2. Assisted & Restricted Units'!$T$7:$T$399=\"50% SMI\"))","v":0},{"$f":"SUMPRODUCT(('2. Assisted & Restricted Units'!$E$7:$E$399=\"3\")*('2. Assisted & Restricted Units'!$S$7:$S$399=\"NonAssisted\")*('2. Assisted & Restricted Units'!$T$7:$T$399=\"50% SMI\"))","v":0},{"$f":"SUMPRODUCT(('2. Assisted & Restricted Units'!$E$7:$E$399=\"3\")*('2. Assisted & Restricted Units'!$S$7:$S$399=\"Other Restr\")*('2. Assisted & Restricted Units'!$T$7:$T$399=\"50% SMI\"))","v":0},{"$f":"SUMPRODUCT(('2. Assisted & Restricted Units'!$E$7:$E$399=\"3\")*('2. Assisted & Restricted Units'!$S$7:$S$399=\"RHCP-B\")*('2. Assisted & Restricted Units'!$T$7:$T$399=\"50% SMI\"))","v":0},{"$f":"SUMPRODUCT(('2. Assisted & Restricted Units'!$E$7:$E$399=\"3\")*('2. Assisted & Restricted Units'!$S$7:$S$399=\"SERA\")*('2. Assisted & Restricted Units'!$T$7:$T$399=\"50% SMI\"))","v":0},{"$f":"SUMPRODUCT(('2. Assisted & Restricted Units'!$E$7:$E$399=\"3\")*('2. Assisted & Restricted Units'!$S$7:$S$399=\"SUHRP\")*('2. Assisted & Restricted Units'!$T$7:$T$399=\"50% SMI\"))","v":0},{"$f":"SUMPRODUCT(('2. Assisted & Restricted Units'!$E$7:$E$399=\"3\")*('2. Assisted & Restricted Units'!$S$7:$S$399=\"TOD\")*('2. Assisted & Restricted Units'!$T$7:$T$399=\"50% SMI\"))","v":0},{"$f":"SUMPRODUCT(('2. Assisted & Restricted Units'!$E$7:$E$399=\"3\")*('2. Assisted & Restricted Units'!$S$7:$S$399=\"707-E\")*('2. Assisted & Restricted Units'!$T$7:$T$399=\"50% SMI\"))","v":0},{"$f":"SUMPRODUCT(('2. Assisted & Restricted Units'!$E$7:$E$399=\"3\")*('2. Assisted & Restricted Units'!$S$7:$S$399=\"707-N\")*('2. Assisted & Restricted Units'!$T$7:$T$399=\"50% SMI\"))","v":0}]
["3 Bedroom 100% SMI",{"$f":"SUMPRODUCT(('2. Assisted & Restricted Units'!$E$7:$E$399=\"3\")*('2. Assisted & Restricted Units'!$S$7:$S$399=\"CALDAP\")*('2. Assisted & Restricted Units'!$T$7:$T$399=\"100% SMI\"))","v":0},{"$f":"SUMPRODUCT(('2. Assisted & Restricted Units'!$E$7:$E$399=\"3\")*('2. Assisted & Restricted Units'!$S$7:$S$399=\"CHRP-R\")*('2. Assisted & Restricted Units'!$T$7:$T$399=\"100% SMI\"))","v":0},{"$f":"SUMPRODUCT(('2. Assisted & Restricted Units'!$E$7:$E$399=\"3\")*('2. Assisted & Restricted Units'!$S$7:$S$399=\"DDS\")*('2. Assisted & Restricted Units'!$T$7:$T$399=\"100% SMI\"))","v":0},{"$f":"SUMPRODUCT(('2. Assisted & Restricted Units'!$E$7:$E$399=\"3\")*('2. Assisted & Restricted Units'!$S$7:$S$399=\"DPRLP\")*('2. Assisted & Restricted Units'!$T$7:$T$399=\"100% SMI\"))","v":0},{"$f":"SUMPRODUCT(('2. Assisted & Restricted Units'!$E$7:$E$399=\"3\")*('2. Assisted & Restricted Units'!$S$7:$S$399=\"FHDP\")*('2. Assisted & Restricted Units'!$T$7:$T$399=\"100% SMI\"))","v":0},{"$f":"SUMPRODUCT(('2. Assisted & Restricted Units'!$E$7:$E$399=\"3\")*('2. Assisted & Restricted Units'!$S$7:$S$399=\"FMTW\")*('2. Assisted & Restricted Units'!$T$7:$T$399=\"100% SMI\"))","v":0},null,{"$f":"SUMPRODUCT(('2. Assisted & Restricted Units'!$E$7:$E$399=\"3\")*('2. Assisted & Restricted Units'!$S$7:$S$399=\"HOME\")*('2. Assisted & Restricted Units'!$T$7:$T$399=\"100% SMI\"))","v":0},{"$f":"SUMPRODUCT(('2. Assisted & Restricted Units'!$E$7:$E$399=\"3\")*('2. Assisted & Restricted Units'!$S$7:$S$399=\"Market Rate\")*('2. Assisted & Restricted Units'!$T$7:$T$399=\"100% SMI\"))","v":0},{"$f":"SUMPRODUCT(('2. Assisted & Restricted Units'!$E$7:$E$399=\"3\")*('2. Assisted & Restricted Units'!$S$7:$S$399=\"MHP\")*('2. Assisted & Restricted Units'!$T$7:$T$399=\"100% SMI\"))","v":0},{"$f":"SUMPRODUCT(('2. Assisted & Restricted Units'!$E$7:$E$399=\"3\")*('2. Assisted & Restricted Units'!$S$7:$S$399=\"NonAssisted\")*('2. Assisted & Restricted Units'!$T$7:$T$399=\"100% SMI\"))","v":0},{"$f":"SUMPRODUCT(('2. Assisted & Restricted Units'!$E$7:$E$399=\"3\")*('2. Assisted & Restricted Units'!$S$7:$S$399=\"Other Restr\")*('2. Assisted & Restricted Units'!$T$7:$T$399=\"100% SMI\"))","v":0},{"$f":"SUMPRODUCT(('2. Assisted & Restricted Units'!$E$7:$E$399=\"3\")*('2. Assisted & Restricted Units'!$S$7:$S$399=\"RHCP-B\")*('2. Assisted & Restricted Units'!$T$7:$T$399=\"100% SMI\"))","v":0},{"$f":"SUMPRODUCT(('2. Assisted & Restricted Units'!$E$7:$E$399=\"3\")*('2. Assisted & Restricted Units'!$S$7:$S$399=\"SERA\")*('2. Assisted & Restricted Units'!$T$7:$T$399=\"100% SMI\"))","v":0},{"$f":"SUMPRODUCT(('2. Assisted & Restricted Units'!$E$7:$E$399=\"3\")*('2. Assisted & Restricted Units'!$S$7:$S$399=\"SUHRP\")*('2. Assisted & Restricted Units'!$T$7:$T$399=\"100% SMI\"))","v":0},{"$f":"SUMPRODUCT(('2. Assisted & Restricted Units'!$E$7:$E$399=\"3\")*('2. Assisted & Restricted Units'!$S$7:$S$399=\"TOD\")*('2. Assisted & Restricted Units'!$T$7:$T$399=\"100% SMI\"))","v":0},{"$f":"SUMPRODUCT(('2. Assisted & Restricted Units'!$E$7:$E$399=\"3\")*('2. Assisted & Restricted Units'!$S$7:$S$399=\"707-E\")*('2. Assisted & Restricted Units'!$T$7:$T$399=\"100% SMI\"))","v":0},{"$f":"SUMPRODUCT(('2. Assisted & Restricted Units'!$E$7:$E$399=\"3\")*('2. Assisted & Restricted Units'!$S$7:$S$399=\"707-N\")*('2. Assisted & Restricted Units'!$T$7:$T$399=\"100% SMI\"))","v":0}]
["3 Bedroom VLI HOME",{"$f":"SUMPRODUCT(('2. Assisted & Restricted Units'!$E$7:$E$399=\"3\")*('2. Assisted & Restricted Units'!$S$7:$S$399=\"CALDAP\")*('2. Assisted & Restricted Units'!$T$7:$T$399=\"VLI HOME\"))","v":0},{"$f":"SUMPRODUCT(('2. Assisted & Restricted Units'!$E$7:$E$399=\"3\")*('2. Assisted & Restricted Units'!$S$7:$S$399=\"CHRP-R\")*('2. Assisted & Restricted Units'!$T$7:$T$399=\"VLI HOME\"))","v":0},{"$f":"SUMPRODUCT(('2. Assisted & Restricted Units'!$E$7:$E$399=\"3\")*('2. Assisted & Restricted Units'!$S$7:$S$399=\"DDS\")*('2. Assisted & Restricted Units'!$T$7:$T$399=\"VLI HOME\"))","v":0},{"$f":"SUMPRODUCT(('2. Assisted & Restricted Units'!$E$7:$E$399=\"3\")*('2. Assisted & Restricted Units'!$S$7:$S$399=\"DPRLP\")*('2. Assisted & Restricted Units'!$T$7:$T$399=\"VLI HOME\"))","v":0},{"$f":"SUMPRODUCT(('2. Assisted & Restricted Units'!$E$7:$E$399=\"3\")*('2. Assisted & Restricted Units'!$S$7:$S$399=\"FHDP\")*('2. Assisted & Restricted Units'!$T$7:$T$399=\"VLI HOME\"))","v":0},{"$f":"SUMPRODUCT(('2. Assisted & Restricted Units'!$E$7:$E$399=\"3\")*('2. Assisted & Restricted Units'!$S$7:$S$399=\"FMTW\")*('2. Assisted & Restricted Units'!$T$7:$T$399=\"VLI HOME\"))","v":0},null,{"$f":"SUMPRODUCT(('2. Assisted & Restricted Units'!$E$7:$E$399=\"3\")*('2. Assisted & Restricted Units'!$S$7:$S$399=\"HOME\")*('2. Assisted & Restricted Units'!$T$7:$T$399=\"VLI HOME\"))","v":0},{"$f":"SUMPRODUCT(('2. Assisted & Restricted Units'!$E$7:$E$399=\"3\")*('2. Assisted & Restricted Units'!$S$7:$S$399=\"Market Rate\")*('2. Assisted & Restricted Units'!$T$7:$T$399=\"VLI HOME\"))","v":0},{"$f":"SUMPRODUCT(('2. Assisted & Restricted Units'!$E$7:$E$399=\"3\")*('2. Assisted & Restricted Units'!$S$7:$S$399=\"MHP\")*('2. Assisted & Restricted Units'!$T$7:$T$399=\"VLI HOME\"))","v":0},{"$f":"SUMPRODUCT(('2. Assisted & Restricted Units'!$E$7:$E$399=\"3\")*('2. Assisted & Restricted Units'!$S$7:$S$399=\"NonAssisted\")*('2. Assisted & Restricted Units'!$T$7:$T$399=\"VLI HOME\"))","v":0},{"$f":"SUMPRODUCT(('2. Assisted & Restricted Units'!$E$7:$E$399=\"3\")*('2. Assisted & Restricted Units'!$S$7:$S$399=\"Other Restr\")*('2. Assisted & Restricted Units'!$T$7:$T$399=\"VLI HOME\"))","v":0},{"$f":"SUMPRODUCT(('2. Assisted & Restricted Units'!$E$7:$E$399=\"3\")*('2. Assisted & Restricted Units'!$S$7:$S$399=\"RHCP-B\")*('2. Assisted & Restricted Units'!$T$7:$T$399=\"VLI HOME\"))","v":0},{"$f":"SUMPRODUCT(('2. Assisted & Restricted Units'!$E$7:$E$399=\"3\")*('2. Assisted & Restricted Units'!$S$7:$S$399=\"SERA\")*('2. Assisted & Restricted Units'!$T$7:$T$399=\"VLI HOME\"))","v":0},{"$f":"SUMPRODUCT(('2. Assisted & Restricted Units'!$E$7:$E$399=\"3\")*('2. Assisted & Restricted Units'!$S$7:$S$399=\"SUHRP\")*('2. Assisted & Restricted Units'!$T$7:$T$399=\"VLI HOME\"))","v":0},{"$f":"SUMPRODUCT(('2. Assisted & Restricted Units'!$E$7:$E$399=\"3\")*('2. Assisted & Restricted Units'!$S$7:$S$399=\"TOD\")*('2. Assisted & Restricted Units'!$T$7:$T$399=\"VLI HOME\"))","v":0},{"$f":"SUMPRODUCT(('2. Assisted & Restricted Units'!$E$7:$E$399=\"3\")*('2. Assisted & Restricted Units'!$S$7:$S$399=\"707-E\")*('2. Assisted & Restricted Units'!$T$7:$T$399=\"VLI HOME\"))","v":0},{"$f":"SUMPRODUCT(('2. Assisted & Restricted Units'!$E$7:$E$399=\"3\")*('2. Assisted & Restricted Units'!$S$7:$S$399=\"707-N\")*('2. Assisted & Restricted Units'!$T$7:$T$399=\"VLI HOME\"))","v":0}]
["3 Bedroom LI HOME",{"$f":"SUMPRODUCT(('2. Assisted & Restricted Units'!$E$7:$E$399=\"3\")*('2. Assisted & Restricted Units'!$S$7:$S$399=\"CALDAP\")*('2. Assisted & Restricted Units'!$T$7:$T$399=\"LI HOME\"))","v":0},{"$f":"SUMPRODUCT(('2. Assisted & Restricted Units'!$E$7:$E$399=\"3\")*('2. Assisted & Restricted Units'!$S$7:$S$399=\"CHRP-R\")*('2. Assisted & Restricted Units'!$T$7:$T$399=\"LI HOME\"))","v":0},{"$f":"SUMPRODUCT(('2. Assisted & Restricted Units'!$E$7:$E$399=\"3\")*('2. Assisted & Restricted Units'!$S$7:$S$399=\"DDS\")*('2. Assisted & Restricted Units'!$T$7:$T$399=\"LI HOME\"))","v":0},{"$f":"SUMPRODUCT(('2. Assisted & Restricted Units'!$E$7:$E$399=\"3\")*('2. Assisted & Restricted Units'!$S$7:$S$399=\"DPRLP\")*('2. Assisted & Restricted Units'!$T$7:$T$399=\"LI HOME\"))","v":0},{"$f":"SUMPRODUCT(('2. Assisted & Restricted Units'!$E$7:$E$399=\"3\")*('2. Assisted & Restricted Units'!$S$7:$S$399=\"FHDP\")*('2. Assisted & Restricted Units'!$T$7:$T$399=\"LI HOME\"))","v":0},{"$f":"SUMPRODUCT(('2. Assisted & Restricted Units'!$E$7:$E$399=\"3\")*('2. Assisted & Restricted Units'!$S$7:$S$399=\"FMTW\")*('2. Assisted & Restricted Units'!$T$7:$T$399=\"LI HOME\"))","v":0},null,{"$f":"SUMPRODUCT(('2. Assisted & Restricted Units'!$E$7:$E$399=\"3\")*('2. Assisted & Restricted Units'!$S$7:$S$399=\"HOME\")*('2. Assisted & Restricted Units'!$T$7:$T$399=\"LI HOME\"))","v":0},{"$f":"SUMPRODUCT(('2. Assisted & Restricted Units'!$E$7:$E$399=\"3\")*('2. Assisted & Restricted Units'!$S$7:$S$399=\"Market Rate\")*('2. Assisted & Restricted Units'!$T$7:$T$399=\"LI HOME\"))","v":0},{"$f":"SUMPRODUCT(('2. Assisted & Restricted Units'!$E$7:$E$399=\"3\")*('2. Assisted & Restricted Units'!$S$7:$S$399=\"MHP\")*('2. Assisted & Restricted Units'!$T$7:$T$399=\"LI HOME\"))","v":0},{"$f":"SUMPRODUCT(('2. Assisted & Restricted Units'!$E$7:$E$399=\"3\")*('2. Assisted & Restricted Units'!$S$7:$S$399=\"NonAssisted\")*('2. Assisted & Restricted Units'!$T$7:$T$399=\"LI HOME\"))","v":0},{"$f":"SUMPRODUCT(('2. Assisted & Restricted Units'!$E$7:$E$399=\"3\")*('2. Assisted & Restricted Units'!$S$7:$S$399=\"Other Restr\")*('2. Assisted & Restricted Units'!$T$7:$T$399=\"LI HOME\"))","v":0},{"$f":"SUMPRODUCT(('2. Assisted & Restricted Units'!$E$7:$E$399=\"3\")*('2. Assisted & Restricted Units'!$S$7:$S$399=\"RHCP-B\")*('2. Assisted & Restricted Units'!$T$7:$T$399=\"LI HOME\"))","v":0},{"$f":"SUMPRODUCT(('2. Assisted & Restricted Units'!$E$7:$E$399=\"3\")*('2. Assisted & Restricted Units'!$S$7:$S$399=\"SERA\")*('2. Assisted & Restricted Units'!$T$7:$T$399=\"LI HOME\"))","v":0},{"$f":"SUMPRODUCT(('2. Assisted & Restricted Units'!$E$7:$E$399=\"3\")*('2. Assisted & Restricted Units'!$S$7:$S$399=\"SUHRP\")*('2. Assisted & Restricted Units'!$T$7:$T$399=\"LI HOME\"))","v":0},{"$f":"SUMPRODUCT(('2. Assisted & Restricted Units'!$E$7:$E$399=\"3\")*('2. Assisted & Restricted Units'!$S$7:$S$399=\"TOD\")*('2. Assisted & Restricted Units'!$T$7:$T$399=\"LI HOME\"))","v":0},{"$f":"SUMPRODUCT(('2. Assisted & Restricted Units'!$E$7:$E$399=\"3\")*('2. Assisted & Restricted Units'!$S$7:$S$399=\"707-E\")*('2. Assisted & Restricted Units'!$T$7:$T$399=\"LI HOME\"))","v":0},{"$f":"SUMPRODUCT(('2. Assisted & Restricted Units'!$E$7:$E$399=\"3\")*('2. Assisted & Restricted Units'!$S$7:$S$399=\"707-N\")*('2. Assisted & Restricted Units'!$T$7:$T$399=\"LI HOME\"))","v":0}]
["3 Bedroom VLI State",{"$f":"SUMPRODUCT(('2. Assisted & Restricted Units'!$E$7:$E$399=\"3\")*('2. Assisted & Restricted Units'!$S$7:$S$399=\"CALDAP\")*('2. Assisted & Restricted Units'!$T$7:$T$399=\"VLI State\"))","v":0},{"$f":"SUMPRODUCT(('2. Assisted & Restricted Units'!$E$7:$E$399=\"3\")*('2. Assisted & Restricted Units'!$S$7:$S$399=\"CHRP-R\")*('2. Assisted & Restricted Units'!$T$7:$T$399=\"VLI State\"))","v":0},{"$f":"SUMPRODUCT(('2. Assisted & Restricted Units'!$E$7:$E$399=\"3\")*('2. Assisted & Restricted Units'!$S$7:$S$399=\"DDS\")*('2. Assisted & Restricted Units'!$T$7:$T$399=\"VLI State\"))","v":0},{"$f":"SUMPRODUCT(('2. Assisted & Restricted Units'!$E$7:$E$399=\"3\")*('2. Assisted & Restricted Units'!$S$7:$S$399=\"DPRLP\")*('2. Assisted & Restricted Units'!$T$7:$T$399=\"VLI State\"))","v":0},{"$f":"SUMPRODUCT(('2. Assisted & Restricted Units'!$E$7:$E$399=\"3\")*('2. Assisted & Restricted Units'!$S$7:$S$399=\"FHDP\")*('2. Assisted & Restricted Units'!$T$7:$T$399=\"VLI State\"))","v":0},{"$f":"SUMPRODUCT(('2. Assisted & Restricted Units'!$E$7:$E$399=\"3\")*('2. Assisted & Restricted Units'!$S$7:$S$399=\"FMTW\")*('2. Assisted & Restricted Units'!$T$7:$T$399=\"VLI State\"))","v":0},null,{"$f":"SUMPRODUCT(('2. Assisted & Restricted Units'!$E$7:$E$399=\"3\")*('2. Assisted & Restricted Units'!$S$7:$S$399=\"HOME\")*('2. Assisted & Restricted Units'!$T$7:$T$399=\"VLI State\"))","v":0},{"$f":"SUMPRODUCT(('2. Assisted & Restricted Units'!$E$7:$E$399=\"3\")*('2. Assisted & Restricted Units'!$S$7:$S$399=\"Market Rate\")*('2. Assisted & Restricted Units'!$T$7:$T$399=\"VLI State\"))","v":0},{"$f":"SUMPRODUCT(('2. Assisted & Restricted Units'!$E$7:$E$399=\"3\")*('2. Assisted & Restricted Units'!$S$7:$S$399=\"MHP\")*('2. Assisted & Restricted Units'!$T$7:$T$399=\"VLI State\"))","v":0},{"$f":"SUMPRODUCT(('2. Assisted & Restricted Units'!$E$7:$E$399=\"3\")*('2. Assisted & Restricted Units'!$S$7:$S$399=\"NonAssisted\")*('2. Assisted & Restricted Units'!$T$7:$T$399=\"VLI State\"))","v":0},{"$f":"SUMPRODUCT(('2. Assisted & Restricted Units'!$E$7:$E$399=\"3\")*('2. Assisted & Restricted Units'!$S$7:$S$399=\"Other Restr\")*('2. Assisted & Restricted Units'!$T$7:$T$399=\"VLI State\"))","v":0},{"$f":"SUMPRODUCT(('2. Assisted & Restricted Units'!$E$7:$E$399=\"3\")*('2. Assisted & Restricted Units'!$S$7:$S$399=\"RHCP-B\")*('2. Assisted & Restricted Units'!$T$7:$T$399=\"VLI State\"))","v":0},{"$f":"SUMPRODUCT(('2. Assisted & Restricted Units'!$E$7:$E$399=\"3\")*('2. Assisted & Restricted Units'!$S$7:$S$399=\"SERA\")*('2. Assisted & Restricted Units'!$T$7:$T$399=\"VLI State\"))","v":0},{"$f":"SUMPRODUCT(('2. Assisted & Restricted Units'!$E$7:$E$399=\"3\")*('2. Assisted & Restricted Units'!$S$7:$S$399=\"SUHRP\")*('2. Assisted & Restricted Units'!$T$7:$T$399=\"VLI State\"))","v":0},{"$f":"SUMPRODUCT(('2. Assisted & Restricted Units'!$E$7:$E$399=\"3\")*('2. Assisted & Restricted Units'!$S$7:$S$399=\"TOD\")*('2. Assisted & Restricted Units'!$T$7:$T$399=\"VLI State\"))","v":0},{"$f":"SUMPRODUCT(('2. Assisted & Restricted Units'!$E$7:$E$399=\"3\")*('2. Assisted & Restricted Units'!$S$7:$S$399=\"707-E\")*('2. Assisted & Restricted Units'!$T$7:$T$399=\"VLI State\"))","v":0},{"$f":"SUMPRODUCT(('2. Assisted & Restricted Units'!$E$7:$E$399=\"3\")*('2. Assisted & Restricted Units'!$S$7:$S$399=\"707-N\")*('2. Assisted & Restricted Units'!$T$7:$T$399=\"VLI State\"))","v":0}]
["3 Bedroom CalHFA",{"$f":"SUMPRODUCT(('2. Assisted & Restricted Units'!$E$7:$E$399=\"3\")*('2. Assisted & Restricted Units'!$S$7:$S$399=\"CALDAP\")*('2. Assisted & Restricted Units'!$T$7:$T$399=\"LI State\"))","v":0},{"$f":"SUMPRODUCT(('2. Assisted & Restricted Units'!$E$7:$E$399=\"3\")*('2. Assisted & Restricted Units'!$S$7:$S$399=\"CHRP-R\")*('2. Assisted & Restricted Units'!$T$7:$T$399=\"LI State\"))","v":0},{"$f":"SUMPRODUCT(('2. Assisted & Restricted Units'!$E$7:$E$399=\"3\")*('2. Assisted & Restricted Units'!$S$7:$S$399=\"DDS\")*('2. Assisted & Restricted Units'!$T$7:$T$399=\"LI State\"))","v":0},{"$f":"SUMPRODUCT(('2. Assisted & Restricted Units'!$E$7:$E$399=\"3\")*('2. Assisted & Restricted Units'!$S$7:$S$399=\"DPRLP\")*('2. Assisted & Restricted Units'!$T$7:$T$399=\"LI State\"))","v":0},{"$f":"SUMPRODUCT(('2. Assisted & Restricted Units'!$E$7:$E$399=\"3\")*('2. Assisted & Restricted Units'!$S$7:$S$399=\"FHDP\")*('2. Assisted & Restricted Units'!$T$7:$T$399=\"LI State\"))","v":0},{"$f":"SUMPRODUCT(('2. Assisted & Restricted Units'!$E$7:$E$399=\"3\")*('2. Assisted & Restricted Units'!$S$7:$S$399=\"FMTW\")*('2. Assisted & Restricted Units'!$T$7:$T$399=\"LI State\"))","v":0},null,{"$f":"SUMPRODUCT(('2. Assisted & Restricted Units'!$E$7:$E$399=\"3\")*('2. Assisted & Restricted Units'!$S$7:$S$399=\"HOME\")*('2. Assisted & Restricted Units'!$T$7:$T$399=\"LI State\"))","v":0},{"$f":"SUMPRODUCT(('2. Assisted & Restricted Units'!$E$7:$E$399=\"3\")*('2. Assisted & Restricted Units'!$S$7:$S$399=\"Market Rate\")*('2. Assisted & Restricted Units'!$T$7:$T$399=\"LI State\"))","v":0},{"$f":"SUMPRODUCT(('2. Assisted & Restricted Units'!$E$7:$E$399=\"3\")*('2. Assisted & Restricted Units'!$S$7:$S$399=\"MHP\")*('2. Assisted & Restricted Units'!$T$7:$T$399=\"LI State\"))","v":0},{"$f":"SUMPRODUCT(('2. Assisted & Restricted Units'!$E$7:$E$399=\"3\")*('2. Assisted & Restricted Units'!$S$7:$S$399=\"NonAssisted\")*('2. Assisted & Restricted Units'!$T$7:$T$399=\"LI State\"))","v":0},{"$f":"SUMPRODUCT(('2. Assisted & Restricted Units'!$E$7:$E$399=\"3\")*('2. Assisted & Restricted Units'!$S$7:$S$399=\"Other Restr\")*('2. Assisted & Restricted Units'!$T$7:$T$399=\"LI State\"))","v":0},{"$f":"SUMPRODUCT(('2. Assisted & Restricted Units'!$E$7:$E$399=\"3\")*('2. Assisted & Restricted Units'!$S$7:$S$399=\"RHCP-B\")*('2. Assisted & Restricted Units'!$T$7:$T$399=\"LI State\"))","v":0},{"$f":"SUMPRODUCT(('2. Assisted & Restricted Units'!$E$7:$E$399=\"3\")*('2. Assisted & Restricted Units'!$S$7:$S$399=\"SERA\")*('2. Assisted & Restricted Units'!$T$7:$T$399=\"LI State\"))","v":0},{"$f":"SUMPRODUCT(('2. Assisted & Restricted Units'!$E$7:$E$399=\"3\")*('2. Assisted & Restricted Units'!$S$7:$S$399=\"SUHRP\")*('2. Assisted & Restricted Units'!$T$7:$T$399=\"LI State\"))","v":0},{"$f":"SUMPRODUCT(('2. Assisted & Restricted Units'!$E$7:$E$399=\"3\")*('2. Assisted & Restricted Units'!$S$7:$S$399=\"TOD\")*('2. Assisted & Restricted Units'!$T$7:$T$399=\"LI State\"))","v":0},{"$f":"SUMPRODUCT(('2. Assisted & Restricted Units'!$E$7:$E$399=\"3\")*('2. Assisted & Restricted Units'!$S$7:$S$399=\"707-E\")*('2. Assisted & Restricted Units'!$T$7:$T$399=\"LI State\"))","v":0},{"$f":"SUMPRODUCT(('2. Assisted & Restricted Units'!$E$7:$E$399=\"3\")*('2. Assisted & Restricted Units'!$S$7:$S$399=\"707-N\")*('2. Assisted & Restricted Units'!$T$7:$T$399=\"LI State\"))","v":0}]
["3 Bedroom Sec 8",{"$f":"SUMPRODUCT(('2. Assisted & Restricted Units'!$E$7:$E$399=\"3\")*('2. Assisted & Restricted Units'!$S$7:$S$399=\"CALDAP\")*('2. Assisted & Restricted Units'!$T$7:$T$399=\"CalHFA\"))","v":0},{"$f":"SUMPRODUCT(('2. Assisted & Restricted Units'!$E$7:$E$399=\"3\")*('2. Assisted & Restricted Units'!$S$7:$S$399=\"CHRP-R\")*('2. Assisted & Restricted Units'!$T$7:$T$399=\"CalHFA\"))","v":0},{"$f":"SUMPRODUCT(('2. Assisted & Restricted Units'!$E$7:$E$399=\"3\")*('2. Assisted & Restricted Units'!$S$7:$S$399=\"DDS\")*('2. Assisted & Restricted Units'!$T$7:$T$399=\"CalHFA\"))","v":0},{"$f":"SUMPRODUCT(('2. Assisted & Restricted Units'!$E$7:$E$399=\"3\")*('2. Assisted & Restricted Units'!$S$7:$S$399=\"DPRLP\")*('2. Assisted & Restricted Units'!$T$7:$T$399=\"CalHFA\"))","v":0},{"$f":"SUMPRODUCT(('2. Assisted & Restricted Units'!$E$7:$E$399=\"3\")*('2. Assisted & Restricted Units'!$S$7:$S$399=\"FHDP\")*('2. Assisted & Restricted Units'!$T$7:$T$399=\"CalHFA\"))","v":0},{"$f":"SUMPRODUCT(('2. Assisted & Restricted Units'!$E$7:$E$399=\"3\")*('2. Assisted & Restricted Units'!$S$7:$S$399=\"FMTW\")*('2. Assisted & Restricted Units'!$T$7:$T$399=\"CalHFA\"))","v":0},null,{"$f":"SUMPRODUCT(('2. Assisted & Restricted Units'!$E$7:$E$399=\"3\")*('2. Assisted & Restricted Units'!$S$7:$S$399=\"HOME\")*('2. Assisted & Restricted Units'!$T$7:$T$399=\"CalHFA\"))","v":0},{"$f":"SUMPRODUCT(('2. Assisted & Restricted Units'!$E$7:$E$399=\"3\")*('2. Assisted & Restricted Units'!$S$7:$S$399=\"Market Rate\")*('2. Assisted & Restricted Units'!$T$7:$T$399=\"CalHFA\"))","v":0},{"$f":"SUMPRODUCT(('2. Assisted & Restricted Units'!$E$7:$E$399=\"3\")*('2. Assisted & Restricted Units'!$S$7:$S$399=\"MHP\")*('2. Assisted & Restricted Units'!$T$7:$T$399=\"CalHFA\"))","v":0},{"$f":"SUMPRODUCT(('2. Assisted & Restricted Units'!$E$7:$E$399=\"3\")*('2. Assisted & Restricted Units'!$S$7:$S$399=\"NonAssisted\")*('2. Assisted & Restricted Units'!$T$7:$T$399=\"CalHFA\"))","v":0},{"$f":"SUMPRODUCT(('2. Assisted & Restricted Units'!$E$7:$E$399=\"3\")*('2. Assisted & Restricted Units'!$S$7:$S$399=\"Other Restr\")*('2. Assisted & Restricted Units'!$T$7:$T$399=\"CalHFA\"))","v":0},{"$f":"SUMPRODUCT(('2. Assisted & Restricted Units'!$E$7:$E$399=\"3\")*('2. Assisted & Restricted Units'!$S$7:$S$399=\"RHCP-B\")*('2. Assisted & Restricted Units'!$T$7:$T$399=\"CalHFA\"))","v":0},{"$f":"SUMPRODUCT(('2. Assisted & Restricted Units'!$E$7:$E$399=\"3\")*('2. Assisted & Restricted Units'!$S$7:$S$399=\"SERA\")*('2. Assisted & Restricted Units'!$T$7:$T$399=\"CalHFA\"))","v":0},{"$f":"SUMPRODUCT(('2. Assisted & Restricted Units'!$E$7:$E$399=\"3\")*('2. Assisted & Restricted Units'!$S$7:$S$399=\"SUHRP\")*('2. Assisted & Restricted Units'!$T$7:$T$399=\"CalHFA\"))","v":0},{"$f":"SUMPRODUCT(('2. Assisted & Restricted Units'!$E$7:$E$399=\"3\")*('2. Assisted & Restricted Units'!$S$7:$S$399=\"TOD\")*('2. Assisted & Restricted Units'!$T$7:$T$399=\"CalHFA\"))","v":0},{"$f":"SUMPRODUCT(('2. Assisted & Restricted Units'!$E$7:$E$399=\"3\")*('2. Assisted & Restricted Units'!$S$7:$S$399=\"707-E\")*('2. Assisted & Restricted Units'!$T$7:$T$399=\"CalHFA\"))","v":0},{"$f":"SUMPRODUCT(('2. Assisted & Restricted Units'!$E$7:$E$399=\"3\")*('2. Assisted & Restricted Units'!$S$7:$S$399=\"707-N\")*('2. Assisted & Restricted Units'!$T$7:$T$399=\"CalHFA\"))","v":0}]
["Total 3",{"$f":"SUM(B104:B127)","v":0},{"$f":"SUM(C104:C127)","v":0},{"$f":"SUM(D104:D127)","v":0},{"$f":"SUM(E104:E127)","v":0},{"$f":"SUM(F104:F127)","v":0},0,{"$f":"SUMPRODUCT(('2. Assisted & Restricted Units'!$E$7:$E$399=\"3\")*('2. Assisted & Restricted Units'!$S$7:$S$399=\"FWHG\"))","v":0},0,0,0,0,0,0,0,0,0,0,0,{"$f":"SUMPRODUCT(('2. Assisted & Restricted Units'!$E$7:$E$399=\"3\")*('2. Assisted & Restricted Units'!$L$7:$L$399=\"X\"))","v":0},{"$f":"SUMPRODUCT(('2. Assisted & Restricted Units'!$E$7:$E$399=\"3\")*('2. Assisted & Restricted Units'!#REF!=\"X\"))","v":{"$error":"#REF!"}},{"$f":"SUMPRODUCT(('2. Assisted & Restricted Units'!$E$7:$E$399=\"3\")*('2. Assisted & Restricted Units'!#REF!=\"X\"))","v":{"$error":"#REF!"}},{"$f":"SUMPRODUCT(('2. Assisted & Restricted Units'!$E$7:$E$399=\"3\")*('2. Assisted & Restricted Units'!#REF!=\"X\"))","v":{"$error":"#REF!"}},{"$f":"SUMPRODUCT(('2. Assisted & Restricted Units'!$E$7:$E$399=\"3\")*('2. Assisted & Restricted Units'!#REF!=\"X\"))","v":{"$error":"#REF!"}},{"$f":"SUMPRODUCT(('2. Assisted & Restricted Units'!$E$7:$E$399=\"3\")*('2. Assisted & Restricted Units'!#REF!=\"X\"))","v":{"$error":"#REF!"}},{"$f":"SUMPRODUCT(('2. Assisted & Restricted Units'!$E$7:$E$399=\"3\")*('2. Assisted & Restricted Units'!#REF!=\"X\"))","v":{"$error":"#REF!"}},{"$f":"SUMPRODUCT(('2. Assisted & Restricted Units'!$E$7:$E$399=\"3\")*('2. Assisted & Restricted Units'!$M$7:$M$399=\"X\"))","v":0},{"$f":"SUMPRODUCT(('2. Assisted & Restricted Units'!$E$7:$E$399=\"3\")*('2. Assisted & Restricted Units'!$O$7:$O$399=\"X\"))","v":0}]
["4 Bedroom 15% AMI",{"$f":"SUMPRODUCT(('2. Assisted & Restricted Units'!$E$7:$E$399=\"4\")*('2. Assisted & Restricted Units'!$S$7:$S$399=\"CALDAP\")*('2. Assisted & Restricted Units'!$T$7:$T$399=\"15% AMI\"))","v":0},{"$f":"SUMPRODUCT(('2. Assisted & Restricted Units'!$E$7:$E$399=\"4\")*('2. Assisted & Restricted Units'!$S$7:$S$399=\"CHRP-R\")*('2. Assisted & Restricted Units'!$T$7:$T$399=\"15% AMI\"))","v":0},{"$f":"SUMPRODUCT(('2. Assisted & Restricted Units'!$E$7:$E$399=\"4\")*('2. Assisted & Restricted Units'!$S$7:$S$399=\"DDS\")*('2. Assisted & Restricted Units'!$T$7:$T$399=\"15% AMI\"))","v":0},{"$f":"SUMPRODUCT(('2. Assisted & Restricted Units'!$E$7:$E$399=\"4\")*('2. Assisted & Restricted Units'!$S$7:$S$399=\"DPRLP\")*('2. Assisted & Restricted Units'!$T$7:$T$399=\"15% AMI\"))","v":0},{"$f":"SUMPRODUCT(('2. Assisted & Restricted Units'!$E$7:$E$399=\"4\")*('2. Assisted & Restricted Units'!$S$7:$S$399=\"FHDP\")*('2. Assisted & Restricted Units'!$T$7:$T$399=\"15% AMI\"))","v":0},{"$f":"SUMPRODUCT(('2. Assisted & Restricted Units'!$E$7:$E$399=\"4\")*('2. Assisted & Restricted Units'!$S$7:$S$399=\"FMTW\")*('2. Assisted & Restricted Units'!$T$7:$T$399=\"15% AMI\"))","v":0},null,{"$f":"SUMPRODUCT(('2. Assisted & Restricted Units'!$E$7:$E$399=\"4\")*('2. Assisted & Restricted Units'!$S$7:$S$399=\"HOME\")*('2. Assisted & Restricted Units'!$T$7:$T$399=\"15% AMI\"))","v":0},{"$f":"SUMPRODUCT(('2. Assisted & Restricted Units'!$E$7:$E$399=\"4\")*('2. Assisted & Restricted Units'!$S$7:$S$399=\"Market Rate\")*('2. Assisted & Restricted Units'!$T$7:$T$399=\"15% AMI\"))","v":0},{"$f":"SUMPRODUCT(('2. Assisted & Restricted Units'!$E$7:$E$399=\"4\")*('2. Assisted & Restricted Units'!$S$7:$S$399=\"MHP\")*('2. Assisted & Restricted Units'!$T$7:$T$399=\"15% AMI\"))","v":0},{"$f":"SUMPRODUCT(('2. Assisted & Restricted Units'!$E$7:$E$399=\"4\")*('2. Assisted & Restricted Units'!$S$7:$S$399=\"NonAssisted\")*('2. Assisted & Restricted Units'!$T$7:$T$399=\"15% AMI\"))","v":0},{"$f":"SUMPRODUCT(('2. Assisted & Restricted Units'!$E$7:$E$399=\"4\")*('2. Assisted & Restricted Units'!$S$7:$S$399=\"Other Restr\")*('2. Assisted & Restricted Units'!$T$7:$T$399=\"15% AMI\"))","v":0},{"$f":"SUMPRODUCT(('2. Assisted & Restricted Units'!$E$7:$E$399=\"4\")*('2. Assisted & Restricted Units'!$S$7:$S$399=\"RHCP-B\")*('2. Assisted & Restricted Units'!$T$7:$T$399=\"15% AMI\"))","v":0},{"$f":"SUMPRODUCT(('2. Assisted & Restricted Units'!$E$7:$E$399=\"4\")*('2. Assisted & Restricted Units'!$S$7:$S$399=\"SERA\")*('2. Assisted & Restricted Units'!$T$7:$T$399=\"15% AMI\"))","v":0},{"$f":"SUMPRODUCT(('2. Assisted & Restricted Units'!$E$7:$E$399=\"4\")*('2. Assisted & Restricted Units'!$S$7:$S$399=\"SUHRP\")*('2. Assisted & Restricted Units'!$T$7:$T$399=\"15% AMI\"))","v":0},{"$f":"SUMPRODUCT(('2. Assisted & Restricted Units'!$E$7:$E$399=\"4\")*('2. Assisted & Restricted Units'!$S$7:$S$399=\"TOD\")*('2. Assisted & Restricted Units'!$T$7:$T$399=\"15% AMI\"))","v":0},{"$f":"SUMPRODUCT(('2. Assisted & Restricted Units'!$E$7:$E$399=\"4\")*('2. Assisted & Restricted Units'!$S$7:$S$399=\"707-E\")*('2. Assisted & Restricted Units'!$T$7:$T$399=\"15% AMI\"))","v":0},{"$f":"SUMPRODUCT(('2. Assisted & Restricted Units'!$E$7:$E$399=\"4\")*('2. Assisted & Restricted Units'!$S$7:$S$399=\"707-N\")*('2. Assisted & Restricted Units'!$T$7:$T$399=\"15% AMI\"))","v":0}]
["4 Bedroom 20% AMI",{"$f":"SUMPRODUCT(('2. Assisted & Restricted Units'!$E$7:$E$399=\"4\")*('2. Assisted & Restricted Units'!$S$7:$S$399=\"CALDAP\")*('2. Assisted & Restricted Units'!$T$7:$T$399=\"20% AMI\"))","v":0},{"$f":"SUMPRODUCT(('2. Assisted & Restricted Units'!$E$7:$E$399=\"4\")*('2. Assisted & Restricted Units'!$S$7:$S$399=\"CHRP-R\")*('2. Assisted & Restricted Units'!$T$7:$T$399=\"20% AMI\"))","v":0},{"$f":"SUMPRODUCT(('2. Assisted & Restricted Units'!$E$7:$E$399=\"4\")*('2. Assisted & Restricted Units'!$S$7:$S$399=\"DDS\")*('2. Assisted & Restricted Units'!$T$7:$T$399=\"20% AMI\"))","v":0},{"$f":"SUMPRODUCT(('2. Assisted & Restricted Units'!$E$7:$E$399=\"4\")*('2. Assisted & Restricted Units'!$S$7:$S$399=\"DPRLP\")*('2. Assisted & Restricted Units'!$T$7:$T$399=\"20% AMI\"))","v":0},{"$f":"SUMPRODUCT(('2. Assisted & Restricted Units'!$E$7:$E$399=\"4\")*('2. Assisted & Restricted Units'!$S$7:$S$399=\"FHDP\")*('2. Assisted & Restricted Units'!$T$7:$T$399=\"20% AMI\"))","v":0},{"$f":"SUMPRODUCT(('2. Assisted & Restricted Units'!$E$7:$E$399=\"4\")*('2. Assisted & Restricted Units'!$S$7:$S$399=\"FMTW\")*('2. Assisted & Restricted Units'!$T$7:$T$399=\"20% AMI\"))","v":0},null,{"$f":"SUMPRODUCT(('2. Assisted & Restricted Units'!$E$7:$E$399=\"4\")*('2. Assisted & Restricted Units'!$S$7:$S$399=\"HOME\")*('2. Assisted & Restricted Units'!$T$7:$T$399=\"20% AMI\"))","v":0},{"$f":"SUMPRODUCT(('2. Assisted & Restricted Units'!$E$7:$E$399=\"4\")*('2. Assisted & Restricted Units'!$S$7:$S$399=\"Market Rate\")*('2. Assisted & Restricted Units'!$T$7:$T$399=\"20% AMI\"))","v":0},{"$f":"SUMPRODUCT(('2. Assisted & Restricted Units'!$E$7:$E$399=\"4\")*('2. Assisted & Restricted Units'!$S$7:$S$399=\"MHP\")*('2. Assisted & Restricted Units'!$T$7:$T$399=\"20% AMI\"))","v":0},{"$f":"SUMPRODUCT(('2. Assisted & Restricted Units'!$E$7:$E$399=\"4\")*('2. Assisted & Restricted Units'!$S$7:$S$399=\"NonAssisted\")*('2. Assisted & Restricted Units'!$T$7:$T$399=\"20% AMI\"))","v":0},{"$f":"SUMPRODUCT(('2. Assisted & Restricted Units'!$E$7:$E$399=\"4\")*('2. Assisted & Restricted Units'!$S$7:$S$399=\"Other Restr\")*('2. Assisted & Restricted Units'!$T$7:$T$399=\"20% AMI\"))","v":0},{"$f":"SUMPRODUCT(('2. Assisted & Restricted Units'!$E$7:$E$399=\"4\")*('2. Assisted & Restricted Units'!$S$7:$S$399=\"RHCP-B\")*('2. Assisted & Restricted Units'!$T$7:$T$399=\"20% AMI\"))","v":0},{"$f":"SUMPRODUCT(('2. Assisted & Restricted Units'!$E$7:$E$399=\"4\")*('2. Assisted & Restricted Units'!$S$7:$S$399=\"SERA\")*('2. Assisted & Restricted Units'!$T$7:$T$399=\"20% AMI\"))","v":0},{"$f":"SUMPRODUCT(('2. Assisted & Restricted Units'!$E$7:$E$399=\"4\")*('2. Assisted & Restricted Units'!$S$7:$S$399=\"SUHRP\")*('2. Assisted & Restricted Units'!$T$7:$T$399=\"20% AMI\"))","v":0},{"$f":"SUMPRODUCT(('2. Assisted & Restricted Units'!$E$7:$E$399=\"4\")*('2. Assisted & Restricted Units'!$S$7:$S$399=\"TOD\")*('2. Assisted & Restricted Units'!$T$7:$T$399=\"20% AMI\"))","v":0},{"$f":"SUMPRODUCT(('2. Assisted & Restricted Units'!$E$7:$E$399=\"4\")*('2. Assisted & Restricted Units'!$S$7:$S$399=\"707-E\")*('2. Assisted & Restricted Units'!$T$7:$T$399=\"20% AMI\"))","v":0},{"$f":"SUMPRODUCT(('2. Assisted & Restricted Units'!$E$7:$E$399=\"4\")*('2. Assisted & Restricted Units'!$S$7:$S$399=\"707-N\")*('2. Assisted & Restricted Units'!$T$7:$T$399=\"20% AMI\"))","v":0}]
["4 Bedroom 25% AMI",{"$f":"SUMPRODUCT(('2. Assisted & Restricted Units'!$E$7:$E$399=\"4\")*('2. Assisted & Restricted Units'!$S$7:$S$399=\"CALDAP\")*('2. Assisted & Restricted Units'!$T$7:$T$399=\"25% AMI\"))","v":0},{"$f":"SUMPRODUCT(('2. Assisted & Restricted Units'!$E$7:$E$399=\"4\")*('2. Assisted & Restricted Units'!$S$7:$S$399=\"CHRP-R\")*('2. Assisted & Restricted Units'!$T$7:$T$399=\"25% AMI\"))","v":0},{"$f":"SUMPRODUCT(('2. Assisted & Restricted Units'!$E$7:$E$399=\"4\")*('2. Assisted & Restricted Units'!$S$7:$S$399=\"DDS\")*('2. Assisted & Restricted Units'!$T$7:$T$399=\"25% AMI\"))","v":0},{"$f":"SUMPRODUCT(('2. Assisted & Restricted Units'!$E$7:$E$399=\"4\")*('2. Assisted & Restricted Units'!$S$7:$S$399=\"DPRLP\")*('2. Assisted & Restricted Units'!$T$7:$T$399=\"25% AMI\"))","v":0},{"$f":"SUMPRODUCT(('2. Assisted & Restricted Units'!$E$7:$E$399=\"4\")*('2. Assisted & Restricted Units'!$S$7:$S$399=\"FHDP\")*('2. Assisted & Restricted Units'!$T$7:$T$399=\"25% AMI\"))","v":0},{"$f":"SUMPRODUCT(('2. Assisted & Restricted Units'!$E$7:$E$399=\"4\")*('2. Assisted & Restricted Units'!$S$7:$S$399=\"FMTW\")*('2. Assisted & Restricted Units'!$T$7:$T$399=\"25% AMI\"))","v":0},null,{"$f":"SUMPRODUCT(('2. Assisted & Restricted Units'!$E$7:$E$399=\"4\")*('2. Assisted & Restricted Units'!$S$7:$S$399=\"HOME\")*('2. Assisted & Restricted Units'!$T$7:$T$399=\"25% AMI\"))","v":0},{"$f":"SUMPRODUCT(('2. Assisted & Restricted Units'!$E$7:$E$399=\"4\")*('2. Assisted & Restricted Units'!$S$7:$S$399=\"Market Rate\")*('2. Assisted & Restricted Units'!$T$7:$T$399=\"25% AMI\"))","v":0},{"$f":"SUMPRODUCT(('2. Assisted & Restricted Units'!$E$7:$E$399=\"4\")*('2. Assisted & Restricted Units'!$S$7:$S$399=\"MHP\")*('2. Assisted & Restricted Units'!$T$7:$T$399=\"25% AMI\"))","v":0},{"$f":"SUMPRODUCT(('2. Assisted & Restricted Units'!$E$7:$E$399=\"4\")*('2. Assisted & Restricted Units'!$S$7:$S$399=\"NonAssisted\")*('2. Assisted & Restricted Units'!$T$7:$T$399=\"25% AMI\"))","v":0},{"$f":"SUMPRODUCT(('2. Assisted & Restricted Units'!$E$7:$E$399=\"4\")*('2. Assisted & Restricted Units'!$S$7:$S$399=\"Other Restr\")*('2. Assisted & Restricted Units'!$T$7:$T$399=\"25% AMI\"))","v":0},{"$f":"SUMPRODUCT(('2. Assisted & Restricted Units'!$E$7:$E$399=\"4\")*('2. Assisted & Restricted Units'!$S$7:$S$399=\"RHCP-B\")*('2. Assisted & Restricted Units'!$T$7:$T$399=\"25% AMI\"))","v":0},{"$f":"SUMPRODUCT(('2. Assisted & Restricted Units'!$E$7:$E$399=\"4\")*('2. Assisted & Restricted Units'!$S$7:$S$399=\"SERA\")*('2. Assisted & Restricted Units'!$T$7:$T$399=\"25% AMI\"))","v":0},{"$f":"SUMPRODUCT(('2. Assisted & Restricted Units'!$E$7:$E$399=\"4\")*('2. Assisted & Restricted Units'!$S$7:$S$399=\"SUHRP\")*('2. Assisted & Restricted Units'!$T$7:$T$399=\"25% AMI\"))","v":0},{"$f":"SUMPRODUCT(('2. Assisted & Restricted Units'!$E$7:$E$399=\"4\")*('2. Assisted & Restricted Units'!$S$7:$S$399=\"TOD\")*('2. Assisted & Restricted Units'!$T$7:$T$399=\"25% AMI\"))","v":0},{"$f":"SUMPRODUCT(('2. Assisted & Restricted Units'!$E$7:$E$399=\"4\")*('2. Assisted & Restricted Units'!$S$7:$S$399=\"707-E\")*('2. Assisted & Restricted Units'!$T$7:$T$399=\"25% AMI\"))","v":0},{"$f":"SUMPRODUCT(('2. Assisted & Restricted Units'!$E$7:$E$399=\"4\")*('2. Assisted & Restricted Units'!$S$7:$S$399=\"707-N\")*('2. Assisted & Restricted Units'!$T$7:$T$399=\"25% AMI\"))","v":0}]
["4 Bedroom 30% AMI",{"$f":"SUMPRODUCT(('2. Assisted & Restricted Units'!$E$7:$E$399=\"4\")*('2. Assisted & Restricted Units'!$S$7:$S$399=\"CALDAP\")*('2. Assisted & Restricted Units'!$T$7:$T$399=\"30% AMI\"))","v":0},{"$f":"SUMPRODUCT(('2. Assisted & Restricted Units'!$E$7:$E$399=\"4\")*('2. Assisted & Restricted Units'!$S$7:$S$399=\"CHRP-R\")*('2. Assisted & Restricted Units'!$T$7:$T$399=\"30% AMI\"))","v":0},{"$f":"SUMPRODUCT(('2. Assisted & Restricted Units'!$E$7:$E$399=\"4\")*('2. Assisted & Restricted Units'!$S$7:$S$399=\"DDS\")*('2. Assisted & Restricted Units'!$T$7:$T$399=\"30% AMI\"))","v":0},{"$f":"SUMPRODUCT(('2. Assisted & Restricted Units'!$E$7:$E$399=\"4\")*('2. Assisted & Restricted Units'!$S$7:$S$399=\"DPRLP\")*('2. Assisted & Restricted Units'!$T$7:$T$399=\"30% AMI\"))","v":0},{"$f":"SUMPRODUCT(('2. Assisted & Restricted Units'!$E$7:$E$399=\"4\")*('2. Assisted & Restricted Units'!$S$7:$S$399=\"FHDP\")*('2. Assisted & Restricted Units'!$T$7:$T$399=\"30% AMI\"))","v":0},{"$f":"SUMPRODUCT(('2. Assisted & Restricted Units'!$E$7:$E$399=\"4\")*('2. Assisted & Restricted Units'!$S$7:$S$399=\"FMTW\")*('2. Assisted & Restricted Units'!$T$7:$T$399=\"30% AMI\"))","v":0},null,{"$f":"SUMPRODUCT(('2. Assisted & Restricted Units'!$E$7:$E$399=\"4\")*('2. Assisted & Restricted Units'!$S$7:$S$399=\"HOME\")*('2. Assisted & Restricted Units'!$T$7:$T$399=\"30% AMI\"))","v":0},{"$f":"SUMPRODUCT(('2. Assisted & Restricted Units'!$E$7:$E$399=\"4\")*('2. Assisted & Restricted Units'!$S$7:$S$399=\"Market Rate\")*('2. Assisted & Restricted Units'!$T$7:$T$399=\"30% AMI\"))","v":0},{"$f":"SUMPRODUCT(('2. Assisted & Restricted Units'!$E$7:$E$399=\"4\")*('2. Assisted & Restricted Units'!$S$7:$S$399=\"MHP\")*('2. Assisted & Restricted Units'!$T$7:$T$399=\"30% AMI\"))","v":0},{"$f":"SUMPRODUCT(('2. Assisted & Restricted Units'!$E$7:$E$399=\"4\")*('2. Assisted & Restricted Units'!$S$7:$S$399=\"NonAssisted\")*('2. Assisted & Restricted Units'!$T$7:$T$399=\"30% AMI\"))","v":0},{"$f":"SUMPRODUCT(('2. Assisted & Restricted Units'!$E$7:$E$399=\"4\")*('2. Assisted & Restricted Units'!$S$7:$S$399=\"Other Restr\")*('2. Assisted & Restricted Units'!$T$7:$T$399=\"30% AMI\"))","v":0},{"$f":"SUMPRODUCT(('2. Assisted & Restricted Units'!$E$7:$E$399=\"4\")*('2. Assisted & Restricted Units'!$S$7:$S$399=\"RHCP-B\")*('2. Assisted & Restricted Units'!$T$7:$T$399=\"30% AMI\"))","v":0},{"$f":"SUMPRODUCT(('2. Assisted & Restricted Units'!$E$7:$E$399=\"4\")*('2. Assisted & Restricted Units'!$S$7:$S$399=\"SERA\")*('2. Assisted & Restricted Units'!$T$7:$T$399=\"30% AMI\"))","v":0},{"$f":"SUMPRODUCT(('2. Assisted & Restricted Units'!$E$7:$E$399=\"4\")*('2. Assisted & Restricted Units'!$S$7:$S$399=\"SUHRP\")*('2. Assisted & Restricted Units'!$T$7:$T$399=\"30% AMI\"))","v":0},{"$f":"SUMPRODUCT(('2. Assisted & Restricted Units'!$E$7:$E$399=\"4\")*('2. Assisted & Restricted Units'!$S$7:$S$399=\"TOD\")*('2. Assisted & Restricted Units'!$T$7:$T$399=\"30% AMI\"))","v":0},{"$f":"SUMPRODUCT(('2. Assisted & Restricted Units'!$E$7:$E$399=\"4\")*('2. Assisted & Restricted Units'!$S$7:$S$399=\"707-E\")*('2. Assisted & Restricted Units'!$T$7:$T$399=\"30% AMI\"))","v":0},{"$f":"SUMPRODUCT(('2. Assisted & Restricted Units'!$E$7:$E$399=\"4\")*('2. Assisted & Restricted Units'!$S$7:$S$399=\"707-N\")*('2. Assisted & Restricted Units'!$T$7:$T$399=\"30% AMI\"))","v":0}]
["4 Bedroom 35% AMI",{"$f":"SUMPRODUCT(('2. Assisted & Restricted Units'!$E$7:$E$399=\"4\")*('2. Assisted & Restricted Units'!$S$7:$S$399=\"CALDAP\")*('2. Assisted & Restricted Units'!$T$7:$T$399=\"35% AMI\"))","v":0},{"$f":"SUMPRODUCT(('2. Assisted & Restricted Units'!$E$7:$E$399=\"4\")*('2. Assisted & Restricted Units'!$S$7:$S$399=\"CHRP-R\")*('2. Assisted & Restricted Units'!$T$7:$T$399=\"35% AMI\"))","v":0},{"$f":"SUMPRODUCT(('2. Assisted & Restricted Units'!$E$7:$E$399=\"4\")*('2. Assisted & Restricted Units'!$S$7:$S$399=\"DDS\")*('2. Assisted & Restricted Units'!$T$7:$T$399=\"35% AMI\"))","v":0},{"$f":"SUMPRODUCT(('2. Assisted & Restricted Units'!$E$7:$E$399=\"4\")*('2. Assisted & Restricted Units'!$S$7:$S$399=\"DPRLP\")*('2. Assisted & Restricted Units'!$T$7:$T$399=\"35% AMI\"))","v":0},{"$f":"SUMPRODUCT(('2. Assisted & Restricted Units'!$E$7:$E$399=\"4\")*('2. Assisted & Restricted Units'!$S$7:$S$399=\"FHDP\")*('2. Assisted & Restricted Units'!$T$7:$T$399=\"35% AMI\"))","v":0},{"$f":"SUMPRODUCT(('2. Assisted & Restricted Units'!$E$7:$E$399=\"4\")*('2. Assisted & Restricted Units'!$S$7:$S$399=\"FMTW\")*('2. Assisted & Restricted Units'!$T$7:$T$399=\"35% AMI\"))","v":0},null,{"$f":"SUMPRODUCT(('2. Assisted & Restricted Units'!$E$7:$E$399=\"4\")*('2. Assisted & Restricted Units'!$S$7:$S$399=\"HOME\")*('2. Assisted & Restricted Units'!$T$7:$T$399=\"35% AMI\"))","v":0},{"$f":"SUMPRODUCT(('2. Assisted & Restricted Units'!$E$7:$E$399=\"4\")*('2. Assisted & Restricted Units'!$S$7:$S$399=\"Market Rate\")*('2. Assisted & Restricted Units'!$T$7:$T$399=\"35% AMI\"))","v":0},{"$f":"SUMPRODUCT(('2. Assisted & Restricted Units'!$E$7:$E$399=\"4\")*('2. Assisted & Restricted Units'!$S$7:$S$399=\"MHP\")*('2. Assisted & Restricted Units'!$T$7:$T$399=\"35% AMI\"))","v":0},{"$f":"SUMPRODUCT(('2. Assisted & Restricted Units'!$E$7:$E$399=\"4\")*('2. Assisted & Restricted Units'!$S$7:$S$399=\"NonAssisted\")*('2. Assisted & Restricted Units'!$T$7:$T$399=\"35% AMI\"))","v":0},{"$f":"SUMPRODUCT(('2. Assisted & Restricted Units'!$E$7:$E$399=\"4\")*('2. Assisted & Restricted Units'!$S$7:$S$399=\"Other Restr\")*('2. Assisted & Restricted Units'!$T$7:$T$399=\"35% AMI\"))","v":0},{"$f":"SUMPRODUCT(('2. Assisted & Restricted Units'!$E$7:$E$399=\"4\")*('2. Assisted & Restricted Units'!$S$7:$S$399=\"RHCP-B\")*('2. Assisted & Restricted Units'!$T$7:$T$399=\"35% AMI\"))","v":0},{"$f":"SUMPRODUCT(('2. Assisted & Restricted Units'!$E$7:$E$399=\"4\")*('2. Assisted & Restricted Units'!$S$7:$S$399=\"SERA\")*('2. Assisted & Restricted Units'!$T$7:$T$399=\"35% AMI\"))","v":0},{"$f":"SUMPRODUCT(('2. Assisted & Restricted Units'!$E$7:$E$399=\"4\")*('2. Assisted & Restricted Units'!$S$7:$S$399=\"SUHRP\")*('2. Assisted & Restricted Units'!$T$7:$T$399=\"35% AMI\"))","v":0},{"$f":"SUMPRODUCT(('2. Assisted & Restricted Units'!$E$7:$E$399=\"4\")*('2. Assisted & Restricted Units'!$S$7:$S$399=\"TOD\")*('2. Assisted & Restricted Units'!$T$7:$T$399=\"35% AMI\"))","v":0},{"$f":"SUMPRODUCT(('2. Assisted & Restricted Units'!$E$7:$E$399=\"4\")*('2. Assisted & Restricted Units'!$S$7:$S$399=\"707-E\")*('2. Assisted & Restricted Units'!$T$7:$T$399=\"35% AMI\"))","v":0},{"$f":"SUMPRODUCT(('2. Assisted & Restricted Units'!$E$7:$E$399=\"4\")*('2. Assisted & Restricted Units'!$S$7:$S$399=\"707-N\")*('2. Assisted & Restricted Units'!$T$7:$T$399=\"35% AMI\"))","v":0}]
["4 Bedroom 40% AMI",{"$f":"SUMPRODUCT(('2. Assisted & Restricted Units'!$E$7:$E$399=\"4\")*('2. Assisted & Restricted Units'!$S$7:$S$399=\"CALDAP\")*('2. Assisted & Restricted Units'!$T$7:$T$399=\"40% AMI\"))","v":0},{"$f":"SUMPRODUCT(('2. Assisted & Restricted Units'!$E$7:$E$399=\"4\")*('2. Assisted & Restricted Units'!$S$7:$S$399=\"CHRP-R\")*('2. Assisted & Restricted Units'!$T$7:$T$399=\"40% AMI\"))","v":0},{"$f":"SUMPRODUCT(('2. Assisted & Restricted Units'!$E$7:$E$399=\"4\")*('2. Assisted & Restricted Units'!$S$7:$S$399=\"DDS\")*('2. Assisted & Restricted Units'!$T$7:$T$399=\"40% AMI\"))","v":0},{"$f":"SUMPRODUCT(('2. Assisted & Restricted Units'!$E$7:$E$399=\"4\")*('2. Assisted & Restricted Units'!$S$7:$S$399=\"DPRLP\")*('2. Assisted & Restricted Units'!$T$7:$T$399=\"40% AMI\"))","v":0},{"$f":"SUMPRODUCT(('2. Assisted & Restricted Units'!$E$7:$E$399=\"4\")*('2. Assisted & Restricted Units'!$S$7:$S$399=\"FHDP\")*('2. Assisted & Restricted Units'!$T$7:$T$399=\"40% AMI\"))","v":0},{"$f":"SUMPRODUCT(('2. Assisted & Restricted Units'!$E$7:$E$399=\"4\")*('2. Assisted & Restricted Units'!$S$7:$S$399=\"FMTW\")*('2. Assisted & Restricted Units'!$T$7:$T$399=\"40% AMI\"))","v":0},null,{"$f":"SUMPRODUCT(('2. Assisted & Restricted Units'!$E$7:$E$399=\"4\")*('2. Assisted & Restricted Units'!$S$7:$S$399=\"HOME\")*('2. Assisted & Restricted Units'!$T$7:$T$399=\"40% AMI\"))","v":0},{"$f":"SUMPRODUCT(('2. Assisted & Restricted Units'!$E$7:$E$399=\"4\")*('2. Assisted & Restricted Units'!$S$7:$S$399=\"Market Rate\")*('2. Assisted & Restricted Units'!$T$7:$T$399=\"40% AMI\"))","v":0},{"$f":"SUMPRODUCT(('2. Assisted & Restricted Units'!$E$7:$E$399=\"4\")*('2. Assisted & Restricted Units'!$S$7:$S$399=\"MHP\")*('2. Assisted & Restricted Units'!$T$7:$T$399=\"40% AMI\"))","v":0},{"$f":"SUMPRODUCT(('2. Assisted & Restricted Units'!$E$7:$E$399=\"4\")*('2. Assisted & Restricted Units'!$S$7:$S$399=\"NonAssisted\")*('2. Assisted & Restricted Units'!$T$7:$T$399=\"40% AMI\"))","v":0},{"$f":"SUMPRODUCT(('2. Assisted & Restricted Units'!$E$7:$E$399=\"4\")*('2. Assisted & Restricted Units'!$S$7:$S$399=\"Other Restr\")*('2. Assisted & Restricted Units'!$T$7:$T$399=\"40% AMI\"))","v":0},{"$f":"SUMPRODUCT(('2. Assisted & Restricted Units'!$E$7:$E$399=\"4\")*('2. Assisted & Restricted Units'!$S$7:$S$399=\"RHCP-B\")*('2. Assisted & Restricted Units'!$T$7:$T$399=\"40% AMI\"))","v":0},{"$f":"SUMPRODUCT(('2. Assisted & Restricted Units'!$E$7:$E$399=\"4\")*('2. Assisted & Restricted Units'!$S$7:$S$399=\"SERA\")*('2. Assisted & Restricted Units'!$T$7:$T$399=\"40% AMI\"))","v":0},{"$f":"SUMPRODUCT(('2. Assisted & Restricted Units'!$E$7:$E$399=\"4\")*('2. Assisted & Restricted Units'!$S$7:$S$399=\"SUHRP\")*('2. Assisted & Restricted Units'!$T$7:$T$399=\"40% AMI\"))","v":0},{"$f":"SUMPRODUCT(('2. Assisted & Restricted Units'!$E$7:$E$399=\"4\")*('2. Assisted & Restricted Units'!$S$7:$S$399=\"TOD\")*('2. Assisted & Restricted Units'!$T$7:$T$399=\"40% AMI\"))","v":0},{"$f":"SUMPRODUCT(('2. Assisted & Restricted Units'!$E$7:$E$399=\"4\")*('2. Assisted & Restricted Units'!$S$7:$S$399=\"707-E\")*('2. Assisted & Restricted Units'!$T$7:$T$399=\"40% AMI\"))","v":0},{"$f":"SUMPRODUCT(('2. Assisted & Restricted Units'!$E$7:$E$399=\"4\")*('2. Assisted & Restricted Units'!$S$7:$S$399=\"707-N\")*('2. Assisted & Restricted Units'!$T$7:$T$399=\"40% AMI\"))","v":0}]
["4 Bedroom 45% AMI",{"$f":"SUMPRODUCT(('2. Assisted & Restricted Units'!$E$7:$E$399=\"4\")*('2. Assisted & Restricted Units'!$S$7:$S$399=\"CALDAP\")*('2. Assisted & Restricted Units'!$T$7:$T$399=\"45% AMI\"))","v":0},{"$f":"SUMPRODUCT(('2. Assisted & Restricted Units'!$E$7:$E$399=\"4\")*('2. Assisted & Restricted Units'!$S$7:$S$399=\"CHRP-R\")*('2. Assisted & Restricted Units'!$T$7:$T$399=\"45% AMI\"))","v":0},{"$f":"SUMPRODUCT(('2. Assisted & Restricted Units'!$E$7:$E$399=\"4\")*('2. Assisted & Restricted Units'!$S$7:$S$399=\"DDS\")*('2. Assisted & Restricted Units'!$T$7:$T$399=\"45% AMI\"))","v":0},{"$f":"SUMPRODUCT(('2. Assisted & Restricted Units'!$E$7:$E$399=\"4\")*('2. Assisted & Restricted Units'!$S$7:$S$399=\"DPRLP\")*('2. Assisted & Restricted Units'!$T$7:$T$399=\"45% AMI\"))","v":0},{"$f":"SUMPRODUCT(('2. Assisted & Restricted Units'!$E$7:$E$399=\"4\")*('2. Assisted & Restricted Units'!$S$7:$S$399=\"FHDP\")*('2. Assisted & Restricted Units'!$T$7:$T$399=\"45% AMI\"))","v":0},{"$f":"SUMPRODUCT(('2. Assisted & Restricted Units'!$E$7:$E$399=\"4\")*('2. Assisted & Restricted Units'!$S$7:$S$399=\"FMTW\")*('2. Assisted & Restricted Units'!$T$7:$T$399=\"45% AMI\"))","v":0},null,{"$f":"SUMPRODUCT(('2. Assisted & Restricted Units'!$E$7:$E$399=\"4\")*('2. Assisted & Restricted Units'!$S$7:$S$399=\"HOME\")*('2. Assisted & Restricted Units'!$T$7:$T$399=\"45% AMI\"))","v":0},{"$f":"SUMPRODUCT(('2. Assisted & Restricted Units'!$E$7:$E$399=\"4\")*('2. Assisted & Restricted Units'!$S$7:$S$399=\"Market Rate\")*('2. Assisted & Restricted Units'!$T$7:$T$399=\"45% AMI\"))","v":0},{"$f":"SUMPRODUCT(('2. Assisted & Restricted Units'!$E$7:$E$399=\"4\")*('2. Assisted & Restricted Units'!$S$7:$S$399=\"MHP\")*('2. Assisted & Restricted Units'!$T$7:$T$399=\"45% AMI\"))","v":0},{"$f":"SUMPRODUCT(('2. Assisted & Restricted Units'!$E$7:$E$399=\"4\")*('2. Assisted & Restricted Units'!$S$7:$S$399=\"NonAssisted\")*('2. Assisted & Restricted Units'!$T$7:$T$399=\"45% AMI\"))","v":0},{"$f":"SUMPRODUCT(('2. Assisted & Restricted Units'!$E$7:$E$399=\"4\")*('2. Assisted & Restricted Units'!$S$7:$S$399=\"Other Restr\")*('2. Assisted & Restricted Units'!$T$7:$T$399=\"45% AMI\"))","v":0},{"$f":"SUMPRODUCT(('2. Assisted & Restricted Units'!$E$7:$E$399=\"4\")*('2. Assisted & Restricted Units'!$S$7:$S$399=\"RHCP-B\")*('2. Assisted & Restricted Units'!$T$7:$T$399=\"45% AMI\"))","v":0},{"$f":"SUMPRODUCT(('2. Assisted & Restricted Units'!$E$7:$E$399=\"4\")*('2. Assisted & Restricted Units'!$S$7:$S$399=\"SERA\")*('2. Assisted & Restricted Units'!$T$7:$T$399=\"45% AMI\"))","v":0},{"$f":"SUMPRODUCT(('2. Assisted & Restricted Units'!$E$7:$E$399=\"4\")*('2. Assisted & Restricted Units'!$S$7:$S$399=\"SUHRP\")*('2. Assisted & Restricted Units'!$T$7:$T$399=\"45% AMI\"))","v":0},{"$f":"SUMPRODUCT(('2. Assisted & Restricted Units'!$E$7:$E$399=\"4\")*('2. Assisted & Restricted Units'!$S$7:$S$399=\"TOD\")*('2. Assisted & Restricted Units'!$T$7:$T$399=\"45% AMI\"))","v":0},{"$f":"SUMPRODUCT(('2. Assisted & Restricted Units'!$E$7:$E$399=\"4\")*('2. Assisted & Restricted Units'!$S$7:$S$399=\"707-E\")*('2. Assisted & Restricted Units'!$T$7:$T$399=\"45% AMI\"))","v":0},{"$f":"SUMPRODUCT(('2. Assisted & Restricted Units'!$E$7:$E$399=\"4\")*('2. Assisted & Restricted Units'!$S$7:$S$399=\"707-N\")*('2. Assisted & Restricted Units'!$T$7:$T$399=\"45% AMI\"))","v":0}]
["4 Bedroom 50% AMI",{"$f":"SUMPRODUCT(('2. Assisted & Restricted Units'!$E$7:$E$399=\"4\")*('2. Assisted & Restricted Units'!$S$7:$S$399=\"CALDAP\")*('2. Assisted & Restricted Units'!$T$7:$T$399=\"50% AMI\"))","v":0},{"$f":"SUMPRODUCT(('2. Assisted & Restricted Units'!$E$7:$E$399=\"4\")*('2. Assisted & Restricted Units'!$S$7:$S$399=\"CHRP-R\")*('2. Assisted & Restricted Units'!$T$7:$T$399=\"50% AMI\"))","v":0},{"$f":"SUMPRODUCT(('2. Assisted & Restricted Units'!$E$7:$E$399=\"4\")*('2. Assisted & Restricted Units'!$S$7:$S$399=\"DDS\")*('2. Assisted & Restricted Units'!$T$7:$T$399=\"50% AMI\"))","v":0},{"$f":"SUMPRODUCT(('2. Assisted & Restricted Units'!$E$7:$E$399=\"4\")*('2. Assisted & Restricted Units'!$S$7:$S$399=\"DPRLP\")*('2. Assisted & Restricted Units'!$T$7:$T$399=\"50% AMI\"))","v":0},{"$f":"SUMPRODUCT(('2. Assisted & Restricted Units'!$E$7:$E$399=\"4\")*('2. Assisted & Restricted Units'!$S$7:$S$399=\"FHDP\")*('2. Assisted & Restricted Units'!$T$7:$T$399=\"50% AMI\"))","v":0},{"$f":"SUMPRODUCT(('2. Assisted & Restricted Units'!$E$7:$E$399=\"4\")*('2. Assisted & Restricted Units'!$S$7:$S$399=\"FMTW\")*('2. Assisted & Restricted Units'!$T$7:$T$399=\"50% AMI\"))","v":0},null,{"$f":"SUMPRODUCT(('2. Assisted & Restricted Units'!$E$7:$E$399=\"4\")*('2. Assisted & Restricted Units'!$S$7:$S$399=\"HOME\")*('2. Assisted & Restricted Units'!$T$7:$T$399=\"50% AMI\"))","v":0},{"$f":"SUMPRODUCT(('2. Assisted & Restricted Units'!$E$7:$E$399=\"4\")*('2. Assisted & Restricted Units'!$S$7:$S$399=\"Market Rate\")*('2. Assisted & Restricted Units'!$T$7:$T$399=\"50% AMI\"))","v":0},{"$f":"SUMPRODUCT(('2. Assisted & Restricted Units'!$E$7:$E$399=\"4\")*('2. Assisted & Restricted Units'!$S$7:$S$399=\"MHP\")*('2. Assisted & Restricted Units'!$T$7:$T$399=\"50% AMI\"))","v":0},{"$f":"SUMPRODUCT(('2. Assisted & Restricted Units'!$E$7:$E$399=\"4\")*('2. Assisted & Restricted Units'!$S$7:$S$399=\"NonAssisted\")*('2. Assisted & Restricted Units'!$T$7:$T$399=\"50% AMI\"))","v":0},{"$f":"SUMPRODUCT(('2. Assisted & Restricted Units'!$E$7:$E$399=\"4\")*('2. Assisted & Restricted Units'!$S$7:$S$399=\"Other Restr\")*('2. Assisted & Restricted Units'!$T$7:$T$399=\"50% AMI\"))","v":0},{"$f":"SUMPRODUCT(('2. Assisted & Restricted Units'!$E$7:$E$399=\"4\")*('2. Assisted & Restricted Units'!$S$7:$S$399=\"RHCP-B\")*('2. Assisted & Restricted Units'!$T$7:$T$399=\"50% AMI\"))","v":0},{"$f":"SUMPRODUCT(('2. Assisted & Restricted Units'!$E$7:$E$399=\"4\")*('2. Assisted & Restricted Units'!$S$7:$S$399=\"SERA\")*('2. Assisted & Restricted Units'!$T$7:$T$399=\"50% AMI\"))","v":0},{"$f":"SUMPRODUCT(('2. Assisted & Restricted Units'!$E$7:$E$399=\"4\")*('2. Assisted & Restricted Units'!$S$7:$S$399=\"SUHRP\")*('2. Assisted & Restricted Units'!$T$7:$T$399=\"50% AMI\"))","v":0},{"$f":"SUMPRODUCT(('2. Assisted & Restricted Units'!$E$7:$E$399=\"4\")*('2. Assisted & Restricted Units'!$S$7:$S$399=\"TOD\")*('2. Assisted & Restricted Units'!$T$7:$T$399=\"50% AMI\"))","v":0},{"$f":"SUMPRODUCT(('2. Assisted & Restricted Units'!$E$7:$E$399=\"4\")*('2. Assisted & Restricted Units'!$S$7:$S$399=\"707-E\")*('2. Assisted & Restricted Units'!$T$7:$T$399=\"50% AMI\"))","v":0},{"$f":"SUMPRODUCT(('2. Assisted & Restricted Units'!$E$7:$E$399=\"4\")*('2. Assisted & Restricted Units'!$S$7:$S$399=\"707-N\")*('2. Assisted & Restricted Units'!$T$7:$T$399=\"50% AMI\"))","v":0}]
["4 Bedroom 55% AMI",{"$f":"SUMPRODUCT(('2. Assisted & Restricted Units'!$E$7:$E$399=\"4\")*('2. Assisted & Restricted Units'!$S$7:$S$399=\"CALDAP\")*('2. Assisted & Restricted Units'!$T$7:$T$399=\"55% AMI\"))","v":0},{"$f":"SUMPRODUCT(('2. Assisted & Restricted Units'!$E$7:$E$399=\"4\")*('2. Assisted & Restricted Units'!$S$7:$S$399=\"CHRP-R\")*('2. Assisted & Restricted Units'!$T$7:$T$399=\"55% AMI\"))","v":0},{"$f":"SUMPRODUCT(('2. Assisted & Restricted Units'!$E$7:$E$399=\"4\")*('2. Assisted & Restricted Units'!$S$7:$S$399=\"DDS\")*('2. Assisted & Restricted Units'!$T$7:$T$399=\"55% AMI\"))","v":0},{"$f":"SUMPRODUCT(('2. Assisted & Restricted Units'!$E$7:$E$399=\"4\")*('2. Assisted & Restricted Units'!$S$7:$S$399=\"DPRLP\")*('2. Assisted & Restricted Units'!$T$7:$T$399=\"55% AMI\"))","v":0},{"$f":"SUMPRODUCT(('2. Assisted & Restricted Units'!$E$7:$E$399=\"4\")*('2. Assisted & Restricted Units'!$S$7:$S$399=\"FHDP\")*('2. Assisted & Restricted Units'!$T$7:$T$399=\"55% AMI\"))","v":0},{"$f":"SUMPRODUCT(('2. Assisted & Restricted Units'!$E$7:$E$399=\"4\")*('2. Assisted & Restricted Units'!$S$7:$S$399=\"FMTW\")*('2. Assisted & Restricted Units'!$T$7:$T$399=\"55% AMI\"))","v":0},null,{"$f":"SUMPRODUCT(('2. Assisted & Restricted Units'!$E$7:$E$399=\"4\")*('2. Assisted & Restricted Units'!$S$7:$S$399=\"HOME\")*('2. Assisted & Restricted Units'!$T$7:$T$399=\"55% AMI\"))","v":0},{"$f":"SUMPRODUCT(('2. Assisted & Restricted Units'!$E$7:$E$399=\"4\")*('2. Assisted & Restricted Units'!$S$7:$S$399=\"Market Rate\")*('2. Assisted & Restricted Units'!$T$7:$T$399=\"55% AMI\"))","v":0},{"$f":"SUMPRODUCT(('2. Assisted & Restricted Units'!$E$7:$E$399=\"4\")*('2. Assisted & Restricted Units'!$S$7:$S$399=\"MHP\")*('2. Assisted & Restricted Units'!$T$7:$T$399=\"55% AMI\"))","v":0},{"$f":"SUMPRODUCT(('2. Assisted & Restricted Units'!$E$7:$E$399=\"4\")*('2. Assisted & Restricted Units'!$S$7:$S$399=\"NonAssisted\")*('2. Assisted & Restricted Units'!$T$7:$T$399=\"55% AMI\"))","v":0},{"$f":"SUMPRODUCT(('2. Assisted & Restricted Units'!$E$7:$E$399=\"4\")*('2. Assisted & Restricted Units'!$S$7:$S$399=\"Other Restr\")*('2. Assisted & Restricted Units'!$T$7:$T$399=\"55% AMI\"))","v":0},{"$f":"SUMPRODUCT(('2. Assisted & Restricted Units'!$E$7:$E$399=\"4\")*('2. Assisted & Restricted Units'!$S$7:$S$399=\"RHCP-B\")*('2. Assisted & Restricted Units'!$T$7:$T$399=\"55% AMI\"))","v":0},{"$f":"SUMPRODUCT(('2. Assisted & Restricted Units'!$E$7:$E$399=\"4\")*('2. Assisted & Restricted Units'!$S$7:$S$399=\"SERA\")*('2. Assisted & Restricted Units'!$T$7:$T$399=\"55% AMI\"))","v":0},{"$f":"SUMPRODUCT(('2. Assisted & Restricted Units'!$E$7:$E$399=\"4\")*('2. Assisted & Restricted Units'!$S$7:$S$399=\"SUHRP\")*('2. Assisted & Restricted Units'!$T$7:$T$399=\"55% AMI\"))","v":0},{"$f":"SUMPRODUCT(('2. Assisted & Restricted Units'!$E$7:$E$399=\"4\")*('2. Assisted & Restricted Units'!$S$7:$S$399=\"TOD\")*('2. Assisted & Restricted Units'!$T$7:$T$399=\"55% AMI\"))","v":0},{"$f":"SUMPRODUCT(('2. Assisted & Restricted Units'!$E$7:$E$399=\"4\")*('2. Assisted & Restricted Units'!$S$7:$S$399=\"707-E\")*('2. Assisted & Restricted Units'!$T$7:$T$399=\"55% AMI\"))","v":0},{"$f":"SUMPRODUCT(('2. Assisted & Restricted Units'!$E$7:$E$399=\"4\")*('2. Assisted & Restricted Units'!$S$7:$S$399=\"707-N\")*('2. Assisted & Restricted Units'!$T$7:$T$399=\"55% AMI\"))","v":0}]
["4 Bedroom 60% AMI",{"$f":"SUMPRODUCT(('2. Assisted & Restricted Units'!$E$7:$E$399=\"4\")*('2. Assisted & Restricted Units'!$S$7:$S$399=\"CALDAP\")*('2. Assisted & Restricted Units'!$T$7:$T$399=\"60% AMI\"))","v":0},{"$f":"SUMPRODUCT(('2. Assisted & Restricted Units'!$E$7:$E$399=\"4\")*('2. Assisted & Restricted Units'!$S$7:$S$399=\"CHRP-R\")*('2. Assisted & Restricted Units'!$T$7:$T$399=\"60% AMI\"))","v":0},{"$f":"SUMPRODUCT(('2. Assisted & Restricted Units'!$E$7:$E$399=\"4\")*('2. Assisted & Restricted Units'!$S$7:$S$399=\"DDS\")*('2. Assisted & Restricted Units'!$T$7:$T$399=\"60% AMI\"))","v":0},{"$f":"SUMPRODUCT(('2. Assisted & Restricted Units'!$E$7:$E$399=\"4\")*('2. Assisted & Restricted Units'!$S$7:$S$399=\"DPRLP\")*('2. Assisted & Restricted Units'!$T$7:$T$399=\"60% AMI\"))","v":0},{"$f":"SUMPRODUCT(('2. Assisted & Restricted Units'!$E$7:$E$399=\"4\")*('2. Assisted & Restricted Units'!$S$7:$S$399=\"FHDP\")*('2. Assisted & Restricted Units'!$T$7:$T$399=\"60% AMI\"))","v":0},{"$f":"SUMPRODUCT(('2. Assisted & Restricted Units'!$E$7:$E$399=\"4\")*('2. Assisted & Restricted Units'!$S$7:$S$399=\"FMTW\")*('2. Assisted & Restricted Units'!$T$7:$T$399=\"60% AMI\"))","v":0},null,{"$f":"SUMPRODUCT(('2. Assisted & Restricted Units'!$E$7:$E$399=\"4\")*('2. Assisted & Restricted Units'!$S$7:$S$399=\"HOME\")*('2. Assisted & Restricted Units'!$T$7:$T$399=\"60% AMI\"))","v":0},{"$f":"SUMPRODUCT(('2. Assisted & Restricted Units'!$E$7:$E$399=\"4\")*('2. Assisted & Restricted Units'!$S$7:$S$399=\"Market Rate\")*('2. Assisted & Restricted Units'!$T$7:$T$399=\"60% AMI\"))","v":0},{"$f":"SUMPRODUCT(('2. Assisted & Restricted Units'!$E$7:$E$399=\"4\")*('2. Assisted & Restricted Units'!$S$7:$S$399=\"MHP\")*('2. Assisted & Restricted Units'!$T$7:$T$399=\"60% AMI\"))","v":0},{"$f":"SUMPRODUCT(('2. Assisted & Restricted Units'!$E$7:$E$399=\"4\")*('2. Assisted & Restricted Units'!$S$7:$S$399=\"NonAssisted\")*('2. Assisted & Restricted Units'!$T$7:$T$399=\"60% AMI\"))","v":0},{"$f":"SUMPRODUCT(('2. Assisted & Restricted Units'!$E$7:$E$399=\"4\")*('2. Assisted & Restricted Units'!$S$7:$S$399=\"Other Restr\")*('2. Assisted & Restricted Units'!$T$7:$T$399=\"60% AMI\"))","v":0},{"$f":"SUMPRODUCT(('2. Assisted & Restricted Units'!$E$7:$E$399=\"4\")*('2. Assisted & Restricted Units'!$S$7:$S$399=\"RHCP-B\")*('2. Assisted & Restricted Units'!$T$7:$T$399=\"60% AMI\"))","v":0},{"$f":"SUMPRODUCT(('2. Assisted & Restricted Units'!$E$7:$E$399=\"4\")*('2. Assisted & Restricted Units'!$S$7:$S$399=\"SERA\")*('2. Assisted & Restricted Units'!$T$7:$T$399=\"60% AMI\"))","v":0},{"$f":"SUMPRODUCT(('2. Assisted & Restricted Units'!$E$7:$E$399=\"4\")*('2. Assisted & Restricted Units'!$S$7:$S$399=\"SUHRP\")*('2. Assisted & Restricted Units'!$T$7:$T$399=\"60% AMI\"))","v":0},{"$f":"SUMPRODUCT(('2. Assisted & Restricted Units'!$E$7:$E$399=\"4\")*('2. Assisted & Restricted Units'!$S$7:$S$399=\"TOD\")*('2. Assisted & Restricted Units'!$T$7:$T$399=\"60% AMI\"))","v":0},{"$f":"SUMPRODUCT(('2. Assisted & Restricted Units'!$E$7:$E$399=\"4\")*('2. Assisted & Restricted Units'!$S$7:$S$399=\"707-E\")*('2. Assisted & Restricted Units'!$T$7:$T$399=\"60% AMI\"))","v":0},{"$f":"SUMPRODUCT(('2. Assisted & Restricted Units'!$E$7:$E$399=\"4\")*('2. Assisted & Restricted Units'!$S$7:$S$399=\"707-N\")*('2. Assisted & Restricted Units'!$T$7:$T$399=\"60% AMI\"))","v":0}]
["4 Bedroom 80% AMI",{"$f":"SUMPRODUCT(('2. Assisted & Restricted Units'!$E$7:$E$399=\"4\")*('2. Assisted & Restricted Units'!$S$7:$S$399=\"CALDAP\")*('2. Assisted & Restricted Units'!$T$7:$T$399=\"80% AMI\"))","v":0},{"$f":"SUMPRODUCT(('2. Assisted & Restricted Units'!$E$7:$E$399=\"4\")*('2. Assisted & Restricted Units'!$S$7:$S$399=\"CHRP-R\")*('2. Assisted & Restricted Units'!$T$7:$T$399=\"80% AMI\"))","v":0},{"$f":"SUMPRODUCT(('2. Assisted & Restricted Units'!$E$7:$E$399=\"4\")*('2. Assisted & Restricted Units'!$S$7:$S$399=\"DDS\")*('2. Assisted & Restricted Units'!$T$7:$T$399=\"80% AMI\"))","v":0},{"$f":"SUMPRODUCT(('2. Assisted & Restricted Units'!$E$7:$E$399=\"4\")*('2. Assisted & Restricted Units'!$S$7:$S$399=\"DPRLP\")*('2. Assisted & Restricted Units'!$T$7:$T$399=\"80% AMI\"))","v":0},{"$f":"SUMPRODUCT(('2. Assisted & Restricted Units'!$E$7:$E$399=\"4\")*('2. Assisted & Restricted Units'!$S$7:$S$399=\"FHDP\")*('2. Assisted & Restricted Units'!$T$7:$T$399=\"80% AMI\"))","v":0},{"$f":"SUMPRODUCT(('2. Assisted & Restricted Units'!$E$7:$E$399=\"4\")*('2. Assisted & Restricted Units'!$S$7:$S$399=\"FMTW\")*('2. Assisted & Restricted Units'!$T$7:$T$399=\"80% AMI\"))","v":0},null,{"$f":"SUMPRODUCT(('2. Assisted & Restricted Units'!$E$7:$E$399=\"4\")*('2. Assisted & Restricted Units'!$S$7:$S$399=\"HOME\")*('2. Assisted & Restricted Units'!$T$7:$T$399=\"80% AMI\"))","v":0},{"$f":"SUMPRODUCT(('2. Assisted & Restricted Units'!$E$7:$E$399=\"4\")*('2. Assisted & Restricted Units'!$S$7:$S$399=\"Market Rate\")*('2. Assisted & Restricted Units'!$T$7:$T$399=\"80% AMI\"))","v":0},{"$f":"SUMPRODUCT(('2. Assisted & Restricted Units'!$E$7:$E$399=\"4\")*('2. Assisted & Restricted Units'!$S$7:$S$399=\"MHP\")*('2. Assisted & Restricted Units'!$T$7:$T$399=\"80% AMI\"))","v":0},{"$f":"SUMPRODUCT(('2. Assisted & Restricted Units'!$E$7:$E$399=\"4\")*('2. Assisted & Restricted Units'!$S$7:$S$399=\"NonAssisted\")*('2. Assisted & Restricted Units'!$T$7:$T$399=\"80% AMI\"))","v":0},{"$f":"SUMPRODUCT(('2. Assisted & Restricted Units'!$E$7:$E$399=\"4\")*('2. Assisted & Restricted Units'!$S$7:$S$399=\"Other Restr\")*('2. Assisted & Restricted Units'!$T$7:$T$399=\"80% AMI\"))","v":0},{"$f":"SUMPRODUCT(('2. Assisted & Restricted Units'!$E$7:$E$399=\"4\")*('2. Assisted & Restricted Units'!$S$7:$S$399=\"RHCP-B\")*('2. Assisted & Restricted Units'!$T$7:$T$399=\"80% AMI\"))","v":0},{"$f":"SUMPRODUCT(('2. Assisted & Restricted Units'!$E$7:$E$399=\"4\")*('2. Assisted & Restricted Units'!$S$7:$S$399=\"SERA\")*('2. Assisted & Restricted Units'!$T$7:$T$399=\"80% AMI\"))","v":0},{"$f":"SUMPRODUCT(('2. Assisted & Restricted Units'!$E$7:$E$399=\"4\")*('2. Assisted & Restricted Units'!$S$7:$S$399=\"SUHRP\")*('2. Assisted & Restricted Units'!$T$7:$T$399=\"80% AMI\"))","v":0},{"$f":"SUMPRODUCT(('2. Assisted & Restricted Units'!$E$7:$E$399=\"4\")*('2. Assisted & Restricted Units'!$S$7:$S$399=\"TOD\")*('2. Assisted & Restricted Units'!$T$7:$T$399=\"80% AMI\"))","v":0},{"$f":"SUMPRODUCT(('2. Assisted & Restricted Units'!$E$7:$E$399=\"4\")*('2. Assisted & Restricted Units'!$S$7:$S$399=\"707-E\")*('2. Assisted & Restricted Units'!$T$7:$T$399=\"80% AMI\"))","v":0},{"$f":"SUMPRODUCT(('2. Assisted & Restricted Units'!$E$7:$E$399=\"4\")*('2. Assisted & Restricted Units'!$S$7:$S$399=\"707-N\")*('2. Assisted & Restricted Units'!$T$7:$T$399=\"80% AMI\"))","v":0}]
["4 Bedroom 20% SMI",{"$f":"SUMPRODUCT(('2. Assisted & Restricted Units'!$E$7:$E$399=\"4\")*('2. Assisted & Restricted Units'!$S$7:$S$399=\"CALDAP\")*('2. Assisted & Restricted Units'!$T$7:$T$399=\"20% SMI\"))","v":0},{"$f":"SUMPRODUCT(('2. Assisted & Restricted Units'!$E$7:$E$399=\"4\")*('2. Assisted & Restricted Units'!$S$7:$S$399=\"CHRP-R\")*('2. Assisted & Restricted Units'!$T$7:$T$399=\"20% SMI\"))","v":0},{"$f":"SUMPRODUCT(('2. Assisted & Restricted Units'!$E$7:$E$399=\"4\")*('2. Assisted & Restricted Units'!$S$7:$S$399=\"DDS\")*('2. Assisted & Restricted Units'!$T$7:$T$399=\"20% SMI\"))","v":0},{"$f":"SUMPRODUCT(('2. Assisted & Restricted Units'!$E$7:$E$399=\"4\")*('2. Assisted & Restricted Units'!$S$7:$S$399=\"DPRLP\")*('2. Assisted & Restricted Units'!$T$7:$T$399=\"20% SMI\"))","v":0},{"$f":"SUMPRODUCT(('2. Assisted & Restricted Units'!$E$7:$E$399=\"4\")*('2. Assisted & Restricted Units'!$S$7:$S$399=\"FHDP\")*('2. Assisted & Restricted Units'!$T$7:$T$399=\"20% SMI\"))","v":0},{"$f":"SUMPRODUCT(('2. Assisted & Restricted Units'!$E$7:$E$399=\"4\")*('2. Assisted & Restricted Units'!$S$7:$S$399=\"FMTW\")*('2. Assisted & Restricted Units'!$T$7:$T$399=\"20% SMI\"))","v":0},null,{"$f":"SUMPRODUCT(('2. Assisted & Restricted Units'!$E$7:$E$399=\"4\")*('2. Assisted & Restricted Units'!$S$7:$S$399=\"HOME\")*('2. Assisted & Restricted Units'!$T$7:$T$399=\"20% SMI\"))","v":0},{"$f":"SUMPRODUCT(('2. Assisted & Restricted Units'!$E$7:$E$399=\"4\")*('2. Assisted & Restricted Units'!$S$7:$S$399=\"Market Rate\")*('2. Assisted & Restricted Units'!$T$7:$T$399=\"20% SMI\"))","v":0},{"$f":"SUMPRODUCT(('2. Assisted & Restricted Units'!$E$7:$E$399=\"4\")*('2. Assisted & Restricted Units'!$S$7:$S$399=\"MHP\")*('2. Assisted & Restricted Units'!$T$7:$T$399=\"20% SMI\"))","v":0},{"$f":"SUMPRODUCT(('2. Assisted & Restricted Units'!$E$7:$E$399=\"4\")*('2. Assisted & Restricted Units'!$S$7:$S$399=\"NonAssisted\")*('2. Assisted & Restricted Units'!$T$7:$T$399=\"20% SMI\"))","v":0},{"$f":"SUMPRODUCT(('2. Assisted & Restricted Units'!$E$7:$E$399=\"4\")*('2. Assisted & Restricted Units'!$S$7:$S$399=\"Other Restr\")*('2. Assisted & Restricted Units'!$T$7:$T$399=\"20% SMI\"))","v":0},{"$f":"SUMPRODUCT(('2. Assisted & Restricted Units'!$E$7:$E$399=\"4\")*('2. Assisted & Restricted Units'!$S$7:$S$399=\"RHCP-B\")*('2. Assisted & Restricted Units'!$T$7:$T$399=\"20% SMI\"))","v":0},{"$f":"SUMPRODUCT(('2. Assisted & Restricted Units'!$E$7:$E$399=\"4\")*('2. Assisted & Restricted Units'!$S$7:$S$399=\"SERA\")*('2. Assisted & Restricted Units'!$T$7:$T$399=\"20% SMI\"))","v":0},{"$f":"SUMPRODUCT(('2. Assisted & Restricted Units'!$E$7:$E$399=\"4\")*('2. Assisted & Restricted Units'!$S$7:$S$399=\"SUHRP\")*('2. Assisted & Restricted Units'!$T$7:$T$399=\"20% SMI\"))","v":0},{"$f":"SUMPRODUCT(('2. Assisted & Restricted Units'!$E$7:$E$399=\"4\")*('2. Assisted & Restricted Units'!$S$7:$S$399=\"TOD\")*('2. Assisted & Restricted Units'!$T$7:$T$399=\"20% SMI\"))","v":0},{"$f":"SUMPRODUCT(('2. Assisted & Restricted Units'!$E$7:$E$399=\"4\")*('2. Assisted & Restricted Units'!$S$7:$S$399=\"707-E\")*('2. Assisted & Restricted Units'!$T$7:$T$399=\"20% SMI\"))","v":0},{"$f":"SUMPRODUCT(('2. Assisted & Restricted Units'!$E$7:$E$399=\"4\")*('2. Assisted & Restricted Units'!$S$7:$S$399=\"707-N\")*('2. Assisted & Restricted Units'!$T$7:$T$399=\"20% SMI\"))","v":0}]
["4 Bedroom 25% SMI",{"$f":"SUMPRODUCT(('2. Assisted & Restricted Units'!$E$7:$E$399=\"4\")*('2. Assisted & Restricted Units'!$S$7:$S$399=\"CALDAP\")*('2. Assisted & Restricted Units'!$T$7:$T$399=\"25% SMI\"))","v":0},{"$f":"SUMPRODUCT(('2. Assisted & Restricted Units'!$E$7:$E$399=\"4\")*('2. Assisted & Restricted Units'!$S$7:$S$399=\"CHRP-R\")*('2. Assisted & Restricted Units'!$T$7:$T$399=\"25% SMI\"))","v":0},{"$f":"SUMPRODUCT(('2. Assisted & Restricted Units'!$E$7:$E$399=\"4\")*('2. Assisted & Restricted Units'!$S$7:$S$399=\"DDS\")*('2. Assisted & Restricted Units'!$T$7:$T$399=\"25% SMI\"))","v":0},{"$f":"SUMPRODUCT(('2. Assisted & Restricted Units'!$E$7:$E$399=\"4\")*('2. Assisted & Restricted Units'!$S$7:$S$399=\"DPRLP\")*('2. Assisted & Restricted Units'!$T$7:$T$399=\"25% SMI\"))","v":0},{"$f":"SUMPRODUCT(('2. Assisted & Restricted Units'!$E$7:$E$399=\"4\")*('2. Assisted & Restricted Units'!$S$7:$S$399=\"FHDP\")*('2. Assisted & Restricted Units'!$T$7:$T$399=\"25% SMI\"))","v":0},{"$f":"SUMPRODUCT(('2. Assisted & Restricted Units'!$E$7:$E$399=\"4\")*('2. Assisted & Restricted Units'!$S$7:$S$399=\"FMTW\")*('2. Assisted & Restricted Units'!$T$7:$T$399=\"25% SMI\"))","v":0},null,{"$f":"SUMPRODUCT(('2. Assisted & Restricted Units'!$E$7:$E$399=\"4\")*('2. Assisted & Restricted Units'!$S$7:$S$399=\"HOME\")*('2. Assisted & Restricted Units'!$T$7:$T$399=\"25% SMI\"))","v":0},{"$f":"SUMPRODUCT(('2. Assisted & Restricted Units'!$E$7:$E$399=\"4\")*('2. Assisted & Restricted Units'!$S$7:$S$399=\"Market Rate\")*('2. Assisted & Restricted Units'!$T$7:$T$399=\"25% SMI\"))","v":0},{"$f":"SUMPRODUCT(('2. Assisted & Restricted Units'!$E$7:$E$399=\"4\")*('2. Assisted & Restricted Units'!$S$7:$S$399=\"MHP\")*('2. Assisted & Restricted Units'!$T$7:$T$399=\"25% SMI\"))","v":0},{"$f":"SUMPRODUCT(('2. Assisted & Restricted Units'!$E$7:$E$399=\"4\")*('2. Assisted & Restricted Units'!$S$7:$S$399=\"NonAssisted\")*('2. Assisted & Restricted Units'!$T$7:$T$399=\"25% SMI\"))","v":0},{"$f":"SUMPRODUCT(('2. Assisted & Restricted Units'!$E$7:$E$399=\"4\")*('2. Assisted & Restricted Units'!$S$7:$S$399=\"Other Restr\")*('2. Assisted & Restricted Units'!$T$7:$T$399=\"25% SMI\"))","v":0},{"$f":"SUMPRODUCT(('2. Assisted & Restricted Units'!$E$7:$E$399=\"4\")*('2. Assisted & Restricted Units'!$S$7:$S$399=\"RHCP-B\")*('2. Assisted & Restricted Units'!$T$7:$T$399=\"25% SMI\"))","v":0},{"$f":"SUMPRODUCT(('2. Assisted & Restricted Units'!$E$7:$E$399=\"4\")*('2. Assisted & Restricted Units'!$S$7:$S$399=\"SERA\")*('2. Assisted & Restricted Units'!$T$7:$T$399=\"25% SMI\"))","v":0},{"$f":"SUMPRODUCT(('2. Assisted & Restricted Units'!$E$7:$E$399=\"4\")*('2. Assisted & Restricted Units'!$S$7:$S$399=\"SUHRP\")*('2. Assisted & Restricted Units'!$T$7:$T$399=\"25% SMI\"))","v":0},{"$f":"SUMPRODUCT(('2. Assisted & Restricted Units'!$E$7:$E$399=\"4\")*('2. Assisted & Restricted Units'!$S$7:$S$399=\"TOD\")*('2. Assisted & Restricted Units'!$T$7:$T$399=\"25% SMI\"))","v":0},{"$f":"SUMPRODUCT(('2. Assisted & Restricted Units'!$E$7:$E$399=\"4\")*('2. Assisted & Restricted Units'!$S$7:$S$399=\"707-E\")*('2. Assisted & Restricted Units'!$T$7:$T$399=\"25% SMI\"))","v":0},{"$f":"SUMPRODUCT(('2. Assisted & Restricted Units'!$E$7:$E$399=\"4\")*('2. Assisted & Restricted Units'!$S$7:$S$399=\"707-N\")*('2. Assisted & Restricted Units'!$T$7:$T$399=\"25% SMI\"))","v":0}]
["4 Bedroom 30% SMI",{"$f":"SUMPRODUCT(('2. Assisted & Restricted Units'!$E$7:$E$399=\"4\")*('2. Assisted & Restricted Units'!$S$7:$S$399=\"CALDAP\")*('2. Assisted & Restricted Units'!$T$7:$T$399=\"30% SMI\"))","v":0},{"$f":"SUMPRODUCT(('2. Assisted & Restricted Units'!$E$7:$E$399=\"4\")*('2. Assisted & Restricted Units'!$S$7:$S$399=\"CHRP-R\")*('2. Assisted & Restricted Units'!$T$7:$T$399=\"30% SMI\"))","v":0},{"$f":"SUMPRODUCT(('2. Assisted & Restricted Units'!$E$7:$E$399=\"4\")*('2. Assisted & Restricted Units'!$S$7:$S$399=\"DDS\")*('2. Assisted & Restricted Units'!$T$7:$T$399=\"30% SMI\"))","v":0},{"$f":"SUMPRODUCT(('2. Assisted & Restricted Units'!$E$7:$E$399=\"4\")*('2. Assisted & Restricted Units'!$S$7:$S$399=\"DPRLP\")*('2. Assisted & Restricted Units'!$T$7:$T$399=\"30% SMI\"))","v":0},{"$f":"SUMPRODUCT(('2. Assisted & Restricted Units'!$E$7:$E$399=\"4\")*('2. Assisted & Restricted Units'!$S$7:$S$399=\"FHDP\")*('2. Assisted & Restricted Units'!$T$7:$T$399=\"30% SMI\"))","v":0},{"$f":"SUMPRODUCT(('2. Assisted & Restricted Units'!$E$7:$E$399=\"4\")*('2. Assisted & Restricted Units'!$S$7:$S$399=\"FMTW\")*('2. Assisted & Restricted Units'!$T$7:$T$399=\"30% SMI\"))","v":0},null,{"$f":"SUMPRODUCT(('2. Assisted & Restricted Units'!$E$7:$E$399=\"4\")*('2. Assisted & Restricted Units'!$S$7:$S$399=\"HOME\")*('2. Assisted & Restricted Units'!$T$7:$T$399=\"30% SMI\"))","v":0},{"$f":"SUMPRODUCT(('2. Assisted & Restricted Units'!$E$7:$E$399=\"4\")*('2. Assisted & Restricted Units'!$S$7:$S$399=\"Market Rate\")*('2. Assisted & Restricted Units'!$T$7:$T$399=\"30% SMI\"))","v":0},{"$f":"SUMPRODUCT(('2. Assisted & Restricted Units'!$E$7:$E$399=\"4\")*('2. Assisted & Restricted Units'!$S$7:$S$399=\"MHP\")*('2. Assisted & Restricted Units'!$T$7:$T$399=\"30% SMI\"))","v":0},{"$f":"SUMPRODUCT(('2. Assisted & Restricted Units'!$E$7:$E$399=\"4\")*('2. Assisted & Restricted Units'!$S$7:$S$399=\"NonAssisted\")*('2. Assisted & Restricted Units'!$T$7:$T$399=\"30% SMI\"))","v":0},{"$f":"SUMPRODUCT(('2. Assisted & Restricted Units'!$E$7:$E$399=\"4\")*('2. Assisted & Restricted Units'!$S$7:$S$399=\"Other Restr\")*('2. Assisted & Restricted Units'!$T$7:$T$399=\"30% SMI\"))","v":0},{"$f":"SUMPRODUCT(('2. Assisted & Restricted Units'!$E$7:$E$399=\"4\")*('2. Assisted & Restricted Units'!$S$7:$S$399=\"RHCP-B\")*('2. Assisted & Restricted Units'!$T$7:$T$399=\"30% SMI\"))","v":0},{"$f":"SUMPRODUCT(('2. Assisted & Restricted Units'!$E$7:$E$399=\"4\")*('2. Assisted & Restricted Units'!$S$7:$S$399=\"SERA\")*('2. Assisted & Restricted Units'!$T$7:$T$399=\"30% SMI\"))","v":0},{"$f":"SUMPRODUCT(('2. Assisted & Restricted Units'!$E$7:$E$399=\"4\")*('2. Assisted & Restricted Units'!$S$7:$S$399=\"SUHRP\")*('2. Assisted & Restricted Units'!$T$7:$T$399=\"30% SMI\"))","v":0},{"$f":"SUMPRODUCT(('2. Assisted & Restricted Units'!$E$7:$E$399=\"4\")*('2. Assisted & Restricted Units'!$S$7:$S$399=\"TOD\")*('2. Assisted & Restricted Units'!$T$7:$T$399=\"30% SMI\"))","v":0},{"$f":"SUMPRODUCT(('2. Assisted & Restricted Units'!$E$7:$E$399=\"4\")*('2. Assisted & Restricted Units'!$S$7:$S$399=\"707-E\")*('2. Assisted & Restricted Units'!$T$7:$T$399=\"30% SMI\"))","v":0},{"$f":"SUMPRODUCT(('2. Assisted & Restricted Units'!$E$7:$E$399=\"4\")*('2. Assisted & Restricted Units'!$S$7:$S$399=\"707-N\")*('2. Assisted & Restricted Units'!$T$7:$T$399=\"30% SMI\"))","v":0}]
["4 Bedroom 35% SMI",{"$f":"SUMPRODUCT(('2. Assisted & Restricted Units'!$E$7:$E$399=\"4\")*('2. Assisted & Restricted Units'!$S$7:$S$399=\"CALDAP\")*('2. Assisted & Restricted Units'!$T$7:$T$399=\"35% SMI\"))","v":0},{"$f":"SUMPRODUCT(('2. Assisted & Restricted Units'!$E$7:$E$399=\"4\")*('2. Assisted & Restricted Units'!$S$7:$S$399=\"CHRP-R\")*('2. Assisted & Restricted Units'!$T$7:$T$399=\"35% SMI\"))","v":0},{"$f":"SUMPRODUCT(('2. Assisted & Restricted Units'!$E$7:$E$399=\"4\")*('2. Assisted & Restricted Units'!$S$7:$S$399=\"DDS\")*('2. Assisted & Restricted Units'!$T$7:$T$399=\"35% SMI\"))","v":0},{"$f":"SUMPRODUCT(('2. Assisted & Restricted Units'!$E$7:$E$399=\"4\")*('2. Assisted & Restricted Units'!$S$7:$S$399=\"DPRLP\")*('2. Assisted & Restricted Units'!$T$7:$T$399=\"35% SMI\"))","v":0},{"$f":"SUMPRODUCT(('2. Assisted & Restricted Units'!$E$7:$E$399=\"4\")*('2. Assisted & Restricted Units'!$S$7:$S$399=\"FHDP\")*('2. Assisted & Restricted Units'!$T$7:$T$399=\"35% SMI\"))","v":0},{"$f":"SUMPRODUCT(('2. Assisted & Restricted Units'!$E$7:$E$399=\"4\")*('2. Assisted & Restricted Units'!$S$7:$S$399=\"FMTW\")*('2. Assisted & Restricted Units'!$T$7:$T$399=\"35% SMI\"))","v":0},null,{"$f":"SUMPRODUCT(('2. Assisted & Restricted Units'!$E$7:$E$399=\"4\")*('2. Assisted & Restricted Units'!$S$7:$S$399=\"HOME\")*('2. Assisted & Restricted Units'!$T$7:$T$399=\"35% SMI\"))","v":0},{"$f":"SUMPRODUCT(('2. Assisted & Restricted Units'!$E$7:$E$399=\"4\")*('2. Assisted & Restricted Units'!$S$7:$S$399=\"Market Rate\")*('2. Assisted & Restricted Units'!$T$7:$T$399=\"35% SMI\"))","v":0},{"$f":"SUMPRODUCT(('2. Assisted & Restricted Units'!$E$7:$E$399=\"4\")*('2. Assisted & Restricted Units'!$S$7:$S$399=\"MHP\")*('2. Assisted & Restricted Units'!$T$7:$T$399=\"35% SMI\"))","v":0},{"$f":"SUMPRODUCT(('2. Assisted & Restricted Units'!$E$7:$E$399=\"4\")*('2. Assisted & Restricted Units'!$S$7:$S$399=\"NonAssisted\")*('2. Assisted & Restricted Units'!$T$7:$T$399=\"35% SMI\"))","v":0},{"$f":"SUMPRODUCT(('2. Assisted & Restricted Units'!$E$7:$E$399=\"4\")*('2. Assisted & Restricted Units'!$S$7:$S$399=\"Other Restr\")*('2. Assisted & Restricted Units'!$T$7:$T$399=\"35% SMI\"))","v":0},{"$f":"SUMPRODUCT(('2. Assisted & Restricted Units'!$E$7:$E$399=\"4\")*('2. Assisted & Restricted Units'!$S$7:$S$399=\"RHCP-B\")*('2. Assisted & Restricted Units'!$T$7:$T$399=\"35% SMI\"))","v":0},{"$f":"SUMPRODUCT(('2. Assisted & Restricted Units'!$E$7:$E$399=\"4\")*('2. Assisted & Restricted Units'!$S$7:$S$399=\"SERA\")*('2. Assisted & Restricted Units'!$T$7:$T$399=\"35% SMI\"))","v":0},{"$f":"SUMPRODUCT(('2. Assisted & Restricted Units'!$E$7:$E$399=\"4\")*('2. Assisted & Restricted Units'!$S$7:$S$399=\"SUHRP\")*('2. Assisted & Restricted Units'!$T$7:$T$399=\"35% SMI\"))","v":0},{"$f":"SUMPRODUCT(('2. Assisted & Restricted Units'!$E$7:$E$399=\"4\")*('2. Assisted & Restricted Units'!$S$7:$S$399=\"TOD\")*('2. Assisted & Restricted Units'!$T$7:$T$399=\"35% SMI\"))","v":0},{"$f":"SUMPRODUCT(('2. Assisted & Restricted Units'!$E$7:$E$399=\"4\")*('2. Assisted & Restricted Units'!$S$7:$S$399=\"707-E\")*('2. Assisted & Restricted Units'!$T$7:$T$399=\"35% SMI\"))","v":0},{"$f":"SUMPRODUCT(('2. Assisted & Restricted Units'!$E$7:$E$399=\"4\")*('2. Assisted & Restricted Units'!$S$7:$S$399=\"707-N\")*('2. Assisted & Restricted Units'!$T$7:$T$399=\"35% SMI\"))","v":0}]
["4 Bedroom 40% SMI",{"$f":"SUMPRODUCT(('2. Assisted & Restricted Units'!$E$7:$E$399=\"4\")*('2. Assisted & Restricted Units'!$S$7:$S$399=\"CALDAP\")*('2. Assisted & Restricted Units'!$T$7:$T$399=\"40% SMI\"))","v":0},{"$f":"SUMPRODUCT(('2. Assisted & Restricted Units'!$E$7:$E$399=\"4\")*('2. Assisted & Restricted Units'!$S$7:$S$399=\"CHRP-R\")*('2. Assisted & Restricted Units'!$T$7:$T$399=\"40% SMI\"))","v":0},{"$f":"SUMPRODUCT(('2. Assisted & Restricted Units'!$E$7:$E$399=\"4\")*('2. Assisted & Restricted Units'!$S$7:$S$399=\"DDS\")*('2. Assisted & Restricted Units'!$T$7:$T$399=\"40% SMI\"))","v":0},{"$f":"SUMPRODUCT(('2. Assisted & Restricted Units'!$E$7:$E$399=\"4\")*('2. Assisted & Restricted Units'!$S$7:$S$399=\"DPRLP\")*('2. Assisted & Restricted Units'!$T$7:$T$399=\"40% SMI\"))","v":0},{"$f":"SUMPRODUCT(('2. Assisted & Restricted Units'!$E$7:$E$399=\"4\")*('2. Assisted & Restricted Units'!$S$7:$S$399=\"FHDP\")*('2. Assisted & Restricted Units'!$T$7:$T$399=\"40% SMI\"))","v":0},{"$f":"SUMPRODUCT(('2. Assisted & Restricted Units'!$E$7:$E$399=\"4\")*('2. Assisted & Restricted Units'!$S$7:$S$399=\"FMTW\")*('2. Assisted & Restricted Units'!$T$7:$T$399=\"40% SMI\"))","v":0},null,{"$f":"SUMPRODUCT(('2. Assisted & Restricted Units'!$E$7:$E$399=\"4\")*('2. Assisted & Restricted Units'!$S$7:$S$399=\"HOME\")*('2. Assisted & Restricted Units'!$T$7:$T$399=\"40% SMI\"))","v":0},{"$f":"SUMPRODUCT(('2. Assisted & Restricted Units'!$E$7:$E$399=\"4\")*('2. Assisted & Restricted Units'!$S$7:$S$399=\"Market Rate\")*('2. Assisted & Restricted Units'!$T$7:$T$399=\"40% SMI\"))","v":0},{"$f":"SUMPRODUCT(('2. Assisted & Restricted Units'!$E$7:$E$399=\"4\")*('2. Assisted & Restricted Units'!$S$7:$S$399=\"MHP\")*('2. Assisted & Restricted Units'!$T$7:$T$399=\"40% SMI\"))","v":0},{"$f":"SUMPRODUCT(('2. Assisted & Restricted Units'!$E$7:$E$399=\"4\")*('2. Assisted & Restricted Units'!$S$7:$S$399=\"NonAssisted\")*('2. Assisted & Restricted Units'!$T$7:$T$399=\"40% SMI\"))","v":0},{"$f":"SUMPRODUCT(('2. Assisted & Restricted Units'!$E$7:$E$399=\"4\")*('2. Assisted & Restricted Units'!$S$7:$S$399=\"Other Restr\")*('2. Assisted & Restricted Units'!$T$7:$T$399=\"40% SMI\"))","v":0},{"$f":"SUMPRODUCT(('2. Assisted & Restricted Units'!$E$7:$E$399=\"4\")*('2. Assisted & Restricted Units'!$S$7:$S$399=\"RHCP-B\")*('2. Assisted & Restricted Units'!$T$7:$T$399=\"40% SMI\"))","v":0},{"$f":"SUMPRODUCT(('2. Assisted & Restricted Units'!$E$7:$E$399=\"4\")*('2. Assisted & Restricted Units'!$S$7:$S$399=\"SERA\")*('2. Assisted & Restricted Units'!$T$7:$T$399=\"40% SMI\"))","v":0},{"$f":"SUMPRODUCT(('2. Assisted & Restricted Units'!$E$7:$E$399=\"4\")*('2. Assisted & Restricted Units'!$S$7:$S$399=\"SUHRP\")*('2. Assisted & Restricted Units'!$T$7:$T$399=\"40% SMI\"))","v":0},{"$f":"SUMPRODUCT(('2. Assisted & Restricted Units'!$E$7:$E$399=\"4\")*('2. Assisted & Restricted Units'!$S$7:$S$399=\"TOD\")*('2. Assisted & Restricted Units'!$T$7:$T$399=\"40% SMI\"))","v":0},{"$f":"SUMPRODUCT(('2. Assisted & Restricted Units'!$E$7:$E$399=\"4\")*('2. Assisted & Restricted Units'!$S$7:$S$399=\"707-E\")*('2. Assisted & Restricted Units'!$T$7:$T$399=\"40% SMI\"))","v":0},{"$f":"SUMPRODUCT(('2. Assisted & Restricted Units'!$E$7:$E$399=\"4\")*('2. Assisted & Restricted Units'!$S$7:$S$399=\"707-N\")*('2. Assisted & Restricted Units'!$T$7:$T$399=\"40% SMI\"))","v":0}]
["4 Bedroom 45% SMI",{"$f":"SUMPRODUCT(('2. Assisted & Restricted Units'!$E$7:$E$399=\"4\")*('2. Assisted & Restricted Units'!$S$7:$S$399=\"CALDAP\")*('2. Assisted & Restricted Units'!$T$7:$T$399=\"45% SMI\"))","v":0},{"$f":"SUMPRODUCT(('2. Assisted & Restricted Units'!$E$7:$E$399=\"4\")*('2. Assisted & Restricted Units'!$S$7:$S$399=\"CHRP-R\")*('2. Assisted & Restricted Units'!$T$7:$T$399=\"45% SMI\"))","v":0},{"$f":"SUMPRODUCT(('2. Assisted & Restricted Units'!$E$7:$E$399=\"4\")*('2. Assisted & Restricted Units'!$S$7:$S$399=\"DDS\")*('2. Assisted & Restricted Units'!$T$7:$T$399=\"45% SMI\"))","v":0},{"$f":"SUMPRODUCT(('2. Assisted & Restricted Units'!$E$7:$E$399=\"4\")*('2. Assisted & Restricted Units'!$S$7:$S$399=\"DPRLP\")*('2. Assisted & Restricted Units'!$T$7:$T$399=\"45% SMI\"))","v":0},{"$f":"SUMPRODUCT(('2. Assisted & Restricted Units'!$E$7:$E$399=\"4\")*('2. Assisted & Restricted Units'!$S$7:$S$399=\"FHDP\")*('2. Assisted & Restricted Units'!$T$7:$T$399=\"45% SMI\"))","v":0},{"$f":"SUMPRODUCT(('2. Assisted & Restricted Units'!$E$7:$E$399=\"4\")*('2. Assisted & Restricted Units'!$S$7:$S$399=\"FMTW\")*('2. Assisted & Restricted Units'!$T$7:$T$399=\"45% SMI\"))","v":0},null,{"$f":"SUMPRODUCT(('2. Assisted & Restricted Units'!$E$7:$E$399=\"4\")*('2. Assisted & Restricted Units'!$S$7:$S$399=\"HOME\")*('2. Assisted & Restricted Units'!$T$7:$T$399=\"45% SMI\"))","v":0},{"$f":"SUMPRODUCT(('2. Assisted & Restricted Units'!$E$7:$E$399=\"4\")*('2. Assisted & Restricted Units'!$S$7:$S$399=\"Market Rate\")*('2. Assisted & Restricted Units'!$T$7:$T$399=\"45% SMI\"))","v":0},{"$f":"SUMPRODUCT(('2. Assisted & Restricted Units'!$E$7:$E$399=\"4\")*('2. Assisted & Restricted Units'!$S$7:$S$399=\"MHP\")*('2. Assisted & Restricted Units'!$T$7:$T$399=\"45% SMI\"))","v":0},{"$f":"SUMPRODUCT(('2. Assisted & Restricted Units'!$E$7:$E$399=\"4\")*('2. Assisted & Restricted Units'!$S$7:$S$399=\"NonAssisted\")*('2. Assisted & Restricted Units'!$T$7:$T$399=\"45% SMI\"))","v":0},{"$f":"SUMPRODUCT(('2. Assisted & Restricted Units'!$E$7:$E$399=\"4\")*('2. Assisted & Restricted Units'!$S$7:$S$399=\"Other Restr\")*('2. Assisted & Restricted Units'!$T$7:$T$399=\"45% SMI\"))","v":0},{"$f":"SUMPRODUCT(('2. Assisted & Restricted Units'!$E$7:$E$399=\"4\")*('2. Assisted & Restricted Units'!$S$7:$S$399=\"RHCP-B\")*('2. Assisted & Restricted Units'!$T$7:$T$399=\"45% SMI\"))","v":0},{"$f":"SUMPRODUCT(('2. Assisted & Restricted Units'!$E$7:$E$399=\"4\")*('2. Assisted & Restricted Units'!$S$7:$S$399=\"SERA\")*('2. Assisted & Restricted Units'!$T$7:$T$399=\"45% SMI\"))","v":0},{"$f":"SUMPRODUCT(('2. Assisted & Restricted Units'!$E$7:$E$399=\"4\")*('2. Assisted & Restricted Units'!$S$7:$S$399=\"SUHRP\")*('2. Assisted & Restricted Units'!$T$7:$T$399=\"45% SMI\"))","v":0},{"$f":"SUMPRODUCT(('2. Assisted & Restricted Units'!$E$7:$E$399=\"4\")*('2. Assisted & Restricted Units'!$S$7:$S$399=\"TOD\")*('2. Assisted & Restricted Units'!$T$7:$T$399=\"45% SMI\"))","v":0},{"$f":"SUMPRODUCT(('2. Assisted & Restricted Units'!$E$7:$E$399=\"4\")*('2. Assisted & Restricted Units'!$S$7:$S$399=\"707-E\")*('2. Assisted & Restricted Units'!$T$7:$T$399=\"45% SMI\"))","v":0},{"$f":"SUMPRODUCT(('2. Assisted & Restricted Units'!$E$7:$E$399=\"4\")*('2. Assisted & Restricted Units'!$S$7:$S$399=\"707-N\")*('2. Assisted & Restricted Units'!$T$7:$T$399=\"45% SMI\"))","v":0}]
["4 Bedroom 50% SMI",{"$f":"SUMPRODUCT(('2. Assisted & Restricted Units'!$E$7:$E$399=\"4\")*('2. Assisted & Restricted Units'!$S$7:$S$399=\"CALDAP\")*('2. Assisted & Restricted Units'!$T$7:$T$399=\"50% SMI\"))","v":0},{"$f":"SUMPRODUCT(('2. Assisted & Restricted Units'!$E$7:$E$399=\"4\")*('2. Assisted & Restricted Units'!$S$7:$S$399=\"CHRP-R\")*('2. Assisted & Restricted Units'!$T$7:$T$399=\"50% SMI\"))","v":0},{"$f":"SUMPRODUCT(('2. Assisted & Restricted Units'!$E$7:$E$399=\"4\")*('2. Assisted & Restricted Units'!$S$7:$S$399=\"DDS\")*('2. Assisted & Restricted Units'!$T$7:$T$399=\"50% SMI\"))","v":0},{"$f":"SUMPRODUCT(('2. Assisted & Restricted Units'!$E$7:$E$399=\"4\")*('2. Assisted & Restricted Units'!$S$7:$S$399=\"DPRLP\")*('2. Assisted & Restricted Units'!$T$7:$T$399=\"50% SMI\"))","v":0},{"$f":"SUMPRODUCT(('2. Assisted & Restricted Units'!$E$7:$E$399=\"4\")*('2. Assisted & Restricted Units'!$S$7:$S$399=\"FHDP\")*('2. Assisted & Restricted Units'!$T$7:$T$399=\"50% SMI\"))","v":0},{"$f":"SUMPRODUCT(('2. Assisted & Restricted Units'!$E$7:$E$399=\"4\")*('2. Assisted & Restricted Units'!$S$7:$S$399=\"FMTW\")*('2. Assisted & Restricted Units'!$T$7:$T$399=\"50% SMI\"))","v":0},null,{"$f":"SUMPRODUCT(('2. Assisted & Restricted Units'!$E$7:$E$399=\"4\")*('2. Assisted & Restricted Units'!$S$7:$S$399=\"HOME\")*('2. Assisted & Restricted Units'!$T$7:$T$399=\"50% SMI\"))","v":0},{"$f":"SUMPRODUCT(('2. Assisted & Restricted Units'!$E$7:$E$399=\"4\")*('2. Assisted & Restricted Units'!$S$7:$S$399=\"Market Rate\")*('2. Assisted & Restricted Units'!$T$7:$T$399=\"50% SMI\"))","v":0},{"$f":"SUMPRODUCT(('2. Assisted & Restricted Units'!$E$7:$E$399=\"4\")*('2. Assisted & Restricted Units'!$S$7:$S$399=\"MHP\")*('2. Assisted & Restricted Units'!$T$7:$T$399=\"50% SMI\"))","v":0},{"$f":"SUMPRODUCT(('2. Assisted & Restricted Units'!$E$7:$E$399=\"4\")*('2. Assisted & Restricted Units'!$S$7:$S$399=\"NonAssisted\")*('2. Assisted & Restricted Units'!$T$7:$T$399=\"50% SMI\"))","v":0},{"$f":"SUMPRODUCT(('2. Assisted & Restricted Units'!$E$7:$E$399=\"4\")*('2. Assisted & Restricted Units'!$S$7:$S$399=\"Other Restr\")*('2. Assisted & Restricted Units'!$T$7:$T$399=\"50% SMI\"))","v":0},{"$f":"SUMPRODUCT(('2. Assisted & Restricted Units'!$E$7:$E$399=\"4\")*('2. Assisted & Restricted Units'!$S$7:$S$399=\"RHCP-B\")*('2. Assisted & Restricted Units'!$T$7:$T$399=\"50% SMI\"))","v":0},{"$f":"SUMPRODUCT(('2. Assisted & Restricted Units'!$E$7:$E$399=\"4\")*('2. Assisted & Restricted Units'!$S$7:$S$399=\"SERA\")*('2. Assisted & Restricted Units'!$T$7:$T$399=\"50% SMI\"))","v":0},{"$f":"SUMPRODUCT(('2. Assisted & Restricted Units'!$E$7:$E$399=\"4\")*('2. Assisted & Restricted Units'!$S$7:$S$399=\"SUHRP\")*('2. Assisted & Restricted Units'!$T$7:$T$399=\"50% SMI\"))","v":0},{"$f":"SUMPRODUCT(('2. Assisted & Restricted Units'!$E$7:$E$399=\"4\")*('2. Assisted & Restricted Units'!$S$7:$S$399=\"TOD\")*('2. Assisted & Restricted Units'!$T$7:$T$399=\"50% SMI\"))","v":0},{"$f":"SUMPRODUCT(('2. Assisted & Restricted Units'!$E$7:$E$399=\"4\")*('2. Assisted & Restricted Units'!$S$7:$S$399=\"707-E\")*('2. Assisted & Restricted Units'!$T$7:$T$399=\"50% SMI\"))","v":0},{"$f":"SUMPRODUCT(('2. Assisted & Restricted Units'!$E$7:$E$399=\"4\")*('2. Assisted & Restricted Units'!$S$7:$S$399=\"707-N\")*('2. Assisted & Restricted Units'!$T$7:$T$399=\"50% SMI\"))","v":0}]
["4 Bedroom 100% SMI",{"$f":"SUMPRODUCT(('2. Assisted & Restricted Units'!$E$7:$E$399=\"4\")*('2. Assisted & Restricted Units'!$S$7:$S$399=\"CALDAP\")*('2. Assisted & Restricted Units'!$T$7:$T$399=\"100% SMI\"))","v":0},{"$f":"SUMPRODUCT(('2. Assisted & Restricted Units'!$E$7:$E$399=\"4\")*('2. Assisted & Restricted Units'!$S$7:$S$399=\"CHRP-R\")*('2. Assisted & Restricted Units'!$T$7:$T$399=\"100% SMI\"))","v":0},{"$f":"SUMPRODUCT(('2. Assisted & Restricted Units'!$E$7:$E$399=\"4\")*('2. Assisted & Restricted Units'!$S$7:$S$399=\"DDS\")*('2. Assisted & Restricted Units'!$T$7:$T$399=\"100% SMI\"))","v":0},{"$f":"SUMPRODUCT(('2. Assisted & Restricted Units'!$E$7:$E$399=\"4\")*('2. Assisted & Restricted Units'!$S$7:$S$399=\"DPRLP\")*('2. Assisted & Restricted Units'!$T$7:$T$399=\"100% SMI\"))","v":0},{"$f":"SUMPRODUCT(('2. Assisted & Restricted Units'!$E$7:$E$399=\"4\")*('2. Assisted & Restricted Units'!$S$7:$S$399=\"FHDP\")*('2. Assisted & Restricted Units'!$T$7:$T$399=\"100% SMI\"))","v":0},{"$f":"SUMPRODUCT(('2. Assisted & Restricted Units'!$E$7:$E$399=\"4\")*('2. Assisted & Restricted Units'!$S$7:$S$399=\"FMTW\")*('2. Assisted & Restricted Units'!$T$7:$T$399=\"100% SMI\"))","v":0},null,{"$f":"SUMPRODUCT(('2. Assisted & Restricted Units'!$E$7:$E$399=\"4\")*('2. Assisted & Restricted Units'!$S$7:$S$399=\"HOME\")*('2. Assisted & Restricted Units'!$T$7:$T$399=\"100% SMI\"))","v":0},{"$f":"SUMPRODUCT(('2. Assisted & Restricted Units'!$E$7:$E$399=\"4\")*('2. Assisted & Restricted Units'!$S$7:$S$399=\"Market Rate\")*('2. Assisted & Restricted Units'!$T$7:$T$399=\"100% SMI\"))","v":0},{"$f":"SUMPRODUCT(('2. Assisted & Restricted Units'!$E$7:$E$399=\"4\")*('2. Assisted & Restricted Units'!$S$7:$S$399=\"MHP\")*('2. Assisted & Restricted Units'!$T$7:$T$399=\"100% SMI\"))","v":0},{"$f":"SUMPRODUCT(('2. Assisted & Restricted Units'!$E$7:$E$399=\"4\")*('2. Assisted & Restricted Units'!$S$7:$S$399=\"NonAssisted\")*('2. Assisted & Restricted Units'!$T$7:$T$399=\"100% SMI\"))","v":0},{"$f":"SUMPRODUCT(('2. Assisted & Restricted Units'!$E$7:$E$399=\"4\")*('2. Assisted & Restricted Units'!$S$7:$S$399=\"Other Restr\")*('2. Assisted & Restricted Units'!$T$7:$T$399=\"100% SMI\"))","v":0},{"$f":"SUMPRODUCT(('2. Assisted & Restricted Units'!$E$7:$E$399=\"4\")*('2. Assisted & Restricted Units'!$S$7:$S$399=\"RHCP-B\")*('2. Assisted & Restricted Units'!$T$7:$T$399=\"100% SMI\"))","v":0},{"$f":"SUMPRODUCT(('2. Assisted & Restricted Units'!$E$7:$E$399=\"4\")*('2. Assisted & Restricted Units'!$S$7:$S$399=\"SERA\")*('2. Assisted & Restricted Units'!$T$7:$T$399=\"100% SMI\"))","v":0},{"$f":"SUMPRODUCT(('2. Assisted & Restricted Units'!$E$7:$E$399=\"4\")*('2. Assisted & Restricted Units'!$S$7:$S$399=\"SUHRP\")*('2. Assisted & Restricted Units'!$T$7:$T$399=\"100% SMI\"))","v":0},{"$f":"SUMPRODUCT(('2. Assisted & Restricted Units'!$E$7:$E$399=\"4\")*('2. Assisted & Restricted Units'!$S$7:$S$399=\"TOD\")*('2. Assisted & Restricted Units'!$T$7:$T$399=\"100% SMI\"))","v":0},{"$f":"SUMPRODUCT(('2. Assisted & Restricted Units'!$E$7:$E$399=\"4\")*('2. Assisted & Restricted Units'!$S$7:$S$399=\"707-E\")*('2. Assisted & Restricted Units'!$T$7:$T$399=\"100% SMI\"))","v":0},{"$f":"SUMPRODUCT(('2. Assisted & Restricted Units'!$E$7:$E$399=\"4\")*('2. Assisted & Restricted Units'!$S$7:$S$399=\"707-N\")*('2. Assisted & Restricted Units'!$T$7:$T$399=\"100% SMI\"))","v":0}]
["4 Bedroom VLI HOME",{"$f":"SUMPRODUCT(('2. Assisted & Restricted Units'!$E$7:$E$399=\"4\")*('2. Assisted & Restricted Units'!$S$7:$S$399=\"CALDAP\")*('2. Assisted & Restricted Units'!$T$7:$T$399=\"VLI HOME\"))","v":0},{"$f":"SUMPRODUCT(('2. Assisted & Restricted Units'!$E$7:$E$399=\"4\")*('2. Assisted & Restricted Units'!$S$7:$S$399=\"CHRP-R\")*('2. Assisted & Restricted Units'!$T$7:$T$399=\"VLI HOME\"))","v":0},{"$f":"SUMPRODUCT(('2. Assisted & Restricted Units'!$E$7:$E$399=\"4\")*('2. Assisted & Restricted Units'!$S$7:$S$399=\"DDS\")*('2. Assisted & Restricted Units'!$T$7:$T$399=\"VLI HOME\"))","v":0},{"$f":"SUMPRODUCT(('2. Assisted & Restricted Units'!$E$7:$E$399=\"4\")*('2. Assisted & Restricted Units'!$S$7:$S$399=\"DPRLP\")*('2. Assisted & Restricted Units'!$T$7:$T$399=\"VLI HOME\"))","v":0},{"$f":"SUMPRODUCT(('2. Assisted & Restricted Units'!$E$7:$E$399=\"4\")*('2. Assisted & Restricted Units'!$S$7:$S$399=\"FHDP\")*('2. Assisted & Restricted Units'!$T$7:$T$399=\"VLI HOME\"))","v":0},{"$f":"SUMPRODUCT(('2. Assisted & Restricted Units'!$E$7:$E$399=\"4\")*('2. Assisted & Restricted Units'!$S$7:$S$399=\"FMTW\")*('2. Assisted & Restricted Units'!$T$7:$T$399=\"VLI HOME\"))","v":0},null,{"$f":"SUMPRODUCT(('2. Assisted & Restricted Units'!$E$7:$E$399=\"4\")*('2. Assisted & Restricted Units'!$S$7:$S$399=\"HOME\")*('2. Assisted & Restricted Units'!$T$7:$T$399=\"VLI HOME\"))","v":0},{"$f":"SUMPRODUCT(('2. Assisted & Restricted Units'!$E$7:$E$399=\"4\")*('2. Assisted & Restricted Units'!$S$7:$S$399=\"Market Rate\")*('2. Assisted & Restricted Units'!$T$7:$T$399=\"VLI HOME\"))","v":0},{"$f":"SUMPRODUCT(('2. Assisted & Restricted Units'!$E$7:$E$399=\"4\")*('2. Assisted & Restricted Units'!$S$7:$S$399=\"MHP\")*('2. Assisted & Restricted Units'!$T$7:$T$399=\"VLI HOME\"))","v":0},{"$f":"SUMPRODUCT(('2. Assisted & Restricted Units'!$E$7:$E$399=\"4\")*('2. Assisted & Restricted Units'!$S$7:$S$399=\"NonAssisted\")*('2. Assisted & Restricted Units'!$T$7:$T$399=\"VLI HOME\"))","v":0},{"$f":"SUMPRODUCT(('2. Assisted & Restricted Units'!$E$7:$E$399=\"4\")*('2. Assisted & Restricted Units'!$S$7:$S$399=\"Other Restr\")*('2. Assisted & Restricted Units'!$T$7:$T$399=\"VLI HOME\"))","v":0},{"$f":"SUMPRODUCT(('2. Assisted & Restricted Units'!$E$7:$E$399=\"4\")*('2. Assisted & Restricted Units'!$S$7:$S$399=\"RHCP-B\")*('2. Assisted & Restricted Units'!$T$7:$T$399=\"VLI HOME\"))","v":0},{"$f":"SUMPRODUCT(('2. Assisted & Restricted Units'!$E$7:$E$399=\"4\")*('2. Assisted & Restricted Units'!$S$7:$S$399=\"SERA\")*('2. Assisted & Restricted Units'!$T$7:$T$399=\"VLI HOME\"))","v":0},{"$f":"SUMPRODUCT(('2. Assisted & Restricted Units'!$E$7:$E$399=\"4\")*('2. Assisted & Restricted Units'!$S$7:$S$399=\"SUHRP\")*('2. Assisted & Restricted Units'!$T$7:$T$399=\"VLI HOME\"))","v":0},{"$f":"SUMPRODUCT(('2. Assisted & Restricted Units'!$E$7:$E$399=\"4\")*('2. Assisted & Restricted Units'!$S$7:$S$399=\"TOD\")*('2. Assisted & Restricted Units'!$T$7:$T$399=\"VLI HOME\"))","v":0},{"$f":"SUMPRODUCT(('2. Assisted & Restricted Units'!$E$7:$E$399=\"4\")*('2. Assisted & Restricted Units'!$S$7:$S$399=\"707-E\")*('2. Assisted & Restricted Units'!$T$7:$T$399=\"VLI HOME\"))","v":0},{"$f":"SUMPRODUCT(('2. Assisted & Restricted Units'!$E$7:$E$399=\"4\")*('2. Assisted & Restricted Units'!$S$7:$S$399=\"707-N\")*('2. Assisted & Restricted Units'!$T$7:$T$399=\"VLI HOME\"))","v":0}]
["4 Bedroom LI HOME",{"$f":"SUMPRODUCT(('2. Assisted & Restricted Units'!$E$7:$E$399=\"4\")*('2. Assisted & Restricted Units'!$S$7:$S$399=\"CALDAP\")*('2. Assisted & Restricted Units'!$T$7:$T$399=\"LI HOME\"))","v":0},{"$f":"SUMPRODUCT(('2. Assisted & Restricted Units'!$E$7:$E$399=\"4\")*('2. Assisted & Restricted Units'!$S$7:$S$399=\"CHRP-R\")*('2. Assisted & Restricted Units'!$T$7:$T$399=\"LI HOME\"))","v":0},{"$f":"SUMPRODUCT(('2. Assisted & Restricted Units'!$E$7:$E$399=\"4\")*('2. Assisted & Restricted Units'!$S$7:$S$399=\"DDS\")*('2. Assisted & Restricted Units'!$T$7:$T$399=\"LI HOME\"))","v":0},{"$f":"SUMPRODUCT(('2. Assisted & Restricted Units'!$E$7:$E$399=\"4\")*('2. Assisted & Restricted Units'!$S$7:$S$399=\"DPRLP\")*('2. Assisted & Restricted Units'!$T$7:$T$399=\"LI HOME\"))","v":0},{"$f":"SUMPRODUCT(('2. Assisted & Restricted Units'!$E$7:$E$399=\"4\")*('2. Assisted & Restricted Units'!$S$7:$S$399=\"FHDP\")*('2. Assisted & Restricted Units'!$T$7:$T$399=\"LI HOME\"))","v":0},{"$f":"SUMPRODUCT(('2. Assisted & Restricted Units'!$E$7:$E$399=\"4\")*('2. Assisted & Restricted Units'!$S$7:$S$399=\"FMTW\")*('2. Assisted & Restricted Units'!$T$7:$T$399=\"LI HOME\"))","v":0},null,{"$f":"SUMPRODUCT(('2. Assisted & Restricted Units'!$E$7:$E$399=\"4\")*('2. Assisted & Restricted Units'!$S$7:$S$399=\"HOME\")*('2. Assisted & Restricted Units'!$T$7:$T$399=\"LI HOME\"))","v":0},{"$f":"SUMPRODUCT(('2. Assisted & Restricted Units'!$E$7:$E$399=\"4\")*('2. Assisted & Restricted Units'!$S$7:$S$399=\"Market Rate\")*('2. Assisted & Restricted Units'!$T$7:$T$399=\"LI HOME\"))","v":0},{"$f":"SUMPRODUCT(('2. Assisted & Restricted Units'!$E$7:$E$399=\"4\")*('2. Assisted & Restricted Units'!$S$7:$S$399=\"MHP\")*('2. Assisted & Restricted Units'!$T$7:$T$399=\"LI HOME\"))","v":0},{"$f":"SUMPRODUCT(('2. Assisted & Restricted Units'!$E$7:$E$399=\"4\")*('2. Assisted & Restricted Units'!$S$7:$S$399=\"NonAssisted\")*('2. Assisted & Restricted Units'!$T$7:$T$399=\"LI HOME\"))","v":0},{"$f":"SUMPRODUCT(('2. Assisted & Restricted Units'!$E$7:$E$399=\"4\")*('2. Assisted & Restricted Units'!$S$7:$S$399=\"Other Restr\")*('2. Assisted & Restricted Units'!$T$7:$T$399=\"LI HOME\"))","v":0},{"$f":"SUMPRODUCT(('2. Assisted & Restricted Units'!$E$7:$E$399=\"4\")*('2. Assisted & Restricted Units'!$S$7:$S$399=\"RHCP-B\")*('2. Assisted & Restricted Units'!$T$7:$T$399=\"LI HOME\"))","v":0},{"$f":"SUMPRODUCT(('2. Assisted & Restricted Units'!$E$7:$E$399=\"4\")*('2. Assisted & Restricted Units'!$S$7:$S$399=\"SERA\")*('2. Assisted & Restricted Units'!$T$7:$T$399=\"LI HOME\"))","v":0},{"$f":"SUMPRODUCT(('2. Assisted & Restricted Units'!$E$7:$E$399=\"4\")*('2. Assisted & Restricted Units'!$S$7:$S$399=\"SUHRP\")*('2. Assisted & Restricted Units'!$T$7:$T$399=\"LI HOME\"))","v":0},{"$f":"SUMPRODUCT(('2. Assisted & Restricted Units'!$E$7:$E$399=\"4\")*('2. Assisted & Restricted Units'!$S$7:$S$399=\"TOD\")*('2. Assisted & Restricted Units'!$T$7:$T$399=\"LI HOME\"))","v":0},{"$f":"SUMPRODUCT(('2. Assisted & Restricted Units'!$E$7:$E$399=\"4\")*('2. Assisted & Restricted Units'!$S$7:$S$399=\"707-E\")*('2. Assisted & Restricted Units'!$T$7:$T$399=\"LI HOME\"))","v":0},{"$f":"SUMPRODUCT(('2. Assisted & Restricted Units'!$E$7:$E$399=\"4\")*('2. Assisted & Restricted Units'!$S$7:$S$399=\"707-N\")*('2. Assisted & Restricted Units'!$T$7:$T$399=\"LI HOME\"))","v":0}]
["4 Bedroom VLI State",{"$f":"SUMPRODUCT(('2. Assisted & Restricted Units'!$E$7:$E$399=\"4\")*('2. Assisted & Restricted Units'!$S$7:$S$399=\"CALDAP\")*('2. Assisted & Restricted Units'!$T$7:$T$399=\"VLI State\"))","v":0},{"$f":"SUMPRODUCT(('2. Assisted & Restricted Units'!$E$7:$E$399=\"4\")*('2. Assisted & Restricted Units'!$S$7:$S$399=\"CHRP-R\")*('2. Assisted & Restricted Units'!$T$7:$T$399=\"VLI State\"))","v":0},{"$f":"SUMPRODUCT(('2. Assisted & Restricted Units'!$E$7:$E$399=\"4\")*('2. Assisted & Restricted Units'!$S$7:$S$399=\"DDS\")*('2. Assisted & Restricted Units'!$T$7:$T$399=\"VLI State\"))","v":0},{"$f":"SUMPRODUCT(('2. Assisted & Restricted Units'!$E$7:$E$399=\"4\")*('2. Assisted & Restricted Units'!$S$7:$S$399=\"DPRLP\")*('2. Assisted & Restricted Units'!$T$7:$T$399=\"VLI State\"))","v":0},{"$f":"SUMPRODUCT(('2. Assisted & Restricted Units'!$E$7:$E$399=\"4\")*('2. Assisted & Restricted Units'!$S$7:$S$399=\"FHDP\")*('2. Assisted & Restricted Units'!$T$7:$T$399=\"VLI State\"))","v":0},{"$f":"SUMPRODUCT(('2. Assisted & Restricted Units'!$E$7:$E$399=\"4\")*('2. Assisted & Restricted Units'!$S$7:$S$399=\"FMTW\")*('2. Assisted & Restricted Units'!$T$7:$T$399=\"VLI State\"))","v":0},null,{"$f":"SUMPRODUCT(('2. Assisted & Restricted Units'!$E$7:$E$399=\"4\")*('2. Assisted & Restricted Units'!$S$7:$S$399=\"HOME\")*('2. Assisted & Restricted Units'!$T$7:$T$399=\"VLI State\"))","v":0},{"$f":"SUMPRODUCT(('2. Assisted & Restricted Units'!$E$7:$E$399=\"4\")*('2. Assisted & Restricted Units'!$S$7:$S$399=\"Market Rate\")*('2. Assisted & Restricted Units'!$T$7:$T$399=\"VLI State\"))","v":0},{"$f":"SUMPRODUCT(('2. Assisted & Restricted Units'!$E$7:$E$399=\"4\")*('2. Assisted & Restricted Units'!$S$7:$S$399=\"MHP\")*('2. Assisted & Restricted Units'!$T$7:$T$399=\"VLI State\"))","v":0},{"$f":"SUMPRODUCT(('2. Assisted & Restricted Units'!$E$7:$E$399=\"4\")*('2. Assisted & Restricted Units'!$S$7:$S$399=\"NonAssisted\")*('2. Assisted & Restricted Units'!$T$7:$T$399=\"VLI State\"))","v":0},{"$f":"SUMPRODUCT(('2. Assisted & Restricted Units'!$E$7:$E$399=\"4\")*('2. Assisted & Restricted Units'!$S$7:$S$399=\"Other Restr\")*('2. Assisted & Restricted Units'!$T$7:$T$399=\"VLI State\"))","v":0},{"$f":"SUMPRODUCT(('2. Assisted & Restricted Units'!$E$7:$E$399=\"4\")*('2. Assisted & Restricted Units'!$S$7:$S$399=\"RHCP-B\")*('2. Assisted & Restricted Units'!$T$7:$T$399=\"VLI State\"))","v":0},{"$f":"SUMPRODUCT(('2. Assisted & Restricted Units'!$E$7:$E$399=\"4\")*('2. Assisted & Restricted Units'!$S$7:$S$399=\"SERA\")*('2. Assisted & Restricted Units'!$T$7:$T$399=\"VLI State\"))","v":0},{"$f":"SUMPRODUCT(('2. Assisted & Restricted Units'!$E$7:$E$399=\"4\")*('2. Assisted & Restricted Units'!$S$7:$S$399=\"SUHRP\")*('2. Assisted & Restricted Units'!$T$7:$T$399=\"VLI State\"))","v":0},{"$f":"SUMPRODUCT(('2. Assisted & Restricted Units'!$E$7:$E$399=\"4\")*('2. Assisted & Restricted Units'!$S$7:$S$399=\"TOD\")*('2. Assisted & Restricted Units'!$T$7:$T$399=\"VLI State\"))","v":0},{"$f":"SUMPRODUCT(('2. Assisted & Restricted Units'!$E$7:$E$399=\"4\")*('2. Assisted & Restricted Units'!$S$7:$S$399=\"707-E\")*('2. Assisted & Restricted Units'!$T$7:$T$399=\"VLI State\"))","v":0},{"$f":"SUMPRODUCT(('2. Assisted & Restricted Units'!$E$7:$E$399=\"4\")*('2. Assisted & Restricted Units'!$S$7:$S$399=\"707-N\")*('2. Assisted & Restricted Units'!$T$7:$T$399=\"VLI State\"))","v":0}]
["4 Bedroom LI State",{"$f":"SUMPRODUCT(('2. Assisted & Restricted Units'!$E$7:$E$399=\"4\")*('2. Assisted & Restricted Units'!$S$7:$S$399=\"CALDAP\")*('2. Assisted & Restricted Units'!$T$7:$T$399=\"LI State\"))","v":0},{"$f":"SUMPRODUCT(('2. Assisted & Restricted Units'!$E$7:$E$399=\"4\")*('2. Assisted & Restricted Units'!$S$7:$S$399=\"CHRP-R\")*('2. Assisted & Restricted Units'!$T$7:$T$399=\"LI State\"))","v":0},{"$f":"SUMPRODUCT(('2. Assisted & Restricted Units'!$E$7:$E$399=\"4\")*('2. Assisted & Restricted Units'!$S$7:$S$399=\"DDS\")*('2. Assisted & Restricted Units'!$T$7:$T$399=\"LI State\"))","v":0},{"$f":"SUMPRODUCT(('2. Assisted & Restricted Units'!$E$7:$E$399=\"4\")*('2. Assisted & Restricted Units'!$S$7:$S$399=\"DPRLP\")*('2. Assisted & Restricted Units'!$T$7:$T$399=\"LI State\"))","v":0},{"$f":"SUMPRODUCT(('2. Assisted & Restricted Units'!$E$7:$E$399=\"4\")*('2. Assisted & Restricted Units'!$S$7:$S$399=\"FHDP\")*('2. Assisted & Restricted Units'!$T$7:$T$399=\"LI State\"))","v":0},{"$f":"SUMPRODUCT(('2. Assisted & Restricted Units'!$E$7:$E$399=\"4\")*('2. Assisted & Restricted Units'!$S$7:$S$399=\"FMTW\")*('2. Assisted & Restricted Units'!$T$7:$T$399=\"LI State\"))","v":0},null,{"$f":"SUMPRODUCT(('2. Assisted & Restricted Units'!$E$7:$E$399=\"4\")*('2. Assisted & Restricted Units'!$S$7:$S$399=\"HOME\")*('2. Assisted & Restricted Units'!$T$7:$T$399=\"LI State\"))","v":0},{"$f":"SUMPRODUCT(('2. Assisted & Restricted Units'!$E$7:$E$399=\"4\")*('2. Assisted & Restricted Units'!$S$7:$S$399=\"Market Rate\")*('2. Assisted & Restricted Units'!$T$7:$T$399=\"LI State\"))","v":0},{"$f":"SUMPRODUCT(('2. Assisted & Restricted Units'!$E$7:$E$399=\"4\")*('2. Assisted & Restricted Units'!$S$7:$S$399=\"MHP\")*('2. Assisted & Restricted Units'!$T$7:$T$399=\"LI State\"))","v":0},{"$f":"SUMPRODUCT(('2. Assisted & Restricted Units'!$E$7:$E$399=\"4\")*('2. Assisted & Restricted Units'!$S$7:$S$399=\"NonAssisted\")*('2. Assisted & Restricted Units'!$T$7:$T$399=\"LI State\"))","v":0},{"$f":"SUMPRODUCT(('2. Assisted & Restricted Units'!$E$7:$E$399=\"4\")*('2. Assisted & Restricted Units'!$S$7:$S$399=\"Other Restr\")*('2. Assisted & Restricted Units'!$T$7:$T$399=\"LI State\"))","v":0},{"$f":"SUMPRODUCT(('2. Assisted & Restricted Units'!$E$7:$E$399=\"4\")*('2. Assisted & Restricted Units'!$S$7:$S$399=\"RHCP-B\")*('2. Assisted & Restricted Units'!$T$7:$T$399=\"LI State\"))","v":0},{"$f":"SUMPRODUCT(('2. Assisted & Restricted Units'!$E$7:$E$399=\"4\")*('2. Assisted & Restricted Units'!$S$7:$S$399=\"SERA\")*('2. Assisted & Restricted Units'!$T$7:$T$399=\"LI State\"))","v":0},{"$f":"SUMPRODUCT(('2. Assisted & Restricted Units'!$E$7:$E$399=\"4\")*('2. Assisted & Restricted Units'!$S$7:$S$399=\"SUHRP\")*('2. Assisted & Restricted Units'!$T$7:$T$399=\"LI State\"))","v":0},{"$f":"SUMPRODUCT(('2. Assisted & Restricted Units'!$E$7:$E$399=\"4\")*('2. Assisted & Restricted Units'!$S$7:$S$399=\"TOD\")*('2. Assisted & Restricted Units'!$T$7:$T$399=\"LI State\"))","v":0},{"$f":"SUMPRODUCT(('2. Assisted & Restricted Units'!$E$7:$E$399=\"4\")*('2. Assisted & Restricted Units'!$S$7:$S$399=\"707-E\")*('2. Assisted & Restricted Units'!$T$7:$T$399=\"LI State\"))","v":0},{"$f":"SUMPRODUCT(('2. Assisted & Restricted Units'!$E$7:$E$399=\"4\")*('2. Assisted & Restricted Units'!$S$7:$S$399=\"707-N\")*('2. Assisted & Restricted Units'!$T$7:$T$399=\"LI State\"))","v":0}]
["4 Bedroom CalHFA",{"$f":"SUMPRODUCT(('2. Assisted & Restricted Units'!$E$7:$E$399=\"4\")*('2. Assisted & Restricted Units'!$S$7:$S$399=\"CALDAP\")*('2. Assisted & Restricted Units'!$T$7:$T$399=\"CalHFA\"))","v":0},{"$f":"SUMPRODUCT(('2. Assisted & Restricted Units'!$E$7:$E$399=\"4\")*('2. Assisted & Restricted Units'!$S$7:$S$399=\"CHRP-R\")*('2. Assisted & Restricted Units'!$T$7:$T$399=\"CalHFA\"))","v":0},{"$f":"SUMPRODUCT(('2. Assisted & Restricted Units'!$E$7:$E$399=\"4\")*('2. Assisted & Restricted Units'!$S$7:$S$399=\"DDS\")*('2. Assisted & Restricted Units'!$T$7:$T$399=\"CalHFA\"))","v":0},{"$f":"SUMPRODUCT(('2. Assisted & Restricted Units'!$E$7:$E$399=\"4\")*('2. Assisted & Restricted Units'!$S$7:$S$399=\"DPRLP\")*('2. Assisted & Restricted Units'!$T$7:$T$399=\"CalHFA\"))","v":0},{"$f":"SUMPRODUCT(('2. Assisted & Restricted Units'!$E$7:$E$399=\"4\")*('2. Assisted & Restricted Units'!$S$7:$S$399=\"FHDP\")*('2. Assisted & Restricted Units'!$T$7:$T$399=\"CalHFA\"))","v":0},{"$f":"SUMPRODUCT(('2. Assisted & Restricted Units'!$E$7:$E$399=\"4\")*('2. Assisted & Restricted Units'!$S$7:$S$399=\"FMTW\")*('2. Assisted & Restricted Units'!$T$7:$T$399=\"CalHFA\"))","v":0},null,{"$f":"SUMPRODUCT(('2. Assisted & Restricted Units'!$E$7:$E$399=\"4\")*('2. Assisted & Restricted Units'!$S$7:$S$399=\"HOME\")*('2. Assisted & Restricted Units'!$T$7:$T$399=\"CalHFA\"))","v":0},{"$f":"SUMPRODUCT(('2. Assisted & Restricted Units'!$E$7:$E$399=\"4\")*('2. Assisted & Restricted Units'!$S$7:$S$399=\"Market Rate\")*('2. Assisted & Restricted Units'!$T$7:$T$399=\"CalHFA\"))","v":0},{"$f":"SUMPRODUCT(('2. Assisted & Restricted Units'!$E$7:$E$399=\"4\")*('2. Assisted & Restricted Units'!$S$7:$S$399=\"MHP\")*('2. Assisted & Restricted Units'!$T$7:$T$399=\"CalHFA\"))","v":0},{"$f":"SUMPRODUCT(('2. Assisted & Restricted Units'!$E$7:$E$399=\"4\")*('2. Assisted & Restricted Units'!$S$7:$S$399=\"NonAssisted\")*('2. Assisted & Restricted Units'!$T$7:$T$399=\"CalHFA\"))","v":0},{"$f":"SUMPRODUCT(('2. Assisted & Restricted Units'!$E$7:$E$399=\"4\")*('2. Assisted & Restricted Units'!$S$7:$S$399=\"Other Restr\")*('2. Assisted & Restricted Units'!$T$7:$T$399=\"CalHFA\"))","v":0},{"$f":"SUMPRODUCT(('2. Assisted & Restricted Units'!$E$7:$E$399=\"4\")*('2. Assisted & Restricted Units'!$S$7:$S$399=\"RHCP-B\")*('2. Assisted & Restricted Units'!$T$7:$T$399=\"CalHFA\"))","v":0},{"$f":"SUMPRODUCT(('2. Assisted & Restricted Units'!$E$7:$E$399=\"4\")*('2. Assisted & Restricted Units'!$S$7:$S$399=\"SERA\")*('2. Assisted & Restricted Units'!$T$7:$T$399=\"CalHFA\"))","v":0},{"$f":"SUMPRODUCT(('2. Assisted & Restricted Units'!$E$7:$E$399=\"4\")*('2. Assisted & Restricted Units'!$S$7:$S$399=\"SUHRP\")*('2. Assisted & Restricted Units'!$T$7:$T$399=\"CalHFA\"))","v":0},{"$f":"SUMPRODUCT(('2. Assisted & Restricted Units'!$E$7:$E$399=\"4\")*('2. Assisted & Restricted Units'!$S$7:$S$399=\"TOD\")*('2. Assisted & Restricted Units'!$T$7:$T$399=\"CalHFA\"))","v":0},{"$f":"SUMPRODUCT(('2. Assisted & Restricted Units'!$E$7:$E$399=\"4\")*('2. Assisted & Restricted Units'!$S$7:$S$399=\"707-E\")*('2. Assisted & Restricted Units'!$T$7:$T$399=\"CalHFA\"))","v":0},{"$f":"SUMPRODUCT(('2. Assisted & Restricted Units'!$E$7:$E$399=\"4\")*('2. Assisted & Restricted Units'!$S$7:$S$399=\"707-N\")*('2. Assisted & Restricted Units'!$T$7:$T$399=\"CalHFA\"))","v":0}]
["4 Bedroom Sec 8",{"$f":"SUMPRODUCT(('2. Assisted & Restricted Units'!$E$7:$E$399=\"4\")*('2. Assisted & Restricted Units'!$S$7:$S$399=\"CALDAP\")*('2. Assisted & Restricted Units'!$T$7:$T$399=\"Sec 8\"))","v":0},{"$f":"SUMPRODUCT(('2. Assisted & Restricted Units'!$E$7:$E$399=\"4\")*('2. Assisted & Restricted Units'!$S$7:$S$399=\"CHRP-R\")*('2. Assisted & Restricted Units'!$T$7:$T$399=\"Sec 8\"))","v":0},{"$f":"SUMPRODUCT(('2. Assisted & Restricted Units'!$E$7:$E$399=\"4\")*('2. Assisted & Restricted Units'!$S$7:$S$399=\"DDS\")*('2. Assisted & Restricted Units'!$T$7:$T$399=\"Sec 8\"))","v":0},{"$f":"SUMPRODUCT(('2. Assisted & Restricted Units'!$E$7:$E$399=\"4\")*('2. Assisted & Restricted Units'!$S$7:$S$399=\"DPRLP\")*('2. Assisted & Restricted Units'!$T$7:$T$399=\"Sec 8\"))","v":0},{"$f":"SUMPRODUCT(('2. Assisted & Restricted Units'!$E$7:$E$399=\"4\")*('2. Assisted & Restricted Units'!$S$7:$S$399=\"FHDP\")*('2. Assisted & Restricted Units'!$T$7:$T$399=\"Sec 8\"))","v":0},{"$f":"SUMPRODUCT(('2. Assisted & Restricted Units'!$E$7:$E$399=\"4\")*('2. Assisted & Restricted Units'!$S$7:$S$399=\"FMTW\")*('2. Assisted & Restricted Units'!$T$7:$T$399=\"Sec 8\"))","v":0},null,{"$f":"SUMPRODUCT(('2. Assisted & Restricted Units'!$E$7:$E$399=\"4\")*('2. Assisted & Restricted Units'!$S$7:$S$399=\"HOME\")*('2. Assisted & Restricted Units'!$T$7:$T$399=\"Sec 8\"))","v":0},{"$f":"SUMPRODUCT(('2. Assisted & Restricted Units'!$E$7:$E$399=\"4\")*('2. Assisted & Restricted Units'!$S$7:$S$399=\"Market Rate\")*('2. Assisted & Restricted Units'!$T$7:$T$399=\"Sec 8\"))","v":0},{"$f":"SUMPRODUCT(('2. Assisted & Restricted Units'!$E$7:$E$399=\"4\")*('2. Assisted & Restricted Units'!$S$7:$S$399=\"MHP\")*('2. Assisted & Restricted Units'!$T$7:$T$399=\"Sec 8\"))","v":0},{"$f":"SUMPRODUCT(('2. Assisted & Restricted Units'!$E$7:$E$399=\"4\")*('2. Assisted & Restricted Units'!$S$7:$S$399=\"NonAssisted\")*('2. Assisted & Restricted Units'!$T$7:$T$399=\"Sec 8\"))","v":0},{"$f":"SUMPRODUCT(('2. Assisted & Restricted Units'!$E$7:$E$399=\"4\")*('2. Assisted & Restricted Units'!$S$7:$S$399=\"Other Restr\")*('2. Assisted & Restricted Units'!$T$7:$T$399=\"Sec 8\"))","v":0},{"$f":"SUMPRODUCT(('2. Assisted & Restricted Units'!$E$7:$E$399=\"4\")*('2. Assisted & Restricted Units'!$S$7:$S$399=\"RHCP-B\")*('2. Assisted & Restricted Units'!$T$7:$T$399=\"Sec 8\"))","v":0},{"$f":"SUMPRODUCT(('2. Assisted & Restricted Units'!$E$7:$E$399=\"4\")*('2. Assisted & Restricted Units'!$S$7:$S$399=\"SERA\")*('2. Assisted & Restricted Units'!$T$7:$T$399=\"Sec 8\"))","v":0},{"$f":"SUMPRODUCT(('2. Assisted & Restricted Units'!$E$7:$E$399=\"4\")*('2. Assisted & Restricted Units'!$S$7:$S$399=\"SUHRP\")*('2. Assisted & Restricted Units'!$T$7:$T$399=\"Sec 8\"))","v":0},{"$f":"SUMPRODUCT(('2. Assisted & Restricted Units'!$E$7:$E$399=\"4\")*('2. Assisted & Restricted Units'!$S$7:$S$399=\"TOD\")*('2. Assisted & Restricted Units'!$T$7:$T$399=\"Sec 8\"))","v":0},{"$f":"SUMPRODUCT(('2. Assisted & Restricted Units'!$E$7:$E$399=\"4\")*('2. Assisted & Restricted Units'!$S$7:$S$399=\"707-E\")*('2. Assisted & Restricted Units'!$T$7:$T$399=\"Sec 8\"))","v":0},{"$f":"SUMPRODUCT(('2. Assisted & Restricted Units'!$E$7:$E$399=\"4\")*('2. Assisted & Restricted Units'!$S$7:$S$399=\"707-N\")*('2. Assisted & Restricted Units'!$T$7:$T$399=\"Sec 8\"))","v":0}]
["Total 4",{"$f":"SUM(B129:B153)","v":0},{"$f":"SUM(C129:C153)","v":0},{"$f":"SUM(D129:D153)","v":0},{"$f":"SUM(E129:E153)","v":0},{"$f":"SUM(F129:F153)","v":0},0,{"$f":"SUMPRODUCT(('2. Assisted & Restricted Units'!$E$7:$E$399=\"4\")*('2. Assisted & Restricted Units'!$S$7:$S$399=\"FWHG\"))","v":0},0,0,0,0,0,0,0,0,0,0,0,{"$f":"SUMPRODUCT(('2. Assisted & Restricted Units'!$E$7:$E$399=\"4\")*('2. Assisted & Restricted Units'!$L$7:$L$399=\"X\"))","v":0},{"$f":"SUMPRODUCT(('2. Assisted & Restricted Units'!$E$7:$E$399=\"4\")*('2. Assisted & Restricted Units'!#REF!=\"X\"))","v":{"$error":"#REF!"}},{"$f":"SUMPRODUCT(('2. Assisted & Restricted Units'!$E$7:$E$399=\"4\")*('2. Assisted & Restricted Units'!#REF!=\"X\"))","v":{"$error":"#REF!"}},{"$f":"SUMPRODUCT(('2. Assisted & Restricted Units'!$E$7:$E$399=\"4\")*('2. Assisted & Restricted Units'!#REF!=\"X\"))","v":{"$error":"#REF!"}},{"$f":"SUMPRODUCT(('2. Assisted & Restricted Units'!$E$7:$E$399=\"4\")*('2. Assisted & Restricted Units'!#REF!=\"X\"))","v":{"$error":"#REF!"}},{"$f":"SUMPRODUCT(('2. Assisted & Restricted Units'!$E$7:$E$399=\"4\")*('2. Assisted & Restricted Units'!#REF!=\"X\"))","v":{"$error":"#REF!"}},{"$f":"SUMPRODUCT(('2. Assisted & Restricted Units'!$E$7:$E$399=\"4\")*('2. Assisted & Restricted Units'!#REF!=\"X\"))","v":{"$error":"#REF!"}},{"$f":"SUMPRODUCT(('2. Assisted & Restricted Units'!$E$7:$E$399=\"4\")*('2. Assisted & Restricted Units'!$M$7:$M$399=\"X\"))","v":0},{"$f":"SUMPRODUCT(('2. Assisted & Restricted Units'!$E$7:$E$399=\"4\")*('2. Assisted & Restricted Units'!$O$7:$O$399=\"X\"))","v":0}]
["Total Units",{"$f":"B27+B53+B78+B103+B128+B154","v":0},{"$f":"C27+C53+C78+C103+C128+C154","v":0},0,{"$f":"E27+E53+E78+E103+E128+E154","v":0},0,0,0,0,0,0,0,0,0,0,0,0,0,0,{"$f":"T27+T53+T78+T103+T128+T154","v":0},{"$error":"#REF!"},{"$error":"#REF!"},{"$error":"#REF!"},{"$error":"#REF!"},{"$error":"#REF!"},{"$error":"#REF!"},0,0]

{"sheet":"5b. Map Unit Desig2","index":20,"n_rows":155,"n_cols":28,"rows_kept":155,"cut":false,"hidden":true,"merged":[]}
[null,"CALDAP","CHRP-R","DDS","DPRLP","FHDP","FMTW","FWHG","HOME","Market Rate","MHP","NonAssisted","Other Restr","RHCP-B","SERA","SUHRP","TOD","707-E","707-N","Elderly","GHI","HY","SNP","SH At-Risk","SH Hmls","TCAC","Veteran","Family"]
["Ghocc 15% AMI",{"$f":"SUMPRODUCT(('2. Assisted & Restricted Units'!$E$7:$E$399=\"Ghocc\")*('2. Assisted & Restricted Units'!$U$7:$U$399=\"CALDAP\")*('2. Assisted & Restricted Units'!$V$7:$V$399=\"15% AMI\"))","v":0},{"$f":"SUMPRODUCT(('2. Assisted & Restricted Units'!$E$7:$E$399=\"Ghocc\")*('2. Assisted & Restricted Units'!$U$7:$U$399=\"CHRP-R\")*('2. Assisted & Restricted Units'!$V$7:$V$399=\"15% AMI\"))","v":0},{"$f":"SUMPRODUCT(('2. Assisted & Restricted Units'!$E$7:$E$399=\"Ghocc\")*('2. Assisted & Restricted Units'!$U$7:$U$399=\"DDS\")*('2. Assisted & Restricted Units'!$V$7:$V$399=\"15% AMI\"))","v":0},{"$f":"SUMPRODUCT(('2. Assisted & Restricted Units'!$E$7:$E$399=\"Ghocc\")*('2. Assisted & Restricted Units'!$U$7:$U$399=\"DPRLP\")*('2. Assisted & Restricted Units'!$V$7:$V$399=\"15% AMI\"))","v":0},{"$f":"SUMPRODUCT(('2. Assisted & Restricted Units'!$E$7:$E$399=\"Ghocc\")*('2. Assisted & Restricted Units'!$U$7:$U$399=\"FHDP\")*('2. Assisted & Restricted Units'!$V$7:$V$399=\"15% AMI\"))","v":0},{"$f":"SUMPRODUCT(('2. Assisted & Restricted Units'!$E$7:$E$399=\"Ghocc\")*('2. Assisted & Restricted Units'!$U$7:$U$399=\"FMTW\")*('2. Assisted & Restricted Units'!$V$7:$V$399=\"15% AMI\"))","v":0},null,{"$f":"SUMPRODUCT(('2. Assisted & Restricted Units'!$E$7:$E$399=\"Ghocc\")*('2. Assisted & Restricted Units'!$U$7:$U$399=\"HOME\")*('2. Assisted & Restricted Units'!$V$7:$V$399=\"15% AMI\"))","v":0},{"$f":"SUMPRODUCT(('2. Assisted & Restricted Units'!$E$7:$E$399=\"Ghocc\")*('2. Assisted & Restricted Units'!$U$7:$U$399=\"Market Rate\")*('2. Assisted & Restricted Units'!$V$7:$V$399=\"15% AMI\"))","v":0},{"$f":"SUMPRODUCT(('2. Assisted & Restricted Units'!$E$7:$E$399=\"Ghocc\")*('2. Assisted & Restricted Units'!$U$7:$U$399=\"MHP\")*('2. Assisted & Restricted Units'!$V$7:$V$399=\"15% AMI\"))","v":0},{"$f":"SUMPRODUCT(('2. Assisted & Restricted Units'!$E$7:$E$399=\"Ghocc\")*('2. Assisted & Restricted Units'!$U$7:$U$399=\"NonAssisted\")*('2. Assisted & Restricted Units'!$V$7:$V$399=\"15% AMI\"))","v":0},{"$f":"SUMPRODUCT(('2. Assisted & Restricted Units'!$E$7:$E$399=\"Ghocc\")*('2. Assisted & Restricted Units'!$U$7:$U$399=\"Other Restr\")*('2. Assisted & Restricted Units'!$V$7:$V$399=\"15% AMI\"))","v":0},{"$f":"SUMPRODUCT(('2. Assisted & Restricted Units'!$E$7:$E$399=\"Ghocc\")*('2. Assisted & Restricted Units'!$U$7:$U$399=\"RHCP-B\")*('2. Assisted & Restricted Units'!$V$7:$V$399=\"15% AMI\"))","v":0},{"$f":"SUMPRODUCT(('2. Assisted & Restricted Units'!$E$7:$E$399=\"Ghocc\")*('2. Assisted & Restricted Units'!$U$7:$U$399=\"SERA\")*('2. Assisted & Restricted Units'!$V$7:$V$399=\"15% AMI\"))","v":0},{"$f":"SUMPRODUCT(('2. Assisted & Restricted Units'!$E$7:$E$399=\"Ghocc\")*('2. Assisted & Restricted Units'!$U$7:$U$399=\"SUHRP\")*('2. Assisted & Restricted Units'!$V$7:$V$399=\"15% AMI\"))","v":0},{"$f":"SUMPRODUCT(('2. Assisted & Restricted Units'!$E$7:$E$399=\"Ghocc\")*('2. Assisted & Restricted Units'!$U$7:$U$399=\"TOD\")*('2. Assisted & Restricted Units'!$V$7:$V$399=\"15% AMI\"))","v":0},{"$f":"SUMPRODUCT(('2. Assisted & Restricted Units'!$E$7:$E$399=\"Ghocc\")*('2. Assisted & Restricted Units'!$U$7:$U$399=\"707-E\")*('2. Assisted & Restricted Units'!$V$7:$V$399=\"15% AMI\"))","v":0},{"$f":"SUMPRODUCT(('2. Assisted & Restricted Units'!$E$7:$E$399=\"Ghocc\")*('2. Assisted & Restricted Units'!$U$7:$U$399=\"707-N\")*('2. Assisted & Restricted Units'!$V$7:$V$399=\"15% AMI\"))","v":0}]
["Ghocc 20% AMI",{"$f":"SUMPRODUCT(('2. Assisted & Restricted Units'!$E$7:$E$399=\"Ghocc\")*('2. Assisted & Restricted Units'!$U$7:$U$399=\"CALDAP\")*('2. Assisted & Restricted Units'!$V$7:$V$399=\"20% AMI\"))","v":0},{"$f":"SUMPRODUCT(('2. Assisted & Restricted Units'!$E$7:$E$399=\"Ghocc\")*('2. Assisted & Restricted Units'!$U$7:$U$399=\"CHRP-R\")*('2. Assisted & Restricted Units'!$V$7:$V$399=\"20% AMI\"))","v":0},{"$f":"SUMPRODUCT(('2. Assisted & Restricted Units'!$E$7:$E$399=\"Ghocc\")*('2. Assisted & Restricted Units'!$U$7:$U$399=\"DDS\")*('2. Assisted & Restricted Units'!$V$7:$V$399=\"20% AMI\"))","v":0},{"$f":"SUMPRODUCT(('2. Assisted & Restricted Units'!$E$7:$E$399=\"Ghocc\")*('2. Assisted & Restricted Units'!$U$7:$U$399=\"DPRLP\")*('2. Assisted & Restricted Units'!$V$7:$V$399=\"20% AMI\"))","v":0},{"$f":"SUMPRODUCT(('2. Assisted & Restricted Units'!$E$7:$E$399=\"Ghocc\")*('2. Assisted & Restricted Units'!$U$7:$U$399=\"FHDP\")*('2. Assisted & Restricted Units'!$V$7:$V$399=\"20% AMI\"))","v":0},{"$f":"SUMPRODUCT(('2. Assisted & Restricted Units'!$E$7:$E$399=\"Ghocc\")*('2. Assisted & Restricted Units'!$U$7:$U$399=\"FMTW\")*('2. Assisted & Restricted Units'!$V$7:$V$399=\"20% AMI\"))","v":0},null,{"$f":"SUMPRODUCT(('2. Assisted & Restricted Units'!$E$7:$E$399=\"Ghocc\")*('2. Assisted & Restricted Units'!$U$7:$U$399=\"HOME\")*('2. Assisted & Restricted Units'!$V$7:$V$399=\"20% AMI\"))","v":0},{"$f":"SUMPRODUCT(('2. Assisted & Restricted Units'!$E$7:$E$399=\"Ghocc\")*('2. Assisted & Restricted Units'!$U$7:$U$399=\"Market Rate\")*('2. Assisted & Restricted Units'!$V$7:$V$399=\"20% AMI\"))","v":0},{"$f":"SUMPRODUCT(('2. Assisted & Restricted Units'!$E$7:$E$399=\"Ghocc\")*('2. Assisted & Restricted Units'!$U$7:$U$399=\"MHP\")*('2. Assisted & Restricted Units'!$V$7:$V$399=\"20% AMI\"))","v":0},{"$f":"SUMPRODUCT(('2. Assisted & Restricted Units'!$E$7:$E$399=\"Ghocc\")*('2. Assisted & Restricted Units'!$U$7:$U$399=\"NonAssisted\")*('2. Assisted & Restricted Units'!$V$7:$V$399=\"20% AMI\"))","v":0},{"$f":"SUMPRODUCT(('2. Assisted & Restricted Units'!$E$7:$E$399=\"Ghocc\")*('2. Assisted & Restricted Units'!$U$7:$U$399=\"Other Restr\")*('2. Assisted & Restricted Units'!$V$7:$V$399=\"20% AMI\"))","v":0},{"$f":"SUMPRODUCT(('2. Assisted & Restricted Units'!$E$7:$E$399=\"Ghocc\")*('2. Assisted & Restricted Units'!$U$7:$U$399=\"RHCP-B\")*('2. Assisted & Restricted Units'!$V$7:$V$399=\"20% AMI\"))","v":0},{"$f":"SUMPRODUCT(('2. Assisted & Restricted Units'!$E$7:$E$399=\"Ghocc\")*('2. Assisted & Restricted Units'!$U$7:$U$399=\"SERA\")*('2. Assisted & Restricted Units'!$V$7:$V$399=\"20% AMI\"))","v":0},{"$f":"SUMPRODUCT(('2. Assisted & Restricted Units'!$E$7:$E$399=\"Ghocc\")*('2. Assisted & Restricted Units'!$U$7:$U$399=\"SUHRP\")*('2. Assisted & Restricted Units'!$V$7:$V$399=\"20% AMI\"))","v":0},{"$f":"SUMPRODUCT(('2. Assisted & Restricted Units'!$E$7:$E$399=\"Ghocc\")*('2. Assisted & Restricted Units'!$U$7:$U$399=\"TOD\")*('2. Assisted & Restricted Units'!$V$7:$V$399=\"20% AMI\"))","v":0},{"$f":"SUMPRODUCT(('2. Assisted & Restricted Units'!$E$7:$E$399=\"Ghocc\")*('2. Assisted & Restricted Units'!$U$7:$U$399=\"707-E\")*('2. Assisted & Restricted Units'!$V$7:$V$399=\"20% AMI\"))","v":0},{"$f":"SUMPRODUCT(('2. Assisted & Restricted Units'!$E$7:$E$399=\"Ghocc\")*('2. Assisted & Restricted Units'!$U$7:$U$399=\"707-N\")*('2. Assisted & Restricted Units'!$V$7:$V$399=\"20% AMI\"))","v":0}]
["Ghocc 25% AMI",{"$f":"SUMPRODUCT(('2. Assisted & Restricted Units'!$E$7:$E$399=\"Ghocc\")*('2. Assisted & Restricted Units'!$U$7:$U$399=\"CALDAP\")*('2. Assisted & Restricted Units'!$V$7:$V$399=\"25% AMI\"))","v":0},{"$f":"SUMPRODUCT(('2. Assisted & Restricted Units'!$E$7:$E$399=\"Ghocc\")*('2. Assisted & Restricted Units'!$U$7:$U$399=\"CHRP-R\")*('2. Assisted & Restricted Units'!$V$7:$V$399=\"25% AMI\"))","v":0},{"$f":"SUMPRODUCT(('2. Assisted & Restricted Units'!$E$7:$E$399=\"Ghocc\")*('2. Assisted & Restricted Units'!$U$7:$U$399=\"DDS\")*('2. Assisted & Restricted Units'!$V$7:$V$399=\"25% AMI\"))","v":0},{"$f":"SUMPRODUCT(('2. Assisted & Restricted Units'!$E$7:$E$399=\"Ghocc\")*('2. Assisted & Restricted Units'!$U$7:$U$399=\"DPRLP\")*('2. Assisted & Restricted Units'!$V$7:$V$399=\"25% AMI\"))","v":0},{"$f":"SUMPRODUCT(('2. Assisted & Restricted Units'!$E$7:$E$399=\"Ghocc\")*('2. Assisted & Restricted Units'!$U$7:$U$399=\"FHDP\")*('2. Assisted & Restricted Units'!$V$7:$V$399=\"25% AMI\"))","v":0},{"$f":"SUMPRODUCT(('2. Assisted & Restricted Units'!$E$7:$E$399=\"Ghocc\")*('2. Assisted & Restricted Units'!$U$7:$U$399=\"FMTW\")*('2. Assisted & Restricted Units'!$V$7:$V$399=\"25% AMI\"))","v":0},null,{"$f":"SUMPRODUCT(('2. Assisted & Restricted Units'!$E$7:$E$399=\"Ghocc\")*('2. Assisted & Restricted Units'!$U$7:$U$399=\"HOME\")*('2. Assisted & Restricted Units'!$V$7:$V$399=\"25% AMI\"))","v":0},{"$f":"SUMPRODUCT(('2. Assisted & Restricted Units'!$E$7:$E$399=\"Ghocc\")*('2. Assisted & Restricted Units'!$U$7:$U$399=\"Market Rate\")*('2. Assisted & Restricted Units'!$V$7:$V$399=\"25% AMI\"))","v":0},{"$f":"SUMPRODUCT(('2. Assisted & Restricted Units'!$E$7:$E$399=\"Ghocc\")*('2. Assisted & Restricted Units'!$U$7:$U$399=\"MHP\")*('2. Assisted & Restricted Units'!$V$7:$V$399=\"25% AMI\"))","v":0},{"$f":"SUMPRODUCT(('2. Assisted & Restricted Units'!$E$7:$E$399=\"Ghocc\")*('2. Assisted & Restricted Units'!$U$7:$U$399=\"NonAssisted\")*('2. Assisted & Restricted Units'!$V$7:$V$399=\"25% AMI\"))","v":0},{"$f":"SUMPRODUCT(('2. Assisted & Restricted Units'!$E$7:$E$399=\"Ghocc\")*('2. Assisted & Restricted Units'!$U$7:$U$399=\"Other Restr\")*('2. Assisted & Restricted Units'!$V$7:$V$399=\"25% AMI\"))","v":0},{"$f":"SUMPRODUCT(('2. Assisted & Restricted Units'!$E$7:$E$399=\"Ghocc\")*('2. Assisted & Restricted Units'!$U$7:$U$399=\"RHCP-B\")*('2. Assisted & Restricted Units'!$V$7:$V$399=\"25% AMI\"))","v":0},{"$f":"SUMPRODUCT(('2. Assisted & Restricted Units'!$E$7:$E$399=\"Ghocc\")*('2. Assisted & Restricted Units'!$U$7:$U$399=\"SERA\")*('2. Assisted & Restricted Units'!$V$7:$V$399=\"25% AMI\"))","v":0},{"$f":"SUMPRODUCT(('2. Assisted & Restricted Units'!$E$7:$E$399=\"Ghocc\")*('2. Assisted & Restricted Units'!$U$7:$U$399=\"SUHRP\")*('2. Assisted & Restricted Units'!$V$7:$V$399=\"25% AMI\"))","v":0},{"$f":"SUMPRODUCT(('2. Assisted & Restricted Units'!$E$7:$E$399=\"Ghocc\")*('2. Assisted & Restricted Units'!$U$7:$U$399=\"TOD\")*('2. Assisted & Restricted Units'!$V$7:$V$399=\"25% AMI\"))","v":0},{"$f":"SUMPRODUCT(('2. Assisted & Restricted Units'!$E$7:$E$399=\"Ghocc\")*('2. Assisted & Restricted Units'!$U$7:$U$399=\"707-E\")*('2. Assisted & Restricted Units'!$V$7:$V$399=\"25% AMI\"))","v":0},{"$f":"SUMPRODUCT(('2. Assisted & Restricted Units'!$E$7:$E$399=\"Ghocc\")*('2. Assisted & Restricted Units'!$U$7:$U$399=\"707-N\")*('2. Assisted & Restricted Units'!$V$7:$V$399=\"25% AMI\"))","v":0}]
["Ghocc 30% AMI",{"$f":"SUMPRODUCT(('2. Assisted & Restricted Units'!$E$7:$E$399=\"Ghocc\")*('2. Assisted & Restricted Units'!$U$7:$U$399=\"CALDAP\")*('2. Assisted & Restricted Units'!$V$7:$V$399=\"30% AMI\"))","v":0},{"$f":"SUMPRODUCT(('2. Assisted & Restricted Units'!$E$7:$E$399=\"Ghocc\")*('2. Assisted & Restricted Units'!$U$7:$U$399=\"CHRP-R\")*('2. Assisted & Restricted Units'!$V$7:$V$399=\"30% AMI\"))","v":0},{"$f":"SUMPRODUCT(('2. Assisted & Restricted Units'!$E$7:$E$399=\"Ghocc\")*('2. Assisted & Restricted Units'!$U$7:$U$399=\"DDS\")*('2. Assisted & Restricted Units'!$V$7:$V$399=\"30% AMI\"))","v":0},{"$f":"SUMPRODUCT(('2. Assisted & Restricted Units'!$E$7:$E$399=\"Ghocc\")*('2. Assisted & Restricted Units'!$U$7:$U$399=\"DPRLP\")*('2. Assisted & Restricted Units'!$V$7:$V$399=\"30% AMI\"))","v":0},{"$f":"SUMPRODUCT(('2. Assisted & Restricted Units'!$E$7:$E$399=\"Ghocc\")*('2. Assisted & Restricted Units'!$U$7:$U$399=\"FHDP\")*('2. Assisted & Restricted Units'!$V$7:$V$399=\"30% AMI\"))","v":0},{"$f":"SUMPRODUCT(('2. Assisted & Restricted Units'!$E$7:$E$399=\"Ghocc\")*('2. Assisted & Restricted Units'!$U$7:$U$399=\"FMTW\")*('2. Assisted & Restricted Units'!$V$7:$V$399=\"30% AMI\"))","v":0},null,{"$f":"SUMPRODUCT(('2. Assisted & Restricted Units'!$E$7:$E$399=\"Ghocc\")*('2. Assisted & Restricted Units'!$U$7:$U$399=\"HOME\")*('2. Assisted & Restricted Units'!$V$7:$V$399=\"30% AMI\"))","v":0},{"$f":"SUMPRODUCT(('2. Assisted & Restricted Units'!$E$7:$E$399=\"Ghocc\")*('2. Assisted & Restricted Units'!$U$7:$U$399=\"Market Rate\")*('2. Assisted & Restricted Units'!$V$7:$V$399=\"30% AMI\"))","v":0},{"$f":"SUMPRODUCT(('2. Assisted & Restricted Units'!$E$7:$E$399=\"Ghocc\")*('2. Assisted & Restricted Units'!$U$7:$U$399=\"MHP\")*('2. Assisted & Restricted Units'!$V$7:$V$399=\"30% AMI\"))","v":0},{"$f":"SUMPRODUCT(('2. Assisted & Restricted Units'!$E$7:$E$399=\"Ghocc\")*('2. Assisted & Restricted Units'!$U$7:$U$399=\"NonAssisted\")*('2. Assisted & Restricted Units'!$V$7:$V$399=\"30% AMI\"))","v":0},{"$f":"SUMPRODUCT(('2. Assisted & Restricted Units'!$E$7:$E$399=\"Ghocc\")*('2. Assisted & Restricted Units'!$U$7:$U$399=\"Other Restr\")*('2. Assisted & Restricted Units'!$V$7:$V$399=\"30% AMI\"))","v":0},{"$f":"SUMPRODUCT(('2. Assisted & Restricted Units'!$E$7:$E$399=\"Ghocc\")*('2. Assisted & Restricted Units'!$U$7:$U$399=\"RHCP-B\")*('2. Assisted & Restricted Units'!$V$7:$V$399=\"30% AMI\"))","v":0},{"$f":"SUMPRODUCT(('2. Assisted & Restricted Units'!$E$7:$E$399=\"Ghocc\")*('2. Assisted & Restricted Units'!$U$7:$U$399=\"SERA\")*('2. Assisted & Restricted Units'!$V$7:$V$399=\"30% AMI\"))","v":0},{"$f":"SUMPRODUCT(('2. Assisted & Restricted Units'!$E$7:$E$399=\"Ghocc\")*('2. Assisted & Restricted Units'!$U$7:$U$399=\"SUHRP\")*('2. Assisted & Restricted Units'!$V$7:$V$399=\"30% AMI\"))","v":0},{"$f":"SUMPRODUCT(('2. Assisted & Restricted Units'!$E$7:$E$399=\"Ghocc\")*('2. Assisted & Restricted Units'!$U$7:$U$399=\"TOD\")*('2. Assisted & Restricted Units'!$V$7:$V$399=\"30% AMI\"))","v":0},{"$f":"SUMPRODUCT(('2. Assisted & Restricted Units'!$E$7:$E$399=\"Ghocc\")*('2. Assisted & Restricted Units'!$U$7:$U$399=\"707-E\")*('2. Assisted & Restricted Units'!$V$7:$V$399=\"30% AMI\"))","v":0},{"$f":"SUMPRODUCT(('2. Assisted & Restricted Units'!$E$7:$E$399=\"Ghocc\")*('2. Assisted & Restricted Units'!$U$7:$U$399=\"707-N\")*('2. Assisted & Restricted Units'!$V$7:$V$399=\"30% AMI\"))","v":0}]
["Ghocc 35% AMI",{"$f":"SUMPRODUCT(('2. Assisted & Restricted Units'!$E$7:$E$399=\"Ghocc\")*('2. Assisted & Restricted Units'!$U$7:$U$399=\"CALDAP\")*('2. Assisted & Restricted Units'!$V$7:$V$399=\"35% AMI\"))","v":0},{"$f":"SUMPRODUCT(('2. Assisted & Restricted Units'!$E$7:$E$399=\"Ghocc\")*('2. Assisted & Restricted Units'!$U$7:$U$399=\"CHRP-R\")*('2. Assisted & Restricted Units'!$V$7:$V$399=\"35% AMI\"))","v":0},{"$f":"SUMPRODUCT(('2. Assisted & Restricted Units'!$E$7:$E$399=\"Ghocc\")*('2. Assisted & Restricted Units'!$U$7:$U$399=\"DDS\")*('2. Assisted & Restricted Units'!$V$7:$V$399=\"35% AMI\"))","v":0},{"$f":"SUMPRODUCT(('2. Assisted & Restricted Units'!$E$7:$E$399=\"Ghocc\")*('2. Assisted & Restricted Units'!$U$7:$U$399=\"DPRLP\")*('2. Assisted & Restricted Units'!$V$7:$V$399=\"35% AMI\"))","v":0},{"$f":"SUMPRODUCT(('2. Assisted & Restricted Units'!$E$7:$E$399=\"Ghocc\")*('2. Assisted & Restricted Units'!$U$7:$U$399=\"FHDP\")*('2. Assisted & Restricted Units'!$V$7:$V$399=\"35% AMI\"))","v":0},{"$f":"SUMPRODUCT(('2. Assisted & Restricted Units'!$E$7:$E$399=\"Ghocc\")*('2. Assisted & Restricted Units'!$U$7:$U$399=\"FMTW\")*('2. Assisted & Restricted Units'!$V$7:$V$399=\"35% AMI\"))","v":0},null,{"$f":"SUMPRODUCT(('2. Assisted & Restricted Units'!$E$7:$E$399=\"Ghocc\")*('2. Assisted & Restricted Units'!$U$7:$U$399=\"HOME\")*('2. Assisted & Restricted Units'!$V$7:$V$399=\"35% AMI\"))","v":0},{"$f":"SUMPRODUCT(('2. Assisted & Restricted Units'!$E$7:$E$399=\"Ghocc\")*('2. Assisted & Restricted Units'!$U$7:$U$399=\"Market Rate\")*('2. Assisted & Restricted Units'!$V$7:$V$399=\"35% AMI\"))","v":0},{"$f":"SUMPRODUCT(('2. Assisted & Restricted Units'!$E$7:$E$399=\"Ghocc\")*('2. Assisted & Restricted Units'!$U$7:$U$399=\"MHP\")*('2. Assisted & Restricted Units'!$V$7:$V$399=\"35% AMI\"))","v":0},{"$f":"SUMPRODUCT(('2. Assisted & Restricted Units'!$E$7:$E$399=\"Ghocc\")*('2. Assisted & Restricted Units'!$U$7:$U$399=\"NonAssisted\")*('2. Assisted & Restricted Units'!$V$7:$V$399=\"35% AMI\"))","v":0},{"$f":"SUMPRODUCT(('2. Assisted & Restricted Units'!$E$7:$E$399=\"Ghocc\")*('2. Assisted & Restricted Units'!$U$7:$U$399=\"Other Restr\")*('2. Assisted & Restricted Units'!$V$7:$V$399=\"35% AMI\"))","v":0},{"$f":"SUMPRODUCT(('2. Assisted & Restricted Units'!$E$7:$E$399=\"Ghocc\")*('2. Assisted & Restricted Units'!$U$7:$U$399=\"RHCP-B\")*('2. Assisted & Restricted Units'!$V$7:$V$399=\"35% AMI\"))","v":0},{"$f":"SUMPRODUCT(('2. Assisted & Restricted Units'!$E$7:$E$399=\"Ghocc\")*('2. Assisted & Restricted Units'!$U$7:$U$399=\"SERA\")*('2. Assisted & Restricted Units'!$V$7:$V$399=\"35% AMI\"))","v":0},{"$f":"SUMPRODUCT(('2. Assisted & Restricted Units'!$E$7:$E$399=\"Ghocc\")*('2. Assisted & Restricted Units'!$U$7:$U$399=\"SUHRP\")*('2. Assisted & Restricted Units'!$V$7:$V$399=\"35% AMI\"))","v":0},{"$f":"SUMPRODUCT(('2. Assisted & Restricted Units'!$E$7:$E$399=\"Ghocc\")*('2. Assisted & Restricted Units'!$U$7:$U$399=\"TOD\")*('2. Assisted & Restricted Units'!$V$7:$V$399=\"35% AMI\"))","v":0},{"$f":"SUMPRODUCT(('2. Assisted & Restricted Units'!$E$7:$E$399=\"Ghocc\")*('2. Assisted & Restricted Units'!$U$7:$U$399=\"707-E\")*('2. Assisted & Restricted Units'!$V$7:$V$399=\"35% AMI\"))","v":0},{"$f":"SUMPRODUCT(('2. Assisted & Restricted Units'!$E$7:$E$399=\"Ghocc\")*('2. Assisted & Restricted Units'!$U$7:$U$399=\"707-N\")*('2. Assisted & Restricted Units'!$V$7:$V$399=\"35% AMI\"))","v":0}]
["Ghocc 40% AMI",{"$f":"SUMPRODUCT(('2. Assisted & Restricted Units'!$E$7:$E$399=\"Ghocc\")*('2. Assisted & Restricted Units'!$U$7:$U$399=\"CALDAP\")*('2. Assisted & Restricted Units'!$V$7:$V$399=\"40% AMI\"))","v":0},{"$f":"SUMPRODUCT(('2. Assisted & Restricted Units'!$E$7:$E$399=\"Ghocc\")*('2. Assisted & Restricted Units'!$U$7:$U$399=\"CHRP-R\")*('2. Assisted & Restricted Units'!$V$7:$V$399=\"40% AMI\"))","v":0},{"$f":"SUMPRODUCT(('2. Assisted & Restricted Units'!$E$7:$E$399=\"Ghocc\")*('2. Assisted & Restricted Units'!$U$7:$U$399=\"DDS\")*('2. Assisted & Restricted Units'!$V$7:$V$399=\"40% AMI\"))","v":0},{"$f":"SUMPRODUCT(('2. Assisted & Restricted Units'!$E$7:$E$399=\"Ghocc\")*('2. Assisted & Restricted Units'!$U$7:$U$399=\"DPRLP\")*('2. Assisted & Restricted Units'!$V$7:$V$399=\"40% AMI\"))","v":0},{"$f":"SUMPRODUCT(('2. Assisted & Restricted Units'!$E$7:$E$399=\"Ghocc\")*('2. Assisted & Restricted Units'!$U$7:$U$399=\"FHDP\")*('2. Assisted & Restricted Units'!$V$7:$V$399=\"40% AMI\"))","v":0},{"$f":"SUMPRODUCT(('2. Assisted & Restricted Units'!$E$7:$E$399=\"Ghocc\")*('2. Assisted & Restricted Units'!$U$7:$U$399=\"FMTW\")*('2. Assisted & Restricted Units'!$V$7:$V$399=\"40% AMI\"))","v":0},null,{"$f":"SUMPRODUCT(('2. Assisted & Restricted Units'!$E$7:$E$399=\"Ghocc\")*('2. Assisted & Restricted Units'!$U$7:$U$399=\"HOME\")*('2. Assisted & Restricted Units'!$V$7:$V$399=\"40% AMI\"))","v":0},{"$f":"SUMPRODUCT(('2. Assisted & Restricted Units'!$E$7:$E$399=\"Ghocc\")*('2. Assisted & Restricted Units'!$U$7:$U$399=\"Market Rate\")*('2. Assisted & Restricted Units'!$V$7:$V$399=\"40% AMI\"))","v":0},{"$f":"SUMPRODUCT(('2. Assisted & Restricted Units'!$E$7:$E$399=\"Ghocc\")*('2. Assisted & Restricted Units'!$U$7:$U$399=\"MHP\")*('2. Assisted & Restricted Units'!$V$7:$V$399=\"40% AMI\"))","v":0},{"$f":"SUMPRODUCT(('2. Assisted & Restricted Units'!$E$7:$E$399=\"Ghocc\")*('2. Assisted & Restricted Units'!$U$7:$U$399=\"NonAssisted\")*('2. Assisted & Restricted Units'!$V$7:$V$399=\"40% AMI\"))","v":0},{"$f":"SUMPRODUCT(('2. Assisted & Restricted Units'!$E$7:$E$399=\"Ghocc\")*('2. Assisted & Restricted Units'!$U$7:$U$399=\"Other Restr\")*('2. Assisted & Restricted Units'!$V$7:$V$399=\"40% AMI\"))","v":0},{"$f":"SUMPRODUCT(('2. Assisted & Restricted Units'!$E$7:$E$399=\"Ghocc\")*('2. Assisted & Restricted Units'!$U$7:$U$399=\"RHCP-B\")*('2. Assisted & Restricted Units'!$V$7:$V$399=\"40% AMI\"))","v":0},{"$f":"SUMPRODUCT(('2. Assisted & Restricted Units'!$E$7:$E$399=\"Ghocc\")*('2. Assisted & Restricted Units'!$U$7:$U$399=\"SERA\")*('2. Assisted & Restricted Units'!$V$7:$V$399=\"40% AMI\"))","v":0},{"$f":"SUMPRODUCT(('2. Assisted & Restricted Units'!$E$7:$E$399=\"Ghocc\")*('2. Assisted & Restricted Units'!$U$7:$U$399=\"SUHRP\")*('2. Assisted & Restricted Units'!$V$7:$V$399=\"40% AMI\"))","v":0},{"$f":"SUMPRODUCT(('2. Assisted & Restricted Units'!$E$7:$E$399=\"Ghocc\")*('2. Assisted & Restricted Units'!$U$7:$U$399=\"TOD\")*('2. Assisted & Restricted Units'!$V$7:$V$399=\"40% AMI\"))","v":0},{"$f":"SUMPRODUCT(('2. Assisted & Restricted Units'!$E$7:$E$399=\"Ghocc\")*('2. Assisted & Restricted Units'!$U$7:$U$399=\"707-E\")*('2. Assisted & Restricted Units'!$V$7:$V$399=\"40% AMI\"))","v":0},{"$f":"SUMPRODUCT(('2. Assisted & Restricted Units'!$E$7:$E$399=\"Ghocc\")*('2. Assisted & Restricted Units'!$U$7:$U$399=\"707-N\")*('2. Assisted & Restricted Units'!$V$7:$V$399=\"40% AMI\"))","v":0}]
["Ghocc 45% AMI",{"$f":"SUMPRODUCT(('2. Assisted & Restricted Units'!$E$7:$E$399=\"Ghocc\")*('2. Assisted & Restricted Units'!$U$7:$U$399=\"CALDAP\")*('2. Assisted & Restricted Units'!$V$7:$V$399=\"45% AMI\"))","v":0},{"$f":"SUMPRODUCT(('2. Assisted & Restricted Units'!$E$7:$E$399=\"Ghocc\")*('2. Assisted & Restricted Units'!$U$7:$U$399=\"CHRP-R\")*('2. Assisted & Restricted Units'!$V$7:$V$399=\"45% AMI\"))","v":0},{"$f":"SUMPRODUCT(('2. Assisted & Restricted Units'!$E$7:$E$399=\"Ghocc\")*('2. Assisted & Restricted Units'!$U$7:$U$399=\"DDS\")*('2. Assisted & Restricted Units'!$V$7:$V$399=\"45% AMI\"))","v":0},{"$f":"SUMPRODUCT(('2. Assisted & Restricted Units'!$E$7:$E$399=\"Ghocc\")*('2. Assisted & Restricted Units'!$U$7:$U$399=\"DPRLP\")*('2. Assisted & Restricted Units'!$V$7:$V$399=\"45% AMI\"))","v":0},{"$f":"SUMPRODUCT(('2. Assisted & Restricted Units'!$E$7:$E$399=\"Ghocc\")*('2. Assisted & Restricted Units'!$U$7:$U$399=\"FHDP\")*('2. Assisted & Restricted Units'!$V$7:$V$399=\"45% AMI\"))","v":0},{"$f":"SUMPRODUCT(('2. Assisted & Restricted Units'!$E$7:$E$399=\"Ghocc\")*('2. Assisted & Restricted Units'!$U$7:$U$399=\"FMTW\")*('2. Assisted & Restricted Units'!$V$7:$V$399=\"45% AMI\"))","v":0},null,{"$f":"SUMPRODUCT(('2. Assisted & Restricted Units'!$E$7:$E$399=\"Ghocc\")*('2. Assisted & Restricted Units'!$U$7:$U$399=\"HOME\")*('2. Assisted & Restricted Units'!$V$7:$V$399=\"45% AMI\"))","v":0},{"$f":"SUMPRODUCT(('2. Assisted & Restricted Units'!$E$7:$E$399=\"Ghocc\")*('2. Assisted & Restricted Units'!$U$7:$U$399=\"Market Rate\")*('2. Assisted & Restricted Units'!$V$7:$V$399=\"45% AMI\"))","v":0},{"$f":"SUMPRODUCT(('2. Assisted & Restricted Units'!$E$7:$E$399=\"Ghocc\")*('2. Assisted & Restricted Units'!$U$7:$U$399=\"MHP\")*('2. Assisted & Restricted Units'!$V$7:$V$399=\"45% AMI\"))","v":0},{"$f":"SUMPRODUCT(('2. Assisted & Restricted Units'!$E$7:$E$399=\"Ghocc\")*('2. Assisted & Restricted Units'!$U$7:$U$399=\"NonAssisted\")*('2. Assisted & Restricted Units'!$V$7:$V$399=\"45% AMI\"))","v":0},{"$f":"SUMPRODUCT(('2. Assisted & Restricted Units'!$E$7:$E$399=\"Ghocc\")*('2. Assisted & Restricted Units'!$U$7:$U$399=\"Other Restr\")*('2. Assisted & Restricted Units'!$V$7:$V$399=\"45% AMI\"))","v":0},{"$f":"SUMPRODUCT(('2. Assisted & Restricted Units'!$E$7:$E$399=\"Ghocc\")*('2. Assisted & Restricted Units'!$U$7:$U$399=\"RHCP-B\")*('2. Assisted & Restricted Units'!$V$7:$V$399=\"45% AMI\"))","v":0},{"$f":"SUMPRODUCT(('2. Assisted & Restricted Units'!$E$7:$E$399=\"Ghocc\")*('2. Assisted & Restricted Units'!$U$7:$U$399=\"SERA\")*('2. Assisted & Restricted Units'!$V$7:$V$399=\"45% AMI\"))","v":0},{"$f":"SUMPRODUCT(('2. Assisted & Restricted Units'!$E$7:$E$399=\"Ghocc\")*('2. Assisted & Restricted Units'!$U$7:$U$399=\"SUHRP\")*('2. Assisted & Restricted Units'!$V$7:$V$399=\"45% AMI\"))","v":0},{"$f":"SUMPRODUCT(('2. Assisted & Restricted Units'!$E$7:$E$399=\"Ghocc\")*('2. Assisted & Restricted Units'!$U$7:$U$399=\"TOD\")*('2. Assisted & Restricted Units'!$V$7:$V$399=\"45% AMI\"))","v":0},{"$f":"SUMPRODUCT(('2. Assisted & Restricted Units'!$E$7:$E$399=\"Ghocc\")*('2. Assisted & Restricted Units'!$U$7:$U$399=\"707-E\")*('2. Assisted & Restricted Units'!$V$7:$V$399=\"45% AMI\"))","v":0},{"$f":"SUMPRODUCT(('2. Assisted & Restricted Units'!$E$7:$E$399=\"Ghocc\")*('2. Assisted & Restricted Units'!$U$7:$U$399=\"707-N\")*('2. Assisted & Restricted Units'!$V$7:$V$399=\"45% AMI\"))","v":0}]
["Ghocc 50% AMI",{"$f":"SUMPRODUCT(('2. Assisted & Restricted Units'!$E$7:$E$399=\"Ghocc\")*('2. Assisted & Restricted Units'!$U$7:$U$399=\"CALDAP\")*('2. Assisted & Restricted Units'!$V$7:$V$399=\"50% AMI\"))","v":0},{"$f":"SUMPRODUCT(('2. Assisted & Restricted Units'!$E$7:$E$399=\"Ghocc\")*('2. Assisted & Restricted Units'!$U$7:$U$399=\"CHRP-R\")*('2. Assisted & Restricted Units'!$V$7:$V$399=\"50% AMI\"))","v":0},{"$f":"SUMPRODUCT(('2. Assisted & Restricted Units'!$E$7:$E$399=\"Ghocc\")*('2. Assisted & Restricted Units'!$U$7:$U$399=\"DDS\")*('2. Assisted & Restricted Units'!$V$7:$V$399=\"50% AMI\"))","v":0},{"$f":"SUMPRODUCT(('2. Assisted & Restricted Units'!$E$7:$E$399=\"Ghocc\")*('2. Assisted & Restricted Units'!$U$7:$U$399=\"DPRLP\")*('2. Assisted & Restricted Units'!$V$7:$V$399=\"50% AMI\"))","v":0},{"$f":"SUMPRODUCT(('2. Assisted & Restricted Units'!$E$7:$E$399=\"Ghocc\")*('2. Assisted & Restricted Units'!$U$7:$U$399=\"FHDP\")*('2. Assisted & Restricted Units'!$V$7:$V$399=\"50% AMI\"))","v":0},{"$f":"SUMPRODUCT(('2. Assisted & Restricted Units'!$E$7:$E$399=\"Ghocc\")*('2. Assisted & Restricted Units'!$U$7:$U$399=\"FMTW\")*('2. Assisted & Restricted Units'!$V$7:$V$399=\"50% AMI\"))","v":0},null,{"$f":"SUMPRODUCT(('2. Assisted & Restricted Units'!$E$7:$E$399=\"Ghocc\")*('2. Assisted & Restricted Units'!$U$7:$U$399=\"HOME\")*('2. Assisted & Restricted Units'!$V$7:$V$399=\"50% AMI\"))","v":0},{"$f":"SUMPRODUCT(('2. Assisted & Restricted Units'!$E$7:$E$399=\"Ghocc\")*('2. Assisted & Restricted Units'!$U$7:$U$399=\"Market Rate\")*('2. Assisted & Restricted Units'!$V$7:$V$399=\"50% AMI\"))","v":0},{"$f":"SUMPRODUCT(('2. Assisted & Restricted Units'!$E$7:$E$399=\"Ghocc\")*('2. Assisted & Restricted Units'!$U$7:$U$399=\"MHP\")*('2. Assisted & Restricted Units'!$V$7:$V$399=\"50% AMI\"))","v":0},{"$f":"SUMPRODUCT(('2. Assisted & Restricted Units'!$E$7:$E$399=\"Ghocc\")*('2. Assisted & Restricted Units'!$U$7:$U$399=\"NonAssisted\")*('2. Assisted & Restricted Units'!$V$7:$V$399=\"50% AMI\"))","v":0},{"$f":"SUMPRODUCT(('2. Assisted & Restricted Units'!$E$7:$E$399=\"Ghocc\")*('2. Assisted & Restricted Units'!$U$7:$U$399=\"Other Restr\")*('2. Assisted & Restricted Units'!$V$7:$V$399=\"50% AMI\"))","v":0},{"$f":"SUMPRODUCT(('2. Assisted & Restricted Units'!$E$7:$E$399=\"Ghocc\")*('2. Assisted & Restricted Units'!$U$7:$U$399=\"RHCP-B\")*('2. Assisted & Restricted Units'!$V$7:$V$399=\"50% AMI\"))","v":0},{"$f":"SUMPRODUCT(('2. Assisted & Restricted Units'!$E$7:$E$399=\"Ghocc\")*('2. Assisted & Restricted Units'!$U$7:$U$399=\"SERA\")*('2. Assisted & Restricted Units'!$V$7:$V$399=\"50% AMI\"))","v":0},{"$f":"SUMPRODUCT(('2. Assisted & Restricted Units'!$E$7:$E$399=\"Ghocc\")*('2. Assisted & Restricted Units'!$U$7:$U$399=\"SUHRP\")*('2. Assisted & Restricted Units'!$V$7:$V$399=\"50% AMI\"))","v":0},{"$f":"SUMPRODUCT(('2. Assisted & Restricted Units'!$E$7:$E$399=\"Ghocc\")*('2. Assisted & Restricted Units'!$U$7:$U$399=\"TOD\")*('2. Assisted & Restricted Units'!$V$7:$V$399=\"50% AMI\"))","v":0},{"$f":"SUMPRODUCT(('2. Assisted & Restricted Units'!$E$7:$E$399=\"Ghocc\")*('2. Assisted & Restricted Units'!$U$7:$U$399=\"707-E\")*('2. Assisted & Restricted Units'!$V$7:$V$399=\"50% AMI\"))","v":0},{"$f":"SUMPRODUCT(('2. Assisted & Restricted Units'!$E$7:$E$399=\"Ghocc\")*('2. Assisted & Restricted Units'!$U$7:$U$399=\"707-N\")*('2. Assisted & Restricted Units'!$V$7:$V$399=\"50% AMI\"))","v":0}]
["Ghocc 55% AMI",{"$f":"SUMPRODUCT(('2. Assisted & Restricted Units'!$E$7:$E$399=\"Ghocc\")*('2. Assisted & Restricted Units'!$U$7:$U$399=\"CALDAP\")*('2. Assisted & Restricted Units'!$V$7:$V$399=\"55% AMI\"))","v":0},{"$f":"SUMPRODUCT(('2. Assisted & Restricted Units'!$E$7:$E$399=\"Ghocc\")*('2. Assisted & Restricted Units'!$U$7:$U$399=\"CHRP-R\")*('2. Assisted & Restricted Units'!$V$7:$V$399=\"55% AMI\"))","v":0},{"$f":"SUMPRODUCT(('2. Assisted & Restricted Units'!$E$7:$E$399=\"Ghocc\")*('2. Assisted & Restricted Units'!$U$7:$U$399=\"DDS\")*('2. Assisted & Restricted Units'!$V$7:$V$399=\"55% AMI\"))","v":0},{"$f":"SUMPRODUCT(('2. Assisted & Restricted Units'!$E$7:$E$399=\"Ghocc\")*('2. Assisted & Restricted Units'!$U$7:$U$399=\"DPRLP\")*('2. Assisted & Restricted Units'!$V$7:$V$399=\"55% AMI\"))","v":0},{"$f":"SUMPRODUCT(('2. Assisted & Restricted Units'!$E$7:$E$399=\"Ghocc\")*('2. Assisted & Restricted Units'!$U$7:$U$399=\"FHDP\")*('2. Assisted & Restricted Units'!$V$7:$V$399=\"55% AMI\"))","v":0},{"$f":"SUMPRODUCT(('2. Assisted & Restricted Units'!$E$7:$E$399=\"Ghocc\")*('2. Assisted & Restricted Units'!$U$7:$U$399=\"FMTW\")*('2. Assisted & Restricted Units'!$V$7:$V$399=\"55% AMI\"))","v":0},null,{"$f":"SUMPRODUCT(('2. Assisted & Restricted Units'!$E$7:$E$399=\"Ghocc\")*('2. Assisted & Restricted Units'!$U$7:$U$399=\"HOME\")*('2. Assisted & Restricted Units'!$V$7:$V$399=\"55% AMI\"))","v":0},{"$f":"SUMPRODUCT(('2. Assisted & Restricted Units'!$E$7:$E$399=\"Ghocc\")*('2. Assisted & Restricted Units'!$U$7:$U$399=\"Market Rate\")*('2. Assisted & Restricted Units'!$V$7:$V$399=\"55% AMI\"))","v":0},{"$f":"SUMPRODUCT(('2. Assisted & Restricted Units'!$E$7:$E$399=\"Ghocc\")*('2. Assisted & Restricted Units'!$U$7:$U$399=\"MHP\")*('2. Assisted & Restricted Units'!$V$7:$V$399=\"55% AMI\"))","v":0},{"$f":"SUMPRODUCT(('2. Assisted & Restricted Units'!$E$7:$E$399=\"Ghocc\")*('2. Assisted & Restricted Units'!$U$7:$U$399=\"NonAssisted\")*('2. Assisted & Restricted Units'!$V$7:$V$399=\"55% AMI\"))","v":0},{"$f":"SUMPRODUCT(('2. Assisted & Restricted Units'!$E$7:$E$399=\"Ghocc\")*('2. Assisted & Restricted Units'!$U$7:$U$399=\"Other Restr\")*('2. Assisted & Restricted Units'!$V$7:$V$399=\"55% AMI\"))","v":0},{"$f":"SUMPRODUCT(('2. Assisted & Restricted Units'!$E$7:$E$399=\"Ghocc\")*('2. Assisted & Restricted Units'!$U$7:$U$399=\"RHCP-B\")*('2. Assisted & Restricted Units'!$V$7:$V$399=\"55% AMI\"))","v":0},{"$f":"SUMPRODUCT(('2. Assisted & Restricted Units'!$E$7:$E$399=\"Ghocc\")*('2. Assisted & Restricted Units'!$U$7:$U$399=\"SERA\")*('2. Assisted & Restricted Units'!$V$7:$V$399=\"55% AMI\"))","v":0},{"$f":"SUMPRODUCT(('2. Assisted & Restricted Units'!$E$7:$E$399=\"Ghocc\")*('2. Assisted & Restricted Units'!$U$7:$U$399=\"SUHRP\")*('2. Assisted & Restricted Units'!$V$7:$V$399=\"55% AMI\"))","v":0},{"$f":"SUMPRODUCT(('2. Assisted & Restricted Units'!$E$7:$E$399=\"Ghocc\")*('2. Assisted & Restricted Units'!$U$7:$U$399=\"TOD\")*('2. Assisted & Restricted Units'!$V$7:$V$399=\"55% AMI\"))","v":0},{"$f":"SUMPRODUCT(('2. Assisted & Restricted Units'!$E$7:$E$399=\"Ghocc\")*('2. Assisted & Restricted Units'!$U$7:$U$399=\"707-E\")*('2. Assisted & Restricted Units'!$V$7:$V$399=\"55% AMI\"))","v":0},{"$f":"SUMPRODUCT(('2. Assisted & Restricted Units'!$E$7:$E$399=\"Ghocc\")*('2. Assisted & Restricted Units'!$U$7:$U$399=\"707-N\")*('2. Assisted & Restricted Units'!$V$7:$V$399=\"55% AMI\"))","v":0}]
["Ghocc 60% AMI",{"$f":"SUMPRODUCT(('2. Assisted & Restricted Units'!$E$7:$E$399=\"Ghocc\")*('2. Assisted & Restricted Units'!$U$7:$U$399=\"CALDAP\")*('2. Assisted & Restricted Units'!$V$7:$V$399=\"60% AMI\"))","v":0},{"$f":"SUMPRODUCT(('2. Assisted & Restricted Units'!$E$7:$E$399=\"Ghocc\")*('2. Assisted & Restricted Units'!$U$7:$U$399=\"CHRP-R\")*('2. Assisted & Restricted Units'!$V$7:$V$399=\"60% AMI\"))","v":0},{"$f":"SUMPRODUCT(('2. Assisted & Restricted Units'!$E$7:$E$399=\"Ghocc\")*('2. Assisted & Restricted Units'!$U$7:$U$399=\"DDS\")*('2. Assisted & Restricted Units'!$V$7:$V$399=\"60% AMI\"))","v":0},{"$f":"SUMPRODUCT(('2. Assisted & Restricted Units'!$E$7:$E$399=\"Ghocc\")*('2. Assisted & Restricted Units'!$U$7:$U$399=\"DPRLP\")*('2. Assisted & Restricted Units'!$V$7:$V$399=\"60% AMI\"))","v":0},{"$f":"SUMPRODUCT(('2. Assisted & Restricted Units'!$E$7:$E$399=\"Ghocc\")*('2. Assisted & Restricted Units'!$U$7:$U$399=\"FHDP\")*('2. Assisted & Restricted Units'!$V$7:$V$399=\"60% AMI\"))","v":0},{"$f":"SUMPRODUCT(('2. Assisted & Restricted Units'!$E$7:$E$399=\"Ghocc\")*('2. Assisted & Restricted Units'!$U$7:$U$399=\"FMTW\")*('2. Assisted & Restricted Units'!$V$7:$V$399=\"60% AMI\"))","v":0},null,{"$f":"SUMPRODUCT(('2. Assisted & Restricted Units'!$E$7:$E$399=\"Ghocc\")*('2. Assisted & Restricted Units'!$U$7:$U$399=\"HOME\")*('2. Assisted & Restricted Units'!$V$7:$V$399=\"60% AMI\"))","v":0},{"$f":"SUMPRODUCT(('2. Assisted & Restricted Units'!$E$7:$E$399=\"Ghocc\")*('2. Assisted & Restricted Units'!$U$7:$U$399=\"Market Rate\")*('2. Assisted & Restricted Units'!$V$7:$V$399=\"60% AMI\"))","v":0},{"$f":"SUMPRODUCT(('2. Assisted & Restricted Units'!$E$7:$E$399=\"Ghocc\")*('2. Assisted & Restricted Units'!$U$7:$U$399=\"MHP\")*('2. Assisted & Restricted Units'!$V$7:$V$399=\"60% AMI\"))","v":0},{"$f":"SUMPRODUCT(('2. Assisted & Restricted Units'!$E$7:$E$399=\"Ghocc\")*('2. Assisted & Restricted Units'!$U$7:$U$399=\"NonAssisted\")*('2. Assisted & Restricted Units'!$V$7:$V$399=\"60% AMI\"))","v":0},{"$f":"SUMPRODUCT(('2. Assisted & Restricted Units'!$E$7:$E$399=\"Ghocc\")*('2. Assisted & Restricted Units'!$U$7:$U$399=\"Other Restr\")*('2. Assisted & Restricted Units'!$V$7:$V$399=\"60% AMI\"))","v":0},{"$f":"SUMPRODUCT(('2. Assisted & Restricted Units'!$E$7:$E$399=\"Ghocc\")*('2. Assisted & Restricted Units'!$U$7:$U$399=\"RHCP-B\")*('2. Assisted & Restricted Units'!$V$7:$V$399=\"60% AMI\"))","v":0},{"$f":"SUMPRODUCT(('2. Assisted & Restricted Units'!$E$7:$E$399=\"Ghocc\")*('2. Assisted & Restricted Units'!$U$7:$U$399=\"SERA\")*('2. Assisted & Restricted Units'!$V$7:$V$399=\"60% AMI\"))","v":0},{"$f":"SUMPRODUCT(('2. Assisted & Restricted Units'!$E$7:$E$399=\"Ghocc\")*('2. Assisted & Restricted Units'!$U$7:$U$399=\"SUHRP\")*('2. Assisted & Restricted Units'!$V$7:$V$399=\"60% AMI\"))","v":0},{"$f":"SUMPRODUCT(('2. Assisted & Restricted Units'!$E$7:$E$399=\"Ghocc\")*('2. Assisted & Restricted Units'!$U$7:$U$399=\"TOD\")*('2. Assisted & Restricted Units'!$V$7:$V$399=\"60% AMI\"))","v":0},{"$f":"SUMPRODUCT(('2. Assisted & Restricted Units'!$E$7:$E$399=\"Ghocc\")*('2. Assisted & Restricted Units'!$U$7:$U$399=\"707-E\")*('2. Assisted & Restricted Units'!$V$7:$V$399=\"60% AMI\"))","v":0},{"$f":"SUMPRODUCT(('2. Assisted & Restricted Units'!$E$7:$E$399=\"Ghocc\")*('2. Assisted & Restricted Units'!$U$7:$U$399=\"707-N\")*('2. Assisted & Restricted Units'!$V$7:$V$399=\"60% AMI\"))","v":0}]
["Ghocc 80% AMI",{"$f":"SUMPRODUCT(('2. Assisted & Restricted Units'!$E$7:$E$399=\"Ghocc\")*('2. Assisted & Restricted Units'!$U$7:$U$399=\"CALDAP\")*('2. Assisted & Restricted Units'!$V$7:$V$399=\"80% AMI\"))","v":0},{"$f":"SUMPRODUCT(('2. Assisted & Restricted Units'!$E$7:$E$399=\"Ghocc\")*('2. Assisted & Restricted Units'!$U$7:$U$399=\"CHRP-R\")*('2. Assisted & Restricted Units'!$V$7:$V$399=\"80% AMI\"))","v":0},{"$f":"SUMPRODUCT(('2. Assisted & Restricted Units'!$E$7:$E$399=\"Ghocc\")*('2. Assisted & Restricted Units'!$U$7:$U$399=\"DDS\")*('2. Assisted & Restricted Units'!$V$7:$V$399=\"80% AMI\"))","v":0},{"$f":"SUMPRODUCT(('2. Assisted & Restricted Units'!$E$7:$E$399=\"Ghocc\")*('2. Assisted & Restricted Units'!$U$7:$U$399=\"DPRLP\")*('2. Assisted & Restricted Units'!$V$7:$V$399=\"80% AMI\"))","v":0},{"$f":"SUMPRODUCT(('2. Assisted & Restricted Units'!$E$7:$E$399=\"Ghocc\")*('2. Assisted & Restricted Units'!$U$7:$U$399=\"FHDP\")*('2. Assisted & Restricted Units'!$V$7:$V$399=\"80% AMI\"))","v":0},{"$f":"SUMPRODUCT(('2. Assisted & Restricted Units'!$E$7:$E$399=\"Ghocc\")*('2. Assisted & Restricted Units'!$U$7:$U$399=\"FMTW\")*('2. Assisted & Restricted Units'!$V$7:$V$399=\"80% AMI\"))","v":0},null,{"$f":"SUMPRODUCT(('2. Assisted & Restricted Units'!$E$7:$E$399=\"Ghocc\")*('2. Assisted & Restricted Units'!$U$7:$U$399=\"HOME\")*('2. Assisted & Restricted Units'!$V$7:$V$399=\"80% AMI\"))","v":0},{"$f":"SUMPRODUCT(('2. Assisted & Restricted Units'!$E$7:$E$399=\"Ghocc\")*('2. Assisted & Restricted Units'!$U$7:$U$399=\"Market Rate\")*('2. Assisted & Restricted Units'!$V$7:$V$399=\"80% AMI\"))","v":0},{"$f":"SUMPRODUCT(('2. Assisted & Restricted Units'!$E$7:$E$399=\"Ghocc\")*('2. Assisted & Restricted Units'!$U$7:$U$399=\"MHP\")*('2. Assisted & Restricted Units'!$V$7:$V$399=\"80% AMI\"))","v":0},{"$f":"SUMPRODUCT(('2. Assisted & Restricted Units'!$E$7:$E$399=\"Ghocc\")*('2. Assisted & Restricted Units'!$U$7:$U$399=\"NonAssisted\")*('2. Assisted & Restricted Units'!$V$7:$V$399=\"80% AMI\"))","v":0},{"$f":"SUMPRODUCT(('2. Assisted & Restricted Units'!$E$7:$E$399=\"Ghocc\")*('2. Assisted & Restricted Units'!$U$7:$U$399=\"Other Restr\")*('2. Assisted & Restricted Units'!$V$7:$V$399=\"80% AMI\"))","v":0},{"$f":"SUMPRODUCT(('2. Assisted & Restricted Units'!$E$7:$E$399=\"Ghocc\")*('2. Assisted & Restricted Units'!$U$7:$U$399=\"RHCP-B\")*('2. Assisted & Restricted Units'!$V$7:$V$399=\"80% AMI\"))","v":0},{"$f":"SUMPRODUCT(('2. Assisted & Restricted Units'!$E$7:$E$399=\"Ghocc\")*('2. Assisted & Restricted Units'!$U$7:$U$399=\"SERA\")*('2. Assisted & Restricted Units'!$V$7:$V$399=\"80% AMI\"))","v":0},{"$f":"SUMPRODUCT(('2. Assisted & Restricted Units'!$E$7:$E$399=\"Ghocc\")*('2. Assisted & Restricted Units'!$U$7:$U$399=\"SUHRP\")*('2. Assisted & Restricted Units'!$V$7:$V$399=\"80% AMI\"))","v":0},{"$f":"SUMPRODUCT(('2. Assisted & Restricted Units'!$E$7:$E$399=\"Ghocc\")*('2. Assisted & Restricted Units'!$U$7:$U$399=\"TOD\")*('2. Assisted & Restricted Units'!$V$7:$V$399=\"80% AMI\"))","v":0},{"$f":"SUMPRODUCT(('2. Assisted & Restricted Units'!$E$7:$E$399=\"Ghocc\")*('2. Assisted & Restricted Units'!$U$7:$U$399=\"707-E\")*('2. Assisted & Restricted Units'!$V$7:$V$399=\"80% AMI\"))","v":0},{"$f":"SUMPRODUCT(('2. Assisted & Restricted Units'!$E$7:$E$399=\"Ghocc\")*('2. Assisted & Restricted Units'!$U$7:$U$399=\"707-N\")*('2. Assisted & Restricted Units'!$V$7:$V$399=\"80% AMI\"))","v":0}]
["Ghocc 20% SMI",{"$f":"SUMPRODUCT(('2. Assisted & Restricted Units'!$E$7:$E$399=\"Ghocc\")*('2. Assisted & Restricted Units'!$U$7:$U$399=\"CALDAP\")*('2. Assisted & Restricted Units'!$V$7:$V$399=\"20% SMI\"))","v":0},{"$f":"SUMPRODUCT(('2. Assisted & Restricted Units'!$E$7:$E$399=\"Ghocc\")*('2. Assisted & Restricted Units'!$U$7:$U$399=\"CHRP-R\")*('2. Assisted & Restricted Units'!$V$7:$V$399=\"20% SMI\"))","v":0},{"$f":"SUMPRODUCT(('2. Assisted & Restricted Units'!$E$7:$E$399=\"Ghocc\")*('2. Assisted & Restricted Units'!$U$7:$U$399=\"DDS\")*('2. Assisted & Restricted Units'!$V$7:$V$399=\"20% SMI\"))","v":0},{"$f":"SUMPRODUCT(('2. Assisted & Restricted Units'!$E$7:$E$399=\"Ghocc\")*('2. Assisted & Restricted Units'!$U$7:$U$399=\"DPRLP\")*('2. Assisted & Restricted Units'!$V$7:$V$399=\"20% SMI\"))","v":0},{"$f":"SUMPRODUCT(('2. Assisted & Restricted Units'!$E$7:$E$399=\"Ghocc\")*('2. Assisted & Restricted Units'!$U$7:$U$399=\"FHDP\")*('2. Assisted & Restricted Units'!$V$7:$V$399=\"20% SMI\"))","v":0},{"$f":"SUMPRODUCT(('2. Assisted & Restricted Units'!$E$7:$E$399=\"Ghocc\")*('2. Assisted & Restricted Units'!$U$7:$U$399=\"FMTW\")*('2. Assisted & Restricted Units'!$V$7:$V$399=\"20% SMI\"))","v":0},null,{"$f":"SUMPRODUCT(('2. Assisted & Restricted Units'!$E$7:$E$399=\"Ghocc\")*('2. Assisted & Restricted Units'!$U$7:$U$399=\"HOME\")*('2. Assisted & Restricted Units'!$V$7:$V$399=\"20% SMI\"))","v":0},{"$f":"SUMPRODUCT(('2. Assisted & Restricted Units'!$E$7:$E$399=\"Ghocc\")*('2. Assisted & Restricted Units'!$U$7:$U$399=\"Market Rate\")*('2. Assisted & Restricted Units'!$V$7:$V$399=\"20% SMI\"))","v":0},{"$f":"SUMPRODUCT(('2. Assisted & Restricted Units'!$E$7:$E$399=\"Ghocc\")*('2. Assisted & Restricted Units'!$U$7:$U$399=\"MHP\")*('2. Assisted & Restricted Units'!$V$7:$V$399=\"20% SMI\"))","v":0},{"$f":"SUMPRODUCT(('2. Assisted & Restricted Units'!$E$7:$E$399=\"Ghocc\")*('2. Assisted & Restricted Units'!$U$7:$U$399=\"NonAssisted\")*('2. Assisted & Restricted Units'!$V$7:$V$399=\"20% SMI\"))","v":0},{"$f":"SUMPRODUCT(('2. Assisted & Restricted Units'!$E$7:$E$399=\"Ghocc\")*('2. Assisted & Restricted Units'!$U$7:$U$399=\"Other Restr\")*('2. Assisted & Restricted Units'!$V$7:$V$399=\"20% SMI\"))","v":0},{"$f":"SUMPRODUCT(('2. Assisted & Restricted Units'!$E$7:$E$399=\"Ghocc\")*('2. Assisted & Restricted Units'!$U$7:$U$399=\"RHCP-B\")*('2. Assisted & Restricted Units'!$V$7:$V$399=\"20% SMI\"))","v":0},{"$f":"SUMPRODUCT(('2. Assisted & Restricted Units'!$E$7:$E$399=\"Ghocc\")*('2. Assisted & Restricted Units'!$U$7:$U$399=\"SERA\")*('2. Assisted & Restricted Units'!$V$7:$V$399=\"20% SMI\"))","v":0},{"$f":"SUMPRODUCT(('2. Assisted & Restricted Units'!$E$7:$E$399=\"Ghocc\")*('2. Assisted & Restricted Units'!$U$7:$U$399=\"SUHRP\")*('2. Assisted & Restricted Units'!$V$7:$V$399=\"20% SMI\"))","v":0},{"$f":"SUMPRODUCT(('2. Assisted & Restricted Units'!$E$7:$E$399=\"Ghocc\")*('2. Assisted & Restricted Units'!$U$7:$U$399=\"TOD\")*('2. Assisted & Restricted Units'!$V$7:$V$399=\"20% SMI\"))","v":0},{"$f":"SUMPRODUCT(('2. Assisted & Restricted Units'!$E$7:$E$399=\"Ghocc\")*('2. Assisted & Restricted Units'!$U$7:$U$399=\"707-E\")*('2. Assisted & Restricted Units'!$V$7:$V$399=\"20% SMI\"))","v":0},{"$f":"SUMPRODUCT(('2. Assisted & Restricted Units'!$E$7:$E$399=\"Ghocc\")*('2. Assisted & Restricted Units'!$U$7:$U$399=\"707-N\")*('2. Assisted & Restricted Units'!$V$7:$V$399=\"20% SMI\"))","v":0}]
["Ghocc 25% SMI",{"$f":"SUMPRODUCT(('2. Assisted & Restricted Units'!$E$7:$E$399=\"Ghocc\")*('2. Assisted & Restricted Units'!$U$7:$U$399=\"CALDAP\")*('2. Assisted & Restricted Units'!$V$7:$V$399=\"25% SMI\"))","v":0},{"$f":"SUMPRODUCT(('2. Assisted & Restricted Units'!$E$7:$E$399=\"Ghocc\")*('2. Assisted & Restricted Units'!$U$7:$U$399=\"CHRP-R\")*('2. Assisted & Restricted Units'!$V$7:$V$399=\"25% SMI\"))","v":0},{"$f":"SUMPRODUCT(('2. Assisted & Restricted Units'!$E$7:$E$399=\"Ghocc\")*('2. Assisted & Restricted Units'!$U$7:$U$399=\"DDS\")*('2. Assisted & Restricted Units'!$V$7:$V$399=\"25% SMI\"))","v":0},{"$f":"SUMPRODUCT(('2. Assisted & Restricted Units'!$E$7:$E$399=\"Ghocc\")*('2. Assisted & Restricted Units'!$U$7:$U$399=\"DPRLP\")*('2. Assisted & Restricted Units'!$V$7:$V$399=\"25% SMI\"))","v":0},{"$f":"SUMPRODUCT(('2. Assisted & Restricted Units'!$E$7:$E$399=\"Ghocc\")*('2. Assisted & Restricted Units'!$U$7:$U$399=\"FHDP\")*('2. Assisted & Restricted Units'!$V$7:$V$399=\"25% SMI\"))","v":0},{"$f":"SUMPRODUCT(('2. Assisted & Restricted Units'!$E$7:$E$399=\"Ghocc\")*('2. Assisted & Restricted Units'!$U$7:$U$399=\"FMTW\")*('2. Assisted & Restricted Units'!$V$7:$V$399=\"25% SMI\"))","v":0},null,{"$f":"SUMPRODUCT(('2. Assisted & Restricted Units'!$E$7:$E$399=\"Ghocc\")*('2. Assisted & Restricted Units'!$U$7:$U$399=\"HOME\")*('2. Assisted & Restricted Units'!$V$7:$V$399=\"25% SMI\"))","v":0},{"$f":"SUMPRODUCT(('2. Assisted & Restricted Units'!$E$7:$E$399=\"Ghocc\")*('2. Assisted & Restricted Units'!$U$7:$U$399=\"Market Rate\")*('2. Assisted & Restricted Units'!$V$7:$V$399=\"25% SMI\"))","v":0},{"$f":"SUMPRODUCT(('2. Assisted & Restricted Units'!$E$7:$E$399=\"Ghocc\")*('2. Assisted & Restricted Units'!$U$7:$U$399=\"MHP\")*('2. Assisted & Restricted Units'!$V$7:$V$399=\"25% SMI\"))","v":0},{"$f":"SUMPRODUCT(('2. Assisted & Restricted Units'!$E$7:$E$399=\"Ghocc\")*('2. Assisted & Restricted Units'!$U$7:$U$399=\"NonAssisted\")*('2. Assisted & Restricted Units'!$V$7:$V$399=\"25% SMI\"))","v":0},{"$f":"SUMPRODUCT(('2. Assisted & Restricted Units'!$E$7:$E$399=\"Ghocc\")*('2. Assisted & Restricted Units'!$U$7:$U$399=\"Other Restr\")*('2. Assisted & Restricted Units'!$V$7:$V$399=\"25% SMI\"))","v":0},{"$f":"SUMPRODUCT(('2. Assisted & Restricted Units'!$E$7:$E$399=\"Ghocc\")*('2. Assisted & Restricted Units'!$U$7:$U$399=\"RHCP-B\")*('2. Assisted & Restricted Units'!$V$7:$V$399=\"25% SMI\"))","v":0},{"$f":"SUMPRODUCT(('2. Assisted & Restricted Units'!$E$7:$E$399=\"Ghocc\")*('2. Assisted & Restricted Units'!$U$7:$U$399=\"SERA\")*('2. Assisted & Restricted Units'!$V$7:$V$399=\"25% SMI\"))","v":0},{"$f":"SUMPRODUCT(('2. Assisted & Restricted Units'!$E$7:$E$399=\"Ghocc\")*('2. Assisted & Restricted Units'!$U$7:$U$399=\"SUHRP\")*('2. Assisted & Restricted Units'!$V$7:$V$399=\"25% SMI\"))","v":0},{"$f":"SUMPRODUCT(('2. Assisted & Restricted Units'!$E$7:$E$399=\"Ghocc\")*('2. Assisted & Restricted Units'!$U$7:$U$399=\"TOD\")*('2. Assisted & Restricted Units'!$V$7:$V$399=\"25% SMI\"))","v":0},{"$f":"SUMPRODUCT(('2. Assisted & Restricted Units'!$E$7:$E$399=\"Ghocc\")*('2. Assisted & Restricted Units'!$U$7:$U$399=\"707-E\")*('2. Assisted & Restricted Units'!$V$7:$V$399=\"25% SMI\"))","v":0},{"$f":"SUMPRODUCT(('2. Assisted & Restricted Units'!$E$7:$E$399=\"Ghocc\")*('2. Assisted & Restricted Units'!$U$7:$U$399=\"707-N\")*('2. Assisted & Restricted Units'!$V$7:$V$399=\"25% SMI\"))","v":0}]
["Ghocc 30% SMI",{"$f":"SUMPRODUCT(('2. Assisted & Restricted Units'!$E$7:$E$399=\"Ghocc\")*('2. Assisted & Restricted Units'!$U$7:$U$399=\"CALDAP\")*('2. Assisted & Restricted Units'!$V$7:$V$399=\"30% SMI\"))","v":0},{"$f":"SUMPRODUCT(('2. Assisted & Restricted Units'!$E$7:$E$399=\"Ghocc\")*('2. Assisted & Restricted Units'!$U$7:$U$399=\"CHRP-R\")*('2. Assisted & Restricted Units'!$V$7:$V$399=\"30% SMI\"))","v":0},{"$f":"SUMPRODUCT(('2. Assisted & Restricted Units'!$E$7:$E$399=\"Ghocc\")*('2. Assisted & Restricted Units'!$U$7:$U$399=\"DDS\")*('2. Assisted & Restricted Units'!$V$7:$V$399=\"30% SMI\"))","v":0},{"$f":"SUMPRODUCT(('2. Assisted & Restricted Units'!$E$7:$E$399=\"Ghocc\")*('2. Assisted & Restricted Units'!$U$7:$U$399=\"DPRLP\")*('2. Assisted & Restricted Units'!$V$7:$V$399=\"30% SMI\"))","v":0},{"$f":"SUMPRODUCT(('2. Assisted & Restricted Units'!$E$7:$E$399=\"Ghocc\")*('2. Assisted & Restricted Units'!$U$7:$U$399=\"FHDP\")*('2. Assisted & Restricted Units'!$V$7:$V$399=\"30% SMI\"))","v":0},{"$f":"SUMPRODUCT(('2. Assisted & Restricted Units'!$E$7:$E$399=\"Ghocc\")*('2. Assisted & Restricted Units'!$U$7:$U$399=\"FMTW\")*('2. Assisted & Restricted Units'!$V$7:$V$399=\"30% SMI\"))","v":0},null,{"$f":"SUMPRODUCT(('2. Assisted & Restricted Units'!$E$7:$E$399=\"Ghocc\")*('2. Assisted & Restricted Units'!$U$7:$U$399=\"HOME\")*('2. Assisted & Restricted Units'!$V$7:$V$399=\"30% SMI\"))","v":0},{"$f":"SUMPRODUCT(('2. Assisted & Restricted Units'!$E$7:$E$399=\"Ghocc\")*('2. Assisted & Restricted Units'!$U$7:$U$399=\"Market Rate\")*('2. Assisted & Restricted Units'!$V$7:$V$399=\"30% SMI\"))","v":0},{"$f":"SUMPRODUCT(('2. Assisted & Restricted Units'!$E$7:$E$399=\"Ghocc\")*('2. Assisted & Restricted Units'!$U$7:$U$399=\"MHP\")*('2. Assisted & Restricted Units'!$V$7:$V$399=\"30% SMI\"))","v":0},{"$f":"SUMPRODUCT(('2. Assisted & Restricted Units'!$E$7:$E$399=\"Ghocc\")*('2. Assisted & Restricted Units'!$U$7:$U$399=\"NonAssisted\")*('2. Assisted & Restricted Units'!$V$7:$V$399=\"30% SMI\"))","v":0},{"$f":"SUMPRODUCT(('2. Assisted & Restricted Units'!$E$7:$E$399=\"Ghocc\")*('2. Assisted & Restricted Units'!$U$7:$U$399=\"Other Restr\")*('2. Assisted & Restricted Units'!$V$7:$V$399=\"30% SMI\"))","v":0},{"$f":"SUMPRODUCT(('2. Assisted & Restricted Units'!$E$7:$E$399=\"Ghocc\")*('2. Assisted & Restricted Units'!$U$7:$U$399=\"RHCP-B\")*('2. Assisted & Restricted Units'!$V$7:$V$399=\"30% SMI\"))","v":0},{"$f":"SUMPRODUCT(('2. Assisted & Restricted Units'!$E$7:$E$399=\"Ghocc\")*('2. Assisted & Restricted Units'!$U$7:$U$399=\"SERA\")*('2. Assisted & Restricted Units'!$V$7:$V$399=\"30% SMI\"))","v":0},{"$f":"SUMPRODUCT(('2. Assisted & Restricted Units'!$E$7:$E$399=\"Ghocc\")*('2. Assisted & Restricted Units'!$U$7:$U$399=\"SUHRP\")*('2. Assisted & Restricted Units'!$V$7:$V$399=\"30% SMI\"))","v":0},{"$f":"SUMPRODUCT(('2. Assisted & Restricted Units'!$E$7:$E$399=\"Ghocc\")*('2. Assisted & Restricted Units'!$U$7:$U$399=\"TOD\")*('2. Assisted & Restricted Units'!$V$7:$V$399=\"30% SMI\"))","v":0},{"$f":"SUMPRODUCT(('2. Assisted & Restricted Units'!$E$7:$E$399=\"Ghocc\")*('2. Assisted & Restricted Units'!$U$7:$U$399=\"707-E\")*('2. Assisted & Restricted Units'!$V$7:$V$399=\"30% SMI\"))","v":0},{"$f":"SUMPRODUCT(('2. Assisted & Restricted Units'!$E$7:$E$399=\"Ghocc\")*('2. Assisted & Restricted Units'!$U$7:$U$399=\"707-N\")*('2. Assisted & Restricted Units'!$V$7:$V$399=\"30% SMI\"))","v":0}]
["Ghocc 35% SMI",{"$f":"SUMPRODUCT(('2. Assisted & Restricted Units'!$E$7:$E$399=\"Ghocc\")*('2. Assisted & Restricted Units'!$U$7:$U$399=\"CALDAP\")*('2. Assisted & Restricted Units'!$V$7:$V$399=\"35% SMI\"))","v":0},{"$f":"SUMPRODUCT(('2. Assisted & Restricted Units'!$E$7:$E$399=\"Ghocc\")*('2. Assisted & Restricted Units'!$U$7:$U$399=\"CHRP-R\")*('2. Assisted & Restricted Units'!$V$7:$V$399=\"35% SMI\"))","v":0},{"$f":"SUMPRODUCT(('2. Assisted & Restricted Units'!$E$7:$E$399=\"Ghocc\")*('2. Assisted & Restricted Units'!$U$7:$U$399=\"DDS\")*('2. Assisted & Restricted Units'!$V$7:$V$399=\"35% SMI\"))","v":0},{"$f":"SUMPRODUCT(('2. Assisted & Restricted Units'!$E$7:$E$399=\"Ghocc\")*('2. Assisted & Restricted Units'!$U$7:$U$399=\"DPRLP\")*('2. Assisted & Restricted Units'!$V$7:$V$399=\"35% SMI\"))","v":0},{"$f":"SUMPRODUCT(('2. Assisted & Restricted Units'!$E$7:$E$399=\"Ghocc\")*('2. Assisted & Restricted Units'!$U$7:$U$399=\"FHDP\")*('2. Assisted & Restricted Units'!$V$7:$V$399=\"35% SMI\"))","v":0},{"$f":"SUMPRODUCT(('2. Assisted & Restricted Units'!$E$7:$E$399=\"Ghocc\")*('2. Assisted & Restricted Units'!$U$7:$U$399=\"FMTW\")*('2. Assisted & Restricted Units'!$V$7:$V$399=\"35% SMI\"))","v":0},null,{"$f":"SUMPRODUCT(('2. Assisted & Restricted Units'!$E$7:$E$399=\"Ghocc\")*('2. Assisted & Restricted Units'!$U$7:$U$399=\"HOME\")*('2. Assisted & Restricted Units'!$V$7:$V$399=\"35% SMI\"))","v":0},{"$f":"SUMPRODUCT(('2. Assisted & Restricted Units'!$E$7:$E$399=\"Ghocc\")*('2. Assisted & Restricted Units'!$U$7:$U$399=\"Market Rate\")*('2. Assisted & Restricted Units'!$V$7:$V$399=\"35% SMI\"))","v":0},{"$f":"SUMPRODUCT(('2. Assisted & Restricted Units'!$E$7:$E$399=\"Ghocc\")*('2. Assisted & Restricted Units'!$U$7:$U$399=\"MHP\")*('2. Assisted & Restricted Units'!$V$7:$V$399=\"35% SMI\"))","v":0},{"$f":"SUMPRODUCT(('2. Assisted & Restricted Units'!$E$7:$E$399=\"Ghocc\")*('2. Assisted & Restricted Units'!$U$7:$U$399=\"NonAssisted\")*('2. Assisted & Restricted Units'!$V$7:$V$399=\"35% SMI\"))","v":0},{"$f":"SUMPRODUCT(('2. Assisted & Restricted Units'!$E$7:$E$399=\"Ghocc\")*('2. Assisted & Restricted Units'!$U$7:$U$399=\"Other Restr\")*('2. Assisted & Restricted Units'!$V$7:$V$399=\"35% SMI\"))","v":0},{"$f":"SUMPRODUCT(('2. Assisted & Restricted Units'!$E$7:$E$399=\"Ghocc\")*('2. Assisted & Restricted Units'!$U$7:$U$399=\"RHCP-B\")*('2. Assisted & Restricted Units'!$V$7:$V$399=\"35% SMI\"))","v":0},{"$f":"SUMPRODUCT(('2. Assisted & Restricted Units'!$E$7:$E$399=\"Ghocc\")*('2. Assisted & Restricted Units'!$U$7:$U$399=\"SERA\")*('2. Assisted & Restricted Units'!$V$7:$V$399=\"35% SMI\"))","v":0},{"$f":"SUMPRODUCT(('2. Assisted & Restricted Units'!$E$7:$E$399=\"Ghocc\")*('2. Assisted & Restricted Units'!$U$7:$U$399=\"SUHRP\")*('2. Assisted & Restricted Units'!$V$7:$V$399=\"35% SMI\"))","v":0},{"$f":"SUMPRODUCT(('2. Assisted & Restricted Units'!$E$7:$E$399=\"Ghocc\")*('2. Assisted & Restricted Units'!$U$7:$U$399=\"TOD\")*('2. Assisted & Restricted Units'!$V$7:$V$399=\"35% SMI\"))","v":0},{"$f":"SUMPRODUCT(('2. Assisted & Restricted Units'!$E$7:$E$399=\"Ghocc\")*('2. Assisted & Restricted Units'!$U$7:$U$399=\"707-E\")*('2. Assisted & Restricted Units'!$V$7:$V$399=\"35% SMI\"))","v":0},{"$f":"SUMPRODUCT(('2. Assisted & Restricted Units'!$E$7:$E$399=\"Ghocc\")*('2. Assisted & Restricted Units'!$U$7:$U$399=\"707-N\")*('2. Assisted & Restricted Units'!$V$7:$V$399=\"35% SMI\"))","v":0}]
["Ghocc 40% SMI",{"$f":"SUMPRODUCT(('2. Assisted & Restricted Units'!$E$7:$E$399=\"Ghocc\")*('2. Assisted & Restricted Units'!$U$7:$U$399=\"CALDAP\")*('2. Assisted & Restricted Units'!$V$7:$V$399=\"40% SMI\"))","v":0},{"$f":"SUMPRODUCT(('2. Assisted & Restricted Units'!$E$7:$E$399=\"Ghocc\")*('2. Assisted & Restricted Units'!$U$7:$U$399=\"CHRP-R\")*('2. Assisted & Restricted Units'!$V$7:$V$399=\"40% SMI\"))","v":0},{"$f":"SUMPRODUCT(('2. Assisted & Restricted Units'!$E$7:$E$399=\"Ghocc\")*('2. Assisted & Restricted Units'!$U$7:$U$399=\"DDS\")*('2. Assisted & Restricted Units'!$V$7:$V$399=\"40% SMI\"))","v":0},{"$f":"SUMPRODUCT(('2. Assisted & Restricted Units'!$E$7:$E$399=\"Ghocc\")*('2. Assisted & Restricted Units'!$U$7:$U$399=\"DPRLP\")*('2. Assisted & Restricted Units'!$V$7:$V$399=\"40% SMI\"))","v":0},{"$f":"SUMPRODUCT(('2. Assisted & Restricted Units'!$E$7:$E$399=\"Ghocc\")*('2. Assisted & Restricted Units'!$U$7:$U$399=\"FHDP\")*('2. Assisted & Restricted Units'!$V$7:$V$399=\"40% SMI\"))","v":0},{"$f":"SUMPRODUCT(('2. Assisted & Restricted Units'!$E$7:$E$399=\"Ghocc\")*('2. Assisted & Restricted Units'!$U$7:$U$399=\"FMTW\")*('2. Assisted & Restricted Units'!$V$7:$V$399=\"40% SMI\"))","v":0},null,{"$f":"SUMPRODUCT(('2. Assisted & Restricted Units'!$E$7:$E$399=\"Ghocc\")*('2. Assisted & Restricted Units'!$U$7:$U$399=\"HOME\")*('2. Assisted & Restricted Units'!$V$7:$V$399=\"40% SMI\"))","v":0},{"$f":"SUMPRODUCT(('2. Assisted & Restricted Units'!$E$7:$E$399=\"Ghocc\")*('2. Assisted & Restricted Units'!$U$7:$U$399=\"Market Rate\")*('2. Assisted & Restricted Units'!$V$7:$V$399=\"40% SMI\"))","v":0},{"$f":"SUMPRODUCT(('2. Assisted & Restricted Units'!$E$7:$E$399=\"Ghocc\")*('2. Assisted & Restricted Units'!$U$7:$U$399=\"MHP\")*('2. Assisted & Restricted Units'!$V$7:$V$399=\"40% SMI\"))","v":0},{"$f":"SUMPRODUCT(('2. Assisted & Restricted Units'!$E$7:$E$399=\"Ghocc\")*('2. Assisted & Restricted Units'!$U$7:$U$399=\"NonAssisted\")*('2. Assisted & Restricted Units'!$V$7:$V$399=\"40% SMI\"))","v":0},{"$f":"SUMPRODUCT(('2. Assisted & Restricted Units'!$E$7:$E$399=\"Ghocc\")*('2. Assisted & Restricted Units'!$U$7:$U$399=\"Other Restr\")*('2. Assisted & Restricted Units'!$V$7:$V$399=\"40% SMI\"))","v":0},{"$f":"SUMPRODUCT(('2. Assisted & Restricted Units'!$E$7:$E$399=\"Ghocc\")*('2. Assisted & Restricted Units'!$U$7:$U$399=\"RHCP-B\")*('2. Assisted & Restricted Units'!$V$7:$V$399=\"40% SMI\"))","v":0},{"$f":"SUMPRODUCT(('2. Assisted & Restricted Units'!$E$7:$E$399=\"Ghocc\")*('2. Assisted & Restricted Units'!$U$7:$U$399=\"SERA\")*('2. Assisted & Restricted Units'!$V$7:$V$399=\"40% SMI\"))","v":0},{"$f":"SUMPRODUCT(('2. Assisted & Restricted Units'!$E$7:$E$399=\"Ghocc\")*('2. Assisted & Restricted Units'!$U$7:$U$399=\"SUHRP\")*('2. Assisted & Restricted Units'!$V$7:$V$399=\"40% SMI\"))","v":0},{"$f":"SUMPRODUCT(('2. Assisted & Restricted Units'!$E$7:$E$399=\"Ghocc\")*('2. Assisted & Restricted Units'!$U$7:$U$399=\"TOD\")*('2. Assisted & Restricted Units'!$V$7:$V$399=\"40% SMI\"))","v":0},{"$f":"SUMPRODUCT(('2. Assisted & Restricted Units'!$E$7:$E$399=\"Ghocc\")*('2. Assisted & Restricted Units'!$U$7:$U$399=\"707-E\")*('2. Assisted & Restricted Units'!$V$7:$V$399=\"40% SMI\"))","v":0},{"$f":"SUMPRODUCT(('2. Assisted & Restricted Units'!$E$7:$E$399=\"Ghocc\")*('2. Assisted & Restricted Units'!$U$7:$U$399=\"707-N\")*('2. Assisted & Restricted Units'!$V$7:$V$399=\"40% SMI\"))","v":0}]
["Ghocc 45% SMI",{"$f":"SUMPRODUCT(('2. Assisted & Restricted Units'!$E$7:$E$399=\"Ghocc\")*('2. Assisted & Restricted Units'!$U$7:$U$399=\"CALDAP\")*('2. Assisted & Restricted Units'!$V$7:$V$399=\"45% SMI\"))","v":0},{"$f":"SUMPRODUCT(('2. Assisted & Restricted Units'!$E$7:$E$399=\"Ghocc\")*('2. Assisted & Restricted Units'!$U$7:$U$399=\"CHRP-R\")*('2. Assisted & Restricted Units'!$V$7:$V$399=\"45% SMI\"))","v":0},{"$f":"SUMPRODUCT(('2. Assisted & Restricted Units'!$E$7:$E$399=\"Ghocc\")*('2. Assisted & Restricted Units'!$U$7:$U$399=\"DDS\")*('2. Assisted & Restricted Units'!$V$7:$V$399=\"45% SMI\"))","v":0},{"$f":"SUMPRODUCT(('2. Assisted & Restricted Units'!$E$7:$E$399=\"Ghocc\")*('2. Assisted & Restricted Units'!$U$7:$U$399=\"DPRLP\")*('2. Assisted & Restricted Units'!$V$7:$V$399=\"45% SMI\"))","v":0},{"$f":"SUMPRODUCT(('2. Assisted & Restricted Units'!$E$7:$E$399=\"Ghocc\")*('2. Assisted & Restricted Units'!$U$7:$U$399=\"FHDP\")*('2. Assisted & Restricted Units'!$V$7:$V$399=\"45% SMI\"))","v":0},{"$f":"SUMPRODUCT(('2. Assisted & Restricted Units'!$E$7:$E$399=\"Ghocc\")*('2. Assisted & Restricted Units'!$U$7:$U$399=\"FMTW\")*('2. Assisted & Restricted Units'!$V$7:$V$399=\"45% SMI\"))","v":0},null,{"$f":"SUMPRODUCT(('2. Assisted & Restricted Units'!$E$7:$E$399=\"Ghocc\")*('2. Assisted & Restricted Units'!$U$7:$U$399=\"HOME\")*('2. Assisted & Restricted Units'!$V$7:$V$399=\"45% SMI\"))","v":0},{"$f":"SUMPRODUCT(('2. Assisted & Restricted Units'!$E$7:$E$399=\"Ghocc\")*('2. Assisted & Restricted Units'!$U$7:$U$399=\"Market Rate\")*('2. Assisted & Restricted Units'!$V$7:$V$399=\"45% SMI\"))","v":0},{"$f":"SUMPRODUCT(('2. Assisted & Restricted Units'!$E$7:$E$399=\"Ghocc\")*('2. Assisted & Restricted Units'!$U$7:$U$399=\"MHP\")*('2. Assisted & Restricted Units'!$V$7:$V$399=\"45% SMI\"))","v":0},{"$f":"SUMPRODUCT(('2. Assisted & Restricted Units'!$E$7:$E$399=\"Ghocc\")*('2. Assisted & Restricted Units'!$U$7:$U$399=\"NonAssisted\")*('2. Assisted & Restricted Units'!$V$7:$V$399=\"45% SMI\"))","v":0},{"$f":"SUMPRODUCT(('2. Assisted & Restricted Units'!$E$7:$E$399=\"Ghocc\")*('2. Assisted & Restricted Units'!$U$7:$U$399=\"Other Restr\")*('2. Assisted & Restricted Units'!$V$7:$V$399=\"45% SMI\"))","v":0},{"$f":"SUMPRODUCT(('2. Assisted & Restricted Units'!$E$7:$E$399=\"Ghocc\")*('2. Assisted & Restricted Units'!$U$7:$U$399=\"RHCP-B\")*('2. Assisted & Restricted Units'!$V$7:$V$399=\"45% SMI\"))","v":0},{"$f":"SUMPRODUCT(('2. Assisted & Restricted Units'!$E$7:$E$399=\"Ghocc\")*('2. Assisted & Restricted Units'!$U$7:$U$399=\"SERA\")*('2. Assisted & Restricted Units'!$V$7:$V$399=\"45% SMI\"))","v":0},{"$f":"SUMPRODUCT(('2. Assisted & Restricted Units'!$E$7:$E$399=\"Ghocc\")*('2. Assisted & Restricted Units'!$U$7:$U$399=\"SUHRP\")*('2. Assisted & Restricted Units'!$V$7:$V$399=\"45% SMI\"))","v":0},{"$f":"SUMPRODUCT(('2. Assisted & Restricted Units'!$E$7:$E$399=\"Ghocc\")*('2. Assisted & Restricted Units'!$U$7:$U$399=\"TOD\")*('2. Assisted & Restricted Units'!$V$7:$V$399=\"45% SMI\"))","v":0},{"$f":"SUMPRODUCT(('2. Assisted & Restricted Units'!$E$7:$E$399=\"Ghocc\")*('2. Assisted & Restricted Units'!$U$7:$U$399=\"707-E\")*('2. Assisted & Restricted Units'!$V$7:$V$399=\"45% SMI\"))","v":0},{"$f":"SUMPRODUCT(('2. Assisted & Restricted Units'!$E$7:$E$399=\"Ghocc\")*('2. Assisted & Restricted Units'!$U$7:$U$399=\"707-N\")*('2. Assisted & Restricted Units'!$V$7:$V$399=\"45% SMI\"))","v":0}]
["Ghocc 50% SMI",{"$f":"SUMPRODUCT(('2. Assisted & Restricted Units'!$E$7:$E$399=\"Ghocc\")*('2. Assisted & Restricted Units'!$U$7:$U$399=\"CALDAP\")*('2. Assisted & Restricted Units'!$V$7:$V$399=\"50% SMI\"))","v":0},{"$f":"SUMPRODUCT(('2. Assisted & Restricted Units'!$E$7:$E$399=\"Ghocc\")*('2. Assisted & Restricted Units'!$U$7:$U$399=\"CHRP-R\")*('2. Assisted & Restricted Units'!$V$7:$V$399=\"50% SMI\"))","v":0},{"$f":"SUMPRODUCT(('2. Assisted & Restricted Units'!$E$7:$E$399=\"Ghocc\")*('2. Assisted & Restricted Units'!$U$7:$U$399=\"DDS\")*('2. Assisted & Restricted Units'!$V$7:$V$399=\"50% SMI\"))","v":0},{"$f":"SUMPRODUCT(('2. Assisted & Restricted Units'!$E$7:$E$399=\"Ghocc\")*('2. Assisted & Restricted Units'!$U$7:$U$399=\"DPRLP\")*('2. Assisted & Restricted Units'!$V$7:$V$399=\"50% SMI\"))","v":0},{"$f":"SUMPRODUCT(('2. Assisted & Restricted Units'!$E$7:$E$399=\"Ghocc\")*('2. Assisted & Restricted Units'!$U$7:$U$399=\"FHDP\")*('2. Assisted & Restricted Units'!$V$7:$V$399=\"50% SMI\"))","v":0},{"$f":"SUMPRODUCT(('2. Assisted & Restricted Units'!$E$7:$E$399=\"Ghocc\")*('2. Assisted & Restricted Units'!$U$7:$U$399=\"FMTW\")*('2. Assisted & Restricted Units'!$V$7:$V$399=\"50% SMI\"))","v":0},null,{"$f":"SUMPRODUCT(('2. Assisted & Restricted Units'!$E$7:$E$399=\"Ghocc\")*('2. Assisted & Restricted Units'!$U$7:$U$399=\"HOME\")*('2. Assisted & Restricted Units'!$V$7:$V$399=\"50% SMI\"))","v":0},{"$f":"SUMPRODUCT(('2. Assisted & Restricted Units'!$E$7:$E$399=\"Ghocc\")*('2. Assisted & Restricted Units'!$U$7:$U$399=\"Market Rate\")*('2. Assisted & Restricted Units'!$V$7:$V$399=\"50% SMI\"))","v":0},{"$f":"SUMPRODUCT(('2. Assisted & Restricted Units'!$E$7:$E$399=\"Ghocc\")*('2. Assisted & Restricted Units'!$U$7:$U$399=\"MHP\")*('2. Assisted & Restricted Units'!$V$7:$V$399=\"50% SMI\"))","v":0},{"$f":"SUMPRODUCT(('2. Assisted & Restricted Units'!$E$7:$E$399=\"Ghocc\")*('2. Assisted & Restricted Units'!$U$7:$U$399=\"NonAssisted\")*('2. Assisted & Restricted Units'!$V$7:$V$399=\"50% SMI\"))","v":0},{"$f":"SUMPRODUCT(('2. Assisted & Restricted Units'!$E$7:$E$399=\"Ghocc\")*('2. Assisted & Restricted Units'!$U$7:$U$399=\"Other Restr\")*('2. Assisted & Restricted Units'!$V$7:$V$399=\"50% SMI\"))","v":0},{"$f":"SUMPRODUCT(('2. Assisted & Restricted Units'!$E$7:$E$399=\"Ghocc\")*('2. Assisted & Restricted Units'!$U$7:$U$399=\"RHCP-B\")*('2. Assisted & Restricted Units'!$V$7:$V$399=\"50% SMI\"))","v":0},{"$f":"SUMPRODUCT(('2. Assisted & Restricted Units'!$E$7:$E$399=\"Ghocc\")*('2. Assisted & Restricted Units'!$U$7:$U$399=\"SERA\")*('2. Assisted & Restricted Units'!$V$7:$V$399=\"50% SMI\"))","v":0},{"$f":"SUMPRODUCT(('2. Assisted & Restricted Units'!$E$7:$E$399=\"Ghocc\")*('2. Assisted & Restricted Units'!$U$7:$U$399=\"SUHRP\")*('2. Assisted & Restricted Units'!$V$7:$V$399=\"50% SMI\"))","v":0},{"$f":"SUMPRODUCT(('2. Assisted & Restricted Units'!$E$7:$E$399=\"Ghocc\")*('2. Assisted & Restricted Units'!$U$7:$U$399=\"TOD\")*('2. Assisted & Restricted Units'!$V$7:$V$399=\"50% SMI\"))","v":0},{"$f":"SUMPRODUCT(('2. Assisted & Restricted Units'!$E$7:$E$399=\"Ghocc\")*('2. Assisted & Restricted Units'!$U$7:$U$399=\"707-E\")*('2. Assisted & Restricted Units'!$V$7:$V$399=\"50% SMI\"))","v":0},{"$f":"SUMPRODUCT(('2. Assisted & Restricted Units'!$E$7:$E$399=\"Ghocc\")*('2. Assisted & Restricted Units'!$U$7:$U$399=\"707-N\")*('2. Assisted & Restricted Units'!$V$7:$V$399=\"50% SMI\"))","v":0}]
["Ghocc 100% SMI",{"$f":"SUMPRODUCT(('2. Assisted & Restricted Units'!$E$7:$E$399=\"Ghocc\")*('2. Assisted & Restricted Units'!$U$7:$U$399=\"CALDAP\")*('2. Assisted & Restricted Units'!$V$7:$V$399=\"100% SMI\"))","v":0},{"$f":"SUMPRODUCT(('2. Assisted & Restricted Units'!$E$7:$E$399=\"Ghocc\")*('2. Assisted & Restricted Units'!$U$7:$U$399=\"CHRP-R\")*('2. Assisted & Restricted Units'!$V$7:$V$399=\"100% SMI\"))","v":0},{"$f":"SUMPRODUCT(('2. Assisted & Restricted Units'!$E$7:$E$399=\"Ghocc\")*('2. Assisted & Restricted Units'!$U$7:$U$399=\"DDS\")*('2. Assisted & Restricted Units'!$V$7:$V$399=\"100% SMI\"))","v":0},{"$f":"SUMPRODUCT(('2. Assisted & Restricted Units'!$E$7:$E$399=\"Ghocc\")*('2. Assisted & Restricted Units'!$U$7:$U$399=\"DPRLP\")*('2. Assisted & Restricted Units'!$V$7:$V$399=\"100% SMI\"))","v":0},{"$f":"SUMPRODUCT(('2. Assisted & Restricted Units'!$E$7:$E$399=\"Ghocc\")*('2. Assisted & Restricted Units'!$U$7:$U$399=\"FHDP\")*('2. Assisted & Restricted Units'!$V$7:$V$399=\"100% SMI\"))","v":0},{"$f":"SUMPRODUCT(('2. Assisted & Restricted Units'!$E$7:$E$399=\"Ghocc\")*('2. Assisted & Restricted Units'!$U$7:$U$399=\"FMTW\")*('2. Assisted & Restricted Units'!$V$7:$V$399=\"100% SMI\"))","v":0},null,{"$f":"SUMPRODUCT(('2. Assisted & Restricted Units'!$E$7:$E$399=\"Ghocc\")*('2. Assisted & Restricted Units'!$U$7:$U$399=\"HOME\")*('2. Assisted & Restricted Units'!$V$7:$V$399=\"100% SMI\"))","v":0},{"$f":"SUMPRODUCT(('2. Assisted & Restricted Units'!$E$7:$E$399=\"Ghocc\")*('2. Assisted & Restricted Units'!$U$7:$U$399=\"Market Rate\")*('2. Assisted & Restricted Units'!$V$7:$V$399=\"100% SMI\"))","v":0},{"$f":"SUMPRODUCT(('2. Assisted & Restricted Units'!$E$7:$E$399=\"Ghocc\")*('2. Assisted & Restricted Units'!$U$7:$U$399=\"MHP\")*('2. Assisted & Restricted Units'!$V$7:$V$399=\"100% SMI\"))","v":0},{"$f":"SUMPRODUCT(('2. Assisted & Restricted Units'!$E$7:$E$399=\"Ghocc\")*('2. Assisted & Restricted Units'!$U$7:$U$399=\"NonAssisted\")*('2. Assisted & Restricted Units'!$V$7:$V$399=\"100% SMI\"))","v":0},{"$f":"SUMPRODUCT(('2. Assisted & Restricted Units'!$E$7:$E$399=\"Ghocc\")*('2. Assisted & Restricted Units'!$U$7:$U$399=\"Other Restr\")*('2. Assisted & Restricted Units'!$V$7:$V$399=\"100% SMI\"))","v":0},{"$f":"SUMPRODUCT(('2. Assisted & Restricted Units'!$E$7:$E$399=\"Ghocc\")*('2. Assisted & Restricted Units'!$U$7:$U$399=\"RHCP-B\")*('2. Assisted & Restricted Units'!$V$7:$V$399=\"100% SMI\"))","v":0},{"$f":"SUMPRODUCT(('2. Assisted & Restricted Units'!$E$7:$E$399=\"Ghocc\")*('2. Assisted & Restricted Units'!$U$7:$U$399=\"SERA\")*('2. Assisted & Restricted Units'!$V$7:$V$399=\"100% SMI\"))","v":0},{"$f":"SUMPRODUCT(('2. Assisted & Restricted Units'!$E$7:$E$399=\"Ghocc\")*('2. Assisted & Restricted Units'!$U$7:$U$399=\"SUHRP\")*('2. Assisted & Restricted Units'!$V$7:$V$399=\"100% SMI\"))","v":0},{"$f":"SUMPRODUCT(('2. Assisted & Restricted Units'!$E$7:$E$399=\"Ghocc\")*('2. Assisted & Restricted Units'!$U$7:$U$399=\"TOD\")*('2. Assisted & Restricted Units'!$V$7:$V$399=\"100% SMI\"))","v":0},{"$f":"SUMPRODUCT(('2. Assisted & Restricted Units'!$E$7:$E$399=\"Ghocc\")*('2. Assisted & Restricted Units'!$U$7:$U$399=\"707-E\")*('2. Assisted & Restricted Units'!$V$7:$V$399=\"100% SMI\"))","v":0},{"$f":"SUMPRODUCT(('2. Assisted & Restricted Units'!$E$7:$E$399=\"Ghocc\")*('2. Assisted & Restricted Units'!$U$7:$U$399=\"707-N\")*('2. Assisted & Restricted Units'!$V$7:$V$399=\"100% SMI\"))","v":0}]
["Ghocc VLI HOME",{"$f":"SUMPRODUCT(('2. Assisted & Restricted Units'!$E$7:$E$399=\"Ghocc\")*('2. Assisted & Restricted Units'!$U$7:$U$399=\"CALDAP\")*('2. Assisted & Restricted Units'!$V$7:$V$399=\"VLI HOME\"))","v":0},{"$f":"SUMPRODUCT(('2. Assisted & Restricted Units'!$E$7:$E$399=\"Ghocc\")*('2. Assisted & Restricted Units'!$U$7:$U$399=\"CHRP-R\")*('2. Assisted & Restricted Units'!$V$7:$V$399=\"VLI HOME\"))","v":0},{"$f":"SUMPRODUCT(('2. Assisted & Restricted Units'!$E$7:$E$399=\"Ghocc\")*('2. Assisted & Restricted Units'!$U$7:$U$399=\"DDS\")*('2. Assisted & Restricted Units'!$V$7:$V$399=\"VLI HOME\"))","v":0},{"$f":"SUMPRODUCT(('2. Assisted & Restricted Units'!$E$7:$E$399=\"Ghocc\")*('2. Assisted & Restricted Units'!$U$7:$U$399=\"DPRLP\")*('2. Assisted & Restricted Units'!$V$7:$V$399=\"VLI HOME\"))","v":0},{"$f":"SUMPRODUCT(('2. Assisted & Restricted Units'!$E$7:$E$399=\"Ghocc\")*('2. Assisted & Restricted Units'!$U$7:$U$399=\"FHDP\")*('2. Assisted & Restricted Units'!$V$7:$V$399=\"VLI HOME\"))","v":0},{"$f":"SUMPRODUCT(('2. Assisted & Restricted Units'!$E$7:$E$399=\"Ghocc\")*('2. Assisted & Restricted Units'!$U$7:$U$399=\"FMTW\")*('2. Assisted & Restricted Units'!$V$7:$V$399=\"VLI HOME\"))","v":0},null,{"$f":"SUMPRODUCT(('2. Assisted & Restricted Units'!$E$7:$E$399=\"Ghocc\")*('2. Assisted & Restricted Units'!$U$7:$U$399=\"HOME\")*('2. Assisted & Restricted Units'!$V$7:$V$399=\"VLI HOME\"))","v":0},{"$f":"SUMPRODUCT(('2. Assisted & Restricted Units'!$E$7:$E$399=\"Ghocc\")*('2. Assisted & Restricted Units'!$U$7:$U$399=\"Market Rate\")*('2. Assisted & Restricted Units'!$V$7:$V$399=\"VLI HOME\"))","v":0},{"$f":"SUMPRODUCT(('2. Assisted & Restricted Units'!$E$7:$E$399=\"Ghocc\")*('2. Assisted & Restricted Units'!$U$7:$U$399=\"MHP\")*('2. Assisted & Restricted Units'!$V$7:$V$399=\"VLI HOME\"))","v":0},{"$f":"SUMPRODUCT(('2. Assisted & Restricted Units'!$E$7:$E$399=\"Ghocc\")*('2. Assisted & Restricted Units'!$U$7:$U$399=\"NonAssisted\")*('2. Assisted & Restricted Units'!$V$7:$V$399=\"VLI HOME\"))","v":0},{"$f":"SUMPRODUCT(('2. Assisted & Restricted Units'!$E$7:$E$399=\"Ghocc\")*('2. Assisted & Restricted Units'!$U$7:$U$399=\"Other Restr\")*('2. Assisted & Restricted Units'!$V$7:$V$399=\"VLI HOME\"))","v":0},{"$f":"SUMPRODUCT(('2. Assisted & Restricted Units'!$E$7:$E$399=\"Ghocc\")*('2. Assisted & Restricted Units'!$U$7:$U$399=\"RHCP-B\")*('2. Assisted & Restricted Units'!$V$7:$V$399=\"VLI HOME\"))","v":0},{"$f":"SUMPRODUCT(('2. Assisted & Restricted Units'!$E$7:$E$399=\"Ghocc\")*('2. Assisted & Restricted Units'!$U$7:$U$399=\"SERA\")*('2. Assisted & Restricted Units'!$V$7:$V$399=\"VLI HOME\"))","v":0},{"$f":"SUMPRODUCT(('2. Assisted & Restricted Units'!$E$7:$E$399=\"Ghocc\")*('2. Assisted & Restricted Units'!$U$7:$U$399=\"SUHRP\")*('2. Assisted & Restricted Units'!$V$7:$V$399=\"VLI HOME\"))","v":0},{"$f":"SUMPRODUCT(('2. Assisted & Restricted Units'!$E$7:$E$399=\"Ghocc\")*('2. Assisted & Restricted Units'!$U$7:$U$399=\"TOD\")*('2. Assisted & Restricted Units'!$V$7:$V$399=\"VLI HOME\"))","v":0},{"$f":"SUMPRODUCT(('2. Assisted & Restricted Units'!$E$7:$E$399=\"Ghocc\")*('2. Assisted & Restricted Units'!$U$7:$U$399=\"707-E\")*('2. Assisted & Restricted Units'!$V$7:$V$399=\"VLI HOME\"))","v":0},{"$f":"SUMPRODUCT(('2. Assisted & Restricted Units'!$E$7:$E$399=\"Ghocc\")*('2. Assisted & Restricted Units'!$U$7:$U$399=\"707-N\")*('2. Assisted & Restricted Units'!$V$7:$V$399=\"VLI HOME\"))","v":0}]
["Ghocc LI HOME",{"$f":"SUMPRODUCT(('2. Assisted & Restricted Units'!$E$7:$E$399=\"Ghocc\")*('2. Assisted & Restricted Units'!$U$7:$U$399=\"CALDAP\")*('2. Assisted & Restricted Units'!$V$7:$V$399=\"LI HOME\"))","v":0},{"$f":"SUMPRODUCT(('2. Assisted & Restricted Units'!$E$7:$E$399=\"Ghocc\")*('2. Assisted & Restricted Units'!$U$7:$U$399=\"CHRP-R\")*('2. Assisted & Restricted Units'!$V$7:$V$399=\"LI HOME\"))","v":0},{"$f":"SUMPRODUCT(('2. Assisted & Restricted Units'!$E$7:$E$399=\"Ghocc\")*('2. Assisted & Restricted Units'!$U$7:$U$399=\"DDS\")*('2. Assisted & Restricted Units'!$V$7:$V$399=\"LI HOME\"))","v":0},{"$f":"SUMPRODUCT(('2. Assisted & Restricted Units'!$E$7:$E$399=\"Ghocc\")*('2. Assisted & Restricted Units'!$U$7:$U$399=\"DPRLP\")*('2. Assisted & Restricted Units'!$V$7:$V$399=\"LI HOME\"))","v":0},{"$f":"SUMPRODUCT(('2. Assisted & Restricted Units'!$E$7:$E$399=\"Ghocc\")*('2. Assisted & Restricted Units'!$U$7:$U$399=\"FHDP\")*('2. Assisted & Restricted Units'!$V$7:$V$399=\"LI HOME\"))","v":0},{"$f":"SUMPRODUCT(('2. Assisted & Restricted Units'!$E$7:$E$399=\"Ghocc\")*('2. Assisted & Restricted Units'!$U$7:$U$399=\"FMTW\")*('2. Assisted & Restricted Units'!$V$7:$V$399=\"LI HOME\"))","v":0},null,{"$f":"SUMPRODUCT(('2. Assisted & Restricted Units'!$E$7:$E$399=\"Ghocc\")*('2. Assisted & Restricted Units'!$U$7:$U$399=\"HOME\")*('2. Assisted & Restricted Units'!$V$7:$V$399=\"LI HOME\"))","v":0},{"$f":"SUMPRODUCT(('2. Assisted & Restricted Units'!$E$7:$E$399=\"Ghocc\")*('2. Assisted & Restricted Units'!$U$7:$U$399=\"Market Rate\")*('2. Assisted & Restricted Units'!$V$7:$V$399=\"LI HOME\"))","v":0},{"$f":"SUMPRODUCT(('2. Assisted & Restricted Units'!$E$7:$E$399=\"Ghocc\")*('2. Assisted & Restricted Units'!$U$7:$U$399=\"MHP\")*('2. Assisted & Restricted Units'!$V$7:$V$399=\"LI HOME\"))","v":0},{"$f":"SUMPRODUCT(('2. Assisted & Restricted Units'!$E$7:$E$399=\"Ghocc\")*('2. Assisted & Restricted Units'!$U$7:$U$399=\"NonAssisted\")*('2. Assisted & Restricted Units'!$V$7:$V$399=\"LI HOME\"))","v":0},{"$f":"SUMPRODUCT(('2. Assisted & Restricted Units'!$E$7:$E$399=\"Ghocc\")*('2. Assisted & Restricted Units'!$U$7:$U$399=\"Other Restr\")*('2. Assisted & Restricted Units'!$V$7:$V$399=\"LI HOME\"))","v":0},{"$f":"SUMPRODUCT(('2. Assisted & Restricted Units'!$E$7:$E$399=\"Ghocc\")*('2. Assisted & Restricted Units'!$U$7:$U$399=\"RHCP-B\")*('2. Assisted & Restricted Units'!$V$7:$V$399=\"LI HOME\"))","v":0},{"$f":"SUMPRODUCT(('2. Assisted & Restricted Units'!$E$7:$E$399=\"Ghocc\")*('2. Assisted & Restricted Units'!$U$7:$U$399=\"SERA\")*('2. Assisted & Restricted Units'!$V$7:$V$399=\"LI HOME\"))","v":0},{"$f":"SUMPRODUCT(('2. Assisted & Restricted Units'!$E$7:$E$399=\"Ghocc\")*('2. Assisted & Restricted Units'!$U$7:$U$399=\"SUHRP\")*('2. Assisted & Restricted Units'!$V$7:$V$399=\"LI HOME\"))","v":0},{"$f":"SUMPRODUCT(('2. Assisted & Restricted Units'!$E$7:$E$399=\"Ghocc\")*('2. Assisted & Restricted Units'!$U$7:$U$399=\"TOD\")*('2. Assisted & Restricted Units'!$V$7:$V$399=\"LI HOME\"))","v":0},{"$f":"SUMPRODUCT(('2. Assisted & Restricted Units'!$E$7:$E$399=\"Ghocc\")*('2. Assisted & Restricted Units'!$U$7:$U$399=\"707-E\")*('2. Assisted & Restricted Units'!$V$7:$V$399=\"LI HOME\"))","v":0},{"$f":"SUMPRODUCT(('2. Assisted & Restricted Units'!$E$7:$E$399=\"Ghocc\")*('2. Assisted & Restricted Units'!$U$7:$U$399=\"707-N\")*('2. Assisted & Restricted Units'!$V$7:$V$399=\"LI HOME\"))","v":0}]
["Ghocc VLI State",{"$f":"SUMPRODUCT(('2. Assisted & Restricted Units'!$E$7:$E$399=\"Ghocc\")*('2. Assisted & Restricted Units'!$U$7:$U$399=\"CALDAP\")*('2. Assisted & Restricted Units'!$V$7:$V$399=\"VLI State\"))","v":0},{"$f":"SUMPRODUCT(('2. Assisted & Restricted Units'!$E$7:$E$399=\"Ghocc\")*('2. Assisted & Restricted Units'!$U$7:$U$399=\"CHRP-R\")*('2. Assisted & Restricted Units'!$V$7:$V$399=\"VLI State\"))","v":0},{"$f":"SUMPRODUCT(('2. Assisted & Restricted Units'!$E$7:$E$399=\"Ghocc\")*('2. Assisted & Restricted Units'!$U$7:$U$399=\"DDS\")*('2. Assisted & Restricted Units'!$V$7:$V$399=\"VLI State\"))","v":0},{"$f":"SUMPRODUCT(('2. Assisted & Restricted Units'!$E$7:$E$399=\"Ghocc\")*('2. Assisted & Restricted Units'!$U$7:$U$399=\"DPRLP\")*('2. Assisted & Restricted Units'!$V$7:$V$399=\"VLI State\"))","v":0},{"$f":"SUMPRODUCT(('2. Assisted & Restricted Units'!$E$7:$E$399=\"Ghocc\")*('2. Assisted & Restricted Units'!$U$7:$U$399=\"FHDP\")*('2. Assisted & Restricted Units'!$V$7:$V$399=\"VLI State\"))","v":0},{"$f":"SUMPRODUCT(('2. Assisted & Restricted Units'!$E$7:$E$399=\"Ghocc\")*('2. Assisted & Restricted Units'!$U$7:$U$399=\"FMTW\")*('2. Assisted & Restricted Units'!$V$7:$V$399=\"VLI State\"))","v":0},null,{"$f":"SUMPRODUCT(('2. Assisted & Restricted Units'!$E$7:$E$399=\"Ghocc\")*('2. Assisted & Restricted Units'!$U$7:$U$399=\"HOME\")*('2. Assisted & Restricted Units'!$V$7:$V$399=\"VLI State\"))","v":0},{"$f":"SUMPRODUCT(('2. Assisted & Restricted Units'!$E$7:$E$399=\"Ghocc\")*('2. Assisted & Restricted Units'!$U$7:$U$399=\"Market Rate\")*('2. Assisted & Restricted Units'!$V$7:$V$399=\"VLI State\"))","v":0},{"$f":"SUMPRODUCT(('2. Assisted & Restricted Units'!$E$7:$E$399=\"Ghocc\")*('2. Assisted & Restricted Units'!$U$7:$U$399=\"MHP\")*('2. Assisted & Restricted Units'!$V$7:$V$399=\"VLI State\"))","v":0},{"$f":"SUMPRODUCT(('2. Assisted & Restricted Units'!$E$7:$E$399=\"Ghocc\")*('2. Assisted & Restricted Units'!$U$7:$U$399=\"NonAssisted\")*('2. Assisted & Restricted Units'!$V$7:$V$399=\"VLI State\"))","v":0},{"$f":"SUMPRODUCT(('2. Assisted & Restricted Units'!$E$7:$E$399=\"Ghocc\")*('2. Assisted & Restricted Units'!$U$7:$U$399=\"Other Restr\")*('2. Assisted & Restricted Units'!$V$7:$V$399=\"VLI State\"))","v":0},{"$f":"SUMPRODUCT(('2. Assisted & Restricted Units'!$E$7:$E$399=\"Ghocc\")*('2. Assisted & Restricted Units'!$U$7:$U$399=\"RHCP-B\")*('2. Assisted & Restricted Units'!$V$7:$V$399=\"VLI State\"))","v":0},{"$f":"SUMPRODUCT(('2. Assisted & Restricted Units'!$E$7:$E$399=\"Ghocc\")*('2. Assisted & Restricted Units'!$U$7:$U$399=\"SERA\")*('2. Assisted & Restricted Units'!$V$7:$V$399=\"VLI State\"))","v":0},{"$f":"SUMPRODUCT(('2. Assisted & Restricted Units'!$E$7:$E$399=\"Ghocc\")*('2. Assisted & Restricted Units'!$U$7:$U$399=\"SUHRP\")*('2. Assisted & Restricted Units'!$V$7:$V$399=\"VLI State\"))","v":0},{"$f":"SUMPRODUCT(('2. Assisted & Restricted Units'!$E$7:$E$399=\"Ghocc\")*('2. Assisted & Restricted Units'!$U$7:$U$399=\"TOD\")*('2. Assisted & Restricted Units'!$V$7:$V$399=\"VLI State\"))","v":0},{"$f":"SUMPRODUCT(('2. Assisted & Restricted Units'!$E$7:$E$399=\"Ghocc\")*('2. Assisted & Restricted Units'!$U$7:$U$399=\"707-E\")*('2. Assisted & Restricted Units'!$V$7:$V$399=\"VLI State\"))","v":0},{"$f":"SUMPRODUCT(('2. Assisted & Restricted Units'!$E$7:$E$399=\"Ghocc\")*('2. Assisted & Restricted Units'!$U$7:$U$399=\"707-N\")*('2. Assisted & Restricted Units'!$V$7:$V$399=\"VLI State\"))","v":0}]
["Ghocc LI State",{"$f":"SUMPRODUCT(('2. Assisted & Restricted Units'!$E$7:$E$399=\"Ghocc\")*('2. Assisted & Restricted Units'!$U$7:$U$399=\"CALDAP\")*('2. Assisted & Restricted Units'!$V$7:$V$399=\"LI State\"))","v":0},{"$f":"SUMPRODUCT(('2. Assisted & Restricted Units'!$E$7:$E$399=\"Ghocc\")*('2. Assisted & Restricted Units'!$U$7:$U$399=\"CHRP-R\")*('2. Assisted & Restricted Units'!$V$7:$V$399=\"LI State\"))","v":0},{"$f":"SUMPRODUCT(('2. Assisted & Restricted Units'!$E$7:$E$399=\"Ghocc\")*('2. Assisted & Restricted Units'!$U$7:$U$399=\"DDS\")*('2. Assisted & Restricted Units'!$V$7:$V$399=\"LI State\"))","v":0},{"$f":"SUMPRODUCT(('2. Assisted & Restricted Units'!$E$7:$E$399=\"Ghocc\")*('2. Assisted & Restricted Units'!$U$7:$U$399=\"DPRLP\")*('2. Assisted & Restricted Units'!$V$7:$V$399=\"LI State\"))","v":0},{"$f":"SUMPRODUCT(('2. Assisted & Restricted Units'!$E$7:$E$399=\"Ghocc\")*('2. Assisted & Restricted Units'!$U$7:$U$399=\"FHDP\")*('2. Assisted & Restricted Units'!$V$7:$V$399=\"LI State\"))","v":0},{"$f":"SUMPRODUCT(('2. Assisted & Restricted Units'!$E$7:$E$399=\"Ghocc\")*('2. Assisted & Restricted Units'!$U$7:$U$399=\"FMTW\")*('2. Assisted & Restricted Units'!$V$7:$V$399=\"LI State\"))","v":0},null,{"$f":"SUMPRODUCT(('2. Assisted & Restricted Units'!$E$7:$E$399=\"Ghocc\")*('2. Assisted & Restricted Units'!$U$7:$U$399=\"HOME\")*('2. Assisted & Restricted Units'!$V$7:$V$399=\"LI State\"))","v":0},{"$f":"SUMPRODUCT(('2. Assisted & Restricted Units'!$E$7:$E$399=\"Ghocc\")*('2. Assisted & Restricted Units'!$U$7:$U$399=\"Market Rate\")*('2. Assisted & Restricted Units'!$V$7:$V$399=\"LI State\"))","v":0},{"$f":"SUMPRODUCT(('2. Assisted & Restricted Units'!$E$7:$E$399=\"Ghocc\")*('2. Assisted & Restricted Units'!$U$7:$U$399=\"MHP\")*('2. Assisted & Restricted Units'!$V$7:$V$399=\"LI State\"))","v":0},{"$f":"SUMPRODUCT(('2. Assisted & Restricted Units'!$E$7:$E$399=\"Ghocc\")*('2. Assisted & Restricted Units'!$U$7:$U$399=\"NonAssisted\")*('2. Assisted & Restricted Units'!$V$7:$V$399=\"LI State\"))","v":0},{"$f":"SUMPRODUCT(('2. Assisted & Restricted Units'!$E$7:$E$399=\"Ghocc\")*('2. Assisted & Restricted Units'!$U$7:$U$399=\"Other Restr\")*('2. Assisted & Restricted Units'!$V$7:$V$399=\"LI State\"))","v":0},{"$f":"SUMPRODUCT(('2. Assisted & Restricted Units'!$E$7:$E$399=\"Ghocc\")*('2. Assisted & Restricted Units'!$U$7:$U$399=\"RHCP-B\")*('2. Assisted & Restricted Units'!$V$7:$V$399=\"LI State\"))","v":0},{"$f":"SUMPRODUCT(('2. Assisted & Restricted Units'!$E$7:$E$399=\"Ghocc\")*('2. Assisted & Restricted Units'!$U$7:$U$399=\"SERA\")*('2. Assisted & Restricted Units'!$V$7:$V$399=\"LI State\"))","v":0},{"$f":"SUMPRODUCT(('2. Assisted & Restricted Units'!$E$7:$E$399=\"Ghocc\")*('2. Assisted & Restricted Units'!$U$7:$U$399=\"SUHRP\")*('2. Assisted & Restricted Units'!$V$7:$V$399=\"LI State\"))","v":0},{"$f":"SUMPRODUCT(('2. Assisted & Restricted Units'!$E$7:$E$399=\"Ghocc\")*('2. Assisted & Restricted Units'!$U$7:$U$399=\"TOD\")*('2. Assisted & Restricted Units'!$V$7:$V$399=\"LI State\"))","v":0},{"$f":"SUMPRODUCT(('2. Assisted & Restricted Units'!$E$7:$E$399=\"Ghocc\")*('2. Assisted & Restricted Units'!$U$7:$U$399=\"707-E\")*('2. Assisted & Restricted Units'!$V$7:$V$399=\"LI State\"))","v":0},{"$f":"SUMPRODUCT(('2. Assisted & Restricted Units'!$E$7:$E$399=\"Ghocc\")*('2. Assisted & Restricted Units'!$U$7:$U$399=\"707-N\")*('2. Assisted & Restricted Units'!$V$7:$V$399=\"LI State\"))","v":0}]
["Ghocc CalHFA",{"$f":"SUMPRODUCT(('2. Assisted & Restricted Units'!$E$7:$E$399=\"Ghocc\")*('2. Assisted & Restricted Units'!$U$7:$U$399=\"CALDAP\")*('2. Assisted & Restricted Units'!$V$7:$V$399=\"CalHFA\"))","v":0},{"$f":"SUMPRODUCT(('2. Assisted & Restricted Units'!$E$7:$E$399=\"Ghocc\")*('2. Assisted & Restricted Units'!$U$7:$U$399=\"CHRP-R\")*('2. Assisted & Restricted Units'!$V$7:$V$399=\"CalHFA\"))","v":0},{"$f":"SUMPRODUCT(('2. Assisted & Restricted Units'!$E$7:$E$399=\"Ghocc\")*('2. Assisted & Restricted Units'!$U$7:$U$399=\"DDS\")*('2. Assisted & Restricted Units'!$V$7:$V$399=\"CalHFA\"))","v":0},{"$f":"SUMPRODUCT(('2. Assisted & Restricted Units'!$E$7:$E$399=\"Ghocc\")*('2. Assisted & Restricted Units'!$U$7:$U$399=\"DPRLP\")*('2. Assisted & Restricted Units'!$V$7:$V$399=\"CalHFA\"))","v":0},{"$f":"SUMPRODUCT(('2. Assisted & Restricted Units'!$E$7:$E$399=\"Ghocc\")*('2. Assisted & Restricted Units'!$U$7:$U$399=\"FHDP\")*('2. Assisted & Restricted Units'!$V$7:$V$399=\"CalHFA\"))","v":0},{"$f":"SUMPRODUCT(('2. Assisted & Restricted Units'!$E$7:$E$399=\"Ghocc\")*('2. Assisted & Restricted Units'!$U$7:$U$399=\"FMTW\")*('2. Assisted & Restricted Units'!$V$7:$V$399=\"CalHFA\"))","v":0},null,{"$f":"SUMPRODUCT(('2. Assisted & Restricted Units'!$E$7:$E$399=\"Ghocc\")*('2. Assisted & Restricted Units'!$U$7:$U$399=\"HOME\")*('2. Assisted & Restricted Units'!$V$7:$V$399=\"CalHFA\"))","v":0},{"$f":"SUMPRODUCT(('2. Assisted & Restricted Units'!$E$7:$E$399=\"Ghocc\")*('2. Assisted & Restricted Units'!$U$7:$U$399=\"Market Rate\")*('2. Assisted & Restricted Units'!$V$7:$V$399=\"CalHFA\"))","v":0},{"$f":"SUMPRODUCT(('2. Assisted & Restricted Units'!$E$7:$E$399=\"Ghocc\")*('2. Assisted & Restricted Units'!$U$7:$U$399=\"MHP\")*('2. Assisted & Restricted Units'!$V$7:$V$399=\"CalHFA\"))","v":0},{"$f":"SUMPRODUCT(('2. Assisted & Restricted Units'!$E$7:$E$399=\"Ghocc\")*('2. Assisted & Restricted Units'!$U$7:$U$399=\"NonAssisted\")*('2. Assisted & Restricted Units'!$V$7:$V$399=\"CalHFA\"))","v":0},{"$f":"SUMPRODUCT(('2. Assisted & Restricted Units'!$E$7:$E$399=\"Ghocc\")*('2. Assisted & Restricted Units'!$U$7:$U$399=\"Other Restr\")*('2. Assisted & Restricted Units'!$V$7:$V$399=\"CalHFA\"))","v":0},{"$f":"SUMPRODUCT(('2. Assisted & Restricted Units'!$E$7:$E$399=\"Ghocc\")*('2. Assisted & Restricted Units'!$U$7:$U$399=\"RHCP-B\")*('2. Assisted & Restricted Units'!$V$7:$V$399=\"CalHFA\"))","v":0},{"$f":"SUMPRODUCT(('2. Assisted & Restricted Units'!$E$7:$E$399=\"Ghocc\")*('2. Assisted & Restricted Units'!$U$7:$U$399=\"SERA\")*('2. Assisted & Restricted Units'!$V$7:$V$399=\"CalHFA\"))","v":0},{"$f":"SUMPRODUCT(('2. Assisted & Restricted Units'!$E$7:$E$399=\"Ghocc\")*('2. Assisted & Restricted Units'!$U$7:$U$399=\"SUHRP\")*('2. Assisted & Restricted Units'!$V$7:$V$399=\"CalHFA\"))","v":0},{"$f":"SUMPRODUCT(('2. Assisted & Restricted Units'!$E$7:$E$399=\"Ghocc\")*('2. Assisted & Restricted Units'!$U$7:$U$399=\"TOD\")*('2. Assisted & Restricted Units'!$V$7:$V$399=\"CalHFA\"))","v":0},{"$f":"SUMPRODUCT(('2. Assisted & Restricted Units'!$E$7:$E$399=\"Ghocc\")*('2. Assisted & Restricted Units'!$U$7:$U$399=\"707-E\")*('2. Assisted & Restricted Units'!$V$7:$V$399=\"CalHFA\"))","v":0},{"$f":"SUMPRODUCT(('2. Assisted & Restricted Units'!$E$7:$E$399=\"Ghocc\")*('2. Assisted & Restricted Units'!$U$7:$U$399=\"707-N\")*('2. Assisted & Restricted Units'!$V$7:$V$399=\"CalHFA\"))","v":0}]
["Ghocc Sec 8",{"$f":"SUMPRODUCT(('2. Assisted & Restricted Units'!$E$7:$E$399=\"Ghocc\")*('2. Assisted & Restricted Units'!$U$7:$U$399=\"CALDAP\")*('2. Assisted & Restricted Units'!$V$7:$V$399=\"Sec 8\"))","v":0},{"$f":"SUMPRODUCT(('2. Assisted & Restricted Units'!$E$7:$E$399=\"Ghocc\")*('2. Assisted & Restricted Units'!$U$7:$U$399=\"CHRP-R\")*('2. Assisted & Restricted Units'!$V$7:$V$399=\"Sec 8\"))","v":0},{"$f":"SUMPRODUCT(('2. Assisted & Restricted Units'!$E$7:$E$399=\"Ghocc\")*('2. Assisted & Restricted Units'!$U$7:$U$399=\"DDS\")*('2. Assisted & Restricted Units'!$V$7:$V$399=\"Sec 8\"))","v":0},{"$f":"SUMPRODUCT(('2. Assisted & Restricted Units'!$E$7:$E$399=\"Ghocc\")*('2. Assisted & Restricted Units'!$U$7:$U$399=\"DPRLP\")*('2. Assisted & Restricted Units'!$V$7:$V$399=\"Sec 8\"))","v":0},{"$f":"SUMPRODUCT(('2. Assisted & Restricted Units'!$E$7:$E$399=\"Ghocc\")*('2. Assisted & Restricted Units'!$U$7:$U$399=\"FHDP\")*('2. Assisted & Restricted Units'!$V$7:$V$399=\"Sec 8\"))","v":0},{"$f":"SUMPRODUCT(('2. Assisted & Restricted Units'!$E$7:$E$399=\"Ghocc\")*('2. Assisted & Restricted Units'!$U$7:$U$399=\"FMTW\")*('2. Assisted & Restricted Units'!$V$7:$V$399=\"Sec 8\"))","v":0},null,{"$f":"SUMPRODUCT(('2. Assisted & Restricted Units'!$E$7:$E$399=\"Ghocc\")*('2. Assisted & Restricted Units'!$U$7:$U$399=\"HOME\")*('2. Assisted & Restricted Units'!$V$7:$V$399=\"Sec 8\"))","v":0},{"$f":"SUMPRODUCT(('2. Assisted & Restricted Units'!$E$7:$E$399=\"Ghocc\")*('2. Assisted & Restricted Units'!$U$7:$U$399=\"Market Rate\")*('2. Assisted & Restricted Units'!$V$7:$V$399=\"Sec 8\"))","v":0},{"$f":"SUMPRODUCT(('2. Assisted & Restricted Units'!$E$7:$E$399=\"Ghocc\")*('2. Assisted & Restricted Units'!$U$7:$U$399=\"MHP\")*('2. Assisted & Restricted Units'!$V$7:$V$399=\"Sec 8\"))","v":0},{"$f":"SUMPRODUCT(('2. Assisted & Restricted Units'!$E$7:$E$399=\"Ghocc\")*('2. Assisted & Restricted Units'!$U$7:$U$399=\"NonAssisted\")*('2. Assisted & Restricted Units'!$V$7:$V$399=\"Sec 8\"))","v":0},{"$f":"SUMPRODUCT(('2. Assisted & Restricted Units'!$E$7:$E$399=\"Ghocc\")*('2. Assisted & Restricted Units'!$U$7:$U$399=\"Other Restr\")*('2. Assisted & Restricted Units'!$V$7:$V$399=\"Sec 8\"))","v":0},{"$f":"SUMPRODUCT(('2. Assisted & Restricted Units'!$E$7:$E$399=\"Ghocc\")*('2. Assisted & Restricted Units'!$U$7:$U$399=\"RHCP-B\")*('2. Assisted & Restricted Units'!$V$7:$V$399=\"Sec 8\"))","v":0},{"$f":"SUMPRODUCT(('2. Assisted & Restricted Units'!$E$7:$E$399=\"Ghocc\")*('2. Assisted & Restricted Units'!$U$7:$U$399=\"SERA\")*('2. Assisted & Restricted Units'!$V$7:$V$399=\"Sec 8\"))","v":0},{"$f":"SUMPRODUCT(('2. Assisted & Restricted Units'!$E$7:$E$399=\"Ghocc\")*('2. Assisted & Restricted Units'!$U$7:$U$399=\"SUHRP\")*('2. Assisted & Restricted Units'!$V$7:$V$399=\"Sec 8\"))","v":0},{"$f":"SUMPRODUCT(('2. Assisted & Restricted Units'!$E$7:$E$399=\"Ghocc\")*('2. Assisted & Restricted Units'!$U$7:$U$399=\"TOD\")*('2. Assisted & Restricted Units'!$V$7:$V$399=\"Sec 8\"))","v":0},{"$f":"SUMPRODUCT(('2. Assisted & Restricted Units'!$E$7:$E$399=\"Ghocc\")*('2. Assisted & Restricted Units'!$U$7:$U$399=\"707-E\")*('2. Assisted & Restricted Units'!$V$7:$V$399=\"Sec 8\"))","v":0},{"$f":"SUMPRODUCT(('2. Assisted & Restricted Units'!$E$7:$E$399=\"Ghocc\")*('2. Assisted & Restricted Units'!$U$7:$U$399=\"707-N\")*('2. Assisted & Restricted Units'!$V$7:$V$399=\"Sec 8\"))","v":0}]
["Total Ghocc",{"$f":"SUM(B2:B26)","v":0},{"$f":"SUM(C2:C26)","v":0},{"$f":"SUM(D2:D26)","v":0},{"$f":"SUM(E2:E26)","v":0},{"$f":"SUM(F2:F26)","v":0},0,{"$f":"SUMPRODUCT(('2. Assisted & Restricted Units'!$E$7:$E$399=\"Ghocc\")*('2. Assisted & Restricted Units'!$U$7:$U$399=\"FWHG\"))","v":0},0,0,0,0,0,0,0,0,0,0,0,{"$f":"SUMPRODUCT(('2. Assisted & Restricted Units'!$E$7:$E$399=\"Ghocc\")*('2. Assisted & Restricted Units'!$L$7:$L$399=\"X\"))","v":0},{"$f":"SUMPRODUCT(('2. Assisted & Restricted Units'!$E$7:$E$399=\"Ghocc\")*('2. Assisted & Restricted Units'!#REF!=\"X\"))","v":{"$error":"#REF!"}},{"$f":"SUMPRODUCT(('2. Assisted & Restricted Units'!$E$7:$E$399=\"Ghocc\")*('2. Assisted & Restricted Units'!#REF!=\"X\"))","v":{"$error":"#REF!"}},{"$f":"SUMPRODUCT(('2. Assisted & Restricted Units'!$E$7:$E$399=\"Ghocc\")*('2. Assisted & Restricted Units'!#REF!=\"X\"))","v":{"$error":"#REF!"}},{"$f":"SUMPRODUCT(('2. Assisted & Restricted Units'!$E$7:$E$399=\"Ghocc\")*('2. Assisted & Restricted Units'!#REF!=\"X\"))","v":{"$error":"#REF!"}},{"$f":"SUMPRODUCT(('2. Assisted & Restricted Units'!$E$7:$E$399=\"Ghocc\")*('2. Assisted & Restricted Units'!#REF!=\"X\"))","v":{"$error":"#REF!"}},{"$f":"SUMPRODUCT(('2. Assisted & Restricted Units'!$E$7:$E$399=\"Ghocc\")*('2. Assisted & Restricted Units'!#REF!=\"X\"))","v":{"$error":"#REF!"}},{"$f":"SUMPRODUCT(('2. Assisted & Restricted Units'!$E$7:$E$399=\"Ghocc\")*('2. Assisted & Restricted Units'!$M$7:$M$399=\"X\"))","v":0},{"$f":"SUMPRODUCT(('2. Assisted & Restricted Units'!$E$7:$E$399=\"Ghocc\")*('2. Assisted & Restricted Units'!$O$7:$O$399=\"X\"))","v":0}]
["0 Bedroom 15% AMI",{"$f":"SUMPRODUCT(('2. Assisted & Restricted Units'!$E$7:$E$399=\"0\")*('2. Assisted & Restricted Units'!$U$7:$U$399=\"CALDAP\")*('2. Assisted & Restricted Units'!$V$7:$V$399=\"15% AMI\"))","v":0},{"$f":"SUMPRODUCT(('2. Assisted & Restricted Units'!$E$7:$E$399=\"0\")*('2. Assisted & Restricted Units'!$U$7:$U$399=\"CHRP-R\")*('2. Assisted & Restricted Units'!$V$7:$V$399=\"15% AMI\"))","v":0},{"$f":"SUMPRODUCT(('2. Assisted & Restricted Units'!$E$7:$E$399=\"0\")*('2. Assisted & Restricted Units'!$U$7:$U$399=\"DDS\")*('2. Assisted & Restricted Units'!$V$7:$V$399=\"15% AMI\"))","v":0},{"$f":"SUMPRODUCT(('2. Assisted & Restricted Units'!$E$7:$E$399=\"0\")*('2. Assisted & Restricted Units'!$U$7:$U$399=\"DPRLP\")*('2. Assisted & Restricted Units'!$V$7:$V$399=\"15% AMI\"))","v":0},{"$f":"SUMPRODUCT(('2. Assisted & Restricted Units'!$E$7:$E$399=\"0\")*('2. Assisted & Restricted Units'!$U$7:$U$399=\"FHDP\")*('2. Assisted & Restricted Units'!$V$7:$V$399=\"15% AMI\"))","v":0},{"$f":"SUMPRODUCT(('2. Assisted & Restricted Units'!$E$7:$E$399=\"0\")*('2. Assisted & Restricted Units'!$U$7:$U$399=\"FMTW\")*('2. Assisted & Restricted Units'!$V$7:$V$399=\"15% AMI\"))","v":0},null,{"$f":"SUMPRODUCT(('2. Assisted & Restricted Units'!$E$7:$E$399=\"0\")*('2. Assisted & Restricted Units'!$U$7:$U$399=\"HOME\")*('2. Assisted & Restricted Units'!$V$7:$V$399=\"15% AMI\"))","v":0},{"$f":"SUMPRODUCT(('2. Assisted & Restricted Units'!$E$7:$E$399=\"0\")*('2. Assisted & Restricted Units'!$U$7:$U$399=\"Market Rate\")*('2. Assisted & Restricted Units'!$V$7:$V$399=\"15% AMI\"))","v":0},{"$f":"SUMPRODUCT(('2. Assisted & Restricted Units'!$E$7:$E$399=\"0\")*('2. Assisted & Restricted Units'!$U$7:$U$399=\"MHP\")*('2. Assisted & Restricted Units'!$V$7:$V$399=\"15% AMI\"))","v":0},{"$f":"SUMPRODUCT(('2. Assisted & Restricted Units'!$E$7:$E$399=\"0\")*('2. Assisted & Restricted Units'!$U$7:$U$399=\"NonAssisted\")*('2. Assisted & Restricted Units'!$V$7:$V$399=\"15% AMI\"))","v":0},{"$f":"SUMPRODUCT(('2. Assisted & Restricted Units'!$E$7:$E$399=\"0\")*('2. Assisted & Restricted Units'!$U$7:$U$399=\"Other Restr\")*('2. Assisted & Restricted Units'!$V$7:$V$399=\"15% AMI\"))","v":0},{"$f":"SUMPRODUCT(('2. Assisted & Restricted Units'!$E$7:$E$399=\"0\")*('2. Assisted & Restricted Units'!$U$7:$U$399=\"RHCP-B\")*('2. Assisted & Restricted Units'!$V$7:$V$399=\"15% AMI\"))","v":0},{"$f":"SUMPRODUCT(('2. Assisted & Restricted Units'!$E$7:$E$399=\"0\")*('2. Assisted & Restricted Units'!$U$7:$U$399=\"SERA\")*('2. Assisted & Restricted Units'!$V$7:$V$399=\"15% AMI\"))","v":0},{"$f":"SUMPRODUCT(('2. Assisted & Restricted Units'!$E$7:$E$399=\"0\")*('2. Assisted & Restricted Units'!$U$7:$U$399=\"SUHRP\")*('2. Assisted & Restricted Units'!$V$7:$V$399=\"15% AMI\"))","v":0},{"$f":"SUMPRODUCT(('2. Assisted & Restricted Units'!$E$7:$E$399=\"0\")*('2. Assisted & Restricted Units'!$U$7:$U$399=\"TOD\")*('2. Assisted & Restricted Units'!$V$7:$V$399=\"15% AMI\"))","v":0},{"$f":"SUMPRODUCT(('2. Assisted & Restricted Units'!$E$7:$E$399=\"0\")*('2. Assisted & Restricted Units'!$U$7:$U$399=\"707-E\")*('2. Assisted & Restricted Units'!$V$7:$V$399=\"15% AMI\"))","v":0},{"$f":"SUMPRODUCT(('2. Assisted & Restricted Units'!$E$7:$E$399=\"0\")*('2. Assisted & Restricted Units'!$U$7:$U$399=\"707-N\")*('2. Assisted & Restricted Units'!$V$7:$V$399=\"15% AMI\"))","v":0}]
["0 Bedroom 20% AMI",{"$f":"SUMPRODUCT(('2. Assisted & Restricted Units'!$E$7:$E$399=\"0\")*('2. Assisted & Restricted Units'!$U$7:$U$399=\"CALDAP\")*('2. Assisted & Restricted Units'!$V$7:$V$399=\"20% AMI\"))","v":0},{"$f":"SUMPRODUCT(('2. Assisted & Restricted Units'!$E$7:$E$399=\"0\")*('2. Assisted & Restricted Units'!$U$7:$U$399=\"CHRP-R\")*('2. Assisted & Restricted Units'!$V$7:$V$399=\"20% AMI\"))","v":0},{"$f":"SUMPRODUCT(('2. Assisted & Restricted Units'!$E$7:$E$399=\"0\")*('2. Assisted & Restricted Units'!$U$7:$U$399=\"DDS\")*('2. Assisted & Restricted Units'!$V$7:$V$399=\"20% AMI\"))","v":0},{"$f":"SUMPRODUCT(('2. Assisted & Restricted Units'!$E$7:$E$399=\"0\")*('2. Assisted & Restricted Units'!$U$7:$U$399=\"DPRLP\")*('2. Assisted & Restricted Units'!$V$7:$V$399=\"20% AMI\"))","v":0},{"$f":"SUMPRODUCT(('2. Assisted & Restricted Units'!$E$7:$E$399=\"0\")*('2. Assisted & Restricted Units'!$U$7:$U$399=\"FHDP\")*('2. Assisted & Restricted Units'!$V$7:$V$399=\"20% AMI\"))","v":0},{"$f":"SUMPRODUCT(('2. Assisted & Restricted Units'!$E$7:$E$399=\"0\")*('2. Assisted & Restricted Units'!$U$7:$U$399=\"FMTW\")*('2. Assisted & Restricted Units'!$V$7:$V$399=\"20% AMI\"))","v":0},null,{"$f":"SUMPRODUCT(('2. Assisted & Restricted Units'!$E$7:$E$399=\"0\")*('2. Assisted & Restricted Units'!$U$7:$U$399=\"HOME\")*('2. Assisted & Restricted Units'!$V$7:$V$399=\"20% AMI\"))","v":0},{"$f":"SUMPRODUCT(('2. Assisted & Restricted Units'!$E$7:$E$399=\"0\")*('2. Assisted & Restricted Units'!$U$7:$U$399=\"Market Rate\")*('2. Assisted & Restricted Units'!$V$7:$V$399=\"20% AMI\"))","v":0},{"$f":"SUMPRODUCT(('2. Assisted & Restricted Units'!$E$7:$E$399=\"0\")*('2. Assisted & Restricted Units'!$U$7:$U$399=\"MHP\")*('2. Assisted & Restricted Units'!$V$7:$V$399=\"20% AMI\"))","v":0},{"$f":"SUMPRODUCT(('2. Assisted & Restricted Units'!$E$7:$E$399=\"0\")*('2. Assisted & Restricted Units'!$U$7:$U$399=\"NonAssisted\")*('2. Assisted & Restricted Units'!$V$7:$V$399=\"20% AMI\"))","v":0},{"$f":"SUMPRODUCT(('2. Assisted & Restricted Units'!$E$7:$E$399=\"0\")*('2. Assisted & Restricted Units'!$U$7:$U$399=\"Other Restr\")*('2. Assisted & Restricted Units'!$V$7:$V$399=\"20% AMI\"))","v":0},{"$f":"SUMPRODUCT(('2. Assisted & Restricted Units'!$E$7:$E$399=\"0\")*('2. Assisted & Restricted Units'!$U$7:$U$399=\"RHCP-B\")*('2. Assisted & Restricted Units'!$V$7:$V$399=\"20% AMI\"))","v":0},{"$f":"SUMPRODUCT(('2. Assisted & Restricted Units'!$E$7:$E$399=\"0\")*('2. Assisted & Restricted Units'!$U$7:$U$399=\"SERA\")*('2. Assisted & Restricted Units'!$V$7:$V$399=\"20% AMI\"))","v":0},{"$f":"SUMPRODUCT(('2. Assisted & Restricted Units'!$E$7:$E$399=\"0\")*('2. Assisted & Restricted Units'!$U$7:$U$399=\"SUHRP\")*('2. Assisted & Restricted Units'!$V$7:$V$399=\"20% AMI\"))","v":0},{"$f":"SUMPRODUCT(('2. Assisted & Restricted Units'!$E$7:$E$399=\"0\")*('2. Assisted & Restricted Units'!$U$7:$U$399=\"TOD\")*('2. Assisted & Restricted Units'!$V$7:$V$399=\"20% AMI\"))","v":0},{"$f":"SUMPRODUCT(('2. Assisted & Restricted Units'!$E$7:$E$399=\"0\")*('2. Assisted & Restricted Units'!$U$7:$U$399=\"707-E\")*('2. Assisted & Restricted Units'!$V$7:$V$399=\"20% AMI\"))","v":0},{"$f":"SUMPRODUCT(('2. Assisted & Restricted Units'!$E$7:$E$399=\"0\")*('2. Assisted & Restricted Units'!$U$7:$U$399=\"707-N\")*('2. Assisted & Restricted Units'!$V$7:$V$399=\"20% AMI\"))","v":0}]
["0 Bedroom 25% AMI",{"$f":"SUMPRODUCT(('2. Assisted & Restricted Units'!$E$7:$E$399=\"0\")*('2. Assisted & Restricted Units'!$U$7:$U$399=\"CALDAP\")*('2. Assisted & Restricted Units'!$V$7:$V$399=\"25% AMI\"))","v":0},{"$f":"SUMPRODUCT(('2. Assisted & Restricted Units'!$E$7:$E$399=\"0\")*('2. Assisted & Restricted Units'!$U$7:$U$399=\"CHRP-R\")*('2. Assisted & Restricted Units'!$V$7:$V$399=\"25% AMI\"))","v":0},{"$f":"SUMPRODUCT(('2. Assisted & Restricted Units'!$E$7:$E$399=\"0\")*('2. Assisted & Restricted Units'!$U$7:$U$399=\"DDS\")*('2. Assisted & Restricted Units'!$V$7:$V$399=\"25% AMI\"))","v":0},{"$f":"SUMPRODUCT(('2. Assisted & Restricted Units'!$E$7:$E$399=\"0\")*('2. Assisted & Restricted Units'!$U$7:$U$399=\"DPRLP\")*('2. Assisted & Restricted Units'!$V$7:$V$399=\"25% AMI\"))","v":0},{"$f":"SUMPRODUCT(('2. Assisted & Restricted Units'!$E$7:$E$399=\"0\")*('2. Assisted & Restricted Units'!$U$7:$U$399=\"FHDP\")*('2. Assisted & Restricted Units'!$V$7:$V$399=\"25% AMI\"))","v":0},{"$f":"SUMPRODUCT(('2. Assisted & Restricted Units'!$E$7:$E$399=\"0\")*('2. Assisted & Restricted Units'!$U$7:$U$399=\"FMTW\")*('2. Assisted & Restricted Units'!$V$7:$V$399=\"25% AMI\"))","v":0},null,{"$f":"SUMPRODUCT(('2. Assisted & Restricted Units'!$E$7:$E$399=\"0\")*('2. Assisted & Restricted Units'!$U$7:$U$399=\"HOME\")*('2. Assisted & Restricted Units'!$V$7:$V$399=\"25% AMI\"))","v":0},{"$f":"SUMPRODUCT(('2. Assisted & Restricted Units'!$E$7:$E$399=\"0\")*('2. Assisted & Restricted Units'!$U$7:$U$399=\"Market Rate\")*('2. Assisted & Restricted Units'!$V$7:$V$399=\"25% AMI\"))","v":0},{"$f":"SUMPRODUCT(('2. Assisted & Restricted Units'!$E$7:$E$399=\"0\")*('2. Assisted & Restricted Units'!$U$7:$U$399=\"MHP\")*('2. Assisted & Restricted Units'!$V$7:$V$399=\"25% AMI\"))","v":0},{"$f":"SUMPRODUCT(('2. Assisted & Restricted Units'!$E$7:$E$399=\"0\")*('2. Assisted & Restricted Units'!$U$7:$U$399=\"NonAssisted\")*('2. Assisted & Restricted Units'!$V$7:$V$399=\"25% AMI\"))","v":0},{"$f":"SUMPRODUCT(('2. Assisted & Restricted Units'!$E$7:$E$399=\"0\")*('2. Assisted & Restricted Units'!$U$7:$U$399=\"Other Restr\")*('2. Assisted & Restricted Units'!$V$7:$V$399=\"25% AMI\"))","v":0},{"$f":"SUMPRODUCT(('2. Assisted & Restricted Units'!$E$7:$E$399=\"0\")*('2. Assisted & Restricted Units'!$U$7:$U$399=\"RHCP-B\")*('2. Assisted & Restricted Units'!$V$7:$V$399=\"25% AMI\"))","v":0},{"$f":"SUMPRODUCT(('2. Assisted & Restricted Units'!$E$7:$E$399=\"0\")*('2. Assisted & Restricted Units'!$U$7:$U$399=\"SERA\")*('2. Assisted & Restricted Units'!$V$7:$V$399=\"25% AMI\"))","v":0},{"$f":"SUMPRODUCT(('2. Assisted & Restricted Units'!$E$7:$E$399=\"0\")*('2. Assisted & Restricted Units'!$U$7:$U$399=\"SUHRP\")*('2. Assisted & Restricted Units'!$V$7:$V$399=\"25% AMI\"))","v":0},{"$f":"SUMPRODUCT(('2. Assisted & Restricted Units'!$E$7:$E$399=\"0\")*('2. Assisted & Restricted Units'!$U$7:$U$399=\"TOD\")*('2. Assisted & Restricted Units'!$V$7:$V$399=\"25% AMI\"))","v":0},{"$f":"SUMPRODUCT(('2. Assisted & Restricted Units'!$E$7:$E$399=\"0\")*('2. Assisted & Restricted Units'!$U$7:$U$399=\"707-E\")*('2. Assisted & Restricted Units'!$V$7:$V$399=\"25% AMI\"))","v":0},{"$f":"SUMPRODUCT(('2. Assisted & Restricted Units'!$E$7:$E$399=\"0\")*('2. Assisted & Restricted Units'!$U$7:$U$399=\"707-N\")*('2. Assisted & Restricted Units'!$V$7:$V$399=\"25% AMI\"))","v":0}]
["0 Bedroom 30% AMI",{"$f":"SUMPRODUCT(('2. Assisted & Restricted Units'!$E$7:$E$399=\"0\")*('2. Assisted & Restricted Units'!$U$7:$U$399=\"CALDAP\")*('2. Assisted & Restricted Units'!$V$7:$V$399=\"30% AMI\"))","v":0},{"$f":"SUMPRODUCT(('2. Assisted & Restricted Units'!$E$7:$E$399=\"0\")*('2. Assisted & Restricted Units'!$U$7:$U$399=\"CHRP-R\")*('2. Assisted & Restricted Units'!$V$7:$V$399=\"30% AMI\"))","v":0},{"$f":"SUMPRODUCT(('2. Assisted & Restricted Units'!$E$7:$E$399=\"0\")*('2. Assisted & Restricted Units'!$U$7:$U$399=\"DDS\")*('2. Assisted & Restricted Units'!$V$7:$V$399=\"30% AMI\"))","v":0},{"$f":"SUMPRODUCT(('2. Assisted & Restricted Units'!$E$7:$E$399=\"0\")*('2. Assisted & Restricted Units'!$U$7:$U$399=\"DPRLP\")*('2. Assisted & Restricted Units'!$V$7:$V$399=\"30% AMI\"))","v":0},{"$f":"SUMPRODUCT(('2. Assisted & Restricted Units'!$E$7:$E$399=\"0\")*('2. Assisted & Restricted Units'!$U$7:$U$399=\"FHDP\")*('2. Assisted & Restricted Units'!$V$7:$V$399=\"30% AMI\"))","v":0},{"$f":"SUMPRODUCT(('2. Assisted & Restricted Units'!$E$7:$E$399=\"0\")*('2. Assisted & Restricted Units'!$U$7:$U$399=\"FMTW\")*('2. Assisted & Restricted Units'!$V$7:$V$399=\"30% AMI\"))","v":0},null,{"$f":"SUMPRODUCT(('2. Assisted & Restricted Units'!$E$7:$E$399=\"0\")*('2. Assisted & Restricted Units'!$U$7:$U$399=\"HOME\")*('2. Assisted & Restricted Units'!$V$7:$V$399=\"30% AMI\"))","v":0},{"$f":"SUMPRODUCT(('2. Assisted & Restricted Units'!$E$7:$E$399=\"0\")*('2. Assisted & Restricted Units'!$U$7:$U$399=\"Market Rate\")*('2. Assisted & Restricted Units'!$V$7:$V$399=\"30% AMI\"))","v":0},{"$f":"SUMPRODUCT(('2. Assisted & Restricted Units'!$E$7:$E$399=\"0\")*('2. Assisted & Restricted Units'!$U$7:$U$399=\"MHP\")*('2. Assisted & Restricted Units'!$V$7:$V$399=\"30% AMI\"))","v":0},{"$f":"SUMPRODUCT(('2. Assisted & Restricted Units'!$E$7:$E$399=\"0\")*('2. Assisted & Restricted Units'!$U$7:$U$399=\"NonAssisted\")*('2. Assisted & Restricted Units'!$V$7:$V$399=\"30% AMI\"))","v":0},{"$f":"SUMPRODUCT(('2. Assisted & Restricted Units'!$E$7:$E$399=\"0\")*('2. Assisted & Restricted Units'!$U$7:$U$399=\"Other Restr\")*('2. Assisted & Restricted Units'!$V$7:$V$399=\"30% AMI\"))","v":0},{"$f":"SUMPRODUCT(('2. Assisted & Restricted Units'!$E$7:$E$399=\"0\")*('2. Assisted & Restricted Units'!$U$7:$U$399=\"RHCP-B\")*('2. Assisted & Restricted Units'!$V$7:$V$399=\"30% AMI\"))","v":0},{"$f":"SUMPRODUCT(('2. Assisted & Restricted Units'!$E$7:$E$399=\"0\")*('2. Assisted & Restricted Units'!$U$7:$U$399=\"SERA\")*('2. Assisted & Restricted Units'!$V$7:$V$399=\"30% AMI\"))","v":0},{"$f":"SUMPRODUCT(('2. Assisted & Restricted Units'!$E$7:$E$399=\"0\")*('2. Assisted & Restricted Units'!$U$7:$U$399=\"SUHRP\")*('2. Assisted & Restricted Units'!$V$7:$V$399=\"30% AMI\"))","v":0},{"$f":"SUMPRODUCT(('2. Assisted & Restricted Units'!$E$7:$E$399=\"0\")*('2. Assisted & Restricted Units'!$U$7:$U$399=\"TOD\")*('2. Assisted & Restricted Units'!$V$7:$V$399=\"30% AMI\"))","v":0},{"$f":"SUMPRODUCT(('2. Assisted & Restricted Units'!$E$7:$E$399=\"0\")*('2. Assisted & Restricted Units'!$U$7:$U$399=\"707-E\")*('2. Assisted & Restricted Units'!$V$7:$V$399=\"30% AMI\"))","v":0},{"$f":"SUMPRODUCT(('2. Assisted & Restricted Units'!$E$7:$E$399=\"0\")*('2. Assisted & Restricted Units'!$U$7:$U$399=\"707-N\")*('2. Assisted & Restricted Units'!$V$7:$V$399=\"30% AMI\"))","v":0}]
["0 Bedroom 35% AMI",{"$f":"SUMPRODUCT(('2. Assisted & Restricted Units'!$E$7:$E$399=\"0\")*('2. Assisted & Restricted Units'!$U$7:$U$399=\"CALDAP\")*('2. Assisted & Restricted Units'!$V$7:$V$399=\"35% AMI\"))","v":0},{"$f":"SUMPRODUCT(('2. Assisted & Restricted Units'!$E$7:$E$399=\"0\")*('2. Assisted & Restricted Units'!$U$7:$U$399=\"CHRP-R\")*('2. Assisted & Restricted Units'!$V$7:$V$399=\"35% AMI\"))","v":0},{"$f":"SUMPRODUCT(('2. Assisted & Restricted Units'!$E$7:$E$399=\"0\")*('2. Assisted & Restricted Units'!$U$7:$U$399=\"DDS\")*('2. Assisted & Restricted Units'!$V$7:$V$399=\"35% AMI\"))","v":0},{"$f":"SUMPRODUCT(('2. Assisted & Restricted Units'!$E$7:$E$399=\"0\")*('2. Assisted & Restricted Units'!$U$7:$U$399=\"DPRLP\")*('2. Assisted & Restricted Units'!$V$7:$V$399=\"35% AMI\"))","v":0},{"$f":"SUMPRODUCT(('2. Assisted & Restricted Units'!$E$7:$E$399=\"0\")*('2. Assisted & Restricted Units'!$U$7:$U$399=\"FHDP\")*('2. Assisted & Restricted Units'!$V$7:$V$399=\"35% AMI\"))","v":0},{"$f":"SUMPRODUCT(('2. Assisted & Restricted Units'!$E$7:$E$399=\"0\")*('2. Assisted & Restricted Units'!$U$7:$U$399=\"FMTW\")*('2. Assisted & Restricted Units'!$V$7:$V$399=\"35% AMI\"))","v":0},null,{"$f":"SUMPRODUCT(('2. Assisted & Restricted Units'!$E$7:$E$399=\"0\")*('2. Assisted & Restricted Units'!$U$7:$U$399=\"HOME\")*('2. Assisted & Restricted Units'!$V$7:$V$399=\"35% AMI\"))","v":0},{"$f":"SUMPRODUCT(('2. Assisted & Restricted Units'!$E$7:$E$399=\"0\")*('2. Assisted & Restricted Units'!$U$7:$U$399=\"Market Rate\")*('2. Assisted & Restricted Units'!$V$7:$V$399=\"35% AMI\"))","v":0},{"$f":"SUMPRODUCT(('2. Assisted & Restricted Units'!$E$7:$E$399=\"0\")*('2. Assisted & Restricted Units'!$U$7:$U$399=\"MHP\")*('2. Assisted & Restricted Units'!$V$7:$V$399=\"35% AMI\"))","v":0},{"$f":"SUMPRODUCT(('2. Assisted & Restricted Units'!$E$7:$E$399=\"0\")*('2. Assisted & Restricted Units'!$U$7:$U$399=\"NonAssisted\")*('2. Assisted & Restricted Units'!$V$7:$V$399=\"35% AMI\"))","v":0},{"$f":"SUMPRODUCT(('2. Assisted & Restricted Units'!$E$7:$E$399=\"0\")*('2. Assisted & Restricted Units'!$U$7:$U$399=\"Other Restr\")*('2. Assisted & Restricted Units'!$V$7:$V$399=\"35% AMI\"))","v":0},{"$f":"SUMPRODUCT(('2. Assisted & Restricted Units'!$E$7:$E$399=\"0\")*('2. Assisted & Restricted Units'!$U$7:$U$399=\"RHCP-B\")*('2. Assisted & Restricted Units'!$V$7:$V$399=\"35% AMI\"))","v":0},{"$f":"SUMPRODUCT(('2. Assisted & Restricted Units'!$E$7:$E$399=\"0\")*('2. Assisted & Restricted Units'!$U$7:$U$399=\"SERA\")*('2. Assisted & Restricted Units'!$V$7:$V$399=\"35% AMI\"))","v":0},{"$f":"SUMPRODUCT(('2. Assisted & Restricted Units'!$E$7:$E$399=\"0\")*('2. Assisted & Restricted Units'!$U$7:$U$399=\"SUHRP\")*('2. Assisted & Restricted Units'!$V$7:$V$399=\"35% AMI\"))","v":0},{"$f":"SUMPRODUCT(('2. Assisted & Restricted Units'!$E$7:$E$399=\"0\")*('2. Assisted & Restricted Units'!$U$7:$U$399=\"TOD\")*('2. Assisted & Restricted Units'!$V$7:$V$399=\"35% AMI\"))","v":0},{"$f":"SUMPRODUCT(('2. Assisted & Restricted Units'!$E$7:$E$399=\"0\")*('2. Assisted & Restricted Units'!$U$7:$U$399=\"707-E\")*('2. Assisted & Restricted Units'!$V$7:$V$399=\"35% AMI\"))","v":0},{"$f":"SUMPRODUCT(('2. Assisted & Restricted Units'!$E$7:$E$399=\"0\")*('2. Assisted & Restricted Units'!$U$7:$U$399=\"707-N\")*('2. Assisted & Restricted Units'!$V$7:$V$399=\"35% AMI\"))","v":0}]
["0 Bedroom 40% AMI",{"$f":"SUMPRODUCT(('2. Assisted & Restricted Units'!$E$7:$E$399=\"0\")*('2. Assisted & Restricted Units'!$U$7:$U$399=\"CALDAP\")*('2. Assisted & Restricted Units'!$V$7:$V$399=\"40% AMI\"))","v":0},{"$f":"SUMPRODUCT(('2. Assisted & Restricted Units'!$E$7:$E$399=\"0\")*('2. Assisted & Restricted Units'!$U$7:$U$399=\"CHRP-R\")*('2. Assisted & Restricted Units'!$V$7:$V$399=\"40% AMI\"))","v":0},{"$f":"SUMPRODUCT(('2. Assisted & Restricted Units'!$E$7:$E$399=\"0\")*('2. Assisted & Restricted Units'!$U$7:$U$399=\"DDS\")*('2. Assisted & Restricted Units'!$V$7:$V$399=\"40% AMI\"))","v":0},{"$f":"SUMPRODUCT(('2. Assisted & Restricted Units'!$E$7:$E$399=\"0\")*('2. Assisted & Restricted Units'!$U$7:$U$399=\"DPRLP\")*('2. Assisted & Restricted Units'!$V$7:$V$399=\"40% AMI\"))","v":0},{"$f":"SUMPRODUCT(('2. Assisted & Restricted Units'!$E$7:$E$399=\"0\")*('2. Assisted & Restricted Units'!$U$7:$U$399=\"FHDP\")*('2. Assisted & Restricted Units'!$V$7:$V$399=\"40% AMI\"))","v":0},{"$f":"SUMPRODUCT(('2. Assisted & Restricted Units'!$E$7:$E$399=\"0\")*('2. Assisted & Restricted Units'!$U$7:$U$399=\"FMTW\")*('2. Assisted & Restricted Units'!$V$7:$V$399=\"40% AMI\"))","v":0},null,{"$f":"SUMPRODUCT(('2. Assisted & Restricted Units'!$E$7:$E$399=\"0\")*('2. Assisted & Restricted Units'!$U$7:$U$399=\"HOME\")*('2. Assisted & Restricted Units'!$V$7:$V$399=\"40% AMI\"))","v":0},{"$f":"SUMPRODUCT(('2. Assisted & Restricted Units'!$E$7:$E$399=\"0\")*('2. Assisted & Restricted Units'!$U$7:$U$399=\"Market Rate\")*('2. Assisted & Restricted Units'!$V$7:$V$399=\"40% AMI\"))","v":0},{"$f":"SUMPRODUCT(('2. Assisted & Restricted Units'!$E$7:$E$399=\"0\")*('2. Assisted & Restricted Units'!$U$7:$U$399=\"MHP\")*('2. Assisted & Restricted Units'!$V$7:$V$399=\"40% AMI\"))","v":0},{"$f":"SUMPRODUCT(('2. Assisted & Restricted Units'!$E$7:$E$399=\"0\")*('2. Assisted & Restricted Units'!$U$7:$U$399=\"NonAssisted\")*('2. Assisted & Restricted Units'!$V$7:$V$399=\"40% AMI\"))","v":0},{"$f":"SUMPRODUCT(('2. Assisted & Restricted Units'!$E$7:$E$399=\"0\")*('2. Assisted & Restricted Units'!$U$7:$U$399=\"Other Restr\")*('2. Assisted & Restricted Units'!$V$7:$V$399=\"40% AMI\"))","v":0},{"$f":"SUMPRODUCT(('2. Assisted & Restricted Units'!$E$7:$E$399=\"0\")*('2. Assisted & Restricted Units'!$U$7:$U$399=\"RHCP-B\")*('2. Assisted & Restricted Units'!$V$7:$V$399=\"40% AMI\"))","v":0},{"$f":"SUMPRODUCT(('2. Assisted & Restricted Units'!$E$7:$E$399=\"0\")*('2. Assisted & Restricted Units'!$U$7:$U$399=\"SERA\")*('2. Assisted & Restricted Units'!$V$7:$V$399=\"40% AMI\"))","v":0},{"$f":"SUMPRODUCT(('2. Assisted & Restricted Units'!$E$7:$E$399=\"0\")*('2. Assisted & Restricted Units'!$U$7:$U$399=\"SUHRP\")*('2. Assisted & Restricted Units'!$V$7:$V$399=\"40% AMI\"))","v":0},{"$f":"SUMPRODUCT(('2. Assisted & Restricted Units'!$E$7:$E$399=\"0\")*('2. Assisted & Restricted Units'!$U$7:$U$399=\"TOD\")*('2. Assisted & Restricted Units'!$V$7:$V$399=\"40% AMI\"))","v":0},{"$f":"SUMPRODUCT(('2. Assisted & Restricted Units'!$E$7:$E$399=\"0\")*('2. Assisted & Restricted Units'!$U$7:$U$399=\"707-E\")*('2. Assisted & Restricted Units'!$V$7:$V$399=\"40% AMI\"))","v":0},{"$f":"SUMPRODUCT(('2. Assisted & Restricted Units'!$E$7:$E$399=\"0\")*('2. Assisted & Restricted Units'!$U$7:$U$399=\"707-N\")*('2. Assisted & Restricted Units'!$V$7:$V$399=\"40% AMI\"))","v":0}]
["0 Bedroom 45% AMI",{"$f":"SUMPRODUCT(('2. Assisted & Restricted Units'!$E$7:$E$399=\"0\")*('2. Assisted & Restricted Units'!$U$7:$U$399=\"CALDAP\")*('2. Assisted & Restricted Units'!$V$7:$V$399=\"45% AMI\"))","v":0},{"$f":"SUMPRODUCT(('2. Assisted & Restricted Units'!$E$7:$E$399=\"0\")*('2. Assisted & Restricted Units'!$U$7:$U$399=\"CHRP-R\")*('2. Assisted & Restricted Units'!$V$7:$V$399=\"45% AMI\"))","v":0},{"$f":"SUMPRODUCT(('2. Assisted & Restricted Units'!$E$7:$E$399=\"0\")*('2. Assisted & Restricted Units'!$U$7:$U$399=\"DDS\")*('2. Assisted & Restricted Units'!$V$7:$V$399=\"45% AMI\"))","v":0},{"$f":"SUMPRODUCT(('2. Assisted & Restricted Units'!$E$7:$E$399=\"0\")*('2. Assisted & Restricted Units'!$U$7:$U$399=\"DPRLP\")*('2. Assisted & Restricted Units'!$V$7:$V$399=\"45% AMI\"))","v":0},{"$f":"SUMPRODUCT(('2. Assisted & Restricted Units'!$E$7:$E$399=\"0\")*('2. Assisted & Restricted Units'!$U$7:$U$399=\"FHDP\")*('2. Assisted & Restricted Units'!$V$7:$V$399=\"45% AMI\"))","v":0},{"$f":"SUMPRODUCT(('2. Assisted & Restricted Units'!$E$7:$E$399=\"0\")*('2. Assisted & Restricted Units'!$U$7:$U$399=\"FMTW\")*('2. Assisted & Restricted Units'!$V$7:$V$399=\"45% AMI\"))","v":0},null,{"$f":"SUMPRODUCT(('2. Assisted & Restricted Units'!$E$7:$E$399=\"0\")*('2. Assisted & Restricted Units'!$U$7:$U$399=\"HOME\")*('2. Assisted & Restricted Units'!$V$7:$V$399=\"45% AMI\"))","v":0},{"$f":"SUMPRODUCT(('2. Assisted & Restricted Units'!$E$7:$E$399=\"0\")*('2. Assisted & Restricted Units'!$U$7:$U$399=\"Market Rate\")*('2. Assisted & Restricted Units'!$V$7:$V$399=\"45% AMI\"))","v":0},{"$f":"SUMPRODUCT(('2. Assisted & Restricted Units'!$E$7:$E$399=\"0\")*('2. Assisted & Restricted Units'!$U$7:$U$399=\"MHP\")*('2. Assisted & Restricted Units'!$V$7:$V$399=\"45% AMI\"))","v":0},{"$f":"SUMPRODUCT(('2. Assisted & Restricted Units'!$E$7:$E$399=\"0\")*('2. Assisted & Restricted Units'!$U$7:$U$399=\"NonAssisted\")*('2. Assisted & Restricted Units'!$V$7:$V$399=\"45% AMI\"))","v":0},{"$f":"SUMPRODUCT(('2. Assisted & Restricted Units'!$E$7:$E$399=\"0\")*('2. Assisted & Restricted Units'!$U$7:$U$399=\"Other Restr\")*('2. Assisted & Restricted Units'!$V$7:$V$399=\"45% AMI\"))","v":0},{"$f":"SUMPRODUCT(('2. Assisted & Restricted Units'!$E$7:$E$399=\"0\")*('2. Assisted & Restricted Units'!$U$7:$U$399=\"RHCP-B\")*('2. Assisted & Restricted Units'!$V$7:$V$399=\"45% AMI\"))","v":0},{"$f":"SUMPRODUCT(('2. Assisted & Restricted Units'!$E$7:$E$399=\"0\")*('2. Assisted & Restricted Units'!$U$7:$U$399=\"SERA\")*('2. Assisted & Restricted Units'!$V$7:$V$399=\"45% AMI\"))","v":0},{"$f":"SUMPRODUCT(('2. Assisted & Restricted Units'!$E$7:$E$399=\"0\")*('2. Assisted & Restricted Units'!$U$7:$U$399=\"SUHRP\")*('2. Assisted & Restricted Units'!$V$7:$V$399=\"45% AMI\"))","v":0},{"$f":"SUMPRODUCT(('2. Assisted & Restricted Units'!$E$7:$E$399=\"0\")*('2. Assisted & Restricted Units'!$U$7:$U$399=\"TOD\")*('2. Assisted & Restricted Units'!$V$7:$V$399=\"45% AMI\"))","v":0},{"$f":"SUMPRODUCT(('2. Assisted & Restricted Units'!$E$7:$E$399=\"0\")*('2. Assisted & Restricted Units'!$U$7:$U$399=\"707-E\")*('2. Assisted & Restricted Units'!$V$7:$V$399=\"45% AMI\"))","v":0},{"$f":"SUMPRODUCT(('2. Assisted & Restricted Units'!$E$7:$E$399=\"0\")*('2. Assisted & Restricted Units'!$U$7:$U$399=\"707-N\")*('2. Assisted & Restricted Units'!$V$7:$V$399=\"45% AMI\"))","v":0}]
["0 Bedroom 50% AMI",{"$f":"SUMPRODUCT(('2. Assisted & Restricted Units'!$E$7:$E$399=\"0\")*('2. Assisted & Restricted Units'!$U$7:$U$399=\"CALDAP\")*('2. Assisted & Restricted Units'!$V$7:$V$399=\"50% AMI\"))","v":0},{"$f":"SUMPRODUCT(('2. Assisted & Restricted Units'!$E$7:$E$399=\"0\")*('2. Assisted & Restricted Units'!$U$7:$U$399=\"CHRP-R\")*('2. Assisted & Restricted Units'!$V$7:$V$399=\"50% AMI\"))","v":0},{"$f":"SUMPRODUCT(('2. Assisted & Restricted Units'!$E$7:$E$399=\"0\")*('2. Assisted & Restricted Units'!$U$7:$U$399=\"DDS\")*('2. Assisted & Restricted Units'!$V$7:$V$399=\"50% AMI\"))","v":0},{"$f":"SUMPRODUCT(('2. Assisted & Restricted Units'!$E$7:$E$399=\"0\")*('2. Assisted & Restricted Units'!$U$7:$U$399=\"DPRLP\")*('2. Assisted & Restricted Units'!$V$7:$V$399=\"50% AMI\"))","v":0},{"$f":"SUMPRODUCT(('2. Assisted & Restricted Units'!$E$7:$E$399=\"0\")*('2. Assisted & Restricted Units'!$U$7:$U$399=\"FHDP\")*('2. Assisted & Restricted Units'!$V$7:$V$399=\"50% AMI\"))","v":0},{"$f":"SUMPRODUCT(('2. Assisted & Restricted Units'!$E$7:$E$399=\"0\")*('2. Assisted & Restricted Units'!$U$7:$U$399=\"FMTW\")*('2. Assisted & Restricted Units'!$V$7:$V$399=\"50% AMI\"))","v":0},null,{"$f":"SUMPRODUCT(('2. Assisted & Restricted Units'!$E$7:$E$399=\"0\")*('2. Assisted & Restricted Units'!$U$7:$U$399=\"HOME\")*('2. Assisted & Restricted Units'!$V$7:$V$399=\"50% AMI\"))","v":0},{"$f":"SUMPRODUCT(('2. Assisted & Restricted Units'!$E$7:$E$399=\"0\")*('2. Assisted & Restricted Units'!$U$7:$U$399=\"Market Rate\")*('2. Assisted & Restricted Units'!$V$7:$V$399=\"50% AMI\"))","v":0},{"$f":"SUMPRODUCT(('2. Assisted & Restricted Units'!$E$7:$E$399=\"0\")*('2. Assisted & Restricted Units'!$U$7:$U$399=\"MHP\")*('2. Assisted & Restricted Units'!$V$7:$V$399=\"50% AMI\"))","v":0},{"$f":"SUMPRODUCT(('2. Assisted & Restricted Units'!$E$7:$E$399=\"0\")*('2. Assisted & Restricted Units'!$U$7:$U$399=\"NonAssisted\")*('2. Assisted & Restricted Units'!$V$7:$V$399=\"50% AMI\"))","v":0},{"$f":"SUMPRODUCT(('2. Assisted & Restricted Units'!$E$7:$E$399=\"0\")*('2. Assisted & Restricted Units'!$U$7:$U$399=\"Other Restr\")*('2. Assisted & Restricted Units'!$V$7:$V$399=\"50% AMI\"))","v":0},{"$f":"SUMPRODUCT(('2. Assisted & Restricted Units'!$E$7:$E$399=\"0\")*('2. Assisted & Restricted Units'!$U$7:$U$399=\"RHCP-B\")*('2. Assisted & Restricted Units'!$V$7:$V$399=\"50% AMI\"))","v":0},{"$f":"SUMPRODUCT(('2. Assisted & Restricted Units'!$E$7:$E$399=\"0\")*('2. Assisted & Restricted Units'!$U$7:$U$399=\"SERA\")*('2. Assisted & Restricted Units'!$V$7:$V$399=\"50% AMI\"))","v":0},{"$f":"SUMPRODUCT(('2. Assisted & Restricted Units'!$E$7:$E$399=\"0\")*('2. Assisted & Restricted Units'!$U$7:$U$399=\"SUHRP\")*('2. Assisted & Restricted Units'!$V$7:$V$399=\"50% AMI\"))","v":0},{"$f":"SUMPRODUCT(('2. Assisted & Restricted Units'!$E$7:$E$399=\"0\")*('2. Assisted & Restricted Units'!$U$7:$U$399=\"TOD\")*('2. Assisted & Restricted Units'!$V$7:$V$399=\"50% AMI\"))","v":0},{"$f":"SUMPRODUCT(('2. Assisted & Restricted Units'!$E$7:$E$399=\"0\")*('2. Assisted & Restricted Units'!$U$7:$U$399=\"707-E\")*('2. Assisted & Restricted Units'!$V$7:$V$399=\"50% AMI\"))","v":0},{"$f":"SUMPRODUCT(('2. Assisted & Restricted Units'!$E$7:$E$399=\"0\")*('2. Assisted & Restricted Units'!$U$7:$U$399=\"707-N\")*('2. Assisted & Restricted Units'!$V$7:$V$399=\"50% AMI\"))","v":0}]
["0 Bedroom 55% AMI",{"$f":"SUMPRODUCT(('2. Assisted & Restricted Units'!$E$7:$E$399=\"0\")*('2. Assisted & Restricted Units'!$U$7:$U$399=\"CALDAP\")*('2. Assisted & Restricted Units'!$V$7:$V$399=\"55% AMI\"))","v":0},{"$f":"SUMPRODUCT(('2. Assisted & Restricted Units'!$E$7:$E$399=\"0\")*('2. Assisted & Restricted Units'!$U$7:$U$399=\"CHRP-R\")*('2. Assisted & Restricted Units'!$V$7:$V$399=\"55% AMI\"))","v":0},{"$f":"SUMPRODUCT(('2. Assisted & Restricted Units'!$E$7:$E$399=\"0\")*('2. Assisted & Restricted Units'!$U$7:$U$399=\"DDS\")*('2. Assisted & Restricted Units'!$V$7:$V$399=\"55% AMI\"))","v":0},{"$f":"SUMPRODUCT(('2. Assisted & Restricted Units'!$E$7:$E$399=\"0\")*('2. Assisted & Restricted Units'!$U$7:$U$399=\"DPRLP\")*('2. Assisted & Restricted Units'!$V$7:$V$399=\"55% AMI\"))","v":0},{"$f":"SUMPRODUCT(('2. Assisted & Restricted Units'!$E$7:$E$399=\"0\")*('2. Assisted & Restricted Units'!$U$7:$U$399=\"FHDP\")*('2. Assisted & Restricted Units'!$V$7:$V$399=\"55% AMI\"))","v":0},{"$f":"SUMPRODUCT(('2. Assisted & Restricted Units'!$E$7:$E$399=\"0\")*('2. Assisted & Restricted Units'!$U$7:$U$399=\"FMTW\")*('2. Assisted & Restricted Units'!$V$7:$V$399=\"55% AMI\"))","v":0},null,{"$f":"SUMPRODUCT(('2. Assisted & Restricted Units'!$E$7:$E$399=\"0\")*('2. Assisted & Restricted Units'!$U$7:$U$399=\"HOME\")*('2. Assisted & Restricted Units'!$V$7:$V$399=\"55% AMI\"))","v":0},{"$f":"SUMPRODUCT(('2. Assisted & Restricted Units'!$E$7:$E$399=\"0\")*('2. Assisted & Restricted Units'!$U$7:$U$399=\"Market Rate\")*('2. Assisted & Restricted Units'!$V$7:$V$399=\"55% AMI\"))","v":0},{"$f":"SUMPRODUCT(('2. Assisted & Restricted Units'!$E$7:$E$399=\"0\")*('2. Assisted & Restricted Units'!$U$7:$U$399=\"MHP\")*('2. Assisted & Restricted Units'!$V$7:$V$399=\"55% AMI\"))","v":0},{"$f":"SUMPRODUCT(('2. Assisted & Restricted Units'!$E$7:$E$399=\"0\")*('2. Assisted & Restricted Units'!$U$7:$U$399=\"NonAssisted\")*('2. Assisted & Restricted Units'!$V$7:$V$399=\"55% AMI\"))","v":0},{"$f":"SUMPRODUCT(('2. Assisted & Restricted Units'!$E$7:$E$399=\"0\")*('2. Assisted & Restricted Units'!$U$7:$U$399=\"Other Restr\")*('2. Assisted & Restricted Units'!$V$7:$V$399=\"55% AMI\"))","v":0},{"$f":"SUMPRODUCT(('2. Assisted & Restricted Units'!$E$7:$E$399=\"0\")*('2. Assisted & Restricted Units'!$U$7:$U$399=\"RHCP-B\")*('2. Assisted & Restricted Units'!$V$7:$V$399=\"55% AMI\"))","v":0},{"$f":"SUMPRODUCT(('2. Assisted & Restricted Units'!$E$7:$E$399=\"0\")*('2. Assisted & Restricted Units'!$U$7:$U$399=\"SERA\")*('2. Assisted & Restricted Units'!$V$7:$V$399=\"55% AMI\"))","v":0},{"$f":"SUMPRODUCT(('2. Assisted & Restricted Units'!$E$7:$E$399=\"0\")*('2. Assisted & Restricted Units'!$U$7:$U$399=\"SUHRP\")*('2. Assisted & Restricted Units'!$V$7:$V$399=\"55% AMI\"))","v":0},{"$f":"SUMPRODUCT(('2. Assisted & Restricted Units'!$E$7:$E$399=\"0\")*('2. Assisted & Restricted Units'!$U$7:$U$399=\"TOD\")*('2. Assisted & Restricted Units'!$V$7:$V$399=\"55% AMI\"))","v":0},{"$f":"SUMPRODUCT(('2. Assisted & Restricted Units'!$E$7:$E$399=\"0\")*('2. Assisted & Restricted Units'!$U$7:$U$399=\"707-E\")*('2. Assisted & Restricted Units'!$V$7:$V$399=\"55% AMI\"))","v":0},{"$f":"SUMPRODUCT(('2. Assisted & Restricted Units'!$E$7:$E$399=\"0\")*('2. Assisted & Restricted Units'!$U$7:$U$399=\"707-N\")*('2. Assisted & Restricted Units'!$V$7:$V$399=\"55% AMI\"))","v":0}]
["0 Bedroom 60% AMI",{"$f":"SUMPRODUCT(('2. Assisted & Restricted Units'!$E$7:$E$399=\"0\")*('2. Assisted & Restricted Units'!$U$7:$U$399=\"CALDAP\")*('2. Assisted & Restricted Units'!$V$7:$V$399=\"60% AMI\"))","v":0},{"$f":"SUMPRODUCT(('2. Assisted & Restricted Units'!$E$7:$E$399=\"0\")*('2. Assisted & Restricted Units'!$U$7:$U$399=\"CHRP-R\")*('2. Assisted & Restricted Units'!$V$7:$V$399=\"60% AMI\"))","v":0},{"$f":"SUMPRODUCT(('2. Assisted & Restricted Units'!$E$7:$E$399=\"0\")*('2. Assisted & Restricted Units'!$U$7:$U$399=\"DDS\")*('2. Assisted & Restricted Units'!$V$7:$V$399=\"60% AMI\"))","v":0},{"$f":"SUMPRODUCT(('2. Assisted & Restricted Units'!$E$7:$E$399=\"0\")*('2. Assisted & Restricted Units'!$U$7:$U$399=\"DPRLP\")*('2. Assisted & Restricted Units'!$V$7:$V$399=\"60% AMI\"))","v":0},{"$f":"SUMPRODUCT(('2. Assisted & Restricted Units'!$E$7:$E$399=\"0\")*('2. Assisted & Restricted Units'!$U$7:$U$399=\"FHDP\")*('2. Assisted & Restricted Units'!$V$7:$V$399=\"60% AMI\"))","v":0},{"$f":"SUMPRODUCT(('2. Assisted & Restricted Units'!$E$7:$E$399=\"0\")*('2. Assisted & Restricted Units'!$U$7:$U$399=\"FMTW\")*('2. Assisted & Restricted Units'!$V$7:$V$399=\"60% AMI\"))","v":0},null,{"$f":"SUMPRODUCT(('2. Assisted & Restricted Units'!$E$7:$E$399=\"0\")*('2. Assisted & Restricted Units'!$U$7:$U$399=\"HOME\")*('2. Assisted & Restricted Units'!$V$7:$V$399=\"60% AMI\"))","v":0},{"$f":"SUMPRODUCT(('2. Assisted & Restricted Units'!$E$7:$E$399=\"0\")*('2. Assisted & Restricted Units'!$U$7:$U$399=\"Market Rate\")*('2. Assisted & Restricted Units'!$V$7:$V$399=\"60% AMI\"))","v":0},{"$f":"SUMPRODUCT(('2. Assisted & Restricted Units'!$E$7:$E$399=\"0\")*('2. Assisted & Restricted Units'!$U$7:$U$399=\"MHP\")*('2. Assisted & Restricted Units'!$V$7:$V$399=\"60% AMI\"))","v":0},{"$f":"SUMPRODUCT(('2. Assisted & Restricted Units'!$E$7:$E$399=\"0\")*('2. Assisted & Restricted Units'!$U$7:$U$399=\"NonAssisted\")*('2. Assisted & Restricted Units'!$V$7:$V$399=\"60% AMI\"))","v":0},{"$f":"SUMPRODUCT(('2. Assisted & Restricted Units'!$E$7:$E$399=\"0\")*('2. Assisted & Restricted Units'!$U$7:$U$399=\"Other Restr\")*('2. Assisted & Restricted Units'!$V$7:$V$399=\"60% AMI\"))","v":0},{"$f":"SUMPRODUCT(('2. Assisted & Restricted Units'!$E$7:$E$399=\"0\")*('2. Assisted & Restricted Units'!$U$7:$U$399=\"RHCP-B\")*('2. Assisted & Restricted Units'!$V$7:$V$399=\"60% AMI\"))","v":0},{"$f":"SUMPRODUCT(('2. Assisted & Restricted Units'!$E$7:$E$399=\"0\")*('2. Assisted & Restricted Units'!$U$7:$U$399=\"SERA\")*('2. Assisted & Restricted Units'!$V$7:$V$399=\"60% AMI\"))","v":0},{"$f":"SUMPRODUCT(('2. Assisted & Restricted Units'!$E$7:$E$399=\"0\")*('2. Assisted & Restricted Units'!$U$7:$U$399=\"SUHRP\")*('2. Assisted & Restricted Units'!$V$7:$V$399=\"60% AMI\"))","v":0},{"$f":"SUMPRODUCT(('2. Assisted & Restricted Units'!$E$7:$E$399=\"0\")*('2. Assisted & Restricted Units'!$U$7:$U$399=\"TOD\")*('2. Assisted & Restricted Units'!$V$7:$V$399=\"60% AMI\"))","v":0},{"$f":"SUMPRODUCT(('2. Assisted & Restricted Units'!$E$7:$E$399=\"0\")*('2. Assisted & Restricted Units'!$U$7:$U$399=\"707-E\")*('2. Assisted & Restricted Units'!$V$7:$V$399=\"60% AMI\"))","v":0},{"$f":"SUMPRODUCT(('2. Assisted & Restricted Units'!$E$7:$E$399=\"0\")*('2. Assisted & Restricted Units'!$U$7:$U$399=\"707-N\")*('2. Assisted & Restricted Units'!$V$7:$V$399=\"60% AMI\"))","v":0}]
["0 Bedroom 80% AMI",{"$f":"SUMPRODUCT(('2. Assisted & Restricted Units'!$E$7:$E$399=\"0\")*('2. Assisted & Restricted Units'!$U$7:$U$399=\"CALDAP\")*('2. Assisted & Restricted Units'!$V$7:$V$399=\"80% AMI\"))","v":0},{"$f":"SUMPRODUCT(('2. Assisted & Restricted Units'!$E$7:$E$399=\"0\")*('2. Assisted & Restricted Units'!$U$7:$U$399=\"CHRP-R\")*('2. Assisted & Restricted Units'!$V$7:$V$399=\"80% AMI\"))","v":0},{"$f":"SUMPRODUCT(('2. Assisted & Restricted Units'!$E$7:$E$399=\"0\")*('2. Assisted & Restricted Units'!$U$7:$U$399=\"DDS\")*('2. Assisted & Restricted Units'!$V$7:$V$399=\"80% AMI\"))","v":0},{"$f":"SUMPRODUCT(('2. Assisted & Restricted Units'!$E$7:$E$399=\"0\")*('2. Assisted & Restricted Units'!$U$7:$U$399=\"DPRLP\")*('2. Assisted & Restricted Units'!$V$7:$V$399=\"80% AMI\"))","v":0},{"$f":"SUMPRODUCT(('2. Assisted & Restricted Units'!$E$7:$E$399=\"0\")*('2. Assisted & Restricted Units'!$U$7:$U$399=\"FHDP\")*('2. Assisted & Restricted Units'!$V$7:$V$399=\"80% AMI\"))","v":0},{"$f":"SUMPRODUCT(('2. Assisted & Restricted Units'!$E$7:$E$399=\"0\")*('2. Assisted & Restricted Units'!$U$7:$U$399=\"FMTW\")*('2. Assisted & Restricted Units'!$V$7:$V$399=\"80% AMI\"))","v":0},null,{"$f":"SUMPRODUCT(('2. Assisted & Restricted Units'!$E$7:$E$399=\"0\")*('2. Assisted & Restricted Units'!$U$7:$U$399=\"HOME\")*('2. Assisted & Restricted Units'!$V$7:$V$399=\"80% AMI\"))","v":0},{"$f":"SUMPRODUCT(('2. Assisted & Restricted Units'!$E$7:$E$399=\"0\")*('2. Assisted & Restricted Units'!$U$7:$U$399=\"Market Rate\")*('2. Assisted & Restricted Units'!$V$7:$V$399=\"80% AMI\"))","v":0},{"$f":"SUMPRODUCT(('2. Assisted & Restricted Units'!$E$7:$E$399=\"0\")*('2. Assisted & Restricted Units'!$U$7:$U$399=\"MHP\")*('2. Assisted & Restricted Units'!$V$7:$V$399=\"80% AMI\"))","v":0},{"$f":"SUMPRODUCT(('2. Assisted & Restricted Units'!$E$7:$E$399=\"0\")*('2. Assisted & Restricted Units'!$U$7:$U$399=\"NonAssisted\")*('2. Assisted & Restricted Units'!$V$7:$V$399=\"80% AMI\"))","v":0},{"$f":"SUMPRODUCT(('2. Assisted & Restricted Units'!$E$7:$E$399=\"0\")*('2. Assisted & Restricted Units'!$U$7:$U$399=\"Other Restr\")*('2. Assisted & Restricted Units'!$V$7:$V$399=\"80% AMI\"))","v":0},{"$f":"SUMPRODUCT(('2. Assisted & Restricted Units'!$E$7:$E$399=\"0\")*('2. Assisted & Restricted Units'!$U$7:$U$399=\"RHCP-B\")*('2. Assisted & Restricted Units'!$V$7:$V$399=\"80% AMI\"))","v":0},{"$f":"SUMPRODUCT(('2. Assisted & Restricted Units'!$E$7:$E$399=\"0\")*('2. Assisted & Restricted Units'!$U$7:$U$399=\"SERA\")*('2. Assisted & Restricted Units'!$V$7:$V$399=\"80% AMI\"))","v":0},{"$f":"SUMPRODUCT(('2. Assisted & Restricted Units'!$E$7:$E$399=\"0\")*('2. Assisted & Restricted Units'!$U$7:$U$399=\"SUHRP\")*('2. Assisted & Restricted Units'!$V$7:$V$399=\"80% AMI\"))","v":0},{"$f":"SUMPRODUCT(('2. Assisted & Restricted Units'!$E$7:$E$399=\"0\")*('2. Assisted & Restricted Units'!$U$7:$U$399=\"TOD\")*('2. Assisted & Restricted Units'!$V$7:$V$399=\"80% AMI\"))","v":0},{"$f":"SUMPRODUCT(('2. Assisted & Restricted Units'!$E$7:$E$399=\"0\")*('2. Assisted & Restricted Units'!$U$7:$U$399=\"707-E\")*('2. Assisted & Restricted Units'!$V$7:$V$399=\"80% AMI\"))","v":0},{"$f":"SUMPRODUCT(('2. Assisted & Restricted Units'!$E$7:$E$399=\"0\")*('2. Assisted & Restricted Units'!$U$7:$U$399=\"707-N\")*('2. Assisted & Restricted Units'!$V$7:$V$399=\"80% AMI\"))","v":0}]
["0 Bedroom 20% SMI",{"$f":"SUMPRODUCT(('2. Assisted & Restricted Units'!$E$7:$E$399=\"0\")*('2. Assisted & Restricted Units'!$U$7:$U$399=\"CALDAP\")*('2. Assisted & Restricted Units'!$V$7:$V$399=\"20% SMI\"))","v":0},{"$f":"SUMPRODUCT(('2. Assisted & Restricted Units'!$E$7:$E$399=\"0\")*('2. Assisted & Restricted Units'!$U$7:$U$399=\"CHRP-R\")*('2. Assisted & Restricted Units'!$V$7:$V$399=\"20% SMI\"))","v":0},{"$f":"SUMPRODUCT(('2. Assisted & Restricted Units'!$E$7:$E$399=\"0\")*('2. Assisted & Restricted Units'!$U$7:$U$399=\"DDS\")*('2. Assisted & Restricted Units'!$V$7:$V$399=\"20% SMI\"))","v":0},{"$f":"SUMPRODUCT(('2. Assisted & Restricted Units'!$E$7:$E$399=\"0\")*('2. Assisted & Restricted Units'!$U$7:$U$399=\"DPRLP\")*('2. Assisted & Restricted Units'!$V$7:$V$399=\"20% SMI\"))","v":0},{"$f":"SUMPRODUCT(('2. Assisted & Restricted Units'!$E$7:$E$399=\"0\")*('2. Assisted & Restricted Units'!$U$7:$U$399=\"FHDP\")*('2. Assisted & Restricted Units'!$V$7:$V$399=\"20% SMI\"))","v":0},{"$f":"SUMPRODUCT(('2. Assisted & Restricted Units'!$E$7:$E$399=\"0\")*('2. Assisted & Restricted Units'!$U$7:$U$399=\"FMTW\")*('2. Assisted & Restricted Units'!$V$7:$V$399=\"20% SMI\"))","v":0},null,{"$f":"SUMPRODUCT(('2. Assisted & Restricted Units'!$E$7:$E$399=\"0\")*('2. Assisted & Restricted Units'!$U$7:$U$399=\"HOME\")*('2. Assisted & Restricted Units'!$V$7:$V$399=\"20% SMI\"))","v":0},{"$f":"SUMPRODUCT(('2. Assisted & Restricted Units'!$E$7:$E$399=\"0\")*('2. Assisted & Restricted Units'!$U$7:$U$399=\"Market Rate\")*('2. Assisted & Restricted Units'!$V$7:$V$399=\"20% SMI\"))","v":0},{"$f":"SUMPRODUCT(('2. Assisted & Restricted Units'!$E$7:$E$399=\"0\")*('2. Assisted & Restricted Units'!$U$7:$U$399=\"MHP\")*('2. Assisted & Restricted Units'!$V$7:$V$399=\"20% SMI\"))","v":0},{"$f":"SUMPRODUCT(('2. Assisted & Restricted Units'!$E$7:$E$399=\"0\")*('2. Assisted & Restricted Units'!$U$7:$U$399=\"NonAssisted\")*('2. Assisted & Restricted Units'!$V$7:$V$399=\"20% SMI\"))","v":0},{"$f":"SUMPRODUCT(('2. Assisted & Restricted Units'!$E$7:$E$399=\"0\")*('2. Assisted & Restricted Units'!$U$7:$U$399=\"Other Restr\")*('2. Assisted & Restricted Units'!$V$7:$V$399=\"20% SMI\"))","v":0},{"$f":"SUMPRODUCT(('2. Assisted & Restricted Units'!$E$7:$E$399=\"0\")*('2. Assisted & Restricted Units'!$U$7:$U$399=\"RHCP-B\")*('2. Assisted & Restricted Units'!$V$7:$V$399=\"20% SMI\"))","v":0},{"$f":"SUMPRODUCT(('2. Assisted & Restricted Units'!$E$7:$E$399=\"0\")*('2. Assisted & Restricted Units'!$U$7:$U$399=\"SERA\")*('2. Assisted & Restricted Units'!$V$7:$V$399=\"20% SMI\"))","v":0},{"$f":"SUMPRODUCT(('2. Assisted & Restricted Units'!$E$7:$E$399=\"0\")*('2. Assisted & Restricted Units'!$U$7:$U$399=\"SUHRP\")*('2. Assisted & Restricted Units'!$V$7:$V$399=\"20% SMI\"))","v":0},{"$f":"SUMPRODUCT(('2. Assisted & Restricted Units'!$E$7:$E$399=\"0\")*('2. Assisted & Restricted Units'!$U$7:$U$399=\"TOD\")*('2. Assisted & Restricted Units'!$V$7:$V$399=\"20% SMI\"))","v":0},{"$f":"SUMPRODUCT(('2. Assisted & Restricted Units'!$E$7:$E$399=\"0\")*('2. Assisted & Restricted Units'!$U$7:$U$399=\"707-E\")*('2. Assisted & Restricted Units'!$V$7:$V$399=\"20% SMI\"))","v":0},{"$f":"SUMPRODUCT(('2. Assisted & Restricted Units'!$E$7:$E$399=\"0\")*('2. Assisted & Restricted Units'!$U$7:$U$399=\"707-N\")*('2. Assisted & Restricted Units'!$V$7:$V$399=\"20% SMI\"))","v":0}]
["0 Bedroom 25% SMI",{"$f":"SUMPRODUCT(('2. Assisted & Restricted Units'!$E$7:$E$399=\"0\")*('2. Assisted & Restricted Units'!$U$7:$U$399=\"CALDAP\")*('2. Assisted & Restricted Units'!$V$7:$V$399=\"25% SMI\"))","v":0},{"$f":"SUMPRODUCT(('2. Assisted & Restricted Units'!$E$7:$E$399=\"0\")*('2. Assisted & Restricted Units'!$U$7:$U$399=\"CHRP-R\")*('2. Assisted & Restricted Units'!$V$7:$V$399=\"25% SMI\"))","v":0},{"$f":"SUMPRODUCT(('2. Assisted & Restricted Units'!$E$7:$E$399=\"0\")*('2. Assisted & Restricted Units'!$U$7:$U$399=\"DDS\")*('2. Assisted & Restricted Units'!$V$7:$V$399=\"25% SMI\"))","v":0},{"$f":"SUMPRODUCT(('2. Assisted & Restricted Units'!$E$7:$E$399=\"0\")*('2. Assisted & Restricted Units'!$U$7:$U$399=\"DPRLP\")*('2. Assisted & Restricted Units'!$V$7:$V$399=\"25% SMI\"))","v":0},{"$f":"SUMPRODUCT(('2. Assisted & Restricted Units'!$E$7:$E$399=\"0\")*('2. Assisted & Restricted Units'!$U$7:$U$399=\"FHDP\")*('2. Assisted & Restricted Units'!$V$7:$V$399=\"25% SMI\"))","v":0},{"$f":"SUMPRODUCT(('2. Assisted & Restricted Units'!$E$7:$E$399=\"0\")*('2. Assisted & Restricted Units'!$U$7:$U$399=\"FMTW\")*('2. Assisted & Restricted Units'!$V$7:$V$399=\"25% SMI\"))","v":0},null,{"$f":"SUMPRODUCT(('2. Assisted & Restricted Units'!$E$7:$E$399=\"0\")*('2. Assisted & Restricted Units'!$U$7:$U$399=\"HOME\")*('2. Assisted & Restricted Units'!$V$7:$V$399=\"25% SMI\"))","v":0},{"$f":"SUMPRODUCT(('2. Assisted & Restricted Units'!$E$7:$E$399=\"0\")*('2. Assisted & Restricted Units'!$U$7:$U$399=\"Market Rate\")*('2. Assisted & Restricted Units'!$V$7:$V$399=\"25% SMI\"))","v":0},{"$f":"SUMPRODUCT(('2. Assisted & Restricted Units'!$E$7:$E$399=\"0\")*('2. Assisted & Restricted Units'!$U$7:$U$399=\"MHP\")*('2. Assisted & Restricted Units'!$V$7:$V$399=\"25% SMI\"))","v":0},{"$f":"SUMPRODUCT(('2. Assisted & Restricted Units'!$E$7:$E$399=\"0\")*('2. Assisted & Restricted Units'!$U$7:$U$399=\"NonAssisted\")*('2. Assisted & Restricted Units'!$V$7:$V$399=\"25% SMI\"))","v":0},{"$f":"SUMPRODUCT(('2. Assisted & Restricted Units'!$E$7:$E$399=\"0\")*('2. Assisted & Restricted Units'!$U$7:$U$399=\"Other Restr\")*('2. Assisted & Restricted Units'!$V$7:$V$399=\"25% SMI\"))","v":0},{"$f":"SUMPRODUCT(('2. Assisted & Restricted Units'!$E$7:$E$399=\"0\")*('2. Assisted & Restricted Units'!$U$7:$U$399=\"RHCP-B\")*('2. Assisted & Restricted Units'!$V$7:$V$399=\"25% SMI\"))","v":0},{"$f":"SUMPRODUCT(('2. Assisted & Restricted Units'!$E$7:$E$399=\"0\")*('2. Assisted & Restricted Units'!$U$7:$U$399=\"SERA\")*('2. Assisted & Restricted Units'!$V$7:$V$399=\"25% SMI\"))","v":0},{"$f":"SUMPRODUCT(('2. Assisted & Restricted Units'!$E$7:$E$399=\"0\")*('2. Assisted & Restricted Units'!$U$7:$U$399=\"SUHRP\")*('2. Assisted & Restricted Units'!$V$7:$V$399=\"25% SMI\"))","v":0},{"$f":"SUMPRODUCT(('2. Assisted & Restricted Units'!$E$7:$E$399=\"0\")*('2. Assisted & Restricted Units'!$U$7:$U$399=\"TOD\")*('2. Assisted & Restricted Units'!$V$7:$V$399=\"25% SMI\"))","v":0},{"$f":"SUMPRODUCT(('2. Assisted & Restricted Units'!$E$7:$E$399=\"0\")*('2. Assisted & Restricted Units'!$U$7:$U$399=\"707-E\")*('2. Assisted & Restricted Units'!$V$7:$V$399=\"25% SMI\"))","v":0},{"$f":"SUMPRODUCT(('2. Assisted & Restricted Units'!$E$7:$E$399=\"0\")*('2. Assisted & Restricted Units'!$U$7:$U$399=\"707-N\")*('2. Assisted & Restricted Units'!$V$7:$V$399=\"25% SMI\"))","v":0}]
["0 Bedroom 30% SMI",{"$f":"SUMPRODUCT(('2. Assisted & Restricted Units'!$E$7:$E$399=\"0\")*('2. Assisted & Restricted Units'!$U$7:$U$399=\"CALDAP\")*('2. Assisted & Restricted Units'!$V$7:$V$399=\"30% SMI\"))","v":0},{"$f":"SUMPRODUCT(('2. Assisted & Restricted Units'!$E$7:$E$399=\"0\")*('2. Assisted & Restricted Units'!$U$7:$U$399=\"CHRP-R\")*('2. Assisted & Restricted Units'!$V$7:$V$399=\"30% SMI\"))","v":0},{"$f":"SUMPRODUCT(('2. Assisted & Restricted Units'!$E$7:$E$399=\"0\")*('2. Assisted & Restricted Units'!$U$7:$U$399=\"DDS\")*('2. Assisted & Restricted Units'!$V$7:$V$399=\"30% SMI\"))","v":0},{"$f":"SUMPRODUCT(('2. Assisted & Restricted Units'!$E$7:$E$399=\"0\")*('2. Assisted & Restricted Units'!$U$7:$U$399=\"DPRLP\")*('2. Assisted & Restricted Units'!$V$7:$V$399=\"30% SMI\"))","v":0},{"$f":"SUMPRODUCT(('2. Assisted & Restricted Units'!$E$7:$E$399=\"0\")*('2. Assisted & Restricted Units'!$U$7:$U$399=\"FHDP\")*('2. Assisted & Restricted Units'!$V$7:$V$399=\"30% SMI\"))","v":0},{"$f":"SUMPRODUCT(('2. Assisted & Restricted Units'!$E$7:$E$399=\"0\")*('2. Assisted & Restricted Units'!$U$7:$U$399=\"FMTW\")*('2. Assisted & Restricted Units'!$V$7:$V$399=\"30% SMI\"))","v":0},null,{"$f":"SUMPRODUCT(('2. Assisted & Restricted Units'!$E$7:$E$399=\"0\")*('2. Assisted & Restricted Units'!$U$7:$U$399=\"HOME\")*('2. Assisted & Restricted Units'!$V$7:$V$399=\"30% SMI\"))","v":0},{"$f":"SUMPRODUCT(('2. Assisted & Restricted Units'!$E$7:$E$399=\"0\")*('2. Assisted & Restricted Units'!$U$7:$U$399=\"Market Rate\")*('2. Assisted & Restricted Units'!$V$7:$V$399=\"30% SMI\"))","v":0},{"$f":"SUMPRODUCT(('2. Assisted & Restricted Units'!$E$7:$E$399=\"0\")*('2. Assisted & Restricted Units'!$U$7:$U$399=\"MHP\")*('2. Assisted & Restricted Units'!$V$7:$V$399=\"30% SMI\"))","v":0},{"$f":"SUMPRODUCT(('2. Assisted & Restricted Units'!$E$7:$E$399=\"0\")*('2. Assisted & Restricted Units'!$U$7:$U$399=\"NonAssisted\")*('2. Assisted & Restricted Units'!$V$7:$V$399=\"30% SMI\"))","v":0},{"$f":"SUMPRODUCT(('2. Assisted & Restricted Units'!$E$7:$E$399=\"0\")*('2. Assisted & Restricted Units'!$U$7:$U$399=\"Other Restr\")*('2. Assisted & Restricted Units'!$V$7:$V$399=\"30% SMI\"))","v":0},{"$f":"SUMPRODUCT(('2. Assisted & Restricted Units'!$E$7:$E$399=\"0\")*('2. Assisted & Restricted Units'!$U$7:$U$399=\"RHCP-B\")*('2. Assisted & Restricted Units'!$V$7:$V$399=\"30% SMI\"))","v":0},{"$f":"SUMPRODUCT(('2. Assisted & Restricted Units'!$E$7:$E$399=\"0\")*('2. Assisted & Restricted Units'!$U$7:$U$399=\"SERA\")*('2. Assisted & Restricted Units'!$V$7:$V$399=\"30% SMI\"))","v":0},{"$f":"SUMPRODUCT(('2. Assisted & Restricted Units'!$E$7:$E$399=\"0\")*('2. Assisted & Restricted Units'!$U$7:$U$399=\"SUHRP\")*('2. Assisted & Restricted Units'!$V$7:$V$399=\"30% SMI\"))","v":0},{"$f":"SUMPRODUCT(('2. Assisted & Restricted Units'!$E$7:$E$399=\"0\")*('2. Assisted & Restricted Units'!$U$7:$U$399=\"TOD\")*('2. Assisted & Restricted Units'!$V$7:$V$399=\"30% SMI\"))","v":0},{"$f":"SUMPRODUCT(('2. Assisted & Restricted Units'!$E$7:$E$399=\"0\")*('2. Assisted & Restricted Units'!$U$7:$U$399=\"707-E\")*('2. Assisted & Restricted Units'!$V$7:$V$399=\"30% SMI\"))","v":0},{"$f":"SUMPRODUCT(('2. Assisted & Restricted Units'!$E$7:$E$399=\"0\")*('2. Assisted & Restricted Units'!$U$7:$U$399=\"707-N\")*('2. Assisted & Restricted Units'!$V$7:$V$399=\"30% SMI\"))","v":0}]
["0 Bedroom 35% SMI",{"$f":"SUMPRODUCT(('2. Assisted & Restricted Units'!$E$7:$E$399=\"0\")*('2. Assisted & Restricted Units'!$U$7:$U$399=\"CALDAP\")*('2. Assisted & Restricted Units'!$V$7:$V$399=\"35% SMI\"))","v":0},{"$f":"SUMPRODUCT(('2. Assisted & Restricted Units'!$E$7:$E$399=\"0\")*('2. Assisted & Restricted Units'!$U$7:$U$399=\"CHRP-R\")*('2. Assisted & Restricted Units'!$V$7:$V$399=\"35% SMI\"))","v":0},{"$f":"SUMPRODUCT(('2. Assisted & Restricted Units'!$E$7:$E$399=\"0\")*('2. Assisted & Restricted Units'!$U$7:$U$399=\"DDS\")*('2. Assisted & Restricted Units'!$V$7:$V$399=\"35% SMI\"))","v":0},{"$f":"SUMPRODUCT(('2. Assisted & Restricted Units'!$E$7:$E$399=\"0\")*('2. Assisted & Restricted Units'!$U$7:$U$399=\"DPRLP\")*('2. Assisted & Restricted Units'!$V$7:$V$399=\"35% SMI\"))","v":0},{"$f":"SUMPRODUCT(('2. Assisted & Restricted Units'!$E$7:$E$399=\"0\")*('2. Assisted & Restricted Units'!$U$7:$U$399=\"FHDP\")*('2. Assisted & Restricted Units'!$V$7:$V$399=\"35% SMI\"))","v":0},{"$f":"SUMPRODUCT(('2. Assisted & Restricted Units'!$E$7:$E$399=\"0\")*('2. Assisted & Restricted Units'!$U$7:$U$399=\"FMTW\")*('2. Assisted & Restricted Units'!$V$7:$V$399=\"35% SMI\"))","v":0},null,{"$f":"SUMPRODUCT(('2. Assisted & Restricted Units'!$E$7:$E$399=\"0\")*('2. Assisted & Restricted Units'!$U$7:$U$399=\"HOME\")*('2. Assisted & Restricted Units'!$V$7:$V$399=\"35% SMI\"))","v":0},{"$f":"SUMPRODUCT(('2. Assisted & Restricted Units'!$E$7:$E$399=\"0\")*('2. Assisted & Restricted Units'!$U$7:$U$399=\"Market Rate\")*('2. Assisted & Restricted Units'!$V$7:$V$399=\"35% SMI\"))","v":0},{"$f":"SUMPRODUCT(('2. Assisted & Restricted Units'!$E$7:$E$399=\"0\")*('2. Assisted & Restricted Units'!$U$7:$U$399=\"MHP\")*('2. Assisted & Restricted Units'!$V$7:$V$399=\"35% SMI\"))","v":0},{"$f":"SUMPRODUCT(('2. Assisted & Restricted Units'!$E$7:$E$399=\"0\")*('2. Assisted & Restricted Units'!$U$7:$U$399=\"NonAssisted\")*('2. Assisted & Restricted Units'!$V$7:$V$399=\"35% SMI\"))","v":0},{"$f":"SUMPRODUCT(('2. Assisted & Restricted Units'!$E$7:$E$399=\"0\")*('2. Assisted & Restricted Units'!$U$7:$U$399=\"Other Restr\")*('2. Assisted & Restricted Units'!$V$7:$V$399=\"35% SMI\"))","v":0},{"$f":"SUMPRODUCT(('2. Assisted & Restricted Units'!$E$7:$E$399=\"0\")*('2. Assisted & Restricted Units'!$U$7:$U$399=\"RHCP-B\")*('2. Assisted & Restricted Units'!$V$7:$V$399=\"35% SMI\"))","v":0},{"$f":"SUMPRODUCT(('2. Assisted & Restricted Units'!$E$7:$E$399=\"0\")*('2. Assisted & Restricted Units'!$U$7:$U$399=\"SERA\")*('2. Assisted & Restricted Units'!$V$7:$V$399=\"35% SMI\"))","v":0},{"$f":"SUMPRODUCT(('2. Assisted & Restricted Units'!$E$7:$E$399=\"0\")*('2. Assisted & Restricted Units'!$U$7:$U$399=\"SUHRP\")*('2. Assisted & Restricted Units'!$V$7:$V$399=\"35% SMI\"))","v":0},{"$f":"SUMPRODUCT(('2. Assisted & Restricted Units'!$E$7:$E$399=\"0\")*('2. Assisted & Restricted Units'!$U$7:$U$399=\"TOD\")*('2. Assisted & Restricted Units'!$V$7:$V$399=\"35% SMI\"))","v":0},{"$f":"SUMPRODUCT(('2. Assisted & Restricted Units'!$E$7:$E$399=\"0\")*('2. Assisted & Restricted Units'!$U$7:$U$399=\"707-E\")*('2. Assisted & Restricted Units'!$V$7:$V$399=\"35% SMI\"))","v":0},{"$f":"SUMPRODUCT(('2. Assisted & Restricted Units'!$E$7:$E$399=\"0\")*('2. Assisted & Restricted Units'!$U$7:$U$399=\"707-N\")*('2. Assisted & Restricted Units'!$V$7:$V$399=\"35% SMI\"))","v":0}]
["0 Bedroom 40% SMI",{"$f":"SUMPRODUCT(('2. Assisted & Restricted Units'!$E$7:$E$399=\"0\")*('2. Assisted & Restricted Units'!$U$7:$U$399=\"CALDAP\")*('2. Assisted & Restricted Units'!$V$7:$V$399=\"40% SMI\"))","v":0},{"$f":"SUMPRODUCT(('2. Assisted & Restricted Units'!$E$7:$E$399=\"0\")*('2. Assisted & Restricted Units'!$U$7:$U$399=\"CHRP-R\")*('2. Assisted & Restricted Units'!$V$7:$V$399=\"40% SMI\"))","v":0},{"$f":"SUMPRODUCT(('2. Assisted & Restricted Units'!$E$7:$E$399=\"0\")*('2. Assisted & Restricted Units'!$U$7:$U$399=\"DDS\")*('2. Assisted & Restricted Units'!$V$7:$V$399=\"40% SMI\"))","v":0},{"$f":"SUMPRODUCT(('2. Assisted & Restricted Units'!$E$7:$E$399=\"0\")*('2. Assisted & Restricted Units'!$U$7:$U$399=\"DPRLP\")*('2. Assisted & Restricted Units'!$V$7:$V$399=\"40% SMI\"))","v":0},{"$f":"SUMPRODUCT(('2. Assisted & Restricted Units'!$E$7:$E$399=\"0\")*('2. Assisted & Restricted Units'!$U$7:$U$399=\"FHDP\")*('2. Assisted & Restricted Units'!$V$7:$V$399=\"40% SMI\"))","v":0},{"$f":"SUMPRODUCT(('2. Assisted & Restricted Units'!$E$7:$E$399=\"0\")*('2. Assisted & Restricted Units'!$U$7:$U$399=\"FMTW\")*('2. Assisted & Restricted Units'!$V$7:$V$399=\"40% SMI\"))","v":0},null,{"$f":"SUMPRODUCT(('2. Assisted & Restricted Units'!$E$7:$E$399=\"0\")*('2. Assisted & Restricted Units'!$U$7:$U$399=\"HOME\")*('2. Assisted & Restricted Units'!$V$7:$V$399=\"40% SMI\"))","v":0},{"$f":"SUMPRODUCT(('2. Assisted & Restricted Units'!$E$7:$E$399=\"0\")*('2. Assisted & Restricted Units'!$U$7:$U$399=\"Market Rate\")*('2. Assisted & Restricted Units'!$V$7:$V$399=\"40% SMI\"))","v":0},{"$f":"SUMPRODUCT(('2. Assisted & Restricted Units'!$E$7:$E$399=\"0\")*('2. Assisted & Restricted Units'!$U$7:$U$399=\"MHP\")*('2. Assisted & Restricted Units'!$V$7:$V$399=\"40% SMI\"))","v":0},{"$f":"SUMPRODUCT(('2. Assisted & Restricted Units'!$E$7:$E$399=\"0\")*('2. Assisted & Restricted Units'!$U$7:$U$399=\"NonAssisted\")*('2. Assisted & Restricted Units'!$V$7:$V$399=\"40% SMI\"))","v":0},{"$f":"SUMPRODUCT(('2. Assisted & Restricted Units'!$E$7:$E$399=\"0\")*('2. Assisted & Restricted Units'!$U$7:$U$399=\"Other Restr\")*('2. Assisted & Restricted Units'!$V$7:$V$399=\"40% SMI\"))","v":0},{"$f":"SUMPRODUCT(('2. Assisted & Restricted Units'!$E$7:$E$399=\"0\")*('2. Assisted & Restricted Units'!$U$7:$U$399=\"RHCP-B\")*('2. Assisted & Restricted Units'!$V$7:$V$399=\"40% SMI\"))","v":0},{"$f":"SUMPRODUCT(('2. Assisted & Restricted Units'!$E$7:$E$399=\"0\")*('2. Assisted & Restricted Units'!$U$7:$U$399=\"SERA\")*('2. Assisted & Restricted Units'!$V$7:$V$399=\"40% SMI\"))","v":0},{"$f":"SUMPRODUCT(('2. Assisted & Restricted Units'!$E$7:$E$399=\"0\")*('2. Assisted & Restricted Units'!$U$7:$U$399=\"SUHRP\")*('2. Assisted & Restricted Units'!$V$7:$V$399=\"40% SMI\"))","v":0},{"$f":"SUMPRODUCT(('2. Assisted & Restricted Units'!$E$7:$E$399=\"0\")*('2. Assisted & Restricted Units'!$U$7:$U$399=\"TOD\")*('2. Assisted & Restricted Units'!$V$7:$V$399=\"40% SMI\"))","v":0},{"$f":"SUMPRODUCT(('2. Assisted & Restricted Units'!$E$7:$E$399=\"0\")*('2. Assisted & Restricted Units'!$U$7:$U$399=\"707-E\")*('2. Assisted & Restricted Units'!$V$7:$V$399=\"40% SMI\"))","v":0},{"$f":"SUMPRODUCT(('2. Assisted & Restricted Units'!$E$7:$E$399=\"0\")*('2. Assisted & Restricted Units'!$U$7:$U$399=\"707-N\")*('2. Assisted & Restricted Units'!$V$7:$V$399=\"40% SMI\"))","v":0}]
["0 Bedroom 45% SMI",{"$f":"SUMPRODUCT(('2. Assisted & Restricted Units'!$E$7:$E$399=\"0\")*('2. Assisted & Restricted Units'!$U$7:$U$399=\"CALDAP\")*('2. Assisted & Restricted Units'!$V$7:$V$399=\"45% SMI\"))","v":0},{"$f":"SUMPRODUCT(('2. Assisted & Restricted Units'!$E$7:$E$399=\"0\")*('2. Assisted & Restricted Units'!$U$7:$U$399=\"CHRP-R\")*('2. Assisted & Restricted Units'!$V$7:$V$399=\"45% SMI\"))","v":0},{"$f":"SUMPRODUCT(('2. Assisted & Restricted Units'!$E$7:$E$399=\"0\")*('2. Assisted & Restricted Units'!$U$7:$U$399=\"DDS\")*('2. Assisted & Restricted Units'!$V$7:$V$399=\"45% SMI\"))","v":0},{"$f":"SUMPRODUCT(('2. Assisted & Restricted Units'!$E$7:$E$399=\"0\")*('2. Assisted & Restricted Units'!$U$7:$U$399=\"DPRLP\")*('2. Assisted & Restricted Units'!$V$7:$V$399=\"45% SMI\"))","v":0},{"$f":"SUMPRODUCT(('2. Assisted & Restricted Units'!$E$7:$E$399=\"0\")*('2. Assisted & Restricted Units'!$U$7:$U$399=\"FHDP\")*('2. Assisted & Restricted Units'!$V$7:$V$399=\"45% SMI\"))","v":0},{"$f":"SUMPRODUCT(('2. Assisted & Restricted Units'!$E$7:$E$399=\"0\")*('2. Assisted & Restricted Units'!$U$7:$U$399=\"FMTW\")*('2. Assisted & Restricted Units'!$V$7:$V$399=\"45% SMI\"))","v":0},null,{"$f":"SUMPRODUCT(('2. Assisted & Restricted Units'!$E$7:$E$399=\"0\")*('2. Assisted & Restricted Units'!$U$7:$U$399=\"HOME\")*('2. Assisted & Restricted Units'!$V$7:$V$399=\"45% SMI\"))","v":0},{"$f":"SUMPRODUCT(('2. Assisted & Restricted Units'!$E$7:$E$399=\"0\")*('2. Assisted & Restricted Units'!$U$7:$U$399=\"Market Rate\")*('2. Assisted & Restricted Units'!$V$7:$V$399=\"45% SMI\"))","v":0},{"$f":"SUMPRODUCT(('2. Assisted & Restricted Units'!$E$7:$E$399=\"0\")*('2. Assisted & Restricted Units'!$U$7:$U$399=\"MHP\")*('2. Assisted & Restricted Units'!$V$7:$V$399=\"45% SMI\"))","v":0},{"$f":"SUMPRODUCT(('2. Assisted & Restricted Units'!$E$7:$E$399=\"0\")*('2. Assisted & Restricted Units'!$U$7:$U$399=\"NonAssisted\")*('2. Assisted & Restricted Units'!$V$7:$V$399=\"45% SMI\"))","v":0},{"$f":"SUMPRODUCT(('2. Assisted & Restricted Units'!$E$7:$E$399=\"0\")*('2. Assisted & Restricted Units'!$U$7:$U$399=\"Other Restr\")*('2. Assisted & Restricted Units'!$V$7:$V$399=\"45% SMI\"))","v":0},{"$f":"SUMPRODUCT(('2. Assisted & Restricted Units'!$E$7:$E$399=\"0\")*('2. Assisted & Restricted Units'!$U$7:$U$399=\"RHCP-B\")*('2. Assisted & Restricted Units'!$V$7:$V$399=\"45% SMI\"))","v":0},{"$f":"SUMPRODUCT(('2. Assisted & Restricted Units'!$E$7:$E$399=\"0\")*('2. Assisted & Restricted Units'!$U$7:$U$399=\"SERA\")*('2. Assisted & Restricted Units'!$V$7:$V$399=\"45% SMI\"))","v":0},{"$f":"SUMPRODUCT(('2. Assisted & Restricted Units'!$E$7:$E$399=\"0\")*('2. Assisted & Restricted Units'!$U$7:$U$399=\"SUHRP\")*('2. Assisted & Restricted Units'!$V$7:$V$399=\"45% SMI\"))","v":0},{"$f":"SUMPRODUCT(('2. Assisted & Restricted Units'!$E$7:$E$399=\"0\")*('2. Assisted & Restricted Units'!$U$7:$U$399=\"TOD\")*('2. Assisted & Restricted Units'!$V$7:$V$399=\"45% SMI\"))","v":0},{"$f":"SUMPRODUCT(('2. Assisted & Restricted Units'!$E$7:$E$399=\"0\")*('2. Assisted & Restricted Units'!$U$7:$U$399=\"707-E\")*('2. Assisted & Restricted Units'!$V$7:$V$399=\"45% SMI\"))","v":0},{"$f":"SUMPRODUCT(('2. Assisted & Restricted Units'!$E$7:$E$399=\"0\")*('2. Assisted & Restricted Units'!$U$7:$U$399=\"707-N\")*('2. Assisted & Restricted Units'!$V$7:$V$399=\"45% SMI\"))","v":0}]
["0 Bedroom 50% SMI",{"$f":"SUMPRODUCT(('2. Assisted & Restricted Units'!$E$7:$E$399=\"0\")*('2. Assisted & Restricted Units'!$U$7:$U$399=\"CALDAP\")*('2. Assisted & Restricted Units'!$V$7:$V$399=\"50% SMI\"))","v":0},{"$f":"SUMPRODUCT(('2. Assisted & Restricted Units'!$E$7:$E$399=\"0\")*('2. Assisted & Restricted Units'!$U$7:$U$399=\"CHRP-R\")*('2. Assisted & Restricted Units'!$V$7:$V$399=\"50% SMI\"))","v":0},{"$f":"SUMPRODUCT(('2. Assisted & Restricted Units'!$E$7:$E$399=\"0\")*('2. Assisted & Restricted Units'!$U$7:$U$399=\"DDS\")*('2. Assisted & Restricted Units'!$V$7:$V$399=\"50% SMI\"))","v":0},{"$f":"SUMPRODUCT(('2. Assisted & Restricted Units'!$E$7:$E$399=\"0\")*('2. Assisted & Restricted Units'!$U$7:$U$399=\"DPRLP\")*('2. Assisted & Restricted Units'!$V$7:$V$399=\"50% SMI\"))","v":0},{"$f":"SUMPRODUCT(('2. Assisted & Restricted Units'!$E$7:$E$399=\"0\")*('2. Assisted & Restricted Units'!$U$7:$U$399=\"FHDP\")*('2. Assisted & Restricted Units'!$V$7:$V$399=\"50% SMI\"))","v":0},{"$f":"SUMPRODUCT(('2. Assisted & Restricted Units'!$E$7:$E$399=\"0\")*('2. Assisted & Restricted Units'!$U$7:$U$399=\"FMTW\")*('2. Assisted & Restricted Units'!$V$7:$V$399=\"50% SMI\"))","v":0},null,{"$f":"SUMPRODUCT(('2. Assisted & Restricted Units'!$E$7:$E$399=\"0\")*('2. Assisted & Restricted Units'!$U$7:$U$399=\"HOME\")*('2. Assisted & Restricted Units'!$V$7:$V$399=\"50% SMI\"))","v":0},{"$f":"SUMPRODUCT(('2. Assisted & Restricted Units'!$E$7:$E$399=\"0\")*('2. Assisted & Restricted Units'!$U$7:$U$399=\"Market Rate\")*('2. Assisted & Restricted Units'!$V$7:$V$399=\"50% SMI\"))","v":0},{"$f":"SUMPRODUCT(('2. Assisted & Restricted Units'!$E$7:$E$399=\"0\")*('2. Assisted & Restricted Units'!$U$7:$U$399=\"MHP\")*('2. Assisted & Restricted Units'!$V$7:$V$399=\"50% SMI\"))","v":0},{"$f":"SUMPRODUCT(('2. Assisted & Restricted Units'!$E$7:$E$399=\"0\")*('2. Assisted & Restricted Units'!$U$7:$U$399=\"NonAssisted\")*('2. Assisted & Restricted Units'!$V$7:$V$399=\"50% SMI\"))","v":0},{"$f":"SUMPRODUCT(('2. Assisted & Restricted Units'!$E$7:$E$399=\"0\")*('2. Assisted & Restricted Units'!$U$7:$U$399=\"Other Restr\")*('2. Assisted & Restricted Units'!$V$7:$V$399=\"50% SMI\"))","v":0},{"$f":"SUMPRODUCT(('2. Assisted & Restricted Units'!$E$7:$E$399=\"0\")*('2. Assisted & Restricted Units'!$U$7:$U$399=\"RHCP-B\")*('2. Assisted & Restricted Units'!$V$7:$V$399=\"50% SMI\"))","v":0},{"$f":"SUMPRODUCT(('2. Assisted & Restricted Units'!$E$7:$E$399=\"0\")*('2. Assisted & Restricted Units'!$U$7:$U$399=\"SERA\")*('2. Assisted & Restricted Units'!$V$7:$V$399=\"50% SMI\"))","v":0},{"$f":"SUMPRODUCT(('2. Assisted & Restricted Units'!$E$7:$E$399=\"0\")*('2. Assisted & Restricted Units'!$U$7:$U$399=\"SUHRP\")*('2. Assisted & Restricted Units'!$V$7:$V$399=\"50% SMI\"))","v":0},{"$f":"SUMPRODUCT(('2. Assisted & Restricted Units'!$E$7:$E$399=\"0\")*('2. Assisted & Restricted Units'!$U$7:$U$399=\"TOD\")*('2. Assisted & Restricted Units'!$V$7:$V$399=\"50% SMI\"))","v":0},{"$f":"SUMPRODUCT(('2. Assisted & Restricted Units'!$E$7:$E$399=\"0\")*('2. Assisted & Restricted Units'!$U$7:$U$399=\"707-E\")*('2. Assisted & Restricted Units'!$V$7:$V$399=\"50% SMI\"))","v":0},{"$f":"SUMPRODUCT(('2. Assisted & Restricted Units'!$E$7:$E$399=\"0\")*('2. Assisted & Restricted Units'!$U$7:$U$399=\"707-N\")*('2. Assisted & Restricted Units'!$V$7:$V$399=\"50% SMI\"))","v":0}]
["0 Bedroom 100% SMI",{"$f":"SUMPRODUCT(('2. Assisted & Restricted Units'!$E$7:$E$399=\"0\")*('2. Assisted & Restricted Units'!$U$7:$U$399=\"CALDAP\")*('2. Assisted & Restricted Units'!$V$7:$V$399=\"100% SMI\"))","v":0},{"$f":"SUMPRODUCT(('2. Assisted & Restricted Units'!$E$7:$E$399=\"0\")*('2. Assisted & Restricted Units'!$U$7:$U$399=\"CHRP-R\")*('2. Assisted & Restricted Units'!$V$7:$V$399=\"100% SMI\"))","v":0},{"$f":"SUMPRODUCT(('2. Assisted & Restricted Units'!$E$7:$E$399=\"0\")*('2. Assisted & Restricted Units'!$U$7:$U$399=\"DDS\")*('2. Assisted & Restricted Units'!$V$7:$V$399=\"100% SMI\"))","v":0},{"$f":"SUMPRODUCT(('2. Assisted & Restricted Units'!$E$7:$E$399=\"0\")*('2. Assisted & Restricted Units'!$U$7:$U$399=\"DPRLP\")*('2. Assisted & Restricted Units'!$V$7:$V$399=\"100% SMI\"))","v":0},{"$f":"SUMPRODUCT(('2. Assisted & Restricted Units'!$E$7:$E$399=\"0\")*('2. Assisted & Restricted Units'!$U$7:$U$399=\"FHDP\")*('2. Assisted & Restricted Units'!$V$7:$V$399=\"100% SMI\"))","v":0},{"$f":"SUMPRODUCT(('2. Assisted & Restricted Units'!$E$7:$E$399=\"0\")*('2. Assisted & Restricted Units'!$U$7:$U$399=\"FMTW\")*('2. Assisted & Restricted Units'!$V$7:$V$399=\"100% SMI\"))","v":0},null,{"$f":"SUMPRODUCT(('2. Assisted & Restricted Units'!$E$7:$E$399=\"0\")*('2. Assisted & Restricted Units'!$U$7:$U$399=\"HOME\")*('2. Assisted & Restricted Units'!$V$7:$V$399=\"100% SMI\"))","v":0},{"$f":"SUMPRODUCT(('2. Assisted & Restricted Units'!$E$7:$E$399=\"0\")*('2. Assisted & Restricted Units'!$U$7:$U$399=\"Market Rate\")*('2. Assisted & Restricted Units'!$V$7:$V$399=\"100% SMI\"))","v":0},{"$f":"SUMPRODUCT(('2. Assisted & Restricted Units'!$E$7:$E$399=\"0\")*('2. Assisted & Restricted Units'!$U$7:$U$399=\"MHP\")*('2. Assisted & Restricted Units'!$V$7:$V$399=\"100% SMI\"))","v":0},{"$f":"SUMPRODUCT(('2. Assisted & Restricted Units'!$E$7:$E$399=\"0\")*('2. Assisted & Restricted Units'!$U$7:$U$399=\"NonAssisted\")*('2. Assisted & Restricted Units'!$V$7:$V$399=\"100% SMI\"))","v":0},{"$f":"SUMPRODUCT(('2. Assisted & Restricted Units'!$E$7:$E$399=\"0\")*('2. Assisted & Restricted Units'!$U$7:$U$399=\"Other Restr\")*('2. Assisted & Restricted Units'!$V$7:$V$399=\"100% SMI\"))","v":0},{"$f":"SUMPRODUCT(('2. Assisted & Restricted Units'!$E$7:$E$399=\"0\")*('2. Assisted & Restricted Units'!$U$7:$U$399=\"RHCP-B\")*('2. Assisted & Restricted Units'!$V$7:$V$399=\"100% SMI\"))","v":0},{"$f":"SUMPRODUCT(('2. Assisted & Restricted Units'!$E$7:$E$399=\"0\")*('2. Assisted & Restricted Units'!$U$7:$U$399=\"SERA\")*('2. Assisted & Restricted Units'!$V$7:$V$399=\"100% SMI\"))","v":0},{"$f":"SUMPRODUCT(('2. Assisted & Restricted Units'!$E$7:$E$399=\"0\")*('2. Assisted & Restricted Units'!$U$7:$U$399=\"SUHRP\")*('2. Assisted & Restricted Units'!$V$7:$V$399=\"100% SMI\"))","v":0},{"$f":"SUMPRODUCT(('2. Assisted & Restricted Units'!$E$7:$E$399=\"0\")*('2. Assisted & Restricted Units'!$U$7:$U$399=\"TOD\")*('2. Assisted & Restricted Units'!$V$7:$V$399=\"100% SMI\"))","v":0},{"$f":"SUMPRODUCT(('2. Assisted & Restricted Units'!$E$7:$E$399=\"0\")*('2. Assisted & Restricted Units'!$U$7:$U$399=\"707-E\")*('2. Assisted & Restricted Units'!$V$7:$V$399=\"100% SMI\"))","v":0},{"$f":"SUMPRODUCT(('2. Assisted & Restricted Units'!$E$7:$E$399=\"0\")*('2. Assisted & Restricted Units'!$U$7:$U$399=\"707-N\")*('2. Assisted & Restricted Units'!$V$7:$V$399=\"100% SMI\"))","v":0}]
["0 Bedroom VLI HOME",{"$f":"SUMPRODUCT(('2. Assisted & Restricted Units'!$E$7:$E$399=\"0\")*('2. Assisted & Restricted Units'!$U$7:$U$399=\"CALDAP\")*('2. Assisted & Restricted Units'!$V$7:$V$399=\"VLI HOME\"))","v":0},{"$f":"SUMPRODUCT(('2. Assisted & Restricted Units'!$E$7:$E$399=\"0\")*('2. Assisted & Restricted Units'!$U$7:$U$399=\"CHRP-R\")*('2. Assisted & Restricted Units'!$V$7:$V$399=\"VLI HOME\"))","v":0},{"$f":"SUMPRODUCT(('2. Assisted & Restricted Units'!$E$7:$E$399=\"0\")*('2. Assisted & Restricted Units'!$U$7:$U$399=\"DDS\")*('2. Assisted & Restricted Units'!$V$7:$V$399=\"VLI HOME\"))","v":0},{"$f":"SUMPRODUCT(('2. Assisted & Restricted Units'!$E$7:$E$399=\"0\")*('2. Assisted & Restricted Units'!$U$7:$U$399=\"DPRLP\")*('2. Assisted & Restricted Units'!$V$7:$V$399=\"VLI HOME\"))","v":0},{"$f":"SUMPRODUCT(('2. Assisted & Restricted Units'!$E$7:$E$399=\"0\")*('2. Assisted & Restricted Units'!$U$7:$U$399=\"FHDP\")*('2. Assisted & Restricted Units'!$V$7:$V$399=\"VLI HOME\"))","v":0},{"$f":"SUMPRODUCT(('2. Assisted & Restricted Units'!$E$7:$E$399=\"0\")*('2. Assisted & Restricted Units'!$U$7:$U$399=\"FMTW\")*('2. Assisted & Restricted Units'!$V$7:$V$399=\"VLI HOME\"))","v":0},null,{"$f":"SUMPRODUCT(('2. Assisted & Restricted Units'!$E$7:$E$399=\"0\")*('2. Assisted & Restricted Units'!$U$7:$U$399=\"HOME\")*('2. Assisted & Restricted Units'!$V$7:$V$399=\"VLI HOME\"))","v":0},{"$f":"SUMPRODUCT(('2. Assisted & Restricted Units'!$E$7:$E$399=\"0\")*('2. Assisted & Restricted Units'!$U$7:$U$399=\"Market Rate\")*('2. Assisted & Restricted Units'!$V$7:$V$399=\"VLI HOME\"))","v":0},{"$f":"SUMPRODUCT(('2. Assisted & Restricted Units'!$E$7:$E$399=\"0\")*('2. Assisted & Restricted Units'!$U$7:$U$399=\"MHP\")*('2. Assisted & Restricted Units'!$V$7:$V$399=\"VLI HOME\"))","v":0},{"$f":"SUMPRODUCT(('2. Assisted & Restricted Units'!$E$7:$E$399=\"0\")*('2. Assisted & Restricted Units'!$U$7:$U$399=\"NonAssisted\")*('2. Assisted & Restricted Units'!$V$7:$V$399=\"VLI HOME\"))","v":0},{"$f":"SUMPRODUCT(('2. Assisted & Restricted Units'!$E$7:$E$399=\"0\")*('2. Assisted & Restricted Units'!$U$7:$U$399=\"Other Restr\")*('2. Assisted & Restricted Units'!$V$7:$V$399=\"VLI HOME\"))","v":0},{"$f":"SUMPRODUCT(('2. Assisted & Restricted Units'!$E$7:$E$399=\"0\")*('2. Assisted & Restricted Units'!$U$7:$U$399=\"RHCP-B\")*('2. Assisted & Restricted Units'!$V$7:$V$399=\"VLI HOME\"))","v":0},{"$f":"SUMPRODUCT(('2. Assisted & Restricted Units'!$E$7:$E$399=\"0\")*('2. Assisted & Restricted Units'!$U$7:$U$399=\"SERA\")*('2. Assisted & Restricted Units'!$V$7:$V$399=\"VLI HOME\"))","v":0},{"$f":"SUMPRODUCT(('2. Assisted & Restricted Units'!$E$7:$E$399=\"0\")*('2. Assisted & Restricted Units'!$U$7:$U$399=\"SUHRP\")*('2. Assisted & Restricted Units'!$V$7:$V$399=\"VLI HOME\"))","v":0},{"$f":"SUMPRODUCT(('2. Assisted & Restricted Units'!$E$7:$E$399=\"0\")*('2. Assisted & Restricted Units'!$U$7:$U$399=\"TOD\")*('2. Assisted & Restricted Units'!$V$7:$V$399=\"VLI HOME\"))","v":0},{"$f":"SUMPRODUCT(('2. Assisted & Restricted Units'!$E$7:$E$399=\"0\")*('2. Assisted & Restricted Units'!$U$7:$U$399=\"707-E\")*('2. Assisted & Restricted Units'!$V$7:$V$399=\"VLI HOME\"))","v":0},{"$f":"SUMPRODUCT(('2. Assisted & Restricted Units'!$E$7:$E$399=\"0\")*('2. Assisted & Restricted Units'!$U$7:$U$399=\"707-N\")*('2. Assisted & Restricted Units'!$V$7:$V$399=\"VLI HOME\"))","v":0}]
["0 Bedroom LI HOME",{"$f":"SUMPRODUCT(('2. Assisted & Restricted Units'!$E$7:$E$399=\"0\")*('2. Assisted & Restricted Units'!$U$7:$U$399=\"CALDAP\")*('2. Assisted & Restricted Units'!$V$7:$V$399=\"LI HOME\"))","v":0},{"$f":"SUMPRODUCT(('2. Assisted & Restricted Units'!$E$7:$E$399=\"0\")*('2. Assisted & Restricted Units'!$U$7:$U$399=\"CHRP-R\")*('2. Assisted & Restricted Units'!$V$7:$V$399=\"LI HOME\"))","v":0},{"$f":"SUMPRODUCT(('2. Assisted & Restricted Units'!$E$7:$E$399=\"0\")*('2. Assisted & Restricted Units'!$U$7:$U$399=\"DDS\")*('2. Assisted & Restricted Units'!$V$7:$V$399=\"LI HOME\"))","v":0},{"$f":"SUMPRODUCT(('2. Assisted & Restricted Units'!$E$7:$E$399=\"0\")*('2. Assisted & Restricted Units'!$U$7:$U$399=\"DPRLP\")*('2. Assisted & Restricted Units'!$V$7:$V$399=\"LI HOME\"))","v":0},{"$f":"SUMPRODUCT(('2. Assisted & Restricted Units'!$E$7:$E$399=\"0\")*('2. Assisted & Restricted Units'!$U$7:$U$399=\"FHDP\")*('2. Assisted & Restricted Units'!$V$7:$V$399=\"LI HOME\"))","v":0},{"$f":"SUMPRODUCT(('2. Assisted & Restricted Units'!$E$7:$E$399=\"0\")*('2. Assisted & Restricted Units'!$U$7:$U$399=\"FMTW\")*('2. Assisted & Restricted Units'!$V$7:$V$399=\"LI HOME\"))","v":0},null,{"$f":"SUMPRODUCT(('2. Assisted & Restricted Units'!$E$7:$E$399=\"0\")*('2. Assisted & Restricted Units'!$U$7:$U$399=\"HOME\")*('2. Assisted & Restricted Units'!$V$7:$V$399=\"LI HOME\"))","v":0},{"$f":"SUMPRODUCT(('2. Assisted & Restricted Units'!$E$7:$E$399=\"0\")*('2. Assisted & Restricted Units'!$U$7:$U$399=\"Market Rate\")*('2. Assisted & Restricted Units'!$V$7:$V$399=\"LI HOME\"))","v":0},{"$f":"SUMPRODUCT(('2. Assisted & Restricted Units'!$E$7:$E$399=\"0\")*('2. Assisted & Restricted Units'!$U$7:$U$399=\"MHP\")*('2. Assisted & Restricted Units'!$V$7:$V$399=\"LI HOME\"))","v":0},{"$f":"SUMPRODUCT(('2. Assisted & Restricted Units'!$E$7:$E$399=\"0\")*('2. Assisted & Restricted Units'!$U$7:$U$399=\"NonAssisted\")*('2. Assisted & Restricted Units'!$V$7:$V$399=\"LI HOME\"))","v":0},{"$f":"SUMPRODUCT(('2. Assisted & Restricted Units'!$E$7:$E$399=\"0\")*('2. Assisted & Restricted Units'!$U$7:$U$399=\"Other Restr\")*('2. Assisted & Restricted Units'!$V$7:$V$399=\"LI HOME\"))","v":0},{"$f":"SUMPRODUCT(('2. Assisted & Restricted Units'!$E$7:$E$399=\"0\")*('2. Assisted & Restricted Units'!$U$7:$U$399=\"RHCP-B\")*('2. Assisted & Restricted Units'!$V$7:$V$399=\"LI HOME\"))","v":0},{"$f":"SUMPRODUCT(('2. Assisted & Restricted Units'!$E$7:$E$399=\"0\")*('2. Assisted & Restricted Units'!$U$7:$U$399=\"SERA\")*('2. Assisted & Restricted Units'!$V$7:$V$399=\"LI HOME\"))","v":0},{"$f":"SUMPRODUCT(('2. Assisted & Restricted Units'!$E$7:$E$399=\"0\")*('2. Assisted & Restricted Units'!$U$7:$U$399=\"SUHRP\")*('2. Assisted & Restricted Units'!$V$7:$V$399=\"LI HOME\"))","v":0},{"$f":"SUMPRODUCT(('2. Assisted & Restricted Units'!$E$7:$E$399=\"0\")*('2. Assisted & Restricted Units'!$U$7:$U$399=\"TOD\")*('2. Assisted & Restricted Units'!$V$7:$V$399=\"LI HOME\"))","v":0},{"$f":"SUMPRODUCT(('2. Assisted & Restricted Units'!$E$7:$E$399=\"0\")*('2. Assisted & Restricted Units'!$U$7:$U$399=\"707-E\")*('2. Assisted & Restricted Units'!$V$7:$V$399=\"LI HOME\"))","v":0},{"$f":"SUMPRODUCT(('2. Assisted & Restricted Units'!$E$7:$E$399=\"0\")*('2. Assisted & Restricted Units'!$U$7:$U$399=\"707-N\")*('2. Assisted & Restricted Units'!$V$7:$V$399=\"LI HOME\"))","v":0}]
["0 Bedroom VLI State",{"$f":"SUMPRODUCT(('2. Assisted & Restricted Units'!$E$7:$E$399=\"0\")*('2. Assisted & Restricted Units'!$U$7:$U$399=\"CALDAP\")*('2. Assisted & Restricted Units'!$V$7:$V$399=\"VLI State\"))","v":0},{"$f":"SUMPRODUCT(('2. Assisted & Restricted Units'!$E$7:$E$399=\"0\")*('2. Assisted & Restricted Units'!$U$7:$U$399=\"CHRP-R\")*('2. Assisted & Restricted Units'!$V$7:$V$399=\"VLI State\"))","v":0},{"$f":"SUMPRODUCT(('2. Assisted & Restricted Units'!$E$7:$E$399=\"0\")*('2. Assisted & Restricted Units'!$U$7:$U$399=\"DDS\")*('2. Assisted & Restricted Units'!$V$7:$V$399=\"VLI State\"))","v":0},{"$f":"SUMPRODUCT(('2. Assisted & Restricted Units'!$E$7:$E$399=\"0\")*('2. Assisted & Restricted Units'!$U$7:$U$399=\"DPRLP\")*('2. Assisted & Restricted Units'!$V$7:$V$399=\"VLI State\"))","v":0},{"$f":"SUMPRODUCT(('2. Assisted & Restricted Units'!$E$7:$E$399=\"0\")*('2. Assisted & Restricted Units'!$U$7:$U$399=\"FHDP\")*('2. Assisted & Restricted Units'!$V$7:$V$399=\"VLI State\"))","v":0},{"$f":"SUMPRODUCT(('2. Assisted & Restricted Units'!$E$7:$E$399=\"0\")*('2. Assisted & Restricted Units'!$U$7:$U$399=\"FMTW\")*('2. Assisted & Restricted Units'!$V$7:$V$399=\"VLI State\"))","v":0},null,{"$f":"SUMPRODUCT(('2. Assisted & Restricted Units'!$E$7:$E$399=\"0\")*('2. Assisted & Restricted Units'!$U$7:$U$399=\"HOME\")*('2. Assisted & Restricted Units'!$V$7:$V$399=\"VLI State\"))","v":0},{"$f":"SUMPRODUCT(('2. Assisted & Restricted Units'!$E$7:$E$399=\"0\")*('2. Assisted & Restricted Units'!$U$7:$U$399=\"Market Rate\")*('2. Assisted & Restricted Units'!$V$7:$V$399=\"VLI State\"))","v":0},{"$f":"SUMPRODUCT(('2. Assisted & Restricted Units'!$E$7:$E$399=\"0\")*('2. Assisted & Restricted Units'!$U$7:$U$399=\"MHP\")*('2. Assisted & Restricted Units'!$V$7:$V$399=\"VLI State\"))","v":0},{"$f":"SUMPRODUCT(('2. Assisted & Restricted Units'!$E$7:$E$399=\"0\")*('2. Assisted & Restricted Units'!$U$7:$U$399=\"NonAssisted\")*('2. Assisted & Restricted Units'!$V$7:$V$399=\"VLI State\"))","v":0},{"$f":"SUMPRODUCT(('2. Assisted & Restricted Units'!$E$7:$E$399=\"0\")*('2. Assisted & Restricted Units'!$U$7:$U$399=\"Other Restr\")*('2. Assisted & Restricted Units'!$V$7:$V$399=\"VLI State\"))","v":0},{"$f":"SUMPRODUCT(('2. Assisted & Restricted Units'!$E$7:$E$399=\"0\")*('2. Assisted & Restricted Units'!$U$7:$U$399=\"RHCP-B\")*('2. Assisted & Restricted Units'!$V$7:$V$399=\"VLI State\"))","v":0},{"$f":"SUMPRODUCT(('2. Assisted & Restricted Units'!$E$7:$E$399=\"0\")*('2. Assisted & Restricted Units'!$U$7:$U$399=\"SERA\")*('2. Assisted & Restricted Units'!$V$7:$V$399=\"VLI State\"))","v":0},{"$f":"SUMPRODUCT(('2. Assisted & Restricted Units'!$E$7:$E$399=\"0\")*('2. Assisted & Restricted Units'!$U$7:$U$399=\"SUHRP\")*('2. Assisted & Restricted Units'!$V$7:$V$399=\"VLI State\"))","v":0},{"$f":"SUMPRODUCT(('2. Assisted & Restricted Units'!$E$7:$E$399=\"0\")*('2. Assisted & Restricted Units'!$U$7:$U$399=\"TOD\")*('2. Assisted & Restricted Units'!$V$7:$V$399=\"VLI State\"))","v":0},{"$f":"SUMPRODUCT(('2. Assisted & Restricted Units'!$E$7:$E$399=\"0\")*('2. Assisted & Restricted Units'!$U$7:$U$399=\"707-E\")*('2. Assisted & Restricted Units'!$V$7:$V$399=\"VLI State\"))","v":0},{"$f":"SUMPRODUCT(('2. Assisted & Restricted Units'!$E$7:$E$399=\"0\")*('2. Assisted & Restricted Units'!$U$7:$U$399=\"707-N\")*('2. Assisted & Restricted Units'!$V$7:$V$399=\"VLI State\"))","v":0}]
["0 Bedroom LI State",{"$f":"SUMPRODUCT(('2. Assisted & Restricted Units'!$E$7:$E$399=\"0\")*('2. Assisted & Restricted Units'!$U$7:$U$399=\"CALDAP\")*('2. Assisted & Restricted Units'!$V$7:$V$399=\"LI State\"))","v":0},{"$f":"SUMPRODUCT(('2. Assisted & Restricted Units'!$E$7:$E$399=\"0\")*('2. Assisted & Restricted Units'!$U$7:$U$399=\"CHRP-R\")*('2. Assisted & Restricted Units'!$V$7:$V$399=\"LI State\"))","v":0},{"$f":"SUMPRODUCT(('2. Assisted & Restricted Units'!$E$7:$E$399=\"0\")*('2. Assisted & Restricted Units'!$U$7:$U$399=\"DDS\")*('2. Assisted & Restricted Units'!$V$7:$V$399=\"LI State\"))","v":0},{"$f":"SUMPRODUCT(('2. Assisted & Restricted Units'!$E$7:$E$399=\"0\")*('2. Assisted & Restricted Units'!$U$7:$U$399=\"DPRLP\")*('2. Assisted & Restricted Units'!$V$7:$V$399=\"LI State\"))","v":0},{"$f":"SUMPRODUCT(('2. Assisted & Restricted Units'!$E$7:$E$399=\"0\")*('2. Assisted & Restricted Units'!$U$7:$U$399=\"FHDP\")*('2. Assisted & Restricted Units'!$V$7:$V$399=\"LI State\"))","v":0},{"$f":"SUMPRODUCT(('2. Assisted & Restricted Units'!$E$7:$E$399=\"0\")*('2. Assisted & Restricted Units'!$U$7:$U$399=\"FMTW\")*('2. Assisted & Restricted Units'!$V$7:$V$399=\"LI State\"))","v":0},null,{"$f":"SUMPRODUCT(('2. Assisted & Restricted Units'!$E$7:$E$399=\"0\")*('2. Assisted & Restricted Units'!$U$7:$U$399=\"HOME\")*('2. Assisted & Restricted Units'!$V$7:$V$399=\"LI State\"))","v":0},{"$f":"SUMPRODUCT(('2. Assisted & Restricted Units'!$E$7:$E$399=\"0\")*('2. Assisted & Restricted Units'!$U$7:$U$399=\"Market Rate\")*('2. Assisted & Restricted Units'!$V$7:$V$399=\"LI State\"))","v":0},{"$f":"SUMPRODUCT(('2. Assisted & Restricted Units'!$E$7:$E$399=\"0\")*('2. Assisted & Restricted Units'!$U$7:$U$399=\"MHP\")*('2. Assisted & Restricted Units'!$V$7:$V$399=\"LI State\"))","v":0},{"$f":"SUMPRODUCT(('2. Assisted & Restricted Units'!$E$7:$E$399=\"0\")*('2. Assisted & Restricted Units'!$U$7:$U$399=\"NonAssisted\")*('2. Assisted & Restricted Units'!$V$7:$V$399=\"LI State\"))","v":0},{"$f":"SUMPRODUCT(('2. Assisted & Restricted Units'!$E$7:$E$399=\"0\")*('2. Assisted & Restricted Units'!$U$7:$U$399=\"Other Restr\")*('2. Assisted & Restricted Units'!$V$7:$V$399=\"LI State\"))","v":0},{"$f":"SUMPRODUCT(('2. Assisted & Restricted Units'!$E$7:$E$399=\"0\")*('2. Assisted & Restricted Units'!$U$7:$U$399=\"RHCP-B\")*('2. Assisted & Restricted Units'!$V$7:$V$399=\"LI State\"))","v":0},{"$f":"SUMPRODUCT(('2. Assisted & Restricted Units'!$E$7:$E$399=\"0\")*('2. Assisted & Restricted Units'!$U$7:$U$399=\"SERA\")*('2. Assisted & Restricted Units'!$V$7:$V$399=\"LI State\"))","v":0},{"$f":"SUMPRODUCT(('2. Assisted & Restricted Units'!$E$7:$E$399=\"0\")*('2. Assisted & Restricted Units'!$U$7:$U$399=\"SUHRP\")*('2. Assisted & Restricted Units'!$V$7:$V$399=\"LI State\"))","v":0},{"$f":"SUMPRODUCT(('2. Assisted & Restricted Units'!$E$7:$E$399=\"0\")*('2. Assisted & Restricted Units'!$U$7:$U$399=\"TOD\")*('2. Assisted & Restricted Units'!$V$7:$V$399=\"LI State\"))","v":0},{"$f":"SUMPRODUCT(('2. Assisted & Restricted Units'!$E$7:$E$399=\"0\")*('2. Assisted & Restricted Units'!$U$7:$U$399=\"707-E\")*('2. Assisted & Restricted Units'!$V$7:$V$399=\"LI State\"))","v":0},{"$f":"SUMPRODUCT(('2. Assisted & Restricted Units'!$E$7:$E$399=\"0\")*('2. Assisted & Restricted Units'!$U$7:$U$399=\"707-N\")*('2. Assisted & Restricted Units'!$V$7:$V$399=\"LI State\"))","v":0}]
["0 Bedroom CalHFA",{"$f":"SUMPRODUCT(('2. Assisted & Restricted Units'!$E$7:$E$399=\"0\")*('2. Assisted & Restricted Units'!$U$7:$U$399=\"CALDAP\")*('2. Assisted & Restricted Units'!$V$7:$V$399=\"CalHFA\"))","v":0},{"$f":"SUMPRODUCT(('2. Assisted & Restricted Units'!$E$7:$E$399=\"0\")*('2. Assisted & Restricted Units'!$U$7:$U$399=\"CHRP-R\")*('2. Assisted & Restricted Units'!$V$7:$V$399=\"CalHFA\"))","v":0},{"$f":"SUMPRODUCT(('2. Assisted & Restricted Units'!$E$7:$E$399=\"0\")*('2. Assisted & Restricted Units'!$U$7:$U$399=\"DDS\")*('2. Assisted & Restricted Units'!$V$7:$V$399=\"CalHFA\"))","v":0},{"$f":"SUMPRODUCT(('2. Assisted & Restricted Units'!$E$7:$E$399=\"0\")*('2. Assisted & Restricted Units'!$U$7:$U$399=\"DPRLP\")*('2. Assisted & Restricted Units'!$V$7:$V$399=\"CalHFA\"))","v":0},{"$f":"SUMPRODUCT(('2. Assisted & Restricted Units'!$E$7:$E$399=\"0\")*('2. Assisted & Restricted Units'!$U$7:$U$399=\"FHDP\")*('2. Assisted & Restricted Units'!$V$7:$V$399=\"CalHFA\"))","v":0},{"$f":"SUMPRODUCT(('2. Assisted & Restricted Units'!$E$7:$E$399=\"0\")*('2. Assisted & Restricted Units'!$U$7:$U$399=\"FMTW\")*('2. Assisted & Restricted Units'!$V$7:$V$399=\"CalHFA\"))","v":0},null,{"$f":"SUMPRODUCT(('2. Assisted & Restricted Units'!$E$7:$E$399=\"0\")*('2. Assisted & Restricted Units'!$U$7:$U$399=\"HOME\")*('2. Assisted & Restricted Units'!$V$7:$V$399=\"CalHFA\"))","v":0},{"$f":"SUMPRODUCT(('2. Assisted & Restricted Units'!$E$7:$E$399=\"0\")*('2. Assisted & Restricted Units'!$U$7:$U$399=\"Market Rate\")*('2. Assisted & Restricted Units'!$V$7:$V$399=\"CalHFA\"))","v":0},{"$f":"SUMPRODUCT(('2. Assisted & Restricted Units'!$E$7:$E$399=\"0\")*('2. Assisted & Restricted Units'!$U$7:$U$399=\"MHP\")*('2. Assisted & Restricted Units'!$V$7:$V$399=\"CalHFA\"))","v":0},{"$f":"SUMPRODUCT(('2. Assisted & Restricted Units'!$E$7:$E$399=\"0\")*('2. Assisted & Restricted Units'!$U$7:$U$399=\"NonAssisted\")*('2. Assisted & Restricted Units'!$V$7:$V$399=\"CalHFA\"))","v":0},{"$f":"SUMPRODUCT(('2. Assisted & Restricted Units'!$E$7:$E$399=\"0\")*('2. Assisted & Restricted Units'!$U$7:$U$399=\"Other Restr\")*('2. Assisted & Restricted Units'!$V$7:$V$399=\"CalHFA\"))","v":0},{"$f":"SUMPRODUCT(('2. Assisted & Restricted Units'!$E$7:$E$399=\"0\")*('2. Assisted & Restricted Units'!$U$7:$U$399=\"RHCP-B\")*('2. Assisted & Restricted Units'!$V$7:$V$399=\"CalHFA\"))","v":0},{"$f":"SUMPRODUCT(('2. Assisted & Restricted Units'!$E$7:$E$399=\"0\")*('2. Assisted & Restricted Units'!$U$7:$U$399=\"SERA\")*('2. Assisted & Restricted Units'!$V$7:$V$399=\"CalHFA\"))","v":0},{"$f":"SUMPRODUCT(('2. Assisted & Restricted Units'!$E$7:$E$399=\"0\")*('2. Assisted & Restricted Units'!$U$7:$U$399=\"SUHRP\")*('2. Assisted & Restricted Units'!$V$7:$V$399=\"CalHFA\"))","v":0},{"$f":"SUMPRODUCT(('2. Assisted & Restricted Units'!$E$7:$E$399=\"0\")*('2. Assisted & Restricted Units'!$U$7:$U$399=\"TOD\")*('2. Assisted & Restricted Units'!$V$7:$V$399=\"CalHFA\"))","v":0},{"$f":"SUMPRODUCT(('2. Assisted & Restricted Units'!$E$7:$E$399=\"0\")*('2. Assisted & Restricted Units'!$U$7:$U$399=\"707-E\")*('2. Assisted & Restricted Units'!$V$7:$V$399=\"CalHFA\"))","v":0},{"$f":"SUMPRODUCT(('2. Assisted & Restricted Units'!$E$7:$E$399=\"0\")*('2. Assisted & Restricted Units'!$U$7:$U$399=\"707-N\")*('2. Assisted & Restricted Units'!$V$7:$V$399=\"CalHFA\"))","v":0}]
["0 Bedroom Sec 8",{"$f":"SUMPRODUCT(('2. Assisted & Restricted Units'!$E$7:$E$399=\"0\")*('2. Assisted & Restricted Units'!$U$7:$U$399=\"CALDAP\")*('2. Assisted & Restricted Units'!$V$7:$V$399=\"Sec 8\"))","v":0},{"$f":"SUMPRODUCT(('2. Assisted & Restricted Units'!$E$7:$E$399=\"0\")*('2. Assisted & Restricted Units'!$U$7:$U$399=\"CHRP-R\")*('2. Assisted & Restricted Units'!$V$7:$V$399=\"Sec 8\"))","v":0},{"$f":"SUMPRODUCT(('2. Assisted & Restricted Units'!$E$7:$E$399=\"0\")*('2. Assisted & Restricted Units'!$U$7:$U$399=\"DDS\")*('2. Assisted & Restricted Units'!$V$7:$V$399=\"Sec 8\"))","v":0},{"$f":"SUMPRODUCT(('2. Assisted & Restricted Units'!$E$7:$E$399=\"0\")*('2. Assisted & Restricted Units'!$U$7:$U$399=\"DPRLP\")*('2. Assisted & Restricted Units'!$V$7:$V$399=\"Sec 8\"))","v":0},{"$f":"SUMPRODUCT(('2. Assisted & Restricted Units'!$E$7:$E$399=\"0\")*('2. Assisted & Restricted Units'!$U$7:$U$399=\"FHDP\")*('2. Assisted & Restricted Units'!$V$7:$V$399=\"Sec 8\"))","v":0},{"$f":"SUMPRODUCT(('2. Assisted & Restricted Units'!$E$7:$E$399=\"0\")*('2. Assisted & Restricted Units'!$U$7:$U$399=\"FMTW\")*('2. Assisted & Restricted Units'!$V$7:$V$399=\"Sec 8\"))","v":0},null,{"$f":"SUMPRODUCT(('2. Assisted & Restricted Units'!$E$7:$E$399=\"0\")*('2. Assisted & Restricted Units'!$U$7:$U$399=\"HOME\")*('2. Assisted & Restricted Units'!$V$7:$V$399=\"Sec 8\"))","v":0},{"$f":"SUMPRODUCT(('2. Assisted & Restricted Units'!$E$7:$E$399=\"0\")*('2. Assisted & Restricted Units'!$U$7:$U$399=\"Market Rate\")*('2. Assisted & Restricted Units'!$V$7:$V$399=\"Sec 8\"))","v":0},{"$f":"SUMPRODUCT(('2. Assisted & Restricted Units'!$E$7:$E$399=\"0\")*('2. Assisted & Restricted Units'!$U$7:$U$399=\"MHP\")*('2. Assisted & Restricted Units'!$V$7:$V$399=\"Sec 8\"))","v":0},{"$f":"SUMPRODUCT(('2. Assisted & Restricted Units'!$E$7:$E$399=\"0\")*('2. Assisted & Restricted Units'!$U$7:$U$399=\"NonAssisted\")*('2. Assisted & Restricted Units'!$V$7:$V$399=\"Sec 8\"))","v":0},{"$f":"SUMPRODUCT(('2. Assisted & Restricted Units'!$E$7:$E$399=\"0\")*('2. Assisted & Restricted Units'!$U$7:$U$399=\"Other Restr\")*('2. Assisted & Restricted Units'!$V$7:$V$399=\"Sec 8\"))","v":0},{"$f":"SUMPRODUCT(('2. Assisted & Restricted Units'!$E$7:$E$399=\"0\")*('2. Assisted & Restricted Units'!$U$7:$U$399=\"RHCP-B\")*('2. Assisted & Restricted Units'!$V$7:$V$399=\"Sec 8\"))","v":0},{"$f":"SUMPRODUCT(('2. Assisted & Restricted Units'!$E$7:$E$399=\"0\")*('2. Assisted & Restricted Units'!$U$7:$U$399=\"SERA\")*('2. Assisted & Restricted Units'!$V$7:$V$399=\"Sec 8\"))","v":0},{"$f":"SUMPRODUCT(('2. Assisted & Restricted Units'!$E$7:$E$399=\"0\")*('2. Assisted & Restricted Units'!$U$7:$U$399=\"SUHRP\")*('2. Assisted & Restricted Units'!$V$7:$V$399=\"Sec 8\"))","v":0},{"$f":"SUMPRODUCT(('2. Assisted & Restricted Units'!$E$7:$E$399=\"0\")*('2. Assisted & Restricted Units'!$U$7:$U$399=\"TOD\")*('2. Assisted & Restricted Units'!$V$7:$V$399=\"Sec 8\"))","v":0},{"$f":"SUMPRODUCT(('2. Assisted & Restricted Units'!$E$7:$E$399=\"0\")*('2. Assisted & Restricted Units'!$U$7:$U$399=\"707-E\")*('2. Assisted & Restricted Units'!$V$7:$V$399=\"Sec 8\"))","v":0},{"$f":"SUMPRODUCT(('2. Assisted & Restricted Units'!$E$7:$E$399=\"0\")*('2. Assisted & Restricted Units'!$U$7:$U$399=\"707-N\")*('2. Assisted & Restricted Units'!$V$7:$V$399=\"Sec 8\"))","v":0}]
["Total 0",{"$f":"SUM(B28:B52)","v":0},{"$f":"SUM(C28:C52)","v":0},{"$f":"SUM(D28:D52)","v":0},{"$f":"SUM(E28:E52)","v":0},{"$f":"SUM(F28:F52)","v":0},0,{"$f":"SUMPRODUCT(('2. Assisted & Restricted Units'!$E$7:$E$399=\"0\")*('2. Assisted & Restricted Units'!$U$7:$U$399=\"FWHG\"))","v":0},0,0,0,0,0,0,0,0,0,0,0,{"$f":"SUMPRODUCT(('2. Assisted & Restricted Units'!$E$7:$E$399=\"0\")*('2. Assisted & Restricted Units'!$L$7:$L$399=\"X\"))","v":0},{"$f":"SUMPRODUCT(('2. Assisted & Restricted Units'!$E$7:$E$399=\"0\")*('2. Assisted & Restricted Units'!#REF!=\"X\"))","v":{"$error":"#REF!"}},{"$f":"SUMPRODUCT(('2. Assisted & Restricted Units'!$E$7:$E$399=\"0\")*('2. Assisted & Restricted Units'!#REF!=\"X\"))","v":{"$error":"#REF!"}},{"$f":"SUMPRODUCT(('2. Assisted & Restricted Units'!$E$7:$E$399=\"0\")*('2. Assisted & Restricted Units'!#REF!=\"X\"))","v":{"$error":"#REF!"}},{"$f":"SUMPRODUCT(('2. Assisted & Restricted Units'!$E$7:$E$399=\"0\")*('2. Assisted & Restricted Units'!#REF!=\"X\"))","v":{"$error":"#REF!"}},{"$f":"SUMPRODUCT(('2. Assisted & Restricted Units'!$E$7:$E$399=\"0\")*('2. Assisted & Restricted Units'!#REF!=\"X\"))","v":{"$error":"#REF!"}},{"$f":"SUMPRODUCT(('2. Assisted & Restricted Units'!$E$7:$E$399=\"0\")*('2. Assisted & Restricted Units'!#REF!=\"X\"))","v":{"$error":"#REF!"}},{"$f":"SUMPRODUCT(('2. Assisted & Restricted Units'!$E$7:$E$399=\"0\")*('2. Assisted & Restricted Units'!$M$7:$M$399=\"X\"))","v":0},{"$f":"SUMPRODUCT(('2. Assisted & Restricted Units'!$E$7:$E$399=\"0\")*('2. Assisted & Restricted Units'!$O$7:$O$399=\"X\"))","v":0}]
["1 Bedroom 15% AMI",{"$f":"SUMPRODUCT(('2. Assisted & Restricted Units'!$E$7:$E$399=\"1\")*('2. Assisted & Restricted Units'!$U$7:$U$399=\"CALDAP\")*('2. Assisted & Restricted Units'!$V$7:$V$399=\"15% AMI\"))","v":0},{"$f":"SUMPRODUCT(('2. Assisted & Restricted Units'!$E$7:$E$399=\"1\")*('2. Assisted & Restricted Units'!$U$7:$U$399=\"CHRP-R\")*('2. Assisted & Restricted Units'!$V$7:$V$399=\"15% AMI\"))","v":0},{"$f":"SUMPRODUCT(('2. Assisted & Restricted Units'!$E$7:$E$399=\"1\")*('2. Assisted & Restricted Units'!$U$7:$U$399=\"DDS\")*('2. Assisted & Restricted Units'!$V$7:$V$399=\"15% AMI\"))","v":0},{"$f":"SUMPRODUCT(('2. Assisted & Restricted Units'!$E$7:$E$399=\"1\")*('2. Assisted & Restricted Units'!$U$7:$U$399=\"DPRLP\")*('2. Assisted & Restricted Units'!$V$7:$V$399=\"15% AMI\"))","v":0},{"$f":"SUMPRODUCT(('2. Assisted & Restricted Units'!$E$7:$E$399=\"1\")*('2. Assisted & Restricted Units'!$U$7:$U$399=\"FHDP\")*('2. Assisted & Restricted Units'!$V$7:$V$399=\"15% AMI\"))","v":0},{"$f":"SUMPRODUCT(('2. Assisted & Restricted Units'!$E$7:$E$399=\"1\")*('2. Assisted & Restricted Units'!$U$7:$U$399=\"FMTW\")*('2. Assisted & Restricted Units'!$V$7:$V$399=\"15% AMI\"))","v":0},null,{"$f":"SUMPRODUCT(('2. Assisted & Restricted Units'!$E$7:$E$399=\"1\")*('2. Assisted & Restricted Units'!$U$7:$U$399=\"HOME\")*('2. Assisted & Restricted Units'!$V$7:$V$399=\"15% AMI\"))","v":0},{"$f":"SUMPRODUCT(('2. Assisted & Restricted Units'!$E$7:$E$399=\"1\")*('2. Assisted & Restricted Units'!$U$7:$U$399=\"Market Rate\")*('2. Assisted & Restricted Units'!$V$7:$V$399=\"15% AMI\"))","v":0},{"$f":"SUMPRODUCT(('2. Assisted & Restricted Units'!$E$7:$E$399=\"1\")*('2. Assisted & Restricted Units'!$U$7:$U$399=\"MHP\")*('2. Assisted & Restricted Units'!$V$7:$V$399=\"15% AMI\"))","v":0},{"$f":"SUMPRODUCT(('2. Assisted & Restricted Units'!$E$7:$E$399=\"1\")*('2. Assisted & Restricted Units'!$U$7:$U$399=\"NonAssisted\")*('2. Assisted & Restricted Units'!$V$7:$V$399=\"15% AMI\"))","v":0},{"$f":"SUMPRODUCT(('2. Assisted & Restricted Units'!$E$7:$E$399=\"1\")*('2. Assisted & Restricted Units'!$U$7:$U$399=\"Other Restr\")*('2. Assisted & Restricted Units'!$V$7:$V$399=\"15% AMI\"))","v":0},{"$f":"SUMPRODUCT(('2. Assisted & Restricted Units'!$E$7:$E$399=\"1\")*('2. Assisted & Restricted Units'!$U$7:$U$399=\"RHCP-B\")*('2. Assisted & Restricted Units'!$V$7:$V$399=\"15% AMI\"))","v":0},{"$f":"SUMPRODUCT(('2. Assisted & Restricted Units'!$E$7:$E$399=\"1\")*('2. Assisted & Restricted Units'!$U$7:$U$399=\"SERA\")*('2. Assisted & Restricted Units'!$V$7:$V$399=\"15% AMI\"))","v":0},{"$f":"SUMPRODUCT(('2. Assisted & Restricted Units'!$E$7:$E$399=\"1\")*('2. Assisted & Restricted Units'!$U$7:$U$399=\"SUHRP\")*('2. Assisted & Restricted Units'!$V$7:$V$399=\"15% AMI\"))","v":0},{"$f":"SUMPRODUCT(('2. Assisted & Restricted Units'!$E$7:$E$399=\"1\")*('2. Assisted & Restricted Units'!$U$7:$U$399=\"TOD\")*('2. Assisted & Restricted Units'!$V$7:$V$399=\"15% AMI\"))","v":0},{"$f":"SUMPRODUCT(('2. Assisted & Restricted Units'!$E$7:$E$399=\"1\")*('2. Assisted & Restricted Units'!$U$7:$U$399=\"707-E\")*('2. Assisted & Restricted Units'!$V$7:$V$399=\"15% AMI\"))","v":0},{"$f":"SUMPRODUCT(('2. Assisted & Restricted Units'!$E$7:$E$399=\"1\")*('2. Assisted & Restricted Units'!$U$7:$U$399=\"707-N\")*('2. Assisted & Restricted Units'!$V$7:$V$399=\"15% AMI\"))","v":0}]
["1 Bedroom 20% AMI",{"$f":"SUMPRODUCT(('2. Assisted & Restricted Units'!$E$7:$E$399=\"1\")*('2. Assisted & Restricted Units'!$U$7:$U$399=\"CALDAP\")*('2. Assisted & Restricted Units'!$V$7:$V$399=\"20% AMI\"))","v":0},{"$f":"SUMPRODUCT(('2. Assisted & Restricted Units'!$E$7:$E$399=\"1\")*('2. Assisted & Restricted Units'!$U$7:$U$399=\"CHRP-R\")*('2. Assisted & Restricted Units'!$V$7:$V$399=\"20% AMI\"))","v":0},{"$f":"SUMPRODUCT(('2. Assisted & Restricted Units'!$E$7:$E$399=\"1\")*('2. Assisted & Restricted Units'!$U$7:$U$399=\"DDS\")*('2. Assisted & Restricted Units'!$V$7:$V$399=\"20% AMI\"))","v":0},{"$f":"SUMPRODUCT(('2. Assisted & Restricted Units'!$E$7:$E$399=\"1\")*('2. Assisted & Restricted Units'!$U$7:$U$399=\"DPRLP\")*('2. Assisted & Restricted Units'!$V$7:$V$399=\"20% AMI\"))","v":0},{"$f":"SUMPRODUCT(('2. Assisted & Restricted Units'!$E$7:$E$399=\"1\")*('2. Assisted & Restricted Units'!$U$7:$U$399=\"FHDP\")*('2. Assisted & Restricted Units'!$V$7:$V$399=\"20% AMI\"))","v":0},{"$f":"SUMPRODUCT(('2. Assisted & Restricted Units'!$E$7:$E$399=\"1\")*('2. Assisted & Restricted Units'!$U$7:$U$399=\"FMTW\")*('2. Assisted & Restricted Units'!$V$7:$V$399=\"20% AMI\"))","v":0},null,{"$f":"SUMPRODUCT(('2. Assisted & Restricted Units'!$E$7:$E$399=\"1\")*('2. Assisted & Restricted Units'!$U$7:$U$399=\"HOME\")*('2. Assisted & Restricted Units'!$V$7:$V$399=\"20% AMI\"))","v":0},{"$f":"SUMPRODUCT(('2. Assisted & Restricted Units'!$E$7:$E$399=\"1\")*('2. Assisted & Restricted Units'!$U$7:$U$399=\"Market Rate\")*('2. Assisted & Restricted Units'!$V$7:$V$399=\"20% AMI\"))","v":0},{"$f":"SUMPRODUCT(('2. Assisted & Restricted Units'!$E$7:$E$399=\"1\")*('2. Assisted & Restricted Units'!$U$7:$U$399=\"MHP\")*('2. Assisted & Restricted Units'!$V$7:$V$399=\"20% AMI\"))","v":0},{"$f":"SUMPRODUCT(('2. Assisted & Restricted Units'!$E$7:$E$399=\"1\")*('2. Assisted & Restricted Units'!$U$7:$U$399=\"NonAssisted\")*('2. Assisted & Restricted Units'!$V$7:$V$399=\"20% AMI\"))","v":0},{"$f":"SUMPRODUCT(('2. Assisted & Restricted Units'!$E$7:$E$399=\"1\")*('2. Assisted & Restricted Units'!$U$7:$U$399=\"Other Restr\")*('2. Assisted & Restricted Units'!$V$7:$V$399=\"20% AMI\"))","v":0},{"$f":"SUMPRODUCT(('2. Assisted & Restricted Units'!$E$7:$E$399=\"1\")*('2. Assisted & Restricted Units'!$U$7:$U$399=\"RHCP-B\")*('2. Assisted & Restricted Units'!$V$7:$V$399=\"20% AMI\"))","v":0},{"$f":"SUMPRODUCT(('2. Assisted & Restricted Units'!$E$7:$E$399=\"1\")*('2. Assisted & Restricted Units'!$U$7:$U$399=\"SERA\")*('2. Assisted & Restricted Units'!$V$7:$V$399=\"20% AMI\"))","v":0},{"$f":"SUMPRODUCT(('2. Assisted & Restricted Units'!$E$7:$E$399=\"1\")*('2. Assisted & Restricted Units'!$U$7:$U$399=\"SUHRP\")*('2. Assisted & Restricted Units'!$V$7:$V$399=\"20% AMI\"))","v":0},{"$f":"SUMPRODUCT(('2. Assisted & Restricted Units'!$E$7:$E$399=\"1\")*('2. Assisted & Restricted Units'!$U$7:$U$399=\"TOD\")*('2. Assisted & Restricted Units'!$V$7:$V$399=\"20% AMI\"))","v":0},{"$f":"SUMPRODUCT(('2. Assisted & Restricted Units'!$E$7:$E$399=\"1\")*('2. Assisted & Restricted Units'!$U$7:$U$399=\"707-E\")*('2. Assisted & Restricted Units'!$V$7:$V$399=\"20% AMI\"))","v":0},{"$f":"SUMPRODUCT(('2. Assisted & Restricted Units'!$E$7:$E$399=\"1\")*('2. Assisted & Restricted Units'!$U$7:$U$399=\"707-N\")*('2. Assisted & Restricted Units'!$V$7:$V$399=\"20% AMI\"))","v":0}]
["1 Bedroom 25% AMI",{"$f":"SUMPRODUCT(('2. Assisted & Restricted Units'!$E$7:$E$399=\"1\")*('2. Assisted & Restricted Units'!$U$7:$U$399=\"CALDAP\")*('2. Assisted & Restricted Units'!$V$7:$V$399=\"25% AMI\"))","v":0},{"$f":"SUMPRODUCT(('2. Assisted & Restricted Units'!$E$7:$E$399=\"1\")*('2. Assisted & Restricted Units'!$U$7:$U$399=\"CHRP-R\")*('2. Assisted & Restricted Units'!$V$7:$V$399=\"25% AMI\"))","v":0},{"$f":"SUMPRODUCT(('2. Assisted & Restricted Units'!$E$7:$E$399=\"1\")*('2. Assisted & Restricted Units'!$U$7:$U$399=\"DDS\")*('2. Assisted & Restricted Units'!$V$7:$V$399=\"25% AMI\"))","v":0},{"$f":"SUMPRODUCT(('2. Assisted & Restricted Units'!$E$7:$E$399=\"1\")*('2. Assisted & Restricted Units'!$U$7:$U$399=\"DPRLP\")*('2. Assisted & Restricted Units'!$V$7:$V$399=\"25% AMI\"))","v":0},{"$f":"SUMPRODUCT(('2. Assisted & Restricted Units'!$E$7:$E$399=\"1\")*('2. Assisted & Restricted Units'!$U$7:$U$399=\"FHDP\")*('2. Assisted & Restricted Units'!$V$7:$V$399=\"25% AMI\"))","v":0},{"$f":"SUMPRODUCT(('2. Assisted & Restricted Units'!$E$7:$E$399=\"1\")*('2. Assisted & Restricted Units'!$U$7:$U$399=\"FMTW\")*('2. Assisted & Restricted Units'!$V$7:$V$399=\"25% AMI\"))","v":0},null,{"$f":"SUMPRODUCT(('2. Assisted & Restricted Units'!$E$7:$E$399=\"1\")*('2. Assisted & Restricted Units'!$U$7:$U$399=\"HOME\")*('2. Assisted & Restricted Units'!$V$7:$V$399=\"25% AMI\"))","v":0},{"$f":"SUMPRODUCT(('2. Assisted & Restricted Units'!$E$7:$E$399=\"1\")*('2. Assisted & Restricted Units'!$U$7:$U$399=\"Market Rate\")*('2. Assisted & Restricted Units'!$V$7:$V$399=\"25% AMI\"))","v":0},{"$f":"SUMPRODUCT(('2. Assisted & Restricted Units'!$E$7:$E$399=\"1\")*('2. Assisted & Restricted Units'!$U$7:$U$399=\"MHP\")*('2. Assisted & Restricted Units'!$V$7:$V$399=\"25% AMI\"))","v":0},{"$f":"SUMPRODUCT(('2. Assisted & Restricted Units'!$E$7:$E$399=\"1\")*('2. Assisted & Restricted Units'!$U$7:$U$399=\"NonAssisted\")*('2. Assisted & Restricted Units'!$V$7:$V$399=\"25% AMI\"))","v":0},{"$f":"SUMPRODUCT(('2. Assisted & Restricted Units'!$E$7:$E$399=\"1\")*('2. Assisted & Restricted Units'!$U$7:$U$399=\"Other Restr\")*('2. Assisted & Restricted Units'!$V$7:$V$399=\"25% AMI\"))","v":0},{"$f":"SUMPRODUCT(('2. Assisted & Restricted Units'!$E$7:$E$399=\"1\")*('2. Assisted & Restricted Units'!$U$7:$U$399=\"RHCP-B\")*('2. Assisted & Restricted Units'!$V$7:$V$399=\"25% AMI\"))","v":0},{"$f":"SUMPRODUCT(('2. Assisted & Restricted Units'!$E$7:$E$399=\"1\")*('2. Assisted & Restricted Units'!$U$7:$U$399=\"SERA\")*('2. Assisted & Restricted Units'!$V$7:$V$399=\"25% AMI\"))","v":0},{"$f":"SUMPRODUCT(('2. Assisted & Restricted Units'!$E$7:$E$399=\"1\")*('2. Assisted & Restricted Units'!$U$7:$U$399=\"SUHRP\")*('2. Assisted & Restricted Units'!$V$7:$V$399=\"25% AMI\"))","v":0},{"$f":"SUMPRODUCT(('2. Assisted & Restricted Units'!$E$7:$E$399=\"1\")*('2. Assisted & Restricted Units'!$U$7:$U$399=\"TOD\")*('2. Assisted & Restricted Units'!$V$7:$V$399=\"25% AMI\"))","v":0},{"$f":"SUMPRODUCT(('2. Assisted & Restricted Units'!$E$7:$E$399=\"1\")*('2. Assisted & Restricted Units'!$U$7:$U$399=\"707-E\")*('2. Assisted & Restricted Units'!$V$7:$V$399=\"25% AMI\"))","v":0},{"$f":"SUMPRODUCT(('2. Assisted & Restricted Units'!$E$7:$E$399=\"1\")*('2. Assisted & Restricted Units'!$U$7:$U$399=\"707-N\")*('2. Assisted & Restricted Units'!$V$7:$V$399=\"25% AMI\"))","v":0}]
["1 Bedroom 30% AMI",{"$f":"SUMPRODUCT(('2. Assisted & Restricted Units'!$E$7:$E$399=\"1\")*('2. Assisted & Restricted Units'!$U$7:$U$399=\"CALDAP\")*('2. Assisted & Restricted Units'!$V$7:$V$399=\"30% AMI\"))","v":0},{"$f":"SUMPRODUCT(('2. Assisted & Restricted Units'!$E$7:$E$399=\"1\")*('2. Assisted & Restricted Units'!$U$7:$U$399=\"CHRP-R\")*('2. Assisted & Restricted Units'!$V$7:$V$399=\"30% AMI\"))","v":0},{"$f":"SUMPRODUCT(('2. Assisted & Restricted Units'!$E$7:$E$399=\"1\")*('2. Assisted & Restricted Units'!$U$7:$U$399=\"DDS\")*('2. Assisted & Restricted Units'!$V$7:$V$399=\"30% AMI\"))","v":0},{"$f":"SUMPRODUCT(('2. Assisted & Restricted Units'!$E$7:$E$399=\"1\")*('2. Assisted & Restricted Units'!$U$7:$U$399=\"DPRLP\")*('2. Assisted & Restricted Units'!$V$7:$V$399=\"30% AMI\"))","v":0},{"$f":"SUMPRODUCT(('2. Assisted & Restricted Units'!$E$7:$E$399=\"1\")*('2. Assisted & Restricted Units'!$U$7:$U$399=\"FHDP\")*('2. Assisted & Restricted Units'!$V$7:$V$399=\"30% AMI\"))","v":0},{"$f":"SUMPRODUCT(('2. Assisted & Restricted Units'!$E$7:$E$399=\"1\")*('2. Assisted & Restricted Units'!$U$7:$U$399=\"FMTW\")*('2. Assisted & Restricted Units'!$V$7:$V$399=\"30% AMI\"))","v":0},null,{"$f":"SUMPRODUCT(('2. Assisted & Restricted Units'!$E$7:$E$399=\"1\")*('2. Assisted & Restricted Units'!$U$7:$U$399=\"HOME\")*('2. Assisted & Restricted Units'!$V$7:$V$399=\"30% AMI\"))","v":0},{"$f":"SUMPRODUCT(('2. Assisted & Restricted Units'!$E$7:$E$399=\"1\")*('2. Assisted & Restricted Units'!$U$7:$U$399=\"Market Rate\")*('2. Assisted & Restricted Units'!$V$7:$V$399=\"30% AMI\"))","v":0},{"$f":"SUMPRODUCT(('2. Assisted & Restricted Units'!$E$7:$E$399=\"1\")*('2. Assisted & Restricted Units'!$U$7:$U$399=\"MHP\")*('2. Assisted & Restricted Units'!$V$7:$V$399=\"30% AMI\"))","v":0},{"$f":"SUMPRODUCT(('2. Assisted & Restricted Units'!$E$7:$E$399=\"1\")*('2. Assisted & Restricted Units'!$U$7:$U$399=\"NonAssisted\")*('2. Assisted & Restricted Units'!$V$7:$V$399=\"30% AMI\"))","v":0},{"$f":"SUMPRODUCT(('2. Assisted & Restricted Units'!$E$7:$E$399=\"1\")*('2. Assisted & Restricted Units'!$U$7:$U$399=\"Other Restr\")*('2. Assisted & Restricted Units'!$V$7:$V$399=\"30% AMI\"))","v":0},{"$f":"SUMPRODUCT(('2. Assisted & Restricted Units'!$E$7:$E$399=\"1\")*('2. Assisted & Restricted Units'!$U$7:$U$399=\"RHCP-B\")*('2. Assisted & Restricted Units'!$V$7:$V$399=\"30% AMI\"))","v":0},{"$f":"SUMPRODUCT(('2. Assisted & Restricted Units'!$E$7:$E$399=\"1\")*('2. Assisted & Restricted Units'!$U$7:$U$399=\"SERA\")*('2. Assisted & Restricted Units'!$V$7:$V$399=\"30% AMI\"))","v":0},{"$f":"SUMPRODUCT(('2. Assisted & Restricted Units'!$E$7:$E$399=\"1\")*('2. Assisted & Restricted Units'!$U$7:$U$399=\"SUHRP\")*('2. Assisted & Restricted Units'!$V$7:$V$399=\"30% AMI\"))","v":0},{"$f":"SUMPRODUCT(('2. Assisted & Restricted Units'!$E$7:$E$399=\"1\")*('2. Assisted & Restricted Units'!$U$7:$U$399=\"TOD\")*('2. Assisted & Restricted Units'!$V$7:$V$399=\"30% AMI\"))","v":0},{"$f":"SUMPRODUCT(('2. Assisted & Restricted Units'!$E$7:$E$399=\"1\")*('2. Assisted & Restricted Units'!$U$7:$U$399=\"707-E\")*('2. Assisted & Restricted Units'!$V$7:$V$399=\"30% AMI\"))","v":0},{"$f":"SUMPRODUCT(('2. Assisted & Restricted Units'!$E$7:$E$399=\"1\")*('2. Assisted & Restricted Units'!$U$7:$U$399=\"707-N\")*('2. Assisted & Restricted Units'!$V$7:$V$399=\"30% AMI\"))","v":0}]
["1 Bedroom 35% AMI",{"$f":"SUMPRODUCT(('2. Assisted & Restricted Units'!$E$7:$E$399=\"1\")*('2. Assisted & Restricted Units'!$U$7:$U$399=\"CALDAP\")*('2. Assisted & Restricted Units'!$V$7:$V$399=\"35% AMI\"))","v":0},{"$f":"SUMPRODUCT(('2. Assisted & Restricted Units'!$E$7:$E$399=\"1\")*('2. Assisted & Restricted Units'!$U$7:$U$399=\"CHRP-R\")*('2. Assisted & Restricted Units'!$V$7:$V$399=\"35% AMI\"))","v":0},{"$f":"SUMPRODUCT(('2. Assisted & Restricted Units'!$E$7:$E$399=\"1\")*('2. Assisted & Restricted Units'!$U$7:$U$399=\"DDS\")*('2. Assisted & Restricted Units'!$V$7:$V$399=\"35% AMI\"))","v":0},{"$f":"SUMPRODUCT(('2. Assisted & Restricted Units'!$E$7:$E$399=\"1\")*('2. Assisted & Restricted Units'!$U$7:$U$399=\"DPRLP\")*('2. Assisted & Restricted Units'!$V$7:$V$399=\"35% AMI\"))","v":0},{"$f":"SUMPRODUCT(('2. Assisted & Restricted Units'!$E$7:$E$399=\"1\")*('2. Assisted & Restricted Units'!$U$7:$U$399=\"FHDP\")*('2. Assisted & Restricted Units'!$V$7:$V$399=\"35% AMI\"))","v":0},{"$f":"SUMPRODUCT(('2. Assisted & Restricted Units'!$E$7:$E$399=\"1\")*('2. Assisted & Restricted Units'!$U$7:$U$399=\"FMTW\")*('2. Assisted & Restricted Units'!$V$7:$V$399=\"35% AMI\"))","v":0},null,{"$f":"SUMPRODUCT(('2. Assisted & Restricted Units'!$E$7:$E$399=\"1\")*('2. Assisted & Restricted Units'!$U$7:$U$399=\"HOME\")*('2. Assisted & Restricted Units'!$V$7:$V$399=\"35% AMI\"))","v":0},{"$f":"SUMPRODUCT(('2. Assisted & Restricted Units'!$E$7:$E$399=\"1\")*('2. Assisted & Restricted Units'!$U$7:$U$399=\"Market Rate\")*('2. Assisted & Restricted Units'!$V$7:$V$399=\"35% AMI\"))","v":0},{"$f":"SUMPRODUCT(('2. Assisted & Restricted Units'!$E$7:$E$399=\"1\")*('2. Assisted & Restricted Units'!$U$7:$U$399=\"MHP\")*('2. Assisted & Restricted Units'!$V$7:$V$399=\"35% AMI\"))","v":0},{"$f":"SUMPRODUCT(('2. Assisted & Restricted Units'!$E$7:$E$399=\"1\")*('2. Assisted & Restricted Units'!$U$7:$U$399=\"NonAssisted\")*('2. Assisted & Restricted Units'!$V$7:$V$399=\"35% AMI\"))","v":0},{"$f":"SUMPRODUCT(('2. Assisted & Restricted Units'!$E$7:$E$399=\"1\")*('2. Assisted & Restricted Units'!$U$7:$U$399=\"Other Restr\")*('2. Assisted & Restricted Units'!$V$7:$V$399=\"35% AMI\"))","v":0},{"$f":"SUMPRODUCT(('2. Assisted & Restricted Units'!$E$7:$E$399=\"1\")*('2. Assisted & Restricted Units'!$U$7:$U$399=\"RHCP-B\")*('2. Assisted & Restricted Units'!$V$7:$V$399=\"35% AMI\"))","v":0},{"$f":"SUMPRODUCT(('2. Assisted & Restricted Units'!$E$7:$E$399=\"1\")*('2. Assisted & Restricted Units'!$U$7:$U$399=\"SERA\")*('2. Assisted & Restricted Units'!$V$7:$V$399=\"35% AMI\"))","v":0},{"$f":"SUMPRODUCT(('2. Assisted & Restricted Units'!$E$7:$E$399=\"1\")*('2. Assisted & Restricted Units'!$U$7:$U$399=\"SUHRP\")*('2. Assisted & Restricted Units'!$V$7:$V$399=\"35% AMI\"))","v":0},{"$f":"SUMPRODUCT(('2. Assisted & Restricted Units'!$E$7:$E$399=\"1\")*('2. Assisted & Restricted Units'!$U$7:$U$399=\"TOD\")*('2. Assisted & Restricted Units'!$V$7:$V$399=\"35% AMI\"))","v":0},{"$f":"SUMPRODUCT(('2. Assisted & Restricted Units'!$E$7:$E$399=\"1\")*('2. Assisted & Restricted Units'!$U$7:$U$399=\"707-E\")*('2. Assisted & Restricted Units'!$V$7:$V$399=\"35% AMI\"))","v":0},{"$f":"SUMPRODUCT(('2. Assisted & Restricted Units'!$E$7:$E$399=\"1\")*('2. Assisted & Restricted Units'!$U$7:$U$399=\"707-N\")*('2. Assisted & Restricted Units'!$V$7:$V$399=\"35% AMI\"))","v":0}]
["1 Bedroom 40% AMI",{"$f":"SUMPRODUCT(('2. Assisted & Restricted Units'!$E$7:$E$399=\"1\")*('2. Assisted & Restricted Units'!$U$7:$U$399=\"CALDAP\")*('2. Assisted & Restricted Units'!$V$7:$V$399=\"40% AMI\"))","v":0},{"$f":"SUMPRODUCT(('2. Assisted & Restricted Units'!$E$7:$E$399=\"1\")*('2. Assisted & Restricted Units'!$U$7:$U$399=\"CHRP-R\")*('2. Assisted & Restricted Units'!$V$7:$V$399=\"40% AMI\"))","v":0},{"$f":"SUMPRODUCT(('2. Assisted & Restricted Units'!$E$7:$E$399=\"1\")*('2. Assisted & Restricted Units'!$U$7:$U$399=\"DDS\")*('2. Assisted & Restricted Units'!$V$7:$V$399=\"40% AMI\"))","v":0},{"$f":"SUMPRODUCT(('2. Assisted & Restricted Units'!$E$7:$E$399=\"1\")*('2. Assisted & Restricted Units'!$U$7:$U$399=\"DPRLP\")*('2. Assisted & Restricted Units'!$V$7:$V$399=\"40% AMI\"))","v":0},{"$f":"SUMPRODUCT(('2. Assisted & Restricted Units'!$E$7:$E$399=\"1\")*('2. Assisted & Restricted Units'!$U$7:$U$399=\"FHDP\")*('2. Assisted & Restricted Units'!$V$7:$V$399=\"40% AMI\"))","v":0},{"$f":"SUMPRODUCT(('2. Assisted & Restricted Units'!$E$7:$E$399=\"1\")*('2. Assisted & Restricted Units'!$U$7:$U$399=\"FMTW\")*('2. Assisted & Restricted Units'!$V$7:$V$399=\"40% AMI\"))","v":0},null,{"$f":"SUMPRODUCT(('2. Assisted & Restricted Units'!$E$7:$E$399=\"1\")*('2. Assisted & Restricted Units'!$U$7:$U$399=\"HOME\")*('2. Assisted & Restricted Units'!$V$7:$V$399=\"40% AMI\"))","v":0},{"$f":"SUMPRODUCT(('2. Assisted & Restricted Units'!$E$7:$E$399=\"1\")*('2. Assisted & Restricted Units'!$U$7:$U$399=\"Market Rate\")*('2. Assisted & Restricted Units'!$V$7:$V$399=\"40% AMI\"))","v":0},{"$f":"SUMPRODUCT(('2. Assisted & Restricted Units'!$E$7:$E$399=\"1\")*('2. Assisted & Restricted Units'!$U$7:$U$399=\"MHP\")*('2. Assisted & Restricted Units'!$V$7:$V$399=\"40% AMI\"))","v":0},{"$f":"SUMPRODUCT(('2. Assisted & Restricted Units'!$E$7:$E$399=\"1\")*('2. Assisted & Restricted Units'!$U$7:$U$399=\"NonAssisted\")*('2. Assisted & Restricted Units'!$V$7:$V$399=\"40% AMI\"))","v":0},{"$f":"SUMPRODUCT(('2. Assisted & Restricted Units'!$E$7:$E$399=\"1\")*('2. Assisted & Restricted Units'!$U$7:$U$399=\"Other Restr\")*('2. Assisted & Restricted Units'!$V$7:$V$399=\"40% AMI\"))","v":0},{"$f":"SUMPRODUCT(('2. Assisted & Restricted Units'!$E$7:$E$399=\"1\")*('2. Assisted & Restricted Units'!$U$7:$U$399=\"RHCP-B\")*('2. Assisted & Restricted Units'!$V$7:$V$399=\"40% AMI\"))","v":0},{"$f":"SUMPRODUCT(('2. Assisted & Restricted Units'!$E$7:$E$399=\"1\")*('2. Assisted & Restricted Units'!$U$7:$U$399=\"SERA\")*('2. Assisted & Restricted Units'!$V$7:$V$399=\"40% AMI\"))","v":0},{"$f":"SUMPRODUCT(('2. Assisted & Restricted Units'!$E$7:$E$399=\"1\")*('2. Assisted & Restricted Units'!$U$7:$U$399=\"SUHRP\")*('2. Assisted & Restricted Units'!$V$7:$V$399=\"40% AMI\"))","v":0},{"$f":"SUMPRODUCT(('2. Assisted & Restricted Units'!$E$7:$E$399=\"1\")*('2. Assisted & Restricted Units'!$U$7:$U$399=\"TOD\")*('2. Assisted & Restricted Units'!$V$7:$V$399=\"40% AMI\"))","v":0},{"$f":"SUMPRODUCT(('2. Assisted & Restricted Units'!$E$7:$E$399=\"1\")*('2. Assisted & Restricted Units'!$U$7:$U$399=\"707-E\")*('2. Assisted & Restricted Units'!$V$7:$V$399=\"40% AMI\"))","v":0},{"$f":"SUMPRODUCT(('2. Assisted & Restricted Units'!$E$7:$E$399=\"1\")*('2. Assisted & Restricted Units'!$U$7:$U$399=\"707-N\")*('2. Assisted & Restricted Units'!$V$7:$V$399=\"40% AMI\"))","v":0}]
["1 Bedroom 45% AMI",{"$f":"SUMPRODUCT(('2. Assisted & Restricted Units'!$E$7:$E$399=\"1\")*('2. Assisted & Restricted Units'!$U$7:$U$399=\"CALDAP\")*('2. Assisted & Restricted Units'!$V$7:$V$399=\"45% AMI\"))","v":0},{"$f":"SUMPRODUCT(('2. Assisted & Restricted Units'!$E$7:$E$399=\"1\")*('2. Assisted & Restricted Units'!$U$7:$U$399=\"CHRP-R\")*('2. Assisted & Restricted Units'!$V$7:$V$399=\"45% AMI\"))","v":0},{"$f":"SUMPRODUCT(('2. Assisted & Restricted Units'!$E$7:$E$399=\"1\")*('2. Assisted & Restricted Units'!$U$7:$U$399=\"DDS\")*('2. Assisted & Restricted Units'!$V$7:$V$399=\"45% AMI\"))","v":0},{"$f":"SUMPRODUCT(('2. Assisted & Restricted Units'!$E$7:$E$399=\"1\")*('2. Assisted & Restricted Units'!$U$7:$U$399=\"DPRLP\")*('2. Assisted & Restricted Units'!$V$7:$V$399=\"45% AMI\"))","v":0},{"$f":"SUMPRODUCT(('2. Assisted & Restricted Units'!$E$7:$E$399=\"1\")*('2. Assisted & Restricted Units'!$U$7:$U$399=\"FHDP\")*('2. Assisted & Restricted Units'!$V$7:$V$399=\"45% AMI\"))","v":0},{"$f":"SUMPRODUCT(('2. Assisted & Restricted Units'!$E$7:$E$399=\"1\")*('2. Assisted & Restricted Units'!$U$7:$U$399=\"FMTW\")*('2. Assisted & Restricted Units'!$V$7:$V$399=\"45% AMI\"))","v":0},null,{"$f":"SUMPRODUCT(('2. Assisted & Restricted Units'!$E$7:$E$399=\"1\")*('2. Assisted & Restricted Units'!$U$7:$U$399=\"HOME\")*('2. Assisted & Restricted Units'!$V$7:$V$399=\"45% AMI\"))","v":0},{"$f":"SUMPRODUCT(('2. Assisted & Restricted Units'!$E$7:$E$399=\"1\")*('2. Assisted & Restricted Units'!$U$7:$U$399=\"Market Rate\")*('2. Assisted & Restricted Units'!$V$7:$V$399=\"45% AMI\"))","v":0},{"$f":"SUMPRODUCT(('2. Assisted & Restricted Units'!$E$7:$E$399=\"1\")*('2. Assisted & Restricted Units'!$U$7:$U$399=\"MHP\")*('2. Assisted & Restricted Units'!$V$7:$V$399=\"45% AMI\"))","v":0},{"$f":"SUMPRODUCT(('2. Assisted & Restricted Units'!$E$7:$E$399=\"1\")*('2. Assisted & Restricted Units'!$U$7:$U$399=\"NonAssisted\")*('2. Assisted & Restricted Units'!$V$7:$V$399=\"45% AMI\"))","v":0},{"$f":"SUMPRODUCT(('2. Assisted & Restricted Units'!$E$7:$E$399=\"1\")*('2. Assisted & Restricted Units'!$U$7:$U$399=\"Other Restr\")*('2. Assisted & Restricted Units'!$V$7:$V$399=\"45% AMI\"))","v":0},{"$f":"SUMPRODUCT(('2. Assisted & Restricted Units'!$E$7:$E$399=\"1\")*('2. Assisted & Restricted Units'!$U$7:$U$399=\"RHCP-B\")*('2. Assisted & Restricted Units'!$V$7:$V$399=\"45% AMI\"))","v":0},{"$f":"SUMPRODUCT(('2. Assisted & Restricted Units'!$E$7:$E$399=\"1\")*('2. Assisted & Restricted Units'!$U$7:$U$399=\"SERA\")*('2. Assisted & Restricted Units'!$V$7:$V$399=\"45% AMI\"))","v":0},{"$f":"SUMPRODUCT(('2. Assisted & Restricted Units'!$E$7:$E$399=\"1\")*('2. Assisted & Restricted Units'!$U$7:$U$399=\"SUHRP\")*('2. Assisted & Restricted Units'!$V$7:$V$399=\"45% AMI\"))","v":0},{"$f":"SUMPRODUCT(('2. Assisted & Restricted Units'!$E$7:$E$399=\"1\")*('2. Assisted & Restricted Units'!$U$7:$U$399=\"TOD\")*('2. Assisted & Restricted Units'!$V$7:$V$399=\"45% AMI\"))","v":0},{"$f":"SUMPRODUCT(('2. Assisted & Restricted Units'!$E$7:$E$399=\"1\")*('2. Assisted & Restricted Units'!$U$7:$U$399=\"707-E\")*('2. Assisted & Restricted Units'!$V$7:$V$399=\"45% AMI\"))","v":0},{"$f":"SUMPRODUCT(('2. Assisted & Restricted Units'!$E$7:$E$399=\"1\")*('2. Assisted & Restricted Units'!$U$7:$U$399=\"707-N\")*('2. Assisted & Restricted Units'!$V$7:$V$399=\"45% AMI\"))","v":0}]
["1 Bedroom 50% AMI",{"$f":"SUMPRODUCT(('2. Assisted & Restricted Units'!$E$7:$E$399=\"1\")*('2. Assisted & Restricted Units'!$U$7:$U$399=\"CALDAP\")*('2. Assisted & Restricted Units'!$V$7:$V$399=\"50% AMI\"))","v":0},{"$f":"SUMPRODUCT(('2. Assisted & Restricted Units'!$E$7:$E$399=\"1\")*('2. Assisted & Restricted Units'!$U$7:$U$399=\"CHRP-R\")*('2. Assisted & Restricted Units'!$V$7:$V$399=\"50% AMI\"))","v":0},{"$f":"SUMPRODUCT(('2. Assisted & Restricted Units'!$E$7:$E$399=\"1\")*('2. Assisted & Restricted Units'!$U$7:$U$399=\"DDS\")*('2. Assisted & Restricted Units'!$V$7:$V$399=\"50% AMI\"))","v":0},{"$f":"SUMPRODUCT(('2. Assisted & Restricted Units'!$E$7:$E$399=\"1\")*('2. Assisted & Restricted Units'!$U$7:$U$399=\"DPRLP\")*('2. Assisted & Restricted Units'!$V$7:$V$399=\"50% AMI\"))","v":0},{"$f":"SUMPRODUCT(('2. Assisted & Restricted Units'!$E$7:$E$399=\"1\")*('2. Assisted & Restricted Units'!$U$7:$U$399=\"FHDP\")*('2. Assisted & Restricted Units'!$V$7:$V$399=\"50% AMI\"))","v":0},{"$f":"SUMPRODUCT(('2. Assisted & Restricted Units'!$E$7:$E$399=\"1\")*('2. Assisted & Restricted Units'!$U$7:$U$399=\"FMTW\")*('2. Assisted & Restricted Units'!$V$7:$V$399=\"50% AMI\"))","v":0},null,{"$f":"SUMPRODUCT(('2. Assisted & Restricted Units'!$E$7:$E$399=\"1\")*('2. Assisted & Restricted Units'!$U$7:$U$399=\"HOME\")*('2. Assisted & Restricted Units'!$V$7:$V$399=\"50% AMI\"))","v":0},{"$f":"SUMPRODUCT(('2. Assisted & Restricted Units'!$E$7:$E$399=\"1\")*('2. Assisted & Restricted Units'!$U$7:$U$399=\"Market Rate\")*('2. Assisted & Restricted Units'!$V$7:$V$399=\"50% AMI\"))","v":0},{"$f":"SUMPRODUCT(('2. Assisted & Restricted Units'!$E$7:$E$399=\"1\")*('2. Assisted & Restricted Units'!$U$7:$U$399=\"MHP\")*('2. Assisted & Restricted Units'!$V$7:$V$399=\"50% AMI\"))","v":0},{"$f":"SUMPRODUCT(('2. Assisted & Restricted Units'!$E$7:$E$399=\"1\")*('2. Assisted & Restricted Units'!$U$7:$U$399=\"NonAssisted\")*('2. Assisted & Restricted Units'!$V$7:$V$399=\"50% AMI\"))","v":0},{"$f":"SUMPRODUCT(('2. Assisted & Restricted Units'!$E$7:$E$399=\"1\")*('2. Assisted & Restricted Units'!$U$7:$U$399=\"Other Restr\")*('2. Assisted & Restricted Units'!$V$7:$V$399=\"50% AMI\"))","v":0},{"$f":"SUMPRODUCT(('2. Assisted & Restricted Units'!$E$7:$E$399=\"1\")*('2. Assisted & Restricted Units'!$U$7:$U$399=\"RHCP-B\")*('2. Assisted & Restricted Units'!$V$7:$V$399=\"50% AMI\"))","v":0},{"$f":"SUMPRODUCT(('2. Assisted & Restricted Units'!$E$7:$E$399=\"1\")*('2. Assisted & Restricted Units'!$U$7:$U$399=\"SERA\")*('2. Assisted & Restricted Units'!$V$7:$V$399=\"50% AMI\"))","v":0},{"$f":"SUMPRODUCT(('2. Assisted & Restricted Units'!$E$7:$E$399=\"1\")*('2. Assisted & Restricted Units'!$U$7:$U$399=\"SUHRP\")*('2. Assisted & Restricted Units'!$V$7:$V$399=\"50% AMI\"))","v":0},{"$f":"SUMPRODUCT(('2. Assisted & Restricted Units'!$E$7:$E$399=\"1\")*('2. Assisted & Restricted Units'!$U$7:$U$399=\"TOD\")*('2. Assisted & Restricted Units'!$V$7:$V$399=\"50% AMI\"))","v":0},{"$f":"SUMPRODUCT(('2. Assisted & Restricted Units'!$E$7:$E$399=\"1\")*('2. Assisted & Restricted Units'!$U$7:$U$399=\"707-E\")*('2. Assisted & Restricted Units'!$V$7:$V$399=\"50% AMI\"))","v":0},{"$f":"SUMPRODUCT(('2. Assisted & Restricted Units'!$E$7:$E$399=\"1\")*('2. Assisted & Restricted Units'!$U$7:$U$399=\"707-N\")*('2. Assisted & Restricted Units'!$V$7:$V$399=\"50% AMI\"))","v":0}]
["1 Bedroom 55% AMI",{"$f":"SUMPRODUCT(('2. Assisted & Restricted Units'!$E$7:$E$399=\"1\")*('2. Assisted & Restricted Units'!$U$7:$U$399=\"CALDAP\")*('2. Assisted & Restricted Units'!$V$7:$V$399=\"55% AMI\"))","v":0},{"$f":"SUMPRODUCT(('2. Assisted & Restricted Units'!$E$7:$E$399=\"1\")*('2. Assisted & Restricted Units'!$U$7:$U$399=\"CHRP-R\")*('2. Assisted & Restricted Units'!$V$7:$V$399=\"55% AMI\"))","v":0},{"$f":"SUMPRODUCT(('2. Assisted & Restricted Units'!$E$7:$E$399=\"1\")*('2. Assisted & Restricted Units'!$U$7:$U$399=\"DDS\")*('2. Assisted & Restricted Units'!$V$7:$V$399=\"55% AMI\"))","v":0},{"$f":"SUMPRODUCT(('2. Assisted & Restricted Units'!$E$7:$E$399=\"1\")*('2. Assisted & Restricted Units'!$U$7:$U$399=\"DPRLP\")*('2. Assisted & Restricted Units'!$V$7:$V$399=\"55% AMI\"))","v":0},{"$f":"SUMPRODUCT(('2. Assisted & Restricted Units'!$E$7:$E$399=\"1\")*('2. Assisted & Restricted Units'!$U$7:$U$399=\"FHDP\")*('2. Assisted & Restricted Units'!$V$7:$V$399=\"55% AMI\"))","v":0},{"$f":"SUMPRODUCT(('2. Assisted & Restricted Units'!$E$7:$E$399=\"1\")*('2. Assisted & Restricted Units'!$U$7:$U$399=\"FMTW\")*('2. Assisted & Restricted Units'!$V$7:$V$399=\"55% AMI\"))","v":0},null,{"$f":"SUMPRODUCT(('2. Assisted & Restricted Units'!$E$7:$E$399=\"1\")*('2. Assisted & Restricted Units'!$U$7:$U$399=\"HOME\")*('2. Assisted & Restricted Units'!$V$7:$V$399=\"55% AMI\"))","v":0},{"$f":"SUMPRODUCT(('2. Assisted & Restricted Units'!$E$7:$E$399=\"1\")*('2. Assisted & Restricted Units'!$U$7:$U$399=\"Market Rate\")*('2. Assisted & Restricted Units'!$V$7:$V$399=\"55% AMI\"))","v":0},{"$f":"SUMPRODUCT(('2. Assisted & Restricted Units'!$E$7:$E$399=\"1\")*('2. Assisted & Restricted Units'!$U$7:$U$399=\"MHP\")*('2. Assisted & Restricted Units'!$V$7:$V$399=\"55% AMI\"))","v":0},{"$f":"SUMPRODUCT(('2. Assisted & Restricted Units'!$E$7:$E$399=\"1\")*('2. Assisted & Restricted Units'!$U$7:$U$399=\"NonAssisted\")*('2. Assisted & Restricted Units'!$V$7:$V$399=\"55% AMI\"))","v":0},{"$f":"SUMPRODUCT(('2. Assisted & Restricted Units'!$E$7:$E$399=\"1\")*('2. Assisted & Restricted Units'!$U$7:$U$399=\"Other Restr\")*('2. Assisted & Restricted Units'!$V$7:$V$399=\"55% AMI\"))","v":0},{"$f":"SUMPRODUCT(('2. Assisted & Restricted Units'!$E$7:$E$399=\"1\")*('2. Assisted & Restricted Units'!$U$7:$U$399=\"RHCP-B\")*('2. Assisted & Restricted Units'!$V$7:$V$399=\"55% AMI\"))","v":0},{"$f":"SUMPRODUCT(('2. Assisted & Restricted Units'!$E$7:$E$399=\"1\")*('2. Assisted & Restricted Units'!$U$7:$U$399=\"SERA\")*('2. Assisted & Restricted Units'!$V$7:$V$399=\"55% AMI\"))","v":0},{"$f":"SUMPRODUCT(('2. Assisted & Restricted Units'!$E$7:$E$399=\"1\")*('2. Assisted & Restricted Units'!$U$7:$U$399=\"SUHRP\")*('2. Assisted & Restricted Units'!$V$7:$V$399=\"55% AMI\"))","v":0},{"$f":"SUMPRODUCT(('2. Assisted & Restricted Units'!$E$7:$E$399=\"1\")*('2. Assisted & Restricted Units'!$U$7:$U$399=\"TOD\")*('2. Assisted & Restricted Units'!$V$7:$V$399=\"55% AMI\"))","v":0},{"$f":"SUMPRODUCT(('2. Assisted & Restricted Units'!$E$7:$E$399=\"1\")*('2. Assisted & Restricted Units'!$U$7:$U$399=\"707-E\")*('2. Assisted & Restricted Units'!$V$7:$V$399=\"55% AMI\"))","v":0},{"$f":"SUMPRODUCT(('2. Assisted & Restricted Units'!$E$7:$E$399=\"1\")*('2. Assisted & Restricted Units'!$U$7:$U$399=\"707-N\")*('2. Assisted & Restricted Units'!$V$7:$V$399=\"55% AMI\"))","v":0}]
["1 Bedroom 60% AMI",{"$f":"SUMPRODUCT(('2. Assisted & Restricted Units'!$E$7:$E$399=\"1\")*('2. Assisted & Restricted Units'!$U$7:$U$399=\"CALDAP\")*('2. Assisted & Restricted Units'!$V$7:$V$399=\"60% AMI\"))","v":0},{"$f":"SUMPRODUCT(('2. Assisted & Restricted Units'!$E$7:$E$399=\"1\")*('2. Assisted & Restricted Units'!$U$7:$U$399=\"CHRP-R\")*('2. Assisted & Restricted Units'!$V$7:$V$399=\"60% AMI\"))","v":0},{"$f":"SUMPRODUCT(('2. Assisted & Restricted Units'!$E$7:$E$399=\"1\")*('2. Assisted & Restricted Units'!$U$7:$U$399=\"DDS\")*('2. Assisted & Restricted Units'!$V$7:$V$399=\"60% AMI\"))","v":0},{"$f":"SUMPRODUCT(('2. Assisted & Restricted Units'!$E$7:$E$399=\"1\")*('2. Assisted & Restricted Units'!$U$7:$U$399=\"DPRLP\")*('2. Assisted & Restricted Units'!$V$7:$V$399=\"60% AMI\"))","v":0},{"$f":"SUMPRODUCT(('2. Assisted & Restricted Units'!$E$7:$E$399=\"1\")*('2. Assisted & Restricted Units'!$U$7:$U$399=\"FHDP\")*('2. Assisted & Restricted Units'!$V$7:$V$399=\"60% AMI\"))","v":0},{"$f":"SUMPRODUCT(('2. Assisted & Restricted Units'!$E$7:$E$399=\"1\")*('2. Assisted & Restricted Units'!$U$7:$U$399=\"FMTW\")*('2. Assisted & Restricted Units'!$V$7:$V$399=\"60% AMI\"))","v":0},null,{"$f":"SUMPRODUCT(('2. Assisted & Restricted Units'!$E$7:$E$399=\"1\")*('2. Assisted & Restricted Units'!$U$7:$U$399=\"HOME\")*('2. Assisted & Restricted Units'!$V$7:$V$399=\"60% AMI\"))","v":0},{"$f":"SUMPRODUCT(('2. Assisted & Restricted Units'!$E$7:$E$399=\"1\")*('2. Assisted & Restricted Units'!$U$7:$U$399=\"Market Rate\")*('2. Assisted & Restricted Units'!$V$7:$V$399=\"60% AMI\"))","v":0},{"$f":"SUMPRODUCT(('2. Assisted & Restricted Units'!$E$7:$E$399=\"1\")*('2. Assisted & Restricted Units'!$U$7:$U$399=\"MHP\")*('2. Assisted & Restricted Units'!$V$7:$V$399=\"60% AMI\"))","v":0},{"$f":"SUMPRODUCT(('2. Assisted & Restricted Units'!$E$7:$E$399=\"1\")*('2. Assisted & Restricted Units'!$U$7:$U$399=\"NonAssisted\")*('2. Assisted & Restricted Units'!$V$7:$V$399=\"60% AMI\"))","v":0},{"$f":"SUMPRODUCT(('2. Assisted & Restricted Units'!$E$7:$E$399=\"1\")*('2. Assisted & Restricted Units'!$U$7:$U$399=\"Other Restr\")*('2. Assisted & Restricted Units'!$V$7:$V$399=\"60% AMI\"))","v":0},{"$f":"SUMPRODUCT(('2. Assisted & Restricted Units'!$E$7:$E$399=\"1\")*('2. Assisted & Restricted Units'!$U$7:$U$399=\"RHCP-B\")*('2. Assisted & Restricted Units'!$V$7:$V$399=\"60% AMI\"))","v":0},{"$f":"SUMPRODUCT(('2. Assisted & Restricted Units'!$E$7:$E$399=\"1\")*('2. Assisted & Restricted Units'!$U$7:$U$399=\"SERA\")*('2. Assisted & Restricted Units'!$V$7:$V$399=\"60% AMI\"))","v":0},{"$f":"SUMPRODUCT(('2. Assisted & Restricted Units'!$E$7:$E$399=\"1\")*('2. Assisted & Restricted Units'!$U$7:$U$399=\"SUHRP\")*('2. Assisted & Restricted Units'!$V$7:$V$399=\"60% AMI\"))","v":0},{"$f":"SUMPRODUCT(('2. Assisted & Restricted Units'!$E$7:$E$399=\"1\")*('2. Assisted & Restricted Units'!$U$7:$U$399=\"TOD\")*('2. Assisted & Restricted Units'!$V$7:$V$399=\"60% AMI\"))","v":0},{"$f":"SUMPRODUCT(('2. Assisted & Restricted Units'!$E$7:$E$399=\"1\")*('2. Assisted & Restricted Units'!$U$7:$U$399=\"707-E\")*('2. Assisted & Restricted Units'!$V$7:$V$399=\"60% AMI\"))","v":0},{"$f":"SUMPRODUCT(('2. Assisted & Restricted Units'!$E$7:$E$399=\"1\")*('2. Assisted & Restricted Units'!$U$7:$U$399=\"707-N\")*('2. Assisted & Restricted Units'!$V$7:$V$399=\"60% AMI\"))","v":0}]
["1 Bedroom 80% AMI",{"$f":"SUMPRODUCT(('2. Assisted & Restricted Units'!$E$7:$E$399=\"1\")*('2. Assisted & Restricted Units'!$U$7:$U$399=\"CALDAP\")*('2. Assisted & Restricted Units'!$V$7:$V$399=\"80% AMI\"))","v":0},{"$f":"SUMPRODUCT(('2. Assisted & Restricted Units'!$E$7:$E$399=\"1\")*('2. Assisted & Restricted Units'!$U$7:$U$399=\"CHRP-R\")*('2. Assisted & Restricted Units'!$V$7:$V$399=\"80% AMI\"))","v":0},{"$f":"SUMPRODUCT(('2. Assisted & Restricted Units'!$E$7:$E$399=\"1\")*('2. Assisted & Restricted Units'!$U$7:$U$399=\"DDS\")*('2. Assisted & Restricted Units'!$V$7:$V$399=\"80% AMI\"))","v":0},{"$f":"SUMPRODUCT(('2. Assisted & Restricted Units'!$E$7:$E$399=\"1\")*('2. Assisted & Restricted Units'!$U$7:$U$399=\"DPRLP\")*('2. Assisted & Restricted Units'!$V$7:$V$399=\"80% AMI\"))","v":0},{"$f":"SUMPRODUCT(('2. Assisted & Restricted Units'!$E$7:$E$399=\"1\")*('2. Assisted & Restricted Units'!$U$7:$U$399=\"FHDP\")*('2. Assisted & Restricted Units'!$V$7:$V$399=\"80% AMI\"))","v":0},{"$f":"SUMPRODUCT(('2. Assisted & Restricted Units'!$E$7:$E$399=\"1\")*('2. Assisted & Restricted Units'!$U$7:$U$399=\"FMTW\")*('2. Assisted & Restricted Units'!$V$7:$V$399=\"80% AMI\"))","v":0},null,{"$f":"SUMPRODUCT(('2. Assisted & Restricted Units'!$E$7:$E$399=\"1\")*('2. Assisted & Restricted Units'!$U$7:$U$399=\"HOME\")*('2. Assisted & Restricted Units'!$V$7:$V$399=\"80% AMI\"))","v":0},{"$f":"SUMPRODUCT(('2. Assisted & Restricted Units'!$E$7:$E$399=\"1\")*('2. Assisted & Restricted Units'!$U$7:$U$399=\"Market Rate\")*('2. Assisted & Restricted Units'!$V$7:$V$399=\"80% AMI\"))","v":0},{"$f":"SUMPRODUCT(('2. Assisted & Restricted Units'!$E$7:$E$399=\"1\")*('2. Assisted & Restricted Units'!$U$7:$U$399=\"MHP\")*('2. Assisted & Restricted Units'!$V$7:$V$399=\"80% AMI\"))","v":0},{"$f":"SUMPRODUCT(('2. Assisted & Restricted Units'!$E$7:$E$399=\"1\")*('2. Assisted & Restricted Units'!$U$7:$U$399=\"NonAssisted\")*('2. Assisted & Restricted Units'!$V$7:$V$399=\"80% AMI\"))","v":0},{"$f":"SUMPRODUCT(('2. Assisted & Restricted Units'!$E$7:$E$399=\"1\")*('2. Assisted & Restricted Units'!$U$7:$U$399=\"Other Restr\")*('2. Assisted & Restricted Units'!$V$7:$V$399=\"80% AMI\"))","v":0},{"$f":"SUMPRODUCT(('2. Assisted & Restricted Units'!$E$7:$E$399=\"1\")*('2. Assisted & Restricted Units'!$U$7:$U$399=\"RHCP-B\")*('2. Assisted & Restricted Units'!$V$7:$V$399=\"80% AMI\"))","v":0},{"$f":"SUMPRODUCT(('2. Assisted & Restricted Units'!$E$7:$E$399=\"1\")*('2. Assisted & Restricted Units'!$U$7:$U$399=\"SERA\")*('2. Assisted & Restricted Units'!$V$7:$V$399=\"80% AMI\"))","v":0},{"$f":"SUMPRODUCT(('2. Assisted & Restricted Units'!$E$7:$E$399=\"1\")*('2. Assisted & Restricted Units'!$U$7:$U$399=\"SUHRP\")*('2. Assisted & Restricted Units'!$V$7:$V$399=\"80% AMI\"))","v":0},{"$f":"SUMPRODUCT(('2. Assisted & Restricted Units'!$E$7:$E$399=\"1\")*('2. Assisted & Restricted Units'!$U$7:$U$399=\"TOD\")*('2. Assisted & Restricted Units'!$V$7:$V$399=\"80% AMI\"))","v":0},{"$f":"SUMPRODUCT(('2. Assisted & Restricted Units'!$E$7:$E$399=\"1\")*('2. Assisted & Restricted Units'!$U$7:$U$399=\"707-E\")*('2. Assisted & Restricted Units'!$V$7:$V$399=\"80% AMI\"))","v":0},{"$f":"SUMPRODUCT(('2. Assisted & Restricted Units'!$E$7:$E$399=\"1\")*('2. Assisted & Restricted Units'!$U$7:$U$399=\"707-N\")*('2. Assisted & Restricted Units'!$V$7:$V$399=\"80% AMI\"))","v":0}]
["1 Bedroom 20% SMI",{"$f":"SUMPRODUCT(('2. Assisted & Restricted Units'!$E$7:$E$399=\"1\")*('2. Assisted & Restricted Units'!$U$7:$U$399=\"CALDAP\")*('2. Assisted & Restricted Units'!$V$7:$V$399=\"20% SMI\"))","v":0},{"$f":"SUMPRODUCT(('2. Assisted & Restricted Units'!$E$7:$E$399=\"1\")*('2. Assisted & Restricted Units'!$U$7:$U$399=\"CHRP-R\")*('2. Assisted & Restricted Units'!$V$7:$V$399=\"20% SMI\"))","v":0},{"$f":"SUMPRODUCT(('2. Assisted & Restricted Units'!$E$7:$E$399=\"1\")*('2. Assisted & Restricted Units'!$U$7:$U$399=\"DDS\")*('2. Assisted & Restricted Units'!$V$7:$V$399=\"20% SMI\"))","v":0},{"$f":"SUMPRODUCT(('2. Assisted & Restricted Units'!$E$7:$E$399=\"1\")*('2. Assisted & Restricted Units'!$U$7:$U$399=\"DPRLP\")*('2. Assisted & Restricted Units'!$V$7:$V$399=\"20% SMI\"))","v":0},{"$f":"SUMPRODUCT(('2. Assisted & Restricted Units'!$E$7:$E$399=\"1\")*('2. Assisted & Restricted Units'!$U$7:$U$399=\"FHDP\")*('2. Assisted & Restricted Units'!$V$7:$V$399=\"20% SMI\"))","v":0},{"$f":"SUMPRODUCT(('2. Assisted & Restricted Units'!$E$7:$E$399=\"1\")*('2. Assisted & Restricted Units'!$U$7:$U$399=\"FMTW\")*('2. Assisted & Restricted Units'!$V$7:$V$399=\"20% SMI\"))","v":0},null,{"$f":"SUMPRODUCT(('2. Assisted & Restricted Units'!$E$7:$E$399=\"1\")*('2. Assisted & Restricted Units'!$U$7:$U$399=\"HOME\")*('2. Assisted & Restricted Units'!$V$7:$V$399=\"20% SMI\"))","v":0},{"$f":"SUMPRODUCT(('2. Assisted & Restricted Units'!$E$7:$E$399=\"1\")*('2. Assisted & Restricted Units'!$U$7:$U$399=\"Market Rate\")*('2. Assisted & Restricted Units'!$V$7:$V$399=\"20% SMI\"))","v":0},{"$f":"SUMPRODUCT(('2. Assisted & Restricted Units'!$E$7:$E$399=\"1\")*('2. Assisted & Restricted Units'!$U$7:$U$399=\"MHP\")*('2. Assisted & Restricted Units'!$V$7:$V$399=\"20% SMI\"))","v":0},{"$f":"SUMPRODUCT(('2. Assisted & Restricted Units'!$E$7:$E$399=\"1\")*('2. Assisted & Restricted Units'!$U$7:$U$399=\"NonAssisted\")*('2. Assisted & Restricted Units'!$V$7:$V$399=\"20% SMI\"))","v":0},{"$f":"SUMPRODUCT(('2. Assisted & Restricted Units'!$E$7:$E$399=\"1\")*('2. Assisted & Restricted Units'!$U$7:$U$399=\"Other Restr\")*('2. Assisted & Restricted Units'!$V$7:$V$399=\"20% SMI\"))","v":0},{"$f":"SUMPRODUCT(('2. Assisted & Restricted Units'!$E$7:$E$399=\"1\")*('2. Assisted & Restricted Units'!$U$7:$U$399=\"RHCP-B\")*('2. Assisted & Restricted Units'!$V$7:$V$399=\"20% SMI\"))","v":0},{"$f":"SUMPRODUCT(('2. Assisted & Restricted Units'!$E$7:$E$399=\"1\")*('2. Assisted & Restricted Units'!$U$7:$U$399=\"SERA\")*('2. Assisted & Restricted Units'!$V$7:$V$399=\"20% SMI\"))","v":0},{"$f":"SUMPRODUCT(('2. Assisted & Restricted Units'!$E$7:$E$399=\"1\")*('2. Assisted & Restricted Units'!$U$7:$U$399=\"SUHRP\")*('2. Assisted & Restricted Units'!$V$7:$V$399=\"20% SMI\"))","v":0},{"$f":"SUMPRODUCT(('2. Assisted & Restricted Units'!$E$7:$E$399=\"1\")*('2. Assisted & Restricted Units'!$U$7:$U$399=\"TOD\")*('2. Assisted & Restricted Units'!$V$7:$V$399=\"20% SMI\"))","v":0},{"$f":"SUMPRODUCT(('2. Assisted & Restricted Units'!$E$7:$E$399=\"1\")*('2. Assisted & Restricted Units'!$U$7:$U$399=\"707-E\")*('2. Assisted & Restricted Units'!$V$7:$V$399=\"20% SMI\"))","v":0},{"$f":"SUMPRODUCT(('2. Assisted & Restricted Units'!$E$7:$E$399=\"1\")*('2. Assisted & Restricted Units'!$U$7:$U$399=\"707-N\")*('2. Assisted & Restricted Units'!$V$7:$V$399=\"20% SMI\"))","v":0}]
["1 Bedroom 25% SMI",{"$f":"SUMPRODUCT(('2. Assisted & Restricted Units'!$E$7:$E$399=\"1\")*('2. Assisted & Restricted Units'!$U$7:$U$399=\"CALDAP\")*('2. Assisted & Restricted Units'!$V$7:$V$399=\"25% SMI\"))","v":0},{"$f":"SUMPRODUCT(('2. Assisted & Restricted Units'!$E$7:$E$399=\"1\")*('2. Assisted & Restricted Units'!$U$7:$U$399=\"CHRP-R\")*('2. Assisted & Restricted Units'!$V$7:$V$399=\"25% SMI\"))","v":0},{"$f":"SUMPRODUCT(('2. Assisted & Restricted Units'!$E$7:$E$399=\"1\")*('2. Assisted & Restricted Units'!$U$7:$U$399=\"DDS\")*('2. Assisted & Restricted Units'!$V$7:$V$399=\"25% SMI\"))","v":0},{"$f":"SUMPRODUCT(('2. Assisted & Restricted Units'!$E$7:$E$399=\"1\")*('2. Assisted & Restricted Units'!$U$7:$U$399=\"DPRLP\")*('2. Assisted & Restricted Units'!$V$7:$V$399=\"25% SMI\"))","v":0},{"$f":"SUMPRODUCT(('2. Assisted & Restricted Units'!$E$7:$E$399=\"1\")*('2. Assisted & Restricted Units'!$U$7:$U$399=\"FHDP\")*('2. Assisted & Restricted Units'!$V$7:$V$399=\"25% SMI\"))","v":0},{"$f":"SUMPRODUCT(('2. Assisted & Restricted Units'!$E$7:$E$399=\"1\")*('2. Assisted & Restricted Units'!$U$7:$U$399=\"FMTW\")*('2. Assisted & Restricted Units'!$V$7:$V$399=\"25% SMI\"))","v":0},null,{"$f":"SUMPRODUCT(('2. Assisted & Restricted Units'!$E$7:$E$399=\"1\")*('2. Assisted & Restricted Units'!$U$7:$U$399=\"HOME\")*('2. Assisted & Restricted Units'!$V$7:$V$399=\"25% SMI\"))","v":0},{"$f":"SUMPRODUCT(('2. Assisted & Restricted Units'!$E$7:$E$399=\"1\")*('2. Assisted & Restricted Units'!$U$7:$U$399=\"Market Rate\")*('2. Assisted & Restricted Units'!$V$7:$V$399=\"25% SMI\"))","v":0},{"$f":"SUMPRODUCT(('2. Assisted & Restricted Units'!$E$7:$E$399=\"1\")*('2. Assisted & Restricted Units'!$U$7:$U$399=\"MHP\")*('2. Assisted & Restricted Units'!$V$7:$V$399=\"25% SMI\"))","v":0},{"$f":"SUMPRODUCT(('2. Assisted & Restricted Units'!$E$7:$E$399=\"1\")*('2. Assisted & Restricted Units'!$U$7:$U$399=\"NonAssisted\")*('2. Assisted & Restricted Units'!$V$7:$V$399=\"25% SMI\"))","v":0},{"$f":"SUMPRODUCT(('2. Assisted & Restricted Units'!$E$7:$E$399=\"1\")*('2. Assisted & Restricted Units'!$U$7:$U$399=\"Other Restr\")*('2. Assisted & Restricted Units'!$V$7:$V$399=\"25% SMI\"))","v":0},{"$f":"SUMPRODUCT(('2. Assisted & Restricted Units'!$E$7:$E$399=\"1\")*('2. Assisted & Restricted Units'!$U$7:$U$399=\"RHCP-B\")*('2. Assisted & Restricted Units'!$V$7:$V$399=\"25% SMI\"))","v":0},{"$f":"SUMPRODUCT(('2. Assisted & Restricted Units'!$E$7:$E$399=\"1\")*('2. Assisted & Restricted Units'!$U$7:$U$399=\"SERA\")*('2. Assisted & Restricted Units'!$V$7:$V$399=\"25% SMI\"))","v":0},{"$f":"SUMPRODUCT(('2. Assisted & Restricted Units'!$E$7:$E$399=\"1\")*('2. Assisted & Restricted Units'!$U$7:$U$399=\"SUHRP\")*('2. Assisted & Restricted Units'!$V$7:$V$399=\"25% SMI\"))","v":0},{"$f":"SUMPRODUCT(('2. Assisted & Restricted Units'!$E$7:$E$399=\"1\")*('2. Assisted & Restricted Units'!$U$7:$U$399=\"TOD\")*('2. Assisted & Restricted Units'!$V$7:$V$399=\"25% SMI\"))","v":0},{"$f":"SUMPRODUCT(('2. Assisted & Restricted Units'!$E$7:$E$399=\"1\")*('2. Assisted & Restricted Units'!$U$7:$U$399=\"707-E\")*('2. Assisted & Restricted Units'!$V$7:$V$399=\"25% SMI\"))","v":0},{"$f":"SUMPRODUCT(('2. Assisted & Restricted Units'!$E$7:$E$399=\"1\")*('2. Assisted & Restricted Units'!$U$7:$U$399=\"707-N\")*('2. Assisted & Restricted Units'!$V$7:$V$399=\"25% SMI\"))","v":0}]
["1 Bedroom 30% SMI",{"$f":"SUMPRODUCT(('2. Assisted & Restricted Units'!$E$7:$E$399=\"1\")*('2. Assisted & Restricted Units'!$U$7:$U$399=\"CALDAP\")*('2. Assisted & Restricted Units'!$V$7:$V$399=\"30% SMI\"))","v":0},{"$f":"SUMPRODUCT(('2. Assisted & Restricted Units'!$E$7:$E$399=\"1\")*('2. Assisted & Restricted Units'!$U$7:$U$399=\"CHRP-R\")*('2. Assisted & Restricted Units'!$V$7:$V$399=\"30% SMI\"))","v":0},{"$f":"SUMPRODUCT(('2. Assisted & Restricted Units'!$E$7:$E$399=\"1\")*('2. Assisted & Restricted Units'!$U$7:$U$399=\"DDS\")*('2. Assisted & Restricted Units'!$V$7:$V$399=\"30% SMI\"))","v":0},{"$f":"SUMPRODUCT(('2. Assisted & Restricted Units'!$E$7:$E$399=\"1\")*('2. Assisted & Restricted Units'!$U$7:$U$399=\"DPRLP\")*('2. Assisted & Restricted Units'!$V$7:$V$399=\"30% SMI\"))","v":0},{"$f":"SUMPRODUCT(('2. Assisted & Restricted Units'!$E$7:$E$399=\"1\")*('2. Assisted & Restricted Units'!$U$7:$U$399=\"FHDP\")*('2. Assisted & Restricted Units'!$V$7:$V$399=\"30% SMI\"))","v":0},{"$f":"SUMPRODUCT(('2. Assisted & Restricted Units'!$E$7:$E$399=\"1\")*('2. Assisted & Restricted Units'!$U$7:$U$399=\"FMTW\")*('2. Assisted & Restricted Units'!$V$7:$V$399=\"30% SMI\"))","v":0},null,{"$f":"SUMPRODUCT(('2. Assisted & Restricted Units'!$E$7:$E$399=\"1\")*('2. Assisted & Restricted Units'!$U$7:$U$399=\"HOME\")*('2. Assisted & Restricted Units'!$V$7:$V$399=\"30% SMI\"))","v":0},{"$f":"SUMPRODUCT(('2. Assisted & Restricted Units'!$E$7:$E$399=\"1\")*('2. Assisted & Restricted Units'!$U$7:$U$399=\"Market Rate\")*('2. Assisted & Restricted Units'!$V$7:$V$399=\"30% SMI\"))","v":0},{"$f":"SUMPRODUCT(('2. Assisted & Restricted Units'!$E$7:$E$399=\"1\")*('2. Assisted & Restricted Units'!$U$7:$U$399=\"MHP\")*('2. Assisted & Restricted Units'!$V$7:$V$399=\"30% SMI\"))","v":0},{"$f":"SUMPRODUCT(('2. Assisted & Restricted Units'!$E$7:$E$399=\"1\")*('2. Assisted & Restricted Units'!$U$7:$U$399=\"NonAssisted\")*('2. Assisted & Restricted Units'!$V$7:$V$399=\"30% SMI\"))","v":0},{"$f":"SUMPRODUCT(('2. Assisted & Restricted Units'!$E$7:$E$399=\"1\")*('2. Assisted & Restricted Units'!$U$7:$U$399=\"Other Restr\")*('2. Assisted & Restricted Units'!$V$7:$V$399=\"30% SMI\"))","v":0},{"$f":"SUMPRODUCT(('2. Assisted & Restricted Units'!$E$7:$E$399=\"1\")*('2. Assisted & Restricted Units'!$U$7:$U$399=\"RHCP-B\")*('2. Assisted & Restricted Units'!$V$7:$V$399=\"30% SMI\"))","v":0},{"$f":"SUMPRODUCT(('2. Assisted & Restricted Units'!$E$7:$E$399=\"1\")*('2. Assisted & Restricted Units'!$U$7:$U$399=\"SERA\")*('2. Assisted & Restricted Units'!$V$7:$V$399=\"30% SMI\"))","v":0},{"$f":"SUMPRODUCT(('2. Assisted & Restricted Units'!$E$7:$E$399=\"1\")*('2. Assisted & Restricted Units'!$U$7:$U$399=\"SUHRP\")*('2. Assisted & Restricted Units'!$V$7:$V$399=\"30% SMI\"))","v":0},{"$f":"SUMPRODUCT(('2. Assisted & Restricted Units'!$E$7:$E$399=\"1\")*('2. Assisted & Restricted Units'!$U$7:$U$399=\"TOD\")*('2. Assisted & Restricted Units'!$V$7:$V$399=\"30% SMI\"))","v":0},{"$f":"SUMPRODUCT(('2. Assisted & Restricted Units'!$E$7:$E$399=\"1\")*('2. Assisted & Restricted Units'!$U$7:$U$399=\"707-E\")*('2. Assisted & Restricted Units'!$V$7:$V$399=\"30% SMI\"))","v":0},{"$f":"SUMPRODUCT(('2. Assisted & Restricted Units'!$E$7:$E$399=\"1\")*('2. Assisted & Restricted Units'!$U$7:$U$399=\"707-N\")*('2. Assisted & Restricted Units'!$V$7:$V$399=\"30% SMI\"))","v":0}]
["1 Bedroom 35% SMI",{"$f":"SUMPRODUCT(('2. Assisted & Restricted Units'!$E$7:$E$399=\"1\")*('2. Assisted & Restricted Units'!$U$7:$U$399=\"CALDAP\")*('2. Assisted & Restricted Units'!$V$7:$V$399=\"35% SMI\"))","v":0},{"$f":"SUMPRODUCT(('2. Assisted & Restricted Units'!$E$7:$E$399=\"1\")*('2. Assisted & Restricted Units'!$U$7:$U$399=\"CHRP-R\")*('2. Assisted & Restricted Units'!$V$7:$V$399=\"35% SMI\"))","v":0},{"$f":"SUMPRODUCT(('2. Assisted & Restricted Units'!$E$7:$E$399=\"1\")*('2. Assisted & Restricted Units'!$U$7:$U$399=\"DDS\")*('2. Assisted & Restricted Units'!$V$7:$V$399=\"35% SMI\"))","v":0},{"$f":"SUMPRODUCT(('2. Assisted & Restricted Units'!$E$7:$E$399=\"1\")*('2. Assisted & Restricted Units'!$U$7:$U$399=\"DPRLP\")*('2. Assisted & Restricted Units'!$V$7:$V$399=\"35% SMI\"))","v":0},{"$f":"SUMPRODUCT(('2. Assisted & Restricted Units'!$E$7:$E$399=\"1\")*('2. Assisted & Restricted Units'!$U$7:$U$399=\"FHDP\")*('2. Assisted & Restricted Units'!$V$7:$V$399=\"35% SMI\"))","v":0},{"$f":"SUMPRODUCT(('2. Assisted & Restricted Units'!$E$7:$E$399=\"1\")*('2. Assisted & Restricted Units'!$U$7:$U$399=\"FMTW\")*('2. Assisted & Restricted Units'!$V$7:$V$399=\"35% SMI\"))","v":0},null,{"$f":"SUMPRODUCT(('2. Assisted & Restricted Units'!$E$7:$E$399=\"1\")*('2. Assisted & Restricted Units'!$U$7:$U$399=\"HOME\")*('2. Assisted & Restricted Units'!$V$7:$V$399=\"35% SMI\"))","v":0},{"$f":"SUMPRODUCT(('2. Assisted & Restricted Units'!$E$7:$E$399=\"1\")*('2. Assisted & Restricted Units'!$U$7:$U$399=\"Market Rate\")*('2. Assisted & Restricted Units'!$V$7:$V$399=\"35% SMI\"))","v":0},{"$f":"SUMPRODUCT(('2. Assisted & Restricted Units'!$E$7:$E$399=\"1\")*('2. Assisted & Restricted Units'!$U$7:$U$399=\"MHP\")*('2. Assisted & Restricted Units'!$V$7:$V$399=\"35% SMI\"))","v":0},{"$f":"SUMPRODUCT(('2. Assisted & Restricted Units'!$E$7:$E$399=\"1\")*('2. Assisted & Restricted Units'!$U$7:$U$399=\"NonAssisted\")*('2. Assisted & Restricted Units'!$V$7:$V$399=\"35% SMI\"))","v":0},{"$f":"SUMPRODUCT(('2. Assisted & Restricted Units'!$E$7:$E$399=\"1\")*('2. Assisted & Restricted Units'!$U$7:$U$399=\"Other Restr\")*('2. Assisted & Restricted Units'!$V$7:$V$399=\"35% SMI\"))","v":0},{"$f":"SUMPRODUCT(('2. Assisted & Restricted Units'!$E$7:$E$399=\"1\")*('2. Assisted & Restricted Units'!$U$7:$U$399=\"RHCP-B\")*('2. Assisted & Restricted Units'!$V$7:$V$399=\"35% SMI\"))","v":0},{"$f":"SUMPRODUCT(('2. Assisted & Restricted Units'!$E$7:$E$399=\"1\")*('2. Assisted & Restricted Units'!$U$7:$U$399=\"SERA\")*('2. Assisted & Restricted Units'!$V$7:$V$399=\"35% SMI\"))","v":0},{"$f":"SUMPRODUCT(('2. Assisted & Restricted Units'!$E$7:$E$399=\"1\")*('2. Assisted & Restricted Units'!$U$7:$U$399=\"SUHRP\")*('2. Assisted & Restricted Units'!$V$7:$V$399=\"35% SMI\"))","v":0},{"$f":"SUMPRODUCT(('2. Assisted & Restricted Units'!$E$7:$E$399=\"1\")*('2. Assisted & Restricted Units'!$U$7:$U$399=\"TOD\")*('2. Assisted & Restricted Units'!$V$7:$V$399=\"35% SMI\"))","v":0},{"$f":"SUMPRODUCT(('2. Assisted & Restricted Units'!$E$7:$E$399=\"1\")*('2. Assisted & Restricted Units'!$U$7:$U$399=\"707-E\")*('2. Assisted & Restricted Units'!$V$7:$V$399=\"35% SMI\"))","v":0},{"$f":"SUMPRODUCT(('2. Assisted & Restricted Units'!$E$7:$E$399=\"1\")*('2. Assisted & Restricted Units'!$U$7:$U$399=\"707-N\")*('2. Assisted & Restricted Units'!$V$7:$V$399=\"35% SMI\"))","v":0}]
["1 Bedroom 40% SMI",{"$f":"SUMPRODUCT(('2. Assisted & Restricted Units'!$E$7:$E$399=\"1\")*('2. Assisted & Restricted Units'!$U$7:$U$399=\"CALDAP\")*('2. Assisted & Restricted Units'!$V$7:$V$399=\"40% SMI\"))","v":0},{"$f":"SUMPRODUCT(('2. Assisted & Restricted Units'!$E$7:$E$399=\"1\")*('2. Assisted & Restricted Units'!$U$7:$U$399=\"CHRP-R\")*('2. Assisted & Restricted Units'!$V$7:$V$399=\"40% SMI\"))","v":0},{"$f":"SUMPRODUCT(('2. Assisted & Restricted Units'!$E$7:$E$399=\"1\")*('2. Assisted & Restricted Units'!$U$7:$U$399=\"DDS\")*('2. Assisted & Restricted Units'!$V$7:$V$399=\"40% SMI\"))","v":0},{"$f":"SUMPRODUCT(('2. Assisted & Restricted Units'!$E$7:$E$399=\"1\")*('2. Assisted & Restricted Units'!$U$7:$U$399=\"DPRLP\")*('2. Assisted & Restricted Units'!$V$7:$V$399=\"40% SMI\"))","v":0},{"$f":"SUMPRODUCT(('2. Assisted & Restricted Units'!$E$7:$E$399=\"1\")*('2. Assisted & Restricted Units'!$U$7:$U$399=\"FHDP\")*('2. Assisted & Restricted Units'!$V$7:$V$399=\"40% SMI\"))","v":0},{"$f":"SUMPRODUCT(('2. Assisted & Restricted Units'!$E$7:$E$399=\"1\")*('2. Assisted & Restricted Units'!$U$7:$U$399=\"FMTW\")*('2. Assisted & Restricted Units'!$V$7:$V$399=\"40% SMI\"))","v":0},null,{"$f":"SUMPRODUCT(('2. Assisted & Restricted Units'!$E$7:$E$399=\"1\")*('2. Assisted & Restricted Units'!$U$7:$U$399=\"HOME\")*('2. Assisted & Restricted Units'!$V$7:$V$399=\"40% SMI\"))","v":0},{"$f":"SUMPRODUCT(('2. Assisted & Restricted Units'!$E$7:$E$399=\"1\")*('2. Assisted & Restricted Units'!$U$7:$U$399=\"Market Rate\")*('2. Assisted & Restricted Units'!$V$7:$V$399=\"40% SMI\"))","v":0},{"$f":"SUMPRODUCT(('2. Assisted & Restricted Units'!$E$7:$E$399=\"1\")*('2. Assisted & Restricted Units'!$U$7:$U$399=\"MHP\")*('2. Assisted & Restricted Units'!$V$7:$V$399=\"40% SMI\"))","v":0},{"$f":"SUMPRODUCT(('2. Assisted & Restricted Units'!$E$7:$E$399=\"1\")*('2. Assisted & Restricted Units'!$U$7:$U$399=\"NonAssisted\")*('2. Assisted & Restricted Units'!$V$7:$V$399=\"40% SMI\"))","v":0},{"$f":"SUMPRODUCT(('2. Assisted & Restricted Units'!$E$7:$E$399=\"1\")*('2. Assisted & Restricted Units'!$U$7:$U$399=\"Other Restr\")*('2. Assisted & Restricted Units'!$V$7:$V$399=\"40% SMI\"))","v":0},{"$f":"SUMPRODUCT(('2. Assisted & Restricted Units'!$E$7:$E$399=\"1\")*('2. Assisted & Restricted Units'!$U$7:$U$399=\"RHCP-B\")*('2. Assisted & Restricted Units'!$V$7:$V$399=\"40% SMI\"))","v":0},{"$f":"SUMPRODUCT(('2. Assisted & Restricted Units'!$E$7:$E$399=\"1\")*('2. Assisted & Restricted Units'!$U$7:$U$399=\"SERA\")*('2. Assisted & Restricted Units'!$V$7:$V$399=\"40% SMI\"))","v":0},{"$f":"SUMPRODUCT(('2. Assisted & Restricted Units'!$E$7:$E$399=\"1\")*('2. Assisted & Restricted Units'!$U$7:$U$399=\"SUHRP\")*('2. Assisted & Restricted Units'!$V$7:$V$399=\"40% SMI\"))","v":0},{"$f":"SUMPRODUCT(('2. Assisted & Restricted Units'!$E$7:$E$399=\"1\")*('2. Assisted & Restricted Units'!$U$7:$U$399=\"TOD\")*('2. Assisted & Restricted Units'!$V$7:$V$399=\"40% SMI\"))","v":0},{"$f":"SUMPRODUCT(('2. Assisted & Restricted Units'!$E$7:$E$399=\"1\")*('2. Assisted & Restricted Units'!$U$7:$U$399=\"707-E\")*('2. Assisted & Restricted Units'!$V$7:$V$399=\"40% SMI\"))","v":0},{"$f":"SUMPRODUCT(('2. Assisted & Restricted Units'!$E$7:$E$399=\"1\")*('2. Assisted & Restricted Units'!$U$7:$U$399=\"707-N\")*('2. Assisted & Restricted Units'!$V$7:$V$399=\"40% SMI\"))","v":0}]
["1 Bedroom 45% SMI",{"$f":"SUMPRODUCT(('2. Assisted & Restricted Units'!$E$7:$E$399=\"1\")*('2. Assisted & Restricted Units'!$U$7:$U$399=\"CALDAP\")*('2. Assisted & Restricted Units'!$V$7:$V$399=\"45% SMI\"))","v":0},{"$f":"SUMPRODUCT(('2. Assisted & Restricted Units'!$E$7:$E$399=\"1\")*('2. Assisted & Restricted Units'!$U$7:$U$399=\"CHRP-R\")*('2. Assisted & Restricted Units'!$V$7:$V$399=\"45% SMI\"))","v":0},{"$f":"SUMPRODUCT(('2. Assisted & Restricted Units'!$E$7:$E$399=\"1\")*('2. Assisted & Restricted Units'!$U$7:$U$399=\"DDS\")*('2. Assisted & Restricted Units'!$V$7:$V$399=\"45% SMI\"))","v":0},{"$f":"SUMPRODUCT(('2. Assisted & Restricted Units'!$E$7:$E$399=\"1\")*('2. Assisted & Restricted Units'!$U$7:$U$399=\"DPRLP\")*('2. Assisted & Restricted Units'!$V$7:$V$399=\"45% SMI\"))","v":0},{"$f":"SUMPRODUCT(('2. Assisted & Restricted Units'!$E$7:$E$399=\"1\")*('2. Assisted & Restricted Units'!$U$7:$U$399=\"FHDP\")*('2. Assisted & Restricted Units'!$V$7:$V$399=\"45% SMI\"))","v":0},{"$f":"SUMPRODUCT(('2. Assisted & Restricted Units'!$E$7:$E$399=\"1\")*('2. Assisted & Restricted Units'!$U$7:$U$399=\"FMTW\")*('2. Assisted & Restricted Units'!$V$7:$V$399=\"45% SMI\"))","v":0},null,{"$f":"SUMPRODUCT(('2. Assisted & Restricted Units'!$E$7:$E$399=\"1\")*('2. Assisted & Restricted Units'!$U$7:$U$399=\"HOME\")*('2. Assisted & Restricted Units'!$V$7:$V$399=\"45% SMI\"))","v":0},{"$f":"SUMPRODUCT(('2. Assisted & Restricted Units'!$E$7:$E$399=\"1\")*('2. Assisted & Restricted Units'!$U$7:$U$399=\"Market Rate\")*('2. Assisted & Restricted Units'!$V$7:$V$399=\"45% SMI\"))","v":0},{"$f":"SUMPRODUCT(('2. Assisted & Restricted Units'!$E$7:$E$399=\"1\")*('2. Assisted & Restricted Units'!$U$7:$U$399=\"MHP\")*('2. Assisted & Restricted Units'!$V$7:$V$399=\"45% SMI\"))","v":0},{"$f":"SUMPRODUCT(('2. Assisted & Restricted Units'!$E$7:$E$399=\"1\")*('2. Assisted & Restricted Units'!$U$7:$U$399=\"NonAssisted\")*('2. Assisted & Restricted Units'!$V$7:$V$399=\"45% SMI\"))","v":0},{"$f":"SUMPRODUCT(('2. Assisted & Restricted Units'!$E$7:$E$399=\"1\")*('2. Assisted & Restricted Units'!$U$7:$U$399=\"Other Restr\")*('2. Assisted & Restricted Units'!$V$7:$V$399=\"45% SMI\"))","v":0},{"$f":"SUMPRODUCT(('2. Assisted & Restricted Units'!$E$7:$E$399=\"1\")*('2. Assisted & Restricted Units'!$U$7:$U$399=\"RHCP-B\")*('2. Assisted & Restricted Units'!$V$7:$V$399=\"45% SMI\"))","v":0},{"$f":"SUMPRODUCT(('2. Assisted & Restricted Units'!$E$7:$E$399=\"1\")*('2. Assisted & Restricted Units'!$U$7:$U$399=\"SERA\")*('2. Assisted & Restricted Units'!$V$7:$V$399=\"45% SMI\"))","v":0},{"$f":"SUMPRODUCT(('2. Assisted & Restricted Units'!$E$7:$E$399=\"1\")*('2. Assisted & Restricted Units'!$U$7:$U$399=\"SUHRP\")*('2. Assisted & Restricted Units'!$V$7:$V$399=\"45% SMI\"))","v":0},{"$f":"SUMPRODUCT(('2. Assisted & Restricted Units'!$E$7:$E$399=\"1\")*('2. Assisted & Restricted Units'!$U$7:$U$399=\"TOD\")*('2. Assisted & Restricted Units'!$V$7:$V$399=\"45% SMI\"))","v":0},{"$f":"SUMPRODUCT(('2. Assisted & Restricted Units'!$E$7:$E$399=\"1\")*('2. Assisted & Restricted Units'!$U$7:$U$399=\"707-E\")*('2. Assisted & Restricted Units'!$V$7:$V$399=\"45% SMI\"))","v":0},{"$f":"SUMPRODUCT(('2. Assisted & Restricted Units'!$E$7:$E$399=\"1\")*('2. Assisted & Restricted Units'!$U$7:$U$399=\"707-N\")*('2. Assisted & Restricted Units'!$V$7:$V$399=\"45% SMI\"))","v":0}]
["1 Bedroom 50% SMI",{"$f":"SUMPRODUCT(('2. Assisted & Restricted Units'!$E$7:$E$399=\"1\")*('2. Assisted & Restricted Units'!$U$7:$U$399=\"CALDAP\")*('2. Assisted & Restricted Units'!$V$7:$V$399=\"50% SMI\"))","v":0},{"$f":"SUMPRODUCT(('2. Assisted & Restricted Units'!$E$7:$E$399=\"1\")*('2. Assisted & Restricted Units'!$U$7:$U$399=\"CHRP-R\")*('2. Assisted & Restricted Units'!$V$7:$V$399=\"50% SMI\"))","v":0},{"$f":"SUMPRODUCT(('2. Assisted & Restricted Units'!$E$7:$E$399=\"1\")*('2. Assisted & Restricted Units'!$U$7:$U$399=\"DDS\")*('2. Assisted & Restricted Units'!$V$7:$V$399=\"50% SMI\"))","v":0},{"$f":"SUMPRODUCT(('2. Assisted & Restricted Units'!$E$7:$E$399=\"1\")*('2. Assisted & Restricted Units'!$U$7:$U$399=\"DPRLP\")*('2. Assisted & Restricted Units'!$V$7:$V$399=\"50% SMI\"))","v":0},{"$f":"SUMPRODUCT(('2. Assisted & Restricted Units'!$E$7:$E$399=\"1\")*('2. Assisted & Restricted Units'!$U$7:$U$399=\"FHDP\")*('2. Assisted & Restricted Units'!$V$7:$V$399=\"50% SMI\"))","v":0},{"$f":"SUMPRODUCT(('2. Assisted & Restricted Units'!$E$7:$E$399=\"1\")*('2. Assisted & Restricted Units'!$U$7:$U$399=\"FMTW\")*('2. Assisted & Restricted Units'!$V$7:$V$399=\"50% SMI\"))","v":0},null,{"$f":"SUMPRODUCT(('2. Assisted & Restricted Units'!$E$7:$E$399=\"1\")*('2. Assisted & Restricted Units'!$U$7:$U$399=\"HOME\")*('2. Assisted & Restricted Units'!$V$7:$V$399=\"50% SMI\"))","v":0},{"$f":"SUMPRODUCT(('2. Assisted & Restricted Units'!$E$7:$E$399=\"1\")*('2. Assisted & Restricted Units'!$U$7:$U$399=\"Market Rate\")*('2. Assisted & Restricted Units'!$V$7:$V$399=\"50% SMI\"))","v":0},{"$f":"SUMPRODUCT(('2. Assisted & Restricted Units'!$E$7:$E$399=\"1\")*('2. Assisted & Restricted Units'!$U$7:$U$399=\"MHP\")*('2. Assisted & Restricted Units'!$V$7:$V$399=\"50% SMI\"))","v":0},{"$f":"SUMPRODUCT(('2. Assisted & Restricted Units'!$E$7:$E$399=\"1\")*('2. Assisted & Restricted Units'!$U$7:$U$399=\"NonAssisted\")*('2. Assisted & Restricted Units'!$V$7:$V$399=\"50% SMI\"))","v":0},{"$f":"SUMPRODUCT(('2. Assisted & Restricted Units'!$E$7:$E$399=\"1\")*('2. Assisted & Restricted Units'!$U$7:$U$399=\"Other Restr\")*('2. Assisted & Restricted Units'!$V$7:$V$399=\"50% SMI\"))","v":0},{"$f":"SUMPRODUCT(('2. Assisted & Restricted Units'!$E$7:$E$399=\"1\")*('2. Assisted & Restricted Units'!$U$7:$U$399=\"RHCP-B\")*('2. Assisted & Restricted Units'!$V$7:$V$399=\"50% SMI\"))","v":0},{"$f":"SUMPRODUCT(('2. Assisted & Restricted Units'!$E$7:$E$399=\"1\")*('2. Assisted & Restricted Units'!$U$7:$U$399=\"SERA\")*('2. Assisted & Restricted Units'!$V$7:$V$399=\"50% SMI\"))","v":0},{"$f":"SUMPRODUCT(('2. Assisted & Restricted Units'!$E$7:$E$399=\"1\")*('2. Assisted & Restricted Units'!$U$7:$U$399=\"SUHRP\")*('2. Assisted & Restricted Units'!$V$7:$V$399=\"50% SMI\"))","v":0},{"$f":"SUMPRODUCT(('2. Assisted & Restricted Units'!$E$7:$E$399=\"1\")*('2. Assisted & Restricted Units'!$U$7:$U$399=\"TOD\")*('2. Assisted & Restricted Units'!$V$7:$V$399=\"50% SMI\"))","v":0},{"$f":"SUMPRODUCT(('2. Assisted & Restricted Units'!$E$7:$E$399=\"1\")*('2. Assisted & Restricted Units'!$U$7:$U$399=\"707-E\")*('2. Assisted & Restricted Units'!$V$7:$V$399=\"50% SMI\"))","v":0},{"$f":"SUMPRODUCT(('2. Assisted & Restricted Units'!$E$7:$E$399=\"1\")*('2. Assisted & Restricted Units'!$U$7:$U$399=\"707-N\")*('2. Assisted & Restricted Units'!$V$7:$V$399=\"50% SMI\"))","v":0}]
["1 Bedroom 100% SMI",{"$f":"SUMPRODUCT(('2. Assisted & Restricted Units'!$E$7:$E$399=\"1\")*('2. Assisted & Restricted Units'!$U$7:$U$399=\"CALDAP\")*('2. Assisted & Restricted Units'!$V$7:$V$399=\"100% SMI\"))","v":0},{"$f":"SUMPRODUCT(('2. Assisted & Restricted Units'!$E$7:$E$399=\"1\")*('2. Assisted & Restricted Units'!$U$7:$U$399=\"CHRP-R\")*('2. Assisted & Restricted Units'!$V$7:$V$399=\"100% SMI\"))","v":0},{"$f":"SUMPRODUCT(('2. Assisted & Restricted Units'!$E$7:$E$399=\"1\")*('2. Assisted & Restricted Units'!$U$7:$U$399=\"DDS\")*('2. Assisted & Restricted Units'!$V$7:$V$399=\"100% SMI\"))","v":0},{"$f":"SUMPRODUCT(('2. Assisted & Restricted Units'!$E$7:$E$399=\"1\")*('2. Assisted & Restricted Units'!$U$7:$U$399=\"DPRLP\")*('2. Assisted & Restricted Units'!$V$7:$V$399=\"100% SMI\"))","v":0},{"$f":"SUMPRODUCT(('2. Assisted & Restricted Units'!$E$7:$E$399=\"1\")*('2. Assisted & Restricted Units'!$U$7:$U$399=\"FHDP\")*('2. Assisted & Restricted Units'!$V$7:$V$399=\"100% SMI\"))","v":0},{"$f":"SUMPRODUCT(('2. Assisted & Restricted Units'!$E$7:$E$399=\"1\")*('2. Assisted & Restricted Units'!$U$7:$U$399=\"FMTW\")*('2. Assisted & Restricted Units'!$V$7:$V$399=\"100% SMI\"))","v":0},null,{"$f":"SUMPRODUCT(('2. Assisted & Restricted Units'!$E$7:$E$399=\"1\")*('2. Assisted & Restricted Units'!$U$7:$U$399=\"HOME\")*('2. Assisted & Restricted Units'!$V$7:$V$399=\"100% SMI\"))","v":0},{"$f":"SUMPRODUCT(('2. Assisted & Restricted Units'!$E$7:$E$399=\"1\")*('2. Assisted & Restricted Units'!$U$7:$U$399=\"Market Rate\")*('2. Assisted & Restricted Units'!$V$7:$V$399=\"100% SMI\"))","v":0},{"$f":"SUMPRODUCT(('2. Assisted & Restricted Units'!$E$7:$E$399=\"1\")*('2. Assisted & Restricted Units'!$U$7:$U$399=\"MHP\")*('2. Assisted & Restricted Units'!$V$7:$V$399=\"100% SMI\"))","v":0},{"$f":"SUMPRODUCT(('2. Assisted & Restricted Units'!$E$7:$E$399=\"1\")*('2. Assisted & Restricted Units'!$U$7:$U$399=\"NonAssisted\")*('2. Assisted & Restricted Units'!$V$7:$V$399=\"100% SMI\"))","v":0},{"$f":"SUMPRODUCT(('2. Assisted & Restricted Units'!$E$7:$E$399=\"1\")*('2. Assisted & Restricted Units'!$U$7:$U$399=\"Other Restr\")*('2. Assisted & Restricted Units'!$V$7:$V$399=\"100% SMI\"))","v":0},{"$f":"SUMPRODUCT(('2. Assisted & Restricted Units'!$E$7:$E$399=\"1\")*('2. Assisted & Restricted Units'!$U$7:$U$399=\"RHCP-B\")*('2. Assisted & Restricted Units'!$V$7:$V$399=\"100% SMI\"))","v":0},{"$f":"SUMPRODUCT(('2. Assisted & Restricted Units'!$E$7:$E$399=\"1\")*('2. Assisted & Restricted Units'!$U$7:$U$399=\"SERA\")*('2. Assisted & Restricted Units'!$V$7:$V$399=\"100% SMI\"))","v":0},{"$f":"SUMPRODUCT(('2. Assisted & Restricted Units'!$E$7:$E$399=\"1\")*('2. Assisted & Restricted Units'!$U$7:$U$399=\"SUHRP\")*('2. Assisted & Restricted Units'!$V$7:$V$399=\"100% SMI\"))","v":0},{"$f":"SUMPRODUCT(('2. Assisted & Restricted Units'!$E$7:$E$399=\"1\")*('2. Assisted & Restricted Units'!$U$7:$U$399=\"TOD\")*('2. Assisted & Restricted Units'!$V$7:$V$399=\"100% SMI\"))","v":0},{"$f":"SUMPRODUCT(('2. Assisted & Restricted Units'!$E$7:$E$399=\"1\")*('2. Assisted & Restricted Units'!$U$7:$U$399=\"707-E\")*('2. Assisted & Restricted Units'!$V$7:$V$399=\"100% SMI\"))","v":0},{"$f":"SUMPRODUCT(('2. Assisted & Restricted Units'!$E$7:$E$399=\"1\")*('2. Assisted & Restricted Units'!$U$7:$U$399=\"707-N\")*('2. Assisted & Restricted Units'!$V$7:$V$399=\"100% SMI\"))","v":0}]
["1 Bedroom VLI HOME",{"$f":"SUMPRODUCT(('2. Assisted & Restricted Units'!$E$7:$E$399=\"1\")*('2. Assisted & Restricted Units'!$U$7:$U$399=\"CALDAP\")*('2. Assisted & Restricted Units'!$V$7:$V$399=\"VLI HOME\"))","v":0},{"$f":"SUMPRODUCT(('2. Assisted & Restricted Units'!$E$7:$E$399=\"1\")*('2. Assisted & Restricted Units'!$U$7:$U$399=\"CHRP-R\")*('2. Assisted & Restricted Units'!$V$7:$V$399=\"VLI HOME\"))","v":0},{"$f":"SUMPRODUCT(('2. Assisted & Restricted Units'!$E$7:$E$399=\"1\")*('2. Assisted & Restricted Units'!$U$7:$U$399=\"DDS\")*('2. Assisted & Restricted Units'!$V$7:$V$399=\"VLI HOME\"))","v":0},{"$f":"SUMPRODUCT(('2. Assisted & Restricted Units'!$E$7:$E$399=\"1\")*('2. Assisted & Restricted Units'!$U$7:$U$399=\"DPRLP\")*('2. Assisted & Restricted Units'!$V$7:$V$399=\"VLI HOME\"))","v":0},{"$f":"SUMPRODUCT(('2. Assisted & Restricted Units'!$E$7:$E$399=\"1\")*('2. Assisted & Restricted Units'!$U$7:$U$399=\"FHDP\")*('2. Assisted & Restricted Units'!$V$7:$V$399=\"VLI HOME\"))","v":0},{"$f":"SUMPRODUCT(('2. Assisted & Restricted Units'!$E$7:$E$399=\"1\")*('2. Assisted & Restricted Units'!$U$7:$U$399=\"FMTW\")*('2. Assisted & Restricted Units'!$V$7:$V$399=\"VLI HOME\"))","v":0},null,{"$f":"SUMPRODUCT(('2. Assisted & Restricted Units'!$E$7:$E$399=\"1\")*('2. Assisted & Restricted Units'!$U$7:$U$399=\"HOME\")*('2. Assisted & Restricted Units'!$V$7:$V$399=\"VLI HOME\"))","v":0},{"$f":"SUMPRODUCT(('2. Assisted & Restricted Units'!$E$7:$E$399=\"1\")*('2. Assisted & Restricted Units'!$U$7:$U$399=\"Market Rate\")*('2. Assisted & Restricted Units'!$V$7:$V$399=\"VLI HOME\"))","v":0},{"$f":"SUMPRODUCT(('2. Assisted & Restricted Units'!$E$7:$E$399=\"1\")*('2. Assisted & Restricted Units'!$U$7:$U$399=\"MHP\")*('2. Assisted & Restricted Units'!$V$7:$V$399=\"VLI HOME\"))","v":0},{"$f":"SUMPRODUCT(('2. Assisted & Restricted Units'!$E$7:$E$399=\"1\")*('2. Assisted & Restricted Units'!$U$7:$U$399=\"NonAssisted\")*('2. Assisted & Restricted Units'!$V$7:$V$399=\"VLI HOME\"))","v":0},{"$f":"SUMPRODUCT(('2. Assisted & Restricted Units'!$E$7:$E$399=\"1\")*('2. Assisted & Restricted Units'!$U$7:$U$399=\"Other Restr\")*('2. Assisted & Restricted Units'!$V$7:$V$399=\"VLI HOME\"))","v":0},{"$f":"SUMPRODUCT(('2. Assisted & Restricted Units'!$E$7:$E$399=\"1\")*('2. Assisted & Restricted Units'!$U$7:$U$399=\"RHCP-B\")*('2. Assisted & Restricted Units'!$V$7:$V$399=\"VLI HOME\"))","v":0},{"$f":"SUMPRODUCT(('2. Assisted & Restricted Units'!$E$7:$E$399=\"1\")*('2. Assisted & Restricted Units'!$U$7:$U$399=\"SERA\")*('2. Assisted & Restricted Units'!$V$7:$V$399=\"VLI HOME\"))","v":0},{"$f":"SUMPRODUCT(('2. Assisted & Restricted Units'!$E$7:$E$399=\"1\")*('2. Assisted & Restricted Units'!$U$7:$U$399=\"SUHRP\")*('2. Assisted & Restricted Units'!$V$7:$V$399=\"VLI HOME\"))","v":0},{"$f":"SUMPRODUCT(('2. Assisted & Restricted Units'!$E$7:$E$399=\"1\")*('2. Assisted & Restricted Units'!$U$7:$U$399=\"TOD\")*('2. Assisted & Restricted Units'!$V$7:$V$399=\"VLI HOME\"))","v":0},{"$f":"SUMPRODUCT(('2. Assisted & Restricted Units'!$E$7:$E$399=\"1\")*('2. Assisted & Restricted Units'!$U$7:$U$399=\"707-E\")*('2. Assisted & Restricted Units'!$V$7:$V$399=\"VLI HOME\"))","v":0},{"$f":"SUMPRODUCT(('2. Assisted & Restricted Units'!$E$7:$E$399=\"1\")*('2. Assisted & Restricted Units'!$U$7:$U$399=\"707-N\")*('2. Assisted & Restricted Units'!$V$7:$V$399=\"VLI HOME\"))","v":0}]
["1 Bedroom LI HOME",{"$f":"SUMPRODUCT(('2. Assisted & Restricted Units'!$E$7:$E$399=\"1\")*('2. Assisted & Restricted Units'!$U$7:$U$399=\"CALDAP\")*('2. Assisted & Restricted Units'!$V$7:$V$399=\"LI HOME\"))","v":0},{"$f":"SUMPRODUCT(('2. Assisted & Restricted Units'!$E$7:$E$399=\"1\")*('2. Assisted & Restricted Units'!$U$7:$U$399=\"CHRP-R\")*('2. Assisted & Restricted Units'!$V$7:$V$399=\"LI HOME\"))","v":0},{"$f":"SUMPRODUCT(('2. Assisted & Restricted Units'!$E$7:$E$399=\"1\")*('2. Assisted & Restricted Units'!$U$7:$U$399=\"DDS\")*('2. Assisted & Restricted Units'!$V$7:$V$399=\"LI HOME\"))","v":0},{"$f":"SUMPRODUCT(('2. Assisted & Restricted Units'!$E$7:$E$399=\"1\")*('2. Assisted & Restricted Units'!$U$7:$U$399=\"DPRLP\")*('2. Assisted & Restricted Units'!$V$7:$V$399=\"LI HOME\"))","v":0},{"$f":"SUMPRODUCT(('2. Assisted & Restricted Units'!$E$7:$E$399=\"1\")*('2. Assisted & Restricted Units'!$U$7:$U$399=\"FHDP\")*('2. Assisted & Restricted Units'!$V$7:$V$399=\"LI HOME\"))","v":0},{"$f":"SUMPRODUCT(('2. Assisted & Restricted Units'!$E$7:$E$399=\"1\")*('2. Assisted & Restricted Units'!$U$7:$U$399=\"FMTW\")*('2. Assisted & Restricted Units'!$V$7:$V$399=\"LI HOME\"))","v":0},null,{"$f":"SUMPRODUCT(('2. Assisted & Restricted Units'!$E$7:$E$399=\"1\")*('2. Assisted & Restricted Units'!$U$7:$U$399=\"HOME\")*('2. Assisted & Restricted Units'!$V$7:$V$399=\"LI HOME\"))","v":0},{"$f":"SUMPRODUCT(('2. Assisted & Restricted Units'!$E$7:$E$399=\"1\")*('2. Assisted & Restricted Units'!$U$7:$U$399=\"Market Rate\")*('2. Assisted & Restricted Units'!$V$7:$V$399=\"LI HOME\"))","v":0},{"$f":"SUMPRODUCT(('2. Assisted & Restricted Units'!$E$7:$E$399=\"1\")*('2. Assisted & Restricted Units'!$U$7:$U$399=\"MHP\")*('2. Assisted & Restricted Units'!$V$7:$V$399=\"LI HOME\"))","v":0},{"$f":"SUMPRODUCT(('2. Assisted & Restricted Units'!$E$7:$E$399=\"1\")*('2. Assisted & Restricted Units'!$U$7:$U$399=\"NonAssisted\")*('2. Assisted & Restricted Units'!$V$7:$V$399=\"LI HOME\"))","v":0},{"$f":"SUMPRODUCT(('2. Assisted & Restricted Units'!$E$7:$E$399=\"1\")*('2. Assisted & Restricted Units'!$U$7:$U$399=\"Other Restr\")*('2. Assisted & Restricted Units'!$V$7:$V$399=\"LI HOME\"))","v":0},{"$f":"SUMPRODUCT(('2. Assisted & Restricted Units'!$E$7:$E$399=\"1\")*('2. Assisted & Restricted Units'!$U$7:$U$399=\"RHCP-B\")*('2. Assisted & Restricted Units'!$V$7:$V$399=\"LI HOME\"))","v":0},{"$f":"SUMPRODUCT(('2. Assisted & Restricted Units'!$E$7:$E$399=\"1\")*('2. Assisted & Restricted Units'!$U$7:$U$399=\"SERA\")*('2. Assisted & Restricted Units'!$V$7:$V$399=\"LI HOME\"))","v":0},{"$f":"SUMPRODUCT(('2. Assisted & Restricted Units'!$E$7:$E$399=\"1\")*('2. Assisted & Restricted Units'!$U$7:$U$399=\"SUHRP\")*('2. Assisted & Restricted Units'!$V$7:$V$399=\"LI HOME\"))","v":0},{"$f":"SUMPRODUCT(('2. Assisted & Restricted Units'!$E$7:$E$399=\"1\")*('2. Assisted & Restricted Units'!$U$7:$U$399=\"TOD\")*('2. Assisted & Restricted Units'!$V$7:$V$399=\"LI HOME\"))","v":0},{"$f":"SUMPRODUCT(('2. Assisted & Restricted Units'!$E$7:$E$399=\"1\")*('2. Assisted & Restricted Units'!$U$7:$U$399=\"707-E\")*('2. Assisted & Restricted Units'!$V$7:$V$399=\"LI HOME\"))","v":0},{"$f":"SUMPRODUCT(('2. Assisted & Restricted Units'!$E$7:$E$399=\"1\")*('2. Assisted & Restricted Units'!$U$7:$U$399=\"707-N\")*('2. Assisted & Restricted Units'!$V$7:$V$399=\"LI HOME\"))","v":0}]
["1 Bedroom VLI State",{"$f":"SUMPRODUCT(('2. Assisted & Restricted Units'!$E$7:$E$399=\"1\")*('2. Assisted & Restricted Units'!$U$7:$U$399=\"CALDAP\")*('2. Assisted & Restricted Units'!$V$7:$V$399=\"VLI State\"))","v":0},{"$f":"SUMPRODUCT(('2. Assisted & Restricted Units'!$E$7:$E$399=\"1\")*('2. Assisted & Restricted Units'!$U$7:$U$399=\"CHRP-R\")*('2. Assisted & Restricted Units'!$V$7:$V$399=\"VLI State\"))","v":0},{"$f":"SUMPRODUCT(('2. Assisted & Restricted Units'!$E$7:$E$399=\"1\")*('2. Assisted & Restricted Units'!$U$7:$U$399=\"DDS\")*('2. Assisted & Restricted Units'!$V$7:$V$399=\"VLI State\"))","v":0},{"$f":"SUMPRODUCT(('2. Assisted & Restricted Units'!$E$7:$E$399=\"1\")*('2. Assisted & Restricted Units'!$U$7:$U$399=\"DPRLP\")*('2. Assisted & Restricted Units'!$V$7:$V$399=\"VLI State\"))","v":0},{"$f":"SUMPRODUCT(('2. Assisted & Restricted Units'!$E$7:$E$399=\"1\")*('2. Assisted & Restricted Units'!$U$7:$U$399=\"FHDP\")*('2. Assisted & Restricted Units'!$V$7:$V$399=\"VLI State\"))","v":0},{"$f":"SUMPRODUCT(('2. Assisted & Restricted Units'!$E$7:$E$399=\"1\")*('2. Assisted & Restricted Units'!$U$7:$U$399=\"FMTW\")*('2. Assisted & Restricted Units'!$V$7:$V$399=\"VLI State\"))","v":0},null,{"$f":"SUMPRODUCT(('2. Assisted & Restricted Units'!$E$7:$E$399=\"1\")*('2. Assisted & Restricted Units'!$U$7:$U$399=\"HOME\")*('2. Assisted & Restricted Units'!$V$7:$V$399=\"VLI State\"))","v":0},{"$f":"SUMPRODUCT(('2. Assisted & Restricted Units'!$E$7:$E$399=\"1\")*('2. Assisted & Restricted Units'!$U$7:$U$399=\"Market Rate\")*('2. Assisted & Restricted Units'!$V$7:$V$399=\"VLI State\"))","v":0},{"$f":"SUMPRODUCT(('2. Assisted & Restricted Units'!$E$7:$E$399=\"1\")*('2. Assisted & Restricted Units'!$U$7:$U$399=\"MHP\")*('2. Assisted & Restricted Units'!$V$7:$V$399=\"VLI State\"))","v":0},{"$f":"SUMPRODUCT(('2. Assisted & Restricted Units'!$E$7:$E$399=\"1\")*('2. Assisted & Restricted Units'!$U$7:$U$399=\"NonAssisted\")*('2. Assisted & Restricted Units'!$V$7:$V$399=\"VLI State\"))","v":0},{"$f":"SUMPRODUCT(('2. Assisted & Restricted Units'!$E$7:$E$399=\"1\")*('2. Assisted & Restricted Units'!$U$7:$U$399=\"Other Restr\")*('2. Assisted & Restricted Units'!$V$7:$V$399=\"VLI State\"))","v":0},{"$f":"SUMPRODUCT(('2. Assisted & Restricted Units'!$E$7:$E$399=\"1\")*('2. Assisted & Restricted Units'!$U$7:$U$399=\"RHCP-B\")*('2. Assisted & Restricted Units'!$V$7:$V$399=\"VLI State\"))","v":0},{"$f":"SUMPRODUCT(('2. Assisted & Restricted Units'!$E$7:$E$399=\"1\")*('2. Assisted & Restricted Units'!$U$7:$U$399=\"SERA\")*('2. Assisted & Restricted Units'!$V$7:$V$399=\"VLI State\"))","v":0},{"$f":"SUMPRODUCT(('2. Assisted & Restricted Units'!$E$7:$E$399=\"1\")*('2. Assisted & Restricted Units'!$U$7:$U$399=\"SUHRP\")*('2. Assisted & Restricted Units'!$V$7:$V$399=\"VLI State\"))","v":0},{"$f":"SUMPRODUCT(('2. Assisted & Restricted Units'!$E$7:$E$399=\"1\")*('2. Assisted & Restricted Units'!$U$7:$U$399=\"TOD\")*('2. Assisted & Restricted Units'!$V$7:$V$399=\"VLI State\"))","v":0},{"$f":"SUMPRODUCT(('2. Assisted & Restricted Units'!$E$7:$E$399=\"1\")*('2. Assisted & Restricted Units'!$U$7:$U$399=\"707-E\")*('2. Assisted & Restricted Units'!$V$7:$V$399=\"VLI State\"))","v":0},{"$f":"SUMPRODUCT(('2. Assisted & Restricted Units'!$E$7:$E$399=\"1\")*('2. Assisted & Restricted Units'!$U$7:$U$399=\"707-N\")*('2. Assisted & Restricted Units'!$V$7:$V$399=\"VLI State\"))","v":0}]
["1 Bedroom LI State",{"$f":"SUMPRODUCT(('2. Assisted & Restricted Units'!$E$7:$E$399=\"1\")*('2. Assisted & Restricted Units'!$U$7:$U$399=\"CALDAP\")*('2. Assisted & Restricted Units'!$V$7:$V$399=\"LI State\"))","v":0},{"$f":"SUMPRODUCT(('2. Assisted & Restricted Units'!$E$7:$E$399=\"1\")*('2. Assisted & Restricted Units'!$U$7:$U$399=\"CHRP-R\")*('2. Assisted & Restricted Units'!$V$7:$V$399=\"LI State\"))","v":0},{"$f":"SUMPRODUCT(('2. Assisted & Restricted Units'!$E$7:$E$399=\"1\")*('2. Assisted & Restricted Units'!$U$7:$U$399=\"DDS\")*('2. Assisted & Restricted Units'!$V$7:$V$399=\"LI State\"))","v":0},{"$f":"SUMPRODUCT(('2. Assisted & Restricted Units'!$E$7:$E$399=\"1\")*('2. Assisted & Restricted Units'!$U$7:$U$399=\"DPRLP\")*('2. Assisted & Restricted Units'!$V$7:$V$399=\"LI State\"))","v":0},{"$f":"SUMPRODUCT(('2. Assisted & Restricted Units'!$E$7:$E$399=\"1\")*('2. Assisted & Restricted Units'!$U$7:$U$399=\"FHDP\")*('2. Assisted & Restricted Units'!$V$7:$V$399=\"LI State\"))","v":0},{"$f":"SUMPRODUCT(('2. Assisted & Restricted Units'!$E$7:$E$399=\"1\")*('2. Assisted & Restricted Units'!$U$7:$U$399=\"FMTW\")*('2. Assisted & Restricted Units'!$V$7:$V$399=\"LI State\"))","v":0},null,{"$f":"SUMPRODUCT(('2. Assisted & Restricted Units'!$E$7:$E$399=\"1\")*('2. Assisted & Restricted Units'!$U$7:$U$399=\"HOME\")*('2. Assisted & Restricted Units'!$V$7:$V$399=\"LI State\"))","v":0},{"$f":"SUMPRODUCT(('2. Assisted & Restricted Units'!$E$7:$E$399=\"1\")*('2. Assisted & Restricted Units'!$U$7:$U$399=\"Market Rate\")*('2. Assisted & Restricted Units'!$V$7:$V$399=\"LI State\"))","v":0},{"$f":"SUMPRODUCT(('2. Assisted & Restricted Units'!$E$7:$E$399=\"1\")*('2. Assisted & Restricted Units'!$U$7:$U$399=\"MHP\")*('2. Assisted & Restricted Units'!$V$7:$V$399=\"LI State\"))","v":0},{"$f":"SUMPRODUCT(('2. Assisted & Restricted Units'!$E$7:$E$399=\"1\")*('2. Assisted & Restricted Units'!$U$7:$U$399=\"NonAssisted\")*('2. Assisted & Restricted Units'!$V$7:$V$399=\"LI State\"))","v":0},{"$f":"SUMPRODUCT(('2. Assisted & Restricted Units'!$E$7:$E$399=\"1\")*('2. Assisted & Restricted Units'!$U$7:$U$399=\"Other Restr\")*('2. Assisted & Restricted Units'!$V$7:$V$399=\"LI State\"))","v":0},{"$f":"SUMPRODUCT(('2. Assisted & Restricted Units'!$E$7:$E$399=\"1\")*('2. Assisted & Restricted Units'!$U$7:$U$399=\"RHCP-B\")*('2. Assisted & Restricted Units'!$V$7:$V$399=\"LI State\"))","v":0},{"$f":"SUMPRODUCT(('2. Assisted & Restricted Units'!$E$7:$E$399=\"1\")*('2. Assisted & Restricted Units'!$U$7:$U$399=\"SERA\")*('2. Assisted & Restricted Units'!$V$7:$V$399=\"LI State\"))","v":0},{"$f":"SUMPRODUCT(('2. Assisted & Restricted Units'!$E$7:$E$399=\"1\")*('2. Assisted & Restricted Units'!$U$7:$U$399=\"SUHRP\")*('2. Assisted & Restricted Units'!$V$7:$V$399=\"LI State\"))","v":0},{"$f":"SUMPRODUCT(('2. Assisted & Restricted Units'!$E$7:$E$399=\"1\")*('2. Assisted & Restricted Units'!$U$7:$U$399=\"TOD\")*('2. Assisted & Restricted Units'!$V$7:$V$399=\"LI State\"))","v":0},{"$f":"SUMPRODUCT(('2. Assisted & Restricted Units'!$E$7:$E$399=\"1\")*('2. Assisted & Restricted Units'!$U$7:$U$399=\"707-E\")*('2. Assisted & Restricted Units'!$V$7:$V$399=\"LI State\"))","v":0},{"$f":"SUMPRODUCT(('2. Assisted & Restricted Units'!$E$7:$E$399=\"1\")*('2. Assisted & Restricted Units'!$U$7:$U$399=\"707-N\")*('2. Assisted & Restricted Units'!$V$7:$V$399=\"LI State\"))","v":0}]
["1 Bedroom CalHFA",{"$f":"SUMPRODUCT(('2. Assisted & Restricted Units'!$E$7:$E$399=\"1\")*('2. Assisted & Restricted Units'!$U$7:$U$399=\"CALDAP\")*('2. Assisted & Restricted Units'!$V$7:$V$399=\"CalHFA\"))","v":0},{"$f":"SUMPRODUCT(('2. Assisted & Restricted Units'!$E$7:$E$399=\"1\")*('2. Assisted & Restricted Units'!$U$7:$U$399=\"CHRP-R\")*('2. Assisted & Restricted Units'!$V$7:$V$399=\"CalHFA\"))","v":0},{"$f":"SUMPRODUCT(('2. Assisted & Restricted Units'!$E$7:$E$399=\"1\")*('2. Assisted & Restricted Units'!$U$7:$U$399=\"DDS\")*('2. Assisted & Restricted Units'!$V$7:$V$399=\"CalHFA\"))","v":0},{"$f":"SUMPRODUCT(('2. Assisted & Restricted Units'!$E$7:$E$399=\"1\")*('2. Assisted & Restricted Units'!$U$7:$U$399=\"DPRLP\")*('2. Assisted & Restricted Units'!$V$7:$V$399=\"CalHFA\"))","v":0},{"$f":"SUMPRODUCT(('2. Assisted & Restricted Units'!$E$7:$E$399=\"1\")*('2. Assisted & Restricted Units'!$U$7:$U$399=\"FHDP\")*('2. Assisted & Restricted Units'!$V$7:$V$399=\"CalHFA\"))","v":0},{"$f":"SUMPRODUCT(('2. Assisted & Restricted Units'!$E$7:$E$399=\"1\")*('2. Assisted & Restricted Units'!$U$7:$U$399=\"FMTW\")*('2. Assisted & Restricted Units'!$V$7:$V$399=\"CalHFA\"))","v":0},null,{"$f":"SUMPRODUCT(('2. Assisted & Restricted Units'!$E$7:$E$399=\"1\")*('2. Assisted & Restricted Units'!$U$7:$U$399=\"HOME\")*('2. Assisted & Restricted Units'!$V$7:$V$399=\"CalHFA\"))","v":0},{"$f":"SUMPRODUCT(('2. Assisted & Restricted Units'!$E$7:$E$399=\"1\")*('2. Assisted & Restricted Units'!$U$7:$U$399=\"Market Rate\")*('2. Assisted & Restricted Units'!$V$7:$V$399=\"CalHFA\"))","v":0},{"$f":"SUMPRODUCT(('2. Assisted & Restricted Units'!$E$7:$E$399=\"1\")*('2. Assisted & Restricted Units'!$U$7:$U$399=\"MHP\")*('2. Assisted & Restricted Units'!$V$7:$V$399=\"CalHFA\"))","v":0},{"$f":"SUMPRODUCT(('2. Assisted & Restricted Units'!$E$7:$E$399=\"1\")*('2. Assisted & Restricted Units'!$U$7:$U$399=\"NonAssisted\")*('2. Assisted & Restricted Units'!$V$7:$V$399=\"CalHFA\"))","v":0},{"$f":"SUMPRODUCT(('2. Assisted & Restricted Units'!$E$7:$E$399=\"1\")*('2. Assisted & Restricted Units'!$U$7:$U$399=\"Other Restr\")*('2. Assisted & Restricted Units'!$V$7:$V$399=\"CalHFA\"))","v":0},{"$f":"SUMPRODUCT(('2. Assisted & Restricted Units'!$E$7:$E$399=\"1\")*('2. Assisted & Restricted Units'!$U$7:$U$399=\"RHCP-B\")*('2. Assisted & Restricted Units'!$V$7:$V$399=\"CalHFA\"))","v":0},{"$f":"SUMPRODUCT(('2. Assisted & Restricted Units'!$E$7:$E$399=\"1\")*('2. Assisted & Restricted Units'!$U$7:$U$399=\"SERA\")*('2. Assisted & Restricted Units'!$V$7:$V$399=\"CalHFA\"))","v":0},{"$f":"SUMPRODUCT(('2. Assisted & Restricted Units'!$E$7:$E$399=\"1\")*('2. Assisted & Restricted Units'!$U$7:$U$399=\"SUHRP\")*('2. Assisted & Restricted Units'!$V$7:$V$399=\"CalHFA\"))","v":0},{"$f":"SUMPRODUCT(('2. Assisted & Restricted Units'!$E$7:$E$399=\"1\")*('2. Assisted & Restricted Units'!$U$7:$U$399=\"TOD\")*('2. Assisted & Restricted Units'!$V$7:$V$399=\"CalHFA\"))","v":0},{"$f":"SUMPRODUCT(('2. Assisted & Restricted Units'!$E$7:$E$399=\"1\")*('2. Assisted & Restricted Units'!$U$7:$U$399=\"707-E\")*('2. Assisted & Restricted Units'!$V$7:$V$399=\"CalHFA\"))","v":0},{"$f":"SUMPRODUCT(('2. Assisted & Restricted Units'!$E$7:$E$399=\"1\")*('2. Assisted & Restricted Units'!$U$7:$U$399=\"707-N\")*('2. Assisted & Restricted Units'!$V$7:$V$399=\"CalHFA\"))","v":0}]
["Total 1",{"$f":"SUM(B54:B77)","v":0},{"$f":"SUM(C54:C77)","v":0},0,0,0,0,{"$f":"SUMPRODUCT(('2. Assisted & Restricted Units'!$E$7:$E$399=\"1\")*('2. Assisted & Restricted Units'!$U$7:$U$399=\"FWHG\"))","v":0},0,0,0,0,0,0,0,0,0,0,0,{"$f":"SUMPRODUCT(('2. Assisted & Restricted Units'!$E$7:$E$399=\"1\")*('2. Assisted & Restricted Units'!$L$7:$L$399=\"X\"))","v":0},{"$f":"SUMPRODUCT(('2. Assisted & Restricted Units'!$E$7:$E$399=\"1\")*('2. Assisted & Restricted Units'!#REF!=\"X\"))","v":{"$error":"#REF!"}},{"$f":"SUMPRODUCT(('2. Assisted & Restricted Units'!$E$7:$E$399=\"1\")*('2. Assisted & Restricted Units'!#REF!=\"X\"))","v":{"$error":"#REF!"}},{"$f":"SUMPRODUCT(('2. Assisted & Restricted Units'!$E$7:$E$399=\"1\")*('2. Assisted & Restricted Units'!#REF!=\"X\"))","v":{"$error":"#REF!"}},{"$f":"SUMPRODUCT(('2. Assisted & Restricted Units'!$E$7:$E$399=\"1\")*('2. Assisted & Restricted Units'!#REF!=\"X\"))","v":{"$error":"#REF!"}},{"$f":"SUMPRODUCT(('2. Assisted & Restricted Units'!$E$7:$E$399=\"1\")*('2. Assisted & Restricted Units'!#REF!=\"X\"))","v":{"$error":"#REF!"}},{"$f":"SUMPRODUCT(('2. Assisted & Restricted Units'!$E$7:$E$399=\"1\")*('2. Assisted & Restricted Units'!#REF!=\"X\"))","v":{"$error":"#REF!"}},{"$f":"SUMPRODUCT(('2. Assisted & Restricted Units'!$E$7:$E$399=\"1\")*('2. Assisted & Restricted Units'!$M$7:$M$399=\"X\"))","v":0},{"$f":"SUMPRODUCT(('2. Assisted & Restricted Units'!$E$7:$E$399=\"1\")*('2. Assisted & Restricted Units'!$O$7:$O$399=\"X\"))","v":0}]
["2 Bedroom 15% AMI",{"$f":"SUMPRODUCT(('2. Assisted & Restricted Units'!$E$7:$E$399=\"2\")*('2. Assisted & Restricted Units'!$U$7:$U$399=\"CALDAP\")*('2. Assisted & Restricted Units'!$V$7:$V$399=\"15% AMI\"))","v":0},{"$f":"SUMPRODUCT(('2. Assisted & Restricted Units'!$E$7:$E$399=\"2\")*('2. Assisted & Restricted Units'!$U$7:$U$399=\"CHRP-R\")*('2. Assisted & Restricted Units'!$V$7:$V$399=\"15% AMI\"))","v":0},{"$f":"SUMPRODUCT(('2. Assisted & Restricted Units'!$E$7:$E$399=\"2\")*('2. Assisted & Restricted Units'!$U$7:$U$399=\"DDS\")*('2. Assisted & Restricted Units'!$V$7:$V$399=\"15% AMI\"))","v":0},{"$f":"SUMPRODUCT(('2. Assisted & Restricted Units'!$E$7:$E$399=\"2\")*('2. Assisted & Restricted Units'!$U$7:$U$399=\"DPRLP\")*('2. Assisted & Restricted Units'!$V$7:$V$399=\"15% AMI\"))","v":0},{"$f":"SUMPRODUCT(('2. Assisted & Restricted Units'!$E$7:$E$399=\"2\")*('2. Assisted & Restricted Units'!$U$7:$U$399=\"FHDP\")*('2. Assisted & Restricted Units'!$V$7:$V$399=\"15% AMI\"))","v":0},{"$f":"SUMPRODUCT(('2. Assisted & Restricted Units'!$E$7:$E$399=\"2\")*('2. Assisted & Restricted Units'!$U$7:$U$399=\"FMTW\")*('2. Assisted & Restricted Units'!$V$7:$V$399=\"15% AMI\"))","v":0},null,{"$f":"SUMPRODUCT(('2. Assisted & Restricted Units'!$E$7:$E$399=\"2\")*('2. Assisted & Restricted Units'!$U$7:$U$399=\"HOME\")*('2. Assisted & Restricted Units'!$V$7:$V$399=\"15% AMI\"))","v":0},{"$f":"SUMPRODUCT(('2. Assisted & Restricted Units'!$E$7:$E$399=\"2\")*('2. Assisted & Restricted Units'!$U$7:$U$399=\"Market Rate\")*('2. Assisted & Restricted Units'!$V$7:$V$399=\"15% AMI\"))","v":0},{"$f":"SUMPRODUCT(('2. Assisted & Restricted Units'!$E$7:$E$399=\"2\")*('2. Assisted & Restricted Units'!$U$7:$U$399=\"MHP\")*('2. Assisted & Restricted Units'!$V$7:$V$399=\"15% AMI\"))","v":0},{"$f":"SUMPRODUCT(('2. Assisted & Restricted Units'!$E$7:$E$399=\"2\")*('2. Assisted & Restricted Units'!$U$7:$U$399=\"NonAssisted\")*('2. Assisted & Restricted Units'!$V$7:$V$399=\"15% AMI\"))","v":0},{"$f":"SUMPRODUCT(('2. Assisted & Restricted Units'!$E$7:$E$399=\"2\")*('2. Assisted & Restricted Units'!$U$7:$U$399=\"Other Restr\")*('2. Assisted & Restricted Units'!$V$7:$V$399=\"15% AMI\"))","v":0},{"$f":"SUMPRODUCT(('2. Assisted & Restricted Units'!$E$7:$E$399=\"2\")*('2. Assisted & Restricted Units'!$U$7:$U$399=\"RHCP-B\")*('2. Assisted & Restricted Units'!$V$7:$V$399=\"15% AMI\"))","v":0},{"$f":"SUMPRODUCT(('2. Assisted & Restricted Units'!$E$7:$E$399=\"2\")*('2. Assisted & Restricted Units'!$U$7:$U$399=\"SERA\")*('2. Assisted & Restricted Units'!$V$7:$V$399=\"15% AMI\"))","v":0},{"$f":"SUMPRODUCT(('2. Assisted & Restricted Units'!$E$7:$E$399=\"2\")*('2. Assisted & Restricted Units'!$U$7:$U$399=\"SUHRP\")*('2. Assisted & Restricted Units'!$V$7:$V$399=\"15% AMI\"))","v":0},{"$f":"SUMPRODUCT(('2. Assisted & Restricted Units'!$E$7:$E$399=\"2\")*('2. Assisted & Restricted Units'!$U$7:$U$399=\"TOD\")*('2. Assisted & Restricted Units'!$V$7:$V$399=\"15% AMI\"))","v":0},{"$f":"SUMPRODUCT(('2. Assisted & Restricted Units'!$E$7:$E$399=\"2\")*('2. Assisted & Restricted Units'!$U$7:$U$399=\"707-E\")*('2. Assisted & Restricted Units'!$V$7:$V$399=\"15% AMI\"))","v":0},{"$f":"SUMPRODUCT(('2. Assisted & Restricted Units'!$E$7:$E$399=\"2\")*('2. Assisted & Restricted Units'!$U$7:$U$399=\"707-N\")*('2. Assisted & Restricted Units'!$V$7:$V$399=\"15% AMI\"))","v":0}]
["2 Bedroom 20% AMI",{"$f":"SUMPRODUCT(('2. Assisted & Restricted Units'!$E$7:$E$399=\"2\")*('2. Assisted & Restricted Units'!$U$7:$U$399=\"CALDAP\")*('2. Assisted & Restricted Units'!$V$7:$V$399=\"20% AMI\"))","v":0},{"$f":"SUMPRODUCT(('2. Assisted & Restricted Units'!$E$7:$E$399=\"2\")*('2. Assisted & Restricted Units'!$U$7:$U$399=\"CHRP-R\")*('2. Assisted & Restricted Units'!$V$7:$V$399=\"20% AMI\"))","v":0},{"$f":"SUMPRODUCT(('2. Assisted & Restricted Units'!$E$7:$E$399=\"2\")*('2. Assisted & Restricted Units'!$U$7:$U$399=\"DDS\")*('2. Assisted & Restricted Units'!$V$7:$V$399=\"20% AMI\"))","v":0},{"$f":"SUMPRODUCT(('2. Assisted & Restricted Units'!$E$7:$E$399=\"2\")*('2. Assisted & Restricted Units'!$U$7:$U$399=\"DPRLP\")*('2. Assisted & Restricted Units'!$V$7:$V$399=\"20% AMI\"))","v":0},{"$f":"SUMPRODUCT(('2. Assisted & Restricted Units'!$E$7:$E$399=\"2\")*('2. Assisted & Restricted Units'!$U$7:$U$399=\"FHDP\")*('2. Assisted & Restricted Units'!$V$7:$V$399=\"20% AMI\"))","v":0},{"$f":"SUMPRODUCT(('2. Assisted & Restricted Units'!$E$7:$E$399=\"2\")*('2. Assisted & Restricted Units'!$U$7:$U$399=\"FMTW\")*('2. Assisted & Restricted Units'!$V$7:$V$399=\"20% AMI\"))","v":0},null,{"$f":"SUMPRODUCT(('2. Assisted & Restricted Units'!$E$7:$E$399=\"2\")*('2. Assisted & Restricted Units'!$U$7:$U$399=\"HOME\")*('2. Assisted & Restricted Units'!$V$7:$V$399=\"20% AMI\"))","v":0},{"$f":"SUMPRODUCT(('2. Assisted & Restricted Units'!$E$7:$E$399=\"2\")*('2. Assisted & Restricted Units'!$U$7:$U$399=\"Market Rate\")*('2. Assisted & Restricted Units'!$V$7:$V$399=\"20% AMI\"))","v":0},{"$f":"SUMPRODUCT(('2. Assisted & Restricted Units'!$E$7:$E$399=\"2\")*('2. Assisted & Restricted Units'!$U$7:$U$399=\"MHP\")*('2. Assisted & Restricted Units'!$V$7:$V$399=\"20% AMI\"))","v":0},{"$f":"SUMPRODUCT(('2. Assisted & Restricted Units'!$E$7:$E$399=\"2\")*('2. Assisted & Restricted Units'!$U$7:$U$399=\"NonAssisted\")*('2. Assisted & Restricted Units'!$V$7:$V$399=\"20% AMI\"))","v":0},{"$f":"SUMPRODUCT(('2. Assisted & Restricted Units'!$E$7:$E$399=\"2\")*('2. Assisted & Restricted Units'!$U$7:$U$399=\"Other Restr\")*('2. Assisted & Restricted Units'!$V$7:$V$399=\"20% AMI\"))","v":0},{"$f":"SUMPRODUCT(('2. Assisted & Restricted Units'!$E$7:$E$399=\"2\")*('2. Assisted & Restricted Units'!$U$7:$U$399=\"RHCP-B\")*('2. Assisted & Restricted Units'!$V$7:$V$399=\"20% AMI\"))","v":0},{"$f":"SUMPRODUCT(('2. Assisted & Restricted Units'!$E$7:$E$399=\"2\")*('2. Assisted & Restricted Units'!$U$7:$U$399=\"SERA\")*('2. Assisted & Restricted Units'!$V$7:$V$399=\"20% AMI\"))","v":0},{"$f":"SUMPRODUCT(('2. Assisted & Restricted Units'!$E$7:$E$399=\"2\")*('2. Assisted & Restricted Units'!$U$7:$U$399=\"SUHRP\")*('2. Assisted & Restricted Units'!$V$7:$V$399=\"20% AMI\"))","v":0},{"$f":"SUMPRODUCT(('2. Assisted & Restricted Units'!$E$7:$E$399=\"2\")*('2. Assisted & Restricted Units'!$U$7:$U$399=\"TOD\")*('2. Assisted & Restricted Units'!$V$7:$V$399=\"20% AMI\"))","v":0},{"$f":"SUMPRODUCT(('2. Assisted & Restricted Units'!$E$7:$E$399=\"2\")*('2. Assisted & Restricted Units'!$U$7:$U$399=\"707-E\")*('2. Assisted & Restricted Units'!$V$7:$V$399=\"20% AMI\"))","v":0},{"$f":"SUMPRODUCT(('2. Assisted & Restricted Units'!$E$7:$E$399=\"2\")*('2. Assisted & Restricted Units'!$U$7:$U$399=\"707-N\")*('2. Assisted & Restricted Units'!$V$7:$V$399=\"20% AMI\"))","v":0}]
["2 Bedroom 25% AMI",{"$f":"SUMPRODUCT(('2. Assisted & Restricted Units'!$E$7:$E$399=\"2\")*('2. Assisted & Restricted Units'!$U$7:$U$399=\"CALDAP\")*('2. Assisted & Restricted Units'!$V$7:$V$399=\"25% AMI\"))","v":0},{"$f":"SUMPRODUCT(('2. Assisted & Restricted Units'!$E$7:$E$399=\"2\")*('2. Assisted & Restricted Units'!$U$7:$U$399=\"CHRP-R\")*('2. Assisted & Restricted Units'!$V$7:$V$399=\"25% AMI\"))","v":0},{"$f":"SUMPRODUCT(('2. Assisted & Restricted Units'!$E$7:$E$399=\"2\")*('2. Assisted & Restricted Units'!$U$7:$U$399=\"DDS\")*('2. Assisted & Restricted Units'!$V$7:$V$399=\"25% AMI\"))","v":0},{"$f":"SUMPRODUCT(('2. Assisted & Restricted Units'!$E$7:$E$399=\"2\")*('2. Assisted & Restricted Units'!$U$7:$U$399=\"DPRLP\")*('2. Assisted & Restricted Units'!$V$7:$V$399=\"25% AMI\"))","v":0},{"$f":"SUMPRODUCT(('2. Assisted & Restricted Units'!$E$7:$E$399=\"2\")*('2. Assisted & Restricted Units'!$U$7:$U$399=\"FHDP\")*('2. Assisted & Restricted Units'!$V$7:$V$399=\"25% AMI\"))","v":0},{"$f":"SUMPRODUCT(('2. Assisted & Restricted Units'!$E$7:$E$399=\"2\")*('2. Assisted & Restricted Units'!$U$7:$U$399=\"FMTW\")*('2. Assisted & Restricted Units'!$V$7:$V$399=\"25% AMI\"))","v":0},null,{"$f":"SUMPRODUCT(('2. Assisted & Restricted Units'!$E$7:$E$399=\"2\")*('2. Assisted & Restricted Units'!$U$7:$U$399=\"HOME\")*('2. Assisted & Restricted Units'!$V$7:$V$399=\"25% AMI\"))","v":0},{"$f":"SUMPRODUCT(('2. Assisted & Restricted Units'!$E$7:$E$399=\"2\")*('2. Assisted & Restricted Units'!$U$7:$U$399=\"Market Rate\")*('2. Assisted & Restricted Units'!$V$7:$V$399=\"25% AMI\"))","v":0},{"$f":"SUMPRODUCT(('2. Assisted & Restricted Units'!$E$7:$E$399=\"2\")*('2. Assisted & Restricted Units'!$U$7:$U$399=\"MHP\")*('2. Assisted & Restricted Units'!$V$7:$V$399=\"25% AMI\"))","v":0},{"$f":"SUMPRODUCT(('2. Assisted & Restricted Units'!$E$7:$E$399=\"2\")*('2. Assisted & Restricted Units'!$U$7:$U$399=\"NonAssisted\")*('2. Assisted & Restricted Units'!$V$7:$V$399=\"25% AMI\"))","v":0},{"$f":"SUMPRODUCT(('2. Assisted & Restricted Units'!$E$7:$E$399=\"2\")*('2. Assisted & Restricted Units'!$U$7:$U$399=\"Other Restr\")*('2. Assisted & Restricted Units'!$V$7:$V$399=\"25% AMI\"))","v":0},{"$f":"SUMPRODUCT(('2. Assisted & Restricted Units'!$E$7:$E$399=\"2\")*('2. Assisted & Restricted Units'!$U$7:$U$399=\"RHCP-B\")*('2. Assisted & Restricted Units'!$V$7:$V$399=\"25% AMI\"))","v":0},{"$f":"SUMPRODUCT(('2. Assisted & Restricted Units'!$E$7:$E$399=\"2\")*('2. Assisted & Restricted Units'!$U$7:$U$399=\"SERA\")*('2. Assisted & Restricted Units'!$V$7:$V$399=\"25% AMI\"))","v":0},{"$f":"SUMPRODUCT(('2. Assisted & Restricted Units'!$E$7:$E$399=\"2\")*('2. Assisted & Restricted Units'!$U$7:$U$399=\"SUHRP\")*('2. Assisted & Restricted Units'!$V$7:$V$399=\"25% AMI\"))","v":0},{"$f":"SUMPRODUCT(('2. Assisted & Restricted Units'!$E$7:$E$399=\"2\")*('2. Assisted & Restricted Units'!$U$7:$U$399=\"TOD\")*('2. Assisted & Restricted Units'!$V$7:$V$399=\"25% AMI\"))","v":0},{"$f":"SUMPRODUCT(('2. Assisted & Restricted Units'!$E$7:$E$399=\"2\")*('2. Assisted & Restricted Units'!$U$7:$U$399=\"707-E\")*('2. Assisted & Restricted Units'!$V$7:$V$399=\"25% AMI\"))","v":0},{"$f":"SUMPRODUCT(('2. Assisted & Restricted Units'!$E$7:$E$399=\"2\")*('2. Assisted & Restricted Units'!$U$7:$U$399=\"707-N\")*('2. Assisted & Restricted Units'!$V$7:$V$399=\"25% AMI\"))","v":0}]
["2 Bedroom 30% AMI",{"$f":"SUMPRODUCT(('2. Assisted & Restricted Units'!$E$7:$E$399=\"2\")*('2. Assisted & Restricted Units'!$U$7:$U$399=\"CALDAP\")*('2. Assisted & Restricted Units'!$V$7:$V$399=\"30% AMI\"))","v":0},{"$f":"SUMPRODUCT(('2. Assisted & Restricted Units'!$E$7:$E$399=\"2\")*('2. Assisted & Restricted Units'!$U$7:$U$399=\"CHRP-R\")*('2. Assisted & Restricted Units'!$V$7:$V$399=\"30% AMI\"))","v":0},{"$f":"SUMPRODUCT(('2. Assisted & Restricted Units'!$E$7:$E$399=\"2\")*('2. Assisted & Restricted Units'!$U$7:$U$399=\"DDS\")*('2. Assisted & Restricted Units'!$V$7:$V$399=\"30% AMI\"))","v":0},{"$f":"SUMPRODUCT(('2. Assisted & Restricted Units'!$E$7:$E$399=\"2\")*('2. Assisted & Restricted Units'!$U$7:$U$399=\"DPRLP\")*('2. Assisted & Restricted Units'!$V$7:$V$399=\"30% AMI\"))","v":0},{"$f":"SUMPRODUCT(('2. Assisted & Restricted Units'!$E$7:$E$399=\"2\")*('2. Assisted & Restricted Units'!$U$7:$U$399=\"FHDP\")*('2. Assisted & Restricted Units'!$V$7:$V$399=\"30% AMI\"))","v":0},{"$f":"SUMPRODUCT(('2. Assisted & Restricted Units'!$E$7:$E$399=\"2\")*('2. Assisted & Restricted Units'!$U$7:$U$399=\"FMTW\")*('2. Assisted & Restricted Units'!$V$7:$V$399=\"30% AMI\"))","v":0},null,{"$f":"SUMPRODUCT(('2. Assisted & Restricted Units'!$E$7:$E$399=\"2\")*('2. Assisted & Restricted Units'!$U$7:$U$399=\"HOME\")*('2. Assisted & Restricted Units'!$V$7:$V$399=\"30% AMI\"))","v":0},{"$f":"SUMPRODUCT(('2. Assisted & Restricted Units'!$E$7:$E$399=\"2\")*('2. Assisted & Restricted Units'!$U$7:$U$399=\"Market Rate\")*('2. Assisted & Restricted Units'!$V$7:$V$399=\"30% AMI\"))","v":0},{"$f":"SUMPRODUCT(('2. Assisted & Restricted Units'!$E$7:$E$399=\"2\")*('2. Assisted & Restricted Units'!$U$7:$U$399=\"MHP\")*('2. Assisted & Restricted Units'!$V$7:$V$399=\"30% AMI\"))","v":0},{"$f":"SUMPRODUCT(('2. Assisted & Restricted Units'!$E$7:$E$399=\"2\")*('2. Assisted & Restricted Units'!$U$7:$U$399=\"NonAssisted\")*('2. Assisted & Restricted Units'!$V$7:$V$399=\"30% AMI\"))","v":0},{"$f":"SUMPRODUCT(('2. Assisted & Restricted Units'!$E$7:$E$399=\"2\")*('2. Assisted & Restricted Units'!$U$7:$U$399=\"Other Restr\")*('2. Assisted & Restricted Units'!$V$7:$V$399=\"30% AMI\"))","v":0},{"$f":"SUMPRODUCT(('2. Assisted & Restricted Units'!$E$7:$E$399=\"2\")*('2. Assisted & Restricted Units'!$U$7:$U$399=\"RHCP-B\")*('2. Assisted & Restricted Units'!$V$7:$V$399=\"30% AMI\"))","v":0},{"$f":"SUMPRODUCT(('2. Assisted & Restricted Units'!$E$7:$E$399=\"2\")*('2. Assisted & Restricted Units'!$U$7:$U$399=\"SERA\")*('2. Assisted & Restricted Units'!$V$7:$V$399=\"30% AMI\"))","v":0},{"$f":"SUMPRODUCT(('2. Assisted & Restricted Units'!$E$7:$E$399=\"2\")*('2. Assisted & Restricted Units'!$U$7:$U$399=\"SUHRP\")*('2. Assisted & Restricted Units'!$V$7:$V$399=\"30% AMI\"))","v":0},{"$f":"SUMPRODUCT(('2. Assisted & Restricted Units'!$E$7:$E$399=\"2\")*('2. Assisted & Restricted Units'!$U$7:$U$399=\"TOD\")*('2. Assisted & Restricted Units'!$V$7:$V$399=\"30% AMI\"))","v":0},{"$f":"SUMPRODUCT(('2. Assisted & Restricted Units'!$E$7:$E$399=\"2\")*('2. Assisted & Restricted Units'!$U$7:$U$399=\"707-E\")*('2. Assisted & Restricted Units'!$V$7:$V$399=\"30% AMI\"))","v":0},{"$f":"SUMPRODUCT(('2. Assisted & Restricted Units'!$E$7:$E$399=\"2\")*('2. Assisted & Restricted Units'!$U$7:$U$399=\"707-N\")*('2. Assisted & Restricted Units'!$V$7:$V$399=\"30% AMI\"))","v":0}]
["2 Bedroom 35% AMI",{"$f":"SUMPRODUCT(('2. Assisted & Restricted Units'!$E$7:$E$399=\"2\")*('2. Assisted & Restricted Units'!$U$7:$U$399=\"CALDAP\")*('2. Assisted & Restricted Units'!$V$7:$V$399=\"35% AMI\"))","v":0},{"$f":"SUMPRODUCT(('2. Assisted & Restricted Units'!$E$7:$E$399=\"2\")*('2. Assisted & Restricted Units'!$U$7:$U$399=\"CHRP-R\")*('2. Assisted & Restricted Units'!$V$7:$V$399=\"35% AMI\"))","v":0},{"$f":"SUMPRODUCT(('2. Assisted & Restricted Units'!$E$7:$E$399=\"2\")*('2. Assisted & Restricted Units'!$U$7:$U$399=\"DDS\")*('2. Assisted & Restricted Units'!$V$7:$V$399=\"35% AMI\"))","v":0},{"$f":"SUMPRODUCT(('2. Assisted & Restricted Units'!$E$7:$E$399=\"2\")*('2. Assisted & Restricted Units'!$U$7:$U$399=\"DPRLP\")*('2. Assisted & Restricted Units'!$V$7:$V$399=\"35% AMI\"))","v":0},{"$f":"SUMPRODUCT(('2. Assisted & Restricted Units'!$E$7:$E$399=\"2\")*('2. Assisted & Restricted Units'!$U$7:$U$399=\"FHDP\")*('2. Assisted & Restricted Units'!$V$7:$V$399=\"35% AMI\"))","v":0},{"$f":"SUMPRODUCT(('2. Assisted & Restricted Units'!$E$7:$E$399=\"2\")*('2. Assisted & Restricted Units'!$U$7:$U$399=\"FMTW\")*('2. Assisted & Restricted Units'!$V$7:$V$399=\"35% AMI\"))","v":0},null,{"$f":"SUMPRODUCT(('2. Assisted & Restricted Units'!$E$7:$E$399=\"2\")*('2. Assisted & Restricted Units'!$U$7:$U$399=\"HOME\")*('2. Assisted & Restricted Units'!$V$7:$V$399=\"35% AMI\"))","v":0},{"$f":"SUMPRODUCT(('2. Assisted & Restricted Units'!$E$7:$E$399=\"2\")*('2. Assisted & Restricted Units'!$U$7:$U$399=\"Market Rate\")*('2. Assisted & Restricted Units'!$V$7:$V$399=\"35% AMI\"))","v":0},{"$f":"SUMPRODUCT(('2. Assisted & Restricted Units'!$E$7:$E$399=\"2\")*('2. Assisted & Restricted Units'!$U$7:$U$399=\"MHP\")*('2. Assisted & Restricted Units'!$V$7:$V$399=\"35% AMI\"))","v":0},{"$f":"SUMPRODUCT(('2. Assisted & Restricted Units'!$E$7:$E$399=\"2\")*('2. Assisted & Restricted Units'!$U$7:$U$399=\"NonAssisted\")*('2. Assisted & Restricted Units'!$V$7:$V$399=\"35% AMI\"))","v":0},{"$f":"SUMPRODUCT(('2. Assisted & Restricted Units'!$E$7:$E$399=\"2\")*('2. Assisted & Restricted Units'!$U$7:$U$399=\"Other Restr\")*('2. Assisted & Restricted Units'!$V$7:$V$399=\"35% AMI\"))","v":0},{"$f":"SUMPRODUCT(('2. Assisted & Restricted Units'!$E$7:$E$399=\"2\")*('2. Assisted & Restricted Units'!$U$7:$U$399=\"RHCP-B\")*('2. Assisted & Restricted Units'!$V$7:$V$399=\"35% AMI\"))","v":0},{"$f":"SUMPRODUCT(('2. Assisted & Restricted Units'!$E$7:$E$399=\"2\")*('2. Assisted & Restricted Units'!$U$7:$U$399=\"SERA\")*('2. Assisted & Restricted Units'!$V$7:$V$399=\"35% AMI\"))","v":0},{"$f":"SUMPRODUCT(('2. Assisted & Restricted Units'!$E$7:$E$399=\"2\")*('2. Assisted & Restricted Units'!$U$7:$U$399=\"SUHRP\")*('2. Assisted & Restricted Units'!$V$7:$V$399=\"35% AMI\"))","v":0},{"$f":"SUMPRODUCT(('2. Assisted & Restricted Units'!$E$7:$E$399=\"2\")*('2. Assisted & Restricted Units'!$U$7:$U$399=\"TOD\")*('2. Assisted & Restricted Units'!$V$7:$V$399=\"35% AMI\"))","v":0},{"$f":"SUMPRODUCT(('2. Assisted & Restricted Units'!$E$7:$E$399=\"2\")*('2. Assisted & Restricted Units'!$U$7:$U$399=\"707-E\")*('2. Assisted & Restricted Units'!$V$7:$V$399=\"35% AMI\"))","v":0},{"$f":"SUMPRODUCT(('2. Assisted & Restricted Units'!$E$7:$E$399=\"2\")*('2. Assisted & Restricted Units'!$U$7:$U$399=\"707-N\")*('2. Assisted & Restricted Units'!$V$7:$V$399=\"35% AMI\"))","v":0}]
["2 Bedroom 40% AMI",{"$f":"SUMPRODUCT(('2. Assisted & Restricted Units'!$E$7:$E$399=\"2\")*('2. Assisted & Restricted Units'!$U$7:$U$399=\"CALDAP\")*('2. Assisted & Restricted Units'!$V$7:$V$399=\"40% AMI\"))","v":0},{"$f":"SUMPRODUCT(('2. Assisted & Restricted Units'!$E$7:$E$399=\"2\")*('2. Assisted & Restricted Units'!$U$7:$U$399=\"CHRP-R\")*('2. Assisted & Restricted Units'!$V$7:$V$399=\"40% AMI\"))","v":0},{"$f":"SUMPRODUCT(('2. Assisted & Restricted Units'!$E$7:$E$399=\"2\")*('2. Assisted & Restricted Units'!$U$7:$U$399=\"DDS\")*('2. Assisted & Restricted Units'!$V$7:$V$399=\"40% AMI\"))","v":0},{"$f":"SUMPRODUCT(('2. Assisted & Restricted Units'!$E$7:$E$399=\"2\")*('2. Assisted & Restricted Units'!$U$7:$U$399=\"DPRLP\")*('2. Assisted & Restricted Units'!$V$7:$V$399=\"40% AMI\"))","v":0},{"$f":"SUMPRODUCT(('2. Assisted & Restricted Units'!$E$7:$E$399=\"2\")*('2. Assisted & Restricted Units'!$U$7:$U$399=\"FHDP\")*('2. Assisted & Restricted Units'!$V$7:$V$399=\"40% AMI\"))","v":0},{"$f":"SUMPRODUCT(('2. Assisted & Restricted Units'!$E$7:$E$399=\"2\")*('2. Assisted & Restricted Units'!$U$7:$U$399=\"FMTW\")*('2. Assisted & Restricted Units'!$V$7:$V$399=\"40% AMI\"))","v":0},null,{"$f":"SUMPRODUCT(('2. Assisted & Restricted Units'!$E$7:$E$399=\"2\")*('2. Assisted & Restricted Units'!$U$7:$U$399=\"HOME\")*('2. Assisted & Restricted Units'!$V$7:$V$399=\"40% AMI\"))","v":0},{"$f":"SUMPRODUCT(('2. Assisted & Restricted Units'!$E$7:$E$399=\"2\")*('2. Assisted & Restricted Units'!$U$7:$U$399=\"Market Rate\")*('2. Assisted & Restricted Units'!$V$7:$V$399=\"40% AMI\"))","v":0},{"$f":"SUMPRODUCT(('2. Assisted & Restricted Units'!$E$7:$E$399=\"2\")*('2. Assisted & Restricted Units'!$U$7:$U$399=\"MHP\")*('2. Assisted & Restricted Units'!$V$7:$V$399=\"40% AMI\"))","v":0},{"$f":"SUMPRODUCT(('2. Assisted & Restricted Units'!$E$7:$E$399=\"2\")*('2. Assisted & Restricted Units'!$U$7:$U$399=\"NonAssisted\")*('2. Assisted & Restricted Units'!$V$7:$V$399=\"40% AMI\"))","v":0},{"$f":"SUMPRODUCT(('2. Assisted & Restricted Units'!$E$7:$E$399=\"2\")*('2. Assisted & Restricted Units'!$U$7:$U$399=\"Other Restr\")*('2. Assisted & Restricted Units'!$V$7:$V$399=\"40% AMI\"))","v":0},{"$f":"SUMPRODUCT(('2. Assisted & Restricted Units'!$E$7:$E$399=\"2\")*('2. Assisted & Restricted Units'!$U$7:$U$399=\"RHCP-B\")*('2. Assisted & Restricted Units'!$V$7:$V$399=\"40% AMI\"))","v":0},{"$f":"SUMPRODUCT(('2. Assisted & Restricted Units'!$E$7:$E$399=\"2\")*('2. Assisted & Restricted Units'!$U$7:$U$399=\"SERA\")*('2. Assisted & Restricted Units'!$V$7:$V$399=\"40% AMI\"))","v":0},{"$f":"SUMPRODUCT(('2. Assisted & Restricted Units'!$E$7:$E$399=\"2\")*('2. Assisted & Restricted Units'!$U$7:$U$399=\"SUHRP\")*('2. Assisted & Restricted Units'!$V$7:$V$399=\"40% AMI\"))","v":0},{"$f":"SUMPRODUCT(('2. Assisted & Restricted Units'!$E$7:$E$399=\"2\")*('2. Assisted & Restricted Units'!$U$7:$U$399=\"TOD\")*('2. Assisted & Restricted Units'!$V$7:$V$399=\"40% AMI\"))","v":0},{"$f":"SUMPRODUCT(('2. Assisted & Restricted Units'!$E$7:$E$399=\"2\")*('2. Assisted & Restricted Units'!$U$7:$U$399=\"707-E\")*('2. Assisted & Restricted Units'!$V$7:$V$399=\"40% AMI\"))","v":0},{"$f":"SUMPRODUCT(('2. Assisted & Restricted Units'!$E$7:$E$399=\"2\")*('2. Assisted & Restricted Units'!$U$7:$U$399=\"707-N\")*('2. Assisted & Restricted Units'!$V$7:$V$399=\"40% AMI\"))","v":0}]
["2 Bedroom 45% AMI",{"$f":"SUMPRODUCT(('2. Assisted & Restricted Units'!$E$7:$E$399=\"2\")*('2. Assisted & Restricted Units'!$U$7:$U$399=\"CALDAP\")*('2. Assisted & Restricted Units'!$V$7:$V$399=\"45% AMI\"))","v":0},{"$f":"SUMPRODUCT(('2. Assisted & Restricted Units'!$E$7:$E$399=\"2\")*('2. Assisted & Restricted Units'!$U$7:$U$399=\"CHRP-R\")*('2. Assisted & Restricted Units'!$V$7:$V$399=\"45% AMI\"))","v":0},{"$f":"SUMPRODUCT(('2. Assisted & Restricted Units'!$E$7:$E$399=\"2\")*('2. Assisted & Restricted Units'!$U$7:$U$399=\"DDS\")*('2. Assisted & Restricted Units'!$V$7:$V$399=\"45% AMI\"))","v":0},{"$f":"SUMPRODUCT(('2. Assisted & Restricted Units'!$E$7:$E$399=\"2\")*('2. Assisted & Restricted Units'!$U$7:$U$399=\"DPRLP\")*('2. Assisted & Restricted Units'!$V$7:$V$399=\"45% AMI\"))","v":0},{"$f":"SUMPRODUCT(('2. Assisted & Restricted Units'!$E$7:$E$399=\"2\")*('2. Assisted & Restricted Units'!$U$7:$U$399=\"FHDP\")*('2. Assisted & Restricted Units'!$V$7:$V$399=\"45% AMI\"))","v":0},{"$f":"SUMPRODUCT(('2. Assisted & Restricted Units'!$E$7:$E$399=\"2\")*('2. Assisted & Restricted Units'!$U$7:$U$399=\"FMTW\")*('2. Assisted & Restricted Units'!$V$7:$V$399=\"45% AMI\"))","v":0},null,{"$f":"SUMPRODUCT(('2. Assisted & Restricted Units'!$E$7:$E$399=\"2\")*('2. Assisted & Restricted Units'!$U$7:$U$399=\"HOME\")*('2. Assisted & Restricted Units'!$V$7:$V$399=\"45% AMI\"))","v":0},{"$f":"SUMPRODUCT(('2. Assisted & Restricted Units'!$E$7:$E$399=\"2\")*('2. Assisted & Restricted Units'!$U$7:$U$399=\"Market Rate\")*('2. Assisted & Restricted Units'!$V$7:$V$399=\"45% AMI\"))","v":0},{"$f":"SUMPRODUCT(('2. Assisted & Restricted Units'!$E$7:$E$399=\"2\")*('2. Assisted & Restricted Units'!$U$7:$U$399=\"MHP\")*('2. Assisted & Restricted Units'!$V$7:$V$399=\"45% AMI\"))","v":0},{"$f":"SUMPRODUCT(('2. Assisted & Restricted Units'!$E$7:$E$399=\"2\")*('2. Assisted & Restricted Units'!$U$7:$U$399=\"NonAssisted\")*('2. Assisted & Restricted Units'!$V$7:$V$399=\"45% AMI\"))","v":0},{"$f":"SUMPRODUCT(('2. Assisted & Restricted Units'!$E$7:$E$399=\"2\")*('2. Assisted & Restricted Units'!$U$7:$U$399=\"Other Restr\")*('2. Assisted & Restricted Units'!$V$7:$V$399=\"45% AMI\"))","v":0},{"$f":"SUMPRODUCT(('2. Assisted & Restricted Units'!$E$7:$E$399=\"2\")*('2. Assisted & Restricted Units'!$U$7:$U$399=\"RHCP-B\")*('2. Assisted & Restricted Units'!$V$7:$V$399=\"45% AMI\"))","v":0},{"$f":"SUMPRODUCT(('2. Assisted & Restricted Units'!$E$7:$E$399=\"2\")*('2. Assisted & Restricted Units'!$U$7:$U$399=\"SERA\")*('2. Assisted & Restricted Units'!$V$7:$V$399=\"45% AMI\"))","v":0},{"$f":"SUMPRODUCT(('2. Assisted & Restricted Units'!$E$7:$E$399=\"2\")*('2. Assisted & Restricted Units'!$U$7:$U$399=\"SUHRP\")*('2. Assisted & Restricted Units'!$V$7:$V$399=\"45% AMI\"))","v":0},{"$f":"SUMPRODUCT(('2. Assisted & Restricted Units'!$E$7:$E$399=\"2\")*('2. Assisted & Restricted Units'!$U$7:$U$399=\"TOD\")*('2. Assisted & Restricted Units'!$V$7:$V$399=\"45% AMI\"))","v":0},{"$f":"SUMPRODUCT(('2. Assisted & Restricted Units'!$E$7:$E$399=\"2\")*('2. Assisted & Restricted Units'!$U$7:$U$399=\"707-E\")*('2. Assisted & Restricted Units'!$V$7:$V$399=\"45% AMI\"))","v":0},{"$f":"SUMPRODUCT(('2. Assisted & Restricted Units'!$E$7:$E$399=\"2\")*('2. Assisted & Restricted Units'!$U$7:$U$399=\"707-N\")*('2. Assisted & Restricted Units'!$V$7:$V$399=\"45% AMI\"))","v":0}]
["2 Bedroom 50% AMI",{"$f":"SUMPRODUCT(('2. Assisted & Restricted Units'!$E$7:$E$399=\"2\")*('2. Assisted & Restricted Units'!$U$7:$U$399=\"CALDAP\")*('2. Assisted & Restricted Units'!$V$7:$V$399=\"50% AMI\"))","v":0},{"$f":"SUMPRODUCT(('2. Assisted & Restricted Units'!$E$7:$E$399=\"2\")*('2. Assisted & Restricted Units'!$U$7:$U$399=\"CHRP-R\")*('2. Assisted & Restricted Units'!$V$7:$V$399=\"50% AMI\"))","v":0},{"$f":"SUMPRODUCT(('2. Assisted & Restricted Units'!$E$7:$E$399=\"2\")*('2. Assisted & Restricted Units'!$U$7:$U$399=\"DDS\")*('2. Assisted & Restricted Units'!$V$7:$V$399=\"50% AMI\"))","v":0},{"$f":"SUMPRODUCT(('2. Assisted & Restricted Units'!$E$7:$E$399=\"2\")*('2. Assisted & Restricted Units'!$U$7:$U$399=\"DPRLP\")*('2. Assisted & Restricted Units'!$V$7:$V$399=\"50% AMI\"))","v":0},{"$f":"SUMPRODUCT(('2. Assisted & Restricted Units'!$E$7:$E$399=\"2\")*('2. Assisted & Restricted Units'!$U$7:$U$399=\"FHDP\")*('2. Assisted & Restricted Units'!$V$7:$V$399=\"50% AMI\"))","v":0},{"$f":"SUMPRODUCT(('2. Assisted & Restricted Units'!$E$7:$E$399=\"2\")*('2. Assisted & Restricted Units'!$U$7:$U$399=\"FMTW\")*('2. Assisted & Restricted Units'!$V$7:$V$399=\"50% AMI\"))","v":0},null,{"$f":"SUMPRODUCT(('2. Assisted & Restricted Units'!$E$7:$E$399=\"2\")*('2. Assisted & Restricted Units'!$U$7:$U$399=\"HOME\")*('2. Assisted & Restricted Units'!$V$7:$V$399=\"50% AMI\"))","v":0},{"$f":"SUMPRODUCT(('2. Assisted & Restricted Units'!$E$7:$E$399=\"2\")*('2. Assisted & Restricted Units'!$U$7:$U$399=\"Market Rate\")*('2. Assisted & Restricted Units'!$V$7:$V$399=\"50% AMI\"))","v":0},{"$f":"SUMPRODUCT(('2. Assisted & Restricted Units'!$E$7:$E$399=\"2\")*('2. Assisted & Restricted Units'!$U$7:$U$399=\"MHP\")*('2. Assisted & Restricted Units'!$V$7:$V$399=\"50% AMI\"))","v":0},{"$f":"SUMPRODUCT(('2. Assisted & Restricted Units'!$E$7:$E$399=\"2\")*('2. Assisted & Restricted Units'!$U$7:$U$399=\"NonAssisted\")*('2. Assisted & Restricted Units'!$V$7:$V$399=\"50% AMI\"))","v":0},{"$f":"SUMPRODUCT(('2. Assisted & Restricted Units'!$E$7:$E$399=\"2\")*('2. Assisted & Restricted Units'!$U$7:$U$399=\"Other Restr\")*('2. Assisted & Restricted Units'!$V$7:$V$399=\"50% AMI\"))","v":0},{"$f":"SUMPRODUCT(('2. Assisted & Restricted Units'!$E$7:$E$399=\"2\")*('2. Assisted & Restricted Units'!$U$7:$U$399=\"RHCP-B\")*('2. Assisted & Restricted Units'!$V$7:$V$399=\"50% AMI\"))","v":0},{"$f":"SUMPRODUCT(('2. Assisted & Restricted Units'!$E$7:$E$399=\"2\")*('2. Assisted & Restricted Units'!$U$7:$U$399=\"SERA\")*('2. Assisted & Restricted Units'!$V$7:$V$399=\"50% AMI\"))","v":0},{"$f":"SUMPRODUCT(('2. Assisted & Restricted Units'!$E$7:$E$399=\"2\")*('2. Assisted & Restricted Units'!$U$7:$U$399=\"SUHRP\")*('2. Assisted & Restricted Units'!$V$7:$V$399=\"50% AMI\"))","v":0},{"$f":"SUMPRODUCT(('2. Assisted & Restricted Units'!$E$7:$E$399=\"2\")*('2. Assisted & Restricted Units'!$U$7:$U$399=\"TOD\")*('2. Assisted & Restricted Units'!$V$7:$V$399=\"50% AMI\"))","v":0},{"$f":"SUMPRODUCT(('2. Assisted & Restricted Units'!$E$7:$E$399=\"2\")*('2. Assisted & Restricted Units'!$U$7:$U$399=\"707-E\")*('2. Assisted & Restricted Units'!$V$7:$V$399=\"50% AMI\"))","v":0},{"$f":"SUMPRODUCT(('2. Assisted & Restricted Units'!$E$7:$E$399=\"2\")*('2. Assisted & Restricted Units'!$U$7:$U$399=\"707-N\")*('2. Assisted & Restricted Units'!$V$7:$V$399=\"50% AMI\"))","v":0}]
["2 Bedroom 55% AMI",{"$f":"SUMPRODUCT(('2. Assisted & Restricted Units'!$E$7:$E$399=\"2\")*('2. Assisted & Restricted Units'!$U$7:$U$399=\"CALDAP\")*('2. Assisted & Restricted Units'!$V$7:$V$399=\"55% AMI\"))","v":0},{"$f":"SUMPRODUCT(('2. Assisted & Restricted Units'!$E$7:$E$399=\"2\")*('2. Assisted & Restricted Units'!$U$7:$U$399=\"CHRP-R\")*('2. Assisted & Restricted Units'!$V$7:$V$399=\"55% AMI\"))","v":0},{"$f":"SUMPRODUCT(('2. Assisted & Restricted Units'!$E$7:$E$399=\"2\")*('2. Assisted & Restricted Units'!$U$7:$U$399=\"DDS\")*('2. Assisted & Restricted Units'!$V$7:$V$399=\"55% AMI\"))","v":0},{"$f":"SUMPRODUCT(('2. Assisted & Restricted Units'!$E$7:$E$399=\"2\")*('2. Assisted & Restricted Units'!$U$7:$U$399=\"DPRLP\")*('2. Assisted & Restricted Units'!$V$7:$V$399=\"55% AMI\"))","v":0},{"$f":"SUMPRODUCT(('2. Assisted & Restricted Units'!$E$7:$E$399=\"2\")*('2. Assisted & Restricted Units'!$U$7:$U$399=\"FHDP\")*('2. Assisted & Restricted Units'!$V$7:$V$399=\"55% AMI\"))","v":0},{"$f":"SUMPRODUCT(('2. Assisted & Restricted Units'!$E$7:$E$399=\"2\")*('2. Assisted & Restricted Units'!$U$7:$U$399=\"FMTW\")*('2. Assisted & Restricted Units'!$V$7:$V$399=\"55% AMI\"))","v":0},null,{"$f":"SUMPRODUCT(('2. Assisted & Restricted Units'!$E$7:$E$399=\"2\")*('2. Assisted & Restricted Units'!$U$7:$U$399=\"HOME\")*('2. Assisted & Restricted Units'!$V$7:$V$399=\"55% AMI\"))","v":0},{"$f":"SUMPRODUCT(('2. Assisted & Restricted Units'!$E$7:$E$399=\"2\")*('2. Assisted & Restricted Units'!$U$7:$U$399=\"Market Rate\")*('2. Assisted & Restricted Units'!$V$7:$V$399=\"55% AMI\"))","v":0},{"$f":"SUMPRODUCT(('2. Assisted & Restricted Units'!$E$7:$E$399=\"2\")*('2. Assisted & Restricted Units'!$U$7:$U$399=\"MHP\")*('2. Assisted & Restricted Units'!$V$7:$V$399=\"55% AMI\"))","v":0},{"$f":"SUMPRODUCT(('2. Assisted & Restricted Units'!$E$7:$E$399=\"2\")*('2. Assisted & Restricted Units'!$U$7:$U$399=\"NonAssisted\")*('2. Assisted & Restricted Units'!$V$7:$V$399=\"55% AMI\"))","v":0},{"$f":"SUMPRODUCT(('2. Assisted & Restricted Units'!$E$7:$E$399=\"2\")*('2. Assisted & Restricted Units'!$U$7:$U$399=\"Other Restr\")*('2. Assisted & Restricted Units'!$V$7:$V$399=\"55% AMI\"))","v":0},{"$f":"SUMPRODUCT(('2. Assisted & Restricted Units'!$E$7:$E$399=\"2\")*('2. Assisted & Restricted Units'!$U$7:$U$399=\"RHCP-B\")*('2. Assisted & Restricted Units'!$V$7:$V$399=\"55% AMI\"))","v":0},{"$f":"SUMPRODUCT(('2. Assisted & Restricted Units'!$E$7:$E$399=\"2\")*('2. Assisted & Restricted Units'!$U$7:$U$399=\"SERA\")*('2. Assisted & Restricted Units'!$V$7:$V$399=\"55% AMI\"))","v":0},{"$f":"SUMPRODUCT(('2. Assisted & Restricted Units'!$E$7:$E$399=\"2\")*('2. Assisted & Restricted Units'!$U$7:$U$399=\"SUHRP\")*('2. Assisted & Restricted Units'!$V$7:$V$399=\"55% AMI\"))","v":0},{"$f":"SUMPRODUCT(('2. Assisted & Restricted Units'!$E$7:$E$399=\"2\")*('2. Assisted & Restricted Units'!$U$7:$U$399=\"TOD\")*('2. Assisted & Restricted Units'!$V$7:$V$399=\"55% AMI\"))","v":0},{"$f":"SUMPRODUCT(('2. Assisted & Restricted Units'!$E$7:$E$399=\"2\")*('2. Assisted & Restricted Units'!$U$7:$U$399=\"707-E\")*('2. Assisted & Restricted Units'!$V$7:$V$399=\"55% AMI\"))","v":0},{"$f":"SUMPRODUCT(('2. Assisted & Restricted Units'!$E$7:$E$399=\"2\")*('2. Assisted & Restricted Units'!$U$7:$U$399=\"707-N\")*('2. Assisted & Restricted Units'!$V$7:$V$399=\"55% AMI\"))","v":0}]
["2 Bedroom 60% AMI",{"$f":"SUMPRODUCT(('2. Assisted & Restricted Units'!$E$7:$E$399=\"2\")*('2. Assisted & Restricted Units'!$U$7:$U$399=\"CALDAP\")*('2. Assisted & Restricted Units'!$V$7:$V$399=\"60% AMI\"))","v":0},{"$f":"SUMPRODUCT(('2. Assisted & Restricted Units'!$E$7:$E$399=\"2\")*('2. Assisted & Restricted Units'!$U$7:$U$399=\"CHRP-R\")*('2. Assisted & Restricted Units'!$V$7:$V$399=\"60% AMI\"))","v":0},{"$f":"SUMPRODUCT(('2. Assisted & Restricted Units'!$E$7:$E$399=\"2\")*('2. Assisted & Restricted Units'!$U$7:$U$399=\"DDS\")*('2. Assisted & Restricted Units'!$V$7:$V$399=\"60% AMI\"))","v":0},{"$f":"SUMPRODUCT(('2. Assisted & Restricted Units'!$E$7:$E$399=\"2\")*('2. Assisted & Restricted Units'!$U$7:$U$399=\"DPRLP\")*('2. Assisted & Restricted Units'!$V$7:$V$399=\"60% AMI\"))","v":0},{"$f":"SUMPRODUCT(('2. Assisted & Restricted Units'!$E$7:$E$399=\"2\")*('2. Assisted & Restricted Units'!$U$7:$U$399=\"FHDP\")*('2. Assisted & Restricted Units'!$V$7:$V$399=\"60% AMI\"))","v":0},{"$f":"SUMPRODUCT(('2. Assisted & Restricted Units'!$E$7:$E$399=\"2\")*('2. Assisted & Restricted Units'!$U$7:$U$399=\"FMTW\")*('2. Assisted & Restricted Units'!$V$7:$V$399=\"60% AMI\"))","v":0},null,{"$f":"SUMPRODUCT(('2. Assisted & Restricted Units'!$E$7:$E$399=\"2\")*('2. Assisted & Restricted Units'!$U$7:$U$399=\"HOME\")*('2. Assisted & Restricted Units'!$V$7:$V$399=\"60% AMI\"))","v":0},{"$f":"SUMPRODUCT(('2. Assisted & Restricted Units'!$E$7:$E$399=\"2\")*('2. Assisted & Restricted Units'!$U$7:$U$399=\"Market Rate\")*('2. Assisted & Restricted Units'!$V$7:$V$399=\"60% AMI\"))","v":0},{"$f":"SUMPRODUCT(('2. Assisted & Restricted Units'!$E$7:$E$399=\"2\")*('2. Assisted & Restricted Units'!$U$7:$U$399=\"MHP\")*('2. Assisted & Restricted Units'!$V$7:$V$399=\"60% AMI\"))","v":0},{"$f":"SUMPRODUCT(('2. Assisted & Restricted Units'!$E$7:$E$399=\"2\")*('2. Assisted & Restricted Units'!$U$7:$U$399=\"NonAssisted\")*('2. Assisted & Restricted Units'!$V$7:$V$399=\"60% AMI\"))","v":0},{"$f":"SUMPRODUCT(('2. Assisted & Restricted Units'!$E$7:$E$399=\"2\")*('2. Assisted & Restricted Units'!$U$7:$U$399=\"Other Restr\")*('2. Assisted & Restricted Units'!$V$7:$V$399=\"60% AMI\"))","v":0},{"$f":"SUMPRODUCT(('2. Assisted & Restricted Units'!$E$7:$E$399=\"2\")*('2. Assisted & Restricted Units'!$U$7:$U$399=\"RHCP-B\")*('2. Assisted & Restricted Units'!$V$7:$V$399=\"60% AMI\"))","v":0},{"$f":"SUMPRODUCT(('2. Assisted & Restricted Units'!$E$7:$E$399=\"2\")*('2. Assisted & Restricted Units'!$U$7:$U$399=\"SERA\")*('2. Assisted & Restricted Units'!$V$7:$V$399=\"60% AMI\"))","v":0},{"$f":"SUMPRODUCT(('2. Assisted & Restricted Units'!$E$7:$E$399=\"2\")*('2. Assisted & Restricted Units'!$U$7:$U$399=\"SUHRP\")*('2. Assisted & Restricted Units'!$V$7:$V$399=\"60% AMI\"))","v":0},{"$f":"SUMPRODUCT(('2. Assisted & Restricted Units'!$E$7:$E$399=\"2\")*('2. Assisted & Restricted Units'!$U$7:$U$399=\"TOD\")*('2. Assisted & Restricted Units'!$V$7:$V$399=\"60% AMI\"))","v":0},{"$f":"SUMPRODUCT(('2. Assisted & Restricted Units'!$E$7:$E$399=\"2\")*('2. Assisted & Restricted Units'!$U$7:$U$399=\"707-E\")*('2. Assisted & Restricted Units'!$V$7:$V$399=\"60% AMI\"))","v":0},{"$f":"SUMPRODUCT(('2. Assisted & Restricted Units'!$E$7:$E$399=\"2\")*('2. Assisted & Restricted Units'!$U$7:$U$399=\"707-N\")*('2. Assisted & Restricted Units'!$V$7:$V$399=\"60% AMI\"))","v":0}]
["2 Bedroom 80% AMI",{"$f":"SUMPRODUCT(('2. Assisted & Restricted Units'!$E$7:$E$399=\"2\")*('2. Assisted & Restricted Units'!$U$7:$U$399=\"CALDAP\")*('2. Assisted & Restricted Units'!$V$7:$V$399=\"80% AMI\"))","v":0},{"$f":"SUMPRODUCT(('2. Assisted & Restricted Units'!$E$7:$E$399=\"2\")*('2. Assisted & Restricted Units'!$U$7:$U$399=\"CHRP-R\")*('2. Assisted & Restricted Units'!$V$7:$V$399=\"80% AMI\"))","v":0},{"$f":"SUMPRODUCT(('2. Assisted & Restricted Units'!$E$7:$E$399=\"2\")*('2. Assisted & Restricted Units'!$U$7:$U$399=\"DDS\")*('2. Assisted & Restricted Units'!$V$7:$V$399=\"80% AMI\"))","v":0},{"$f":"SUMPRODUCT(('2. Assisted & Restricted Units'!$E$7:$E$399=\"2\")*('2. Assisted & Restricted Units'!$U$7:$U$399=\"DPRLP\")*('2. Assisted & Restricted Units'!$V$7:$V$399=\"80% AMI\"))","v":0},{"$f":"SUMPRODUCT(('2. Assisted & Restricted Units'!$E$7:$E$399=\"2\")*('2. Assisted & Restricted Units'!$U$7:$U$399=\"FHDP\")*('2. Assisted & Restricted Units'!$V$7:$V$399=\"80% AMI\"))","v":0},{"$f":"SUMPRODUCT(('2. Assisted & Restricted Units'!$E$7:$E$399=\"2\")*('2. Assisted & Restricted Units'!$U$7:$U$399=\"FMTW\")*('2. Assisted & Restricted Units'!$V$7:$V$399=\"80% AMI\"))","v":0},null,{"$f":"SUMPRODUCT(('2. Assisted & Restricted Units'!$E$7:$E$399=\"2\")*('2. Assisted & Restricted Units'!$U$7:$U$399=\"HOME\")*('2. Assisted & Restricted Units'!$V$7:$V$399=\"80% AMI\"))","v":0},{"$f":"SUMPRODUCT(('2. Assisted & Restricted Units'!$E$7:$E$399=\"2\")*('2. Assisted & Restricted Units'!$U$7:$U$399=\"Market Rate\")*('2. Assisted & Restricted Units'!$V$7:$V$399=\"80% AMI\"))","v":0},{"$f":"SUMPRODUCT(('2. Assisted & Restricted Units'!$E$7:$E$399=\"2\")*('2. Assisted & Restricted Units'!$U$7:$U$399=\"MHP\")*('2. Assisted & Restricted Units'!$V$7:$V$399=\"80% AMI\"))","v":0},{"$f":"SUMPRODUCT(('2. Assisted & Restricted Units'!$E$7:$E$399=\"2\")*('2. Assisted & Restricted Units'!$U$7:$U$399=\"NonAssisted\")*('2. Assisted & Restricted Units'!$V$7:$V$399=\"80% AMI\"))","v":0},{"$f":"SUMPRODUCT(('2. Assisted & Restricted Units'!$E$7:$E$399=\"2\")*('2. Assisted & Restricted Units'!$U$7:$U$399=\"Other Restr\")*('2. Assisted & Restricted Units'!$V$7:$V$399=\"80% AMI\"))","v":0},{"$f":"SUMPRODUCT(('2. Assisted & Restricted Units'!$E$7:$E$399=\"2\")*('2. Assisted & Restricted Units'!$U$7:$U$399=\"RHCP-B\")*('2. Assisted & Restricted Units'!$V$7:$V$399=\"80% AMI\"))","v":0},{"$f":"SUMPRODUCT(('2. Assisted & Restricted Units'!$E$7:$E$399=\"2\")*('2. Assisted & Restricted Units'!$U$7:$U$399=\"SERA\")*('2. Assisted & Restricted Units'!$V$7:$V$399=\"80% AMI\"))","v":0},{"$f":"SUMPRODUCT(('2. Assisted & Restricted Units'!$E$7:$E$399=\"2\")*('2. Assisted & Restricted Units'!$U$7:$U$399=\"SUHRP\")*('2. Assisted & Restricted Units'!$V$7:$V$399=\"80% AMI\"))","v":0},{"$f":"SUMPRODUCT(('2. Assisted & Restricted Units'!$E$7:$E$399=\"2\")*('2. Assisted & Restricted Units'!$U$7:$U$399=\"TOD\")*('2. Assisted & Restricted Units'!$V$7:$V$399=\"80% AMI\"))","v":0},{"$f":"SUMPRODUCT(('2. Assisted & Restricted Units'!$E$7:$E$399=\"2\")*('2. Assisted & Restricted Units'!$U$7:$U$399=\"707-E\")*('2. Assisted & Restricted Units'!$V$7:$V$399=\"80% AMI\"))","v":0},{"$f":"SUMPRODUCT(('2. Assisted & Restricted Units'!$E$7:$E$399=\"2\")*('2. Assisted & Restricted Units'!$U$7:$U$399=\"707-N\")*('2. Assisted & Restricted Units'!$V$7:$V$399=\"80% AMI\"))","v":0}]
["2 Bedroom 20% SMI",{"$f":"SUMPRODUCT(('2. Assisted & Restricted Units'!$E$7:$E$399=\"2\")*('2. Assisted & Restricted Units'!$U$7:$U$399=\"CALDAP\")*('2. Assisted & Restricted Units'!$V$7:$V$399=\"20% SMI\"))","v":0},{"$f":"SUMPRODUCT(('2. Assisted & Restricted Units'!$E$7:$E$399=\"2\")*('2. Assisted & Restricted Units'!$U$7:$U$399=\"CHRP-R\")*('2. Assisted & Restricted Units'!$V$7:$V$399=\"20% SMI\"))","v":0},{"$f":"SUMPRODUCT(('2. Assisted & Restricted Units'!$E$7:$E$399=\"2\")*('2. Assisted & Restricted Units'!$U$7:$U$399=\"DDS\")*('2. Assisted & Restricted Units'!$V$7:$V$399=\"20% SMI\"))","v":0},{"$f":"SUMPRODUCT(('2. Assisted & Restricted Units'!$E$7:$E$399=\"2\")*('2. Assisted & Restricted Units'!$U$7:$U$399=\"DPRLP\")*('2. Assisted & Restricted Units'!$V$7:$V$399=\"20% SMI\"))","v":0},{"$f":"SUMPRODUCT(('2. Assisted & Restricted Units'!$E$7:$E$399=\"2\")*('2. Assisted & Restricted Units'!$U$7:$U$399=\"FHDP\")*('2. Assisted & Restricted Units'!$V$7:$V$399=\"20% SMI\"))","v":0},{"$f":"SUMPRODUCT(('2. Assisted & Restricted Units'!$E$7:$E$399=\"2\")*('2. Assisted & Restricted Units'!$U$7:$U$399=\"FMTW\")*('2. Assisted & Restricted Units'!$V$7:$V$399=\"20% SMI\"))","v":0},null,{"$f":"SUMPRODUCT(('2. Assisted & Restricted Units'!$E$7:$E$399=\"2\")*('2. Assisted & Restricted Units'!$U$7:$U$399=\"HOME\")*('2. Assisted & Restricted Units'!$V$7:$V$399=\"20% SMI\"))","v":0},{"$f":"SUMPRODUCT(('2. Assisted & Restricted Units'!$E$7:$E$399=\"2\")*('2. Assisted & Restricted Units'!$U$7:$U$399=\"Market Rate\")*('2. Assisted & Restricted Units'!$V$7:$V$399=\"20% SMI\"))","v":0},{"$f":"SUMPRODUCT(('2. Assisted & Restricted Units'!$E$7:$E$399=\"2\")*('2. Assisted & Restricted Units'!$U$7:$U$399=\"MHP\")*('2. Assisted & Restricted Units'!$V$7:$V$399=\"20% SMI\"))","v":0},{"$f":"SUMPRODUCT(('2. Assisted & Restricted Units'!$E$7:$E$399=\"2\")*('2. Assisted & Restricted Units'!$U$7:$U$399=\"NonAssisted\")*('2. Assisted & Restricted Units'!$V$7:$V$399=\"20% SMI\"))","v":0},{"$f":"SUMPRODUCT(('2. Assisted & Restricted Units'!$E$7:$E$399=\"2\")*('2. Assisted & Restricted Units'!$U$7:$U$399=\"Other Restr\")*('2. Assisted & Restricted Units'!$V$7:$V$399=\"20% SMI\"))","v":0},{"$f":"SUMPRODUCT(('2. Assisted & Restricted Units'!$E$7:$E$399=\"2\")*('2. Assisted & Restricted Units'!$U$7:$U$399=\"RHCP-B\")*('2. Assisted & Restricted Units'!$V$7:$V$399=\"20% SMI\"))","v":0},{"$f":"SUMPRODUCT(('2. Assisted & Restricted Units'!$E$7:$E$399=\"2\")*('2. Assisted & Restricted Units'!$U$7:$U$399=\"SERA\")*('2. Assisted & Restricted Units'!$V$7:$V$399=\"20% SMI\"))","v":0},{"$f":"SUMPRODUCT(('2. Assisted & Restricted Units'!$E$7:$E$399=\"2\")*('2. Assisted & Restricted Units'!$U$7:$U$399=\"SUHRP\")*('2. Assisted & Restricted Units'!$V$7:$V$399=\"20% SMI\"))","v":0},{"$f":"SUMPRODUCT(('2. Assisted & Restricted Units'!$E$7:$E$399=\"2\")*('2. Assisted & Restricted Units'!$U$7:$U$399=\"TOD\")*('2. Assisted & Restricted Units'!$V$7:$V$399=\"20% SMI\"))","v":0},{"$f":"SUMPRODUCT(('2. Assisted & Restricted Units'!$E$7:$E$399=\"2\")*('2. Assisted & Restricted Units'!$U$7:$U$399=\"707-E\")*('2. Assisted & Restricted Units'!$V$7:$V$399=\"20% SMI\"))","v":0},{"$f":"SUMPRODUCT(('2. Assisted & Restricted Units'!$E$7:$E$399=\"2\")*('2. Assisted & Restricted Units'!$U$7:$U$399=\"707-N\")*('2. Assisted & Restricted Units'!$V$7:$V$399=\"20% SMI\"))","v":0}]
["2 Bedroom 25% SMI",{"$f":"SUMPRODUCT(('2. Assisted & Restricted Units'!$E$7:$E$399=\"2\")*('2. Assisted & Restricted Units'!$U$7:$U$399=\"CALDAP\")*('2. Assisted & Restricted Units'!$V$7:$V$399=\"25% SMI\"))","v":0},{"$f":"SUMPRODUCT(('2. Assisted & Restricted Units'!$E$7:$E$399=\"2\")*('2. Assisted & Restricted Units'!$U$7:$U$399=\"CHRP-R\")*('2. Assisted & Restricted Units'!$V$7:$V$399=\"25% SMI\"))","v":0},{"$f":"SUMPRODUCT(('2. Assisted & Restricted Units'!$E$7:$E$399=\"2\")*('2. Assisted & Restricted Units'!$U$7:$U$399=\"DDS\")*('2. Assisted & Restricted Units'!$V$7:$V$399=\"25% SMI\"))","v":0},{"$f":"SUMPRODUCT(('2. Assisted & Restricted Units'!$E$7:$E$399=\"2\")*('2. Assisted & Restricted Units'!$U$7:$U$399=\"DPRLP\")*('2. Assisted & Restricted Units'!$V$7:$V$399=\"25% SMI\"))","v":0},{"$f":"SUMPRODUCT(('2. Assisted & Restricted Units'!$E$7:$E$399=\"2\")*('2. Assisted & Restricted Units'!$U$7:$U$399=\"FHDP\")*('2. Assisted & Restricted Units'!$V$7:$V$399=\"25% SMI\"))","v":0},{"$f":"SUMPRODUCT(('2. Assisted & Restricted Units'!$E$7:$E$399=\"2\")*('2. Assisted & Restricted Units'!$U$7:$U$399=\"FMTW\")*('2. Assisted & Restricted Units'!$V$7:$V$399=\"25% SMI\"))","v":0},null,{"$f":"SUMPRODUCT(('2. Assisted & Restricted Units'!$E$7:$E$399=\"2\")*('2. Assisted & Restricted Units'!$U$7:$U$399=\"HOME\")*('2. Assisted & Restricted Units'!$V$7:$V$399=\"25% SMI\"))","v":0},{"$f":"SUMPRODUCT(('2. Assisted & Restricted Units'!$E$7:$E$399=\"2\")*('2. Assisted & Restricted Units'!$U$7:$U$399=\"Market Rate\")*('2. Assisted & Restricted Units'!$V$7:$V$399=\"25% SMI\"))","v":0},{"$f":"SUMPRODUCT(('2. Assisted & Restricted Units'!$E$7:$E$399=\"2\")*('2. Assisted & Restricted Units'!$U$7:$U$399=\"MHP\")*('2. Assisted & Restricted Units'!$V$7:$V$399=\"25% SMI\"))","v":0},{"$f":"SUMPRODUCT(('2. Assisted & Restricted Units'!$E$7:$E$399=\"2\")*('2. Assisted & Restricted Units'!$U$7:$U$399=\"NonAssisted\")*('2. Assisted & Restricted Units'!$V$7:$V$399=\"25% SMI\"))","v":0},{"$f":"SUMPRODUCT(('2. Assisted & Restricted Units'!$E$7:$E$399=\"2\")*('2. Assisted & Restricted Units'!$U$7:$U$399=\"Other Restr\")*('2. Assisted & Restricted Units'!$V$7:$V$399=\"25% SMI\"))","v":0},{"$f":"SUMPRODUCT(('2. Assisted & Restricted Units'!$E$7:$E$399=\"2\")*('2. Assisted & Restricted Units'!$U$7:$U$399=\"RHCP-B\")*('2. Assisted & Restricted Units'!$V$7:$V$399=\"25% SMI\"))","v":0},{"$f":"SUMPRODUCT(('2. Assisted & Restricted Units'!$E$7:$E$399=\"2\")*('2. Assisted & Restricted Units'!$U$7:$U$399=\"SERA\")*('2. Assisted & Restricted Units'!$V$7:$V$399=\"25% SMI\"))","v":0},{"$f":"SUMPRODUCT(('2. Assisted & Restricted Units'!$E$7:$E$399=\"2\")*('2. Assisted & Restricted Units'!$U$7:$U$399=\"SUHRP\")*('2. Assisted & Restricted Units'!$V$7:$V$399=\"25% SMI\"))","v":0},{"$f":"SUMPRODUCT(('2. Assisted & Restricted Units'!$E$7:$E$399=\"2\")*('2. Assisted & Restricted Units'!$U$7:$U$399=\"TOD\")*('2. Assisted & Restricted Units'!$V$7:$V$399=\"25% SMI\"))","v":0},{"$f":"SUMPRODUCT(('2. Assisted & Restricted Units'!$E$7:$E$399=\"2\")*('2. Assisted & Restricted Units'!$U$7:$U$399=\"707-E\")*('2. Assisted & Restricted Units'!$V$7:$V$399=\"25% SMI\"))","v":0},{"$f":"SUMPRODUCT(('2. Assisted & Restricted Units'!$E$7:$E$399=\"2\")*('2. Assisted & Restricted Units'!$U$7:$U$399=\"707-N\")*('2. Assisted & Restricted Units'!$V$7:$V$399=\"25% SMI\"))","v":0}]
["2 Bedroom 30% SMI",{"$f":"SUMPRODUCT(('2. Assisted & Restricted Units'!$E$7:$E$399=\"2\")*('2. Assisted & Restricted Units'!$U$7:$U$399=\"CALDAP\")*('2. Assisted & Restricted Units'!$V$7:$V$399=\"30% SMI\"))","v":0},{"$f":"SUMPRODUCT(('2. Assisted & Restricted Units'!$E$7:$E$399=\"2\")*('2. Assisted & Restricted Units'!$U$7:$U$399=\"CHRP-R\")*('2. Assisted & Restricted Units'!$V$7:$V$399=\"30% SMI\"))","v":0},{"$f":"SUMPRODUCT(('2. Assisted & Restricted Units'!$E$7:$E$399=\"2\")*('2. Assisted & Restricted Units'!$U$7:$U$399=\"DDS\")*('2. Assisted & Restricted Units'!$V$7:$V$399=\"30% SMI\"))","v":0},{"$f":"SUMPRODUCT(('2. Assisted & Restricted Units'!$E$7:$E$399=\"2\")*('2. Assisted & Restricted Units'!$U$7:$U$399=\"DPRLP\")*('2. Assisted & Restricted Units'!$V$7:$V$399=\"30% SMI\"))","v":0},{"$f":"SUMPRODUCT(('2. Assisted & Restricted Units'!$E$7:$E$399=\"2\")*('2. Assisted & Restricted Units'!$U$7:$U$399=\"FHDP\")*('2. Assisted & Restricted Units'!$V$7:$V$399=\"30% SMI\"))","v":0},{"$f":"SUMPRODUCT(('2. Assisted & Restricted Units'!$E$7:$E$399=\"2\")*('2. Assisted & Restricted Units'!$U$7:$U$399=\"FMTW\")*('2. Assisted & Restricted Units'!$V$7:$V$399=\"30% SMI\"))","v":0},null,{"$f":"SUMPRODUCT(('2. Assisted & Restricted Units'!$E$7:$E$399=\"2\")*('2. Assisted & Restricted Units'!$U$7:$U$399=\"HOME\")*('2. Assisted & Restricted Units'!$V$7:$V$399=\"30% SMI\"))","v":0},{"$f":"SUMPRODUCT(('2. Assisted & Restricted Units'!$E$7:$E$399=\"2\")*('2. Assisted & Restricted Units'!$U$7:$U$399=\"Market Rate\")*('2. Assisted & Restricted Units'!$V$7:$V$399=\"30% SMI\"))","v":0},{"$f":"SUMPRODUCT(('2. Assisted & Restricted Units'!$E$7:$E$399=\"2\")*('2. Assisted & Restricted Units'!$U$7:$U$399=\"MHP\")*('2. Assisted & Restricted Units'!$V$7:$V$399=\"30% SMI\"))","v":0},{"$f":"SUMPRODUCT(('2. Assisted & Restricted Units'!$E$7:$E$399=\"2\")*('2. Assisted & Restricted Units'!$U$7:$U$399=\"NonAssisted\")*('2. Assisted & Restricted Units'!$V$7:$V$399=\"30% SMI\"))","v":0},{"$f":"SUMPRODUCT(('2. Assisted & Restricted Units'!$E$7:$E$399=\"2\")*('2. Assisted & Restricted Units'!$U$7:$U$399=\"Other Restr\")*('2. Assisted & Restricted Units'!$V$7:$V$399=\"30% SMI\"))","v":0},{"$f":"SUMPRODUCT(('2. Assisted & Restricted Units'!$E$7:$E$399=\"2\")*('2. Assisted & Restricted Units'!$U$7:$U$399=\"RHCP-B\")*('2. Assisted & Restricted Units'!$V$7:$V$399=\"30% SMI\"))","v":0},{"$f":"SUMPRODUCT(('2. Assisted & Restricted Units'!$E$7:$E$399=\"2\")*('2. Assisted & Restricted Units'!$U$7:$U$399=\"SERA\")*('2. Assisted & Restricted Units'!$V$7:$V$399=\"30% SMI\"))","v":0},{"$f":"SUMPRODUCT(('2. Assisted & Restricted Units'!$E$7:$E$399=\"2\")*('2. Assisted & Restricted Units'!$U$7:$U$399=\"SUHRP\")*('2. Assisted & Restricted Units'!$V$7:$V$399=\"30% SMI\"))","v":0},{"$f":"SUMPRODUCT(('2. Assisted & Restricted Units'!$E$7:$E$399=\"2\")*('2. Assisted & Restricted Units'!$U$7:$U$399=\"TOD\")*('2. Assisted & Restricted Units'!$V$7:$V$399=\"30% SMI\"))","v":0},{"$f":"SUMPRODUCT(('2. Assisted & Restricted Units'!$E$7:$E$399=\"2\")*('2. Assisted & Restricted Units'!$U$7:$U$399=\"707-E\")*('2. Assisted & Restricted Units'!$V$7:$V$399=\"30% SMI\"))","v":0},{"$f":"SUMPRODUCT(('2. Assisted & Restricted Units'!$E$7:$E$399=\"2\")*('2. Assisted & Restricted Units'!$U$7:$U$399=\"707-N\")*('2. Assisted & Restricted Units'!$V$7:$V$399=\"30% SMI\"))","v":0}]
["2 Bedroom 35% SMI",{"$f":"SUMPRODUCT(('2. Assisted & Restricted Units'!$E$7:$E$399=\"2\")*('2. Assisted & Restricted Units'!$U$7:$U$399=\"CALDAP\")*('2. Assisted & Restricted Units'!$V$7:$V$399=\"35% SMI\"))","v":0},{"$f":"SUMPRODUCT(('2. Assisted & Restricted Units'!$E$7:$E$399=\"2\")*('2. Assisted & Restricted Units'!$U$7:$U$399=\"CHRP-R\")*('2. Assisted & Restricted Units'!$V$7:$V$399=\"35% SMI\"))","v":0},{"$f":"SUMPRODUCT(('2. Assisted & Restricted Units'!$E$7:$E$399=\"2\")*('2. Assisted & Restricted Units'!$U$7:$U$399=\"DDS\")*('2. Assisted & Restricted Units'!$V$7:$V$399=\"35% SMI\"))","v":0},{"$f":"SUMPRODUCT(('2. Assisted & Restricted Units'!$E$7:$E$399=\"2\")*('2. Assisted & Restricted Units'!$U$7:$U$399=\"DPRLP\")*('2. Assisted & Restricted Units'!$V$7:$V$399=\"35% SMI\"))","v":0},{"$f":"SUMPRODUCT(('2. Assisted & Restricted Units'!$E$7:$E$399=\"2\")*('2. Assisted & Restricted Units'!$U$7:$U$399=\"FHDP\")*('2. Assisted & Restricted Units'!$V$7:$V$399=\"35% SMI\"))","v":0},{"$f":"SUMPRODUCT(('2. Assisted & Restricted Units'!$E$7:$E$399=\"2\")*('2. Assisted & Restricted Units'!$U$7:$U$399=\"FMTW\")*('2. Assisted & Restricted Units'!$V$7:$V$399=\"35% SMI\"))","v":0},null,{"$f":"SUMPRODUCT(('2. Assisted & Restricted Units'!$E$7:$E$399=\"2\")*('2. Assisted & Restricted Units'!$U$7:$U$399=\"HOME\")*('2. Assisted & Restricted Units'!$V$7:$V$399=\"35% SMI\"))","v":0},{"$f":"SUMPRODUCT(('2. Assisted & Restricted Units'!$E$7:$E$399=\"2\")*('2. Assisted & Restricted Units'!$U$7:$U$399=\"Market Rate\")*('2. Assisted & Restricted Units'!$V$7:$V$399=\"35% SMI\"))","v":0},{"$f":"SUMPRODUCT(('2. Assisted & Restricted Units'!$E$7:$E$399=\"2\")*('2. Assisted & Restricted Units'!$U$7:$U$399=\"MHP\")*('2. Assisted & Restricted Units'!$V$7:$V$399=\"35% SMI\"))","v":0},{"$f":"SUMPRODUCT(('2. Assisted & Restricted Units'!$E$7:$E$399=\"2\")*('2. Assisted & Restricted Units'!$U$7:$U$399=\"NonAssisted\")*('2. Assisted & Restricted Units'!$V$7:$V$399=\"35% SMI\"))","v":0},{"$f":"SUMPRODUCT(('2. Assisted & Restricted Units'!$E$7:$E$399=\"2\")*('2. Assisted & Restricted Units'!$U$7:$U$399=\"Other Restr\")*('2. Assisted & Restricted Units'!$V$7:$V$399=\"35% SMI\"))","v":0},{"$f":"SUMPRODUCT(('2. Assisted & Restricted Units'!$E$7:$E$399=\"2\")*('2. Assisted & Restricted Units'!$U$7:$U$399=\"RHCP-B\")*('2. Assisted & Restricted Units'!$V$7:$V$399=\"35% SMI\"))","v":0},{"$f":"SUMPRODUCT(('2. Assisted & Restricted Units'!$E$7:$E$399=\"2\")*('2. Assisted & Restricted Units'!$U$7:$U$399=\"SERA\")*('2. Assisted & Restricted Units'!$V$7:$V$399=\"35% SMI\"))","v":0},{"$f":"SUMPRODUCT(('2. Assisted & Restricted Units'!$E$7:$E$399=\"2\")*('2. Assisted & Restricted Units'!$U$7:$U$399=\"SUHRP\")*('2. Assisted & Restricted Units'!$V$7:$V$399=\"35% SMI\"))","v":0},{"$f":"SUMPRODUCT(('2. Assisted & Restricted Units'!$E$7:$E$399=\"2\")*('2. Assisted & Restricted Units'!$U$7:$U$399=\"TOD\")*('2. Assisted & Restricted Units'!$V$7:$V$399=\"35% SMI\"))","v":0},{"$f":"SUMPRODUCT(('2. Assisted & Restricted Units'!$E$7:$E$399=\"2\")*('2. Assisted & Restricted Units'!$U$7:$U$399=\"707-E\")*('2. Assisted & Restricted Units'!$V$7:$V$399=\"35% SMI\"))","v":0},{"$f":"SUMPRODUCT(('2. Assisted & Restricted Units'!$E$7:$E$399=\"2\")*('2. Assisted & Restricted Units'!$U$7:$U$399=\"707-N\")*('2. Assisted & Restricted Units'!$V$7:$V$399=\"35% SMI\"))","v":0}]
["2 Bedroom 40% SMI",{"$f":"SUMPRODUCT(('2. Assisted & Restricted Units'!$E$7:$E$399=\"2\")*('2. Assisted & Restricted Units'!$U$7:$U$399=\"CALDAP\")*('2. Assisted & Restricted Units'!$V$7:$V$399=\"40% SMI\"))","v":0},{"$f":"SUMPRODUCT(('2. Assisted & Restricted Units'!$E$7:$E$399=\"2\")*('2. Assisted & Restricted Units'!$U$7:$U$399=\"CHRP-R\")*('2. Assisted & Restricted Units'!$V$7:$V$399=\"40% SMI\"))","v":0},{"$f":"SUMPRODUCT(('2. Assisted & Restricted Units'!$E$7:$E$399=\"2\")*('2. Assisted & Restricted Units'!$U$7:$U$399=\"DDS\")*('2. Assisted & Restricted Units'!$V$7:$V$399=\"40% SMI\"))","v":0},{"$f":"SUMPRODUCT(('2. Assisted & Restricted Units'!$E$7:$E$399=\"2\")*('2. Assisted & Restricted Units'!$U$7:$U$399=\"DPRLP\")*('2. Assisted & Restricted Units'!$V$7:$V$399=\"40% SMI\"))","v":0},{"$f":"SUMPRODUCT(('2. Assisted & Restricted Units'!$E$7:$E$399=\"2\")*('2. Assisted & Restricted Units'!$U$7:$U$399=\"FHDP\")*('2. Assisted & Restricted Units'!$V$7:$V$399=\"40% SMI\"))","v":0},{"$f":"SUMPRODUCT(('2. Assisted & Restricted Units'!$E$7:$E$399=\"2\")*('2. Assisted & Restricted Units'!$U$7:$U$399=\"FMTW\")*('2. Assisted & Restricted Units'!$V$7:$V$399=\"40% SMI\"))","v":0},null,{"$f":"SUMPRODUCT(('2. Assisted & Restricted Units'!$E$7:$E$399=\"2\")*('2. Assisted & Restricted Units'!$U$7:$U$399=\"HOME\")*('2. Assisted & Restricted Units'!$V$7:$V$399=\"40% SMI\"))","v":0},{"$f":"SUMPRODUCT(('2. Assisted & Restricted Units'!$E$7:$E$399=\"2\")*('2. Assisted & Restricted Units'!$U$7:$U$399=\"Market Rate\")*('2. Assisted & Restricted Units'!$V$7:$V$399=\"40% SMI\"))","v":0},{"$f":"SUMPRODUCT(('2. Assisted & Restricted Units'!$E$7:$E$399=\"2\")*('2. Assisted & Restricted Units'!$U$7:$U$399=\"MHP\")*('2. Assisted & Restricted Units'!$V$7:$V$399=\"40% SMI\"))","v":0},{"$f":"SUMPRODUCT(('2. Assisted & Restricted Units'!$E$7:$E$399=\"2\")*('2. Assisted & Restricted Units'!$U$7:$U$399=\"NonAssisted\")*('2. Assisted & Restricted Units'!$V$7:$V$399=\"40% SMI\"))","v":0},{"$f":"SUMPRODUCT(('2. Assisted & Restricted Units'!$E$7:$E$399=\"2\")*('2. Assisted & Restricted Units'!$U$7:$U$399=\"Other Restr\")*('2. Assisted & Restricted Units'!$V$7:$V$399=\"40% SMI\"))","v":0},{"$f":"SUMPRODUCT(('2. Assisted & Restricted Units'!$E$7:$E$399=\"2\")*('2. Assisted & Restricted Units'!$U$7:$U$399=\"RHCP-B\")*('2. Assisted & Restricted Units'!$V$7:$V$399=\"40% SMI\"))","v":0},{"$f":"SUMPRODUCT(('2. Assisted & Restricted Units'!$E$7:$E$399=\"2\")*('2. Assisted & Restricted Units'!$U$7:$U$399=\"SERA\")*('2. Assisted & Restricted Units'!$V$7:$V$399=\"40% SMI\"))","v":0},{"$f":"SUMPRODUCT(('2. Assisted & Restricted Units'!$E$7:$E$399=\"2\")*('2. Assisted & Restricted Units'!$U$7:$U$399=\"SUHRP\")*('2. Assisted & Restricted Units'!$V$7:$V$399=\"40% SMI\"))","v":0},{"$f":"SUMPRODUCT(('2. Assisted & Restricted Units'!$E$7:$E$399=\"2\")*('2. Assisted & Restricted Units'!$U$7:$U$399=\"TOD\")*('2. Assisted & Restricted Units'!$V$7:$V$399=\"40% SMI\"))","v":0},{"$f":"SUMPRODUCT(('2. Assisted & Restricted Units'!$E$7:$E$399=\"2\")*('2. Assisted & Restricted Units'!$U$7:$U$399=\"707-E\")*('2. Assisted & Restricted Units'!$V$7:$V$399=\"40% SMI\"))","v":0},{"$f":"SUMPRODUCT(('2. Assisted & Restricted Units'!$E$7:$E$399=\"2\")*('2. Assisted & Restricted Units'!$U$7:$U$399=\"707-N\")*('2. Assisted & Restricted Units'!$V$7:$V$399=\"40% SMI\"))","v":0}]
["2 Bedroom 45% SMI",{"$f":"SUMPRODUCT(('2. Assisted & Restricted Units'!$E$7:$E$399=\"2\")*('2. Assisted & Restricted Units'!$U$7:$U$399=\"CALDAP\")*('2. Assisted & Restricted Units'!$V$7:$V$399=\"45% SMI\"))","v":0},{"$f":"SUMPRODUCT(('2. Assisted & Restricted Units'!$E$7:$E$399=\"2\")*('2. Assisted & Restricted Units'!$U$7:$U$399=\"CHRP-R\")*('2. Assisted & Restricted Units'!$V$7:$V$399=\"45% SMI\"))","v":0},{"$f":"SUMPRODUCT(('2. Assisted & Restricted Units'!$E$7:$E$399=\"2\")*('2. Assisted & Restricted Units'!$U$7:$U$399=\"DDS\")*('2. Assisted & Restricted Units'!$V$7:$V$399=\"45% SMI\"))","v":0},{"$f":"SUMPRODUCT(('2. Assisted & Restricted Units'!$E$7:$E$399=\"2\")*('2. Assisted & Restricted Units'!$U$7:$U$399=\"DPRLP\")*('2. Assisted & Restricted Units'!$V$7:$V$399=\"45% SMI\"))","v":0},{"$f":"SUMPRODUCT(('2. Assisted & Restricted Units'!$E$7:$E$399=\"2\")*('2. Assisted & Restricted Units'!$U$7:$U$399=\"FHDP\")*('2. Assisted & Restricted Units'!$V$7:$V$399=\"45% SMI\"))","v":0},{"$f":"SUMPRODUCT(('2. Assisted & Restricted Units'!$E$7:$E$399=\"2\")*('2. Assisted & Restricted Units'!$U$7:$U$399=\"FMTW\")*('2. Assisted & Restricted Units'!$V$7:$V$399=\"45% SMI\"))","v":0},null,{"$f":"SUMPRODUCT(('2. Assisted & Restricted Units'!$E$7:$E$399=\"2\")*('2. Assisted & Restricted Units'!$U$7:$U$399=\"HOME\")*('2. Assisted & Restricted Units'!$V$7:$V$399=\"45% SMI\"))","v":0},{"$f":"SUMPRODUCT(('2. Assisted & Restricted Units'!$E$7:$E$399=\"2\")*('2. Assisted & Restricted Units'!$U$7:$U$399=\"Market Rate\")*('2. Assisted & Restricted Units'!$V$7:$V$399=\"45% SMI\"))","v":0},{"$f":"SUMPRODUCT(('2. Assisted & Restricted Units'!$E$7:$E$399=\"2\")*('2. Assisted & Restricted Units'!$U$7:$U$399=\"MHP\")*('2. Assisted & Restricted Units'!$V$7:$V$399=\"45% SMI\"))","v":0},{"$f":"SUMPRODUCT(('2. Assisted & Restricted Units'!$E$7:$E$399=\"2\")*('2. Assisted & Restricted Units'!$U$7:$U$399=\"NonAssisted\")*('2. Assisted & Restricted Units'!$V$7:$V$399=\"45% SMI\"))","v":0},{"$f":"SUMPRODUCT(('2. Assisted & Restricted Units'!$E$7:$E$399=\"2\")*('2. Assisted & Restricted Units'!$U$7:$U$399=\"Other Restr\")*('2. Assisted & Restricted Units'!$V$7:$V$399=\"45% SMI\"))","v":0},{"$f":"SUMPRODUCT(('2. Assisted & Restricted Units'!$E$7:$E$399=\"2\")*('2. Assisted & Restricted Units'!$U$7:$U$399=\"RHCP-B\")*('2. Assisted & Restricted Units'!$V$7:$V$399=\"45% SMI\"))","v":0},{"$f":"SUMPRODUCT(('2. Assisted & Restricted Units'!$E$7:$E$399=\"2\")*('2. Assisted & Restricted Units'!$U$7:$U$399=\"SERA\")*('2. Assisted & Restricted Units'!$V$7:$V$399=\"45% SMI\"))","v":0},{"$f":"SUMPRODUCT(('2. Assisted & Restricted Units'!$E$7:$E$399=\"2\")*('2. Assisted & Restricted Units'!$U$7:$U$399=\"SUHRP\")*('2. Assisted & Restricted Units'!$V$7:$V$399=\"45% SMI\"))","v":0},{"$f":"SUMPRODUCT(('2. Assisted & Restricted Units'!$E$7:$E$399=\"2\")*('2. Assisted & Restricted Units'!$U$7:$U$399=\"TOD\")*('2. Assisted & Restricted Units'!$V$7:$V$399=\"45% SMI\"))","v":0},{"$f":"SUMPRODUCT(('2. Assisted & Restricted Units'!$E$7:$E$399=\"2\")*('2. Assisted & Restricted Units'!$U$7:$U$399=\"707-E\")*('2. Assisted & Restricted Units'!$V$7:$V$399=\"45% SMI\"))","v":0},{"$f":"SUMPRODUCT(('2. Assisted & Restricted Units'!$E$7:$E$399=\"2\")*('2. Assisted & Restricted Units'!$U$7:$U$399=\"707-N\")*('2. Assisted & Restricted Units'!$V$7:$V$399=\"45% SMI\"))","v":0}]
["2 Bedroom 50% SMI",{"$f":"SUMPRODUCT(('2. Assisted & Restricted Units'!$E$7:$E$399=\"2\")*('2. Assisted & Restricted Units'!$U$7:$U$399=\"CALDAP\")*('2. Assisted & Restricted Units'!$V$7:$V$399=\"50% SMI\"))","v":0},{"$f":"SUMPRODUCT(('2. Assisted & Restricted Units'!$E$7:$E$399=\"2\")*('2. Assisted & Restricted Units'!$U$7:$U$399=\"CHRP-R\")*('2. Assisted & Restricted Units'!$V$7:$V$399=\"50% SMI\"))","v":0},{"$f":"SUMPRODUCT(('2. Assisted & Restricted Units'!$E$7:$E$399=\"2\")*('2. Assisted & Restricted Units'!$U$7:$U$399=\"DDS\")*('2. Assisted & Restricted Units'!$V$7:$V$399=\"50% SMI\"))","v":0},{"$f":"SUMPRODUCT(('2. Assisted & Restricted Units'!$E$7:$E$399=\"2\")*('2. Assisted & Restricted Units'!$U$7:$U$399=\"DPRLP\")*('2. Assisted & Restricted Units'!$V$7:$V$399=\"50% SMI\"))","v":0},{"$f":"SUMPRODUCT(('2. Assisted & Restricted Units'!$E$7:$E$399=\"2\")*('2. Assisted & Restricted Units'!$U$7:$U$399=\"FHDP\")*('2. Assisted & Restricted Units'!$V$7:$V$399=\"50% SMI\"))","v":0},{"$f":"SUMPRODUCT(('2. Assisted & Restricted Units'!$E$7:$E$399=\"2\")*('2. Assisted & Restricted Units'!$U$7:$U$399=\"FMTW\")*('2. Assisted & Restricted Units'!$V$7:$V$399=\"50% SMI\"))","v":0},null,{"$f":"SUMPRODUCT(('2. Assisted & Restricted Units'!$E$7:$E$399=\"2\")*('2. Assisted & Restricted Units'!$U$7:$U$399=\"HOME\")*('2. Assisted & Restricted Units'!$V$7:$V$399=\"50% SMI\"))","v":0},{"$f":"SUMPRODUCT(('2. Assisted & Restricted Units'!$E$7:$E$399=\"2\")*('2. Assisted & Restricted Units'!$U$7:$U$399=\"Market Rate\")*('2. Assisted & Restricted Units'!$V$7:$V$399=\"50% SMI\"))","v":0},{"$f":"SUMPRODUCT(('2. Assisted & Restricted Units'!$E$7:$E$399=\"2\")*('2. Assisted & Restricted Units'!$U$7:$U$399=\"MHP\")*('2. Assisted & Restricted Units'!$V$7:$V$399=\"50% SMI\"))","v":0},{"$f":"SUMPRODUCT(('2. Assisted & Restricted Units'!$E$7:$E$399=\"2\")*('2. Assisted & Restricted Units'!$U$7:$U$399=\"NonAssisted\")*('2. Assisted & Restricted Units'!$V$7:$V$399=\"50% SMI\"))","v":0},{"$f":"SUMPRODUCT(('2. Assisted & Restricted Units'!$E$7:$E$399=\"2\")*('2. Assisted & Restricted Units'!$U$7:$U$399=\"Other Restr\")*('2. Assisted & Restricted Units'!$V$7:$V$399=\"50% SMI\"))","v":0},{"$f":"SUMPRODUCT(('2. Assisted & Restricted Units'!$E$7:$E$399=\"2\")*('2. Assisted & Restricted Units'!$U$7:$U$399=\"RHCP-B\")*('2. Assisted & Restricted Units'!$V$7:$V$399=\"50% SMI\"))","v":0},{"$f":"SUMPRODUCT(('2. Assisted & Restricted Units'!$E$7:$E$399=\"2\")*('2. Assisted & Restricted Units'!$U$7:$U$399=\"SERA\")*('2. Assisted & Restricted Units'!$V$7:$V$399=\"50% SMI\"))","v":0},{"$f":"SUMPRODUCT(('2. Assisted & Restricted Units'!$E$7:$E$399=\"2\")*('2. Assisted & Restricted Units'!$U$7:$U$399=\"SUHRP\")*('2. Assisted & Restricted Units'!$V$7:$V$399=\"50% SMI\"))","v":0},{"$f":"SUMPRODUCT(('2. Assisted & Restricted Units'!$E$7:$E$399=\"2\")*('2. Assisted & Restricted Units'!$U$7:$U$399=\"TOD\")*('2. Assisted & Restricted Units'!$V$7:$V$399=\"50% SMI\"))","v":0},{"$f":"SUMPRODUCT(('2. Assisted & Restricted Units'!$E$7:$E$399=\"2\")*('2. Assisted & Restricted Units'!$U$7:$U$399=\"707-E\")*('2. Assisted & Restricted Units'!$V$7:$V$399=\"50% SMI\"))","v":0},{"$f":"SUMPRODUCT(('2. Assisted & Restricted Units'!$E$7:$E$399=\"2\")*('2. Assisted & Restricted Units'!$U$7:$U$399=\"707-N\")*('2. Assisted & Restricted Units'!$V$7:$V$399=\"50% SMI\"))","v":0}]
["2 Bedroom 100% SMI",{"$f":"SUMPRODUCT(('2. Assisted & Restricted Units'!$E$7:$E$399=\"2\")*('2. Assisted & Restricted Units'!$U$7:$U$399=\"CALDAP\")*('2. Assisted & Restricted Units'!$V$7:$V$399=\"100% SMI\"))","v":0},{"$f":"SUMPRODUCT(('2. Assisted & Restricted Units'!$E$7:$E$399=\"2\")*('2. Assisted & Restricted Units'!$U$7:$U$399=\"CHRP-R\")*('2. Assisted & Restricted Units'!$V$7:$V$399=\"100% SMI\"))","v":0},{"$f":"SUMPRODUCT(('2. Assisted & Restricted Units'!$E$7:$E$399=\"2\")*('2. Assisted & Restricted Units'!$U$7:$U$399=\"DDS\")*('2. Assisted & Restricted Units'!$V$7:$V$399=\"100% SMI\"))","v":0},{"$f":"SUMPRODUCT(('2. Assisted & Restricted Units'!$E$7:$E$399=\"2\")*('2. Assisted & Restricted Units'!$U$7:$U$399=\"DPRLP\")*('2. Assisted & Restricted Units'!$V$7:$V$399=\"100% SMI\"))","v":0},{"$f":"SUMPRODUCT(('2. Assisted & Restricted Units'!$E$7:$E$399=\"2\")*('2. Assisted & Restricted Units'!$U$7:$U$399=\"FHDP\")*('2. Assisted & Restricted Units'!$V$7:$V$399=\"100% SMI\"))","v":0},{"$f":"SUMPRODUCT(('2. Assisted & Restricted Units'!$E$7:$E$399=\"2\")*('2. Assisted & Restricted Units'!$U$7:$U$399=\"FMTW\")*('2. Assisted & Restricted Units'!$V$7:$V$399=\"100% SMI\"))","v":0},null,{"$f":"SUMPRODUCT(('2. Assisted & Restricted Units'!$E$7:$E$399=\"2\")*('2. Assisted & Restricted Units'!$U$7:$U$399=\"HOME\")*('2. Assisted & Restricted Units'!$V$7:$V$399=\"100% SMI\"))","v":0},{"$f":"SUMPRODUCT(('2. Assisted & Restricted Units'!$E$7:$E$399=\"2\")*('2. Assisted & Restricted Units'!$U$7:$U$399=\"Market Rate\")*('2. Assisted & Restricted Units'!$V$7:$V$399=\"100% SMI\"))","v":0},{"$f":"SUMPRODUCT(('2. Assisted & Restricted Units'!$E$7:$E$399=\"2\")*('2. Assisted & Restricted Units'!$U$7:$U$399=\"MHP\")*('2. Assisted & Restricted Units'!$V$7:$V$399=\"100% SMI\"))","v":0},{"$f":"SUMPRODUCT(('2. Assisted & Restricted Units'!$E$7:$E$399=\"2\")*('2. Assisted & Restricted Units'!$U$7:$U$399=\"NonAssisted\")*('2. Assisted & Restricted Units'!$V$7:$V$399=\"100% SMI\"))","v":0},{"$f":"SUMPRODUCT(('2. Assisted & Restricted Units'!$E$7:$E$399=\"2\")*('2. Assisted & Restricted Units'!$U$7:$U$399=\"Other Restr\")*('2. Assisted & Restricted Units'!$V$7:$V$399=\"100% SMI\"))","v":0},{"$f":"SUMPRODUCT(('2. Assisted & Restricted Units'!$E$7:$E$399=\"2\")*('2. Assisted & Restricted Units'!$U$7:$U$399=\"RHCP-B\")*('2. Assisted & Restricted Units'!$V$7:$V$399=\"100% SMI\"))","v":0},{"$f":"SUMPRODUCT(('2. Assisted & Restricted Units'!$E$7:$E$399=\"2\")*('2. Assisted & Restricted Units'!$U$7:$U$399=\"SERA\")*('2. Assisted & Restricted Units'!$V$7:$V$399=\"100% SMI\"))","v":0},{"$f":"SUMPRODUCT(('2. Assisted & Restricted Units'!$E$7:$E$399=\"2\")*('2. Assisted & Restricted Units'!$U$7:$U$399=\"SUHRP\")*('2. Assisted & Restricted Units'!$V$7:$V$399=\"100% SMI\"))","v":0},{"$f":"SUMPRODUCT(('2. Assisted & Restricted Units'!$E$7:$E$399=\"2\")*('2. Assisted & Restricted Units'!$U$7:$U$399=\"TOD\")*('2. Assisted & Restricted Units'!$V$7:$V$399=\"100% SMI\"))","v":0},{"$f":"SUMPRODUCT(('2. Assisted & Restricted Units'!$E$7:$E$399=\"2\")*('2. Assisted & Restricted Units'!$U$7:$U$399=\"707-E\")*('2. Assisted & Restricted Units'!$V$7:$V$399=\"100% SMI\"))","v":0},{"$f":"SUMPRODUCT(('2. Assisted & Restricted Units'!$E$7:$E$399=\"2\")*('2. Assisted & Restricted Units'!$U$7:$U$399=\"707-N\")*('2. Assisted & Restricted Units'!$V$7:$V$399=\"100% SMI\"))","v":0}]
["2 Bedroom VLI HOME",{"$f":"SUMPRODUCT(('2. Assisted & Restricted Units'!$E$7:$E$399=\"2\")*('2. Assisted & Restricted Units'!$U$7:$U$399=\"CALDAP\")*('2. Assisted & Restricted Units'!$V$7:$V$399=\"VLI HOME\"))","v":0},{"$f":"SUMPRODUCT(('2. Assisted & Restricted Units'!$E$7:$E$399=\"2\")*('2. Assisted & Restricted Units'!$U$7:$U$399=\"CHRP-R\")*('2. Assisted & Restricted Units'!$V$7:$V$399=\"VLI HOME\"))","v":0},{"$f":"SUMPRODUCT(('2. Assisted & Restricted Units'!$E$7:$E$399=\"2\")*('2. Assisted & Restricted Units'!$U$7:$U$399=\"DDS\")*('2. Assisted & Restricted Units'!$V$7:$V$399=\"VLI HOME\"))","v":0},{"$f":"SUMPRODUCT(('2. Assisted & Restricted Units'!$E$7:$E$399=\"2\")*('2. Assisted & Restricted Units'!$U$7:$U$399=\"DPRLP\")*('2. Assisted & Restricted Units'!$V$7:$V$399=\"VLI HOME\"))","v":0},{"$f":"SUMPRODUCT(('2. Assisted & Restricted Units'!$E$7:$E$399=\"2\")*('2. Assisted & Restricted Units'!$U$7:$U$399=\"FHDP\")*('2. Assisted & Restricted Units'!$V$7:$V$399=\"VLI HOME\"))","v":0},{"$f":"SUMPRODUCT(('2. Assisted & Restricted Units'!$E$7:$E$399=\"2\")*('2. Assisted & Restricted Units'!$U$7:$U$399=\"FMTW\")*('2. Assisted & Restricted Units'!$V$7:$V$399=\"VLI HOME\"))","v":0},null,{"$f":"SUMPRODUCT(('2. Assisted & Restricted Units'!$E$7:$E$399=\"2\")*('2. Assisted & Restricted Units'!$U$7:$U$399=\"HOME\")*('2. Assisted & Restricted Units'!$V$7:$V$399=\"VLI HOME\"))","v":0},{"$f":"SUMPRODUCT(('2. Assisted & Restricted Units'!$E$7:$E$399=\"2\")*('2. Assisted & Restricted Units'!$U$7:$U$399=\"Market Rate\")*('2. Assisted & Restricted Units'!$V$7:$V$399=\"VLI HOME\"))","v":0},{"$f":"SUMPRODUCT(('2. Assisted & Restricted Units'!$E$7:$E$399=\"2\")*('2. Assisted & Restricted Units'!$U$7:$U$399=\"MHP\")*('2. Assisted & Restricted Units'!$V$7:$V$399=\"VLI HOME\"))","v":0},{"$f":"SUMPRODUCT(('2. Assisted & Restricted Units'!$E$7:$E$399=\"2\")*('2. Assisted & Restricted Units'!$U$7:$U$399=\"NonAssisted\")*('2. Assisted & Restricted Units'!$V$7:$V$399=\"VLI HOME\"))","v":0},{"$f":"SUMPRODUCT(('2. Assisted & Restricted Units'!$E$7:$E$399=\"2\")*('2. Assisted & Restricted Units'!$U$7:$U$399=\"Other Restr\")*('2. Assisted & Restricted Units'!$V$7:$V$399=\"VLI HOME\"))","v":0},{"$f":"SUMPRODUCT(('2. Assisted & Restricted Units'!$E$7:$E$399=\"2\")*('2. Assisted & Restricted Units'!$U$7:$U$399=\"RHCP-B\")*('2. Assisted & Restricted Units'!$V$7:$V$399=\"VLI HOME\"))","v":0},{"$f":"SUMPRODUCT(('2. Assisted & Restricted Units'!$E$7:$E$399=\"2\")*('2. Assisted & Restricted Units'!$U$7:$U$399=\"SERA\")*('2. Assisted & Restricted Units'!$V$7:$V$399=\"VLI HOME\"))","v":0},{"$f":"SUMPRODUCT(('2. Assisted & Restricted Units'!$E$7:$E$399=\"2\")*('2. Assisted & Restricted Units'!$U$7:$U$399=\"SUHRP\")*('2. Assisted & Restricted Units'!$V$7:$V$399=\"VLI HOME\"))","v":0},{"$f":"SUMPRODUCT(('2. Assisted & Restricted Units'!$E$7:$E$399=\"2\")*('2. Assisted & Restricted Units'!$U$7:$U$399=\"TOD\")*('2. Assisted & Restricted Units'!$V$7:$V$399=\"VLI HOME\"))","v":0},{"$f":"SUMPRODUCT(('2. Assisted & Restricted Units'!$E$7:$E$399=\"2\")*('2. Assisted & Restricted Units'!$U$7:$U$399=\"707-E\")*('2. Assisted & Restricted Units'!$V$7:$V$399=\"VLI HOME\"))","v":0},{"$f":"SUMPRODUCT(('2. Assisted & Restricted Units'!$E$7:$E$399=\"2\")*('2. Assisted & Restricted Units'!$U$7:$U$399=\"707-N\")*('2. Assisted & Restricted Units'!$V$7:$V$399=\"VLI HOME\"))","v":0}]
["2 Bedroom LI HOME",{"$f":"SUMPRODUCT(('2. Assisted & Restricted Units'!$E$7:$E$399=\"2\")*('2. Assisted & Restricted Units'!$U$7:$U$399=\"CALDAP\")*('2. Assisted & Restricted Units'!$V$7:$V$399=\"LI HOME\"))","v":0},{"$f":"SUMPRODUCT(('2. Assisted & Restricted Units'!$E$7:$E$399=\"2\")*('2. Assisted & Restricted Units'!$U$7:$U$399=\"CHRP-R\")*('2. Assisted & Restricted Units'!$V$7:$V$399=\"LI HOME\"))","v":0},{"$f":"SUMPRODUCT(('2. Assisted & Restricted Units'!$E$7:$E$399=\"2\")*('2. Assisted & Restricted Units'!$U$7:$U$399=\"DDS\")*('2. Assisted & Restricted Units'!$V$7:$V$399=\"LI HOME\"))","v":0},{"$f":"SUMPRODUCT(('2. Assisted & Restricted Units'!$E$7:$E$399=\"2\")*('2. Assisted & Restricted Units'!$U$7:$U$399=\"DPRLP\")*('2. Assisted & Restricted Units'!$V$7:$V$399=\"LI HOME\"))","v":0},{"$f":"SUMPRODUCT(('2. Assisted & Restricted Units'!$E$7:$E$399=\"2\")*('2. Assisted & Restricted Units'!$U$7:$U$399=\"FHDP\")*('2. Assisted & Restricted Units'!$V$7:$V$399=\"LI HOME\"))","v":0},{"$f":"SUMPRODUCT(('2. Assisted & Restricted Units'!$E$7:$E$399=\"2\")*('2. Assisted & Restricted Units'!$U$7:$U$399=\"FMTW\")*('2. Assisted & Restricted Units'!$V$7:$V$399=\"LI HOME\"))","v":0},null,{"$f":"SUMPRODUCT(('2. Assisted & Restricted Units'!$E$7:$E$399=\"2\")*('2. Assisted & Restricted Units'!$U$7:$U$399=\"HOME\")*('2. Assisted & Restricted Units'!$V$7:$V$399=\"LI HOME\"))","v":0},{"$f":"SUMPRODUCT(('2. Assisted & Restricted Units'!$E$7:$E$399=\"2\")*('2. Assisted & Restricted Units'!$U$7:$U$399=\"Market Rate\")*('2. Assisted & Restricted Units'!$V$7:$V$399=\"LI HOME\"))","v":0},{"$f":"SUMPRODUCT(('2. Assisted & Restricted Units'!$E$7:$E$399=\"2\")*('2. Assisted & Restricted Units'!$U$7:$U$399=\"MHP\")*('2. Assisted & Restricted Units'!$V$7:$V$399=\"LI HOME\"))","v":0},{"$f":"SUMPRODUCT(('2. Assisted & Restricted Units'!$E$7:$E$399=\"2\")*('2. Assisted & Restricted Units'!$U$7:$U$399=\"NonAssisted\")*('2. Assisted & Restricted Units'!$V$7:$V$399=\"LI HOME\"))","v":0},{"$f":"SUMPRODUCT(('2. Assisted & Restricted Units'!$E$7:$E$399=\"2\")*('2. Assisted & Restricted Units'!$U$7:$U$399=\"Other Restr\")*('2. Assisted & Restricted Units'!$V$7:$V$399=\"LI HOME\"))","v":0},{"$f":"SUMPRODUCT(('2. Assisted & Restricted Units'!$E$7:$E$399=\"2\")*('2. Assisted & Restricted Units'!$U$7:$U$399=\"RHCP-B\")*('2. Assisted & Restricted Units'!$V$7:$V$399=\"LI HOME\"))","v":0},{"$f":"SUMPRODUCT(('2. Assisted & Restricted Units'!$E$7:$E$399=\"2\")*('2. Assisted & Restricted Units'!$U$7:$U$399=\"SERA\")*('2. Assisted & Restricted Units'!$V$7:$V$399=\"LI HOME\"))","v":0},{"$f":"SUMPRODUCT(('2. Assisted & Restricted Units'!$E$7:$E$399=\"2\")*('2. Assisted & Restricted Units'!$U$7:$U$399=\"SUHRP\")*('2. Assisted & Restricted Units'!$V$7:$V$399=\"LI HOME\"))","v":0},{"$f":"SUMPRODUCT(('2. Assisted & Restricted Units'!$E$7:$E$399=\"2\")*('2. Assisted & Restricted Units'!$U$7:$U$399=\"TOD\")*('2. Assisted & Restricted Units'!$V$7:$V$399=\"LI HOME\"))","v":0},{"$f":"SUMPRODUCT(('2. Assisted & Restricted Units'!$E$7:$E$399=\"2\")*('2. Assisted & Restricted Units'!$U$7:$U$399=\"707-E\")*('2. Assisted & Restricted Units'!$V$7:$V$399=\"LI HOME\"))","v":0},{"$f":"SUMPRODUCT(('2. Assisted & Restricted Units'!$E$7:$E$399=\"2\")*('2. Assisted & Restricted Units'!$U$7:$U$399=\"707-N\")*('2. Assisted & Restricted Units'!$V$7:$V$399=\"LI HOME\"))","v":0}]
["2 Bedroom VLI State",{"$f":"SUMPRODUCT(('2. Assisted & Restricted Units'!$E$7:$E$399=\"2\")*('2. Assisted & Restricted Units'!$U$7:$U$399=\"CALDAP\")*('2. Assisted & Restricted Units'!$V$7:$V$399=\"VLI State\"))","v":0},{"$f":"SUMPRODUCT(('2. Assisted & Restricted Units'!$E$7:$E$399=\"2\")*('2. Assisted & Restricted Units'!$U$7:$U$399=\"CHRP-R\")*('2. Assisted & Restricted Units'!$V$7:$V$399=\"VLI State\"))","v":0},{"$f":"SUMPRODUCT(('2. Assisted & Restricted Units'!$E$7:$E$399=\"2\")*('2. Assisted & Restricted Units'!$U$7:$U$399=\"DDS\")*('2. Assisted & Restricted Units'!$V$7:$V$399=\"VLI State\"))","v":0},{"$f":"SUMPRODUCT(('2. Assisted & Restricted Units'!$E$7:$E$399=\"2\")*('2. Assisted & Restricted Units'!$U$7:$U$399=\"DPRLP\")*('2. Assisted & Restricted Units'!$V$7:$V$399=\"VLI State\"))","v":0},{"$f":"SUMPRODUCT(('2. Assisted & Restricted Units'!$E$7:$E$399=\"2\")*('2. Assisted & Restricted Units'!$U$7:$U$399=\"FHDP\")*('2. Assisted & Restricted Units'!$V$7:$V$399=\"VLI State\"))","v":0},{"$f":"SUMPRODUCT(('2. Assisted & Restricted Units'!$E$7:$E$399=\"2\")*('2. Assisted & Restricted Units'!$U$7:$U$399=\"FMTW\")*('2. Assisted & Restricted Units'!$V$7:$V$399=\"VLI State\"))","v":0},null,{"$f":"SUMPRODUCT(('2. Assisted & Restricted Units'!$E$7:$E$399=\"2\")*('2. Assisted & Restricted Units'!$U$7:$U$399=\"HOME\")*('2. Assisted & Restricted Units'!$V$7:$V$399=\"VLI State\"))","v":0},{"$f":"SUMPRODUCT(('2. Assisted & Restricted Units'!$E$7:$E$399=\"2\")*('2. Assisted & Restricted Units'!$U$7:$U$399=\"Market Rate\")*('2. Assisted & Restricted Units'!$V$7:$V$399=\"VLI State\"))","v":0},{"$f":"SUMPRODUCT(('2. Assisted & Restricted Units'!$E$7:$E$399=\"2\")*('2. Assisted & Restricted Units'!$U$7:$U$399=\"MHP\")*('2. Assisted & Restricted Units'!$V$7:$V$399=\"VLI State\"))","v":0},{"$f":"SUMPRODUCT(('2. Assisted & Restricted Units'!$E$7:$E$399=\"2\")*('2. Assisted & Restricted Units'!$U$7:$U$399=\"NonAssisted\")*('2. Assisted & Restricted Units'!$V$7:$V$399=\"VLI State\"))","v":0},{"$f":"SUMPRODUCT(('2. Assisted & Restricted Units'!$E$7:$E$399=\"2\")*('2. Assisted & Restricted Units'!$U$7:$U$399=\"Other Restr\")*('2. Assisted & Restricted Units'!$V$7:$V$399=\"VLI State\"))","v":0},{"$f":"SUMPRODUCT(('2. Assisted & Restricted Units'!$E$7:$E$399=\"2\")*('2. Assisted & Restricted Units'!$U$7:$U$399=\"RHCP-B\")*('2. Assisted & Restricted Units'!$V$7:$V$399=\"VLI State\"))","v":0},{"$f":"SUMPRODUCT(('2. Assisted & Restricted Units'!$E$7:$E$399=\"2\")*('2. Assisted & Restricted Units'!$U$7:$U$399=\"SERA\")*('2. Assisted & Restricted Units'!$V$7:$V$399=\"VLI State\"))","v":0},{"$f":"SUMPRODUCT(('2. Assisted & Restricted Units'!$E$7:$E$399=\"2\")*('2. Assisted & Restricted Units'!$U$7:$U$399=\"SUHRP\")*('2. Assisted & Restricted Units'!$V$7:$V$399=\"VLI State\"))","v":0},{"$f":"SUMPRODUCT(('2. Assisted & Restricted Units'!$E$7:$E$399=\"2\")*('2. Assisted & Restricted Units'!$U$7:$U$399=\"TOD\")*('2. Assisted & Restricted Units'!$V$7:$V$399=\"VLI State\"))","v":0},{"$f":"SUMPRODUCT(('2. Assisted & Restricted Units'!$E$7:$E$399=\"2\")*('2. Assisted & Restricted Units'!$U$7:$U$399=\"707-E\")*('2. Assisted & Restricted Units'!$V$7:$V$399=\"VLI State\"))","v":0},{"$f":"SUMPRODUCT(('2. Assisted & Restricted Units'!$E$7:$E$399=\"2\")*('2. Assisted & Restricted Units'!$U$7:$U$399=\"707-N\")*('2. Assisted & Restricted Units'!$V$7:$V$399=\"VLI State\"))","v":0}]
["2 Bedroom LI State",{"$f":"SUMPRODUCT(('2. Assisted & Restricted Units'!$E$7:$E$399=\"2\")*('2. Assisted & Restricted Units'!$U$7:$U$399=\"CALDAP\")*('2. Assisted & Restricted Units'!$V$7:$V$399=\"LI State\"))","v":0},{"$f":"SUMPRODUCT(('2. Assisted & Restricted Units'!$E$7:$E$399=\"2\")*('2. Assisted & Restricted Units'!$U$7:$U$399=\"CHRP-R\")*('2. Assisted & Restricted Units'!$V$7:$V$399=\"LI State\"))","v":0},{"$f":"SUMPRODUCT(('2. Assisted & Restricted Units'!$E$7:$E$399=\"2\")*('2. Assisted & Restricted Units'!$U$7:$U$399=\"DDS\")*('2. Assisted & Restricted Units'!$V$7:$V$399=\"LI State\"))","v":0},{"$f":"SUMPRODUCT(('2. Assisted & Restricted Units'!$E$7:$E$399=\"2\")*('2. Assisted & Restricted Units'!$U$7:$U$399=\"DPRLP\")*('2. Assisted & Restricted Units'!$V$7:$V$399=\"LI State\"))","v":0},{"$f":"SUMPRODUCT(('2. Assisted & Restricted Units'!$E$7:$E$399=\"2\")*('2. Assisted & Restricted Units'!$U$7:$U$399=\"FHDP\")*('2. Assisted & Restricted Units'!$V$7:$V$399=\"LI State\"))","v":0},{"$f":"SUMPRODUCT(('2. Assisted & Restricted Units'!$E$7:$E$399=\"2\")*('2. Assisted & Restricted Units'!$U$7:$U$399=\"FMTW\")*('2. Assisted & Restricted Units'!$V$7:$V$399=\"LI State\"))","v":0},null,{"$f":"SUMPRODUCT(('2. Assisted & Restricted Units'!$E$7:$E$399=\"2\")*('2. Assisted & Restricted Units'!$U$7:$U$399=\"HOME\")*('2. Assisted & Restricted Units'!$V$7:$V$399=\"LI State\"))","v":0},{"$f":"SUMPRODUCT(('2. Assisted & Restricted Units'!$E$7:$E$399=\"2\")*('2. Assisted & Restricted Units'!$U$7:$U$399=\"Market Rate\")*('2. Assisted & Restricted Units'!$V$7:$V$399=\"LI State\"))","v":0},{"$f":"SUMPRODUCT(('2. Assisted & Restricted Units'!$E$7:$E$399=\"2\")*('2. Assisted & Restricted Units'!$U$7:$U$399=\"MHP\")*('2. Assisted & Restricted Units'!$V$7:$V$399=\"LI State\"))","v":0},{"$f":"SUMPRODUCT(('2. Assisted & Restricted Units'!$E$7:$E$399=\"2\")*('2. Assisted & Restricted Units'!$U$7:$U$399=\"NonAssisted\")*('2. Assisted & Restricted Units'!$V$7:$V$399=\"LI State\"))","v":0},{"$f":"SUMPRODUCT(('2. Assisted & Restricted Units'!$E$7:$E$399=\"2\")*('2. Assisted & Restricted Units'!$U$7:$U$399=\"Other Restr\")*('2. Assisted & Restricted Units'!$V$7:$V$399=\"LI State\"))","v":0},{"$f":"SUMPRODUCT(('2. Assisted & Restricted Units'!$E$7:$E$399=\"2\")*('2. Assisted & Restricted Units'!$U$7:$U$399=\"RHCP-B\")*('2. Assisted & Restricted Units'!$V$7:$V$399=\"LI State\"))","v":0},{"$f":"SUMPRODUCT(('2. Assisted & Restricted Units'!$E$7:$E$399=\"2\")*('2. Assisted & Restricted Units'!$U$7:$U$399=\"SERA\")*('2. Assisted & Restricted Units'!$V$7:$V$399=\"LI State\"))","v":0},{"$f":"SUMPRODUCT(('2. Assisted & Restricted Units'!$E$7:$E$399=\"2\")*('2. Assisted & Restricted Units'!$U$7:$U$399=\"SUHRP\")*('2. Assisted & Restricted Units'!$V$7:$V$399=\"LI State\"))","v":0},{"$f":"SUMPRODUCT(('2. Assisted & Restricted Units'!$E$7:$E$399=\"2\")*('2. Assisted & Restricted Units'!$U$7:$U$399=\"TOD\")*('2. Assisted & Restricted Units'!$V$7:$V$399=\"LI State\"))","v":0},{"$f":"SUMPRODUCT(('2. Assisted & Restricted Units'!$E$7:$E$399=\"2\")*('2. Assisted & Restricted Units'!$U$7:$U$399=\"707-E\")*('2. Assisted & Restricted Units'!$V$7:$V$399=\"LI State\"))","v":0},{"$f":"SUMPRODUCT(('2. Assisted & Restricted Units'!$E$7:$E$399=\"2\")*('2. Assisted & Restricted Units'!$U$7:$U$399=\"707-N\")*('2. Assisted & Restricted Units'!$V$7:$V$399=\"LI State\"))","v":0}]
["2 Bedroom Sec 8",{"$f":"SUMPRODUCT(('2. Assisted & Restricted Units'!$E$7:$E$399=\"2\")*('2. Assisted & Restricted Units'!$U$7:$U$399=\"CALDAP\")*('2. Assisted & Restricted Units'!$V$7:$V$399=\"CalHFA\"))","v":0},{"$f":"SUMPRODUCT(('2. Assisted & Restricted Units'!$E$7:$E$399=\"2\")*('2. Assisted & Restricted Units'!$U$7:$U$399=\"CHRP-R\")*('2. Assisted & Restricted Units'!$V$7:$V$399=\"CalHFA\"))","v":0},{"$f":"SUMPRODUCT(('2. Assisted & Restricted Units'!$E$7:$E$399=\"2\")*('2. Assisted & Restricted Units'!$U$7:$U$399=\"DDS\")*('2. Assisted & Restricted Units'!$V$7:$V$399=\"CalHFA\"))","v":0},{"$f":"SUMPRODUCT(('2. Assisted & Restricted Units'!$E$7:$E$399=\"2\")*('2. Assisted & Restricted Units'!$U$7:$U$399=\"DPRLP\")*('2. Assisted & Restricted Units'!$V$7:$V$399=\"CalHFA\"))","v":0},{"$f":"SUMPRODUCT(('2. Assisted & Restricted Units'!$E$7:$E$399=\"2\")*('2. Assisted & Restricted Units'!$U$7:$U$399=\"FHDP\")*('2. Assisted & Restricted Units'!$V$7:$V$399=\"CalHFA\"))","v":0},{"$f":"SUMPRODUCT(('2. Assisted & Restricted Units'!$E$7:$E$399=\"2\")*('2. Assisted & Restricted Units'!$U$7:$U$399=\"FMTW\")*('2. Assisted & Restricted Units'!$V$7:$V$399=\"CalHFA\"))","v":0},null,{"$f":"SUMPRODUCT(('2. Assisted & Restricted Units'!$E$7:$E$399=\"2\")*('2. Assisted & Restricted Units'!$U$7:$U$399=\"HOME\")*('2. Assisted & Restricted Units'!$V$7:$V$399=\"CalHFA\"))","v":0},{"$f":"SUMPRODUCT(('2. Assisted & Restricted Units'!$E$7:$E$399=\"2\")*('2. Assisted & Restricted Units'!$U$7:$U$399=\"Market Rate\")*('2. Assisted & Restricted Units'!$V$7:$V$399=\"CalHFA\"))","v":0},{"$f":"SUMPRODUCT(('2. Assisted & Restricted Units'!$E$7:$E$399=\"2\")*('2. Assisted & Restricted Units'!$U$7:$U$399=\"MHP\")*('2. Assisted & Restricted Units'!$V$7:$V$399=\"CalHFA\"))","v":0},{"$f":"SUMPRODUCT(('2. Assisted & Restricted Units'!$E$7:$E$399=\"2\")*('2. Assisted & Restricted Units'!$U$7:$U$399=\"NonAssisted\")*('2. Assisted & Restricted Units'!$V$7:$V$399=\"CalHFA\"))","v":0},{"$f":"SUMPRODUCT(('2. Assisted & Restricted Units'!$E$7:$E$399=\"2\")*('2. Assisted & Restricted Units'!$U$7:$U$399=\"Other Restr\")*('2. Assisted & Restricted Units'!$V$7:$V$399=\"CalHFA\"))","v":0},{"$f":"SUMPRODUCT(('2. Assisted & Restricted Units'!$E$7:$E$399=\"2\")*('2. Assisted & Restricted Units'!$U$7:$U$399=\"RHCP-B\")*('2. Assisted & Restricted Units'!$V$7:$V$399=\"CalHFA\"))","v":0},{"$f":"SUMPRODUCT(('2. Assisted & Restricted Units'!$E$7:$E$399=\"2\")*('2. Assisted & Restricted Units'!$U$7:$U$399=\"SERA\")*('2. Assisted & Restricted Units'!$V$7:$V$399=\"CalHFA\"))","v":0},{"$f":"SUMPRODUCT(('2. Assisted & Restricted Units'!$E$7:$E$399=\"2\")*('2. Assisted & Restricted Units'!$U$7:$U$399=\"SUHRP\")*('2. Assisted & Restricted Units'!$V$7:$V$399=\"CalHFA\"))","v":0},{"$f":"SUMPRODUCT(('2. Assisted & Restricted Units'!$E$7:$E$399=\"2\")*('2. Assisted & Restricted Units'!$U$7:$U$399=\"TOD\")*('2. Assisted & Restricted Units'!$V$7:$V$399=\"CalHFA\"))","v":0},{"$f":"SUMPRODUCT(('2. Assisted & Restricted Units'!$E$7:$E$399=\"2\")*('2. Assisted & Restricted Units'!$U$7:$U$399=\"707-E\")*('2. Assisted & Restricted Units'!$V$7:$V$399=\"CalHFA\"))","v":0},{"$f":"SUMPRODUCT(('2. Assisted & Restricted Units'!$E$7:$E$399=\"2\")*('2. Assisted & Restricted Units'!$U$7:$U$399=\"707-N\")*('2. Assisted & Restricted Units'!$V$7:$V$399=\"CalHFA\"))","v":0}]
["Total 2",{"$f":"SUM(B79:B102)","v":0},{"$f":"SUM(C79:C102)","v":0},{"$f":"SUM(D79:D102)","v":0},{"$f":"SUM(E79:E102)","v":0},{"$f":"SUM(F79:F102)","v":0},0,{"$f":"SUMPRODUCT(('2. Assisted & Restricted Units'!$E$7:$E$399=\"2\")*('2. Assisted & Restricted Units'!$U$7:$U$399=\"FWHG\"))","v":0},0,0,0,0,0,0,0,0,0,0,0,{"$f":"SUMPRODUCT(('2. Assisted & Restricted Units'!$E$7:$E$399=\"2\")*('2. Assisted & Restricted Units'!$L$7:$L$399=\"X\"))","v":0},{"$f":"SUMPRODUCT(('2. Assisted & Restricted Units'!$E$7:$E$399=\"2\")*('2. Assisted & Restricted Units'!#REF!=\"X\"))","v":{"$error":"#REF!"}},{"$f":"SUMPRODUCT(('2. Assisted & Restricted Units'!$E$7:$E$399=\"2\")*('2. Assisted & Restricted Units'!#REF!=\"X\"))","v":{"$error":"#REF!"}},{"$f":"SUMPRODUCT(('2. Assisted & Restricted Units'!$E$7:$E$399=\"2\")*('2. Assisted & Restricted Units'!#REF!=\"X\"))","v":{"$error":"#REF!"}},{"$f":"SUMPRODUCT(('2. Assisted & Restricted Units'!$E$7:$E$399=\"2\")*('2. Assisted & Restricted Units'!#REF!=\"X\"))","v":{"$error":"#REF!"}},{"$f":"SUMPRODUCT(('2. Assisted & Restricted Units'!$E$7:$E$399=\"2\")*('2. Assisted & Restricted Units'!#REF!=\"X\"))","v":{"$error":"#REF!"}},{"$f":"SUMPRODUCT(('2. Assisted & Restricted Units'!$E$7:$E$399=\"2\")*('2. Assisted & Restricted Units'!#REF!=\"X\"))","v":{"$error":"#REF!"}},{"$f":"SUMPRODUCT(('2. Assisted & Restricted Units'!$E$7:$E$399=\"2\")*('2. Assisted & Restricted Units'!$M$7:$M$399=\"X\"))","v":0},{"$f":"SUMPRODUCT(('2. Assisted & Restricted Units'!$E$7:$E$399=\"2\")*('2. Assisted & Restricted Units'!$O$7:$O$399=\"X\"))","v":0}]
["3 Bedroom 15% AMI",{"$f":"SUMPRODUCT(('2. Assisted & Restricted Units'!$E$7:$E$399=\"3\")*('2. Assisted & Restricted Units'!$U$7:$U$399=\"CALDAP\")*('2. Assisted & Restricted Units'!$V$7:$V$399=\"15% AMI\"))","v":0},{"$f":"SUMPRODUCT(('2. Assisted & Restricted Units'!$E$7:$E$399=\"3\")*('2. Assisted & Restricted Units'!$U$7:$U$399=\"CHRP-R\")*('2. Assisted & Restricted Units'!$V$7:$V$399=\"15% AMI\"))","v":0},{"$f":"SUMPRODUCT(('2. Assisted & Restricted Units'!$E$7:$E$399=\"3\")*('2. Assisted & Restricted Units'!$U$7:$U$399=\"DDS\")*('2. Assisted & Restricted Units'!$V$7:$V$399=\"15% AMI\"))","v":0},{"$f":"SUMPRODUCT(('2. Assisted & Restricted Units'!$E$7:$E$399=\"3\")*('2. Assisted & Restricted Units'!$U$7:$U$399=\"DPRLP\")*('2. Assisted & Restricted Units'!$V$7:$V$399=\"15% AMI\"))","v":0},{"$f":"SUMPRODUCT(('2. Assisted & Restricted Units'!$E$7:$E$399=\"3\")*('2. Assisted & Restricted Units'!$U$7:$U$399=\"FHDP\")*('2. Assisted & Restricted Units'!$V$7:$V$399=\"15% AMI\"))","v":0},{"$f":"SUMPRODUCT(('2. Assisted & Restricted Units'!$E$7:$E$399=\"3\")*('2. Assisted & Restricted Units'!$U$7:$U$399=\"FMTW\")*('2. Assisted & Restricted Units'!$V$7:$V$399=\"15% AMI\"))","v":0},null,{"$f":"SUMPRODUCT(('2. Assisted & Restricted Units'!$E$7:$E$399=\"3\")*('2. Assisted & Restricted Units'!$U$7:$U$399=\"HOME\")*('2. Assisted & Restricted Units'!$V$7:$V$399=\"15% AMI\"))","v":0},{"$f":"SUMPRODUCT(('2. Assisted & Restricted Units'!$E$7:$E$399=\"3\")*('2. Assisted & Restricted Units'!$U$7:$U$399=\"Market Rate\")*('2. Assisted & Restricted Units'!$V$7:$V$399=\"15% AMI\"))","v":0},{"$f":"SUMPRODUCT(('2. Assisted & Restricted Units'!$E$7:$E$399=\"3\")*('2. Assisted & Restricted Units'!$U$7:$U$399=\"MHP\")*('2. Assisted & Restricted Units'!$V$7:$V$399=\"15% AMI\"))","v":0},{"$f":"SUMPRODUCT(('2. Assisted & Restricted Units'!$E$7:$E$399=\"3\")*('2. Assisted & Restricted Units'!$U$7:$U$399=\"NonAssisted\")*('2. Assisted & Restricted Units'!$V$7:$V$399=\"15% AMI\"))","v":0},{"$f":"SUMPRODUCT(('2. Assisted & Restricted Units'!$E$7:$E$399=\"3\")*('2. Assisted & Restricted Units'!$U$7:$U$399=\"Other Restr\")*('2. Assisted & Restricted Units'!$V$7:$V$399=\"15% AMI\"))","v":0},{"$f":"SUMPRODUCT(('2. Assisted & Restricted Units'!$E$7:$E$399=\"3\")*('2. Assisted & Restricted Units'!$U$7:$U$399=\"RHCP-B\")*('2. Assisted & Restricted Units'!$V$7:$V$399=\"15% AMI\"))","v":0},{"$f":"SUMPRODUCT(('2. Assisted & Restricted Units'!$E$7:$E$399=\"3\")*('2. Assisted & Restricted Units'!$U$7:$U$399=\"SERA\")*('2. Assisted & Restricted Units'!$V$7:$V$399=\"15% AMI\"))","v":0},{"$f":"SUMPRODUCT(('2. Assisted & Restricted Units'!$E$7:$E$399=\"3\")*('2. Assisted & Restricted Units'!$U$7:$U$399=\"SUHRP\")*('2. Assisted & Restricted Units'!$V$7:$V$399=\"15% AMI\"))","v":0},{"$f":"SUMPRODUCT(('2. Assisted & Restricted Units'!$E$7:$E$399=\"3\")*('2. Assisted & Restricted Units'!$U$7:$U$399=\"TOD\")*('2. Assisted & Restricted Units'!$V$7:$V$399=\"15% AMI\"))","v":0},{"$f":"SUMPRODUCT(('2. Assisted & Restricted Units'!$E$7:$E$399=\"3\")*('2. Assisted & Restricted Units'!$U$7:$U$399=\"707-E\")*('2. Assisted & Restricted Units'!$V$7:$V$399=\"15% AMI\"))","v":0},{"$f":"SUMPRODUCT(('2. Assisted & Restricted Units'!$E$7:$E$399=\"3\")*('2. Assisted & Restricted Units'!$U$7:$U$399=\"707-N\")*('2. Assisted & Restricted Units'!$V$7:$V$399=\"15% AMI\"))","v":0}]
["3 Bedroom 20% AMI",{"$f":"SUMPRODUCT(('2. Assisted & Restricted Units'!$E$7:$E$399=\"3\")*('2. Assisted & Restricted Units'!$U$7:$U$399=\"CALDAP\")*('2. Assisted & Restricted Units'!$V$7:$V$399=\"20% AMI\"))","v":0},{"$f":"SUMPRODUCT(('2. Assisted & Restricted Units'!$E$7:$E$399=\"3\")*('2. Assisted & Restricted Units'!$U$7:$U$399=\"CHRP-R\")*('2. Assisted & Restricted Units'!$V$7:$V$399=\"20% AMI\"))","v":0},{"$f":"SUMPRODUCT(('2. Assisted & Restricted Units'!$E$7:$E$399=\"3\")*('2. Assisted & Restricted Units'!$U$7:$U$399=\"DDS\")*('2. Assisted & Restricted Units'!$V$7:$V$399=\"20% AMI\"))","v":0},{"$f":"SUMPRODUCT(('2. Assisted & Restricted Units'!$E$7:$E$399=\"3\")*('2. Assisted & Restricted Units'!$U$7:$U$399=\"DPRLP\")*('2. Assisted & Restricted Units'!$V$7:$V$399=\"20% AMI\"))","v":0},{"$f":"SUMPRODUCT(('2. Assisted & Restricted Units'!$E$7:$E$399=\"3\")*('2. Assisted & Restricted Units'!$U$7:$U$399=\"FHDP\")*('2. Assisted & Restricted Units'!$V$7:$V$399=\"20% AMI\"))","v":0},{"$f":"SUMPRODUCT(('2. Assisted & Restricted Units'!$E$7:$E$399=\"3\")*('2. Assisted & Restricted Units'!$U$7:$U$399=\"FMTW\")*('2. Assisted & Restricted Units'!$V$7:$V$399=\"20% AMI\"))","v":0},null,{"$f":"SUMPRODUCT(('2. Assisted & Restricted Units'!$E$7:$E$399=\"3\")*('2. Assisted & Restricted Units'!$U$7:$U$399=\"HOME\")*('2. Assisted & Restricted Units'!$V$7:$V$399=\"20% AMI\"))","v":0},{"$f":"SUMPRODUCT(('2. Assisted & Restricted Units'!$E$7:$E$399=\"3\")*('2. Assisted & Restricted Units'!$U$7:$U$399=\"Market Rate\")*('2. Assisted & Restricted Units'!$V$7:$V$399=\"20% AMI\"))","v":0},{"$f":"SUMPRODUCT(('2. Assisted & Restricted Units'!$E$7:$E$399=\"3\")*('2. Assisted & Restricted Units'!$U$7:$U$399=\"MHP\")*('2. Assisted & Restricted Units'!$V$7:$V$399=\"20% AMI\"))","v":0},{"$f":"SUMPRODUCT(('2. Assisted & Restricted Units'!$E$7:$E$399=\"3\")*('2. Assisted & Restricted Units'!$U$7:$U$399=\"NonAssisted\")*('2. Assisted & Restricted Units'!$V$7:$V$399=\"20% AMI\"))","v":0},{"$f":"SUMPRODUCT(('2. Assisted & Restricted Units'!$E$7:$E$399=\"3\")*('2. Assisted & Restricted Units'!$U$7:$U$399=\"Other Restr\")*('2. Assisted & Restricted Units'!$V$7:$V$399=\"20% AMI\"))","v":0},{"$f":"SUMPRODUCT(('2. Assisted & Restricted Units'!$E$7:$E$399=\"3\")*('2. Assisted & Restricted Units'!$U$7:$U$399=\"RHCP-B\")*('2. Assisted & Restricted Units'!$V$7:$V$399=\"20% AMI\"))","v":0},{"$f":"SUMPRODUCT(('2. Assisted & Restricted Units'!$E$7:$E$399=\"3\")*('2. Assisted & Restricted Units'!$U$7:$U$399=\"SERA\")*('2. Assisted & Restricted Units'!$V$7:$V$399=\"20% AMI\"))","v":0},{"$f":"SUMPRODUCT(('2. Assisted & Restricted Units'!$E$7:$E$399=\"3\")*('2. Assisted & Restricted Units'!$U$7:$U$399=\"SUHRP\")*('2. Assisted & Restricted Units'!$V$7:$V$399=\"20% AMI\"))","v":0},{"$f":"SUMPRODUCT(('2. Assisted & Restricted Units'!$E$7:$E$399=\"3\")*('2. Assisted & Restricted Units'!$U$7:$U$399=\"TOD\")*('2. Assisted & Restricted Units'!$V$7:$V$399=\"20% AMI\"))","v":0},{"$f":"SUMPRODUCT(('2. Assisted & Restricted Units'!$E$7:$E$399=\"3\")*('2. Assisted & Restricted Units'!$U$7:$U$399=\"707-E\")*('2. Assisted & Restricted Units'!$V$7:$V$399=\"20% AMI\"))","v":0},{"$f":"SUMPRODUCT(('2. Assisted & Restricted Units'!$E$7:$E$399=\"3\")*('2. Assisted & Restricted Units'!$U$7:$U$399=\"707-N\")*('2. Assisted & Restricted Units'!$V$7:$V$399=\"20% AMI\"))","v":0}]
["3 Bedroom 25% AMI",{"$f":"SUMPRODUCT(('2. Assisted & Restricted Units'!$E$7:$E$399=\"3\")*('2. Assisted & Restricted Units'!$U$7:$U$399=\"CALDAP\")*('2. Assisted & Restricted Units'!$V$7:$V$399=\"25% AMI\"))","v":0},{"$f":"SUMPRODUCT(('2. Assisted & Restricted Units'!$E$7:$E$399=\"3\")*('2. Assisted & Restricted Units'!$U$7:$U$399=\"CHRP-R\")*('2. Assisted & Restricted Units'!$V$7:$V$399=\"25% AMI\"))","v":0},{"$f":"SUMPRODUCT(('2. Assisted & Restricted Units'!$E$7:$E$399=\"3\")*('2. Assisted & Restricted Units'!$U$7:$U$399=\"DDS\")*('2. Assisted & Restricted Units'!$V$7:$V$399=\"25% AMI\"))","v":0},{"$f":"SUMPRODUCT(('2. Assisted & Restricted Units'!$E$7:$E$399=\"3\")*('2. Assisted & Restricted Units'!$U$7:$U$399=\"DPRLP\")*('2. Assisted & Restricted Units'!$V$7:$V$399=\"25% AMI\"))","v":0},{"$f":"SUMPRODUCT(('2. Assisted & Restricted Units'!$E$7:$E$399=\"3\")*('2. Assisted & Restricted Units'!$U$7:$U$399=\"FHDP\")*('2. Assisted & Restricted Units'!$V$7:$V$399=\"25% AMI\"))","v":0},{"$f":"SUMPRODUCT(('2. Assisted & Restricted Units'!$E$7:$E$399=\"3\")*('2. Assisted & Restricted Units'!$U$7:$U$399=\"FMTW\")*('2. Assisted & Restricted Units'!$V$7:$V$399=\"25% AMI\"))","v":0},null,{"$f":"SUMPRODUCT(('2. Assisted & Restricted Units'!$E$7:$E$399=\"3\")*('2. Assisted & Restricted Units'!$U$7:$U$399=\"HOME\")*('2. Assisted & Restricted Units'!$V$7:$V$399=\"25% AMI\"))","v":0},{"$f":"SUMPRODUCT(('2. Assisted & Restricted Units'!$E$7:$E$399=\"3\")*('2. Assisted & Restricted Units'!$U$7:$U$399=\"Market Rate\")*('2. Assisted & Restricted Units'!$V$7:$V$399=\"25% AMI\"))","v":0},{"$f":"SUMPRODUCT(('2. Assisted & Restricted Units'!$E$7:$E$399=\"3\")*('2. Assisted & Restricted Units'!$U$7:$U$399=\"MHP\")*('2. Assisted & Restricted Units'!$V$7:$V$399=\"25% AMI\"))","v":0},{"$f":"SUMPRODUCT(('2. Assisted & Restricted Units'!$E$7:$E$399=\"3\")*('2. Assisted & Restricted Units'!$U$7:$U$399=\"NonAssisted\")*('2. Assisted & Restricted Units'!$V$7:$V$399=\"25% AMI\"))","v":0},{"$f":"SUMPRODUCT(('2. Assisted & Restricted Units'!$E$7:$E$399=\"3\")*('2. Assisted & Restricted Units'!$U$7:$U$399=\"Other Restr\")*('2. Assisted & Restricted Units'!$V$7:$V$399=\"25% AMI\"))","v":0},{"$f":"SUMPRODUCT(('2. Assisted & Restricted Units'!$E$7:$E$399=\"3\")*('2. Assisted & Restricted Units'!$U$7:$U$399=\"RHCP-B\")*('2. Assisted & Restricted Units'!$V$7:$V$399=\"25% AMI\"))","v":0},{"$f":"SUMPRODUCT(('2. Assisted & Restricted Units'!$E$7:$E$399=\"3\")*('2. Assisted & Restricted Units'!$U$7:$U$399=\"SERA\")*('2. Assisted & Restricted Units'!$V$7:$V$399=\"25% AMI\"))","v":0},{"$f":"SUMPRODUCT(('2. Assisted & Restricted Units'!$E$7:$E$399=\"3\")*('2. Assisted & Restricted Units'!$U$7:$U$399=\"SUHRP\")*('2. Assisted & Restricted Units'!$V$7:$V$399=\"25% AMI\"))","v":0},{"$f":"SUMPRODUCT(('2. Assisted & Restricted Units'!$E$7:$E$399=\"3\")*('2. Assisted & Restricted Units'!$U$7:$U$399=\"TOD\")*('2. Assisted & Restricted Units'!$V$7:$V$399=\"25% AMI\"))","v":0},{"$f":"SUMPRODUCT(('2. Assisted & Restricted Units'!$E$7:$E$399=\"3\")*('2. Assisted & Restricted Units'!$U$7:$U$399=\"707-E\")*('2. Assisted & Restricted Units'!$V$7:$V$399=\"25% AMI\"))","v":0},{"$f":"SUMPRODUCT(('2. Assisted & Restricted Units'!$E$7:$E$399=\"3\")*('2. Assisted & Restricted Units'!$U$7:$U$399=\"707-N\")*('2. Assisted & Restricted Units'!$V$7:$V$399=\"25% AMI\"))","v":0}]
["3 Bedroom 30% AMI",{"$f":"SUMPRODUCT(('2. Assisted & Restricted Units'!$E$7:$E$399=\"3\")*('2. Assisted & Restricted Units'!$U$7:$U$399=\"CALDAP\")*('2. Assisted & Restricted Units'!$V$7:$V$399=\"30% AMI\"))","v":0},{"$f":"SUMPRODUCT(('2. Assisted & Restricted Units'!$E$7:$E$399=\"3\")*('2. Assisted & Restricted Units'!$U$7:$U$399=\"CHRP-R\")*('2. Assisted & Restricted Units'!$V$7:$V$399=\"30% AMI\"))","v":0},{"$f":"SUMPRODUCT(('2. Assisted & Restricted Units'!$E$7:$E$399=\"3\")*('2. Assisted & Restricted Units'!$U$7:$U$399=\"DDS\")*('2. Assisted & Restricted Units'!$V$7:$V$399=\"30% AMI\"))","v":0},{"$f":"SUMPRODUCT(('2. Assisted & Restricted Units'!$E$7:$E$399=\"3\")*('2. Assisted & Restricted Units'!$U$7:$U$399=\"DPRLP\")*('2. Assisted & Restricted Units'!$V$7:$V$399=\"30% AMI\"))","v":0},{"$f":"SUMPRODUCT(('2. Assisted & Restricted Units'!$E$7:$E$399=\"3\")*('2. Assisted & Restricted Units'!$U$7:$U$399=\"FHDP\")*('2. Assisted & Restricted Units'!$V$7:$V$399=\"30% AMI\"))","v":0},{"$f":"SUMPRODUCT(('2. Assisted & Restricted Units'!$E$7:$E$399=\"3\")*('2. Assisted & Restricted Units'!$U$7:$U$399=\"FMTW\")*('2. Assisted & Restricted Units'!$V$7:$V$399=\"30% AMI\"))","v":0},null,{"$f":"SUMPRODUCT(('2. Assisted & Restricted Units'!$E$7:$E$399=\"3\")*('2. Assisted & Restricted Units'!$U$7:$U$399=\"HOME\")*('2. Assisted & Restricted Units'!$V$7:$V$399=\"30% AMI\"))","v":0},{"$f":"SUMPRODUCT(('2. Assisted & Restricted Units'!$E$7:$E$399=\"3\")*('2. Assisted & Restricted Units'!$U$7:$U$399=\"Market Rate\")*('2. Assisted & Restricted Units'!$V$7:$V$399=\"30% AMI\"))","v":0},{"$f":"SUMPRODUCT(('2. Assisted & Restricted Units'!$E$7:$E$399=\"3\")*('2. Assisted & Restricted Units'!$U$7:$U$399=\"MHP\")*('2. Assisted & Restricted Units'!$V$7:$V$399=\"30% AMI\"))","v":0},{"$f":"SUMPRODUCT(('2. Assisted & Restricted Units'!$E$7:$E$399=\"3\")*('2. Assisted & Restricted Units'!$U$7:$U$399=\"NonAssisted\")*('2. Assisted & Restricted Units'!$V$7:$V$399=\"30% AMI\"))","v":0},{"$f":"SUMPRODUCT(('2. Assisted & Restricted Units'!$E$7:$E$399=\"3\")*('2. Assisted & Restricted Units'!$U$7:$U$399=\"Other Restr\")*('2. Assisted & Restricted Units'!$V$7:$V$399=\"30% AMI\"))","v":0},{"$f":"SUMPRODUCT(('2. Assisted & Restricted Units'!$E$7:$E$399=\"3\")*('2. Assisted & Restricted Units'!$U$7:$U$399=\"RHCP-B\")*('2. Assisted & Restricted Units'!$V$7:$V$399=\"30% AMI\"))","v":0},{"$f":"SUMPRODUCT(('2. Assisted & Restricted Units'!$E$7:$E$399=\"3\")*('2. Assisted & Restricted Units'!$U$7:$U$399=\"SERA\")*('2. Assisted & Restricted Units'!$V$7:$V$399=\"30% AMI\"))","v":0},{"$f":"SUMPRODUCT(('2. Assisted & Restricted Units'!$E$7:$E$399=\"3\")*('2. Assisted & Restricted Units'!$U$7:$U$399=\"SUHRP\")*('2. Assisted & Restricted Units'!$V$7:$V$399=\"30% AMI\"))","v":0},{"$f":"SUMPRODUCT(('2. Assisted & Restricted Units'!$E$7:$E$399=\"3\")*('2. Assisted & Restricted Units'!$U$7:$U$399=\"TOD\")*('2. Assisted & Restricted Units'!$V$7:$V$399=\"30% AMI\"))","v":0},{"$f":"SUMPRODUCT(('2. Assisted & Restricted Units'!$E$7:$E$399=\"3\")*('2. Assisted & Restricted Units'!$U$7:$U$399=\"707-E\")*('2. Assisted & Restricted Units'!$V$7:$V$399=\"30% AMI\"))","v":0},{"$f":"SUMPRODUCT(('2. Assisted & Restricted Units'!$E$7:$E$399=\"3\")*('2. Assisted & Restricted Units'!$U$7:$U$399=\"707-N\")*('2. Assisted & Restricted Units'!$V$7:$V$399=\"30% AMI\"))","v":0}]
["3 Bedroom 35% AMI",{"$f":"SUMPRODUCT(('2. Assisted & Restricted Units'!$E$7:$E$399=\"3\")*('2. Assisted & Restricted Units'!$U$7:$U$399=\"CALDAP\")*('2. Assisted & Restricted Units'!$V$7:$V$399=\"35% AMI\"))","v":0},{"$f":"SUMPRODUCT(('2. Assisted & Restricted Units'!$E$7:$E$399=\"3\")*('2. Assisted & Restricted Units'!$U$7:$U$399=\"CHRP-R\")*('2. Assisted & Restricted Units'!$V$7:$V$399=\"35% AMI\"))","v":0},{"$f":"SUMPRODUCT(('2. Assisted & Restricted Units'!$E$7:$E$399=\"3\")*('2. Assisted & Restricted Units'!$U$7:$U$399=\"DDS\")*('2. Assisted & Restricted Units'!$V$7:$V$399=\"35% AMI\"))","v":0},{"$f":"SUMPRODUCT(('2. Assisted & Restricted Units'!$E$7:$E$399=\"3\")*('2. Assisted & Restricted Units'!$U$7:$U$399=\"DPRLP\")*('2. Assisted & Restricted Units'!$V$7:$V$399=\"35% AMI\"))","v":0},{"$f":"SUMPRODUCT(('2. Assisted & Restricted Units'!$E$7:$E$399=\"3\")*('2. Assisted & Restricted Units'!$U$7:$U$399=\"FHDP\")*('2. Assisted & Restricted Units'!$V$7:$V$399=\"35% AMI\"))","v":0},{"$f":"SUMPRODUCT(('2. Assisted & Restricted Units'!$E$7:$E$399=\"3\")*('2. Assisted & Restricted Units'!$U$7:$U$399=\"FMTW\")*('2. Assisted & Restricted Units'!$V$7:$V$399=\"35% AMI\"))","v":0},null,{"$f":"SUMPRODUCT(('2. Assisted & Restricted Units'!$E$7:$E$399=\"3\")*('2. Assisted & Restricted Units'!$U$7:$U$399=\"HOME\")*('2. Assisted & Restricted Units'!$V$7:$V$399=\"35% AMI\"))","v":0},{"$f":"SUMPRODUCT(('2. Assisted & Restricted Units'!$E$7:$E$399=\"3\")*('2. Assisted & Restricted Units'!$U$7:$U$399=\"Market Rate\")*('2. Assisted & Restricted Units'!$V$7:$V$399=\"35% AMI\"))","v":0},{"$f":"SUMPRODUCT(('2. Assisted & Restricted Units'!$E$7:$E$399=\"3\")*('2. Assisted & Restricted Units'!$U$7:$U$399=\"MHP\")*('2. Assisted & Restricted Units'!$V$7:$V$399=\"35% AMI\"))","v":0},{"$f":"SUMPRODUCT(('2. Assisted & Restricted Units'!$E$7:$E$399=\"3\")*('2. Assisted & Restricted Units'!$U$7:$U$399=\"NonAssisted\")*('2. Assisted & Restricted Units'!$V$7:$V$399=\"35% AMI\"))","v":0},{"$f":"SUMPRODUCT(('2. Assisted & Restricted Units'!$E$7:$E$399=\"3\")*('2. Assisted & Restricted Units'!$U$7:$U$399=\"Other Restr\")*('2. Assisted & Restricted Units'!$V$7:$V$399=\"35% AMI\"))","v":0},{"$f":"SUMPRODUCT(('2. Assisted & Restricted Units'!$E$7:$E$399=\"3\")*('2. Assisted & Restricted Units'!$U$7:$U$399=\"RHCP-B\")*('2. Assisted & Restricted Units'!$V$7:$V$399=\"35% AMI\"))","v":0},{"$f":"SUMPRODUCT(('2. Assisted & Restricted Units'!$E$7:$E$399=\"3\")*('2. Assisted & Restricted Units'!$U$7:$U$399=\"SERA\")*('2. Assisted & Restricted Units'!$V$7:$V$399=\"35% AMI\"))","v":0},{"$f":"SUMPRODUCT(('2. Assisted & Restricted Units'!$E$7:$E$399=\"3\")*('2. Assisted & Restricted Units'!$U$7:$U$399=\"SUHRP\")*('2. Assisted & Restricted Units'!$V$7:$V$399=\"35% AMI\"))","v":0},{"$f":"SUMPRODUCT(('2. Assisted & Restricted Units'!$E$7:$E$399=\"3\")*('2. Assisted & Restricted Units'!$U$7:$U$399=\"TOD\")*('2. Assisted & Restricted Units'!$V$7:$V$399=\"35% AMI\"))","v":0},{"$f":"SUMPRODUCT(('2. Assisted & Restricted Units'!$E$7:$E$399=\"3\")*('2. Assisted & Restricted Units'!$U$7:$U$399=\"707-E\")*('2. Assisted & Restricted Units'!$V$7:$V$399=\"35% AMI\"))","v":0},{"$f":"SUMPRODUCT(('2. Assisted & Restricted Units'!$E$7:$E$399=\"3\")*('2. Assisted & Restricted Units'!$U$7:$U$399=\"707-N\")*('2. Assisted & Restricted Units'!$V$7:$V$399=\"35% AMI\"))","v":0}]
["3 Bedroom 40% AMI",{"$f":"SUMPRODUCT(('2. Assisted & Restricted Units'!$E$7:$E$399=\"3\")*('2. Assisted & Restricted Units'!$U$7:$U$399=\"CALDAP\")*('2. Assisted & Restricted Units'!$V$7:$V$399=\"40% AMI\"))","v":0},{"$f":"SUMPRODUCT(('2. Assisted & Restricted Units'!$E$7:$E$399=\"3\")*('2. Assisted & Restricted Units'!$U$7:$U$399=\"CHRP-R\")*('2. Assisted & Restricted Units'!$V$7:$V$399=\"40% AMI\"))","v":0},{"$f":"SUMPRODUCT(('2. Assisted & Restricted Units'!$E$7:$E$399=\"3\")*('2. Assisted & Restricted Units'!$U$7:$U$399=\"DDS\")*('2. Assisted & Restricted Units'!$V$7:$V$399=\"40% AMI\"))","v":0},{"$f":"SUMPRODUCT(('2. Assisted & Restricted Units'!$E$7:$E$399=\"3\")*('2. Assisted & Restricted Units'!$U$7:$U$399=\"DPRLP\")*('2. Assisted & Restricted Units'!$V$7:$V$399=\"40% AMI\"))","v":0},{"$f":"SUMPRODUCT(('2. Assisted & Restricted Units'!$E$7:$E$399=\"3\")*('2. Assisted & Restricted Units'!$U$7:$U$399=\"FHDP\")*('2. Assisted & Restricted Units'!$V$7:$V$399=\"40% AMI\"))","v":0},{"$f":"SUMPRODUCT(('2. Assisted & Restricted Units'!$E$7:$E$399=\"3\")*('2. Assisted & Restricted Units'!$U$7:$U$399=\"FMTW\")*('2. Assisted & Restricted Units'!$V$7:$V$399=\"40% AMI\"))","v":0},null,{"$f":"SUMPRODUCT(('2. Assisted & Restricted Units'!$E$7:$E$399=\"3\")*('2. Assisted & Restricted Units'!$U$7:$U$399=\"HOME\")*('2. Assisted & Restricted Units'!$V$7:$V$399=\"40% AMI\"))","v":0},{"$f":"SUMPRODUCT(('2. Assisted & Restricted Units'!$E$7:$E$399=\"3\")*('2. Assisted & Restricted Units'!$U$7:$U$399=\"Market Rate\")*('2. Assisted & Restricted Units'!$V$7:$V$399=\"40% AMI\"))","v":0},{"$f":"SUMPRODUCT(('2. Assisted & Restricted Units'!$E$7:$E$399=\"3\")*('2. Assisted & Restricted Units'!$U$7:$U$399=\"MHP\")*('2. Assisted & Restricted Units'!$V$7:$V$399=\"40% AMI\"))","v":0},{"$f":"SUMPRODUCT(('2. Assisted & Restricted Units'!$E$7:$E$399=\"3\")*('2. Assisted & Restricted Units'!$U$7:$U$399=\"NonAssisted\")*('2. Assisted & Restricted Units'!$V$7:$V$399=\"40% AMI\"))","v":0},{"$f":"SUMPRODUCT(('2. Assisted & Restricted Units'!$E$7:$E$399=\"3\")*('2. Assisted & Restricted Units'!$U$7:$U$399=\"Other Restr\")*('2. Assisted & Restricted Units'!$V$7:$V$399=\"40% AMI\"))","v":0},{"$f":"SUMPRODUCT(('2. Assisted & Restricted Units'!$E$7:$E$399=\"3\")*('2. Assisted & Restricted Units'!$U$7:$U$399=\"RHCP-B\")*('2. Assisted & Restricted Units'!$V$7:$V$399=\"40% AMI\"))","v":0},{"$f":"SUMPRODUCT(('2. Assisted & Restricted Units'!$E$7:$E$399=\"3\")*('2. Assisted & Restricted Units'!$U$7:$U$399=\"SERA\")*('2. Assisted & Restricted Units'!$V$7:$V$399=\"40% AMI\"))","v":0},{"$f":"SUMPRODUCT(('2. Assisted & Restricted Units'!$E$7:$E$399=\"3\")*('2. Assisted & Restricted Units'!$U$7:$U$399=\"SUHRP\")*('2. Assisted & Restricted Units'!$V$7:$V$399=\"40% AMI\"))","v":0},{"$f":"SUMPRODUCT(('2. Assisted & Restricted Units'!$E$7:$E$399=\"3\")*('2. Assisted & Restricted Units'!$U$7:$U$399=\"TOD\")*('2. Assisted & Restricted Units'!$V$7:$V$399=\"40% AMI\"))","v":0},{"$f":"SUMPRODUCT(('2. Assisted & Restricted Units'!$E$7:$E$399=\"3\")*('2. Assisted & Restricted Units'!$U$7:$U$399=\"707-E\")*('2. Assisted & Restricted Units'!$V$7:$V$399=\"40% AMI\"))","v":0},{"$f":"SUMPRODUCT(('2. Assisted & Restricted Units'!$E$7:$E$399=\"3\")*('2. Assisted & Restricted Units'!$U$7:$U$399=\"707-N\")*('2. Assisted & Restricted Units'!$V$7:$V$399=\"40% AMI\"))","v":0}]
["3 Bedroom 45% AMI",{"$f":"SUMPRODUCT(('2. Assisted & Restricted Units'!$E$7:$E$399=\"3\")*('2. Assisted & Restricted Units'!$U$7:$U$399=\"CALDAP\")*('2. Assisted & Restricted Units'!$V$7:$V$399=\"45% AMI\"))","v":0},{"$f":"SUMPRODUCT(('2. Assisted & Restricted Units'!$E$7:$E$399=\"3\")*('2. Assisted & Restricted Units'!$U$7:$U$399=\"CHRP-R\")*('2. Assisted & Restricted Units'!$V$7:$V$399=\"45% AMI\"))","v":0},{"$f":"SUMPRODUCT(('2. Assisted & Restricted Units'!$E$7:$E$399=\"3\")*('2. Assisted & Restricted Units'!$U$7:$U$399=\"DDS\")*('2. Assisted & Restricted Units'!$V$7:$V$399=\"45% AMI\"))","v":0},{"$f":"SUMPRODUCT(('2. Assisted & Restricted Units'!$E$7:$E$399=\"3\")*('2. Assisted & Restricted Units'!$U$7:$U$399=\"DPRLP\")*('2. Assisted & Restricted Units'!$V$7:$V$399=\"45% AMI\"))","v":0},{"$f":"SUMPRODUCT(('2. Assisted & Restricted Units'!$E$7:$E$399=\"3\")*('2. Assisted & Restricted Units'!$U$7:$U$399=\"FHDP\")*('2. Assisted & Restricted Units'!$V$7:$V$399=\"45% AMI\"))","v":0},{"$f":"SUMPRODUCT(('2. Assisted & Restricted Units'!$E$7:$E$399=\"3\")*('2. Assisted & Restricted Units'!$U$7:$U$399=\"FMTW\")*('2. Assisted & Restricted Units'!$V$7:$V$399=\"45% AMI\"))","v":0},null,{"$f":"SUMPRODUCT(('2. Assisted & Restricted Units'!$E$7:$E$399=\"3\")*('2. Assisted & Restricted Units'!$U$7:$U$399=\"HOME\")*('2. Assisted & Restricted Units'!$V$7:$V$399=\"45% AMI\"))","v":0},{"$f":"SUMPRODUCT(('2. Assisted & Restricted Units'!$E$7:$E$399=\"3\")*('2. Assisted & Restricted Units'!$U$7:$U$399=\"Market Rate\")*('2. Assisted & Restricted Units'!$V$7:$V$399=\"45% AMI\"))","v":0},{"$f":"SUMPRODUCT(('2. Assisted & Restricted Units'!$E$7:$E$399=\"3\")*('2. Assisted & Restricted Units'!$U$7:$U$399=\"MHP\")*('2. Assisted & Restricted Units'!$V$7:$V$399=\"45% AMI\"))","v":0},{"$f":"SUMPRODUCT(('2. Assisted & Restricted Units'!$E$7:$E$399=\"3\")*('2. Assisted & Restricted Units'!$U$7:$U$399=\"NonAssisted\")*('2. Assisted & Restricted Units'!$V$7:$V$399=\"45% AMI\"))","v":0},{"$f":"SUMPRODUCT(('2. Assisted & Restricted Units'!$E$7:$E$399=\"3\")*('2. Assisted & Restricted Units'!$U$7:$U$399=\"Other Restr\")*('2. Assisted & Restricted Units'!$V$7:$V$399=\"45% AMI\"))","v":0},{"$f":"SUMPRODUCT(('2. Assisted & Restricted Units'!$E$7:$E$399=\"3\")*('2. Assisted & Restricted Units'!$U$7:$U$399=\"RHCP-B\")*('2. Assisted & Restricted Units'!$V$7:$V$399=\"45% AMI\"))","v":0},{"$f":"SUMPRODUCT(('2. Assisted & Restricted Units'!$E$7:$E$399=\"3\")*('2. Assisted & Restricted Units'!$U$7:$U$399=\"SERA\")*('2. Assisted & Restricted Units'!$V$7:$V$399=\"45% AMI\"))","v":0},{"$f":"SUMPRODUCT(('2. Assisted & Restricted Units'!$E$7:$E$399=\"3\")*('2. Assisted & Restricted Units'!$U$7:$U$399=\"SUHRP\")*('2. Assisted & Restricted Units'!$V$7:$V$399=\"45% AMI\"))","v":0},{"$f":"SUMPRODUCT(('2. Assisted & Restricted Units'!$E$7:$E$399=\"3\")*('2. Assisted & Restricted Units'!$U$7:$U$399=\"TOD\")*('2. Assisted & Restricted Units'!$V$7:$V$399=\"45% AMI\"))","v":0},{"$f":"SUMPRODUCT(('2. Assisted & Restricted Units'!$E$7:$E$399=\"3\")*('2. Assisted & Restricted Units'!$U$7:$U$399=\"707-E\")*('2. Assisted & Restricted Units'!$V$7:$V$399=\"45% AMI\"))","v":0},{"$f":"SUMPRODUCT(('2. Assisted & Restricted Units'!$E$7:$E$399=\"3\")*('2. Assisted & Restricted Units'!$U$7:$U$399=\"707-N\")*('2. Assisted & Restricted Units'!$V$7:$V$399=\"45% AMI\"))","v":0}]
["3 Bedroom 50% AMI",{"$f":"SUMPRODUCT(('2. Assisted & Restricted Units'!$E$7:$E$399=\"3\")*('2. Assisted & Restricted Units'!$U$7:$U$399=\"CALDAP\")*('2. Assisted & Restricted Units'!$V$7:$V$399=\"50% AMI\"))","v":0},{"$f":"SUMPRODUCT(('2. Assisted & Restricted Units'!$E$7:$E$399=\"3\")*('2. Assisted & Restricted Units'!$U$7:$U$399=\"CHRP-R\")*('2. Assisted & Restricted Units'!$V$7:$V$399=\"50% AMI\"))","v":0},{"$f":"SUMPRODUCT(('2. Assisted & Restricted Units'!$E$7:$E$399=\"3\")*('2. Assisted & Restricted Units'!$U$7:$U$399=\"DDS\")*('2. Assisted & Restricted Units'!$V$7:$V$399=\"50% AMI\"))","v":0},{"$f":"SUMPRODUCT(('2. Assisted & Restricted Units'!$E$7:$E$399=\"3\")*('2. Assisted & Restricted Units'!$U$7:$U$399=\"DPRLP\")*('2. Assisted & Restricted Units'!$V$7:$V$399=\"50% AMI\"))","v":0},{"$f":"SUMPRODUCT(('2. Assisted & Restricted Units'!$E$7:$E$399=\"3\")*('2. Assisted & Restricted Units'!$U$7:$U$399=\"FHDP\")*('2. Assisted & Restricted Units'!$V$7:$V$399=\"50% AMI\"))","v":0},{"$f":"SUMPRODUCT(('2. Assisted & Restricted Units'!$E$7:$E$399=\"3\")*('2. Assisted & Restricted Units'!$U$7:$U$399=\"FMTW\")*('2. Assisted & Restricted Units'!$V$7:$V$399=\"50% AMI\"))","v":0},null,{"$f":"SUMPRODUCT(('2. Assisted & Restricted Units'!$E$7:$E$399=\"3\")*('2. Assisted & Restricted Units'!$U$7:$U$399=\"HOME\")*('2. Assisted & Restricted Units'!$V$7:$V$399=\"50% AMI\"))","v":0},{"$f":"SUMPRODUCT(('2. Assisted & Restricted Units'!$E$7:$E$399=\"3\")*('2. Assisted & Restricted Units'!$U$7:$U$399=\"Market Rate\")*('2. Assisted & Restricted Units'!$V$7:$V$399=\"50% AMI\"))","v":0},{"$f":"SUMPRODUCT(('2. Assisted & Restricted Units'!$E$7:$E$399=\"3\")*('2. Assisted & Restricted Units'!$U$7:$U$399=\"MHP\")*('2. Assisted & Restricted Units'!$V$7:$V$399=\"50% AMI\"))","v":0},{"$f":"SUMPRODUCT(('2. Assisted & Restricted Units'!$E$7:$E$399=\"3\")*('2. Assisted & Restricted Units'!$U$7:$U$399=\"NonAssisted\")*('2. Assisted & Restricted Units'!$V$7:$V$399=\"50% AMI\"))","v":0},{"$f":"SUMPRODUCT(('2. Assisted & Restricted Units'!$E$7:$E$399=\"3\")*('2. Assisted & Restricted Units'!$U$7:$U$399=\"Other Restr\")*('2. Assisted & Restricted Units'!$V$7:$V$399=\"50% AMI\"))","v":0},{"$f":"SUMPRODUCT(('2. Assisted & Restricted Units'!$E$7:$E$399=\"3\")*('2. Assisted & Restricted Units'!$U$7:$U$399=\"RHCP-B\")*('2. Assisted & Restricted Units'!$V$7:$V$399=\"50% AMI\"))","v":0},{"$f":"SUMPRODUCT(('2. Assisted & Restricted Units'!$E$7:$E$399=\"3\")*('2. Assisted & Restricted Units'!$U$7:$U$399=\"SERA\")*('2. Assisted & Restricted Units'!$V$7:$V$399=\"50% AMI\"))","v":0},{"$f":"SUMPRODUCT(('2. Assisted & Restricted Units'!$E$7:$E$399=\"3\")*('2. Assisted & Restricted Units'!$U$7:$U$399=\"SUHRP\")*('2. Assisted & Restricted Units'!$V$7:$V$399=\"50% AMI\"))","v":0},{"$f":"SUMPRODUCT(('2. Assisted & Restricted Units'!$E$7:$E$399=\"3\")*('2. Assisted & Restricted Units'!$U$7:$U$399=\"TOD\")*('2. Assisted & Restricted Units'!$V$7:$V$399=\"50% AMI\"))","v":0},{"$f":"SUMPRODUCT(('2. Assisted & Restricted Units'!$E$7:$E$399=\"3\")*('2. Assisted & Restricted Units'!$U$7:$U$399=\"707-E\")*('2. Assisted & Restricted Units'!$V$7:$V$399=\"50% AMI\"))","v":0},{"$f":"SUMPRODUCT(('2. Assisted & Restricted Units'!$E$7:$E$399=\"3\")*('2. Assisted & Restricted Units'!$U$7:$U$399=\"707-N\")*('2. Assisted & Restricted Units'!$V$7:$V$399=\"50% AMI\"))","v":0}]
["3 Bedroom 55% AMI",{"$f":"SUMPRODUCT(('2. Assisted & Restricted Units'!$E$7:$E$399=\"3\")*('2. Assisted & Restricted Units'!$U$7:$U$399=\"CALDAP\")*('2. Assisted & Restricted Units'!$V$7:$V$399=\"55% AMI\"))","v":0},{"$f":"SUMPRODUCT(('2. Assisted & Restricted Units'!$E$7:$E$399=\"3\")*('2. Assisted & Restricted Units'!$U$7:$U$399=\"CHRP-R\")*('2. Assisted & Restricted Units'!$V$7:$V$399=\"55% AMI\"))","v":0},{"$f":"SUMPRODUCT(('2. Assisted & Restricted Units'!$E$7:$E$399=\"3\")*('2. Assisted & Restricted Units'!$U$7:$U$399=\"DDS\")*('2. Assisted & Restricted Units'!$V$7:$V$399=\"55% AMI\"))","v":0},{"$f":"SUMPRODUCT(('2. Assisted & Restricted Units'!$E$7:$E$399=\"3\")*('2. Assisted & Restricted Units'!$U$7:$U$399=\"DPRLP\")*('2. Assisted & Restricted Units'!$V$7:$V$399=\"55% AMI\"))","v":0},{"$f":"SUMPRODUCT(('2. Assisted & Restricted Units'!$E$7:$E$399=\"3\")*('2. Assisted & Restricted Units'!$U$7:$U$399=\"FHDP\")*('2. Assisted & Restricted Units'!$V$7:$V$399=\"55% AMI\"))","v":0},{"$f":"SUMPRODUCT(('2. Assisted & Restricted Units'!$E$7:$E$399=\"3\")*('2. Assisted & Restricted Units'!$U$7:$U$399=\"FMTW\")*('2. Assisted & Restricted Units'!$V$7:$V$399=\"55% AMI\"))","v":0},null,{"$f":"SUMPRODUCT(('2. Assisted & Restricted Units'!$E$7:$E$399=\"3\")*('2. Assisted & Restricted Units'!$U$7:$U$399=\"HOME\")*('2. Assisted & Restricted Units'!$V$7:$V$399=\"55% AMI\"))","v":0},{"$f":"SUMPRODUCT(('2. Assisted & Restricted Units'!$E$7:$E$399=\"3\")*('2. Assisted & Restricted Units'!$U$7:$U$399=\"Market Rate\")*('2. Assisted & Restricted Units'!$V$7:$V$399=\"55% AMI\"))","v":0},{"$f":"SUMPRODUCT(('2. Assisted & Restricted Units'!$E$7:$E$399=\"3\")*('2. Assisted & Restricted Units'!$U$7:$U$399=\"MHP\")*('2. Assisted & Restricted Units'!$V$7:$V$399=\"55% AMI\"))","v":0},{"$f":"SUMPRODUCT(('2. Assisted & Restricted Units'!$E$7:$E$399=\"3\")*('2. Assisted & Restricted Units'!$U$7:$U$399=\"NonAssisted\")*('2. Assisted & Restricted Units'!$V$7:$V$399=\"55% AMI\"))","v":0},{"$f":"SUMPRODUCT(('2. Assisted & Restricted Units'!$E$7:$E$399=\"3\")*('2. Assisted & Restricted Units'!$U$7:$U$399=\"Other Restr\")*('2. Assisted & Restricted Units'!$V$7:$V$399=\"55% AMI\"))","v":0},{"$f":"SUMPRODUCT(('2. Assisted & Restricted Units'!$E$7:$E$399=\"3\")*('2. Assisted & Restricted Units'!$U$7:$U$399=\"RHCP-B\")*('2. Assisted & Restricted Units'!$V$7:$V$399=\"55% AMI\"))","v":0},{"$f":"SUMPRODUCT(('2. Assisted & Restricted Units'!$E$7:$E$399=\"3\")*('2. Assisted & Restricted Units'!$U$7:$U$399=\"SERA\")*('2. Assisted & Restricted Units'!$V$7:$V$399=\"55% AMI\"))","v":0},{"$f":"SUMPRODUCT(('2. Assisted & Restricted Units'!$E$7:$E$399=\"3\")*('2. Assisted & Restricted Units'!$U$7:$U$399=\"SUHRP\")*('2. Assisted & Restricted Units'!$V$7:$V$399=\"55% AMI\"))","v":0},{"$f":"SUMPRODUCT(('2. Assisted & Restricted Units'!$E$7:$E$399=\"3\")*('2. Assisted & Restricted Units'!$U$7:$U$399=\"TOD\")*('2. Assisted & Restricted Units'!$V$7:$V$399=\"55% AMI\"))","v":0},{"$f":"SUMPRODUCT(('2. Assisted & Restricted Units'!$E$7:$E$399=\"3\")*('2. Assisted & Restricted Units'!$U$7:$U$399=\"707-E\")*('2. Assisted & Restricted Units'!$V$7:$V$399=\"55% AMI\"))","v":0},{"$f":"SUMPRODUCT(('2. Assisted & Restricted Units'!$E$7:$E$399=\"3\")*('2. Assisted & Restricted Units'!$U$7:$U$399=\"707-N\")*('2. Assisted & Restricted Units'!$V$7:$V$399=\"55% AMI\"))","v":0}]
["3 Bedroom 60% AMI",{"$f":"SUMPRODUCT(('2. Assisted & Restricted Units'!$E$7:$E$399=\"3\")*('2. Assisted & Restricted Units'!$U$7:$U$399=\"CALDAP\")*('2. Assisted & Restricted Units'!$V$7:$V$399=\"60% AMI\"))","v":0},{"$f":"SUMPRODUCT(('2. Assisted & Restricted Units'!$E$7:$E$399=\"3\")*('2. Assisted & Restricted Units'!$U$7:$U$399=\"CHRP-R\")*('2. Assisted & Restricted Units'!$V$7:$V$399=\"60% AMI\"))","v":0},{"$f":"SUMPRODUCT(('2. Assisted & Restricted Units'!$E$7:$E$399=\"3\")*('2. Assisted & Restricted Units'!$U$7:$U$399=\"DDS\")*('2. Assisted & Restricted Units'!$V$7:$V$399=\"60% AMI\"))","v":0},{"$f":"SUMPRODUCT(('2. Assisted & Restricted Units'!$E$7:$E$399=\"3\")*('2. Assisted & Restricted Units'!$U$7:$U$399=\"DPRLP\")*('2. Assisted & Restricted Units'!$V$7:$V$399=\"60% AMI\"))","v":0},{"$f":"SUMPRODUCT(('2. Assisted & Restricted Units'!$E$7:$E$399=\"3\")*('2. Assisted & Restricted Units'!$U$7:$U$399=\"FHDP\")*('2. Assisted & Restricted Units'!$V$7:$V$399=\"60% AMI\"))","v":0},{"$f":"SUMPRODUCT(('2. Assisted & Restricted Units'!$E$7:$E$399=\"3\")*('2. Assisted & Restricted Units'!$U$7:$U$399=\"FMTW\")*('2. Assisted & Restricted Units'!$V$7:$V$399=\"60% AMI\"))","v":0},null,{"$f":"SUMPRODUCT(('2. Assisted & Restricted Units'!$E$7:$E$399=\"3\")*('2. Assisted & Restricted Units'!$U$7:$U$399=\"HOME\")*('2. Assisted & Restricted Units'!$V$7:$V$399=\"60% AMI\"))","v":0},{"$f":"SUMPRODUCT(('2. Assisted & Restricted Units'!$E$7:$E$399=\"3\")*('2. Assisted & Restricted Units'!$U$7:$U$399=\"Market Rate\")*('2. Assisted & Restricted Units'!$V$7:$V$399=\"60% AMI\"))","v":0},{"$f":"SUMPRODUCT(('2. Assisted & Restricted Units'!$E$7:$E$399=\"3\")*('2. Assisted & Restricted Units'!$U$7:$U$399=\"MHP\")*('2. Assisted & Restricted Units'!$V$7:$V$399=\"60% AMI\"))","v":0},{"$f":"SUMPRODUCT(('2. Assisted & Restricted Units'!$E$7:$E$399=\"3\")*('2. Assisted & Restricted Units'!$U$7:$U$399=\"NonAssisted\")*('2. Assisted & Restricted Units'!$V$7:$V$399=\"60% AMI\"))","v":0},{"$f":"SUMPRODUCT(('2. Assisted & Restricted Units'!$E$7:$E$399=\"3\")*('2. Assisted & Restricted Units'!$U$7:$U$399=\"Other Restr\")*('2. Assisted & Restricted Units'!$V$7:$V$399=\"60% AMI\"))","v":0},{"$f":"SUMPRODUCT(('2. Assisted & Restricted Units'!$E$7:$E$399=\"3\")*('2. Assisted & Restricted Units'!$U$7:$U$399=\"RHCP-B\")*('2. Assisted & Restricted Units'!$V$7:$V$399=\"60% AMI\"))","v":0},{"$f":"SUMPRODUCT(('2. Assisted & Restricted Units'!$E$7:$E$399=\"3\")*('2. Assisted & Restricted Units'!$U$7:$U$399=\"SERA\")*('2. Assisted & Restricted Units'!$V$7:$V$399=\"60% AMI\"))","v":0},{"$f":"SUMPRODUCT(('2. Assisted & Restricted Units'!$E$7:$E$399=\"3\")*('2. Assisted & Restricted Units'!$U$7:$U$399=\"SUHRP\")*('2. Assisted & Restricted Units'!$V$7:$V$399=\"60% AMI\"))","v":0},{"$f":"SUMPRODUCT(('2. Assisted & Restricted Units'!$E$7:$E$399=\"3\")*('2. Assisted & Restricted Units'!$U$7:$U$399=\"TOD\")*('2. Assisted & Restricted Units'!$V$7:$V$399=\"60% AMI\"))","v":0},{"$f":"SUMPRODUCT(('2. Assisted & Restricted Units'!$E$7:$E$399=\"3\")*('2. Assisted & Restricted Units'!$U$7:$U$399=\"707-E\")*('2. Assisted & Restricted Units'!$V$7:$V$399=\"60% AMI\"))","v":0},{"$f":"SUMPRODUCT(('2. Assisted & Restricted Units'!$E$7:$E$399=\"3\")*('2. Assisted & Restricted Units'!$U$7:$U$399=\"707-N\")*('2. Assisted & Restricted Units'!$V$7:$V$399=\"60% AMI\"))","v":0}]
["3 Bedroom 80% AMI",{"$f":"SUMPRODUCT(('2. Assisted & Restricted Units'!$E$7:$E$399=\"3\")*('2. Assisted & Restricted Units'!$U$7:$U$399=\"CALDAP\")*('2. Assisted & Restricted Units'!$V$7:$V$399=\"80% AMI\"))","v":0},{"$f":"SUMPRODUCT(('2. Assisted & Restricted Units'!$E$7:$E$399=\"3\")*('2. Assisted & Restricted Units'!$U$7:$U$399=\"CHRP-R\")*('2. Assisted & Restricted Units'!$V$7:$V$399=\"80% AMI\"))","v":0},{"$f":"SUMPRODUCT(('2. Assisted & Restricted Units'!$E$7:$E$399=\"3\")*('2. Assisted & Restricted Units'!$U$7:$U$399=\"DDS\")*('2. Assisted & Restricted Units'!$V$7:$V$399=\"80% AMI\"))","v":0},{"$f":"SUMPRODUCT(('2. Assisted & Restricted Units'!$E$7:$E$399=\"3\")*('2. Assisted & Restricted Units'!$U$7:$U$399=\"DPRLP\")*('2. Assisted & Restricted Units'!$V$7:$V$399=\"80% AMI\"))","v":0},{"$f":"SUMPRODUCT(('2. Assisted & Restricted Units'!$E$7:$E$399=\"3\")*('2. Assisted & Restricted Units'!$U$7:$U$399=\"FHDP\")*('2. Assisted & Restricted Units'!$V$7:$V$399=\"80% AMI\"))","v":0},{"$f":"SUMPRODUCT(('2. Assisted & Restricted Units'!$E$7:$E$399=\"3\")*('2. Assisted & Restricted Units'!$U$7:$U$399=\"FMTW\")*('2. Assisted & Restricted Units'!$V$7:$V$399=\"80% AMI\"))","v":0},null,{"$f":"SUMPRODUCT(('2. Assisted & Restricted Units'!$E$7:$E$399=\"3\")*('2. Assisted & Restricted Units'!$U$7:$U$399=\"HOME\")*('2. Assisted & Restricted Units'!$V$7:$V$399=\"80% AMI\"))","v":0},{"$f":"SUMPRODUCT(('2. Assisted & Restricted Units'!$E$7:$E$399=\"3\")*('2. Assisted & Restricted Units'!$U$7:$U$399=\"Market Rate\")*('2. Assisted & Restricted Units'!$V$7:$V$399=\"80% AMI\"))","v":0},{"$f":"SUMPRODUCT(('2. Assisted & Restricted Units'!$E$7:$E$399=\"3\")*('2. Assisted & Restricted Units'!$U$7:$U$399=\"MHP\")*('2. Assisted & Restricted Units'!$V$7:$V$399=\"80% AMI\"))","v":0},{"$f":"SUMPRODUCT(('2. Assisted & Restricted Units'!$E$7:$E$399=\"3\")*('2. Assisted & Restricted Units'!$U$7:$U$399=\"NonAssisted\")*('2. Assisted & Restricted Units'!$V$7:$V$399=\"80% AMI\"))","v":0},{"$f":"SUMPRODUCT(('2. Assisted & Restricted Units'!$E$7:$E$399=\"3\")*('2. Assisted & Restricted Units'!$U$7:$U$399=\"Other Restr\")*('2. Assisted & Restricted Units'!$V$7:$V$399=\"80% AMI\"))","v":0},{"$f":"SUMPRODUCT(('2. Assisted & Restricted Units'!$E$7:$E$399=\"3\")*('2. Assisted & Restricted Units'!$U$7:$U$399=\"RHCP-B\")*('2. Assisted & Restricted Units'!$V$7:$V$399=\"80% AMI\"))","v":0},{"$f":"SUMPRODUCT(('2. Assisted & Restricted Units'!$E$7:$E$399=\"3\")*('2. Assisted & Restricted Units'!$U$7:$U$399=\"SERA\")*('2. Assisted & Restricted Units'!$V$7:$V$399=\"80% AMI\"))","v":0},{"$f":"SUMPRODUCT(('2. Assisted & Restricted Units'!$E$7:$E$399=\"3\")*('2. Assisted & Restricted Units'!$U$7:$U$399=\"SUHRP\")*('2. Assisted & Restricted Units'!$V$7:$V$399=\"80% AMI\"))","v":0},{"$f":"SUMPRODUCT(('2. Assisted & Restricted Units'!$E$7:$E$399=\"3\")*('2. Assisted & Restricted Units'!$U$7:$U$399=\"TOD\")*('2. Assisted & Restricted Units'!$V$7:$V$399=\"80% AMI\"))","v":0},{"$f":"SUMPRODUCT(('2. Assisted & Restricted Units'!$E$7:$E$399=\"3\")*('2. Assisted & Restricted Units'!$U$7:$U$399=\"707-E\")*('2. Assisted & Restricted Units'!$V$7:$V$399=\"80% AMI\"))","v":0},{"$f":"SUMPRODUCT(('2. Assisted & Restricted Units'!$E$7:$E$399=\"3\")*('2. Assisted & Restricted Units'!$U$7:$U$399=\"707-N\")*('2. Assisted & Restricted Units'!$V$7:$V$399=\"80% AMI\"))","v":0}]
["3 Bedroom 20% SMI",{"$f":"SUMPRODUCT(('2. Assisted & Restricted Units'!$E$7:$E$399=\"3\")*('2. Assisted & Restricted Units'!$U$7:$U$399=\"CALDAP\")*('2. Assisted & Restricted Units'!$V$7:$V$399=\"20% SMI\"))","v":0},{"$f":"SUMPRODUCT(('2. Assisted & Restricted Units'!$E$7:$E$399=\"3\")*('2. Assisted & Restricted Units'!$U$7:$U$399=\"CHRP-R\")*('2. Assisted & Restricted Units'!$V$7:$V$399=\"20% SMI\"))","v":0},{"$f":"SUMPRODUCT(('2. Assisted & Restricted Units'!$E$7:$E$399=\"3\")*('2. Assisted & Restricted Units'!$U$7:$U$399=\"DDS\")*('2. Assisted & Restricted Units'!$V$7:$V$399=\"20% SMI\"))","v":0},{"$f":"SUMPRODUCT(('2. Assisted & Restricted Units'!$E$7:$E$399=\"3\")*('2. Assisted & Restricted Units'!$U$7:$U$399=\"DPRLP\")*('2. Assisted & Restricted Units'!$V$7:$V$399=\"20% SMI\"))","v":0},{"$f":"SUMPRODUCT(('2. Assisted & Restricted Units'!$E$7:$E$399=\"3\")*('2. Assisted & Restricted Units'!$U$7:$U$399=\"FHDP\")*('2. Assisted & Restricted Units'!$V$7:$V$399=\"20% SMI\"))","v":0},{"$f":"SUMPRODUCT(('2. Assisted & Restricted Units'!$E$7:$E$399=\"3\")*('2. Assisted & Restricted Units'!$U$7:$U$399=\"FMTW\")*('2. Assisted & Restricted Units'!$V$7:$V$399=\"20% SMI\"))","v":0},null,{"$f":"SUMPRODUCT(('2. Assisted & Restricted Units'!$E$7:$E$399=\"3\")*('2. Assisted & Restricted Units'!$U$7:$U$399=\"HOME\")*('2. Assisted & Restricted Units'!$V$7:$V$399=\"20% SMI\"))","v":0},{"$f":"SUMPRODUCT(('2. Assisted & Restricted Units'!$E$7:$E$399=\"3\")*('2. Assisted & Restricted Units'!$U$7:$U$399=\"Market Rate\")*('2. Assisted & Restricted Units'!$V$7:$V$399=\"20% SMI\"))","v":0},{"$f":"SUMPRODUCT(('2. Assisted & Restricted Units'!$E$7:$E$399=\"3\")*('2. Assisted & Restricted Units'!$U$7:$U$399=\"MHP\")*('2. Assisted & Restricted Units'!$V$7:$V$399=\"20% SMI\"))","v":0},{"$f":"SUMPRODUCT(('2. Assisted & Restricted Units'!$E$7:$E$399=\"3\")*('2. Assisted & Restricted Units'!$U$7:$U$399=\"NonAssisted\")*('2. Assisted & Restricted Units'!$V$7:$V$399=\"20% SMI\"))","v":0},{"$f":"SUMPRODUCT(('2. Assisted & Restricted Units'!$E$7:$E$399=\"3\")*('2. Assisted & Restricted Units'!$U$7:$U$399=\"Other Restr\")*('2. Assisted & Restricted Units'!$V$7:$V$399=\"20% SMI\"))","v":0},{"$f":"SUMPRODUCT(('2. Assisted & Restricted Units'!$E$7:$E$399=\"3\")*('2. Assisted & Restricted Units'!$U$7:$U$399=\"RHCP-B\")*('2. Assisted & Restricted Units'!$V$7:$V$399=\"20% SMI\"))","v":0},{"$f":"SUMPRODUCT(('2. Assisted & Restricted Units'!$E$7:$E$399=\"3\")*('2. Assisted & Restricted Units'!$U$7:$U$399=\"SERA\")*('2. Assisted & Restricted Units'!$V$7:$V$399=\"20% SMI\"))","v":0},{"$f":"SUMPRODUCT(('2. Assisted & Restricted Units'!$E$7:$E$399=\"3\")*('2. Assisted & Restricted Units'!$U$7:$U$399=\"SUHRP\")*('2. Assisted & Restricted Units'!$V$7:$V$399=\"20% SMI\"))","v":0},{"$f":"SUMPRODUCT(('2. Assisted & Restricted Units'!$E$7:$E$399=\"3\")*('2. Assisted & Restricted Units'!$U$7:$U$399=\"TOD\")*('2. Assisted & Restricted Units'!$V$7:$V$399=\"20% SMI\"))","v":0},{"$f":"SUMPRODUCT(('2. Assisted & Restricted Units'!$E$7:$E$399=\"3\")*('2. Assisted & Restricted Units'!$U$7:$U$399=\"707-E\")*('2. Assisted & Restricted Units'!$V$7:$V$399=\"20% SMI\"))","v":0},{"$f":"SUMPRODUCT(('2. Assisted & Restricted Units'!$E$7:$E$399=\"3\")*('2. Assisted & Restricted Units'!$U$7:$U$399=\"707-N\")*('2. Assisted & Restricted Units'!$V$7:$V$399=\"20% SMI\"))","v":0}]
["3 Bedroom 25% SMI",{"$f":"SUMPRODUCT(('2. Assisted & Restricted Units'!$E$7:$E$399=\"3\")*('2. Assisted & Restricted Units'!$U$7:$U$399=\"CALDAP\")*('2. Assisted & Restricted Units'!$V$7:$V$399=\"25% SMI\"))","v":0},{"$f":"SUMPRODUCT(('2. Assisted & Restricted Units'!$E$7:$E$399=\"3\")*('2. Assisted & Restricted Units'!$U$7:$U$399=\"CHRP-R\")*('2. Assisted & Restricted Units'!$V$7:$V$399=\"25% SMI\"))","v":0},{"$f":"SUMPRODUCT(('2. Assisted & Restricted Units'!$E$7:$E$399=\"3\")*('2. Assisted & Restricted Units'!$U$7:$U$399=\"DDS\")*('2. Assisted & Restricted Units'!$V$7:$V$399=\"25% SMI\"))","v":0},{"$f":"SUMPRODUCT(('2. Assisted & Restricted Units'!$E$7:$E$399=\"3\")*('2. Assisted & Restricted Units'!$U$7:$U$399=\"DPRLP\")*('2. Assisted & Restricted Units'!$V$7:$V$399=\"25% SMI\"))","v":0},{"$f":"SUMPRODUCT(('2. Assisted & Restricted Units'!$E$7:$E$399=\"3\")*('2. Assisted & Restricted Units'!$U$7:$U$399=\"FHDP\")*('2. Assisted & Restricted Units'!$V$7:$V$399=\"25% SMI\"))","v":0},{"$f":"SUMPRODUCT(('2. Assisted & Restricted Units'!$E$7:$E$399=\"3\")*('2. Assisted & Restricted Units'!$U$7:$U$399=\"FMTW\")*('2. Assisted & Restricted Units'!$V$7:$V$399=\"25% SMI\"))","v":0},null,{"$f":"SUMPRODUCT(('2. Assisted & Restricted Units'!$E$7:$E$399=\"3\")*('2. Assisted & Restricted Units'!$U$7:$U$399=\"HOME\")*('2. Assisted & Restricted Units'!$V$7:$V$399=\"25% SMI\"))","v":0},{"$f":"SUMPRODUCT(('2. Assisted & Restricted Units'!$E$7:$E$399=\"3\")*('2. Assisted & Restricted Units'!$U$7:$U$399=\"Market Rate\")*('2. Assisted & Restricted Units'!$V$7:$V$399=\"25% SMI\"))","v":0},{"$f":"SUMPRODUCT(('2. Assisted & Restricted Units'!$E$7:$E$399=\"3\")*('2. Assisted & Restricted Units'!$U$7:$U$399=\"MHP\")*('2. Assisted & Restricted Units'!$V$7:$V$399=\"25% SMI\"))","v":0},{"$f":"SUMPRODUCT(('2. Assisted & Restricted Units'!$E$7:$E$399=\"3\")*('2. Assisted & Restricted Units'!$U$7:$U$399=\"NonAssisted\")*('2. Assisted & Restricted Units'!$V$7:$V$399=\"25% SMI\"))","v":0},{"$f":"SUMPRODUCT(('2. Assisted & Restricted Units'!$E$7:$E$399=\"3\")*('2. Assisted & Restricted Units'!$U$7:$U$399=\"Other Restr\")*('2. Assisted & Restricted Units'!$V$7:$V$399=\"25% SMI\"))","v":0},{"$f":"SUMPRODUCT(('2. Assisted & Restricted Units'!$E$7:$E$399=\"3\")*('2. Assisted & Restricted Units'!$U$7:$U$399=\"RHCP-B\")*('2. Assisted & Restricted Units'!$V$7:$V$399=\"25% SMI\"))","v":0},{"$f":"SUMPRODUCT(('2. Assisted & Restricted Units'!$E$7:$E$399=\"3\")*('2. Assisted & Restricted Units'!$U$7:$U$399=\"SERA\")*('2. Assisted & Restricted Units'!$V$7:$V$399=\"25% SMI\"))","v":0},{"$f":"SUMPRODUCT(('2. Assisted & Restricted Units'!$E$7:$E$399=\"3\")*('2. Assisted & Restricted Units'!$U$7:$U$399=\"SUHRP\")*('2. Assisted & Restricted Units'!$V$7:$V$399=\"25% SMI\"))","v":0},{"$f":"SUMPRODUCT(('2. Assisted & Restricted Units'!$E$7:$E$399=\"3\")*('2. Assisted & Restricted Units'!$U$7:$U$399=\"TOD\")*('2. Assisted & Restricted Units'!$V$7:$V$399=\"25% SMI\"))","v":0},{"$f":"SUMPRODUCT(('2. Assisted & Restricted Units'!$E$7:$E$399=\"3\")*('2. Assisted & Restricted Units'!$U$7:$U$399=\"707-E\")*('2. Assisted & Restricted Units'!$V$7:$V$399=\"25% SMI\"))","v":0},{"$f":"SUMPRODUCT(('2. Assisted & Restricted Units'!$E$7:$E$399=\"3\")*('2. Assisted & Restricted Units'!$U$7:$U$399=\"707-N\")*('2. Assisted & Restricted Units'!$V$7:$V$399=\"25% SMI\"))","v":0}]
["3 Bedroom 30% SMI",{"$f":"SUMPRODUCT(('2. Assisted & Restricted Units'!$E$7:$E$399=\"3\")*('2. Assisted & Restricted Units'!$U$7:$U$399=\"CALDAP\")*('2. Assisted & Restricted Units'!$V$7:$V$399=\"30% SMI\"))","v":0},{"$f":"SUMPRODUCT(('2. Assisted & Restricted Units'!$E$7:$E$399=\"3\")*('2. Assisted & Restricted Units'!$U$7:$U$399=\"CHRP-R\")*('2. Assisted & Restricted Units'!$V$7:$V$399=\"30% SMI\"))","v":0},{"$f":"SUMPRODUCT(('2. Assisted & Restricted Units'!$E$7:$E$399=\"3\")*('2. Assisted & Restricted Units'!$U$7:$U$399=\"DDS\")*('2. Assisted & Restricted Units'!$V$7:$V$399=\"30% SMI\"))","v":0},{"$f":"SUMPRODUCT(('2. Assisted & Restricted Units'!$E$7:$E$399=\"3\")*('2. Assisted & Restricted Units'!$U$7:$U$399=\"DPRLP\")*('2. Assisted & Restricted Units'!$V$7:$V$399=\"30% SMI\"))","v":0},{"$f":"SUMPRODUCT(('2. Assisted & Restricted Units'!$E$7:$E$399=\"3\")*('2. Assisted & Restricted Units'!$U$7:$U$399=\"FHDP\")*('2. Assisted & Restricted Units'!$V$7:$V$399=\"30% SMI\"))","v":0},{"$f":"SUMPRODUCT(('2. Assisted & Restricted Units'!$E$7:$E$399=\"3\")*('2. Assisted & Restricted Units'!$U$7:$U$399=\"FMTW\")*('2. Assisted & Restricted Units'!$V$7:$V$399=\"30% SMI\"))","v":0},null,{"$f":"SUMPRODUCT(('2. Assisted & Restricted Units'!$E$7:$E$399=\"3\")*('2. Assisted & Restricted Units'!$U$7:$U$399=\"HOME\")*('2. Assisted & Restricted Units'!$V$7:$V$399=\"30% SMI\"))","v":0},{"$f":"SUMPRODUCT(('2. Assisted & Restricted Units'!$E$7:$E$399=\"3\")*('2. Assisted & Restricted Units'!$U$7:$U$399=\"Market Rate\")*('2. Assisted & Restricted Units'!$V$7:$V$399=\"30% SMI\"))","v":0},{"$f":"SUMPRODUCT(('2. Assisted & Restricted Units'!$E$7:$E$399=\"3\")*('2. Assisted & Restricted Units'!$U$7:$U$399=\"MHP\")*('2. Assisted & Restricted Units'!$V$7:$V$399=\"30% SMI\"))","v":0},{"$f":"SUMPRODUCT(('2. Assisted & Restricted Units'!$E$7:$E$399=\"3\")*('2. Assisted & Restricted Units'!$U$7:$U$399=\"NonAssisted\")*('2. Assisted & Restricted Units'!$V$7:$V$399=\"30% SMI\"))","v":0},{"$f":"SUMPRODUCT(('2. Assisted & Restricted Units'!$E$7:$E$399=\"3\")*('2. Assisted & Restricted Units'!$U$7:$U$399=\"Other Restr\")*('2. Assisted & Restricted Units'!$V$7:$V$399=\"30% SMI\"))","v":0},{"$f":"SUMPRODUCT(('2. Assisted & Restricted Units'!$E$7:$E$399=\"3\")*('2. Assisted & Restricted Units'!$U$7:$U$399=\"RHCP-B\")*('2. Assisted & Restricted Units'!$V$7:$V$399=\"30% SMI\"))","v":0},{"$f":"SUMPRODUCT(('2. Assisted & Restricted Units'!$E$7:$E$399=\"3\")*('2. Assisted & Restricted Units'!$U$7:$U$399=\"SERA\")*('2. Assisted & Restricted Units'!$V$7:$V$399=\"30% SMI\"))","v":0},{"$f":"SUMPRODUCT(('2. Assisted & Restricted Units'!$E$7:$E$399=\"3\")*('2. Assisted & Restricted Units'!$U$7:$U$399=\"SUHRP\")*('2. Assisted & Restricted Units'!$V$7:$V$399=\"30% SMI\"))","v":0},{"$f":"SUMPRODUCT(('2. Assisted & Restricted Units'!$E$7:$E$399=\"3\")*('2. Assisted & Restricted Units'!$U$7:$U$399=\"TOD\")*('2. Assisted & Restricted Units'!$V$7:$V$399=\"30% SMI\"))","v":0},{"$f":"SUMPRODUCT(('2. Assisted & Restricted Units'!$E$7:$E$399=\"3\")*('2. Assisted & Restricted Units'!$U$7:$U$399=\"707-E\")*('2. Assisted & Restricted Units'!$V$7:$V$399=\"30% SMI\"))","v":0},{"$f":"SUMPRODUCT(('2. Assisted & Restricted Units'!$E$7:$E$399=\"3\")*('2. Assisted & Restricted Units'!$U$7:$U$399=\"707-N\")*('2. Assisted & Restricted Units'!$V$7:$V$399=\"30% SMI\"))","v":0}]
["3 Bedroom 35% SMI",{"$f":"SUMPRODUCT(('2. Assisted & Restricted Units'!$E$7:$E$399=\"3\")*('2. Assisted & Restricted Units'!$U$7:$U$399=\"CALDAP\")*('2. Assisted & Restricted Units'!$V$7:$V$399=\"35% SMI\"))","v":0},{"$f":"SUMPRODUCT(('2. Assisted & Restricted Units'!$E$7:$E$399=\"3\")*('2. Assisted & Restricted Units'!$U$7:$U$399=\"CHRP-R\")*('2. Assisted & Restricted Units'!$V$7:$V$399=\"35% SMI\"))","v":0},{"$f":"SUMPRODUCT(('2. Assisted & Restricted Units'!$E$7:$E$399=\"3\")*('2. Assisted & Restricted Units'!$U$7:$U$399=\"DDS\")*('2. Assisted & Restricted Units'!$V$7:$V$399=\"35% SMI\"))","v":0},{"$f":"SUMPRODUCT(('2. Assisted & Restricted Units'!$E$7:$E$399=\"3\")*('2. Assisted & Restricted Units'!$U$7:$U$399=\"DPRLP\")*('2. Assisted & Restricted Units'!$V$7:$V$399=\"35% SMI\"))","v":0},{"$f":"SUMPRODUCT(('2. Assisted & Restricted Units'!$E$7:$E$399=\"3\")*('2. Assisted & Restricted Units'!$U$7:$U$399=\"FHDP\")*('2. Assisted & Restricted Units'!$V$7:$V$399=\"35% SMI\"))","v":0},{"$f":"SUMPRODUCT(('2. Assisted & Restricted Units'!$E$7:$E$399=\"3\")*('2. Assisted & Restricted Units'!$U$7:$U$399=\"FMTW\")*('2. Assisted & Restricted Units'!$V$7:$V$399=\"35% SMI\"))","v":0},null,{"$f":"SUMPRODUCT(('2. Assisted & Restricted Units'!$E$7:$E$399=\"3\")*('2. Assisted & Restricted Units'!$U$7:$U$399=\"HOME\")*('2. Assisted & Restricted Units'!$V$7:$V$399=\"35% SMI\"))","v":0},{"$f":"SUMPRODUCT(('2. Assisted & Restricted Units'!$E$7:$E$399=\"3\")*('2. Assisted & Restricted Units'!$U$7:$U$399=\"Market Rate\")*('2. Assisted & Restricted Units'!$V$7:$V$399=\"35% SMI\"))","v":0},{"$f":"SUMPRODUCT(('2. Assisted & Restricted Units'!$E$7:$E$399=\"3\")*('2. Assisted & Restricted Units'!$U$7:$U$399=\"MHP\")*('2. Assisted & Restricted Units'!$V$7:$V$399=\"35% SMI\"))","v":0},{"$f":"SUMPRODUCT(('2. Assisted & Restricted Units'!$E$7:$E$399=\"3\")*('2. Assisted & Restricted Units'!$U$7:$U$399=\"NonAssisted\")*('2. Assisted & Restricted Units'!$V$7:$V$399=\"35% SMI\"))","v":0},{"$f":"SUMPRODUCT(('2. Assisted & Restricted Units'!$E$7:$E$399=\"3\")*('2. Assisted & Restricted Units'!$U$7:$U$399=\"Other Restr\")*('2. Assisted & Restricted Units'!$V$7:$V$399=\"35% SMI\"))","v":0},{"$f":"SUMPRODUCT(('2. Assisted & Restricted Units'!$E$7:$E$399=\"3\")*('2. Assisted & Restricted Units'!$U$7:$U$399=\"RHCP-B\")*('2. Assisted & Restricted Units'!$V$7:$V$399=\"35% SMI\"))","v":0},{"$f":"SUMPRODUCT(('2. Assisted & Restricted Units'!$E$7:$E$399=\"3\")*('2. Assisted & Restricted Units'!$U$7:$U$399=\"SERA\")*('2. Assisted & Restricted Units'!$V$7:$V$399=\"35% SMI\"))","v":0},{"$f":"SUMPRODUCT(('2. Assisted & Restricted Units'!$E$7:$E$399=\"3\")*('2. Assisted & Restricted Units'!$U$7:$U$399=\"SUHRP\")*('2. Assisted & Restricted Units'!$V$7:$V$399=\"35% SMI\"))","v":0},{"$f":"SUMPRODUCT(('2. Assisted & Restricted Units'!$E$7:$E$399=\"3\")*('2. Assisted & Restricted Units'!$U$7:$U$399=\"TOD\")*('2. Assisted & Restricted Units'!$V$7:$V$399=\"35% SMI\"))","v":0},{"$f":"SUMPRODUCT(('2. Assisted & Restricted Units'!$E$7:$E$399=\"3\")*('2. Assisted & Restricted Units'!$U$7:$U$399=\"707-E\")*('2. Assisted & Restricted Units'!$V$7:$V$399=\"35% SMI\"))","v":0},{"$f":"SUMPRODUCT(('2. Assisted & Restricted Units'!$E$7:$E$399=\"3\")*('2. Assisted & Restricted Units'!$U$7:$U$399=\"707-N\")*('2. Assisted & Restricted Units'!$V$7:$V$399=\"35% SMI\"))","v":0}]
["3 Bedroom 40% SMI",{"$f":"SUMPRODUCT(('2. Assisted & Restricted Units'!$E$7:$E$399=\"3\")*('2. Assisted & Restricted Units'!$U$7:$U$399=\"CALDAP\")*('2. Assisted & Restricted Units'!$V$7:$V$399=\"40% SMI\"))","v":0},{"$f":"SUMPRODUCT(('2. Assisted & Restricted Units'!$E$7:$E$399=\"3\")*('2. Assisted & Restricted Units'!$U$7:$U$399=\"CHRP-R\")*('2. Assisted & Restricted Units'!$V$7:$V$399=\"40% SMI\"))","v":0},{"$f":"SUMPRODUCT(('2. Assisted & Restricted Units'!$E$7:$E$399=\"3\")*('2. Assisted & Restricted Units'!$U$7:$U$399=\"DDS\")*('2. Assisted & Restricted Units'!$V$7:$V$399=\"40% SMI\"))","v":0},{"$f":"SUMPRODUCT(('2. Assisted & Restricted Units'!$E$7:$E$399=\"3\")*('2. Assisted & Restricted Units'!$U$7:$U$399=\"DPRLP\")*('2. Assisted & Restricted Units'!$V$7:$V$399=\"40% SMI\"))","v":0},{"$f":"SUMPRODUCT(('2. Assisted & Restricted Units'!$E$7:$E$399=\"3\")*('2. Assisted & Restricted Units'!$U$7:$U$399=\"FHDP\")*('2. Assisted & Restricted Units'!$V$7:$V$399=\"40% SMI\"))","v":0},{"$f":"SUMPRODUCT(('2. Assisted & Restricted Units'!$E$7:$E$399=\"3\")*('2. Assisted & Restricted Units'!$U$7:$U$399=\"FMTW\")*('2. Assisted & Restricted Units'!$V$7:$V$399=\"40% SMI\"))","v":0},null,{"$f":"SUMPRODUCT(('2. Assisted & Restricted Units'!$E$7:$E$399=\"3\")*('2. Assisted & Restricted Units'!$U$7:$U$399=\"HOME\")*('2. Assisted & Restricted Units'!$V$7:$V$399=\"40% SMI\"))","v":0},{"$f":"SUMPRODUCT(('2. Assisted & Restricted Units'!$E$7:$E$399=\"3\")*('2. Assisted & Restricted Units'!$U$7:$U$399=\"Market Rate\")*('2. Assisted & Restricted Units'!$V$7:$V$399=\"40% SMI\"))","v":0},{"$f":"SUMPRODUCT(('2. Assisted & Restricted Units'!$E$7:$E$399=\"3\")*('2. Assisted & Restricted Units'!$U$7:$U$399=\"MHP\")*('2. Assisted & Restricted Units'!$V$7:$V$399=\"40% SMI\"))","v":0},{"$f":"SUMPRODUCT(('2. Assisted & Restricted Units'!$E$7:$E$399=\"3\")*('2. Assisted & Restricted Units'!$U$7:$U$399=\"NonAssisted\")*('2. Assisted & Restricted Units'!$V$7:$V$399=\"40% SMI\"))","v":0},{"$f":"SUMPRODUCT(('2. Assisted & Restricted Units'!$E$7:$E$399=\"3\")*('2. Assisted & Restricted Units'!$U$7:$U$399=\"Other Restr\")*('2. Assisted & Restricted Units'!$V$7:$V$399=\"40% SMI\"))","v":0},{"$f":"SUMPRODUCT(('2. Assisted & Restricted Units'!$E$7:$E$399=\"3\")*('2. Assisted & Restricted Units'!$U$7:$U$399=\"RHCP-B\")*('2. Assisted & Restricted Units'!$V$7:$V$399=\"40% SMI\"))","v":0},{"$f":"SUMPRODUCT(('2. Assisted & Restricted Units'!$E$7:$E$399=\"3\")*('2. Assisted & Restricted Units'!$U$7:$U$399=\"SERA\")*('2. Assisted & Restricted Units'!$V$7:$V$399=\"40% SMI\"))","v":0},{"$f":"SUMPRODUCT(('2. Assisted & Restricted Units'!$E$7:$E$399=\"3\")*('2. Assisted & Restricted Units'!$U$7:$U$399=\"SUHRP\")*('2. Assisted & Restricted Units'!$V$7:$V$399=\"40% SMI\"))","v":0},{"$f":"SUMPRODUCT(('2. Assisted & Restricted Units'!$E$7:$E$399=\"3\")*('2. Assisted & Restricted Units'!$U$7:$U$399=\"TOD\")*('2. Assisted & Restricted Units'!$V$7:$V$399=\"40% SMI\"))","v":0},{"$f":"SUMPRODUCT(('2. Assisted & Restricted Units'!$E$7:$E$399=\"3\")*('2. Assisted & Restricted Units'!$U$7:$U$399=\"707-E\")*('2. Assisted & Restricted Units'!$V$7:$V$399=\"40% SMI\"))","v":0},{"$f":"SUMPRODUCT(('2. Assisted & Restricted Units'!$E$7:$E$399=\"3\")*('2. Assisted & Restricted Units'!$U$7:$U$399=\"707-N\")*('2. Assisted & Restricted Units'!$V$7:$V$399=\"40% SMI\"))","v":0}]
["3 Bedroom 45% SMI",{"$f":"SUMPRODUCT(('2. Assisted & Restricted Units'!$E$7:$E$399=\"3\")*('2. Assisted & Restricted Units'!$U$7:$U$399=\"CALDAP\")*('2. Assisted & Restricted Units'!$V$7:$V$399=\"45% SMI\"))","v":0},{"$f":"SUMPRODUCT(('2. Assisted & Restricted Units'!$E$7:$E$399=\"3\")*('2. Assisted & Restricted Units'!$U$7:$U$399=\"CHRP-R\")*('2. Assisted & Restricted Units'!$V$7:$V$399=\"45% SMI\"))","v":0},{"$f":"SUMPRODUCT(('2. Assisted & Restricted Units'!$E$7:$E$399=\"3\")*('2. Assisted & Restricted Units'!$U$7:$U$399=\"DDS\")*('2. Assisted & Restricted Units'!$V$7:$V$399=\"45% SMI\"))","v":0},{"$f":"SUMPRODUCT(('2. Assisted & Restricted Units'!$E$7:$E$399=\"3\")*('2. Assisted & Restricted Units'!$U$7:$U$399=\"DPRLP\")*('2. Assisted & Restricted Units'!$V$7:$V$399=\"45% SMI\"))","v":0},{"$f":"SUMPRODUCT(('2. Assisted & Restricted Units'!$E$7:$E$399=\"3\")*('2. Assisted & Restricted Units'!$U$7:$U$399=\"FHDP\")*('2. Assisted & Restricted Units'!$V$7:$V$399=\"45% SMI\"))","v":0},{"$f":"SUMPRODUCT(('2. Assisted & Restricted Units'!$E$7:$E$399=\"3\")*('2. Assisted & Restricted Units'!$U$7:$U$399=\"FMTW\")*('2. Assisted & Restricted Units'!$V$7:$V$399=\"45% SMI\"))","v":0},null,{"$f":"SUMPRODUCT(('2. Assisted & Restricted Units'!$E$7:$E$399=\"3\")*('2. Assisted & Restricted Units'!$U$7:$U$399=\"HOME\")*('2. Assisted & Restricted Units'!$V$7:$V$399=\"45% SMI\"))","v":0},{"$f":"SUMPRODUCT(('2. Assisted & Restricted Units'!$E$7:$E$399=\"3\")*('2. Assisted & Restricted Units'!$U$7:$U$399=\"Market Rate\")*('2. Assisted & Restricted Units'!$V$7:$V$399=\"45% SMI\"))","v":0},{"$f":"SUMPRODUCT(('2. Assisted & Restricted Units'!$E$7:$E$399=\"3\")*('2. Assisted & Restricted Units'!$U$7:$U$399=\"MHP\")*('2. Assisted & Restricted Units'!$V$7:$V$399=\"45% SMI\"))","v":0},{"$f":"SUMPRODUCT(('2. Assisted & Restricted Units'!$E$7:$E$399=\"3\")*('2. Assisted & Restricted Units'!$U$7:$U$399=\"NonAssisted\")*('2. Assisted & Restricted Units'!$V$7:$V$399=\"45% SMI\"))","v":0},{"$f":"SUMPRODUCT(('2. Assisted & Restricted Units'!$E$7:$E$399=\"3\")*('2. Assisted & Restricted Units'!$U$7:$U$399=\"Other Restr\")*('2. Assisted & Restricted Units'!$V$7:$V$399=\"45% SMI\"))","v":0},{"$f":"SUMPRODUCT(('2. Assisted & Restricted Units'!$E$7:$E$399=\"3\")*('2. Assisted & Restricted Units'!$U$7:$U$399=\"RHCP-B\")*('2. Assisted & Restricted Units'!$V$7:$V$399=\"45% SMI\"))","v":0},{"$f":"SUMPRODUCT(('2. Assisted & Restricted Units'!$E$7:$E$399=\"3\")*('2. Assisted & Restricted Units'!$U$7:$U$399=\"SERA\")*('2. Assisted & Restricted Units'!$V$7:$V$399=\"45% SMI\"))","v":0},{"$f":"SUMPRODUCT(('2. Assisted & Restricted Units'!$E$7:$E$399=\"3\")*('2. Assisted & Restricted Units'!$U$7:$U$399=\"SUHRP\")*('2. Assisted & Restricted Units'!$V$7:$V$399=\"45% SMI\"))","v":0},{"$f":"SUMPRODUCT(('2. Assisted & Restricted Units'!$E$7:$E$399=\"3\")*('2. Assisted & Restricted Units'!$U$7:$U$399=\"TOD\")*('2. Assisted & Restricted Units'!$V$7:$V$399=\"45% SMI\"))","v":0},{"$f":"SUMPRODUCT(('2. Assisted & Restricted Units'!$E$7:$E$399=\"3\")*('2. Assisted & Restricted Units'!$U$7:$U$399=\"707-E\")*('2. Assisted & Restricted Units'!$V$7:$V$399=\"45% SMI\"))","v":0},{"$f":"SUMPRODUCT(('2. Assisted & Restricted Units'!$E$7:$E$399=\"3\")*('2. Assisted & Restricted Units'!$U$7:$U$399=\"707-N\")*('2. Assisted & Restricted Units'!$V$7:$V$399=\"45% SMI\"))","v":0}]
["3 Bedroom 50% SMI",{"$f":"SUMPRODUCT(('2. Assisted & Restricted Units'!$E$7:$E$399=\"3\")*('2. Assisted & Restricted Units'!$U$7:$U$399=\"CALDAP\")*('2. Assisted & Restricted Units'!$V$7:$V$399=\"50% SMI\"))","v":0},{"$f":"SUMPRODUCT(('2. Assisted & Restricted Units'!$E$7:$E$399=\"3\")*('2. Assisted & Restricted Units'!$U$7:$U$399=\"CHRP-R\")*('2. Assisted & Restricted Units'!$V$7:$V$399=\"50% SMI\"))","v":0},{"$f":"SUMPRODUCT(('2. Assisted & Restricted Units'!$E$7:$E$399=\"3\")*('2. Assisted & Restricted Units'!$U$7:$U$399=\"DDS\")*('2. Assisted & Restricted Units'!$V$7:$V$399=\"50% SMI\"))","v":0},{"$f":"SUMPRODUCT(('2. Assisted & Restricted Units'!$E$7:$E$399=\"3\")*('2. Assisted & Restricted Units'!$U$7:$U$399=\"DPRLP\")*('2. Assisted & Restricted Units'!$V$7:$V$399=\"50% SMI\"))","v":0},{"$f":"SUMPRODUCT(('2. Assisted & Restricted Units'!$E$7:$E$399=\"3\")*('2. Assisted & Restricted Units'!$U$7:$U$399=\"FHDP\")*('2. Assisted & Restricted Units'!$V$7:$V$399=\"50% SMI\"))","v":0},{"$f":"SUMPRODUCT(('2. Assisted & Restricted Units'!$E$7:$E$399=\"3\")*('2. Assisted & Restricted Units'!$U$7:$U$399=\"FMTW\")*('2. Assisted & Restricted Units'!$V$7:$V$399=\"50% SMI\"))","v":0},null,{"$f":"SUMPRODUCT(('2. Assisted & Restricted Units'!$E$7:$E$399=\"3\")*('2. Assisted & Restricted Units'!$U$7:$U$399=\"HOME\")*('2. Assisted & Restricted Units'!$V$7:$V$399=\"50% SMI\"))","v":0},{"$f":"SUMPRODUCT(('2. Assisted & Restricted Units'!$E$7:$E$399=\"3\")*('2. Assisted & Restricted Units'!$U$7:$U$399=\"Market Rate\")*('2. Assisted & Restricted Units'!$V$7:$V$399=\"50% SMI\"))","v":0},{"$f":"SUMPRODUCT(('2. Assisted & Restricted Units'!$E$7:$E$399=\"3\")*('2. Assisted & Restricted Units'!$U$7:$U$399=\"MHP\")*('2. Assisted & Restricted Units'!$V$7:$V$399=\"50% SMI\"))","v":0},{"$f":"SUMPRODUCT(('2. Assisted & Restricted Units'!$E$7:$E$399=\"3\")*('2. Assisted & Restricted Units'!$U$7:$U$399=\"NonAssisted\")*('2. Assisted & Restricted Units'!$V$7:$V$399=\"50% SMI\"))","v":0},{"$f":"SUMPRODUCT(('2. Assisted & Restricted Units'!$E$7:$E$399=\"3\")*('2. Assisted & Restricted Units'!$U$7:$U$399=\"Other Restr\")*('2. Assisted & Restricted Units'!$V$7:$V$399=\"50% SMI\"))","v":0},{"$f":"SUMPRODUCT(('2. Assisted & Restricted Units'!$E$7:$E$399=\"3\")*('2. Assisted & Restricted Units'!$U$7:$U$399=\"RHCP-B\")*('2. Assisted & Restricted Units'!$V$7:$V$399=\"50% SMI\"))","v":0},{"$f":"SUMPRODUCT(('2. Assisted & Restricted Units'!$E$7:$E$399=\"3\")*('2. Assisted & Restricted Units'!$U$7:$U$399=\"SERA\")*('2. Assisted & Restricted Units'!$V$7:$V$399=\"50% SMI\"))","v":0},{"$f":"SUMPRODUCT(('2. Assisted & Restricted Units'!$E$7:$E$399=\"3\")*('2. Assisted & Restricted Units'!$U$7:$U$399=\"SUHRP\")*('2. Assisted & Restricted Units'!$V$7:$V$399=\"50% SMI\"))","v":0},{"$f":"SUMPRODUCT(('2. Assisted & Restricted Units'!$E$7:$E$399=\"3\")*('2. Assisted & Restricted Units'!$U$7:$U$399=\"TOD\")*('2. Assisted & Restricted Units'!$V$7:$V$399=\"50% SMI\"))","v":0},{"$f":"SUMPRODUCT(('2. Assisted & Restricted Units'!$E$7:$E$399=\"3\")*('2. Assisted & Restricted Units'!$U$7:$U$399=\"707-E\")*('2. Assisted & Restricted Units'!$V$7:$V$399=\"50% SMI\"))","v":0},{"$f":"SUMPRODUCT(('2. Assisted & Restricted Units'!$E$7:$E$399=\"3\")*('2. Assisted & Restricted Units'!$U$7:$U$399=\"707-N\")*('2. Assisted & Restricted Units'!$V$7:$V$399=\"50% SMI\"))","v":0}]
["3 Bedroom 100% SMI",{"$f":"SUMPRODUCT(('2. Assisted & Restricted Units'!$E$7:$E$399=\"3\")*('2. Assisted & Restricted Units'!$U$7:$U$399=\"CALDAP\")*('2. Assisted & Restricted Units'!$V$7:$V$399=\"100% SMI\"))","v":0},{"$f":"SUMPRODUCT(('2. Assisted & Restricted Units'!$E$7:$E$399=\"3\")*('2. Assisted & Restricted Units'!$U$7:$U$399=\"CHRP-R\")*('2. Assisted & Restricted Units'!$V$7:$V$399=\"100% SMI\"))","v":0},{"$f":"SUMPRODUCT(('2. Assisted & Restricted Units'!$E$7:$E$399=\"3\")*('2. Assisted & Restricted Units'!$U$7:$U$399=\"DDS\")*('2. Assisted & Restricted Units'!$V$7:$V$399=\"100% SMI\"))","v":0},{"$f":"SUMPRODUCT(('2. Assisted & Restricted Units'!$E$7:$E$399=\"3\")*('2. Assisted & Restricted Units'!$U$7:$U$399=\"DPRLP\")*('2. Assisted & Restricted Units'!$V$7:$V$399=\"100% SMI\"))","v":0},{"$f":"SUMPRODUCT(('2. Assisted & Restricted Units'!$E$7:$E$399=\"3\")*('2. Assisted & Restricted Units'!$U$7:$U$399=\"FHDP\")*('2. Assisted & Restricted Units'!$V$7:$V$399=\"100% SMI\"))","v":0},{"$f":"SUMPRODUCT(('2. Assisted & Restricted Units'!$E$7:$E$399=\"3\")*('2. Assisted & Restricted Units'!$U$7:$U$399=\"FMTW\")*('2. Assisted & Restricted Units'!$V$7:$V$399=\"100% SMI\"))","v":0},null,{"$f":"SUMPRODUCT(('2. Assisted & Restricted Units'!$E$7:$E$399=\"3\")*('2. Assisted & Restricted Units'!$U$7:$U$399=\"HOME\")*('2. Assisted & Restricted Units'!$V$7:$V$399=\"100% SMI\"))","v":0},{"$f":"SUMPRODUCT(('2. Assisted & Restricted Units'!$E$7:$E$399=\"3\")*('2. Assisted & Restricted Units'!$U$7:$U$399=\"Market Rate\")*('2. Assisted & Restricted Units'!$V$7:$V$399=\"100% SMI\"))","v":0},{"$f":"SUMPRODUCT(('2. Assisted & Restricted Units'!$E$7:$E$399=\"3\")*('2. Assisted & Restricted Units'!$U$7:$U$399=\"MHP\")*('2. Assisted & Restricted Units'!$V$7:$V$399=\"100% SMI\"))","v":0},{"$f":"SUMPRODUCT(('2. Assisted & Restricted Units'!$E$7:$E$399=\"3\")*('2. Assisted & Restricted Units'!$U$7:$U$399=\"NonAssisted\")*('2. Assisted & Restricted Units'!$V$7:$V$399=\"100% SMI\"))","v":0},{"$f":"SUMPRODUCT(('2. Assisted & Restricted Units'!$E$7:$E$399=\"3\")*('2. Assisted & Restricted Units'!$U$7:$U$399=\"Other Restr\")*('2. Assisted & Restricted Units'!$V$7:$V$399=\"100% SMI\"))","v":0},{"$f":"SUMPRODUCT(('2. Assisted & Restricted Units'!$E$7:$E$399=\"3\")*('2. Assisted & Restricted Units'!$U$7:$U$399=\"RHCP-B\")*('2. Assisted & Restricted Units'!$V$7:$V$399=\"100% SMI\"))","v":0},{"$f":"SUMPRODUCT(('2. Assisted & Restricted Units'!$E$7:$E$399=\"3\")*('2. Assisted & Restricted Units'!$U$7:$U$399=\"SERA\")*('2. Assisted & Restricted Units'!$V$7:$V$399=\"100% SMI\"))","v":0},{"$f":"SUMPRODUCT(('2. Assisted & Restricted Units'!$E$7:$E$399=\"3\")*('2. Assisted & Restricted Units'!$U$7:$U$399=\"SUHRP\")*('2. Assisted & Restricted Units'!$V$7:$V$399=\"100% SMI\"))","v":0},{"$f":"SUMPRODUCT(('2. Assisted & Restricted Units'!$E$7:$E$399=\"3\")*('2. Assisted & Restricted Units'!$U$7:$U$399=\"TOD\")*('2. Assisted & Restricted Units'!$V$7:$V$399=\"100% SMI\"))","v":0},{"$f":"SUMPRODUCT(('2. Assisted & Restricted Units'!$E$7:$E$399=\"3\")*('2. Assisted & Restricted Units'!$U$7:$U$399=\"707-E\")*('2. Assisted & Restricted Units'!$V$7:$V$399=\"100% SMI\"))","v":0},{"$f":"SUMPRODUCT(('2. Assisted & Restricted Units'!$E$7:$E$399=\"3\")*('2. Assisted & Restricted Units'!$U$7:$U$399=\"707-N\")*('2. Assisted & Restricted Units'!$V$7:$V$399=\"100% SMI\"))","v":0}]
["3 Bedroom VLI HOME",{"$f":"SUMPRODUCT(('2. Assisted & Restricted Units'!$E$7:$E$399=\"3\")*('2. Assisted & Restricted Units'!$U$7:$U$399=\"CALDAP\")*('2. Assisted & Restricted Units'!$V$7:$V$399=\"VLI HOME\"))","v":0},{"$f":"SUMPRODUCT(('2. Assisted & Restricted Units'!$E$7:$E$399=\"3\")*('2. Assisted & Restricted Units'!$U$7:$U$399=\"CHRP-R\")*('2. Assisted & Restricted Units'!$V$7:$V$399=\"VLI HOME\"))","v":0},{"$f":"SUMPRODUCT(('2. Assisted & Restricted Units'!$E$7:$E$399=\"3\")*('2. Assisted & Restricted Units'!$U$7:$U$399=\"DDS\")*('2. Assisted & Restricted Units'!$V$7:$V$399=\"VLI HOME\"))","v":0},{"$f":"SUMPRODUCT(('2. Assisted & Restricted Units'!$E$7:$E$399=\"3\")*('2. Assisted & Restricted Units'!$U$7:$U$399=\"DPRLP\")*('2. Assisted & Restricted Units'!$V$7:$V$399=\"VLI HOME\"))","v":0},{"$f":"SUMPRODUCT(('2. Assisted & Restricted Units'!$E$7:$E$399=\"3\")*('2. Assisted & Restricted Units'!$U$7:$U$399=\"FHDP\")*('2. Assisted & Restricted Units'!$V$7:$V$399=\"VLI HOME\"))","v":0},{"$f":"SUMPRODUCT(('2. Assisted & Restricted Units'!$E$7:$E$399=\"3\")*('2. Assisted & Restricted Units'!$U$7:$U$399=\"FMTW\")*('2. Assisted & Restricted Units'!$V$7:$V$399=\"VLI HOME\"))","v":0},null,{"$f":"SUMPRODUCT(('2. Assisted & Restricted Units'!$E$7:$E$399=\"3\")*('2. Assisted & Restricted Units'!$U$7:$U$399=\"HOME\")*('2. Assisted & Restricted Units'!$V$7:$V$399=\"VLI HOME\"))","v":0},{"$f":"SUMPRODUCT(('2. Assisted & Restricted Units'!$E$7:$E$399=\"3\")*('2. Assisted & Restricted Units'!$U$7:$U$399=\"Market Rate\")*('2. Assisted & Restricted Units'!$V$7:$V$399=\"VLI HOME\"))","v":0},{"$f":"SUMPRODUCT(('2. Assisted & Restricted Units'!$E$7:$E$399=\"3\")*('2. Assisted & Restricted Units'!$U$7:$U$399=\"MHP\")*('2. Assisted & Restricted Units'!$V$7:$V$399=\"VLI HOME\"))","v":0},{"$f":"SUMPRODUCT(('2. Assisted & Restricted Units'!$E$7:$E$399=\"3\")*('2. Assisted & Restricted Units'!$U$7:$U$399=\"NonAssisted\")*('2. Assisted & Restricted Units'!$V$7:$V$399=\"VLI HOME\"))","v":0},{"$f":"SUMPRODUCT(('2. Assisted & Restricted Units'!$E$7:$E$399=\"3\")*('2. Assisted & Restricted Units'!$U$7:$U$399=\"Other Restr\")*('2. Assisted & Restricted Units'!$V$7:$V$399=\"VLI HOME\"))","v":0},{"$f":"SUMPRODUCT(('2. Assisted & Restricted Units'!$E$7:$E$399=\"3\")*('2. Assisted & Restricted Units'!$U$7:$U$399=\"RHCP-B\")*('2. Assisted & Restricted Units'!$V$7:$V$399=\"VLI HOME\"))","v":0},{"$f":"SUMPRODUCT(('2. Assisted & Restricted Units'!$E$7:$E$399=\"3\")*('2. Assisted & Restricted Units'!$U$7:$U$399=\"SERA\")*('2. Assisted & Restricted Units'!$V$7:$V$399=\"VLI HOME\"))","v":0},{"$f":"SUMPRODUCT(('2. Assisted & Restricted Units'!$E$7:$E$399=\"3\")*('2. Assisted & Restricted Units'!$U$7:$U$399=\"SUHRP\")*('2. Assisted & Restricted Units'!$V$7:$V$399=\"VLI HOME\"))","v":0},{"$f":"SUMPRODUCT(('2. Assisted & Restricted Units'!$E$7:$E$399=\"3\")*('2. Assisted & Restricted Units'!$U$7:$U$399=\"TOD\")*('2. Assisted & Restricted Units'!$V$7:$V$399=\"VLI HOME\"))","v":0},{"$f":"SUMPRODUCT(('2. Assisted & Restricted Units'!$E$7:$E$399=\"3\")*('2. Assisted & Restricted Units'!$U$7:$U$399=\"707-E\")*('2. Assisted & Restricted Units'!$V$7:$V$399=\"VLI HOME\"))","v":0},{"$f":"SUMPRODUCT(('2. Assisted & Restricted Units'!$E$7:$E$399=\"3\")*('2. Assisted & Restricted Units'!$U$7:$U$399=\"707-N\")*('2. Assisted & Restricted Units'!$V$7:$V$399=\"VLI HOME\"))","v":0}]
["3 Bedroom LI HOME",{"$f":"SUMPRODUCT(('2. Assisted & Restricted Units'!$E$7:$E$399=\"3\")*('2. Assisted & Restricted Units'!$U$7:$U$399=\"CALDAP\")*('2. Assisted & Restricted Units'!$V$7:$V$399=\"LI HOME\"))","v":0},{"$f":"SUMPRODUCT(('2. Assisted & Restricted Units'!$E$7:$E$399=\"3\")*('2. Assisted & Restricted Units'!$U$7:$U$399=\"CHRP-R\")*('2. Assisted & Restricted Units'!$V$7:$V$399=\"LI HOME\"))","v":0},{"$f":"SUMPRODUCT(('2. Assisted & Restricted Units'!$E$7:$E$399=\"3\")*('2. Assisted & Restricted Units'!$U$7:$U$399=\"DDS\")*('2. Assisted & Restricted Units'!$V$7:$V$399=\"LI HOME\"))","v":0},{"$f":"SUMPRODUCT(('2. Assisted & Restricted Units'!$E$7:$E$399=\"3\")*('2. Assisted & Restricted Units'!$U$7:$U$399=\"DPRLP\")*('2. Assisted & Restricted Units'!$V$7:$V$399=\"LI HOME\"))","v":0},{"$f":"SUMPRODUCT(('2. Assisted & Restricted Units'!$E$7:$E$399=\"3\")*('2. Assisted & Restricted Units'!$U$7:$U$399=\"FHDP\")*('2. Assisted & Restricted Units'!$V$7:$V$399=\"LI HOME\"))","v":0},{"$f":"SUMPRODUCT(('2. Assisted & Restricted Units'!$E$7:$E$399=\"3\")*('2. Assisted & Restricted Units'!$U$7:$U$399=\"FMTW\")*('2. Assisted & Restricted Units'!$V$7:$V$399=\"LI HOME\"))","v":0},null,{"$f":"SUMPRODUCT(('2. Assisted & Restricted Units'!$E$7:$E$399=\"3\")*('2. Assisted & Restricted Units'!$U$7:$U$399=\"HOME\")*('2. Assisted & Restricted Units'!$V$7:$V$399=\"LI HOME\"))","v":0},{"$f":"SUMPRODUCT(('2. Assisted & Restricted Units'!$E$7:$E$399=\"3\")*('2. Assisted & Restricted Units'!$U$7:$U$399=\"Market Rate\")*('2. Assisted & Restricted Units'!$V$7:$V$399=\"LI HOME\"))","v":0},{"$f":"SUMPRODUCT(('2. Assisted & Restricted Units'!$E$7:$E$399=\"3\")*('2. Assisted & Restricted Units'!$U$7:$U$399=\"MHP\")*('2. Assisted & Restricted Units'!$V$7:$V$399=\"LI HOME\"))","v":0},{"$f":"SUMPRODUCT(('2. Assisted & Restricted Units'!$E$7:$E$399=\"3\")*('2. Assisted & Restricted Units'!$U$7:$U$399=\"NonAssisted\")*('2. Assisted & Restricted Units'!$V$7:$V$399=\"LI HOME\"))","v":0},{"$f":"SUMPRODUCT(('2. Assisted & Restricted Units'!$E$7:$E$399=\"3\")*('2. Assisted & Restricted Units'!$U$7:$U$399=\"Other Restr\")*('2. Assisted & Restricted Units'!$V$7:$V$399=\"LI HOME\"))","v":0},{"$f":"SUMPRODUCT(('2. Assisted & Restricted Units'!$E$7:$E$399=\"3\")*('2. Assisted & Restricted Units'!$U$7:$U$399=\"RHCP-B\")*('2. Assisted & Restricted Units'!$V$7:$V$399=\"LI HOME\"))","v":0},{"$f":"SUMPRODUCT(('2. Assisted & Restricted Units'!$E$7:$E$399=\"3\")*('2. Assisted & Restricted Units'!$U$7:$U$399=\"SERA\")*('2. Assisted & Restricted Units'!$V$7:$V$399=\"LI HOME\"))","v":0},{"$f":"SUMPRODUCT(('2. Assisted & Restricted Units'!$E$7:$E$399=\"3\")*('2. Assisted & Restricted Units'!$U$7:$U$399=\"SUHRP\")*('2. Assisted & Restricted Units'!$V$7:$V$399=\"LI HOME\"))","v":0},{"$f":"SUMPRODUCT(('2. Assisted & Restricted Units'!$E$7:$E$399=\"3\")*('2. Assisted & Restricted Units'!$U$7:$U$399=\"TOD\")*('2. Assisted & Restricted Units'!$V$7:$V$399=\"LI HOME\"))","v":0},{"$f":"SUMPRODUCT(('2. Assisted & Restricted Units'!$E$7:$E$399=\"3\")*('2. Assisted & Restricted Units'!$U$7:$U$399=\"707-E\")*('2. Assisted & Restricted Units'!$V$7:$V$399=\"LI HOME\"))","v":0},{"$f":"SUMPRODUCT(('2. Assisted & Restricted Units'!$E$7:$E$399=\"3\")*('2. Assisted & Restricted Units'!$U$7:$U$399=\"707-N\")*('2. Assisted & Restricted Units'!$V$7:$V$399=\"LI HOME\"))","v":0}]
["3 Bedroom VLI State",{"$f":"SUMPRODUCT(('2. Assisted & Restricted Units'!$E$7:$E$399=\"3\")*('2. Assisted & Restricted Units'!$U$7:$U$399=\"CALDAP\")*('2. Assisted & Restricted Units'!$V$7:$V$399=\"VLI State\"))","v":0},{"$f":"SUMPRODUCT(('2. Assisted & Restricted Units'!$E$7:$E$399=\"3\")*('2. Assisted & Restricted Units'!$U$7:$U$399=\"CHRP-R\")*('2. Assisted & Restricted Units'!$V$7:$V$399=\"VLI State\"))","v":0},{"$f":"SUMPRODUCT(('2. Assisted & Restricted Units'!$E$7:$E$399=\"3\")*('2. Assisted & Restricted Units'!$U$7:$U$399=\"DDS\")*('2. Assisted & Restricted Units'!$V$7:$V$399=\"VLI State\"))","v":0},{"$f":"SUMPRODUCT(('2. Assisted & Restricted Units'!$E$7:$E$399=\"3\")*('2. Assisted & Restricted Units'!$U$7:$U$399=\"DPRLP\")*('2. Assisted & Restricted Units'!$V$7:$V$399=\"VLI State\"))","v":0},{"$f":"SUMPRODUCT(('2. Assisted & Restricted Units'!$E$7:$E$399=\"3\")*('2. Assisted & Restricted Units'!$U$7:$U$399=\"FHDP\")*('2. Assisted & Restricted Units'!$V$7:$V$399=\"VLI State\"))","v":0},{"$f":"SUMPRODUCT(('2. Assisted & Restricted Units'!$E$7:$E$399=\"3\")*('2. Assisted & Restricted Units'!$U$7:$U$399=\"FMTW\")*('2. Assisted & Restricted Units'!$V$7:$V$399=\"VLI State\"))","v":0},null,{"$f":"SUMPRODUCT(('2. Assisted & Restricted Units'!$E$7:$E$399=\"3\")*('2. Assisted & Restricted Units'!$U$7:$U$399=\"HOME\")*('2. Assisted & Restricted Units'!$V$7:$V$399=\"VLI State\"))","v":0},{"$f":"SUMPRODUCT(('2. Assisted & Restricted Units'!$E$7:$E$399=\"3\")*('2. Assisted & Restricted Units'!$U$7:$U$399=\"Market Rate\")*('2. Assisted & Restricted Units'!$V$7:$V$399=\"VLI State\"))","v":0},{"$f":"SUMPRODUCT(('2. Assisted & Restricted Units'!$E$7:$E$399=\"3\")*('2. Assisted & Restricted Units'!$U$7:$U$399=\"MHP\")*('2. Assisted & Restricted Units'!$V$7:$V$399=\"VLI State\"))","v":0},{"$f":"SUMPRODUCT(('2. Assisted & Restricted Units'!$E$7:$E$399=\"3\")*('2. Assisted & Restricted Units'!$U$7:$U$399=\"NonAssisted\")*('2. Assisted & Restricted Units'!$V$7:$V$399=\"VLI State\"))","v":0},{"$f":"SUMPRODUCT(('2. Assisted & Restricted Units'!$E$7:$E$399=\"3\")*('2. Assisted & Restricted Units'!$U$7:$U$399=\"Other Restr\")*('2. Assisted & Restricted Units'!$V$7:$V$399=\"VLI State\"))","v":0},{"$f":"SUMPRODUCT(('2. Assisted & Restricted Units'!$E$7:$E$399=\"3\")*('2. Assisted & Restricted Units'!$U$7:$U$399=\"RHCP-B\")*('2. Assisted & Restricted Units'!$V$7:$V$399=\"VLI State\"))","v":0},{"$f":"SUMPRODUCT(('2. Assisted & Restricted Units'!$E$7:$E$399=\"3\")*('2. Assisted & Restricted Units'!$U$7:$U$399=\"SERA\")*('2. Assisted & Restricted Units'!$V$7:$V$399=\"VLI State\"))","v":0},{"$f":"SUMPRODUCT(('2. Assisted & Restricted Units'!$E$7:$E$399=\"3\")*('2. Assisted & Restricted Units'!$U$7:$U$399=\"SUHRP\")*('2. Assisted & Restricted Units'!$V$7:$V$399=\"VLI State\"))","v":0},{"$f":"SUMPRODUCT(('2. Assisted & Restricted Units'!$E$7:$E$399=\"3\")*('2. Assisted & Restricted Units'!$U$7:$U$399=\"TOD\")*('2. Assisted & Restricted Units'!$V$7:$V$399=\"VLI State\"))","v":0},{"$f":"SUMPRODUCT(('2. Assisted & Restricted Units'!$E$7:$E$399=\"3\")*('2. Assisted & Restricted Units'!$U$7:$U$399=\"707-E\")*('2. Assisted & Restricted Units'!$V$7:$V$399=\"VLI State\"))","v":0},{"$f":"SUMPRODUCT(('2. Assisted & Restricted Units'!$E$7:$E$399=\"3\")*('2. Assisted & Restricted Units'!$U$7:$U$399=\"707-N\")*('2. Assisted & Restricted Units'!$V$7:$V$399=\"VLI State\"))","v":0}]
["3 Bedroom CalHFA",{"$f":"SUMPRODUCT(('2. Assisted & Restricted Units'!$E$7:$E$399=\"3\")*('2. Assisted & Restricted Units'!$U$7:$U$399=\"CALDAP\")*('2. Assisted & Restricted Units'!$V$7:$V$399=\"LI State\"))","v":0},{"$f":"SUMPRODUCT(('2. Assisted & Restricted Units'!$E$7:$E$399=\"3\")*('2. Assisted & Restricted Units'!$U$7:$U$399=\"CHRP-R\")*('2. Assisted & Restricted Units'!$V$7:$V$399=\"LI State\"))","v":0},{"$f":"SUMPRODUCT(('2. Assisted & Restricted Units'!$E$7:$E$399=\"3\")*('2. Assisted & Restricted Units'!$U$7:$U$399=\"DDS\")*('2. Assisted & Restricted Units'!$V$7:$V$399=\"LI State\"))","v":0},{"$f":"SUMPRODUCT(('2. Assisted & Restricted Units'!$E$7:$E$399=\"3\")*('2. Assisted & Restricted Units'!$U$7:$U$399=\"DPRLP\")*('2. Assisted & Restricted Units'!$V$7:$V$399=\"LI State\"))","v":0},{"$f":"SUMPRODUCT(('2. Assisted & Restricted Units'!$E$7:$E$399=\"3\")*('2. Assisted & Restricted Units'!$U$7:$U$399=\"FHDP\")*('2. Assisted & Restricted Units'!$V$7:$V$399=\"LI State\"))","v":0},{"$f":"SUMPRODUCT(('2. Assisted & Restricted Units'!$E$7:$E$399=\"3\")*('2. Assisted & Restricted Units'!$U$7:$U$399=\"FMTW\")*('2. Assisted & Restricted Units'!$V$7:$V$399=\"LI State\"))","v":0},null,{"$f":"SUMPRODUCT(('2. Assisted & Restricted Units'!$E$7:$E$399=\"3\")*('2. Assisted & Restricted Units'!$U$7:$U$399=\"HOME\")*('2. Assisted & Restricted Units'!$V$7:$V$399=\"LI State\"))","v":0},{"$f":"SUMPRODUCT(('2. Assisted & Restricted Units'!$E$7:$E$399=\"3\")*('2. Assisted & Restricted Units'!$U$7:$U$399=\"Market Rate\")*('2. Assisted & Restricted Units'!$V$7:$V$399=\"LI State\"))","v":0},{"$f":"SUMPRODUCT(('2. Assisted & Restricted Units'!$E$7:$E$399=\"3\")*('2. Assisted & Restricted Units'!$U$7:$U$399=\"MHP\")*('2. Assisted & Restricted Units'!$V$7:$V$399=\"LI State\"))","v":0},{"$f":"SUMPRODUCT(('2. Assisted & Restricted Units'!$E$7:$E$399=\"3\")*('2. Assisted & Restricted Units'!$U$7:$U$399=\"NonAssisted\")*('2. Assisted & Restricted Units'!$V$7:$V$399=\"LI State\"))","v":0},{"$f":"SUMPRODUCT(('2. Assisted & Restricted Units'!$E$7:$E$399=\"3\")*('2. Assisted & Restricted Units'!$U$7:$U$399=\"Other Restr\")*('2. Assisted & Restricted Units'!$V$7:$V$399=\"LI State\"))","v":0},{"$f":"SUMPRODUCT(('2. Assisted & Restricted Units'!$E$7:$E$399=\"3\")*('2. Assisted & Restricted Units'!$U$7:$U$399=\"RHCP-B\")*('2. Assisted & Restricted Units'!$V$7:$V$399=\"LI State\"))","v":0},{"$f":"SUMPRODUCT(('2. Assisted & Restricted Units'!$E$7:$E$399=\"3\")*('2. Assisted & Restricted Units'!$U$7:$U$399=\"SERA\")*('2. Assisted & Restricted Units'!$V$7:$V$399=\"LI State\"))","v":0},{"$f":"SUMPRODUCT(('2. Assisted & Restricted Units'!$E$7:$E$399=\"3\")*('2. Assisted & Restricted Units'!$U$7:$U$399=\"SUHRP\")*('2. Assisted & Restricted Units'!$V$7:$V$399=\"LI State\"))","v":0},{"$f":"SUMPRODUCT(('2. Assisted & Restricted Units'!$E$7:$E$399=\"3\")*('2. Assisted & Restricted Units'!$U$7:$U$399=\"TOD\")*('2. Assisted & Restricted Units'!$V$7:$V$399=\"LI State\"))","v":0},{"$f":"SUMPRODUCT(('2. Assisted & Restricted Units'!$E$7:$E$399=\"3\")*('2. Assisted & Restricted Units'!$U$7:$U$399=\"707-E\")*('2. Assisted & Restricted Units'!$V$7:$V$399=\"LI State\"))","v":0},{"$f":"SUMPRODUCT(('2. Assisted & Restricted Units'!$E$7:$E$399=\"3\")*('2. Assisted & Restricted Units'!$U$7:$U$399=\"707-N\")*('2. Assisted & Restricted Units'!$V$7:$V$399=\"LI State\"))","v":0}]
["3 Bedroom Sec 8",{"$f":"SUMPRODUCT(('2. Assisted & Restricted Units'!$E$7:$E$399=\"3\")*('2. Assisted & Restricted Units'!$U$7:$U$399=\"CALDAP\")*('2. Assisted & Restricted Units'!$V$7:$V$399=\"CalHFA\"))","v":0},{"$f":"SUMPRODUCT(('2. Assisted & Restricted Units'!$E$7:$E$399=\"3\")*('2. Assisted & Restricted Units'!$U$7:$U$399=\"CHRP-R\")*('2. Assisted & Restricted Units'!$V$7:$V$399=\"CalHFA\"))","v":0},{"$f":"SUMPRODUCT(('2. Assisted & Restricted Units'!$E$7:$E$399=\"3\")*('2. Assisted & Restricted Units'!$U$7:$U$399=\"DDS\")*('2. Assisted & Restricted Units'!$V$7:$V$399=\"CalHFA\"))","v":0},{"$f":"SUMPRODUCT(('2. Assisted & Restricted Units'!$E$7:$E$399=\"3\")*('2. Assisted & Restricted Units'!$U$7:$U$399=\"DPRLP\")*('2. Assisted & Restricted Units'!$V$7:$V$399=\"CalHFA\"))","v":0},{"$f":"SUMPRODUCT(('2. Assisted & Restricted Units'!$E$7:$E$399=\"3\")*('2. Assisted & Restricted Units'!$U$7:$U$399=\"FHDP\")*('2. Assisted & Restricted Units'!$V$7:$V$399=\"CalHFA\"))","v":0},{"$f":"SUMPRODUCT(('2. Assisted & Restricted Units'!$E$7:$E$399=\"3\")*('2. Assisted & Restricted Units'!$U$7:$U$399=\"FMTW\")*('2. Assisted & Restricted Units'!$V$7:$V$399=\"CalHFA\"))","v":0},null,{"$f":"SUMPRODUCT(('2. Assisted & Restricted Units'!$E$7:$E$399=\"3\")*('2. Assisted & Restricted Units'!$U$7:$U$399=\"HOME\")*('2. Assisted & Restricted Units'!$V$7:$V$399=\"CalHFA\"))","v":0},{"$f":"SUMPRODUCT(('2. Assisted & Restricted Units'!$E$7:$E$399=\"3\")*('2. Assisted & Restricted Units'!$U$7:$U$399=\"Market Rate\")*('2. Assisted & Restricted Units'!$V$7:$V$399=\"CalHFA\"))","v":0},{"$f":"SUMPRODUCT(('2. Assisted & Restricted Units'!$E$7:$E$399=\"3\")*('2. Assisted & Restricted Units'!$U$7:$U$399=\"MHP\")*('2. Assisted & Restricted Units'!$V$7:$V$399=\"CalHFA\"))","v":0},{"$f":"SUMPRODUCT(('2. Assisted & Restricted Units'!$E$7:$E$399=\"3\")*('2. Assisted & Restricted Units'!$U$7:$U$399=\"NonAssisted\")*('2. Assisted & Restricted Units'!$V$7:$V$399=\"CalHFA\"))","v":0},{"$f":"SUMPRODUCT(('2. Assisted & Restricted Units'!$E$7:$E$399=\"3\")*('2. Assisted & Restricted Units'!$U$7:$U$399=\"Other Restr\")*('2. Assisted & Restricted Units'!$V$7:$V$399=\"CalHFA\"))","v":0},{"$f":"SUMPRODUCT(('2. Assisted & Restricted Units'!$E$7:$E$399=\"3\")*('2. Assisted & Restricted Units'!$U$7:$U$399=\"RHCP-B\")*('2. Assisted & Restricted Units'!$V$7:$V$399=\"CalHFA\"))","v":0},{"$f":"SUMPRODUCT(('2. Assisted & Restricted Units'!$E$7:$E$399=\"3\")*('2. Assisted & Restricted Units'!$U$7:$U$399=\"SERA\")*('2. Assisted & Restricted Units'!$V$7:$V$399=\"CalHFA\"))","v":0},{"$f":"SUMPRODUCT(('2. Assisted & Restricted Units'!$E$7:$E$399=\"3\")*('2. Assisted & Restricted Units'!$U$7:$U$399=\"SUHRP\")*('2. Assisted & Restricted Units'!$V$7:$V$399=\"CalHFA\"))","v":0},{"$f":"SUMPRODUCT(('2. Assisted & Restricted Units'!$E$7:$E$399=\"3\")*('2. Assisted & Restricted Units'!$U$7:$U$399=\"TOD\")*('2. Assisted & Restricted Units'!$V$7:$V$399=\"CalHFA\"))","v":0},{"$f":"SUMPRODUCT(('2. Assisted & Restricted Units'!$E$7:$E$399=\"3\")*('2. Assisted & Restricted Units'!$U$7:$U$399=\"707-E\")*('2. Assisted & Restricted Units'!$V$7:$V$399=\"CalHFA\"))","v":0},{"$f":"SUMPRODUCT(('2. Assisted & Restricted Units'!$E$7:$E$399=\"3\")*('2. Assisted & Restricted Units'!$U$7:$U$399=\"707-N\")*('2. Assisted & Restricted Units'!$V$7:$V$399=\"CalHFA\"))","v":0}]
["Total 3",{"$f":"SUM(B104:B127)","v":0},{"$f":"SUM(C104:C127)","v":0},{"$f":"SUM(D104:D127)","v":0},{"$f":"SUM(E104:E127)","v":0},{"$f":"SUM(F104:F127)","v":0},0,{"$f":"SUMPRODUCT(('2. Assisted & Restricted Units'!$E$7:$E$399=\"3\")*('2. Assisted & Restricted Units'!$U$7:$U$399=\"FWHG\"))","v":0},0,0,0,0,0,0,0,0,0,0,0,{"$f":"SUMPRODUCT(('2. Assisted & Restricted Units'!$E$7:$E$399=\"3\")*('2. Assisted & Restricted Units'!$L$7:$L$399=\"X\"))","v":0},{"$f":"SUMPRODUCT(('2. Assisted & Restricted Units'!$E$7:$E$399=\"3\")*('2. Assisted & Restricted Units'!#REF!=\"X\"))","v":{"$error":"#REF!"}},{"$f":"SUMPRODUCT(('2. Assisted & Restricted Units'!$E$7:$E$399=\"3\")*('2. Assisted & Restricted Units'!#REF!=\"X\"))","v":{"$error":"#REF!"}},{"$f":"SUMPRODUCT(('2. Assisted & Restricted Units'!$E$7:$E$399=\"3\")*('2. Assisted & Restricted Units'!#REF!=\"X\"))","v":{"$error":"#REF!"}},{"$f":"SUMPRODUCT(('2. Assisted & Restricted Units'!$E$7:$E$399=\"3\")*('2. Assisted & Restricted Units'!#REF!=\"X\"))","v":{"$error":"#REF!"}},{"$f":"SUMPRODUCT(('2. Assisted & Restricted Units'!$E$7:$E$399=\"3\")*('2. Assisted & Restricted Units'!#REF!=\"X\"))","v":{"$error":"#REF!"}},{"$f":"SUMPRODUCT(('2. Assisted & Restricted Units'!$E$7:$E$399=\"3\")*('2. Assisted & Restricted Units'!#REF!=\"X\"))","v":{"$error":"#REF!"}},{"$f":"SUMPRODUCT(('2. Assisted & Restricted Units'!$E$7:$E$399=\"3\")*('2. Assisted & Restricted Units'!$M$7:$M$399=\"X\"))","v":0},{"$f":"SUMPRODUCT(('2. Assisted & Restricted Units'!$E$7:$E$399=\"3\")*('2. Assisted & Restricted Units'!$O$7:$O$399=\"X\"))","v":0}]
["4 Bedroom 15% AMI",{"$f":"SUMPRODUCT(('2. Assisted & Restricted Units'!$E$7:$E$399=\"4\")*('2. Assisted & Restricted Units'!$U$7:$U$399=\"CALDAP\")*('2. Assisted & Restricted Units'!$V$7:$V$399=\"15% AMI\"))","v":0},{"$f":"SUMPRODUCT(('2. Assisted & Restricted Units'!$E$7:$E$399=\"4\")*('2. Assisted & Restricted Units'!$U$7:$U$399=\"CHRP-R\")*('2. Assisted & Restricted Units'!$V$7:$V$399=\"15% AMI\"))","v":0},{"$f":"SUMPRODUCT(('2. Assisted & Restricted Units'!$E$7:$E$399=\"4\")*('2. Assisted & Restricted Units'!$U$7:$U$399=\"DDS\")*('2. Assisted & Restricted Units'!$V$7:$V$399=\"15% AMI\"))","v":0},{"$f":"SUMPRODUCT(('2. Assisted & Restricted Units'!$E$7:$E$399=\"4\")*('2. Assisted & Restricted Units'!$U$7:$U$399=\"DPRLP\")*('2. Assisted & Restricted Units'!$V$7:$V$399=\"15% AMI\"))","v":0},{"$f":"SUMPRODUCT(('2. Assisted & Restricted Units'!$E$7:$E$399=\"4\")*('2. Assisted & Restricted Units'!$U$7:$U$399=\"FHDP\")*('2. Assisted & Restricted Units'!$V$7:$V$399=\"15% AMI\"))","v":0},{"$f":"SUMPRODUCT(('2. Assisted & Restricted Units'!$E$7:$E$399=\"4\")*('2. Assisted & Restricted Units'!$U$7:$U$399=\"FMTW\")*('2. Assisted & Restricted Units'!$V$7:$V$399=\"15% AMI\"))","v":0},null,{"$f":"SUMPRODUCT(('2. Assisted & Restricted Units'!$E$7:$E$399=\"4\")*('2. Assisted & Restricted Units'!$U$7:$U$399=\"HOME\")*('2. Assisted & Restricted Units'!$V$7:$V$399=\"15% AMI\"))","v":0},{"$f":"SUMPRODUCT(('2. Assisted & Restricted Units'!$E$7:$E$399=\"4\")*('2. Assisted & Restricted Units'!$U$7:$U$399=\"Market Rate\")*('2. Assisted & Restricted Units'!$V$7:$V$399=\"15% AMI\"))","v":0},{"$f":"SUMPRODUCT(('2. Assisted & Restricted Units'!$E$7:$E$399=\"4\")*('2. Assisted & Restricted Units'!$U$7:$U$399=\"MHP\")*('2. Assisted & Restricted Units'!$V$7:$V$399=\"15% AMI\"))","v":0},{"$f":"SUMPRODUCT(('2. Assisted & Restricted Units'!$E$7:$E$399=\"4\")*('2. Assisted & Restricted Units'!$U$7:$U$399=\"NonAssisted\")*('2. Assisted & Restricted Units'!$V$7:$V$399=\"15% AMI\"))","v":0},{"$f":"SUMPRODUCT(('2. Assisted & Restricted Units'!$E$7:$E$399=\"4\")*('2. Assisted & Restricted Units'!$U$7:$U$399=\"Other Restr\")*('2. Assisted & Restricted Units'!$V$7:$V$399=\"15% AMI\"))","v":0},{"$f":"SUMPRODUCT(('2. Assisted & Restricted Units'!$E$7:$E$399=\"4\")*('2. Assisted & Restricted Units'!$U$7:$U$399=\"RHCP-B\")*('2. Assisted & Restricted Units'!$V$7:$V$399=\"15% AMI\"))","v":0},{"$f":"SUMPRODUCT(('2. Assisted & Restricted Units'!$E$7:$E$399=\"4\")*('2. Assisted & Restricted Units'!$U$7:$U$399=\"SERA\")*('2. Assisted & Restricted Units'!$V$7:$V$399=\"15% AMI\"))","v":0},{"$f":"SUMPRODUCT(('2. Assisted & Restricted Units'!$E$7:$E$399=\"4\")*('2. Assisted & Restricted Units'!$U$7:$U$399=\"SUHRP\")*('2. Assisted & Restricted Units'!$V$7:$V$399=\"15% AMI\"))","v":0},{"$f":"SUMPRODUCT(('2. Assisted & Restricted Units'!$E$7:$E$399=\"4\")*('2. Assisted & Restricted Units'!$U$7:$U$399=\"TOD\")*('2. Assisted & Restricted Units'!$V$7:$V$399=\"15% AMI\"))","v":0},{"$f":"SUMPRODUCT(('2. Assisted & Restricted Units'!$E$7:$E$399=\"4\")*('2. Assisted & Restricted Units'!$U$7:$U$399=\"707-E\")*('2. Assisted & Restricted Units'!$V$7:$V$399=\"15% AMI\"))","v":0},{"$f":"SUMPRODUCT(('2. Assisted & Restricted Units'!$E$7:$E$399=\"4\")*('2. Assisted & Restricted Units'!$U$7:$U$399=\"707-N\")*('2. Assisted & Restricted Units'!$V$7:$V$399=\"15% AMI\"))","v":0}]
["4 Bedroom 20% AMI",{"$f":"SUMPRODUCT(('2. Assisted & Restricted Units'!$E$7:$E$399=\"4\")*('2. Assisted & Restricted Units'!$U$7:$U$399=\"CALDAP\")*('2. Assisted & Restricted Units'!$V$7:$V$399=\"20% AMI\"))","v":0},{"$f":"SUMPRODUCT(('2. Assisted & Restricted Units'!$E$7:$E$399=\"4\")*('2. Assisted & Restricted Units'!$U$7:$U$399=\"CHRP-R\")*('2. Assisted & Restricted Units'!$V$7:$V$399=\"20% AMI\"))","v":0},{"$f":"SUMPRODUCT(('2. Assisted & Restricted Units'!$E$7:$E$399=\"4\")*('2. Assisted & Restricted Units'!$U$7:$U$399=\"DDS\")*('2. Assisted & Restricted Units'!$V$7:$V$399=\"20% AMI\"))","v":0},{"$f":"SUMPRODUCT(('2. Assisted & Restricted Units'!$E$7:$E$399=\"4\")*('2. Assisted & Restricted Units'!$U$7:$U$399=\"DPRLP\")*('2. Assisted & Restricted Units'!$V$7:$V$399=\"20% AMI\"))","v":0},{"$f":"SUMPRODUCT(('2. Assisted & Restricted Units'!$E$7:$E$399=\"4\")*('2. Assisted & Restricted Units'!$U$7:$U$399=\"FHDP\")*('2. Assisted & Restricted Units'!$V$7:$V$399=\"20% AMI\"))","v":0},{"$f":"SUMPRODUCT(('2. Assisted & Restricted Units'!$E$7:$E$399=\"4\")*('2. Assisted & Restricted Units'!$U$7:$U$399=\"FMTW\")*('2. Assisted & Restricted Units'!$V$7:$V$399=\"20% AMI\"))","v":0},null,{"$f":"SUMPRODUCT(('2. Assisted & Restricted Units'!$E$7:$E$399=\"4\")*('2. Assisted & Restricted Units'!$U$7:$U$399=\"HOME\")*('2. Assisted & Restricted Units'!$V$7:$V$399=\"20% AMI\"))","v":0},{"$f":"SUMPRODUCT(('2. Assisted & Restricted Units'!$E$7:$E$399=\"4\")*('2. Assisted & Restricted Units'!$U$7:$U$399=\"Market Rate\")*('2. Assisted & Restricted Units'!$V$7:$V$399=\"20% AMI\"))","v":0},{"$f":"SUMPRODUCT(('2. Assisted & Restricted Units'!$E$7:$E$399=\"4\")*('2. Assisted & Restricted Units'!$U$7:$U$399=\"MHP\")*('2. Assisted & Restricted Units'!$V$7:$V$399=\"20% AMI\"))","v":0},{"$f":"SUMPRODUCT(('2. Assisted & Restricted Units'!$E$7:$E$399=\"4\")*('2. Assisted & Restricted Units'!$U$7:$U$399=\"NonAssisted\")*('2. Assisted & Restricted Units'!$V$7:$V$399=\"20% AMI\"))","v":0},{"$f":"SUMPRODUCT(('2. Assisted & Restricted Units'!$E$7:$E$399=\"4\")*('2. Assisted & Restricted Units'!$U$7:$U$399=\"Other Restr\")*('2. Assisted & Restricted Units'!$V$7:$V$399=\"20% AMI\"))","v":0},{"$f":"SUMPRODUCT(('2. Assisted & Restricted Units'!$E$7:$E$399=\"4\")*('2. Assisted & Restricted Units'!$U$7:$U$399=\"RHCP-B\")*('2. Assisted & Restricted Units'!$V$7:$V$399=\"20% AMI\"))","v":0},{"$f":"SUMPRODUCT(('2. Assisted & Restricted Units'!$E$7:$E$399=\"4\")*('2. Assisted & Restricted Units'!$U$7:$U$399=\"SERA\")*('2. Assisted & Restricted Units'!$V$7:$V$399=\"20% AMI\"))","v":0},{"$f":"SUMPRODUCT(('2. Assisted & Restricted Units'!$E$7:$E$399=\"4\")*('2. Assisted & Restricted Units'!$U$7:$U$399=\"SUHRP\")*('2. Assisted & Restricted Units'!$V$7:$V$399=\"20% AMI\"))","v":0},{"$f":"SUMPRODUCT(('2. Assisted & Restricted Units'!$E$7:$E$399=\"4\")*('2. Assisted & Restricted Units'!$U$7:$U$399=\"TOD\")*('2. Assisted & Restricted Units'!$V$7:$V$399=\"20% AMI\"))","v":0},{"$f":"SUMPRODUCT(('2. Assisted & Restricted Units'!$E$7:$E$399=\"4\")*('2. Assisted & Restricted Units'!$U$7:$U$399=\"707-E\")*('2. Assisted & Restricted Units'!$V$7:$V$399=\"20% AMI\"))","v":0},{"$f":"SUMPRODUCT(('2. Assisted & Restricted Units'!$E$7:$E$399=\"4\")*('2. Assisted & Restricted Units'!$U$7:$U$399=\"707-N\")*('2. Assisted & Restricted Units'!$V$7:$V$399=\"20% AMI\"))","v":0}]
["4 Bedroom 25% AMI",{"$f":"SUMPRODUCT(('2. Assisted & Restricted Units'!$E$7:$E$399=\"4\")*('2. Assisted & Restricted Units'!$U$7:$U$399=\"CALDAP\")*('2. Assisted & Restricted Units'!$V$7:$V$399=\"25% AMI\"))","v":0},{"$f":"SUMPRODUCT(('2. Assisted & Restricted Units'!$E$7:$E$399=\"4\")*('2. Assisted & Restricted Units'!$U$7:$U$399=\"CHRP-R\")*('2. Assisted & Restricted Units'!$V$7:$V$399=\"25% AMI\"))","v":0},{"$f":"SUMPRODUCT(('2. Assisted & Restricted Units'!$E$7:$E$399=\"4\")*('2. Assisted & Restricted Units'!$U$7:$U$399=\"DDS\")*('2. Assisted & Restricted Units'!$V$7:$V$399=\"25% AMI\"))","v":0},{"$f":"SUMPRODUCT(('2. Assisted & Restricted Units'!$E$7:$E$399=\"4\")*('2. Assisted & Restricted Units'!$U$7:$U$399=\"DPRLP\")*('2. Assisted & Restricted Units'!$V$7:$V$399=\"25% AMI\"))","v":0},{"$f":"SUMPRODUCT(('2. Assisted & Restricted Units'!$E$7:$E$399=\"4\")*('2. Assisted & Restricted Units'!$U$7:$U$399=\"FHDP\")*('2. Assisted & Restricted Units'!$V$7:$V$399=\"25% AMI\"))","v":0},{"$f":"SUMPRODUCT(('2. Assisted & Restricted Units'!$E$7:$E$399=\"4\")*('2. Assisted & Restricted Units'!$U$7:$U$399=\"FMTW\")*('2. Assisted & Restricted Units'!$V$7:$V$399=\"25% AMI\"))","v":0},null,{"$f":"SUMPRODUCT(('2. Assisted & Restricted Units'!$E$7:$E$399=\"4\")*('2. Assisted & Restricted Units'!$U$7:$U$399=\"HOME\")*('2. Assisted & Restricted Units'!$V$7:$V$399=\"25% AMI\"))","v":0},{"$f":"SUMPRODUCT(('2. Assisted & Restricted Units'!$E$7:$E$399=\"4\")*('2. Assisted & Restricted Units'!$U$7:$U$399=\"Market Rate\")*('2. Assisted & Restricted Units'!$V$7:$V$399=\"25% AMI\"))","v":0},{"$f":"SUMPRODUCT(('2. Assisted & Restricted Units'!$E$7:$E$399=\"4\")*('2. Assisted & Restricted Units'!$U$7:$U$399=\"MHP\")*('2. Assisted & Restricted Units'!$V$7:$V$399=\"25% AMI\"))","v":0},{"$f":"SUMPRODUCT(('2. Assisted & Restricted Units'!$E$7:$E$399=\"4\")*('2. Assisted & Restricted Units'!$U$7:$U$399=\"NonAssisted\")*('2. Assisted & Restricted Units'!$V$7:$V$399=\"25% AMI\"))","v":0},{"$f":"SUMPRODUCT(('2. Assisted & Restricted Units'!$E$7:$E$399=\"4\")*('2. Assisted & Restricted Units'!$U$7:$U$399=\"Other Restr\")*('2. Assisted & Restricted Units'!$V$7:$V$399=\"25% AMI\"))","v":0},{"$f":"SUMPRODUCT(('2. Assisted & Restricted Units'!$E$7:$E$399=\"4\")*('2. Assisted & Restricted Units'!$U$7:$U$399=\"RHCP-B\")*('2. Assisted & Restricted Units'!$V$7:$V$399=\"25% AMI\"))","v":0},{"$f":"SUMPRODUCT(('2. Assisted & Restricted Units'!$E$7:$E$399=\"4\")*('2. Assisted & Restricted Units'!$U$7:$U$399=\"SERA\")*('2. Assisted & Restricted Units'!$V$7:$V$399=\"25% AMI\"))","v":0},{"$f":"SUMPRODUCT(('2. Assisted & Restricted Units'!$E$7:$E$399=\"4\")*('2. Assisted & Restricted Units'!$U$7:$U$399=\"SUHRP\")*('2. Assisted & Restricted Units'!$V$7:$V$399=\"25% AMI\"))","v":0},{"$f":"SUMPRODUCT(('2. Assisted & Restricted Units'!$E$7:$E$399=\"4\")*('2. Assisted & Restricted Units'!$U$7:$U$399=\"TOD\")*('2. Assisted & Restricted Units'!$V$7:$V$399=\"25% AMI\"))","v":0},{"$f":"SUMPRODUCT(('2. Assisted & Restricted Units'!$E$7:$E$399=\"4\")*('2. Assisted & Restricted Units'!$U$7:$U$399=\"707-E\")*('2. Assisted & Restricted Units'!$V$7:$V$399=\"25% AMI\"))","v":0},{"$f":"SUMPRODUCT(('2. Assisted & Restricted Units'!$E$7:$E$399=\"4\")*('2. Assisted & Restricted Units'!$U$7:$U$399=\"707-N\")*('2. Assisted & Restricted Units'!$V$7:$V$399=\"25% AMI\"))","v":0}]
["4 Bedroom 30% AMI",{"$f":"SUMPRODUCT(('2. Assisted & Restricted Units'!$E$7:$E$399=\"4\")*('2. Assisted & Restricted Units'!$U$7:$U$399=\"CALDAP\")*('2. Assisted & Restricted Units'!$V$7:$V$399=\"30% AMI\"))","v":0},{"$f":"SUMPRODUCT(('2. Assisted & Restricted Units'!$E$7:$E$399=\"4\")*('2. Assisted & Restricted Units'!$U$7:$U$399=\"CHRP-R\")*('2. Assisted & Restricted Units'!$V$7:$V$399=\"30% AMI\"))","v":0},{"$f":"SUMPRODUCT(('2. Assisted & Restricted Units'!$E$7:$E$399=\"4\")*('2. Assisted & Restricted Units'!$U$7:$U$399=\"DDS\")*('2. Assisted & Restricted Units'!$V$7:$V$399=\"30% AMI\"))","v":0},{"$f":"SUMPRODUCT(('2. Assisted & Restricted Units'!$E$7:$E$399=\"4\")*('2. Assisted & Restricted Units'!$U$7:$U$399=\"DPRLP\")*('2. Assisted & Restricted Units'!$V$7:$V$399=\"30% AMI\"))","v":0},{"$f":"SUMPRODUCT(('2. Assisted & Restricted Units'!$E$7:$E$399=\"4\")*('2. Assisted & Restricted Units'!$U$7:$U$399=\"FHDP\")*('2. Assisted & Restricted Units'!$V$7:$V$399=\"30% AMI\"))","v":0},{"$f":"SUMPRODUCT(('2. Assisted & Restricted Units'!$E$7:$E$399=\"4\")*('2. Assisted & Restricted Units'!$U$7:$U$399=\"FMTW\")*('2. Assisted & Restricted Units'!$V$7:$V$399=\"30% AMI\"))","v":0},null,{"$f":"SUMPRODUCT(('2. Assisted & Restricted Units'!$E$7:$E$399=\"4\")*('2. Assisted & Restricted Units'!$U$7:$U$399=\"HOME\")*('2. Assisted & Restricted Units'!$V$7:$V$399=\"30% AMI\"))","v":0},{"$f":"SUMPRODUCT(('2. Assisted & Restricted Units'!$E$7:$E$399=\"4\")*('2. Assisted & Restricted Units'!$U$7:$U$399=\"Market Rate\")*('2. Assisted & Restricted Units'!$V$7:$V$399=\"30% AMI\"))","v":0},{"$f":"SUMPRODUCT(('2. Assisted & Restricted Units'!$E$7:$E$399=\"4\")*('2. Assisted & Restricted Units'!$U$7:$U$399=\"MHP\")*('2. Assisted & Restricted Units'!$V$7:$V$399=\"30% AMI\"))","v":0},{"$f":"SUMPRODUCT(('2. Assisted & Restricted Units'!$E$7:$E$399=\"4\")*('2. Assisted & Restricted Units'!$U$7:$U$399=\"NonAssisted\")*('2. Assisted & Restricted Units'!$V$7:$V$399=\"30% AMI\"))","v":0},{"$f":"SUMPRODUCT(('2. Assisted & Restricted Units'!$E$7:$E$399=\"4\")*('2. Assisted & Restricted Units'!$U$7:$U$399=\"Other Restr\")*('2. Assisted & Restricted Units'!$V$7:$V$399=\"30% AMI\"))","v":0},{"$f":"SUMPRODUCT(('2. Assisted & Restricted Units'!$E$7:$E$399=\"4\")*('2. Assisted & Restricted Units'!$U$7:$U$399=\"RHCP-B\")*('2. Assisted & Restricted Units'!$V$7:$V$399=\"30% AMI\"))","v":0},{"$f":"SUMPRODUCT(('2. Assisted & Restricted Units'!$E$7:$E$399=\"4\")*('2. Assisted & Restricted Units'!$U$7:$U$399=\"SERA\")*('2. Assisted & Restricted Units'!$V$7:$V$399=\"30% AMI\"))","v":0},{"$f":"SUMPRODUCT(('2. Assisted & Restricted Units'!$E$7:$E$399=\"4\")*('2. Assisted & Restricted Units'!$U$7:$U$399=\"SUHRP\")*('2. Assisted & Restricted Units'!$V$7:$V$399=\"30% AMI\"))","v":0},{"$f":"SUMPRODUCT(('2. Assisted & Restricted Units'!$E$7:$E$399=\"4\")*('2. Assisted & Restricted Units'!$U$7:$U$399=\"TOD\")*('2. Assisted & Restricted Units'!$V$7:$V$399=\"30% AMI\"))","v":0},{"$f":"SUMPRODUCT(('2. Assisted & Restricted Units'!$E$7:$E$399=\"4\")*('2. Assisted & Restricted Units'!$U$7:$U$399=\"707-E\")*('2. Assisted & Restricted Units'!$V$7:$V$399=\"30% AMI\"))","v":0},{"$f":"SUMPRODUCT(('2. Assisted & Restricted Units'!$E$7:$E$399=\"4\")*('2. Assisted & Restricted Units'!$U$7:$U$399=\"707-N\")*('2. Assisted & Restricted Units'!$V$7:$V$399=\"30% AMI\"))","v":0}]
["4 Bedroom 35% AMI",{"$f":"SUMPRODUCT(('2. Assisted & Restricted Units'!$E$7:$E$399=\"4\")*('2. Assisted & Restricted Units'!$U$7:$U$399=\"CALDAP\")*('2. Assisted & Restricted Units'!$V$7:$V$399=\"35% AMI\"))","v":0},{"$f":"SUMPRODUCT(('2. Assisted & Restricted Units'!$E$7:$E$399=\"4\")*('2. Assisted & Restricted Units'!$U$7:$U$399=\"CHRP-R\")*('2. Assisted & Restricted Units'!$V$7:$V$399=\"35% AMI\"))","v":0},{"$f":"SUMPRODUCT(('2. Assisted & Restricted Units'!$E$7:$E$399=\"4\")*('2. Assisted & Restricted Units'!$U$7:$U$399=\"DDS\")*('2. Assisted & Restricted Units'!$V$7:$V$399=\"35% AMI\"))","v":0},{"$f":"SUMPRODUCT(('2. Assisted & Restricted Units'!$E$7:$E$399=\"4\")*('2. Assisted & Restricted Units'!$U$7:$U$399=\"DPRLP\")*('2. Assisted & Restricted Units'!$V$7:$V$399=\"35% AMI\"))","v":0},{"$f":"SUMPRODUCT(('2. Assisted & Restricted Units'!$E$7:$E$399=\"4\")*('2. Assisted & Restricted Units'!$U$7:$U$399=\"FHDP\")*('2. Assisted & Restricted Units'!$V$7:$V$399=\"35% AMI\"))","v":0},{"$f":"SUMPRODUCT(('2. Assisted & Restricted Units'!$E$7:$E$399=\"4\")*('2. Assisted & Restricted Units'!$U$7:$U$399=\"FMTW\")*('2. Assisted & Restricted Units'!$V$7:$V$399=\"35% AMI\"))","v":0},null,{"$f":"SUMPRODUCT(('2. Assisted & Restricted Units'!$E$7:$E$399=\"4\")*('2. Assisted & Restricted Units'!$U$7:$U$399=\"HOME\")*('2. Assisted & Restricted Units'!$V$7:$V$399=\"35% AMI\"))","v":0},{"$f":"SUMPRODUCT(('2. Assisted & Restricted Units'!$E$7:$E$399=\"4\")*('2. Assisted & Restricted Units'!$U$7:$U$399=\"Market Rate\")*('2. Assisted & Restricted Units'!$V$7:$V$399=\"35% AMI\"))","v":0},{"$f":"SUMPRODUCT(('2. Assisted & Restricted Units'!$E$7:$E$399=\"4\")*('2. Assisted & Restricted Units'!$U$7:$U$399=\"MHP\")*('2. Assisted & Restricted Units'!$V$7:$V$399=\"35% AMI\"))","v":0},{"$f":"SUMPRODUCT(('2. Assisted & Restricted Units'!$E$7:$E$399=\"4\")*('2. Assisted & Restricted Units'!$U$7:$U$399=\"NonAssisted\")*('2. Assisted & Restricted Units'!$V$7:$V$399=\"35% AMI\"))","v":0},{"$f":"SUMPRODUCT(('2. Assisted & Restricted Units'!$E$7:$E$399=\"4\")*('2. Assisted & Restricted Units'!$U$7:$U$399=\"Other Restr\")*('2. Assisted & Restricted Units'!$V$7:$V$399=\"35% AMI\"))","v":0},{"$f":"SUMPRODUCT(('2. Assisted & Restricted Units'!$E$7:$E$399=\"4\")*('2. Assisted & Restricted Units'!$U$7:$U$399=\"RHCP-B\")*('2. Assisted & Restricted Units'!$V$7:$V$399=\"35% AMI\"))","v":0},{"$f":"SUMPRODUCT(('2. Assisted & Restricted Units'!$E$7:$E$399=\"4\")*('2. Assisted & Restricted Units'!$U$7:$U$399=\"SERA\")*('2. Assisted & Restricted Units'!$V$7:$V$399=\"35% AMI\"))","v":0},{"$f":"SUMPRODUCT(('2. Assisted & Restricted Units'!$E$7:$E$399=\"4\")*('2. Assisted & Restricted Units'!$U$7:$U$399=\"SUHRP\")*('2. Assisted & Restricted Units'!$V$7:$V$399=\"35% AMI\"))","v":0},{"$f":"SUMPRODUCT(('2. Assisted & Restricted Units'!$E$7:$E$399=\"4\")*('2. Assisted & Restricted Units'!$U$7:$U$399=\"TOD\")*('2. Assisted & Restricted Units'!$V$7:$V$399=\"35% AMI\"))","v":0},{"$f":"SUMPRODUCT(('2. Assisted & Restricted Units'!$E$7:$E$399=\"4\")*('2. Assisted & Restricted Units'!$U$7:$U$399=\"707-E\")*('2. Assisted & Restricted Units'!$V$7:$V$399=\"35% AMI\"))","v":0},{"$f":"SUMPRODUCT(('2. Assisted & Restricted Units'!$E$7:$E$399=\"4\")*('2. Assisted & Restricted Units'!$U$7:$U$399=\"707-N\")*('2. Assisted & Restricted Units'!$V$7:$V$399=\"35% AMI\"))","v":0}]
["4 Bedroom 40% AMI",{"$f":"SUMPRODUCT(('2. Assisted & Restricted Units'!$E$7:$E$399=\"4\")*('2. Assisted & Restricted Units'!$U$7:$U$399=\"CALDAP\")*('2. Assisted & Restricted Units'!$V$7:$V$399=\"40% AMI\"))","v":0},{"$f":"SUMPRODUCT(('2. Assisted & Restricted Units'!$E$7:$E$399=\"4\")*('2. Assisted & Restricted Units'!$U$7:$U$399=\"CHRP-R\")*('2. Assisted & Restricted Units'!$V$7:$V$399=\"40% AMI\"))","v":0},{"$f":"SUMPRODUCT(('2. Assisted & Restricted Units'!$E$7:$E$399=\"4\")*('2. Assisted & Restricted Units'!$U$7:$U$399=\"DDS\")*('2. Assisted & Restricted Units'!$V$7:$V$399=\"40% AMI\"))","v":0},{"$f":"SUMPRODUCT(('2. Assisted & Restricted Units'!$E$7:$E$399=\"4\")*('2. Assisted & Restricted Units'!$U$7:$U$399=\"DPRLP\")*('2. Assisted & Restricted Units'!$V$7:$V$399=\"40% AMI\"))","v":0},{"$f":"SUMPRODUCT(('2. Assisted & Restricted Units'!$E$7:$E$399=\"4\")*('2. Assisted & Restricted Units'!$U$7:$U$399=\"FHDP\")*('2. Assisted & Restricted Units'!$V$7:$V$399=\"40% AMI\"))","v":0},{"$f":"SUMPRODUCT(('2. Assisted & Restricted Units'!$E$7:$E$399=\"4\")*('2. Assisted & Restricted Units'!$U$7:$U$399=\"FMTW\")*('2. Assisted & Restricted Units'!$V$7:$V$399=\"40% AMI\"))","v":0},null,{"$f":"SUMPRODUCT(('2. Assisted & Restricted Units'!$E$7:$E$399=\"4\")*('2. Assisted & Restricted Units'!$U$7:$U$399=\"HOME\")*('2. Assisted & Restricted Units'!$V$7:$V$399=\"40% AMI\"))","v":0},{"$f":"SUMPRODUCT(('2. Assisted & Restricted Units'!$E$7:$E$399=\"4\")*('2. Assisted & Restricted Units'!$U$7:$U$399=\"Market Rate\")*('2. Assisted & Restricted Units'!$V$7:$V$399=\"40% AMI\"))","v":0},{"$f":"SUMPRODUCT(('2. Assisted & Restricted Units'!$E$7:$E$399=\"4\")*('2. Assisted & Restricted Units'!$U$7:$U$399=\"MHP\")*('2. Assisted & Restricted Units'!$V$7:$V$399=\"40% AMI\"))","v":0},{"$f":"SUMPRODUCT(('2. Assisted & Restricted Units'!$E$7:$E$399=\"4\")*('2. Assisted & Restricted Units'!$U$7:$U$399=\"NonAssisted\")*('2. Assisted & Restricted Units'!$V$7:$V$399=\"40% AMI\"))","v":0},{"$f":"SUMPRODUCT(('2. Assisted & Restricted Units'!$E$7:$E$399=\"4\")*('2. Assisted & Restricted Units'!$U$7:$U$399=\"Other Restr\")*('2. Assisted & Restricted Units'!$V$7:$V$399=\"40% AMI\"))","v":0},{"$f":"SUMPRODUCT(('2. Assisted & Restricted Units'!$E$7:$E$399=\"4\")*('2. Assisted & Restricted Units'!$U$7:$U$399=\"RHCP-B\")*('2. Assisted & Restricted Units'!$V$7:$V$399=\"40% AMI\"))","v":0},{"$f":"SUMPRODUCT(('2. Assisted & Restricted Units'!$E$7:$E$399=\"4\")*('2. Assisted & Restricted Units'!$U$7:$U$399=\"SERA\")*('2. Assisted & Restricted Units'!$V$7:$V$399=\"40% AMI\"))","v":0},{"$f":"SUMPRODUCT(('2. Assisted & Restricted Units'!$E$7:$E$399=\"4\")*('2. Assisted & Restricted Units'!$U$7:$U$399=\"SUHRP\")*('2. Assisted & Restricted Units'!$V$7:$V$399=\"40% AMI\"))","v":0},{"$f":"SUMPRODUCT(('2. Assisted & Restricted Units'!$E$7:$E$399=\"4\")*('2. Assisted & Restricted Units'!$U$7:$U$399=\"TOD\")*('2. Assisted & Restricted Units'!$V$7:$V$399=\"40% AMI\"))","v":0},{"$f":"SUMPRODUCT(('2. Assisted & Restricted Units'!$E$7:$E$399=\"4\")*('2. Assisted & Restricted Units'!$U$7:$U$399=\"707-E\")*('2. Assisted & Restricted Units'!$V$7:$V$399=\"40% AMI\"))","v":0},{"$f":"SUMPRODUCT(('2. Assisted & Restricted Units'!$E$7:$E$399=\"4\")*('2. Assisted & Restricted Units'!$U$7:$U$399=\"707-N\")*('2. Assisted & Restricted Units'!$V$7:$V$399=\"40% AMI\"))","v":0}]
["4 Bedroom 45% AMI",{"$f":"SUMPRODUCT(('2. Assisted & Restricted Units'!$E$7:$E$399=\"4\")*('2. Assisted & Restricted Units'!$U$7:$U$399=\"CALDAP\")*('2. Assisted & Restricted Units'!$V$7:$V$399=\"45% AMI\"))","v":0},{"$f":"SUMPRODUCT(('2. Assisted & Restricted Units'!$E$7:$E$399=\"4\")*('2. Assisted & Restricted Units'!$U$7:$U$399=\"CHRP-R\")*('2. Assisted & Restricted Units'!$V$7:$V$399=\"45% AMI\"))","v":0},{"$f":"SUMPRODUCT(('2. Assisted & Restricted Units'!$E$7:$E$399=\"4\")*('2. Assisted & Restricted Units'!$U$7:$U$399=\"DDS\")*('2. Assisted & Restricted Units'!$V$7:$V$399=\"45% AMI\"))","v":0},{"$f":"SUMPRODUCT(('2. Assisted & Restricted Units'!$E$7:$E$399=\"4\")*('2. Assisted & Restricted Units'!$U$7:$U$399=\"DPRLP\")*('2. Assisted & Restricted Units'!$V$7:$V$399=\"45% AMI\"))","v":0},{"$f":"SUMPRODUCT(('2. Assisted & Restricted Units'!$E$7:$E$399=\"4\")*('2. Assisted & Restricted Units'!$U$7:$U$399=\"FHDP\")*('2. Assisted & Restricted Units'!$V$7:$V$399=\"45% AMI\"))","v":0},{"$f":"SUMPRODUCT(('2. Assisted & Restricted Units'!$E$7:$E$399=\"4\")*('2. Assisted & Restricted Units'!$U$7:$U$399=\"FMTW\")*('2. Assisted & Restricted Units'!$V$7:$V$399=\"45% AMI\"))","v":0},null,{"$f":"SUMPRODUCT(('2. Assisted & Restricted Units'!$E$7:$E$399=\"4\")*('2. Assisted & Restricted Units'!$U$7:$U$399=\"HOME\")*('2. Assisted & Restricted Units'!$V$7:$V$399=\"45% AMI\"))","v":0},{"$f":"SUMPRODUCT(('2. Assisted & Restricted Units'!$E$7:$E$399=\"4\")*('2. Assisted & Restricted Units'!$U$7:$U$399=\"Market Rate\")*('2. Assisted & Restricted Units'!$V$7:$V$399=\"45% AMI\"))","v":0},{"$f":"SUMPRODUCT(('2. Assisted & Restricted Units'!$E$7:$E$399=\"4\")*('2. Assisted & Restricted Units'!$U$7:$U$399=\"MHP\")*('2. Assisted & Restricted Units'!$V$7:$V$399=\"45% AMI\"))","v":0},{"$f":"SUMPRODUCT(('2. Assisted & Restricted Units'!$E$7:$E$399=\"4\")*('2. Assisted & Restricted Units'!$U$7:$U$399=\"NonAssisted\")*('2. Assisted & Restricted Units'!$V$7:$V$399=\"45% AMI\"))","v":0},{"$f":"SUMPRODUCT(('2. Assisted & Restricted Units'!$E$7:$E$399=\"4\")*('2. Assisted & Restricted Units'!$U$7:$U$399=\"Other Restr\")*('2. Assisted & Restricted Units'!$V$7:$V$399=\"45% AMI\"))","v":0},{"$f":"SUMPRODUCT(('2. Assisted & Restricted Units'!$E$7:$E$399=\"4\")*('2. Assisted & Restricted Units'!$U$7:$U$399=\"RHCP-B\")*('2. Assisted & Restricted Units'!$V$7:$V$399=\"45% AMI\"))","v":0},{"$f":"SUMPRODUCT(('2. Assisted & Restricted Units'!$E$7:$E$399=\"4\")*('2. Assisted & Restricted Units'!$U$7:$U$399=\"SERA\")*('2. Assisted & Restricted Units'!$V$7:$V$399=\"45% AMI\"))","v":0},{"$f":"SUMPRODUCT(('2. Assisted & Restricted Units'!$E$7:$E$399=\"4\")*('2. Assisted & Restricted Units'!$U$7:$U$399=\"SUHRP\")*('2. Assisted & Restricted Units'!$V$7:$V$399=\"45% AMI\"))","v":0},{"$f":"SUMPRODUCT(('2. Assisted & Restricted Units'!$E$7:$E$399=\"4\")*('2. Assisted & Restricted Units'!$U$7:$U$399=\"TOD\")*('2. Assisted & Restricted Units'!$V$7:$V$399=\"45% AMI\"))","v":0},{"$f":"SUMPRODUCT(('2. Assisted & Restricted Units'!$E$7:$E$399=\"4\")*('2. Assisted & Restricted Units'!$U$7:$U$399=\"707-E\")*('2. Assisted & Restricted Units'!$V$7:$V$399=\"45% AMI\"))","v":0},{"$f":"SUMPRODUCT(('2. Assisted & Restricted Units'!$E$7:$E$399=\"4\")*('2. Assisted & Restricted Units'!$U$7:$U$399=\"707-N\")*('2. Assisted & Restricted Units'!$V$7:$V$399=\"45% AMI\"))","v":0}]
["4 Bedroom 50% AMI",{"$f":"SUMPRODUCT(('2. Assisted & Restricted Units'!$E$7:$E$399=\"4\")*('2. Assisted & Restricted Units'!$U$7:$U$399=\"CALDAP\")*('2. Assisted & Restricted Units'!$V$7:$V$399=\"50% AMI\"))","v":0},{"$f":"SUMPRODUCT(('2. Assisted & Restricted Units'!$E$7:$E$399=\"4\")*('2. Assisted & Restricted Units'!$U$7:$U$399=\"CHRP-R\")*('2. Assisted & Restricted Units'!$V$7:$V$399=\"50% AMI\"))","v":0},{"$f":"SUMPRODUCT(('2. Assisted & Restricted Units'!$E$7:$E$399=\"4\")*('2. Assisted & Restricted Units'!$U$7:$U$399=\"DDS\")*('2. Assisted & Restricted Units'!$V$7:$V$399=\"50% AMI\"))","v":0},{"$f":"SUMPRODUCT(('2. Assisted & Restricted Units'!$E$7:$E$399=\"4\")*('2. Assisted & Restricted Units'!$U$7:$U$399=\"DPRLP\")*('2. Assisted & Restricted Units'!$V$7:$V$399=\"50% AMI\"))","v":0},{"$f":"SUMPRODUCT(('2. Assisted & Restricted Units'!$E$7:$E$399=\"4\")*('2. Assisted & Restricted Units'!$U$7:$U$399=\"FHDP\")*('2. Assisted & Restricted Units'!$V$7:$V$399=\"50% AMI\"))","v":0},{"$f":"SUMPRODUCT(('2. Assisted & Restricted Units'!$E$7:$E$399=\"4\")*('2. Assisted & Restricted Units'!$U$7:$U$399=\"FMTW\")*('2. Assisted & Restricted Units'!$V$7:$V$399=\"50% AMI\"))","v":0},null,{"$f":"SUMPRODUCT(('2. Assisted & Restricted Units'!$E$7:$E$399=\"4\")*('2. Assisted & Restricted Units'!$U$7:$U$399=\"HOME\")*('2. Assisted & Restricted Units'!$V$7:$V$399=\"50% AMI\"))","v":0},{"$f":"SUMPRODUCT(('2. Assisted & Restricted Units'!$E$7:$E$399=\"4\")*('2. Assisted & Restricted Units'!$U$7:$U$399=\"Market Rate\")*('2. Assisted & Restricted Units'!$V$7:$V$399=\"50% AMI\"))","v":0},{"$f":"SUMPRODUCT(('2. Assisted & Restricted Units'!$E$7:$E$399=\"4\")*('2. Assisted & Restricted Units'!$U$7:$U$399=\"MHP\")*('2. Assisted & Restricted Units'!$V$7:$V$399=\"50% AMI\"))","v":0},{"$f":"SUMPRODUCT(('2. Assisted & Restricted Units'!$E$7:$E$399=\"4\")*('2. Assisted & Restricted Units'!$U$7:$U$399=\"NonAssisted\")*('2. Assisted & Restricted Units'!$V$7:$V$399=\"50% AMI\"))","v":0},{"$f":"SUMPRODUCT(('2. Assisted & Restricted Units'!$E$7:$E$399=\"4\")*('2. Assisted & Restricted Units'!$U$7:$U$399=\"Other Restr\")*('2. Assisted & Restricted Units'!$V$7:$V$399=\"50% AMI\"))","v":0},{"$f":"SUMPRODUCT(('2. Assisted & Restricted Units'!$E$7:$E$399=\"4\")*('2. Assisted & Restricted Units'!$U$7:$U$399=\"RHCP-B\")*('2. Assisted & Restricted Units'!$V$7:$V$399=\"50% AMI\"))","v":0},{"$f":"SUMPRODUCT(('2. Assisted & Restricted Units'!$E$7:$E$399=\"4\")*('2. Assisted & Restricted Units'!$U$7:$U$399=\"SERA\")*('2. Assisted & Restricted Units'!$V$7:$V$399=\"50% AMI\"))","v":0},{"$f":"SUMPRODUCT(('2. Assisted & Restricted Units'!$E$7:$E$399=\"4\")*('2. Assisted & Restricted Units'!$U$7:$U$399=\"SUHRP\")*('2. Assisted & Restricted Units'!$V$7:$V$399=\"50% AMI\"))","v":0},{"$f":"SUMPRODUCT(('2. Assisted & Restricted Units'!$E$7:$E$399=\"4\")*('2. Assisted & Restricted Units'!$U$7:$U$399=\"TOD\")*('2. Assisted & Restricted Units'!$V$7:$V$399=\"50% AMI\"))","v":0},{"$f":"SUMPRODUCT(('2. Assisted & Restricted Units'!$E$7:$E$399=\"4\")*('2. Assisted & Restricted Units'!$U$7:$U$399=\"707-E\")*('2. Assisted & Restricted Units'!$V$7:$V$399=\"50% AMI\"))","v":0},{"$f":"SUMPRODUCT(('2. Assisted & Restricted Units'!$E$7:$E$399=\"4\")*('2. Assisted & Restricted Units'!$U$7:$U$399=\"707-N\")*('2. Assisted & Restricted Units'!$V$7:$V$399=\"50% AMI\"))","v":0}]
["4 Bedroom 55% AMI",{"$f":"SUMPRODUCT(('2. Assisted & Restricted Units'!$E$7:$E$399=\"4\")*('2. Assisted & Restricted Units'!$U$7:$U$399=\"CALDAP\")*('2. Assisted & Restricted Units'!$V$7:$V$399=\"55% AMI\"))","v":0},{"$f":"SUMPRODUCT(('2. Assisted & Restricted Units'!$E$7:$E$399=\"4\")*('2. Assisted & Restricted Units'!$U$7:$U$399=\"CHRP-R\")*('2. Assisted & Restricted Units'!$V$7:$V$399=\"55% AMI\"))","v":0},{"$f":"SUMPRODUCT(('2. Assisted & Restricted Units'!$E$7:$E$399=\"4\")*('2. Assisted & Restricted Units'!$U$7:$U$399=\"DDS\")*('2. Assisted & Restricted Units'!$V$7:$V$399=\"55% AMI\"))","v":0},{"$f":"SUMPRODUCT(('2. Assisted & Restricted Units'!$E$7:$E$399=\"4\")*('2. Assisted & Restricted Units'!$U$7:$U$399=\"DPRLP\")*('2. Assisted & Restricted Units'!$V$7:$V$399=\"55% AMI\"))","v":0},{"$f":"SUMPRODUCT(('2. Assisted & Restricted Units'!$E$7:$E$399=\"4\")*('2. Assisted & Restricted Units'!$U$7:$U$399=\"FHDP\")*('2. Assisted & Restricted Units'!$V$7:$V$399=\"55% AMI\"))","v":0},{"$f":"SUMPRODUCT(('2. Assisted & Restricted Units'!$E$7:$E$399=\"4\")*('2. Assisted & Restricted Units'!$U$7:$U$399=\"FMTW\")*('2. Assisted & Restricted Units'!$V$7:$V$399=\"55% AMI\"))","v":0},null,{"$f":"SUMPRODUCT(('2. Assisted & Restricted Units'!$E$7:$E$399=\"4\")*('2. Assisted & Restricted Units'!$U$7:$U$399=\"HOME\")*('2. Assisted & Restricted Units'!$V$7:$V$399=\"55% AMI\"))","v":0},{"$f":"SUMPRODUCT(('2. Assisted & Restricted Units'!$E$7:$E$399=\"4\")*('2. Assisted & Restricted Units'!$U$7:$U$399=\"Market Rate\")*('2. Assisted & Restricted Units'!$V$7:$V$399=\"55% AMI\"))","v":0},{"$f":"SUMPRODUCT(('2. Assisted & Restricted Units'!$E$7:$E$399=\"4\")*('2. Assisted & Restricted Units'!$U$7:$U$399=\"MHP\")*('2. Assisted & Restricted Units'!$V$7:$V$399=\"55% AMI\"))","v":0},{"$f":"SUMPRODUCT(('2. Assisted & Restricted Units'!$E$7:$E$399=\"4\")*('2. Assisted & Restricted Units'!$U$7:$U$399=\"NonAssisted\")*('2. Assisted & Restricted Units'!$V$7:$V$399=\"55% AMI\"))","v":0},{"$f":"SUMPRODUCT(('2. Assisted & Restricted Units'!$E$7:$E$399=\"4\")*('2. Assisted & Restricted Units'!$U$7:$U$399=\"Other Restr\")*('2. Assisted & Restricted Units'!$V$7:$V$399=\"55% AMI\"))","v":0},{"$f":"SUMPRODUCT(('2. Assisted & Restricted Units'!$E$7:$E$399=\"4\")*('2. Assisted & Restricted Units'!$U$7:$U$399=\"RHCP-B\")*('2. Assisted & Restricted Units'!$V$7:$V$399=\"55% AMI\"))","v":0},{"$f":"SUMPRODUCT(('2. Assisted & Restricted Units'!$E$7:$E$399=\"4\")*('2. Assisted & Restricted Units'!$U$7:$U$399=\"SERA\")*('2. Assisted & Restricted Units'!$V$7:$V$399=\"55% AMI\"))","v":0},{"$f":"SUMPRODUCT(('2. Assisted & Restricted Units'!$E$7:$E$399=\"4\")*('2. Assisted & Restricted Units'!$U$7:$U$399=\"SUHRP\")*('2. Assisted & Restricted Units'!$V$7:$V$399=\"55% AMI\"))","v":0},{"$f":"SUMPRODUCT(('2. Assisted & Restricted Units'!$E$7:$E$399=\"4\")*('2. Assisted & Restricted Units'!$U$7:$U$399=\"TOD\")*('2. Assisted & Restricted Units'!$V$7:$V$399=\"55% AMI\"))","v":0},{"$f":"SUMPRODUCT(('2. Assisted & Restricted Units'!$E$7:$E$399=\"4\")*('2. Assisted & Restricted Units'!$U$7:$U$399=\"707-E\")*('2. Assisted & Restricted Units'!$V$7:$V$399=\"55% AMI\"))","v":0},{"$f":"SUMPRODUCT(('2. Assisted & Restricted Units'!$E$7:$E$399=\"4\")*('2. Assisted & Restricted Units'!$U$7:$U$399=\"707-N\")*('2. Assisted & Restricted Units'!$V$7:$V$399=\"55% AMI\"))","v":0}]
["4 Bedroom 60% AMI",{"$f":"SUMPRODUCT(('2. Assisted & Restricted Units'!$E$7:$E$399=\"4\")*('2. Assisted & Restricted Units'!$U$7:$U$399=\"CALDAP\")*('2. Assisted & Restricted Units'!$V$7:$V$399=\"60% AMI\"))","v":0},{"$f":"SUMPRODUCT(('2. Assisted & Restricted Units'!$E$7:$E$399=\"4\")*('2. Assisted & Restricted Units'!$U$7:$U$399=\"CHRP-R\")*('2. Assisted & Restricted Units'!$V$7:$V$399=\"60% AMI\"))","v":0},{"$f":"SUMPRODUCT(('2. Assisted & Restricted Units'!$E$7:$E$399=\"4\")*('2. Assisted & Restricted Units'!$U$7:$U$399=\"DDS\")*('2. Assisted & Restricted Units'!$V$7:$V$399=\"60% AMI\"))","v":0},{"$f":"SUMPRODUCT(('2. Assisted & Restricted Units'!$E$7:$E$399=\"4\")*('2. Assisted & Restricted Units'!$U$7:$U$399=\"DPRLP\")*('2. Assisted & Restricted Units'!$V$7:$V$399=\"60% AMI\"))","v":0},{"$f":"SUMPRODUCT(('2. Assisted & Restricted Units'!$E$7:$E$399=\"4\")*('2. Assisted & Restricted Units'!$U$7:$U$399=\"FHDP\")*('2. Assisted & Restricted Units'!$V$7:$V$399=\"60% AMI\"))","v":0},{"$f":"SUMPRODUCT(('2. Assisted & Restricted Units'!$E$7:$E$399=\"4\")*('2. Assisted & Restricted Units'!$U$7:$U$399=\"FMTW\")*('2. Assisted & Restricted Units'!$V$7:$V$399=\"60% AMI\"))","v":0},null,{"$f":"SUMPRODUCT(('2. Assisted & Restricted Units'!$E$7:$E$399=\"4\")*('2. Assisted & Restricted Units'!$U$7:$U$399=\"HOME\")*('2. Assisted & Restricted Units'!$V$7:$V$399=\"60% AMI\"))","v":0},{"$f":"SUMPRODUCT(('2. Assisted & Restricted Units'!$E$7:$E$399=\"4\")*('2. Assisted & Restricted Units'!$U$7:$U$399=\"Market Rate\")*('2. Assisted & Restricted Units'!$V$7:$V$399=\"60% AMI\"))","v":0},{"$f":"SUMPRODUCT(('2. Assisted & Restricted Units'!$E$7:$E$399=\"4\")*('2. Assisted & Restricted Units'!$U$7:$U$399=\"MHP\")*('2. Assisted & Restricted Units'!$V$7:$V$399=\"60% AMI\"))","v":0},{"$f":"SUMPRODUCT(('2. Assisted & Restricted Units'!$E$7:$E$399=\"4\")*('2. Assisted & Restricted Units'!$U$7:$U$399=\"NonAssisted\")*('2. Assisted & Restricted Units'!$V$7:$V$399=\"60% AMI\"))","v":0},{"$f":"SUMPRODUCT(('2. Assisted & Restricted Units'!$E$7:$E$399=\"4\")*('2. Assisted & Restricted Units'!$U$7:$U$399=\"Other Restr\")*('2. Assisted & Restricted Units'!$V$7:$V$399=\"60% AMI\"))","v":0},{"$f":"SUMPRODUCT(('2. Assisted & Restricted Units'!$E$7:$E$399=\"4\")*('2. Assisted & Restricted Units'!$U$7:$U$399=\"RHCP-B\")*('2. Assisted & Restricted Units'!$V$7:$V$399=\"60% AMI\"))","v":0},{"$f":"SUMPRODUCT(('2. Assisted & Restricted Units'!$E$7:$E$399=\"4\")*('2. Assisted & Restricted Units'!$U$7:$U$399=\"SERA\")*('2. Assisted & Restricted Units'!$V$7:$V$399=\"60% AMI\"))","v":0},{"$f":"SUMPRODUCT(('2. Assisted & Restricted Units'!$E$7:$E$399=\"4\")*('2. Assisted & Restricted Units'!$U$7:$U$399=\"SUHRP\")*('2. Assisted & Restricted Units'!$V$7:$V$399=\"60% AMI\"))","v":0},{"$f":"SUMPRODUCT(('2. Assisted & Restricted Units'!$E$7:$E$399=\"4\")*('2. Assisted & Restricted Units'!$U$7:$U$399=\"TOD\")*('2. Assisted & Restricted Units'!$V$7:$V$399=\"60% AMI\"))","v":0},{"$f":"SUMPRODUCT(('2. Assisted & Restricted Units'!$E$7:$E$399=\"4\")*('2. Assisted & Restricted Units'!$U$7:$U$399=\"707-E\")*('2. Assisted & Restricted Units'!$V$7:$V$399=\"60% AMI\"))","v":0},{"$f":"SUMPRODUCT(('2. Assisted & Restricted Units'!$E$7:$E$399=\"4\")*('2. Assisted & Restricted Units'!$U$7:$U$399=\"707-N\")*('2. Assisted & Restricted Units'!$V$7:$V$399=\"60% AMI\"))","v":0}]
["4 Bedroom 80% AMI",{"$f":"SUMPRODUCT(('2. Assisted & Restricted Units'!$E$7:$E$399=\"4\")*('2. Assisted & Restricted Units'!$U$7:$U$399=\"CALDAP\")*('2. Assisted & Restricted Units'!$V$7:$V$399=\"80% AMI\"))","v":0},{"$f":"SUMPRODUCT(('2. Assisted & Restricted Units'!$E$7:$E$399=\"4\")*('2. Assisted & Restricted Units'!$U$7:$U$399=\"CHRP-R\")*('2. Assisted & Restricted Units'!$V$7:$V$399=\"80% AMI\"))","v":0},{"$f":"SUMPRODUCT(('2. Assisted & Restricted Units'!$E$7:$E$399=\"4\")*('2. Assisted & Restricted Units'!$U$7:$U$399=\"DDS\")*('2. Assisted & Restricted Units'!$V$7:$V$399=\"80% AMI\"))","v":0},{"$f":"SUMPRODUCT(('2. Assisted & Restricted Units'!$E$7:$E$399=\"4\")*('2. Assisted & Restricted Units'!$U$7:$U$399=\"DPRLP\")*('2. Assisted & Restricted Units'!$V$7:$V$399=\"80% AMI\"))","v":0},{"$f":"SUMPRODUCT(('2. Assisted & Restricted Units'!$E$7:$E$399=\"4\")*('2. Assisted & Restricted Units'!$U$7:$U$399=\"FHDP\")*('2. Assisted & Restricted Units'!$V$7:$V$399=\"80% AMI\"))","v":0},{"$f":"SUMPRODUCT(('2. Assisted & Restricted Units'!$E$7:$E$399=\"4\")*('2. Assisted & Restricted Units'!$U$7:$U$399=\"FMTW\")*('2. Assisted & Restricted Units'!$V$7:$V$399=\"80% AMI\"))","v":0},null,{"$f":"SUMPRODUCT(('2. Assisted & Restricted Units'!$E$7:$E$399=\"4\")*('2. Assisted & Restricted Units'!$U$7:$U$399=\"HOME\")*('2. Assisted & Restricted Units'!$V$7:$V$399=\"80% AMI\"))","v":0},{"$f":"SUMPRODUCT(('2. Assisted & Restricted Units'!$E$7:$E$399=\"4\")*('2. Assisted & Restricted Units'!$U$7:$U$399=\"Market Rate\")*('2. Assisted & Restricted Units'!$V$7:$V$399=\"80% AMI\"))","v":0},{"$f":"SUMPRODUCT(('2. Assisted & Restricted Units'!$E$7:$E$399=\"4\")*('2. Assisted & Restricted Units'!$U$7:$U$399=\"MHP\")*('2. Assisted & Restricted Units'!$V$7:$V$399=\"80% AMI\"))","v":0},{"$f":"SUMPRODUCT(('2. Assisted & Restricted Units'!$E$7:$E$399=\"4\")*('2. Assisted & Restricted Units'!$U$7:$U$399=\"NonAssisted\")*('2. Assisted & Restricted Units'!$V$7:$V$399=\"80% AMI\"))","v":0},{"$f":"SUMPRODUCT(('2. Assisted & Restricted Units'!$E$7:$E$399=\"4\")*('2. Assisted & Restricted Units'!$U$7:$U$399=\"Other Restr\")*('2. Assisted & Restricted Units'!$V$7:$V$399=\"80% AMI\"))","v":0},{"$f":"SUMPRODUCT(('2. Assisted & Restricted Units'!$E$7:$E$399=\"4\")*('2. Assisted & Restricted Units'!$U$7:$U$399=\"RHCP-B\")*('2. Assisted & Restricted Units'!$V$7:$V$399=\"80% AMI\"))","v":0},{"$f":"SUMPRODUCT(('2. Assisted & Restricted Units'!$E$7:$E$399=\"4\")*('2. Assisted & Restricted Units'!$U$7:$U$399=\"SERA\")*('2. Assisted & Restricted Units'!$V$7:$V$399=\"80% AMI\"))","v":0},{"$f":"SUMPRODUCT(('2. Assisted & Restricted Units'!$E$7:$E$399=\"4\")*('2. Assisted & Restricted Units'!$U$7:$U$399=\"SUHRP\")*('2. Assisted & Restricted Units'!$V$7:$V$399=\"80% AMI\"))","v":0},{"$f":"SUMPRODUCT(('2. Assisted & Restricted Units'!$E$7:$E$399=\"4\")*('2. Assisted & Restricted Units'!$U$7:$U$399=\"TOD\")*('2. Assisted & Restricted Units'!$V$7:$V$399=\"80% AMI\"))","v":0},{"$f":"SUMPRODUCT(('2. Assisted & Restricted Units'!$E$7:$E$399=\"4\")*('2. Assisted & Restricted Units'!$U$7:$U$399=\"707-E\")*('2. Assisted & Restricted Units'!$V$7:$V$399=\"80% AMI\"))","v":0},{"$f":"SUMPRODUCT(('2. Assisted & Restricted Units'!$E$7:$E$399=\"4\")*('2. Assisted & Restricted Units'!$U$7:$U$399=\"707-N\")*('2. Assisted & Restricted Units'!$V$7:$V$399=\"80% AMI\"))","v":0}]
["4 Bedroom 20% SMI",{"$f":"SUMPRODUCT(('2. Assisted & Restricted Units'!$E$7:$E$399=\"4\")*('2. Assisted & Restricted Units'!$U$7:$U$399=\"CALDAP\")*('2. Assisted & Restricted Units'!$V$7:$V$399=\"20% SMI\"))","v":0},{"$f":"SUMPRODUCT(('2. Assisted & Restricted Units'!$E$7:$E$399=\"4\")*('2. Assisted & Restricted Units'!$U$7:$U$399=\"CHRP-R\")*('2. Assisted & Restricted Units'!$V$7:$V$399=\"20% SMI\"))","v":0},{"$f":"SUMPRODUCT(('2. Assisted & Restricted Units'!$E$7:$E$399=\"4\")*('2. Assisted & Restricted Units'!$U$7:$U$399=\"DDS\")*('2. Assisted & Restricted Units'!$V$7:$V$399=\"20% SMI\"))","v":0},{"$f":"SUMPRODUCT(('2. Assisted & Restricted Units'!$E$7:$E$399=\"4\")*('2. Assisted & Restricted Units'!$U$7:$U$399=\"DPRLP\")*('2. Assisted & Restricted Units'!$V$7:$V$399=\"20% SMI\"))","v":0},{"$f":"SUMPRODUCT(('2. Assisted & Restricted Units'!$E$7:$E$399=\"4\")*('2. Assisted & Restricted Units'!$U$7:$U$399=\"FHDP\")*('2. Assisted & Restricted Units'!$V$7:$V$399=\"20% SMI\"))","v":0},{"$f":"SUMPRODUCT(('2. Assisted & Restricted Units'!$E$7:$E$399=\"4\")*('2. Assisted & Restricted Units'!$U$7:$U$399=\"FMTW\")*('2. Assisted & Restricted Units'!$V$7:$V$399=\"20% SMI\"))","v":0},null,{"$f":"SUMPRODUCT(('2. Assisted & Restricted Units'!$E$7:$E$399=\"4\")*('2. Assisted & Restricted Units'!$U$7:$U$399=\"HOME\")*('2. Assisted & Restricted Units'!$V$7:$V$399=\"20% SMI\"))","v":0},{"$f":"SUMPRODUCT(('2. Assisted & Restricted Units'!$E$7:$E$399=\"4\")*('2. Assisted & Restricted Units'!$U$7:$U$399=\"Market Rate\")*('2. Assisted & Restricted Units'!$V$7:$V$399=\"20% SMI\"))","v":0},{"$f":"SUMPRODUCT(('2. Assisted & Restricted Units'!$E$7:$E$399=\"4\")*('2. Assisted & Restricted Units'!$U$7:$U$399=\"MHP\")*('2. Assisted & Restricted Units'!$V$7:$V$399=\"20% SMI\"))","v":0},{"$f":"SUMPRODUCT(('2. Assisted & Restricted Units'!$E$7:$E$399=\"4\")*('2. Assisted & Restricted Units'!$U$7:$U$399=\"NonAssisted\")*('2. Assisted & Restricted Units'!$V$7:$V$399=\"20% SMI\"))","v":0},{"$f":"SUMPRODUCT(('2. Assisted & Restricted Units'!$E$7:$E$399=\"4\")*('2. Assisted & Restricted Units'!$U$7:$U$399=\"Other Restr\")*('2. Assisted & Restricted Units'!$V$7:$V$399=\"20% SMI\"))","v":0},{"$f":"SUMPRODUCT(('2. Assisted & Restricted Units'!$E$7:$E$399=\"4\")*('2. Assisted & Restricted Units'!$U$7:$U$399=\"RHCP-B\")*('2. Assisted & Restricted Units'!$V$7:$V$399=\"20% SMI\"))","v":0},{"$f":"SUMPRODUCT(('2. Assisted & Restricted Units'!$E$7:$E$399=\"4\")*('2. Assisted & Restricted Units'!$U$7:$U$399=\"SERA\")*('2. Assisted & Restricted Units'!$V$7:$V$399=\"20% SMI\"))","v":0},{"$f":"SUMPRODUCT(('2. Assisted & Restricted Units'!$E$7:$E$399=\"4\")*('2. Assisted & Restricted Units'!$U$7:$U$399=\"SUHRP\")*('2. Assisted & Restricted Units'!$V$7:$V$399=\"20% SMI\"))","v":0},{"$f":"SUMPRODUCT(('2. Assisted & Restricted Units'!$E$7:$E$399=\"4\")*('2. Assisted & Restricted Units'!$U$7:$U$399=\"TOD\")*('2. Assisted & Restricted Units'!$V$7:$V$399=\"20% SMI\"))","v":0},{"$f":"SUMPRODUCT(('2. Assisted & Restricted Units'!$E$7:$E$399=\"4\")*('2. Assisted & Restricted Units'!$U$7:$U$399=\"707-E\")*('2. Assisted & Restricted Units'!$V$7:$V$399=\"20% SMI\"))","v":0},{"$f":"SUMPRODUCT(('2. Assisted & Restricted Units'!$E$7:$E$399=\"4\")*('2. Assisted & Restricted Units'!$U$7:$U$399=\"707-N\")*('2. Assisted & Restricted Units'!$V$7:$V$399=\"20% SMI\"))","v":0}]
["4 Bedroom 25% SMI",{"$f":"SUMPRODUCT(('2. Assisted & Restricted Units'!$E$7:$E$399=\"4\")*('2. Assisted & Restricted Units'!$U$7:$U$399=\"CALDAP\")*('2. Assisted & Restricted Units'!$V$7:$V$399=\"25% SMI\"))","v":0},{"$f":"SUMPRODUCT(('2. Assisted & Restricted Units'!$E$7:$E$399=\"4\")*('2. Assisted & Restricted Units'!$U$7:$U$399=\"CHRP-R\")*('2. Assisted & Restricted Units'!$V$7:$V$399=\"25% SMI\"))","v":0},{"$f":"SUMPRODUCT(('2. Assisted & Restricted Units'!$E$7:$E$399=\"4\")*('2. Assisted & Restricted Units'!$U$7:$U$399=\"DDS\")*('2. Assisted & Restricted Units'!$V$7:$V$399=\"25% SMI\"))","v":0},{"$f":"SUMPRODUCT(('2. Assisted & Restricted Units'!$E$7:$E$399=\"4\")*('2. Assisted & Restricted Units'!$U$7:$U$399=\"DPRLP\")*('2. Assisted & Restricted Units'!$V$7:$V$399=\"25% SMI\"))","v":0},{"$f":"SUMPRODUCT(('2. Assisted & Restricted Units'!$E$7:$E$399=\"4\")*('2. Assisted & Restricted Units'!$U$7:$U$399=\"FHDP\")*('2. Assisted & Restricted Units'!$V$7:$V$399=\"25% SMI\"))","v":0},{"$f":"SUMPRODUCT(('2. Assisted & Restricted Units'!$E$7:$E$399=\"4\")*('2. Assisted & Restricted Units'!$U$7:$U$399=\"FMTW\")*('2. Assisted & Restricted Units'!$V$7:$V$399=\"25% SMI\"))","v":0},null,{"$f":"SUMPRODUCT(('2. Assisted & Restricted Units'!$E$7:$E$399=\"4\")*('2. Assisted & Restricted Units'!$U$7:$U$399=\"HOME\")*('2. Assisted & Restricted Units'!$V$7:$V$399=\"25% SMI\"))","v":0},{"$f":"SUMPRODUCT(('2. Assisted & Restricted Units'!$E$7:$E$399=\"4\")*('2. Assisted & Restricted Units'!$U$7:$U$399=\"Market Rate\")*('2. Assisted & Restricted Units'!$V$7:$V$399=\"25% SMI\"))","v":0},{"$f":"SUMPRODUCT(('2. Assisted & Restricted Units'!$E$7:$E$399=\"4\")*('2. Assisted & Restricted Units'!$U$7:$U$399=\"MHP\")*('2. Assisted & Restricted Units'!$V$7:$V$399=\"25% SMI\"))","v":0},{"$f":"SUMPRODUCT(('2. Assisted & Restricted Units'!$E$7:$E$399=\"4\")*('2. Assisted & Restricted Units'!$U$7:$U$399=\"NonAssisted\")*('2. Assisted & Restricted Units'!$V$7:$V$399=\"25% SMI\"))","v":0},{"$f":"SUMPRODUCT(('2. Assisted & Restricted Units'!$E$7:$E$399=\"4\")*('2. Assisted & Restricted Units'!$U$7:$U$399=\"Other Restr\")*('2. Assisted & Restricted Units'!$V$7:$V$399=\"25% SMI\"))","v":0},{"$f":"SUMPRODUCT(('2. Assisted & Restricted Units'!$E$7:$E$399=\"4\")*('2. Assisted & Restricted Units'!$U$7:$U$399=\"RHCP-B\")*('2. Assisted & Restricted Units'!$V$7:$V$399=\"25% SMI\"))","v":0},{"$f":"SUMPRODUCT(('2. Assisted & Restricted Units'!$E$7:$E$399=\"4\")*('2. Assisted & Restricted Units'!$U$7:$U$399=\"SERA\")*('2. Assisted & Restricted Units'!$V$7:$V$399=\"25% SMI\"))","v":0},{"$f":"SUMPRODUCT(('2. Assisted & Restricted Units'!$E$7:$E$399=\"4\")*('2. Assisted & Restricted Units'!$U$7:$U$399=\"SUHRP\")*('2. Assisted & Restricted Units'!$V$7:$V$399=\"25% SMI\"))","v":0},{"$f":"SUMPRODUCT(('2. Assisted & Restricted Units'!$E$7:$E$399=\"4\")*('2. Assisted & Restricted Units'!$U$7:$U$399=\"TOD\")*('2. Assisted & Restricted Units'!$V$7:$V$399=\"25% SMI\"))","v":0},{"$f":"SUMPRODUCT(('2. Assisted & Restricted Units'!$E$7:$E$399=\"4\")*('2. Assisted & Restricted Units'!$U$7:$U$399=\"707-E\")*('2. Assisted & Restricted Units'!$V$7:$V$399=\"25% SMI\"))","v":0},{"$f":"SUMPRODUCT(('2. Assisted & Restricted Units'!$E$7:$E$399=\"4\")*('2. Assisted & Restricted Units'!$U$7:$U$399=\"707-N\")*('2. Assisted & Restricted Units'!$V$7:$V$399=\"25% SMI\"))","v":0}]
["4 Bedroom 30% SMI",{"$f":"SUMPRODUCT(('2. Assisted & Restricted Units'!$E$7:$E$399=\"4\")*('2. Assisted & Restricted Units'!$U$7:$U$399=\"CALDAP\")*('2. Assisted & Restricted Units'!$V$7:$V$399=\"30% SMI\"))","v":0},{"$f":"SUMPRODUCT(('2. Assisted & Restricted Units'!$E$7:$E$399=\"4\")*('2. Assisted & Restricted Units'!$U$7:$U$399=\"CHRP-R\")*('2. Assisted & Restricted Units'!$V$7:$V$399=\"30% SMI\"))","v":0},{"$f":"SUMPRODUCT(('2. Assisted & Restricted Units'!$E$7:$E$399=\"4\")*('2. Assisted & Restricted Units'!$U$7:$U$399=\"DDS\")*('2. Assisted & Restricted Units'!$V$7:$V$399=\"30% SMI\"))","v":0},{"$f":"SUMPRODUCT(('2. Assisted & Restricted Units'!$E$7:$E$399=\"4\")*('2. Assisted & Restricted Units'!$U$7:$U$399=\"DPRLP\")*('2. Assisted & Restricted Units'!$V$7:$V$399=\"30% SMI\"))","v":0},{"$f":"SUMPRODUCT(('2. Assisted & Restricted Units'!$E$7:$E$399=\"4\")*('2. Assisted & Restricted Units'!$U$7:$U$399=\"FHDP\")*('2. Assisted & Restricted Units'!$V$7:$V$399=\"30% SMI\"))","v":0},{"$f":"SUMPRODUCT(('2. Assisted & Restricted Units'!$E$7:$E$399=\"4\")*('2. Assisted & Restricted Units'!$U$7:$U$399=\"FMTW\")*('2. Assisted & Restricted Units'!$V$7:$V$399=\"30% SMI\"))","v":0},null,{"$f":"SUMPRODUCT(('2. Assisted & Restricted Units'!$E$7:$E$399=\"4\")*('2. Assisted & Restricted Units'!$U$7:$U$399=\"HOME\")*('2. Assisted & Restricted Units'!$V$7:$V$399=\"30% SMI\"))","v":0},{"$f":"SUMPRODUCT(('2. Assisted & Restricted Units'!$E$7:$E$399=\"4\")*('2. Assisted & Restricted Units'!$U$7:$U$399=\"Market Rate\")*('2. Assisted & Restricted Units'!$V$7:$V$399=\"30% SMI\"))","v":0},{"$f":"SUMPRODUCT(('2. Assisted & Restricted Units'!$E$7:$E$399=\"4\")*('2. Assisted & Restricted Units'!$U$7:$U$399=\"MHP\")*('2. Assisted & Restricted Units'!$V$7:$V$399=\"30% SMI\"))","v":0},{"$f":"SUMPRODUCT(('2. Assisted & Restricted Units'!$E$7:$E$399=\"4\")*('2. Assisted & Restricted Units'!$U$7:$U$399=\"NonAssisted\")*('2. Assisted & Restricted Units'!$V$7:$V$399=\"30% SMI\"))","v":0},{"$f":"SUMPRODUCT(('2. Assisted & Restricted Units'!$E$7:$E$399=\"4\")*('2. Assisted & Restricted Units'!$U$7:$U$399=\"Other Restr\")*('2. Assisted & Restricted Units'!$V$7:$V$399=\"30% SMI\"))","v":0},{"$f":"SUMPRODUCT(('2. Assisted & Restricted Units'!$E$7:$E$399=\"4\")*('2. Assisted & Restricted Units'!$U$7:$U$399=\"RHCP-B\")*('2. Assisted & Restricted Units'!$V$7:$V$399=\"30% SMI\"))","v":0},{"$f":"SUMPRODUCT(('2. Assisted & Restricted Units'!$E$7:$E$399=\"4\")*('2. Assisted & Restricted Units'!$U$7:$U$399=\"SERA\")*('2. Assisted & Restricted Units'!$V$7:$V$399=\"30% SMI\"))","v":0},{"$f":"SUMPRODUCT(('2. Assisted & Restricted Units'!$E$7:$E$399=\"4\")*('2. Assisted & Restricted Units'!$U$7:$U$399=\"SUHRP\")*('2. Assisted & Restricted Units'!$V$7:$V$399=\"30% SMI\"))","v":0},{"$f":"SUMPRODUCT(('2. Assisted & Restricted Units'!$E$7:$E$399=\"4\")*('2. Assisted & Restricted Units'!$U$7:$U$399=\"TOD\")*('2. Assisted & Restricted Units'!$V$7:$V$399=\"30% SMI\"))","v":0},{"$f":"SUMPRODUCT(('2. Assisted & Restricted Units'!$E$7:$E$399=\"4\")*('2. Assisted & Restricted Units'!$U$7:$U$399=\"707-E\")*('2. Assisted & Restricted Units'!$V$7:$V$399=\"30% SMI\"))","v":0},{"$f":"SUMPRODUCT(('2. Assisted & Restricted Units'!$E$7:$E$399=\"4\")*('2. Assisted & Restricted Units'!$U$7:$U$399=\"707-N\")*('2. Assisted & Restricted Units'!$V$7:$V$399=\"30% SMI\"))","v":0}]
["4 Bedroom 35% SMI",{"$f":"SUMPRODUCT(('2. Assisted & Restricted Units'!$E$7:$E$399=\"4\")*('2. Assisted & Restricted Units'!$U$7:$U$399=\"CALDAP\")*('2. Assisted & Restricted Units'!$V$7:$V$399=\"35% SMI\"))","v":0},{"$f":"SUMPRODUCT(('2. Assisted & Restricted Units'!$E$7:$E$399=\"4\")*('2. Assisted & Restricted Units'!$U$7:$U$399=\"CHRP-R\")*('2. Assisted & Restricted Units'!$V$7:$V$399=\"35% SMI\"))","v":0},{"$f":"SUMPRODUCT(('2. Assisted & Restricted Units'!$E$7:$E$399=\"4\")*('2. Assisted & Restricted Units'!$U$7:$U$399=\"DDS\")*('2. Assisted & Restricted Units'!$V$7:$V$399=\"35% SMI\"))","v":0},{"$f":"SUMPRODUCT(('2. Assisted & Restricted Units'!$E$7:$E$399=\"4\")*('2. Assisted & Restricted Units'!$U$7:$U$399=\"DPRLP\")*('2. Assisted & Restricted Units'!$V$7:$V$399=\"35% SMI\"))","v":0},{"$f":"SUMPRODUCT(('2. Assisted & Restricted Units'!$E$7:$E$399=\"4\")*('2. Assisted & Restricted Units'!$U$7:$U$399=\"FHDP\")*('2. Assisted & Restricted Units'!$V$7:$V$399=\"35% SMI\"))","v":0},{"$f":"SUMPRODUCT(('2. Assisted & Restricted Units'!$E$7:$E$399=\"4\")*('2. Assisted & Restricted Units'!$U$7:$U$399=\"FMTW\")*('2. Assisted & Restricted Units'!$V$7:$V$399=\"35% SMI\"))","v":0},null,{"$f":"SUMPRODUCT(('2. Assisted & Restricted Units'!$E$7:$E$399=\"4\")*('2. Assisted & Restricted Units'!$U$7:$U$399=\"HOME\")*('2. Assisted & Restricted Units'!$V$7:$V$399=\"35% SMI\"))","v":0},{"$f":"SUMPRODUCT(('2. Assisted & Restricted Units'!$E$7:$E$399=\"4\")*('2. Assisted & Restricted Units'!$U$7:$U$399=\"Market Rate\")*('2. Assisted & Restricted Units'!$V$7:$V$399=\"35% SMI\"))","v":0},{"$f":"SUMPRODUCT(('2. Assisted & Restricted Units'!$E$7:$E$399=\"4\")*('2. Assisted & Restricted Units'!$U$7:$U$399=\"MHP\")*('2. Assisted & Restricted Units'!$V$7:$V$399=\"35% SMI\"))","v":0},{"$f":"SUMPRODUCT(('2. Assisted & Restricted Units'!$E$7:$E$399=\"4\")*('2. Assisted & Restricted Units'!$U$7:$U$399=\"NonAssisted\")*('2. Assisted & Restricted Units'!$V$7:$V$399=\"35% SMI\"))","v":0},{"$f":"SUMPRODUCT(('2. Assisted & Restricted Units'!$E$7:$E$399=\"4\")*('2. Assisted & Restricted Units'!$U$7:$U$399=\"Other Restr\")*('2. Assisted & Restricted Units'!$V$7:$V$399=\"35% SMI\"))","v":0},{"$f":"SUMPRODUCT(('2. Assisted & Restricted Units'!$E$7:$E$399=\"4\")*('2. Assisted & Restricted Units'!$U$7:$U$399=\"RHCP-B\")*('2. Assisted & Restricted Units'!$V$7:$V$399=\"35% SMI\"))","v":0},{"$f":"SUMPRODUCT(('2. Assisted & Restricted Units'!$E$7:$E$399=\"4\")*('2. Assisted & Restricted Units'!$U$7:$U$399=\"SERA\")*('2. Assisted & Restricted Units'!$V$7:$V$399=\"35% SMI\"))","v":0},{"$f":"SUMPRODUCT(('2. Assisted & Restricted Units'!$E$7:$E$399=\"4\")*('2. Assisted & Restricted Units'!$U$7:$U$399=\"SUHRP\")*('2. Assisted & Restricted Units'!$V$7:$V$399=\"35% SMI\"))","v":0},{"$f":"SUMPRODUCT(('2. Assisted & Restricted Units'!$E$7:$E$399=\"4\")*('2. Assisted & Restricted Units'!$U$7:$U$399=\"TOD\")*('2. Assisted & Restricted Units'!$V$7:$V$399=\"35% SMI\"))","v":0},{"$f":"SUMPRODUCT(('2. Assisted & Restricted Units'!$E$7:$E$399=\"4\")*('2. Assisted & Restricted Units'!$U$7:$U$399=\"707-E\")*('2. Assisted & Restricted Units'!$V$7:$V$399=\"35% SMI\"))","v":0},{"$f":"SUMPRODUCT(('2. Assisted & Restricted Units'!$E$7:$E$399=\"4\")*('2. Assisted & Restricted Units'!$U$7:$U$399=\"707-N\")*('2. Assisted & Restricted Units'!$V$7:$V$399=\"35% SMI\"))","v":0}]
["4 Bedroom 40% SMI",{"$f":"SUMPRODUCT(('2. Assisted & Restricted Units'!$E$7:$E$399=\"4\")*('2. Assisted & Restricted Units'!$U$7:$U$399=\"CALDAP\")*('2. Assisted & Restricted Units'!$V$7:$V$399=\"40% SMI\"))","v":0},{"$f":"SUMPRODUCT(('2. Assisted & Restricted Units'!$E$7:$E$399=\"4\")*('2. Assisted & Restricted Units'!$U$7:$U$399=\"CHRP-R\")*('2. Assisted & Restricted Units'!$V$7:$V$399=\"40% SMI\"))","v":0},{"$f":"SUMPRODUCT(('2. Assisted & Restricted Units'!$E$7:$E$399=\"4\")*('2. Assisted & Restricted Units'!$U$7:$U$399=\"DDS\")*('2. Assisted & Restricted Units'!$V$7:$V$399=\"40% SMI\"))","v":0},{"$f":"SUMPRODUCT(('2. Assisted & Restricted Units'!$E$7:$E$399=\"4\")*('2. Assisted & Restricted Units'!$U$7:$U$399=\"DPRLP\")*('2. Assisted & Restricted Units'!$V$7:$V$399=\"40% SMI\"))","v":0},{"$f":"SUMPRODUCT(('2. Assisted & Restricted Units'!$E$7:$E$399=\"4\")*('2. Assisted & Restricted Units'!$U$7:$U$399=\"FHDP\")*('2. Assisted & Restricted Units'!$V$7:$V$399=\"40% SMI\"))","v":0},{"$f":"SUMPRODUCT(('2. Assisted & Restricted Units'!$E$7:$E$399=\"4\")*('2. Assisted & Restricted Units'!$U$7:$U$399=\"FMTW\")*('2. Assisted & Restricted Units'!$V$7:$V$399=\"40% SMI\"))","v":0},null,{"$f":"SUMPRODUCT(('2. Assisted & Restricted Units'!$E$7:$E$399=\"4\")*('2. Assisted & Restricted Units'!$U$7:$U$399=\"HOME\")*('2. Assisted & Restricted Units'!$V$7:$V$399=\"40% SMI\"))","v":0},{"$f":"SUMPRODUCT(('2. Assisted & Restricted Units'!$E$7:$E$399=\"4\")*('2. Assisted & Restricted Units'!$U$7:$U$399=\"Market Rate\")*('2. Assisted & Restricted Units'!$V$7:$V$399=\"40% SMI\"))","v":0},{"$f":"SUMPRODUCT(('2. Assisted & Restricted Units'!$E$7:$E$399=\"4\")*('2. Assisted & Restricted Units'!$U$7:$U$399=\"MHP\")*('2. Assisted & Restricted Units'!$V$7:$V$399=\"40% SMI\"))","v":0},{"$f":"SUMPRODUCT(('2. Assisted & Restricted Units'!$E$7:$E$399=\"4\")*('2. Assisted & Restricted Units'!$U$7:$U$399=\"NonAssisted\")*('2. Assisted & Restricted Units'!$V$7:$V$399=\"40% SMI\"))","v":0},{"$f":"SUMPRODUCT(('2. Assisted & Restricted Units'!$E$7:$E$399=\"4\")*('2. Assisted & Restricted Units'!$U$7:$U$399=\"Other Restr\")*('2. Assisted & Restricted Units'!$V$7:$V$399=\"40% SMI\"))","v":0},{"$f":"SUMPRODUCT(('2. Assisted & Restricted Units'!$E$7:$E$399=\"4\")*('2. Assisted & Restricted Units'!$U$7:$U$399=\"RHCP-B\")*('2. Assisted & Restricted Units'!$V$7:$V$399=\"40% SMI\"))","v":0},{"$f":"SUMPRODUCT(('2. Assisted & Restricted Units'!$E$7:$E$399=\"4\")*('2. Assisted & Restricted Units'!$U$7:$U$399=\"SERA\")*('2. Assisted & Restricted Units'!$V$7:$V$399=\"40% SMI\"))","v":0},{"$f":"SUMPRODUCT(('2. Assisted & Restricted Units'!$E$7:$E$399=\"4\")*('2. Assisted & Restricted Units'!$U$7:$U$399=\"SUHRP\")*('2. Assisted & Restricted Units'!$V$7:$V$399=\"40% SMI\"))","v":0},{"$f":"SUMPRODUCT(('2. Assisted & Restricted Units'!$E$7:$E$399=\"4\")*('2. Assisted & Restricted Units'!$U$7:$U$399=\"TOD\")*('2. Assisted & Restricted Units'!$V$7:$V$399=\"40% SMI\"))","v":0},{"$f":"SUMPRODUCT(('2. Assisted & Restricted Units'!$E$7:$E$399=\"4\")*('2. Assisted & Restricted Units'!$U$7:$U$399=\"707-E\")*('2. Assisted & Restricted Units'!$V$7:$V$399=\"40% SMI\"))","v":0},{"$f":"SUMPRODUCT(('2. Assisted & Restricted Units'!$E$7:$E$399=\"4\")*('2. Assisted & Restricted Units'!$U$7:$U$399=\"707-N\")*('2. Assisted & Restricted Units'!$V$7:$V$399=\"40% SMI\"))","v":0}]
["4 Bedroom 45% SMI",{"$f":"SUMPRODUCT(('2. Assisted & Restricted Units'!$E$7:$E$399=\"4\")*('2. Assisted & Restricted Units'!$U$7:$U$399=\"CALDAP\")*('2. Assisted & Restricted Units'!$V$7:$V$399=\"45% SMI\"))","v":0},{"$f":"SUMPRODUCT(('2. Assisted & Restricted Units'!$E$7:$E$399=\"4\")*('2. Assisted & Restricted Units'!$U$7:$U$399=\"CHRP-R\")*('2. Assisted & Restricted Units'!$V$7:$V$399=\"45% SMI\"))","v":0},{"$f":"SUMPRODUCT(('2. Assisted & Restricted Units'!$E$7:$E$399=\"4\")*('2. Assisted & Restricted Units'!$U$7:$U$399=\"DDS\")*('2. Assisted & Restricted Units'!$V$7:$V$399=\"45% SMI\"))","v":0},{"$f":"SUMPRODUCT(('2. Assisted & Restricted Units'!$E$7:$E$399=\"4\")*('2. Assisted & Restricted Units'!$U$7:$U$399=\"DPRLP\")*('2. Assisted & Restricted Units'!$V$7:$V$399=\"45% SMI\"))","v":0},{"$f":"SUMPRODUCT(('2. Assisted & Restricted Units'!$E$7:$E$399=\"4\")*('2. Assisted & Restricted Units'!$U$7:$U$399=\"FHDP\")*('2. Assisted & Restricted Units'!$V$7:$V$399=\"45% SMI\"))","v":0},{"$f":"SUMPRODUCT(('2. Assisted & Restricted Units'!$E$7:$E$399=\"4\")*('2. Assisted & Restricted Units'!$U$7:$U$399=\"FMTW\")*('2. Assisted & Restricted Units'!$V$7:$V$399=\"45% SMI\"))","v":0},null,{"$f":"SUMPRODUCT(('2. Assisted & Restricted Units'!$E$7:$E$399=\"4\")*('2. Assisted & Restricted Units'!$U$7:$U$399=\"HOME\")*('2. Assisted & Restricted Units'!$V$7:$V$399=\"45% SMI\"))","v":0},{"$f":"SUMPRODUCT(('2. Assisted & Restricted Units'!$E$7:$E$399=\"4\")*('2. Assisted & Restricted Units'!$U$7:$U$399=\"Market Rate\")*('2. Assisted & Restricted Units'!$V$7:$V$399=\"45% SMI\"))","v":0},{"$f":"SUMPRODUCT(('2. Assisted & Restricted Units'!$E$7:$E$399=\"4\")*('2. Assisted & Restricted Units'!$U$7:$U$399=\"MHP\")*('2. Assisted & Restricted Units'!$V$7:$V$399=\"45% SMI\"))","v":0},{"$f":"SUMPRODUCT(('2. Assisted & Restricted Units'!$E$7:$E$399=\"4\")*('2. Assisted & Restricted Units'!$U$7:$U$399=\"NonAssisted\")*('2. Assisted & Restricted Units'!$V$7:$V$399=\"45% SMI\"))","v":0},{"$f":"SUMPRODUCT(('2. Assisted & Restricted Units'!$E$7:$E$399=\"4\")*('2. Assisted & Restricted Units'!$U$7:$U$399=\"Other Restr\")*('2. Assisted & Restricted Units'!$V$7:$V$399=\"45% SMI\"))","v":0},{"$f":"SUMPRODUCT(('2. Assisted & Restricted Units'!$E$7:$E$399=\"4\")*('2. Assisted & Restricted Units'!$U$7:$U$399=\"RHCP-B\")*('2. Assisted & Restricted Units'!$V$7:$V$399=\"45% SMI\"))","v":0},{"$f":"SUMPRODUCT(('2. Assisted & Restricted Units'!$E$7:$E$399=\"4\")*('2. Assisted & Restricted Units'!$U$7:$U$399=\"SERA\")*('2. Assisted & Restricted Units'!$V$7:$V$399=\"45% SMI\"))","v":0},{"$f":"SUMPRODUCT(('2. Assisted & Restricted Units'!$E$7:$E$399=\"4\")*('2. Assisted & Restricted Units'!$U$7:$U$399=\"SUHRP\")*('2. Assisted & Restricted Units'!$V$7:$V$399=\"45% SMI\"))","v":0},{"$f":"SUMPRODUCT(('2. Assisted & Restricted Units'!$E$7:$E$399=\"4\")*('2. Assisted & Restricted Units'!$U$7:$U$399=\"TOD\")*('2. Assisted & Restricted Units'!$V$7:$V$399=\"45% SMI\"))","v":0},{"$f":"SUMPRODUCT(('2. Assisted & Restricted Units'!$E$7:$E$399=\"4\")*('2. Assisted & Restricted Units'!$U$7:$U$399=\"707-E\")*('2. Assisted & Restricted Units'!$V$7:$V$399=\"45% SMI\"))","v":0},{"$f":"SUMPRODUCT(('2. Assisted & Restricted Units'!$E$7:$E$399=\"4\")*('2. Assisted & Restricted Units'!$U$7:$U$399=\"707-N\")*('2. Assisted & Restricted Units'!$V$7:$V$399=\"45% SMI\"))","v":0}]
["4 Bedroom 50% SMI",{"$f":"SUMPRODUCT(('2. Assisted & Restricted Units'!$E$7:$E$399=\"4\")*('2. Assisted & Restricted Units'!$U$7:$U$399=\"CALDAP\")*('2. Assisted & Restricted Units'!$V$7:$V$399=\"50% SMI\"))","v":0},{"$f":"SUMPRODUCT(('2. Assisted & Restricted Units'!$E$7:$E$399=\"4\")*('2. Assisted & Restricted Units'!$U$7:$U$399=\"CHRP-R\")*('2. Assisted & Restricted Units'!$V$7:$V$399=\"50% SMI\"))","v":0},{"$f":"SUMPRODUCT(('2. Assisted & Restricted Units'!$E$7:$E$399=\"4\")*('2. Assisted & Restricted Units'!$U$7:$U$399=\"DDS\")*('2. Assisted & Restricted Units'!$V$7:$V$399=\"50% SMI\"))","v":0},{"$f":"SUMPRODUCT(('2. Assisted & Restricted Units'!$E$7:$E$399=\"4\")*('2. Assisted & Restricted Units'!$U$7:$U$399=\"DPRLP\")*('2. Assisted & Restricted Units'!$V$7:$V$399=\"50% SMI\"))","v":0},{"$f":"SUMPRODUCT(('2. Assisted & Restricted Units'!$E$7:$E$399=\"4\")*('2. Assisted & Restricted Units'!$U$7:$U$399=\"FHDP\")*('2. Assisted & Restricted Units'!$V$7:$V$399=\"50% SMI\"))","v":0},{"$f":"SUMPRODUCT(('2. Assisted & Restricted Units'!$E$7:$E$399=\"4\")*('2. Assisted & Restricted Units'!$U$7:$U$399=\"FMTW\")*('2. Assisted & Restricted Units'!$V$7:$V$399=\"50% SMI\"))","v":0},null,{"$f":"SUMPRODUCT(('2. Assisted & Restricted Units'!$E$7:$E$399=\"4\")*('2. Assisted & Restricted Units'!$U$7:$U$399=\"HOME\")*('2. Assisted & Restricted Units'!$V$7:$V$399=\"50% SMI\"))","v":0},{"$f":"SUMPRODUCT(('2. Assisted & Restricted Units'!$E$7:$E$399=\"4\")*('2. Assisted & Restricted Units'!$U$7:$U$399=\"Market Rate\")*('2. Assisted & Restricted Units'!$V$7:$V$399=\"50% SMI\"))","v":0},{"$f":"SUMPRODUCT(('2. Assisted & Restricted Units'!$E$7:$E$399=\"4\")*('2. Assisted & Restricted Units'!$U$7:$U$399=\"MHP\")*('2. Assisted & Restricted Units'!$V$7:$V$399=\"50% SMI\"))","v":0},{"$f":"SUMPRODUCT(('2. Assisted & Restricted Units'!$E$7:$E$399=\"4\")*('2. Assisted & Restricted Units'!$U$7:$U$399=\"NonAssisted\")*('2. Assisted & Restricted Units'!$V$7:$V$399=\"50% SMI\"))","v":0},{"$f":"SUMPRODUCT(('2. Assisted & Restricted Units'!$E$7:$E$399=\"4\")*('2. Assisted & Restricted Units'!$U$7:$U$399=\"Other Restr\")*('2. Assisted & Restricted Units'!$V$7:$V$399=\"50% SMI\"))","v":0},{"$f":"SUMPRODUCT(('2. Assisted & Restricted Units'!$E$7:$E$399=\"4\")*('2. Assisted & Restricted Units'!$U$7:$U$399=\"RHCP-B\")*('2. Assisted & Restricted Units'!$V$7:$V$399=\"50% SMI\"))","v":0},{"$f":"SUMPRODUCT(('2. Assisted & Restricted Units'!$E$7:$E$399=\"4\")*('2. Assisted & Restricted Units'!$U$7:$U$399=\"SERA\")*('2. Assisted & Restricted Units'!$V$7:$V$399=\"50% SMI\"))","v":0},{"$f":"SUMPRODUCT(('2. Assisted & Restricted Units'!$E$7:$E$399=\"4\")*('2. Assisted & Restricted Units'!$U$7:$U$399=\"SUHRP\")*('2. Assisted & Restricted Units'!$V$7:$V$399=\"50% SMI\"))","v":0},{"$f":"SUMPRODUCT(('2. Assisted & Restricted Units'!$E$7:$E$399=\"4\")*('2. Assisted & Restricted Units'!$U$7:$U$399=\"TOD\")*('2. Assisted & Restricted Units'!$V$7:$V$399=\"50% SMI\"))","v":0},{"$f":"SUMPRODUCT(('2. Assisted & Restricted Units'!$E$7:$E$399=\"4\")*('2. Assisted & Restricted Units'!$U$7:$U$399=\"707-E\")*('2. Assisted & Restricted Units'!$V$7:$V$399=\"50% SMI\"))","v":0},{"$f":"SUMPRODUCT(('2. Assisted & Restricted Units'!$E$7:$E$399=\"4\")*('2. Assisted & Restricted Units'!$U$7:$U$399=\"707-N\")*('2. Assisted & Restricted Units'!$V$7:$V$399=\"50% SMI\"))","v":0}]
["4 Bedroom 100% SMI",{"$f":"SUMPRODUCT(('2. Assisted & Restricted Units'!$E$7:$E$399=\"4\")*('2. Assisted & Restricted Units'!$U$7:$U$399=\"CALDAP\")*('2. Assisted & Restricted Units'!$V$7:$V$399=\"100% SMI\"))","v":0},{"$f":"SUMPRODUCT(('2. Assisted & Restricted Units'!$E$7:$E$399=\"4\")*('2. Assisted & Restricted Units'!$U$7:$U$399=\"CHRP-R\")*('2. Assisted & Restricted Units'!$V$7:$V$399=\"100% SMI\"))","v":0},{"$f":"SUMPRODUCT(('2. Assisted & Restricted Units'!$E$7:$E$399=\"4\")*('2. Assisted & Restricted Units'!$U$7:$U$399=\"DDS\")*('2. Assisted & Restricted Units'!$V$7:$V$399=\"100% SMI\"))","v":0},{"$f":"SUMPRODUCT(('2. Assisted & Restricted Units'!$E$7:$E$399=\"4\")*('2. Assisted & Restricted Units'!$U$7:$U$399=\"DPRLP\")*('2. Assisted & Restricted Units'!$V$7:$V$399=\"100% SMI\"))","v":0},{"$f":"SUMPRODUCT(('2. Assisted & Restricted Units'!$E$7:$E$399=\"4\")*('2. Assisted & Restricted Units'!$U$7:$U$399=\"FHDP\")*('2. Assisted & Restricted Units'!$V$7:$V$399=\"100% SMI\"))","v":0},{"$f":"SUMPRODUCT(('2. Assisted & Restricted Units'!$E$7:$E$399=\"4\")*('2. Assisted & Restricted Units'!$U$7:$U$399=\"FMTW\")*('2. Assisted & Restricted Units'!$V$7:$V$399=\"100% SMI\"))","v":0},null,{"$f":"SUMPRODUCT(('2. Assisted & Restricted Units'!$E$7:$E$399=\"4\")*('2. Assisted & Restricted Units'!$U$7:$U$399=\"HOME\")*('2. Assisted & Restricted Units'!$V$7:$V$399=\"100% SMI\"))","v":0},{"$f":"SUMPRODUCT(('2. Assisted & Restricted Units'!$E$7:$E$399=\"4\")*('2. Assisted & Restricted Units'!$U$7:$U$399=\"Market Rate\")*('2. Assisted & Restricted Units'!$V$7:$V$399=\"100% SMI\"))","v":0},{"$f":"SUMPRODUCT(('2. Assisted & Restricted Units'!$E$7:$E$399=\"4\")*('2. Assisted & Restricted Units'!$U$7:$U$399=\"MHP\")*('2. Assisted & Restricted Units'!$V$7:$V$399=\"100% SMI\"))","v":0},{"$f":"SUMPRODUCT(('2. Assisted & Restricted Units'!$E$7:$E$399=\"4\")*('2. Assisted & Restricted Units'!$U$7:$U$399=\"NonAssisted\")*('2. Assisted & Restricted Units'!$V$7:$V$399=\"100% SMI\"))","v":0},{"$f":"SUMPRODUCT(('2. Assisted & Restricted Units'!$E$7:$E$399=\"4\")*('2. Assisted & Restricted Units'!$U$7:$U$399=\"Other Restr\")*('2. Assisted & Restricted Units'!$V$7:$V$399=\"100% SMI\"))","v":0},{"$f":"SUMPRODUCT(('2. Assisted & Restricted Units'!$E$7:$E$399=\"4\")*('2. Assisted & Restricted Units'!$U$7:$U$399=\"RHCP-B\")*('2. Assisted & Restricted Units'!$V$7:$V$399=\"100% SMI\"))","v":0},{"$f":"SUMPRODUCT(('2. Assisted & Restricted Units'!$E$7:$E$399=\"4\")*('2. Assisted & Restricted Units'!$U$7:$U$399=\"SERA\")*('2. Assisted & Restricted Units'!$V$7:$V$399=\"100% SMI\"))","v":0},{"$f":"SUMPRODUCT(('2. Assisted & Restricted Units'!$E$7:$E$399=\"4\")*('2. Assisted & Restricted Units'!$U$7:$U$399=\"SUHRP\")*('2. Assisted & Restricted Units'!$V$7:$V$399=\"100% SMI\"))","v":0},{"$f":"SUMPRODUCT(('2. Assisted & Restricted Units'!$E$7:$E$399=\"4\")*('2. Assisted & Restricted Units'!$U$7:$U$399=\"TOD\")*('2. Assisted & Restricted Units'!$V$7:$V$399=\"100% SMI\"))","v":0},{"$f":"SUMPRODUCT(('2. Assisted & Restricted Units'!$E$7:$E$399=\"4\")*('2. Assisted & Restricted Units'!$U$7:$U$399=\"707-E\")*('2. Assisted & Restricted Units'!$V$7:$V$399=\"100% SMI\"))","v":0},{"$f":"SUMPRODUCT(('2. Assisted & Restricted Units'!$E$7:$E$399=\"4\")*('2. Assisted & Restricted Units'!$U$7:$U$399=\"707-N\")*('2. Assisted & Restricted Units'!$V$7:$V$399=\"100% SMI\"))","v":0}]
["4 Bedroom VLI HOME",{"$f":"SUMPRODUCT(('2. Assisted & Restricted Units'!$E$7:$E$399=\"4\")*('2. Assisted & Restricted Units'!$U$7:$U$399=\"CALDAP\")*('2. Assisted & Restricted Units'!$V$7:$V$399=\"VLI HOME\"))","v":0},{"$f":"SUMPRODUCT(('2. Assisted & Restricted Units'!$E$7:$E$399=\"4\")*('2. Assisted & Restricted Units'!$U$7:$U$399=\"CHRP-R\")*('2. Assisted & Restricted Units'!$V$7:$V$399=\"VLI HOME\"))","v":0},{"$f":"SUMPRODUCT(('2. Assisted & Restricted Units'!$E$7:$E$399=\"4\")*('2. Assisted & Restricted Units'!$U$7:$U$399=\"DDS\")*('2. Assisted & Restricted Units'!$V$7:$V$399=\"VLI HOME\"))","v":0},{"$f":"SUMPRODUCT(('2. Assisted & Restricted Units'!$E$7:$E$399=\"4\")*('2. Assisted & Restricted Units'!$U$7:$U$399=\"DPRLP\")*('2. Assisted & Restricted Units'!$V$7:$V$399=\"VLI HOME\"))","v":0},{"$f":"SUMPRODUCT(('2. Assisted & Restricted Units'!$E$7:$E$399=\"4\")*('2. Assisted & Restricted Units'!$U$7:$U$399=\"FHDP\")*('2. Assisted & Restricted Units'!$V$7:$V$399=\"VLI HOME\"))","v":0},{"$f":"SUMPRODUCT(('2. Assisted & Restricted Units'!$E$7:$E$399=\"4\")*('2. Assisted & Restricted Units'!$U$7:$U$399=\"FMTW\")*('2. Assisted & Restricted Units'!$V$7:$V$399=\"VLI HOME\"))","v":0},null,{"$f":"SUMPRODUCT(('2. Assisted & Restricted Units'!$E$7:$E$399=\"4\")*('2. Assisted & Restricted Units'!$U$7:$U$399=\"HOME\")*('2. Assisted & Restricted Units'!$V$7:$V$399=\"VLI HOME\"))","v":0},{"$f":"SUMPRODUCT(('2. Assisted & Restricted Units'!$E$7:$E$399=\"4\")*('2. Assisted & Restricted Units'!$U$7:$U$399=\"Market Rate\")*('2. Assisted & Restricted Units'!$V$7:$V$399=\"VLI HOME\"))","v":0},{"$f":"SUMPRODUCT(('2. Assisted & Restricted Units'!$E$7:$E$399=\"4\")*('2. Assisted & Restricted Units'!$U$7:$U$399=\"MHP\")*('2. Assisted & Restricted Units'!$V$7:$V$399=\"VLI HOME\"))","v":0},{"$f":"SUMPRODUCT(('2. Assisted & Restricted Units'!$E$7:$E$399=\"4\")*('2. Assisted & Restricted Units'!$U$7:$U$399=\"NonAssisted\")*('2. Assisted & Restricted Units'!$V$7:$V$399=\"VLI HOME\"))","v":0},{"$f":"SUMPRODUCT(('2. Assisted & Restricted Units'!$E$7:$E$399=\"4\")*('2. Assisted & Restricted Units'!$U$7:$U$399=\"Other Restr\")*('2. Assisted & Restricted Units'!$V$7:$V$399=\"VLI HOME\"))","v":0},{"$f":"SUMPRODUCT(('2. Assisted & Restricted Units'!$E$7:$E$399=\"4\")*('2. Assisted & Restricted Units'!$U$7:$U$399=\"RHCP-B\")*('2. Assisted & Restricted Units'!$V$7:$V$399=\"VLI HOME\"))","v":0},{"$f":"SUMPRODUCT(('2. Assisted & Restricted Units'!$E$7:$E$399=\"4\")*('2. Assisted & Restricted Units'!$U$7:$U$399=\"SERA\")*('2. Assisted & Restricted Units'!$V$7:$V$399=\"VLI HOME\"))","v":0},{"$f":"SUMPRODUCT(('2. Assisted & Restricted Units'!$E$7:$E$399=\"4\")*('2. Assisted & Restricted Units'!$U$7:$U$399=\"SUHRP\")*('2. Assisted & Restricted Units'!$V$7:$V$399=\"VLI HOME\"))","v":0},{"$f":"SUMPRODUCT(('2. Assisted & Restricted Units'!$E$7:$E$399=\"4\")*('2. Assisted & Restricted Units'!$U$7:$U$399=\"TOD\")*('2. Assisted & Restricted Units'!$V$7:$V$399=\"VLI HOME\"))","v":0},{"$f":"SUMPRODUCT(('2. Assisted & Restricted Units'!$E$7:$E$399=\"4\")*('2. Assisted & Restricted Units'!$U$7:$U$399=\"707-E\")*('2. Assisted & Restricted Units'!$V$7:$V$399=\"VLI HOME\"))","v":0},{"$f":"SUMPRODUCT(('2. Assisted & Restricted Units'!$E$7:$E$399=\"4\")*('2. Assisted & Restricted Units'!$U$7:$U$399=\"707-N\")*('2. Assisted & Restricted Units'!$V$7:$V$399=\"VLI HOME\"))","v":0}]
["4 Bedroom LI HOME",{"$f":"SUMPRODUCT(('2. Assisted & Restricted Units'!$E$7:$E$399=\"4\")*('2. Assisted & Restricted Units'!$U$7:$U$399=\"CALDAP\")*('2. Assisted & Restricted Units'!$V$7:$V$399=\"LI HOME\"))","v":0},{"$f":"SUMPRODUCT(('2. Assisted & Restricted Units'!$E$7:$E$399=\"4\")*('2. Assisted & Restricted Units'!$U$7:$U$399=\"CHRP-R\")*('2. Assisted & Restricted Units'!$V$7:$V$399=\"LI HOME\"))","v":0},{"$f":"SUMPRODUCT(('2. Assisted & Restricted Units'!$E$7:$E$399=\"4\")*('2. Assisted & Restricted Units'!$U$7:$U$399=\"DDS\")*('2. Assisted & Restricted Units'!$V$7:$V$399=\"LI HOME\"))","v":0},{"$f":"SUMPRODUCT(('2. Assisted & Restricted Units'!$E$7:$E$399=\"4\")*('2. Assisted & Restricted Units'!$U$7:$U$399=\"DPRLP\")*('2. Assisted & Restricted Units'!$V$7:$V$399=\"LI HOME\"))","v":0},{"$f":"SUMPRODUCT(('2. Assisted & Restricted Units'!$E$7:$E$399=\"4\")*('2. Assisted & Restricted Units'!$U$7:$U$399=\"FHDP\")*('2. Assisted & Restricted Units'!$V$7:$V$399=\"LI HOME\"))","v":0},{"$f":"SUMPRODUCT(('2. Assisted & Restricted Units'!$E$7:$E$399=\"4\")*('2. Assisted & Restricted Units'!$U$7:$U$399=\"FMTW\")*('2. Assisted & Restricted Units'!$V$7:$V$399=\"LI HOME\"))","v":0},null,{"$f":"SUMPRODUCT(('2. Assisted & Restricted Units'!$E$7:$E$399=\"4\")*('2. Assisted & Restricted Units'!$U$7:$U$399=\"HOME\")*('2. Assisted & Restricted Units'!$V$7:$V$399=\"LI HOME\"))","v":0},{"$f":"SUMPRODUCT(('2. Assisted & Restricted Units'!$E$7:$E$399=\"4\")*('2. Assisted & Restricted Units'!$U$7:$U$399=\"Market Rate\")*('2. Assisted & Restricted Units'!$V$7:$V$399=\"LI HOME\"))","v":0},{"$f":"SUMPRODUCT(('2. Assisted & Restricted Units'!$E$7:$E$399=\"4\")*('2. Assisted & Restricted Units'!$U$7:$U$399=\"MHP\")*('2. Assisted & Restricted Units'!$V$7:$V$399=\"LI HOME\"))","v":0},{"$f":"SUMPRODUCT(('2. Assisted & Restricted Units'!$E$7:$E$399=\"4\")*('2. Assisted & Restricted Units'!$U$7:$U$399=\"NonAssisted\")*('2. Assisted & Restricted Units'!$V$7:$V$399=\"LI HOME\"))","v":0},{"$f":"SUMPRODUCT(('2. Assisted & Restricted Units'!$E$7:$E$399=\"4\")*('2. Assisted & Restricted Units'!$U$7:$U$399=\"Other Restr\")*('2. Assisted & Restricted Units'!$V$7:$V$399=\"LI HOME\"))","v":0},{"$f":"SUMPRODUCT(('2. Assisted & Restricted Units'!$E$7:$E$399=\"4\")*('2. Assisted & Restricted Units'!$U$7:$U$399=\"RHCP-B\")*('2. Assisted & Restricted Units'!$V$7:$V$399=\"LI HOME\"))","v":0},{"$f":"SUMPRODUCT(('2. Assisted & Restricted Units'!$E$7:$E$399=\"4\")*('2. Assisted & Restricted Units'!$U$7:$U$399=\"SERA\")*('2. Assisted & Restricted Units'!$V$7:$V$399=\"LI HOME\"))","v":0},{"$f":"SUMPRODUCT(('2. Assisted & Restricted Units'!$E$7:$E$399=\"4\")*('2. Assisted & Restricted Units'!$U$7:$U$399=\"SUHRP\")*('2. Assisted & Restricted Units'!$V$7:$V$399=\"LI HOME\"))","v":0},{"$f":"SUMPRODUCT(('2. Assisted & Restricted Units'!$E$7:$E$399=\"4\")*('2. Assisted & Restricted Units'!$U$7:$U$399=\"TOD\")*('2. Assisted & Restricted Units'!$V$7:$V$399=\"LI HOME\"))","v":0},{"$f":"SUMPRODUCT(('2. Assisted & Restricted Units'!$E$7:$E$399=\"4\")*('2. Assisted & Restricted Units'!$U$7:$U$399=\"707-E\")*('2. Assisted & Restricted Units'!$V$7:$V$399=\"LI HOME\"))","v":0},{"$f":"SUMPRODUCT(('2. Assisted & Restricted Units'!$E$7:$E$399=\"4\")*('2. Assisted & Restricted Units'!$U$7:$U$399=\"707-N\")*('2. Assisted & Restricted Units'!$V$7:$V$399=\"LI HOME\"))","v":0}]
["4 Bedroom VLI State",{"$f":"SUMPRODUCT(('2. Assisted & Restricted Units'!$E$7:$E$399=\"4\")*('2. Assisted & Restricted Units'!$U$7:$U$399=\"CALDAP\")*('2. Assisted & Restricted Units'!$V$7:$V$399=\"VLI State\"))","v":0},{"$f":"SUMPRODUCT(('2. Assisted & Restricted Units'!$E$7:$E$399=\"4\")*('2. Assisted & Restricted Units'!$U$7:$U$399=\"CHRP-R\")*('2. Assisted & Restricted Units'!$V$7:$V$399=\"VLI State\"))","v":0},{"$f":"SUMPRODUCT(('2. Assisted & Restricted Units'!$E$7:$E$399=\"4\")*('2. Assisted & Restricted Units'!$U$7:$U$399=\"DDS\")*('2. Assisted & Restricted Units'!$V$7:$V$399=\"VLI State\"))","v":0},{"$f":"SUMPRODUCT(('2. Assisted & Restricted Units'!$E$7:$E$399=\"4\")*('2. Assisted & Restricted Units'!$U$7:$U$399=\"DPRLP\")*('2. Assisted & Restricted Units'!$V$7:$V$399=\"VLI State\"))","v":0},{"$f":"SUMPRODUCT(('2. Assisted & Restricted Units'!$E$7:$E$399=\"4\")*('2. Assisted & Restricted Units'!$U$7:$U$399=\"FHDP\")*('2. Assisted & Restricted Units'!$V$7:$V$399=\"VLI State\"))","v":0},{"$f":"SUMPRODUCT(('2. Assisted & Restricted Units'!$E$7:$E$399=\"4\")*('2. Assisted & Restricted Units'!$U$7:$U$399=\"FMTW\")*('2. Assisted & Restricted Units'!$V$7:$V$399=\"VLI State\"))","v":0},null,{"$f":"SUMPRODUCT(('2. Assisted & Restricted Units'!$E$7:$E$399=\"4\")*('2. Assisted & Restricted Units'!$U$7:$U$399=\"HOME\")*('2. Assisted & Restricted Units'!$V$7:$V$399=\"VLI State\"))","v":0},{"$f":"SUMPRODUCT(('2. Assisted & Restricted Units'!$E$7:$E$399=\"4\")*('2. Assisted & Restricted Units'!$U$7:$U$399=\"Market Rate\")*('2. Assisted & Restricted Units'!$V$7:$V$399=\"VLI State\"))","v":0},{"$f":"SUMPRODUCT(('2. Assisted & Restricted Units'!$E$7:$E$399=\"4\")*('2. Assisted & Restricted Units'!$U$7:$U$399=\"MHP\")*('2. Assisted & Restricted Units'!$V$7:$V$399=\"VLI State\"))","v":0},{"$f":"SUMPRODUCT(('2. Assisted & Restricted Units'!$E$7:$E$399=\"4\")*('2. Assisted & Restricted Units'!$U$7:$U$399=\"NonAssisted\")*('2. Assisted & Restricted Units'!$V$7:$V$399=\"VLI State\"))","v":0},{"$f":"SUMPRODUCT(('2. Assisted & Restricted Units'!$E$7:$E$399=\"4\")*('2. Assisted & Restricted Units'!$U$7:$U$399=\"Other Restr\")*('2. Assisted & Restricted Units'!$V$7:$V$399=\"VLI State\"))","v":0},{"$f":"SUMPRODUCT(('2. Assisted & Restricted Units'!$E$7:$E$399=\"4\")*('2. Assisted & Restricted Units'!$U$7:$U$399=\"RHCP-B\")*('2. Assisted & Restricted Units'!$V$7:$V$399=\"VLI State\"))","v":0},{"$f":"SUMPRODUCT(('2. Assisted & Restricted Units'!$E$7:$E$399=\"4\")*('2. Assisted & Restricted Units'!$U$7:$U$399=\"SERA\")*('2. Assisted & Restricted Units'!$V$7:$V$399=\"VLI State\"))","v":0},{"$f":"SUMPRODUCT(('2. Assisted & Restricted Units'!$E$7:$E$399=\"4\")*('2. Assisted & Restricted Units'!$U$7:$U$399=\"SUHRP\")*('2. Assisted & Restricted Units'!$V$7:$V$399=\"VLI State\"))","v":0},{"$f":"SUMPRODUCT(('2. Assisted & Restricted Units'!$E$7:$E$399=\"4\")*('2. Assisted & Restricted Units'!$U$7:$U$399=\"TOD\")*('2. Assisted & Restricted Units'!$V$7:$V$399=\"VLI State\"))","v":0},{"$f":"SUMPRODUCT(('2. Assisted & Restricted Units'!$E$7:$E$399=\"4\")*('2. Assisted & Restricted Units'!$U$7:$U$399=\"707-E\")*('2. Assisted & Restricted Units'!$V$7:$V$399=\"VLI State\"))","v":0},{"$f":"SUMPRODUCT(('2. Assisted & Restricted Units'!$E$7:$E$399=\"4\")*('2. Assisted & Restricted Units'!$U$7:$U$399=\"707-N\")*('2. Assisted & Restricted Units'!$V$7:$V$399=\"VLI State\"))","v":0}]
["4 Bedroom LI State",{"$f":"SUMPRODUCT(('2. Assisted & Restricted Units'!$E$7:$E$399=\"4\")*('2. Assisted & Restricted Units'!$U$7:$U$399=\"CALDAP\")*('2. Assisted & Restricted Units'!$V$7:$V$399=\"LI State\"))","v":0},{"$f":"SUMPRODUCT(('2. Assisted & Restricted Units'!$E$7:$E$399=\"4\")*('2. Assisted & Restricted Units'!$U$7:$U$399=\"CHRP-R\")*('2. Assisted & Restricted Units'!$V$7:$V$399=\"LI State\"))","v":0},{"$f":"SUMPRODUCT(('2. Assisted & Restricted Units'!$E$7:$E$399=\"4\")*('2. Assisted & Restricted Units'!$U$7:$U$399=\"DDS\")*('2. Assisted & Restricted Units'!$V$7:$V$399=\"LI State\"))","v":0},{"$f":"SUMPRODUCT(('2. Assisted & Restricted Units'!$E$7:$E$399=\"4\")*('2. Assisted & Restricted Units'!$U$7:$U$399=\"DPRLP\")*('2. Assisted & Restricted Units'!$V$7:$V$399=\"LI State\"))","v":0},{"$f":"SUMPRODUCT(('2. Assisted & Restricted Units'!$E$7:$E$399=\"4\")*('2. Assisted & Restricted Units'!$U$7:$U$399=\"FHDP\")*('2. Assisted & Restricted Units'!$V$7:$V$399=\"LI State\"))","v":0},{"$f":"SUMPRODUCT(('2. Assisted & Restricted Units'!$E$7:$E$399=\"4\")*('2. Assisted & Restricted Units'!$U$7:$U$399=\"FMTW\")*('2. Assisted & Restricted Units'!$V$7:$V$399=\"LI State\"))","v":0},null,{"$f":"SUMPRODUCT(('2. Assisted & Restricted Units'!$E$7:$E$399=\"4\")*('2. Assisted & Restricted Units'!$U$7:$U$399=\"HOME\")*('2. Assisted & Restricted Units'!$V$7:$V$399=\"LI State\"))","v":0},{"$f":"SUMPRODUCT(('2. Assisted & Restricted Units'!$E$7:$E$399=\"4\")*('2. Assisted & Restricted Units'!$U$7:$U$399=\"Market Rate\")*('2. Assisted & Restricted Units'!$V$7:$V$399=\"LI State\"))","v":0},{"$f":"SUMPRODUCT(('2. Assisted & Restricted Units'!$E$7:$E$399=\"4\")*('2. Assisted & Restricted Units'!$U$7:$U$399=\"MHP\")*('2. Assisted & Restricted Units'!$V$7:$V$399=\"LI State\"))","v":0},{"$f":"SUMPRODUCT(('2. Assisted & Restricted Units'!$E$7:$E$399=\"4\")*('2. Assisted & Restricted Units'!$U$7:$U$399=\"NonAssisted\")*('2. Assisted & Restricted Units'!$V$7:$V$399=\"LI State\"))","v":0},{"$f":"SUMPRODUCT(('2. Assisted & Restricted Units'!$E$7:$E$399=\"4\")*('2. Assisted & Restricted Units'!$U$7:$U$399=\"Other Restr\")*('2. Assisted & Restricted Units'!$V$7:$V$399=\"LI State\"))","v":0},{"$f":"SUMPRODUCT(('2. Assisted & Restricted Units'!$E$7:$E$399=\"4\")*('2. Assisted & Restricted Units'!$U$7:$U$399=\"RHCP-B\")*('2. Assisted & Restricted Units'!$V$7:$V$399=\"LI State\"))","v":0},{"$f":"SUMPRODUCT(('2. Assisted & Restricted Units'!$E$7:$E$399=\"4\")*('2. Assisted & Restricted Units'!$U$7:$U$399=\"SERA\")*('2. Assisted & Restricted Units'!$V$7:$V$399=\"LI State\"))","v":0},{"$f":"SUMPRODUCT(('2. Assisted & Restricted Units'!$E$7:$E$399=\"4\")*('2. Assisted & Restricted Units'!$U$7:$U$399=\"SUHRP\")*('2. Assisted & Restricted Units'!$V$7:$V$399=\"LI State\"))","v":0},{"$f":"SUMPRODUCT(('2. Assisted & Restricted Units'!$E$7:$E$399=\"4\")*('2. Assisted & Restricted Units'!$U$7:$U$399=\"TOD\")*('2. Assisted & Restricted Units'!$V$7:$V$399=\"LI State\"))","v":0},{"$f":"SUMPRODUCT(('2. Assisted & Restricted Units'!$E$7:$E$399=\"4\")*('2. Assisted & Restricted Units'!$U$7:$U$399=\"707-E\")*('2. Assisted & Restricted Units'!$V$7:$V$399=\"LI State\"))","v":0},{"$f":"SUMPRODUCT(('2. Assisted & Restricted Units'!$E$7:$E$399=\"4\")*('2. Assisted & Restricted Units'!$U$7:$U$399=\"707-N\")*('2. Assisted & Restricted Units'!$V$7:$V$399=\"LI State\"))","v":0}]
["4 Bedroom CalHFA",{"$f":"SUMPRODUCT(('2. Assisted & Restricted Units'!$E$7:$E$399=\"4\")*('2. Assisted & Restricted Units'!$U$7:$U$399=\"CALDAP\")*('2. Assisted & Restricted Units'!$V$7:$V$399=\"CalHFA\"))","v":0},{"$f":"SUMPRODUCT(('2. Assisted & Restricted Units'!$E$7:$E$399=\"4\")*('2. Assisted & Restricted Units'!$U$7:$U$399=\"CHRP-R\")*('2. Assisted & Restricted Units'!$V$7:$V$399=\"CalHFA\"))","v":0},{"$f":"SUMPRODUCT(('2. Assisted & Restricted Units'!$E$7:$E$399=\"4\")*('2. Assisted & Restricted Units'!$U$7:$U$399=\"DDS\")*('2. Assisted & Restricted Units'!$V$7:$V$399=\"CalHFA\"))","v":0},{"$f":"SUMPRODUCT(('2. Assisted & Restricted Units'!$E$7:$E$399=\"4\")*('2. Assisted & Restricted Units'!$U$7:$U$399=\"DPRLP\")*('2. Assisted & Restricted Units'!$V$7:$V$399=\"CalHFA\"))","v":0},{"$f":"SUMPRODUCT(('2. Assisted & Restricted Units'!$E$7:$E$399=\"4\")*('2. Assisted & Restricted Units'!$U$7:$U$399=\"FHDP\")*('2. Assisted & Restricted Units'!$V$7:$V$399=\"CalHFA\"))","v":0},{"$f":"SUMPRODUCT(('2. Assisted & Restricted Units'!$E$7:$E$399=\"4\")*('2. Assisted & Restricted Units'!$U$7:$U$399=\"FMTW\")*('2. Assisted & Restricted Units'!$V$7:$V$399=\"CalHFA\"))","v":0},null,{"$f":"SUMPRODUCT(('2. Assisted & Restricted Units'!$E$7:$E$399=\"4\")*('2. Assisted & Restricted Units'!$U$7:$U$399=\"HOME\")*('2. Assisted & Restricted Units'!$V$7:$V$399=\"CalHFA\"))","v":0},{"$f":"SUMPRODUCT(('2. Assisted & Restricted Units'!$E$7:$E$399=\"4\")*('2. Assisted & Restricted Units'!$U$7:$U$399=\"Market Rate\")*('2. Assisted & Restricted Units'!$V$7:$V$399=\"CalHFA\"))","v":0},{"$f":"SUMPRODUCT(('2. Assisted & Restricted Units'!$E$7:$E$399=\"4\")*('2. Assisted & Restricted Units'!$U$7:$U$399=\"MHP\")*('2. Assisted & Restricted Units'!$V$7:$V$399=\"CalHFA\"))","v":0},{"$f":"SUMPRODUCT(('2. Assisted & Restricted Units'!$E$7:$E$399=\"4\")*('2. Assisted & Restricted Units'!$U$7:$U$399=\"NonAssisted\")*('2. Assisted & Restricted Units'!$V$7:$V$399=\"CalHFA\"))","v":0},{"$f":"SUMPRODUCT(('2. Assisted & Restricted Units'!$E$7:$E$399=\"4\")*('2. Assisted & Restricted Units'!$U$7:$U$399=\"Other Restr\")*('2. Assisted & Restricted Units'!$V$7:$V$399=\"CalHFA\"))","v":0},{"$f":"SUMPRODUCT(('2. Assisted & Restricted Units'!$E$7:$E$399=\"4\")*('2. Assisted & Restricted Units'!$U$7:$U$399=\"RHCP-B\")*('2. Assisted & Restricted Units'!$V$7:$V$399=\"CalHFA\"))","v":0},{"$f":"SUMPRODUCT(('2. Assisted & Restricted Units'!$E$7:$E$399=\"4\")*('2. Assisted & Restricted Units'!$U$7:$U$399=\"SERA\")*('2. Assisted & Restricted Units'!$V$7:$V$399=\"CalHFA\"))","v":0},{"$f":"SUMPRODUCT(('2. Assisted & Restricted Units'!$E$7:$E$399=\"4\")*('2. Assisted & Restricted Units'!$U$7:$U$399=\"SUHRP\")*('2. Assisted & Restricted Units'!$V$7:$V$399=\"CalHFA\"))","v":0},{"$f":"SUMPRODUCT(('2. Assisted & Restricted Units'!$E$7:$E$399=\"4\")*('2. Assisted & Restricted Units'!$U$7:$U$399=\"TOD\")*('2. Assisted & Restricted Units'!$V$7:$V$399=\"CalHFA\"))","v":0},{"$f":"SUMPRODUCT(('2. Assisted & Restricted Units'!$E$7:$E$399=\"4\")*('2. Assisted & Restricted Units'!$U$7:$U$399=\"707-E\")*('2. Assisted & Restricted Units'!$V$7:$V$399=\"CalHFA\"))","v":0},{"$f":"SUMPRODUCT(('2. Assisted & Restricted Units'!$E$7:$E$399=\"4\")*('2. Assisted & Restricted Units'!$U$7:$U$399=\"707-N\")*('2. Assisted & Restricted Units'!$V$7:$V$399=\"CalHFA\"))","v":0}]
["4 Bedroom Sec 8",{"$f":"SUMPRODUCT(('2. Assisted & Restricted Units'!$E$7:$E$399=\"4\")*('2. Assisted & Restricted Units'!$U$7:$U$399=\"CALDAP\")*('2. Assisted & Restricted Units'!$V$7:$V$399=\"Sec 8\"))","v":0},{"$f":"SUMPRODUCT(('2. Assisted & Restricted Units'!$E$7:$E$399=\"4\")*('2. Assisted & Restricted Units'!$U$7:$U$399=\"CHRP-R\")*('2. Assisted & Restricted Units'!$V$7:$V$399=\"Sec 8\"))","v":0},{"$f":"SUMPRODUCT(('2. Assisted & Restricted Units'!$E$7:$E$399=\"4\")*('2. Assisted & Restricted Units'!$U$7:$U$399=\"DDS\")*('2. Assisted & Restricted Units'!$V$7:$V$399=\"Sec 8\"))","v":0},{"$f":"SUMPRODUCT(('2. Assisted & Restricted Units'!$E$7:$E$399=\"4\")*('2. Assisted & Restricted Units'!$U$7:$U$399=\"DPRLP\")*('2. Assisted & Restricted Units'!$V$7:$V$399=\"Sec 8\"))","v":0},{"$f":"SUMPRODUCT(('2. Assisted & Restricted Units'!$E$7:$E$399=\"4\")*('2. Assisted & Restricted Units'!$U$7:$U$399=\"FHDP\")*('2. Assisted & Restricted Units'!$V$7:$V$399=\"Sec 8\"))","v":0},{"$f":"SUMPRODUCT(('2. Assisted & Restricted Units'!$E$7:$E$399=\"4\")*('2. Assisted & Restricted Units'!$U$7:$U$399=\"FMTW\")*('2. Assisted & Restricted Units'!$V$7:$V$399=\"Sec 8\"))","v":0},null,{"$f":"SUMPRODUCT(('2. Assisted & Restricted Units'!$E$7:$E$399=\"4\")*('2. Assisted & Restricted Units'!$U$7:$U$399=\"HOME\")*('2. Assisted & Restricted Units'!$V$7:$V$399=\"Sec 8\"))","v":0},{"$f":"SUMPRODUCT(('2. Assisted & Restricted Units'!$E$7:$E$399=\"4\")*('2. Assisted & Restricted Units'!$U$7:$U$399=\"Market Rate\")*('2. Assisted & Restricted Units'!$V$7:$V$399=\"Sec 8\"))","v":0},{"$f":"SUMPRODUCT(('2. Assisted & Restricted Units'!$E$7:$E$399=\"4\")*('2. Assisted & Restricted Units'!$U$7:$U$399=\"MHP\")*('2. Assisted & Restricted Units'!$V$7:$V$399=\"Sec 8\"))","v":0},{"$f":"SUMPRODUCT(('2. Assisted & Restricted Units'!$E$7:$E$399=\"4\")*('2. Assisted & Restricted Units'!$U$7:$U$399=\"NonAssisted\")*('2. Assisted & Restricted Units'!$V$7:$V$399=\"Sec 8\"))","v":0},{"$f":"SUMPRODUCT(('2. Assisted & Restricted Units'!$E$7:$E$399=\"4\")*('2. Assisted & Restricted Units'!$U$7:$U$399=\"Other Restr\")*('2. Assisted & Restricted Units'!$V$7:$V$399=\"Sec 8\"))","v":0},{"$f":"SUMPRODUCT(('2. Assisted & Restricted Units'!$E$7:$E$399=\"4\")*('2. Assisted & Restricted Units'!$U$7:$U$399=\"RHCP-B\")*('2. Assisted & Restricted Units'!$V$7:$V$399=\"Sec 8\"))","v":0},{"$f":"SUMPRODUCT(('2. Assisted & Restricted Units'!$E$7:$E$399=\"4\")*('2. Assisted & Restricted Units'!$U$7:$U$399=\"SERA\")*('2. Assisted & Restricted Units'!$V$7:$V$399=\"Sec 8\"))","v":0},{"$f":"SUMPRODUCT(('2. Assisted & Restricted Units'!$E$7:$E$399=\"4\")*('2. Assisted & Restricted Units'!$U$7:$U$399=\"SUHRP\")*('2. Assisted & Restricted Units'!$V$7:$V$399=\"Sec 8\"))","v":0},{"$f":"SUMPRODUCT(('2. Assisted & Restricted Units'!$E$7:$E$399=\"4\")*('2. Assisted & Restricted Units'!$U$7:$U$399=\"TOD\")*('2. Assisted & Restricted Units'!$V$7:$V$399=\"Sec 8\"))","v":0},{"$f":"SUMPRODUCT(('2. Assisted & Restricted Units'!$E$7:$E$399=\"4\")*('2. Assisted & Restricted Units'!$U$7:$U$399=\"707-E\")*('2. Assisted & Restricted Units'!$V$7:$V$399=\"Sec 8\"))","v":0},{"$f":"SUMPRODUCT(('2. Assisted & Restricted Units'!$E$7:$E$399=\"4\")*('2. Assisted & Restricted Units'!$U$7:$U$399=\"707-N\")*('2. Assisted & Restricted Units'!$V$7:$V$399=\"Sec 8\"))","v":0}]
["Total 4",{"$f":"SUM(B129:B153)","v":0},{"$f":"SUM(C129:C153)","v":0},{"$f":"SUM(D129:D153)","v":0},{"$f":"SUM(E129:E153)","v":0},{"$f":"SUM(F129:F153)","v":0},0,{"$f":"SUMPRODUCT(('2. Assisted & Restricted Units'!$E$7:$E$399=\"4\")*('2. Assisted & Restricted Units'!$U$7:$U$399=\"FWHG\"))","v":0},0,0,0,0,0,0,0,0,0,0,0,{"$f":"SUMPRODUCT(('2. Assisted & Restricted Units'!$E$7:$E$399=\"4\")*('2. Assisted & Restricted Units'!$L$7:$L$399=\"X\"))","v":0},{"$f":"SUMPRODUCT(('2. Assisted & Restricted Units'!$E$7:$E$399=\"4\")*('2. Assisted & Restricted Units'!#REF!=\"X\"))","v":{"$error":"#REF!"}},{"$f":"SUMPRODUCT(('2. Assisted & Restricted Units'!$E$7:$E$399=\"4\")*('2. Assisted & Restricted Units'!#REF!=\"X\"))","v":{"$error":"#REF!"}},{"$f":"SUMPRODUCT(('2. Assisted & Restricted Units'!$E$7:$E$399=\"4\")*('2. Assisted & Restricted Units'!#REF!=\"X\"))","v":{"$error":"#REF!"}},{"$f":"SUMPRODUCT(('2. Assisted & Restricted Units'!$E$7:$E$399=\"4\")*('2. Assisted & Restricted Units'!#REF!=\"X\"))","v":{"$error":"#REF!"}},{"$f":"SUMPRODUCT(('2. Assisted & Restricted Units'!$E$7:$E$399=\"4\")*('2. Assisted & Restricted Units'!#REF!=\"X\"))","v":{"$error":"#REF!"}},{"$f":"SUMPRODUCT(('2. Assisted & Restricted Units'!$E$7:$E$399=\"4\")*('2. Assisted & Restricted Units'!#REF!=\"X\"))","v":{"$error":"#REF!"}},{"$f":"SUMPRODUCT(('2. Assisted & Restricted Units'!$E$7:$E$399=\"4\")*('2. Assisted & Restricted Units'!$M$7:$M$399=\"X\"))","v":0},{"$f":"SUMPRODUCT(('2. Assisted & Restricted Units'!$E$7:$E$399=\"4\")*('2. Assisted & Restricted Units'!$O$7:$O$399=\"X\"))","v":0}]
["Total Units",{"$f":"B27+B53+B78+B103+B128+B154","v":0},{"$f":"C27+C53+C78+C103+C128+C154","v":0},0,0,0,0,0,0,0,0,0,0,0,0,0,0,0,0,{"$f":"T27+T53+T78+T103+T128+T154","v":0},{"$f":"U27+U53+U78+U103+U128+U154","v":{"$error":"#REF!"}},{"$error":"#REF!"},{"$error":"#REF!"},{"$error":"#REF!"},{"$error":"#REF!"},{"$error":"#REF!"},0,0]

{"sheet":"5c. Map Unit Desig3","index":21,"n_rows":155,"n_cols":28,"rows_kept":155,"cut":false,"hidden":true,"merged":[]}
[null,"CALDAP","CHRP-R","DDS","DPRLP","FHDP","FMTW","FWHG","HOME","Market Rate","MHP","NonAssisted","Other Restr","RHCP-B","SERA","SUHRP","TOD","707-E","707-N","Elderly","GHI","HY","SNP","SH At-Risk","SH Hmls","TCAC","Veteran","Family"]
["Ghocc 15% AMI",{"$f":"SUMPRODUCT(('2. Assisted & Restricted Units'!$E$7:$E$399=\"Ghocc\")*('2. Assisted & Restricted Units'!$W$7:$W$399=\"CALDAP\")*('2. Assisted & Restricted Units'!$X$7:$X$399=\"15% AMI\"))","v":0},{"$f":"SUMPRODUCT(('2. Assisted & Restricted Units'!$E$7:$E$399=\"Ghocc\")*('2. Assisted & Restricted Units'!$W$7:$W$399=\"CHRP-R\")*('2. Assisted & Restricted Units'!$X$7:$X$399=\"15% AMI\"))","v":0},{"$f":"SUMPRODUCT(('2. Assisted & Restricted Units'!$E$7:$E$399=\"Ghocc\")*('2. Assisted & Restricted Units'!$W$7:$W$399=\"DDS\")*('2. Assisted & Restricted Units'!$X$7:$X$399=\"15% AMI\"))","v":0},{"$f":"SUMPRODUCT(('2. Assisted & Restricted Units'!$E$7:$E$399=\"Ghocc\")*('2. Assisted & Restricted Units'!$W$7:$W$399=\"DPRLP\")*('2. Assisted & Restricted Units'!$X$7:$X$399=\"15% AMI\"))","v":0},{"$f":"SUMPRODUCT(('2. Assisted & Restricted Units'!$E$7:$E$399=\"Ghocc\")*('2. Assisted & Restricted Units'!$W$7:$W$399=\"FHDP\")*('2. Assisted & Restricted Units'!$X$7:$X$399=\"15% AMI\"))","v":0},{"$f":"SUMPRODUCT(('2. Assisted & Restricted Units'!$E$7:$E$399=\"Ghocc\")*('2. Assisted & Restricted Units'!$W$7:$W$399=\"FMTW\")*('2. Assisted & Restricted Units'!$X$7:$X$399=\"15% AMI\"))","v":0},null,{"$f":"SUMPRODUCT(('2. Assisted & Restricted Units'!$E$7:$E$399=\"Ghocc\")*('2. Assisted & Restricted Units'!$W$7:$W$399=\"HOME\")*('2. Assisted & Restricted Units'!$X$7:$X$399=\"15% AMI\"))","v":0},{"$f":"SUMPRODUCT(('2. Assisted & Restricted Units'!$E$7:$E$399=\"Ghocc\")*('2. Assisted & Restricted Units'!$W$7:$W$399=\"Market Rate\")*('2. Assisted & Restricted Units'!$X$7:$X$399=\"15% AMI\"))","v":0},{"$f":"SUMPRODUCT(('2. Assisted & Restricted Units'!$E$7:$E$399=\"Ghocc\")*('2. Assisted & Restricted Units'!$W$7:$W$399=\"MHP\")*('2. Assisted & Restricted Units'!$X$7:$X$399=\"15% AMI\"))","v":0},{"$f":"SUMPRODUCT(('2. Assisted & Restricted Units'!$E$7:$E$399=\"Ghocc\")*('2. Assisted & Restricted Units'!$W$7:$W$399=\"NonAssisted\")*('2. Assisted & Restricted Units'!$X$7:$X$399=\"15% AMI\"))","v":0},{"$f":"SUMPRODUCT(('2. Assisted & Restricted Units'!$E$7:$E$399=\"Ghocc\")*('2. Assisted & Restricted Units'!$W$7:$W$399=\"Other Restr\")*('2. Assisted & Restricted Units'!$X$7:$X$399=\"15% AMI\"))","v":0},{"$f":"SUMPRODUCT(('2. Assisted & Restricted Units'!$E$7:$E$399=\"Ghocc\")*('2. Assisted & Restricted Units'!$W$7:$W$399=\"RHCP-B\")*('2. Assisted & Restricted Units'!$X$7:$X$399=\"15% AMI\"))","v":0},{"$f":"SUMPRODUCT(('2. Assisted & Restricted Units'!$E$7:$E$399=\"Ghocc\")*('2. Assisted & Restricted Units'!$W$7:$W$399=\"SERA\")*('2. Assisted & Restricted Units'!$X$7:$X$399=\"15% AMI\"))","v":0},{"$f":"SUMPRODUCT(('2. Assisted & Restricted Units'!$E$7:$E$399=\"Ghocc\")*('2. Assisted & Restricted Units'!$W$7:$W$399=\"SUHRP\")*('2. Assisted & Restricted Units'!$X$7:$X$399=\"15% AMI\"))","v":0},{"$f":"SUMPRODUCT(('2. Assisted & Restricted Units'!$E$7:$E$399=\"Ghocc\")*('2. Assisted & Restricted Units'!$W$7:$W$399=\"TOD\")*('2. Assisted & Restricted Units'!$X$7:$X$399=\"15% AMI\"))","v":0},{"$f":"SUMPRODUCT(('2. Assisted & Restricted Units'!$E$7:$E$399=\"Ghocc\")*('2. Assisted & Restricted Units'!$W$7:$W$399=\"707-E\")*('2. Assisted & Restricted Units'!$X$7:$X$399=\"15% AMI\"))","v":0},{"$f":"SUMPRODUCT(('2. Assisted & Restricted Units'!$E$7:$E$399=\"Ghocc\")*('2. Assisted & Restricted Units'!$W$7:$W$399=\"707-N\")*('2. Assisted & Restricted Units'!$X$7:$X$399=\"15% AMI\"))","v":0}]
["Ghocc 20% AMI",{"$f":"SUMPRODUCT(('2. Assisted & Restricted Units'!$E$7:$E$399=\"Ghocc\")*('2. Assisted & Restricted Units'!$W$7:$W$399=\"CALDAP\")*('2. Assisted & Restricted Units'!$X$7:$X$399=\"20% AMI\"))","v":0},{"$f":"SUMPRODUCT(('2. Assisted & Restricted Units'!$E$7:$E$399=\"Ghocc\")*('2. Assisted & Restricted Units'!$W$7:$W$399=\"CHRP-R\")*('2. Assisted & Restricted Units'!$X$7:$X$399=\"20% AMI\"))","v":0},{"$f":"SUMPRODUCT(('2. Assisted & Restricted Units'!$E$7:$E$399=\"Ghocc\")*('2. Assisted & Restricted Units'!$W$7:$W$399=\"DDS\")*('2. Assisted & Restricted Units'!$X$7:$X$399=\"20% AMI\"))","v":0},{"$f":"SUMPRODUCT(('2. Assisted & Restricted Units'!$E$7:$E$399=\"Ghocc\")*('2. Assisted & Restricted Units'!$W$7:$W$399=\"DPRLP\")*('2. Assisted & Restricted Units'!$X$7:$X$399=\"20% AMI\"))","v":0},{"$f":"SUMPRODUCT(('2. Assisted & Restricted Units'!$E$7:$E$399=\"Ghocc\")*('2. Assisted & Restricted Units'!$W$7:$W$399=\"FHDP\")*('2. Assisted & Restricted Units'!$X$7:$X$399=\"20% AMI\"))","v":0},{"$f":"SUMPRODUCT(('2. Assisted & Restricted Units'!$E$7:$E$399=\"Ghocc\")*('2. Assisted & Restricted Units'!$W$7:$W$399=\"FMTW\")*('2. Assisted & Restricted Units'!$X$7:$X$399=\"20% AMI\"))","v":0},null,{"$f":"SUMPRODUCT(('2. Assisted & Restricted Units'!$E$7:$E$399=\"Ghocc\")*('2. Assisted & Restricted Units'!$W$7:$W$399=\"HOME\")*('2. Assisted & Restricted Units'!$X$7:$X$399=\"20% AMI\"))","v":0},{"$f":"SUMPRODUCT(('2. Assisted & Restricted Units'!$E$7:$E$399=\"Ghocc\")*('2. Assisted & Restricted Units'!$W$7:$W$399=\"Market Rate\")*('2. Assisted & Restricted Units'!$X$7:$X$399=\"20% AMI\"))","v":0},{"$f":"SUMPRODUCT(('2. Assisted & Restricted Units'!$E$7:$E$399=\"Ghocc\")*('2. Assisted & Restricted Units'!$W$7:$W$399=\"MHP\")*('2. Assisted & Restricted Units'!$X$7:$X$399=\"20% AMI\"))","v":0},{"$f":"SUMPRODUCT(('2. Assisted & Restricted Units'!$E$7:$E$399=\"Ghocc\")*('2. Assisted & Restricted Units'!$W$7:$W$399=\"NonAssisted\")*('2. Assisted & Restricted Units'!$X$7:$X$399=\"20% AMI\"))","v":0},{"$f":"SUMPRODUCT(('2. Assisted & Restricted Units'!$E$7:$E$399=\"Ghocc\")*('2. Assisted & Restricted Units'!$W$7:$W$399=\"Other Restr\")*('2. Assisted & Restricted Units'!$X$7:$X$399=\"20% AMI\"))","v":0},{"$f":"SUMPRODUCT(('2. Assisted & Restricted Units'!$E$7:$E$399=\"Ghocc\")*('2. Assisted & Restricted Units'!$W$7:$W$399=\"RHCP-B\")*('2. Assisted & Restricted Units'!$X$7:$X$399=\"20% AMI\"))","v":0},{"$f":"SUMPRODUCT(('2. Assisted & Restricted Units'!$E$7:$E$399=\"Ghocc\")*('2. Assisted & Restricted Units'!$W$7:$W$399=\"SERA\")*('2. Assisted & Restricted Units'!$X$7:$X$399=\"20% AMI\"))","v":0},{"$f":"SUMPRODUCT(('2. Assisted & Restricted Units'!$E$7:$E$399=\"Ghocc\")*('2. Assisted & Restricted Units'!$W$7:$W$399=\"SUHRP\")*('2. Assisted & Restricted Units'!$X$7:$X$399=\"20% AMI\"))","v":0},{"$f":"SUMPRODUCT(('2. Assisted & Restricted Units'!$E$7:$E$399=\"Ghocc\")*('2. Assisted & Restricted Units'!$W$7:$W$399=\"TOD\")*('2. Assisted & Restricted Units'!$X$7:$X$399=\"20% AMI\"))","v":0},{"$f":"SUMPRODUCT(('2. Assisted & Restricted Units'!$E$7:$E$399=\"Ghocc\")*('2. Assisted & Restricted Units'!$W$7:$W$399=\"707-E\")*('2. Assisted & Restricted Units'!$X$7:$X$399=\"20% AMI\"))","v":0},{"$f":"SUMPRODUCT(('2. Assisted & Restricted Units'!$E$7:$E$399=\"Ghocc\")*('2. Assisted & Restricted Units'!$W$7:$W$399=\"707-N\")*('2. Assisted & Restricted Units'!$X$7:$X$399=\"20% AMI\"))","v":0}]
["Ghocc 25% AMI",{"$f":"SUMPRODUCT(('2. Assisted & Restricted Units'!$E$7:$E$399=\"Ghocc\")*('2. Assisted & Restricted Units'!$W$7:$W$399=\"CALDAP\")*('2. Assisted & Restricted Units'!$X$7:$X$399=\"25% AMI\"))","v":0},{"$f":"SUMPRODUCT(('2. Assisted & Restricted Units'!$E$7:$E$399=\"Ghocc\")*('2. Assisted & Restricted Units'!$W$7:$W$399=\"CHRP-R\")*('2. Assisted & Restricted Units'!$X$7:$X$399=\"25% AMI\"))","v":0},{"$f":"SUMPRODUCT(('2. Assisted & Restricted Units'!$E$7:$E$399=\"Ghocc\")*('2. Assisted & Restricted Units'!$W$7:$W$399=\"DDS\")*('2. Assisted & Restricted Units'!$X$7:$X$399=\"25% AMI\"))","v":0},{"$f":"SUMPRODUCT(('2. Assisted & Restricted Units'!$E$7:$E$399=\"Ghocc\")*('2. Assisted & Restricted Units'!$W$7:$W$399=\"DPRLP\")*('2. Assisted & Restricted Units'!$X$7:$X$399=\"25% AMI\"))","v":0},{"$f":"SUMPRODUCT(('2. Assisted & Restricted Units'!$E$7:$E$399=\"Ghocc\")*('2. Assisted & Restricted Units'!$W$7:$W$399=\"FHDP\")*('2. Assisted & Restricted Units'!$X$7:$X$399=\"25% AMI\"))","v":0},{"$f":"SUMPRODUCT(('2. Assisted & Restricted Units'!$E$7:$E$399=\"Ghocc\")*('2. Assisted & Restricted Units'!$W$7:$W$399=\"FMTW\")*('2. Assisted & Restricted Units'!$X$7:$X$399=\"25% AMI\"))","v":0},null,{"$f":"SUMPRODUCT(('2. Assisted & Restricted Units'!$E$7:$E$399=\"Ghocc\")*('2. Assisted & Restricted Units'!$W$7:$W$399=\"HOME\")*('2. Assisted & Restricted Units'!$X$7:$X$399=\"25% AMI\"))","v":0},{"$f":"SUMPRODUCT(('2. Assisted & Restricted Units'!$E$7:$E$399=\"Ghocc\")*('2. Assisted & Restricted Units'!$W$7:$W$399=\"Market Rate\")*('2. Assisted & Restricted Units'!$X$7:$X$399=\"25% AMI\"))","v":0},{"$f":"SUMPRODUCT(('2. Assisted & Restricted Units'!$E$7:$E$399=\"Ghocc\")*('2. Assisted & Restricted Units'!$W$7:$W$399=\"MHP\")*('2. Assisted & Restricted Units'!$X$7:$X$399=\"25% AMI\"))","v":0},{"$f":"SUMPRODUCT(('2. Assisted & Restricted Units'!$E$7:$E$399=\"Ghocc\")*('2. Assisted & Restricted Units'!$W$7:$W$399=\"NonAssisted\")*('2. Assisted & Restricted Units'!$X$7:$X$399=\"25% AMI\"))","v":0},{"$f":"SUMPRODUCT(('2. Assisted & Restricted Units'!$E$7:$E$399=\"Ghocc\")*('2. Assisted & Restricted Units'!$W$7:$W$399=\"Other Restr\")*('2. Assisted & Restricted Units'!$X$7:$X$399=\"25% AMI\"))","v":0},{"$f":"SUMPRODUCT(('2. Assisted & Restricted Units'!$E$7:$E$399=\"Ghocc\")*('2. Assisted & Restricted Units'!$W$7:$W$399=\"RHCP-B\")*('2. Assisted & Restricted Units'!$X$7:$X$399=\"25% AMI\"))","v":0},{"$f":"SUMPRODUCT(('2. Assisted & Restricted Units'!$E$7:$E$399=\"Ghocc\")*('2. Assisted & Restricted Units'!$W$7:$W$399=\"SERA\")*('2. Assisted & Restricted Units'!$X$7:$X$399=\"25% AMI\"))","v":0},{"$f":"SUMPRODUCT(('2. Assisted & Restricted Units'!$E$7:$E$399=\"Ghocc\")*('2. Assisted & Restricted Units'!$W$7:$W$399=\"SUHRP\")*('2. Assisted & Restricted Units'!$X$7:$X$399=\"25% AMI\"))","v":0},{"$f":"SUMPRODUCT(('2. Assisted & Restricted Units'!$E$7:$E$399=\"Ghocc\")*('2. Assisted & Restricted Units'!$W$7:$W$399=\"TOD\")*('2. Assisted & Restricted Units'!$X$7:$X$399=\"25% AMI\"))","v":0},{"$f":"SUMPRODUCT(('2. Assisted & Restricted Units'!$E$7:$E$399=\"Ghocc\")*('2. Assisted & Restricted Units'!$W$7:$W$399=\"707-E\")*('2. Assisted & Restricted Units'!$X$7:$X$399=\"25% AMI\"))","v":0},{"$f":"SUMPRODUCT(('2. Assisted & Restricted Units'!$E$7:$E$399=\"Ghocc\")*('2. Assisted & Restricted Units'!$W$7:$W$399=\"707-N\")*('2. Assisted & Restricted Units'!$X$7:$X$399=\"25% AMI\"))","v":0}]
["Ghocc 30% AMI",{"$f":"SUMPRODUCT(('2. Assisted & Restricted Units'!$E$7:$E$399=\"Ghocc\")*('2. Assisted & Restricted Units'!$W$7:$W$399=\"CALDAP\")*('2. Assisted & Restricted Units'!$X$7:$X$399=\"30% AMI\"))","v":0},{"$f":"SUMPRODUCT(('2. Assisted & Restricted Units'!$E$7:$E$399=\"Ghocc\")*('2. Assisted & Restricted Units'!$W$7:$W$399=\"CHRP-R\")*('2. Assisted & Restricted Units'!$X$7:$X$399=\"30% AMI\"))","v":0},{"$f":"SUMPRODUCT(('2. Assisted & Restricted Units'!$E$7:$E$399=\"Ghocc\")*('2. Assisted & Restricted Units'!$W$7:$W$399=\"DDS\")*('2. Assisted & Restricted Units'!$X$7:$X$399=\"30% AMI\"))","v":0},{"$f":"SUMPRODUCT(('2. Assisted & Restricted Units'!$E$7:$E$399=\"Ghocc\")*('2. Assisted & Restricted Units'!$W$7:$W$399=\"DPRLP\")*('2. Assisted & Restricted Units'!$X$7:$X$399=\"30% AMI\"))","v":0},{"$f":"SUMPRODUCT(('2. Assisted & Restricted Units'!$E$7:$E$399=\"Ghocc\")*('2. Assisted & Restricted Units'!$W$7:$W$399=\"FHDP\")*('2. Assisted & Restricted Units'!$X$7:$X$399=\"30% AMI\"))","v":0},{"$f":"SUMPRODUCT(('2. Assisted & Restricted Units'!$E$7:$E$399=\"Ghocc\")*('2. Assisted & Restricted Units'!$W$7:$W$399=\"FMTW\")*('2. Assisted & Restricted Units'!$X$7:$X$399=\"30% AMI\"))","v":0},null,{"$f":"SUMPRODUCT(('2. Assisted & Restricted Units'!$E$7:$E$399=\"Ghocc\")*('2. Assisted & Restricted Units'!$W$7:$W$399=\"HOME\")*('2. Assisted & Restricted Units'!$X$7:$X$399=\"30% AMI\"))","v":0},{"$f":"SUMPRODUCT(('2. Assisted & Restricted Units'!$E$7:$E$399=\"Ghocc\")*('2. Assisted & Restricted Units'!$W$7:$W$399=\"Market Rate\")*('2. Assisted & Restricted Units'!$X$7:$X$399=\"30% AMI\"))","v":0},{"$f":"SUMPRODUCT(('2. Assisted & Restricted Units'!$E$7:$E$399=\"Ghocc\")*('2. Assisted & Restricted Units'!$W$7:$W$399=\"MHP\")*('2. Assisted & Restricted Units'!$X$7:$X$399=\"30% AMI\"))","v":0},{"$f":"SUMPRODUCT(('2. Assisted & Restricted Units'!$E$7:$E$399=\"Ghocc\")*('2. Assisted & Restricted Units'!$W$7:$W$399=\"NonAssisted\")*('2. Assisted & Restricted Units'!$X$7:$X$399=\"30% AMI\"))","v":0},{"$f":"SUMPRODUCT(('2. Assisted & Restricted Units'!$E$7:$E$399=\"Ghocc\")*('2. Assisted & Restricted Units'!$W$7:$W$399=\"Other Restr\")*('2. Assisted & Restricted Units'!$X$7:$X$399=\"30% AMI\"))","v":0},{"$f":"SUMPRODUCT(('2. Assisted & Restricted Units'!$E$7:$E$399=\"Ghocc\")*('2. Assisted & Restricted Units'!$W$7:$W$399=\"RHCP-B\")*('2. Assisted & Restricted Units'!$X$7:$X$399=\"30% AMI\"))","v":0},{"$f":"SUMPRODUCT(('2. Assisted & Restricted Units'!$E$7:$E$399=\"Ghocc\")*('2. Assisted & Restricted Units'!$W$7:$W$399=\"SERA\")*('2. Assisted & Restricted Units'!$X$7:$X$399=\"30% AMI\"))","v":0},{"$f":"SUMPRODUCT(('2. Assisted & Restricted Units'!$E$7:$E$399=\"Ghocc\")*('2. Assisted & Restricted Units'!$W$7:$W$399=\"SUHRP\")*('2. Assisted & Restricted Units'!$X$7:$X$399=\"30% AMI\"))","v":0},{"$f":"SUMPRODUCT(('2. Assisted & Restricted Units'!$E$7:$E$399=\"Ghocc\")*('2. Assisted & Restricted Units'!$W$7:$W$399=\"TOD\")*('2. Assisted & Restricted Units'!$X$7:$X$399=\"30% AMI\"))","v":0},{"$f":"SUMPRODUCT(('2. Assisted & Restricted Units'!$E$7:$E$399=\"Ghocc\")*('2. Assisted & Restricted Units'!$W$7:$W$399=\"707-E\")*('2. Assisted & Restricted Units'!$X$7:$X$399=\"30% AMI\"))","v":0},{"$f":"SUMPRODUCT(('2. Assisted & Restricted Units'!$E$7:$E$399=\"Ghocc\")*('2. Assisted & Restricted Units'!$W$7:$W$399=\"707-N\")*('2. Assisted & Restricted Units'!$X$7:$X$399=\"30% AMI\"))","v":0}]
["Ghocc 35% AMI",{"$f":"SUMPRODUCT(('2. Assisted & Restricted Units'!$E$7:$E$399=\"Ghocc\")*('2. Assisted & Restricted Units'!$W$7:$W$399=\"CALDAP\")*('2. Assisted & Restricted Units'!$X$7:$X$399=\"35% AMI\"))","v":0},{"$f":"SUMPRODUCT(('2. Assisted & Restricted Units'!$E$7:$E$399=\"Ghocc\")*('2. Assisted & Restricted Units'!$W$7:$W$399=\"CHRP-R\")*('2. Assisted & Restricted Units'!$X$7:$X$399=\"35% AMI\"))","v":0},{"$f":"SUMPRODUCT(('2. Assisted & Restricted Units'!$E$7:$E$399=\"Ghocc\")*('2. Assisted & Restricted Units'!$W$7:$W$399=\"DDS\")*('2. Assisted & Restricted Units'!$X$7:$X$399=\"35% AMI\"))","v":0},{"$f":"SUMPRODUCT(('2. Assisted & Restricted Units'!$E$7:$E$399=\"Ghocc\")*('2. Assisted & Restricted Units'!$W$7:$W$399=\"DPRLP\")*('2. Assisted & Restricted Units'!$X$7:$X$399=\"35% AMI\"))","v":0},{"$f":"SUMPRODUCT(('2. Assisted & Restricted Units'!$E$7:$E$399=\"Ghocc\")*('2. Assisted & Restricted Units'!$W$7:$W$399=\"FHDP\")*('2. Assisted & Restricted Units'!$X$7:$X$399=\"35% AMI\"))","v":0},{"$f":"SUMPRODUCT(('2. Assisted & Restricted Units'!$E$7:$E$399=\"Ghocc\")*('2. Assisted & Restricted Units'!$W$7:$W$399=\"FMTW\")*('2. Assisted & Restricted Units'!$X$7:$X$399=\"35% AMI\"))","v":0},null,{"$f":"SUMPRODUCT(('2. Assisted & Restricted Units'!$E$7:$E$399=\"Ghocc\")*('2. Assisted & Restricted Units'!$W$7:$W$399=\"HOME\")*('2. Assisted & Restricted Units'!$X$7:$X$399=\"35% AMI\"))","v":0},{"$f":"SUMPRODUCT(('2. Assisted & Restricted Units'!$E$7:$E$399=\"Ghocc\")*('2. Assisted & Restricted Units'!$W$7:$W$399=\"Market Rate\")*('2. Assisted & Restricted Units'!$X$7:$X$399=\"35% AMI\"))","v":0},{"$f":"SUMPRODUCT(('2. Assisted & Restricted Units'!$E$7:$E$399=\"Ghocc\")*('2. Assisted & Restricted Units'!$W$7:$W$399=\"MHP\")*('2. Assisted & Restricted Units'!$X$7:$X$399=\"35% AMI\"))","v":0},{"$f":"SUMPRODUCT(('2. Assisted & Restricted Units'!$E$7:$E$399=\"Ghocc\")*('2. Assisted & Restricted Units'!$W$7:$W$399=\"NonAssisted\")*('2. Assisted & Restricted Units'!$X$7:$X$399=\"35% AMI\"))","v":0},{"$f":"SUMPRODUCT(('2. Assisted & Restricted Units'!$E$7:$E$399=\"Ghocc\")*('2. Assisted & Restricted Units'!$W$7:$W$399=\"Other Restr\")*('2. Assisted & Restricted Units'!$X$7:$X$399=\"35% AMI\"))","v":0},{"$f":"SUMPRODUCT(('2. Assisted & Restricted Units'!$E$7:$E$399=\"Ghocc\")*('2. Assisted & Restricted Units'!$W$7:$W$399=\"RHCP-B\")*('2. Assisted & Restricted Units'!$X$7:$X$399=\"35% AMI\"))","v":0},{"$f":"SUMPRODUCT(('2. Assisted & Restricted Units'!$E$7:$E$399=\"Ghocc\")*('2. Assisted & Restricted Units'!$W$7:$W$399=\"SERA\")*('2. Assisted & Restricted Units'!$X$7:$X$399=\"35% AMI\"))","v":0},{"$f":"SUMPRODUCT(('2. Assisted & Restricted Units'!$E$7:$E$399=\"Ghocc\")*('2. Assisted & Restricted Units'!$W$7:$W$399=\"SUHRP\")*('2. Assisted & Restricted Units'!$X$7:$X$399=\"35% AMI\"))","v":0},{"$f":"SUMPRODUCT(('2. Assisted & Restricted Units'!$E$7:$E$399=\"Ghocc\")*('2. Assisted & Restricted Units'!$W$7:$W$399=\"TOD\")*('2. Assisted & Restricted Units'!$X$7:$X$399=\"35% AMI\"))","v":0},{"$f":"SUMPRODUCT(('2. Assisted & Restricted Units'!$E$7:$E$399=\"Ghocc\")*('2. Assisted & Restricted Units'!$W$7:$W$399=\"707-E\")*('2. Assisted & Restricted Units'!$X$7:$X$399=\"35% AMI\"))","v":0},{"$f":"SUMPRODUCT(('2. Assisted & Restricted Units'!$E$7:$E$399=\"Ghocc\")*('2. Assisted & Restricted Units'!$W$7:$W$399=\"707-N\")*('2. Assisted & Restricted Units'!$X$7:$X$399=\"35% AMI\"))","v":0}]
["Ghocc 40% AMI",{"$f":"SUMPRODUCT(('2. Assisted & Restricted Units'!$E$7:$E$399=\"Ghocc\")*('2. Assisted & Restricted Units'!$W$7:$W$399=\"CALDAP\")*('2. Assisted & Restricted Units'!$X$7:$X$399=\"40% AMI\"))","v":0},{"$f":"SUMPRODUCT(('2. Assisted & Restricted Units'!$E$7:$E$399=\"Ghocc\")*('2. Assisted & Restricted Units'!$W$7:$W$399=\"CHRP-R\")*('2. Assisted & Restricted Units'!$X$7:$X$399=\"40% AMI\"))","v":0},{"$f":"SUMPRODUCT(('2. Assisted & Restricted Units'!$E$7:$E$399=\"Ghocc\")*('2. Assisted & Restricted Units'!$W$7:$W$399=\"DDS\")*('2. Assisted & Restricted Units'!$X$7:$X$399=\"40% AMI\"))","v":0},{"$f":"SUMPRODUCT(('2. Assisted & Restricted Units'!$E$7:$E$399=\"Ghocc\")*('2. Assisted & Restricted Units'!$W$7:$W$399=\"DPRLP\")*('2. Assisted & Restricted Units'!$X$7:$X$399=\"40% AMI\"))","v":0},{"$f":"SUMPRODUCT(('2. Assisted & Restricted Units'!$E$7:$E$399=\"Ghocc\")*('2. Assisted & Restricted Units'!$W$7:$W$399=\"FHDP\")*('2. Assisted & Restricted Units'!$X$7:$X$399=\"40% AMI\"))","v":0},{"$f":"SUMPRODUCT(('2. Assisted & Restricted Units'!$E$7:$E$399=\"Ghocc\")*('2. Assisted & Restricted Units'!$W$7:$W$399=\"FMTW\")*('2. Assisted & Restricted Units'!$X$7:$X$399=\"40% AMI\"))","v":0},null,{"$f":"SUMPRODUCT(('2. Assisted & Restricted Units'!$E$7:$E$399=\"Ghocc\")*('2. Assisted & Restricted Units'!$W$7:$W$399=\"HOME\")*('2. Assisted & Restricted Units'!$X$7:$X$399=\"40% AMI\"))","v":0},{"$f":"SUMPRODUCT(('2. Assisted & Restricted Units'!$E$7:$E$399=\"Ghocc\")*('2. Assisted & Restricted Units'!$W$7:$W$399=\"Market Rate\")*('2. Assisted & Restricted Units'!$X$7:$X$399=\"40% AMI\"))","v":0},{"$f":"SUMPRODUCT(('2. Assisted & Restricted Units'!$E$7:$E$399=\"Ghocc\")*('2. Assisted & Restricted Units'!$W$7:$W$399=\"MHP\")*('2. Assisted & Restricted Units'!$X$7:$X$399=\"40% AMI\"))","v":0},{"$f":"SUMPRODUCT(('2. Assisted & Restricted Units'!$E$7:$E$399=\"Ghocc\")*('2. Assisted & Restricted Units'!$W$7:$W$399=\"NonAssisted\")*('2. Assisted & Restricted Units'!$X$7:$X$399=\"40% AMI\"))","v":0},{"$f":"SUMPRODUCT(('2. Assisted & Restricted Units'!$E$7:$E$399=\"Ghocc\")*('2. Assisted & Restricted Units'!$W$7:$W$399=\"Other Restr\")*('2. Assisted & Restricted Units'!$X$7:$X$399=\"40% AMI\"))","v":0},{"$f":"SUMPRODUCT(('2. Assisted & Restricted Units'!$E$7:$E$399=\"Ghocc\")*('2. Assisted & Restricted Units'!$W$7:$W$399=\"RHCP-B\")*('2. Assisted & Restricted Units'!$X$7:$X$399=\"40% AMI\"))","v":0},{"$f":"SUMPRODUCT(('2. Assisted & Restricted Units'!$E$7:$E$399=\"Ghocc\")*('2. Assisted & Restricted Units'!$W$7:$W$399=\"SERA\")*('2. Assisted & Restricted Units'!$X$7:$X$399=\"40% AMI\"))","v":0},{"$f":"SUMPRODUCT(('2. Assisted & Restricted Units'!$E$7:$E$399=\"Ghocc\")*('2. Assisted & Restricted Units'!$W$7:$W$399=\"SUHRP\")*('2. Assisted & Restricted Units'!$X$7:$X$399=\"40% AMI\"))","v":0},{"$f":"SUMPRODUCT(('2. Assisted & Restricted Units'!$E$7:$E$399=\"Ghocc\")*('2. Assisted & Restricted Units'!$W$7:$W$399=\"TOD\")*('2. Assisted & Restricted Units'!$X$7:$X$399=\"40% AMI\"))","v":0},{"$f":"SUMPRODUCT(('2. Assisted & Restricted Units'!$E$7:$E$399=\"Ghocc\")*('2. Assisted & Restricted Units'!$W$7:$W$399=\"707-E\")*('2. Assisted & Restricted Units'!$X$7:$X$399=\"40% AMI\"))","v":0},{"$f":"SUMPRODUCT(('2. Assisted & Restricted Units'!$E$7:$E$399=\"Ghocc\")*('2. Assisted & Restricted Units'!$W$7:$W$399=\"707-N\")*('2. Assisted & Restricted Units'!$X$7:$X$399=\"40% AMI\"))","v":0}]
["Ghocc 45% AMI",{"$f":"SUMPRODUCT(('2. Assisted & Restricted Units'!$E$7:$E$399=\"Ghocc\")*('2. Assisted & Restricted Units'!$W$7:$W$399=\"CALDAP\")*('2. Assisted & Restricted Units'!$X$7:$X$399=\"45% AMI\"))","v":0},{"$f":"SUMPRODUCT(('2. Assisted & Restricted Units'!$E$7:$E$399=\"Ghocc\")*('2. Assisted & Restricted Units'!$W$7:$W$399=\"CHRP-R\")*('2. Assisted & Restricted Units'!$X$7:$X$399=\"45% AMI\"))","v":0},{"$f":"SUMPRODUCT(('2. Assisted & Restricted Units'!$E$7:$E$399=\"Ghocc\")*('2. Assisted & Restricted Units'!$W$7:$W$399=\"DDS\")*('2. Assisted & Restricted Units'!$X$7:$X$399=\"45% AMI\"))","v":0},{"$f":"SUMPRODUCT(('2. Assisted & Restricted Units'!$E$7:$E$399=\"Ghocc\")*('2. Assisted & Restricted Units'!$W$7:$W$399=\"DPRLP\")*('2. Assisted & Restricted Units'!$X$7:$X$399=\"45% AMI\"))","v":0},{"$f":"SUMPRODUCT(('2. Assisted & Restricted Units'!$E$7:$E$399=\"Ghocc\")*('2. Assisted & Restricted Units'!$W$7:$W$399=\"FHDP\")*('2. Assisted & Restricted Units'!$X$7:$X$399=\"45% AMI\"))","v":0},{"$f":"SUMPRODUCT(('2. Assisted & Restricted Units'!$E$7:$E$399=\"Ghocc\")*('2. Assisted & Restricted Units'!$W$7:$W$399=\"FMTW\")*('2. Assisted & Restricted Units'!$X$7:$X$399=\"45% AMI\"))","v":0},null,{"$f":"SUMPRODUCT(('2. Assisted & Restricted Units'!$E$7:$E$399=\"Ghocc\")*('2. Assisted & Restricted Units'!$W$7:$W$399=\"HOME\")*('2. Assisted & Restricted Units'!$X$7:$X$399=\"45% AMI\"))","v":0},{"$f":"SUMPRODUCT(('2. Assisted & Restricted Units'!$E$7:$E$399=\"Ghocc\")*('2. Assisted & Restricted Units'!$W$7:$W$399=\"Market Rate\")*('2. Assisted & Restricted Units'!$X$7:$X$399=\"45% AMI\"))","v":0},{"$f":"SUMPRODUCT(('2. Assisted & Restricted Units'!$E$7:$E$399=\"Ghocc\")*('2. Assisted & Restricted Units'!$W$7:$W$399=\"MHP\")*('2. Assisted & Restricted Units'!$X$7:$X$399=\"45% AMI\"))","v":0},{"$f":"SUMPRODUCT(('2. Assisted & Restricted Units'!$E$7:$E$399=\"Ghocc\")*('2. Assisted & Restricted Units'!$W$7:$W$399=\"NonAssisted\")*('2. Assisted & Restricted Units'!$X$7:$X$399=\"45% AMI\"))","v":0},{"$f":"SUMPRODUCT(('2. Assisted & Restricted Units'!$E$7:$E$399=\"Ghocc\")*('2. Assisted & Restricted Units'!$W$7:$W$399=\"Other Restr\")*('2. Assisted & Restricted Units'!$X$7:$X$399=\"45% AMI\"))","v":0},{"$f":"SUMPRODUCT(('2. Assisted & Restricted Units'!$E$7:$E$399=\"Ghocc\")*('2. Assisted & Restricted Units'!$W$7:$W$399=\"RHCP-B\")*('2. Assisted & Restricted Units'!$X$7:$X$399=\"45% AMI\"))","v":0},{"$f":"SUMPRODUCT(('2. Assisted & Restricted Units'!$E$7:$E$399=\"Ghocc\")*('2. Assisted & Restricted Units'!$W$7:$W$399=\"SERA\")*('2. Assisted & Restricted Units'!$X$7:$X$399=\"45% AMI\"))","v":0},{"$f":"SUMPRODUCT(('2. Assisted & Restricted Units'!$E$7:$E$399=\"Ghocc\")*('2. Assisted & Restricted Units'!$W$7:$W$399=\"SUHRP\")*('2. Assisted & Restricted Units'!$X$7:$X$399=\"45% AMI\"))","v":0},{"$f":"SUMPRODUCT(('2. Assisted & Restricted Units'!$E$7:$E$399=\"Ghocc\")*('2. Assisted & Restricted Units'!$W$7:$W$399=\"TOD\")*('2. Assisted & Restricted Units'!$X$7:$X$399=\"45% AMI\"))","v":0},{"$f":"SUMPRODUCT(('2. Assisted & Restricted Units'!$E$7:$E$399=\"Ghocc\")*('2. Assisted & Restricted Units'!$W$7:$W$399=\"707-E\")*('2. Assisted & Restricted Units'!$X$7:$X$399=\"45% AMI\"))","v":0},{"$f":"SUMPRODUCT(('2. Assisted & Restricted Units'!$E$7:$E$399=\"Ghocc\")*('2. Assisted & Restricted Units'!$W$7:$W$399=\"707-N\")*('2. Assisted & Restricted Units'!$X$7:$X$399=\"45% AMI\"))","v":0}]
["Ghocc 50% AMI",{"$f":"SUMPRODUCT(('2. Assisted & Restricted Units'!$E$7:$E$399=\"Ghocc\")*('2. Assisted & Restricted Units'!$W$7:$W$399=\"CALDAP\")*('2. Assisted & Restricted Units'!$X$7:$X$399=\"50% AMI\"))","v":0},{"$f":"SUMPRODUCT(('2. Assisted & Restricted Units'!$E$7:$E$399=\"Ghocc\")*('2. Assisted & Restricted Units'!$W$7:$W$399=\"CHRP-R\")*('2. Assisted & Restricted Units'!$X$7:$X$399=\"50% AMI\"))","v":0},{"$f":"SUMPRODUCT(('2. Assisted & Restricted Units'!$E$7:$E$399=\"Ghocc\")*('2. Assisted & Restricted Units'!$W$7:$W$399=\"DDS\")*('2. Assisted & Restricted Units'!$X$7:$X$399=\"50% AMI\"))","v":0},{"$f":"SUMPRODUCT(('2. Assisted & Restricted Units'!$E$7:$E$399=\"Ghocc\")*('2. Assisted & Restricted Units'!$W$7:$W$399=\"DPRLP\")*('2. Assisted & Restricted Units'!$X$7:$X$399=\"50% AMI\"))","v":0},{"$f":"SUMPRODUCT(('2. Assisted & Restricted Units'!$E$7:$E$399=\"Ghocc\")*('2. Assisted & Restricted Units'!$W$7:$W$399=\"FHDP\")*('2. Assisted & Restricted Units'!$X$7:$X$399=\"50% AMI\"))","v":0},{"$f":"SUMPRODUCT(('2. Assisted & Restricted Units'!$E$7:$E$399=\"Ghocc\")*('2. Assisted & Restricted Units'!$W$7:$W$399=\"FMTW\")*('2. Assisted & Restricted Units'!$X$7:$X$399=\"50% AMI\"))","v":0},null,{"$f":"SUMPRODUCT(('2. Assisted & Restricted Units'!$E$7:$E$399=\"Ghocc\")*('2. Assisted & Restricted Units'!$W$7:$W$399=\"HOME\")*('2. Assisted & Restricted Units'!$X$7:$X$399=\"50% AMI\"))","v":0},{"$f":"SUMPRODUCT(('2. Assisted & Restricted Units'!$E$7:$E$399=\"Ghocc\")*('2. Assisted & Restricted Units'!$W$7:$W$399=\"Market Rate\")*('2. Assisted & Restricted Units'!$X$7:$X$399=\"50% AMI\"))","v":0},{"$f":"SUMPRODUCT(('2. Assisted & Restricted Units'!$E$7:$E$399=\"Ghocc\")*('2. Assisted & Restricted Units'!$W$7:$W$399=\"MHP\")*('2. Assisted & Restricted Units'!$X$7:$X$399=\"50% AMI\"))","v":0},{"$f":"SUMPRODUCT(('2. Assisted & Restricted Units'!$E$7:$E$399=\"Ghocc\")*('2. Assisted & Restricted Units'!$W$7:$W$399=\"NonAssisted\")*('2. Assisted & Restricted Units'!$X$7:$X$399=\"50% AMI\"))","v":0},{"$f":"SUMPRODUCT(('2. Assisted & Restricted Units'!$E$7:$E$399=\"Ghocc\")*('2. Assisted & Restricted Units'!$W$7:$W$399=\"Other Restr\")*('2. Assisted & Restricted Units'!$X$7:$X$399=\"50% AMI\"))","v":0},{"$f":"SUMPRODUCT(('2. Assisted & Restricted Units'!$E$7:$E$399=\"Ghocc\")*('2. Assisted & Restricted Units'!$W$7:$W$399=\"RHCP-B\")*('2. Assisted & Restricted Units'!$X$7:$X$399=\"50% AMI\"))","v":0},{"$f":"SUMPRODUCT(('2. Assisted & Restricted Units'!$E$7:$E$399=\"Ghocc\")*('2. Assisted & Restricted Units'!$W$7:$W$399=\"SERA\")*('2. Assisted & Restricted Units'!$X$7:$X$399=\"50% AMI\"))","v":0},{"$f":"SUMPRODUCT(('2. Assisted & Restricted Units'!$E$7:$E$399=\"Ghocc\")*('2. Assisted & Restricted Units'!$W$7:$W$399=\"SUHRP\")*('2. Assisted & Restricted Units'!$X$7:$X$399=\"50% AMI\"))","v":0},{"$f":"SUMPRODUCT(('2. Assisted & Restricted Units'!$E$7:$E$399=\"Ghocc\")*('2. Assisted & Restricted Units'!$W$7:$W$399=\"TOD\")*('2. Assisted & Restricted Units'!$X$7:$X$399=\"50% AMI\"))","v":0},{"$f":"SUMPRODUCT(('2. Assisted & Restricted Units'!$E$7:$E$399=\"Ghocc\")*('2. Assisted & Restricted Units'!$W$7:$W$399=\"707-E\")*('2. Assisted & Restricted Units'!$X$7:$X$399=\"50% AMI\"))","v":0},{"$f":"SUMPRODUCT(('2. Assisted & Restricted Units'!$E$7:$E$399=\"Ghocc\")*('2. Assisted & Restricted Units'!$W$7:$W$399=\"707-N\")*('2. Assisted & Restricted Units'!$X$7:$X$399=\"50% AMI\"))","v":0}]
["Ghocc 55% AMI",{"$f":"SUMPRODUCT(('2. Assisted & Restricted Units'!$E$7:$E$399=\"Ghocc\")*('2. Assisted & Restricted Units'!$W$7:$W$399=\"CALDAP\")*('2. Assisted & Restricted Units'!$X$7:$X$399=\"55% AMI\"))","v":0},{"$f":"SUMPRODUCT(('2. Assisted & Restricted Units'!$E$7:$E$399=\"Ghocc\")*('2. Assisted & Restricted Units'!$W$7:$W$399=\"CHRP-R\")*('2. Assisted & Restricted Units'!$X$7:$X$399=\"55% AMI\"))","v":0},{"$f":"SUMPRODUCT(('2. Assisted & Restricted Units'!$E$7:$E$399=\"Ghocc\")*('2. Assisted & Restricted Units'!$W$7:$W$399=\"DDS\")*('2. Assisted & Restricted Units'!$X$7:$X$399=\"55% AMI\"))","v":0},{"$f":"SUMPRODUCT(('2. Assisted & Restricted Units'!$E$7:$E$399=\"Ghocc\")*('2. Assisted & Restricted Units'!$W$7:$W$399=\"DPRLP\")*('2. Assisted & Restricted Units'!$X$7:$X$399=\"55% AMI\"))","v":0},{"$f":"SUMPRODUCT(('2. Assisted & Restricted Units'!$E$7:$E$399=\"Ghocc\")*('2. Assisted & Restricted Units'!$W$7:$W$399=\"FHDP\")*('2. Assisted & Restricted Units'!$X$7:$X$399=\"55% AMI\"))","v":0},{"$f":"SUMPRODUCT(('2. Assisted & Restricted Units'!$E$7:$E$399=\"Ghocc\")*('2. Assisted & Restricted Units'!$W$7:$W$399=\"FMTW\")*('2. Assisted & Restricted Units'!$X$7:$X$399=\"55% AMI\"))","v":0},null,{"$f":"SUMPRODUCT(('2. Assisted & Restricted Units'!$E$7:$E$399=\"Ghocc\")*('2. Assisted & Restricted Units'!$W$7:$W$399=\"HOME\")*('2. Assisted & Restricted Units'!$X$7:$X$399=\"55% AMI\"))","v":0},{"$f":"SUMPRODUCT(('2. Assisted & Restricted Units'!$E$7:$E$399=\"Ghocc\")*('2. Assisted & Restricted Units'!$W$7:$W$399=\"Market Rate\")*('2. Assisted & Restricted Units'!$X$7:$X$399=\"55% AMI\"))","v":0},{"$f":"SUMPRODUCT(('2. Assisted & Restricted Units'!$E$7:$E$399=\"Ghocc\")*('2. Assisted & Restricted Units'!$W$7:$W$399=\"MHP\")*('2. Assisted & Restricted Units'!$X$7:$X$399=\"55% AMI\"))","v":0},{"$f":"SUMPRODUCT(('2. Assisted & Restricted Units'!$E$7:$E$399=\"Ghocc\")*('2. Assisted & Restricted Units'!$W$7:$W$399=\"NonAssisted\")*('2. Assisted & Restricted Units'!$X$7:$X$399=\"55% AMI\"))","v":0},{"$f":"SUMPRODUCT(('2. Assisted & Restricted Units'!$E$7:$E$399=\"Ghocc\")*('2. Assisted & Restricted Units'!$W$7:$W$399=\"Other Restr\")*('2. Assisted & Restricted Units'!$X$7:$X$399=\"55% AMI\"))","v":0},{"$f":"SUMPRODUCT(('2. Assisted & Restricted Units'!$E$7:$E$399=\"Ghocc\")*('2. Assisted & Restricted Units'!$W$7:$W$399=\"RHCP-B\")*('2. Assisted & Restricted Units'!$X$7:$X$399=\"55% AMI\"))","v":0},{"$f":"SUMPRODUCT(('2. Assisted & Restricted Units'!$E$7:$E$399=\"Ghocc\")*('2. Assisted & Restricted Units'!$W$7:$W$399=\"SERA\")*('2. Assisted & Restricted Units'!$X$7:$X$399=\"55% AMI\"))","v":0},{"$f":"SUMPRODUCT(('2. Assisted & Restricted Units'!$E$7:$E$399=\"Ghocc\")*('2. Assisted & Restricted Units'!$W$7:$W$399=\"SUHRP\")*('2. Assisted & Restricted Units'!$X$7:$X$399=\"55% AMI\"))","v":0},{"$f":"SUMPRODUCT(('2. Assisted & Restricted Units'!$E$7:$E$399=\"Ghocc\")*('2. Assisted & Restricted Units'!$W$7:$W$399=\"TOD\")*('2. Assisted & Restricted Units'!$X$7:$X$399=\"55% AMI\"))","v":0},{"$f":"SUMPRODUCT(('2. Assisted & Restricted Units'!$E$7:$E$399=\"Ghocc\")*('2. Assisted & Restricted Units'!$W$7:$W$399=\"707-E\")*('2. Assisted & Restricted Units'!$X$7:$X$399=\"55% AMI\"))","v":0},{"$f":"SUMPRODUCT(('2. Assisted & Restricted Units'!$E$7:$E$399=\"Ghocc\")*('2. Assisted & Restricted Units'!$W$7:$W$399=\"707-N\")*('2. Assisted & Restricted Units'!$X$7:$X$399=\"55% AMI\"))","v":0}]
["Ghocc 60% AMI",{"$f":"SUMPRODUCT(('2. Assisted & Restricted Units'!$E$7:$E$399=\"Ghocc\")*('2. Assisted & Restricted Units'!$W$7:$W$399=\"CALDAP\")*('2. Assisted & Restricted Units'!$X$7:$X$399=\"60% AMI\"))","v":0},{"$f":"SUMPRODUCT(('2. Assisted & Restricted Units'!$E$7:$E$399=\"Ghocc\")*('2. Assisted & Restricted Units'!$W$7:$W$399=\"CHRP-R\")*('2. Assisted & Restricted Units'!$X$7:$X$399=\"60% AMI\"))","v":0},{"$f":"SUMPRODUCT(('2. Assisted & Restricted Units'!$E$7:$E$399=\"Ghocc\")*('2. Assisted & Restricted Units'!$W$7:$W$399=\"DDS\")*('2. Assisted & Restricted Units'!$X$7:$X$399=\"60% AMI\"))","v":0},{"$f":"SUMPRODUCT(('2. Assisted & Restricted Units'!$E$7:$E$399=\"Ghocc\")*('2. Assisted & Restricted Units'!$W$7:$W$399=\"DPRLP\")*('2. Assisted & Restricted Units'!$X$7:$X$399=\"60% AMI\"))","v":0},{"$f":"SUMPRODUCT(('2. Assisted & Restricted Units'!$E$7:$E$399=\"Ghocc\")*('2. Assisted & Restricted Units'!$W$7:$W$399=\"FHDP\")*('2. Assisted & Restricted Units'!$X$7:$X$399=\"60% AMI\"))","v":0},{"$f":"SUMPRODUCT(('2. Assisted & Restricted Units'!$E$7:$E$399=\"Ghocc\")*('2. Assisted & Restricted Units'!$W$7:$W$399=\"FMTW\")*('2. Assisted & Restricted Units'!$X$7:$X$399=\"60% AMI\"))","v":0},null,{"$f":"SUMPRODUCT(('2. Assisted & Restricted Units'!$E$7:$E$399=\"Ghocc\")*('2. Assisted & Restricted Units'!$W$7:$W$399=\"HOME\")*('2. Assisted & Restricted Units'!$X$7:$X$399=\"60% AMI\"))","v":0},{"$f":"SUMPRODUCT(('2. Assisted & Restricted Units'!$E$7:$E$399=\"Ghocc\")*('2. Assisted & Restricted Units'!$W$7:$W$399=\"Market Rate\")*('2. Assisted & Restricted Units'!$X$7:$X$399=\"60% AMI\"))","v":0},{"$f":"SUMPRODUCT(('2. Assisted & Restricted Units'!$E$7:$E$399=\"Ghocc\")*('2. Assisted & Restricted Units'!$W$7:$W$399=\"MHP\")*('2. Assisted & Restricted Units'!$X$7:$X$399=\"60% AMI\"))","v":0},{"$f":"SUMPRODUCT(('2. Assisted & Restricted Units'!$E$7:$E$399=\"Ghocc\")*('2. Assisted & Restricted Units'!$W$7:$W$399=\"NonAssisted\")*('2. Assisted & Restricted Units'!$X$7:$X$399=\"60% AMI\"))","v":0},{"$f":"SUMPRODUCT(('2. Assisted & Restricted Units'!$E$7:$E$399=\"Ghocc\")*('2. Assisted & Restricted Units'!$W$7:$W$399=\"Other Restr\")*('2. Assisted & Restricted Units'!$X$7:$X$399=\"60% AMI\"))","v":0},{"$f":"SUMPRODUCT(('2. Assisted & Restricted Units'!$E$7:$E$399=\"Ghocc\")*('2. Assisted & Restricted Units'!$W$7:$W$399=\"RHCP-B\")*('2. Assisted & Restricted Units'!$X$7:$X$399=\"60% AMI\"))","v":0},{"$f":"SUMPRODUCT(('2. Assisted & Restricted Units'!$E$7:$E$399=\"Ghocc\")*('2. Assisted & Restricted Units'!$W$7:$W$399=\"SERA\")*('2. Assisted & Restricted Units'!$X$7:$X$399=\"60% AMI\"))","v":0},{"$f":"SUMPRODUCT(('2. Assisted & Restricted Units'!$E$7:$E$399=\"Ghocc\")*('2. Assisted & Restricted Units'!$W$7:$W$399=\"SUHRP\")*('2. Assisted & Restricted Units'!$X$7:$X$399=\"60% AMI\"))","v":0},{"$f":"SUMPRODUCT(('2. Assisted & Restricted Units'!$E$7:$E$399=\"Ghocc\")*('2. Assisted & Restricted Units'!$W$7:$W$399=\"TOD\")*('2. Assisted & Restricted Units'!$X$7:$X$399=\"60% AMI\"))","v":0},{"$f":"SUMPRODUCT(('2. Assisted & Restricted Units'!$E$7:$E$399=\"Ghocc\")*('2. Assisted & Restricted Units'!$W$7:$W$399=\"707-E\")*('2. Assisted & Restricted Units'!$X$7:$X$399=\"60% AMI\"))","v":0},{"$f":"SUMPRODUCT(('2. Assisted & Restricted Units'!$E$7:$E$399=\"Ghocc\")*('2. Assisted & Restricted Units'!$W$7:$W$399=\"707-N\")*('2. Assisted & Restricted Units'!$X$7:$X$399=\"60% AMI\"))","v":0}]
["Ghocc 80% AMI",{"$f":"SUMPRODUCT(('2. Assisted & Restricted Units'!$E$7:$E$399=\"Ghocc\")*('2. Assisted & Restricted Units'!$W$7:$W$399=\"CALDAP\")*('2. Assisted & Restricted Units'!$X$7:$X$399=\"80% AMI\"))","v":0},{"$f":"SUMPRODUCT(('2. Assisted & Restricted Units'!$E$7:$E$399=\"Ghocc\")*('2. Assisted & Restricted Units'!$W$7:$W$399=\"CHRP-R\")*('2. Assisted & Restricted Units'!$X$7:$X$399=\"80% AMI\"))","v":0},{"$f":"SUMPRODUCT(('2. Assisted & Restricted Units'!$E$7:$E$399=\"Ghocc\")*('2. Assisted & Restricted Units'!$W$7:$W$399=\"DDS\")*('2. Assisted & Restricted Units'!$X$7:$X$399=\"80% AMI\"))","v":0},{"$f":"SUMPRODUCT(('2. Assisted & Restricted Units'!$E$7:$E$399=\"Ghocc\")*('2. Assisted & Restricted Units'!$W$7:$W$399=\"DPRLP\")*('2. Assisted & Restricted Units'!$X$7:$X$399=\"80% AMI\"))","v":0},{"$f":"SUMPRODUCT(('2. Assisted & Restricted Units'!$E$7:$E$399=\"Ghocc\")*('2. Assisted & Restricted Units'!$W$7:$W$399=\"FHDP\")*('2. Assisted & Restricted Units'!$X$7:$X$399=\"80% AMI\"))","v":0},{"$f":"SUMPRODUCT(('2. Assisted & Restricted Units'!$E$7:$E$399=\"Ghocc\")*('2. Assisted & Restricted Units'!$W$7:$W$399=\"FMTW\")*('2. Assisted & Restricted Units'!$X$7:$X$399=\"80% AMI\"))","v":0},null,{"$f":"SUMPRODUCT(('2. Assisted & Restricted Units'!$E$7:$E$399=\"Ghocc\")*('2. Assisted & Restricted Units'!$W$7:$W$399=\"HOME\")*('2. Assisted & Restricted Units'!$X$7:$X$399=\"80% AMI\"))","v":0},{"$f":"SUMPRODUCT(('2. Assisted & Restricted Units'!$E$7:$E$399=\"Ghocc\")*('2. Assisted & Restricted Units'!$W$7:$W$399=\"Market Rate\")*('2. Assisted & Restricted Units'!$X$7:$X$399=\"80% AMI\"))","v":0},{"$f":"SUMPRODUCT(('2. Assisted & Restricted Units'!$E$7:$E$399=\"Ghocc\")*('2. Assisted & Restricted Units'!$W$7:$W$399=\"MHP\")*('2. Assisted & Restricted Units'!$X$7:$X$399=\"80% AMI\"))","v":0},{"$f":"SUMPRODUCT(('2. Assisted & Restricted Units'!$E$7:$E$399=\"Ghocc\")*('2. Assisted & Restricted Units'!$W$7:$W$399=\"NonAssisted\")*('2. Assisted & Restricted Units'!$X$7:$X$399=\"80% AMI\"))","v":0},{"$f":"SUMPRODUCT(('2. Assisted & Restricted Units'!$E$7:$E$399=\"Ghocc\")*('2. Assisted & Restricted Units'!$W$7:$W$399=\"Other Restr\")*('2. Assisted & Restricted Units'!$X$7:$X$399=\"80% AMI\"))","v":0},{"$f":"SUMPRODUCT(('2. Assisted & Restricted Units'!$E$7:$E$399=\"Ghocc\")*('2. Assisted & Restricted Units'!$W$7:$W$399=\"RHCP-B\")*('2. Assisted & Restricted Units'!$X$7:$X$399=\"80% AMI\"))","v":0},{"$f":"SUMPRODUCT(('2. Assisted & Restricted Units'!$E$7:$E$399=\"Ghocc\")*('2. Assisted & Restricted Units'!$W$7:$W$399=\"SERA\")*('2. Assisted & Restricted Units'!$X$7:$X$399=\"80% AMI\"))","v":0},{"$f":"SUMPRODUCT(('2. Assisted & Restricted Units'!$E$7:$E$399=\"Ghocc\")*('2. Assisted & Restricted Units'!$W$7:$W$399=\"SUHRP\")*('2. Assisted & Restricted Units'!$X$7:$X$399=\"80% AMI\"))","v":0},{"$f":"SUMPRODUCT(('2. Assisted & Restricted Units'!$E$7:$E$399=\"Ghocc\")*('2. Assisted & Restricted Units'!$W$7:$W$399=\"TOD\")*('2. Assisted & Restricted Units'!$X$7:$X$399=\"80% AMI\"))","v":0},{"$f":"SUMPRODUCT(('2. Assisted & Restricted Units'!$E$7:$E$399=\"Ghocc\")*('2. Assisted & Restricted Units'!$W$7:$W$399=\"707-E\")*('2. Assisted & Restricted Units'!$X$7:$X$399=\"80% AMI\"))","v":0},{"$f":"SUMPRODUCT(('2. Assisted & Restricted Units'!$E$7:$E$399=\"Ghocc\")*('2. Assisted & Restricted Units'!$W$7:$W$399=\"707-N\")*('2. Assisted & Restricted Units'!$X$7:$X$399=\"80% AMI\"))","v":0}]
["Ghocc 20% SMI",{"$f":"SUMPRODUCT(('2. Assisted & Restricted Units'!$E$7:$E$399=\"Ghocc\")*('2. Assisted & Restricted Units'!$W$7:$W$399=\"CALDAP\")*('2. Assisted & Restricted Units'!$X$7:$X$399=\"20% SMI\"))","v":0},{"$f":"SUMPRODUCT(('2. Assisted & Restricted Units'!$E$7:$E$399=\"Ghocc\")*('2. Assisted & Restricted Units'!$W$7:$W$399=\"CHRP-R\")*('2. Assisted & Restricted Units'!$X$7:$X$399=\"20% SMI\"))","v":0},{"$f":"SUMPRODUCT(('2. Assisted & Restricted Units'!$E$7:$E$399=\"Ghocc\")*('2. Assisted & Restricted Units'!$W$7:$W$399=\"DDS\")*('2. Assisted & Restricted Units'!$X$7:$X$399=\"20% SMI\"))","v":0},{"$f":"SUMPRODUCT(('2. Assisted & Restricted Units'!$E$7:$E$399=\"Ghocc\")*('2. Assisted & Restricted Units'!$W$7:$W$399=\"DPRLP\")*('2. Assisted & Restricted Units'!$X$7:$X$399=\"20% SMI\"))","v":0},{"$f":"SUMPRODUCT(('2. Assisted & Restricted Units'!$E$7:$E$399=\"Ghocc\")*('2. Assisted & Restricted Units'!$W$7:$W$399=\"FHDP\")*('2. Assisted & Restricted Units'!$X$7:$X$399=\"20% SMI\"))","v":0},{"$f":"SUMPRODUCT(('2. Assisted & Restricted Units'!$E$7:$E$399=\"Ghocc\")*('2. Assisted & Restricted Units'!$W$7:$W$399=\"FMTW\")*('2. Assisted & Restricted Units'!$X$7:$X$399=\"20% SMI\"))","v":0},null,{"$f":"SUMPRODUCT(('2. Assisted & Restricted Units'!$E$7:$E$399=\"Ghocc\")*('2. Assisted & Restricted Units'!$W$7:$W$399=\"HOME\")*('2. Assisted & Restricted Units'!$X$7:$X$399=\"20% SMI\"))","v":0},{"$f":"SUMPRODUCT(('2. Assisted & Restricted Units'!$E$7:$E$399=\"Ghocc\")*('2. Assisted & Restricted Units'!$W$7:$W$399=\"Market Rate\")*('2. Assisted & Restricted Units'!$X$7:$X$399=\"20% SMI\"))","v":0},{"$f":"SUMPRODUCT(('2. Assisted & Restricted Units'!$E$7:$E$399=\"Ghocc\")*('2. Assisted & Restricted Units'!$W$7:$W$399=\"MHP\")*('2. Assisted & Restricted Units'!$X$7:$X$399=\"20% SMI\"))","v":0},{"$f":"SUMPRODUCT(('2. Assisted & Restricted Units'!$E$7:$E$399=\"Ghocc\")*('2. Assisted & Restricted Units'!$W$7:$W$399=\"NonAssisted\")*('2. Assisted & Restricted Units'!$X$7:$X$399=\"20% SMI\"))","v":0},{"$f":"SUMPRODUCT(('2. Assisted & Restricted Units'!$E$7:$E$399=\"Ghocc\")*('2. Assisted & Restricted Units'!$W$7:$W$399=\"Other Restr\")*('2. Assisted & Restricted Units'!$X$7:$X$399=\"20% SMI\"))","v":0},{"$f":"SUMPRODUCT(('2. Assisted & Restricted Units'!$E$7:$E$399=\"Ghocc\")*('2. Assisted & Restricted Units'!$W$7:$W$399=\"RHCP-B\")*('2. Assisted & Restricted Units'!$X$7:$X$399=\"20% SMI\"))","v":0},{"$f":"SUMPRODUCT(('2. Assisted & Restricted Units'!$E$7:$E$399=\"Ghocc\")*('2. Assisted & Restricted Units'!$W$7:$W$399=\"SERA\")*('2. Assisted & Restricted Units'!$X$7:$X$399=\"20% SMI\"))","v":0},{"$f":"SUMPRODUCT(('2. Assisted & Restricted Units'!$E$7:$E$399=\"Ghocc\")*('2. Assisted & Restricted Units'!$W$7:$W$399=\"SUHRP\")*('2. Assisted & Restricted Units'!$X$7:$X$399=\"20% SMI\"))","v":0},{"$f":"SUMPRODUCT(('2. Assisted & Restricted Units'!$E$7:$E$399=\"Ghocc\")*('2. Assisted & Restricted Units'!$W$7:$W$399=\"TOD\")*('2. Assisted & Restricted Units'!$X$7:$X$399=\"20% SMI\"))","v":0},{"$f":"SUMPRODUCT(('2. Assisted & Restricted Units'!$E$7:$E$399=\"Ghocc\")*('2. Assisted & Restricted Units'!$W$7:$W$399=\"707-E\")*('2. Assisted & Restricted Units'!$X$7:$X$399=\"20% SMI\"))","v":0},{"$f":"SUMPRODUCT(('2. Assisted & Restricted Units'!$E$7:$E$399=\"Ghocc\")*('2. Assisted & Restricted Units'!$W$7:$W$399=\"707-N\")*('2. Assisted & Restricted Units'!$X$7:$X$399=\"20% SMI\"))","v":0}]
["Ghocc 25% SMI",{"$f":"SUMPRODUCT(('2. Assisted & Restricted Units'!$E$7:$E$399=\"Ghocc\")*('2. Assisted & Restricted Units'!$W$7:$W$399=\"CALDAP\")*('2. Assisted & Restricted Units'!$X$7:$X$399=\"25% SMI\"))","v":0},{"$f":"SUMPRODUCT(('2. Assisted & Restricted Units'!$E$7:$E$399=\"Ghocc\")*('2. Assisted & Restricted Units'!$W$7:$W$399=\"CHRP-R\")*('2. Assisted & Restricted Units'!$X$7:$X$399=\"25% SMI\"))","v":0},{"$f":"SUMPRODUCT(('2. Assisted & Restricted Units'!$E$7:$E$399=\"Ghocc\")*('2. Assisted & Restricted Units'!$W$7:$W$399=\"DDS\")*('2. Assisted & Restricted Units'!$X$7:$X$399=\"25% SMI\"))","v":0},{"$f":"SUMPRODUCT(('2. Assisted & Restricted Units'!$E$7:$E$399=\"Ghocc\")*('2. Assisted & Restricted Units'!$W$7:$W$399=\"DPRLP\")*('2. Assisted & Restricted Units'!$X$7:$X$399=\"25% SMI\"))","v":0},{"$f":"SUMPRODUCT(('2. Assisted & Restricted Units'!$E$7:$E$399=\"Ghocc\")*('2. Assisted & Restricted Units'!$W$7:$W$399=\"FHDP\")*('2. Assisted & Restricted Units'!$X$7:$X$399=\"25% SMI\"))","v":0},{"$f":"SUMPRODUCT(('2. Assisted & Restricted Units'!$E$7:$E$399=\"Ghocc\")*('2. Assisted & Restricted Units'!$W$7:$W$399=\"FMTW\")*('2. Assisted & Restricted Units'!$X$7:$X$399=\"25% SMI\"))","v":0},null,{"$f":"SUMPRODUCT(('2. Assisted & Restricted Units'!$E$7:$E$399=\"Ghocc\")*('2. Assisted & Restricted Units'!$W$7:$W$399=\"HOME\")*('2. Assisted & Restricted Units'!$X$7:$X$399=\"25% SMI\"))","v":0},{"$f":"SUMPRODUCT(('2. Assisted & Restricted Units'!$E$7:$E$399=\"Ghocc\")*('2. Assisted & Restricted Units'!$W$7:$W$399=\"Market Rate\")*('2. Assisted & Restricted Units'!$X$7:$X$399=\"25% SMI\"))","v":0},{"$f":"SUMPRODUCT(('2. Assisted & Restricted Units'!$E$7:$E$399=\"Ghocc\")*('2. Assisted & Restricted Units'!$W$7:$W$399=\"MHP\")*('2. Assisted & Restricted Units'!$X$7:$X$399=\"25% SMI\"))","v":0},{"$f":"SUMPRODUCT(('2. Assisted & Restricted Units'!$E$7:$E$399=\"Ghocc\")*('2. Assisted & Restricted Units'!$W$7:$W$399=\"NonAssisted\")*('2. Assisted & Restricted Units'!$X$7:$X$399=\"25% SMI\"))","v":0},{"$f":"SUMPRODUCT(('2. Assisted & Restricted Units'!$E$7:$E$399=\"Ghocc\")*('2. Assisted & Restricted Units'!$W$7:$W$399=\"Other Restr\")*('2. Assisted & Restricted Units'!$X$7:$X$399=\"25% SMI\"))","v":0},{"$f":"SUMPRODUCT(('2. Assisted & Restricted Units'!$E$7:$E$399=\"Ghocc\")*('2. Assisted & Restricted Units'!$W$7:$W$399=\"RHCP-B\")*('2. Assisted & Restricted Units'!$X$7:$X$399=\"25% SMI\"))","v":0},{"$f":"SUMPRODUCT(('2. Assisted & Restricted Units'!$E$7:$E$399=\"Ghocc\")*('2. Assisted & Restricted Units'!$W$7:$W$399=\"SERA\")*('2. Assisted & Restricted Units'!$X$7:$X$399=\"25% SMI\"))","v":0},{"$f":"SUMPRODUCT(('2. Assisted & Restricted Units'!$E$7:$E$399=\"Ghocc\")*('2. Assisted & Restricted Units'!$W$7:$W$399=\"SUHRP\")*('2. Assisted & Restricted Units'!$X$7:$X$399=\"25% SMI\"))","v":0},{"$f":"SUMPRODUCT(('2. Assisted & Restricted Units'!$E$7:$E$399=\"Ghocc\")*('2. Assisted & Restricted Units'!$W$7:$W$399=\"TOD\")*('2. Assisted & Restricted Units'!$X$7:$X$399=\"25% SMI\"))","v":0},{"$f":"SUMPRODUCT(('2. Assisted & Restricted Units'!$E$7:$E$399=\"Ghocc\")*('2. Assisted & Restricted Units'!$W$7:$W$399=\"707-E\")*('2. Assisted & Restricted Units'!$X$7:$X$399=\"25% SMI\"))","v":0},{"$f":"SUMPRODUCT(('2. Assisted & Restricted Units'!$E$7:$E$399=\"Ghocc\")*('2. Assisted & Restricted Units'!$W$7:$W$399=\"707-N\")*('2. Assisted & Restricted Units'!$X$7:$X$399=\"25% SMI\"))","v":0}]
["Ghocc 30% SMI",{"$f":"SUMPRODUCT(('2. Assisted & Restricted Units'!$E$7:$E$399=\"Ghocc\")*('2. Assisted & Restricted Units'!$W$7:$W$399=\"CALDAP\")*('2. Assisted & Restricted Units'!$X$7:$X$399=\"30% SMI\"))","v":0},{"$f":"SUMPRODUCT(('2. Assisted & Restricted Units'!$E$7:$E$399=\"Ghocc\")*('2. Assisted & Restricted Units'!$W$7:$W$399=\"CHRP-R\")*('2. Assisted & Restricted Units'!$X$7:$X$399=\"30% SMI\"))","v":0},{"$f":"SUMPRODUCT(('2. Assisted & Restricted Units'!$E$7:$E$399=\"Ghocc\")*('2. Assisted & Restricted Units'!$W$7:$W$399=\"DDS\")*('2. Assisted & Restricted Units'!$X$7:$X$399=\"30% SMI\"))","v":0},{"$f":"SUMPRODUCT(('2. Assisted & Restricted Units'!$E$7:$E$399=\"Ghocc\")*('2. Assisted & Restricted Units'!$W$7:$W$399=\"DPRLP\")*('2. Assisted & Restricted Units'!$X$7:$X$399=\"30% SMI\"))","v":0},{"$f":"SUMPRODUCT(('2. Assisted & Restricted Units'!$E$7:$E$399=\"Ghocc\")*('2. Assisted & Restricted Units'!$W$7:$W$399=\"FHDP\")*('2. Assisted & Restricted Units'!$X$7:$X$399=\"30% SMI\"))","v":0},{"$f":"SUMPRODUCT(('2. Assisted & Restricted Units'!$E$7:$E$399=\"Ghocc\")*('2. Assisted & Restricted Units'!$W$7:$W$399=\"FMTW\")*('2. Assisted & Restricted Units'!$X$7:$X$399=\"30% SMI\"))","v":0},null,{"$f":"SUMPRODUCT(('2. Assisted & Restricted Units'!$E$7:$E$399=\"Ghocc\")*('2. Assisted & Restricted Units'!$W$7:$W$399=\"HOME\")*('2. Assisted & Restricted Units'!$X$7:$X$399=\"30% SMI\"))","v":0},{"$f":"SUMPRODUCT(('2. Assisted & Restricted Units'!$E$7:$E$399=\"Ghocc\")*('2. Assisted & Restricted Units'!$W$7:$W$399=\"Market Rate\")*('2. Assisted & Restricted Units'!$X$7:$X$399=\"30% SMI\"))","v":0},{"$f":"SUMPRODUCT(('2. Assisted & Restricted Units'!$E$7:$E$399=\"Ghocc\")*('2. Assisted & Restricted Units'!$W$7:$W$399=\"MHP\")*('2. Assisted & Restricted Units'!$X$7:$X$399=\"30% SMI\"))","v":0},{"$f":"SUMPRODUCT(('2. Assisted & Restricted Units'!$E$7:$E$399=\"Ghocc\")*('2. Assisted & Restricted Units'!$W$7:$W$399=\"NonAssisted\")*('2. Assisted & Restricted Units'!$X$7:$X$399=\"30% SMI\"))","v":0},{"$f":"SUMPRODUCT(('2. Assisted & Restricted Units'!$E$7:$E$399=\"Ghocc\")*('2. Assisted & Restricted Units'!$W$7:$W$399=\"Other Restr\")*('2. Assisted & Restricted Units'!$X$7:$X$399=\"30% SMI\"))","v":0},{"$f":"SUMPRODUCT(('2. Assisted & Restricted Units'!$E$7:$E$399=\"Ghocc\")*('2. Assisted & Restricted Units'!$W$7:$W$399=\"RHCP-B\")*('2. Assisted & Restricted Units'!$X$7:$X$399=\"30% SMI\"))","v":0},{"$f":"SUMPRODUCT(('2. Assisted & Restricted Units'!$E$7:$E$399=\"Ghocc\")*('2. Assisted & Restricted Units'!$W$7:$W$399=\"SERA\")*('2. Assisted & Restricted Units'!$X$7:$X$399=\"30% SMI\"))","v":0},{"$f":"SUMPRODUCT(('2. Assisted & Restricted Units'!$E$7:$E$399=\"Ghocc\")*('2. Assisted & Restricted Units'!$W$7:$W$399=\"SUHRP\")*('2. Assisted & Restricted Units'!$X$7:$X$399=\"30% SMI\"))","v":0},{"$f":"SUMPRODUCT(('2. Assisted & Restricted Units'!$E$7:$E$399=\"Ghocc\")*('2. Assisted & Restricted Units'!$W$7:$W$399=\"TOD\")*('2. Assisted & Restricted Units'!$X$7:$X$399=\"30% SMI\"))","v":0},{"$f":"SUMPRODUCT(('2. Assisted & Restricted Units'!$E$7:$E$399=\"Ghocc\")*('2. Assisted & Restricted Units'!$W$7:$W$399=\"707-E\")*('2. Assisted & Restricted Units'!$X$7:$X$399=\"30% SMI\"))","v":0},{"$f":"SUMPRODUCT(('2. Assisted & Restricted Units'!$E$7:$E$399=\"Ghocc\")*('2. Assisted & Restricted Units'!$W$7:$W$399=\"707-N\")*('2. Assisted & Restricted Units'!$X$7:$X$399=\"30% SMI\"))","v":0}]
["Ghocc 35% SMI",{"$f":"SUMPRODUCT(('2. Assisted & Restricted Units'!$E$7:$E$399=\"Ghocc\")*('2. Assisted & Restricted Units'!$W$7:$W$399=\"CALDAP\")*('2. Assisted & Restricted Units'!$X$7:$X$399=\"35% SMI\"))","v":0},{"$f":"SUMPRODUCT(('2. Assisted & Restricted Units'!$E$7:$E$399=\"Ghocc\")*('2. Assisted & Restricted Units'!$W$7:$W$399=\"CHRP-R\")*('2. Assisted & Restricted Units'!$X$7:$X$399=\"35% SMI\"))","v":0},{"$f":"SUMPRODUCT(('2. Assisted & Restricted Units'!$E$7:$E$399=\"Ghocc\")*('2. Assisted & Restricted Units'!$W$7:$W$399=\"DDS\")*('2. Assisted & Restricted Units'!$X$7:$X$399=\"35% SMI\"))","v":0},{"$f":"SUMPRODUCT(('2. Assisted & Restricted Units'!$E$7:$E$399=\"Ghocc\")*('2. Assisted & Restricted Units'!$W$7:$W$399=\"DPRLP\")*('2. Assisted & Restricted Units'!$X$7:$X$399=\"35% SMI\"))","v":0},{"$f":"SUMPRODUCT(('2. Assisted & Restricted Units'!$E$7:$E$399=\"Ghocc\")*('2. Assisted & Restricted Units'!$W$7:$W$399=\"FHDP\")*('2. Assisted & Restricted Units'!$X$7:$X$399=\"35% SMI\"))","v":0},{"$f":"SUMPRODUCT(('2. Assisted & Restricted Units'!$E$7:$E$399=\"Ghocc\")*('2. Assisted & Restricted Units'!$W$7:$W$399=\"FMTW\")*('2. Assisted & Restricted Units'!$X$7:$X$399=\"35% SMI\"))","v":0},null,{"$f":"SUMPRODUCT(('2. Assisted & Restricted Units'!$E$7:$E$399=\"Ghocc\")*('2. Assisted & Restricted Units'!$W$7:$W$399=\"HOME\")*('2. Assisted & Restricted Units'!$X$7:$X$399=\"35% SMI\"))","v":0},{"$f":"SUMPRODUCT(('2. Assisted & Restricted Units'!$E$7:$E$399=\"Ghocc\")*('2. Assisted & Restricted Units'!$W$7:$W$399=\"Market Rate\")*('2. Assisted & Restricted Units'!$X$7:$X$399=\"35% SMI\"))","v":0},{"$f":"SUMPRODUCT(('2. Assisted & Restricted Units'!$E$7:$E$399=\"Ghocc\")*('2. Assisted & Restricted Units'!$W$7:$W$399=\"MHP\")*('2. Assisted & Restricted Units'!$X$7:$X$399=\"35% SMI\"))","v":0},{"$f":"SUMPRODUCT(('2. Assisted & Restricted Units'!$E$7:$E$399=\"Ghocc\")*('2. Assisted & Restricted Units'!$W$7:$W$399=\"NonAssisted\")*('2. Assisted & Restricted Units'!$X$7:$X$399=\"35% SMI\"))","v":0},{"$f":"SUMPRODUCT(('2. Assisted & Restricted Units'!$E$7:$E$399=\"Ghocc\")*('2. Assisted & Restricted Units'!$W$7:$W$399=\"Other Restr\")*('2. Assisted & Restricted Units'!$X$7:$X$399=\"35% SMI\"))","v":0},{"$f":"SUMPRODUCT(('2. Assisted & Restricted Units'!$E$7:$E$399=\"Ghocc\")*('2. Assisted & Restricted Units'!$W$7:$W$399=\"RHCP-B\")*('2. Assisted & Restricted Units'!$X$7:$X$399=\"35% SMI\"))","v":0},{"$f":"SUMPRODUCT(('2. Assisted & Restricted Units'!$E$7:$E$399=\"Ghocc\")*('2. Assisted & Restricted Units'!$W$7:$W$399=\"SERA\")*('2. Assisted & Restricted Units'!$X$7:$X$399=\"35% SMI\"))","v":0},{"$f":"SUMPRODUCT(('2. Assisted & Restricted Units'!$E$7:$E$399=\"Ghocc\")*('2. Assisted & Restricted Units'!$W$7:$W$399=\"SUHRP\")*('2. Assisted & Restricted Units'!$X$7:$X$399=\"35% SMI\"))","v":0},{"$f":"SUMPRODUCT(('2. Assisted & Restricted Units'!$E$7:$E$399=\"Ghocc\")*('2. Assisted & Restricted Units'!$W$7:$W$399=\"TOD\")*('2. Assisted & Restricted Units'!$X$7:$X$399=\"35% SMI\"))","v":0},{"$f":"SUMPRODUCT(('2. Assisted & Restricted Units'!$E$7:$E$399=\"Ghocc\")*('2. Assisted & Restricted Units'!$W$7:$W$399=\"707-E\")*('2. Assisted & Restricted Units'!$X$7:$X$399=\"35% SMI\"))","v":0},{"$f":"SUMPRODUCT(('2. Assisted & Restricted Units'!$E$7:$E$399=\"Ghocc\")*('2. Assisted & Restricted Units'!$W$7:$W$399=\"707-N\")*('2. Assisted & Restricted Units'!$X$7:$X$399=\"35% SMI\"))","v":0}]
["Ghocc 40% SMI",{"$f":"SUMPRODUCT(('2. Assisted & Restricted Units'!$E$7:$E$399=\"Ghocc\")*('2. Assisted & Restricted Units'!$W$7:$W$399=\"CALDAP\")*('2. Assisted & Restricted Units'!$X$7:$X$399=\"40% SMI\"))","v":0},{"$f":"SUMPRODUCT(('2. Assisted & Restricted Units'!$E$7:$E$399=\"Ghocc\")*('2. Assisted & Restricted Units'!$W$7:$W$399=\"CHRP-R\")*('2. Assisted & Restricted Units'!$X$7:$X$399=\"40% SMI\"))","v":0},{"$f":"SUMPRODUCT(('2. Assisted & Restricted Units'!$E$7:$E$399=\"Ghocc\")*('2. Assisted & Restricted Units'!$W$7:$W$399=\"DDS\")*('2. Assisted & Restricted Units'!$X$7:$X$399=\"40% SMI\"))","v":0},{"$f":"SUMPRODUCT(('2. Assisted & Restricted Units'!$E$7:$E$399=\"Ghocc\")*('2. Assisted & Restricted Units'!$W$7:$W$399=\"DPRLP\")*('2. Assisted & Restricted Units'!$X$7:$X$399=\"40% SMI\"))","v":0},{"$f":"SUMPRODUCT(('2. Assisted & Restricted Units'!$E$7:$E$399=\"Ghocc\")*('2. Assisted & Restricted Units'!$W$7:$W$399=\"FHDP\")*('2. Assisted & Restricted Units'!$X$7:$X$399=\"40% SMI\"))","v":0},{"$f":"SUMPRODUCT(('2. Assisted & Restricted Units'!$E$7:$E$399=\"Ghocc\")*('2. Assisted & Restricted Units'!$W$7:$W$399=\"FMTW\")*('2. Assisted & Restricted Units'!$X$7:$X$399=\"40% SMI\"))","v":0},null,{"$f":"SUMPRODUCT(('2. Assisted & Restricted Units'!$E$7:$E$399=\"Ghocc\")*('2. Assisted & Restricted Units'!$W$7:$W$399=\"HOME\")*('2. Assisted & Restricted Units'!$X$7:$X$399=\"40% SMI\"))","v":0},{"$f":"SUMPRODUCT(('2. Assisted & Restricted Units'!$E$7:$E$399=\"Ghocc\")*('2. Assisted & Restricted Units'!$W$7:$W$399=\"Market Rate\")*('2. Assisted & Restricted Units'!$X$7:$X$399=\"40% SMI\"))","v":0},{"$f":"SUMPRODUCT(('2. Assisted & Restricted Units'!$E$7:$E$399=\"Ghocc\")*('2. Assisted & Restricted Units'!$W$7:$W$399=\"MHP\")*('2. Assisted & Restricted Units'!$X$7:$X$399=\"40% SMI\"))","v":0},{"$f":"SUMPRODUCT(('2. Assisted & Restricted Units'!$E$7:$E$399=\"Ghocc\")*('2. Assisted & Restricted Units'!$W$7:$W$399=\"NonAssisted\")*('2. Assisted & Restricted Units'!$X$7:$X$399=\"40% SMI\"))","v":0},{"$f":"SUMPRODUCT(('2. Assisted & Restricted Units'!$E$7:$E$399=\"Ghocc\")*('2. Assisted & Restricted Units'!$W$7:$W$399=\"Other Restr\")*('2. Assisted & Restricted Units'!$X$7:$X$399=\"40% SMI\"))","v":0},{"$f":"SUMPRODUCT(('2. Assisted & Restricted Units'!$E$7:$E$399=\"Ghocc\")*('2. Assisted & Restricted Units'!$W$7:$W$399=\"RHCP-B\")*('2. Assisted & Restricted Units'!$X$7:$X$399=\"40% SMI\"))","v":0},{"$f":"SUMPRODUCT(('2. Assisted & Restricted Units'!$E$7:$E$399=\"Ghocc\")*('2. Assisted & Restricted Units'!$W$7:$W$399=\"SERA\")*('2. Assisted & Restricted Units'!$X$7:$X$399=\"40% SMI\"))","v":0},{"$f":"SUMPRODUCT(('2. Assisted & Restricted Units'!$E$7:$E$399=\"Ghocc\")*('2. Assisted & Restricted Units'!$W$7:$W$399=\"SUHRP\")*('2. Assisted & Restricted Units'!$X$7:$X$399=\"40% SMI\"))","v":0},{"$f":"SUMPRODUCT(('2. Assisted & Restricted Units'!$E$7:$E$399=\"Ghocc\")*('2. Assisted & Restricted Units'!$W$7:$W$399=\"TOD\")*('2. Assisted & Restricted Units'!$X$7:$X$399=\"40% SMI\"))","v":0},{"$f":"SUMPRODUCT(('2. Assisted & Restricted Units'!$E$7:$E$399=\"Ghocc\")*('2. Assisted & Restricted Units'!$W$7:$W$399=\"707-E\")*('2. Assisted & Restricted Units'!$X$7:$X$399=\"40% SMI\"))","v":0},{"$f":"SUMPRODUCT(('2. Assisted & Restricted Units'!$E$7:$E$399=\"Ghocc\")*('2. Assisted & Restricted Units'!$W$7:$W$399=\"707-N\")*('2. Assisted & Restricted Units'!$X$7:$X$399=\"40% SMI\"))","v":0}]
["Ghocc 45% SMI",{"$f":"SUMPRODUCT(('2. Assisted & Restricted Units'!$E$7:$E$399=\"Ghocc\")*('2. Assisted & Restricted Units'!$W$7:$W$399=\"CALDAP\")*('2. Assisted & Restricted Units'!$X$7:$X$399=\"45% SMI\"))","v":0},{"$f":"SUMPRODUCT(('2. Assisted & Restricted Units'!$E$7:$E$399=\"Ghocc\")*('2. Assisted & Restricted Units'!$W$7:$W$399=\"CHRP-R\")*('2. Assisted & Restricted Units'!$X$7:$X$399=\"45% SMI\"))","v":0},{"$f":"SUMPRODUCT(('2. Assisted & Restricted Units'!$E$7:$E$399=\"Ghocc\")*('2. Assisted & Restricted Units'!$W$7:$W$399=\"DDS\")*('2. Assisted & Restricted Units'!$X$7:$X$399=\"45% SMI\"))","v":0},{"$f":"SUMPRODUCT(('2. Assisted & Restricted Units'!$E$7:$E$399=\"Ghocc\")*('2. Assisted & Restricted Units'!$W$7:$W$399=\"DPRLP\")*('2. Assisted & Restricted Units'!$X$7:$X$399=\"45% SMI\"))","v":0},{"$f":"SUMPRODUCT(('2. Assisted & Restricted Units'!$E$7:$E$399=\"Ghocc\")*('2. Assisted & Restricted Units'!$W$7:$W$399=\"FHDP\")*('2. Assisted & Restricted Units'!$X$7:$X$399=\"45% SMI\"))","v":0},{"$f":"SUMPRODUCT(('2. Assisted & Restricted Units'!$E$7:$E$399=\"Ghocc\")*('2. Assisted & Restricted Units'!$W$7:$W$399=\"FMTW\")*('2. Assisted & Restricted Units'!$X$7:$X$399=\"45% SMI\"))","v":0},null,{"$f":"SUMPRODUCT(('2. Assisted & Restricted Units'!$E$7:$E$399=\"Ghocc\")*('2. Assisted & Restricted Units'!$W$7:$W$399=\"HOME\")*('2. Assisted & Restricted Units'!$X$7:$X$399=\"45% SMI\"))","v":0},{"$f":"SUMPRODUCT(('2. Assisted & Restricted Units'!$E$7:$E$399=\"Ghocc\")*('2. Assisted & Restricted Units'!$W$7:$W$399=\"Market Rate\")*('2. Assisted & Restricted Units'!$X$7:$X$399=\"45% SMI\"))","v":0},{"$f":"SUMPRODUCT(('2. Assisted & Restricted Units'!$E$7:$E$399=\"Ghocc\")*('2. Assisted & Restricted Units'!$W$7:$W$399=\"MHP\")*('2. Assisted & Restricted Units'!$X$7:$X$399=\"45% SMI\"))","v":0},{"$f":"SUMPRODUCT(('2. Assisted & Restricted Units'!$E$7:$E$399=\"Ghocc\")*('2. Assisted & Restricted Units'!$W$7:$W$399=\"NonAssisted\")*('2. Assisted & Restricted Units'!$X$7:$X$399=\"45% SMI\"))","v":0},{"$f":"SUMPRODUCT(('2. Assisted & Restricted Units'!$E$7:$E$399=\"Ghocc\")*('2. Assisted & Restricted Units'!$W$7:$W$399=\"Other Restr\")*('2. Assisted & Restricted Units'!$X$7:$X$399=\"45% SMI\"))","v":0},{"$f":"SUMPRODUCT(('2. Assisted & Restricted Units'!$E$7:$E$399=\"Ghocc\")*('2. Assisted & Restricted Units'!$W$7:$W$399=\"RHCP-B\")*('2. Assisted & Restricted Units'!$X$7:$X$399=\"45% SMI\"))","v":0},{"$f":"SUMPRODUCT(('2. Assisted & Restricted Units'!$E$7:$E$399=\"Ghocc\")*('2. Assisted & Restricted Units'!$W$7:$W$399=\"SERA\")*('2. Assisted & Restricted Units'!$X$7:$X$399=\"45% SMI\"))","v":0},{"$f":"SUMPRODUCT(('2. Assisted & Restricted Units'!$E$7:$E$399=\"Ghocc\")*('2. Assisted & Restricted Units'!$W$7:$W$399=\"SUHRP\")*('2. Assisted & Restricted Units'!$X$7:$X$399=\"45% SMI\"))","v":0},{"$f":"SUMPRODUCT(('2. Assisted & Restricted Units'!$E$7:$E$399=\"Ghocc\")*('2. Assisted & Restricted Units'!$W$7:$W$399=\"TOD\")*('2. Assisted & Restricted Units'!$X$7:$X$399=\"45% SMI\"))","v":0},{"$f":"SUMPRODUCT(('2. Assisted & Restricted Units'!$E$7:$E$399=\"Ghocc\")*('2. Assisted & Restricted Units'!$W$7:$W$399=\"707-E\")*('2. Assisted & Restricted Units'!$X$7:$X$399=\"45% SMI\"))","v":0},{"$f":"SUMPRODUCT(('2. Assisted & Restricted Units'!$E$7:$E$399=\"Ghocc\")*('2. Assisted & Restricted Units'!$W$7:$W$399=\"707-N\")*('2. Assisted & Restricted Units'!$X$7:$X$399=\"45% SMI\"))","v":0}]
["Ghocc 50% SMI",{"$f":"SUMPRODUCT(('2. Assisted & Restricted Units'!$E$7:$E$399=\"Ghocc\")*('2. Assisted & Restricted Units'!$W$7:$W$399=\"CALDAP\")*('2. Assisted & Restricted Units'!$X$7:$X$399=\"50% SMI\"))","v":0},{"$f":"SUMPRODUCT(('2. Assisted & Restricted Units'!$E$7:$E$399=\"Ghocc\")*('2. Assisted & Restricted Units'!$W$7:$W$399=\"CHRP-R\")*('2. Assisted & Restricted Units'!$X$7:$X$399=\"50% SMI\"))","v":0},{"$f":"SUMPRODUCT(('2. Assisted & Restricted Units'!$E$7:$E$399=\"Ghocc\")*('2. Assisted & Restricted Units'!$W$7:$W$399=\"DDS\")*('2. Assisted & Restricted Units'!$X$7:$X$399=\"50% SMI\"))","v":0},{"$f":"SUMPRODUCT(('2. Assisted & Restricted Units'!$E$7:$E$399=\"Ghocc\")*('2. Assisted & Restricted Units'!$W$7:$W$399=\"DPRLP\")*('2. Assisted & Restricted Units'!$X$7:$X$399=\"50% SMI\"))","v":0},{"$f":"SUMPRODUCT(('2. Assisted & Restricted Units'!$E$7:$E$399=\"Ghocc\")*('2. Assisted & Restricted Units'!$W$7:$W$399=\"FHDP\")*('2. Assisted & Restricted Units'!$X$7:$X$399=\"50% SMI\"))","v":0},{"$f":"SUMPRODUCT(('2. Assisted & Restricted Units'!$E$7:$E$399=\"Ghocc\")*('2. Assisted & Restricted Units'!$W$7:$W$399=\"FMTW\")*('2. Assisted & Restricted Units'!$X$7:$X$399=\"50% SMI\"))","v":0},null,{"$f":"SUMPRODUCT(('2. Assisted & Restricted Units'!$E$7:$E$399=\"Ghocc\")*('2. Assisted & Restricted Units'!$W$7:$W$399=\"HOME\")*('2. Assisted & Restricted Units'!$X$7:$X$399=\"50% SMI\"))","v":0},{"$f":"SUMPRODUCT(('2. Assisted & Restricted Units'!$E$7:$E$399=\"Ghocc\")*('2. Assisted & Restricted Units'!$W$7:$W$399=\"Market Rate\")*('2. Assisted & Restricted Units'!$X$7:$X$399=\"50% SMI\"))","v":0},{"$f":"SUMPRODUCT(('2. Assisted & Restricted Units'!$E$7:$E$399=\"Ghocc\")*('2. Assisted & Restricted Units'!$W$7:$W$399=\"MHP\")*('2. Assisted & Restricted Units'!$X$7:$X$399=\"50% SMI\"))","v":0},{"$f":"SUMPRODUCT(('2. Assisted & Restricted Units'!$E$7:$E$399=\"Ghocc\")*('2. Assisted & Restricted Units'!$W$7:$W$399=\"NonAssisted\")*('2. Assisted & Restricted Units'!$X$7:$X$399=\"50% SMI\"))","v":0},{"$f":"SUMPRODUCT(('2. Assisted & Restricted Units'!$E$7:$E$399=\"Ghocc\")*('2. Assisted & Restricted Units'!$W$7:$W$399=\"Other Restr\")*('2. Assisted & Restricted Units'!$X$7:$X$399=\"50% SMI\"))","v":0},{"$f":"SUMPRODUCT(('2. Assisted & Restricted Units'!$E$7:$E$399=\"Ghocc\")*('2. Assisted & Restricted Units'!$W$7:$W$399=\"RHCP-B\")*('2. Assisted & Restricted Units'!$X$7:$X$399=\"50% SMI\"))","v":0},{"$f":"SUMPRODUCT(('2. Assisted & Restricted Units'!$E$7:$E$399=\"Ghocc\")*('2. Assisted & Restricted Units'!$W$7:$W$399=\"SERA\")*('2. Assisted & Restricted Units'!$X$7:$X$399=\"50% SMI\"))","v":0},{"$f":"SUMPRODUCT(('2. Assisted & Restricted Units'!$E$7:$E$399=\"Ghocc\")*('2. Assisted & Restricted Units'!$W$7:$W$399=\"SUHRP\")*('2. Assisted & Restricted Units'!$X$7:$X$399=\"50% SMI\"))","v":0},{"$f":"SUMPRODUCT(('2. Assisted & Restricted Units'!$E$7:$E$399=\"Ghocc\")*('2. Assisted & Restricted Units'!$W$7:$W$399=\"TOD\")*('2. Assisted & Restricted Units'!$X$7:$X$399=\"50% SMI\"))","v":0},{"$f":"SUMPRODUCT(('2. Assisted & Restricted Units'!$E$7:$E$399=\"Ghocc\")*('2. Assisted & Restricted Units'!$W$7:$W$399=\"707-E\")*('2. Assisted & Restricted Units'!$X$7:$X$399=\"50% SMI\"))","v":0},{"$f":"SUMPRODUCT(('2. Assisted & Restricted Units'!$E$7:$E$399=\"Ghocc\")*('2. Assisted & Restricted Units'!$W$7:$W$399=\"707-N\")*('2. Assisted & Restricted Units'!$X$7:$X$399=\"50% SMI\"))","v":0}]
["Ghocc 100% SMI",{"$f":"SUMPRODUCT(('2. Assisted & Restricted Units'!$E$7:$E$399=\"Ghocc\")*('2. Assisted & Restricted Units'!$W$7:$W$399=\"CALDAP\")*('2. Assisted & Restricted Units'!$X$7:$X$399=\"100% SMI\"))","v":0},{"$f":"SUMPRODUCT(('2. Assisted & Restricted Units'!$E$7:$E$399=\"Ghocc\")*('2. Assisted & Restricted Units'!$W$7:$W$399=\"CHRP-R\")*('2. Assisted & Restricted Units'!$X$7:$X$399=\"100% SMI\"))","v":0},{"$f":"SUMPRODUCT(('2. Assisted & Restricted Units'!$E$7:$E$399=\"Ghocc\")*('2. Assisted & Restricted Units'!$W$7:$W$399=\"DDS\")*('2. Assisted & Restricted Units'!$X$7:$X$399=\"100% SMI\"))","v":0},{"$f":"SUMPRODUCT(('2. Assisted & Restricted Units'!$E$7:$E$399=\"Ghocc\")*('2. Assisted & Restricted Units'!$W$7:$W$399=\"DPRLP\")*('2. Assisted & Restricted Units'!$X$7:$X$399=\"100% SMI\"))","v":0},{"$f":"SUMPRODUCT(('2. Assisted & Restricted Units'!$E$7:$E$399=\"Ghocc\")*('2. Assisted & Restricted Units'!$W$7:$W$399=\"FHDP\")*('2. Assisted & Restricted Units'!$X$7:$X$399=\"100% SMI\"))","v":0},{"$f":"SUMPRODUCT(('2. Assisted & Restricted Units'!$E$7:$E$399=\"Ghocc\")*('2. Assisted & Restricted Units'!$W$7:$W$399=\"FMTW\")*('2. Assisted & Restricted Units'!$X$7:$X$399=\"100% SMI\"))","v":0},null,{"$f":"SUMPRODUCT(('2. Assisted & Restricted Units'!$E$7:$E$399=\"Ghocc\")*('2. Assisted & Restricted Units'!$W$7:$W$399=\"HOME\")*('2. Assisted & Restricted Units'!$X$7:$X$399=\"100% SMI\"))","v":0},{"$f":"SUMPRODUCT(('2. Assisted & Restricted Units'!$E$7:$E$399=\"Ghocc\")*('2. Assisted & Restricted Units'!$W$7:$W$399=\"Market Rate\")*('2. Assisted & Restricted Units'!$X$7:$X$399=\"100% SMI\"))","v":0},{"$f":"SUMPRODUCT(('2. Assisted & Restricted Units'!$E$7:$E$399=\"Ghocc\")*('2. Assisted & Restricted Units'!$W$7:$W$399=\"MHP\")*('2. Assisted & Restricted Units'!$X$7:$X$399=\"100% SMI\"))","v":0},{"$f":"SUMPRODUCT(('2. Assisted & Restricted Units'!$E$7:$E$399=\"Ghocc\")*('2. Assisted & Restricted Units'!$W$7:$W$399=\"NonAssisted\")*('2. Assisted & Restricted Units'!$X$7:$X$399=\"100% SMI\"))","v":0},{"$f":"SUMPRODUCT(('2. Assisted & Restricted Units'!$E$7:$E$399=\"Ghocc\")*('2. Assisted & Restricted Units'!$W$7:$W$399=\"Other Restr\")*('2. Assisted & Restricted Units'!$X$7:$X$399=\"100% SMI\"))","v":0},{"$f":"SUMPRODUCT(('2. Assisted & Restricted Units'!$E$7:$E$399=\"Ghocc\")*('2. Assisted & Restricted Units'!$W$7:$W$399=\"RHCP-B\")*('2. Assisted & Restricted Units'!$X$7:$X$399=\"100% SMI\"))","v":0},{"$f":"SUMPRODUCT(('2. Assisted & Restricted Units'!$E$7:$E$399=\"Ghocc\")*('2. Assisted & Restricted Units'!$W$7:$W$399=\"SERA\")*('2. Assisted & Restricted Units'!$X$7:$X$399=\"100% SMI\"))","v":0},{"$f":"SUMPRODUCT(('2. Assisted & Restricted Units'!$E$7:$E$399=\"Ghocc\")*('2. Assisted & Restricted Units'!$W$7:$W$399=\"SUHRP\")*('2. Assisted & Restricted Units'!$X$7:$X$399=\"100% SMI\"))","v":0},{"$f":"SUMPRODUCT(('2. Assisted & Restricted Units'!$E$7:$E$399=\"Ghocc\")*('2. Assisted & Restricted Units'!$W$7:$W$399=\"TOD\")*('2. Assisted & Restricted Units'!$X$7:$X$399=\"100% SMI\"))","v":0},{"$f":"SUMPRODUCT(('2. Assisted & Restricted Units'!$E$7:$E$399=\"Ghocc\")*('2. Assisted & Restricted Units'!$W$7:$W$399=\"707-E\")*('2. Assisted & Restricted Units'!$X$7:$X$399=\"100% SMI\"))","v":0},{"$f":"SUMPRODUCT(('2. Assisted & Restricted Units'!$E$7:$E$399=\"Ghocc\")*('2. Assisted & Restricted Units'!$W$7:$W$399=\"707-N\")*('2. Assisted & Restricted Units'!$X$7:$X$399=\"100% SMI\"))","v":0}]
["Ghocc VLI HOME",{"$f":"SUMPRODUCT(('2. Assisted & Restricted Units'!$E$7:$E$399=\"Ghocc\")*('2. Assisted & Restricted Units'!$W$7:$W$399=\"CALDAP\")*('2. Assisted & Restricted Units'!$X$7:$X$399=\"VLI HOME\"))","v":0},{"$f":"SUMPRODUCT(('2. Assisted & Restricted Units'!$E$7:$E$399=\"Ghocc\")*('2. Assisted & Restricted Units'!$W$7:$W$399=\"CHRP-R\")*('2. Assisted & Restricted Units'!$X$7:$X$399=\"VLI HOME\"))","v":0},{"$f":"SUMPRODUCT(('2. Assisted & Restricted Units'!$E$7:$E$399=\"Ghocc\")*('2. Assisted & Restricted Units'!$W$7:$W$399=\"DDS\")*('2. Assisted & Restricted Units'!$X$7:$X$399=\"VLI HOME\"))","v":0},{"$f":"SUMPRODUCT(('2. Assisted & Restricted Units'!$E$7:$E$399=\"Ghocc\")*('2. Assisted & Restricted Units'!$W$7:$W$399=\"DPRLP\")*('2. Assisted & Restricted Units'!$X$7:$X$399=\"VLI HOME\"))","v":0},{"$f":"SUMPRODUCT(('2. Assisted & Restricted Units'!$E$7:$E$399=\"Ghocc\")*('2. Assisted & Restricted Units'!$W$7:$W$399=\"FHDP\")*('2. Assisted & Restricted Units'!$X$7:$X$399=\"VLI HOME\"))","v":0},{"$f":"SUMPRODUCT(('2. Assisted & Restricted Units'!$E$7:$E$399=\"Ghocc\")*('2. Assisted & Restricted Units'!$W$7:$W$399=\"FMTW\")*('2. Assisted & Restricted Units'!$X$7:$X$399=\"VLI HOME\"))","v":0},null,{"$f":"SUMPRODUCT(('2. Assisted & Restricted Units'!$E$7:$E$399=\"Ghocc\")*('2. Assisted & Restricted Units'!$W$7:$W$399=\"HOME\")*('2. Assisted & Restricted Units'!$X$7:$X$399=\"VLI HOME\"))","v":0},{"$f":"SUMPRODUCT(('2. Assisted & Restricted Units'!$E$7:$E$399=\"Ghocc\")*('2. Assisted & Restricted Units'!$W$7:$W$399=\"Market Rate\")*('2. Assisted & Restricted Units'!$X$7:$X$399=\"VLI HOME\"))","v":0},{"$f":"SUMPRODUCT(('2. Assisted & Restricted Units'!$E$7:$E$399=\"Ghocc\")*('2. Assisted & Restricted Units'!$W$7:$W$399=\"MHP\")*('2. Assisted & Restricted Units'!$X$7:$X$399=\"VLI HOME\"))","v":0},{"$f":"SUMPRODUCT(('2. Assisted & Restricted Units'!$E$7:$E$399=\"Ghocc\")*('2. Assisted & Restricted Units'!$W$7:$W$399=\"NonAssisted\")*('2. Assisted & Restricted Units'!$X$7:$X$399=\"VLI HOME\"))","v":0},{"$f":"SUMPRODUCT(('2. Assisted & Restricted Units'!$E$7:$E$399=\"Ghocc\")*('2. Assisted & Restricted Units'!$W$7:$W$399=\"Other Restr\")*('2. Assisted & Restricted Units'!$X$7:$X$399=\"VLI HOME\"))","v":0},{"$f":"SUMPRODUCT(('2. Assisted & Restricted Units'!$E$7:$E$399=\"Ghocc\")*('2. Assisted & Restricted Units'!$W$7:$W$399=\"RHCP-B\")*('2. Assisted & Restricted Units'!$X$7:$X$399=\"VLI HOME\"))","v":0},{"$f":"SUMPRODUCT(('2. Assisted & Restricted Units'!$E$7:$E$399=\"Ghocc\")*('2. Assisted & Restricted Units'!$W$7:$W$399=\"SERA\")*('2. Assisted & Restricted Units'!$X$7:$X$399=\"VLI HOME\"))","v":0},{"$f":"SUMPRODUCT(('2. Assisted & Restricted Units'!$E$7:$E$399=\"Ghocc\")*('2. Assisted & Restricted Units'!$W$7:$W$399=\"SUHRP\")*('2. Assisted & Restricted Units'!$X$7:$X$399=\"VLI HOME\"))","v":0},{"$f":"SUMPRODUCT(('2. Assisted & Restricted Units'!$E$7:$E$399=\"Ghocc\")*('2. Assisted & Restricted Units'!$W$7:$W$399=\"TOD\")*('2. Assisted & Restricted Units'!$X$7:$X$399=\"VLI HOME\"))","v":0},{"$f":"SUMPRODUCT(('2. Assisted & Restricted Units'!$E$7:$E$399=\"Ghocc\")*('2. Assisted & Restricted Units'!$W$7:$W$399=\"707-E\")*('2. Assisted & Restricted Units'!$X$7:$X$399=\"VLI HOME\"))","v":0},{"$f":"SUMPRODUCT(('2. Assisted & Restricted Units'!$E$7:$E$399=\"Ghocc\")*('2. Assisted & Restricted Units'!$W$7:$W$399=\"707-N\")*('2. Assisted & Restricted Units'!$X$7:$X$399=\"VLI HOME\"))","v":0}]
["Ghocc LI HOME",{"$f":"SUMPRODUCT(('2. Assisted & Restricted Units'!$E$7:$E$399=\"Ghocc\")*('2. Assisted & Restricted Units'!$W$7:$W$399=\"CALDAP\")*('2. Assisted & Restricted Units'!$X$7:$X$399=\"LI HOME\"))","v":0},{"$f":"SUMPRODUCT(('2. Assisted & Restricted Units'!$E$7:$E$399=\"Ghocc\")*('2. Assisted & Restricted Units'!$W$7:$W$399=\"CHRP-R\")*('2. Assisted & Restricted Units'!$X$7:$X$399=\"LI HOME\"))","v":0},{"$f":"SUMPRODUCT(('2. Assisted & Restricted Units'!$E$7:$E$399=\"Ghocc\")*('2. Assisted & Restricted Units'!$W$7:$W$399=\"DDS\")*('2. Assisted & Restricted Units'!$X$7:$X$399=\"LI HOME\"))","v":0},{"$f":"SUMPRODUCT(('2. Assisted & Restricted Units'!$E$7:$E$399=\"Ghocc\")*('2. Assisted & Restricted Units'!$W$7:$W$399=\"DPRLP\")*('2. Assisted & Restricted Units'!$X$7:$X$399=\"LI HOME\"))","v":0},{"$f":"SUMPRODUCT(('2. Assisted & Restricted Units'!$E$7:$E$399=\"Ghocc\")*('2. Assisted & Restricted Units'!$W$7:$W$399=\"FHDP\")*('2. Assisted & Restricted Units'!$X$7:$X$399=\"LI HOME\"))","v":0},{"$f":"SUMPRODUCT(('2. Assisted & Restricted Units'!$E$7:$E$399=\"Ghocc\")*('2. Assisted & Restricted Units'!$W$7:$W$399=\"FMTW\")*('2. Assisted & Restricted Units'!$X$7:$X$399=\"LI HOME\"))","v":0},null,{"$f":"SUMPRODUCT(('2. Assisted & Restricted Units'!$E$7:$E$399=\"Ghocc\")*('2. Assisted & Restricted Units'!$W$7:$W$399=\"HOME\")*('2. Assisted & Restricted Units'!$X$7:$X$399=\"LI HOME\"))","v":0},{"$f":"SUMPRODUCT(('2. Assisted & Restricted Units'!$E$7:$E$399=\"Ghocc\")*('2. Assisted & Restricted Units'!$W$7:$W$399=\"Market Rate\")*('2. Assisted & Restricted Units'!$X$7:$X$399=\"LI HOME\"))","v":0},{"$f":"SUMPRODUCT(('2. Assisted & Restricted Units'!$E$7:$E$399=\"Ghocc\")*('2. Assisted & Restricted Units'!$W$7:$W$399=\"MHP\")*('2. Assisted & Restricted Units'!$X$7:$X$399=\"LI HOME\"))","v":0},{"$f":"SUMPRODUCT(('2. Assisted & Restricted Units'!$E$7:$E$399=\"Ghocc\")*('2. Assisted & Restricted Units'!$W$7:$W$399=\"NonAssisted\")*('2. Assisted & Restricted Units'!$X$7:$X$399=\"LI HOME\"))","v":0},{"$f":"SUMPRODUCT(('2. Assisted & Restricted Units'!$E$7:$E$399=\"Ghocc\")*('2. Assisted & Restricted Units'!$W$7:$W$399=\"Other Restr\")*('2. Assisted & Restricted Units'!$X$7:$X$399=\"LI HOME\"))","v":0},{"$f":"SUMPRODUCT(('2. Assisted & Restricted Units'!$E$7:$E$399=\"Ghocc\")*('2. Assisted & Restricted Units'!$W$7:$W$399=\"RHCP-B\")*('2. Assisted & Restricted Units'!$X$7:$X$399=\"LI HOME\"))","v":0},{"$f":"SUMPRODUCT(('2. Assisted & Restricted Units'!$E$7:$E$399=\"Ghocc\")*('2. Assisted & Restricted Units'!$W$7:$W$399=\"SERA\")*('2. Assisted & Restricted Units'!$X$7:$X$399=\"LI HOME\"))","v":0},{"$f":"SUMPRODUCT(('2. Assisted & Restricted Units'!$E$7:$E$399=\"Ghocc\")*('2. Assisted & Restricted Units'!$W$7:$W$399=\"SUHRP\")*('2. Assisted & Restricted Units'!$X$7:$X$399=\"LI HOME\"))","v":0},{"$f":"SUMPRODUCT(('2. Assisted & Restricted Units'!$E$7:$E$399=\"Ghocc\")*('2. Assisted & Restricted Units'!$W$7:$W$399=\"TOD\")*('2. Assisted & Restricted Units'!$X$7:$X$399=\"LI HOME\"))","v":0},{"$f":"SUMPRODUCT(('2. Assisted & Restricted Units'!$E$7:$E$399=\"Ghocc\")*('2. Assisted & Restricted Units'!$W$7:$W$399=\"707-E\")*('2. Assisted & Restricted Units'!$X$7:$X$399=\"LI HOME\"))","v":0},{"$f":"SUMPRODUCT(('2. Assisted & Restricted Units'!$E$7:$E$399=\"Ghocc\")*('2. Assisted & Restricted Units'!$W$7:$W$399=\"707-N\")*('2. Assisted & Restricted Units'!$X$7:$X$399=\"LI HOME\"))","v":0}]
["Ghocc VLI State",{"$f":"SUMPRODUCT(('2. Assisted & Restricted Units'!$E$7:$E$399=\"Ghocc\")*('2. Assisted & Restricted Units'!$W$7:$W$399=\"CALDAP\")*('2. Assisted & Restricted Units'!$X$7:$X$399=\"VLI State\"))","v":0},{"$f":"SUMPRODUCT(('2. Assisted & Restricted Units'!$E$7:$E$399=\"Ghocc\")*('2. Assisted & Restricted Units'!$W$7:$W$399=\"CHRP-R\")*('2. Assisted & Restricted Units'!$X$7:$X$399=\"VLI State\"))","v":0},{"$f":"SUMPRODUCT(('2. Assisted & Restricted Units'!$E$7:$E$399=\"Ghocc\")*('2. Assisted & Restricted Units'!$W$7:$W$399=\"DDS\")*('2. Assisted & Restricted Units'!$X$7:$X$399=\"VLI State\"))","v":0},{"$f":"SUMPRODUCT(('2. Assisted & Restricted Units'!$E$7:$E$399=\"Ghocc\")*('2. Assisted & Restricted Units'!$W$7:$W$399=\"DPRLP\")*('2. Assisted & Restricted Units'!$X$7:$X$399=\"VLI State\"))","v":0},{"$f":"SUMPRODUCT(('2. Assisted & Restricted Units'!$E$7:$E$399=\"Ghocc\")*('2. Assisted & Restricted Units'!$W$7:$W$399=\"FHDP\")*('2. Assisted & Restricted Units'!$X$7:$X$399=\"VLI State\"))","v":0},{"$f":"SUMPRODUCT(('2. Assisted & Restricted Units'!$E$7:$E$399=\"Ghocc\")*('2. Assisted & Restricted Units'!$W$7:$W$399=\"FMTW\")*('2. Assisted & Restricted Units'!$X$7:$X$399=\"VLI State\"))","v":0},null,{"$f":"SUMPRODUCT(('2. Assisted & Restricted Units'!$E$7:$E$399=\"Ghocc\")*('2. Assisted & Restricted Units'!$W$7:$W$399=\"HOME\")*('2. Assisted & Restricted Units'!$X$7:$X$399=\"VLI State\"))","v":0},{"$f":"SUMPRODUCT(('2. Assisted & Restricted Units'!$E$7:$E$399=\"Ghocc\")*('2. Assisted & Restricted Units'!$W$7:$W$399=\"Market Rate\")*('2. Assisted & Restricted Units'!$X$7:$X$399=\"VLI State\"))","v":0},{"$f":"SUMPRODUCT(('2. Assisted & Restricted Units'!$E$7:$E$399=\"Ghocc\")*('2. Assisted & Restricted Units'!$W$7:$W$399=\"MHP\")*('2. Assisted & Restricted Units'!$X$7:$X$399=\"VLI State\"))","v":0},{"$f":"SUMPRODUCT(('2. Assisted & Restricted Units'!$E$7:$E$399=\"Ghocc\")*('2. Assisted & Restricted Units'!$W$7:$W$399=\"NonAssisted\")*('2. Assisted & Restricted Units'!$X$7:$X$399=\"VLI State\"))","v":0},{"$f":"SUMPRODUCT(('2. Assisted & Restricted Units'!$E$7:$E$399=\"Ghocc\")*('2. Assisted & Restricted Units'!$W$7:$W$399=\"Other Restr\")*('2. Assisted & Restricted Units'!$X$7:$X$399=\"VLI State\"))","v":0},{"$f":"SUMPRODUCT(('2. Assisted & Restricted Units'!$E$7:$E$399=\"Ghocc\")*('2. Assisted & Restricted Units'!$W$7:$W$399=\"RHCP-B\")*('2. Assisted & Restricted Units'!$X$7:$X$399=\"VLI State\"))","v":0},{"$f":"SUMPRODUCT(('2. Assisted & Restricted Units'!$E$7:$E$399=\"Ghocc\")*('2. Assisted & Restricted Units'!$W$7:$W$399=\"SERA\")*('2. Assisted & Restricted Units'!$X$7:$X$399=\"VLI State\"))","v":0},{"$f":"SUMPRODUCT(('2. Assisted & Restricted Units'!$E$7:$E$399=\"Ghocc\")*('2. Assisted & Restricted Units'!$W$7:$W$399=\"SUHRP\")*('2. Assisted & Restricted Units'!$X$7:$X$399=\"VLI State\"))","v":0},{"$f":"SUMPRODUCT(('2. Assisted & Restricted Units'!$E$7:$E$399=\"Ghocc\")*('2. Assisted & Restricted Units'!$W$7:$W$399=\"TOD\")*('2. Assisted & Restricted Units'!$X$7:$X$399=\"VLI State\"))","v":0},{"$f":"SUMPRODUCT(('2. Assisted & Restricted Units'!$E$7:$E$399=\"Ghocc\")*('2. Assisted & Restricted Units'!$W$7:$W$399=\"707-E\")*('2. Assisted & Restricted Units'!$X$7:$X$399=\"VLI State\"))","v":0},{"$f":"SUMPRODUCT(('2. Assisted & Restricted Units'!$E$7:$E$399=\"Ghocc\")*('2. Assisted & Restricted Units'!$W$7:$W$399=\"707-N\")*('2. Assisted & Restricted Units'!$X$7:$X$399=\"VLI State\"))","v":0}]
["Ghocc LI State",{"$f":"SUMPRODUCT(('2. Assisted & Restricted Units'!$E$7:$E$399=\"Ghocc\")*('2. Assisted & Restricted Units'!$W$7:$W$399=\"CALDAP\")*('2. Assisted & Restricted Units'!$X$7:$X$399=\"LI State\"))","v":0},{"$f":"SUMPRODUCT(('2. Assisted & Restricted Units'!$E$7:$E$399=\"Ghocc\")*('2. Assisted & Restricted Units'!$W$7:$W$399=\"CHRP-R\")*('2. Assisted & Restricted Units'!$X$7:$X$399=\"LI State\"))","v":0},{"$f":"SUMPRODUCT(('2. Assisted & Restricted Units'!$E$7:$E$399=\"Ghocc\")*('2. Assisted & Restricted Units'!$W$7:$W$399=\"DDS\")*('2. Assisted & Restricted Units'!$X$7:$X$399=\"LI State\"))","v":0},{"$f":"SUMPRODUCT(('2. Assisted & Restricted Units'!$E$7:$E$399=\"Ghocc\")*('2. Assisted & Restricted Units'!$W$7:$W$399=\"DPRLP\")*('2. Assisted & Restricted Units'!$X$7:$X$399=\"LI State\"))","v":0},{"$f":"SUMPRODUCT(('2. Assisted & Restricted Units'!$E$7:$E$399=\"Ghocc\")*('2. Assisted & Restricted Units'!$W$7:$W$399=\"FHDP\")*('2. Assisted & Restricted Units'!$X$7:$X$399=\"LI State\"))","v":0},{"$f":"SUMPRODUCT(('2. Assisted & Restricted Units'!$E$7:$E$399=\"Ghocc\")*('2. Assisted & Restricted Units'!$W$7:$W$399=\"FMTW\")*('2. Assisted & Restricted Units'!$X$7:$X$399=\"LI State\"))","v":0},null,{"$f":"SUMPRODUCT(('2. Assisted & Restricted Units'!$E$7:$E$399=\"Ghocc\")*('2. Assisted & Restricted Units'!$W$7:$W$399=\"HOME\")*('2. Assisted & Restricted Units'!$X$7:$X$399=\"LI State\"))","v":0},{"$f":"SUMPRODUCT(('2. Assisted & Restricted Units'!$E$7:$E$399=\"Ghocc\")*('2. Assisted & Restricted Units'!$W$7:$W$399=\"Market Rate\")*('2. Assisted & Restricted Units'!$X$7:$X$399=\"LI State\"))","v":0},{"$f":"SUMPRODUCT(('2. Assisted & Restricted Units'!$E$7:$E$399=\"Ghocc\")*('2. Assisted & Restricted Units'!$W$7:$W$399=\"MHP\")*('2. Assisted & Restricted Units'!$X$7:$X$399=\"LI State\"))","v":0},{"$f":"SUMPRODUCT(('2. Assisted & Restricted Units'!$E$7:$E$399=\"Ghocc\")*('2. Assisted & Restricted Units'!$W$7:$W$399=\"NonAssisted\")*('2. Assisted & Restricted Units'!$X$7:$X$399=\"LI State\"))","v":0},{"$f":"SUMPRODUCT(('2. Assisted & Restricted Units'!$E$7:$E$399=\"Ghocc\")*('2. Assisted & Restricted Units'!$W$7:$W$399=\"Other Restr\")*('2. Assisted & Restricted Units'!$X$7:$X$399=\"LI State\"))","v":0},{"$f":"SUMPRODUCT(('2. Assisted & Restricted Units'!$E$7:$E$399=\"Ghocc\")*('2. Assisted & Restricted Units'!$W$7:$W$399=\"RHCP-B\")*('2. Assisted & Restricted Units'!$X$7:$X$399=\"LI State\"))","v":0},{"$f":"SUMPRODUCT(('2. Assisted & Restricted Units'!$E$7:$E$399=\"Ghocc\")*('2. Assisted & Restricted Units'!$W$7:$W$399=\"SERA\")*('2. Assisted & Restricted Units'!$X$7:$X$399=\"LI State\"))","v":0},{"$f":"SUMPRODUCT(('2. Assisted & Restricted Units'!$E$7:$E$399=\"Ghocc\")*('2. Assisted & Restricted Units'!$W$7:$W$399=\"SUHRP\")*('2. Assisted & Restricted Units'!$X$7:$X$399=\"LI State\"))","v":0},{"$f":"SUMPRODUCT(('2. Assisted & Restricted Units'!$E$7:$E$399=\"Ghocc\")*('2. Assisted & Restricted Units'!$W$7:$W$399=\"TOD\")*('2. Assisted & Restricted Units'!$X$7:$X$399=\"LI State\"))","v":0},{"$f":"SUMPRODUCT(('2. Assisted & Restricted Units'!$E$7:$E$399=\"Ghocc\")*('2. Assisted & Restricted Units'!$W$7:$W$399=\"707-E\")*('2. Assisted & Restricted Units'!$X$7:$X$399=\"LI State\"))","v":0},{"$f":"SUMPRODUCT(('2. Assisted & Restricted Units'!$E$7:$E$399=\"Ghocc\")*('2. Assisted & Restricted Units'!$W$7:$W$399=\"707-N\")*('2. Assisted & Restricted Units'!$X$7:$X$399=\"LI State\"))","v":0}]
["Ghocc CalHFA",{"$f":"SUMPRODUCT(('2. Assisted & Restricted Units'!$E$7:$E$399=\"Ghocc\")*('2. Assisted & Restricted Units'!$W$7:$W$399=\"CALDAP\")*('2. Assisted & Restricted Units'!$X$7:$X$399=\"CalHFA\"))","v":0},{"$f":"SUMPRODUCT(('2. Assisted & Restricted Units'!$E$7:$E$399=\"Ghocc\")*('2. Assisted & Restricted Units'!$W$7:$W$399=\"CHRP-R\")*('2. Assisted & Restricted Units'!$X$7:$X$399=\"CalHFA\"))","v":0},{"$f":"SUMPRODUCT(('2. Assisted & Restricted Units'!$E$7:$E$399=\"Ghocc\")*('2. Assisted & Restricted Units'!$W$7:$W$399=\"DDS\")*('2. Assisted & Restricted Units'!$X$7:$X$399=\"CalHFA\"))","v":0},{"$f":"SUMPRODUCT(('2. Assisted & Restricted Units'!$E$7:$E$399=\"Ghocc\")*('2. Assisted & Restricted Units'!$W$7:$W$399=\"DPRLP\")*('2. Assisted & Restricted Units'!$X$7:$X$399=\"CalHFA\"))","v":0},{"$f":"SUMPRODUCT(('2. Assisted & Restricted Units'!$E$7:$E$399=\"Ghocc\")*('2. Assisted & Restricted Units'!$W$7:$W$399=\"FHDP\")*('2. Assisted & Restricted Units'!$X$7:$X$399=\"CalHFA\"))","v":0},{"$f":"SUMPRODUCT(('2. Assisted & Restricted Units'!$E$7:$E$399=\"Ghocc\")*('2. Assisted & Restricted Units'!$W$7:$W$399=\"FMTW\")*('2. Assisted & Restricted Units'!$X$7:$X$399=\"CalHFA\"))","v":0},null,{"$f":"SUMPRODUCT(('2. Assisted & Restricted Units'!$E$7:$E$399=\"Ghocc\")*('2. Assisted & Restricted Units'!$W$7:$W$399=\"HOME\")*('2. Assisted & Restricted Units'!$X$7:$X$399=\"CalHFA\"))","v":0},{"$f":"SUMPRODUCT(('2. Assisted & Restricted Units'!$E$7:$E$399=\"Ghocc\")*('2. Assisted & Restricted Units'!$W$7:$W$399=\"Market Rate\")*('2. Assisted & Restricted Units'!$X$7:$X$399=\"CalHFA\"))","v":0},{"$f":"SUMPRODUCT(('2. Assisted & Restricted Units'!$E$7:$E$399=\"Ghocc\")*('2. Assisted & Restricted Units'!$W$7:$W$399=\"MHP\")*('2. Assisted & Restricted Units'!$X$7:$X$399=\"CalHFA\"))","v":0},{"$f":"SUMPRODUCT(('2. Assisted & Restricted Units'!$E$7:$E$399=\"Ghocc\")*('2. Assisted & Restricted Units'!$W$7:$W$399=\"NonAssisted\")*('2. Assisted & Restricted Units'!$X$7:$X$399=\"CalHFA\"))","v":0},{"$f":"SUMPRODUCT(('2. Assisted & Restricted Units'!$E$7:$E$399=\"Ghocc\")*('2. Assisted & Restricted Units'!$W$7:$W$399=\"Other Restr\")*('2. Assisted & Restricted Units'!$X$7:$X$399=\"CalHFA\"))","v":0},{"$f":"SUMPRODUCT(('2. Assisted & Restricted Units'!$E$7:$E$399=\"Ghocc\")*('2. Assisted & Restricted Units'!$W$7:$W$399=\"RHCP-B\")*('2. Assisted & Restricted Units'!$X$7:$X$399=\"CalHFA\"))","v":0},{"$f":"SUMPRODUCT(('2. Assisted & Restricted Units'!$E$7:$E$399=\"Ghocc\")*('2. Assisted & Restricted Units'!$W$7:$W$399=\"SERA\")*('2. Assisted & Restricted Units'!$X$7:$X$399=\"CalHFA\"))","v":0},{"$f":"SUMPRODUCT(('2. Assisted & Restricted Units'!$E$7:$E$399=\"Ghocc\")*('2. Assisted & Restricted Units'!$W$7:$W$399=\"SUHRP\")*('2. Assisted & Restricted Units'!$X$7:$X$399=\"CalHFA\"))","v":0},{"$f":"SUMPRODUCT(('2. Assisted & Restricted Units'!$E$7:$E$399=\"Ghocc\")*('2. Assisted & Restricted Units'!$W$7:$W$399=\"TOD\")*('2. Assisted & Restricted Units'!$X$7:$X$399=\"CalHFA\"))","v":0},{"$f":"SUMPRODUCT(('2. Assisted & Restricted Units'!$E$7:$E$399=\"Ghocc\")*('2. Assisted & Restricted Units'!$W$7:$W$399=\"707-E\")*('2. Assisted & Restricted Units'!$X$7:$X$399=\"CalHFA\"))","v":0},{"$f":"SUMPRODUCT(('2. Assisted & Restricted Units'!$E$7:$E$399=\"Ghocc\")*('2. Assisted & Restricted Units'!$W$7:$W$399=\"707-N\")*('2. Assisted & Restricted Units'!$X$7:$X$399=\"CalHFA\"))","v":0}]
["Ghocc Sec 8",{"$f":"SUMPRODUCT(('2. Assisted & Restricted Units'!$E$7:$E$399=\"Ghocc\")*('2. Assisted & Restricted Units'!$W$7:$W$399=\"CALDAP\")*('2. Assisted & Restricted Units'!$X$7:$X$399=\"Sec 8\"))","v":0},{"$f":"SUMPRODUCT(('2. Assisted & Restricted Units'!$E$7:$E$399=\"Ghocc\")*('2. Assisted & Restricted Units'!$W$7:$W$399=\"CHRP-R\")*('2. Assisted & Restricted Units'!$X$7:$X$399=\"Sec 8\"))","v":0},{"$f":"SUMPRODUCT(('2. Assisted & Restricted Units'!$E$7:$E$399=\"Ghocc\")*('2. Assisted & Restricted Units'!$W$7:$W$399=\"DDS\")*('2. Assisted & Restricted Units'!$X$7:$X$399=\"Sec 8\"))","v":0},{"$f":"SUMPRODUCT(('2. Assisted & Restricted Units'!$E$7:$E$399=\"Ghocc\")*('2. Assisted & Restricted Units'!$W$7:$W$399=\"DPRLP\")*('2. Assisted & Restricted Units'!$X$7:$X$399=\"Sec 8\"))","v":0},{"$f":"SUMPRODUCT(('2. Assisted & Restricted Units'!$E$7:$E$399=\"Ghocc\")*('2. Assisted & Restricted Units'!$W$7:$W$399=\"FHDP\")*('2. Assisted & Restricted Units'!$X$7:$X$399=\"Sec 8\"))","v":0},{"$f":"SUMPRODUCT(('2. Assisted & Restricted Units'!$E$7:$E$399=\"Ghocc\")*('2. Assisted & Restricted Units'!$W$7:$W$399=\"FMTW\")*('2. Assisted & Restricted Units'!$X$7:$X$399=\"Sec 8\"))","v":0},null,{"$f":"SUMPRODUCT(('2. Assisted & Restricted Units'!$E$7:$E$399=\"Ghocc\")*('2. Assisted & Restricted Units'!$W$7:$W$399=\"HOME\")*('2. Assisted & Restricted Units'!$X$7:$X$399=\"Sec 8\"))","v":0},{"$f":"SUMPRODUCT(('2. Assisted & Restricted Units'!$E$7:$E$399=\"Ghocc\")*('2. Assisted & Restricted Units'!$W$7:$W$399=\"Market Rate\")*('2. Assisted & Restricted Units'!$X$7:$X$399=\"Sec 8\"))","v":0},{"$f":"SUMPRODUCT(('2. Assisted & Restricted Units'!$E$7:$E$399=\"Ghocc\")*('2. Assisted & Restricted Units'!$W$7:$W$399=\"MHP\")*('2. Assisted & Restricted Units'!$X$7:$X$399=\"Sec 8\"))","v":0},{"$f":"SUMPRODUCT(('2. Assisted & Restricted Units'!$E$7:$E$399=\"Ghocc\")*('2. Assisted & Restricted Units'!$W$7:$W$399=\"NonAssisted\")*('2. Assisted & Restricted Units'!$X$7:$X$399=\"Sec 8\"))","v":0},{"$f":"SUMPRODUCT(('2. Assisted & Restricted Units'!$E$7:$E$399=\"Ghocc\")*('2. Assisted & Restricted Units'!$W$7:$W$399=\"Other Restr\")*('2. Assisted & Restricted Units'!$X$7:$X$399=\"Sec 8\"))","v":0},{"$f":"SUMPRODUCT(('2. Assisted & Restricted Units'!$E$7:$E$399=\"Ghocc\")*('2. Assisted & Restricted Units'!$W$7:$W$399=\"RHCP-B\")*('2. Assisted & Restricted Units'!$X$7:$X$399=\"Sec 8\"))","v":0},{"$f":"SUMPRODUCT(('2. Assisted & Restricted Units'!$E$7:$E$399=\"Ghocc\")*('2. Assisted & Restricted Units'!$W$7:$W$399=\"SERA\")*('2. Assisted & Restricted Units'!$X$7:$X$399=\"Sec 8\"))","v":0},{"$f":"SUMPRODUCT(('2. Assisted & Restricted Units'!$E$7:$E$399=\"Ghocc\")*('2. Assisted & Restricted Units'!$W$7:$W$399=\"SUHRP\")*('2. Assisted & Restricted Units'!$X$7:$X$399=\"Sec 8\"))","v":0},{"$f":"SUMPRODUCT(('2. Assisted & Restricted Units'!$E$7:$E$399=\"Ghocc\")*('2. Assisted & Restricted Units'!$W$7:$W$399=\"TOD\")*('2. Assisted & Restricted Units'!$X$7:$X$399=\"Sec 8\"))","v":0},{"$f":"SUMPRODUCT(('2. Assisted & Restricted Units'!$E$7:$E$399=\"Ghocc\")*('2. Assisted & Restricted Units'!$W$7:$W$399=\"707-E\")*('2. Assisted & Restricted Units'!$X$7:$X$399=\"Sec 8\"))","v":0},{"$f":"SUMPRODUCT(('2. Assisted & Restricted Units'!$E$7:$E$399=\"Ghocc\")*('2. Assisted & Restricted Units'!$W$7:$W$399=\"707-N\")*('2. Assisted & Restricted Units'!$X$7:$X$399=\"Sec 8\"))","v":0}]
["Total Ghocc",{"$f":"SUM(B2:B26)","v":0},{"$f":"SUM(C2:C26)","v":0},{"$f":"SUM(D2:D26)","v":0},{"$f":"SUM(E2:E26)","v":0},{"$f":"SUM(F2:F26)","v":0},0,{"$f":"SUMPRODUCT(('2. Assisted & Restricted Units'!$E$7:$E$399=\"Ghocc\")*('2. Assisted & Restricted Units'!$W$7:$W$399=\"FWHG\"))","v":0},0,0,0,0,0,0,0,0,0,0,0,{"$f":"SUMPRODUCT(('2. Assisted & Restricted Units'!$E$7:$E$399=\"Ghocc\")*('2. Assisted & Restricted Units'!$L$7:$L$399=\"X\"))","v":0},{"$f":"SUMPRODUCT(('2. Assisted & Restricted Units'!$E$7:$E$399=\"Ghocc\")*('2. Assisted & Restricted Units'!#REF!=\"X\"))","v":{"$error":"#REF!"}},{"$f":"SUMPRODUCT(('2. Assisted & Restricted Units'!$E$7:$E$399=\"Ghocc\")*('2. Assisted & Restricted Units'!#REF!=\"X\"))","v":{"$error":"#REF!"}},{"$f":"SUMPRODUCT(('2. Assisted & Restricted Units'!$E$7:$E$399=\"Ghocc\")*('2. Assisted & Restricted Units'!#REF!=\"X\"))","v":{"$error":"#REF!"}},{"$f":"SUMPRODUCT(('2. Assisted & Restricted Units'!$E$7:$E$399=\"Ghocc\")*('2. Assisted & Restricted Units'!#REF!=\"X\"))","v":{"$error":"#REF!"}},{"$f":"SUMPRODUCT(('2. Assisted & Restricted Units'!$E$7:$E$399=\"Ghocc\")*('2. Assisted & Restricted Units'!#REF!=\"X\"))","v":{"$error":"#REF!"}},{"$f":"SUMPRODUCT(('2. Assisted & Restricted Units'!$E$7:$E$399=\"Ghocc\")*('2. Assisted & Restricted Units'!#REF!=\"X\"))","v":{"$error":"#REF!"}},{"$f":"SUMPRODUCT(('2. Assisted & Restricted Units'!$E$7:$E$399=\"Ghocc\")*('2. Assisted & Restricted Units'!$M$7:$M$399=\"X\"))","v":0},{"$f":"SUMPRODUCT(('2. Assisted & Restricted Units'!$E$7:$E$399=\"Ghocc\")*('2. Assisted & Restricted Units'!$O$7:$O$399=\"X\"))","v":0}]
["0 Bedroom 15% AMI",{"$f":"SUMPRODUCT(('2. Assisted & Restricted Units'!$E$7:$E$399=\"0\")*('2. Assisted & Restricted Units'!$W$7:$W$399=\"CALDAP\")*('2. Assisted & Restricted Units'!$X$7:$X$399=\"15% AMI\"))","v":0},{"$f":"SUMPRODUCT(('2. Assisted & Restricted Units'!$E$7:$E$399=\"0\")*('2. Assisted & Restricted Units'!$W$7:$W$399=\"CHRP-R\")*('2. Assisted & Restricted Units'!$X$7:$X$399=\"15% AMI\"))","v":0},{"$f":"SUMPRODUCT(('2. Assisted & Restricted Units'!$E$7:$E$399=\"0\")*('2. Assisted & Restricted Units'!$W$7:$W$399=\"DDS\")*('2. Assisted & Restricted Units'!$X$7:$X$399=\"15% AMI\"))","v":0},{"$f":"SUMPRODUCT(('2. Assisted & Restricted Units'!$E$7:$E$399=\"0\")*('2. Assisted & Restricted Units'!$W$7:$W$399=\"DPRLP\")*('2. Assisted & Restricted Units'!$X$7:$X$399=\"15% AMI\"))","v":0},{"$f":"SUMPRODUCT(('2. Assisted & Restricted Units'!$E$7:$E$399=\"0\")*('2. Assisted & Restricted Units'!$W$7:$W$399=\"FHDP\")*('2. Assisted & Restricted Units'!$X$7:$X$399=\"15% AMI\"))","v":0},{"$f":"SUMPRODUCT(('2. Assisted & Restricted Units'!$E$7:$E$399=\"0\")*('2. Assisted & Restricted Units'!$W$7:$W$399=\"FMTW\")*('2. Assisted & Restricted Units'!$X$7:$X$399=\"15% AMI\"))","v":0},null,{"$f":"SUMPRODUCT(('2. Assisted & Restricted Units'!$E$7:$E$399=\"0\")*('2. Assisted & Restricted Units'!$W$7:$W$399=\"HOME\")*('2. Assisted & Restricted Units'!$X$7:$X$399=\"15% AMI\"))","v":0},{"$f":"SUMPRODUCT(('2. Assisted & Restricted Units'!$E$7:$E$399=\"0\")*('2. Assisted & Restricted Units'!$W$7:$W$399=\"Market Rate\")*('2. Assisted & Restricted Units'!$X$7:$X$399=\"15% AMI\"))","v":0},{"$f":"SUMPRODUCT(('2. Assisted & Restricted Units'!$E$7:$E$399=\"0\")*('2. Assisted & Restricted Units'!$W$7:$W$399=\"MHP\")*('2. Assisted & Restricted Units'!$X$7:$X$399=\"15% AMI\"))","v":0},{"$f":"SUMPRODUCT(('2. Assisted & Restricted Units'!$E$7:$E$399=\"0\")*('2. Assisted & Restricted Units'!$W$7:$W$399=\"NonAssisted\")*('2. Assisted & Restricted Units'!$X$7:$X$399=\"15% AMI\"))","v":0},{"$f":"SUMPRODUCT(('2. Assisted & Restricted Units'!$E$7:$E$399=\"0\")*('2. Assisted & Restricted Units'!$W$7:$W$399=\"Other Restr\")*('2. Assisted & Restricted Units'!$X$7:$X$399=\"15% AMI\"))","v":0},{"$f":"SUMPRODUCT(('2. Assisted & Restricted Units'!$E$7:$E$399=\"0\")*('2. Assisted & Restricted Units'!$W$7:$W$399=\"RHCP-B\")*('2. Assisted & Restricted Units'!$X$7:$X$399=\"15% AMI\"))","v":0},{"$f":"SUMPRODUCT(('2. Assisted & Restricted Units'!$E$7:$E$399=\"0\")*('2. Assisted & Restricted Units'!$W$7:$W$399=\"SERA\")*('2. Assisted & Restricted Units'!$X$7:$X$399=\"15% AMI\"))","v":0},{"$f":"SUMPRODUCT(('2. Assisted & Restricted Units'!$E$7:$E$399=\"0\")*('2. Assisted & Restricted Units'!$W$7:$W$399=\"SUHRP\")*('2. Assisted & Restricted Units'!$X$7:$X$399=\"15% AMI\"))","v":0},{"$f":"SUMPRODUCT(('2. Assisted & Restricted Units'!$E$7:$E$399=\"0\")*('2. Assisted & Restricted Units'!$W$7:$W$399=\"TOD\")*('2. Assisted & Restricted Units'!$X$7:$X$399=\"15% AMI\"))","v":0},{"$f":"SUMPRODUCT(('2. Assisted & Restricted Units'!$E$7:$E$399=\"0\")*('2. Assisted & Restricted Units'!$W$7:$W$399=\"707-E\")*('2. Assisted & Restricted Units'!$X$7:$X$399=\"15% AMI\"))","v":0},{"$f":"SUMPRODUCT(('2. Assisted & Restricted Units'!$E$7:$E$399=\"0\")*('2. Assisted & Restricted Units'!$W$7:$W$399=\"707-N\")*('2. Assisted & Restricted Units'!$X$7:$X$399=\"15% AMI\"))","v":0}]
["0 Bedroom 20% AMI",{"$f":"SUMPRODUCT(('2. Assisted & Restricted Units'!$E$7:$E$399=\"0\")*('2. Assisted & Restricted Units'!$W$7:$W$399=\"CALDAP\")*('2. Assisted & Restricted Units'!$X$7:$X$399=\"20% AMI\"))","v":0},{"$f":"SUMPRODUCT(('2. Assisted & Restricted Units'!$E$7:$E$399=\"0\")*('2. Assisted & Restricted Units'!$W$7:$W$399=\"CHRP-R\")*('2. Assisted & Restricted Units'!$X$7:$X$399=\"20% AMI\"))","v":0},{"$f":"SUMPRODUCT(('2. Assisted & Restricted Units'!$E$7:$E$399=\"0\")*('2. Assisted & Restricted Units'!$W$7:$W$399=\"DDS\")*('2. Assisted & Restricted Units'!$X$7:$X$399=\"20% AMI\"))","v":0},{"$f":"SUMPRODUCT(('2. Assisted & Restricted Units'!$E$7:$E$399=\"0\")*('2. Assisted & Restricted Units'!$W$7:$W$399=\"DPRLP\")*('2. Assisted & Restricted Units'!$X$7:$X$399=\"20% AMI\"))","v":0},{"$f":"SUMPRODUCT(('2. Assisted & Restricted Units'!$E$7:$E$399=\"0\")*('2. Assisted & Restricted Units'!$W$7:$W$399=\"FHDP\")*('2. Assisted & Restricted Units'!$X$7:$X$399=\"20% AMI\"))","v":0},{"$f":"SUMPRODUCT(('2. Assisted & Restricted Units'!$E$7:$E$399=\"0\")*('2. Assisted & Restricted Units'!$W$7:$W$399=\"FMTW\")*('2. Assisted & Restricted Units'!$X$7:$X$399=\"20% AMI\"))","v":0},null,{"$f":"SUMPRODUCT(('2. Assisted & Restricted Units'!$E$7:$E$399=\"0\")*('2. Assisted & Restricted Units'!$W$7:$W$399=\"HOME\")*('2. Assisted & Restricted Units'!$X$7:$X$399=\"20% AMI\"))","v":0},{"$f":"SUMPRODUCT(('2. Assisted & Restricted Units'!$E$7:$E$399=\"0\")*('2. Assisted & Restricted Units'!$W$7:$W$399=\"Market Rate\")*('2. Assisted & Restricted Units'!$X$7:$X$399=\"20% AMI\"))","v":0},{"$f":"SUMPRODUCT(('2. Assisted & Restricted Units'!$E$7:$E$399=\"0\")*('2. Assisted & Restricted Units'!$W$7:$W$399=\"MHP\")*('2. Assisted & Restricted Units'!$X$7:$X$399=\"20% AMI\"))","v":0},{"$f":"SUMPRODUCT(('2. Assisted & Restricted Units'!$E$7:$E$399=\"0\")*('2. Assisted & Restricted Units'!$W$7:$W$399=\"NonAssisted\")*('2. Assisted & Restricted Units'!$X$7:$X$399=\"20% AMI\"))","v":0},{"$f":"SUMPRODUCT(('2. Assisted & Restricted Units'!$E$7:$E$399=\"0\")*('2. Assisted & Restricted Units'!$W$7:$W$399=\"Other Restr\")*('2. Assisted & Restricted Units'!$X$7:$X$399=\"20% AMI\"))","v":0},{"$f":"SUMPRODUCT(('2. Assisted & Restricted Units'!$E$7:$E$399=\"0\")*('2. Assisted & Restricted Units'!$W$7:$W$399=\"RHCP-B\")*('2. Assisted & Restricted Units'!$X$7:$X$399=\"20% AMI\"))","v":0},{"$f":"SUMPRODUCT(('2. Assisted & Restricted Units'!$E$7:$E$399=\"0\")*('2. Assisted & Restricted Units'!$W$7:$W$399=\"SERA\")*('2. Assisted & Restricted Units'!$X$7:$X$399=\"20% AMI\"))","v":0},{"$f":"SUMPRODUCT(('2. Assisted & Restricted Units'!$E$7:$E$399=\"0\")*('2. Assisted & Restricted Units'!$W$7:$W$399=\"SUHRP\")*('2. Assisted & Restricted Units'!$X$7:$X$399=\"20% AMI\"))","v":0},{"$f":"SUMPRODUCT(('2. Assisted & Restricted Units'!$E$7:$E$399=\"0\")*('2. Assisted & Restricted Units'!$W$7:$W$399=\"TOD\")*('2. Assisted & Restricted Units'!$X$7:$X$399=\"20% AMI\"))","v":0},{"$f":"SUMPRODUCT(('2. Assisted & Restricted Units'!$E$7:$E$399=\"0\")*('2. Assisted & Restricted Units'!$W$7:$W$399=\"707-E\")*('2. Assisted & Restricted Units'!$X$7:$X$399=\"20% AMI\"))","v":0},{"$f":"SUMPRODUCT(('2. Assisted & Restricted Units'!$E$7:$E$399=\"0\")*('2. Assisted & Restricted Units'!$W$7:$W$399=\"707-N\")*('2. Assisted & Restricted Units'!$X$7:$X$399=\"20% AMI\"))","v":0}]
["0 Bedroom 25% AMI",{"$f":"SUMPRODUCT(('2. Assisted & Restricted Units'!$E$7:$E$399=\"0\")*('2. Assisted & Restricted Units'!$W$7:$W$399=\"CALDAP\")*('2. Assisted & Restricted Units'!$X$7:$X$399=\"25% AMI\"))","v":0},{"$f":"SUMPRODUCT(('2. Assisted & Restricted Units'!$E$7:$E$399=\"0\")*('2. Assisted & Restricted Units'!$W$7:$W$399=\"CHRP-R\")*('2. Assisted & Restricted Units'!$X$7:$X$399=\"25% AMI\"))","v":0},{"$f":"SUMPRODUCT(('2. Assisted & Restricted Units'!$E$7:$E$399=\"0\")*('2. Assisted & Restricted Units'!$W$7:$W$399=\"DDS\")*('2. Assisted & Restricted Units'!$X$7:$X$399=\"25% AMI\"))","v":0},{"$f":"SUMPRODUCT(('2. Assisted & Restricted Units'!$E$7:$E$399=\"0\")*('2. Assisted & Restricted Units'!$W$7:$W$399=\"DPRLP\")*('2. Assisted & Restricted Units'!$X$7:$X$399=\"25% AMI\"))","v":0},{"$f":"SUMPRODUCT(('2. Assisted & Restricted Units'!$E$7:$E$399=\"0\")*('2. Assisted & Restricted Units'!$W$7:$W$399=\"FHDP\")*('2. Assisted & Restricted Units'!$X$7:$X$399=\"25% AMI\"))","v":0},{"$f":"SUMPRODUCT(('2. Assisted & Restricted Units'!$E$7:$E$399=\"0\")*('2. Assisted & Restricted Units'!$W$7:$W$399=\"FMTW\")*('2. Assisted & Restricted Units'!$X$7:$X$399=\"25% AMI\"))","v":0},null,{"$f":"SUMPRODUCT(('2. Assisted & Restricted Units'!$E$7:$E$399=\"0\")*('2. Assisted & Restricted Units'!$W$7:$W$399=\"HOME\")*('2. Assisted & Restricted Units'!$X$7:$X$399=\"25% AMI\"))","v":0},{"$f":"SUMPRODUCT(('2. Assisted & Restricted Units'!$E$7:$E$399=\"0\")*('2. Assisted & Restricted Units'!$W$7:$W$399=\"Market Rate\")*('2. Assisted & Restricted Units'!$X$7:$X$399=\"25% AMI\"))","v":0},{"$f":"SUMPRODUCT(('2. Assisted & Restricted Units'!$E$7:$E$399=\"0\")*('2. Assisted & Restricted Units'!$W$7:$W$399=\"MHP\")*('2. Assisted & Restricted Units'!$X$7:$X$399=\"25% AMI\"))","v":0},{"$f":"SUMPRODUCT(('2. Assisted & Restricted Units'!$E$7:$E$399=\"0\")*('2. Assisted & Restricted Units'!$W$7:$W$399=\"NonAssisted\")*('2. Assisted & Restricted Units'!$X$7:$X$399=\"25% AMI\"))","v":0},{"$f":"SUMPRODUCT(('2. Assisted & Restricted Units'!$E$7:$E$399=\"0\")*('2. Assisted & Restricted Units'!$W$7:$W$399=\"Other Restr\")*('2. Assisted & Restricted Units'!$X$7:$X$399=\"25% AMI\"))","v":0},{"$f":"SUMPRODUCT(('2. Assisted & Restricted Units'!$E$7:$E$399=\"0\")*('2. Assisted & Restricted Units'!$W$7:$W$399=\"RHCP-B\")*('2. Assisted & Restricted Units'!$X$7:$X$399=\"25% AMI\"))","v":0},{"$f":"SUMPRODUCT(('2. Assisted & Restricted Units'!$E$7:$E$399=\"0\")*('2. Assisted & Restricted Units'!$W$7:$W$399=\"SERA\")*('2. Assisted & Restricted Units'!$X$7:$X$399=\"25% AMI\"))","v":0},{"$f":"SUMPRODUCT(('2. Assisted & Restricted Units'!$E$7:$E$399=\"0\")*('2. Assisted & Restricted Units'!$W$7:$W$399=\"SUHRP\")*('2. Assisted & Restricted Units'!$X$7:$X$399=\"25% AMI\"))","v":0},{"$f":"SUMPRODUCT(('2. Assisted & Restricted Units'!$E$7:$E$399=\"0\")*('2. Assisted & Restricted Units'!$W$7:$W$399=\"TOD\")*('2. Assisted & Restricted Units'!$X$7:$X$399=\"25% AMI\"))","v":0},{"$f":"SUMPRODUCT(('2. Assisted & Restricted Units'!$E$7:$E$399=\"0\")*('2. Assisted & Restricted Units'!$W$7:$W$399=\"707-E\")*('2. Assisted & Restricted Units'!$X$7:$X$399=\"25% AMI\"))","v":0},{"$f":"SUMPRODUCT(('2. Assisted & Restricted Units'!$E$7:$E$399=\"0\")*('2. Assisted & Restricted Units'!$W$7:$W$399=\"707-N\")*('2. Assisted & Restricted Units'!$X$7:$X$399=\"25% AMI\"))","v":0}]
["0 Bedroom 30% AMI",{"$f":"SUMPRODUCT(('2. Assisted & Restricted Units'!$E$7:$E$399=\"0\")*('2. Assisted & Restricted Units'!$W$7:$W$399=\"CALDAP\")*('2. Assisted & Restricted Units'!$X$7:$X$399=\"30% AMI\"))","v":0},{"$f":"SUMPRODUCT(('2. Assisted & Restricted Units'!$E$7:$E$399=\"0\")*('2. Assisted & Restricted Units'!$W$7:$W$399=\"CHRP-R\")*('2. Assisted & Restricted Units'!$X$7:$X$399=\"30% AMI\"))","v":0},{"$f":"SUMPRODUCT(('2. Assisted & Restricted Units'!$E$7:$E$399=\"0\")*('2. Assisted & Restricted Units'!$W$7:$W$399=\"DDS\")*('2. Assisted & Restricted Units'!$X$7:$X$399=\"30% AMI\"))","v":0},{"$f":"SUMPRODUCT(('2. Assisted & Restricted Units'!$E$7:$E$399=\"0\")*('2. Assisted & Restricted Units'!$W$7:$W$399=\"DPRLP\")*('2. Assisted & Restricted Units'!$X$7:$X$399=\"30% AMI\"))","v":0},{"$f":"SUMPRODUCT(('2. Assisted & Restricted Units'!$E$7:$E$399=\"0\")*('2. Assisted & Restricted Units'!$W$7:$W$399=\"FHDP\")*('2. Assisted & Restricted Units'!$X$7:$X$399=\"30% AMI\"))","v":0},{"$f":"SUMPRODUCT(('2. Assisted & Restricted Units'!$E$7:$E$399=\"0\")*('2. Assisted & Restricted Units'!$W$7:$W$399=\"FMTW\")*('2. Assisted & Restricted Units'!$X$7:$X$399=\"30% AMI\"))","v":0},null,{"$f":"SUMPRODUCT(('2. Assisted & Restricted Units'!$E$7:$E$399=\"0\")*('2. Assisted & Restricted Units'!$W$7:$W$399=\"HOME\")*('2. Assisted & Restricted Units'!$X$7:$X$399=\"30% AMI\"))","v":0},{"$f":"SUMPRODUCT(('2. Assisted & Restricted Units'!$E$7:$E$399=\"0\")*('2. Assisted & Restricted Units'!$W$7:$W$399=\"Market Rate\")*('2. Assisted & Restricted Units'!$X$7:$X$399=\"30% AMI\"))","v":0},{"$f":"SUMPRODUCT(('2. Assisted & Restricted Units'!$E$7:$E$399=\"0\")*('2. Assisted & Restricted Units'!$W$7:$W$399=\"MHP\")*('2. Assisted & Restricted Units'!$X$7:$X$399=\"30% AMI\"))","v":0},{"$f":"SUMPRODUCT(('2. Assisted & Restricted Units'!$E$7:$E$399=\"0\")*('2. Assisted & Restricted Units'!$W$7:$W$399=\"NonAssisted\")*('2. Assisted & Restricted Units'!$X$7:$X$399=\"30% AMI\"))","v":0},{"$f":"SUMPRODUCT(('2. Assisted & Restricted Units'!$E$7:$E$399=\"0\")*('2. Assisted & Restricted Units'!$W$7:$W$399=\"Other Restr\")*('2. Assisted & Restricted Units'!$X$7:$X$399=\"30% AMI\"))","v":0},{"$f":"SUMPRODUCT(('2. Assisted & Restricted Units'!$E$7:$E$399=\"0\")*('2. Assisted & Restricted Units'!$W$7:$W$399=\"RHCP-B\")*('2. Assisted & Restricted Units'!$X$7:$X$399=\"30% AMI\"))","v":0},{"$f":"SUMPRODUCT(('2. Assisted & Restricted Units'!$E$7:$E$399=\"0\")*('2. Assisted & Restricted Units'!$W$7:$W$399=\"SERA\")*('2. Assisted & Restricted Units'!$X$7:$X$399=\"30% AMI\"))","v":0},{"$f":"SUMPRODUCT(('2. Assisted & Restricted Units'!$E$7:$E$399=\"0\")*('2. Assisted & Restricted Units'!$W$7:$W$399=\"SUHRP\")*('2. Assisted & Restricted Units'!$X$7:$X$399=\"30% AMI\"))","v":0},{"$f":"SUMPRODUCT(('2. Assisted & Restricted Units'!$E$7:$E$399=\"0\")*('2. Assisted & Restricted Units'!$W$7:$W$399=\"TOD\")*('2. Assisted & Restricted Units'!$X$7:$X$399=\"30% AMI\"))","v":0},{"$f":"SUMPRODUCT(('2. Assisted & Restricted Units'!$E$7:$E$399=\"0\")*('2. Assisted & Restricted Units'!$W$7:$W$399=\"707-E\")*('2. Assisted & Restricted Units'!$X$7:$X$399=\"30% AMI\"))","v":0},{"$f":"SUMPRODUCT(('2. Assisted & Restricted Units'!$E$7:$E$399=\"0\")*('2. Assisted & Restricted Units'!$W$7:$W$399=\"707-N\")*('2. Assisted & Restricted Units'!$X$7:$X$399=\"30% AMI\"))","v":0}]
["0 Bedroom 35% AMI",{"$f":"SUMPRODUCT(('2. Assisted & Restricted Units'!$E$7:$E$399=\"0\")*('2. Assisted & Restricted Units'!$W$7:$W$399=\"CALDAP\")*('2. Assisted & Restricted Units'!$X$7:$X$399=\"35% AMI\"))","v":0},{"$f":"SUMPRODUCT(('2. Assisted & Restricted Units'!$E$7:$E$399=\"0\")*('2. Assisted & Restricted Units'!$W$7:$W$399=\"CHRP-R\")*('2. Assisted & Restricted Units'!$X$7:$X$399=\"35% AMI\"))","v":0},{"$f":"SUMPRODUCT(('2. Assisted & Restricted Units'!$E$7:$E$399=\"0\")*('2. Assisted & Restricted Units'!$W$7:$W$399=\"DDS\")*('2. Assisted & Restricted Units'!$X$7:$X$399=\"35% AMI\"))","v":0},{"$f":"SUMPRODUCT(('2. Assisted & Restricted Units'!$E$7:$E$399=\"0\")*('2. Assisted & Restricted Units'!$W$7:$W$399=\"DPRLP\")*('2. Assisted & Restricted Units'!$X$7:$X$399=\"35% AMI\"))","v":0},{"$f":"SUMPRODUCT(('2. Assisted & Restricted Units'!$E$7:$E$399=\"0\")*('2. Assisted & Restricted Units'!$W$7:$W$399=\"FHDP\")*('2. Assisted & Restricted Units'!$X$7:$X$399=\"35% AMI\"))","v":0},{"$f":"SUMPRODUCT(('2. Assisted & Restricted Units'!$E$7:$E$399=\"0\")*('2. Assisted & Restricted Units'!$W$7:$W$399=\"FMTW\")*('2. Assisted & Restricted Units'!$X$7:$X$399=\"35% AMI\"))","v":0},null,{"$f":"SUMPRODUCT(('2. Assisted & Restricted Units'!$E$7:$E$399=\"0\")*('2. Assisted & Restricted Units'!$W$7:$W$399=\"HOME\")*('2. Assisted & Restricted Units'!$X$7:$X$399=\"35% AMI\"))","v":0},{"$f":"SUMPRODUCT(('2. Assisted & Restricted Units'!$E$7:$E$399=\"0\")*('2. Assisted & Restricted Units'!$W$7:$W$399=\"Market Rate\")*('2. Assisted & Restricted Units'!$X$7:$X$399=\"35% AMI\"))","v":0},{"$f":"SUMPRODUCT(('2. Assisted & Restricted Units'!$E$7:$E$399=\"0\")*('2. Assisted & Restricted Units'!$W$7:$W$399=\"MHP\")*('2. Assisted & Restricted Units'!$X$7:$X$399=\"35% AMI\"))","v":0},{"$f":"SUMPRODUCT(('2. Assisted & Restricted Units'!$E$7:$E$399=\"0\")*('2. Assisted & Restricted Units'!$W$7:$W$399=\"NonAssisted\")*('2. Assisted & Restricted Units'!$X$7:$X$399=\"35% AMI\"))","v":0},{"$f":"SUMPRODUCT(('2. Assisted & Restricted Units'!$E$7:$E$399=\"0\")*('2. Assisted & Restricted Units'!$W$7:$W$399=\"Other Restr\")*('2. Assisted & Restricted Units'!$X$7:$X$399=\"35% AMI\"))","v":0},{"$f":"SUMPRODUCT(('2. Assisted & Restricted Units'!$E$7:$E$399=\"0\")*('2. Assisted & Restricted Units'!$W$7:$W$399=\"RHCP-B\")*('2. Assisted & Restricted Units'!$X$7:$X$399=\"35% AMI\"))","v":0},{"$f":"SUMPRODUCT(('2. Assisted & Restricted Units'!$E$7:$E$399=\"0\")*('2. Assisted & Restricted Units'!$W$7:$W$399=\"SERA\")*('2. Assisted & Restricted Units'!$X$7:$X$399=\"35% AMI\"))","v":0},{"$f":"SUMPRODUCT(('2. Assisted & Restricted Units'!$E$7:$E$399=\"0\")*('2. Assisted & Restricted Units'!$W$7:$W$399=\"SUHRP\")*('2. Assisted & Restricted Units'!$X$7:$X$399=\"35% AMI\"))","v":0},{"$f":"SUMPRODUCT(('2. Assisted & Restricted Units'!$E$7:$E$399=\"0\")*('2. Assisted & Restricted Units'!$W$7:$W$399=\"TOD\")*('2. Assisted & Restricted Units'!$X$7:$X$399=\"35% AMI\"))","v":0},{"$f":"SUMPRODUCT(('2. Assisted & Restricted Units'!$E$7:$E$399=\"0\")*('2. Assisted & Restricted Units'!$W$7:$W$399=\"707-E\")*('2. Assisted & Restricted Units'!$X$7:$X$399=\"35% AMI\"))","v":0},{"$f":"SUMPRODUCT(('2. Assisted & Restricted Units'!$E$7:$E$399=\"0\")*('2. Assisted & Restricted Units'!$W$7:$W$399=\"707-N\")*('2. Assisted & Restricted Units'!$X$7:$X$399=\"35% AMI\"))","v":0}]
["0 Bedroom 40% AMI",{"$f":"SUMPRODUCT(('2. Assisted & Restricted Units'!$E$7:$E$399=\"0\")*('2. Assisted & Restricted Units'!$W$7:$W$399=\"CALDAP\")*('2. Assisted & Restricted Units'!$X$7:$X$399=\"40% AMI\"))","v":0},{"$f":"SUMPRODUCT(('2. Assisted & Restricted Units'!$E$7:$E$399=\"0\")*('2. Assisted & Restricted Units'!$W$7:$W$399=\"CHRP-R\")*('2. Assisted & Restricted Units'!$X$7:$X$399=\"40% AMI\"))","v":0},{"$f":"SUMPRODUCT(('2. Assisted & Restricted Units'!$E$7:$E$399=\"0\")*('2. Assisted & Restricted Units'!$W$7:$W$399=\"DDS\")*('2. Assisted & Restricted Units'!$X$7:$X$399=\"40% AMI\"))","v":0},{"$f":"SUMPRODUCT(('2. Assisted & Restricted Units'!$E$7:$E$399=\"0\")*('2. Assisted & Restricted Units'!$W$7:$W$399=\"DPRLP\")*('2. Assisted & Restricted Units'!$X$7:$X$399=\"40% AMI\"))","v":0},{"$f":"SUMPRODUCT(('2. Assisted & Restricted Units'!$E$7:$E$399=\"0\")*('2. Assisted & Restricted Units'!$W$7:$W$399=\"FHDP\")*('2. Assisted & Restricted Units'!$X$7:$X$399=\"40% AMI\"))","v":0},{"$f":"SUMPRODUCT(('2. Assisted & Restricted Units'!$E$7:$E$399=\"0\")*('2. Assisted & Restricted Units'!$W$7:$W$399=\"FMTW\")*('2. Assisted & Restricted Units'!$X$7:$X$399=\"40% AMI\"))","v":0},null,{"$f":"SUMPRODUCT(('2. Assisted & Restricted Units'!$E$7:$E$399=\"0\")*('2. Assisted & Restricted Units'!$W$7:$W$399=\"HOME\")*('2. Assisted & Restricted Units'!$X$7:$X$399=\"40% AMI\"))","v":0},{"$f":"SUMPRODUCT(('2. Assisted & Restricted Units'!$E$7:$E$399=\"0\")*('2. Assisted & Restricted Units'!$W$7:$W$399=\"Market Rate\")*('2. Assisted & Restricted Units'!$X$7:$X$399=\"40% AMI\"))","v":0},{"$f":"SUMPRODUCT(('2. Assisted & Restricted Units'!$E$7:$E$399=\"0\")*('2. Assisted & Restricted Units'!$W$7:$W$399=\"MHP\")*('2. Assisted & Restricted Units'!$X$7:$X$399=\"40% AMI\"))","v":0},{"$f":"SUMPRODUCT(('2. Assisted & Restricted Units'!$E$7:$E$399=\"0\")*('2. Assisted & Restricted Units'!$W$7:$W$399=\"NonAssisted\")*('2. Assisted & Restricted Units'!$X$7:$X$399=\"40% AMI\"))","v":0},{"$f":"SUMPRODUCT(('2. Assisted & Restricted Units'!$E$7:$E$399=\"0\")*('2. Assisted & Restricted Units'!$W$7:$W$399=\"Other Restr\")*('2. Assisted & Restricted Units'!$X$7:$X$399=\"40% AMI\"))","v":0},{"$f":"SUMPRODUCT(('2. Assisted & Restricted Units'!$E$7:$E$399=\"0\")*('2. Assisted & Restricted Units'!$W$7:$W$399=\"RHCP-B\")*('2. Assisted & Restricted Units'!$X$7:$X$399=\"40% AMI\"))","v":0},{"$f":"SUMPRODUCT(('2. Assisted & Restricted Units'!$E$7:$E$399=\"0\")*('2. Assisted & Restricted Units'!$W$7:$W$399=\"SERA\")*('2. Assisted & Restricted Units'!$X$7:$X$399=\"40% AMI\"))","v":0},{"$f":"SUMPRODUCT(('2. Assisted & Restricted Units'!$E$7:$E$399=\"0\")*('2. Assisted & Restricted Units'!$W$7:$W$399=\"SUHRP\")*('2. Assisted & Restricted Units'!$X$7:$X$399=\"40% AMI\"))","v":0},{"$f":"SUMPRODUCT(('2. Assisted & Restricted Units'!$E$7:$E$399=\"0\")*('2. Assisted & Restricted Units'!$W$7:$W$399=\"TOD\")*('2. Assisted & Restricted Units'!$X$7:$X$399=\"40% AMI\"))","v":0},{"$f":"SUMPRODUCT(('2. Assisted & Restricted Units'!$E$7:$E$399=\"0\")*('2. Assisted & Restricted Units'!$W$7:$W$399=\"707-E\")*('2. Assisted & Restricted Units'!$X$7:$X$399=\"40% AMI\"))","v":0},{"$f":"SUMPRODUCT(('2. Assisted & Restricted Units'!$E$7:$E$399=\"0\")*('2. Assisted & Restricted Units'!$W$7:$W$399=\"707-N\")*('2. Assisted & Restricted Units'!$X$7:$X$399=\"40% AMI\"))","v":0}]
["0 Bedroom 45% AMI",{"$f":"SUMPRODUCT(('2. Assisted & Restricted Units'!$E$7:$E$399=\"0\")*('2. Assisted & Restricted Units'!$W$7:$W$399=\"CALDAP\")*('2. Assisted & Restricted Units'!$X$7:$X$399=\"45% AMI\"))","v":0},{"$f":"SUMPRODUCT(('2. Assisted & Restricted Units'!$E$7:$E$399=\"0\")*('2. Assisted & Restricted Units'!$W$7:$W$399=\"CHRP-R\")*('2. Assisted & Restricted Units'!$X$7:$X$399=\"45% AMI\"))","v":0},{"$f":"SUMPRODUCT(('2. Assisted & Restricted Units'!$E$7:$E$399=\"0\")*('2. Assisted & Restricted Units'!$W$7:$W$399=\"DDS\")*('2. Assisted & Restricted Units'!$X$7:$X$399=\"45% AMI\"))","v":0},{"$f":"SUMPRODUCT(('2. Assisted & Restricted Units'!$E$7:$E$399=\"0\")*('2. Assisted & Restricted Units'!$W$7:$W$399=\"DPRLP\")*('2. Assisted & Restricted Units'!$X$7:$X$399=\"45% AMI\"))","v":0},{"$f":"SUMPRODUCT(('2. Assisted & Restricted Units'!$E$7:$E$399=\"0\")*('2. Assisted & Restricted Units'!$W$7:$W$399=\"FHDP\")*('2. Assisted & Restricted Units'!$X$7:$X$399=\"45% AMI\"))","v":0},{"$f":"SUMPRODUCT(('2. Assisted & Restricted Units'!$E$7:$E$399=\"0\")*('2. Assisted & Restricted Units'!$W$7:$W$399=\"FMTW\")*('2. Assisted & Restricted Units'!$X$7:$X$399=\"45% AMI\"))","v":0},null,{"$f":"SUMPRODUCT(('2. Assisted & Restricted Units'!$E$7:$E$399=\"0\")*('2. Assisted & Restricted Units'!$W$7:$W$399=\"HOME\")*('2. Assisted & Restricted Units'!$X$7:$X$399=\"45% AMI\"))","v":0},{"$f":"SUMPRODUCT(('2. Assisted & Restricted Units'!$E$7:$E$399=\"0\")*('2. Assisted & Restricted Units'!$W$7:$W$399=\"Market Rate\")*('2. Assisted & Restricted Units'!$X$7:$X$399=\"45% AMI\"))","v":0},{"$f":"SUMPRODUCT(('2. Assisted & Restricted Units'!$E$7:$E$399=\"0\")*('2. Assisted & Restricted Units'!$W$7:$W$399=\"MHP\")*('2. Assisted & Restricted Units'!$X$7:$X$399=\"45% AMI\"))","v":0},{"$f":"SUMPRODUCT(('2. Assisted & Restricted Units'!$E$7:$E$399=\"0\")*('2. Assisted & Restricted Units'!$W$7:$W$399=\"NonAssisted\")*('2. Assisted & Restricted Units'!$X$7:$X$399=\"45% AMI\"))","v":0},{"$f":"SUMPRODUCT(('2. Assisted & Restricted Units'!$E$7:$E$399=\"0\")*('2. Assisted & Restricted Units'!$W$7:$W$399=\"Other Restr\")*('2. Assisted & Restricted Units'!$X$7:$X$399=\"45% AMI\"))","v":0},{"$f":"SUMPRODUCT(('2. Assisted & Restricted Units'!$E$7:$E$399=\"0\")*('2. Assisted & Restricted Units'!$W$7:$W$399=\"RHCP-B\")*('2. Assisted & Restricted Units'!$X$7:$X$399=\"45% AMI\"))","v":0},{"$f":"SUMPRODUCT(('2. Assisted & Restricted Units'!$E$7:$E$399=\"0\")*('2. Assisted & Restricted Units'!$W$7:$W$399=\"SERA\")*('2. Assisted & Restricted Units'!$X$7:$X$399=\"45% AMI\"))","v":0},{"$f":"SUMPRODUCT(('2. Assisted & Restricted Units'!$E$7:$E$399=\"0\")*('2. Assisted & Restricted Units'!$W$7:$W$399=\"SUHRP\")*('2. Assisted & Restricted Units'!$X$7:$X$399=\"45% AMI\"))","v":0},{"$f":"SUMPRODUCT(('2. Assisted & Restricted Units'!$E$7:$E$399=\"0\")*('2. Assisted & Restricted Units'!$W$7:$W$399=\"TOD\")*('2. Assisted & Restricted Units'!$X$7:$X$399=\"45% AMI\"))","v":0},{"$f":"SUMPRODUCT(('2. Assisted & Restricted Units'!$E$7:$E$399=\"0\")*('2. Assisted & Restricted Units'!$W$7:$W$399=\"707-E\")*('2. Assisted & Restricted Units'!$X$7:$X$399=\"45% AMI\"))","v":0},{"$f":"SUMPRODUCT(('2. Assisted & Restricted Units'!$E$7:$E$399=\"0\")*('2. Assisted & Restricted Units'!$W$7:$W$399=\"707-N\")*('2. Assisted & Restricted Units'!$X$7:$X$399=\"45% AMI\"))","v":0}]
["0 Bedroom 50% AMI",{"$f":"SUMPRODUCT(('2. Assisted & Restricted Units'!$E$7:$E$399=\"0\")*('2. Assisted & Restricted Units'!$W$7:$W$399=\"CALDAP\")*('2. Assisted & Restricted Units'!$X$7:$X$399=\"50% AMI\"))","v":0},{"$f":"SUMPRODUCT(('2. Assisted & Restricted Units'!$E$7:$E$399=\"0\")*('2. Assisted & Restricted Units'!$W$7:$W$399=\"CHRP-R\")*('2. Assisted & Restricted Units'!$X$7:$X$399=\"50% AMI\"))","v":0},{"$f":"SUMPRODUCT(('2. Assisted & Restricted Units'!$E$7:$E$399=\"0\")*('2. Assisted & Restricted Units'!$W$7:$W$399=\"DDS\")*('2. Assisted & Restricted Units'!$X$7:$X$399=\"50% AMI\"))","v":0},{"$f":"SUMPRODUCT(('2. Assisted & Restricted Units'!$E$7:$E$399=\"0\")*('2. Assisted & Restricted Units'!$W$7:$W$399=\"DPRLP\")*('2. Assisted & Restricted Units'!$X$7:$X$399=\"50% AMI\"))","v":0},{"$f":"SUMPRODUCT(('2. Assisted & Restricted Units'!$E$7:$E$399=\"0\")*('2. Assisted & Restricted Units'!$W$7:$W$399=\"FHDP\")*('2. Assisted & Restricted Units'!$X$7:$X$399=\"50% AMI\"))","v":0},{"$f":"SUMPRODUCT(('2. Assisted & Restricted Units'!$E$7:$E$399=\"0\")*('2. Assisted & Restricted Units'!$W$7:$W$399=\"FMTW\")*('2. Assisted & Restricted Units'!$X$7:$X$399=\"50% AMI\"))","v":0},null,{"$f":"SUMPRODUCT(('2. Assisted & Restricted Units'!$E$7:$E$399=\"0\")*('2. Assisted & Restricted Units'!$W$7:$W$399=\"HOME\")*('2. Assisted & Restricted Units'!$X$7:$X$399=\"50% AMI\"))","v":0},{"$f":"SUMPRODUCT(('2. Assisted & Restricted Units'!$E$7:$E$399=\"0\")*('2. Assisted & Restricted Units'!$W$7:$W$399=\"Market Rate\")*('2. Assisted & Restricted Units'!$X$7:$X$399=\"50% AMI\"))","v":0},{"$f":"SUMPRODUCT(('2. Assisted & Restricted Units'!$E$7:$E$399=\"0\")*('2. Assisted & Restricted Units'!$W$7:$W$399=\"MHP\")*('2. Assisted & Restricted Units'!$X$7:$X$399=\"50% AMI\"))","v":0},{"$f":"SUMPRODUCT(('2. Assisted & Restricted Units'!$E$7:$E$399=\"0\")*('2. Assisted & Restricted Units'!$W$7:$W$399=\"NonAssisted\")*('2. Assisted & Restricted Units'!$X$7:$X$399=\"50% AMI\"))","v":0},{"$f":"SUMPRODUCT(('2. Assisted & Restricted Units'!$E$7:$E$399=\"0\")*('2. Assisted & Restricted Units'!$W$7:$W$399=\"Other Restr\")*('2. Assisted & Restricted Units'!$X$7:$X$399=\"50% AMI\"))","v":0},{"$f":"SUMPRODUCT(('2. Assisted & Restricted Units'!$E$7:$E$399=\"0\")*('2. Assisted & Restricted Units'!$W$7:$W$399=\"RHCP-B\")*('2. Assisted & Restricted Units'!$X$7:$X$399=\"50% AMI\"))","v":0},{"$f":"SUMPRODUCT(('2. Assisted & Restricted Units'!$E$7:$E$399=\"0\")*('2. Assisted & Restricted Units'!$W$7:$W$399=\"SERA\")*('2. Assisted & Restricted Units'!$X$7:$X$399=\"50% AMI\"))","v":0},{"$f":"SUMPRODUCT(('2. Assisted & Restricted Units'!$E$7:$E$399=\"0\")*('2. Assisted & Restricted Units'!$W$7:$W$399=\"SUHRP\")*('2. Assisted & Restricted Units'!$X$7:$X$399=\"50% AMI\"))","v":0},{"$f":"SUMPRODUCT(('2. Assisted & Restricted Units'!$E$7:$E$399=\"0\")*('2. Assisted & Restricted Units'!$W$7:$W$399=\"TOD\")*('2. Assisted & Restricted Units'!$X$7:$X$399=\"50% AMI\"))","v":0},{"$f":"SUMPRODUCT(('2. Assisted & Restricted Units'!$E$7:$E$399=\"0\")*('2. Assisted & Restricted Units'!$W$7:$W$399=\"707-E\")*('2. Assisted & Restricted Units'!$X$7:$X$399=\"50% AMI\"))","v":0},{"$f":"SUMPRODUCT(('2. Assisted & Restricted Units'!$E$7:$E$399=\"0\")*('2. Assisted & Restricted Units'!$W$7:$W$399=\"707-N\")*('2. Assisted & Restricted Units'!$X$7:$X$399=\"50% AMI\"))","v":0}]
["0 Bedroom 55% AMI",{"$f":"SUMPRODUCT(('2. Assisted & Restricted Units'!$E$7:$E$399=\"0\")*('2. Assisted & Restricted Units'!$W$7:$W$399=\"CALDAP\")*('2. Assisted & Restricted Units'!$X$7:$X$399=\"55% AMI\"))","v":0},{"$f":"SUMPRODUCT(('2. Assisted & Restricted Units'!$E$7:$E$399=\"0\")*('2. Assisted & Restricted Units'!$W$7:$W$399=\"CHRP-R\")*('2. Assisted & Restricted Units'!$X$7:$X$399=\"55% AMI\"))","v":0},{"$f":"SUMPRODUCT(('2. Assisted & Restricted Units'!$E$7:$E$399=\"0\")*('2. Assisted & Restricted Units'!$W$7:$W$399=\"DDS\")*('2. Assisted & Restricted Units'!$X$7:$X$399=\"55% AMI\"))","v":0},{"$f":"SUMPRODUCT(('2. Assisted & Restricted Units'!$E$7:$E$399=\"0\")*('2. Assisted & Restricted Units'!$W$7:$W$399=\"DPRLP\")*('2. Assisted & Restricted Units'!$X$7:$X$399=\"55% AMI\"))","v":0},{"$f":"SUMPRODUCT(('2. Assisted & Restricted Units'!$E$7:$E$399=\"0\")*('2. Assisted & Restricted Units'!$W$7:$W$399=\"FHDP\")*('2. Assisted & Restricted Units'!$X$7:$X$399=\"55% AMI\"))","v":0},{"$f":"SUMPRODUCT(('2. Assisted & Restricted Units'!$E$7:$E$399=\"0\")*('2. Assisted & Restricted Units'!$W$7:$W$399=\"FMTW\")*('2. Assisted & Restricted Units'!$X$7:$X$399=\"55% AMI\"))","v":0},null,{"$f":"SUMPRODUCT(('2. Assisted & Restricted Units'!$E$7:$E$399=\"0\")*('2. Assisted & Restricted Units'!$W$7:$W$399=\"HOME\")*('2. Assisted & Restricted Units'!$X$7:$X$399=\"55% AMI\"))","v":0},{"$f":"SUMPRODUCT(('2. Assisted & Restricted Units'!$E$7:$E$399=\"0\")*('2. Assisted & Restricted Units'!$W$7:$W$399=\"Market Rate\")*('2. Assisted & Restricted Units'!$X$7:$X$399=\"55% AMI\"))","v":0},{"$f":"SUMPRODUCT(('2. Assisted & Restricted Units'!$E$7:$E$399=\"0\")*('2. Assisted & Restricted Units'!$W$7:$W$399=\"MHP\")*('2. Assisted & Restricted Units'!$X$7:$X$399=\"55% AMI\"))","v":0},{"$f":"SUMPRODUCT(('2. Assisted & Restricted Units'!$E$7:$E$399=\"0\")*('2. Assisted & Restricted Units'!$W$7:$W$399=\"NonAssisted\")*('2. Assisted & Restricted Units'!$X$7:$X$399=\"55% AMI\"))","v":0},{"$f":"SUMPRODUCT(('2. Assisted & Restricted Units'!$E$7:$E$399=\"0\")*('2. Assisted & Restricted Units'!$W$7:$W$399=\"Other Restr\")*('2. Assisted & Restricted Units'!$X$7:$X$399=\"55% AMI\"))","v":0},{"$f":"SUMPRODUCT(('2. Assisted & Restricted Units'!$E$7:$E$399=\"0\")*('2. Assisted & Restricted Units'!$W$7:$W$399=\"RHCP-B\")*('2. Assisted & Restricted Units'!$X$7:$X$399=\"55% AMI\"))","v":0},{"$f":"SUMPRODUCT(('2. Assisted & Restricted Units'!$E$7:$E$399=\"0\")*('2. Assisted & Restricted Units'!$W$7:$W$399=\"SERA\")*('2. Assisted & Restricted Units'!$X$7:$X$399=\"55% AMI\"))","v":0},{"$f":"SUMPRODUCT(('2. Assisted & Restricted Units'!$E$7:$E$399=\"0\")*('2. Assisted & Restricted Units'!$W$7:$W$399=\"SUHRP\")*('2. Assisted & Restricted Units'!$X$7:$X$399=\"55% AMI\"))","v":0},{"$f":"SUMPRODUCT(('2. Assisted & Restricted Units'!$E$7:$E$399=\"0\")*('2. Assisted & Restricted Units'!$W$7:$W$399=\"TOD\")*('2. Assisted & Restricted Units'!$X$7:$X$399=\"55% AMI\"))","v":0},{"$f":"SUMPRODUCT(('2. Assisted & Restricted Units'!$E$7:$E$399=\"0\")*('2. Assisted & Restricted Units'!$W$7:$W$399=\"707-E\")*('2. Assisted & Restricted Units'!$X$7:$X$399=\"55% AMI\"))","v":0},{"$f":"SUMPRODUCT(('2. Assisted & Restricted Units'!$E$7:$E$399=\"0\")*('2. Assisted & Restricted Units'!$W$7:$W$399=\"707-N\")*('2. Assisted & Restricted Units'!$X$7:$X$399=\"55% AMI\"))","v":0}]
["0 Bedroom 60% AMI",{"$f":"SUMPRODUCT(('2. Assisted & Restricted Units'!$E$7:$E$399=\"0\")*('2. Assisted & Restricted Units'!$W$7:$W$399=\"CALDAP\")*('2. Assisted & Restricted Units'!$X$7:$X$399=\"60% AMI\"))","v":0},{"$f":"SUMPRODUCT(('2. Assisted & Restricted Units'!$E$7:$E$399=\"0\")*('2. Assisted & Restricted Units'!$W$7:$W$399=\"CHRP-R\")*('2. Assisted & Restricted Units'!$X$7:$X$399=\"60% AMI\"))","v":0},{"$f":"SUMPRODUCT(('2. Assisted & Restricted Units'!$E$7:$E$399=\"0\")*('2. Assisted & Restricted Units'!$W$7:$W$399=\"DDS\")*('2. Assisted & Restricted Units'!$X$7:$X$399=\"60% AMI\"))","v":0},{"$f":"SUMPRODUCT(('2. Assisted & Restricted Units'!$E$7:$E$399=\"0\")*('2. Assisted & Restricted Units'!$W$7:$W$399=\"DPRLP\")*('2. Assisted & Restricted Units'!$X$7:$X$399=\"60% AMI\"))","v":0},{"$f":"SUMPRODUCT(('2. Assisted & Restricted Units'!$E$7:$E$399=\"0\")*('2. Assisted & Restricted Units'!$W$7:$W$399=\"FHDP\")*('2. Assisted & Restricted Units'!$X$7:$X$399=\"60% AMI\"))","v":0},{"$f":"SUMPRODUCT(('2. Assisted & Restricted Units'!$E$7:$E$399=\"0\")*('2. Assisted & Restricted Units'!$W$7:$W$399=\"FMTW\")*('2. Assisted & Restricted Units'!$X$7:$X$399=\"60% AMI\"))","v":0},null,{"$f":"SUMPRODUCT(('2. Assisted & Restricted Units'!$E$7:$E$399=\"0\")*('2. Assisted & Restricted Units'!$W$7:$W$399=\"HOME\")*('2. Assisted & Restricted Units'!$X$7:$X$399=\"60% AMI\"))","v":0},{"$f":"SUMPRODUCT(('2. Assisted & Restricted Units'!$E$7:$E$399=\"0\")*('2. Assisted & Restricted Units'!$W$7:$W$399=\"Market Rate\")*('2. Assisted & Restricted Units'!$X$7:$X$399=\"60% AMI\"))","v":0},{"$f":"SUMPRODUCT(('2. Assisted & Restricted Units'!$E$7:$E$399=\"0\")*('2. Assisted & Restricted Units'!$W$7:$W$399=\"MHP\")*('2. Assisted & Restricted Units'!$X$7:$X$399=\"60% AMI\"))","v":0},{"$f":"SUMPRODUCT(('2. Assisted & Restricted Units'!$E$7:$E$399=\"0\")*('2. Assisted & Restricted Units'!$W$7:$W$399=\"NonAssisted\")*('2. Assisted & Restricted Units'!$X$7:$X$399=\"60% AMI\"))","v":0},{"$f":"SUMPRODUCT(('2. Assisted & Restricted Units'!$E$7:$E$399=\"0\")*('2. Assisted & Restricted Units'!$W$7:$W$399=\"Other Restr\")*('2. Assisted & Restricted Units'!$X$7:$X$399=\"60% AMI\"))","v":0},{"$f":"SUMPRODUCT(('2. Assisted & Restricted Units'!$E$7:$E$399=\"0\")*('2. Assisted & Restricted Units'!$W$7:$W$399=\"RHCP-B\")*('2. Assisted & Restricted Units'!$X$7:$X$399=\"60% AMI\"))","v":0},{"$f":"SUMPRODUCT(('2. Assisted & Restricted Units'!$E$7:$E$399=\"0\")*('2. Assisted & Restricted Units'!$W$7:$W$399=\"SERA\")*('2. Assisted & Restricted Units'!$X$7:$X$399=\"60% AMI\"))","v":0},{"$f":"SUMPRODUCT(('2. Assisted & Restricted Units'!$E$7:$E$399=\"0\")*('2. Assisted & Restricted Units'!$W$7:$W$399=\"SUHRP\")*('2. Assisted & Restricted Units'!$X$7:$X$399=\"60% AMI\"))","v":0},{"$f":"SUMPRODUCT(('2. Assisted & Restricted Units'!$E$7:$E$399=\"0\")*('2. Assisted & Restricted Units'!$W$7:$W$399=\"TOD\")*('2. Assisted & Restricted Units'!$X$7:$X$399=\"60% AMI\"))","v":0},{"$f":"SUMPRODUCT(('2. Assisted & Restricted Units'!$E$7:$E$399=\"0\")*('2. Assisted & Restricted Units'!$W$7:$W$399=\"707-E\")*('2. Assisted & Restricted Units'!$X$7:$X$399=\"60% AMI\"))","v":0},{"$f":"SUMPRODUCT(('2. Assisted & Restricted Units'!$E$7:$E$399=\"0\")*('2. Assisted & Restricted Units'!$W$7:$W$399=\"707-N\")*('2. Assisted & Restricted Units'!$X$7:$X$399=\"60% AMI\"))","v":0}]
["0 Bedroom 80% AMI",{"$f":"SUMPRODUCT(('2. Assisted & Restricted Units'!$E$7:$E$399=\"0\")*('2. Assisted & Restricted Units'!$W$7:$W$399=\"CALDAP\")*('2. Assisted & Restricted Units'!$X$7:$X$399=\"80% AMI\"))","v":0},{"$f":"SUMPRODUCT(('2. Assisted & Restricted Units'!$E$7:$E$399=\"0\")*('2. Assisted & Restricted Units'!$W$7:$W$399=\"CHRP-R\")*('2. Assisted & Restricted Units'!$X$7:$X$399=\"80% AMI\"))","v":0},{"$f":"SUMPRODUCT(('2. Assisted & Restricted Units'!$E$7:$E$399=\"0\")*('2. Assisted & Restricted Units'!$W$7:$W$399=\"DDS\")*('2. Assisted & Restricted Units'!$X$7:$X$399=\"80% AMI\"))","v":0},{"$f":"SUMPRODUCT(('2. Assisted & Restricted Units'!$E$7:$E$399=\"0\")*('2. Assisted & Restricted Units'!$W$7:$W$399=\"DPRLP\")*('2. Assisted & Restricted Units'!$X$7:$X$399=\"80% AMI\"))","v":0},{"$f":"SUMPRODUCT(('2. Assisted & Restricted Units'!$E$7:$E$399=\"0\")*('2. Assisted & Restricted Units'!$W$7:$W$399=\"FHDP\")*('2. Assisted & Restricted Units'!$X$7:$X$399=\"80% AMI\"))","v":0},{"$f":"SUMPRODUCT(('2. Assisted & Restricted Units'!$E$7:$E$399=\"0\")*('2. Assisted & Restricted Units'!$W$7:$W$399=\"FMTW\")*('2. Assisted & Restricted Units'!$X$7:$X$399=\"80% AMI\"))","v":0},null,{"$f":"SUMPRODUCT(('2. Assisted & Restricted Units'!$E$7:$E$399=\"0\")*('2. Assisted & Restricted Units'!$W$7:$W$399=\"HOME\")*('2. Assisted & Restricted Units'!$X$7:$X$399=\"80% AMI\"))","v":0},{"$f":"SUMPRODUCT(('2. Assisted & Restricted Units'!$E$7:$E$399=\"0\")*('2. Assisted & Restricted Units'!$W$7:$W$399=\"Market Rate\")*('2. Assisted & Restricted Units'!$X$7:$X$399=\"80% AMI\"))","v":0},{"$f":"SUMPRODUCT(('2. Assisted & Restricted Units'!$E$7:$E$399=\"0\")*('2. Assisted & Restricted Units'!$W$7:$W$399=\"MHP\")*('2. Assisted & Restricted Units'!$X$7:$X$399=\"80% AMI\"))","v":0},{"$f":"SUMPRODUCT(('2. Assisted & Restricted Units'!$E$7:$E$399=\"0\")*('2. Assisted & Restricted Units'!$W$7:$W$399=\"NonAssisted\")*('2. Assisted & Restricted Units'!$X$7:$X$399=\"80% AMI\"))","v":0},{"$f":"SUMPRODUCT(('2. Assisted & Restricted Units'!$E$7:$E$399=\"0\")*('2. Assisted & Restricted Units'!$W$7:$W$399=\"Other Restr\")*('2. Assisted & Restricted Units'!$X$7:$X$399=\"80% AMI\"))","v":0},{"$f":"SUMPRODUCT(('2. Assisted & Restricted Units'!$E$7:$E$399=\"0\")*('2. Assisted & Restricted Units'!$W$7:$W$399=\"RHCP-B\")*('2. Assisted & Restricted Units'!$X$7:$X$399=\"80% AMI\"))","v":0},{"$f":"SUMPRODUCT(('2. Assisted & Restricted Units'!$E$7:$E$399=\"0\")*('2. Assisted & Restricted Units'!$W$7:$W$399=\"SERA\")*('2. Assisted & Restricted Units'!$X$7:$X$399=\"80% AMI\"))","v":0},{"$f":"SUMPRODUCT(('2. Assisted & Restricted Units'!$E$7:$E$399=\"0\")*('2. Assisted & Restricted Units'!$W$7:$W$399=\"SUHRP\")*('2. Assisted & Restricted Units'!$X$7:$X$399=\"80% AMI\"))","v":0},{"$f":"SUMPRODUCT(('2. Assisted & Restricted Units'!$E$7:$E$399=\"0\")*('2. Assisted & Restricted Units'!$W$7:$W$399=\"TOD\")*('2. Assisted & Restricted Units'!$X$7:$X$399=\"80% AMI\"))","v":0},{"$f":"SUMPRODUCT(('2. Assisted & Restricted Units'!$E$7:$E$399=\"0\")*('2. Assisted & Restricted Units'!$W$7:$W$399=\"707-E\")*('2. Assisted & Restricted Units'!$X$7:$X$399=\"80% AMI\"))","v":0},{"$f":"SUMPRODUCT(('2. Assisted & Restricted Units'!$E$7:$E$399=\"0\")*('2. Assisted & Restricted Units'!$W$7:$W$399=\"707-N\")*('2. Assisted & Restricted Units'!$X$7:$X$399=\"80% AMI\"))","v":0}]
["0 Bedroom 20% SMI",{"$f":"SUMPRODUCT(('2. Assisted & Restricted Units'!$E$7:$E$399=\"0\")*('2. Assisted & Restricted Units'!$W$7:$W$399=\"CALDAP\")*('2. Assisted & Restricted Units'!$X$7:$X$399=\"20% SMI\"))","v":0},{"$f":"SUMPRODUCT(('2. Assisted & Restricted Units'!$E$7:$E$399=\"0\")*('2. Assisted & Restricted Units'!$W$7:$W$399=\"CHRP-R\")*('2. Assisted & Restricted Units'!$X$7:$X$399=\"20% SMI\"))","v":0},{"$f":"SUMPRODUCT(('2. Assisted & Restricted Units'!$E$7:$E$399=\"0\")*('2. Assisted & Restricted Units'!$W$7:$W$399=\"DDS\")*('2. Assisted & Restricted Units'!$X$7:$X$399=\"20% SMI\"))","v":0},{"$f":"SUMPRODUCT(('2. Assisted & Restricted Units'!$E$7:$E$399=\"0\")*('2. Assisted & Restricted Units'!$W$7:$W$399=\"DPRLP\")*('2. Assisted & Restricted Units'!$X$7:$X$399=\"20% SMI\"))","v":0},{"$f":"SUMPRODUCT(('2. Assisted & Restricted Units'!$E$7:$E$399=\"0\")*('2. Assisted & Restricted Units'!$W$7:$W$399=\"FHDP\")*('2. Assisted & Restricted Units'!$X$7:$X$399=\"20% SMI\"))","v":0},{"$f":"SUMPRODUCT(('2. Assisted & Restricted Units'!$E$7:$E$399=\"0\")*('2. Assisted & Restricted Units'!$W$7:$W$399=\"FMTW\")*('2. Assisted & Restricted Units'!$X$7:$X$399=\"20% SMI\"))","v":0},null,{"$f":"SUMPRODUCT(('2. Assisted & Restricted Units'!$E$7:$E$399=\"0\")*('2. Assisted & Restricted Units'!$W$7:$W$399=\"HOME\")*('2. Assisted & Restricted Units'!$X$7:$X$399=\"20% SMI\"))","v":0},{"$f":"SUMPRODUCT(('2. Assisted & Restricted Units'!$E$7:$E$399=\"0\")*('2. Assisted & Restricted Units'!$W$7:$W$399=\"Market Rate\")*('2. Assisted & Restricted Units'!$X$7:$X$399=\"20% SMI\"))","v":0},{"$f":"SUMPRODUCT(('2. Assisted & Restricted Units'!$E$7:$E$399=\"0\")*('2. Assisted & Restricted Units'!$W$7:$W$399=\"MHP\")*('2. Assisted & Restricted Units'!$X$7:$X$399=\"20% SMI\"))","v":0},{"$f":"SUMPRODUCT(('2. Assisted & Restricted Units'!$E$7:$E$399=\"0\")*('2. Assisted & Restricted Units'!$W$7:$W$399=\"NonAssisted\")*('2. Assisted & Restricted Units'!$X$7:$X$399=\"20% SMI\"))","v":0},{"$f":"SUMPRODUCT(('2. Assisted & Restricted Units'!$E$7:$E$399=\"0\")*('2. Assisted & Restricted Units'!$W$7:$W$399=\"Other Restr\")*('2. Assisted & Restricted Units'!$X$7:$X$399=\"20% SMI\"))","v":0},{"$f":"SUMPRODUCT(('2. Assisted & Restricted Units'!$E$7:$E$399=\"0\")*('2. Assisted & Restricted Units'!$W$7:$W$399=\"RHCP-B\")*('2. Assisted & Restricted Units'!$X$7:$X$399=\"20% SMI\"))","v":0},{"$f":"SUMPRODUCT(('2. Assisted & Restricted Units'!$E$7:$E$399=\"0\")*('2. Assisted & Restricted Units'!$W$7:$W$399=\"SERA\")*('2. Assisted & Restricted Units'!$X$7:$X$399=\"20% SMI\"))","v":0},{"$f":"SUMPRODUCT(('2. Assisted & Restricted Units'!$E$7:$E$399=\"0\")*('2. Assisted & Restricted Units'!$W$7:$W$399=\"SUHRP\")*('2. Assisted & Restricted Units'!$X$7:$X$399=\"20% SMI\"))","v":0},{"$f":"SUMPRODUCT(('2. Assisted & Restricted Units'!$E$7:$E$399=\"0\")*('2. Assisted & Restricted Units'!$W$7:$W$399=\"TOD\")*('2. Assisted & Restricted Units'!$X$7:$X$399=\"20% SMI\"))","v":0},{"$f":"SUMPRODUCT(('2. Assisted & Restricted Units'!$E$7:$E$399=\"0\")*('2. Assisted & Restricted Units'!$W$7:$W$399=\"707-E\")*('2. Assisted & Restricted Units'!$X$7:$X$399=\"20% SMI\"))","v":0},{"$f":"SUMPRODUCT(('2. Assisted & Restricted Units'!$E$7:$E$399=\"0\")*('2. Assisted & Restricted Units'!$W$7:$W$399=\"707-N\")*('2. Assisted & Restricted Units'!$X$7:$X$399=\"20% SMI\"))","v":0}]
["0 Bedroom 25% SMI",{"$f":"SUMPRODUCT(('2. Assisted & Restricted Units'!$E$7:$E$399=\"0\")*('2. Assisted & Restricted Units'!$W$7:$W$399=\"CALDAP\")*('2. Assisted & Restricted Units'!$X$7:$X$399=\"25% SMI\"))","v":0},{"$f":"SUMPRODUCT(('2. Assisted & Restricted Units'!$E$7:$E$399=\"0\")*('2. Assisted & Restricted Units'!$W$7:$W$399=\"CHRP-R\")*('2. Assisted & Restricted Units'!$X$7:$X$399=\"25% SMI\"))","v":0},{"$f":"SUMPRODUCT(('2. Assisted & Restricted Units'!$E$7:$E$399=\"0\")*('2. Assisted & Restricted Units'!$W$7:$W$399=\"DDS\")*('2. Assisted & Restricted Units'!$X$7:$X$399=\"25% SMI\"))","v":0},{"$f":"SUMPRODUCT(('2. Assisted & Restricted Units'!$E$7:$E$399=\"0\")*('2. Assisted & Restricted Units'!$W$7:$W$399=\"DPRLP\")*('2. Assisted & Restricted Units'!$X$7:$X$399=\"25% SMI\"))","v":0},{"$f":"SUMPRODUCT(('2. Assisted & Restricted Units'!$E$7:$E$399=\"0\")*('2. Assisted & Restricted Units'!$W$7:$W$399=\"FHDP\")*('2. Assisted & Restricted Units'!$X$7:$X$399=\"25% SMI\"))","v":0},{"$f":"SUMPRODUCT(('2. Assisted & Restricted Units'!$E$7:$E$399=\"0\")*('2. Assisted & Restricted Units'!$W$7:$W$399=\"FMTW\")*('2. Assisted & Restricted Units'!$X$7:$X$399=\"25% SMI\"))","v":0},null,{"$f":"SUMPRODUCT(('2. Assisted & Restricted Units'!$E$7:$E$399=\"0\")*('2. Assisted & Restricted Units'!$W$7:$W$399=\"HOME\")*('2. Assisted & Restricted Units'!$X$7:$X$399=\"25% SMI\"))","v":0},{"$f":"SUMPRODUCT(('2. Assisted & Restricted Units'!$E$7:$E$399=\"0\")*('2. Assisted & Restricted Units'!$W$7:$W$399=\"Market Rate\")*('2. Assisted & Restricted Units'!$X$7:$X$399=\"25% SMI\"))","v":0},{"$f":"SUMPRODUCT(('2. Assisted & Restricted Units'!$E$7:$E$399=\"0\")*('2. Assisted & Restricted Units'!$W$7:$W$399=\"MHP\")*('2. Assisted & Restricted Units'!$X$7:$X$399=\"25% SMI\"))","v":0},{"$f":"SUMPRODUCT(('2. Assisted & Restricted Units'!$E$7:$E$399=\"0\")*('2. Assisted & Restricted Units'!$W$7:$W$399=\"NonAssisted\")*('2. Assisted & Restricted Units'!$X$7:$X$399=\"25% SMI\"))","v":0},{"$f":"SUMPRODUCT(('2. Assisted & Restricted Units'!$E$7:$E$399=\"0\")*('2. Assisted & Restricted Units'!$W$7:$W$399=\"Other Restr\")*('2. Assisted & Restricted Units'!$X$7:$X$399=\"25% SMI\"))","v":0},{"$f":"SUMPRODUCT(('2. Assisted & Restricted Units'!$E$7:$E$399=\"0\")*('2. Assisted & Restricted Units'!$W$7:$W$399=\"RHCP-B\")*('2. Assisted & Restricted Units'!$X$7:$X$399=\"25% SMI\"))","v":0},{"$f":"SUMPRODUCT(('2. Assisted & Restricted Units'!$E$7:$E$399=\"0\")*('2. Assisted & Restricted Units'!$W$7:$W$399=\"SERA\")*('2. Assisted & Restricted Units'!$X$7:$X$399=\"25% SMI\"))","v":0},{"$f":"SUMPRODUCT(('2. Assisted & Restricted Units'!$E$7:$E$399=\"0\")*('2. Assisted & Restricted Units'!$W$7:$W$399=\"SUHRP\")*('2. Assisted & Restricted Units'!$X$7:$X$399=\"25% SMI\"))","v":0},{"$f":"SUMPRODUCT(('2. Assisted & Restricted Units'!$E$7:$E$399=\"0\")*('2. Assisted & Restricted Units'!$W$7:$W$399=\"TOD\")*('2. Assisted & Restricted Units'!$X$7:$X$399=\"25% SMI\"))","v":0},{"$f":"SUMPRODUCT(('2. Assisted & Restricted Units'!$E$7:$E$399=\"0\")*('2. Assisted & Restricted Units'!$W$7:$W$399=\"707-E\")*('2. Assisted & Restricted Units'!$X$7:$X$399=\"25% SMI\"))","v":0},{"$f":"SUMPRODUCT(('2. Assisted & Restricted Units'!$E$7:$E$399=\"0\")*('2. Assisted & Restricted Units'!$W$7:$W$399=\"707-N\")*('2. Assisted & Restricted Units'!$X$7:$X$399=\"25% SMI\"))","v":0}]
["0 Bedroom 30% SMI",{"$f":"SUMPRODUCT(('2. Assisted & Restricted Units'!$E$7:$E$399=\"0\")*('2. Assisted & Restricted Units'!$W$7:$W$399=\"CALDAP\")*('2. Assisted & Restricted Units'!$X$7:$X$399=\"30% SMI\"))","v":0},{"$f":"SUMPRODUCT(('2. Assisted & Restricted Units'!$E$7:$E$399=\"0\")*('2. Assisted & Restricted Units'!$W$7:$W$399=\"CHRP-R\")*('2. Assisted & Restricted Units'!$X$7:$X$399=\"30% SMI\"))","v":0},{"$f":"SUMPRODUCT(('2. Assisted & Restricted Units'!$E$7:$E$399=\"0\")*('2. Assisted & Restricted Units'!$W$7:$W$399=\"DDS\")*('2. Assisted & Restricted Units'!$X$7:$X$399=\"30% SMI\"))","v":0},{"$f":"SUMPRODUCT(('2. Assisted & Restricted Units'!$E$7:$E$399=\"0\")*('2. Assisted & Restricted Units'!$W$7:$W$399=\"DPRLP\")*('2. Assisted & Restricted Units'!$X$7:$X$399=\"30% SMI\"))","v":0},{"$f":"SUMPRODUCT(('2. Assisted & Restricted Units'!$E$7:$E$399=\"0\")*('2. Assisted & Restricted Units'!$W$7:$W$399=\"FHDP\")*('2. Assisted & Restricted Units'!$X$7:$X$399=\"30% SMI\"))","v":0},{"$f":"SUMPRODUCT(('2. Assisted & Restricted Units'!$E$7:$E$399=\"0\")*('2. Assisted & Restricted Units'!$W$7:$W$399=\"FMTW\")*('2. Assisted & Restricted Units'!$X$7:$X$399=\"30% SMI\"))","v":0},null,{"$f":"SUMPRODUCT(('2. Assisted & Restricted Units'!$E$7:$E$399=\"0\")*('2. Assisted & Restricted Units'!$W$7:$W$399=\"HOME\")*('2. Assisted & Restricted Units'!$X$7:$X$399=\"30% SMI\"))","v":0},{"$f":"SUMPRODUCT(('2. Assisted & Restricted Units'!$E$7:$E$399=\"0\")*('2. Assisted & Restricted Units'!$W$7:$W$399=\"Market Rate\")*('2. Assisted & Restricted Units'!$X$7:$X$399=\"30% SMI\"))","v":0},{"$f":"SUMPRODUCT(('2. Assisted & Restricted Units'!$E$7:$E$399=\"0\")*('2. Assisted & Restricted Units'!$W$7:$W$399=\"MHP\")*('2. Assisted & Restricted Units'!$X$7:$X$399=\"30% SMI\"))","v":0},{"$f":"SUMPRODUCT(('2. Assisted & Restricted Units'!$E$7:$E$399=\"0\")*('2. Assisted & Restricted Units'!$W$7:$W$399=\"NonAssisted\")*('2. Assisted & Restricted Units'!$X$7:$X$399=\"30% SMI\"))","v":0},{"$f":"SUMPRODUCT(('2. Assisted & Restricted Units'!$E$7:$E$399=\"0\")*('2. Assisted & Restricted Units'!$W$7:$W$399=\"Other Restr\")*('2. Assisted & Restricted Units'!$X$7:$X$399=\"30% SMI\"))","v":0},{"$f":"SUMPRODUCT(('2. Assisted & Restricted Units'!$E$7:$E$399=\"0\")*('2. Assisted & Restricted Units'!$W$7:$W$399=\"RHCP-B\")*('2. Assisted & Restricted Units'!$X$7:$X$399=\"30% SMI\"))","v":0},{"$f":"SUMPRODUCT(('2. Assisted & Restricted Units'!$E$7:$E$399=\"0\")*('2. Assisted & Restricted Units'!$W$7:$W$399=\"SERA\")*('2. Assisted & Restricted Units'!$X$7:$X$399=\"30% SMI\"))","v":0},{"$f":"SUMPRODUCT(('2. Assisted & Restricted Units'!$E$7:$E$399=\"0\")*('2. Assisted & Restricted Units'!$W$7:$W$399=\"SUHRP\")*('2. Assisted & Restricted Units'!$X$7:$X$399=\"30% SMI\"))","v":0},{"$f":"SUMPRODUCT(('2. Assisted & Restricted Units'!$E$7:$E$399=\"0\")*('2. Assisted & Restricted Units'!$W$7:$W$399=\"TOD\")*('2. Assisted & Restricted Units'!$X$7:$X$399=\"30% SMI\"))","v":0},{"$f":"SUMPRODUCT(('2. Assisted & Restricted Units'!$E$7:$E$399=\"0\")*('2. Assisted & Restricted Units'!$W$7:$W$399=\"707-E\")*('2. Assisted & Restricted Units'!$X$7:$X$399=\"30% SMI\"))","v":0},{"$f":"SUMPRODUCT(('2. Assisted & Restricted Units'!$E$7:$E$399=\"0\")*('2. Assisted & Restricted Units'!$W$7:$W$399=\"707-N\")*('2. Assisted & Restricted Units'!$X$7:$X$399=\"30% SMI\"))","v":0}]
["0 Bedroom 35% SMI",{"$f":"SUMPRODUCT(('2. Assisted & Restricted Units'!$E$7:$E$399=\"0\")*('2. Assisted & Restricted Units'!$W$7:$W$399=\"CALDAP\")*('2. Assisted & Restricted Units'!$X$7:$X$399=\"35% SMI\"))","v":0},{"$f":"SUMPRODUCT(('2. Assisted & Restricted Units'!$E$7:$E$399=\"0\")*('2. Assisted & Restricted Units'!$W$7:$W$399=\"CHRP-R\")*('2. Assisted & Restricted Units'!$X$7:$X$399=\"35% SMI\"))","v":0},{"$f":"SUMPRODUCT(('2. Assisted & Restricted Units'!$E$7:$E$399=\"0\")*('2. Assisted & Restricted Units'!$W$7:$W$399=\"DDS\")*('2. Assisted & Restricted Units'!$X$7:$X$399=\"35% SMI\"))","v":0},{"$f":"SUMPRODUCT(('2. Assisted & Restricted Units'!$E$7:$E$399=\"0\")*('2. Assisted & Restricted Units'!$W$7:$W$399=\"DPRLP\")*('2. Assisted & Restricted Units'!$X$7:$X$399=\"35% SMI\"))","v":0},{"$f":"SUMPRODUCT(('2. Assisted & Restricted Units'!$E$7:$E$399=\"0\")*('2. Assisted & Restricted Units'!$W$7:$W$399=\"FHDP\")*('2. Assisted & Restricted Units'!$X$7:$X$399=\"35% SMI\"))","v":0},{"$f":"SUMPRODUCT(('2. Assisted & Restricted Units'!$E$7:$E$399=\"0\")*('2. Assisted & Restricted Units'!$W$7:$W$399=\"FMTW\")*('2. Assisted & Restricted Units'!$X$7:$X$399=\"35% SMI\"))","v":0},null,{"$f":"SUMPRODUCT(('2. Assisted & Restricted Units'!$E$7:$E$399=\"0\")*('2. Assisted & Restricted Units'!$W$7:$W$399=\"HOME\")*('2. Assisted & Restricted Units'!$X$7:$X$399=\"35% SMI\"))","v":0},{"$f":"SUMPRODUCT(('2. Assisted & Restricted Units'!$E$7:$E$399=\"0\")*('2. Assisted & Restricted Units'!$W$7:$W$399=\"Market Rate\")*('2. Assisted & Restricted Units'!$X$7:$X$399=\"35% SMI\"))","v":0},{"$f":"SUMPRODUCT(('2. Assisted & Restricted Units'!$E$7:$E$399=\"0\")*('2. Assisted & Restricted Units'!$W$7:$W$399=\"MHP\")*('2. Assisted & Restricted Units'!$X$7:$X$399=\"35% SMI\"))","v":0},{"$f":"SUMPRODUCT(('2. Assisted & Restricted Units'!$E$7:$E$399=\"0\")*('2. Assisted & Restricted Units'!$W$7:$W$399=\"NonAssisted\")*('2. Assisted & Restricted Units'!$X$7:$X$399=\"35% SMI\"))","v":0},{"$f":"SUMPRODUCT(('2. Assisted & Restricted Units'!$E$7:$E$399=\"0\")*('2. Assisted & Restricted Units'!$W$7:$W$399=\"Other Restr\")*('2. Assisted & Restricted Units'!$X$7:$X$399=\"35% SMI\"))","v":0},{"$f":"SUMPRODUCT(('2. Assisted & Restricted Units'!$E$7:$E$399=\"0\")*('2. Assisted & Restricted Units'!$W$7:$W$399=\"RHCP-B\")*('2. Assisted & Restricted Units'!$X$7:$X$399=\"35% SMI\"))","v":0},{"$f":"SUMPRODUCT(('2. Assisted & Restricted Units'!$E$7:$E$399=\"0\")*('2. Assisted & Restricted Units'!$W$7:$W$399=\"SERA\")*('2. Assisted & Restricted Units'!$X$7:$X$399=\"35% SMI\"))","v":0},{"$f":"SUMPRODUCT(('2. Assisted & Restricted Units'!$E$7:$E$399=\"0\")*('2. Assisted & Restricted Units'!$W$7:$W$399=\"SUHRP\")*('2. Assisted & Restricted Units'!$X$7:$X$399=\"35% SMI\"))","v":0},{"$f":"SUMPRODUCT(('2. Assisted & Restricted Units'!$E$7:$E$399=\"0\")*('2. Assisted & Restricted Units'!$W$7:$W$399=\"TOD\")*('2. Assisted & Restricted Units'!$X$7:$X$399=\"35% SMI\"))","v":0},{"$f":"SUMPRODUCT(('2. Assisted & Restricted Units'!$E$7:$E$399=\"0\")*('2. Assisted & Restricted Units'!$W$7:$W$399=\"707-E\")*('2. Assisted & Restricted Units'!$X$7:$X$399=\"35% SMI\"))","v":0},{"$f":"SUMPRODUCT(('2. Assisted & Restricted Units'!$E$7:$E$399=\"0\")*('2. Assisted & Restricted Units'!$W$7:$W$399=\"707-N\")*('2. Assisted & Restricted Units'!$X$7:$X$399=\"35% SMI\"))","v":0}]
["0 Bedroom 40% SMI",{"$f":"SUMPRODUCT(('2. Assisted & Restricted Units'!$E$7:$E$399=\"0\")*('2. Assisted & Restricted Units'!$W$7:$W$399=\"CALDAP\")*('2. Assisted & Restricted Units'!$X$7:$X$399=\"40% SMI\"))","v":0},{"$f":"SUMPRODUCT(('2. Assisted & Restricted Units'!$E$7:$E$399=\"0\")*('2. Assisted & Restricted Units'!$W$7:$W$399=\"CHRP-R\")*('2. Assisted & Restricted Units'!$X$7:$X$399=\"40% SMI\"))","v":0},{"$f":"SUMPRODUCT(('2. Assisted & Restricted Units'!$E$7:$E$399=\"0\")*('2. Assisted & Restricted Units'!$W$7:$W$399=\"DDS\")*('2. Assisted & Restricted Units'!$X$7:$X$399=\"40% SMI\"))","v":0},{"$f":"SUMPRODUCT(('2. Assisted & Restricted Units'!$E$7:$E$399=\"0\")*('2. Assisted & Restricted Units'!$W$7:$W$399=\"DPRLP\")*('2. Assisted & Restricted Units'!$X$7:$X$399=\"40% SMI\"))","v":0},{"$f":"SUMPRODUCT(('2. Assisted & Restricted Units'!$E$7:$E$399=\"0\")*('2. Assisted & Restricted Units'!$W$7:$W$399=\"FHDP\")*('2. Assisted & Restricted Units'!$X$7:$X$399=\"40% SMI\"))","v":0},{"$f":"SUMPRODUCT(('2. Assisted & Restricted Units'!$E$7:$E$399=\"0\")*('2. Assisted & Restricted Units'!$W$7:$W$399=\"FMTW\")*('2. Assisted & Restricted Units'!$X$7:$X$399=\"40% SMI\"))","v":0},null,{"$f":"SUMPRODUCT(('2. Assisted & Restricted Units'!$E$7:$E$399=\"0\")*('2. Assisted & Restricted Units'!$W$7:$W$399=\"HOME\")*('2. Assisted & Restricted Units'!$X$7:$X$399=\"40% SMI\"))","v":0},{"$f":"SUMPRODUCT(('2. Assisted & Restricted Units'!$E$7:$E$399=\"0\")*('2. Assisted & Restricted Units'!$W$7:$W$399=\"Market Rate\")*('2. Assisted & Restricted Units'!$X$7:$X$399=\"40% SMI\"))","v":0},{"$f":"SUMPRODUCT(('2. Assisted & Restricted Units'!$E$7:$E$399=\"0\")*('2. Assisted & Restricted Units'!$W$7:$W$399=\"MHP\")*('2. Assisted & Restricted Units'!$X$7:$X$399=\"40% SMI\"))","v":0},{"$f":"SUMPRODUCT(('2. Assisted & Restricted Units'!$E$7:$E$399=\"0\")*('2. Assisted & Restricted Units'!$W$7:$W$399=\"NonAssisted\")*('2. Assisted & Restricted Units'!$X$7:$X$399=\"40% SMI\"))","v":0},{"$f":"SUMPRODUCT(('2. Assisted & Restricted Units'!$E$7:$E$399=\"0\")*('2. Assisted & Restricted Units'!$W$7:$W$399=\"Other Restr\")*('2. Assisted & Restricted Units'!$X$7:$X$399=\"40% SMI\"))","v":0},{"$f":"SUMPRODUCT(('2. Assisted & Restricted Units'!$E$7:$E$399=\"0\")*('2. Assisted & Restricted Units'!$W$7:$W$399=\"RHCP-B\")*('2. Assisted & Restricted Units'!$X$7:$X$399=\"40% SMI\"))","v":0},{"$f":"SUMPRODUCT(('2. Assisted & Restricted Units'!$E$7:$E$399=\"0\")*('2. Assisted & Restricted Units'!$W$7:$W$399=\"SERA\")*('2. Assisted & Restricted Units'!$X$7:$X$399=\"40% SMI\"))","v":0},{"$f":"SUMPRODUCT(('2. Assisted & Restricted Units'!$E$7:$E$399=\"0\")*('2. Assisted & Restricted Units'!$W$7:$W$399=\"SUHRP\")*('2. Assisted & Restricted Units'!$X$7:$X$399=\"40% SMI\"))","v":0},{"$f":"SUMPRODUCT(('2. Assisted & Restricted Units'!$E$7:$E$399=\"0\")*('2. Assisted & Restricted Units'!$W$7:$W$399=\"TOD\")*('2. Assisted & Restricted Units'!$X$7:$X$399=\"40% SMI\"))","v":0},{"$f":"SUMPRODUCT(('2. Assisted & Restricted Units'!$E$7:$E$399=\"0\")*('2. Assisted & Restricted Units'!$W$7:$W$399=\"707-E\")*('2. Assisted & Restricted Units'!$X$7:$X$399=\"40% SMI\"))","v":0},{"$f":"SUMPRODUCT(('2. Assisted & Restricted Units'!$E$7:$E$399=\"0\")*('2. Assisted & Restricted Units'!$W$7:$W$399=\"707-N\")*('2. Assisted & Restricted Units'!$X$7:$X$399=\"40% SMI\"))","v":0}]
["0 Bedroom 45% SMI",{"$f":"SUMPRODUCT(('2. Assisted & Restricted Units'!$E$7:$E$399=\"0\")*('2. Assisted & Restricted Units'!$W$7:$W$399=\"CALDAP\")*('2. Assisted & Restricted Units'!$X$7:$X$399=\"45% SMI\"))","v":0},{"$f":"SUMPRODUCT(('2. Assisted & Restricted Units'!$E$7:$E$399=\"0\")*('2. Assisted & Restricted Units'!$W$7:$W$399=\"CHRP-R\")*('2. Assisted & Restricted Units'!$X$7:$X$399=\"45% SMI\"))","v":0},{"$f":"SUMPRODUCT(('2. Assisted & Restricted Units'!$E$7:$E$399=\"0\")*('2. Assisted & Restricted Units'!$W$7:$W$399=\"DDS\")*('2. Assisted & Restricted Units'!$X$7:$X$399=\"45% SMI\"))","v":0},{"$f":"SUMPRODUCT(('2. Assisted & Restricted Units'!$E$7:$E$399=\"0\")*('2. Assisted & Restricted Units'!$W$7:$W$399=\"DPRLP\")*('2. Assisted & Restricted Units'!$X$7:$X$399=\"45% SMI\"))","v":0},{"$f":"SUMPRODUCT(('2. Assisted & Restricted Units'!$E$7:$E$399=\"0\")*('2. Assisted & Restricted Units'!$W$7:$W$399=\"FHDP\")*('2. Assisted & Restricted Units'!$X$7:$X$399=\"45% SMI\"))","v":0},{"$f":"SUMPRODUCT(('2. Assisted & Restricted Units'!$E$7:$E$399=\"0\")*('2. Assisted & Restricted Units'!$W$7:$W$399=\"FMTW\")*('2. Assisted & Restricted Units'!$X$7:$X$399=\"45% SMI\"))","v":0},null,{"$f":"SUMPRODUCT(('2. Assisted & Restricted Units'!$E$7:$E$399=\"0\")*('2. Assisted & Restricted Units'!$W$7:$W$399=\"HOME\")*('2. Assisted & Restricted Units'!$X$7:$X$399=\"45% SMI\"))","v":0},{"$f":"SUMPRODUCT(('2. Assisted & Restricted Units'!$E$7:$E$399=\"0\")*('2. Assisted & Restricted Units'!$W$7:$W$399=\"Market Rate\")*('2. Assisted & Restricted Units'!$X$7:$X$399=\"45% SMI\"))","v":0},{"$f":"SUMPRODUCT(('2. Assisted & Restricted Units'!$E$7:$E$399=\"0\")*('2. Assisted & Restricted Units'!$W$7:$W$399=\"MHP\")*('2. Assisted & Restricted Units'!$X$7:$X$399=\"45% SMI\"))","v":0},{"$f":"SUMPRODUCT(('2. Assisted & Restricted Units'!$E$7:$E$399=\"0\")*('2. Assisted & Restricted Units'!$W$7:$W$399=\"NonAssisted\")*('2. Assisted & Restricted Units'!$X$7:$X$399=\"45% SMI\"))","v":0},{"$f":"SUMPRODUCT(('2. Assisted & Restricted Units'!$E$7:$E$399=\"0\")*('2. Assisted & Restricted Units'!$W$7:$W$399=\"Other Restr\")*('2. Assisted & Restricted Units'!$X$7:$X$399=\"45% SMI\"))","v":0},{"$f":"SUMPRODUCT(('2. Assisted & Restricted Units'!$E$7:$E$399=\"0\")*('2. Assisted & Restricted Units'!$W$7:$W$399=\"RHCP-B\")*('2. Assisted & Restricted Units'!$X$7:$X$399=\"45% SMI\"))","v":0},{"$f":"SUMPRODUCT(('2. Assisted & Restricted Units'!$E$7:$E$399=\"0\")*('2. Assisted & Restricted Units'!$W$7:$W$399=\"SERA\")*('2. Assisted & Restricted Units'!$X$7:$X$399=\"45% SMI\"))","v":0},{"$f":"SUMPRODUCT(('2. Assisted & Restricted Units'!$E$7:$E$399=\"0\")*('2. Assisted & Restricted Units'!$W$7:$W$399=\"SUHRP\")*('2. Assisted & Restricted Units'!$X$7:$X$399=\"45% SMI\"))","v":0},{"$f":"SUMPRODUCT(('2. Assisted & Restricted Units'!$E$7:$E$399=\"0\")*('2. Assisted & Restricted Units'!$W$7:$W$399=\"TOD\")*('2. Assisted & Restricted Units'!$X$7:$X$399=\"45% SMI\"))","v":0},{"$f":"SUMPRODUCT(('2. Assisted & Restricted Units'!$E$7:$E$399=\"0\")*('2. Assisted & Restricted Units'!$W$7:$W$399=\"707-E\")*('2. Assisted & Restricted Units'!$X$7:$X$399=\"45% SMI\"))","v":0},{"$f":"SUMPRODUCT(('2. Assisted & Restricted Units'!$E$7:$E$399=\"0\")*('2. Assisted & Restricted Units'!$W$7:$W$399=\"707-N\")*('2. Assisted & Restricted Units'!$X$7:$X$399=\"45% SMI\"))","v":0}]
["0 Bedroom 50% SMI",{"$f":"SUMPRODUCT(('2. Assisted & Restricted Units'!$E$7:$E$399=\"0\")*('2. Assisted & Restricted Units'!$W$7:$W$399=\"CALDAP\")*('2. Assisted & Restricted Units'!$X$7:$X$399=\"50% SMI\"))","v":0},{"$f":"SUMPRODUCT(('2. Assisted & Restricted Units'!$E$7:$E$399=\"0\")*('2. Assisted & Restricted Units'!$W$7:$W$399=\"CHRP-R\")*('2. Assisted & Restricted Units'!$X$7:$X$399=\"50% SMI\"))","v":0},{"$f":"SUMPRODUCT(('2. Assisted & Restricted Units'!$E$7:$E$399=\"0\")*('2. Assisted & Restricted Units'!$W$7:$W$399=\"DDS\")*('2. Assisted & Restricted Units'!$X$7:$X$399=\"50% SMI\"))","v":0},{"$f":"SUMPRODUCT(('2. Assisted & Restricted Units'!$E$7:$E$399=\"0\")*('2. Assisted & Restricted Units'!$W$7:$W$399=\"DPRLP\")*('2. Assisted & Restricted Units'!$X$7:$X$399=\"50% SMI\"))","v":0},{"$f":"SUMPRODUCT(('2. Assisted & Restricted Units'!$E$7:$E$399=\"0\")*('2. Assisted & Restricted Units'!$W$7:$W$399=\"FHDP\")*('2. Assisted & Restricted Units'!$X$7:$X$399=\"50% SMI\"))","v":0},{"$f":"SUMPRODUCT(('2. Assisted & Restricted Units'!$E$7:$E$399=\"0\")*('2. Assisted & Restricted Units'!$W$7:$W$399=\"FMTW\")*('2. Assisted & Restricted Units'!$X$7:$X$399=\"50% SMI\"))","v":0},null,{"$f":"SUMPRODUCT(('2. Assisted & Restricted Units'!$E$7:$E$399=\"0\")*('2. Assisted & Restricted Units'!$W$7:$W$399=\"HOME\")*('2. Assisted & Restricted Units'!$X$7:$X$399=\"50% SMI\"))","v":0},{"$f":"SUMPRODUCT(('2. Assisted & Restricted Units'!$E$7:$E$399=\"0\")*('2. Assisted & Restricted Units'!$W$7:$W$399=\"Market Rate\")*('2. Assisted & Restricted Units'!$X$7:$X$399=\"50% SMI\"))","v":0},{"$f":"SUMPRODUCT(('2. Assisted & Restricted Units'!$E$7:$E$399=\"0\")*('2. Assisted & Restricted Units'!$W$7:$W$399=\"MHP\")*('2. Assisted & Restricted Units'!$X$7:$X$399=\"50% SMI\"))","v":0},{"$f":"SUMPRODUCT(('2. Assisted & Restricted Units'!$E$7:$E$399=\"0\")*('2. Assisted & Restricted Units'!$W$7:$W$399=\"NonAssisted\")*('2. Assisted & Restricted Units'!$X$7:$X$399=\"50% SMI\"))","v":0},{"$f":"SUMPRODUCT(('2. Assisted & Restricted Units'!$E$7:$E$399=\"0\")*('2. Assisted & Restricted Units'!$W$7:$W$399=\"Other Restr\")*('2. Assisted & Restricted Units'!$X$7:$X$399=\"50% SMI\"))","v":0},{"$f":"SUMPRODUCT(('2. Assisted & Restricted Units'!$E$7:$E$399=\"0\")*('2. Assisted & Restricted Units'!$W$7:$W$399=\"RHCP-B\")*('2. Assisted & Restricted Units'!$X$7:$X$399=\"50% SMI\"))","v":0},{"$f":"SUMPRODUCT(('2. Assisted & Restricted Units'!$E$7:$E$399=\"0\")*('2. Assisted & Restricted Units'!$W$7:$W$399=\"SERA\")*('2. Assisted & Restricted Units'!$X$7:$X$399=\"50% SMI\"))","v":0},{"$f":"SUMPRODUCT(('2. Assisted & Restricted Units'!$E$7:$E$399=\"0\")*('2. Assisted & Restricted Units'!$W$7:$W$399=\"SUHRP\")*('2. Assisted & Restricted Units'!$X$7:$X$399=\"50% SMI\"))","v":0},{"$f":"SUMPRODUCT(('2. Assisted & Restricted Units'!$E$7:$E$399=\"0\")*('2. Assisted & Restricted Units'!$W$7:$W$399=\"TOD\")*('2. Assisted & Restricted Units'!$X$7:$X$399=\"50% SMI\"))","v":0},{"$f":"SUMPRODUCT(('2. Assisted & Restricted Units'!$E$7:$E$399=\"0\")*('2. Assisted & Restricted Units'!$W$7:$W$399=\"707-E\")*('2. Assisted & Restricted Units'!$X$7:$X$399=\"50% SMI\"))","v":0},{"$f":"SUMPRODUCT(('2. Assisted & Restricted Units'!$E$7:$E$399=\"0\")*('2. Assisted & Restricted Units'!$W$7:$W$399=\"707-N\")*('2. Assisted & Restricted Units'!$X$7:$X$399=\"50% SMI\"))","v":0}]
["0 Bedroom 100% SMI",{"$f":"SUMPRODUCT(('2. Assisted & Restricted Units'!$E$7:$E$399=\"0\")*('2. Assisted & Restricted Units'!$W$7:$W$399=\"CALDAP\")*('2. Assisted & Restricted Units'!$X$7:$X$399=\"100% SMI\"))","v":0},{"$f":"SUMPRODUCT(('2. Assisted & Restricted Units'!$E$7:$E$399=\"0\")*('2. Assisted & Restricted Units'!$W$7:$W$399=\"CHRP-R\")*('2. Assisted & Restricted Units'!$X$7:$X$399=\"100% SMI\"))","v":0},{"$f":"SUMPRODUCT(('2. Assisted & Restricted Units'!$E$7:$E$399=\"0\")*('2. Assisted & Restricted Units'!$W$7:$W$399=\"DDS\")*('2. Assisted & Restricted Units'!$X$7:$X$399=\"100% SMI\"))","v":0},{"$f":"SUMPRODUCT(('2. Assisted & Restricted Units'!$E$7:$E$399=\"0\")*('2. Assisted & Restricted Units'!$W$7:$W$399=\"DPRLP\")*('2. Assisted & Restricted Units'!$X$7:$X$399=\"100% SMI\"))","v":0},{"$f":"SUMPRODUCT(('2. Assisted & Restricted Units'!$E$7:$E$399=\"0\")*('2. Assisted & Restricted Units'!$W$7:$W$399=\"FHDP\")*('2. Assisted & Restricted Units'!$X$7:$X$399=\"100% SMI\"))","v":0},{"$f":"SUMPRODUCT(('2. Assisted & Restricted Units'!$E$7:$E$399=\"0\")*('2. Assisted & Restricted Units'!$W$7:$W$399=\"FMTW\")*('2. Assisted & Restricted Units'!$X$7:$X$399=\"100% SMI\"))","v":0},null,{"$f":"SUMPRODUCT(('2. Assisted & Restricted Units'!$E$7:$E$399=\"0\")*('2. Assisted & Restricted Units'!$W$7:$W$399=\"HOME\")*('2. Assisted & Restricted Units'!$X$7:$X$399=\"100% SMI\"))","v":0},{"$f":"SUMPRODUCT(('2. Assisted & Restricted Units'!$E$7:$E$399=\"0\")*('2. Assisted & Restricted Units'!$W$7:$W$399=\"Market Rate\")*('2. Assisted & Restricted Units'!$X$7:$X$399=\"100% SMI\"))","v":0},{"$f":"SUMPRODUCT(('2. Assisted & Restricted Units'!$E$7:$E$399=\"0\")*('2. Assisted & Restricted Units'!$W$7:$W$399=\"MHP\")*('2. Assisted & Restricted Units'!$X$7:$X$399=\"100% SMI\"))","v":0},{"$f":"SUMPRODUCT(('2. Assisted & Restricted Units'!$E$7:$E$399=\"0\")*('2. Assisted & Restricted Units'!$W$7:$W$399=\"NonAssisted\")*('2. Assisted & Restricted Units'!$X$7:$X$399=\"100% SMI\"))","v":0},{"$f":"SUMPRODUCT(('2. Assisted & Restricted Units'!$E$7:$E$399=\"0\")*('2. Assisted & Restricted Units'!$W$7:$W$399=\"Other Restr\")*('2. Assisted & Restricted Units'!$X$7:$X$399=\"100% SMI\"))","v":0},{"$f":"SUMPRODUCT(('2. Assisted & Restricted Units'!$E$7:$E$399=\"0\")*('2. Assisted & Restricted Units'!$W$7:$W$399=\"RHCP-B\")*('2. Assisted & Restricted Units'!$X$7:$X$399=\"100% SMI\"))","v":0},{"$f":"SUMPRODUCT(('2. Assisted & Restricted Units'!$E$7:$E$399=\"0\")*('2. Assisted & Restricted Units'!$W$7:$W$399=\"SERA\")*('2. Assisted & Restricted Units'!$X$7:$X$399=\"100% SMI\"))","v":0},{"$f":"SUMPRODUCT(('2. Assisted & Restricted Units'!$E$7:$E$399=\"0\")*('2. Assisted & Restricted Units'!$W$7:$W$399=\"SUHRP\")*('2. Assisted & Restricted Units'!$X$7:$X$399=\"100% SMI\"))","v":0},{"$f":"SUMPRODUCT(('2. Assisted & Restricted Units'!$E$7:$E$399=\"0\")*('2. Assisted & Restricted Units'!$W$7:$W$399=\"TOD\")*('2. Assisted & Restricted Units'!$X$7:$X$399=\"100% SMI\"))","v":0},{"$f":"SUMPRODUCT(('2. Assisted & Restricted Units'!$E$7:$E$399=\"0\")*('2. Assisted & Restricted Units'!$W$7:$W$399=\"707-E\")*('2. Assisted & Restricted Units'!$X$7:$X$399=\"100% SMI\"))","v":0},{"$f":"SUMPRODUCT(('2. Assisted & Restricted Units'!$E$7:$E$399=\"0\")*('2. Assisted & Restricted Units'!$W$7:$W$399=\"707-N\")*('2. Assisted & Restricted Units'!$X$7:$X$399=\"100% SMI\"))","v":0}]
["0 Bedroom VLI HOME",{"$f":"SUMPRODUCT(('2. Assisted & Restricted Units'!$E$7:$E$399=\"0\")*('2. Assisted & Restricted Units'!$W$7:$W$399=\"CALDAP\")*('2. Assisted & Restricted Units'!$X$7:$X$399=\"VLI HOME\"))","v":0},{"$f":"SUMPRODUCT(('2. Assisted & Restricted Units'!$E$7:$E$399=\"0\")*('2. Assisted & Restricted Units'!$W$7:$W$399=\"CHRP-R\")*('2. Assisted & Restricted Units'!$X$7:$X$399=\"VLI HOME\"))","v":0},{"$f":"SUMPRODUCT(('2. Assisted & Restricted Units'!$E$7:$E$399=\"0\")*('2. Assisted & Restricted Units'!$W$7:$W$399=\"DDS\")*('2. Assisted & Restricted Units'!$X$7:$X$399=\"VLI HOME\"))","v":0},{"$f":"SUMPRODUCT(('2. Assisted & Restricted Units'!$E$7:$E$399=\"0\")*('2. Assisted & Restricted Units'!$W$7:$W$399=\"DPRLP\")*('2. Assisted & Restricted Units'!$X$7:$X$399=\"VLI HOME\"))","v":0},{"$f":"SUMPRODUCT(('2. Assisted & Restricted Units'!$E$7:$E$399=\"0\")*('2. Assisted & Restricted Units'!$W$7:$W$399=\"FHDP\")*('2. Assisted & Restricted Units'!$X$7:$X$399=\"VLI HOME\"))","v":0},{"$f":"SUMPRODUCT(('2. Assisted & Restricted Units'!$E$7:$E$399=\"0\")*('2. Assisted & Restricted Units'!$W$7:$W$399=\"FMTW\")*('2. Assisted & Restricted Units'!$X$7:$X$399=\"VLI HOME\"))","v":0},null,{"$f":"SUMPRODUCT(('2. Assisted & Restricted Units'!$E$7:$E$399=\"0\")*('2. Assisted & Restricted Units'!$W$7:$W$399=\"HOME\")*('2. Assisted & Restricted Units'!$X$7:$X$399=\"VLI HOME\"))","v":0},{"$f":"SUMPRODUCT(('2. Assisted & Restricted Units'!$E$7:$E$399=\"0\")*('2. Assisted & Restricted Units'!$W$7:$W$399=\"Market Rate\")*('2. Assisted & Restricted Units'!$X$7:$X$399=\"VLI HOME\"))","v":0},{"$f":"SUMPRODUCT(('2. Assisted & Restricted Units'!$E$7:$E$399=\"0\")*('2. Assisted & Restricted Units'!$W$7:$W$399=\"MHP\")*('2. Assisted & Restricted Units'!$X$7:$X$399=\"VLI HOME\"))","v":0},{"$f":"SUMPRODUCT(('2. Assisted & Restricted Units'!$E$7:$E$399=\"0\")*('2. Assisted & Restricted Units'!$W$7:$W$399=\"NonAssisted\")*('2. Assisted & Restricted Units'!$X$7:$X$399=\"VLI HOME\"))","v":0},{"$f":"SUMPRODUCT(('2. Assisted & Restricted Units'!$E$7:$E$399=\"0\")*('2. Assisted & Restricted Units'!$W$7:$W$399=\"Other Restr\")*('2. Assisted & Restricted Units'!$X$7:$X$399=\"VLI HOME\"))","v":0},{"$f":"SUMPRODUCT(('2. Assisted & Restricted Units'!$E$7:$E$399=\"0\")*('2. Assisted & Restricted Units'!$W$7:$W$399=\"RHCP-B\")*('2. Assisted & Restricted Units'!$X$7:$X$399=\"VLI HOME\"))","v":0},{"$f":"SUMPRODUCT(('2. Assisted & Restricted Units'!$E$7:$E$399=\"0\")*('2. Assisted & Restricted Units'!$W$7:$W$399=\"SERA\")*('2. Assisted & Restricted Units'!$X$7:$X$399=\"VLI HOME\"))","v":0},{"$f":"SUMPRODUCT(('2. Assisted & Restricted Units'!$E$7:$E$399=\"0\")*('2. Assisted & Restricted Units'!$W$7:$W$399=\"SUHRP\")*('2. Assisted & Restricted Units'!$X$7:$X$399=\"VLI HOME\"))","v":0},{"$f":"SUMPRODUCT(('2. Assisted & Restricted Units'!$E$7:$E$399=\"0\")*('2. Assisted & Restricted Units'!$W$7:$W$399=\"TOD\")*('2. Assisted & Restricted Units'!$X$7:$X$399=\"VLI HOME\"))","v":0},{"$f":"SUMPRODUCT(('2. Assisted & Restricted Units'!$E$7:$E$399=\"0\")*('2. Assisted & Restricted Units'!$W$7:$W$399=\"707-E\")*('2. Assisted & Restricted Units'!$X$7:$X$399=\"VLI HOME\"))","v":0},{"$f":"SUMPRODUCT(('2. Assisted & Restricted Units'!$E$7:$E$399=\"0\")*('2. Assisted & Restricted Units'!$W$7:$W$399=\"707-N\")*('2. Assisted & Restricted Units'!$X$7:$X$399=\"VLI HOME\"))","v":0}]
["0 Bedroom LI HOME",{"$f":"SUMPRODUCT(('2. Assisted & Restricted Units'!$E$7:$E$399=\"0\")*('2. Assisted & Restricted Units'!$W$7:$W$399=\"CALDAP\")*('2. Assisted & Restricted Units'!$X$7:$X$399=\"LI HOME\"))","v":0},{"$f":"SUMPRODUCT(('2. Assisted & Restricted Units'!$E$7:$E$399=\"0\")*('2. Assisted & Restricted Units'!$W$7:$W$399=\"CHRP-R\")*('2. Assisted & Restricted Units'!$X$7:$X$399=\"LI HOME\"))","v":0},{"$f":"SUMPRODUCT(('2. Assisted & Restricted Units'!$E$7:$E$399=\"0\")*('2. Assisted & Restricted Units'!$W$7:$W$399=\"DDS\")*('2. Assisted & Restricted Units'!$X$7:$X$399=\"LI HOME\"))","v":0},{"$f":"SUMPRODUCT(('2. Assisted & Restricted Units'!$E$7:$E$399=\"0\")*('2. Assisted & Restricted Units'!$W$7:$W$399=\"DPRLP\")*('2. Assisted & Restricted Units'!$X$7:$X$399=\"LI HOME\"))","v":0},{"$f":"SUMPRODUCT(('2. Assisted & Restricted Units'!$E$7:$E$399=\"0\")*('2. Assisted & Restricted Units'!$W$7:$W$399=\"FHDP\")*('2. Assisted & Restricted Units'!$X$7:$X$399=\"LI HOME\"))","v":0},{"$f":"SUMPRODUCT(('2. Assisted & Restricted Units'!$E$7:$E$399=\"0\")*('2. Assisted & Restricted Units'!$W$7:$W$399=\"FMTW\")*('2. Assisted & Restricted Units'!$X$7:$X$399=\"LI HOME\"))","v":0},null,{"$f":"SUMPRODUCT(('2. Assisted & Restricted Units'!$E$7:$E$399=\"0\")*('2. Assisted & Restricted Units'!$W$7:$W$399=\"HOME\")*('2. Assisted & Restricted Units'!$X$7:$X$399=\"LI HOME\"))","v":0},{"$f":"SUMPRODUCT(('2. Assisted & Restricted Units'!$E$7:$E$399=\"0\")*('2. Assisted & Restricted Units'!$W$7:$W$399=\"Market Rate\")*('2. Assisted & Restricted Units'!$X$7:$X$399=\"LI HOME\"))","v":0},{"$f":"SUMPRODUCT(('2. Assisted & Restricted Units'!$E$7:$E$399=\"0\")*('2. Assisted & Restricted Units'!$W$7:$W$399=\"MHP\")*('2. Assisted & Restricted Units'!$X$7:$X$399=\"LI HOME\"))","v":0},{"$f":"SUMPRODUCT(('2. Assisted & Restricted Units'!$E$7:$E$399=\"0\")*('2. Assisted & Restricted Units'!$W$7:$W$399=\"NonAssisted\")*('2. Assisted & Restricted Units'!$X$7:$X$399=\"LI HOME\"))","v":0},{"$f":"SUMPRODUCT(('2. Assisted & Restricted Units'!$E$7:$E$399=\"0\")*('2. Assisted & Restricted Units'!$W$7:$W$399=\"Other Restr\")*('2. Assisted & Restricted Units'!$X$7:$X$399=\"LI HOME\"))","v":0},{"$f":"SUMPRODUCT(('2. Assisted & Restricted Units'!$E$7:$E$399=\"0\")*('2. Assisted & Restricted Units'!$W$7:$W$399=\"RHCP-B\")*('2. Assisted & Restricted Units'!$X$7:$X$399=\"LI HOME\"))","v":0},{"$f":"SUMPRODUCT(('2. Assisted & Restricted Units'!$E$7:$E$399=\"0\")*('2. Assisted & Restricted Units'!$W$7:$W$399=\"SERA\")*('2. Assisted & Restricted Units'!$X$7:$X$399=\"LI HOME\"))","v":0},{"$f":"SUMPRODUCT(('2. Assisted & Restricted Units'!$E$7:$E$399=\"0\")*('2. Assisted & Restricted Units'!$W$7:$W$399=\"SUHRP\")*('2. Assisted & Restricted Units'!$X$7:$X$399=\"LI HOME\"))","v":0},{"$f":"SUMPRODUCT(('2. Assisted & Restricted Units'!$E$7:$E$399=\"0\")*('2. Assisted & Restricted Units'!$W$7:$W$399=\"TOD\")*('2. Assisted & Restricted Units'!$X$7:$X$399=\"LI HOME\"))","v":0},{"$f":"SUMPRODUCT(('2. Assisted & Restricted Units'!$E$7:$E$399=\"0\")*('2. Assisted & Restricted Units'!$W$7:$W$399=\"707-E\")*('2. Assisted & Restricted Units'!$X$7:$X$399=\"LI HOME\"))","v":0},{"$f":"SUMPRODUCT(('2. Assisted & Restricted Units'!$E$7:$E$399=\"0\")*('2. Assisted & Restricted Units'!$W$7:$W$399=\"707-N\")*('2. Assisted & Restricted Units'!$X$7:$X$399=\"LI HOME\"))","v":0}]
["0 Bedroom VLI State",{"$f":"SUMPRODUCT(('2. Assisted & Restricted Units'!$E$7:$E$399=\"0\")*('2. Assisted & Restricted Units'!$W$7:$W$399=\"CALDAP\")*('2. Assisted & Restricted Units'!$X$7:$X$399=\"VLI State\"))","v":0},{"$f":"SUMPRODUCT(('2. Assisted & Restricted Units'!$E$7:$E$399=\"0\")*('2. Assisted & Restricted Units'!$W$7:$W$399=\"CHRP-R\")*('2. Assisted & Restricted Units'!$X$7:$X$399=\"VLI State\"))","v":0},{"$f":"SUMPRODUCT(('2. Assisted & Restricted Units'!$E$7:$E$399=\"0\")*('2. Assisted & Restricted Units'!$W$7:$W$399=\"DDS\")*('2. Assisted & Restricted Units'!$X$7:$X$399=\"VLI State\"))","v":0},{"$f":"SUMPRODUCT(('2. Assisted & Restricted Units'!$E$7:$E$399=\"0\")*('2. Assisted & Restricted Units'!$W$7:$W$399=\"DPRLP\")*('2. Assisted & Restricted Units'!$X$7:$X$399=\"VLI State\"))","v":0},{"$f":"SUMPRODUCT(('2. Assisted & Restricted Units'!$E$7:$E$399=\"0\")*('2. Assisted & Restricted Units'!$W$7:$W$399=\"FHDP\")*('2. Assisted & Restricted Units'!$X$7:$X$399=\"VLI State\"))","v":0},{"$f":"SUMPRODUCT(('2. Assisted & Restricted Units'!$E$7:$E$399=\"0\")*('2. Assisted & Restricted Units'!$W$7:$W$399=\"FMTW\")*('2. Assisted & Restricted Units'!$X$7:$X$399=\"VLI State\"))","v":0},null,{"$f":"SUMPRODUCT(('2. Assisted & Restricted Units'!$E$7:$E$399=\"0\")*('2. Assisted & Restricted Units'!$W$7:$W$399=\"HOME\")*('2. Assisted & Restricted Units'!$X$7:$X$399=\"VLI State\"))","v":0},{"$f":"SUMPRODUCT(('2. Assisted & Restricted Units'!$E$7:$E$399=\"0\")*('2. Assisted & Restricted Units'!$W$7:$W$399=\"Market Rate\")*('2. Assisted & Restricted Units'!$X$7:$X$399=\"VLI State\"))","v":0},{"$f":"SUMPRODUCT(('2. Assisted & Restricted Units'!$E$7:$E$399=\"0\")*('2. Assisted & Restricted Units'!$W$7:$W$399=\"MHP\")*('2. Assisted & Restricted Units'!$X$7:$X$399=\"VLI State\"))","v":0},{"$f":"SUMPRODUCT(('2. Assisted & Restricted Units'!$E$7:$E$399=\"0\")*('2. Assisted & Restricted Units'!$W$7:$W$399=\"NonAssisted\")*('2. Assisted & Restricted Units'!$X$7:$X$399=\"VLI State\"))","v":0},{"$f":"SUMPRODUCT(('2. Assisted & Restricted Units'!$E$7:$E$399=\"0\")*('2. Assisted & Restricted Units'!$W$7:$W$399=\"Other Restr\")*('2. Assisted & Restricted Units'!$X$7:$X$399=\"VLI State\"))","v":0},{"$f":"SUMPRODUCT(('2. Assisted & Restricted Units'!$E$7:$E$399=\"0\")*('2. Assisted & Restricted Units'!$W$7:$W$399=\"RHCP-B\")*('2. Assisted & Restricted Units'!$X$7:$X$399=\"VLI State\"))","v":0},{"$f":"SUMPRODUCT(('2. Assisted & Restricted Units'!$E$7:$E$399=\"0\")*('2. Assisted & Restricted Units'!$W$7:$W$399=\"SERA\")*('2. Assisted & Restricted Units'!$X$7:$X$399=\"VLI State\"))","v":0},{"$f":"SUMPRODUCT(('2. Assisted & Restricted Units'!$E$7:$E$399=\"0\")*('2. Assisted & Restricted Units'!$W$7:$W$399=\"SUHRP\")*('2. Assisted & Restricted Units'!$X$7:$X$399=\"VLI State\"))","v":0},{"$f":"SUMPRODUCT(('2. Assisted & Restricted Units'!$E$7:$E$399=\"0\")*('2. Assisted & Restricted Units'!$W$7:$W$399=\"TOD\")*('2. Assisted & Restricted Units'!$X$7:$X$399=\"VLI State\"))","v":0},{"$f":"SUMPRODUCT(('2. Assisted & Restricted Units'!$E$7:$E$399=\"0\")*('2. Assisted & Restricted Units'!$W$7:$W$399=\"707-E\")*('2. Assisted & Restricted Units'!$X$7:$X$399=\"VLI State\"))","v":0},{"$f":"SUMPRODUCT(('2. Assisted & Restricted Units'!$E$7:$E$399=\"0\")*('2. Assisted & Restricted Units'!$W$7:$W$399=\"707-N\")*('2. Assisted & Restricted Units'!$X$7:$X$399=\"VLI State\"))","v":0}]
["0 Bedroom LI State",{"$f":"SUMPRODUCT(('2. Assisted & Restricted Units'!$E$7:$E$399=\"0\")*('2. Assisted & Restricted Units'!$W$7:$W$399=\"CALDAP\")*('2. Assisted & Restricted Units'!$X$7:$X$399=\"LI State\"))","v":0},{"$f":"SUMPRODUCT(('2. Assisted & Restricted Units'!$E$7:$E$399=\"0\")*('2. Assisted & Restricted Units'!$W$7:$W$399=\"CHRP-R\")*('2. Assisted & Restricted Units'!$X$7:$X$399=\"LI State\"))","v":0},{"$f":"SUMPRODUCT(('2. Assisted & Restricted Units'!$E$7:$E$399=\"0\")*('2. Assisted & Restricted Units'!$W$7:$W$399=\"DDS\")*('2. Assisted & Restricted Units'!$X$7:$X$399=\"LI State\"))","v":0},{"$f":"SUMPRODUCT(('2. Assisted & Restricted Units'!$E$7:$E$399=\"0\")*('2. Assisted & Restricted Units'!$W$7:$W$399=\"DPRLP\")*('2. Assisted & Restricted Units'!$X$7:$X$399=\"LI State\"))","v":0},{"$f":"SUMPRODUCT(('2. Assisted & Restricted Units'!$E$7:$E$399=\"0\")*('2. Assisted & Restricted Units'!$W$7:$W$399=\"FHDP\")*('2. Assisted & Restricted Units'!$X$7:$X$399=\"LI State\"))","v":0},{"$f":"SUMPRODUCT(('2. Assisted & Restricted Units'!$E$7:$E$399=\"0\")*('2. Assisted & Restricted Units'!$W$7:$W$399=\"FMTW\")*('2. Assisted & Restricted Units'!$X$7:$X$399=\"LI State\"))","v":0},null,{"$f":"SUMPRODUCT(('2. Assisted & Restricted Units'!$E$7:$E$399=\"0\")*('2. Assisted & Restricted Units'!$W$7:$W$399=\"HOME\")*('2. Assisted & Restricted Units'!$X$7:$X$399=\"LI State\"))","v":0},{"$f":"SUMPRODUCT(('2. Assisted & Restricted Units'!$E$7:$E$399=\"0\")*('2. Assisted & Restricted Units'!$W$7:$W$399=\"Market Rate\")*('2. Assisted & Restricted Units'!$X$7:$X$399=\"LI State\"))","v":0},{"$f":"SUMPRODUCT(('2. Assisted & Restricted Units'!$E$7:$E$399=\"0\")*('2. Assisted & Restricted Units'!$W$7:$W$399=\"MHP\")*('2. Assisted & Restricted Units'!$X$7:$X$399=\"LI State\"))","v":0},{"$f":"SUMPRODUCT(('2. Assisted & Restricted Units'!$E$7:$E$399=\"0\")*('2. Assisted & Restricted Units'!$W$7:$W$399=\"NonAssisted\")*('2. Assisted & Restricted Units'!$X$7:$X$399=\"LI State\"))","v":0},{"$f":"SUMPRODUCT(('2. Assisted & Restricted Units'!$E$7:$E$399=\"0\")*('2. Assisted & Restricted Units'!$W$7:$W$399=\"Other Restr\")*('2. Assisted & Restricted Units'!$X$7:$X$399=\"LI State\"))","v":0},{"$f":"SUMPRODUCT(('2. Assisted & Restricted Units'!$E$7:$E$399=\"0\")*('2. Assisted & Restricted Units'!$W$7:$W$399=\"RHCP-B\")*('2. Assisted & Restricted Units'!$X$7:$X$399=\"LI State\"))","v":0},{"$f":"SUMPRODUCT(('2. Assisted & Restricted Units'!$E$7:$E$399=\"0\")*('2. Assisted & Restricted Units'!$W$7:$W$399=\"SERA\")*('2. Assisted & Restricted Units'!$X$7:$X$399=\"LI State\"))","v":0},{"$f":"SUMPRODUCT(('2. Assisted & Restricted Units'!$E$7:$E$399=\"0\")*('2. Assisted & Restricted Units'!$W$7:$W$399=\"SUHRP\")*('2. Assisted & Restricted Units'!$X$7:$X$399=\"LI State\"))","v":0},{"$f":"SUMPRODUCT(('2. Assisted & Restricted Units'!$E$7:$E$399=\"0\")*('2. Assisted & Restricted Units'!$W$7:$W$399=\"TOD\")*('2. Assisted & Restricted Units'!$X$7:$X$399=\"LI State\"))","v":0},{"$f":"SUMPRODUCT(('2. Assisted & Restricted Units'!$E$7:$E$399=\"0\")*('2. Assisted & Restricted Units'!$W$7:$W$399=\"707-E\")*('2. Assisted & Restricted Units'!$X$7:$X$399=\"LI State\"))","v":0},{"$f":"SUMPRODUCT(('2. Assisted & Restricted Units'!$E$7:$E$399=\"0\")*('2. Assisted & Restricted Units'!$W$7:$W$399=\"707-N\")*('2. Assisted & Restricted Units'!$X$7:$X$399=\"LI State\"))","v":0}]
["0 Bedroom CalHFA",{"$f":"SUMPRODUCT(('2. Assisted & Restricted Units'!$E$7:$E$399=\"0\")*('2. Assisted & Restricted Units'!$W$7:$W$399=\"CALDAP\")*('2. Assisted & Restricted Units'!$X$7:$X$399=\"CalHFA\"))","v":0},{"$f":"SUMPRODUCT(('2. Assisted & Restricted Units'!$E$7:$E$399=\"0\")*('2. Assisted & Restricted Units'!$W$7:$W$399=\"CHRP-R\")*('2. Assisted & Restricted Units'!$X$7:$X$399=\"CalHFA\"))","v":0},{"$f":"SUMPRODUCT(('2. Assisted & Restricted Units'!$E$7:$E$399=\"0\")*('2. Assisted & Restricted Units'!$W$7:$W$399=\"DDS\")*('2. Assisted & Restricted Units'!$X$7:$X$399=\"CalHFA\"))","v":0},{"$f":"SUMPRODUCT(('2. Assisted & Restricted Units'!$E$7:$E$399=\"0\")*('2. Assisted & Restricted Units'!$W$7:$W$399=\"DPRLP\")*('2. Assisted & Restricted Units'!$X$7:$X$399=\"CalHFA\"))","v":0},{"$f":"SUMPRODUCT(('2. Assisted & Restricted Units'!$E$7:$E$399=\"0\")*('2. Assisted & Restricted Units'!$W$7:$W$399=\"FHDP\")*('2. Assisted & Restricted Units'!$X$7:$X$399=\"CalHFA\"))","v":0},{"$f":"SUMPRODUCT(('2. Assisted & Restricted Units'!$E$7:$E$399=\"0\")*('2. Assisted & Restricted Units'!$W$7:$W$399=\"FMTW\")*('2. Assisted & Restricted Units'!$X$7:$X$399=\"CalHFA\"))","v":0},null,{"$f":"SUMPRODUCT(('2. Assisted & Restricted Units'!$E$7:$E$399=\"0\")*('2. Assisted & Restricted Units'!$W$7:$W$399=\"HOME\")*('2. Assisted & Restricted Units'!$X$7:$X$399=\"CalHFA\"))","v":0},{"$f":"SUMPRODUCT(('2. Assisted & Restricted Units'!$E$7:$E$399=\"0\")*('2. Assisted & Restricted Units'!$W$7:$W$399=\"Market Rate\")*('2. Assisted & Restricted Units'!$X$7:$X$399=\"CalHFA\"))","v":0},{"$f":"SUMPRODUCT(('2. Assisted & Restricted Units'!$E$7:$E$399=\"0\")*('2. Assisted & Restricted Units'!$W$7:$W$399=\"MHP\")*('2. Assisted & Restricted Units'!$X$7:$X$399=\"CalHFA\"))","v":0},{"$f":"SUMPRODUCT(('2. Assisted & Restricted Units'!$E$7:$E$399=\"0\")*('2. Assisted & Restricted Units'!$W$7:$W$399=\"NonAssisted\")*('2. Assisted & Restricted Units'!$X$7:$X$399=\"CalHFA\"))","v":0},{"$f":"SUMPRODUCT(('2. Assisted & Restricted Units'!$E$7:$E$399=\"0\")*('2. Assisted & Restricted Units'!$W$7:$W$399=\"Other Restr\")*('2. Assisted & Restricted Units'!$X$7:$X$399=\"CalHFA\"))","v":0},{"$f":"SUMPRODUCT(('2. Assisted & Restricted Units'!$E$7:$E$399=\"0\")*('2. Assisted & Restricted Units'!$W$7:$W$399=\"RHCP-B\")*('2. Assisted & Restricted Units'!$X$7:$X$399=\"CalHFA\"))","v":0},{"$f":"SUMPRODUCT(('2. Assisted & Restricted Units'!$E$7:$E$399=\"0\")*('2. Assisted & Restricted Units'!$W$7:$W$399=\"SERA\")*('2. Assisted & Restricted Units'!$X$7:$X$399=\"CalHFA\"))","v":0},{"$f":"SUMPRODUCT(('2. Assisted & Restricted Units'!$E$7:$E$399=\"0\")*('2. Assisted & Restricted Units'!$W$7:$W$399=\"SUHRP\")*('2. Assisted & Restricted Units'!$X$7:$X$399=\"CalHFA\"))","v":0},{"$f":"SUMPRODUCT(('2. Assisted & Restricted Units'!$E$7:$E$399=\"0\")*('2. Assisted & Restricted Units'!$W$7:$W$399=\"TOD\")*('2. Assisted & Restricted Units'!$X$7:$X$399=\"CalHFA\"))","v":0},{"$f":"SUMPRODUCT(('2. Assisted & Restricted Units'!$E$7:$E$399=\"0\")*('2. Assisted & Restricted Units'!$W$7:$W$399=\"707-E\")*('2. Assisted & Restricted Units'!$X$7:$X$399=\"CalHFA\"))","v":0},{"$f":"SUMPRODUCT(('2. Assisted & Restricted Units'!$E$7:$E$399=\"0\")*('2. Assisted & Restricted Units'!$W$7:$W$399=\"707-N\")*('2. Assisted & Restricted Units'!$X$7:$X$399=\"CalHFA\"))","v":0}]
["0 Bedroom Sec 8",{"$f":"SUMPRODUCT(('2. Assisted & Restricted Units'!$E$7:$E$399=\"0\")*('2. Assisted & Restricted Units'!$W$7:$W$399=\"CALDAP\")*('2. Assisted & Restricted Units'!$X$7:$X$399=\"Sec 8\"))","v":0},{"$f":"SUMPRODUCT(('2. Assisted & Restricted Units'!$E$7:$E$399=\"0\")*('2. Assisted & Restricted Units'!$W$7:$W$399=\"CHRP-R\")*('2. Assisted & Restricted Units'!$X$7:$X$399=\"Sec 8\"))","v":0},{"$f":"SUMPRODUCT(('2. Assisted & Restricted Units'!$E$7:$E$399=\"0\")*('2. Assisted & Restricted Units'!$W$7:$W$399=\"DDS\")*('2. Assisted & Restricted Units'!$X$7:$X$399=\"Sec 8\"))","v":0},{"$f":"SUMPRODUCT(('2. Assisted & Restricted Units'!$E$7:$E$399=\"0\")*('2. Assisted & Restricted Units'!$W$7:$W$399=\"DPRLP\")*('2. Assisted & Restricted Units'!$X$7:$X$399=\"Sec 8\"))","v":0},{"$f":"SUMPRODUCT(('2. Assisted & Restricted Units'!$E$7:$E$399=\"0\")*('2. Assisted & Restricted Units'!$W$7:$W$399=\"FHDP\")*('2. Assisted & Restricted Units'!$X$7:$X$399=\"Sec 8\"))","v":0},{"$f":"SUMPRODUCT(('2. Assisted & Restricted Units'!$E$7:$E$399=\"0\")*('2. Assisted & Restricted Units'!$W$7:$W$399=\"FMTW\")*('2. Assisted & Restricted Units'!$X$7:$X$399=\"Sec 8\"))","v":0},null,{"$f":"SUMPRODUCT(('2. Assisted & Restricted Units'!$E$7:$E$399=\"0\")*('2. Assisted & Restricted Units'!$W$7:$W$399=\"HOME\")*('2. Assisted & Restricted Units'!$X$7:$X$399=\"Sec 8\"))","v":0},{"$f":"SUMPRODUCT(('2. Assisted & Restricted Units'!$E$7:$E$399=\"0\")*('2. Assisted & Restricted Units'!$W$7:$W$399=\"Market Rate\")*('2. Assisted & Restricted Units'!$X$7:$X$399=\"Sec 8\"))","v":0},{"$f":"SUMPRODUCT(('2. Assisted & Restricted Units'!$E$7:$E$399=\"0\")*('2. Assisted & Restricted Units'!$W$7:$W$399=\"MHP\")*('2. Assisted & Restricted Units'!$X$7:$X$399=\"Sec 8\"))","v":0},{"$f":"SUMPRODUCT(('2. Assisted & Restricted Units'!$E$7:$E$399=\"0\")*('2. Assisted & Restricted Units'!$W$7:$W$399=\"NonAssisted\")*('2. Assisted & Restricted Units'!$X$7:$X$399=\"Sec 8\"))","v":0},{"$f":"SUMPRODUCT(('2. Assisted & Restricted Units'!$E$7:$E$399=\"0\")*('2. Assisted & Restricted Units'!$W$7:$W$399=\"Other Restr\")*('2. Assisted & Restricted Units'!$X$7:$X$399=\"Sec 8\"))","v":0},{"$f":"SUMPRODUCT(('2. Assisted & Restricted Units'!$E$7:$E$399=\"0\")*('2. Assisted & Restricted Units'!$W$7:$W$399=\"RHCP-B\")*('2. Assisted & Restricted Units'!$X$7:$X$399=\"Sec 8\"))","v":0},{"$f":"SUMPRODUCT(('2. Assisted & Restricted Units'!$E$7:$E$399=\"0\")*('2. Assisted & Restricted Units'!$W$7:$W$399=\"SERA\")*('2. Assisted & Restricted Units'!$X$7:$X$399=\"Sec 8\"))","v":0},{"$f":"SUMPRODUCT(('2. Assisted & Restricted Units'!$E$7:$E$399=\"0\")*('2. Assisted & Restricted Units'!$W$7:$W$399=\"SUHRP\")*('2. Assisted & Restricted Units'!$X$7:$X$399=\"Sec 8\"))","v":0},{"$f":"SUMPRODUCT(('2. Assisted & Restricted Units'!$E$7:$E$399=\"0\")*('2. Assisted & Restricted Units'!$W$7:$W$399=\"TOD\")*('2. Assisted & Restricted Units'!$X$7:$X$399=\"Sec 8\"))","v":0},{"$f":"SUMPRODUCT(('2. Assisted & Restricted Units'!$E$7:$E$399=\"0\")*('2. Assisted & Restricted Units'!$W$7:$W$399=\"707-E\")*('2. Assisted & Restricted Units'!$X$7:$X$399=\"Sec 8\"))","v":0},{"$f":"SUMPRODUCT(('2. Assisted & Restricted Units'!$E$7:$E$399=\"0\")*('2. Assisted & Restricted Units'!$W$7:$W$399=\"707-N\")*('2. Assisted & Restricted Units'!$X$7:$X$399=\"Sec 8\"))","v":0}]
["Total 0",{"$f":"SUM(B28:B52)","v":0},{"$f":"SUM(C28:C52)","v":0},{"$f":"SUM(D28:D52)","v":0},{"$f":"SUM(E28:E52)","v":0},{"$f":"SUM(F28:F52)","v":0},0,{"$f":"SUMPRODUCT(('2. Assisted & Restricted Units'!$E$7:$E$399=\"0\")*('2. Assisted & Restricted Units'!$W$7:$W$399=\"FWHG\"))","v":0},0,0,0,0,0,0,0,0,0,0,0,{"$f":"SUMPRODUCT(('2. Assisted & Restricted Units'!$E$7:$E$399=\"0\")*('2. Assisted & Restricted Units'!$L$7:$L$399=\"X\"))","v":0},{"$f":"SUMPRODUCT(('2. Assisted & Restricted Units'!$E$7:$E$399=\"0\")*('2. Assisted & Restricted Units'!#REF!=\"X\"))","v":{"$error":"#REF!"}},{"$f":"SUMPRODUCT(('2. Assisted & Restricted Units'!$E$7:$E$399=\"0\")*('2. Assisted & Restricted Units'!#REF!=\"X\"))","v":{"$error":"#REF!"}},{"$f":"SUMPRODUCT(('2. Assisted & Restricted Units'!$E$7:$E$399=\"0\")*('2. Assisted & Restricted Units'!#REF!=\"X\"))","v":{"$error":"#REF!"}},{"$f":"SUMPRODUCT(('2. Assisted & Restricted Units'!$E$7:$E$399=\"0\")*('2. Assisted & Restricted Units'!#REF!=\"X\"))","v":{"$error":"#REF!"}},{"$f":"SUMPRODUCT(('2. Assisted & Restricted Units'!$E$7:$E$399=\"0\")*('2. Assisted & Restricted Units'!#REF!=\"X\"))","v":{"$error":"#REF!"}},{"$f":"SUMPRODUCT(('2. Assisted & Restricted Units'!$E$7:$E$399=\"0\")*('2. Assisted & Restricted Units'!#REF!=\"X\"))","v":{"$error":"#REF!"}},{"$f":"SUMPRODUCT(('2. Assisted & Restricted Units'!$E$7:$E$399=\"0\")*('2. Assisted & Restricted Units'!$M$7:$M$399=\"X\"))","v":0},{"$f":"SUMPRODUCT(('2. Assisted & Restricted Units'!$E$7:$E$399=\"0\")*('2. Assisted & Restricted Units'!$O$7:$O$399=\"X\"))","v":0}]
["1 Bedroom 15% AMI",{"$f":"SUMPRODUCT(('2. Assisted & Restricted Units'!$E$7:$E$399=\"1\")*('2. Assisted & Restricted Units'!$W$7:$W$399=\"CALDAP\")*('2. Assisted & Restricted Units'!$X$7:$X$399=\"15% AMI\"))","v":0},{"$f":"SUMPRODUCT(('2. Assisted & Restricted Units'!$E$7:$E$399=\"1\")*('2. Assisted & Restricted Units'!$W$7:$W$399=\"CHRP-R\")*('2. Assisted & Restricted Units'!$X$7:$X$399=\"15% AMI\"))","v":0},{"$f":"SUMPRODUCT(('2. Assisted & Restricted Units'!$E$7:$E$399=\"1\")*('2. Assisted & Restricted Units'!$W$7:$W$399=\"DDS\")*('2. Assisted & Restricted Units'!$X$7:$X$399=\"15% AMI\"))","v":0},{"$f":"SUMPRODUCT(('2. Assisted & Restricted Units'!$E$7:$E$399=\"1\")*('2. Assisted & Restricted Units'!$W$7:$W$399=\"DPRLP\")*('2. Assisted & Restricted Units'!$X$7:$X$399=\"15% AMI\"))","v":0},{"$f":"SUMPRODUCT(('2. Assisted & Restricted Units'!$E$7:$E$399=\"1\")*('2. Assisted & Restricted Units'!$W$7:$W$399=\"FHDP\")*('2. Assisted & Restricted Units'!$X$7:$X$399=\"15% AMI\"))","v":0},{"$f":"SUMPRODUCT(('2. Assisted & Restricted Units'!$E$7:$E$399=\"1\")*('2. Assisted & Restricted Units'!$W$7:$W$399=\"FMTW\")*('2. Assisted & Restricted Units'!$X$7:$X$399=\"15% AMI\"))","v":0},null,{"$f":"SUMPRODUCT(('2. Assisted & Restricted Units'!$E$7:$E$399=\"1\")*('2. Assisted & Restricted Units'!$W$7:$W$399=\"HOME\")*('2. Assisted & Restricted Units'!$X$7:$X$399=\"15% AMI\"))","v":0},{"$f":"SUMPRODUCT(('2. Assisted & Restricted Units'!$E$7:$E$399=\"1\")*('2. Assisted & Restricted Units'!$W$7:$W$399=\"Market Rate\")*('2. Assisted & Restricted Units'!$X$7:$X$399=\"15% AMI\"))","v":0},{"$f":"SUMPRODUCT(('2. Assisted & Restricted Units'!$E$7:$E$399=\"1\")*('2. Assisted & Restricted Units'!$W$7:$W$399=\"MHP\")*('2. Assisted & Restricted Units'!$X$7:$X$399=\"15% AMI\"))","v":0},{"$f":"SUMPRODUCT(('2. Assisted & Restricted Units'!$E$7:$E$399=\"1\")*('2. Assisted & Restricted Units'!$W$7:$W$399=\"NonAssisted\")*('2. Assisted & Restricted Units'!$X$7:$X$399=\"15% AMI\"))","v":0},{"$f":"SUMPRODUCT(('2. Assisted & Restricted Units'!$E$7:$E$399=\"1\")*('2. Assisted & Restricted Units'!$W$7:$W$399=\"Other Restr\")*('2. Assisted & Restricted Units'!$X$7:$X$399=\"15% AMI\"))","v":0},{"$f":"SUMPRODUCT(('2. Assisted & Restricted Units'!$E$7:$E$399=\"1\")*('2. Assisted & Restricted Units'!$W$7:$W$399=\"RHCP-B\")*('2. Assisted & Restricted Units'!$X$7:$X$399=\"15% AMI\"))","v":0},{"$f":"SUMPRODUCT(('2. Assisted & Restricted Units'!$E$7:$E$399=\"1\")*('2. Assisted & Restricted Units'!$W$7:$W$399=\"SERA\")*('2. Assisted & Restricted Units'!$X$7:$X$399=\"15% AMI\"))","v":0},{"$f":"SUMPRODUCT(('2. Assisted & Restricted Units'!$E$7:$E$399=\"1\")*('2. Assisted & Restricted Units'!$W$7:$W$399=\"SUHRP\")*('2. Assisted & Restricted Units'!$X$7:$X$399=\"15% AMI\"))","v":0},{"$f":"SUMPRODUCT(('2. Assisted & Restricted Units'!$E$7:$E$399=\"1\")*('2. Assisted & Restricted Units'!$W$7:$W$399=\"TOD\")*('2. Assisted & Restricted Units'!$X$7:$X$399=\"15% AMI\"))","v":0},{"$f":"SUMPRODUCT(('2. Assisted & Restricted Units'!$E$7:$E$399=\"1\")*('2. Assisted & Restricted Units'!$W$7:$W$399=\"707-E\")*('2. Assisted & Restricted Units'!$X$7:$X$399=\"15% AMI\"))","v":0},{"$f":"SUMPRODUCT(('2. Assisted & Restricted Units'!$E$7:$E$399=\"1\")*('2. Assisted & Restricted Units'!$W$7:$W$399=\"707-N\")*('2. Assisted & Restricted Units'!$X$7:$X$399=\"15% AMI\"))","v":0}]
["1 Bedroom 20% AMI",{"$f":"SUMPRODUCT(('2. Assisted & Restricted Units'!$E$7:$E$399=\"1\")*('2. Assisted & Restricted Units'!$W$7:$W$399=\"CALDAP\")*('2. Assisted & Restricted Units'!$X$7:$X$399=\"20% AMI\"))","v":0},{"$f":"SUMPRODUCT(('2. Assisted & Restricted Units'!$E$7:$E$399=\"1\")*('2. Assisted & Restricted Units'!$W$7:$W$399=\"CHRP-R\")*('2. Assisted & Restricted Units'!$X$7:$X$399=\"20% AMI\"))","v":0},{"$f":"SUMPRODUCT(('2. Assisted & Restricted Units'!$E$7:$E$399=\"1\")*('2. Assisted & Restricted Units'!$W$7:$W$399=\"DDS\")*('2. Assisted & Restricted Units'!$X$7:$X$399=\"20% AMI\"))","v":0},{"$f":"SUMPRODUCT(('2. Assisted & Restricted Units'!$E$7:$E$399=\"1\")*('2. Assisted & Restricted Units'!$W$7:$W$399=\"DPRLP\")*('2. Assisted & Restricted Units'!$X$7:$X$399=\"20% AMI\"))","v":0},{"$f":"SUMPRODUCT(('2. Assisted & Restricted Units'!$E$7:$E$399=\"1\")*('2. Assisted & Restricted Units'!$W$7:$W$399=\"FHDP\")*('2. Assisted & Restricted Units'!$X$7:$X$399=\"20% AMI\"))","v":0},{"$f":"SUMPRODUCT(('2. Assisted & Restricted Units'!$E$7:$E$399=\"1\")*('2. Assisted & Restricted Units'!$W$7:$W$399=\"FMTW\")*('2. Assisted & Restricted Units'!$X$7:$X$399=\"20% AMI\"))","v":0},null,{"$f":"SUMPRODUCT(('2. Assisted & Restricted Units'!$E$7:$E$399=\"1\")*('2. Assisted & Restricted Units'!$W$7:$W$399=\"HOME\")*('2. Assisted & Restricted Units'!$X$7:$X$399=\"20% AMI\"))","v":0},{"$f":"SUMPRODUCT(('2. Assisted & Restricted Units'!$E$7:$E$399=\"1\")*('2. Assisted & Restricted Units'!$W$7:$W$399=\"Market Rate\")*('2. Assisted & Restricted Units'!$X$7:$X$399=\"20% AMI\"))","v":0},{"$f":"SUMPRODUCT(('2. Assisted & Restricted Units'!$E$7:$E$399=\"1\")*('2. Assisted & Restricted Units'!$W$7:$W$399=\"MHP\")*('2. Assisted & Restricted Units'!$X$7:$X$399=\"20% AMI\"))","v":0},{"$f":"SUMPRODUCT(('2. Assisted & Restricted Units'!$E$7:$E$399=\"1\")*('2. Assisted & Restricted Units'!$W$7:$W$399=\"NonAssisted\")*('2. Assisted & Restricted Units'!$X$7:$X$399=\"20% AMI\"))","v":0},{"$f":"SUMPRODUCT(('2. Assisted & Restricted Units'!$E$7:$E$399=\"1\")*('2. Assisted & Restricted Units'!$W$7:$W$399=\"Other Restr\")*('2. Assisted & Restricted Units'!$X$7:$X$399=\"20% AMI\"))","v":0},{"$f":"SUMPRODUCT(('2. Assisted & Restricted Units'!$E$7:$E$399=\"1\")*('2. Assisted & Restricted Units'!$W$7:$W$399=\"RHCP-B\")*('2. Assisted & Restricted Units'!$X$7:$X$399=\"20% AMI\"))","v":0},{"$f":"SUMPRODUCT(('2. Assisted & Restricted Units'!$E$7:$E$399=\"1\")*('2. Assisted & Restricted Units'!$W$7:$W$399=\"SERA\")*('2. Assisted & Restricted Units'!$X$7:$X$399=\"20% AMI\"))","v":0},{"$f":"SUMPRODUCT(('2. Assisted & Restricted Units'!$E$7:$E$399=\"1\")*('2. Assisted & Restricted Units'!$W$7:$W$399=\"SUHRP\")*('2. Assisted & Restricted Units'!$X$7:$X$399=\"20% AMI\"))","v":0},{"$f":"SUMPRODUCT(('2. Assisted & Restricted Units'!$E$7:$E$399=\"1\")*('2. Assisted & Restricted Units'!$W$7:$W$399=\"TOD\")*('2. Assisted & Restricted Units'!$X$7:$X$399=\"20% AMI\"))","v":0},{"$f":"SUMPRODUCT(('2. Assisted & Restricted Units'!$E$7:$E$399=\"1\")*('2. Assisted & Restricted Units'!$W$7:$W$399=\"707-E\")*('2. Assisted & Restricted Units'!$X$7:$X$399=\"20% AMI\"))","v":0},{"$f":"SUMPRODUCT(('2. Assisted & Restricted Units'!$E$7:$E$399=\"1\")*('2. Assisted & Restricted Units'!$W$7:$W$399=\"707-N\")*('2. Assisted & Restricted Units'!$X$7:$X$399=\"20% AMI\"))","v":0}]
["1 Bedroom 25% AMI",{"$f":"SUMPRODUCT(('2. Assisted & Restricted Units'!$E$7:$E$399=\"1\")*('2. Assisted & Restricted Units'!$W$7:$W$399=\"CALDAP\")*('2. Assisted & Restricted Units'!$X$7:$X$399=\"25% AMI\"))","v":0},{"$f":"SUMPRODUCT(('2. Assisted & Restricted Units'!$E$7:$E$399=\"1\")*('2. Assisted & Restricted Units'!$W$7:$W$399=\"CHRP-R\")*('2. Assisted & Restricted Units'!$X$7:$X$399=\"25% AMI\"))","v":0},{"$f":"SUMPRODUCT(('2. Assisted & Restricted Units'!$E$7:$E$399=\"1\")*('2. Assisted & Restricted Units'!$W$7:$W$399=\"DDS\")*('2. Assisted & Restricted Units'!$X$7:$X$399=\"25% AMI\"))","v":0},{"$f":"SUMPRODUCT(('2. Assisted & Restricted Units'!$E$7:$E$399=\"1\")*('2. Assisted & Restricted Units'!$W$7:$W$399=\"DPRLP\")*('2. Assisted & Restricted Units'!$X$7:$X$399=\"25% AMI\"))","v":0},{"$f":"SUMPRODUCT(('2. Assisted & Restricted Units'!$E$7:$E$399=\"1\")*('2. Assisted & Restricted Units'!$W$7:$W$399=\"FHDP\")*('2. Assisted & Restricted Units'!$X$7:$X$399=\"25% AMI\"))","v":0},{"$f":"SUMPRODUCT(('2. Assisted & Restricted Units'!$E$7:$E$399=\"1\")*('2. Assisted & Restricted Units'!$W$7:$W$399=\"FMTW\")*('2. Assisted & Restricted Units'!$X$7:$X$399=\"25% AMI\"))","v":0},null,{"$f":"SUMPRODUCT(('2. Assisted & Restricted Units'!$E$7:$E$399=\"1\")*('2. Assisted & Restricted Units'!$W$7:$W$399=\"HOME\")*('2. Assisted & Restricted Units'!$X$7:$X$399=\"25% AMI\"))","v":0},{"$f":"SUMPRODUCT(('2. Assisted & Restricted Units'!$E$7:$E$399=\"1\")*('2. Assisted & Restricted Units'!$W$7:$W$399=\"Market Rate\")*('2. Assisted & Restricted Units'!$X$7:$X$399=\"25% AMI\"))","v":0},{"$f":"SUMPRODUCT(('2. Assisted & Restricted Units'!$E$7:$E$399=\"1\")*('2. Assisted & Restricted Units'!$W$7:$W$399=\"MHP\")*('2. Assisted & Restricted Units'!$X$7:$X$399=\"25% AMI\"))","v":0},{"$f":"SUMPRODUCT(('2. Assisted & Restricted Units'!$E$7:$E$399=\"1\")*('2. Assisted & Restricted Units'!$W$7:$W$399=\"NonAssisted\")*('2. Assisted & Restricted Units'!$X$7:$X$399=\"25% AMI\"))","v":0},{"$f":"SUMPRODUCT(('2. Assisted & Restricted Units'!$E$7:$E$399=\"1\")*('2. Assisted & Restricted Units'!$W$7:$W$399=\"Other Restr\")*('2. Assisted & Restricted Units'!$X$7:$X$399=\"25% AMI\"))","v":0},{"$f":"SUMPRODUCT(('2. Assisted & Restricted Units'!$E$7:$E$399=\"1\")*('2. Assisted & Restricted Units'!$W$7:$W$399=\"RHCP-B\")*('2. Assisted & Restricted Units'!$X$7:$X$399=\"25% AMI\"))","v":0},{"$f":"SUMPRODUCT(('2. Assisted & Restricted Units'!$E$7:$E$399=\"1\")*('2. Assisted & Restricted Units'!$W$7:$W$399=\"SERA\")*('2. Assisted & Restricted Units'!$X$7:$X$399=\"25% AMI\"))","v":0},{"$f":"SUMPRODUCT(('2. Assisted & Restricted Units'!$E$7:$E$399=\"1\")*('2. Assisted & Restricted Units'!$W$7:$W$399=\"SUHRP\")*('2. Assisted & Restricted Units'!$X$7:$X$399=\"25% AMI\"))","v":0},{"$f":"SUMPRODUCT(('2. Assisted & Restricted Units'!$E$7:$E$399=\"1\")*('2. Assisted & Restricted Units'!$W$7:$W$399=\"TOD\")*('2. Assisted & Restricted Units'!$X$7:$X$399=\"25% AMI\"))","v":0},{"$f":"SUMPRODUCT(('2. Assisted & Restricted Units'!$E$7:$E$399=\"1\")*('2. Assisted & Restricted Units'!$W$7:$W$399=\"707-E\")*('2. Assisted & Restricted Units'!$X$7:$X$399=\"25% AMI\"))","v":0},{"$f":"SUMPRODUCT(('2. Assisted & Restricted Units'!$E$7:$E$399=\"1\")*('2. Assisted & Restricted Units'!$W$7:$W$399=\"707-N\")*('2. Assisted & Restricted Units'!$X$7:$X$399=\"25% AMI\"))","v":0}]
["1 Bedroom 30% AMI",{"$f":"SUMPRODUCT(('2. Assisted & Restricted Units'!$E$7:$E$399=\"1\")*('2. Assisted & Restricted Units'!$W$7:$W$399=\"CALDAP\")*('2. Assisted & Restricted Units'!$X$7:$X$399=\"30% AMI\"))","v":0},{"$f":"SUMPRODUCT(('2. Assisted & Restricted Units'!$E$7:$E$399=\"1\")*('2. Assisted & Restricted Units'!$W$7:$W$399=\"CHRP-R\")*('2. Assisted & Restricted Units'!$X$7:$X$399=\"30% AMI\"))","v":0},{"$f":"SUMPRODUCT(('2. Assisted & Restricted Units'!$E$7:$E$399=\"1\")*('2. Assisted & Restricted Units'!$W$7:$W$399=\"DDS\")*('2. Assisted & Restricted Units'!$X$7:$X$399=\"30% AMI\"))","v":0},{"$f":"SUMPRODUCT(('2. Assisted & Restricted Units'!$E$7:$E$399=\"1\")*('2. Assisted & Restricted Units'!$W$7:$W$399=\"DPRLP\")*('2. Assisted & Restricted Units'!$X$7:$X$399=\"30% AMI\"))","v":0},{"$f":"SUMPRODUCT(('2. Assisted & Restricted Units'!$E$7:$E$399=\"1\")*('2. Assisted & Restricted Units'!$W$7:$W$399=\"FHDP\")*('2. Assisted & Restricted Units'!$X$7:$X$399=\"30% AMI\"))","v":0},{"$f":"SUMPRODUCT(('2. Assisted & Restricted Units'!$E$7:$E$399=\"1\")*('2. Assisted & Restricted Units'!$W$7:$W$399=\"FMTW\")*('2. Assisted & Restricted Units'!$X$7:$X$399=\"30% AMI\"))","v":0},null,{"$f":"SUMPRODUCT(('2. Assisted & Restricted Units'!$E$7:$E$399=\"1\")*('2. Assisted & Restricted Units'!$W$7:$W$399=\"HOME\")*('2. Assisted & Restricted Units'!$X$7:$X$399=\"30% AMI\"))","v":0},{"$f":"SUMPRODUCT(('2. Assisted & Restricted Units'!$E$7:$E$399=\"1\")*('2. Assisted & Restricted Units'!$W$7:$W$399=\"Market Rate\")*('2. Assisted & Restricted Units'!$X$7:$X$399=\"30% AMI\"))","v":0},{"$f":"SUMPRODUCT(('2. Assisted & Restricted Units'!$E$7:$E$399=\"1\")*('2. Assisted & Restricted Units'!$W$7:$W$399=\"MHP\")*('2. Assisted & Restricted Units'!$X$7:$X$399=\"30% AMI\"))","v":0},{"$f":"SUMPRODUCT(('2. Assisted & Restricted Units'!$E$7:$E$399=\"1\")*('2. Assisted & Restricted Units'!$W$7:$W$399=\"NonAssisted\")*('2. Assisted & Restricted Units'!$X$7:$X$399=\"30% AMI\"))","v":0},{"$f":"SUMPRODUCT(('2. Assisted & Restricted Units'!$E$7:$E$399=\"1\")*('2. Assisted & Restricted Units'!$W$7:$W$399=\"Other Restr\")*('2. Assisted & Restricted Units'!$X$7:$X$399=\"30% AMI\"))","v":0},{"$f":"SUMPRODUCT(('2. Assisted & Restricted Units'!$E$7:$E$399=\"1\")*('2. Assisted & Restricted Units'!$W$7:$W$399=\"RHCP-B\")*('2. Assisted & Restricted Units'!$X$7:$X$399=\"30% AMI\"))","v":0},{"$f":"SUMPRODUCT(('2. Assisted & Restricted Units'!$E$7:$E$399=\"1\")*('2. Assisted & Restricted Units'!$W$7:$W$399=\"SERA\")*('2. Assisted & Restricted Units'!$X$7:$X$399=\"30% AMI\"))","v":0},{"$f":"SUMPRODUCT(('2. Assisted & Restricted Units'!$E$7:$E$399=\"1\")*('2. Assisted & Restricted Units'!$W$7:$W$399=\"SUHRP\")*('2. Assisted & Restricted Units'!$X$7:$X$399=\"30% AMI\"))","v":0},{"$f":"SUMPRODUCT(('2. Assisted & Restricted Units'!$E$7:$E$399=\"1\")*('2. Assisted & Restricted Units'!$W$7:$W$399=\"TOD\")*('2. Assisted & Restricted Units'!$X$7:$X$399=\"30% AMI\"))","v":0},{"$f":"SUMPRODUCT(('2. Assisted & Restricted Units'!$E$7:$E$399=\"1\")*('2. Assisted & Restricted Units'!$W$7:$W$399=\"707-E\")*('2. Assisted & Restricted Units'!$X$7:$X$399=\"30% AMI\"))","v":0},{"$f":"SUMPRODUCT(('2. Assisted & Restricted Units'!$E$7:$E$399=\"1\")*('2. Assisted & Restricted Units'!$W$7:$W$399=\"707-N\")*('2. Assisted & Restricted Units'!$X$7:$X$399=\"30% AMI\"))","v":0}]
["1 Bedroom 35% AMI",{"$f":"SUMPRODUCT(('2. Assisted & Restricted Units'!$E$7:$E$399=\"1\")*('2. Assisted & Restricted Units'!$W$7:$W$399=\"CALDAP\")*('2. Assisted & Restricted Units'!$X$7:$X$399=\"35% AMI\"))","v":0},{"$f":"SUMPRODUCT(('2. Assisted & Restricted Units'!$E$7:$E$399=\"1\")*('2. Assisted & Restricted Units'!$W$7:$W$399=\"CHRP-R\")*('2. Assisted & Restricted Units'!$X$7:$X$399=\"35% AMI\"))","v":0},{"$f":"SUMPRODUCT(('2. Assisted & Restricted Units'!$E$7:$E$399=\"1\")*('2. Assisted & Restricted Units'!$W$7:$W$399=\"DDS\")*('2. Assisted & Restricted Units'!$X$7:$X$399=\"35% AMI\"))","v":0},{"$f":"SUMPRODUCT(('2. Assisted & Restricted Units'!$E$7:$E$399=\"1\")*('2. Assisted & Restricted Units'!$W$7:$W$399=\"DPRLP\")*('2. Assisted & Restricted Units'!$X$7:$X$399=\"35% AMI\"))","v":0},{"$f":"SUMPRODUCT(('2. Assisted & Restricted Units'!$E$7:$E$399=\"1\")*('2. Assisted & Restricted Units'!$W$7:$W$399=\"FHDP\")*('2. Assisted & Restricted Units'!$X$7:$X$399=\"35% AMI\"))","v":0},{"$f":"SUMPRODUCT(('2. Assisted & Restricted Units'!$E$7:$E$399=\"1\")*('2. Assisted & Restricted Units'!$W$7:$W$399=\"FMTW\")*('2. Assisted & Restricted Units'!$X$7:$X$399=\"35% AMI\"))","v":0},null,{"$f":"SUMPRODUCT(('2. Assisted & Restricted Units'!$E$7:$E$399=\"1\")*('2. Assisted & Restricted Units'!$W$7:$W$399=\"HOME\")*('2. Assisted & Restricted Units'!$X$7:$X$399=\"35% AMI\"))","v":0},{"$f":"SUMPRODUCT(('2. Assisted & Restricted Units'!$E$7:$E$399=\"1\")*('2. Assisted & Restricted Units'!$W$7:$W$399=\"Market Rate\")*('2. Assisted & Restricted Units'!$X$7:$X$399=\"35% AMI\"))","v":0},{"$f":"SUMPRODUCT(('2. Assisted & Restricted Units'!$E$7:$E$399=\"1\")*('2. Assisted & Restricted Units'!$W$7:$W$399=\"MHP\")*('2. Assisted & Restricted Units'!$X$7:$X$399=\"35% AMI\"))","v":0},{"$f":"SUMPRODUCT(('2. Assisted & Restricted Units'!$E$7:$E$399=\"1\")*('2. Assisted & Restricted Units'!$W$7:$W$399=\"NonAssisted\")*('2. Assisted & Restricted Units'!$X$7:$X$399=\"35% AMI\"))","v":0},{"$f":"SUMPRODUCT(('2. Assisted & Restricted Units'!$E$7:$E$399=\"1\")*('2. Assisted & Restricted Units'!$W$7:$W$399=\"Other Restr\")*('2. Assisted & Restricted Units'!$X$7:$X$399=\"35% AMI\"))","v":0},{"$f":"SUMPRODUCT(('2. Assisted & Restricted Units'!$E$7:$E$399=\"1\")*('2. Assisted & Restricted Units'!$W$7:$W$399=\"RHCP-B\")*('2. Assisted & Restricted Units'!$X$7:$X$399=\"35% AMI\"))","v":0},{"$f":"SUMPRODUCT(('2. Assisted & Restricted Units'!$E$7:$E$399=\"1\")*('2. Assisted & Restricted Units'!$W$7:$W$399=\"SERA\")*('2. Assisted & Restricted Units'!$X$7:$X$399=\"35% AMI\"))","v":0},{"$f":"SUMPRODUCT(('2. Assisted & Restricted Units'!$E$7:$E$399=\"1\")*('2. Assisted & Restricted Units'!$W$7:$W$399=\"SUHRP\")*('2. Assisted & Restricted Units'!$X$7:$X$399=\"35% AMI\"))","v":0},{"$f":"SUMPRODUCT(('2. Assisted & Restricted Units'!$E$7:$E$399=\"1\")*('2. Assisted & Restricted Units'!$W$7:$W$399=\"TOD\")*('2. Assisted & Restricted Units'!$X$7:$X$399=\"35% AMI\"))","v":0},{"$f":"SUMPRODUCT(('2. Assisted & Restricted Units'!$E$7:$E$399=\"1\")*('2. Assisted & Restricted Units'!$W$7:$W$399=\"707-E\")*('2. Assisted & Restricted Units'!$X$7:$X$399=\"35% AMI\"))","v":0},{"$f":"SUMPRODUCT(('2. Assisted & Restricted Units'!$E$7:$E$399=\"1\")*('2. Assisted & Restricted Units'!$W$7:$W$399=\"707-N\")*('2. Assisted & Restricted Units'!$X$7:$X$399=\"35% AMI\"))","v":0}]
["1 Bedroom 40% AMI",{"$f":"SUMPRODUCT(('2. Assisted & Restricted Units'!$E$7:$E$399=\"1\")*('2. Assisted & Restricted Units'!$W$7:$W$399=\"CALDAP\")*('2. Assisted & Restricted Units'!$X$7:$X$399=\"40% AMI\"))","v":0},{"$f":"SUMPRODUCT(('2. Assisted & Restricted Units'!$E$7:$E$399=\"1\")*('2. Assisted & Restricted Units'!$W$7:$W$399=\"CHRP-R\")*('2. Assisted & Restricted Units'!$X$7:$X$399=\"40% AMI\"))","v":0},{"$f":"SUMPRODUCT(('2. Assisted & Restricted Units'!$E$7:$E$399=\"1\")*('2. Assisted & Restricted Units'!$W$7:$W$399=\"DDS\")*('2. Assisted & Restricted Units'!$X$7:$X$399=\"40% AMI\"))","v":0},{"$f":"SUMPRODUCT(('2. Assisted & Restricted Units'!$E$7:$E$399=\"1\")*('2. Assisted & Restricted Units'!$W$7:$W$399=\"DPRLP\")*('2. Assisted & Restricted Units'!$X$7:$X$399=\"40% AMI\"))","v":0},{"$f":"SUMPRODUCT(('2. Assisted & Restricted Units'!$E$7:$E$399=\"1\")*('2. Assisted & Restricted Units'!$W$7:$W$399=\"FHDP\")*('2. Assisted & Restricted Units'!$X$7:$X$399=\"40% AMI\"))","v":0},{"$f":"SUMPRODUCT(('2. Assisted & Restricted Units'!$E$7:$E$399=\"1\")*('2. Assisted & Restricted Units'!$W$7:$W$399=\"FMTW\")*('2. Assisted & Restricted Units'!$X$7:$X$399=\"40% AMI\"))","v":0},null,{"$f":"SUMPRODUCT(('2. Assisted & Restricted Units'!$E$7:$E$399=\"1\")*('2. Assisted & Restricted Units'!$W$7:$W$399=\"HOME\")*('2. Assisted & Restricted Units'!$X$7:$X$399=\"40% AMI\"))","v":0},{"$f":"SUMPRODUCT(('2. Assisted & Restricted Units'!$E$7:$E$399=\"1\")*('2. Assisted & Restricted Units'!$W$7:$W$399=\"Market Rate\")*('2. Assisted & Restricted Units'!$X$7:$X$399=\"40% AMI\"))","v":0},{"$f":"SUMPRODUCT(('2. Assisted & Restricted Units'!$E$7:$E$399=\"1\")*('2. Assisted & Restricted Units'!$W$7:$W$399=\"MHP\")*('2. Assisted & Restricted Units'!$X$7:$X$399=\"40% AMI\"))","v":0},{"$f":"SUMPRODUCT(('2. Assisted & Restricted Units'!$E$7:$E$399=\"1\")*('2. Assisted & Restricted Units'!$W$7:$W$399=\"NonAssisted\")*('2. Assisted & Restricted Units'!$X$7:$X$399=\"40% AMI\"))","v":0},{"$f":"SUMPRODUCT(('2. Assisted & Restricted Units'!$E$7:$E$399=\"1\")*('2. Assisted & Restricted Units'!$W$7:$W$399=\"Other Restr\")*('2. Assisted & Restricted Units'!$X$7:$X$399=\"40% AMI\"))","v":0},{"$f":"SUMPRODUCT(('2. Assisted & Restricted Units'!$E$7:$E$399=\"1\")*('2. Assisted & Restricted Units'!$W$7:$W$399=\"RHCP-B\")*('2. Assisted & Restricted Units'!$X$7:$X$399=\"40% AMI\"))","v":0},{"$f":"SUMPRODUCT(('2. Assisted & Restricted Units'!$E$7:$E$399=\"1\")*('2. Assisted & Restricted Units'!$W$7:$W$399=\"SERA\")*('2. Assisted & Restricted Units'!$X$7:$X$399=\"40% AMI\"))","v":0},{"$f":"SUMPRODUCT(('2. Assisted & Restricted Units'!$E$7:$E$399=\"1\")*('2. Assisted & Restricted Units'!$W$7:$W$399=\"SUHRP\")*('2. Assisted & Restricted Units'!$X$7:$X$399=\"40% AMI\"))","v":0},{"$f":"SUMPRODUCT(('2. Assisted & Restricted Units'!$E$7:$E$399=\"1\")*('2. Assisted & Restricted Units'!$W$7:$W$399=\"TOD\")*('2. Assisted & Restricted Units'!$X$7:$X$399=\"40% AMI\"))","v":0},{"$f":"SUMPRODUCT(('2. Assisted & Restricted Units'!$E$7:$E$399=\"1\")*('2. Assisted & Restricted Units'!$W$7:$W$399=\"707-E\")*('2. Assisted & Restricted Units'!$X$7:$X$399=\"40% AMI\"))","v":0},{"$f":"SUMPRODUCT(('2. Assisted & Restricted Units'!$E$7:$E$399=\"1\")*('2. Assisted & Restricted Units'!$W$7:$W$399=\"707-N\")*('2. Assisted & Restricted Units'!$X$7:$X$399=\"40% AMI\"))","v":0}]
["1 Bedroom 45% AMI",{"$f":"SUMPRODUCT(('2. Assisted & Restricted Units'!$E$7:$E$399=\"1\")*('2. Assisted & Restricted Units'!$W$7:$W$399=\"CALDAP\")*('2. Assisted & Restricted Units'!$X$7:$X$399=\"45% AMI\"))","v":0},{"$f":"SUMPRODUCT(('2. Assisted & Restricted Units'!$E$7:$E$399=\"1\")*('2. Assisted & Restricted Units'!$W$7:$W$399=\"CHRP-R\")*('2. Assisted & Restricted Units'!$X$7:$X$399=\"45% AMI\"))","v":0},{"$f":"SUMPRODUCT(('2. Assisted & Restricted Units'!$E$7:$E$399=\"1\")*('2. Assisted & Restricted Units'!$W$7:$W$399=\"DDS\")*('2. Assisted & Restricted Units'!$X$7:$X$399=\"45% AMI\"))","v":0},{"$f":"SUMPRODUCT(('2. Assisted & Restricted Units'!$E$7:$E$399=\"1\")*('2. Assisted & Restricted Units'!$W$7:$W$399=\"DPRLP\")*('2. Assisted & Restricted Units'!$X$7:$X$399=\"45% AMI\"))","v":0},{"$f":"SUMPRODUCT(('2. Assisted & Restricted Units'!$E$7:$E$399=\"1\")*('2. Assisted & Restricted Units'!$W$7:$W$399=\"FHDP\")*('2. Assisted & Restricted Units'!$X$7:$X$399=\"45% AMI\"))","v":0},{"$f":"SUMPRODUCT(('2. Assisted & Restricted Units'!$E$7:$E$399=\"1\")*('2. Assisted & Restricted Units'!$W$7:$W$399=\"FMTW\")*('2. Assisted & Restricted Units'!$X$7:$X$399=\"45% AMI\"))","v":0},null,{"$f":"SUMPRODUCT(('2. Assisted & Restricted Units'!$E$7:$E$399=\"1\")*('2. Assisted & Restricted Units'!$W$7:$W$399=\"HOME\")*('2. Assisted & Restricted Units'!$X$7:$X$399=\"45% AMI\"))","v":0},{"$f":"SUMPRODUCT(('2. Assisted & Restricted Units'!$E$7:$E$399=\"1\")*('2. Assisted & Restricted Units'!$W$7:$W$399=\"Market Rate\")*('2. Assisted & Restricted Units'!$X$7:$X$399=\"45% AMI\"))","v":0},{"$f":"SUMPRODUCT(('2. Assisted & Restricted Units'!$E$7:$E$399=\"1\")*('2. Assisted & Restricted Units'!$W$7:$W$399=\"MHP\")*('2. Assisted & Restricted Units'!$X$7:$X$399=\"45% AMI\"))","v":0},{"$f":"SUMPRODUCT(('2. Assisted & Restricted Units'!$E$7:$E$399=\"1\")*('2. Assisted & Restricted Units'!$W$7:$W$399=\"NonAssisted\")*('2. Assisted & Restricted Units'!$X$7:$X$399=\"45% AMI\"))","v":0},{"$f":"SUMPRODUCT(('2. Assisted & Restricted Units'!$E$7:$E$399=\"1\")*('2. Assisted & Restricted Units'!$W$7:$W$399=\"Other Restr\")*('2. Assisted & Restricted Units'!$X$7:$X$399=\"45% AMI\"))","v":0},{"$f":"SUMPRODUCT(('2. Assisted & Restricted Units'!$E$7:$E$399=\"1\")*('2. Assisted & Restricted Units'!$W$7:$W$399=\"RHCP-B\")*('2. Assisted & Restricted Units'!$X$7:$X$399=\"45% AMI\"))","v":0},{"$f":"SUMPRODUCT(('2. Assisted & Restricted Units'!$E$7:$E$399=\"1\")*('2. Assisted & Restricted Units'!$W$7:$W$399=\"SERA\")*('2. Assisted & Restricted Units'!$X$7:$X$399=\"45% AMI\"))","v":0},{"$f":"SUMPRODUCT(('2. Assisted & Restricted Units'!$E$7:$E$399=\"1\")*('2. Assisted & Restricted Units'!$W$7:$W$399=\"SUHRP\")*('2. Assisted & Restricted Units'!$X$7:$X$399=\"45% AMI\"))","v":0},{"$f":"SUMPRODUCT(('2. Assisted & Restricted Units'!$E$7:$E$399=\"1\")*('2. Assisted & Restricted Units'!$W$7:$W$399=\"TOD\")*('2. Assisted & Restricted Units'!$X$7:$X$399=\"45% AMI\"))","v":0},{"$f":"SUMPRODUCT(('2. Assisted & Restricted Units'!$E$7:$E$399=\"1\")*('2. Assisted & Restricted Units'!$W$7:$W$399=\"707-E\")*('2. Assisted & Restricted Units'!$X$7:$X$399=\"45% AMI\"))","v":0},{"$f":"SUMPRODUCT(('2. Assisted & Restricted Units'!$E$7:$E$399=\"1\")*('2. Assisted & Restricted Units'!$W$7:$W$399=\"707-N\")*('2. Assisted & Restricted Units'!$X$7:$X$399=\"45% AMI\"))","v":0}]
["1 Bedroom 50% AMI",{"$f":"SUMPRODUCT(('2. Assisted & Restricted Units'!$E$7:$E$399=\"1\")*('2. Assisted & Restricted Units'!$W$7:$W$399=\"CALDAP\")*('2. Assisted & Restricted Units'!$X$7:$X$399=\"50% AMI\"))","v":0},{"$f":"SUMPRODUCT(('2. Assisted & Restricted Units'!$E$7:$E$399=\"1\")*('2. Assisted & Restricted Units'!$W$7:$W$399=\"CHRP-R\")*('2. Assisted & Restricted Units'!$X$7:$X$399=\"50% AMI\"))","v":0},{"$f":"SUMPRODUCT(('2. Assisted & Restricted Units'!$E$7:$E$399=\"1\")*('2. Assisted & Restricted Units'!$W$7:$W$399=\"DDS\")*('2. Assisted & Restricted Units'!$X$7:$X$399=\"50% AMI\"))","v":0},{"$f":"SUMPRODUCT(('2. Assisted & Restricted Units'!$E$7:$E$399=\"1\")*('2. Assisted & Restricted Units'!$W$7:$W$399=\"DPRLP\")*('2. Assisted & Restricted Units'!$X$7:$X$399=\"50% AMI\"))","v":0},{"$f":"SUMPRODUCT(('2. Assisted & Restricted Units'!$E$7:$E$399=\"1\")*('2. Assisted & Restricted Units'!$W$7:$W$399=\"FHDP\")*('2. Assisted & Restricted Units'!$X$7:$X$399=\"50% AMI\"))","v":0},{"$f":"SUMPRODUCT(('2. Assisted & Restricted Units'!$E$7:$E$399=\"1\")*('2. Assisted & Restricted Units'!$W$7:$W$399=\"FMTW\")*('2. Assisted & Restricted Units'!$X$7:$X$399=\"50% AMI\"))","v":0},null,{"$f":"SUMPRODUCT(('2. Assisted & Restricted Units'!$E$7:$E$399=\"1\")*('2. Assisted & Restricted Units'!$W$7:$W$399=\"HOME\")*('2. Assisted & Restricted Units'!$X$7:$X$399=\"50% AMI\"))","v":0},{"$f":"SUMPRODUCT(('2. Assisted & Restricted Units'!$E$7:$E$399=\"1\")*('2. Assisted & Restricted Units'!$W$7:$W$399=\"Market Rate\")*('2. Assisted & Restricted Units'!$X$7:$X$399=\"50% AMI\"))","v":0},{"$f":"SUMPRODUCT(('2. Assisted & Restricted Units'!$E$7:$E$399=\"1\")*('2. Assisted & Restricted Units'!$W$7:$W$399=\"MHP\")*('2. Assisted & Restricted Units'!$X$7:$X$399=\"50% AMI\"))","v":0},{"$f":"SUMPRODUCT(('2. Assisted & Restricted Units'!$E$7:$E$399=\"1\")*('2. Assisted & Restricted Units'!$W$7:$W$399=\"NonAssisted\")*('2. Assisted & Restricted Units'!$X$7:$X$399=\"50% AMI\"))","v":0},{"$f":"SUMPRODUCT(('2. Assisted & Restricted Units'!$E$7:$E$399=\"1\")*('2. Assisted & Restricted Units'!$W$7:$W$399=\"Other Restr\")*('2. Assisted & Restricted Units'!$X$7:$X$399=\"50% AMI\"))","v":0},{"$f":"SUMPRODUCT(('2. Assisted & Restricted Units'!$E$7:$E$399=\"1\")*('2. Assisted & Restricted Units'!$W$7:$W$399=\"RHCP-B\")*('2. Assisted & Restricted Units'!$X$7:$X$399=\"50% AMI\"))","v":0},{"$f":"SUMPRODUCT(('2. Assisted & Restricted Units'!$E$7:$E$399=\"1\")*('2. Assisted & Restricted Units'!$W$7:$W$399=\"SERA\")*('2. Assisted & Restricted Units'!$X$7:$X$399=\"50% AMI\"))","v":0},{"$f":"SUMPRODUCT(('2. Assisted & Restricted Units'!$E$7:$E$399=\"1\")*('2. Assisted & Restricted Units'!$W$7:$W$399=\"SUHRP\")*('2. Assisted & Restricted Units'!$X$7:$X$399=\"50% AMI\"))","v":0},{"$f":"SUMPRODUCT(('2. Assisted & Restricted Units'!$E$7:$E$399=\"1\")*('2. Assisted & Restricted Units'!$W$7:$W$399=\"TOD\")*('2. Assisted & Restricted Units'!$X$7:$X$399=\"50% AMI\"))","v":0},{"$f":"SUMPRODUCT(('2. Assisted & Restricted Units'!$E$7:$E$399=\"1\")*('2. Assisted & Restricted Units'!$W$7:$W$399=\"707-E\")*('2. Assisted & Restricted Units'!$X$7:$X$399=\"50% AMI\"))","v":0},{"$f":"SUMPRODUCT(('2. Assisted & Restricted Units'!$E$7:$E$399=\"1\")*('2. Assisted & Restricted Units'!$W$7:$W$399=\"707-N\")*('2. Assisted & Restricted Units'!$X$7:$X$399=\"50% AMI\"))","v":0}]
["1 Bedroom 55% AMI",{"$f":"SUMPRODUCT(('2. Assisted & Restricted Units'!$E$7:$E$399=\"1\")*('2. Assisted & Restricted Units'!$W$7:$W$399=\"CALDAP\")*('2. Assisted & Restricted Units'!$X$7:$X$399=\"55% AMI\"))","v":0},{"$f":"SUMPRODUCT(('2. Assisted & Restricted Units'!$E$7:$E$399=\"1\")*('2. Assisted & Restricted Units'!$W$7:$W$399=\"CHRP-R\")*('2. Assisted & Restricted Units'!$X$7:$X$399=\"55% AMI\"))","v":0},{"$f":"SUMPRODUCT(('2. Assisted & Restricted Units'!$E$7:$E$399=\"1\")*('2. Assisted & Restricted Units'!$W$7:$W$399=\"DDS\")*('2. Assisted & Restricted Units'!$X$7:$X$399=\"55% AMI\"))","v":0},{"$f":"SUMPRODUCT(('2. Assisted & Restricted Units'!$E$7:$E$399=\"1\")*('2. Assisted & Restricted Units'!$W$7:$W$399=\"DPRLP\")*('2. Assisted & Restricted Units'!$X$7:$X$399=\"55% AMI\"))","v":0},{"$f":"SUMPRODUCT(('2. Assisted & Restricted Units'!$E$7:$E$399=\"1\")*('2. Assisted & Restricted Units'!$W$7:$W$399=\"FHDP\")*('2. Assisted & Restricted Units'!$X$7:$X$399=\"55% AMI\"))","v":0},{"$f":"SUMPRODUCT(('2. Assisted & Restricted Units'!$E$7:$E$399=\"1\")*('2. Assisted & Restricted Units'!$W$7:$W$399=\"FMTW\")*('2. Assisted & Restricted Units'!$X$7:$X$399=\"55% AMI\"))","v":0},null,{"$f":"SUMPRODUCT(('2. Assisted & Restricted Units'!$E$7:$E$399=\"1\")*('2. Assisted & Restricted Units'!$W$7:$W$399=\"HOME\")*('2. Assisted & Restricted Units'!$X$7:$X$399=\"55% AMI\"))","v":0},{"$f":"SUMPRODUCT(('2. Assisted & Restricted Units'!$E$7:$E$399=\"1\")*('2. Assisted & Restricted Units'!$W$7:$W$399=\"Market Rate\")*('2. Assisted & Restricted Units'!$X$7:$X$399=\"55% AMI\"))","v":0},{"$f":"SUMPRODUCT(('2. Assisted & Restricted Units'!$E$7:$E$399=\"1\")*('2. Assisted & Restricted Units'!$W$7:$W$399=\"MHP\")*('2. Assisted & Restricted Units'!$X$7:$X$399=\"55% AMI\"))","v":0},{"$f":"SUMPRODUCT(('2. Assisted & Restricted Units'!$E$7:$E$399=\"1\")*('2. Assisted & Restricted Units'!$W$7:$W$399=\"NonAssisted\")*('2. Assisted & Restricted Units'!$X$7:$X$399=\"55% AMI\"))","v":0},{"$f":"SUMPRODUCT(('2. Assisted & Restricted Units'!$E$7:$E$399=\"1\")*('2. Assisted & Restricted Units'!$W$7:$W$399=\"Other Restr\")*('2. Assisted & Restricted Units'!$X$7:$X$399=\"55% AMI\"))","v":0},{"$f":"SUMPRODUCT(('2. Assisted & Restricted Units'!$E$7:$E$399=\"1\")*('2. Assisted & Restricted Units'!$W$7:$W$399=\"RHCP-B\")*('2. Assisted & Restricted Units'!$X$7:$X$399=\"55% AMI\"))","v":0},{"$f":"SUMPRODUCT(('2. Assisted & Restricted Units'!$E$7:$E$399=\"1\")*('2. Assisted & Restricted Units'!$W$7:$W$399=\"SERA\")*('2. Assisted & Restricted Units'!$X$7:$X$399=\"55% AMI\"))","v":0},{"$f":"SUMPRODUCT(('2. Assisted & Restricted Units'!$E$7:$E$399=\"1\")*('2. Assisted & Restricted Units'!$W$7:$W$399=\"SUHRP\")*('2. Assisted & Restricted Units'!$X$7:$X$399=\"55% AMI\"))","v":0},{"$f":"SUMPRODUCT(('2. Assisted & Restricted Units'!$E$7:$E$399=\"1\")*('2. Assisted & Restricted Units'!$W$7:$W$399=\"TOD\")*('2. Assisted & Restricted Units'!$X$7:$X$399=\"55% AMI\"))","v":0},{"$f":"SUMPRODUCT(('2. Assisted & Restricted Units'!$E$7:$E$399=\"1\")*('2. Assisted & Restricted Units'!$W$7:$W$399=\"707-E\")*('2. Assisted & Restricted Units'!$X$7:$X$399=\"55% AMI\"))","v":0},{"$f":"SUMPRODUCT(('2. Assisted & Restricted Units'!$E$7:$E$399=\"1\")*('2. Assisted & Restricted Units'!$W$7:$W$399=\"707-N\")*('2. Assisted & Restricted Units'!$X$7:$X$399=\"55% AMI\"))","v":0}]
["1 Bedroom 60% AMI",{"$f":"SUMPRODUCT(('2. Assisted & Restricted Units'!$E$7:$E$399=\"1\")*('2. Assisted & Restricted Units'!$W$7:$W$399=\"CALDAP\")*('2. Assisted & Restricted Units'!$X$7:$X$399=\"60% AMI\"))","v":0},{"$f":"SUMPRODUCT(('2. Assisted & Restricted Units'!$E$7:$E$399=\"1\")*('2. Assisted & Restricted Units'!$W$7:$W$399=\"CHRP-R\")*('2. Assisted & Restricted Units'!$X$7:$X$399=\"60% AMI\"))","v":0},{"$f":"SUMPRODUCT(('2. Assisted & Restricted Units'!$E$7:$E$399=\"1\")*('2. Assisted & Restricted Units'!$W$7:$W$399=\"DDS\")*('2. Assisted & Restricted Units'!$X$7:$X$399=\"60% AMI\"))","v":0},{"$f":"SUMPRODUCT(('2. Assisted & Restricted Units'!$E$7:$E$399=\"1\")*('2. Assisted & Restricted Units'!$W$7:$W$399=\"DPRLP\")*('2. Assisted & Restricted Units'!$X$7:$X$399=\"60% AMI\"))","v":0},{"$f":"SUMPRODUCT(('2. Assisted & Restricted Units'!$E$7:$E$399=\"1\")*('2. Assisted & Restricted Units'!$W$7:$W$399=\"FHDP\")*('2. Assisted & Restricted Units'!$X$7:$X$399=\"60% AMI\"))","v":0},{"$f":"SUMPRODUCT(('2. Assisted & Restricted Units'!$E$7:$E$399=\"1\")*('2. Assisted & Restricted Units'!$W$7:$W$399=\"FMTW\")*('2. Assisted & Restricted Units'!$X$7:$X$399=\"60% AMI\"))","v":0},null,{"$f":"SUMPRODUCT(('2. Assisted & Restricted Units'!$E$7:$E$399=\"1\")*('2. Assisted & Restricted Units'!$W$7:$W$399=\"HOME\")*('2. Assisted & Restricted Units'!$X$7:$X$399=\"60% AMI\"))","v":0},{"$f":"SUMPRODUCT(('2. Assisted & Restricted Units'!$E$7:$E$399=\"1\")*('2. Assisted & Restricted Units'!$W$7:$W$399=\"Market Rate\")*('2. Assisted & Restricted Units'!$X$7:$X$399=\"60% AMI\"))","v":0},{"$f":"SUMPRODUCT(('2. Assisted & Restricted Units'!$E$7:$E$399=\"1\")*('2. Assisted & Restricted Units'!$W$7:$W$399=\"MHP\")*('2. Assisted & Restricted Units'!$X$7:$X$399=\"60% AMI\"))","v":0},{"$f":"SUMPRODUCT(('2. Assisted & Restricted Units'!$E$7:$E$399=\"1\")*('2. Assisted & Restricted Units'!$W$7:$W$399=\"NonAssisted\")*('2. Assisted & Restricted Units'!$X$7:$X$399=\"60% AMI\"))","v":0},{"$f":"SUMPRODUCT(('2. Assisted & Restricted Units'!$E$7:$E$399=\"1\")*('2. Assisted & Restricted Units'!$W$7:$W$399=\"Other Restr\")*('2. Assisted & Restricted Units'!$X$7:$X$399=\"60% AMI\"))","v":0},{"$f":"SUMPRODUCT(('2. Assisted & Restricted Units'!$E$7:$E$399=\"1\")*('2. Assisted & Restricted Units'!$W$7:$W$399=\"RHCP-B\")*('2. Assisted & Restricted Units'!$X$7:$X$399=\"60% AMI\"))","v":0},{"$f":"SUMPRODUCT(('2. Assisted & Restricted Units'!$E$7:$E$399=\"1\")*('2. Assisted & Restricted Units'!$W$7:$W$399=\"SERA\")*('2. Assisted & Restricted Units'!$X$7:$X$399=\"60% AMI\"))","v":0},{"$f":"SUMPRODUCT(('2. Assisted & Restricted Units'!$E$7:$E$399=\"1\")*('2. Assisted & Restricted Units'!$W$7:$W$399=\"SUHRP\")*('2. Assisted & Restricted Units'!$X$7:$X$399=\"60% AMI\"))","v":0},{"$f":"SUMPRODUCT(('2. Assisted & Restricted Units'!$E$7:$E$399=\"1\")*('2. Assisted & Restricted Units'!$W$7:$W$399=\"TOD\")*('2. Assisted & Restricted Units'!$X$7:$X$399=\"60% AMI\"))","v":0},{"$f":"SUMPRODUCT(('2. Assisted & Restricted Units'!$E$7:$E$399=\"1\")*('2. Assisted & Restricted Units'!$W$7:$W$399=\"707-E\")*('2. Assisted & Restricted Units'!$X$7:$X$399=\"60% AMI\"))","v":0},{"$f":"SUMPRODUCT(('2. Assisted & Restricted Units'!$E$7:$E$399=\"1\")*('2. Assisted & Restricted Units'!$W$7:$W$399=\"707-N\")*('2. Assisted & Restricted Units'!$X$7:$X$399=\"60% AMI\"))","v":0}]
["1 Bedroom 80% AMI",{"$f":"SUMPRODUCT(('2. Assisted & Restricted Units'!$E$7:$E$399=\"1\")*('2. Assisted & Restricted Units'!$W$7:$W$399=\"CALDAP\")*('2. Assisted & Restricted Units'!$X$7:$X$399=\"80% AMI\"))","v":0},{"$f":"SUMPRODUCT(('2. Assisted & Restricted Units'!$E$7:$E$399=\"1\")*('2. Assisted & Restricted Units'!$W$7:$W$399=\"CHRP-R\")*('2. Assisted & Restricted Units'!$X$7:$X$399=\"80% AMI\"))","v":0},{"$f":"SUMPRODUCT(('2. Assisted & Restricted Units'!$E$7:$E$399=\"1\")*('2. Assisted & Restricted Units'!$W$7:$W$399=\"DDS\")*('2. Assisted & Restricted Units'!$X$7:$X$399=\"80% AMI\"))","v":0},{"$f":"SUMPRODUCT(('2. Assisted & Restricted Units'!$E$7:$E$399=\"1\")*('2. Assisted & Restricted Units'!$W$7:$W$399=\"DPRLP\")*('2. Assisted & Restricted Units'!$X$7:$X$399=\"80% AMI\"))","v":0},{"$f":"SUMPRODUCT(('2. Assisted & Restricted Units'!$E$7:$E$399=\"1\")*('2. Assisted & Restricted Units'!$W$7:$W$399=\"FHDP\")*('2. Assisted & Restricted Units'!$X$7:$X$399=\"80% AMI\"))","v":0},{"$f":"SUMPRODUCT(('2. Assisted & Restricted Units'!$E$7:$E$399=\"1\")*('2. Assisted & Restricted Units'!$W$7:$W$399=\"FMTW\")*('2. Assisted & Restricted Units'!$X$7:$X$399=\"80% AMI\"))","v":0},null,{"$f":"SUMPRODUCT(('2. Assisted & Restricted Units'!$E$7:$E$399=\"1\")*('2. Assisted & Restricted Units'!$W$7:$W$399=\"HOME\")*('2. Assisted & Restricted Units'!$X$7:$X$399=\"80% AMI\"))","v":0},{"$f":"SUMPRODUCT(('2. Assisted & Restricted Units'!$E$7:$E$399=\"1\")*('2. Assisted & Restricted Units'!$W$7:$W$399=\"Market Rate\")*('2. Assisted & Restricted Units'!$X$7:$X$399=\"80% AMI\"))","v":0},{"$f":"SUMPRODUCT(('2. Assisted & Restricted Units'!$E$7:$E$399=\"1\")*('2. Assisted & Restricted Units'!$W$7:$W$399=\"MHP\")*('2. Assisted & Restricted Units'!$X$7:$X$399=\"80% AMI\"))","v":0},{"$f":"SUMPRODUCT(('2. Assisted & Restricted Units'!$E$7:$E$399=\"1\")*('2. Assisted & Restricted Units'!$W$7:$W$399=\"NonAssisted\")*('2. Assisted & Restricted Units'!$X$7:$X$399=\"80% AMI\"))","v":0},{"$f":"SUMPRODUCT(('2. Assisted & Restricted Units'!$E$7:$E$399=\"1\")*('2. Assisted & Restricted Units'!$W$7:$W$399=\"Other Restr\")*('2. Assisted & Restricted Units'!$X$7:$X$399=\"80% AMI\"))","v":0},{"$f":"SUMPRODUCT(('2. Assisted & Restricted Units'!$E$7:$E$399=\"1\")*('2. Assisted & Restricted Units'!$W$7:$W$399=\"RHCP-B\")*('2. Assisted & Restricted Units'!$X$7:$X$399=\"80% AMI\"))","v":0},{"$f":"SUMPRODUCT(('2. Assisted & Restricted Units'!$E$7:$E$399=\"1\")*('2. Assisted & Restricted Units'!$W$7:$W$399=\"SERA\")*('2. Assisted & Restricted Units'!$X$7:$X$399=\"80% AMI\"))","v":0},{"$f":"SUMPRODUCT(('2. Assisted & Restricted Units'!$E$7:$E$399=\"1\")*('2. Assisted & Restricted Units'!$W$7:$W$399=\"SUHRP\")*('2. Assisted & Restricted Units'!$X$7:$X$399=\"80% AMI\"))","v":0},{"$f":"SUMPRODUCT(('2. Assisted & Restricted Units'!$E$7:$E$399=\"1\")*('2. Assisted & Restricted Units'!$W$7:$W$399=\"TOD\")*('2. Assisted & Restricted Units'!$X$7:$X$399=\"80% AMI\"))","v":0},{"$f":"SUMPRODUCT(('2. Assisted & Restricted Units'!$E$7:$E$399=\"1\")*('2. Assisted & Restricted Units'!$W$7:$W$399=\"707-E\")*('2. Assisted & Restricted Units'!$X$7:$X$399=\"80% AMI\"))","v":0},{"$f":"SUMPRODUCT(('2. Assisted & Restricted Units'!$E$7:$E$399=\"1\")*('2. Assisted & Restricted Units'!$W$7:$W$399=\"707-N\")*('2. Assisted & Restricted Units'!$X$7:$X$399=\"80% AMI\"))","v":0}]
["1 Bedroom 20% SMI",{"$f":"SUMPRODUCT(('2. Assisted & Restricted Units'!$E$7:$E$399=\"1\")*('2. Assisted & Restricted Units'!$W$7:$W$399=\"CALDAP\")*('2. Assisted & Restricted Units'!$X$7:$X$399=\"20% SMI\"))","v":0},{"$f":"SUMPRODUCT(('2. Assisted & Restricted Units'!$E$7:$E$399=\"1\")*('2. Assisted & Restricted Units'!$W$7:$W$399=\"CHRP-R\")*('2. Assisted & Restricted Units'!$X$7:$X$399=\"20% SMI\"))","v":0},{"$f":"SUMPRODUCT(('2. Assisted & Restricted Units'!$E$7:$E$399=\"1\")*('2. Assisted & Restricted Units'!$W$7:$W$399=\"DDS\")*('2. Assisted & Restricted Units'!$X$7:$X$399=\"20% SMI\"))","v":0},{"$f":"SUMPRODUCT(('2. Assisted & Restricted Units'!$E$7:$E$399=\"1\")*('2. Assisted & Restricted Units'!$W$7:$W$399=\"DPRLP\")*('2. Assisted & Restricted Units'!$X$7:$X$399=\"20% SMI\"))","v":0},{"$f":"SUMPRODUCT(('2. Assisted & Restricted Units'!$E$7:$E$399=\"1\")*('2. Assisted & Restricted Units'!$W$7:$W$399=\"FHDP\")*('2. Assisted & Restricted Units'!$X$7:$X$399=\"20% SMI\"))","v":0},{"$f":"SUMPRODUCT(('2. Assisted & Restricted Units'!$E$7:$E$399=\"1\")*('2. Assisted & Restricted Units'!$W$7:$W$399=\"FMTW\")*('2. Assisted & Restricted Units'!$X$7:$X$399=\"20% SMI\"))","v":0},null,{"$f":"SUMPRODUCT(('2. Assisted & Restricted Units'!$E$7:$E$399=\"1\")*('2. Assisted & Restricted Units'!$W$7:$W$399=\"HOME\")*('2. Assisted & Restricted Units'!$X$7:$X$399=\"20% SMI\"))","v":0},{"$f":"SUMPRODUCT(('2. Assisted & Restricted Units'!$E$7:$E$399=\"1\")*('2. Assisted & Restricted Units'!$W$7:$W$399=\"Market Rate\")*('2. Assisted & Restricted Units'!$X$7:$X$399=\"20% SMI\"))","v":0},{"$f":"SUMPRODUCT(('2. Assisted & Restricted Units'!$E$7:$E$399=\"1\")*('2. Assisted & Restricted Units'!$W$7:$W$399=\"MHP\")*('2. Assisted & Restricted Units'!$X$7:$X$399=\"20% SMI\"))","v":0},{"$f":"SUMPRODUCT(('2. Assisted & Restricted Units'!$E$7:$E$399=\"1\")*('2. Assisted & Restricted Units'!$W$7:$W$399=\"NonAssisted\")*('2. Assisted & Restricted Units'!$X$7:$X$399=\"20% SMI\"))","v":0},{"$f":"SUMPRODUCT(('2. Assisted & Restricted Units'!$E$7:$E$399=\"1\")*('2. Assisted & Restricted Units'!$W$7:$W$399=\"Other Restr\")*('2. Assisted & Restricted Units'!$X$7:$X$399=\"20% SMI\"))","v":0},{"$f":"SUMPRODUCT(('2. Assisted & Restricted Units'!$E$7:$E$399=\"1\")*('2. Assisted & Restricted Units'!$W$7:$W$399=\"RHCP-B\")*('2. Assisted & Restricted Units'!$X$7:$X$399=\"20% SMI\"))","v":0},{"$f":"SUMPRODUCT(('2. Assisted & Restricted Units'!$E$7:$E$399=\"1\")*('2. Assisted & Restricted Units'!$W$7:$W$399=\"SERA\")*('2. Assisted & Restricted Units'!$X$7:$X$399=\"20% SMI\"))","v":0},{"$f":"SUMPRODUCT(('2. Assisted & Restricted Units'!$E$7:$E$399=\"1\")*('2. Assisted & Restricted Units'!$W$7:$W$399=\"SUHRP\")*('2. Assisted & Restricted Units'!$X$7:$X$399=\"20% SMI\"))","v":0},{"$f":"SUMPRODUCT(('2. Assisted & Restricted Units'!$E$7:$E$399=\"1\")*('2. Assisted & Restricted Units'!$W$7:$W$399=\"TOD\")*('2. Assisted & Restricted Units'!$X$7:$X$399=\"20% SMI\"))","v":0},{"$f":"SUMPRODUCT(('2. Assisted & Restricted Units'!$E$7:$E$399=\"1\")*('2. Assisted & Restricted Units'!$W$7:$W$399=\"707-E\")*('2. Assisted & Restricted Units'!$X$7:$X$399=\"20% SMI\"))","v":0},{"$f":"SUMPRODUCT(('2. Assisted & Restricted Units'!$E$7:$E$399=\"1\")*('2. Assisted & Restricted Units'!$W$7:$W$399=\"707-N\")*('2. Assisted & Restricted Units'!$X$7:$X$399=\"20% SMI\"))","v":0}]
["1 Bedroom 25% SMI",{"$f":"SUMPRODUCT(('2. Assisted & Restricted Units'!$E$7:$E$399=\"1\")*('2. Assisted & Restricted Units'!$W$7:$W$399=\"CALDAP\")*('2. Assisted & Restricted Units'!$X$7:$X$399=\"25% SMI\"))","v":0},{"$f":"SUMPRODUCT(('2. Assisted & Restricted Units'!$E$7:$E$399=\"1\")*('2. Assisted & Restricted Units'!$W$7:$W$399=\"CHRP-R\")*('2. Assisted & Restricted Units'!$X$7:$X$399=\"25% SMI\"))","v":0},{"$f":"SUMPRODUCT(('2. Assisted & Restricted Units'!$E$7:$E$399=\"1\")*('2. Assisted & Restricted Units'!$W$7:$W$399=\"DDS\")*('2. Assisted & Restricted Units'!$X$7:$X$399=\"25% SMI\"))","v":0},{"$f":"SUMPRODUCT(('2. Assisted & Restricted Units'!$E$7:$E$399=\"1\")*('2. Assisted & Restricted Units'!$W$7:$W$399=\"DPRLP\")*('2. Assisted & Restricted Units'!$X$7:$X$399=\"25% SMI\"))","v":0},{"$f":"SUMPRODUCT(('2. Assisted & Restricted Units'!$E$7:$E$399=\"1\")*('2. Assisted & Restricted Units'!$W$7:$W$399=\"FHDP\")*('2. Assisted & Restricted Units'!$X$7:$X$399=\"25% SMI\"))","v":0},{"$f":"SUMPRODUCT(('2. Assisted & Restricted Units'!$E$7:$E$399=\"1\")*('2. Assisted & Restricted Units'!$W$7:$W$399=\"FMTW\")*('2. Assisted & Restricted Units'!$X$7:$X$399=\"25% SMI\"))","v":0},null,{"$f":"SUMPRODUCT(('2. Assisted & Restricted Units'!$E$7:$E$399=\"1\")*('2. Assisted & Restricted Units'!$W$7:$W$399=\"HOME\")*('2. Assisted & Restricted Units'!$X$7:$X$399=\"25% SMI\"))","v":0},{"$f":"SUMPRODUCT(('2. Assisted & Restricted Units'!$E$7:$E$399=\"1\")*('2. Assisted & Restricted Units'!$W$7:$W$399=\"Market Rate\")*('2. Assisted & Restricted Units'!$X$7:$X$399=\"25% SMI\"))","v":0},{"$f":"SUMPRODUCT(('2. Assisted & Restricted Units'!$E$7:$E$399=\"1\")*('2. Assisted & Restricted Units'!$W$7:$W$399=\"MHP\")*('2. Assisted & Restricted Units'!$X$7:$X$399=\"25% SMI\"))","v":0},{"$f":"SUMPRODUCT(('2. Assisted & Restricted Units'!$E$7:$E$399=\"1\")*('2. Assisted & Restricted Units'!$W$7:$W$399=\"NonAssisted\")*('2. Assisted & Restricted Units'!$X$7:$X$399=\"25% SMI\"))","v":0},{"$f":"SUMPRODUCT(('2. Assisted & Restricted Units'!$E$7:$E$399=\"1\")*('2. Assisted & Restricted Units'!$W$7:$W$399=\"Other Restr\")*('2. Assisted & Restricted Units'!$X$7:$X$399=\"25% SMI\"))","v":0},{"$f":"SUMPRODUCT(('2. Assisted & Restricted Units'!$E$7:$E$399=\"1\")*('2. Assisted & Restricted Units'!$W$7:$W$399=\"RHCP-B\")*('2. Assisted & Restricted Units'!$X$7:$X$399=\"25% SMI\"))","v":0},{"$f":"SUMPRODUCT(('2. Assisted & Restricted Units'!$E$7:$E$399=\"1\")*('2. Assisted & Restricted Units'!$W$7:$W$399=\"SERA\")*('2. Assisted & Restricted Units'!$X$7:$X$399=\"25% SMI\"))","v":0},{"$f":"SUMPRODUCT(('2. Assisted & Restricted Units'!$E$7:$E$399=\"1\")*('2. Assisted & Restricted Units'!$W$7:$W$399=\"SUHRP\")*('2. Assisted & Restricted Units'!$X$7:$X$399=\"25% SMI\"))","v":0},{"$f":"SUMPRODUCT(('2. Assisted & Restricted Units'!$E$7:$E$399=\"1\")*('2. Assisted & Restricted Units'!$W$7:$W$399=\"TOD\")*('2. Assisted & Restricted Units'!$X$7:$X$399=\"25% SMI\"))","v":0},{"$f":"SUMPRODUCT(('2. Assisted & Restricted Units'!$E$7:$E$399=\"1\")*('2. Assisted & Restricted Units'!$W$7:$W$399=\"707-E\")*('2. Assisted & Restricted Units'!$X$7:$X$399=\"25% SMI\"))","v":0},{"$f":"SUMPRODUCT(('2. Assisted & Restricted Units'!$E$7:$E$399=\"1\")*('2. Assisted & Restricted Units'!$W$7:$W$399=\"707-N\")*('2. Assisted & Restricted Units'!$X$7:$X$399=\"25% SMI\"))","v":0}]
["1 Bedroom 30% SMI",{"$f":"SUMPRODUCT(('2. Assisted & Restricted Units'!$E$7:$E$399=\"1\")*('2. Assisted & Restricted Units'!$W$7:$W$399=\"CALDAP\")*('2. Assisted & Restricted Units'!$X$7:$X$399=\"30% SMI\"))","v":0},{"$f":"SUMPRODUCT(('2. Assisted & Restricted Units'!$E$7:$E$399=\"1\")*('2. Assisted & Restricted Units'!$W$7:$W$399=\"CHRP-R\")*('2. Assisted & Restricted Units'!$X$7:$X$399=\"30% SMI\"))","v":0},{"$f":"SUMPRODUCT(('2. Assisted & Restricted Units'!$E$7:$E$399=\"1\")*('2. Assisted & Restricted Units'!$W$7:$W$399=\"DDS\")*('2. Assisted & Restricted Units'!$X$7:$X$399=\"30% SMI\"))","v":0},{"$f":"SUMPRODUCT(('2. Assisted & Restricted Units'!$E$7:$E$399=\"1\")*('2. Assisted & Restricted Units'!$W$7:$W$399=\"DPRLP\")*('2. Assisted & Restricted Units'!$X$7:$X$399=\"30% SMI\"))","v":0},{"$f":"SUMPRODUCT(('2. Assisted & Restricted Units'!$E$7:$E$399=\"1\")*('2. Assisted & Restricted Units'!$W$7:$W$399=\"FHDP\")*('2. Assisted & Restricted Units'!$X$7:$X$399=\"30% SMI\"))","v":0},{"$f":"SUMPRODUCT(('2. Assisted & Restricted Units'!$E$7:$E$399=\"1\")*('2. Assisted & Restricted Units'!$W$7:$W$399=\"FMTW\")*('2. Assisted & Restricted Units'!$X$7:$X$399=\"30% SMI\"))","v":0},null,{"$f":"SUMPRODUCT(('2. Assisted & Restricted Units'!$E$7:$E$399=\"1\")*('2. Assisted & Restricted Units'!$W$7:$W$399=\"HOME\")*('2. Assisted & Restricted Units'!$X$7:$X$399=\"30% SMI\"))","v":0},{"$f":"SUMPRODUCT(('2. Assisted & Restricted Units'!$E$7:$E$399=\"1\")*('2. Assisted & Restricted Units'!$W$7:$W$399=\"Market Rate\")*('2. Assisted & Restricted Units'!$X$7:$X$399=\"30% SMI\"))","v":0},{"$f":"SUMPRODUCT(('2. Assisted & Restricted Units'!$E$7:$E$399=\"1\")*('2. Assisted & Restricted Units'!$W$7:$W$399=\"MHP\")*('2. Assisted & Restricted Units'!$X$7:$X$399=\"30% SMI\"))","v":0},{"$f":"SUMPRODUCT(('2. Assisted & Restricted Units'!$E$7:$E$399=\"1\")*('2. Assisted & Restricted Units'!$W$7:$W$399=\"NonAssisted\")*('2. Assisted & Restricted Units'!$X$7:$X$399=\"30% SMI\"))","v":0},{"$f":"SUMPRODUCT(('2. Assisted & Restricted Units'!$E$7:$E$399=\"1\")*('2. Assisted & Restricted Units'!$W$7:$W$399=\"Other Restr\")*('2. Assisted & Restricted Units'!$X$7:$X$399=\"30% SMI\"))","v":0},{"$f":"SUMPRODUCT(('2. Assisted & Restricted Units'!$E$7:$E$399=\"1\")*('2. Assisted & Restricted Units'!$W$7:$W$399=\"RHCP-B\")*('2. Assisted & Restricted Units'!$X$7:$X$399=\"30% SMI\"))","v":0},{"$f":"SUMPRODUCT(('2. Assisted & Restricted Units'!$E$7:$E$399=\"1\")*('2. Assisted & Restricted Units'!$W$7:$W$399=\"SERA\")*('2. Assisted & Restricted Units'!$X$7:$X$399=\"30% SMI\"))","v":0},{"$f":"SUMPRODUCT(('2. Assisted & Restricted Units'!$E$7:$E$399=\"1\")*('2. Assisted & Restricted Units'!$W$7:$W$399=\"SUHRP\")*('2. Assisted & Restricted Units'!$X$7:$X$399=\"30% SMI\"))","v":0},{"$f":"SUMPRODUCT(('2. Assisted & Restricted Units'!$E$7:$E$399=\"1\")*('2. Assisted & Restricted Units'!$W$7:$W$399=\"TOD\")*('2. Assisted & Restricted Units'!$X$7:$X$399=\"30% SMI\"))","v":0},{"$f":"SUMPRODUCT(('2. Assisted & Restricted Units'!$E$7:$E$399=\"1\")*('2. Assisted & Restricted Units'!$W$7:$W$399=\"707-E\")*('2. Assisted & Restricted Units'!$X$7:$X$399=\"30% SMI\"))","v":0},{"$f":"SUMPRODUCT(('2. Assisted & Restricted Units'!$E$7:$E$399=\"1\")*('2. Assisted & Restricted Units'!$W$7:$W$399=\"707-N\")*('2. Assisted & Restricted Units'!$X$7:$X$399=\"30% SMI\"))","v":0}]
["1 Bedroom 35% SMI",{"$f":"SUMPRODUCT(('2. Assisted & Restricted Units'!$E$7:$E$399=\"1\")*('2. Assisted & Restricted Units'!$W$7:$W$399=\"CALDAP\")*('2. Assisted & Restricted Units'!$X$7:$X$399=\"35% SMI\"))","v":0},{"$f":"SUMPRODUCT(('2. Assisted & Restricted Units'!$E$7:$E$399=\"1\")*('2. Assisted & Restricted Units'!$W$7:$W$399=\"CHRP-R\")*('2. Assisted & Restricted Units'!$X$7:$X$399=\"35% SMI\"))","v":0},{"$f":"SUMPRODUCT(('2. Assisted & Restricted Units'!$E$7:$E$399=\"1\")*('2. Assisted & Restricted Units'!$W$7:$W$399=\"DDS\")*('2. Assisted & Restricted Units'!$X$7:$X$399=\"35% SMI\"))","v":0},{"$f":"SUMPRODUCT(('2. Assisted & Restricted Units'!$E$7:$E$399=\"1\")*('2. Assisted & Restricted Units'!$W$7:$W$399=\"DPRLP\")*('2. Assisted & Restricted Units'!$X$7:$X$399=\"35% SMI\"))","v":0},{"$f":"SUMPRODUCT(('2. Assisted & Restricted Units'!$E$7:$E$399=\"1\")*('2. Assisted & Restricted Units'!$W$7:$W$399=\"FHDP\")*('2. Assisted & Restricted Units'!$X$7:$X$399=\"35% SMI\"))","v":0},{"$f":"SUMPRODUCT(('2. Assisted & Restricted Units'!$E$7:$E$399=\"1\")*('2. Assisted & Restricted Units'!$W$7:$W$399=\"FMTW\")*('2. Assisted & Restricted Units'!$X$7:$X$399=\"35% SMI\"))","v":0},null,{"$f":"SUMPRODUCT(('2. Assisted & Restricted Units'!$E$7:$E$399=\"1\")*('2. Assisted & Restricted Units'!$W$7:$W$399=\"HOME\")*('2. Assisted & Restricted Units'!$X$7:$X$399=\"35% SMI\"))","v":0},{"$f":"SUMPRODUCT(('2. Assisted & Restricted Units'!$E$7:$E$399=\"1\")*('2. Assisted & Restricted Units'!$W$7:$W$399=\"Market Rate\")*('2. Assisted & Restricted Units'!$X$7:$X$399=\"35% SMI\"))","v":0},{"$f":"SUMPRODUCT(('2. Assisted & Restricted Units'!$E$7:$E$399=\"1\")*('2. Assisted & Restricted Units'!$W$7:$W$399=\"MHP\")*('2. Assisted & Restricted Units'!$X$7:$X$399=\"35% SMI\"))","v":0},{"$f":"SUMPRODUCT(('2. Assisted & Restricted Units'!$E$7:$E$399=\"1\")*('2. Assisted & Restricted Units'!$W$7:$W$399=\"NonAssisted\")*('2. Assisted & Restricted Units'!$X$7:$X$399=\"35% SMI\"))","v":0},{"$f":"SUMPRODUCT(('2. Assisted & Restricted Units'!$E$7:$E$399=\"1\")*('2. Assisted & Restricted Units'!$W$7:$W$399=\"Other Restr\")*('2. Assisted & Restricted Units'!$X$7:$X$399=\"35% SMI\"))","v":0},{"$f":"SUMPRODUCT(('2. Assisted & Restricted Units'!$E$7:$E$399=\"1\")*('2. Assisted & Restricted Units'!$W$7:$W$399=\"RHCP-B\")*('2. Assisted & Restricted Units'!$X$7:$X$399=\"35% SMI\"))","v":0},{"$f":"SUMPRODUCT(('2. Assisted & Restricted Units'!$E$7:$E$399=\"1\")*('2. Assisted & Restricted Units'!$W$7:$W$399=\"SERA\")*('2. Assisted & Restricted Units'!$X$7:$X$399=\"35% SMI\"))","v":0},{"$f":"SUMPRODUCT(('2. Assisted & Restricted Units'!$E$7:$E$399=\"1\")*('2. Assisted & Restricted Units'!$W$7:$W$399=\"SUHRP\")*('2. Assisted & Restricted Units'!$X$7:$X$399=\"35% SMI\"))","v":0},{"$f":"SUMPRODUCT(('2. Assisted & Restricted Units'!$E$7:$E$399=\"1\")*('2. Assisted & Restricted Units'!$W$7:$W$399=\"TOD\")*('2. Assisted & Restricted Units'!$X$7:$X$399=\"35% SMI\"))","v":0},{"$f":"SUMPRODUCT(('2. Assisted & Restricted Units'!$E$7:$E$399=\"1\")*('2. Assisted & Restricted Units'!$W$7:$W$399=\"707-E\")*('2. Assisted & Restricted Units'!$X$7:$X$399=\"35% SMI\"))","v":0},{"$f":"SUMPRODUCT(('2. Assisted & Restricted Units'!$E$7:$E$399=\"1\")*('2. Assisted & Restricted Units'!$W$7:$W$399=\"707-N\")*('2. Assisted & Restricted Units'!$X$7:$X$399=\"35% SMI\"))","v":0}]
["1 Bedroom 40% SMI",{"$f":"SUMPRODUCT(('2. Assisted & Restricted Units'!$E$7:$E$399=\"1\")*('2. Assisted & Restricted Units'!$W$7:$W$399=\"CALDAP\")*('2. Assisted & Restricted Units'!$X$7:$X$399=\"40% SMI\"))","v":0},{"$f":"SUMPRODUCT(('2. Assisted & Restricted Units'!$E$7:$E$399=\"1\")*('2. Assisted & Restricted Units'!$W$7:$W$399=\"CHRP-R\")*('2. Assisted & Restricted Units'!$X$7:$X$399=\"40% SMI\"))","v":0},{"$f":"SUMPRODUCT(('2. Assisted & Restricted Units'!$E$7:$E$399=\"1\")*('2. Assisted & Restricted Units'!$W$7:$W$399=\"DDS\")*('2. Assisted & Restricted Units'!$X$7:$X$399=\"40% SMI\"))","v":0},{"$f":"SUMPRODUCT(('2. Assisted & Restricted Units'!$E$7:$E$399=\"1\")*('2. Assisted & Restricted Units'!$W$7:$W$399=\"DPRLP\")*('2. Assisted & Restricted Units'!$X$7:$X$399=\"40% SMI\"))","v":0},{"$f":"SUMPRODUCT(('2. Assisted & Restricted Units'!$E$7:$E$399=\"1\")*('2. Assisted & Restricted Units'!$W$7:$W$399=\"FHDP\")*('2. Assisted & Restricted Units'!$X$7:$X$399=\"40% SMI\"))","v":0},{"$f":"SUMPRODUCT(('2. Assisted & Restricted Units'!$E$7:$E$399=\"1\")*('2. Assisted & Restricted Units'!$W$7:$W$399=\"FMTW\")*('2. Assisted & Restricted Units'!$X$7:$X$399=\"40% SMI\"))","v":0},null,{"$f":"SUMPRODUCT(('2. Assisted & Restricted Units'!$E$7:$E$399=\"1\")*('2. Assisted & Restricted Units'!$W$7:$W$399=\"HOME\")*('2. Assisted & Restricted Units'!$X$7:$X$399=\"40% SMI\"))","v":0},{"$f":"SUMPRODUCT(('2. Assisted & Restricted Units'!$E$7:$E$399=\"1\")*('2. Assisted & Restricted Units'!$W$7:$W$399=\"Market Rate\")*('2. Assisted & Restricted Units'!$X$7:$X$399=\"40% SMI\"))","v":0},{"$f":"SUMPRODUCT(('2. Assisted & Restricted Units'!$E$7:$E$399=\"1\")*('2. Assisted & Restricted Units'!$W$7:$W$399=\"MHP\")*('2. Assisted & Restricted Units'!$X$7:$X$399=\"40% SMI\"))","v":0},{"$f":"SUMPRODUCT(('2. Assisted & Restricted Units'!$E$7:$E$399=\"1\")*('2. Assisted & Restricted Units'!$W$7:$W$399=\"NonAssisted\")*('2. Assisted & Restricted Units'!$X$7:$X$399=\"40% SMI\"))","v":0},{"$f":"SUMPRODUCT(('2. Assisted & Restricted Units'!$E$7:$E$399=\"1\")*('2. Assisted & Restricted Units'!$W$7:$W$399=\"Other Restr\")*('2. Assisted & Restricted Units'!$X$7:$X$399=\"40% SMI\"))","v":0},{"$f":"SUMPRODUCT(('2. Assisted & Restricted Units'!$E$7:$E$399=\"1\")*('2. Assisted & Restricted Units'!$W$7:$W$399=\"RHCP-B\")*('2. Assisted & Restricted Units'!$X$7:$X$399=\"40% SMI\"))","v":0},{"$f":"SUMPRODUCT(('2. Assisted & Restricted Units'!$E$7:$E$399=\"1\")*('2. Assisted & Restricted Units'!$W$7:$W$399=\"SERA\")*('2. Assisted & Restricted Units'!$X$7:$X$399=\"40% SMI\"))","v":0},{"$f":"SUMPRODUCT(('2. Assisted & Restricted Units'!$E$7:$E$399=\"1\")*('2. Assisted & Restricted Units'!$W$7:$W$399=\"SUHRP\")*('2. Assisted & Restricted Units'!$X$7:$X$399=\"40% SMI\"))","v":0},{"$f":"SUMPRODUCT(('2. Assisted & Restricted Units'!$E$7:$E$399=\"1\")*('2. Assisted & Restricted Units'!$W$7:$W$399=\"TOD\")*('2. Assisted & Restricted Units'!$X$7:$X$399=\"40% SMI\"))","v":0},{"$f":"SUMPRODUCT(('2. Assisted & Restricted Units'!$E$7:$E$399=\"1\")*('2. Assisted & Restricted Units'!$W$7:$W$399=\"707-E\")*('2. Assisted & Restricted Units'!$X$7:$X$399=\"40% SMI\"))","v":0},{"$f":"SUMPRODUCT(('2. Assisted & Restricted Units'!$E$7:$E$399=\"1\")*('2. Assisted & Restricted Units'!$W$7:$W$399=\"707-N\")*('2. Assisted & Restricted Units'!$X$7:$X$399=\"40% SMI\"))","v":0}]
["1 Bedroom 45% SMI",{"$f":"SUMPRODUCT(('2. Assisted & Restricted Units'!$E$7:$E$399=\"1\")*('2. Assisted & Restricted Units'!$W$7:$W$399=\"CALDAP\")*('2. Assisted & Restricted Units'!$X$7:$X$399=\"45% SMI\"))","v":0},{"$f":"SUMPRODUCT(('2. Assisted & Restricted Units'!$E$7:$E$399=\"1\")*('2. Assisted & Restricted Units'!$W$7:$W$399=\"CHRP-R\")*('2. Assisted & Restricted Units'!$X$7:$X$399=\"45% SMI\"))","v":0},{"$f":"SUMPRODUCT(('2. Assisted & Restricted Units'!$E$7:$E$399=\"1\")*('2. Assisted & Restricted Units'!$W$7:$W$399=\"DDS\")*('2. Assisted & Restricted Units'!$X$7:$X$399=\"45% SMI\"))","v":0},{"$f":"SUMPRODUCT(('2. Assisted & Restricted Units'!$E$7:$E$399=\"1\")*('2. Assisted & Restricted Units'!$W$7:$W$399=\"DPRLP\")*('2. Assisted & Restricted Units'!$X$7:$X$399=\"45% SMI\"))","v":0},{"$f":"SUMPRODUCT(('2. Assisted & Restricted Units'!$E$7:$E$399=\"1\")*('2. Assisted & Restricted Units'!$W$7:$W$399=\"FHDP\")*('2. Assisted & Restricted Units'!$X$7:$X$399=\"45% SMI\"))","v":0},{"$f":"SUMPRODUCT(('2. Assisted & Restricted Units'!$E$7:$E$399=\"1\")*('2. Assisted & Restricted Units'!$W$7:$W$399=\"FMTW\")*('2. Assisted & Restricted Units'!$X$7:$X$399=\"45% SMI\"))","v":0},null,{"$f":"SUMPRODUCT(('2. Assisted & Restricted Units'!$E$7:$E$399=\"1\")*('2. Assisted & Restricted Units'!$W$7:$W$399=\"HOME\")*('2. Assisted & Restricted Units'!$X$7:$X$399=\"45% SMI\"))","v":0},{"$f":"SUMPRODUCT(('2. Assisted & Restricted Units'!$E$7:$E$399=\"1\")*('2. Assisted & Restricted Units'!$W$7:$W$399=\"Market Rate\")*('2. Assisted & Restricted Units'!$X$7:$X$399=\"45% SMI\"))","v":0},{"$f":"SUMPRODUCT(('2. Assisted & Restricted Units'!$E$7:$E$399=\"1\")*('2. Assisted & Restricted Units'!$W$7:$W$399=\"MHP\")*('2. Assisted & Restricted Units'!$X$7:$X$399=\"45% SMI\"))","v":0},{"$f":"SUMPRODUCT(('2. Assisted & Restricted Units'!$E$7:$E$399=\"1\")*('2. Assisted & Restricted Units'!$W$7:$W$399=\"NonAssisted\")*('2. Assisted & Restricted Units'!$X$7:$X$399=\"45% SMI\"))","v":0},{"$f":"SUMPRODUCT(('2. Assisted & Restricted Units'!$E$7:$E$399=\"1\")*('2. Assisted & Restricted Units'!$W$7:$W$399=\"Other Restr\")*('2. Assisted & Restricted Units'!$X$7:$X$399=\"45% SMI\"))","v":0},{"$f":"SUMPRODUCT(('2. Assisted & Restricted Units'!$E$7:$E$399=\"1\")*('2. Assisted & Restricted Units'!$W$7:$W$399=\"RHCP-B\")*('2. Assisted & Restricted Units'!$X$7:$X$399=\"45% SMI\"))","v":0},{"$f":"SUMPRODUCT(('2. Assisted & Restricted Units'!$E$7:$E$399=\"1\")*('2. Assisted & Restricted Units'!$W$7:$W$399=\"SERA\")*('2. Assisted & Restricted Units'!$X$7:$X$399=\"45% SMI\"))","v":0},{"$f":"SUMPRODUCT(('2. Assisted & Restricted Units'!$E$7:$E$399=\"1\")*('2. Assisted & Restricted Units'!$W$7:$W$399=\"SUHRP\")*('2. Assisted & Restricted Units'!$X$7:$X$399=\"45% SMI\"))","v":0},{"$f":"SUMPRODUCT(('2. Assisted & Restricted Units'!$E$7:$E$399=\"1\")*('2. Assisted & Restricted Units'!$W$7:$W$399=\"TOD\")*('2. Assisted & Restricted Units'!$X$7:$X$399=\"45% SMI\"))","v":0},{"$f":"SUMPRODUCT(('2. Assisted & Restricted Units'!$E$7:$E$399=\"1\")*('2. Assisted & Restricted Units'!$W$7:$W$399=\"707-E\")*('2. Assisted & Restricted Units'!$X$7:$X$399=\"45% SMI\"))","v":0},{"$f":"SUMPRODUCT(('2. Assisted & Restricted Units'!$E$7:$E$399=\"1\")*('2. Assisted & Restricted Units'!$W$7:$W$399=\"707-N\")*('2. Assisted & Restricted Units'!$X$7:$X$399=\"45% SMI\"))","v":0}]
["1 Bedroom 50% SMI",{"$f":"SUMPRODUCT(('2. Assisted & Restricted Units'!$E$7:$E$399=\"1\")*('2. Assisted & Restricted Units'!$W$7:$W$399=\"CALDAP\")*('2. Assisted & Restricted Units'!$X$7:$X$399=\"50% SMI\"))","v":0},{"$f":"SUMPRODUCT(('2. Assisted & Restricted Units'!$E$7:$E$399=\"1\")*('2. Assisted & Restricted Units'!$W$7:$W$399=\"CHRP-R\")*('2. Assisted & Restricted Units'!$X$7:$X$399=\"50% SMI\"))","v":0},{"$f":"SUMPRODUCT(('2. Assisted & Restricted Units'!$E$7:$E$399=\"1\")*('2. Assisted & Restricted Units'!$W$7:$W$399=\"DDS\")*('2. Assisted & Restricted Units'!$X$7:$X$399=\"50% SMI\"))","v":0},{"$f":"SUMPRODUCT(('2. Assisted & Restricted Units'!$E$7:$E$399=\"1\")*('2. Assisted & Restricted Units'!$W$7:$W$399=\"DPRLP\")*('2. Assisted & Restricted Units'!$X$7:$X$399=\"50% SMI\"))","v":0},{"$f":"SUMPRODUCT(('2. Assisted & Restricted Units'!$E$7:$E$399=\"1\")*('2. Assisted & Restricted Units'!$W$7:$W$399=\"FHDP\")*('2. Assisted & Restricted Units'!$X$7:$X$399=\"50% SMI\"))","v":0},{"$f":"SUMPRODUCT(('2. Assisted & Restricted Units'!$E$7:$E$399=\"1\")*('2. Assisted & Restricted Units'!$W$7:$W$399=\"FMTW\")*('2. Assisted & Restricted Units'!$X$7:$X$399=\"50% SMI\"))","v":0},null,{"$f":"SUMPRODUCT(('2. Assisted & Restricted Units'!$E$7:$E$399=\"1\")*('2. Assisted & Restricted Units'!$W$7:$W$399=\"HOME\")*('2. Assisted & Restricted Units'!$X$7:$X$399=\"50% SMI\"))","v":0},{"$f":"SUMPRODUCT(('2. Assisted & Restricted Units'!$E$7:$E$399=\"1\")*('2. Assisted & Restricted Units'!$W$7:$W$399=\"Market Rate\")*('2. Assisted & Restricted Units'!$X$7:$X$399=\"50% SMI\"))","v":0},{"$f":"SUMPRODUCT(('2. Assisted & Restricted Units'!$E$7:$E$399=\"1\")*('2. Assisted & Restricted Units'!$W$7:$W$399=\"MHP\")*('2. Assisted & Restricted Units'!$X$7:$X$399=\"50% SMI\"))","v":0},{"$f":"SUMPRODUCT(('2. Assisted & Restricted Units'!$E$7:$E$399=\"1\")*('2. Assisted & Restricted Units'!$W$7:$W$399=\"NonAssisted\")*('2. Assisted & Restricted Units'!$X$7:$X$399=\"50% SMI\"))","v":0},{"$f":"SUMPRODUCT(('2. Assisted & Restricted Units'!$E$7:$E$399=\"1\")*('2. Assisted & Restricted Units'!$W$7:$W$399=\"Other Restr\")*('2. Assisted & Restricted Units'!$X$7:$X$399=\"50% SMI\"))","v":0},{"$f":"SUMPRODUCT(('2. Assisted & Restricted Units'!$E$7:$E$399=\"1\")*('2. Assisted & Restricted Units'!$W$7:$W$399=\"RHCP-B\")*('2. Assisted & Restricted Units'!$X$7:$X$399=\"50% SMI\"))","v":0},{"$f":"SUMPRODUCT(('2. Assisted & Restricted Units'!$E$7:$E$399=\"1\")*('2. Assisted & Restricted Units'!$W$7:$W$399=\"SERA\")*('2. Assisted & Restricted Units'!$X$7:$X$399=\"50% SMI\"))","v":0},{"$f":"SUMPRODUCT(('2. Assisted & Restricted Units'!$E$7:$E$399=\"1\")*('2. Assisted & Restricted Units'!$W$7:$W$399=\"SUHRP\")*('2. Assisted & Restricted Units'!$X$7:$X$399=\"50% SMI\"))","v":0},{"$f":"SUMPRODUCT(('2. Assisted & Restricted Units'!$E$7:$E$399=\"1\")*('2. Assisted & Restricted Units'!$W$7:$W$399=\"TOD\")*('2. Assisted & Restricted Units'!$X$7:$X$399=\"50% SMI\"))","v":0},{"$f":"SUMPRODUCT(('2. Assisted & Restricted Units'!$E$7:$E$399=\"1\")*('2. Assisted & Restricted Units'!$W$7:$W$399=\"707-E\")*('2. Assisted & Restricted Units'!$X$7:$X$399=\"50% SMI\"))","v":0},{"$f":"SUMPRODUCT(('2. Assisted & Restricted Units'!$E$7:$E$399=\"1\")*('2. Assisted & Restricted Units'!$W$7:$W$399=\"707-N\")*('2. Assisted & Restricted Units'!$X$7:$X$399=\"50% SMI\"))","v":0}]
["1 Bedroom 100% SMI",{"$f":"SUMPRODUCT(('2. Assisted & Restricted Units'!$E$7:$E$399=\"1\")*('2. Assisted & Restricted Units'!$W$7:$W$399=\"CALDAP\")*('2. Assisted & Restricted Units'!$X$7:$X$399=\"100% SMI\"))","v":0},{"$f":"SUMPRODUCT(('2. Assisted & Restricted Units'!$E$7:$E$399=\"1\")*('2. Assisted & Restricted Units'!$W$7:$W$399=\"CHRP-R\")*('2. Assisted & Restricted Units'!$X$7:$X$399=\"100% SMI\"))","v":0},{"$f":"SUMPRODUCT(('2. Assisted & Restricted Units'!$E$7:$E$399=\"1\")*('2. Assisted & Restricted Units'!$W$7:$W$399=\"DDS\")*('2. Assisted & Restricted Units'!$X$7:$X$399=\"100% SMI\"))","v":0},{"$f":"SUMPRODUCT(('2. Assisted & Restricted Units'!$E$7:$E$399=\"1\")*('2. Assisted & Restricted Units'!$W$7:$W$399=\"DPRLP\")*('2. Assisted & Restricted Units'!$X$7:$X$399=\"100% SMI\"))","v":0},{"$f":"SUMPRODUCT(('2. Assisted & Restricted Units'!$E$7:$E$399=\"1\")*('2. Assisted & Restricted Units'!$W$7:$W$399=\"FHDP\")*('2. Assisted & Restricted Units'!$X$7:$X$399=\"100% SMI\"))","v":0},{"$f":"SUMPRODUCT(('2. Assisted & Restricted Units'!$E$7:$E$399=\"1\")*('2. Assisted & Restricted Units'!$W$7:$W$399=\"FMTW\")*('2. Assisted & Restricted Units'!$X$7:$X$399=\"100% SMI\"))","v":0},null,{"$f":"SUMPRODUCT(('2. Assisted & Restricted Units'!$E$7:$E$399=\"1\")*('2. Assisted & Restricted Units'!$W$7:$W$399=\"HOME\")*('2. Assisted & Restricted Units'!$X$7:$X$399=\"100% SMI\"))","v":0},{"$f":"SUMPRODUCT(('2. Assisted & Restricted Units'!$E$7:$E$399=\"1\")*('2. Assisted & Restricted Units'!$W$7:$W$399=\"Market Rate\")*('2. Assisted & Restricted Units'!$X$7:$X$399=\"100% SMI\"))","v":0},{"$f":"SUMPRODUCT(('2. Assisted & Restricted Units'!$E$7:$E$399=\"1\")*('2. Assisted & Restricted Units'!$W$7:$W$399=\"MHP\")*('2. Assisted & Restricted Units'!$X$7:$X$399=\"100% SMI\"))","v":0},{"$f":"SUMPRODUCT(('2. Assisted & Restricted Units'!$E$7:$E$399=\"1\")*('2. Assisted & Restricted Units'!$W$7:$W$399=\"NonAssisted\")*('2. Assisted & Restricted Units'!$X$7:$X$399=\"100% SMI\"))","v":0},{"$f":"SUMPRODUCT(('2. Assisted & Restricted Units'!$E$7:$E$399=\"1\")*('2. Assisted & Restricted Units'!$W$7:$W$399=\"Other Restr\")*('2. Assisted & Restricted Units'!$X$7:$X$399=\"100% SMI\"))","v":0},{"$f":"SUMPRODUCT(('2. Assisted & Restricted Units'!$E$7:$E$399=\"1\")*('2. Assisted & Restricted Units'!$W$7:$W$399=\"RHCP-B\")*('2. Assisted & Restricted Units'!$X$7:$X$399=\"100% SMI\"))","v":0},{"$f":"SUMPRODUCT(('2. Assisted & Restricted Units'!$E$7:$E$399=\"1\")*('2. Assisted & Restricted Units'!$W$7:$W$399=\"SERA\")*('2. Assisted & Restricted Units'!$X$7:$X$399=\"100% SMI\"))","v":0},{"$f":"SUMPRODUCT(('2. Assisted & Restricted Units'!$E$7:$E$399=\"1\")*('2. Assisted & Restricted Units'!$W$7:$W$399=\"SUHRP\")*('2. Assisted & Restricted Units'!$X$7:$X$399=\"100% SMI\"))","v":0},{"$f":"SUMPRODUCT(('2. Assisted & Restricted Units'!$E$7:$E$399=\"1\")*('2. Assisted & Restricted Units'!$W$7:$W$399=\"TOD\")*('2. Assisted & Restricted Units'!$X$7:$X$399=\"100% SMI\"))","v":0},{"$f":"SUMPRODUCT(('2. Assisted & Restricted Units'!$E$7:$E$399=\"1\")*('2. Assisted & Restricted Units'!$W$7:$W$399=\"707-E\")*('2. Assisted & Restricted Units'!$X$7:$X$399=\"100% SMI\"))","v":0},{"$f":"SUMPRODUCT(('2. Assisted & Restricted Units'!$E$7:$E$399=\"1\")*('2. Assisted & Restricted Units'!$W$7:$W$399=\"707-N\")*('2. Assisted & Restricted Units'!$X$7:$X$399=\"100% SMI\"))","v":0}]
["1 Bedroom VLI HOME",{"$f":"SUMPRODUCT(('2. Assisted & Restricted Units'!$E$7:$E$399=\"1\")*('2. Assisted & Restricted Units'!$W$7:$W$399=\"CALDAP\")*('2. Assisted & Restricted Units'!$X$7:$X$399=\"VLI HOME\"))","v":0},{"$f":"SUMPRODUCT(('2. Assisted & Restricted Units'!$E$7:$E$399=\"1\")*('2. Assisted & Restricted Units'!$W$7:$W$399=\"CHRP-R\")*('2. Assisted & Restricted Units'!$X$7:$X$399=\"VLI HOME\"))","v":0},{"$f":"SUMPRODUCT(('2. Assisted & Restricted Units'!$E$7:$E$399=\"1\")*('2. Assisted & Restricted Units'!$W$7:$W$399=\"DDS\")*('2. Assisted & Restricted Units'!$X$7:$X$399=\"VLI HOME\"))","v":0},{"$f":"SUMPRODUCT(('2. Assisted & Restricted Units'!$E$7:$E$399=\"1\")*('2. Assisted & Restricted Units'!$W$7:$W$399=\"DPRLP\")*('2. Assisted & Restricted Units'!$X$7:$X$399=\"VLI HOME\"))","v":0},{"$f":"SUMPRODUCT(('2. Assisted & Restricted Units'!$E$7:$E$399=\"1\")*('2. Assisted & Restricted Units'!$W$7:$W$399=\"FHDP\")*('2. Assisted & Restricted Units'!$X$7:$X$399=\"VLI HOME\"))","v":0},{"$f":"SUMPRODUCT(('2. Assisted & Restricted Units'!$E$7:$E$399=\"1\")*('2. Assisted & Restricted Units'!$W$7:$W$399=\"FMTW\")*('2. Assisted & Restricted Units'!$X$7:$X$399=\"VLI HOME\"))","v":0},null,{"$f":"SUMPRODUCT(('2. Assisted & Restricted Units'!$E$7:$E$399=\"1\")*('2. Assisted & Restricted Units'!$W$7:$W$399=\"HOME\")*('2. Assisted & Restricted Units'!$X$7:$X$399=\"VLI HOME\"))","v":0},{"$f":"SUMPRODUCT(('2. Assisted & Restricted Units'!$E$7:$E$399=\"1\")*('2. Assisted & Restricted Units'!$W$7:$W$399=\"Market Rate\")*('2. Assisted & Restricted Units'!$X$7:$X$399=\"VLI HOME\"))","v":0},{"$f":"SUMPRODUCT(('2. Assisted & Restricted Units'!$E$7:$E$399=\"1\")*('2. Assisted & Restricted Units'!$W$7:$W$399=\"MHP\")*('2. Assisted & Restricted Units'!$X$7:$X$399=\"VLI HOME\"))","v":0},{"$f":"SUMPRODUCT(('2. Assisted & Restricted Units'!$E$7:$E$399=\"1\")*('2. Assisted & Restricted Units'!$W$7:$W$399=\"NonAssisted\")*('2. Assisted & Restricted Units'!$X$7:$X$399=\"VLI HOME\"))","v":0},{"$f":"SUMPRODUCT(('2. Assisted & Restricted Units'!$E$7:$E$399=\"1\")*('2. Assisted & Restricted Units'!$W$7:$W$399=\"Other Restr\")*('2. Assisted & Restricted Units'!$X$7:$X$399=\"VLI HOME\"))","v":0},{"$f":"SUMPRODUCT(('2. Assisted & Restricted Units'!$E$7:$E$399=\"1\")*('2. Assisted & Restricted Units'!$W$7:$W$399=\"RHCP-B\")*('2. Assisted & Restricted Units'!$X$7:$X$399=\"VLI HOME\"))","v":0},{"$f":"SUMPRODUCT(('2. Assisted & Restricted Units'!$E$7:$E$399=\"1\")*('2. Assisted & Restricted Units'!$W$7:$W$399=\"SERA\")*('2. Assisted & Restricted Units'!$X$7:$X$399=\"VLI HOME\"))","v":0},{"$f":"SUMPRODUCT(('2. Assisted & Restricted Units'!$E$7:$E$399=\"1\")*('2. Assisted & Restricted Units'!$W$7:$W$399=\"SUHRP\")*('2. Assisted & Restricted Units'!$X$7:$X$399=\"VLI HOME\"))","v":0},{"$f":"SUMPRODUCT(('2. Assisted & Restricted Units'!$E$7:$E$399=\"1\")*('2. Assisted & Restricted Units'!$W$7:$W$399=\"TOD\")*('2. Assisted & Restricted Units'!$X$7:$X$399=\"VLI HOME\"))","v":0},{"$f":"SUMPRODUCT(('2. Assisted & Restricted Units'!$E$7:$E$399=\"1\")*('2. Assisted & Restricted Units'!$W$7:$W$399=\"707-E\")*('2. Assisted & Restricted Units'!$X$7:$X$399=\"VLI HOME\"))","v":0},{"$f":"SUMPRODUCT(('2. Assisted & Restricted Units'!$E$7:$E$399=\"1\")*('2. Assisted & Restricted Units'!$W$7:$W$399=\"707-N\")*('2. Assisted & Restricted Units'!$X$7:$X$399=\"VLI HOME\"))","v":0}]
["1 Bedroom LI HOME",{"$f":"SUMPRODUCT(('2. Assisted & Restricted Units'!$E$7:$E$399=\"1\")*('2. Assisted & Restricted Units'!$W$7:$W$399=\"CALDAP\")*('2. Assisted & Restricted Units'!$X$7:$X$399=\"LI HOME\"))","v":0},{"$f":"SUMPRODUCT(('2. Assisted & Restricted Units'!$E$7:$E$399=\"1\")*('2. Assisted & Restricted Units'!$W$7:$W$399=\"CHRP-R\")*('2. Assisted & Restricted Units'!$X$7:$X$399=\"LI HOME\"))","v":0},{"$f":"SUMPRODUCT(('2. Assisted & Restricted Units'!$E$7:$E$399=\"1\")*('2. Assisted & Restricted Units'!$W$7:$W$399=\"DDS\")*('2. Assisted & Restricted Units'!$X$7:$X$399=\"LI HOME\"))","v":0},{"$f":"SUMPRODUCT(('2. Assisted & Restricted Units'!$E$7:$E$399=\"1\")*('2. Assisted & Restricted Units'!$W$7:$W$399=\"DPRLP\")*('2. Assisted & Restricted Units'!$X$7:$X$399=\"LI HOME\"))","v":0},{"$f":"SUMPRODUCT(('2. Assisted & Restricted Units'!$E$7:$E$399=\"1\")*('2. Assisted & Restricted Units'!$W$7:$W$399=\"FHDP\")*('2. Assisted & Restricted Units'!$X$7:$X$399=\"LI HOME\"))","v":0},{"$f":"SUMPRODUCT(('2. Assisted & Restricted Units'!$E$7:$E$399=\"1\")*('2. Assisted & Restricted Units'!$W$7:$W$399=\"FMTW\")*('2. Assisted & Restricted Units'!$X$7:$X$399=\"LI HOME\"))","v":0},null,{"$f":"SUMPRODUCT(('2. Assisted & Restricted Units'!$E$7:$E$399=\"1\")*('2. Assisted & Restricted Units'!$W$7:$W$399=\"HOME\")*('2. Assisted & Restricted Units'!$X$7:$X$399=\"LI HOME\"))","v":0},{"$f":"SUMPRODUCT(('2. Assisted & Restricted Units'!$E$7:$E$399=\"1\")*('2. Assisted & Restricted Units'!$W$7:$W$399=\"Market Rate\")*('2. Assisted & Restricted Units'!$X$7:$X$399=\"LI HOME\"))","v":0},{"$f":"SUMPRODUCT(('2. Assisted & Restricted Units'!$E$7:$E$399=\"1\")*('2. Assisted & Restricted Units'!$W$7:$W$399=\"MHP\")*('2. Assisted & Restricted Units'!$X$7:$X$399=\"LI HOME\"))","v":0},{"$f":"SUMPRODUCT(('2. Assisted & Restricted Units'!$E$7:$E$399=\"1\")*('2. Assisted & Restricted Units'!$W$7:$W$399=\"NonAssisted\")*('2. Assisted & Restricted Units'!$X$7:$X$399=\"LI HOME\"))","v":0},{"$f":"SUMPRODUCT(('2. Assisted & Restricted Units'!$E$7:$E$399=\"1\")*('2. Assisted & Restricted Units'!$W$7:$W$399=\"Other Restr\")*('2. Assisted & Restricted Units'!$X$7:$X$399=\"LI HOME\"))","v":0},{"$f":"SUMPRODUCT(('2. Assisted & Restricted Units'!$E$7:$E$399=\"1\")*('2. Assisted & Restricted Units'!$W$7:$W$399=\"RHCP-B\")*('2. Assisted & Restricted Units'!$X$7:$X$399=\"LI HOME\"))","v":0},{"$f":"SUMPRODUCT(('2. Assisted & Restricted Units'!$E$7:$E$399=\"1\")*('2. Assisted & Restricted Units'!$W$7:$W$399=\"SERA\")*('2. Assisted & Restricted Units'!$X$7:$X$399=\"LI HOME\"))","v":0},{"$f":"SUMPRODUCT(('2. Assisted & Restricted Units'!$E$7:$E$399=\"1\")*('2. Assisted & Restricted Units'!$W$7:$W$399=\"SUHRP\")*('2. Assisted & Restricted Units'!$X$7:$X$399=\"LI HOME\"))","v":0},{"$f":"SUMPRODUCT(('2. Assisted & Restricted Units'!$E$7:$E$399=\"1\")*('2. Assisted & Restricted Units'!$W$7:$W$399=\"TOD\")*('2. Assisted & Restricted Units'!$X$7:$X$399=\"LI HOME\"))","v":0},{"$f":"SUMPRODUCT(('2. Assisted & Restricted Units'!$E$7:$E$399=\"1\")*('2. Assisted & Restricted Units'!$W$7:$W$399=\"707-E\")*('2. Assisted & Restricted Units'!$X$7:$X$399=\"LI HOME\"))","v":0},{"$f":"SUMPRODUCT(('2. Assisted & Restricted Units'!$E$7:$E$399=\"1\")*('2. Assisted & Restricted Units'!$W$7:$W$399=\"707-N\")*('2. Assisted & Restricted Units'!$X$7:$X$399=\"LI HOME\"))","v":0}]
["1 Bedroom VLI State",{"$f":"SUMPRODUCT(('2. Assisted & Restricted Units'!$E$7:$E$399=\"1\")*('2. Assisted & Restricted Units'!$W$7:$W$399=\"CALDAP\")*('2. Assisted & Restricted Units'!$X$7:$X$399=\"VLI State\"))","v":0},{"$f":"SUMPRODUCT(('2. Assisted & Restricted Units'!$E$7:$E$399=\"1\")*('2. Assisted & Restricted Units'!$W$7:$W$399=\"CHRP-R\")*('2. Assisted & Restricted Units'!$X$7:$X$399=\"VLI State\"))","v":0},{"$f":"SUMPRODUCT(('2. Assisted & Restricted Units'!$E$7:$E$399=\"1\")*('2. Assisted & Restricted Units'!$W$7:$W$399=\"DDS\")*('2. Assisted & Restricted Units'!$X$7:$X$399=\"VLI State\"))","v":0},{"$f":"SUMPRODUCT(('2. Assisted & Restricted Units'!$E$7:$E$399=\"1\")*('2. Assisted & Restricted Units'!$W$7:$W$399=\"DPRLP\")*('2. Assisted & Restricted Units'!$X$7:$X$399=\"VLI State\"))","v":0},{"$f":"SUMPRODUCT(('2. Assisted & Restricted Units'!$E$7:$E$399=\"1\")*('2. Assisted & Restricted Units'!$W$7:$W$399=\"FHDP\")*('2. Assisted & Restricted Units'!$X$7:$X$399=\"VLI State\"))","v":0},{"$f":"SUMPRODUCT(('2. Assisted & Restricted Units'!$E$7:$E$399=\"1\")*('2. Assisted & Restricted Units'!$W$7:$W$399=\"FMTW\")*('2. Assisted & Restricted Units'!$X$7:$X$399=\"VLI State\"))","v":0},null,{"$f":"SUMPRODUCT(('2. Assisted & Restricted Units'!$E$7:$E$399=\"1\")*('2. Assisted & Restricted Units'!$W$7:$W$399=\"HOME\")*('2. Assisted & Restricted Units'!$X$7:$X$399=\"VLI State\"))","v":0},{"$f":"SUMPRODUCT(('2. Assisted & Restricted Units'!$E$7:$E$399=\"1\")*('2. Assisted & Restricted Units'!$W$7:$W$399=\"Market Rate\")*('2. Assisted & Restricted Units'!$X$7:$X$399=\"VLI State\"))","v":0},{"$f":"SUMPRODUCT(('2. Assisted & Restricted Units'!$E$7:$E$399=\"1\")*('2. Assisted & Restricted Units'!$W$7:$W$399=\"MHP\")*('2. Assisted & Restricted Units'!$X$7:$X$399=\"VLI State\"))","v":0},{"$f":"SUMPRODUCT(('2. Assisted & Restricted Units'!$E$7:$E$399=\"1\")*('2. Assisted & Restricted Units'!$W$7:$W$399=\"NonAssisted\")*('2. Assisted & Restricted Units'!$X$7:$X$399=\"VLI State\"))","v":0},{"$f":"SUMPRODUCT(('2. Assisted & Restricted Units'!$E$7:$E$399=\"1\")*('2. Assisted & Restricted Units'!$W$7:$W$399=\"Other Restr\")*('2. Assisted & Restricted Units'!$X$7:$X$399=\"VLI State\"))","v":0},{"$f":"SUMPRODUCT(('2. Assisted & Restricted Units'!$E$7:$E$399=\"1\")*('2. Assisted & Restricted Units'!$W$7:$W$399=\"RHCP-B\")*('2. Assisted & Restricted Units'!$X$7:$X$399=\"VLI State\"))","v":0},{"$f":"SUMPRODUCT(('2. Assisted & Restricted Units'!$E$7:$E$399=\"1\")*('2. Assisted & Restricted Units'!$W$7:$W$399=\"SERA\")*('2. Assisted & Restricted Units'!$X$7:$X$399=\"VLI State\"))","v":0},{"$f":"SUMPRODUCT(('2. Assisted & Restricted Units'!$E$7:$E$399=\"1\")*('2. Assisted & Restricted Units'!$W$7:$W$399=\"SUHRP\")*('2. Assisted & Restricted Units'!$X$7:$X$399=\"VLI State\"))","v":0},{"$f":"SUMPRODUCT(('2. Assisted & Restricted Units'!$E$7:$E$399=\"1\")*('2. Assisted & Restricted Units'!$W$7:$W$399=\"TOD\")*('2. Assisted & Restricted Units'!$X$7:$X$399=\"VLI State\"))","v":0},{"$f":"SUMPRODUCT(('2. Assisted & Restricted Units'!$E$7:$E$399=\"1\")*('2. Assisted & Restricted Units'!$W$7:$W$399=\"707-E\")*('2. Assisted & Restricted Units'!$X$7:$X$399=\"VLI State\"))","v":0},{"$f":"SUMPRODUCT(('2. Assisted & Restricted Units'!$E$7:$E$399=\"1\")*('2. Assisted & Restricted Units'!$W$7:$W$399=\"707-N\")*('2. Assisted & Restricted Units'!$X$7:$X$399=\"VLI State\"))","v":0}]
["1 Bedroom LI State",{"$f":"SUMPRODUCT(('2. Assisted & Restricted Units'!$E$7:$E$399=\"1\")*('2. Assisted & Restricted Units'!$W$7:$W$399=\"CALDAP\")*('2. Assisted & Restricted Units'!$X$7:$X$399=\"LI State\"))","v":0},{"$f":"SUMPRODUCT(('2. Assisted & Restricted Units'!$E$7:$E$399=\"1\")*('2. Assisted & Restricted Units'!$W$7:$W$399=\"CHRP-R\")*('2. Assisted & Restricted Units'!$X$7:$X$399=\"LI State\"))","v":0},{"$f":"SUMPRODUCT(('2. Assisted & Restricted Units'!$E$7:$E$399=\"1\")*('2. Assisted & Restricted Units'!$W$7:$W$399=\"DDS\")*('2. Assisted & Restricted Units'!$X$7:$X$399=\"LI State\"))","v":0},{"$f":"SUMPRODUCT(('2. Assisted & Restricted Units'!$E$7:$E$399=\"1\")*('2. Assisted & Restricted Units'!$W$7:$W$399=\"DPRLP\")*('2. Assisted & Restricted Units'!$X$7:$X$399=\"LI State\"))","v":0},{"$f":"SUMPRODUCT(('2. Assisted & Restricted Units'!$E$7:$E$399=\"1\")*('2. Assisted & Restricted Units'!$W$7:$W$399=\"FHDP\")*('2. Assisted & Restricted Units'!$X$7:$X$399=\"LI State\"))","v":0},{"$f":"SUMPRODUCT(('2. Assisted & Restricted Units'!$E$7:$E$399=\"1\")*('2. Assisted & Restricted Units'!$W$7:$W$399=\"FMTW\")*('2. Assisted & Restricted Units'!$X$7:$X$399=\"LI State\"))","v":0},null,{"$f":"SUMPRODUCT(('2. Assisted & Restricted Units'!$E$7:$E$399=\"1\")*('2. Assisted & Restricted Units'!$W$7:$W$399=\"HOME\")*('2. Assisted & Restricted Units'!$X$7:$X$399=\"LI State\"))","v":0},{"$f":"SUMPRODUCT(('2. Assisted & Restricted Units'!$E$7:$E$399=\"1\")*('2. Assisted & Restricted Units'!$W$7:$W$399=\"Market Rate\")*('2. Assisted & Restricted Units'!$X$7:$X$399=\"LI State\"))","v":0},{"$f":"SUMPRODUCT(('2. Assisted & Restricted Units'!$E$7:$E$399=\"1\")*('2. Assisted & Restricted Units'!$W$7:$W$399=\"MHP\")*('2. Assisted & Restricted Units'!$X$7:$X$399=\"LI State\"))","v":0},{"$f":"SUMPRODUCT(('2. Assisted & Restricted Units'!$E$7:$E$399=\"1\")*('2. Assisted & Restricted Units'!$W$7:$W$399=\"NonAssisted\")*('2. Assisted & Restricted Units'!$X$7:$X$399=\"LI State\"))","v":0},{"$f":"SUMPRODUCT(('2. Assisted & Restricted Units'!$E$7:$E$399=\"1\")*('2. Assisted & Restricted Units'!$W$7:$W$399=\"Other Restr\")*('2. Assisted & Restricted Units'!$X$7:$X$399=\"LI State\"))","v":0},{"$f":"SUMPRODUCT(('2. Assisted & Restricted Units'!$E$7:$E$399=\"1\")*('2. Assisted & Restricted Units'!$W$7:$W$399=\"RHCP-B\")*('2. Assisted & Restricted Units'!$X$7:$X$399=\"LI State\"))","v":0},{"$f":"SUMPRODUCT(('2. Assisted & Restricted Units'!$E$7:$E$399=\"1\")*('2. Assisted & Restricted Units'!$W$7:$W$399=\"SERA\")*('2. Assisted & Restricted Units'!$X$7:$X$399=\"LI State\"))","v":0},{"$f":"SUMPRODUCT(('2. Assisted & Restricted Units'!$E$7:$E$399=\"1\")*('2. Assisted & Restricted Units'!$W$7:$W$399=\"SUHRP\")*('2. Assisted & Restricted Units'!$X$7:$X$399=\"LI State\"))","v":0},{"$f":"SUMPRODUCT(('2. Assisted & Restricted Units'!$E$7:$E$399=\"1\")*('2. Assisted & Restricted Units'!$W$7:$W$399=\"TOD\")*('2. Assisted & Restricted Units'!$X$7:$X$399=\"LI State\"))","v":0},{"$f":"SUMPRODUCT(('2. Assisted & Restricted Units'!$E$7:$E$399=\"1\")*('2. Assisted & Restricted Units'!$W$7:$W$399=\"707-E\")*('2. Assisted & Restricted Units'!$X$7:$X$399=\"LI State\"))","v":0},{"$f":"SUMPRODUCT(('2. Assisted & Restricted Units'!$E$7:$E$399=\"1\")*('2. Assisted & Restricted Units'!$W$7:$W$399=\"707-N\")*('2. Assisted & Restricted Units'!$X$7:$X$399=\"LI State\"))","v":0}]
["1 Bedroom CalHFA",{"$f":"SUMPRODUCT(('2. Assisted & Restricted Units'!$E$7:$E$399=\"1\")*('2. Assisted & Restricted Units'!$W$7:$W$399=\"CALDAP\")*('2. Assisted & Restricted Units'!$X$7:$X$399=\"CalHFA\"))","v":0},{"$f":"SUMPRODUCT(('2. Assisted & Restricted Units'!$E$7:$E$399=\"1\")*('2. Assisted & Restricted Units'!$W$7:$W$399=\"CHRP-R\")*('2. Assisted & Restricted Units'!$X$7:$X$399=\"CalHFA\"))","v":0},{"$f":"SUMPRODUCT(('2. Assisted & Restricted Units'!$E$7:$E$399=\"1\")*('2. Assisted & Restricted Units'!$W$7:$W$399=\"DDS\")*('2. Assisted & Restricted Units'!$X$7:$X$399=\"CalHFA\"))","v":0},{"$f":"SUMPRODUCT(('2. Assisted & Restricted Units'!$E$7:$E$399=\"1\")*('2. Assisted & Restricted Units'!$W$7:$W$399=\"DPRLP\")*('2. Assisted & Restricted Units'!$X$7:$X$399=\"CalHFA\"))","v":0},{"$f":"SUMPRODUCT(('2. Assisted & Restricted Units'!$E$7:$E$399=\"1\")*('2. Assisted & Restricted Units'!$W$7:$W$399=\"FHDP\")*('2. Assisted & Restricted Units'!$X$7:$X$399=\"CalHFA\"))","v":0},{"$f":"SUMPRODUCT(('2. Assisted & Restricted Units'!$E$7:$E$399=\"1\")*('2. Assisted & Restricted Units'!$W$7:$W$399=\"FMTW\")*('2. Assisted & Restricted Units'!$X$7:$X$399=\"CalHFA\"))","v":0},null,{"$f":"SUMPRODUCT(('2. Assisted & Restricted Units'!$E$7:$E$399=\"1\")*('2. Assisted & Restricted Units'!$W$7:$W$399=\"HOME\")*('2. Assisted & Restricted Units'!$X$7:$X$399=\"CalHFA\"))","v":0},{"$f":"SUMPRODUCT(('2. Assisted & Restricted Units'!$E$7:$E$399=\"1\")*('2. Assisted & Restricted Units'!$W$7:$W$399=\"Market Rate\")*('2. Assisted & Restricted Units'!$X$7:$X$399=\"CalHFA\"))","v":0},{"$f":"SUMPRODUCT(('2. Assisted & Restricted Units'!$E$7:$E$399=\"1\")*('2. Assisted & Restricted Units'!$W$7:$W$399=\"MHP\")*('2. Assisted & Restricted Units'!$X$7:$X$399=\"CalHFA\"))","v":0},{"$f":"SUMPRODUCT(('2. Assisted & Restricted Units'!$E$7:$E$399=\"1\")*('2. Assisted & Restricted Units'!$W$7:$W$399=\"NonAssisted\")*('2. Assisted & Restricted Units'!$X$7:$X$399=\"CalHFA\"))","v":0},{"$f":"SUMPRODUCT(('2. Assisted & Restricted Units'!$E$7:$E$399=\"1\")*('2. Assisted & Restricted Units'!$W$7:$W$399=\"Other Restr\")*('2. Assisted & Restricted Units'!$X$7:$X$399=\"CalHFA\"))","v":0},{"$f":"SUMPRODUCT(('2. Assisted & Restricted Units'!$E$7:$E$399=\"1\")*('2. Assisted & Restricted Units'!$W$7:$W$399=\"RHCP-B\")*('2. Assisted & Restricted Units'!$X$7:$X$399=\"CalHFA\"))","v":0},{"$f":"SUMPRODUCT(('2. Assisted & Restricted Units'!$E$7:$E$399=\"1\")*('2. Assisted & Restricted Units'!$W$7:$W$399=\"SERA\")*('2. Assisted & Restricted Units'!$X$7:$X$399=\"CalHFA\"))","v":0},{"$f":"SUMPRODUCT(('2. Assisted & Restricted Units'!$E$7:$E$399=\"1\")*('2. Assisted & Restricted Units'!$W$7:$W$399=\"SUHRP\")*('2. Assisted & Restricted Units'!$X$7:$X$399=\"CalHFA\"))","v":0},{"$f":"SUMPRODUCT(('2. Assisted & Restricted Units'!$E$7:$E$399=\"1\")*('2. Assisted & Restricted Units'!$W$7:$W$399=\"TOD\")*('2. Assisted & Restricted Units'!$X$7:$X$399=\"CalHFA\"))","v":0},{"$f":"SUMPRODUCT(('2. Assisted & Restricted Units'!$E$7:$E$399=\"1\")*('2. Assisted & Restricted Units'!$W$7:$W$399=\"707-E\")*('2. Assisted & Restricted Units'!$X$7:$X$399=\"CalHFA\"))","v":0},{"$f":"SUMPRODUCT(('2. Assisted & Restricted Units'!$E$7:$E$399=\"1\")*('2. Assisted & Restricted Units'!$W$7:$W$399=\"707-N\")*('2. Assisted & Restricted Units'!$X$7:$X$399=\"CalHFA\"))","v":0}]
["Total 1",{"$f":"SUM(B54:B77)","v":0},{"$f":"SUM(C54:C77)","v":0},0,0,0,0,{"$f":"SUMPRODUCT(('2. Assisted & Restricted Units'!$E$7:$E$399=\"1\")*('2. Assisted & Restricted Units'!$W$7:$W$399=\"FWHG\"))","v":0},0,0,0,0,0,0,0,0,0,0,0,{"$f":"SUMPRODUCT(('2. Assisted & Restricted Units'!$E$7:$E$399=\"1\")*('2. Assisted & Restricted Units'!$L$7:$L$399=\"X\"))","v":0},{"$f":"SUMPRODUCT(('2. Assisted & Restricted Units'!$E$7:$E$399=\"1\")*('2. Assisted & Restricted Units'!#REF!=\"X\"))","v":{"$error":"#REF!"}},{"$f":"SUMPRODUCT(('2. Assisted & Restricted Units'!$E$7:$E$399=\"1\")*('2. Assisted & Restricted Units'!#REF!=\"X\"))","v":{"$error":"#REF!"}},{"$f":"SUMPRODUCT(('2. Assisted & Restricted Units'!$E$7:$E$399=\"1\")*('2. Assisted & Restricted Units'!#REF!=\"X\"))","v":{"$error":"#REF!"}},{"$f":"SUMPRODUCT(('2. Assisted & Restricted Units'!$E$7:$E$399=\"1\")*('2. Assisted & Restricted Units'!#REF!=\"X\"))","v":{"$error":"#REF!"}},{"$f":"SUMPRODUCT(('2. Assisted & Restricted Units'!$E$7:$E$399=\"1\")*('2. Assisted & Restricted Units'!#REF!=\"X\"))","v":{"$error":"#REF!"}},{"$f":"SUMPRODUCT(('2. Assisted & Restricted Units'!$E$7:$E$399=\"1\")*('2. Assisted & Restricted Units'!#REF!=\"X\"))","v":{"$error":"#REF!"}},{"$f":"SUMPRODUCT(('2. Assisted & Restricted Units'!$E$7:$E$399=\"1\")*('2. Assisted & Restricted Units'!$M$7:$M$399=\"X\"))","v":0},{"$f":"SUMPRODUCT(('2. Assisted & Restricted Units'!$E$7:$E$399=\"1\")*('2. Assisted & Restricted Units'!$O$7:$O$399=\"X\"))","v":0}]
["2 Bedroom 15% AMI",{"$f":"SUMPRODUCT(('2. Assisted & Restricted Units'!$E$7:$E$399=\"2\")*('2. Assisted & Restricted Units'!$W$7:$W$399=\"CALDAP\")*('2. Assisted & Restricted Units'!$X$7:$X$399=\"15% AMI\"))","v":0},{"$f":"SUMPRODUCT(('2. Assisted & Restricted Units'!$E$7:$E$399=\"2\")*('2. Assisted & Restricted Units'!$W$7:$W$399=\"CHRP-R\")*('2. Assisted & Restricted Units'!$X$7:$X$399=\"15% AMI\"))","v":0},{"$f":"SUMPRODUCT(('2. Assisted & Restricted Units'!$E$7:$E$399=\"2\")*('2. Assisted & Restricted Units'!$W$7:$W$399=\"DDS\")*('2. Assisted & Restricted Units'!$X$7:$X$399=\"15% AMI\"))","v":0},{"$f":"SUMPRODUCT(('2. Assisted & Restricted Units'!$E$7:$E$399=\"2\")*('2. Assisted & Restricted Units'!$W$7:$W$399=\"DPRLP\")*('2. Assisted & Restricted Units'!$X$7:$X$399=\"15% AMI\"))","v":0},{"$f":"SUMPRODUCT(('2. Assisted & Restricted Units'!$E$7:$E$399=\"2\")*('2. Assisted & Restricted Units'!$W$7:$W$399=\"FHDP\")*('2. Assisted & Restricted Units'!$X$7:$X$399=\"15% AMI\"))","v":0},{"$f":"SUMPRODUCT(('2. Assisted & Restricted Units'!$E$7:$E$399=\"2\")*('2. Assisted & Restricted Units'!$W$7:$W$399=\"FMTW\")*('2. Assisted & Restricted Units'!$X$7:$X$399=\"15% AMI\"))","v":0},null,{"$f":"SUMPRODUCT(('2. Assisted & Restricted Units'!$E$7:$E$399=\"2\")*('2. Assisted & Restricted Units'!$W$7:$W$399=\"HOME\")*('2. Assisted & Restricted Units'!$X$7:$X$399=\"15% AMI\"))","v":0},{"$f":"SUMPRODUCT(('2. Assisted & Restricted Units'!$E$7:$E$399=\"2\")*('2. Assisted & Restricted Units'!$W$7:$W$399=\"Market Rate\")*('2. Assisted & Restricted Units'!$X$7:$X$399=\"15% AMI\"))","v":0},{"$f":"SUMPRODUCT(('2. Assisted & Restricted Units'!$E$7:$E$399=\"2\")*('2. Assisted & Restricted Units'!$W$7:$W$399=\"MHP\")*('2. Assisted & Restricted Units'!$X$7:$X$399=\"15% AMI\"))","v":0},{"$f":"SUMPRODUCT(('2. Assisted & Restricted Units'!$E$7:$E$399=\"2\")*('2. Assisted & Restricted Units'!$W$7:$W$399=\"NonAssisted\")*('2. Assisted & Restricted Units'!$X$7:$X$399=\"15% AMI\"))","v":0},{"$f":"SUMPRODUCT(('2. Assisted & Restricted Units'!$E$7:$E$399=\"2\")*('2. Assisted & Restricted Units'!$W$7:$W$399=\"Other Restr\")*('2. Assisted & Restricted Units'!$X$7:$X$399=\"15% AMI\"))","v":0},{"$f":"SUMPRODUCT(('2. Assisted & Restricted Units'!$E$7:$E$399=\"2\")*('2. Assisted & Restricted Units'!$W$7:$W$399=\"RHCP-B\")*('2. Assisted & Restricted Units'!$X$7:$X$399=\"15% AMI\"))","v":0},{"$f":"SUMPRODUCT(('2. Assisted & Restricted Units'!$E$7:$E$399=\"2\")*('2. Assisted & Restricted Units'!$W$7:$W$399=\"SERA\")*('2. Assisted & Restricted Units'!$X$7:$X$399=\"15% AMI\"))","v":0},{"$f":"SUMPRODUCT(('2. Assisted & Restricted Units'!$E$7:$E$399=\"2\")*('2. Assisted & Restricted Units'!$W$7:$W$399=\"SUHRP\")*('2. Assisted & Restricted Units'!$X$7:$X$399=\"15% AMI\"))","v":0},{"$f":"SUMPRODUCT(('2. Assisted & Restricted Units'!$E$7:$E$399=\"2\")*('2. Assisted & Restricted Units'!$W$7:$W$399=\"TOD\")*('2. Assisted & Restricted Units'!$X$7:$X$399=\"15% AMI\"))","v":0},{"$f":"SUMPRODUCT(('2. Assisted & Restricted Units'!$E$7:$E$399=\"2\")*('2. Assisted & Restricted Units'!$W$7:$W$399=\"707-E\")*('2. Assisted & Restricted Units'!$X$7:$X$399=\"15% AMI\"))","v":0},{"$f":"SUMPRODUCT(('2. Assisted & Restricted Units'!$E$7:$E$399=\"2\")*('2. Assisted & Restricted Units'!$W$7:$W$399=\"707-N\")*('2. Assisted & Restricted Units'!$X$7:$X$399=\"15% AMI\"))","v":0}]
["2 Bedroom 20% AMI",{"$f":"SUMPRODUCT(('2. Assisted & Restricted Units'!$E$7:$E$399=\"2\")*('2. Assisted & Restricted Units'!$W$7:$W$399=\"CALDAP\")*('2. Assisted & Restricted Units'!$X$7:$X$399=\"20% AMI\"))","v":0},{"$f":"SUMPRODUCT(('2. Assisted & Restricted Units'!$E$7:$E$399=\"2\")*('2. Assisted & Restricted Units'!$W$7:$W$399=\"CHRP-R\")*('2. Assisted & Restricted Units'!$X$7:$X$399=\"20% AMI\"))","v":0},{"$f":"SUMPRODUCT(('2. Assisted & Restricted Units'!$E$7:$E$399=\"2\")*('2. Assisted & Restricted Units'!$W$7:$W$399=\"DDS\")*('2. Assisted & Restricted Units'!$X$7:$X$399=\"20% AMI\"))","v":0},{"$f":"SUMPRODUCT(('2. Assisted & Restricted Units'!$E$7:$E$399=\"2\")*('2. Assisted & Restricted Units'!$W$7:$W$399=\"DPRLP\")*('2. Assisted & Restricted Units'!$X$7:$X$399=\"20% AMI\"))","v":0},{"$f":"SUMPRODUCT(('2. Assisted & Restricted Units'!$E$7:$E$399=\"2\")*('2. Assisted & Restricted Units'!$W$7:$W$399=\"FHDP\")*('2. Assisted & Restricted Units'!$X$7:$X$399=\"20% AMI\"))","v":0},{"$f":"SUMPRODUCT(('2. Assisted & Restricted Units'!$E$7:$E$399=\"2\")*('2. Assisted & Restricted Units'!$W$7:$W$399=\"FMTW\")*('2. Assisted & Restricted Units'!$X$7:$X$399=\"20% AMI\"))","v":0},null,{"$f":"SUMPRODUCT(('2. Assisted & Restricted Units'!$E$7:$E$399=\"2\")*('2. Assisted & Restricted Units'!$W$7:$W$399=\"HOME\")*('2. Assisted & Restricted Units'!$X$7:$X$399=\"20% AMI\"))","v":0},{"$f":"SUMPRODUCT(('2. Assisted & Restricted Units'!$E$7:$E$399=\"2\")*('2. Assisted & Restricted Units'!$W$7:$W$399=\"Market Rate\")*('2. Assisted & Restricted Units'!$X$7:$X$399=\"20% AMI\"))","v":0},{"$f":"SUMPRODUCT(('2. Assisted & Restricted Units'!$E$7:$E$399=\"2\")*('2. Assisted & Restricted Units'!$W$7:$W$399=\"MHP\")*('2. Assisted & Restricted Units'!$X$7:$X$399=\"20% AMI\"))","v":0},{"$f":"SUMPRODUCT(('2. Assisted & Restricted Units'!$E$7:$E$399=\"2\")*('2. Assisted & Restricted Units'!$W$7:$W$399=\"NonAssisted\")*('2. Assisted & Restricted Units'!$X$7:$X$399=\"20% AMI\"))","v":0},{"$f":"SUMPRODUCT(('2. Assisted & Restricted Units'!$E$7:$E$399=\"2\")*('2. Assisted & Restricted Units'!$W$7:$W$399=\"Other Restr\")*('2. Assisted & Restricted Units'!$X$7:$X$399=\"20% AMI\"))","v":0},{"$f":"SUMPRODUCT(('2. Assisted & Restricted Units'!$E$7:$E$399=\"2\")*('2. Assisted & Restricted Units'!$W$7:$W$399=\"RHCP-B\")*('2. Assisted & Restricted Units'!$X$7:$X$399=\"20% AMI\"))","v":0},{"$f":"SUMPRODUCT(('2. Assisted & Restricted Units'!$E$7:$E$399=\"2\")*('2. Assisted & Restricted Units'!$W$7:$W$399=\"SERA\")*('2. Assisted & Restricted Units'!$X$7:$X$399=\"20% AMI\"))","v":0},{"$f":"SUMPRODUCT(('2. Assisted & Restricted Units'!$E$7:$E$399=\"2\")*('2. Assisted & Restricted Units'!$W$7:$W$399=\"SUHRP\")*('2. Assisted & Restricted Units'!$X$7:$X$399=\"20% AMI\"))","v":0},{"$f":"SUMPRODUCT(('2. Assisted & Restricted Units'!$E$7:$E$399=\"2\")*('2. Assisted & Restricted Units'!$W$7:$W$399=\"TOD\")*('2. Assisted & Restricted Units'!$X$7:$X$399=\"20% AMI\"))","v":0},{"$f":"SUMPRODUCT(('2. Assisted & Restricted Units'!$E$7:$E$399=\"2\")*('2. Assisted & Restricted Units'!$W$7:$W$399=\"707-E\")*('2. Assisted & Restricted Units'!$X$7:$X$399=\"20% AMI\"))","v":0},{"$f":"SUMPRODUCT(('2. Assisted & Restricted Units'!$E$7:$E$399=\"2\")*('2. Assisted & Restricted Units'!$W$7:$W$399=\"707-N\")*('2. Assisted & Restricted Units'!$X$7:$X$399=\"20% AMI\"))","v":0}]
["2 Bedroom 25% AMI",{"$f":"SUMPRODUCT(('2. Assisted & Restricted Units'!$E$7:$E$399=\"2\")*('2. Assisted & Restricted Units'!$W$7:$W$399=\"CALDAP\")*('2. Assisted & Restricted Units'!$X$7:$X$399=\"25% AMI\"))","v":0},{"$f":"SUMPRODUCT(('2. Assisted & Restricted Units'!$E$7:$E$399=\"2\")*('2. Assisted & Restricted Units'!$W$7:$W$399=\"CHRP-R\")*('2. Assisted & Restricted Units'!$X$7:$X$399=\"25% AMI\"))","v":0},{"$f":"SUMPRODUCT(('2. Assisted & Restricted Units'!$E$7:$E$399=\"2\")*('2. Assisted & Restricted Units'!$W$7:$W$399=\"DDS\")*('2. Assisted & Restricted Units'!$X$7:$X$399=\"25% AMI\"))","v":0},{"$f":"SUMPRODUCT(('2. Assisted & Restricted Units'!$E$7:$E$399=\"2\")*('2. Assisted & Restricted Units'!$W$7:$W$399=\"DPRLP\")*('2. Assisted & Restricted Units'!$X$7:$X$399=\"25% AMI\"))","v":0},{"$f":"SUMPRODUCT(('2. Assisted & Restricted Units'!$E$7:$E$399=\"2\")*('2. Assisted & Restricted Units'!$W$7:$W$399=\"FHDP\")*('2. Assisted & Restricted Units'!$X$7:$X$399=\"25% AMI\"))","v":0},{"$f":"SUMPRODUCT(('2. Assisted & Restricted Units'!$E$7:$E$399=\"2\")*('2. Assisted & Restricted Units'!$W$7:$W$399=\"FMTW\")*('2. Assisted & Restricted Units'!$X$7:$X$399=\"25% AMI\"))","v":0},null,{"$f":"SUMPRODUCT(('2. Assisted & Restricted Units'!$E$7:$E$399=\"2\")*('2. Assisted & Restricted Units'!$W$7:$W$399=\"HOME\")*('2. Assisted & Restricted Units'!$X$7:$X$399=\"25% AMI\"))","v":0},{"$f":"SUMPRODUCT(('2. Assisted & Restricted Units'!$E$7:$E$399=\"2\")*('2. Assisted & Restricted Units'!$W$7:$W$399=\"Market Rate\")*('2. Assisted & Restricted Units'!$X$7:$X$399=\"25% AMI\"))","v":0},{"$f":"SUMPRODUCT(('2. Assisted & Restricted Units'!$E$7:$E$399=\"2\")*('2. Assisted & Restricted Units'!$W$7:$W$399=\"MHP\")*('2. Assisted & Restricted Units'!$X$7:$X$399=\"25% AMI\"))","v":0},{"$f":"SUMPRODUCT(('2. Assisted & Restricted Units'!$E$7:$E$399=\"2\")*('2. Assisted & Restricted Units'!$W$7:$W$399=\"NonAssisted\")*('2. Assisted & Restricted Units'!$X$7:$X$399=\"25% AMI\"))","v":0},{"$f":"SUMPRODUCT(('2. Assisted & Restricted Units'!$E$7:$E$399=\"2\")*('2. Assisted & Restricted Units'!$W$7:$W$399=\"Other Restr\")*('2. Assisted & Restricted Units'!$X$7:$X$399=\"25% AMI\"))","v":0},{"$f":"SUMPRODUCT(('2. Assisted & Restricted Units'!$E$7:$E$399=\"2\")*('2. Assisted & Restricted Units'!$W$7:$W$399=\"RHCP-B\")*('2. Assisted & Restricted Units'!$X$7:$X$399=\"25% AMI\"))","v":0},{"$f":"SUMPRODUCT(('2. Assisted & Restricted Units'!$E$7:$E$399=\"2\")*('2. Assisted & Restricted Units'!$W$7:$W$399=\"SERA\")*('2. Assisted & Restricted Units'!$X$7:$X$399=\"25% AMI\"))","v":0},{"$f":"SUMPRODUCT(('2. Assisted & Restricted Units'!$E$7:$E$399=\"2\")*('2. Assisted & Restricted Units'!$W$7:$W$399=\"SUHRP\")*('2. Assisted & Restricted Units'!$X$7:$X$399=\"25% AMI\"))","v":0},{"$f":"SUMPRODUCT(('2. Assisted & Restricted Units'!$E$7:$E$399=\"2\")*('2. Assisted & Restricted Units'!$W$7:$W$399=\"TOD\")*('2. Assisted & Restricted Units'!$X$7:$X$399=\"25% AMI\"))","v":0},{"$f":"SUMPRODUCT(('2. Assisted & Restricted Units'!$E$7:$E$399=\"2\")*('2. Assisted & Restricted Units'!$W$7:$W$399=\"707-E\")*('2. Assisted & Restricted Units'!$X$7:$X$399=\"25% AMI\"))","v":0},{"$f":"SUMPRODUCT(('2. Assisted & Restricted Units'!$E$7:$E$399=\"2\")*('2. Assisted & Restricted Units'!$W$7:$W$399=\"707-N\")*('2. Assisted & Restricted Units'!$X$7:$X$399=\"25% AMI\"))","v":0}]
["2 Bedroom 30% AMI",{"$f":"SUMPRODUCT(('2. Assisted & Restricted Units'!$E$7:$E$399=\"2\")*('2. Assisted & Restricted Units'!$W$7:$W$399=\"CALDAP\")*('2. Assisted & Restricted Units'!$X$7:$X$399=\"30% AMI\"))","v":0},{"$f":"SUMPRODUCT(('2. Assisted & Restricted Units'!$E$7:$E$399=\"2\")*('2. Assisted & Restricted Units'!$W$7:$W$399=\"CHRP-R\")*('2. Assisted & Restricted Units'!$X$7:$X$399=\"30% AMI\"))","v":0},{"$f":"SUMPRODUCT(('2. Assisted & Restricted Units'!$E$7:$E$399=\"2\")*('2. Assisted & Restricted Units'!$W$7:$W$399=\"DDS\")*('2. Assisted & Restricted Units'!$X$7:$X$399=\"30% AMI\"))","v":0},{"$f":"SUMPRODUCT(('2. Assisted & Restricted Units'!$E$7:$E$399=\"2\")*('2. Assisted & Restricted Units'!$W$7:$W$399=\"DPRLP\")*('2. Assisted & Restricted Units'!$X$7:$X$399=\"30% AMI\"))","v":0},{"$f":"SUMPRODUCT(('2. Assisted & Restricted Units'!$E$7:$E$399=\"2\")*('2. Assisted & Restricted Units'!$W$7:$W$399=\"FHDP\")*('2. Assisted & Restricted Units'!$X$7:$X$399=\"30% AMI\"))","v":0},{"$f":"SUMPRODUCT(('2. Assisted & Restricted Units'!$E$7:$E$399=\"2\")*('2. Assisted & Restricted Units'!$W$7:$W$399=\"FMTW\")*('2. Assisted & Restricted Units'!$X$7:$X$399=\"30% AMI\"))","v":0},null,{"$f":"SUMPRODUCT(('2. Assisted & Restricted Units'!$E$7:$E$399=\"2\")*('2. Assisted & Restricted Units'!$W$7:$W$399=\"HOME\")*('2. Assisted & Restricted Units'!$X$7:$X$399=\"30% AMI\"))","v":0},{"$f":"SUMPRODUCT(('2. Assisted & Restricted Units'!$E$7:$E$399=\"2\")*('2. Assisted & Restricted Units'!$W$7:$W$399=\"Market Rate\")*('2. Assisted & Restricted Units'!$X$7:$X$399=\"30% AMI\"))","v":0},{"$f":"SUMPRODUCT(('2. Assisted & Restricted Units'!$E$7:$E$399=\"2\")*('2. Assisted & Restricted Units'!$W$7:$W$399=\"MHP\")*('2. Assisted & Restricted Units'!$X$7:$X$399=\"30% AMI\"))","v":0},{"$f":"SUMPRODUCT(('2. Assisted & Restricted Units'!$E$7:$E$399=\"2\")*('2. Assisted & Restricted Units'!$W$7:$W$399=\"NonAssisted\")*('2. Assisted & Restricted Units'!$X$7:$X$399=\"30% AMI\"))","v":0},{"$f":"SUMPRODUCT(('2. Assisted & Restricted Units'!$E$7:$E$399=\"2\")*('2. Assisted & Restricted Units'!$W$7:$W$399=\"Other Restr\")*('2. Assisted & Restricted Units'!$X$7:$X$399=\"30% AMI\"))","v":0},{"$f":"SUMPRODUCT(('2. Assisted & Restricted Units'!$E$7:$E$399=\"2\")*('2. Assisted & Restricted Units'!$W$7:$W$399=\"RHCP-B\")*('2. Assisted & Restricted Units'!$X$7:$X$399=\"30% AMI\"))","v":0},{"$f":"SUMPRODUCT(('2. Assisted & Restricted Units'!$E$7:$E$399=\"2\")*('2. Assisted & Restricted Units'!$W$7:$W$399=\"SERA\")*('2. Assisted & Restricted Units'!$X$7:$X$399=\"30% AMI\"))","v":0},{"$f":"SUMPRODUCT(('2. Assisted & Restricted Units'!$E$7:$E$399=\"2\")*('2. Assisted & Restricted Units'!$W$7:$W$399=\"SUHRP\")*('2. Assisted & Restricted Units'!$X$7:$X$399=\"30% AMI\"))","v":0},{"$f":"SUMPRODUCT(('2. Assisted & Restricted Units'!$E$7:$E$399=\"2\")*('2. Assisted & Restricted Units'!$W$7:$W$399=\"TOD\")*('2. Assisted & Restricted Units'!$X$7:$X$399=\"30% AMI\"))","v":0},{"$f":"SUMPRODUCT(('2. Assisted & Restricted Units'!$E$7:$E$399=\"2\")*('2. Assisted & Restricted Units'!$W$7:$W$399=\"707-E\")*('2. Assisted & Restricted Units'!$X$7:$X$399=\"30% AMI\"))","v":0},{"$f":"SUMPRODUCT(('2. Assisted & Restricted Units'!$E$7:$E$399=\"2\")*('2. Assisted & Restricted Units'!$W$7:$W$399=\"707-N\")*('2. Assisted & Restricted Units'!$X$7:$X$399=\"30% AMI\"))","v":0}]
["2 Bedroom 35% AMI",{"$f":"SUMPRODUCT(('2. Assisted & Restricted Units'!$E$7:$E$399=\"2\")*('2. Assisted & Restricted Units'!$W$7:$W$399=\"CALDAP\")*('2. Assisted & Restricted Units'!$X$7:$X$399=\"35% AMI\"))","v":0},{"$f":"SUMPRODUCT(('2. Assisted & Restricted Units'!$E$7:$E$399=\"2\")*('2. Assisted & Restricted Units'!$W$7:$W$399=\"CHRP-R\")*('2. Assisted & Restricted Units'!$X$7:$X$399=\"35% AMI\"))","v":0},{"$f":"SUMPRODUCT(('2. Assisted & Restricted Units'!$E$7:$E$399=\"2\")*('2. Assisted & Restricted Units'!$W$7:$W$399=\"DDS\")*('2. Assisted & Restricted Units'!$X$7:$X$399=\"35% AMI\"))","v":0},{"$f":"SUMPRODUCT(('2. Assisted & Restricted Units'!$E$7:$E$399=\"2\")*('2. Assisted & Restricted Units'!$W$7:$W$399=\"DPRLP\")*('2. Assisted & Restricted Units'!$X$7:$X$399=\"35% AMI\"))","v":0},{"$f":"SUMPRODUCT(('2. Assisted & Restricted Units'!$E$7:$E$399=\"2\")*('2. Assisted & Restricted Units'!$W$7:$W$399=\"FHDP\")*('2. Assisted & Restricted Units'!$X$7:$X$399=\"35% AMI\"))","v":0},{"$f":"SUMPRODUCT(('2. Assisted & Restricted Units'!$E$7:$E$399=\"2\")*('2. Assisted & Restricted Units'!$W$7:$W$399=\"FMTW\")*('2. Assisted & Restricted Units'!$X$7:$X$399=\"35% AMI\"))","v":0},null,{"$f":"SUMPRODUCT(('2. Assisted & Restricted Units'!$E$7:$E$399=\"2\")*('2. Assisted & Restricted Units'!$W$7:$W$399=\"HOME\")*('2. Assisted & Restricted Units'!$X$7:$X$399=\"35% AMI\"))","v":0},{"$f":"SUMPRODUCT(('2. Assisted & Restricted Units'!$E$7:$E$399=\"2\")*('2. Assisted & Restricted Units'!$W$7:$W$399=\"Market Rate\")*('2. Assisted & Restricted Units'!$X$7:$X$399=\"35% AMI\"))","v":0},{"$f":"SUMPRODUCT(('2. Assisted & Restricted Units'!$E$7:$E$399=\"2\")*('2. Assisted & Restricted Units'!$W$7:$W$399=\"MHP\")*('2. Assisted & Restricted Units'!$X$7:$X$399=\"35% AMI\"))","v":0},{"$f":"SUMPRODUCT(('2. Assisted & Restricted Units'!$E$7:$E$399=\"2\")*('2. Assisted & Restricted Units'!$W$7:$W$399=\"NonAssisted\")*('2. Assisted & Restricted Units'!$X$7:$X$399=\"35% AMI\"))","v":0},{"$f":"SUMPRODUCT(('2. Assisted & Restricted Units'!$E$7:$E$399=\"2\")*('2. Assisted & Restricted Units'!$W$7:$W$399=\"Other Restr\")*('2. Assisted & Restricted Units'!$X$7:$X$399=\"35% AMI\"))","v":0},{"$f":"SUMPRODUCT(('2. Assisted & Restricted Units'!$E$7:$E$399=\"2\")*('2. Assisted & Restricted Units'!$W$7:$W$399=\"RHCP-B\")*('2. Assisted & Restricted Units'!$X$7:$X$399=\"35% AMI\"))","v":0},{"$f":"SUMPRODUCT(('2. Assisted & Restricted Units'!$E$7:$E$399=\"2\")*('2. Assisted & Restricted Units'!$W$7:$W$399=\"SERA\")*('2. Assisted & Restricted Units'!$X$7:$X$399=\"35% AMI\"))","v":0},{"$f":"SUMPRODUCT(('2. Assisted & Restricted Units'!$E$7:$E$399=\"2\")*('2. Assisted & Restricted Units'!$W$7:$W$399=\"SUHRP\")*('2. Assisted & Restricted Units'!$X$7:$X$399=\"35% AMI\"))","v":0},{"$f":"SUMPRODUCT(('2. Assisted & Restricted Units'!$E$7:$E$399=\"2\")*('2. Assisted & Restricted Units'!$W$7:$W$399=\"TOD\")*('2. Assisted & Restricted Units'!$X$7:$X$399=\"35% AMI\"))","v":0},{"$f":"SUMPRODUCT(('2. Assisted & Restricted Units'!$E$7:$E$399=\"2\")*('2. Assisted & Restricted Units'!$W$7:$W$399=\"707-E\")*('2. Assisted & Restricted Units'!$X$7:$X$399=\"35% AMI\"))","v":0},{"$f":"SUMPRODUCT(('2. Assisted & Restricted Units'!$E$7:$E$399=\"2\")*('2. Assisted & Restricted Units'!$W$7:$W$399=\"707-N\")*('2. Assisted & Restricted Units'!$X$7:$X$399=\"35% AMI\"))","v":0}]
["2 Bedroom 40% AMI",{"$f":"SUMPRODUCT(('2. Assisted & Restricted Units'!$E$7:$E$399=\"2\")*('2. Assisted & Restricted Units'!$W$7:$W$399=\"CALDAP\")*('2. Assisted & Restricted Units'!$X$7:$X$399=\"40% AMI\"))","v":0},{"$f":"SUMPRODUCT(('2. Assisted & Restricted Units'!$E$7:$E$399=\"2\")*('2. Assisted & Restricted Units'!$W$7:$W$399=\"CHRP-R\")*('2. Assisted & Restricted Units'!$X$7:$X$399=\"40% AMI\"))","v":0},{"$f":"SUMPRODUCT(('2. Assisted & Restricted Units'!$E$7:$E$399=\"2\")*('2. Assisted & Restricted Units'!$W$7:$W$399=\"DDS\")*('2. Assisted & Restricted Units'!$X$7:$X$399=\"40% AMI\"))","v":0},{"$f":"SUMPRODUCT(('2. Assisted & Restricted Units'!$E$7:$E$399=\"2\")*('2. Assisted & Restricted Units'!$W$7:$W$399=\"DPRLP\")*('2. Assisted & Restricted Units'!$X$7:$X$399=\"40% AMI\"))","v":0},{"$f":"SUMPRODUCT(('2. Assisted & Restricted Units'!$E$7:$E$399=\"2\")*('2. Assisted & Restricted Units'!$W$7:$W$399=\"FHDP\")*('2. Assisted & Restricted Units'!$X$7:$X$399=\"40% AMI\"))","v":0},{"$f":"SUMPRODUCT(('2. Assisted & Restricted Units'!$E$7:$E$399=\"2\")*('2. Assisted & Restricted Units'!$W$7:$W$399=\"FMTW\")*('2. Assisted & Restricted Units'!$X$7:$X$399=\"40% AMI\"))","v":0},null,{"$f":"SUMPRODUCT(('2. Assisted & Restricted Units'!$E$7:$E$399=\"2\")*('2. Assisted & Restricted Units'!$W$7:$W$399=\"HOME\")*('2. Assisted & Restricted Units'!$X$7:$X$399=\"40% AMI\"))","v":0},{"$f":"SUMPRODUCT(('2. Assisted & Restricted Units'!$E$7:$E$399=\"2\")*('2. Assisted & Restricted Units'!$W$7:$W$399=\"Market Rate\")*('2. Assisted & Restricted Units'!$X$7:$X$399=\"40% AMI\"))","v":0},{"$f":"SUMPRODUCT(('2. Assisted & Restricted Units'!$E$7:$E$399=\"2\")*('2. Assisted & Restricted Units'!$W$7:$W$399=\"MHP\")*('2. Assisted & Restricted Units'!$X$7:$X$399=\"40% AMI\"))","v":0},{"$f":"SUMPRODUCT(('2. Assisted & Restricted Units'!$E$7:$E$399=\"2\")*('2. Assisted & Restricted Units'!$W$7:$W$399=\"NonAssisted\")*('2. Assisted & Restricted Units'!$X$7:$X$399=\"40% AMI\"))","v":0},{"$f":"SUMPRODUCT(('2. Assisted & Restricted Units'!$E$7:$E$399=\"2\")*('2. Assisted & Restricted Units'!$W$7:$W$399=\"Other Restr\")*('2. Assisted & Restricted Units'!$X$7:$X$399=\"40% AMI\"))","v":0},{"$f":"SUMPRODUCT(('2. Assisted & Restricted Units'!$E$7:$E$399=\"2\")*('2. Assisted & Restricted Units'!$W$7:$W$399=\"RHCP-B\")*('2. Assisted & Restricted Units'!$X$7:$X$399=\"40% AMI\"))","v":0},{"$f":"SUMPRODUCT(('2. Assisted & Restricted Units'!$E$7:$E$399=\"2\")*('2. Assisted & Restricted Units'!$W$7:$W$399=\"SERA\")*('2. Assisted & Restricted Units'!$X$7:$X$399=\"40% AMI\"))","v":0},{"$f":"SUMPRODUCT(('2. Assisted & Restricted Units'!$E$7:$E$399=\"2\")*('2. Assisted & Restricted Units'!$W$7:$W$399=\"SUHRP\")*('2. Assisted & Restricted Units'!$X$7:$X$399=\"40% AMI\"))","v":0},{"$f":"SUMPRODUCT(('2. Assisted & Restricted Units'!$E$7:$E$399=\"2\")*('2. Assisted & Restricted Units'!$W$7:$W$399=\"TOD\")*('2. Assisted & Restricted Units'!$X$7:$X$399=\"40% AMI\"))","v":0},{"$f":"SUMPRODUCT(('2. Assisted & Restricted Units'!$E$7:$E$399=\"2\")*('2. Assisted & Restricted Units'!$W$7:$W$399=\"707-E\")*('2. Assisted & Restricted Units'!$X$7:$X$399=\"40% AMI\"))","v":0},{"$f":"SUMPRODUCT(('2. Assisted & Restricted Units'!$E$7:$E$399=\"2\")*('2. Assisted & Restricted Units'!$W$7:$W$399=\"707-N\")*('2. Assisted & Restricted Units'!$X$7:$X$399=\"40% AMI\"))","v":0}]
["2 Bedroom 45% AMI",{"$f":"SUMPRODUCT(('2. Assisted & Restricted Units'!$E$7:$E$399=\"2\")*('2. Assisted & Restricted Units'!$W$7:$W$399=\"CALDAP\")*('2. Assisted & Restricted Units'!$X$7:$X$399=\"45% AMI\"))","v":0},{"$f":"SUMPRODUCT(('2. Assisted & Restricted Units'!$E$7:$E$399=\"2\")*('2. Assisted & Restricted Units'!$W$7:$W$399=\"CHRP-R\")*('2. Assisted & Restricted Units'!$X$7:$X$399=\"45% AMI\"))","v":0},{"$f":"SUMPRODUCT(('2. Assisted & Restricted Units'!$E$7:$E$399=\"2\")*('2. Assisted & Restricted Units'!$W$7:$W$399=\"DDS\")*('2. Assisted & Restricted Units'!$X$7:$X$399=\"45% AMI\"))","v":0},{"$f":"SUMPRODUCT(('2. Assisted & Restricted Units'!$E$7:$E$399=\"2\")*('2. Assisted & Restricted Units'!$W$7:$W$399=\"DPRLP\")*('2. Assisted & Restricted Units'!$X$7:$X$399=\"45% AMI\"))","v":0},{"$f":"SUMPRODUCT(('2. Assisted & Restricted Units'!$E$7:$E$399=\"2\")*('2. Assisted & Restricted Units'!$W$7:$W$399=\"FHDP\")*('2. Assisted & Restricted Units'!$X$7:$X$399=\"45% AMI\"))","v":0},{"$f":"SUMPRODUCT(('2. Assisted & Restricted Units'!$E$7:$E$399=\"2\")*('2. Assisted & Restricted Units'!$W$7:$W$399=\"FMTW\")*('2. Assisted & Restricted Units'!$X$7:$X$399=\"45% AMI\"))","v":0},null,{"$f":"SUMPRODUCT(('2. Assisted & Restricted Units'!$E$7:$E$399=\"2\")*('2. Assisted & Restricted Units'!$W$7:$W$399=\"HOME\")*('2. Assisted & Restricted Units'!$X$7:$X$399=\"45% AMI\"))","v":0},{"$f":"SUMPRODUCT(('2. Assisted & Restricted Units'!$E$7:$E$399=\"2\")*('2. Assisted & Restricted Units'!$W$7:$W$399=\"Market Rate\")*('2. Assisted & Restricted Units'!$X$7:$X$399=\"45% AMI\"))","v":0},{"$f":"SUMPRODUCT(('2. Assisted & Restricted Units'!$E$7:$E$399=\"2\")*('2. Assisted & Restricted Units'!$W$7:$W$399=\"MHP\")*('2. Assisted & Restricted Units'!$X$7:$X$399=\"45% AMI\"))","v":0},{"$f":"SUMPRODUCT(('2. Assisted & Restricted Units'!$E$7:$E$399=\"2\")*('2. Assisted & Restricted Units'!$W$7:$W$399=\"NonAssisted\")*('2. Assisted & Restricted Units'!$X$7:$X$399=\"45% AMI\"))","v":0},{"$f":"SUMPRODUCT(('2. Assisted & Restricted Units'!$E$7:$E$399=\"2\")*('2. Assisted & Restricted Units'!$W$7:$W$399=\"Other Restr\")*('2. Assisted & Restricted Units'!$X$7:$X$399=\"45% AMI\"))","v":0},{"$f":"SUMPRODUCT(('2. Assisted & Restricted Units'!$E$7:$E$399=\"2\")*('2. Assisted & Restricted Units'!$W$7:$W$399=\"RHCP-B\")*('2. Assisted & Restricted Units'!$X$7:$X$399=\"45% AMI\"))","v":0},{"$f":"SUMPRODUCT(('2. Assisted & Restricted Units'!$E$7:$E$399=\"2\")*('2. Assisted & Restricted Units'!$W$7:$W$399=\"SERA\")*('2. Assisted & Restricted Units'!$X$7:$X$399=\"45% AMI\"))","v":0},{"$f":"SUMPRODUCT(('2. Assisted & Restricted Units'!$E$7:$E$399=\"2\")*('2. Assisted & Restricted Units'!$W$7:$W$399=\"SUHRP\")*('2. Assisted & Restricted Units'!$X$7:$X$399=\"45% AMI\"))","v":0},{"$f":"SUMPRODUCT(('2. Assisted & Restricted Units'!$E$7:$E$399=\"2\")*('2. Assisted & Restricted Units'!$W$7:$W$399=\"TOD\")*('2. Assisted & Restricted Units'!$X$7:$X$399=\"45% AMI\"))","v":0},{"$f":"SUMPRODUCT(('2. Assisted & Restricted Units'!$E$7:$E$399=\"2\")*('2. Assisted & Restricted Units'!$W$7:$W$399=\"707-E\")*('2. Assisted & Restricted Units'!$X$7:$X$399=\"45% AMI\"))","v":0},{"$f":"SUMPRODUCT(('2. Assisted & Restricted Units'!$E$7:$E$399=\"2\")*('2. Assisted & Restricted Units'!$W$7:$W$399=\"707-N\")*('2. Assisted & Restricted Units'!$X$7:$X$399=\"45% AMI\"))","v":0}]
["2 Bedroom 50% AMI",{"$f":"SUMPRODUCT(('2. Assisted & Restricted Units'!$E$7:$E$399=\"2\")*('2. Assisted & Restricted Units'!$W$7:$W$399=\"CALDAP\")*('2. Assisted & Restricted Units'!$X$7:$X$399=\"50% AMI\"))","v":0},{"$f":"SUMPRODUCT(('2. Assisted & Restricted Units'!$E$7:$E$399=\"2\")*('2. Assisted & Restricted Units'!$W$7:$W$399=\"CHRP-R\")*('2. Assisted & Restricted Units'!$X$7:$X$399=\"50% AMI\"))","v":0},{"$f":"SUMPRODUCT(('2. Assisted & Restricted Units'!$E$7:$E$399=\"2\")*('2. Assisted & Restricted Units'!$W$7:$W$399=\"DDS\")*('2. Assisted & Restricted Units'!$X$7:$X$399=\"50% AMI\"))","v":0},{"$f":"SUMPRODUCT(('2. Assisted & Restricted Units'!$E$7:$E$399=\"2\")*('2. Assisted & Restricted Units'!$W$7:$W$399=\"DPRLP\")*('2. Assisted & Restricted Units'!$X$7:$X$399=\"50% AMI\"))","v":0},{"$f":"SUMPRODUCT(('2. Assisted & Restricted Units'!$E$7:$E$399=\"2\")*('2. Assisted & Restricted Units'!$W$7:$W$399=\"FHDP\")*('2. Assisted & Restricted Units'!$X$7:$X$399=\"50% AMI\"))","v":0},{"$f":"SUMPRODUCT(('2. Assisted & Restricted Units'!$E$7:$E$399=\"2\")*('2. Assisted & Restricted Units'!$W$7:$W$399=\"FMTW\")*('2. Assisted & Restricted Units'!$X$7:$X$399=\"50% AMI\"))","v":0},null,{"$f":"SUMPRODUCT(('2. Assisted & Restricted Units'!$E$7:$E$399=\"2\")*('2. Assisted & Restricted Units'!$W$7:$W$399=\"HOME\")*('2. Assisted & Restricted Units'!$X$7:$X$399=\"50% AMI\"))","v":0},{"$f":"SUMPRODUCT(('2. Assisted & Restricted Units'!$E$7:$E$399=\"2\")*('2. Assisted & Restricted Units'!$W$7:$W$399=\"Market Rate\")*('2. Assisted & Restricted Units'!$X$7:$X$399=\"50% AMI\"))","v":0},{"$f":"SUMPRODUCT(('2. Assisted & Restricted Units'!$E$7:$E$399=\"2\")*('2. Assisted & Restricted Units'!$W$7:$W$399=\"MHP\")*('2. Assisted & Restricted Units'!$X$7:$X$399=\"50% AMI\"))","v":0},{"$f":"SUMPRODUCT(('2. Assisted & Restricted Units'!$E$7:$E$399=\"2\")*('2. Assisted & Restricted Units'!$W$7:$W$399=\"NonAssisted\")*('2. Assisted & Restricted Units'!$X$7:$X$399=\"50% AMI\"))","v":0},{"$f":"SUMPRODUCT(('2. Assisted & Restricted Units'!$E$7:$E$399=\"2\")*('2. Assisted & Restricted Units'!$W$7:$W$399=\"Other Restr\")*('2. Assisted & Restricted Units'!$X$7:$X$399=\"50% AMI\"))","v":0},{"$f":"SUMPRODUCT(('2. Assisted & Restricted Units'!$E$7:$E$399=\"2\")*('2. Assisted & Restricted Units'!$W$7:$W$399=\"RHCP-B\")*('2. Assisted & Restricted Units'!$X$7:$X$399=\"50% AMI\"))","v":0},{"$f":"SUMPRODUCT(('2. Assisted & Restricted Units'!$E$7:$E$399=\"2\")*('2. Assisted & Restricted Units'!$W$7:$W$399=\"SERA\")*('2. Assisted & Restricted Units'!$X$7:$X$399=\"50% AMI\"))","v":0},{"$f":"SUMPRODUCT(('2. Assisted & Restricted Units'!$E$7:$E$399=\"2\")*('2. Assisted & Restricted Units'!$W$7:$W$399=\"SUHRP\")*('2. Assisted & Restricted Units'!$X$7:$X$399=\"50% AMI\"))","v":0},{"$f":"SUMPRODUCT(('2. Assisted & Restricted Units'!$E$7:$E$399=\"2\")*('2. Assisted & Restricted Units'!$W$7:$W$399=\"TOD\")*('2. Assisted & Restricted Units'!$X$7:$X$399=\"50% AMI\"))","v":0},{"$f":"SUMPRODUCT(('2. Assisted & Restricted Units'!$E$7:$E$399=\"2\")*('2. Assisted & Restricted Units'!$W$7:$W$399=\"707-E\")*('2. Assisted & Restricted Units'!$X$7:$X$399=\"50% AMI\"))","v":0},{"$f":"SUMPRODUCT(('2. Assisted & Restricted Units'!$E$7:$E$399=\"2\")*('2. Assisted & Restricted Units'!$W$7:$W$399=\"707-N\")*('2. Assisted & Restricted Units'!$X$7:$X$399=\"50% AMI\"))","v":0}]
["2 Bedroom 55% AMI",{"$f":"SUMPRODUCT(('2. Assisted & Restricted Units'!$E$7:$E$399=\"2\")*('2. Assisted & Restricted Units'!$W$7:$W$399=\"CALDAP\")*('2. Assisted & Restricted Units'!$X$7:$X$399=\"55% AMI\"))","v":0},{"$f":"SUMPRODUCT(('2. Assisted & Restricted Units'!$E$7:$E$399=\"2\")*('2. Assisted & Restricted Units'!$W$7:$W$399=\"CHRP-R\")*('2. Assisted & Restricted Units'!$X$7:$X$399=\"55% AMI\"))","v":0},{"$f":"SUMPRODUCT(('2. Assisted & Restricted Units'!$E$7:$E$399=\"2\")*('2. Assisted & Restricted Units'!$W$7:$W$399=\"DDS\")*('2. Assisted & Restricted Units'!$X$7:$X$399=\"55% AMI\"))","v":0},{"$f":"SUMPRODUCT(('2. Assisted & Restricted Units'!$E$7:$E$399=\"2\")*('2. Assisted & Restricted Units'!$W$7:$W$399=\"DPRLP\")*('2. Assisted & Restricted Units'!$X$7:$X$399=\"55% AMI\"))","v":0},{"$f":"SUMPRODUCT(('2. Assisted & Restricted Units'!$E$7:$E$399=\"2\")*('2. Assisted & Restricted Units'!$W$7:$W$399=\"FHDP\")*('2. Assisted & Restricted Units'!$X$7:$X$399=\"55% AMI\"))","v":0},{"$f":"SUMPRODUCT(('2. Assisted & Restricted Units'!$E$7:$E$399=\"2\")*('2. Assisted & Restricted Units'!$W$7:$W$399=\"FMTW\")*('2. Assisted & Restricted Units'!$X$7:$X$399=\"55% AMI\"))","v":0},null,{"$f":"SUMPRODUCT(('2. Assisted & Restricted Units'!$E$7:$E$399=\"2\")*('2. Assisted & Restricted Units'!$W$7:$W$399=\"HOME\")*('2. Assisted & Restricted Units'!$X$7:$X$399=\"55% AMI\"))","v":0},{"$f":"SUMPRODUCT(('2. Assisted & Restricted Units'!$E$7:$E$399=\"2\")*('2. Assisted & Restricted Units'!$W$7:$W$399=\"Market Rate\")*('2. Assisted & Restricted Units'!$X$7:$X$399=\"55% AMI\"))","v":0},{"$f":"SUMPRODUCT(('2. Assisted & Restricted Units'!$E$7:$E$399=\"2\")*('2. Assisted & Restricted Units'!$W$7:$W$399=\"MHP\")*('2. Assisted & Restricted Units'!$X$7:$X$399=\"55% AMI\"))","v":0},{"$f":"SUMPRODUCT(('2. Assisted & Restricted Units'!$E$7:$E$399=\"2\")*('2. Assisted & Restricted Units'!$W$7:$W$399=\"NonAssisted\")*('2. Assisted & Restricted Units'!$X$7:$X$399=\"55% AMI\"))","v":0},{"$f":"SUMPRODUCT(('2. Assisted & Restricted Units'!$E$7:$E$399=\"2\")*('2. Assisted & Restricted Units'!$W$7:$W$399=\"Other Restr\")*('2. Assisted & Restricted Units'!$X$7:$X$399=\"55% AMI\"))","v":0},{"$f":"SUMPRODUCT(('2. Assisted & Restricted Units'!$E$7:$E$399=\"2\")*('2. Assisted & Restricted Units'!$W$7:$W$399=\"RHCP-B\")*('2. Assisted & Restricted Units'!$X$7:$X$399=\"55% AMI\"))","v":0},{"$f":"SUMPRODUCT(('2. Assisted & Restricted Units'!$E$7:$E$399=\"2\")*('2. Assisted & Restricted Units'!$W$7:$W$399=\"SERA\")*('2. Assisted & Restricted Units'!$X$7:$X$399=\"55% AMI\"))","v":0},{"$f":"SUMPRODUCT(('2. Assisted & Restricted Units'!$E$7:$E$399=\"2\")*('2. Assisted & Restricted Units'!$W$7:$W$399=\"SUHRP\")*('2. Assisted & Restricted Units'!$X$7:$X$399=\"55% AMI\"))","v":0},{"$f":"SUMPRODUCT(('2. Assisted & Restricted Units'!$E$7:$E$399=\"2\")*('2. Assisted & Restricted Units'!$W$7:$W$399=\"TOD\")*('2. Assisted & Restricted Units'!$X$7:$X$399=\"55% AMI\"))","v":0},{"$f":"SUMPRODUCT(('2. Assisted & Restricted Units'!$E$7:$E$399=\"2\")*('2. Assisted & Restricted Units'!$W$7:$W$399=\"707-E\")*('2. Assisted & Restricted Units'!$X$7:$X$399=\"55% AMI\"))","v":0},{"$f":"SUMPRODUCT(('2. Assisted & Restricted Units'!$E$7:$E$399=\"2\")*('2. Assisted & Restricted Units'!$W$7:$W$399=\"707-N\")*('2. Assisted & Restricted Units'!$X$7:$X$399=\"55% AMI\"))","v":0}]
["2 Bedroom 60% AMI",{"$f":"SUMPRODUCT(('2. Assisted & Restricted Units'!$E$7:$E$399=\"2\")*('2. Assisted & Restricted Units'!$W$7:$W$399=\"CALDAP\")*('2. Assisted & Restricted Units'!$X$7:$X$399=\"60% AMI\"))","v":0},{"$f":"SUMPRODUCT(('2. Assisted & Restricted Units'!$E$7:$E$399=\"2\")*('2. Assisted & Restricted Units'!$W$7:$W$399=\"CHRP-R\")*('2. Assisted & Restricted Units'!$X$7:$X$399=\"60% AMI\"))","v":0},{"$f":"SUMPRODUCT(('2. Assisted & Restricted Units'!$E$7:$E$399=\"2\")*('2. Assisted & Restricted Units'!$W$7:$W$399=\"DDS\")*('2. Assisted & Restricted Units'!$X$7:$X$399=\"60% AMI\"))","v":0},{"$f":"SUMPRODUCT(('2. Assisted & Restricted Units'!$E$7:$E$399=\"2\")*('2. Assisted & Restricted Units'!$W$7:$W$399=\"DPRLP\")*('2. Assisted & Restricted Units'!$X$7:$X$399=\"60% AMI\"))","v":0},{"$f":"SUMPRODUCT(('2. Assisted & Restricted Units'!$E$7:$E$399=\"2\")*('2. Assisted & Restricted Units'!$W$7:$W$399=\"FHDP\")*('2. Assisted & Restricted Units'!$X$7:$X$399=\"60% AMI\"))","v":0},{"$f":"SUMPRODUCT(('2. Assisted & Restricted Units'!$E$7:$E$399=\"2\")*('2. Assisted & Restricted Units'!$W$7:$W$399=\"FMTW\")*('2. Assisted & Restricted Units'!$X$7:$X$399=\"60% AMI\"))","v":0},null,{"$f":"SUMPRODUCT(('2. Assisted & Restricted Units'!$E$7:$E$399=\"2\")*('2. Assisted & Restricted Units'!$W$7:$W$399=\"HOME\")*('2. Assisted & Restricted Units'!$X$7:$X$399=\"60% AMI\"))","v":0},{"$f":"SUMPRODUCT(('2. Assisted & Restricted Units'!$E$7:$E$399=\"2\")*('2. Assisted & Restricted Units'!$W$7:$W$399=\"Market Rate\")*('2. Assisted & Restricted Units'!$X$7:$X$399=\"60% AMI\"))","v":0},{"$f":"SUMPRODUCT(('2. Assisted & Restricted Units'!$E$7:$E$399=\"2\")*('2. Assisted & Restricted Units'!$W$7:$W$399=\"MHP\")*('2. Assisted & Restricted Units'!$X$7:$X$399=\"60% AMI\"))","v":0},{"$f":"SUMPRODUCT(('2. Assisted & Restricted Units'!$E$7:$E$399=\"2\")*('2. Assisted & Restricted Units'!$W$7:$W$399=\"NonAssisted\")*('2. Assisted & Restricted Units'!$X$7:$X$399=\"60% AMI\"))","v":0},{"$f":"SUMPRODUCT(('2. Assisted & Restricted Units'!$E$7:$E$399=\"2\")*('2. Assisted & Restricted Units'!$W$7:$W$399=\"Other Restr\")*('2. Assisted & Restricted Units'!$X$7:$X$399=\"60% AMI\"))","v":0},{"$f":"SUMPRODUCT(('2. Assisted & Restricted Units'!$E$7:$E$399=\"2\")*('2. Assisted & Restricted Units'!$W$7:$W$399=\"RHCP-B\")*('2. Assisted & Restricted Units'!$X$7:$X$399=\"60% AMI\"))","v":0},{"$f":"SUMPRODUCT(('2. Assisted & Restricted Units'!$E$7:$E$399=\"2\")*('2. Assisted & Restricted Units'!$W$7:$W$399=\"SERA\")*('2. Assisted & Restricted Units'!$X$7:$X$399=\"60% AMI\"))","v":0},{"$f":"SUMPRODUCT(('2. Assisted & Restricted Units'!$E$7:$E$399=\"2\")*('2. Assisted & Restricted Units'!$W$7:$W$399=\"SUHRP\")*('2. Assisted & Restricted Units'!$X$7:$X$399=\"60% AMI\"))","v":0},{"$f":"SUMPRODUCT(('2. Assisted & Restricted Units'!$E$7:$E$399=\"2\")*('2. Assisted & Restricted Units'!$W$7:$W$399=\"TOD\")*('2. Assisted & Restricted Units'!$X$7:$X$399=\"60% AMI\"))","v":0},{"$f":"SUMPRODUCT(('2. Assisted & Restricted Units'!$E$7:$E$399=\"2\")*('2. Assisted & Restricted Units'!$W$7:$W$399=\"707-E\")*('2. Assisted & Restricted Units'!$X$7:$X$399=\"60% AMI\"))","v":0},{"$f":"SUMPRODUCT(('2. Assisted & Restricted Units'!$E$7:$E$399=\"2\")*('2. Assisted & Restricted Units'!$W$7:$W$399=\"707-N\")*('2. Assisted & Restricted Units'!$X$7:$X$399=\"60% AMI\"))","v":0}]
["2 Bedroom 80% AMI",{"$f":"SUMPRODUCT(('2. Assisted & Restricted Units'!$E$7:$E$399=\"2\")*('2. Assisted & Restricted Units'!$W$7:$W$399=\"CALDAP\")*('2. Assisted & Restricted Units'!$X$7:$X$399=\"80% AMI\"))","v":0},{"$f":"SUMPRODUCT(('2. Assisted & Restricted Units'!$E$7:$E$399=\"2\")*('2. Assisted & Restricted Units'!$W$7:$W$399=\"CHRP-R\")*('2. Assisted & Restricted Units'!$X$7:$X$399=\"80% AMI\"))","v":0},{"$f":"SUMPRODUCT(('2. Assisted & Restricted Units'!$E$7:$E$399=\"2\")*('2. Assisted & Restricted Units'!$W$7:$W$399=\"DDS\")*('2. Assisted & Restricted Units'!$X$7:$X$399=\"80% AMI\"))","v":0},{"$f":"SUMPRODUCT(('2. Assisted & Restricted Units'!$E$7:$E$399=\"2\")*('2. Assisted & Restricted Units'!$W$7:$W$399=\"DPRLP\")*('2. Assisted & Restricted Units'!$X$7:$X$399=\"80% AMI\"))","v":0},{"$f":"SUMPRODUCT(('2. Assisted & Restricted Units'!$E$7:$E$399=\"2\")*('2. Assisted & Restricted Units'!$W$7:$W$399=\"FHDP\")*('2. Assisted & Restricted Units'!$X$7:$X$399=\"80% AMI\"))","v":0},{"$f":"SUMPRODUCT(('2. Assisted & Restricted Units'!$E$7:$E$399=\"2\")*('2. Assisted & Restricted Units'!$W$7:$W$399=\"FMTW\")*('2. Assisted & Restricted Units'!$X$7:$X$399=\"80% AMI\"))","v":0},null,{"$f":"SUMPRODUCT(('2. Assisted & Restricted Units'!$E$7:$E$399=\"2\")*('2. Assisted & Restricted Units'!$W$7:$W$399=\"HOME\")*('2. Assisted & Restricted Units'!$X$7:$X$399=\"80% AMI\"))","v":0},{"$f":"SUMPRODUCT(('2. Assisted & Restricted Units'!$E$7:$E$399=\"2\")*('2. Assisted & Restricted Units'!$W$7:$W$399=\"Market Rate\")*('2. Assisted & Restricted Units'!$X$7:$X$399=\"80% AMI\"))","v":0},{"$f":"SUMPRODUCT(('2. Assisted & Restricted Units'!$E$7:$E$399=\"2\")*('2. Assisted & Restricted Units'!$W$7:$W$399=\"MHP\")*('2. Assisted & Restricted Units'!$X$7:$X$399=\"80% AMI\"))","v":0},{"$f":"SUMPRODUCT(('2. Assisted & Restricted Units'!$E$7:$E$399=\"2\")*('2. Assisted & Restricted Units'!$W$7:$W$399=\"NonAssisted\")*('2. Assisted & Restricted Units'!$X$7:$X$399=\"80% AMI\"))","v":0},{"$f":"SUMPRODUCT(('2. Assisted & Restricted Units'!$E$7:$E$399=\"2\")*('2. Assisted & Restricted Units'!$W$7:$W$399=\"Other Restr\")*('2. Assisted & Restricted Units'!$X$7:$X$399=\"80% AMI\"))","v":0},{"$f":"SUMPRODUCT(('2. Assisted & Restricted Units'!$E$7:$E$399=\"2\")*('2. Assisted & Restricted Units'!$W$7:$W$399=\"RHCP-B\")*('2. Assisted & Restricted Units'!$X$7:$X$399=\"80% AMI\"))","v":0},{"$f":"SUMPRODUCT(('2. Assisted & Restricted Units'!$E$7:$E$399=\"2\")*('2. Assisted & Restricted Units'!$W$7:$W$399=\"SERA\")*('2. Assisted & Restricted Units'!$X$7:$X$399=\"80% AMI\"))","v":0},{"$f":"SUMPRODUCT(('2. Assisted & Restricted Units'!$E$7:$E$399=\"2\")*('2. Assisted & Restricted Units'!$W$7:$W$399=\"SUHRP\")*('2. Assisted & Restricted Units'!$X$7:$X$399=\"80% AMI\"))","v":0},{"$f":"SUMPRODUCT(('2. Assisted & Restricted Units'!$E$7:$E$399=\"2\")*('2. Assisted & Restricted Units'!$W$7:$W$399=\"TOD\")*('2. Assisted & Restricted Units'!$X$7:$X$399=\"80% AMI\"))","v":0},{"$f":"SUMPRODUCT(('2. Assisted & Restricted Units'!$E$7:$E$399=\"2\")*('2. Assisted & Restricted Units'!$W$7:$W$399=\"707-E\")*('2. Assisted & Restricted Units'!$X$7:$X$399=\"80% AMI\"))","v":0},{"$f":"SUMPRODUCT(('2. Assisted & Restricted Units'!$E$7:$E$399=\"2\")*('2. Assisted & Restricted Units'!$W$7:$W$399=\"707-N\")*('2. Assisted & Restricted Units'!$X$7:$X$399=\"80% AMI\"))","v":0}]
["2 Bedroom 20% SMI",{"$f":"SUMPRODUCT(('2. Assisted & Restricted Units'!$E$7:$E$399=\"2\")*('2. Assisted & Restricted Units'!$W$7:$W$399=\"CALDAP\")*('2. Assisted & Restricted Units'!$X$7:$X$399=\"20% SMI\"))","v":0},{"$f":"SUMPRODUCT(('2. Assisted & Restricted Units'!$E$7:$E$399=\"2\")*('2. Assisted & Restricted Units'!$W$7:$W$399=\"CHRP-R\")*('2. Assisted & Restricted Units'!$X$7:$X$399=\"20% SMI\"))","v":0},{"$f":"SUMPRODUCT(('2. Assisted & Restricted Units'!$E$7:$E$399=\"2\")*('2. Assisted & Restricted Units'!$W$7:$W$399=\"DDS\")*('2. Assisted & Restricted Units'!$X$7:$X$399=\"20% SMI\"))","v":0},{"$f":"SUMPRODUCT(('2. Assisted & Restricted Units'!$E$7:$E$399=\"2\")*('2. Assisted & Restricted Units'!$W$7:$W$399=\"DPRLP\")*('2. Assisted & Restricted Units'!$X$7:$X$399=\"20% SMI\"))","v":0},{"$f":"SUMPRODUCT(('2. Assisted & Restricted Units'!$E$7:$E$399=\"2\")*('2. Assisted & Restricted Units'!$W$7:$W$399=\"FHDP\")*('2. Assisted & Restricted Units'!$X$7:$X$399=\"20% SMI\"))","v":0},{"$f":"SUMPRODUCT(('2. Assisted & Restricted Units'!$E$7:$E$399=\"2\")*('2. Assisted & Restricted Units'!$W$7:$W$399=\"FMTW\")*('2. Assisted & Restricted Units'!$X$7:$X$399=\"20% SMI\"))","v":0},null,{"$f":"SUMPRODUCT(('2. Assisted & Restricted Units'!$E$7:$E$399=\"2\")*('2. Assisted & Restricted Units'!$W$7:$W$399=\"HOME\")*('2. Assisted & Restricted Units'!$X$7:$X$399=\"20% SMI\"))","v":0},{"$f":"SUMPRODUCT(('2. Assisted & Restricted Units'!$E$7:$E$399=\"2\")*('2. Assisted & Restricted Units'!$W$7:$W$399=\"Market Rate\")*('2. Assisted & Restricted Units'!$X$7:$X$399=\"20% SMI\"))","v":0},{"$f":"SUMPRODUCT(('2. Assisted & Restricted Units'!$E$7:$E$399=\"2\")*('2. Assisted & Restricted Units'!$W$7:$W$399=\"MHP\")*('2. Assisted & Restricted Units'!$X$7:$X$399=\"20% SMI\"))","v":0},{"$f":"SUMPRODUCT(('2. Assisted & Restricted Units'!$E$7:$E$399=\"2\")*('2. Assisted & Restricted Units'!$W$7:$W$399=\"NonAssisted\")*('2. Assisted & Restricted Units'!$X$7:$X$399=\"20% SMI\"))","v":0},{"$f":"SUMPRODUCT(('2. Assisted & Restricted Units'!$E$7:$E$399=\"2\")*('2. Assisted & Restricted Units'!$W$7:$W$399=\"Other Restr\")*('2. Assisted & Restricted Units'!$X$7:$X$399=\"20% SMI\"))","v":0},{"$f":"SUMPRODUCT(('2. Assisted & Restricted Units'!$E$7:$E$399=\"2\")*('2. Assisted & Restricted Units'!$W$7:$W$399=\"RHCP-B\")*('2. Assisted & Restricted Units'!$X$7:$X$399=\"20% SMI\"))","v":0},{"$f":"SUMPRODUCT(('2. Assisted & Restricted Units'!$E$7:$E$399=\"2\")*('2. Assisted & Restricted Units'!$W$7:$W$399=\"SERA\")*('2. Assisted & Restricted Units'!$X$7:$X$399=\"20% SMI\"))","v":0},{"$f":"SUMPRODUCT(('2. Assisted & Restricted Units'!$E$7:$E$399=\"2\")*('2. Assisted & Restricted Units'!$W$7:$W$399=\"SUHRP\")*('2. Assisted & Restricted Units'!$X$7:$X$399=\"20% SMI\"))","v":0},{"$f":"SUMPRODUCT(('2. Assisted & Restricted Units'!$E$7:$E$399=\"2\")*('2. Assisted & Restricted Units'!$W$7:$W$399=\"TOD\")*('2. Assisted & Restricted Units'!$X$7:$X$399=\"20% SMI\"))","v":0},{"$f":"SUMPRODUCT(('2. Assisted & Restricted Units'!$E$7:$E$399=\"2\")*('2. Assisted & Restricted Units'!$W$7:$W$399=\"707-E\")*('2. Assisted & Restricted Units'!$X$7:$X$399=\"20% SMI\"))","v":0},{"$f":"SUMPRODUCT(('2. Assisted & Restricted Units'!$E$7:$E$399=\"2\")*('2. Assisted & Restricted Units'!$W$7:$W$399=\"707-N\")*('2. Assisted & Restricted Units'!$X$7:$X$399=\"20% SMI\"))","v":0}]
["2 Bedroom 25% SMI",{"$f":"SUMPRODUCT(('2. Assisted & Restricted Units'!$E$7:$E$399=\"2\")*('2. Assisted & Restricted Units'!$W$7:$W$399=\"CALDAP\")*('2. Assisted & Restricted Units'!$X$7:$X$399=\"25% SMI\"))","v":0},{"$f":"SUMPRODUCT(('2. Assisted & Restricted Units'!$E$7:$E$399=\"2\")*('2. Assisted & Restricted Units'!$W$7:$W$399=\"CHRP-R\")*('2. Assisted & Restricted Units'!$X$7:$X$399=\"25% SMI\"))","v":0},{"$f":"SUMPRODUCT(('2. Assisted & Restricted Units'!$E$7:$E$399=\"2\")*('2. Assisted & Restricted Units'!$W$7:$W$399=\"DDS\")*('2. Assisted & Restricted Units'!$X$7:$X$399=\"25% SMI\"))","v":0},{"$f":"SUMPRODUCT(('2. Assisted & Restricted Units'!$E$7:$E$399=\"2\")*('2. Assisted & Restricted Units'!$W$7:$W$399=\"DPRLP\")*('2. Assisted & Restricted Units'!$X$7:$X$399=\"25% SMI\"))","v":0},{"$f":"SUMPRODUCT(('2. Assisted & Restricted Units'!$E$7:$E$399=\"2\")*('2. Assisted & Restricted Units'!$W$7:$W$399=\"FHDP\")*('2. Assisted & Restricted Units'!$X$7:$X$399=\"25% SMI\"))","v":0},{"$f":"SUMPRODUCT(('2. Assisted & Restricted Units'!$E$7:$E$399=\"2\")*('2. Assisted & Restricted Units'!$W$7:$W$399=\"FMTW\")*('2. Assisted & Restricted Units'!$X$7:$X$399=\"25% SMI\"))","v":0},null,{"$f":"SUMPRODUCT(('2. Assisted & Restricted Units'!$E$7:$E$399=\"2\")*('2. Assisted & Restricted Units'!$W$7:$W$399=\"HOME\")*('2. Assisted & Restricted Units'!$X$7:$X$399=\"25% SMI\"))","v":0},{"$f":"SUMPRODUCT(('2. Assisted & Restricted Units'!$E$7:$E$399=\"2\")*('2. Assisted & Restricted Units'!$W$7:$W$399=\"Market Rate\")*('2. Assisted & Restricted Units'!$X$7:$X$399=\"25% SMI\"))","v":0},{"$f":"SUMPRODUCT(('2. Assisted & Restricted Units'!$E$7:$E$399=\"2\")*('2. Assisted & Restricted Units'!$W$7:$W$399=\"MHP\")*('2. Assisted & Restricted Units'!$X$7:$X$399=\"25% SMI\"))","v":0},{"$f":"SUMPRODUCT(('2. Assisted & Restricted Units'!$E$7:$E$399=\"2\")*('2. Assisted & Restricted Units'!$W$7:$W$399=\"NonAssisted\")*('2. Assisted & Restricted Units'!$X$7:$X$399=\"25% SMI\"))","v":0},{"$f":"SUMPRODUCT(('2. Assisted & Restricted Units'!$E$7:$E$399=\"2\")*('2. Assisted & Restricted Units'!$W$7:$W$399=\"Other Restr\")*('2. Assisted & Restricted Units'!$X$7:$X$399=\"25% SMI\"))","v":0},{"$f":"SUMPRODUCT(('2. Assisted & Restricted Units'!$E$7:$E$399=\"2\")*('2. Assisted & Restricted Units'!$W$7:$W$399=\"RHCP-B\")*('2. Assisted & Restricted Units'!$X$7:$X$399=\"25% SMI\"))","v":0},{"$f":"SUMPRODUCT(('2. Assisted & Restricted Units'!$E$7:$E$399=\"2\")*('2. Assisted & Restricted Units'!$W$7:$W$399=\"SERA\")*('2. Assisted & Restricted Units'!$X$7:$X$399=\"25% SMI\"))","v":0},{"$f":"SUMPRODUCT(('2. Assisted & Restricted Units'!$E$7:$E$399=\"2\")*('2. Assisted & Restricted Units'!$W$7:$W$399=\"SUHRP\")*('2. Assisted & Restricted Units'!$X$7:$X$399=\"25% SMI\"))","v":0},{"$f":"SUMPRODUCT(('2. Assisted & Restricted Units'!$E$7:$E$399=\"2\")*('2. Assisted & Restricted Units'!$W$7:$W$399=\"TOD\")*('2. Assisted & Restricted Units'!$X$7:$X$399=\"25% SMI\"))","v":0},{"$f":"SUMPRODUCT(('2. Assisted & Restricted Units'!$E$7:$E$399=\"2\")*('2. Assisted & Restricted Units'!$W$7:$W$399=\"707-E\")*('2. Assisted & Restricted Units'!$X$7:$X$399=\"25% SMI\"))","v":0},{"$f":"SUMPRODUCT(('2. Assisted & Restricted Units'!$E$7:$E$399=\"2\")*('2. Assisted & Restricted Units'!$W$7:$W$399=\"707-N\")*('2. Assisted & Restricted Units'!$X$7:$X$399=\"25% SMI\"))","v":0}]
["2 Bedroom 30% SMI",{"$f":"SUMPRODUCT(('2. Assisted & Restricted Units'!$E$7:$E$399=\"2\")*('2. Assisted & Restricted Units'!$W$7:$W$399=\"CALDAP\")*('2. Assisted & Restricted Units'!$X$7:$X$399=\"30% SMI\"))","v":0},{"$f":"SUMPRODUCT(('2. Assisted & Restricted Units'!$E$7:$E$399=\"2\")*('2. Assisted & Restricted Units'!$W$7:$W$399=\"CHRP-R\")*('2. Assisted & Restricted Units'!$X$7:$X$399=\"30% SMI\"))","v":0},{"$f":"SUMPRODUCT(('2. Assisted & Restricted Units'!$E$7:$E$399=\"2\")*('2. Assisted & Restricted Units'!$W$7:$W$399=\"DDS\")*('2. Assisted & Restricted Units'!$X$7:$X$399=\"30% SMI\"))","v":0},{"$f":"SUMPRODUCT(('2. Assisted & Restricted Units'!$E$7:$E$399=\"2\")*('2. Assisted & Restricted Units'!$W$7:$W$399=\"DPRLP\")*('2. Assisted & Restricted Units'!$X$7:$X$399=\"30% SMI\"))","v":0},{"$f":"SUMPRODUCT(('2. Assisted & Restricted Units'!$E$7:$E$399=\"2\")*('2. Assisted & Restricted Units'!$W$7:$W$399=\"FHDP\")*('2. Assisted & Restricted Units'!$X$7:$X$399=\"30% SMI\"))","v":0},{"$f":"SUMPRODUCT(('2. Assisted & Restricted Units'!$E$7:$E$399=\"2\")*('2. Assisted & Restricted Units'!$W$7:$W$399=\"FMTW\")*('2. Assisted & Restricted Units'!$X$7:$X$399=\"30% SMI\"))","v":0},null,{"$f":"SUMPRODUCT(('2. Assisted & Restricted Units'!$E$7:$E$399=\"2\")*('2. Assisted & Restricted Units'!$W$7:$W$399=\"HOME\")*('2. Assisted & Restricted Units'!$X$7:$X$399=\"30% SMI\"))","v":0},{"$f":"SUMPRODUCT(('2. Assisted & Restricted Units'!$E$7:$E$399=\"2\")*('2. Assisted & Restricted Units'!$W$7:$W$399=\"Market Rate\")*('2. Assisted & Restricted Units'!$X$7:$X$399=\"30% SMI\"))","v":0},{"$f":"SUMPRODUCT(('2. Assisted & Restricted Units'!$E$7:$E$399=\"2\")*('2. Assisted & Restricted Units'!$W$7:$W$399=\"MHP\")*('2. Assisted & Restricted Units'!$X$7:$X$399=\"30% SMI\"))","v":0},{"$f":"SUMPRODUCT(('2. Assisted & Restricted Units'!$E$7:$E$399=\"2\")*('2. Assisted & Restricted Units'!$W$7:$W$399=\"NonAssisted\")*('2. Assisted & Restricted Units'!$X$7:$X$399=\"30% SMI\"))","v":0},{"$f":"SUMPRODUCT(('2. Assisted & Restricted Units'!$E$7:$E$399=\"2\")*('2. Assisted & Restricted Units'!$W$7:$W$399=\"Other Restr\")*('2. Assisted & Restricted Units'!$X$7:$X$399=\"30% SMI\"))","v":0},{"$f":"SUMPRODUCT(('2. Assisted & Restricted Units'!$E$7:$E$399=\"2\")*('2. Assisted & Restricted Units'!$W$7:$W$399=\"RHCP-B\")*('2. Assisted & Restricted Units'!$X$7:$X$399=\"30% SMI\"))","v":0},{"$f":"SUMPRODUCT(('2. Assisted & Restricted Units'!$E$7:$E$399=\"2\")*('2. Assisted & Restricted Units'!$W$7:$W$399=\"SERA\")*('2. Assisted & Restricted Units'!$X$7:$X$399=\"30% SMI\"))","v":0},{"$f":"SUMPRODUCT(('2. Assisted & Restricted Units'!$E$7:$E$399=\"2\")*('2. Assisted & Restricted Units'!$W$7:$W$399=\"SUHRP\")*('2. Assisted & Restricted Units'!$X$7:$X$399=\"30% SMI\"))","v":0},{"$f":"SUMPRODUCT(('2. Assisted & Restricted Units'!$E$7:$E$399=\"2\")*('2. Assisted & Restricted Units'!$W$7:$W$399=\"TOD\")*('2. Assisted & Restricted Units'!$X$7:$X$399=\"30% SMI\"))","v":0},{"$f":"SUMPRODUCT(('2. Assisted & Restricted Units'!$E$7:$E$399=\"2\")*('2. Assisted & Restricted Units'!$W$7:$W$399=\"707-E\")*('2. Assisted & Restricted Units'!$X$7:$X$399=\"30% SMI\"))","v":0},{"$f":"SUMPRODUCT(('2. Assisted & Restricted Units'!$E$7:$E$399=\"2\")*('2. Assisted & Restricted Units'!$W$7:$W$399=\"707-N\")*('2. Assisted & Restricted Units'!$X$7:$X$399=\"30% SMI\"))","v":0}]
["2 Bedroom 35% SMI",{"$f":"SUMPRODUCT(('2. Assisted & Restricted Units'!$E$7:$E$399=\"2\")*('2. Assisted & Restricted Units'!$W$7:$W$399=\"CALDAP\")*('2. Assisted & Restricted Units'!$X$7:$X$399=\"35% SMI\"))","v":0},{"$f":"SUMPRODUCT(('2. Assisted & Restricted Units'!$E$7:$E$399=\"2\")*('2. Assisted & Restricted Units'!$W$7:$W$399=\"CHRP-R\")*('2. Assisted & Restricted Units'!$X$7:$X$399=\"35% SMI\"))","v":0},{"$f":"SUMPRODUCT(('2. Assisted & Restricted Units'!$E$7:$E$399=\"2\")*('2. Assisted & Restricted Units'!$W$7:$W$399=\"DDS\")*('2. Assisted & Restricted Units'!$X$7:$X$399=\"35% SMI\"))","v":0},{"$f":"SUMPRODUCT(('2. Assisted & Restricted Units'!$E$7:$E$399=\"2\")*('2. Assisted & Restricted Units'!$W$7:$W$399=\"DPRLP\")*('2. Assisted & Restricted Units'!$X$7:$X$399=\"35% SMI\"))","v":0},{"$f":"SUMPRODUCT(('2. Assisted & Restricted Units'!$E$7:$E$399=\"2\")*('2. Assisted & Restricted Units'!$W$7:$W$399=\"FHDP\")*('2. Assisted & Restricted Units'!$X$7:$X$399=\"35% SMI\"))","v":0},{"$f":"SUMPRODUCT(('2. Assisted & Restricted Units'!$E$7:$E$399=\"2\")*('2. Assisted & Restricted Units'!$W$7:$W$399=\"FMTW\")*('2. Assisted & Restricted Units'!$X$7:$X$399=\"35% SMI\"))","v":0},null,{"$f":"SUMPRODUCT(('2. Assisted & Restricted Units'!$E$7:$E$399=\"2\")*('2. Assisted & Restricted Units'!$W$7:$W$399=\"HOME\")*('2. Assisted & Restricted Units'!$X$7:$X$399=\"35% SMI\"))","v":0},{"$f":"SUMPRODUCT(('2. Assisted & Restricted Units'!$E$7:$E$399=\"2\")*('2. Assisted & Restricted Units'!$W$7:$W$399=\"Market Rate\")*('2. Assisted & Restricted Units'!$X$7:$X$399=\"35% SMI\"))","v":0},{"$f":"SUMPRODUCT(('2. Assisted & Restricted Units'!$E$7:$E$399=\"2\")*('2. Assisted & Restricted Units'!$W$7:$W$399=\"MHP\")*('2. Assisted & Restricted Units'!$X$7:$X$399=\"35% SMI\"))","v":0},{"$f":"SUMPRODUCT(('2. Assisted & Restricted Units'!$E$7:$E$399=\"2\")*('2. Assisted & Restricted Units'!$W$7:$W$399=\"NonAssisted\")*('2. Assisted & Restricted Units'!$X$7:$X$399=\"35% SMI\"))","v":0},{"$f":"SUMPRODUCT(('2. Assisted & Restricted Units'!$E$7:$E$399=\"2\")*('2. Assisted & Restricted Units'!$W$7:$W$399=\"Other Restr\")*('2. Assisted & Restricted Units'!$X$7:$X$399=\"35% SMI\"))","v":0},{"$f":"SUMPRODUCT(('2. Assisted & Restricted Units'!$E$7:$E$399=\"2\")*('2. Assisted & Restricted Units'!$W$7:$W$399=\"RHCP-B\")*('2. Assisted & Restricted Units'!$X$7:$X$399=\"35% SMI\"))","v":0},{"$f":"SUMPRODUCT(('2. Assisted & Restricted Units'!$E$7:$E$399=\"2\")*('2. Assisted & Restricted Units'!$W$7:$W$399=\"SERA\")*('2. Assisted & Restricted Units'!$X$7:$X$399=\"35% SMI\"))","v":0},{"$f":"SUMPRODUCT(('2. Assisted & Restricted Units'!$E$7:$E$399=\"2\")*('2. Assisted & Restricted Units'!$W$7:$W$399=\"SUHRP\")*('2. Assisted & Restricted Units'!$X$7:$X$399=\"35% SMI\"))","v":0},{"$f":"SUMPRODUCT(('2. Assisted & Restricted Units'!$E$7:$E$399=\"2\")*('2. Assisted & Restricted Units'!$W$7:$W$399=\"TOD\")*('2. Assisted & Restricted Units'!$X$7:$X$399=\"35% SMI\"))","v":0},{"$f":"SUMPRODUCT(('2. Assisted & Restricted Units'!$E$7:$E$399=\"2\")*('2. Assisted & Restricted Units'!$W$7:$W$399=\"707-E\")*('2. Assisted & Restricted Units'!$X$7:$X$399=\"35% SMI\"))","v":0},{"$f":"SUMPRODUCT(('2. Assisted & Restricted Units'!$E$7:$E$399=\"2\")*('2. Assisted & Restricted Units'!$W$7:$W$399=\"707-N\")*('2. Assisted & Restricted Units'!$X$7:$X$399=\"35% SMI\"))","v":0}]
["2 Bedroom 40% SMI",{"$f":"SUMPRODUCT(('2. Assisted & Restricted Units'!$E$7:$E$399=\"2\")*('2. Assisted & Restricted Units'!$W$7:$W$399=\"CALDAP\")*('2. Assisted & Restricted Units'!$X$7:$X$399=\"40% SMI\"))","v":0},{"$f":"SUMPRODUCT(('2. Assisted & Restricted Units'!$E$7:$E$399=\"2\")*('2. Assisted & Restricted Units'!$W$7:$W$399=\"CHRP-R\")*('2. Assisted & Restricted Units'!$X$7:$X$399=\"40% SMI\"))","v":0},{"$f":"SUMPRODUCT(('2. Assisted & Restricted Units'!$E$7:$E$399=\"2\")*('2. Assisted & Restricted Units'!$W$7:$W$399=\"DDS\")*('2. Assisted & Restricted Units'!$X$7:$X$399=\"40% SMI\"))","v":0},{"$f":"SUMPRODUCT(('2. Assisted & Restricted Units'!$E$7:$E$399=\"2\")*('2. Assisted & Restricted Units'!$W$7:$W$399=\"DPRLP\")*('2. Assisted & Restricted Units'!$X$7:$X$399=\"40% SMI\"))","v":0},{"$f":"SUMPRODUCT(('2. Assisted & Restricted Units'!$E$7:$E$399=\"2\")*('2. Assisted & Restricted Units'!$W$7:$W$399=\"FHDP\")*('2. Assisted & Restricted Units'!$X$7:$X$399=\"40% SMI\"))","v":0},{"$f":"SUMPRODUCT(('2. Assisted & Restricted Units'!$E$7:$E$399=\"2\")*('2. Assisted & Restricted Units'!$W$7:$W$399=\"FMTW\")*('2. Assisted & Restricted Units'!$X$7:$X$399=\"40% SMI\"))","v":0},null,{"$f":"SUMPRODUCT(('2. Assisted & Restricted Units'!$E$7:$E$399=\"2\")*('2. Assisted & Restricted Units'!$W$7:$W$399=\"HOME\")*('2. Assisted & Restricted Units'!$X$7:$X$399=\"40% SMI\"))","v":0},{"$f":"SUMPRODUCT(('2. Assisted & Restricted Units'!$E$7:$E$399=\"2\")*('2. Assisted & Restricted Units'!$W$7:$W$399=\"Market Rate\")*('2. Assisted & Restricted Units'!$X$7:$X$399=\"40% SMI\"))","v":0},{"$f":"SUMPRODUCT(('2. Assisted & Restricted Units'!$E$7:$E$399=\"2\")*('2. Assisted & Restricted Units'!$W$7:$W$399=\"MHP\")*('2. Assisted & Restricted Units'!$X$7:$X$399=\"40% SMI\"))","v":0},{"$f":"SUMPRODUCT(('2. Assisted & Restricted Units'!$E$7:$E$399=\"2\")*('2. Assisted & Restricted Units'!$W$7:$W$399=\"NonAssisted\")*('2. Assisted & Restricted Units'!$X$7:$X$399=\"40% SMI\"))","v":0},{"$f":"SUMPRODUCT(('2. Assisted & Restricted Units'!$E$7:$E$399=\"2\")*('2. Assisted & Restricted Units'!$W$7:$W$399=\"Other Restr\")*('2. Assisted & Restricted Units'!$X$7:$X$399=\"40% SMI\"))","v":0},{"$f":"SUMPRODUCT(('2. Assisted & Restricted Units'!$E$7:$E$399=\"2\")*('2. Assisted & Restricted Units'!$W$7:$W$399=\"RHCP-B\")*('2. Assisted & Restricted Units'!$X$7:$X$399=\"40% SMI\"))","v":0},{"$f":"SUMPRODUCT(('2. Assisted & Restricted Units'!$E$7:$E$399=\"2\")*('2. Assisted & Restricted Units'!$W$7:$W$399=\"SERA\")*('2. Assisted & Restricted Units'!$X$7:$X$399=\"40% SMI\"))","v":0},{"$f":"SUMPRODUCT(('2. Assisted & Restricted Units'!$E$7:$E$399=\"2\")*('2. Assisted & Restricted Units'!$W$7:$W$399=\"SUHRP\")*('2. Assisted & Restricted Units'!$X$7:$X$399=\"40% SMI\"))","v":0},{"$f":"SUMPRODUCT(('2. Assisted & Restricted Units'!$E$7:$E$399=\"2\")*('2. Assisted & Restricted Units'!$W$7:$W$399=\"TOD\")*('2. Assisted & Restricted Units'!$X$7:$X$399=\"40% SMI\"))","v":0},{"$f":"SUMPRODUCT(('2. Assisted & Restricted Units'!$E$7:$E$399=\"2\")*('2. Assisted & Restricted Units'!$W$7:$W$399=\"707-E\")*('2. Assisted & Restricted Units'!$X$7:$X$399=\"40% SMI\"))","v":0},{"$f":"SUMPRODUCT(('2. Assisted & Restricted Units'!$E$7:$E$399=\"2\")*('2. Assisted & Restricted Units'!$W$7:$W$399=\"707-N\")*('2. Assisted & Restricted Units'!$X$7:$X$399=\"40% SMI\"))","v":0}]
["2 Bedroom 45% SMI",{"$f":"SUMPRODUCT(('2. Assisted & Restricted Units'!$E$7:$E$399=\"2\")*('2. Assisted & Restricted Units'!$W$7:$W$399=\"CALDAP\")*('2. Assisted & Restricted Units'!$X$7:$X$399=\"45% SMI\"))","v":0},{"$f":"SUMPRODUCT(('2. Assisted & Restricted Units'!$E$7:$E$399=\"2\")*('2. Assisted & Restricted Units'!$W$7:$W$399=\"CHRP-R\")*('2. Assisted & Restricted Units'!$X$7:$X$399=\"45% SMI\"))","v":0},{"$f":"SUMPRODUCT(('2. Assisted & Restricted Units'!$E$7:$E$399=\"2\")*('2. Assisted & Restricted Units'!$W$7:$W$399=\"DDS\")*('2. Assisted & Restricted Units'!$X$7:$X$399=\"45% SMI\"))","v":0},{"$f":"SUMPRODUCT(('2. Assisted & Restricted Units'!$E$7:$E$399=\"2\")*('2. Assisted & Restricted Units'!$W$7:$W$399=\"DPRLP\")*('2. Assisted & Restricted Units'!$X$7:$X$399=\"45% SMI\"))","v":0},{"$f":"SUMPRODUCT(('2. Assisted & Restricted Units'!$E$7:$E$399=\"2\")*('2. Assisted & Restricted Units'!$W$7:$W$399=\"FHDP\")*('2. Assisted & Restricted Units'!$X$7:$X$399=\"45% SMI\"))","v":0},{"$f":"SUMPRODUCT(('2. Assisted & Restricted Units'!$E$7:$E$399=\"2\")*('2. Assisted & Restricted Units'!$W$7:$W$399=\"FMTW\")*('2. Assisted & Restricted Units'!$X$7:$X$399=\"45% SMI\"))","v":0},null,{"$f":"SUMPRODUCT(('2. Assisted & Restricted Units'!$E$7:$E$399=\"2\")*('2. Assisted & Restricted Units'!$W$7:$W$399=\"HOME\")*('2. Assisted & Restricted Units'!$X$7:$X$399=\"45% SMI\"))","v":0},{"$f":"SUMPRODUCT(('2. Assisted & Restricted Units'!$E$7:$E$399=\"2\")*('2. Assisted & Restricted Units'!$W$7:$W$399=\"Market Rate\")*('2. Assisted & Restricted Units'!$X$7:$X$399=\"45% SMI\"))","v":0},{"$f":"SUMPRODUCT(('2. Assisted & Restricted Units'!$E$7:$E$399=\"2\")*('2. Assisted & Restricted Units'!$W$7:$W$399=\"MHP\")*('2. Assisted & Restricted Units'!$X$7:$X$399=\"45% SMI\"))","v":0},{"$f":"SUMPRODUCT(('2. Assisted & Restricted Units'!$E$7:$E$399=\"2\")*('2. Assisted & Restricted Units'!$W$7:$W$399=\"NonAssisted\")*('2. Assisted & Restricted Units'!$X$7:$X$399=\"45% SMI\"))","v":0},{"$f":"SUMPRODUCT(('2. Assisted & Restricted Units'!$E$7:$E$399=\"2\")*('2. Assisted & Restricted Units'!$W$7:$W$399=\"Other Restr\")*('2. Assisted & Restricted Units'!$X$7:$X$399=\"45% SMI\"))","v":0},{"$f":"SUMPRODUCT(('2. Assisted & Restricted Units'!$E$7:$E$399=\"2\")*('2. Assisted & Restricted Units'!$W$7:$W$399=\"RHCP-B\")*('2. Assisted & Restricted Units'!$X$7:$X$399=\"45% SMI\"))","v":0},{"$f":"SUMPRODUCT(('2. Assisted & Restricted Units'!$E$7:$E$399=\"2\")*('2. Assisted & Restricted Units'!$W$7:$W$399=\"SERA\")*('2. Assisted & Restricted Units'!$X$7:$X$399=\"45% SMI\"))","v":0},{"$f":"SUMPRODUCT(('2. Assisted & Restricted Units'!$E$7:$E$399=\"2\")*('2. Assisted & Restricted Units'!$W$7:$W$399=\"SUHRP\")*('2. Assisted & Restricted Units'!$X$7:$X$399=\"45% SMI\"))","v":0},{"$f":"SUMPRODUCT(('2. Assisted & Restricted Units'!$E$7:$E$399=\"2\")*('2. Assisted & Restricted Units'!$W$7:$W$399=\"TOD\")*('2. Assisted & Restricted Units'!$X$7:$X$399=\"45% SMI\"))","v":0},{"$f":"SUMPRODUCT(('2. Assisted & Restricted Units'!$E$7:$E$399=\"2\")*('2. Assisted & Restricted Units'!$W$7:$W$399=\"707-E\")*('2. Assisted & Restricted Units'!$X$7:$X$399=\"45% SMI\"))","v":0},{"$f":"SUMPRODUCT(('2. Assisted & Restricted Units'!$E$7:$E$399=\"2\")*('2. Assisted & Restricted Units'!$W$7:$W$399=\"707-N\")*('2. Assisted & Restricted Units'!$X$7:$X$399=\"45% SMI\"))","v":0}]
["2 Bedroom 50% SMI",{"$f":"SUMPRODUCT(('2. Assisted & Restricted Units'!$E$7:$E$399=\"2\")*('2. Assisted & Restricted Units'!$W$7:$W$399=\"CALDAP\")*('2. Assisted & Restricted Units'!$X$7:$X$399=\"50% SMI\"))","v":0},{"$f":"SUMPRODUCT(('2. Assisted & Restricted Units'!$E$7:$E$399=\"2\")*('2. Assisted & Restricted Units'!$W$7:$W$399=\"CHRP-R\")*('2. Assisted & Restricted Units'!$X$7:$X$399=\"50% SMI\"))","v":0},{"$f":"SUMPRODUCT(('2. Assisted & Restricted Units'!$E$7:$E$399=\"2\")*('2. Assisted & Restricted Units'!$W$7:$W$399=\"DDS\")*('2. Assisted & Restricted Units'!$X$7:$X$399=\"50% SMI\"))","v":0},{"$f":"SUMPRODUCT(('2. Assisted & Restricted Units'!$E$7:$E$399=\"2\")*('2. Assisted & Restricted Units'!$W$7:$W$399=\"DPRLP\")*('2. Assisted & Restricted Units'!$X$7:$X$399=\"50% SMI\"))","v":0},{"$f":"SUMPRODUCT(('2. Assisted & Restricted Units'!$E$7:$E$399=\"2\")*('2. Assisted & Restricted Units'!$W$7:$W$399=\"FHDP\")*('2. Assisted & Restricted Units'!$X$7:$X$399=\"50% SMI\"))","v":0},{"$f":"SUMPRODUCT(('2. Assisted & Restricted Units'!$E$7:$E$399=\"2\")*('2. Assisted & Restricted Units'!$W$7:$W$399=\"FMTW\")*('2. Assisted & Restricted Units'!$X$7:$X$399=\"50% SMI\"))","v":0},null,{"$f":"SUMPRODUCT(('2. Assisted & Restricted Units'!$E$7:$E$399=\"2\")*('2. Assisted & Restricted Units'!$W$7:$W$399=\"HOME\")*('2. Assisted & Restricted Units'!$X$7:$X$399=\"50% SMI\"))","v":0},{"$f":"SUMPRODUCT(('2. Assisted & Restricted Units'!$E$7:$E$399=\"2\")*('2. Assisted & Restricted Units'!$W$7:$W$399=\"Market Rate\")*('2. Assisted & Restricted Units'!$X$7:$X$399=\"50% SMI\"))","v":0},{"$f":"SUMPRODUCT(('2. Assisted & Restricted Units'!$E$7:$E$399=\"2\")*('2. Assisted & Restricted Units'!$W$7:$W$399=\"MHP\")*('2. Assisted & Restricted Units'!$X$7:$X$399=\"50% SMI\"))","v":0},{"$f":"SUMPRODUCT(('2. Assisted & Restricted Units'!$E$7:$E$399=\"2\")*('2. Assisted & Restricted Units'!$W$7:$W$399=\"NonAssisted\")*('2. Assisted & Restricted Units'!$X$7:$X$399=\"50% SMI\"))","v":0},{"$f":"SUMPRODUCT(('2. Assisted & Restricted Units'!$E$7:$E$399=\"2\")*('2. Assisted & Restricted Units'!$W$7:$W$399=\"Other Restr\")*('2. Assisted & Restricted Units'!$X$7:$X$399=\"50% SMI\"))","v":0},{"$f":"SUMPRODUCT(('2. Assisted & Restricted Units'!$E$7:$E$399=\"2\")*('2. Assisted & Restricted Units'!$W$7:$W$399=\"RHCP-B\")*('2. Assisted & Restricted Units'!$X$7:$X$399=\"50% SMI\"))","v":0},{"$f":"SUMPRODUCT(('2. Assisted & Restricted Units'!$E$7:$E$399=\"2\")*('2. Assisted & Restricted Units'!$W$7:$W$399=\"SERA\")*('2. Assisted & Restricted Units'!$X$7:$X$399=\"50% SMI\"))","v":0},{"$f":"SUMPRODUCT(('2. Assisted & Restricted Units'!$E$7:$E$399=\"2\")*('2. Assisted & Restricted Units'!$W$7:$W$399=\"SUHRP\")*('2. Assisted & Restricted Units'!$X$7:$X$399=\"50% SMI\"))","v":0},{"$f":"SUMPRODUCT(('2. Assisted & Restricted Units'!$E$7:$E$399=\"2\")*('2. Assisted & Restricted Units'!$W$7:$W$399=\"TOD\")*('2. Assisted & Restricted Units'!$X$7:$X$399=\"50% SMI\"))","v":0},{"$f":"SUMPRODUCT(('2. Assisted & Restricted Units'!$E$7:$E$399=\"2\")*('2. Assisted & Restricted Units'!$W$7:$W$399=\"707-E\")*('2. Assisted & Restricted Units'!$X$7:$X$399=\"50% SMI\"))","v":0},{"$f":"SUMPRODUCT(('2. Assisted & Restricted Units'!$E$7:$E$399=\"2\")*('2. Assisted & Restricted Units'!$W$7:$W$399=\"707-N\")*('2. Assisted & Restricted Units'!$X$7:$X$399=\"50% SMI\"))","v":0}]
["2 Bedroom 100% SMI",{"$f":"SUMPRODUCT(('2. Assisted & Restricted Units'!$E$7:$E$399=\"2\")*('2. Assisted & Restricted Units'!$W$7:$W$399=\"CALDAP\")*('2. Assisted & Restricted Units'!$X$7:$X$399=\"100% SMI\"))","v":0},{"$f":"SUMPRODUCT(('2. Assisted & Restricted Units'!$E$7:$E$399=\"2\")*('2. Assisted & Restricted Units'!$W$7:$W$399=\"CHRP-R\")*('2. Assisted & Restricted Units'!$X$7:$X$399=\"100% SMI\"))","v":0},{"$f":"SUMPRODUCT(('2. Assisted & Restricted Units'!$E$7:$E$399=\"2\")*('2. Assisted & Restricted Units'!$W$7:$W$399=\"DDS\")*('2. Assisted & Restricted Units'!$X$7:$X$399=\"100% SMI\"))","v":0},{"$f":"SUMPRODUCT(('2. Assisted & Restricted Units'!$E$7:$E$399=\"2\")*('2. Assisted & Restricted Units'!$W$7:$W$399=\"DPRLP\")*('2. Assisted & Restricted Units'!$X$7:$X$399=\"100% SMI\"))","v":0},{"$f":"SUMPRODUCT(('2. Assisted & Restricted Units'!$E$7:$E$399=\"2\")*('2. Assisted & Restricted Units'!$W$7:$W$399=\"FHDP\")*('2. Assisted & Restricted Units'!$X$7:$X$399=\"100% SMI\"))","v":0},{"$f":"SUMPRODUCT(('2. Assisted & Restricted Units'!$E$7:$E$399=\"2\")*('2. Assisted & Restricted Units'!$W$7:$W$399=\"FMTW\")*('2. Assisted & Restricted Units'!$X$7:$X$399=\"100% SMI\"))","v":0},null,{"$f":"SUMPRODUCT(('2. Assisted & Restricted Units'!$E$7:$E$399=\"2\")*('2. Assisted & Restricted Units'!$W$7:$W$399=\"HOME\")*('2. Assisted & Restricted Units'!$X$7:$X$399=\"100% SMI\"))","v":0},{"$f":"SUMPRODUCT(('2. Assisted & Restricted Units'!$E$7:$E$399=\"2\")*('2. Assisted & Restricted Units'!$W$7:$W$399=\"Market Rate\")*('2. Assisted & Restricted Units'!$X$7:$X$399=\"100% SMI\"))","v":0},{"$f":"SUMPRODUCT(('2. Assisted & Restricted Units'!$E$7:$E$399=\"2\")*('2. Assisted & Restricted Units'!$W$7:$W$399=\"MHP\")*('2. Assisted & Restricted Units'!$X$7:$X$399=\"100% SMI\"))","v":0},{"$f":"SUMPRODUCT(('2. Assisted & Restricted Units'!$E$7:$E$399=\"2\")*('2. Assisted & Restricted Units'!$W$7:$W$399=\"NonAssisted\")*('2. Assisted & Restricted Units'!$X$7:$X$399=\"100% SMI\"))","v":0},{"$f":"SUMPRODUCT(('2. Assisted & Restricted Units'!$E$7:$E$399=\"2\")*('2. Assisted & Restricted Units'!$W$7:$W$399=\"Other Restr\")*('2. Assisted & Restricted Units'!$X$7:$X$399=\"100% SMI\"))","v":0},{"$f":"SUMPRODUCT(('2. Assisted & Restricted Units'!$E$7:$E$399=\"2\")*('2. Assisted & Restricted Units'!$W$7:$W$399=\"RHCP-B\")*('2. Assisted & Restricted Units'!$X$7:$X$399=\"100% SMI\"))","v":0},{"$f":"SUMPRODUCT(('2. Assisted & Restricted Units'!$E$7:$E$399=\"2\")*('2. Assisted & Restricted Units'!$W$7:$W$399=\"SERA\")*('2. Assisted & Restricted Units'!$X$7:$X$399=\"100% SMI\"))","v":0},{"$f":"SUMPRODUCT(('2. Assisted & Restricted Units'!$E$7:$E$399=\"2\")*('2. Assisted & Restricted Units'!$W$7:$W$399=\"SUHRP\")*('2. Assisted & Restricted Units'!$X$7:$X$399=\"100% SMI\"))","v":0},{"$f":"SUMPRODUCT(('2. Assisted & Restricted Units'!$E$7:$E$399=\"2\")*('2. Assisted & Restricted Units'!$W$7:$W$399=\"TOD\")*('2. Assisted & Restricted Units'!$X$7:$X$399=\"100% SMI\"))","v":0},{"$f":"SUMPRODUCT(('2. Assisted & Restricted Units'!$E$7:$E$399=\"2\")*('2. Assisted & Restricted Units'!$W$7:$W$399=\"707-E\")*('2. Assisted & Restricted Units'!$X$7:$X$399=\"100% SMI\"))","v":0},{"$f":"SUMPRODUCT(('2. Assisted & Restricted Units'!$E$7:$E$399=\"2\")*('2. Assisted & Restricted Units'!$W$7:$W$399=\"707-N\")*('2. Assisted & Restricted Units'!$X$7:$X$399=\"100% SMI\"))","v":0}]
["2 Bedroom VLI HOME",{"$f":"SUMPRODUCT(('2. Assisted & Restricted Units'!$E$7:$E$399=\"2\")*('2. Assisted & Restricted Units'!$W$7:$W$399=\"CALDAP\")*('2. Assisted & Restricted Units'!$X$7:$X$399=\"VLI HOME\"))","v":0},{"$f":"SUMPRODUCT(('2. Assisted & Restricted Units'!$E$7:$E$399=\"2\")*('2. Assisted & Restricted Units'!$W$7:$W$399=\"CHRP-R\")*('2. Assisted & Restricted Units'!$X$7:$X$399=\"VLI HOME\"))","v":0},{"$f":"SUMPRODUCT(('2. Assisted & Restricted Units'!$E$7:$E$399=\"2\")*('2. Assisted & Restricted Units'!$W$7:$W$399=\"DDS\")*('2. Assisted & Restricted Units'!$X$7:$X$399=\"VLI HOME\"))","v":0},{"$f":"SUMPRODUCT(('2. Assisted & Restricted Units'!$E$7:$E$399=\"2\")*('2. Assisted & Restricted Units'!$W$7:$W$399=\"DPRLP\")*('2. Assisted & Restricted Units'!$X$7:$X$399=\"VLI HOME\"))","v":0},{"$f":"SUMPRODUCT(('2. Assisted & Restricted Units'!$E$7:$E$399=\"2\")*('2. Assisted & Restricted Units'!$W$7:$W$399=\"FHDP\")*('2. Assisted & Restricted Units'!$X$7:$X$399=\"VLI HOME\"))","v":0},{"$f":"SUMPRODUCT(('2. Assisted & Restricted Units'!$E$7:$E$399=\"2\")*('2. Assisted & Restricted Units'!$W$7:$W$399=\"FMTW\")*('2. Assisted & Restricted Units'!$X$7:$X$399=\"VLI HOME\"))","v":0},null,{"$f":"SUMPRODUCT(('2. Assisted & Restricted Units'!$E$7:$E$399=\"2\")*('2. Assisted & Restricted Units'!$W$7:$W$399=\"HOME\")*('2. Assisted & Restricted Units'!$X$7:$X$399=\"VLI HOME\"))","v":0},{"$f":"SUMPRODUCT(('2. Assisted & Restricted Units'!$E$7:$E$399=\"2\")*('2. Assisted & Restricted Units'!$W$7:$W$399=\"Market Rate\")*('2. Assisted & Restricted Units'!$X$7:$X$399=\"VLI HOME\"))","v":0},{"$f":"SUMPRODUCT(('2. Assisted & Restricted Units'!$E$7:$E$399=\"2\")*('2. Assisted & Restricted Units'!$W$7:$W$399=\"MHP\")*('2. Assisted & Restricted Units'!$X$7:$X$399=\"VLI HOME\"))","v":0},{"$f":"SUMPRODUCT(('2. Assisted & Restricted Units'!$E$7:$E$399=\"2\")*('2. Assisted & Restricted Units'!$W$7:$W$399=\"NonAssisted\")*('2. Assisted & Restricted Units'!$X$7:$X$399=\"VLI HOME\"))","v":0},{"$f":"SUMPRODUCT(('2. Assisted & Restricted Units'!$E$7:$E$399=\"2\")*('2. Assisted & Restricted Units'!$W$7:$W$399=\"Other Restr\")*('2. Assisted & Restricted Units'!$X$7:$X$399=\"VLI HOME\"))","v":0},{"$f":"SUMPRODUCT(('2. Assisted & Restricted Units'!$E$7:$E$399=\"2\")*('2. Assisted & Restricted Units'!$W$7:$W$399=\"RHCP-B\")*('2. Assisted & Restricted Units'!$X$7:$X$399=\"VLI HOME\"))","v":0},{"$f":"SUMPRODUCT(('2. Assisted & Restricted Units'!$E$7:$E$399=\"2\")*('2. Assisted & Restricted Units'!$W$7:$W$399=\"SERA\")*('2. Assisted & Restricted Units'!$X$7:$X$399=\"VLI HOME\"))","v":0},{"$f":"SUMPRODUCT(('2. Assisted & Restricted Units'!$E$7:$E$399=\"2\")*('2. Assisted & Restricted Units'!$W$7:$W$399=\"SUHRP\")*('2. Assisted & Restricted Units'!$X$7:$X$399=\"VLI HOME\"))","v":0},{"$f":"SUMPRODUCT(('2. Assisted & Restricted Units'!$E$7:$E$399=\"2\")*('2. Assisted & Restricted Units'!$W$7:$W$399=\"TOD\")*('2. Assisted & Restricted Units'!$X$7:$X$399=\"VLI HOME\"))","v":0},{"$f":"SUMPRODUCT(('2. Assisted & Restricted Units'!$E$7:$E$399=\"2\")*('2. Assisted & Restricted Units'!$W$7:$W$399=\"707-E\")*('2. Assisted & Restricted Units'!$X$7:$X$399=\"VLI HOME\"))","v":0},{"$f":"SUMPRODUCT(('2. Assisted & Restricted Units'!$E$7:$E$399=\"2\")*('2. Assisted & Restricted Units'!$W$7:$W$399=\"707-N\")*('2. Assisted & Restricted Units'!$X$7:$X$399=\"VLI HOME\"))","v":0}]
["2 Bedroom LI HOME",{"$f":"SUMPRODUCT(('2. Assisted & Restricted Units'!$E$7:$E$399=\"2\")*('2. Assisted & Restricted Units'!$W$7:$W$399=\"CALDAP\")*('2. Assisted & Restricted Units'!$X$7:$X$399=\"LI HOME\"))","v":0},{"$f":"SUMPRODUCT(('2. Assisted & Restricted Units'!$E$7:$E$399=\"2\")*('2. Assisted & Restricted Units'!$W$7:$W$399=\"CHRP-R\")*('2. Assisted & Restricted Units'!$X$7:$X$399=\"LI HOME\"))","v":0},{"$f":"SUMPRODUCT(('2. Assisted & Restricted Units'!$E$7:$E$399=\"2\")*('2. Assisted & Restricted Units'!$W$7:$W$399=\"DDS\")*('2. Assisted & Restricted Units'!$X$7:$X$399=\"LI HOME\"))","v":0},{"$f":"SUMPRODUCT(('2. Assisted & Restricted Units'!$E$7:$E$399=\"2\")*('2. Assisted & Restricted Units'!$W$7:$W$399=\"DPRLP\")*('2. Assisted & Restricted Units'!$X$7:$X$399=\"LI HOME\"))","v":0},{"$f":"SUMPRODUCT(('2. Assisted & Restricted Units'!$E$7:$E$399=\"2\")*('2. Assisted & Restricted Units'!$W$7:$W$399=\"FHDP\")*('2. Assisted & Restricted Units'!$X$7:$X$399=\"LI HOME\"))","v":0},{"$f":"SUMPRODUCT(('2. Assisted & Restricted Units'!$E$7:$E$399=\"2\")*('2. Assisted & Restricted Units'!$W$7:$W$399=\"FMTW\")*('2. Assisted & Restricted Units'!$X$7:$X$399=\"LI HOME\"))","v":0},null,{"$f":"SUMPRODUCT(('2. Assisted & Restricted Units'!$E$7:$E$399=\"2\")*('2. Assisted & Restricted Units'!$W$7:$W$399=\"HOME\")*('2. Assisted & Restricted Units'!$X$7:$X$399=\"LI HOME\"))","v":0},{"$f":"SUMPRODUCT(('2. Assisted & Restricted Units'!$E$7:$E$399=\"2\")*('2. Assisted & Restricted Units'!$W$7:$W$399=\"Market Rate\")*('2. Assisted & Restricted Units'!$X$7:$X$399=\"LI HOME\"))","v":0},{"$f":"SUMPRODUCT(('2. Assisted & Restricted Units'!$E$7:$E$399=\"2\")*('2. Assisted & Restricted Units'!$W$7:$W$399=\"MHP\")*('2. Assisted & Restricted Units'!$X$7:$X$399=\"LI HOME\"))","v":0},{"$f":"SUMPRODUCT(('2. Assisted & Restricted Units'!$E$7:$E$399=\"2\")*('2. Assisted & Restricted Units'!$W$7:$W$399=\"NonAssisted\")*('2. Assisted & Restricted Units'!$X$7:$X$399=\"LI HOME\"))","v":0},{"$f":"SUMPRODUCT(('2. Assisted & Restricted Units'!$E$7:$E$399=\"2\")*('2. Assisted & Restricted Units'!$W$7:$W$399=\"Other Restr\")*('2. Assisted & Restricted Units'!$X$7:$X$399=\"LI HOME\"))","v":0},{"$f":"SUMPRODUCT(('2. Assisted & Restricted Units'!$E$7:$E$399=\"2\")*('2. Assisted & Restricted Units'!$W$7:$W$399=\"RHCP-B\")*('2. Assisted & Restricted Units'!$X$7:$X$399=\"LI HOME\"))","v":0},{"$f":"SUMPRODUCT(('2. Assisted & Restricted Units'!$E$7:$E$399=\"2\")*('2. Assisted & Restricted Units'!$W$7:$W$399=\"SERA\")*('2. Assisted & Restricted Units'!$X$7:$X$399=\"LI HOME\"))","v":0},{"$f":"SUMPRODUCT(('2. Assisted & Restricted Units'!$E$7:$E$399=\"2\")*('2. Assisted & Restricted Units'!$W$7:$W$399=\"SUHRP\")*('2. Assisted & Restricted Units'!$X$7:$X$399=\"LI HOME\"))","v":0},{"$f":"SUMPRODUCT(('2. Assisted & Restricted Units'!$E$7:$E$399=\"2\")*('2. Assisted & Restricted Units'!$W$7:$W$399=\"TOD\")*('2. Assisted & Restricted Units'!$X$7:$X$399=\"LI HOME\"))","v":0},{"$f":"SUMPRODUCT(('2. Assisted & Restricted Units'!$E$7:$E$399=\"2\")*('2. Assisted & Restricted Units'!$W$7:$W$399=\"707-E\")*('2. Assisted & Restricted Units'!$X$7:$X$399=\"LI HOME\"))","v":0},{"$f":"SUMPRODUCT(('2. Assisted & Restricted Units'!$E$7:$E$399=\"2\")*('2. Assisted & Restricted Units'!$W$7:$W$399=\"707-N\")*('2. Assisted & Restricted Units'!$X$7:$X$399=\"LI HOME\"))","v":0}]
["2 Bedroom VLI State",{"$f":"SUMPRODUCT(('2. Assisted & Restricted Units'!$E$7:$E$399=\"2\")*('2. Assisted & Restricted Units'!$W$7:$W$399=\"CALDAP\")*('2. Assisted & Restricted Units'!$X$7:$X$399=\"VLI State\"))","v":0},{"$f":"SUMPRODUCT(('2. Assisted & Restricted Units'!$E$7:$E$399=\"2\")*('2. Assisted & Restricted Units'!$W$7:$W$399=\"CHRP-R\")*('2. Assisted & Restricted Units'!$X$7:$X$399=\"VLI State\"))","v":0},{"$f":"SUMPRODUCT(('2. Assisted & Restricted Units'!$E$7:$E$399=\"2\")*('2. Assisted & Restricted Units'!$W$7:$W$399=\"DDS\")*('2. Assisted & Restricted Units'!$X$7:$X$399=\"VLI State\"))","v":0},{"$f":"SUMPRODUCT(('2. Assisted & Restricted Units'!$E$7:$E$399=\"2\")*('2. Assisted & Restricted Units'!$W$7:$W$399=\"DPRLP\")*('2. Assisted & Restricted Units'!$X$7:$X$399=\"VLI State\"))","v":0},{"$f":"SUMPRODUCT(('2. Assisted & Restricted Units'!$E$7:$E$399=\"2\")*('2. Assisted & Restricted Units'!$W$7:$W$399=\"FHDP\")*('2. Assisted & Restricted Units'!$X$7:$X$399=\"VLI State\"))","v":0},{"$f":"SUMPRODUCT(('2. Assisted & Restricted Units'!$E$7:$E$399=\"2\")*('2. Assisted & Restricted Units'!$W$7:$W$399=\"FMTW\")*('2. Assisted & Restricted Units'!$X$7:$X$399=\"VLI State\"))","v":0},null,{"$f":"SUMPRODUCT(('2. Assisted & Restricted Units'!$E$7:$E$399=\"2\")*('2. Assisted & Restricted Units'!$W$7:$W$399=\"HOME\")*('2. Assisted & Restricted Units'!$X$7:$X$399=\"VLI State\"))","v":0},{"$f":"SUMPRODUCT(('2. Assisted & Restricted Units'!$E$7:$E$399=\"2\")*('2. Assisted & Restricted Units'!$W$7:$W$399=\"Market Rate\")*('2. Assisted & Restricted Units'!$X$7:$X$399=\"VLI State\"))","v":0},{"$f":"SUMPRODUCT(('2. Assisted & Restricted Units'!$E$7:$E$399=\"2\")*('2. Assisted & Restricted Units'!$W$7:$W$399=\"MHP\")*('2. Assisted & Restricted Units'!$X$7:$X$399=\"VLI State\"))","v":0},{"$f":"SUMPRODUCT(('2. Assisted & Restricted Units'!$E$7:$E$399=\"2\")*('2. Assisted & Restricted Units'!$W$7:$W$399=\"NonAssisted\")*('2. Assisted & Restricted Units'!$X$7:$X$399=\"VLI State\"))","v":0},{"$f":"SUMPRODUCT(('2. Assisted & Restricted Units'!$E$7:$E$399=\"2\")*('2. Assisted & Restricted Units'!$W$7:$W$399=\"Other Restr\")*('2. Assisted & Restricted Units'!$X$7:$X$399=\"VLI State\"))","v":0},{"$f":"SUMPRODUCT(('2. Assisted & Restricted Units'!$E$7:$E$399=\"2\")*('2. Assisted & Restricted Units'!$W$7:$W$399=\"RHCP-B\")*('2. Assisted & Restricted Units'!$X$7:$X$399=\"VLI State\"))","v":0},{"$f":"SUMPRODUCT(('2. Assisted & Restricted Units'!$E$7:$E$399=\"2\")*('2. Assisted & Restricted Units'!$W$7:$W$399=\"SERA\")*('2. Assisted & Restricted Units'!$X$7:$X$399=\"VLI State\"))","v":0},{"$f":"SUMPRODUCT(('2. Assisted & Restricted Units'!$E$7:$E$399=\"2\")*('2. Assisted & Restricted Units'!$W$7:$W$399=\"SUHRP\")*('2. Assisted & Restricted Units'!$X$7:$X$399=\"VLI State\"))","v":0},{"$f":"SUMPRODUCT(('2. Assisted & Restricted Units'!$E$7:$E$399=\"2\")*('2. Assisted & Restricted Units'!$W$7:$W$399=\"TOD\")*('2. Assisted & Restricted Units'!$X$7:$X$399=\"VLI State\"))","v":0},{"$f":"SUMPRODUCT(('2. Assisted & Restricted Units'!$E$7:$E$399=\"2\")*('2. Assisted & Restricted Units'!$W$7:$W$399=\"707-E\")*('2. Assisted & Restricted Units'!$X$7:$X$399=\"VLI State\"))","v":0},{"$f":"SUMPRODUCT(('2. Assisted & Restricted Units'!$E$7:$E$399=\"2\")*('2. Assisted & Restricted Units'!$W$7:$W$399=\"707-N\")*('2. Assisted & Restricted Units'!$X$7:$X$399=\"VLI State\"))","v":0}]
["2 Bedroom LI State",{"$f":"SUMPRODUCT(('2. Assisted & Restricted Units'!$E$7:$E$399=\"2\")*('2. Assisted & Restricted Units'!$W$7:$W$399=\"CALDAP\")*('2. Assisted & Restricted Units'!$X$7:$X$399=\"LI State\"))","v":0},{"$f":"SUMPRODUCT(('2. Assisted & Restricted Units'!$E$7:$E$399=\"2\")*('2. Assisted & Restricted Units'!$W$7:$W$399=\"CHRP-R\")*('2. Assisted & Restricted Units'!$X$7:$X$399=\"LI State\"))","v":0},{"$f":"SUMPRODUCT(('2. Assisted & Restricted Units'!$E$7:$E$399=\"2\")*('2. Assisted & Restricted Units'!$W$7:$W$399=\"DDS\")*('2. Assisted & Restricted Units'!$X$7:$X$399=\"LI State\"))","v":0},{"$f":"SUMPRODUCT(('2. Assisted & Restricted Units'!$E$7:$E$399=\"2\")*('2. Assisted & Restricted Units'!$W$7:$W$399=\"DPRLP\")*('2. Assisted & Restricted Units'!$X$7:$X$399=\"LI State\"))","v":0},{"$f":"SUMPRODUCT(('2. Assisted & Restricted Units'!$E$7:$E$399=\"2\")*('2. Assisted & Restricted Units'!$W$7:$W$399=\"FHDP\")*('2. Assisted & Restricted Units'!$X$7:$X$399=\"LI State\"))","v":0},{"$f":"SUMPRODUCT(('2. Assisted & Restricted Units'!$E$7:$E$399=\"2\")*('2. Assisted & Restricted Units'!$W$7:$W$399=\"FMTW\")*('2. Assisted & Restricted Units'!$X$7:$X$399=\"LI State\"))","v":0},null,{"$f":"SUMPRODUCT(('2. Assisted & Restricted Units'!$E$7:$E$399=\"2\")*('2. Assisted & Restricted Units'!$W$7:$W$399=\"HOME\")*('2. Assisted & Restricted Units'!$X$7:$X$399=\"LI State\"))","v":0},{"$f":"SUMPRODUCT(('2. Assisted & Restricted Units'!$E$7:$E$399=\"2\")*('2. Assisted & Restricted Units'!$W$7:$W$399=\"Market Rate\")*('2. Assisted & Restricted Units'!$X$7:$X$399=\"LI State\"))","v":0},{"$f":"SUMPRODUCT(('2. Assisted & Restricted Units'!$E$7:$E$399=\"2\")*('2. Assisted & Restricted Units'!$W$7:$W$399=\"MHP\")*('2. Assisted & Restricted Units'!$X$7:$X$399=\"LI State\"))","v":0},{"$f":"SUMPRODUCT(('2. Assisted & Restricted Units'!$E$7:$E$399=\"2\")*('2. Assisted & Restricted Units'!$W$7:$W$399=\"NonAssisted\")*('2. Assisted & Restricted Units'!$X$7:$X$399=\"LI State\"))","v":0},{"$f":"SUMPRODUCT(('2. Assisted & Restricted Units'!$E$7:$E$399=\"2\")*('2. Assisted & Restricted Units'!$W$7:$W$399=\"Other Restr\")*('2. Assisted & Restricted Units'!$X$7:$X$399=\"LI State\"))","v":0},{"$f":"SUMPRODUCT(('2. Assisted & Restricted Units'!$E$7:$E$399=\"2\")*('2. Assisted & Restricted Units'!$W$7:$W$399=\"RHCP-B\")*('2. Assisted & Restricted Units'!$X$7:$X$399=\"LI State\"))","v":0},{"$f":"SUMPRODUCT(('2. Assisted & Restricted Units'!$E$7:$E$399=\"2\")*('2. Assisted & Restricted Units'!$W$7:$W$399=\"SERA\")*('2. Assisted & Restricted Units'!$X$7:$X$399=\"LI State\"))","v":0},{"$f":"SUMPRODUCT(('2. Assisted & Restricted Units'!$E$7:$E$399=\"2\")*('2. Assisted & Restricted Units'!$W$7:$W$399=\"SUHRP\")*('2. Assisted & Restricted Units'!$X$7:$X$399=\"LI State\"))","v":0},{"$f":"SUMPRODUCT(('2. Assisted & Restricted Units'!$E$7:$E$399=\"2\")*('2. Assisted & Restricted Units'!$W$7:$W$399=\"TOD\")*('2. Assisted & Restricted Units'!$X$7:$X$399=\"LI State\"))","v":0},{"$f":"SUMPRODUCT(('2. Assisted & Restricted Units'!$E$7:$E$399=\"2\")*('2. Assisted & Restricted Units'!$W$7:$W$399=\"707-E\")*('2. Assisted & Restricted Units'!$X$7:$X$399=\"LI State\"))","v":0},{"$f":"SUMPRODUCT(('2. Assisted & Restricted Units'!$E$7:$E$399=\"2\")*('2. Assisted & Restricted Units'!$W$7:$W$399=\"707-N\")*('2. Assisted & Restricted Units'!$X$7:$X$399=\"LI State\"))","v":0}]
["2 Bedroom Sec 8",{"$f":"SUMPRODUCT(('2. Assisted & Restricted Units'!$E$7:$E$399=\"2\")*('2. Assisted & Restricted Units'!$W$7:$W$399=\"CALDAP\")*('2. Assisted & Restricted Units'!$X$7:$X$399=\"CalHFA\"))","v":0},{"$f":"SUMPRODUCT(('2. Assisted & Restricted Units'!$E$7:$E$399=\"2\")*('2. Assisted & Restricted Units'!$W$7:$W$399=\"CHRP-R\")*('2. Assisted & Restricted Units'!$X$7:$X$399=\"CalHFA\"))","v":0},{"$f":"SUMPRODUCT(('2. Assisted & Restricted Units'!$E$7:$E$399=\"2\")*('2. Assisted & Restricted Units'!$W$7:$W$399=\"DDS\")*('2. Assisted & Restricted Units'!$X$7:$X$399=\"CalHFA\"))","v":0},{"$f":"SUMPRODUCT(('2. Assisted & Restricted Units'!$E$7:$E$399=\"2\")*('2. Assisted & Restricted Units'!$W$7:$W$399=\"DPRLP\")*('2. Assisted & Restricted Units'!$X$7:$X$399=\"CalHFA\"))","v":0},{"$f":"SUMPRODUCT(('2. Assisted & Restricted Units'!$E$7:$E$399=\"2\")*('2. Assisted & Restricted Units'!$W$7:$W$399=\"FHDP\")*('2. Assisted & Restricted Units'!$X$7:$X$399=\"CalHFA\"))","v":0},{"$f":"SUMPRODUCT(('2. Assisted & Restricted Units'!$E$7:$E$399=\"2\")*('2. Assisted & Restricted Units'!$W$7:$W$399=\"FMTW\")*('2. Assisted & Restricted Units'!$X$7:$X$399=\"CalHFA\"))","v":0},null,{"$f":"SUMPRODUCT(('2. Assisted & Restricted Units'!$E$7:$E$399=\"2\")*('2. Assisted & Restricted Units'!$W$7:$W$399=\"HOME\")*('2. Assisted & Restricted Units'!$X$7:$X$399=\"CalHFA\"))","v":0},{"$f":"SUMPRODUCT(('2. Assisted & Restricted Units'!$E$7:$E$399=\"2\")*('2. Assisted & Restricted Units'!$W$7:$W$399=\"Market Rate\")*('2. Assisted & Restricted Units'!$X$7:$X$399=\"CalHFA\"))","v":0},{"$f":"SUMPRODUCT(('2. Assisted & Restricted Units'!$E$7:$E$399=\"2\")*('2. Assisted & Restricted Units'!$W$7:$W$399=\"MHP\")*('2. Assisted & Restricted Units'!$X$7:$X$399=\"CalHFA\"))","v":0},{"$f":"SUMPRODUCT(('2. Assisted & Restricted Units'!$E$7:$E$399=\"2\")*('2. Assisted & Restricted Units'!$W$7:$W$399=\"NonAssisted\")*('2. Assisted & Restricted Units'!$X$7:$X$399=\"CalHFA\"))","v":0},{"$f":"SUMPRODUCT(('2. Assisted & Restricted Units'!$E$7:$E$399=\"2\")*('2. Assisted & Restricted Units'!$W$7:$W$399=\"Other Restr\")*('2. Assisted & Restricted Units'!$X$7:$X$399=\"CalHFA\"))","v":0},{"$f":"SUMPRODUCT(('2. Assisted & Restricted Units'!$E$7:$E$399=\"2\")*('2. Assisted & Restricted Units'!$W$7:$W$399=\"RHCP-B\")*('2. Assisted & Restricted Units'!$X$7:$X$399=\"CalHFA\"))","v":0},{"$f":"SUMPRODUCT(('2. Assisted & Restricted Units'!$E$7:$E$399=\"2\")*('2. Assisted & Restricted Units'!$W$7:$W$399=\"SERA\")*('2. Assisted & Restricted Units'!$X$7:$X$399=\"CalHFA\"))","v":0},{"$f":"SUMPRODUCT(('2. Assisted & Restricted Units'!$E$7:$E$399=\"2\")*('2. Assisted & Restricted Units'!$W$7:$W$399=\"SUHRP\")*('2. Assisted & Restricted Units'!$X$7:$X$399=\"CalHFA\"))","v":0},{"$f":"SUMPRODUCT(('2. Assisted & Restricted Units'!$E$7:$E$399=\"2\")*('2. Assisted & Restricted Units'!$W$7:$W$399=\"TOD\")*('2. Assisted & Restricted Units'!$X$7:$X$399=\"CalHFA\"))","v":0},{"$f":"SUMPRODUCT(('2. Assisted & Restricted Units'!$E$7:$E$399=\"2\")*('2. Assisted & Restricted Units'!$W$7:$W$399=\"707-E\")*('2. Assisted & Restricted Units'!$X$7:$X$399=\"CalHFA\"))","v":0},{"$f":"SUMPRODUCT(('2. Assisted & Restricted Units'!$E$7:$E$399=\"2\")*('2. Assisted & Restricted Units'!$W$7:$W$399=\"707-N\")*('2. Assisted & Restricted Units'!$X$7:$X$399=\"CalHFA\"))","v":0}]
["Total 2",{"$f":"SUM(B79:B102)","v":0},{"$f":"SUM(C79:C102)","v":0},{"$f":"SUM(D79:D102)","v":0},{"$f":"SUM(E79:E102)","v":0},{"$f":"SUM(F79:F102)","v":0},0,{"$f":"SUMPRODUCT(('2. Assisted & Restricted Units'!$E$7:$E$399=\"2\")*('2. Assisted & Restricted Units'!$W$7:$W$399=\"FWHG\"))","v":0},0,0,0,0,0,0,0,0,0,0,0,{"$f":"SUMPRODUCT(('2. Assisted & Restricted Units'!$E$7:$E$399=\"2\")*('2. Assisted & Restricted Units'!$L$7:$L$399=\"X\"))","v":0},{"$f":"SUMPRODUCT(('2. Assisted & Restricted Units'!$E$7:$E$399=\"2\")*('2. Assisted & Restricted Units'!#REF!=\"X\"))","v":{"$error":"#REF!"}},{"$f":"SUMPRODUCT(('2. Assisted & Restricted Units'!$E$7:$E$399=\"2\")*('2. Assisted & Restricted Units'!#REF!=\"X\"))","v":{"$error":"#REF!"}},{"$f":"SUMPRODUCT(('2. Assisted & Restricted Units'!$E$7:$E$399=\"2\")*('2. Assisted & Restricted Units'!#REF!=\"X\"))","v":{"$error":"#REF!"}},{"$f":"SUMPRODUCT(('2. Assisted & Restricted Units'!$E$7:$E$399=\"2\")*('2. Assisted & Restricted Units'!#REF!=\"X\"))","v":{"$error":"#REF!"}},{"$f":"SUMPRODUCT(('2. Assisted & Restricted Units'!$E$7:$E$399=\"2\")*('2. Assisted & Restricted Units'!#REF!=\"X\"))","v":{"$error":"#REF!"}},{"$f":"SUMPRODUCT(('2. Assisted & Restricted Units'!$E$7:$E$399=\"2\")*('2. Assisted & Restricted Units'!#REF!=\"X\"))","v":{"$error":"#REF!"}},{"$f":"SUMPRODUCT(('2. Assisted & Restricted Units'!$E$7:$E$399=\"2\")*('2. Assisted & Restricted Units'!$M$7:$M$399=\"X\"))","v":0},{"$f":"SUMPRODUCT(('2. Assisted & Restricted Units'!$E$7:$E$399=\"2\")*('2. Assisted & Restricted Units'!$O$7:$O$399=\"X\"))","v":0}]
["3 Bedroom 15% AMI",{"$f":"SUMPRODUCT(('2. Assisted & Restricted Units'!$E$7:$E$399=\"3\")*('2. Assisted & Restricted Units'!$W$7:$W$399=\"CALDAP\")*('2. Assisted & Restricted Units'!$X$7:$X$399=\"15% AMI\"))","v":0},{"$f":"SUMPRODUCT(('2. Assisted & Restricted Units'!$E$7:$E$399=\"3\")*('2. Assisted & Restricted Units'!$W$7:$W$399=\"CHRP-R\")*('2. Assisted & Restricted Units'!$X$7:$X$399=\"15% AMI\"))","v":0},{"$f":"SUMPRODUCT(('2. Assisted & Restricted Units'!$E$7:$E$399=\"3\")*('2. Assisted & Restricted Units'!$W$7:$W$399=\"DDS\")*('2. Assisted & Restricted Units'!$X$7:$X$399=\"15% AMI\"))","v":0},{"$f":"SUMPRODUCT(('2. Assisted & Restricted Units'!$E$7:$E$399=\"3\")*('2. Assisted & Restricted Units'!$W$7:$W$399=\"DPRLP\")*('2. Assisted & Restricted Units'!$X$7:$X$399=\"15% AMI\"))","v":0},{"$f":"SUMPRODUCT(('2. Assisted & Restricted Units'!$E$7:$E$399=\"3\")*('2. Assisted & Restricted Units'!$W$7:$W$399=\"FHDP\")*('2. Assisted & Restricted Units'!$X$7:$X$399=\"15% AMI\"))","v":0},{"$f":"SUMPRODUCT(('2. Assisted & Restricted Units'!$E$7:$E$399=\"3\")*('2. Assisted & Restricted Units'!$W$7:$W$399=\"FMTW\")*('2. Assisted & Restricted Units'!$X$7:$X$399=\"15% AMI\"))","v":0},null,{"$f":"SUMPRODUCT(('2. Assisted & Restricted Units'!$E$7:$E$399=\"3\")*('2. Assisted & Restricted Units'!$W$7:$W$399=\"HOME\")*('2. Assisted & Restricted Units'!$X$7:$X$399=\"15% AMI\"))","v":0},{"$f":"SUMPRODUCT(('2. Assisted & Restricted Units'!$E$7:$E$399=\"3\")*('2. Assisted & Restricted Units'!$W$7:$W$399=\"Market Rate\")*('2. Assisted & Restricted Units'!$X$7:$X$399=\"15% AMI\"))","v":0},{"$f":"SUMPRODUCT(('2. Assisted & Restricted Units'!$E$7:$E$399=\"3\")*('2. Assisted & Restricted Units'!$W$7:$W$399=\"MHP\")*('2. Assisted & Restricted Units'!$X$7:$X$399=\"15% AMI\"))","v":0},{"$f":"SUMPRODUCT(('2. Assisted & Restricted Units'!$E$7:$E$399=\"3\")*('2. Assisted & Restricted Units'!$W$7:$W$399=\"NonAssisted\")*('2. Assisted & Restricted Units'!$X$7:$X$399=\"15% AMI\"))","v":0},{"$f":"SUMPRODUCT(('2. Assisted & Restricted Units'!$E$7:$E$399=\"3\")*('2. Assisted & Restricted Units'!$W$7:$W$399=\"Other Restr\")*('2. Assisted & Restricted Units'!$X$7:$X$399=\"15% AMI\"))","v":0},{"$f":"SUMPRODUCT(('2. Assisted & Restricted Units'!$E$7:$E$399=\"3\")*('2. Assisted & Restricted Units'!$W$7:$W$399=\"RHCP-B\")*('2. Assisted & Restricted Units'!$X$7:$X$399=\"15% AMI\"))","v":0},{"$f":"SUMPRODUCT(('2. Assisted & Restricted Units'!$E$7:$E$399=\"3\")*('2. Assisted & Restricted Units'!$W$7:$W$399=\"SERA\")*('2. Assisted & Restricted Units'!$X$7:$X$399=\"15% AMI\"))","v":0},{"$f":"SUMPRODUCT(('2. Assisted & Restricted Units'!$E$7:$E$399=\"3\")*('2. Assisted & Restricted Units'!$W$7:$W$399=\"SUHRP\")*('2. Assisted & Restricted Units'!$X$7:$X$399=\"15% AMI\"))","v":0},{"$f":"SUMPRODUCT(('2. Assisted & Restricted Units'!$E$7:$E$399=\"3\")*('2. Assisted & Restricted Units'!$W$7:$W$399=\"TOD\")*('2. Assisted & Restricted Units'!$X$7:$X$399=\"15% AMI\"))","v":0},{"$f":"SUMPRODUCT(('2. Assisted & Restricted Units'!$E$7:$E$399=\"3\")*('2. Assisted & Restricted Units'!$W$7:$W$399=\"707-E\")*('2. Assisted & Restricted Units'!$X$7:$X$399=\"15% AMI\"))","v":0},{"$f":"SUMPRODUCT(('2. Assisted & Restricted Units'!$E$7:$E$399=\"3\")*('2. Assisted & Restricted Units'!$W$7:$W$399=\"707-N\")*('2. Assisted & Restricted Units'!$X$7:$X$399=\"15% AMI\"))","v":0}]
["3 Bedroom 20% AMI",{"$f":"SUMPRODUCT(('2. Assisted & Restricted Units'!$E$7:$E$399=\"3\")*('2. Assisted & Restricted Units'!$W$7:$W$399=\"CALDAP\")*('2. Assisted & Restricted Units'!$X$7:$X$399=\"20% AMI\"))","v":0},{"$f":"SUMPRODUCT(('2. Assisted & Restricted Units'!$E$7:$E$399=\"3\")*('2. Assisted & Restricted Units'!$W$7:$W$399=\"CHRP-R\")*('2. Assisted & Restricted Units'!$X$7:$X$399=\"20% AMI\"))","v":0},{"$f":"SUMPRODUCT(('2. Assisted & Restricted Units'!$E$7:$E$399=\"3\")*('2. Assisted & Restricted Units'!$W$7:$W$399=\"DDS\")*('2. Assisted & Restricted Units'!$X$7:$X$399=\"20% AMI\"))","v":0},{"$f":"SUMPRODUCT(('2. Assisted & Restricted Units'!$E$7:$E$399=\"3\")*('2. Assisted & Restricted Units'!$W$7:$W$399=\"DPRLP\")*('2. Assisted & Restricted Units'!$X$7:$X$399=\"20% AMI\"))","v":0},{"$f":"SUMPRODUCT(('2. Assisted & Restricted Units'!$E$7:$E$399=\"3\")*('2. Assisted & Restricted Units'!$W$7:$W$399=\"FHDP\")*('2. Assisted & Restricted Units'!$X$7:$X$399=\"20% AMI\"))","v":0},{"$f":"SUMPRODUCT(('2. Assisted & Restricted Units'!$E$7:$E$399=\"3\")*('2. Assisted & Restricted Units'!$W$7:$W$399=\"FMTW\")*('2. Assisted & Restricted Units'!$X$7:$X$399=\"20% AMI\"))","v":0},null,{"$f":"SUMPRODUCT(('2. Assisted & Restricted Units'!$E$7:$E$399=\"3\")*('2. Assisted & Restricted Units'!$W$7:$W$399=\"HOME\")*('2. Assisted & Restricted Units'!$X$7:$X$399=\"20% AMI\"))","v":0},{"$f":"SUMPRODUCT(('2. Assisted & Restricted Units'!$E$7:$E$399=\"3\")*('2. Assisted & Restricted Units'!$W$7:$W$399=\"Market Rate\")*('2. Assisted & Restricted Units'!$X$7:$X$399=\"20% AMI\"))","v":0},{"$f":"SUMPRODUCT(('2. Assisted & Restricted Units'!$E$7:$E$399=\"3\")*('2. Assisted & Restricted Units'!$W$7:$W$399=\"MHP\")*('2. Assisted & Restricted Units'!$X$7:$X$399=\"20% AMI\"))","v":0},{"$f":"SUMPRODUCT(('2. Assisted & Restricted Units'!$E$7:$E$399=\"3\")*('2. Assisted & Restricted Units'!$W$7:$W$399=\"NonAssisted\")*('2. Assisted & Restricted Units'!$X$7:$X$399=\"20% AMI\"))","v":0},{"$f":"SUMPRODUCT(('2. Assisted & Restricted Units'!$E$7:$E$399=\"3\")*('2. Assisted & Restricted Units'!$W$7:$W$399=\"Other Restr\")*('2. Assisted & Restricted Units'!$X$7:$X$399=\"20% AMI\"))","v":0},{"$f":"SUMPRODUCT(('2. Assisted & Restricted Units'!$E$7:$E$399=\"3\")*('2. Assisted & Restricted Units'!$W$7:$W$399=\"RHCP-B\")*('2. Assisted & Restricted Units'!$X$7:$X$399=\"20% AMI\"))","v":0},{"$f":"SUMPRODUCT(('2. Assisted & Restricted Units'!$E$7:$E$399=\"3\")*('2. Assisted & Restricted Units'!$W$7:$W$399=\"SERA\")*('2. Assisted & Restricted Units'!$X$7:$X$399=\"20% AMI\"))","v":0},{"$f":"SUMPRODUCT(('2. Assisted & Restricted Units'!$E$7:$E$399=\"3\")*('2. Assisted & Restricted Units'!$W$7:$W$399=\"SUHRP\")*('2. Assisted & Restricted Units'!$X$7:$X$399=\"20% AMI\"))","v":0},{"$f":"SUMPRODUCT(('2. Assisted & Restricted Units'!$E$7:$E$399=\"3\")*('2. Assisted & Restricted Units'!$W$7:$W$399=\"TOD\")*('2. Assisted & Restricted Units'!$X$7:$X$399=\"20% AMI\"))","v":0},{"$f":"SUMPRODUCT(('2. Assisted & Restricted Units'!$E$7:$E$399=\"3\")*('2. Assisted & Restricted Units'!$W$7:$W$399=\"707-E\")*('2. Assisted & Restricted Units'!$X$7:$X$399=\"20% AMI\"))","v":0},{"$f":"SUMPRODUCT(('2. Assisted & Restricted Units'!$E$7:$E$399=\"3\")*('2. Assisted & Restricted Units'!$W$7:$W$399=\"707-N\")*('2. Assisted & Restricted Units'!$X$7:$X$399=\"20% AMI\"))","v":0}]
["3 Bedroom 25% AMI",{"$f":"SUMPRODUCT(('2. Assisted & Restricted Units'!$E$7:$E$399=\"3\")*('2. Assisted & Restricted Units'!$W$7:$W$399=\"CALDAP\")*('2. Assisted & Restricted Units'!$X$7:$X$399=\"25% AMI\"))","v":0},{"$f":"SUMPRODUCT(('2. Assisted & Restricted Units'!$E$7:$E$399=\"3\")*('2. Assisted & Restricted Units'!$W$7:$W$399=\"CHRP-R\")*('2. Assisted & Restricted Units'!$X$7:$X$399=\"25% AMI\"))","v":0},{"$f":"SUMPRODUCT(('2. Assisted & Restricted Units'!$E$7:$E$399=\"3\")*('2. Assisted & Restricted Units'!$W$7:$W$399=\"DDS\")*('2. Assisted & Restricted Units'!$X$7:$X$399=\"25% AMI\"))","v":0},{"$f":"SUMPRODUCT(('2. Assisted & Restricted Units'!$E$7:$E$399=\"3\")*('2. Assisted & Restricted Units'!$W$7:$W$399=\"DPRLP\")*('2. Assisted & Restricted Units'!$X$7:$X$399=\"25% AMI\"))","v":0},{"$f":"SUMPRODUCT(('2. Assisted & Restricted Units'!$E$7:$E$399=\"3\")*('2. Assisted & Restricted Units'!$W$7:$W$399=\"FHDP\")*('2. Assisted & Restricted Units'!$X$7:$X$399=\"25% AMI\"))","v":0},{"$f":"SUMPRODUCT(('2. Assisted & Restricted Units'!$E$7:$E$399=\"3\")*('2. Assisted & Restricted Units'!$W$7:$W$399=\"FMTW\")*('2. Assisted & Restricted Units'!$X$7:$X$399=\"25% AMI\"))","v":0},null,{"$f":"SUMPRODUCT(('2. Assisted & Restricted Units'!$E$7:$E$399=\"3\")*('2. Assisted & Restricted Units'!$W$7:$W$399=\"HOME\")*('2. Assisted & Restricted Units'!$X$7:$X$399=\"25% AMI\"))","v":0},{"$f":"SUMPRODUCT(('2. Assisted & Restricted Units'!$E$7:$E$399=\"3\")*('2. Assisted & Restricted Units'!$W$7:$W$399=\"Market Rate\")*('2. Assisted & Restricted Units'!$X$7:$X$399=\"25% AMI\"))","v":0},{"$f":"SUMPRODUCT(('2. Assisted & Restricted Units'!$E$7:$E$399=\"3\")*('2. Assisted & Restricted Units'!$W$7:$W$399=\"MHP\")*('2. Assisted & Restricted Units'!$X$7:$X$399=\"25% AMI\"))","v":0},{"$f":"SUMPRODUCT(('2. Assisted & Restricted Units'!$E$7:$E$399=\"3\")*('2. Assisted & Restricted Units'!$W$7:$W$399=\"NonAssisted\")*('2. Assisted & Restricted Units'!$X$7:$X$399=\"25% AMI\"))","v":0},{"$f":"SUMPRODUCT(('2. Assisted & Restricted Units'!$E$7:$E$399=\"3\")*('2. Assisted & Restricted Units'!$W$7:$W$399=\"Other Restr\")*('2. Assisted & Restricted Units'!$X$7:$X$399=\"25% AMI\"))","v":0},{"$f":"SUMPRODUCT(('2. Assisted & Restricted Units'!$E$7:$E$399=\"3\")*('2. Assisted & Restricted Units'!$W$7:$W$399=\"RHCP-B\")*('2. Assisted & Restricted Units'!$X$7:$X$399=\"25% AMI\"))","v":0},{"$f":"SUMPRODUCT(('2. Assisted & Restricted Units'!$E$7:$E$399=\"3\")*('2. Assisted & Restricted Units'!$W$7:$W$399=\"SERA\")*('2. Assisted & Restricted Units'!$X$7:$X$399=\"25% AMI\"))","v":0},{"$f":"SUMPRODUCT(('2. Assisted & Restricted Units'!$E$7:$E$399=\"3\")*('2. Assisted & Restricted Units'!$W$7:$W$399=\"SUHRP\")*('2. Assisted & Restricted Units'!$X$7:$X$399=\"25% AMI\"))","v":0},{"$f":"SUMPRODUCT(('2. Assisted & Restricted Units'!$E$7:$E$399=\"3\")*('2. Assisted & Restricted Units'!$W$7:$W$399=\"TOD\")*('2. Assisted & Restricted Units'!$X$7:$X$399=\"25% AMI\"))","v":0},{"$f":"SUMPRODUCT(('2. Assisted & Restricted Units'!$E$7:$E$399=\"3\")*('2. Assisted & Restricted Units'!$W$7:$W$399=\"707-E\")*('2. Assisted & Restricted Units'!$X$7:$X$399=\"25% AMI\"))","v":0},{"$f":"SUMPRODUCT(('2. Assisted & Restricted Units'!$E$7:$E$399=\"3\")*('2. Assisted & Restricted Units'!$W$7:$W$399=\"707-N\")*('2. Assisted & Restricted Units'!$X$7:$X$399=\"25% AMI\"))","v":0}]
["3 Bedroom 30% AMI",{"$f":"SUMPRODUCT(('2. Assisted & Restricted Units'!$E$7:$E$399=\"3\")*('2. Assisted & Restricted Units'!$W$7:$W$399=\"CALDAP\")*('2. Assisted & Restricted Units'!$X$7:$X$399=\"30% AMI\"))","v":0},{"$f":"SUMPRODUCT(('2. Assisted & Restricted Units'!$E$7:$E$399=\"3\")*('2. Assisted & Restricted Units'!$W$7:$W$399=\"CHRP-R\")*('2. Assisted & Restricted Units'!$X$7:$X$399=\"30% AMI\"))","v":0},{"$f":"SUMPRODUCT(('2. Assisted & Restricted Units'!$E$7:$E$399=\"3\")*('2. Assisted & Restricted Units'!$W$7:$W$399=\"DDS\")*('2. Assisted & Restricted Units'!$X$7:$X$399=\"30% AMI\"))","v":0},{"$f":"SUMPRODUCT(('2. Assisted & Restricted Units'!$E$7:$E$399=\"3\")*('2. Assisted & Restricted Units'!$W$7:$W$399=\"DPRLP\")*('2. Assisted & Restricted Units'!$X$7:$X$399=\"30% AMI\"))","v":0},{"$f":"SUMPRODUCT(('2. Assisted & Restricted Units'!$E$7:$E$399=\"3\")*('2. Assisted & Restricted Units'!$W$7:$W$399=\"FHDP\")*('2. Assisted & Restricted Units'!$X$7:$X$399=\"30% AMI\"))","v":0},{"$f":"SUMPRODUCT(('2. Assisted & Restricted Units'!$E$7:$E$399=\"3\")*('2. Assisted & Restricted Units'!$W$7:$W$399=\"FMTW\")*('2. Assisted & Restricted Units'!$X$7:$X$399=\"30% AMI\"))","v":0},null,{"$f":"SUMPRODUCT(('2. Assisted & Restricted Units'!$E$7:$E$399=\"3\")*('2. Assisted & Restricted Units'!$W$7:$W$399=\"HOME\")*('2. Assisted & Restricted Units'!$X$7:$X$399=\"30% AMI\"))","v":0},{"$f":"SUMPRODUCT(('2. Assisted & Restricted Units'!$E$7:$E$399=\"3\")*('2. Assisted & Restricted Units'!$W$7:$W$399=\"Market Rate\")*('2. Assisted & Restricted Units'!$X$7:$X$399=\"30% AMI\"))","v":0},{"$f":"SUMPRODUCT(('2. Assisted & Restricted Units'!$E$7:$E$399=\"3\")*('2. Assisted & Restricted Units'!$W$7:$W$399=\"MHP\")*('2. Assisted & Restricted Units'!$X$7:$X$399=\"30% AMI\"))","v":0},{"$f":"SUMPRODUCT(('2. Assisted & Restricted Units'!$E$7:$E$399=\"3\")*('2. Assisted & Restricted Units'!$W$7:$W$399=\"NonAssisted\")*('2. Assisted & Restricted Units'!$X$7:$X$399=\"30% AMI\"))","v":0},{"$f":"SUMPRODUCT(('2. Assisted & Restricted Units'!$E$7:$E$399=\"3\")*('2. Assisted & Restricted Units'!$W$7:$W$399=\"Other Restr\")*('2. Assisted & Restricted Units'!$X$7:$X$399=\"30% AMI\"))","v":0},{"$f":"SUMPRODUCT(('2. Assisted & Restricted Units'!$E$7:$E$399=\"3\")*('2. Assisted & Restricted Units'!$W$7:$W$399=\"RHCP-B\")*('2. Assisted & Restricted Units'!$X$7:$X$399=\"30% AMI\"))","v":0},{"$f":"SUMPRODUCT(('2. Assisted & Restricted Units'!$E$7:$E$399=\"3\")*('2. Assisted & Restricted Units'!$W$7:$W$399=\"SERA\")*('2. Assisted & Restricted Units'!$X$7:$X$399=\"30% AMI\"))","v":0},{"$f":"SUMPRODUCT(('2. Assisted & Restricted Units'!$E$7:$E$399=\"3\")*('2. Assisted & Restricted Units'!$W$7:$W$399=\"SUHRP\")*('2. Assisted & Restricted Units'!$X$7:$X$399=\"30% AMI\"))","v":0},{"$f":"SUMPRODUCT(('2. Assisted & Restricted Units'!$E$7:$E$399=\"3\")*('2. Assisted & Restricted Units'!$W$7:$W$399=\"TOD\")*('2. Assisted & Restricted Units'!$X$7:$X$399=\"30% AMI\"))","v":0},{"$f":"SUMPRODUCT(('2. Assisted & Restricted Units'!$E$7:$E$399=\"3\")*('2. Assisted & Restricted Units'!$W$7:$W$399=\"707-E\")*('2. Assisted & Restricted Units'!$X$7:$X$399=\"30% AMI\"))","v":0},{"$f":"SUMPRODUCT(('2. Assisted & Restricted Units'!$E$7:$E$399=\"3\")*('2. Assisted & Restricted Units'!$W$7:$W$399=\"707-N\")*('2. Assisted & Restricted Units'!$X$7:$X$399=\"30% AMI\"))","v":0}]
["3 Bedroom 35% AMI",{"$f":"SUMPRODUCT(('2. Assisted & Restricted Units'!$E$7:$E$399=\"3\")*('2. Assisted & Restricted Units'!$W$7:$W$399=\"CALDAP\")*('2. Assisted & Restricted Units'!$X$7:$X$399=\"35% AMI\"))","v":0},{"$f":"SUMPRODUCT(('2. Assisted & Restricted Units'!$E$7:$E$399=\"3\")*('2. Assisted & Restricted Units'!$W$7:$W$399=\"CHRP-R\")*('2. Assisted & Restricted Units'!$X$7:$X$399=\"35% AMI\"))","v":0},{"$f":"SUMPRODUCT(('2. Assisted & Restricted Units'!$E$7:$E$399=\"3\")*('2. Assisted & Restricted Units'!$W$7:$W$399=\"DDS\")*('2. Assisted & Restricted Units'!$X$7:$X$399=\"35% AMI\"))","v":0},{"$f":"SUMPRODUCT(('2. Assisted & Restricted Units'!$E$7:$E$399=\"3\")*('2. Assisted & Restricted Units'!$W$7:$W$399=\"DPRLP\")*('2. Assisted & Restricted Units'!$X$7:$X$399=\"35% AMI\"))","v":0},{"$f":"SUMPRODUCT(('2. Assisted & Restricted Units'!$E$7:$E$399=\"3\")*('2. Assisted & Restricted Units'!$W$7:$W$399=\"FHDP\")*('2. Assisted & Restricted Units'!$X$7:$X$399=\"35% AMI\"))","v":0},{"$f":"SUMPRODUCT(('2. Assisted & Restricted Units'!$E$7:$E$399=\"3\")*('2. Assisted & Restricted Units'!$W$7:$W$399=\"FMTW\")*('2. Assisted & Restricted Units'!$X$7:$X$399=\"35% AMI\"))","v":0},null,{"$f":"SUMPRODUCT(('2. Assisted & Restricted Units'!$E$7:$E$399=\"3\")*('2. Assisted & Restricted Units'!$W$7:$W$399=\"HOME\")*('2. Assisted & Restricted Units'!$X$7:$X$399=\"35% AMI\"))","v":0},{"$f":"SUMPRODUCT(('2. Assisted & Restricted Units'!$E$7:$E$399=\"3\")*('2. Assisted & Restricted Units'!$W$7:$W$399=\"Market Rate\")*('2. Assisted & Restricted Units'!$X$7:$X$399=\"35% AMI\"))","v":0},{"$f":"SUMPRODUCT(('2. Assisted & Restricted Units'!$E$7:$E$399=\"3\")*('2. Assisted & Restricted Units'!$W$7:$W$399=\"MHP\")*('2. Assisted & Restricted Units'!$X$7:$X$399=\"35% AMI\"))","v":0},{"$f":"SUMPRODUCT(('2. Assisted & Restricted Units'!$E$7:$E$399=\"3\")*('2. Assisted & Restricted Units'!$W$7:$W$399=\"NonAssisted\")*('2. Assisted & Restricted Units'!$X$7:$X$399=\"35% AMI\"))","v":0},{"$f":"SUMPRODUCT(('2. Assisted & Restricted Units'!$E$7:$E$399=\"3\")*('2. Assisted & Restricted Units'!$W$7:$W$399=\"Other Restr\")*('2. Assisted & Restricted Units'!$X$7:$X$399=\"35% AMI\"))","v":0},{"$f":"SUMPRODUCT(('2. Assisted & Restricted Units'!$E$7:$E$399=\"3\")*('2. Assisted & Restricted Units'!$W$7:$W$399=\"RHCP-B\")*('2. Assisted & Restricted Units'!$X$7:$X$399=\"35% AMI\"))","v":0},{"$f":"SUMPRODUCT(('2. Assisted & Restricted Units'!$E$7:$E$399=\"3\")*('2. Assisted & Restricted Units'!$W$7:$W$399=\"SERA\")*('2. Assisted & Restricted Units'!$X$7:$X$399=\"35% AMI\"))","v":0},{"$f":"SUMPRODUCT(('2. Assisted & Restricted Units'!$E$7:$E$399=\"3\")*('2. Assisted & Restricted Units'!$W$7:$W$399=\"SUHRP\")*('2. Assisted & Restricted Units'!$X$7:$X$399=\"35% AMI\"))","v":0},{"$f":"SUMPRODUCT(('2. Assisted & Restricted Units'!$E$7:$E$399=\"3\")*('2. Assisted & Restricted Units'!$W$7:$W$399=\"TOD\")*('2. Assisted & Restricted Units'!$X$7:$X$399=\"35% AMI\"))","v":0},{"$f":"SUMPRODUCT(('2. Assisted & Restricted Units'!$E$7:$E$399=\"3\")*('2. Assisted & Restricted Units'!$W$7:$W$399=\"707-E\")*('2. Assisted & Restricted Units'!$X$7:$X$399=\"35% AMI\"))","v":0},{"$f":"SUMPRODUCT(('2. Assisted & Restricted Units'!$E$7:$E$399=\"3\")*('2. Assisted & Restricted Units'!$W$7:$W$399=\"707-N\")*('2. Assisted & Restricted Units'!$X$7:$X$399=\"35% AMI\"))","v":0}]
["3 Bedroom 40% AMI",{"$f":"SUMPRODUCT(('2. Assisted & Restricted Units'!$E$7:$E$399=\"3\")*('2. Assisted & Restricted Units'!$W$7:$W$399=\"CALDAP\")*('2. Assisted & Restricted Units'!$X$7:$X$399=\"40% AMI\"))","v":0},{"$f":"SUMPRODUCT(('2. Assisted & Restricted Units'!$E$7:$E$399=\"3\")*('2. Assisted & Restricted Units'!$W$7:$W$399=\"CHRP-R\")*('2. Assisted & Restricted Units'!$X$7:$X$399=\"40% AMI\"))","v":0},{"$f":"SUMPRODUCT(('2. Assisted & Restricted Units'!$E$7:$E$399=\"3\")*('2. Assisted & Restricted Units'!$W$7:$W$399=\"DDS\")*('2. Assisted & Restricted Units'!$X$7:$X$399=\"40% AMI\"))","v":0},{"$f":"SUMPRODUCT(('2. Assisted & Restricted Units'!$E$7:$E$399=\"3\")*('2. Assisted & Restricted Units'!$W$7:$W$399=\"DPRLP\")*('2. Assisted & Restricted Units'!$X$7:$X$399=\"40% AMI\"))","v":0},{"$f":"SUMPRODUCT(('2. Assisted & Restricted Units'!$E$7:$E$399=\"3\")*('2. Assisted & Restricted Units'!$W$7:$W$399=\"FHDP\")*('2. Assisted & Restricted Units'!$X$7:$X$399=\"40% AMI\"))","v":0},{"$f":"SUMPRODUCT(('2. Assisted & Restricted Units'!$E$7:$E$399=\"3\")*('2. Assisted & Restricted Units'!$W$7:$W$399=\"FMTW\")*('2. Assisted & Restricted Units'!$X$7:$X$399=\"40% AMI\"))","v":0},null,{"$f":"SUMPRODUCT(('2. Assisted & Restricted Units'!$E$7:$E$399=\"3\")*('2. Assisted & Restricted Units'!$W$7:$W$399=\"HOME\")*('2. Assisted & Restricted Units'!$X$7:$X$399=\"40% AMI\"))","v":0},{"$f":"SUMPRODUCT(('2. Assisted & Restricted Units'!$E$7:$E$399=\"3\")*('2. Assisted & Restricted Units'!$W$7:$W$399=\"Market Rate\")*('2. Assisted & Restricted Units'!$X$7:$X$399=\"40% AMI\"))","v":0},{"$f":"SUMPRODUCT(('2. Assisted & Restricted Units'!$E$7:$E$399=\"3\")*('2. Assisted & Restricted Units'!$W$7:$W$399=\"MHP\")*('2. Assisted & Restricted Units'!$X$7:$X$399=\"40% AMI\"))","v":0},{"$f":"SUMPRODUCT(('2. Assisted & Restricted Units'!$E$7:$E$399=\"3\")*('2. Assisted & Restricted Units'!$W$7:$W$399=\"NonAssisted\")*('2. Assisted & Restricted Units'!$X$7:$X$399=\"40% AMI\"))","v":0},{"$f":"SUMPRODUCT(('2. Assisted & Restricted Units'!$E$7:$E$399=\"3\")*('2. Assisted & Restricted Units'!$W$7:$W$399=\"Other Restr\")*('2. Assisted & Restricted Units'!$X$7:$X$399=\"40% AMI\"))","v":0},{"$f":"SUMPRODUCT(('2. Assisted & Restricted Units'!$E$7:$E$399=\"3\")*('2. Assisted & Restricted Units'!$W$7:$W$399=\"RHCP-B\")*('2. Assisted & Restricted Units'!$X$7:$X$399=\"40% AMI\"))","v":0},{"$f":"SUMPRODUCT(('2. Assisted & Restricted Units'!$E$7:$E$399=\"3\")*('2. Assisted & Restricted Units'!$W$7:$W$399=\"SERA\")*('2. Assisted & Restricted Units'!$X$7:$X$399=\"40% AMI\"))","v":0},{"$f":"SUMPRODUCT(('2. Assisted & Restricted Units'!$E$7:$E$399=\"3\")*('2. Assisted & Restricted Units'!$W$7:$W$399=\"SUHRP\")*('2. Assisted & Restricted Units'!$X$7:$X$399=\"40% AMI\"))","v":0},{"$f":"SUMPRODUCT(('2. Assisted & Restricted Units'!$E$7:$E$399=\"3\")*('2. Assisted & Restricted Units'!$W$7:$W$399=\"TOD\")*('2. Assisted & Restricted Units'!$X$7:$X$399=\"40% AMI\"))","v":0},{"$f":"SUMPRODUCT(('2. Assisted & Restricted Units'!$E$7:$E$399=\"3\")*('2. Assisted & Restricted Units'!$W$7:$W$399=\"707-E\")*('2. Assisted & Restricted Units'!$X$7:$X$399=\"40% AMI\"))","v":0},{"$f":"SUMPRODUCT(('2. Assisted & Restricted Units'!$E$7:$E$399=\"3\")*('2. Assisted & Restricted Units'!$W$7:$W$399=\"707-N\")*('2. Assisted & Restricted Units'!$X$7:$X$399=\"40% AMI\"))","v":0}]
["3 Bedroom 45% AMI",{"$f":"SUMPRODUCT(('2. Assisted & Restricted Units'!$E$7:$E$399=\"3\")*('2. Assisted & Restricted Units'!$W$7:$W$399=\"CALDAP\")*('2. Assisted & Restricted Units'!$X$7:$X$399=\"45% AMI\"))","v":0},{"$f":"SUMPRODUCT(('2. Assisted & Restricted Units'!$E$7:$E$399=\"3\")*('2. Assisted & Restricted Units'!$W$7:$W$399=\"CHRP-R\")*('2. Assisted & Restricted Units'!$X$7:$X$399=\"45% AMI\"))","v":0},{"$f":"SUMPRODUCT(('2. Assisted & Restricted Units'!$E$7:$E$399=\"3\")*('2. Assisted & Restricted Units'!$W$7:$W$399=\"DDS\")*('2. Assisted & Restricted Units'!$X$7:$X$399=\"45% AMI\"))","v":0},{"$f":"SUMPRODUCT(('2. Assisted & Restricted Units'!$E$7:$E$399=\"3\")*('2. Assisted & Restricted Units'!$W$7:$W$399=\"DPRLP\")*('2. Assisted & Restricted Units'!$X$7:$X$399=\"45% AMI\"))","v":0},{"$f":"SUMPRODUCT(('2. Assisted & Restricted Units'!$E$7:$E$399=\"3\")*('2. Assisted & Restricted Units'!$W$7:$W$399=\"FHDP\")*('2. Assisted & Restricted Units'!$X$7:$X$399=\"45% AMI\"))","v":0},{"$f":"SUMPRODUCT(('2. Assisted & Restricted Units'!$E$7:$E$399=\"3\")*('2. Assisted & Restricted Units'!$W$7:$W$399=\"FMTW\")*('2. Assisted & Restricted Units'!$X$7:$X$399=\"45% AMI\"))","v":0},null,{"$f":"SUMPRODUCT(('2. Assisted & Restricted Units'!$E$7:$E$399=\"3\")*('2. Assisted & Restricted Units'!$W$7:$W$399=\"HOME\")*('2. Assisted & Restricted Units'!$X$7:$X$399=\"45% AMI\"))","v":0},{"$f":"SUMPRODUCT(('2. Assisted & Restricted Units'!$E$7:$E$399=\"3\")*('2. Assisted & Restricted Units'!$W$7:$W$399=\"Market Rate\")*('2. Assisted & Restricted Units'!$X$7:$X$399=\"45% AMI\"))","v":0},{"$f":"SUMPRODUCT(('2. Assisted & Restricted Units'!$E$7:$E$399=\"3\")*('2. Assisted & Restricted Units'!$W$7:$W$399=\"MHP\")*('2. Assisted & Restricted Units'!$X$7:$X$399=\"45% AMI\"))","v":0},{"$f":"SUMPRODUCT(('2. Assisted & Restricted Units'!$E$7:$E$399=\"3\")*('2. Assisted & Restricted Units'!$W$7:$W$399=\"NonAssisted\")*('2. Assisted & Restricted Units'!$X$7:$X$399=\"45% AMI\"))","v":0},{"$f":"SUMPRODUCT(('2. Assisted & Restricted Units'!$E$7:$E$399=\"3\")*('2. Assisted & Restricted Units'!$W$7:$W$399=\"Other Restr\")*('2. Assisted & Restricted Units'!$X$7:$X$399=\"45% AMI\"))","v":0},{"$f":"SUMPRODUCT(('2. Assisted & Restricted Units'!$E$7:$E$399=\"3\")*('2. Assisted & Restricted Units'!$W$7:$W$399=\"RHCP-B\")*('2. Assisted & Restricted Units'!$X$7:$X$399=\"45% AMI\"))","v":0},{"$f":"SUMPRODUCT(('2. Assisted & Restricted Units'!$E$7:$E$399=\"3\")*('2. Assisted & Restricted Units'!$W$7:$W$399=\"SERA\")*('2. Assisted & Restricted Units'!$X$7:$X$399=\"45% AMI\"))","v":0},{"$f":"SUMPRODUCT(('2. Assisted & Restricted Units'!$E$7:$E$399=\"3\")*('2. Assisted & Restricted Units'!$W$7:$W$399=\"SUHRP\")*('2. Assisted & Restricted Units'!$X$7:$X$399=\"45% AMI\"))","v":0},{"$f":"SUMPRODUCT(('2. Assisted & Restricted Units'!$E$7:$E$399=\"3\")*('2. Assisted & Restricted Units'!$W$7:$W$399=\"TOD\")*('2. Assisted & Restricted Units'!$X$7:$X$399=\"45% AMI\"))","v":0},{"$f":"SUMPRODUCT(('2. Assisted & Restricted Units'!$E$7:$E$399=\"3\")*('2. Assisted & Restricted Units'!$W$7:$W$399=\"707-E\")*('2. Assisted & Restricted Units'!$X$7:$X$399=\"45% AMI\"))","v":0},{"$f":"SUMPRODUCT(('2. Assisted & Restricted Units'!$E$7:$E$399=\"3\")*('2. Assisted & Restricted Units'!$W$7:$W$399=\"707-N\")*('2. Assisted & Restricted Units'!$X$7:$X$399=\"45% AMI\"))","v":0}]
["3 Bedroom 50% AMI",{"$f":"SUMPRODUCT(('2. Assisted & Restricted Units'!$E$7:$E$399=\"3\")*('2. Assisted & Restricted Units'!$W$7:$W$399=\"CALDAP\")*('2. Assisted & Restricted Units'!$X$7:$X$399=\"50% AMI\"))","v":0},{"$f":"SUMPRODUCT(('2. Assisted & Restricted Units'!$E$7:$E$399=\"3\")*('2. Assisted & Restricted Units'!$W$7:$W$399=\"CHRP-R\")*('2. Assisted & Restricted Units'!$X$7:$X$399=\"50% AMI\"))","v":0},{"$f":"SUMPRODUCT(('2. Assisted & Restricted Units'!$E$7:$E$399=\"3\")*('2. Assisted & Restricted Units'!$W$7:$W$399=\"DDS\")*('2. Assisted & Restricted Units'!$X$7:$X$399=\"50% AMI\"))","v":0},{"$f":"SUMPRODUCT(('2. Assisted & Restricted Units'!$E$7:$E$399=\"3\")*('2. Assisted & Restricted Units'!$W$7:$W$399=\"DPRLP\")*('2. Assisted & Restricted Units'!$X$7:$X$399=\"50% AMI\"))","v":0},{"$f":"SUMPRODUCT(('2. Assisted & Restricted Units'!$E$7:$E$399=\"3\")*('2. Assisted & Restricted Units'!$W$7:$W$399=\"FHDP\")*('2. Assisted & Restricted Units'!$X$7:$X$399=\"50% AMI\"))","v":0},{"$f":"SUMPRODUCT(('2. Assisted & Restricted Units'!$E$7:$E$399=\"3\")*('2. Assisted & Restricted Units'!$W$7:$W$399=\"FMTW\")*('2. Assisted & Restricted Units'!$X$7:$X$399=\"50% AMI\"))","v":0},null,{"$f":"SUMPRODUCT(('2. Assisted & Restricted Units'!$E$7:$E$399=\"3\")*('2. Assisted & Restricted Units'!$W$7:$W$399=\"HOME\")*('2. Assisted & Restricted Units'!$X$7:$X$399=\"50% AMI\"))","v":0},{"$f":"SUMPRODUCT(('2. Assisted & Restricted Units'!$E$7:$E$399=\"3\")*('2. Assisted & Restricted Units'!$W$7:$W$399=\"Market Rate\")*('2. Assisted & Restricted Units'!$X$7:$X$399=\"50% AMI\"))","v":0},{"$f":"SUMPRODUCT(('2. Assisted & Restricted Units'!$E$7:$E$399=\"3\")*('2. Assisted & Restricted Units'!$W$7:$W$399=\"MHP\")*('2. Assisted & Restricted Units'!$X$7:$X$399=\"50% AMI\"))","v":0},{"$f":"SUMPRODUCT(('2. Assisted & Restricted Units'!$E$7:$E$399=\"3\")*('2. Assisted & Restricted Units'!$W$7:$W$399=\"NonAssisted\")*('2. Assisted & Restricted Units'!$X$7:$X$399=\"50% AMI\"))","v":0},{"$f":"SUMPRODUCT(('2. Assisted & Restricted Units'!$E$7:$E$399=\"3\")*('2. Assisted & Restricted Units'!$W$7:$W$399=\"Other Restr\")*('2. Assisted & Restricted Units'!$X$7:$X$399=\"50% AMI\"))","v":0},{"$f":"SUMPRODUCT(('2. Assisted & Restricted Units'!$E$7:$E$399=\"3\")*('2. Assisted & Restricted Units'!$W$7:$W$399=\"RHCP-B\")*('2. Assisted & Restricted Units'!$X$7:$X$399=\"50% AMI\"))","v":0},{"$f":"SUMPRODUCT(('2. Assisted & Restricted Units'!$E$7:$E$399=\"3\")*('2. Assisted & Restricted Units'!$W$7:$W$399=\"SERA\")*('2. Assisted & Restricted Units'!$X$7:$X$399=\"50% AMI\"))","v":0},{"$f":"SUMPRODUCT(('2. Assisted & Restricted Units'!$E$7:$E$399=\"3\")*('2. Assisted & Restricted Units'!$W$7:$W$399=\"SUHRP\")*('2. Assisted & Restricted Units'!$X$7:$X$399=\"50% AMI\"))","v":0},{"$f":"SUMPRODUCT(('2. Assisted & Restricted Units'!$E$7:$E$399=\"3\")*('2. Assisted & Restricted Units'!$W$7:$W$399=\"TOD\")*('2. Assisted & Restricted Units'!$X$7:$X$399=\"50% AMI\"))","v":0},{"$f":"SUMPRODUCT(('2. Assisted & Restricted Units'!$E$7:$E$399=\"3\")*('2. Assisted & Restricted Units'!$W$7:$W$399=\"707-E\")*('2. Assisted & Restricted Units'!$X$7:$X$399=\"50% AMI\"))","v":0},{"$f":"SUMPRODUCT(('2. Assisted & Restricted Units'!$E$7:$E$399=\"3\")*('2. Assisted & Restricted Units'!$W$7:$W$399=\"707-N\")*('2. Assisted & Restricted Units'!$X$7:$X$399=\"50% AMI\"))","v":0}]
["3 Bedroom 55% AMI",{"$f":"SUMPRODUCT(('2. Assisted & Restricted Units'!$E$7:$E$399=\"3\")*('2. Assisted & Restricted Units'!$W$7:$W$399=\"CALDAP\")*('2. Assisted & Restricted Units'!$X$7:$X$399=\"55% AMI\"))","v":0},{"$f":"SUMPRODUCT(('2. Assisted & Restricted Units'!$E$7:$E$399=\"3\")*('2. Assisted & Restricted Units'!$W$7:$W$399=\"CHRP-R\")*('2. Assisted & Restricted Units'!$X$7:$X$399=\"55% AMI\"))","v":0},{"$f":"SUMPRODUCT(('2. Assisted & Restricted Units'!$E$7:$E$399=\"3\")*('2. Assisted & Restricted Units'!$W$7:$W$399=\"DDS\")*('2. Assisted & Restricted Units'!$X$7:$X$399=\"55% AMI\"))","v":0},{"$f":"SUMPRODUCT(('2. Assisted & Restricted Units'!$E$7:$E$399=\"3\")*('2. Assisted & Restricted Units'!$W$7:$W$399=\"DPRLP\")*('2. Assisted & Restricted Units'!$X$7:$X$399=\"55% AMI\"))","v":0},{"$f":"SUMPRODUCT(('2. Assisted & Restricted Units'!$E$7:$E$399=\"3\")*('2. Assisted & Restricted Units'!$W$7:$W$399=\"FHDP\")*('2. Assisted & Restricted Units'!$X$7:$X$399=\"55% AMI\"))","v":0},{"$f":"SUMPRODUCT(('2. Assisted & Restricted Units'!$E$7:$E$399=\"3\")*('2. Assisted & Restricted Units'!$W$7:$W$399=\"FMTW\")*('2. Assisted & Restricted Units'!$X$7:$X$399=\"55% AMI\"))","v":0},null,{"$f":"SUMPRODUCT(('2. Assisted & Restricted Units'!$E$7:$E$399=\"3\")*('2. Assisted & Restricted Units'!$W$7:$W$399=\"HOME\")*('2. Assisted & Restricted Units'!$X$7:$X$399=\"55% AMI\"))","v":0},{"$f":"SUMPRODUCT(('2. Assisted & Restricted Units'!$E$7:$E$399=\"3\")*('2. Assisted & Restricted Units'!$W$7:$W$399=\"Market Rate\")*('2. Assisted & Restricted Units'!$X$7:$X$399=\"55% AMI\"))","v":0},{"$f":"SUMPRODUCT(('2. Assisted & Restricted Units'!$E$7:$E$399=\"3\")*('2. Assisted & Restricted Units'!$W$7:$W$399=\"MHP\")*('2. Assisted & Restricted Units'!$X$7:$X$399=\"55% AMI\"))","v":0},{"$f":"SUMPRODUCT(('2. Assisted & Restricted Units'!$E$7:$E$399=\"3\")*('2. Assisted & Restricted Units'!$W$7:$W$399=\"NonAssisted\")*('2. Assisted & Restricted Units'!$X$7:$X$399=\"55% AMI\"))","v":0},{"$f":"SUMPRODUCT(('2. Assisted & Restricted Units'!$E$7:$E$399=\"3\")*('2. Assisted & Restricted Units'!$W$7:$W$399=\"Other Restr\")*('2. Assisted & Restricted Units'!$X$7:$X$399=\"55% AMI\"))","v":0},{"$f":"SUMPRODUCT(('2. Assisted & Restricted Units'!$E$7:$E$399=\"3\")*('2. Assisted & Restricted Units'!$W$7:$W$399=\"RHCP-B\")*('2. Assisted & Restricted Units'!$X$7:$X$399=\"55% AMI\"))","v":0},{"$f":"SUMPRODUCT(('2. Assisted & Restricted Units'!$E$7:$E$399=\"3\")*('2. Assisted & Restricted Units'!$W$7:$W$399=\"SERA\")*('2. Assisted & Restricted Units'!$X$7:$X$399=\"55% AMI\"))","v":0},{"$f":"SUMPRODUCT(('2. Assisted & Restricted Units'!$E$7:$E$399=\"3\")*('2. Assisted & Restricted Units'!$W$7:$W$399=\"SUHRP\")*('2. Assisted & Restricted Units'!$X$7:$X$399=\"55% AMI\"))","v":0},{"$f":"SUMPRODUCT(('2. Assisted & Restricted Units'!$E$7:$E$399=\"3\")*('2. Assisted & Restricted Units'!$W$7:$W$399=\"TOD\")*('2. Assisted & Restricted Units'!$X$7:$X$399=\"55% AMI\"))","v":0},{"$f":"SUMPRODUCT(('2. Assisted & Restricted Units'!$E$7:$E$399=\"3\")*('2. Assisted & Restricted Units'!$W$7:$W$399=\"707-E\")*('2. Assisted & Restricted Units'!$X$7:$X$399=\"55% AMI\"))","v":0},{"$f":"SUMPRODUCT(('2. Assisted & Restricted Units'!$E$7:$E$399=\"3\")*('2. Assisted & Restricted Units'!$W$7:$W$399=\"707-N\")*('2. Assisted & Restricted Units'!$X$7:$X$399=\"55% AMI\"))","v":0}]
["3 Bedroom 60% AMI",{"$f":"SUMPRODUCT(('2. Assisted & Restricted Units'!$E$7:$E$399=\"3\")*('2. Assisted & Restricted Units'!$W$7:$W$399=\"CALDAP\")*('2. Assisted & Restricted Units'!$X$7:$X$399=\"60% AMI\"))","v":0},{"$f":"SUMPRODUCT(('2. Assisted & Restricted Units'!$E$7:$E$399=\"3\")*('2. Assisted & Restricted Units'!$W$7:$W$399=\"CHRP-R\")*('2. Assisted & Restricted Units'!$X$7:$X$399=\"60% AMI\"))","v":0},{"$f":"SUMPRODUCT(('2. Assisted & Restricted Units'!$E$7:$E$399=\"3\")*('2. Assisted & Restricted Units'!$W$7:$W$399=\"DDS\")*('2. Assisted & Restricted Units'!$X$7:$X$399=\"60% AMI\"))","v":0},{"$f":"SUMPRODUCT(('2. Assisted & Restricted Units'!$E$7:$E$399=\"3\")*('2. Assisted & Restricted Units'!$W$7:$W$399=\"DPRLP\")*('2. Assisted & Restricted Units'!$X$7:$X$399=\"60% AMI\"))","v":0},{"$f":"SUMPRODUCT(('2. Assisted & Restricted Units'!$E$7:$E$399=\"3\")*('2. Assisted & Restricted Units'!$W$7:$W$399=\"FHDP\")*('2. Assisted & Restricted Units'!$X$7:$X$399=\"60% AMI\"))","v":0},{"$f":"SUMPRODUCT(('2. Assisted & Restricted Units'!$E$7:$E$399=\"3\")*('2. Assisted & Restricted Units'!$W$7:$W$399=\"FMTW\")*('2. Assisted & Restricted Units'!$X$7:$X$399=\"60% AMI\"))","v":0},null,{"$f":"SUMPRODUCT(('2. Assisted & Restricted Units'!$E$7:$E$399=\"3\")*('2. Assisted & Restricted Units'!$W$7:$W$399=\"HOME\")*('2. Assisted & Restricted Units'!$X$7:$X$399=\"60% AMI\"))","v":0},{"$f":"SUMPRODUCT(('2. Assisted & Restricted Units'!$E$7:$E$399=\"3\")*('2. Assisted & Restricted Units'!$W$7:$W$399=\"Market Rate\")*('2. Assisted & Restricted Units'!$X$7:$X$399=\"60% AMI\"))","v":0},{"$f":"SUMPRODUCT(('2. Assisted & Restricted Units'!$E$7:$E$399=\"3\")*('2. Assisted & Restricted Units'!$W$7:$W$399=\"MHP\")*('2. Assisted & Restricted Units'!$X$7:$X$399=\"60% AMI\"))","v":0},{"$f":"SUMPRODUCT(('2. Assisted & Restricted Units'!$E$7:$E$399=\"3\")*('2. Assisted & Restricted Units'!$W$7:$W$399=\"NonAssisted\")*('2. Assisted & Restricted Units'!$X$7:$X$399=\"60% AMI\"))","v":0},{"$f":"SUMPRODUCT(('2. Assisted & Restricted Units'!$E$7:$E$399=\"3\")*('2. Assisted & Restricted Units'!$W$7:$W$399=\"Other Restr\")*('2. Assisted & Restricted Units'!$X$7:$X$399=\"60% AMI\"))","v":0},{"$f":"SUMPRODUCT(('2. Assisted & Restricted Units'!$E$7:$E$399=\"3\")*('2. Assisted & Restricted Units'!$W$7:$W$399=\"RHCP-B\")*('2. Assisted & Restricted Units'!$X$7:$X$399=\"60% AMI\"))","v":0},{"$f":"SUMPRODUCT(('2. Assisted & Restricted Units'!$E$7:$E$399=\"3\")*('2. Assisted & Restricted Units'!$W$7:$W$399=\"SERA\")*('2. Assisted & Restricted Units'!$X$7:$X$399=\"60% AMI\"))","v":0},{"$f":"SUMPRODUCT(('2. Assisted & Restricted Units'!$E$7:$E$399=\"3\")*('2. Assisted & Restricted Units'!$W$7:$W$399=\"SUHRP\")*('2. Assisted & Restricted Units'!$X$7:$X$399=\"60% AMI\"))","v":0},{"$f":"SUMPRODUCT(('2. Assisted & Restricted Units'!$E$7:$E$399=\"3\")*('2. Assisted & Restricted Units'!$W$7:$W$399=\"TOD\")*('2. Assisted & Restricted Units'!$X$7:$X$399=\"60% AMI\"))","v":0},{"$f":"SUMPRODUCT(('2. Assisted & Restricted Units'!$E$7:$E$399=\"3\")*('2. Assisted & Restricted Units'!$W$7:$W$399=\"707-E\")*('2. Assisted & Restricted Units'!$X$7:$X$399=\"60% AMI\"))","v":0},{"$f":"SUMPRODUCT(('2. Assisted & Restricted Units'!$E$7:$E$399=\"3\")*('2. Assisted & Restricted Units'!$W$7:$W$399=\"707-N\")*('2. Assisted & Restricted Units'!$X$7:$X$399=\"60% AMI\"))","v":0}]
["3 Bedroom 80% AMI",{"$f":"SUMPRODUCT(('2. Assisted & Restricted Units'!$E$7:$E$399=\"3\")*('2. Assisted & Restricted Units'!$W$7:$W$399=\"CALDAP\")*('2. Assisted & Restricted Units'!$X$7:$X$399=\"80% AMI\"))","v":0},{"$f":"SUMPRODUCT(('2. Assisted & Restricted Units'!$E$7:$E$399=\"3\")*('2. Assisted & Restricted Units'!$W$7:$W$399=\"CHRP-R\")*('2. Assisted & Restricted Units'!$X$7:$X$399=\"80% AMI\"))","v":0},{"$f":"SUMPRODUCT(('2. Assisted & Restricted Units'!$E$7:$E$399=\"3\")*('2. Assisted & Restricted Units'!$W$7:$W$399=\"DDS\")*('2. Assisted & Restricted Units'!$X$7:$X$399=\"80% AMI\"))","v":0},{"$f":"SUMPRODUCT(('2. Assisted & Restricted Units'!$E$7:$E$399=\"3\")*('2. Assisted & Restricted Units'!$W$7:$W$399=\"DPRLP\")*('2. Assisted & Restricted Units'!$X$7:$X$399=\"80% AMI\"))","v":0},{"$f":"SUMPRODUCT(('2. Assisted & Restricted Units'!$E$7:$E$399=\"3\")*('2. Assisted & Restricted Units'!$W$7:$W$399=\"FHDP\")*('2. Assisted & Restricted Units'!$X$7:$X$399=\"80% AMI\"))","v":0},{"$f":"SUMPRODUCT(('2. Assisted & Restricted Units'!$E$7:$E$399=\"3\")*('2. Assisted & Restricted Units'!$W$7:$W$399=\"FMTW\")*('2. Assisted & Restricted Units'!$X$7:$X$399=\"80% AMI\"))","v":0},null,{"$f":"SUMPRODUCT(('2. Assisted & Restricted Units'!$E$7:$E$399=\"3\")*('2. Assisted & Restricted Units'!$W$7:$W$399=\"HOME\")*('2. Assisted & Restricted Units'!$X$7:$X$399=\"80% AMI\"))","v":0},{"$f":"SUMPRODUCT(('2. Assisted & Restricted Units'!$E$7:$E$399=\"3\")*('2. Assisted & Restricted Units'!$W$7:$W$399=\"Market Rate\")*('2. Assisted & Restricted Units'!$X$7:$X$399=\"80% AMI\"))","v":0},{"$f":"SUMPRODUCT(('2. Assisted & Restricted Units'!$E$7:$E$399=\"3\")*('2. Assisted & Restricted Units'!$W$7:$W$399=\"MHP\")*('2. Assisted & Restricted Units'!$X$7:$X$399=\"80% AMI\"))","v":0},{"$f":"SUMPRODUCT(('2. Assisted & Restricted Units'!$E$7:$E$399=\"3\")*('2. Assisted & Restricted Units'!$W$7:$W$399=\"NonAssisted\")*('2. Assisted & Restricted Units'!$X$7:$X$399=\"80% AMI\"))","v":0},{"$f":"SUMPRODUCT(('2. Assisted & Restricted Units'!$E$7:$E$399=\"3\")*('2. Assisted & Restricted Units'!$W$7:$W$399=\"Other Restr\")*('2. Assisted & Restricted Units'!$X$7:$X$399=\"80% AMI\"))","v":0},{"$f":"SUMPRODUCT(('2. Assisted & Restricted Units'!$E$7:$E$399=\"3\")*('2. Assisted & Restricted Units'!$W$7:$W$399=\"RHCP-B\")*('2. Assisted & Restricted Units'!$X$7:$X$399=\"80% AMI\"))","v":0},{"$f":"SUMPRODUCT(('2. Assisted & Restricted Units'!$E$7:$E$399=\"3\")*('2. Assisted & Restricted Units'!$W$7:$W$399=\"SERA\")*('2. Assisted & Restricted Units'!$X$7:$X$399=\"80% AMI\"))","v":0},{"$f":"SUMPRODUCT(('2. Assisted & Restricted Units'!$E$7:$E$399=\"3\")*('2. Assisted & Restricted Units'!$W$7:$W$399=\"SUHRP\")*('2. Assisted & Restricted Units'!$X$7:$X$399=\"80% AMI\"))","v":0},{"$f":"SUMPRODUCT(('2. Assisted & Restricted Units'!$E$7:$E$399=\"3\")*('2. Assisted & Restricted Units'!$W$7:$W$399=\"TOD\")*('2. Assisted & Restricted Units'!$X$7:$X$399=\"80% AMI\"))","v":0},{"$f":"SUMPRODUCT(('2. Assisted & Restricted Units'!$E$7:$E$399=\"3\")*('2. Assisted & Restricted Units'!$W$7:$W$399=\"707-E\")*('2. Assisted & Restricted Units'!$X$7:$X$399=\"80% AMI\"))","v":0},{"$f":"SUMPRODUCT(('2. Assisted & Restricted Units'!$E$7:$E$399=\"3\")*('2. Assisted & Restricted Units'!$W$7:$W$399=\"707-N\")*('2. Assisted & Restricted Units'!$X$7:$X$399=\"80% AMI\"))","v":0}]
["3 Bedroom 20% SMI",{"$f":"SUMPRODUCT(('2. Assisted & Restricted Units'!$E$7:$E$399=\"3\")*('2. Assisted & Restricted Units'!$W$7:$W$399=\"CALDAP\")*('2. Assisted & Restricted Units'!$X$7:$X$399=\"20% SMI\"))","v":0},{"$f":"SUMPRODUCT(('2. Assisted & Restricted Units'!$E$7:$E$399=\"3\")*('2. Assisted & Restricted Units'!$W$7:$W$399=\"CHRP-R\")*('2. Assisted & Restricted Units'!$X$7:$X$399=\"20% SMI\"))","v":0},{"$f":"SUMPRODUCT(('2. Assisted & Restricted Units'!$E$7:$E$399=\"3\")*('2. Assisted & Restricted Units'!$W$7:$W$399=\"DDS\")*('2. Assisted & Restricted Units'!$X$7:$X$399=\"20% SMI\"))","v":0},{"$f":"SUMPRODUCT(('2. Assisted & Restricted Units'!$E$7:$E$399=\"3\")*('2. Assisted & Restricted Units'!$W$7:$W$399=\"DPRLP\")*('2. Assisted & Restricted Units'!$X$7:$X$399=\"20% SMI\"))","v":0},{"$f":"SUMPRODUCT(('2. Assisted & Restricted Units'!$E$7:$E$399=\"3\")*('2. Assisted & Restricted Units'!$W$7:$W$399=\"FHDP\")*('2. Assisted & Restricted Units'!$X$7:$X$399=\"20% SMI\"))","v":0},{"$f":"SUMPRODUCT(('2. Assisted & Restricted Units'!$E$7:$E$399=\"3\")*('2. Assisted & Restricted Units'!$W$7:$W$399=\"FMTW\")*('2. Assisted & Restricted Units'!$X$7:$X$399=\"20% SMI\"))","v":0},null,{"$f":"SUMPRODUCT(('2. Assisted & Restricted Units'!$E$7:$E$399=\"3\")*('2. Assisted & Restricted Units'!$W$7:$W$399=\"HOME\")*('2. Assisted & Restricted Units'!$X$7:$X$399=\"20% SMI\"))","v":0},{"$f":"SUMPRODUCT(('2. Assisted & Restricted Units'!$E$7:$E$399=\"3\")*('2. Assisted & Restricted Units'!$W$7:$W$399=\"Market Rate\")*('2. Assisted & Restricted Units'!$X$7:$X$399=\"20% SMI\"))","v":0},{"$f":"SUMPRODUCT(('2. Assisted & Restricted Units'!$E$7:$E$399=\"3\")*('2. Assisted & Restricted Units'!$W$7:$W$399=\"MHP\")*('2. Assisted & Restricted Units'!$X$7:$X$399=\"20% SMI\"))","v":0},{"$f":"SUMPRODUCT(('2. Assisted & Restricted Units'!$E$7:$E$399=\"3\")*('2. Assisted & Restricted Units'!$W$7:$W$399=\"NonAssisted\")*('2. Assisted & Restricted Units'!$X$7:$X$399=\"20% SMI\"))","v":0},{"$f":"SUMPRODUCT(('2. Assisted & Restricted Units'!$E$7:$E$399=\"3\")*('2. Assisted & Restricted Units'!$W$7:$W$399=\"Other Restr\")*('2. Assisted & Restricted Units'!$X$7:$X$399=\"20% SMI\"))","v":0},{"$f":"SUMPRODUCT(('2. Assisted & Restricted Units'!$E$7:$E$399=\"3\")*('2. Assisted & Restricted Units'!$W$7:$W$399=\"RHCP-B\")*('2. Assisted & Restricted Units'!$X$7:$X$399=\"20% SMI\"))","v":0},{"$f":"SUMPRODUCT(('2. Assisted & Restricted Units'!$E$7:$E$399=\"3\")*('2. Assisted & Restricted Units'!$W$7:$W$399=\"SERA\")*('2. Assisted & Restricted Units'!$X$7:$X$399=\"20% SMI\"))","v":0},{"$f":"SUMPRODUCT(('2. Assisted & Restricted Units'!$E$7:$E$399=\"3\")*('2. Assisted & Restricted Units'!$W$7:$W$399=\"SUHRP\")*('2. Assisted & Restricted Units'!$X$7:$X$399=\"20% SMI\"))","v":0},{"$f":"SUMPRODUCT(('2. Assisted & Restricted Units'!$E$7:$E$399=\"3\")*('2. Assisted & Restricted Units'!$W$7:$W$399=\"TOD\")*('2. Assisted & Restricted Units'!$X$7:$X$399=\"20% SMI\"))","v":0},{"$f":"SUMPRODUCT(('2. Assisted & Restricted Units'!$E$7:$E$399=\"3\")*('2. Assisted & Restricted Units'!$W$7:$W$399=\"707-E\")*('2. Assisted & Restricted Units'!$X$7:$X$399=\"20% SMI\"))","v":0},{"$f":"SUMPRODUCT(('2. Assisted & Restricted Units'!$E$7:$E$399=\"3\")*('2. Assisted & Restricted Units'!$W$7:$W$399=\"707-N\")*('2. Assisted & Restricted Units'!$X$7:$X$399=\"20% SMI\"))","v":0}]
["3 Bedroom 25% SMI",{"$f":"SUMPRODUCT(('2. Assisted & Restricted Units'!$E$7:$E$399=\"3\")*('2. Assisted & Restricted Units'!$W$7:$W$399=\"CALDAP\")*('2. Assisted & Restricted Units'!$X$7:$X$399=\"25% SMI\"))","v":0},{"$f":"SUMPRODUCT(('2. Assisted & Restricted Units'!$E$7:$E$399=\"3\")*('2. Assisted & Restricted Units'!$W$7:$W$399=\"CHRP-R\")*('2. Assisted & Restricted Units'!$X$7:$X$399=\"25% SMI\"))","v":0},{"$f":"SUMPRODUCT(('2. Assisted & Restricted Units'!$E$7:$E$399=\"3\")*('2. Assisted & Restricted Units'!$W$7:$W$399=\"DDS\")*('2. Assisted & Restricted Units'!$X$7:$X$399=\"25% SMI\"))","v":0},{"$f":"SUMPRODUCT(('2. Assisted & Restricted Units'!$E$7:$E$399=\"3\")*('2. Assisted & Restricted Units'!$W$7:$W$399=\"DPRLP\")*('2. Assisted & Restricted Units'!$X$7:$X$399=\"25% SMI\"))","v":0},{"$f":"SUMPRODUCT(('2. Assisted & Restricted Units'!$E$7:$E$399=\"3\")*('2. Assisted & Restricted Units'!$W$7:$W$399=\"FHDP\")*('2. Assisted & Restricted Units'!$X$7:$X$399=\"25% SMI\"))","v":0},{"$f":"SUMPRODUCT(('2. Assisted & Restricted Units'!$E$7:$E$399=\"3\")*('2. Assisted & Restricted Units'!$W$7:$W$399=\"FMTW\")*('2. Assisted & Restricted Units'!$X$7:$X$399=\"25% SMI\"))","v":0},null,{"$f":"SUMPRODUCT(('2. Assisted & Restricted Units'!$E$7:$E$399=\"3\")*('2. Assisted & Restricted Units'!$W$7:$W$399=\"HOME\")*('2. Assisted & Restricted Units'!$X$7:$X$399=\"25% SMI\"))","v":0},{"$f":"SUMPRODUCT(('2. Assisted & Restricted Units'!$E$7:$E$399=\"3\")*('2. Assisted & Restricted Units'!$W$7:$W$399=\"Market Rate\")*('2. Assisted & Restricted Units'!$X$7:$X$399=\"25% SMI\"))","v":0},{"$f":"SUMPRODUCT(('2. Assisted & Restricted Units'!$E$7:$E$399=\"3\")*('2. Assisted & Restricted Units'!$W$7:$W$399=\"MHP\")*('2. Assisted & Restricted Units'!$X$7:$X$399=\"25% SMI\"))","v":0},{"$f":"SUMPRODUCT(('2. Assisted & Restricted Units'!$E$7:$E$399=\"3\")*('2. Assisted & Restricted Units'!$W$7:$W$399=\"NonAssisted\")*('2. Assisted & Restricted Units'!$X$7:$X$399=\"25% SMI\"))","v":0},{"$f":"SUMPRODUCT(('2. Assisted & Restricted Units'!$E$7:$E$399=\"3\")*('2. Assisted & Restricted Units'!$W$7:$W$399=\"Other Restr\")*('2. Assisted & Restricted Units'!$X$7:$X$399=\"25% SMI\"))","v":0},{"$f":"SUMPRODUCT(('2. Assisted & Restricted Units'!$E$7:$E$399=\"3\")*('2. Assisted & Restricted Units'!$W$7:$W$399=\"RHCP-B\")*('2. Assisted & Restricted Units'!$X$7:$X$399=\"25% SMI\"))","v":0},{"$f":"SUMPRODUCT(('2. Assisted & Restricted Units'!$E$7:$E$399=\"3\")*('2. Assisted & Restricted Units'!$W$7:$W$399=\"SERA\")*('2. Assisted & Restricted Units'!$X$7:$X$399=\"25% SMI\"))","v":0},{"$f":"SUMPRODUCT(('2. Assisted & Restricted Units'!$E$7:$E$399=\"3\")*('2. Assisted & Restricted Units'!$W$7:$W$399=\"SUHRP\")*('2. Assisted & Restricted Units'!$X$7:$X$399=\"25% SMI\"))","v":0},{"$f":"SUMPRODUCT(('2. Assisted & Restricted Units'!$E$7:$E$399=\"3\")*('2. Assisted & Restricted Units'!$W$7:$W$399=\"TOD\")*('2. Assisted & Restricted Units'!$X$7:$X$399=\"25% SMI\"))","v":0},{"$f":"SUMPRODUCT(('2. Assisted & Restricted Units'!$E$7:$E$399=\"3\")*('2. Assisted & Restricted Units'!$W$7:$W$399=\"707-E\")*('2. Assisted & Restricted Units'!$X$7:$X$399=\"25% SMI\"))","v":0},{"$f":"SUMPRODUCT(('2. Assisted & Restricted Units'!$E$7:$E$399=\"3\")*('2. Assisted & Restricted Units'!$W$7:$W$399=\"707-N\")*('2. Assisted & Restricted Units'!$X$7:$X$399=\"25% SMI\"))","v":0}]
["3 Bedroom 30% SMI",{"$f":"SUMPRODUCT(('2. Assisted & Restricted Units'!$E$7:$E$399=\"3\")*('2. Assisted & Restricted Units'!$W$7:$W$399=\"CALDAP\")*('2. Assisted & Restricted Units'!$X$7:$X$399=\"30% SMI\"))","v":0},{"$f":"SUMPRODUCT(('2. Assisted & Restricted Units'!$E$7:$E$399=\"3\")*('2. Assisted & Restricted Units'!$W$7:$W$399=\"CHRP-R\")*('2. Assisted & Restricted Units'!$X$7:$X$399=\"30% SMI\"))","v":0},{"$f":"SUMPRODUCT(('2. Assisted & Restricted Units'!$E$7:$E$399=\"3\")*('2. Assisted & Restricted Units'!$W$7:$W$399=\"DDS\")*('2. Assisted & Restricted Units'!$X$7:$X$399=\"30% SMI\"))","v":0},{"$f":"SUMPRODUCT(('2. Assisted & Restricted Units'!$E$7:$E$399=\"3\")*('2. Assisted & Restricted Units'!$W$7:$W$399=\"DPRLP\")*('2. Assisted & Restricted Units'!$X$7:$X$399=\"30% SMI\"))","v":0},{"$f":"SUMPRODUCT(('2. Assisted & Restricted Units'!$E$7:$E$399=\"3\")*('2. Assisted & Restricted Units'!$W$7:$W$399=\"FHDP\")*('2. Assisted & Restricted Units'!$X$7:$X$399=\"30% SMI\"))","v":0},{"$f":"SUMPRODUCT(('2. Assisted & Restricted Units'!$E$7:$E$399=\"3\")*('2. Assisted & Restricted Units'!$W$7:$W$399=\"FMTW\")*('2. Assisted & Restricted Units'!$X$7:$X$399=\"30% SMI\"))","v":0},null,{"$f":"SUMPRODUCT(('2. Assisted & Restricted Units'!$E$7:$E$399=\"3\")*('2. Assisted & Restricted Units'!$W$7:$W$399=\"HOME\")*('2. Assisted & Restricted Units'!$X$7:$X$399=\"30% SMI\"))","v":0},{"$f":"SUMPRODUCT(('2. Assisted & Restricted Units'!$E$7:$E$399=\"3\")*('2. Assisted & Restricted Units'!$W$7:$W$399=\"Market Rate\")*('2. Assisted & Restricted Units'!$X$7:$X$399=\"30% SMI\"))","v":0},{"$f":"SUMPRODUCT(('2. Assisted & Restricted Units'!$E$7:$E$399=\"3\")*('2. Assisted & Restricted Units'!$W$7:$W$399=\"MHP\")*('2. Assisted & Restricted Units'!$X$7:$X$399=\"30% SMI\"))","v":0},{"$f":"SUMPRODUCT(('2. Assisted & Restricted Units'!$E$7:$E$399=\"3\")*('2. Assisted & Restricted Units'!$W$7:$W$399=\"NonAssisted\")*('2. Assisted & Restricted Units'!$X$7:$X$399=\"30% SMI\"))","v":0},{"$f":"SUMPRODUCT(('2. Assisted & Restricted Units'!$E$7:$E$399=\"3\")*('2. Assisted & Restricted Units'!$W$7:$W$399=\"Other Restr\")*('2. Assisted & Restricted Units'!$X$7:$X$399=\"30% SMI\"))","v":0},{"$f":"SUMPRODUCT(('2. Assisted & Restricted Units'!$E$7:$E$399=\"3\")*('2. Assisted & Restricted Units'!$W$7:$W$399=\"RHCP-B\")*('2. Assisted & Restricted Units'!$X$7:$X$399=\"30% SMI\"))","v":0},{"$f":"SUMPRODUCT(('2. Assisted & Restricted Units'!$E$7:$E$399=\"3\")*('2. Assisted & Restricted Units'!$W$7:$W$399=\"SERA\")*('2. Assisted & Restricted Units'!$X$7:$X$399=\"30% SMI\"))","v":0},{"$f":"SUMPRODUCT(('2. Assisted & Restricted Units'!$E$7:$E$399=\"3\")*('2. Assisted & Restricted Units'!$W$7:$W$399=\"SUHRP\")*('2. Assisted & Restricted Units'!$X$7:$X$399=\"30% SMI\"))","v":0},{"$f":"SUMPRODUCT(('2. Assisted & Restricted Units'!$E$7:$E$399=\"3\")*('2. Assisted & Restricted Units'!$W$7:$W$399=\"TOD\")*('2. Assisted & Restricted Units'!$X$7:$X$399=\"30% SMI\"))","v":0},{"$f":"SUMPRODUCT(('2. Assisted & Restricted Units'!$E$7:$E$399=\"3\")*('2. Assisted & Restricted Units'!$W$7:$W$399=\"707-E\")*('2. Assisted & Restricted Units'!$X$7:$X$399=\"30% SMI\"))","v":0},{"$f":"SUMPRODUCT(('2. Assisted & Restricted Units'!$E$7:$E$399=\"3\")*('2. Assisted & Restricted Units'!$W$7:$W$399=\"707-N\")*('2. Assisted & Restricted Units'!$X$7:$X$399=\"30% SMI\"))","v":0}]
["3 Bedroom 35% SMI",{"$f":"SUMPRODUCT(('2. Assisted & Restricted Units'!$E$7:$E$399=\"3\")*('2. Assisted & Restricted Units'!$W$7:$W$399=\"CALDAP\")*('2. Assisted & Restricted Units'!$X$7:$X$399=\"35% SMI\"))","v":0},{"$f":"SUMPRODUCT(('2. Assisted & Restricted Units'!$E$7:$E$399=\"3\")*('2. Assisted & Restricted Units'!$W$7:$W$399=\"CHRP-R\")*('2. Assisted & Restricted Units'!$X$7:$X$399=\"35% SMI\"))","v":0},{"$f":"SUMPRODUCT(('2. Assisted & Restricted Units'!$E$7:$E$399=\"3\")*('2. Assisted & Restricted Units'!$W$7:$W$399=\"DDS\")*('2. Assisted & Restricted Units'!$X$7:$X$399=\"35% SMI\"))","v":0},{"$f":"SUMPRODUCT(('2. Assisted & Restricted Units'!$E$7:$E$399=\"3\")*('2. Assisted & Restricted Units'!$W$7:$W$399=\"DPRLP\")*('2. Assisted & Restricted Units'!$X$7:$X$399=\"35% SMI\"))","v":0},{"$f":"SUMPRODUCT(('2. Assisted & Restricted Units'!$E$7:$E$399=\"3\")*('2. Assisted & Restricted Units'!$W$7:$W$399=\"FHDP\")*('2. Assisted & Restricted Units'!$X$7:$X$399=\"35% SMI\"))","v":0},{"$f":"SUMPRODUCT(('2. Assisted & Restricted Units'!$E$7:$E$399=\"3\")*('2. Assisted & Restricted Units'!$W$7:$W$399=\"FMTW\")*('2. Assisted & Restricted Units'!$X$7:$X$399=\"35% SMI\"))","v":0},null,{"$f":"SUMPRODUCT(('2. Assisted & Restricted Units'!$E$7:$E$399=\"3\")*('2. Assisted & Restricted Units'!$W$7:$W$399=\"HOME\")*('2. Assisted & Restricted Units'!$X$7:$X$399=\"35% SMI\"))","v":0},{"$f":"SUMPRODUCT(('2. Assisted & Restricted Units'!$E$7:$E$399=\"3\")*('2. Assisted & Restricted Units'!$W$7:$W$399=\"Market Rate\")*('2. Assisted & Restricted Units'!$X$7:$X$399=\"35% SMI\"))","v":0},{"$f":"SUMPRODUCT(('2. Assisted & Restricted Units'!$E$7:$E$399=\"3\")*('2. Assisted & Restricted Units'!$W$7:$W$399=\"MHP\")*('2. Assisted & Restricted Units'!$X$7:$X$399=\"35% SMI\"))","v":0},{"$f":"SUMPRODUCT(('2. Assisted & Restricted Units'!$E$7:$E$399=\"3\")*('2. Assisted & Restricted Units'!$W$7:$W$399=\"NonAssisted\")*('2. Assisted & Restricted Units'!$X$7:$X$399=\"35% SMI\"))","v":0},{"$f":"SUMPRODUCT(('2. Assisted & Restricted Units'!$E$7:$E$399=\"3\")*('2. Assisted & Restricted Units'!$W$7:$W$399=\"Other Restr\")*('2. Assisted & Restricted Units'!$X$7:$X$399=\"35% SMI\"))","v":0},{"$f":"SUMPRODUCT(('2. Assisted & Restricted Units'!$E$7:$E$399=\"3\")*('2. Assisted & Restricted Units'!$W$7:$W$399=\"RHCP-B\")*('2. Assisted & Restricted Units'!$X$7:$X$399=\"35% SMI\"))","v":0},{"$f":"SUMPRODUCT(('2. Assisted & Restricted Units'!$E$7:$E$399=\"3\")*('2. Assisted & Restricted Units'!$W$7:$W$399=\"SERA\")*('2. Assisted & Restricted Units'!$X$7:$X$399=\"35% SMI\"))","v":0},{"$f":"SUMPRODUCT(('2. Assisted & Restricted Units'!$E$7:$E$399=\"3\")*('2. Assisted & Restricted Units'!$W$7:$W$399=\"SUHRP\")*('2. Assisted & Restricted Units'!$X$7:$X$399=\"35% SMI\"))","v":0},{"$f":"SUMPRODUCT(('2. Assisted & Restricted Units'!$E$7:$E$399=\"3\")*('2. Assisted & Restricted Units'!$W$7:$W$399=\"TOD\")*('2. Assisted & Restricted Units'!$X$7:$X$399=\"35% SMI\"))","v":0},{"$f":"SUMPRODUCT(('2. Assisted & Restricted Units'!$E$7:$E$399=\"3\")*('2. Assisted & Restricted Units'!$W$7:$W$399=\"707-E\")*('2. Assisted & Restricted Units'!$X$7:$X$399=\"35% SMI\"))","v":0},{"$f":"SUMPRODUCT(('2. Assisted & Restricted Units'!$E$7:$E$399=\"3\")*('2. Assisted & Restricted Units'!$W$7:$W$399=\"707-N\")*('2. Assisted & Restricted Units'!$X$7:$X$399=\"35% SMI\"))","v":0}]
["3 Bedroom 40% SMI",{"$f":"SUMPRODUCT(('2. Assisted & Restricted Units'!$E$7:$E$399=\"3\")*('2. Assisted & Restricted Units'!$W$7:$W$399=\"CALDAP\")*('2. Assisted & Restricted Units'!$X$7:$X$399=\"40% SMI\"))","v":0},{"$f":"SUMPRODUCT(('2. Assisted & Restricted Units'!$E$7:$E$399=\"3\")*('2. Assisted & Restricted Units'!$W$7:$W$399=\"CHRP-R\")*('2. Assisted & Restricted Units'!$X$7:$X$399=\"40% SMI\"))","v":0},{"$f":"SUMPRODUCT(('2. Assisted & Restricted Units'!$E$7:$E$399=\"3\")*('2. Assisted & Restricted Units'!$W$7:$W$399=\"DDS\")*('2. Assisted & Restricted Units'!$X$7:$X$399=\"40% SMI\"))","v":0},{"$f":"SUMPRODUCT(('2. Assisted & Restricted Units'!$E$7:$E$399=\"3\")*('2. Assisted & Restricted Units'!$W$7:$W$399=\"DPRLP\")*('2. Assisted & Restricted Units'!$X$7:$X$399=\"40% SMI\"))","v":0},{"$f":"SUMPRODUCT(('2. Assisted & Restricted Units'!$E$7:$E$399=\"3\")*('2. Assisted & Restricted Units'!$W$7:$W$399=\"FHDP\")*('2. Assisted & Restricted Units'!$X$7:$X$399=\"40% SMI\"))","v":0},{"$f":"SUMPRODUCT(('2. Assisted & Restricted Units'!$E$7:$E$399=\"3\")*('2. Assisted & Restricted Units'!$W$7:$W$399=\"FMTW\")*('2. Assisted & Restricted Units'!$X$7:$X$399=\"40% SMI\"))","v":0},null,{"$f":"SUMPRODUCT(('2. Assisted & Restricted Units'!$E$7:$E$399=\"3\")*('2. Assisted & Restricted Units'!$W$7:$W$399=\"HOME\")*('2. Assisted & Restricted Units'!$X$7:$X$399=\"40% SMI\"))","v":0},{"$f":"SUMPRODUCT(('2. Assisted & Restricted Units'!$E$7:$E$399=\"3\")*('2. Assisted & Restricted Units'!$W$7:$W$399=\"Market Rate\")*('2. Assisted & Restricted Units'!$X$7:$X$399=\"40% SMI\"))","v":0},{"$f":"SUMPRODUCT(('2. Assisted & Restricted Units'!$E$7:$E$399=\"3\")*('2. Assisted & Restricted Units'!$W$7:$W$399=\"MHP\")*('2. Assisted & Restricted Units'!$X$7:$X$399=\"40% SMI\"))","v":0},{"$f":"SUMPRODUCT(('2. Assisted & Restricted Units'!$E$7:$E$399=\"3\")*('2. Assisted & Restricted Units'!$W$7:$W$399=\"NonAssisted\")*('2. Assisted & Restricted Units'!$X$7:$X$399=\"40% SMI\"))","v":0},{"$f":"SUMPRODUCT(('2. Assisted & Restricted Units'!$E$7:$E$399=\"3\")*('2. Assisted & Restricted Units'!$W$7:$W$399=\"Other Restr\")*('2. Assisted & Restricted Units'!$X$7:$X$399=\"40% SMI\"))","v":0},{"$f":"SUMPRODUCT(('2. Assisted & Restricted Units'!$E$7:$E$399=\"3\")*('2. Assisted & Restricted Units'!$W$7:$W$399=\"RHCP-B\")*('2. Assisted & Restricted Units'!$X$7:$X$399=\"40% SMI\"))","v":0},{"$f":"SUMPRODUCT(('2. Assisted & Restricted Units'!$E$7:$E$399=\"3\")*('2. Assisted & Restricted Units'!$W$7:$W$399=\"SERA\")*('2. Assisted & Restricted Units'!$X$7:$X$399=\"40% SMI\"))","v":0},{"$f":"SUMPRODUCT(('2. Assisted & Restricted Units'!$E$7:$E$399=\"3\")*('2. Assisted & Restricted Units'!$W$7:$W$399=\"SUHRP\")*('2. Assisted & Restricted Units'!$X$7:$X$399=\"40% SMI\"))","v":0},{"$f":"SUMPRODUCT(('2. Assisted & Restricted Units'!$E$7:$E$399=\"3\")*('2. Assisted & Restricted Units'!$W$7:$W$399=\"TOD\")*('2. Assisted & Restricted Units'!$X$7:$X$399=\"40% SMI\"))","v":0},{"$f":"SUMPRODUCT(('2. Assisted & Restricted Units'!$E$7:$E$399=\"3\")*('2. Assisted & Restricted Units'!$W$7:$W$399=\"707-E\")*('2. Assisted & Restricted Units'!$X$7:$X$399=\"40% SMI\"))","v":0},{"$f":"SUMPRODUCT(('2. Assisted & Restricted Units'!$E$7:$E$399=\"3\")*('2. Assisted & Restricted Units'!$W$7:$W$399=\"707-N\")*('2. Assisted & Restricted Units'!$X$7:$X$399=\"40% SMI\"))","v":0}]
["3 Bedroom 45% SMI",{"$f":"SUMPRODUCT(('2. Assisted & Restricted Units'!$E$7:$E$399=\"3\")*('2. Assisted & Restricted Units'!$W$7:$W$399=\"CALDAP\")*('2. Assisted & Restricted Units'!$X$7:$X$399=\"45% SMI\"))","v":0},{"$f":"SUMPRODUCT(('2. Assisted & Restricted Units'!$E$7:$E$399=\"3\")*('2. Assisted & Restricted Units'!$W$7:$W$399=\"CHRP-R\")*('2. Assisted & Restricted Units'!$X$7:$X$399=\"45% SMI\"))","v":0},{"$f":"SUMPRODUCT(('2. Assisted & Restricted Units'!$E$7:$E$399=\"3\")*('2. Assisted & Restricted Units'!$W$7:$W$399=\"DDS\")*('2. Assisted & Restricted Units'!$X$7:$X$399=\"45% SMI\"))","v":0},{"$f":"SUMPRODUCT(('2. Assisted & Restricted Units'!$E$7:$E$399=\"3\")*('2. Assisted & Restricted Units'!$W$7:$W$399=\"DPRLP\")*('2. Assisted & Restricted Units'!$X$7:$X$399=\"45% SMI\"))","v":0},{"$f":"SUMPRODUCT(('2. Assisted & Restricted Units'!$E$7:$E$399=\"3\")*('2. Assisted & Restricted Units'!$W$7:$W$399=\"FHDP\")*('2. Assisted & Restricted Units'!$X$7:$X$399=\"45% SMI\"))","v":0},{"$f":"SUMPRODUCT(('2. Assisted & Restricted Units'!$E$7:$E$399=\"3\")*('2. Assisted & Restricted Units'!$W$7:$W$399=\"FMTW\")*('2. Assisted & Restricted Units'!$X$7:$X$399=\"45% SMI\"))","v":0},null,{"$f":"SUMPRODUCT(('2. Assisted & Restricted Units'!$E$7:$E$399=\"3\")*('2. Assisted & Restricted Units'!$W$7:$W$399=\"HOME\")*('2. Assisted & Restricted Units'!$X$7:$X$399=\"45% SMI\"))","v":0},{"$f":"SUMPRODUCT(('2. Assisted & Restricted Units'!$E$7:$E$399=\"3\")*('2. Assisted & Restricted Units'!$W$7:$W$399=\"Market Rate\")*('2. Assisted & Restricted Units'!$X$7:$X$399=\"45% SMI\"))","v":0},{"$f":"SUMPRODUCT(('2. Assisted & Restricted Units'!$E$7:$E$399=\"3\")*('2. Assisted & Restricted Units'!$W$7:$W$399=\"MHP\")*('2. Assisted & Restricted Units'!$X$7:$X$399=\"45% SMI\"))","v":0},{"$f":"SUMPRODUCT(('2. Assisted & Restricted Units'!$E$7:$E$399=\"3\")*('2. Assisted & Restricted Units'!$W$7:$W$399=\"NonAssisted\")*('2. Assisted & Restricted Units'!$X$7:$X$399=\"45% SMI\"))","v":0},{"$f":"SUMPRODUCT(('2. Assisted & Restricted Units'!$E$7:$E$399=\"3\")*('2. Assisted & Restricted Units'!$W$7:$W$399=\"Other Restr\")*('2. Assisted & Restricted Units'!$X$7:$X$399=\"45% SMI\"))","v":0},{"$f":"SUMPRODUCT(('2. Assisted & Restricted Units'!$E$7:$E$399=\"3\")*('2. Assisted & Restricted Units'!$W$7:$W$399=\"RHCP-B\")*('2. Assisted & Restricted Units'!$X$7:$X$399=\"45% SMI\"))","v":0},{"$f":"SUMPRODUCT(('2. Assisted & Restricted Units'!$E$7:$E$399=\"3\")*('2. Assisted & Restricted Units'!$W$7:$W$399=\"SERA\")*('2. Assisted & Restricted Units'!$X$7:$X$399=\"45% SMI\"))","v":0},{"$f":"SUMPRODUCT(('2. Assisted & Restricted Units'!$E$7:$E$399=\"3\")*('2. Assisted & Restricted Units'!$W$7:$W$399=\"SUHRP\")*('2. Assisted & Restricted Units'!$X$7:$X$399=\"45% SMI\"))","v":0},{"$f":"SUMPRODUCT(('2. Assisted & Restricted Units'!$E$7:$E$399=\"3\")*('2. Assisted & Restricted Units'!$W$7:$W$399=\"TOD\")*('2. Assisted & Restricted Units'!$X$7:$X$399=\"45% SMI\"))","v":0},{"$f":"SUMPRODUCT(('2. Assisted & Restricted Units'!$E$7:$E$399=\"3\")*('2. Assisted & Restricted Units'!$W$7:$W$399=\"707-E\")*('2. Assisted & Restricted Units'!$X$7:$X$399=\"45% SMI\"))","v":0},{"$f":"SUMPRODUCT(('2. Assisted & Restricted Units'!$E$7:$E$399=\"3\")*('2. Assisted & Restricted Units'!$W$7:$W$399=\"707-N\")*('2. Assisted & Restricted Units'!$X$7:$X$399=\"45% SMI\"))","v":0}]
["3 Bedroom 50% SMI",{"$f":"SUMPRODUCT(('2. Assisted & Restricted Units'!$E$7:$E$399=\"3\")*('2. Assisted & Restricted Units'!$W$7:$W$399=\"CALDAP\")*('2. Assisted & Restricted Units'!$X$7:$X$399=\"50% SMI\"))","v":0},{"$f":"SUMPRODUCT(('2. Assisted & Restricted Units'!$E$7:$E$399=\"3\")*('2. Assisted & Restricted Units'!$W$7:$W$399=\"CHRP-R\")*('2. Assisted & Restricted Units'!$X$7:$X$399=\"50% SMI\"))","v":0},{"$f":"SUMPRODUCT(('2. Assisted & Restricted Units'!$E$7:$E$399=\"3\")*('2. Assisted & Restricted Units'!$W$7:$W$399=\"DDS\")*('2. Assisted & Restricted Units'!$X$7:$X$399=\"50% SMI\"))","v":0},{"$f":"SUMPRODUCT(('2. Assisted & Restricted Units'!$E$7:$E$399=\"3\")*('2. Assisted & Restricted Units'!$W$7:$W$399=\"DPRLP\")*('2. Assisted & Restricted Units'!$X$7:$X$399=\"50% SMI\"))","v":0},{"$f":"SUMPRODUCT(('2. Assisted & Restricted Units'!$E$7:$E$399=\"3\")*('2. Assisted & Restricted Units'!$W$7:$W$399=\"FHDP\")*('2. Assisted & Restricted Units'!$X$7:$X$399=\"50% SMI\"))","v":0},{"$f":"SUMPRODUCT(('2. Assisted & Restricted Units'!$E$7:$E$399=\"3\")*('2. Assisted & Restricted Units'!$W$7:$W$399=\"FMTW\")*('2. Assisted & Restricted Units'!$X$7:$X$399=\"50% SMI\"))","v":0},null,{"$f":"SUMPRODUCT(('2. Assisted & Restricted Units'!$E$7:$E$399=\"3\")*('2. Assisted & Restricted Units'!$W$7:$W$399=\"HOME\")*('2. Assisted & Restricted Units'!$X$7:$X$399=\"50% SMI\"))","v":0},{"$f":"SUMPRODUCT(('2. Assisted & Restricted Units'!$E$7:$E$399=\"3\")*('2. Assisted & Restricted Units'!$W$7:$W$399=\"Market Rate\")*('2. Assisted & Restricted Units'!$X$7:$X$399=\"50% SMI\"))","v":0},{"$f":"SUMPRODUCT(('2. Assisted & Restricted Units'!$E$7:$E$399=\"3\")*('2. Assisted & Restricted Units'!$W$7:$W$399=\"MHP\")*('2. Assisted & Restricted Units'!$X$7:$X$399=\"50% SMI\"))","v":0},{"$f":"SUMPRODUCT(('2. Assisted & Restricted Units'!$E$7:$E$399=\"3\")*('2. Assisted & Restricted Units'!$W$7:$W$399=\"NonAssisted\")*('2. Assisted & Restricted Units'!$X$7:$X$399=\"50% SMI\"))","v":0},{"$f":"SUMPRODUCT(('2. Assisted & Restricted Units'!$E$7:$E$399=\"3\")*('2. Assisted & Restricted Units'!$W$7:$W$399=\"Other Restr\")*('2. Assisted & Restricted Units'!$X$7:$X$399=\"50% SMI\"))","v":0},{"$f":"SUMPRODUCT(('2. Assisted & Restricted Units'!$E$7:$E$399=\"3\")*('2. Assisted & Restricted Units'!$W$7:$W$399=\"RHCP-B\")*('2. Assisted & Restricted Units'!$X$7:$X$399=\"50% SMI\"))","v":0},{"$f":"SUMPRODUCT(('2. Assisted & Restricted Units'!$E$7:$E$399=\"3\")*('2. Assisted & Restricted Units'!$W$7:$W$399=\"SERA\")*('2. Assisted & Restricted Units'!$X$7:$X$399=\"50% SMI\"))","v":0},{"$f":"SUMPRODUCT(('2. Assisted & Restricted Units'!$E$7:$E$399=\"3\")*('2. Assisted & Restricted Units'!$W$7:$W$399=\"SUHRP\")*('2. Assisted & Restricted Units'!$X$7:$X$399=\"50% SMI\"))","v":0},{"$f":"SUMPRODUCT(('2. Assisted & Restricted Units'!$E$7:$E$399=\"3\")*('2. Assisted & Restricted Units'!$W$7:$W$399=\"TOD\")*('2. Assisted & Restricted Units'!$X$7:$X$399=\"50% SMI\"))","v":0},{"$f":"SUMPRODUCT(('2. Assisted & Restricted Units'!$E$7:$E$399=\"3\")*('2. Assisted & Restricted Units'!$W$7:$W$399=\"707-E\")*('2. Assisted & Restricted Units'!$X$7:$X$399=\"50% SMI\"))","v":0},{"$f":"SUMPRODUCT(('2. Assisted & Restricted Units'!$E$7:$E$399=\"3\")*('2. Assisted & Restricted Units'!$W$7:$W$399=\"707-N\")*('2. Assisted & Restricted Units'!$X$7:$X$399=\"50% SMI\"))","v":0}]
["3 Bedroom 100% SMI",{"$f":"SUMPRODUCT(('2. Assisted & Restricted Units'!$E$7:$E$399=\"3\")*('2. Assisted & Restricted Units'!$W$7:$W$399=\"CALDAP\")*('2. Assisted & Restricted Units'!$X$7:$X$399=\"100% SMI\"))","v":0},{"$f":"SUMPRODUCT(('2. Assisted & Restricted Units'!$E$7:$E$399=\"3\")*('2. Assisted & Restricted Units'!$W$7:$W$399=\"CHRP-R\")*('2. Assisted & Restricted Units'!$X$7:$X$399=\"100% SMI\"))","v":0},{"$f":"SUMPRODUCT(('2. Assisted & Restricted Units'!$E$7:$E$399=\"3\")*('2. Assisted & Restricted Units'!$W$7:$W$399=\"DDS\")*('2. Assisted & Restricted Units'!$X$7:$X$399=\"100% SMI\"))","v":0},{"$f":"SUMPRODUCT(('2. Assisted & Restricted Units'!$E$7:$E$399=\"3\")*('2. Assisted & Restricted Units'!$W$7:$W$399=\"DPRLP\")*('2. Assisted & Restricted Units'!$X$7:$X$399=\"100% SMI\"))","v":0},{"$f":"SUMPRODUCT(('2. Assisted & Restricted Units'!$E$7:$E$399=\"3\")*('2. Assisted & Restricted Units'!$W$7:$W$399=\"FHDP\")*('2. Assisted & Restricted Units'!$X$7:$X$399=\"100% SMI\"))","v":0},{"$f":"SUMPRODUCT(('2. Assisted & Restricted Units'!$E$7:$E$399=\"3\")*('2. Assisted & Restricted Units'!$W$7:$W$399=\"FMTW\")*('2. Assisted & Restricted Units'!$X$7:$X$399=\"100% SMI\"))","v":0},null,{"$f":"SUMPRODUCT(('2. Assisted & Restricted Units'!$E$7:$E$399=\"3\")*('2. Assisted & Restricted Units'!$W$7:$W$399=\"HOME\")*('2. Assisted & Restricted Units'!$X$7:$X$399=\"100% SMI\"))","v":0},{"$f":"SUMPRODUCT(('2. Assisted & Restricted Units'!$E$7:$E$399=\"3\")*('2. Assisted & Restricted Units'!$W$7:$W$399=\"Market Rate\")*('2. Assisted & Restricted Units'!$X$7:$X$399=\"100% SMI\"))","v":0},{"$f":"SUMPRODUCT(('2. Assisted & Restricted Units'!$E$7:$E$399=\"3\")*('2. Assisted & Restricted Units'!$W$7:$W$399=\"MHP\")*('2. Assisted & Restricted Units'!$X$7:$X$399=\"100% SMI\"))","v":0},{"$f":"SUMPRODUCT(('2. Assisted & Restricted Units'!$E$7:$E$399=\"3\")*('2. Assisted & Restricted Units'!$W$7:$W$399=\"NonAssisted\")*('2. Assisted & Restricted Units'!$X$7:$X$399=\"100% SMI\"))","v":0},{"$f":"SUMPRODUCT(('2. Assisted & Restricted Units'!$E$7:$E$399=\"3\")*('2. Assisted & Restricted Units'!$W$7:$W$399=\"Other Restr\")*('2. Assisted & Restricted Units'!$X$7:$X$399=\"100% SMI\"))","v":0},{"$f":"SUMPRODUCT(('2. Assisted & Restricted Units'!$E$7:$E$399=\"3\")*('2. Assisted & Restricted Units'!$W$7:$W$399=\"RHCP-B\")*('2. Assisted & Restricted Units'!$X$7:$X$399=\"100% SMI\"))","v":0},{"$f":"SUMPRODUCT(('2. Assisted & Restricted Units'!$E$7:$E$399=\"3\")*('2. Assisted & Restricted Units'!$W$7:$W$399=\"SERA\")*('2. Assisted & Restricted Units'!$X$7:$X$399=\"100% SMI\"))","v":0},{"$f":"SUMPRODUCT(('2. Assisted & Restricted Units'!$E$7:$E$399=\"3\")*('2. Assisted & Restricted Units'!$W$7:$W$399=\"SUHRP\")*('2. Assisted & Restricted Units'!$X$7:$X$399=\"100% SMI\"))","v":0},{"$f":"SUMPRODUCT(('2. Assisted & Restricted Units'!$E$7:$E$399=\"3\")*('2. Assisted & Restricted Units'!$W$7:$W$399=\"TOD\")*('2. Assisted & Restricted Units'!$X$7:$X$399=\"100% SMI\"))","v":0},{"$f":"SUMPRODUCT(('2. Assisted & Restricted Units'!$E$7:$E$399=\"3\")*('2. Assisted & Restricted Units'!$W$7:$W$399=\"707-E\")*('2. Assisted & Restricted Units'!$X$7:$X$399=\"100% SMI\"))","v":0},{"$f":"SUMPRODUCT(('2. Assisted & Restricted Units'!$E$7:$E$399=\"3\")*('2. Assisted & Restricted Units'!$W$7:$W$399=\"707-N\")*('2. Assisted & Restricted Units'!$X$7:$X$399=\"100% SMI\"))","v":0}]
["3 Bedroom VLI HOME",{"$f":"SUMPRODUCT(('2. Assisted & Restricted Units'!$E$7:$E$399=\"3\")*('2. Assisted & Restricted Units'!$W$7:$W$399=\"CALDAP\")*('2. Assisted & Restricted Units'!$X$7:$X$399=\"VLI HOME\"))","v":0},{"$f":"SUMPRODUCT(('2. Assisted & Restricted Units'!$E$7:$E$399=\"3\")*('2. Assisted & Restricted Units'!$W$7:$W$399=\"CHRP-R\")*('2. Assisted & Restricted Units'!$X$7:$X$399=\"VLI HOME\"))","v":0},{"$f":"SUMPRODUCT(('2. Assisted & Restricted Units'!$E$7:$E$399=\"3\")*('2. Assisted & Restricted Units'!$W$7:$W$399=\"DDS\")*('2. Assisted & Restricted Units'!$X$7:$X$399=\"VLI HOME\"))","v":0},{"$f":"SUMPRODUCT(('2. Assisted & Restricted Units'!$E$7:$E$399=\"3\")*('2. Assisted & Restricted Units'!$W$7:$W$399=\"DPRLP\")*('2. Assisted & Restricted Units'!$X$7:$X$399=\"VLI HOME\"))","v":0},{"$f":"SUMPRODUCT(('2. Assisted & Restricted Units'!$E$7:$E$399=\"3\")*('2. Assisted & Restricted Units'!$W$7:$W$399=\"FHDP\")*('2. Assisted & Restricted Units'!$X$7:$X$399=\"VLI HOME\"))","v":0},{"$f":"SUMPRODUCT(('2. Assisted & Restricted Units'!$E$7:$E$399=\"3\")*('2. Assisted & Restricted Units'!$W$7:$W$399=\"FMTW\")*('2. Assisted & Restricted Units'!$X$7:$X$399=\"VLI HOME\"))","v":0},null,{"$f":"SUMPRODUCT(('2. Assisted & Restricted Units'!$E$7:$E$399=\"3\")*('2. Assisted & Restricted Units'!$W$7:$W$399=\"HOME\")*('2. Assisted & Restricted Units'!$X$7:$X$399=\"VLI HOME\"))","v":0},{"$f":"SUMPRODUCT(('2. Assisted & Restricted Units'!$E$7:$E$399=\"3\")*('2. Assisted & Restricted Units'!$W$7:$W$399=\"Market Rate\")*('2. Assisted & Restricted Units'!$X$7:$X$399=\"VLI HOME\"))","v":0},{"$f":"SUMPRODUCT(('2. Assisted & Restricted Units'!$E$7:$E$399=\"3\")*('2. Assisted & Restricted Units'!$W$7:$W$399=\"MHP\")*('2. Assisted & Restricted Units'!$X$7:$X$399=\"VLI HOME\"))","v":0},{"$f":"SUMPRODUCT(('2. Assisted & Restricted Units'!$E$7:$E$399=\"3\")*('2. Assisted & Restricted Units'!$W$7:$W$399=\"NonAssisted\")*('2. Assisted & Restricted Units'!$X$7:$X$399=\"VLI HOME\"))","v":0},{"$f":"SUMPRODUCT(('2. Assisted & Restricted Units'!$E$7:$E$399=\"3\")*('2. Assisted & Restricted Units'!$W$7:$W$399=\"Other Restr\")*('2. Assisted & Restricted Units'!$X$7:$X$399=\"VLI HOME\"))","v":0},{"$f":"SUMPRODUCT(('2. Assisted & Restricted Units'!$E$7:$E$399=\"3\")*('2. Assisted & Restricted Units'!$W$7:$W$399=\"RHCP-B\")*('2. Assisted & Restricted Units'!$X$7:$X$399=\"VLI HOME\"))","v":0},{"$f":"SUMPRODUCT(('2. Assisted & Restricted Units'!$E$7:$E$399=\"3\")*('2. Assisted & Restricted Units'!$W$7:$W$399=\"SERA\")*('2. Assisted & Restricted Units'!$X$7:$X$399=\"VLI HOME\"))","v":0},{"$f":"SUMPRODUCT(('2. Assisted & Restricted Units'!$E$7:$E$399=\"3\")*('2. Assisted & Restricted Units'!$W$7:$W$399=\"SUHRP\")*('2. Assisted & Restricted Units'!$X$7:$X$399=\"VLI HOME\"))","v":0},{"$f":"SUMPRODUCT(('2. Assisted & Restricted Units'!$E$7:$E$399=\"3\")*('2. Assisted & Restricted Units'!$W$7:$W$399=\"TOD\")*('2. Assisted & Restricted Units'!$X$7:$X$399=\"VLI HOME\"))","v":0},{"$f":"SUMPRODUCT(('2. Assisted & Restricted Units'!$E$7:$E$399=\"3\")*('2. Assisted & Restricted Units'!$W$7:$W$399=\"707-E\")*('2. Assisted & Restricted Units'!$X$7:$X$399=\"VLI HOME\"))","v":0},{"$f":"SUMPRODUCT(('2. Assisted & Restricted Units'!$E$7:$E$399=\"3\")*('2. Assisted & Restricted Units'!$W$7:$W$399=\"707-N\")*('2. Assisted & Restricted Units'!$X$7:$X$399=\"VLI HOME\"))","v":0}]
["3 Bedroom LI HOME",{"$f":"SUMPRODUCT(('2. Assisted & Restricted Units'!$E$7:$E$399=\"3\")*('2. Assisted & Restricted Units'!$W$7:$W$399=\"CALDAP\")*('2. Assisted & Restricted Units'!$X$7:$X$399=\"LI HOME\"))","v":0},{"$f":"SUMPRODUCT(('2. Assisted & Restricted Units'!$E$7:$E$399=\"3\")*('2. Assisted & Restricted Units'!$W$7:$W$399=\"CHRP-R\")*('2. Assisted & Restricted Units'!$X$7:$X$399=\"LI HOME\"))","v":0},{"$f":"SUMPRODUCT(('2. Assisted & Restricted Units'!$E$7:$E$399=\"3\")*('2. Assisted & Restricted Units'!$W$7:$W$399=\"DDS\")*('2. Assisted & Restricted Units'!$X$7:$X$399=\"LI HOME\"))","v":0},{"$f":"SUMPRODUCT(('2. Assisted & Restricted Units'!$E$7:$E$399=\"3\")*('2. Assisted & Restricted Units'!$W$7:$W$399=\"DPRLP\")*('2. Assisted & Restricted Units'!$X$7:$X$399=\"LI HOME\"))","v":0},{"$f":"SUMPRODUCT(('2. Assisted & Restricted Units'!$E$7:$E$399=\"3\")*('2. Assisted & Restricted Units'!$W$7:$W$399=\"FHDP\")*('2. Assisted & Restricted Units'!$X$7:$X$399=\"LI HOME\"))","v":0},{"$f":"SUMPRODUCT(('2. Assisted & Restricted Units'!$E$7:$E$399=\"3\")*('2. Assisted & Restricted Units'!$W$7:$W$399=\"FMTW\")*('2. Assisted & Restricted Units'!$X$7:$X$399=\"LI HOME\"))","v":0},null,{"$f":"SUMPRODUCT(('2. Assisted & Restricted Units'!$E$7:$E$399=\"3\")*('2. Assisted & Restricted Units'!$W$7:$W$399=\"HOME\")*('2. Assisted & Restricted Units'!$X$7:$X$399=\"LI HOME\"))","v":0},{"$f":"SUMPRODUCT(('2. Assisted & Restricted Units'!$E$7:$E$399=\"3\")*('2. Assisted & Restricted Units'!$W$7:$W$399=\"Market Rate\")*('2. Assisted & Restricted Units'!$X$7:$X$399=\"LI HOME\"))","v":0},{"$f":"SUMPRODUCT(('2. Assisted & Restricted Units'!$E$7:$E$399=\"3\")*('2. Assisted & Restricted Units'!$W$7:$W$399=\"MHP\")*('2. Assisted & Restricted Units'!$X$7:$X$399=\"LI HOME\"))","v":0},{"$f":"SUMPRODUCT(('2. Assisted & Restricted Units'!$E$7:$E$399=\"3\")*('2. Assisted & Restricted Units'!$W$7:$W$399=\"NonAssisted\")*('2. Assisted & Restricted Units'!$X$7:$X$399=\"LI HOME\"))","v":0},{"$f":"SUMPRODUCT(('2. Assisted & Restricted Units'!$E$7:$E$399=\"3\")*('2. Assisted & Restricted Units'!$W$7:$W$399=\"Other Restr\")*('2. Assisted & Restricted Units'!$X$7:$X$399=\"LI HOME\"))","v":0},{"$f":"SUMPRODUCT(('2. Assisted & Restricted Units'!$E$7:$E$399=\"3\")*('2. Assisted & Restricted Units'!$W$7:$W$399=\"RHCP-B\")*('2. Assisted & Restricted Units'!$X$7:$X$399=\"LI HOME\"))","v":0},{"$f":"SUMPRODUCT(('2. Assisted & Restricted Units'!$E$7:$E$399=\"3\")*('2. Assisted & Restricted Units'!$W$7:$W$399=\"SERA\")*('2. Assisted & Restricted Units'!$X$7:$X$399=\"LI HOME\"))","v":0},{"$f":"SUMPRODUCT(('2. Assisted & Restricted Units'!$E$7:$E$399=\"3\")*('2. Assisted & Restricted Units'!$W$7:$W$399=\"SUHRP\")*('2. Assisted & Restricted Units'!$X$7:$X$399=\"LI HOME\"))","v":0},{"$f":"SUMPRODUCT(('2. Assisted & Restricted Units'!$E$7:$E$399=\"3\")*('2. Assisted & Restricted Units'!$W$7:$W$399=\"TOD\")*('2. Assisted & Restricted Units'!$X$7:$X$399=\"LI HOME\"))","v":0},{"$f":"SUMPRODUCT(('2. Assisted & Restricted Units'!$E$7:$E$399=\"3\")*('2. Assisted & Restricted Units'!$W$7:$W$399=\"707-E\")*('2. Assisted & Restricted Units'!$X$7:$X$399=\"LI HOME\"))","v":0},{"$f":"SUMPRODUCT(('2. Assisted & Restricted Units'!$E$7:$E$399=\"3\")*('2. Assisted & Restricted Units'!$W$7:$W$399=\"707-N\")*('2. Assisted & Restricted Units'!$X$7:$X$399=\"LI HOME\"))","v":0}]
["3 Bedroom VLI State",{"$f":"SUMPRODUCT(('2. Assisted & Restricted Units'!$E$7:$E$399=\"3\")*('2. Assisted & Restricted Units'!$W$7:$W$399=\"CALDAP\")*('2. Assisted & Restricted Units'!$X$7:$X$399=\"VLI State\"))","v":0},{"$f":"SUMPRODUCT(('2. Assisted & Restricted Units'!$E$7:$E$399=\"3\")*('2. Assisted & Restricted Units'!$W$7:$W$399=\"CHRP-R\")*('2. Assisted & Restricted Units'!$X$7:$X$399=\"VLI State\"))","v":0},{"$f":"SUMPRODUCT(('2. Assisted & Restricted Units'!$E$7:$E$399=\"3\")*('2. Assisted & Restricted Units'!$W$7:$W$399=\"DDS\")*('2. Assisted & Restricted Units'!$X$7:$X$399=\"VLI State\"))","v":0},{"$f":"SUMPRODUCT(('2. Assisted & Restricted Units'!$E$7:$E$399=\"3\")*('2. Assisted & Restricted Units'!$W$7:$W$399=\"DPRLP\")*('2. Assisted & Restricted Units'!$X$7:$X$399=\"VLI State\"))","v":0},{"$f":"SUMPRODUCT(('2. Assisted & Restricted Units'!$E$7:$E$399=\"3\")*('2. Assisted & Restricted Units'!$W$7:$W$399=\"FHDP\")*('2. Assisted & Restricted Units'!$X$7:$X$399=\"VLI State\"))","v":0},{"$f":"SUMPRODUCT(('2. Assisted & Restricted Units'!$E$7:$E$399=\"3\")*('2. Assisted & Restricted Units'!$W$7:$W$399=\"FMTW\")*('2. Assisted & Restricted Units'!$X$7:$X$399=\"VLI State\"))","v":0},null,{"$f":"SUMPRODUCT(('2. Assisted & Restricted Units'!$E$7:$E$399=\"3\")*('2. Assisted & Restricted Units'!$W$7:$W$399=\"HOME\")*('2. Assisted & Restricted Units'!$X$7:$X$399=\"VLI State\"))","v":0},{"$f":"SUMPRODUCT(('2. Assisted & Restricted Units'!$E$7:$E$399=\"3\")*('2. Assisted & Restricted Units'!$W$7:$W$399=\"Market Rate\")*('2. Assisted & Restricted Units'!$X$7:$X$399=\"VLI State\"))","v":0},{"$f":"SUMPRODUCT(('2. Assisted & Restricted Units'!$E$7:$E$399=\"3\")*('2. Assisted & Restricted Units'!$W$7:$W$399=\"MHP\")*('2. Assisted & Restricted Units'!$X$7:$X$399=\"VLI State\"))","v":0},{"$f":"SUMPRODUCT(('2. Assisted & Restricted Units'!$E$7:$E$399=\"3\")*('2. Assisted & Restricted Units'!$W$7:$W$399=\"NonAssisted\")*('2. Assisted & Restricted Units'!$X$7:$X$399=\"VLI State\"))","v":0},{"$f":"SUMPRODUCT(('2. Assisted & Restricted Units'!$E$7:$E$399=\"3\")*('2. Assisted & Restricted Units'!$W$7:$W$399=\"Other Restr\")*('2. Assisted & Restricted Units'!$X$7:$X$399=\"VLI State\"))","v":0},{"$f":"SUMPRODUCT(('2. Assisted & Restricted Units'!$E$7:$E$399=\"3\")*('2. Assisted & Restricted Units'!$W$7:$W$399=\"RHCP-B\")*('2. Assisted & Restricted Units'!$X$7:$X$399=\"VLI State\"))","v":0},{"$f":"SUMPRODUCT(('2. Assisted & Restricted Units'!$E$7:$E$399=\"3\")*('2. Assisted & Restricted Units'!$W$7:$W$399=\"SERA\")*('2. Assisted & Restricted Units'!$X$7:$X$399=\"VLI State\"))","v":0},{"$f":"SUMPRODUCT(('2. Assisted & Restricted Units'!$E$7:$E$399=\"3\")*('2. Assisted & Restricted Units'!$W$7:$W$399=\"SUHRP\")*('2. Assisted & Restricted Units'!$X$7:$X$399=\"VLI State\"))","v":0},{"$f":"SUMPRODUCT(('2. Assisted & Restricted Units'!$E$7:$E$399=\"3\")*('2. Assisted & Restricted Units'!$W$7:$W$399=\"TOD\")*('2. Assisted & Restricted Units'!$X$7:$X$399=\"VLI State\"))","v":0},{"$f":"SUMPRODUCT(('2. Assisted & Restricted Units'!$E$7:$E$399=\"3\")*('2. Assisted & Restricted Units'!$W$7:$W$399=\"707-E\")*('2. Assisted & Restricted Units'!$X$7:$X$399=\"VLI State\"))","v":0},{"$f":"SUMPRODUCT(('2. Assisted & Restricted Units'!$E$7:$E$399=\"3\")*('2. Assisted & Restricted Units'!$W$7:$W$399=\"707-N\")*('2. Assisted & Restricted Units'!$X$7:$X$399=\"VLI State\"))","v":0}]
["3 Bedroom CalHFA",{"$f":"SUMPRODUCT(('2. Assisted & Restricted Units'!$E$7:$E$399=\"3\")*('2. Assisted & Restricted Units'!$W$7:$W$399=\"CALDAP\")*('2. Assisted & Restricted Units'!$X$7:$X$399=\"LI State\"))","v":0},{"$f":"SUMPRODUCT(('2. Assisted & Restricted Units'!$E$7:$E$399=\"3\")*('2. Assisted & Restricted Units'!$W$7:$W$399=\"CHRP-R\")*('2. Assisted & Restricted Units'!$X$7:$X$399=\"LI State\"))","v":0},{"$f":"SUMPRODUCT(('2. Assisted & Restricted Units'!$E$7:$E$399=\"3\")*('2. Assisted & Restricted Units'!$W$7:$W$399=\"DDS\")*('2. Assisted & Restricted Units'!$X$7:$X$399=\"LI State\"))","v":0},{"$f":"SUMPRODUCT(('2. Assisted & Restricted Units'!$E$7:$E$399=\"3\")*('2. Assisted & Restricted Units'!$W$7:$W$399=\"DPRLP\")*('2. Assisted & Restricted Units'!$X$7:$X$399=\"LI State\"))","v":0},{"$f":"SUMPRODUCT(('2. Assisted & Restricted Units'!$E$7:$E$399=\"3\")*('2. Assisted & Restricted Units'!$W$7:$W$399=\"FHDP\")*('2. Assisted & Restricted Units'!$X$7:$X$399=\"LI State\"))","v":0},{"$f":"SUMPRODUCT(('2. Assisted & Restricted Units'!$E$7:$E$399=\"3\")*('2. Assisted & Restricted Units'!$W$7:$W$399=\"FMTW\")*('2. Assisted & Restricted Units'!$X$7:$X$399=\"LI State\"))","v":0},null,{"$f":"SUMPRODUCT(('2. Assisted & Restricted Units'!$E$7:$E$399=\"3\")*('2. Assisted & Restricted Units'!$W$7:$W$399=\"HOME\")*('2. Assisted & Restricted Units'!$X$7:$X$399=\"LI State\"))","v":0},{"$f":"SUMPRODUCT(('2. Assisted & Restricted Units'!$E$7:$E$399=\"3\")*('2. Assisted & Restricted Units'!$W$7:$W$399=\"Market Rate\")*('2. Assisted & Restricted Units'!$X$7:$X$399=\"LI State\"))","v":0},{"$f":"SUMPRODUCT(('2. Assisted & Restricted Units'!$E$7:$E$399=\"3\")*('2. Assisted & Restricted Units'!$W$7:$W$399=\"MHP\")*('2. Assisted & Restricted Units'!$X$7:$X$399=\"LI State\"))","v":0},{"$f":"SUMPRODUCT(('2. Assisted & Restricted Units'!$E$7:$E$399=\"3\")*('2. Assisted & Restricted Units'!$W$7:$W$399=\"NonAssisted\")*('2. Assisted & Restricted Units'!$X$7:$X$399=\"LI State\"))","v":0},{"$f":"SUMPRODUCT(('2. Assisted & Restricted Units'!$E$7:$E$399=\"3\")*('2. Assisted & Restricted Units'!$W$7:$W$399=\"Other Restr\")*('2. Assisted & Restricted Units'!$X$7:$X$399=\"LI State\"))","v":0},{"$f":"SUMPRODUCT(('2. Assisted & Restricted Units'!$E$7:$E$399=\"3\")*('2. Assisted & Restricted Units'!$W$7:$W$399=\"RHCP-B\")*('2. Assisted & Restricted Units'!$X$7:$X$399=\"LI State\"))","v":0},{"$f":"SUMPRODUCT(('2. Assisted & Restricted Units'!$E$7:$E$399=\"3\")*('2. Assisted & Restricted Units'!$W$7:$W$399=\"SERA\")*('2. Assisted & Restricted Units'!$X$7:$X$399=\"LI State\"))","v":0},{"$f":"SUMPRODUCT(('2. Assisted & Restricted Units'!$E$7:$E$399=\"3\")*('2. Assisted & Restricted Units'!$W$7:$W$399=\"SUHRP\")*('2. Assisted & Restricted Units'!$X$7:$X$399=\"LI State\"))","v":0},{"$f":"SUMPRODUCT(('2. Assisted & Restricted Units'!$E$7:$E$399=\"3\")*('2. Assisted & Restricted Units'!$W$7:$W$399=\"TOD\")*('2. Assisted & Restricted Units'!$X$7:$X$399=\"LI State\"))","v":0},{"$f":"SUMPRODUCT(('2. Assisted & Restricted Units'!$E$7:$E$399=\"3\")*('2. Assisted & Restricted Units'!$W$7:$W$399=\"707-E\")*('2. Assisted & Restricted Units'!$X$7:$X$399=\"LI State\"))","v":0},{"$f":"SUMPRODUCT(('2. Assisted & Restricted Units'!$E$7:$E$399=\"3\")*('2. Assisted & Restricted Units'!$W$7:$W$399=\"707-N\")*('2. Assisted & Restricted Units'!$X$7:$X$399=\"LI State\"))","v":0}]
["3 Bedroom Sec 8",{"$f":"SUMPRODUCT(('2. Assisted & Restricted Units'!$E$7:$E$399=\"3\")*('2. Assisted & Restricted Units'!$W$7:$W$399=\"CALDAP\")*('2. Assisted & Restricted Units'!$X$7:$X$399=\"CalHFA\"))","v":0},{"$f":"SUMPRODUCT(('2. Assisted & Restricted Units'!$E$7:$E$399=\"3\")*('2. Assisted & Restricted Units'!$W$7:$W$399=\"CHRP-R\")*('2. Assisted & Restricted Units'!$X$7:$X$399=\"CalHFA\"))","v":0},{"$f":"SUMPRODUCT(('2. Assisted & Restricted Units'!$E$7:$E$399=\"3\")*('2. Assisted & Restricted Units'!$W$7:$W$399=\"DDS\")*('2. Assisted & Restricted Units'!$X$7:$X$399=\"CalHFA\"))","v":0},{"$f":"SUMPRODUCT(('2. Assisted & Restricted Units'!$E$7:$E$399=\"3\")*('2. Assisted & Restricted Units'!$W$7:$W$399=\"DPRLP\")*('2. Assisted & Restricted Units'!$X$7:$X$399=\"CalHFA\"))","v":0},{"$f":"SUMPRODUCT(('2. Assisted & Restricted Units'!$E$7:$E$399=\"3\")*('2. Assisted & Restricted Units'!$W$7:$W$399=\"FHDP\")*('2. Assisted & Restricted Units'!$X$7:$X$399=\"CalHFA\"))","v":0},{"$f":"SUMPRODUCT(('2. Assisted & Restricted Units'!$E$7:$E$399=\"3\")*('2. Assisted & Restricted Units'!$W$7:$W$399=\"FMTW\")*('2. Assisted & Restricted Units'!$X$7:$X$399=\"CalHFA\"))","v":0},null,{"$f":"SUMPRODUCT(('2. Assisted & Restricted Units'!$E$7:$E$399=\"3\")*('2. Assisted & Restricted Units'!$W$7:$W$399=\"HOME\")*('2. Assisted & Restricted Units'!$X$7:$X$399=\"CalHFA\"))","v":0},{"$f":"SUMPRODUCT(('2. Assisted & Restricted Units'!$E$7:$E$399=\"3\")*('2. Assisted & Restricted Units'!$W$7:$W$399=\"Market Rate\")*('2. Assisted & Restricted Units'!$X$7:$X$399=\"CalHFA\"))","v":0},{"$f":"SUMPRODUCT(('2. Assisted & Restricted Units'!$E$7:$E$399=\"3\")*('2. Assisted & Restricted Units'!$W$7:$W$399=\"MHP\")*('2. Assisted & Restricted Units'!$X$7:$X$399=\"CalHFA\"))","v":0},{"$f":"SUMPRODUCT(('2. Assisted & Restricted Units'!$E$7:$E$399=\"3\")*('2. Assisted & Restricted Units'!$W$7:$W$399=\"NonAssisted\")*('2. Assisted & Restricted Units'!$X$7:$X$399=\"CalHFA\"))","v":0},{"$f":"SUMPRODUCT(('2. Assisted & Restricted Units'!$E$7:$E$399=\"3\")*('2. Assisted & Restricted Units'!$W$7:$W$399=\"Other Restr\")*('2. Assisted & Restricted Units'!$X$7:$X$399=\"CalHFA\"))","v":0},{"$f":"SUMPRODUCT(('2. Assisted & Restricted Units'!$E$7:$E$399=\"3\")*('2. Assisted & Restricted Units'!$W$7:$W$399=\"RHCP-B\")*('2. Assisted & Restricted Units'!$X$7:$X$399=\"CalHFA\"))","v":0},{"$f":"SUMPRODUCT(('2. Assisted & Restricted Units'!$E$7:$E$399=\"3\")*('2. Assisted & Restricted Units'!$W$7:$W$399=\"SERA\")*('2. Assisted & Restricted Units'!$X$7:$X$399=\"CalHFA\"))","v":0},{"$f":"SUMPRODUCT(('2. Assisted & Restricted Units'!$E$7:$E$399=\"3\")*('2. Assisted & Restricted Units'!$W$7:$W$399=\"SUHRP\")*('2. Assisted & Restricted Units'!$X$7:$X$399=\"CalHFA\"))","v":0},{"$f":"SUMPRODUCT(('2. Assisted & Restricted Units'!$E$7:$E$399=\"3\")*('2. Assisted & Restricted Units'!$W$7:$W$399=\"TOD\")*('2. Assisted & Restricted Units'!$X$7:$X$399=\"CalHFA\"))","v":0},{"$f":"SUMPRODUCT(('2. Assisted & Restricted Units'!$E$7:$E$399=\"3\")*('2. Assisted & Restricted Units'!$W$7:$W$399=\"707-E\")*('2. Assisted & Restricted Units'!$X$7:$X$399=\"CalHFA\"))","v":0},{"$f":"SUMPRODUCT(('2. Assisted & Restricted Units'!$E$7:$E$399=\"3\")*('2. Assisted & Restricted Units'!$W$7:$W$399=\"707-N\")*('2. Assisted & Restricted Units'!$X$7:$X$399=\"CalHFA\"))","v":0}]
["Total 3",{"$f":"SUM(B104:B127)","v":0},{"$f":"SUM(C104:C127)","v":0},{"$f":"SUM(D104:D127)","v":0},{"$f":"SUM(E104:E127)","v":0},{"$f":"SUM(F104:F127)","v":0},0,{"$f":"SUMPRODUCT(('2. Assisted & Restricted Units'!$E$7:$E$399=\"3\")*('2. Assisted & Restricted Units'!$W$7:$W$399=\"FWHG\"))","v":0},0,0,0,0,0,0,0,0,0,0,0,{"$f":"SUMPRODUCT(('2. Assisted & Restricted Units'!$E$7:$E$399=\"3\")*('2. Assisted & Restricted Units'!$L$7:$L$399=\"X\"))","v":0},{"$f":"SUMPRODUCT(('2. Assisted & Restricted Units'!$E$7:$E$399=\"3\")*('2. Assisted & Restricted Units'!#REF!=\"X\"))","v":{"$error":"#REF!"}},{"$f":"SUMPRODUCT(('2. Assisted & Restricted Units'!$E$7:$E$399=\"3\")*('2. Assisted & Restricted Units'!#REF!=\"X\"))","v":{"$error":"#REF!"}},{"$f":"SUMPRODUCT(('2. Assisted & Restricted Units'!$E$7:$E$399=\"3\")*('2. Assisted & Restricted Units'!#REF!=\"X\"))","v":{"$error":"#REF!"}},{"$f":"SUMPRODUCT(('2. Assisted & Restricted Units'!$E$7:$E$399=\"3\")*('2. Assisted & Restricted Units'!#REF!=\"X\"))","v":{"$error":"#REF!"}},{"$f":"SUMPRODUCT(('2. Assisted & Restricted Units'!$E$7:$E$399=\"3\")*('2. Assisted & Restricted Units'!#REF!=\"X\"))","v":{"$error":"#REF!"}},{"$f":"SUMPRODUCT(('2. Assisted & Restricted Units'!$E$7:$E$399=\"3\")*('2. Assisted & Restricted Units'!#REF!=\"X\"))","v":{"$error":"#REF!"}},{"$f":"SUMPRODUCT(('2. Assisted & Restricted Units'!$E$7:$E$399=\"3\")*('2. Assisted & Restricted Units'!$M$7:$M$399=\"X\"))","v":0},{"$f":"SUMPRODUCT(('2. Assisted & Restricted Units'!$E$7:$E$399=\"3\")*('2. Assisted & Restricted Units'!$O$7:$O$399=\"X\"))","v":0}]
["4 Bedroom 15% AMI",{"$f":"SUMPRODUCT(('2. Assisted & Restricted Units'!$E$7:$E$399=\"4\")*('2. Assisted & Restricted Units'!$W$7:$W$399=\"CALDAP\")*('2. Assisted & Restricted Units'!$X$7:$X$399=\"15% AMI\"))","v":0},{"$f":"SUMPRODUCT(('2. Assisted & Restricted Units'!$E$7:$E$399=\"4\")*('2. Assisted & Restricted Units'!$W$7:$W$399=\"CHRP-R\")*('2. Assisted & Restricted Units'!$X$7:$X$399=\"15% AMI\"))","v":0},{"$f":"SUMPRODUCT(('2. Assisted & Restricted Units'!$E$7:$E$399=\"4\")*('2. Assisted & Restricted Units'!$W$7:$W$399=\"DDS\")*('2. Assisted & Restricted Units'!$X$7:$X$399=\"15% AMI\"))","v":0},{"$f":"SUMPRODUCT(('2. Assisted & Restricted Units'!$E$7:$E$399=\"4\")*('2. Assisted & Restricted Units'!$W$7:$W$399=\"DPRLP\")*('2. Assisted & Restricted Units'!$X$7:$X$399=\"15% AMI\"))","v":0},{"$f":"SUMPRODUCT(('2. Assisted & Restricted Units'!$E$7:$E$399=\"4\")*('2. Assisted & Restricted Units'!$W$7:$W$399=\"FHDP\")*('2. Assisted & Restricted Units'!$X$7:$X$399=\"15% AMI\"))","v":0},{"$f":"SUMPRODUCT(('2. Assisted & Restricted Units'!$E$7:$E$399=\"4\")*('2. Assisted & Restricted Units'!$W$7:$W$399=\"FMTW\")*('2. Assisted & Restricted Units'!$X$7:$X$399=\"15% AMI\"))","v":0},null,{"$f":"SUMPRODUCT(('2. Assisted & Restricted Units'!$E$7:$E$399=\"4\")*('2. Assisted & Restricted Units'!$W$7:$W$399=\"HOME\")*('2. Assisted & Restricted Units'!$X$7:$X$399=\"15% AMI\"))","v":0},{"$f":"SUMPRODUCT(('2. Assisted & Restricted Units'!$E$7:$E$399=\"4\")*('2. Assisted & Restricted Units'!$W$7:$W$399=\"Market Rate\")*('2. Assisted & Restricted Units'!$X$7:$X$399=\"15% AMI\"))","v":0},{"$f":"SUMPRODUCT(('2. Assisted & Restricted Units'!$E$7:$E$399=\"4\")*('2. Assisted & Restricted Units'!$W$7:$W$399=\"MHP\")*('2. Assisted & Restricted Units'!$X$7:$X$399=\"15% AMI\"))","v":0},{"$f":"SUMPRODUCT(('2. Assisted & Restricted Units'!$E$7:$E$399=\"4\")*('2. Assisted & Restricted Units'!$W$7:$W$399=\"NonAssisted\")*('2. Assisted & Restricted Units'!$X$7:$X$399=\"15% AMI\"))","v":0},{"$f":"SUMPRODUCT(('2. Assisted & Restricted Units'!$E$7:$E$399=\"4\")*('2. Assisted & Restricted Units'!$W$7:$W$399=\"Other Restr\")*('2. Assisted & Restricted Units'!$X$7:$X$399=\"15% AMI\"))","v":0},{"$f":"SUMPRODUCT(('2. Assisted & Restricted Units'!$E$7:$E$399=\"4\")*('2. Assisted & Restricted Units'!$W$7:$W$399=\"RHCP-B\")*('2. Assisted & Restricted Units'!$X$7:$X$399=\"15% AMI\"))","v":0},{"$f":"SUMPRODUCT(('2. Assisted & Restricted Units'!$E$7:$E$399=\"4\")*('2. Assisted & Restricted Units'!$W$7:$W$399=\"SERA\")*('2. Assisted & Restricted Units'!$X$7:$X$399=\"15% AMI\"))","v":0},{"$f":"SUMPRODUCT(('2. Assisted & Restricted Units'!$E$7:$E$399=\"4\")*('2. Assisted & Restricted Units'!$W$7:$W$399=\"SUHRP\")*('2. Assisted & Restricted Units'!$X$7:$X$399=\"15% AMI\"))","v":0},{"$f":"SUMPRODUCT(('2. Assisted & Restricted Units'!$E$7:$E$399=\"4\")*('2. Assisted & Restricted Units'!$W$7:$W$399=\"TOD\")*('2. Assisted & Restricted Units'!$X$7:$X$399=\"15% AMI\"))","v":0},{"$f":"SUMPRODUCT(('2. Assisted & Restricted Units'!$E$7:$E$399=\"4\")*('2. Assisted & Restricted Units'!$W$7:$W$399=\"707-E\")*('2. Assisted & Restricted Units'!$X$7:$X$399=\"15% AMI\"))","v":0},{"$f":"SUMPRODUCT(('2. Assisted & Restricted Units'!$E$7:$E$399=\"4\")*('2. Assisted & Restricted Units'!$W$7:$W$399=\"707-N\")*('2. Assisted & Restricted Units'!$X$7:$X$399=\"15% AMI\"))","v":0}]
["4 Bedroom 20% AMI",{"$f":"SUMPRODUCT(('2. Assisted & Restricted Units'!$E$7:$E$399=\"4\")*('2. Assisted & Restricted Units'!$W$7:$W$399=\"CALDAP\")*('2. Assisted & Restricted Units'!$X$7:$X$399=\"20% AMI\"))","v":0},{"$f":"SUMPRODUCT(('2. Assisted & Restricted Units'!$E$7:$E$399=\"4\")*('2. Assisted & Restricted Units'!$W$7:$W$399=\"CHRP-R\")*('2. Assisted & Restricted Units'!$X$7:$X$399=\"20% AMI\"))","v":0},{"$f":"SUMPRODUCT(('2. Assisted & Restricted Units'!$E$7:$E$399=\"4\")*('2. Assisted & Restricted Units'!$W$7:$W$399=\"DDS\")*('2. Assisted & Restricted Units'!$X$7:$X$399=\"20% AMI\"))","v":0},{"$f":"SUMPRODUCT(('2. Assisted & Restricted Units'!$E$7:$E$399=\"4\")*('2. Assisted & Restricted Units'!$W$7:$W$399=\"DPRLP\")*('2. Assisted & Restricted Units'!$X$7:$X$399=\"20% AMI\"))","v":0},{"$f":"SUMPRODUCT(('2. Assisted & Restricted Units'!$E$7:$E$399=\"4\")*('2. Assisted & Restricted Units'!$W$7:$W$399=\"FHDP\")*('2. Assisted & Restricted Units'!$X$7:$X$399=\"20% AMI\"))","v":0},{"$f":"SUMPRODUCT(('2. Assisted & Restricted Units'!$E$7:$E$399=\"4\")*('2. Assisted & Restricted Units'!$W$7:$W$399=\"FMTW\")*('2. Assisted & Restricted Units'!$X$7:$X$399=\"20% AMI\"))","v":0},null,{"$f":"SUMPRODUCT(('2. Assisted & Restricted Units'!$E$7:$E$399=\"4\")*('2. Assisted & Restricted Units'!$W$7:$W$399=\"HOME\")*('2. Assisted & Restricted Units'!$X$7:$X$399=\"20% AMI\"))","v":0},{"$f":"SUMPRODUCT(('2. Assisted & Restricted Units'!$E$7:$E$399=\"4\")*('2. Assisted & Restricted Units'!$W$7:$W$399=\"Market Rate\")*('2. Assisted & Restricted Units'!$X$7:$X$399=\"20% AMI\"))","v":0},{"$f":"SUMPRODUCT(('2. Assisted & Restricted Units'!$E$7:$E$399=\"4\")*('2. Assisted & Restricted Units'!$W$7:$W$399=\"MHP\")*('2. Assisted & Restricted Units'!$X$7:$X$399=\"20% AMI\"))","v":0},{"$f":"SUMPRODUCT(('2. Assisted & Restricted Units'!$E$7:$E$399=\"4\")*('2. Assisted & Restricted Units'!$W$7:$W$399=\"NonAssisted\")*('2. Assisted & Restricted Units'!$X$7:$X$399=\"20% AMI\"))","v":0},{"$f":"SUMPRODUCT(('2. Assisted & Restricted Units'!$E$7:$E$399=\"4\")*('2. Assisted & Restricted Units'!$W$7:$W$399=\"Other Restr\")*('2. Assisted & Restricted Units'!$X$7:$X$399=\"20% AMI\"))","v":0},{"$f":"SUMPRODUCT(('2. Assisted & Restricted Units'!$E$7:$E$399=\"4\")*('2. Assisted & Restricted Units'!$W$7:$W$399=\"RHCP-B\")*('2. Assisted & Restricted Units'!$X$7:$X$399=\"20% AMI\"))","v":0},{"$f":"SUMPRODUCT(('2. Assisted & Restricted Units'!$E$7:$E$399=\"4\")*('2. Assisted & Restricted Units'!$W$7:$W$399=\"SERA\")*('2. Assisted & Restricted Units'!$X$7:$X$399=\"20% AMI\"))","v":0},{"$f":"SUMPRODUCT(('2. Assisted & Restricted Units'!$E$7:$E$399=\"4\")*('2. Assisted & Restricted Units'!$W$7:$W$399=\"SUHRP\")*('2. Assisted & Restricted Units'!$X$7:$X$399=\"20% AMI\"))","v":0},{"$f":"SUMPRODUCT(('2. Assisted & Restricted Units'!$E$7:$E$399=\"4\")*('2. Assisted & Restricted Units'!$W$7:$W$399=\"TOD\")*('2. Assisted & Restricted Units'!$X$7:$X$399=\"20% AMI\"))","v":0},{"$f":"SUMPRODUCT(('2. Assisted & Restricted Units'!$E$7:$E$399=\"4\")*('2. Assisted & Restricted Units'!$W$7:$W$399=\"707-E\")*('2. Assisted & Restricted Units'!$X$7:$X$399=\"20% AMI\"))","v":0},{"$f":"SUMPRODUCT(('2. Assisted & Restricted Units'!$E$7:$E$399=\"4\")*('2. Assisted & Restricted Units'!$W$7:$W$399=\"707-N\")*('2. Assisted & Restricted Units'!$X$7:$X$399=\"20% AMI\"))","v":0}]
["4 Bedroom 25% AMI",{"$f":"SUMPRODUCT(('2. Assisted & Restricted Units'!$E$7:$E$399=\"4\")*('2. Assisted & Restricted Units'!$W$7:$W$399=\"CALDAP\")*('2. Assisted & Restricted Units'!$X$7:$X$399=\"25% AMI\"))","v":0},{"$f":"SUMPRODUCT(('2. Assisted & Restricted Units'!$E$7:$E$399=\"4\")*('2. Assisted & Restricted Units'!$W$7:$W$399=\"CHRP-R\")*('2. Assisted & Restricted Units'!$X$7:$X$399=\"25% AMI\"))","v":0},{"$f":"SUMPRODUCT(('2. Assisted & Restricted Units'!$E$7:$E$399=\"4\")*('2. Assisted & Restricted Units'!$W$7:$W$399=\"DDS\")*('2. Assisted & Restricted Units'!$X$7:$X$399=\"25% AMI\"))","v":0},{"$f":"SUMPRODUCT(('2. Assisted & Restricted Units'!$E$7:$E$399=\"4\")*('2. Assisted & Restricted Units'!$W$7:$W$399=\"DPRLP\")*('2. Assisted & Restricted Units'!$X$7:$X$399=\"25% AMI\"))","v":0},{"$f":"SUMPRODUCT(('2. Assisted & Restricted Units'!$E$7:$E$399=\"4\")*('2. Assisted & Restricted Units'!$W$7:$W$399=\"FHDP\")*('2. Assisted & Restricted Units'!$X$7:$X$399=\"25% AMI\"))","v":0},{"$f":"SUMPRODUCT(('2. Assisted & Restricted Units'!$E$7:$E$399=\"4\")*('2. Assisted & Restricted Units'!$W$7:$W$399=\"FMTW\")*('2. Assisted & Restricted Units'!$X$7:$X$399=\"25% AMI\"))","v":0},null,{"$f":"SUMPRODUCT(('2. Assisted & Restricted Units'!$E$7:$E$399=\"4\")*('2. Assisted & Restricted Units'!$W$7:$W$399=\"HOME\")*('2. Assisted & Restricted Units'!$X$7:$X$399=\"25% AMI\"))","v":0},{"$f":"SUMPRODUCT(('2. Assisted & Restricted Units'!$E$7:$E$399=\"4\")*('2. Assisted & Restricted Units'!$W$7:$W$399=\"Market Rate\")*('2. Assisted & Restricted Units'!$X$7:$X$399=\"25% AMI\"))","v":0},{"$f":"SUMPRODUCT(('2. Assisted & Restricted Units'!$E$7:$E$399=\"4\")*('2. Assisted & Restricted Units'!$W$7:$W$399=\"MHP\")*('2. Assisted & Restricted Units'!$X$7:$X$399=\"25% AMI\"))","v":0},{"$f":"SUMPRODUCT(('2. Assisted & Restricted Units'!$E$7:$E$399=\"4\")*('2. Assisted & Restricted Units'!$W$7:$W$399=\"NonAssisted\")*('2. Assisted & Restricted Units'!$X$7:$X$399=\"25% AMI\"))","v":0},{"$f":"SUMPRODUCT(('2. Assisted & Restricted Units'!$E$7:$E$399=\"4\")*('2. Assisted & Restricted Units'!$W$7:$W$399=\"Other Restr\")*('2. Assisted & Restricted Units'!$X$7:$X$399=\"25% AMI\"))","v":0},{"$f":"SUMPRODUCT(('2. Assisted & Restricted Units'!$E$7:$E$399=\"4\")*('2. Assisted & Restricted Units'!$W$7:$W$399=\"RHCP-B\")*('2. Assisted & Restricted Units'!$X$7:$X$399=\"25% AMI\"))","v":0},{"$f":"SUMPRODUCT(('2. Assisted & Restricted Units'!$E$7:$E$399=\"4\")*('2. Assisted & Restricted Units'!$W$7:$W$399=\"SERA\")*('2. Assisted & Restricted Units'!$X$7:$X$399=\"25% AMI\"))","v":0},{"$f":"SUMPRODUCT(('2. Assisted & Restricted Units'!$E$7:$E$399=\"4\")*('2. Assisted & Restricted Units'!$W$7:$W$399=\"SUHRP\")*('2. Assisted & Restricted Units'!$X$7:$X$399=\"25% AMI\"))","v":0},{"$f":"SUMPRODUCT(('2. Assisted & Restricted Units'!$E$7:$E$399=\"4\")*('2. Assisted & Restricted Units'!$W$7:$W$399=\"TOD\")*('2. Assisted & Restricted Units'!$X$7:$X$399=\"25% AMI\"))","v":0},{"$f":"SUMPRODUCT(('2. Assisted & Restricted Units'!$E$7:$E$399=\"4\")*('2. Assisted & Restricted Units'!$W$7:$W$399=\"707-E\")*('2. Assisted & Restricted Units'!$X$7:$X$399=\"25% AMI\"))","v":0},{"$f":"SUMPRODUCT(('2. Assisted & Restricted Units'!$E$7:$E$399=\"4\")*('2. Assisted & Restricted Units'!$W$7:$W$399=\"707-N\")*('2. Assisted & Restricted Units'!$X$7:$X$399=\"25% AMI\"))","v":0}]
["4 Bedroom 30% AMI",{"$f":"SUMPRODUCT(('2. Assisted & Restricted Units'!$E$7:$E$399=\"4\")*('2. Assisted & Restricted Units'!$W$7:$W$399=\"CALDAP\")*('2. Assisted & Restricted Units'!$X$7:$X$399=\"30% AMI\"))","v":0},{"$f":"SUMPRODUCT(('2. Assisted & Restricted Units'!$E$7:$E$399=\"4\")*('2. Assisted & Restricted Units'!$W$7:$W$399=\"CHRP-R\")*('2. Assisted & Restricted Units'!$X$7:$X$399=\"30% AMI\"))","v":0},{"$f":"SUMPRODUCT(('2. Assisted & Restricted Units'!$E$7:$E$399=\"4\")*('2. Assisted & Restricted Units'!$W$7:$W$399=\"DDS\")*('2. Assisted & Restricted Units'!$X$7:$X$399=\"30% AMI\"))","v":0},{"$f":"SUMPRODUCT(('2. Assisted & Restricted Units'!$E$7:$E$399=\"4\")*('2. Assisted & Restricted Units'!$W$7:$W$399=\"DPRLP\")*('2. Assisted & Restricted Units'!$X$7:$X$399=\"30% AMI\"))","v":0},{"$f":"SUMPRODUCT(('2. Assisted & Restricted Units'!$E$7:$E$399=\"4\")*('2. Assisted & Restricted Units'!$W$7:$W$399=\"FHDP\")*('2. Assisted & Restricted Units'!$X$7:$X$399=\"30% AMI\"))","v":0},{"$f":"SUMPRODUCT(('2. Assisted & Restricted Units'!$E$7:$E$399=\"4\")*('2. Assisted & Restricted Units'!$W$7:$W$399=\"FMTW\")*('2. Assisted & Restricted Units'!$X$7:$X$399=\"30% AMI\"))","v":0},null,{"$f":"SUMPRODUCT(('2. Assisted & Restricted Units'!$E$7:$E$399=\"4\")*('2. Assisted & Restricted Units'!$W$7:$W$399=\"HOME\")*('2. Assisted & Restricted Units'!$X$7:$X$399=\"30% AMI\"))","v":0},{"$f":"SUMPRODUCT(('2. Assisted & Restricted Units'!$E$7:$E$399=\"4\")*('2. Assisted & Restricted Units'!$W$7:$W$399=\"Market Rate\")*('2. Assisted & Restricted Units'!$X$7:$X$399=\"30% AMI\"))","v":0},{"$f":"SUMPRODUCT(('2. Assisted & Restricted Units'!$E$7:$E$399=\"4\")*('2. Assisted & Restricted Units'!$W$7:$W$399=\"MHP\")*('2. Assisted & Restricted Units'!$X$7:$X$399=\"30% AMI\"))","v":0},{"$f":"SUMPRODUCT(('2. Assisted & Restricted Units'!$E$7:$E$399=\"4\")*('2. Assisted & Restricted Units'!$W$7:$W$399=\"NonAssisted\")*('2. Assisted & Restricted Units'!$X$7:$X$399=\"30% AMI\"))","v":0},{"$f":"SUMPRODUCT(('2. Assisted & Restricted Units'!$E$7:$E$399=\"4\")*('2. Assisted & Restricted Units'!$W$7:$W$399=\"Other Restr\")*('2. Assisted & Restricted Units'!$X$7:$X$399=\"30% AMI\"))","v":0},{"$f":"SUMPRODUCT(('2. Assisted & Restricted Units'!$E$7:$E$399=\"4\")*('2. Assisted & Restricted Units'!$W$7:$W$399=\"RHCP-B\")*('2. Assisted & Restricted Units'!$X$7:$X$399=\"30% AMI\"))","v":0},{"$f":"SUMPRODUCT(('2. Assisted & Restricted Units'!$E$7:$E$399=\"4\")*('2. Assisted & Restricted Units'!$W$7:$W$399=\"SERA\")*('2. Assisted & Restricted Units'!$X$7:$X$399=\"30% AMI\"))","v":0},{"$f":"SUMPRODUCT(('2. Assisted & Restricted Units'!$E$7:$E$399=\"4\")*('2. Assisted & Restricted Units'!$W$7:$W$399=\"SUHRP\")*('2. Assisted & Restricted Units'!$X$7:$X$399=\"30% AMI\"))","v":0},{"$f":"SUMPRODUCT(('2. Assisted & Restricted Units'!$E$7:$E$399=\"4\")*('2. Assisted & Restricted Units'!$W$7:$W$399=\"TOD\")*('2. Assisted & Restricted Units'!$X$7:$X$399=\"30% AMI\"))","v":0},{"$f":"SUMPRODUCT(('2. Assisted & Restricted Units'!$E$7:$E$399=\"4\")*('2. Assisted & Restricted Units'!$W$7:$W$399=\"707-E\")*('2. Assisted & Restricted Units'!$X$7:$X$399=\"30% AMI\"))","v":0},{"$f":"SUMPRODUCT(('2. Assisted & Restricted Units'!$E$7:$E$399=\"4\")*('2. Assisted & Restricted Units'!$W$7:$W$399=\"707-N\")*('2. Assisted & Restricted Units'!$X$7:$X$399=\"30% AMI\"))","v":0}]
["4 Bedroom 35% AMI",{"$f":"SUMPRODUCT(('2. Assisted & Restricted Units'!$E$7:$E$399=\"4\")*('2. Assisted & Restricted Units'!$W$7:$W$399=\"CALDAP\")*('2. Assisted & Restricted Units'!$X$7:$X$399=\"35% AMI\"))","v":0},{"$f":"SUMPRODUCT(('2. Assisted & Restricted Units'!$E$7:$E$399=\"4\")*('2. Assisted & Restricted Units'!$W$7:$W$399=\"CHRP-R\")*('2. Assisted & Restricted Units'!$X$7:$X$399=\"35% AMI\"))","v":0},{"$f":"SUMPRODUCT(('2. Assisted & Restricted Units'!$E$7:$E$399=\"4\")*('2. Assisted & Restricted Units'!$W$7:$W$399=\"DDS\")*('2. Assisted & Restricted Units'!$X$7:$X$399=\"35% AMI\"))","v":0},{"$f":"SUMPRODUCT(('2. Assisted & Restricted Units'!$E$7:$E$399=\"4\")*('2. Assisted & Restricted Units'!$W$7:$W$399=\"DPRLP\")*('2. Assisted & Restricted Units'!$X$7:$X$399=\"35% AMI\"))","v":0},{"$f":"SUMPRODUCT(('2. Assisted & Restricted Units'!$E$7:$E$399=\"4\")*('2. Assisted & Restricted Units'!$W$7:$W$399=\"FHDP\")*('2. Assisted & Restricted Units'!$X$7:$X$399=\"35% AMI\"))","v":0},{"$f":"SUMPRODUCT(('2. Assisted & Restricted Units'!$E$7:$E$399=\"4\")*('2. Assisted & Restricted Units'!$W$7:$W$399=\"FMTW\")*('2. Assisted & Restricted Units'!$X$7:$X$399=\"35% AMI\"))","v":0},null,{"$f":"SUMPRODUCT(('2. Assisted & Restricted Units'!$E$7:$E$399=\"4\")*('2. Assisted & Restricted Units'!$W$7:$W$399=\"HOME\")*('2. Assisted & Restricted Units'!$X$7:$X$399=\"35% AMI\"))","v":0},{"$f":"SUMPRODUCT(('2. Assisted & Restricted Units'!$E$7:$E$399=\"4\")*('2. Assisted & Restricted Units'!$W$7:$W$399=\"Market Rate\")*('2. Assisted & Restricted Units'!$X$7:$X$399=\"35% AMI\"))","v":0},{"$f":"SUMPRODUCT(('2. Assisted & Restricted Units'!$E$7:$E$399=\"4\")*('2. Assisted & Restricted Units'!$W$7:$W$399=\"MHP\")*('2. Assisted & Restricted Units'!$X$7:$X$399=\"35% AMI\"))","v":0},{"$f":"SUMPRODUCT(('2. Assisted & Restricted Units'!$E$7:$E$399=\"4\")*('2. Assisted & Restricted Units'!$W$7:$W$399=\"NonAssisted\")*('2. Assisted & Restricted Units'!$X$7:$X$399=\"35% AMI\"))","v":0},{"$f":"SUMPRODUCT(('2. Assisted & Restricted Units'!$E$7:$E$399=\"4\")*('2. Assisted & Restricted Units'!$W$7:$W$399=\"Other Restr\")*('2. Assisted & Restricted Units'!$X$7:$X$399=\"35% AMI\"))","v":0},{"$f":"SUMPRODUCT(('2. Assisted & Restricted Units'!$E$7:$E$399=\"4\")*('2. Assisted & Restricted Units'!$W$7:$W$399=\"RHCP-B\")*('2. Assisted & Restricted Units'!$X$7:$X$399=\"35% AMI\"))","v":0},{"$f":"SUMPRODUCT(('2. Assisted & Restricted Units'!$E$7:$E$399=\"4\")*('2. Assisted & Restricted Units'!$W$7:$W$399=\"SERA\")*('2. Assisted & Restricted Units'!$X$7:$X$399=\"35% AMI\"))","v":0},{"$f":"SUMPRODUCT(('2. Assisted & Restricted Units'!$E$7:$E$399=\"4\")*('2. Assisted & Restricted Units'!$W$7:$W$399=\"SUHRP\")*('2. Assisted & Restricted Units'!$X$7:$X$399=\"35% AMI\"))","v":0},{"$f":"SUMPRODUCT(('2. Assisted & Restricted Units'!$E$7:$E$399=\"4\")*('2. Assisted & Restricted Units'!$W$7:$W$399=\"TOD\")*('2. Assisted & Restricted Units'!$X$7:$X$399=\"35% AMI\"))","v":0},{"$f":"SUMPRODUCT(('2. Assisted & Restricted Units'!$E$7:$E$399=\"4\")*('2. Assisted & Restricted Units'!$W$7:$W$399=\"707-E\")*('2. Assisted & Restricted Units'!$X$7:$X$399=\"35% AMI\"))","v":0},{"$f":"SUMPRODUCT(('2. Assisted & Restricted Units'!$E$7:$E$399=\"4\")*('2. Assisted & Restricted Units'!$W$7:$W$399=\"707-N\")*('2. Assisted & Restricted Units'!$X$7:$X$399=\"35% AMI\"))","v":0}]
["4 Bedroom 40% AMI",{"$f":"SUMPRODUCT(('2. Assisted & Restricted Units'!$E$7:$E$399=\"4\")*('2. Assisted & Restricted Units'!$W$7:$W$399=\"CALDAP\")*('2. Assisted & Restricted Units'!$X$7:$X$399=\"40% AMI\"))","v":0},{"$f":"SUMPRODUCT(('2. Assisted & Restricted Units'!$E$7:$E$399=\"4\")*('2. Assisted & Restricted Units'!$W$7:$W$399=\"CHRP-R\")*('2. Assisted & Restricted Units'!$X$7:$X$399=\"40% AMI\"))","v":0},{"$f":"SUMPRODUCT(('2. Assisted & Restricted Units'!$E$7:$E$399=\"4\")*('2. Assisted & Restricted Units'!$W$7:$W$399=\"DDS\")*('2. Assisted & Restricted Units'!$X$7:$X$399=\"40% AMI\"))","v":0},{"$f":"SUMPRODUCT(('2. Assisted & Restricted Units'!$E$7:$E$399=\"4\")*('2. Assisted & Restricted Units'!$W$7:$W$399=\"DPRLP\")*('2. Assisted & Restricted Units'!$X$7:$X$399=\"40% AMI\"))","v":0},{"$f":"SUMPRODUCT(('2. Assisted & Restricted Units'!$E$7:$E$399=\"4\")*('2. Assisted & Restricted Units'!$W$7:$W$399=\"FHDP\")*('2. Assisted & Restricted Units'!$X$7:$X$399=\"40% AMI\"))","v":0},{"$f":"SUMPRODUCT(('2. Assisted & Restricted Units'!$E$7:$E$399=\"4\")*('2. Assisted & Restricted Units'!$W$7:$W$399=\"FMTW\")*('2. Assisted & Restricted Units'!$X$7:$X$399=\"40% AMI\"))","v":0},null,{"$f":"SUMPRODUCT(('2. Assisted & Restricted Units'!$E$7:$E$399=\"4\")*('2. Assisted & Restricted Units'!$W$7:$W$399=\"HOME\")*('2. Assisted & Restricted Units'!$X$7:$X$399=\"40% AMI\"))","v":0},{"$f":"SUMPRODUCT(('2. Assisted & Restricted Units'!$E$7:$E$399=\"4\")*('2. Assisted & Restricted Units'!$W$7:$W$399=\"Market Rate\")*('2. Assisted & Restricted Units'!$X$7:$X$399=\"40% AMI\"))","v":0},{"$f":"SUMPRODUCT(('2. Assisted & Restricted Units'!$E$7:$E$399=\"4\")*('2. Assisted & Restricted Units'!$W$7:$W$399=\"MHP\")*('2. Assisted & Restricted Units'!$X$7:$X$399=\"40% AMI\"))","v":0},{"$f":"SUMPRODUCT(('2. Assisted & Restricted Units'!$E$7:$E$399=\"4\")*('2. Assisted & Restricted Units'!$W$7:$W$399=\"NonAssisted\")*('2. Assisted & Restricted Units'!$X$7:$X$399=\"40% AMI\"))","v":0},{"$f":"SUMPRODUCT(('2. Assisted & Restricted Units'!$E$7:$E$399=\"4\")*('2. Assisted & Restricted Units'!$W$7:$W$399=\"Other Restr\")*('2. Assisted & Restricted Units'!$X$7:$X$399=\"40% AMI\"))","v":0},{"$f":"SUMPRODUCT(('2. Assisted & Restricted Units'!$E$7:$E$399=\"4\")*('2. Assisted & Restricted Units'!$W$7:$W$399=\"RHCP-B\")*('2. Assisted & Restricted Units'!$X$7:$X$399=\"40% AMI\"))","v":0},{"$f":"SUMPRODUCT(('2. Assisted & Restricted Units'!$E$7:$E$399=\"4\")*('2. Assisted & Restricted Units'!$W$7:$W$399=\"SERA\")*('2. Assisted & Restricted Units'!$X$7:$X$399=\"40% AMI\"))","v":0},{"$f":"SUMPRODUCT(('2. Assisted & Restricted Units'!$E$7:$E$399=\"4\")*('2. Assisted & Restricted Units'!$W$7:$W$399=\"SUHRP\")*('2. Assisted & Restricted Units'!$X$7:$X$399=\"40% AMI\"))","v":0},{"$f":"SUMPRODUCT(('2. Assisted & Restricted Units'!$E$7:$E$399=\"4\")*('2. Assisted & Restricted Units'!$W$7:$W$399=\"TOD\")*('2. Assisted & Restricted Units'!$X$7:$X$399=\"40% AMI\"))","v":0},{"$f":"SUMPRODUCT(('2. Assisted & Restricted Units'!$E$7:$E$399=\"4\")*('2. Assisted & Restricted Units'!$W$7:$W$399=\"707-E\")*('2. Assisted & Restricted Units'!$X$7:$X$399=\"40% AMI\"))","v":0},{"$f":"SUMPRODUCT(('2. Assisted & Restricted Units'!$E$7:$E$399=\"4\")*('2. Assisted & Restricted Units'!$W$7:$W$399=\"707-N\")*('2. Assisted & Restricted Units'!$X$7:$X$399=\"40% AMI\"))","v":0}]
["4 Bedroom 45% AMI",{"$f":"SUMPRODUCT(('2. Assisted & Restricted Units'!$E$7:$E$399=\"4\")*('2. Assisted & Restricted Units'!$W$7:$W$399=\"CALDAP\")*('2. Assisted & Restricted Units'!$X$7:$X$399=\"45% AMI\"))","v":0},{"$f":"SUMPRODUCT(('2. Assisted & Restricted Units'!$E$7:$E$399=\"4\")*('2. Assisted & Restricted Units'!$W$7:$W$399=\"CHRP-R\")*('2. Assisted & Restricted Units'!$X$7:$X$399=\"45% AMI\"))","v":0},{"$f":"SUMPRODUCT(('2. Assisted & Restricted Units'!$E$7:$E$399=\"4\")*('2. Assisted & Restricted Units'!$W$7:$W$399=\"DDS\")*('2. Assisted & Restricted Units'!$X$7:$X$399=\"45% AMI\"))","v":0},{"$f":"SUMPRODUCT(('2. Assisted & Restricted Units'!$E$7:$E$399=\"4\")*('2. Assisted & Restricted Units'!$W$7:$W$399=\"DPRLP\")*('2. Assisted & Restricted Units'!$X$7:$X$399=\"45% AMI\"))","v":0},{"$f":"SUMPRODUCT(('2. Assisted & Restricted Units'!$E$7:$E$399=\"4\")*('2. Assisted & Restricted Units'!$W$7:$W$399=\"FHDP\")*('2. Assisted & Restricted Units'!$X$7:$X$399=\"45% AMI\"))","v":0},{"$f":"SUMPRODUCT(('2. Assisted & Restricted Units'!$E$7:$E$399=\"4\")*('2. Assisted & Restricted Units'!$W$7:$W$399=\"FMTW\")*('2. Assisted & Restricted Units'!$X$7:$X$399=\"45% AMI\"))","v":0},null,{"$f":"SUMPRODUCT(('2. Assisted & Restricted Units'!$E$7:$E$399=\"4\")*('2. Assisted & Restricted Units'!$W$7:$W$399=\"HOME\")*('2. Assisted & Restricted Units'!$X$7:$X$399=\"45% AMI\"))","v":0},{"$f":"SUMPRODUCT(('2. Assisted & Restricted Units'!$E$7:$E$399=\"4\")*('2. Assisted & Restricted Units'!$W$7:$W$399=\"Market Rate\")*('2. Assisted & Restricted Units'!$X$7:$X$399=\"45% AMI\"))","v":0},{"$f":"SUMPRODUCT(('2. Assisted & Restricted Units'!$E$7:$E$399=\"4\")*('2. Assisted & Restricted Units'!$W$7:$W$399=\"MHP\")*('2. Assisted & Restricted Units'!$X$7:$X$399=\"45% AMI\"))","v":0},{"$f":"SUMPRODUCT(('2. Assisted & Restricted Units'!$E$7:$E$399=\"4\")*('2. Assisted & Restricted Units'!$W$7:$W$399=\"NonAssisted\")*('2. Assisted & Restricted Units'!$X$7:$X$399=\"45% AMI\"))","v":0},{"$f":"SUMPRODUCT(('2. Assisted & Restricted Units'!$E$7:$E$399=\"4\")*('2. Assisted & Restricted Units'!$W$7:$W$399=\"Other Restr\")*('2. Assisted & Restricted Units'!$X$7:$X$399=\"45% AMI\"))","v":0},{"$f":"SUMPRODUCT(('2. Assisted & Restricted Units'!$E$7:$E$399=\"4\")*('2. Assisted & Restricted Units'!$W$7:$W$399=\"RHCP-B\")*('2. Assisted & Restricted Units'!$X$7:$X$399=\"45% AMI\"))","v":0},{"$f":"SUMPRODUCT(('2. Assisted & Restricted Units'!$E$7:$E$399=\"4\")*('2. Assisted & Restricted Units'!$W$7:$W$399=\"SERA\")*('2. Assisted & Restricted Units'!$X$7:$X$399=\"45% AMI\"))","v":0},{"$f":"SUMPRODUCT(('2. Assisted & Restricted Units'!$E$7:$E$399=\"4\")*('2. Assisted & Restricted Units'!$W$7:$W$399=\"SUHRP\")*('2. Assisted & Restricted Units'!$X$7:$X$399=\"45% AMI\"))","v":0},{"$f":"SUMPRODUCT(('2. Assisted & Restricted Units'!$E$7:$E$399=\"4\")*('2. Assisted & Restricted Units'!$W$7:$W$399=\"TOD\")*('2. Assisted & Restricted Units'!$X$7:$X$399=\"45% AMI\"))","v":0},{"$f":"SUMPRODUCT(('2. Assisted & Restricted Units'!$E$7:$E$399=\"4\")*('2. Assisted & Restricted Units'!$W$7:$W$399=\"707-E\")*('2. Assisted & Restricted Units'!$X$7:$X$399=\"45% AMI\"))","v":0},{"$f":"SUMPRODUCT(('2. Assisted & Restricted Units'!$E$7:$E$399=\"4\")*('2. Assisted & Restricted Units'!$W$7:$W$399=\"707-N\")*('2. Assisted & Restricted Units'!$X$7:$X$399=\"45% AMI\"))","v":0}]
["4 Bedroom 50% AMI",{"$f":"SUMPRODUCT(('2. Assisted & Restricted Units'!$E$7:$E$399=\"4\")*('2. Assisted & Restricted Units'!$W$7:$W$399=\"CALDAP\")*('2. Assisted & Restricted Units'!$X$7:$X$399=\"50% AMI\"))","v":0},{"$f":"SUMPRODUCT(('2. Assisted & Restricted Units'!$E$7:$E$399=\"4\")*('2. Assisted & Restricted Units'!$W$7:$W$399=\"CHRP-R\")*('2. Assisted & Restricted Units'!$X$7:$X$399=\"50% AMI\"))","v":0},{"$f":"SUMPRODUCT(('2. Assisted & Restricted Units'!$E$7:$E$399=\"4\")*('2. Assisted & Restricted Units'!$W$7:$W$399=\"DDS\")*('2. Assisted & Restricted Units'!$X$7:$X$399=\"50% AMI\"))","v":0},{"$f":"SUMPRODUCT(('2. Assisted & Restricted Units'!$E$7:$E$399=\"4\")*('2. Assisted & Restricted Units'!$W$7:$W$399=\"DPRLP\")*('2. Assisted & Restricted Units'!$X$7:$X$399=\"50% AMI\"))","v":0},{"$f":"SUMPRODUCT(('2. Assisted & Restricted Units'!$E$7:$E$399=\"4\")*('2. Assisted & Restricted Units'!$W$7:$W$399=\"FHDP\")*('2. Assisted & Restricted Units'!$X$7:$X$399=\"50% AMI\"))","v":0},{"$f":"SUMPRODUCT(('2. Assisted & Restricted Units'!$E$7:$E$399=\"4\")*('2. Assisted & Restricted Units'!$W$7:$W$399=\"FMTW\")*('2. Assisted & Restricted Units'!$X$7:$X$399=\"50% AMI\"))","v":0},null,{"$f":"SUMPRODUCT(('2. Assisted & Restricted Units'!$E$7:$E$399=\"4\")*('2. Assisted & Restricted Units'!$W$7:$W$399=\"HOME\")*('2. Assisted & Restricted Units'!$X$7:$X$399=\"50% AMI\"))","v":0},{"$f":"SUMPRODUCT(('2. Assisted & Restricted Units'!$E$7:$E$399=\"4\")*('2. Assisted & Restricted Units'!$W$7:$W$399=\"Market Rate\")*('2. Assisted & Restricted Units'!$X$7:$X$399=\"50% AMI\"))","v":0},{"$f":"SUMPRODUCT(('2. Assisted & Restricted Units'!$E$7:$E$399=\"4\")*('2. Assisted & Restricted Units'!$W$7:$W$399=\"MHP\")*('2. Assisted & Restricted Units'!$X$7:$X$399=\"50% AMI\"))","v":0},{"$f":"SUMPRODUCT(('2. Assisted & Restricted Units'!$E$7:$E$399=\"4\")*('2. Assisted & Restricted Units'!$W$7:$W$399=\"NonAssisted\")*('2. Assisted & Restricted Units'!$X$7:$X$399=\"50% AMI\"))","v":0},{"$f":"SUMPRODUCT(('2. Assisted & Restricted Units'!$E$7:$E$399=\"4\")*('2. Assisted & Restricted Units'!$W$7:$W$399=\"Other Restr\")*('2. Assisted & Restricted Units'!$X$7:$X$399=\"50% AMI\"))","v":0},{"$f":"SUMPRODUCT(('2. Assisted & Restricted Units'!$E$7:$E$399=\"4\")*('2. Assisted & Restricted Units'!$W$7:$W$399=\"RHCP-B\")*('2. Assisted & Restricted Units'!$X$7:$X$399=\"50% AMI\"))","v":0},{"$f":"SUMPRODUCT(('2. Assisted & Restricted Units'!$E$7:$E$399=\"4\")*('2. Assisted & Restricted Units'!$W$7:$W$399=\"SERA\")*('2. Assisted & Restricted Units'!$X$7:$X$399=\"50% AMI\"))","v":0},{"$f":"SUMPRODUCT(('2. Assisted & Restricted Units'!$E$7:$E$399=\"4\")*('2. Assisted & Restricted Units'!$W$7:$W$399=\"SUHRP\")*('2. Assisted & Restricted Units'!$X$7:$X$399=\"50% AMI\"))","v":0},{"$f":"SUMPRODUCT(('2. Assisted & Restricted Units'!$E$7:$E$399=\"4\")*('2. Assisted & Restricted Units'!$W$7:$W$399=\"TOD\")*('2. Assisted & Restricted Units'!$X$7:$X$399=\"50% AMI\"))","v":0},{"$f":"SUMPRODUCT(('2. Assisted & Restricted Units'!$E$7:$E$399=\"4\")*('2. Assisted & Restricted Units'!$W$7:$W$399=\"707-E\")*('2. Assisted & Restricted Units'!$X$7:$X$399=\"50% AMI\"))","v":0},{"$f":"SUMPRODUCT(('2. Assisted & Restricted Units'!$E$7:$E$399=\"4\")*('2. Assisted & Restricted Units'!$W$7:$W$399=\"707-N\")*('2. Assisted & Restricted Units'!$X$7:$X$399=\"50% AMI\"))","v":0}]
["4 Bedroom 55% AMI",{"$f":"SUMPRODUCT(('2. Assisted & Restricted Units'!$E$7:$E$399=\"4\")*('2. Assisted & Restricted Units'!$W$7:$W$399=\"CALDAP\")*('2. Assisted & Restricted Units'!$X$7:$X$399=\"55% AMI\"))","v":0},{"$f":"SUMPRODUCT(('2. Assisted & Restricted Units'!$E$7:$E$399=\"4\")*('2. Assisted & Restricted Units'!$W$7:$W$399=\"CHRP-R\")*('2. Assisted & Restricted Units'!$X$7:$X$399=\"55% AMI\"))","v":0},{"$f":"SUMPRODUCT(('2. Assisted & Restricted Units'!$E$7:$E$399=\"4\")*('2. Assisted & Restricted Units'!$W$7:$W$399=\"DDS\")*('2. Assisted & Restricted Units'!$X$7:$X$399=\"55% AMI\"))","v":0},{"$f":"SUMPRODUCT(('2. Assisted & Restricted Units'!$E$7:$E$399=\"4\")*('2. Assisted & Restricted Units'!$W$7:$W$399=\"DPRLP\")*('2. Assisted & Restricted Units'!$X$7:$X$399=\"55% AMI\"))","v":0},{"$f":"SUMPRODUCT(('2. Assisted & Restricted Units'!$E$7:$E$399=\"4\")*('2. Assisted & Restricted Units'!$W$7:$W$399=\"FHDP\")*('2. Assisted & Restricted Units'!$X$7:$X$399=\"55% AMI\"))","v":0},{"$f":"SUMPRODUCT(('2. Assisted & Restricted Units'!$E$7:$E$399=\"4\")*('2. Assisted & Restricted Units'!$W$7:$W$399=\"FMTW\")*('2. Assisted & Restricted Units'!$X$7:$X$399=\"55% AMI\"))","v":0},null,{"$f":"SUMPRODUCT(('2. Assisted & Restricted Units'!$E$7:$E$399=\"4\")*('2. Assisted & Restricted Units'!$W$7:$W$399=\"HOME\")*('2. Assisted & Restricted Units'!$X$7:$X$399=\"55% AMI\"))","v":0},{"$f":"SUMPRODUCT(('2. Assisted & Restricted Units'!$E$7:$E$399=\"4\")*('2. Assisted & Restricted Units'!$W$7:$W$399=\"Market Rate\")*('2. Assisted & Restricted Units'!$X$7:$X$399=\"55% AMI\"))","v":0},{"$f":"SUMPRODUCT(('2. Assisted & Restricted Units'!$E$7:$E$399=\"4\")*('2. Assisted & Restricted Units'!$W$7:$W$399=\"MHP\")*('2. Assisted & Restricted Units'!$X$7:$X$399=\"55% AMI\"))","v":0},{"$f":"SUMPRODUCT(('2. Assisted & Restricted Units'!$E$7:$E$399=\"4\")*('2. Assisted & Restricted Units'!$W$7:$W$399=\"NonAssisted\")*('2. Assisted & Restricted Units'!$X$7:$X$399=\"55% AMI\"))","v":0},{"$f":"SUMPRODUCT(('2. Assisted & Restricted Units'!$E$7:$E$399=\"4\")*('2. Assisted & Restricted Units'!$W$7:$W$399=\"Other Restr\")*('2. Assisted & Restricted Units'!$X$7:$X$399=\"55% AMI\"))","v":0},{"$f":"SUMPRODUCT(('2. Assisted & Restricted Units'!$E$7:$E$399=\"4\")*('2. Assisted & Restricted Units'!$W$7:$W$399=\"RHCP-B\")*('2. Assisted & Restricted Units'!$X$7:$X$399=\"55% AMI\"))","v":0},{"$f":"SUMPRODUCT(('2. Assisted & Restricted Units'!$E$7:$E$399=\"4\")*('2. Assisted & Restricted Units'!$W$7:$W$399=\"SERA\")*('2. Assisted & Restricted Units'!$X$7:$X$399=\"55% AMI\"))","v":0},{"$f":"SUMPRODUCT(('2. Assisted & Restricted Units'!$E$7:$E$399=\"4\")*('2. Assisted & Restricted Units'!$W$7:$W$399=\"SUHRP\")*('2. Assisted & Restricted Units'!$X$7:$X$399=\"55% AMI\"))","v":0},{"$f":"SUMPRODUCT(('2. Assisted & Restricted Units'!$E$7:$E$399=\"4\")*('2. Assisted & Restricted Units'!$W$7:$W$399=\"TOD\")*('2. Assisted & Restricted Units'!$X$7:$X$399=\"55% AMI\"))","v":0},{"$f":"SUMPRODUCT(('2. Assisted & Restricted Units'!$E$7:$E$399=\"4\")*('2. Assisted & Restricted Units'!$W$7:$W$399=\"707-E\")*('2. Assisted & Restricted Units'!$X$7:$X$399=\"55% AMI\"))","v":0},{"$f":"SUMPRODUCT(('2. Assisted & Restricted Units'!$E$7:$E$399=\"4\")*('2. Assisted & Restricted Units'!$W$7:$W$399=\"707-N\")*('2. Assisted & Restricted Units'!$X$7:$X$399=\"55% AMI\"))","v":0}]
["4 Bedroom 60% AMI",{"$f":"SUMPRODUCT(('2. Assisted & Restricted Units'!$E$7:$E$399=\"4\")*('2. Assisted & Restricted Units'!$W$7:$W$399=\"CALDAP\")*('2. Assisted & Restricted Units'!$X$7:$X$399=\"60% AMI\"))","v":0},{"$f":"SUMPRODUCT(('2. Assisted & Restricted Units'!$E$7:$E$399=\"4\")*('2. Assisted & Restricted Units'!$W$7:$W$399=\"CHRP-R\")*('2. Assisted & Restricted Units'!$X$7:$X$399=\"60% AMI\"))","v":0},{"$f":"SUMPRODUCT(('2. Assisted & Restricted Units'!$E$7:$E$399=\"4\")*('2. Assisted & Restricted Units'!$W$7:$W$399=\"DDS\")*('2. Assisted & Restricted Units'!$X$7:$X$399=\"60% AMI\"))","v":0},{"$f":"SUMPRODUCT(('2. Assisted & Restricted Units'!$E$7:$E$399=\"4\")*('2. Assisted & Restricted Units'!$W$7:$W$399=\"DPRLP\")*('2. Assisted & Restricted Units'!$X$7:$X$399=\"60% AMI\"))","v":0},{"$f":"SUMPRODUCT(('2. Assisted & Restricted Units'!$E$7:$E$399=\"4\")*('2. Assisted & Restricted Units'!$W$7:$W$399=\"FHDP\")*('2. Assisted & Restricted Units'!$X$7:$X$399=\"60% AMI\"))","v":0},{"$f":"SUMPRODUCT(('2. Assisted & Restricted Units'!$E$7:$E$399=\"4\")*('2. Assisted & Restricted Units'!$W$7:$W$399=\"FMTW\")*('2. Assisted & Restricted Units'!$X$7:$X$399=\"60% AMI\"))","v":0},null,{"$f":"SUMPRODUCT(('2. Assisted & Restricted Units'!$E$7:$E$399=\"4\")*('2. Assisted & Restricted Units'!$W$7:$W$399=\"HOME\")*('2. Assisted & Restricted Units'!$X$7:$X$399=\"60% AMI\"))","v":0},{"$f":"SUMPRODUCT(('2. Assisted & Restricted Units'!$E$7:$E$399=\"4\")*('2. Assisted & Restricted Units'!$W$7:$W$399=\"Market Rate\")*('2. Assisted & Restricted Units'!$X$7:$X$399=\"60% AMI\"))","v":0},{"$f":"SUMPRODUCT(('2. Assisted & Restricted Units'!$E$7:$E$399=\"4\")*('2. Assisted & Restricted Units'!$W$7:$W$399=\"MHP\")*('2. Assisted & Restricted Units'!$X$7:$X$399=\"60% AMI\"))","v":0},{"$f":"SUMPRODUCT(('2. Assisted & Restricted Units'!$E$7:$E$399=\"4\")*('2. Assisted & Restricted Units'!$W$7:$W$399=\"NonAssisted\")*('2. Assisted & Restricted Units'!$X$7:$X$399=\"60% AMI\"))","v":0},{"$f":"SUMPRODUCT(('2. Assisted & Restricted Units'!$E$7:$E$399=\"4\")*('2. Assisted & Restricted Units'!$W$7:$W$399=\"Other Restr\")*('2. Assisted & Restricted Units'!$X$7:$X$399=\"60% AMI\"))","v":0},{"$f":"SUMPRODUCT(('2. Assisted & Restricted Units'!$E$7:$E$399=\"4\")*('2. Assisted & Restricted Units'!$W$7:$W$399=\"RHCP-B\")*('2. Assisted & Restricted Units'!$X$7:$X$399=\"60% AMI\"))","v":0},{"$f":"SUMPRODUCT(('2. Assisted & Restricted Units'!$E$7:$E$399=\"4\")*('2. Assisted & Restricted Units'!$W$7:$W$399=\"SERA\")*('2. Assisted & Restricted Units'!$X$7:$X$399=\"60% AMI\"))","v":0},{"$f":"SUMPRODUCT(('2. Assisted & Restricted Units'!$E$7:$E$399=\"4\")*('2. Assisted & Restricted Units'!$W$7:$W$399=\"SUHRP\")*('2. Assisted & Restricted Units'!$X$7:$X$399=\"60% AMI\"))","v":0},{"$f":"SUMPRODUCT(('2. Assisted & Restricted Units'!$E$7:$E$399=\"4\")*('2. Assisted & Restricted Units'!$W$7:$W$399=\"TOD\")*('2. Assisted & Restricted Units'!$X$7:$X$399=\"60% AMI\"))","v":0},{"$f":"SUMPRODUCT(('2. Assisted & Restricted Units'!$E$7:$E$399=\"4\")*('2. Assisted & Restricted Units'!$W$7:$W$399=\"707-E\")*('2. Assisted & Restricted Units'!$X$7:$X$399=\"60% AMI\"))","v":0},{"$f":"SUMPRODUCT(('2. Assisted & Restricted Units'!$E$7:$E$399=\"4\")*('2. Assisted & Restricted Units'!$W$7:$W$399=\"707-N\")*('2. Assisted & Restricted Units'!$X$7:$X$399=\"60% AMI\"))","v":0}]
["4 Bedroom 80% AMI",{"$f":"SUMPRODUCT(('2. Assisted & Restricted Units'!$E$7:$E$399=\"4\")*('2. Assisted & Restricted Units'!$W$7:$W$399=\"CALDAP\")*('2. Assisted & Restricted Units'!$X$7:$X$399=\"80% AMI\"))","v":0},{"$f":"SUMPRODUCT(('2. Assisted & Restricted Units'!$E$7:$E$399=\"4\")*('2. Assisted & Restricted Units'!$W$7:$W$399=\"CHRP-R\")*('2. Assisted & Restricted Units'!$X$7:$X$399=\"80% AMI\"))","v":0},{"$f":"SUMPRODUCT(('2. Assisted & Restricted Units'!$E$7:$E$399=\"4\")*('2. Assisted & Restricted Units'!$W$7:$W$399=\"DDS\")*('2. Assisted & Restricted Units'!$X$7:$X$399=\"80% AMI\"))","v":0},{"$f":"SUMPRODUCT(('2. Assisted & Restricted Units'!$E$7:$E$399=\"4\")*('2. Assisted & Restricted Units'!$W$7:$W$399=\"DPRLP\")*('2. Assisted & Restricted Units'!$X$7:$X$399=\"80% AMI\"))","v":0},{"$f":"SUMPRODUCT(('2. Assisted & Restricted Units'!$E$7:$E$399=\"4\")*('2. Assisted & Restricted Units'!$W$7:$W$399=\"FHDP\")*('2. Assisted & Restricted Units'!$X$7:$X$399=\"80% AMI\"))","v":0},{"$f":"SUMPRODUCT(('2. Assisted & Restricted Units'!$E$7:$E$399=\"4\")*('2. Assisted & Restricted Units'!$W$7:$W$399=\"FMTW\")*('2. Assisted & Restricted Units'!$X$7:$X$399=\"80% AMI\"))","v":0},null,{"$f":"SUMPRODUCT(('2. Assisted & Restricted Units'!$E$7:$E$399=\"4\")*('2. Assisted & Restricted Units'!$W$7:$W$399=\"HOME\")*('2. Assisted & Restricted Units'!$X$7:$X$399=\"80% AMI\"))","v":0},{"$f":"SUMPRODUCT(('2. Assisted & Restricted Units'!$E$7:$E$399=\"4\")*('2. Assisted & Restricted Units'!$W$7:$W$399=\"Market Rate\")*('2. Assisted & Restricted Units'!$X$7:$X$399=\"80% AMI\"))","v":0},{"$f":"SUMPRODUCT(('2. Assisted & Restricted Units'!$E$7:$E$399=\"4\")*('2. Assisted & Restricted Units'!$W$7:$W$399=\"MHP\")*('2. Assisted & Restricted Units'!$X$7:$X$399=\"80% AMI\"))","v":0},{"$f":"SUMPRODUCT(('2. Assisted & Restricted Units'!$E$7:$E$399=\"4\")*('2. Assisted & Restricted Units'!$W$7:$W$399=\"NonAssisted\")*('2. Assisted & Restricted Units'!$X$7:$X$399=\"80% AMI\"))","v":0},{"$f":"SUMPRODUCT(('2. Assisted & Restricted Units'!$E$7:$E$399=\"4\")*('2. Assisted & Restricted Units'!$W$7:$W$399=\"Other Restr\")*('2. Assisted & Restricted Units'!$X$7:$X$399=\"80% AMI\"))","v":0},{"$f":"SUMPRODUCT(('2. Assisted & Restricted Units'!$E$7:$E$399=\"4\")*('2. Assisted & Restricted Units'!$W$7:$W$399=\"RHCP-B\")*('2. Assisted & Restricted Units'!$X$7:$X$399=\"80% AMI\"))","v":0},{"$f":"SUMPRODUCT(('2. Assisted & Restricted Units'!$E$7:$E$399=\"4\")*('2. Assisted & Restricted Units'!$W$7:$W$399=\"SERA\")*('2. Assisted & Restricted Units'!$X$7:$X$399=\"80% AMI\"))","v":0},{"$f":"SUMPRODUCT(('2. Assisted & Restricted Units'!$E$7:$E$399=\"4\")*('2. Assisted & Restricted Units'!$W$7:$W$399=\"SUHRP\")*('2. Assisted & Restricted Units'!$X$7:$X$399=\"80% AMI\"))","v":0},{"$f":"SUMPRODUCT(('2. Assisted & Restricted Units'!$E$7:$E$399=\"4\")*('2. Assisted & Restricted Units'!$W$7:$W$399=\"TOD\")*('2. Assisted & Restricted Units'!$X$7:$X$399=\"80% AMI\"))","v":0},{"$f":"SUMPRODUCT(('2. Assisted & Restricted Units'!$E$7:$E$399=\"4\")*('2. Assisted & Restricted Units'!$W$7:$W$399=\"707-E\")*('2. Assisted & Restricted Units'!$X$7:$X$399=\"80% AMI\"))","v":0},{"$f":"SUMPRODUCT(('2. Assisted & Restricted Units'!$E$7:$E$399=\"4\")*('2. Assisted & Restricted Units'!$W$7:$W$399=\"707-N\")*('2. Assisted & Restricted Units'!$X$7:$X$399=\"80% AMI\"))","v":0}]
["4 Bedroom 20% SMI",{"$f":"SUMPRODUCT(('2. Assisted & Restricted Units'!$E$7:$E$399=\"4\")*('2. Assisted & Restricted Units'!$W$7:$W$399=\"CALDAP\")*('2. Assisted & Restricted Units'!$X$7:$X$399=\"20% SMI\"))","v":0},{"$f":"SUMPRODUCT(('2. Assisted & Restricted Units'!$E$7:$E$399=\"4\")*('2. Assisted & Restricted Units'!$W$7:$W$399=\"CHRP-R\")*('2. Assisted & Restricted Units'!$X$7:$X$399=\"20% SMI\"))","v":0},{"$f":"SUMPRODUCT(('2. Assisted & Restricted Units'!$E$7:$E$399=\"4\")*('2. Assisted & Restricted Units'!$W$7:$W$399=\"DDS\")*('2. Assisted & Restricted Units'!$X$7:$X$399=\"20% SMI\"))","v":0},{"$f":"SUMPRODUCT(('2. Assisted & Restricted Units'!$E$7:$E$399=\"4\")*('2. Assisted & Restricted Units'!$W$7:$W$399=\"DPRLP\")*('2. Assisted & Restricted Units'!$X$7:$X$399=\"20% SMI\"))","v":0},{"$f":"SUMPRODUCT(('2. Assisted & Restricted Units'!$E$7:$E$399=\"4\")*('2. Assisted & Restricted Units'!$W$7:$W$399=\"FHDP\")*('2. Assisted & Restricted Units'!$X$7:$X$399=\"20% SMI\"))","v":0},{"$f":"SUMPRODUCT(('2. Assisted & Restricted Units'!$E$7:$E$399=\"4\")*('2. Assisted & Restricted Units'!$W$7:$W$399=\"FMTW\")*('2. Assisted & Restricted Units'!$X$7:$X$399=\"20% SMI\"))","v":0},null,{"$f":"SUMPRODUCT(('2. Assisted & Restricted Units'!$E$7:$E$399=\"4\")*('2. Assisted & Restricted Units'!$W$7:$W$399=\"HOME\")*('2. Assisted & Restricted Units'!$X$7:$X$399=\"20% SMI\"))","v":0},{"$f":"SUMPRODUCT(('2. Assisted & Restricted Units'!$E$7:$E$399=\"4\")*('2. Assisted & Restricted Units'!$W$7:$W$399=\"Market Rate\")*('2. Assisted & Restricted Units'!$X$7:$X$399=\"20% SMI\"))","v":0},{"$f":"SUMPRODUCT(('2. Assisted & Restricted Units'!$E$7:$E$399=\"4\")*('2. Assisted & Restricted Units'!$W$7:$W$399=\"MHP\")*('2. Assisted & Restricted Units'!$X$7:$X$399=\"20% SMI\"))","v":0},{"$f":"SUMPRODUCT(('2. Assisted & Restricted Units'!$E$7:$E$399=\"4\")*('2. Assisted & Restricted Units'!$W$7:$W$399=\"NonAssisted\")*('2. Assisted & Restricted Units'!$X$7:$X$399=\"20% SMI\"))","v":0},{"$f":"SUMPRODUCT(('2. Assisted & Restricted Units'!$E$7:$E$399=\"4\")*('2. Assisted & Restricted Units'!$W$7:$W$399=\"Other Restr\")*('2. Assisted & Restricted Units'!$X$7:$X$399=\"20% SMI\"))","v":0},{"$f":"SUMPRODUCT(('2. Assisted & Restricted Units'!$E$7:$E$399=\"4\")*('2. Assisted & Restricted Units'!$W$7:$W$399=\"RHCP-B\")*('2. Assisted & Restricted Units'!$X$7:$X$399=\"20% SMI\"))","v":0},{"$f":"SUMPRODUCT(('2. Assisted & Restricted Units'!$E$7:$E$399=\"4\")*('2. Assisted & Restricted Units'!$W$7:$W$399=\"SERA\")*('2. Assisted & Restricted Units'!$X$7:$X$399=\"20% SMI\"))","v":0},{"$f":"SUMPRODUCT(('2. Assisted & Restricted Units'!$E$7:$E$399=\"4\")*('2. Assisted & Restricted Units'!$W$7:$W$399=\"SUHRP\")*('2. Assisted & Restricted Units'!$X$7:$X$399=\"20% SMI\"))","v":0},{"$f":"SUMPRODUCT(('2. Assisted & Restricted Units'!$E$7:$E$399=\"4\")*('2. Assisted & Restricted Units'!$W$7:$W$399=\"TOD\")*('2. Assisted & Restricted Units'!$X$7:$X$399=\"20% SMI\"))","v":0},{"$f":"SUMPRODUCT(('2. Assisted & Restricted Units'!$E$7:$E$399=\"4\")*('2. Assisted & Restricted Units'!$W$7:$W$399=\"707-E\")*('2. Assisted & Restricted Units'!$X$7:$X$399=\"20% SMI\"))","v":0},{"$f":"SUMPRODUCT(('2. Assisted & Restricted Units'!$E$7:$E$399=\"4\")*('2. Assisted & Restricted Units'!$W$7:$W$399=\"707-N\")*('2. Assisted & Restricted Units'!$X$7:$X$399=\"20% SMI\"))","v":0}]
["4 Bedroom 25% SMI",{"$f":"SUMPRODUCT(('2. Assisted & Restricted Units'!$E$7:$E$399=\"4\")*('2. Assisted & Restricted Units'!$W$7:$W$399=\"CALDAP\")*('2. Assisted & Restricted Units'!$X$7:$X$399=\"25% SMI\"))","v":0},{"$f":"SUMPRODUCT(('2. Assisted & Restricted Units'!$E$7:$E$399=\"4\")*('2. Assisted & Restricted Units'!$W$7:$W$399=\"CHRP-R\")*('2. Assisted & Restricted Units'!$X$7:$X$399=\"25% SMI\"))","v":0},{"$f":"SUMPRODUCT(('2. Assisted & Restricted Units'!$E$7:$E$399=\"4\")*('2. Assisted & Restricted Units'!$W$7:$W$399=\"DDS\")*('2. Assisted & Restricted Units'!$X$7:$X$399=\"25% SMI\"))","v":0},{"$f":"SUMPRODUCT(('2. Assisted & Restricted Units'!$E$7:$E$399=\"4\")*('2. Assisted & Restricted Units'!$W$7:$W$399=\"DPRLP\")*('2. Assisted & Restricted Units'!$X$7:$X$399=\"25% SMI\"))","v":0},{"$f":"SUMPRODUCT(('2. Assisted & Restricted Units'!$E$7:$E$399=\"4\")*('2. Assisted & Restricted Units'!$W$7:$W$399=\"FHDP\")*('2. Assisted & Restricted Units'!$X$7:$X$399=\"25% SMI\"))","v":0},{"$f":"SUMPRODUCT(('2. Assisted & Restricted Units'!$E$7:$E$399=\"4\")*('2. Assisted & Restricted Units'!$W$7:$W$399=\"FMTW\")*('2. Assisted & Restricted Units'!$X$7:$X$399=\"25% SMI\"))","v":0},null,{"$f":"SUMPRODUCT(('2. Assisted & Restricted Units'!$E$7:$E$399=\"4\")*('2. Assisted & Restricted Units'!$W$7:$W$399=\"HOME\")*('2. Assisted & Restricted Units'!$X$7:$X$399=\"25% SMI\"))","v":0},{"$f":"SUMPRODUCT(('2. Assisted & Restricted Units'!$E$7:$E$399=\"4\")*('2. Assisted & Restricted Units'!$W$7:$W$399=\"Market Rate\")*('2. Assisted & Restricted Units'!$X$7:$X$399=\"25% SMI\"))","v":0},{"$f":"SUMPRODUCT(('2. Assisted & Restricted Units'!$E$7:$E$399=\"4\")*('2. Assisted & Restricted Units'!$W$7:$W$399=\"MHP\")*('2. Assisted & Restricted Units'!$X$7:$X$399=\"25% SMI\"))","v":0},{"$f":"SUMPRODUCT(('2. Assisted & Restricted Units'!$E$7:$E$399=\"4\")*('2. Assisted & Restricted Units'!$W$7:$W$399=\"NonAssisted\")*('2. Assisted & Restricted Units'!$X$7:$X$399=\"25% SMI\"))","v":0},{"$f":"SUMPRODUCT(('2. Assisted & Restricted Units'!$E$7:$E$399=\"4\")*('2. Assisted & Restricted Units'!$W$7:$W$399=\"Other Restr\")*('2. Assisted & Restricted Units'!$X$7:$X$399=\"25% SMI\"))","v":0},{"$f":"SUMPRODUCT(('2. Assisted & Restricted Units'!$E$7:$E$399=\"4\")*('2. Assisted & Restricted Units'!$W$7:$W$399=\"RHCP-B\")*('2. Assisted & Restricted Units'!$X$7:$X$399=\"25% SMI\"))","v":0},{"$f":"SUMPRODUCT(('2. Assisted & Restricted Units'!$E$7:$E$399=\"4\")*('2. Assisted & Restricted Units'!$W$7:$W$399=\"SERA\")*('2. Assisted & Restricted Units'!$X$7:$X$399=\"25% SMI\"))","v":0},{"$f":"SUMPRODUCT(('2. Assisted & Restricted Units'!$E$7:$E$399=\"4\")*('2. Assisted & Restricted Units'!$W$7:$W$399=\"SUHRP\")*('2. Assisted & Restricted Units'!$X$7:$X$399=\"25% SMI\"))","v":0},{"$f":"SUMPRODUCT(('2. Assisted & Restricted Units'!$E$7:$E$399=\"4\")*('2. Assisted & Restricted Units'!$W$7:$W$399=\"TOD\")*('2. Assisted & Restricted Units'!$X$7:$X$399=\"25% SMI\"))","v":0},{"$f":"SUMPRODUCT(('2. Assisted & Restricted Units'!$E$7:$E$399=\"4\")*('2. Assisted & Restricted Units'!$W$7:$W$399=\"707-E\")*('2. Assisted & Restricted Units'!$X$7:$X$399=\"25% SMI\"))","v":0},{"$f":"SUMPRODUCT(('2. Assisted & Restricted Units'!$E$7:$E$399=\"4\")*('2. Assisted & Restricted Units'!$W$7:$W$399=\"707-N\")*('2. Assisted & Restricted Units'!$X$7:$X$399=\"25% SMI\"))","v":0}]
["4 Bedroom 30% SMI",{"$f":"SUMPRODUCT(('2. Assisted & Restricted Units'!$E$7:$E$399=\"4\")*('2. Assisted & Restricted Units'!$W$7:$W$399=\"CALDAP\")*('2. Assisted & Restricted Units'!$X$7:$X$399=\"30% SMI\"))","v":0},{"$f":"SUMPRODUCT(('2. Assisted & Restricted Units'!$E$7:$E$399=\"4\")*('2. Assisted & Restricted Units'!$W$7:$W$399=\"CHRP-R\")*('2. Assisted & Restricted Units'!$X$7:$X$399=\"30% SMI\"))","v":0},{"$f":"SUMPRODUCT(('2. Assisted & Restricted Units'!$E$7:$E$399=\"4\")*('2. Assisted & Restricted Units'!$W$7:$W$399=\"DDS\")*('2. Assisted & Restricted Units'!$X$7:$X$399=\"30% SMI\"))","v":0},{"$f":"SUMPRODUCT(('2. Assisted & Restricted Units'!$E$7:$E$399=\"4\")*('2. Assisted & Restricted Units'!$W$7:$W$399=\"DPRLP\")*('2. Assisted & Restricted Units'!$X$7:$X$399=\"30% SMI\"))","v":0},{"$f":"SUMPRODUCT(('2. Assisted & Restricted Units'!$E$7:$E$399=\"4\")*('2. Assisted & Restricted Units'!$W$7:$W$399=\"FHDP\")*('2. Assisted & Restricted Units'!$X$7:$X$399=\"30% SMI\"))","v":0},{"$f":"SUMPRODUCT(('2. Assisted & Restricted Units'!$E$7:$E$399=\"4\")*('2. Assisted & Restricted Units'!$W$7:$W$399=\"FMTW\")*('2. Assisted & Restricted Units'!$X$7:$X$399=\"30% SMI\"))","v":0},null,{"$f":"SUMPRODUCT(('2. Assisted & Restricted Units'!$E$7:$E$399=\"4\")*('2. Assisted & Restricted Units'!$W$7:$W$399=\"HOME\")*('2. Assisted & Restricted Units'!$X$7:$X$399=\"30% SMI\"))","v":0},{"$f":"SUMPRODUCT(('2. Assisted & Restricted Units'!$E$7:$E$399=\"4\")*('2. Assisted & Restricted Units'!$W$7:$W$399=\"Market Rate\")*('2. Assisted & Restricted Units'!$X$7:$X$399=\"30% SMI\"))","v":0},{"$f":"SUMPRODUCT(('2. Assisted & Restricted Units'!$E$7:$E$399=\"4\")*('2. Assisted & Restricted Units'!$W$7:$W$399=\"MHP\")*('2. Assisted & Restricted Units'!$X$7:$X$399=\"30% SMI\"))","v":0},{"$f":"SUMPRODUCT(('2. Assisted & Restricted Units'!$E$7:$E$399=\"4\")*('2. Assisted & Restricted Units'!$W$7:$W$399=\"NonAssisted\")*('2. Assisted & Restricted Units'!$X$7:$X$399=\"30% SMI\"))","v":0},{"$f":"SUMPRODUCT(('2. Assisted & Restricted Units'!$E$7:$E$399=\"4\")*('2. Assisted & Restricted Units'!$W$7:$W$399=\"Other Restr\")*('2. Assisted & Restricted Units'!$X$7:$X$399=\"30% SMI\"))","v":0},{"$f":"SUMPRODUCT(('2. Assisted & Restricted Units'!$E$7:$E$399=\"4\")*('2. Assisted & Restricted Units'!$W$7:$W$399=\"RHCP-B\")*('2. Assisted & Restricted Units'!$X$7:$X$399=\"30% SMI\"))","v":0},{"$f":"SUMPRODUCT(('2. Assisted & Restricted Units'!$E$7:$E$399=\"4\")*('2. Assisted & Restricted Units'!$W$7:$W$399=\"SERA\")*('2. Assisted & Restricted Units'!$X$7:$X$399=\"30% SMI\"))","v":0},{"$f":"SUMPRODUCT(('2. Assisted & Restricted Units'!$E$7:$E$399=\"4\")*('2. Assisted & Restricted Units'!$W$7:$W$399=\"SUHRP\")*('2. Assisted & Restricted Units'!$X$7:$X$399=\"30% SMI\"))","v":0},{"$f":"SUMPRODUCT(('2. Assisted & Restricted Units'!$E$7:$E$399=\"4\")*('2. Assisted & Restricted Units'!$W$7:$W$399=\"TOD\")*('2. Assisted & Restricted Units'!$X$7:$X$399=\"30% SMI\"))","v":0},{"$f":"SUMPRODUCT(('2. Assisted & Restricted Units'!$E$7:$E$399=\"4\")*('2. Assisted & Restricted Units'!$W$7:$W$399=\"707-E\")*('2. Assisted & Restricted Units'!$X$7:$X$399=\"30% SMI\"))","v":0},{"$f":"SUMPRODUCT(('2. Assisted & Restricted Units'!$E$7:$E$399=\"4\")*('2. Assisted & Restricted Units'!$W$7:$W$399=\"707-N\")*('2. Assisted & Restricted Units'!$X$7:$X$399=\"30% SMI\"))","v":0}]
["4 Bedroom 35% SMI",{"$f":"SUMPRODUCT(('2. Assisted & Restricted Units'!$E$7:$E$399=\"4\")*('2. Assisted & Restricted Units'!$W$7:$W$399=\"CALDAP\")*('2. Assisted & Restricted Units'!$X$7:$X$399=\"35% SMI\"))","v":0},{"$f":"SUMPRODUCT(('2. Assisted & Restricted Units'!$E$7:$E$399=\"4\")*('2. Assisted & Restricted Units'!$W$7:$W$399=\"CHRP-R\")*('2. Assisted & Restricted Units'!$X$7:$X$399=\"35% SMI\"))","v":0},{"$f":"SUMPRODUCT(('2. Assisted & Restricted Units'!$E$7:$E$399=\"4\")*('2. Assisted & Restricted Units'!$W$7:$W$399=\"DDS\")*('2. Assisted & Restricted Units'!$X$7:$X$399=\"35% SMI\"))","v":0},{"$f":"SUMPRODUCT(('2. Assisted & Restricted Units'!$E$7:$E$399=\"4\")*('2. Assisted & Restricted Units'!$W$7:$W$399=\"DPRLP\")*('2. Assisted & Restricted Units'!$X$7:$X$399=\"35% SMI\"))","v":0},{"$f":"SUMPRODUCT(('2. Assisted & Restricted Units'!$E$7:$E$399=\"4\")*('2. Assisted & Restricted Units'!$W$7:$W$399=\"FHDP\")*('2. Assisted & Restricted Units'!$X$7:$X$399=\"35% SMI\"))","v":0},{"$f":"SUMPRODUCT(('2. Assisted & Restricted Units'!$E$7:$E$399=\"4\")*('2. Assisted & Restricted Units'!$W$7:$W$399=\"FMTW\")*('2. Assisted & Restricted Units'!$X$7:$X$399=\"35% SMI\"))","v":0},null,{"$f":"SUMPRODUCT(('2. Assisted & Restricted Units'!$E$7:$E$399=\"4\")*('2. Assisted & Restricted Units'!$W$7:$W$399=\"HOME\")*('2. Assisted & Restricted Units'!$X$7:$X$399=\"35% SMI\"))","v":0},{"$f":"SUMPRODUCT(('2. Assisted & Restricted Units'!$E$7:$E$399=\"4\")*('2. Assisted & Restricted Units'!$W$7:$W$399=\"Market Rate\")*('2. Assisted & Restricted Units'!$X$7:$X$399=\"35% SMI\"))","v":0},{"$f":"SUMPRODUCT(('2. Assisted & Restricted Units'!$E$7:$E$399=\"4\")*('2. Assisted & Restricted Units'!$W$7:$W$399=\"MHP\")*('2. Assisted & Restricted Units'!$X$7:$X$399=\"35% SMI\"))","v":0},{"$f":"SUMPRODUCT(('2. Assisted & Restricted Units'!$E$7:$E$399=\"4\")*('2. Assisted & Restricted Units'!$W$7:$W$399=\"NonAssisted\")*('2. Assisted & Restricted Units'!$X$7:$X$399=\"35% SMI\"))","v":0},{"$f":"SUMPRODUCT(('2. Assisted & Restricted Units'!$E$7:$E$399=\"4\")*('2. Assisted & Restricted Units'!$W$7:$W$399=\"Other Restr\")*('2. Assisted & Restricted Units'!$X$7:$X$399=\"35% SMI\"))","v":0},{"$f":"SUMPRODUCT(('2. Assisted & Restricted Units'!$E$7:$E$399=\"4\")*('2. Assisted & Restricted Units'!$W$7:$W$399=\"RHCP-B\")*('2. Assisted & Restricted Units'!$X$7:$X$399=\"35% SMI\"))","v":0},{"$f":"SUMPRODUCT(('2. Assisted & Restricted Units'!$E$7:$E$399=\"4\")*('2. Assisted & Restricted Units'!$W$7:$W$399=\"SERA\")*('2. Assisted & Restricted Units'!$X$7:$X$399=\"35% SMI\"))","v":0},{"$f":"SUMPRODUCT(('2. Assisted & Restricted Units'!$E$7:$E$399=\"4\")*('2. Assisted & Restricted Units'!$W$7:$W$399=\"SUHRP\")*('2. Assisted & Restricted Units'!$X$7:$X$399=\"35% SMI\"))","v":0},{"$f":"SUMPRODUCT(('2. Assisted & Restricted Units'!$E$7:$E$399=\"4\")*('2. Assisted & Restricted Units'!$W$7:$W$399=\"TOD\")*('2. Assisted & Restricted Units'!$X$7:$X$399=\"35% SMI\"))","v":0},{"$f":"SUMPRODUCT(('2. Assisted & Restricted Units'!$E$7:$E$399=\"4\")*('2. Assisted & Restricted Units'!$W$7:$W$399=\"707-E\")*('2. Assisted & Restricted Units'!$X$7:$X$399=\"35% SMI\"))","v":0},{"$f":"SUMPRODUCT(('2. Assisted & Restricted Units'!$E$7:$E$399=\"4\")*('2. Assisted & Restricted Units'!$W$7:$W$399=\"707-N\")*('2. Assisted & Restricted Units'!$X$7:$X$399=\"35% SMI\"))","v":0}]
["4 Bedroom 40% SMI",{"$f":"SUMPRODUCT(('2. Assisted & Restricted Units'!$E$7:$E$399=\"4\")*('2. Assisted & Restricted Units'!$W$7:$W$399=\"CALDAP\")*('2. Assisted & Restricted Units'!$X$7:$X$399=\"40% SMI\"))","v":0},{"$f":"SUMPRODUCT(('2. Assisted & Restricted Units'!$E$7:$E$399=\"4\")*('2. Assisted & Restricted Units'!$W$7:$W$399=\"CHRP-R\")*('2. Assisted & Restricted Units'!$X$7:$X$399=\"40% SMI\"))","v":0},{"$f":"SUMPRODUCT(('2. Assisted & Restricted Units'!$E$7:$E$399=\"4\")*('2. Assisted & Restricted Units'!$W$7:$W$399=\"DDS\")*('2. Assisted & Restricted Units'!$X$7:$X$399=\"40% SMI\"))","v":0},{"$f":"SUMPRODUCT(('2. Assisted & Restricted Units'!$E$7:$E$399=\"4\")*('2. Assisted & Restricted Units'!$W$7:$W$399=\"DPRLP\")*('2. Assisted & Restricted Units'!$X$7:$X$399=\"40% SMI\"))","v":0},{"$f":"SUMPRODUCT(('2. Assisted & Restricted Units'!$E$7:$E$399=\"4\")*('2. Assisted & Restricted Units'!$W$7:$W$399=\"FHDP\")*('2. Assisted & Restricted Units'!$X$7:$X$399=\"40% SMI\"))","v":0},{"$f":"SUMPRODUCT(('2. Assisted & Restricted Units'!$E$7:$E$399=\"4\")*('2. Assisted & Restricted Units'!$W$7:$W$399=\"FMTW\")*('2. Assisted & Restricted Units'!$X$7:$X$399=\"40% SMI\"))","v":0},null,{"$f":"SUMPRODUCT(('2. Assisted & Restricted Units'!$E$7:$E$399=\"4\")*('2. Assisted & Restricted Units'!$W$7:$W$399=\"HOME\")*('2. Assisted & Restricted Units'!$X$7:$X$399=\"40% SMI\"))","v":0},{"$f":"SUMPRODUCT(('2. Assisted & Restricted Units'!$E$7:$E$399=\"4\")*('2. Assisted & Restricted Units'!$W$7:$W$399=\"Market Rate\")*('2. Assisted & Restricted Units'!$X$7:$X$399=\"40% SMI\"))","v":0},{"$f":"SUMPRODUCT(('2. Assisted & Restricted Units'!$E$7:$E$399=\"4\")*('2. Assisted & Restricted Units'!$W$7:$W$399=\"MHP\")*('2. Assisted & Restricted Units'!$X$7:$X$399=\"40% SMI\"))","v":0},{"$f":"SUMPRODUCT(('2. Assisted & Restricted Units'!$E$7:$E$399=\"4\")*('2. Assisted & Restricted Units'!$W$7:$W$399=\"NonAssisted\")*('2. Assisted & Restricted Units'!$X$7:$X$399=\"40% SMI\"))","v":0},{"$f":"SUMPRODUCT(('2. Assisted & Restricted Units'!$E$7:$E$399=\"4\")*('2. Assisted & Restricted Units'!$W$7:$W$399=\"Other Restr\")*('2. Assisted & Restricted Units'!$X$7:$X$399=\"40% SMI\"))","v":0},{"$f":"SUMPRODUCT(('2. Assisted & Restricted Units'!$E$7:$E$399=\"4\")*('2. Assisted & Restricted Units'!$W$7:$W$399=\"RHCP-B\")*('2. Assisted & Restricted Units'!$X$7:$X$399=\"40% SMI\"))","v":0},{"$f":"SUMPRODUCT(('2. Assisted & Restricted Units'!$E$7:$E$399=\"4\")*('2. Assisted & Restricted Units'!$W$7:$W$399=\"SERA\")*('2. Assisted & Restricted Units'!$X$7:$X$399=\"40% SMI\"))","v":0},{"$f":"SUMPRODUCT(('2. Assisted & Restricted Units'!$E$7:$E$399=\"4\")*('2. Assisted & Restricted Units'!$W$7:$W$399=\"SUHRP\")*('2. Assisted & Restricted Units'!$X$7:$X$399=\"40% SMI\"))","v":0},{"$f":"SUMPRODUCT(('2. Assisted & Restricted Units'!$E$7:$E$399=\"4\")*('2. Assisted & Restricted Units'!$W$7:$W$399=\"TOD\")*('2. Assisted & Restricted Units'!$X$7:$X$399=\"40% SMI\"))","v":0},{"$f":"SUMPRODUCT(('2. Assisted & Restricted Units'!$E$7:$E$399=\"4\")*('2. Assisted & Restricted Units'!$W$7:$W$399=\"707-E\")*('2. Assisted & Restricted Units'!$X$7:$X$399=\"40% SMI\"))","v":0},{"$f":"SUMPRODUCT(('2. Assisted & Restricted Units'!$E$7:$E$399=\"4\")*('2. Assisted & Restricted Units'!$W$7:$W$399=\"707-N\")*('2. Assisted & Restricted Units'!$X$7:$X$399=\"40% SMI\"))","v":0}]
["4 Bedroom 45% SMI",{"$f":"SUMPRODUCT(('2. Assisted & Restricted Units'!$E$7:$E$399=\"4\")*('2. Assisted & Restricted Units'!$W$7:$W$399=\"CALDAP\")*('2. Assisted & Restricted Units'!$X$7:$X$399=\"45% SMI\"))","v":0},{"$f":"SUMPRODUCT(('2. Assisted & Restricted Units'!$E$7:$E$399=\"4\")*('2. Assisted & Restricted Units'!$W$7:$W$399=\"CHRP-R\")*('2. Assisted & Restricted Units'!$X$7:$X$399=\"45% SMI\"))","v":0},{"$f":"SUMPRODUCT(('2. Assisted & Restricted Units'!$E$7:$E$399=\"4\")*('2. Assisted & Restricted Units'!$W$7:$W$399=\"DDS\")*('2. Assisted & Restricted Units'!$X$7:$X$399=\"45% SMI\"))","v":0},{"$f":"SUMPRODUCT(('2. Assisted & Restricted Units'!$E$7:$E$399=\"4\")*('2. Assisted & Restricted Units'!$W$7:$W$399=\"DPRLP\")*('2. Assisted & Restricted Units'!$X$7:$X$399=\"45% SMI\"))","v":0},{"$f":"SUMPRODUCT(('2. Assisted & Restricted Units'!$E$7:$E$399=\"4\")*('2. Assisted & Restricted Units'!$W$7:$W$399=\"FHDP\")*('2. Assisted & Restricted Units'!$X$7:$X$399=\"45% SMI\"))","v":0},{"$f":"SUMPRODUCT(('2. Assisted & Restricted Units'!$E$7:$E$399=\"4\")*('2. Assisted & Restricted Units'!$W$7:$W$399=\"FMTW\")*('2. Assisted & Restricted Units'!$X$7:$X$399=\"45% SMI\"))","v":0},null,{"$f":"SUMPRODUCT(('2. Assisted & Restricted Units'!$E$7:$E$399=\"4\")*('2. Assisted & Restricted Units'!$W$7:$W$399=\"HOME\")*('2. Assisted & Restricted Units'!$X$7:$X$399=\"45% SMI\"))","v":0},{"$f":"SUMPRODUCT(('2. Assisted & Restricted Units'!$E$7:$E$399=\"4\")*('2. Assisted & Restricted Units'!$W$7:$W$399=\"Market Rate\")*('2. Assisted & Restricted Units'!$X$7:$X$399=\"45% SMI\"))","v":0},{"$f":"SUMPRODUCT(('2. Assisted & Restricted Units'!$E$7:$E$399=\"4\")*('2. Assisted & Restricted Units'!$W$7:$W$399=\"MHP\")*('2. Assisted & Restricted Units'!$X$7:$X$399=\"45% SMI\"))","v":0},{"$f":"SUMPRODUCT(('2. Assisted & Restricted Units'!$E$7:$E$399=\"4\")*('2. Assisted & Restricted Units'!$W$7:$W$399=\"NonAssisted\")*('2. Assisted & Restricted Units'!$X$7:$X$399=\"45% SMI\"))","v":0},{"$f":"SUMPRODUCT(('2. Assisted & Restricted Units'!$E$7:$E$399=\"4\")*('2. Assisted & Restricted Units'!$W$7:$W$399=\"Other Restr\")*('2. Assisted & Restricted Units'!$X$7:$X$399=\"45% SMI\"))","v":0},{"$f":"SUMPRODUCT(('2. Assisted & Restricted Units'!$E$7:$E$399=\"4\")*('2. Assisted & Restricted Units'!$W$7:$W$399=\"RHCP-B\")*('2. Assisted & Restricted Units'!$X$7:$X$399=\"45% SMI\"))","v":0},{"$f":"SUMPRODUCT(('2. Assisted & Restricted Units'!$E$7:$E$399=\"4\")*('2. Assisted & Restricted Units'!$W$7:$W$399=\"SERA\")*('2. Assisted & Restricted Units'!$X$7:$X$399=\"45% SMI\"))","v":0},{"$f":"SUMPRODUCT(('2. Assisted & Restricted Units'!$E$7:$E$399=\"4\")*('2. Assisted & Restricted Units'!$W$7:$W$399=\"SUHRP\")*('2. Assisted & Restricted Units'!$X$7:$X$399=\"45% SMI\"))","v":0},{"$f":"SUMPRODUCT(('2. Assisted & Restricted Units'!$E$7:$E$399=\"4\")*('2. Assisted & Restricted Units'!$W$7:$W$399=\"TOD\")*('2. Assisted & Restricted Units'!$X$7:$X$399=\"45% SMI\"))","v":0},{"$f":"SUMPRODUCT(('2. Assisted & Restricted Units'!$E$7:$E$399=\"4\")*('2. Assisted & Restricted Units'!$W$7:$W$399=\"707-E\")*('2. Assisted & Restricted Units'!$X$7:$X$399=\"45% SMI\"))","v":0},{"$f":"SUMPRODUCT(('2. Assisted & Restricted Units'!$E$7:$E$399=\"4\")*('2. Assisted & Restricted Units'!$W$7:$W$399=\"707-N\")*('2. Assisted & Restricted Units'!$X$7:$X$399=\"45% SMI\"))","v":0}]
["4 Bedroom 50% SMI",{"$f":"SUMPRODUCT(('2. Assisted & Restricted Units'!$E$7:$E$399=\"4\")*('2. Assisted & Restricted Units'!$W$7:$W$399=\"CALDAP\")*('2. Assisted & Restricted Units'!$X$7:$X$399=\"50% SMI\"))","v":0},{"$f":"SUMPRODUCT(('2. Assisted & Restricted Units'!$E$7:$E$399=\"4\")*('2. Assisted & Restricted Units'!$W$7:$W$399=\"CHRP-R\")*('2. Assisted & Restricted Units'!$X$7:$X$399=\"50% SMI\"))","v":0},{"$f":"SUMPRODUCT(('2. Assisted & Restricted Units'!$E$7:$E$399=\"4\")*('2. Assisted & Restricted Units'!$W$7:$W$399=\"DDS\")*('2. Assisted & Restricted Units'!$X$7:$X$399=\"50% SMI\"))","v":0},{"$f":"SUMPRODUCT(('2. Assisted & Restricted Units'!$E$7:$E$399=\"4\")*('2. Assisted & Restricted Units'!$W$7:$W$399=\"DPRLP\")*('2. Assisted & Restricted Units'!$X$7:$X$399=\"50% SMI\"))","v":0},{"$f":"SUMPRODUCT(('2. Assisted & Restricted Units'!$E$7:$E$399=\"4\")*('2. Assisted & Restricted Units'!$W$7:$W$399=\"FHDP\")*('2. Assisted & Restricted Units'!$X$7:$X$399=\"50% SMI\"))","v":0},{"$f":"SUMPRODUCT(('2. Assisted & Restricted Units'!$E$7:$E$399=\"4\")*('2. Assisted & Restricted Units'!$W$7:$W$399=\"FMTW\")*('2. Assisted & Restricted Units'!$X$7:$X$399=\"50% SMI\"))","v":0},null,{"$f":"SUMPRODUCT(('2. Assisted & Restricted Units'!$E$7:$E$399=\"4\")*('2. Assisted & Restricted Units'!$W$7:$W$399=\"HOME\")*('2. Assisted & Restricted Units'!$X$7:$X$399=\"50% SMI\"))","v":0},{"$f":"SUMPRODUCT(('2. Assisted & Restricted Units'!$E$7:$E$399=\"4\")*('2. Assisted & Restricted Units'!$W$7:$W$399=\"Market Rate\")*('2. Assisted & Restricted Units'!$X$7:$X$399=\"50% SMI\"))","v":0},{"$f":"SUMPRODUCT(('2. Assisted & Restricted Units'!$E$7:$E$399=\"4\")*('2. Assisted & Restricted Units'!$W$7:$W$399=\"MHP\")*('2. Assisted & Restricted Units'!$X$7:$X$399=\"50% SMI\"))","v":0},{"$f":"SUMPRODUCT(('2. Assisted & Restricted Units'!$E$7:$E$399=\"4\")*('2. Assisted & Restricted Units'!$W$7:$W$399=\"NonAssisted\")*('2. Assisted & Restricted Units'!$X$7:$X$399=\"50% SMI\"))","v":0},{"$f":"SUMPRODUCT(('2. Assisted & Restricted Units'!$E$7:$E$399=\"4\")*('2. Assisted & Restricted Units'!$W$7:$W$399=\"Other Restr\")*('2. Assisted & Restricted Units'!$X$7:$X$399=\"50% SMI\"))","v":0},{"$f":"SUMPRODUCT(('2. Assisted & Restricted Units'!$E$7:$E$399=\"4\")*('2. Assisted & Restricted Units'!$W$7:$W$399=\"RHCP-B\")*('2. Assisted & Restricted Units'!$X$7:$X$399=\"50% SMI\"))","v":0},{"$f":"SUMPRODUCT(('2. Assisted & Restricted Units'!$E$7:$E$399=\"4\")*('2. Assisted & Restricted Units'!$W$7:$W$399=\"SERA\")*('2. Assisted & Restricted Units'!$X$7:$X$399=\"50% SMI\"))","v":0},{"$f":"SUMPRODUCT(('2. Assisted & Restricted Units'!$E$7:$E$399=\"4\")*('2. Assisted & Restricted Units'!$W$7:$W$399=\"SUHRP\")*('2. Assisted & Restricted Units'!$X$7:$X$399=\"50% SMI\"))","v":0},{"$f":"SUMPRODUCT(('2. Assisted & Restricted Units'!$E$7:$E$399=\"4\")*('2. Assisted & Restricted Units'!$W$7:$W$399=\"TOD\")*('2. Assisted & Restricted Units'!$X$7:$X$399=\"50% SMI\"))","v":0},{"$f":"SUMPRODUCT(('2. Assisted & Restricted Units'!$E$7:$E$399=\"4\")*('2. Assisted & Restricted Units'!$W$7:$W$399=\"707-E\")*('2. Assisted & Restricted Units'!$X$7:$X$399=\"50% SMI\"))","v":0},{"$f":"SUMPRODUCT(('2. Assisted & Restricted Units'!$E$7:$E$399=\"4\")*('2. Assisted & Restricted Units'!$W$7:$W$399=\"707-N\")*('2. Assisted & Restricted Units'!$X$7:$X$399=\"50% SMI\"))","v":0}]
["4 Bedroom 100% SMI",{"$f":"SUMPRODUCT(('2. Assisted & Restricted Units'!$E$7:$E$399=\"4\")*('2. Assisted & Restricted Units'!$W$7:$W$399=\"CALDAP\")*('2. Assisted & Restricted Units'!$X$7:$X$399=\"100% SMI\"))","v":0},{"$f":"SUMPRODUCT(('2. Assisted & Restricted Units'!$E$7:$E$399=\"4\")*('2. Assisted & Restricted Units'!$W$7:$W$399=\"CHRP-R\")*('2. Assisted & Restricted Units'!$X$7:$X$399=\"100% SMI\"))","v":0},{"$f":"SUMPRODUCT(('2. Assisted & Restricted Units'!$E$7:$E$399=\"4\")*('2. Assisted & Restricted Units'!$W$7:$W$399=\"DDS\")*('2. Assisted & Restricted Units'!$X$7:$X$399=\"100% SMI\"))","v":0},{"$f":"SUMPRODUCT(('2. Assisted & Restricted Units'!$E$7:$E$399=\"4\")*('2. Assisted & Restricted Units'!$W$7:$W$399=\"DPRLP\")*('2. Assisted & Restricted Units'!$X$7:$X$399=\"100% SMI\"))","v":0},{"$f":"SUMPRODUCT(('2. Assisted & Restricted Units'!$E$7:$E$399=\"4\")*('2. Assisted & Restricted Units'!$W$7:$W$399=\"FHDP\")*('2. Assisted & Restricted Units'!$X$7:$X$399=\"100% SMI\"))","v":0},{"$f":"SUMPRODUCT(('2. Assisted & Restricted Units'!$E$7:$E$399=\"4\")*('2. Assisted & Restricted Units'!$W$7:$W$399=\"FMTW\")*('2. Assisted & Restricted Units'!$X$7:$X$399=\"100% SMI\"))","v":0},null,{"$f":"SUMPRODUCT(('2. Assisted & Restricted Units'!$E$7:$E$399=\"4\")*('2. Assisted & Restricted Units'!$W$7:$W$399=\"HOME\")*('2. Assisted & Restricted Units'!$X$7:$X$399=\"100% SMI\"))","v":0},{"$f":"SUMPRODUCT(('2. Assisted & Restricted Units'!$E$7:$E$399=\"4\")*('2. Assisted & Restricted Units'!$W$7:$W$399=\"Market Rate\")*('2. Assisted & Restricted Units'!$X$7:$X$399=\"100% SMI\"))","v":0},{"$f":"SUMPRODUCT(('2. Assisted & Restricted Units'!$E$7:$E$399=\"4\")*('2. Assisted & Restricted Units'!$W$7:$W$399=\"MHP\")*('2. Assisted & Restricted Units'!$X$7:$X$399=\"100% SMI\"))","v":0},{"$f":"SUMPRODUCT(('2. Assisted & Restricted Units'!$E$7:$E$399=\"4\")*('2. Assisted & Restricted Units'!$W$7:$W$399=\"NonAssisted\")*('2. Assisted & Restricted Units'!$X$7:$X$399=\"100% SMI\"))","v":0},{"$f":"SUMPRODUCT(('2. Assisted & Restricted Units'!$E$7:$E$399=\"4\")*('2. Assisted & Restricted Units'!$W$7:$W$399=\"Other Restr\")*('2. Assisted & Restricted Units'!$X$7:$X$399=\"100% SMI\"))","v":0},{"$f":"SUMPRODUCT(('2. Assisted & Restricted Units'!$E$7:$E$399=\"4\")*('2. Assisted & Restricted Units'!$W$7:$W$399=\"RHCP-B\")*('2. Assisted & Restricted Units'!$X$7:$X$399=\"100% SMI\"))","v":0},{"$f":"SUMPRODUCT(('2. Assisted & Restricted Units'!$E$7:$E$399=\"4\")*('2. Assisted & Restricted Units'!$W$7:$W$399=\"SERA\")*('2. Assisted & Restricted Units'!$X$7:$X$399=\"100% SMI\"))","v":0},{"$f":"SUMPRODUCT(('2. Assisted & Restricted Units'!$E$7:$E$399=\"4\")*('2. Assisted & Restricted Units'!$W$7:$W$399=\"SUHRP\")*('2. Assisted & Restricted Units'!$X$7:$X$399=\"100% SMI\"))","v":0},{"$f":"SUMPRODUCT(('2. Assisted & Restricted Units'!$E$7:$E$399=\"4\")*('2. Assisted & Restricted Units'!$W$7:$W$399=\"TOD\")*('2. Assisted & Restricted Units'!$X$7:$X$399=\"100% SMI\"))","v":0},{"$f":"SUMPRODUCT(('2. Assisted & Restricted Units'!$E$7:$E$399=\"4\")*('2. Assisted & Restricted Units'!$W$7:$W$399=\"707-E\")*('2. Assisted & Restricted Units'!$X$7:$X$399=\"100% SMI\"))","v":0},{"$f":"SUMPRODUCT(('2. Assisted & Restricted Units'!$E$7:$E$399=\"4\")*('2. Assisted & Restricted Units'!$W$7:$W$399=\"707-N\")*('2. Assisted & Restricted Units'!$X$7:$X$399=\"100% SMI\"))","v":0}]
["4 Bedroom VLI HOME",{"$f":"SUMPRODUCT(('2. Assisted & Restricted Units'!$E$7:$E$399=\"4\")*('2. Assisted & Restricted Units'!$W$7:$W$399=\"CALDAP\")*('2. Assisted & Restricted Units'!$X$7:$X$399=\"VLI HOME\"))","v":0},{"$f":"SUMPRODUCT(('2. Assisted & Restricted Units'!$E$7:$E$399=\"4\")*('2. Assisted & Restricted Units'!$W$7:$W$399=\"CHRP-R\")*('2. Assisted & Restricted Units'!$X$7:$X$399=\"VLI HOME\"))","v":0},{"$f":"SUMPRODUCT(('2. Assisted & Restricted Units'!$E$7:$E$399=\"4\")*('2. Assisted & Restricted Units'!$W$7:$W$399=\"DDS\")*('2. Assisted & Restricted Units'!$X$7:$X$399=\"VLI HOME\"))","v":0},{"$f":"SUMPRODUCT(('2. Assisted & Restricted Units'!$E$7:$E$399=\"4\")*('2. Assisted & Restricted Units'!$W$7:$W$399=\"DPRLP\")*('2. Assisted & Restricted Units'!$X$7:$X$399=\"VLI HOME\"))","v":0},{"$f":"SUMPRODUCT(('2. Assisted & Restricted Units'!$E$7:$E$399=\"4\")*('2. Assisted & Restricted Units'!$W$7:$W$399=\"FHDP\")*('2. Assisted & Restricted Units'!$X$7:$X$399=\"VLI HOME\"))","v":0},{"$f":"SUMPRODUCT(('2. Assisted & Restricted Units'!$E$7:$E$399=\"4\")*('2. Assisted & Restricted Units'!$W$7:$W$399=\"FMTW\")*('2. Assisted & Restricted Units'!$X$7:$X$399=\"VLI HOME\"))","v":0},null,{"$f":"SUMPRODUCT(('2. Assisted & Restricted Units'!$E$7:$E$399=\"4\")*('2. Assisted & Restricted Units'!$W$7:$W$399=\"HOME\")*('2. Assisted & Restricted Units'!$X$7:$X$399=\"VLI HOME\"))","v":0},{"$f":"SUMPRODUCT(('2. Assisted & Restricted Units'!$E$7:$E$399=\"4\")*('2. Assisted & Restricted Units'!$W$7:$W$399=\"Market Rate\")*('2. Assisted & Restricted Units'!$X$7:$X$399=\"VLI HOME\"))","v":0},{"$f":"SUMPRODUCT(('2. Assisted & Restricted Units'!$E$7:$E$399=\"4\")*('2. Assisted & Restricted Units'!$W$7:$W$399=\"MHP\")*('2. Assisted & Restricted Units'!$X$7:$X$399=\"VLI HOME\"))","v":0},{"$f":"SUMPRODUCT(('2. Assisted & Restricted Units'!$E$7:$E$399=\"4\")*('2. Assisted & Restricted Units'!$W$7:$W$399=\"NonAssisted\")*('2. Assisted & Restricted Units'!$X$7:$X$399=\"VLI HOME\"))","v":0},{"$f":"SUMPRODUCT(('2. Assisted & Restricted Units'!$E$7:$E$399=\"4\")*('2. Assisted & Restricted Units'!$W$7:$W$399=\"Other Restr\")*('2. Assisted & Restricted Units'!$X$7:$X$399=\"VLI HOME\"))","v":0},{"$f":"SUMPRODUCT(('2. Assisted & Restricted Units'!$E$7:$E$399=\"4\")*('2. Assisted & Restricted Units'!$W$7:$W$399=\"RHCP-B\")*('2. Assisted & Restricted Units'!$X$7:$X$399=\"VLI HOME\"))","v":0},{"$f":"SUMPRODUCT(('2. Assisted & Restricted Units'!$E$7:$E$399=\"4\")*('2. Assisted & Restricted Units'!$W$7:$W$399=\"SERA\")*('2. Assisted & Restricted Units'!$X$7:$X$399=\"VLI HOME\"))","v":0},{"$f":"SUMPRODUCT(('2. Assisted & Restricted Units'!$E$7:$E$399=\"4\")*('2. Assisted & Restricted Units'!$W$7:$W$399=\"SUHRP\")*('2. Assisted & Restricted Units'!$X$7:$X$399=\"VLI HOME\"))","v":0},{"$f":"SUMPRODUCT(('2. Assisted & Restricted Units'!$E$7:$E$399=\"4\")*('2. Assisted & Restricted Units'!$W$7:$W$399=\"TOD\")*('2. Assisted & Restricted Units'!$X$7:$X$399=\"VLI HOME\"))","v":0},{"$f":"SUMPRODUCT(('2. Assisted & Restricted Units'!$E$7:$E$399=\"4\")*('2. Assisted & Restricted Units'!$W$7:$W$399=\"707-E\")*('2. Assisted & Restricted Units'!$X$7:$X$399=\"VLI HOME\"))","v":0},{"$f":"SUMPRODUCT(('2. Assisted & Restricted Units'!$E$7:$E$399=\"4\")*('2. Assisted & Restricted Units'!$W$7:$W$399=\"707-N\")*('2. Assisted & Restricted Units'!$X$7:$X$399=\"VLI HOME\"))","v":0}]
["4 Bedroom LI HOME",{"$f":"SUMPRODUCT(('2. Assisted & Restricted Units'!$E$7:$E$399=\"4\")*('2. Assisted & Restricted Units'!$W$7:$W$399=\"CALDAP\")*('2. Assisted & Restricted Units'!$X$7:$X$399=\"LI HOME\"))","v":0},{"$f":"SUMPRODUCT(('2. Assisted & Restricted Units'!$E$7:$E$399=\"4\")*('2. Assisted & Restricted Units'!$W$7:$W$399=\"CHRP-R\")*('2. Assisted & Restricted Units'!$X$7:$X$399=\"LI HOME\"))","v":0},{"$f":"SUMPRODUCT(('2. Assisted & Restricted Units'!$E$7:$E$399=\"4\")*('2. Assisted & Restricted Units'!$W$7:$W$399=\"DDS\")*('2. Assisted & Restricted Units'!$X$7:$X$399=\"LI HOME\"))","v":0},{"$f":"SUMPRODUCT(('2. Assisted & Restricted Units'!$E$7:$E$399=\"4\")*('2. Assisted & Restricted Units'!$W$7:$W$399=\"DPRLP\")*('2. Assisted & Restricted Units'!$X$7:$X$399=\"LI HOME\"))","v":0},{"$f":"SUMPRODUCT(('2. Assisted & Restricted Units'!$E$7:$E$399=\"4\")*('2. Assisted & Restricted Units'!$W$7:$W$399=\"FHDP\")*('2. Assisted & Restricted Units'!$X$7:$X$399=\"LI HOME\"))","v":0},{"$f":"SUMPRODUCT(('2. Assisted & Restricted Units'!$E$7:$E$399=\"4\")*('2. Assisted & Restricted Units'!$W$7:$W$399=\"FMTW\")*('2. Assisted & Restricted Units'!$X$7:$X$399=\"LI HOME\"))","v":0},null,{"$f":"SUMPRODUCT(('2. Assisted & Restricted Units'!$E$7:$E$399=\"4\")*('2. Assisted & Restricted Units'!$W$7:$W$399=\"HOME\")*('2. Assisted & Restricted Units'!$X$7:$X$399=\"LI HOME\"))","v":0},{"$f":"SUMPRODUCT(('2. Assisted & Restricted Units'!$E$7:$E$399=\"4\")*('2. Assisted & Restricted Units'!$W$7:$W$399=\"Market Rate\")*('2. Assisted & Restricted Units'!$X$7:$X$399=\"LI HOME\"))","v":0},{"$f":"SUMPRODUCT(('2. Assisted & Restricted Units'!$E$7:$E$399=\"4\")*('2. Assisted & Restricted Units'!$W$7:$W$399=\"MHP\")*('2. Assisted & Restricted Units'!$X$7:$X$399=\"LI HOME\"))","v":0},{"$f":"SUMPRODUCT(('2. Assisted & Restricted Units'!$E$7:$E$399=\"4\")*('2. Assisted & Restricted Units'!$W$7:$W$399=\"NonAssisted\")*('2. Assisted & Restricted Units'!$X$7:$X$399=\"LI HOME\"))","v":0},{"$f":"SUMPRODUCT(('2. Assisted & Restricted Units'!$E$7:$E$399=\"4\")*('2. Assisted & Restricted Units'!$W$7:$W$399=\"Other Restr\")*('2. Assisted & Restricted Units'!$X$7:$X$399=\"LI HOME\"))","v":0},{"$f":"SUMPRODUCT(('2. Assisted & Restricted Units'!$E$7:$E$399=\"4\")*('2. Assisted & Restricted Units'!$W$7:$W$399=\"RHCP-B\")*('2. Assisted & Restricted Units'!$X$7:$X$399=\"LI HOME\"))","v":0},{"$f":"SUMPRODUCT(('2. Assisted & Restricted Units'!$E$7:$E$399=\"4\")*('2. Assisted & Restricted Units'!$W$7:$W$399=\"SERA\")*('2. Assisted & Restricted Units'!$X$7:$X$399=\"LI HOME\"))","v":0},{"$f":"SUMPRODUCT(('2. Assisted & Restricted Units'!$E$7:$E$399=\"4\")*('2. Assisted & Restricted Units'!$W$7:$W$399=\"SUHRP\")*('2. Assisted & Restricted Units'!$X$7:$X$399=\"LI HOME\"))","v":0},{"$f":"SUMPRODUCT(('2. Assisted & Restricted Units'!$E$7:$E$399=\"4\")*('2. Assisted & Restricted Units'!$W$7:$W$399=\"TOD\")*('2. Assisted & Restricted Units'!$X$7:$X$399=\"LI HOME\"))","v":0},{"$f":"SUMPRODUCT(('2. Assisted & Restricted Units'!$E$7:$E$399=\"4\")*('2. Assisted & Restricted Units'!$W$7:$W$399=\"707-E\")*('2. Assisted & Restricted Units'!$X$7:$X$399=\"LI HOME\"))","v":0},{"$f":"SUMPRODUCT(('2. Assisted & Restricted Units'!$E$7:$E$399=\"4\")*('2. Assisted & Restricted Units'!$W$7:$W$399=\"707-N\")*('2. Assisted & Restricted Units'!$X$7:$X$399=\"LI HOME\"))","v":0}]
["4 Bedroom VLI State",{"$f":"SUMPRODUCT(('2. Assisted & Restricted Units'!$E$7:$E$399=\"4\")*('2. Assisted & Restricted Units'!$W$7:$W$399=\"CALDAP\")*('2. Assisted & Restricted Units'!$X$7:$X$399=\"VLI State\"))","v":0},{"$f":"SUMPRODUCT(('2. Assisted & Restricted Units'!$E$7:$E$399=\"4\")*('2. Assisted & Restricted Units'!$W$7:$W$399=\"CHRP-R\")*('2. Assisted & Restricted Units'!$X$7:$X$399=\"VLI State\"))","v":0},{"$f":"SUMPRODUCT(('2. Assisted & Restricted Units'!$E$7:$E$399=\"4\")*('2. Assisted & Restricted Units'!$W$7:$W$399=\"DDS\")*('2. Assisted & Restricted Units'!$X$7:$X$399=\"VLI State\"))","v":0},{"$f":"SUMPRODUCT(('2. Assisted & Restricted Units'!$E$7:$E$399=\"4\")*('2. Assisted & Restricted Units'!$W$7:$W$399=\"DPRLP\")*('2. Assisted & Restricted Units'!$X$7:$X$399=\"VLI State\"))","v":0},{"$f":"SUMPRODUCT(('2. Assisted & Restricted Units'!$E$7:$E$399=\"4\")*('2. Assisted & Restricted Units'!$W$7:$W$399=\"FHDP\")*('2. Assisted & Restricted Units'!$X$7:$X$399=\"VLI State\"))","v":0},{"$f":"SUMPRODUCT(('2. Assisted & Restricted Units'!$E$7:$E$399=\"4\")*('2. Assisted & Restricted Units'!$W$7:$W$399=\"FMTW\")*('2. Assisted & Restricted Units'!$X$7:$X$399=\"VLI State\"))","v":0},null,{"$f":"SUMPRODUCT(('2. Assisted & Restricted Units'!$E$7:$E$399=\"4\")*('2. Assisted & Restricted Units'!$W$7:$W$399=\"HOME\")*('2. Assisted & Restricted Units'!$X$7:$X$399=\"VLI State\"))","v":0},{"$f":"SUMPRODUCT(('2. Assisted & Restricted Units'!$E$7:$E$399=\"4\")*('2. Assisted & Restricted Units'!$W$7:$W$399=\"Market Rate\")*('2. Assisted & Restricted Units'!$X$7:$X$399=\"VLI State\"))","v":0},{"$f":"SUMPRODUCT(('2. Assisted & Restricted Units'!$E$7:$E$399=\"4\")*('2. Assisted & Restricted Units'!$W$7:$W$399=\"MHP\")*('2. Assisted & Restricted Units'!$X$7:$X$399=\"VLI State\"))","v":0},{"$f":"SUMPRODUCT(('2. Assisted & Restricted Units'!$E$7:$E$399=\"4\")*('2. Assisted & Restricted Units'!$W$7:$W$399=\"NonAssisted\")*('2. Assisted & Restricted Units'!$X$7:$X$399=\"VLI State\"))","v":0},{"$f":"SUMPRODUCT(('2. Assisted & Restricted Units'!$E$7:$E$399=\"4\")*('2. Assisted & Restricted Units'!$W$7:$W$399=\"Other Restr\")*('2. Assisted & Restricted Units'!$X$7:$X$399=\"VLI State\"))","v":0},{"$f":"SUMPRODUCT(('2. Assisted & Restricted Units'!$E$7:$E$399=\"4\")*('2. Assisted & Restricted Units'!$W$7:$W$399=\"RHCP-B\")*('2. Assisted & Restricted Units'!$X$7:$X$399=\"VLI State\"))","v":0},{"$f":"SUMPRODUCT(('2. Assisted & Restricted Units'!$E$7:$E$399=\"4\")*('2. Assisted & Restricted Units'!$W$7:$W$399=\"SERA\")*('2. Assisted & Restricted Units'!$X$7:$X$399=\"VLI State\"))","v":0},{"$f":"SUMPRODUCT(('2. Assisted & Restricted Units'!$E$7:$E$399=\"4\")*('2. Assisted & Restricted Units'!$W$7:$W$399=\"SUHRP\")*('2. Assisted & Restricted Units'!$X$7:$X$399=\"VLI State\"))","v":0},{"$f":"SUMPRODUCT(('2. Assisted & Restricted Units'!$E$7:$E$399=\"4\")*('2. Assisted & Restricted Units'!$W$7:$W$399=\"TOD\")*('2. Assisted & Restricted Units'!$X$7:$X$399=\"VLI State\"))","v":0},{"$f":"SUMPRODUCT(('2. Assisted & Restricted Units'!$E$7:$E$399=\"4\")*('2. Assisted & Restricted Units'!$W$7:$W$399=\"707-E\")*('2. Assisted & Restricted Units'!$X$7:$X$399=\"VLI State\"))","v":0},{"$f":"SUMPRODUCT(('2. Assisted & Restricted Units'!$E$7:$E$399=\"4\")*('2. Assisted & Restricted Units'!$W$7:$W$399=\"707-N\")*('2. Assisted & Restricted Units'!$X$7:$X$399=\"VLI State\"))","v":0}]
["4 Bedroom LI State",{"$f":"SUMPRODUCT(('2. Assisted & Restricted Units'!$E$7:$E$399=\"4\")*('2. Assisted & Restricted Units'!$W$7:$W$399=\"CALDAP\")*('2. Assisted & Restricted Units'!$X$7:$X$399=\"LI State\"))","v":0},{"$f":"SUMPRODUCT(('2. Assisted & Restricted Units'!$E$7:$E$399=\"4\")*('2. Assisted & Restricted Units'!$W$7:$W$399=\"CHRP-R\")*('2. Assisted & Restricted Units'!$X$7:$X$399=\"LI State\"))","v":0},{"$f":"SUMPRODUCT(('2. Assisted & Restricted Units'!$E$7:$E$399=\"4\")*('2. Assisted & Restricted Units'!$W$7:$W$399=\"DDS\")*('2. Assisted & Restricted Units'!$X$7:$X$399=\"LI State\"))","v":0},{"$f":"SUMPRODUCT(('2. Assisted & Restricted Units'!$E$7:$E$399=\"4\")*('2. Assisted & Restricted Units'!$W$7:$W$399=\"DPRLP\")*('2. Assisted & Restricted Units'!$X$7:$X$399=\"LI State\"))","v":0},{"$f":"SUMPRODUCT(('2. Assisted & Restricted Units'!$E$7:$E$399=\"4\")*('2. Assisted & Restricted Units'!$W$7:$W$399=\"FHDP\")*('2. Assisted & Restricted Units'!$X$7:$X$399=\"LI State\"))","v":0},{"$f":"SUMPRODUCT(('2. Assisted & Restricted Units'!$E$7:$E$399=\"4\")*('2. Assisted & Restricted Units'!$W$7:$W$399=\"FMTW\")*('2. Assisted & Restricted Units'!$X$7:$X$399=\"LI State\"))","v":0},null,{"$f":"SUMPRODUCT(('2. Assisted & Restricted Units'!$E$7:$E$399=\"4\")*('2. Assisted & Restricted Units'!$W$7:$W$399=\"HOME\")*('2. Assisted & Restricted Units'!$X$7:$X$399=\"LI State\"))","v":0},{"$f":"SUMPRODUCT(('2. Assisted & Restricted Units'!$E$7:$E$399=\"4\")*('2. Assisted & Restricted Units'!$W$7:$W$399=\"Market Rate\")*('2. Assisted & Restricted Units'!$X$7:$X$399=\"LI State\"))","v":0},{"$f":"SUMPRODUCT(('2. Assisted & Restricted Units'!$E$7:$E$399=\"4\")*('2. Assisted & Restricted Units'!$W$7:$W$399=\"MHP\")*('2. Assisted & Restricted Units'!$X$7:$X$399=\"LI State\"))","v":0},{"$f":"SUMPRODUCT(('2. Assisted & Restricted Units'!$E$7:$E$399=\"4\")*('2. Assisted & Restricted Units'!$W$7:$W$399=\"NonAssisted\")*('2. Assisted & Restricted Units'!$X$7:$X$399=\"LI State\"))","v":0},{"$f":"SUMPRODUCT(('2. Assisted & Restricted Units'!$E$7:$E$399=\"4\")*('2. Assisted & Restricted Units'!$W$7:$W$399=\"Other Restr\")*('2. Assisted & Restricted Units'!$X$7:$X$399=\"LI State\"))","v":0},{"$f":"SUMPRODUCT(('2. Assisted & Restricted Units'!$E$7:$E$399=\"4\")*('2. Assisted & Restricted Units'!$W$7:$W$399=\"RHCP-B\")*('2. Assisted & Restricted Units'!$X$7:$X$399=\"LI State\"))","v":0},{"$f":"SUMPRODUCT(('2. Assisted & Restricted Units'!$E$7:$E$399=\"4\")*('2. Assisted & Restricted Units'!$W$7:$W$399=\"SERA\")*('2. Assisted & Restricted Units'!$X$7:$X$399=\"LI State\"))","v":0},{"$f":"SUMPRODUCT(('2. Assisted & Restricted Units'!$E$7:$E$399=\"4\")*('2. Assisted & Restricted Units'!$W$7:$W$399=\"SUHRP\")*('2. Assisted & Restricted Units'!$X$7:$X$399=\"LI State\"))","v":0},{"$f":"SUMPRODUCT(('2. Assisted & Restricted Units'!$E$7:$E$399=\"4\")*('2. Assisted & Restricted Units'!$W$7:$W$399=\"TOD\")*('2. Assisted & Restricted Units'!$X$7:$X$399=\"LI State\"))","v":0},{"$f":"SUMPRODUCT(('2. Assisted & Restricted Units'!$E$7:$E$399=\"4\")*('2. Assisted & Restricted Units'!$W$7:$W$399=\"707-E\")*('2. Assisted & Restricted Units'!$X$7:$X$399=\"LI State\"))","v":0},{"$f":"SUMPRODUCT(('2. Assisted & Restricted Units'!$E$7:$E$399=\"4\")*('2. Assisted & Restricted Units'!$W$7:$W$399=\"707-N\")*('2. Assisted & Restricted Units'!$X$7:$X$399=\"LI State\"))","v":0}]
["4 Bedroom CalHFA",{"$f":"SUMPRODUCT(('2. Assisted & Restricted Units'!$E$7:$E$399=\"4\")*('2. Assisted & Restricted Units'!$W$7:$W$399=\"CALDAP\")*('2. Assisted & Restricted Units'!$X$7:$X$399=\"CalHFA\"))","v":0},{"$f":"SUMPRODUCT(('2. Assisted & Restricted Units'!$E$7:$E$399=\"4\")*('2. Assisted & Restricted Units'!$W$7:$W$399=\"CHRP-R\")*('2. Assisted & Restricted Units'!$X$7:$X$399=\"CalHFA\"))","v":0},{"$f":"SUMPRODUCT(('2. Assisted & Restricted Units'!$E$7:$E$399=\"4\")*('2. Assisted & Restricted Units'!$W$7:$W$399=\"DDS\")*('2. Assisted & Restricted Units'!$X$7:$X$399=\"CalHFA\"))","v":0},{"$f":"SUMPRODUCT(('2. Assisted & Restricted Units'!$E$7:$E$399=\"4\")*('2. Assisted & Restricted Units'!$W$7:$W$399=\"DPRLP\")*('2. Assisted & Restricted Units'!$X$7:$X$399=\"CalHFA\"))","v":0},{"$f":"SUMPRODUCT(('2. Assisted & Restricted Units'!$E$7:$E$399=\"4\")*('2. Assisted & Restricted Units'!$W$7:$W$399=\"FHDP\")*('2. Assisted & Restricted Units'!$X$7:$X$399=\"CalHFA\"))","v":0},{"$f":"SUMPRODUCT(('2. Assisted & Restricted Units'!$E$7:$E$399=\"4\")*('2. Assisted & Restricted Units'!$W$7:$W$399=\"FMTW\")*('2. Assisted & Restricted Units'!$X$7:$X$399=\"CalHFA\"))","v":0},null,{"$f":"SUMPRODUCT(('2. Assisted & Restricted Units'!$E$7:$E$399=\"4\")*('2. Assisted & Restricted Units'!$W$7:$W$399=\"HOME\")*('2. Assisted & Restricted Units'!$X$7:$X$399=\"CalHFA\"))","v":0},{"$f":"SUMPRODUCT(('2. Assisted & Restricted Units'!$E$7:$E$399=\"4\")*('2. Assisted & Restricted Units'!$W$7:$W$399=\"Market Rate\")*('2. Assisted & Restricted Units'!$X$7:$X$399=\"CalHFA\"))","v":0},{"$f":"SUMPRODUCT(('2. Assisted & Restricted Units'!$E$7:$E$399=\"4\")*('2. Assisted & Restricted Units'!$W$7:$W$399=\"MHP\")*('2. Assisted & Restricted Units'!$X$7:$X$399=\"CalHFA\"))","v":0},{"$f":"SUMPRODUCT(('2. Assisted & Restricted Units'!$E$7:$E$399=\"4\")*('2. Assisted & Restricted Units'!$W$7:$W$399=\"NonAssisted\")*('2. Assisted & Restricted Units'!$X$7:$X$399=\"CalHFA\"))","v":0},{"$f":"SUMPRODUCT(('2. Assisted & Restricted Units'!$E$7:$E$399=\"4\")*('2. Assisted & Restricted Units'!$W$7:$W$399=\"Other Restr\")*('2. Assisted & Restricted Units'!$X$7:$X$399=\"CalHFA\"))","v":0},{"$f":"SUMPRODUCT(('2. Assisted & Restricted Units'!$E$7:$E$399=\"4\")*('2. Assisted & Restricted Units'!$W$7:$W$399=\"RHCP-B\")*('2. Assisted & Restricted Units'!$X$7:$X$399=\"CalHFA\"))","v":0},{"$f":"SUMPRODUCT(('2. Assisted & Restricted Units'!$E$7:$E$399=\"4\")*('2. Assisted & Restricted Units'!$W$7:$W$399=\"SERA\")*('2. Assisted & Restricted Units'!$X$7:$X$399=\"CalHFA\"))","v":0},{"$f":"SUMPRODUCT(('2. Assisted & Restricted Units'!$E$7:$E$399=\"4\")*('2. Assisted & Restricted Units'!$W$7:$W$399=\"SUHRP\")*('2. Assisted & Restricted Units'!$X$7:$X$399=\"CalHFA\"))","v":0},{"$f":"SUMPRODUCT(('2. Assisted & Restricted Units'!$E$7:$E$399=\"4\")*('2. Assisted & Restricted Units'!$W$7:$W$399=\"TOD\")*('2. Assisted & Restricted Units'!$X$7:$X$399=\"CalHFA\"))","v":0},{"$f":"SUMPRODUCT(('2. Assisted & Restricted Units'!$E$7:$E$399=\"4\")*('2. Assisted & Restricted Units'!$W$7:$W$399=\"707-E\")*('2. Assisted & Restricted Units'!$X$7:$X$399=\"CalHFA\"))","v":0},{"$f":"SUMPRODUCT(('2. Assisted & Restricted Units'!$E$7:$E$399=\"4\")*('2. Assisted & Restricted Units'!$W$7:$W$399=\"707-N\")*('2. Assisted & Restricted Units'!$X$7:$X$399=\"CalHFA\"))","v":0}]
["4 Bedroom Sec 8",{"$f":"SUMPRODUCT(('2. Assisted & Restricted Units'!$E$7:$E$399=\"4\")*('2. Assisted & Restricted Units'!$W$7:$W$399=\"CALDAP\")*('2. Assisted & Restricted Units'!$X$7:$X$399=\"Sec 8\"))","v":0},{"$f":"SUMPRODUCT(('2. Assisted & Restricted Units'!$E$7:$E$399=\"4\")*('2. Assisted & Restricted Units'!$W$7:$W$399=\"CHRP-R\")*('2. Assisted & Restricted Units'!$X$7:$X$399=\"Sec 8\"))","v":0},{"$f":"SUMPRODUCT(('2. Assisted & Restricted Units'!$E$7:$E$399=\"4\")*('2. Assisted & Restricted Units'!$W$7:$W$399=\"DDS\")*('2. Assisted & Restricted Units'!$X$7:$X$399=\"Sec 8\"))","v":0},{"$f":"SUMPRODUCT(('2. Assisted & Restricted Units'!$E$7:$E$399=\"4\")*('2. Assisted & Restricted Units'!$W$7:$W$399=\"DPRLP\")*('2. Assisted & Restricted Units'!$X$7:$X$399=\"Sec 8\"))","v":0},{"$f":"SUMPRODUCT(('2. Assisted & Restricted Units'!$E$7:$E$399=\"4\")*('2. Assisted & Restricted Units'!$W$7:$W$399=\"FHDP\")*('2. Assisted & Restricted Units'!$X$7:$X$399=\"Sec 8\"))","v":0},{"$f":"SUMPRODUCT(('2. Assisted & Restricted Units'!$E$7:$E$399=\"4\")*('2. Assisted & Restricted Units'!$W$7:$W$399=\"FMTW\")*('2. Assisted & Restricted Units'!$X$7:$X$399=\"Sec 8\"))","v":0},null,{"$f":"SUMPRODUCT(('2. Assisted & Restricted Units'!$E$7:$E$399=\"4\")*('2. Assisted & Restricted Units'!$W$7:$W$399=\"HOME\")*('2. Assisted & Restricted Units'!$X$7:$X$399=\"Sec 8\"))","v":0},{"$f":"SUMPRODUCT(('2. Assisted & Restricted Units'!$E$7:$E$399=\"4\")*('2. Assisted & Restricted Units'!$W$7:$W$399=\"Market Rate\")*('2. Assisted & Restricted Units'!$X$7:$X$399=\"Sec 8\"))","v":0},{"$f":"SUMPRODUCT(('2. Assisted & Restricted Units'!$E$7:$E$399=\"4\")*('2. Assisted & Restricted Units'!$W$7:$W$399=\"MHP\")*('2. Assisted & Restricted Units'!$X$7:$X$399=\"Sec 8\"))","v":0},{"$f":"SUMPRODUCT(('2. Assisted & Restricted Units'!$E$7:$E$399=\"4\")*('2. Assisted & Restricted Units'!$W$7:$W$399=\"NonAssisted\")*('2. Assisted & Restricted Units'!$X$7:$X$399=\"Sec 8\"))","v":0},{"$f":"SUMPRODUCT(('2. Assisted & Restricted Units'!$E$7:$E$399=\"4\")*('2. Assisted & Restricted Units'!$W$7:$W$399=\"Other Restr\")*('2. Assisted & Restricted Units'!$X$7:$X$399=\"Sec 8\"))","v":0},{"$f":"SUMPRODUCT(('2. Assisted & Restricted Units'!$E$7:$E$399=\"4\")*('2. Assisted & Restricted Units'!$W$7:$W$399=\"RHCP-B\")*('2. Assisted & Restricted Units'!$X$7:$X$399=\"Sec 8\"))","v":0},{"$f":"SUMPRODUCT(('2. Assisted & Restricted Units'!$E$7:$E$399=\"4\")*('2. Assisted & Restricted Units'!$W$7:$W$399=\"SERA\")*('2. Assisted & Restricted Units'!$X$7:$X$399=\"Sec 8\"))","v":0},{"$f":"SUMPRODUCT(('2. Assisted & Restricted Units'!$E$7:$E$399=\"4\")*('2. Assisted & Restricted Units'!$W$7:$W$399=\"SUHRP\")*('2. Assisted & Restricted Units'!$X$7:$X$399=\"Sec 8\"))","v":0},{"$f":"SUMPRODUCT(('2. Assisted & Restricted Units'!$E$7:$E$399=\"4\")*('2. Assisted & Restricted Units'!$W$7:$W$399=\"TOD\")*('2. Assisted & Restricted Units'!$X$7:$X$399=\"Sec 8\"))","v":0},{"$f":"SUMPRODUCT(('2. Assisted & Restricted Units'!$E$7:$E$399=\"4\")*('2. Assisted & Restricted Units'!$W$7:$W$399=\"707-E\")*('2. Assisted & Restricted Units'!$X$7:$X$399=\"Sec 8\"))","v":0},{"$f":"SUMPRODUCT(('2. Assisted & Restricted Units'!$E$7:$E$399=\"4\")*('2. Assisted & Restricted Units'!$W$7:$W$399=\"707-N\")*('2. Assisted & Restricted Units'!$X$7:$X$399=\"Sec 8\"))","v":0}]
["Total 4",{"$f":"SUM(B129:B153)","v":0},{"$f":"SUM(C129:C153)","v":0},{"$f":"SUM(D129:D153)","v":0},{"$f":"SUM(E129:E153)","v":0},{"$f":"SUM(F129:F153)","v":0},0,{"$f":"SUMPRODUCT(('2. Assisted & Restricted Units'!$E$7:$E$399=\"4\")*('2. Assisted & Restricted Units'!$W$7:$W$399=\"FWHG\"))","v":0},0,0,0,0,0,0,0,0,0,0,0,{"$f":"SUMPRODUCT(('2. Assisted & Restricted Units'!$E$7:$E$399=\"4\")*('2. Assisted & Restricted Units'!$L$7:$L$399=\"X\"))","v":0},{"$f":"SUMPRODUCT(('2. Assisted & Restricted Units'!$E$7:$E$399=\"4\")*('2. Assisted & Restricted Units'!#REF!=\"X\"))","v":{"$error":"#REF!"}},{"$f":"SUMPRODUCT(('2. Assisted & Restricted Units'!$E$7:$E$399=\"4\")*('2. Assisted & Restricted Units'!#REF!=\"X\"))","v":{"$error":"#REF!"}},{"$f":"SUMPRODUCT(('2. Assisted & Restricted Units'!$E$7:$E$399=\"4\")*('2. Assisted & Restricted Units'!#REF!=\"X\"))","v":{"$error":"#REF!"}},{"$f":"SUMPRODUCT(('2. Assisted & Restricted Units'!$E$7:$E$399=\"4\")*('2. Assisted & Restricted Units'!#REF!=\"X\"))","v":{"$error":"#REF!"}},{"$f":"SUMPRODUCT(('2. Assisted & Restricted Units'!$E$7:$E$399=\"4\")*('2. Assisted & Restricted Units'!#REF!=\"X\"))","v":{"$error":"#REF!"}},{"$f":"SUMPRODUCT(('2. Assisted & Restricted Units'!$E$7:$E$399=\"4\")*('2. Assisted & Restricted Units'!#REF!=\"X\"))","v":{"$error":"#REF!"}},{"$f":"SUMPRODUCT(('2. Assisted & Restricted Units'!$E$7:$E$399=\"4\")*('2. Assisted & Restricted Units'!$M$7:$M$399=\"X\"))","v":0},{"$f":"SUMPRODUCT(('2. Assisted & Restricted Units'!$E$7:$E$399=\"4\")*('2. Assisted & Restricted Units'!$O$7:$O$399=\"X\"))","v":0}]
["Total Units",{"$f":"B27+B53+B78+B103+B128+B154","v":0},{"$f":"C27+C53+C78+C103+C128+C154","v":0},0,0,0,0,0,0,0,0,0,0,0,0,0,0,0,0,{"$f":"T27+T53+T78+T103+T128+T154","v":0},{"$f":"U27+U53+U78+U103+U128+U154","v":{"$error":"#REF!"}},{"$error":"#REF!"},{"$error":"#REF!"},{"$error":"#REF!"},{"$error":"#REF!"},{"$error":"#REF!"},0,0]